{"text_format":"3","workbook":"xlsx","n_sheets":18,"sheets":["T&C","Data Entry Requirements","DeclMatrix","UseMGA","ToPDF","MGA","LifeLookup","MGAtoCSV","List","SIC Lookup","ListValues","LookupTables","Enrollment Form","Validation","Report","Tracking","RevisionLog","Sheet3"],"not_rendered":{"images":3,"macros":1,"defined_names":122},"read":"whole","date_system":"1900"}

{"sheet":"T&C","index":0,"n_rows":8,"n_cols":6,"rows_kept":8,"merged":[[7,5,16,9]]}
{"$rows_empty":7}
[{"$nulls":5},"*  By clicking on the \"Accept\" button below, you agree to accept all terms and conditions defined in your contract/partnership with Blue Shield of California.  Should you not accept these terms and conditons, please click the \"Decline\" button which will close this workbook."]

{"sheet":"Data Entry Requirements","index":1,"n_rows":142,"n_cols":3,"rows_kept":142,"hidden":true}
["Section","Field Label","Data Entry Rule"]
["Application Information","Group Tax ID ","Required"]
["Application Information","Applicant Type","Required\nIf Applicant Type = \"Subscriber\" and Application Type = \"ROC\", then next row must be \"Subscriber\""]
["Application Information","Type of Application","Required"]
["Subscriber Information","Subscriber SSN ","Required\nIf Applicant Type <> \"Subscriber\" then Subscriber SSN should match row above"]
["Subscriber Information","Applicant SSN","Required if Applicant Type <> \"Subscriber\""]
["Subscriber Information","Applicant Last Name (incl Suffix)","Required"]
["Subscriber Information","Applicant First Name","Required"]
["Subscriber Information","Applicant Middle Initial ","Optional"]
["Section 1A - Healht plan selection","Health Package","Required If Application Type = Enroll"]
["Section 1A - Healht plan selection","Health Plan","Required unless Health Package = \"None\""]
["Section S1B - Dental benefits","Detal Package","Required If Application Type = Enroll"]
["Section S1B - Dental benefits","Dental Plan","Required unless Dental Package = \"None\""]
["Section SB2 - Vision Coverage","Vision Package","Required If Application Type = Enroll"]
["Section SB2 - Vision Coverage","Vision Plan","Required unless Vision Package = \"None\""]
["Section SB3 - Life / AD&D","Life/AD&D  Option"]
["Section SB3 - Life / AD&D","Desired Employee Basic Life Insurance Amount"]
["Section SB3 - Life / AD&D","Basic Dependent Life Insurance Enroll"]
["Section SB3 - Life / AD&D","Number of Eligible Dependents"]
["Section SB3 - Life / AD&D","Amount Of Coverage Requested For Dependents"]
["Section SB3 - Life / AD&D","Earnings excluding OT, bonus"]
["Section SB3 - Life / AD&D","Earnings Frequency"]
["Beneficiary (Primary 1)","Primary 1 Beneficiary First Name"]
["Beneficiary (Primary 1)","Primary 1 Beneficiary Middle Initial"]
["Beneficiary (Primary 1)","Primary 1 Beneficiary Last Name"]
["Beneficiary (Primary 1)","Primary 1  Beneficiary SSN"]
["Beneficiary (Primary 1)","Primary 1 Relationship"]
["Beneficiary (Primary 1)","Primary 1 Date of Birth"]
["Beneficiary (Primary 1)","Primary 1 Address"]
["Beneficiary (Primary 1)","Primary 1 City"]
["Beneficiary (Primary 1)","Primary 1 State "]
["Beneficiary (Primary 1)","Primary 1 Zip"]
["Beneficiary (Primary 1)","Primary 1 Pct of Benefits"]
["Beneficiary (Primary 2)","Primary 2 Beneficiary First Name"]
["Beneficiary (Primary 2)","Primary 2 Beneficiary Middle Initial"]
["Beneficiary (Primary 2)","Primary 2 Beneficiary Last Name"]
["Beneficiary (Primary 2)","Primary 2 Beneficiary SSN"]
["Beneficiary (Primary 2)","Primary 2 Relationship"]
["Beneficiary (Primary 2)","Primary 2 Date of Birth"]
["Beneficiary (Primary 2)","Primary 2 Address"]
["Beneficiary (Primary 2)","Primary 2 City"]
["Beneficiary (Primary 2)","Primary 2 State "]
["Beneficiary (Primary 2)","Primary 2 Zip"]
["Beneficiary (Primary 2)","Primary 2 Pct of Benefits"]
["Contingent Beneficiary","Contingent Beneficiary First Name"]
["Contingent Beneficiary","Contingent Beneficiary Middle Initial"]
["Contingent Beneficiary","Contingent Beneficiary Last Name"]
["Contingent Beneficiary","Contingent Beneficiary SSN"]
["Contingent Beneficiary","Contingent Beneficiary Relationship"]
["Contingent Beneficiary","Contingent Beneficiary Date of Birth"]
["Contingent Beneficiary","Contingent Beneficiary Address"]
["Contingent Beneficiary","Contingent Beneficiary City"]
["Contingent Beneficiary","Contingent Beneficiary State"]
["Contingent Beneficiary","Contingent Beneficiary Zip"]
["Contingent Beneficiary","Contingent Beneficiary Pct of Benefits"]
["Section 2 - Subscriber Information ","Subscriber -  Home Address","Required if Applicant Type = \"Subscriber\" and Type Application <> \"ROC\""]
["Section 2 - Subscriber Information ","Subscriber - City","Required if Applicant Type = \"Subscriber\" and Type Application <> \"ROC\""]
["Section 2 - Subscriber Information ","Subscriber - State","Required if Applicant Type = \"Subscriber\" and Type Application <> \"ROC\""]
["Section 2 - Subscriber Information ","Subscriber - Zip","Required if Applicant Type = \"Subscriber\" and Type Application <> \"ROC\""]
["Section 2 - Subscriber Information ","Subscriber - Mailing Address (If Different)","Required if Applicant Type = \"Subscriber\" and Type Application <> \"ROC\""]
["Section 2 - Subscriber Information ","Subscriber - City","Required if Applicant Type = \"Subscriber\" and Type Application <> \"ROC\""]
["Section 2 - Subscriber Information ","Subscriber - State","Required if Applicant Type = \"Subscriber\" and Type Application <> \"ROC\""]
["Section 2 - Subscriber Information ","Subscriber - Zip","Required if Applicant Type = \"Subscriber\" and Type Application <> \"ROC\""]
["Section 2 - Subscriber Information ","Subscriber - Work Phone","Required if Applicant Type = \"Subscriber\" and Type Application <> \"ROC\""]
["Section 2 - Subscriber Information ","Subscriber - Home Phone","Required if Applicant Type = \"Subscriber\" and Type Application <> \"ROC\""]
["Section 2 - Subscriber Information ","Language Preference","Required if Applicant Type = \"Subscriber\" and Type Application <> \"ROC\""]
["Section 2 - Subscriber Information ","Subscriber - Email Address","Required if Applicant Type = \"Subscriber\" and Type Application <> \"ROC\""]
["Section 2 - Subscriber Information ","Preferred Method Of Contact","Required if Applicant Type = \"Subscriber\" and Type Application <> \"ROC\""]
["Section 2 - Subscriber Information ","Subscriber - Date of Birth","Required if Applicant Type = \"Subscriber\" and Type Application <> \"ROC\""]
["Section 2 - Subscriber Information ","Subscriber - Gender","Required if Applicant Type = \"Subscriber\" and Type Application <> \"ROC\""]
["Section 2 - Subscriber Information ","Subscriber - Marital Status","Required if Applicant Type = \"Subscriber\" and Type Application <> \"ROC\""]
["Section 2 - Subscriber Information ","Date Of Hire","Required if Applicant Type = \"Subscriber\" and Type Application <> \"ROC\""]
["Section 2 - Subscriber Information ","Job Title","Required if Applicant Type = \"Subscriber\" and Type Application <> \"ROC\""]
["Section 2 - Subscriber Information ","Job Classification","Required if Applicant Type = \"Subscriber\" and Type Application <> \"ROC\""]
["Section 2 - Subscriber Information ","Do you have any eligible dependent children under the age of 26?","Required if Applicant Type = \"Subscriber\" and Type Application <> \"ROC\""]
["Section 2 - Subscriber Information ","How Many?","Required if Applicant Type = \"Subscriber\" and Type Application <> \"ROC\""]
["Section 2 - Subscriber Information ","How Many Are Enrolling?","Required if Applicant Type = \"Subscriber\" and Type Application <> \"ROC\""]
["Section 2 - Subscriber Information ","Do you work 30 hours per week or more?","Required if Applicant Type = \"Subscriber\" and Type Application <> \"ROC\""]
["Section 2 - Subscriber Information ","Do you work between 20 and 29 hours per week?","Required if Applicant Type = \"Subscriber\" and Type Application <> \"ROC\""]
["Section 2 - Subscriber Information ","If no, are you an existing Cobra participant or enrolling due to a Cobra qualifying event?","Required if Applicant Type = \"Subscriber\" and Type Application <> \"ROC\""]
["Section 3 - Provider Assignment","Should Blue Shield designate a Provider?","Required if Health Plan contains \"HMO\" or if Dental Package contains \"HMO\"\nN/A for Spouse/ Dependent"]
["Section 3 - Provider Assignment","Medical HMO Personal Physician Name","Required if Should BSC Designate a Provider = \"No\" and Applicant Type = \"Subscriber\"\nN/A for Spouse/ Dependent"]
["Section 3 - Provider Assignment","Provider Number","Required if Should BSC Designate a Provider = \"No\" and Applicant Type = \"Subscriber\"\nN/A for Spouse/ Dependent"]
["Section 3 - Provider Assignment","IPA/MG Name","Required if Should BSC Designate a Provider = \"No\" and Applicant Type = \"Subscriber\"\nN/A for Spouse/ Dependent"]
["Section 3 - Provider Assignment","Existing Patient?","Required if Should BSC Designate a Provider = \"No\" and Applicant Type = \"Subscriber\"\nN/A for Spouse/ Dependent"]
["Section 3 - Provider Assignment","Dental HMO Provider Name ","Required if Should BSC Designate a Provider = \"No\" and Applicant Type = \"Subscriber\"\nN/A for Spouse/ Dependent"]
["Section 3 - Provider Assignment","Dental Provider Number","Required if Should BSC Designate a Provider = \"No\" and Applicant Type = \"Subscriber\"\nN/A for Spouse/ Dependent"]
["Section 3 - Provider Assignment","Dental Group Name","Required if Should BSC Designate a Provider = \"No\" and Applicant Type = \"Subscriber\"\nN/A for Spouse/ Dependent"]
["Section 3 - Provider Assignment","Existing Patient?","Required if Should BSC Designate a Provider = \"No\" and Applicant Type = \"Subscriber\"\nN/A for Spouse/ Dependent"]
["Section 4 = Dependent","Dependent - Gender","Required for all Dependents\nN/A for Subscriber"]
["Section 4 = Dependent","Enroll In All Products Selected By Subscriber?","Required for all Dependents\nN/A for Subscriber"]
["Section 4 = Dependent","Dependent - Date Of Birth","Required for all Dependents\nN/A for Subscriber"]
["Section 4 = Dependent","Dependent - Address (if different from subscriber) ","Required for all Dependents\nN/A for Subscriber"]
["Section 4 = Dependent","Dependent - City","Required for all Dependents\nN/A for Subscriber"]
["Section 4 = Dependent","Dependent - State","Required for all Dependents\nN/A for Subscriber"]
["Section 4 = Dependent","Dependent - ZIP","Required for all Dependents\nN/A for Subscriber"]
["Section 4 = Dependent","Dependent - HMO Personal Physician Name","Optional for all Dependents\nN/A for Subscriber"]
["Section 4 = Dependent","Dependent - Provider Number","Optional for all Dependents\nN/A for Subscriber"]
["Section 4 = Dependent","Dependent - IPA Name","Optional for all Dependents\nN/A for Subscriber"]
["Section 4 = Dependent","Dependent - Existing Medical Patient","Optional for all Dependents\nN/A for Subscriber"]
["Section 4 = Dependent","Dependent - Dental HMO Provider Name ","Optional for all Dependents\nN/A for Subscriber"]
["Section 4 = Dependent","Dependent - Dental Provider Number","Optional for all Dependents\nN/A for Subscriber"]
["Section 4 = Dependent","Dependent - Dental Group Name","Optional for all Dependents\nN/A for Subscriber"]
["Section 4 = Dependent","Dependent - Existing Dental Patient","Optional for all Dependents\nN/A for Subscriber"]
["Section 5 - Prior Coverage","Any Prior Coverage In The Past 6 Months?","Required if Applicant Type = Subscriber and Type Application <> \"ROC\""]
["Section 5 - Prior Coverage","If Prior Coverage, List Prior Carrier Name","Required if Applicant Type = Subscriber and Any Prior Coverage in the Past 6 Months = Yes"]
["Section 5 - Prior Coverage","Type of Coverage","Required if Applicant Type = Subscriber and Any Prior Coverage in the Past 6 Months = Yes"]
["Section 5 - Prior Coverage","Policy ID Number","Required if Applicant Type = Subscriber and Any Prior Coverage in the Past 6 Months = Yes"]
["Section 5 - Prior Coverage","Date Prior Coverage Began","Required if Applicant Type = Subscriber and Any Prior Coverage in the Past 6 Months = Yes"]
["Section 5 - Prior Coverage","Date Prior Coverage Ended","Required if Applicant Type = Subscriber and Any Prior Coverage in the Past 6 Months = Yes"]
["Section 5 - Prior Coverage","Family Members with Prior Coverage.","Required if Applicant Type = Subscriber and Any Prior Coverage in the Past 6 Months = Yes"]
["Section 6 - COBRA","Are You Enrolling In Cobra or Cal-Cobra?","Required if \"are you an existing Cobra participant or enrolling due to a Cobra qualifying event?\" in Section 2 = Yes and Applicant Type = \"Subscriber\""]
["Section 6 - COBRA","Employee/Subscriber Blue Shield ID Number","Required if \"Are you enrolling in Cobra or Cal-Cobra? = \"Yes\""]
["Section 6 - COBRA","Original Qualifying Event Date","Required if \"Are you enrolling in Cobra or Cal-Cobra? = \"Yes\""]
["Section 6 - COBRA","Qualifying Event Reason","Required if \"Are you enrolling in Cobra or Cal-Cobra? = \"Yes\""]
["Section 7 - Signature","Signature Of Employee","Required if Applicant Type = \"Subscriber\" and Type Application <> \"ROC\""]
["Section 7 - Signature","Date","Required if Applicant Type = \"Subscriber\" and Type Application <> \"ROC\""]
["REFUSAL OF COVERAGE","Are all eligible family members enrolling?"]
["REFUSAL OF COVERAGE","Date of Birth"]
["REFUSAL OF COVERAGE","Hire Date"]
["REFUSAL OF COVERAGE","State of Residence"]
["REFUSAL OF COVERAGE","Marital Status"]
["REFUSAL OF COVERAGE","Job Title"]
["REFUSAL OF COVERAGE","Are you a FT Employee - 30 or more hours per week?"]
["REFUSAL OF COVERAGE","Are you a PT Employee - 20-29 hours per week?"]
["REFUSAL OF COVERAGE","Declining Medical coverage"]
["REFUSAL OF COVERAGE","Reason For declining Medical"]
["REFUSAL OF COVERAGE","If covered by another Medical carrier, please name carrier"]
["REFUSAL OF COVERAGE","Member ID at Medical Carrier"]
["REFUSAL OF COVERAGE","Declining Dental coverage"]
["REFUSAL OF COVERAGE","Reason For declining Dental"]
["REFUSAL OF COVERAGE","If covered by another Dental carrier, please name carrier"]
["REFUSAL OF COVERAGE","Member ID at Dental Carrier"]
["REFUSAL OF COVERAGE","Declining Vision coverage"]
["REFUSAL OF COVERAGE","Reason For declining Vision coverage"]
["REFUSAL OF COVERAGE","If covered by another Vision carrier, please name carrier"]
["REFUSAL OF COVERAGE","Member ID at Vision Carrier"]
["REFUSAL OF COVERAGE","Declining Life coverage"]
["REFUSAL OF COVERAGE","Reason for declining Life coverage"]
["REFUSAL OF COVERAGE","If covered by another Life carrier, please name carrier"]
["REFUSAL OF COVERAGE","Member ID at Life Carrier"]
["REFUSAL OF COVERAGE","Other Non-Employer Health Coverage"]

{"sheet":"DeclMatrix","index":2,"n_rows":12,"n_cols":6,"rows_kept":12,"hidden":true}
[null,"Subscriber","Spouse","Domestic Partner","Dependent Child","Other Dependent Child - Guardianship"]
["Myself and all dependents","Yes","Yes","Yes","Yes","Yes"]
["My spouse/Domestic partner only","No","Yes","Yes","No","No"]
["My Children Only","No","No","No","Yes","Yes"]
["My spouse/Domestic partner and children","No","Yes","Yes","Yes","Yes"]
["The following dependents only"]
[]
["Subscriber",2]
["Spouse",3]
["Domestic Partner",4]
["Dependent Child",5]
["Other Dependent Child - Guardianship",6]

{"sheet":"UseMGA","index":3,"n_rows":1,"n_cols":2,"rows_kept":1,"hidden":true}
["Will Excel MGA be used in combination with the Excel EEA?","No"]

{"sheet":"ToPDF","index":4,"n_rows":25,"n_cols":5,"rows_kept":25,"hidden":true,"merged":[[0,1,0,4],[1,1,1,4]]}
["Group name:",{"$f":"MGA!E3","v":0}]
["Doing business as (DBA):",{"$f":"IF(MGA!E5<>\"\",MGA!E5,\"\")","v":""}]
[]
["Group Tax ID: ",{"$f":"MGA!E37","v":0},null,"Zip code:",{"$f":"MGA!E16","v":""}]
["Effective date:",{"$f":"MGA!E4","v":"00:00:00"},null,"Email:",{"$f":"MGA!E28","v":0}]
["Primary Contact:",{"$f":"MGA!E23&\" \"&MGA!E24","v":" "}]
["Phone:",{"$f":"MGA!E26","v":0}]
[]
["Agency name: ",{"$f":"MGA!E203","v":0},null,"Broker tax ID:",{"$f":"MGA!E204","v":0}]
["Producer name: ",{"$f":"MGA!E205","v":0},null,"CID License No.:",{"$f":"MGA!E206","v":0}]
["Producer email:",{"$f":"MGA!E207","v":0},null,"Producer phone: ",{"$f":"MGA!E208","v":0}]
["Producer contact:",{"$f":"MGA!E209","v":0},null,"Producer contact email:",{"$f":"MGA!E210","v":0}]
["Street Address: ",{"$f":"MGA!E211","v":0},null,"City/State Zip:  ",{"$f":"MGA!E212&\", \"&MGA!E213&\"  \"&MGA!E214","v":",   "}]
[]
["Is this a split commission: ",{"$f":"MGA!E215","v":0},null,"Name of 2nd producer:",{"$f":"IF($B$15=\"No\",\"\",MGA!E219)","v":0}]
["Prod 1 Split:",{"$f":"IF($B$15=\"No\",\"\",MGA!E217)","v":{"v":0,"d":"0%"}},null,"2nd producer Tax ID:",{"$f":"IF($B$15=\"No\",\"\",MGA!E220)","v":0}]
["Prod 2 Split:",{"$f":"IF($B$15=\"No\",\"\",MGA!E218)","v":""}]
[]
["GA name:",{"$f":"MGA!E221","v":0},null,"GA tax ID:",{"$f":"MGA!E222","v":0}]
["Producer name: ",{"$f":"MGA!E223","v":0},null,"GA email: ",{"$f":"MGA!E224","v":0}]
["Todays Date: ",{"$f":"MGA!E225","v":"00:00:00"}]
[]
["Account executive: ",{"$f":"MGA!E231","v":0},null,"Phone:",{"$f":"MGA!F231","v":0}]
["Account manager:",{"$f":"MGA!E232","v":0},null,"Phone:",{"$f":"MGA!F232","v":0}]
["Sales assistant:",{"$f":"MGA!E233","v":0},null,"Phone:",{"$f":"MGA!F233","v":0}]

{"sheet":"MGA","index":5,"n_rows":233,"n_cols":14,"rows_kept":233,"hidden":true,"merged":[[2,1,63,1],[2,2,4,2],[5,2,9,2],[5,3,5,4],[10,2,21,2],[10,3,10,4],[17,3,17,4],[22,2,33,2],[34,2,47,2],[44,3,44,4],[48,2,51,2],[52,2,63,2],[55,3,55,4],[58,3,62,3],[64,1,93,1],[64,2,72,2],[86,2,91,2],[86,3,86,4],[87,3,87,4],[92,2,93,2],[94,1,100,1],[101,1,147,1],[101,2,142,2],[145,2,147,2],[148,1,194,1],[148,2,194,2],[196,1,200,1],[196,2,201,2],[202,1,232,1],[202,2,232,2],[228,3,228,5],[229,8,229,12]]}
["API Names","Section","Question #","Question","Answer",{"$nulls":3},"Mandatory\nValue","Allowed Length","Actual Length","Length Error","Logic"]
[null,null,"Attestation","I attest that the group acknowledged, in the completed and signed Master Group Application that, in the event Blue Shield coverage is issued and the group fails to pay any premiums due, Blue Shield reserves the right to collect such unpaid premiums before issuing new coverage, if the unpaid premiums came due during the 12-month period preceding the effective date of any new coverage.",{"$nulls":4},{"$f":"IF(AND(CellColor=36,E2=\"\"),1,0)","v":1},null,null,{"$f":"IF(K2=\"\",\"\",IF(K2>J2,1,0))","v":""}]
["Full_legal_business_name__c","Section 1 – Company information",1,"Full legal business name of group",{"$nulls":4},{"$f":"IF(AND(CellColor=36,E3=\"\"),1,0)","v":1},"80",{"$f":"IF(J3=\"\",\"\",LEN(E3))","v":0},{"$f":"IF(K3=\"\",\"\",IF(K3>J3,1,0))","v":0}]
["Effective_Date__c",null,null,"Requested coverage effective date",{"$nulls":4},{"$f":"IF(AND(CellColor=36,E4=\"\"),1,0)","v":1},null,{"$f":"IF(J4=\"\",\"\",LEN(E4))","v":""},{"$f":"IF(K4=\"\",\"\",IF(K4>J4,1,0))","v":""}]
["Doing_Business_As_Name__c",null,null,"Doing business as (DBA), if applicable:",{"$nulls":6},"",""]
[null,null,2,"Billing address: (if providing P.O. Box, also complete No. 3 below)",{"$nulls":6},"",""]
["Billing_address__c",null,null,"Street:",{"$nulls":4},1,"120",0,0]
["Billing_City__c",null,null,"City:",{"$nulls":4},1,"80",0,0]
["Billing_State__c",null,null,"State:",{"$nulls":4},1,"2",0,0]
["Billing_Zip__c",null,null,"ZIP code:",{"$nulls":4},1,"9",0,0]
[null,null,3,"Physical address: ",{"$nulls":6},"",""]
["Physical_Address_same_as_Billing_Address__c",null,null,"Same as Billing address?",{"$nulls":4},1]
["Physical_address_if_different_Billing__c",null,null,"Street:",{"$f":"IF(E7=\"\",\"\",IF(OR($E$12=\"Yes\",$E$12=\"\"),E7,\"\"))","v":""},{"$nulls":3},{"$f":"IF($E$12=\"\",0,IF($E$12=\"Yes\",0,IF(AND($E$12=\"No\",$E13=\"\"),1,0)))","v":0},"120",0,0]
["Physical_Address_City__c",null,null,"City:",{"$f":"IF(E8=\"\",\"\",IF(OR($E$12=\"Yes\",$E$12=\"\"),E8,\"\"))","v":""},{"$nulls":3},{"$f":"IF($E$12=\"\",0,IF($E$12=\"Yes\",0,IF(AND($E$12=\"No\",$E14=\"\"),1,0)))","v":0},"80",0,0]
["Physical_Address_State__c",null,null,"State:",{"$f":"IF(E9=\"\",\"\",IF(OR($E$12=\"Yes\",$E$12=\"\"),E9,\"\"))","v":""},{"$nulls":3},0,"2",0,0]
["Physical_Address_Zip__c",null,null,"ZIP code:",{"$f":"IF(E10=\"\",\"\",IF(OR($E$12=\"Yes\",$E$12=\"\"),E10,\"\"))","v":""},{"$nulls":3},0,"9",0,0]
["Physical_Address_County__c",null,null,"County location of physical address",{"$nulls":5},"80",0,0]
[{"$nulls":3},"Business street address where most of your employees work (if different from the physical address)",{"$nulls":6},"",""]
["Street_where_most_EE_work__c",null,null,"Street:",{"$nulls":5},"120",0,0]
["City_where_most_EE_work__c",null,null,"City:",{"$nulls":5},"80",0,0]
["State_where_most_EE_work__c",null,null,"State:",{"$nulls":5},"2",0,0]
["ZIP_where_most_EE_work__c",null,null,"ZIP code:",{"$nulls":5},"9",0,0]
["Primary_Contact_First_Name__c",null,4,"Primary group contact:  First Name",{"$nulls":4},1,"80",0,0]
["Primary_Contact_Last_Name__c",null,null,"Primary group contact:  Last Name",{"$nulls":4},1,"80",0,0]
["Group_Contact_name_title__c",null,null,"Title",{"$nulls":5},"80",0,0]
["Group_Contact_Phone_number__c",null,null,"Phone number",{"$nulls":6},"",""]
["Group_Contact_Fax_number__c",null,null,"Fax number",{"$nulls":6},"",""]
["Group_Contact_Email_address__c",null,null,"Email address (required):",{"$nulls":4},1,null,"","",{"$f":"IF(E28=\"\",\"\",IF(OR(ISERROR(FIND(\".\",E28)),ISERROR(FIND(\"@\",E28))),1,IF(AND(FIND(\"@\",E28)>1,FIND(\".\",E28,FIND(\"@\",E28))>0),0,1)))","v":""},"Email format must have a \"@\" with a \".\" in the string after it"]
["Is_Online_Contact__c",null,null,"Check here to register the primary group contact for online account access.",{"$nulls":4},1,null,"",""]
["Secondary_Contact_First_Name__c",null,null,"Secondary group contact:  First Name",{"$nulls":5},"80",0,0]
["Secondary_Contact_Last_Name__c",null,null,"Secondary group contact:  Last Name",{"$nulls":5},"80",0,0]
["Secondary_Group_Contact_name_title__c",null,null,"Title",{"$nulls":5},"80",0,0]
["Secondary_Group_Contact_Phone__c",null,null,"Phone number",{"$nulls":6},"",""]
["Secondary_Group_Contact_Email__c",null,null,"Email address",{"$nulls":6},"","",{"$f":"IF(E34=\"\",\"\",IF(OR(ISERROR(FIND(\".\",E34)),ISERROR(FIND(\"@\",E34))),1,IF(AND(FIND(\"@\",E34)>1,FIND(\".\",E34,FIND(\"@\",E34))>0),0,1)))","v":""},"Email format must have a \"@\" with a \".\" in the string after it"]
["Legal_Entity__c",null,5,"Legal entity type:",{"$nulls":4},1,null,"",""]
["Other_Legal_Entity__c",null,null,"If \"Other\", please specify:",{"$nulls":4},{"$f":"IF(AND(E35=\"Other\",E36=\"\"),1,0)","v":0},"80",0,0]
["Federal_Tax_ID__c",null,null,"Federal Tax Identification (TID) number",{"$nulls":4},1,"11",0,0]
["Multiple_Tax_IDs_y_n__c",null,null,"Does your group have multiple TID numbers?",{"$nulls":4},1,null,"",""]
["Second_Federal_Tax_ID__c",null,null,"If yes, provide the Federal Employer TID number for the plan sponsor:",{"$nulls":4},{"$f":"IF(AND(E38=\"Yes\",E39=\"\"),1,0)","v":0},"11",0,0]
["Primary_products_of_business_1__c",null,null,"1st Primary product/service of your business",{"$nulls":4},1,"255",0,0]
["Primary_products_SIC_1__c",null,null,"1st Standard Industry Classification code",null,"Use OSHA website",null,null,1,"50",0,0]
["Primary_products_of_business_2__c",null,null,"2nd Primary product/service of your business",{"$nulls":5},"255",0,0]
["Primary_products_SIC_2__c",null,null,"2nd Standard Industry Classification code",null,"Use OSHA website",{"$nulls":3},"50",0,0]
["Name_of_prior_group_health_carrier__c",null,null,"Prior group health carrier",{"$nulls":5},"80",0,0]
[{"$nulls":3},"Prior group coverage dates",{"$nulls":6},"",""]
["Prior_Carrier_Begin_Date__c",null,null,"Start Date:",{"$nulls":6},"",""]
["Prior_Carrier_End_Date__c",null,null,"End Date:",{"$nulls":6},"",""]
["Coverage_still_in_force__c",null,null,"Coverage still in force?",{"$nulls":6},"",""]
["Company_previously_been_insured_w_BSC__c",null,6,"Is the company currently covered by or have they previously been covered by Blue Shield of California?",{"$nulls":4},1,null,"",""]
[{"$nulls":3},"If yes, please provide:",{"$nulls":6},"",""]
["Previous_Group_ID__c",null,null,"Blue Shield Group ID:",{"$nulls":4},{"$f":"IF(AND($E$49=\"Yes\",E51=\"\"),1,0)","v":0},"20",0,0]
["Termination_Date__c",null,null,"Termination date:",{"$nulls":4},{"$f":"IF(AND($E$49=\"Yes\",E52=\"\"),1,0)","v":0},null,"",""]
["Offer_other_carriers_plans_to_employees__c",null,7,"Is the group intending to offer Blue Shield alongside another carrier’s plan?",{"$nulls":4},1,null,"",""]
["If_other_plan_offered_carrier_name__c",null,null,"Carrier name",{"$nulls":4},{"$f":"IF(AND($E$53=\"Yes\",E54=\"\"),1,0)","v":0},"80",0,0]
["If_other_plan_offered_number_of_employee__c",null,null,"No. of employees:",{"$nulls":4},{"$f":"IF(AND($E$53=\"Yes\",E55=\"\"),1,0)","v":0},null,"",""]
[{"$nulls":3},"Open enrollment dates",{"$nulls":6},"",""]
["Other_plan_open_enrollment_begin_date__c",null,null,"From:",{"$nulls":4},{"$f":"IF(AND($E$53=\"Yes\",E57=\"\"),1,0)","v":0},null,"",""]
["Other_plan_open_enrollment_end_date__c",null,null,"To:",{"$nulls":4},0,null,"",""]
["Any_Subsidiaries__c",null,null,"Does the group have any subsidiary or affiliated companies?",{"$nulls":4},1,null,"",""]
["List_subsidiary_or_affiliated_companies__c ARRAY",{"$nulls":3},"Subsidiary or affiliated company name(s)","Include in coverage?","Eligible to file a combined state tax return?",{"$nulls":3},"",""]
["Subsidiary_affiliated_co_name_1__c/Include_in_coverage_1__c/Elig_to_file_combined_state_tax_return_1__c",{"$nulls":7},{"$f":"IF(AND(E59=\"Yes\",COUNTA(E61:G63)<3),1,0)","v":0},null,"",""]
["Subsidiary_affiliated_co_name_2__c/Include_in_coverage_2__c/Elig_to_file_combined_state_tax_return_2__c",{"$nulls":9},"",""]
["Subsidiary_affiliated_co_name_3__c/Include_in_coverage_3__c/Elig_to_file_combined_state_tax_return_3__c",{"$nulls":9},"",""]
["All_employees_covered_by_workers_comp__c",null,null,"Are all employees covered by workers’ compensation to the extent required by law?",{"$nulls":4},1,null,"",""]
["No_of_employees__c","Section 2 – Eligibility (All fields are mandatory.)",8,"a. Total # of employees",{"$nulls":4},1,null,"",""]
["No_of_eligible_employees__c",null,null,"b. Total # of eligible full-time employees (including eligible sole proprietors and partners)",{"$nulls":4},1,null,"",""]
["Total_eligible_part_time__c",null,null,"c. Total # of eligible part-time employees (if offering coverage to all similarly situated employees)",{"$nulls":4},1,null,"",""]
[{"$nulls":4},"d. Total # of eligible employees enrolling in coverage:","e. Total # of eligible employees declining coverage",{"$nulls":4},"",""]
["Medical_enrollment__c/Refusing_Medical__c",null,null,"Medical coverage:",null,null," *Leave columns E & F blank if product not being offered",{"$nulls":3},{"$f":"IF(J69=\"\",\"\",LEN(E69))","v":""},{"$f":"IF(K69=\"\",\"\",IF(K69>J69,1,0))","v":""},{"$f":"IF(SUM(E69:F69)=0,0,IF(SUM(E69:F69)<>SUM($E$66:$E$67),1,0))","v":0},"Medical Enrollees + Medical Declines must = Total Eligible"]
["Dental_enrollment__c/Refusing_Dental__c",null,null,"Dental coverage:",null,null," *Leave columns E & F blank if product not being offered",{"$nulls":3},"","",{"$f":"IF(SUM(E70:F70)=0,0,IF(SUM(E70:F70)<>SUM($E$66:$E$67),1,0))","v":0},"Dental Enrollees + Dental Declines must = Total Eligible"]
["Vision_enrollment__c/Refusing_Vision__c",null,null,"Vision coverage:",null,null," *Leave columns E & F blank if product not being offered",{"$nulls":3},"","",0,"Vision Enrollees + Vision Declines must = Total Eligible"]
["Life_enrollment__c/Refusing_Life__c",null,null,"Life insurance coverage:",null,null," *Leave columns E & F blank if product not being offered",{"$nulls":3},"","",0,"Life Enrollees + Life Declines must = Total Eligible"]
["FT_FTE_Count__c",null,null,"f. Total # of FTE and FTE Equivalents – see definition #2 on paper/pdf application for instructions",{"$nulls":4},1,null,"",""]
["Orientation_period_for_new_employees__c",null,"9a.","Employer orientation period – In addition to the waiting period, does the employer impose an orientation period for new employees?",{"$nulls":4},1,null,"",""]
["Is_your_orientation_period_30_days__c",null,"9b.","If yes, is this orientation period 30 days or less?",{"$nulls":4},{"$f":"IF(AND(E74=\"Yes\",E75=\"\"),1,0)","v":0},null,"","",{"$f":"IF(AND(E74=\"Yes\",E75=\"No\"),1,0)","v":0},"Must be answered as \"Yes\" if 9a is \"Yes\"."]
["New_Employee_Waiting_Period__c",null,"9c.","Employer waiting period – The group may select one of the following options. Coverage for eligible employees will become effective following completion of the waiting period on the day specified.",{"$nulls":4},1,null,"",""]
["Waiting_period_waved_existing_employees__c",null,"9d.","Does the group intend to offer coverage to employees currently in the employer waiting period for the original effective date of the group contract (i.e., one-time waiver of employer waiting period)?",{"$nulls":4},1,null,"",""]
["No_fulltime_employees_in_waiting_period__c",null,"9e.","Number of employees currently in the group's waiting period?",{"$nulls":4},1,null,"",""]
["All_full_time_employees_offered_covered__c",null,"9f.","Are all full-time eligible employees being offered health coverage?",{"$nulls":4},1,null,"",""]
["Class_Group_coverage_is_offered__c",null,"9g.","If the response to 9f is no, please provide the specific class/group for whom coverage is being offered.",{"$nulls":4},{"$f":"IF(AND(E79=\"No\",E80=\"\"),1,0)","v":0},null,"",""]
["Fulltime_coverage_at_least_30_hours__c",null,"9h.","Are all full-time eligible employees being offered coverage actively working an average of 30 hours per week?",{"$nulls":4},1,null,"",""]
["Coverage_employees_work_b_w_2030_hours__c",null,"9i.","Will the group offer coverage to permanent employees who work at least 20 hours but not more than 29 hours per week?",{"$nulls":4},1,null,"",""]
["Any_out_of_state_employees_y_n__c",null,"9j.","Are there any out-of-state employees?",{"$nulls":4},1,null,"",""]
["If_yes_how_many__c",null,"9k.","If yes, how many full-time and full-time equivalent employees are out-of-state?",{"$nulls":4},{"$f":"IF(AND(E83=\"Yes\",E84=\"\"),1,0)","v":0},null,"",""]
["Domestic_partner_coverage_broad__c",null,"9l.","Will the group offer coverage for opposite-sex domestic partners under the age of 62 years (broad coverage)? Note: Coverage for registered same-sex domestic partners and opposite-sex domestic partners where at least one partner is 62 or older and eligible for Social Security based on age (narrow coverage) is included in Blue Shield coverage.",{"$nulls":4},1,null,"",""]
["Ongoing_Enrollment_Channel__c",null,"9m.","How will ongoing enrollment be provided?",null,{"$f":"IF(E86=\"Electronic\",\"**Electronic option not available at this time**\",\"\")","v":""},null,null,1,null,"",""]
[null,null,"9n.","Complete this section ONLY if enrollment changes will be submitted through a private exchange OR if the broker is part of the approved EDI-maintenance pilot program",{"$nulls":6},"",""]
[{"$nulls":3},"Please provide the following EDI vendor information and/or private exchange information:",{"$nulls":6},"",""]
["EDI_Trading_Partner__c",null,null,"EDI vendor name:",{"$nulls":4},{"$f":"IF(AND($E$86=\"Electronic via EDI\",E89=\"\"),1,0)","v":0},null,"",""]
["EDI_Contact_Name__c",null,null,"Contact name:",{"$nulls":4},{"$f":"IF(AND($E$86=\"Electronic via EDI\",E90=\"\"),1,0)","v":0},"100",0,0]
["EDI_Contact_Phone__c",null,null,"Contact phone:",{"$nulls":4},0,null,"",""]
["EDI_Contact_Email__c",null,null,"Contact email:",{"$nulls":4},0,null,"",""]
["Enrolling_in_Private_Exchange__c",null,"9o.","Will enrollment changes be submitted through a private exchange? If yes, must provide:",{"$nulls":4},1,null,"",""]
["Exchange_Name1__c",null,null,"Exchange name:",{"$nulls":4},{"$f":"IF(AND(E93=\"Yes\",E94=\"\"),1,0)","v":0},null,"",""]
["Is_group_subject_to_CalCOBRA__c","Section 3 – COBRA/Cal-COBRA continuation coverage information (All fields are mandatory.)","10a.","Is the group currently subject to Cal-COBRA?\n(Employed 2-19 eligible employees on at least 50% of its working days in the previous calendar year; or if not in business during any part of the previous calendar year, then during the previous calendar quarter.)",{"$nulls":4},1,null,"","",{"$f":"IF(OR(COUNTIF($E$95:$E$96,\"Yes\")=2,COUNTIF($E$95:$E$96,\"No\")=2),1,0)","v":0},"Answers to 10a and 10b cannot be the same"]
["Is_group_subject_to_federal_COBRA__c",null,"10b.","Is the group currently subject to Federal COBRA?\n(Employed 20 or more total employees on at least 50% of the working days in the previous calendar year.)",{"$nulls":4},{"$f":"IF(AND(CellColor=36,E96=\"\"),1,0)","v":1},null,"",""]
["Existing_CalCOBRA_or_COBRA_members__c",null,"10c.","Number of current Cal-COBRA enrollees?",{"$nulls":4},{"$f":"IF(AND($E$95=\"Yes\",E97=\"\"),1,0)","v":0},null,"",""]
["CalCOBRA_eligibility_election_period__c",null,"10d.","How many employees and/or family members are in a Cal-COBRA election period?",{"$nulls":4},{"$f":"IF(AND($E$95=\"Yes\",E98=\"\"),1,0)","v":0},null,"",""]
["Existing_CalCOBRA_or_COBRA_members__c",null,"10e.","Number of current COBRA enrollees?",{"$nulls":4},{"$f":"IF(AND($E$96=\"Yes\",E99=\"\"),1,0)","v":0},null,"",""]
["CalCOBRA_eligibility_election_period__c",null,"10f.","How many employees and/or family members are in a COBRA election period?",{"$nulls":4},{"$f":"IF(AND($E$96=\"Yes\",E100=\"\"),1,0)","v":0},null,"",""]
["Enroll_forms_attached_cobra__c",null,"10g.","Are enrollment forms attached for all enrolling COBRA/Cal-COBRA participants?",{"$nulls":6},"",""]
[null,"Section 4a – Health plan selection – For groups with one or more enrolling employees, the group may select plans from either the Off-Exchange or Mirror package options, but not both. Plan packages cannot be combined.",11,"PPO plans",{"$nulls":6},"",""]
[{"$nulls":3},"Choose up to all 22 plans from the Full PPO Network (including HDHP plans) and the Tandem PPO Network",{"$nulls":6},"",""]
["Plan_Packages__c DERIVED FIELD",null,null,"PPO plans – Full PPO Network","HSA-compatible HDHP plans – Full PPO AND Tandem PPO Networks","Tandem PPO plans – Tandem PPO Network",{"$nulls":4},"",""]
["Medical_Plans_Selected__c ARRAY",null,null,"or select from individual plans below:","or select from individual plans below:","or select from individual plans below:",{"$nulls":4},"",""]
[{"$nulls":10},"",""]
[{"$nulls":10},"",""]
[]
[{"$nulls":10},{"$f":"IF(J109=\"\",\"\",LEN(E109))","v":""},""]
[{"$nulls":10},"",""]
[{"$nulls":10},"",""]
[{"$nulls":10},"",""]
[{"$nulls":10},"",""]
[{"$nulls":10},"",""]
[{"$nulls":10},"",""]
[{"$nulls":10},"",""]
[{"$nulls":10},"",""]
["ABHP__c",null,null,"Yes, we will offer HealthEquity as the HSA administrator",{"$nulls":4},{"$f":"IF(AND(COUNTA(E106:E109)>0,E118=\"\"),1,0)","v":0},null,"",""]
[{"$nulls":10},"",""]
[{"$nulls":3},"HMO plans",{"$nulls":6},"",""]
[{"$nulls":3},"Choose up to all 14 plans from the Access+ HMO Network and Trio ACO HMO Network OR Choose up to all seven plans from the Local Access+ HMO Network",{"$nulls":6},"",""]
[{"$nulls":3},"Access+ HMO plans – Access+ HMO Network","Trio HMO plans – Trio ACO HMO Network","Local Access+ HMO plans – Local Access+ HMO Network",{"$nulls":4},"",""]
[{"$nulls":3}," \nor select from individual plans below:","or select from individual plans below:","or select from individual plans below:",{"$nulls":4},"",""]
[{"$nulls":10},"","",{"$f":"IF(AND(COUNTA($D$124:$E$130)>0,COUNTA($F$124:$F$130)>0),1,0)","v":0},"Local Access+ plan selection cannot be combined with other HMO plan selections"]
[{"$nulls":10},"",""]
[{"$nulls":10},"",""]
[{"$nulls":10},"",""]
[]
[{"$nulls":10},{"$f":"IF(J129=\"\",\"\",LEN(E129))","v":""},""]
[{"$nulls":10},"",""]
[{"$nulls":10},"",""]
[{"$nulls":3},"Mirror Plans",{"$nulls":6},"",""]
[{"$nulls":3},"Choose up to all 7 plans",{"$nulls":6},"",""]
[{"$nulls":3},"Mirror Plans",{"$nulls":6},"",""]
[{"$nulls":3},"or select from individual plans below:",{"$nulls":6},"",{"$f":"IF(K135=\"\",\"\",IF(K135>J135,1,0))","v":""}]
[{"$nulls":10},"","",{"$f":"IF(AND(COUNTA(D106:F116,D124:F130)>0,COUNTA(D136:D142)>0),1,0)","v":0},"Mirrored plans cannot be selected alongside Off-Exchange plans"]
[{"$nulls":10},"",""]
[{"$nulls":10},"",""]
[{"$nulls":10},"",""]
[{"$nulls":10},"",""]
[{"$nulls":10},"",""]
[{"$nulls":10},"",""]
[{"$nulls":10},"",""]
["Infertility_rider__c",null,"11a.","Optional benefit – A rider for infertility benefits may be offered with either the Blue Shield of California Off-Exchange Package for Small Business or with the Blue Shield of California Mirror Package for Small Business. If selected, it must be offered with all medical plans – PPO and HMO.  ",{"$nulls":4},{"$f":"IF(OR($E$69=0,$E$69=\"\"),0,IF(AND(CellColor=36,E144=\"\"),1,0))","v":0},null,"",""]
[null,null,"11b.",{"$nulls":7},"",""]
[null,null,"11c.","Indicate medical plan employer contribution amount here (The employer must contribute either (1) at least 50% of the total employee rates, or (2) a defined contribution of a minimum of $100 per employee (or the cost of the total employee rates, whichever is less). If 100% of the employee’s premium is paid by the employer, all eligible employees must enroll in coverage):","%","$",{"$nulls":4},"",""]
["Medical_Contribution_For_Employee_Perc__c/Medical_Contribution_For_Employee_Amount__c",null,null,"For employees",{"$nulls":4},{"$f":"IF(OR($E$69=0,$E$69=\"\"),0,IF(COUNTA(E147:F147)=0,1,0))","v":0},null,"","",{"$f":"IF(OR($E$69=0,$E$69=\"\"),0,IF(COUNTA(E147:F147)=2,1,0))","v":0},"Can be % or $, but not both"]
["Medical_Contribution_For_Dependent_Perc__c/Medical_Contribution_For_Dependent_Amount__c",null,null,"For dependents",{"$nulls":4},{"$f":"IF(OR($E$69=0,$E$69=\"\"),0,IF(COUNTA(E148:F148)=0,1,0))","v":0},null,"","",{"$f":"IF(OR($E$69=0,$E$69=\"\"),0,IF(COUNTA(E148:F148)=2,1,0))","v":0},"Can be % or $, but not both"]
[null,"Section 4b – Specialty benefits – dental,* vision* and life insurance* plan selection",11,"Section SB1 – Dental benefits",{"$nulls":6},"",""]
["1st_time_all_EE_elect_dental__c",null,null,"When adding dental coverage for the first time to your existing Blue Shield Small Business benefits package, please check this box if all currently enrolled employees and dependents elect the coverage; they will automatically be enrolled and no forms will be required. Otherwise, please submit an enrollment, refusal of coverage, or subscriber change request form for all eligible employees and dependents who are electing dental coverage.",{"$nulls":4},{"$f":"IF(OR($E$70=0,$E$70=\"\"),0,IF(AND(CellColor=36,E150=\"\"),1,0))","v":0},null,"",""]
["Dental_plan_option__c",null,null,"The group may select from one of the plan options",{"$nulls":4},{"$f":"IF(OR($E$70=0,$E$70=\"\"),0,IF(AND(CellColor=36,E151=\"\"),1,0))","v":0},"50",0,0]
["Triple_choice_combo__c",null,null,"If \"Triple Choice\" is selected, please choose combo",{"$nulls":4},{"$f":"IF(AND(E151=\"Triple Choice\",E152=\"\"),1,0)","v":0},"200",0,0]
[{"$nulls":10},"",""]
[{"$nulls":3},{"$f":"IF(E151=\"\",\"Select Plan(s)\",IF(E151=\"Single\",\"Select 1 plan:\",IF(E151=\"Dual Choice\",\"Select 2 plans:\",\"Select 3 plans:\")))","v":"Select Plan(s)"},{"$nulls":6},"",""]
["Dental_Plans_Selected__c ARRAY",null,null,"Dental HMO plans","Dental PPO plans",{"$nulls":5},"",""]
[{"$nulls":10},"","",{"$f":"IF(OR($E$70=0,$E$70=\"\"),0,IF(ISERROR(VLOOKUP(E151,LookupTables!A10:B12,2,FALSE)),1,VLOOKUP(E151,LookupTables!A10:B12,2,FALSE)))","v":0},"Number/type of plans must match selection"]
[{"$nulls":10},"",""]
[{"$nulls":10},"",""]
[{"$nulls":10},"",""]
[{"$nulls":3},"Indicate dental plan employer contribution amount here (For dental coverage, the employer must contribute at least 50% of the employee's premium (except for voluntary plans). If 100% is paid by the employer, all eligible employees must enroll):","%","$",{"$nulls":4},"",""]
["Dental_Contribution_For_Employee_Perc__c/Dental_Contribution_For_Employee__c",null,null,"For employees",{"$nulls":4},{"$f":"IF(OR($E$70=0,$E$70=\"\"),0,IF(COUNTA(E161:F161)=0,1,0))","v":0},null,{"$f":"IF(J161=\"\",\"\",LEN(E161))","v":""},"",{"$f":"IF(OR($E$70=0,$E$70=\"\"),0,IF(COUNTA(E161:F161)=2,1,0))","v":0},"Can be % or $, but not both"]
["Dental_Contribution_For_Dependent_Perc__c/Dental_Contribution_For_Dependent__c",null,null,"For dependents",{"$nulls":4},{"$f":"IF(OR($E$70=0,$E$70=\"\"),0,IF(COUNTA(E162:F162)=0,1,0))","v":0},null,"","",{"$f":"IF(OR($E$70=0,$E$70=\"\"),0,IF(COUNTA(E162:F162)=2,1,0))","v":0},"Can be % or $, but not both"]
[{"$nulls":3},"Section SB2 – Vision coverage",{"$nulls":6},"",""]
["1st_time_all_EE_elect_vision__c",null,null,"When adding vision coverage for the first time to your existing Blue Shield Small Business benefits package, please check this box if all currently enrolled employees and dependents elect the coverage; they will automatically be enrolled and no forms will be required. Otherwise, please submit an enrollment, refusal of coverage, or subscriber change request form for all eligible employees and dependents who are electing vision coverage.",{"$nulls":4},{"$f":"IF(OR($E$71=0,$E$71=\"\"),0,IF(AND(CellColor=36,E164=\"\"),1,0))","v":0},null,"",""]
[{"$nulls":10},"",""]
[{"$nulls":3},"Select 1 plan:",{"$nulls":6},"",""]
[{"$nulls":3},"Vision plans",{"$nulls":6},"",""]
["Vision_Plans_Selected__c",{"$nulls":9},"",""]
[{"$nulls":10},"",""]
[{"$nulls":3},"Indicate vision plan employer contribution amount here (For vision coverage, the employer must contribute a minimum of 25% of the total employee premium (except for voluntary plans). If 100% is paid by the employer, all eligible employees must enroll):","%","$",{"$nulls":4},"",""]
["Vision_Contribution_For_Employee_Perc__c/Vision_Contribution_For_Employee__c",null,null,"For employees",{"$nulls":4},{"$f":"IF(OR($E$71=0,$E$71=\"\"),0,IF(COUNTA(E171:F171)=0,1,0))","v":0},null,"","",{"$f":"IF(OR($E$71=0,$E$71=\"\"),0,IF(COUNTA(E171:F171)=2,1,0))","v":0},"Can be % or $, but not both"]
["Vision_Contribution_For_Dependent_Perc__c/Vision_Contribution_For_Dependent__c",null,null,"For dependents",{"$nulls":4},{"$f":"IF(OR($E$71=0,$E$71=\"\"),0,IF(COUNTA(E172:F172)=0,1,0))","v":0},null,"","",{"$f":"IF(OR($E$71=0,$E$71=\"\"),0,IF(COUNTA(E172:F172)=2,1,0))","v":0},"Can be % or $, but not both"]
[{"$nulls":3},"Section SB3 – Life/AD&D insurance",{"$nulls":6},"",""]
["1st_time_all_EE_elect_life__c",null,null,"When adding flat life insurance coverage for the first time to your existing Blue Shield Small Business benefits package, please check this box if all currently enrolled employees elect the coverage; they will automatically be enrolled and no forms will be required (except for multiple of salary or graded plans).  Otherwise, please complete an enrollment, refusal of coverage, or subscriber change request form for all eligible employees. (Refusal of coverage is only allowed for contributory plans.)",{"$nulls":4},{"$f":"IF(OR($E$72=0,$E$72=\"\"),0,IF(AND(CellColor=36,E174=\"\"),1,0))","v":0},null,"",""]
[{"$nulls":10},"",""]
["life_plan_selected__c ARRAY",null,null,"Select type of life coverage",{"$nulls":6},"",""]
[{"$nulls":3},"Life plan types",{"$nulls":6},"",""]
["Life_Plan_Types__c",{"$nulls":9},"",""]
[{"$nulls":3},"If \"Basic\", specify amount:",{"$nulls":4},{"$f":"IF(AND($D$178=\"Basic\",Basic_MGA=\"\"),1,0)","v":0},null,"",""]
[{"$nulls":3},"If \"Multiple of Salary\", specify:",{"$nulls":6},"",""]
[{"$nulls":3},"Multiplier/Max amount:",{"$nulls":4},{"$f":"IF(AND($D$178=\"Multiple of Salary\",MultipleofSalary_MGA=\"\"),1,0)","v":0},null,"",""]
[{"$nulls":10},"",""]
[{"$nulls":3},"If \"Graded\", specify # of classes:",{"$nulls":4},{"$f":"IF(AND($D$178=\"Graded\",E183=\"\"),1,0)","v":0},null,"",""]
[{"$nulls":3},"Class Name","Plan Description/Flat Amount",{"$nulls":5},"",""]
["Graded_Class_Desc_1__c",{"$nulls":7},{"$f":"IF(AND($D$178=\"Graded\",COUNTA(Graded_MGA)<>E183),1,0)","v":0},40,{"$f":"IF(J185=\"\",\"\",LEN(D185))","v":0},0]
["Graded_Class_Desc_2__c",{"$nulls":8},40,{"$f":"IF(J186=\"\",\"\",LEN(D186))","v":0},0]
["Graded_Class_Desc_3__c",{"$nulls":8},40,0,0]
["Graded_Class_Desc_4__c",{"$nulls":8},40,0,0]
[{"$nulls":10},{"$f":"IF(J189=\"\",\"\",LEN(E189))","v":""},""]
["dependent_life_insurance__c",null,null,"Dependent life insurance",{"$nulls":4},{"$f":"IF(OR($E$72=0,$E$72=\"\"),0,IF(AND(CellColor=36,E190=\"\"),1,0))","v":0},null,"",""]
["Dependent_life_plan__c",null,null,"If \"Yes\", select amount:",{"$nulls":4},{"$f":"IF(AND(E190=\"Yes\",E191=\"\"),1,0)","v":0},null,"",""]
[{"$nulls":10},"",""]
[{"$nulls":3},"Indicate group term life insurance plan employer contribution amount here (For life insurance coverage, the employer must contribute a minimum of 25% of the total employee premium. If 100% is paid by the employer (non-contributory), all eligible employees must enroll):","%","$",{"$nulls":4},"",""]
["Life_Contributory_Employees_Perc__c/Life_Contributory_Employees__c",null,null,"For employees",{"$nulls":4},{"$f":"IF(OR($E$72=0,$E$72=\"\"),0,IF(COUNTA(E194:F194)=0,1,0))","v":0},null,"","",{"$f":"IF(OR($E$72=0,$E$72=\"\"),0,IF(COUNTA(E194:F194)=2,1,0))","v":0},"Can be % or $, but not both"]
["Life_Contributory_Dependents_Perc__c/Life_Contributory_Dependents__c",null,null,"For dependents",{"$nulls":4},{"$f":"IF(OR($E$72=0,$E$72=\"\"),0,IF(COUNTA(E195:F195)=0,1,0))","v":0},null,"","",{"$f":"IF(OR($E$72=0,$E$72=\"\"),0,IF(COUNTA(E195:F195)=2,1,0))","v":0},"Can be % or $, but not both"]
[{"$nulls":10},"",""]
["Authorization_Signed_Date__c","Authorization and signature (All fields are mandatory.)",13,"Date",{"$nulls":4},{"$f":"IF(AND(CellColor=36,E197=\"\"),1,0)","v":1},null,"",""]
["Authorization_Signer__c",null,null,"Group representative First Name",{"$nulls":4},{"$f":"IF(AND(CellColor=36,E198=\"\"),1,0)","v":1},"80",0,0]
["Authorization_Signer_Last_Name__c",null,null,"Group representative Last Name",{"$nulls":4},{"$f":"IF(AND(CellColor=36,E199=\"\"),1,0)","v":1},"80",0,{"$f":"IF(K199=\"\",\"\",IF(K199>J199,1,0))","v":0}]
["Authorization_Signer_Title__c",null,null,"Group representative title (please print)",{"$nulls":4},{"$f":"IF(AND(CellColor=36,E200=\"\"),1,0)","v":1},"80",0,0]
["Authorization_Signed__c",null,null,"Signed?",{"$nulls":4},{"$f":"IF(AND(CellColor=36,E201=\"\"),1,0)","v":1},null,"",""]
[{"$nulls":10},"",""]
["Agency_name__c","Producer Information (To be completed by producer or general agent.  All fields are mandatory.)",14,"Agency name",{"$nulls":4},{"$f":"IF(AND(CellColor=36,E203=\"\"),1,0)","v":1},"100",0,0]
["Tax_id_number__c",null,null,"Tax ID number (for commission payments)",{"$nulls":4},{"$f":"IF(AND(CellColor=36,E204=\"\"),1,0)","v":1},"50",0,0]
["Producer_name__c",null,null,"Producer name (agent who wrote the group)",{"$nulls":4},{"$f":"IF(AND(CellColor=36,E205=\"\"),1,0)","v":1},"100",0,0]
["Producer_CDI_license__c",null,null,"Producer CDI license number",{"$nulls":4},{"$f":"IF(AND(CellColor=36,E206=\"\"),1,0)","v":1},"50",0,0]
["Producer_email__c",null,null,"Producer email",{"$nulls":4},{"$f":"IF(AND(CellColor=36,E207=\"\"),1,0)","v":1},"100",0,0,{"$f":"IF(E207=\"\",\"\",IF(OR(ISERROR(FIND(\".\",E207)),ISERROR(FIND(\"@\",E207))),1,IF(AND(FIND(\"@\",E207)>1,FIND(\".\",E207,FIND(\"@\",E207))>0),0,1)))","v":""},"Email format must have a \"@\" with a \".\" in the string after it"]
["Producer_phone__c",null,null,"Producer phone number",{"$nulls":4},{"$f":"IF(AND(CellColor=36,E208=\"\"),1,0)","v":1},null,"",""]
["Producer_contact__c",null,null,"Producer contact",{"$nulls":4},{"$f":"IF(AND(CellColor=36,E209=\"\"),1,0)","v":1},"100",0,0]
["Producer_contact_email__c",null,null,"Producer contact email",{"$nulls":4},{"$f":"IF(AND(CellColor=36,E210=\"\"),1,0)","v":1},"100",0,0,{"$f":"IF(E210=\"\",\"\",IF(OR(ISERROR(FIND(\".\",E210)),ISERROR(FIND(\"@\",E210))),1,IF(AND(FIND(\"@\",E210)>1,FIND(\".\",E210,FIND(\"@\",E210))>0),0,1)))","v":""},"Email format must have a \"@\" with a \".\" in the string after it"]
["Producer_street_address__c",null,null,"Producer street address (P.O. Box not acceptable)",{"$nulls":4},{"$f":"IF(AND(CellColor=36,E211=\"\"),1,0)","v":1},"100",0,0]
["Producer_city__c",null,null,"City",{"$nulls":4},{"$f":"IF(AND(CellColor=36,E212=\"\"),1,0)","v":1},"100",0,0]
["Producer_state__c",null,null,"State",{"$nulls":4},{"$f":"IF(AND(CellColor=36,E213=\"\"),1,0)","v":1},"50",0,0]
["ZIP_code__c",null,null,"ZIP code",{"$nulls":4},{"$f":"IF(AND(CellColor=36,E214=\"\"),1,0)","v":1},"50",0,0]
["Is_this_a_split_commission__c",null,null,"Is this a split commission?",{"$nulls":4},{"$f":"IF(AND(CellColor=36,E215=\"\"),1,0)","v":1},null,"",""]
[{"$nulls":3},"If yes, define split:","%",{"$nulls":5},"",""]
["Producer_split_1__c",null,null,"Producer #1",{"$nulls":4},{"$f":"IF(AND($E$215=\"Yes\",E217=\"\"),1,0)","v":0},null,"",""]
["Producer_split_2__c",null,null,"Producer #2",{"$f":"IF(E217=\"\",\"\",1-E217)","v":""},{"$nulls":3},{"$f":"IF(AND($E$215=\"Yes\",E218=\"\"),1,0)","v":0},null,"",""]
["Name_of_second__c",null,null,"Name of second producer",{"$nulls":4},0,"100",0,0]
["Second_producer_tax__c",null,null,"Second producer tax ID number",{"$nulls":4},0,"100",0,0]
["General_agency_name__c",null,null,"General agency name",{"$nulls":5},"100",0,0]
["GA_Tax_id__c",null,null,"General agency tax ID number (for commission payments)",{"$nulls":4},{"$f":"IF(AND($E$221<>\"\",E222=\"\"),1,0)","v":0},"100",0,0]
["GA_producer_name__c",null,null,"General agency producer name",{"$nulls":4},{"$f":"IF(AND($E$221<>\"\",E223=\"\"),1,0)","v":0},"100",0,0]
["GA_producer_email__c",null,null,"General agency producer email",{"$nulls":4},0,"100",0,0,{"$f":"IF(E224=\"\",\"\",IF(OR(ISERROR(FIND(\".\",E224)),ISERROR(FIND(\"@\",E224))),1,IF(AND(FIND(\"@\",E224)>1,FIND(\".\",E224,FIND(\"@\",E224))>0),0,1)))","v":""},"Email format must have a \"@\" with a \".\" in the string after it"]
["Today_s_Date__c",null,null,"Today’s date (required)",{"$nulls":4},{"$f":"IF(AND(CellColor=36,E225=\"\"),1,0)","v":1},null,"",""]
["Printed_First_Name__c",null,null,"Producer print name First (required)",{"$nulls":4},{"$f":"IF(AND(CellColor=36,E226=\"\"),1,0)","v":1},"80",0,0]
["Printed_Last_Name__c",null,null,"Producer print name Last (required)",{"$nulls":4},{"$f":"IF(AND(CellColor=36,E227=\"\"),1,0)","v":1},"80",0,0]
[]
[{"$nulls":3},"Items to be completed internally by Blue Shield",{"$nulls":4},{"$f":"SUM(I2:I227)","v":59},null,null,{"$f":"SUM(L3:L227)","v":0},{"$f":"SUM(M3:M227)","v":0}]
[{"$nulls":4},"Name","Phone number",null,null,"Errors"]
["BSC_AE__c/BSC_AE_phone__c",null,null,"Blue Shield account executive"]
["BSC_AM__c/BSC_AM_phone__c",null,null,"Blue Shield account manager",{"$nulls":5}," = Error"]
["BSC_SA__c/BSC_SA_phone__c",null,null,"Blue Shield sales assistant"]

{"sheet":"LifeLookup","index":6,"n_rows":103,"n_cols":7,"rows_kept":103,"hidden":true}
["Eligible","Grouping",null,9,24,50,100]
[2,9,null,"Basic Life and AD&D Insurance - $15,000","Basic Life and AD&D Insurance - $15,000","Basic Life and AD&D Insurance - $15,000","Basic Life and AD&D Insurance - $15,000"]
[{"$f":"1+A2","v":3},9,null,"Basic Life and AD&D Insurance - $20,000","Basic Life and AD&D Insurance - $20,000","Basic Life and AD&D Insurance - $20,000","Basic Life and AD&D Insurance - $20,000"]
[{"$f":"1+A3","v":4},9,null,"Basic Life and AD&D Insurance - $25,000","Basic Life and AD&D Insurance - $25,000","Basic Life and AD&D Insurance - $25,000","Basic Life and AD&D Insurance - $25,000"]
[5,9,null,"Basic Life and AD&D Insurance - $30,000","Basic Life and AD&D Insurance - $30,000","Basic Life and AD&D Insurance - $30,000","Basic Life and AD&D Insurance - $30,000"]
[6,9,null,null,"Basic Life and AD&D Insurance - $35,000","Basic Life and AD&D Insurance - $35,000","Basic Life and AD&D Insurance - $35,000"]
[7,9,null,null,"Basic Life and AD&D Insurance - $40,000","Basic Life and AD&D Insurance - $40,000","Basic Life and AD&D Insurance - $40,000"]
[8,9,null,null,"Basic Life and AD&D Insurance - $45,000","Basic Life and AD&D Insurance - $45,000","Basic Life and AD&D Insurance - $45,000"]
[9,9,null,null,"Basic Life and AD&D Insurance - $50,000","Basic Life and AD&D Insurance - $50,000","Basic Life and AD&D Insurance - $50,000"]
[10,24,null,null,"Basic Life and AD&D Insurance - $55,000","Basic Life and AD&D Insurance - $55,000","Basic Life and AD&D Insurance - $55,000"]
[11,24,null,null,"Basic Life and AD&D Insurance - $60,000","Basic Life and AD&D Insurance - $60,000","Basic Life and AD&D Insurance - $60,000"]
[12,24,null,null,"Basic Life and AD&D Insurance - $65,000","Basic Life and AD&D Insurance - $65,000","Basic Life and AD&D Insurance - $65,000"]
[13,24,null,null,"Basic Life and AD&D Insurance - $70,000","Basic Life and AD&D Insurance - $70,000","Basic Life and AD&D Insurance - $70,000"]
[14,24,null,null,"Basic Life and AD&D Insurance - $75,000","Basic Life and AD&D Insurance - $75,000","Basic Life and AD&D Insurance - $75,000"]
[15,24,null,null,"Basic Life and AD&D Insurance - $80,000","Basic Life and AD&D Insurance - $80,000","Basic Life and AD&D Insurance - $80,000"]
[16,24,null,null,"Basic Life and AD&D Insurance - $85,000","Basic Life and AD&D Insurance - $85,000","Basic Life and AD&D Insurance - $85,000"]
[17,24,null,null,"Basic Life and AD&D Insurance - $90,000","Basic Life and AD&D Insurance - $90,000","Basic Life and AD&D Insurance - $90,000"]
[18,24,null,null,"Basic Life and AD&D Insurance - $95,000","Basic Life and AD&D Insurance - $95,000","Basic Life and AD&D Insurance - $95,000"]
[19,24,null,null,"Basic Life and AD&D Insurance - $100,000","Basic Life and AD&D Insurance - $100,000","Basic Life and AD&D Insurance - $100,000"]
[20,24,{"$nulls":3},"Basic Life and AD&D Insurance - $105,000","Basic Life and AD&D Insurance - $105,000"]
[21,24,{"$nulls":3},"Basic Life and AD&D Insurance - $110,000","Basic Life and AD&D Insurance - $110,000"]
[22,24,{"$nulls":3},"Basic Life and AD&D Insurance - $115,000","Basic Life and AD&D Insurance - $115,000"]
[23,24,{"$nulls":3},"Basic Life and AD&D Insurance - $120,000","Basic Life and AD&D Insurance - $120,000"]
[24,24,{"$nulls":3},"Basic Life and AD&D Insurance - $125,000","Basic Life and AD&D Insurance - $125,000"]
[25,50,{"$nulls":3},"Basic Life and AD&D Insurance - $130,000","Basic Life and AD&D Insurance - $130,000"]
[26,50,{"$nulls":3},"Basic Life and AD&D Insurance - $135,000","Basic Life and AD&D Insurance - $135,000"]
[27,50,{"$nulls":3},"Basic Life and AD&D Insurance - $140,000","Basic Life and AD&D Insurance - $140,000"]
[28,50,{"$nulls":3},"Basic Life and AD&D Insurance - $145,000","Basic Life and AD&D Insurance - $145,000"]
[29,50,{"$nulls":3},"Basic Life and AD&D Insurance - $150,000","Basic Life and AD&D Insurance - $150,000"]
[30,50,{"$nulls":4},"Basic Life and AD&D Insurance - $175,000"]
[31,50,{"$nulls":4},"Basic Life and AD&D Insurance - $200,000"]
[32,50]
[33,50,null,9,24,50,100]
[34,50,null,"Life/AD&D 1X Salary min $15,000 max $30K","Life/AD&D 1X Salary min $15,000 max $30K","Life/AD&D 1X Salary min $15,000 max $30K","Life/AD&D 1X Salary min $15,000 max $30K"]
[35,50,null,"Life/AD&D 2X Salary min $15,000 max $30K","Life/AD&D 1X Salary min $15,000 max $60K","Life/AD&D 1X Salary min $15,000 max $60K","Life/AD&D 1X Salary min $15,000 max $60K"]
[36,50,null,null,"Life/AD&D 1X Salary min $15,000 max $100K","Life/AD&D 1X Salary min $15,000 max $100K","Life/AD&D 1X Salary min $15,000 max $100K"]
[37,50,null,null,"Life/AD&D 2X Salary min $15,000 max $30K","Life/AD&D 1X Salary min $15,000 max $150K","Life/AD&D 1X Salary min $15,000 max $150K"]
[38,50,null,null,"Life/AD&D 2X Salary min $15,000 max $100K","Life/AD&D 2X Salary min $15,000 max $30K","Life/AD&D 1X Salary min $15,000 max $175K"]
[39,50,{"$nulls":3},"Life/AD&D 2X Salary min $15,000 max $100K","Life/AD&D 1X Salary min $15,000 max $200K"]
[40,50,{"$nulls":3},"Life/AD&D 2X Salary min $15,000 max $150K","Life/AD&D 2X Salary min $15,000 max $30K"]
[41,50,{"$nulls":4},"Life/AD&D 2X Salary min $15,000 max $100K"]
[42,50,{"$nulls":4},"Life/AD&D 2X Salary min $15,000 max $150K"]
[43,50,{"$nulls":4},"Life/AD&D 2X Salary min $15,000 max $175K"]
[44,50,{"$nulls":4},"Life/AD&D 2X Salary min $15,000 max $200K"]
[45,50]
[46,50]
[47,50]
[48,50]
[49,50]
[50,50]
[51,100]
[52,100]
[53,100]
[54,100]
[55,100]
[56,100]
[57,100]
[58,100]
[59,100]
[60,100]
[61,100]
[62,100]
[63,100]
[64,100]
[65,100]
[66,100]
[67,100]
[{"$f":"1+A67","v":68},100]
[69,100]
[70,100]
[71,100]
[72,100]
[73,100]
[74,100]
[75,100]
[76,100]
[77,100]
[78,100]
[79,100]
[80,100]
[81,100]
[82,100]
[83,100]
[84,100]
[85,100]
[86,100]
[87,100]
[88,100]
[89,100]
[90,100]
[91,100]
[92,100]
[93,100]
[94,100]
[95,100]
[96,100]
[97,100]
[98,100]
[99,100]
[100,100]
[]
[null,"Waive"]
[null,{"$f":"MGA!$D$178","v":0}]

{"sheet":"MGAtoCSV","index":7,"n_rows":11,"n_cols":175,"rows_kept":11,"hidden":true}
["Full_legal_business_name__c","Effective_Date__c","Doing_Business_As_Name__c","Billing_address__c","Billing_City__c","Billing_State__c","Billing_Zip__c","Physical_Address_same_as_Billing_Address__c","Physical_address_if_different_Billing__c","Physical_Address_City__c","Physical_Address_State__c","Physical_Address_Zip__c","Physical_Address_County__c","Street_where_most_EE_work__c","City_where_most_EE_work__c","State_where_most_EE_work__c","Zip_where_most_EE_work__c","Primary_Contact_First_Name__c","Primary_Contact_Last_Name__c","Group_Contact_name_title__c","Group_Contact_Phone_number__c","Group_Contact_Fax_number__c","Group_Contact_Email_address__c","Is_Online_Contact__c","Secondary_Contact_First_Name__c","Secondary_Contact_Last_Name__c","Secondary_Group_Contact_name_title__c","Secondary_Group_Contact_Phone__c","Secondary_Group_Contact_Email__c","XXX1","XXX2","XXX3","Legal_Entity__c","Other_Legal_Entity__c","Federal_Tax_ID__c","Multiple_Tax_IDs_y_n__c","Second_Federal_Tax_ID__c","Primary_products_of_business_1__c","Primary_products_SIC_1__c","Primary_products_of_business_2__c","Primary_products_SIC_2__c","Name_of_prior_group_health_carrier__c","Prior_Carrier_Begin_Date__c","Prior_Carrier_End_Date__c","Coverage_still_in_force__c","Company_previously_been_insured_w_BSC__c","Previous_Group_ID__c","Termination_Date__c","Offer_other_carriers_plans_to_employees__c","If_other_plan_offered_carrier_name__c","If_other_plan_offered_number_of_employee__c","Other_plan_open_enrollment_begin_date__c","Other_plan_open_enrollment_end_date__c","Any_Subsidiaries__c","Subsidiary_affiliated_co_name_1__c","Subsidiary_affiliated_co_name_2__c","Subsidiary_affiliated_co_name_3__c","Include_in_coverage_1__c","Include_in_coverage_2__c","Include_in_coverage_3__c","Elig_to_file_combined_state_tax_return_1__c","Elig_to_file_combined_state_tax_return_2__c","Elig_to_file_combined_state_tax_return_3__c","List_subsidiary_or_affiliated_companies__c","All_employees_covered_by_workers_comp__c","No_of_employees__c","No_of_eligible_employees__c","Total_eligible_part_time__c","Medical_enrollment__c","Refusing_Medical__c","Dental_enrollment__c","Refusing_Dental__c","Vision_enrollment__c","Refusing_Vision__c","Life_enrollment__c","Refusing_Life__c","FT_FTE_Count__c","Orientation_period_for_new_employees__c","Is_your_orientation_period_30_days__c","New_Employee_Waiting_Period__c","Waiting_period_waved_existing_employees__c","No_fulltime_employees_in_waiting_period__c","All_full_time_employees_offered_covered__c","Class_Group_coverage_is_offered__c","Fulltime_coverage_at_least_30_hours__c","Coverage_employees_work_b_w_2030_hours__c","Any_out_of_state_employees_y_n__c","If_yes_how_many__c","Domestic_partner_coverage_broad__c","Ongoing_Enrollment_Channel__c","Enrolling_in_Private_Exchange__c","Exchange_Name1__c","EDI_Trading_Partner__c","EDI_Contact_Name__c","EDI_Contact_Email__c","EDI_Contact_Phone__c","Is_group_subject_to_CalCOBRA__c","Is_group_subject_to_federal_COBRA__c","Existing_CalCOBRA_or_COBRA_members__c","CalCOBRA_eligibility_election_period__c","Enroll_forms_attached_cobra__c","ABHP__c","Infertility_rider__c","Medical_Contribution_For_Employee_Perc__c","Medical_Contribution_For_Employee_Amount__c","Medical_Contribution_For_Dependent_Perc__c","Medical_Contribution_For_Dependent_Amount__c","Plan_Packages__c","Medical_Plans_Selected__c","1st_time_all_EE_elect_dental__c","Dental_plan_option__c","Triple_choice_combo__c","Dental_Plans_Selected__c","Dental_Contribution_For_Employee_Perc__c","Dental_Contribution_For_Employee__c","Dental_Contribution_For_Dependent_Perc__c","Dental_Contribution_For_Dependent__c","1st_time_all_EE_elect_vision__c","Vision_Plans_Selected__c","Vision_Contribution_For_Employee_Perc__c","Vision_Contribution_For_Employee__c","Vision_Contribution_For_Dependent_Perc__c","Vision_Contribution_For_Dependent__c","1st_time_all_EE_elect_life__c","Life_Plan_Types__c","Multiple_of_Salary__c","Graded_Class_Desc_1__c","Graded_Class_Desc_2__c","Graded_Class_Desc_3__c","Graded_Class_Desc_4__c","Life_plan_selected__c","Dependent_life_insurance__c","Dependent_life_plan__c","Life_Contributory_Employees_Perc__c","Life_Contributory_Employees__c","Life_Contributory_Dependents_Perc__c","Life_Contributory_Dependents__c","Authorization_Signed_Date__c","Authorization_Signer__c","Authorization_Signer_Last_Name__c","Authorization_Signer_Title__c","Authorization_Signed__c","Agency_name__c","Tax_id_number__c","Producer_name__c","Producer_CDI_license__c","Producer_email__c","Producer_phone__c","Producer_contact__c","Producer_contact_email__c","Producer_street_address__c","Producer_city__c","Producer_state__c","ZIP_code__c","Is_this_a_split_commission__c","Producer_split_1__c","Producer_split_2__c","Name_of_second__c","Second_producer_tax__c","General_agency_name__c","GA_Tax_id__c","GA_producer_name__c","GA_producer_email__c","Today_s_Date__c","Printed_First_Name__c","Printed_Last_Name__c","BSC_AE__c","BSC_AE_phone__c","BSC_AM__c","BSC_AM_phone__c","BSC_SA__c","BSC_SA_phone__c","Past_Due_Attestation__c","CSV_Source__c","EOL"]
[{"$f":"IF(VLOOKUP(A1,MGA!$A:$E,5,FALSE)=0,\"\",VLOOKUP(A1,MGA!$A:$E,5,FALSE))","v":""},{"$f":"IF(VLOOKUP(B1,MGA!$A:$E,5,FALSE)=0,\"\",VLOOKUP(B1,MGA!$A:$E,5,FALSE))","v":""},{"$f":"IF(VLOOKUP(C1,MGA!$A:$E,5,FALSE)=0,\"\",VLOOKUP(C1,MGA!$A:$E,5,FALSE))","v":""},{"$f":"IF(VLOOKUP(D1,MGA!$A:$E,5,FALSE)=0,\"\",VLOOKUP(D1,MGA!$A:$E,5,FALSE))","v":""},{"$f":"IF(VLOOKUP(E1,MGA!$A:$E,5,FALSE)=0,\"\",VLOOKUP(E1,MGA!$A:$E,5,FALSE))","v":""},{"$f":"IF(VLOOKUP(F1,MGA!$A:$E,5,FALSE)=0,\"\",VLOOKUP(F1,MGA!$A:$E,5,FALSE))","v":""},{"$f":"IF(VLOOKUP(G1,MGA!$A:$E,5,FALSE)=0,\"\",VLOOKUP(G1,MGA!$A:$E,5,FALSE))","v":""},{"$f":"IF(VLOOKUP(H1,MGA!$A:$E,5,FALSE)=0,\"\",VLOOKUP(H1,MGA!$A:$E,5,FALSE))","v":""},{"$f":"IF(VLOOKUP(I1,MGA!$A:$E,5,FALSE)=0,\"\",VLOOKUP(I1,MGA!$A:$E,5,FALSE))","v":""},{"$f":"IF(VLOOKUP(J1,MGA!$A:$E,5,FALSE)=0,\"\",VLOOKUP(J1,MGA!$A:$E,5,FALSE))","v":""},{"$f":"IF(VLOOKUP(K1,MGA!$A:$E,5,FALSE)=0,\"\",VLOOKUP(K1,MGA!$A:$E,5,FALSE))","v":""},{"$f":"IF(VLOOKUP(L1,MGA!$A:$E,5,FALSE)=0,\"\",VLOOKUP(L1,MGA!$A:$E,5,FALSE))","v":""},{"$f":"IF(VLOOKUP(M1,MGA!$A:$E,5,FALSE)=0,\"\",VLOOKUP(M1,MGA!$A:$E,5,FALSE))","v":""},{"$f":"IF(VLOOKUP(N1,MGA!$A:$E,5,FALSE)=0,\"\",VLOOKUP(N1,MGA!$A:$E,5,FALSE))","v":""},{"$f":"IF(VLOOKUP(O1,MGA!$A:$E,5,FALSE)=0,\"\",VLOOKUP(O1,MGA!$A:$E,5,FALSE))","v":""},{"$f":"IF(VLOOKUP(P1,MGA!$A:$E,5,FALSE)=0,\"\",VLOOKUP(P1,MGA!$A:$E,5,FALSE))","v":""},{"$f":"IF(VLOOKUP(Q1,MGA!$A:$E,5,FALSE)=0,\"\",VLOOKUP(Q1,MGA!$A:$E,5,FALSE))","v":""},{"$f":"IF(VLOOKUP(R1,MGA!$A:$E,5,FALSE)=0,\"\",VLOOKUP(R1,MGA!$A:$E,5,FALSE))","v":""},{"$f":"IF(VLOOKUP(S1,MGA!$A:$E,5,FALSE)=0,\"\",VLOOKUP(S1,MGA!$A:$E,5,FALSE))","v":""},{"$f":"IF(VLOOKUP(T1,MGA!$A:$E,5,FALSE)=0,\"\",VLOOKUP(T1,MGA!$A:$E,5,FALSE))","v":""},{"$f":"IF(VLOOKUP(U1,MGA!$A:$E,5,FALSE)=0,\"\",VLOOKUP(U1,MGA!$A:$E,5,FALSE))","v":""},{"$f":"IF(VLOOKUP(V1,MGA!$A:$E,5,FALSE)=0,\"\",VLOOKUP(V1,MGA!$A:$E,5,FALSE))","v":""},{"$f":"IF(VLOOKUP(W1,MGA!$A:$E,5,FALSE)=0,\"\",VLOOKUP(W1,MGA!$A:$E,5,FALSE))","v":""},{"$f":"IF(VLOOKUP(X1,MGA!$A:$E,5,FALSE)=0,\"\",VLOOKUP(X1,MGA!$A:$E,5,FALSE))","v":""},{"$f":"IF(VLOOKUP(Y1,MGA!$A:$E,5,FALSE)=0,\"\",VLOOKUP(Y1,MGA!$A:$E,5,FALSE))","v":""},{"$f":"IF(VLOOKUP(Z1,MGA!$A:$E,5,FALSE)=0,\"\",VLOOKUP(Z1,MGA!$A:$E,5,FALSE))","v":""},{"$f":"IF(VLOOKUP(AA1,MGA!$A:$E,5,FALSE)=0,\"\",VLOOKUP(AA1,MGA!$A:$E,5,FALSE))","v":""},{"$f":"IF(VLOOKUP(AB1,MGA!$A:$E,5,FALSE)=0,\"\",VLOOKUP(AB1,MGA!$A:$E,5,FALSE))","v":""},{"$f":"IF(VLOOKUP(AC1,MGA!$A:$E,5,FALSE)=0,\"\",VLOOKUP(AC1,MGA!$A:$E,5,FALSE))","v":""},{"$nulls":3},{"$f":"IF(VLOOKUP(AG1,MGA!$A:$E,5,FALSE)=0,\"\",VLOOKUP(AG1,MGA!$A:$E,5,FALSE))","v":""},{"$f":"IF(VLOOKUP(AH1,MGA!$A:$E,5,FALSE)=0,\"\",VLOOKUP(AH1,MGA!$A:$E,5,FALSE))","v":""},{"$f":"IF(VLOOKUP(AI1,MGA!$A:$E,5,FALSE)=0,\"\",VLOOKUP(AI1,MGA!$A:$E,5,FALSE))","v":""},{"$f":"IF(VLOOKUP(AJ1,MGA!$A:$E,5,FALSE)=0,\"\",VLOOKUP(AJ1,MGA!$A:$E,5,FALSE))","v":""},{"$f":"IF(VLOOKUP(AK1,MGA!$A:$E,5,FALSE)=0,\"\",VLOOKUP(AK1,MGA!$A:$E,5,FALSE))","v":""},{"$f":"IF(VLOOKUP(AL1,MGA!$A:$E,5,FALSE)=0,\"\",VLOOKUP(AL1,MGA!$A:$E,5,FALSE))","v":""},{"$f":"IF(VLOOKUP(AM1,MGA!$A:$E,5,FALSE)=0,\"\",VLOOKUP(AM1,MGA!$A:$E,5,FALSE))","v":""},{"$f":"IF(VLOOKUP(AN1,MGA!$A:$E,5,FALSE)=0,\"\",VLOOKUP(AN1,MGA!$A:$E,5,FALSE))","v":""},{"$f":"IF(VLOOKUP(AO1,MGA!$A:$E,5,FALSE)=0,\"\",VLOOKUP(AO1,MGA!$A:$E,5,FALSE))","v":""},{"$f":"IF(VLOOKUP(AP1,MGA!$A:$E,5,FALSE)=0,\"\",VLOOKUP(AP1,MGA!$A:$E,5,FALSE))","v":""},{"$f":"IF(VLOOKUP(AQ1,MGA!$A:$E,5,FALSE)=0,\"\",VLOOKUP(AQ1,MGA!$A:$E,5,FALSE))","v":""},{"$f":"IF(VLOOKUP(AR1,MGA!$A:$E,5,FALSE)=0,\"\",VLOOKUP(AR1,MGA!$A:$E,5,FALSE))","v":""},{"$f":"IF(VLOOKUP(AS1,MGA!$A:$E,5,FALSE)=0,\"\",VLOOKUP(AS1,MGA!$A:$E,5,FALSE))","v":""},{"$f":"IF(VLOOKUP(AT1,MGA!$A:$E,5,FALSE)=0,\"\",VLOOKUP(AT1,MGA!$A:$E,5,FALSE))","v":""},{"$f":"IF(VLOOKUP(AU1,MGA!$A:$E,5,FALSE)=0,\"\",VLOOKUP(AU1,MGA!$A:$E,5,FALSE))","v":""},{"$f":"IF(VLOOKUP(AV1,MGA!$A:$E,5,FALSE)=0,\"\",VLOOKUP(AV1,MGA!$A:$E,5,FALSE))","v":""},{"$f":"IF(VLOOKUP(AW1,MGA!$A:$E,5,FALSE)=0,\"\",VLOOKUP(AW1,MGA!$A:$E,5,FALSE))","v":""},{"$f":"IF(VLOOKUP(AX1,MGA!$A:$E,5,FALSE)=0,\"\",VLOOKUP(AX1,MGA!$A:$E,5,FALSE))","v":""},{"$f":"IF(VLOOKUP(AY1,MGA!$A:$E,5,FALSE)=0,\"\",VLOOKUP(AY1,MGA!$A:$E,5,FALSE))","v":""},{"$f":"IF(VLOOKUP(AZ1,MGA!$A:$E,5,FALSE)=0,\"\",VLOOKUP(AZ1,MGA!$A:$E,5,FALSE))","v":""},{"$f":"IF(VLOOKUP(BA1,MGA!$A:$E,5,FALSE)=0,\"\",VLOOKUP(BA1,MGA!$A:$E,5,FALSE))","v":""},{"$f":"IF(VLOOKUP(BB1,MGA!$A:$E,5,FALSE)=0,\"\",VLOOKUP(BB1,MGA!$A:$E,5,FALSE))","v":""},{"$f":"IF(MGA!$E61=\"\",\"\",MGA!$E61)","v":""},{"$f":"IF(MGA!$E62=\"\",\"\",MGA!$E62)","v":""},{"$f":"IF(MGA!$E63=\"\",\"\",MGA!$E63)","v":""},{"$f":"IF(MGA!$F61=\"\",\"\",MGA!$F61)","v":""},{"$f":"IF(MGA!$F62=\"\",\"\",MGA!$F62)","v":""},{"$f":"IF(MGA!$F63=\"\",\"\",MGA!$F63)","v":""},{"$f":"IF(MGA!$G61=\"\",\"\",MGA!$G61)","v":""},{"$f":"IF(MGA!$G62=\"\",\"\",MGA!$G62)","v":""},{"$f":"IF(MGA!$G63=\"\",\"\",MGA!$G63)","v":""},{"$f":"IF(ListValues!A102=\"\",\"\",VLOOKUP(MAX(ListValues!$B$102:$B$104),ListValues!$B$102:$C$104,2,FALSE))","v":""},{"$f":"IF(VLOOKUP(BM1,MGA!$A:$E,5,FALSE)=\"\",\"\",VLOOKUP(BM1,MGA!$A:$E,5,FALSE))","v":""},{"$f":"IF(VLOOKUP(BN1,MGA!$A:$E,5,FALSE)=\"\",\"\",VLOOKUP(BN1,MGA!$A:$E,5,FALSE))","v":""},{"$f":"IF(VLOOKUP(BO1,MGA!$A:$E,5,FALSE)=\"\",\"\",VLOOKUP(BO1,MGA!$A:$E,5,FALSE))","v":""},{"$f":"IF(VLOOKUP(BP1,MGA!$A:$E,5,FALSE)=\"\",\"\",VLOOKUP(BP1,MGA!$A:$E,5,FALSE))","v":""},{"$f":"MGA!$E69","v":0},{"$f":"MGA!$F69","v":0},{"$f":"MGA!$E70","v":0},{"$f":"MGA!$F70","v":0},{"$f":"MGA!$E71","v":0},{"$f":"MGA!$F71","v":0},{"$f":"MGA!$E72","v":0},{"$f":"MGA!$F72","v":0},{"$f":"IF(VLOOKUP(BY1,MGA!$A:$E,5,FALSE)=0,\"\",VLOOKUP(BY1,MGA!$A:$E,5,FALSE))","v":""},{"$f":"IF(VLOOKUP(BZ1,MGA!$A:$E,5,FALSE)=0,\"\",VLOOKUP(BZ1,MGA!$A:$E,5,FALSE))","v":""},{"$f":"IF(VLOOKUP(CA1,MGA!$A:$E,5,FALSE)=0,\"\",VLOOKUP(CA1,MGA!$A:$E,5,FALSE))","v":""},{"$f":"IF(VLOOKUP(CB1,MGA!$A:$E,5,FALSE)=0,\"\",VLOOKUP(VLOOKUP(CB1,MGA!$A:$E,5,FALSE),ListValues!$A$97:$B$100,2,FALSE))","v":""},{"$f":"IF(VLOOKUP(CC1,MGA!$A:$E,5,FALSE)=0,\"\",VLOOKUP(CC1,MGA!$A:$E,5,FALSE))","v":""},{"$f":"IF(VLOOKUP(CD1,MGA!$A:$E,5,FALSE)=0,\"\",VLOOKUP(CD1,MGA!$A:$E,5,FALSE))","v":""},{"$f":"IF(VLOOKUP(CE1,MGA!$A:$E,5,FALSE)=0,\"\",VLOOKUP(CE1,MGA!$A:$E,5,FALSE))","v":""},{"$f":"IF(VLOOKUP(CF1,MGA!$A:$E,5,FALSE)=0,\"\",VLOOKUP(CF1,MGA!$A:$E,5,FALSE))","v":""},{"$f":"IF(VLOOKUP(CG1,MGA!$A:$E,5,FALSE)=0,\"\",VLOOKUP(CG1,MGA!$A:$E,5,FALSE))","v":""},{"$f":"IF(VLOOKUP(CH1,MGA!$A:$E,5,FALSE)=0,\"\",VLOOKUP(CH1,MGA!$A:$E,5,FALSE))","v":""},{"$f":"IF(VLOOKUP(CI1,MGA!$A:$E,5,FALSE)=0,\"\",VLOOKUP(CI1,MGA!$A:$E,5,FALSE))","v":""},{"$f":"IF(VLOOKUP(CJ1,MGA!$A:$E,5,FALSE)=0,\"\",VLOOKUP(CJ1,MGA!$A:$E,5,FALSE))","v":""},{"$f":"IF(VLOOKUP(CK1,MGA!$A:$E,5,FALSE)=0,\"\",IF(VLOOKUP(CK1,MGA!$A:$E,5,FALSE)=\"No\",\"Narrow\",\"Broad\"))","v":""},{"$f":"IF(VLOOKUP(CL1,MGA!$A:$E,5,FALSE)=0,\"\",VLOOKUP(CL1,MGA!$A:$E,5,FALSE))","v":""},{"$f":"IF(VLOOKUP(CM1,MGA!$A:$E,5,FALSE)=0,\"\",VLOOKUP(CM1,MGA!$A:$E,5,FALSE))","v":""},{"$f":"IF(VLOOKUP(CN1,MGA!$A:$E,5,FALSE)=0,\"\",VLOOKUP(VLOOKUP(CN1,MGA!$A:$E,5,FALSE),ListValues!A125:B125,2,FALSE))","v":""},{"$f":"IF(VLOOKUP(CO1,MGA!$A:$E,5,FALSE)=0,\"\",VLOOKUP(VLOOKUP(CO1,MGA!$A:$E,5,FALSE),ListValues!A115:B122,2,FALSE))","v":""},{"$f":"IF(VLOOKUP(CP1,MGA!$A:$E,5,FALSE)=0,\"\",VLOOKUP(CP1,MGA!$A:$E,5,FALSE))","v":""},{"$f":"IF(VLOOKUP(CQ1,MGA!$A:$E,5,FALSE)=0,\"\",VLOOKUP(CQ1,MGA!$A:$E,5,FALSE))","v":""},{"$f":"IF(VLOOKUP(CR1,MGA!$A:$E,5,FALSE)=0,\"\",VLOOKUP(CR1,MGA!$A:$E,5,FALSE))","v":""},{"$f":"IF(VLOOKUP(CS1,MGA!$A:$E,5,FALSE)=0,\"\",VLOOKUP(CS1,MGA!$A:$E,5,FALSE))","v":""},{"$f":"IF(VLOOKUP(CT1,MGA!$A:$E,5,FALSE)=0,\"\",VLOOKUP(CT1,MGA!$A:$E,5,FALSE))","v":""},{"$f":"IF(MGA!E95=\"Yes\",MGA!E97,IF(MGA!E96=\"Yes\",MGA!E99,\"\"))","v":""},{"$f":"IF(MGA!E95=\"Yes\",MGA!E98,IF(MGA!E96=\"Yes\",MGA!E98,\"\"))","v":""},{"$f":"IF(VLOOKUP(CW1,MGA!$A:$E,5,FALSE)=0,\"\",VLOOKUP(CW1,MGA!$A:$E,5,FALSE))","v":""},{"$f":"IF(VLOOKUP(CX1,MGA!$A:$E,5,FALSE)=0,\"\",VLOOKUP(CX1,MGA!$A:$E,5,FALSE))","v":""},{"$f":"IF(VLOOKUP(CY1,MGA!$A:$E,5,FALSE)=0,\"\",VLOOKUP(CY1,MGA!$A:$E,5,FALSE))","v":""},{"$f":"IF(MGA!$E147=\"\",\"\",MGA!$E147*100)","v":""},{"$f":"IF(MGA!$F147=\"\",\"\",MGA!$F147)","v":""},{"$f":"IF(MGA!$E148=\"\",\"\",MGA!$E148*100)","v":""},{"$f":"IF(MGA!$F148=\"\",\"\",MGA!$F148)","v":""},{"$f":"IF(COUNTA(MGA!D106:D116,MGA!E106:E109,MGA!F106:F112,MGA!D124:D130,MGA!E124:E130,MGA!F124:F130)>0,\"Blue Shield of California Off Exchange Package for Small Business\",IF(COUNTA(MGA!D136:D142)>0,\"Blue Shield of California Mirror Package for Small Business\",\"\"))","v":""},{"$f":"VLOOKUP(MAX(ListValues!$G$1:$G$51),ListValues!$G$1:$H$51,2,FALSE)","v":""},{"$f":"IF(VLOOKUP(DF1,MGA!$A:$E,5,FALSE)=0,\"\",VLOOKUP(DF1,MGA!$A:$E,5,FALSE))","v":""},{"$f":"IF(VLOOKUP(DG1,MGA!$A:$E,5,FALSE)=0,\"\",VLOOKUP(DG1,MGA!$A:$E,5,FALSE))","v":""},{"$f":"IF(VLOOKUP(DH1,MGA!$A:$E,5,FALSE)=0,\"\",VLOOKUP(DH1,MGA!$A:$E,5,FALSE))","v":""},{"$f":"VLOOKUP(MAX(ListValues!$J$53:$J$69),ListValues!$J$53:$K$69,2,FALSE)","v":""},{"$f":"IF(MGA!$E161=\"\",\"\",MGA!$E161*100)","v":""},{"$f":"IF(MGA!$F161=\"\",\"\",MGA!$F161)","v":""},{"$f":"IF(MGA!$E162=\"\",\"\",MGA!$E162*100)","v":""},{"$f":"IF(MGA!$F162=\"\",\"\",MGA!$F162)","v":""},{"$f":"IF(VLOOKUP(DN1,MGA!$A:$E,5,FALSE)=0,\"\",VLOOKUP(DN1,MGA!$A:$E,5,FALSE))","v":""},{"$f":"IF(VLOOKUP(DO1,MGA!$A:$E,4,FALSE)=0,\"\",VLOOKUP(DO1,MGA!$A:$E,4,FALSE))","v":""},{"$f":"IF(MGA!$E171=\"\",\"\",MGA!$E171*100)","v":""},{"$f":"IF(MGA!$F171=\"\",\"\",MGA!$F171)","v":""},{"$f":"IF(MGA!$E172=\"\",\"\",MGA!$E172*100)","v":""},{"$f":"IF(MGA!$F172=\"\",\"\",MGA!$F172)","v":""},{"$f":"IF(VLOOKUP(DT1,MGA!$A:$E,5,FALSE)=0,\"\",VLOOKUP(DT1,MGA!$A:$E,5,FALSE))","v":""},{"$f":"IF(MGA!D178=\"\",\"\",MGA!D178)","v":""},{"$f":"IF(MultipleofSalary_MGA=\"\",\"\",MID(MultipleofSalary_MGA,FIND(\" \",MultipleofSalary_MGA)+1,1))","v":""},{"$f":"IF(VLOOKUP(DW1,MGA!$A:$E,4,FALSE)=\"\",\"\",VLOOKUP(DW1,MGA!$A:$E,4,FALSE))","v":""},{"$f":"IF(VLOOKUP(DX1,MGA!$A:$E,4,FALSE)=\"\",\"\",VLOOKUP(DX1,MGA!$A:$E,4,FALSE))","v":""},{"$f":"IF(VLOOKUP(DY1,MGA!$A:$E,4,FALSE)=\"\",\"\",VLOOKUP(DY1,MGA!$A:$E,4,FALSE))","v":""},{"$f":"IF(VLOOKUP(DZ1,MGA!$A:$E,4,FALSE)=\"\",\"\",VLOOKUP(DZ1,MGA!$A:$E,4,FALSE))","v":""},{"$f":"IF(ListValues!C113=\"\",\"\",ListValues!C113)","v":""},{"$f":"IF(VLOOKUP(EB1,MGA!$A:$E,5,FALSE)=0,\"\",VLOOKUP(EB1,MGA!$A:$E,5,FALSE))","v":""},{"$f":"IF(VLOOKUP(EC1,MGA!$A:$E,5,FALSE)=0,\"\",VLOOKUP(EC1,MGA!$A:$E,5,FALSE))","v":""},{"$f":"IF(MGA!$E194=\"\",\"\",MGA!$E194*100)","v":""},{"$f":"IF(MGA!$F194=\"\",\"\",MGA!$F194)","v":""},{"$f":"IF(MGA!$E195=\"\",\"\",MGA!$E195*100)","v":""},{"$f":"IF(MGA!$F195=\"\",\"\",MGA!$F195)","v":""},{"$f":"IF(VLOOKUP(EH1,MGA!$A:$E,5,FALSE)=0,\"\",VLOOKUP(EH1,MGA!$A:$E,5,FALSE))","v":""},{"$f":"IF(VLOOKUP(EI1,MGA!$A:$E,5,FALSE)=0,\"\",VLOOKUP(EI1,MGA!$A:$E,5,FALSE))","v":""},{"$f":"IF(VLOOKUP(EJ1,MGA!$A:$E,5,FALSE)=0,\"\",VLOOKUP(EJ1,MGA!$A:$E,5,FALSE))","v":""},{"$f":"IF(VLOOKUP(EK1,MGA!$A:$E,5,FALSE)=0,\"\",VLOOKUP(EK1,MGA!$A:$E,5,FALSE))","v":""},{"$f":"IF(VLOOKUP(EL1,MGA!$A:$E,5,FALSE)=0,\"\",VLOOKUP(EL1,MGA!$A:$E,5,FALSE))","v":""},{"$f":"IF(VLOOKUP(EM1,MGA!$A:$E,5,FALSE)=0,\"\",VLOOKUP(EM1,MGA!$A:$E,5,FALSE))","v":""},{"$f":"IF(VLOOKUP(EN1,MGA!$A:$E,5,FALSE)=0,\"\",VLOOKUP(EN1,MGA!$A:$E,5,FALSE))","v":""},{"$f":"IF(VLOOKUP(EO1,MGA!$A:$E,5,FALSE)=0,\"\",VLOOKUP(EO1,MGA!$A:$E,5,FALSE))","v":""},{"$f":"IF(VLOOKUP(EP1,MGA!$A:$E,5,FALSE)=0,\"\",VLOOKUP(EP1,MGA!$A:$E,5,FALSE))","v":""},{"$f":"IF(VLOOKUP(EQ1,MGA!$A:$E,5,FALSE)=0,\"\",VLOOKUP(EQ1,MGA!$A:$E,5,FALSE))","v":""},{"$f":"IF(VLOOKUP(ER1,MGA!$A:$E,5,FALSE)=0,\"\",VLOOKUP(ER1,MGA!$A:$E,5,FALSE))","v":""},{"$f":"IF(VLOOKUP(ES1,MGA!$A:$E,5,FALSE)=0,\"\",VLOOKUP(ES1,MGA!$A:$E,5,FALSE))","v":""},{"$f":"IF(VLOOKUP(ET1,MGA!$A:$E,5,FALSE)=0,\"\",VLOOKUP(ET1,MGA!$A:$E,5,FALSE))","v":""},{"$f":"IF(VLOOKUP(EU1,MGA!$A:$E,5,FALSE)=0,\"\",VLOOKUP(EU1,MGA!$A:$E,5,FALSE))","v":""},{"$f":"IF(VLOOKUP(EV1,MGA!$A:$E,5,FALSE)=0,\"\",VLOOKUP(EV1,MGA!$A:$E,5,FALSE))","v":""},{"$f":"IF(VLOOKUP(EW1,MGA!$A:$E,5,FALSE)=0,\"\",VLOOKUP(EW1,MGA!$A:$E,5,FALSE))","v":""},{"$f":"IF(VLOOKUP(EX1,MGA!$A:$E,5,FALSE)=0,\"\",VLOOKUP(EX1,MGA!$A:$E,5,FALSE))","v":""},{"$f":"IF(VLOOKUP(EY1,MGA!$A:$E,5,FALSE)=0,\"\",VLOOKUP(EY1,MGA!$A:$E,5,FALSE))","v":""},{"$f":"IF(VLOOKUP(EZ1,MGA!$A:$E,5,FALSE)=0,\"\",VLOOKUP(EZ1,MGA!$A:$E,5,FALSE)*100)","v":""},{"$f":"IF(OR(VLOOKUP(FA1,MGA!$A:$E,5,FALSE)=0,VLOOKUP(FA1,MGA!$A:$E,5,FALSE)=\"\"),\"\",VLOOKUP(FA1,MGA!$A:$E,5,FALSE)*100)","v":""},{"$f":"IF(VLOOKUP(FB1,MGA!$A:$E,5,FALSE)=0,\"\",VLOOKUP(FB1,MGA!$A:$E,5,FALSE))","v":""},{"$f":"IF(VLOOKUP(FC1,MGA!$A:$E,5,FALSE)=0,\"\",VLOOKUP(FC1,MGA!$A:$E,5,FALSE))","v":""},{"$f":"IF(VLOOKUP(FD1,MGA!$A:$E,5,FALSE)=0,\"\",VLOOKUP(FD1,MGA!$A:$E,5,FALSE))","v":""},{"$f":"IF(VLOOKUP(FE1,MGA!$A:$E,5,FALSE)=0,\"\",VLOOKUP(FE1,MGA!$A:$E,5,FALSE))","v":""},{"$f":"IF(VLOOKUP(FF1,MGA!$A:$E,5,FALSE)=0,\"\",VLOOKUP(FF1,MGA!$A:$E,5,FALSE))","v":""},{"$f":"IF(VLOOKUP(FG1,MGA!$A:$E,5,FALSE)=0,\"\",VLOOKUP(FG1,MGA!$A:$E,5,FALSE))","v":""},{"$f":"IF(VLOOKUP(FH1,MGA!$A:$E,5,FALSE)=0,\"\",VLOOKUP(FH1,MGA!$A:$E,5,FALSE))","v":""},{"$f":"IF(VLOOKUP(FI1,MGA!$A:$E,5,FALSE)=0,\"\",VLOOKUP(FI1,MGA!$A:$E,5,FALSE))","v":""},{"$f":"IF(VLOOKUP(FJ1,MGA!$A:$E,5,FALSE)=0,\"\",VLOOKUP(FJ1,MGA!$A:$E,5,FALSE))","v":""},{"$f":"IF(MGA!$E231=\"\",\"\",MGA!$E231)","v":""},{"$f":"IF(MGA!$F231=\"\",\"\",MGA!$F231)","v":""},{"$f":"IF(MGA!$E232=\"\",\"\",MGA!$E232)","v":""},{"$f":"IF(MGA!$F232=\"\",\"\",MGA!$F232)","v":""},{"$f":"IF(MGA!$E233=\"\",\"\",MGA!$E233)","v":""},{"$f":"IF(MGA!$F233=\"\",\"\",MGA!$F233)","v":""},{"$f":"IF(MGA!E2=\"\",\"\",MGA!E2)","v":""},"1X"]
[]
["Text(80)","Date",{"$error":"#N/A"},"Text(120)","Text(80)","Text(2)","Text(9)","Checkbox","Text(120)","Text(80)","Text(2)","Text(9)","Text(80)","Text (255)",{"$nulls":3},"Text(80)","Text(80)","Text(80)","Phone","Phone","Email",{"$error":"#N/A"},"Text(80)","Text(80)","Text(80)","Phone","Email",{"$nulls":3},"Picklist","Text(80)","Text(11)  (External ID)","Checkbox","Text(11)","Text (255)","text(50)","Text (255)","text(50)","Text(80)","Date","Date","check","Checkbox","Text(20)","Date","Checkbox","Text(80)","Number(2, 0)","Date","Date","Checkbox",{"$nulls":9},"Long Text Area(32768)","Checkbox","Number(5, 0)","Number(5, 0)","Number(5, 0)","Number(5, 0)","Number(5, 0)","Number(5, 0)","Number(5, 0)","Number(5, 0)","Number(5, 0)","Number(5, 0)","Number(5, 0)","Number(3, 0)","Picklist","Picklist","Number(2, 0)","Checkbox","Number(2, 0)","Checkbox",null,"Checkbox","Checkbox","Checkbox","Number(2, 0)","Picklist","Picklist","Checkbox","Lookup(Account)","Lookup(EDI Trading Partner)","Text(100)","Email","Phone","checkbox ","Checkbox","Number(2, 0)","Number(2, 0)","checkbox","checkbox","checkbox","Percent(3, 2)","Currency(16, 2)","Percent(3, 2)",null,"Text Area(255)","Long Text Area(32768)","checkbox","text (50)","text (200)","Long Text Area(32768)","Percent(16, 2)","Currency(16, 2)","Percent(16, 2)","Currency(16, 2)",null,"Long Text Area(32768)","Percent(3, 2)","Currency(16, 2)","Percent(3, 2)","Currency(16, 2)",{"$nulls":3},"text 40","text 40","text 40","text 40",null,"check box","picklist","Percent(3, 2)","Currency(16, 2)","Percent(3, 2)","Currency(16, 2)","Date","Text(80)","Text(80)","Text(80)","Checkbox","text(100)","text(50)","text(100)","text(50)","text(100)","phone","text(100)","text(100)","text(100)","text(100)","text(50)","text(50)","picklist (yes/no)","percent","percent","text(100)","text(100)","text(100)","text(100)","text(100)","text(100)","Date","Text(80)","Text(80)","Text(80)","Phone","Text(80)","Phone","Text(80)","Phone"]
[]
[]
[]
[]
[]
["Full_legal_business_name__c","Effective_Date__c","Doing_Business_As_Name__c","Billing_address__c","Billing_City__c","Billing_State__c","Billing_Zip__c","Physical_Address_same_as_Billing_Address__c","Physical_address_if_different_Billing__c","Physical_Address_City__c","Physical_Address_State__c","Physical_Address_Zip__c","Physical_Address_County__c","Street_where_most_EE_work__c","City_where_most_EE_work__c","State_where_most_EE_work__c","Zip_where_most_EE_work__c","Primary_Contact_First_Name__c","Primary_Contact_Last_Name__c","Group_Contact_name_title__c","Group_Contact_Phone_number__c","Group_Contact_Fax_number__c","Group_Contact_Email_address__c","Is_Online_Contact__c","Secondary_Contact_First_Name__c","Secondary_Contact_Last_Name__c","Secondary_Group_Contact_name_title__c","Secondary_Group_Contact_Phone__c","Secondary_Group_Contact_Email__c","XXX1","XXX2","XXX3","Legal_Entity__c","Other_Legal_Entity__c","Federal_Tax_ID__c","Multiple_Tax_IDs_y_n__c","Second_Federal_Tax_ID__c","Primary_products_of_business_1__c","Primary_products_SIC_1__c","Primary_products_of_business_2__c","Primary_products_SIC_2__c","Name_of_prior_group_health_carrier__c","Prior_Carrier_Begin_Date__c","Prior_Carrier_End_Date__c","Coverage_still_in_force__c","Company_previously_been_insured_w_BSC__c","Previous_Group_ID__c","Termination_Date__c","Offer_other_carriers_plans_to_employees__c","If_other_plan_offered_carrier_name__c","If_other_plan_offered_number_of_employee__c","Other_plan_open_enrollment_begin_date__c","Other_plan_open_enrollment_end_date__c","Any_Subsidiaries__c","Subsidiary_affiliated_co_name_1__c","Subsidiary_affiliated_co_name_2__c","Subsidiary_affiliated_co_name_3__c","Include_in_coverage_1__c","Include_in_coverage_2__c","Include_in_coverage_3__c","Elig_to_file_combined_state_tax_return_1__c","Elig_to_file_combined_state_tax_return_2__c","Elig_to_file_combined_state_tax_return_3__c","List_subsidiary_or_affiliated_companies__c","All_employees_covered_by_workers_comp__c","No_of_employees__c","No_of_eligible_employees__c","Total_eligible_part_time__c","Medical_enrollment__c","Refusing_Medical__c","Dental_enrollment__c","Refusing_Dental__c","Vision_enrollment__c","Refusing_Vision__c","Life_enrollment__c","Refusing_Life__c","FT_FTE_Count__c","Orientation_period_for_new_employees__c","Is_your_orientation_period_30_days__c","New_Employee_Waiting_Period__c","Waiting_period_waved_existing_employees__c","No_fulltime_employees_in_waiting_period__c","All_full_time_employees_offered_covered__c","Class_Group_coverage_is_offered__c","Fulltime_coverage_at_least_30_hours__c","Coverage_employees_work_b_w_2030_hours__c","Any_out_of_state_employees_y_n__c","If_yes_how_many__c","Domestic_partner_coverage_broad__c","Ongoing_Enrollment_Channel__c","Enrolling_in_Private_Exchange__c","Exchange_Name1__c","EDI_Trading_Partner__c","EDI_Contact_Name__c","EDI_Contact_Email__c","EDI_Contact_Phone__c","Is_group_subject_to_CalCOBRA__c","Is_group_subject_to_federal_COBRA__c","Existing_CalCOBRA_or_COBRA_members__c","CalCOBRA_eligibility_election_period__c","Enroll_forms_attached_cobra__c","ABHP__c","Infertility_rider__c","Medical_Contribution_For_Employee_Perc__c","Medical_Contribution_For_Employee_Amount__c","Medical_Contribution_For_Dependent_Perc__c","Medical_Contribution_For_Dependent_Amount__c","Plan_Packages__c","Medical_Plans_Selected__c","1st_time_all_EE_elect_dental__c","Dental_plan_option__c","Triple_choice_combo__c","Dental_Plans_Selected__c","Dental_Contribution_For_Employee_Perc__c","Dental_Contribution_For_Employee__c","Dental_Contribution_For_Dependent_Perc__c","Dental_Contribution_For_Dependent__c","1st_time_all_EE_elect_vision__c","Vision_Plans_Selected__c","Vision_Contribution_For_Employee_Perc__c","Vision_Contribution_For_Employee__c","Vision_Contribution_For_Dependent_Perc__c","Vision_Contribution_For_Dependent__c","1st_time_all_EE_elect_life__c","Life_Plan_Types__c","Multiple_of_Salary__c","Graded_Class_Desc_1__c","Graded_Class_Desc_2__c","Graded_Class_Desc_3__c","Graded_Class_Desc_4__c","Life_plan_selected__c","Dependent_life_insurance__c","Dependent_life_plan__c","Life_Contributory_Employees_Perc__c","Life_Contributory_Employees__c","Life_Contributory_Dependents_Perc__c","Life_Contributory_Dependents__c","Authorization_Signed_Date__c","Authorization_Signer__c","Authorization_Signer_Last_Name__c","Authorization_Signer_Title__c","Authorization_Signed__c","Agency_name__c","Tax_id_number__c","Producer_name__c","Producer_CDI_license__c","Producer_email__c","Producer_phone__c","Producer_contact__c","Producer_contact_email__c","Producer_street_address__c","Producer_city__c","Producer_state__c","ZIP_code__c","Is_this_a_split_commission__c","Producer_split_1__c","Producer_split_2__c","Name_of_second__c","Second_producer_tax__c","General_agency_name__c","GA_Tax_id__c","GA_producer_name__c","GA_producer_email__c","Today_s_Date__c","Printed_First_Name__c","Printed_Last_Name__c","BSC_AE__c","BSC_AE_phone__c","BSC_AM__c","BSC_AM_phone__c","BSC_SA__c","BSC_SA_phone__c","Past_Due_Attestation__c","CSV_Source__c","EOL"]
["Sam Smith Enterprises","","","","","","","","","","","","","","","","","","","","","","","","","","","","",{"$nulls":3},"","","","","","","","","","","","","","","","","","","","","","","","","","","","","","","","","","","","",0,0,0,0,0,0,0,0,"","","","","","","","","","","","","","","","","","","","","","","","","","","","","","","","","","","","","DHMO Basic","","","","","","","","","","","","","","","","","","","","","","","","","","","","","","","","","","","","","","","","","","","","","","","","","","","","","","","","","","","","No","1X"]

{"sheet":"List","index":8,"n_rows":209,"n_cols":22,"rows_kept":209,"hidden":true}
[null,"NONE (Default)",null,"NA (Default)",null,"Applicant Type (List)",null,null,"Type Application (List)",null,"Health Package (List)",null,null,"Dental Package (List)",null,null,"Vision Package (List)",null,"Health Package MGA"]
[null,"NONE",null,"Not Applicable",null,"Subscriber",null,null,"Enroll",null,"Waive",null,null,"Waive",null,null,"Waive",null,"Waive"]
[{"$nulls":5},"Spouse",null,null,"ROC",null,"Off_Exchange",null,null,"Dental_HMO",null,null,"Ultimate",null,{"$f":"IF(COUNTA(MGA!D106:D116,MGA!E106:E109,MGA!F106:F112,MGA!D124:D130,MGA!E124:E130,MGA!F124:F130)>0,\"Off_Exchange\",IF(COUNTA(MGA!D136:D142)>0,\"Mirror\",\"\"))","v":""}]
[{"$nulls":5},"Domestic Partner",{"$nulls":4},"Mirror",null,null,"Dental_PPO",null,null,"Preferred"]
[{"$nulls":5},"Dependent Child",{"$nulls":7},"Dental_INO",null,null,"Basic"]
[{"$nulls":5},"Other Dependent Child - Guardianship"]
[]
[{"$nulls":7},"Mirror (List)"]
[{"$nulls":7},"Blue Shield Bronze 60 PPO 6300/75 + Child Dental",{"$nulls":6},"Dental_PPO (List)"]
[{"$nulls":7},"Blue Shield Gold 80 HMO 0/25 Trio + Child Dental ",{"$nulls":6},"Smile (SM) 50/1500/No Ortho/MAC"]
[{"$nulls":7},"Blue Shield Gold 80 PPO 0/25 + Child Dental",{"$nulls":6},"Smile (SM) Basic 75/1000/No Ortho/MAC"]
[{"$nulls":7},"Blue Shield Platinum 90 HMO 0/15 Trio + Child Dental ",{"$nulls":6},"Smile (SM) Basic Voluntary 75/1000/No Ortho/MAC"]
[{"$nulls":7},"Blue Shield Platinum 90 PPO 0/15 + Child Dental",{"$nulls":6},"Smile (SM) Deluxe 2000 50/2000/No Ortho/MAC"]
[null,"1. New Group Enrollment",{"$nulls":5},"Blue Shield Silver 70 HMO 2000/45 Trio + Child Dental ",{"$nulls":6},"Smile (SM) Deluxe 50/1500/Ortho/MAC",{"$nulls":5},"Dental_INO (List)"]
[null,"2. New Hire/Rehire",{"$nulls":5},"Blue Shield Silver 70 PPO 2000/45 + Child Dental",{"$nulls":6},"Smile (SM) Deluxe Gold 50/1500/Ortho/U85",{"$nulls":5},"Smile (SM) INO Dental Voluntary Plan 50/1500/Endo-Perio 50%/No Ortho"]
[null,"3. Open Enrollment",{"$nulls":12},"Smile (SM) Deluxe Plus 2000 50/2000/Ortho/MAC",{"$nulls":5},"Smile (SM) INO Dental Voluntary Plan 50/1500/Endo-Perio 50%/Ortho"]
[null,"4. COBRA/Cal-Cobra Enrollment",{"$nulls":12},"Smile (SM) Plus 50/1500/Ortho/MAC",{"$nulls":5},"Smile (SM) INO Dental Voluntary Plan 50/2500/Endo-Perio 50%/No Ortho"]
[null,"5. New Spouse/New Dependant",{"$nulls":12},"Smile (SM) Plus Gold 50/1500/Ortho/U85",{"$nulls":5},"Smile (SM) INO Dental Voluntary Plan 50/2500/Endo-Perio 50%/Ortho"]
[null,"6. Other Qualifying Event",{"$nulls":12},"Smile (SM) Value 50/1500/No Ortho/MAC",{"$nulls":5},"Smile SM In-Network Only Dental Plan 50/1500/Endo-Perio 80%/No Ortho"]
[{"$nulls":14},"Ultimate Dental Plus PPO for Small Business 50/2000",{"$nulls":5},"Smile SM In-Network Only Dental Plan 50/1500/Endo-Perio 80%/Ortho"]
[null,"Off_Exchange (List)",{"$nulls":12},"Ultimate Dental PPO for Small Business 50/2000",{"$nulls":5},"Smile SM In-Network Only Dental Plan 50/2500/Endo-Perio 80%/No Ortho"]
[null,"Bronze Full PPO 3750/65 OffEx",{"$nulls":7},"Waive",{"$nulls":10},"Smile SM In-Network Only Dental Plan 50/2500/Endo-Perio 80%/Ortho"]
[null,"Bronze Full PPO 5700/60 OffEx",{"$nulls":5},"Dental_HMO (List)",null,"Basic",null,"Hourly"]
[null,"Bronze Full PPO Savings 4300/40% OffEx",{"$nulls":5},"DHMO Basic",null,"Multiple of Salary",null,"Weekly"]
[null,"Bronze Full PPO Savings 6550 OffEx",{"$nulls":5},"DHMO Deluxe",null,"Graded",null,"Monthly"]
[null,"Bronze Tandem PPO 3750/65 OffEx",{"$nulls":5},"DHMO Plus",null,"Yes",null,"Yearly"]
[null,"Gold Access+ HMO (R) 1700/35 OffEx",{"$nulls":5},"DHMO Voluntary",null,"No"]
[null,"Gold Access+ HMO (R) 500/35 OffEx",{"$nulls":12},"Ultimate (List)",{"$nulls":5},"Preferred (List)"]
[null,"Gold Full PPO 0/20 OffEx",{"$nulls":6},"EN01 - English","Email",null,"Male",null,null,"Ultimate Vision for Small Business 0/0/120",{"$nulls":5},"Preferred Vision for Small Business 0/0/120"]
[null,"Gold Full PPO 1200/35 OffEx",{"$nulls":6},"SP01 - Spanish","Standard Mail",null,"Female",null,null,"Ultimate Vision for Small Business 0/0/150",{"$nulls":5},"Preferred Vision for Small Business 0/0/150"]
[null,"Gold Full PPO 450/30 OffEx",{"$nulls":6},"CH01 - Chinese","Work Phone",{"$nulls":4},"Ultimate Vision for Small Business 15/25/120",{"$nulls":5},"Preferred Vision for Small Business 15/25/120"]
[null,"Gold Full PPO 750/30 OffEx ",{"$nulls":6},"VI01 - Vietnamese","Home Phone",null,"Same",null,null,"Ultimate Vision for Small Business 15/25/150",{"$nulls":5},"Preferred Vision for Small Business 15/25/150"]
[null,"Gold Local Access+ HMO (R) 1700/35 OffEx",{"$nulls":6},"NS01 - Not Selected",{"$nulls":5},"Ultimate Vision Plus for Small Business 0/0/150/120",{"$nulls":5},"Preferred Vision Plus for Small Business 0/0/150/120"]
[null,"Gold Local Access+ HMO (R) 500/35 OffEx",{"$nulls":12},"Ultimate Vision Plus for Small Business 15/25/150/120",{"$nulls":5},"Preferred Vision Plus for Small Business 15/25/150/120"]
[null,"Gold Tandem PPO 750/30 OffEx",{"$nulls":5},"Single",null,"Group",null,"None",null,null,"Ultimate Vision Voluntary for Small Business 15/25/150",{"$nulls":5},"Preferred Vision Voluntary for Small Business 15/25/120"]
[null,"Gold Trio HMO 1700/35 OffEx",{"$nulls":5},"Married",null,"Individual"]
[null,"Gold Trio HMO 500/35 OffEx ",{"$nulls":5},"Domestic Partner",null,"Medicare",{"$nulls":4},"Enhanced (List)"]
[null,"Platinum Access+ HMO (R) 0/20 OffEx",{"$nulls":7},"Covered Calif/State Exchange",{"$nulls":4},"Enhanced Vision for Small Business 0/0/120"]
[null,"Platinum Access+ HMO (R) 0/25 OffEx",{"$nulls":7},"Other",{"$nulls":4},"Enhanced Vision for Small Business 0/0/150"]
[null,"Platinum Access+ HMO (R) 0/30 OffEx",{"$nulls":12},"Enhanced Vision for Small Business 15/25/120"]
[null,"Platinum Full PPO 0/10 OffEx",{"$nulls":5},"Spouse",null,"Dependent Child",{"$nulls":4},"Enhanced Vision for Small Business 15/25/150"]
[null,"Platinum Full PPO 250/15 OffEx",{"$nulls":5},"Domestic Partner ",null,"Other Dependent Child/Legal Guardianship   ",{"$nulls":4},"Enhanced Vision Plus for Small Business 0/0/150/120"]
[null,"Platinum Local Access+ HMO (R) 0/20 OffEx",{"$nulls":12},"Enhanced Vision Plus for Small Business 15/25/150/120"]
[null,"Platinum Local Access+ HMO (R) 0/25 OffEx",{"$nulls":5},"Termination or reduction in hours (last day worked)",{"$nulls":6},"Enhanced Vision Voluntary for Small Business 15/25/120"]
[null,"Platinum Local Access+ HMO (R) 0/30 OffEx",{"$nulls":5},"Termination or reduction in hours due to disability"]
[null,"Platinum Tandem PPO 0/10 OffEx",{"$nulls":5},"Divorce or legal separation"]
[null,"Platinum Tandem PPO 250/15 OffEx",{"$nulls":5},"Entitlement to Medicare by covered employee"]
[null,"Platinum Trio HMO 0/20 OffEx",{"$nulls":5},"Attainment of maximum age for a dependent child"]
[null,"Platinum Trio HMO 0/25 OffEx ",{"$nulls":5},"Death of covered employee"]
[null,"Platinum Trio HMO 0/30 OffEx ",{"$nulls":5},"Termination of domestic partnership"]
[null,"Silver Access+ HMO (R) 1750/55 OffEx"]
[null,"Silver Full PPO 1700/55 OffEx "]
[null,"Silver Full PPO 2000/45 OffEx"]
[null,"Silver Full PPO Savings 2000/20% OffEx"]
[null,"Silver Local Access+ HMO (R) 1750/55 OffEx"]
[null,"Silver Tandem PPO 1700/55 OffEx"]
[null,"Silver Tandem PPO 2000/45 OffEx"]
[null,"Silver Trio HMO 1750/55 OffEx"]
[]
[]
[]
[null,"DeclineMedical",{"$nulls":6},"ReasonMedical"]
[]
[null,"Myself and all dependents",{"$nulls":5},1,"Enrolling as a dependent on this group health plan"]
[null,"My spouse/Domestic partner only",{"$nulls":5},2,"Covered by this employers other health plan"]
[null,"My Children Only",{"$nulls":5},3,"Covered by another employers health plan"]
[null,"My spouse/Domestic partner and children",{"$nulls":5},4,"Covered by TRICARE"]
[null,"The following dependents only",{"$nulls":5},5,"Covered by an individual health plan"]
[{"$nulls":7},6,"Covered by California or other State Health Exchange"]
[{"$nulls":7},7,"Covered by Medicare, Medi-Cal, or Health Families program"]
[{"$nulls":7},8,"Other"]
[null,"DeclineDental",{"$nulls":6},"ReasonDental"]
[]
[null,"Myself and all dependents",{"$nulls":6},"Covered by another employer's dental plan"]
[null,"My spouse/Domestic partner only",{"$nulls":6},"Enrolling as a dependent on this group dental plan"]
[null,"My Children Only",{"$nulls":6},"Other"]
[null,"My spouse/Domestic partner and children"]
[null,"The following dependents only"]
[]
[]
[null,"DeclineVision",{"$nulls":6},"ReasonVision",{"$nulls":12},"Mirror"]
[]
[null,"Myself and all dependents",{"$nulls":6},"Covered by another employer's vision plan"]
[null,"My spouse/Domestic partner only",{"$nulls":6},"Enrolling as a dependent on this group vision plan"]
[null,"My Children Only",{"$nulls":6},"Other"]
[null,"My spouse/Domestic partner and children"]
[null,"The following dependents only"]
[]
[]
[null,"DeclineLife",{"$nulls":6},"ReasonLife"]
[]
[null,"Myself and all dependents",{"$nulls":6},"Covered by another employer's life insurance coverage"]
[{"$nulls":8},"Other"]
[]
[]
[]
[null,"NoEmployer"]
[]
[null,"1. Covered by an individual health plan"]
[null,"2. Covered California or other State Health Exchange"]
[null,"3. Medicare, Medi-Cal, Healthy Families Programs"]
[null,"4. Other"]
[]
[]
[null,"Subscriber","Spouse","Domestic Partner","Dependent Child","Other Dependent Child - Guardianship"]
[null,"Myself and all dependents","Yes","Yes","Yes","Yes"]
[null,"My spouse/Domestic partner only","No","No","No","No"]
[null,"My Children Only"]
[null,"My spouse/Domestic partner and children"]
[null,"The following dependents only"]
[null,"LifeBasic",{"$nulls":5},"LifeMOS",{"$nulls":3},"DependentAmount",{"$nulls":3},"LifeGraded"]
[{"$nulls":7},"Life/AD&D 1X Salary min $15,000 max $30K",{"$nulls":3},"Dependent Term Life - $1,000"]
[null,"Basic Life and AD&D Insurance - $15,000",{"$nulls":5},"Life/AD&D 1X Salary min $15,000 max $60K",{"$nulls":3},"Dependent Term Life - $2,000",{"$nulls":3},{"$f":"B113","v":"Basic Life and AD&D Insurance - $15,000"}]
[null,"Basic Life and AD&D Insurance - $20,000",{"$nulls":5},"Life/AD&D 1X Salary min $15,000 max $100K",{"$nulls":3},"Dependent Term Life - $3,000",{"$nulls":3},{"$f":"B114","v":"Basic Life and AD&D Insurance - $20,000"}]
[null,"Basic Life and AD&D Insurance - $25,000",{"$nulls":5},"Life/AD&D 1X Salary min $15,000 max $150K",{"$nulls":3},"Dependent Term Life - $4,000",{"$nulls":3},"Basic Life and AD&D Insurance - $25,000"]
[null,"Basic Life and AD&D Insurance - $30,000",{"$nulls":5},"Life/AD&D 1X Salary min $15,000 max $175K",{"$nulls":3},"Dependent Term Life - $5,000",{"$nulls":3},"Basic Life and AD&D Insurance - $30,000"]
[null,"Basic Life and AD&D Insurance - $35,000",{"$nulls":5},"Life/AD&D 1X Salary min $15,000 max $200K",{"$nulls":7},"Basic Life and AD&D Insurance - $35,000"]
[null,"Basic Life and AD&D Insurance - $40,000",{"$nulls":5},"Life/AD&D 2X Salary min $15,000 max $30K",{"$nulls":7},"Basic Life and AD&D Insurance - $40,000"]
[null,"Basic Life and AD&D Insurance - $45,000",{"$nulls":5},"Life/AD&D 2X Salary min $15,000 max $100K",{"$nulls":7},"Basic Life and AD&D Insurance - $45,000"]
[null,"Basic Life and AD&D Insurance - $50,000",{"$nulls":5},"Life/AD&D 2X Salary min $15,000 max $150K",{"$nulls":7},"Basic Life and AD&D Insurance - $50,000"]
[null,"Basic Life and AD&D Insurance - $55,000",{"$nulls":5},"Life/AD&D 2X Salary min $15,000 max $175K",{"$nulls":7},"Basic Life and AD&D Insurance - $55,000"]
[null,"Basic Life and AD&D Insurance - $60,000",{"$nulls":5},"Life/AD&D 2X Salary min $15,000 max $200K",{"$nulls":7},"Basic Life and AD&D Insurance - $60,000"]
[null,"Basic Life and AD&D Insurance - $65,000",{"$nulls":13},"Basic Life and AD&D Insurance - $65,000"]
[null,"Basic Life and AD&D Insurance - $70,000",{"$nulls":13},"Basic Life and AD&D Insurance - $70,000"]
[null,"Basic Life and AD&D Insurance - $75,000",{"$nulls":13},"Basic Life and AD&D Insurance - $75,000"]
[null,"Basic Life and AD&D Insurance - $80,000",{"$nulls":13},"Basic Life and AD&D Insurance - $80,000"]
[null,"Basic Life and AD&D Insurance - $85,000",{"$nulls":13},"Basic Life and AD&D Insurance - $85,000"]
[null,"Basic Life and AD&D Insurance - $90,000",{"$nulls":13},"Basic Life and AD&D Insurance - $90,000"]
[null,"Basic Life and AD&D Insurance - $95,000",{"$nulls":13},"Basic Life and AD&D Insurance - $95,000"]
[null,"Basic Life and AD&D Insurance - $100,000",{"$nulls":13},"Basic Life and AD&D Insurance - $100,000"]
[null,"Basic Life and AD&D Insurance - $105,000",{"$nulls":13},"Basic Life and AD&D Insurance - $105,000"]
[null,"Basic Life and AD&D Insurance - $110,000",{"$nulls":13},"Basic Life and AD&D Insurance - $110,000"]
[null,"Basic Life and AD&D Insurance - $115,000",{"$nulls":13},"Basic Life and AD&D Insurance - $115,000"]
[null,"Basic Life and AD&D Insurance - $120,000",{"$nulls":13},"Basic Life and AD&D Insurance - $120,000"]
[null,"Basic Life and AD&D Insurance - $125,000",{"$nulls":13},"Basic Life and AD&D Insurance - $125,000"]
[null,"Basic Life and AD&D Insurance - $130,000",{"$nulls":13},"Basic Life and AD&D Insurance - $130,000"]
[null,"Basic Life and AD&D Insurance - $135,000",{"$nulls":13},"Basic Life and AD&D Insurance - $135,000"]
[null,"Basic Life and AD&D Insurance - $140,000",{"$nulls":13},"Basic Life and AD&D Insurance - $140,000"]
[null,"Basic Life and AD&D Insurance - $145,000",{"$nulls":13},"Basic Life and AD&D Insurance - $145,000"]
[null,"Basic Life and AD&D Insurance - $150,000",{"$nulls":13},"Basic Life and AD&D Insurance - $150,000"]
[null,"Basic Life and AD&D Insurance - $175,000",{"$nulls":13},"Basic Life and AD&D Insurance - $175,000"]
[null,"Basic Life and AD&D Insurance - $200,000",{"$nulls":13},"Basic Life and AD&D Insurance - $200,000"]
[]
[null,"Subscriber2","Spouse2","Domestic_Partner2","Dependent_Child2","Other_Dependent_Child_-_Guardianship2",null,"States"]
[null,"Enroll","Enroll","Enroll","Enroll","Enroll",null,"AL"]
[null,"ROC",{"$nulls":5},"AK"]
[{"$nulls":7},"AZ"]
[{"$nulls":7},"AR"]
[null,"Subscriber3","Spouse3","Domestic_Partner3","Dependent_Child3","Other_Dependent_Child___Guardianship3",null,"CA"]
[null,"Myself and all dependents","Yes","Yes","Yes","Yes",null,"CO"]
[{"$nulls":7},"CT"]
[null,"Alameda",{"$nulls":5},"DE"]
[null,"Alpine",{"$nulls":5},"DC"]
[null,"Amador",{"$nulls":5},"FL"]
[null,"Butte",{"$nulls":5},"GA"]
[null,"Calaveras",{"$nulls":5},"HI"]
[null,"Colusa",{"$nulls":5},"ID"]
[null,"Contra Costa",{"$nulls":5},"IL"]
[null,"Del Norte",{"$nulls":5},"IN"]
[null,"El Dorado",{"$nulls":5},"IA"]
[null,"Fresno",{"$nulls":5},"KS"]
[null,"Glenn",{"$nulls":5},"KY"]
[null,"Humboldt",{"$nulls":5},"LA"]
[null,"Imperial",{"$nulls":5},"ME"]
[null,"Inyo",{"$nulls":5},"MD"]
[null,"Kern",{"$nulls":5},"MA"]
[null,"Kings",{"$nulls":5},"MI"]
[null,"Lake",{"$nulls":5},"MN"]
[null,"Lassen",{"$nulls":5},"MS"]
[null,"Los Angeles",{"$nulls":5},"MO"]
[null,"Madera",{"$nulls":5},"MT"]
[null,"Marin",{"$nulls":5},"NE"]
[null,"Mariposa",{"$nulls":5},"NV"]
[null,"Mendocino",{"$nulls":5},"NH"]
[null,"Merced",{"$nulls":5},"NJ"]
[null,"Modoc",{"$nulls":5},"NM"]
[null,"Mono",{"$nulls":5},"NY"]
[null,"Monterey",{"$nulls":5},"NC"]
[null,"Napa",{"$nulls":5},"ND"]
[null,"Nevada",{"$nulls":5},"OH"]
[null,"Orange",{"$nulls":5},"OK"]
[null,"Placer",{"$nulls":5},"OR"]
[null,"Plumas",{"$nulls":5},"PA"]
[null,"Riverside",{"$nulls":5},"RI"]
[null,"Sacramento",{"$nulls":5},"SC"]
[null,"San Benito",{"$nulls":5},"SD"]
[null,"San Bernardino",{"$nulls":5},"TN"]
[null,"San Diego",{"$nulls":5},"TX"]
[null,"San Francisco",{"$nulls":5},"UT"]
[null,"San Joaquin",{"$nulls":5},"VT"]
[null,"San Luis Obispo",{"$nulls":5},"VA"]
[null,"San Mateo",{"$nulls":5},"WA"]
[null,"Santa Barbara",{"$nulls":5},"WV"]
[null,"Santa Clara",{"$nulls":5},"WI"]
[null,"Santa Cruz",{"$nulls":5},"WY"]
[null,"Shasta"]
[null,"Sierra"]
[null,"Siskiyou"]
[null,"Solano"]
[null,"Sonoma"]
[null,"Stanislaus"]
[null,"Sutter"]
[null,"Tehama"]
[null,"Trinity"]
[null,"Tulare"]
[null,"Tuolumne"]
[null,"Ventura"]
[null,"Yolo"]
[null,"Yuba"]

{"sheet":"SIC Lookup","index":9,"n_rows":973,"n_cols":8,"rows_kept":973,"hidden":true}
[null,"SIC Lookup"]
[null,"Primary Level:"]
[null,null,{"$f":"VLOOKUP(B3,B12:D21,2,FALSE)","v":{"$error":"#N/A"}},{"$f":"VLOOKUP(B3,B12:D21,3,FALSE)","v":{"$error":"#N/A"}},{"$f":"VLOOKUP(B3,B12:E21,4,FALSE)","v":{"$error":"#N/A"}}]
[null,"Secondary Level:"]
[]
[null,"Detailed Level:"]
[]
[null,"SIC Code:"]
[null,{"$f":"IF(B7=\"\",\"\",VLOOKUP(B7,G23:H507,2,FALSE))","v":""}]
[]
[null,null,0]
[null,"Agriculture, Forestry, And Fishing",1,9,"A"]
[null,"Mining",10,14,"B"]
[null,"Construction",15,17,"C"]
[null,"Manufacturing",20,39,"D"]
[null,"Transportation, Communications, Electric, Gas, And Sanitary Services",40,49,"E"]
[null,"Wholesale Trade",50,51,"F"]
[null,"Retail Trade",52,59,"G"]
[null,"Finance, Insurance, And Real Estate",60,67,"H"]
[null,"Services",70,89,"I"]
[null,"Public Administration",90,99,"J"]
[]
[1,"Agricultural Production - Crops",{"$f":"IF(AND(A23>=$C$3,A23<=$D$3),$E$3&\"-\"&A23,\"\")","v":{"$error":"#N/A"}},null,{"$f":"IF(LEFT(F23,2)=RIGHT(VLOOKUP($B$5,$B$23:$C$104,2,FALSE),2),\"Use\",\"\")","v":{"$error":"#N/A"}},"0100","Agricultural Production-Crops","0100"]
[2,"Agricultural Production - Livestock and Animal Specialties",{"$f":"IF(AND(A24>=$C$3,A24<=$D$3),$E$3&\"-\"&A24,\"\")","v":{"$error":"#N/A"}},null,{"$f":"IF(LEFT(F24,2)=RIGHT(VLOOKUP($B$5,$B$23:$C$104,2,FALSE),2),\"Use\",\"\")","v":{"$error":"#N/A"}},"0200","Agricultural Prod-Livestock & Animal Specialties","0200"]
[7,"Agricultural Services",{"$error":"#N/A"},null,{"$error":"#N/A"},"0700","Agricultural Services","0700"]
[8,"Forestry",{"$error":"#N/A"},null,{"$error":"#N/A"},"0800","Forestry","0800"]
[9,"Fishing, Hunting and Trapping",{"$error":"#N/A"},null,{"$error":"#N/A"},"0900","Fishing, Hunting and Trapping","0900"]
[10,"Metal Mining",{"$error":"#N/A"},null,{"$error":"#N/A"},"1011","Iron Ores","1011"]
[12,"Coal Mining",{"$error":"#N/A"},null,{"$error":"#N/A"},"1021","Copper Ores","1021"]
[13,"Oil and Gas Extraction",{"$error":"#N/A"},null,{"$error":"#N/A"},"1031","Lead and Zinc Ores","1031"]
[14,"Mining and Quarrying of Nonmetallic Minerals, Except Fuels",{"$error":"#N/A"},null,{"$error":"#N/A"},"1041","Gold Ores","1041"]
[15,"Building Cnstrctn - General Contractors & Operative Builders",{"$error":"#N/A"},null,{"$error":"#N/A"},"1044","Silver Ores","1044"]
[16,"Heavy Cnstrctn, Except Building Construction - Contractors",{"$error":"#N/A"},null,{"$error":"#N/A"},"1061","Ferroalloy Ores, Except Vanadium","1061"]
[17,"Construction - Special Trade Contractors",{"$error":"#N/A"},null,{"$error":"#N/A"},"1081","Metal Mining Services","1081"]
[20,"Food and Kindred Products",{"$error":"#N/A"},null,{"$error":"#N/A"},"1094","Uranium-Radium-Vanadium Ores","1094"]
[21,"Tobacco Products",{"$error":"#N/A"},null,{"$error":"#N/A"},"1099","Miscellaneous Metal Ores, Not Elsewhere Classified","1099"]
[22,"Textile Mill Products",{"$error":"#N/A"},null,{"$error":"#N/A"},"1221","Bituminous Coal and Lignite Surface Mining","1221"]
[23,"Apparel, Finished Prdcts from Fabrics & Similar Materials",{"$error":"#N/A"},null,{"$error":"#N/A"},"1222","Bituminous Coal Underground Mining","1222"]
[24,"Lumber and Wood Products, Except Furniture",{"$error":"#N/A"},null,{"$error":"#N/A"},"1231","Anthracite Mining","1231"]
[25,"Furniture and Fixtures",{"$error":"#N/A"},null,{"$error":"#N/A"},"1241","Coal Mining Services","1241"]
[26,"Paper and Allied Products",{"$error":"#N/A"},null,{"$error":"#N/A"},"1311","Crude Petroleum and Natural Gas","1311"]
[27,"Printing, Publishing and Allied Industries",{"$error":"#N/A"},null,{"$error":"#N/A"},"1321","Natural Gas Liquids","1321"]
[28,"Chemicals and Allied Products",{"$error":"#N/A"},null,{"$error":"#N/A"},"1381","Drilling Oil and Gas Wells","1381"]
[29,"Petroleum Refining and Related Industries",{"$error":"#N/A"},null,{"$error":"#N/A"},"1382","Oil and Gas Field Exploration Services","1382"]
[30,"Rubber and Miscellaneous Plastic Products",{"$error":"#N/A"},null,{"$error":"#N/A"},"1389","Oil and Gas Field Services, Not Elsewhere Classified","1389"]
[31,"Leather and Leather Products",{"$error":"#N/A"},null,{"$error":"#N/A"},"1411","Dimension Stone","1411"]
[32,"Stone, Clay, Glass, and Concrete Products",{"$error":"#N/A"},null,{"$error":"#N/A"},"1422","Crushed and Broken Limestone","1422"]
[33,"Primary Metal Industries",{"$error":"#N/A"},null,{"$error":"#N/A"},"1423","Crushed and Broken Granite","1423"]
[34,"Fabricated Metal Prdcts, Except Machinery & Transport Eqpmnt",{"$error":"#N/A"},null,{"$error":"#N/A"},"1429","Crushed and Broken Stone, Not Elsewhere Classified","1429"]
[35,"Industrial and Commercial Machinery and Computer Equipment",{"$error":"#N/A"},null,{"$error":"#N/A"},"1442","Construction Sand and Gravel","1442"]
[36,"Electronic, Elctrcl Eqpmnt & Cmpnts, Excpt Computer Eqpmnt",{"$error":"#N/A"},null,{"$error":"#N/A"},"1446","Industrial Sand","1446"]
[37,"Transportation Equipment",{"$error":"#N/A"},null,{"$error":"#N/A"},"1455","Kaolin and Ball Clay","1455"]
[38,"Mesr/Anlyz/Cntrl Instrmnts; Photo/Med/Opt Gds; Watchs/Clocks",{"$error":"#N/A"},null,{"$error":"#N/A"},"1459","Clay, Ceramic, and Refractory Minerals, Not Elsewhere Classified","1459"]
[39,"Miscellaneous Manufacturing Industries",{"$error":"#N/A"},null,{"$error":"#N/A"},"1474","Potash, Soda, and Borate Minerals","1474"]
[40,"Railroad Transportation",{"$error":"#N/A"},null,{"$error":"#N/A"},"1475","Phosphate Rock","1475"]
[41,"Local, Suburban Transit & Interurbn Hgwy Passenger Transport",{"$error":"#N/A"},null,{"$error":"#N/A"},"1479","Chemical and Fertilizer Mineral Mining, Not Elsewhere Classified","1479"]
[42,"Motor Freight Transportation",{"$error":"#N/A"},null,{"$error":"#N/A"},"1481","Nonmetallic Minerals Services, Except Fuels","1481"]
[43,"United States Postal Service",{"$error":"#N/A"},null,{"$error":"#N/A"},"1499","Miscellaneous Nonmetallic Minerals, Except Fuels","1499"]
[44,"Water Transportation",{"$error":"#N/A"},null,{"$error":"#N/A"},"1521","General Contractors—Single-Family Houses","1521"]
[45,"Transportation by Air",{"$error":"#N/A"},null,{"$error":"#N/A"},"1522","General Contractors—Residential Buildings, Other Than Single-Family","1522"]
[46,"Pipelines, Except Natural Gas",{"$error":"#N/A"},null,{"$error":"#N/A"},"1531","Operative Builders","1531"]
[47,"Transportation Services",{"$error":"#N/A"},null,{"$error":"#N/A"},"1541","General Contractors—Industrial Buildings and Warehouses","1541"]
[48,"Communications",{"$error":"#N/A"},null,{"$error":"#N/A"},"1542","General Contractors—Nonresidential Buildings, Other than Industrial Buildings and Warehouses","1542"]
[49,"Electric, Gas and Sanitary Services",{"$error":"#N/A"},null,{"$error":"#N/A"},"1611","Highway and Street Construction, Except Elevated Highways","1611"]
[50,"Wholesale Trade - Durable Goods",{"$error":"#N/A"},null,{"$error":"#N/A"},"1622","Bridge, Tunnel, and Elevated Highway Construction","1622"]
[51,"Wholesale Trade - Nondurable Goods",{"$error":"#N/A"},null,{"$error":"#N/A"},"1623","Water, Sewer, Pipeline, and Communications and Power Line Construction","1623"]
[52,"Building Matrials, Hrdwr, Garden Supply & Mobile Home Dealrs",{"$error":"#N/A"},null,{"$error":"#N/A"},"1629","Heavy Construction, Not Elsewhere Classified","1629"]
[53,"General Merchandise Stores",{"$error":"#N/A"},null,{"$error":"#N/A"},"1711","Plumbing, Heating and Air-Conditioning","1711"]
[54,"Food Stores",{"$error":"#N/A"},null,{"$error":"#N/A"},"1721","Painting and Paper Hanging","1721"]
[55,"Automotive Dealers and Gasoline Service Stations",{"$error":"#N/A"},null,{"$error":"#N/A"},"1731","Electrical Work","1731"]
[56,"Apparel and Accessory Stores",{"$error":"#N/A"},null,{"$error":"#N/A"},"1741","Masonry, Stone Setting, and Other Stone Work","1741"]
[57,"Home Furniture, Furnishings and Equipment Stores",{"$error":"#N/A"},null,{"$error":"#N/A"},"1742","Plastering, Drywall, Acoustical, and Insulation Work","1742"]
[58,"Eating and Drinking Places",{"$error":"#N/A"},null,{"$error":"#N/A"},"1743","Terrazzo, Tile, Marble, and Mosaic Work","1743"]
[59,"Miscellaneous Retail",{"$error":"#N/A"},null,{"$error":"#N/A"},1751,"Carpentry Work",1751]
[60,"Depository Institutions",{"$error":"#N/A"},null,{"$error":"#N/A"},"1752","Floor Laying and Other Floor Work, Not Elsewhere Classified","1752"]
[61,"Nondepository Credit Institutions",{"$error":"#N/A"},null,{"$error":"#N/A"},"1761","Roofing, Siding, and Sheet Metal Work","1761"]
[62,"Security & Commodity Brokers, Dealers, Exchanges & Services",{"$error":"#N/A"},null,{"$error":"#N/A"},"1771","Concrete Work","1771"]
[63,"Insurance Carriers",{"$error":"#N/A"},null,{"$error":"#N/A"},"1781","Water Well Drilling","1781"]
[64,"Insurance Agents, Brokers and Service",{"$error":"#N/A"},null,{"$error":"#N/A"},"1791","Structural Steel Erection","1791"]
[65,"Real Estate",{"$error":"#N/A"},null,{"$error":"#N/A"},"1793","Glass and Glazing Work","1793"]
[67,"Holding and Other Investment Offices",{"$error":"#N/A"},null,{"$error":"#N/A"},"1794","Excavation Work","1794"]
[70,"Hotels, Rooming Houses, Camps, and Other Lodging Places",{"$error":"#N/A"},null,{"$error":"#N/A"},"1795","Wrecking and Demolition Work","1795"]
[72,"Personal Services",{"$error":"#N/A"},null,{"$error":"#N/A"},"1796","Installation or Erection of Building Equipment, Not Elsewhere","1796"]
[73,"Business Services",{"$error":"#N/A"},null,{"$error":"#N/A"},"1799","Special Trade Contractors, Not Elsewhere Classified","1799"]
[75,"Automotive Repair, Services and Parking",{"$error":"#N/A"},null,{"$error":"#N/A"},"2011","Meat Packing Plants","2011"]
[76,"Miscellaneous Repair Services",{"$error":"#N/A"},null,{"$error":"#N/A"},"2013","Sausages and Other Prepared Meat Products","2013"]
[78,"Motion Pictures",{"$error":"#N/A"},null,{"$error":"#N/A"},"2015","Poultry Slaughtering and Processing","2015"]
[79,"Amusement and Recreation Services",{"$f":"IF(AND(A88>=$C$3,A88<=$D$3),$E$3&\"-\"&A88,\"\")","v":{"$error":"#N/A"}},null,{"$f":"IF(LEFT(F88,2)=RIGHT(VLOOKUP($B$5,$B$23:$C$104,2,FALSE),2),\"Use\",\"\")","v":{"$error":"#N/A"}},"2021","Creamery Butter","2021"]
[80,"Health Services",{"$error":"#N/A"},null,{"$error":"#N/A"},"2022","Natural, Processed, and Imitation Cheese","2022"]
[81,"Legal Services",{"$error":"#N/A"},null,{"$error":"#N/A"},"2023","Dry, Condensed, and Evaporated Dairy Products","2023"]
[82,"Educational Services",{"$error":"#N/A"},null,{"$error":"#N/A"},"2024","Ice Cream and Frozen Desserts","2024"]
[83,"Social Services",{"$error":"#N/A"},null,{"$error":"#N/A"},"2026","Fluid Milk","2026"]
[84,"Museums, Art Galleries and Botanical and Zoological Gardens",{"$error":"#N/A"},null,{"$error":"#N/A"},"2032","Canned Specialties","2032"]
[86,"Membership Organizations",{"$error":"#N/A"},null,{"$error":"#N/A"},"2033","Canned Fruits, Vegetables, Preserves, Jams, and Jellies","2033"]
[87,"Engineering, Accounting, Research, Management & Related Svcs",{"$error":"#N/A"},null,{"$error":"#N/A"},"2034","Dried and Dehydrated Fruits, Vegetables, and Soup Mixes","2034"]
[89,"Services, Not Elsewhere Classified",{"$error":"#N/A"},null,{"$error":"#N/A"},"2035","Pickled Fruits and Vegetables, Vegetable Sauces and Seasonings, and Salad Dressings","2035"]
[91,"Executive, Legislative & General Government, Except Finance",{"$error":"#N/A"},null,{"$error":"#N/A"},"2037","Frozen Fruits, Fruit Juices, and Vegetables","2037"]
[92,"Justice, Public Order and Safety",{"$error":"#N/A"},null,{"$error":"#N/A"},"2038","Frozen Specialties, Not Elsewhere Classified","2038"]
[93,"Public Finance, Taxation and Monetary Policy",{"$error":"#N/A"},null,{"$error":"#N/A"},"2041","Flour and Other Grain Mill Products","2041"]
[94,"Administration of Human Resource Programs",{"$error":"#N/A"},null,{"$error":"#N/A"},"2043","Cereal Breakfast Foods","2043"]
[95,"Administration of Environmental Quality and Housing Programs",{"$error":"#N/A"},null,{"$error":"#N/A"},"2044","Rice Milling","2044"]
[96,"Administration of Economic Programs",{"$error":"#N/A"},null,{"$error":"#N/A"},"2045","Prepared Flour Mixes and Doughs","2045"]
[97,"National Security and International Affairs",{"$error":"#N/A"},null,{"$error":"#N/A"},"2046","Wet Corn Milling","2046"]
[99,"Nonclassifiable Establishments",{"$error":"#N/A"},null,{"$error":"#N/A"},"2047","Dog and Cat Food","2047"]
[{"$nulls":4},{"$error":"#N/A"},"2048","Prepared Feed and Feed Ingredients for Animals and Fowls, Except Dogs and Cats","2048"]
[{"$nulls":4},{"$error":"#N/A"},"2051","Bread and Other Bakery Products, Except Cookies and Crackers","2051"]
[{"$nulls":4},{"$error":"#N/A"},"2052","Cookies and Crackers","2052"]
[{"$nulls":4},{"$error":"#N/A"},"2053","Frozen Bakery Products, Except Bread","2053"]
[{"$nulls":4},{"$error":"#N/A"},"2061","Cane Sugar, Except Refining","2061"]
[{"$nulls":4},{"$error":"#N/A"},"2062","Cane Sugar Refining","2062"]
[{"$nulls":4},{"$error":"#N/A"},"2063","Beet Sugar","2063"]
[{"$nulls":4},{"$error":"#N/A"},"2064","Candy and Other Confectionery Products","2064"]
[{"$nulls":4},{"$error":"#N/A"},"2066","Chocolate and Cocoa Products","2066"]
[{"$nulls":4},{"$error":"#N/A"},"2067","Chewing Gum","2067"]
[{"$nulls":4},{"$error":"#N/A"},"2068","Salted and Roasted Nuts and Seeds","2068"]
[{"$nulls":4},{"$error":"#N/A"},"2074","Cottonseed Oil Mills","2074"]
[{"$nulls":4},{"$error":"#N/A"},"2075","Soybean Oil Mills","2075"]
[{"$nulls":4},{"$error":"#N/A"},"2076","Vegetable Oil Mills, Except Corn, Cottonseed, and Soybean","2076"]
[{"$nulls":4},{"$error":"#N/A"},"2077","Animal and Marine Fats and Oils","2077"]
[{"$nulls":4},{"$error":"#N/A"},"2079","Shortening, Table Oils, Margarine, and Other Edible Fats and Oils, Not Elsewhere Classified","2079"]
[{"$nulls":4},{"$error":"#N/A"},"2082","Malt Beverages","2082"]
[{"$nulls":4},{"$error":"#N/A"},"2083","Malt","2083"]
[{"$nulls":4},{"$error":"#N/A"},"2084","Wines, Brandy, and Brandy Spirits","2084"]
[{"$nulls":4},{"$error":"#N/A"},"2085","Distilled and Blended Liquors","2085"]
[{"$nulls":4},{"$error":"#N/A"},"2086","Bottled and Canned Soft Drinks and Carbonated Waters","2086"]
[{"$nulls":4},{"$error":"#N/A"},"2087","Flavoring Extracts and Flavoring Syrups, Not Elsewhere Classified","2087"]
[{"$nulls":4},{"$error":"#N/A"},"2091","Canned and Cured Fish and Seafoods","2091"]
[{"$nulls":4},{"$error":"#N/A"},"2092","Prepared Fresh or Frozen Fish and Seafoods","2092"]
[{"$nulls":4},{"$error":"#N/A"},"2095","Roasted Coffee","2095"]
[{"$nulls":4},{"$error":"#N/A"},"2096","Potato Chips, Corn Chips, and Similar Snacks","2096"]
[{"$nulls":4},{"$error":"#N/A"},"2097","Manufactured Ice","2097"]
[{"$nulls":4},{"$error":"#N/A"},"2098","Macaroni, Spaghetti, Vermicelli, and Noodles","2098"]
[{"$nulls":4},{"$error":"#N/A"},"2099","Food Preparations, Not Elsewhere Classified","2099"]
[{"$nulls":4},{"$error":"#N/A"},"2111","Cigarettes","2111"]
[{"$nulls":4},{"$error":"#N/A"},"2121","Cigars","2121"]
[{"$nulls":4},{"$error":"#N/A"},"2131","Chewing and Smoking Tobacco and Snuff","2131"]
[{"$nulls":4},{"$error":"#N/A"},"2141","Tobacco Stemming and Redrying","2141"]
[{"$nulls":4},{"$error":"#N/A"},"2211","Broadwoven Fabric Mills, Cotton","2211"]
[{"$nulls":4},{"$error":"#N/A"},"2221","Broadwoven Fabric Mills, Manmade Fiber and Silk","2221"]
[{"$nulls":4},{"$error":"#N/A"},"2231","Broadwoven Fabric Mills, Wool (Including Dyeing and Finishing)","2231"]
[{"$nulls":4},{"$error":"#N/A"},"2241","Narrow Fabric and Other Smallware Mills: Cotton, Wool, Silk, and Manmade Fiber","2241"]
[{"$nulls":4},{"$error":"#N/A"},"2251","Women's Full-Length and Knee-Length Hosiery, Except Socks","2251"]
[{"$nulls":4},{"$error":"#N/A"},"2252","Hosiery, Not Elsewhere Classified","2252"]
[{"$nulls":4},{"$error":"#N/A"},"2253","Knit Outerwear Mills","2253"]
[{"$nulls":4},{"$error":"#N/A"},"2254","Knit Underwear and Nightwear Mills","2254"]
[{"$nulls":4},{"$error":"#N/A"},"2257","Weft Knit Fabric Mills","2257"]
[{"$nulls":4},{"$error":"#N/A"},"2258","Lace and Warp Knit Fabric Mills","2258"]
[{"$nulls":4},{"$error":"#N/A"},"2259","Knitting Mills, Not Elsewhere Classified","2259"]
[{"$nulls":4},{"$error":"#N/A"},"2261","Finishers of Broadwoven Fabrics of Cotton","2261"]
[{"$nulls":4},{"$error":"#N/A"},"2262","Finishers of Broadwoven Fabrics of Manmade Fiber and Silk","2262"]
[{"$nulls":4},{"$error":"#N/A"},"2269","Finishers of Textiles, Not elsewhere Classified","2269"]
[{"$nulls":4},{"$f":"IF(LEFT(F152,2)=RIGHT(VLOOKUP($B$5,$B$23:$C$104,2,FALSE),2),\"Use\",\"\")","v":{"$error":"#N/A"}},"2273","Carpets and Rugs","2273"]
[{"$nulls":4},{"$error":"#N/A"},"2281","Yarn Spinning Mills","2281"]
[{"$nulls":4},{"$error":"#N/A"},"2282","Yarn Texturizing, Throwing, Twisting, and Winding Mills","2282"]
[{"$nulls":4},{"$error":"#N/A"},"2284","Thread Mills","2284"]
[{"$nulls":4},{"$error":"#N/A"},"2295","Coated Fabrics, Not Rubberized","2295"]
[{"$nulls":4},{"$error":"#N/A"},"2296","Tire Cord and Fabrics","2296"]
[{"$nulls":4},{"$error":"#N/A"},"2297","Non-woven Fabrics","2297"]
[{"$nulls":4},{"$error":"#N/A"},"2298","Cordage and Twine","2298"]
[{"$nulls":4},{"$error":"#N/A"},"2299","Textile goods, Not Elsewhere Classified","2299"]
[{"$nulls":4},{"$error":"#N/A"},"2321","Men's and Boys' Shirts, Except Work Shirts","2321"]
[{"$nulls":4},{"$error":"#N/A"},"2322","Men's and Boys' Underwear and Nightwear","2322"]
[{"$nulls":4},{"$error":"#N/A"},"2323","Men's and Boys' Neckwear","2323"]
[{"$nulls":4},{"$error":"#N/A"},"2325","Men's and Boys' Separate Trousers and Slacks","2325"]
[{"$nulls":4},{"$error":"#N/A"},"2326","Men's and Boys' Work Clothing","2326"]
[{"$nulls":4},{"$error":"#N/A"},"2329","Men's and Boys' Clothing, Not Elsewhere Classified","2329"]
[{"$nulls":4},{"$error":"#N/A"},"2331","Women's, Misses', and Juniors' Blouses and Shirts","2331"]
[{"$nulls":4},{"$error":"#N/A"},"2335","Women's, Misses', and Juniors' Dresses","2335"]
[{"$nulls":4},{"$error":"#N/A"},"2337","Women's, Misses', and Juniors' Suits, Skirts, and Coats","2337"]
[{"$nulls":4},{"$error":"#N/A"},"2339","Women's, Misses', and Juniors' Outerwear, Not Elsewhere Classified","2339"]
[{"$nulls":4},{"$error":"#N/A"},"2341","Women's, Misses', Children's, and Infants' Underwear and Nightwear","2341"]
[{"$nulls":4},{"$error":"#N/A"},"2342","Brassieres, Girdles, and Allied Garments","2342"]
[{"$nulls":4},{"$error":"#N/A"},"2353","Hats, Caps, and Millinery","2353"]
[{"$nulls":4},{"$error":"#N/A"},"2361","Girls', Children's, and Infants' Dresses, Blouses, and Shirts","2361"]
[{"$nulls":4},{"$error":"#N/A"},"2369","Girls', Children's, and Infants' Outerwear, Not Elsewhere Classified","2369"]
[{"$nulls":4},{"$error":"#N/A"},"2371","Fur Goods","2371"]
[{"$nulls":4},{"$error":"#N/A"},"2381","Dress and Work Gloves, Except Knit and All-Leather","2381"]
[{"$nulls":4},{"$error":"#N/A"},"2384","Robes and Dressing Gowns","2384"]
[{"$nulls":4},{"$error":"#N/A"},"2385","Waterproof Outerwear","2385"]
[{"$nulls":4},{"$error":"#N/A"},"2386","Leather and Sheep-Lined Clothing","2386"]
[{"$nulls":4},{"$error":"#N/A"},"2387","Apparel belts","2387"]
[{"$nulls":4},{"$error":"#N/A"},"2389","Apparel and Accessories, Not Elsewhere Classified","2389"]
[{"$nulls":4},{"$error":"#N/A"},"2391","Curtains and Draperies","2391"]
[{"$nulls":4},{"$error":"#N/A"},"2392","House furnishing, Except Curtains and Draperies","2392"]
[{"$nulls":4},{"$error":"#N/A"},"2393","Textile Bags","2393"]
[{"$nulls":4},{"$error":"#N/A"},"2394","Canvas and Related Products","2394"]
[{"$nulls":4},{"$error":"#N/A"},"2395","Pleating, Decorative and Novelty Stitching, and Tucking for the Trade","2395"]
[{"$nulls":4},{"$error":"#N/A"},"2396","Automotive Trimmings, Apparel Findings, and Related Products","2396"]
[{"$nulls":4},{"$error":"#N/A"},"2397","Schiffli Machine Embroideries","2397"]
[{"$nulls":4},{"$error":"#N/A"},"2399","Fabricated Textile Products, Not Elsewhere Classified","2399"]
[{"$nulls":4},{"$error":"#N/A"},"2411","Logging","2411"]
[{"$nulls":4},{"$error":"#N/A"},"2421","Sawmills and Planing Mills, General","2421"]
[{"$nulls":4},{"$error":"#N/A"},"2426","Hardwood Dimension and Flooring Mills","2426"]
[{"$nulls":4},{"$error":"#N/A"},"2429","Special Product Sawmills, Not Elsewhere Classified","2429"]
[{"$nulls":4},{"$error":"#N/A"},"2431","Millwork","2431"]
[{"$nulls":4},{"$error":"#N/A"},"2434","Wood Kitchen Cabinets","2434"]
[{"$nulls":4},{"$error":"#N/A"},"2435","Hardwood Veneer and Plywood","2435"]
[{"$nulls":4},{"$error":"#N/A"},"2436","Softwood Veneer and Plywood","2436"]
[{"$nulls":4},{"$error":"#N/A"},"2439","Structural Wood Members, Not Elsewhere Classified","2439"]
[{"$nulls":4},{"$error":"#N/A"},"2441","Nailed and Lock Corner Wood Boxes and Shook","2441"]
[{"$nulls":4},{"$error":"#N/A"},"2448","Wood Pallets and Skids","2448"]
[{"$nulls":4},{"$error":"#N/A"},"2449","Wood Containers, Not Elsewhere Classified","2449"]
[{"$nulls":4},{"$error":"#N/A"},"2451","Mobile Homes","2451"]
[{"$nulls":4},{"$error":"#N/A"},"2452","Prefabricated Wood Buildings and Components","2452"]
[{"$nulls":4},{"$error":"#N/A"},"2491","Wood Preserving","2491"]
[{"$nulls":4},{"$error":"#N/A"},"2493","Reconstituted Wood Products","2493"]
[{"$nulls":4},{"$error":"#N/A"},"2499","Wood Products, Not Elsewhere Classified","2499"]
[{"$nulls":4},{"$error":"#N/A"},"2511","Wood Household Furniture, Except Upholstered","2511"]
[{"$nulls":4},{"$error":"#N/A"},"2512","Wood Household Furniture, Upholstered","2512"]
[{"$nulls":4},{"$error":"#N/A"},"2514","Metal Household Furniture","2514"]
[{"$nulls":4},{"$error":"#N/A"},"2515","Mattresses, Foundations, and Convertible Beds","2515"]
[{"$nulls":4},{"$error":"#N/A"},"2517","Wood Television, Radio, Phonograph, and Sewing Machine Cabinets","2517"]
[{"$nulls":4},{"$error":"#N/A"},"2519","Household Furniture, Not Elsewhere Classified","2519"]
[{"$nulls":4},{"$error":"#N/A"},"2521","Wood Office Furniture","2521"]
[{"$nulls":4},{"$error":"#N/A"},"2522","Office Furniture, Except Wood","2522"]
[{"$nulls":4},{"$f":"IF(LEFT(F216,2)=RIGHT(VLOOKUP($B$5,$B$23:$C$104,2,FALSE),2),\"Use\",\"\")","v":{"$error":"#N/A"}},"2531","Public Building and Related Furniture","2531"]
[{"$nulls":4},{"$error":"#N/A"},"2541","Wood Office and Store Fixtures, Partitions, Shelving, and Lockers","2541"]
[{"$nulls":4},{"$error":"#N/A"},"2542","Office and Store Fixtures, Partitions, Shelving, and Lockers, Except Wood","2542"]
[{"$nulls":4},{"$error":"#N/A"},"2591","Drapery Hardware and Window Blinds and Shades","2591"]
[{"$nulls":4},{"$error":"#N/A"},"2599","Furniture and Fixtures, Not Elsewhere Classified","2599"]
[{"$nulls":4},{"$error":"#N/A"},"2611","Pulp Mills","2611"]
[{"$nulls":4},{"$error":"#N/A"},"2621","Paper Mills","2621"]
[{"$nulls":4},{"$error":"#N/A"},"2631","Paperboard Mills","2631"]
[{"$nulls":4},{"$error":"#N/A"},"2652","Setup Paperboard Boxes","2652"]
[{"$nulls":4},{"$error":"#N/A"},"2653","Corrugated and Solid Fiber Boxes","2653"]
[{"$nulls":4},{"$error":"#N/A"},"2655","Fiber Cans, Tubes, Drums, and Similar Products","2655"]
[{"$nulls":4},{"$error":"#N/A"},"2656","Sanitary Food Containers, Except Folding","2656"]
[{"$nulls":4},{"$error":"#N/A"},"2657","Folding Paperboard Boxes, Including Sanitary","2657"]
[{"$nulls":4},{"$error":"#N/A"},"2671","Packaging Paper and Plastics Film, Coated and Laminated","2671"]
[{"$nulls":4},{"$error":"#N/A"},"2672","Coated and Laminated Paper, Not Elsewhere Classified","2672"]
[{"$nulls":4},{"$error":"#N/A"},"2673","Plastics, Foil, and Coated Paper Bags","2673"]
[{"$nulls":4},{"$error":"#N/A"},"2674","Uncoated Paper and Multiwall Bags","2674"]
[{"$nulls":4},{"$error":"#N/A"},"2675","Die-Cut Paper and Paperboard and Cardboard","2675"]
[{"$nulls":4},{"$error":"#N/A"},"2676","Sanitary Paper Products","2676"]
[{"$nulls":4},{"$error":"#N/A"},"2677","Envelopes","2677"]
[{"$nulls":4},{"$error":"#N/A"},"2678","Stationery, Tablets, and Related Products","2678"]
[{"$nulls":4},{"$error":"#N/A"},"2679","Converted Paper and Paperboard Products, Not Elsewhere Classified","2679"]
[{"$nulls":4},{"$error":"#N/A"},"2711","Newspapers: Publishing, or Publishing and Printing","2711"]
[{"$nulls":4},{"$error":"#N/A"},"2721","Periodicals: Publishing, or Publishing and Printing","2721"]
[{"$nulls":4},{"$error":"#N/A"},"2731","Books: Publishing, or Publishing and Printing","2731"]
[{"$nulls":4},{"$error":"#N/A"},"2732","Book Printing","2732"]
[{"$nulls":4},{"$error":"#N/A"},"2741","Miscellaneous Publishing","2741"]
[{"$nulls":4},{"$error":"#N/A"},"2752","Commercial Printing, Lithographic","2752"]
[{"$nulls":4},{"$error":"#N/A"},"2754","Commercial Printing, Gravure","2754"]
[{"$nulls":4},{"$error":"#N/A"},"2759","Commercial Printing, Not Elsewhere Classified","2759"]
[{"$nulls":4},{"$error":"#N/A"},"2761","Manifold Business Forms","2761"]
[{"$nulls":4},{"$error":"#N/A"},"2771","Greeting Cards","2771"]
[{"$nulls":4},{"$error":"#N/A"},"2782","Blankbooks, Looseleaf Binders and Devices","2782"]
[{"$nulls":4},{"$error":"#N/A"},"2789","Bookbinding and Related Work","2789"]
[{"$nulls":4},{"$error":"#N/A"},"2791","Typesetting","2791"]
[{"$nulls":4},{"$error":"#N/A"},"2796","Platemaking and Related Services","2796"]
[{"$nulls":4},{"$error":"#N/A"},"2812","Alkalies and Chlorine","2812"]
[{"$nulls":4},{"$error":"#N/A"},"2813","Industrial Gases","2813"]
[{"$nulls":4},{"$error":"#N/A"},"2816","Inorganic Pigments","2816"]
[{"$nulls":4},{"$error":"#N/A"},"2819","Industrial Inorganic Chemicals, Not Elsewhere Classified","2819"]
[{"$nulls":4},{"$error":"#N/A"},"2821","Plastics Materials, Synthetic Resins, and Nonvulcanizable Elastomers","2821"]
[{"$nulls":4},{"$error":"#N/A"},"2822","Synthetic Rubber (Vulcanizable Elastomers)","2822"]
[{"$nulls":4},{"$error":"#N/A"},"2823","Cellulosic Manmade Fibers","2823"]
[{"$nulls":4},{"$error":"#N/A"},"2824","Manmade Organic Fibers, Except Cellulosic","2824"]
[{"$nulls":4},{"$error":"#N/A"},"2833","Medicinal Chemicals and Botanical Products","2833"]
[{"$nulls":4},{"$error":"#N/A"},"2834","Pharmaceutical Preparations","2834"]
[{"$nulls":4},{"$error":"#N/A"},"2835","In Vitro and In Vivo Diagnostic Substances","2835"]
[{"$nulls":4},{"$error":"#N/A"},"2836","Biological Products, Except Diagnostic Substances","2836"]
[{"$nulls":4},{"$error":"#N/A"},"2841","Soap and Other Detergents, Except Specialty Cleaners","2841"]
[{"$nulls":4},{"$error":"#N/A"},"2842","Specialty Cleaning, Polishing, and Sanitation Preparations","2842"]
[{"$nulls":4},{"$error":"#N/A"},"2843","Surface Active Agents, Finishing Agents, Sulfonated Oils, and Assistants","2843"]
[{"$nulls":4},{"$error":"#N/A"},"2844","Perfumes, Cosmetics, and Other Toilet Preparations","2844"]
[{"$nulls":4},{"$error":"#N/A"},"2851","Paints, Varnishes, Lacquers, Enamels, and Allied Products","2851"]
[{"$nulls":4},{"$error":"#N/A"},"2861","Gum and Wood Chemicals","2861"]
[{"$nulls":4},{"$error":"#N/A"},"2865","Cyclic Organic Crudes and Intermediates, and Organic Dyes and Pigments","2865"]
[{"$nulls":4},{"$error":"#N/A"},"2869","Industrial Organic Chemicals, Not Elsewhere Classified","2869"]
[{"$nulls":4},{"$error":"#N/A"},"2873","Nitrogenous Fertilizers","2873"]
[{"$nulls":4},{"$error":"#N/A"},"2874","Phosphatic Fertilizers","2874"]
[{"$nulls":4},{"$error":"#N/A"},"2875","Fertilizers, Mixing Only","2875"]
[{"$nulls":4},{"$error":"#N/A"},"2879","Pesticides and Agricultural Chemicals, Not Elsewhere Classified","2879"]
[{"$nulls":4},{"$error":"#N/A"},"2891","Adhesives and Sealants","2891"]
[{"$nulls":4},{"$error":"#N/A"},"2892","Explosives","2892"]
[{"$nulls":4},{"$error":"#N/A"},"2893","Printing Ink","2893"]
[{"$nulls":4},{"$error":"#N/A"},"2895","Carbon Black","2895"]
[{"$nulls":4},{"$f":"IF(LEFT(F280,2)=RIGHT(VLOOKUP($B$5,$B$23:$C$104,2,FALSE),2),\"Use\",\"\")","v":{"$error":"#N/A"}},"2899","Chemicals and Chemical Preparations, Not Elsewhere Classified","2899"]
[{"$nulls":4},{"$error":"#N/A"},"2911","Petroleum Refining","2911"]
[{"$nulls":4},{"$error":"#N/A"},"2951","Asphalt Paving Mixtures and Blocks","2951"]
[{"$nulls":4},{"$error":"#N/A"},"2952","Asphalt Felts and Coatings","2952"]
[{"$nulls":4},{"$error":"#N/A"},"2992","Lubricating Oils and Greases","2992"]
[{"$nulls":4},{"$error":"#N/A"},"2999","Products of Petroleum and Coal, Not Elsewhere Classified","2999"]
[{"$nulls":4},{"$error":"#N/A"},"3011","Tires and Inner Tubes","3011"]
[{"$nulls":4},{"$error":"#N/A"},"3021","Rubber and Plastics Footwear","3021"]
[{"$nulls":4},{"$error":"#N/A"},"3052","Rubber and Plastics Hose and Belting","3052"]
[{"$nulls":4},{"$error":"#N/A"},"3053","Gaskets, Packing, and Sealing Devices","3053"]
[{"$nulls":4},{"$error":"#N/A"},"3061","Molded, Extruded, and Lathe-Cut Mechanical Rubber Goods","3061"]
[{"$nulls":4},{"$error":"#N/A"},"3069","Fabricated Rubber Products, Not Elsewhere Classified","3069"]
[{"$nulls":4},{"$error":"#N/A"},"3081","Unsupported Plastics Film and Sheet","3081"]
[{"$nulls":4},{"$error":"#N/A"},"3082","Unsupported Plastics Profile Shapes","3082"]
[{"$nulls":4},{"$error":"#N/A"},"3083","Laminated Plastics Plate, Sheet, and Profile Shapes","3083"]
[{"$nulls":4},{"$error":"#N/A"},"3084","Plastics Pipe","3084"]
[{"$nulls":4},{"$error":"#N/A"},"3085","Plastics Bottles","3085"]
[{"$nulls":4},{"$error":"#N/A"},"3086","Plastics Foam Products","3086"]
[{"$nulls":4},{"$error":"#N/A"},"3087","Custom Compounding of Purchased Plastics Resins","3087"]
[{"$nulls":4},{"$error":"#N/A"},"3088","Plastics Plumbing Fixtures","3088"]
[{"$nulls":4},{"$error":"#N/A"},"3089","Plastics Products, Not Elsewhere Classified","3089"]
[{"$nulls":4},{"$error":"#N/A"},"3111","Leather Tanning and Finishing","3111"]
[{"$nulls":4},{"$error":"#N/A"},"3131","Boot and Shoe Cut Stock and Findings","3131"]
[{"$nulls":4},{"$error":"#N/A"},"3142","House Slippers","3142"]
[{"$nulls":4},{"$error":"#N/A"},"3143","Men's Footwear, Except Athletic","3143"]
[{"$nulls":4},{"$error":"#N/A"},"3144","Women's Footwear, Except Athletic","3144"]
[{"$nulls":4},{"$error":"#N/A"},"3149","Footwear, Except Rubber, Not Elsewhere Classified","3149"]
[{"$nulls":4},{"$error":"#N/A"},"3151","Leather Gloves and Mittens","3151"]
[{"$nulls":4},{"$error":"#N/A"},"3161","Luggage","3161"]
[{"$nulls":4},{"$error":"#N/A"},"3171","Women's Handbags and Purses","3171"]
[{"$nulls":4},{"$error":"#N/A"},"3172","Personal Leather Goods, Except Women's Handbags and Purses","3172"]
[{"$nulls":4},{"$error":"#N/A"},"3199","Leather Goods, Not Elsewhere Classified","3199"]
[{"$nulls":4},{"$error":"#N/A"},"3211","Flat Glass","3211"]
[{"$nulls":4},{"$error":"#N/A"},"3221","Glass Containers","3221"]
[{"$nulls":4},{"$error":"#N/A"},"3229","Pressed and Blown Glass and Glassware, Not Elsewhere Classified","3229"]
[{"$nulls":4},{"$error":"#N/A"},"3231","Glass Products, Made of Purchased Glass","3231"]
[{"$nulls":4},{"$error":"#N/A"},"3241","Cement, Hydraulic","3241"]
[{"$nulls":4},{"$error":"#N/A"},"3251","Brick and Structural Clay Tile","3251"]
[{"$nulls":4},{"$error":"#N/A"},"3253","Ceramic Wall and Floor Tile","3253"]
[{"$nulls":4},{"$error":"#N/A"},"3255","Clay Refractories","3255"]
[{"$nulls":4},{"$error":"#N/A"},"3259","Structural Clay Products, Not Elsewhere Classified","3259"]
[{"$nulls":4},{"$error":"#N/A"},"3261","Vitreous China Plumbing Fixtures and China and Earthenware Fittings and Bathroom Accessories","3261"]
[{"$nulls":4},{"$error":"#N/A"},"3262","Vitreous China Table and Kitchen Articles","3262"]
[{"$nulls":4},{"$error":"#N/A"},"3263","Fine Earthenware (Whiteware) Table and Kitchen Articles","3263"]
[{"$nulls":4},{"$error":"#N/A"},"3264","Porcelain Electrical Supplies","3264"]
[{"$nulls":4},{"$error":"#N/A"},"3269","Pottery Products, Not Elsewhere Classified","3269"]
[{"$nulls":4},{"$error":"#N/A"},"3271","Concrete Block and Brick","3271"]
[{"$nulls":4},{"$error":"#N/A"},"3272","Concrete Products, Except Block and Brick","3272"]
[{"$nulls":4},{"$error":"#N/A"},"3273","Ready-Mixed Concrete","3273"]
[{"$nulls":4},{"$error":"#N/A"},"3274","Lime","3274"]
[{"$nulls":4},{"$error":"#N/A"},"3275","Gypsum Products","3275"]
[{"$nulls":4},{"$error":"#N/A"},"3281","Cut Stone and Stone Products","3281"]
[{"$nulls":4},{"$error":"#N/A"},"3291","Abrasive Products","3291"]
[{"$nulls":4},{"$error":"#N/A"},"3292","Asbestos Products","3292"]
[{"$nulls":4},{"$error":"#N/A"},"3295","Minerals and Earths, Ground or Otherwise Treated","3295"]
[{"$nulls":4},{"$error":"#N/A"},"3296","Mineral Wool","3296"]
[{"$nulls":4},{"$error":"#N/A"},"3297","Nonclay Refractories","3297"]
[{"$nulls":4},{"$error":"#N/A"},"3299","Nonmetallic Mineral Products, Not Elsewhere Classified","3299"]
[{"$nulls":4},{"$error":"#N/A"},"3312","Steel Works, Blast Furnaces (Including Coke Ovens), and Rolling Mills","3312"]
[{"$nulls":4},{"$error":"#N/A"},"3313","Electrometallurgical Products, Except Steel","3313"]
[{"$nulls":4},{"$error":"#N/A"},"3315","Steel Wiredrawing and Steel Nails and Spikes","3315"]
[{"$nulls":4},{"$error":"#N/A"},"3316","Cold-Rolled Steel Sheet, Strip, and Bars","3316"]
[{"$nulls":4},{"$error":"#N/A"},"3317","Steel Pipe and Tubes","3317"]
[{"$nulls":4},{"$error":"#N/A"},"3321","Gray and Ductile Iron Foundries","3321"]
[{"$nulls":4},{"$f":"IF(LEFT(F344,2)=RIGHT(VLOOKUP($B$5,$B$23:$C$104,2,FALSE),2),\"Use\",\"\")","v":{"$error":"#N/A"}},"3322","Malleable Iron Foundries","3322"]
[{"$nulls":4},{"$error":"#N/A"},"3324","Steel Investment Foundries","3324"]
[{"$nulls":4},{"$error":"#N/A"},"3325","Steel Foundries, Not Elsewhere Classified","3325"]
[{"$nulls":4},{"$error":"#N/A"},"3331","Primary Smelting and Refining of Copper","3331"]
[{"$nulls":4},{"$error":"#N/A"},"3334","Primary Production of Aluminum","3334"]
[{"$nulls":4},{"$error":"#N/A"},"3339","Primary Smelting and Refining of Nonferrous Metals, Except Copper and Aluminum","3339"]
[{"$nulls":4},{"$error":"#N/A"},"3341","Secondary Smelting and Refining of Nonferrous Metals","3341"]
[{"$nulls":4},{"$error":"#N/A"},"3351","Rolling, Drawing, and Extruding Of Copper","3351"]
[{"$nulls":4},{"$error":"#N/A"},"3353","Aluminum Sheet, Plate, and Foil","3353"]
[{"$nulls":4},{"$error":"#N/A"},"3354","Aluminum Extruded Products","3354"]
[{"$nulls":4},{"$error":"#N/A"},"3355","Aluminum Rolling and Drawing, Not Elsewhere Classified","3355"]
[{"$nulls":4},{"$error":"#N/A"},"3356","Rolling, Drawing, and Extruding of Nonferrous Metals, Except Copper and Aluminum","3356"]
[{"$nulls":4},{"$error":"#N/A"},"3357","Drawing and Insulating of Nonferrous Wire","3357"]
[{"$nulls":4},{"$error":"#N/A"},"3363","Aluminum Die-Castings","3363"]
[{"$nulls":4},{"$error":"#N/A"},"3364","Nonferrous Die-Castings, Except Aluminum","3364"]
[{"$nulls":4},{"$error":"#N/A"},"3365","Aluminum Foundries","3365"]
[{"$nulls":4},{"$error":"#N/A"},"3366","Copper Foundries","3366"]
[{"$nulls":4},{"$error":"#N/A"},"3369","Nonferrous Foundries, Except Aluminum and Copper","3369"]
[{"$nulls":4},{"$error":"#N/A"},"3398","Metal Heat Treating","3398"]
[{"$nulls":4},{"$error":"#N/A"},"3399","Primary Metal Products, Not Elsewhere Classified","3399"]
[{"$nulls":4},{"$error":"#N/A"},"3411","Metal Cans","3411"]
[{"$nulls":4},{"$error":"#N/A"},"3412","Metal Shipping Barrels, Drums, Kegs, and Pails","3412"]
[{"$nulls":4},{"$error":"#N/A"},"3421","Cutlery","3421"]
[{"$nulls":4},{"$error":"#N/A"},"3423","Hand and Edge Tools, Except Machine Tools and Handsaws","3423"]
[{"$nulls":4},{"$error":"#N/A"},"3425","Saw Blades and Handsaws","3425"]
[{"$nulls":4},{"$error":"#N/A"},"3429","Hardware, Not Elsewhere Classified","3429"]
[{"$nulls":4},{"$error":"#N/A"},"3431","Enameled Iron and Metal Sanitary Ware","3431"]
[{"$nulls":4},{"$error":"#N/A"},"3432","Plumbing Fixture Fittings and Trim","3432"]
[{"$nulls":4},{"$error":"#N/A"},"3433","Heating Equipment, Except Electric and Warm Air Furnaces","3433"]
[{"$nulls":4},{"$error":"#N/A"},"3441","Fabricated Structural Metal","3441"]
[{"$nulls":4},{"$error":"#N/A"},"3442","Metal Doors, Sash, Frames, Molding, and Trim Manufacturing","3442"]
[{"$nulls":4},{"$error":"#N/A"},"3443","Fabricated Plate Work (Boiler Shops)","3443"]
[{"$nulls":4},{"$error":"#N/A"},"3444","Sheet Metal Work","3444"]
[{"$nulls":4},{"$error":"#N/A"},"3446","Architectural and Ornamental Metal Work","3446"]
[{"$nulls":4},{"$error":"#N/A"},"3448","Prefabricated Metal Buildings and Components","3448"]
[{"$nulls":4},{"$error":"#N/A"},"3449","Miscellaneous Structural Metal Work","3449"]
[{"$nulls":4},{"$error":"#N/A"},"3451","Screw Machine Products","3451"]
[{"$nulls":4},{"$error":"#N/A"},"3452","Bolts, Nuts, Screws, Rivets, and Washers","3452"]
[{"$nulls":4},{"$error":"#N/A"},"3462","Iron and Steel Forgings","3462"]
[{"$nulls":4},{"$error":"#N/A"},"3463","Nonferrous Forgings","3463"]
[{"$nulls":4},{"$error":"#N/A"},"3465","Automotive Stampings","3465"]
[{"$nulls":4},{"$error":"#N/A"},"3466","Crowns and Closures","3466"]
[{"$nulls":4},{"$error":"#N/A"},"3469","Metal Stampings, Not Elsewhere Classified","3469"]
[{"$nulls":4},{"$error":"#N/A"},"3471","Electroplating, Plating, Polishing, Anodizing, and Coloring","3471"]
[{"$nulls":4},{"$error":"#N/A"},"3479","Coating, Engraving, and Allied Services, Not Elsewhere Classified","3479"]
[{"$nulls":4},{"$error":"#N/A"},"3482","Small Arms Ammunition","3482"]
[{"$nulls":4},{"$error":"#N/A"},"3483","Ammunition, Except for Small Arms","3483"]
[{"$nulls":4},{"$error":"#N/A"},"3484","Small Arms","3484"]
[{"$nulls":4},{"$error":"#N/A"},"3489","Ordnance and Accessories, Not Elsewhere Classified","3489"]
[{"$nulls":4},{"$error":"#N/A"},"3491","Industrial Valves","3491"]
[{"$nulls":4},{"$error":"#N/A"},"3492","Fluid Power Valves and Hose Fittings","3492"]
[{"$nulls":4},{"$error":"#N/A"},"3493","Steel Springs, Except Wire","3493"]
[{"$nulls":4},{"$error":"#N/A"},"3494","Valves and Pipe Fittings, Not Elsewhere Classified","3494"]
[{"$nulls":4},{"$error":"#N/A"},"3495","Wire Springs","3495"]
[{"$nulls":4},{"$error":"#N/A"},"3496","Miscellaneous Fabricated Wire Products","3496"]
[{"$nulls":4},{"$error":"#N/A"},"3497","Metal Foil and Leaf","3497"]
[{"$nulls":4},{"$error":"#N/A"},"3498","Fabricated Pipe and Pipe Fittings","3498"]
[{"$nulls":4},{"$error":"#N/A"},"3499","Fabricated Metal Products, Not Elsewhere Classified","3499"]
[{"$nulls":4},{"$error":"#N/A"},"3511","Steam, Gas, and Hydraulic Turbines, and Turbine Generator Set Units","3511"]
[{"$nulls":4},{"$error":"#N/A"},"3519","Internal Combustion Engines, Not Elsewhere Classified","3519"]
[{"$nulls":4},{"$error":"#N/A"},"3523","Farm Machinery and Equipment","3523"]
[{"$nulls":4},{"$error":"#N/A"},"3524","Lawn and Garden Tractors and Home Lawn and Garden Equipment","3524"]
[{"$nulls":4},{"$error":"#N/A"},"3531","Construction Machinery and Equipment","3531"]
[{"$nulls":4},{"$error":"#N/A"},"3532","Mining Machinery and Equipment, Except Oil and Gas Field Machinery and Equipment","3532"]
[{"$nulls":4},{"$f":"IF(LEFT(F408,2)=RIGHT(VLOOKUP($B$5,$B$23:$C$104,2,FALSE),2),\"Use\",\"\")","v":{"$error":"#N/A"}},"3533","Oil and Gas Field Machinery and Equipment","3533"]
[{"$nulls":4},{"$error":"#N/A"},"3534","Elevators and Moving Stairways","3534"]
[{"$nulls":4},{"$error":"#N/A"},"3535","Conveyors and Conveying Equipment","3535"]
[{"$nulls":4},{"$error":"#N/A"},"3536","Overhead Traveling Cranes, Hoists, and Monorail Systems","3536"]
[{"$nulls":4},{"$error":"#N/A"},"3537","Industrial Trucks, Tractors, Trailers, and Stackers","3537"]
[{"$nulls":4},{"$error":"#N/A"},"3541","Machine Tools, Metal Cutting Types","3541"]
[{"$nulls":4},{"$error":"#N/A"},"3542","Machine Tools, Metal Forming Types","3542"]
[{"$nulls":4},{"$error":"#N/A"},"3543","Industrial Patterns","3543"]
[{"$nulls":4},{"$error":"#N/A"},"3544","Special Dies and Tools, Die Sets, Jigs and Fixtures, and Industrial Molds","3544"]
[{"$nulls":4},{"$error":"#N/A"},"3545","Cutting Tools, Machine Tool Accessories, and Machinists' Precision Measuring Devices","3545"]
[{"$nulls":4},{"$error":"#N/A"},"3546","Power-Driven Handtools","3546"]
[{"$nulls":4},{"$error":"#N/A"},"3547","Rolling Mill Machinery and Equipment","3547"]
[{"$nulls":4},{"$error":"#N/A"},"3548","Electric and Gas Welding and Soldering Equipment","3548"]
[{"$nulls":4},{"$error":"#N/A"},"3549","Metalworking Machinery, Not Elsewhere Classified","3549"]
[{"$nulls":4},{"$error":"#N/A"},"3552","Textile Machinery","3552"]
[{"$nulls":4},{"$error":"#N/A"},"3553","Woodworking Machinery","3553"]
[{"$nulls":4},{"$error":"#N/A"},"3554","Paper Industries Machinery","3554"]
[{"$nulls":4},{"$error":"#N/A"},"3555","Printing Trades Machinery and Equipment","3555"]
[{"$nulls":4},{"$error":"#N/A"},"3556","Food Products Machinery","3556"]
[{"$nulls":4},{"$error":"#N/A"},"3559","Special Industry Machinery, Not Elsewhere Classified","3559"]
[{"$nulls":4},{"$error":"#N/A"},"3561","Pumps and Pumping Equipment","3561"]
[{"$nulls":4},{"$error":"#N/A"},"3562","Ball and Roller Bearings","3562"]
[{"$nulls":4},{"$error":"#N/A"},"3563","Air and Gas Compressors","3563"]
[{"$nulls":4},{"$error":"#N/A"},"3564","Industrial and Commercial Fans and Blowers and Air Purification Equipment","3564"]
[{"$nulls":4},{"$error":"#N/A"},"3565","Packaging Machinery","3565"]
[{"$nulls":4},{"$error":"#N/A"},"3566","Speed Changers, Industrial High-Speed Drives, and Gears","3566"]
[{"$nulls":4},{"$error":"#N/A"},"3567","Industrial Process Furnaces and Ovens","3567"]
[{"$nulls":4},{"$error":"#N/A"},"3568","Mechanical Power Transmission Equipment, Not Elsewhere Classified","3568"]
[{"$nulls":4},{"$error":"#N/A"},"3569","General Industrial Machinery and Equipment, Not Elsewhere","3569"]
[{"$nulls":4},{"$error":"#N/A"},"3571","Electronic Computers","3571"]
[{"$nulls":4},{"$error":"#N/A"},"3572","Computer Storage Devices","3572"]
[{"$nulls":4},{"$error":"#N/A"},"3575","Computer Terminals","3575"]
[{"$nulls":4},{"$error":"#N/A"},"3577","Computer Peripheral Equipment, Not Elsewhere Classified","3577"]
[{"$nulls":4},{"$error":"#N/A"},"3578","Calculating and Accounting Machines, Except Electronic Computers","3578"]
[{"$nulls":4},{"$error":"#N/A"},"3579","Office Machines, Not Elsewhere Classified","3579"]
[{"$nulls":4},{"$error":"#N/A"},"3581","Automatic Vending Machines","3581"]
[{"$nulls":4},{"$error":"#N/A"},"3582","Commercial Laundry, Drycleaning, and Pressing Machines","3582"]
[{"$nulls":4},{"$error":"#N/A"},"3585","Air-Conditioning and Warm Air Heating Equipment and Commercial and Industrial Refrigeration Equipment","3585"]
[{"$nulls":4},{"$error":"#N/A"},"3586","Measuring and Dispensing Pumps","3586"]
[{"$nulls":4},{"$error":"#N/A"},"3589","Service Industry Machinery, Not Elsewhere Classified","3589"]
[{"$nulls":4},{"$error":"#N/A"},"3592","Carburetors, Pistons, Piston Rings, and Valves","3592"]
[{"$nulls":4},{"$error":"#N/A"},"3593","Fluid Power Cylinders and Actuators","3593"]
[{"$nulls":4},{"$error":"#N/A"},"3594","Fluid Power Pumps and Motors","3594"]
[{"$nulls":4},{"$error":"#N/A"},"3596","Scales and Balances, Except Laboratory","3596"]
[{"$nulls":4},{"$error":"#N/A"},"3599","Industrial and Commercial Machinery and Equipment, Not Elsewhere Classified","3599"]
[{"$nulls":4},{"$error":"#N/A"},"3612","Power, Distribution, and Specialty Transformers","3612"]
[{"$nulls":4},{"$error":"#N/A"},"3613","Switchgear and Switchboard Apparatus","3613"]
[{"$nulls":4},{"$error":"#N/A"},"3621","Motors and Generators","3621"]
[{"$nulls":4},{"$error":"#N/A"},"3624","Carbon and Graphite Products","3624"]
[{"$nulls":4},{"$error":"#N/A"},"3625","Relays and Industrial Controls","3625"]
[{"$nulls":4},{"$error":"#N/A"},"3629","Electrical Industrial Apparatus, Not Elsewhere Classified","3629"]
[{"$nulls":4},{"$error":"#N/A"},"3631","Household Cooking Equipment","3631"]
[{"$nulls":4},{"$error":"#N/A"},"3632","Household Refrigerators and HOme and Farm Freezers","3632"]
[{"$nulls":4},{"$error":"#N/A"},"3633","Household Laundry Equipment","3633"]
[{"$nulls":4},{"$error":"#N/A"},"3634","Electric Housewares and Fans","3634"]
[{"$nulls":4},{"$error":"#N/A"},"3635","Household Vacuum Cleaners","3635"]
[{"$nulls":4},{"$error":"#N/A"},"3639","Household Appliances, Not Elsewhere Classified","3639"]
[{"$nulls":4},{"$error":"#N/A"},"3641","Electric Lamp Bulbs and Tubes","3641"]
[{"$nulls":4},{"$error":"#N/A"},"3643","Current-Carrying Wiring Devices","3643"]
[{"$nulls":4},{"$error":"#N/A"},"3644","Noncurrent-Carrying Wiring Devices","3644"]
[{"$nulls":4},{"$error":"#N/A"},"3645","Residential Electric Lighting Fixtures","3645"]
[{"$nulls":4},{"$error":"#N/A"},"3646","Commercial, Industrial, and Institutional Electric Lighting Fixtures","3646"]
[{"$nulls":4},{"$error":"#N/A"},"3647","Vehicular Lighting Equipment","3647"]
[{"$nulls":4},{"$error":"#N/A"},"3648","Lighting Equipment, Not Elsewhere Classified","3648"]
[{"$nulls":4},{"$f":"IF(LEFT(F472,2)=RIGHT(VLOOKUP($B$5,$B$23:$C$104,2,FALSE),2),\"Use\",\"\")","v":{"$error":"#N/A"}},"3651","Household Audio and Video Equipment","3651"]
[{"$nulls":4},{"$error":"#N/A"},"3652","Phonograph Records and Prerecorded Audio Tapes and Disks","3652"]
[{"$nulls":4},{"$error":"#N/A"},"3661","Telephone and Telegraph Apparatus","3661"]
[{"$nulls":4},{"$error":"#N/A"},"3663","Radio and Television Broadcasting and Communications Equipment","3663"]
[{"$nulls":4},{"$error":"#N/A"},"3669","Communications Equipment, Not Elsewhere Classified","3669"]
[{"$nulls":4},{"$error":"#N/A"},"3671","Electron Tubes","3671"]
[{"$nulls":4},{"$error":"#N/A"},"3672","Printed Circuit Boards","3672"]
[{"$nulls":4},{"$error":"#N/A"},"3674","Semiconductors and Related Devices","3674"]
[{"$nulls":4},{"$error":"#N/A"},"3675","Electronic Capacitors","3675"]
[{"$nulls":4},{"$error":"#N/A"},"3676","Electronic Resistors","3676"]
[{"$nulls":4},{"$error":"#N/A"},"3677","Electronic Coils, Transformers, and Other Inductors","3677"]
[{"$nulls":4},{"$error":"#N/A"},"3678","Electronic Connectors","3678"]
[{"$nulls":4},{"$error":"#N/A"},"3679","Electronic Components, Not Elsewhere Classified","3679"]
[{"$nulls":4},{"$error":"#N/A"},"3691","Storage Batteries","3691"]
[{"$nulls":4},{"$error":"#N/A"},"3692","Primary Batteries, Dry and Wet","3692"]
[{"$nulls":4},{"$error":"#N/A"},"3694","Electrical Equipment for Internal Combustion Engines","3694"]
[{"$nulls":4},{"$error":"#N/A"},"3695","Magnetic And Optical Recording Media","3695"]
[{"$nulls":4},{"$error":"#N/A"},"3699","Electrical Machinery, Equipment, and Supplies, Not Elsewhere","3699"]
[{"$nulls":4},{"$error":"#N/A"},"3711","Motor Vehicles and Passenger Car Bodies","3711"]
[{"$nulls":4},{"$error":"#N/A"},"3713","Truck and Bus Bodies","3713"]
[{"$nulls":4},{"$error":"#N/A"},"3714","Motor Vehicle Parts and Accessories","3714"]
[{"$nulls":4},{"$error":"#N/A"},"3715","Truck Trailers","3715"]
[{"$nulls":4},{"$error":"#N/A"},"3716","Motor Homes","3716"]
[{"$nulls":4},{"$error":"#N/A"},"3721","Aircraft","3721"]
[{"$nulls":4},{"$error":"#N/A"},"3724","Aircraft Engines and Engine Parts","3724"]
[{"$nulls":4},{"$error":"#N/A"},"3728","Aircraft Parts and Auxiliary Equipment, Not Elsewhere Classified","3728"]
[{"$nulls":4},{"$error":"#N/A"},"3731","Ship Building and Repairing","3731"]
[{"$nulls":4},{"$error":"#N/A"},"3732","Boat Building and Repairing","3732"]
[{"$nulls":4},{"$error":"#N/A"},"3743","Railroad Equipment","3743"]
[{"$nulls":4},{"$error":"#N/A"},"3751","Motorcycles, Bicycles, and Parts","3751"]
[{"$nulls":4},{"$error":"#N/A"},"3761","Guided Missiles and Space Vehicles","3761"]
[{"$nulls":4},{"$error":"#N/A"},"3764","Guided Missile and Space Vehicle Propulsion Units and Propulsion Unit Parts","3764"]
[{"$nulls":4},{"$error":"#N/A"},"3769","Guided Missile Space Vehicle Parts and Auxiliary Equipment, Not Elsewhere Classified","3769"]
[{"$nulls":4},{"$error":"#N/A"},"3792","Travel Trailers and Campers","3792"]
[{"$nulls":4},{"$error":"#N/A"},"3795","Tanks and Tank Components","3795"]
[{"$nulls":4},{"$error":"#N/A"},"3799","Transportation Equipment, Not Elsewhere Classified","3799"]
[{"$nulls":4},{"$error":"#N/A"},"3812","Search, Detection, Navigation, Guidance, Aeronautical, and Nautical Systems and Instruments","3812"]
[{"$nulls":4},{"$error":"#N/A"},"3821","Laboratory Apparatus and Furniture","3821"]
[{"$nulls":4},{"$error":"#N/A"},"3822","Automatic Controls for Regulating Residential and Commercial Environments and Appliances","3822"]
[{"$nulls":4},{"$error":"#N/A"},"3823","Industrial Instruments for Measurement, Display, and Control of Process Variables; and Related Products","3823"]
[{"$nulls":4},{"$error":"#N/A"},"3824","Totalizing Fluid Meters and Counting Devices","3824"]
[{"$nulls":4},{"$error":"#N/A"},"3825","Instruments for Measuring and Testing of Electricity and Electrical Signals","3825"]
[{"$nulls":4},{"$error":"#N/A"},"3826","Laboratory Analytical Instruments","3826"]
[{"$nulls":4},{"$error":"#N/A"},"3827","Optical Instruments and Lenses","3827"]
[{"$nulls":4},{"$error":"#N/A"},"3829","Measuring and Controlling Devices, Not Elsewhere Classified","3829"]
[{"$nulls":4},{"$error":"#N/A"},"3841","Surgical and Medical Instruments and Apparatus","3841"]
[{"$nulls":4},{"$error":"#N/A"},"3842","Orthopedic, Prosthetic, and Surgical Appliances and Supplies","3842"]
[{"$nulls":4},{"$error":"#N/A"},"3843","Dental Equipment and Supplies","3843"]
[{"$nulls":4},{"$error":"#N/A"},"3844","X-Ray Apparatus and Tubes and Related Irradiation Apparatus","3844"]
[{"$nulls":4},{"$error":"#N/A"},"3845","Electromedical and Electrotherapeutic Apparatus","3845"]
[{"$nulls":4},{"$error":"#N/A"},"3851","Ophthalmic Goods","3851"]
[{"$nulls":4},{"$error":"#N/A"},"3861","Photographic Equipment and Supplies","3861"]
[{"$nulls":4},{"$error":"#N/A"},"3873","Watches, Clocks, Clockwork Operated Devices, and Parts","3873"]
[{"$nulls":4},{"$error":"#N/A"},"3911","Jewelry, Precious Metal","3911"]
[{"$nulls":4},{"$error":"#N/A"},"3914","Silverware, Plated Ware, and Stainless Steel Ware","3914"]
[{"$nulls":4},{"$error":"#N/A"},"3915","Jewelers' Findings and Materials, and Lapidary Work","3915"]
[{"$nulls":4},{"$error":"#N/A"},"3931","Musical Instruments","3931"]
[{"$nulls":4},{"$error":"#N/A"},"3942","Dolls and Stuffed Toys","3942"]
[{"$nulls":4},{"$error":"#N/A"},"3944","Games, Toys, and Children's Vehicles, Except Dolls and Bicycles","3944"]
[{"$nulls":4},{"$error":"#N/A"},"3949","Sporting and Athletic Goods, Not Elsewhere Classified","3949"]
[{"$nulls":4},{"$error":"#N/A"},"3951","Pens, Mechanical Pencils, and Parts","3951"]
[{"$nulls":4},{"$error":"#N/A"},"3952","Lead Pencils, Crayons, and Artists' Materials","3952"]
[{"$nulls":4},{"$error":"#N/A"},"3953","Marking Devices","3953"]
[{"$nulls":4},{"$error":"#N/A"},"3955","Carbon Paper and Inked Ribbons","3955"]
[{"$nulls":4},{"$f":"IF(LEFT(F536,2)=RIGHT(VLOOKUP($B$5,$B$23:$C$104,2,FALSE),2),\"Use\",\"\")","v":{"$error":"#N/A"}},"3961","Costume Jewelry and Costume Novelties, Except Precious Metal","3961"]
[{"$nulls":4},{"$error":"#N/A"},"3965","Fasteners, Buttons, Needles, and Pins","3965"]
[{"$nulls":4},{"$error":"#N/A"},"3991","Brooms and Brushes","3991"]
[{"$nulls":4},{"$error":"#N/A"},"3993","Signs and Advertising Specialties","3993"]
[{"$nulls":4},{"$error":"#N/A"},"3995","Burial Caskets","3995"]
[{"$nulls":4},{"$error":"#N/A"},"3996","Linoleum, Asphalted-Felt-Base, and Other Hard Surface Floor Coverings, Not Elsewhere Classified","3996"]
[{"$nulls":4},{"$error":"#N/A"},"3999","Manufacturing Industries, Not Elsewhere Classified","3999"]
[{"$nulls":4},{"$error":"#N/A"},"4011","Railroads, Line-Haul Operating","4011"]
[{"$nulls":4},{"$error":"#N/A"},"4013","Railroad Switching and Terminal Establishments","4013"]
[{"$nulls":4},{"$error":"#N/A"},"4111","Local and Suburban Transit","4111"]
[{"$nulls":4},{"$error":"#N/A"},"4119","Local Passenger Transportation, Not Elsewhere Classified","4119"]
[{"$nulls":4},{"$error":"#N/A"},"4121","Taxicabs","4121"]
[{"$nulls":4},{"$error":"#N/A"},"4131","Intercity and Rural Bus Transportation","4131"]
[{"$nulls":4},{"$error":"#N/A"},"4141","Local Bus Charter Service","4141"]
[{"$nulls":4},{"$error":"#N/A"},"4142","Bus Charter Service, Except Local","4142"]
[{"$nulls":4},{"$error":"#N/A"},"4151","School Buses","4151"]
[{"$nulls":4},{"$error":"#N/A"},"4173","Terminal and Service Facilities for Motor Vehicle Passenger Transportation","4173"]
[{"$nulls":4},{"$error":"#N/A"},"4212","Local Trucking Without Storage","4212"]
[{"$nulls":4},{"$error":"#N/A"},"4213","Trucking, Except Local","4213"]
[{"$nulls":4},{"$error":"#N/A"},"4214","Local Trucking With Storage","4214"]
[{"$nulls":4},{"$error":"#N/A"},"4215","Courier Services, Except by Air","4215"]
[{"$nulls":4},{"$error":"#N/A"},"4221","Farm Product Warehousing and Storage","4221"]
[{"$nulls":4},{"$error":"#N/A"},"4222","Refrigerated Warehousing and Storage","4222"]
[{"$nulls":4},{"$error":"#N/A"},"4225","General Warehousing and Storage","4225"]
[{"$nulls":4},{"$error":"#N/A"},"4226","Special Warehousing and Storage, Not Elsewhere Classified","4226"]
[{"$nulls":4},{"$error":"#N/A"},"4231","Terminal and Joint Terminal Maintenance Facilities for Motor Freight Transportation","4231"]
[{"$nulls":4},{"$error":"#N/A"},"4311","United States Postal Service","4311"]
[{"$nulls":4},{"$error":"#N/A"},"4412","Deep Sea Foreign Transportation of Freight","4412"]
[{"$nulls":4},{"$error":"#N/A"},"4424","Deep Sea Domestic Transportation of Freight","4424"]
[{"$nulls":4},{"$error":"#N/A"},"4432","Freight Transportation on the Great Lakes—St. Lawrence Seaway","4432"]
[{"$nulls":4},{"$error":"#N/A"},"4449","Water Transportation of Freight, Not Elsewhere Classified","4449"]
[{"$nulls":4},{"$error":"#N/A"},"4481","Deep Sea Transportation of Passengers, Except by Ferry","4481"]
[{"$nulls":4},{"$error":"#N/A"},"4482","Ferries","4482"]
[{"$nulls":4},{"$error":"#N/A"},"4489","Water Transportation of Passengers, Not Elsewhere Classified","4489"]
[{"$nulls":4},{"$error":"#N/A"},"4491","Marine Cargo Handling","4491"]
[{"$nulls":4},{"$error":"#N/A"},"4492","Towing and Tugboat Services","4492"]
[{"$nulls":4},{"$error":"#N/A"},"4493","Marinas","4493"]
[{"$nulls":4},{"$error":"#N/A"},"4499","Water Transportation Services, Not Elsewhere Classified","4499"]
[{"$nulls":4},{"$error":"#N/A"},"4512","Air Transportation, Scheduled","4512"]
[{"$nulls":4},{"$error":"#N/A"},"4513","Air Courier Services","4513"]
[{"$nulls":4},{"$error":"#N/A"},"4522","Air Transportation, Nonscheduled","4522"]
[{"$nulls":4},{"$error":"#N/A"},"4581","Airports, Flying Fields, and Airport Terminal Services","4581"]
[{"$nulls":4},{"$error":"#N/A"},"4612","Crude Petroleum Pipelines","4612"]
[{"$nulls":4},{"$error":"#N/A"},"4613","Refined Petroleum Pipelines","4613"]
[{"$nulls":4},{"$error":"#N/A"},"4619","Pipelines, Not Elsewhere Classified","4619"]
[{"$nulls":4},{"$error":"#N/A"},"4724","Travel Agencies","4724"]
[{"$nulls":4},{"$error":"#N/A"},"4725","Tour Operators","4725"]
[{"$nulls":4},{"$error":"#N/A"},"4729","Arrangement of Passenger Transportation, Not Elsewhere Classified","4729"]
[{"$nulls":4},{"$error":"#N/A"},"4731","Arrangement of Transportation of Freight and Cargo","4731"]
[{"$nulls":4},{"$error":"#N/A"},"4741","Rental of Railroad Cars","4741"]
[{"$nulls":4},{"$error":"#N/A"},"4783","Packing and Crating","4783"]
[{"$nulls":4},{"$error":"#N/A"},"4785","Fixed Facilities and Inspection and Weighing Services for Motor Vehicle Transportation","4785"]
[{"$nulls":4},{"$error":"#N/A"},"4789","Transportation Services, Not Elsewhere Classified","4789"]
[{"$nulls":4},{"$error":"#N/A"},"4812","Radiotelephone Communications","4812"]
[{"$nulls":4},{"$error":"#N/A"},"4813","Telephone Communications, Except Radiotelephone","4813"]
[{"$nulls":4},{"$error":"#N/A"},"4822","Telegraph and Other Message Communications","4822"]
[{"$nulls":4},{"$error":"#N/A"},"4832","Radio Broadcasting Stations","4832"]
[{"$nulls":4},{"$error":"#N/A"},"4833","Television Broadcasting Stations","4833"]
[{"$nulls":4},{"$error":"#N/A"},"4841","Cable and Other Pay Television Services","4841"]
[{"$nulls":4},{"$error":"#N/A"},"4899","Communications Services, Not Elsewhere Classified","4899"]
[{"$nulls":4},{"$error":"#N/A"},"4911","Electric Services","4911"]
[{"$nulls":4},{"$error":"#N/A"},"4922","Natural Gas Transmission","4922"]
[{"$nulls":4},{"$error":"#N/A"},"4923","Natural Gas Transmission and Distribution","4923"]
[{"$nulls":4},{"$error":"#N/A"},"4924","Natural Gas Distribution","4924"]
[{"$nulls":4},{"$f":"IF(LEFT(F600,2)=RIGHT(VLOOKUP($B$5,$B$23:$C$104,2,FALSE),2),\"Use\",\"\")","v":{"$error":"#N/A"}},"4925","Mixed, Manufactured, or Liquefied Petroleum Gas Production and/or","4925"]
[{"$nulls":4},{"$error":"#N/A"},"4931","Electric and Other Services Combined","4931"]
[{"$nulls":4},{"$error":"#N/A"},"4932","Gas and Other Services Combined","4932"]
[{"$nulls":4},{"$error":"#N/A"},"4939","Combination Utilities, Not Elsewhere Classified","4939"]
[{"$nulls":4},{"$error":"#N/A"},"4941","Water Supply","4941"]
[{"$nulls":4},{"$error":"#N/A"},"4952","Sewerage Systems","4952"]
[{"$nulls":4},{"$error":"#N/A"},"4953","Refuse Systems","4953"]
[{"$nulls":4},{"$error":"#N/A"},"4959","Sanitary Services, Not Elsewhere Classified","4959"]
[{"$nulls":4},{"$error":"#N/A"},"4961","Steam and Air-Conditioning Supply","4961"]
[{"$nulls":4},{"$error":"#N/A"},"4971","Irrigation Systems","4971"]
[{"$nulls":4},{"$error":"#N/A"},"5012","Automobiles and Other Motor Vehicles","5012"]
[{"$nulls":4},{"$error":"#N/A"},"5013","Motor Vehicle Supplies and New Parts","5013"]
[{"$nulls":4},{"$error":"#N/A"},"5014","Tires and Tubes","5014"]
[{"$nulls":4},{"$error":"#N/A"},"5015","Motor Vehicle Parts, Used","5015"]
[{"$nulls":4},{"$error":"#N/A"},"5021","Furniture","5021"]
[{"$nulls":4},{"$error":"#N/A"},"5023","Home furnishings","5023"]
[{"$nulls":4},{"$error":"#N/A"},"5031","Lumber, Plywood, Millwork, and Wood Panels","5031"]
[{"$nulls":4},{"$error":"#N/A"},"5032","Brick, Stone, and Related Construction Materials","5032"]
[{"$nulls":4},{"$error":"#N/A"},"5033","Roofing, Siding, and Insulation Materials","5033"]
[{"$nulls":4},{"$error":"#N/A"},"5039","Construction Materials, Not Elsewhere Classified","5039"]
[{"$nulls":4},{"$error":"#N/A"},"5043","Photographic Equipment and Supplies","5043"]
[{"$nulls":4},{"$error":"#N/A"},"5044","Office Equipment","5044"]
[{"$nulls":4},{"$error":"#N/A"},"5045","Computers and Computer Peripheral Equipment and Software","5045"]
[{"$nulls":4},{"$error":"#N/A"},"5046","Commercial Equipment, Not Elsewhere Classified","5046"]
[{"$nulls":4},{"$error":"#N/A"},"5047","Medical, Dental, and Hospital Equipment and Supplies","5047"]
[{"$nulls":4},{"$error":"#N/A"},"5048","Ophthalmic Goods","5048"]
[{"$nulls":4},{"$error":"#N/A"},"5049","Professional Equipment and Supplies, Not Elsewhere Classified","5049"]
[{"$nulls":4},{"$error":"#N/A"},"5051","Metals Service Centers and Offices","5051"]
[{"$nulls":4},{"$error":"#N/A"},"5052","Coal and Other Minerals and Ores","5052"]
[{"$nulls":4},{"$error":"#N/A"},"5063","Electrical Apparatus and Equipment Wiring Supplies, and Construction Materials","5063"]
[{"$nulls":4},{"$error":"#N/A"},"5064","Electrical Appliances, Television and Radio Sets","5064"]
[{"$nulls":4},{"$error":"#N/A"},"5065","Electronic Parts and Equipment, Not Elsewhere Classified","5065"]
[{"$nulls":4},{"$error":"#N/A"},"5072","Hardware","5072"]
[{"$nulls":4},{"$error":"#N/A"},"5074","Plumbing and Heating Equipment and Supplies (Hydronics)","5074"]
[{"$nulls":4},{"$error":"#N/A"},"5075","Warm Air Heating and Air-Conditioning Equipment and Supplies","5075"]
[{"$nulls":4},{"$error":"#N/A"},"5078","Refrigeration Equipment and Supplies","5078"]
[{"$nulls":4},{"$error":"#N/A"},"5082","Construction and Mining (Except Petroleum) Machinery and Equipment","5082"]
[{"$nulls":4},{"$error":"#N/A"},"5083","Farm and Garden Machinery and Equipment","5083"]
[{"$nulls":4},{"$error":"#N/A"},"5084","Industrial Machinery and Equipment","5084"]
[{"$nulls":4},{"$error":"#N/A"},"5085","Industrial Supplies","5085"]
[{"$nulls":4},{"$error":"#N/A"},"5087","Service Establishment Equipment and Supplies","5087"]
[{"$nulls":4},{"$error":"#N/A"},"5088","Transportation Equipment and Supplies, Except Motor Vehicles","5088"]
[{"$nulls":4},{"$error":"#N/A"},"5091","Sporting and Recreational Goods and Supplies","5091"]
[{"$nulls":4},{"$error":"#N/A"},"5092","Toys and Hobby Goods and Supplies","5092"]
[{"$nulls":4},{"$error":"#N/A"},"5093","Scrap and Waste Materials","5093"]
[{"$nulls":4},{"$error":"#N/A"},"5094","Jewelry, Watches, Precious Stones, and Precious Metals","5094"]
[{"$nulls":4},{"$error":"#N/A"},"5099","Durable Goods, Not Elsewhere Classified","5099"]
[{"$nulls":4},{"$error":"#N/A"},"5111","Printing and Writing Paper","5111"]
[{"$nulls":4},{"$error":"#N/A"},"5112","Stationery and Office Supplies","5112"]
[{"$nulls":4},{"$error":"#N/A"},"5113","Industrial and Personal Service Paper","5113"]
[{"$nulls":4},{"$error":"#N/A"},"5122","Drugs, Drug Proprietaries, and Druggists' Sundries","5122"]
[{"$nulls":4},{"$error":"#N/A"},"5131","Piece Goods, Notions, and Other Dry Good","5131"]
[{"$nulls":4},{"$error":"#N/A"},"5136","Men's and Boy's Clothing and Furnishings","5136"]
[{"$nulls":4},{"$error":"#N/A"},"5137","Women's, Children's, and Infants' Clothing and Accessories","5137"]
[{"$nulls":4},{"$error":"#N/A"},"5139","Footwear","5139"]
[{"$nulls":4},{"$error":"#N/A"},"5141","Groceries, General Line","5141"]
[{"$nulls":4},{"$error":"#N/A"},"5142","Packaged Frozen Foods","5142"]
[{"$nulls":4},{"$error":"#N/A"},"5143","Dairy Products, Except Dried or Canned","5143"]
[{"$nulls":4},{"$error":"#N/A"},"5144","Poultry and Poultry Products","5144"]
[{"$nulls":4},{"$error":"#N/A"},"5145","Confectionery","5145"]
[{"$nulls":4},{"$error":"#N/A"},"5146","Fish and Seafoods","5146"]
[{"$nulls":4},{"$error":"#N/A"},"5147","Meats and Meat Products","5147"]
[{"$nulls":4},{"$error":"#N/A"},"5148","Fresh Fruits and Vegetables","5148"]
[{"$nulls":4},{"$error":"#N/A"},"5149","Groceries and Related Products, Not Elsewhere Classified","5149"]
[{"$nulls":4},{"$f":"IF(LEFT(F664,2)=RIGHT(VLOOKUP($B$5,$B$23:$C$104,2,FALSE),2),\"Use\",\"\")","v":{"$error":"#N/A"}},"5153","Grain and Field Beans","5153"]
[{"$nulls":4},{"$error":"#N/A"},"5154","Livestock","5154"]
[{"$nulls":4},{"$error":"#N/A"},"5159","Farm-Product Raw Materials, Not Elsewhere Classified","5159"]
[{"$nulls":4},{"$error":"#N/A"},"5162","Plastics Materials and Basic Forms and Shapes","5162"]
[{"$nulls":4},{"$error":"#N/A"},"5169","Chemicals and Allied Products, Not Elsewhere Classified","5169"]
[{"$nulls":4},{"$error":"#N/A"},"5171","Petroleum Bulk stations and Terminals","5171"]
[{"$nulls":4},{"$error":"#N/A"},"5172","Petroleum and Petroleum Products Wholesalers, Except Bulk Stations and Terminals","5172"]
[{"$nulls":4},{"$error":"#N/A"},"5181","Beer and Ale","5181"]
[{"$nulls":4},{"$error":"#N/A"},"5182","Wine and Distilled Alcoholic Beverages","5182"]
[{"$nulls":4},{"$error":"#N/A"},"5191","Farm Supplies","5191"]
[{"$nulls":4},{"$error":"#N/A"},"5192","Books, Periodicals, and Newspapers","5192"]
[{"$nulls":4},{"$error":"#N/A"},"5193","Flowers, Nursery Stock, and Florists' Supplies","5193"]
[{"$nulls":4},{"$error":"#N/A"},"5194","Tobacco and Tobacco Products","5194"]
[{"$nulls":4},{"$error":"#N/A"},"5198","Paints, Varnishes, and Supplies","5198"]
[{"$nulls":4},{"$error":"#N/A"},"5199","Nondurable Goods, Not Elsewhere Classified","5199"]
[{"$nulls":4},{"$error":"#N/A"},"5211","Lumber and Other Building Materials Dealers","5211"]
[{"$nulls":4},{"$error":"#N/A"},"5231","Paint, Glass, and Wallpaper Stores","5231"]
[{"$nulls":4},{"$error":"#N/A"},"5251","Hardware Stores","5251"]
[{"$nulls":4},{"$error":"#N/A"},"5261","Retail Nurseries, Lawn and Garden Supply Stores","5261"]
[{"$nulls":4},{"$error":"#N/A"},"5271","Mobile Home Dealers","5271"]
[{"$nulls":4},{"$error":"#N/A"},"5311","Department Stores","5311"]
[{"$nulls":4},{"$error":"#N/A"},"5331","Variety Stores","5331"]
[{"$nulls":4},{"$error":"#N/A"},"5399","Miscellaneous General Merchandise Stores","5399"]
[{"$nulls":4},{"$error":"#N/A"},"5411","Grocery Stores","5411"]
[{"$nulls":4},{"$error":"#N/A"},"5421","Meat and Fish (Seafood) Markets, Including Freezer Provisioners","5421"]
[{"$nulls":4},{"$error":"#N/A"},"5431","Fruit and Vegetable Markets","5431"]
[{"$nulls":4},{"$error":"#N/A"},"5441","Candy, Nut, and Confectionery Stores","5441"]
[{"$nulls":4},{"$error":"#N/A"},"5451","Dairy Products Stores","5451"]
[{"$nulls":4},{"$error":"#N/A"},"5461","Retail Bakeries","5461"]
[{"$nulls":4},{"$error":"#N/A"},"5499","Miscellaneous Food Stores","5499"]
[{"$nulls":4},{"$error":"#N/A"},"5511","Motor Vehicle Dealers (New and Used)","5511"]
[{"$nulls":4},{"$error":"#N/A"},"5521","Motor Vehicle Dealers (Used Only)","5521"]
[{"$nulls":4},{"$error":"#N/A"},"5531","Auto and Home Supply Stores","5531"]
[{"$nulls":4},{"$error":"#N/A"},"5541","Gasoline Service Stations","5541"]
[{"$nulls":4},{"$error":"#N/A"},"5551","Boat Dealers","5551"]
[{"$nulls":4},{"$error":"#N/A"},"5561","Recreational Vehicle Dealers","5561"]
[{"$nulls":4},{"$error":"#N/A"},"5571","Motorcycle Dealers","5571"]
[{"$nulls":4},{"$error":"#N/A"},"5599","Automotive Dealers, Not Elsewhere Classified","5599"]
[{"$nulls":4},{"$error":"#N/A"},"5611","Men's and Boys' Clothing and Accessory Stores","5611"]
[{"$nulls":4},{"$error":"#N/A"},"5621","Women's Clothing Stores","5621"]
[{"$nulls":4},{"$error":"#N/A"},"5632","Women's Accessory and Specialty Stores","5632"]
[{"$nulls":4},{"$error":"#N/A"},"5641","Children's and Infants' Wear Stores","5641"]
[{"$nulls":4},{"$error":"#N/A"},"5651","Family Clothing Stores","5651"]
[{"$nulls":4},{"$error":"#N/A"},"5661","Shoe Stores","5661"]
[{"$nulls":4},{"$error":"#N/A"},"5699","Miscellaneous Apparel and Accessory Stores","5699"]
[{"$nulls":4},{"$error":"#N/A"},"5712","Furniture Stores","5712"]
[{"$nulls":4},{"$error":"#N/A"},"5713","Floor Covering Stores","5713"]
[{"$nulls":4},{"$error":"#N/A"},"5714","Drapery, Curtain, and Upholstery Stores","5714"]
[{"$nulls":4},{"$error":"#N/A"},"5719","Miscellaneous home furnishings Stores","5719"]
[{"$nulls":4},{"$error":"#N/A"},"5722","Household Appliance Stores","5722"]
[{"$nulls":4},{"$error":"#N/A"},"5731","Radio, Television, and Consumer Electronics Stores","5731"]
[{"$nulls":4},{"$error":"#N/A"},"5734","Computer and Computer Software Stores","5734"]
[{"$nulls":4},{"$error":"#N/A"},"5735","Record and Prerecorded Tape Stores","5735"]
[{"$nulls":4},{"$error":"#N/A"},"5736","Musical Instrument Stores","5736"]
[{"$nulls":4},{"$error":"#N/A"},"5812","Eating Places","5812"]
[{"$nulls":4},{"$error":"#N/A"},"5813","Drinking Places (alcoholic Beverages)","5813"]
[{"$nulls":4},{"$error":"#N/A"},"5912","Drug Stores and Proprietary Stores","5912"]
[{"$nulls":4},{"$error":"#N/A"},"5921","Liquor Stores","5921"]
[{"$nulls":4},{"$error":"#N/A"},"5932","Used Merchandise Stores","5932"]
[{"$nulls":4},{"$error":"#N/A"},"5941","Sporting Goods Stores and Bicycle Shops","5941"]
[{"$nulls":4},{"$error":"#N/A"},"5942","Book Stores","5942"]
[{"$nulls":4},{"$error":"#N/A"},"5943","Stationery Stores","5943"]
[{"$nulls":4},{"$error":"#N/A"},"5944","Jewelry Stores","5944"]
[{"$nulls":4},{"$error":"#N/A"},"5945","Hobby, Toy, and Game Shops","5945"]
[{"$nulls":4},{"$f":"IF(LEFT(F728,2)=RIGHT(VLOOKUP($B$5,$B$23:$C$104,2,FALSE),2),\"Use\",\"\")","v":{"$error":"#N/A"}},"5946","Camera and Photographic Supply Stores","5946"]
[{"$nulls":4},{"$error":"#N/A"},"5947","Gift, Novelty, and Souvenir Shops","5947"]
[{"$nulls":4},{"$error":"#N/A"},"5948","Luggage and Leather Goods Stores","5948"]
[{"$nulls":4},{"$error":"#N/A"},"5949","Sewing, Needlework, and Piece Goods Stores","5949"]
[{"$nulls":4},{"$error":"#N/A"},"5961","Catalog and Mail-Order Houses","5961"]
[{"$nulls":4},{"$error":"#N/A"},"5962","Automatic Merchandising Machine Operators","5962"]
[{"$nulls":4},{"$error":"#N/A"},"5963","Direct Selling Establishments","5963"]
[{"$nulls":4},{"$error":"#N/A"},"5983","Fuel Oil Dealers","5983"]
[{"$nulls":4},{"$error":"#N/A"},"5984","Liquefied Petroleum Gas (Bottled Gas) Dealers","5984"]
[{"$nulls":4},{"$error":"#N/A"},"5989","Fuel Dealers, Not Elsewhere Classified","5989"]
[{"$nulls":4},{"$error":"#N/A"},"5992","Florists","5992"]
[{"$nulls":4},{"$error":"#N/A"},"5993","Tobacco Stores and Stands","5993"]
[{"$nulls":4},{"$error":"#N/A"},"5994","News Dealers and Newsstands","5994"]
[{"$nulls":4},{"$error":"#N/A"},"5995","Optical Goods Stores","5995"]
[{"$nulls":4},{"$error":"#N/A"},"5999","Miscellaneous Retail Stores, Not Elsewhere Classified","5999"]
[{"$nulls":4},{"$error":"#N/A"},"6011","Federal Reserve Banks","6011"]
[{"$nulls":4},{"$error":"#N/A"},"6019","Central Reserve Depository Institutions, Not Elsewhere Classified","6019"]
[{"$nulls":4},{"$error":"#N/A"},"6021","National Commercial Banks","6021"]
[{"$nulls":4},{"$error":"#N/A"},"6022","State Commercial Banks","6022"]
[{"$nulls":4},{"$error":"#N/A"},"6029","Commercial Banks, Not Elsewhere Classified","6029"]
[{"$nulls":4},{"$error":"#N/A"},"6035","Savings Institutions, Federally Chartered","6035"]
[{"$nulls":4},{"$error":"#N/A"},"6036","Savings Institutions, Not Federally Chartered","6036"]
[{"$nulls":4},{"$error":"#N/A"},"6061","Credit Unions, Federally Chartered","6061"]
[{"$nulls":4},{"$error":"#N/A"},"6062","Credit Unions, Not Federally Chartered","6062"]
[{"$nulls":4},{"$error":"#N/A"},"6081","Branches and Agencies of Foreign Banks","6081"]
[{"$nulls":4},{"$error":"#N/A"},"6082","Foreign Trade and International Banking Institutions","6082"]
[{"$nulls":4},{"$error":"#N/A"},"6091","Non-deposit Trust Facilities,","6091"]
[{"$nulls":4},{"$error":"#N/A"},"6099","Functions Related to Depository Banking, Not Elsewhere Classified","6099"]
[{"$nulls":4},{"$error":"#N/A"},"6111","Federal and Federally-Sponsored Credit Agencies","6111"]
[{"$nulls":4},{"$error":"#N/A"},"6141","Personal Credit Institutions","6141"]
[{"$nulls":4},{"$error":"#N/A"},"6153","Short-Term Business Credit Institutions, Except Agricultural","6153"]
[{"$nulls":4},{"$error":"#N/A"},"6159","Miscellaneous business Credit Institutions","6159"]
[{"$nulls":4},{"$error":"#N/A"},"6162","Mortgage Bankers and Loan Correspondents","6162"]
[{"$nulls":4},{"$error":"#N/A"},"6163","Loan Brokers","6163"]
[{"$nulls":4},{"$error":"#N/A"},"6211","Security Brokers, Dealers, and Flotation Companies","6211"]
[{"$nulls":4},{"$error":"#N/A"},"6221","Commodity Contracts Brokers and Dealers","6221"]
[{"$nulls":4},{"$error":"#N/A"},"6231","Security and Commodity Exchanges","6231"]
[{"$nulls":4},{"$error":"#N/A"},"6282","Investment Advice","6282"]
[{"$nulls":4},{"$error":"#N/A"},"6289","Services Allied With the Exchange of Securities or Commodities, Not Elsewhere Classified","6289"]
[{"$nulls":4},{"$error":"#N/A"},"6311","Life Insurance","6311"]
[{"$nulls":4},{"$error":"#N/A"},"6321","Accident and Health Insurance","6321"]
[{"$nulls":4},{"$error":"#N/A"},"6324","Hospital and Medical Service Plans","6324"]
[{"$nulls":4},{"$error":"#N/A"},"6331","Fire, Marine, and Casualty Insurance","6331"]
[{"$nulls":4},{"$error":"#N/A"},"6351","Surety Insurance","6351"]
[{"$nulls":4},{"$error":"#N/A"},"6361","Title Insurance","6361"]
[{"$nulls":4},{"$error":"#N/A"},"6371","Pension, Health, and Welfare Funds","6371"]
[{"$nulls":4},{"$error":"#N/A"},"6399","Insurance Carriers, Not Elsewhere Classified","6399"]
[{"$nulls":4},{"$error":"#N/A"},"6411","Insurance Agents, Brokers, and Service","6411"]
[{"$nulls":4},{"$error":"#N/A"},"6512","Operators of Nonresidential Buildings","6512"]
[{"$nulls":4},{"$error":"#N/A"},"6513","Operators of Apartment Buildings","6513"]
[{"$nulls":4},{"$error":"#N/A"},"6514","Operators of Dwellings Other Than Apartment Buildings","6514"]
[{"$nulls":4},{"$error":"#N/A"},"6515","Operators of Residential Mobile Home Sites","6515"]
[{"$nulls":4},{"$error":"#N/A"},"6517","Lessors of Railroad Property","6517"]
[{"$nulls":4},{"$error":"#N/A"},"6519","Lessors of Real Property, Not Elsewhere Classified","6519"]
[{"$nulls":4},{"$error":"#N/A"},"6531","Real Estate Agents and Managers","6531"]
[{"$nulls":4},{"$error":"#N/A"},"6541","Title Abstract Offices","6541"]
[{"$nulls":4},{"$error":"#N/A"},"6552","Land Subdividers and Developers, Except Cemeteries","6552"]
[{"$nulls":4},{"$error":"#N/A"},"6553","Cemetery Subdividers and Developers","6553"]
[{"$nulls":4},{"$error":"#N/A"},"6712","Offices of Bank Holding Companies","6712"]
[{"$nulls":4},{"$error":"#N/A"},"6719","Offices of Holding Companies, Not Elsewhere Classified","6719"]
[{"$nulls":4},{"$error":"#N/A"},"6722","Management Investment Offices, Open-End","6722"]
[{"$nulls":4},{"$error":"#N/A"},"6726","Unit Investment Trusts, Face-Amount Certificate Offices, and Closed-End Management Investment Offices","6726"]
[{"$nulls":4},{"$error":"#N/A"},"6732","Educational, Religious, and Charitable Trusts","6732"]
[{"$nulls":4},{"$error":"#N/A"},"6733","Trusts, Except Educational, Religious, and Charitable","6733"]
[{"$nulls":4},{"$f":"IF(LEFT(F792,2)=RIGHT(VLOOKUP($B$5,$B$23:$C$104,2,FALSE),2),\"Use\",\"\")","v":{"$error":"#N/A"}},"6792","Oil Royalty Traders","6792"]
[{"$nulls":4},{"$error":"#N/A"},"6794","Patent Owners and Lessors","6794"]
[{"$nulls":4},{"$error":"#N/A"},"6798","Real Estate Investment Trusts","6798"]
[{"$nulls":4},{"$error":"#N/A"},"6799","Investors, Not Elsewhere Classified","6799"]
[{"$nulls":4},{"$error":"#N/A"},"7011","Hotels and Motels","7011"]
[{"$nulls":4},{"$error":"#N/A"},"7021","Rooming and Boarding Houses","7021"]
[{"$nulls":4},{"$error":"#N/A"},"7032","Sporting and Recreational Camps","7032"]
[{"$nulls":4},{"$error":"#N/A"},"7033","Recreational Vehicle Parks and Campsites","7033"]
[{"$nulls":4},{"$error":"#N/A"},"7041","Organization Hotels and Lodging Houses, on Membership Basis","7041"]
[{"$nulls":4},{"$error":"#N/A"},"7211","Power Laundries, Family and Commercial","7211"]
[{"$nulls":4},{"$error":"#N/A"},"7212","Garment Pressing, and Agents for Laundries and Drycleaners","7212"]
[{"$nulls":4},{"$error":"#N/A"},"7213","Linen Supply","7213"]
[{"$nulls":4},{"$error":"#N/A"},"7215","Coin-Operated Laundries and Drycleaning","7215"]
[{"$nulls":4},{"$error":"#N/A"},"7216","Drycleaning Plants, Except Rug Cleaning","7216"]
[{"$nulls":4},{"$error":"#N/A"},"7217","Carpet and Upholstery Cleaning","7217"]
[{"$nulls":4},{"$error":"#N/A"},"7218","Industrial Launderers","7218"]
[{"$nulls":4},{"$error":"#N/A"},"7219","Laundry and Garment Services, Not Elsewhere Classified","7219"]
[{"$nulls":4},{"$error":"#N/A"},"7221","Photographic Studios, Portrait","7221"]
[{"$nulls":4},{"$error":"#N/A"},"7231","Beauty Shops","7231"]
[{"$nulls":4},{"$error":"#N/A"},"7241","Barber Shops","7241"]
[{"$nulls":4},{"$error":"#N/A"},"7251","Shoe Repair Shops and Shoeshine Parlors","7251"]
[{"$nulls":4},{"$error":"#N/A"},"7261","Funeral Service and Crematories","7261"]
[{"$nulls":4},{"$error":"#N/A"},"7291","Tax Return Preparation Services","7291"]
[{"$nulls":4},{"$error":"#N/A"},"7299","Miscellaneous Personal Services, Not Elsewhere Classified","7299"]
[{"$nulls":4},{"$error":"#N/A"},"7311","Advertising Agencies","7311"]
[{"$nulls":4},{"$error":"#N/A"},"7312","Outdoor Advertising Services","7312"]
[{"$nulls":4},{"$error":"#N/A"},"7313","Radio, Television, and Publishers' Advertising Representatives","7313"]
[{"$nulls":4},{"$error":"#N/A"},"7319","Advertising, Not Elsewhere Classified","7319"]
[{"$nulls":4},{"$error":"#N/A"},"7322","Adjustment and Collection Services","7322"]
[{"$nulls":4},{"$error":"#N/A"},"7323","Credit Reporting Services","7323"]
[{"$nulls":4},{"$error":"#N/A"},"7331","Direct Mail Advertising Services","7331"]
[{"$nulls":4},{"$error":"#N/A"},"7334","Photocopying and Duplicating Services","7334"]
[{"$nulls":4},{"$error":"#N/A"},"7335","Commercial Photography","7335"]
[{"$nulls":4},{"$error":"#N/A"},"7336","Commercial Art and Graphic Design","7336"]
[{"$nulls":4},{"$error":"#N/A"},"7338","Secretarial and Court Reporting Services","7338"]
[{"$nulls":4},{"$error":"#N/A"},"7342","Disinfecting and Pest Control Services","7342"]
[{"$nulls":4},{"$error":"#N/A"},"7349","Building Cleaning and Maintenance Services, Not Elsewhere","7349"]
[{"$nulls":4},{"$error":"#N/A"},"7352","Medical Equipment Rental and Leasing","7352"]
[{"$nulls":4},{"$error":"#N/A"},"7353","Heavy Construction Equipment Rental and Leasing","7353"]
[{"$nulls":4},{"$error":"#N/A"},"7359","Equipment Rental and Leasing, Not Elsewhere Classified","7359"]
[{"$nulls":4},{"$error":"#N/A"},"7361","Employment Agencies","7361"]
[{"$nulls":4},{"$error":"#N/A"},"7363","Help Supply Services","7363"]
[{"$nulls":4},{"$error":"#N/A"},"7371","Computer Programming Services","7371"]
[{"$nulls":4},{"$error":"#N/A"},"7372","Prepackaged Software","7372"]
[{"$nulls":4},{"$error":"#N/A"},"7373","Computer Integrated Systems Design","7373"]
[{"$nulls":4},{"$error":"#N/A"},"7374","Computer Processing and Data Preparation and Processing Services","7374"]
[{"$nulls":4},{"$error":"#N/A"},"7375","Information Retrieval Services","7375"]
[{"$nulls":4},{"$error":"#N/A"},"7376","Computer Facilities Management Services","7376"]
[{"$nulls":4},{"$error":"#N/A"},"7377","Computer Rental and Leasing","7377"]
[{"$nulls":4},{"$error":"#N/A"},"7378","Computer Maintenance and Repair","7378"]
[{"$nulls":4},{"$error":"#N/A"},"7379","Computer Related Services, Not Elsewhere Classified","7379"]
[{"$nulls":4},{"$error":"#N/A"},"7381","Detective, Guard, and Armored Car Services","7381"]
[{"$nulls":4},{"$error":"#N/A"},"7382","Security Systems Services","7382"]
[{"$nulls":4},{"$error":"#N/A"},"7383","News Syndicates","7383"]
[{"$nulls":4},{"$error":"#N/A"},"7384","Photofinishing Laboratories","7384"]
[{"$nulls":4},{"$error":"#N/A"},"7389","Business Services, Not Elsewhere Classified","7389"]
[{"$nulls":4},{"$error":"#N/A"},"7513","Truck Rental and Leasing, Without Drivers","7513"]
[{"$nulls":4},{"$error":"#N/A"},"7514","Passenger Car Rental","7514"]
[{"$nulls":4},{"$error":"#N/A"},"7515","Passenger Car Leasing","7515"]
[{"$nulls":4},{"$error":"#N/A"},"7519","Utility Trailer and Recreational Vehicle Rental","7519"]
[{"$nulls":4},{"$error":"#N/A"},"7521","Automobile Parking","7521"]
[{"$nulls":4},{"$error":"#N/A"},"7532","Top, Body, and Upholstery Repair Shops and Paint Shops","7532"]
[{"$nulls":4},{"$error":"#N/A"},"7533","Automotive Exhaust System Repair Shops","7533"]
[{"$nulls":4},{"$error":"#N/A"},"7534","Tire Retreading and Repair Shops","7534"]
[{"$nulls":4},{"$f":"IF(LEFT(F856,2)=RIGHT(VLOOKUP($B$5,$B$23:$C$104,2,FALSE),2),\"Use\",\"\")","v":{"$error":"#N/A"}},"7536","Automotive Glass Replacement Shops","7536"]
[{"$nulls":4},{"$error":"#N/A"},"7537","Automotive Transmission Repair Shops","7537"]
[{"$nulls":4},{"$error":"#N/A"},"7538","General Automotive Repair Shops","7538"]
[{"$nulls":4},{"$error":"#N/A"},"7539","Automotive Repair Shops, Not Elsewhere Classified","7539"]
[{"$nulls":4},{"$error":"#N/A"},"7542","Carwashes","7542"]
[{"$nulls":4},{"$error":"#N/A"},"7549","Automotive Services, Except Repair and Carwashes","7549"]
[{"$nulls":4},{"$error":"#N/A"},"7622","Radio and Television Repair Shops","7622"]
[{"$nulls":4},{"$error":"#N/A"},"7623","Refrigeration and Air-Conditioning Service and Repair Shops","7623"]
[{"$nulls":4},{"$error":"#N/A"},"7629","Electrical and Electronic Repair Shops, Not Elsewhere Classified","7629"]
[{"$nulls":4},{"$error":"#N/A"},"7631","Watch, Clock, and Jewelry Repair","7631"]
[{"$nulls":4},{"$error":"#N/A"},"7641","Reupholstery and Furniture Repair","7641"]
[{"$nulls":4},{"$error":"#N/A"},"7692","Welding Repair","7692"]
[{"$nulls":4},{"$error":"#N/A"},"7694","Armature Rewinding Shops","7694"]
[{"$nulls":4},{"$error":"#N/A"},"7699","Repair Shops and Related Services, Not Elsewhere Classified","7699"]
[{"$nulls":4},{"$error":"#N/A"},"7812","Motion Picture and Video Tape Production","7812"]
[{"$nulls":4},{"$error":"#N/A"},"7819","Services Allied to Motion Picture Production","7819"]
[{"$nulls":4},{"$error":"#N/A"},"7822","Motion Picture and Video Tape Distribution","7822"]
[{"$nulls":4},{"$error":"#N/A"},"7829","Services Allied to Motion Picture Distribution","7829"]
[{"$nulls":4},{"$error":"#N/A"},"7832","Motion Picture Theaters, Except Drive-In","7832"]
[{"$nulls":4},{"$error":"#N/A"},"7833","Drive-In Motion Picture Theaters","7833"]
[{"$nulls":4},{"$error":"#N/A"},"7841","Video Tape Rental","7841"]
[{"$nulls":4},{"$error":"#N/A"},"7911","Dance Studios, Schools, and Halls","7911"]
[{"$nulls":4},{"$error":"#N/A"},"7922","Theatrical Producers (Except Motion Picture) and Miscellaneous Theatrical Services","7922"]
[{"$nulls":4},{"$error":"#N/A"},"7929","Bands, Orchestras, Actors, and Other Entertainers and Entertainment Groups","7929"]
[{"$nulls":4},{"$error":"#N/A"},"7933","Bowling Centers","7933"]
[{"$nulls":4},{"$error":"#N/A"},"7941","Professional Sports Clubs and Promoters","7941"]
[{"$nulls":4},{"$error":"#N/A"},"7948","Racing, Including Track Operation","7948"]
[{"$nulls":4},{"$error":"#N/A"},"7991","Physical Fitness Facilities","7991"]
[{"$nulls":4},{"$error":"#N/A"},"7992","Public Golf Courses","7992"]
[{"$nulls":4},{"$error":"#N/A"},"7993","Coin-Operated Amusement Devices","7993"]
[{"$nulls":4},{"$error":"#N/A"},"7996","Amusement Parks","7996"]
[{"$nulls":4},{"$error":"#N/A"},"7997","Membership Sports and Recreation Clubs","7997"]
[{"$nulls":4},{"$error":"#N/A"},"7999","Amusement and Recreation Services, Not Elsewhere Classified","7999"]
[{"$nulls":4},{"$error":"#N/A"},"8011","Offices and Clinics of Doctors of Medicine","8011"]
[{"$nulls":4},{"$error":"#N/A"},"8021","Offices and Clinics of Dentists","8021"]
[{"$nulls":4},{"$error":"#N/A"},"8031","Offices and Clinics of Doctors of Osteopathy","8031"]
[{"$nulls":4},{"$error":"#N/A"},"8041","Offices and Clinics of Chiropractors","8041"]
[{"$nulls":4},{"$error":"#N/A"},"8042","Offices and Clinics of Optometrists","8042"]
[{"$nulls":4},{"$error":"#N/A"},"8043","Offices and Clinics of Podiatrists","8043"]
[{"$nulls":4},{"$error":"#N/A"},"8049","Offices and Clinics of Health Practitioners, Not Elsewhere Classified","8049"]
[{"$nulls":4},{"$error":"#N/A"},"8051","Skilled Nursing Care Facilities","8051"]
[{"$nulls":4},{"$error":"#N/A"},"8052","Intermediate Care Facilities","8052"]
[{"$nulls":4},{"$error":"#N/A"},"8059","Nursing and Personal Care Facilities, Not Elsewhere Classified","8059"]
[{"$nulls":4},{"$error":"#N/A"},"8062","General Medical and Surgical Hospitals","8062"]
[{"$nulls":4},{"$error":"#N/A"},"8063","Psychiatric Hospitals","8063"]
[{"$nulls":4},{"$error":"#N/A"},"8069","Specialty Hospitals, Except Psychiatric","8069"]
[{"$nulls":4},{"$error":"#N/A"},"8071","Medical Laboratories","8071"]
[{"$nulls":4},{"$error":"#N/A"},"8072","Dental Laboratories","8072"]
[{"$nulls":4},{"$error":"#N/A"},"8082","Home Health Care Services","8082"]
[{"$nulls":4},{"$error":"#N/A"},"8092","Kidney Dialysis Centers","8092"]
[{"$nulls":4},{"$error":"#N/A"},"8093","Specialty Outpatient Facilities, Not Elsewhere Classified","8093"]
[{"$nulls":4},{"$error":"#N/A"},"8099","Health and Allied Services, Not Elsewhere Classified","8099"]
[{"$nulls":4},{"$error":"#N/A"},"8111","Legal Services","8111"]
[{"$nulls":4},{"$error":"#N/A"},"8211","Elementary and Secondary Schools","8211"]
[{"$nulls":4},{"$error":"#N/A"},"8221","Colleges, Universities, and Professional Schools","8221"]
[{"$nulls":4},{"$error":"#N/A"},"8222","Junior Colleges and Technical Institutes","8222"]
[{"$nulls":4},{"$error":"#N/A"},"8231","Libraries","8231"]
[{"$nulls":4},{"$error":"#N/A"},"8243","Data Processing Schools","8243"]
[{"$nulls":4},{"$error":"#N/A"},"8244","Business and Secretarial Schools","8244"]
[{"$nulls":4},{"$error":"#N/A"},"8249","Vocational Schools, Not Elsewhere Classified","8249"]
[{"$nulls":4},{"$error":"#N/A"},"8299","Schools and Educational Services, Not Elsewhere Classified","8299"]
[{"$nulls":4},{"$error":"#N/A"},"8322","Individual and Family Social Services","8322"]
[{"$nulls":4},{"$error":"#N/A"},"8331","Job Training and Vocational Rehabilitation Services","8331"]
[{"$nulls":4},{"$error":"#N/A"},"8351","Child Day Care Services","8351"]
[{"$nulls":4},{"$f":"IF(LEFT(F920,2)=RIGHT(VLOOKUP($B$5,$B$23:$C$104,2,FALSE),2),\"Use\",\"\")","v":{"$error":"#N/A"}},"8361","Residential Care","8361"]
[{"$nulls":4},{"$error":"#N/A"},"8399","Social Services, Not Elsewhere Classified","8399"]
[{"$nulls":4},{"$error":"#N/A"},"8412","Museums and Art Galleries","8412"]
[{"$nulls":4},{"$error":"#N/A"},"8422","Arboreta and Botanical or Zoological Gardens","8422"]
[{"$nulls":4},{"$error":"#N/A"},"8611","Business Associations","8611"]
[{"$nulls":4},{"$error":"#N/A"},"8621","Professional Membership Organizations","8621"]
[{"$nulls":4},{"$error":"#N/A"},"8631","Labor Unions and Similar Labor Organizations","8631"]
[{"$nulls":4},{"$error":"#N/A"},"8641","Civic, Social, and Fraternal Associations","8641"]
[{"$nulls":4},{"$error":"#N/A"},"8651","Political Organizations","8651"]
[{"$nulls":4},{"$error":"#N/A"},"8661","Religious Organizations","8661"]
[{"$nulls":4},{"$error":"#N/A"},"8699","Membership Organizations, Not Elsewhere Classified","8699"]
[{"$nulls":4},{"$error":"#N/A"},"8711","Engineering Services","8711"]
[{"$nulls":4},{"$error":"#N/A"},"8712","Architectural Services","8712"]
[{"$nulls":4},{"$error":"#N/A"},"8713","Surveying Services","8713"]
[{"$nulls":4},{"$error":"#N/A"},"8721","Accounting, Auditing, and Bookkeeping Services","8721"]
[{"$nulls":4},{"$error":"#N/A"},"8731","Commercial Physical and Biological Research","8731"]
[{"$nulls":4},{"$error":"#N/A"},"8732","Commercial Economic, Sociological, and Educational Research","8732"]
[{"$nulls":4},{"$error":"#N/A"},"8733","Noncommercial Research Organizations","8733"]
[{"$nulls":4},{"$error":"#N/A"},"8734","Testing Laboratories","8734"]
[{"$nulls":4},{"$error":"#N/A"},"8741","Management Services","8741"]
[{"$nulls":4},{"$error":"#N/A"},"8742","Management Consulting Services","8742"]
[{"$nulls":4},{"$error":"#N/A"},"8743","Public Relations Services","8743"]
[{"$nulls":4},{"$error":"#N/A"},"8744","Facilities Support Management Services","8744"]
[{"$nulls":4},{"$error":"#N/A"},"8748","Business Consulting Services, Not Elsewhere Classified","8748"]
[{"$nulls":4},{"$error":"#N/A"},"8999","Services, Not Elsewhere Classified","8999"]
[{"$nulls":4},{"$error":"#N/A"},"9111","Executive Offices","9111"]
[{"$nulls":4},{"$error":"#N/A"},"9121","Legislative Bodies","9121"]
[{"$nulls":4},{"$error":"#N/A"},"9131","Executive and Legislative Offices Combined","9131"]
[{"$nulls":4},{"$error":"#N/A"},"9199","General Government, Not Elsewhere Classified","9199"]
[{"$nulls":4},{"$error":"#N/A"},"9211","Courts","9211"]
[{"$nulls":4},{"$error":"#N/A"},"9221","Police Protection","9221"]
[{"$nulls":4},{"$error":"#N/A"},"9222","Legal Counsel and Prosecution","9222"]
[{"$nulls":4},{"$error":"#N/A"},"9223","Correctional Institutions","9223"]
[{"$nulls":4},{"$error":"#N/A"},"9224","Fire Protection","9224"]
[{"$nulls":4},{"$error":"#N/A"},"9229","Public Order and Safety, Not Elsewhere Classified","9229"]
[{"$nulls":4},{"$error":"#N/A"},"9311","Public Finance, Taxation, and Monetary Policy","9311"]
[{"$nulls":4},{"$error":"#N/A"},"9411","Administration of Educational Programs","9411"]
[{"$nulls":4},{"$error":"#N/A"},"9431","Administration of Public Health Programs","9431"]
[{"$nulls":4},{"$error":"#N/A"},"9441","Administration of Social, Human Resource and Income Maintenance Programs","9441"]
[{"$nulls":4},{"$error":"#N/A"},"9451","Administration of Veterans' Affairs, Except Health and Insurance","9451"]
[{"$nulls":4},{"$error":"#N/A"},"9511","Air and Water Resource and Solid Waste Management","9511"]
[{"$nulls":4},{"$error":"#N/A"},"9512","Land, Mineral, Wildlife, and Forest Conservation","9512"]
[{"$nulls":4},{"$error":"#N/A"},"9531","Administration of Housing Programs","9531"]
[{"$nulls":4},{"$error":"#N/A"},"9532","Administration of Urban Planning and Community and Rural Development","9532"]
[{"$nulls":4},{"$error":"#N/A"},"9611","Administration of General Economic Programs","9611"]
[{"$nulls":4},{"$error":"#N/A"},"9621","Regulation and Administration of Transportation Programs","9621"]
[{"$nulls":4},{"$error":"#N/A"},"9631","Regulation and Administration of Communications, Electric, Gas, and Other Utilities","9631"]
[{"$nulls":4},{"$error":"#N/A"},"9641","Regulation of Agricultural Marketing and Commodities","9641"]
[{"$nulls":4},{"$error":"#N/A"},"9651","Regulation, Licensing, and Inspection of Miscellaneous Commercial Sectors","9651"]
[{"$nulls":4},{"$error":"#N/A"},"9661","Space and Research and Technology","9661"]
[{"$nulls":4},{"$error":"#N/A"},"9711","National Security","9711"]
[{"$nulls":4},{"$error":"#N/A"},"9721","International Affairs","9721"]
[{"$nulls":4},{"$error":"#N/A"},"9999","Nonclassifiable Establishments","9999"]
[{"$nulls":4},{"$error":"#N/A"}]

{"sheet":"ListValues","index":10,"n_rows":125,"n_cols":17,"rows_kept":125,"hidden":true}
["Platinum Full PPO 0/10 OffEx",null,{"$f":"LOOKUP(\"zzzzz\",CHOOSE({1,2},\"\",INDEX(E:E,SMALL(IF($E$1:$E$43<>\"\",ROW($E$1:$E$43)),ROWS($C$1:C1)))))","v":""},null,{"$f":"IF(MGA!D106=\"\",\"\",MGA!D106)","v":""},null,{"$f":"LEN(H1)","v":0},{"$f":"IF(C2=\"\",C1,C1&\";\")","v":""},null,"Off_Exchange","Silver Full PPO Savings 2000/20% OffEx",{"$f":"IF(OR(MGA!$D$106:$D$116=A1),A1,\"\")","v":""},{"$f":"IF(ROWS(M$1:M1)<=O$1,INDEX(A$1:A$11,SMALL(IF(L$1:L$11=\"\",ROW(L$1:L$11)-ROW(L$1)+1),ROWS(M$1:M1))),\"\")","v":"Platinum Full PPO 0/10 OffEx"},null,{"$f":"COUNTBLANK(L1:L11)","v":9},{"$f":"ROW()","v":1},{"$f":"OFFSET(ListValues!$M$1,0,0,ListValues!$O$1)","v":"Platinum Full PPO 0/10 OffEx"}]
["Platinum Full PPO 250/15 OffEx",null,{"$f":"LOOKUP(\"zzzzz\",CHOOSE({1,2},\"\",INDEX(E:E,SMALL(IF($E$1:$E$43<>\"\",ROW($E$1:$E$43)),ROWS($C$1:C2)))))","v":""},null,{"$f":"IF(MGA!D107=\"\",\"\",MGA!D107)","v":""},null,{"$f":"LEN(H2)","v":0},{"$f":"IF(C3=\"\",H1&C2,H1&C2&\";\")","v":""},{"$nulls":3},{"$f":"IF(OR(MGA!$D$106:$D$116=A2),A2,\"\")","v":""},{"$f":"IF(ROWS(M$1:M2)<=O$1,INDEX(A$1:A$11,SMALL(IF(L$1:L$11=\"\",ROW(L$1:L$11)-ROW(L$1)+1),ROWS(M$1:M2))),\"\")","v":"Platinum Full PPO 250/15 OffEx"}]
["Gold Full PPO 0/20 OffEx",null,{"$f":"LOOKUP(\"zzzzz\",CHOOSE({1,2},\"\",INDEX(E:E,SMALL(IF($E$1:$E$43<>\"\",ROW($E$1:$E$43)),ROWS($C$1:C3)))))","v":""},null,{"$f":"IF(MGA!D108=\"\",\"\",MGA!D108)","v":""},null,0,{"$f":"IF(C4=\"\",H2&C3,H2&C3&\";\")","v":""},{"$nulls":3},{"$f":"IF(OR(MGA!$D$106:$D$116=A3),A3,\"\")","v":""},{"$f":"IF(ROWS(M$1:M3)<=O$1,INDEX(A$1:A$11,SMALL(IF(L$1:L$11=\"\",ROW(L$1:L$11)-ROW(L$1)+1),ROWS(M$1:M3))),\"\")","v":"Gold Full PPO 0/20 OffEx"}]
["Gold Full PPO 500/30 OffEx",null,{"$f":"LOOKUP(\"zzzzz\",CHOOSE({1,2},\"\",INDEX(E:E,SMALL(IF($E$1:$E$43<>\"\",ROW($E$1:$E$43)),ROWS($C$1:C4)))))","v":""},null,{"$f":"IF(MGA!D109=\"\",\"\",MGA!D109)","v":""},null,0,"",{"$nulls":3},{"$f":"IF(OR(MGA!$D$106:$D$116=A4),A4,\"\")","v":""},{"$f":"IF(ROWS(M$1:M4)<=O$1,INDEX(A$1:A$11,SMALL(IF(L$1:L$11=\"\",ROW(L$1:L$11)-ROW(L$1)+1),ROWS(M$1:M4))),\"\")","v":"Gold Full PPO 500/30 OffEx"}]
["Gold Full PPO 750/30 OffEx",null,{"$f":"LOOKUP(\"zzzzz\",CHOOSE({1,2},\"\",INDEX(E:E,SMALL(IF($E$1:$E$43<>\"\",ROW($E$1:$E$43)),ROWS($C$1:C5)))))","v":""},null,{"$f":"IF(MGA!D110=\"\",\"\",MGA!D110)","v":""},null,0,"",{"$nulls":3},{"$f":"IF(OR(MGA!$D$106:$D$116=A5),A5,\"\")","v":""},{"$f":"IF(ROWS(M$1:M5)<=O$1,INDEX(A$1:A$11,SMALL(IF(L$1:L$11=\"\",ROW(L$1:L$11)-ROW(L$1)+1),ROWS(M$1:M5))),\"\")","v":"Gold Full PPO 750/30 OffEx"}]
["Gold Full PPO 1200/35 OffEx",null,{"$f":"LOOKUP(\"zzzzz\",CHOOSE({1,2},\"\",INDEX(E:E,SMALL(IF($E$1:$E$43<>\"\",ROW($E$1:$E$43)),ROWS($C$1:C6)))))","v":""},null,{"$f":"IF(MGA!D111=\"\",\"\",MGA!D111)","v":""},null,0,"",{"$nulls":3},{"$f":"IF(OR(MGA!$D$106:$D$116=A6),A6,\"\")","v":""},{"$f":"IF(ROWS(M$1:M6)<=O$1,INDEX(A$1:A$11,SMALL(IF(L$1:L$11=\"\",ROW(L$1:L$11)-ROW(L$1)+1),ROWS(M$1:M6))),\"\")","v":"Gold Full PPO 1200/35 OffEx"}]
["Silver Full PPO 1700/55 OffEx",null,{"$f":"LOOKUP(\"zzzzz\",CHOOSE({1,2},\"\",INDEX(E:E,SMALL(IF($E$1:$E$43<>\"\",ROW($E$1:$E$43)),ROWS($C$1:C7)))))","v":""},null,{"$f":"IF(MGA!D112=\"\",\"\",MGA!D112)","v":""},null,0,"",{"$nulls":3},{"$f":"IF(OR(MGA!$D$106:$D$116=A7),A7,\"\")","v":""},{"$f":"IF(ROWS(M$1:M7)<=O$1,INDEX(A$1:A$11,SMALL(IF(L$1:L$11=\"\",ROW(L$1:L$11)-ROW(L$1)+1),ROWS(M$1:M7))),\"\")","v":"Silver Full PPO 1700/55 OffEx"}]
["Silver Full PPO 2000/45 OffEx",null,{"$f":"LOOKUP(\"zzzzz\",CHOOSE({1,2},\"\",INDEX(E:E,SMALL(IF($E$1:$E$43<>\"\",ROW($E$1:$E$43)),ROWS($C$1:C8)))))","v":""},null,{"$f":"IF(MGA!D113=\"\",\"\",MGA!D113)","v":""},null,0,"",{"$nulls":3},{"$f":"IF(OR(MGA!$D$106:$D$116=A8),A8,\"\")","v":""},{"$f":"IF(ROWS(M$1:M8)<=O$1,INDEX(A$1:A$11,SMALL(IF(L$1:L$11=\"\",ROW(L$1:L$11)-ROW(L$1)+1),ROWS(M$1:M8))),\"\")","v":"Silver Full PPO 2000/45 OffEx"}]
["Bronze Full PPO 6500/50% OffEx",null,{"$f":"LOOKUP(\"zzzzz\",CHOOSE({1,2},\"\",INDEX(E:E,SMALL(IF($E$1:$E$43<>\"\",ROW($E$1:$E$43)),ROWS($C$1:C9)))))","v":""},null,{"$f":"IF(MGA!D114=\"\",\"\",MGA!D114)","v":""},null,0,"",{"$nulls":3},{"$f":"IF(OR(MGA!$D$106:$D$116=A9),A9,\"\")","v":""},{"$f":"IF(ROWS(M$1:M9)<=O$1,INDEX(A$1:A$11,SMALL(IF(L$1:L$11=\"\",ROW(L$1:L$11)-ROW(L$1)+1),ROWS(M$1:M9))),\"\")","v":"Bronze Full PPO 6500/50% OffEx"}]
[null,null,{"$f":"LOOKUP(\"zzzzz\",CHOOSE({1,2},\"\",INDEX(E:E,SMALL(IF($E$1:$E$43<>\"\",ROW($E$1:$E$43)),ROWS($C$1:C10)))))","v":""},null,{"$f":"IF(MGA!D115=\"\",\"\",MGA!D115)","v":""},null,{"$f":"LEN(H10)","v":0},"",{"$nulls":3},{"$f":"IF(OR(MGA!$D$106:$D$116=A10),A10,\"\")","v":0},{"$f":"IF(ROWS(M$1:M10)<=O$1,INDEX(A$1:A$11,SMALL(IF(L$1:L$11=\"\",ROW(L$1:L$11)-ROW(L$1)+1),ROWS(M$1:M10))),\"\")","v":""}]
[null,null,{"$f":"LOOKUP(\"zzzzz\",CHOOSE({1,2},\"\",INDEX(E:E,SMALL(IF($E$1:$E$43<>\"\",ROW($E$1:$E$43)),ROWS($C$1:C11)))))","v":""},null,{"$f":"IF(MGA!D116=\"\",\"\",MGA!D116)","v":""},null,0,"",{"$nulls":3},{"$f":"IF(OR(MGA!$D$106:$D$116=A11),A11,\"\")","v":0},{"$f":"IF(ROWS(M$1:M11)<=O$1,INDEX(A$1:A$11,SMALL(IF(L$1:L$11=\"\",ROW(L$1:L$11)-ROW(L$1)+1),ROWS(M$1:M11))),\"\")","v":""}]
["Silver Full PPO Savings 2000/20% OffEx",null,{"$f":"LOOKUP(\"zzzzz\",CHOOSE({1,2},\"\",INDEX(E:E,SMALL(IF($E$1:$E$43<>\"\",ROW($E$1:$E$43)),ROWS($C$1:C12)))))","v":""},null,{"$f":"IF(MGA!E106=\"\",\"\",MGA!E106)","v":""},null,0,"",{"$nulls":3},{"$f":"IF(OR(MGA!$E$106:$E$109=A12),A12,\"\")","v":""},{"$f":"IF(ROWS(M$12:M12)<=O$12,INDEX(A$12:A$15,SMALL(IF(L$12:L$15=\"\",ROW(L$12:L$15)-ROW(L$12)+1),ROWS(M$12:M12))),\"\")","v":"Silver Full PPO Savings 2000/20% OffEx"},null,{"$f":"COUNTBLANK(L12:L15)","v":4},{"$f":"ROW()","v":12},{"$f":"OFFSET(ListValues!$M$12,0,0,ListValues!$O$12)","v":"Silver Full PPO Savings 2000/20% OffEx"}]
["Bronze Full PPO Savings 5300/40% OffEx",null,{"$f":"LOOKUP(\"zzzzz\",CHOOSE({1,2},\"\",INDEX(E:E,SMALL(IF($E$1:$E$43<>\"\",ROW($E$1:$E$43)),ROWS($C$1:C13)))))","v":""},null,{"$f":"IF(MGA!E107=\"\",\"\",MGA!E107)","v":""},null,0,"",{"$nulls":3},{"$f":"IF(OR(MGA!$E$106:$E$109=A13),A13,\"\")","v":""},{"$f":"IF(ROWS(M$12:M13)<=O$12,INDEX(A$12:A$15,SMALL(IF(L$12:L$15=\"\",ROW(L$12:L$15)-ROW(L$12)+1),ROWS(M$12:M13))),\"\")","v":"Bronze Full PPO Savings 5300/40% OffEx"}]
["Bronze Full PPO Savings 6650 OffEx",null,{"$f":"LOOKUP(\"zzzzz\",CHOOSE({1,2},\"\",INDEX(E:E,SMALL(IF($E$1:$E$43<>\"\",ROW($E$1:$E$43)),ROWS($C$1:C14)))))","v":""},null,{"$f":"IF(MGA!E108=\"\",\"\",MGA!E108)","v":""},null,{"$f":"LEN(H14)","v":0},"",{"$nulls":3},{"$f":"IF(OR(MGA!$E$106:$E$109=A14),A14,\"\")","v":""},{"$f":"IF(ROWS(M$12:M14)<=O$12,INDEX(A$12:A$15,SMALL(IF(L$12:L$15=\"\",ROW(L$12:L$15)-ROW(L$12)+1),ROWS(M$12:M14))),\"\")","v":"Bronze Full PPO Savings 6650 OffEx"}]
["Silver Tandem PPO Savings 2000/20% OffEx",null,{"$f":"LOOKUP(\"zzzzz\",CHOOSE({1,2},\"\",INDEX(E:E,SMALL(IF($E$1:$E$43<>\"\",ROW($E$1:$E$43)),ROWS($C$1:C15)))))","v":""},null,{"$f":"IF(MGA!E109=\"\",\"\",MGA!E109)","v":""},null,0,"",{"$nulls":3},{"$f":"IF(OR(MGA!$E$106:$E$109=A15),A15,\"\")","v":""},{"$f":"IF(ROWS(M$12:M15)<=O$12,INDEX(A$12:A$15,SMALL(IF(L$12:L$15=\"\",ROW(L$12:L$15)-ROW(L$12)+1),ROWS(M$12:M15))),\"\")","v":"Silver Tandem PPO Savings 2000/20% OffEx"}]
["Platinum Tandem PPO 0/10 OffEx",null,{"$f":"LOOKUP(\"zzzzz\",CHOOSE({1,2},\"\",INDEX(E:E,SMALL(IF($E$1:$E$43<>\"\",ROW($E$1:$E$43)),ROWS($C$1:C16)))))","v":""},null,{"$f":"IF(MGA!F106=\"\",\"\",MGA!F106)","v":""},null,0,"",{"$nulls":3},{"$f":"IF(OR(MGA!$F$106:$F$112=A16),A16,\"\")","v":""},{"$f":"IF(ROWS(M$16:M16)<=O$16,INDEX(A$16:A$22,SMALL(IF(L$16:L$22=\"\",ROW(L$16:L$22)-ROW(L$16)+1),ROWS(M$16:M16))),\"\")","v":"Platinum Tandem PPO 0/10 OffEx"},null,{"$f":"COUNTBLANK(L16:L22)","v":6},{"$f":"ROW()","v":16},{"$f":"OFFSET(ListValues!$M$16,0,0,ListValues!$O$16)","v":"Platinum Tandem PPO 0/10 OffEx"}]
["Platinum Tandem PPO 250/15 OffEx",null,{"$f":"LOOKUP(\"zzzzz\",CHOOSE({1,2},\"\",INDEX(E:E,SMALL(IF($E$1:$E$43<>\"\",ROW($E$1:$E$43)),ROWS($C$1:C17)))))","v":""},null,{"$f":"IF(MGA!F107=\"\",\"\",MGA!F107)","v":""},null,0,"",{"$nulls":3},{"$f":"IF(OR(MGA!$F$106:$F$112=A17),A17,\"\")","v":""},{"$f":"IF(ROWS(M$16:M17)<=O$16,INDEX(A$16:A$22,SMALL(IF(L$16:L$22=\"\",ROW(L$16:L$22)-ROW(L$16)+1),ROWS(M$16:M17))),\"\")","v":"Platinum Tandem PPO 250/15 OffEx"}]
["Gold Tandem PPO 750/30 OffEx",null,{"$f":"LOOKUP(\"zzzzz\",CHOOSE({1,2},\"\",INDEX(E:E,SMALL(IF($E$1:$E$43<>\"\",ROW($E$1:$E$43)),ROWS($C$1:C18)))))","v":""},null,{"$f":"IF(MGA!F108=\"\",\"\",MGA!F108)","v":""},null,0,"",{"$nulls":3},{"$f":"IF(OR(MGA!$F$106:$F$112=A18),A18,\"\")","v":""},{"$f":"IF(ROWS(M$16:M18)<=O$16,INDEX(A$16:A$22,SMALL(IF(L$16:L$22=\"\",ROW(L$16:L$22)-ROW(L$16)+1),ROWS(M$16:M18))),\"\")","v":"Gold Tandem PPO 750/30 OffEx"}]
["Silver Tandem PPO 1700/55 OffEx",null,{"$f":"LOOKUP(\"zzzzz\",CHOOSE({1,2},\"\",INDEX(E:E,SMALL(IF($E$1:$E$43<>\"\",ROW($E$1:$E$43)),ROWS($C$1:C19)))))","v":""},null,{"$f":"IF(MGA!F109=\"\",\"\",MGA!F109)","v":""},null,0,"",{"$nulls":3},{"$f":"IF(OR(MGA!$F$106:$F$112=A19),A19,\"\")","v":""},{"$f":"IF(ROWS(M$16:M19)<=O$16,INDEX(A$16:A$22,SMALL(IF(L$16:L$22=\"\",ROW(L$16:L$22)-ROW(L$16)+1),ROWS(M$16:M19))),\"\")","v":"Silver Tandem PPO 1700/55 OffEx"}]
["Silver Tandem PPO 2000/45 OffEx",null,{"$f":"LOOKUP(\"zzzzz\",CHOOSE({1,2},\"\",INDEX(E:E,SMALL(IF($E$1:$E$43<>\"\",ROW($E$1:$E$43)),ROWS($C$1:C20)))))","v":""},null,{"$f":"IF(MGA!F110=\"\",\"\",MGA!F110)","v":""},null,0,"",{"$nulls":3},{"$f":"IF(OR(MGA!$F$106:$F$112=A20),A20,\"\")","v":""},{"$f":"IF(ROWS(M$16:M20)<=O$16,INDEX(A$16:A$22,SMALL(IF(L$16:L$22=\"\",ROW(L$16:L$22)-ROW(L$16)+1),ROWS(M$16:M20))),\"\")","v":"Silver Tandem PPO 2000/45 OffEx"}]
["Bronze Tandem PPO 6500/50% OffEx",null,{"$f":"LOOKUP(\"zzzzz\",CHOOSE({1,2},\"\",INDEX(E:E,SMALL(IF($E$1:$E$43<>\"\",ROW($E$1:$E$43)),ROWS($C$1:C21)))))","v":""},null,{"$f":"IF(MGA!F111=\"\",\"\",MGA!F111)","v":""},null,{"$f":"LEN(H21)","v":0},"",{"$nulls":3},{"$f":"IF(OR(MGA!$F$106:$F$112=A21),A21,\"\")","v":""},{"$f":"IF(ROWS(M$16:M21)<=O$16,INDEX(A$16:A$22,SMALL(IF(L$16:L$22=\"\",ROW(L$16:L$22)-ROW(L$16)+1),ROWS(M$16:M21))),\"\")","v":"Bronze Tandem PPO 6500/50% OffEx"}]
[null,null,{"$f":"LOOKUP(\"zzzzz\",CHOOSE({1,2},\"\",INDEX(E:E,SMALL(IF($E$1:$E$43<>\"\",ROW($E$1:$E$43)),ROWS($C$1:C22)))))","v":""},null,{"$f":"IF(MGA!F112=\"\",\"\",MGA!F112)","v":""},null,0,"",{"$nulls":3},{"$f":"IF(OR(MGA!$F$106:$F$112=A22),A22,\"\")","v":0},{"$f":"IF(ROWS(M$16:M22)<=O$16,INDEX(A$16:A$22,SMALL(IF(L$16:L$22=\"\",ROW(L$16:L$22)-ROW(L$16)+1),ROWS(M$16:M22))),\"\")","v":""}]
["Platinum Access+ HMO 0/20 OffEx",null,{"$f":"LOOKUP(\"zzzzz\",CHOOSE({1,2},\"\",INDEX(E:E,SMALL(IF($E$1:$E$43<>\"\",ROW($E$1:$E$43)),ROWS($C$1:C23)))))","v":""},null,{"$f":"IF(MGA!D124=\"\",\"\",MGA!D124)","v":""},null,0,"",{"$nulls":3},{"$f":"IF(OR(MGA!$D$124:$D$130=A23),A23,\"\")","v":""},{"$f":"IF(ROWS(M$23:M23)<=O$23,INDEX(A$23:A$29,SMALL(IF(L$23:L$29=\"\",ROW(L$23:L$29)-ROW(L$23)+1),ROWS(M$23:M23))),\"\")","v":"Platinum Access+ HMO 0/20 OffEx"},null,{"$f":"COUNTBLANK(L23:L29)","v":7},{"$f":"ROW()","v":23},{"$f":"OFFSET(ListValues!$M$23,0,0,ListValues!$O$23)","v":"Platinum Access+ HMO 0/20 OffEx"}]
["Platinum Access+ HMO 0/25 OffEx",null,{"$f":"LOOKUP(\"zzzzz\",CHOOSE({1,2},\"\",INDEX(E:E,SMALL(IF($E$1:$E$43<>\"\",ROW($E$1:$E$43)),ROWS($C$1:C24)))))","v":""},null,{"$f":"IF(MGA!D125=\"\",\"\",MGA!D125)","v":""},null,0,"",{"$nulls":3},{"$f":"IF(OR(MGA!$D$124:$D$130=A24),A24,\"\")","v":""},{"$f":"IF(ROWS(M$23:M24)<=O$23,INDEX(A$23:A$29,SMALL(IF(L$23:L$29=\"\",ROW(L$23:L$29)-ROW(L$23)+1),ROWS(M$23:M24))),\"\")","v":"Platinum Access+ HMO 0/25 OffEx"}]
["Platinum Access+ HMO 0/30 OffEx",null,{"$f":"LOOKUP(\"zzzzz\",CHOOSE({1,2},\"\",INDEX(E:E,SMALL(IF($E$1:$E$43<>\"\",ROW($E$1:$E$43)),ROWS($C$1:C25)))))","v":""},null,{"$f":"IF(MGA!D126=\"\",\"\",MGA!D126)","v":""},null,0,"",{"$nulls":3},{"$f":"IF(OR(MGA!$D$124:$D$130=A25),A25,\"\")","v":""},{"$f":"IF(ROWS(M$23:M25)<=O$23,INDEX(A$23:A$29,SMALL(IF(L$23:L$29=\"\",ROW(L$23:L$29)-ROW(L$23)+1),ROWS(M$23:M25))),\"\")","v":"Platinum Access+ HMO 0/30 OffEx"}]
["Gold Access+ HMO 0/30 OffEx",null,{"$f":"LOOKUP(\"zzzzz\",CHOOSE({1,2},\"\",INDEX(E:E,SMALL(IF($E$1:$E$43<>\"\",ROW($E$1:$E$43)),ROWS($C$1:C26)))))","v":""},null,{"$f":"IF(MGA!D127=\"\",\"\",MGA!D127)","v":""},null,0,"",{"$nulls":3},{"$f":"IF(OR(MGA!$D$124:$D$130=A26),A26,\"\")","v":""},{"$f":"IF(ROWS(M$23:M26)<=O$23,INDEX(A$23:A$29,SMALL(IF(L$23:L$29=\"\",ROW(L$23:L$29)-ROW(L$23)+1),ROWS(M$23:M26))),\"\")","v":"Gold Access+ HMO 0/30 OffEx"}]
["Gold Access+ HMO 500/35 OffEx",null,{"$f":"LOOKUP(\"zzzzz\",CHOOSE({1,2},\"\",INDEX(E:E,SMALL(IF($E$1:$E$43<>\"\",ROW($E$1:$E$43)),ROWS($C$1:C27)))))","v":""},null,{"$f":"IF(MGA!D128=\"\",\"\",MGA!D128)","v":""},null,0,"",{"$nulls":3},{"$f":"IF(OR(MGA!$D$124:$D$130=A27),A27,\"\")","v":""},{"$f":"IF(ROWS(M$23:M27)<=O$23,INDEX(A$23:A$29,SMALL(IF(L$23:L$29=\"\",ROW(L$23:L$29)-ROW(L$23)+1),ROWS(M$23:M27))),\"\")","v":"Gold Access+ HMO 500/35 OffEx"}]
["Gold Access+ HMO 1500/35 OffEx",null,{"$f":"LOOKUP(\"zzzzz\",CHOOSE({1,2},\"\",INDEX(E:E,SMALL(IF($E$1:$E$43<>\"\",ROW($E$1:$E$43)),ROWS($C$1:C28)))))","v":""},null,{"$f":"IF(MGA!D129=\"\",\"\",MGA!D129)","v":""},null,{"$f":"LEN(H28)","v":0},"",{"$nulls":3},{"$f":"IF(OR(MGA!$D$124:$D$130=A28),A28,\"\")","v":""},{"$f":"IF(ROWS(M$23:M28)<=O$23,INDEX(A$23:A$29,SMALL(IF(L$23:L$29=\"\",ROW(L$23:L$29)-ROW(L$23)+1),ROWS(M$23:M28))),\"\")","v":"Gold Access+ HMO 1500/35 OffEx"}]
["Silver Access+ HMO 1975/55 OffEx",null,{"$f":"LOOKUP(\"zzzzz\",CHOOSE({1,2},\"\",INDEX(E:E,SMALL(IF($E$1:$E$43<>\"\",ROW($E$1:$E$43)),ROWS($C$1:C29)))))","v":""},null,{"$f":"IF(MGA!D130=\"\",\"\",MGA!D130)","v":""},null,0,"",{"$nulls":3},{"$f":"IF(OR(MGA!$D$124:$D$130=A29),A29,\"\")","v":""},{"$f":"IF(ROWS(M$23:M29)<=O$23,INDEX(A$23:A$29,SMALL(IF(L$23:L$29=\"\",ROW(L$23:L$29)-ROW(L$23)+1),ROWS(M$23:M29))),\"\")","v":"Silver Access+ HMO 1975/55 OffEx"}]
["Platinum Trio HMO 0/20 OffEx",null,{"$f":"LOOKUP(\"zzzzz\",CHOOSE({1,2},\"\",INDEX(E:E,SMALL(IF($E$1:$E$43<>\"\",ROW($E$1:$E$43)),ROWS($C$1:C30)))))","v":""},null,{"$f":"IF(MGA!E124=\"\",\"\",MGA!E124)","v":""},null,0,"",{"$nulls":3},{"$f":"IF(OR(MGA!$E$124:$E$130=A30),A30,\"\")","v":""},{"$f":"IF(ROWS(M$30:M30)<=O$30,INDEX(A$30:A$36,SMALL(IF(L$30:L$36=\"\",ROW(L$30:L$36)-ROW(L$30)+1),ROWS(M$30:M30))),\"\")","v":"Platinum Trio HMO 0/20 OffEx"},null,{"$f":"COUNTBLANK(L30:L36)","v":7},{"$f":"ROW()","v":30},{"$f":"OFFSET(ListValues!$M$30,0,0,ListValues!$O$30)","v":"Platinum Trio HMO 0/20 OffEx"}]
["Platinum Trio HMO 0/25 OffEx",null,{"$f":"LOOKUP(\"zzzzz\",CHOOSE({1,2},\"\",INDEX(E:E,SMALL(IF($E$1:$E$43<>\"\",ROW($E$1:$E$43)),ROWS($C$1:C31)))))","v":""},null,{"$f":"IF(MGA!E125=\"\",\"\",MGA!E125)","v":""},null,0,"",{"$nulls":3},{"$f":"IF(OR(MGA!$E$124:$E$130=A31),A31,\"\")","v":""},{"$f":"IF(ROWS(M$30:M31)<=O$30,INDEX(A$30:A$36,SMALL(IF(L$30:L$36=\"\",ROW(L$30:L$36)-ROW(L$30)+1),ROWS(M$30:M31))),\"\")","v":"Platinum Trio HMO 0/25 OffEx"}]
["Platinum Trio HMO 0/30 OffEx",null,{"$f":"LOOKUP(\"zzzzz\",CHOOSE({1,2},\"\",INDEX(E:E,SMALL(IF($E$1:$E$43<>\"\",ROW($E$1:$E$43)),ROWS($C$1:C32)))))","v":""},null,{"$f":"IF(MGA!E126=\"\",\"\",MGA!E126)","v":""},null,0,"",{"$nulls":3},{"$f":"IF(OR(MGA!$E$124:$E$130=A32),A32,\"\")","v":""},{"$f":"IF(ROWS(M$30:M32)<=O$30,INDEX(A$30:A$36,SMALL(IF(L$30:L$36=\"\",ROW(L$30:L$36)-ROW(L$30)+1),ROWS(M$30:M32))),\"\")","v":"Platinum Trio HMO 0/30 OffEx"}]
["Gold Trio HMO 0/30 OffEx",null,{"$f":"LOOKUP(\"zzzzz\",CHOOSE({1,2},\"\",INDEX(E:E,SMALL(IF($E$1:$E$43<>\"\",ROW($E$1:$E$43)),ROWS($C$1:C33)))))","v":""},null,{"$f":"IF(MGA!E127=\"\",\"\",MGA!E127)","v":""},null,0,"",{"$nulls":3},{"$f":"IF(OR(MGA!$E$124:$E$130=A33),A33,\"\")","v":""},{"$f":"IF(ROWS(M$30:M33)<=O$30,INDEX(A$30:A$36,SMALL(IF(L$30:L$36=\"\",ROW(L$30:L$36)-ROW(L$30)+1),ROWS(M$30:M33))),\"\")","v":"Gold Trio HMO 0/30 OffEx"}]
["Gold Trio HMO 500/35 OffEx",null,{"$f":"LOOKUP(\"zzzzz\",CHOOSE({1,2},\"\",INDEX(E:E,SMALL(IF($E$1:$E$43<>\"\",ROW($E$1:$E$43)),ROWS($C$1:C34)))))","v":""},null,{"$f":"IF(MGA!E128=\"\",\"\",MGA!E128)","v":""},null,0,"",{"$nulls":3},{"$f":"IF(OR(MGA!$E$124:$E$130=A34),A34,\"\")","v":""},{"$f":"IF(ROWS(M$30:M34)<=O$30,INDEX(A$30:A$36,SMALL(IF(L$30:L$36=\"\",ROW(L$30:L$36)-ROW(L$30)+1),ROWS(M$30:M34))),\"\")","v":"Gold Trio HMO 500/35 OffEx"}]
["Gold Trio HMO 1500/35 OffEx",null,{"$f":"LOOKUP(\"zzzzz\",CHOOSE({1,2},\"\",INDEX(E:E,SMALL(IF($E$1:$E$43<>\"\",ROW($E$1:$E$43)),ROWS($C$1:C35)))))","v":""},null,{"$f":"IF(MGA!E129=\"\",\"\",MGA!E129)","v":""},null,{"$f":"LEN(H35)","v":0},"",{"$nulls":3},{"$f":"IF(OR(MGA!$E$124:$E$130=A35),A35,\"\")","v":""},{"$f":"IF(ROWS(M$30:M35)<=O$30,INDEX(A$30:A$36,SMALL(IF(L$30:L$36=\"\",ROW(L$30:L$36)-ROW(L$30)+1),ROWS(M$30:M35))),\"\")","v":"Gold Trio HMO 1500/35 OffEx"}]
["Silver Trio HMO 1975/55 OffEx",null,{"$f":"LOOKUP(\"zzzzz\",CHOOSE({1,2},\"\",INDEX(E:E,SMALL(IF($E$1:$E$43<>\"\",ROW($E$1:$E$43)),ROWS($C$1:C36)))))","v":""},null,{"$f":"IF(MGA!E130=\"\",\"\",MGA!E130)","v":""},null,0,"",{"$nulls":3},{"$f":"IF(OR(MGA!$E$124:$E$130=A36),A36,\"\")","v":""},{"$f":"IF(ROWS(M$30:M36)<=O$30,INDEX(A$30:A$36,SMALL(IF(L$30:L$36=\"\",ROW(L$30:L$36)-ROW(L$30)+1),ROWS(M$30:M36))),\"\")","v":"Silver Trio HMO 1975/55 OffEx"}]
["Platinum Local Access+ HMO 0/20 OffEx",null,{"$f":"LOOKUP(\"zzzzz\",CHOOSE({1,2},\"\",INDEX(E:E,SMALL(IF($E$1:$E$43<>\"\",ROW($E$1:$E$43)),ROWS($C$1:C37)))))","v":""},null,{"$f":"IF(MGA!F124=\"\",\"\",MGA!F124)","v":""},null,0,"",{"$nulls":3},{"$f":"IF(OR(MGA!$F$124:$F$130=A37),A37,\"\")","v":""},{"$f":"IF(ROWS(M$37:M37)<=O$37,INDEX(A$37:A$43,SMALL(IF(L$37:L$43=\"\",ROW(L$37:L$43)-ROW(L$37)+1),ROWS(M$37:M37))),\"\")","v":"Platinum Local Access+ HMO 0/20 OffEx"},null,{"$f":"COUNTBLANK(L37:L43)","v":7},{"$f":"ROW()","v":37},{"$f":"OFFSET(ListValues!$M$37,0,0,ListValues!$O$37)","v":"Platinum Local Access+ HMO 0/20 OffEx"}]
["Platinum Local Access+ HMO 0/25 OffEx",null,{"$f":"LOOKUP(\"zzzzz\",CHOOSE({1,2},\"\",INDEX(E:E,SMALL(IF($E$1:$E$43<>\"\",ROW($E$1:$E$43)),ROWS($C$1:C38)))))","v":""},null,{"$f":"IF(MGA!F125=\"\",\"\",MGA!F125)","v":""},null,0,"",{"$nulls":3},{"$f":"IF(OR(MGA!$F$124:$F$130=A38),A38,\"\")","v":""},{"$f":"IF(ROWS(M$37:M38)<=O$37,INDEX(A$37:A$43,SMALL(IF(L$37:L$43=\"\",ROW(L$37:L$43)-ROW(L$37)+1),ROWS(M$37:M38))),\"\")","v":"Platinum Local Access+ HMO 0/25 OffEx"}]
["Platinum Local Access+ HMO 0/30 OffEx",null,{"$f":"LOOKUP(\"zzzzz\",CHOOSE({1,2},\"\",INDEX(E:E,SMALL(IF($E$1:$E$43<>\"\",ROW($E$1:$E$43)),ROWS($C$1:C39)))))","v":""},null,{"$f":"IF(MGA!F126=\"\",\"\",MGA!F126)","v":""},null,0,"",{"$nulls":3},{"$f":"IF(OR(MGA!$F$124:$F$130=A39),A39,\"\")","v":""},{"$f":"IF(ROWS(M$37:M39)<=O$37,INDEX(A$37:A$43,SMALL(IF(L$37:L$43=\"\",ROW(L$37:L$43)-ROW(L$37)+1),ROWS(M$37:M39))),\"\")","v":"Platinum Local Access+ HMO 0/30 OffEx"}]
["Gold Local Access+ HMO 0/30 OffEx",null,{"$f":"LOOKUP(\"zzzzz\",CHOOSE({1,2},\"\",INDEX(E:E,SMALL(IF($E$1:$E$43<>\"\",ROW($E$1:$E$43)),ROWS($C$1:C40)))))","v":""},null,{"$f":"IF(MGA!F127=\"\",\"\",MGA!F127)","v":""},null,0,"",{"$nulls":3},{"$f":"IF(OR(MGA!$F$124:$F$130=A40),A40,\"\")","v":""},{"$f":"IF(ROWS(M$37:M40)<=O$37,INDEX(A$37:A$43,SMALL(IF(L$37:L$43=\"\",ROW(L$37:L$43)-ROW(L$37)+1),ROWS(M$37:M40))),\"\")","v":"Gold Local Access+ HMO 0/30 OffEx"}]
["Gold Local Access+ HMO 500/35 OffEx",null,{"$f":"LOOKUP(\"zzzzz\",CHOOSE({1,2},\"\",INDEX(E:E,SMALL(IF($E$1:$E$43<>\"\",ROW($E$1:$E$43)),ROWS($C$1:C41)))))","v":""},null,{"$f":"IF(MGA!F128=\"\",\"\",MGA!F128)","v":""},null,0,"",{"$nulls":3},{"$f":"IF(OR(MGA!$F$124:$F$130=A41),A41,\"\")","v":""},{"$f":"IF(ROWS(M$37:M41)<=O$37,INDEX(A$37:A$43,SMALL(IF(L$37:L$43=\"\",ROW(L$37:L$43)-ROW(L$37)+1),ROWS(M$37:M41))),\"\")","v":"Gold Local Access+ HMO 500/35 OffEx"}]
["Gold Local Access+ HMO 1500/35 OffEx",null,{"$f":"LOOKUP(\"zzzzz\",CHOOSE({1,2},\"\",INDEX(E:E,SMALL(IF($E$1:$E$43<>\"\",ROW($E$1:$E$43)),ROWS($C$1:C42)))))","v":""},null,{"$f":"IF(MGA!F129=\"\",\"\",MGA!F129)","v":""},null,{"$f":"LEN(H42)","v":0},"",{"$nulls":3},{"$f":"IF(OR(MGA!$F$124:$F$130=A42),A42,\"\")","v":""},{"$f":"IF(ROWS(M$37:M42)<=O$37,INDEX(A$37:A$43,SMALL(IF(L$37:L$43=\"\",ROW(L$37:L$43)-ROW(L$37)+1),ROWS(M$37:M42))),\"\")","v":"Gold Local Access+ HMO 1500/35 OffEx"}]
["Silver Local Access+ HMO 1975/55 OffEx",null,{"$f":"LOOKUP(\"zzzzz\",CHOOSE({1,2},\"\",INDEX(E:E,SMALL(IF($E$1:$E$43<>\"\",ROW($E$1:$E$43)),ROWS($C$1:C43)))))","v":""},null,{"$f":"IF(MGA!F130=\"\",\"\",MGA!F130)","v":""},null,0,"",{"$nulls":3},{"$f":"IF(OR(MGA!$F$124:$F$130=A43),A43,\"\")","v":""},{"$f":"IF(ROWS(M$37:M43)<=O$37,INDEX(A$37:A$43,SMALL(IF(L$37:L$43=\"\",ROW(L$37:L$43)-ROW(L$37)+1),ROWS(M$37:M43))),\"\")","v":"Silver Local Access+ HMO 1975/55 OffEx"}]
[{"$nulls":6},0]
["Blue Shield Trio Platinum 90 HMO 0/15 + Child Dental",null,{"$f":"LOOKUP(\"zzzzz\",CHOOSE({1,2},\"\",INDEX(E:E,SMALL(IF($E$45:$E$51<>\"\",ROW($E$45:$E$51)),ROWS($C$45:C45)))))","v":""},null,{"$f":"IF(MGA!D136=\"\",\"\",MGA!D136)","v":""},null,0,{"$f":"IF(C46=\"\",C45,C45&\";\")","v":""},{"$nulls":3},{"$f":"IF(OR(MGA!$D$136:$D$142=A45),A45,\"\")","v":""},{"$f":"IF(ROWS(M$45:M45)<=O$45,INDEX(A$45:A$51,SMALL(IF(L$45:L$51=\"\",ROW(L$45:L$51)-ROW(L$45)+1),ROWS(M$45:M45))),\"\")","v":"Blue Shield Trio Platinum 90 HMO 0/15 + Child Dental"},null,{"$f":"COUNTBLANK(L45:L51)","v":7},{"$f":"ROW()","v":45},{"$f":"OFFSET(ListValues!$M$45,0,0,ListValues!$O$45)","v":"Blue Shield Trio Platinum 90 HMO 0/15 + Child Dental"}]
["Blue Shield Platinum 90 PPO 0/15 + Child Dental",null,{"$f":"LOOKUP(\"zzzzz\",CHOOSE({1,2},\"\",INDEX(E:E,SMALL(IF($E$45:$E$51<>\"\",ROW($E$45:$E$51)),ROWS($C$45:C46)))))","v":""},null,{"$f":"IF(MGA!D137=\"\",\"\",MGA!D137)","v":""},null,0,{"$f":"IF(C47=\"\",H45&C46,H45&C46&\";\")","v":""},{"$nulls":3},{"$f":"IF(OR(MGA!$D$136:$D$142=A46),A46,\"\")","v":""},{"$f":"IF(ROWS(M$45:M46)<=O$45,INDEX(A$45:A$51,SMALL(IF(L$45:L$51=\"\",ROW(L$45:L$51)-ROW(L$45)+1),ROWS(M$45:M46))),\"\")","v":"Blue Shield Platinum 90 PPO 0/15 + Child Dental"}]
["Blue Shield Trio Gold 80 HMO 0/30 + Child Dental",null,{"$f":"LOOKUP(\"zzzzz\",CHOOSE({1,2},\"\",INDEX(E:E,SMALL(IF($E$45:$E$51<>\"\",ROW($E$45:$E$51)),ROWS($C$45:C47)))))","v":""},null,{"$f":"IF(MGA!D138=\"\",\"\",MGA!D138)","v":""},null,0,"",{"$nulls":3},{"$f":"IF(OR(MGA!$D$136:$D$142=A47),A47,\"\")","v":""},{"$f":"IF(ROWS(M$45:M47)<=O$45,INDEX(A$45:A$51,SMALL(IF(L$45:L$51=\"\",ROW(L$45:L$51)-ROW(L$45)+1),ROWS(M$45:M47))),\"\")","v":"Blue Shield Trio Gold 80 HMO 0/30 + Child Dental"}]
["Blue Shield Gold 80 PPO 0/30 + Child Dental",null,{"$f":"LOOKUP(\"zzzzz\",CHOOSE({1,2},\"\",INDEX(E:E,SMALL(IF($E$45:$E$51<>\"\",ROW($E$45:$E$51)),ROWS($C$45:C48)))))","v":""},null,{"$f":"IF(MGA!D139=\"\",\"\",MGA!D139)","v":""},null,0,"",{"$nulls":3},{"$f":"IF(OR(MGA!$D$136:$D$142=A48),A48,\"\")","v":""},{"$f":"IF(ROWS(M$45:M48)<=O$45,INDEX(A$45:A$51,SMALL(IF(L$45:L$51=\"\",ROW(L$45:L$51)-ROW(L$45)+1),ROWS(M$45:M48))),\"\")","v":"Blue Shield Gold 80 PPO 0/30 + Child Dental"}]
["Blue Shield Trio Silver 70 HMO 2000/45 + Child Dental",null,{"$f":"LOOKUP(\"zzzzz\",CHOOSE({1,2},\"\",INDEX(E:E,SMALL(IF($E$45:$E$51<>\"\",ROW($E$45:$E$51)),ROWS($C$45:C49)))))","v":""},null,{"$f":"IF(MGA!D140=\"\",\"\",MGA!D140)","v":""},null,0,"",{"$nulls":3},{"$f":"IF(OR(MGA!$D$136:$D$142=A49),A49,\"\")","v":""},{"$f":"IF(ROWS(M$45:M49)<=O$45,INDEX(A$45:A$51,SMALL(IF(L$45:L$51=\"\",ROW(L$45:L$51)-ROW(L$45)+1),ROWS(M$45:M49))),\"\")","v":"Blue Shield Trio Silver 70 HMO 2000/45 + Child Dental"}]
["Blue Shield Silver 70 PPO 2000/45 + Child Dental",null,{"$f":"LOOKUP(\"zzzzz\",CHOOSE({1,2},\"\",INDEX(E:E,SMALL(IF($E$45:$E$51<>\"\",ROW($E$45:$E$51)),ROWS($C$45:C50)))))","v":""},null,{"$f":"IF(MGA!D141=\"\",\"\",MGA!D141)","v":""},null,0,"",{"$nulls":3},{"$f":"IF(OR(MGA!$D$136:$D$142=A50),A50,\"\")","v":""},{"$f":"IF(ROWS(M$45:M50)<=O$45,INDEX(A$45:A$51,SMALL(IF(L$45:L$51=\"\",ROW(L$45:L$51)-ROW(L$45)+1),ROWS(M$45:M50))),\"\")","v":"Blue Shield Silver 70 PPO 2000/45 + Child Dental"}]
["Blue Shield Bronze 60 PPO 6300/75 + Child Dental",null,{"$f":"LOOKUP(\"zzzzz\",CHOOSE({1,2},\"\",INDEX(E:E,SMALL(IF($E$45:$E$51<>\"\",ROW($E$45:$E$51)),ROWS($C$45:C51)))))","v":""},null,{"$f":"IF(MGA!D142=\"\",\"\",MGA!D142)","v":""},null,0,"",{"$nulls":3},{"$f":"IF(OR(MGA!$D$136:$D$142=A51),A51,\"\")","v":""},{"$f":"IF(ROWS(M$45:M51)<=O$45,INDEX(A$45:A$51,SMALL(IF(L$45:L$51=\"\",ROW(L$45:L$51)-ROW(L$45)+1),ROWS(M$45:M51))),\"\")","v":"Blue Shield Bronze 60 PPO 6300/75 + Child Dental"}]
[{"$nulls":6},"Waive",{"$f":"LOOKUP(\"zzzzz\",CHOOSE({1,2},\"\",INDEX(G:G,SMALL(IF($G$52:$G$69<>\"\",ROW($G$52:$G$69)),ROWS($H$52:H52)))))","v":"Waive"}]
["DHMO Basic",null,{"$f":"LOOKUP(\"zzzzz\",CHOOSE({1,2},\"\",INDEX(E:E,SMALL(IF($E$53:$E$55<>\"\",ROW($E$53:$E$55)),ROWS($C$53:C53)))))","v":""},null,{"$f":"IF(MGA!D156=\"\",\"\",MGA!D156)","v":""},null,{"$f":"IF(COUNTBLANK(Dental_HMO_MGA)<3,\"Dental_HMO\",\"\")","v":""},{"$f":"LOOKUP(\"zzzzz\",CHOOSE({1,2},\"\",INDEX(G:G,SMALL(IF($G$52:$G$69<>\"\",ROW($G$52:$G$69)),ROWS($H$52:H53)))))","v":""},{"$f":"LOOKUP(\"zzzzz\",CHOOSE({1,2},\"\",INDEX(E:E,SMALL(IF($E$53:$E$69<>\"\",ROW($E$53:$E$69)),ROWS($C$53:C53)))))","v":""},{"$f":"LEN(K53)","v":0},{"$f":"IF(I54=\"\",I53,I53&\";\")","v":""},{"$f":"IF(OR(MGA!$D$156:$D$158=A53),A53,\"\")","v":""},{"$f":"IF(ROWS(M$53:M53)<=O$53,INDEX(A$53:A$56,SMALL(IF(L$53:L$56=\"\",ROW(L$53:L$56)-ROW(L$53)+1),ROWS(M$53:M53))),\"\")","v":"DHMO Basic"},null,{"$f":"COUNTBLANK(L53:L56)","v":4},{"$f":"ROW()","v":53},{"$f":"OFFSET(ListValues!$M$53,0,0,ListValues!$O$53)","v":"DHMO Basic"}]
["DHMO Deluxe",null,{"$f":"LOOKUP(\"zzzzz\",CHOOSE({1,2},\"\",INDEX(E:E,SMALL(IF($E$53:$E$55<>\"\",ROW($E$53:$E$55)),ROWS($C$53:C54)))))","v":""},null,{"$f":"IF(MGA!D157=\"\",\"\",MGA!D157)","v":""},null,null,{"$f":"LOOKUP(\"zzzzz\",CHOOSE({1,2},\"\",INDEX(G:G,SMALL(IF($G$52:$G$69<>\"\",ROW($G$52:$G$69)),ROWS($H$52:H54)))))","v":""},{"$f":"LOOKUP(\"zzzzz\",CHOOSE({1,2},\"\",INDEX(E:E,SMALL(IF($E$53:$E$69<>\"\",ROW($E$53:$E$69)),ROWS($C$53:C54)))))","v":""},{"$f":"LEN(K54)","v":0},{"$f":"IF(I55=\"\",K53&I54,K53&I54&\";\")","v":""},{"$f":"IF(OR(MGA!$D$156:$D$158=A54),A54,\"\")","v":""},{"$f":"IF(ROWS(M$53:M54)<=O$53,INDEX(A$53:A$56,SMALL(IF(L$53:L$56=\"\",ROW(L$53:L$56)-ROW(L$53)+1),ROWS(M$53:M54))),\"\")","v":"DHMO Deluxe"}]
["DHMO Plus",null,{"$f":"LOOKUP(\"zzzzz\",CHOOSE({1,2},\"\",INDEX(E:E,SMALL(IF($E$53:$E$55<>\"\",ROW($E$53:$E$55)),ROWS($C$53:C55)))))","v":""},null,{"$f":"IF(MGA!D158=\"\",\"\",MGA!D158)","v":""},null,null,{"$f":"LOOKUP(\"zzzzz\",CHOOSE({1,2},\"\",INDEX(G:G,SMALL(IF($G$52:$G$69<>\"\",ROW($G$52:$G$69)),ROWS($H$52:H55)))))","v":""},{"$f":"LOOKUP(\"zzzzz\",CHOOSE({1,2},\"\",INDEX(E:E,SMALL(IF($E$53:$E$69<>\"\",ROW($E$53:$E$69)),ROWS($C$53:C55)))))","v":""},0,{"$f":"IF(I56=\"\",K54&I55,K54&I55&\";\")","v":""},{"$f":"IF(OR(MGA!$D$156:$D$158=A55),A55,\"\")","v":""},{"$f":"IF(ROWS(M$53:M55)<=O$53,INDEX(A$53:A$56,SMALL(IF(L$53:L$56=\"\",ROW(L$53:L$56)-ROW(L$53)+1),ROWS(M$53:M55))),\"\")","v":"DHMO Plus"}]
["DHMO Voluntary",null,{"$f":"LOOKUP(\"zzzzz\",CHOOSE({1,2},\"\",INDEX(E:E,SMALL(IF($E$53:$E$55<>\"\",ROW($E$53:$E$55)),ROWS($C$53:C56)))))","v":""},{"$nulls":5},{"$f":"LOOKUP(\"zzzzz\",CHOOSE({1,2},\"\",INDEX(E:E,SMALL(IF($E$53:$E$69<>\"\",ROW($E$53:$E$69)),ROWS($C$53:C56)))))","v":""},0,"",{"$f":"IF(OR(MGA!$D$156:$D$158=A56),A56,\"\")","v":""},{"$f":"IF(ROWS(M$53:M56)<=O$53,INDEX(A$53:A$56,SMALL(IF(L$53:L$56=\"\",ROW(L$53:L$56)-ROW(L$53)+1),ROWS(M$53:M56))),\"\")","v":"DHMO Voluntary"}]
[{"$nulls":8},{"$f":"LOOKUP(\"zzzzz\",CHOOSE({1,2},\"\",INDEX(E:E,SMALL(IF($E$53:$E$69<>\"\",ROW($E$53:$E$69)),ROWS($C$53:C57)))))","v":""},0,""]
["Smile (SM) 50/1500/No Ortho/MAC",null,{"$f":"LOOKUP(\"zzzzz\",CHOOSE({1,2},\"\",INDEX(E:E,SMALL(IF($E$58:$E$59<>\"\",ROW($E$58:$E$59)),ROWS($C$58:C58)))))","v":""},null,{"$f":"IF(MGA!E156=\"\",\"\",MGA!E156)","v":""},null,{"$f":"IF(COUNTBLANK(Dental_PPO_MGA)<2,\"Dental_PPO\",\"\")","v":""},null,{"$f":"LOOKUP(\"zzzzz\",CHOOSE({1,2},\"\",INDEX(E:E,SMALL(IF($E$53:$E$69<>\"\",ROW($E$53:$E$69)),ROWS($C$53:C58)))))","v":""},0,"",{"$f":"IF(OR(MGA!$E$156:$E$157=A58),A58,\"\")","v":""},{"$f":"IF(ROWS(M$58:M58)<=O$58,INDEX(A$58:A$69,SMALL(IF(L$58:L$69=\"\",ROW(L$58:L$69)-ROW(L$58)+1),ROWS(M$58:M58))),\"\")","v":"Smile (SM) 50/1500/No Ortho/MAC"},null,{"$f":"COUNTBLANK(L58:L69)","v":12},{"$f":"ROW()","v":58},{"$f":"OFFSET(ListValues!$M$58,0,0,ListValues!$O$58)","v":"Smile (SM) 50/1500/No Ortho/MAC"}]
["Smile (SM) Basic 75/1000/No Ortho/MAC",null,{"$f":"LOOKUP(\"zzzzz\",CHOOSE({1,2},\"\",INDEX(E:E,SMALL(IF($E$58:$E$59<>\"\",ROW($E$58:$E$59)),ROWS($C$58:C59)))))","v":""},null,{"$f":"IF(MGA!E157=\"\",\"\",MGA!E157)","v":""},{"$nulls":3},{"$f":"LOOKUP(\"zzzzz\",CHOOSE({1,2},\"\",INDEX(E:E,SMALL(IF($E$53:$E$69<>\"\",ROW($E$53:$E$69)),ROWS($C$53:C59)))))","v":""},0,"",{"$f":"IF(OR(MGA!$E$156:$E$157=A59),A59,\"\")","v":""},{"$f":"IF(ROWS(M$58:M59)<=O$58,INDEX(A$58:A$69,SMALL(IF(L$58:L$69=\"\",ROW(L$58:L$69)-ROW(L$58)+1),ROWS(M$58:M59))),\"\")","v":"Smile (SM) Basic 75/1000/No Ortho/MAC"}]
["Smile (SM) Basic Voluntary 75/1000/No Ortho/MAC",{"$nulls":7},{"$f":"LOOKUP(\"zzzzz\",CHOOSE({1,2},\"\",INDEX(E:E,SMALL(IF($E$53:$E$69<>\"\",ROW($E$53:$E$69)),ROWS($C$53:C60)))))","v":""},0,"",{"$f":"IF(OR(MGA!$E$156:$E$157=A60),A60,\"\")","v":""},{"$f":"IF(ROWS(M$58:M60)<=O$58,INDEX(A$58:A$69,SMALL(IF(L$58:L$69=\"\",ROW(L$58:L$69)-ROW(L$58)+1),ROWS(M$58:M60))),\"\")","v":"Smile (SM) Basic Voluntary 75/1000/No Ortho/MAC"}]
["Smile (SM) Deluxe 2000 50/2000/No Ortho/MAC",{"$nulls":7},{"$f":"LOOKUP(\"zzzzz\",CHOOSE({1,2},\"\",INDEX(E:E,SMALL(IF($E$53:$E$69<>\"\",ROW($E$53:$E$69)),ROWS($C$53:C61)))))","v":""},0,"",{"$f":"IF(OR(MGA!$E$156:$E$157=A61),A61,\"\")","v":""},{"$f":"IF(ROWS(M$58:M61)<=O$58,INDEX(A$58:A$69,SMALL(IF(L$58:L$69=\"\",ROW(L$58:L$69)-ROW(L$58)+1),ROWS(M$58:M61))),\"\")","v":"Smile (SM) Deluxe 2000 50/2000/No Ortho/MAC"}]
["Smile (SM) Deluxe 50/1500/Ortho/MAC",{"$nulls":7},{"$f":"LOOKUP(\"zzzzz\",CHOOSE({1,2},\"\",INDEX(E:E,SMALL(IF($E$53:$E$69<>\"\",ROW($E$53:$E$69)),ROWS($C$53:C62)))))","v":""},0,"",{"$f":"IF(OR(MGA!$E$156:$E$157=A62),A62,\"\")","v":""},{"$f":"IF(ROWS(M$58:M62)<=O$58,INDEX(A$58:A$69,SMALL(IF(L$58:L$69=\"\",ROW(L$58:L$69)-ROW(L$58)+1),ROWS(M$58:M62))),\"\")","v":"Smile (SM) Deluxe 50/1500/Ortho/MAC"}]
["Smile (SM) Deluxe Gold 50/1500/Ortho/U85",{"$nulls":7},{"$f":"LOOKUP(\"zzzzz\",CHOOSE({1,2},\"\",INDEX(E:E,SMALL(IF($E$53:$E$69<>\"\",ROW($E$53:$E$69)),ROWS($C$53:C63)))))","v":""},0,"",{"$f":"IF(OR(MGA!$E$156:$E$157=A63),A63,\"\")","v":""},{"$f":"IF(ROWS(M$58:M63)<=O$58,INDEX(A$58:A$69,SMALL(IF(L$58:L$69=\"\",ROW(L$58:L$69)-ROW(L$58)+1),ROWS(M$58:M63))),\"\")","v":"Smile (SM) Deluxe Gold 50/1500/Ortho/U85"}]
["Smile (SM) Deluxe Plus 2000 50/2000/Ortho/MAC",{"$nulls":7},{"$f":"LOOKUP(\"zzzzz\",CHOOSE({1,2},\"\",INDEX(E:E,SMALL(IF($E$53:$E$69<>\"\",ROW($E$53:$E$69)),ROWS($C$53:C64)))))","v":""},0,"",{"$f":"IF(OR(MGA!$E$156:$E$157=A64),A64,\"\")","v":""},{"$f":"IF(ROWS(M$58:M64)<=O$58,INDEX(A$58:A$69,SMALL(IF(L$58:L$69=\"\",ROW(L$58:L$69)-ROW(L$58)+1),ROWS(M$58:M64))),\"\")","v":"Smile (SM) Deluxe Plus 2000 50/2000/Ortho/MAC"}]
["Smile (SM) Plus 50/1500/Ortho/MAC",{"$nulls":7},{"$f":"LOOKUP(\"zzzzz\",CHOOSE({1,2},\"\",INDEX(E:E,SMALL(IF($E$53:$E$69<>\"\",ROW($E$53:$E$69)),ROWS($C$53:C65)))))","v":""},0,"",{"$f":"IF(OR(MGA!$E$156:$E$157=A65),A65,\"\")","v":""},{"$f":"IF(ROWS(M$58:M65)<=O$58,INDEX(A$58:A$69,SMALL(IF(L$58:L$69=\"\",ROW(L$58:L$69)-ROW(L$58)+1),ROWS(M$58:M65))),\"\")","v":"Smile (SM) Plus 50/1500/Ortho/MAC"}]
["Smile (SM) Plus Gold 50/1500/Ortho/U85",{"$nulls":7},{"$f":"LOOKUP(\"zzzzz\",CHOOSE({1,2},\"\",INDEX(E:E,SMALL(IF($E$53:$E$69<>\"\",ROW($E$53:$E$69)),ROWS($C$53:C66)))))","v":""},0,"",{"$f":"IF(OR(MGA!$E$156:$E$157=A66),A66,\"\")","v":""},{"$f":"IF(ROWS(M$58:M66)<=O$58,INDEX(A$58:A$69,SMALL(IF(L$58:L$69=\"\",ROW(L$58:L$69)-ROW(L$58)+1),ROWS(M$58:M66))),\"\")","v":"Smile (SM) Plus Gold 50/1500/Ortho/U85"}]
["Smile (SM) Value 50/1500/No Ortho/MAC",{"$nulls":7},{"$f":"LOOKUP(\"zzzzz\",CHOOSE({1,2},\"\",INDEX(E:E,SMALL(IF($E$53:$E$69<>\"\",ROW($E$53:$E$69)),ROWS($C$53:C67)))))","v":""},0,{"$f":"IF(I68=\"\",K66&I67,K66&I67&\";\")","v":""},{"$f":"IF(OR(MGA!$E$156:$E$157=A67),A67,\"\")","v":""},{"$f":"IF(ROWS(M$58:M67)<=O$58,INDEX(A$58:A$69,SMALL(IF(L$58:L$69=\"\",ROW(L$58:L$69)-ROW(L$58)+1),ROWS(M$58:M67))),\"\")","v":"Smile (SM) Value 50/1500/No Ortho/MAC"}]
["Ultimate Dental Plus PPO for Small Business 50/2000",{"$nulls":7},{"$f":"LOOKUP(\"zzzzz\",CHOOSE({1,2},\"\",INDEX(E:E,SMALL(IF($E$53:$E$69<>\"\",ROW($E$53:$E$69)),ROWS($C$53:C68)))))","v":""},0,"",{"$f":"IF(OR(MGA!$E$156:$E$157=A68),A68,\"\")","v":""},{"$f":"IF(ROWS(M$58:M68)<=O$58,INDEX(A$58:A$69,SMALL(IF(L$58:L$69=\"\",ROW(L$58:L$69)-ROW(L$58)+1),ROWS(M$58:M68))),\"\")","v":"Ultimate Dental Plus PPO for Small Business 50/2000"}]
["Ultimate Dental PPO for Small Business 50/2000",{"$nulls":7},{"$f":"LOOKUP(\"zzzzz\",CHOOSE({1,2},\"\",INDEX(E:E,SMALL(IF($E$53:$E$69<>\"\",ROW($E$53:$E$69)),ROWS($C$53:C69)))))","v":""},0,{"$f":"IF(I70=\"\",K68&I69,K68&I69&\";\")","v":""},{"$f":"IF(OR(MGA!$E$156:$E$157=A69),A69,\"\")","v":""},{"$f":"IF(ROWS(M$58:M69)<=O$58,INDEX(A$58:A$69,SMALL(IF(L$58:L$69=\"\",ROW(L$58:L$69)-ROW(L$58)+1),ROWS(M$58:M69))),\"\")","v":"Ultimate Dental PPO for Small Business 50/2000"}]
[]
["2 Dental HMO plans and 1 Dental PPO plan"]
["3 Dental HMO plans"]
["2 Dental PPO plans and 1 Dental HMO plan"]
[]
["Ultimate Vision for Small Business 0/0/120",null,{"$f":"LOOKUP(\"zzzzz\",CHOOSE({1,2},\"\",INDEX(E:E,SMALL(IF($E$75:$E$75<>\"\",ROW($E$75:$E$75)),ROWS($C$75:C75)))))","v":0},null,{"$f":"IF(MGA!D168=\"\",\"\",MGA!D168)","v":""},null,"Waive"]
["Ultimate Vision for Small Business 0/0/150",{"$nulls":5},{"$f":"IF(MGA!$D$168<>\"\",LEFT(MGA!$D$168,FIND(\" \",MGA!$D$168)-1),\"\")","v":""}]
["Ultimate Vision for Small Business 10/25/120"]
["Ultimate Vision for Small Business 10/25/150"]
["Ultimate Vision Plus for Small Business 0/0/150/120"]
["Ultimate Vision Plus for Small Business 10/25/150/120"]
["Ultimate Vision Voluntary for Small Business 10/25/150"]
["Preferred Vision for Small Business 0/0/120"]
["Preferred Vision for Small Business 0/0/150"]
["Preferred Vision for Small Business 10/25/120"]
["Preferred Vision for Small Business 10/25/150"]
["Preferred Vision Plus for Small Business 0/0/150/120"]
["Preferred Vision Plus for Small Business 10/25/150/120"]
["Preferred Vision Voluntary for Small Business 10/25/120"]
["Basic Vision for Small Business 0/0/120"]
["Basic Vision for Small Business 0/0/150"]
["Basic Vision for Small Business 10/25/120"]
["Basic Vision for Small Business 10/25/150"]
["Basic Vision Plus for Small Business 0/0/150/120"]
["Basic Vision Plus for Small Business 10/25/150/120"]
["Basic Vision Voluntary for Small Business 10/25/120"]
[]
["Effective first of the month following date of hire (If hired on the first of the month, coverage will be effective the first of the following month)",0]
["Effective first of the month following 30 days from date of hire",30]
["Effective first of the month following 60 days from date of hire",60]
["Effective on the 91st day following date of hire",91]
[]
[{"$f":"IF(MGA!E61=\"\",\"\",MGA!E61)","v":""},{"$f":"LEN(C102)","v":0},{"$f":"IF(A103=\"\",A102,A102&\";\")","v":""}]
[{"$f":"IF(MGA!E62=\"\",\"\",MGA!E62)","v":""},{"$f":"LEN(C103)","v":0},{"$f":"IF(A104=\"\",C102&A103,C102&A103&\";\")","v":""}]
[{"$f":"IF(MGA!E63=\"\",\"\",MGA!E63)","v":""},0,{"$f":"IF(A105=\"\",C103&A104,C103&A104&\";\")","v":""}]
[]
[{"$f":"IF(Basic_MGA=\"\",\"\",Basic_MGA)","v":""}]
[{"$f":"IF(MultipleofSalary_MGA=\"\",\"\",MultipleofSalary_MGA)","v":""}]
[{"$f":"IF(MGA!E185=\"\",\"\",MGA!E185)","v":""},{"$f":"LEN(C108)","v":0},{"$f":"IF(A109=\"\",A108,A108&\";\")","v":""}]
[{"$f":"IF(MGA!E186=\"\",\"\",MGA!E186)","v":""},{"$f":"LEN(C109)","v":0},{"$f":"IF(A110=\"\",C108&A109,C108&A109&\";\")","v":""}]
[{"$f":"IF(MGA!E187=\"\",\"\",MGA!E187)","v":""},0,{"$f":"IF(A111=\"\",C109&A110,C109&A110&\";\")","v":""}]
[{"$f":"IF(MGA!E188=\"\",\"\",MGA!E188)","v":""},0,{"$f":"IF(A112=\"\",C110&A111,C110&A111&\";\")","v":""}]
[]
[null,null,{"$f":"IF(A106<>\"\",A106,IF(A107<>\"\",A107,VLOOKUP(MAX(B108:B111),B108:C111,2,FALSE)))","v":""}]
["EDI Trading Partner Picklist Options (EDI_Trading_Partner__c)"]
["Ascentis","a3R1B000000kZyx",null,null,"ID in Production"]
["Benatrac","a3R1B000000kZyi",null,null,"ID in Production"]
["Benu","a3R1B000000kZys",null,null,"ID in Production"]
["bSwift","a3R1B000000kZ7w",null,null,"ID in Production"]
["eBenefits Network","a3R1B000000kZz2",null,null,"ID in Production"]
["Maxwell Health","a3R1B000000kZyn",null,null,"ID in Production"]
["Paylocity","a3R1B000000kZz7",null,null,"ID in Production"]
["Other","a3R1B000000NCdZ",null,null,"ID in Production"]
[]
["Exchange Channel Picklist Options:  (Exchange_Name1__c)"]
["Other","0011B000024AnpM",null,null,"ID in Production"]

{"sheet":"LookupTables","index":11,"n_rows":12,"n_cols":26,"rows_kept":12,"hidden":true,"merged":[[0,8,6,8],[7,1,7,7],[7,9,7,15],[7,17,7,23]]}
[null,1,2,3,4,5,6,7,"Section SB-1\nTriple Choice",1,2,3,4,5,6,7,null,1,2,3,4,5,6,7,null,"Format = Entries"]
["2 Dental HMO plans and 1 Dental PPO plan","Y","Y",null,"Y",{"$nulls":4},{"$f":"COUNTA(MGA!$D$156)","v":0},{"$f":"COUNTA(MGA!$D$157)","v":0},{"$f":"COUNTA(MGA!$D$158)","v":0},{"$f":"COUNTA(MGA!$E$156)","v":0},{"$f":"COUNTA(MGA!$E$157)","v":0},{"$f":"COUNTA(MGA!$F$156)","v":0},{"$f":"COUNTA(MGA!$F$157)","v":0},null,{"$f":"B2&J2","v":"Y0"},{"$f":"C2&K2","v":"Y0"},"0","Y0","0","0","0",null,{"$f":"IF(AND(COUNTIF(B2:H2,\"Y\")=COUNTIF(R2:X2,\"Y1\"),COUNTA(MGA!$D$156:$F$158)=COUNTIF(B2:H2,\"Y\")),\"Y\",\"N\")","v":"N"}]
["2 Dental HMO plans and 1 Dental INO plan","Y","Y",{"$nulls":3},"Y",null,null,{"$f":"COUNTA(MGA!$D$156)","v":0},{"$f":"COUNTA(MGA!$D$157)","v":0},{"$f":"COUNTA(MGA!$D$158)","v":0},{"$f":"COUNTA(MGA!$E$156)","v":0},{"$f":"COUNTA(MGA!$E$157)","v":0},{"$f":"COUNTA(MGA!$F$156)","v":0},{"$f":"COUNTA(MGA!$F$157)","v":0},null,{"$f":"B3&J3","v":"Y0"},{"$f":"C3&K3","v":"Y0"},{"$f":"D3&L3","v":"0"},{"$f":"E3&M3","v":"0"},{"$f":"F3&N3","v":"0"},{"$f":"G3&O3","v":"Y0"},{"$f":"H3&P3","v":"0"},null,{"$f":"IF(AND(COUNTIF(B3:H3,\"Y\")=COUNTIF(R3:X3,\"Y1\"),COUNTA(MGA!$D$156:$F$158)=COUNTIF(B3:H3,\"Y\")),\"Y\",\"N\")","v":"N"}]
["3 Dental HMO plans","Y","Y","Y",{"$nulls":5},{"$f":"COUNTA(MGA!$D$156)","v":0},{"$f":"COUNTA(MGA!$D$157)","v":0},{"$f":"COUNTA(MGA!$D$158)","v":0},{"$f":"COUNTA(MGA!$E$156)","v":0},{"$f":"COUNTA(MGA!$E$157)","v":0},{"$f":"COUNTA(MGA!$F$156)","v":0},{"$f":"COUNTA(MGA!$F$157)","v":0},null,"Y0","Y0","Y0","0","0","0","0",null,{"$f":"IF(AND(COUNTIF(B4:H4,\"Y\")=COUNTIF(R4:X4,\"Y1\"),COUNTA(MGA!$D$156:$F$158)=COUNTIF(B4:H4,\"Y\")),\"Y\",\"N\")","v":"N"}]
["2 Dental PPO plans and 1 Dental HMO plan","Y",null,null,"Y","Y",{"$nulls":3},{"$f":"COUNTA(MGA!$D$156)","v":0},{"$f":"COUNTA(MGA!$D$157)","v":0},{"$f":"COUNTA(MGA!$D$158)","v":0},{"$f":"COUNTA(MGA!$E$156)","v":0},{"$f":"COUNTA(MGA!$E$157)","v":0},{"$f":"COUNTA(MGA!$F$156)","v":0},{"$f":"COUNTA(MGA!$F$157)","v":0},null,"Y0","0","0","Y0","Y0","0","0",null,{"$f":"IF(AND(COUNTIF(B5:H5,\"Y\")=COUNTIF(R5:X5,\"Y1\"),COUNTA(MGA!$D$156:$F$158)=COUNTIF(B5:H5,\"Y\")),\"Y\",\"N\")","v":"N"}]
["2 Dental INO plans and 1 Dental HMO plan","Y",{"$nulls":4},"Y","Y",null,{"$f":"COUNTA(MGA!$D$156)","v":0},{"$f":"COUNTA(MGA!$D$157)","v":0},{"$f":"COUNTA(MGA!$D$158)","v":0},{"$f":"COUNTA(MGA!$E$156)","v":0},{"$f":"COUNTA(MGA!$E$157)","v":0},{"$f":"COUNTA(MGA!$F$156)","v":0},{"$f":"COUNTA(MGA!$F$157)","v":0},null,"Y0","0","0","0","0","Y0","Y0",null,{"$f":"IF(AND(COUNTIF(B6:H6,\"Y\")=COUNTIF(R6:X6,\"Y1\"),COUNTA(MGA!$D$156:$F$158)=COUNTIF(B6:H6,\"Y\")),\"Y\",\"N\")","v":"N"}]
["1 Dental PPO plan, 1 Dental INO plan, and 1 Dental HMO plan","Y",null,null,"Y",null,"Y",null,null,{"$f":"COUNTA(MGA!$D$156)","v":0},{"$f":"COUNTA(MGA!$D$157)","v":0},{"$f":"COUNTA(MGA!$D$158)","v":0},{"$f":"COUNTA(MGA!$E$156)","v":0},{"$f":"COUNTA(MGA!$E$157)","v":0},{"$f":"COUNTA(MGA!$F$156)","v":0},{"$f":"COUNTA(MGA!$F$157)","v":0},null,"Y0","0","0","Y0","0","Y0","0",null,{"$f":"IF(AND(COUNTIF(B7:H7,\"Y\")=COUNTIF(R7:X7,\"Y1\"),COUNTA(MGA!$D$156:$F$158)=COUNTIF(B7:H7,\"Y\")),\"Y\",\"N\")","v":"N"}]
[null,"Cond Format",{"$nulls":7},"Populated?",{"$nulls":7},"Populated?"]
[]
["Single",{"$f":"IF(COUNTA(MGA!$D$156:$D$158,MGA!$E$156:$E$157,MGA!$F$156:$F$157)=1,0,1)","v":1}]
["Dual Choice",{"$f":"IF(COUNTA(MGA!$D$156:$D$158,MGA!$E$156:$E$157,MGA!$F$156:$F$157)=2,0,1)","v":1}]
["Triple Choice",{"$f":"IF(VLOOKUP(MGA!E152,A1:Z7,26,FALSE)=\"Y\",0,1)","v":{"$error":"#N/A"}}]

{"sheet":"Enrollment Form","index":12,"n_rows":1000,"n_cols":145,"rows_kept":1000,"hidden":true,"merged":[[0,0,0,1],[0,2,0,4],[1,0,1,1],[1,2,1,4],[2,2,2,4],[3,2,3,4],[4,2,4,4]]}
["Group Name",null,{"$f":"IF(UseMGA!$B$1=\"Yes\",MGA!E3,\"\")","v":""},{"$nulls":3},"Legend:"]
["Group Tax ID",null,{"$f":"IF(UseMGA!$B$1=\"Yes\",MGA!E37,\"\")","v":""},{"$nulls":4},"Required",{"$nulls":118},"No","Yes"]
["Group Address",null,{"$f":"IF(UseMGA!$B$1=\"Yes\",MGA!E7,\"\")","v":""},{"$nulls":4},"Optional",{"$nulls":118},"Yes","No"]
["Group Contact",null,{"$f":"IF(UseMGA!$B$1=\"Yes\",MGA!E23&\" \"&MGA!E24,\"\")","v":""},{"$nulls":4},"Not Required"]
["Group Contact Phone",null,{"$f":"IF(UseMGA!$B$1=\"Yes\",MGA!E26,\"\")","v":""},{"$nulls":4},"Incorrect Value",{"$nulls":117},"CY","DD","DI","DN"]
[]
[1,2,3,4,5,6,7,8,10,11,12,13,14,15,16,17,18,19,20,21,22,56,57,58,59,null,60,61,62,63,64,65,null,67,68,69,70,71,72,73,74,75,76,77,78,79,80,81,82,83,84,85,86,87,88,89,90,91,92,null,93,94,95,96,97,98,99,100,101,102,103,104,105,106,107,108,109,110,111,{"$nulls":9},112,113,114,115,116,117,118,119,120,121,122,123,124,125,126,127,145,128,129,130,131,146,132,133,134,135,147,136,137,138,139,148,140,141,143]
["Application information",null,null,"Subscriber information",{"$nulls":4},"Section 1a - Health plan selection",null,"Section SB1 - Dental benefits",null,"Section SB2 - Vision coverage",null,"Section SB3 - Life/AD&D insurance",{"$nulls":6},"Section 2 - Subscriber information ",{"$nulls":25},"Section 3 - HMO Personal Physician/Dental HMO provider assignment",{"$nulls":8},"Section 4 - Dependent information (complete 1 row for each dependent)",{"$nulls":15},"Section 5 - Other health plan information",{"$nulls":6},"Section 6 - Medicare information",{"$nulls":8},"Section 7 - COBRA/Cal-COBRA group continuation coverage",{"$nulls":3},"Section 8 - Disclosure of pers & hlth info",null,"Refusal of Coverage form"]
["Group Tax ID ","Applicant Type","Type of Application","Applicant Last Name (incl Suffix)","Applicant First Name","Applicant Middle Initial ","Subscriber SSN ","Applicant SSN","Health Package","Health Plan","Dental Package","Dental Plan","Vision Package","Vision Plan","Life/AD&D  Option","Employee Life/AD&D Plan","Basic Dependent Life Insurance","Number of Eligible Dependents","Amount Of Coverage Requested For Dependents","Earnings excluding OT, bonus","Earnings Frequency","Subscriber -  Home Address","Subscriber - City","Subscriber - State","Subscriber - Zip","Mailing Address same as Home?","Subscriber - Mailing Address","Subscriber - Mailing City","Subscriber - Mailing State","Subscriber - Mailing Zip","Subscriber - Work Phone","Subscriber - Home Phone","Language Preference","Subscriber - Email Address","Preferred Method Of Contact","Subscriber - Date of Birth","Subscriber - Gender","Subscriber - Marital Status","Date Of Hire","Subscriber - Job Title","Job Classification","Do you have any eligible dependent children under the age of 26?","How Many?","How Many Are Enrolling?","Are you a FULL-TIME employee?","Are you a PART-TIME employee?","If no, are you an existing COBRA participant or enrolling due to a COBRA qualifying event?","Should Blue Shield designate a Provider?","Medical HMO Personal Physician Name","PCP ID","IPA/MG Name","Existing Medical Patient?","Dental HMO Provider Name ","Dental Provider Number","Dental Group Name","Existing Dental Patient?","Dependent - Gender","Enroll In All Products Selected By Subscriber?","Dependent - Date Of Birth","Dependent Address same as Subscriber's?","Dependent - Address","Dependent - City","Dependent - State","Dependent - ZIP","Dependent - HMO Personal Physician Name","Dependent - PCP ID","Dependent - IPA Name","Dependent - Existing Medical Patient","Dependent - Dental HMO Provider Name ","Dependent - Dental Provider Number","Dependent - Dental Group Name","Dependent - Existing Dental Patient","Any Prior Coverage In The Past 6 Months?","If Prior Coverage, List Prior Carrier Name","Type of Coverage","Policy ID Number","Date Prior Coverage Began","Date Prior Coverage Ended","Family Members with Prior Coverage.","Are you or any dependents currently covered by Medicare?","If \"Yes\" to current Medicare coverage, do you have Part A?","Part A Effective Date","If \"Yes\" to current Medicare coverage, do you have Part B?","Part B Effective Date","Is Medicare elig due to end stage renal disease?","If \"Yes\" to end stage reneal disease, date of the first dialysis treatment?","Type of dialysis","If kidney transplant, provide date","Are You Enrolling In COBRA or Cal-COBRA?","Employee/Subscriber Blue Shield ID Number","Original Qualifying Event Date","Qualifying Event Reason","Signature Of Employee","Date","Are all eligible family members enrolling?","Date of Birth","Hire Date","State of Residence","Marital Status","Job Title","Are you a FT Employee - 30 or more hours per week?","Are you a PT Employee - 20-29 hours per week?","Declining Medical coverage","Reason For declining Medical","Reason for Declining (other) - Medical","If covered by another Medical carrier, please name carrier","Member ID at Medical Carrier","Declining Dental coverage","Reason For declining Dental","Reason for Declining (other) - Dental","If covered by another Dental carrier, please name carrier","Member ID at Dental Carrier","Declining Vision coverage","Reason For declining Vision coverage","Reason for Declining (other) - Vision","If covered by another Vision carrier, please name carrier","Member ID at Vision Carrier","Declining Life coverage","Reason for declining Life coverage","Reason for Declining (other) - Life","If covered by another Life carrier, please name carrier","Member ID at Life Carrier","ROC Signature of Employee","Date","Language Preference (Carried Over)","Decline Medical BOOLEAN","Decline Dental BOOLEAN","Decline Vision BOOLEAN","Decline Life BOOLEAN","CSV Source","PLACE HOLDER","DeclMedQual","DeclDenQual","DeclVisQual","DeclLifeQual","Decl Medical - Following Only","Decl Dental - Following Only","Decl Vision - Following Only","Decl Life - Following Only","Has Medical?","Has Dental?","Has Vision?","Has Life?",null,"Comments/Follow-up"]
["Group_Tax_ID__c","Applicant_Type__c","Type_of_Application__c","Applicant_Last_Name__c","Applicant_First_Name__c","Applicant_Middle_Initial__c","Subscriber_SSN__c","Applicant_SSN__c","Health_Package__c","Health_Plan__c","Detal_Package__c","Dental_Plan__c","Vision_Package__c","Vision_Plan__c","Life_Option__c","Desired_Employee_Basic_Life_Ins_Amt__c","Basic_Dependent_Life_Insurance_Enroll__c","Number_of_Eligible_Dependents__c","Amount_Of_Coverage_Req_For_Dependents__c","Earnings__c","Earnings_Frequency__c","Subscriber_Home_Address__c","Subscriber_City__c","Subscriber_State__c","Subscriber_Zip__c","Same_as_home__c","Subscriber_Mailing_Address__c","Subscriber_Mailing_City__c","Subscriber_Mailing_State__c","Subscriber_Mailing_Zip__c","Subscriber_Work_Phone__c","Subscriber_Home_Phone__c","XXXXX","Subscriber_Email_Address__c","Preferred_Method_Of_Contact__c","Subscriber_Date_of_Birth__c","Subscriber_Gender__c","Subscriber_Marital_Status__c","Subscriber_Date_Of_Hire__c","Subscriber_Job_Title__c","Job_Classification__c","Eligible_dependents_less_than_26__c","How_many_dependents_less_than_26__c","How_many_dependents_lessthan26_enrolling__c","Work_30_hours_per_week__c","Work_20_to_29_hours_per_week__c","Cobra_participant_or_qualifying_event__c","Designate_a_Provider__c","Medical_HMO_Personal_Physician_Name__c","Provider_Number__c","IPA_MG_Name__c","Existing_Medical_Patient__c","Dental_HMO_Provider_Name__c","Dental_Provider_Number__c","Dental_Group_Name__c","Existing_Dental_Patient__c","Dependent_Gender__c","Enroll_In_All_Subscriber_Products__c","Dependent_Date_Of_Birth__c","Address_same_as_Applicant__c","Dependent_Address__c","Dependent_City__c","Dependent_State__c","Dependent_ZIP__c","Dependent_HMO_Personal_Physician_Name__c","Dependent_Provider_Number__c","Dependent_IPA_Name__c","Dependent_Existing_Medical_Patient__c","Dependent_Dental_HMO_Provider_Name__c","Dependent_Dental_Provider_Number__c","Dependent_Dental_Group_Name__c","Dependent_Existing_Dental_Patient__c","Prior_Coverage__c","Prior_Carrier_Name__c","Type_of_Coverage__c","Policy_ID_Number__c","Date_Prior_Coverage_Began__c","Date_Prior_Coverage_Ended__c","Family_Members_with_Prior_Coverage__c","Medicare_Current_Coverage__c","Medicare_Part_A__c","Medicare_Part_A_Date__c","Medicare_Part_B__c","Medicare_Part_B_Date__c","Medicare_End_Stage_Renal__c","Medicare_First_Dialysis_Date__c","Medicare_Dialysis_Type__c","Medicare_Kidney_Transplant_Date__c","Enrolling_In_Cobra_or_CalCobra__c","Blue_Shield_ID_Number__c","Original_Qualifying_Event_Date__c","Qualifying_Event_Reason__c","Signature_Of_Employee__c","Signature_Date__c","All_eligible_family_members_enrolling__c","ROC_Date_of_Birth__c","ROC_Date_of_Hire__c","ROC_State_of_Residence__c","ROC_Marital_Status__c","ROC_Job_Title__c","FT_Employee__c","PT_Employee__c","Declining_Medical_coverage__c","Reason_For_declining_Medical__c","R_Decl_Other_Medical__c","Other_Medical_Carrier__c","Member_ID_at_Medical_Carrier__c","Declining_Dental_coverage__c","Reason_For_declining_Dental__c","R_Decl_Other_Dental__c","Other_Dental_Carrier__c","Member_ID_at_Dental_Carrier__c","Declining_Vision_coverage__c","Reason_For_declining_Vision_coverage__c","R_Decl_Other_Vision__c","Other_Vision_Carrier__c","Member_ID_at_Vision_Carrier__c","Declining_Life_coverage__c","Reason_for_declining_Life_coverage__c","R_Decl_Other_Life__c","Other_Life_Carrier__c","Member_ID_at_Life_Carrier__c","ROC_Signature__c","ROC_Date__c","Language_Preference__c","Declining_Coverage_for_Medical__c","Declining_Coverage_for_Dental__c","Declining_Coverage_for_Vision__c","Declining_Coverage_for_Life__c","CSV_Source__c","EOL"]
[{"$f":"IF(LEN($B11)>0,$C$2,\"\")","v":""},{"$nulls":5},{"$f":"IF(A11=\"\",\"\",IF(AND(B11<>\"Subscriber\",B11<>\"\"),G10,\"\"))","v":""},{"$f":"IF(AND(B11=\"Subscriber\",G11<>\"\"),G11,\"\")","v":""},{"$nulls":18},{"$f":"IF(AND($B11=\"Subscriber\",$Z11=\"Yes\"),V11,\"\")","v":""},{"$f":"IF(AND($B11=\"Subscriber\",$Z11=\"Yes\"),W11,\"\")","v":""},{"$f":"IF(AND($B11=\"Subscriber\",$Z11=\"Yes\"),X11,\"\")","v":""},{"$f":"IF(AND($B11=\"Subscriber\",$Z11=\"Yes\"),Y11,\"\")","v":""},{"$nulls":30},{"$f":"IF(AND($B11<>\"Subscriber\",$BH11=\"Yes\"),VLOOKUP($G11,$H$11:$Y$1000,15,FALSE),\"\")","v":""},{"$f":"IF(AND($B11<>\"Subscriber\",$BH11=\"Yes\"),VLOOKUP($G11,$H$11:$Y$1000,16,FALSE),\"\")","v":""},{"$f":"IF(AND($B11<>\"Subscriber\",$BH11=\"Yes\"),VLOOKUP($G11,$H$11:$Y$1000,17,FALSE),\"\")","v":""},{"$f":"IF(AND($B11<>\"Subscriber\",$BH11=\"Yes\"),VLOOKUP($G11,$H$11:$Y$1000,18,FALSE),\"\")","v":""},{"$nulls":60},{"$f":"IF($A11=\"\",\"\",IF($B11=\"Subscriber\",$AG11,VLOOKUP($G11,$H$11:$AG$1000,26,FALSE)))","v":""},{"$f":"IF($A11=\"\",\"\",IF(VLOOKUP($G11,$H$11:$DN$1000,96,FALSE)=\"\",\"No\",IF(LEFT(VLOOKUP($G11,$H$11:$DN$1000,96,FALSE),3)=\"The\",EF11,VLOOKUP(VLOOKUP($G11,$H$11:$DN$1000,96,FALSE),DeclMatrix!$A$2:$F$5,VLOOKUP('Enrollment Form'!$B11,DeclMatrix!$A$8:$B$12,2,FALSE),FALSE))))","v":""},{"$f":"IF($A11=\"\",\"\",IF(VLOOKUP($G11,$H$11:$DN$1000,101,FALSE)=\"\",\"No\",IF(LEFT(VLOOKUP($G11,$H$11:$DN$1000,101,FALSE),3)=\"The\",EG11,VLOOKUP(VLOOKUP($G11,$H$11:$DN$1000,101,FALSE),DeclMatrix!$A$2:$F$5,VLOOKUP('Enrollment Form'!$B11,DeclMatrix!$A$8:$B$12,2,FALSE),FALSE))))","v":""},{"$f":"IF($A11=\"\",\"\",IF(VLOOKUP($G11,$H$11:$DN$1000,106,FALSE)=\"\",\"No\",IF(LEFT(VLOOKUP($G11,$H$11:$DN$1000,106,FALSE),3)=\"The\",EH11,VLOOKUP(VLOOKUP($G11,$H$11:$DN$1000,106,FALSE),DeclMatrix!$A$2:$F$5,VLOOKUP('Enrollment Form'!$B11,DeclMatrix!$A$8:$B$12,2,FALSE),FALSE))))","v":""},{"$f":"IF($A11=\"\",\"\",IF(VLOOKUP($G11,$H$11:$DN$1000,111,FALSE)=\"\",\"No\",IF(LEFT(VLOOKUP($G11,$H$11:$DN$1000,111,FALSE),3)=\"The\",EI11,VLOOKUP(VLOOKUP($G11,$H$11:$DN$1000,111,FALSE),DeclMatrix!$A$2:$F$5,VLOOKUP('Enrollment Form'!$B11,DeclMatrix!$A$8:$B$12,2,FALSE),FALSE))))","v":""},{"$f":"IF(A11<>\"\",\"1X\",\"\")","v":""},null,{"$f":"$B11&$G11&$J11","v":""},{"$f":"$B11&$G11&$L11","v":""},{"$f":"$B11&$G11&$N11","v":""},{"$f":"$B11&$G11&$O11","v":""},{"$f":"IF($A11=\"\",\"\",IF($B11=\"Subscriber\",\"No\",IF(OR($CY11=\"\",$CY11=\"No\"),\"No\",\"Yes\")))","v":""},{"$f":"IF($A11=\"\",\"\",IF($B11=\"Subscriber\",\"No\",IF(OR($DD11=\"\",$DD11=\"No\"),\"No\",\"Yes\")))","v":""},{"$f":"IF($A11=\"\",\"\",IF($B11=\"Subscriber\",\"No\",IF(OR($DI11=\"\",$DI11=\"No\"),\"No\",\"Yes\")))","v":""},{"$f":"IF($A11=\"\",\"\",IF($B11=\"Subscriber\",\"No\",IF(OR($DN11=\"\",$DN11=\"No\"),\"No\",\"Yes\")))","v":""},{"$f":"IF($A11=\"\",\"\",IF(AND($B11=\"Subscriber\",$I11<>\"Waive\",$I11<>\"\"),\"Yes\",IF(AND($B11<>\"Subscriber\",$BF11=\"Yes\"),VLOOKUP($G11,$H$11:$EM$1000,133,FALSE),IF(AND($C11=\"Enroll\",VLOOKUP($G12,$H$11:$EM$1000,96,FALSE)<>\"\"),VLOOKUP($DV11,$DW$2:$DX$3,2,FALSE),\"No\"))))","v":""},{"$f":"IF($A11=\"\",\"\",IF(AND($B11=\"Subscriber\",$K11<>\"Waive\",$K11<>\"\"),\"Yes\",IF(AND($B11<>\"Subscriber\",$BF11=\"Yes\"),VLOOKUP($G11,$H$11:$EM$1000,134,FALSE),IF(AND($C11=\"Enroll\",VLOOKUP($G12,$H$11:$EM$1000,101,FALSE)<>\"\"),VLOOKUP($DW11,$DW$2:$DX$3,2,FALSE),\"No\"))))","v":""},{"$f":"IF($A11=\"\",\"\",IF(AND($B11=\"Subscriber\",$M11<>\"Waive\",$M11<>\"\"),\"Yes\",IF(AND($B11<>\"Subscriber\",$BF11=\"Yes\"),VLOOKUP($G11,$H$11:$EM$1000,135,FALSE),IF(AND($C11=\"Enroll\",VLOOKUP($G12,$H$11:$EM$1000,106,FALSE)<>\"\"),VLOOKUP($DX11,$DW$2:$DX$3,2,FALSE),\"No\"))))","v":""},{"$f":"IF($A11=\"\",\"\",IF(AND($B11=\"Subscriber\",$O11<>\"Waive\",$O11<>\"\"),\"Yes\",IF(AND($B11<>\"Subscriber\",$BF11=\"Yes\"),VLOOKUP($G11,$H$11:$EM$1000,136,FALSE),IF(AND($C11=\"Enroll\",VLOOKUP($G12,$H$11:$EM$1000,111,FALSE)<>\"\"),VLOOKUP($DY11,$DW$2:$DX$3,2,FALSE),\"No\"))))","v":""}]
["",{"$nulls":5},"",{"$f":"IF(AND(B12=\"Subscriber\",G12<>\"\"),G12,\"\")","v":""},{"$nulls":18},{"$f":"IF(AND($B12=\"Subscriber\",$Z12=\"Yes\"),V12,\"\")","v":""},{"$f":"IF(AND($B12=\"Subscriber\",$Z12=\"Yes\"),W12,\"\")","v":""},{"$f":"IF(AND($B12=\"Subscriber\",$Z12=\"Yes\"),X12,\"\")","v":""},{"$f":"IF(AND($B12=\"Subscriber\",$Z12=\"Yes\"),Y12,\"\")","v":""},{"$nulls":30},"","","","",{"$nulls":60},"",{"$f":"IF($A12=\"\",\"\",IF(VLOOKUP($G12,$H$11:$DN$1000,96,FALSE)=\"\",\"No\",IF(LEFT(VLOOKUP($G12,$H$11:$DN$1000,96,FALSE),3)=\"The\",EF12,VLOOKUP(VLOOKUP($G12,$H$11:$DN$1000,96,FALSE),DeclMatrix!$A$2:$F$5,VLOOKUP('Enrollment Form'!$B12,DeclMatrix!$A$8:$B$12,2,FALSE),FALSE))))","v":""},{"$f":"IF($A12=\"\",\"\",IF(VLOOKUP($G12,$H$11:$DN$1000,101,FALSE)=\"\",\"No\",IF(LEFT(VLOOKUP($G12,$H$11:$DN$1000,101,FALSE),3)=\"The\",EG12,VLOOKUP(VLOOKUP($G12,$H$11:$DN$1000,101,FALSE),DeclMatrix!$A$2:$F$5,VLOOKUP('Enrollment Form'!$B12,DeclMatrix!$A$8:$B$12,2,FALSE),FALSE))))","v":""},{"$f":"IF($A12=\"\",\"\",IF(VLOOKUP($G12,$H$11:$DN$1000,106,FALSE)=\"\",\"No\",IF(LEFT(VLOOKUP($G12,$H$11:$DN$1000,106,FALSE),3)=\"The\",EH12,VLOOKUP(VLOOKUP($G12,$H$11:$DN$1000,106,FALSE),DeclMatrix!$A$2:$F$5,VLOOKUP('Enrollment Form'!$B12,DeclMatrix!$A$8:$B$12,2,FALSE),FALSE))))","v":""},{"$f":"IF($A12=\"\",\"\",IF(VLOOKUP($G12,$H$11:$DN$1000,111,FALSE)=\"\",\"No\",IF(LEFT(VLOOKUP($G12,$H$11:$DN$1000,111,FALSE),3)=\"The\",EI12,VLOOKUP(VLOOKUP($G12,$H$11:$DN$1000,111,FALSE),DeclMatrix!$A$2:$F$5,VLOOKUP('Enrollment Form'!$B12,DeclMatrix!$A$8:$B$12,2,FALSE),FALSE))))","v":""},{"$f":"IF(A12<>\"\",\"1X\",\"\")","v":""},null,"","","","","","","","","","",{"$f":"IF($A12=\"\",\"\",IF(AND($B12=\"Subscriber\",$M12<>\"Waive\",$M12<>\"\"),\"Yes\",IF(AND($B12<>\"Subscriber\",$BF12=\"Yes\"),VLOOKUP($G12,$H$11:$EM$1000,135,FALSE),IF(AND($C12=\"Enroll\",VLOOKUP($G13,$H$11:$EM$1000,106,FALSE)<>\"\"),VLOOKUP($DX12,$DW$2:$DX$3,2,FALSE),\"No\"))))","v":""},""]
["",{"$nulls":5},"","",{"$nulls":6},"",{"$nulls":11},"","","","",{"$nulls":30},"","","","",{"$nulls":60},"",{"$f":"IF($A13=\"\",\"\",IF(VLOOKUP($G13,$H$11:$DN$1000,96,FALSE)=\"\",\"No\",IF(LEFT(VLOOKUP($G13,$H$11:$DN$1000,96,FALSE),3)=\"The\",EF13,VLOOKUP(VLOOKUP($G13,$H$11:$DN$1000,96,FALSE),DeclMatrix!$A$2:$F$5,VLOOKUP('Enrollment Form'!$B13,DeclMatrix!$A$8:$B$12,2,FALSE),FALSE))))","v":""},{"$f":"IF($A13=\"\",\"\",IF(VLOOKUP($G13,$H$11:$DN$1000,101,FALSE)=\"\",\"No\",IF(LEFT(VLOOKUP($G13,$H$11:$DN$1000,101,FALSE),3)=\"The\",EG13,VLOOKUP(VLOOKUP($G13,$H$11:$DN$1000,101,FALSE),DeclMatrix!$A$2:$F$5,VLOOKUP('Enrollment Form'!$B13,DeclMatrix!$A$8:$B$12,2,FALSE),FALSE))))","v":""},{"$f":"IF($A13=\"\",\"\",IF(VLOOKUP($G13,$H$11:$DN$1000,106,FALSE)=\"\",\"No\",IF(LEFT(VLOOKUP($G13,$H$11:$DN$1000,106,FALSE),3)=\"The\",EH13,VLOOKUP(VLOOKUP($G13,$H$11:$DN$1000,106,FALSE),DeclMatrix!$A$2:$F$5,VLOOKUP('Enrollment Form'!$B13,DeclMatrix!$A$8:$B$12,2,FALSE),FALSE))))","v":""},{"$f":"IF($A13=\"\",\"\",IF(VLOOKUP($G13,$H$11:$DN$1000,111,FALSE)=\"\",\"No\",IF(LEFT(VLOOKUP($G13,$H$11:$DN$1000,111,FALSE),3)=\"The\",EI13,VLOOKUP(VLOOKUP($G13,$H$11:$DN$1000,111,FALSE),DeclMatrix!$A$2:$F$5,VLOOKUP('Enrollment Form'!$B13,DeclMatrix!$A$8:$B$12,2,FALSE),FALSE))))","v":""},"",null,"","","","","","","","","","","",""]
["",{"$nulls":5},"","",{"$nulls":18},"","","","",{"$nulls":30},"","","","",{"$nulls":60},"",{"$f":"IF($A14=\"\",\"\",IF(VLOOKUP($G14,$H$11:$DN$1000,96,FALSE)=\"\",\"No\",IF(LEFT(VLOOKUP($G14,$H$11:$DN$1000,96,FALSE),3)=\"The\",EF14,VLOOKUP(VLOOKUP($G14,$H$11:$DN$1000,96,FALSE),DeclMatrix!$A$2:$F$5,VLOOKUP('Enrollment Form'!$B14,DeclMatrix!$A$8:$B$12,2,FALSE),FALSE))))","v":""},{"$f":"IF($A14=\"\",\"\",IF(VLOOKUP($G14,$H$11:$DN$1000,101,FALSE)=\"\",\"No\",IF(LEFT(VLOOKUP($G14,$H$11:$DN$1000,101,FALSE),3)=\"The\",EG14,VLOOKUP(VLOOKUP($G14,$H$11:$DN$1000,101,FALSE),DeclMatrix!$A$2:$F$5,VLOOKUP('Enrollment Form'!$B14,DeclMatrix!$A$8:$B$12,2,FALSE),FALSE))))","v":""},{"$f":"IF($A14=\"\",\"\",IF(VLOOKUP($G14,$H$11:$DN$1000,106,FALSE)=\"\",\"No\",IF(LEFT(VLOOKUP($G14,$H$11:$DN$1000,106,FALSE),3)=\"The\",EH14,VLOOKUP(VLOOKUP($G14,$H$11:$DN$1000,106,FALSE),DeclMatrix!$A$2:$F$5,VLOOKUP('Enrollment Form'!$B14,DeclMatrix!$A$8:$B$12,2,FALSE),FALSE))))","v":""},{"$f":"IF($A14=\"\",\"\",IF(VLOOKUP($G14,$H$11:$DN$1000,111,FALSE)=\"\",\"No\",IF(LEFT(VLOOKUP($G14,$H$11:$DN$1000,111,FALSE),3)=\"The\",EI14,VLOOKUP(VLOOKUP($G14,$H$11:$DN$1000,111,FALSE),DeclMatrix!$A$2:$F$5,VLOOKUP('Enrollment Form'!$B14,DeclMatrix!$A$8:$B$12,2,FALSE),FALSE))))","v":""},"",null,"","","","","","","","","","","",""]
["",{"$nulls":5},"","",{"$nulls":18},"","","","",{"$nulls":30},"","","","",{"$nulls":60},"",{"$f":"IF($A15=\"\",\"\",IF(VLOOKUP($G15,$H$11:$DN$1000,96,FALSE)=\"\",\"No\",IF(LEFT(VLOOKUP($G15,$H$11:$DN$1000,96,FALSE),3)=\"The\",EF15,VLOOKUP(VLOOKUP($G15,$H$11:$DN$1000,96,FALSE),DeclMatrix!$A$2:$F$5,VLOOKUP('Enrollment Form'!$B15,DeclMatrix!$A$8:$B$12,2,FALSE),FALSE))))","v":""},{"$f":"IF($A15=\"\",\"\",IF(VLOOKUP($G15,$H$11:$DN$1000,101,FALSE)=\"\",\"No\",IF(LEFT(VLOOKUP($G15,$H$11:$DN$1000,101,FALSE),3)=\"The\",EG15,VLOOKUP(VLOOKUP($G15,$H$11:$DN$1000,101,FALSE),DeclMatrix!$A$2:$F$5,VLOOKUP('Enrollment Form'!$B15,DeclMatrix!$A$8:$B$12,2,FALSE),FALSE))))","v":""},{"$f":"IF($A15=\"\",\"\",IF(VLOOKUP($G15,$H$11:$DN$1000,106,FALSE)=\"\",\"No\",IF(LEFT(VLOOKUP($G15,$H$11:$DN$1000,106,FALSE),3)=\"The\",EH15,VLOOKUP(VLOOKUP($G15,$H$11:$DN$1000,106,FALSE),DeclMatrix!$A$2:$F$5,VLOOKUP('Enrollment Form'!$B15,DeclMatrix!$A$8:$B$12,2,FALSE),FALSE))))","v":""},{"$f":"IF($A15=\"\",\"\",IF(VLOOKUP($G15,$H$11:$DN$1000,111,FALSE)=\"\",\"No\",IF(LEFT(VLOOKUP($G15,$H$11:$DN$1000,111,FALSE),3)=\"The\",EI15,VLOOKUP(VLOOKUP($G15,$H$11:$DN$1000,111,FALSE),DeclMatrix!$A$2:$F$5,VLOOKUP('Enrollment Form'!$B15,DeclMatrix!$A$8:$B$12,2,FALSE),FALSE))))","v":""},"",null,"","","","","","","","","","","",""]
["",{"$nulls":5},"","",{"$nulls":18},"","","","",{"$nulls":30},"","","","",{"$nulls":60},"",{"$f":"IF($A16=\"\",\"\",IF(VLOOKUP($G16,$H$11:$DN$1000,96,FALSE)=\"\",\"No\",IF(LEFT(VLOOKUP($G16,$H$11:$DN$1000,96,FALSE),3)=\"The\",EF16,VLOOKUP(VLOOKUP($G16,$H$11:$DN$1000,96,FALSE),DeclMatrix!$A$2:$F$5,VLOOKUP('Enrollment Form'!$B16,DeclMatrix!$A$8:$B$12,2,FALSE),FALSE))))","v":""},{"$f":"IF($A16=\"\",\"\",IF(VLOOKUP($G16,$H$11:$DN$1000,101,FALSE)=\"\",\"No\",IF(LEFT(VLOOKUP($G16,$H$11:$DN$1000,101,FALSE),3)=\"The\",EG16,VLOOKUP(VLOOKUP($G16,$H$11:$DN$1000,101,FALSE),DeclMatrix!$A$2:$F$5,VLOOKUP('Enrollment Form'!$B16,DeclMatrix!$A$8:$B$12,2,FALSE),FALSE))))","v":""},{"$f":"IF($A16=\"\",\"\",IF(VLOOKUP($G16,$H$11:$DN$1000,106,FALSE)=\"\",\"No\",IF(LEFT(VLOOKUP($G16,$H$11:$DN$1000,106,FALSE),3)=\"The\",EH16,VLOOKUP(VLOOKUP($G16,$H$11:$DN$1000,106,FALSE),DeclMatrix!$A$2:$F$5,VLOOKUP('Enrollment Form'!$B16,DeclMatrix!$A$8:$B$12,2,FALSE),FALSE))))","v":""},{"$f":"IF($A16=\"\",\"\",IF(VLOOKUP($G16,$H$11:$DN$1000,111,FALSE)=\"\",\"No\",IF(LEFT(VLOOKUP($G16,$H$11:$DN$1000,111,FALSE),3)=\"The\",EI16,VLOOKUP(VLOOKUP($G16,$H$11:$DN$1000,111,FALSE),DeclMatrix!$A$2:$F$5,VLOOKUP('Enrollment Form'!$B16,DeclMatrix!$A$8:$B$12,2,FALSE),FALSE))))","v":""},"",null,"","","","","","","","","","","",""]
["",{"$nulls":5},"","",{"$nulls":18},"","","","",{"$nulls":30},"","","","",{"$nulls":60},"",{"$f":"IF($A17=\"\",\"\",IF(VLOOKUP($G17,$H$11:$DN$1000,96,FALSE)=\"\",\"No\",IF(LEFT(VLOOKUP($G17,$H$11:$DN$1000,96,FALSE),3)=\"The\",EF17,VLOOKUP(VLOOKUP($G17,$H$11:$DN$1000,96,FALSE),DeclMatrix!$A$2:$F$5,VLOOKUP('Enrollment Form'!$B17,DeclMatrix!$A$8:$B$12,2,FALSE),FALSE))))","v":""},{"$f":"IF($A17=\"\",\"\",IF(VLOOKUP($G17,$H$11:$DN$1000,101,FALSE)=\"\",\"No\",IF(LEFT(VLOOKUP($G17,$H$11:$DN$1000,101,FALSE),3)=\"The\",EG17,VLOOKUP(VLOOKUP($G17,$H$11:$DN$1000,101,FALSE),DeclMatrix!$A$2:$F$5,VLOOKUP('Enrollment Form'!$B17,DeclMatrix!$A$8:$B$12,2,FALSE),FALSE))))","v":""},{"$f":"IF($A17=\"\",\"\",IF(VLOOKUP($G17,$H$11:$DN$1000,106,FALSE)=\"\",\"No\",IF(LEFT(VLOOKUP($G17,$H$11:$DN$1000,106,FALSE),3)=\"The\",EH17,VLOOKUP(VLOOKUP($G17,$H$11:$DN$1000,106,FALSE),DeclMatrix!$A$2:$F$5,VLOOKUP('Enrollment Form'!$B17,DeclMatrix!$A$8:$B$12,2,FALSE),FALSE))))","v":""},{"$f":"IF($A17=\"\",\"\",IF(VLOOKUP($G17,$H$11:$DN$1000,111,FALSE)=\"\",\"No\",IF(LEFT(VLOOKUP($G17,$H$11:$DN$1000,111,FALSE),3)=\"The\",EI17,VLOOKUP(VLOOKUP($G17,$H$11:$DN$1000,111,FALSE),DeclMatrix!$A$2:$F$5,VLOOKUP('Enrollment Form'!$B17,DeclMatrix!$A$8:$B$12,2,FALSE),FALSE))))","v":""},"",null,"","","","","","","","","","","",""]
["",{"$nulls":5},"","",{"$nulls":18},"","","","",{"$nulls":30},"","","","",{"$nulls":60},"",{"$f":"IF($A18=\"\",\"\",IF(VLOOKUP($G18,$H$11:$DN$1000,96,FALSE)=\"\",\"No\",IF(LEFT(VLOOKUP($G18,$H$11:$DN$1000,96,FALSE),3)=\"The\",EF18,VLOOKUP(VLOOKUP($G18,$H$11:$DN$1000,96,FALSE),DeclMatrix!$A$2:$F$5,VLOOKUP('Enrollment Form'!$B18,DeclMatrix!$A$8:$B$12,2,FALSE),FALSE))))","v":""},{"$f":"IF($A18=\"\",\"\",IF(VLOOKUP($G18,$H$11:$DN$1000,101,FALSE)=\"\",\"No\",IF(LEFT(VLOOKUP($G18,$H$11:$DN$1000,101,FALSE),3)=\"The\",EG18,VLOOKUP(VLOOKUP($G18,$H$11:$DN$1000,101,FALSE),DeclMatrix!$A$2:$F$5,VLOOKUP('Enrollment Form'!$B18,DeclMatrix!$A$8:$B$12,2,FALSE),FALSE))))","v":""},{"$f":"IF($A18=\"\",\"\",IF(VLOOKUP($G18,$H$11:$DN$1000,106,FALSE)=\"\",\"No\",IF(LEFT(VLOOKUP($G18,$H$11:$DN$1000,106,FALSE),3)=\"The\",EH18,VLOOKUP(VLOOKUP($G18,$H$11:$DN$1000,106,FALSE),DeclMatrix!$A$2:$F$5,VLOOKUP('Enrollment Form'!$B18,DeclMatrix!$A$8:$B$12,2,FALSE),FALSE))))","v":""},{"$f":"IF($A18=\"\",\"\",IF(VLOOKUP($G18,$H$11:$DN$1000,111,FALSE)=\"\",\"No\",IF(LEFT(VLOOKUP($G18,$H$11:$DN$1000,111,FALSE),3)=\"The\",EI18,VLOOKUP(VLOOKUP($G18,$H$11:$DN$1000,111,FALSE),DeclMatrix!$A$2:$F$5,VLOOKUP('Enrollment Form'!$B18,DeclMatrix!$A$8:$B$12,2,FALSE),FALSE))))","v":""},"",null,"","","","","","","","","","","",""]
["",{"$nulls":5},"","",{"$nulls":18},"","","","",{"$nulls":30},"","","","",{"$nulls":60},"",{"$f":"IF($A19=\"\",\"\",IF(VLOOKUP($G19,$H$11:$DN$1000,96,FALSE)=\"\",\"No\",IF(LEFT(VLOOKUP($G19,$H$11:$DN$1000,96,FALSE),3)=\"The\",EF19,VLOOKUP(VLOOKUP($G19,$H$11:$DN$1000,96,FALSE),DeclMatrix!$A$2:$F$5,VLOOKUP('Enrollment Form'!$B19,DeclMatrix!$A$8:$B$12,2,FALSE),FALSE))))","v":""},{"$f":"IF($A19=\"\",\"\",IF(VLOOKUP($G19,$H$11:$DN$1000,101,FALSE)=\"\",\"No\",IF(LEFT(VLOOKUP($G19,$H$11:$DN$1000,101,FALSE),3)=\"The\",EG19,VLOOKUP(VLOOKUP($G19,$H$11:$DN$1000,101,FALSE),DeclMatrix!$A$2:$F$5,VLOOKUP('Enrollment Form'!$B19,DeclMatrix!$A$8:$B$12,2,FALSE),FALSE))))","v":""},{"$f":"IF($A19=\"\",\"\",IF(VLOOKUP($G19,$H$11:$DN$1000,106,FALSE)=\"\",\"No\",IF(LEFT(VLOOKUP($G19,$H$11:$DN$1000,106,FALSE),3)=\"The\",EH19,VLOOKUP(VLOOKUP($G19,$H$11:$DN$1000,106,FALSE),DeclMatrix!$A$2:$F$5,VLOOKUP('Enrollment Form'!$B19,DeclMatrix!$A$8:$B$12,2,FALSE),FALSE))))","v":""},{"$f":"IF($A19=\"\",\"\",IF(VLOOKUP($G19,$H$11:$DN$1000,111,FALSE)=\"\",\"No\",IF(LEFT(VLOOKUP($G19,$H$11:$DN$1000,111,FALSE),3)=\"The\",EI19,VLOOKUP(VLOOKUP($G19,$H$11:$DN$1000,111,FALSE),DeclMatrix!$A$2:$F$5,VLOOKUP('Enrollment Form'!$B19,DeclMatrix!$A$8:$B$12,2,FALSE),FALSE))))","v":""},"",null,"","","","","","","","","","","",""]
["",{"$nulls":5},"","",{"$nulls":18},"","","","",{"$nulls":30},"","","","",{"$nulls":60},"",{"$f":"IF($A20=\"\",\"\",IF(VLOOKUP($G20,$H$11:$DN$1000,96,FALSE)=\"\",\"No\",IF(LEFT(VLOOKUP($G20,$H$11:$DN$1000,96,FALSE),3)=\"The\",EF20,VLOOKUP(VLOOKUP($G20,$H$11:$DN$1000,96,FALSE),DeclMatrix!$A$2:$F$5,VLOOKUP('Enrollment Form'!$B20,DeclMatrix!$A$8:$B$12,2,FALSE),FALSE))))","v":""},{"$f":"IF($A20=\"\",\"\",IF(VLOOKUP($G20,$H$11:$DN$1000,101,FALSE)=\"\",\"No\",IF(LEFT(VLOOKUP($G20,$H$11:$DN$1000,101,FALSE),3)=\"The\",EG20,VLOOKUP(VLOOKUP($G20,$H$11:$DN$1000,101,FALSE),DeclMatrix!$A$2:$F$5,VLOOKUP('Enrollment Form'!$B20,DeclMatrix!$A$8:$B$12,2,FALSE),FALSE))))","v":""},{"$f":"IF($A20=\"\",\"\",IF(VLOOKUP($G20,$H$11:$DN$1000,106,FALSE)=\"\",\"No\",IF(LEFT(VLOOKUP($G20,$H$11:$DN$1000,106,FALSE),3)=\"The\",EH20,VLOOKUP(VLOOKUP($G20,$H$11:$DN$1000,106,FALSE),DeclMatrix!$A$2:$F$5,VLOOKUP('Enrollment Form'!$B20,DeclMatrix!$A$8:$B$12,2,FALSE),FALSE))))","v":""},{"$f":"IF($A20=\"\",\"\",IF(VLOOKUP($G20,$H$11:$DN$1000,111,FALSE)=\"\",\"No\",IF(LEFT(VLOOKUP($G20,$H$11:$DN$1000,111,FALSE),3)=\"The\",EI20,VLOOKUP(VLOOKUP($G20,$H$11:$DN$1000,111,FALSE),DeclMatrix!$A$2:$F$5,VLOOKUP('Enrollment Form'!$B20,DeclMatrix!$A$8:$B$12,2,FALSE),FALSE))))","v":""},"",null,"","","","","","","","","","","",""]
["",{"$nulls":5},"","",{"$nulls":18},"","","","",{"$nulls":30},"","","","",{"$nulls":60},"",{"$f":"IF($A21=\"\",\"\",IF(VLOOKUP($G21,$H$11:$DN$1000,96,FALSE)=\"\",\"No\",IF(LEFT(VLOOKUP($G21,$H$11:$DN$1000,96,FALSE),3)=\"The\",EF21,VLOOKUP(VLOOKUP($G21,$H$11:$DN$1000,96,FALSE),DeclMatrix!$A$2:$F$5,VLOOKUP('Enrollment Form'!$B21,DeclMatrix!$A$8:$B$12,2,FALSE),FALSE))))","v":""},{"$f":"IF($A21=\"\",\"\",IF(VLOOKUP($G21,$H$11:$DN$1000,101,FALSE)=\"\",\"No\",IF(LEFT(VLOOKUP($G21,$H$11:$DN$1000,101,FALSE),3)=\"The\",EG21,VLOOKUP(VLOOKUP($G21,$H$11:$DN$1000,101,FALSE),DeclMatrix!$A$2:$F$5,VLOOKUP('Enrollment Form'!$B21,DeclMatrix!$A$8:$B$12,2,FALSE),FALSE))))","v":""},{"$f":"IF($A21=\"\",\"\",IF(VLOOKUP($G21,$H$11:$DN$1000,106,FALSE)=\"\",\"No\",IF(LEFT(VLOOKUP($G21,$H$11:$DN$1000,106,FALSE),3)=\"The\",EH21,VLOOKUP(VLOOKUP($G21,$H$11:$DN$1000,106,FALSE),DeclMatrix!$A$2:$F$5,VLOOKUP('Enrollment Form'!$B21,DeclMatrix!$A$8:$B$12,2,FALSE),FALSE))))","v":""},{"$f":"IF($A21=\"\",\"\",IF(VLOOKUP($G21,$H$11:$DN$1000,111,FALSE)=\"\",\"No\",IF(LEFT(VLOOKUP($G21,$H$11:$DN$1000,111,FALSE),3)=\"The\",EI21,VLOOKUP(VLOOKUP($G21,$H$11:$DN$1000,111,FALSE),DeclMatrix!$A$2:$F$5,VLOOKUP('Enrollment Form'!$B21,DeclMatrix!$A$8:$B$12,2,FALSE),FALSE))))","v":""},"",null,"","","","","","","","","","","",""]
["",{"$nulls":5},"","",{"$nulls":18},"","","","",{"$nulls":30},"","","","",{"$nulls":60},"",{"$f":"IF($A22=\"\",\"\",IF(VLOOKUP($G22,$H$11:$DN$1000,96,FALSE)=\"\",\"No\",IF(LEFT(VLOOKUP($G22,$H$11:$DN$1000,96,FALSE),3)=\"The\",EF22,VLOOKUP(VLOOKUP($G22,$H$11:$DN$1000,96,FALSE),DeclMatrix!$A$2:$F$5,VLOOKUP('Enrollment Form'!$B22,DeclMatrix!$A$8:$B$12,2,FALSE),FALSE))))","v":""},{"$f":"IF($A22=\"\",\"\",IF(VLOOKUP($G22,$H$11:$DN$1000,101,FALSE)=\"\",\"No\",IF(LEFT(VLOOKUP($G22,$H$11:$DN$1000,101,FALSE),3)=\"The\",EG22,VLOOKUP(VLOOKUP($G22,$H$11:$DN$1000,101,FALSE),DeclMatrix!$A$2:$F$5,VLOOKUP('Enrollment Form'!$B22,DeclMatrix!$A$8:$B$12,2,FALSE),FALSE))))","v":""},{"$f":"IF($A22=\"\",\"\",IF(VLOOKUP($G22,$H$11:$DN$1000,106,FALSE)=\"\",\"No\",IF(LEFT(VLOOKUP($G22,$H$11:$DN$1000,106,FALSE),3)=\"The\",EH22,VLOOKUP(VLOOKUP($G22,$H$11:$DN$1000,106,FALSE),DeclMatrix!$A$2:$F$5,VLOOKUP('Enrollment Form'!$B22,DeclMatrix!$A$8:$B$12,2,FALSE),FALSE))))","v":""},{"$f":"IF($A22=\"\",\"\",IF(VLOOKUP($G22,$H$11:$DN$1000,111,FALSE)=\"\",\"No\",IF(LEFT(VLOOKUP($G22,$H$11:$DN$1000,111,FALSE),3)=\"The\",EI22,VLOOKUP(VLOOKUP($G22,$H$11:$DN$1000,111,FALSE),DeclMatrix!$A$2:$F$5,VLOOKUP('Enrollment Form'!$B22,DeclMatrix!$A$8:$B$12,2,FALSE),FALSE))))","v":""},"",null,"","","","","","","","","","","",""]
["",{"$nulls":5},"","",{"$nulls":18},"","","","",{"$nulls":30},"","","","",{"$nulls":60},"",{"$f":"IF($A23=\"\",\"\",IF(VLOOKUP($G23,$H$11:$DN$1000,96,FALSE)=\"\",\"No\",IF(LEFT(VLOOKUP($G23,$H$11:$DN$1000,96,FALSE),3)=\"The\",EF23,VLOOKUP(VLOOKUP($G23,$H$11:$DN$1000,96,FALSE),DeclMatrix!$A$2:$F$5,VLOOKUP('Enrollment Form'!$B23,DeclMatrix!$A$8:$B$12,2,FALSE),FALSE))))","v":""},{"$f":"IF($A23=\"\",\"\",IF(VLOOKUP($G23,$H$11:$DN$1000,101,FALSE)=\"\",\"No\",IF(LEFT(VLOOKUP($G23,$H$11:$DN$1000,101,FALSE),3)=\"The\",EG23,VLOOKUP(VLOOKUP($G23,$H$11:$DN$1000,101,FALSE),DeclMatrix!$A$2:$F$5,VLOOKUP('Enrollment Form'!$B23,DeclMatrix!$A$8:$B$12,2,FALSE),FALSE))))","v":""},{"$f":"IF($A23=\"\",\"\",IF(VLOOKUP($G23,$H$11:$DN$1000,106,FALSE)=\"\",\"No\",IF(LEFT(VLOOKUP($G23,$H$11:$DN$1000,106,FALSE),3)=\"The\",EH23,VLOOKUP(VLOOKUP($G23,$H$11:$DN$1000,106,FALSE),DeclMatrix!$A$2:$F$5,VLOOKUP('Enrollment Form'!$B23,DeclMatrix!$A$8:$B$12,2,FALSE),FALSE))))","v":""},{"$f":"IF($A23=\"\",\"\",IF(VLOOKUP($G23,$H$11:$DN$1000,111,FALSE)=\"\",\"No\",IF(LEFT(VLOOKUP($G23,$H$11:$DN$1000,111,FALSE),3)=\"The\",EI23,VLOOKUP(VLOOKUP($G23,$H$11:$DN$1000,111,FALSE),DeclMatrix!$A$2:$F$5,VLOOKUP('Enrollment Form'!$B23,DeclMatrix!$A$8:$B$12,2,FALSE),FALSE))))","v":""},"",null,"","","","","","","","","","","",""]
["",{"$nulls":5},"","",{"$nulls":18},"","","","",{"$nulls":30},"","","","",{"$nulls":60},"",{"$f":"IF($A24=\"\",\"\",IF(VLOOKUP($G24,$H$11:$DN$1000,96,FALSE)=\"\",\"No\",IF(LEFT(VLOOKUP($G24,$H$11:$DN$1000,96,FALSE),3)=\"The\",EF24,VLOOKUP(VLOOKUP($G24,$H$11:$DN$1000,96,FALSE),DeclMatrix!$A$2:$F$5,VLOOKUP('Enrollment Form'!$B24,DeclMatrix!$A$8:$B$12,2,FALSE),FALSE))))","v":""},{"$f":"IF($A24=\"\",\"\",IF(VLOOKUP($G24,$H$11:$DN$1000,101,FALSE)=\"\",\"No\",IF(LEFT(VLOOKUP($G24,$H$11:$DN$1000,101,FALSE),3)=\"The\",EG24,VLOOKUP(VLOOKUP($G24,$H$11:$DN$1000,101,FALSE),DeclMatrix!$A$2:$F$5,VLOOKUP('Enrollment Form'!$B24,DeclMatrix!$A$8:$B$12,2,FALSE),FALSE))))","v":""},{"$f":"IF($A24=\"\",\"\",IF(VLOOKUP($G24,$H$11:$DN$1000,106,FALSE)=\"\",\"No\",IF(LEFT(VLOOKUP($G24,$H$11:$DN$1000,106,FALSE),3)=\"The\",EH24,VLOOKUP(VLOOKUP($G24,$H$11:$DN$1000,106,FALSE),DeclMatrix!$A$2:$F$5,VLOOKUP('Enrollment Form'!$B24,DeclMatrix!$A$8:$B$12,2,FALSE),FALSE))))","v":""},{"$f":"IF($A24=\"\",\"\",IF(VLOOKUP($G24,$H$11:$DN$1000,111,FALSE)=\"\",\"No\",IF(LEFT(VLOOKUP($G24,$H$11:$DN$1000,111,FALSE),3)=\"The\",EI24,VLOOKUP(VLOOKUP($G24,$H$11:$DN$1000,111,FALSE),DeclMatrix!$A$2:$F$5,VLOOKUP('Enrollment Form'!$B24,DeclMatrix!$A$8:$B$12,2,FALSE),FALSE))))","v":""},"",null,"","","","","","","","","","","",""]
["",{"$nulls":5},"","",{"$nulls":18},"","","","",{"$nulls":30},"","","","",{"$nulls":60},"",{"$f":"IF($A25=\"\",\"\",IF(VLOOKUP($G25,$H$11:$DN$1000,96,FALSE)=\"\",\"No\",IF(LEFT(VLOOKUP($G25,$H$11:$DN$1000,96,FALSE),3)=\"The\",EF25,VLOOKUP(VLOOKUP($G25,$H$11:$DN$1000,96,FALSE),DeclMatrix!$A$2:$F$5,VLOOKUP('Enrollment Form'!$B25,DeclMatrix!$A$8:$B$12,2,FALSE),FALSE))))","v":""},{"$f":"IF($A25=\"\",\"\",IF(VLOOKUP($G25,$H$11:$DN$1000,101,FALSE)=\"\",\"No\",IF(LEFT(VLOOKUP($G25,$H$11:$DN$1000,101,FALSE),3)=\"The\",EG25,VLOOKUP(VLOOKUP($G25,$H$11:$DN$1000,101,FALSE),DeclMatrix!$A$2:$F$5,VLOOKUP('Enrollment Form'!$B25,DeclMatrix!$A$8:$B$12,2,FALSE),FALSE))))","v":""},{"$f":"IF($A25=\"\",\"\",IF(VLOOKUP($G25,$H$11:$DN$1000,106,FALSE)=\"\",\"No\",IF(LEFT(VLOOKUP($G25,$H$11:$DN$1000,106,FALSE),3)=\"The\",EH25,VLOOKUP(VLOOKUP($G25,$H$11:$DN$1000,106,FALSE),DeclMatrix!$A$2:$F$5,VLOOKUP('Enrollment Form'!$B25,DeclMatrix!$A$8:$B$12,2,FALSE),FALSE))))","v":""},{"$f":"IF($A25=\"\",\"\",IF(VLOOKUP($G25,$H$11:$DN$1000,111,FALSE)=\"\",\"No\",IF(LEFT(VLOOKUP($G25,$H$11:$DN$1000,111,FALSE),3)=\"The\",EI25,VLOOKUP(VLOOKUP($G25,$H$11:$DN$1000,111,FALSE),DeclMatrix!$A$2:$F$5,VLOOKUP('Enrollment Form'!$B25,DeclMatrix!$A$8:$B$12,2,FALSE),FALSE))))","v":""},"",null,"","","","","","","","","","","",""]
["",{"$nulls":5},"","",{"$nulls":18},"","","","",{"$nulls":30},"","","","",{"$nulls":60},"",{"$f":"IF($A26=\"\",\"\",IF(VLOOKUP($G26,$H$11:$DN$1000,96,FALSE)=\"\",\"No\",IF(LEFT(VLOOKUP($G26,$H$11:$DN$1000,96,FALSE),3)=\"The\",EF26,VLOOKUP(VLOOKUP($G26,$H$11:$DN$1000,96,FALSE),DeclMatrix!$A$2:$F$5,VLOOKUP('Enrollment Form'!$B26,DeclMatrix!$A$8:$B$12,2,FALSE),FALSE))))","v":""},{"$f":"IF($A26=\"\",\"\",IF(VLOOKUP($G26,$H$11:$DN$1000,101,FALSE)=\"\",\"No\",IF(LEFT(VLOOKUP($G26,$H$11:$DN$1000,101,FALSE),3)=\"The\",EG26,VLOOKUP(VLOOKUP($G26,$H$11:$DN$1000,101,FALSE),DeclMatrix!$A$2:$F$5,VLOOKUP('Enrollment Form'!$B26,DeclMatrix!$A$8:$B$12,2,FALSE),FALSE))))","v":""},{"$f":"IF($A26=\"\",\"\",IF(VLOOKUP($G26,$H$11:$DN$1000,106,FALSE)=\"\",\"No\",IF(LEFT(VLOOKUP($G26,$H$11:$DN$1000,106,FALSE),3)=\"The\",EH26,VLOOKUP(VLOOKUP($G26,$H$11:$DN$1000,106,FALSE),DeclMatrix!$A$2:$F$5,VLOOKUP('Enrollment Form'!$B26,DeclMatrix!$A$8:$B$12,2,FALSE),FALSE))))","v":""},{"$f":"IF($A26=\"\",\"\",IF(VLOOKUP($G26,$H$11:$DN$1000,111,FALSE)=\"\",\"No\",IF(LEFT(VLOOKUP($G26,$H$11:$DN$1000,111,FALSE),3)=\"The\",EI26,VLOOKUP(VLOOKUP($G26,$H$11:$DN$1000,111,FALSE),DeclMatrix!$A$2:$F$5,VLOOKUP('Enrollment Form'!$B26,DeclMatrix!$A$8:$B$12,2,FALSE),FALSE))))","v":""},"",null,"","","","","","","","","","","",""]
["",{"$nulls":5},"","",{"$nulls":18},"","","","",{"$nulls":30},"","","","",{"$nulls":60},"",{"$f":"IF($A27=\"\",\"\",IF(VLOOKUP($G27,$H$11:$DN$1000,96,FALSE)=\"\",\"No\",IF(LEFT(VLOOKUP($G27,$H$11:$DN$1000,96,FALSE),3)=\"The\",EF27,VLOOKUP(VLOOKUP($G27,$H$11:$DN$1000,96,FALSE),DeclMatrix!$A$2:$F$5,VLOOKUP('Enrollment Form'!$B27,DeclMatrix!$A$8:$B$12,2,FALSE),FALSE))))","v":""},{"$f":"IF($A27=\"\",\"\",IF(VLOOKUP($G27,$H$11:$DN$1000,101,FALSE)=\"\",\"No\",IF(LEFT(VLOOKUP($G27,$H$11:$DN$1000,101,FALSE),3)=\"The\",EG27,VLOOKUP(VLOOKUP($G27,$H$11:$DN$1000,101,FALSE),DeclMatrix!$A$2:$F$5,VLOOKUP('Enrollment Form'!$B27,DeclMatrix!$A$8:$B$12,2,FALSE),FALSE))))","v":""},{"$f":"IF($A27=\"\",\"\",IF(VLOOKUP($G27,$H$11:$DN$1000,106,FALSE)=\"\",\"No\",IF(LEFT(VLOOKUP($G27,$H$11:$DN$1000,106,FALSE),3)=\"The\",EH27,VLOOKUP(VLOOKUP($G27,$H$11:$DN$1000,106,FALSE),DeclMatrix!$A$2:$F$5,VLOOKUP('Enrollment Form'!$B27,DeclMatrix!$A$8:$B$12,2,FALSE),FALSE))))","v":""},{"$f":"IF($A27=\"\",\"\",IF(VLOOKUP($G27,$H$11:$DN$1000,111,FALSE)=\"\",\"No\",IF(LEFT(VLOOKUP($G27,$H$11:$DN$1000,111,FALSE),3)=\"The\",EI27,VLOOKUP(VLOOKUP($G27,$H$11:$DN$1000,111,FALSE),DeclMatrix!$A$2:$F$5,VLOOKUP('Enrollment Form'!$B27,DeclMatrix!$A$8:$B$12,2,FALSE),FALSE))))","v":""},"",null,"","","","","","","","","","","",""]
["",{"$nulls":5},"","",{"$nulls":18},"","","","",{"$nulls":30},"","","","",{"$nulls":60},"",{"$f":"IF($A28=\"\",\"\",IF(VLOOKUP($G28,$H$11:$DN$1000,96,FALSE)=\"\",\"No\",IF(LEFT(VLOOKUP($G28,$H$11:$DN$1000,96,FALSE),3)=\"The\",EF28,VLOOKUP(VLOOKUP($G28,$H$11:$DN$1000,96,FALSE),DeclMatrix!$A$2:$F$5,VLOOKUP('Enrollment Form'!$B28,DeclMatrix!$A$8:$B$12,2,FALSE),FALSE))))","v":""},{"$f":"IF($A28=\"\",\"\",IF(VLOOKUP($G28,$H$11:$DN$1000,101,FALSE)=\"\",\"No\",IF(LEFT(VLOOKUP($G28,$H$11:$DN$1000,101,FALSE),3)=\"The\",EG28,VLOOKUP(VLOOKUP($G28,$H$11:$DN$1000,101,FALSE),DeclMatrix!$A$2:$F$5,VLOOKUP('Enrollment Form'!$B28,DeclMatrix!$A$8:$B$12,2,FALSE),FALSE))))","v":""},{"$f":"IF($A28=\"\",\"\",IF(VLOOKUP($G28,$H$11:$DN$1000,106,FALSE)=\"\",\"No\",IF(LEFT(VLOOKUP($G28,$H$11:$DN$1000,106,FALSE),3)=\"The\",EH28,VLOOKUP(VLOOKUP($G28,$H$11:$DN$1000,106,FALSE),DeclMatrix!$A$2:$F$5,VLOOKUP('Enrollment Form'!$B28,DeclMatrix!$A$8:$B$12,2,FALSE),FALSE))))","v":""},{"$f":"IF($A28=\"\",\"\",IF(VLOOKUP($G28,$H$11:$DN$1000,111,FALSE)=\"\",\"No\",IF(LEFT(VLOOKUP($G28,$H$11:$DN$1000,111,FALSE),3)=\"The\",EI28,VLOOKUP(VLOOKUP($G28,$H$11:$DN$1000,111,FALSE),DeclMatrix!$A$2:$F$5,VLOOKUP('Enrollment Form'!$B28,DeclMatrix!$A$8:$B$12,2,FALSE),FALSE))))","v":""},"",null,"","","","","","","","","","","",""]
["",{"$nulls":5},"","",{"$nulls":18},"","","","",{"$nulls":30},"","","","",{"$nulls":60},"",{"$f":"IF($A29=\"\",\"\",IF(VLOOKUP($G29,$H$11:$DN$1000,96,FALSE)=\"\",\"No\",IF(LEFT(VLOOKUP($G29,$H$11:$DN$1000,96,FALSE),3)=\"The\",EF29,VLOOKUP(VLOOKUP($G29,$H$11:$DN$1000,96,FALSE),DeclMatrix!$A$2:$F$5,VLOOKUP('Enrollment Form'!$B29,DeclMatrix!$A$8:$B$12,2,FALSE),FALSE))))","v":""},{"$f":"IF($A29=\"\",\"\",IF(VLOOKUP($G29,$H$11:$DN$1000,101,FALSE)=\"\",\"No\",IF(LEFT(VLOOKUP($G29,$H$11:$DN$1000,101,FALSE),3)=\"The\",EG29,VLOOKUP(VLOOKUP($G29,$H$11:$DN$1000,101,FALSE),DeclMatrix!$A$2:$F$5,VLOOKUP('Enrollment Form'!$B29,DeclMatrix!$A$8:$B$12,2,FALSE),FALSE))))","v":""},{"$f":"IF($A29=\"\",\"\",IF(VLOOKUP($G29,$H$11:$DN$1000,106,FALSE)=\"\",\"No\",IF(LEFT(VLOOKUP($G29,$H$11:$DN$1000,106,FALSE),3)=\"The\",EH29,VLOOKUP(VLOOKUP($G29,$H$11:$DN$1000,106,FALSE),DeclMatrix!$A$2:$F$5,VLOOKUP('Enrollment Form'!$B29,DeclMatrix!$A$8:$B$12,2,FALSE),FALSE))))","v":""},{"$f":"IF($A29=\"\",\"\",IF(VLOOKUP($G29,$H$11:$DN$1000,111,FALSE)=\"\",\"No\",IF(LEFT(VLOOKUP($G29,$H$11:$DN$1000,111,FALSE),3)=\"The\",EI29,VLOOKUP(VLOOKUP($G29,$H$11:$DN$1000,111,FALSE),DeclMatrix!$A$2:$F$5,VLOOKUP('Enrollment Form'!$B29,DeclMatrix!$A$8:$B$12,2,FALSE),FALSE))))","v":""},"",null,"","","","","","","","","","","",""]
["",{"$nulls":5},"","",{"$nulls":18},"","","","",{"$nulls":30},"","","","",{"$nulls":60},"",{"$f":"IF($A30=\"\",\"\",IF(VLOOKUP($G30,$H$11:$DN$1000,96,FALSE)=\"\",\"No\",IF(LEFT(VLOOKUP($G30,$H$11:$DN$1000,96,FALSE),3)=\"The\",EF30,VLOOKUP(VLOOKUP($G30,$H$11:$DN$1000,96,FALSE),DeclMatrix!$A$2:$F$5,VLOOKUP('Enrollment Form'!$B30,DeclMatrix!$A$8:$B$12,2,FALSE),FALSE))))","v":""},{"$f":"IF($A30=\"\",\"\",IF(VLOOKUP($G30,$H$11:$DN$1000,101,FALSE)=\"\",\"No\",IF(LEFT(VLOOKUP($G30,$H$11:$DN$1000,101,FALSE),3)=\"The\",EG30,VLOOKUP(VLOOKUP($G30,$H$11:$DN$1000,101,FALSE),DeclMatrix!$A$2:$F$5,VLOOKUP('Enrollment Form'!$B30,DeclMatrix!$A$8:$B$12,2,FALSE),FALSE))))","v":""},{"$f":"IF($A30=\"\",\"\",IF(VLOOKUP($G30,$H$11:$DN$1000,106,FALSE)=\"\",\"No\",IF(LEFT(VLOOKUP($G30,$H$11:$DN$1000,106,FALSE),3)=\"The\",EH30,VLOOKUP(VLOOKUP($G30,$H$11:$DN$1000,106,FALSE),DeclMatrix!$A$2:$F$5,VLOOKUP('Enrollment Form'!$B30,DeclMatrix!$A$8:$B$12,2,FALSE),FALSE))))","v":""},{"$f":"IF($A30=\"\",\"\",IF(VLOOKUP($G30,$H$11:$DN$1000,111,FALSE)=\"\",\"No\",IF(LEFT(VLOOKUP($G30,$H$11:$DN$1000,111,FALSE),3)=\"The\",EI30,VLOOKUP(VLOOKUP($G30,$H$11:$DN$1000,111,FALSE),DeclMatrix!$A$2:$F$5,VLOOKUP('Enrollment Form'!$B30,DeclMatrix!$A$8:$B$12,2,FALSE),FALSE))))","v":""},"",null,"","","","","","","","","","","",""]
["",{"$nulls":5},"","",{"$nulls":18},"","","","",{"$nulls":30},"","","","",{"$nulls":60},"",{"$f":"IF($A31=\"\",\"\",IF(VLOOKUP($G31,$H$11:$DN$1000,96,FALSE)=\"\",\"No\",IF(LEFT(VLOOKUP($G31,$H$11:$DN$1000,96,FALSE),3)=\"The\",EF31,VLOOKUP(VLOOKUP($G31,$H$11:$DN$1000,96,FALSE),DeclMatrix!$A$2:$F$5,VLOOKUP('Enrollment Form'!$B31,DeclMatrix!$A$8:$B$12,2,FALSE),FALSE))))","v":""},{"$f":"IF($A31=\"\",\"\",IF(VLOOKUP($G31,$H$11:$DN$1000,101,FALSE)=\"\",\"No\",IF(LEFT(VLOOKUP($G31,$H$11:$DN$1000,101,FALSE),3)=\"The\",EG31,VLOOKUP(VLOOKUP($G31,$H$11:$DN$1000,101,FALSE),DeclMatrix!$A$2:$F$5,VLOOKUP('Enrollment Form'!$B31,DeclMatrix!$A$8:$B$12,2,FALSE),FALSE))))","v":""},{"$f":"IF($A31=\"\",\"\",IF(VLOOKUP($G31,$H$11:$DN$1000,106,FALSE)=\"\",\"No\",IF(LEFT(VLOOKUP($G31,$H$11:$DN$1000,106,FALSE),3)=\"The\",EH31,VLOOKUP(VLOOKUP($G31,$H$11:$DN$1000,106,FALSE),DeclMatrix!$A$2:$F$5,VLOOKUP('Enrollment Form'!$B31,DeclMatrix!$A$8:$B$12,2,FALSE),FALSE))))","v":""},{"$f":"IF($A31=\"\",\"\",IF(VLOOKUP($G31,$H$11:$DN$1000,111,FALSE)=\"\",\"No\",IF(LEFT(VLOOKUP($G31,$H$11:$DN$1000,111,FALSE),3)=\"The\",EI31,VLOOKUP(VLOOKUP($G31,$H$11:$DN$1000,111,FALSE),DeclMatrix!$A$2:$F$5,VLOOKUP('Enrollment Form'!$B31,DeclMatrix!$A$8:$B$12,2,FALSE),FALSE))))","v":""},"",null,"","","","","","","","","","","",""]
["",{"$nulls":5},"","",{"$nulls":18},"","","","",{"$nulls":30},"","","","",{"$nulls":60},"",{"$f":"IF($A32=\"\",\"\",IF(VLOOKUP($G32,$H$11:$DN$1000,96,FALSE)=\"\",\"No\",IF(LEFT(VLOOKUP($G32,$H$11:$DN$1000,96,FALSE),3)=\"The\",EF32,VLOOKUP(VLOOKUP($G32,$H$11:$DN$1000,96,FALSE),DeclMatrix!$A$2:$F$5,VLOOKUP('Enrollment Form'!$B32,DeclMatrix!$A$8:$B$12,2,FALSE),FALSE))))","v":""},{"$f":"IF($A32=\"\",\"\",IF(VLOOKUP($G32,$H$11:$DN$1000,101,FALSE)=\"\",\"No\",IF(LEFT(VLOOKUP($G32,$H$11:$DN$1000,101,FALSE),3)=\"The\",EG32,VLOOKUP(VLOOKUP($G32,$H$11:$DN$1000,101,FALSE),DeclMatrix!$A$2:$F$5,VLOOKUP('Enrollment Form'!$B32,DeclMatrix!$A$8:$B$12,2,FALSE),FALSE))))","v":""},{"$f":"IF($A32=\"\",\"\",IF(VLOOKUP($G32,$H$11:$DN$1000,106,FALSE)=\"\",\"No\",IF(LEFT(VLOOKUP($G32,$H$11:$DN$1000,106,FALSE),3)=\"The\",EH32,VLOOKUP(VLOOKUP($G32,$H$11:$DN$1000,106,FALSE),DeclMatrix!$A$2:$F$5,VLOOKUP('Enrollment Form'!$B32,DeclMatrix!$A$8:$B$12,2,FALSE),FALSE))))","v":""},{"$f":"IF($A32=\"\",\"\",IF(VLOOKUP($G32,$H$11:$DN$1000,111,FALSE)=\"\",\"No\",IF(LEFT(VLOOKUP($G32,$H$11:$DN$1000,111,FALSE),3)=\"The\",EI32,VLOOKUP(VLOOKUP($G32,$H$11:$DN$1000,111,FALSE),DeclMatrix!$A$2:$F$5,VLOOKUP('Enrollment Form'!$B32,DeclMatrix!$A$8:$B$12,2,FALSE),FALSE))))","v":""},"",null,"","","","","","","","","","","",""]
["",{"$nulls":5},"","",{"$nulls":18},"","","","",{"$nulls":30},"","","","",{"$nulls":60},"",{"$f":"IF($A33=\"\",\"\",IF(VLOOKUP($G33,$H$11:$DN$1000,96,FALSE)=\"\",\"No\",IF(LEFT(VLOOKUP($G33,$H$11:$DN$1000,96,FALSE),3)=\"The\",EF33,VLOOKUP(VLOOKUP($G33,$H$11:$DN$1000,96,FALSE),DeclMatrix!$A$2:$F$5,VLOOKUP('Enrollment Form'!$B33,DeclMatrix!$A$8:$B$12,2,FALSE),FALSE))))","v":""},{"$f":"IF($A33=\"\",\"\",IF(VLOOKUP($G33,$H$11:$DN$1000,101,FALSE)=\"\",\"No\",IF(LEFT(VLOOKUP($G33,$H$11:$DN$1000,101,FALSE),3)=\"The\",EG33,VLOOKUP(VLOOKUP($G33,$H$11:$DN$1000,101,FALSE),DeclMatrix!$A$2:$F$5,VLOOKUP('Enrollment Form'!$B33,DeclMatrix!$A$8:$B$12,2,FALSE),FALSE))))","v":""},{"$f":"IF($A33=\"\",\"\",IF(VLOOKUP($G33,$H$11:$DN$1000,106,FALSE)=\"\",\"No\",IF(LEFT(VLOOKUP($G33,$H$11:$DN$1000,106,FALSE),3)=\"The\",EH33,VLOOKUP(VLOOKUP($G33,$H$11:$DN$1000,106,FALSE),DeclMatrix!$A$2:$F$5,VLOOKUP('Enrollment Form'!$B33,DeclMatrix!$A$8:$B$12,2,FALSE),FALSE))))","v":""},{"$f":"IF($A33=\"\",\"\",IF(VLOOKUP($G33,$H$11:$DN$1000,111,FALSE)=\"\",\"No\",IF(LEFT(VLOOKUP($G33,$H$11:$DN$1000,111,FALSE),3)=\"The\",EI33,VLOOKUP(VLOOKUP($G33,$H$11:$DN$1000,111,FALSE),DeclMatrix!$A$2:$F$5,VLOOKUP('Enrollment Form'!$B33,DeclMatrix!$A$8:$B$12,2,FALSE),FALSE))))","v":""},"",null,"","","","","","","","","","","",""]
["",{"$nulls":5},"","",{"$nulls":18},"","","","",{"$nulls":30},"","","","",{"$nulls":60},"",{"$f":"IF($A34=\"\",\"\",IF(VLOOKUP($G34,$H$11:$DN$1000,96,FALSE)=\"\",\"No\",IF(LEFT(VLOOKUP($G34,$H$11:$DN$1000,96,FALSE),3)=\"The\",EF34,VLOOKUP(VLOOKUP($G34,$H$11:$DN$1000,96,FALSE),DeclMatrix!$A$2:$F$5,VLOOKUP('Enrollment Form'!$B34,DeclMatrix!$A$8:$B$12,2,FALSE),FALSE))))","v":""},{"$f":"IF($A34=\"\",\"\",IF(VLOOKUP($G34,$H$11:$DN$1000,101,FALSE)=\"\",\"No\",IF(LEFT(VLOOKUP($G34,$H$11:$DN$1000,101,FALSE),3)=\"The\",EG34,VLOOKUP(VLOOKUP($G34,$H$11:$DN$1000,101,FALSE),DeclMatrix!$A$2:$F$5,VLOOKUP('Enrollment Form'!$B34,DeclMatrix!$A$8:$B$12,2,FALSE),FALSE))))","v":""},{"$f":"IF($A34=\"\",\"\",IF(VLOOKUP($G34,$H$11:$DN$1000,106,FALSE)=\"\",\"No\",IF(LEFT(VLOOKUP($G34,$H$11:$DN$1000,106,FALSE),3)=\"The\",EH34,VLOOKUP(VLOOKUP($G34,$H$11:$DN$1000,106,FALSE),DeclMatrix!$A$2:$F$5,VLOOKUP('Enrollment Form'!$B34,DeclMatrix!$A$8:$B$12,2,FALSE),FALSE))))","v":""},{"$f":"IF($A34=\"\",\"\",IF(VLOOKUP($G34,$H$11:$DN$1000,111,FALSE)=\"\",\"No\",IF(LEFT(VLOOKUP($G34,$H$11:$DN$1000,111,FALSE),3)=\"The\",EI34,VLOOKUP(VLOOKUP($G34,$H$11:$DN$1000,111,FALSE),DeclMatrix!$A$2:$F$5,VLOOKUP('Enrollment Form'!$B34,DeclMatrix!$A$8:$B$12,2,FALSE),FALSE))))","v":""},"",null,"","","","","","","","","","","",""]
["",{"$nulls":5},"","",{"$nulls":18},"","","","",{"$nulls":30},"","","","",{"$nulls":60},"",{"$f":"IF($A35=\"\",\"\",IF(VLOOKUP($G35,$H$11:$DN$1000,96,FALSE)=\"\",\"No\",IF(LEFT(VLOOKUP($G35,$H$11:$DN$1000,96,FALSE),3)=\"The\",EF35,VLOOKUP(VLOOKUP($G35,$H$11:$DN$1000,96,FALSE),DeclMatrix!$A$2:$F$5,VLOOKUP('Enrollment Form'!$B35,DeclMatrix!$A$8:$B$12,2,FALSE),FALSE))))","v":""},{"$f":"IF($A35=\"\",\"\",IF(VLOOKUP($G35,$H$11:$DN$1000,101,FALSE)=\"\",\"No\",IF(LEFT(VLOOKUP($G35,$H$11:$DN$1000,101,FALSE),3)=\"The\",EG35,VLOOKUP(VLOOKUP($G35,$H$11:$DN$1000,101,FALSE),DeclMatrix!$A$2:$F$5,VLOOKUP('Enrollment Form'!$B35,DeclMatrix!$A$8:$B$12,2,FALSE),FALSE))))","v":""},{"$f":"IF($A35=\"\",\"\",IF(VLOOKUP($G35,$H$11:$DN$1000,106,FALSE)=\"\",\"No\",IF(LEFT(VLOOKUP($G35,$H$11:$DN$1000,106,FALSE),3)=\"The\",EH35,VLOOKUP(VLOOKUP($G35,$H$11:$DN$1000,106,FALSE),DeclMatrix!$A$2:$F$5,VLOOKUP('Enrollment Form'!$B35,DeclMatrix!$A$8:$B$12,2,FALSE),FALSE))))","v":""},{"$f":"IF($A35=\"\",\"\",IF(VLOOKUP($G35,$H$11:$DN$1000,111,FALSE)=\"\",\"No\",IF(LEFT(VLOOKUP($G35,$H$11:$DN$1000,111,FALSE),3)=\"The\",EI35,VLOOKUP(VLOOKUP($G35,$H$11:$DN$1000,111,FALSE),DeclMatrix!$A$2:$F$5,VLOOKUP('Enrollment Form'!$B35,DeclMatrix!$A$8:$B$12,2,FALSE),FALSE))))","v":""},"",null,"","","","","","","","","","","",""]
["",{"$nulls":5},"","",{"$nulls":18},"","","","",{"$nulls":30},"","","","",{"$nulls":60},"",{"$f":"IF($A36=\"\",\"\",IF(VLOOKUP($G36,$H$11:$DN$1000,96,FALSE)=\"\",\"No\",IF(LEFT(VLOOKUP($G36,$H$11:$DN$1000,96,FALSE),3)=\"The\",EF36,VLOOKUP(VLOOKUP($G36,$H$11:$DN$1000,96,FALSE),DeclMatrix!$A$2:$F$5,VLOOKUP('Enrollment Form'!$B36,DeclMatrix!$A$8:$B$12,2,FALSE),FALSE))))","v":""},{"$f":"IF($A36=\"\",\"\",IF(VLOOKUP($G36,$H$11:$DN$1000,101,FALSE)=\"\",\"No\",IF(LEFT(VLOOKUP($G36,$H$11:$DN$1000,101,FALSE),3)=\"The\",EG36,VLOOKUP(VLOOKUP($G36,$H$11:$DN$1000,101,FALSE),DeclMatrix!$A$2:$F$5,VLOOKUP('Enrollment Form'!$B36,DeclMatrix!$A$8:$B$12,2,FALSE),FALSE))))","v":""},{"$f":"IF($A36=\"\",\"\",IF(VLOOKUP($G36,$H$11:$DN$1000,106,FALSE)=\"\",\"No\",IF(LEFT(VLOOKUP($G36,$H$11:$DN$1000,106,FALSE),3)=\"The\",EH36,VLOOKUP(VLOOKUP($G36,$H$11:$DN$1000,106,FALSE),DeclMatrix!$A$2:$F$5,VLOOKUP('Enrollment Form'!$B36,DeclMatrix!$A$8:$B$12,2,FALSE),FALSE))))","v":""},{"$f":"IF($A36=\"\",\"\",IF(VLOOKUP($G36,$H$11:$DN$1000,111,FALSE)=\"\",\"No\",IF(LEFT(VLOOKUP($G36,$H$11:$DN$1000,111,FALSE),3)=\"The\",EI36,VLOOKUP(VLOOKUP($G36,$H$11:$DN$1000,111,FALSE),DeclMatrix!$A$2:$F$5,VLOOKUP('Enrollment Form'!$B36,DeclMatrix!$A$8:$B$12,2,FALSE),FALSE))))","v":""},"",null,"","","","","","","","","","","",""]
["",{"$nulls":5},"","",{"$nulls":18},"","","","",{"$nulls":30},"","","","",{"$nulls":60},"",{"$f":"IF($A37=\"\",\"\",IF(VLOOKUP($G37,$H$11:$DN$1000,96,FALSE)=\"\",\"No\",IF(LEFT(VLOOKUP($G37,$H$11:$DN$1000,96,FALSE),3)=\"The\",EF37,VLOOKUP(VLOOKUP($G37,$H$11:$DN$1000,96,FALSE),DeclMatrix!$A$2:$F$5,VLOOKUP('Enrollment Form'!$B37,DeclMatrix!$A$8:$B$12,2,FALSE),FALSE))))","v":""},{"$f":"IF($A37=\"\",\"\",IF(VLOOKUP($G37,$H$11:$DN$1000,101,FALSE)=\"\",\"No\",IF(LEFT(VLOOKUP($G37,$H$11:$DN$1000,101,FALSE),3)=\"The\",EG37,VLOOKUP(VLOOKUP($G37,$H$11:$DN$1000,101,FALSE),DeclMatrix!$A$2:$F$5,VLOOKUP('Enrollment Form'!$B37,DeclMatrix!$A$8:$B$12,2,FALSE),FALSE))))","v":""},{"$f":"IF($A37=\"\",\"\",IF(VLOOKUP($G37,$H$11:$DN$1000,106,FALSE)=\"\",\"No\",IF(LEFT(VLOOKUP($G37,$H$11:$DN$1000,106,FALSE),3)=\"The\",EH37,VLOOKUP(VLOOKUP($G37,$H$11:$DN$1000,106,FALSE),DeclMatrix!$A$2:$F$5,VLOOKUP('Enrollment Form'!$B37,DeclMatrix!$A$8:$B$12,2,FALSE),FALSE))))","v":""},{"$f":"IF($A37=\"\",\"\",IF(VLOOKUP($G37,$H$11:$DN$1000,111,FALSE)=\"\",\"No\",IF(LEFT(VLOOKUP($G37,$H$11:$DN$1000,111,FALSE),3)=\"The\",EI37,VLOOKUP(VLOOKUP($G37,$H$11:$DN$1000,111,FALSE),DeclMatrix!$A$2:$F$5,VLOOKUP('Enrollment Form'!$B37,DeclMatrix!$A$8:$B$12,2,FALSE),FALSE))))","v":""},"",null,"","","","","","","","","","","",""]
["",{"$nulls":5},"","",{"$nulls":18},"","","","",{"$nulls":30},"","","","",{"$nulls":60},"",{"$f":"IF($A38=\"\",\"\",IF(VLOOKUP($G38,$H$11:$DN$1000,96,FALSE)=\"\",\"No\",IF(LEFT(VLOOKUP($G38,$H$11:$DN$1000,96,FALSE),3)=\"The\",EF38,VLOOKUP(VLOOKUP($G38,$H$11:$DN$1000,96,FALSE),DeclMatrix!$A$2:$F$5,VLOOKUP('Enrollment Form'!$B38,DeclMatrix!$A$8:$B$12,2,FALSE),FALSE))))","v":""},{"$f":"IF($A38=\"\",\"\",IF(VLOOKUP($G38,$H$11:$DN$1000,101,FALSE)=\"\",\"No\",IF(LEFT(VLOOKUP($G38,$H$11:$DN$1000,101,FALSE),3)=\"The\",EG38,VLOOKUP(VLOOKUP($G38,$H$11:$DN$1000,101,FALSE),DeclMatrix!$A$2:$F$5,VLOOKUP('Enrollment Form'!$B38,DeclMatrix!$A$8:$B$12,2,FALSE),FALSE))))","v":""},{"$f":"IF($A38=\"\",\"\",IF(VLOOKUP($G38,$H$11:$DN$1000,106,FALSE)=\"\",\"No\",IF(LEFT(VLOOKUP($G38,$H$11:$DN$1000,106,FALSE),3)=\"The\",EH38,VLOOKUP(VLOOKUP($G38,$H$11:$DN$1000,106,FALSE),DeclMatrix!$A$2:$F$5,VLOOKUP('Enrollment Form'!$B38,DeclMatrix!$A$8:$B$12,2,FALSE),FALSE))))","v":""},{"$f":"IF($A38=\"\",\"\",IF(VLOOKUP($G38,$H$11:$DN$1000,111,FALSE)=\"\",\"No\",IF(LEFT(VLOOKUP($G38,$H$11:$DN$1000,111,FALSE),3)=\"The\",EI38,VLOOKUP(VLOOKUP($G38,$H$11:$DN$1000,111,FALSE),DeclMatrix!$A$2:$F$5,VLOOKUP('Enrollment Form'!$B38,DeclMatrix!$A$8:$B$12,2,FALSE),FALSE))))","v":""},"",null,"","","","","","","","","","","",""]
["",{"$nulls":5},"","",{"$nulls":18},"","","","",{"$nulls":30},"","","","",{"$nulls":60},"",{"$f":"IF($A39=\"\",\"\",IF(VLOOKUP($G39,$H$11:$DN$1000,96,FALSE)=\"\",\"No\",IF(LEFT(VLOOKUP($G39,$H$11:$DN$1000,96,FALSE),3)=\"The\",EF39,VLOOKUP(VLOOKUP($G39,$H$11:$DN$1000,96,FALSE),DeclMatrix!$A$2:$F$5,VLOOKUP('Enrollment Form'!$B39,DeclMatrix!$A$8:$B$12,2,FALSE),FALSE))))","v":""},{"$f":"IF($A39=\"\",\"\",IF(VLOOKUP($G39,$H$11:$DN$1000,101,FALSE)=\"\",\"No\",IF(LEFT(VLOOKUP($G39,$H$11:$DN$1000,101,FALSE),3)=\"The\",EG39,VLOOKUP(VLOOKUP($G39,$H$11:$DN$1000,101,FALSE),DeclMatrix!$A$2:$F$5,VLOOKUP('Enrollment Form'!$B39,DeclMatrix!$A$8:$B$12,2,FALSE),FALSE))))","v":""},{"$f":"IF($A39=\"\",\"\",IF(VLOOKUP($G39,$H$11:$DN$1000,106,FALSE)=\"\",\"No\",IF(LEFT(VLOOKUP($G39,$H$11:$DN$1000,106,FALSE),3)=\"The\",EH39,VLOOKUP(VLOOKUP($G39,$H$11:$DN$1000,106,FALSE),DeclMatrix!$A$2:$F$5,VLOOKUP('Enrollment Form'!$B39,DeclMatrix!$A$8:$B$12,2,FALSE),FALSE))))","v":""},{"$f":"IF($A39=\"\",\"\",IF(VLOOKUP($G39,$H$11:$DN$1000,111,FALSE)=\"\",\"No\",IF(LEFT(VLOOKUP($G39,$H$11:$DN$1000,111,FALSE),3)=\"The\",EI39,VLOOKUP(VLOOKUP($G39,$H$11:$DN$1000,111,FALSE),DeclMatrix!$A$2:$F$5,VLOOKUP('Enrollment Form'!$B39,DeclMatrix!$A$8:$B$12,2,FALSE),FALSE))))","v":""},"",null,"","","","","","","","","","","",""]
["",{"$nulls":5},"","",{"$nulls":18},"","","","",{"$nulls":30},"","","","",{"$nulls":60},"",{"$f":"IF($A40=\"\",\"\",IF(VLOOKUP($G40,$H$11:$DN$1000,96,FALSE)=\"\",\"No\",IF(LEFT(VLOOKUP($G40,$H$11:$DN$1000,96,FALSE),3)=\"The\",EF40,VLOOKUP(VLOOKUP($G40,$H$11:$DN$1000,96,FALSE),DeclMatrix!$A$2:$F$5,VLOOKUP('Enrollment Form'!$B40,DeclMatrix!$A$8:$B$12,2,FALSE),FALSE))))","v":""},{"$f":"IF($A40=\"\",\"\",IF(VLOOKUP($G40,$H$11:$DN$1000,101,FALSE)=\"\",\"No\",IF(LEFT(VLOOKUP($G40,$H$11:$DN$1000,101,FALSE),3)=\"The\",EG40,VLOOKUP(VLOOKUP($G40,$H$11:$DN$1000,101,FALSE),DeclMatrix!$A$2:$F$5,VLOOKUP('Enrollment Form'!$B40,DeclMatrix!$A$8:$B$12,2,FALSE),FALSE))))","v":""},{"$f":"IF($A40=\"\",\"\",IF(VLOOKUP($G40,$H$11:$DN$1000,106,FALSE)=\"\",\"No\",IF(LEFT(VLOOKUP($G40,$H$11:$DN$1000,106,FALSE),3)=\"The\",EH40,VLOOKUP(VLOOKUP($G40,$H$11:$DN$1000,106,FALSE),DeclMatrix!$A$2:$F$5,VLOOKUP('Enrollment Form'!$B40,DeclMatrix!$A$8:$B$12,2,FALSE),FALSE))))","v":""},{"$f":"IF($A40=\"\",\"\",IF(VLOOKUP($G40,$H$11:$DN$1000,111,FALSE)=\"\",\"No\",IF(LEFT(VLOOKUP($G40,$H$11:$DN$1000,111,FALSE),3)=\"The\",EI40,VLOOKUP(VLOOKUP($G40,$H$11:$DN$1000,111,FALSE),DeclMatrix!$A$2:$F$5,VLOOKUP('Enrollment Form'!$B40,DeclMatrix!$A$8:$B$12,2,FALSE),FALSE))))","v":""},"",null,"","","","","","","","","","","",""]
["",{"$nulls":5},"","",{"$nulls":18},"","","","",{"$nulls":30},"","","","",{"$nulls":60},"",{"$f":"IF($A41=\"\",\"\",IF(VLOOKUP($G41,$H$11:$DN$1000,96,FALSE)=\"\",\"No\",IF(LEFT(VLOOKUP($G41,$H$11:$DN$1000,96,FALSE),3)=\"The\",EF41,VLOOKUP(VLOOKUP($G41,$H$11:$DN$1000,96,FALSE),DeclMatrix!$A$2:$F$5,VLOOKUP('Enrollment Form'!$B41,DeclMatrix!$A$8:$B$12,2,FALSE),FALSE))))","v":""},{"$f":"IF($A41=\"\",\"\",IF(VLOOKUP($G41,$H$11:$DN$1000,101,FALSE)=\"\",\"No\",IF(LEFT(VLOOKUP($G41,$H$11:$DN$1000,101,FALSE),3)=\"The\",EG41,VLOOKUP(VLOOKUP($G41,$H$11:$DN$1000,101,FALSE),DeclMatrix!$A$2:$F$5,VLOOKUP('Enrollment Form'!$B41,DeclMatrix!$A$8:$B$12,2,FALSE),FALSE))))","v":""},{"$f":"IF($A41=\"\",\"\",IF(VLOOKUP($G41,$H$11:$DN$1000,106,FALSE)=\"\",\"No\",IF(LEFT(VLOOKUP($G41,$H$11:$DN$1000,106,FALSE),3)=\"The\",EH41,VLOOKUP(VLOOKUP($G41,$H$11:$DN$1000,106,FALSE),DeclMatrix!$A$2:$F$5,VLOOKUP('Enrollment Form'!$B41,DeclMatrix!$A$8:$B$12,2,FALSE),FALSE))))","v":""},{"$f":"IF($A41=\"\",\"\",IF(VLOOKUP($G41,$H$11:$DN$1000,111,FALSE)=\"\",\"No\",IF(LEFT(VLOOKUP($G41,$H$11:$DN$1000,111,FALSE),3)=\"The\",EI41,VLOOKUP(VLOOKUP($G41,$H$11:$DN$1000,111,FALSE),DeclMatrix!$A$2:$F$5,VLOOKUP('Enrollment Form'!$B41,DeclMatrix!$A$8:$B$12,2,FALSE),FALSE))))","v":""},"",null,"","","","","","","","","","","",""]
["",{"$nulls":5},"","",{"$nulls":18},"","","","",{"$nulls":30},"","","","",{"$nulls":60},"",{"$f":"IF($A42=\"\",\"\",IF(VLOOKUP($G42,$H$11:$DN$1000,96,FALSE)=\"\",\"No\",IF(LEFT(VLOOKUP($G42,$H$11:$DN$1000,96,FALSE),3)=\"The\",EF42,VLOOKUP(VLOOKUP($G42,$H$11:$DN$1000,96,FALSE),DeclMatrix!$A$2:$F$5,VLOOKUP('Enrollment Form'!$B42,DeclMatrix!$A$8:$B$12,2,FALSE),FALSE))))","v":""},{"$f":"IF($A42=\"\",\"\",IF(VLOOKUP($G42,$H$11:$DN$1000,101,FALSE)=\"\",\"No\",IF(LEFT(VLOOKUP($G42,$H$11:$DN$1000,101,FALSE),3)=\"The\",EG42,VLOOKUP(VLOOKUP($G42,$H$11:$DN$1000,101,FALSE),DeclMatrix!$A$2:$F$5,VLOOKUP('Enrollment Form'!$B42,DeclMatrix!$A$8:$B$12,2,FALSE),FALSE))))","v":""},{"$f":"IF($A42=\"\",\"\",IF(VLOOKUP($G42,$H$11:$DN$1000,106,FALSE)=\"\",\"No\",IF(LEFT(VLOOKUP($G42,$H$11:$DN$1000,106,FALSE),3)=\"The\",EH42,VLOOKUP(VLOOKUP($G42,$H$11:$DN$1000,106,FALSE),DeclMatrix!$A$2:$F$5,VLOOKUP('Enrollment Form'!$B42,DeclMatrix!$A$8:$B$12,2,FALSE),FALSE))))","v":""},{"$f":"IF($A42=\"\",\"\",IF(VLOOKUP($G42,$H$11:$DN$1000,111,FALSE)=\"\",\"No\",IF(LEFT(VLOOKUP($G42,$H$11:$DN$1000,111,FALSE),3)=\"The\",EI42,VLOOKUP(VLOOKUP($G42,$H$11:$DN$1000,111,FALSE),DeclMatrix!$A$2:$F$5,VLOOKUP('Enrollment Form'!$B42,DeclMatrix!$A$8:$B$12,2,FALSE),FALSE))))","v":""},"",null,"","","","","","","","","","","",""]
["",{"$nulls":5},"","",{"$nulls":18},"","","","",{"$nulls":30},"","","","",{"$nulls":60},"",{"$f":"IF($A43=\"\",\"\",IF(VLOOKUP($G43,$H$11:$DN$1000,96,FALSE)=\"\",\"No\",IF(LEFT(VLOOKUP($G43,$H$11:$DN$1000,96,FALSE),3)=\"The\",EF43,VLOOKUP(VLOOKUP($G43,$H$11:$DN$1000,96,FALSE),DeclMatrix!$A$2:$F$5,VLOOKUP('Enrollment Form'!$B43,DeclMatrix!$A$8:$B$12,2,FALSE),FALSE))))","v":""},{"$f":"IF($A43=\"\",\"\",IF(VLOOKUP($G43,$H$11:$DN$1000,101,FALSE)=\"\",\"No\",IF(LEFT(VLOOKUP($G43,$H$11:$DN$1000,101,FALSE),3)=\"The\",EG43,VLOOKUP(VLOOKUP($G43,$H$11:$DN$1000,101,FALSE),DeclMatrix!$A$2:$F$5,VLOOKUP('Enrollment Form'!$B43,DeclMatrix!$A$8:$B$12,2,FALSE),FALSE))))","v":""},{"$f":"IF($A43=\"\",\"\",IF(VLOOKUP($G43,$H$11:$DN$1000,106,FALSE)=\"\",\"No\",IF(LEFT(VLOOKUP($G43,$H$11:$DN$1000,106,FALSE),3)=\"The\",EH43,VLOOKUP(VLOOKUP($G43,$H$11:$DN$1000,106,FALSE),DeclMatrix!$A$2:$F$5,VLOOKUP('Enrollment Form'!$B43,DeclMatrix!$A$8:$B$12,2,FALSE),FALSE))))","v":""},{"$f":"IF($A43=\"\",\"\",IF(VLOOKUP($G43,$H$11:$DN$1000,111,FALSE)=\"\",\"No\",IF(LEFT(VLOOKUP($G43,$H$11:$DN$1000,111,FALSE),3)=\"The\",EI43,VLOOKUP(VLOOKUP($G43,$H$11:$DN$1000,111,FALSE),DeclMatrix!$A$2:$F$5,VLOOKUP('Enrollment Form'!$B43,DeclMatrix!$A$8:$B$12,2,FALSE),FALSE))))","v":""},"",null,"","","","","","","","","","","",""]
["",{"$nulls":5},"","",{"$nulls":18},"","","","",{"$nulls":30},"","","","",{"$nulls":60},"",{"$f":"IF($A44=\"\",\"\",IF(VLOOKUP($G44,$H$11:$DN$1000,96,FALSE)=\"\",\"No\",IF(LEFT(VLOOKUP($G44,$H$11:$DN$1000,96,FALSE),3)=\"The\",EF44,VLOOKUP(VLOOKUP($G44,$H$11:$DN$1000,96,FALSE),DeclMatrix!$A$2:$F$5,VLOOKUP('Enrollment Form'!$B44,DeclMatrix!$A$8:$B$12,2,FALSE),FALSE))))","v":""},{"$f":"IF($A44=\"\",\"\",IF(VLOOKUP($G44,$H$11:$DN$1000,101,FALSE)=\"\",\"No\",IF(LEFT(VLOOKUP($G44,$H$11:$DN$1000,101,FALSE),3)=\"The\",EG44,VLOOKUP(VLOOKUP($G44,$H$11:$DN$1000,101,FALSE),DeclMatrix!$A$2:$F$5,VLOOKUP('Enrollment Form'!$B44,DeclMatrix!$A$8:$B$12,2,FALSE),FALSE))))","v":""},{"$f":"IF($A44=\"\",\"\",IF(VLOOKUP($G44,$H$11:$DN$1000,106,FALSE)=\"\",\"No\",IF(LEFT(VLOOKUP($G44,$H$11:$DN$1000,106,FALSE),3)=\"The\",EH44,VLOOKUP(VLOOKUP($G44,$H$11:$DN$1000,106,FALSE),DeclMatrix!$A$2:$F$5,VLOOKUP('Enrollment Form'!$B44,DeclMatrix!$A$8:$B$12,2,FALSE),FALSE))))","v":""},{"$f":"IF($A44=\"\",\"\",IF(VLOOKUP($G44,$H$11:$DN$1000,111,FALSE)=\"\",\"No\",IF(LEFT(VLOOKUP($G44,$H$11:$DN$1000,111,FALSE),3)=\"The\",EI44,VLOOKUP(VLOOKUP($G44,$H$11:$DN$1000,111,FALSE),DeclMatrix!$A$2:$F$5,VLOOKUP('Enrollment Form'!$B44,DeclMatrix!$A$8:$B$12,2,FALSE),FALSE))))","v":""},"",null,"","","","","","","","","","","",""]
["",{"$nulls":5},"","",{"$nulls":18},"","","","",{"$nulls":30},"","","","",{"$nulls":60},"",{"$f":"IF($A45=\"\",\"\",IF(VLOOKUP($G45,$H$11:$DN$1000,96,FALSE)=\"\",\"No\",IF(LEFT(VLOOKUP($G45,$H$11:$DN$1000,96,FALSE),3)=\"The\",EF45,VLOOKUP(VLOOKUP($G45,$H$11:$DN$1000,96,FALSE),DeclMatrix!$A$2:$F$5,VLOOKUP('Enrollment Form'!$B45,DeclMatrix!$A$8:$B$12,2,FALSE),FALSE))))","v":""},{"$f":"IF($A45=\"\",\"\",IF(VLOOKUP($G45,$H$11:$DN$1000,101,FALSE)=\"\",\"No\",IF(LEFT(VLOOKUP($G45,$H$11:$DN$1000,101,FALSE),3)=\"The\",EG45,VLOOKUP(VLOOKUP($G45,$H$11:$DN$1000,101,FALSE),DeclMatrix!$A$2:$F$5,VLOOKUP('Enrollment Form'!$B45,DeclMatrix!$A$8:$B$12,2,FALSE),FALSE))))","v":""},{"$f":"IF($A45=\"\",\"\",IF(VLOOKUP($G45,$H$11:$DN$1000,106,FALSE)=\"\",\"No\",IF(LEFT(VLOOKUP($G45,$H$11:$DN$1000,106,FALSE),3)=\"The\",EH45,VLOOKUP(VLOOKUP($G45,$H$11:$DN$1000,106,FALSE),DeclMatrix!$A$2:$F$5,VLOOKUP('Enrollment Form'!$B45,DeclMatrix!$A$8:$B$12,2,FALSE),FALSE))))","v":""},{"$f":"IF($A45=\"\",\"\",IF(VLOOKUP($G45,$H$11:$DN$1000,111,FALSE)=\"\",\"No\",IF(LEFT(VLOOKUP($G45,$H$11:$DN$1000,111,FALSE),3)=\"The\",EI45,VLOOKUP(VLOOKUP($G45,$H$11:$DN$1000,111,FALSE),DeclMatrix!$A$2:$F$5,VLOOKUP('Enrollment Form'!$B45,DeclMatrix!$A$8:$B$12,2,FALSE),FALSE))))","v":""},"",null,"","","","","","","","","","","",""]
["",{"$nulls":5},"","",{"$nulls":18},"","","","",{"$nulls":30},"","","","",{"$nulls":60},"",{"$f":"IF($A46=\"\",\"\",IF(VLOOKUP($G46,$H$11:$DN$1000,96,FALSE)=\"\",\"No\",IF(LEFT(VLOOKUP($G46,$H$11:$DN$1000,96,FALSE),3)=\"The\",EF46,VLOOKUP(VLOOKUP($G46,$H$11:$DN$1000,96,FALSE),DeclMatrix!$A$2:$F$5,VLOOKUP('Enrollment Form'!$B46,DeclMatrix!$A$8:$B$12,2,FALSE),FALSE))))","v":""},{"$f":"IF($A46=\"\",\"\",IF(VLOOKUP($G46,$H$11:$DN$1000,101,FALSE)=\"\",\"No\",IF(LEFT(VLOOKUP($G46,$H$11:$DN$1000,101,FALSE),3)=\"The\",EG46,VLOOKUP(VLOOKUP($G46,$H$11:$DN$1000,101,FALSE),DeclMatrix!$A$2:$F$5,VLOOKUP('Enrollment Form'!$B46,DeclMatrix!$A$8:$B$12,2,FALSE),FALSE))))","v":""},{"$f":"IF($A46=\"\",\"\",IF(VLOOKUP($G46,$H$11:$DN$1000,106,FALSE)=\"\",\"No\",IF(LEFT(VLOOKUP($G46,$H$11:$DN$1000,106,FALSE),3)=\"The\",EH46,VLOOKUP(VLOOKUP($G46,$H$11:$DN$1000,106,FALSE),DeclMatrix!$A$2:$F$5,VLOOKUP('Enrollment Form'!$B46,DeclMatrix!$A$8:$B$12,2,FALSE),FALSE))))","v":""},{"$f":"IF($A46=\"\",\"\",IF(VLOOKUP($G46,$H$11:$DN$1000,111,FALSE)=\"\",\"No\",IF(LEFT(VLOOKUP($G46,$H$11:$DN$1000,111,FALSE),3)=\"The\",EI46,VLOOKUP(VLOOKUP($G46,$H$11:$DN$1000,111,FALSE),DeclMatrix!$A$2:$F$5,VLOOKUP('Enrollment Form'!$B46,DeclMatrix!$A$8:$B$12,2,FALSE),FALSE))))","v":""},"",null,"","","","","","","","","","","",""]
["",{"$nulls":5},"","",{"$nulls":18},"","","","",{"$nulls":30},"","","","",{"$nulls":60},"",{"$f":"IF($A47=\"\",\"\",IF(VLOOKUP($G47,$H$11:$DN$1000,96,FALSE)=\"\",\"No\",IF(LEFT(VLOOKUP($G47,$H$11:$DN$1000,96,FALSE),3)=\"The\",EF47,VLOOKUP(VLOOKUP($G47,$H$11:$DN$1000,96,FALSE),DeclMatrix!$A$2:$F$5,VLOOKUP('Enrollment Form'!$B47,DeclMatrix!$A$8:$B$12,2,FALSE),FALSE))))","v":""},{"$f":"IF($A47=\"\",\"\",IF(VLOOKUP($G47,$H$11:$DN$1000,101,FALSE)=\"\",\"No\",IF(LEFT(VLOOKUP($G47,$H$11:$DN$1000,101,FALSE),3)=\"The\",EG47,VLOOKUP(VLOOKUP($G47,$H$11:$DN$1000,101,FALSE),DeclMatrix!$A$2:$F$5,VLOOKUP('Enrollment Form'!$B47,DeclMatrix!$A$8:$B$12,2,FALSE),FALSE))))","v":""},{"$f":"IF($A47=\"\",\"\",IF(VLOOKUP($G47,$H$11:$DN$1000,106,FALSE)=\"\",\"No\",IF(LEFT(VLOOKUP($G47,$H$11:$DN$1000,106,FALSE),3)=\"The\",EH47,VLOOKUP(VLOOKUP($G47,$H$11:$DN$1000,106,FALSE),DeclMatrix!$A$2:$F$5,VLOOKUP('Enrollment Form'!$B47,DeclMatrix!$A$8:$B$12,2,FALSE),FALSE))))","v":""},{"$f":"IF($A47=\"\",\"\",IF(VLOOKUP($G47,$H$11:$DN$1000,111,FALSE)=\"\",\"No\",IF(LEFT(VLOOKUP($G47,$H$11:$DN$1000,111,FALSE),3)=\"The\",EI47,VLOOKUP(VLOOKUP($G47,$H$11:$DN$1000,111,FALSE),DeclMatrix!$A$2:$F$5,VLOOKUP('Enrollment Form'!$B47,DeclMatrix!$A$8:$B$12,2,FALSE),FALSE))))","v":""},"",null,"","","","","","","","","","","",""]
["",{"$nulls":5},"","",{"$nulls":18},"","","","",{"$nulls":30},"","","","",{"$nulls":60},"",{"$f":"IF($A48=\"\",\"\",IF(VLOOKUP($G48,$H$11:$DN$1000,96,FALSE)=\"\",\"No\",IF(LEFT(VLOOKUP($G48,$H$11:$DN$1000,96,FALSE),3)=\"The\",EF48,VLOOKUP(VLOOKUP($G48,$H$11:$DN$1000,96,FALSE),DeclMatrix!$A$2:$F$5,VLOOKUP('Enrollment Form'!$B48,DeclMatrix!$A$8:$B$12,2,FALSE),FALSE))))","v":""},{"$f":"IF($A48=\"\",\"\",IF(VLOOKUP($G48,$H$11:$DN$1000,101,FALSE)=\"\",\"No\",IF(LEFT(VLOOKUP($G48,$H$11:$DN$1000,101,FALSE),3)=\"The\",EG48,VLOOKUP(VLOOKUP($G48,$H$11:$DN$1000,101,FALSE),DeclMatrix!$A$2:$F$5,VLOOKUP('Enrollment Form'!$B48,DeclMatrix!$A$8:$B$12,2,FALSE),FALSE))))","v":""},{"$f":"IF($A48=\"\",\"\",IF(VLOOKUP($G48,$H$11:$DN$1000,106,FALSE)=\"\",\"No\",IF(LEFT(VLOOKUP($G48,$H$11:$DN$1000,106,FALSE),3)=\"The\",EH48,VLOOKUP(VLOOKUP($G48,$H$11:$DN$1000,106,FALSE),DeclMatrix!$A$2:$F$5,VLOOKUP('Enrollment Form'!$B48,DeclMatrix!$A$8:$B$12,2,FALSE),FALSE))))","v":""},{"$f":"IF($A48=\"\",\"\",IF(VLOOKUP($G48,$H$11:$DN$1000,111,FALSE)=\"\",\"No\",IF(LEFT(VLOOKUP($G48,$H$11:$DN$1000,111,FALSE),3)=\"The\",EI48,VLOOKUP(VLOOKUP($G48,$H$11:$DN$1000,111,FALSE),DeclMatrix!$A$2:$F$5,VLOOKUP('Enrollment Form'!$B48,DeclMatrix!$A$8:$B$12,2,FALSE),FALSE))))","v":""},"",null,"","","","","","","","","","","",""]
["",{"$nulls":5},"","",{"$nulls":18},"","","","",{"$nulls":30},"","","","",{"$nulls":60},"",{"$f":"IF($A49=\"\",\"\",IF(VLOOKUP($G49,$H$11:$DN$1000,96,FALSE)=\"\",\"No\",IF(LEFT(VLOOKUP($G49,$H$11:$DN$1000,96,FALSE),3)=\"The\",EF49,VLOOKUP(VLOOKUP($G49,$H$11:$DN$1000,96,FALSE),DeclMatrix!$A$2:$F$5,VLOOKUP('Enrollment Form'!$B49,DeclMatrix!$A$8:$B$12,2,FALSE),FALSE))))","v":""},{"$f":"IF($A49=\"\",\"\",IF(VLOOKUP($G49,$H$11:$DN$1000,101,FALSE)=\"\",\"No\",IF(LEFT(VLOOKUP($G49,$H$11:$DN$1000,101,FALSE),3)=\"The\",EG49,VLOOKUP(VLOOKUP($G49,$H$11:$DN$1000,101,FALSE),DeclMatrix!$A$2:$F$5,VLOOKUP('Enrollment Form'!$B49,DeclMatrix!$A$8:$B$12,2,FALSE),FALSE))))","v":""},{"$f":"IF($A49=\"\",\"\",IF(VLOOKUP($G49,$H$11:$DN$1000,106,FALSE)=\"\",\"No\",IF(LEFT(VLOOKUP($G49,$H$11:$DN$1000,106,FALSE),3)=\"The\",EH49,VLOOKUP(VLOOKUP($G49,$H$11:$DN$1000,106,FALSE),DeclMatrix!$A$2:$F$5,VLOOKUP('Enrollment Form'!$B49,DeclMatrix!$A$8:$B$12,2,FALSE),FALSE))))","v":""},{"$f":"IF($A49=\"\",\"\",IF(VLOOKUP($G49,$H$11:$DN$1000,111,FALSE)=\"\",\"No\",IF(LEFT(VLOOKUP($G49,$H$11:$DN$1000,111,FALSE),3)=\"The\",EI49,VLOOKUP(VLOOKUP($G49,$H$11:$DN$1000,111,FALSE),DeclMatrix!$A$2:$F$5,VLOOKUP('Enrollment Form'!$B49,DeclMatrix!$A$8:$B$12,2,FALSE),FALSE))))","v":""},"",null,"","","","","","","","","","","",""]
["",{"$nulls":5},"","",{"$nulls":18},"","","","",{"$nulls":30},"","","","",{"$nulls":60},"",{"$f":"IF($A50=\"\",\"\",IF(VLOOKUP($G50,$H$11:$DN$1000,96,FALSE)=\"\",\"No\",IF(LEFT(VLOOKUP($G50,$H$11:$DN$1000,96,FALSE),3)=\"The\",EF50,VLOOKUP(VLOOKUP($G50,$H$11:$DN$1000,96,FALSE),DeclMatrix!$A$2:$F$5,VLOOKUP('Enrollment Form'!$B50,DeclMatrix!$A$8:$B$12,2,FALSE),FALSE))))","v":""},{"$f":"IF($A50=\"\",\"\",IF(VLOOKUP($G50,$H$11:$DN$1000,101,FALSE)=\"\",\"No\",IF(LEFT(VLOOKUP($G50,$H$11:$DN$1000,101,FALSE),3)=\"The\",EG50,VLOOKUP(VLOOKUP($G50,$H$11:$DN$1000,101,FALSE),DeclMatrix!$A$2:$F$5,VLOOKUP('Enrollment Form'!$B50,DeclMatrix!$A$8:$B$12,2,FALSE),FALSE))))","v":""},{"$f":"IF($A50=\"\",\"\",IF(VLOOKUP($G50,$H$11:$DN$1000,106,FALSE)=\"\",\"No\",IF(LEFT(VLOOKUP($G50,$H$11:$DN$1000,106,FALSE),3)=\"The\",EH50,VLOOKUP(VLOOKUP($G50,$H$11:$DN$1000,106,FALSE),DeclMatrix!$A$2:$F$5,VLOOKUP('Enrollment Form'!$B50,DeclMatrix!$A$8:$B$12,2,FALSE),FALSE))))","v":""},{"$f":"IF($A50=\"\",\"\",IF(VLOOKUP($G50,$H$11:$DN$1000,111,FALSE)=\"\",\"No\",IF(LEFT(VLOOKUP($G50,$H$11:$DN$1000,111,FALSE),3)=\"The\",EI50,VLOOKUP(VLOOKUP($G50,$H$11:$DN$1000,111,FALSE),DeclMatrix!$A$2:$F$5,VLOOKUP('Enrollment Form'!$B50,DeclMatrix!$A$8:$B$12,2,FALSE),FALSE))))","v":""},"",null,"","","","","","","","","","","",""]
["",{"$nulls":5},"","",{"$nulls":18},"","","","",{"$nulls":30},"","","","",{"$nulls":60},"",{"$f":"IF($A51=\"\",\"\",IF(VLOOKUP($G51,$H$11:$DN$1000,96,FALSE)=\"\",\"No\",IF(LEFT(VLOOKUP($G51,$H$11:$DN$1000,96,FALSE),3)=\"The\",EF51,VLOOKUP(VLOOKUP($G51,$H$11:$DN$1000,96,FALSE),DeclMatrix!$A$2:$F$5,VLOOKUP('Enrollment Form'!$B51,DeclMatrix!$A$8:$B$12,2,FALSE),FALSE))))","v":""},{"$f":"IF($A51=\"\",\"\",IF(VLOOKUP($G51,$H$11:$DN$1000,101,FALSE)=\"\",\"No\",IF(LEFT(VLOOKUP($G51,$H$11:$DN$1000,101,FALSE),3)=\"The\",EG51,VLOOKUP(VLOOKUP($G51,$H$11:$DN$1000,101,FALSE),DeclMatrix!$A$2:$F$5,VLOOKUP('Enrollment Form'!$B51,DeclMatrix!$A$8:$B$12,2,FALSE),FALSE))))","v":""},{"$f":"IF($A51=\"\",\"\",IF(VLOOKUP($G51,$H$11:$DN$1000,106,FALSE)=\"\",\"No\",IF(LEFT(VLOOKUP($G51,$H$11:$DN$1000,106,FALSE),3)=\"The\",EH51,VLOOKUP(VLOOKUP($G51,$H$11:$DN$1000,106,FALSE),DeclMatrix!$A$2:$F$5,VLOOKUP('Enrollment Form'!$B51,DeclMatrix!$A$8:$B$12,2,FALSE),FALSE))))","v":""},{"$f":"IF($A51=\"\",\"\",IF(VLOOKUP($G51,$H$11:$DN$1000,111,FALSE)=\"\",\"No\",IF(LEFT(VLOOKUP($G51,$H$11:$DN$1000,111,FALSE),3)=\"The\",EI51,VLOOKUP(VLOOKUP($G51,$H$11:$DN$1000,111,FALSE),DeclMatrix!$A$2:$F$5,VLOOKUP('Enrollment Form'!$B51,DeclMatrix!$A$8:$B$12,2,FALSE),FALSE))))","v":""},"",null,"","","","","","","","","","","",""]
["",{"$nulls":5},"","",{"$nulls":18},"","","","",{"$nulls":30},"","","","",{"$nulls":60},"",{"$f":"IF($A52=\"\",\"\",IF(VLOOKUP($G52,$H$11:$DN$1000,96,FALSE)=\"\",\"No\",IF(LEFT(VLOOKUP($G52,$H$11:$DN$1000,96,FALSE),3)=\"The\",EF52,VLOOKUP(VLOOKUP($G52,$H$11:$DN$1000,96,FALSE),DeclMatrix!$A$2:$F$5,VLOOKUP('Enrollment Form'!$B52,DeclMatrix!$A$8:$B$12,2,FALSE),FALSE))))","v":""},{"$f":"IF($A52=\"\",\"\",IF(VLOOKUP($G52,$H$11:$DN$1000,101,FALSE)=\"\",\"No\",IF(LEFT(VLOOKUP($G52,$H$11:$DN$1000,101,FALSE),3)=\"The\",EG52,VLOOKUP(VLOOKUP($G52,$H$11:$DN$1000,101,FALSE),DeclMatrix!$A$2:$F$5,VLOOKUP('Enrollment Form'!$B52,DeclMatrix!$A$8:$B$12,2,FALSE),FALSE))))","v":""},{"$f":"IF($A52=\"\",\"\",IF(VLOOKUP($G52,$H$11:$DN$1000,106,FALSE)=\"\",\"No\",IF(LEFT(VLOOKUP($G52,$H$11:$DN$1000,106,FALSE),3)=\"The\",EH52,VLOOKUP(VLOOKUP($G52,$H$11:$DN$1000,106,FALSE),DeclMatrix!$A$2:$F$5,VLOOKUP('Enrollment Form'!$B52,DeclMatrix!$A$8:$B$12,2,FALSE),FALSE))))","v":""},{"$f":"IF($A52=\"\",\"\",IF(VLOOKUP($G52,$H$11:$DN$1000,111,FALSE)=\"\",\"No\",IF(LEFT(VLOOKUP($G52,$H$11:$DN$1000,111,FALSE),3)=\"The\",EI52,VLOOKUP(VLOOKUP($G52,$H$11:$DN$1000,111,FALSE),DeclMatrix!$A$2:$F$5,VLOOKUP('Enrollment Form'!$B52,DeclMatrix!$A$8:$B$12,2,FALSE),FALSE))))","v":""},"",null,"","","","","","","","","","","",""]
["",{"$nulls":5},"","",{"$nulls":18},"","","","",{"$nulls":30},"","","","",{"$nulls":60},"",{"$f":"IF($A53=\"\",\"\",IF(VLOOKUP($G53,$H$11:$DN$1000,96,FALSE)=\"\",\"No\",IF(LEFT(VLOOKUP($G53,$H$11:$DN$1000,96,FALSE),3)=\"The\",EF53,VLOOKUP(VLOOKUP($G53,$H$11:$DN$1000,96,FALSE),DeclMatrix!$A$2:$F$5,VLOOKUP('Enrollment Form'!$B53,DeclMatrix!$A$8:$B$12,2,FALSE),FALSE))))","v":""},{"$f":"IF($A53=\"\",\"\",IF(VLOOKUP($G53,$H$11:$DN$1000,101,FALSE)=\"\",\"No\",IF(LEFT(VLOOKUP($G53,$H$11:$DN$1000,101,FALSE),3)=\"The\",EG53,VLOOKUP(VLOOKUP($G53,$H$11:$DN$1000,101,FALSE),DeclMatrix!$A$2:$F$5,VLOOKUP('Enrollment Form'!$B53,DeclMatrix!$A$8:$B$12,2,FALSE),FALSE))))","v":""},{"$f":"IF($A53=\"\",\"\",IF(VLOOKUP($G53,$H$11:$DN$1000,106,FALSE)=\"\",\"No\",IF(LEFT(VLOOKUP($G53,$H$11:$DN$1000,106,FALSE),3)=\"The\",EH53,VLOOKUP(VLOOKUP($G53,$H$11:$DN$1000,106,FALSE),DeclMatrix!$A$2:$F$5,VLOOKUP('Enrollment Form'!$B53,DeclMatrix!$A$8:$B$12,2,FALSE),FALSE))))","v":""},{"$f":"IF($A53=\"\",\"\",IF(VLOOKUP($G53,$H$11:$DN$1000,111,FALSE)=\"\",\"No\",IF(LEFT(VLOOKUP($G53,$H$11:$DN$1000,111,FALSE),3)=\"The\",EI53,VLOOKUP(VLOOKUP($G53,$H$11:$DN$1000,111,FALSE),DeclMatrix!$A$2:$F$5,VLOOKUP('Enrollment Form'!$B53,DeclMatrix!$A$8:$B$12,2,FALSE),FALSE))))","v":""},"",null,"","","","","","","","","","","",""]
["",{"$nulls":5},"","",{"$nulls":18},"","","","",{"$nulls":30},"","","","",{"$nulls":60},"",{"$f":"IF($A54=\"\",\"\",IF(VLOOKUP($G54,$H$11:$DN$1000,96,FALSE)=\"\",\"No\",IF(LEFT(VLOOKUP($G54,$H$11:$DN$1000,96,FALSE),3)=\"The\",EF54,VLOOKUP(VLOOKUP($G54,$H$11:$DN$1000,96,FALSE),DeclMatrix!$A$2:$F$5,VLOOKUP('Enrollment Form'!$B54,DeclMatrix!$A$8:$B$12,2,FALSE),FALSE))))","v":""},{"$f":"IF($A54=\"\",\"\",IF(VLOOKUP($G54,$H$11:$DN$1000,101,FALSE)=\"\",\"No\",IF(LEFT(VLOOKUP($G54,$H$11:$DN$1000,101,FALSE),3)=\"The\",EG54,VLOOKUP(VLOOKUP($G54,$H$11:$DN$1000,101,FALSE),DeclMatrix!$A$2:$F$5,VLOOKUP('Enrollment Form'!$B54,DeclMatrix!$A$8:$B$12,2,FALSE),FALSE))))","v":""},{"$f":"IF($A54=\"\",\"\",IF(VLOOKUP($G54,$H$11:$DN$1000,106,FALSE)=\"\",\"No\",IF(LEFT(VLOOKUP($G54,$H$11:$DN$1000,106,FALSE),3)=\"The\",EH54,VLOOKUP(VLOOKUP($G54,$H$11:$DN$1000,106,FALSE),DeclMatrix!$A$2:$F$5,VLOOKUP('Enrollment Form'!$B54,DeclMatrix!$A$8:$B$12,2,FALSE),FALSE))))","v":""},{"$f":"IF($A54=\"\",\"\",IF(VLOOKUP($G54,$H$11:$DN$1000,111,FALSE)=\"\",\"No\",IF(LEFT(VLOOKUP($G54,$H$11:$DN$1000,111,FALSE),3)=\"The\",EI54,VLOOKUP(VLOOKUP($G54,$H$11:$DN$1000,111,FALSE),DeclMatrix!$A$2:$F$5,VLOOKUP('Enrollment Form'!$B54,DeclMatrix!$A$8:$B$12,2,FALSE),FALSE))))","v":""},"",null,"","","","","","","","","","","",""]
["",{"$nulls":5},"","",{"$nulls":18},"","","","",{"$nulls":30},"","","","",{"$nulls":60},"",{"$f":"IF($A55=\"\",\"\",IF(VLOOKUP($G55,$H$11:$DN$1000,96,FALSE)=\"\",\"No\",IF(LEFT(VLOOKUP($G55,$H$11:$DN$1000,96,FALSE),3)=\"The\",EF55,VLOOKUP(VLOOKUP($G55,$H$11:$DN$1000,96,FALSE),DeclMatrix!$A$2:$F$5,VLOOKUP('Enrollment Form'!$B55,DeclMatrix!$A$8:$B$12,2,FALSE),FALSE))))","v":""},{"$f":"IF($A55=\"\",\"\",IF(VLOOKUP($G55,$H$11:$DN$1000,101,FALSE)=\"\",\"No\",IF(LEFT(VLOOKUP($G55,$H$11:$DN$1000,101,FALSE),3)=\"The\",EG55,VLOOKUP(VLOOKUP($G55,$H$11:$DN$1000,101,FALSE),DeclMatrix!$A$2:$F$5,VLOOKUP('Enrollment Form'!$B55,DeclMatrix!$A$8:$B$12,2,FALSE),FALSE))))","v":""},{"$f":"IF($A55=\"\",\"\",IF(VLOOKUP($G55,$H$11:$DN$1000,106,FALSE)=\"\",\"No\",IF(LEFT(VLOOKUP($G55,$H$11:$DN$1000,106,FALSE),3)=\"The\",EH55,VLOOKUP(VLOOKUP($G55,$H$11:$DN$1000,106,FALSE),DeclMatrix!$A$2:$F$5,VLOOKUP('Enrollment Form'!$B55,DeclMatrix!$A$8:$B$12,2,FALSE),FALSE))))","v":""},{"$f":"IF($A55=\"\",\"\",IF(VLOOKUP($G55,$H$11:$DN$1000,111,FALSE)=\"\",\"No\",IF(LEFT(VLOOKUP($G55,$H$11:$DN$1000,111,FALSE),3)=\"The\",EI55,VLOOKUP(VLOOKUP($G55,$H$11:$DN$1000,111,FALSE),DeclMatrix!$A$2:$F$5,VLOOKUP('Enrollment Form'!$B55,DeclMatrix!$A$8:$B$12,2,FALSE),FALSE))))","v":""},"",null,"","","","","","","","","","","",""]
["",{"$nulls":5},"","",{"$nulls":18},"","","","",{"$nulls":30},"","","","",{"$nulls":60},"",{"$f":"IF($A56=\"\",\"\",IF(VLOOKUP($G56,$H$11:$DN$1000,96,FALSE)=\"\",\"No\",IF(LEFT(VLOOKUP($G56,$H$11:$DN$1000,96,FALSE),3)=\"The\",EF56,VLOOKUP(VLOOKUP($G56,$H$11:$DN$1000,96,FALSE),DeclMatrix!$A$2:$F$5,VLOOKUP('Enrollment Form'!$B56,DeclMatrix!$A$8:$B$12,2,FALSE),FALSE))))","v":""},{"$f":"IF($A56=\"\",\"\",IF(VLOOKUP($G56,$H$11:$DN$1000,101,FALSE)=\"\",\"No\",IF(LEFT(VLOOKUP($G56,$H$11:$DN$1000,101,FALSE),3)=\"The\",EG56,VLOOKUP(VLOOKUP($G56,$H$11:$DN$1000,101,FALSE),DeclMatrix!$A$2:$F$5,VLOOKUP('Enrollment Form'!$B56,DeclMatrix!$A$8:$B$12,2,FALSE),FALSE))))","v":""},{"$f":"IF($A56=\"\",\"\",IF(VLOOKUP($G56,$H$11:$DN$1000,106,FALSE)=\"\",\"No\",IF(LEFT(VLOOKUP($G56,$H$11:$DN$1000,106,FALSE),3)=\"The\",EH56,VLOOKUP(VLOOKUP($G56,$H$11:$DN$1000,106,FALSE),DeclMatrix!$A$2:$F$5,VLOOKUP('Enrollment Form'!$B56,DeclMatrix!$A$8:$B$12,2,FALSE),FALSE))))","v":""},{"$f":"IF($A56=\"\",\"\",IF(VLOOKUP($G56,$H$11:$DN$1000,111,FALSE)=\"\",\"No\",IF(LEFT(VLOOKUP($G56,$H$11:$DN$1000,111,FALSE),3)=\"The\",EI56,VLOOKUP(VLOOKUP($G56,$H$11:$DN$1000,111,FALSE),DeclMatrix!$A$2:$F$5,VLOOKUP('Enrollment Form'!$B56,DeclMatrix!$A$8:$B$12,2,FALSE),FALSE))))","v":""},"",null,"","","","","","","","","","","",""]
["",{"$nulls":5},"","",{"$nulls":18},"","","","",{"$nulls":30},"","","","",{"$nulls":60},"",{"$f":"IF($A57=\"\",\"\",IF(VLOOKUP($G57,$H$11:$DN$1000,96,FALSE)=\"\",\"No\",IF(LEFT(VLOOKUP($G57,$H$11:$DN$1000,96,FALSE),3)=\"The\",EF57,VLOOKUP(VLOOKUP($G57,$H$11:$DN$1000,96,FALSE),DeclMatrix!$A$2:$F$5,VLOOKUP('Enrollment Form'!$B57,DeclMatrix!$A$8:$B$12,2,FALSE),FALSE))))","v":""},{"$f":"IF($A57=\"\",\"\",IF(VLOOKUP($G57,$H$11:$DN$1000,101,FALSE)=\"\",\"No\",IF(LEFT(VLOOKUP($G57,$H$11:$DN$1000,101,FALSE),3)=\"The\",EG57,VLOOKUP(VLOOKUP($G57,$H$11:$DN$1000,101,FALSE),DeclMatrix!$A$2:$F$5,VLOOKUP('Enrollment Form'!$B57,DeclMatrix!$A$8:$B$12,2,FALSE),FALSE))))","v":""},{"$f":"IF($A57=\"\",\"\",IF(VLOOKUP($G57,$H$11:$DN$1000,106,FALSE)=\"\",\"No\",IF(LEFT(VLOOKUP($G57,$H$11:$DN$1000,106,FALSE),3)=\"The\",EH57,VLOOKUP(VLOOKUP($G57,$H$11:$DN$1000,106,FALSE),DeclMatrix!$A$2:$F$5,VLOOKUP('Enrollment Form'!$B57,DeclMatrix!$A$8:$B$12,2,FALSE),FALSE))))","v":""},{"$f":"IF($A57=\"\",\"\",IF(VLOOKUP($G57,$H$11:$DN$1000,111,FALSE)=\"\",\"No\",IF(LEFT(VLOOKUP($G57,$H$11:$DN$1000,111,FALSE),3)=\"The\",EI57,VLOOKUP(VLOOKUP($G57,$H$11:$DN$1000,111,FALSE),DeclMatrix!$A$2:$F$5,VLOOKUP('Enrollment Form'!$B57,DeclMatrix!$A$8:$B$12,2,FALSE),FALSE))))","v":""},"",null,"","","","","","","","","","","",""]
["",{"$nulls":5},"","",{"$nulls":18},"","","","",{"$nulls":30},"","","","",{"$nulls":60},"",{"$f":"IF($A58=\"\",\"\",IF(VLOOKUP($G58,$H$11:$DN$1000,96,FALSE)=\"\",\"No\",IF(LEFT(VLOOKUP($G58,$H$11:$DN$1000,96,FALSE),3)=\"The\",EF58,VLOOKUP(VLOOKUP($G58,$H$11:$DN$1000,96,FALSE),DeclMatrix!$A$2:$F$5,VLOOKUP('Enrollment Form'!$B58,DeclMatrix!$A$8:$B$12,2,FALSE),FALSE))))","v":""},{"$f":"IF($A58=\"\",\"\",IF(VLOOKUP($G58,$H$11:$DN$1000,101,FALSE)=\"\",\"No\",IF(LEFT(VLOOKUP($G58,$H$11:$DN$1000,101,FALSE),3)=\"The\",EG58,VLOOKUP(VLOOKUP($G58,$H$11:$DN$1000,101,FALSE),DeclMatrix!$A$2:$F$5,VLOOKUP('Enrollment Form'!$B58,DeclMatrix!$A$8:$B$12,2,FALSE),FALSE))))","v":""},{"$f":"IF($A58=\"\",\"\",IF(VLOOKUP($G58,$H$11:$DN$1000,106,FALSE)=\"\",\"No\",IF(LEFT(VLOOKUP($G58,$H$11:$DN$1000,106,FALSE),3)=\"The\",EH58,VLOOKUP(VLOOKUP($G58,$H$11:$DN$1000,106,FALSE),DeclMatrix!$A$2:$F$5,VLOOKUP('Enrollment Form'!$B58,DeclMatrix!$A$8:$B$12,2,FALSE),FALSE))))","v":""},{"$f":"IF($A58=\"\",\"\",IF(VLOOKUP($G58,$H$11:$DN$1000,111,FALSE)=\"\",\"No\",IF(LEFT(VLOOKUP($G58,$H$11:$DN$1000,111,FALSE),3)=\"The\",EI58,VLOOKUP(VLOOKUP($G58,$H$11:$DN$1000,111,FALSE),DeclMatrix!$A$2:$F$5,VLOOKUP('Enrollment Form'!$B58,DeclMatrix!$A$8:$B$12,2,FALSE),FALSE))))","v":""},"",null,"","","","","","","","","","","",""]
["",{"$nulls":5},"","",{"$nulls":18},"","","","",{"$nulls":30},"","","","",{"$nulls":60},"",{"$f":"IF($A59=\"\",\"\",IF(VLOOKUP($G59,$H$11:$DN$1000,96,FALSE)=\"\",\"No\",IF(LEFT(VLOOKUP($G59,$H$11:$DN$1000,96,FALSE),3)=\"The\",EF59,VLOOKUP(VLOOKUP($G59,$H$11:$DN$1000,96,FALSE),DeclMatrix!$A$2:$F$5,VLOOKUP('Enrollment Form'!$B59,DeclMatrix!$A$8:$B$12,2,FALSE),FALSE))))","v":""},{"$f":"IF($A59=\"\",\"\",IF(VLOOKUP($G59,$H$11:$DN$1000,101,FALSE)=\"\",\"No\",IF(LEFT(VLOOKUP($G59,$H$11:$DN$1000,101,FALSE),3)=\"The\",EG59,VLOOKUP(VLOOKUP($G59,$H$11:$DN$1000,101,FALSE),DeclMatrix!$A$2:$F$5,VLOOKUP('Enrollment Form'!$B59,DeclMatrix!$A$8:$B$12,2,FALSE),FALSE))))","v":""},{"$f":"IF($A59=\"\",\"\",IF(VLOOKUP($G59,$H$11:$DN$1000,106,FALSE)=\"\",\"No\",IF(LEFT(VLOOKUP($G59,$H$11:$DN$1000,106,FALSE),3)=\"The\",EH59,VLOOKUP(VLOOKUP($G59,$H$11:$DN$1000,106,FALSE),DeclMatrix!$A$2:$F$5,VLOOKUP('Enrollment Form'!$B59,DeclMatrix!$A$8:$B$12,2,FALSE),FALSE))))","v":""},{"$f":"IF($A59=\"\",\"\",IF(VLOOKUP($G59,$H$11:$DN$1000,111,FALSE)=\"\",\"No\",IF(LEFT(VLOOKUP($G59,$H$11:$DN$1000,111,FALSE),3)=\"The\",EI59,VLOOKUP(VLOOKUP($G59,$H$11:$DN$1000,111,FALSE),DeclMatrix!$A$2:$F$5,VLOOKUP('Enrollment Form'!$B59,DeclMatrix!$A$8:$B$12,2,FALSE),FALSE))))","v":""},"",null,"","","","","","","","","","","",""]
["",{"$nulls":5},"","",{"$nulls":18},"","","","",{"$nulls":30},"","","","",{"$nulls":60},"",{"$f":"IF($A60=\"\",\"\",IF(VLOOKUP($G60,$H$11:$DN$1000,96,FALSE)=\"\",\"No\",IF(LEFT(VLOOKUP($G60,$H$11:$DN$1000,96,FALSE),3)=\"The\",EF60,VLOOKUP(VLOOKUP($G60,$H$11:$DN$1000,96,FALSE),DeclMatrix!$A$2:$F$5,VLOOKUP('Enrollment Form'!$B60,DeclMatrix!$A$8:$B$12,2,FALSE),FALSE))))","v":""},{"$f":"IF($A60=\"\",\"\",IF(VLOOKUP($G60,$H$11:$DN$1000,101,FALSE)=\"\",\"No\",IF(LEFT(VLOOKUP($G60,$H$11:$DN$1000,101,FALSE),3)=\"The\",EG60,VLOOKUP(VLOOKUP($G60,$H$11:$DN$1000,101,FALSE),DeclMatrix!$A$2:$F$5,VLOOKUP('Enrollment Form'!$B60,DeclMatrix!$A$8:$B$12,2,FALSE),FALSE))))","v":""},{"$f":"IF($A60=\"\",\"\",IF(VLOOKUP($G60,$H$11:$DN$1000,106,FALSE)=\"\",\"No\",IF(LEFT(VLOOKUP($G60,$H$11:$DN$1000,106,FALSE),3)=\"The\",EH60,VLOOKUP(VLOOKUP($G60,$H$11:$DN$1000,106,FALSE),DeclMatrix!$A$2:$F$5,VLOOKUP('Enrollment Form'!$B60,DeclMatrix!$A$8:$B$12,2,FALSE),FALSE))))","v":""},{"$f":"IF($A60=\"\",\"\",IF(VLOOKUP($G60,$H$11:$DN$1000,111,FALSE)=\"\",\"No\",IF(LEFT(VLOOKUP($G60,$H$11:$DN$1000,111,FALSE),3)=\"The\",EI60,VLOOKUP(VLOOKUP($G60,$H$11:$DN$1000,111,FALSE),DeclMatrix!$A$2:$F$5,VLOOKUP('Enrollment Form'!$B60,DeclMatrix!$A$8:$B$12,2,FALSE),FALSE))))","v":""},"",null,"","","","","","","","","","","",""]
["",{"$nulls":5},"","",{"$nulls":18},"","","","",{"$nulls":30},"","","","",{"$nulls":60},"",{"$f":"IF($A61=\"\",\"\",IF(VLOOKUP($G61,$H$11:$DN$1000,96,FALSE)=\"\",\"No\",IF(LEFT(VLOOKUP($G61,$H$11:$DN$1000,96,FALSE),3)=\"The\",EF61,VLOOKUP(VLOOKUP($G61,$H$11:$DN$1000,96,FALSE),DeclMatrix!$A$2:$F$5,VLOOKUP('Enrollment Form'!$B61,DeclMatrix!$A$8:$B$12,2,FALSE),FALSE))))","v":""},{"$f":"IF($A61=\"\",\"\",IF(VLOOKUP($G61,$H$11:$DN$1000,101,FALSE)=\"\",\"No\",IF(LEFT(VLOOKUP($G61,$H$11:$DN$1000,101,FALSE),3)=\"The\",EG61,VLOOKUP(VLOOKUP($G61,$H$11:$DN$1000,101,FALSE),DeclMatrix!$A$2:$F$5,VLOOKUP('Enrollment Form'!$B61,DeclMatrix!$A$8:$B$12,2,FALSE),FALSE))))","v":""},{"$f":"IF($A61=\"\",\"\",IF(VLOOKUP($G61,$H$11:$DN$1000,106,FALSE)=\"\",\"No\",IF(LEFT(VLOOKUP($G61,$H$11:$DN$1000,106,FALSE),3)=\"The\",EH61,VLOOKUP(VLOOKUP($G61,$H$11:$DN$1000,106,FALSE),DeclMatrix!$A$2:$F$5,VLOOKUP('Enrollment Form'!$B61,DeclMatrix!$A$8:$B$12,2,FALSE),FALSE))))","v":""},{"$f":"IF($A61=\"\",\"\",IF(VLOOKUP($G61,$H$11:$DN$1000,111,FALSE)=\"\",\"No\",IF(LEFT(VLOOKUP($G61,$H$11:$DN$1000,111,FALSE),3)=\"The\",EI61,VLOOKUP(VLOOKUP($G61,$H$11:$DN$1000,111,FALSE),DeclMatrix!$A$2:$F$5,VLOOKUP('Enrollment Form'!$B61,DeclMatrix!$A$8:$B$12,2,FALSE),FALSE))))","v":""},"",null,"","","","","","","","","","","",""]
["",{"$nulls":5},"","",{"$nulls":18},"","","","",{"$nulls":30},"","","","",{"$nulls":60},"",{"$f":"IF($A62=\"\",\"\",IF(VLOOKUP($G62,$H$11:$DN$1000,96,FALSE)=\"\",\"No\",IF(LEFT(VLOOKUP($G62,$H$11:$DN$1000,96,FALSE),3)=\"The\",EF62,VLOOKUP(VLOOKUP($G62,$H$11:$DN$1000,96,FALSE),DeclMatrix!$A$2:$F$5,VLOOKUP('Enrollment Form'!$B62,DeclMatrix!$A$8:$B$12,2,FALSE),FALSE))))","v":""},{"$f":"IF($A62=\"\",\"\",IF(VLOOKUP($G62,$H$11:$DN$1000,101,FALSE)=\"\",\"No\",IF(LEFT(VLOOKUP($G62,$H$11:$DN$1000,101,FALSE),3)=\"The\",EG62,VLOOKUP(VLOOKUP($G62,$H$11:$DN$1000,101,FALSE),DeclMatrix!$A$2:$F$5,VLOOKUP('Enrollment Form'!$B62,DeclMatrix!$A$8:$B$12,2,FALSE),FALSE))))","v":""},{"$f":"IF($A62=\"\",\"\",IF(VLOOKUP($G62,$H$11:$DN$1000,106,FALSE)=\"\",\"No\",IF(LEFT(VLOOKUP($G62,$H$11:$DN$1000,106,FALSE),3)=\"The\",EH62,VLOOKUP(VLOOKUP($G62,$H$11:$DN$1000,106,FALSE),DeclMatrix!$A$2:$F$5,VLOOKUP('Enrollment Form'!$B62,DeclMatrix!$A$8:$B$12,2,FALSE),FALSE))))","v":""},{"$f":"IF($A62=\"\",\"\",IF(VLOOKUP($G62,$H$11:$DN$1000,111,FALSE)=\"\",\"No\",IF(LEFT(VLOOKUP($G62,$H$11:$DN$1000,111,FALSE),3)=\"The\",EI62,VLOOKUP(VLOOKUP($G62,$H$11:$DN$1000,111,FALSE),DeclMatrix!$A$2:$F$5,VLOOKUP('Enrollment Form'!$B62,DeclMatrix!$A$8:$B$12,2,FALSE),FALSE))))","v":""},"",null,"","","","","","","","","","","",""]
["",{"$nulls":5},"","",{"$nulls":18},"","","","",{"$nulls":30},"","","","",{"$nulls":60},"",{"$f":"IF($A63=\"\",\"\",IF(VLOOKUP($G63,$H$11:$DN$1000,96,FALSE)=\"\",\"No\",IF(LEFT(VLOOKUP($G63,$H$11:$DN$1000,96,FALSE),3)=\"The\",EF63,VLOOKUP(VLOOKUP($G63,$H$11:$DN$1000,96,FALSE),DeclMatrix!$A$2:$F$5,VLOOKUP('Enrollment Form'!$B63,DeclMatrix!$A$8:$B$12,2,FALSE),FALSE))))","v":""},{"$f":"IF($A63=\"\",\"\",IF(VLOOKUP($G63,$H$11:$DN$1000,101,FALSE)=\"\",\"No\",IF(LEFT(VLOOKUP($G63,$H$11:$DN$1000,101,FALSE),3)=\"The\",EG63,VLOOKUP(VLOOKUP($G63,$H$11:$DN$1000,101,FALSE),DeclMatrix!$A$2:$F$5,VLOOKUP('Enrollment Form'!$B63,DeclMatrix!$A$8:$B$12,2,FALSE),FALSE))))","v":""},{"$f":"IF($A63=\"\",\"\",IF(VLOOKUP($G63,$H$11:$DN$1000,106,FALSE)=\"\",\"No\",IF(LEFT(VLOOKUP($G63,$H$11:$DN$1000,106,FALSE),3)=\"The\",EH63,VLOOKUP(VLOOKUP($G63,$H$11:$DN$1000,106,FALSE),DeclMatrix!$A$2:$F$5,VLOOKUP('Enrollment Form'!$B63,DeclMatrix!$A$8:$B$12,2,FALSE),FALSE))))","v":""},{"$f":"IF($A63=\"\",\"\",IF(VLOOKUP($G63,$H$11:$DN$1000,111,FALSE)=\"\",\"No\",IF(LEFT(VLOOKUP($G63,$H$11:$DN$1000,111,FALSE),3)=\"The\",EI63,VLOOKUP(VLOOKUP($G63,$H$11:$DN$1000,111,FALSE),DeclMatrix!$A$2:$F$5,VLOOKUP('Enrollment Form'!$B63,DeclMatrix!$A$8:$B$12,2,FALSE),FALSE))))","v":""},"",null,"","","","","","","","","","","",""]
["",{"$nulls":5},"","",{"$nulls":18},"","","","",{"$nulls":30},"","","","",{"$nulls":60},"",{"$f":"IF($A64=\"\",\"\",IF(VLOOKUP($G64,$H$11:$DN$1000,96,FALSE)=\"\",\"No\",IF(LEFT(VLOOKUP($G64,$H$11:$DN$1000,96,FALSE),3)=\"The\",EF64,VLOOKUP(VLOOKUP($G64,$H$11:$DN$1000,96,FALSE),DeclMatrix!$A$2:$F$5,VLOOKUP('Enrollment Form'!$B64,DeclMatrix!$A$8:$B$12,2,FALSE),FALSE))))","v":""},{"$f":"IF($A64=\"\",\"\",IF(VLOOKUP($G64,$H$11:$DN$1000,101,FALSE)=\"\",\"No\",IF(LEFT(VLOOKUP($G64,$H$11:$DN$1000,101,FALSE),3)=\"The\",EG64,VLOOKUP(VLOOKUP($G64,$H$11:$DN$1000,101,FALSE),DeclMatrix!$A$2:$F$5,VLOOKUP('Enrollment Form'!$B64,DeclMatrix!$A$8:$B$12,2,FALSE),FALSE))))","v":""},{"$f":"IF($A64=\"\",\"\",IF(VLOOKUP($G64,$H$11:$DN$1000,106,FALSE)=\"\",\"No\",IF(LEFT(VLOOKUP($G64,$H$11:$DN$1000,106,FALSE),3)=\"The\",EH64,VLOOKUP(VLOOKUP($G64,$H$11:$DN$1000,106,FALSE),DeclMatrix!$A$2:$F$5,VLOOKUP('Enrollment Form'!$B64,DeclMatrix!$A$8:$B$12,2,FALSE),FALSE))))","v":""},{"$f":"IF($A64=\"\",\"\",IF(VLOOKUP($G64,$H$11:$DN$1000,111,FALSE)=\"\",\"No\",IF(LEFT(VLOOKUP($G64,$H$11:$DN$1000,111,FALSE),3)=\"The\",EI64,VLOOKUP(VLOOKUP($G64,$H$11:$DN$1000,111,FALSE),DeclMatrix!$A$2:$F$5,VLOOKUP('Enrollment Form'!$B64,DeclMatrix!$A$8:$B$12,2,FALSE),FALSE))))","v":""},"",null,"","","","","","","","","","","",""]
["",{"$nulls":5},"","",{"$nulls":18},"","","","",{"$nulls":30},"","","","",{"$nulls":60},"",{"$f":"IF($A65=\"\",\"\",IF(VLOOKUP($G65,$H$11:$DN$1000,96,FALSE)=\"\",\"No\",IF(LEFT(VLOOKUP($G65,$H$11:$DN$1000,96,FALSE),3)=\"The\",EF65,VLOOKUP(VLOOKUP($G65,$H$11:$DN$1000,96,FALSE),DeclMatrix!$A$2:$F$5,VLOOKUP('Enrollment Form'!$B65,DeclMatrix!$A$8:$B$12,2,FALSE),FALSE))))","v":""},{"$f":"IF($A65=\"\",\"\",IF(VLOOKUP($G65,$H$11:$DN$1000,101,FALSE)=\"\",\"No\",IF(LEFT(VLOOKUP($G65,$H$11:$DN$1000,101,FALSE),3)=\"The\",EG65,VLOOKUP(VLOOKUP($G65,$H$11:$DN$1000,101,FALSE),DeclMatrix!$A$2:$F$5,VLOOKUP('Enrollment Form'!$B65,DeclMatrix!$A$8:$B$12,2,FALSE),FALSE))))","v":""},{"$f":"IF($A65=\"\",\"\",IF(VLOOKUP($G65,$H$11:$DN$1000,106,FALSE)=\"\",\"No\",IF(LEFT(VLOOKUP($G65,$H$11:$DN$1000,106,FALSE),3)=\"The\",EH65,VLOOKUP(VLOOKUP($G65,$H$11:$DN$1000,106,FALSE),DeclMatrix!$A$2:$F$5,VLOOKUP('Enrollment Form'!$B65,DeclMatrix!$A$8:$B$12,2,FALSE),FALSE))))","v":""},{"$f":"IF($A65=\"\",\"\",IF(VLOOKUP($G65,$H$11:$DN$1000,111,FALSE)=\"\",\"No\",IF(LEFT(VLOOKUP($G65,$H$11:$DN$1000,111,FALSE),3)=\"The\",EI65,VLOOKUP(VLOOKUP($G65,$H$11:$DN$1000,111,FALSE),DeclMatrix!$A$2:$F$5,VLOOKUP('Enrollment Form'!$B65,DeclMatrix!$A$8:$B$12,2,FALSE),FALSE))))","v":""},"",null,"","","","","","","","","","","",""]
["",{"$nulls":5},"","",{"$nulls":18},"","","","",{"$nulls":30},"","","","",{"$nulls":60},"",{"$f":"IF($A66=\"\",\"\",IF(VLOOKUP($G66,$H$11:$DN$1000,96,FALSE)=\"\",\"No\",IF(LEFT(VLOOKUP($G66,$H$11:$DN$1000,96,FALSE),3)=\"The\",EF66,VLOOKUP(VLOOKUP($G66,$H$11:$DN$1000,96,FALSE),DeclMatrix!$A$2:$F$5,VLOOKUP('Enrollment Form'!$B66,DeclMatrix!$A$8:$B$12,2,FALSE),FALSE))))","v":""},{"$f":"IF($A66=\"\",\"\",IF(VLOOKUP($G66,$H$11:$DN$1000,101,FALSE)=\"\",\"No\",IF(LEFT(VLOOKUP($G66,$H$11:$DN$1000,101,FALSE),3)=\"The\",EG66,VLOOKUP(VLOOKUP($G66,$H$11:$DN$1000,101,FALSE),DeclMatrix!$A$2:$F$5,VLOOKUP('Enrollment Form'!$B66,DeclMatrix!$A$8:$B$12,2,FALSE),FALSE))))","v":""},{"$f":"IF($A66=\"\",\"\",IF(VLOOKUP($G66,$H$11:$DN$1000,106,FALSE)=\"\",\"No\",IF(LEFT(VLOOKUP($G66,$H$11:$DN$1000,106,FALSE),3)=\"The\",EH66,VLOOKUP(VLOOKUP($G66,$H$11:$DN$1000,106,FALSE),DeclMatrix!$A$2:$F$5,VLOOKUP('Enrollment Form'!$B66,DeclMatrix!$A$8:$B$12,2,FALSE),FALSE))))","v":""},{"$f":"IF($A66=\"\",\"\",IF(VLOOKUP($G66,$H$11:$DN$1000,111,FALSE)=\"\",\"No\",IF(LEFT(VLOOKUP($G66,$H$11:$DN$1000,111,FALSE),3)=\"The\",EI66,VLOOKUP(VLOOKUP($G66,$H$11:$DN$1000,111,FALSE),DeclMatrix!$A$2:$F$5,VLOOKUP('Enrollment Form'!$B66,DeclMatrix!$A$8:$B$12,2,FALSE),FALSE))))","v":""},"",null,"","","","","","","","","","","",""]
["",{"$nulls":5},"","",{"$nulls":18},"","","","",{"$nulls":30},"","","","",{"$nulls":60},"",{"$f":"IF($A67=\"\",\"\",IF(VLOOKUP($G67,$H$11:$DN$1000,96,FALSE)=\"\",\"No\",IF(LEFT(VLOOKUP($G67,$H$11:$DN$1000,96,FALSE),3)=\"The\",EF67,VLOOKUP(VLOOKUP($G67,$H$11:$DN$1000,96,FALSE),DeclMatrix!$A$2:$F$5,VLOOKUP('Enrollment Form'!$B67,DeclMatrix!$A$8:$B$12,2,FALSE),FALSE))))","v":""},{"$f":"IF($A67=\"\",\"\",IF(VLOOKUP($G67,$H$11:$DN$1000,101,FALSE)=\"\",\"No\",IF(LEFT(VLOOKUP($G67,$H$11:$DN$1000,101,FALSE),3)=\"The\",EG67,VLOOKUP(VLOOKUP($G67,$H$11:$DN$1000,101,FALSE),DeclMatrix!$A$2:$F$5,VLOOKUP('Enrollment Form'!$B67,DeclMatrix!$A$8:$B$12,2,FALSE),FALSE))))","v":""},{"$f":"IF($A67=\"\",\"\",IF(VLOOKUP($G67,$H$11:$DN$1000,106,FALSE)=\"\",\"No\",IF(LEFT(VLOOKUP($G67,$H$11:$DN$1000,106,FALSE),3)=\"The\",EH67,VLOOKUP(VLOOKUP($G67,$H$11:$DN$1000,106,FALSE),DeclMatrix!$A$2:$F$5,VLOOKUP('Enrollment Form'!$B67,DeclMatrix!$A$8:$B$12,2,FALSE),FALSE))))","v":""},{"$f":"IF($A67=\"\",\"\",IF(VLOOKUP($G67,$H$11:$DN$1000,111,FALSE)=\"\",\"No\",IF(LEFT(VLOOKUP($G67,$H$11:$DN$1000,111,FALSE),3)=\"The\",EI67,VLOOKUP(VLOOKUP($G67,$H$11:$DN$1000,111,FALSE),DeclMatrix!$A$2:$F$5,VLOOKUP('Enrollment Form'!$B67,DeclMatrix!$A$8:$B$12,2,FALSE),FALSE))))","v":""},"",null,"","","","","","","","","","","",""]
["",{"$nulls":5},"","",{"$nulls":18},"","","","",{"$nulls":30},"","","","",{"$nulls":60},"",{"$f":"IF($A68=\"\",\"\",IF(VLOOKUP($G68,$H$11:$DN$1000,96,FALSE)=\"\",\"No\",IF(LEFT(VLOOKUP($G68,$H$11:$DN$1000,96,FALSE),3)=\"The\",EF68,VLOOKUP(VLOOKUP($G68,$H$11:$DN$1000,96,FALSE),DeclMatrix!$A$2:$F$5,VLOOKUP('Enrollment Form'!$B68,DeclMatrix!$A$8:$B$12,2,FALSE),FALSE))))","v":""},{"$f":"IF($A68=\"\",\"\",IF(VLOOKUP($G68,$H$11:$DN$1000,101,FALSE)=\"\",\"No\",IF(LEFT(VLOOKUP($G68,$H$11:$DN$1000,101,FALSE),3)=\"The\",EG68,VLOOKUP(VLOOKUP($G68,$H$11:$DN$1000,101,FALSE),DeclMatrix!$A$2:$F$5,VLOOKUP('Enrollment Form'!$B68,DeclMatrix!$A$8:$B$12,2,FALSE),FALSE))))","v":""},{"$f":"IF($A68=\"\",\"\",IF(VLOOKUP($G68,$H$11:$DN$1000,106,FALSE)=\"\",\"No\",IF(LEFT(VLOOKUP($G68,$H$11:$DN$1000,106,FALSE),3)=\"The\",EH68,VLOOKUP(VLOOKUP($G68,$H$11:$DN$1000,106,FALSE),DeclMatrix!$A$2:$F$5,VLOOKUP('Enrollment Form'!$B68,DeclMatrix!$A$8:$B$12,2,FALSE),FALSE))))","v":""},{"$f":"IF($A68=\"\",\"\",IF(VLOOKUP($G68,$H$11:$DN$1000,111,FALSE)=\"\",\"No\",IF(LEFT(VLOOKUP($G68,$H$11:$DN$1000,111,FALSE),3)=\"The\",EI68,VLOOKUP(VLOOKUP($G68,$H$11:$DN$1000,111,FALSE),DeclMatrix!$A$2:$F$5,VLOOKUP('Enrollment Form'!$B68,DeclMatrix!$A$8:$B$12,2,FALSE),FALSE))))","v":""},"",null,"","","","","","","","","","","",""]
["",{"$nulls":5},"","",{"$nulls":18},"","","","",{"$nulls":30},"","","","",{"$nulls":60},"",{"$f":"IF($A69=\"\",\"\",IF(VLOOKUP($G69,$H$11:$DN$1000,96,FALSE)=\"\",\"No\",IF(LEFT(VLOOKUP($G69,$H$11:$DN$1000,96,FALSE),3)=\"The\",EF69,VLOOKUP(VLOOKUP($G69,$H$11:$DN$1000,96,FALSE),DeclMatrix!$A$2:$F$5,VLOOKUP('Enrollment Form'!$B69,DeclMatrix!$A$8:$B$12,2,FALSE),FALSE))))","v":""},{"$f":"IF($A69=\"\",\"\",IF(VLOOKUP($G69,$H$11:$DN$1000,101,FALSE)=\"\",\"No\",IF(LEFT(VLOOKUP($G69,$H$11:$DN$1000,101,FALSE),3)=\"The\",EG69,VLOOKUP(VLOOKUP($G69,$H$11:$DN$1000,101,FALSE),DeclMatrix!$A$2:$F$5,VLOOKUP('Enrollment Form'!$B69,DeclMatrix!$A$8:$B$12,2,FALSE),FALSE))))","v":""},{"$f":"IF($A69=\"\",\"\",IF(VLOOKUP($G69,$H$11:$DN$1000,106,FALSE)=\"\",\"No\",IF(LEFT(VLOOKUP($G69,$H$11:$DN$1000,106,FALSE),3)=\"The\",EH69,VLOOKUP(VLOOKUP($G69,$H$11:$DN$1000,106,FALSE),DeclMatrix!$A$2:$F$5,VLOOKUP('Enrollment Form'!$B69,DeclMatrix!$A$8:$B$12,2,FALSE),FALSE))))","v":""},{"$f":"IF($A69=\"\",\"\",IF(VLOOKUP($G69,$H$11:$DN$1000,111,FALSE)=\"\",\"No\",IF(LEFT(VLOOKUP($G69,$H$11:$DN$1000,111,FALSE),3)=\"The\",EI69,VLOOKUP(VLOOKUP($G69,$H$11:$DN$1000,111,FALSE),DeclMatrix!$A$2:$F$5,VLOOKUP('Enrollment Form'!$B69,DeclMatrix!$A$8:$B$12,2,FALSE),FALSE))))","v":""},"",null,"","","","","","","","","","","",""]
["",{"$nulls":5},"","",{"$nulls":18},"","","","",{"$nulls":30},"","","","",{"$nulls":60},"",{"$f":"IF($A70=\"\",\"\",IF(VLOOKUP($G70,$H$11:$DN$1000,96,FALSE)=\"\",\"No\",IF(LEFT(VLOOKUP($G70,$H$11:$DN$1000,96,FALSE),3)=\"The\",EF70,VLOOKUP(VLOOKUP($G70,$H$11:$DN$1000,96,FALSE),DeclMatrix!$A$2:$F$5,VLOOKUP('Enrollment Form'!$B70,DeclMatrix!$A$8:$B$12,2,FALSE),FALSE))))","v":""},{"$f":"IF($A70=\"\",\"\",IF(VLOOKUP($G70,$H$11:$DN$1000,101,FALSE)=\"\",\"No\",IF(LEFT(VLOOKUP($G70,$H$11:$DN$1000,101,FALSE),3)=\"The\",EG70,VLOOKUP(VLOOKUP($G70,$H$11:$DN$1000,101,FALSE),DeclMatrix!$A$2:$F$5,VLOOKUP('Enrollment Form'!$B70,DeclMatrix!$A$8:$B$12,2,FALSE),FALSE))))","v":""},{"$f":"IF($A70=\"\",\"\",IF(VLOOKUP($G70,$H$11:$DN$1000,106,FALSE)=\"\",\"No\",IF(LEFT(VLOOKUP($G70,$H$11:$DN$1000,106,FALSE),3)=\"The\",EH70,VLOOKUP(VLOOKUP($G70,$H$11:$DN$1000,106,FALSE),DeclMatrix!$A$2:$F$5,VLOOKUP('Enrollment Form'!$B70,DeclMatrix!$A$8:$B$12,2,FALSE),FALSE))))","v":""},{"$f":"IF($A70=\"\",\"\",IF(VLOOKUP($G70,$H$11:$DN$1000,111,FALSE)=\"\",\"No\",IF(LEFT(VLOOKUP($G70,$H$11:$DN$1000,111,FALSE),3)=\"The\",EI70,VLOOKUP(VLOOKUP($G70,$H$11:$DN$1000,111,FALSE),DeclMatrix!$A$2:$F$5,VLOOKUP('Enrollment Form'!$B70,DeclMatrix!$A$8:$B$12,2,FALSE),FALSE))))","v":""},"",null,"","","","","","","","","","","",""]
["",{"$nulls":5},"","",{"$nulls":18},"","","","",{"$nulls":30},"","","","",{"$nulls":60},"",{"$f":"IF($A71=\"\",\"\",IF(VLOOKUP($G71,$H$11:$DN$1000,96,FALSE)=\"\",\"No\",IF(LEFT(VLOOKUP($G71,$H$11:$DN$1000,96,FALSE),3)=\"The\",EF71,VLOOKUP(VLOOKUP($G71,$H$11:$DN$1000,96,FALSE),DeclMatrix!$A$2:$F$5,VLOOKUP('Enrollment Form'!$B71,DeclMatrix!$A$8:$B$12,2,FALSE),FALSE))))","v":""},{"$f":"IF($A71=\"\",\"\",IF(VLOOKUP($G71,$H$11:$DN$1000,101,FALSE)=\"\",\"No\",IF(LEFT(VLOOKUP($G71,$H$11:$DN$1000,101,FALSE),3)=\"The\",EG71,VLOOKUP(VLOOKUP($G71,$H$11:$DN$1000,101,FALSE),DeclMatrix!$A$2:$F$5,VLOOKUP('Enrollment Form'!$B71,DeclMatrix!$A$8:$B$12,2,FALSE),FALSE))))","v":""},{"$f":"IF($A71=\"\",\"\",IF(VLOOKUP($G71,$H$11:$DN$1000,106,FALSE)=\"\",\"No\",IF(LEFT(VLOOKUP($G71,$H$11:$DN$1000,106,FALSE),3)=\"The\",EH71,VLOOKUP(VLOOKUP($G71,$H$11:$DN$1000,106,FALSE),DeclMatrix!$A$2:$F$5,VLOOKUP('Enrollment Form'!$B71,DeclMatrix!$A$8:$B$12,2,FALSE),FALSE))))","v":""},{"$f":"IF($A71=\"\",\"\",IF(VLOOKUP($G71,$H$11:$DN$1000,111,FALSE)=\"\",\"No\",IF(LEFT(VLOOKUP($G71,$H$11:$DN$1000,111,FALSE),3)=\"The\",EI71,VLOOKUP(VLOOKUP($G71,$H$11:$DN$1000,111,FALSE),DeclMatrix!$A$2:$F$5,VLOOKUP('Enrollment Form'!$B71,DeclMatrix!$A$8:$B$12,2,FALSE),FALSE))))","v":""},"",null,"","","","","","","","","","","",""]
["",{"$nulls":5},"","",{"$nulls":18},"","","","",{"$nulls":30},"","","","",{"$nulls":60},"",{"$f":"IF($A72=\"\",\"\",IF(VLOOKUP($G72,$H$11:$DN$1000,96,FALSE)=\"\",\"No\",IF(LEFT(VLOOKUP($G72,$H$11:$DN$1000,96,FALSE),3)=\"The\",EF72,VLOOKUP(VLOOKUP($G72,$H$11:$DN$1000,96,FALSE),DeclMatrix!$A$2:$F$5,VLOOKUP('Enrollment Form'!$B72,DeclMatrix!$A$8:$B$12,2,FALSE),FALSE))))","v":""},{"$f":"IF($A72=\"\",\"\",IF(VLOOKUP($G72,$H$11:$DN$1000,101,FALSE)=\"\",\"No\",IF(LEFT(VLOOKUP($G72,$H$11:$DN$1000,101,FALSE),3)=\"The\",EG72,VLOOKUP(VLOOKUP($G72,$H$11:$DN$1000,101,FALSE),DeclMatrix!$A$2:$F$5,VLOOKUP('Enrollment Form'!$B72,DeclMatrix!$A$8:$B$12,2,FALSE),FALSE))))","v":""},{"$f":"IF($A72=\"\",\"\",IF(VLOOKUP($G72,$H$11:$DN$1000,106,FALSE)=\"\",\"No\",IF(LEFT(VLOOKUP($G72,$H$11:$DN$1000,106,FALSE),3)=\"The\",EH72,VLOOKUP(VLOOKUP($G72,$H$11:$DN$1000,106,FALSE),DeclMatrix!$A$2:$F$5,VLOOKUP('Enrollment Form'!$B72,DeclMatrix!$A$8:$B$12,2,FALSE),FALSE))))","v":""},{"$f":"IF($A72=\"\",\"\",IF(VLOOKUP($G72,$H$11:$DN$1000,111,FALSE)=\"\",\"No\",IF(LEFT(VLOOKUP($G72,$H$11:$DN$1000,111,FALSE),3)=\"The\",EI72,VLOOKUP(VLOOKUP($G72,$H$11:$DN$1000,111,FALSE),DeclMatrix!$A$2:$F$5,VLOOKUP('Enrollment Form'!$B72,DeclMatrix!$A$8:$B$12,2,FALSE),FALSE))))","v":""},"",null,"","","","","","","","","","","",""]
["",{"$nulls":5},"","",{"$nulls":18},"","","","",{"$nulls":30},"","","","",{"$nulls":60},"",{"$f":"IF($A73=\"\",\"\",IF(VLOOKUP($G73,$H$11:$DN$1000,96,FALSE)=\"\",\"No\",IF(LEFT(VLOOKUP($G73,$H$11:$DN$1000,96,FALSE),3)=\"The\",EF73,VLOOKUP(VLOOKUP($G73,$H$11:$DN$1000,96,FALSE),DeclMatrix!$A$2:$F$5,VLOOKUP('Enrollment Form'!$B73,DeclMatrix!$A$8:$B$12,2,FALSE),FALSE))))","v":""},{"$f":"IF($A73=\"\",\"\",IF(VLOOKUP($G73,$H$11:$DN$1000,101,FALSE)=\"\",\"No\",IF(LEFT(VLOOKUP($G73,$H$11:$DN$1000,101,FALSE),3)=\"The\",EG73,VLOOKUP(VLOOKUP($G73,$H$11:$DN$1000,101,FALSE),DeclMatrix!$A$2:$F$5,VLOOKUP('Enrollment Form'!$B73,DeclMatrix!$A$8:$B$12,2,FALSE),FALSE))))","v":""},{"$f":"IF($A73=\"\",\"\",IF(VLOOKUP($G73,$H$11:$DN$1000,106,FALSE)=\"\",\"No\",IF(LEFT(VLOOKUP($G73,$H$11:$DN$1000,106,FALSE),3)=\"The\",EH73,VLOOKUP(VLOOKUP($G73,$H$11:$DN$1000,106,FALSE),DeclMatrix!$A$2:$F$5,VLOOKUP('Enrollment Form'!$B73,DeclMatrix!$A$8:$B$12,2,FALSE),FALSE))))","v":""},{"$f":"IF($A73=\"\",\"\",IF(VLOOKUP($G73,$H$11:$DN$1000,111,FALSE)=\"\",\"No\",IF(LEFT(VLOOKUP($G73,$H$11:$DN$1000,111,FALSE),3)=\"The\",EI73,VLOOKUP(VLOOKUP($G73,$H$11:$DN$1000,111,FALSE),DeclMatrix!$A$2:$F$5,VLOOKUP('Enrollment Form'!$B73,DeclMatrix!$A$8:$B$12,2,FALSE),FALSE))))","v":""},"",null,"","","","","","","","","","","",""]
["",{"$nulls":5},"","",{"$nulls":18},"","","","",{"$nulls":30},"","","","",{"$nulls":60},"",{"$f":"IF($A74=\"\",\"\",IF(VLOOKUP($G74,$H$11:$DN$1000,96,FALSE)=\"\",\"No\",IF(LEFT(VLOOKUP($G74,$H$11:$DN$1000,96,FALSE),3)=\"The\",EF74,VLOOKUP(VLOOKUP($G74,$H$11:$DN$1000,96,FALSE),DeclMatrix!$A$2:$F$5,VLOOKUP('Enrollment Form'!$B74,DeclMatrix!$A$8:$B$12,2,FALSE),FALSE))))","v":""},{"$f":"IF($A74=\"\",\"\",IF(VLOOKUP($G74,$H$11:$DN$1000,101,FALSE)=\"\",\"No\",IF(LEFT(VLOOKUP($G74,$H$11:$DN$1000,101,FALSE),3)=\"The\",EG74,VLOOKUP(VLOOKUP($G74,$H$11:$DN$1000,101,FALSE),DeclMatrix!$A$2:$F$5,VLOOKUP('Enrollment Form'!$B74,DeclMatrix!$A$8:$B$12,2,FALSE),FALSE))))","v":""},{"$f":"IF($A74=\"\",\"\",IF(VLOOKUP($G74,$H$11:$DN$1000,106,FALSE)=\"\",\"No\",IF(LEFT(VLOOKUP($G74,$H$11:$DN$1000,106,FALSE),3)=\"The\",EH74,VLOOKUP(VLOOKUP($G74,$H$11:$DN$1000,106,FALSE),DeclMatrix!$A$2:$F$5,VLOOKUP('Enrollment Form'!$B74,DeclMatrix!$A$8:$B$12,2,FALSE),FALSE))))","v":""},{"$f":"IF($A74=\"\",\"\",IF(VLOOKUP($G74,$H$11:$DN$1000,111,FALSE)=\"\",\"No\",IF(LEFT(VLOOKUP($G74,$H$11:$DN$1000,111,FALSE),3)=\"The\",EI74,VLOOKUP(VLOOKUP($G74,$H$11:$DN$1000,111,FALSE),DeclMatrix!$A$2:$F$5,VLOOKUP('Enrollment Form'!$B74,DeclMatrix!$A$8:$B$12,2,FALSE),FALSE))))","v":""},"",null,"","","","","","","","","","","",""]
[{"$f":"IF(LEN($B75)>0,$C$2,\"\")","v":""},{"$nulls":5},"","",{"$nulls":18},"","","","",{"$nulls":30},{"$f":"IF(AND($B75<>\"Subscriber\",$BH75=\"Yes\"),VLOOKUP($G75,$H$11:$Y$1000,15,FALSE),\"\")","v":""},{"$f":"IF(AND($B75<>\"Subscriber\",$BH75=\"Yes\"),VLOOKUP($G75,$H$11:$Y$1000,16,FALSE),\"\")","v":""},{"$f":"IF(AND($B75<>\"Subscriber\",$BH75=\"Yes\"),VLOOKUP($G75,$H$11:$Y$1000,17,FALSE),\"\")","v":""},{"$f":"IF(AND($B75<>\"Subscriber\",$BH75=\"Yes\"),VLOOKUP($G75,$H$11:$Y$1000,18,FALSE),\"\")","v":""},{"$nulls":60},{"$f":"IF($A75=\"\",\"\",IF($B75=\"Subscriber\",$AG75,VLOOKUP($G75,$H$11:$AG$1000,26,FALSE)))","v":""},{"$f":"IF($A75=\"\",\"\",IF(VLOOKUP($G75,$H$11:$DN$1000,96,FALSE)=\"\",\"No\",IF(LEFT(VLOOKUP($G75,$H$11:$DN$1000,96,FALSE),3)=\"The\",EF75,VLOOKUP(VLOOKUP($G75,$H$11:$DN$1000,96,FALSE),DeclMatrix!$A$2:$F$5,VLOOKUP('Enrollment Form'!$B75,DeclMatrix!$A$8:$B$12,2,FALSE),FALSE))))","v":""},{"$f":"IF($A75=\"\",\"\",IF(VLOOKUP($G75,$H$11:$DN$1000,101,FALSE)=\"\",\"No\",IF(LEFT(VLOOKUP($G75,$H$11:$DN$1000,101,FALSE),3)=\"The\",EG75,VLOOKUP(VLOOKUP($G75,$H$11:$DN$1000,101,FALSE),DeclMatrix!$A$2:$F$5,VLOOKUP('Enrollment Form'!$B75,DeclMatrix!$A$8:$B$12,2,FALSE),FALSE))))","v":""},{"$f":"IF($A75=\"\",\"\",IF(VLOOKUP($G75,$H$11:$DN$1000,106,FALSE)=\"\",\"No\",IF(LEFT(VLOOKUP($G75,$H$11:$DN$1000,106,FALSE),3)=\"The\",EH75,VLOOKUP(VLOOKUP($G75,$H$11:$DN$1000,106,FALSE),DeclMatrix!$A$2:$F$5,VLOOKUP('Enrollment Form'!$B75,DeclMatrix!$A$8:$B$12,2,FALSE),FALSE))))","v":""},{"$f":"IF($A75=\"\",\"\",IF(VLOOKUP($G75,$H$11:$DN$1000,111,FALSE)=\"\",\"No\",IF(LEFT(VLOOKUP($G75,$H$11:$DN$1000,111,FALSE),3)=\"The\",EI75,VLOOKUP(VLOOKUP($G75,$H$11:$DN$1000,111,FALSE),DeclMatrix!$A$2:$F$5,VLOOKUP('Enrollment Form'!$B75,DeclMatrix!$A$8:$B$12,2,FALSE),FALSE))))","v":""},"",null,{"$f":"$B75&$G75&$J75","v":""},{"$f":"$B75&$G75&$L75","v":""},{"$f":"$B75&$G75&$N75","v":""},{"$f":"$B75&$G75&$O75","v":""},"","","","",{"$f":"IF($A75=\"\",\"\",IF(AND($B75=\"Subscriber\",$I75<>\"Waive\",$I75<>\"\"),\"Yes\",IF(AND($B75<>\"Subscriber\",$BF75=\"Yes\"),VLOOKUP($G75,$H$11:$EM$1000,133,FALSE),IF(AND($C75=\"Enroll\",VLOOKUP($G76,$H$11:$EM$1000,96,FALSE)<>\"\"),VLOOKUP($DV75,$DW$2:$DX$3,2,FALSE),\"No\"))))","v":""},{"$f":"IF($A75=\"\",\"\",IF(AND($B75=\"Subscriber\",$K75<>\"Waive\",$K75<>\"\"),\"Yes\",IF(AND($B75<>\"Subscriber\",$BF75=\"Yes\"),VLOOKUP($G75,$H$11:$EM$1000,134,FALSE),IF(AND($C75=\"Enroll\",VLOOKUP($G76,$H$11:$EM$1000,101,FALSE)<>\"\"),VLOOKUP($DW75,$DW$2:$DX$3,2,FALSE),\"No\"))))","v":""},{"$f":"IF($A75=\"\",\"\",IF(AND($B75=\"Subscriber\",$M75<>\"Waive\",$M75<>\"\"),\"Yes\",IF(AND($B75<>\"Subscriber\",$BF75=\"Yes\"),VLOOKUP($G75,$H$11:$EM$1000,135,FALSE),IF(AND($C75=\"Enroll\",VLOOKUP($G76,$H$11:$EM$1000,106,FALSE)<>\"\"),VLOOKUP($DX75,$DW$2:$DX$3,2,FALSE),\"No\"))))","v":""},{"$f":"IF($A75=\"\",\"\",IF(AND($B75=\"Subscriber\",$O75<>\"Waive\",$O75<>\"\"),\"Yes\",IF(AND($B75<>\"Subscriber\",$BF75=\"Yes\"),VLOOKUP($G75,$H$11:$EM$1000,136,FALSE),IF(AND($C75=\"Enroll\",VLOOKUP($G76,$H$11:$EM$1000,111,FALSE)<>\"\"),VLOOKUP($DY75,$DW$2:$DX$3,2,FALSE),\"No\"))))","v":""}]
["",{"$nulls":5},{"$f":"IF(A76=\"\",\"\",IF(AND(B76<>\"Subscriber\",B76<>\"\"),G75,\"\"))","v":""},{"$f":"IF(AND(B76=\"Subscriber\",G76<>\"\"),G76,\"\")","v":""},{"$nulls":18},{"$f":"IF(AND($B76=\"Subscriber\",$Z76=\"Yes\"),V76,\"\")","v":""},{"$f":"IF(AND($B76=\"Subscriber\",$Z76=\"Yes\"),W76,\"\")","v":""},{"$f":"IF(AND($B76=\"Subscriber\",$Z76=\"Yes\"),X76,\"\")","v":""},{"$f":"IF(AND($B76=\"Subscriber\",$Z76=\"Yes\"),Y76,\"\")","v":""},{"$nulls":30},"","","","",{"$nulls":60},"",{"$f":"IF($A76=\"\",\"\",IF(VLOOKUP($G76,$H$11:$DN$1000,96,FALSE)=\"\",\"No\",IF(LEFT(VLOOKUP($G76,$H$11:$DN$1000,96,FALSE),3)=\"The\",EF76,VLOOKUP(VLOOKUP($G76,$H$11:$DN$1000,96,FALSE),DeclMatrix!$A$2:$F$5,VLOOKUP('Enrollment Form'!$B76,DeclMatrix!$A$8:$B$12,2,FALSE),FALSE))))","v":""},{"$f":"IF($A76=\"\",\"\",IF(VLOOKUP($G76,$H$11:$DN$1000,101,FALSE)=\"\",\"No\",IF(LEFT(VLOOKUP($G76,$H$11:$DN$1000,101,FALSE),3)=\"The\",EG76,VLOOKUP(VLOOKUP($G76,$H$11:$DN$1000,101,FALSE),DeclMatrix!$A$2:$F$5,VLOOKUP('Enrollment Form'!$B76,DeclMatrix!$A$8:$B$12,2,FALSE),FALSE))))","v":""},{"$f":"IF($A76=\"\",\"\",IF(VLOOKUP($G76,$H$11:$DN$1000,106,FALSE)=\"\",\"No\",IF(LEFT(VLOOKUP($G76,$H$11:$DN$1000,106,FALSE),3)=\"The\",EH76,VLOOKUP(VLOOKUP($G76,$H$11:$DN$1000,106,FALSE),DeclMatrix!$A$2:$F$5,VLOOKUP('Enrollment Form'!$B76,DeclMatrix!$A$8:$B$12,2,FALSE),FALSE))))","v":""},{"$f":"IF($A76=\"\",\"\",IF(VLOOKUP($G76,$H$11:$DN$1000,111,FALSE)=\"\",\"No\",IF(LEFT(VLOOKUP($G76,$H$11:$DN$1000,111,FALSE),3)=\"The\",EI76,VLOOKUP(VLOOKUP($G76,$H$11:$DN$1000,111,FALSE),DeclMatrix!$A$2:$F$5,VLOOKUP('Enrollment Form'!$B76,DeclMatrix!$A$8:$B$12,2,FALSE),FALSE))))","v":""},{"$f":"IF(A76<>\"\",\"1X\",\"\")","v":""},null,"","","","",{"$f":"IF($A76=\"\",\"\",IF($B76=\"Subscriber\",\"No\",IF(OR($CY76=\"\",$CY76=\"No\"),\"No\",\"Yes\")))","v":""},{"$f":"IF($A76=\"\",\"\",IF($B76=\"Subscriber\",\"No\",IF(OR($DD76=\"\",$DD76=\"No\"),\"No\",\"Yes\")))","v":""},{"$f":"IF($A76=\"\",\"\",IF($B76=\"Subscriber\",\"No\",IF(OR($DI76=\"\",$DI76=\"No\"),\"No\",\"Yes\")))","v":""},{"$f":"IF($A76=\"\",\"\",IF($B76=\"Subscriber\",\"No\",IF(OR($DN76=\"\",$DN76=\"No\"),\"No\",\"Yes\")))","v":""},"","","",""]
["",{"$nulls":5},"","",{"$nulls":18},"","","","",{"$nulls":30},"","","","",{"$nulls":60},"",{"$f":"IF($A77=\"\",\"\",IF(VLOOKUP($G77,$H$11:$DN$1000,96,FALSE)=\"\",\"No\",IF(LEFT(VLOOKUP($G77,$H$11:$DN$1000,96,FALSE),3)=\"The\",EF77,VLOOKUP(VLOOKUP($G77,$H$11:$DN$1000,96,FALSE),DeclMatrix!$A$2:$F$5,VLOOKUP('Enrollment Form'!$B77,DeclMatrix!$A$8:$B$12,2,FALSE),FALSE))))","v":""},{"$f":"IF($A77=\"\",\"\",IF(VLOOKUP($G77,$H$11:$DN$1000,101,FALSE)=\"\",\"No\",IF(LEFT(VLOOKUP($G77,$H$11:$DN$1000,101,FALSE),3)=\"The\",EG77,VLOOKUP(VLOOKUP($G77,$H$11:$DN$1000,101,FALSE),DeclMatrix!$A$2:$F$5,VLOOKUP('Enrollment Form'!$B77,DeclMatrix!$A$8:$B$12,2,FALSE),FALSE))))","v":""},{"$f":"IF($A77=\"\",\"\",IF(VLOOKUP($G77,$H$11:$DN$1000,106,FALSE)=\"\",\"No\",IF(LEFT(VLOOKUP($G77,$H$11:$DN$1000,106,FALSE),3)=\"The\",EH77,VLOOKUP(VLOOKUP($G77,$H$11:$DN$1000,106,FALSE),DeclMatrix!$A$2:$F$5,VLOOKUP('Enrollment Form'!$B77,DeclMatrix!$A$8:$B$12,2,FALSE),FALSE))))","v":""},{"$f":"IF($A77=\"\",\"\",IF(VLOOKUP($G77,$H$11:$DN$1000,111,FALSE)=\"\",\"No\",IF(LEFT(VLOOKUP($G77,$H$11:$DN$1000,111,FALSE),3)=\"The\",EI77,VLOOKUP(VLOOKUP($G77,$H$11:$DN$1000,111,FALSE),DeclMatrix!$A$2:$F$5,VLOOKUP('Enrollment Form'!$B77,DeclMatrix!$A$8:$B$12,2,FALSE),FALSE))))","v":""},"",null,"","","","","","","","","","","",""]
["",{"$nulls":5},"","",{"$nulls":18},"","","","",{"$nulls":30},"","","","",{"$nulls":60},"",{"$f":"IF($A78=\"\",\"\",IF(VLOOKUP($G78,$H$11:$DN$1000,96,FALSE)=\"\",\"No\",IF(LEFT(VLOOKUP($G78,$H$11:$DN$1000,96,FALSE),3)=\"The\",EF78,VLOOKUP(VLOOKUP($G78,$H$11:$DN$1000,96,FALSE),DeclMatrix!$A$2:$F$5,VLOOKUP('Enrollment Form'!$B78,DeclMatrix!$A$8:$B$12,2,FALSE),FALSE))))","v":""},{"$f":"IF($A78=\"\",\"\",IF(VLOOKUP($G78,$H$11:$DN$1000,101,FALSE)=\"\",\"No\",IF(LEFT(VLOOKUP($G78,$H$11:$DN$1000,101,FALSE),3)=\"The\",EG78,VLOOKUP(VLOOKUP($G78,$H$11:$DN$1000,101,FALSE),DeclMatrix!$A$2:$F$5,VLOOKUP('Enrollment Form'!$B78,DeclMatrix!$A$8:$B$12,2,FALSE),FALSE))))","v":""},{"$f":"IF($A78=\"\",\"\",IF(VLOOKUP($G78,$H$11:$DN$1000,106,FALSE)=\"\",\"No\",IF(LEFT(VLOOKUP($G78,$H$11:$DN$1000,106,FALSE),3)=\"The\",EH78,VLOOKUP(VLOOKUP($G78,$H$11:$DN$1000,106,FALSE),DeclMatrix!$A$2:$F$5,VLOOKUP('Enrollment Form'!$B78,DeclMatrix!$A$8:$B$12,2,FALSE),FALSE))))","v":""},{"$f":"IF($A78=\"\",\"\",IF(VLOOKUP($G78,$H$11:$DN$1000,111,FALSE)=\"\",\"No\",IF(LEFT(VLOOKUP($G78,$H$11:$DN$1000,111,FALSE),3)=\"The\",EI78,VLOOKUP(VLOOKUP($G78,$H$11:$DN$1000,111,FALSE),DeclMatrix!$A$2:$F$5,VLOOKUP('Enrollment Form'!$B78,DeclMatrix!$A$8:$B$12,2,FALSE),FALSE))))","v":""},"",null,"","","","","","","","","","","",""]
["",{"$nulls":5},"","",{"$nulls":18},"","","","",{"$nulls":30},"","","","",{"$nulls":60},"",{"$f":"IF($A79=\"\",\"\",IF(VLOOKUP($G79,$H$11:$DN$1000,96,FALSE)=\"\",\"No\",IF(LEFT(VLOOKUP($G79,$H$11:$DN$1000,96,FALSE),3)=\"The\",EF79,VLOOKUP(VLOOKUP($G79,$H$11:$DN$1000,96,FALSE),DeclMatrix!$A$2:$F$5,VLOOKUP('Enrollment Form'!$B79,DeclMatrix!$A$8:$B$12,2,FALSE),FALSE))))","v":""},{"$f":"IF($A79=\"\",\"\",IF(VLOOKUP($G79,$H$11:$DN$1000,101,FALSE)=\"\",\"No\",IF(LEFT(VLOOKUP($G79,$H$11:$DN$1000,101,FALSE),3)=\"The\",EG79,VLOOKUP(VLOOKUP($G79,$H$11:$DN$1000,101,FALSE),DeclMatrix!$A$2:$F$5,VLOOKUP('Enrollment Form'!$B79,DeclMatrix!$A$8:$B$12,2,FALSE),FALSE))))","v":""},{"$f":"IF($A79=\"\",\"\",IF(VLOOKUP($G79,$H$11:$DN$1000,106,FALSE)=\"\",\"No\",IF(LEFT(VLOOKUP($G79,$H$11:$DN$1000,106,FALSE),3)=\"The\",EH79,VLOOKUP(VLOOKUP($G79,$H$11:$DN$1000,106,FALSE),DeclMatrix!$A$2:$F$5,VLOOKUP('Enrollment Form'!$B79,DeclMatrix!$A$8:$B$12,2,FALSE),FALSE))))","v":""},{"$f":"IF($A79=\"\",\"\",IF(VLOOKUP($G79,$H$11:$DN$1000,111,FALSE)=\"\",\"No\",IF(LEFT(VLOOKUP($G79,$H$11:$DN$1000,111,FALSE),3)=\"The\",EI79,VLOOKUP(VLOOKUP($G79,$H$11:$DN$1000,111,FALSE),DeclMatrix!$A$2:$F$5,VLOOKUP('Enrollment Form'!$B79,DeclMatrix!$A$8:$B$12,2,FALSE),FALSE))))","v":""},"",null,"","","","","","","","","","","",""]
["",{"$nulls":5},"","",{"$nulls":18},"","","","",{"$nulls":30},"","","","",{"$nulls":60},"",{"$f":"IF($A80=\"\",\"\",IF(VLOOKUP($G80,$H$11:$DN$1000,96,FALSE)=\"\",\"No\",IF(LEFT(VLOOKUP($G80,$H$11:$DN$1000,96,FALSE),3)=\"The\",EF80,VLOOKUP(VLOOKUP($G80,$H$11:$DN$1000,96,FALSE),DeclMatrix!$A$2:$F$5,VLOOKUP('Enrollment Form'!$B80,DeclMatrix!$A$8:$B$12,2,FALSE),FALSE))))","v":""},{"$f":"IF($A80=\"\",\"\",IF(VLOOKUP($G80,$H$11:$DN$1000,101,FALSE)=\"\",\"No\",IF(LEFT(VLOOKUP($G80,$H$11:$DN$1000,101,FALSE),3)=\"The\",EG80,VLOOKUP(VLOOKUP($G80,$H$11:$DN$1000,101,FALSE),DeclMatrix!$A$2:$F$5,VLOOKUP('Enrollment Form'!$B80,DeclMatrix!$A$8:$B$12,2,FALSE),FALSE))))","v":""},{"$f":"IF($A80=\"\",\"\",IF(VLOOKUP($G80,$H$11:$DN$1000,106,FALSE)=\"\",\"No\",IF(LEFT(VLOOKUP($G80,$H$11:$DN$1000,106,FALSE),3)=\"The\",EH80,VLOOKUP(VLOOKUP($G80,$H$11:$DN$1000,106,FALSE),DeclMatrix!$A$2:$F$5,VLOOKUP('Enrollment Form'!$B80,DeclMatrix!$A$8:$B$12,2,FALSE),FALSE))))","v":""},{"$f":"IF($A80=\"\",\"\",IF(VLOOKUP($G80,$H$11:$DN$1000,111,FALSE)=\"\",\"No\",IF(LEFT(VLOOKUP($G80,$H$11:$DN$1000,111,FALSE),3)=\"The\",EI80,VLOOKUP(VLOOKUP($G80,$H$11:$DN$1000,111,FALSE),DeclMatrix!$A$2:$F$5,VLOOKUP('Enrollment Form'!$B80,DeclMatrix!$A$8:$B$12,2,FALSE),FALSE))))","v":""},"",null,"","","","","","","","","","","",""]
["",{"$nulls":5},"","",{"$nulls":18},"","","","",{"$nulls":30},"","","","",{"$nulls":60},"",{"$f":"IF($A81=\"\",\"\",IF(VLOOKUP($G81,$H$11:$DN$1000,96,FALSE)=\"\",\"No\",IF(LEFT(VLOOKUP($G81,$H$11:$DN$1000,96,FALSE),3)=\"The\",EF81,VLOOKUP(VLOOKUP($G81,$H$11:$DN$1000,96,FALSE),DeclMatrix!$A$2:$F$5,VLOOKUP('Enrollment Form'!$B81,DeclMatrix!$A$8:$B$12,2,FALSE),FALSE))))","v":""},{"$f":"IF($A81=\"\",\"\",IF(VLOOKUP($G81,$H$11:$DN$1000,101,FALSE)=\"\",\"No\",IF(LEFT(VLOOKUP($G81,$H$11:$DN$1000,101,FALSE),3)=\"The\",EG81,VLOOKUP(VLOOKUP($G81,$H$11:$DN$1000,101,FALSE),DeclMatrix!$A$2:$F$5,VLOOKUP('Enrollment Form'!$B81,DeclMatrix!$A$8:$B$12,2,FALSE),FALSE))))","v":""},{"$f":"IF($A81=\"\",\"\",IF(VLOOKUP($G81,$H$11:$DN$1000,106,FALSE)=\"\",\"No\",IF(LEFT(VLOOKUP($G81,$H$11:$DN$1000,106,FALSE),3)=\"The\",EH81,VLOOKUP(VLOOKUP($G81,$H$11:$DN$1000,106,FALSE),DeclMatrix!$A$2:$F$5,VLOOKUP('Enrollment Form'!$B81,DeclMatrix!$A$8:$B$12,2,FALSE),FALSE))))","v":""},{"$f":"IF($A81=\"\",\"\",IF(VLOOKUP($G81,$H$11:$DN$1000,111,FALSE)=\"\",\"No\",IF(LEFT(VLOOKUP($G81,$H$11:$DN$1000,111,FALSE),3)=\"The\",EI81,VLOOKUP(VLOOKUP($G81,$H$11:$DN$1000,111,FALSE),DeclMatrix!$A$2:$F$5,VLOOKUP('Enrollment Form'!$B81,DeclMatrix!$A$8:$B$12,2,FALSE),FALSE))))","v":""},"",null,"","","","","","","","","","","",""]
["",{"$nulls":5},"","",{"$nulls":18},"","","","",{"$nulls":30},"","","","",{"$nulls":60},"",{"$f":"IF($A82=\"\",\"\",IF(VLOOKUP($G82,$H$11:$DN$1000,96,FALSE)=\"\",\"No\",IF(LEFT(VLOOKUP($G82,$H$11:$DN$1000,96,FALSE),3)=\"The\",EF82,VLOOKUP(VLOOKUP($G82,$H$11:$DN$1000,96,FALSE),DeclMatrix!$A$2:$F$5,VLOOKUP('Enrollment Form'!$B82,DeclMatrix!$A$8:$B$12,2,FALSE),FALSE))))","v":""},{"$f":"IF($A82=\"\",\"\",IF(VLOOKUP($G82,$H$11:$DN$1000,101,FALSE)=\"\",\"No\",IF(LEFT(VLOOKUP($G82,$H$11:$DN$1000,101,FALSE),3)=\"The\",EG82,VLOOKUP(VLOOKUP($G82,$H$11:$DN$1000,101,FALSE),DeclMatrix!$A$2:$F$5,VLOOKUP('Enrollment Form'!$B82,DeclMatrix!$A$8:$B$12,2,FALSE),FALSE))))","v":""},{"$f":"IF($A82=\"\",\"\",IF(VLOOKUP($G82,$H$11:$DN$1000,106,FALSE)=\"\",\"No\",IF(LEFT(VLOOKUP($G82,$H$11:$DN$1000,106,FALSE),3)=\"The\",EH82,VLOOKUP(VLOOKUP($G82,$H$11:$DN$1000,106,FALSE),DeclMatrix!$A$2:$F$5,VLOOKUP('Enrollment Form'!$B82,DeclMatrix!$A$8:$B$12,2,FALSE),FALSE))))","v":""},{"$f":"IF($A82=\"\",\"\",IF(VLOOKUP($G82,$H$11:$DN$1000,111,FALSE)=\"\",\"No\",IF(LEFT(VLOOKUP($G82,$H$11:$DN$1000,111,FALSE),3)=\"The\",EI82,VLOOKUP(VLOOKUP($G82,$H$11:$DN$1000,111,FALSE),DeclMatrix!$A$2:$F$5,VLOOKUP('Enrollment Form'!$B82,DeclMatrix!$A$8:$B$12,2,FALSE),FALSE))))","v":""},"",null,"","","","","","","","","","","",""]
["",{"$nulls":5},"","",{"$nulls":18},"","","","",{"$nulls":30},"","","","",{"$nulls":60},"",{"$f":"IF($A83=\"\",\"\",IF(VLOOKUP($G83,$H$11:$DN$1000,96,FALSE)=\"\",\"No\",IF(LEFT(VLOOKUP($G83,$H$11:$DN$1000,96,FALSE),3)=\"The\",EF83,VLOOKUP(VLOOKUP($G83,$H$11:$DN$1000,96,FALSE),DeclMatrix!$A$2:$F$5,VLOOKUP('Enrollment Form'!$B83,DeclMatrix!$A$8:$B$12,2,FALSE),FALSE))))","v":""},{"$f":"IF($A83=\"\",\"\",IF(VLOOKUP($G83,$H$11:$DN$1000,101,FALSE)=\"\",\"No\",IF(LEFT(VLOOKUP($G83,$H$11:$DN$1000,101,FALSE),3)=\"The\",EG83,VLOOKUP(VLOOKUP($G83,$H$11:$DN$1000,101,FALSE),DeclMatrix!$A$2:$F$5,VLOOKUP('Enrollment Form'!$B83,DeclMatrix!$A$8:$B$12,2,FALSE),FALSE))))","v":""},{"$f":"IF($A83=\"\",\"\",IF(VLOOKUP($G83,$H$11:$DN$1000,106,FALSE)=\"\",\"No\",IF(LEFT(VLOOKUP($G83,$H$11:$DN$1000,106,FALSE),3)=\"The\",EH83,VLOOKUP(VLOOKUP($G83,$H$11:$DN$1000,106,FALSE),DeclMatrix!$A$2:$F$5,VLOOKUP('Enrollment Form'!$B83,DeclMatrix!$A$8:$B$12,2,FALSE),FALSE))))","v":""},{"$f":"IF($A83=\"\",\"\",IF(VLOOKUP($G83,$H$11:$DN$1000,111,FALSE)=\"\",\"No\",IF(LEFT(VLOOKUP($G83,$H$11:$DN$1000,111,FALSE),3)=\"The\",EI83,VLOOKUP(VLOOKUP($G83,$H$11:$DN$1000,111,FALSE),DeclMatrix!$A$2:$F$5,VLOOKUP('Enrollment Form'!$B83,DeclMatrix!$A$8:$B$12,2,FALSE),FALSE))))","v":""},"",null,"","","","","","","","","","","",""]
["",{"$nulls":5},"","",{"$nulls":18},"","","","",{"$nulls":30},"","","","",{"$nulls":60},"",{"$f":"IF($A84=\"\",\"\",IF(VLOOKUP($G84,$H$11:$DN$1000,96,FALSE)=\"\",\"No\",IF(LEFT(VLOOKUP($G84,$H$11:$DN$1000,96,FALSE),3)=\"The\",EF84,VLOOKUP(VLOOKUP($G84,$H$11:$DN$1000,96,FALSE),DeclMatrix!$A$2:$F$5,VLOOKUP('Enrollment Form'!$B84,DeclMatrix!$A$8:$B$12,2,FALSE),FALSE))))","v":""},{"$f":"IF($A84=\"\",\"\",IF(VLOOKUP($G84,$H$11:$DN$1000,101,FALSE)=\"\",\"No\",IF(LEFT(VLOOKUP($G84,$H$11:$DN$1000,101,FALSE),3)=\"The\",EG84,VLOOKUP(VLOOKUP($G84,$H$11:$DN$1000,101,FALSE),DeclMatrix!$A$2:$F$5,VLOOKUP('Enrollment Form'!$B84,DeclMatrix!$A$8:$B$12,2,FALSE),FALSE))))","v":""},{"$f":"IF($A84=\"\",\"\",IF(VLOOKUP($G84,$H$11:$DN$1000,106,FALSE)=\"\",\"No\",IF(LEFT(VLOOKUP($G84,$H$11:$DN$1000,106,FALSE),3)=\"The\",EH84,VLOOKUP(VLOOKUP($G84,$H$11:$DN$1000,106,FALSE),DeclMatrix!$A$2:$F$5,VLOOKUP('Enrollment Form'!$B84,DeclMatrix!$A$8:$B$12,2,FALSE),FALSE))))","v":""},{"$f":"IF($A84=\"\",\"\",IF(VLOOKUP($G84,$H$11:$DN$1000,111,FALSE)=\"\",\"No\",IF(LEFT(VLOOKUP($G84,$H$11:$DN$1000,111,FALSE),3)=\"The\",EI84,VLOOKUP(VLOOKUP($G84,$H$11:$DN$1000,111,FALSE),DeclMatrix!$A$2:$F$5,VLOOKUP('Enrollment Form'!$B84,DeclMatrix!$A$8:$B$12,2,FALSE),FALSE))))","v":""},"",null,"","","","","","","","","","","",""]
["",{"$nulls":5},"","",{"$nulls":18},"","","","",{"$nulls":30},"","","","",{"$nulls":60},"",{"$f":"IF($A85=\"\",\"\",IF(VLOOKUP($G85,$H$11:$DN$1000,96,FALSE)=\"\",\"No\",IF(LEFT(VLOOKUP($G85,$H$11:$DN$1000,96,FALSE),3)=\"The\",EF85,VLOOKUP(VLOOKUP($G85,$H$11:$DN$1000,96,FALSE),DeclMatrix!$A$2:$F$5,VLOOKUP('Enrollment Form'!$B85,DeclMatrix!$A$8:$B$12,2,FALSE),FALSE))))","v":""},{"$f":"IF($A85=\"\",\"\",IF(VLOOKUP($G85,$H$11:$DN$1000,101,FALSE)=\"\",\"No\",IF(LEFT(VLOOKUP($G85,$H$11:$DN$1000,101,FALSE),3)=\"The\",EG85,VLOOKUP(VLOOKUP($G85,$H$11:$DN$1000,101,FALSE),DeclMatrix!$A$2:$F$5,VLOOKUP('Enrollment Form'!$B85,DeclMatrix!$A$8:$B$12,2,FALSE),FALSE))))","v":""},{"$f":"IF($A85=\"\",\"\",IF(VLOOKUP($G85,$H$11:$DN$1000,106,FALSE)=\"\",\"No\",IF(LEFT(VLOOKUP($G85,$H$11:$DN$1000,106,FALSE),3)=\"The\",EH85,VLOOKUP(VLOOKUP($G85,$H$11:$DN$1000,106,FALSE),DeclMatrix!$A$2:$F$5,VLOOKUP('Enrollment Form'!$B85,DeclMatrix!$A$8:$B$12,2,FALSE),FALSE))))","v":""},{"$f":"IF($A85=\"\",\"\",IF(VLOOKUP($G85,$H$11:$DN$1000,111,FALSE)=\"\",\"No\",IF(LEFT(VLOOKUP($G85,$H$11:$DN$1000,111,FALSE),3)=\"The\",EI85,VLOOKUP(VLOOKUP($G85,$H$11:$DN$1000,111,FALSE),DeclMatrix!$A$2:$F$5,VLOOKUP('Enrollment Form'!$B85,DeclMatrix!$A$8:$B$12,2,FALSE),FALSE))))","v":""},"",null,"","","","","","","","","","","",""]
["",{"$nulls":5},"","",{"$nulls":18},"","","","",{"$nulls":30},"","","","",{"$nulls":60},"",{"$f":"IF($A86=\"\",\"\",IF(VLOOKUP($G86,$H$11:$DN$1000,96,FALSE)=\"\",\"No\",IF(LEFT(VLOOKUP($G86,$H$11:$DN$1000,96,FALSE),3)=\"The\",EF86,VLOOKUP(VLOOKUP($G86,$H$11:$DN$1000,96,FALSE),DeclMatrix!$A$2:$F$5,VLOOKUP('Enrollment Form'!$B86,DeclMatrix!$A$8:$B$12,2,FALSE),FALSE))))","v":""},{"$f":"IF($A86=\"\",\"\",IF(VLOOKUP($G86,$H$11:$DN$1000,101,FALSE)=\"\",\"No\",IF(LEFT(VLOOKUP($G86,$H$11:$DN$1000,101,FALSE),3)=\"The\",EG86,VLOOKUP(VLOOKUP($G86,$H$11:$DN$1000,101,FALSE),DeclMatrix!$A$2:$F$5,VLOOKUP('Enrollment Form'!$B86,DeclMatrix!$A$8:$B$12,2,FALSE),FALSE))))","v":""},{"$f":"IF($A86=\"\",\"\",IF(VLOOKUP($G86,$H$11:$DN$1000,106,FALSE)=\"\",\"No\",IF(LEFT(VLOOKUP($G86,$H$11:$DN$1000,106,FALSE),3)=\"The\",EH86,VLOOKUP(VLOOKUP($G86,$H$11:$DN$1000,106,FALSE),DeclMatrix!$A$2:$F$5,VLOOKUP('Enrollment Form'!$B86,DeclMatrix!$A$8:$B$12,2,FALSE),FALSE))))","v":""},{"$f":"IF($A86=\"\",\"\",IF(VLOOKUP($G86,$H$11:$DN$1000,111,FALSE)=\"\",\"No\",IF(LEFT(VLOOKUP($G86,$H$11:$DN$1000,111,FALSE),3)=\"The\",EI86,VLOOKUP(VLOOKUP($G86,$H$11:$DN$1000,111,FALSE),DeclMatrix!$A$2:$F$5,VLOOKUP('Enrollment Form'!$B86,DeclMatrix!$A$8:$B$12,2,FALSE),FALSE))))","v":""},"",null,"","","","","","","","","","","",""]
["",{"$nulls":5},"","",{"$nulls":18},"","","","",{"$nulls":30},"","","","",{"$nulls":60},"",{"$f":"IF($A87=\"\",\"\",IF(VLOOKUP($G87,$H$11:$DN$1000,96,FALSE)=\"\",\"No\",IF(LEFT(VLOOKUP($G87,$H$11:$DN$1000,96,FALSE),3)=\"The\",EF87,VLOOKUP(VLOOKUP($G87,$H$11:$DN$1000,96,FALSE),DeclMatrix!$A$2:$F$5,VLOOKUP('Enrollment Form'!$B87,DeclMatrix!$A$8:$B$12,2,FALSE),FALSE))))","v":""},{"$f":"IF($A87=\"\",\"\",IF(VLOOKUP($G87,$H$11:$DN$1000,101,FALSE)=\"\",\"No\",IF(LEFT(VLOOKUP($G87,$H$11:$DN$1000,101,FALSE),3)=\"The\",EG87,VLOOKUP(VLOOKUP($G87,$H$11:$DN$1000,101,FALSE),DeclMatrix!$A$2:$F$5,VLOOKUP('Enrollment Form'!$B87,DeclMatrix!$A$8:$B$12,2,FALSE),FALSE))))","v":""},{"$f":"IF($A87=\"\",\"\",IF(VLOOKUP($G87,$H$11:$DN$1000,106,FALSE)=\"\",\"No\",IF(LEFT(VLOOKUP($G87,$H$11:$DN$1000,106,FALSE),3)=\"The\",EH87,VLOOKUP(VLOOKUP($G87,$H$11:$DN$1000,106,FALSE),DeclMatrix!$A$2:$F$5,VLOOKUP('Enrollment Form'!$B87,DeclMatrix!$A$8:$B$12,2,FALSE),FALSE))))","v":""},{"$f":"IF($A87=\"\",\"\",IF(VLOOKUP($G87,$H$11:$DN$1000,111,FALSE)=\"\",\"No\",IF(LEFT(VLOOKUP($G87,$H$11:$DN$1000,111,FALSE),3)=\"The\",EI87,VLOOKUP(VLOOKUP($G87,$H$11:$DN$1000,111,FALSE),DeclMatrix!$A$2:$F$5,VLOOKUP('Enrollment Form'!$B87,DeclMatrix!$A$8:$B$12,2,FALSE),FALSE))))","v":""},"",null,"","","","","","","","","","","",""]
["",{"$nulls":5},"","",{"$nulls":18},"","","","",{"$nulls":30},"","","","",{"$nulls":60},"",{"$f":"IF($A88=\"\",\"\",IF(VLOOKUP($G88,$H$11:$DN$1000,96,FALSE)=\"\",\"No\",IF(LEFT(VLOOKUP($G88,$H$11:$DN$1000,96,FALSE),3)=\"The\",EF88,VLOOKUP(VLOOKUP($G88,$H$11:$DN$1000,96,FALSE),DeclMatrix!$A$2:$F$5,VLOOKUP('Enrollment Form'!$B88,DeclMatrix!$A$8:$B$12,2,FALSE),FALSE))))","v":""},{"$f":"IF($A88=\"\",\"\",IF(VLOOKUP($G88,$H$11:$DN$1000,101,FALSE)=\"\",\"No\",IF(LEFT(VLOOKUP($G88,$H$11:$DN$1000,101,FALSE),3)=\"The\",EG88,VLOOKUP(VLOOKUP($G88,$H$11:$DN$1000,101,FALSE),DeclMatrix!$A$2:$F$5,VLOOKUP('Enrollment Form'!$B88,DeclMatrix!$A$8:$B$12,2,FALSE),FALSE))))","v":""},{"$f":"IF($A88=\"\",\"\",IF(VLOOKUP($G88,$H$11:$DN$1000,106,FALSE)=\"\",\"No\",IF(LEFT(VLOOKUP($G88,$H$11:$DN$1000,106,FALSE),3)=\"The\",EH88,VLOOKUP(VLOOKUP($G88,$H$11:$DN$1000,106,FALSE),DeclMatrix!$A$2:$F$5,VLOOKUP('Enrollment Form'!$B88,DeclMatrix!$A$8:$B$12,2,FALSE),FALSE))))","v":""},{"$f":"IF($A88=\"\",\"\",IF(VLOOKUP($G88,$H$11:$DN$1000,111,FALSE)=\"\",\"No\",IF(LEFT(VLOOKUP($G88,$H$11:$DN$1000,111,FALSE),3)=\"The\",EI88,VLOOKUP(VLOOKUP($G88,$H$11:$DN$1000,111,FALSE),DeclMatrix!$A$2:$F$5,VLOOKUP('Enrollment Form'!$B88,DeclMatrix!$A$8:$B$12,2,FALSE),FALSE))))","v":""},"",null,"","","","","","","","","","","",""]
["",{"$nulls":5},"","",{"$nulls":18},"","","","",{"$nulls":30},"","","","",{"$nulls":60},"",{"$f":"IF($A89=\"\",\"\",IF(VLOOKUP($G89,$H$11:$DN$1000,96,FALSE)=\"\",\"No\",IF(LEFT(VLOOKUP($G89,$H$11:$DN$1000,96,FALSE),3)=\"The\",EF89,VLOOKUP(VLOOKUP($G89,$H$11:$DN$1000,96,FALSE),DeclMatrix!$A$2:$F$5,VLOOKUP('Enrollment Form'!$B89,DeclMatrix!$A$8:$B$12,2,FALSE),FALSE))))","v":""},{"$f":"IF($A89=\"\",\"\",IF(VLOOKUP($G89,$H$11:$DN$1000,101,FALSE)=\"\",\"No\",IF(LEFT(VLOOKUP($G89,$H$11:$DN$1000,101,FALSE),3)=\"The\",EG89,VLOOKUP(VLOOKUP($G89,$H$11:$DN$1000,101,FALSE),DeclMatrix!$A$2:$F$5,VLOOKUP('Enrollment Form'!$B89,DeclMatrix!$A$8:$B$12,2,FALSE),FALSE))))","v":""},{"$f":"IF($A89=\"\",\"\",IF(VLOOKUP($G89,$H$11:$DN$1000,106,FALSE)=\"\",\"No\",IF(LEFT(VLOOKUP($G89,$H$11:$DN$1000,106,FALSE),3)=\"The\",EH89,VLOOKUP(VLOOKUP($G89,$H$11:$DN$1000,106,FALSE),DeclMatrix!$A$2:$F$5,VLOOKUP('Enrollment Form'!$B89,DeclMatrix!$A$8:$B$12,2,FALSE),FALSE))))","v":""},{"$f":"IF($A89=\"\",\"\",IF(VLOOKUP($G89,$H$11:$DN$1000,111,FALSE)=\"\",\"No\",IF(LEFT(VLOOKUP($G89,$H$11:$DN$1000,111,FALSE),3)=\"The\",EI89,VLOOKUP(VLOOKUP($G89,$H$11:$DN$1000,111,FALSE),DeclMatrix!$A$2:$F$5,VLOOKUP('Enrollment Form'!$B89,DeclMatrix!$A$8:$B$12,2,FALSE),FALSE))))","v":""},"",null,"","","","","","","","","","","",""]
["",{"$nulls":5},"","",{"$nulls":18},"","","","",{"$nulls":30},"","","","",{"$nulls":60},"",{"$f":"IF($A90=\"\",\"\",IF(VLOOKUP($G90,$H$11:$DN$1000,96,FALSE)=\"\",\"No\",IF(LEFT(VLOOKUP($G90,$H$11:$DN$1000,96,FALSE),3)=\"The\",EF90,VLOOKUP(VLOOKUP($G90,$H$11:$DN$1000,96,FALSE),DeclMatrix!$A$2:$F$5,VLOOKUP('Enrollment Form'!$B90,DeclMatrix!$A$8:$B$12,2,FALSE),FALSE))))","v":""},{"$f":"IF($A90=\"\",\"\",IF(VLOOKUP($G90,$H$11:$DN$1000,101,FALSE)=\"\",\"No\",IF(LEFT(VLOOKUP($G90,$H$11:$DN$1000,101,FALSE),3)=\"The\",EG90,VLOOKUP(VLOOKUP($G90,$H$11:$DN$1000,101,FALSE),DeclMatrix!$A$2:$F$5,VLOOKUP('Enrollment Form'!$B90,DeclMatrix!$A$8:$B$12,2,FALSE),FALSE))))","v":""},{"$f":"IF($A90=\"\",\"\",IF(VLOOKUP($G90,$H$11:$DN$1000,106,FALSE)=\"\",\"No\",IF(LEFT(VLOOKUP($G90,$H$11:$DN$1000,106,FALSE),3)=\"The\",EH90,VLOOKUP(VLOOKUP($G90,$H$11:$DN$1000,106,FALSE),DeclMatrix!$A$2:$F$5,VLOOKUP('Enrollment Form'!$B90,DeclMatrix!$A$8:$B$12,2,FALSE),FALSE))))","v":""},{"$f":"IF($A90=\"\",\"\",IF(VLOOKUP($G90,$H$11:$DN$1000,111,FALSE)=\"\",\"No\",IF(LEFT(VLOOKUP($G90,$H$11:$DN$1000,111,FALSE),3)=\"The\",EI90,VLOOKUP(VLOOKUP($G90,$H$11:$DN$1000,111,FALSE),DeclMatrix!$A$2:$F$5,VLOOKUP('Enrollment Form'!$B90,DeclMatrix!$A$8:$B$12,2,FALSE),FALSE))))","v":""},"",null,"","","","","","","","","","","",""]
["",{"$nulls":5},"","",{"$nulls":18},"","","","",{"$nulls":30},"","","","",{"$nulls":60},"",{"$f":"IF($A91=\"\",\"\",IF(VLOOKUP($G91,$H$11:$DN$1000,96,FALSE)=\"\",\"No\",IF(LEFT(VLOOKUP($G91,$H$11:$DN$1000,96,FALSE),3)=\"The\",EF91,VLOOKUP(VLOOKUP($G91,$H$11:$DN$1000,96,FALSE),DeclMatrix!$A$2:$F$5,VLOOKUP('Enrollment Form'!$B91,DeclMatrix!$A$8:$B$12,2,FALSE),FALSE))))","v":""},{"$f":"IF($A91=\"\",\"\",IF(VLOOKUP($G91,$H$11:$DN$1000,101,FALSE)=\"\",\"No\",IF(LEFT(VLOOKUP($G91,$H$11:$DN$1000,101,FALSE),3)=\"The\",EG91,VLOOKUP(VLOOKUP($G91,$H$11:$DN$1000,101,FALSE),DeclMatrix!$A$2:$F$5,VLOOKUP('Enrollment Form'!$B91,DeclMatrix!$A$8:$B$12,2,FALSE),FALSE))))","v":""},{"$f":"IF($A91=\"\",\"\",IF(VLOOKUP($G91,$H$11:$DN$1000,106,FALSE)=\"\",\"No\",IF(LEFT(VLOOKUP($G91,$H$11:$DN$1000,106,FALSE),3)=\"The\",EH91,VLOOKUP(VLOOKUP($G91,$H$11:$DN$1000,106,FALSE),DeclMatrix!$A$2:$F$5,VLOOKUP('Enrollment Form'!$B91,DeclMatrix!$A$8:$B$12,2,FALSE),FALSE))))","v":""},{"$f":"IF($A91=\"\",\"\",IF(VLOOKUP($G91,$H$11:$DN$1000,111,FALSE)=\"\",\"No\",IF(LEFT(VLOOKUP($G91,$H$11:$DN$1000,111,FALSE),3)=\"The\",EI91,VLOOKUP(VLOOKUP($G91,$H$11:$DN$1000,111,FALSE),DeclMatrix!$A$2:$F$5,VLOOKUP('Enrollment Form'!$B91,DeclMatrix!$A$8:$B$12,2,FALSE),FALSE))))","v":""},"",null,"","","","","","","","","","","",""]
["",{"$nulls":5},"","",{"$nulls":18},"","","","",{"$nulls":30},"","","","",{"$nulls":60},"",{"$f":"IF($A92=\"\",\"\",IF(VLOOKUP($G92,$H$11:$DN$1000,96,FALSE)=\"\",\"No\",IF(LEFT(VLOOKUP($G92,$H$11:$DN$1000,96,FALSE),3)=\"The\",EF92,VLOOKUP(VLOOKUP($G92,$H$11:$DN$1000,96,FALSE),DeclMatrix!$A$2:$F$5,VLOOKUP('Enrollment Form'!$B92,DeclMatrix!$A$8:$B$12,2,FALSE),FALSE))))","v":""},{"$f":"IF($A92=\"\",\"\",IF(VLOOKUP($G92,$H$11:$DN$1000,101,FALSE)=\"\",\"No\",IF(LEFT(VLOOKUP($G92,$H$11:$DN$1000,101,FALSE),3)=\"The\",EG92,VLOOKUP(VLOOKUP($G92,$H$11:$DN$1000,101,FALSE),DeclMatrix!$A$2:$F$5,VLOOKUP('Enrollment Form'!$B92,DeclMatrix!$A$8:$B$12,2,FALSE),FALSE))))","v":""},{"$f":"IF($A92=\"\",\"\",IF(VLOOKUP($G92,$H$11:$DN$1000,106,FALSE)=\"\",\"No\",IF(LEFT(VLOOKUP($G92,$H$11:$DN$1000,106,FALSE),3)=\"The\",EH92,VLOOKUP(VLOOKUP($G92,$H$11:$DN$1000,106,FALSE),DeclMatrix!$A$2:$F$5,VLOOKUP('Enrollment Form'!$B92,DeclMatrix!$A$8:$B$12,2,FALSE),FALSE))))","v":""},{"$f":"IF($A92=\"\",\"\",IF(VLOOKUP($G92,$H$11:$DN$1000,111,FALSE)=\"\",\"No\",IF(LEFT(VLOOKUP($G92,$H$11:$DN$1000,111,FALSE),3)=\"The\",EI92,VLOOKUP(VLOOKUP($G92,$H$11:$DN$1000,111,FALSE),DeclMatrix!$A$2:$F$5,VLOOKUP('Enrollment Form'!$B92,DeclMatrix!$A$8:$B$12,2,FALSE),FALSE))))","v":""},"",null,"","","","","","","","","","","",""]
["",{"$nulls":5},"","",{"$nulls":18},"","","","",{"$nulls":30},"","","","",{"$nulls":60},"",{"$f":"IF($A93=\"\",\"\",IF(VLOOKUP($G93,$H$11:$DN$1000,96,FALSE)=\"\",\"No\",IF(LEFT(VLOOKUP($G93,$H$11:$DN$1000,96,FALSE),3)=\"The\",EF93,VLOOKUP(VLOOKUP($G93,$H$11:$DN$1000,96,FALSE),DeclMatrix!$A$2:$F$5,VLOOKUP('Enrollment Form'!$B93,DeclMatrix!$A$8:$B$12,2,FALSE),FALSE))))","v":""},{"$f":"IF($A93=\"\",\"\",IF(VLOOKUP($G93,$H$11:$DN$1000,101,FALSE)=\"\",\"No\",IF(LEFT(VLOOKUP($G93,$H$11:$DN$1000,101,FALSE),3)=\"The\",EG93,VLOOKUP(VLOOKUP($G93,$H$11:$DN$1000,101,FALSE),DeclMatrix!$A$2:$F$5,VLOOKUP('Enrollment Form'!$B93,DeclMatrix!$A$8:$B$12,2,FALSE),FALSE))))","v":""},{"$f":"IF($A93=\"\",\"\",IF(VLOOKUP($G93,$H$11:$DN$1000,106,FALSE)=\"\",\"No\",IF(LEFT(VLOOKUP($G93,$H$11:$DN$1000,106,FALSE),3)=\"The\",EH93,VLOOKUP(VLOOKUP($G93,$H$11:$DN$1000,106,FALSE),DeclMatrix!$A$2:$F$5,VLOOKUP('Enrollment Form'!$B93,DeclMatrix!$A$8:$B$12,2,FALSE),FALSE))))","v":""},{"$f":"IF($A93=\"\",\"\",IF(VLOOKUP($G93,$H$11:$DN$1000,111,FALSE)=\"\",\"No\",IF(LEFT(VLOOKUP($G93,$H$11:$DN$1000,111,FALSE),3)=\"The\",EI93,VLOOKUP(VLOOKUP($G93,$H$11:$DN$1000,111,FALSE),DeclMatrix!$A$2:$F$5,VLOOKUP('Enrollment Form'!$B93,DeclMatrix!$A$8:$B$12,2,FALSE),FALSE))))","v":""},"",null,"","","","","","","","","","","",""]
["",{"$nulls":5},"","",{"$nulls":18},"","","","",{"$nulls":30},"","","","",{"$nulls":60},"",{"$f":"IF($A94=\"\",\"\",IF(VLOOKUP($G94,$H$11:$DN$1000,96,FALSE)=\"\",\"No\",IF(LEFT(VLOOKUP($G94,$H$11:$DN$1000,96,FALSE),3)=\"The\",EF94,VLOOKUP(VLOOKUP($G94,$H$11:$DN$1000,96,FALSE),DeclMatrix!$A$2:$F$5,VLOOKUP('Enrollment Form'!$B94,DeclMatrix!$A$8:$B$12,2,FALSE),FALSE))))","v":""},{"$f":"IF($A94=\"\",\"\",IF(VLOOKUP($G94,$H$11:$DN$1000,101,FALSE)=\"\",\"No\",IF(LEFT(VLOOKUP($G94,$H$11:$DN$1000,101,FALSE),3)=\"The\",EG94,VLOOKUP(VLOOKUP($G94,$H$11:$DN$1000,101,FALSE),DeclMatrix!$A$2:$F$5,VLOOKUP('Enrollment Form'!$B94,DeclMatrix!$A$8:$B$12,2,FALSE),FALSE))))","v":""},{"$f":"IF($A94=\"\",\"\",IF(VLOOKUP($G94,$H$11:$DN$1000,106,FALSE)=\"\",\"No\",IF(LEFT(VLOOKUP($G94,$H$11:$DN$1000,106,FALSE),3)=\"The\",EH94,VLOOKUP(VLOOKUP($G94,$H$11:$DN$1000,106,FALSE),DeclMatrix!$A$2:$F$5,VLOOKUP('Enrollment Form'!$B94,DeclMatrix!$A$8:$B$12,2,FALSE),FALSE))))","v":""},{"$f":"IF($A94=\"\",\"\",IF(VLOOKUP($G94,$H$11:$DN$1000,111,FALSE)=\"\",\"No\",IF(LEFT(VLOOKUP($G94,$H$11:$DN$1000,111,FALSE),3)=\"The\",EI94,VLOOKUP(VLOOKUP($G94,$H$11:$DN$1000,111,FALSE),DeclMatrix!$A$2:$F$5,VLOOKUP('Enrollment Form'!$B94,DeclMatrix!$A$8:$B$12,2,FALSE),FALSE))))","v":""},"",null,"","","","","","","","","","","",""]
["",{"$nulls":5},"","",{"$nulls":18},"","","","",{"$nulls":30},"","","","",{"$nulls":60},"",{"$f":"IF($A95=\"\",\"\",IF(VLOOKUP($G95,$H$11:$DN$1000,96,FALSE)=\"\",\"No\",IF(LEFT(VLOOKUP($G95,$H$11:$DN$1000,96,FALSE),3)=\"The\",EF95,VLOOKUP(VLOOKUP($G95,$H$11:$DN$1000,96,FALSE),DeclMatrix!$A$2:$F$5,VLOOKUP('Enrollment Form'!$B95,DeclMatrix!$A$8:$B$12,2,FALSE),FALSE))))","v":""},{"$f":"IF($A95=\"\",\"\",IF(VLOOKUP($G95,$H$11:$DN$1000,101,FALSE)=\"\",\"No\",IF(LEFT(VLOOKUP($G95,$H$11:$DN$1000,101,FALSE),3)=\"The\",EG95,VLOOKUP(VLOOKUP($G95,$H$11:$DN$1000,101,FALSE),DeclMatrix!$A$2:$F$5,VLOOKUP('Enrollment Form'!$B95,DeclMatrix!$A$8:$B$12,2,FALSE),FALSE))))","v":""},{"$f":"IF($A95=\"\",\"\",IF(VLOOKUP($G95,$H$11:$DN$1000,106,FALSE)=\"\",\"No\",IF(LEFT(VLOOKUP($G95,$H$11:$DN$1000,106,FALSE),3)=\"The\",EH95,VLOOKUP(VLOOKUP($G95,$H$11:$DN$1000,106,FALSE),DeclMatrix!$A$2:$F$5,VLOOKUP('Enrollment Form'!$B95,DeclMatrix!$A$8:$B$12,2,FALSE),FALSE))))","v":""},{"$f":"IF($A95=\"\",\"\",IF(VLOOKUP($G95,$H$11:$DN$1000,111,FALSE)=\"\",\"No\",IF(LEFT(VLOOKUP($G95,$H$11:$DN$1000,111,FALSE),3)=\"The\",EI95,VLOOKUP(VLOOKUP($G95,$H$11:$DN$1000,111,FALSE),DeclMatrix!$A$2:$F$5,VLOOKUP('Enrollment Form'!$B95,DeclMatrix!$A$8:$B$12,2,FALSE),FALSE))))","v":""},"",null,"","","","","","","","","","","",""]
["",{"$nulls":5},"","",{"$nulls":18},"","","","",{"$nulls":30},"","","","",{"$nulls":60},"",{"$f":"IF($A96=\"\",\"\",IF(VLOOKUP($G96,$H$11:$DN$1000,96,FALSE)=\"\",\"No\",IF(LEFT(VLOOKUP($G96,$H$11:$DN$1000,96,FALSE),3)=\"The\",EF96,VLOOKUP(VLOOKUP($G96,$H$11:$DN$1000,96,FALSE),DeclMatrix!$A$2:$F$5,VLOOKUP('Enrollment Form'!$B96,DeclMatrix!$A$8:$B$12,2,FALSE),FALSE))))","v":""},{"$f":"IF($A96=\"\",\"\",IF(VLOOKUP($G96,$H$11:$DN$1000,101,FALSE)=\"\",\"No\",IF(LEFT(VLOOKUP($G96,$H$11:$DN$1000,101,FALSE),3)=\"The\",EG96,VLOOKUP(VLOOKUP($G96,$H$11:$DN$1000,101,FALSE),DeclMatrix!$A$2:$F$5,VLOOKUP('Enrollment Form'!$B96,DeclMatrix!$A$8:$B$12,2,FALSE),FALSE))))","v":""},{"$f":"IF($A96=\"\",\"\",IF(VLOOKUP($G96,$H$11:$DN$1000,106,FALSE)=\"\",\"No\",IF(LEFT(VLOOKUP($G96,$H$11:$DN$1000,106,FALSE),3)=\"The\",EH96,VLOOKUP(VLOOKUP($G96,$H$11:$DN$1000,106,FALSE),DeclMatrix!$A$2:$F$5,VLOOKUP('Enrollment Form'!$B96,DeclMatrix!$A$8:$B$12,2,FALSE),FALSE))))","v":""},{"$f":"IF($A96=\"\",\"\",IF(VLOOKUP($G96,$H$11:$DN$1000,111,FALSE)=\"\",\"No\",IF(LEFT(VLOOKUP($G96,$H$11:$DN$1000,111,FALSE),3)=\"The\",EI96,VLOOKUP(VLOOKUP($G96,$H$11:$DN$1000,111,FALSE),DeclMatrix!$A$2:$F$5,VLOOKUP('Enrollment Form'!$B96,DeclMatrix!$A$8:$B$12,2,FALSE),FALSE))))","v":""},"",null,"","","","","","","","","","","",""]
["",{"$nulls":5},"","",{"$nulls":18},"","","","",{"$nulls":30},"","","","",{"$nulls":60},"",{"$f":"IF($A97=\"\",\"\",IF(VLOOKUP($G97,$H$11:$DN$1000,96,FALSE)=\"\",\"No\",IF(LEFT(VLOOKUP($G97,$H$11:$DN$1000,96,FALSE),3)=\"The\",EF97,VLOOKUP(VLOOKUP($G97,$H$11:$DN$1000,96,FALSE),DeclMatrix!$A$2:$F$5,VLOOKUP('Enrollment Form'!$B97,DeclMatrix!$A$8:$B$12,2,FALSE),FALSE))))","v":""},{"$f":"IF($A97=\"\",\"\",IF(VLOOKUP($G97,$H$11:$DN$1000,101,FALSE)=\"\",\"No\",IF(LEFT(VLOOKUP($G97,$H$11:$DN$1000,101,FALSE),3)=\"The\",EG97,VLOOKUP(VLOOKUP($G97,$H$11:$DN$1000,101,FALSE),DeclMatrix!$A$2:$F$5,VLOOKUP('Enrollment Form'!$B97,DeclMatrix!$A$8:$B$12,2,FALSE),FALSE))))","v":""},{"$f":"IF($A97=\"\",\"\",IF(VLOOKUP($G97,$H$11:$DN$1000,106,FALSE)=\"\",\"No\",IF(LEFT(VLOOKUP($G97,$H$11:$DN$1000,106,FALSE),3)=\"The\",EH97,VLOOKUP(VLOOKUP($G97,$H$11:$DN$1000,106,FALSE),DeclMatrix!$A$2:$F$5,VLOOKUP('Enrollment Form'!$B97,DeclMatrix!$A$8:$B$12,2,FALSE),FALSE))))","v":""},{"$f":"IF($A97=\"\",\"\",IF(VLOOKUP($G97,$H$11:$DN$1000,111,FALSE)=\"\",\"No\",IF(LEFT(VLOOKUP($G97,$H$11:$DN$1000,111,FALSE),3)=\"The\",EI97,VLOOKUP(VLOOKUP($G97,$H$11:$DN$1000,111,FALSE),DeclMatrix!$A$2:$F$5,VLOOKUP('Enrollment Form'!$B97,DeclMatrix!$A$8:$B$12,2,FALSE),FALSE))))","v":""},"",null,"","","","","","","","","","","",""]
["",{"$nulls":5},"","",{"$nulls":18},"","","","",{"$nulls":30},"","","","",{"$nulls":60},"",{"$f":"IF($A98=\"\",\"\",IF(VLOOKUP($G98,$H$11:$DN$1000,96,FALSE)=\"\",\"No\",IF(LEFT(VLOOKUP($G98,$H$11:$DN$1000,96,FALSE),3)=\"The\",EF98,VLOOKUP(VLOOKUP($G98,$H$11:$DN$1000,96,FALSE),DeclMatrix!$A$2:$F$5,VLOOKUP('Enrollment Form'!$B98,DeclMatrix!$A$8:$B$12,2,FALSE),FALSE))))","v":""},{"$f":"IF($A98=\"\",\"\",IF(VLOOKUP($G98,$H$11:$DN$1000,101,FALSE)=\"\",\"No\",IF(LEFT(VLOOKUP($G98,$H$11:$DN$1000,101,FALSE),3)=\"The\",EG98,VLOOKUP(VLOOKUP($G98,$H$11:$DN$1000,101,FALSE),DeclMatrix!$A$2:$F$5,VLOOKUP('Enrollment Form'!$B98,DeclMatrix!$A$8:$B$12,2,FALSE),FALSE))))","v":""},{"$f":"IF($A98=\"\",\"\",IF(VLOOKUP($G98,$H$11:$DN$1000,106,FALSE)=\"\",\"No\",IF(LEFT(VLOOKUP($G98,$H$11:$DN$1000,106,FALSE),3)=\"The\",EH98,VLOOKUP(VLOOKUP($G98,$H$11:$DN$1000,106,FALSE),DeclMatrix!$A$2:$F$5,VLOOKUP('Enrollment Form'!$B98,DeclMatrix!$A$8:$B$12,2,FALSE),FALSE))))","v":""},{"$f":"IF($A98=\"\",\"\",IF(VLOOKUP($G98,$H$11:$DN$1000,111,FALSE)=\"\",\"No\",IF(LEFT(VLOOKUP($G98,$H$11:$DN$1000,111,FALSE),3)=\"The\",EI98,VLOOKUP(VLOOKUP($G98,$H$11:$DN$1000,111,FALSE),DeclMatrix!$A$2:$F$5,VLOOKUP('Enrollment Form'!$B98,DeclMatrix!$A$8:$B$12,2,FALSE),FALSE))))","v":""},"",null,"","","","","","","","","","","",""]
["",{"$nulls":5},"","",{"$nulls":18},"","","","",{"$nulls":30},"","","","",{"$nulls":60},"",{"$f":"IF($A99=\"\",\"\",IF(VLOOKUP($G99,$H$11:$DN$1000,96,FALSE)=\"\",\"No\",IF(LEFT(VLOOKUP($G99,$H$11:$DN$1000,96,FALSE),3)=\"The\",EF99,VLOOKUP(VLOOKUP($G99,$H$11:$DN$1000,96,FALSE),DeclMatrix!$A$2:$F$5,VLOOKUP('Enrollment Form'!$B99,DeclMatrix!$A$8:$B$12,2,FALSE),FALSE))))","v":""},{"$f":"IF($A99=\"\",\"\",IF(VLOOKUP($G99,$H$11:$DN$1000,101,FALSE)=\"\",\"No\",IF(LEFT(VLOOKUP($G99,$H$11:$DN$1000,101,FALSE),3)=\"The\",EG99,VLOOKUP(VLOOKUP($G99,$H$11:$DN$1000,101,FALSE),DeclMatrix!$A$2:$F$5,VLOOKUP('Enrollment Form'!$B99,DeclMatrix!$A$8:$B$12,2,FALSE),FALSE))))","v":""},{"$f":"IF($A99=\"\",\"\",IF(VLOOKUP($G99,$H$11:$DN$1000,106,FALSE)=\"\",\"No\",IF(LEFT(VLOOKUP($G99,$H$11:$DN$1000,106,FALSE),3)=\"The\",EH99,VLOOKUP(VLOOKUP($G99,$H$11:$DN$1000,106,FALSE),DeclMatrix!$A$2:$F$5,VLOOKUP('Enrollment Form'!$B99,DeclMatrix!$A$8:$B$12,2,FALSE),FALSE))))","v":""},{"$f":"IF($A99=\"\",\"\",IF(VLOOKUP($G99,$H$11:$DN$1000,111,FALSE)=\"\",\"No\",IF(LEFT(VLOOKUP($G99,$H$11:$DN$1000,111,FALSE),3)=\"The\",EI99,VLOOKUP(VLOOKUP($G99,$H$11:$DN$1000,111,FALSE),DeclMatrix!$A$2:$F$5,VLOOKUP('Enrollment Form'!$B99,DeclMatrix!$A$8:$B$12,2,FALSE),FALSE))))","v":""},"",null,"","","","","","","","","","","",""]
["",{"$nulls":5},"","",{"$nulls":18},"","","","",{"$nulls":30},"","","","",{"$nulls":60},"",{"$f":"IF($A100=\"\",\"\",IF(VLOOKUP($G100,$H$11:$DN$1000,96,FALSE)=\"\",\"No\",IF(LEFT(VLOOKUP($G100,$H$11:$DN$1000,96,FALSE),3)=\"The\",EF100,VLOOKUP(VLOOKUP($G100,$H$11:$DN$1000,96,FALSE),DeclMatrix!$A$2:$F$5,VLOOKUP('Enrollment Form'!$B100,DeclMatrix!$A$8:$B$12,2,FALSE),FALSE))))","v":""},{"$f":"IF($A100=\"\",\"\",IF(VLOOKUP($G100,$H$11:$DN$1000,101,FALSE)=\"\",\"No\",IF(LEFT(VLOOKUP($G100,$H$11:$DN$1000,101,FALSE),3)=\"The\",EG100,VLOOKUP(VLOOKUP($G100,$H$11:$DN$1000,101,FALSE),DeclMatrix!$A$2:$F$5,VLOOKUP('Enrollment Form'!$B100,DeclMatrix!$A$8:$B$12,2,FALSE),FALSE))))","v":""},{"$f":"IF($A100=\"\",\"\",IF(VLOOKUP($G100,$H$11:$DN$1000,106,FALSE)=\"\",\"No\",IF(LEFT(VLOOKUP($G100,$H$11:$DN$1000,106,FALSE),3)=\"The\",EH100,VLOOKUP(VLOOKUP($G100,$H$11:$DN$1000,106,FALSE),DeclMatrix!$A$2:$F$5,VLOOKUP('Enrollment Form'!$B100,DeclMatrix!$A$8:$B$12,2,FALSE),FALSE))))","v":""},{"$f":"IF($A100=\"\",\"\",IF(VLOOKUP($G100,$H$11:$DN$1000,111,FALSE)=\"\",\"No\",IF(LEFT(VLOOKUP($G100,$H$11:$DN$1000,111,FALSE),3)=\"The\",EI100,VLOOKUP(VLOOKUP($G100,$H$11:$DN$1000,111,FALSE),DeclMatrix!$A$2:$F$5,VLOOKUP('Enrollment Form'!$B100,DeclMatrix!$A$8:$B$12,2,FALSE),FALSE))))","v":""},"",null,"","","","","","","","","","","",""]
["",{"$nulls":5},"","",{"$nulls":18},"","","","",{"$nulls":30},"","","","",{"$nulls":60},"",{"$f":"IF($A101=\"\",\"\",IF(VLOOKUP($G101,$H$11:$DN$1000,96,FALSE)=\"\",\"No\",IF(LEFT(VLOOKUP($G101,$H$11:$DN$1000,96,FALSE),3)=\"The\",EF101,VLOOKUP(VLOOKUP($G101,$H$11:$DN$1000,96,FALSE),DeclMatrix!$A$2:$F$5,VLOOKUP('Enrollment Form'!$B101,DeclMatrix!$A$8:$B$12,2,FALSE),FALSE))))","v":""},{"$f":"IF($A101=\"\",\"\",IF(VLOOKUP($G101,$H$11:$DN$1000,101,FALSE)=\"\",\"No\",IF(LEFT(VLOOKUP($G101,$H$11:$DN$1000,101,FALSE),3)=\"The\",EG101,VLOOKUP(VLOOKUP($G101,$H$11:$DN$1000,101,FALSE),DeclMatrix!$A$2:$F$5,VLOOKUP('Enrollment Form'!$B101,DeclMatrix!$A$8:$B$12,2,FALSE),FALSE))))","v":""},{"$f":"IF($A101=\"\",\"\",IF(VLOOKUP($G101,$H$11:$DN$1000,106,FALSE)=\"\",\"No\",IF(LEFT(VLOOKUP($G101,$H$11:$DN$1000,106,FALSE),3)=\"The\",EH101,VLOOKUP(VLOOKUP($G101,$H$11:$DN$1000,106,FALSE),DeclMatrix!$A$2:$F$5,VLOOKUP('Enrollment Form'!$B101,DeclMatrix!$A$8:$B$12,2,FALSE),FALSE))))","v":""},{"$f":"IF($A101=\"\",\"\",IF(VLOOKUP($G101,$H$11:$DN$1000,111,FALSE)=\"\",\"No\",IF(LEFT(VLOOKUP($G101,$H$11:$DN$1000,111,FALSE),3)=\"The\",EI101,VLOOKUP(VLOOKUP($G101,$H$11:$DN$1000,111,FALSE),DeclMatrix!$A$2:$F$5,VLOOKUP('Enrollment Form'!$B101,DeclMatrix!$A$8:$B$12,2,FALSE),FALSE))))","v":""},"",null,"","","","","","","","","","","",""]
["",{"$nulls":5},"","",{"$nulls":18},"","","","",{"$nulls":30},"","","","",{"$nulls":60},"",{"$f":"IF($A102=\"\",\"\",IF(VLOOKUP($G102,$H$11:$DN$1000,96,FALSE)=\"\",\"No\",IF(LEFT(VLOOKUP($G102,$H$11:$DN$1000,96,FALSE),3)=\"The\",EF102,VLOOKUP(VLOOKUP($G102,$H$11:$DN$1000,96,FALSE),DeclMatrix!$A$2:$F$5,VLOOKUP('Enrollment Form'!$B102,DeclMatrix!$A$8:$B$12,2,FALSE),FALSE))))","v":""},{"$f":"IF($A102=\"\",\"\",IF(VLOOKUP($G102,$H$11:$DN$1000,101,FALSE)=\"\",\"No\",IF(LEFT(VLOOKUP($G102,$H$11:$DN$1000,101,FALSE),3)=\"The\",EG102,VLOOKUP(VLOOKUP($G102,$H$11:$DN$1000,101,FALSE),DeclMatrix!$A$2:$F$5,VLOOKUP('Enrollment Form'!$B102,DeclMatrix!$A$8:$B$12,2,FALSE),FALSE))))","v":""},{"$f":"IF($A102=\"\",\"\",IF(VLOOKUP($G102,$H$11:$DN$1000,106,FALSE)=\"\",\"No\",IF(LEFT(VLOOKUP($G102,$H$11:$DN$1000,106,FALSE),3)=\"The\",EH102,VLOOKUP(VLOOKUP($G102,$H$11:$DN$1000,106,FALSE),DeclMatrix!$A$2:$F$5,VLOOKUP('Enrollment Form'!$B102,DeclMatrix!$A$8:$B$12,2,FALSE),FALSE))))","v":""},{"$f":"IF($A102=\"\",\"\",IF(VLOOKUP($G102,$H$11:$DN$1000,111,FALSE)=\"\",\"No\",IF(LEFT(VLOOKUP($G102,$H$11:$DN$1000,111,FALSE),3)=\"The\",EI102,VLOOKUP(VLOOKUP($G102,$H$11:$DN$1000,111,FALSE),DeclMatrix!$A$2:$F$5,VLOOKUP('Enrollment Form'!$B102,DeclMatrix!$A$8:$B$12,2,FALSE),FALSE))))","v":""},"",null,"","","","","","","","","","","",""]
["",{"$nulls":5},"","",{"$nulls":18},"","","","",{"$nulls":30},"","","","",{"$nulls":60},"",{"$f":"IF($A103=\"\",\"\",IF(VLOOKUP($G103,$H$11:$DN$1000,96,FALSE)=\"\",\"No\",IF(LEFT(VLOOKUP($G103,$H$11:$DN$1000,96,FALSE),3)=\"The\",EF103,VLOOKUP(VLOOKUP($G103,$H$11:$DN$1000,96,FALSE),DeclMatrix!$A$2:$F$5,VLOOKUP('Enrollment Form'!$B103,DeclMatrix!$A$8:$B$12,2,FALSE),FALSE))))","v":""},{"$f":"IF($A103=\"\",\"\",IF(VLOOKUP($G103,$H$11:$DN$1000,101,FALSE)=\"\",\"No\",IF(LEFT(VLOOKUP($G103,$H$11:$DN$1000,101,FALSE),3)=\"The\",EG103,VLOOKUP(VLOOKUP($G103,$H$11:$DN$1000,101,FALSE),DeclMatrix!$A$2:$F$5,VLOOKUP('Enrollment Form'!$B103,DeclMatrix!$A$8:$B$12,2,FALSE),FALSE))))","v":""},{"$f":"IF($A103=\"\",\"\",IF(VLOOKUP($G103,$H$11:$DN$1000,106,FALSE)=\"\",\"No\",IF(LEFT(VLOOKUP($G103,$H$11:$DN$1000,106,FALSE),3)=\"The\",EH103,VLOOKUP(VLOOKUP($G103,$H$11:$DN$1000,106,FALSE),DeclMatrix!$A$2:$F$5,VLOOKUP('Enrollment Form'!$B103,DeclMatrix!$A$8:$B$12,2,FALSE),FALSE))))","v":""},{"$f":"IF($A103=\"\",\"\",IF(VLOOKUP($G103,$H$11:$DN$1000,111,FALSE)=\"\",\"No\",IF(LEFT(VLOOKUP($G103,$H$11:$DN$1000,111,FALSE),3)=\"The\",EI103,VLOOKUP(VLOOKUP($G103,$H$11:$DN$1000,111,FALSE),DeclMatrix!$A$2:$F$5,VLOOKUP('Enrollment Form'!$B103,DeclMatrix!$A$8:$B$12,2,FALSE),FALSE))))","v":""},"",null,"","","","","","","","","","","",""]
["",{"$nulls":5},"","",{"$nulls":18},"","","","",{"$nulls":30},"","","","",{"$nulls":60},"",{"$f":"IF($A104=\"\",\"\",IF(VLOOKUP($G104,$H$11:$DN$1000,96,FALSE)=\"\",\"No\",IF(LEFT(VLOOKUP($G104,$H$11:$DN$1000,96,FALSE),3)=\"The\",EF104,VLOOKUP(VLOOKUP($G104,$H$11:$DN$1000,96,FALSE),DeclMatrix!$A$2:$F$5,VLOOKUP('Enrollment Form'!$B104,DeclMatrix!$A$8:$B$12,2,FALSE),FALSE))))","v":""},{"$f":"IF($A104=\"\",\"\",IF(VLOOKUP($G104,$H$11:$DN$1000,101,FALSE)=\"\",\"No\",IF(LEFT(VLOOKUP($G104,$H$11:$DN$1000,101,FALSE),3)=\"The\",EG104,VLOOKUP(VLOOKUP($G104,$H$11:$DN$1000,101,FALSE),DeclMatrix!$A$2:$F$5,VLOOKUP('Enrollment Form'!$B104,DeclMatrix!$A$8:$B$12,2,FALSE),FALSE))))","v":""},{"$f":"IF($A104=\"\",\"\",IF(VLOOKUP($G104,$H$11:$DN$1000,106,FALSE)=\"\",\"No\",IF(LEFT(VLOOKUP($G104,$H$11:$DN$1000,106,FALSE),3)=\"The\",EH104,VLOOKUP(VLOOKUP($G104,$H$11:$DN$1000,106,FALSE),DeclMatrix!$A$2:$F$5,VLOOKUP('Enrollment Form'!$B104,DeclMatrix!$A$8:$B$12,2,FALSE),FALSE))))","v":""},{"$f":"IF($A104=\"\",\"\",IF(VLOOKUP($G104,$H$11:$DN$1000,111,FALSE)=\"\",\"No\",IF(LEFT(VLOOKUP($G104,$H$11:$DN$1000,111,FALSE),3)=\"The\",EI104,VLOOKUP(VLOOKUP($G104,$H$11:$DN$1000,111,FALSE),DeclMatrix!$A$2:$F$5,VLOOKUP('Enrollment Form'!$B104,DeclMatrix!$A$8:$B$12,2,FALSE),FALSE))))","v":""},"",null,"","","","","","","","","","","",""]
["",{"$nulls":5},"","",{"$nulls":18},"","","","",{"$nulls":30},"","","","",{"$nulls":60},"",{"$f":"IF($A105=\"\",\"\",IF(VLOOKUP($G105,$H$11:$DN$1000,96,FALSE)=\"\",\"No\",IF(LEFT(VLOOKUP($G105,$H$11:$DN$1000,96,FALSE),3)=\"The\",EF105,VLOOKUP(VLOOKUP($G105,$H$11:$DN$1000,96,FALSE),DeclMatrix!$A$2:$F$5,VLOOKUP('Enrollment Form'!$B105,DeclMatrix!$A$8:$B$12,2,FALSE),FALSE))))","v":""},{"$f":"IF($A105=\"\",\"\",IF(VLOOKUP($G105,$H$11:$DN$1000,101,FALSE)=\"\",\"No\",IF(LEFT(VLOOKUP($G105,$H$11:$DN$1000,101,FALSE),3)=\"The\",EG105,VLOOKUP(VLOOKUP($G105,$H$11:$DN$1000,101,FALSE),DeclMatrix!$A$2:$F$5,VLOOKUP('Enrollment Form'!$B105,DeclMatrix!$A$8:$B$12,2,FALSE),FALSE))))","v":""},{"$f":"IF($A105=\"\",\"\",IF(VLOOKUP($G105,$H$11:$DN$1000,106,FALSE)=\"\",\"No\",IF(LEFT(VLOOKUP($G105,$H$11:$DN$1000,106,FALSE),3)=\"The\",EH105,VLOOKUP(VLOOKUP($G105,$H$11:$DN$1000,106,FALSE),DeclMatrix!$A$2:$F$5,VLOOKUP('Enrollment Form'!$B105,DeclMatrix!$A$8:$B$12,2,FALSE),FALSE))))","v":""},{"$f":"IF($A105=\"\",\"\",IF(VLOOKUP($G105,$H$11:$DN$1000,111,FALSE)=\"\",\"No\",IF(LEFT(VLOOKUP($G105,$H$11:$DN$1000,111,FALSE),3)=\"The\",EI105,VLOOKUP(VLOOKUP($G105,$H$11:$DN$1000,111,FALSE),DeclMatrix!$A$2:$F$5,VLOOKUP('Enrollment Form'!$B105,DeclMatrix!$A$8:$B$12,2,FALSE),FALSE))))","v":""},"",null,"","","","","","","","","","","",""]
["",{"$nulls":5},"","",{"$nulls":18},"","","","",{"$nulls":30},"","","","",{"$nulls":60},"",{"$f":"IF($A106=\"\",\"\",IF(VLOOKUP($G106,$H$11:$DN$1000,96,FALSE)=\"\",\"No\",IF(LEFT(VLOOKUP($G106,$H$11:$DN$1000,96,FALSE),3)=\"The\",EF106,VLOOKUP(VLOOKUP($G106,$H$11:$DN$1000,96,FALSE),DeclMatrix!$A$2:$F$5,VLOOKUP('Enrollment Form'!$B106,DeclMatrix!$A$8:$B$12,2,FALSE),FALSE))))","v":""},{"$f":"IF($A106=\"\",\"\",IF(VLOOKUP($G106,$H$11:$DN$1000,101,FALSE)=\"\",\"No\",IF(LEFT(VLOOKUP($G106,$H$11:$DN$1000,101,FALSE),3)=\"The\",EG106,VLOOKUP(VLOOKUP($G106,$H$11:$DN$1000,101,FALSE),DeclMatrix!$A$2:$F$5,VLOOKUP('Enrollment Form'!$B106,DeclMatrix!$A$8:$B$12,2,FALSE),FALSE))))","v":""},{"$f":"IF($A106=\"\",\"\",IF(VLOOKUP($G106,$H$11:$DN$1000,106,FALSE)=\"\",\"No\",IF(LEFT(VLOOKUP($G106,$H$11:$DN$1000,106,FALSE),3)=\"The\",EH106,VLOOKUP(VLOOKUP($G106,$H$11:$DN$1000,106,FALSE),DeclMatrix!$A$2:$F$5,VLOOKUP('Enrollment Form'!$B106,DeclMatrix!$A$8:$B$12,2,FALSE),FALSE))))","v":""},{"$f":"IF($A106=\"\",\"\",IF(VLOOKUP($G106,$H$11:$DN$1000,111,FALSE)=\"\",\"No\",IF(LEFT(VLOOKUP($G106,$H$11:$DN$1000,111,FALSE),3)=\"The\",EI106,VLOOKUP(VLOOKUP($G106,$H$11:$DN$1000,111,FALSE),DeclMatrix!$A$2:$F$5,VLOOKUP('Enrollment Form'!$B106,DeclMatrix!$A$8:$B$12,2,FALSE),FALSE))))","v":""},"",null,"","","","","","","","","","","",""]
["",{"$nulls":5},"","",{"$nulls":18},"","","","",{"$nulls":30},"","","","",{"$nulls":60},"",{"$f":"IF($A107=\"\",\"\",IF(VLOOKUP($G107,$H$11:$DN$1000,96,FALSE)=\"\",\"No\",IF(LEFT(VLOOKUP($G107,$H$11:$DN$1000,96,FALSE),3)=\"The\",EF107,VLOOKUP(VLOOKUP($G107,$H$11:$DN$1000,96,FALSE),DeclMatrix!$A$2:$F$5,VLOOKUP('Enrollment Form'!$B107,DeclMatrix!$A$8:$B$12,2,FALSE),FALSE))))","v":""},{"$f":"IF($A107=\"\",\"\",IF(VLOOKUP($G107,$H$11:$DN$1000,101,FALSE)=\"\",\"No\",IF(LEFT(VLOOKUP($G107,$H$11:$DN$1000,101,FALSE),3)=\"The\",EG107,VLOOKUP(VLOOKUP($G107,$H$11:$DN$1000,101,FALSE),DeclMatrix!$A$2:$F$5,VLOOKUP('Enrollment Form'!$B107,DeclMatrix!$A$8:$B$12,2,FALSE),FALSE))))","v":""},{"$f":"IF($A107=\"\",\"\",IF(VLOOKUP($G107,$H$11:$DN$1000,106,FALSE)=\"\",\"No\",IF(LEFT(VLOOKUP($G107,$H$11:$DN$1000,106,FALSE),3)=\"The\",EH107,VLOOKUP(VLOOKUP($G107,$H$11:$DN$1000,106,FALSE),DeclMatrix!$A$2:$F$5,VLOOKUP('Enrollment Form'!$B107,DeclMatrix!$A$8:$B$12,2,FALSE),FALSE))))","v":""},{"$f":"IF($A107=\"\",\"\",IF(VLOOKUP($G107,$H$11:$DN$1000,111,FALSE)=\"\",\"No\",IF(LEFT(VLOOKUP($G107,$H$11:$DN$1000,111,FALSE),3)=\"The\",EI107,VLOOKUP(VLOOKUP($G107,$H$11:$DN$1000,111,FALSE),DeclMatrix!$A$2:$F$5,VLOOKUP('Enrollment Form'!$B107,DeclMatrix!$A$8:$B$12,2,FALSE),FALSE))))","v":""},"",null,"","","","","","","","","","","",""]
["",{"$nulls":5},"","",{"$nulls":18},"","","","",{"$nulls":30},"","","","",{"$nulls":60},"",{"$f":"IF($A108=\"\",\"\",IF(VLOOKUP($G108,$H$11:$DN$1000,96,FALSE)=\"\",\"No\",IF(LEFT(VLOOKUP($G108,$H$11:$DN$1000,96,FALSE),3)=\"The\",EF108,VLOOKUP(VLOOKUP($G108,$H$11:$DN$1000,96,FALSE),DeclMatrix!$A$2:$F$5,VLOOKUP('Enrollment Form'!$B108,DeclMatrix!$A$8:$B$12,2,FALSE),FALSE))))","v":""},{"$f":"IF($A108=\"\",\"\",IF(VLOOKUP($G108,$H$11:$DN$1000,101,FALSE)=\"\",\"No\",IF(LEFT(VLOOKUP($G108,$H$11:$DN$1000,101,FALSE),3)=\"The\",EG108,VLOOKUP(VLOOKUP($G108,$H$11:$DN$1000,101,FALSE),DeclMatrix!$A$2:$F$5,VLOOKUP('Enrollment Form'!$B108,DeclMatrix!$A$8:$B$12,2,FALSE),FALSE))))","v":""},{"$f":"IF($A108=\"\",\"\",IF(VLOOKUP($G108,$H$11:$DN$1000,106,FALSE)=\"\",\"No\",IF(LEFT(VLOOKUP($G108,$H$11:$DN$1000,106,FALSE),3)=\"The\",EH108,VLOOKUP(VLOOKUP($G108,$H$11:$DN$1000,106,FALSE),DeclMatrix!$A$2:$F$5,VLOOKUP('Enrollment Form'!$B108,DeclMatrix!$A$8:$B$12,2,FALSE),FALSE))))","v":""},{"$f":"IF($A108=\"\",\"\",IF(VLOOKUP($G108,$H$11:$DN$1000,111,FALSE)=\"\",\"No\",IF(LEFT(VLOOKUP($G108,$H$11:$DN$1000,111,FALSE),3)=\"The\",EI108,VLOOKUP(VLOOKUP($G108,$H$11:$DN$1000,111,FALSE),DeclMatrix!$A$2:$F$5,VLOOKUP('Enrollment Form'!$B108,DeclMatrix!$A$8:$B$12,2,FALSE),FALSE))))","v":""},"",null,"","","","","","","","","","","",""]
["",{"$nulls":5},"","",{"$nulls":18},"","","","",{"$nulls":30},"","","","",{"$nulls":60},"",{"$f":"IF($A109=\"\",\"\",IF(VLOOKUP($G109,$H$11:$DN$1000,96,FALSE)=\"\",\"No\",IF(LEFT(VLOOKUP($G109,$H$11:$DN$1000,96,FALSE),3)=\"The\",EF109,VLOOKUP(VLOOKUP($G109,$H$11:$DN$1000,96,FALSE),DeclMatrix!$A$2:$F$5,VLOOKUP('Enrollment Form'!$B109,DeclMatrix!$A$8:$B$12,2,FALSE),FALSE))))","v":""},{"$f":"IF($A109=\"\",\"\",IF(VLOOKUP($G109,$H$11:$DN$1000,101,FALSE)=\"\",\"No\",IF(LEFT(VLOOKUP($G109,$H$11:$DN$1000,101,FALSE),3)=\"The\",EG109,VLOOKUP(VLOOKUP($G109,$H$11:$DN$1000,101,FALSE),DeclMatrix!$A$2:$F$5,VLOOKUP('Enrollment Form'!$B109,DeclMatrix!$A$8:$B$12,2,FALSE),FALSE))))","v":""},{"$f":"IF($A109=\"\",\"\",IF(VLOOKUP($G109,$H$11:$DN$1000,106,FALSE)=\"\",\"No\",IF(LEFT(VLOOKUP($G109,$H$11:$DN$1000,106,FALSE),3)=\"The\",EH109,VLOOKUP(VLOOKUP($G109,$H$11:$DN$1000,106,FALSE),DeclMatrix!$A$2:$F$5,VLOOKUP('Enrollment Form'!$B109,DeclMatrix!$A$8:$B$12,2,FALSE),FALSE))))","v":""},{"$f":"IF($A109=\"\",\"\",IF(VLOOKUP($G109,$H$11:$DN$1000,111,FALSE)=\"\",\"No\",IF(LEFT(VLOOKUP($G109,$H$11:$DN$1000,111,FALSE),3)=\"The\",EI109,VLOOKUP(VLOOKUP($G109,$H$11:$DN$1000,111,FALSE),DeclMatrix!$A$2:$F$5,VLOOKUP('Enrollment Form'!$B109,DeclMatrix!$A$8:$B$12,2,FALSE),FALSE))))","v":""},"",null,"","","","","","","","","","","",""]
["",{"$nulls":5},"","",{"$nulls":18},"","","","",{"$nulls":30},"","","","",{"$nulls":60},"",{"$f":"IF($A110=\"\",\"\",IF(VLOOKUP($G110,$H$11:$DN$1000,96,FALSE)=\"\",\"No\",IF(LEFT(VLOOKUP($G110,$H$11:$DN$1000,96,FALSE),3)=\"The\",EF110,VLOOKUP(VLOOKUP($G110,$H$11:$DN$1000,96,FALSE),DeclMatrix!$A$2:$F$5,VLOOKUP('Enrollment Form'!$B110,DeclMatrix!$A$8:$B$12,2,FALSE),FALSE))))","v":""},{"$f":"IF($A110=\"\",\"\",IF(VLOOKUP($G110,$H$11:$DN$1000,101,FALSE)=\"\",\"No\",IF(LEFT(VLOOKUP($G110,$H$11:$DN$1000,101,FALSE),3)=\"The\",EG110,VLOOKUP(VLOOKUP($G110,$H$11:$DN$1000,101,FALSE),DeclMatrix!$A$2:$F$5,VLOOKUP('Enrollment Form'!$B110,DeclMatrix!$A$8:$B$12,2,FALSE),FALSE))))","v":""},{"$f":"IF($A110=\"\",\"\",IF(VLOOKUP($G110,$H$11:$DN$1000,106,FALSE)=\"\",\"No\",IF(LEFT(VLOOKUP($G110,$H$11:$DN$1000,106,FALSE),3)=\"The\",EH110,VLOOKUP(VLOOKUP($G110,$H$11:$DN$1000,106,FALSE),DeclMatrix!$A$2:$F$5,VLOOKUP('Enrollment Form'!$B110,DeclMatrix!$A$8:$B$12,2,FALSE),FALSE))))","v":""},{"$f":"IF($A110=\"\",\"\",IF(VLOOKUP($G110,$H$11:$DN$1000,111,FALSE)=\"\",\"No\",IF(LEFT(VLOOKUP($G110,$H$11:$DN$1000,111,FALSE),3)=\"The\",EI110,VLOOKUP(VLOOKUP($G110,$H$11:$DN$1000,111,FALSE),DeclMatrix!$A$2:$F$5,VLOOKUP('Enrollment Form'!$B110,DeclMatrix!$A$8:$B$12,2,FALSE),FALSE))))","v":""},"",null,"","","","","","","","","","","",""]
["",{"$nulls":5},"","",{"$nulls":18},"","","","",{"$nulls":30},"","","","",{"$nulls":60},"",{"$f":"IF($A111=\"\",\"\",IF(VLOOKUP($G111,$H$11:$DN$1000,96,FALSE)=\"\",\"No\",IF(LEFT(VLOOKUP($G111,$H$11:$DN$1000,96,FALSE),3)=\"The\",EF111,VLOOKUP(VLOOKUP($G111,$H$11:$DN$1000,96,FALSE),DeclMatrix!$A$2:$F$5,VLOOKUP('Enrollment Form'!$B111,DeclMatrix!$A$8:$B$12,2,FALSE),FALSE))))","v":""},{"$f":"IF($A111=\"\",\"\",IF(VLOOKUP($G111,$H$11:$DN$1000,101,FALSE)=\"\",\"No\",IF(LEFT(VLOOKUP($G111,$H$11:$DN$1000,101,FALSE),3)=\"The\",EG111,VLOOKUP(VLOOKUP($G111,$H$11:$DN$1000,101,FALSE),DeclMatrix!$A$2:$F$5,VLOOKUP('Enrollment Form'!$B111,DeclMatrix!$A$8:$B$12,2,FALSE),FALSE))))","v":""},{"$f":"IF($A111=\"\",\"\",IF(VLOOKUP($G111,$H$11:$DN$1000,106,FALSE)=\"\",\"No\",IF(LEFT(VLOOKUP($G111,$H$11:$DN$1000,106,FALSE),3)=\"The\",EH111,VLOOKUP(VLOOKUP($G111,$H$11:$DN$1000,106,FALSE),DeclMatrix!$A$2:$F$5,VLOOKUP('Enrollment Form'!$B111,DeclMatrix!$A$8:$B$12,2,FALSE),FALSE))))","v":""},{"$f":"IF($A111=\"\",\"\",IF(VLOOKUP($G111,$H$11:$DN$1000,111,FALSE)=\"\",\"No\",IF(LEFT(VLOOKUP($G111,$H$11:$DN$1000,111,FALSE),3)=\"The\",EI111,VLOOKUP(VLOOKUP($G111,$H$11:$DN$1000,111,FALSE),DeclMatrix!$A$2:$F$5,VLOOKUP('Enrollment Form'!$B111,DeclMatrix!$A$8:$B$12,2,FALSE),FALSE))))","v":""},"",null,"","","","","","","","","","","",""]
["",{"$nulls":5},"","",{"$nulls":18},"","","","",{"$nulls":30},"","","","",{"$nulls":60},"",{"$f":"IF($A112=\"\",\"\",IF(VLOOKUP($G112,$H$11:$DN$1000,96,FALSE)=\"\",\"No\",IF(LEFT(VLOOKUP($G112,$H$11:$DN$1000,96,FALSE),3)=\"The\",EF112,VLOOKUP(VLOOKUP($G112,$H$11:$DN$1000,96,FALSE),DeclMatrix!$A$2:$F$5,VLOOKUP('Enrollment Form'!$B112,DeclMatrix!$A$8:$B$12,2,FALSE),FALSE))))","v":""},{"$f":"IF($A112=\"\",\"\",IF(VLOOKUP($G112,$H$11:$DN$1000,101,FALSE)=\"\",\"No\",IF(LEFT(VLOOKUP($G112,$H$11:$DN$1000,101,FALSE),3)=\"The\",EG112,VLOOKUP(VLOOKUP($G112,$H$11:$DN$1000,101,FALSE),DeclMatrix!$A$2:$F$5,VLOOKUP('Enrollment Form'!$B112,DeclMatrix!$A$8:$B$12,2,FALSE),FALSE))))","v":""},{"$f":"IF($A112=\"\",\"\",IF(VLOOKUP($G112,$H$11:$DN$1000,106,FALSE)=\"\",\"No\",IF(LEFT(VLOOKUP($G112,$H$11:$DN$1000,106,FALSE),3)=\"The\",EH112,VLOOKUP(VLOOKUP($G112,$H$11:$DN$1000,106,FALSE),DeclMatrix!$A$2:$F$5,VLOOKUP('Enrollment Form'!$B112,DeclMatrix!$A$8:$B$12,2,FALSE),FALSE))))","v":""},{"$f":"IF($A112=\"\",\"\",IF(VLOOKUP($G112,$H$11:$DN$1000,111,FALSE)=\"\",\"No\",IF(LEFT(VLOOKUP($G112,$H$11:$DN$1000,111,FALSE),3)=\"The\",EI112,VLOOKUP(VLOOKUP($G112,$H$11:$DN$1000,111,FALSE),DeclMatrix!$A$2:$F$5,VLOOKUP('Enrollment Form'!$B112,DeclMatrix!$A$8:$B$12,2,FALSE),FALSE))))","v":""},"",null,"","","","","","","","","","","",""]
["",{"$nulls":5},"","",{"$nulls":18},"","","","",{"$nulls":30},"","","","",{"$nulls":60},"",{"$f":"IF($A113=\"\",\"\",IF(VLOOKUP($G113,$H$11:$DN$1000,96,FALSE)=\"\",\"No\",IF(LEFT(VLOOKUP($G113,$H$11:$DN$1000,96,FALSE),3)=\"The\",EF113,VLOOKUP(VLOOKUP($G113,$H$11:$DN$1000,96,FALSE),DeclMatrix!$A$2:$F$5,VLOOKUP('Enrollment Form'!$B113,DeclMatrix!$A$8:$B$12,2,FALSE),FALSE))))","v":""},{"$f":"IF($A113=\"\",\"\",IF(VLOOKUP($G113,$H$11:$DN$1000,101,FALSE)=\"\",\"No\",IF(LEFT(VLOOKUP($G113,$H$11:$DN$1000,101,FALSE),3)=\"The\",EG113,VLOOKUP(VLOOKUP($G113,$H$11:$DN$1000,101,FALSE),DeclMatrix!$A$2:$F$5,VLOOKUP('Enrollment Form'!$B113,DeclMatrix!$A$8:$B$12,2,FALSE),FALSE))))","v":""},{"$f":"IF($A113=\"\",\"\",IF(VLOOKUP($G113,$H$11:$DN$1000,106,FALSE)=\"\",\"No\",IF(LEFT(VLOOKUP($G113,$H$11:$DN$1000,106,FALSE),3)=\"The\",EH113,VLOOKUP(VLOOKUP($G113,$H$11:$DN$1000,106,FALSE),DeclMatrix!$A$2:$F$5,VLOOKUP('Enrollment Form'!$B113,DeclMatrix!$A$8:$B$12,2,FALSE),FALSE))))","v":""},{"$f":"IF($A113=\"\",\"\",IF(VLOOKUP($G113,$H$11:$DN$1000,111,FALSE)=\"\",\"No\",IF(LEFT(VLOOKUP($G113,$H$11:$DN$1000,111,FALSE),3)=\"The\",EI113,VLOOKUP(VLOOKUP($G113,$H$11:$DN$1000,111,FALSE),DeclMatrix!$A$2:$F$5,VLOOKUP('Enrollment Form'!$B113,DeclMatrix!$A$8:$B$12,2,FALSE),FALSE))))","v":""},"",null,"","","","","","","","","","","",""]
["",{"$nulls":5},"","",{"$nulls":18},"","","","",{"$nulls":30},"","","","",{"$nulls":60},"",{"$f":"IF($A114=\"\",\"\",IF(VLOOKUP($G114,$H$11:$DN$1000,96,FALSE)=\"\",\"No\",IF(LEFT(VLOOKUP($G114,$H$11:$DN$1000,96,FALSE),3)=\"The\",EF114,VLOOKUP(VLOOKUP($G114,$H$11:$DN$1000,96,FALSE),DeclMatrix!$A$2:$F$5,VLOOKUP('Enrollment Form'!$B114,DeclMatrix!$A$8:$B$12,2,FALSE),FALSE))))","v":""},{"$f":"IF($A114=\"\",\"\",IF(VLOOKUP($G114,$H$11:$DN$1000,101,FALSE)=\"\",\"No\",IF(LEFT(VLOOKUP($G114,$H$11:$DN$1000,101,FALSE),3)=\"The\",EG114,VLOOKUP(VLOOKUP($G114,$H$11:$DN$1000,101,FALSE),DeclMatrix!$A$2:$F$5,VLOOKUP('Enrollment Form'!$B114,DeclMatrix!$A$8:$B$12,2,FALSE),FALSE))))","v":""},{"$f":"IF($A114=\"\",\"\",IF(VLOOKUP($G114,$H$11:$DN$1000,106,FALSE)=\"\",\"No\",IF(LEFT(VLOOKUP($G114,$H$11:$DN$1000,106,FALSE),3)=\"The\",EH114,VLOOKUP(VLOOKUP($G114,$H$11:$DN$1000,106,FALSE),DeclMatrix!$A$2:$F$5,VLOOKUP('Enrollment Form'!$B114,DeclMatrix!$A$8:$B$12,2,FALSE),FALSE))))","v":""},{"$f":"IF($A114=\"\",\"\",IF(VLOOKUP($G114,$H$11:$DN$1000,111,FALSE)=\"\",\"No\",IF(LEFT(VLOOKUP($G114,$H$11:$DN$1000,111,FALSE),3)=\"The\",EI114,VLOOKUP(VLOOKUP($G114,$H$11:$DN$1000,111,FALSE),DeclMatrix!$A$2:$F$5,VLOOKUP('Enrollment Form'!$B114,DeclMatrix!$A$8:$B$12,2,FALSE),FALSE))))","v":""},"",null,"","","","","","","","","","","",""]
["",{"$nulls":5},"","",{"$nulls":18},"","","","",{"$nulls":30},"","","","",{"$nulls":60},"",{"$f":"IF($A115=\"\",\"\",IF(VLOOKUP($G115,$H$11:$DN$1000,96,FALSE)=\"\",\"No\",IF(LEFT(VLOOKUP($G115,$H$11:$DN$1000,96,FALSE),3)=\"The\",EF115,VLOOKUP(VLOOKUP($G115,$H$11:$DN$1000,96,FALSE),DeclMatrix!$A$2:$F$5,VLOOKUP('Enrollment Form'!$B115,DeclMatrix!$A$8:$B$12,2,FALSE),FALSE))))","v":""},{"$f":"IF($A115=\"\",\"\",IF(VLOOKUP($G115,$H$11:$DN$1000,101,FALSE)=\"\",\"No\",IF(LEFT(VLOOKUP($G115,$H$11:$DN$1000,101,FALSE),3)=\"The\",EG115,VLOOKUP(VLOOKUP($G115,$H$11:$DN$1000,101,FALSE),DeclMatrix!$A$2:$F$5,VLOOKUP('Enrollment Form'!$B115,DeclMatrix!$A$8:$B$12,2,FALSE),FALSE))))","v":""},{"$f":"IF($A115=\"\",\"\",IF(VLOOKUP($G115,$H$11:$DN$1000,106,FALSE)=\"\",\"No\",IF(LEFT(VLOOKUP($G115,$H$11:$DN$1000,106,FALSE),3)=\"The\",EH115,VLOOKUP(VLOOKUP($G115,$H$11:$DN$1000,106,FALSE),DeclMatrix!$A$2:$F$5,VLOOKUP('Enrollment Form'!$B115,DeclMatrix!$A$8:$B$12,2,FALSE),FALSE))))","v":""},{"$f":"IF($A115=\"\",\"\",IF(VLOOKUP($G115,$H$11:$DN$1000,111,FALSE)=\"\",\"No\",IF(LEFT(VLOOKUP($G115,$H$11:$DN$1000,111,FALSE),3)=\"The\",EI115,VLOOKUP(VLOOKUP($G115,$H$11:$DN$1000,111,FALSE),DeclMatrix!$A$2:$F$5,VLOOKUP('Enrollment Form'!$B115,DeclMatrix!$A$8:$B$12,2,FALSE),FALSE))))","v":""},"",null,"","","","","","","","","","","",""]
["",{"$nulls":5},"","",{"$nulls":18},"","","","",{"$nulls":30},"","","","",{"$nulls":60},"",{"$f":"IF($A116=\"\",\"\",IF(VLOOKUP($G116,$H$11:$DN$1000,96,FALSE)=\"\",\"No\",IF(LEFT(VLOOKUP($G116,$H$11:$DN$1000,96,FALSE),3)=\"The\",EF116,VLOOKUP(VLOOKUP($G116,$H$11:$DN$1000,96,FALSE),DeclMatrix!$A$2:$F$5,VLOOKUP('Enrollment Form'!$B116,DeclMatrix!$A$8:$B$12,2,FALSE),FALSE))))","v":""},{"$f":"IF($A116=\"\",\"\",IF(VLOOKUP($G116,$H$11:$DN$1000,101,FALSE)=\"\",\"No\",IF(LEFT(VLOOKUP($G116,$H$11:$DN$1000,101,FALSE),3)=\"The\",EG116,VLOOKUP(VLOOKUP($G116,$H$11:$DN$1000,101,FALSE),DeclMatrix!$A$2:$F$5,VLOOKUP('Enrollment Form'!$B116,DeclMatrix!$A$8:$B$12,2,FALSE),FALSE))))","v":""},{"$f":"IF($A116=\"\",\"\",IF(VLOOKUP($G116,$H$11:$DN$1000,106,FALSE)=\"\",\"No\",IF(LEFT(VLOOKUP($G116,$H$11:$DN$1000,106,FALSE),3)=\"The\",EH116,VLOOKUP(VLOOKUP($G116,$H$11:$DN$1000,106,FALSE),DeclMatrix!$A$2:$F$5,VLOOKUP('Enrollment Form'!$B116,DeclMatrix!$A$8:$B$12,2,FALSE),FALSE))))","v":""},{"$f":"IF($A116=\"\",\"\",IF(VLOOKUP($G116,$H$11:$DN$1000,111,FALSE)=\"\",\"No\",IF(LEFT(VLOOKUP($G116,$H$11:$DN$1000,111,FALSE),3)=\"The\",EI116,VLOOKUP(VLOOKUP($G116,$H$11:$DN$1000,111,FALSE),DeclMatrix!$A$2:$F$5,VLOOKUP('Enrollment Form'!$B116,DeclMatrix!$A$8:$B$12,2,FALSE),FALSE))))","v":""},"",null,"","","","","","","","","","","",""]
["",{"$nulls":5},"","",{"$nulls":18},"","","","",{"$nulls":30},"","","","",{"$nulls":60},"",{"$f":"IF($A117=\"\",\"\",IF(VLOOKUP($G117,$H$11:$DN$1000,96,FALSE)=\"\",\"No\",IF(LEFT(VLOOKUP($G117,$H$11:$DN$1000,96,FALSE),3)=\"The\",EF117,VLOOKUP(VLOOKUP($G117,$H$11:$DN$1000,96,FALSE),DeclMatrix!$A$2:$F$5,VLOOKUP('Enrollment Form'!$B117,DeclMatrix!$A$8:$B$12,2,FALSE),FALSE))))","v":""},{"$f":"IF($A117=\"\",\"\",IF(VLOOKUP($G117,$H$11:$DN$1000,101,FALSE)=\"\",\"No\",IF(LEFT(VLOOKUP($G117,$H$11:$DN$1000,101,FALSE),3)=\"The\",EG117,VLOOKUP(VLOOKUP($G117,$H$11:$DN$1000,101,FALSE),DeclMatrix!$A$2:$F$5,VLOOKUP('Enrollment Form'!$B117,DeclMatrix!$A$8:$B$12,2,FALSE),FALSE))))","v":""},{"$f":"IF($A117=\"\",\"\",IF(VLOOKUP($G117,$H$11:$DN$1000,106,FALSE)=\"\",\"No\",IF(LEFT(VLOOKUP($G117,$H$11:$DN$1000,106,FALSE),3)=\"The\",EH117,VLOOKUP(VLOOKUP($G117,$H$11:$DN$1000,106,FALSE),DeclMatrix!$A$2:$F$5,VLOOKUP('Enrollment Form'!$B117,DeclMatrix!$A$8:$B$12,2,FALSE),FALSE))))","v":""},{"$f":"IF($A117=\"\",\"\",IF(VLOOKUP($G117,$H$11:$DN$1000,111,FALSE)=\"\",\"No\",IF(LEFT(VLOOKUP($G117,$H$11:$DN$1000,111,FALSE),3)=\"The\",EI117,VLOOKUP(VLOOKUP($G117,$H$11:$DN$1000,111,FALSE),DeclMatrix!$A$2:$F$5,VLOOKUP('Enrollment Form'!$B117,DeclMatrix!$A$8:$B$12,2,FALSE),FALSE))))","v":""},"",null,"","","","","","","","","","","",""]
["",{"$nulls":5},"","",{"$nulls":18},"","","","",{"$nulls":30},"","","","",{"$nulls":60},"",{"$f":"IF($A118=\"\",\"\",IF(VLOOKUP($G118,$H$11:$DN$1000,96,FALSE)=\"\",\"No\",IF(LEFT(VLOOKUP($G118,$H$11:$DN$1000,96,FALSE),3)=\"The\",EF118,VLOOKUP(VLOOKUP($G118,$H$11:$DN$1000,96,FALSE),DeclMatrix!$A$2:$F$5,VLOOKUP('Enrollment Form'!$B118,DeclMatrix!$A$8:$B$12,2,FALSE),FALSE))))","v":""},{"$f":"IF($A118=\"\",\"\",IF(VLOOKUP($G118,$H$11:$DN$1000,101,FALSE)=\"\",\"No\",IF(LEFT(VLOOKUP($G118,$H$11:$DN$1000,101,FALSE),3)=\"The\",EG118,VLOOKUP(VLOOKUP($G118,$H$11:$DN$1000,101,FALSE),DeclMatrix!$A$2:$F$5,VLOOKUP('Enrollment Form'!$B118,DeclMatrix!$A$8:$B$12,2,FALSE),FALSE))))","v":""},{"$f":"IF($A118=\"\",\"\",IF(VLOOKUP($G118,$H$11:$DN$1000,106,FALSE)=\"\",\"No\",IF(LEFT(VLOOKUP($G118,$H$11:$DN$1000,106,FALSE),3)=\"The\",EH118,VLOOKUP(VLOOKUP($G118,$H$11:$DN$1000,106,FALSE),DeclMatrix!$A$2:$F$5,VLOOKUP('Enrollment Form'!$B118,DeclMatrix!$A$8:$B$12,2,FALSE),FALSE))))","v":""},{"$f":"IF($A118=\"\",\"\",IF(VLOOKUP($G118,$H$11:$DN$1000,111,FALSE)=\"\",\"No\",IF(LEFT(VLOOKUP($G118,$H$11:$DN$1000,111,FALSE),3)=\"The\",EI118,VLOOKUP(VLOOKUP($G118,$H$11:$DN$1000,111,FALSE),DeclMatrix!$A$2:$F$5,VLOOKUP('Enrollment Form'!$B118,DeclMatrix!$A$8:$B$12,2,FALSE),FALSE))))","v":""},"",null,"","","","","","","","","","","",""]
["",{"$nulls":5},"","",{"$nulls":18},"","","","",{"$nulls":30},"","","","",{"$nulls":60},"",{"$f":"IF($A119=\"\",\"\",IF(VLOOKUP($G119,$H$11:$DN$1000,96,FALSE)=\"\",\"No\",IF(LEFT(VLOOKUP($G119,$H$11:$DN$1000,96,FALSE),3)=\"The\",EF119,VLOOKUP(VLOOKUP($G119,$H$11:$DN$1000,96,FALSE),DeclMatrix!$A$2:$F$5,VLOOKUP('Enrollment Form'!$B119,DeclMatrix!$A$8:$B$12,2,FALSE),FALSE))))","v":""},{"$f":"IF($A119=\"\",\"\",IF(VLOOKUP($G119,$H$11:$DN$1000,101,FALSE)=\"\",\"No\",IF(LEFT(VLOOKUP($G119,$H$11:$DN$1000,101,FALSE),3)=\"The\",EG119,VLOOKUP(VLOOKUP($G119,$H$11:$DN$1000,101,FALSE),DeclMatrix!$A$2:$F$5,VLOOKUP('Enrollment Form'!$B119,DeclMatrix!$A$8:$B$12,2,FALSE),FALSE))))","v":""},{"$f":"IF($A119=\"\",\"\",IF(VLOOKUP($G119,$H$11:$DN$1000,106,FALSE)=\"\",\"No\",IF(LEFT(VLOOKUP($G119,$H$11:$DN$1000,106,FALSE),3)=\"The\",EH119,VLOOKUP(VLOOKUP($G119,$H$11:$DN$1000,106,FALSE),DeclMatrix!$A$2:$F$5,VLOOKUP('Enrollment Form'!$B119,DeclMatrix!$A$8:$B$12,2,FALSE),FALSE))))","v":""},{"$f":"IF($A119=\"\",\"\",IF(VLOOKUP($G119,$H$11:$DN$1000,111,FALSE)=\"\",\"No\",IF(LEFT(VLOOKUP($G119,$H$11:$DN$1000,111,FALSE),3)=\"The\",EI119,VLOOKUP(VLOOKUP($G119,$H$11:$DN$1000,111,FALSE),DeclMatrix!$A$2:$F$5,VLOOKUP('Enrollment Form'!$B119,DeclMatrix!$A$8:$B$12,2,FALSE),FALSE))))","v":""},"",null,"","","","","","","","","","","",""]
["",{"$nulls":5},"","",{"$nulls":18},"","","","",{"$nulls":30},"","","","",{"$nulls":60},"",{"$f":"IF($A120=\"\",\"\",IF(VLOOKUP($G120,$H$11:$DN$1000,96,FALSE)=\"\",\"No\",IF(LEFT(VLOOKUP($G120,$H$11:$DN$1000,96,FALSE),3)=\"The\",EF120,VLOOKUP(VLOOKUP($G120,$H$11:$DN$1000,96,FALSE),DeclMatrix!$A$2:$F$5,VLOOKUP('Enrollment Form'!$B120,DeclMatrix!$A$8:$B$12,2,FALSE),FALSE))))","v":""},{"$f":"IF($A120=\"\",\"\",IF(VLOOKUP($G120,$H$11:$DN$1000,101,FALSE)=\"\",\"No\",IF(LEFT(VLOOKUP($G120,$H$11:$DN$1000,101,FALSE),3)=\"The\",EG120,VLOOKUP(VLOOKUP($G120,$H$11:$DN$1000,101,FALSE),DeclMatrix!$A$2:$F$5,VLOOKUP('Enrollment Form'!$B120,DeclMatrix!$A$8:$B$12,2,FALSE),FALSE))))","v":""},{"$f":"IF($A120=\"\",\"\",IF(VLOOKUP($G120,$H$11:$DN$1000,106,FALSE)=\"\",\"No\",IF(LEFT(VLOOKUP($G120,$H$11:$DN$1000,106,FALSE),3)=\"The\",EH120,VLOOKUP(VLOOKUP($G120,$H$11:$DN$1000,106,FALSE),DeclMatrix!$A$2:$F$5,VLOOKUP('Enrollment Form'!$B120,DeclMatrix!$A$8:$B$12,2,FALSE),FALSE))))","v":""},{"$f":"IF($A120=\"\",\"\",IF(VLOOKUP($G120,$H$11:$DN$1000,111,FALSE)=\"\",\"No\",IF(LEFT(VLOOKUP($G120,$H$11:$DN$1000,111,FALSE),3)=\"The\",EI120,VLOOKUP(VLOOKUP($G120,$H$11:$DN$1000,111,FALSE),DeclMatrix!$A$2:$F$5,VLOOKUP('Enrollment Form'!$B120,DeclMatrix!$A$8:$B$12,2,FALSE),FALSE))))","v":""},"",null,"","","","","","","","","","","",""]
["",{"$nulls":5},"","",{"$nulls":18},"","","","",{"$nulls":30},"","","","",{"$nulls":60},"",{"$f":"IF($A121=\"\",\"\",IF(VLOOKUP($G121,$H$11:$DN$1000,96,FALSE)=\"\",\"No\",IF(LEFT(VLOOKUP($G121,$H$11:$DN$1000,96,FALSE),3)=\"The\",EF121,VLOOKUP(VLOOKUP($G121,$H$11:$DN$1000,96,FALSE),DeclMatrix!$A$2:$F$5,VLOOKUP('Enrollment Form'!$B121,DeclMatrix!$A$8:$B$12,2,FALSE),FALSE))))","v":""},{"$f":"IF($A121=\"\",\"\",IF(VLOOKUP($G121,$H$11:$DN$1000,101,FALSE)=\"\",\"No\",IF(LEFT(VLOOKUP($G121,$H$11:$DN$1000,101,FALSE),3)=\"The\",EG121,VLOOKUP(VLOOKUP($G121,$H$11:$DN$1000,101,FALSE),DeclMatrix!$A$2:$F$5,VLOOKUP('Enrollment Form'!$B121,DeclMatrix!$A$8:$B$12,2,FALSE),FALSE))))","v":""},{"$f":"IF($A121=\"\",\"\",IF(VLOOKUP($G121,$H$11:$DN$1000,106,FALSE)=\"\",\"No\",IF(LEFT(VLOOKUP($G121,$H$11:$DN$1000,106,FALSE),3)=\"The\",EH121,VLOOKUP(VLOOKUP($G121,$H$11:$DN$1000,106,FALSE),DeclMatrix!$A$2:$F$5,VLOOKUP('Enrollment Form'!$B121,DeclMatrix!$A$8:$B$12,2,FALSE),FALSE))))","v":""},{"$f":"IF($A121=\"\",\"\",IF(VLOOKUP($G121,$H$11:$DN$1000,111,FALSE)=\"\",\"No\",IF(LEFT(VLOOKUP($G121,$H$11:$DN$1000,111,FALSE),3)=\"The\",EI121,VLOOKUP(VLOOKUP($G121,$H$11:$DN$1000,111,FALSE),DeclMatrix!$A$2:$F$5,VLOOKUP('Enrollment Form'!$B121,DeclMatrix!$A$8:$B$12,2,FALSE),FALSE))))","v":""},"",null,"","","","","","","","","","","",""]
["",{"$nulls":5},"","",{"$nulls":18},"","","","",{"$nulls":30},"","","","",{"$nulls":60},"",{"$f":"IF($A122=\"\",\"\",IF(VLOOKUP($G122,$H$11:$DN$1000,96,FALSE)=\"\",\"No\",IF(LEFT(VLOOKUP($G122,$H$11:$DN$1000,96,FALSE),3)=\"The\",EF122,VLOOKUP(VLOOKUP($G122,$H$11:$DN$1000,96,FALSE),DeclMatrix!$A$2:$F$5,VLOOKUP('Enrollment Form'!$B122,DeclMatrix!$A$8:$B$12,2,FALSE),FALSE))))","v":""},{"$f":"IF($A122=\"\",\"\",IF(VLOOKUP($G122,$H$11:$DN$1000,101,FALSE)=\"\",\"No\",IF(LEFT(VLOOKUP($G122,$H$11:$DN$1000,101,FALSE),3)=\"The\",EG122,VLOOKUP(VLOOKUP($G122,$H$11:$DN$1000,101,FALSE),DeclMatrix!$A$2:$F$5,VLOOKUP('Enrollment Form'!$B122,DeclMatrix!$A$8:$B$12,2,FALSE),FALSE))))","v":""},{"$f":"IF($A122=\"\",\"\",IF(VLOOKUP($G122,$H$11:$DN$1000,106,FALSE)=\"\",\"No\",IF(LEFT(VLOOKUP($G122,$H$11:$DN$1000,106,FALSE),3)=\"The\",EH122,VLOOKUP(VLOOKUP($G122,$H$11:$DN$1000,106,FALSE),DeclMatrix!$A$2:$F$5,VLOOKUP('Enrollment Form'!$B122,DeclMatrix!$A$8:$B$12,2,FALSE),FALSE))))","v":""},{"$f":"IF($A122=\"\",\"\",IF(VLOOKUP($G122,$H$11:$DN$1000,111,FALSE)=\"\",\"No\",IF(LEFT(VLOOKUP($G122,$H$11:$DN$1000,111,FALSE),3)=\"The\",EI122,VLOOKUP(VLOOKUP($G122,$H$11:$DN$1000,111,FALSE),DeclMatrix!$A$2:$F$5,VLOOKUP('Enrollment Form'!$B122,DeclMatrix!$A$8:$B$12,2,FALSE),FALSE))))","v":""},"",null,"","","","","","","","","","","",""]
["",{"$nulls":5},"","",{"$nulls":18},"","","","",{"$nulls":30},"","","","",{"$nulls":60},"",{"$f":"IF($A123=\"\",\"\",IF(VLOOKUP($G123,$H$11:$DN$1000,96,FALSE)=\"\",\"No\",IF(LEFT(VLOOKUP($G123,$H$11:$DN$1000,96,FALSE),3)=\"The\",EF123,VLOOKUP(VLOOKUP($G123,$H$11:$DN$1000,96,FALSE),DeclMatrix!$A$2:$F$5,VLOOKUP('Enrollment Form'!$B123,DeclMatrix!$A$8:$B$12,2,FALSE),FALSE))))","v":""},{"$f":"IF($A123=\"\",\"\",IF(VLOOKUP($G123,$H$11:$DN$1000,101,FALSE)=\"\",\"No\",IF(LEFT(VLOOKUP($G123,$H$11:$DN$1000,101,FALSE),3)=\"The\",EG123,VLOOKUP(VLOOKUP($G123,$H$11:$DN$1000,101,FALSE),DeclMatrix!$A$2:$F$5,VLOOKUP('Enrollment Form'!$B123,DeclMatrix!$A$8:$B$12,2,FALSE),FALSE))))","v":""},{"$f":"IF($A123=\"\",\"\",IF(VLOOKUP($G123,$H$11:$DN$1000,106,FALSE)=\"\",\"No\",IF(LEFT(VLOOKUP($G123,$H$11:$DN$1000,106,FALSE),3)=\"The\",EH123,VLOOKUP(VLOOKUP($G123,$H$11:$DN$1000,106,FALSE),DeclMatrix!$A$2:$F$5,VLOOKUP('Enrollment Form'!$B123,DeclMatrix!$A$8:$B$12,2,FALSE),FALSE))))","v":""},{"$f":"IF($A123=\"\",\"\",IF(VLOOKUP($G123,$H$11:$DN$1000,111,FALSE)=\"\",\"No\",IF(LEFT(VLOOKUP($G123,$H$11:$DN$1000,111,FALSE),3)=\"The\",EI123,VLOOKUP(VLOOKUP($G123,$H$11:$DN$1000,111,FALSE),DeclMatrix!$A$2:$F$5,VLOOKUP('Enrollment Form'!$B123,DeclMatrix!$A$8:$B$12,2,FALSE),FALSE))))","v":""},"",null,"","","","","","","","","","","",""]
["",{"$nulls":5},"","",{"$nulls":18},"","","","",{"$nulls":30},"","","","",{"$nulls":60},"",{"$f":"IF($A124=\"\",\"\",IF(VLOOKUP($G124,$H$11:$DN$1000,96,FALSE)=\"\",\"No\",IF(LEFT(VLOOKUP($G124,$H$11:$DN$1000,96,FALSE),3)=\"The\",EF124,VLOOKUP(VLOOKUP($G124,$H$11:$DN$1000,96,FALSE),DeclMatrix!$A$2:$F$5,VLOOKUP('Enrollment Form'!$B124,DeclMatrix!$A$8:$B$12,2,FALSE),FALSE))))","v":""},{"$f":"IF($A124=\"\",\"\",IF(VLOOKUP($G124,$H$11:$DN$1000,101,FALSE)=\"\",\"No\",IF(LEFT(VLOOKUP($G124,$H$11:$DN$1000,101,FALSE),3)=\"The\",EG124,VLOOKUP(VLOOKUP($G124,$H$11:$DN$1000,101,FALSE),DeclMatrix!$A$2:$F$5,VLOOKUP('Enrollment Form'!$B124,DeclMatrix!$A$8:$B$12,2,FALSE),FALSE))))","v":""},{"$f":"IF($A124=\"\",\"\",IF(VLOOKUP($G124,$H$11:$DN$1000,106,FALSE)=\"\",\"No\",IF(LEFT(VLOOKUP($G124,$H$11:$DN$1000,106,FALSE),3)=\"The\",EH124,VLOOKUP(VLOOKUP($G124,$H$11:$DN$1000,106,FALSE),DeclMatrix!$A$2:$F$5,VLOOKUP('Enrollment Form'!$B124,DeclMatrix!$A$8:$B$12,2,FALSE),FALSE))))","v":""},{"$f":"IF($A124=\"\",\"\",IF(VLOOKUP($G124,$H$11:$DN$1000,111,FALSE)=\"\",\"No\",IF(LEFT(VLOOKUP($G124,$H$11:$DN$1000,111,FALSE),3)=\"The\",EI124,VLOOKUP(VLOOKUP($G124,$H$11:$DN$1000,111,FALSE),DeclMatrix!$A$2:$F$5,VLOOKUP('Enrollment Form'!$B124,DeclMatrix!$A$8:$B$12,2,FALSE),FALSE))))","v":""},"",null,"","","","","","","","","","","",""]
["",{"$nulls":5},"","",{"$nulls":18},"","","","",{"$nulls":30},"","","","",{"$nulls":60},"",{"$f":"IF($A125=\"\",\"\",IF(VLOOKUP($G125,$H$11:$DN$1000,96,FALSE)=\"\",\"No\",IF(LEFT(VLOOKUP($G125,$H$11:$DN$1000,96,FALSE),3)=\"The\",EF125,VLOOKUP(VLOOKUP($G125,$H$11:$DN$1000,96,FALSE),DeclMatrix!$A$2:$F$5,VLOOKUP('Enrollment Form'!$B125,DeclMatrix!$A$8:$B$12,2,FALSE),FALSE))))","v":""},{"$f":"IF($A125=\"\",\"\",IF(VLOOKUP($G125,$H$11:$DN$1000,101,FALSE)=\"\",\"No\",IF(LEFT(VLOOKUP($G125,$H$11:$DN$1000,101,FALSE),3)=\"The\",EG125,VLOOKUP(VLOOKUP($G125,$H$11:$DN$1000,101,FALSE),DeclMatrix!$A$2:$F$5,VLOOKUP('Enrollment Form'!$B125,DeclMatrix!$A$8:$B$12,2,FALSE),FALSE))))","v":""},{"$f":"IF($A125=\"\",\"\",IF(VLOOKUP($G125,$H$11:$DN$1000,106,FALSE)=\"\",\"No\",IF(LEFT(VLOOKUP($G125,$H$11:$DN$1000,106,FALSE),3)=\"The\",EH125,VLOOKUP(VLOOKUP($G125,$H$11:$DN$1000,106,FALSE),DeclMatrix!$A$2:$F$5,VLOOKUP('Enrollment Form'!$B125,DeclMatrix!$A$8:$B$12,2,FALSE),FALSE))))","v":""},{"$f":"IF($A125=\"\",\"\",IF(VLOOKUP($G125,$H$11:$DN$1000,111,FALSE)=\"\",\"No\",IF(LEFT(VLOOKUP($G125,$H$11:$DN$1000,111,FALSE),3)=\"The\",EI125,VLOOKUP(VLOOKUP($G125,$H$11:$DN$1000,111,FALSE),DeclMatrix!$A$2:$F$5,VLOOKUP('Enrollment Form'!$B125,DeclMatrix!$A$8:$B$12,2,FALSE),FALSE))))","v":""},"",null,"","","","","","","","","","","",""]
["",{"$nulls":5},"","",{"$nulls":18},"","","","",{"$nulls":30},"","","","",{"$nulls":60},"",{"$f":"IF($A126=\"\",\"\",IF(VLOOKUP($G126,$H$11:$DN$1000,96,FALSE)=\"\",\"No\",IF(LEFT(VLOOKUP($G126,$H$11:$DN$1000,96,FALSE),3)=\"The\",EF126,VLOOKUP(VLOOKUP($G126,$H$11:$DN$1000,96,FALSE),DeclMatrix!$A$2:$F$5,VLOOKUP('Enrollment Form'!$B126,DeclMatrix!$A$8:$B$12,2,FALSE),FALSE))))","v":""},{"$f":"IF($A126=\"\",\"\",IF(VLOOKUP($G126,$H$11:$DN$1000,101,FALSE)=\"\",\"No\",IF(LEFT(VLOOKUP($G126,$H$11:$DN$1000,101,FALSE),3)=\"The\",EG126,VLOOKUP(VLOOKUP($G126,$H$11:$DN$1000,101,FALSE),DeclMatrix!$A$2:$F$5,VLOOKUP('Enrollment Form'!$B126,DeclMatrix!$A$8:$B$12,2,FALSE),FALSE))))","v":""},{"$f":"IF($A126=\"\",\"\",IF(VLOOKUP($G126,$H$11:$DN$1000,106,FALSE)=\"\",\"No\",IF(LEFT(VLOOKUP($G126,$H$11:$DN$1000,106,FALSE),3)=\"The\",EH126,VLOOKUP(VLOOKUP($G126,$H$11:$DN$1000,106,FALSE),DeclMatrix!$A$2:$F$5,VLOOKUP('Enrollment Form'!$B126,DeclMatrix!$A$8:$B$12,2,FALSE),FALSE))))","v":""},{"$f":"IF($A126=\"\",\"\",IF(VLOOKUP($G126,$H$11:$DN$1000,111,FALSE)=\"\",\"No\",IF(LEFT(VLOOKUP($G126,$H$11:$DN$1000,111,FALSE),3)=\"The\",EI126,VLOOKUP(VLOOKUP($G126,$H$11:$DN$1000,111,FALSE),DeclMatrix!$A$2:$F$5,VLOOKUP('Enrollment Form'!$B126,DeclMatrix!$A$8:$B$12,2,FALSE),FALSE))))","v":""},"",null,"","","","","","","","","","","",""]
["",{"$nulls":5},"","",{"$nulls":18},"","","","",{"$nulls":30},"","","","",{"$nulls":60},"",{"$f":"IF($A127=\"\",\"\",IF(VLOOKUP($G127,$H$11:$DN$1000,96,FALSE)=\"\",\"No\",IF(LEFT(VLOOKUP($G127,$H$11:$DN$1000,96,FALSE),3)=\"The\",EF127,VLOOKUP(VLOOKUP($G127,$H$11:$DN$1000,96,FALSE),DeclMatrix!$A$2:$F$5,VLOOKUP('Enrollment Form'!$B127,DeclMatrix!$A$8:$B$12,2,FALSE),FALSE))))","v":""},{"$f":"IF($A127=\"\",\"\",IF(VLOOKUP($G127,$H$11:$DN$1000,101,FALSE)=\"\",\"No\",IF(LEFT(VLOOKUP($G127,$H$11:$DN$1000,101,FALSE),3)=\"The\",EG127,VLOOKUP(VLOOKUP($G127,$H$11:$DN$1000,101,FALSE),DeclMatrix!$A$2:$F$5,VLOOKUP('Enrollment Form'!$B127,DeclMatrix!$A$8:$B$12,2,FALSE),FALSE))))","v":""},{"$f":"IF($A127=\"\",\"\",IF(VLOOKUP($G127,$H$11:$DN$1000,106,FALSE)=\"\",\"No\",IF(LEFT(VLOOKUP($G127,$H$11:$DN$1000,106,FALSE),3)=\"The\",EH127,VLOOKUP(VLOOKUP($G127,$H$11:$DN$1000,106,FALSE),DeclMatrix!$A$2:$F$5,VLOOKUP('Enrollment Form'!$B127,DeclMatrix!$A$8:$B$12,2,FALSE),FALSE))))","v":""},{"$f":"IF($A127=\"\",\"\",IF(VLOOKUP($G127,$H$11:$DN$1000,111,FALSE)=\"\",\"No\",IF(LEFT(VLOOKUP($G127,$H$11:$DN$1000,111,FALSE),3)=\"The\",EI127,VLOOKUP(VLOOKUP($G127,$H$11:$DN$1000,111,FALSE),DeclMatrix!$A$2:$F$5,VLOOKUP('Enrollment Form'!$B127,DeclMatrix!$A$8:$B$12,2,FALSE),FALSE))))","v":""},"",null,"","","","","","","","","","","",""]
["",{"$nulls":5},"","",{"$nulls":18},"","","","",{"$nulls":30},"","","","",{"$nulls":60},"",{"$f":"IF($A128=\"\",\"\",IF(VLOOKUP($G128,$H$11:$DN$1000,96,FALSE)=\"\",\"No\",IF(LEFT(VLOOKUP($G128,$H$11:$DN$1000,96,FALSE),3)=\"The\",EF128,VLOOKUP(VLOOKUP($G128,$H$11:$DN$1000,96,FALSE),DeclMatrix!$A$2:$F$5,VLOOKUP('Enrollment Form'!$B128,DeclMatrix!$A$8:$B$12,2,FALSE),FALSE))))","v":""},{"$f":"IF($A128=\"\",\"\",IF(VLOOKUP($G128,$H$11:$DN$1000,101,FALSE)=\"\",\"No\",IF(LEFT(VLOOKUP($G128,$H$11:$DN$1000,101,FALSE),3)=\"The\",EG128,VLOOKUP(VLOOKUP($G128,$H$11:$DN$1000,101,FALSE),DeclMatrix!$A$2:$F$5,VLOOKUP('Enrollment Form'!$B128,DeclMatrix!$A$8:$B$12,2,FALSE),FALSE))))","v":""},{"$f":"IF($A128=\"\",\"\",IF(VLOOKUP($G128,$H$11:$DN$1000,106,FALSE)=\"\",\"No\",IF(LEFT(VLOOKUP($G128,$H$11:$DN$1000,106,FALSE),3)=\"The\",EH128,VLOOKUP(VLOOKUP($G128,$H$11:$DN$1000,106,FALSE),DeclMatrix!$A$2:$F$5,VLOOKUP('Enrollment Form'!$B128,DeclMatrix!$A$8:$B$12,2,FALSE),FALSE))))","v":""},{"$f":"IF($A128=\"\",\"\",IF(VLOOKUP($G128,$H$11:$DN$1000,111,FALSE)=\"\",\"No\",IF(LEFT(VLOOKUP($G128,$H$11:$DN$1000,111,FALSE),3)=\"The\",EI128,VLOOKUP(VLOOKUP($G128,$H$11:$DN$1000,111,FALSE),DeclMatrix!$A$2:$F$5,VLOOKUP('Enrollment Form'!$B128,DeclMatrix!$A$8:$B$12,2,FALSE),FALSE))))","v":""},"",null,"","","","","","","","","","","",""]
["",{"$nulls":5},"","",{"$nulls":18},"","","","",{"$nulls":30},"","","","",{"$nulls":60},"",{"$f":"IF($A129=\"\",\"\",IF(VLOOKUP($G129,$H$11:$DN$1000,96,FALSE)=\"\",\"No\",IF(LEFT(VLOOKUP($G129,$H$11:$DN$1000,96,FALSE),3)=\"The\",EF129,VLOOKUP(VLOOKUP($G129,$H$11:$DN$1000,96,FALSE),DeclMatrix!$A$2:$F$5,VLOOKUP('Enrollment Form'!$B129,DeclMatrix!$A$8:$B$12,2,FALSE),FALSE))))","v":""},{"$f":"IF($A129=\"\",\"\",IF(VLOOKUP($G129,$H$11:$DN$1000,101,FALSE)=\"\",\"No\",IF(LEFT(VLOOKUP($G129,$H$11:$DN$1000,101,FALSE),3)=\"The\",EG129,VLOOKUP(VLOOKUP($G129,$H$11:$DN$1000,101,FALSE),DeclMatrix!$A$2:$F$5,VLOOKUP('Enrollment Form'!$B129,DeclMatrix!$A$8:$B$12,2,FALSE),FALSE))))","v":""},{"$f":"IF($A129=\"\",\"\",IF(VLOOKUP($G129,$H$11:$DN$1000,106,FALSE)=\"\",\"No\",IF(LEFT(VLOOKUP($G129,$H$11:$DN$1000,106,FALSE),3)=\"The\",EH129,VLOOKUP(VLOOKUP($G129,$H$11:$DN$1000,106,FALSE),DeclMatrix!$A$2:$F$5,VLOOKUP('Enrollment Form'!$B129,DeclMatrix!$A$8:$B$12,2,FALSE),FALSE))))","v":""},{"$f":"IF($A129=\"\",\"\",IF(VLOOKUP($G129,$H$11:$DN$1000,111,FALSE)=\"\",\"No\",IF(LEFT(VLOOKUP($G129,$H$11:$DN$1000,111,FALSE),3)=\"The\",EI129,VLOOKUP(VLOOKUP($G129,$H$11:$DN$1000,111,FALSE),DeclMatrix!$A$2:$F$5,VLOOKUP('Enrollment Form'!$B129,DeclMatrix!$A$8:$B$12,2,FALSE),FALSE))))","v":""},"",null,"","","","","","","","","","","",""]
["",{"$nulls":5},"","",{"$nulls":18},"","","","",{"$nulls":30},"","","","",{"$nulls":60},"",{"$f":"IF($A130=\"\",\"\",IF(VLOOKUP($G130,$H$11:$DN$1000,96,FALSE)=\"\",\"No\",IF(LEFT(VLOOKUP($G130,$H$11:$DN$1000,96,FALSE),3)=\"The\",EF130,VLOOKUP(VLOOKUP($G130,$H$11:$DN$1000,96,FALSE),DeclMatrix!$A$2:$F$5,VLOOKUP('Enrollment Form'!$B130,DeclMatrix!$A$8:$B$12,2,FALSE),FALSE))))","v":""},{"$f":"IF($A130=\"\",\"\",IF(VLOOKUP($G130,$H$11:$DN$1000,101,FALSE)=\"\",\"No\",IF(LEFT(VLOOKUP($G130,$H$11:$DN$1000,101,FALSE),3)=\"The\",EG130,VLOOKUP(VLOOKUP($G130,$H$11:$DN$1000,101,FALSE),DeclMatrix!$A$2:$F$5,VLOOKUP('Enrollment Form'!$B130,DeclMatrix!$A$8:$B$12,2,FALSE),FALSE))))","v":""},{"$f":"IF($A130=\"\",\"\",IF(VLOOKUP($G130,$H$11:$DN$1000,106,FALSE)=\"\",\"No\",IF(LEFT(VLOOKUP($G130,$H$11:$DN$1000,106,FALSE),3)=\"The\",EH130,VLOOKUP(VLOOKUP($G130,$H$11:$DN$1000,106,FALSE),DeclMatrix!$A$2:$F$5,VLOOKUP('Enrollment Form'!$B130,DeclMatrix!$A$8:$B$12,2,FALSE),FALSE))))","v":""},{"$f":"IF($A130=\"\",\"\",IF(VLOOKUP($G130,$H$11:$DN$1000,111,FALSE)=\"\",\"No\",IF(LEFT(VLOOKUP($G130,$H$11:$DN$1000,111,FALSE),3)=\"The\",EI130,VLOOKUP(VLOOKUP($G130,$H$11:$DN$1000,111,FALSE),DeclMatrix!$A$2:$F$5,VLOOKUP('Enrollment Form'!$B130,DeclMatrix!$A$8:$B$12,2,FALSE),FALSE))))","v":""},"",null,"","","","","","","","","","","",""]
["",{"$nulls":5},"","",{"$nulls":18},"","","","",{"$nulls":30},"","","","",{"$nulls":60},"",{"$f":"IF($A131=\"\",\"\",IF(VLOOKUP($G131,$H$11:$DN$1000,96,FALSE)=\"\",\"No\",IF(LEFT(VLOOKUP($G131,$H$11:$DN$1000,96,FALSE),3)=\"The\",EF131,VLOOKUP(VLOOKUP($G131,$H$11:$DN$1000,96,FALSE),DeclMatrix!$A$2:$F$5,VLOOKUP('Enrollment Form'!$B131,DeclMatrix!$A$8:$B$12,2,FALSE),FALSE))))","v":""},{"$f":"IF($A131=\"\",\"\",IF(VLOOKUP($G131,$H$11:$DN$1000,101,FALSE)=\"\",\"No\",IF(LEFT(VLOOKUP($G131,$H$11:$DN$1000,101,FALSE),3)=\"The\",EG131,VLOOKUP(VLOOKUP($G131,$H$11:$DN$1000,101,FALSE),DeclMatrix!$A$2:$F$5,VLOOKUP('Enrollment Form'!$B131,DeclMatrix!$A$8:$B$12,2,FALSE),FALSE))))","v":""},{"$f":"IF($A131=\"\",\"\",IF(VLOOKUP($G131,$H$11:$DN$1000,106,FALSE)=\"\",\"No\",IF(LEFT(VLOOKUP($G131,$H$11:$DN$1000,106,FALSE),3)=\"The\",EH131,VLOOKUP(VLOOKUP($G131,$H$11:$DN$1000,106,FALSE),DeclMatrix!$A$2:$F$5,VLOOKUP('Enrollment Form'!$B131,DeclMatrix!$A$8:$B$12,2,FALSE),FALSE))))","v":""},{"$f":"IF($A131=\"\",\"\",IF(VLOOKUP($G131,$H$11:$DN$1000,111,FALSE)=\"\",\"No\",IF(LEFT(VLOOKUP($G131,$H$11:$DN$1000,111,FALSE),3)=\"The\",EI131,VLOOKUP(VLOOKUP($G131,$H$11:$DN$1000,111,FALSE),DeclMatrix!$A$2:$F$5,VLOOKUP('Enrollment Form'!$B131,DeclMatrix!$A$8:$B$12,2,FALSE),FALSE))))","v":""},"",null,"","","","","","","","","","","",""]
["",{"$nulls":5},"","",{"$nulls":18},"","","","",{"$nulls":30},"","","","",{"$nulls":60},"",{"$f":"IF($A132=\"\",\"\",IF(VLOOKUP($G132,$H$11:$DN$1000,96,FALSE)=\"\",\"No\",IF(LEFT(VLOOKUP($G132,$H$11:$DN$1000,96,FALSE),3)=\"The\",EF132,VLOOKUP(VLOOKUP($G132,$H$11:$DN$1000,96,FALSE),DeclMatrix!$A$2:$F$5,VLOOKUP('Enrollment Form'!$B132,DeclMatrix!$A$8:$B$12,2,FALSE),FALSE))))","v":""},{"$f":"IF($A132=\"\",\"\",IF(VLOOKUP($G132,$H$11:$DN$1000,101,FALSE)=\"\",\"No\",IF(LEFT(VLOOKUP($G132,$H$11:$DN$1000,101,FALSE),3)=\"The\",EG132,VLOOKUP(VLOOKUP($G132,$H$11:$DN$1000,101,FALSE),DeclMatrix!$A$2:$F$5,VLOOKUP('Enrollment Form'!$B132,DeclMatrix!$A$8:$B$12,2,FALSE),FALSE))))","v":""},{"$f":"IF($A132=\"\",\"\",IF(VLOOKUP($G132,$H$11:$DN$1000,106,FALSE)=\"\",\"No\",IF(LEFT(VLOOKUP($G132,$H$11:$DN$1000,106,FALSE),3)=\"The\",EH132,VLOOKUP(VLOOKUP($G132,$H$11:$DN$1000,106,FALSE),DeclMatrix!$A$2:$F$5,VLOOKUP('Enrollment Form'!$B132,DeclMatrix!$A$8:$B$12,2,FALSE),FALSE))))","v":""},{"$f":"IF($A132=\"\",\"\",IF(VLOOKUP($G132,$H$11:$DN$1000,111,FALSE)=\"\",\"No\",IF(LEFT(VLOOKUP($G132,$H$11:$DN$1000,111,FALSE),3)=\"The\",EI132,VLOOKUP(VLOOKUP($G132,$H$11:$DN$1000,111,FALSE),DeclMatrix!$A$2:$F$5,VLOOKUP('Enrollment Form'!$B132,DeclMatrix!$A$8:$B$12,2,FALSE),FALSE))))","v":""},"",null,"","","","","","","","","","","",""]
["",{"$nulls":5},"","",{"$nulls":18},"","","","",{"$nulls":30},"","","","",{"$nulls":60},"",{"$f":"IF($A133=\"\",\"\",IF(VLOOKUP($G133,$H$11:$DN$1000,96,FALSE)=\"\",\"No\",IF(LEFT(VLOOKUP($G133,$H$11:$DN$1000,96,FALSE),3)=\"The\",EF133,VLOOKUP(VLOOKUP($G133,$H$11:$DN$1000,96,FALSE),DeclMatrix!$A$2:$F$5,VLOOKUP('Enrollment Form'!$B133,DeclMatrix!$A$8:$B$12,2,FALSE),FALSE))))","v":""},{"$f":"IF($A133=\"\",\"\",IF(VLOOKUP($G133,$H$11:$DN$1000,101,FALSE)=\"\",\"No\",IF(LEFT(VLOOKUP($G133,$H$11:$DN$1000,101,FALSE),3)=\"The\",EG133,VLOOKUP(VLOOKUP($G133,$H$11:$DN$1000,101,FALSE),DeclMatrix!$A$2:$F$5,VLOOKUP('Enrollment Form'!$B133,DeclMatrix!$A$8:$B$12,2,FALSE),FALSE))))","v":""},{"$f":"IF($A133=\"\",\"\",IF(VLOOKUP($G133,$H$11:$DN$1000,106,FALSE)=\"\",\"No\",IF(LEFT(VLOOKUP($G133,$H$11:$DN$1000,106,FALSE),3)=\"The\",EH133,VLOOKUP(VLOOKUP($G133,$H$11:$DN$1000,106,FALSE),DeclMatrix!$A$2:$F$5,VLOOKUP('Enrollment Form'!$B133,DeclMatrix!$A$8:$B$12,2,FALSE),FALSE))))","v":""},{"$f":"IF($A133=\"\",\"\",IF(VLOOKUP($G133,$H$11:$DN$1000,111,FALSE)=\"\",\"No\",IF(LEFT(VLOOKUP($G133,$H$11:$DN$1000,111,FALSE),3)=\"The\",EI133,VLOOKUP(VLOOKUP($G133,$H$11:$DN$1000,111,FALSE),DeclMatrix!$A$2:$F$5,VLOOKUP('Enrollment Form'!$B133,DeclMatrix!$A$8:$B$12,2,FALSE),FALSE))))","v":""},"",null,"","","","","","","","","","","",""]
["",{"$nulls":5},"","",{"$nulls":18},"","","","",{"$nulls":30},"","","","",{"$nulls":60},"",{"$f":"IF($A134=\"\",\"\",IF(VLOOKUP($G134,$H$11:$DN$1000,96,FALSE)=\"\",\"No\",IF(LEFT(VLOOKUP($G134,$H$11:$DN$1000,96,FALSE),3)=\"The\",EF134,VLOOKUP(VLOOKUP($G134,$H$11:$DN$1000,96,FALSE),DeclMatrix!$A$2:$F$5,VLOOKUP('Enrollment Form'!$B134,DeclMatrix!$A$8:$B$12,2,FALSE),FALSE))))","v":""},{"$f":"IF($A134=\"\",\"\",IF(VLOOKUP($G134,$H$11:$DN$1000,101,FALSE)=\"\",\"No\",IF(LEFT(VLOOKUP($G134,$H$11:$DN$1000,101,FALSE),3)=\"The\",EG134,VLOOKUP(VLOOKUP($G134,$H$11:$DN$1000,101,FALSE),DeclMatrix!$A$2:$F$5,VLOOKUP('Enrollment Form'!$B134,DeclMatrix!$A$8:$B$12,2,FALSE),FALSE))))","v":""},{"$f":"IF($A134=\"\",\"\",IF(VLOOKUP($G134,$H$11:$DN$1000,106,FALSE)=\"\",\"No\",IF(LEFT(VLOOKUP($G134,$H$11:$DN$1000,106,FALSE),3)=\"The\",EH134,VLOOKUP(VLOOKUP($G134,$H$11:$DN$1000,106,FALSE),DeclMatrix!$A$2:$F$5,VLOOKUP('Enrollment Form'!$B134,DeclMatrix!$A$8:$B$12,2,FALSE),FALSE))))","v":""},{"$f":"IF($A134=\"\",\"\",IF(VLOOKUP($G134,$H$11:$DN$1000,111,FALSE)=\"\",\"No\",IF(LEFT(VLOOKUP($G134,$H$11:$DN$1000,111,FALSE),3)=\"The\",EI134,VLOOKUP(VLOOKUP($G134,$H$11:$DN$1000,111,FALSE),DeclMatrix!$A$2:$F$5,VLOOKUP('Enrollment Form'!$B134,DeclMatrix!$A$8:$B$12,2,FALSE),FALSE))))","v":""},"",null,"","","","","","","","","","","",""]
["",{"$nulls":5},"","",{"$nulls":18},"","","","",{"$nulls":30},"","","","",{"$nulls":60},"",{"$f":"IF($A135=\"\",\"\",IF(VLOOKUP($G135,$H$11:$DN$1000,96,FALSE)=\"\",\"No\",IF(LEFT(VLOOKUP($G135,$H$11:$DN$1000,96,FALSE),3)=\"The\",EF135,VLOOKUP(VLOOKUP($G135,$H$11:$DN$1000,96,FALSE),DeclMatrix!$A$2:$F$5,VLOOKUP('Enrollment Form'!$B135,DeclMatrix!$A$8:$B$12,2,FALSE),FALSE))))","v":""},{"$f":"IF($A135=\"\",\"\",IF(VLOOKUP($G135,$H$11:$DN$1000,101,FALSE)=\"\",\"No\",IF(LEFT(VLOOKUP($G135,$H$11:$DN$1000,101,FALSE),3)=\"The\",EG135,VLOOKUP(VLOOKUP($G135,$H$11:$DN$1000,101,FALSE),DeclMatrix!$A$2:$F$5,VLOOKUP('Enrollment Form'!$B135,DeclMatrix!$A$8:$B$12,2,FALSE),FALSE))))","v":""},{"$f":"IF($A135=\"\",\"\",IF(VLOOKUP($G135,$H$11:$DN$1000,106,FALSE)=\"\",\"No\",IF(LEFT(VLOOKUP($G135,$H$11:$DN$1000,106,FALSE),3)=\"The\",EH135,VLOOKUP(VLOOKUP($G135,$H$11:$DN$1000,106,FALSE),DeclMatrix!$A$2:$F$5,VLOOKUP('Enrollment Form'!$B135,DeclMatrix!$A$8:$B$12,2,FALSE),FALSE))))","v":""},{"$f":"IF($A135=\"\",\"\",IF(VLOOKUP($G135,$H$11:$DN$1000,111,FALSE)=\"\",\"No\",IF(LEFT(VLOOKUP($G135,$H$11:$DN$1000,111,FALSE),3)=\"The\",EI135,VLOOKUP(VLOOKUP($G135,$H$11:$DN$1000,111,FALSE),DeclMatrix!$A$2:$F$5,VLOOKUP('Enrollment Form'!$B135,DeclMatrix!$A$8:$B$12,2,FALSE),FALSE))))","v":""},"",null,"","","","","","","","","","","",""]
["",{"$nulls":5},"","",{"$nulls":18},"","","","",{"$nulls":30},"","","","",{"$nulls":60},"",{"$f":"IF($A136=\"\",\"\",IF(VLOOKUP($G136,$H$11:$DN$1000,96,FALSE)=\"\",\"No\",IF(LEFT(VLOOKUP($G136,$H$11:$DN$1000,96,FALSE),3)=\"The\",EF136,VLOOKUP(VLOOKUP($G136,$H$11:$DN$1000,96,FALSE),DeclMatrix!$A$2:$F$5,VLOOKUP('Enrollment Form'!$B136,DeclMatrix!$A$8:$B$12,2,FALSE),FALSE))))","v":""},{"$f":"IF($A136=\"\",\"\",IF(VLOOKUP($G136,$H$11:$DN$1000,101,FALSE)=\"\",\"No\",IF(LEFT(VLOOKUP($G136,$H$11:$DN$1000,101,FALSE),3)=\"The\",EG136,VLOOKUP(VLOOKUP($G136,$H$11:$DN$1000,101,FALSE),DeclMatrix!$A$2:$F$5,VLOOKUP('Enrollment Form'!$B136,DeclMatrix!$A$8:$B$12,2,FALSE),FALSE))))","v":""},{"$f":"IF($A136=\"\",\"\",IF(VLOOKUP($G136,$H$11:$DN$1000,106,FALSE)=\"\",\"No\",IF(LEFT(VLOOKUP($G136,$H$11:$DN$1000,106,FALSE),3)=\"The\",EH136,VLOOKUP(VLOOKUP($G136,$H$11:$DN$1000,106,FALSE),DeclMatrix!$A$2:$F$5,VLOOKUP('Enrollment Form'!$B136,DeclMatrix!$A$8:$B$12,2,FALSE),FALSE))))","v":""},{"$f":"IF($A136=\"\",\"\",IF(VLOOKUP($G136,$H$11:$DN$1000,111,FALSE)=\"\",\"No\",IF(LEFT(VLOOKUP($G136,$H$11:$DN$1000,111,FALSE),3)=\"The\",EI136,VLOOKUP(VLOOKUP($G136,$H$11:$DN$1000,111,FALSE),DeclMatrix!$A$2:$F$5,VLOOKUP('Enrollment Form'!$B136,DeclMatrix!$A$8:$B$12,2,FALSE),FALSE))))","v":""},"",null,"","","","","","","","","","","",""]
["",{"$nulls":5},"","",{"$nulls":18},"","","","",{"$nulls":30},"","","","",{"$nulls":60},"",{"$f":"IF($A137=\"\",\"\",IF(VLOOKUP($G137,$H$11:$DN$1000,96,FALSE)=\"\",\"No\",IF(LEFT(VLOOKUP($G137,$H$11:$DN$1000,96,FALSE),3)=\"The\",EF137,VLOOKUP(VLOOKUP($G137,$H$11:$DN$1000,96,FALSE),DeclMatrix!$A$2:$F$5,VLOOKUP('Enrollment Form'!$B137,DeclMatrix!$A$8:$B$12,2,FALSE),FALSE))))","v":""},{"$f":"IF($A137=\"\",\"\",IF(VLOOKUP($G137,$H$11:$DN$1000,101,FALSE)=\"\",\"No\",IF(LEFT(VLOOKUP($G137,$H$11:$DN$1000,101,FALSE),3)=\"The\",EG137,VLOOKUP(VLOOKUP($G137,$H$11:$DN$1000,101,FALSE),DeclMatrix!$A$2:$F$5,VLOOKUP('Enrollment Form'!$B137,DeclMatrix!$A$8:$B$12,2,FALSE),FALSE))))","v":""},{"$f":"IF($A137=\"\",\"\",IF(VLOOKUP($G137,$H$11:$DN$1000,106,FALSE)=\"\",\"No\",IF(LEFT(VLOOKUP($G137,$H$11:$DN$1000,106,FALSE),3)=\"The\",EH137,VLOOKUP(VLOOKUP($G137,$H$11:$DN$1000,106,FALSE),DeclMatrix!$A$2:$F$5,VLOOKUP('Enrollment Form'!$B137,DeclMatrix!$A$8:$B$12,2,FALSE),FALSE))))","v":""},{"$f":"IF($A137=\"\",\"\",IF(VLOOKUP($G137,$H$11:$DN$1000,111,FALSE)=\"\",\"No\",IF(LEFT(VLOOKUP($G137,$H$11:$DN$1000,111,FALSE),3)=\"The\",EI137,VLOOKUP(VLOOKUP($G137,$H$11:$DN$1000,111,FALSE),DeclMatrix!$A$2:$F$5,VLOOKUP('Enrollment Form'!$B137,DeclMatrix!$A$8:$B$12,2,FALSE),FALSE))))","v":""},"",null,"","","","","","","","","","","",""]
["",{"$nulls":5},"","",{"$nulls":18},"","","","",{"$nulls":30},"","","","",{"$nulls":60},"",{"$f":"IF($A138=\"\",\"\",IF(VLOOKUP($G138,$H$11:$DN$1000,96,FALSE)=\"\",\"No\",IF(LEFT(VLOOKUP($G138,$H$11:$DN$1000,96,FALSE),3)=\"The\",EF138,VLOOKUP(VLOOKUP($G138,$H$11:$DN$1000,96,FALSE),DeclMatrix!$A$2:$F$5,VLOOKUP('Enrollment Form'!$B138,DeclMatrix!$A$8:$B$12,2,FALSE),FALSE))))","v":""},{"$f":"IF($A138=\"\",\"\",IF(VLOOKUP($G138,$H$11:$DN$1000,101,FALSE)=\"\",\"No\",IF(LEFT(VLOOKUP($G138,$H$11:$DN$1000,101,FALSE),3)=\"The\",EG138,VLOOKUP(VLOOKUP($G138,$H$11:$DN$1000,101,FALSE),DeclMatrix!$A$2:$F$5,VLOOKUP('Enrollment Form'!$B138,DeclMatrix!$A$8:$B$12,2,FALSE),FALSE))))","v":""},{"$f":"IF($A138=\"\",\"\",IF(VLOOKUP($G138,$H$11:$DN$1000,106,FALSE)=\"\",\"No\",IF(LEFT(VLOOKUP($G138,$H$11:$DN$1000,106,FALSE),3)=\"The\",EH138,VLOOKUP(VLOOKUP($G138,$H$11:$DN$1000,106,FALSE),DeclMatrix!$A$2:$F$5,VLOOKUP('Enrollment Form'!$B138,DeclMatrix!$A$8:$B$12,2,FALSE),FALSE))))","v":""},{"$f":"IF($A138=\"\",\"\",IF(VLOOKUP($G138,$H$11:$DN$1000,111,FALSE)=\"\",\"No\",IF(LEFT(VLOOKUP($G138,$H$11:$DN$1000,111,FALSE),3)=\"The\",EI138,VLOOKUP(VLOOKUP($G138,$H$11:$DN$1000,111,FALSE),DeclMatrix!$A$2:$F$5,VLOOKUP('Enrollment Form'!$B138,DeclMatrix!$A$8:$B$12,2,FALSE),FALSE))))","v":""},"",null,"","","","","","","","","","","",""]
[{"$f":"IF(LEN($B139)>0,$C$2,\"\")","v":""},{"$nulls":5},"","",{"$nulls":18},"","","","",{"$nulls":30},{"$f":"IF(AND($B139<>\"Subscriber\",$BH139=\"Yes\"),VLOOKUP($G139,$H$11:$Y$1000,15,FALSE),\"\")","v":""},{"$f":"IF(AND($B139<>\"Subscriber\",$BH139=\"Yes\"),VLOOKUP($G139,$H$11:$Y$1000,16,FALSE),\"\")","v":""},{"$f":"IF(AND($B139<>\"Subscriber\",$BH139=\"Yes\"),VLOOKUP($G139,$H$11:$Y$1000,17,FALSE),\"\")","v":""},{"$f":"IF(AND($B139<>\"Subscriber\",$BH139=\"Yes\"),VLOOKUP($G139,$H$11:$Y$1000,18,FALSE),\"\")","v":""},{"$nulls":60},{"$f":"IF($A139=\"\",\"\",IF($B139=\"Subscriber\",$AG139,VLOOKUP($G139,$H$11:$AG$1000,26,FALSE)))","v":""},{"$f":"IF($A139=\"\",\"\",IF(VLOOKUP($G139,$H$11:$DN$1000,96,FALSE)=\"\",\"No\",IF(LEFT(VLOOKUP($G139,$H$11:$DN$1000,96,FALSE),3)=\"The\",EF139,VLOOKUP(VLOOKUP($G139,$H$11:$DN$1000,96,FALSE),DeclMatrix!$A$2:$F$5,VLOOKUP('Enrollment Form'!$B139,DeclMatrix!$A$8:$B$12,2,FALSE),FALSE))))","v":""},{"$f":"IF($A139=\"\",\"\",IF(VLOOKUP($G139,$H$11:$DN$1000,101,FALSE)=\"\",\"No\",IF(LEFT(VLOOKUP($G139,$H$11:$DN$1000,101,FALSE),3)=\"The\",EG139,VLOOKUP(VLOOKUP($G139,$H$11:$DN$1000,101,FALSE),DeclMatrix!$A$2:$F$5,VLOOKUP('Enrollment Form'!$B139,DeclMatrix!$A$8:$B$12,2,FALSE),FALSE))))","v":""},{"$f":"IF($A139=\"\",\"\",IF(VLOOKUP($G139,$H$11:$DN$1000,106,FALSE)=\"\",\"No\",IF(LEFT(VLOOKUP($G139,$H$11:$DN$1000,106,FALSE),3)=\"The\",EH139,VLOOKUP(VLOOKUP($G139,$H$11:$DN$1000,106,FALSE),DeclMatrix!$A$2:$F$5,VLOOKUP('Enrollment Form'!$B139,DeclMatrix!$A$8:$B$12,2,FALSE),FALSE))))","v":""},{"$f":"IF($A139=\"\",\"\",IF(VLOOKUP($G139,$H$11:$DN$1000,111,FALSE)=\"\",\"No\",IF(LEFT(VLOOKUP($G139,$H$11:$DN$1000,111,FALSE),3)=\"The\",EI139,VLOOKUP(VLOOKUP($G139,$H$11:$DN$1000,111,FALSE),DeclMatrix!$A$2:$F$5,VLOOKUP('Enrollment Form'!$B139,DeclMatrix!$A$8:$B$12,2,FALSE),FALSE))))","v":""},"",null,{"$f":"$B139&$G139&$J139","v":""},{"$f":"$B139&$G139&$L139","v":""},{"$f":"$B139&$G139&$N139","v":""},{"$f":"$B139&$G139&$O139","v":""},"","","","",{"$f":"IF($A139=\"\",\"\",IF(AND($B139=\"Subscriber\",$I139<>\"Waive\",$I139<>\"\"),\"Yes\",IF(AND($B139<>\"Subscriber\",$BF139=\"Yes\"),VLOOKUP($G139,$H$11:$EM$1000,133,FALSE),IF(AND($C139=\"Enroll\",VLOOKUP($G140,$H$11:$EM$1000,96,FALSE)<>\"\"),VLOOKUP($DV139,$DW$2:$DX$3,2,FALSE),\"No\"))))","v":""},{"$f":"IF($A139=\"\",\"\",IF(AND($B139=\"Subscriber\",$K139<>\"Waive\",$K139<>\"\"),\"Yes\",IF(AND($B139<>\"Subscriber\",$BF139=\"Yes\"),VLOOKUP($G139,$H$11:$EM$1000,134,FALSE),IF(AND($C139=\"Enroll\",VLOOKUP($G140,$H$11:$EM$1000,101,FALSE)<>\"\"),VLOOKUP($DW139,$DW$2:$DX$3,2,FALSE),\"No\"))))","v":""},{"$f":"IF($A139=\"\",\"\",IF(AND($B139=\"Subscriber\",$M139<>\"Waive\",$M139<>\"\"),\"Yes\",IF(AND($B139<>\"Subscriber\",$BF139=\"Yes\"),VLOOKUP($G139,$H$11:$EM$1000,135,FALSE),IF(AND($C139=\"Enroll\",VLOOKUP($G140,$H$11:$EM$1000,106,FALSE)<>\"\"),VLOOKUP($DX139,$DW$2:$DX$3,2,FALSE),\"No\"))))","v":""},{"$f":"IF($A139=\"\",\"\",IF(AND($B139=\"Subscriber\",$O139<>\"Waive\",$O139<>\"\"),\"Yes\",IF(AND($B139<>\"Subscriber\",$BF139=\"Yes\"),VLOOKUP($G139,$H$11:$EM$1000,136,FALSE),IF(AND($C139=\"Enroll\",VLOOKUP($G140,$H$11:$EM$1000,111,FALSE)<>\"\"),VLOOKUP($DY139,$DW$2:$DX$3,2,FALSE),\"No\"))))","v":""}]
["",{"$nulls":5},{"$f":"IF(A140=\"\",\"\",IF(AND(B140<>\"Subscriber\",B140<>\"\"),G139,\"\"))","v":""},{"$f":"IF(AND(B140=\"Subscriber\",G140<>\"\"),G140,\"\")","v":""},{"$nulls":18},{"$f":"IF(AND($B140=\"Subscriber\",$Z140=\"Yes\"),V140,\"\")","v":""},{"$f":"IF(AND($B140=\"Subscriber\",$Z140=\"Yes\"),W140,\"\")","v":""},{"$f":"IF(AND($B140=\"Subscriber\",$Z140=\"Yes\"),X140,\"\")","v":""},{"$f":"IF(AND($B140=\"Subscriber\",$Z140=\"Yes\"),Y140,\"\")","v":""},{"$nulls":30},"","","","",{"$nulls":60},"",{"$f":"IF($A140=\"\",\"\",IF(VLOOKUP($G140,$H$11:$DN$1000,96,FALSE)=\"\",\"No\",IF(LEFT(VLOOKUP($G140,$H$11:$DN$1000,96,FALSE),3)=\"The\",EF140,VLOOKUP(VLOOKUP($G140,$H$11:$DN$1000,96,FALSE),DeclMatrix!$A$2:$F$5,VLOOKUP('Enrollment Form'!$B140,DeclMatrix!$A$8:$B$12,2,FALSE),FALSE))))","v":""},{"$f":"IF($A140=\"\",\"\",IF(VLOOKUP($G140,$H$11:$DN$1000,101,FALSE)=\"\",\"No\",IF(LEFT(VLOOKUP($G140,$H$11:$DN$1000,101,FALSE),3)=\"The\",EG140,VLOOKUP(VLOOKUP($G140,$H$11:$DN$1000,101,FALSE),DeclMatrix!$A$2:$F$5,VLOOKUP('Enrollment Form'!$B140,DeclMatrix!$A$8:$B$12,2,FALSE),FALSE))))","v":""},{"$f":"IF($A140=\"\",\"\",IF(VLOOKUP($G140,$H$11:$DN$1000,106,FALSE)=\"\",\"No\",IF(LEFT(VLOOKUP($G140,$H$11:$DN$1000,106,FALSE),3)=\"The\",EH140,VLOOKUP(VLOOKUP($G140,$H$11:$DN$1000,106,FALSE),DeclMatrix!$A$2:$F$5,VLOOKUP('Enrollment Form'!$B140,DeclMatrix!$A$8:$B$12,2,FALSE),FALSE))))","v":""},{"$f":"IF($A140=\"\",\"\",IF(VLOOKUP($G140,$H$11:$DN$1000,111,FALSE)=\"\",\"No\",IF(LEFT(VLOOKUP($G140,$H$11:$DN$1000,111,FALSE),3)=\"The\",EI140,VLOOKUP(VLOOKUP($G140,$H$11:$DN$1000,111,FALSE),DeclMatrix!$A$2:$F$5,VLOOKUP('Enrollment Form'!$B140,DeclMatrix!$A$8:$B$12,2,FALSE),FALSE))))","v":""},{"$f":"IF(A140<>\"\",\"1X\",\"\")","v":""},null,"","","","",{"$f":"IF($A140=\"\",\"\",IF($B140=\"Subscriber\",\"No\",IF(OR($CY140=\"\",$CY140=\"No\"),\"No\",\"Yes\")))","v":""},{"$f":"IF($A140=\"\",\"\",IF($B140=\"Subscriber\",\"No\",IF(OR($DD140=\"\",$DD140=\"No\"),\"No\",\"Yes\")))","v":""},{"$f":"IF($A140=\"\",\"\",IF($B140=\"Subscriber\",\"No\",IF(OR($DI140=\"\",$DI140=\"No\"),\"No\",\"Yes\")))","v":""},{"$f":"IF($A140=\"\",\"\",IF($B140=\"Subscriber\",\"No\",IF(OR($DN140=\"\",$DN140=\"No\"),\"No\",\"Yes\")))","v":""},"","","",""]
["",{"$nulls":5},"","",{"$nulls":18},"","","","",{"$nulls":30},"","","","",{"$nulls":60},"",{"$f":"IF($A141=\"\",\"\",IF(VLOOKUP($G141,$H$11:$DN$1000,96,FALSE)=\"\",\"No\",IF(LEFT(VLOOKUP($G141,$H$11:$DN$1000,96,FALSE),3)=\"The\",EF141,VLOOKUP(VLOOKUP($G141,$H$11:$DN$1000,96,FALSE),DeclMatrix!$A$2:$F$5,VLOOKUP('Enrollment Form'!$B141,DeclMatrix!$A$8:$B$12,2,FALSE),FALSE))))","v":""},{"$f":"IF($A141=\"\",\"\",IF(VLOOKUP($G141,$H$11:$DN$1000,101,FALSE)=\"\",\"No\",IF(LEFT(VLOOKUP($G141,$H$11:$DN$1000,101,FALSE),3)=\"The\",EG141,VLOOKUP(VLOOKUP($G141,$H$11:$DN$1000,101,FALSE),DeclMatrix!$A$2:$F$5,VLOOKUP('Enrollment Form'!$B141,DeclMatrix!$A$8:$B$12,2,FALSE),FALSE))))","v":""},{"$f":"IF($A141=\"\",\"\",IF(VLOOKUP($G141,$H$11:$DN$1000,106,FALSE)=\"\",\"No\",IF(LEFT(VLOOKUP($G141,$H$11:$DN$1000,106,FALSE),3)=\"The\",EH141,VLOOKUP(VLOOKUP($G141,$H$11:$DN$1000,106,FALSE),DeclMatrix!$A$2:$F$5,VLOOKUP('Enrollment Form'!$B141,DeclMatrix!$A$8:$B$12,2,FALSE),FALSE))))","v":""},{"$f":"IF($A141=\"\",\"\",IF(VLOOKUP($G141,$H$11:$DN$1000,111,FALSE)=\"\",\"No\",IF(LEFT(VLOOKUP($G141,$H$11:$DN$1000,111,FALSE),3)=\"The\",EI141,VLOOKUP(VLOOKUP($G141,$H$11:$DN$1000,111,FALSE),DeclMatrix!$A$2:$F$5,VLOOKUP('Enrollment Form'!$B141,DeclMatrix!$A$8:$B$12,2,FALSE),FALSE))))","v":""},"",null,"","","","","","","","","","","",""]
["",{"$nulls":5},"","",{"$nulls":18},"","","","",{"$nulls":30},"","","","",{"$nulls":60},"",{"$f":"IF($A142=\"\",\"\",IF(VLOOKUP($G142,$H$11:$DN$1000,96,FALSE)=\"\",\"No\",IF(LEFT(VLOOKUP($G142,$H$11:$DN$1000,96,FALSE),3)=\"The\",EF142,VLOOKUP(VLOOKUP($G142,$H$11:$DN$1000,96,FALSE),DeclMatrix!$A$2:$F$5,VLOOKUP('Enrollment Form'!$B142,DeclMatrix!$A$8:$B$12,2,FALSE),FALSE))))","v":""},{"$f":"IF($A142=\"\",\"\",IF(VLOOKUP($G142,$H$11:$DN$1000,101,FALSE)=\"\",\"No\",IF(LEFT(VLOOKUP($G142,$H$11:$DN$1000,101,FALSE),3)=\"The\",EG142,VLOOKUP(VLOOKUP($G142,$H$11:$DN$1000,101,FALSE),DeclMatrix!$A$2:$F$5,VLOOKUP('Enrollment Form'!$B142,DeclMatrix!$A$8:$B$12,2,FALSE),FALSE))))","v":""},{"$f":"IF($A142=\"\",\"\",IF(VLOOKUP($G142,$H$11:$DN$1000,106,FALSE)=\"\",\"No\",IF(LEFT(VLOOKUP($G142,$H$11:$DN$1000,106,FALSE),3)=\"The\",EH142,VLOOKUP(VLOOKUP($G142,$H$11:$DN$1000,106,FALSE),DeclMatrix!$A$2:$F$5,VLOOKUP('Enrollment Form'!$B142,DeclMatrix!$A$8:$B$12,2,FALSE),FALSE))))","v":""},{"$f":"IF($A142=\"\",\"\",IF(VLOOKUP($G142,$H$11:$DN$1000,111,FALSE)=\"\",\"No\",IF(LEFT(VLOOKUP($G142,$H$11:$DN$1000,111,FALSE),3)=\"The\",EI142,VLOOKUP(VLOOKUP($G142,$H$11:$DN$1000,111,FALSE),DeclMatrix!$A$2:$F$5,VLOOKUP('Enrollment Form'!$B142,DeclMatrix!$A$8:$B$12,2,FALSE),FALSE))))","v":""},"",null,"","","","","","","","","","","",""]
["",{"$nulls":5},"","",{"$nulls":18},"","","","",{"$nulls":30},"","","","",{"$nulls":60},"",{"$f":"IF($A143=\"\",\"\",IF(VLOOKUP($G143,$H$11:$DN$1000,96,FALSE)=\"\",\"No\",IF(LEFT(VLOOKUP($G143,$H$11:$DN$1000,96,FALSE),3)=\"The\",EF143,VLOOKUP(VLOOKUP($G143,$H$11:$DN$1000,96,FALSE),DeclMatrix!$A$2:$F$5,VLOOKUP('Enrollment Form'!$B143,DeclMatrix!$A$8:$B$12,2,FALSE),FALSE))))","v":""},{"$f":"IF($A143=\"\",\"\",IF(VLOOKUP($G143,$H$11:$DN$1000,101,FALSE)=\"\",\"No\",IF(LEFT(VLOOKUP($G143,$H$11:$DN$1000,101,FALSE),3)=\"The\",EG143,VLOOKUP(VLOOKUP($G143,$H$11:$DN$1000,101,FALSE),DeclMatrix!$A$2:$F$5,VLOOKUP('Enrollment Form'!$B143,DeclMatrix!$A$8:$B$12,2,FALSE),FALSE))))","v":""},{"$f":"IF($A143=\"\",\"\",IF(VLOOKUP($G143,$H$11:$DN$1000,106,FALSE)=\"\",\"No\",IF(LEFT(VLOOKUP($G143,$H$11:$DN$1000,106,FALSE),3)=\"The\",EH143,VLOOKUP(VLOOKUP($G143,$H$11:$DN$1000,106,FALSE),DeclMatrix!$A$2:$F$5,VLOOKUP('Enrollment Form'!$B143,DeclMatrix!$A$8:$B$12,2,FALSE),FALSE))))","v":""},{"$f":"IF($A143=\"\",\"\",IF(VLOOKUP($G143,$H$11:$DN$1000,111,FALSE)=\"\",\"No\",IF(LEFT(VLOOKUP($G143,$H$11:$DN$1000,111,FALSE),3)=\"The\",EI143,VLOOKUP(VLOOKUP($G143,$H$11:$DN$1000,111,FALSE),DeclMatrix!$A$2:$F$5,VLOOKUP('Enrollment Form'!$B143,DeclMatrix!$A$8:$B$12,2,FALSE),FALSE))))","v":""},"",null,"","","","","","","","","","","",""]
["",{"$nulls":5},"","",{"$nulls":18},"","","","",{"$nulls":30},"","","","",{"$nulls":60},"",{"$f":"IF($A144=\"\",\"\",IF(VLOOKUP($G144,$H$11:$DN$1000,96,FALSE)=\"\",\"No\",IF(LEFT(VLOOKUP($G144,$H$11:$DN$1000,96,FALSE),3)=\"The\",EF144,VLOOKUP(VLOOKUP($G144,$H$11:$DN$1000,96,FALSE),DeclMatrix!$A$2:$F$5,VLOOKUP('Enrollment Form'!$B144,DeclMatrix!$A$8:$B$12,2,FALSE),FALSE))))","v":""},{"$f":"IF($A144=\"\",\"\",IF(VLOOKUP($G144,$H$11:$DN$1000,101,FALSE)=\"\",\"No\",IF(LEFT(VLOOKUP($G144,$H$11:$DN$1000,101,FALSE),3)=\"The\",EG144,VLOOKUP(VLOOKUP($G144,$H$11:$DN$1000,101,FALSE),DeclMatrix!$A$2:$F$5,VLOOKUP('Enrollment Form'!$B144,DeclMatrix!$A$8:$B$12,2,FALSE),FALSE))))","v":""},{"$f":"IF($A144=\"\",\"\",IF(VLOOKUP($G144,$H$11:$DN$1000,106,FALSE)=\"\",\"No\",IF(LEFT(VLOOKUP($G144,$H$11:$DN$1000,106,FALSE),3)=\"The\",EH144,VLOOKUP(VLOOKUP($G144,$H$11:$DN$1000,106,FALSE),DeclMatrix!$A$2:$F$5,VLOOKUP('Enrollment Form'!$B144,DeclMatrix!$A$8:$B$12,2,FALSE),FALSE))))","v":""},{"$f":"IF($A144=\"\",\"\",IF(VLOOKUP($G144,$H$11:$DN$1000,111,FALSE)=\"\",\"No\",IF(LEFT(VLOOKUP($G144,$H$11:$DN$1000,111,FALSE),3)=\"The\",EI144,VLOOKUP(VLOOKUP($G144,$H$11:$DN$1000,111,FALSE),DeclMatrix!$A$2:$F$5,VLOOKUP('Enrollment Form'!$B144,DeclMatrix!$A$8:$B$12,2,FALSE),FALSE))))","v":""},"",null,"","","","","","","","","","","",""]
["",{"$nulls":5},"","",{"$nulls":18},"","","","",{"$nulls":30},"","","","",{"$nulls":60},"",{"$f":"IF($A145=\"\",\"\",IF(VLOOKUP($G145,$H$11:$DN$1000,96,FALSE)=\"\",\"No\",IF(LEFT(VLOOKUP($G145,$H$11:$DN$1000,96,FALSE),3)=\"The\",EF145,VLOOKUP(VLOOKUP($G145,$H$11:$DN$1000,96,FALSE),DeclMatrix!$A$2:$F$5,VLOOKUP('Enrollment Form'!$B145,DeclMatrix!$A$8:$B$12,2,FALSE),FALSE))))","v":""},{"$f":"IF($A145=\"\",\"\",IF(VLOOKUP($G145,$H$11:$DN$1000,101,FALSE)=\"\",\"No\",IF(LEFT(VLOOKUP($G145,$H$11:$DN$1000,101,FALSE),3)=\"The\",EG145,VLOOKUP(VLOOKUP($G145,$H$11:$DN$1000,101,FALSE),DeclMatrix!$A$2:$F$5,VLOOKUP('Enrollment Form'!$B145,DeclMatrix!$A$8:$B$12,2,FALSE),FALSE))))","v":""},{"$f":"IF($A145=\"\",\"\",IF(VLOOKUP($G145,$H$11:$DN$1000,106,FALSE)=\"\",\"No\",IF(LEFT(VLOOKUP($G145,$H$11:$DN$1000,106,FALSE),3)=\"The\",EH145,VLOOKUP(VLOOKUP($G145,$H$11:$DN$1000,106,FALSE),DeclMatrix!$A$2:$F$5,VLOOKUP('Enrollment Form'!$B145,DeclMatrix!$A$8:$B$12,2,FALSE),FALSE))))","v":""},{"$f":"IF($A145=\"\",\"\",IF(VLOOKUP($G145,$H$11:$DN$1000,111,FALSE)=\"\",\"No\",IF(LEFT(VLOOKUP($G145,$H$11:$DN$1000,111,FALSE),3)=\"The\",EI145,VLOOKUP(VLOOKUP($G145,$H$11:$DN$1000,111,FALSE),DeclMatrix!$A$2:$F$5,VLOOKUP('Enrollment Form'!$B145,DeclMatrix!$A$8:$B$12,2,FALSE),FALSE))))","v":""},"",null,"","","","","","","","","","","",""]
["",{"$nulls":5},"","",{"$nulls":18},"","","","",{"$nulls":30},"","","","",{"$nulls":60},"",{"$f":"IF($A146=\"\",\"\",IF(VLOOKUP($G146,$H$11:$DN$1000,96,FALSE)=\"\",\"No\",IF(LEFT(VLOOKUP($G146,$H$11:$DN$1000,96,FALSE),3)=\"The\",EF146,VLOOKUP(VLOOKUP($G146,$H$11:$DN$1000,96,FALSE),DeclMatrix!$A$2:$F$5,VLOOKUP('Enrollment Form'!$B146,DeclMatrix!$A$8:$B$12,2,FALSE),FALSE))))","v":""},{"$f":"IF($A146=\"\",\"\",IF(VLOOKUP($G146,$H$11:$DN$1000,101,FALSE)=\"\",\"No\",IF(LEFT(VLOOKUP($G146,$H$11:$DN$1000,101,FALSE),3)=\"The\",EG146,VLOOKUP(VLOOKUP($G146,$H$11:$DN$1000,101,FALSE),DeclMatrix!$A$2:$F$5,VLOOKUP('Enrollment Form'!$B146,DeclMatrix!$A$8:$B$12,2,FALSE),FALSE))))","v":""},{"$f":"IF($A146=\"\",\"\",IF(VLOOKUP($G146,$H$11:$DN$1000,106,FALSE)=\"\",\"No\",IF(LEFT(VLOOKUP($G146,$H$11:$DN$1000,106,FALSE),3)=\"The\",EH146,VLOOKUP(VLOOKUP($G146,$H$11:$DN$1000,106,FALSE),DeclMatrix!$A$2:$F$5,VLOOKUP('Enrollment Form'!$B146,DeclMatrix!$A$8:$B$12,2,FALSE),FALSE))))","v":""},{"$f":"IF($A146=\"\",\"\",IF(VLOOKUP($G146,$H$11:$DN$1000,111,FALSE)=\"\",\"No\",IF(LEFT(VLOOKUP($G146,$H$11:$DN$1000,111,FALSE),3)=\"The\",EI146,VLOOKUP(VLOOKUP($G146,$H$11:$DN$1000,111,FALSE),DeclMatrix!$A$2:$F$5,VLOOKUP('Enrollment Form'!$B146,DeclMatrix!$A$8:$B$12,2,FALSE),FALSE))))","v":""},"",null,"","","","","","","","","","","",""]
["",{"$nulls":5},"","",{"$nulls":18},"","","","",{"$nulls":30},"","","","",{"$nulls":60},"",{"$f":"IF($A147=\"\",\"\",IF(VLOOKUP($G147,$H$11:$DN$1000,96,FALSE)=\"\",\"No\",IF(LEFT(VLOOKUP($G147,$H$11:$DN$1000,96,FALSE),3)=\"The\",EF147,VLOOKUP(VLOOKUP($G147,$H$11:$DN$1000,96,FALSE),DeclMatrix!$A$2:$F$5,VLOOKUP('Enrollment Form'!$B147,DeclMatrix!$A$8:$B$12,2,FALSE),FALSE))))","v":""},{"$f":"IF($A147=\"\",\"\",IF(VLOOKUP($G147,$H$11:$DN$1000,101,FALSE)=\"\",\"No\",IF(LEFT(VLOOKUP($G147,$H$11:$DN$1000,101,FALSE),3)=\"The\",EG147,VLOOKUP(VLOOKUP($G147,$H$11:$DN$1000,101,FALSE),DeclMatrix!$A$2:$F$5,VLOOKUP('Enrollment Form'!$B147,DeclMatrix!$A$8:$B$12,2,FALSE),FALSE))))","v":""},{"$f":"IF($A147=\"\",\"\",IF(VLOOKUP($G147,$H$11:$DN$1000,106,FALSE)=\"\",\"No\",IF(LEFT(VLOOKUP($G147,$H$11:$DN$1000,106,FALSE),3)=\"The\",EH147,VLOOKUP(VLOOKUP($G147,$H$11:$DN$1000,106,FALSE),DeclMatrix!$A$2:$F$5,VLOOKUP('Enrollment Form'!$B147,DeclMatrix!$A$8:$B$12,2,FALSE),FALSE))))","v":""},{"$f":"IF($A147=\"\",\"\",IF(VLOOKUP($G147,$H$11:$DN$1000,111,FALSE)=\"\",\"No\",IF(LEFT(VLOOKUP($G147,$H$11:$DN$1000,111,FALSE),3)=\"The\",EI147,VLOOKUP(VLOOKUP($G147,$H$11:$DN$1000,111,FALSE),DeclMatrix!$A$2:$F$5,VLOOKUP('Enrollment Form'!$B147,DeclMatrix!$A$8:$B$12,2,FALSE),FALSE))))","v":""},"",null,"","","","","","","","","","","",""]
["",{"$nulls":5},"","",{"$nulls":18},"","","","",{"$nulls":30},"","","","",{"$nulls":60},"",{"$f":"IF($A148=\"\",\"\",IF(VLOOKUP($G148,$H$11:$DN$1000,96,FALSE)=\"\",\"No\",IF(LEFT(VLOOKUP($G148,$H$11:$DN$1000,96,FALSE),3)=\"The\",EF148,VLOOKUP(VLOOKUP($G148,$H$11:$DN$1000,96,FALSE),DeclMatrix!$A$2:$F$5,VLOOKUP('Enrollment Form'!$B148,DeclMatrix!$A$8:$B$12,2,FALSE),FALSE))))","v":""},{"$f":"IF($A148=\"\",\"\",IF(VLOOKUP($G148,$H$11:$DN$1000,101,FALSE)=\"\",\"No\",IF(LEFT(VLOOKUP($G148,$H$11:$DN$1000,101,FALSE),3)=\"The\",EG148,VLOOKUP(VLOOKUP($G148,$H$11:$DN$1000,101,FALSE),DeclMatrix!$A$2:$F$5,VLOOKUP('Enrollment Form'!$B148,DeclMatrix!$A$8:$B$12,2,FALSE),FALSE))))","v":""},{"$f":"IF($A148=\"\",\"\",IF(VLOOKUP($G148,$H$11:$DN$1000,106,FALSE)=\"\",\"No\",IF(LEFT(VLOOKUP($G148,$H$11:$DN$1000,106,FALSE),3)=\"The\",EH148,VLOOKUP(VLOOKUP($G148,$H$11:$DN$1000,106,FALSE),DeclMatrix!$A$2:$F$5,VLOOKUP('Enrollment Form'!$B148,DeclMatrix!$A$8:$B$12,2,FALSE),FALSE))))","v":""},{"$f":"IF($A148=\"\",\"\",IF(VLOOKUP($G148,$H$11:$DN$1000,111,FALSE)=\"\",\"No\",IF(LEFT(VLOOKUP($G148,$H$11:$DN$1000,111,FALSE),3)=\"The\",EI148,VLOOKUP(VLOOKUP($G148,$H$11:$DN$1000,111,FALSE),DeclMatrix!$A$2:$F$5,VLOOKUP('Enrollment Form'!$B148,DeclMatrix!$A$8:$B$12,2,FALSE),FALSE))))","v":""},"",null,"","","","","","","","","","","",""]
["",{"$nulls":5},"","",{"$nulls":18},"","","","",{"$nulls":30},"","","","",{"$nulls":60},"",{"$f":"IF($A149=\"\",\"\",IF(VLOOKUP($G149,$H$11:$DN$1000,96,FALSE)=\"\",\"No\",IF(LEFT(VLOOKUP($G149,$H$11:$DN$1000,96,FALSE),3)=\"The\",EF149,VLOOKUP(VLOOKUP($G149,$H$11:$DN$1000,96,FALSE),DeclMatrix!$A$2:$F$5,VLOOKUP('Enrollment Form'!$B149,DeclMatrix!$A$8:$B$12,2,FALSE),FALSE))))","v":""},{"$f":"IF($A149=\"\",\"\",IF(VLOOKUP($G149,$H$11:$DN$1000,101,FALSE)=\"\",\"No\",IF(LEFT(VLOOKUP($G149,$H$11:$DN$1000,101,FALSE),3)=\"The\",EG149,VLOOKUP(VLOOKUP($G149,$H$11:$DN$1000,101,FALSE),DeclMatrix!$A$2:$F$5,VLOOKUP('Enrollment Form'!$B149,DeclMatrix!$A$8:$B$12,2,FALSE),FALSE))))","v":""},{"$f":"IF($A149=\"\",\"\",IF(VLOOKUP($G149,$H$11:$DN$1000,106,FALSE)=\"\",\"No\",IF(LEFT(VLOOKUP($G149,$H$11:$DN$1000,106,FALSE),3)=\"The\",EH149,VLOOKUP(VLOOKUP($G149,$H$11:$DN$1000,106,FALSE),DeclMatrix!$A$2:$F$5,VLOOKUP('Enrollment Form'!$B149,DeclMatrix!$A$8:$B$12,2,FALSE),FALSE))))","v":""},{"$f":"IF($A149=\"\",\"\",IF(VLOOKUP($G149,$H$11:$DN$1000,111,FALSE)=\"\",\"No\",IF(LEFT(VLOOKUP($G149,$H$11:$DN$1000,111,FALSE),3)=\"The\",EI149,VLOOKUP(VLOOKUP($G149,$H$11:$DN$1000,111,FALSE),DeclMatrix!$A$2:$F$5,VLOOKUP('Enrollment Form'!$B149,DeclMatrix!$A$8:$B$12,2,FALSE),FALSE))))","v":""},"",null,"","","","","","","","","","","",""]
["",{"$nulls":5},"","",{"$nulls":18},"","","","",{"$nulls":30},"","","","",{"$nulls":60},"",{"$f":"IF($A150=\"\",\"\",IF(VLOOKUP($G150,$H$11:$DN$1000,96,FALSE)=\"\",\"No\",IF(LEFT(VLOOKUP($G150,$H$11:$DN$1000,96,FALSE),3)=\"The\",EF150,VLOOKUP(VLOOKUP($G150,$H$11:$DN$1000,96,FALSE),DeclMatrix!$A$2:$F$5,VLOOKUP('Enrollment Form'!$B150,DeclMatrix!$A$8:$B$12,2,FALSE),FALSE))))","v":""},{"$f":"IF($A150=\"\",\"\",IF(VLOOKUP($G150,$H$11:$DN$1000,101,FALSE)=\"\",\"No\",IF(LEFT(VLOOKUP($G150,$H$11:$DN$1000,101,FALSE),3)=\"The\",EG150,VLOOKUP(VLOOKUP($G150,$H$11:$DN$1000,101,FALSE),DeclMatrix!$A$2:$F$5,VLOOKUP('Enrollment Form'!$B150,DeclMatrix!$A$8:$B$12,2,FALSE),FALSE))))","v":""},{"$f":"IF($A150=\"\",\"\",IF(VLOOKUP($G150,$H$11:$DN$1000,106,FALSE)=\"\",\"No\",IF(LEFT(VLOOKUP($G150,$H$11:$DN$1000,106,FALSE),3)=\"The\",EH150,VLOOKUP(VLOOKUP($G150,$H$11:$DN$1000,106,FALSE),DeclMatrix!$A$2:$F$5,VLOOKUP('Enrollment Form'!$B150,DeclMatrix!$A$8:$B$12,2,FALSE),FALSE))))","v":""},{"$f":"IF($A150=\"\",\"\",IF(VLOOKUP($G150,$H$11:$DN$1000,111,FALSE)=\"\",\"No\",IF(LEFT(VLOOKUP($G150,$H$11:$DN$1000,111,FALSE),3)=\"The\",EI150,VLOOKUP(VLOOKUP($G150,$H$11:$DN$1000,111,FALSE),DeclMatrix!$A$2:$F$5,VLOOKUP('Enrollment Form'!$B150,DeclMatrix!$A$8:$B$12,2,FALSE),FALSE))))","v":""},"",null,"","","","","","","","","","","",""]
["",{"$nulls":5},"","",{"$nulls":18},"","","","",{"$nulls":30},"","","","",{"$nulls":60},"",{"$f":"IF($A151=\"\",\"\",IF(VLOOKUP($G151,$H$11:$DN$1000,96,FALSE)=\"\",\"No\",IF(LEFT(VLOOKUP($G151,$H$11:$DN$1000,96,FALSE),3)=\"The\",EF151,VLOOKUP(VLOOKUP($G151,$H$11:$DN$1000,96,FALSE),DeclMatrix!$A$2:$F$5,VLOOKUP('Enrollment Form'!$B151,DeclMatrix!$A$8:$B$12,2,FALSE),FALSE))))","v":""},{"$f":"IF($A151=\"\",\"\",IF(VLOOKUP($G151,$H$11:$DN$1000,101,FALSE)=\"\",\"No\",IF(LEFT(VLOOKUP($G151,$H$11:$DN$1000,101,FALSE),3)=\"The\",EG151,VLOOKUP(VLOOKUP($G151,$H$11:$DN$1000,101,FALSE),DeclMatrix!$A$2:$F$5,VLOOKUP('Enrollment Form'!$B151,DeclMatrix!$A$8:$B$12,2,FALSE),FALSE))))","v":""},{"$f":"IF($A151=\"\",\"\",IF(VLOOKUP($G151,$H$11:$DN$1000,106,FALSE)=\"\",\"No\",IF(LEFT(VLOOKUP($G151,$H$11:$DN$1000,106,FALSE),3)=\"The\",EH151,VLOOKUP(VLOOKUP($G151,$H$11:$DN$1000,106,FALSE),DeclMatrix!$A$2:$F$5,VLOOKUP('Enrollment Form'!$B151,DeclMatrix!$A$8:$B$12,2,FALSE),FALSE))))","v":""},{"$f":"IF($A151=\"\",\"\",IF(VLOOKUP($G151,$H$11:$DN$1000,111,FALSE)=\"\",\"No\",IF(LEFT(VLOOKUP($G151,$H$11:$DN$1000,111,FALSE),3)=\"The\",EI151,VLOOKUP(VLOOKUP($G151,$H$11:$DN$1000,111,FALSE),DeclMatrix!$A$2:$F$5,VLOOKUP('Enrollment Form'!$B151,DeclMatrix!$A$8:$B$12,2,FALSE),FALSE))))","v":""},"",null,"","","","","","","","","","","",""]
["",{"$nulls":5},"","",{"$nulls":18},"","","","",{"$nulls":30},"","","","",{"$nulls":60},"",{"$f":"IF($A152=\"\",\"\",IF(VLOOKUP($G152,$H$11:$DN$1000,96,FALSE)=\"\",\"No\",IF(LEFT(VLOOKUP($G152,$H$11:$DN$1000,96,FALSE),3)=\"The\",EF152,VLOOKUP(VLOOKUP($G152,$H$11:$DN$1000,96,FALSE),DeclMatrix!$A$2:$F$5,VLOOKUP('Enrollment Form'!$B152,DeclMatrix!$A$8:$B$12,2,FALSE),FALSE))))","v":""},{"$f":"IF($A152=\"\",\"\",IF(VLOOKUP($G152,$H$11:$DN$1000,101,FALSE)=\"\",\"No\",IF(LEFT(VLOOKUP($G152,$H$11:$DN$1000,101,FALSE),3)=\"The\",EG152,VLOOKUP(VLOOKUP($G152,$H$11:$DN$1000,101,FALSE),DeclMatrix!$A$2:$F$5,VLOOKUP('Enrollment Form'!$B152,DeclMatrix!$A$8:$B$12,2,FALSE),FALSE))))","v":""},{"$f":"IF($A152=\"\",\"\",IF(VLOOKUP($G152,$H$11:$DN$1000,106,FALSE)=\"\",\"No\",IF(LEFT(VLOOKUP($G152,$H$11:$DN$1000,106,FALSE),3)=\"The\",EH152,VLOOKUP(VLOOKUP($G152,$H$11:$DN$1000,106,FALSE),DeclMatrix!$A$2:$F$5,VLOOKUP('Enrollment Form'!$B152,DeclMatrix!$A$8:$B$12,2,FALSE),FALSE))))","v":""},{"$f":"IF($A152=\"\",\"\",IF(VLOOKUP($G152,$H$11:$DN$1000,111,FALSE)=\"\",\"No\",IF(LEFT(VLOOKUP($G152,$H$11:$DN$1000,111,FALSE),3)=\"The\",EI152,VLOOKUP(VLOOKUP($G152,$H$11:$DN$1000,111,FALSE),DeclMatrix!$A$2:$F$5,VLOOKUP('Enrollment Form'!$B152,DeclMatrix!$A$8:$B$12,2,FALSE),FALSE))))","v":""},"",null,"","","","","","","","","","","",""]
["",{"$nulls":5},"","",{"$nulls":18},"","","","",{"$nulls":30},"","","","",{"$nulls":60},"",{"$f":"IF($A153=\"\",\"\",IF(VLOOKUP($G153,$H$11:$DN$1000,96,FALSE)=\"\",\"No\",IF(LEFT(VLOOKUP($G153,$H$11:$DN$1000,96,FALSE),3)=\"The\",EF153,VLOOKUP(VLOOKUP($G153,$H$11:$DN$1000,96,FALSE),DeclMatrix!$A$2:$F$5,VLOOKUP('Enrollment Form'!$B153,DeclMatrix!$A$8:$B$12,2,FALSE),FALSE))))","v":""},{"$f":"IF($A153=\"\",\"\",IF(VLOOKUP($G153,$H$11:$DN$1000,101,FALSE)=\"\",\"No\",IF(LEFT(VLOOKUP($G153,$H$11:$DN$1000,101,FALSE),3)=\"The\",EG153,VLOOKUP(VLOOKUP($G153,$H$11:$DN$1000,101,FALSE),DeclMatrix!$A$2:$F$5,VLOOKUP('Enrollment Form'!$B153,DeclMatrix!$A$8:$B$12,2,FALSE),FALSE))))","v":""},{"$f":"IF($A153=\"\",\"\",IF(VLOOKUP($G153,$H$11:$DN$1000,106,FALSE)=\"\",\"No\",IF(LEFT(VLOOKUP($G153,$H$11:$DN$1000,106,FALSE),3)=\"The\",EH153,VLOOKUP(VLOOKUP($G153,$H$11:$DN$1000,106,FALSE),DeclMatrix!$A$2:$F$5,VLOOKUP('Enrollment Form'!$B153,DeclMatrix!$A$8:$B$12,2,FALSE),FALSE))))","v":""},{"$f":"IF($A153=\"\",\"\",IF(VLOOKUP($G153,$H$11:$DN$1000,111,FALSE)=\"\",\"No\",IF(LEFT(VLOOKUP($G153,$H$11:$DN$1000,111,FALSE),3)=\"The\",EI153,VLOOKUP(VLOOKUP($G153,$H$11:$DN$1000,111,FALSE),DeclMatrix!$A$2:$F$5,VLOOKUP('Enrollment Form'!$B153,DeclMatrix!$A$8:$B$12,2,FALSE),FALSE))))","v":""},"",null,"","","","","","","","","","","",""]
["",{"$nulls":5},"","",{"$nulls":18},"","","","",{"$nulls":30},"","","","",{"$nulls":60},"",{"$f":"IF($A154=\"\",\"\",IF(VLOOKUP($G154,$H$11:$DN$1000,96,FALSE)=\"\",\"No\",IF(LEFT(VLOOKUP($G154,$H$11:$DN$1000,96,FALSE),3)=\"The\",EF154,VLOOKUP(VLOOKUP($G154,$H$11:$DN$1000,96,FALSE),DeclMatrix!$A$2:$F$5,VLOOKUP('Enrollment Form'!$B154,DeclMatrix!$A$8:$B$12,2,FALSE),FALSE))))","v":""},{"$f":"IF($A154=\"\",\"\",IF(VLOOKUP($G154,$H$11:$DN$1000,101,FALSE)=\"\",\"No\",IF(LEFT(VLOOKUP($G154,$H$11:$DN$1000,101,FALSE),3)=\"The\",EG154,VLOOKUP(VLOOKUP($G154,$H$11:$DN$1000,101,FALSE),DeclMatrix!$A$2:$F$5,VLOOKUP('Enrollment Form'!$B154,DeclMatrix!$A$8:$B$12,2,FALSE),FALSE))))","v":""},{"$f":"IF($A154=\"\",\"\",IF(VLOOKUP($G154,$H$11:$DN$1000,106,FALSE)=\"\",\"No\",IF(LEFT(VLOOKUP($G154,$H$11:$DN$1000,106,FALSE),3)=\"The\",EH154,VLOOKUP(VLOOKUP($G154,$H$11:$DN$1000,106,FALSE),DeclMatrix!$A$2:$F$5,VLOOKUP('Enrollment Form'!$B154,DeclMatrix!$A$8:$B$12,2,FALSE),FALSE))))","v":""},{"$f":"IF($A154=\"\",\"\",IF(VLOOKUP($G154,$H$11:$DN$1000,111,FALSE)=\"\",\"No\",IF(LEFT(VLOOKUP($G154,$H$11:$DN$1000,111,FALSE),3)=\"The\",EI154,VLOOKUP(VLOOKUP($G154,$H$11:$DN$1000,111,FALSE),DeclMatrix!$A$2:$F$5,VLOOKUP('Enrollment Form'!$B154,DeclMatrix!$A$8:$B$12,2,FALSE),FALSE))))","v":""},"",null,"","","","","","","","","","","",""]
["",{"$nulls":5},"","",{"$nulls":18},"","","","",{"$nulls":30},"","","","",{"$nulls":60},"",{"$f":"IF($A155=\"\",\"\",IF(VLOOKUP($G155,$H$11:$DN$1000,96,FALSE)=\"\",\"No\",IF(LEFT(VLOOKUP($G155,$H$11:$DN$1000,96,FALSE),3)=\"The\",EF155,VLOOKUP(VLOOKUP($G155,$H$11:$DN$1000,96,FALSE),DeclMatrix!$A$2:$F$5,VLOOKUP('Enrollment Form'!$B155,DeclMatrix!$A$8:$B$12,2,FALSE),FALSE))))","v":""},{"$f":"IF($A155=\"\",\"\",IF(VLOOKUP($G155,$H$11:$DN$1000,101,FALSE)=\"\",\"No\",IF(LEFT(VLOOKUP($G155,$H$11:$DN$1000,101,FALSE),3)=\"The\",EG155,VLOOKUP(VLOOKUP($G155,$H$11:$DN$1000,101,FALSE),DeclMatrix!$A$2:$F$5,VLOOKUP('Enrollment Form'!$B155,DeclMatrix!$A$8:$B$12,2,FALSE),FALSE))))","v":""},{"$f":"IF($A155=\"\",\"\",IF(VLOOKUP($G155,$H$11:$DN$1000,106,FALSE)=\"\",\"No\",IF(LEFT(VLOOKUP($G155,$H$11:$DN$1000,106,FALSE),3)=\"The\",EH155,VLOOKUP(VLOOKUP($G155,$H$11:$DN$1000,106,FALSE),DeclMatrix!$A$2:$F$5,VLOOKUP('Enrollment Form'!$B155,DeclMatrix!$A$8:$B$12,2,FALSE),FALSE))))","v":""},{"$f":"IF($A155=\"\",\"\",IF(VLOOKUP($G155,$H$11:$DN$1000,111,FALSE)=\"\",\"No\",IF(LEFT(VLOOKUP($G155,$H$11:$DN$1000,111,FALSE),3)=\"The\",EI155,VLOOKUP(VLOOKUP($G155,$H$11:$DN$1000,111,FALSE),DeclMatrix!$A$2:$F$5,VLOOKUP('Enrollment Form'!$B155,DeclMatrix!$A$8:$B$12,2,FALSE),FALSE))))","v":""},"",null,"","","","","","","","","","","",""]
["",{"$nulls":5},"","",{"$nulls":18},"","","","",{"$nulls":30},"","","","",{"$nulls":60},"",{"$f":"IF($A156=\"\",\"\",IF(VLOOKUP($G156,$H$11:$DN$1000,96,FALSE)=\"\",\"No\",IF(LEFT(VLOOKUP($G156,$H$11:$DN$1000,96,FALSE),3)=\"The\",EF156,VLOOKUP(VLOOKUP($G156,$H$11:$DN$1000,96,FALSE),DeclMatrix!$A$2:$F$5,VLOOKUP('Enrollment Form'!$B156,DeclMatrix!$A$8:$B$12,2,FALSE),FALSE))))","v":""},{"$f":"IF($A156=\"\",\"\",IF(VLOOKUP($G156,$H$11:$DN$1000,101,FALSE)=\"\",\"No\",IF(LEFT(VLOOKUP($G156,$H$11:$DN$1000,101,FALSE),3)=\"The\",EG156,VLOOKUP(VLOOKUP($G156,$H$11:$DN$1000,101,FALSE),DeclMatrix!$A$2:$F$5,VLOOKUP('Enrollment Form'!$B156,DeclMatrix!$A$8:$B$12,2,FALSE),FALSE))))","v":""},{"$f":"IF($A156=\"\",\"\",IF(VLOOKUP($G156,$H$11:$DN$1000,106,FALSE)=\"\",\"No\",IF(LEFT(VLOOKUP($G156,$H$11:$DN$1000,106,FALSE),3)=\"The\",EH156,VLOOKUP(VLOOKUP($G156,$H$11:$DN$1000,106,FALSE),DeclMatrix!$A$2:$F$5,VLOOKUP('Enrollment Form'!$B156,DeclMatrix!$A$8:$B$12,2,FALSE),FALSE))))","v":""},{"$f":"IF($A156=\"\",\"\",IF(VLOOKUP($G156,$H$11:$DN$1000,111,FALSE)=\"\",\"No\",IF(LEFT(VLOOKUP($G156,$H$11:$DN$1000,111,FALSE),3)=\"The\",EI156,VLOOKUP(VLOOKUP($G156,$H$11:$DN$1000,111,FALSE),DeclMatrix!$A$2:$F$5,VLOOKUP('Enrollment Form'!$B156,DeclMatrix!$A$8:$B$12,2,FALSE),FALSE))))","v":""},"",null,"","","","","","","","","","","",""]
["",{"$nulls":5},"","",{"$nulls":18},"","","","",{"$nulls":30},"","","","",{"$nulls":60},"",{"$f":"IF($A157=\"\",\"\",IF(VLOOKUP($G157,$H$11:$DN$1000,96,FALSE)=\"\",\"No\",IF(LEFT(VLOOKUP($G157,$H$11:$DN$1000,96,FALSE),3)=\"The\",EF157,VLOOKUP(VLOOKUP($G157,$H$11:$DN$1000,96,FALSE),DeclMatrix!$A$2:$F$5,VLOOKUP('Enrollment Form'!$B157,DeclMatrix!$A$8:$B$12,2,FALSE),FALSE))))","v":""},{"$f":"IF($A157=\"\",\"\",IF(VLOOKUP($G157,$H$11:$DN$1000,101,FALSE)=\"\",\"No\",IF(LEFT(VLOOKUP($G157,$H$11:$DN$1000,101,FALSE),3)=\"The\",EG157,VLOOKUP(VLOOKUP($G157,$H$11:$DN$1000,101,FALSE),DeclMatrix!$A$2:$F$5,VLOOKUP('Enrollment Form'!$B157,DeclMatrix!$A$8:$B$12,2,FALSE),FALSE))))","v":""},{"$f":"IF($A157=\"\",\"\",IF(VLOOKUP($G157,$H$11:$DN$1000,106,FALSE)=\"\",\"No\",IF(LEFT(VLOOKUP($G157,$H$11:$DN$1000,106,FALSE),3)=\"The\",EH157,VLOOKUP(VLOOKUP($G157,$H$11:$DN$1000,106,FALSE),DeclMatrix!$A$2:$F$5,VLOOKUP('Enrollment Form'!$B157,DeclMatrix!$A$8:$B$12,2,FALSE),FALSE))))","v":""},{"$f":"IF($A157=\"\",\"\",IF(VLOOKUP($G157,$H$11:$DN$1000,111,FALSE)=\"\",\"No\",IF(LEFT(VLOOKUP($G157,$H$11:$DN$1000,111,FALSE),3)=\"The\",EI157,VLOOKUP(VLOOKUP($G157,$H$11:$DN$1000,111,FALSE),DeclMatrix!$A$2:$F$5,VLOOKUP('Enrollment Form'!$B157,DeclMatrix!$A$8:$B$12,2,FALSE),FALSE))))","v":""},"",null,"","","","","","","","","","","",""]
["",{"$nulls":5},"","",{"$nulls":18},"","","","",{"$nulls":30},"","","","",{"$nulls":60},"",{"$f":"IF($A158=\"\",\"\",IF(VLOOKUP($G158,$H$11:$DN$1000,96,FALSE)=\"\",\"No\",IF(LEFT(VLOOKUP($G158,$H$11:$DN$1000,96,FALSE),3)=\"The\",EF158,VLOOKUP(VLOOKUP($G158,$H$11:$DN$1000,96,FALSE),DeclMatrix!$A$2:$F$5,VLOOKUP('Enrollment Form'!$B158,DeclMatrix!$A$8:$B$12,2,FALSE),FALSE))))","v":""},{"$f":"IF($A158=\"\",\"\",IF(VLOOKUP($G158,$H$11:$DN$1000,101,FALSE)=\"\",\"No\",IF(LEFT(VLOOKUP($G158,$H$11:$DN$1000,101,FALSE),3)=\"The\",EG158,VLOOKUP(VLOOKUP($G158,$H$11:$DN$1000,101,FALSE),DeclMatrix!$A$2:$F$5,VLOOKUP('Enrollment Form'!$B158,DeclMatrix!$A$8:$B$12,2,FALSE),FALSE))))","v":""},{"$f":"IF($A158=\"\",\"\",IF(VLOOKUP($G158,$H$11:$DN$1000,106,FALSE)=\"\",\"No\",IF(LEFT(VLOOKUP($G158,$H$11:$DN$1000,106,FALSE),3)=\"The\",EH158,VLOOKUP(VLOOKUP($G158,$H$11:$DN$1000,106,FALSE),DeclMatrix!$A$2:$F$5,VLOOKUP('Enrollment Form'!$B158,DeclMatrix!$A$8:$B$12,2,FALSE),FALSE))))","v":""},{"$f":"IF($A158=\"\",\"\",IF(VLOOKUP($G158,$H$11:$DN$1000,111,FALSE)=\"\",\"No\",IF(LEFT(VLOOKUP($G158,$H$11:$DN$1000,111,FALSE),3)=\"The\",EI158,VLOOKUP(VLOOKUP($G158,$H$11:$DN$1000,111,FALSE),DeclMatrix!$A$2:$F$5,VLOOKUP('Enrollment Form'!$B158,DeclMatrix!$A$8:$B$12,2,FALSE),FALSE))))","v":""},"",null,"","","","","","","","","","","",""]
["",{"$nulls":5},"","",{"$nulls":18},"","","","",{"$nulls":30},"","","","",{"$nulls":60},"",{"$f":"IF($A159=\"\",\"\",IF(VLOOKUP($G159,$H$11:$DN$1000,96,FALSE)=\"\",\"No\",IF(LEFT(VLOOKUP($G159,$H$11:$DN$1000,96,FALSE),3)=\"The\",EF159,VLOOKUP(VLOOKUP($G159,$H$11:$DN$1000,96,FALSE),DeclMatrix!$A$2:$F$5,VLOOKUP('Enrollment Form'!$B159,DeclMatrix!$A$8:$B$12,2,FALSE),FALSE))))","v":""},{"$f":"IF($A159=\"\",\"\",IF(VLOOKUP($G159,$H$11:$DN$1000,101,FALSE)=\"\",\"No\",IF(LEFT(VLOOKUP($G159,$H$11:$DN$1000,101,FALSE),3)=\"The\",EG159,VLOOKUP(VLOOKUP($G159,$H$11:$DN$1000,101,FALSE),DeclMatrix!$A$2:$F$5,VLOOKUP('Enrollment Form'!$B159,DeclMatrix!$A$8:$B$12,2,FALSE),FALSE))))","v":""},{"$f":"IF($A159=\"\",\"\",IF(VLOOKUP($G159,$H$11:$DN$1000,106,FALSE)=\"\",\"No\",IF(LEFT(VLOOKUP($G159,$H$11:$DN$1000,106,FALSE),3)=\"The\",EH159,VLOOKUP(VLOOKUP($G159,$H$11:$DN$1000,106,FALSE),DeclMatrix!$A$2:$F$5,VLOOKUP('Enrollment Form'!$B159,DeclMatrix!$A$8:$B$12,2,FALSE),FALSE))))","v":""},{"$f":"IF($A159=\"\",\"\",IF(VLOOKUP($G159,$H$11:$DN$1000,111,FALSE)=\"\",\"No\",IF(LEFT(VLOOKUP($G159,$H$11:$DN$1000,111,FALSE),3)=\"The\",EI159,VLOOKUP(VLOOKUP($G159,$H$11:$DN$1000,111,FALSE),DeclMatrix!$A$2:$F$5,VLOOKUP('Enrollment Form'!$B159,DeclMatrix!$A$8:$B$12,2,FALSE),FALSE))))","v":""},"",null,"","","","","","","","","","","",""]
["",{"$nulls":5},"","",{"$nulls":18},"","","","",{"$nulls":30},"","","","",{"$nulls":60},"",{"$f":"IF($A160=\"\",\"\",IF(VLOOKUP($G160,$H$11:$DN$1000,96,FALSE)=\"\",\"No\",IF(LEFT(VLOOKUP($G160,$H$11:$DN$1000,96,FALSE),3)=\"The\",EF160,VLOOKUP(VLOOKUP($G160,$H$11:$DN$1000,96,FALSE),DeclMatrix!$A$2:$F$5,VLOOKUP('Enrollment Form'!$B160,DeclMatrix!$A$8:$B$12,2,FALSE),FALSE))))","v":""},{"$f":"IF($A160=\"\",\"\",IF(VLOOKUP($G160,$H$11:$DN$1000,101,FALSE)=\"\",\"No\",IF(LEFT(VLOOKUP($G160,$H$11:$DN$1000,101,FALSE),3)=\"The\",EG160,VLOOKUP(VLOOKUP($G160,$H$11:$DN$1000,101,FALSE),DeclMatrix!$A$2:$F$5,VLOOKUP('Enrollment Form'!$B160,DeclMatrix!$A$8:$B$12,2,FALSE),FALSE))))","v":""},{"$f":"IF($A160=\"\",\"\",IF(VLOOKUP($G160,$H$11:$DN$1000,106,FALSE)=\"\",\"No\",IF(LEFT(VLOOKUP($G160,$H$11:$DN$1000,106,FALSE),3)=\"The\",EH160,VLOOKUP(VLOOKUP($G160,$H$11:$DN$1000,106,FALSE),DeclMatrix!$A$2:$F$5,VLOOKUP('Enrollment Form'!$B160,DeclMatrix!$A$8:$B$12,2,FALSE),FALSE))))","v":""},{"$f":"IF($A160=\"\",\"\",IF(VLOOKUP($G160,$H$11:$DN$1000,111,FALSE)=\"\",\"No\",IF(LEFT(VLOOKUP($G160,$H$11:$DN$1000,111,FALSE),3)=\"The\",EI160,VLOOKUP(VLOOKUP($G160,$H$11:$DN$1000,111,FALSE),DeclMatrix!$A$2:$F$5,VLOOKUP('Enrollment Form'!$B160,DeclMatrix!$A$8:$B$12,2,FALSE),FALSE))))","v":""},"",null,"","","","","","","","","","","",""]
["",{"$nulls":5},"","",{"$nulls":18},"","","","",{"$nulls":30},"","","","",{"$nulls":60},"",{"$f":"IF($A161=\"\",\"\",IF(VLOOKUP($G161,$H$11:$DN$1000,96,FALSE)=\"\",\"No\",IF(LEFT(VLOOKUP($G161,$H$11:$DN$1000,96,FALSE),3)=\"The\",EF161,VLOOKUP(VLOOKUP($G161,$H$11:$DN$1000,96,FALSE),DeclMatrix!$A$2:$F$5,VLOOKUP('Enrollment Form'!$B161,DeclMatrix!$A$8:$B$12,2,FALSE),FALSE))))","v":""},{"$f":"IF($A161=\"\",\"\",IF(VLOOKUP($G161,$H$11:$DN$1000,101,FALSE)=\"\",\"No\",IF(LEFT(VLOOKUP($G161,$H$11:$DN$1000,101,FALSE),3)=\"The\",EG161,VLOOKUP(VLOOKUP($G161,$H$11:$DN$1000,101,FALSE),DeclMatrix!$A$2:$F$5,VLOOKUP('Enrollment Form'!$B161,DeclMatrix!$A$8:$B$12,2,FALSE),FALSE))))","v":""},{"$f":"IF($A161=\"\",\"\",IF(VLOOKUP($G161,$H$11:$DN$1000,106,FALSE)=\"\",\"No\",IF(LEFT(VLOOKUP($G161,$H$11:$DN$1000,106,FALSE),3)=\"The\",EH161,VLOOKUP(VLOOKUP($G161,$H$11:$DN$1000,106,FALSE),DeclMatrix!$A$2:$F$5,VLOOKUP('Enrollment Form'!$B161,DeclMatrix!$A$8:$B$12,2,FALSE),FALSE))))","v":""},{"$f":"IF($A161=\"\",\"\",IF(VLOOKUP($G161,$H$11:$DN$1000,111,FALSE)=\"\",\"No\",IF(LEFT(VLOOKUP($G161,$H$11:$DN$1000,111,FALSE),3)=\"The\",EI161,VLOOKUP(VLOOKUP($G161,$H$11:$DN$1000,111,FALSE),DeclMatrix!$A$2:$F$5,VLOOKUP('Enrollment Form'!$B161,DeclMatrix!$A$8:$B$12,2,FALSE),FALSE))))","v":""},"",null,"","","","","","","","","","","",""]
["",{"$nulls":5},"","",{"$nulls":18},"","","","",{"$nulls":30},"","","","",{"$nulls":60},"",{"$f":"IF($A162=\"\",\"\",IF(VLOOKUP($G162,$H$11:$DN$1000,96,FALSE)=\"\",\"No\",IF(LEFT(VLOOKUP($G162,$H$11:$DN$1000,96,FALSE),3)=\"The\",EF162,VLOOKUP(VLOOKUP($G162,$H$11:$DN$1000,96,FALSE),DeclMatrix!$A$2:$F$5,VLOOKUP('Enrollment Form'!$B162,DeclMatrix!$A$8:$B$12,2,FALSE),FALSE))))","v":""},{"$f":"IF($A162=\"\",\"\",IF(VLOOKUP($G162,$H$11:$DN$1000,101,FALSE)=\"\",\"No\",IF(LEFT(VLOOKUP($G162,$H$11:$DN$1000,101,FALSE),3)=\"The\",EG162,VLOOKUP(VLOOKUP($G162,$H$11:$DN$1000,101,FALSE),DeclMatrix!$A$2:$F$5,VLOOKUP('Enrollment Form'!$B162,DeclMatrix!$A$8:$B$12,2,FALSE),FALSE))))","v":""},{"$f":"IF($A162=\"\",\"\",IF(VLOOKUP($G162,$H$11:$DN$1000,106,FALSE)=\"\",\"No\",IF(LEFT(VLOOKUP($G162,$H$11:$DN$1000,106,FALSE),3)=\"The\",EH162,VLOOKUP(VLOOKUP($G162,$H$11:$DN$1000,106,FALSE),DeclMatrix!$A$2:$F$5,VLOOKUP('Enrollment Form'!$B162,DeclMatrix!$A$8:$B$12,2,FALSE),FALSE))))","v":""},{"$f":"IF($A162=\"\",\"\",IF(VLOOKUP($G162,$H$11:$DN$1000,111,FALSE)=\"\",\"No\",IF(LEFT(VLOOKUP($G162,$H$11:$DN$1000,111,FALSE),3)=\"The\",EI162,VLOOKUP(VLOOKUP($G162,$H$11:$DN$1000,111,FALSE),DeclMatrix!$A$2:$F$5,VLOOKUP('Enrollment Form'!$B162,DeclMatrix!$A$8:$B$12,2,FALSE),FALSE))))","v":""},"",null,"","","","","","","","","","","",""]
["",{"$nulls":5},"","",{"$nulls":18},"","","","",{"$nulls":30},"","","","",{"$nulls":60},"",{"$f":"IF($A163=\"\",\"\",IF(VLOOKUP($G163,$H$11:$DN$1000,96,FALSE)=\"\",\"No\",IF(LEFT(VLOOKUP($G163,$H$11:$DN$1000,96,FALSE),3)=\"The\",EF163,VLOOKUP(VLOOKUP($G163,$H$11:$DN$1000,96,FALSE),DeclMatrix!$A$2:$F$5,VLOOKUP('Enrollment Form'!$B163,DeclMatrix!$A$8:$B$12,2,FALSE),FALSE))))","v":""},{"$f":"IF($A163=\"\",\"\",IF(VLOOKUP($G163,$H$11:$DN$1000,101,FALSE)=\"\",\"No\",IF(LEFT(VLOOKUP($G163,$H$11:$DN$1000,101,FALSE),3)=\"The\",EG163,VLOOKUP(VLOOKUP($G163,$H$11:$DN$1000,101,FALSE),DeclMatrix!$A$2:$F$5,VLOOKUP('Enrollment Form'!$B163,DeclMatrix!$A$8:$B$12,2,FALSE),FALSE))))","v":""},{"$f":"IF($A163=\"\",\"\",IF(VLOOKUP($G163,$H$11:$DN$1000,106,FALSE)=\"\",\"No\",IF(LEFT(VLOOKUP($G163,$H$11:$DN$1000,106,FALSE),3)=\"The\",EH163,VLOOKUP(VLOOKUP($G163,$H$11:$DN$1000,106,FALSE),DeclMatrix!$A$2:$F$5,VLOOKUP('Enrollment Form'!$B163,DeclMatrix!$A$8:$B$12,2,FALSE),FALSE))))","v":""},{"$f":"IF($A163=\"\",\"\",IF(VLOOKUP($G163,$H$11:$DN$1000,111,FALSE)=\"\",\"No\",IF(LEFT(VLOOKUP($G163,$H$11:$DN$1000,111,FALSE),3)=\"The\",EI163,VLOOKUP(VLOOKUP($G163,$H$11:$DN$1000,111,FALSE),DeclMatrix!$A$2:$F$5,VLOOKUP('Enrollment Form'!$B163,DeclMatrix!$A$8:$B$12,2,FALSE),FALSE))))","v":""},"",null,"","","","","","","","","","","",""]
["",{"$nulls":5},"","",{"$nulls":18},"","","","",{"$nulls":30},"","","","",{"$nulls":60},"",{"$f":"IF($A164=\"\",\"\",IF(VLOOKUP($G164,$H$11:$DN$1000,96,FALSE)=\"\",\"No\",IF(LEFT(VLOOKUP($G164,$H$11:$DN$1000,96,FALSE),3)=\"The\",EF164,VLOOKUP(VLOOKUP($G164,$H$11:$DN$1000,96,FALSE),DeclMatrix!$A$2:$F$5,VLOOKUP('Enrollment Form'!$B164,DeclMatrix!$A$8:$B$12,2,FALSE),FALSE))))","v":""},{"$f":"IF($A164=\"\",\"\",IF(VLOOKUP($G164,$H$11:$DN$1000,101,FALSE)=\"\",\"No\",IF(LEFT(VLOOKUP($G164,$H$11:$DN$1000,101,FALSE),3)=\"The\",EG164,VLOOKUP(VLOOKUP($G164,$H$11:$DN$1000,101,FALSE),DeclMatrix!$A$2:$F$5,VLOOKUP('Enrollment Form'!$B164,DeclMatrix!$A$8:$B$12,2,FALSE),FALSE))))","v":""},{"$f":"IF($A164=\"\",\"\",IF(VLOOKUP($G164,$H$11:$DN$1000,106,FALSE)=\"\",\"No\",IF(LEFT(VLOOKUP($G164,$H$11:$DN$1000,106,FALSE),3)=\"The\",EH164,VLOOKUP(VLOOKUP($G164,$H$11:$DN$1000,106,FALSE),DeclMatrix!$A$2:$F$5,VLOOKUP('Enrollment Form'!$B164,DeclMatrix!$A$8:$B$12,2,FALSE),FALSE))))","v":""},{"$f":"IF($A164=\"\",\"\",IF(VLOOKUP($G164,$H$11:$DN$1000,111,FALSE)=\"\",\"No\",IF(LEFT(VLOOKUP($G164,$H$11:$DN$1000,111,FALSE),3)=\"The\",EI164,VLOOKUP(VLOOKUP($G164,$H$11:$DN$1000,111,FALSE),DeclMatrix!$A$2:$F$5,VLOOKUP('Enrollment Form'!$B164,DeclMatrix!$A$8:$B$12,2,FALSE),FALSE))))","v":""},"",null,"","","","","","","","","","","",""]
["",{"$nulls":5},"","",{"$nulls":18},"","","","",{"$nulls":30},"","","","",{"$nulls":60},"",{"$f":"IF($A165=\"\",\"\",IF(VLOOKUP($G165,$H$11:$DN$1000,96,FALSE)=\"\",\"No\",IF(LEFT(VLOOKUP($G165,$H$11:$DN$1000,96,FALSE),3)=\"The\",EF165,VLOOKUP(VLOOKUP($G165,$H$11:$DN$1000,96,FALSE),DeclMatrix!$A$2:$F$5,VLOOKUP('Enrollment Form'!$B165,DeclMatrix!$A$8:$B$12,2,FALSE),FALSE))))","v":""},{"$f":"IF($A165=\"\",\"\",IF(VLOOKUP($G165,$H$11:$DN$1000,101,FALSE)=\"\",\"No\",IF(LEFT(VLOOKUP($G165,$H$11:$DN$1000,101,FALSE),3)=\"The\",EG165,VLOOKUP(VLOOKUP($G165,$H$11:$DN$1000,101,FALSE),DeclMatrix!$A$2:$F$5,VLOOKUP('Enrollment Form'!$B165,DeclMatrix!$A$8:$B$12,2,FALSE),FALSE))))","v":""},{"$f":"IF($A165=\"\",\"\",IF(VLOOKUP($G165,$H$11:$DN$1000,106,FALSE)=\"\",\"No\",IF(LEFT(VLOOKUP($G165,$H$11:$DN$1000,106,FALSE),3)=\"The\",EH165,VLOOKUP(VLOOKUP($G165,$H$11:$DN$1000,106,FALSE),DeclMatrix!$A$2:$F$5,VLOOKUP('Enrollment Form'!$B165,DeclMatrix!$A$8:$B$12,2,FALSE),FALSE))))","v":""},{"$f":"IF($A165=\"\",\"\",IF(VLOOKUP($G165,$H$11:$DN$1000,111,FALSE)=\"\",\"No\",IF(LEFT(VLOOKUP($G165,$H$11:$DN$1000,111,FALSE),3)=\"The\",EI165,VLOOKUP(VLOOKUP($G165,$H$11:$DN$1000,111,FALSE),DeclMatrix!$A$2:$F$5,VLOOKUP('Enrollment Form'!$B165,DeclMatrix!$A$8:$B$12,2,FALSE),FALSE))))","v":""},"",null,"","","","","","","","","","","",""]
["",{"$nulls":5},"","",{"$nulls":18},"","","","",{"$nulls":30},"","","","",{"$nulls":60},"",{"$f":"IF($A166=\"\",\"\",IF(VLOOKUP($G166,$H$11:$DN$1000,96,FALSE)=\"\",\"No\",IF(LEFT(VLOOKUP($G166,$H$11:$DN$1000,96,FALSE),3)=\"The\",EF166,VLOOKUP(VLOOKUP($G166,$H$11:$DN$1000,96,FALSE),DeclMatrix!$A$2:$F$5,VLOOKUP('Enrollment Form'!$B166,DeclMatrix!$A$8:$B$12,2,FALSE),FALSE))))","v":""},{"$f":"IF($A166=\"\",\"\",IF(VLOOKUP($G166,$H$11:$DN$1000,101,FALSE)=\"\",\"No\",IF(LEFT(VLOOKUP($G166,$H$11:$DN$1000,101,FALSE),3)=\"The\",EG166,VLOOKUP(VLOOKUP($G166,$H$11:$DN$1000,101,FALSE),DeclMatrix!$A$2:$F$5,VLOOKUP('Enrollment Form'!$B166,DeclMatrix!$A$8:$B$12,2,FALSE),FALSE))))","v":""},{"$f":"IF($A166=\"\",\"\",IF(VLOOKUP($G166,$H$11:$DN$1000,106,FALSE)=\"\",\"No\",IF(LEFT(VLOOKUP($G166,$H$11:$DN$1000,106,FALSE),3)=\"The\",EH166,VLOOKUP(VLOOKUP($G166,$H$11:$DN$1000,106,FALSE),DeclMatrix!$A$2:$F$5,VLOOKUP('Enrollment Form'!$B166,DeclMatrix!$A$8:$B$12,2,FALSE),FALSE))))","v":""},{"$f":"IF($A166=\"\",\"\",IF(VLOOKUP($G166,$H$11:$DN$1000,111,FALSE)=\"\",\"No\",IF(LEFT(VLOOKUP($G166,$H$11:$DN$1000,111,FALSE),3)=\"The\",EI166,VLOOKUP(VLOOKUP($G166,$H$11:$DN$1000,111,FALSE),DeclMatrix!$A$2:$F$5,VLOOKUP('Enrollment Form'!$B166,DeclMatrix!$A$8:$B$12,2,FALSE),FALSE))))","v":""},"",null,"","","","","","","","","","","",""]
["",{"$nulls":5},"","",{"$nulls":18},"","","","",{"$nulls":30},"","","","",{"$nulls":60},"",{"$f":"IF($A167=\"\",\"\",IF(VLOOKUP($G167,$H$11:$DN$1000,96,FALSE)=\"\",\"No\",IF(LEFT(VLOOKUP($G167,$H$11:$DN$1000,96,FALSE),3)=\"The\",EF167,VLOOKUP(VLOOKUP($G167,$H$11:$DN$1000,96,FALSE),DeclMatrix!$A$2:$F$5,VLOOKUP('Enrollment Form'!$B167,DeclMatrix!$A$8:$B$12,2,FALSE),FALSE))))","v":""},{"$f":"IF($A167=\"\",\"\",IF(VLOOKUP($G167,$H$11:$DN$1000,101,FALSE)=\"\",\"No\",IF(LEFT(VLOOKUP($G167,$H$11:$DN$1000,101,FALSE),3)=\"The\",EG167,VLOOKUP(VLOOKUP($G167,$H$11:$DN$1000,101,FALSE),DeclMatrix!$A$2:$F$5,VLOOKUP('Enrollment Form'!$B167,DeclMatrix!$A$8:$B$12,2,FALSE),FALSE))))","v":""},{"$f":"IF($A167=\"\",\"\",IF(VLOOKUP($G167,$H$11:$DN$1000,106,FALSE)=\"\",\"No\",IF(LEFT(VLOOKUP($G167,$H$11:$DN$1000,106,FALSE),3)=\"The\",EH167,VLOOKUP(VLOOKUP($G167,$H$11:$DN$1000,106,FALSE),DeclMatrix!$A$2:$F$5,VLOOKUP('Enrollment Form'!$B167,DeclMatrix!$A$8:$B$12,2,FALSE),FALSE))))","v":""},{"$f":"IF($A167=\"\",\"\",IF(VLOOKUP($G167,$H$11:$DN$1000,111,FALSE)=\"\",\"No\",IF(LEFT(VLOOKUP($G167,$H$11:$DN$1000,111,FALSE),3)=\"The\",EI167,VLOOKUP(VLOOKUP($G167,$H$11:$DN$1000,111,FALSE),DeclMatrix!$A$2:$F$5,VLOOKUP('Enrollment Form'!$B167,DeclMatrix!$A$8:$B$12,2,FALSE),FALSE))))","v":""},"",null,"","","","","","","","","","","",""]
["",{"$nulls":5},"","",{"$nulls":18},"","","","",{"$nulls":30},"","","","",{"$nulls":60},"",{"$f":"IF($A168=\"\",\"\",IF(VLOOKUP($G168,$H$11:$DN$1000,96,FALSE)=\"\",\"No\",IF(LEFT(VLOOKUP($G168,$H$11:$DN$1000,96,FALSE),3)=\"The\",EF168,VLOOKUP(VLOOKUP($G168,$H$11:$DN$1000,96,FALSE),DeclMatrix!$A$2:$F$5,VLOOKUP('Enrollment Form'!$B168,DeclMatrix!$A$8:$B$12,2,FALSE),FALSE))))","v":""},{"$f":"IF($A168=\"\",\"\",IF(VLOOKUP($G168,$H$11:$DN$1000,101,FALSE)=\"\",\"No\",IF(LEFT(VLOOKUP($G168,$H$11:$DN$1000,101,FALSE),3)=\"The\",EG168,VLOOKUP(VLOOKUP($G168,$H$11:$DN$1000,101,FALSE),DeclMatrix!$A$2:$F$5,VLOOKUP('Enrollment Form'!$B168,DeclMatrix!$A$8:$B$12,2,FALSE),FALSE))))","v":""},{"$f":"IF($A168=\"\",\"\",IF(VLOOKUP($G168,$H$11:$DN$1000,106,FALSE)=\"\",\"No\",IF(LEFT(VLOOKUP($G168,$H$11:$DN$1000,106,FALSE),3)=\"The\",EH168,VLOOKUP(VLOOKUP($G168,$H$11:$DN$1000,106,FALSE),DeclMatrix!$A$2:$F$5,VLOOKUP('Enrollment Form'!$B168,DeclMatrix!$A$8:$B$12,2,FALSE),FALSE))))","v":""},{"$f":"IF($A168=\"\",\"\",IF(VLOOKUP($G168,$H$11:$DN$1000,111,FALSE)=\"\",\"No\",IF(LEFT(VLOOKUP($G168,$H$11:$DN$1000,111,FALSE),3)=\"The\",EI168,VLOOKUP(VLOOKUP($G168,$H$11:$DN$1000,111,FALSE),DeclMatrix!$A$2:$F$5,VLOOKUP('Enrollment Form'!$B168,DeclMatrix!$A$8:$B$12,2,FALSE),FALSE))))","v":""},"",null,"","","","","","","","","","","",""]
["",{"$nulls":5},"","",{"$nulls":18},"","","","",{"$nulls":30},"","","","",{"$nulls":60},"",{"$f":"IF($A169=\"\",\"\",IF(VLOOKUP($G169,$H$11:$DN$1000,96,FALSE)=\"\",\"No\",IF(LEFT(VLOOKUP($G169,$H$11:$DN$1000,96,FALSE),3)=\"The\",EF169,VLOOKUP(VLOOKUP($G169,$H$11:$DN$1000,96,FALSE),DeclMatrix!$A$2:$F$5,VLOOKUP('Enrollment Form'!$B169,DeclMatrix!$A$8:$B$12,2,FALSE),FALSE))))","v":""},{"$f":"IF($A169=\"\",\"\",IF(VLOOKUP($G169,$H$11:$DN$1000,101,FALSE)=\"\",\"No\",IF(LEFT(VLOOKUP($G169,$H$11:$DN$1000,101,FALSE),3)=\"The\",EG169,VLOOKUP(VLOOKUP($G169,$H$11:$DN$1000,101,FALSE),DeclMatrix!$A$2:$F$5,VLOOKUP('Enrollment Form'!$B169,DeclMatrix!$A$8:$B$12,2,FALSE),FALSE))))","v":""},{"$f":"IF($A169=\"\",\"\",IF(VLOOKUP($G169,$H$11:$DN$1000,106,FALSE)=\"\",\"No\",IF(LEFT(VLOOKUP($G169,$H$11:$DN$1000,106,FALSE),3)=\"The\",EH169,VLOOKUP(VLOOKUP($G169,$H$11:$DN$1000,106,FALSE),DeclMatrix!$A$2:$F$5,VLOOKUP('Enrollment Form'!$B169,DeclMatrix!$A$8:$B$12,2,FALSE),FALSE))))","v":""},{"$f":"IF($A169=\"\",\"\",IF(VLOOKUP($G169,$H$11:$DN$1000,111,FALSE)=\"\",\"No\",IF(LEFT(VLOOKUP($G169,$H$11:$DN$1000,111,FALSE),3)=\"The\",EI169,VLOOKUP(VLOOKUP($G169,$H$11:$DN$1000,111,FALSE),DeclMatrix!$A$2:$F$5,VLOOKUP('Enrollment Form'!$B169,DeclMatrix!$A$8:$B$12,2,FALSE),FALSE))))","v":""},"",null,"","","","","","","","","","","",""]
["",{"$nulls":5},"","",{"$nulls":18},"","","","",{"$nulls":30},"","","","",{"$nulls":60},"",{"$f":"IF($A170=\"\",\"\",IF(VLOOKUP($G170,$H$11:$DN$1000,96,FALSE)=\"\",\"No\",IF(LEFT(VLOOKUP($G170,$H$11:$DN$1000,96,FALSE),3)=\"The\",EF170,VLOOKUP(VLOOKUP($G170,$H$11:$DN$1000,96,FALSE),DeclMatrix!$A$2:$F$5,VLOOKUP('Enrollment Form'!$B170,DeclMatrix!$A$8:$B$12,2,FALSE),FALSE))))","v":""},{"$f":"IF($A170=\"\",\"\",IF(VLOOKUP($G170,$H$11:$DN$1000,101,FALSE)=\"\",\"No\",IF(LEFT(VLOOKUP($G170,$H$11:$DN$1000,101,FALSE),3)=\"The\",EG170,VLOOKUP(VLOOKUP($G170,$H$11:$DN$1000,101,FALSE),DeclMatrix!$A$2:$F$5,VLOOKUP('Enrollment Form'!$B170,DeclMatrix!$A$8:$B$12,2,FALSE),FALSE))))","v":""},{"$f":"IF($A170=\"\",\"\",IF(VLOOKUP($G170,$H$11:$DN$1000,106,FALSE)=\"\",\"No\",IF(LEFT(VLOOKUP($G170,$H$11:$DN$1000,106,FALSE),3)=\"The\",EH170,VLOOKUP(VLOOKUP($G170,$H$11:$DN$1000,106,FALSE),DeclMatrix!$A$2:$F$5,VLOOKUP('Enrollment Form'!$B170,DeclMatrix!$A$8:$B$12,2,FALSE),FALSE))))","v":""},{"$f":"IF($A170=\"\",\"\",IF(VLOOKUP($G170,$H$11:$DN$1000,111,FALSE)=\"\",\"No\",IF(LEFT(VLOOKUP($G170,$H$11:$DN$1000,111,FALSE),3)=\"The\",EI170,VLOOKUP(VLOOKUP($G170,$H$11:$DN$1000,111,FALSE),DeclMatrix!$A$2:$F$5,VLOOKUP('Enrollment Form'!$B170,DeclMatrix!$A$8:$B$12,2,FALSE),FALSE))))","v":""},"",null,"","","","","","","","","","","",""]
["",{"$nulls":5},"","",{"$nulls":18},"","","","",{"$nulls":30},"","","","",{"$nulls":60},"",{"$f":"IF($A171=\"\",\"\",IF(VLOOKUP($G171,$H$11:$DN$1000,96,FALSE)=\"\",\"No\",IF(LEFT(VLOOKUP($G171,$H$11:$DN$1000,96,FALSE),3)=\"The\",EF171,VLOOKUP(VLOOKUP($G171,$H$11:$DN$1000,96,FALSE),DeclMatrix!$A$2:$F$5,VLOOKUP('Enrollment Form'!$B171,DeclMatrix!$A$8:$B$12,2,FALSE),FALSE))))","v":""},{"$f":"IF($A171=\"\",\"\",IF(VLOOKUP($G171,$H$11:$DN$1000,101,FALSE)=\"\",\"No\",IF(LEFT(VLOOKUP($G171,$H$11:$DN$1000,101,FALSE),3)=\"The\",EG171,VLOOKUP(VLOOKUP($G171,$H$11:$DN$1000,101,FALSE),DeclMatrix!$A$2:$F$5,VLOOKUP('Enrollment Form'!$B171,DeclMatrix!$A$8:$B$12,2,FALSE),FALSE))))","v":""},{"$f":"IF($A171=\"\",\"\",IF(VLOOKUP($G171,$H$11:$DN$1000,106,FALSE)=\"\",\"No\",IF(LEFT(VLOOKUP($G171,$H$11:$DN$1000,106,FALSE),3)=\"The\",EH171,VLOOKUP(VLOOKUP($G171,$H$11:$DN$1000,106,FALSE),DeclMatrix!$A$2:$F$5,VLOOKUP('Enrollment Form'!$B171,DeclMatrix!$A$8:$B$12,2,FALSE),FALSE))))","v":""},{"$f":"IF($A171=\"\",\"\",IF(VLOOKUP($G171,$H$11:$DN$1000,111,FALSE)=\"\",\"No\",IF(LEFT(VLOOKUP($G171,$H$11:$DN$1000,111,FALSE),3)=\"The\",EI171,VLOOKUP(VLOOKUP($G171,$H$11:$DN$1000,111,FALSE),DeclMatrix!$A$2:$F$5,VLOOKUP('Enrollment Form'!$B171,DeclMatrix!$A$8:$B$12,2,FALSE),FALSE))))","v":""},"",null,"","","","","","","","","","","",""]
["",{"$nulls":5},"","",{"$nulls":18},"","","","",{"$nulls":30},"","","","",{"$nulls":60},"",{"$f":"IF($A172=\"\",\"\",IF(VLOOKUP($G172,$H$11:$DN$1000,96,FALSE)=\"\",\"No\",IF(LEFT(VLOOKUP($G172,$H$11:$DN$1000,96,FALSE),3)=\"The\",EF172,VLOOKUP(VLOOKUP($G172,$H$11:$DN$1000,96,FALSE),DeclMatrix!$A$2:$F$5,VLOOKUP('Enrollment Form'!$B172,DeclMatrix!$A$8:$B$12,2,FALSE),FALSE))))","v":""},{"$f":"IF($A172=\"\",\"\",IF(VLOOKUP($G172,$H$11:$DN$1000,101,FALSE)=\"\",\"No\",IF(LEFT(VLOOKUP($G172,$H$11:$DN$1000,101,FALSE),3)=\"The\",EG172,VLOOKUP(VLOOKUP($G172,$H$11:$DN$1000,101,FALSE),DeclMatrix!$A$2:$F$5,VLOOKUP('Enrollment Form'!$B172,DeclMatrix!$A$8:$B$12,2,FALSE),FALSE))))","v":""},{"$f":"IF($A172=\"\",\"\",IF(VLOOKUP($G172,$H$11:$DN$1000,106,FALSE)=\"\",\"No\",IF(LEFT(VLOOKUP($G172,$H$11:$DN$1000,106,FALSE),3)=\"The\",EH172,VLOOKUP(VLOOKUP($G172,$H$11:$DN$1000,106,FALSE),DeclMatrix!$A$2:$F$5,VLOOKUP('Enrollment Form'!$B172,DeclMatrix!$A$8:$B$12,2,FALSE),FALSE))))","v":""},{"$f":"IF($A172=\"\",\"\",IF(VLOOKUP($G172,$H$11:$DN$1000,111,FALSE)=\"\",\"No\",IF(LEFT(VLOOKUP($G172,$H$11:$DN$1000,111,FALSE),3)=\"The\",EI172,VLOOKUP(VLOOKUP($G172,$H$11:$DN$1000,111,FALSE),DeclMatrix!$A$2:$F$5,VLOOKUP('Enrollment Form'!$B172,DeclMatrix!$A$8:$B$12,2,FALSE),FALSE))))","v":""},"",null,"","","","","","","","","","","",""]
["",{"$nulls":5},"","",{"$nulls":18},"","","","",{"$nulls":30},"","","","",{"$nulls":60},"",{"$f":"IF($A173=\"\",\"\",IF(VLOOKUP($G173,$H$11:$DN$1000,96,FALSE)=\"\",\"No\",IF(LEFT(VLOOKUP($G173,$H$11:$DN$1000,96,FALSE),3)=\"The\",EF173,VLOOKUP(VLOOKUP($G173,$H$11:$DN$1000,96,FALSE),DeclMatrix!$A$2:$F$5,VLOOKUP('Enrollment Form'!$B173,DeclMatrix!$A$8:$B$12,2,FALSE),FALSE))))","v":""},{"$f":"IF($A173=\"\",\"\",IF(VLOOKUP($G173,$H$11:$DN$1000,101,FALSE)=\"\",\"No\",IF(LEFT(VLOOKUP($G173,$H$11:$DN$1000,101,FALSE),3)=\"The\",EG173,VLOOKUP(VLOOKUP($G173,$H$11:$DN$1000,101,FALSE),DeclMatrix!$A$2:$F$5,VLOOKUP('Enrollment Form'!$B173,DeclMatrix!$A$8:$B$12,2,FALSE),FALSE))))","v":""},{"$f":"IF($A173=\"\",\"\",IF(VLOOKUP($G173,$H$11:$DN$1000,106,FALSE)=\"\",\"No\",IF(LEFT(VLOOKUP($G173,$H$11:$DN$1000,106,FALSE),3)=\"The\",EH173,VLOOKUP(VLOOKUP($G173,$H$11:$DN$1000,106,FALSE),DeclMatrix!$A$2:$F$5,VLOOKUP('Enrollment Form'!$B173,DeclMatrix!$A$8:$B$12,2,FALSE),FALSE))))","v":""},{"$f":"IF($A173=\"\",\"\",IF(VLOOKUP($G173,$H$11:$DN$1000,111,FALSE)=\"\",\"No\",IF(LEFT(VLOOKUP($G173,$H$11:$DN$1000,111,FALSE),3)=\"The\",EI173,VLOOKUP(VLOOKUP($G173,$H$11:$DN$1000,111,FALSE),DeclMatrix!$A$2:$F$5,VLOOKUP('Enrollment Form'!$B173,DeclMatrix!$A$8:$B$12,2,FALSE),FALSE))))","v":""},"",null,"","","","","","","","","","","",""]
["",{"$nulls":5},"","",{"$nulls":18},"","","","",{"$nulls":30},"","","","",{"$nulls":60},"",{"$f":"IF($A174=\"\",\"\",IF(VLOOKUP($G174,$H$11:$DN$1000,96,FALSE)=\"\",\"No\",IF(LEFT(VLOOKUP($G174,$H$11:$DN$1000,96,FALSE),3)=\"The\",EF174,VLOOKUP(VLOOKUP($G174,$H$11:$DN$1000,96,FALSE),DeclMatrix!$A$2:$F$5,VLOOKUP('Enrollment Form'!$B174,DeclMatrix!$A$8:$B$12,2,FALSE),FALSE))))","v":""},{"$f":"IF($A174=\"\",\"\",IF(VLOOKUP($G174,$H$11:$DN$1000,101,FALSE)=\"\",\"No\",IF(LEFT(VLOOKUP($G174,$H$11:$DN$1000,101,FALSE),3)=\"The\",EG174,VLOOKUP(VLOOKUP($G174,$H$11:$DN$1000,101,FALSE),DeclMatrix!$A$2:$F$5,VLOOKUP('Enrollment Form'!$B174,DeclMatrix!$A$8:$B$12,2,FALSE),FALSE))))","v":""},{"$f":"IF($A174=\"\",\"\",IF(VLOOKUP($G174,$H$11:$DN$1000,106,FALSE)=\"\",\"No\",IF(LEFT(VLOOKUP($G174,$H$11:$DN$1000,106,FALSE),3)=\"The\",EH174,VLOOKUP(VLOOKUP($G174,$H$11:$DN$1000,106,FALSE),DeclMatrix!$A$2:$F$5,VLOOKUP('Enrollment Form'!$B174,DeclMatrix!$A$8:$B$12,2,FALSE),FALSE))))","v":""},{"$f":"IF($A174=\"\",\"\",IF(VLOOKUP($G174,$H$11:$DN$1000,111,FALSE)=\"\",\"No\",IF(LEFT(VLOOKUP($G174,$H$11:$DN$1000,111,FALSE),3)=\"The\",EI174,VLOOKUP(VLOOKUP($G174,$H$11:$DN$1000,111,FALSE),DeclMatrix!$A$2:$F$5,VLOOKUP('Enrollment Form'!$B174,DeclMatrix!$A$8:$B$12,2,FALSE),FALSE))))","v":""},"",null,"","","","","","","","","","","",""]
["",{"$nulls":5},"","",{"$nulls":18},"","","","",{"$nulls":30},"","","","",{"$nulls":60},"",{"$f":"IF($A175=\"\",\"\",IF(VLOOKUP($G175,$H$11:$DN$1000,96,FALSE)=\"\",\"No\",IF(LEFT(VLOOKUP($G175,$H$11:$DN$1000,96,FALSE),3)=\"The\",EF175,VLOOKUP(VLOOKUP($G175,$H$11:$DN$1000,96,FALSE),DeclMatrix!$A$2:$F$5,VLOOKUP('Enrollment Form'!$B175,DeclMatrix!$A$8:$B$12,2,FALSE),FALSE))))","v":""},{"$f":"IF($A175=\"\",\"\",IF(VLOOKUP($G175,$H$11:$DN$1000,101,FALSE)=\"\",\"No\",IF(LEFT(VLOOKUP($G175,$H$11:$DN$1000,101,FALSE),3)=\"The\",EG175,VLOOKUP(VLOOKUP($G175,$H$11:$DN$1000,101,FALSE),DeclMatrix!$A$2:$F$5,VLOOKUP('Enrollment Form'!$B175,DeclMatrix!$A$8:$B$12,2,FALSE),FALSE))))","v":""},{"$f":"IF($A175=\"\",\"\",IF(VLOOKUP($G175,$H$11:$DN$1000,106,FALSE)=\"\",\"No\",IF(LEFT(VLOOKUP($G175,$H$11:$DN$1000,106,FALSE),3)=\"The\",EH175,VLOOKUP(VLOOKUP($G175,$H$11:$DN$1000,106,FALSE),DeclMatrix!$A$2:$F$5,VLOOKUP('Enrollment Form'!$B175,DeclMatrix!$A$8:$B$12,2,FALSE),FALSE))))","v":""},{"$f":"IF($A175=\"\",\"\",IF(VLOOKUP($G175,$H$11:$DN$1000,111,FALSE)=\"\",\"No\",IF(LEFT(VLOOKUP($G175,$H$11:$DN$1000,111,FALSE),3)=\"The\",EI175,VLOOKUP(VLOOKUP($G175,$H$11:$DN$1000,111,FALSE),DeclMatrix!$A$2:$F$5,VLOOKUP('Enrollment Form'!$B175,DeclMatrix!$A$8:$B$12,2,FALSE),FALSE))))","v":""},"",null,"","","","","","","","","","","",""]
["",{"$nulls":5},"","",{"$nulls":18},"","","","",{"$nulls":30},"","","","",{"$nulls":60},"",{"$f":"IF($A176=\"\",\"\",IF(VLOOKUP($G176,$H$11:$DN$1000,96,FALSE)=\"\",\"No\",IF(LEFT(VLOOKUP($G176,$H$11:$DN$1000,96,FALSE),3)=\"The\",EF176,VLOOKUP(VLOOKUP($G176,$H$11:$DN$1000,96,FALSE),DeclMatrix!$A$2:$F$5,VLOOKUP('Enrollment Form'!$B176,DeclMatrix!$A$8:$B$12,2,FALSE),FALSE))))","v":""},{"$f":"IF($A176=\"\",\"\",IF(VLOOKUP($G176,$H$11:$DN$1000,101,FALSE)=\"\",\"No\",IF(LEFT(VLOOKUP($G176,$H$11:$DN$1000,101,FALSE),3)=\"The\",EG176,VLOOKUP(VLOOKUP($G176,$H$11:$DN$1000,101,FALSE),DeclMatrix!$A$2:$F$5,VLOOKUP('Enrollment Form'!$B176,DeclMatrix!$A$8:$B$12,2,FALSE),FALSE))))","v":""},{"$f":"IF($A176=\"\",\"\",IF(VLOOKUP($G176,$H$11:$DN$1000,106,FALSE)=\"\",\"No\",IF(LEFT(VLOOKUP($G176,$H$11:$DN$1000,106,FALSE),3)=\"The\",EH176,VLOOKUP(VLOOKUP($G176,$H$11:$DN$1000,106,FALSE),DeclMatrix!$A$2:$F$5,VLOOKUP('Enrollment Form'!$B176,DeclMatrix!$A$8:$B$12,2,FALSE),FALSE))))","v":""},{"$f":"IF($A176=\"\",\"\",IF(VLOOKUP($G176,$H$11:$DN$1000,111,FALSE)=\"\",\"No\",IF(LEFT(VLOOKUP($G176,$H$11:$DN$1000,111,FALSE),3)=\"The\",EI176,VLOOKUP(VLOOKUP($G176,$H$11:$DN$1000,111,FALSE),DeclMatrix!$A$2:$F$5,VLOOKUP('Enrollment Form'!$B176,DeclMatrix!$A$8:$B$12,2,FALSE),FALSE))))","v":""},"",null,"","","","","","","","","","","",""]
["",{"$nulls":5},"","",{"$nulls":18},"","","","",{"$nulls":30},"","","","",{"$nulls":60},"",{"$f":"IF($A177=\"\",\"\",IF(VLOOKUP($G177,$H$11:$DN$1000,96,FALSE)=\"\",\"No\",IF(LEFT(VLOOKUP($G177,$H$11:$DN$1000,96,FALSE),3)=\"The\",EF177,VLOOKUP(VLOOKUP($G177,$H$11:$DN$1000,96,FALSE),DeclMatrix!$A$2:$F$5,VLOOKUP('Enrollment Form'!$B177,DeclMatrix!$A$8:$B$12,2,FALSE),FALSE))))","v":""},{"$f":"IF($A177=\"\",\"\",IF(VLOOKUP($G177,$H$11:$DN$1000,101,FALSE)=\"\",\"No\",IF(LEFT(VLOOKUP($G177,$H$11:$DN$1000,101,FALSE),3)=\"The\",EG177,VLOOKUP(VLOOKUP($G177,$H$11:$DN$1000,101,FALSE),DeclMatrix!$A$2:$F$5,VLOOKUP('Enrollment Form'!$B177,DeclMatrix!$A$8:$B$12,2,FALSE),FALSE))))","v":""},{"$f":"IF($A177=\"\",\"\",IF(VLOOKUP($G177,$H$11:$DN$1000,106,FALSE)=\"\",\"No\",IF(LEFT(VLOOKUP($G177,$H$11:$DN$1000,106,FALSE),3)=\"The\",EH177,VLOOKUP(VLOOKUP($G177,$H$11:$DN$1000,106,FALSE),DeclMatrix!$A$2:$F$5,VLOOKUP('Enrollment Form'!$B177,DeclMatrix!$A$8:$B$12,2,FALSE),FALSE))))","v":""},{"$f":"IF($A177=\"\",\"\",IF(VLOOKUP($G177,$H$11:$DN$1000,111,FALSE)=\"\",\"No\",IF(LEFT(VLOOKUP($G177,$H$11:$DN$1000,111,FALSE),3)=\"The\",EI177,VLOOKUP(VLOOKUP($G177,$H$11:$DN$1000,111,FALSE),DeclMatrix!$A$2:$F$5,VLOOKUP('Enrollment Form'!$B177,DeclMatrix!$A$8:$B$12,2,FALSE),FALSE))))","v":""},"",null,"","","","","","","","","","","",""]
["",{"$nulls":5},"","",{"$nulls":18},"","","","",{"$nulls":30},"","","","",{"$nulls":60},"",{"$f":"IF($A178=\"\",\"\",IF(VLOOKUP($G178,$H$11:$DN$1000,96,FALSE)=\"\",\"No\",IF(LEFT(VLOOKUP($G178,$H$11:$DN$1000,96,FALSE),3)=\"The\",EF178,VLOOKUP(VLOOKUP($G178,$H$11:$DN$1000,96,FALSE),DeclMatrix!$A$2:$F$5,VLOOKUP('Enrollment Form'!$B178,DeclMatrix!$A$8:$B$12,2,FALSE),FALSE))))","v":""},{"$f":"IF($A178=\"\",\"\",IF(VLOOKUP($G178,$H$11:$DN$1000,101,FALSE)=\"\",\"No\",IF(LEFT(VLOOKUP($G178,$H$11:$DN$1000,101,FALSE),3)=\"The\",EG178,VLOOKUP(VLOOKUP($G178,$H$11:$DN$1000,101,FALSE),DeclMatrix!$A$2:$F$5,VLOOKUP('Enrollment Form'!$B178,DeclMatrix!$A$8:$B$12,2,FALSE),FALSE))))","v":""},{"$f":"IF($A178=\"\",\"\",IF(VLOOKUP($G178,$H$11:$DN$1000,106,FALSE)=\"\",\"No\",IF(LEFT(VLOOKUP($G178,$H$11:$DN$1000,106,FALSE),3)=\"The\",EH178,VLOOKUP(VLOOKUP($G178,$H$11:$DN$1000,106,FALSE),DeclMatrix!$A$2:$F$5,VLOOKUP('Enrollment Form'!$B178,DeclMatrix!$A$8:$B$12,2,FALSE),FALSE))))","v":""},{"$f":"IF($A178=\"\",\"\",IF(VLOOKUP($G178,$H$11:$DN$1000,111,FALSE)=\"\",\"No\",IF(LEFT(VLOOKUP($G178,$H$11:$DN$1000,111,FALSE),3)=\"The\",EI178,VLOOKUP(VLOOKUP($G178,$H$11:$DN$1000,111,FALSE),DeclMatrix!$A$2:$F$5,VLOOKUP('Enrollment Form'!$B178,DeclMatrix!$A$8:$B$12,2,FALSE),FALSE))))","v":""},"",null,"","","","","","","","","","","",""]
["",{"$nulls":5},"","",{"$nulls":18},"","","","",{"$nulls":30},"","","","",{"$nulls":60},"",{"$f":"IF($A179=\"\",\"\",IF(VLOOKUP($G179,$H$11:$DN$1000,96,FALSE)=\"\",\"No\",IF(LEFT(VLOOKUP($G179,$H$11:$DN$1000,96,FALSE),3)=\"The\",EF179,VLOOKUP(VLOOKUP($G179,$H$11:$DN$1000,96,FALSE),DeclMatrix!$A$2:$F$5,VLOOKUP('Enrollment Form'!$B179,DeclMatrix!$A$8:$B$12,2,FALSE),FALSE))))","v":""},{"$f":"IF($A179=\"\",\"\",IF(VLOOKUP($G179,$H$11:$DN$1000,101,FALSE)=\"\",\"No\",IF(LEFT(VLOOKUP($G179,$H$11:$DN$1000,101,FALSE),3)=\"The\",EG179,VLOOKUP(VLOOKUP($G179,$H$11:$DN$1000,101,FALSE),DeclMatrix!$A$2:$F$5,VLOOKUP('Enrollment Form'!$B179,DeclMatrix!$A$8:$B$12,2,FALSE),FALSE))))","v":""},{"$f":"IF($A179=\"\",\"\",IF(VLOOKUP($G179,$H$11:$DN$1000,106,FALSE)=\"\",\"No\",IF(LEFT(VLOOKUP($G179,$H$11:$DN$1000,106,FALSE),3)=\"The\",EH179,VLOOKUP(VLOOKUP($G179,$H$11:$DN$1000,106,FALSE),DeclMatrix!$A$2:$F$5,VLOOKUP('Enrollment Form'!$B179,DeclMatrix!$A$8:$B$12,2,FALSE),FALSE))))","v":""},{"$f":"IF($A179=\"\",\"\",IF(VLOOKUP($G179,$H$11:$DN$1000,111,FALSE)=\"\",\"No\",IF(LEFT(VLOOKUP($G179,$H$11:$DN$1000,111,FALSE),3)=\"The\",EI179,VLOOKUP(VLOOKUP($G179,$H$11:$DN$1000,111,FALSE),DeclMatrix!$A$2:$F$5,VLOOKUP('Enrollment Form'!$B179,DeclMatrix!$A$8:$B$12,2,FALSE),FALSE))))","v":""},"",null,"","","","","","","","","","","",""]
["",{"$nulls":5},"","",{"$nulls":18},"","","","",{"$nulls":30},"","","","",{"$nulls":60},"",{"$f":"IF($A180=\"\",\"\",IF(VLOOKUP($G180,$H$11:$DN$1000,96,FALSE)=\"\",\"No\",IF(LEFT(VLOOKUP($G180,$H$11:$DN$1000,96,FALSE),3)=\"The\",EF180,VLOOKUP(VLOOKUP($G180,$H$11:$DN$1000,96,FALSE),DeclMatrix!$A$2:$F$5,VLOOKUP('Enrollment Form'!$B180,DeclMatrix!$A$8:$B$12,2,FALSE),FALSE))))","v":""},{"$f":"IF($A180=\"\",\"\",IF(VLOOKUP($G180,$H$11:$DN$1000,101,FALSE)=\"\",\"No\",IF(LEFT(VLOOKUP($G180,$H$11:$DN$1000,101,FALSE),3)=\"The\",EG180,VLOOKUP(VLOOKUP($G180,$H$11:$DN$1000,101,FALSE),DeclMatrix!$A$2:$F$5,VLOOKUP('Enrollment Form'!$B180,DeclMatrix!$A$8:$B$12,2,FALSE),FALSE))))","v":""},{"$f":"IF($A180=\"\",\"\",IF(VLOOKUP($G180,$H$11:$DN$1000,106,FALSE)=\"\",\"No\",IF(LEFT(VLOOKUP($G180,$H$11:$DN$1000,106,FALSE),3)=\"The\",EH180,VLOOKUP(VLOOKUP($G180,$H$11:$DN$1000,106,FALSE),DeclMatrix!$A$2:$F$5,VLOOKUP('Enrollment Form'!$B180,DeclMatrix!$A$8:$B$12,2,FALSE),FALSE))))","v":""},{"$f":"IF($A180=\"\",\"\",IF(VLOOKUP($G180,$H$11:$DN$1000,111,FALSE)=\"\",\"No\",IF(LEFT(VLOOKUP($G180,$H$11:$DN$1000,111,FALSE),3)=\"The\",EI180,VLOOKUP(VLOOKUP($G180,$H$11:$DN$1000,111,FALSE),DeclMatrix!$A$2:$F$5,VLOOKUP('Enrollment Form'!$B180,DeclMatrix!$A$8:$B$12,2,FALSE),FALSE))))","v":""},"",null,"","","","","","","","","","","",""]
["",{"$nulls":5},"","",{"$nulls":18},"","","","",{"$nulls":30},"","","","",{"$nulls":60},"",{"$f":"IF($A181=\"\",\"\",IF(VLOOKUP($G181,$H$11:$DN$1000,96,FALSE)=\"\",\"No\",IF(LEFT(VLOOKUP($G181,$H$11:$DN$1000,96,FALSE),3)=\"The\",EF181,VLOOKUP(VLOOKUP($G181,$H$11:$DN$1000,96,FALSE),DeclMatrix!$A$2:$F$5,VLOOKUP('Enrollment Form'!$B181,DeclMatrix!$A$8:$B$12,2,FALSE),FALSE))))","v":""},{"$f":"IF($A181=\"\",\"\",IF(VLOOKUP($G181,$H$11:$DN$1000,101,FALSE)=\"\",\"No\",IF(LEFT(VLOOKUP($G181,$H$11:$DN$1000,101,FALSE),3)=\"The\",EG181,VLOOKUP(VLOOKUP($G181,$H$11:$DN$1000,101,FALSE),DeclMatrix!$A$2:$F$5,VLOOKUP('Enrollment Form'!$B181,DeclMatrix!$A$8:$B$12,2,FALSE),FALSE))))","v":""},{"$f":"IF($A181=\"\",\"\",IF(VLOOKUP($G181,$H$11:$DN$1000,106,FALSE)=\"\",\"No\",IF(LEFT(VLOOKUP($G181,$H$11:$DN$1000,106,FALSE),3)=\"The\",EH181,VLOOKUP(VLOOKUP($G181,$H$11:$DN$1000,106,FALSE),DeclMatrix!$A$2:$F$5,VLOOKUP('Enrollment Form'!$B181,DeclMatrix!$A$8:$B$12,2,FALSE),FALSE))))","v":""},{"$f":"IF($A181=\"\",\"\",IF(VLOOKUP($G181,$H$11:$DN$1000,111,FALSE)=\"\",\"No\",IF(LEFT(VLOOKUP($G181,$H$11:$DN$1000,111,FALSE),3)=\"The\",EI181,VLOOKUP(VLOOKUP($G181,$H$11:$DN$1000,111,FALSE),DeclMatrix!$A$2:$F$5,VLOOKUP('Enrollment Form'!$B181,DeclMatrix!$A$8:$B$12,2,FALSE),FALSE))))","v":""},"",null,"","","","","","","","","","","",""]
["",{"$nulls":5},"","",{"$nulls":18},"","","","",{"$nulls":30},"","","","",{"$nulls":60},"",{"$f":"IF($A182=\"\",\"\",IF(VLOOKUP($G182,$H$11:$DN$1000,96,FALSE)=\"\",\"No\",IF(LEFT(VLOOKUP($G182,$H$11:$DN$1000,96,FALSE),3)=\"The\",EF182,VLOOKUP(VLOOKUP($G182,$H$11:$DN$1000,96,FALSE),DeclMatrix!$A$2:$F$5,VLOOKUP('Enrollment Form'!$B182,DeclMatrix!$A$8:$B$12,2,FALSE),FALSE))))","v":""},{"$f":"IF($A182=\"\",\"\",IF(VLOOKUP($G182,$H$11:$DN$1000,101,FALSE)=\"\",\"No\",IF(LEFT(VLOOKUP($G182,$H$11:$DN$1000,101,FALSE),3)=\"The\",EG182,VLOOKUP(VLOOKUP($G182,$H$11:$DN$1000,101,FALSE),DeclMatrix!$A$2:$F$5,VLOOKUP('Enrollment Form'!$B182,DeclMatrix!$A$8:$B$12,2,FALSE),FALSE))))","v":""},{"$f":"IF($A182=\"\",\"\",IF(VLOOKUP($G182,$H$11:$DN$1000,106,FALSE)=\"\",\"No\",IF(LEFT(VLOOKUP($G182,$H$11:$DN$1000,106,FALSE),3)=\"The\",EH182,VLOOKUP(VLOOKUP($G182,$H$11:$DN$1000,106,FALSE),DeclMatrix!$A$2:$F$5,VLOOKUP('Enrollment Form'!$B182,DeclMatrix!$A$8:$B$12,2,FALSE),FALSE))))","v":""},{"$f":"IF($A182=\"\",\"\",IF(VLOOKUP($G182,$H$11:$DN$1000,111,FALSE)=\"\",\"No\",IF(LEFT(VLOOKUP($G182,$H$11:$DN$1000,111,FALSE),3)=\"The\",EI182,VLOOKUP(VLOOKUP($G182,$H$11:$DN$1000,111,FALSE),DeclMatrix!$A$2:$F$5,VLOOKUP('Enrollment Form'!$B182,DeclMatrix!$A$8:$B$12,2,FALSE),FALSE))))","v":""},"",null,"","","","","","","","","","","",""]
["",{"$nulls":5},"","",{"$nulls":18},"","","","",{"$nulls":30},"","","","",{"$nulls":60},"",{"$f":"IF($A183=\"\",\"\",IF(VLOOKUP($G183,$H$11:$DN$1000,96,FALSE)=\"\",\"No\",IF(LEFT(VLOOKUP($G183,$H$11:$DN$1000,96,FALSE),3)=\"The\",EF183,VLOOKUP(VLOOKUP($G183,$H$11:$DN$1000,96,FALSE),DeclMatrix!$A$2:$F$5,VLOOKUP('Enrollment Form'!$B183,DeclMatrix!$A$8:$B$12,2,FALSE),FALSE))))","v":""},{"$f":"IF($A183=\"\",\"\",IF(VLOOKUP($G183,$H$11:$DN$1000,101,FALSE)=\"\",\"No\",IF(LEFT(VLOOKUP($G183,$H$11:$DN$1000,101,FALSE),3)=\"The\",EG183,VLOOKUP(VLOOKUP($G183,$H$11:$DN$1000,101,FALSE),DeclMatrix!$A$2:$F$5,VLOOKUP('Enrollment Form'!$B183,DeclMatrix!$A$8:$B$12,2,FALSE),FALSE))))","v":""},{"$f":"IF($A183=\"\",\"\",IF(VLOOKUP($G183,$H$11:$DN$1000,106,FALSE)=\"\",\"No\",IF(LEFT(VLOOKUP($G183,$H$11:$DN$1000,106,FALSE),3)=\"The\",EH183,VLOOKUP(VLOOKUP($G183,$H$11:$DN$1000,106,FALSE),DeclMatrix!$A$2:$F$5,VLOOKUP('Enrollment Form'!$B183,DeclMatrix!$A$8:$B$12,2,FALSE),FALSE))))","v":""},{"$f":"IF($A183=\"\",\"\",IF(VLOOKUP($G183,$H$11:$DN$1000,111,FALSE)=\"\",\"No\",IF(LEFT(VLOOKUP($G183,$H$11:$DN$1000,111,FALSE),3)=\"The\",EI183,VLOOKUP(VLOOKUP($G183,$H$11:$DN$1000,111,FALSE),DeclMatrix!$A$2:$F$5,VLOOKUP('Enrollment Form'!$B183,DeclMatrix!$A$8:$B$12,2,FALSE),FALSE))))","v":""},"",null,"","","","","","","","","","","",""]
["",{"$nulls":5},"","",{"$nulls":18},"","","","",{"$nulls":30},"","","","",{"$nulls":60},"",{"$f":"IF($A184=\"\",\"\",IF(VLOOKUP($G184,$H$11:$DN$1000,96,FALSE)=\"\",\"No\",IF(LEFT(VLOOKUP($G184,$H$11:$DN$1000,96,FALSE),3)=\"The\",EF184,VLOOKUP(VLOOKUP($G184,$H$11:$DN$1000,96,FALSE),DeclMatrix!$A$2:$F$5,VLOOKUP('Enrollment Form'!$B184,DeclMatrix!$A$8:$B$12,2,FALSE),FALSE))))","v":""},{"$f":"IF($A184=\"\",\"\",IF(VLOOKUP($G184,$H$11:$DN$1000,101,FALSE)=\"\",\"No\",IF(LEFT(VLOOKUP($G184,$H$11:$DN$1000,101,FALSE),3)=\"The\",EG184,VLOOKUP(VLOOKUP($G184,$H$11:$DN$1000,101,FALSE),DeclMatrix!$A$2:$F$5,VLOOKUP('Enrollment Form'!$B184,DeclMatrix!$A$8:$B$12,2,FALSE),FALSE))))","v":""},{"$f":"IF($A184=\"\",\"\",IF(VLOOKUP($G184,$H$11:$DN$1000,106,FALSE)=\"\",\"No\",IF(LEFT(VLOOKUP($G184,$H$11:$DN$1000,106,FALSE),3)=\"The\",EH184,VLOOKUP(VLOOKUP($G184,$H$11:$DN$1000,106,FALSE),DeclMatrix!$A$2:$F$5,VLOOKUP('Enrollment Form'!$B184,DeclMatrix!$A$8:$B$12,2,FALSE),FALSE))))","v":""},{"$f":"IF($A184=\"\",\"\",IF(VLOOKUP($G184,$H$11:$DN$1000,111,FALSE)=\"\",\"No\",IF(LEFT(VLOOKUP($G184,$H$11:$DN$1000,111,FALSE),3)=\"The\",EI184,VLOOKUP(VLOOKUP($G184,$H$11:$DN$1000,111,FALSE),DeclMatrix!$A$2:$F$5,VLOOKUP('Enrollment Form'!$B184,DeclMatrix!$A$8:$B$12,2,FALSE),FALSE))))","v":""},"",null,"","","","","","","","","","","",""]
["",{"$nulls":5},"","",{"$nulls":18},"","","","",{"$nulls":30},"","","","",{"$nulls":60},"",{"$f":"IF($A185=\"\",\"\",IF(VLOOKUP($G185,$H$11:$DN$1000,96,FALSE)=\"\",\"No\",IF(LEFT(VLOOKUP($G185,$H$11:$DN$1000,96,FALSE),3)=\"The\",EF185,VLOOKUP(VLOOKUP($G185,$H$11:$DN$1000,96,FALSE),DeclMatrix!$A$2:$F$5,VLOOKUP('Enrollment Form'!$B185,DeclMatrix!$A$8:$B$12,2,FALSE),FALSE))))","v":""},{"$f":"IF($A185=\"\",\"\",IF(VLOOKUP($G185,$H$11:$DN$1000,101,FALSE)=\"\",\"No\",IF(LEFT(VLOOKUP($G185,$H$11:$DN$1000,101,FALSE),3)=\"The\",EG185,VLOOKUP(VLOOKUP($G185,$H$11:$DN$1000,101,FALSE),DeclMatrix!$A$2:$F$5,VLOOKUP('Enrollment Form'!$B185,DeclMatrix!$A$8:$B$12,2,FALSE),FALSE))))","v":""},{"$f":"IF($A185=\"\",\"\",IF(VLOOKUP($G185,$H$11:$DN$1000,106,FALSE)=\"\",\"No\",IF(LEFT(VLOOKUP($G185,$H$11:$DN$1000,106,FALSE),3)=\"The\",EH185,VLOOKUP(VLOOKUP($G185,$H$11:$DN$1000,106,FALSE),DeclMatrix!$A$2:$F$5,VLOOKUP('Enrollment Form'!$B185,DeclMatrix!$A$8:$B$12,2,FALSE),FALSE))))","v":""},{"$f":"IF($A185=\"\",\"\",IF(VLOOKUP($G185,$H$11:$DN$1000,111,FALSE)=\"\",\"No\",IF(LEFT(VLOOKUP($G185,$H$11:$DN$1000,111,FALSE),3)=\"The\",EI185,VLOOKUP(VLOOKUP($G185,$H$11:$DN$1000,111,FALSE),DeclMatrix!$A$2:$F$5,VLOOKUP('Enrollment Form'!$B185,DeclMatrix!$A$8:$B$12,2,FALSE),FALSE))))","v":""},"",null,"","","","","","","","","","","",""]
["",{"$nulls":5},"","",{"$nulls":18},"","","","",{"$nulls":30},"","","","",{"$nulls":60},"",{"$f":"IF($A186=\"\",\"\",IF(VLOOKUP($G186,$H$11:$DN$1000,96,FALSE)=\"\",\"No\",IF(LEFT(VLOOKUP($G186,$H$11:$DN$1000,96,FALSE),3)=\"The\",EF186,VLOOKUP(VLOOKUP($G186,$H$11:$DN$1000,96,FALSE),DeclMatrix!$A$2:$F$5,VLOOKUP('Enrollment Form'!$B186,DeclMatrix!$A$8:$B$12,2,FALSE),FALSE))))","v":""},{"$f":"IF($A186=\"\",\"\",IF(VLOOKUP($G186,$H$11:$DN$1000,101,FALSE)=\"\",\"No\",IF(LEFT(VLOOKUP($G186,$H$11:$DN$1000,101,FALSE),3)=\"The\",EG186,VLOOKUP(VLOOKUP($G186,$H$11:$DN$1000,101,FALSE),DeclMatrix!$A$2:$F$5,VLOOKUP('Enrollment Form'!$B186,DeclMatrix!$A$8:$B$12,2,FALSE),FALSE))))","v":""},{"$f":"IF($A186=\"\",\"\",IF(VLOOKUP($G186,$H$11:$DN$1000,106,FALSE)=\"\",\"No\",IF(LEFT(VLOOKUP($G186,$H$11:$DN$1000,106,FALSE),3)=\"The\",EH186,VLOOKUP(VLOOKUP($G186,$H$11:$DN$1000,106,FALSE),DeclMatrix!$A$2:$F$5,VLOOKUP('Enrollment Form'!$B186,DeclMatrix!$A$8:$B$12,2,FALSE),FALSE))))","v":""},{"$f":"IF($A186=\"\",\"\",IF(VLOOKUP($G186,$H$11:$DN$1000,111,FALSE)=\"\",\"No\",IF(LEFT(VLOOKUP($G186,$H$11:$DN$1000,111,FALSE),3)=\"The\",EI186,VLOOKUP(VLOOKUP($G186,$H$11:$DN$1000,111,FALSE),DeclMatrix!$A$2:$F$5,VLOOKUP('Enrollment Form'!$B186,DeclMatrix!$A$8:$B$12,2,FALSE),FALSE))))","v":""},"",null,"","","","","","","","","","","",""]
["",{"$nulls":5},"","",{"$nulls":18},"","","","",{"$nulls":30},"","","","",{"$nulls":60},"",{"$f":"IF($A187=\"\",\"\",IF(VLOOKUP($G187,$H$11:$DN$1000,96,FALSE)=\"\",\"No\",IF(LEFT(VLOOKUP($G187,$H$11:$DN$1000,96,FALSE),3)=\"The\",EF187,VLOOKUP(VLOOKUP($G187,$H$11:$DN$1000,96,FALSE),DeclMatrix!$A$2:$F$5,VLOOKUP('Enrollment Form'!$B187,DeclMatrix!$A$8:$B$12,2,FALSE),FALSE))))","v":""},{"$f":"IF($A187=\"\",\"\",IF(VLOOKUP($G187,$H$11:$DN$1000,101,FALSE)=\"\",\"No\",IF(LEFT(VLOOKUP($G187,$H$11:$DN$1000,101,FALSE),3)=\"The\",EG187,VLOOKUP(VLOOKUP($G187,$H$11:$DN$1000,101,FALSE),DeclMatrix!$A$2:$F$5,VLOOKUP('Enrollment Form'!$B187,DeclMatrix!$A$8:$B$12,2,FALSE),FALSE))))","v":""},{"$f":"IF($A187=\"\",\"\",IF(VLOOKUP($G187,$H$11:$DN$1000,106,FALSE)=\"\",\"No\",IF(LEFT(VLOOKUP($G187,$H$11:$DN$1000,106,FALSE),3)=\"The\",EH187,VLOOKUP(VLOOKUP($G187,$H$11:$DN$1000,106,FALSE),DeclMatrix!$A$2:$F$5,VLOOKUP('Enrollment Form'!$B187,DeclMatrix!$A$8:$B$12,2,FALSE),FALSE))))","v":""},{"$f":"IF($A187=\"\",\"\",IF(VLOOKUP($G187,$H$11:$DN$1000,111,FALSE)=\"\",\"No\",IF(LEFT(VLOOKUP($G187,$H$11:$DN$1000,111,FALSE),3)=\"The\",EI187,VLOOKUP(VLOOKUP($G187,$H$11:$DN$1000,111,FALSE),DeclMatrix!$A$2:$F$5,VLOOKUP('Enrollment Form'!$B187,DeclMatrix!$A$8:$B$12,2,FALSE),FALSE))))","v":""},"",null,"","","","","","","","","","","",""]
["",{"$nulls":5},"","",{"$nulls":18},"","","","",{"$nulls":30},"","","","",{"$nulls":60},"",{"$f":"IF($A188=\"\",\"\",IF(VLOOKUP($G188,$H$11:$DN$1000,96,FALSE)=\"\",\"No\",IF(LEFT(VLOOKUP($G188,$H$11:$DN$1000,96,FALSE),3)=\"The\",EF188,VLOOKUP(VLOOKUP($G188,$H$11:$DN$1000,96,FALSE),DeclMatrix!$A$2:$F$5,VLOOKUP('Enrollment Form'!$B188,DeclMatrix!$A$8:$B$12,2,FALSE),FALSE))))","v":""},{"$f":"IF($A188=\"\",\"\",IF(VLOOKUP($G188,$H$11:$DN$1000,101,FALSE)=\"\",\"No\",IF(LEFT(VLOOKUP($G188,$H$11:$DN$1000,101,FALSE),3)=\"The\",EG188,VLOOKUP(VLOOKUP($G188,$H$11:$DN$1000,101,FALSE),DeclMatrix!$A$2:$F$5,VLOOKUP('Enrollment Form'!$B188,DeclMatrix!$A$8:$B$12,2,FALSE),FALSE))))","v":""},{"$f":"IF($A188=\"\",\"\",IF(VLOOKUP($G188,$H$11:$DN$1000,106,FALSE)=\"\",\"No\",IF(LEFT(VLOOKUP($G188,$H$11:$DN$1000,106,FALSE),3)=\"The\",EH188,VLOOKUP(VLOOKUP($G188,$H$11:$DN$1000,106,FALSE),DeclMatrix!$A$2:$F$5,VLOOKUP('Enrollment Form'!$B188,DeclMatrix!$A$8:$B$12,2,FALSE),FALSE))))","v":""},{"$f":"IF($A188=\"\",\"\",IF(VLOOKUP($G188,$H$11:$DN$1000,111,FALSE)=\"\",\"No\",IF(LEFT(VLOOKUP($G188,$H$11:$DN$1000,111,FALSE),3)=\"The\",EI188,VLOOKUP(VLOOKUP($G188,$H$11:$DN$1000,111,FALSE),DeclMatrix!$A$2:$F$5,VLOOKUP('Enrollment Form'!$B188,DeclMatrix!$A$8:$B$12,2,FALSE),FALSE))))","v":""},"",null,"","","","","","","","","","","",""]
["",{"$nulls":5},"","",{"$nulls":18},"","","","",{"$nulls":30},"","","","",{"$nulls":60},"",{"$f":"IF($A189=\"\",\"\",IF(VLOOKUP($G189,$H$11:$DN$1000,96,FALSE)=\"\",\"No\",IF(LEFT(VLOOKUP($G189,$H$11:$DN$1000,96,FALSE),3)=\"The\",EF189,VLOOKUP(VLOOKUP($G189,$H$11:$DN$1000,96,FALSE),DeclMatrix!$A$2:$F$5,VLOOKUP('Enrollment Form'!$B189,DeclMatrix!$A$8:$B$12,2,FALSE),FALSE))))","v":""},{"$f":"IF($A189=\"\",\"\",IF(VLOOKUP($G189,$H$11:$DN$1000,101,FALSE)=\"\",\"No\",IF(LEFT(VLOOKUP($G189,$H$11:$DN$1000,101,FALSE),3)=\"The\",EG189,VLOOKUP(VLOOKUP($G189,$H$11:$DN$1000,101,FALSE),DeclMatrix!$A$2:$F$5,VLOOKUP('Enrollment Form'!$B189,DeclMatrix!$A$8:$B$12,2,FALSE),FALSE))))","v":""},{"$f":"IF($A189=\"\",\"\",IF(VLOOKUP($G189,$H$11:$DN$1000,106,FALSE)=\"\",\"No\",IF(LEFT(VLOOKUP($G189,$H$11:$DN$1000,106,FALSE),3)=\"The\",EH189,VLOOKUP(VLOOKUP($G189,$H$11:$DN$1000,106,FALSE),DeclMatrix!$A$2:$F$5,VLOOKUP('Enrollment Form'!$B189,DeclMatrix!$A$8:$B$12,2,FALSE),FALSE))))","v":""},{"$f":"IF($A189=\"\",\"\",IF(VLOOKUP($G189,$H$11:$DN$1000,111,FALSE)=\"\",\"No\",IF(LEFT(VLOOKUP($G189,$H$11:$DN$1000,111,FALSE),3)=\"The\",EI189,VLOOKUP(VLOOKUP($G189,$H$11:$DN$1000,111,FALSE),DeclMatrix!$A$2:$F$5,VLOOKUP('Enrollment Form'!$B189,DeclMatrix!$A$8:$B$12,2,FALSE),FALSE))))","v":""},"",null,"","","","","","","","","","","",""]
["",{"$nulls":5},"","",{"$nulls":18},"","","","",{"$nulls":30},"","","","",{"$nulls":60},"",{"$f":"IF($A190=\"\",\"\",IF(VLOOKUP($G190,$H$11:$DN$1000,96,FALSE)=\"\",\"No\",IF(LEFT(VLOOKUP($G190,$H$11:$DN$1000,96,FALSE),3)=\"The\",EF190,VLOOKUP(VLOOKUP($G190,$H$11:$DN$1000,96,FALSE),DeclMatrix!$A$2:$F$5,VLOOKUP('Enrollment Form'!$B190,DeclMatrix!$A$8:$B$12,2,FALSE),FALSE))))","v":""},{"$f":"IF($A190=\"\",\"\",IF(VLOOKUP($G190,$H$11:$DN$1000,101,FALSE)=\"\",\"No\",IF(LEFT(VLOOKUP($G190,$H$11:$DN$1000,101,FALSE),3)=\"The\",EG190,VLOOKUP(VLOOKUP($G190,$H$11:$DN$1000,101,FALSE),DeclMatrix!$A$2:$F$5,VLOOKUP('Enrollment Form'!$B190,DeclMatrix!$A$8:$B$12,2,FALSE),FALSE))))","v":""},{"$f":"IF($A190=\"\",\"\",IF(VLOOKUP($G190,$H$11:$DN$1000,106,FALSE)=\"\",\"No\",IF(LEFT(VLOOKUP($G190,$H$11:$DN$1000,106,FALSE),3)=\"The\",EH190,VLOOKUP(VLOOKUP($G190,$H$11:$DN$1000,106,FALSE),DeclMatrix!$A$2:$F$5,VLOOKUP('Enrollment Form'!$B190,DeclMatrix!$A$8:$B$12,2,FALSE),FALSE))))","v":""},{"$f":"IF($A190=\"\",\"\",IF(VLOOKUP($G190,$H$11:$DN$1000,111,FALSE)=\"\",\"No\",IF(LEFT(VLOOKUP($G190,$H$11:$DN$1000,111,FALSE),3)=\"The\",EI190,VLOOKUP(VLOOKUP($G190,$H$11:$DN$1000,111,FALSE),DeclMatrix!$A$2:$F$5,VLOOKUP('Enrollment Form'!$B190,DeclMatrix!$A$8:$B$12,2,FALSE),FALSE))))","v":""},"",null,"","","","","","","","","","","",""]
["",{"$nulls":5},"","",{"$nulls":18},"","","","",{"$nulls":30},"","","","",{"$nulls":60},"",{"$f":"IF($A191=\"\",\"\",IF(VLOOKUP($G191,$H$11:$DN$1000,96,FALSE)=\"\",\"No\",IF(LEFT(VLOOKUP($G191,$H$11:$DN$1000,96,FALSE),3)=\"The\",EF191,VLOOKUP(VLOOKUP($G191,$H$11:$DN$1000,96,FALSE),DeclMatrix!$A$2:$F$5,VLOOKUP('Enrollment Form'!$B191,DeclMatrix!$A$8:$B$12,2,FALSE),FALSE))))","v":""},{"$f":"IF($A191=\"\",\"\",IF(VLOOKUP($G191,$H$11:$DN$1000,101,FALSE)=\"\",\"No\",IF(LEFT(VLOOKUP($G191,$H$11:$DN$1000,101,FALSE),3)=\"The\",EG191,VLOOKUP(VLOOKUP($G191,$H$11:$DN$1000,101,FALSE),DeclMatrix!$A$2:$F$5,VLOOKUP('Enrollment Form'!$B191,DeclMatrix!$A$8:$B$12,2,FALSE),FALSE))))","v":""},{"$f":"IF($A191=\"\",\"\",IF(VLOOKUP($G191,$H$11:$DN$1000,106,FALSE)=\"\",\"No\",IF(LEFT(VLOOKUP($G191,$H$11:$DN$1000,106,FALSE),3)=\"The\",EH191,VLOOKUP(VLOOKUP($G191,$H$11:$DN$1000,106,FALSE),DeclMatrix!$A$2:$F$5,VLOOKUP('Enrollment Form'!$B191,DeclMatrix!$A$8:$B$12,2,FALSE),FALSE))))","v":""},{"$f":"IF($A191=\"\",\"\",IF(VLOOKUP($G191,$H$11:$DN$1000,111,FALSE)=\"\",\"No\",IF(LEFT(VLOOKUP($G191,$H$11:$DN$1000,111,FALSE),3)=\"The\",EI191,VLOOKUP(VLOOKUP($G191,$H$11:$DN$1000,111,FALSE),DeclMatrix!$A$2:$F$5,VLOOKUP('Enrollment Form'!$B191,DeclMatrix!$A$8:$B$12,2,FALSE),FALSE))))","v":""},"",null,"","","","","","","","","","","",""]
["",{"$nulls":5},"","",{"$nulls":18},"","","","",{"$nulls":30},"","","","",{"$nulls":60},"",{"$f":"IF($A192=\"\",\"\",IF(VLOOKUP($G192,$H$11:$DN$1000,96,FALSE)=\"\",\"No\",IF(LEFT(VLOOKUP($G192,$H$11:$DN$1000,96,FALSE),3)=\"The\",EF192,VLOOKUP(VLOOKUP($G192,$H$11:$DN$1000,96,FALSE),DeclMatrix!$A$2:$F$5,VLOOKUP('Enrollment Form'!$B192,DeclMatrix!$A$8:$B$12,2,FALSE),FALSE))))","v":""},{"$f":"IF($A192=\"\",\"\",IF(VLOOKUP($G192,$H$11:$DN$1000,101,FALSE)=\"\",\"No\",IF(LEFT(VLOOKUP($G192,$H$11:$DN$1000,101,FALSE),3)=\"The\",EG192,VLOOKUP(VLOOKUP($G192,$H$11:$DN$1000,101,FALSE),DeclMatrix!$A$2:$F$5,VLOOKUP('Enrollment Form'!$B192,DeclMatrix!$A$8:$B$12,2,FALSE),FALSE))))","v":""},{"$f":"IF($A192=\"\",\"\",IF(VLOOKUP($G192,$H$11:$DN$1000,106,FALSE)=\"\",\"No\",IF(LEFT(VLOOKUP($G192,$H$11:$DN$1000,106,FALSE),3)=\"The\",EH192,VLOOKUP(VLOOKUP($G192,$H$11:$DN$1000,106,FALSE),DeclMatrix!$A$2:$F$5,VLOOKUP('Enrollment Form'!$B192,DeclMatrix!$A$8:$B$12,2,FALSE),FALSE))))","v":""},{"$f":"IF($A192=\"\",\"\",IF(VLOOKUP($G192,$H$11:$DN$1000,111,FALSE)=\"\",\"No\",IF(LEFT(VLOOKUP($G192,$H$11:$DN$1000,111,FALSE),3)=\"The\",EI192,VLOOKUP(VLOOKUP($G192,$H$11:$DN$1000,111,FALSE),DeclMatrix!$A$2:$F$5,VLOOKUP('Enrollment Form'!$B192,DeclMatrix!$A$8:$B$12,2,FALSE),FALSE))))","v":""},"",null,"","","","","","","","","","","",""]
["",{"$nulls":5},"","",{"$nulls":18},"","","","",{"$nulls":30},"","","","",{"$nulls":60},"",{"$f":"IF($A193=\"\",\"\",IF(VLOOKUP($G193,$H$11:$DN$1000,96,FALSE)=\"\",\"No\",IF(LEFT(VLOOKUP($G193,$H$11:$DN$1000,96,FALSE),3)=\"The\",EF193,VLOOKUP(VLOOKUP($G193,$H$11:$DN$1000,96,FALSE),DeclMatrix!$A$2:$F$5,VLOOKUP('Enrollment Form'!$B193,DeclMatrix!$A$8:$B$12,2,FALSE),FALSE))))","v":""},{"$f":"IF($A193=\"\",\"\",IF(VLOOKUP($G193,$H$11:$DN$1000,101,FALSE)=\"\",\"No\",IF(LEFT(VLOOKUP($G193,$H$11:$DN$1000,101,FALSE),3)=\"The\",EG193,VLOOKUP(VLOOKUP($G193,$H$11:$DN$1000,101,FALSE),DeclMatrix!$A$2:$F$5,VLOOKUP('Enrollment Form'!$B193,DeclMatrix!$A$8:$B$12,2,FALSE),FALSE))))","v":""},{"$f":"IF($A193=\"\",\"\",IF(VLOOKUP($G193,$H$11:$DN$1000,106,FALSE)=\"\",\"No\",IF(LEFT(VLOOKUP($G193,$H$11:$DN$1000,106,FALSE),3)=\"The\",EH193,VLOOKUP(VLOOKUP($G193,$H$11:$DN$1000,106,FALSE),DeclMatrix!$A$2:$F$5,VLOOKUP('Enrollment Form'!$B193,DeclMatrix!$A$8:$B$12,2,FALSE),FALSE))))","v":""},{"$f":"IF($A193=\"\",\"\",IF(VLOOKUP($G193,$H$11:$DN$1000,111,FALSE)=\"\",\"No\",IF(LEFT(VLOOKUP($G193,$H$11:$DN$1000,111,FALSE),3)=\"The\",EI193,VLOOKUP(VLOOKUP($G193,$H$11:$DN$1000,111,FALSE),DeclMatrix!$A$2:$F$5,VLOOKUP('Enrollment Form'!$B193,DeclMatrix!$A$8:$B$12,2,FALSE),FALSE))))","v":""},"",null,"","","","","","","","","","","",""]
["",{"$nulls":5},"","",{"$nulls":18},"","","","",{"$nulls":30},"","","","",{"$nulls":60},"",{"$f":"IF($A194=\"\",\"\",IF(VLOOKUP($G194,$H$11:$DN$1000,96,FALSE)=\"\",\"No\",IF(LEFT(VLOOKUP($G194,$H$11:$DN$1000,96,FALSE),3)=\"The\",EF194,VLOOKUP(VLOOKUP($G194,$H$11:$DN$1000,96,FALSE),DeclMatrix!$A$2:$F$5,VLOOKUP('Enrollment Form'!$B194,DeclMatrix!$A$8:$B$12,2,FALSE),FALSE))))","v":""},{"$f":"IF($A194=\"\",\"\",IF(VLOOKUP($G194,$H$11:$DN$1000,101,FALSE)=\"\",\"No\",IF(LEFT(VLOOKUP($G194,$H$11:$DN$1000,101,FALSE),3)=\"The\",EG194,VLOOKUP(VLOOKUP($G194,$H$11:$DN$1000,101,FALSE),DeclMatrix!$A$2:$F$5,VLOOKUP('Enrollment Form'!$B194,DeclMatrix!$A$8:$B$12,2,FALSE),FALSE))))","v":""},{"$f":"IF($A194=\"\",\"\",IF(VLOOKUP($G194,$H$11:$DN$1000,106,FALSE)=\"\",\"No\",IF(LEFT(VLOOKUP($G194,$H$11:$DN$1000,106,FALSE),3)=\"The\",EH194,VLOOKUP(VLOOKUP($G194,$H$11:$DN$1000,106,FALSE),DeclMatrix!$A$2:$F$5,VLOOKUP('Enrollment Form'!$B194,DeclMatrix!$A$8:$B$12,2,FALSE),FALSE))))","v":""},{"$f":"IF($A194=\"\",\"\",IF(VLOOKUP($G194,$H$11:$DN$1000,111,FALSE)=\"\",\"No\",IF(LEFT(VLOOKUP($G194,$H$11:$DN$1000,111,FALSE),3)=\"The\",EI194,VLOOKUP(VLOOKUP($G194,$H$11:$DN$1000,111,FALSE),DeclMatrix!$A$2:$F$5,VLOOKUP('Enrollment Form'!$B194,DeclMatrix!$A$8:$B$12,2,FALSE),FALSE))))","v":""},"",null,"","","","","","","","","","","",""]
["",{"$nulls":5},"","",{"$nulls":18},"","","","",{"$nulls":30},"","","","",{"$nulls":60},"",{"$f":"IF($A195=\"\",\"\",IF(VLOOKUP($G195,$H$11:$DN$1000,96,FALSE)=\"\",\"No\",IF(LEFT(VLOOKUP($G195,$H$11:$DN$1000,96,FALSE),3)=\"The\",EF195,VLOOKUP(VLOOKUP($G195,$H$11:$DN$1000,96,FALSE),DeclMatrix!$A$2:$F$5,VLOOKUP('Enrollment Form'!$B195,DeclMatrix!$A$8:$B$12,2,FALSE),FALSE))))","v":""},{"$f":"IF($A195=\"\",\"\",IF(VLOOKUP($G195,$H$11:$DN$1000,101,FALSE)=\"\",\"No\",IF(LEFT(VLOOKUP($G195,$H$11:$DN$1000,101,FALSE),3)=\"The\",EG195,VLOOKUP(VLOOKUP($G195,$H$11:$DN$1000,101,FALSE),DeclMatrix!$A$2:$F$5,VLOOKUP('Enrollment Form'!$B195,DeclMatrix!$A$8:$B$12,2,FALSE),FALSE))))","v":""},{"$f":"IF($A195=\"\",\"\",IF(VLOOKUP($G195,$H$11:$DN$1000,106,FALSE)=\"\",\"No\",IF(LEFT(VLOOKUP($G195,$H$11:$DN$1000,106,FALSE),3)=\"The\",EH195,VLOOKUP(VLOOKUP($G195,$H$11:$DN$1000,106,FALSE),DeclMatrix!$A$2:$F$5,VLOOKUP('Enrollment Form'!$B195,DeclMatrix!$A$8:$B$12,2,FALSE),FALSE))))","v":""},{"$f":"IF($A195=\"\",\"\",IF(VLOOKUP($G195,$H$11:$DN$1000,111,FALSE)=\"\",\"No\",IF(LEFT(VLOOKUP($G195,$H$11:$DN$1000,111,FALSE),3)=\"The\",EI195,VLOOKUP(VLOOKUP($G195,$H$11:$DN$1000,111,FALSE),DeclMatrix!$A$2:$F$5,VLOOKUP('Enrollment Form'!$B195,DeclMatrix!$A$8:$B$12,2,FALSE),FALSE))))","v":""},"",null,"","","","","","","","","","","",""]
["",{"$nulls":5},"","",{"$nulls":18},"","","","",{"$nulls":30},"","","","",{"$nulls":60},"",{"$f":"IF($A196=\"\",\"\",IF(VLOOKUP($G196,$H$11:$DN$1000,96,FALSE)=\"\",\"No\",IF(LEFT(VLOOKUP($G196,$H$11:$DN$1000,96,FALSE),3)=\"The\",EF196,VLOOKUP(VLOOKUP($G196,$H$11:$DN$1000,96,FALSE),DeclMatrix!$A$2:$F$5,VLOOKUP('Enrollment Form'!$B196,DeclMatrix!$A$8:$B$12,2,FALSE),FALSE))))","v":""},{"$f":"IF($A196=\"\",\"\",IF(VLOOKUP($G196,$H$11:$DN$1000,101,FALSE)=\"\",\"No\",IF(LEFT(VLOOKUP($G196,$H$11:$DN$1000,101,FALSE),3)=\"The\",EG196,VLOOKUP(VLOOKUP($G196,$H$11:$DN$1000,101,FALSE),DeclMatrix!$A$2:$F$5,VLOOKUP('Enrollment Form'!$B196,DeclMatrix!$A$8:$B$12,2,FALSE),FALSE))))","v":""},{"$f":"IF($A196=\"\",\"\",IF(VLOOKUP($G196,$H$11:$DN$1000,106,FALSE)=\"\",\"No\",IF(LEFT(VLOOKUP($G196,$H$11:$DN$1000,106,FALSE),3)=\"The\",EH196,VLOOKUP(VLOOKUP($G196,$H$11:$DN$1000,106,FALSE),DeclMatrix!$A$2:$F$5,VLOOKUP('Enrollment Form'!$B196,DeclMatrix!$A$8:$B$12,2,FALSE),FALSE))))","v":""},{"$f":"IF($A196=\"\",\"\",IF(VLOOKUP($G196,$H$11:$DN$1000,111,FALSE)=\"\",\"No\",IF(LEFT(VLOOKUP($G196,$H$11:$DN$1000,111,FALSE),3)=\"The\",EI196,VLOOKUP(VLOOKUP($G196,$H$11:$DN$1000,111,FALSE),DeclMatrix!$A$2:$F$5,VLOOKUP('Enrollment Form'!$B196,DeclMatrix!$A$8:$B$12,2,FALSE),FALSE))))","v":""},"",null,"","","","","","","","","","","",""]
["",{"$nulls":5},"","",{"$nulls":18},"","","","",{"$nulls":30},"","","","",{"$nulls":60},"",{"$f":"IF($A197=\"\",\"\",IF(VLOOKUP($G197,$H$11:$DN$1000,96,FALSE)=\"\",\"No\",IF(LEFT(VLOOKUP($G197,$H$11:$DN$1000,96,FALSE),3)=\"The\",EF197,VLOOKUP(VLOOKUP($G197,$H$11:$DN$1000,96,FALSE),DeclMatrix!$A$2:$F$5,VLOOKUP('Enrollment Form'!$B197,DeclMatrix!$A$8:$B$12,2,FALSE),FALSE))))","v":""},{"$f":"IF($A197=\"\",\"\",IF(VLOOKUP($G197,$H$11:$DN$1000,101,FALSE)=\"\",\"No\",IF(LEFT(VLOOKUP($G197,$H$11:$DN$1000,101,FALSE),3)=\"The\",EG197,VLOOKUP(VLOOKUP($G197,$H$11:$DN$1000,101,FALSE),DeclMatrix!$A$2:$F$5,VLOOKUP('Enrollment Form'!$B197,DeclMatrix!$A$8:$B$12,2,FALSE),FALSE))))","v":""},{"$f":"IF($A197=\"\",\"\",IF(VLOOKUP($G197,$H$11:$DN$1000,106,FALSE)=\"\",\"No\",IF(LEFT(VLOOKUP($G197,$H$11:$DN$1000,106,FALSE),3)=\"The\",EH197,VLOOKUP(VLOOKUP($G197,$H$11:$DN$1000,106,FALSE),DeclMatrix!$A$2:$F$5,VLOOKUP('Enrollment Form'!$B197,DeclMatrix!$A$8:$B$12,2,FALSE),FALSE))))","v":""},{"$f":"IF($A197=\"\",\"\",IF(VLOOKUP($G197,$H$11:$DN$1000,111,FALSE)=\"\",\"No\",IF(LEFT(VLOOKUP($G197,$H$11:$DN$1000,111,FALSE),3)=\"The\",EI197,VLOOKUP(VLOOKUP($G197,$H$11:$DN$1000,111,FALSE),DeclMatrix!$A$2:$F$5,VLOOKUP('Enrollment Form'!$B197,DeclMatrix!$A$8:$B$12,2,FALSE),FALSE))))","v":""},"",null,"","","","","","","","","","","",""]
["",{"$nulls":5},"","",{"$nulls":18},"","","","",{"$nulls":30},"","","","",{"$nulls":60},"",{"$f":"IF($A198=\"\",\"\",IF(VLOOKUP($G198,$H$11:$DN$1000,96,FALSE)=\"\",\"No\",IF(LEFT(VLOOKUP($G198,$H$11:$DN$1000,96,FALSE),3)=\"The\",EF198,VLOOKUP(VLOOKUP($G198,$H$11:$DN$1000,96,FALSE),DeclMatrix!$A$2:$F$5,VLOOKUP('Enrollment Form'!$B198,DeclMatrix!$A$8:$B$12,2,FALSE),FALSE))))","v":""},{"$f":"IF($A198=\"\",\"\",IF(VLOOKUP($G198,$H$11:$DN$1000,101,FALSE)=\"\",\"No\",IF(LEFT(VLOOKUP($G198,$H$11:$DN$1000,101,FALSE),3)=\"The\",EG198,VLOOKUP(VLOOKUP($G198,$H$11:$DN$1000,101,FALSE),DeclMatrix!$A$2:$F$5,VLOOKUP('Enrollment Form'!$B198,DeclMatrix!$A$8:$B$12,2,FALSE),FALSE))))","v":""},{"$f":"IF($A198=\"\",\"\",IF(VLOOKUP($G198,$H$11:$DN$1000,106,FALSE)=\"\",\"No\",IF(LEFT(VLOOKUP($G198,$H$11:$DN$1000,106,FALSE),3)=\"The\",EH198,VLOOKUP(VLOOKUP($G198,$H$11:$DN$1000,106,FALSE),DeclMatrix!$A$2:$F$5,VLOOKUP('Enrollment Form'!$B198,DeclMatrix!$A$8:$B$12,2,FALSE),FALSE))))","v":""},{"$f":"IF($A198=\"\",\"\",IF(VLOOKUP($G198,$H$11:$DN$1000,111,FALSE)=\"\",\"No\",IF(LEFT(VLOOKUP($G198,$H$11:$DN$1000,111,FALSE),3)=\"The\",EI198,VLOOKUP(VLOOKUP($G198,$H$11:$DN$1000,111,FALSE),DeclMatrix!$A$2:$F$5,VLOOKUP('Enrollment Form'!$B198,DeclMatrix!$A$8:$B$12,2,FALSE),FALSE))))","v":""},"",null,"","","","","","","","","","","",""]
["",{"$nulls":5},"","",{"$nulls":18},"","","","",{"$nulls":30},"","","","",{"$nulls":60},"",{"$f":"IF($A199=\"\",\"\",IF(VLOOKUP($G199,$H$11:$DN$1000,96,FALSE)=\"\",\"No\",IF(LEFT(VLOOKUP($G199,$H$11:$DN$1000,96,FALSE),3)=\"The\",EF199,VLOOKUP(VLOOKUP($G199,$H$11:$DN$1000,96,FALSE),DeclMatrix!$A$2:$F$5,VLOOKUP('Enrollment Form'!$B199,DeclMatrix!$A$8:$B$12,2,FALSE),FALSE))))","v":""},{"$f":"IF($A199=\"\",\"\",IF(VLOOKUP($G199,$H$11:$DN$1000,101,FALSE)=\"\",\"No\",IF(LEFT(VLOOKUP($G199,$H$11:$DN$1000,101,FALSE),3)=\"The\",EG199,VLOOKUP(VLOOKUP($G199,$H$11:$DN$1000,101,FALSE),DeclMatrix!$A$2:$F$5,VLOOKUP('Enrollment Form'!$B199,DeclMatrix!$A$8:$B$12,2,FALSE),FALSE))))","v":""},{"$f":"IF($A199=\"\",\"\",IF(VLOOKUP($G199,$H$11:$DN$1000,106,FALSE)=\"\",\"No\",IF(LEFT(VLOOKUP($G199,$H$11:$DN$1000,106,FALSE),3)=\"The\",EH199,VLOOKUP(VLOOKUP($G199,$H$11:$DN$1000,106,FALSE),DeclMatrix!$A$2:$F$5,VLOOKUP('Enrollment Form'!$B199,DeclMatrix!$A$8:$B$12,2,FALSE),FALSE))))","v":""},{"$f":"IF($A199=\"\",\"\",IF(VLOOKUP($G199,$H$11:$DN$1000,111,FALSE)=\"\",\"No\",IF(LEFT(VLOOKUP($G199,$H$11:$DN$1000,111,FALSE),3)=\"The\",EI199,VLOOKUP(VLOOKUP($G199,$H$11:$DN$1000,111,FALSE),DeclMatrix!$A$2:$F$5,VLOOKUP('Enrollment Form'!$B199,DeclMatrix!$A$8:$B$12,2,FALSE),FALSE))))","v":""},"",null,"","","","","","","","","","","",""]
["",{"$nulls":5},"","",{"$nulls":18},"","","","",{"$nulls":30},"","","","",{"$nulls":60},"",{"$f":"IF($A200=\"\",\"\",IF(VLOOKUP($G200,$H$11:$DN$1000,96,FALSE)=\"\",\"No\",IF(LEFT(VLOOKUP($G200,$H$11:$DN$1000,96,FALSE),3)=\"The\",EF200,VLOOKUP(VLOOKUP($G200,$H$11:$DN$1000,96,FALSE),DeclMatrix!$A$2:$F$5,VLOOKUP('Enrollment Form'!$B200,DeclMatrix!$A$8:$B$12,2,FALSE),FALSE))))","v":""},{"$f":"IF($A200=\"\",\"\",IF(VLOOKUP($G200,$H$11:$DN$1000,101,FALSE)=\"\",\"No\",IF(LEFT(VLOOKUP($G200,$H$11:$DN$1000,101,FALSE),3)=\"The\",EG200,VLOOKUP(VLOOKUP($G200,$H$11:$DN$1000,101,FALSE),DeclMatrix!$A$2:$F$5,VLOOKUP('Enrollment Form'!$B200,DeclMatrix!$A$8:$B$12,2,FALSE),FALSE))))","v":""},{"$f":"IF($A200=\"\",\"\",IF(VLOOKUP($G200,$H$11:$DN$1000,106,FALSE)=\"\",\"No\",IF(LEFT(VLOOKUP($G200,$H$11:$DN$1000,106,FALSE),3)=\"The\",EH200,VLOOKUP(VLOOKUP($G200,$H$11:$DN$1000,106,FALSE),DeclMatrix!$A$2:$F$5,VLOOKUP('Enrollment Form'!$B200,DeclMatrix!$A$8:$B$12,2,FALSE),FALSE))))","v":""},{"$f":"IF($A200=\"\",\"\",IF(VLOOKUP($G200,$H$11:$DN$1000,111,FALSE)=\"\",\"No\",IF(LEFT(VLOOKUP($G200,$H$11:$DN$1000,111,FALSE),3)=\"The\",EI200,VLOOKUP(VLOOKUP($G200,$H$11:$DN$1000,111,FALSE),DeclMatrix!$A$2:$F$5,VLOOKUP('Enrollment Form'!$B200,DeclMatrix!$A$8:$B$12,2,FALSE),FALSE))))","v":""},"",null,"","","","","","","","","","","",""]
["",{"$nulls":5},"","",{"$nulls":18},"","","","",{"$nulls":30},"","","","",{"$nulls":60},"",{"$f":"IF($A201=\"\",\"\",IF(VLOOKUP($G201,$H$11:$DN$1000,96,FALSE)=\"\",\"No\",IF(LEFT(VLOOKUP($G201,$H$11:$DN$1000,96,FALSE),3)=\"The\",EF201,VLOOKUP(VLOOKUP($G201,$H$11:$DN$1000,96,FALSE),DeclMatrix!$A$2:$F$5,VLOOKUP('Enrollment Form'!$B201,DeclMatrix!$A$8:$B$12,2,FALSE),FALSE))))","v":""},{"$f":"IF($A201=\"\",\"\",IF(VLOOKUP($G201,$H$11:$DN$1000,101,FALSE)=\"\",\"No\",IF(LEFT(VLOOKUP($G201,$H$11:$DN$1000,101,FALSE),3)=\"The\",EG201,VLOOKUP(VLOOKUP($G201,$H$11:$DN$1000,101,FALSE),DeclMatrix!$A$2:$F$5,VLOOKUP('Enrollment Form'!$B201,DeclMatrix!$A$8:$B$12,2,FALSE),FALSE))))","v":""},{"$f":"IF($A201=\"\",\"\",IF(VLOOKUP($G201,$H$11:$DN$1000,106,FALSE)=\"\",\"No\",IF(LEFT(VLOOKUP($G201,$H$11:$DN$1000,106,FALSE),3)=\"The\",EH201,VLOOKUP(VLOOKUP($G201,$H$11:$DN$1000,106,FALSE),DeclMatrix!$A$2:$F$5,VLOOKUP('Enrollment Form'!$B201,DeclMatrix!$A$8:$B$12,2,FALSE),FALSE))))","v":""},{"$f":"IF($A201=\"\",\"\",IF(VLOOKUP($G201,$H$11:$DN$1000,111,FALSE)=\"\",\"No\",IF(LEFT(VLOOKUP($G201,$H$11:$DN$1000,111,FALSE),3)=\"The\",EI201,VLOOKUP(VLOOKUP($G201,$H$11:$DN$1000,111,FALSE),DeclMatrix!$A$2:$F$5,VLOOKUP('Enrollment Form'!$B201,DeclMatrix!$A$8:$B$12,2,FALSE),FALSE))))","v":""},"",null,"","","","","","","","","","","",""]
["",{"$nulls":5},"","",{"$nulls":18},"","","","",{"$nulls":30},"","","","",{"$nulls":60},"",{"$f":"IF($A202=\"\",\"\",IF(VLOOKUP($G202,$H$11:$DN$1000,96,FALSE)=\"\",\"No\",IF(LEFT(VLOOKUP($G202,$H$11:$DN$1000,96,FALSE),3)=\"The\",EF202,VLOOKUP(VLOOKUP($G202,$H$11:$DN$1000,96,FALSE),DeclMatrix!$A$2:$F$5,VLOOKUP('Enrollment Form'!$B202,DeclMatrix!$A$8:$B$12,2,FALSE),FALSE))))","v":""},{"$f":"IF($A202=\"\",\"\",IF(VLOOKUP($G202,$H$11:$DN$1000,101,FALSE)=\"\",\"No\",IF(LEFT(VLOOKUP($G202,$H$11:$DN$1000,101,FALSE),3)=\"The\",EG202,VLOOKUP(VLOOKUP($G202,$H$11:$DN$1000,101,FALSE),DeclMatrix!$A$2:$F$5,VLOOKUP('Enrollment Form'!$B202,DeclMatrix!$A$8:$B$12,2,FALSE),FALSE))))","v":""},{"$f":"IF($A202=\"\",\"\",IF(VLOOKUP($G202,$H$11:$DN$1000,106,FALSE)=\"\",\"No\",IF(LEFT(VLOOKUP($G202,$H$11:$DN$1000,106,FALSE),3)=\"The\",EH202,VLOOKUP(VLOOKUP($G202,$H$11:$DN$1000,106,FALSE),DeclMatrix!$A$2:$F$5,VLOOKUP('Enrollment Form'!$B202,DeclMatrix!$A$8:$B$12,2,FALSE),FALSE))))","v":""},{"$f":"IF($A202=\"\",\"\",IF(VLOOKUP($G202,$H$11:$DN$1000,111,FALSE)=\"\",\"No\",IF(LEFT(VLOOKUP($G202,$H$11:$DN$1000,111,FALSE),3)=\"The\",EI202,VLOOKUP(VLOOKUP($G202,$H$11:$DN$1000,111,FALSE),DeclMatrix!$A$2:$F$5,VLOOKUP('Enrollment Form'!$B202,DeclMatrix!$A$8:$B$12,2,FALSE),FALSE))))","v":""},"",null,"","","","","","","","","","","",""]
[{"$f":"IF(LEN($B203)>0,$C$2,\"\")","v":""},{"$nulls":5},"","",{"$nulls":18},"","","","",{"$nulls":30},{"$f":"IF(AND($B203<>\"Subscriber\",$BH203=\"Yes\"),VLOOKUP($G203,$H$11:$Y$1000,15,FALSE),\"\")","v":""},{"$f":"IF(AND($B203<>\"Subscriber\",$BH203=\"Yes\"),VLOOKUP($G203,$H$11:$Y$1000,16,FALSE),\"\")","v":""},{"$f":"IF(AND($B203<>\"Subscriber\",$BH203=\"Yes\"),VLOOKUP($G203,$H$11:$Y$1000,17,FALSE),\"\")","v":""},{"$f":"IF(AND($B203<>\"Subscriber\",$BH203=\"Yes\"),VLOOKUP($G203,$H$11:$Y$1000,18,FALSE),\"\")","v":""},{"$nulls":60},{"$f":"IF($A203=\"\",\"\",IF($B203=\"Subscriber\",$AG203,VLOOKUP($G203,$H$11:$AG$1000,26,FALSE)))","v":""},{"$f":"IF($A203=\"\",\"\",IF(VLOOKUP($G203,$H$11:$DN$1000,96,FALSE)=\"\",\"No\",IF(LEFT(VLOOKUP($G203,$H$11:$DN$1000,96,FALSE),3)=\"The\",EF203,VLOOKUP(VLOOKUP($G203,$H$11:$DN$1000,96,FALSE),DeclMatrix!$A$2:$F$5,VLOOKUP('Enrollment Form'!$B203,DeclMatrix!$A$8:$B$12,2,FALSE),FALSE))))","v":""},{"$f":"IF($A203=\"\",\"\",IF(VLOOKUP($G203,$H$11:$DN$1000,101,FALSE)=\"\",\"No\",IF(LEFT(VLOOKUP($G203,$H$11:$DN$1000,101,FALSE),3)=\"The\",EG203,VLOOKUP(VLOOKUP($G203,$H$11:$DN$1000,101,FALSE),DeclMatrix!$A$2:$F$5,VLOOKUP('Enrollment Form'!$B203,DeclMatrix!$A$8:$B$12,2,FALSE),FALSE))))","v":""},{"$f":"IF($A203=\"\",\"\",IF(VLOOKUP($G203,$H$11:$DN$1000,106,FALSE)=\"\",\"No\",IF(LEFT(VLOOKUP($G203,$H$11:$DN$1000,106,FALSE),3)=\"The\",EH203,VLOOKUP(VLOOKUP($G203,$H$11:$DN$1000,106,FALSE),DeclMatrix!$A$2:$F$5,VLOOKUP('Enrollment Form'!$B203,DeclMatrix!$A$8:$B$12,2,FALSE),FALSE))))","v":""},{"$f":"IF($A203=\"\",\"\",IF(VLOOKUP($G203,$H$11:$DN$1000,111,FALSE)=\"\",\"No\",IF(LEFT(VLOOKUP($G203,$H$11:$DN$1000,111,FALSE),3)=\"The\",EI203,VLOOKUP(VLOOKUP($G203,$H$11:$DN$1000,111,FALSE),DeclMatrix!$A$2:$F$5,VLOOKUP('Enrollment Form'!$B203,DeclMatrix!$A$8:$B$12,2,FALSE),FALSE))))","v":""},"",null,{"$f":"$B203&$G203&$J203","v":""},{"$f":"$B203&$G203&$L203","v":""},{"$f":"$B203&$G203&$N203","v":""},{"$f":"$B203&$G203&$O203","v":""},"","","","",{"$f":"IF($A203=\"\",\"\",IF(AND($B203=\"Subscriber\",$I203<>\"Waive\",$I203<>\"\"),\"Yes\",IF(AND($B203<>\"Subscriber\",$BF203=\"Yes\"),VLOOKUP($G203,$H$11:$EM$1000,133,FALSE),IF(AND($C203=\"Enroll\",VLOOKUP($G204,$H$11:$EM$1000,96,FALSE)<>\"\"),VLOOKUP($DV203,$DW$2:$DX$3,2,FALSE),\"No\"))))","v":""},{"$f":"IF($A203=\"\",\"\",IF(AND($B203=\"Subscriber\",$K203<>\"Waive\",$K203<>\"\"),\"Yes\",IF(AND($B203<>\"Subscriber\",$BF203=\"Yes\"),VLOOKUP($G203,$H$11:$EM$1000,134,FALSE),IF(AND($C203=\"Enroll\",VLOOKUP($G204,$H$11:$EM$1000,101,FALSE)<>\"\"),VLOOKUP($DW203,$DW$2:$DX$3,2,FALSE),\"No\"))))","v":""},{"$f":"IF($A203=\"\",\"\",IF(AND($B203=\"Subscriber\",$M203<>\"Waive\",$M203<>\"\"),\"Yes\",IF(AND($B203<>\"Subscriber\",$BF203=\"Yes\"),VLOOKUP($G203,$H$11:$EM$1000,135,FALSE),IF(AND($C203=\"Enroll\",VLOOKUP($G204,$H$11:$EM$1000,106,FALSE)<>\"\"),VLOOKUP($DX203,$DW$2:$DX$3,2,FALSE),\"No\"))))","v":""},{"$f":"IF($A203=\"\",\"\",IF(AND($B203=\"Subscriber\",$O203<>\"Waive\",$O203<>\"\"),\"Yes\",IF(AND($B203<>\"Subscriber\",$BF203=\"Yes\"),VLOOKUP($G203,$H$11:$EM$1000,136,FALSE),IF(AND($C203=\"Enroll\",VLOOKUP($G204,$H$11:$EM$1000,111,FALSE)<>\"\"),VLOOKUP($DY203,$DW$2:$DX$3,2,FALSE),\"No\"))))","v":""}]
["",{"$nulls":5},{"$f":"IF(A204=\"\",\"\",IF(AND(B204<>\"Subscriber\",B204<>\"\"),G203,\"\"))","v":""},{"$f":"IF(AND(B204=\"Subscriber\",G204<>\"\"),G204,\"\")","v":""},{"$nulls":18},{"$f":"IF(AND($B204=\"Subscriber\",$Z204=\"Yes\"),V204,\"\")","v":""},{"$f":"IF(AND($B204=\"Subscriber\",$Z204=\"Yes\"),W204,\"\")","v":""},{"$f":"IF(AND($B204=\"Subscriber\",$Z204=\"Yes\"),X204,\"\")","v":""},{"$f":"IF(AND($B204=\"Subscriber\",$Z204=\"Yes\"),Y204,\"\")","v":""},{"$nulls":30},"","","","",{"$nulls":60},"",{"$f":"IF($A204=\"\",\"\",IF(VLOOKUP($G204,$H$11:$DN$1000,96,FALSE)=\"\",\"No\",IF(LEFT(VLOOKUP($G204,$H$11:$DN$1000,96,FALSE),3)=\"The\",EF204,VLOOKUP(VLOOKUP($G204,$H$11:$DN$1000,96,FALSE),DeclMatrix!$A$2:$F$5,VLOOKUP('Enrollment Form'!$B204,DeclMatrix!$A$8:$B$12,2,FALSE),FALSE))))","v":""},{"$f":"IF($A204=\"\",\"\",IF(VLOOKUP($G204,$H$11:$DN$1000,101,FALSE)=\"\",\"No\",IF(LEFT(VLOOKUP($G204,$H$11:$DN$1000,101,FALSE),3)=\"The\",EG204,VLOOKUP(VLOOKUP($G204,$H$11:$DN$1000,101,FALSE),DeclMatrix!$A$2:$F$5,VLOOKUP('Enrollment Form'!$B204,DeclMatrix!$A$8:$B$12,2,FALSE),FALSE))))","v":""},{"$f":"IF($A204=\"\",\"\",IF(VLOOKUP($G204,$H$11:$DN$1000,106,FALSE)=\"\",\"No\",IF(LEFT(VLOOKUP($G204,$H$11:$DN$1000,106,FALSE),3)=\"The\",EH204,VLOOKUP(VLOOKUP($G204,$H$11:$DN$1000,106,FALSE),DeclMatrix!$A$2:$F$5,VLOOKUP('Enrollment Form'!$B204,DeclMatrix!$A$8:$B$12,2,FALSE),FALSE))))","v":""},{"$f":"IF($A204=\"\",\"\",IF(VLOOKUP($G204,$H$11:$DN$1000,111,FALSE)=\"\",\"No\",IF(LEFT(VLOOKUP($G204,$H$11:$DN$1000,111,FALSE),3)=\"The\",EI204,VLOOKUP(VLOOKUP($G204,$H$11:$DN$1000,111,FALSE),DeclMatrix!$A$2:$F$5,VLOOKUP('Enrollment Form'!$B204,DeclMatrix!$A$8:$B$12,2,FALSE),FALSE))))","v":""},{"$f":"IF(A204<>\"\",\"1X\",\"\")","v":""},null,"","","","",{"$f":"IF($A204=\"\",\"\",IF($B204=\"Subscriber\",\"No\",IF(OR($CY204=\"\",$CY204=\"No\"),\"No\",\"Yes\")))","v":""},{"$f":"IF($A204=\"\",\"\",IF($B204=\"Subscriber\",\"No\",IF(OR($DD204=\"\",$DD204=\"No\"),\"No\",\"Yes\")))","v":""},{"$f":"IF($A204=\"\",\"\",IF($B204=\"Subscriber\",\"No\",IF(OR($DI204=\"\",$DI204=\"No\"),\"No\",\"Yes\")))","v":""},{"$f":"IF($A204=\"\",\"\",IF($B204=\"Subscriber\",\"No\",IF(OR($DN204=\"\",$DN204=\"No\"),\"No\",\"Yes\")))","v":""},"","","",""]
["",{"$nulls":5},"","",{"$nulls":18},"","","","",{"$nulls":30},"","","","",{"$nulls":60},"",{"$f":"IF($A205=\"\",\"\",IF(VLOOKUP($G205,$H$11:$DN$1000,96,FALSE)=\"\",\"No\",IF(LEFT(VLOOKUP($G205,$H$11:$DN$1000,96,FALSE),3)=\"The\",EF205,VLOOKUP(VLOOKUP($G205,$H$11:$DN$1000,96,FALSE),DeclMatrix!$A$2:$F$5,VLOOKUP('Enrollment Form'!$B205,DeclMatrix!$A$8:$B$12,2,FALSE),FALSE))))","v":""},{"$f":"IF($A205=\"\",\"\",IF(VLOOKUP($G205,$H$11:$DN$1000,101,FALSE)=\"\",\"No\",IF(LEFT(VLOOKUP($G205,$H$11:$DN$1000,101,FALSE),3)=\"The\",EG205,VLOOKUP(VLOOKUP($G205,$H$11:$DN$1000,101,FALSE),DeclMatrix!$A$2:$F$5,VLOOKUP('Enrollment Form'!$B205,DeclMatrix!$A$8:$B$12,2,FALSE),FALSE))))","v":""},{"$f":"IF($A205=\"\",\"\",IF(VLOOKUP($G205,$H$11:$DN$1000,106,FALSE)=\"\",\"No\",IF(LEFT(VLOOKUP($G205,$H$11:$DN$1000,106,FALSE),3)=\"The\",EH205,VLOOKUP(VLOOKUP($G205,$H$11:$DN$1000,106,FALSE),DeclMatrix!$A$2:$F$5,VLOOKUP('Enrollment Form'!$B205,DeclMatrix!$A$8:$B$12,2,FALSE),FALSE))))","v":""},{"$f":"IF($A205=\"\",\"\",IF(VLOOKUP($G205,$H$11:$DN$1000,111,FALSE)=\"\",\"No\",IF(LEFT(VLOOKUP($G205,$H$11:$DN$1000,111,FALSE),3)=\"The\",EI205,VLOOKUP(VLOOKUP($G205,$H$11:$DN$1000,111,FALSE),DeclMatrix!$A$2:$F$5,VLOOKUP('Enrollment Form'!$B205,DeclMatrix!$A$8:$B$12,2,FALSE),FALSE))))","v":""},"",null,"","","","","","","","","","","",""]
["",{"$nulls":5},"","",{"$nulls":18},"","","","",{"$nulls":30},"","","","",{"$nulls":60},"",{"$f":"IF($A206=\"\",\"\",IF(VLOOKUP($G206,$H$11:$DN$1000,96,FALSE)=\"\",\"No\",IF(LEFT(VLOOKUP($G206,$H$11:$DN$1000,96,FALSE),3)=\"The\",EF206,VLOOKUP(VLOOKUP($G206,$H$11:$DN$1000,96,FALSE),DeclMatrix!$A$2:$F$5,VLOOKUP('Enrollment Form'!$B206,DeclMatrix!$A$8:$B$12,2,FALSE),FALSE))))","v":""},{"$f":"IF($A206=\"\",\"\",IF(VLOOKUP($G206,$H$11:$DN$1000,101,FALSE)=\"\",\"No\",IF(LEFT(VLOOKUP($G206,$H$11:$DN$1000,101,FALSE),3)=\"The\",EG206,VLOOKUP(VLOOKUP($G206,$H$11:$DN$1000,101,FALSE),DeclMatrix!$A$2:$F$5,VLOOKUP('Enrollment Form'!$B206,DeclMatrix!$A$8:$B$12,2,FALSE),FALSE))))","v":""},{"$f":"IF($A206=\"\",\"\",IF(VLOOKUP($G206,$H$11:$DN$1000,106,FALSE)=\"\",\"No\",IF(LEFT(VLOOKUP($G206,$H$11:$DN$1000,106,FALSE),3)=\"The\",EH206,VLOOKUP(VLOOKUP($G206,$H$11:$DN$1000,106,FALSE),DeclMatrix!$A$2:$F$5,VLOOKUP('Enrollment Form'!$B206,DeclMatrix!$A$8:$B$12,2,FALSE),FALSE))))","v":""},{"$f":"IF($A206=\"\",\"\",IF(VLOOKUP($G206,$H$11:$DN$1000,111,FALSE)=\"\",\"No\",IF(LEFT(VLOOKUP($G206,$H$11:$DN$1000,111,FALSE),3)=\"The\",EI206,VLOOKUP(VLOOKUP($G206,$H$11:$DN$1000,111,FALSE),DeclMatrix!$A$2:$F$5,VLOOKUP('Enrollment Form'!$B206,DeclMatrix!$A$8:$B$12,2,FALSE),FALSE))))","v":""},"",null,"","","","","","","","","","","",""]
["",{"$nulls":5},"","",{"$nulls":18},"","","","",{"$nulls":30},"","","","",{"$nulls":60},"",{"$f":"IF($A207=\"\",\"\",IF(VLOOKUP($G207,$H$11:$DN$1000,96,FALSE)=\"\",\"No\",IF(LEFT(VLOOKUP($G207,$H$11:$DN$1000,96,FALSE),3)=\"The\",EF207,VLOOKUP(VLOOKUP($G207,$H$11:$DN$1000,96,FALSE),DeclMatrix!$A$2:$F$5,VLOOKUP('Enrollment Form'!$B207,DeclMatrix!$A$8:$B$12,2,FALSE),FALSE))))","v":""},{"$f":"IF($A207=\"\",\"\",IF(VLOOKUP($G207,$H$11:$DN$1000,101,FALSE)=\"\",\"No\",IF(LEFT(VLOOKUP($G207,$H$11:$DN$1000,101,FALSE),3)=\"The\",EG207,VLOOKUP(VLOOKUP($G207,$H$11:$DN$1000,101,FALSE),DeclMatrix!$A$2:$F$5,VLOOKUP('Enrollment Form'!$B207,DeclMatrix!$A$8:$B$12,2,FALSE),FALSE))))","v":""},{"$f":"IF($A207=\"\",\"\",IF(VLOOKUP($G207,$H$11:$DN$1000,106,FALSE)=\"\",\"No\",IF(LEFT(VLOOKUP($G207,$H$11:$DN$1000,106,FALSE),3)=\"The\",EH207,VLOOKUP(VLOOKUP($G207,$H$11:$DN$1000,106,FALSE),DeclMatrix!$A$2:$F$5,VLOOKUP('Enrollment Form'!$B207,DeclMatrix!$A$8:$B$12,2,FALSE),FALSE))))","v":""},{"$f":"IF($A207=\"\",\"\",IF(VLOOKUP($G207,$H$11:$DN$1000,111,FALSE)=\"\",\"No\",IF(LEFT(VLOOKUP($G207,$H$11:$DN$1000,111,FALSE),3)=\"The\",EI207,VLOOKUP(VLOOKUP($G207,$H$11:$DN$1000,111,FALSE),DeclMatrix!$A$2:$F$5,VLOOKUP('Enrollment Form'!$B207,DeclMatrix!$A$8:$B$12,2,FALSE),FALSE))))","v":""},"",null,"","","","","","","","","","","",""]
["",{"$nulls":5},"","",{"$nulls":18},"","","","",{"$nulls":30},"","","","",{"$nulls":60},"",{"$f":"IF($A208=\"\",\"\",IF(VLOOKUP($G208,$H$11:$DN$1000,96,FALSE)=\"\",\"No\",IF(LEFT(VLOOKUP($G208,$H$11:$DN$1000,96,FALSE),3)=\"The\",EF208,VLOOKUP(VLOOKUP($G208,$H$11:$DN$1000,96,FALSE),DeclMatrix!$A$2:$F$5,VLOOKUP('Enrollment Form'!$B208,DeclMatrix!$A$8:$B$12,2,FALSE),FALSE))))","v":""},{"$f":"IF($A208=\"\",\"\",IF(VLOOKUP($G208,$H$11:$DN$1000,101,FALSE)=\"\",\"No\",IF(LEFT(VLOOKUP($G208,$H$11:$DN$1000,101,FALSE),3)=\"The\",EG208,VLOOKUP(VLOOKUP($G208,$H$11:$DN$1000,101,FALSE),DeclMatrix!$A$2:$F$5,VLOOKUP('Enrollment Form'!$B208,DeclMatrix!$A$8:$B$12,2,FALSE),FALSE))))","v":""},{"$f":"IF($A208=\"\",\"\",IF(VLOOKUP($G208,$H$11:$DN$1000,106,FALSE)=\"\",\"No\",IF(LEFT(VLOOKUP($G208,$H$11:$DN$1000,106,FALSE),3)=\"The\",EH208,VLOOKUP(VLOOKUP($G208,$H$11:$DN$1000,106,FALSE),DeclMatrix!$A$2:$F$5,VLOOKUP('Enrollment Form'!$B208,DeclMatrix!$A$8:$B$12,2,FALSE),FALSE))))","v":""},{"$f":"IF($A208=\"\",\"\",IF(VLOOKUP($G208,$H$11:$DN$1000,111,FALSE)=\"\",\"No\",IF(LEFT(VLOOKUP($G208,$H$11:$DN$1000,111,FALSE),3)=\"The\",EI208,VLOOKUP(VLOOKUP($G208,$H$11:$DN$1000,111,FALSE),DeclMatrix!$A$2:$F$5,VLOOKUP('Enrollment Form'!$B208,DeclMatrix!$A$8:$B$12,2,FALSE),FALSE))))","v":""},"",null,"","","","","","","","","","","",""]
["",{"$nulls":5},"","",{"$nulls":18},"","","","",{"$nulls":30},"","","","",{"$nulls":60},"",{"$f":"IF($A209=\"\",\"\",IF(VLOOKUP($G209,$H$11:$DN$1000,96,FALSE)=\"\",\"No\",IF(LEFT(VLOOKUP($G209,$H$11:$DN$1000,96,FALSE),3)=\"The\",EF209,VLOOKUP(VLOOKUP($G209,$H$11:$DN$1000,96,FALSE),DeclMatrix!$A$2:$F$5,VLOOKUP('Enrollment Form'!$B209,DeclMatrix!$A$8:$B$12,2,FALSE),FALSE))))","v":""},{"$f":"IF($A209=\"\",\"\",IF(VLOOKUP($G209,$H$11:$DN$1000,101,FALSE)=\"\",\"No\",IF(LEFT(VLOOKUP($G209,$H$11:$DN$1000,101,FALSE),3)=\"The\",EG209,VLOOKUP(VLOOKUP($G209,$H$11:$DN$1000,101,FALSE),DeclMatrix!$A$2:$F$5,VLOOKUP('Enrollment Form'!$B209,DeclMatrix!$A$8:$B$12,2,FALSE),FALSE))))","v":""},{"$f":"IF($A209=\"\",\"\",IF(VLOOKUP($G209,$H$11:$DN$1000,106,FALSE)=\"\",\"No\",IF(LEFT(VLOOKUP($G209,$H$11:$DN$1000,106,FALSE),3)=\"The\",EH209,VLOOKUP(VLOOKUP($G209,$H$11:$DN$1000,106,FALSE),DeclMatrix!$A$2:$F$5,VLOOKUP('Enrollment Form'!$B209,DeclMatrix!$A$8:$B$12,2,FALSE),FALSE))))","v":""},{"$f":"IF($A209=\"\",\"\",IF(VLOOKUP($G209,$H$11:$DN$1000,111,FALSE)=\"\",\"No\",IF(LEFT(VLOOKUP($G209,$H$11:$DN$1000,111,FALSE),3)=\"The\",EI209,VLOOKUP(VLOOKUP($G209,$H$11:$DN$1000,111,FALSE),DeclMatrix!$A$2:$F$5,VLOOKUP('Enrollment Form'!$B209,DeclMatrix!$A$8:$B$12,2,FALSE),FALSE))))","v":""},"",null,"","","","","","","","","","","",""]
["",{"$nulls":5},"","",{"$nulls":18},"","","","",{"$nulls":30},"","","","",{"$nulls":60},"",{"$f":"IF($A210=\"\",\"\",IF(VLOOKUP($G210,$H$11:$DN$1000,96,FALSE)=\"\",\"No\",IF(LEFT(VLOOKUP($G210,$H$11:$DN$1000,96,FALSE),3)=\"The\",EF210,VLOOKUP(VLOOKUP($G210,$H$11:$DN$1000,96,FALSE),DeclMatrix!$A$2:$F$5,VLOOKUP('Enrollment Form'!$B210,DeclMatrix!$A$8:$B$12,2,FALSE),FALSE))))","v":""},{"$f":"IF($A210=\"\",\"\",IF(VLOOKUP($G210,$H$11:$DN$1000,101,FALSE)=\"\",\"No\",IF(LEFT(VLOOKUP($G210,$H$11:$DN$1000,101,FALSE),3)=\"The\",EG210,VLOOKUP(VLOOKUP($G210,$H$11:$DN$1000,101,FALSE),DeclMatrix!$A$2:$F$5,VLOOKUP('Enrollment Form'!$B210,DeclMatrix!$A$8:$B$12,2,FALSE),FALSE))))","v":""},{"$f":"IF($A210=\"\",\"\",IF(VLOOKUP($G210,$H$11:$DN$1000,106,FALSE)=\"\",\"No\",IF(LEFT(VLOOKUP($G210,$H$11:$DN$1000,106,FALSE),3)=\"The\",EH210,VLOOKUP(VLOOKUP($G210,$H$11:$DN$1000,106,FALSE),DeclMatrix!$A$2:$F$5,VLOOKUP('Enrollment Form'!$B210,DeclMatrix!$A$8:$B$12,2,FALSE),FALSE))))","v":""},{"$f":"IF($A210=\"\",\"\",IF(VLOOKUP($G210,$H$11:$DN$1000,111,FALSE)=\"\",\"No\",IF(LEFT(VLOOKUP($G210,$H$11:$DN$1000,111,FALSE),3)=\"The\",EI210,VLOOKUP(VLOOKUP($G210,$H$11:$DN$1000,111,FALSE),DeclMatrix!$A$2:$F$5,VLOOKUP('Enrollment Form'!$B210,DeclMatrix!$A$8:$B$12,2,FALSE),FALSE))))","v":""},"",null,"","","","","","","","","","","",""]
["",{"$nulls":5},"","",{"$nulls":18},"","","","",{"$nulls":30},"","","","",{"$nulls":60},"",{"$f":"IF($A211=\"\",\"\",IF(VLOOKUP($G211,$H$11:$DN$1000,96,FALSE)=\"\",\"No\",IF(LEFT(VLOOKUP($G211,$H$11:$DN$1000,96,FALSE),3)=\"The\",EF211,VLOOKUP(VLOOKUP($G211,$H$11:$DN$1000,96,FALSE),DeclMatrix!$A$2:$F$5,VLOOKUP('Enrollment Form'!$B211,DeclMatrix!$A$8:$B$12,2,FALSE),FALSE))))","v":""},{"$f":"IF($A211=\"\",\"\",IF(VLOOKUP($G211,$H$11:$DN$1000,101,FALSE)=\"\",\"No\",IF(LEFT(VLOOKUP($G211,$H$11:$DN$1000,101,FALSE),3)=\"The\",EG211,VLOOKUP(VLOOKUP($G211,$H$11:$DN$1000,101,FALSE),DeclMatrix!$A$2:$F$5,VLOOKUP('Enrollment Form'!$B211,DeclMatrix!$A$8:$B$12,2,FALSE),FALSE))))","v":""},{"$f":"IF($A211=\"\",\"\",IF(VLOOKUP($G211,$H$11:$DN$1000,106,FALSE)=\"\",\"No\",IF(LEFT(VLOOKUP($G211,$H$11:$DN$1000,106,FALSE),3)=\"The\",EH211,VLOOKUP(VLOOKUP($G211,$H$11:$DN$1000,106,FALSE),DeclMatrix!$A$2:$F$5,VLOOKUP('Enrollment Form'!$B211,DeclMatrix!$A$8:$B$12,2,FALSE),FALSE))))","v":""},{"$f":"IF($A211=\"\",\"\",IF(VLOOKUP($G211,$H$11:$DN$1000,111,FALSE)=\"\",\"No\",IF(LEFT(VLOOKUP($G211,$H$11:$DN$1000,111,FALSE),3)=\"The\",EI211,VLOOKUP(VLOOKUP($G211,$H$11:$DN$1000,111,FALSE),DeclMatrix!$A$2:$F$5,VLOOKUP('Enrollment Form'!$B211,DeclMatrix!$A$8:$B$12,2,FALSE),FALSE))))","v":""},"",null,"","","","","","","","","","","",""]
["",{"$nulls":5},"","",{"$nulls":18},"","","","",{"$nulls":30},"","","","",{"$nulls":60},"",{"$f":"IF($A212=\"\",\"\",IF(VLOOKUP($G212,$H$11:$DN$1000,96,FALSE)=\"\",\"No\",IF(LEFT(VLOOKUP($G212,$H$11:$DN$1000,96,FALSE),3)=\"The\",EF212,VLOOKUP(VLOOKUP($G212,$H$11:$DN$1000,96,FALSE),DeclMatrix!$A$2:$F$5,VLOOKUP('Enrollment Form'!$B212,DeclMatrix!$A$8:$B$12,2,FALSE),FALSE))))","v":""},{"$f":"IF($A212=\"\",\"\",IF(VLOOKUP($G212,$H$11:$DN$1000,101,FALSE)=\"\",\"No\",IF(LEFT(VLOOKUP($G212,$H$11:$DN$1000,101,FALSE),3)=\"The\",EG212,VLOOKUP(VLOOKUP($G212,$H$11:$DN$1000,101,FALSE),DeclMatrix!$A$2:$F$5,VLOOKUP('Enrollment Form'!$B212,DeclMatrix!$A$8:$B$12,2,FALSE),FALSE))))","v":""},{"$f":"IF($A212=\"\",\"\",IF(VLOOKUP($G212,$H$11:$DN$1000,106,FALSE)=\"\",\"No\",IF(LEFT(VLOOKUP($G212,$H$11:$DN$1000,106,FALSE),3)=\"The\",EH212,VLOOKUP(VLOOKUP($G212,$H$11:$DN$1000,106,FALSE),DeclMatrix!$A$2:$F$5,VLOOKUP('Enrollment Form'!$B212,DeclMatrix!$A$8:$B$12,2,FALSE),FALSE))))","v":""},{"$f":"IF($A212=\"\",\"\",IF(VLOOKUP($G212,$H$11:$DN$1000,111,FALSE)=\"\",\"No\",IF(LEFT(VLOOKUP($G212,$H$11:$DN$1000,111,FALSE),3)=\"The\",EI212,VLOOKUP(VLOOKUP($G212,$H$11:$DN$1000,111,FALSE),DeclMatrix!$A$2:$F$5,VLOOKUP('Enrollment Form'!$B212,DeclMatrix!$A$8:$B$12,2,FALSE),FALSE))))","v":""},"",null,"","","","","","","","","","","",""]
["",{"$nulls":5},"","",{"$nulls":18},"","","","",{"$nulls":30},"","","","",{"$nulls":60},"",{"$f":"IF($A213=\"\",\"\",IF(VLOOKUP($G213,$H$11:$DN$1000,96,FALSE)=\"\",\"No\",IF(LEFT(VLOOKUP($G213,$H$11:$DN$1000,96,FALSE),3)=\"The\",EF213,VLOOKUP(VLOOKUP($G213,$H$11:$DN$1000,96,FALSE),DeclMatrix!$A$2:$F$5,VLOOKUP('Enrollment Form'!$B213,DeclMatrix!$A$8:$B$12,2,FALSE),FALSE))))","v":""},{"$f":"IF($A213=\"\",\"\",IF(VLOOKUP($G213,$H$11:$DN$1000,101,FALSE)=\"\",\"No\",IF(LEFT(VLOOKUP($G213,$H$11:$DN$1000,101,FALSE),3)=\"The\",EG213,VLOOKUP(VLOOKUP($G213,$H$11:$DN$1000,101,FALSE),DeclMatrix!$A$2:$F$5,VLOOKUP('Enrollment Form'!$B213,DeclMatrix!$A$8:$B$12,2,FALSE),FALSE))))","v":""},{"$f":"IF($A213=\"\",\"\",IF(VLOOKUP($G213,$H$11:$DN$1000,106,FALSE)=\"\",\"No\",IF(LEFT(VLOOKUP($G213,$H$11:$DN$1000,106,FALSE),3)=\"The\",EH213,VLOOKUP(VLOOKUP($G213,$H$11:$DN$1000,106,FALSE),DeclMatrix!$A$2:$F$5,VLOOKUP('Enrollment Form'!$B213,DeclMatrix!$A$8:$B$12,2,FALSE),FALSE))))","v":""},{"$f":"IF($A213=\"\",\"\",IF(VLOOKUP($G213,$H$11:$DN$1000,111,FALSE)=\"\",\"No\",IF(LEFT(VLOOKUP($G213,$H$11:$DN$1000,111,FALSE),3)=\"The\",EI213,VLOOKUP(VLOOKUP($G213,$H$11:$DN$1000,111,FALSE),DeclMatrix!$A$2:$F$5,VLOOKUP('Enrollment Form'!$B213,DeclMatrix!$A$8:$B$12,2,FALSE),FALSE))))","v":""},"",null,"","","","","","","","","","","",""]
["",{"$nulls":5},"","",{"$nulls":18},"","","","",{"$nulls":30},"","","","",{"$nulls":60},"",{"$f":"IF($A214=\"\",\"\",IF(VLOOKUP($G214,$H$11:$DN$1000,96,FALSE)=\"\",\"No\",IF(LEFT(VLOOKUP($G214,$H$11:$DN$1000,96,FALSE),3)=\"The\",EF214,VLOOKUP(VLOOKUP($G214,$H$11:$DN$1000,96,FALSE),DeclMatrix!$A$2:$F$5,VLOOKUP('Enrollment Form'!$B214,DeclMatrix!$A$8:$B$12,2,FALSE),FALSE))))","v":""},{"$f":"IF($A214=\"\",\"\",IF(VLOOKUP($G214,$H$11:$DN$1000,101,FALSE)=\"\",\"No\",IF(LEFT(VLOOKUP($G214,$H$11:$DN$1000,101,FALSE),3)=\"The\",EG214,VLOOKUP(VLOOKUP($G214,$H$11:$DN$1000,101,FALSE),DeclMatrix!$A$2:$F$5,VLOOKUP('Enrollment Form'!$B214,DeclMatrix!$A$8:$B$12,2,FALSE),FALSE))))","v":""},{"$f":"IF($A214=\"\",\"\",IF(VLOOKUP($G214,$H$11:$DN$1000,106,FALSE)=\"\",\"No\",IF(LEFT(VLOOKUP($G214,$H$11:$DN$1000,106,FALSE),3)=\"The\",EH214,VLOOKUP(VLOOKUP($G214,$H$11:$DN$1000,106,FALSE),DeclMatrix!$A$2:$F$5,VLOOKUP('Enrollment Form'!$B214,DeclMatrix!$A$8:$B$12,2,FALSE),FALSE))))","v":""},{"$f":"IF($A214=\"\",\"\",IF(VLOOKUP($G214,$H$11:$DN$1000,111,FALSE)=\"\",\"No\",IF(LEFT(VLOOKUP($G214,$H$11:$DN$1000,111,FALSE),3)=\"The\",EI214,VLOOKUP(VLOOKUP($G214,$H$11:$DN$1000,111,FALSE),DeclMatrix!$A$2:$F$5,VLOOKUP('Enrollment Form'!$B214,DeclMatrix!$A$8:$B$12,2,FALSE),FALSE))))","v":""},"",null,"","","","","","","","","","","",""]
["",{"$nulls":5},"","",{"$nulls":18},"","","","",{"$nulls":30},"","","","",{"$nulls":60},"",{"$f":"IF($A215=\"\",\"\",IF(VLOOKUP($G215,$H$11:$DN$1000,96,FALSE)=\"\",\"No\",IF(LEFT(VLOOKUP($G215,$H$11:$DN$1000,96,FALSE),3)=\"The\",EF215,VLOOKUP(VLOOKUP($G215,$H$11:$DN$1000,96,FALSE),DeclMatrix!$A$2:$F$5,VLOOKUP('Enrollment Form'!$B215,DeclMatrix!$A$8:$B$12,2,FALSE),FALSE))))","v":""},{"$f":"IF($A215=\"\",\"\",IF(VLOOKUP($G215,$H$11:$DN$1000,101,FALSE)=\"\",\"No\",IF(LEFT(VLOOKUP($G215,$H$11:$DN$1000,101,FALSE),3)=\"The\",EG215,VLOOKUP(VLOOKUP($G215,$H$11:$DN$1000,101,FALSE),DeclMatrix!$A$2:$F$5,VLOOKUP('Enrollment Form'!$B215,DeclMatrix!$A$8:$B$12,2,FALSE),FALSE))))","v":""},{"$f":"IF($A215=\"\",\"\",IF(VLOOKUP($G215,$H$11:$DN$1000,106,FALSE)=\"\",\"No\",IF(LEFT(VLOOKUP($G215,$H$11:$DN$1000,106,FALSE),3)=\"The\",EH215,VLOOKUP(VLOOKUP($G215,$H$11:$DN$1000,106,FALSE),DeclMatrix!$A$2:$F$5,VLOOKUP('Enrollment Form'!$B215,DeclMatrix!$A$8:$B$12,2,FALSE),FALSE))))","v":""},{"$f":"IF($A215=\"\",\"\",IF(VLOOKUP($G215,$H$11:$DN$1000,111,FALSE)=\"\",\"No\",IF(LEFT(VLOOKUP($G215,$H$11:$DN$1000,111,FALSE),3)=\"The\",EI215,VLOOKUP(VLOOKUP($G215,$H$11:$DN$1000,111,FALSE),DeclMatrix!$A$2:$F$5,VLOOKUP('Enrollment Form'!$B215,DeclMatrix!$A$8:$B$12,2,FALSE),FALSE))))","v":""},"",null,"","","","","","","","","","","",""]
["",{"$nulls":5},"","",{"$nulls":18},"","","","",{"$nulls":30},"","","","",{"$nulls":60},"",{"$f":"IF($A216=\"\",\"\",IF(VLOOKUP($G216,$H$11:$DN$1000,96,FALSE)=\"\",\"No\",IF(LEFT(VLOOKUP($G216,$H$11:$DN$1000,96,FALSE),3)=\"The\",EF216,VLOOKUP(VLOOKUP($G216,$H$11:$DN$1000,96,FALSE),DeclMatrix!$A$2:$F$5,VLOOKUP('Enrollment Form'!$B216,DeclMatrix!$A$8:$B$12,2,FALSE),FALSE))))","v":""},{"$f":"IF($A216=\"\",\"\",IF(VLOOKUP($G216,$H$11:$DN$1000,101,FALSE)=\"\",\"No\",IF(LEFT(VLOOKUP($G216,$H$11:$DN$1000,101,FALSE),3)=\"The\",EG216,VLOOKUP(VLOOKUP($G216,$H$11:$DN$1000,101,FALSE),DeclMatrix!$A$2:$F$5,VLOOKUP('Enrollment Form'!$B216,DeclMatrix!$A$8:$B$12,2,FALSE),FALSE))))","v":""},{"$f":"IF($A216=\"\",\"\",IF(VLOOKUP($G216,$H$11:$DN$1000,106,FALSE)=\"\",\"No\",IF(LEFT(VLOOKUP($G216,$H$11:$DN$1000,106,FALSE),3)=\"The\",EH216,VLOOKUP(VLOOKUP($G216,$H$11:$DN$1000,106,FALSE),DeclMatrix!$A$2:$F$5,VLOOKUP('Enrollment Form'!$B216,DeclMatrix!$A$8:$B$12,2,FALSE),FALSE))))","v":""},{"$f":"IF($A216=\"\",\"\",IF(VLOOKUP($G216,$H$11:$DN$1000,111,FALSE)=\"\",\"No\",IF(LEFT(VLOOKUP($G216,$H$11:$DN$1000,111,FALSE),3)=\"The\",EI216,VLOOKUP(VLOOKUP($G216,$H$11:$DN$1000,111,FALSE),DeclMatrix!$A$2:$F$5,VLOOKUP('Enrollment Form'!$B216,DeclMatrix!$A$8:$B$12,2,FALSE),FALSE))))","v":""},"",null,"","","","","","","","","","","",""]
["",{"$nulls":5},"","",{"$nulls":18},"","","","",{"$nulls":30},"","","","",{"$nulls":60},"",{"$f":"IF($A217=\"\",\"\",IF(VLOOKUP($G217,$H$11:$DN$1000,96,FALSE)=\"\",\"No\",IF(LEFT(VLOOKUP($G217,$H$11:$DN$1000,96,FALSE),3)=\"The\",EF217,VLOOKUP(VLOOKUP($G217,$H$11:$DN$1000,96,FALSE),DeclMatrix!$A$2:$F$5,VLOOKUP('Enrollment Form'!$B217,DeclMatrix!$A$8:$B$12,2,FALSE),FALSE))))","v":""},{"$f":"IF($A217=\"\",\"\",IF(VLOOKUP($G217,$H$11:$DN$1000,101,FALSE)=\"\",\"No\",IF(LEFT(VLOOKUP($G217,$H$11:$DN$1000,101,FALSE),3)=\"The\",EG217,VLOOKUP(VLOOKUP($G217,$H$11:$DN$1000,101,FALSE),DeclMatrix!$A$2:$F$5,VLOOKUP('Enrollment Form'!$B217,DeclMatrix!$A$8:$B$12,2,FALSE),FALSE))))","v":""},{"$f":"IF($A217=\"\",\"\",IF(VLOOKUP($G217,$H$11:$DN$1000,106,FALSE)=\"\",\"No\",IF(LEFT(VLOOKUP($G217,$H$11:$DN$1000,106,FALSE),3)=\"The\",EH217,VLOOKUP(VLOOKUP($G217,$H$11:$DN$1000,106,FALSE),DeclMatrix!$A$2:$F$5,VLOOKUP('Enrollment Form'!$B217,DeclMatrix!$A$8:$B$12,2,FALSE),FALSE))))","v":""},{"$f":"IF($A217=\"\",\"\",IF(VLOOKUP($G217,$H$11:$DN$1000,111,FALSE)=\"\",\"No\",IF(LEFT(VLOOKUP($G217,$H$11:$DN$1000,111,FALSE),3)=\"The\",EI217,VLOOKUP(VLOOKUP($G217,$H$11:$DN$1000,111,FALSE),DeclMatrix!$A$2:$F$5,VLOOKUP('Enrollment Form'!$B217,DeclMatrix!$A$8:$B$12,2,FALSE),FALSE))))","v":""},"",null,"","","","","","","","","","","",""]
["",{"$nulls":5},"","",{"$nulls":18},"","","","",{"$nulls":30},"","","","",{"$nulls":60},"",{"$f":"IF($A218=\"\",\"\",IF(VLOOKUP($G218,$H$11:$DN$1000,96,FALSE)=\"\",\"No\",IF(LEFT(VLOOKUP($G218,$H$11:$DN$1000,96,FALSE),3)=\"The\",EF218,VLOOKUP(VLOOKUP($G218,$H$11:$DN$1000,96,FALSE),DeclMatrix!$A$2:$F$5,VLOOKUP('Enrollment Form'!$B218,DeclMatrix!$A$8:$B$12,2,FALSE),FALSE))))","v":""},{"$f":"IF($A218=\"\",\"\",IF(VLOOKUP($G218,$H$11:$DN$1000,101,FALSE)=\"\",\"No\",IF(LEFT(VLOOKUP($G218,$H$11:$DN$1000,101,FALSE),3)=\"The\",EG218,VLOOKUP(VLOOKUP($G218,$H$11:$DN$1000,101,FALSE),DeclMatrix!$A$2:$F$5,VLOOKUP('Enrollment Form'!$B218,DeclMatrix!$A$8:$B$12,2,FALSE),FALSE))))","v":""},{"$f":"IF($A218=\"\",\"\",IF(VLOOKUP($G218,$H$11:$DN$1000,106,FALSE)=\"\",\"No\",IF(LEFT(VLOOKUP($G218,$H$11:$DN$1000,106,FALSE),3)=\"The\",EH218,VLOOKUP(VLOOKUP($G218,$H$11:$DN$1000,106,FALSE),DeclMatrix!$A$2:$F$5,VLOOKUP('Enrollment Form'!$B218,DeclMatrix!$A$8:$B$12,2,FALSE),FALSE))))","v":""},{"$f":"IF($A218=\"\",\"\",IF(VLOOKUP($G218,$H$11:$DN$1000,111,FALSE)=\"\",\"No\",IF(LEFT(VLOOKUP($G218,$H$11:$DN$1000,111,FALSE),3)=\"The\",EI218,VLOOKUP(VLOOKUP($G218,$H$11:$DN$1000,111,FALSE),DeclMatrix!$A$2:$F$5,VLOOKUP('Enrollment Form'!$B218,DeclMatrix!$A$8:$B$12,2,FALSE),FALSE))))","v":""},"",null,"","","","","","","","","","","",""]
["",{"$nulls":5},"","",{"$nulls":18},"","","","",{"$nulls":30},"","","","",{"$nulls":60},"",{"$f":"IF($A219=\"\",\"\",IF(VLOOKUP($G219,$H$11:$DN$1000,96,FALSE)=\"\",\"No\",IF(LEFT(VLOOKUP($G219,$H$11:$DN$1000,96,FALSE),3)=\"The\",EF219,VLOOKUP(VLOOKUP($G219,$H$11:$DN$1000,96,FALSE),DeclMatrix!$A$2:$F$5,VLOOKUP('Enrollment Form'!$B219,DeclMatrix!$A$8:$B$12,2,FALSE),FALSE))))","v":""},{"$f":"IF($A219=\"\",\"\",IF(VLOOKUP($G219,$H$11:$DN$1000,101,FALSE)=\"\",\"No\",IF(LEFT(VLOOKUP($G219,$H$11:$DN$1000,101,FALSE),3)=\"The\",EG219,VLOOKUP(VLOOKUP($G219,$H$11:$DN$1000,101,FALSE),DeclMatrix!$A$2:$F$5,VLOOKUP('Enrollment Form'!$B219,DeclMatrix!$A$8:$B$12,2,FALSE),FALSE))))","v":""},{"$f":"IF($A219=\"\",\"\",IF(VLOOKUP($G219,$H$11:$DN$1000,106,FALSE)=\"\",\"No\",IF(LEFT(VLOOKUP($G219,$H$11:$DN$1000,106,FALSE),3)=\"The\",EH219,VLOOKUP(VLOOKUP($G219,$H$11:$DN$1000,106,FALSE),DeclMatrix!$A$2:$F$5,VLOOKUP('Enrollment Form'!$B219,DeclMatrix!$A$8:$B$12,2,FALSE),FALSE))))","v":""},{"$f":"IF($A219=\"\",\"\",IF(VLOOKUP($G219,$H$11:$DN$1000,111,FALSE)=\"\",\"No\",IF(LEFT(VLOOKUP($G219,$H$11:$DN$1000,111,FALSE),3)=\"The\",EI219,VLOOKUP(VLOOKUP($G219,$H$11:$DN$1000,111,FALSE),DeclMatrix!$A$2:$F$5,VLOOKUP('Enrollment Form'!$B219,DeclMatrix!$A$8:$B$12,2,FALSE),FALSE))))","v":""},"",null,"","","","","","","","","","","",""]
["",{"$nulls":5},"","",{"$nulls":18},"","","","",{"$nulls":30},"","","","",{"$nulls":60},"",{"$f":"IF($A220=\"\",\"\",IF(VLOOKUP($G220,$H$11:$DN$1000,96,FALSE)=\"\",\"No\",IF(LEFT(VLOOKUP($G220,$H$11:$DN$1000,96,FALSE),3)=\"The\",EF220,VLOOKUP(VLOOKUP($G220,$H$11:$DN$1000,96,FALSE),DeclMatrix!$A$2:$F$5,VLOOKUP('Enrollment Form'!$B220,DeclMatrix!$A$8:$B$12,2,FALSE),FALSE))))","v":""},{"$f":"IF($A220=\"\",\"\",IF(VLOOKUP($G220,$H$11:$DN$1000,101,FALSE)=\"\",\"No\",IF(LEFT(VLOOKUP($G220,$H$11:$DN$1000,101,FALSE),3)=\"The\",EG220,VLOOKUP(VLOOKUP($G220,$H$11:$DN$1000,101,FALSE),DeclMatrix!$A$2:$F$5,VLOOKUP('Enrollment Form'!$B220,DeclMatrix!$A$8:$B$12,2,FALSE),FALSE))))","v":""},{"$f":"IF($A220=\"\",\"\",IF(VLOOKUP($G220,$H$11:$DN$1000,106,FALSE)=\"\",\"No\",IF(LEFT(VLOOKUP($G220,$H$11:$DN$1000,106,FALSE),3)=\"The\",EH220,VLOOKUP(VLOOKUP($G220,$H$11:$DN$1000,106,FALSE),DeclMatrix!$A$2:$F$5,VLOOKUP('Enrollment Form'!$B220,DeclMatrix!$A$8:$B$12,2,FALSE),FALSE))))","v":""},{"$f":"IF($A220=\"\",\"\",IF(VLOOKUP($G220,$H$11:$DN$1000,111,FALSE)=\"\",\"No\",IF(LEFT(VLOOKUP($G220,$H$11:$DN$1000,111,FALSE),3)=\"The\",EI220,VLOOKUP(VLOOKUP($G220,$H$11:$DN$1000,111,FALSE),DeclMatrix!$A$2:$F$5,VLOOKUP('Enrollment Form'!$B220,DeclMatrix!$A$8:$B$12,2,FALSE),FALSE))))","v":""},"",null,"","","","","","","","","","","",""]
["",{"$nulls":5},"","",{"$nulls":18},"","","","",{"$nulls":30},"","","","",{"$nulls":60},"",{"$f":"IF($A221=\"\",\"\",IF(VLOOKUP($G221,$H$11:$DN$1000,96,FALSE)=\"\",\"No\",IF(LEFT(VLOOKUP($G221,$H$11:$DN$1000,96,FALSE),3)=\"The\",EF221,VLOOKUP(VLOOKUP($G221,$H$11:$DN$1000,96,FALSE),DeclMatrix!$A$2:$F$5,VLOOKUP('Enrollment Form'!$B221,DeclMatrix!$A$8:$B$12,2,FALSE),FALSE))))","v":""},{"$f":"IF($A221=\"\",\"\",IF(VLOOKUP($G221,$H$11:$DN$1000,101,FALSE)=\"\",\"No\",IF(LEFT(VLOOKUP($G221,$H$11:$DN$1000,101,FALSE),3)=\"The\",EG221,VLOOKUP(VLOOKUP($G221,$H$11:$DN$1000,101,FALSE),DeclMatrix!$A$2:$F$5,VLOOKUP('Enrollment Form'!$B221,DeclMatrix!$A$8:$B$12,2,FALSE),FALSE))))","v":""},{"$f":"IF($A221=\"\",\"\",IF(VLOOKUP($G221,$H$11:$DN$1000,106,FALSE)=\"\",\"No\",IF(LEFT(VLOOKUP($G221,$H$11:$DN$1000,106,FALSE),3)=\"The\",EH221,VLOOKUP(VLOOKUP($G221,$H$11:$DN$1000,106,FALSE),DeclMatrix!$A$2:$F$5,VLOOKUP('Enrollment Form'!$B221,DeclMatrix!$A$8:$B$12,2,FALSE),FALSE))))","v":""},{"$f":"IF($A221=\"\",\"\",IF(VLOOKUP($G221,$H$11:$DN$1000,111,FALSE)=\"\",\"No\",IF(LEFT(VLOOKUP($G221,$H$11:$DN$1000,111,FALSE),3)=\"The\",EI221,VLOOKUP(VLOOKUP($G221,$H$11:$DN$1000,111,FALSE),DeclMatrix!$A$2:$F$5,VLOOKUP('Enrollment Form'!$B221,DeclMatrix!$A$8:$B$12,2,FALSE),FALSE))))","v":""},"",null,"","","","","","","","","","","",""]
["",{"$nulls":5},"","",{"$nulls":18},"","","","",{"$nulls":30},"","","","",{"$nulls":60},"",{"$f":"IF($A222=\"\",\"\",IF(VLOOKUP($G222,$H$11:$DN$1000,96,FALSE)=\"\",\"No\",IF(LEFT(VLOOKUP($G222,$H$11:$DN$1000,96,FALSE),3)=\"The\",EF222,VLOOKUP(VLOOKUP($G222,$H$11:$DN$1000,96,FALSE),DeclMatrix!$A$2:$F$5,VLOOKUP('Enrollment Form'!$B222,DeclMatrix!$A$8:$B$12,2,FALSE),FALSE))))","v":""},{"$f":"IF($A222=\"\",\"\",IF(VLOOKUP($G222,$H$11:$DN$1000,101,FALSE)=\"\",\"No\",IF(LEFT(VLOOKUP($G222,$H$11:$DN$1000,101,FALSE),3)=\"The\",EG222,VLOOKUP(VLOOKUP($G222,$H$11:$DN$1000,101,FALSE),DeclMatrix!$A$2:$F$5,VLOOKUP('Enrollment Form'!$B222,DeclMatrix!$A$8:$B$12,2,FALSE),FALSE))))","v":""},{"$f":"IF($A222=\"\",\"\",IF(VLOOKUP($G222,$H$11:$DN$1000,106,FALSE)=\"\",\"No\",IF(LEFT(VLOOKUP($G222,$H$11:$DN$1000,106,FALSE),3)=\"The\",EH222,VLOOKUP(VLOOKUP($G222,$H$11:$DN$1000,106,FALSE),DeclMatrix!$A$2:$F$5,VLOOKUP('Enrollment Form'!$B222,DeclMatrix!$A$8:$B$12,2,FALSE),FALSE))))","v":""},{"$f":"IF($A222=\"\",\"\",IF(VLOOKUP($G222,$H$11:$DN$1000,111,FALSE)=\"\",\"No\",IF(LEFT(VLOOKUP($G222,$H$11:$DN$1000,111,FALSE),3)=\"The\",EI222,VLOOKUP(VLOOKUP($G222,$H$11:$DN$1000,111,FALSE),DeclMatrix!$A$2:$F$5,VLOOKUP('Enrollment Form'!$B222,DeclMatrix!$A$8:$B$12,2,FALSE),FALSE))))","v":""},"",null,"","","","","","","","","","","",""]
["",{"$nulls":5},"","",{"$nulls":18},"","","","",{"$nulls":30},"","","","",{"$nulls":60},"",{"$f":"IF($A223=\"\",\"\",IF(VLOOKUP($G223,$H$11:$DN$1000,96,FALSE)=\"\",\"No\",IF(LEFT(VLOOKUP($G223,$H$11:$DN$1000,96,FALSE),3)=\"The\",EF223,VLOOKUP(VLOOKUP($G223,$H$11:$DN$1000,96,FALSE),DeclMatrix!$A$2:$F$5,VLOOKUP('Enrollment Form'!$B223,DeclMatrix!$A$8:$B$12,2,FALSE),FALSE))))","v":""},{"$f":"IF($A223=\"\",\"\",IF(VLOOKUP($G223,$H$11:$DN$1000,101,FALSE)=\"\",\"No\",IF(LEFT(VLOOKUP($G223,$H$11:$DN$1000,101,FALSE),3)=\"The\",EG223,VLOOKUP(VLOOKUP($G223,$H$11:$DN$1000,101,FALSE),DeclMatrix!$A$2:$F$5,VLOOKUP('Enrollment Form'!$B223,DeclMatrix!$A$8:$B$12,2,FALSE),FALSE))))","v":""},{"$f":"IF($A223=\"\",\"\",IF(VLOOKUP($G223,$H$11:$DN$1000,106,FALSE)=\"\",\"No\",IF(LEFT(VLOOKUP($G223,$H$11:$DN$1000,106,FALSE),3)=\"The\",EH223,VLOOKUP(VLOOKUP($G223,$H$11:$DN$1000,106,FALSE),DeclMatrix!$A$2:$F$5,VLOOKUP('Enrollment Form'!$B223,DeclMatrix!$A$8:$B$12,2,FALSE),FALSE))))","v":""},{"$f":"IF($A223=\"\",\"\",IF(VLOOKUP($G223,$H$11:$DN$1000,111,FALSE)=\"\",\"No\",IF(LEFT(VLOOKUP($G223,$H$11:$DN$1000,111,FALSE),3)=\"The\",EI223,VLOOKUP(VLOOKUP($G223,$H$11:$DN$1000,111,FALSE),DeclMatrix!$A$2:$F$5,VLOOKUP('Enrollment Form'!$B223,DeclMatrix!$A$8:$B$12,2,FALSE),FALSE))))","v":""},"",null,"","","","","","","","","","","",""]
["",{"$nulls":5},"","",{"$nulls":18},"","","","",{"$nulls":30},"","","","",{"$nulls":60},"",{"$f":"IF($A224=\"\",\"\",IF(VLOOKUP($G224,$H$11:$DN$1000,96,FALSE)=\"\",\"No\",IF(LEFT(VLOOKUP($G224,$H$11:$DN$1000,96,FALSE),3)=\"The\",EF224,VLOOKUP(VLOOKUP($G224,$H$11:$DN$1000,96,FALSE),DeclMatrix!$A$2:$F$5,VLOOKUP('Enrollment Form'!$B224,DeclMatrix!$A$8:$B$12,2,FALSE),FALSE))))","v":""},{"$f":"IF($A224=\"\",\"\",IF(VLOOKUP($G224,$H$11:$DN$1000,101,FALSE)=\"\",\"No\",IF(LEFT(VLOOKUP($G224,$H$11:$DN$1000,101,FALSE),3)=\"The\",EG224,VLOOKUP(VLOOKUP($G224,$H$11:$DN$1000,101,FALSE),DeclMatrix!$A$2:$F$5,VLOOKUP('Enrollment Form'!$B224,DeclMatrix!$A$8:$B$12,2,FALSE),FALSE))))","v":""},{"$f":"IF($A224=\"\",\"\",IF(VLOOKUP($G224,$H$11:$DN$1000,106,FALSE)=\"\",\"No\",IF(LEFT(VLOOKUP($G224,$H$11:$DN$1000,106,FALSE),3)=\"The\",EH224,VLOOKUP(VLOOKUP($G224,$H$11:$DN$1000,106,FALSE),DeclMatrix!$A$2:$F$5,VLOOKUP('Enrollment Form'!$B224,DeclMatrix!$A$8:$B$12,2,FALSE),FALSE))))","v":""},{"$f":"IF($A224=\"\",\"\",IF(VLOOKUP($G224,$H$11:$DN$1000,111,FALSE)=\"\",\"No\",IF(LEFT(VLOOKUP($G224,$H$11:$DN$1000,111,FALSE),3)=\"The\",EI224,VLOOKUP(VLOOKUP($G224,$H$11:$DN$1000,111,FALSE),DeclMatrix!$A$2:$F$5,VLOOKUP('Enrollment Form'!$B224,DeclMatrix!$A$8:$B$12,2,FALSE),FALSE))))","v":""},"",null,"","","","","","","","","","","",""]
["",{"$nulls":5},"","",{"$nulls":18},"","","","",{"$nulls":30},"","","","",{"$nulls":60},"",{"$f":"IF($A225=\"\",\"\",IF(VLOOKUP($G225,$H$11:$DN$1000,96,FALSE)=\"\",\"No\",IF(LEFT(VLOOKUP($G225,$H$11:$DN$1000,96,FALSE),3)=\"The\",EF225,VLOOKUP(VLOOKUP($G225,$H$11:$DN$1000,96,FALSE),DeclMatrix!$A$2:$F$5,VLOOKUP('Enrollment Form'!$B225,DeclMatrix!$A$8:$B$12,2,FALSE),FALSE))))","v":""},{"$f":"IF($A225=\"\",\"\",IF(VLOOKUP($G225,$H$11:$DN$1000,101,FALSE)=\"\",\"No\",IF(LEFT(VLOOKUP($G225,$H$11:$DN$1000,101,FALSE),3)=\"The\",EG225,VLOOKUP(VLOOKUP($G225,$H$11:$DN$1000,101,FALSE),DeclMatrix!$A$2:$F$5,VLOOKUP('Enrollment Form'!$B225,DeclMatrix!$A$8:$B$12,2,FALSE),FALSE))))","v":""},{"$f":"IF($A225=\"\",\"\",IF(VLOOKUP($G225,$H$11:$DN$1000,106,FALSE)=\"\",\"No\",IF(LEFT(VLOOKUP($G225,$H$11:$DN$1000,106,FALSE),3)=\"The\",EH225,VLOOKUP(VLOOKUP($G225,$H$11:$DN$1000,106,FALSE),DeclMatrix!$A$2:$F$5,VLOOKUP('Enrollment Form'!$B225,DeclMatrix!$A$8:$B$12,2,FALSE),FALSE))))","v":""},{"$f":"IF($A225=\"\",\"\",IF(VLOOKUP($G225,$H$11:$DN$1000,111,FALSE)=\"\",\"No\",IF(LEFT(VLOOKUP($G225,$H$11:$DN$1000,111,FALSE),3)=\"The\",EI225,VLOOKUP(VLOOKUP($G225,$H$11:$DN$1000,111,FALSE),DeclMatrix!$A$2:$F$5,VLOOKUP('Enrollment Form'!$B225,DeclMatrix!$A$8:$B$12,2,FALSE),FALSE))))","v":""},"",null,"","","","","","","","","","","",""]
["",{"$nulls":5},"","",{"$nulls":18},"","","","",{"$nulls":30},"","","","",{"$nulls":60},"",{"$f":"IF($A226=\"\",\"\",IF(VLOOKUP($G226,$H$11:$DN$1000,96,FALSE)=\"\",\"No\",IF(LEFT(VLOOKUP($G226,$H$11:$DN$1000,96,FALSE),3)=\"The\",EF226,VLOOKUP(VLOOKUP($G226,$H$11:$DN$1000,96,FALSE),DeclMatrix!$A$2:$F$5,VLOOKUP('Enrollment Form'!$B226,DeclMatrix!$A$8:$B$12,2,FALSE),FALSE))))","v":""},{"$f":"IF($A226=\"\",\"\",IF(VLOOKUP($G226,$H$11:$DN$1000,101,FALSE)=\"\",\"No\",IF(LEFT(VLOOKUP($G226,$H$11:$DN$1000,101,FALSE),3)=\"The\",EG226,VLOOKUP(VLOOKUP($G226,$H$11:$DN$1000,101,FALSE),DeclMatrix!$A$2:$F$5,VLOOKUP('Enrollment Form'!$B226,DeclMatrix!$A$8:$B$12,2,FALSE),FALSE))))","v":""},{"$f":"IF($A226=\"\",\"\",IF(VLOOKUP($G226,$H$11:$DN$1000,106,FALSE)=\"\",\"No\",IF(LEFT(VLOOKUP($G226,$H$11:$DN$1000,106,FALSE),3)=\"The\",EH226,VLOOKUP(VLOOKUP($G226,$H$11:$DN$1000,106,FALSE),DeclMatrix!$A$2:$F$5,VLOOKUP('Enrollment Form'!$B226,DeclMatrix!$A$8:$B$12,2,FALSE),FALSE))))","v":""},{"$f":"IF($A226=\"\",\"\",IF(VLOOKUP($G226,$H$11:$DN$1000,111,FALSE)=\"\",\"No\",IF(LEFT(VLOOKUP($G226,$H$11:$DN$1000,111,FALSE),3)=\"The\",EI226,VLOOKUP(VLOOKUP($G226,$H$11:$DN$1000,111,FALSE),DeclMatrix!$A$2:$F$5,VLOOKUP('Enrollment Form'!$B226,DeclMatrix!$A$8:$B$12,2,FALSE),FALSE))))","v":""},"",null,"","","","","","","","","","","",""]
["",{"$nulls":5},"","",{"$nulls":18},"","","","",{"$nulls":30},"","","","",{"$nulls":60},"",{"$f":"IF($A227=\"\",\"\",IF(VLOOKUP($G227,$H$11:$DN$1000,96,FALSE)=\"\",\"No\",IF(LEFT(VLOOKUP($G227,$H$11:$DN$1000,96,FALSE),3)=\"The\",EF227,VLOOKUP(VLOOKUP($G227,$H$11:$DN$1000,96,FALSE),DeclMatrix!$A$2:$F$5,VLOOKUP('Enrollment Form'!$B227,DeclMatrix!$A$8:$B$12,2,FALSE),FALSE))))","v":""},{"$f":"IF($A227=\"\",\"\",IF(VLOOKUP($G227,$H$11:$DN$1000,101,FALSE)=\"\",\"No\",IF(LEFT(VLOOKUP($G227,$H$11:$DN$1000,101,FALSE),3)=\"The\",EG227,VLOOKUP(VLOOKUP($G227,$H$11:$DN$1000,101,FALSE),DeclMatrix!$A$2:$F$5,VLOOKUP('Enrollment Form'!$B227,DeclMatrix!$A$8:$B$12,2,FALSE),FALSE))))","v":""},{"$f":"IF($A227=\"\",\"\",IF(VLOOKUP($G227,$H$11:$DN$1000,106,FALSE)=\"\",\"No\",IF(LEFT(VLOOKUP($G227,$H$11:$DN$1000,106,FALSE),3)=\"The\",EH227,VLOOKUP(VLOOKUP($G227,$H$11:$DN$1000,106,FALSE),DeclMatrix!$A$2:$F$5,VLOOKUP('Enrollment Form'!$B227,DeclMatrix!$A$8:$B$12,2,FALSE),FALSE))))","v":""},{"$f":"IF($A227=\"\",\"\",IF(VLOOKUP($G227,$H$11:$DN$1000,111,FALSE)=\"\",\"No\",IF(LEFT(VLOOKUP($G227,$H$11:$DN$1000,111,FALSE),3)=\"The\",EI227,VLOOKUP(VLOOKUP($G227,$H$11:$DN$1000,111,FALSE),DeclMatrix!$A$2:$F$5,VLOOKUP('Enrollment Form'!$B227,DeclMatrix!$A$8:$B$12,2,FALSE),FALSE))))","v":""},"",null,"","","","","","","","","","","",""]
["",{"$nulls":5},"","",{"$nulls":18},"","","","",{"$nulls":30},"","","","",{"$nulls":60},"",{"$f":"IF($A228=\"\",\"\",IF(VLOOKUP($G228,$H$11:$DN$1000,96,FALSE)=\"\",\"No\",IF(LEFT(VLOOKUP($G228,$H$11:$DN$1000,96,FALSE),3)=\"The\",EF228,VLOOKUP(VLOOKUP($G228,$H$11:$DN$1000,96,FALSE),DeclMatrix!$A$2:$F$5,VLOOKUP('Enrollment Form'!$B228,DeclMatrix!$A$8:$B$12,2,FALSE),FALSE))))","v":""},{"$f":"IF($A228=\"\",\"\",IF(VLOOKUP($G228,$H$11:$DN$1000,101,FALSE)=\"\",\"No\",IF(LEFT(VLOOKUP($G228,$H$11:$DN$1000,101,FALSE),3)=\"The\",EG228,VLOOKUP(VLOOKUP($G228,$H$11:$DN$1000,101,FALSE),DeclMatrix!$A$2:$F$5,VLOOKUP('Enrollment Form'!$B228,DeclMatrix!$A$8:$B$12,2,FALSE),FALSE))))","v":""},{"$f":"IF($A228=\"\",\"\",IF(VLOOKUP($G228,$H$11:$DN$1000,106,FALSE)=\"\",\"No\",IF(LEFT(VLOOKUP($G228,$H$11:$DN$1000,106,FALSE),3)=\"The\",EH228,VLOOKUP(VLOOKUP($G228,$H$11:$DN$1000,106,FALSE),DeclMatrix!$A$2:$F$5,VLOOKUP('Enrollment Form'!$B228,DeclMatrix!$A$8:$B$12,2,FALSE),FALSE))))","v":""},{"$f":"IF($A228=\"\",\"\",IF(VLOOKUP($G228,$H$11:$DN$1000,111,FALSE)=\"\",\"No\",IF(LEFT(VLOOKUP($G228,$H$11:$DN$1000,111,FALSE),3)=\"The\",EI228,VLOOKUP(VLOOKUP($G228,$H$11:$DN$1000,111,FALSE),DeclMatrix!$A$2:$F$5,VLOOKUP('Enrollment Form'!$B228,DeclMatrix!$A$8:$B$12,2,FALSE),FALSE))))","v":""},"",null,"","","","","","","","","","","",""]
["",{"$nulls":5},"","",{"$nulls":18},"","","","",{"$nulls":30},"","","","",{"$nulls":60},"",{"$f":"IF($A229=\"\",\"\",IF(VLOOKUP($G229,$H$11:$DN$1000,96,FALSE)=\"\",\"No\",IF(LEFT(VLOOKUP($G229,$H$11:$DN$1000,96,FALSE),3)=\"The\",EF229,VLOOKUP(VLOOKUP($G229,$H$11:$DN$1000,96,FALSE),DeclMatrix!$A$2:$F$5,VLOOKUP('Enrollment Form'!$B229,DeclMatrix!$A$8:$B$12,2,FALSE),FALSE))))","v":""},{"$f":"IF($A229=\"\",\"\",IF(VLOOKUP($G229,$H$11:$DN$1000,101,FALSE)=\"\",\"No\",IF(LEFT(VLOOKUP($G229,$H$11:$DN$1000,101,FALSE),3)=\"The\",EG229,VLOOKUP(VLOOKUP($G229,$H$11:$DN$1000,101,FALSE),DeclMatrix!$A$2:$F$5,VLOOKUP('Enrollment Form'!$B229,DeclMatrix!$A$8:$B$12,2,FALSE),FALSE))))","v":""},{"$f":"IF($A229=\"\",\"\",IF(VLOOKUP($G229,$H$11:$DN$1000,106,FALSE)=\"\",\"No\",IF(LEFT(VLOOKUP($G229,$H$11:$DN$1000,106,FALSE),3)=\"The\",EH229,VLOOKUP(VLOOKUP($G229,$H$11:$DN$1000,106,FALSE),DeclMatrix!$A$2:$F$5,VLOOKUP('Enrollment Form'!$B229,DeclMatrix!$A$8:$B$12,2,FALSE),FALSE))))","v":""},{"$f":"IF($A229=\"\",\"\",IF(VLOOKUP($G229,$H$11:$DN$1000,111,FALSE)=\"\",\"No\",IF(LEFT(VLOOKUP($G229,$H$11:$DN$1000,111,FALSE),3)=\"The\",EI229,VLOOKUP(VLOOKUP($G229,$H$11:$DN$1000,111,FALSE),DeclMatrix!$A$2:$F$5,VLOOKUP('Enrollment Form'!$B229,DeclMatrix!$A$8:$B$12,2,FALSE),FALSE))))","v":""},"",null,"","","","","","","","","","","",""]
["",{"$nulls":5},"","",{"$nulls":18},"","","","",{"$nulls":30},"","","","",{"$nulls":60},"",{"$f":"IF($A230=\"\",\"\",IF(VLOOKUP($G230,$H$11:$DN$1000,96,FALSE)=\"\",\"No\",IF(LEFT(VLOOKUP($G230,$H$11:$DN$1000,96,FALSE),3)=\"The\",EF230,VLOOKUP(VLOOKUP($G230,$H$11:$DN$1000,96,FALSE),DeclMatrix!$A$2:$F$5,VLOOKUP('Enrollment Form'!$B230,DeclMatrix!$A$8:$B$12,2,FALSE),FALSE))))","v":""},{"$f":"IF($A230=\"\",\"\",IF(VLOOKUP($G230,$H$11:$DN$1000,101,FALSE)=\"\",\"No\",IF(LEFT(VLOOKUP($G230,$H$11:$DN$1000,101,FALSE),3)=\"The\",EG230,VLOOKUP(VLOOKUP($G230,$H$11:$DN$1000,101,FALSE),DeclMatrix!$A$2:$F$5,VLOOKUP('Enrollment Form'!$B230,DeclMatrix!$A$8:$B$12,2,FALSE),FALSE))))","v":""},{"$f":"IF($A230=\"\",\"\",IF(VLOOKUP($G230,$H$11:$DN$1000,106,FALSE)=\"\",\"No\",IF(LEFT(VLOOKUP($G230,$H$11:$DN$1000,106,FALSE),3)=\"The\",EH230,VLOOKUP(VLOOKUP($G230,$H$11:$DN$1000,106,FALSE),DeclMatrix!$A$2:$F$5,VLOOKUP('Enrollment Form'!$B230,DeclMatrix!$A$8:$B$12,2,FALSE),FALSE))))","v":""},{"$f":"IF($A230=\"\",\"\",IF(VLOOKUP($G230,$H$11:$DN$1000,111,FALSE)=\"\",\"No\",IF(LEFT(VLOOKUP($G230,$H$11:$DN$1000,111,FALSE),3)=\"The\",EI230,VLOOKUP(VLOOKUP($G230,$H$11:$DN$1000,111,FALSE),DeclMatrix!$A$2:$F$5,VLOOKUP('Enrollment Form'!$B230,DeclMatrix!$A$8:$B$12,2,FALSE),FALSE))))","v":""},"",null,"","","","","","","","","","","",""]
["",{"$nulls":5},"","",{"$nulls":18},"","","","",{"$nulls":30},"","","","",{"$nulls":60},"",{"$f":"IF($A231=\"\",\"\",IF(VLOOKUP($G231,$H$11:$DN$1000,96,FALSE)=\"\",\"No\",IF(LEFT(VLOOKUP($G231,$H$11:$DN$1000,96,FALSE),3)=\"The\",EF231,VLOOKUP(VLOOKUP($G231,$H$11:$DN$1000,96,FALSE),DeclMatrix!$A$2:$F$5,VLOOKUP('Enrollment Form'!$B231,DeclMatrix!$A$8:$B$12,2,FALSE),FALSE))))","v":""},{"$f":"IF($A231=\"\",\"\",IF(VLOOKUP($G231,$H$11:$DN$1000,101,FALSE)=\"\",\"No\",IF(LEFT(VLOOKUP($G231,$H$11:$DN$1000,101,FALSE),3)=\"The\",EG231,VLOOKUP(VLOOKUP($G231,$H$11:$DN$1000,101,FALSE),DeclMatrix!$A$2:$F$5,VLOOKUP('Enrollment Form'!$B231,DeclMatrix!$A$8:$B$12,2,FALSE),FALSE))))","v":""},{"$f":"IF($A231=\"\",\"\",IF(VLOOKUP($G231,$H$11:$DN$1000,106,FALSE)=\"\",\"No\",IF(LEFT(VLOOKUP($G231,$H$11:$DN$1000,106,FALSE),3)=\"The\",EH231,VLOOKUP(VLOOKUP($G231,$H$11:$DN$1000,106,FALSE),DeclMatrix!$A$2:$F$5,VLOOKUP('Enrollment Form'!$B231,DeclMatrix!$A$8:$B$12,2,FALSE),FALSE))))","v":""},{"$f":"IF($A231=\"\",\"\",IF(VLOOKUP($G231,$H$11:$DN$1000,111,FALSE)=\"\",\"No\",IF(LEFT(VLOOKUP($G231,$H$11:$DN$1000,111,FALSE),3)=\"The\",EI231,VLOOKUP(VLOOKUP($G231,$H$11:$DN$1000,111,FALSE),DeclMatrix!$A$2:$F$5,VLOOKUP('Enrollment Form'!$B231,DeclMatrix!$A$8:$B$12,2,FALSE),FALSE))))","v":""},"",null,"","","","","","","","","","","",""]
["",{"$nulls":5},"","",{"$nulls":18},"","","","",{"$nulls":30},"","","","",{"$nulls":60},"",{"$f":"IF($A232=\"\",\"\",IF(VLOOKUP($G232,$H$11:$DN$1000,96,FALSE)=\"\",\"No\",IF(LEFT(VLOOKUP($G232,$H$11:$DN$1000,96,FALSE),3)=\"The\",EF232,VLOOKUP(VLOOKUP($G232,$H$11:$DN$1000,96,FALSE),DeclMatrix!$A$2:$F$5,VLOOKUP('Enrollment Form'!$B232,DeclMatrix!$A$8:$B$12,2,FALSE),FALSE))))","v":""},{"$f":"IF($A232=\"\",\"\",IF(VLOOKUP($G232,$H$11:$DN$1000,101,FALSE)=\"\",\"No\",IF(LEFT(VLOOKUP($G232,$H$11:$DN$1000,101,FALSE),3)=\"The\",EG232,VLOOKUP(VLOOKUP($G232,$H$11:$DN$1000,101,FALSE),DeclMatrix!$A$2:$F$5,VLOOKUP('Enrollment Form'!$B232,DeclMatrix!$A$8:$B$12,2,FALSE),FALSE))))","v":""},{"$f":"IF($A232=\"\",\"\",IF(VLOOKUP($G232,$H$11:$DN$1000,106,FALSE)=\"\",\"No\",IF(LEFT(VLOOKUP($G232,$H$11:$DN$1000,106,FALSE),3)=\"The\",EH232,VLOOKUP(VLOOKUP($G232,$H$11:$DN$1000,106,FALSE),DeclMatrix!$A$2:$F$5,VLOOKUP('Enrollment Form'!$B232,DeclMatrix!$A$8:$B$12,2,FALSE),FALSE))))","v":""},{"$f":"IF($A232=\"\",\"\",IF(VLOOKUP($G232,$H$11:$DN$1000,111,FALSE)=\"\",\"No\",IF(LEFT(VLOOKUP($G232,$H$11:$DN$1000,111,FALSE),3)=\"The\",EI232,VLOOKUP(VLOOKUP($G232,$H$11:$DN$1000,111,FALSE),DeclMatrix!$A$2:$F$5,VLOOKUP('Enrollment Form'!$B232,DeclMatrix!$A$8:$B$12,2,FALSE),FALSE))))","v":""},"",null,"","","","","","","","","","","",""]
["",{"$nulls":5},"","",{"$nulls":18},"","","","",{"$nulls":30},"","","","",{"$nulls":60},"",{"$f":"IF($A233=\"\",\"\",IF(VLOOKUP($G233,$H$11:$DN$1000,96,FALSE)=\"\",\"No\",IF(LEFT(VLOOKUP($G233,$H$11:$DN$1000,96,FALSE),3)=\"The\",EF233,VLOOKUP(VLOOKUP($G233,$H$11:$DN$1000,96,FALSE),DeclMatrix!$A$2:$F$5,VLOOKUP('Enrollment Form'!$B233,DeclMatrix!$A$8:$B$12,2,FALSE),FALSE))))","v":""},{"$f":"IF($A233=\"\",\"\",IF(VLOOKUP($G233,$H$11:$DN$1000,101,FALSE)=\"\",\"No\",IF(LEFT(VLOOKUP($G233,$H$11:$DN$1000,101,FALSE),3)=\"The\",EG233,VLOOKUP(VLOOKUP($G233,$H$11:$DN$1000,101,FALSE),DeclMatrix!$A$2:$F$5,VLOOKUP('Enrollment Form'!$B233,DeclMatrix!$A$8:$B$12,2,FALSE),FALSE))))","v":""},{"$f":"IF($A233=\"\",\"\",IF(VLOOKUP($G233,$H$11:$DN$1000,106,FALSE)=\"\",\"No\",IF(LEFT(VLOOKUP($G233,$H$11:$DN$1000,106,FALSE),3)=\"The\",EH233,VLOOKUP(VLOOKUP($G233,$H$11:$DN$1000,106,FALSE),DeclMatrix!$A$2:$F$5,VLOOKUP('Enrollment Form'!$B233,DeclMatrix!$A$8:$B$12,2,FALSE),FALSE))))","v":""},{"$f":"IF($A233=\"\",\"\",IF(VLOOKUP($G233,$H$11:$DN$1000,111,FALSE)=\"\",\"No\",IF(LEFT(VLOOKUP($G233,$H$11:$DN$1000,111,FALSE),3)=\"The\",EI233,VLOOKUP(VLOOKUP($G233,$H$11:$DN$1000,111,FALSE),DeclMatrix!$A$2:$F$5,VLOOKUP('Enrollment Form'!$B233,DeclMatrix!$A$8:$B$12,2,FALSE),FALSE))))","v":""},"",null,"","","","","","","","","","","",""]
["",{"$nulls":5},"","",{"$nulls":18},"","","","",{"$nulls":30},"","","","",{"$nulls":60},"",{"$f":"IF($A234=\"\",\"\",IF(VLOOKUP($G234,$H$11:$DN$1000,96,FALSE)=\"\",\"No\",IF(LEFT(VLOOKUP($G234,$H$11:$DN$1000,96,FALSE),3)=\"The\",EF234,VLOOKUP(VLOOKUP($G234,$H$11:$DN$1000,96,FALSE),DeclMatrix!$A$2:$F$5,VLOOKUP('Enrollment Form'!$B234,DeclMatrix!$A$8:$B$12,2,FALSE),FALSE))))","v":""},{"$f":"IF($A234=\"\",\"\",IF(VLOOKUP($G234,$H$11:$DN$1000,101,FALSE)=\"\",\"No\",IF(LEFT(VLOOKUP($G234,$H$11:$DN$1000,101,FALSE),3)=\"The\",EG234,VLOOKUP(VLOOKUP($G234,$H$11:$DN$1000,101,FALSE),DeclMatrix!$A$2:$F$5,VLOOKUP('Enrollment Form'!$B234,DeclMatrix!$A$8:$B$12,2,FALSE),FALSE))))","v":""},{"$f":"IF($A234=\"\",\"\",IF(VLOOKUP($G234,$H$11:$DN$1000,106,FALSE)=\"\",\"No\",IF(LEFT(VLOOKUP($G234,$H$11:$DN$1000,106,FALSE),3)=\"The\",EH234,VLOOKUP(VLOOKUP($G234,$H$11:$DN$1000,106,FALSE),DeclMatrix!$A$2:$F$5,VLOOKUP('Enrollment Form'!$B234,DeclMatrix!$A$8:$B$12,2,FALSE),FALSE))))","v":""},{"$f":"IF($A234=\"\",\"\",IF(VLOOKUP($G234,$H$11:$DN$1000,111,FALSE)=\"\",\"No\",IF(LEFT(VLOOKUP($G234,$H$11:$DN$1000,111,FALSE),3)=\"The\",EI234,VLOOKUP(VLOOKUP($G234,$H$11:$DN$1000,111,FALSE),DeclMatrix!$A$2:$F$5,VLOOKUP('Enrollment Form'!$B234,DeclMatrix!$A$8:$B$12,2,FALSE),FALSE))))","v":""},"",null,"","","","","","","","","","","",""]
["",{"$nulls":5},"","",{"$nulls":18},"","","","",{"$nulls":30},"","","","",{"$nulls":60},"",{"$f":"IF($A235=\"\",\"\",IF(VLOOKUP($G235,$H$11:$DN$1000,96,FALSE)=\"\",\"No\",IF(LEFT(VLOOKUP($G235,$H$11:$DN$1000,96,FALSE),3)=\"The\",EF235,VLOOKUP(VLOOKUP($G235,$H$11:$DN$1000,96,FALSE),DeclMatrix!$A$2:$F$5,VLOOKUP('Enrollment Form'!$B235,DeclMatrix!$A$8:$B$12,2,FALSE),FALSE))))","v":""},{"$f":"IF($A235=\"\",\"\",IF(VLOOKUP($G235,$H$11:$DN$1000,101,FALSE)=\"\",\"No\",IF(LEFT(VLOOKUP($G235,$H$11:$DN$1000,101,FALSE),3)=\"The\",EG235,VLOOKUP(VLOOKUP($G235,$H$11:$DN$1000,101,FALSE),DeclMatrix!$A$2:$F$5,VLOOKUP('Enrollment Form'!$B235,DeclMatrix!$A$8:$B$12,2,FALSE),FALSE))))","v":""},{"$f":"IF($A235=\"\",\"\",IF(VLOOKUP($G235,$H$11:$DN$1000,106,FALSE)=\"\",\"No\",IF(LEFT(VLOOKUP($G235,$H$11:$DN$1000,106,FALSE),3)=\"The\",EH235,VLOOKUP(VLOOKUP($G235,$H$11:$DN$1000,106,FALSE),DeclMatrix!$A$2:$F$5,VLOOKUP('Enrollment Form'!$B235,DeclMatrix!$A$8:$B$12,2,FALSE),FALSE))))","v":""},{"$f":"IF($A235=\"\",\"\",IF(VLOOKUP($G235,$H$11:$DN$1000,111,FALSE)=\"\",\"No\",IF(LEFT(VLOOKUP($G235,$H$11:$DN$1000,111,FALSE),3)=\"The\",EI235,VLOOKUP(VLOOKUP($G235,$H$11:$DN$1000,111,FALSE),DeclMatrix!$A$2:$F$5,VLOOKUP('Enrollment Form'!$B235,DeclMatrix!$A$8:$B$12,2,FALSE),FALSE))))","v":""},"",null,"","","","","","","","","","","",""]
["",{"$nulls":5},"","",{"$nulls":18},"","","","",{"$nulls":30},"","","","",{"$nulls":60},"",{"$f":"IF($A236=\"\",\"\",IF(VLOOKUP($G236,$H$11:$DN$1000,96,FALSE)=\"\",\"No\",IF(LEFT(VLOOKUP($G236,$H$11:$DN$1000,96,FALSE),3)=\"The\",EF236,VLOOKUP(VLOOKUP($G236,$H$11:$DN$1000,96,FALSE),DeclMatrix!$A$2:$F$5,VLOOKUP('Enrollment Form'!$B236,DeclMatrix!$A$8:$B$12,2,FALSE),FALSE))))","v":""},{"$f":"IF($A236=\"\",\"\",IF(VLOOKUP($G236,$H$11:$DN$1000,101,FALSE)=\"\",\"No\",IF(LEFT(VLOOKUP($G236,$H$11:$DN$1000,101,FALSE),3)=\"The\",EG236,VLOOKUP(VLOOKUP($G236,$H$11:$DN$1000,101,FALSE),DeclMatrix!$A$2:$F$5,VLOOKUP('Enrollment Form'!$B236,DeclMatrix!$A$8:$B$12,2,FALSE),FALSE))))","v":""},{"$f":"IF($A236=\"\",\"\",IF(VLOOKUP($G236,$H$11:$DN$1000,106,FALSE)=\"\",\"No\",IF(LEFT(VLOOKUP($G236,$H$11:$DN$1000,106,FALSE),3)=\"The\",EH236,VLOOKUP(VLOOKUP($G236,$H$11:$DN$1000,106,FALSE),DeclMatrix!$A$2:$F$5,VLOOKUP('Enrollment Form'!$B236,DeclMatrix!$A$8:$B$12,2,FALSE),FALSE))))","v":""},{"$f":"IF($A236=\"\",\"\",IF(VLOOKUP($G236,$H$11:$DN$1000,111,FALSE)=\"\",\"No\",IF(LEFT(VLOOKUP($G236,$H$11:$DN$1000,111,FALSE),3)=\"The\",EI236,VLOOKUP(VLOOKUP($G236,$H$11:$DN$1000,111,FALSE),DeclMatrix!$A$2:$F$5,VLOOKUP('Enrollment Form'!$B236,DeclMatrix!$A$8:$B$12,2,FALSE),FALSE))))","v":""},"",null,"","","","","","","","","","","",""]
["",{"$nulls":5},"","",{"$nulls":18},"","","","",{"$nulls":30},"","","","",{"$nulls":60},"",{"$f":"IF($A237=\"\",\"\",IF(VLOOKUP($G237,$H$11:$DN$1000,96,FALSE)=\"\",\"No\",IF(LEFT(VLOOKUP($G237,$H$11:$DN$1000,96,FALSE),3)=\"The\",EF237,VLOOKUP(VLOOKUP($G237,$H$11:$DN$1000,96,FALSE),DeclMatrix!$A$2:$F$5,VLOOKUP('Enrollment Form'!$B237,DeclMatrix!$A$8:$B$12,2,FALSE),FALSE))))","v":""},{"$f":"IF($A237=\"\",\"\",IF(VLOOKUP($G237,$H$11:$DN$1000,101,FALSE)=\"\",\"No\",IF(LEFT(VLOOKUP($G237,$H$11:$DN$1000,101,FALSE),3)=\"The\",EG237,VLOOKUP(VLOOKUP($G237,$H$11:$DN$1000,101,FALSE),DeclMatrix!$A$2:$F$5,VLOOKUP('Enrollment Form'!$B237,DeclMatrix!$A$8:$B$12,2,FALSE),FALSE))))","v":""},{"$f":"IF($A237=\"\",\"\",IF(VLOOKUP($G237,$H$11:$DN$1000,106,FALSE)=\"\",\"No\",IF(LEFT(VLOOKUP($G237,$H$11:$DN$1000,106,FALSE),3)=\"The\",EH237,VLOOKUP(VLOOKUP($G237,$H$11:$DN$1000,106,FALSE),DeclMatrix!$A$2:$F$5,VLOOKUP('Enrollment Form'!$B237,DeclMatrix!$A$8:$B$12,2,FALSE),FALSE))))","v":""},{"$f":"IF($A237=\"\",\"\",IF(VLOOKUP($G237,$H$11:$DN$1000,111,FALSE)=\"\",\"No\",IF(LEFT(VLOOKUP($G237,$H$11:$DN$1000,111,FALSE),3)=\"The\",EI237,VLOOKUP(VLOOKUP($G237,$H$11:$DN$1000,111,FALSE),DeclMatrix!$A$2:$F$5,VLOOKUP('Enrollment Form'!$B237,DeclMatrix!$A$8:$B$12,2,FALSE),FALSE))))","v":""},"",null,"","","","","","","","","","","",""]
["",{"$nulls":5},"","",{"$nulls":18},"","","","",{"$nulls":30},"","","","",{"$nulls":60},"",{"$f":"IF($A238=\"\",\"\",IF(VLOOKUP($G238,$H$11:$DN$1000,96,FALSE)=\"\",\"No\",IF(LEFT(VLOOKUP($G238,$H$11:$DN$1000,96,FALSE),3)=\"The\",EF238,VLOOKUP(VLOOKUP($G238,$H$11:$DN$1000,96,FALSE),DeclMatrix!$A$2:$F$5,VLOOKUP('Enrollment Form'!$B238,DeclMatrix!$A$8:$B$12,2,FALSE),FALSE))))","v":""},{"$f":"IF($A238=\"\",\"\",IF(VLOOKUP($G238,$H$11:$DN$1000,101,FALSE)=\"\",\"No\",IF(LEFT(VLOOKUP($G238,$H$11:$DN$1000,101,FALSE),3)=\"The\",EG238,VLOOKUP(VLOOKUP($G238,$H$11:$DN$1000,101,FALSE),DeclMatrix!$A$2:$F$5,VLOOKUP('Enrollment Form'!$B238,DeclMatrix!$A$8:$B$12,2,FALSE),FALSE))))","v":""},{"$f":"IF($A238=\"\",\"\",IF(VLOOKUP($G238,$H$11:$DN$1000,106,FALSE)=\"\",\"No\",IF(LEFT(VLOOKUP($G238,$H$11:$DN$1000,106,FALSE),3)=\"The\",EH238,VLOOKUP(VLOOKUP($G238,$H$11:$DN$1000,106,FALSE),DeclMatrix!$A$2:$F$5,VLOOKUP('Enrollment Form'!$B238,DeclMatrix!$A$8:$B$12,2,FALSE),FALSE))))","v":""},{"$f":"IF($A238=\"\",\"\",IF(VLOOKUP($G238,$H$11:$DN$1000,111,FALSE)=\"\",\"No\",IF(LEFT(VLOOKUP($G238,$H$11:$DN$1000,111,FALSE),3)=\"The\",EI238,VLOOKUP(VLOOKUP($G238,$H$11:$DN$1000,111,FALSE),DeclMatrix!$A$2:$F$5,VLOOKUP('Enrollment Form'!$B238,DeclMatrix!$A$8:$B$12,2,FALSE),FALSE))))","v":""},"",null,"","","","","","","","","","","",""]
["",{"$nulls":5},"","",{"$nulls":18},"","","","",{"$nulls":30},"","","","",{"$nulls":60},"",{"$f":"IF($A239=\"\",\"\",IF(VLOOKUP($G239,$H$11:$DN$1000,96,FALSE)=\"\",\"No\",IF(LEFT(VLOOKUP($G239,$H$11:$DN$1000,96,FALSE),3)=\"The\",EF239,VLOOKUP(VLOOKUP($G239,$H$11:$DN$1000,96,FALSE),DeclMatrix!$A$2:$F$5,VLOOKUP('Enrollment Form'!$B239,DeclMatrix!$A$8:$B$12,2,FALSE),FALSE))))","v":""},{"$f":"IF($A239=\"\",\"\",IF(VLOOKUP($G239,$H$11:$DN$1000,101,FALSE)=\"\",\"No\",IF(LEFT(VLOOKUP($G239,$H$11:$DN$1000,101,FALSE),3)=\"The\",EG239,VLOOKUP(VLOOKUP($G239,$H$11:$DN$1000,101,FALSE),DeclMatrix!$A$2:$F$5,VLOOKUP('Enrollment Form'!$B239,DeclMatrix!$A$8:$B$12,2,FALSE),FALSE))))","v":""},{"$f":"IF($A239=\"\",\"\",IF(VLOOKUP($G239,$H$11:$DN$1000,106,FALSE)=\"\",\"No\",IF(LEFT(VLOOKUP($G239,$H$11:$DN$1000,106,FALSE),3)=\"The\",EH239,VLOOKUP(VLOOKUP($G239,$H$11:$DN$1000,106,FALSE),DeclMatrix!$A$2:$F$5,VLOOKUP('Enrollment Form'!$B239,DeclMatrix!$A$8:$B$12,2,FALSE),FALSE))))","v":""},{"$f":"IF($A239=\"\",\"\",IF(VLOOKUP($G239,$H$11:$DN$1000,111,FALSE)=\"\",\"No\",IF(LEFT(VLOOKUP($G239,$H$11:$DN$1000,111,FALSE),3)=\"The\",EI239,VLOOKUP(VLOOKUP($G239,$H$11:$DN$1000,111,FALSE),DeclMatrix!$A$2:$F$5,VLOOKUP('Enrollment Form'!$B239,DeclMatrix!$A$8:$B$12,2,FALSE),FALSE))))","v":""},"",null,"","","","","","","","","","","",""]
["",{"$nulls":5},"","",{"$nulls":18},"","","","",{"$nulls":30},"","","","",{"$nulls":60},"",{"$f":"IF($A240=\"\",\"\",IF(VLOOKUP($G240,$H$11:$DN$1000,96,FALSE)=\"\",\"No\",IF(LEFT(VLOOKUP($G240,$H$11:$DN$1000,96,FALSE),3)=\"The\",EF240,VLOOKUP(VLOOKUP($G240,$H$11:$DN$1000,96,FALSE),DeclMatrix!$A$2:$F$5,VLOOKUP('Enrollment Form'!$B240,DeclMatrix!$A$8:$B$12,2,FALSE),FALSE))))","v":""},{"$f":"IF($A240=\"\",\"\",IF(VLOOKUP($G240,$H$11:$DN$1000,101,FALSE)=\"\",\"No\",IF(LEFT(VLOOKUP($G240,$H$11:$DN$1000,101,FALSE),3)=\"The\",EG240,VLOOKUP(VLOOKUP($G240,$H$11:$DN$1000,101,FALSE),DeclMatrix!$A$2:$F$5,VLOOKUP('Enrollment Form'!$B240,DeclMatrix!$A$8:$B$12,2,FALSE),FALSE))))","v":""},{"$f":"IF($A240=\"\",\"\",IF(VLOOKUP($G240,$H$11:$DN$1000,106,FALSE)=\"\",\"No\",IF(LEFT(VLOOKUP($G240,$H$11:$DN$1000,106,FALSE),3)=\"The\",EH240,VLOOKUP(VLOOKUP($G240,$H$11:$DN$1000,106,FALSE),DeclMatrix!$A$2:$F$5,VLOOKUP('Enrollment Form'!$B240,DeclMatrix!$A$8:$B$12,2,FALSE),FALSE))))","v":""},{"$f":"IF($A240=\"\",\"\",IF(VLOOKUP($G240,$H$11:$DN$1000,111,FALSE)=\"\",\"No\",IF(LEFT(VLOOKUP($G240,$H$11:$DN$1000,111,FALSE),3)=\"The\",EI240,VLOOKUP(VLOOKUP($G240,$H$11:$DN$1000,111,FALSE),DeclMatrix!$A$2:$F$5,VLOOKUP('Enrollment Form'!$B240,DeclMatrix!$A$8:$B$12,2,FALSE),FALSE))))","v":""},"",null,"","","","","","","","","","","",""]
["",{"$nulls":5},"","",{"$nulls":18},"","","","",{"$nulls":30},"","","","",{"$nulls":60},"",{"$f":"IF($A241=\"\",\"\",IF(VLOOKUP($G241,$H$11:$DN$1000,96,FALSE)=\"\",\"No\",IF(LEFT(VLOOKUP($G241,$H$11:$DN$1000,96,FALSE),3)=\"The\",EF241,VLOOKUP(VLOOKUP($G241,$H$11:$DN$1000,96,FALSE),DeclMatrix!$A$2:$F$5,VLOOKUP('Enrollment Form'!$B241,DeclMatrix!$A$8:$B$12,2,FALSE),FALSE))))","v":""},{"$f":"IF($A241=\"\",\"\",IF(VLOOKUP($G241,$H$11:$DN$1000,101,FALSE)=\"\",\"No\",IF(LEFT(VLOOKUP($G241,$H$11:$DN$1000,101,FALSE),3)=\"The\",EG241,VLOOKUP(VLOOKUP($G241,$H$11:$DN$1000,101,FALSE),DeclMatrix!$A$2:$F$5,VLOOKUP('Enrollment Form'!$B241,DeclMatrix!$A$8:$B$12,2,FALSE),FALSE))))","v":""},{"$f":"IF($A241=\"\",\"\",IF(VLOOKUP($G241,$H$11:$DN$1000,106,FALSE)=\"\",\"No\",IF(LEFT(VLOOKUP($G241,$H$11:$DN$1000,106,FALSE),3)=\"The\",EH241,VLOOKUP(VLOOKUP($G241,$H$11:$DN$1000,106,FALSE),DeclMatrix!$A$2:$F$5,VLOOKUP('Enrollment Form'!$B241,DeclMatrix!$A$8:$B$12,2,FALSE),FALSE))))","v":""},{"$f":"IF($A241=\"\",\"\",IF(VLOOKUP($G241,$H$11:$DN$1000,111,FALSE)=\"\",\"No\",IF(LEFT(VLOOKUP($G241,$H$11:$DN$1000,111,FALSE),3)=\"The\",EI241,VLOOKUP(VLOOKUP($G241,$H$11:$DN$1000,111,FALSE),DeclMatrix!$A$2:$F$5,VLOOKUP('Enrollment Form'!$B241,DeclMatrix!$A$8:$B$12,2,FALSE),FALSE))))","v":""},"",null,"","","","","","","","","","","",""]
["",{"$nulls":5},"","",{"$nulls":18},"","","","",{"$nulls":30},"","","","",{"$nulls":60},"",{"$f":"IF($A242=\"\",\"\",IF(VLOOKUP($G242,$H$11:$DN$1000,96,FALSE)=\"\",\"No\",IF(LEFT(VLOOKUP($G242,$H$11:$DN$1000,96,FALSE),3)=\"The\",EF242,VLOOKUP(VLOOKUP($G242,$H$11:$DN$1000,96,FALSE),DeclMatrix!$A$2:$F$5,VLOOKUP('Enrollment Form'!$B242,DeclMatrix!$A$8:$B$12,2,FALSE),FALSE))))","v":""},{"$f":"IF($A242=\"\",\"\",IF(VLOOKUP($G242,$H$11:$DN$1000,101,FALSE)=\"\",\"No\",IF(LEFT(VLOOKUP($G242,$H$11:$DN$1000,101,FALSE),3)=\"The\",EG242,VLOOKUP(VLOOKUP($G242,$H$11:$DN$1000,101,FALSE),DeclMatrix!$A$2:$F$5,VLOOKUP('Enrollment Form'!$B242,DeclMatrix!$A$8:$B$12,2,FALSE),FALSE))))","v":""},{"$f":"IF($A242=\"\",\"\",IF(VLOOKUP($G242,$H$11:$DN$1000,106,FALSE)=\"\",\"No\",IF(LEFT(VLOOKUP($G242,$H$11:$DN$1000,106,FALSE),3)=\"The\",EH242,VLOOKUP(VLOOKUP($G242,$H$11:$DN$1000,106,FALSE),DeclMatrix!$A$2:$F$5,VLOOKUP('Enrollment Form'!$B242,DeclMatrix!$A$8:$B$12,2,FALSE),FALSE))))","v":""},{"$f":"IF($A242=\"\",\"\",IF(VLOOKUP($G242,$H$11:$DN$1000,111,FALSE)=\"\",\"No\",IF(LEFT(VLOOKUP($G242,$H$11:$DN$1000,111,FALSE),3)=\"The\",EI242,VLOOKUP(VLOOKUP($G242,$H$11:$DN$1000,111,FALSE),DeclMatrix!$A$2:$F$5,VLOOKUP('Enrollment Form'!$B242,DeclMatrix!$A$8:$B$12,2,FALSE),FALSE))))","v":""},"",null,"","","","","","","","","","","",""]
["",{"$nulls":5},"","",{"$nulls":18},"","","","",{"$nulls":30},"","","","",{"$nulls":60},"",{"$f":"IF($A243=\"\",\"\",IF(VLOOKUP($G243,$H$11:$DN$1000,96,FALSE)=\"\",\"No\",IF(LEFT(VLOOKUP($G243,$H$11:$DN$1000,96,FALSE),3)=\"The\",EF243,VLOOKUP(VLOOKUP($G243,$H$11:$DN$1000,96,FALSE),DeclMatrix!$A$2:$F$5,VLOOKUP('Enrollment Form'!$B243,DeclMatrix!$A$8:$B$12,2,FALSE),FALSE))))","v":""},{"$f":"IF($A243=\"\",\"\",IF(VLOOKUP($G243,$H$11:$DN$1000,101,FALSE)=\"\",\"No\",IF(LEFT(VLOOKUP($G243,$H$11:$DN$1000,101,FALSE),3)=\"The\",EG243,VLOOKUP(VLOOKUP($G243,$H$11:$DN$1000,101,FALSE),DeclMatrix!$A$2:$F$5,VLOOKUP('Enrollment Form'!$B243,DeclMatrix!$A$8:$B$12,2,FALSE),FALSE))))","v":""},{"$f":"IF($A243=\"\",\"\",IF(VLOOKUP($G243,$H$11:$DN$1000,106,FALSE)=\"\",\"No\",IF(LEFT(VLOOKUP($G243,$H$11:$DN$1000,106,FALSE),3)=\"The\",EH243,VLOOKUP(VLOOKUP($G243,$H$11:$DN$1000,106,FALSE),DeclMatrix!$A$2:$F$5,VLOOKUP('Enrollment Form'!$B243,DeclMatrix!$A$8:$B$12,2,FALSE),FALSE))))","v":""},{"$f":"IF($A243=\"\",\"\",IF(VLOOKUP($G243,$H$11:$DN$1000,111,FALSE)=\"\",\"No\",IF(LEFT(VLOOKUP($G243,$H$11:$DN$1000,111,FALSE),3)=\"The\",EI243,VLOOKUP(VLOOKUP($G243,$H$11:$DN$1000,111,FALSE),DeclMatrix!$A$2:$F$5,VLOOKUP('Enrollment Form'!$B243,DeclMatrix!$A$8:$B$12,2,FALSE),FALSE))))","v":""},"",null,"","","","","","","","","","","",""]
["",{"$nulls":5},"","",{"$nulls":18},"","","","",{"$nulls":30},"","","","",{"$nulls":60},"",{"$f":"IF($A244=\"\",\"\",IF(VLOOKUP($G244,$H$11:$DN$1000,96,FALSE)=\"\",\"No\",IF(LEFT(VLOOKUP($G244,$H$11:$DN$1000,96,FALSE),3)=\"The\",EF244,VLOOKUP(VLOOKUP($G244,$H$11:$DN$1000,96,FALSE),DeclMatrix!$A$2:$F$5,VLOOKUP('Enrollment Form'!$B244,DeclMatrix!$A$8:$B$12,2,FALSE),FALSE))))","v":""},{"$f":"IF($A244=\"\",\"\",IF(VLOOKUP($G244,$H$11:$DN$1000,101,FALSE)=\"\",\"No\",IF(LEFT(VLOOKUP($G244,$H$11:$DN$1000,101,FALSE),3)=\"The\",EG244,VLOOKUP(VLOOKUP($G244,$H$11:$DN$1000,101,FALSE),DeclMatrix!$A$2:$F$5,VLOOKUP('Enrollment Form'!$B244,DeclMatrix!$A$8:$B$12,2,FALSE),FALSE))))","v":""},{"$f":"IF($A244=\"\",\"\",IF(VLOOKUP($G244,$H$11:$DN$1000,106,FALSE)=\"\",\"No\",IF(LEFT(VLOOKUP($G244,$H$11:$DN$1000,106,FALSE),3)=\"The\",EH244,VLOOKUP(VLOOKUP($G244,$H$11:$DN$1000,106,FALSE),DeclMatrix!$A$2:$F$5,VLOOKUP('Enrollment Form'!$B244,DeclMatrix!$A$8:$B$12,2,FALSE),FALSE))))","v":""},{"$f":"IF($A244=\"\",\"\",IF(VLOOKUP($G244,$H$11:$DN$1000,111,FALSE)=\"\",\"No\",IF(LEFT(VLOOKUP($G244,$H$11:$DN$1000,111,FALSE),3)=\"The\",EI244,VLOOKUP(VLOOKUP($G244,$H$11:$DN$1000,111,FALSE),DeclMatrix!$A$2:$F$5,VLOOKUP('Enrollment Form'!$B244,DeclMatrix!$A$8:$B$12,2,FALSE),FALSE))))","v":""},"",null,"","","","","","","","","","","",""]
["",{"$nulls":5},"","",{"$nulls":18},"","","","",{"$nulls":30},"","","","",{"$nulls":60},"",{"$f":"IF($A245=\"\",\"\",IF(VLOOKUP($G245,$H$11:$DN$1000,96,FALSE)=\"\",\"No\",IF(LEFT(VLOOKUP($G245,$H$11:$DN$1000,96,FALSE),3)=\"The\",EF245,VLOOKUP(VLOOKUP($G245,$H$11:$DN$1000,96,FALSE),DeclMatrix!$A$2:$F$5,VLOOKUP('Enrollment Form'!$B245,DeclMatrix!$A$8:$B$12,2,FALSE),FALSE))))","v":""},{"$f":"IF($A245=\"\",\"\",IF(VLOOKUP($G245,$H$11:$DN$1000,101,FALSE)=\"\",\"No\",IF(LEFT(VLOOKUP($G245,$H$11:$DN$1000,101,FALSE),3)=\"The\",EG245,VLOOKUP(VLOOKUP($G245,$H$11:$DN$1000,101,FALSE),DeclMatrix!$A$2:$F$5,VLOOKUP('Enrollment Form'!$B245,DeclMatrix!$A$8:$B$12,2,FALSE),FALSE))))","v":""},{"$f":"IF($A245=\"\",\"\",IF(VLOOKUP($G245,$H$11:$DN$1000,106,FALSE)=\"\",\"No\",IF(LEFT(VLOOKUP($G245,$H$11:$DN$1000,106,FALSE),3)=\"The\",EH245,VLOOKUP(VLOOKUP($G245,$H$11:$DN$1000,106,FALSE),DeclMatrix!$A$2:$F$5,VLOOKUP('Enrollment Form'!$B245,DeclMatrix!$A$8:$B$12,2,FALSE),FALSE))))","v":""},{"$f":"IF($A245=\"\",\"\",IF(VLOOKUP($G245,$H$11:$DN$1000,111,FALSE)=\"\",\"No\",IF(LEFT(VLOOKUP($G245,$H$11:$DN$1000,111,FALSE),3)=\"The\",EI245,VLOOKUP(VLOOKUP($G245,$H$11:$DN$1000,111,FALSE),DeclMatrix!$A$2:$F$5,VLOOKUP('Enrollment Form'!$B245,DeclMatrix!$A$8:$B$12,2,FALSE),FALSE))))","v":""},"",null,"","","","","","","","","","","",""]
["",{"$nulls":5},"","",{"$nulls":18},"","","","",{"$nulls":30},"","","","",{"$nulls":60},"",{"$f":"IF($A246=\"\",\"\",IF(VLOOKUP($G246,$H$11:$DN$1000,96,FALSE)=\"\",\"No\",IF(LEFT(VLOOKUP($G246,$H$11:$DN$1000,96,FALSE),3)=\"The\",EF246,VLOOKUP(VLOOKUP($G246,$H$11:$DN$1000,96,FALSE),DeclMatrix!$A$2:$F$5,VLOOKUP('Enrollment Form'!$B246,DeclMatrix!$A$8:$B$12,2,FALSE),FALSE))))","v":""},{"$f":"IF($A246=\"\",\"\",IF(VLOOKUP($G246,$H$11:$DN$1000,101,FALSE)=\"\",\"No\",IF(LEFT(VLOOKUP($G246,$H$11:$DN$1000,101,FALSE),3)=\"The\",EG246,VLOOKUP(VLOOKUP($G246,$H$11:$DN$1000,101,FALSE),DeclMatrix!$A$2:$F$5,VLOOKUP('Enrollment Form'!$B246,DeclMatrix!$A$8:$B$12,2,FALSE),FALSE))))","v":""},{"$f":"IF($A246=\"\",\"\",IF(VLOOKUP($G246,$H$11:$DN$1000,106,FALSE)=\"\",\"No\",IF(LEFT(VLOOKUP($G246,$H$11:$DN$1000,106,FALSE),3)=\"The\",EH246,VLOOKUP(VLOOKUP($G246,$H$11:$DN$1000,106,FALSE),DeclMatrix!$A$2:$F$5,VLOOKUP('Enrollment Form'!$B246,DeclMatrix!$A$8:$B$12,2,FALSE),FALSE))))","v":""},{"$f":"IF($A246=\"\",\"\",IF(VLOOKUP($G246,$H$11:$DN$1000,111,FALSE)=\"\",\"No\",IF(LEFT(VLOOKUP($G246,$H$11:$DN$1000,111,FALSE),3)=\"The\",EI246,VLOOKUP(VLOOKUP($G246,$H$11:$DN$1000,111,FALSE),DeclMatrix!$A$2:$F$5,VLOOKUP('Enrollment Form'!$B246,DeclMatrix!$A$8:$B$12,2,FALSE),FALSE))))","v":""},"",null,"","","","","","","","","","","",""]
["",{"$nulls":5},"","",{"$nulls":18},"","","","",{"$nulls":30},"","","","",{"$nulls":60},"",{"$f":"IF($A247=\"\",\"\",IF(VLOOKUP($G247,$H$11:$DN$1000,96,FALSE)=\"\",\"No\",IF(LEFT(VLOOKUP($G247,$H$11:$DN$1000,96,FALSE),3)=\"The\",EF247,VLOOKUP(VLOOKUP($G247,$H$11:$DN$1000,96,FALSE),DeclMatrix!$A$2:$F$5,VLOOKUP('Enrollment Form'!$B247,DeclMatrix!$A$8:$B$12,2,FALSE),FALSE))))","v":""},{"$f":"IF($A247=\"\",\"\",IF(VLOOKUP($G247,$H$11:$DN$1000,101,FALSE)=\"\",\"No\",IF(LEFT(VLOOKUP($G247,$H$11:$DN$1000,101,FALSE),3)=\"The\",EG247,VLOOKUP(VLOOKUP($G247,$H$11:$DN$1000,101,FALSE),DeclMatrix!$A$2:$F$5,VLOOKUP('Enrollment Form'!$B247,DeclMatrix!$A$8:$B$12,2,FALSE),FALSE))))","v":""},{"$f":"IF($A247=\"\",\"\",IF(VLOOKUP($G247,$H$11:$DN$1000,106,FALSE)=\"\",\"No\",IF(LEFT(VLOOKUP($G247,$H$11:$DN$1000,106,FALSE),3)=\"The\",EH247,VLOOKUP(VLOOKUP($G247,$H$11:$DN$1000,106,FALSE),DeclMatrix!$A$2:$F$5,VLOOKUP('Enrollment Form'!$B247,DeclMatrix!$A$8:$B$12,2,FALSE),FALSE))))","v":""},{"$f":"IF($A247=\"\",\"\",IF(VLOOKUP($G247,$H$11:$DN$1000,111,FALSE)=\"\",\"No\",IF(LEFT(VLOOKUP($G247,$H$11:$DN$1000,111,FALSE),3)=\"The\",EI247,VLOOKUP(VLOOKUP($G247,$H$11:$DN$1000,111,FALSE),DeclMatrix!$A$2:$F$5,VLOOKUP('Enrollment Form'!$B247,DeclMatrix!$A$8:$B$12,2,FALSE),FALSE))))","v":""},"",null,"","","","","","","","","","","",""]
["",{"$nulls":5},"","",{"$nulls":18},"","","","",{"$nulls":30},"","","","",{"$nulls":60},"",{"$f":"IF($A248=\"\",\"\",IF(VLOOKUP($G248,$H$11:$DN$1000,96,FALSE)=\"\",\"No\",IF(LEFT(VLOOKUP($G248,$H$11:$DN$1000,96,FALSE),3)=\"The\",EF248,VLOOKUP(VLOOKUP($G248,$H$11:$DN$1000,96,FALSE),DeclMatrix!$A$2:$F$5,VLOOKUP('Enrollment Form'!$B248,DeclMatrix!$A$8:$B$12,2,FALSE),FALSE))))","v":""},{"$f":"IF($A248=\"\",\"\",IF(VLOOKUP($G248,$H$11:$DN$1000,101,FALSE)=\"\",\"No\",IF(LEFT(VLOOKUP($G248,$H$11:$DN$1000,101,FALSE),3)=\"The\",EG248,VLOOKUP(VLOOKUP($G248,$H$11:$DN$1000,101,FALSE),DeclMatrix!$A$2:$F$5,VLOOKUP('Enrollment Form'!$B248,DeclMatrix!$A$8:$B$12,2,FALSE),FALSE))))","v":""},{"$f":"IF($A248=\"\",\"\",IF(VLOOKUP($G248,$H$11:$DN$1000,106,FALSE)=\"\",\"No\",IF(LEFT(VLOOKUP($G248,$H$11:$DN$1000,106,FALSE),3)=\"The\",EH248,VLOOKUP(VLOOKUP($G248,$H$11:$DN$1000,106,FALSE),DeclMatrix!$A$2:$F$5,VLOOKUP('Enrollment Form'!$B248,DeclMatrix!$A$8:$B$12,2,FALSE),FALSE))))","v":""},{"$f":"IF($A248=\"\",\"\",IF(VLOOKUP($G248,$H$11:$DN$1000,111,FALSE)=\"\",\"No\",IF(LEFT(VLOOKUP($G248,$H$11:$DN$1000,111,FALSE),3)=\"The\",EI248,VLOOKUP(VLOOKUP($G248,$H$11:$DN$1000,111,FALSE),DeclMatrix!$A$2:$F$5,VLOOKUP('Enrollment Form'!$B248,DeclMatrix!$A$8:$B$12,2,FALSE),FALSE))))","v":""},"",null,"","","","","","","","","","","",""]
["",{"$nulls":5},"","",{"$nulls":18},"","","","",{"$nulls":30},"","","","",{"$nulls":60},"",{"$f":"IF($A249=\"\",\"\",IF(VLOOKUP($G249,$H$11:$DN$1000,96,FALSE)=\"\",\"No\",IF(LEFT(VLOOKUP($G249,$H$11:$DN$1000,96,FALSE),3)=\"The\",EF249,VLOOKUP(VLOOKUP($G249,$H$11:$DN$1000,96,FALSE),DeclMatrix!$A$2:$F$5,VLOOKUP('Enrollment Form'!$B249,DeclMatrix!$A$8:$B$12,2,FALSE),FALSE))))","v":""},{"$f":"IF($A249=\"\",\"\",IF(VLOOKUP($G249,$H$11:$DN$1000,101,FALSE)=\"\",\"No\",IF(LEFT(VLOOKUP($G249,$H$11:$DN$1000,101,FALSE),3)=\"The\",EG249,VLOOKUP(VLOOKUP($G249,$H$11:$DN$1000,101,FALSE),DeclMatrix!$A$2:$F$5,VLOOKUP('Enrollment Form'!$B249,DeclMatrix!$A$8:$B$12,2,FALSE),FALSE))))","v":""},{"$f":"IF($A249=\"\",\"\",IF(VLOOKUP($G249,$H$11:$DN$1000,106,FALSE)=\"\",\"No\",IF(LEFT(VLOOKUP($G249,$H$11:$DN$1000,106,FALSE),3)=\"The\",EH249,VLOOKUP(VLOOKUP($G249,$H$11:$DN$1000,106,FALSE),DeclMatrix!$A$2:$F$5,VLOOKUP('Enrollment Form'!$B249,DeclMatrix!$A$8:$B$12,2,FALSE),FALSE))))","v":""},{"$f":"IF($A249=\"\",\"\",IF(VLOOKUP($G249,$H$11:$DN$1000,111,FALSE)=\"\",\"No\",IF(LEFT(VLOOKUP($G249,$H$11:$DN$1000,111,FALSE),3)=\"The\",EI249,VLOOKUP(VLOOKUP($G249,$H$11:$DN$1000,111,FALSE),DeclMatrix!$A$2:$F$5,VLOOKUP('Enrollment Form'!$B249,DeclMatrix!$A$8:$B$12,2,FALSE),FALSE))))","v":""},"",null,"","","","","","","","","","","",""]
["",{"$nulls":5},"","",{"$nulls":18},"","","","",{"$nulls":30},"","","","",{"$nulls":60},"",{"$f":"IF($A250=\"\",\"\",IF(VLOOKUP($G250,$H$11:$DN$1000,96,FALSE)=\"\",\"No\",IF(LEFT(VLOOKUP($G250,$H$11:$DN$1000,96,FALSE),3)=\"The\",EF250,VLOOKUP(VLOOKUP($G250,$H$11:$DN$1000,96,FALSE),DeclMatrix!$A$2:$F$5,VLOOKUP('Enrollment Form'!$B250,DeclMatrix!$A$8:$B$12,2,FALSE),FALSE))))","v":""},{"$f":"IF($A250=\"\",\"\",IF(VLOOKUP($G250,$H$11:$DN$1000,101,FALSE)=\"\",\"No\",IF(LEFT(VLOOKUP($G250,$H$11:$DN$1000,101,FALSE),3)=\"The\",EG250,VLOOKUP(VLOOKUP($G250,$H$11:$DN$1000,101,FALSE),DeclMatrix!$A$2:$F$5,VLOOKUP('Enrollment Form'!$B250,DeclMatrix!$A$8:$B$12,2,FALSE),FALSE))))","v":""},{"$f":"IF($A250=\"\",\"\",IF(VLOOKUP($G250,$H$11:$DN$1000,106,FALSE)=\"\",\"No\",IF(LEFT(VLOOKUP($G250,$H$11:$DN$1000,106,FALSE),3)=\"The\",EH250,VLOOKUP(VLOOKUP($G250,$H$11:$DN$1000,106,FALSE),DeclMatrix!$A$2:$F$5,VLOOKUP('Enrollment Form'!$B250,DeclMatrix!$A$8:$B$12,2,FALSE),FALSE))))","v":""},{"$f":"IF($A250=\"\",\"\",IF(VLOOKUP($G250,$H$11:$DN$1000,111,FALSE)=\"\",\"No\",IF(LEFT(VLOOKUP($G250,$H$11:$DN$1000,111,FALSE),3)=\"The\",EI250,VLOOKUP(VLOOKUP($G250,$H$11:$DN$1000,111,FALSE),DeclMatrix!$A$2:$F$5,VLOOKUP('Enrollment Form'!$B250,DeclMatrix!$A$8:$B$12,2,FALSE),FALSE))))","v":""},"",null,"","","","","","","","","","","",""]
["",{"$nulls":5},"","",{"$nulls":18},"","","","",{"$nulls":30},"","","","",{"$nulls":60},"",{"$f":"IF($A251=\"\",\"\",IF(VLOOKUP($G251,$H$11:$DN$1000,96,FALSE)=\"\",\"No\",IF(LEFT(VLOOKUP($G251,$H$11:$DN$1000,96,FALSE),3)=\"The\",EF251,VLOOKUP(VLOOKUP($G251,$H$11:$DN$1000,96,FALSE),DeclMatrix!$A$2:$F$5,VLOOKUP('Enrollment Form'!$B251,DeclMatrix!$A$8:$B$12,2,FALSE),FALSE))))","v":""},{"$f":"IF($A251=\"\",\"\",IF(VLOOKUP($G251,$H$11:$DN$1000,101,FALSE)=\"\",\"No\",IF(LEFT(VLOOKUP($G251,$H$11:$DN$1000,101,FALSE),3)=\"The\",EG251,VLOOKUP(VLOOKUP($G251,$H$11:$DN$1000,101,FALSE),DeclMatrix!$A$2:$F$5,VLOOKUP('Enrollment Form'!$B251,DeclMatrix!$A$8:$B$12,2,FALSE),FALSE))))","v":""},{"$f":"IF($A251=\"\",\"\",IF(VLOOKUP($G251,$H$11:$DN$1000,106,FALSE)=\"\",\"No\",IF(LEFT(VLOOKUP($G251,$H$11:$DN$1000,106,FALSE),3)=\"The\",EH251,VLOOKUP(VLOOKUP($G251,$H$11:$DN$1000,106,FALSE),DeclMatrix!$A$2:$F$5,VLOOKUP('Enrollment Form'!$B251,DeclMatrix!$A$8:$B$12,2,FALSE),FALSE))))","v":""},{"$f":"IF($A251=\"\",\"\",IF(VLOOKUP($G251,$H$11:$DN$1000,111,FALSE)=\"\",\"No\",IF(LEFT(VLOOKUP($G251,$H$11:$DN$1000,111,FALSE),3)=\"The\",EI251,VLOOKUP(VLOOKUP($G251,$H$11:$DN$1000,111,FALSE),DeclMatrix!$A$2:$F$5,VLOOKUP('Enrollment Form'!$B251,DeclMatrix!$A$8:$B$12,2,FALSE),FALSE))))","v":""},"",null,"","","","","","","","","","","",""]
["",{"$nulls":5},"","",{"$nulls":18},"","","","",{"$nulls":30},"","","","",{"$nulls":60},"",{"$f":"IF($A252=\"\",\"\",IF(VLOOKUP($G252,$H$11:$DN$1000,96,FALSE)=\"\",\"No\",IF(LEFT(VLOOKUP($G252,$H$11:$DN$1000,96,FALSE),3)=\"The\",EF252,VLOOKUP(VLOOKUP($G252,$H$11:$DN$1000,96,FALSE),DeclMatrix!$A$2:$F$5,VLOOKUP('Enrollment Form'!$B252,DeclMatrix!$A$8:$B$12,2,FALSE),FALSE))))","v":""},{"$f":"IF($A252=\"\",\"\",IF(VLOOKUP($G252,$H$11:$DN$1000,101,FALSE)=\"\",\"No\",IF(LEFT(VLOOKUP($G252,$H$11:$DN$1000,101,FALSE),3)=\"The\",EG252,VLOOKUP(VLOOKUP($G252,$H$11:$DN$1000,101,FALSE),DeclMatrix!$A$2:$F$5,VLOOKUP('Enrollment Form'!$B252,DeclMatrix!$A$8:$B$12,2,FALSE),FALSE))))","v":""},{"$f":"IF($A252=\"\",\"\",IF(VLOOKUP($G252,$H$11:$DN$1000,106,FALSE)=\"\",\"No\",IF(LEFT(VLOOKUP($G252,$H$11:$DN$1000,106,FALSE),3)=\"The\",EH252,VLOOKUP(VLOOKUP($G252,$H$11:$DN$1000,106,FALSE),DeclMatrix!$A$2:$F$5,VLOOKUP('Enrollment Form'!$B252,DeclMatrix!$A$8:$B$12,2,FALSE),FALSE))))","v":""},{"$f":"IF($A252=\"\",\"\",IF(VLOOKUP($G252,$H$11:$DN$1000,111,FALSE)=\"\",\"No\",IF(LEFT(VLOOKUP($G252,$H$11:$DN$1000,111,FALSE),3)=\"The\",EI252,VLOOKUP(VLOOKUP($G252,$H$11:$DN$1000,111,FALSE),DeclMatrix!$A$2:$F$5,VLOOKUP('Enrollment Form'!$B252,DeclMatrix!$A$8:$B$12,2,FALSE),FALSE))))","v":""},"",null,"","","","","","","","","","","",""]
["",{"$nulls":5},"","",{"$nulls":18},"","","","",{"$nulls":30},"","","","",{"$nulls":60},"",{"$f":"IF($A253=\"\",\"\",IF(VLOOKUP($G253,$H$11:$DN$1000,96,FALSE)=\"\",\"No\",IF(LEFT(VLOOKUP($G253,$H$11:$DN$1000,96,FALSE),3)=\"The\",EF253,VLOOKUP(VLOOKUP($G253,$H$11:$DN$1000,96,FALSE),DeclMatrix!$A$2:$F$5,VLOOKUP('Enrollment Form'!$B253,DeclMatrix!$A$8:$B$12,2,FALSE),FALSE))))","v":""},{"$f":"IF($A253=\"\",\"\",IF(VLOOKUP($G253,$H$11:$DN$1000,101,FALSE)=\"\",\"No\",IF(LEFT(VLOOKUP($G253,$H$11:$DN$1000,101,FALSE),3)=\"The\",EG253,VLOOKUP(VLOOKUP($G253,$H$11:$DN$1000,101,FALSE),DeclMatrix!$A$2:$F$5,VLOOKUP('Enrollment Form'!$B253,DeclMatrix!$A$8:$B$12,2,FALSE),FALSE))))","v":""},{"$f":"IF($A253=\"\",\"\",IF(VLOOKUP($G253,$H$11:$DN$1000,106,FALSE)=\"\",\"No\",IF(LEFT(VLOOKUP($G253,$H$11:$DN$1000,106,FALSE),3)=\"The\",EH253,VLOOKUP(VLOOKUP($G253,$H$11:$DN$1000,106,FALSE),DeclMatrix!$A$2:$F$5,VLOOKUP('Enrollment Form'!$B253,DeclMatrix!$A$8:$B$12,2,FALSE),FALSE))))","v":""},{"$f":"IF($A253=\"\",\"\",IF(VLOOKUP($G253,$H$11:$DN$1000,111,FALSE)=\"\",\"No\",IF(LEFT(VLOOKUP($G253,$H$11:$DN$1000,111,FALSE),3)=\"The\",EI253,VLOOKUP(VLOOKUP($G253,$H$11:$DN$1000,111,FALSE),DeclMatrix!$A$2:$F$5,VLOOKUP('Enrollment Form'!$B253,DeclMatrix!$A$8:$B$12,2,FALSE),FALSE))))","v":""},"",null,"","","","","","","","","","","",""]
["",{"$nulls":5},"","",{"$nulls":18},"","","","",{"$nulls":30},"","","","",{"$nulls":60},"",{"$f":"IF($A254=\"\",\"\",IF(VLOOKUP($G254,$H$11:$DN$1000,96,FALSE)=\"\",\"No\",IF(LEFT(VLOOKUP($G254,$H$11:$DN$1000,96,FALSE),3)=\"The\",EF254,VLOOKUP(VLOOKUP($G254,$H$11:$DN$1000,96,FALSE),DeclMatrix!$A$2:$F$5,VLOOKUP('Enrollment Form'!$B254,DeclMatrix!$A$8:$B$12,2,FALSE),FALSE))))","v":""},{"$f":"IF($A254=\"\",\"\",IF(VLOOKUP($G254,$H$11:$DN$1000,101,FALSE)=\"\",\"No\",IF(LEFT(VLOOKUP($G254,$H$11:$DN$1000,101,FALSE),3)=\"The\",EG254,VLOOKUP(VLOOKUP($G254,$H$11:$DN$1000,101,FALSE),DeclMatrix!$A$2:$F$5,VLOOKUP('Enrollment Form'!$B254,DeclMatrix!$A$8:$B$12,2,FALSE),FALSE))))","v":""},{"$f":"IF($A254=\"\",\"\",IF(VLOOKUP($G254,$H$11:$DN$1000,106,FALSE)=\"\",\"No\",IF(LEFT(VLOOKUP($G254,$H$11:$DN$1000,106,FALSE),3)=\"The\",EH254,VLOOKUP(VLOOKUP($G254,$H$11:$DN$1000,106,FALSE),DeclMatrix!$A$2:$F$5,VLOOKUP('Enrollment Form'!$B254,DeclMatrix!$A$8:$B$12,2,FALSE),FALSE))))","v":""},{"$f":"IF($A254=\"\",\"\",IF(VLOOKUP($G254,$H$11:$DN$1000,111,FALSE)=\"\",\"No\",IF(LEFT(VLOOKUP($G254,$H$11:$DN$1000,111,FALSE),3)=\"The\",EI254,VLOOKUP(VLOOKUP($G254,$H$11:$DN$1000,111,FALSE),DeclMatrix!$A$2:$F$5,VLOOKUP('Enrollment Form'!$B254,DeclMatrix!$A$8:$B$12,2,FALSE),FALSE))))","v":""},"",null,"","","","","","","","","","","",""]
["",{"$nulls":5},"","",{"$nulls":18},"","","","",{"$nulls":30},"","","","",{"$nulls":60},"",{"$f":"IF($A255=\"\",\"\",IF(VLOOKUP($G255,$H$11:$DN$1000,96,FALSE)=\"\",\"No\",IF(LEFT(VLOOKUP($G255,$H$11:$DN$1000,96,FALSE),3)=\"The\",EF255,VLOOKUP(VLOOKUP($G255,$H$11:$DN$1000,96,FALSE),DeclMatrix!$A$2:$F$5,VLOOKUP('Enrollment Form'!$B255,DeclMatrix!$A$8:$B$12,2,FALSE),FALSE))))","v":""},{"$f":"IF($A255=\"\",\"\",IF(VLOOKUP($G255,$H$11:$DN$1000,101,FALSE)=\"\",\"No\",IF(LEFT(VLOOKUP($G255,$H$11:$DN$1000,101,FALSE),3)=\"The\",EG255,VLOOKUP(VLOOKUP($G255,$H$11:$DN$1000,101,FALSE),DeclMatrix!$A$2:$F$5,VLOOKUP('Enrollment Form'!$B255,DeclMatrix!$A$8:$B$12,2,FALSE),FALSE))))","v":""},{"$f":"IF($A255=\"\",\"\",IF(VLOOKUP($G255,$H$11:$DN$1000,106,FALSE)=\"\",\"No\",IF(LEFT(VLOOKUP($G255,$H$11:$DN$1000,106,FALSE),3)=\"The\",EH255,VLOOKUP(VLOOKUP($G255,$H$11:$DN$1000,106,FALSE),DeclMatrix!$A$2:$F$5,VLOOKUP('Enrollment Form'!$B255,DeclMatrix!$A$8:$B$12,2,FALSE),FALSE))))","v":""},{"$f":"IF($A255=\"\",\"\",IF(VLOOKUP($G255,$H$11:$DN$1000,111,FALSE)=\"\",\"No\",IF(LEFT(VLOOKUP($G255,$H$11:$DN$1000,111,FALSE),3)=\"The\",EI255,VLOOKUP(VLOOKUP($G255,$H$11:$DN$1000,111,FALSE),DeclMatrix!$A$2:$F$5,VLOOKUP('Enrollment Form'!$B255,DeclMatrix!$A$8:$B$12,2,FALSE),FALSE))))","v":""},"",null,"","","","","","","","","","","",""]
["",{"$nulls":5},"","",{"$nulls":18},"","","","",{"$nulls":30},"","","","",{"$nulls":60},"",{"$f":"IF($A256=\"\",\"\",IF(VLOOKUP($G256,$H$11:$DN$1000,96,FALSE)=\"\",\"No\",IF(LEFT(VLOOKUP($G256,$H$11:$DN$1000,96,FALSE),3)=\"The\",EF256,VLOOKUP(VLOOKUP($G256,$H$11:$DN$1000,96,FALSE),DeclMatrix!$A$2:$F$5,VLOOKUP('Enrollment Form'!$B256,DeclMatrix!$A$8:$B$12,2,FALSE),FALSE))))","v":""},{"$f":"IF($A256=\"\",\"\",IF(VLOOKUP($G256,$H$11:$DN$1000,101,FALSE)=\"\",\"No\",IF(LEFT(VLOOKUP($G256,$H$11:$DN$1000,101,FALSE),3)=\"The\",EG256,VLOOKUP(VLOOKUP($G256,$H$11:$DN$1000,101,FALSE),DeclMatrix!$A$2:$F$5,VLOOKUP('Enrollment Form'!$B256,DeclMatrix!$A$8:$B$12,2,FALSE),FALSE))))","v":""},{"$f":"IF($A256=\"\",\"\",IF(VLOOKUP($G256,$H$11:$DN$1000,106,FALSE)=\"\",\"No\",IF(LEFT(VLOOKUP($G256,$H$11:$DN$1000,106,FALSE),3)=\"The\",EH256,VLOOKUP(VLOOKUP($G256,$H$11:$DN$1000,106,FALSE),DeclMatrix!$A$2:$F$5,VLOOKUP('Enrollment Form'!$B256,DeclMatrix!$A$8:$B$12,2,FALSE),FALSE))))","v":""},{"$f":"IF($A256=\"\",\"\",IF(VLOOKUP($G256,$H$11:$DN$1000,111,FALSE)=\"\",\"No\",IF(LEFT(VLOOKUP($G256,$H$11:$DN$1000,111,FALSE),3)=\"The\",EI256,VLOOKUP(VLOOKUP($G256,$H$11:$DN$1000,111,FALSE),DeclMatrix!$A$2:$F$5,VLOOKUP('Enrollment Form'!$B256,DeclMatrix!$A$8:$B$12,2,FALSE),FALSE))))","v":""},"",null,"","","","","","","","","","","",""]
["",{"$nulls":5},"","",{"$nulls":18},"","","","",{"$nulls":30},"","","","",{"$nulls":60},"",{"$f":"IF($A257=\"\",\"\",IF(VLOOKUP($G257,$H$11:$DN$1000,96,FALSE)=\"\",\"No\",IF(LEFT(VLOOKUP($G257,$H$11:$DN$1000,96,FALSE),3)=\"The\",EF257,VLOOKUP(VLOOKUP($G257,$H$11:$DN$1000,96,FALSE),DeclMatrix!$A$2:$F$5,VLOOKUP('Enrollment Form'!$B257,DeclMatrix!$A$8:$B$12,2,FALSE),FALSE))))","v":""},{"$f":"IF($A257=\"\",\"\",IF(VLOOKUP($G257,$H$11:$DN$1000,101,FALSE)=\"\",\"No\",IF(LEFT(VLOOKUP($G257,$H$11:$DN$1000,101,FALSE),3)=\"The\",EG257,VLOOKUP(VLOOKUP($G257,$H$11:$DN$1000,101,FALSE),DeclMatrix!$A$2:$F$5,VLOOKUP('Enrollment Form'!$B257,DeclMatrix!$A$8:$B$12,2,FALSE),FALSE))))","v":""},{"$f":"IF($A257=\"\",\"\",IF(VLOOKUP($G257,$H$11:$DN$1000,106,FALSE)=\"\",\"No\",IF(LEFT(VLOOKUP($G257,$H$11:$DN$1000,106,FALSE),3)=\"The\",EH257,VLOOKUP(VLOOKUP($G257,$H$11:$DN$1000,106,FALSE),DeclMatrix!$A$2:$F$5,VLOOKUP('Enrollment Form'!$B257,DeclMatrix!$A$8:$B$12,2,FALSE),FALSE))))","v":""},{"$f":"IF($A257=\"\",\"\",IF(VLOOKUP($G257,$H$11:$DN$1000,111,FALSE)=\"\",\"No\",IF(LEFT(VLOOKUP($G257,$H$11:$DN$1000,111,FALSE),3)=\"The\",EI257,VLOOKUP(VLOOKUP($G257,$H$11:$DN$1000,111,FALSE),DeclMatrix!$A$2:$F$5,VLOOKUP('Enrollment Form'!$B257,DeclMatrix!$A$8:$B$12,2,FALSE),FALSE))))","v":""},"",null,"","","","","","","","","","","",""]
["",{"$nulls":5},"","",{"$nulls":18},"","","","",{"$nulls":30},"","","","",{"$nulls":60},"",{"$f":"IF($A258=\"\",\"\",IF(VLOOKUP($G258,$H$11:$DN$1000,96,FALSE)=\"\",\"No\",IF(LEFT(VLOOKUP($G258,$H$11:$DN$1000,96,FALSE),3)=\"The\",EF258,VLOOKUP(VLOOKUP($G258,$H$11:$DN$1000,96,FALSE),DeclMatrix!$A$2:$F$5,VLOOKUP('Enrollment Form'!$B258,DeclMatrix!$A$8:$B$12,2,FALSE),FALSE))))","v":""},{"$f":"IF($A258=\"\",\"\",IF(VLOOKUP($G258,$H$11:$DN$1000,101,FALSE)=\"\",\"No\",IF(LEFT(VLOOKUP($G258,$H$11:$DN$1000,101,FALSE),3)=\"The\",EG258,VLOOKUP(VLOOKUP($G258,$H$11:$DN$1000,101,FALSE),DeclMatrix!$A$2:$F$5,VLOOKUP('Enrollment Form'!$B258,DeclMatrix!$A$8:$B$12,2,FALSE),FALSE))))","v":""},{"$f":"IF($A258=\"\",\"\",IF(VLOOKUP($G258,$H$11:$DN$1000,106,FALSE)=\"\",\"No\",IF(LEFT(VLOOKUP($G258,$H$11:$DN$1000,106,FALSE),3)=\"The\",EH258,VLOOKUP(VLOOKUP($G258,$H$11:$DN$1000,106,FALSE),DeclMatrix!$A$2:$F$5,VLOOKUP('Enrollment Form'!$B258,DeclMatrix!$A$8:$B$12,2,FALSE),FALSE))))","v":""},{"$f":"IF($A258=\"\",\"\",IF(VLOOKUP($G258,$H$11:$DN$1000,111,FALSE)=\"\",\"No\",IF(LEFT(VLOOKUP($G258,$H$11:$DN$1000,111,FALSE),3)=\"The\",EI258,VLOOKUP(VLOOKUP($G258,$H$11:$DN$1000,111,FALSE),DeclMatrix!$A$2:$F$5,VLOOKUP('Enrollment Form'!$B258,DeclMatrix!$A$8:$B$12,2,FALSE),FALSE))))","v":""},"",null,"","","","","","","","","","","",""]
["",{"$nulls":5},"","",{"$nulls":18},"","","","",{"$nulls":30},"","","","",{"$nulls":60},"",{"$f":"IF($A259=\"\",\"\",IF(VLOOKUP($G259,$H$11:$DN$1000,96,FALSE)=\"\",\"No\",IF(LEFT(VLOOKUP($G259,$H$11:$DN$1000,96,FALSE),3)=\"The\",EF259,VLOOKUP(VLOOKUP($G259,$H$11:$DN$1000,96,FALSE),DeclMatrix!$A$2:$F$5,VLOOKUP('Enrollment Form'!$B259,DeclMatrix!$A$8:$B$12,2,FALSE),FALSE))))","v":""},{"$f":"IF($A259=\"\",\"\",IF(VLOOKUP($G259,$H$11:$DN$1000,101,FALSE)=\"\",\"No\",IF(LEFT(VLOOKUP($G259,$H$11:$DN$1000,101,FALSE),3)=\"The\",EG259,VLOOKUP(VLOOKUP($G259,$H$11:$DN$1000,101,FALSE),DeclMatrix!$A$2:$F$5,VLOOKUP('Enrollment Form'!$B259,DeclMatrix!$A$8:$B$12,2,FALSE),FALSE))))","v":""},{"$f":"IF($A259=\"\",\"\",IF(VLOOKUP($G259,$H$11:$DN$1000,106,FALSE)=\"\",\"No\",IF(LEFT(VLOOKUP($G259,$H$11:$DN$1000,106,FALSE),3)=\"The\",EH259,VLOOKUP(VLOOKUP($G259,$H$11:$DN$1000,106,FALSE),DeclMatrix!$A$2:$F$5,VLOOKUP('Enrollment Form'!$B259,DeclMatrix!$A$8:$B$12,2,FALSE),FALSE))))","v":""},{"$f":"IF($A259=\"\",\"\",IF(VLOOKUP($G259,$H$11:$DN$1000,111,FALSE)=\"\",\"No\",IF(LEFT(VLOOKUP($G259,$H$11:$DN$1000,111,FALSE),3)=\"The\",EI259,VLOOKUP(VLOOKUP($G259,$H$11:$DN$1000,111,FALSE),DeclMatrix!$A$2:$F$5,VLOOKUP('Enrollment Form'!$B259,DeclMatrix!$A$8:$B$12,2,FALSE),FALSE))))","v":""},"",null,"","","","","","","","","","","",""]
["",{"$nulls":5},"","",{"$nulls":18},"","","","",{"$nulls":30},"","","","",{"$nulls":60},"",{"$f":"IF($A260=\"\",\"\",IF(VLOOKUP($G260,$H$11:$DN$1000,96,FALSE)=\"\",\"No\",IF(LEFT(VLOOKUP($G260,$H$11:$DN$1000,96,FALSE),3)=\"The\",EF260,VLOOKUP(VLOOKUP($G260,$H$11:$DN$1000,96,FALSE),DeclMatrix!$A$2:$F$5,VLOOKUP('Enrollment Form'!$B260,DeclMatrix!$A$8:$B$12,2,FALSE),FALSE))))","v":""},{"$f":"IF($A260=\"\",\"\",IF(VLOOKUP($G260,$H$11:$DN$1000,101,FALSE)=\"\",\"No\",IF(LEFT(VLOOKUP($G260,$H$11:$DN$1000,101,FALSE),3)=\"The\",EG260,VLOOKUP(VLOOKUP($G260,$H$11:$DN$1000,101,FALSE),DeclMatrix!$A$2:$F$5,VLOOKUP('Enrollment Form'!$B260,DeclMatrix!$A$8:$B$12,2,FALSE),FALSE))))","v":""},{"$f":"IF($A260=\"\",\"\",IF(VLOOKUP($G260,$H$11:$DN$1000,106,FALSE)=\"\",\"No\",IF(LEFT(VLOOKUP($G260,$H$11:$DN$1000,106,FALSE),3)=\"The\",EH260,VLOOKUP(VLOOKUP($G260,$H$11:$DN$1000,106,FALSE),DeclMatrix!$A$2:$F$5,VLOOKUP('Enrollment Form'!$B260,DeclMatrix!$A$8:$B$12,2,FALSE),FALSE))))","v":""},{"$f":"IF($A260=\"\",\"\",IF(VLOOKUP($G260,$H$11:$DN$1000,111,FALSE)=\"\",\"No\",IF(LEFT(VLOOKUP($G260,$H$11:$DN$1000,111,FALSE),3)=\"The\",EI260,VLOOKUP(VLOOKUP($G260,$H$11:$DN$1000,111,FALSE),DeclMatrix!$A$2:$F$5,VLOOKUP('Enrollment Form'!$B260,DeclMatrix!$A$8:$B$12,2,FALSE),FALSE))))","v":""},"",null,"","","","","","","","","","","",""]
["",{"$nulls":5},"","",{"$nulls":18},"","","","",{"$nulls":30},"","","","",{"$nulls":60},"",{"$f":"IF($A261=\"\",\"\",IF(VLOOKUP($G261,$H$11:$DN$1000,96,FALSE)=\"\",\"No\",IF(LEFT(VLOOKUP($G261,$H$11:$DN$1000,96,FALSE),3)=\"The\",EF261,VLOOKUP(VLOOKUP($G261,$H$11:$DN$1000,96,FALSE),DeclMatrix!$A$2:$F$5,VLOOKUP('Enrollment Form'!$B261,DeclMatrix!$A$8:$B$12,2,FALSE),FALSE))))","v":""},{"$f":"IF($A261=\"\",\"\",IF(VLOOKUP($G261,$H$11:$DN$1000,101,FALSE)=\"\",\"No\",IF(LEFT(VLOOKUP($G261,$H$11:$DN$1000,101,FALSE),3)=\"The\",EG261,VLOOKUP(VLOOKUP($G261,$H$11:$DN$1000,101,FALSE),DeclMatrix!$A$2:$F$5,VLOOKUP('Enrollment Form'!$B261,DeclMatrix!$A$8:$B$12,2,FALSE),FALSE))))","v":""},{"$f":"IF($A261=\"\",\"\",IF(VLOOKUP($G261,$H$11:$DN$1000,106,FALSE)=\"\",\"No\",IF(LEFT(VLOOKUP($G261,$H$11:$DN$1000,106,FALSE),3)=\"The\",EH261,VLOOKUP(VLOOKUP($G261,$H$11:$DN$1000,106,FALSE),DeclMatrix!$A$2:$F$5,VLOOKUP('Enrollment Form'!$B261,DeclMatrix!$A$8:$B$12,2,FALSE),FALSE))))","v":""},{"$f":"IF($A261=\"\",\"\",IF(VLOOKUP($G261,$H$11:$DN$1000,111,FALSE)=\"\",\"No\",IF(LEFT(VLOOKUP($G261,$H$11:$DN$1000,111,FALSE),3)=\"The\",EI261,VLOOKUP(VLOOKUP($G261,$H$11:$DN$1000,111,FALSE),DeclMatrix!$A$2:$F$5,VLOOKUP('Enrollment Form'!$B261,DeclMatrix!$A$8:$B$12,2,FALSE),FALSE))))","v":""},"",null,"","","","","","","","","","","",""]
["",{"$nulls":5},"","",{"$nulls":18},"","","","",{"$nulls":30},"","","","",{"$nulls":60},"",{"$f":"IF($A262=\"\",\"\",IF(VLOOKUP($G262,$H$11:$DN$1000,96,FALSE)=\"\",\"No\",IF(LEFT(VLOOKUP($G262,$H$11:$DN$1000,96,FALSE),3)=\"The\",EF262,VLOOKUP(VLOOKUP($G262,$H$11:$DN$1000,96,FALSE),DeclMatrix!$A$2:$F$5,VLOOKUP('Enrollment Form'!$B262,DeclMatrix!$A$8:$B$12,2,FALSE),FALSE))))","v":""},{"$f":"IF($A262=\"\",\"\",IF(VLOOKUP($G262,$H$11:$DN$1000,101,FALSE)=\"\",\"No\",IF(LEFT(VLOOKUP($G262,$H$11:$DN$1000,101,FALSE),3)=\"The\",EG262,VLOOKUP(VLOOKUP($G262,$H$11:$DN$1000,101,FALSE),DeclMatrix!$A$2:$F$5,VLOOKUP('Enrollment Form'!$B262,DeclMatrix!$A$8:$B$12,2,FALSE),FALSE))))","v":""},{"$f":"IF($A262=\"\",\"\",IF(VLOOKUP($G262,$H$11:$DN$1000,106,FALSE)=\"\",\"No\",IF(LEFT(VLOOKUP($G262,$H$11:$DN$1000,106,FALSE),3)=\"The\",EH262,VLOOKUP(VLOOKUP($G262,$H$11:$DN$1000,106,FALSE),DeclMatrix!$A$2:$F$5,VLOOKUP('Enrollment Form'!$B262,DeclMatrix!$A$8:$B$12,2,FALSE),FALSE))))","v":""},{"$f":"IF($A262=\"\",\"\",IF(VLOOKUP($G262,$H$11:$DN$1000,111,FALSE)=\"\",\"No\",IF(LEFT(VLOOKUP($G262,$H$11:$DN$1000,111,FALSE),3)=\"The\",EI262,VLOOKUP(VLOOKUP($G262,$H$11:$DN$1000,111,FALSE),DeclMatrix!$A$2:$F$5,VLOOKUP('Enrollment Form'!$B262,DeclMatrix!$A$8:$B$12,2,FALSE),FALSE))))","v":""},"",null,"","","","","","","","","","","",""]
["",{"$nulls":5},"","",{"$nulls":18},"","","","",{"$nulls":30},"","","","",{"$nulls":60},"",{"$f":"IF($A263=\"\",\"\",IF(VLOOKUP($G263,$H$11:$DN$1000,96,FALSE)=\"\",\"No\",IF(LEFT(VLOOKUP($G263,$H$11:$DN$1000,96,FALSE),3)=\"The\",EF263,VLOOKUP(VLOOKUP($G263,$H$11:$DN$1000,96,FALSE),DeclMatrix!$A$2:$F$5,VLOOKUP('Enrollment Form'!$B263,DeclMatrix!$A$8:$B$12,2,FALSE),FALSE))))","v":""},{"$f":"IF($A263=\"\",\"\",IF(VLOOKUP($G263,$H$11:$DN$1000,101,FALSE)=\"\",\"No\",IF(LEFT(VLOOKUP($G263,$H$11:$DN$1000,101,FALSE),3)=\"The\",EG263,VLOOKUP(VLOOKUP($G263,$H$11:$DN$1000,101,FALSE),DeclMatrix!$A$2:$F$5,VLOOKUP('Enrollment Form'!$B263,DeclMatrix!$A$8:$B$12,2,FALSE),FALSE))))","v":""},{"$f":"IF($A263=\"\",\"\",IF(VLOOKUP($G263,$H$11:$DN$1000,106,FALSE)=\"\",\"No\",IF(LEFT(VLOOKUP($G263,$H$11:$DN$1000,106,FALSE),3)=\"The\",EH263,VLOOKUP(VLOOKUP($G263,$H$11:$DN$1000,106,FALSE),DeclMatrix!$A$2:$F$5,VLOOKUP('Enrollment Form'!$B263,DeclMatrix!$A$8:$B$12,2,FALSE),FALSE))))","v":""},{"$f":"IF($A263=\"\",\"\",IF(VLOOKUP($G263,$H$11:$DN$1000,111,FALSE)=\"\",\"No\",IF(LEFT(VLOOKUP($G263,$H$11:$DN$1000,111,FALSE),3)=\"The\",EI263,VLOOKUP(VLOOKUP($G263,$H$11:$DN$1000,111,FALSE),DeclMatrix!$A$2:$F$5,VLOOKUP('Enrollment Form'!$B263,DeclMatrix!$A$8:$B$12,2,FALSE),FALSE))))","v":""},"",null,"","","","","","","","","","","",""]
["",{"$nulls":5},"","",{"$nulls":18},"","","","",{"$nulls":30},"","","","",{"$nulls":60},"",{"$f":"IF($A264=\"\",\"\",IF(VLOOKUP($G264,$H$11:$DN$1000,96,FALSE)=\"\",\"No\",IF(LEFT(VLOOKUP($G264,$H$11:$DN$1000,96,FALSE),3)=\"The\",EF264,VLOOKUP(VLOOKUP($G264,$H$11:$DN$1000,96,FALSE),DeclMatrix!$A$2:$F$5,VLOOKUP('Enrollment Form'!$B264,DeclMatrix!$A$8:$B$12,2,FALSE),FALSE))))","v":""},{"$f":"IF($A264=\"\",\"\",IF(VLOOKUP($G264,$H$11:$DN$1000,101,FALSE)=\"\",\"No\",IF(LEFT(VLOOKUP($G264,$H$11:$DN$1000,101,FALSE),3)=\"The\",EG264,VLOOKUP(VLOOKUP($G264,$H$11:$DN$1000,101,FALSE),DeclMatrix!$A$2:$F$5,VLOOKUP('Enrollment Form'!$B264,DeclMatrix!$A$8:$B$12,2,FALSE),FALSE))))","v":""},{"$f":"IF($A264=\"\",\"\",IF(VLOOKUP($G264,$H$11:$DN$1000,106,FALSE)=\"\",\"No\",IF(LEFT(VLOOKUP($G264,$H$11:$DN$1000,106,FALSE),3)=\"The\",EH264,VLOOKUP(VLOOKUP($G264,$H$11:$DN$1000,106,FALSE),DeclMatrix!$A$2:$F$5,VLOOKUP('Enrollment Form'!$B264,DeclMatrix!$A$8:$B$12,2,FALSE),FALSE))))","v":""},{"$f":"IF($A264=\"\",\"\",IF(VLOOKUP($G264,$H$11:$DN$1000,111,FALSE)=\"\",\"No\",IF(LEFT(VLOOKUP($G264,$H$11:$DN$1000,111,FALSE),3)=\"The\",EI264,VLOOKUP(VLOOKUP($G264,$H$11:$DN$1000,111,FALSE),DeclMatrix!$A$2:$F$5,VLOOKUP('Enrollment Form'!$B264,DeclMatrix!$A$8:$B$12,2,FALSE),FALSE))))","v":""},"",null,"","","","","","","","","","","",""]
["",{"$nulls":5},"","",{"$nulls":18},"","","","",{"$nulls":30},"","","","",{"$nulls":60},"",{"$f":"IF($A265=\"\",\"\",IF(VLOOKUP($G265,$H$11:$DN$1000,96,FALSE)=\"\",\"No\",IF(LEFT(VLOOKUP($G265,$H$11:$DN$1000,96,FALSE),3)=\"The\",EF265,VLOOKUP(VLOOKUP($G265,$H$11:$DN$1000,96,FALSE),DeclMatrix!$A$2:$F$5,VLOOKUP('Enrollment Form'!$B265,DeclMatrix!$A$8:$B$12,2,FALSE),FALSE))))","v":""},{"$f":"IF($A265=\"\",\"\",IF(VLOOKUP($G265,$H$11:$DN$1000,101,FALSE)=\"\",\"No\",IF(LEFT(VLOOKUP($G265,$H$11:$DN$1000,101,FALSE),3)=\"The\",EG265,VLOOKUP(VLOOKUP($G265,$H$11:$DN$1000,101,FALSE),DeclMatrix!$A$2:$F$5,VLOOKUP('Enrollment Form'!$B265,DeclMatrix!$A$8:$B$12,2,FALSE),FALSE))))","v":""},{"$f":"IF($A265=\"\",\"\",IF(VLOOKUP($G265,$H$11:$DN$1000,106,FALSE)=\"\",\"No\",IF(LEFT(VLOOKUP($G265,$H$11:$DN$1000,106,FALSE),3)=\"The\",EH265,VLOOKUP(VLOOKUP($G265,$H$11:$DN$1000,106,FALSE),DeclMatrix!$A$2:$F$5,VLOOKUP('Enrollment Form'!$B265,DeclMatrix!$A$8:$B$12,2,FALSE),FALSE))))","v":""},{"$f":"IF($A265=\"\",\"\",IF(VLOOKUP($G265,$H$11:$DN$1000,111,FALSE)=\"\",\"No\",IF(LEFT(VLOOKUP($G265,$H$11:$DN$1000,111,FALSE),3)=\"The\",EI265,VLOOKUP(VLOOKUP($G265,$H$11:$DN$1000,111,FALSE),DeclMatrix!$A$2:$F$5,VLOOKUP('Enrollment Form'!$B265,DeclMatrix!$A$8:$B$12,2,FALSE),FALSE))))","v":""},"",null,"","","","","","","","","","","",""]
["",{"$nulls":5},"","",{"$nulls":18},"","","","",{"$nulls":30},"","","","",{"$nulls":60},"",{"$f":"IF($A266=\"\",\"\",IF(VLOOKUP($G266,$H$11:$DN$1000,96,FALSE)=\"\",\"No\",IF(LEFT(VLOOKUP($G266,$H$11:$DN$1000,96,FALSE),3)=\"The\",EF266,VLOOKUP(VLOOKUP($G266,$H$11:$DN$1000,96,FALSE),DeclMatrix!$A$2:$F$5,VLOOKUP('Enrollment Form'!$B266,DeclMatrix!$A$8:$B$12,2,FALSE),FALSE))))","v":""},{"$f":"IF($A266=\"\",\"\",IF(VLOOKUP($G266,$H$11:$DN$1000,101,FALSE)=\"\",\"No\",IF(LEFT(VLOOKUP($G266,$H$11:$DN$1000,101,FALSE),3)=\"The\",EG266,VLOOKUP(VLOOKUP($G266,$H$11:$DN$1000,101,FALSE),DeclMatrix!$A$2:$F$5,VLOOKUP('Enrollment Form'!$B266,DeclMatrix!$A$8:$B$12,2,FALSE),FALSE))))","v":""},{"$f":"IF($A266=\"\",\"\",IF(VLOOKUP($G266,$H$11:$DN$1000,106,FALSE)=\"\",\"No\",IF(LEFT(VLOOKUP($G266,$H$11:$DN$1000,106,FALSE),3)=\"The\",EH266,VLOOKUP(VLOOKUP($G266,$H$11:$DN$1000,106,FALSE),DeclMatrix!$A$2:$F$5,VLOOKUP('Enrollment Form'!$B266,DeclMatrix!$A$8:$B$12,2,FALSE),FALSE))))","v":""},{"$f":"IF($A266=\"\",\"\",IF(VLOOKUP($G266,$H$11:$DN$1000,111,FALSE)=\"\",\"No\",IF(LEFT(VLOOKUP($G266,$H$11:$DN$1000,111,FALSE),3)=\"The\",EI266,VLOOKUP(VLOOKUP($G266,$H$11:$DN$1000,111,FALSE),DeclMatrix!$A$2:$F$5,VLOOKUP('Enrollment Form'!$B266,DeclMatrix!$A$8:$B$12,2,FALSE),FALSE))))","v":""},"",null,"","","","","","","","","","","",""]
[{"$f":"IF(LEN($B267)>0,$C$2,\"\")","v":""},{"$nulls":5},"","",{"$nulls":18},"","","","",{"$nulls":30},{"$f":"IF(AND($B267<>\"Subscriber\",$BH267=\"Yes\"),VLOOKUP($G267,$H$11:$Y$1000,15,FALSE),\"\")","v":""},{"$f":"IF(AND($B267<>\"Subscriber\",$BH267=\"Yes\"),VLOOKUP($G267,$H$11:$Y$1000,16,FALSE),\"\")","v":""},{"$f":"IF(AND($B267<>\"Subscriber\",$BH267=\"Yes\"),VLOOKUP($G267,$H$11:$Y$1000,17,FALSE),\"\")","v":""},{"$f":"IF(AND($B267<>\"Subscriber\",$BH267=\"Yes\"),VLOOKUP($G267,$H$11:$Y$1000,18,FALSE),\"\")","v":""},{"$nulls":60},{"$f":"IF($A267=\"\",\"\",IF($B267=\"Subscriber\",$AG267,VLOOKUP($G267,$H$11:$AG$1000,26,FALSE)))","v":""},{"$f":"IF($A267=\"\",\"\",IF(VLOOKUP($G267,$H$11:$DN$1000,96,FALSE)=\"\",\"No\",IF(LEFT(VLOOKUP($G267,$H$11:$DN$1000,96,FALSE),3)=\"The\",EF267,VLOOKUP(VLOOKUP($G267,$H$11:$DN$1000,96,FALSE),DeclMatrix!$A$2:$F$5,VLOOKUP('Enrollment Form'!$B267,DeclMatrix!$A$8:$B$12,2,FALSE),FALSE))))","v":""},{"$f":"IF($A267=\"\",\"\",IF(VLOOKUP($G267,$H$11:$DN$1000,101,FALSE)=\"\",\"No\",IF(LEFT(VLOOKUP($G267,$H$11:$DN$1000,101,FALSE),3)=\"The\",EG267,VLOOKUP(VLOOKUP($G267,$H$11:$DN$1000,101,FALSE),DeclMatrix!$A$2:$F$5,VLOOKUP('Enrollment Form'!$B267,DeclMatrix!$A$8:$B$12,2,FALSE),FALSE))))","v":""},{"$f":"IF($A267=\"\",\"\",IF(VLOOKUP($G267,$H$11:$DN$1000,106,FALSE)=\"\",\"No\",IF(LEFT(VLOOKUP($G267,$H$11:$DN$1000,106,FALSE),3)=\"The\",EH267,VLOOKUP(VLOOKUP($G267,$H$11:$DN$1000,106,FALSE),DeclMatrix!$A$2:$F$5,VLOOKUP('Enrollment Form'!$B267,DeclMatrix!$A$8:$B$12,2,FALSE),FALSE))))","v":""},{"$f":"IF($A267=\"\",\"\",IF(VLOOKUP($G267,$H$11:$DN$1000,111,FALSE)=\"\",\"No\",IF(LEFT(VLOOKUP($G267,$H$11:$DN$1000,111,FALSE),3)=\"The\",EI267,VLOOKUP(VLOOKUP($G267,$H$11:$DN$1000,111,FALSE),DeclMatrix!$A$2:$F$5,VLOOKUP('Enrollment Form'!$B267,DeclMatrix!$A$8:$B$12,2,FALSE),FALSE))))","v":""},"",null,{"$f":"$B267&$G267&$J267","v":""},{"$f":"$B267&$G267&$L267","v":""},{"$f":"$B267&$G267&$N267","v":""},{"$f":"$B267&$G267&$O267","v":""},"","","","",{"$f":"IF($A267=\"\",\"\",IF(AND($B267=\"Subscriber\",$I267<>\"Waive\",$I267<>\"\"),\"Yes\",IF(AND($B267<>\"Subscriber\",$BF267=\"Yes\"),VLOOKUP($G267,$H$11:$EM$1000,133,FALSE),IF(AND($C267=\"Enroll\",VLOOKUP($G268,$H$11:$EM$1000,96,FALSE)<>\"\"),VLOOKUP($DV267,$DW$2:$DX$3,2,FALSE),\"No\"))))","v":""},{"$f":"IF($A267=\"\",\"\",IF(AND($B267=\"Subscriber\",$K267<>\"Waive\",$K267<>\"\"),\"Yes\",IF(AND($B267<>\"Subscriber\",$BF267=\"Yes\"),VLOOKUP($G267,$H$11:$EM$1000,134,FALSE),IF(AND($C267=\"Enroll\",VLOOKUP($G268,$H$11:$EM$1000,101,FALSE)<>\"\"),VLOOKUP($DW267,$DW$2:$DX$3,2,FALSE),\"No\"))))","v":""},{"$f":"IF($A267=\"\",\"\",IF(AND($B267=\"Subscriber\",$M267<>\"Waive\",$M267<>\"\"),\"Yes\",IF(AND($B267<>\"Subscriber\",$BF267=\"Yes\"),VLOOKUP($G267,$H$11:$EM$1000,135,FALSE),IF(AND($C267=\"Enroll\",VLOOKUP($G268,$H$11:$EM$1000,106,FALSE)<>\"\"),VLOOKUP($DX267,$DW$2:$DX$3,2,FALSE),\"No\"))))","v":""},{"$f":"IF($A267=\"\",\"\",IF(AND($B267=\"Subscriber\",$O267<>\"Waive\",$O267<>\"\"),\"Yes\",IF(AND($B267<>\"Subscriber\",$BF267=\"Yes\"),VLOOKUP($G267,$H$11:$EM$1000,136,FALSE),IF(AND($C267=\"Enroll\",VLOOKUP($G268,$H$11:$EM$1000,111,FALSE)<>\"\"),VLOOKUP($DY267,$DW$2:$DX$3,2,FALSE),\"No\"))))","v":""}]
["",{"$nulls":5},{"$f":"IF(A268=\"\",\"\",IF(AND(B268<>\"Subscriber\",B268<>\"\"),G267,\"\"))","v":""},{"$f":"IF(AND(B268=\"Subscriber\",G268<>\"\"),G268,\"\")","v":""},{"$nulls":18},{"$f":"IF(AND($B268=\"Subscriber\",$Z268=\"Yes\"),V268,\"\")","v":""},{"$f":"IF(AND($B268=\"Subscriber\",$Z268=\"Yes\"),W268,\"\")","v":""},{"$f":"IF(AND($B268=\"Subscriber\",$Z268=\"Yes\"),X268,\"\")","v":""},{"$f":"IF(AND($B268=\"Subscriber\",$Z268=\"Yes\"),Y268,\"\")","v":""},{"$nulls":30},"","","","",{"$nulls":60},"",{"$f":"IF($A268=\"\",\"\",IF(VLOOKUP($G268,$H$11:$DN$1000,96,FALSE)=\"\",\"No\",IF(LEFT(VLOOKUP($G268,$H$11:$DN$1000,96,FALSE),3)=\"The\",EF268,VLOOKUP(VLOOKUP($G268,$H$11:$DN$1000,96,FALSE),DeclMatrix!$A$2:$F$5,VLOOKUP('Enrollment Form'!$B268,DeclMatrix!$A$8:$B$12,2,FALSE),FALSE))))","v":""},{"$f":"IF($A268=\"\",\"\",IF(VLOOKUP($G268,$H$11:$DN$1000,101,FALSE)=\"\",\"No\",IF(LEFT(VLOOKUP($G268,$H$11:$DN$1000,101,FALSE),3)=\"The\",EG268,VLOOKUP(VLOOKUP($G268,$H$11:$DN$1000,101,FALSE),DeclMatrix!$A$2:$F$5,VLOOKUP('Enrollment Form'!$B268,DeclMatrix!$A$8:$B$12,2,FALSE),FALSE))))","v":""},{"$f":"IF($A268=\"\",\"\",IF(VLOOKUP($G268,$H$11:$DN$1000,106,FALSE)=\"\",\"No\",IF(LEFT(VLOOKUP($G268,$H$11:$DN$1000,106,FALSE),3)=\"The\",EH268,VLOOKUP(VLOOKUP($G268,$H$11:$DN$1000,106,FALSE),DeclMatrix!$A$2:$F$5,VLOOKUP('Enrollment Form'!$B268,DeclMatrix!$A$8:$B$12,2,FALSE),FALSE))))","v":""},{"$f":"IF($A268=\"\",\"\",IF(VLOOKUP($G268,$H$11:$DN$1000,111,FALSE)=\"\",\"No\",IF(LEFT(VLOOKUP($G268,$H$11:$DN$1000,111,FALSE),3)=\"The\",EI268,VLOOKUP(VLOOKUP($G268,$H$11:$DN$1000,111,FALSE),DeclMatrix!$A$2:$F$5,VLOOKUP('Enrollment Form'!$B268,DeclMatrix!$A$8:$B$12,2,FALSE),FALSE))))","v":""},{"$f":"IF(A268<>\"\",\"1X\",\"\")","v":""},null,"","","","",{"$f":"IF($A268=\"\",\"\",IF($B268=\"Subscriber\",\"No\",IF(OR($CY268=\"\",$CY268=\"No\"),\"No\",\"Yes\")))","v":""},{"$f":"IF($A268=\"\",\"\",IF($B268=\"Subscriber\",\"No\",IF(OR($DD268=\"\",$DD268=\"No\"),\"No\",\"Yes\")))","v":""},{"$f":"IF($A268=\"\",\"\",IF($B268=\"Subscriber\",\"No\",IF(OR($DI268=\"\",$DI268=\"No\"),\"No\",\"Yes\")))","v":""},{"$f":"IF($A268=\"\",\"\",IF($B268=\"Subscriber\",\"No\",IF(OR($DN268=\"\",$DN268=\"No\"),\"No\",\"Yes\")))","v":""},"","","",""]
["",{"$nulls":5},"","",{"$nulls":18},"","","","",{"$nulls":30},"","","","",{"$nulls":60},"",{"$f":"IF($A269=\"\",\"\",IF(VLOOKUP($G269,$H$11:$DN$1000,96,FALSE)=\"\",\"No\",IF(LEFT(VLOOKUP($G269,$H$11:$DN$1000,96,FALSE),3)=\"The\",EF269,VLOOKUP(VLOOKUP($G269,$H$11:$DN$1000,96,FALSE),DeclMatrix!$A$2:$F$5,VLOOKUP('Enrollment Form'!$B269,DeclMatrix!$A$8:$B$12,2,FALSE),FALSE))))","v":""},{"$f":"IF($A269=\"\",\"\",IF(VLOOKUP($G269,$H$11:$DN$1000,101,FALSE)=\"\",\"No\",IF(LEFT(VLOOKUP($G269,$H$11:$DN$1000,101,FALSE),3)=\"The\",EG269,VLOOKUP(VLOOKUP($G269,$H$11:$DN$1000,101,FALSE),DeclMatrix!$A$2:$F$5,VLOOKUP('Enrollment Form'!$B269,DeclMatrix!$A$8:$B$12,2,FALSE),FALSE))))","v":""},{"$f":"IF($A269=\"\",\"\",IF(VLOOKUP($G269,$H$11:$DN$1000,106,FALSE)=\"\",\"No\",IF(LEFT(VLOOKUP($G269,$H$11:$DN$1000,106,FALSE),3)=\"The\",EH269,VLOOKUP(VLOOKUP($G269,$H$11:$DN$1000,106,FALSE),DeclMatrix!$A$2:$F$5,VLOOKUP('Enrollment Form'!$B269,DeclMatrix!$A$8:$B$12,2,FALSE),FALSE))))","v":""},{"$f":"IF($A269=\"\",\"\",IF(VLOOKUP($G269,$H$11:$DN$1000,111,FALSE)=\"\",\"No\",IF(LEFT(VLOOKUP($G269,$H$11:$DN$1000,111,FALSE),3)=\"The\",EI269,VLOOKUP(VLOOKUP($G269,$H$11:$DN$1000,111,FALSE),DeclMatrix!$A$2:$F$5,VLOOKUP('Enrollment Form'!$B269,DeclMatrix!$A$8:$B$12,2,FALSE),FALSE))))","v":""},"",null,"","","","","","","","","","","",""]
["",{"$nulls":5},"","",{"$nulls":18},"","","","",{"$nulls":30},"","","","",{"$nulls":60},"",{"$f":"IF($A270=\"\",\"\",IF(VLOOKUP($G270,$H$11:$DN$1000,96,FALSE)=\"\",\"No\",IF(LEFT(VLOOKUP($G270,$H$11:$DN$1000,96,FALSE),3)=\"The\",EF270,VLOOKUP(VLOOKUP($G270,$H$11:$DN$1000,96,FALSE),DeclMatrix!$A$2:$F$5,VLOOKUP('Enrollment Form'!$B270,DeclMatrix!$A$8:$B$12,2,FALSE),FALSE))))","v":""},{"$f":"IF($A270=\"\",\"\",IF(VLOOKUP($G270,$H$11:$DN$1000,101,FALSE)=\"\",\"No\",IF(LEFT(VLOOKUP($G270,$H$11:$DN$1000,101,FALSE),3)=\"The\",EG270,VLOOKUP(VLOOKUP($G270,$H$11:$DN$1000,101,FALSE),DeclMatrix!$A$2:$F$5,VLOOKUP('Enrollment Form'!$B270,DeclMatrix!$A$8:$B$12,2,FALSE),FALSE))))","v":""},{"$f":"IF($A270=\"\",\"\",IF(VLOOKUP($G270,$H$11:$DN$1000,106,FALSE)=\"\",\"No\",IF(LEFT(VLOOKUP($G270,$H$11:$DN$1000,106,FALSE),3)=\"The\",EH270,VLOOKUP(VLOOKUP($G270,$H$11:$DN$1000,106,FALSE),DeclMatrix!$A$2:$F$5,VLOOKUP('Enrollment Form'!$B270,DeclMatrix!$A$8:$B$12,2,FALSE),FALSE))))","v":""},{"$f":"IF($A270=\"\",\"\",IF(VLOOKUP($G270,$H$11:$DN$1000,111,FALSE)=\"\",\"No\",IF(LEFT(VLOOKUP($G270,$H$11:$DN$1000,111,FALSE),3)=\"The\",EI270,VLOOKUP(VLOOKUP($G270,$H$11:$DN$1000,111,FALSE),DeclMatrix!$A$2:$F$5,VLOOKUP('Enrollment Form'!$B270,DeclMatrix!$A$8:$B$12,2,FALSE),FALSE))))","v":""},"",null,"","","","","","","","","","","",""]
["",{"$nulls":5},"","",{"$nulls":18},"","","","",{"$nulls":30},"","","","",{"$nulls":60},"",{"$f":"IF($A271=\"\",\"\",IF(VLOOKUP($G271,$H$11:$DN$1000,96,FALSE)=\"\",\"No\",IF(LEFT(VLOOKUP($G271,$H$11:$DN$1000,96,FALSE),3)=\"The\",EF271,VLOOKUP(VLOOKUP($G271,$H$11:$DN$1000,96,FALSE),DeclMatrix!$A$2:$F$5,VLOOKUP('Enrollment Form'!$B271,DeclMatrix!$A$8:$B$12,2,FALSE),FALSE))))","v":""},{"$f":"IF($A271=\"\",\"\",IF(VLOOKUP($G271,$H$11:$DN$1000,101,FALSE)=\"\",\"No\",IF(LEFT(VLOOKUP($G271,$H$11:$DN$1000,101,FALSE),3)=\"The\",EG271,VLOOKUP(VLOOKUP($G271,$H$11:$DN$1000,101,FALSE),DeclMatrix!$A$2:$F$5,VLOOKUP('Enrollment Form'!$B271,DeclMatrix!$A$8:$B$12,2,FALSE),FALSE))))","v":""},{"$f":"IF($A271=\"\",\"\",IF(VLOOKUP($G271,$H$11:$DN$1000,106,FALSE)=\"\",\"No\",IF(LEFT(VLOOKUP($G271,$H$11:$DN$1000,106,FALSE),3)=\"The\",EH271,VLOOKUP(VLOOKUP($G271,$H$11:$DN$1000,106,FALSE),DeclMatrix!$A$2:$F$5,VLOOKUP('Enrollment Form'!$B271,DeclMatrix!$A$8:$B$12,2,FALSE),FALSE))))","v":""},{"$f":"IF($A271=\"\",\"\",IF(VLOOKUP($G271,$H$11:$DN$1000,111,FALSE)=\"\",\"No\",IF(LEFT(VLOOKUP($G271,$H$11:$DN$1000,111,FALSE),3)=\"The\",EI271,VLOOKUP(VLOOKUP($G271,$H$11:$DN$1000,111,FALSE),DeclMatrix!$A$2:$F$5,VLOOKUP('Enrollment Form'!$B271,DeclMatrix!$A$8:$B$12,2,FALSE),FALSE))))","v":""},"",null,"","","","","","","","","","","",""]
["",{"$nulls":5},"","",{"$nulls":18},"","","","",{"$nulls":30},"","","","",{"$nulls":60},"",{"$f":"IF($A272=\"\",\"\",IF(VLOOKUP($G272,$H$11:$DN$1000,96,FALSE)=\"\",\"No\",IF(LEFT(VLOOKUP($G272,$H$11:$DN$1000,96,FALSE),3)=\"The\",EF272,VLOOKUP(VLOOKUP($G272,$H$11:$DN$1000,96,FALSE),DeclMatrix!$A$2:$F$5,VLOOKUP('Enrollment Form'!$B272,DeclMatrix!$A$8:$B$12,2,FALSE),FALSE))))","v":""},{"$f":"IF($A272=\"\",\"\",IF(VLOOKUP($G272,$H$11:$DN$1000,101,FALSE)=\"\",\"No\",IF(LEFT(VLOOKUP($G272,$H$11:$DN$1000,101,FALSE),3)=\"The\",EG272,VLOOKUP(VLOOKUP($G272,$H$11:$DN$1000,101,FALSE),DeclMatrix!$A$2:$F$5,VLOOKUP('Enrollment Form'!$B272,DeclMatrix!$A$8:$B$12,2,FALSE),FALSE))))","v":""},{"$f":"IF($A272=\"\",\"\",IF(VLOOKUP($G272,$H$11:$DN$1000,106,FALSE)=\"\",\"No\",IF(LEFT(VLOOKUP($G272,$H$11:$DN$1000,106,FALSE),3)=\"The\",EH272,VLOOKUP(VLOOKUP($G272,$H$11:$DN$1000,106,FALSE),DeclMatrix!$A$2:$F$5,VLOOKUP('Enrollment Form'!$B272,DeclMatrix!$A$8:$B$12,2,FALSE),FALSE))))","v":""},{"$f":"IF($A272=\"\",\"\",IF(VLOOKUP($G272,$H$11:$DN$1000,111,FALSE)=\"\",\"No\",IF(LEFT(VLOOKUP($G272,$H$11:$DN$1000,111,FALSE),3)=\"The\",EI272,VLOOKUP(VLOOKUP($G272,$H$11:$DN$1000,111,FALSE),DeclMatrix!$A$2:$F$5,VLOOKUP('Enrollment Form'!$B272,DeclMatrix!$A$8:$B$12,2,FALSE),FALSE))))","v":""},"",null,"","","","","","","","","","","",""]
["",{"$nulls":5},"","",{"$nulls":18},"","","","",{"$nulls":30},"","","","",{"$nulls":60},"",{"$f":"IF($A273=\"\",\"\",IF(VLOOKUP($G273,$H$11:$DN$1000,96,FALSE)=\"\",\"No\",IF(LEFT(VLOOKUP($G273,$H$11:$DN$1000,96,FALSE),3)=\"The\",EF273,VLOOKUP(VLOOKUP($G273,$H$11:$DN$1000,96,FALSE),DeclMatrix!$A$2:$F$5,VLOOKUP('Enrollment Form'!$B273,DeclMatrix!$A$8:$B$12,2,FALSE),FALSE))))","v":""},{"$f":"IF($A273=\"\",\"\",IF(VLOOKUP($G273,$H$11:$DN$1000,101,FALSE)=\"\",\"No\",IF(LEFT(VLOOKUP($G273,$H$11:$DN$1000,101,FALSE),3)=\"The\",EG273,VLOOKUP(VLOOKUP($G273,$H$11:$DN$1000,101,FALSE),DeclMatrix!$A$2:$F$5,VLOOKUP('Enrollment Form'!$B273,DeclMatrix!$A$8:$B$12,2,FALSE),FALSE))))","v":""},{"$f":"IF($A273=\"\",\"\",IF(VLOOKUP($G273,$H$11:$DN$1000,106,FALSE)=\"\",\"No\",IF(LEFT(VLOOKUP($G273,$H$11:$DN$1000,106,FALSE),3)=\"The\",EH273,VLOOKUP(VLOOKUP($G273,$H$11:$DN$1000,106,FALSE),DeclMatrix!$A$2:$F$5,VLOOKUP('Enrollment Form'!$B273,DeclMatrix!$A$8:$B$12,2,FALSE),FALSE))))","v":""},{"$f":"IF($A273=\"\",\"\",IF(VLOOKUP($G273,$H$11:$DN$1000,111,FALSE)=\"\",\"No\",IF(LEFT(VLOOKUP($G273,$H$11:$DN$1000,111,FALSE),3)=\"The\",EI273,VLOOKUP(VLOOKUP($G273,$H$11:$DN$1000,111,FALSE),DeclMatrix!$A$2:$F$5,VLOOKUP('Enrollment Form'!$B273,DeclMatrix!$A$8:$B$12,2,FALSE),FALSE))))","v":""},"",null,"","","","","","","","","","","",""]
["",{"$nulls":5},"","",{"$nulls":18},"","","","",{"$nulls":30},"","","","",{"$nulls":60},"",{"$f":"IF($A274=\"\",\"\",IF(VLOOKUP($G274,$H$11:$DN$1000,96,FALSE)=\"\",\"No\",IF(LEFT(VLOOKUP($G274,$H$11:$DN$1000,96,FALSE),3)=\"The\",EF274,VLOOKUP(VLOOKUP($G274,$H$11:$DN$1000,96,FALSE),DeclMatrix!$A$2:$F$5,VLOOKUP('Enrollment Form'!$B274,DeclMatrix!$A$8:$B$12,2,FALSE),FALSE))))","v":""},{"$f":"IF($A274=\"\",\"\",IF(VLOOKUP($G274,$H$11:$DN$1000,101,FALSE)=\"\",\"No\",IF(LEFT(VLOOKUP($G274,$H$11:$DN$1000,101,FALSE),3)=\"The\",EG274,VLOOKUP(VLOOKUP($G274,$H$11:$DN$1000,101,FALSE),DeclMatrix!$A$2:$F$5,VLOOKUP('Enrollment Form'!$B274,DeclMatrix!$A$8:$B$12,2,FALSE),FALSE))))","v":""},{"$f":"IF($A274=\"\",\"\",IF(VLOOKUP($G274,$H$11:$DN$1000,106,FALSE)=\"\",\"No\",IF(LEFT(VLOOKUP($G274,$H$11:$DN$1000,106,FALSE),3)=\"The\",EH274,VLOOKUP(VLOOKUP($G274,$H$11:$DN$1000,106,FALSE),DeclMatrix!$A$2:$F$5,VLOOKUP('Enrollment Form'!$B274,DeclMatrix!$A$8:$B$12,2,FALSE),FALSE))))","v":""},{"$f":"IF($A274=\"\",\"\",IF(VLOOKUP($G274,$H$11:$DN$1000,111,FALSE)=\"\",\"No\",IF(LEFT(VLOOKUP($G274,$H$11:$DN$1000,111,FALSE),3)=\"The\",EI274,VLOOKUP(VLOOKUP($G274,$H$11:$DN$1000,111,FALSE),DeclMatrix!$A$2:$F$5,VLOOKUP('Enrollment Form'!$B274,DeclMatrix!$A$8:$B$12,2,FALSE),FALSE))))","v":""},"",null,"","","","","","","","","","","",""]
["",{"$nulls":5},"","",{"$nulls":18},"","","","",{"$nulls":30},"","","","",{"$nulls":60},"",{"$f":"IF($A275=\"\",\"\",IF(VLOOKUP($G275,$H$11:$DN$1000,96,FALSE)=\"\",\"No\",IF(LEFT(VLOOKUP($G275,$H$11:$DN$1000,96,FALSE),3)=\"The\",EF275,VLOOKUP(VLOOKUP($G275,$H$11:$DN$1000,96,FALSE),DeclMatrix!$A$2:$F$5,VLOOKUP('Enrollment Form'!$B275,DeclMatrix!$A$8:$B$12,2,FALSE),FALSE))))","v":""},{"$f":"IF($A275=\"\",\"\",IF(VLOOKUP($G275,$H$11:$DN$1000,101,FALSE)=\"\",\"No\",IF(LEFT(VLOOKUP($G275,$H$11:$DN$1000,101,FALSE),3)=\"The\",EG275,VLOOKUP(VLOOKUP($G275,$H$11:$DN$1000,101,FALSE),DeclMatrix!$A$2:$F$5,VLOOKUP('Enrollment Form'!$B275,DeclMatrix!$A$8:$B$12,2,FALSE),FALSE))))","v":""},{"$f":"IF($A275=\"\",\"\",IF(VLOOKUP($G275,$H$11:$DN$1000,106,FALSE)=\"\",\"No\",IF(LEFT(VLOOKUP($G275,$H$11:$DN$1000,106,FALSE),3)=\"The\",EH275,VLOOKUP(VLOOKUP($G275,$H$11:$DN$1000,106,FALSE),DeclMatrix!$A$2:$F$5,VLOOKUP('Enrollment Form'!$B275,DeclMatrix!$A$8:$B$12,2,FALSE),FALSE))))","v":""},{"$f":"IF($A275=\"\",\"\",IF(VLOOKUP($G275,$H$11:$DN$1000,111,FALSE)=\"\",\"No\",IF(LEFT(VLOOKUP($G275,$H$11:$DN$1000,111,FALSE),3)=\"The\",EI275,VLOOKUP(VLOOKUP($G275,$H$11:$DN$1000,111,FALSE),DeclMatrix!$A$2:$F$5,VLOOKUP('Enrollment Form'!$B275,DeclMatrix!$A$8:$B$12,2,FALSE),FALSE))))","v":""},"",null,"","","","","","","","","","","",""]
["",{"$nulls":5},"","",{"$nulls":18},"","","","",{"$nulls":30},"","","","",{"$nulls":60},"",{"$f":"IF($A276=\"\",\"\",IF(VLOOKUP($G276,$H$11:$DN$1000,96,FALSE)=\"\",\"No\",IF(LEFT(VLOOKUP($G276,$H$11:$DN$1000,96,FALSE),3)=\"The\",EF276,VLOOKUP(VLOOKUP($G276,$H$11:$DN$1000,96,FALSE),DeclMatrix!$A$2:$F$5,VLOOKUP('Enrollment Form'!$B276,DeclMatrix!$A$8:$B$12,2,FALSE),FALSE))))","v":""},{"$f":"IF($A276=\"\",\"\",IF(VLOOKUP($G276,$H$11:$DN$1000,101,FALSE)=\"\",\"No\",IF(LEFT(VLOOKUP($G276,$H$11:$DN$1000,101,FALSE),3)=\"The\",EG276,VLOOKUP(VLOOKUP($G276,$H$11:$DN$1000,101,FALSE),DeclMatrix!$A$2:$F$5,VLOOKUP('Enrollment Form'!$B276,DeclMatrix!$A$8:$B$12,2,FALSE),FALSE))))","v":""},{"$f":"IF($A276=\"\",\"\",IF(VLOOKUP($G276,$H$11:$DN$1000,106,FALSE)=\"\",\"No\",IF(LEFT(VLOOKUP($G276,$H$11:$DN$1000,106,FALSE),3)=\"The\",EH276,VLOOKUP(VLOOKUP($G276,$H$11:$DN$1000,106,FALSE),DeclMatrix!$A$2:$F$5,VLOOKUP('Enrollment Form'!$B276,DeclMatrix!$A$8:$B$12,2,FALSE),FALSE))))","v":""},{"$f":"IF($A276=\"\",\"\",IF(VLOOKUP($G276,$H$11:$DN$1000,111,FALSE)=\"\",\"No\",IF(LEFT(VLOOKUP($G276,$H$11:$DN$1000,111,FALSE),3)=\"The\",EI276,VLOOKUP(VLOOKUP($G276,$H$11:$DN$1000,111,FALSE),DeclMatrix!$A$2:$F$5,VLOOKUP('Enrollment Form'!$B276,DeclMatrix!$A$8:$B$12,2,FALSE),FALSE))))","v":""},"",null,"","","","","","","","","","","",""]
["",{"$nulls":5},"","",{"$nulls":18},"","","","",{"$nulls":30},"","","","",{"$nulls":60},"",{"$f":"IF($A277=\"\",\"\",IF(VLOOKUP($G277,$H$11:$DN$1000,96,FALSE)=\"\",\"No\",IF(LEFT(VLOOKUP($G277,$H$11:$DN$1000,96,FALSE),3)=\"The\",EF277,VLOOKUP(VLOOKUP($G277,$H$11:$DN$1000,96,FALSE),DeclMatrix!$A$2:$F$5,VLOOKUP('Enrollment Form'!$B277,DeclMatrix!$A$8:$B$12,2,FALSE),FALSE))))","v":""},{"$f":"IF($A277=\"\",\"\",IF(VLOOKUP($G277,$H$11:$DN$1000,101,FALSE)=\"\",\"No\",IF(LEFT(VLOOKUP($G277,$H$11:$DN$1000,101,FALSE),3)=\"The\",EG277,VLOOKUP(VLOOKUP($G277,$H$11:$DN$1000,101,FALSE),DeclMatrix!$A$2:$F$5,VLOOKUP('Enrollment Form'!$B277,DeclMatrix!$A$8:$B$12,2,FALSE),FALSE))))","v":""},{"$f":"IF($A277=\"\",\"\",IF(VLOOKUP($G277,$H$11:$DN$1000,106,FALSE)=\"\",\"No\",IF(LEFT(VLOOKUP($G277,$H$11:$DN$1000,106,FALSE),3)=\"The\",EH277,VLOOKUP(VLOOKUP($G277,$H$11:$DN$1000,106,FALSE),DeclMatrix!$A$2:$F$5,VLOOKUP('Enrollment Form'!$B277,DeclMatrix!$A$8:$B$12,2,FALSE),FALSE))))","v":""},{"$f":"IF($A277=\"\",\"\",IF(VLOOKUP($G277,$H$11:$DN$1000,111,FALSE)=\"\",\"No\",IF(LEFT(VLOOKUP($G277,$H$11:$DN$1000,111,FALSE),3)=\"The\",EI277,VLOOKUP(VLOOKUP($G277,$H$11:$DN$1000,111,FALSE),DeclMatrix!$A$2:$F$5,VLOOKUP('Enrollment Form'!$B277,DeclMatrix!$A$8:$B$12,2,FALSE),FALSE))))","v":""},"",null,"","","","","","","","","","","",""]
["",{"$nulls":5},"","",{"$nulls":18},"","","","",{"$nulls":30},"","","","",{"$nulls":60},"",{"$f":"IF($A278=\"\",\"\",IF(VLOOKUP($G278,$H$11:$DN$1000,96,FALSE)=\"\",\"No\",IF(LEFT(VLOOKUP($G278,$H$11:$DN$1000,96,FALSE),3)=\"The\",EF278,VLOOKUP(VLOOKUP($G278,$H$11:$DN$1000,96,FALSE),DeclMatrix!$A$2:$F$5,VLOOKUP('Enrollment Form'!$B278,DeclMatrix!$A$8:$B$12,2,FALSE),FALSE))))","v":""},{"$f":"IF($A278=\"\",\"\",IF(VLOOKUP($G278,$H$11:$DN$1000,101,FALSE)=\"\",\"No\",IF(LEFT(VLOOKUP($G278,$H$11:$DN$1000,101,FALSE),3)=\"The\",EG278,VLOOKUP(VLOOKUP($G278,$H$11:$DN$1000,101,FALSE),DeclMatrix!$A$2:$F$5,VLOOKUP('Enrollment Form'!$B278,DeclMatrix!$A$8:$B$12,2,FALSE),FALSE))))","v":""},{"$f":"IF($A278=\"\",\"\",IF(VLOOKUP($G278,$H$11:$DN$1000,106,FALSE)=\"\",\"No\",IF(LEFT(VLOOKUP($G278,$H$11:$DN$1000,106,FALSE),3)=\"The\",EH278,VLOOKUP(VLOOKUP($G278,$H$11:$DN$1000,106,FALSE),DeclMatrix!$A$2:$F$5,VLOOKUP('Enrollment Form'!$B278,DeclMatrix!$A$8:$B$12,2,FALSE),FALSE))))","v":""},{"$f":"IF($A278=\"\",\"\",IF(VLOOKUP($G278,$H$11:$DN$1000,111,FALSE)=\"\",\"No\",IF(LEFT(VLOOKUP($G278,$H$11:$DN$1000,111,FALSE),3)=\"The\",EI278,VLOOKUP(VLOOKUP($G278,$H$11:$DN$1000,111,FALSE),DeclMatrix!$A$2:$F$5,VLOOKUP('Enrollment Form'!$B278,DeclMatrix!$A$8:$B$12,2,FALSE),FALSE))))","v":""},"",null,"","","","","","","","","","","",""]
["",{"$nulls":5},"","",{"$nulls":18},"","","","",{"$nulls":30},"","","","",{"$nulls":60},"",{"$f":"IF($A279=\"\",\"\",IF(VLOOKUP($G279,$H$11:$DN$1000,96,FALSE)=\"\",\"No\",IF(LEFT(VLOOKUP($G279,$H$11:$DN$1000,96,FALSE),3)=\"The\",EF279,VLOOKUP(VLOOKUP($G279,$H$11:$DN$1000,96,FALSE),DeclMatrix!$A$2:$F$5,VLOOKUP('Enrollment Form'!$B279,DeclMatrix!$A$8:$B$12,2,FALSE),FALSE))))","v":""},{"$f":"IF($A279=\"\",\"\",IF(VLOOKUP($G279,$H$11:$DN$1000,101,FALSE)=\"\",\"No\",IF(LEFT(VLOOKUP($G279,$H$11:$DN$1000,101,FALSE),3)=\"The\",EG279,VLOOKUP(VLOOKUP($G279,$H$11:$DN$1000,101,FALSE),DeclMatrix!$A$2:$F$5,VLOOKUP('Enrollment Form'!$B279,DeclMatrix!$A$8:$B$12,2,FALSE),FALSE))))","v":""},{"$f":"IF($A279=\"\",\"\",IF(VLOOKUP($G279,$H$11:$DN$1000,106,FALSE)=\"\",\"No\",IF(LEFT(VLOOKUP($G279,$H$11:$DN$1000,106,FALSE),3)=\"The\",EH279,VLOOKUP(VLOOKUP($G279,$H$11:$DN$1000,106,FALSE),DeclMatrix!$A$2:$F$5,VLOOKUP('Enrollment Form'!$B279,DeclMatrix!$A$8:$B$12,2,FALSE),FALSE))))","v":""},{"$f":"IF($A279=\"\",\"\",IF(VLOOKUP($G279,$H$11:$DN$1000,111,FALSE)=\"\",\"No\",IF(LEFT(VLOOKUP($G279,$H$11:$DN$1000,111,FALSE),3)=\"The\",EI279,VLOOKUP(VLOOKUP($G279,$H$11:$DN$1000,111,FALSE),DeclMatrix!$A$2:$F$5,VLOOKUP('Enrollment Form'!$B279,DeclMatrix!$A$8:$B$12,2,FALSE),FALSE))))","v":""},"",null,"","","","","","","","","","","",""]
["",{"$nulls":5},"","",{"$nulls":18},"","","","",{"$nulls":30},"","","","",{"$nulls":60},"",{"$f":"IF($A280=\"\",\"\",IF(VLOOKUP($G280,$H$11:$DN$1000,96,FALSE)=\"\",\"No\",IF(LEFT(VLOOKUP($G280,$H$11:$DN$1000,96,FALSE),3)=\"The\",EF280,VLOOKUP(VLOOKUP($G280,$H$11:$DN$1000,96,FALSE),DeclMatrix!$A$2:$F$5,VLOOKUP('Enrollment Form'!$B280,DeclMatrix!$A$8:$B$12,2,FALSE),FALSE))))","v":""},{"$f":"IF($A280=\"\",\"\",IF(VLOOKUP($G280,$H$11:$DN$1000,101,FALSE)=\"\",\"No\",IF(LEFT(VLOOKUP($G280,$H$11:$DN$1000,101,FALSE),3)=\"The\",EG280,VLOOKUP(VLOOKUP($G280,$H$11:$DN$1000,101,FALSE),DeclMatrix!$A$2:$F$5,VLOOKUP('Enrollment Form'!$B280,DeclMatrix!$A$8:$B$12,2,FALSE),FALSE))))","v":""},{"$f":"IF($A280=\"\",\"\",IF(VLOOKUP($G280,$H$11:$DN$1000,106,FALSE)=\"\",\"No\",IF(LEFT(VLOOKUP($G280,$H$11:$DN$1000,106,FALSE),3)=\"The\",EH280,VLOOKUP(VLOOKUP($G280,$H$11:$DN$1000,106,FALSE),DeclMatrix!$A$2:$F$5,VLOOKUP('Enrollment Form'!$B280,DeclMatrix!$A$8:$B$12,2,FALSE),FALSE))))","v":""},{"$f":"IF($A280=\"\",\"\",IF(VLOOKUP($G280,$H$11:$DN$1000,111,FALSE)=\"\",\"No\",IF(LEFT(VLOOKUP($G280,$H$11:$DN$1000,111,FALSE),3)=\"The\",EI280,VLOOKUP(VLOOKUP($G280,$H$11:$DN$1000,111,FALSE),DeclMatrix!$A$2:$F$5,VLOOKUP('Enrollment Form'!$B280,DeclMatrix!$A$8:$B$12,2,FALSE),FALSE))))","v":""},"",null,"","","","","","","","","","","",""]
["",{"$nulls":5},"","",{"$nulls":18},"","","","",{"$nulls":30},"","","","",{"$nulls":60},"",{"$f":"IF($A281=\"\",\"\",IF(VLOOKUP($G281,$H$11:$DN$1000,96,FALSE)=\"\",\"No\",IF(LEFT(VLOOKUP($G281,$H$11:$DN$1000,96,FALSE),3)=\"The\",EF281,VLOOKUP(VLOOKUP($G281,$H$11:$DN$1000,96,FALSE),DeclMatrix!$A$2:$F$5,VLOOKUP('Enrollment Form'!$B281,DeclMatrix!$A$8:$B$12,2,FALSE),FALSE))))","v":""},{"$f":"IF($A281=\"\",\"\",IF(VLOOKUP($G281,$H$11:$DN$1000,101,FALSE)=\"\",\"No\",IF(LEFT(VLOOKUP($G281,$H$11:$DN$1000,101,FALSE),3)=\"The\",EG281,VLOOKUP(VLOOKUP($G281,$H$11:$DN$1000,101,FALSE),DeclMatrix!$A$2:$F$5,VLOOKUP('Enrollment Form'!$B281,DeclMatrix!$A$8:$B$12,2,FALSE),FALSE))))","v":""},{"$f":"IF($A281=\"\",\"\",IF(VLOOKUP($G281,$H$11:$DN$1000,106,FALSE)=\"\",\"No\",IF(LEFT(VLOOKUP($G281,$H$11:$DN$1000,106,FALSE),3)=\"The\",EH281,VLOOKUP(VLOOKUP($G281,$H$11:$DN$1000,106,FALSE),DeclMatrix!$A$2:$F$5,VLOOKUP('Enrollment Form'!$B281,DeclMatrix!$A$8:$B$12,2,FALSE),FALSE))))","v":""},{"$f":"IF($A281=\"\",\"\",IF(VLOOKUP($G281,$H$11:$DN$1000,111,FALSE)=\"\",\"No\",IF(LEFT(VLOOKUP($G281,$H$11:$DN$1000,111,FALSE),3)=\"The\",EI281,VLOOKUP(VLOOKUP($G281,$H$11:$DN$1000,111,FALSE),DeclMatrix!$A$2:$F$5,VLOOKUP('Enrollment Form'!$B281,DeclMatrix!$A$8:$B$12,2,FALSE),FALSE))))","v":""},"",null,"","","","","","","","","","","",""]
["",{"$nulls":5},"","",{"$nulls":18},"","","","",{"$nulls":30},"","","","",{"$nulls":60},"",{"$f":"IF($A282=\"\",\"\",IF(VLOOKUP($G282,$H$11:$DN$1000,96,FALSE)=\"\",\"No\",IF(LEFT(VLOOKUP($G282,$H$11:$DN$1000,96,FALSE),3)=\"The\",EF282,VLOOKUP(VLOOKUP($G282,$H$11:$DN$1000,96,FALSE),DeclMatrix!$A$2:$F$5,VLOOKUP('Enrollment Form'!$B282,DeclMatrix!$A$8:$B$12,2,FALSE),FALSE))))","v":""},{"$f":"IF($A282=\"\",\"\",IF(VLOOKUP($G282,$H$11:$DN$1000,101,FALSE)=\"\",\"No\",IF(LEFT(VLOOKUP($G282,$H$11:$DN$1000,101,FALSE),3)=\"The\",EG282,VLOOKUP(VLOOKUP($G282,$H$11:$DN$1000,101,FALSE),DeclMatrix!$A$2:$F$5,VLOOKUP('Enrollment Form'!$B282,DeclMatrix!$A$8:$B$12,2,FALSE),FALSE))))","v":""},{"$f":"IF($A282=\"\",\"\",IF(VLOOKUP($G282,$H$11:$DN$1000,106,FALSE)=\"\",\"No\",IF(LEFT(VLOOKUP($G282,$H$11:$DN$1000,106,FALSE),3)=\"The\",EH282,VLOOKUP(VLOOKUP($G282,$H$11:$DN$1000,106,FALSE),DeclMatrix!$A$2:$F$5,VLOOKUP('Enrollment Form'!$B282,DeclMatrix!$A$8:$B$12,2,FALSE),FALSE))))","v":""},{"$f":"IF($A282=\"\",\"\",IF(VLOOKUP($G282,$H$11:$DN$1000,111,FALSE)=\"\",\"No\",IF(LEFT(VLOOKUP($G282,$H$11:$DN$1000,111,FALSE),3)=\"The\",EI282,VLOOKUP(VLOOKUP($G282,$H$11:$DN$1000,111,FALSE),DeclMatrix!$A$2:$F$5,VLOOKUP('Enrollment Form'!$B282,DeclMatrix!$A$8:$B$12,2,FALSE),FALSE))))","v":""},"",null,"","","","","","","","","","","",""]
["",{"$nulls":5},"","",{"$nulls":18},"","","","",{"$nulls":30},"","","","",{"$nulls":60},"",{"$f":"IF($A283=\"\",\"\",IF(VLOOKUP($G283,$H$11:$DN$1000,96,FALSE)=\"\",\"No\",IF(LEFT(VLOOKUP($G283,$H$11:$DN$1000,96,FALSE),3)=\"The\",EF283,VLOOKUP(VLOOKUP($G283,$H$11:$DN$1000,96,FALSE),DeclMatrix!$A$2:$F$5,VLOOKUP('Enrollment Form'!$B283,DeclMatrix!$A$8:$B$12,2,FALSE),FALSE))))","v":""},{"$f":"IF($A283=\"\",\"\",IF(VLOOKUP($G283,$H$11:$DN$1000,101,FALSE)=\"\",\"No\",IF(LEFT(VLOOKUP($G283,$H$11:$DN$1000,101,FALSE),3)=\"The\",EG283,VLOOKUP(VLOOKUP($G283,$H$11:$DN$1000,101,FALSE),DeclMatrix!$A$2:$F$5,VLOOKUP('Enrollment Form'!$B283,DeclMatrix!$A$8:$B$12,2,FALSE),FALSE))))","v":""},{"$f":"IF($A283=\"\",\"\",IF(VLOOKUP($G283,$H$11:$DN$1000,106,FALSE)=\"\",\"No\",IF(LEFT(VLOOKUP($G283,$H$11:$DN$1000,106,FALSE),3)=\"The\",EH283,VLOOKUP(VLOOKUP($G283,$H$11:$DN$1000,106,FALSE),DeclMatrix!$A$2:$F$5,VLOOKUP('Enrollment Form'!$B283,DeclMatrix!$A$8:$B$12,2,FALSE),FALSE))))","v":""},{"$f":"IF($A283=\"\",\"\",IF(VLOOKUP($G283,$H$11:$DN$1000,111,FALSE)=\"\",\"No\",IF(LEFT(VLOOKUP($G283,$H$11:$DN$1000,111,FALSE),3)=\"The\",EI283,VLOOKUP(VLOOKUP($G283,$H$11:$DN$1000,111,FALSE),DeclMatrix!$A$2:$F$5,VLOOKUP('Enrollment Form'!$B283,DeclMatrix!$A$8:$B$12,2,FALSE),FALSE))))","v":""},"",null,"","","","","","","","","","","",""]
["",{"$nulls":5},"","",{"$nulls":18},"","","","",{"$nulls":30},"","","","",{"$nulls":60},"",{"$f":"IF($A284=\"\",\"\",IF(VLOOKUP($G284,$H$11:$DN$1000,96,FALSE)=\"\",\"No\",IF(LEFT(VLOOKUP($G284,$H$11:$DN$1000,96,FALSE),3)=\"The\",EF284,VLOOKUP(VLOOKUP($G284,$H$11:$DN$1000,96,FALSE),DeclMatrix!$A$2:$F$5,VLOOKUP('Enrollment Form'!$B284,DeclMatrix!$A$8:$B$12,2,FALSE),FALSE))))","v":""},{"$f":"IF($A284=\"\",\"\",IF(VLOOKUP($G284,$H$11:$DN$1000,101,FALSE)=\"\",\"No\",IF(LEFT(VLOOKUP($G284,$H$11:$DN$1000,101,FALSE),3)=\"The\",EG284,VLOOKUP(VLOOKUP($G284,$H$11:$DN$1000,101,FALSE),DeclMatrix!$A$2:$F$5,VLOOKUP('Enrollment Form'!$B284,DeclMatrix!$A$8:$B$12,2,FALSE),FALSE))))","v":""},{"$f":"IF($A284=\"\",\"\",IF(VLOOKUP($G284,$H$11:$DN$1000,106,FALSE)=\"\",\"No\",IF(LEFT(VLOOKUP($G284,$H$11:$DN$1000,106,FALSE),3)=\"The\",EH284,VLOOKUP(VLOOKUP($G284,$H$11:$DN$1000,106,FALSE),DeclMatrix!$A$2:$F$5,VLOOKUP('Enrollment Form'!$B284,DeclMatrix!$A$8:$B$12,2,FALSE),FALSE))))","v":""},{"$f":"IF($A284=\"\",\"\",IF(VLOOKUP($G284,$H$11:$DN$1000,111,FALSE)=\"\",\"No\",IF(LEFT(VLOOKUP($G284,$H$11:$DN$1000,111,FALSE),3)=\"The\",EI284,VLOOKUP(VLOOKUP($G284,$H$11:$DN$1000,111,FALSE),DeclMatrix!$A$2:$F$5,VLOOKUP('Enrollment Form'!$B284,DeclMatrix!$A$8:$B$12,2,FALSE),FALSE))))","v":""},"",null,"","","","","","","","","","","",""]
["",{"$nulls":5},"","",{"$nulls":18},"","","","",{"$nulls":30},"","","","",{"$nulls":60},"",{"$f":"IF($A285=\"\",\"\",IF(VLOOKUP($G285,$H$11:$DN$1000,96,FALSE)=\"\",\"No\",IF(LEFT(VLOOKUP($G285,$H$11:$DN$1000,96,FALSE),3)=\"The\",EF285,VLOOKUP(VLOOKUP($G285,$H$11:$DN$1000,96,FALSE),DeclMatrix!$A$2:$F$5,VLOOKUP('Enrollment Form'!$B285,DeclMatrix!$A$8:$B$12,2,FALSE),FALSE))))","v":""},{"$f":"IF($A285=\"\",\"\",IF(VLOOKUP($G285,$H$11:$DN$1000,101,FALSE)=\"\",\"No\",IF(LEFT(VLOOKUP($G285,$H$11:$DN$1000,101,FALSE),3)=\"The\",EG285,VLOOKUP(VLOOKUP($G285,$H$11:$DN$1000,101,FALSE),DeclMatrix!$A$2:$F$5,VLOOKUP('Enrollment Form'!$B285,DeclMatrix!$A$8:$B$12,2,FALSE),FALSE))))","v":""},{"$f":"IF($A285=\"\",\"\",IF(VLOOKUP($G285,$H$11:$DN$1000,106,FALSE)=\"\",\"No\",IF(LEFT(VLOOKUP($G285,$H$11:$DN$1000,106,FALSE),3)=\"The\",EH285,VLOOKUP(VLOOKUP($G285,$H$11:$DN$1000,106,FALSE),DeclMatrix!$A$2:$F$5,VLOOKUP('Enrollment Form'!$B285,DeclMatrix!$A$8:$B$12,2,FALSE),FALSE))))","v":""},{"$f":"IF($A285=\"\",\"\",IF(VLOOKUP($G285,$H$11:$DN$1000,111,FALSE)=\"\",\"No\",IF(LEFT(VLOOKUP($G285,$H$11:$DN$1000,111,FALSE),3)=\"The\",EI285,VLOOKUP(VLOOKUP($G285,$H$11:$DN$1000,111,FALSE),DeclMatrix!$A$2:$F$5,VLOOKUP('Enrollment Form'!$B285,DeclMatrix!$A$8:$B$12,2,FALSE),FALSE))))","v":""},"",null,"","","","","","","","","","","",""]
["",{"$nulls":5},"","",{"$nulls":18},"","","","",{"$nulls":30},"","","","",{"$nulls":60},"",{"$f":"IF($A286=\"\",\"\",IF(VLOOKUP($G286,$H$11:$DN$1000,96,FALSE)=\"\",\"No\",IF(LEFT(VLOOKUP($G286,$H$11:$DN$1000,96,FALSE),3)=\"The\",EF286,VLOOKUP(VLOOKUP($G286,$H$11:$DN$1000,96,FALSE),DeclMatrix!$A$2:$F$5,VLOOKUP('Enrollment Form'!$B286,DeclMatrix!$A$8:$B$12,2,FALSE),FALSE))))","v":""},{"$f":"IF($A286=\"\",\"\",IF(VLOOKUP($G286,$H$11:$DN$1000,101,FALSE)=\"\",\"No\",IF(LEFT(VLOOKUP($G286,$H$11:$DN$1000,101,FALSE),3)=\"The\",EG286,VLOOKUP(VLOOKUP($G286,$H$11:$DN$1000,101,FALSE),DeclMatrix!$A$2:$F$5,VLOOKUP('Enrollment Form'!$B286,DeclMatrix!$A$8:$B$12,2,FALSE),FALSE))))","v":""},{"$f":"IF($A286=\"\",\"\",IF(VLOOKUP($G286,$H$11:$DN$1000,106,FALSE)=\"\",\"No\",IF(LEFT(VLOOKUP($G286,$H$11:$DN$1000,106,FALSE),3)=\"The\",EH286,VLOOKUP(VLOOKUP($G286,$H$11:$DN$1000,106,FALSE),DeclMatrix!$A$2:$F$5,VLOOKUP('Enrollment Form'!$B286,DeclMatrix!$A$8:$B$12,2,FALSE),FALSE))))","v":""},{"$f":"IF($A286=\"\",\"\",IF(VLOOKUP($G286,$H$11:$DN$1000,111,FALSE)=\"\",\"No\",IF(LEFT(VLOOKUP($G286,$H$11:$DN$1000,111,FALSE),3)=\"The\",EI286,VLOOKUP(VLOOKUP($G286,$H$11:$DN$1000,111,FALSE),DeclMatrix!$A$2:$F$5,VLOOKUP('Enrollment Form'!$B286,DeclMatrix!$A$8:$B$12,2,FALSE),FALSE))))","v":""},"",null,"","","","","","","","","","","",""]
["",{"$nulls":5},"","",{"$nulls":18},"","","","",{"$nulls":30},"","","","",{"$nulls":60},"",{"$f":"IF($A287=\"\",\"\",IF(VLOOKUP($G287,$H$11:$DN$1000,96,FALSE)=\"\",\"No\",IF(LEFT(VLOOKUP($G287,$H$11:$DN$1000,96,FALSE),3)=\"The\",EF287,VLOOKUP(VLOOKUP($G287,$H$11:$DN$1000,96,FALSE),DeclMatrix!$A$2:$F$5,VLOOKUP('Enrollment Form'!$B287,DeclMatrix!$A$8:$B$12,2,FALSE),FALSE))))","v":""},{"$f":"IF($A287=\"\",\"\",IF(VLOOKUP($G287,$H$11:$DN$1000,101,FALSE)=\"\",\"No\",IF(LEFT(VLOOKUP($G287,$H$11:$DN$1000,101,FALSE),3)=\"The\",EG287,VLOOKUP(VLOOKUP($G287,$H$11:$DN$1000,101,FALSE),DeclMatrix!$A$2:$F$5,VLOOKUP('Enrollment Form'!$B287,DeclMatrix!$A$8:$B$12,2,FALSE),FALSE))))","v":""},{"$f":"IF($A287=\"\",\"\",IF(VLOOKUP($G287,$H$11:$DN$1000,106,FALSE)=\"\",\"No\",IF(LEFT(VLOOKUP($G287,$H$11:$DN$1000,106,FALSE),3)=\"The\",EH287,VLOOKUP(VLOOKUP($G287,$H$11:$DN$1000,106,FALSE),DeclMatrix!$A$2:$F$5,VLOOKUP('Enrollment Form'!$B287,DeclMatrix!$A$8:$B$12,2,FALSE),FALSE))))","v":""},{"$f":"IF($A287=\"\",\"\",IF(VLOOKUP($G287,$H$11:$DN$1000,111,FALSE)=\"\",\"No\",IF(LEFT(VLOOKUP($G287,$H$11:$DN$1000,111,FALSE),3)=\"The\",EI287,VLOOKUP(VLOOKUP($G287,$H$11:$DN$1000,111,FALSE),DeclMatrix!$A$2:$F$5,VLOOKUP('Enrollment Form'!$B287,DeclMatrix!$A$8:$B$12,2,FALSE),FALSE))))","v":""},"",null,"","","","","","","","","","","",""]
["",{"$nulls":5},"","",{"$nulls":18},"","","","",{"$nulls":30},"","","","",{"$nulls":60},"",{"$f":"IF($A288=\"\",\"\",IF(VLOOKUP($G288,$H$11:$DN$1000,96,FALSE)=\"\",\"No\",IF(LEFT(VLOOKUP($G288,$H$11:$DN$1000,96,FALSE),3)=\"The\",EF288,VLOOKUP(VLOOKUP($G288,$H$11:$DN$1000,96,FALSE),DeclMatrix!$A$2:$F$5,VLOOKUP('Enrollment Form'!$B288,DeclMatrix!$A$8:$B$12,2,FALSE),FALSE))))","v":""},{"$f":"IF($A288=\"\",\"\",IF(VLOOKUP($G288,$H$11:$DN$1000,101,FALSE)=\"\",\"No\",IF(LEFT(VLOOKUP($G288,$H$11:$DN$1000,101,FALSE),3)=\"The\",EG288,VLOOKUP(VLOOKUP($G288,$H$11:$DN$1000,101,FALSE),DeclMatrix!$A$2:$F$5,VLOOKUP('Enrollment Form'!$B288,DeclMatrix!$A$8:$B$12,2,FALSE),FALSE))))","v":""},{"$f":"IF($A288=\"\",\"\",IF(VLOOKUP($G288,$H$11:$DN$1000,106,FALSE)=\"\",\"No\",IF(LEFT(VLOOKUP($G288,$H$11:$DN$1000,106,FALSE),3)=\"The\",EH288,VLOOKUP(VLOOKUP($G288,$H$11:$DN$1000,106,FALSE),DeclMatrix!$A$2:$F$5,VLOOKUP('Enrollment Form'!$B288,DeclMatrix!$A$8:$B$12,2,FALSE),FALSE))))","v":""},{"$f":"IF($A288=\"\",\"\",IF(VLOOKUP($G288,$H$11:$DN$1000,111,FALSE)=\"\",\"No\",IF(LEFT(VLOOKUP($G288,$H$11:$DN$1000,111,FALSE),3)=\"The\",EI288,VLOOKUP(VLOOKUP($G288,$H$11:$DN$1000,111,FALSE),DeclMatrix!$A$2:$F$5,VLOOKUP('Enrollment Form'!$B288,DeclMatrix!$A$8:$B$12,2,FALSE),FALSE))))","v":""},"",null,"","","","","","","","","","","",""]
["",{"$nulls":5},"","",{"$nulls":18},"","","","",{"$nulls":30},"","","","",{"$nulls":60},"",{"$f":"IF($A289=\"\",\"\",IF(VLOOKUP($G289,$H$11:$DN$1000,96,FALSE)=\"\",\"No\",IF(LEFT(VLOOKUP($G289,$H$11:$DN$1000,96,FALSE),3)=\"The\",EF289,VLOOKUP(VLOOKUP($G289,$H$11:$DN$1000,96,FALSE),DeclMatrix!$A$2:$F$5,VLOOKUP('Enrollment Form'!$B289,DeclMatrix!$A$8:$B$12,2,FALSE),FALSE))))","v":""},{"$f":"IF($A289=\"\",\"\",IF(VLOOKUP($G289,$H$11:$DN$1000,101,FALSE)=\"\",\"No\",IF(LEFT(VLOOKUP($G289,$H$11:$DN$1000,101,FALSE),3)=\"The\",EG289,VLOOKUP(VLOOKUP($G289,$H$11:$DN$1000,101,FALSE),DeclMatrix!$A$2:$F$5,VLOOKUP('Enrollment Form'!$B289,DeclMatrix!$A$8:$B$12,2,FALSE),FALSE))))","v":""},{"$f":"IF($A289=\"\",\"\",IF(VLOOKUP($G289,$H$11:$DN$1000,106,FALSE)=\"\",\"No\",IF(LEFT(VLOOKUP($G289,$H$11:$DN$1000,106,FALSE),3)=\"The\",EH289,VLOOKUP(VLOOKUP($G289,$H$11:$DN$1000,106,FALSE),DeclMatrix!$A$2:$F$5,VLOOKUP('Enrollment Form'!$B289,DeclMatrix!$A$8:$B$12,2,FALSE),FALSE))))","v":""},{"$f":"IF($A289=\"\",\"\",IF(VLOOKUP($G289,$H$11:$DN$1000,111,FALSE)=\"\",\"No\",IF(LEFT(VLOOKUP($G289,$H$11:$DN$1000,111,FALSE),3)=\"The\",EI289,VLOOKUP(VLOOKUP($G289,$H$11:$DN$1000,111,FALSE),DeclMatrix!$A$2:$F$5,VLOOKUP('Enrollment Form'!$B289,DeclMatrix!$A$8:$B$12,2,FALSE),FALSE))))","v":""},"",null,"","","","","","","","","","","",""]
["",{"$nulls":5},"","",{"$nulls":18},"","","","",{"$nulls":30},"","","","",{"$nulls":60},"",{"$f":"IF($A290=\"\",\"\",IF(VLOOKUP($G290,$H$11:$DN$1000,96,FALSE)=\"\",\"No\",IF(LEFT(VLOOKUP($G290,$H$11:$DN$1000,96,FALSE),3)=\"The\",EF290,VLOOKUP(VLOOKUP($G290,$H$11:$DN$1000,96,FALSE),DeclMatrix!$A$2:$F$5,VLOOKUP('Enrollment Form'!$B290,DeclMatrix!$A$8:$B$12,2,FALSE),FALSE))))","v":""},{"$f":"IF($A290=\"\",\"\",IF(VLOOKUP($G290,$H$11:$DN$1000,101,FALSE)=\"\",\"No\",IF(LEFT(VLOOKUP($G290,$H$11:$DN$1000,101,FALSE),3)=\"The\",EG290,VLOOKUP(VLOOKUP($G290,$H$11:$DN$1000,101,FALSE),DeclMatrix!$A$2:$F$5,VLOOKUP('Enrollment Form'!$B290,DeclMatrix!$A$8:$B$12,2,FALSE),FALSE))))","v":""},{"$f":"IF($A290=\"\",\"\",IF(VLOOKUP($G290,$H$11:$DN$1000,106,FALSE)=\"\",\"No\",IF(LEFT(VLOOKUP($G290,$H$11:$DN$1000,106,FALSE),3)=\"The\",EH290,VLOOKUP(VLOOKUP($G290,$H$11:$DN$1000,106,FALSE),DeclMatrix!$A$2:$F$5,VLOOKUP('Enrollment Form'!$B290,DeclMatrix!$A$8:$B$12,2,FALSE),FALSE))))","v":""},{"$f":"IF($A290=\"\",\"\",IF(VLOOKUP($G290,$H$11:$DN$1000,111,FALSE)=\"\",\"No\",IF(LEFT(VLOOKUP($G290,$H$11:$DN$1000,111,FALSE),3)=\"The\",EI290,VLOOKUP(VLOOKUP($G290,$H$11:$DN$1000,111,FALSE),DeclMatrix!$A$2:$F$5,VLOOKUP('Enrollment Form'!$B290,DeclMatrix!$A$8:$B$12,2,FALSE),FALSE))))","v":""},"",null,"","","","","","","","","","","",""]
["",{"$nulls":5},"","",{"$nulls":18},"","","","",{"$nulls":30},"","","","",{"$nulls":60},"",{"$f":"IF($A291=\"\",\"\",IF(VLOOKUP($G291,$H$11:$DN$1000,96,FALSE)=\"\",\"No\",IF(LEFT(VLOOKUP($G291,$H$11:$DN$1000,96,FALSE),3)=\"The\",EF291,VLOOKUP(VLOOKUP($G291,$H$11:$DN$1000,96,FALSE),DeclMatrix!$A$2:$F$5,VLOOKUP('Enrollment Form'!$B291,DeclMatrix!$A$8:$B$12,2,FALSE),FALSE))))","v":""},{"$f":"IF($A291=\"\",\"\",IF(VLOOKUP($G291,$H$11:$DN$1000,101,FALSE)=\"\",\"No\",IF(LEFT(VLOOKUP($G291,$H$11:$DN$1000,101,FALSE),3)=\"The\",EG291,VLOOKUP(VLOOKUP($G291,$H$11:$DN$1000,101,FALSE),DeclMatrix!$A$2:$F$5,VLOOKUP('Enrollment Form'!$B291,DeclMatrix!$A$8:$B$12,2,FALSE),FALSE))))","v":""},{"$f":"IF($A291=\"\",\"\",IF(VLOOKUP($G291,$H$11:$DN$1000,106,FALSE)=\"\",\"No\",IF(LEFT(VLOOKUP($G291,$H$11:$DN$1000,106,FALSE),3)=\"The\",EH291,VLOOKUP(VLOOKUP($G291,$H$11:$DN$1000,106,FALSE),DeclMatrix!$A$2:$F$5,VLOOKUP('Enrollment Form'!$B291,DeclMatrix!$A$8:$B$12,2,FALSE),FALSE))))","v":""},{"$f":"IF($A291=\"\",\"\",IF(VLOOKUP($G291,$H$11:$DN$1000,111,FALSE)=\"\",\"No\",IF(LEFT(VLOOKUP($G291,$H$11:$DN$1000,111,FALSE),3)=\"The\",EI291,VLOOKUP(VLOOKUP($G291,$H$11:$DN$1000,111,FALSE),DeclMatrix!$A$2:$F$5,VLOOKUP('Enrollment Form'!$B291,DeclMatrix!$A$8:$B$12,2,FALSE),FALSE))))","v":""},"",null,"","","","","","","","","","","",""]
["",{"$nulls":5},"","",{"$nulls":18},"","","","",{"$nulls":30},"","","","",{"$nulls":60},"",{"$f":"IF($A292=\"\",\"\",IF(VLOOKUP($G292,$H$11:$DN$1000,96,FALSE)=\"\",\"No\",IF(LEFT(VLOOKUP($G292,$H$11:$DN$1000,96,FALSE),3)=\"The\",EF292,VLOOKUP(VLOOKUP($G292,$H$11:$DN$1000,96,FALSE),DeclMatrix!$A$2:$F$5,VLOOKUP('Enrollment Form'!$B292,DeclMatrix!$A$8:$B$12,2,FALSE),FALSE))))","v":""},{"$f":"IF($A292=\"\",\"\",IF(VLOOKUP($G292,$H$11:$DN$1000,101,FALSE)=\"\",\"No\",IF(LEFT(VLOOKUP($G292,$H$11:$DN$1000,101,FALSE),3)=\"The\",EG292,VLOOKUP(VLOOKUP($G292,$H$11:$DN$1000,101,FALSE),DeclMatrix!$A$2:$F$5,VLOOKUP('Enrollment Form'!$B292,DeclMatrix!$A$8:$B$12,2,FALSE),FALSE))))","v":""},{"$f":"IF($A292=\"\",\"\",IF(VLOOKUP($G292,$H$11:$DN$1000,106,FALSE)=\"\",\"No\",IF(LEFT(VLOOKUP($G292,$H$11:$DN$1000,106,FALSE),3)=\"The\",EH292,VLOOKUP(VLOOKUP($G292,$H$11:$DN$1000,106,FALSE),DeclMatrix!$A$2:$F$5,VLOOKUP('Enrollment Form'!$B292,DeclMatrix!$A$8:$B$12,2,FALSE),FALSE))))","v":""},{"$f":"IF($A292=\"\",\"\",IF(VLOOKUP($G292,$H$11:$DN$1000,111,FALSE)=\"\",\"No\",IF(LEFT(VLOOKUP($G292,$H$11:$DN$1000,111,FALSE),3)=\"The\",EI292,VLOOKUP(VLOOKUP($G292,$H$11:$DN$1000,111,FALSE),DeclMatrix!$A$2:$F$5,VLOOKUP('Enrollment Form'!$B292,DeclMatrix!$A$8:$B$12,2,FALSE),FALSE))))","v":""},"",null,"","","","","","","","","","","",""]
["",{"$nulls":5},"","",{"$nulls":18},"","","","",{"$nulls":30},"","","","",{"$nulls":60},"",{"$f":"IF($A293=\"\",\"\",IF(VLOOKUP($G293,$H$11:$DN$1000,96,FALSE)=\"\",\"No\",IF(LEFT(VLOOKUP($G293,$H$11:$DN$1000,96,FALSE),3)=\"The\",EF293,VLOOKUP(VLOOKUP($G293,$H$11:$DN$1000,96,FALSE),DeclMatrix!$A$2:$F$5,VLOOKUP('Enrollment Form'!$B293,DeclMatrix!$A$8:$B$12,2,FALSE),FALSE))))","v":""},{"$f":"IF($A293=\"\",\"\",IF(VLOOKUP($G293,$H$11:$DN$1000,101,FALSE)=\"\",\"No\",IF(LEFT(VLOOKUP($G293,$H$11:$DN$1000,101,FALSE),3)=\"The\",EG293,VLOOKUP(VLOOKUP($G293,$H$11:$DN$1000,101,FALSE),DeclMatrix!$A$2:$F$5,VLOOKUP('Enrollment Form'!$B293,DeclMatrix!$A$8:$B$12,2,FALSE),FALSE))))","v":""},{"$f":"IF($A293=\"\",\"\",IF(VLOOKUP($G293,$H$11:$DN$1000,106,FALSE)=\"\",\"No\",IF(LEFT(VLOOKUP($G293,$H$11:$DN$1000,106,FALSE),3)=\"The\",EH293,VLOOKUP(VLOOKUP($G293,$H$11:$DN$1000,106,FALSE),DeclMatrix!$A$2:$F$5,VLOOKUP('Enrollment Form'!$B293,DeclMatrix!$A$8:$B$12,2,FALSE),FALSE))))","v":""},{"$f":"IF($A293=\"\",\"\",IF(VLOOKUP($G293,$H$11:$DN$1000,111,FALSE)=\"\",\"No\",IF(LEFT(VLOOKUP($G293,$H$11:$DN$1000,111,FALSE),3)=\"The\",EI293,VLOOKUP(VLOOKUP($G293,$H$11:$DN$1000,111,FALSE),DeclMatrix!$A$2:$F$5,VLOOKUP('Enrollment Form'!$B293,DeclMatrix!$A$8:$B$12,2,FALSE),FALSE))))","v":""},"",null,"","","","","","","","","","","",""]
["",{"$nulls":5},"","",{"$nulls":18},"","","","",{"$nulls":30},"","","","",{"$nulls":60},"",{"$f":"IF($A294=\"\",\"\",IF(VLOOKUP($G294,$H$11:$DN$1000,96,FALSE)=\"\",\"No\",IF(LEFT(VLOOKUP($G294,$H$11:$DN$1000,96,FALSE),3)=\"The\",EF294,VLOOKUP(VLOOKUP($G294,$H$11:$DN$1000,96,FALSE),DeclMatrix!$A$2:$F$5,VLOOKUP('Enrollment Form'!$B294,DeclMatrix!$A$8:$B$12,2,FALSE),FALSE))))","v":""},{"$f":"IF($A294=\"\",\"\",IF(VLOOKUP($G294,$H$11:$DN$1000,101,FALSE)=\"\",\"No\",IF(LEFT(VLOOKUP($G294,$H$11:$DN$1000,101,FALSE),3)=\"The\",EG294,VLOOKUP(VLOOKUP($G294,$H$11:$DN$1000,101,FALSE),DeclMatrix!$A$2:$F$5,VLOOKUP('Enrollment Form'!$B294,DeclMatrix!$A$8:$B$12,2,FALSE),FALSE))))","v":""},{"$f":"IF($A294=\"\",\"\",IF(VLOOKUP($G294,$H$11:$DN$1000,106,FALSE)=\"\",\"No\",IF(LEFT(VLOOKUP($G294,$H$11:$DN$1000,106,FALSE),3)=\"The\",EH294,VLOOKUP(VLOOKUP($G294,$H$11:$DN$1000,106,FALSE),DeclMatrix!$A$2:$F$5,VLOOKUP('Enrollment Form'!$B294,DeclMatrix!$A$8:$B$12,2,FALSE),FALSE))))","v":""},{"$f":"IF($A294=\"\",\"\",IF(VLOOKUP($G294,$H$11:$DN$1000,111,FALSE)=\"\",\"No\",IF(LEFT(VLOOKUP($G294,$H$11:$DN$1000,111,FALSE),3)=\"The\",EI294,VLOOKUP(VLOOKUP($G294,$H$11:$DN$1000,111,FALSE),DeclMatrix!$A$2:$F$5,VLOOKUP('Enrollment Form'!$B294,DeclMatrix!$A$8:$B$12,2,FALSE),FALSE))))","v":""},"",null,"","","","","","","","","","","",""]
["",{"$nulls":5},"","",{"$nulls":18},"","","","",{"$nulls":30},"","","","",{"$nulls":60},"",{"$f":"IF($A295=\"\",\"\",IF(VLOOKUP($G295,$H$11:$DN$1000,96,FALSE)=\"\",\"No\",IF(LEFT(VLOOKUP($G295,$H$11:$DN$1000,96,FALSE),3)=\"The\",EF295,VLOOKUP(VLOOKUP($G295,$H$11:$DN$1000,96,FALSE),DeclMatrix!$A$2:$F$5,VLOOKUP('Enrollment Form'!$B295,DeclMatrix!$A$8:$B$12,2,FALSE),FALSE))))","v":""},{"$f":"IF($A295=\"\",\"\",IF(VLOOKUP($G295,$H$11:$DN$1000,101,FALSE)=\"\",\"No\",IF(LEFT(VLOOKUP($G295,$H$11:$DN$1000,101,FALSE),3)=\"The\",EG295,VLOOKUP(VLOOKUP($G295,$H$11:$DN$1000,101,FALSE),DeclMatrix!$A$2:$F$5,VLOOKUP('Enrollment Form'!$B295,DeclMatrix!$A$8:$B$12,2,FALSE),FALSE))))","v":""},{"$f":"IF($A295=\"\",\"\",IF(VLOOKUP($G295,$H$11:$DN$1000,106,FALSE)=\"\",\"No\",IF(LEFT(VLOOKUP($G295,$H$11:$DN$1000,106,FALSE),3)=\"The\",EH295,VLOOKUP(VLOOKUP($G295,$H$11:$DN$1000,106,FALSE),DeclMatrix!$A$2:$F$5,VLOOKUP('Enrollment Form'!$B295,DeclMatrix!$A$8:$B$12,2,FALSE),FALSE))))","v":""},{"$f":"IF($A295=\"\",\"\",IF(VLOOKUP($G295,$H$11:$DN$1000,111,FALSE)=\"\",\"No\",IF(LEFT(VLOOKUP($G295,$H$11:$DN$1000,111,FALSE),3)=\"The\",EI295,VLOOKUP(VLOOKUP($G295,$H$11:$DN$1000,111,FALSE),DeclMatrix!$A$2:$F$5,VLOOKUP('Enrollment Form'!$B295,DeclMatrix!$A$8:$B$12,2,FALSE),FALSE))))","v":""},"",null,"","","","","","","","","","","",""]
["",{"$nulls":5},"","",{"$nulls":18},"","","","",{"$nulls":30},"","","","",{"$nulls":60},"",{"$f":"IF($A296=\"\",\"\",IF(VLOOKUP($G296,$H$11:$DN$1000,96,FALSE)=\"\",\"No\",IF(LEFT(VLOOKUP($G296,$H$11:$DN$1000,96,FALSE),3)=\"The\",EF296,VLOOKUP(VLOOKUP($G296,$H$11:$DN$1000,96,FALSE),DeclMatrix!$A$2:$F$5,VLOOKUP('Enrollment Form'!$B296,DeclMatrix!$A$8:$B$12,2,FALSE),FALSE))))","v":""},{"$f":"IF($A296=\"\",\"\",IF(VLOOKUP($G296,$H$11:$DN$1000,101,FALSE)=\"\",\"No\",IF(LEFT(VLOOKUP($G296,$H$11:$DN$1000,101,FALSE),3)=\"The\",EG296,VLOOKUP(VLOOKUP($G296,$H$11:$DN$1000,101,FALSE),DeclMatrix!$A$2:$F$5,VLOOKUP('Enrollment Form'!$B296,DeclMatrix!$A$8:$B$12,2,FALSE),FALSE))))","v":""},{"$f":"IF($A296=\"\",\"\",IF(VLOOKUP($G296,$H$11:$DN$1000,106,FALSE)=\"\",\"No\",IF(LEFT(VLOOKUP($G296,$H$11:$DN$1000,106,FALSE),3)=\"The\",EH296,VLOOKUP(VLOOKUP($G296,$H$11:$DN$1000,106,FALSE),DeclMatrix!$A$2:$F$5,VLOOKUP('Enrollment Form'!$B296,DeclMatrix!$A$8:$B$12,2,FALSE),FALSE))))","v":""},{"$f":"IF($A296=\"\",\"\",IF(VLOOKUP($G296,$H$11:$DN$1000,111,FALSE)=\"\",\"No\",IF(LEFT(VLOOKUP($G296,$H$11:$DN$1000,111,FALSE),3)=\"The\",EI296,VLOOKUP(VLOOKUP($G296,$H$11:$DN$1000,111,FALSE),DeclMatrix!$A$2:$F$5,VLOOKUP('Enrollment Form'!$B296,DeclMatrix!$A$8:$B$12,2,FALSE),FALSE))))","v":""},"",null,"","","","","","","","","","","",""]
["",{"$nulls":5},"","",{"$nulls":18},"","","","",{"$nulls":30},"","","","",{"$nulls":60},"",{"$f":"IF($A297=\"\",\"\",IF(VLOOKUP($G297,$H$11:$DN$1000,96,FALSE)=\"\",\"No\",IF(LEFT(VLOOKUP($G297,$H$11:$DN$1000,96,FALSE),3)=\"The\",EF297,VLOOKUP(VLOOKUP($G297,$H$11:$DN$1000,96,FALSE),DeclMatrix!$A$2:$F$5,VLOOKUP('Enrollment Form'!$B297,DeclMatrix!$A$8:$B$12,2,FALSE),FALSE))))","v":""},{"$f":"IF($A297=\"\",\"\",IF(VLOOKUP($G297,$H$11:$DN$1000,101,FALSE)=\"\",\"No\",IF(LEFT(VLOOKUP($G297,$H$11:$DN$1000,101,FALSE),3)=\"The\",EG297,VLOOKUP(VLOOKUP($G297,$H$11:$DN$1000,101,FALSE),DeclMatrix!$A$2:$F$5,VLOOKUP('Enrollment Form'!$B297,DeclMatrix!$A$8:$B$12,2,FALSE),FALSE))))","v":""},{"$f":"IF($A297=\"\",\"\",IF(VLOOKUP($G297,$H$11:$DN$1000,106,FALSE)=\"\",\"No\",IF(LEFT(VLOOKUP($G297,$H$11:$DN$1000,106,FALSE),3)=\"The\",EH297,VLOOKUP(VLOOKUP($G297,$H$11:$DN$1000,106,FALSE),DeclMatrix!$A$2:$F$5,VLOOKUP('Enrollment Form'!$B297,DeclMatrix!$A$8:$B$12,2,FALSE),FALSE))))","v":""},{"$f":"IF($A297=\"\",\"\",IF(VLOOKUP($G297,$H$11:$DN$1000,111,FALSE)=\"\",\"No\",IF(LEFT(VLOOKUP($G297,$H$11:$DN$1000,111,FALSE),3)=\"The\",EI297,VLOOKUP(VLOOKUP($G297,$H$11:$DN$1000,111,FALSE),DeclMatrix!$A$2:$F$5,VLOOKUP('Enrollment Form'!$B297,DeclMatrix!$A$8:$B$12,2,FALSE),FALSE))))","v":""},"",null,"","","","","","","","","","","",""]
["",{"$nulls":5},"","",{"$nulls":18},"","","","",{"$nulls":30},"","","","",{"$nulls":60},"",{"$f":"IF($A298=\"\",\"\",IF(VLOOKUP($G298,$H$11:$DN$1000,96,FALSE)=\"\",\"No\",IF(LEFT(VLOOKUP($G298,$H$11:$DN$1000,96,FALSE),3)=\"The\",EF298,VLOOKUP(VLOOKUP($G298,$H$11:$DN$1000,96,FALSE),DeclMatrix!$A$2:$F$5,VLOOKUP('Enrollment Form'!$B298,DeclMatrix!$A$8:$B$12,2,FALSE),FALSE))))","v":""},{"$f":"IF($A298=\"\",\"\",IF(VLOOKUP($G298,$H$11:$DN$1000,101,FALSE)=\"\",\"No\",IF(LEFT(VLOOKUP($G298,$H$11:$DN$1000,101,FALSE),3)=\"The\",EG298,VLOOKUP(VLOOKUP($G298,$H$11:$DN$1000,101,FALSE),DeclMatrix!$A$2:$F$5,VLOOKUP('Enrollment Form'!$B298,DeclMatrix!$A$8:$B$12,2,FALSE),FALSE))))","v":""},{"$f":"IF($A298=\"\",\"\",IF(VLOOKUP($G298,$H$11:$DN$1000,106,FALSE)=\"\",\"No\",IF(LEFT(VLOOKUP($G298,$H$11:$DN$1000,106,FALSE),3)=\"The\",EH298,VLOOKUP(VLOOKUP($G298,$H$11:$DN$1000,106,FALSE),DeclMatrix!$A$2:$F$5,VLOOKUP('Enrollment Form'!$B298,DeclMatrix!$A$8:$B$12,2,FALSE),FALSE))))","v":""},{"$f":"IF($A298=\"\",\"\",IF(VLOOKUP($G298,$H$11:$DN$1000,111,FALSE)=\"\",\"No\",IF(LEFT(VLOOKUP($G298,$H$11:$DN$1000,111,FALSE),3)=\"The\",EI298,VLOOKUP(VLOOKUP($G298,$H$11:$DN$1000,111,FALSE),DeclMatrix!$A$2:$F$5,VLOOKUP('Enrollment Form'!$B298,DeclMatrix!$A$8:$B$12,2,FALSE),FALSE))))","v":""},"",null,"","","","","","","","","","","",""]
["",{"$nulls":5},"","",{"$nulls":18},"","","","",{"$nulls":30},"","","","",{"$nulls":60},"",{"$f":"IF($A299=\"\",\"\",IF(VLOOKUP($G299,$H$11:$DN$1000,96,FALSE)=\"\",\"No\",IF(LEFT(VLOOKUP($G299,$H$11:$DN$1000,96,FALSE),3)=\"The\",EF299,VLOOKUP(VLOOKUP($G299,$H$11:$DN$1000,96,FALSE),DeclMatrix!$A$2:$F$5,VLOOKUP('Enrollment Form'!$B299,DeclMatrix!$A$8:$B$12,2,FALSE),FALSE))))","v":""},{"$f":"IF($A299=\"\",\"\",IF(VLOOKUP($G299,$H$11:$DN$1000,101,FALSE)=\"\",\"No\",IF(LEFT(VLOOKUP($G299,$H$11:$DN$1000,101,FALSE),3)=\"The\",EG299,VLOOKUP(VLOOKUP($G299,$H$11:$DN$1000,101,FALSE),DeclMatrix!$A$2:$F$5,VLOOKUP('Enrollment Form'!$B299,DeclMatrix!$A$8:$B$12,2,FALSE),FALSE))))","v":""},{"$f":"IF($A299=\"\",\"\",IF(VLOOKUP($G299,$H$11:$DN$1000,106,FALSE)=\"\",\"No\",IF(LEFT(VLOOKUP($G299,$H$11:$DN$1000,106,FALSE),3)=\"The\",EH299,VLOOKUP(VLOOKUP($G299,$H$11:$DN$1000,106,FALSE),DeclMatrix!$A$2:$F$5,VLOOKUP('Enrollment Form'!$B299,DeclMatrix!$A$8:$B$12,2,FALSE),FALSE))))","v":""},{"$f":"IF($A299=\"\",\"\",IF(VLOOKUP($G299,$H$11:$DN$1000,111,FALSE)=\"\",\"No\",IF(LEFT(VLOOKUP($G299,$H$11:$DN$1000,111,FALSE),3)=\"The\",EI299,VLOOKUP(VLOOKUP($G299,$H$11:$DN$1000,111,FALSE),DeclMatrix!$A$2:$F$5,VLOOKUP('Enrollment Form'!$B299,DeclMatrix!$A$8:$B$12,2,FALSE),FALSE))))","v":""},"",null,"","","","","","","","","","","",""]
["",{"$nulls":5},"","",{"$nulls":18},"","","","",{"$nulls":30},"","","","",{"$nulls":60},"",{"$f":"IF($A300=\"\",\"\",IF(VLOOKUP($G300,$H$11:$DN$1000,96,FALSE)=\"\",\"No\",IF(LEFT(VLOOKUP($G300,$H$11:$DN$1000,96,FALSE),3)=\"The\",EF300,VLOOKUP(VLOOKUP($G300,$H$11:$DN$1000,96,FALSE),DeclMatrix!$A$2:$F$5,VLOOKUP('Enrollment Form'!$B300,DeclMatrix!$A$8:$B$12,2,FALSE),FALSE))))","v":""},{"$f":"IF($A300=\"\",\"\",IF(VLOOKUP($G300,$H$11:$DN$1000,101,FALSE)=\"\",\"No\",IF(LEFT(VLOOKUP($G300,$H$11:$DN$1000,101,FALSE),3)=\"The\",EG300,VLOOKUP(VLOOKUP($G300,$H$11:$DN$1000,101,FALSE),DeclMatrix!$A$2:$F$5,VLOOKUP('Enrollment Form'!$B300,DeclMatrix!$A$8:$B$12,2,FALSE),FALSE))))","v":""},{"$f":"IF($A300=\"\",\"\",IF(VLOOKUP($G300,$H$11:$DN$1000,106,FALSE)=\"\",\"No\",IF(LEFT(VLOOKUP($G300,$H$11:$DN$1000,106,FALSE),3)=\"The\",EH300,VLOOKUP(VLOOKUP($G300,$H$11:$DN$1000,106,FALSE),DeclMatrix!$A$2:$F$5,VLOOKUP('Enrollment Form'!$B300,DeclMatrix!$A$8:$B$12,2,FALSE),FALSE))))","v":""},{"$f":"IF($A300=\"\",\"\",IF(VLOOKUP($G300,$H$11:$DN$1000,111,FALSE)=\"\",\"No\",IF(LEFT(VLOOKUP($G300,$H$11:$DN$1000,111,FALSE),3)=\"The\",EI300,VLOOKUP(VLOOKUP($G300,$H$11:$DN$1000,111,FALSE),DeclMatrix!$A$2:$F$5,VLOOKUP('Enrollment Form'!$B300,DeclMatrix!$A$8:$B$12,2,FALSE),FALSE))))","v":""},"",null,"","","","","","","","","","","",""]
["",{"$nulls":5},"","",{"$nulls":18},"","","","",{"$nulls":30},"","","","",{"$nulls":60},"",{"$f":"IF($A301=\"\",\"\",IF(VLOOKUP($G301,$H$11:$DN$1000,96,FALSE)=\"\",\"No\",IF(LEFT(VLOOKUP($G301,$H$11:$DN$1000,96,FALSE),3)=\"The\",EF301,VLOOKUP(VLOOKUP($G301,$H$11:$DN$1000,96,FALSE),DeclMatrix!$A$2:$F$5,VLOOKUP('Enrollment Form'!$B301,DeclMatrix!$A$8:$B$12,2,FALSE),FALSE))))","v":""},{"$f":"IF($A301=\"\",\"\",IF(VLOOKUP($G301,$H$11:$DN$1000,101,FALSE)=\"\",\"No\",IF(LEFT(VLOOKUP($G301,$H$11:$DN$1000,101,FALSE),3)=\"The\",EG301,VLOOKUP(VLOOKUP($G301,$H$11:$DN$1000,101,FALSE),DeclMatrix!$A$2:$F$5,VLOOKUP('Enrollment Form'!$B301,DeclMatrix!$A$8:$B$12,2,FALSE),FALSE))))","v":""},{"$f":"IF($A301=\"\",\"\",IF(VLOOKUP($G301,$H$11:$DN$1000,106,FALSE)=\"\",\"No\",IF(LEFT(VLOOKUP($G301,$H$11:$DN$1000,106,FALSE),3)=\"The\",EH301,VLOOKUP(VLOOKUP($G301,$H$11:$DN$1000,106,FALSE),DeclMatrix!$A$2:$F$5,VLOOKUP('Enrollment Form'!$B301,DeclMatrix!$A$8:$B$12,2,FALSE),FALSE))))","v":""},{"$f":"IF($A301=\"\",\"\",IF(VLOOKUP($G301,$H$11:$DN$1000,111,FALSE)=\"\",\"No\",IF(LEFT(VLOOKUP($G301,$H$11:$DN$1000,111,FALSE),3)=\"The\",EI301,VLOOKUP(VLOOKUP($G301,$H$11:$DN$1000,111,FALSE),DeclMatrix!$A$2:$F$5,VLOOKUP('Enrollment Form'!$B301,DeclMatrix!$A$8:$B$12,2,FALSE),FALSE))))","v":""},"",null,"","","","","","","","","","","",""]
["",{"$nulls":5},"","",{"$nulls":18},"","","","",{"$nulls":30},"","","","",{"$nulls":60},"",{"$f":"IF($A302=\"\",\"\",IF(VLOOKUP($G302,$H$11:$DN$1000,96,FALSE)=\"\",\"No\",IF(LEFT(VLOOKUP($G302,$H$11:$DN$1000,96,FALSE),3)=\"The\",EF302,VLOOKUP(VLOOKUP($G302,$H$11:$DN$1000,96,FALSE),DeclMatrix!$A$2:$F$5,VLOOKUP('Enrollment Form'!$B302,DeclMatrix!$A$8:$B$12,2,FALSE),FALSE))))","v":""},{"$f":"IF($A302=\"\",\"\",IF(VLOOKUP($G302,$H$11:$DN$1000,101,FALSE)=\"\",\"No\",IF(LEFT(VLOOKUP($G302,$H$11:$DN$1000,101,FALSE),3)=\"The\",EG302,VLOOKUP(VLOOKUP($G302,$H$11:$DN$1000,101,FALSE),DeclMatrix!$A$2:$F$5,VLOOKUP('Enrollment Form'!$B302,DeclMatrix!$A$8:$B$12,2,FALSE),FALSE))))","v":""},{"$f":"IF($A302=\"\",\"\",IF(VLOOKUP($G302,$H$11:$DN$1000,106,FALSE)=\"\",\"No\",IF(LEFT(VLOOKUP($G302,$H$11:$DN$1000,106,FALSE),3)=\"The\",EH302,VLOOKUP(VLOOKUP($G302,$H$11:$DN$1000,106,FALSE),DeclMatrix!$A$2:$F$5,VLOOKUP('Enrollment Form'!$B302,DeclMatrix!$A$8:$B$12,2,FALSE),FALSE))))","v":""},{"$f":"IF($A302=\"\",\"\",IF(VLOOKUP($G302,$H$11:$DN$1000,111,FALSE)=\"\",\"No\",IF(LEFT(VLOOKUP($G302,$H$11:$DN$1000,111,FALSE),3)=\"The\",EI302,VLOOKUP(VLOOKUP($G302,$H$11:$DN$1000,111,FALSE),DeclMatrix!$A$2:$F$5,VLOOKUP('Enrollment Form'!$B302,DeclMatrix!$A$8:$B$12,2,FALSE),FALSE))))","v":""},"",null,"","","","","","","","","","","",""]
["",{"$nulls":5},"","",{"$nulls":18},"","","","",{"$nulls":30},"","","","",{"$nulls":60},"",{"$f":"IF($A303=\"\",\"\",IF(VLOOKUP($G303,$H$11:$DN$1000,96,FALSE)=\"\",\"No\",IF(LEFT(VLOOKUP($G303,$H$11:$DN$1000,96,FALSE),3)=\"The\",EF303,VLOOKUP(VLOOKUP($G303,$H$11:$DN$1000,96,FALSE),DeclMatrix!$A$2:$F$5,VLOOKUP('Enrollment Form'!$B303,DeclMatrix!$A$8:$B$12,2,FALSE),FALSE))))","v":""},{"$f":"IF($A303=\"\",\"\",IF(VLOOKUP($G303,$H$11:$DN$1000,101,FALSE)=\"\",\"No\",IF(LEFT(VLOOKUP($G303,$H$11:$DN$1000,101,FALSE),3)=\"The\",EG303,VLOOKUP(VLOOKUP($G303,$H$11:$DN$1000,101,FALSE),DeclMatrix!$A$2:$F$5,VLOOKUP('Enrollment Form'!$B303,DeclMatrix!$A$8:$B$12,2,FALSE),FALSE))))","v":""},{"$f":"IF($A303=\"\",\"\",IF(VLOOKUP($G303,$H$11:$DN$1000,106,FALSE)=\"\",\"No\",IF(LEFT(VLOOKUP($G303,$H$11:$DN$1000,106,FALSE),3)=\"The\",EH303,VLOOKUP(VLOOKUP($G303,$H$11:$DN$1000,106,FALSE),DeclMatrix!$A$2:$F$5,VLOOKUP('Enrollment Form'!$B303,DeclMatrix!$A$8:$B$12,2,FALSE),FALSE))))","v":""},{"$f":"IF($A303=\"\",\"\",IF(VLOOKUP($G303,$H$11:$DN$1000,111,FALSE)=\"\",\"No\",IF(LEFT(VLOOKUP($G303,$H$11:$DN$1000,111,FALSE),3)=\"The\",EI303,VLOOKUP(VLOOKUP($G303,$H$11:$DN$1000,111,FALSE),DeclMatrix!$A$2:$F$5,VLOOKUP('Enrollment Form'!$B303,DeclMatrix!$A$8:$B$12,2,FALSE),FALSE))))","v":""},"",null,"","","","","","","","","","","",""]
["",{"$nulls":5},"","",{"$nulls":18},"","","","",{"$nulls":30},"","","","",{"$nulls":60},"",{"$f":"IF($A304=\"\",\"\",IF(VLOOKUP($G304,$H$11:$DN$1000,96,FALSE)=\"\",\"No\",IF(LEFT(VLOOKUP($G304,$H$11:$DN$1000,96,FALSE),3)=\"The\",EF304,VLOOKUP(VLOOKUP($G304,$H$11:$DN$1000,96,FALSE),DeclMatrix!$A$2:$F$5,VLOOKUP('Enrollment Form'!$B304,DeclMatrix!$A$8:$B$12,2,FALSE),FALSE))))","v":""},{"$f":"IF($A304=\"\",\"\",IF(VLOOKUP($G304,$H$11:$DN$1000,101,FALSE)=\"\",\"No\",IF(LEFT(VLOOKUP($G304,$H$11:$DN$1000,101,FALSE),3)=\"The\",EG304,VLOOKUP(VLOOKUP($G304,$H$11:$DN$1000,101,FALSE),DeclMatrix!$A$2:$F$5,VLOOKUP('Enrollment Form'!$B304,DeclMatrix!$A$8:$B$12,2,FALSE),FALSE))))","v":""},{"$f":"IF($A304=\"\",\"\",IF(VLOOKUP($G304,$H$11:$DN$1000,106,FALSE)=\"\",\"No\",IF(LEFT(VLOOKUP($G304,$H$11:$DN$1000,106,FALSE),3)=\"The\",EH304,VLOOKUP(VLOOKUP($G304,$H$11:$DN$1000,106,FALSE),DeclMatrix!$A$2:$F$5,VLOOKUP('Enrollment Form'!$B304,DeclMatrix!$A$8:$B$12,2,FALSE),FALSE))))","v":""},{"$f":"IF($A304=\"\",\"\",IF(VLOOKUP($G304,$H$11:$DN$1000,111,FALSE)=\"\",\"No\",IF(LEFT(VLOOKUP($G304,$H$11:$DN$1000,111,FALSE),3)=\"The\",EI304,VLOOKUP(VLOOKUP($G304,$H$11:$DN$1000,111,FALSE),DeclMatrix!$A$2:$F$5,VLOOKUP('Enrollment Form'!$B304,DeclMatrix!$A$8:$B$12,2,FALSE),FALSE))))","v":""},"",null,"","","","","","","","","","","",""]
["",{"$nulls":5},"","",{"$nulls":18},"","","","",{"$nulls":30},"","","","",{"$nulls":60},"",{"$f":"IF($A305=\"\",\"\",IF(VLOOKUP($G305,$H$11:$DN$1000,96,FALSE)=\"\",\"No\",IF(LEFT(VLOOKUP($G305,$H$11:$DN$1000,96,FALSE),3)=\"The\",EF305,VLOOKUP(VLOOKUP($G305,$H$11:$DN$1000,96,FALSE),DeclMatrix!$A$2:$F$5,VLOOKUP('Enrollment Form'!$B305,DeclMatrix!$A$8:$B$12,2,FALSE),FALSE))))","v":""},{"$f":"IF($A305=\"\",\"\",IF(VLOOKUP($G305,$H$11:$DN$1000,101,FALSE)=\"\",\"No\",IF(LEFT(VLOOKUP($G305,$H$11:$DN$1000,101,FALSE),3)=\"The\",EG305,VLOOKUP(VLOOKUP($G305,$H$11:$DN$1000,101,FALSE),DeclMatrix!$A$2:$F$5,VLOOKUP('Enrollment Form'!$B305,DeclMatrix!$A$8:$B$12,2,FALSE),FALSE))))","v":""},{"$f":"IF($A305=\"\",\"\",IF(VLOOKUP($G305,$H$11:$DN$1000,106,FALSE)=\"\",\"No\",IF(LEFT(VLOOKUP($G305,$H$11:$DN$1000,106,FALSE),3)=\"The\",EH305,VLOOKUP(VLOOKUP($G305,$H$11:$DN$1000,106,FALSE),DeclMatrix!$A$2:$F$5,VLOOKUP('Enrollment Form'!$B305,DeclMatrix!$A$8:$B$12,2,FALSE),FALSE))))","v":""},{"$f":"IF($A305=\"\",\"\",IF(VLOOKUP($G305,$H$11:$DN$1000,111,FALSE)=\"\",\"No\",IF(LEFT(VLOOKUP($G305,$H$11:$DN$1000,111,FALSE),3)=\"The\",EI305,VLOOKUP(VLOOKUP($G305,$H$11:$DN$1000,111,FALSE),DeclMatrix!$A$2:$F$5,VLOOKUP('Enrollment Form'!$B305,DeclMatrix!$A$8:$B$12,2,FALSE),FALSE))))","v":""},"",null,"","","","","","","","","","","",""]
["",{"$nulls":5},"","",{"$nulls":18},"","","","",{"$nulls":30},"","","","",{"$nulls":60},"",{"$f":"IF($A306=\"\",\"\",IF(VLOOKUP($G306,$H$11:$DN$1000,96,FALSE)=\"\",\"No\",IF(LEFT(VLOOKUP($G306,$H$11:$DN$1000,96,FALSE),3)=\"The\",EF306,VLOOKUP(VLOOKUP($G306,$H$11:$DN$1000,96,FALSE),DeclMatrix!$A$2:$F$5,VLOOKUP('Enrollment Form'!$B306,DeclMatrix!$A$8:$B$12,2,FALSE),FALSE))))","v":""},{"$f":"IF($A306=\"\",\"\",IF(VLOOKUP($G306,$H$11:$DN$1000,101,FALSE)=\"\",\"No\",IF(LEFT(VLOOKUP($G306,$H$11:$DN$1000,101,FALSE),3)=\"The\",EG306,VLOOKUP(VLOOKUP($G306,$H$11:$DN$1000,101,FALSE),DeclMatrix!$A$2:$F$5,VLOOKUP('Enrollment Form'!$B306,DeclMatrix!$A$8:$B$12,2,FALSE),FALSE))))","v":""},{"$f":"IF($A306=\"\",\"\",IF(VLOOKUP($G306,$H$11:$DN$1000,106,FALSE)=\"\",\"No\",IF(LEFT(VLOOKUP($G306,$H$11:$DN$1000,106,FALSE),3)=\"The\",EH306,VLOOKUP(VLOOKUP($G306,$H$11:$DN$1000,106,FALSE),DeclMatrix!$A$2:$F$5,VLOOKUP('Enrollment Form'!$B306,DeclMatrix!$A$8:$B$12,2,FALSE),FALSE))))","v":""},{"$f":"IF($A306=\"\",\"\",IF(VLOOKUP($G306,$H$11:$DN$1000,111,FALSE)=\"\",\"No\",IF(LEFT(VLOOKUP($G306,$H$11:$DN$1000,111,FALSE),3)=\"The\",EI306,VLOOKUP(VLOOKUP($G306,$H$11:$DN$1000,111,FALSE),DeclMatrix!$A$2:$F$5,VLOOKUP('Enrollment Form'!$B306,DeclMatrix!$A$8:$B$12,2,FALSE),FALSE))))","v":""},"",null,"","","","","","","","","","","",""]
["",{"$nulls":5},"","",{"$nulls":18},"","","","",{"$nulls":30},"","","","",{"$nulls":60},"",{"$f":"IF($A307=\"\",\"\",IF(VLOOKUP($G307,$H$11:$DN$1000,96,FALSE)=\"\",\"No\",IF(LEFT(VLOOKUP($G307,$H$11:$DN$1000,96,FALSE),3)=\"The\",EF307,VLOOKUP(VLOOKUP($G307,$H$11:$DN$1000,96,FALSE),DeclMatrix!$A$2:$F$5,VLOOKUP('Enrollment Form'!$B307,DeclMatrix!$A$8:$B$12,2,FALSE),FALSE))))","v":""},{"$f":"IF($A307=\"\",\"\",IF(VLOOKUP($G307,$H$11:$DN$1000,101,FALSE)=\"\",\"No\",IF(LEFT(VLOOKUP($G307,$H$11:$DN$1000,101,FALSE),3)=\"The\",EG307,VLOOKUP(VLOOKUP($G307,$H$11:$DN$1000,101,FALSE),DeclMatrix!$A$2:$F$5,VLOOKUP('Enrollment Form'!$B307,DeclMatrix!$A$8:$B$12,2,FALSE),FALSE))))","v":""},{"$f":"IF($A307=\"\",\"\",IF(VLOOKUP($G307,$H$11:$DN$1000,106,FALSE)=\"\",\"No\",IF(LEFT(VLOOKUP($G307,$H$11:$DN$1000,106,FALSE),3)=\"The\",EH307,VLOOKUP(VLOOKUP($G307,$H$11:$DN$1000,106,FALSE),DeclMatrix!$A$2:$F$5,VLOOKUP('Enrollment Form'!$B307,DeclMatrix!$A$8:$B$12,2,FALSE),FALSE))))","v":""},{"$f":"IF($A307=\"\",\"\",IF(VLOOKUP($G307,$H$11:$DN$1000,111,FALSE)=\"\",\"No\",IF(LEFT(VLOOKUP($G307,$H$11:$DN$1000,111,FALSE),3)=\"The\",EI307,VLOOKUP(VLOOKUP($G307,$H$11:$DN$1000,111,FALSE),DeclMatrix!$A$2:$F$5,VLOOKUP('Enrollment Form'!$B307,DeclMatrix!$A$8:$B$12,2,FALSE),FALSE))))","v":""},"",null,"","","","","","","","","","","",""]
["",{"$nulls":5},"","",{"$nulls":18},"","","","",{"$nulls":30},"","","","",{"$nulls":60},"",{"$f":"IF($A308=\"\",\"\",IF(VLOOKUP($G308,$H$11:$DN$1000,96,FALSE)=\"\",\"No\",IF(LEFT(VLOOKUP($G308,$H$11:$DN$1000,96,FALSE),3)=\"The\",EF308,VLOOKUP(VLOOKUP($G308,$H$11:$DN$1000,96,FALSE),DeclMatrix!$A$2:$F$5,VLOOKUP('Enrollment Form'!$B308,DeclMatrix!$A$8:$B$12,2,FALSE),FALSE))))","v":""},{"$f":"IF($A308=\"\",\"\",IF(VLOOKUP($G308,$H$11:$DN$1000,101,FALSE)=\"\",\"No\",IF(LEFT(VLOOKUP($G308,$H$11:$DN$1000,101,FALSE),3)=\"The\",EG308,VLOOKUP(VLOOKUP($G308,$H$11:$DN$1000,101,FALSE),DeclMatrix!$A$2:$F$5,VLOOKUP('Enrollment Form'!$B308,DeclMatrix!$A$8:$B$12,2,FALSE),FALSE))))","v":""},{"$f":"IF($A308=\"\",\"\",IF(VLOOKUP($G308,$H$11:$DN$1000,106,FALSE)=\"\",\"No\",IF(LEFT(VLOOKUP($G308,$H$11:$DN$1000,106,FALSE),3)=\"The\",EH308,VLOOKUP(VLOOKUP($G308,$H$11:$DN$1000,106,FALSE),DeclMatrix!$A$2:$F$5,VLOOKUP('Enrollment Form'!$B308,DeclMatrix!$A$8:$B$12,2,FALSE),FALSE))))","v":""},{"$f":"IF($A308=\"\",\"\",IF(VLOOKUP($G308,$H$11:$DN$1000,111,FALSE)=\"\",\"No\",IF(LEFT(VLOOKUP($G308,$H$11:$DN$1000,111,FALSE),3)=\"The\",EI308,VLOOKUP(VLOOKUP($G308,$H$11:$DN$1000,111,FALSE),DeclMatrix!$A$2:$F$5,VLOOKUP('Enrollment Form'!$B308,DeclMatrix!$A$8:$B$12,2,FALSE),FALSE))))","v":""},"",null,"","","","","","","","","","","",""]
["",{"$nulls":5},"","",{"$nulls":18},"","","","",{"$nulls":30},"","","","",{"$nulls":60},"",{"$f":"IF($A309=\"\",\"\",IF(VLOOKUP($G309,$H$11:$DN$1000,96,FALSE)=\"\",\"No\",IF(LEFT(VLOOKUP($G309,$H$11:$DN$1000,96,FALSE),3)=\"The\",EF309,VLOOKUP(VLOOKUP($G309,$H$11:$DN$1000,96,FALSE),DeclMatrix!$A$2:$F$5,VLOOKUP('Enrollment Form'!$B309,DeclMatrix!$A$8:$B$12,2,FALSE),FALSE))))","v":""},{"$f":"IF($A309=\"\",\"\",IF(VLOOKUP($G309,$H$11:$DN$1000,101,FALSE)=\"\",\"No\",IF(LEFT(VLOOKUP($G309,$H$11:$DN$1000,101,FALSE),3)=\"The\",EG309,VLOOKUP(VLOOKUP($G309,$H$11:$DN$1000,101,FALSE),DeclMatrix!$A$2:$F$5,VLOOKUP('Enrollment Form'!$B309,DeclMatrix!$A$8:$B$12,2,FALSE),FALSE))))","v":""},{"$f":"IF($A309=\"\",\"\",IF(VLOOKUP($G309,$H$11:$DN$1000,106,FALSE)=\"\",\"No\",IF(LEFT(VLOOKUP($G309,$H$11:$DN$1000,106,FALSE),3)=\"The\",EH309,VLOOKUP(VLOOKUP($G309,$H$11:$DN$1000,106,FALSE),DeclMatrix!$A$2:$F$5,VLOOKUP('Enrollment Form'!$B309,DeclMatrix!$A$8:$B$12,2,FALSE),FALSE))))","v":""},{"$f":"IF($A309=\"\",\"\",IF(VLOOKUP($G309,$H$11:$DN$1000,111,FALSE)=\"\",\"No\",IF(LEFT(VLOOKUP($G309,$H$11:$DN$1000,111,FALSE),3)=\"The\",EI309,VLOOKUP(VLOOKUP($G309,$H$11:$DN$1000,111,FALSE),DeclMatrix!$A$2:$F$5,VLOOKUP('Enrollment Form'!$B309,DeclMatrix!$A$8:$B$12,2,FALSE),FALSE))))","v":""},"",null,"","","","","","","","","","","",""]
["",{"$nulls":5},"","",{"$nulls":18},"","","","",{"$nulls":30},"","","","",{"$nulls":60},"",{"$f":"IF($A310=\"\",\"\",IF(VLOOKUP($G310,$H$11:$DN$1000,96,FALSE)=\"\",\"No\",IF(LEFT(VLOOKUP($G310,$H$11:$DN$1000,96,FALSE),3)=\"The\",EF310,VLOOKUP(VLOOKUP($G310,$H$11:$DN$1000,96,FALSE),DeclMatrix!$A$2:$F$5,VLOOKUP('Enrollment Form'!$B310,DeclMatrix!$A$8:$B$12,2,FALSE),FALSE))))","v":""},{"$f":"IF($A310=\"\",\"\",IF(VLOOKUP($G310,$H$11:$DN$1000,101,FALSE)=\"\",\"No\",IF(LEFT(VLOOKUP($G310,$H$11:$DN$1000,101,FALSE),3)=\"The\",EG310,VLOOKUP(VLOOKUP($G310,$H$11:$DN$1000,101,FALSE),DeclMatrix!$A$2:$F$5,VLOOKUP('Enrollment Form'!$B310,DeclMatrix!$A$8:$B$12,2,FALSE),FALSE))))","v":""},{"$f":"IF($A310=\"\",\"\",IF(VLOOKUP($G310,$H$11:$DN$1000,106,FALSE)=\"\",\"No\",IF(LEFT(VLOOKUP($G310,$H$11:$DN$1000,106,FALSE),3)=\"The\",EH310,VLOOKUP(VLOOKUP($G310,$H$11:$DN$1000,106,FALSE),DeclMatrix!$A$2:$F$5,VLOOKUP('Enrollment Form'!$B310,DeclMatrix!$A$8:$B$12,2,FALSE),FALSE))))","v":""},{"$f":"IF($A310=\"\",\"\",IF(VLOOKUP($G310,$H$11:$DN$1000,111,FALSE)=\"\",\"No\",IF(LEFT(VLOOKUP($G310,$H$11:$DN$1000,111,FALSE),3)=\"The\",EI310,VLOOKUP(VLOOKUP($G310,$H$11:$DN$1000,111,FALSE),DeclMatrix!$A$2:$F$5,VLOOKUP('Enrollment Form'!$B310,DeclMatrix!$A$8:$B$12,2,FALSE),FALSE))))","v":""},"",null,"","","","","","","","","","","",""]
["",{"$nulls":5},"","",{"$nulls":18},"","","","",{"$nulls":30},"","","","",{"$nulls":60},"",{"$f":"IF($A311=\"\",\"\",IF(VLOOKUP($G311,$H$11:$DN$1000,96,FALSE)=\"\",\"No\",IF(LEFT(VLOOKUP($G311,$H$11:$DN$1000,96,FALSE),3)=\"The\",EF311,VLOOKUP(VLOOKUP($G311,$H$11:$DN$1000,96,FALSE),DeclMatrix!$A$2:$F$5,VLOOKUP('Enrollment Form'!$B311,DeclMatrix!$A$8:$B$12,2,FALSE),FALSE))))","v":""},{"$f":"IF($A311=\"\",\"\",IF(VLOOKUP($G311,$H$11:$DN$1000,101,FALSE)=\"\",\"No\",IF(LEFT(VLOOKUP($G311,$H$11:$DN$1000,101,FALSE),3)=\"The\",EG311,VLOOKUP(VLOOKUP($G311,$H$11:$DN$1000,101,FALSE),DeclMatrix!$A$2:$F$5,VLOOKUP('Enrollment Form'!$B311,DeclMatrix!$A$8:$B$12,2,FALSE),FALSE))))","v":""},{"$f":"IF($A311=\"\",\"\",IF(VLOOKUP($G311,$H$11:$DN$1000,106,FALSE)=\"\",\"No\",IF(LEFT(VLOOKUP($G311,$H$11:$DN$1000,106,FALSE),3)=\"The\",EH311,VLOOKUP(VLOOKUP($G311,$H$11:$DN$1000,106,FALSE),DeclMatrix!$A$2:$F$5,VLOOKUP('Enrollment Form'!$B311,DeclMatrix!$A$8:$B$12,2,FALSE),FALSE))))","v":""},{"$f":"IF($A311=\"\",\"\",IF(VLOOKUP($G311,$H$11:$DN$1000,111,FALSE)=\"\",\"No\",IF(LEFT(VLOOKUP($G311,$H$11:$DN$1000,111,FALSE),3)=\"The\",EI311,VLOOKUP(VLOOKUP($G311,$H$11:$DN$1000,111,FALSE),DeclMatrix!$A$2:$F$5,VLOOKUP('Enrollment Form'!$B311,DeclMatrix!$A$8:$B$12,2,FALSE),FALSE))))","v":""},"",null,"","","","","","","","","","","",""]
["",{"$nulls":5},"","",{"$nulls":18},"","","","",{"$nulls":30},"","","","",{"$nulls":60},"",{"$f":"IF($A312=\"\",\"\",IF(VLOOKUP($G312,$H$11:$DN$1000,96,FALSE)=\"\",\"No\",IF(LEFT(VLOOKUP($G312,$H$11:$DN$1000,96,FALSE),3)=\"The\",EF312,VLOOKUP(VLOOKUP($G312,$H$11:$DN$1000,96,FALSE),DeclMatrix!$A$2:$F$5,VLOOKUP('Enrollment Form'!$B312,DeclMatrix!$A$8:$B$12,2,FALSE),FALSE))))","v":""},{"$f":"IF($A312=\"\",\"\",IF(VLOOKUP($G312,$H$11:$DN$1000,101,FALSE)=\"\",\"No\",IF(LEFT(VLOOKUP($G312,$H$11:$DN$1000,101,FALSE),3)=\"The\",EG312,VLOOKUP(VLOOKUP($G312,$H$11:$DN$1000,101,FALSE),DeclMatrix!$A$2:$F$5,VLOOKUP('Enrollment Form'!$B312,DeclMatrix!$A$8:$B$12,2,FALSE),FALSE))))","v":""},{"$f":"IF($A312=\"\",\"\",IF(VLOOKUP($G312,$H$11:$DN$1000,106,FALSE)=\"\",\"No\",IF(LEFT(VLOOKUP($G312,$H$11:$DN$1000,106,FALSE),3)=\"The\",EH312,VLOOKUP(VLOOKUP($G312,$H$11:$DN$1000,106,FALSE),DeclMatrix!$A$2:$F$5,VLOOKUP('Enrollment Form'!$B312,DeclMatrix!$A$8:$B$12,2,FALSE),FALSE))))","v":""},{"$f":"IF($A312=\"\",\"\",IF(VLOOKUP($G312,$H$11:$DN$1000,111,FALSE)=\"\",\"No\",IF(LEFT(VLOOKUP($G312,$H$11:$DN$1000,111,FALSE),3)=\"The\",EI312,VLOOKUP(VLOOKUP($G312,$H$11:$DN$1000,111,FALSE),DeclMatrix!$A$2:$F$5,VLOOKUP('Enrollment Form'!$B312,DeclMatrix!$A$8:$B$12,2,FALSE),FALSE))))","v":""},"",null,"","","","","","","","","","","",""]
["",{"$nulls":5},"","",{"$nulls":18},"","","","",{"$nulls":30},"","","","",{"$nulls":60},"",{"$f":"IF($A313=\"\",\"\",IF(VLOOKUP($G313,$H$11:$DN$1000,96,FALSE)=\"\",\"No\",IF(LEFT(VLOOKUP($G313,$H$11:$DN$1000,96,FALSE),3)=\"The\",EF313,VLOOKUP(VLOOKUP($G313,$H$11:$DN$1000,96,FALSE),DeclMatrix!$A$2:$F$5,VLOOKUP('Enrollment Form'!$B313,DeclMatrix!$A$8:$B$12,2,FALSE),FALSE))))","v":""},{"$f":"IF($A313=\"\",\"\",IF(VLOOKUP($G313,$H$11:$DN$1000,101,FALSE)=\"\",\"No\",IF(LEFT(VLOOKUP($G313,$H$11:$DN$1000,101,FALSE),3)=\"The\",EG313,VLOOKUP(VLOOKUP($G313,$H$11:$DN$1000,101,FALSE),DeclMatrix!$A$2:$F$5,VLOOKUP('Enrollment Form'!$B313,DeclMatrix!$A$8:$B$12,2,FALSE),FALSE))))","v":""},{"$f":"IF($A313=\"\",\"\",IF(VLOOKUP($G313,$H$11:$DN$1000,106,FALSE)=\"\",\"No\",IF(LEFT(VLOOKUP($G313,$H$11:$DN$1000,106,FALSE),3)=\"The\",EH313,VLOOKUP(VLOOKUP($G313,$H$11:$DN$1000,106,FALSE),DeclMatrix!$A$2:$F$5,VLOOKUP('Enrollment Form'!$B313,DeclMatrix!$A$8:$B$12,2,FALSE),FALSE))))","v":""},{"$f":"IF($A313=\"\",\"\",IF(VLOOKUP($G313,$H$11:$DN$1000,111,FALSE)=\"\",\"No\",IF(LEFT(VLOOKUP($G313,$H$11:$DN$1000,111,FALSE),3)=\"The\",EI313,VLOOKUP(VLOOKUP($G313,$H$11:$DN$1000,111,FALSE),DeclMatrix!$A$2:$F$5,VLOOKUP('Enrollment Form'!$B313,DeclMatrix!$A$8:$B$12,2,FALSE),FALSE))))","v":""},"",null,"","","","","","","","","","","",""]
["",{"$nulls":5},"","",{"$nulls":18},"","","","",{"$nulls":30},"","","","",{"$nulls":60},"",{"$f":"IF($A314=\"\",\"\",IF(VLOOKUP($G314,$H$11:$DN$1000,96,FALSE)=\"\",\"No\",IF(LEFT(VLOOKUP($G314,$H$11:$DN$1000,96,FALSE),3)=\"The\",EF314,VLOOKUP(VLOOKUP($G314,$H$11:$DN$1000,96,FALSE),DeclMatrix!$A$2:$F$5,VLOOKUP('Enrollment Form'!$B314,DeclMatrix!$A$8:$B$12,2,FALSE),FALSE))))","v":""},{"$f":"IF($A314=\"\",\"\",IF(VLOOKUP($G314,$H$11:$DN$1000,101,FALSE)=\"\",\"No\",IF(LEFT(VLOOKUP($G314,$H$11:$DN$1000,101,FALSE),3)=\"The\",EG314,VLOOKUP(VLOOKUP($G314,$H$11:$DN$1000,101,FALSE),DeclMatrix!$A$2:$F$5,VLOOKUP('Enrollment Form'!$B314,DeclMatrix!$A$8:$B$12,2,FALSE),FALSE))))","v":""},{"$f":"IF($A314=\"\",\"\",IF(VLOOKUP($G314,$H$11:$DN$1000,106,FALSE)=\"\",\"No\",IF(LEFT(VLOOKUP($G314,$H$11:$DN$1000,106,FALSE),3)=\"The\",EH314,VLOOKUP(VLOOKUP($G314,$H$11:$DN$1000,106,FALSE),DeclMatrix!$A$2:$F$5,VLOOKUP('Enrollment Form'!$B314,DeclMatrix!$A$8:$B$12,2,FALSE),FALSE))))","v":""},{"$f":"IF($A314=\"\",\"\",IF(VLOOKUP($G314,$H$11:$DN$1000,111,FALSE)=\"\",\"No\",IF(LEFT(VLOOKUP($G314,$H$11:$DN$1000,111,FALSE),3)=\"The\",EI314,VLOOKUP(VLOOKUP($G314,$H$11:$DN$1000,111,FALSE),DeclMatrix!$A$2:$F$5,VLOOKUP('Enrollment Form'!$B314,DeclMatrix!$A$8:$B$12,2,FALSE),FALSE))))","v":""},"",null,"","","","","","","","","","","",""]
["",{"$nulls":5},"","",{"$nulls":18},"","","","",{"$nulls":30},"","","","",{"$nulls":60},"",{"$f":"IF($A315=\"\",\"\",IF(VLOOKUP($G315,$H$11:$DN$1000,96,FALSE)=\"\",\"No\",IF(LEFT(VLOOKUP($G315,$H$11:$DN$1000,96,FALSE),3)=\"The\",EF315,VLOOKUP(VLOOKUP($G315,$H$11:$DN$1000,96,FALSE),DeclMatrix!$A$2:$F$5,VLOOKUP('Enrollment Form'!$B315,DeclMatrix!$A$8:$B$12,2,FALSE),FALSE))))","v":""},{"$f":"IF($A315=\"\",\"\",IF(VLOOKUP($G315,$H$11:$DN$1000,101,FALSE)=\"\",\"No\",IF(LEFT(VLOOKUP($G315,$H$11:$DN$1000,101,FALSE),3)=\"The\",EG315,VLOOKUP(VLOOKUP($G315,$H$11:$DN$1000,101,FALSE),DeclMatrix!$A$2:$F$5,VLOOKUP('Enrollment Form'!$B315,DeclMatrix!$A$8:$B$12,2,FALSE),FALSE))))","v":""},{"$f":"IF($A315=\"\",\"\",IF(VLOOKUP($G315,$H$11:$DN$1000,106,FALSE)=\"\",\"No\",IF(LEFT(VLOOKUP($G315,$H$11:$DN$1000,106,FALSE),3)=\"The\",EH315,VLOOKUP(VLOOKUP($G315,$H$11:$DN$1000,106,FALSE),DeclMatrix!$A$2:$F$5,VLOOKUP('Enrollment Form'!$B315,DeclMatrix!$A$8:$B$12,2,FALSE),FALSE))))","v":""},{"$f":"IF($A315=\"\",\"\",IF(VLOOKUP($G315,$H$11:$DN$1000,111,FALSE)=\"\",\"No\",IF(LEFT(VLOOKUP($G315,$H$11:$DN$1000,111,FALSE),3)=\"The\",EI315,VLOOKUP(VLOOKUP($G315,$H$11:$DN$1000,111,FALSE),DeclMatrix!$A$2:$F$5,VLOOKUP('Enrollment Form'!$B315,DeclMatrix!$A$8:$B$12,2,FALSE),FALSE))))","v":""},"",null,"","","","","","","","","","","",""]
["",{"$nulls":5},"","",{"$nulls":18},"","","","",{"$nulls":30},"","","","",{"$nulls":60},"",{"$f":"IF($A316=\"\",\"\",IF(VLOOKUP($G316,$H$11:$DN$1000,96,FALSE)=\"\",\"No\",IF(LEFT(VLOOKUP($G316,$H$11:$DN$1000,96,FALSE),3)=\"The\",EF316,VLOOKUP(VLOOKUP($G316,$H$11:$DN$1000,96,FALSE),DeclMatrix!$A$2:$F$5,VLOOKUP('Enrollment Form'!$B316,DeclMatrix!$A$8:$B$12,2,FALSE),FALSE))))","v":""},{"$f":"IF($A316=\"\",\"\",IF(VLOOKUP($G316,$H$11:$DN$1000,101,FALSE)=\"\",\"No\",IF(LEFT(VLOOKUP($G316,$H$11:$DN$1000,101,FALSE),3)=\"The\",EG316,VLOOKUP(VLOOKUP($G316,$H$11:$DN$1000,101,FALSE),DeclMatrix!$A$2:$F$5,VLOOKUP('Enrollment Form'!$B316,DeclMatrix!$A$8:$B$12,2,FALSE),FALSE))))","v":""},{"$f":"IF($A316=\"\",\"\",IF(VLOOKUP($G316,$H$11:$DN$1000,106,FALSE)=\"\",\"No\",IF(LEFT(VLOOKUP($G316,$H$11:$DN$1000,106,FALSE),3)=\"The\",EH316,VLOOKUP(VLOOKUP($G316,$H$11:$DN$1000,106,FALSE),DeclMatrix!$A$2:$F$5,VLOOKUP('Enrollment Form'!$B316,DeclMatrix!$A$8:$B$12,2,FALSE),FALSE))))","v":""},{"$f":"IF($A316=\"\",\"\",IF(VLOOKUP($G316,$H$11:$DN$1000,111,FALSE)=\"\",\"No\",IF(LEFT(VLOOKUP($G316,$H$11:$DN$1000,111,FALSE),3)=\"The\",EI316,VLOOKUP(VLOOKUP($G316,$H$11:$DN$1000,111,FALSE),DeclMatrix!$A$2:$F$5,VLOOKUP('Enrollment Form'!$B316,DeclMatrix!$A$8:$B$12,2,FALSE),FALSE))))","v":""},"",null,"","","","","","","","","","","",""]
["",{"$nulls":5},"","",{"$nulls":18},"","","","",{"$nulls":30},"","","","",{"$nulls":60},"",{"$f":"IF($A317=\"\",\"\",IF(VLOOKUP($G317,$H$11:$DN$1000,96,FALSE)=\"\",\"No\",IF(LEFT(VLOOKUP($G317,$H$11:$DN$1000,96,FALSE),3)=\"The\",EF317,VLOOKUP(VLOOKUP($G317,$H$11:$DN$1000,96,FALSE),DeclMatrix!$A$2:$F$5,VLOOKUP('Enrollment Form'!$B317,DeclMatrix!$A$8:$B$12,2,FALSE),FALSE))))","v":""},{"$f":"IF($A317=\"\",\"\",IF(VLOOKUP($G317,$H$11:$DN$1000,101,FALSE)=\"\",\"No\",IF(LEFT(VLOOKUP($G317,$H$11:$DN$1000,101,FALSE),3)=\"The\",EG317,VLOOKUP(VLOOKUP($G317,$H$11:$DN$1000,101,FALSE),DeclMatrix!$A$2:$F$5,VLOOKUP('Enrollment Form'!$B317,DeclMatrix!$A$8:$B$12,2,FALSE),FALSE))))","v":""},{"$f":"IF($A317=\"\",\"\",IF(VLOOKUP($G317,$H$11:$DN$1000,106,FALSE)=\"\",\"No\",IF(LEFT(VLOOKUP($G317,$H$11:$DN$1000,106,FALSE),3)=\"The\",EH317,VLOOKUP(VLOOKUP($G317,$H$11:$DN$1000,106,FALSE),DeclMatrix!$A$2:$F$5,VLOOKUP('Enrollment Form'!$B317,DeclMatrix!$A$8:$B$12,2,FALSE),FALSE))))","v":""},{"$f":"IF($A317=\"\",\"\",IF(VLOOKUP($G317,$H$11:$DN$1000,111,FALSE)=\"\",\"No\",IF(LEFT(VLOOKUP($G317,$H$11:$DN$1000,111,FALSE),3)=\"The\",EI317,VLOOKUP(VLOOKUP($G317,$H$11:$DN$1000,111,FALSE),DeclMatrix!$A$2:$F$5,VLOOKUP('Enrollment Form'!$B317,DeclMatrix!$A$8:$B$12,2,FALSE),FALSE))))","v":""},"",null,"","","","","","","","","","","",""]
["",{"$nulls":5},"","",{"$nulls":18},"","","","",{"$nulls":30},"","","","",{"$nulls":60},"",{"$f":"IF($A318=\"\",\"\",IF(VLOOKUP($G318,$H$11:$DN$1000,96,FALSE)=\"\",\"No\",IF(LEFT(VLOOKUP($G318,$H$11:$DN$1000,96,FALSE),3)=\"The\",EF318,VLOOKUP(VLOOKUP($G318,$H$11:$DN$1000,96,FALSE),DeclMatrix!$A$2:$F$5,VLOOKUP('Enrollment Form'!$B318,DeclMatrix!$A$8:$B$12,2,FALSE),FALSE))))","v":""},{"$f":"IF($A318=\"\",\"\",IF(VLOOKUP($G318,$H$11:$DN$1000,101,FALSE)=\"\",\"No\",IF(LEFT(VLOOKUP($G318,$H$11:$DN$1000,101,FALSE),3)=\"The\",EG318,VLOOKUP(VLOOKUP($G318,$H$11:$DN$1000,101,FALSE),DeclMatrix!$A$2:$F$5,VLOOKUP('Enrollment Form'!$B318,DeclMatrix!$A$8:$B$12,2,FALSE),FALSE))))","v":""},{"$f":"IF($A318=\"\",\"\",IF(VLOOKUP($G318,$H$11:$DN$1000,106,FALSE)=\"\",\"No\",IF(LEFT(VLOOKUP($G318,$H$11:$DN$1000,106,FALSE),3)=\"The\",EH318,VLOOKUP(VLOOKUP($G318,$H$11:$DN$1000,106,FALSE),DeclMatrix!$A$2:$F$5,VLOOKUP('Enrollment Form'!$B318,DeclMatrix!$A$8:$B$12,2,FALSE),FALSE))))","v":""},{"$f":"IF($A318=\"\",\"\",IF(VLOOKUP($G318,$H$11:$DN$1000,111,FALSE)=\"\",\"No\",IF(LEFT(VLOOKUP($G318,$H$11:$DN$1000,111,FALSE),3)=\"The\",EI318,VLOOKUP(VLOOKUP($G318,$H$11:$DN$1000,111,FALSE),DeclMatrix!$A$2:$F$5,VLOOKUP('Enrollment Form'!$B318,DeclMatrix!$A$8:$B$12,2,FALSE),FALSE))))","v":""},"",null,"","","","","","","","","","","",""]
["",{"$nulls":5},"","",{"$nulls":18},"","","","",{"$nulls":30},"","","","",{"$nulls":60},"",{"$f":"IF($A319=\"\",\"\",IF(VLOOKUP($G319,$H$11:$DN$1000,96,FALSE)=\"\",\"No\",IF(LEFT(VLOOKUP($G319,$H$11:$DN$1000,96,FALSE),3)=\"The\",EF319,VLOOKUP(VLOOKUP($G319,$H$11:$DN$1000,96,FALSE),DeclMatrix!$A$2:$F$5,VLOOKUP('Enrollment Form'!$B319,DeclMatrix!$A$8:$B$12,2,FALSE),FALSE))))","v":""},{"$f":"IF($A319=\"\",\"\",IF(VLOOKUP($G319,$H$11:$DN$1000,101,FALSE)=\"\",\"No\",IF(LEFT(VLOOKUP($G319,$H$11:$DN$1000,101,FALSE),3)=\"The\",EG319,VLOOKUP(VLOOKUP($G319,$H$11:$DN$1000,101,FALSE),DeclMatrix!$A$2:$F$5,VLOOKUP('Enrollment Form'!$B319,DeclMatrix!$A$8:$B$12,2,FALSE),FALSE))))","v":""},{"$f":"IF($A319=\"\",\"\",IF(VLOOKUP($G319,$H$11:$DN$1000,106,FALSE)=\"\",\"No\",IF(LEFT(VLOOKUP($G319,$H$11:$DN$1000,106,FALSE),3)=\"The\",EH319,VLOOKUP(VLOOKUP($G319,$H$11:$DN$1000,106,FALSE),DeclMatrix!$A$2:$F$5,VLOOKUP('Enrollment Form'!$B319,DeclMatrix!$A$8:$B$12,2,FALSE),FALSE))))","v":""},{"$f":"IF($A319=\"\",\"\",IF(VLOOKUP($G319,$H$11:$DN$1000,111,FALSE)=\"\",\"No\",IF(LEFT(VLOOKUP($G319,$H$11:$DN$1000,111,FALSE),3)=\"The\",EI319,VLOOKUP(VLOOKUP($G319,$H$11:$DN$1000,111,FALSE),DeclMatrix!$A$2:$F$5,VLOOKUP('Enrollment Form'!$B319,DeclMatrix!$A$8:$B$12,2,FALSE),FALSE))))","v":""},"",null,"","","","","","","","","","","",""]
["",{"$nulls":5},"","",{"$nulls":18},"","","","",{"$nulls":30},"","","","",{"$nulls":60},"",{"$f":"IF($A320=\"\",\"\",IF(VLOOKUP($G320,$H$11:$DN$1000,96,FALSE)=\"\",\"No\",IF(LEFT(VLOOKUP($G320,$H$11:$DN$1000,96,FALSE),3)=\"The\",EF320,VLOOKUP(VLOOKUP($G320,$H$11:$DN$1000,96,FALSE),DeclMatrix!$A$2:$F$5,VLOOKUP('Enrollment Form'!$B320,DeclMatrix!$A$8:$B$12,2,FALSE),FALSE))))","v":""},{"$f":"IF($A320=\"\",\"\",IF(VLOOKUP($G320,$H$11:$DN$1000,101,FALSE)=\"\",\"No\",IF(LEFT(VLOOKUP($G320,$H$11:$DN$1000,101,FALSE),3)=\"The\",EG320,VLOOKUP(VLOOKUP($G320,$H$11:$DN$1000,101,FALSE),DeclMatrix!$A$2:$F$5,VLOOKUP('Enrollment Form'!$B320,DeclMatrix!$A$8:$B$12,2,FALSE),FALSE))))","v":""},{"$f":"IF($A320=\"\",\"\",IF(VLOOKUP($G320,$H$11:$DN$1000,106,FALSE)=\"\",\"No\",IF(LEFT(VLOOKUP($G320,$H$11:$DN$1000,106,FALSE),3)=\"The\",EH320,VLOOKUP(VLOOKUP($G320,$H$11:$DN$1000,106,FALSE),DeclMatrix!$A$2:$F$5,VLOOKUP('Enrollment Form'!$B320,DeclMatrix!$A$8:$B$12,2,FALSE),FALSE))))","v":""},{"$f":"IF($A320=\"\",\"\",IF(VLOOKUP($G320,$H$11:$DN$1000,111,FALSE)=\"\",\"No\",IF(LEFT(VLOOKUP($G320,$H$11:$DN$1000,111,FALSE),3)=\"The\",EI320,VLOOKUP(VLOOKUP($G320,$H$11:$DN$1000,111,FALSE),DeclMatrix!$A$2:$F$5,VLOOKUP('Enrollment Form'!$B320,DeclMatrix!$A$8:$B$12,2,FALSE),FALSE))))","v":""},"",null,"","","","","","","","","","","",""]
["",{"$nulls":5},"","",{"$nulls":18},"","","","",{"$nulls":30},"","","","",{"$nulls":60},"",{"$f":"IF($A321=\"\",\"\",IF(VLOOKUP($G321,$H$11:$DN$1000,96,FALSE)=\"\",\"No\",IF(LEFT(VLOOKUP($G321,$H$11:$DN$1000,96,FALSE),3)=\"The\",EF321,VLOOKUP(VLOOKUP($G321,$H$11:$DN$1000,96,FALSE),DeclMatrix!$A$2:$F$5,VLOOKUP('Enrollment Form'!$B321,DeclMatrix!$A$8:$B$12,2,FALSE),FALSE))))","v":""},{"$f":"IF($A321=\"\",\"\",IF(VLOOKUP($G321,$H$11:$DN$1000,101,FALSE)=\"\",\"No\",IF(LEFT(VLOOKUP($G321,$H$11:$DN$1000,101,FALSE),3)=\"The\",EG321,VLOOKUP(VLOOKUP($G321,$H$11:$DN$1000,101,FALSE),DeclMatrix!$A$2:$F$5,VLOOKUP('Enrollment Form'!$B321,DeclMatrix!$A$8:$B$12,2,FALSE),FALSE))))","v":""},{"$f":"IF($A321=\"\",\"\",IF(VLOOKUP($G321,$H$11:$DN$1000,106,FALSE)=\"\",\"No\",IF(LEFT(VLOOKUP($G321,$H$11:$DN$1000,106,FALSE),3)=\"The\",EH321,VLOOKUP(VLOOKUP($G321,$H$11:$DN$1000,106,FALSE),DeclMatrix!$A$2:$F$5,VLOOKUP('Enrollment Form'!$B321,DeclMatrix!$A$8:$B$12,2,FALSE),FALSE))))","v":""},{"$f":"IF($A321=\"\",\"\",IF(VLOOKUP($G321,$H$11:$DN$1000,111,FALSE)=\"\",\"No\",IF(LEFT(VLOOKUP($G321,$H$11:$DN$1000,111,FALSE),3)=\"The\",EI321,VLOOKUP(VLOOKUP($G321,$H$11:$DN$1000,111,FALSE),DeclMatrix!$A$2:$F$5,VLOOKUP('Enrollment Form'!$B321,DeclMatrix!$A$8:$B$12,2,FALSE),FALSE))))","v":""},"",null,"","","","","","","","","","","",""]
["",{"$nulls":5},"","",{"$nulls":18},"","","","",{"$nulls":30},"","","","",{"$nulls":60},"",{"$f":"IF($A322=\"\",\"\",IF(VLOOKUP($G322,$H$11:$DN$1000,96,FALSE)=\"\",\"No\",IF(LEFT(VLOOKUP($G322,$H$11:$DN$1000,96,FALSE),3)=\"The\",EF322,VLOOKUP(VLOOKUP($G322,$H$11:$DN$1000,96,FALSE),DeclMatrix!$A$2:$F$5,VLOOKUP('Enrollment Form'!$B322,DeclMatrix!$A$8:$B$12,2,FALSE),FALSE))))","v":""},{"$f":"IF($A322=\"\",\"\",IF(VLOOKUP($G322,$H$11:$DN$1000,101,FALSE)=\"\",\"No\",IF(LEFT(VLOOKUP($G322,$H$11:$DN$1000,101,FALSE),3)=\"The\",EG322,VLOOKUP(VLOOKUP($G322,$H$11:$DN$1000,101,FALSE),DeclMatrix!$A$2:$F$5,VLOOKUP('Enrollment Form'!$B322,DeclMatrix!$A$8:$B$12,2,FALSE),FALSE))))","v":""},{"$f":"IF($A322=\"\",\"\",IF(VLOOKUP($G322,$H$11:$DN$1000,106,FALSE)=\"\",\"No\",IF(LEFT(VLOOKUP($G322,$H$11:$DN$1000,106,FALSE),3)=\"The\",EH322,VLOOKUP(VLOOKUP($G322,$H$11:$DN$1000,106,FALSE),DeclMatrix!$A$2:$F$5,VLOOKUP('Enrollment Form'!$B322,DeclMatrix!$A$8:$B$12,2,FALSE),FALSE))))","v":""},{"$f":"IF($A322=\"\",\"\",IF(VLOOKUP($G322,$H$11:$DN$1000,111,FALSE)=\"\",\"No\",IF(LEFT(VLOOKUP($G322,$H$11:$DN$1000,111,FALSE),3)=\"The\",EI322,VLOOKUP(VLOOKUP($G322,$H$11:$DN$1000,111,FALSE),DeclMatrix!$A$2:$F$5,VLOOKUP('Enrollment Form'!$B322,DeclMatrix!$A$8:$B$12,2,FALSE),FALSE))))","v":""},"",null,"","","","","","","","","","","",""]
["",{"$nulls":5},"","",{"$nulls":18},"","","","",{"$nulls":30},"","","","",{"$nulls":60},"",{"$f":"IF($A323=\"\",\"\",IF(VLOOKUP($G323,$H$11:$DN$1000,96,FALSE)=\"\",\"No\",IF(LEFT(VLOOKUP($G323,$H$11:$DN$1000,96,FALSE),3)=\"The\",EF323,VLOOKUP(VLOOKUP($G323,$H$11:$DN$1000,96,FALSE),DeclMatrix!$A$2:$F$5,VLOOKUP('Enrollment Form'!$B323,DeclMatrix!$A$8:$B$12,2,FALSE),FALSE))))","v":""},{"$f":"IF($A323=\"\",\"\",IF(VLOOKUP($G323,$H$11:$DN$1000,101,FALSE)=\"\",\"No\",IF(LEFT(VLOOKUP($G323,$H$11:$DN$1000,101,FALSE),3)=\"The\",EG323,VLOOKUP(VLOOKUP($G323,$H$11:$DN$1000,101,FALSE),DeclMatrix!$A$2:$F$5,VLOOKUP('Enrollment Form'!$B323,DeclMatrix!$A$8:$B$12,2,FALSE),FALSE))))","v":""},{"$f":"IF($A323=\"\",\"\",IF(VLOOKUP($G323,$H$11:$DN$1000,106,FALSE)=\"\",\"No\",IF(LEFT(VLOOKUP($G323,$H$11:$DN$1000,106,FALSE),3)=\"The\",EH323,VLOOKUP(VLOOKUP($G323,$H$11:$DN$1000,106,FALSE),DeclMatrix!$A$2:$F$5,VLOOKUP('Enrollment Form'!$B323,DeclMatrix!$A$8:$B$12,2,FALSE),FALSE))))","v":""},{"$f":"IF($A323=\"\",\"\",IF(VLOOKUP($G323,$H$11:$DN$1000,111,FALSE)=\"\",\"No\",IF(LEFT(VLOOKUP($G323,$H$11:$DN$1000,111,FALSE),3)=\"The\",EI323,VLOOKUP(VLOOKUP($G323,$H$11:$DN$1000,111,FALSE),DeclMatrix!$A$2:$F$5,VLOOKUP('Enrollment Form'!$B323,DeclMatrix!$A$8:$B$12,2,FALSE),FALSE))))","v":""},"",null,"","","","","","","","","","","",""]
["",{"$nulls":5},"","",{"$nulls":18},"","","","",{"$nulls":30},"","","","",{"$nulls":60},"",{"$f":"IF($A324=\"\",\"\",IF(VLOOKUP($G324,$H$11:$DN$1000,96,FALSE)=\"\",\"No\",IF(LEFT(VLOOKUP($G324,$H$11:$DN$1000,96,FALSE),3)=\"The\",EF324,VLOOKUP(VLOOKUP($G324,$H$11:$DN$1000,96,FALSE),DeclMatrix!$A$2:$F$5,VLOOKUP('Enrollment Form'!$B324,DeclMatrix!$A$8:$B$12,2,FALSE),FALSE))))","v":""},{"$f":"IF($A324=\"\",\"\",IF(VLOOKUP($G324,$H$11:$DN$1000,101,FALSE)=\"\",\"No\",IF(LEFT(VLOOKUP($G324,$H$11:$DN$1000,101,FALSE),3)=\"The\",EG324,VLOOKUP(VLOOKUP($G324,$H$11:$DN$1000,101,FALSE),DeclMatrix!$A$2:$F$5,VLOOKUP('Enrollment Form'!$B324,DeclMatrix!$A$8:$B$12,2,FALSE),FALSE))))","v":""},{"$f":"IF($A324=\"\",\"\",IF(VLOOKUP($G324,$H$11:$DN$1000,106,FALSE)=\"\",\"No\",IF(LEFT(VLOOKUP($G324,$H$11:$DN$1000,106,FALSE),3)=\"The\",EH324,VLOOKUP(VLOOKUP($G324,$H$11:$DN$1000,106,FALSE),DeclMatrix!$A$2:$F$5,VLOOKUP('Enrollment Form'!$B324,DeclMatrix!$A$8:$B$12,2,FALSE),FALSE))))","v":""},{"$f":"IF($A324=\"\",\"\",IF(VLOOKUP($G324,$H$11:$DN$1000,111,FALSE)=\"\",\"No\",IF(LEFT(VLOOKUP($G324,$H$11:$DN$1000,111,FALSE),3)=\"The\",EI324,VLOOKUP(VLOOKUP($G324,$H$11:$DN$1000,111,FALSE),DeclMatrix!$A$2:$F$5,VLOOKUP('Enrollment Form'!$B324,DeclMatrix!$A$8:$B$12,2,FALSE),FALSE))))","v":""},"",null,"","","","","","","","","","","",""]
["",{"$nulls":5},"","",{"$nulls":18},"","","","",{"$nulls":30},"","","","",{"$nulls":60},"",{"$f":"IF($A325=\"\",\"\",IF(VLOOKUP($G325,$H$11:$DN$1000,96,FALSE)=\"\",\"No\",IF(LEFT(VLOOKUP($G325,$H$11:$DN$1000,96,FALSE),3)=\"The\",EF325,VLOOKUP(VLOOKUP($G325,$H$11:$DN$1000,96,FALSE),DeclMatrix!$A$2:$F$5,VLOOKUP('Enrollment Form'!$B325,DeclMatrix!$A$8:$B$12,2,FALSE),FALSE))))","v":""},{"$f":"IF($A325=\"\",\"\",IF(VLOOKUP($G325,$H$11:$DN$1000,101,FALSE)=\"\",\"No\",IF(LEFT(VLOOKUP($G325,$H$11:$DN$1000,101,FALSE),3)=\"The\",EG325,VLOOKUP(VLOOKUP($G325,$H$11:$DN$1000,101,FALSE),DeclMatrix!$A$2:$F$5,VLOOKUP('Enrollment Form'!$B325,DeclMatrix!$A$8:$B$12,2,FALSE),FALSE))))","v":""},{"$f":"IF($A325=\"\",\"\",IF(VLOOKUP($G325,$H$11:$DN$1000,106,FALSE)=\"\",\"No\",IF(LEFT(VLOOKUP($G325,$H$11:$DN$1000,106,FALSE),3)=\"The\",EH325,VLOOKUP(VLOOKUP($G325,$H$11:$DN$1000,106,FALSE),DeclMatrix!$A$2:$F$5,VLOOKUP('Enrollment Form'!$B325,DeclMatrix!$A$8:$B$12,2,FALSE),FALSE))))","v":""},{"$f":"IF($A325=\"\",\"\",IF(VLOOKUP($G325,$H$11:$DN$1000,111,FALSE)=\"\",\"No\",IF(LEFT(VLOOKUP($G325,$H$11:$DN$1000,111,FALSE),3)=\"The\",EI325,VLOOKUP(VLOOKUP($G325,$H$11:$DN$1000,111,FALSE),DeclMatrix!$A$2:$F$5,VLOOKUP('Enrollment Form'!$B325,DeclMatrix!$A$8:$B$12,2,FALSE),FALSE))))","v":""},"",null,"","","","","","","","","","","",""]
["",{"$nulls":5},"","",{"$nulls":18},"","","","",{"$nulls":30},"","","","",{"$nulls":60},"",{"$f":"IF($A326=\"\",\"\",IF(VLOOKUP($G326,$H$11:$DN$1000,96,FALSE)=\"\",\"No\",IF(LEFT(VLOOKUP($G326,$H$11:$DN$1000,96,FALSE),3)=\"The\",EF326,VLOOKUP(VLOOKUP($G326,$H$11:$DN$1000,96,FALSE),DeclMatrix!$A$2:$F$5,VLOOKUP('Enrollment Form'!$B326,DeclMatrix!$A$8:$B$12,2,FALSE),FALSE))))","v":""},{"$f":"IF($A326=\"\",\"\",IF(VLOOKUP($G326,$H$11:$DN$1000,101,FALSE)=\"\",\"No\",IF(LEFT(VLOOKUP($G326,$H$11:$DN$1000,101,FALSE),3)=\"The\",EG326,VLOOKUP(VLOOKUP($G326,$H$11:$DN$1000,101,FALSE),DeclMatrix!$A$2:$F$5,VLOOKUP('Enrollment Form'!$B326,DeclMatrix!$A$8:$B$12,2,FALSE),FALSE))))","v":""},{"$f":"IF($A326=\"\",\"\",IF(VLOOKUP($G326,$H$11:$DN$1000,106,FALSE)=\"\",\"No\",IF(LEFT(VLOOKUP($G326,$H$11:$DN$1000,106,FALSE),3)=\"The\",EH326,VLOOKUP(VLOOKUP($G326,$H$11:$DN$1000,106,FALSE),DeclMatrix!$A$2:$F$5,VLOOKUP('Enrollment Form'!$B326,DeclMatrix!$A$8:$B$12,2,FALSE),FALSE))))","v":""},{"$f":"IF($A326=\"\",\"\",IF(VLOOKUP($G326,$H$11:$DN$1000,111,FALSE)=\"\",\"No\",IF(LEFT(VLOOKUP($G326,$H$11:$DN$1000,111,FALSE),3)=\"The\",EI326,VLOOKUP(VLOOKUP($G326,$H$11:$DN$1000,111,FALSE),DeclMatrix!$A$2:$F$5,VLOOKUP('Enrollment Form'!$B326,DeclMatrix!$A$8:$B$12,2,FALSE),FALSE))))","v":""},"",null,"","","","","","","","","","","",""]
["",{"$nulls":5},"","",{"$nulls":18},"","","","",{"$nulls":30},"","","","",{"$nulls":60},"",{"$f":"IF($A327=\"\",\"\",IF(VLOOKUP($G327,$H$11:$DN$1000,96,FALSE)=\"\",\"No\",IF(LEFT(VLOOKUP($G327,$H$11:$DN$1000,96,FALSE),3)=\"The\",EF327,VLOOKUP(VLOOKUP($G327,$H$11:$DN$1000,96,FALSE),DeclMatrix!$A$2:$F$5,VLOOKUP('Enrollment Form'!$B327,DeclMatrix!$A$8:$B$12,2,FALSE),FALSE))))","v":""},{"$f":"IF($A327=\"\",\"\",IF(VLOOKUP($G327,$H$11:$DN$1000,101,FALSE)=\"\",\"No\",IF(LEFT(VLOOKUP($G327,$H$11:$DN$1000,101,FALSE),3)=\"The\",EG327,VLOOKUP(VLOOKUP($G327,$H$11:$DN$1000,101,FALSE),DeclMatrix!$A$2:$F$5,VLOOKUP('Enrollment Form'!$B327,DeclMatrix!$A$8:$B$12,2,FALSE),FALSE))))","v":""},{"$f":"IF($A327=\"\",\"\",IF(VLOOKUP($G327,$H$11:$DN$1000,106,FALSE)=\"\",\"No\",IF(LEFT(VLOOKUP($G327,$H$11:$DN$1000,106,FALSE),3)=\"The\",EH327,VLOOKUP(VLOOKUP($G327,$H$11:$DN$1000,106,FALSE),DeclMatrix!$A$2:$F$5,VLOOKUP('Enrollment Form'!$B327,DeclMatrix!$A$8:$B$12,2,FALSE),FALSE))))","v":""},{"$f":"IF($A327=\"\",\"\",IF(VLOOKUP($G327,$H$11:$DN$1000,111,FALSE)=\"\",\"No\",IF(LEFT(VLOOKUP($G327,$H$11:$DN$1000,111,FALSE),3)=\"The\",EI327,VLOOKUP(VLOOKUP($G327,$H$11:$DN$1000,111,FALSE),DeclMatrix!$A$2:$F$5,VLOOKUP('Enrollment Form'!$B327,DeclMatrix!$A$8:$B$12,2,FALSE),FALSE))))","v":""},"",null,"","","","","","","","","","","",""]
["",{"$nulls":5},"","",{"$nulls":18},"","","","",{"$nulls":30},"","","","",{"$nulls":60},"",{"$f":"IF($A328=\"\",\"\",IF(VLOOKUP($G328,$H$11:$DN$1000,96,FALSE)=\"\",\"No\",IF(LEFT(VLOOKUP($G328,$H$11:$DN$1000,96,FALSE),3)=\"The\",EF328,VLOOKUP(VLOOKUP($G328,$H$11:$DN$1000,96,FALSE),DeclMatrix!$A$2:$F$5,VLOOKUP('Enrollment Form'!$B328,DeclMatrix!$A$8:$B$12,2,FALSE),FALSE))))","v":""},{"$f":"IF($A328=\"\",\"\",IF(VLOOKUP($G328,$H$11:$DN$1000,101,FALSE)=\"\",\"No\",IF(LEFT(VLOOKUP($G328,$H$11:$DN$1000,101,FALSE),3)=\"The\",EG328,VLOOKUP(VLOOKUP($G328,$H$11:$DN$1000,101,FALSE),DeclMatrix!$A$2:$F$5,VLOOKUP('Enrollment Form'!$B328,DeclMatrix!$A$8:$B$12,2,FALSE),FALSE))))","v":""},{"$f":"IF($A328=\"\",\"\",IF(VLOOKUP($G328,$H$11:$DN$1000,106,FALSE)=\"\",\"No\",IF(LEFT(VLOOKUP($G328,$H$11:$DN$1000,106,FALSE),3)=\"The\",EH328,VLOOKUP(VLOOKUP($G328,$H$11:$DN$1000,106,FALSE),DeclMatrix!$A$2:$F$5,VLOOKUP('Enrollment Form'!$B328,DeclMatrix!$A$8:$B$12,2,FALSE),FALSE))))","v":""},{"$f":"IF($A328=\"\",\"\",IF(VLOOKUP($G328,$H$11:$DN$1000,111,FALSE)=\"\",\"No\",IF(LEFT(VLOOKUP($G328,$H$11:$DN$1000,111,FALSE),3)=\"The\",EI328,VLOOKUP(VLOOKUP($G328,$H$11:$DN$1000,111,FALSE),DeclMatrix!$A$2:$F$5,VLOOKUP('Enrollment Form'!$B328,DeclMatrix!$A$8:$B$12,2,FALSE),FALSE))))","v":""},"",null,"","","","","","","","","","","",""]
["",{"$nulls":5},"","",{"$nulls":18},"","","","",{"$nulls":30},"","","","",{"$nulls":60},"",{"$f":"IF($A329=\"\",\"\",IF(VLOOKUP($G329,$H$11:$DN$1000,96,FALSE)=\"\",\"No\",IF(LEFT(VLOOKUP($G329,$H$11:$DN$1000,96,FALSE),3)=\"The\",EF329,VLOOKUP(VLOOKUP($G329,$H$11:$DN$1000,96,FALSE),DeclMatrix!$A$2:$F$5,VLOOKUP('Enrollment Form'!$B329,DeclMatrix!$A$8:$B$12,2,FALSE),FALSE))))","v":""},{"$f":"IF($A329=\"\",\"\",IF(VLOOKUP($G329,$H$11:$DN$1000,101,FALSE)=\"\",\"No\",IF(LEFT(VLOOKUP($G329,$H$11:$DN$1000,101,FALSE),3)=\"The\",EG329,VLOOKUP(VLOOKUP($G329,$H$11:$DN$1000,101,FALSE),DeclMatrix!$A$2:$F$5,VLOOKUP('Enrollment Form'!$B329,DeclMatrix!$A$8:$B$12,2,FALSE),FALSE))))","v":""},{"$f":"IF($A329=\"\",\"\",IF(VLOOKUP($G329,$H$11:$DN$1000,106,FALSE)=\"\",\"No\",IF(LEFT(VLOOKUP($G329,$H$11:$DN$1000,106,FALSE),3)=\"The\",EH329,VLOOKUP(VLOOKUP($G329,$H$11:$DN$1000,106,FALSE),DeclMatrix!$A$2:$F$5,VLOOKUP('Enrollment Form'!$B329,DeclMatrix!$A$8:$B$12,2,FALSE),FALSE))))","v":""},{"$f":"IF($A329=\"\",\"\",IF(VLOOKUP($G329,$H$11:$DN$1000,111,FALSE)=\"\",\"No\",IF(LEFT(VLOOKUP($G329,$H$11:$DN$1000,111,FALSE),3)=\"The\",EI329,VLOOKUP(VLOOKUP($G329,$H$11:$DN$1000,111,FALSE),DeclMatrix!$A$2:$F$5,VLOOKUP('Enrollment Form'!$B329,DeclMatrix!$A$8:$B$12,2,FALSE),FALSE))))","v":""},"",null,"","","","","","","","","","","",""]
["",{"$nulls":5},"","",{"$nulls":18},"","","","",{"$nulls":30},"","","","",{"$nulls":60},"",{"$f":"IF($A330=\"\",\"\",IF(VLOOKUP($G330,$H$11:$DN$1000,96,FALSE)=\"\",\"No\",IF(LEFT(VLOOKUP($G330,$H$11:$DN$1000,96,FALSE),3)=\"The\",EF330,VLOOKUP(VLOOKUP($G330,$H$11:$DN$1000,96,FALSE),DeclMatrix!$A$2:$F$5,VLOOKUP('Enrollment Form'!$B330,DeclMatrix!$A$8:$B$12,2,FALSE),FALSE))))","v":""},{"$f":"IF($A330=\"\",\"\",IF(VLOOKUP($G330,$H$11:$DN$1000,101,FALSE)=\"\",\"No\",IF(LEFT(VLOOKUP($G330,$H$11:$DN$1000,101,FALSE),3)=\"The\",EG330,VLOOKUP(VLOOKUP($G330,$H$11:$DN$1000,101,FALSE),DeclMatrix!$A$2:$F$5,VLOOKUP('Enrollment Form'!$B330,DeclMatrix!$A$8:$B$12,2,FALSE),FALSE))))","v":""},{"$f":"IF($A330=\"\",\"\",IF(VLOOKUP($G330,$H$11:$DN$1000,106,FALSE)=\"\",\"No\",IF(LEFT(VLOOKUP($G330,$H$11:$DN$1000,106,FALSE),3)=\"The\",EH330,VLOOKUP(VLOOKUP($G330,$H$11:$DN$1000,106,FALSE),DeclMatrix!$A$2:$F$5,VLOOKUP('Enrollment Form'!$B330,DeclMatrix!$A$8:$B$12,2,FALSE),FALSE))))","v":""},{"$f":"IF($A330=\"\",\"\",IF(VLOOKUP($G330,$H$11:$DN$1000,111,FALSE)=\"\",\"No\",IF(LEFT(VLOOKUP($G330,$H$11:$DN$1000,111,FALSE),3)=\"The\",EI330,VLOOKUP(VLOOKUP($G330,$H$11:$DN$1000,111,FALSE),DeclMatrix!$A$2:$F$5,VLOOKUP('Enrollment Form'!$B330,DeclMatrix!$A$8:$B$12,2,FALSE),FALSE))))","v":""},"",null,"","","","","","","","","","","",""]
[{"$f":"IF(LEN($B331)>0,$C$2,\"\")","v":""},{"$nulls":5},"","",{"$nulls":18},"","","","",{"$nulls":30},{"$f":"IF(AND($B331<>\"Subscriber\",$BH331=\"Yes\"),VLOOKUP($G331,$H$11:$Y$1000,15,FALSE),\"\")","v":""},{"$f":"IF(AND($B331<>\"Subscriber\",$BH331=\"Yes\"),VLOOKUP($G331,$H$11:$Y$1000,16,FALSE),\"\")","v":""},{"$f":"IF(AND($B331<>\"Subscriber\",$BH331=\"Yes\"),VLOOKUP($G331,$H$11:$Y$1000,17,FALSE),\"\")","v":""},{"$f":"IF(AND($B331<>\"Subscriber\",$BH331=\"Yes\"),VLOOKUP($G331,$H$11:$Y$1000,18,FALSE),\"\")","v":""},{"$nulls":60},{"$f":"IF($A331=\"\",\"\",IF($B331=\"Subscriber\",$AG331,VLOOKUP($G331,$H$11:$AG$1000,26,FALSE)))","v":""},{"$f":"IF($A331=\"\",\"\",IF(VLOOKUP($G331,$H$11:$DN$1000,96,FALSE)=\"\",\"No\",IF(LEFT(VLOOKUP($G331,$H$11:$DN$1000,96,FALSE),3)=\"The\",EF331,VLOOKUP(VLOOKUP($G331,$H$11:$DN$1000,96,FALSE),DeclMatrix!$A$2:$F$5,VLOOKUP('Enrollment Form'!$B331,DeclMatrix!$A$8:$B$12,2,FALSE),FALSE))))","v":""},{"$f":"IF($A331=\"\",\"\",IF(VLOOKUP($G331,$H$11:$DN$1000,101,FALSE)=\"\",\"No\",IF(LEFT(VLOOKUP($G331,$H$11:$DN$1000,101,FALSE),3)=\"The\",EG331,VLOOKUP(VLOOKUP($G331,$H$11:$DN$1000,101,FALSE),DeclMatrix!$A$2:$F$5,VLOOKUP('Enrollment Form'!$B331,DeclMatrix!$A$8:$B$12,2,FALSE),FALSE))))","v":""},{"$f":"IF($A331=\"\",\"\",IF(VLOOKUP($G331,$H$11:$DN$1000,106,FALSE)=\"\",\"No\",IF(LEFT(VLOOKUP($G331,$H$11:$DN$1000,106,FALSE),3)=\"The\",EH331,VLOOKUP(VLOOKUP($G331,$H$11:$DN$1000,106,FALSE),DeclMatrix!$A$2:$F$5,VLOOKUP('Enrollment Form'!$B331,DeclMatrix!$A$8:$B$12,2,FALSE),FALSE))))","v":""},{"$f":"IF($A331=\"\",\"\",IF(VLOOKUP($G331,$H$11:$DN$1000,111,FALSE)=\"\",\"No\",IF(LEFT(VLOOKUP($G331,$H$11:$DN$1000,111,FALSE),3)=\"The\",EI331,VLOOKUP(VLOOKUP($G331,$H$11:$DN$1000,111,FALSE),DeclMatrix!$A$2:$F$5,VLOOKUP('Enrollment Form'!$B331,DeclMatrix!$A$8:$B$12,2,FALSE),FALSE))))","v":""},"",null,{"$f":"$B331&$G331&$J331","v":""},{"$f":"$B331&$G331&$L331","v":""},{"$f":"$B331&$G331&$N331","v":""},{"$f":"$B331&$G331&$O331","v":""},"","","","",{"$f":"IF($A331=\"\",\"\",IF(AND($B331=\"Subscriber\",$I331<>\"Waive\",$I331<>\"\"),\"Yes\",IF(AND($B331<>\"Subscriber\",$BF331=\"Yes\"),VLOOKUP($G331,$H$11:$EM$1000,133,FALSE),IF(AND($C331=\"Enroll\",VLOOKUP($G332,$H$11:$EM$1000,96,FALSE)<>\"\"),VLOOKUP($DV331,$DW$2:$DX$3,2,FALSE),\"No\"))))","v":""},{"$f":"IF($A331=\"\",\"\",IF(AND($B331=\"Subscriber\",$K331<>\"Waive\",$K331<>\"\"),\"Yes\",IF(AND($B331<>\"Subscriber\",$BF331=\"Yes\"),VLOOKUP($G331,$H$11:$EM$1000,134,FALSE),IF(AND($C331=\"Enroll\",VLOOKUP($G332,$H$11:$EM$1000,101,FALSE)<>\"\"),VLOOKUP($DW331,$DW$2:$DX$3,2,FALSE),\"No\"))))","v":""},{"$f":"IF($A331=\"\",\"\",IF(AND($B331=\"Subscriber\",$M331<>\"Waive\",$M331<>\"\"),\"Yes\",IF(AND($B331<>\"Subscriber\",$BF331=\"Yes\"),VLOOKUP($G331,$H$11:$EM$1000,135,FALSE),IF(AND($C331=\"Enroll\",VLOOKUP($G332,$H$11:$EM$1000,106,FALSE)<>\"\"),VLOOKUP($DX331,$DW$2:$DX$3,2,FALSE),\"No\"))))","v":""},{"$f":"IF($A331=\"\",\"\",IF(AND($B331=\"Subscriber\",$O331<>\"Waive\",$O331<>\"\"),\"Yes\",IF(AND($B331<>\"Subscriber\",$BF331=\"Yes\"),VLOOKUP($G331,$H$11:$EM$1000,136,FALSE),IF(AND($C331=\"Enroll\",VLOOKUP($G332,$H$11:$EM$1000,111,FALSE)<>\"\"),VLOOKUP($DY331,$DW$2:$DX$3,2,FALSE),\"No\"))))","v":""}]
["",{"$nulls":5},{"$f":"IF(A332=\"\",\"\",IF(AND(B332<>\"Subscriber\",B332<>\"\"),G331,\"\"))","v":""},{"$f":"IF(AND(B332=\"Subscriber\",G332<>\"\"),G332,\"\")","v":""},{"$nulls":18},{"$f":"IF(AND($B332=\"Subscriber\",$Z332=\"Yes\"),V332,\"\")","v":""},{"$f":"IF(AND($B332=\"Subscriber\",$Z332=\"Yes\"),W332,\"\")","v":""},{"$f":"IF(AND($B332=\"Subscriber\",$Z332=\"Yes\"),X332,\"\")","v":""},{"$f":"IF(AND($B332=\"Subscriber\",$Z332=\"Yes\"),Y332,\"\")","v":""},{"$nulls":30},"","","","",{"$nulls":60},"",{"$f":"IF($A332=\"\",\"\",IF(VLOOKUP($G332,$H$11:$DN$1000,96,FALSE)=\"\",\"No\",IF(LEFT(VLOOKUP($G332,$H$11:$DN$1000,96,FALSE),3)=\"The\",EF332,VLOOKUP(VLOOKUP($G332,$H$11:$DN$1000,96,FALSE),DeclMatrix!$A$2:$F$5,VLOOKUP('Enrollment Form'!$B332,DeclMatrix!$A$8:$B$12,2,FALSE),FALSE))))","v":""},{"$f":"IF($A332=\"\",\"\",IF(VLOOKUP($G332,$H$11:$DN$1000,101,FALSE)=\"\",\"No\",IF(LEFT(VLOOKUP($G332,$H$11:$DN$1000,101,FALSE),3)=\"The\",EG332,VLOOKUP(VLOOKUP($G332,$H$11:$DN$1000,101,FALSE),DeclMatrix!$A$2:$F$5,VLOOKUP('Enrollment Form'!$B332,DeclMatrix!$A$8:$B$12,2,FALSE),FALSE))))","v":""},{"$f":"IF($A332=\"\",\"\",IF(VLOOKUP($G332,$H$11:$DN$1000,106,FALSE)=\"\",\"No\",IF(LEFT(VLOOKUP($G332,$H$11:$DN$1000,106,FALSE),3)=\"The\",EH332,VLOOKUP(VLOOKUP($G332,$H$11:$DN$1000,106,FALSE),DeclMatrix!$A$2:$F$5,VLOOKUP('Enrollment Form'!$B332,DeclMatrix!$A$8:$B$12,2,FALSE),FALSE))))","v":""},{"$f":"IF($A332=\"\",\"\",IF(VLOOKUP($G332,$H$11:$DN$1000,111,FALSE)=\"\",\"No\",IF(LEFT(VLOOKUP($G332,$H$11:$DN$1000,111,FALSE),3)=\"The\",EI332,VLOOKUP(VLOOKUP($G332,$H$11:$DN$1000,111,FALSE),DeclMatrix!$A$2:$F$5,VLOOKUP('Enrollment Form'!$B332,DeclMatrix!$A$8:$B$12,2,FALSE),FALSE))))","v":""},{"$f":"IF(A332<>\"\",\"1X\",\"\")","v":""},null,"","","","",{"$f":"IF($A332=\"\",\"\",IF($B332=\"Subscriber\",\"No\",IF(OR($CY332=\"\",$CY332=\"No\"),\"No\",\"Yes\")))","v":""},{"$f":"IF($A332=\"\",\"\",IF($B332=\"Subscriber\",\"No\",IF(OR($DD332=\"\",$DD332=\"No\"),\"No\",\"Yes\")))","v":""},{"$f":"IF($A332=\"\",\"\",IF($B332=\"Subscriber\",\"No\",IF(OR($DI332=\"\",$DI332=\"No\"),\"No\",\"Yes\")))","v":""},{"$f":"IF($A332=\"\",\"\",IF($B332=\"Subscriber\",\"No\",IF(OR($DN332=\"\",$DN332=\"No\"),\"No\",\"Yes\")))","v":""},"","","",""]
["",{"$nulls":5},"","",{"$nulls":18},"","","","",{"$nulls":30},"","","","",{"$nulls":60},"",{"$f":"IF($A333=\"\",\"\",IF(VLOOKUP($G333,$H$11:$DN$1000,96,FALSE)=\"\",\"No\",IF(LEFT(VLOOKUP($G333,$H$11:$DN$1000,96,FALSE),3)=\"The\",EF333,VLOOKUP(VLOOKUP($G333,$H$11:$DN$1000,96,FALSE),DeclMatrix!$A$2:$F$5,VLOOKUP('Enrollment Form'!$B333,DeclMatrix!$A$8:$B$12,2,FALSE),FALSE))))","v":""},{"$f":"IF($A333=\"\",\"\",IF(VLOOKUP($G333,$H$11:$DN$1000,101,FALSE)=\"\",\"No\",IF(LEFT(VLOOKUP($G333,$H$11:$DN$1000,101,FALSE),3)=\"The\",EG333,VLOOKUP(VLOOKUP($G333,$H$11:$DN$1000,101,FALSE),DeclMatrix!$A$2:$F$5,VLOOKUP('Enrollment Form'!$B333,DeclMatrix!$A$8:$B$12,2,FALSE),FALSE))))","v":""},{"$f":"IF($A333=\"\",\"\",IF(VLOOKUP($G333,$H$11:$DN$1000,106,FALSE)=\"\",\"No\",IF(LEFT(VLOOKUP($G333,$H$11:$DN$1000,106,FALSE),3)=\"The\",EH333,VLOOKUP(VLOOKUP($G333,$H$11:$DN$1000,106,FALSE),DeclMatrix!$A$2:$F$5,VLOOKUP('Enrollment Form'!$B333,DeclMatrix!$A$8:$B$12,2,FALSE),FALSE))))","v":""},{"$f":"IF($A333=\"\",\"\",IF(VLOOKUP($G333,$H$11:$DN$1000,111,FALSE)=\"\",\"No\",IF(LEFT(VLOOKUP($G333,$H$11:$DN$1000,111,FALSE),3)=\"The\",EI333,VLOOKUP(VLOOKUP($G333,$H$11:$DN$1000,111,FALSE),DeclMatrix!$A$2:$F$5,VLOOKUP('Enrollment Form'!$B333,DeclMatrix!$A$8:$B$12,2,FALSE),FALSE))))","v":""},"",null,"","","","","","","","","","","",""]
["",{"$nulls":5},"","",{"$nulls":18},"","","","",{"$nulls":30},"","","","",{"$nulls":60},"",{"$f":"IF($A334=\"\",\"\",IF(VLOOKUP($G334,$H$11:$DN$1000,96,FALSE)=\"\",\"No\",IF(LEFT(VLOOKUP($G334,$H$11:$DN$1000,96,FALSE),3)=\"The\",EF334,VLOOKUP(VLOOKUP($G334,$H$11:$DN$1000,96,FALSE),DeclMatrix!$A$2:$F$5,VLOOKUP('Enrollment Form'!$B334,DeclMatrix!$A$8:$B$12,2,FALSE),FALSE))))","v":""},{"$f":"IF($A334=\"\",\"\",IF(VLOOKUP($G334,$H$11:$DN$1000,101,FALSE)=\"\",\"No\",IF(LEFT(VLOOKUP($G334,$H$11:$DN$1000,101,FALSE),3)=\"The\",EG334,VLOOKUP(VLOOKUP($G334,$H$11:$DN$1000,101,FALSE),DeclMatrix!$A$2:$F$5,VLOOKUP('Enrollment Form'!$B334,DeclMatrix!$A$8:$B$12,2,FALSE),FALSE))))","v":""},{"$f":"IF($A334=\"\",\"\",IF(VLOOKUP($G334,$H$11:$DN$1000,106,FALSE)=\"\",\"No\",IF(LEFT(VLOOKUP($G334,$H$11:$DN$1000,106,FALSE),3)=\"The\",EH334,VLOOKUP(VLOOKUP($G334,$H$11:$DN$1000,106,FALSE),DeclMatrix!$A$2:$F$5,VLOOKUP('Enrollment Form'!$B334,DeclMatrix!$A$8:$B$12,2,FALSE),FALSE))))","v":""},{"$f":"IF($A334=\"\",\"\",IF(VLOOKUP($G334,$H$11:$DN$1000,111,FALSE)=\"\",\"No\",IF(LEFT(VLOOKUP($G334,$H$11:$DN$1000,111,FALSE),3)=\"The\",EI334,VLOOKUP(VLOOKUP($G334,$H$11:$DN$1000,111,FALSE),DeclMatrix!$A$2:$F$5,VLOOKUP('Enrollment Form'!$B334,DeclMatrix!$A$8:$B$12,2,FALSE),FALSE))))","v":""},"",null,"","","","","","","","","","","",""]
["",{"$nulls":5},"","",{"$nulls":18},"","","","",{"$nulls":30},"","","","",{"$nulls":60},"",{"$f":"IF($A335=\"\",\"\",IF(VLOOKUP($G335,$H$11:$DN$1000,96,FALSE)=\"\",\"No\",IF(LEFT(VLOOKUP($G335,$H$11:$DN$1000,96,FALSE),3)=\"The\",EF335,VLOOKUP(VLOOKUP($G335,$H$11:$DN$1000,96,FALSE),DeclMatrix!$A$2:$F$5,VLOOKUP('Enrollment Form'!$B335,DeclMatrix!$A$8:$B$12,2,FALSE),FALSE))))","v":""},{"$f":"IF($A335=\"\",\"\",IF(VLOOKUP($G335,$H$11:$DN$1000,101,FALSE)=\"\",\"No\",IF(LEFT(VLOOKUP($G335,$H$11:$DN$1000,101,FALSE),3)=\"The\",EG335,VLOOKUP(VLOOKUP($G335,$H$11:$DN$1000,101,FALSE),DeclMatrix!$A$2:$F$5,VLOOKUP('Enrollment Form'!$B335,DeclMatrix!$A$8:$B$12,2,FALSE),FALSE))))","v":""},{"$f":"IF($A335=\"\",\"\",IF(VLOOKUP($G335,$H$11:$DN$1000,106,FALSE)=\"\",\"No\",IF(LEFT(VLOOKUP($G335,$H$11:$DN$1000,106,FALSE),3)=\"The\",EH335,VLOOKUP(VLOOKUP($G335,$H$11:$DN$1000,106,FALSE),DeclMatrix!$A$2:$F$5,VLOOKUP('Enrollment Form'!$B335,DeclMatrix!$A$8:$B$12,2,FALSE),FALSE))))","v":""},{"$f":"IF($A335=\"\",\"\",IF(VLOOKUP($G335,$H$11:$DN$1000,111,FALSE)=\"\",\"No\",IF(LEFT(VLOOKUP($G335,$H$11:$DN$1000,111,FALSE),3)=\"The\",EI335,VLOOKUP(VLOOKUP($G335,$H$11:$DN$1000,111,FALSE),DeclMatrix!$A$2:$F$5,VLOOKUP('Enrollment Form'!$B335,DeclMatrix!$A$8:$B$12,2,FALSE),FALSE))))","v":""},"",null,"","","","","","","","","","","",""]
["",{"$nulls":5},"","",{"$nulls":18},"","","","",{"$nulls":30},"","","","",{"$nulls":60},"",{"$f":"IF($A336=\"\",\"\",IF(VLOOKUP($G336,$H$11:$DN$1000,96,FALSE)=\"\",\"No\",IF(LEFT(VLOOKUP($G336,$H$11:$DN$1000,96,FALSE),3)=\"The\",EF336,VLOOKUP(VLOOKUP($G336,$H$11:$DN$1000,96,FALSE),DeclMatrix!$A$2:$F$5,VLOOKUP('Enrollment Form'!$B336,DeclMatrix!$A$8:$B$12,2,FALSE),FALSE))))","v":""},{"$f":"IF($A336=\"\",\"\",IF(VLOOKUP($G336,$H$11:$DN$1000,101,FALSE)=\"\",\"No\",IF(LEFT(VLOOKUP($G336,$H$11:$DN$1000,101,FALSE),3)=\"The\",EG336,VLOOKUP(VLOOKUP($G336,$H$11:$DN$1000,101,FALSE),DeclMatrix!$A$2:$F$5,VLOOKUP('Enrollment Form'!$B336,DeclMatrix!$A$8:$B$12,2,FALSE),FALSE))))","v":""},{"$f":"IF($A336=\"\",\"\",IF(VLOOKUP($G336,$H$11:$DN$1000,106,FALSE)=\"\",\"No\",IF(LEFT(VLOOKUP($G336,$H$11:$DN$1000,106,FALSE),3)=\"The\",EH336,VLOOKUP(VLOOKUP($G336,$H$11:$DN$1000,106,FALSE),DeclMatrix!$A$2:$F$5,VLOOKUP('Enrollment Form'!$B336,DeclMatrix!$A$8:$B$12,2,FALSE),FALSE))))","v":""},{"$f":"IF($A336=\"\",\"\",IF(VLOOKUP($G336,$H$11:$DN$1000,111,FALSE)=\"\",\"No\",IF(LEFT(VLOOKUP($G336,$H$11:$DN$1000,111,FALSE),3)=\"The\",EI336,VLOOKUP(VLOOKUP($G336,$H$11:$DN$1000,111,FALSE),DeclMatrix!$A$2:$F$5,VLOOKUP('Enrollment Form'!$B336,DeclMatrix!$A$8:$B$12,2,FALSE),FALSE))))","v":""},"",null,"","","","","","","","","","","",""]
["",{"$nulls":5},"","",{"$nulls":18},"","","","",{"$nulls":30},"","","","",{"$nulls":60},"",{"$f":"IF($A337=\"\",\"\",IF(VLOOKUP($G337,$H$11:$DN$1000,96,FALSE)=\"\",\"No\",IF(LEFT(VLOOKUP($G337,$H$11:$DN$1000,96,FALSE),3)=\"The\",EF337,VLOOKUP(VLOOKUP($G337,$H$11:$DN$1000,96,FALSE),DeclMatrix!$A$2:$F$5,VLOOKUP('Enrollment Form'!$B337,DeclMatrix!$A$8:$B$12,2,FALSE),FALSE))))","v":""},{"$f":"IF($A337=\"\",\"\",IF(VLOOKUP($G337,$H$11:$DN$1000,101,FALSE)=\"\",\"No\",IF(LEFT(VLOOKUP($G337,$H$11:$DN$1000,101,FALSE),3)=\"The\",EG337,VLOOKUP(VLOOKUP($G337,$H$11:$DN$1000,101,FALSE),DeclMatrix!$A$2:$F$5,VLOOKUP('Enrollment Form'!$B337,DeclMatrix!$A$8:$B$12,2,FALSE),FALSE))))","v":""},{"$f":"IF($A337=\"\",\"\",IF(VLOOKUP($G337,$H$11:$DN$1000,106,FALSE)=\"\",\"No\",IF(LEFT(VLOOKUP($G337,$H$11:$DN$1000,106,FALSE),3)=\"The\",EH337,VLOOKUP(VLOOKUP($G337,$H$11:$DN$1000,106,FALSE),DeclMatrix!$A$2:$F$5,VLOOKUP('Enrollment Form'!$B337,DeclMatrix!$A$8:$B$12,2,FALSE),FALSE))))","v":""},{"$f":"IF($A337=\"\",\"\",IF(VLOOKUP($G337,$H$11:$DN$1000,111,FALSE)=\"\",\"No\",IF(LEFT(VLOOKUP($G337,$H$11:$DN$1000,111,FALSE),3)=\"The\",EI337,VLOOKUP(VLOOKUP($G337,$H$11:$DN$1000,111,FALSE),DeclMatrix!$A$2:$F$5,VLOOKUP('Enrollment Form'!$B337,DeclMatrix!$A$8:$B$12,2,FALSE),FALSE))))","v":""},"",null,"","","","","","","","","","","",""]
["",{"$nulls":5},"","",{"$nulls":18},"","","","",{"$nulls":30},"","","","",{"$nulls":60},"",{"$f":"IF($A338=\"\",\"\",IF(VLOOKUP($G338,$H$11:$DN$1000,96,FALSE)=\"\",\"No\",IF(LEFT(VLOOKUP($G338,$H$11:$DN$1000,96,FALSE),3)=\"The\",EF338,VLOOKUP(VLOOKUP($G338,$H$11:$DN$1000,96,FALSE),DeclMatrix!$A$2:$F$5,VLOOKUP('Enrollment Form'!$B338,DeclMatrix!$A$8:$B$12,2,FALSE),FALSE))))","v":""},{"$f":"IF($A338=\"\",\"\",IF(VLOOKUP($G338,$H$11:$DN$1000,101,FALSE)=\"\",\"No\",IF(LEFT(VLOOKUP($G338,$H$11:$DN$1000,101,FALSE),3)=\"The\",EG338,VLOOKUP(VLOOKUP($G338,$H$11:$DN$1000,101,FALSE),DeclMatrix!$A$2:$F$5,VLOOKUP('Enrollment Form'!$B338,DeclMatrix!$A$8:$B$12,2,FALSE),FALSE))))","v":""},{"$f":"IF($A338=\"\",\"\",IF(VLOOKUP($G338,$H$11:$DN$1000,106,FALSE)=\"\",\"No\",IF(LEFT(VLOOKUP($G338,$H$11:$DN$1000,106,FALSE),3)=\"The\",EH338,VLOOKUP(VLOOKUP($G338,$H$11:$DN$1000,106,FALSE),DeclMatrix!$A$2:$F$5,VLOOKUP('Enrollment Form'!$B338,DeclMatrix!$A$8:$B$12,2,FALSE),FALSE))))","v":""},{"$f":"IF($A338=\"\",\"\",IF(VLOOKUP($G338,$H$11:$DN$1000,111,FALSE)=\"\",\"No\",IF(LEFT(VLOOKUP($G338,$H$11:$DN$1000,111,FALSE),3)=\"The\",EI338,VLOOKUP(VLOOKUP($G338,$H$11:$DN$1000,111,FALSE),DeclMatrix!$A$2:$F$5,VLOOKUP('Enrollment Form'!$B338,DeclMatrix!$A$8:$B$12,2,FALSE),FALSE))))","v":""},"",null,"","","","","","","","","","","",""]
["",{"$nulls":5},"","",{"$nulls":18},"","","","",{"$nulls":30},"","","","",{"$nulls":60},"",{"$f":"IF($A339=\"\",\"\",IF(VLOOKUP($G339,$H$11:$DN$1000,96,FALSE)=\"\",\"No\",IF(LEFT(VLOOKUP($G339,$H$11:$DN$1000,96,FALSE),3)=\"The\",EF339,VLOOKUP(VLOOKUP($G339,$H$11:$DN$1000,96,FALSE),DeclMatrix!$A$2:$F$5,VLOOKUP('Enrollment Form'!$B339,DeclMatrix!$A$8:$B$12,2,FALSE),FALSE))))","v":""},{"$f":"IF($A339=\"\",\"\",IF(VLOOKUP($G339,$H$11:$DN$1000,101,FALSE)=\"\",\"No\",IF(LEFT(VLOOKUP($G339,$H$11:$DN$1000,101,FALSE),3)=\"The\",EG339,VLOOKUP(VLOOKUP($G339,$H$11:$DN$1000,101,FALSE),DeclMatrix!$A$2:$F$5,VLOOKUP('Enrollment Form'!$B339,DeclMatrix!$A$8:$B$12,2,FALSE),FALSE))))","v":""},{"$f":"IF($A339=\"\",\"\",IF(VLOOKUP($G339,$H$11:$DN$1000,106,FALSE)=\"\",\"No\",IF(LEFT(VLOOKUP($G339,$H$11:$DN$1000,106,FALSE),3)=\"The\",EH339,VLOOKUP(VLOOKUP($G339,$H$11:$DN$1000,106,FALSE),DeclMatrix!$A$2:$F$5,VLOOKUP('Enrollment Form'!$B339,DeclMatrix!$A$8:$B$12,2,FALSE),FALSE))))","v":""},{"$f":"IF($A339=\"\",\"\",IF(VLOOKUP($G339,$H$11:$DN$1000,111,FALSE)=\"\",\"No\",IF(LEFT(VLOOKUP($G339,$H$11:$DN$1000,111,FALSE),3)=\"The\",EI339,VLOOKUP(VLOOKUP($G339,$H$11:$DN$1000,111,FALSE),DeclMatrix!$A$2:$F$5,VLOOKUP('Enrollment Form'!$B339,DeclMatrix!$A$8:$B$12,2,FALSE),FALSE))))","v":""},"",null,"","","","","","","","","","","",""]
["",{"$nulls":5},"","",{"$nulls":18},"","","","",{"$nulls":30},"","","","",{"$nulls":60},"",{"$f":"IF($A340=\"\",\"\",IF(VLOOKUP($G340,$H$11:$DN$1000,96,FALSE)=\"\",\"No\",IF(LEFT(VLOOKUP($G340,$H$11:$DN$1000,96,FALSE),3)=\"The\",EF340,VLOOKUP(VLOOKUP($G340,$H$11:$DN$1000,96,FALSE),DeclMatrix!$A$2:$F$5,VLOOKUP('Enrollment Form'!$B340,DeclMatrix!$A$8:$B$12,2,FALSE),FALSE))))","v":""},{"$f":"IF($A340=\"\",\"\",IF(VLOOKUP($G340,$H$11:$DN$1000,101,FALSE)=\"\",\"No\",IF(LEFT(VLOOKUP($G340,$H$11:$DN$1000,101,FALSE),3)=\"The\",EG340,VLOOKUP(VLOOKUP($G340,$H$11:$DN$1000,101,FALSE),DeclMatrix!$A$2:$F$5,VLOOKUP('Enrollment Form'!$B340,DeclMatrix!$A$8:$B$12,2,FALSE),FALSE))))","v":""},{"$f":"IF($A340=\"\",\"\",IF(VLOOKUP($G340,$H$11:$DN$1000,106,FALSE)=\"\",\"No\",IF(LEFT(VLOOKUP($G340,$H$11:$DN$1000,106,FALSE),3)=\"The\",EH340,VLOOKUP(VLOOKUP($G340,$H$11:$DN$1000,106,FALSE),DeclMatrix!$A$2:$F$5,VLOOKUP('Enrollment Form'!$B340,DeclMatrix!$A$8:$B$12,2,FALSE),FALSE))))","v":""},{"$f":"IF($A340=\"\",\"\",IF(VLOOKUP($G340,$H$11:$DN$1000,111,FALSE)=\"\",\"No\",IF(LEFT(VLOOKUP($G340,$H$11:$DN$1000,111,FALSE),3)=\"The\",EI340,VLOOKUP(VLOOKUP($G340,$H$11:$DN$1000,111,FALSE),DeclMatrix!$A$2:$F$5,VLOOKUP('Enrollment Form'!$B340,DeclMatrix!$A$8:$B$12,2,FALSE),FALSE))))","v":""},"",null,"","","","","","","","","","","",""]
["",{"$nulls":5},"","",{"$nulls":18},"","","","",{"$nulls":30},"","","","",{"$nulls":60},"",{"$f":"IF($A341=\"\",\"\",IF(VLOOKUP($G341,$H$11:$DN$1000,96,FALSE)=\"\",\"No\",IF(LEFT(VLOOKUP($G341,$H$11:$DN$1000,96,FALSE),3)=\"The\",EF341,VLOOKUP(VLOOKUP($G341,$H$11:$DN$1000,96,FALSE),DeclMatrix!$A$2:$F$5,VLOOKUP('Enrollment Form'!$B341,DeclMatrix!$A$8:$B$12,2,FALSE),FALSE))))","v":""},{"$f":"IF($A341=\"\",\"\",IF(VLOOKUP($G341,$H$11:$DN$1000,101,FALSE)=\"\",\"No\",IF(LEFT(VLOOKUP($G341,$H$11:$DN$1000,101,FALSE),3)=\"The\",EG341,VLOOKUP(VLOOKUP($G341,$H$11:$DN$1000,101,FALSE),DeclMatrix!$A$2:$F$5,VLOOKUP('Enrollment Form'!$B341,DeclMatrix!$A$8:$B$12,2,FALSE),FALSE))))","v":""},{"$f":"IF($A341=\"\",\"\",IF(VLOOKUP($G341,$H$11:$DN$1000,106,FALSE)=\"\",\"No\",IF(LEFT(VLOOKUP($G341,$H$11:$DN$1000,106,FALSE),3)=\"The\",EH341,VLOOKUP(VLOOKUP($G341,$H$11:$DN$1000,106,FALSE),DeclMatrix!$A$2:$F$5,VLOOKUP('Enrollment Form'!$B341,DeclMatrix!$A$8:$B$12,2,FALSE),FALSE))))","v":""},{"$f":"IF($A341=\"\",\"\",IF(VLOOKUP($G341,$H$11:$DN$1000,111,FALSE)=\"\",\"No\",IF(LEFT(VLOOKUP($G341,$H$11:$DN$1000,111,FALSE),3)=\"The\",EI341,VLOOKUP(VLOOKUP($G341,$H$11:$DN$1000,111,FALSE),DeclMatrix!$A$2:$F$5,VLOOKUP('Enrollment Form'!$B341,DeclMatrix!$A$8:$B$12,2,FALSE),FALSE))))","v":""},"",null,"","","","","","","","","","","",""]
["",{"$nulls":5},"","",{"$nulls":18},"","","","",{"$nulls":30},"","","","",{"$nulls":60},"",{"$f":"IF($A342=\"\",\"\",IF(VLOOKUP($G342,$H$11:$DN$1000,96,FALSE)=\"\",\"No\",IF(LEFT(VLOOKUP($G342,$H$11:$DN$1000,96,FALSE),3)=\"The\",EF342,VLOOKUP(VLOOKUP($G342,$H$11:$DN$1000,96,FALSE),DeclMatrix!$A$2:$F$5,VLOOKUP('Enrollment Form'!$B342,DeclMatrix!$A$8:$B$12,2,FALSE),FALSE))))","v":""},{"$f":"IF($A342=\"\",\"\",IF(VLOOKUP($G342,$H$11:$DN$1000,101,FALSE)=\"\",\"No\",IF(LEFT(VLOOKUP($G342,$H$11:$DN$1000,101,FALSE),3)=\"The\",EG342,VLOOKUP(VLOOKUP($G342,$H$11:$DN$1000,101,FALSE),DeclMatrix!$A$2:$F$5,VLOOKUP('Enrollment Form'!$B342,DeclMatrix!$A$8:$B$12,2,FALSE),FALSE))))","v":""},{"$f":"IF($A342=\"\",\"\",IF(VLOOKUP($G342,$H$11:$DN$1000,106,FALSE)=\"\",\"No\",IF(LEFT(VLOOKUP($G342,$H$11:$DN$1000,106,FALSE),3)=\"The\",EH342,VLOOKUP(VLOOKUP($G342,$H$11:$DN$1000,106,FALSE),DeclMatrix!$A$2:$F$5,VLOOKUP('Enrollment Form'!$B342,DeclMatrix!$A$8:$B$12,2,FALSE),FALSE))))","v":""},{"$f":"IF($A342=\"\",\"\",IF(VLOOKUP($G342,$H$11:$DN$1000,111,FALSE)=\"\",\"No\",IF(LEFT(VLOOKUP($G342,$H$11:$DN$1000,111,FALSE),3)=\"The\",EI342,VLOOKUP(VLOOKUP($G342,$H$11:$DN$1000,111,FALSE),DeclMatrix!$A$2:$F$5,VLOOKUP('Enrollment Form'!$B342,DeclMatrix!$A$8:$B$12,2,FALSE),FALSE))))","v":""},"",null,"","","","","","","","","","","",""]
["",{"$nulls":5},"","",{"$nulls":18},"","","","",{"$nulls":30},"","","","",{"$nulls":60},"",{"$f":"IF($A343=\"\",\"\",IF(VLOOKUP($G343,$H$11:$DN$1000,96,FALSE)=\"\",\"No\",IF(LEFT(VLOOKUP($G343,$H$11:$DN$1000,96,FALSE),3)=\"The\",EF343,VLOOKUP(VLOOKUP($G343,$H$11:$DN$1000,96,FALSE),DeclMatrix!$A$2:$F$5,VLOOKUP('Enrollment Form'!$B343,DeclMatrix!$A$8:$B$12,2,FALSE),FALSE))))","v":""},{"$f":"IF($A343=\"\",\"\",IF(VLOOKUP($G343,$H$11:$DN$1000,101,FALSE)=\"\",\"No\",IF(LEFT(VLOOKUP($G343,$H$11:$DN$1000,101,FALSE),3)=\"The\",EG343,VLOOKUP(VLOOKUP($G343,$H$11:$DN$1000,101,FALSE),DeclMatrix!$A$2:$F$5,VLOOKUP('Enrollment Form'!$B343,DeclMatrix!$A$8:$B$12,2,FALSE),FALSE))))","v":""},{"$f":"IF($A343=\"\",\"\",IF(VLOOKUP($G343,$H$11:$DN$1000,106,FALSE)=\"\",\"No\",IF(LEFT(VLOOKUP($G343,$H$11:$DN$1000,106,FALSE),3)=\"The\",EH343,VLOOKUP(VLOOKUP($G343,$H$11:$DN$1000,106,FALSE),DeclMatrix!$A$2:$F$5,VLOOKUP('Enrollment Form'!$B343,DeclMatrix!$A$8:$B$12,2,FALSE),FALSE))))","v":""},{"$f":"IF($A343=\"\",\"\",IF(VLOOKUP($G343,$H$11:$DN$1000,111,FALSE)=\"\",\"No\",IF(LEFT(VLOOKUP($G343,$H$11:$DN$1000,111,FALSE),3)=\"The\",EI343,VLOOKUP(VLOOKUP($G343,$H$11:$DN$1000,111,FALSE),DeclMatrix!$A$2:$F$5,VLOOKUP('Enrollment Form'!$B343,DeclMatrix!$A$8:$B$12,2,FALSE),FALSE))))","v":""},"",null,"","","","","","","","","","","",""]
["",{"$nulls":5},"","",{"$nulls":18},"","","","",{"$nulls":30},"","","","",{"$nulls":60},"",{"$f":"IF($A344=\"\",\"\",IF(VLOOKUP($G344,$H$11:$DN$1000,96,FALSE)=\"\",\"No\",IF(LEFT(VLOOKUP($G344,$H$11:$DN$1000,96,FALSE),3)=\"The\",EF344,VLOOKUP(VLOOKUP($G344,$H$11:$DN$1000,96,FALSE),DeclMatrix!$A$2:$F$5,VLOOKUP('Enrollment Form'!$B344,DeclMatrix!$A$8:$B$12,2,FALSE),FALSE))))","v":""},{"$f":"IF($A344=\"\",\"\",IF(VLOOKUP($G344,$H$11:$DN$1000,101,FALSE)=\"\",\"No\",IF(LEFT(VLOOKUP($G344,$H$11:$DN$1000,101,FALSE),3)=\"The\",EG344,VLOOKUP(VLOOKUP($G344,$H$11:$DN$1000,101,FALSE),DeclMatrix!$A$2:$F$5,VLOOKUP('Enrollment Form'!$B344,DeclMatrix!$A$8:$B$12,2,FALSE),FALSE))))","v":""},{"$f":"IF($A344=\"\",\"\",IF(VLOOKUP($G344,$H$11:$DN$1000,106,FALSE)=\"\",\"No\",IF(LEFT(VLOOKUP($G344,$H$11:$DN$1000,106,FALSE),3)=\"The\",EH344,VLOOKUP(VLOOKUP($G344,$H$11:$DN$1000,106,FALSE),DeclMatrix!$A$2:$F$5,VLOOKUP('Enrollment Form'!$B344,DeclMatrix!$A$8:$B$12,2,FALSE),FALSE))))","v":""},{"$f":"IF($A344=\"\",\"\",IF(VLOOKUP($G344,$H$11:$DN$1000,111,FALSE)=\"\",\"No\",IF(LEFT(VLOOKUP($G344,$H$11:$DN$1000,111,FALSE),3)=\"The\",EI344,VLOOKUP(VLOOKUP($G344,$H$11:$DN$1000,111,FALSE),DeclMatrix!$A$2:$F$5,VLOOKUP('Enrollment Form'!$B344,DeclMatrix!$A$8:$B$12,2,FALSE),FALSE))))","v":""},"",null,"","","","","","","","","","","",""]
["",{"$nulls":5},"","",{"$nulls":18},"","","","",{"$nulls":30},"","","","",{"$nulls":60},"",{"$f":"IF($A345=\"\",\"\",IF(VLOOKUP($G345,$H$11:$DN$1000,96,FALSE)=\"\",\"No\",IF(LEFT(VLOOKUP($G345,$H$11:$DN$1000,96,FALSE),3)=\"The\",EF345,VLOOKUP(VLOOKUP($G345,$H$11:$DN$1000,96,FALSE),DeclMatrix!$A$2:$F$5,VLOOKUP('Enrollment Form'!$B345,DeclMatrix!$A$8:$B$12,2,FALSE),FALSE))))","v":""},{"$f":"IF($A345=\"\",\"\",IF(VLOOKUP($G345,$H$11:$DN$1000,101,FALSE)=\"\",\"No\",IF(LEFT(VLOOKUP($G345,$H$11:$DN$1000,101,FALSE),3)=\"The\",EG345,VLOOKUP(VLOOKUP($G345,$H$11:$DN$1000,101,FALSE),DeclMatrix!$A$2:$F$5,VLOOKUP('Enrollment Form'!$B345,DeclMatrix!$A$8:$B$12,2,FALSE),FALSE))))","v":""},{"$f":"IF($A345=\"\",\"\",IF(VLOOKUP($G345,$H$11:$DN$1000,106,FALSE)=\"\",\"No\",IF(LEFT(VLOOKUP($G345,$H$11:$DN$1000,106,FALSE),3)=\"The\",EH345,VLOOKUP(VLOOKUP($G345,$H$11:$DN$1000,106,FALSE),DeclMatrix!$A$2:$F$5,VLOOKUP('Enrollment Form'!$B345,DeclMatrix!$A$8:$B$12,2,FALSE),FALSE))))","v":""},{"$f":"IF($A345=\"\",\"\",IF(VLOOKUP($G345,$H$11:$DN$1000,111,FALSE)=\"\",\"No\",IF(LEFT(VLOOKUP($G345,$H$11:$DN$1000,111,FALSE),3)=\"The\",EI345,VLOOKUP(VLOOKUP($G345,$H$11:$DN$1000,111,FALSE),DeclMatrix!$A$2:$F$5,VLOOKUP('Enrollment Form'!$B345,DeclMatrix!$A$8:$B$12,2,FALSE),FALSE))))","v":""},"",null,"","","","","","","","","","","",""]
["",{"$nulls":5},"","",{"$nulls":18},"","","","",{"$nulls":30},"","","","",{"$nulls":60},"",{"$f":"IF($A346=\"\",\"\",IF(VLOOKUP($G346,$H$11:$DN$1000,96,FALSE)=\"\",\"No\",IF(LEFT(VLOOKUP($G346,$H$11:$DN$1000,96,FALSE),3)=\"The\",EF346,VLOOKUP(VLOOKUP($G346,$H$11:$DN$1000,96,FALSE),DeclMatrix!$A$2:$F$5,VLOOKUP('Enrollment Form'!$B346,DeclMatrix!$A$8:$B$12,2,FALSE),FALSE))))","v":""},{"$f":"IF($A346=\"\",\"\",IF(VLOOKUP($G346,$H$11:$DN$1000,101,FALSE)=\"\",\"No\",IF(LEFT(VLOOKUP($G346,$H$11:$DN$1000,101,FALSE),3)=\"The\",EG346,VLOOKUP(VLOOKUP($G346,$H$11:$DN$1000,101,FALSE),DeclMatrix!$A$2:$F$5,VLOOKUP('Enrollment Form'!$B346,DeclMatrix!$A$8:$B$12,2,FALSE),FALSE))))","v":""},{"$f":"IF($A346=\"\",\"\",IF(VLOOKUP($G346,$H$11:$DN$1000,106,FALSE)=\"\",\"No\",IF(LEFT(VLOOKUP($G346,$H$11:$DN$1000,106,FALSE),3)=\"The\",EH346,VLOOKUP(VLOOKUP($G346,$H$11:$DN$1000,106,FALSE),DeclMatrix!$A$2:$F$5,VLOOKUP('Enrollment Form'!$B346,DeclMatrix!$A$8:$B$12,2,FALSE),FALSE))))","v":""},{"$f":"IF($A346=\"\",\"\",IF(VLOOKUP($G346,$H$11:$DN$1000,111,FALSE)=\"\",\"No\",IF(LEFT(VLOOKUP($G346,$H$11:$DN$1000,111,FALSE),3)=\"The\",EI346,VLOOKUP(VLOOKUP($G346,$H$11:$DN$1000,111,FALSE),DeclMatrix!$A$2:$F$5,VLOOKUP('Enrollment Form'!$B346,DeclMatrix!$A$8:$B$12,2,FALSE),FALSE))))","v":""},"",null,"","","","","","","","","","","",""]
["",{"$nulls":5},"","",{"$nulls":18},"","","","",{"$nulls":30},"","","","",{"$nulls":60},"",{"$f":"IF($A347=\"\",\"\",IF(VLOOKUP($G347,$H$11:$DN$1000,96,FALSE)=\"\",\"No\",IF(LEFT(VLOOKUP($G347,$H$11:$DN$1000,96,FALSE),3)=\"The\",EF347,VLOOKUP(VLOOKUP($G347,$H$11:$DN$1000,96,FALSE),DeclMatrix!$A$2:$F$5,VLOOKUP('Enrollment Form'!$B347,DeclMatrix!$A$8:$B$12,2,FALSE),FALSE))))","v":""},{"$f":"IF($A347=\"\",\"\",IF(VLOOKUP($G347,$H$11:$DN$1000,101,FALSE)=\"\",\"No\",IF(LEFT(VLOOKUP($G347,$H$11:$DN$1000,101,FALSE),3)=\"The\",EG347,VLOOKUP(VLOOKUP($G347,$H$11:$DN$1000,101,FALSE),DeclMatrix!$A$2:$F$5,VLOOKUP('Enrollment Form'!$B347,DeclMatrix!$A$8:$B$12,2,FALSE),FALSE))))","v":""},{"$f":"IF($A347=\"\",\"\",IF(VLOOKUP($G347,$H$11:$DN$1000,106,FALSE)=\"\",\"No\",IF(LEFT(VLOOKUP($G347,$H$11:$DN$1000,106,FALSE),3)=\"The\",EH347,VLOOKUP(VLOOKUP($G347,$H$11:$DN$1000,106,FALSE),DeclMatrix!$A$2:$F$5,VLOOKUP('Enrollment Form'!$B347,DeclMatrix!$A$8:$B$12,2,FALSE),FALSE))))","v":""},{"$f":"IF($A347=\"\",\"\",IF(VLOOKUP($G347,$H$11:$DN$1000,111,FALSE)=\"\",\"No\",IF(LEFT(VLOOKUP($G347,$H$11:$DN$1000,111,FALSE),3)=\"The\",EI347,VLOOKUP(VLOOKUP($G347,$H$11:$DN$1000,111,FALSE),DeclMatrix!$A$2:$F$5,VLOOKUP('Enrollment Form'!$B347,DeclMatrix!$A$8:$B$12,2,FALSE),FALSE))))","v":""},"",null,"","","","","","","","","","","",""]
["",{"$nulls":5},"","",{"$nulls":18},"","","","",{"$nulls":30},"","","","",{"$nulls":60},"",{"$f":"IF($A348=\"\",\"\",IF(VLOOKUP($G348,$H$11:$DN$1000,96,FALSE)=\"\",\"No\",IF(LEFT(VLOOKUP($G348,$H$11:$DN$1000,96,FALSE),3)=\"The\",EF348,VLOOKUP(VLOOKUP($G348,$H$11:$DN$1000,96,FALSE),DeclMatrix!$A$2:$F$5,VLOOKUP('Enrollment Form'!$B348,DeclMatrix!$A$8:$B$12,2,FALSE),FALSE))))","v":""},{"$f":"IF($A348=\"\",\"\",IF(VLOOKUP($G348,$H$11:$DN$1000,101,FALSE)=\"\",\"No\",IF(LEFT(VLOOKUP($G348,$H$11:$DN$1000,101,FALSE),3)=\"The\",EG348,VLOOKUP(VLOOKUP($G348,$H$11:$DN$1000,101,FALSE),DeclMatrix!$A$2:$F$5,VLOOKUP('Enrollment Form'!$B348,DeclMatrix!$A$8:$B$12,2,FALSE),FALSE))))","v":""},{"$f":"IF($A348=\"\",\"\",IF(VLOOKUP($G348,$H$11:$DN$1000,106,FALSE)=\"\",\"No\",IF(LEFT(VLOOKUP($G348,$H$11:$DN$1000,106,FALSE),3)=\"The\",EH348,VLOOKUP(VLOOKUP($G348,$H$11:$DN$1000,106,FALSE),DeclMatrix!$A$2:$F$5,VLOOKUP('Enrollment Form'!$B348,DeclMatrix!$A$8:$B$12,2,FALSE),FALSE))))","v":""},{"$f":"IF($A348=\"\",\"\",IF(VLOOKUP($G348,$H$11:$DN$1000,111,FALSE)=\"\",\"No\",IF(LEFT(VLOOKUP($G348,$H$11:$DN$1000,111,FALSE),3)=\"The\",EI348,VLOOKUP(VLOOKUP($G348,$H$11:$DN$1000,111,FALSE),DeclMatrix!$A$2:$F$5,VLOOKUP('Enrollment Form'!$B348,DeclMatrix!$A$8:$B$12,2,FALSE),FALSE))))","v":""},"",null,"","","","","","","","","","","",""]
["",{"$nulls":5},"","",{"$nulls":18},"","","","",{"$nulls":30},"","","","",{"$nulls":60},"",{"$f":"IF($A349=\"\",\"\",IF(VLOOKUP($G349,$H$11:$DN$1000,96,FALSE)=\"\",\"No\",IF(LEFT(VLOOKUP($G349,$H$11:$DN$1000,96,FALSE),3)=\"The\",EF349,VLOOKUP(VLOOKUP($G349,$H$11:$DN$1000,96,FALSE),DeclMatrix!$A$2:$F$5,VLOOKUP('Enrollment Form'!$B349,DeclMatrix!$A$8:$B$12,2,FALSE),FALSE))))","v":""},{"$f":"IF($A349=\"\",\"\",IF(VLOOKUP($G349,$H$11:$DN$1000,101,FALSE)=\"\",\"No\",IF(LEFT(VLOOKUP($G349,$H$11:$DN$1000,101,FALSE),3)=\"The\",EG349,VLOOKUP(VLOOKUP($G349,$H$11:$DN$1000,101,FALSE),DeclMatrix!$A$2:$F$5,VLOOKUP('Enrollment Form'!$B349,DeclMatrix!$A$8:$B$12,2,FALSE),FALSE))))","v":""},{"$f":"IF($A349=\"\",\"\",IF(VLOOKUP($G349,$H$11:$DN$1000,106,FALSE)=\"\",\"No\",IF(LEFT(VLOOKUP($G349,$H$11:$DN$1000,106,FALSE),3)=\"The\",EH349,VLOOKUP(VLOOKUP($G349,$H$11:$DN$1000,106,FALSE),DeclMatrix!$A$2:$F$5,VLOOKUP('Enrollment Form'!$B349,DeclMatrix!$A$8:$B$12,2,FALSE),FALSE))))","v":""},{"$f":"IF($A349=\"\",\"\",IF(VLOOKUP($G349,$H$11:$DN$1000,111,FALSE)=\"\",\"No\",IF(LEFT(VLOOKUP($G349,$H$11:$DN$1000,111,FALSE),3)=\"The\",EI349,VLOOKUP(VLOOKUP($G349,$H$11:$DN$1000,111,FALSE),DeclMatrix!$A$2:$F$5,VLOOKUP('Enrollment Form'!$B349,DeclMatrix!$A$8:$B$12,2,FALSE),FALSE))))","v":""},"",null,"","","","","","","","","","","",""]
["",{"$nulls":5},"","",{"$nulls":18},"","","","",{"$nulls":30},"","","","",{"$nulls":60},"",{"$f":"IF($A350=\"\",\"\",IF(VLOOKUP($G350,$H$11:$DN$1000,96,FALSE)=\"\",\"No\",IF(LEFT(VLOOKUP($G350,$H$11:$DN$1000,96,FALSE),3)=\"The\",EF350,VLOOKUP(VLOOKUP($G350,$H$11:$DN$1000,96,FALSE),DeclMatrix!$A$2:$F$5,VLOOKUP('Enrollment Form'!$B350,DeclMatrix!$A$8:$B$12,2,FALSE),FALSE))))","v":""},{"$f":"IF($A350=\"\",\"\",IF(VLOOKUP($G350,$H$11:$DN$1000,101,FALSE)=\"\",\"No\",IF(LEFT(VLOOKUP($G350,$H$11:$DN$1000,101,FALSE),3)=\"The\",EG350,VLOOKUP(VLOOKUP($G350,$H$11:$DN$1000,101,FALSE),DeclMatrix!$A$2:$F$5,VLOOKUP('Enrollment Form'!$B350,DeclMatrix!$A$8:$B$12,2,FALSE),FALSE))))","v":""},{"$f":"IF($A350=\"\",\"\",IF(VLOOKUP($G350,$H$11:$DN$1000,106,FALSE)=\"\",\"No\",IF(LEFT(VLOOKUP($G350,$H$11:$DN$1000,106,FALSE),3)=\"The\",EH350,VLOOKUP(VLOOKUP($G350,$H$11:$DN$1000,106,FALSE),DeclMatrix!$A$2:$F$5,VLOOKUP('Enrollment Form'!$B350,DeclMatrix!$A$8:$B$12,2,FALSE),FALSE))))","v":""},{"$f":"IF($A350=\"\",\"\",IF(VLOOKUP($G350,$H$11:$DN$1000,111,FALSE)=\"\",\"No\",IF(LEFT(VLOOKUP($G350,$H$11:$DN$1000,111,FALSE),3)=\"The\",EI350,VLOOKUP(VLOOKUP($G350,$H$11:$DN$1000,111,FALSE),DeclMatrix!$A$2:$F$5,VLOOKUP('Enrollment Form'!$B350,DeclMatrix!$A$8:$B$12,2,FALSE),FALSE))))","v":""},"",null,"","","","","","","","","","","",""]
["",{"$nulls":5},"","",{"$nulls":18},"","","","",{"$nulls":30},"","","","",{"$nulls":60},"",{"$f":"IF($A351=\"\",\"\",IF(VLOOKUP($G351,$H$11:$DN$1000,96,FALSE)=\"\",\"No\",IF(LEFT(VLOOKUP($G351,$H$11:$DN$1000,96,FALSE),3)=\"The\",EF351,VLOOKUP(VLOOKUP($G351,$H$11:$DN$1000,96,FALSE),DeclMatrix!$A$2:$F$5,VLOOKUP('Enrollment Form'!$B351,DeclMatrix!$A$8:$B$12,2,FALSE),FALSE))))","v":""},{"$f":"IF($A351=\"\",\"\",IF(VLOOKUP($G351,$H$11:$DN$1000,101,FALSE)=\"\",\"No\",IF(LEFT(VLOOKUP($G351,$H$11:$DN$1000,101,FALSE),3)=\"The\",EG351,VLOOKUP(VLOOKUP($G351,$H$11:$DN$1000,101,FALSE),DeclMatrix!$A$2:$F$5,VLOOKUP('Enrollment Form'!$B351,DeclMatrix!$A$8:$B$12,2,FALSE),FALSE))))","v":""},{"$f":"IF($A351=\"\",\"\",IF(VLOOKUP($G351,$H$11:$DN$1000,106,FALSE)=\"\",\"No\",IF(LEFT(VLOOKUP($G351,$H$11:$DN$1000,106,FALSE),3)=\"The\",EH351,VLOOKUP(VLOOKUP($G351,$H$11:$DN$1000,106,FALSE),DeclMatrix!$A$2:$F$5,VLOOKUP('Enrollment Form'!$B351,DeclMatrix!$A$8:$B$12,2,FALSE),FALSE))))","v":""},{"$f":"IF($A351=\"\",\"\",IF(VLOOKUP($G351,$H$11:$DN$1000,111,FALSE)=\"\",\"No\",IF(LEFT(VLOOKUP($G351,$H$11:$DN$1000,111,FALSE),3)=\"The\",EI351,VLOOKUP(VLOOKUP($G351,$H$11:$DN$1000,111,FALSE),DeclMatrix!$A$2:$F$5,VLOOKUP('Enrollment Form'!$B351,DeclMatrix!$A$8:$B$12,2,FALSE),FALSE))))","v":""},"",null,"","","","","","","","","","","",""]
["",{"$nulls":5},"","",{"$nulls":18},"","","","",{"$nulls":30},"","","","",{"$nulls":60},"",{"$f":"IF($A352=\"\",\"\",IF(VLOOKUP($G352,$H$11:$DN$1000,96,FALSE)=\"\",\"No\",IF(LEFT(VLOOKUP($G352,$H$11:$DN$1000,96,FALSE),3)=\"The\",EF352,VLOOKUP(VLOOKUP($G352,$H$11:$DN$1000,96,FALSE),DeclMatrix!$A$2:$F$5,VLOOKUP('Enrollment Form'!$B352,DeclMatrix!$A$8:$B$12,2,FALSE),FALSE))))","v":""},{"$f":"IF($A352=\"\",\"\",IF(VLOOKUP($G352,$H$11:$DN$1000,101,FALSE)=\"\",\"No\",IF(LEFT(VLOOKUP($G352,$H$11:$DN$1000,101,FALSE),3)=\"The\",EG352,VLOOKUP(VLOOKUP($G352,$H$11:$DN$1000,101,FALSE),DeclMatrix!$A$2:$F$5,VLOOKUP('Enrollment Form'!$B352,DeclMatrix!$A$8:$B$12,2,FALSE),FALSE))))","v":""},{"$f":"IF($A352=\"\",\"\",IF(VLOOKUP($G352,$H$11:$DN$1000,106,FALSE)=\"\",\"No\",IF(LEFT(VLOOKUP($G352,$H$11:$DN$1000,106,FALSE),3)=\"The\",EH352,VLOOKUP(VLOOKUP($G352,$H$11:$DN$1000,106,FALSE),DeclMatrix!$A$2:$F$5,VLOOKUP('Enrollment Form'!$B352,DeclMatrix!$A$8:$B$12,2,FALSE),FALSE))))","v":""},{"$f":"IF($A352=\"\",\"\",IF(VLOOKUP($G352,$H$11:$DN$1000,111,FALSE)=\"\",\"No\",IF(LEFT(VLOOKUP($G352,$H$11:$DN$1000,111,FALSE),3)=\"The\",EI352,VLOOKUP(VLOOKUP($G352,$H$11:$DN$1000,111,FALSE),DeclMatrix!$A$2:$F$5,VLOOKUP('Enrollment Form'!$B352,DeclMatrix!$A$8:$B$12,2,FALSE),FALSE))))","v":""},"",null,"","","","","","","","","","","",""]
["",{"$nulls":5},"","",{"$nulls":18},"","","","",{"$nulls":30},"","","","",{"$nulls":60},"",{"$f":"IF($A353=\"\",\"\",IF(VLOOKUP($G353,$H$11:$DN$1000,96,FALSE)=\"\",\"No\",IF(LEFT(VLOOKUP($G353,$H$11:$DN$1000,96,FALSE),3)=\"The\",EF353,VLOOKUP(VLOOKUP($G353,$H$11:$DN$1000,96,FALSE),DeclMatrix!$A$2:$F$5,VLOOKUP('Enrollment Form'!$B353,DeclMatrix!$A$8:$B$12,2,FALSE),FALSE))))","v":""},{"$f":"IF($A353=\"\",\"\",IF(VLOOKUP($G353,$H$11:$DN$1000,101,FALSE)=\"\",\"No\",IF(LEFT(VLOOKUP($G353,$H$11:$DN$1000,101,FALSE),3)=\"The\",EG353,VLOOKUP(VLOOKUP($G353,$H$11:$DN$1000,101,FALSE),DeclMatrix!$A$2:$F$5,VLOOKUP('Enrollment Form'!$B353,DeclMatrix!$A$8:$B$12,2,FALSE),FALSE))))","v":""},{"$f":"IF($A353=\"\",\"\",IF(VLOOKUP($G353,$H$11:$DN$1000,106,FALSE)=\"\",\"No\",IF(LEFT(VLOOKUP($G353,$H$11:$DN$1000,106,FALSE),3)=\"The\",EH353,VLOOKUP(VLOOKUP($G353,$H$11:$DN$1000,106,FALSE),DeclMatrix!$A$2:$F$5,VLOOKUP('Enrollment Form'!$B353,DeclMatrix!$A$8:$B$12,2,FALSE),FALSE))))","v":""},{"$f":"IF($A353=\"\",\"\",IF(VLOOKUP($G353,$H$11:$DN$1000,111,FALSE)=\"\",\"No\",IF(LEFT(VLOOKUP($G353,$H$11:$DN$1000,111,FALSE),3)=\"The\",EI353,VLOOKUP(VLOOKUP($G353,$H$11:$DN$1000,111,FALSE),DeclMatrix!$A$2:$F$5,VLOOKUP('Enrollment Form'!$B353,DeclMatrix!$A$8:$B$12,2,FALSE),FALSE))))","v":""},"",null,"","","","","","","","","","","",""]
["",{"$nulls":5},"","",{"$nulls":18},"","","","",{"$nulls":30},"","","","",{"$nulls":60},"",{"$f":"IF($A354=\"\",\"\",IF(VLOOKUP($G354,$H$11:$DN$1000,96,FALSE)=\"\",\"No\",IF(LEFT(VLOOKUP($G354,$H$11:$DN$1000,96,FALSE),3)=\"The\",EF354,VLOOKUP(VLOOKUP($G354,$H$11:$DN$1000,96,FALSE),DeclMatrix!$A$2:$F$5,VLOOKUP('Enrollment Form'!$B354,DeclMatrix!$A$8:$B$12,2,FALSE),FALSE))))","v":""},{"$f":"IF($A354=\"\",\"\",IF(VLOOKUP($G354,$H$11:$DN$1000,101,FALSE)=\"\",\"No\",IF(LEFT(VLOOKUP($G354,$H$11:$DN$1000,101,FALSE),3)=\"The\",EG354,VLOOKUP(VLOOKUP($G354,$H$11:$DN$1000,101,FALSE),DeclMatrix!$A$2:$F$5,VLOOKUP('Enrollment Form'!$B354,DeclMatrix!$A$8:$B$12,2,FALSE),FALSE))))","v":""},{"$f":"IF($A354=\"\",\"\",IF(VLOOKUP($G354,$H$11:$DN$1000,106,FALSE)=\"\",\"No\",IF(LEFT(VLOOKUP($G354,$H$11:$DN$1000,106,FALSE),3)=\"The\",EH354,VLOOKUP(VLOOKUP($G354,$H$11:$DN$1000,106,FALSE),DeclMatrix!$A$2:$F$5,VLOOKUP('Enrollment Form'!$B354,DeclMatrix!$A$8:$B$12,2,FALSE),FALSE))))","v":""},{"$f":"IF($A354=\"\",\"\",IF(VLOOKUP($G354,$H$11:$DN$1000,111,FALSE)=\"\",\"No\",IF(LEFT(VLOOKUP($G354,$H$11:$DN$1000,111,FALSE),3)=\"The\",EI354,VLOOKUP(VLOOKUP($G354,$H$11:$DN$1000,111,FALSE),DeclMatrix!$A$2:$F$5,VLOOKUP('Enrollment Form'!$B354,DeclMatrix!$A$8:$B$12,2,FALSE),FALSE))))","v":""},"",null,"","","","","","","","","","","",""]
["",{"$nulls":5},"","",{"$nulls":18},"","","","",{"$nulls":30},"","","","",{"$nulls":60},"",{"$f":"IF($A355=\"\",\"\",IF(VLOOKUP($G355,$H$11:$DN$1000,96,FALSE)=\"\",\"No\",IF(LEFT(VLOOKUP($G355,$H$11:$DN$1000,96,FALSE),3)=\"The\",EF355,VLOOKUP(VLOOKUP($G355,$H$11:$DN$1000,96,FALSE),DeclMatrix!$A$2:$F$5,VLOOKUP('Enrollment Form'!$B355,DeclMatrix!$A$8:$B$12,2,FALSE),FALSE))))","v":""},{"$f":"IF($A355=\"\",\"\",IF(VLOOKUP($G355,$H$11:$DN$1000,101,FALSE)=\"\",\"No\",IF(LEFT(VLOOKUP($G355,$H$11:$DN$1000,101,FALSE),3)=\"The\",EG355,VLOOKUP(VLOOKUP($G355,$H$11:$DN$1000,101,FALSE),DeclMatrix!$A$2:$F$5,VLOOKUP('Enrollment Form'!$B355,DeclMatrix!$A$8:$B$12,2,FALSE),FALSE))))","v":""},{"$f":"IF($A355=\"\",\"\",IF(VLOOKUP($G355,$H$11:$DN$1000,106,FALSE)=\"\",\"No\",IF(LEFT(VLOOKUP($G355,$H$11:$DN$1000,106,FALSE),3)=\"The\",EH355,VLOOKUP(VLOOKUP($G355,$H$11:$DN$1000,106,FALSE),DeclMatrix!$A$2:$F$5,VLOOKUP('Enrollment Form'!$B355,DeclMatrix!$A$8:$B$12,2,FALSE),FALSE))))","v":""},{"$f":"IF($A355=\"\",\"\",IF(VLOOKUP($G355,$H$11:$DN$1000,111,FALSE)=\"\",\"No\",IF(LEFT(VLOOKUP($G355,$H$11:$DN$1000,111,FALSE),3)=\"The\",EI355,VLOOKUP(VLOOKUP($G355,$H$11:$DN$1000,111,FALSE),DeclMatrix!$A$2:$F$5,VLOOKUP('Enrollment Form'!$B355,DeclMatrix!$A$8:$B$12,2,FALSE),FALSE))))","v":""},"",null,"","","","","","","","","","","",""]
["",{"$nulls":5},"","",{"$nulls":18},"","","","",{"$nulls":30},"","","","",{"$nulls":60},"",{"$f":"IF($A356=\"\",\"\",IF(VLOOKUP($G356,$H$11:$DN$1000,96,FALSE)=\"\",\"No\",IF(LEFT(VLOOKUP($G356,$H$11:$DN$1000,96,FALSE),3)=\"The\",EF356,VLOOKUP(VLOOKUP($G356,$H$11:$DN$1000,96,FALSE),DeclMatrix!$A$2:$F$5,VLOOKUP('Enrollment Form'!$B356,DeclMatrix!$A$8:$B$12,2,FALSE),FALSE))))","v":""},{"$f":"IF($A356=\"\",\"\",IF(VLOOKUP($G356,$H$11:$DN$1000,101,FALSE)=\"\",\"No\",IF(LEFT(VLOOKUP($G356,$H$11:$DN$1000,101,FALSE),3)=\"The\",EG356,VLOOKUP(VLOOKUP($G356,$H$11:$DN$1000,101,FALSE),DeclMatrix!$A$2:$F$5,VLOOKUP('Enrollment Form'!$B356,DeclMatrix!$A$8:$B$12,2,FALSE),FALSE))))","v":""},{"$f":"IF($A356=\"\",\"\",IF(VLOOKUP($G356,$H$11:$DN$1000,106,FALSE)=\"\",\"No\",IF(LEFT(VLOOKUP($G356,$H$11:$DN$1000,106,FALSE),3)=\"The\",EH356,VLOOKUP(VLOOKUP($G356,$H$11:$DN$1000,106,FALSE),DeclMatrix!$A$2:$F$5,VLOOKUP('Enrollment Form'!$B356,DeclMatrix!$A$8:$B$12,2,FALSE),FALSE))))","v":""},{"$f":"IF($A356=\"\",\"\",IF(VLOOKUP($G356,$H$11:$DN$1000,111,FALSE)=\"\",\"No\",IF(LEFT(VLOOKUP($G356,$H$11:$DN$1000,111,FALSE),3)=\"The\",EI356,VLOOKUP(VLOOKUP($G356,$H$11:$DN$1000,111,FALSE),DeclMatrix!$A$2:$F$5,VLOOKUP('Enrollment Form'!$B356,DeclMatrix!$A$8:$B$12,2,FALSE),FALSE))))","v":""},"",null,"","","","","","","","","","","",""]
["",{"$nulls":5},"","",{"$nulls":18},"","","","",{"$nulls":30},"","","","",{"$nulls":60},"",{"$f":"IF($A357=\"\",\"\",IF(VLOOKUP($G357,$H$11:$DN$1000,96,FALSE)=\"\",\"No\",IF(LEFT(VLOOKUP($G357,$H$11:$DN$1000,96,FALSE),3)=\"The\",EF357,VLOOKUP(VLOOKUP($G357,$H$11:$DN$1000,96,FALSE),DeclMatrix!$A$2:$F$5,VLOOKUP('Enrollment Form'!$B357,DeclMatrix!$A$8:$B$12,2,FALSE),FALSE))))","v":""},{"$f":"IF($A357=\"\",\"\",IF(VLOOKUP($G357,$H$11:$DN$1000,101,FALSE)=\"\",\"No\",IF(LEFT(VLOOKUP($G357,$H$11:$DN$1000,101,FALSE),3)=\"The\",EG357,VLOOKUP(VLOOKUP($G357,$H$11:$DN$1000,101,FALSE),DeclMatrix!$A$2:$F$5,VLOOKUP('Enrollment Form'!$B357,DeclMatrix!$A$8:$B$12,2,FALSE),FALSE))))","v":""},{"$f":"IF($A357=\"\",\"\",IF(VLOOKUP($G357,$H$11:$DN$1000,106,FALSE)=\"\",\"No\",IF(LEFT(VLOOKUP($G357,$H$11:$DN$1000,106,FALSE),3)=\"The\",EH357,VLOOKUP(VLOOKUP($G357,$H$11:$DN$1000,106,FALSE),DeclMatrix!$A$2:$F$5,VLOOKUP('Enrollment Form'!$B357,DeclMatrix!$A$8:$B$12,2,FALSE),FALSE))))","v":""},{"$f":"IF($A357=\"\",\"\",IF(VLOOKUP($G357,$H$11:$DN$1000,111,FALSE)=\"\",\"No\",IF(LEFT(VLOOKUP($G357,$H$11:$DN$1000,111,FALSE),3)=\"The\",EI357,VLOOKUP(VLOOKUP($G357,$H$11:$DN$1000,111,FALSE),DeclMatrix!$A$2:$F$5,VLOOKUP('Enrollment Form'!$B357,DeclMatrix!$A$8:$B$12,2,FALSE),FALSE))))","v":""},"",null,"","","","","","","","","","","",""]
["",{"$nulls":5},"","",{"$nulls":18},"","","","",{"$nulls":30},"","","","",{"$nulls":60},"",{"$f":"IF($A358=\"\",\"\",IF(VLOOKUP($G358,$H$11:$DN$1000,96,FALSE)=\"\",\"No\",IF(LEFT(VLOOKUP($G358,$H$11:$DN$1000,96,FALSE),3)=\"The\",EF358,VLOOKUP(VLOOKUP($G358,$H$11:$DN$1000,96,FALSE),DeclMatrix!$A$2:$F$5,VLOOKUP('Enrollment Form'!$B358,DeclMatrix!$A$8:$B$12,2,FALSE),FALSE))))","v":""},{"$f":"IF($A358=\"\",\"\",IF(VLOOKUP($G358,$H$11:$DN$1000,101,FALSE)=\"\",\"No\",IF(LEFT(VLOOKUP($G358,$H$11:$DN$1000,101,FALSE),3)=\"The\",EG358,VLOOKUP(VLOOKUP($G358,$H$11:$DN$1000,101,FALSE),DeclMatrix!$A$2:$F$5,VLOOKUP('Enrollment Form'!$B358,DeclMatrix!$A$8:$B$12,2,FALSE),FALSE))))","v":""},{"$f":"IF($A358=\"\",\"\",IF(VLOOKUP($G358,$H$11:$DN$1000,106,FALSE)=\"\",\"No\",IF(LEFT(VLOOKUP($G358,$H$11:$DN$1000,106,FALSE),3)=\"The\",EH358,VLOOKUP(VLOOKUP($G358,$H$11:$DN$1000,106,FALSE),DeclMatrix!$A$2:$F$5,VLOOKUP('Enrollment Form'!$B358,DeclMatrix!$A$8:$B$12,2,FALSE),FALSE))))","v":""},{"$f":"IF($A358=\"\",\"\",IF(VLOOKUP($G358,$H$11:$DN$1000,111,FALSE)=\"\",\"No\",IF(LEFT(VLOOKUP($G358,$H$11:$DN$1000,111,FALSE),3)=\"The\",EI358,VLOOKUP(VLOOKUP($G358,$H$11:$DN$1000,111,FALSE),DeclMatrix!$A$2:$F$5,VLOOKUP('Enrollment Form'!$B358,DeclMatrix!$A$8:$B$12,2,FALSE),FALSE))))","v":""},"",null,"","","","","","","","","","","",""]
["",{"$nulls":5},"","",{"$nulls":18},"","","","",{"$nulls":30},"","","","",{"$nulls":60},"",{"$f":"IF($A359=\"\",\"\",IF(VLOOKUP($G359,$H$11:$DN$1000,96,FALSE)=\"\",\"No\",IF(LEFT(VLOOKUP($G359,$H$11:$DN$1000,96,FALSE),3)=\"The\",EF359,VLOOKUP(VLOOKUP($G359,$H$11:$DN$1000,96,FALSE),DeclMatrix!$A$2:$F$5,VLOOKUP('Enrollment Form'!$B359,DeclMatrix!$A$8:$B$12,2,FALSE),FALSE))))","v":""},{"$f":"IF($A359=\"\",\"\",IF(VLOOKUP($G359,$H$11:$DN$1000,101,FALSE)=\"\",\"No\",IF(LEFT(VLOOKUP($G359,$H$11:$DN$1000,101,FALSE),3)=\"The\",EG359,VLOOKUP(VLOOKUP($G359,$H$11:$DN$1000,101,FALSE),DeclMatrix!$A$2:$F$5,VLOOKUP('Enrollment Form'!$B359,DeclMatrix!$A$8:$B$12,2,FALSE),FALSE))))","v":""},{"$f":"IF($A359=\"\",\"\",IF(VLOOKUP($G359,$H$11:$DN$1000,106,FALSE)=\"\",\"No\",IF(LEFT(VLOOKUP($G359,$H$11:$DN$1000,106,FALSE),3)=\"The\",EH359,VLOOKUP(VLOOKUP($G359,$H$11:$DN$1000,106,FALSE),DeclMatrix!$A$2:$F$5,VLOOKUP('Enrollment Form'!$B359,DeclMatrix!$A$8:$B$12,2,FALSE),FALSE))))","v":""},{"$f":"IF($A359=\"\",\"\",IF(VLOOKUP($G359,$H$11:$DN$1000,111,FALSE)=\"\",\"No\",IF(LEFT(VLOOKUP($G359,$H$11:$DN$1000,111,FALSE),3)=\"The\",EI359,VLOOKUP(VLOOKUP($G359,$H$11:$DN$1000,111,FALSE),DeclMatrix!$A$2:$F$5,VLOOKUP('Enrollment Form'!$B359,DeclMatrix!$A$8:$B$12,2,FALSE),FALSE))))","v":""},"",null,"","","","","","","","","","","",""]
["",{"$nulls":5},"","",{"$nulls":18},"","","","",{"$nulls":30},"","","","",{"$nulls":60},"",{"$f":"IF($A360=\"\",\"\",IF(VLOOKUP($G360,$H$11:$DN$1000,96,FALSE)=\"\",\"No\",IF(LEFT(VLOOKUP($G360,$H$11:$DN$1000,96,FALSE),3)=\"The\",EF360,VLOOKUP(VLOOKUP($G360,$H$11:$DN$1000,96,FALSE),DeclMatrix!$A$2:$F$5,VLOOKUP('Enrollment Form'!$B360,DeclMatrix!$A$8:$B$12,2,FALSE),FALSE))))","v":""},{"$f":"IF($A360=\"\",\"\",IF(VLOOKUP($G360,$H$11:$DN$1000,101,FALSE)=\"\",\"No\",IF(LEFT(VLOOKUP($G360,$H$11:$DN$1000,101,FALSE),3)=\"The\",EG360,VLOOKUP(VLOOKUP($G360,$H$11:$DN$1000,101,FALSE),DeclMatrix!$A$2:$F$5,VLOOKUP('Enrollment Form'!$B360,DeclMatrix!$A$8:$B$12,2,FALSE),FALSE))))","v":""},{"$f":"IF($A360=\"\",\"\",IF(VLOOKUP($G360,$H$11:$DN$1000,106,FALSE)=\"\",\"No\",IF(LEFT(VLOOKUP($G360,$H$11:$DN$1000,106,FALSE),3)=\"The\",EH360,VLOOKUP(VLOOKUP($G360,$H$11:$DN$1000,106,FALSE),DeclMatrix!$A$2:$F$5,VLOOKUP('Enrollment Form'!$B360,DeclMatrix!$A$8:$B$12,2,FALSE),FALSE))))","v":""},{"$f":"IF($A360=\"\",\"\",IF(VLOOKUP($G360,$H$11:$DN$1000,111,FALSE)=\"\",\"No\",IF(LEFT(VLOOKUP($G360,$H$11:$DN$1000,111,FALSE),3)=\"The\",EI360,VLOOKUP(VLOOKUP($G360,$H$11:$DN$1000,111,FALSE),DeclMatrix!$A$2:$F$5,VLOOKUP('Enrollment Form'!$B360,DeclMatrix!$A$8:$B$12,2,FALSE),FALSE))))","v":""},"",null,"","","","","","","","","","","",""]
["",{"$nulls":5},"","",{"$nulls":18},"","","","",{"$nulls":30},"","","","",{"$nulls":60},"",{"$f":"IF($A361=\"\",\"\",IF(VLOOKUP($G361,$H$11:$DN$1000,96,FALSE)=\"\",\"No\",IF(LEFT(VLOOKUP($G361,$H$11:$DN$1000,96,FALSE),3)=\"The\",EF361,VLOOKUP(VLOOKUP($G361,$H$11:$DN$1000,96,FALSE),DeclMatrix!$A$2:$F$5,VLOOKUP('Enrollment Form'!$B361,DeclMatrix!$A$8:$B$12,2,FALSE),FALSE))))","v":""},{"$f":"IF($A361=\"\",\"\",IF(VLOOKUP($G361,$H$11:$DN$1000,101,FALSE)=\"\",\"No\",IF(LEFT(VLOOKUP($G361,$H$11:$DN$1000,101,FALSE),3)=\"The\",EG361,VLOOKUP(VLOOKUP($G361,$H$11:$DN$1000,101,FALSE),DeclMatrix!$A$2:$F$5,VLOOKUP('Enrollment Form'!$B361,DeclMatrix!$A$8:$B$12,2,FALSE),FALSE))))","v":""},{"$f":"IF($A361=\"\",\"\",IF(VLOOKUP($G361,$H$11:$DN$1000,106,FALSE)=\"\",\"No\",IF(LEFT(VLOOKUP($G361,$H$11:$DN$1000,106,FALSE),3)=\"The\",EH361,VLOOKUP(VLOOKUP($G361,$H$11:$DN$1000,106,FALSE),DeclMatrix!$A$2:$F$5,VLOOKUP('Enrollment Form'!$B361,DeclMatrix!$A$8:$B$12,2,FALSE),FALSE))))","v":""},{"$f":"IF($A361=\"\",\"\",IF(VLOOKUP($G361,$H$11:$DN$1000,111,FALSE)=\"\",\"No\",IF(LEFT(VLOOKUP($G361,$H$11:$DN$1000,111,FALSE),3)=\"The\",EI361,VLOOKUP(VLOOKUP($G361,$H$11:$DN$1000,111,FALSE),DeclMatrix!$A$2:$F$5,VLOOKUP('Enrollment Form'!$B361,DeclMatrix!$A$8:$B$12,2,FALSE),FALSE))))","v":""},"",null,"","","","","","","","","","","",""]
["",{"$nulls":5},"","",{"$nulls":18},"","","","",{"$nulls":30},"","","","",{"$nulls":60},"",{"$f":"IF($A362=\"\",\"\",IF(VLOOKUP($G362,$H$11:$DN$1000,96,FALSE)=\"\",\"No\",IF(LEFT(VLOOKUP($G362,$H$11:$DN$1000,96,FALSE),3)=\"The\",EF362,VLOOKUP(VLOOKUP($G362,$H$11:$DN$1000,96,FALSE),DeclMatrix!$A$2:$F$5,VLOOKUP('Enrollment Form'!$B362,DeclMatrix!$A$8:$B$12,2,FALSE),FALSE))))","v":""},{"$f":"IF($A362=\"\",\"\",IF(VLOOKUP($G362,$H$11:$DN$1000,101,FALSE)=\"\",\"No\",IF(LEFT(VLOOKUP($G362,$H$11:$DN$1000,101,FALSE),3)=\"The\",EG362,VLOOKUP(VLOOKUP($G362,$H$11:$DN$1000,101,FALSE),DeclMatrix!$A$2:$F$5,VLOOKUP('Enrollment Form'!$B362,DeclMatrix!$A$8:$B$12,2,FALSE),FALSE))))","v":""},{"$f":"IF($A362=\"\",\"\",IF(VLOOKUP($G362,$H$11:$DN$1000,106,FALSE)=\"\",\"No\",IF(LEFT(VLOOKUP($G362,$H$11:$DN$1000,106,FALSE),3)=\"The\",EH362,VLOOKUP(VLOOKUP($G362,$H$11:$DN$1000,106,FALSE),DeclMatrix!$A$2:$F$5,VLOOKUP('Enrollment Form'!$B362,DeclMatrix!$A$8:$B$12,2,FALSE),FALSE))))","v":""},{"$f":"IF($A362=\"\",\"\",IF(VLOOKUP($G362,$H$11:$DN$1000,111,FALSE)=\"\",\"No\",IF(LEFT(VLOOKUP($G362,$H$11:$DN$1000,111,FALSE),3)=\"The\",EI362,VLOOKUP(VLOOKUP($G362,$H$11:$DN$1000,111,FALSE),DeclMatrix!$A$2:$F$5,VLOOKUP('Enrollment Form'!$B362,DeclMatrix!$A$8:$B$12,2,FALSE),FALSE))))","v":""},"",null,"","","","","","","","","","","",""]
["",{"$nulls":5},"","",{"$nulls":18},"","","","",{"$nulls":30},"","","","",{"$nulls":60},"",{"$f":"IF($A363=\"\",\"\",IF(VLOOKUP($G363,$H$11:$DN$1000,96,FALSE)=\"\",\"No\",IF(LEFT(VLOOKUP($G363,$H$11:$DN$1000,96,FALSE),3)=\"The\",EF363,VLOOKUP(VLOOKUP($G363,$H$11:$DN$1000,96,FALSE),DeclMatrix!$A$2:$F$5,VLOOKUP('Enrollment Form'!$B363,DeclMatrix!$A$8:$B$12,2,FALSE),FALSE))))","v":""},{"$f":"IF($A363=\"\",\"\",IF(VLOOKUP($G363,$H$11:$DN$1000,101,FALSE)=\"\",\"No\",IF(LEFT(VLOOKUP($G363,$H$11:$DN$1000,101,FALSE),3)=\"The\",EG363,VLOOKUP(VLOOKUP($G363,$H$11:$DN$1000,101,FALSE),DeclMatrix!$A$2:$F$5,VLOOKUP('Enrollment Form'!$B363,DeclMatrix!$A$8:$B$12,2,FALSE),FALSE))))","v":""},{"$f":"IF($A363=\"\",\"\",IF(VLOOKUP($G363,$H$11:$DN$1000,106,FALSE)=\"\",\"No\",IF(LEFT(VLOOKUP($G363,$H$11:$DN$1000,106,FALSE),3)=\"The\",EH363,VLOOKUP(VLOOKUP($G363,$H$11:$DN$1000,106,FALSE),DeclMatrix!$A$2:$F$5,VLOOKUP('Enrollment Form'!$B363,DeclMatrix!$A$8:$B$12,2,FALSE),FALSE))))","v":""},{"$f":"IF($A363=\"\",\"\",IF(VLOOKUP($G363,$H$11:$DN$1000,111,FALSE)=\"\",\"No\",IF(LEFT(VLOOKUP($G363,$H$11:$DN$1000,111,FALSE),3)=\"The\",EI363,VLOOKUP(VLOOKUP($G363,$H$11:$DN$1000,111,FALSE),DeclMatrix!$A$2:$F$5,VLOOKUP('Enrollment Form'!$B363,DeclMatrix!$A$8:$B$12,2,FALSE),FALSE))))","v":""},"",null,"","","","","","","","","","","",""]
["",{"$nulls":5},"","",{"$nulls":18},"","","","",{"$nulls":30},"","","","",{"$nulls":60},"",{"$f":"IF($A364=\"\",\"\",IF(VLOOKUP($G364,$H$11:$DN$1000,96,FALSE)=\"\",\"No\",IF(LEFT(VLOOKUP($G364,$H$11:$DN$1000,96,FALSE),3)=\"The\",EF364,VLOOKUP(VLOOKUP($G364,$H$11:$DN$1000,96,FALSE),DeclMatrix!$A$2:$F$5,VLOOKUP('Enrollment Form'!$B364,DeclMatrix!$A$8:$B$12,2,FALSE),FALSE))))","v":""},{"$f":"IF($A364=\"\",\"\",IF(VLOOKUP($G364,$H$11:$DN$1000,101,FALSE)=\"\",\"No\",IF(LEFT(VLOOKUP($G364,$H$11:$DN$1000,101,FALSE),3)=\"The\",EG364,VLOOKUP(VLOOKUP($G364,$H$11:$DN$1000,101,FALSE),DeclMatrix!$A$2:$F$5,VLOOKUP('Enrollment Form'!$B364,DeclMatrix!$A$8:$B$12,2,FALSE),FALSE))))","v":""},{"$f":"IF($A364=\"\",\"\",IF(VLOOKUP($G364,$H$11:$DN$1000,106,FALSE)=\"\",\"No\",IF(LEFT(VLOOKUP($G364,$H$11:$DN$1000,106,FALSE),3)=\"The\",EH364,VLOOKUP(VLOOKUP($G364,$H$11:$DN$1000,106,FALSE),DeclMatrix!$A$2:$F$5,VLOOKUP('Enrollment Form'!$B364,DeclMatrix!$A$8:$B$12,2,FALSE),FALSE))))","v":""},{"$f":"IF($A364=\"\",\"\",IF(VLOOKUP($G364,$H$11:$DN$1000,111,FALSE)=\"\",\"No\",IF(LEFT(VLOOKUP($G364,$H$11:$DN$1000,111,FALSE),3)=\"The\",EI364,VLOOKUP(VLOOKUP($G364,$H$11:$DN$1000,111,FALSE),DeclMatrix!$A$2:$F$5,VLOOKUP('Enrollment Form'!$B364,DeclMatrix!$A$8:$B$12,2,FALSE),FALSE))))","v":""},"",null,"","","","","","","","","","","",""]
["",{"$nulls":5},"","",{"$nulls":18},"","","","",{"$nulls":30},"","","","",{"$nulls":60},"",{"$f":"IF($A365=\"\",\"\",IF(VLOOKUP($G365,$H$11:$DN$1000,96,FALSE)=\"\",\"No\",IF(LEFT(VLOOKUP($G365,$H$11:$DN$1000,96,FALSE),3)=\"The\",EF365,VLOOKUP(VLOOKUP($G365,$H$11:$DN$1000,96,FALSE),DeclMatrix!$A$2:$F$5,VLOOKUP('Enrollment Form'!$B365,DeclMatrix!$A$8:$B$12,2,FALSE),FALSE))))","v":""},{"$f":"IF($A365=\"\",\"\",IF(VLOOKUP($G365,$H$11:$DN$1000,101,FALSE)=\"\",\"No\",IF(LEFT(VLOOKUP($G365,$H$11:$DN$1000,101,FALSE),3)=\"The\",EG365,VLOOKUP(VLOOKUP($G365,$H$11:$DN$1000,101,FALSE),DeclMatrix!$A$2:$F$5,VLOOKUP('Enrollment Form'!$B365,DeclMatrix!$A$8:$B$12,2,FALSE),FALSE))))","v":""},{"$f":"IF($A365=\"\",\"\",IF(VLOOKUP($G365,$H$11:$DN$1000,106,FALSE)=\"\",\"No\",IF(LEFT(VLOOKUP($G365,$H$11:$DN$1000,106,FALSE),3)=\"The\",EH365,VLOOKUP(VLOOKUP($G365,$H$11:$DN$1000,106,FALSE),DeclMatrix!$A$2:$F$5,VLOOKUP('Enrollment Form'!$B365,DeclMatrix!$A$8:$B$12,2,FALSE),FALSE))))","v":""},{"$f":"IF($A365=\"\",\"\",IF(VLOOKUP($G365,$H$11:$DN$1000,111,FALSE)=\"\",\"No\",IF(LEFT(VLOOKUP($G365,$H$11:$DN$1000,111,FALSE),3)=\"The\",EI365,VLOOKUP(VLOOKUP($G365,$H$11:$DN$1000,111,FALSE),DeclMatrix!$A$2:$F$5,VLOOKUP('Enrollment Form'!$B365,DeclMatrix!$A$8:$B$12,2,FALSE),FALSE))))","v":""},"",null,"","","","","","","","","","","",""]
["",{"$nulls":5},"","",{"$nulls":18},"","","","",{"$nulls":30},"","","","",{"$nulls":60},"",{"$f":"IF($A366=\"\",\"\",IF(VLOOKUP($G366,$H$11:$DN$1000,96,FALSE)=\"\",\"No\",IF(LEFT(VLOOKUP($G366,$H$11:$DN$1000,96,FALSE),3)=\"The\",EF366,VLOOKUP(VLOOKUP($G366,$H$11:$DN$1000,96,FALSE),DeclMatrix!$A$2:$F$5,VLOOKUP('Enrollment Form'!$B366,DeclMatrix!$A$8:$B$12,2,FALSE),FALSE))))","v":""},{"$f":"IF($A366=\"\",\"\",IF(VLOOKUP($G366,$H$11:$DN$1000,101,FALSE)=\"\",\"No\",IF(LEFT(VLOOKUP($G366,$H$11:$DN$1000,101,FALSE),3)=\"The\",EG366,VLOOKUP(VLOOKUP($G366,$H$11:$DN$1000,101,FALSE),DeclMatrix!$A$2:$F$5,VLOOKUP('Enrollment Form'!$B366,DeclMatrix!$A$8:$B$12,2,FALSE),FALSE))))","v":""},{"$f":"IF($A366=\"\",\"\",IF(VLOOKUP($G366,$H$11:$DN$1000,106,FALSE)=\"\",\"No\",IF(LEFT(VLOOKUP($G366,$H$11:$DN$1000,106,FALSE),3)=\"The\",EH366,VLOOKUP(VLOOKUP($G366,$H$11:$DN$1000,106,FALSE),DeclMatrix!$A$2:$F$5,VLOOKUP('Enrollment Form'!$B366,DeclMatrix!$A$8:$B$12,2,FALSE),FALSE))))","v":""},{"$f":"IF($A366=\"\",\"\",IF(VLOOKUP($G366,$H$11:$DN$1000,111,FALSE)=\"\",\"No\",IF(LEFT(VLOOKUP($G366,$H$11:$DN$1000,111,FALSE),3)=\"The\",EI366,VLOOKUP(VLOOKUP($G366,$H$11:$DN$1000,111,FALSE),DeclMatrix!$A$2:$F$5,VLOOKUP('Enrollment Form'!$B366,DeclMatrix!$A$8:$B$12,2,FALSE),FALSE))))","v":""},"",null,"","","","","","","","","","","",""]
["",{"$nulls":5},"","",{"$nulls":18},"","","","",{"$nulls":30},"","","","",{"$nulls":60},"",{"$f":"IF($A367=\"\",\"\",IF(VLOOKUP($G367,$H$11:$DN$1000,96,FALSE)=\"\",\"No\",IF(LEFT(VLOOKUP($G367,$H$11:$DN$1000,96,FALSE),3)=\"The\",EF367,VLOOKUP(VLOOKUP($G367,$H$11:$DN$1000,96,FALSE),DeclMatrix!$A$2:$F$5,VLOOKUP('Enrollment Form'!$B367,DeclMatrix!$A$8:$B$12,2,FALSE),FALSE))))","v":""},{"$f":"IF($A367=\"\",\"\",IF(VLOOKUP($G367,$H$11:$DN$1000,101,FALSE)=\"\",\"No\",IF(LEFT(VLOOKUP($G367,$H$11:$DN$1000,101,FALSE),3)=\"The\",EG367,VLOOKUP(VLOOKUP($G367,$H$11:$DN$1000,101,FALSE),DeclMatrix!$A$2:$F$5,VLOOKUP('Enrollment Form'!$B367,DeclMatrix!$A$8:$B$12,2,FALSE),FALSE))))","v":""},{"$f":"IF($A367=\"\",\"\",IF(VLOOKUP($G367,$H$11:$DN$1000,106,FALSE)=\"\",\"No\",IF(LEFT(VLOOKUP($G367,$H$11:$DN$1000,106,FALSE),3)=\"The\",EH367,VLOOKUP(VLOOKUP($G367,$H$11:$DN$1000,106,FALSE),DeclMatrix!$A$2:$F$5,VLOOKUP('Enrollment Form'!$B367,DeclMatrix!$A$8:$B$12,2,FALSE),FALSE))))","v":""},{"$f":"IF($A367=\"\",\"\",IF(VLOOKUP($G367,$H$11:$DN$1000,111,FALSE)=\"\",\"No\",IF(LEFT(VLOOKUP($G367,$H$11:$DN$1000,111,FALSE),3)=\"The\",EI367,VLOOKUP(VLOOKUP($G367,$H$11:$DN$1000,111,FALSE),DeclMatrix!$A$2:$F$5,VLOOKUP('Enrollment Form'!$B367,DeclMatrix!$A$8:$B$12,2,FALSE),FALSE))))","v":""},"",null,"","","","","","","","","","","",""]
["",{"$nulls":5},"","",{"$nulls":18},"","","","",{"$nulls":30},"","","","",{"$nulls":60},"",{"$f":"IF($A368=\"\",\"\",IF(VLOOKUP($G368,$H$11:$DN$1000,96,FALSE)=\"\",\"No\",IF(LEFT(VLOOKUP($G368,$H$11:$DN$1000,96,FALSE),3)=\"The\",EF368,VLOOKUP(VLOOKUP($G368,$H$11:$DN$1000,96,FALSE),DeclMatrix!$A$2:$F$5,VLOOKUP('Enrollment Form'!$B368,DeclMatrix!$A$8:$B$12,2,FALSE),FALSE))))","v":""},{"$f":"IF($A368=\"\",\"\",IF(VLOOKUP($G368,$H$11:$DN$1000,101,FALSE)=\"\",\"No\",IF(LEFT(VLOOKUP($G368,$H$11:$DN$1000,101,FALSE),3)=\"The\",EG368,VLOOKUP(VLOOKUP($G368,$H$11:$DN$1000,101,FALSE),DeclMatrix!$A$2:$F$5,VLOOKUP('Enrollment Form'!$B368,DeclMatrix!$A$8:$B$12,2,FALSE),FALSE))))","v":""},{"$f":"IF($A368=\"\",\"\",IF(VLOOKUP($G368,$H$11:$DN$1000,106,FALSE)=\"\",\"No\",IF(LEFT(VLOOKUP($G368,$H$11:$DN$1000,106,FALSE),3)=\"The\",EH368,VLOOKUP(VLOOKUP($G368,$H$11:$DN$1000,106,FALSE),DeclMatrix!$A$2:$F$5,VLOOKUP('Enrollment Form'!$B368,DeclMatrix!$A$8:$B$12,2,FALSE),FALSE))))","v":""},{"$f":"IF($A368=\"\",\"\",IF(VLOOKUP($G368,$H$11:$DN$1000,111,FALSE)=\"\",\"No\",IF(LEFT(VLOOKUP($G368,$H$11:$DN$1000,111,FALSE),3)=\"The\",EI368,VLOOKUP(VLOOKUP($G368,$H$11:$DN$1000,111,FALSE),DeclMatrix!$A$2:$F$5,VLOOKUP('Enrollment Form'!$B368,DeclMatrix!$A$8:$B$12,2,FALSE),FALSE))))","v":""},"",null,"","","","","","","","","","","",""]
["",{"$nulls":5},"","",{"$nulls":18},"","","","",{"$nulls":30},"","","","",{"$nulls":60},"",{"$f":"IF($A369=\"\",\"\",IF(VLOOKUP($G369,$H$11:$DN$1000,96,FALSE)=\"\",\"No\",IF(LEFT(VLOOKUP($G369,$H$11:$DN$1000,96,FALSE),3)=\"The\",EF369,VLOOKUP(VLOOKUP($G369,$H$11:$DN$1000,96,FALSE),DeclMatrix!$A$2:$F$5,VLOOKUP('Enrollment Form'!$B369,DeclMatrix!$A$8:$B$12,2,FALSE),FALSE))))","v":""},{"$f":"IF($A369=\"\",\"\",IF(VLOOKUP($G369,$H$11:$DN$1000,101,FALSE)=\"\",\"No\",IF(LEFT(VLOOKUP($G369,$H$11:$DN$1000,101,FALSE),3)=\"The\",EG369,VLOOKUP(VLOOKUP($G369,$H$11:$DN$1000,101,FALSE),DeclMatrix!$A$2:$F$5,VLOOKUP('Enrollment Form'!$B369,DeclMatrix!$A$8:$B$12,2,FALSE),FALSE))))","v":""},{"$f":"IF($A369=\"\",\"\",IF(VLOOKUP($G369,$H$11:$DN$1000,106,FALSE)=\"\",\"No\",IF(LEFT(VLOOKUP($G369,$H$11:$DN$1000,106,FALSE),3)=\"The\",EH369,VLOOKUP(VLOOKUP($G369,$H$11:$DN$1000,106,FALSE),DeclMatrix!$A$2:$F$5,VLOOKUP('Enrollment Form'!$B369,DeclMatrix!$A$8:$B$12,2,FALSE),FALSE))))","v":""},{"$f":"IF($A369=\"\",\"\",IF(VLOOKUP($G369,$H$11:$DN$1000,111,FALSE)=\"\",\"No\",IF(LEFT(VLOOKUP($G369,$H$11:$DN$1000,111,FALSE),3)=\"The\",EI369,VLOOKUP(VLOOKUP($G369,$H$11:$DN$1000,111,FALSE),DeclMatrix!$A$2:$F$5,VLOOKUP('Enrollment Form'!$B369,DeclMatrix!$A$8:$B$12,2,FALSE),FALSE))))","v":""},"",null,"","","","","","","","","","","",""]
["",{"$nulls":5},"","",{"$nulls":18},"","","","",{"$nulls":30},"","","","",{"$nulls":60},"",{"$f":"IF($A370=\"\",\"\",IF(VLOOKUP($G370,$H$11:$DN$1000,96,FALSE)=\"\",\"No\",IF(LEFT(VLOOKUP($G370,$H$11:$DN$1000,96,FALSE),3)=\"The\",EF370,VLOOKUP(VLOOKUP($G370,$H$11:$DN$1000,96,FALSE),DeclMatrix!$A$2:$F$5,VLOOKUP('Enrollment Form'!$B370,DeclMatrix!$A$8:$B$12,2,FALSE),FALSE))))","v":""},{"$f":"IF($A370=\"\",\"\",IF(VLOOKUP($G370,$H$11:$DN$1000,101,FALSE)=\"\",\"No\",IF(LEFT(VLOOKUP($G370,$H$11:$DN$1000,101,FALSE),3)=\"The\",EG370,VLOOKUP(VLOOKUP($G370,$H$11:$DN$1000,101,FALSE),DeclMatrix!$A$2:$F$5,VLOOKUP('Enrollment Form'!$B370,DeclMatrix!$A$8:$B$12,2,FALSE),FALSE))))","v":""},{"$f":"IF($A370=\"\",\"\",IF(VLOOKUP($G370,$H$11:$DN$1000,106,FALSE)=\"\",\"No\",IF(LEFT(VLOOKUP($G370,$H$11:$DN$1000,106,FALSE),3)=\"The\",EH370,VLOOKUP(VLOOKUP($G370,$H$11:$DN$1000,106,FALSE),DeclMatrix!$A$2:$F$5,VLOOKUP('Enrollment Form'!$B370,DeclMatrix!$A$8:$B$12,2,FALSE),FALSE))))","v":""},{"$f":"IF($A370=\"\",\"\",IF(VLOOKUP($G370,$H$11:$DN$1000,111,FALSE)=\"\",\"No\",IF(LEFT(VLOOKUP($G370,$H$11:$DN$1000,111,FALSE),3)=\"The\",EI370,VLOOKUP(VLOOKUP($G370,$H$11:$DN$1000,111,FALSE),DeclMatrix!$A$2:$F$5,VLOOKUP('Enrollment Form'!$B370,DeclMatrix!$A$8:$B$12,2,FALSE),FALSE))))","v":""},"",null,"","","","","","","","","","","",""]
["",{"$nulls":5},"","",{"$nulls":18},"","","","",{"$nulls":30},"","","","",{"$nulls":60},"",{"$f":"IF($A371=\"\",\"\",IF(VLOOKUP($G371,$H$11:$DN$1000,96,FALSE)=\"\",\"No\",IF(LEFT(VLOOKUP($G371,$H$11:$DN$1000,96,FALSE),3)=\"The\",EF371,VLOOKUP(VLOOKUP($G371,$H$11:$DN$1000,96,FALSE),DeclMatrix!$A$2:$F$5,VLOOKUP('Enrollment Form'!$B371,DeclMatrix!$A$8:$B$12,2,FALSE),FALSE))))","v":""},{"$f":"IF($A371=\"\",\"\",IF(VLOOKUP($G371,$H$11:$DN$1000,101,FALSE)=\"\",\"No\",IF(LEFT(VLOOKUP($G371,$H$11:$DN$1000,101,FALSE),3)=\"The\",EG371,VLOOKUP(VLOOKUP($G371,$H$11:$DN$1000,101,FALSE),DeclMatrix!$A$2:$F$5,VLOOKUP('Enrollment Form'!$B371,DeclMatrix!$A$8:$B$12,2,FALSE),FALSE))))","v":""},{"$f":"IF($A371=\"\",\"\",IF(VLOOKUP($G371,$H$11:$DN$1000,106,FALSE)=\"\",\"No\",IF(LEFT(VLOOKUP($G371,$H$11:$DN$1000,106,FALSE),3)=\"The\",EH371,VLOOKUP(VLOOKUP($G371,$H$11:$DN$1000,106,FALSE),DeclMatrix!$A$2:$F$5,VLOOKUP('Enrollment Form'!$B371,DeclMatrix!$A$8:$B$12,2,FALSE),FALSE))))","v":""},{"$f":"IF($A371=\"\",\"\",IF(VLOOKUP($G371,$H$11:$DN$1000,111,FALSE)=\"\",\"No\",IF(LEFT(VLOOKUP($G371,$H$11:$DN$1000,111,FALSE),3)=\"The\",EI371,VLOOKUP(VLOOKUP($G371,$H$11:$DN$1000,111,FALSE),DeclMatrix!$A$2:$F$5,VLOOKUP('Enrollment Form'!$B371,DeclMatrix!$A$8:$B$12,2,FALSE),FALSE))))","v":""},"",null,"","","","","","","","","","","",""]
["",{"$nulls":5},"","",{"$nulls":18},"","","","",{"$nulls":30},"","","","",{"$nulls":60},"",{"$f":"IF($A372=\"\",\"\",IF(VLOOKUP($G372,$H$11:$DN$1000,96,FALSE)=\"\",\"No\",IF(LEFT(VLOOKUP($G372,$H$11:$DN$1000,96,FALSE),3)=\"The\",EF372,VLOOKUP(VLOOKUP($G372,$H$11:$DN$1000,96,FALSE),DeclMatrix!$A$2:$F$5,VLOOKUP('Enrollment Form'!$B372,DeclMatrix!$A$8:$B$12,2,FALSE),FALSE))))","v":""},{"$f":"IF($A372=\"\",\"\",IF(VLOOKUP($G372,$H$11:$DN$1000,101,FALSE)=\"\",\"No\",IF(LEFT(VLOOKUP($G372,$H$11:$DN$1000,101,FALSE),3)=\"The\",EG372,VLOOKUP(VLOOKUP($G372,$H$11:$DN$1000,101,FALSE),DeclMatrix!$A$2:$F$5,VLOOKUP('Enrollment Form'!$B372,DeclMatrix!$A$8:$B$12,2,FALSE),FALSE))))","v":""},{"$f":"IF($A372=\"\",\"\",IF(VLOOKUP($G372,$H$11:$DN$1000,106,FALSE)=\"\",\"No\",IF(LEFT(VLOOKUP($G372,$H$11:$DN$1000,106,FALSE),3)=\"The\",EH372,VLOOKUP(VLOOKUP($G372,$H$11:$DN$1000,106,FALSE),DeclMatrix!$A$2:$F$5,VLOOKUP('Enrollment Form'!$B372,DeclMatrix!$A$8:$B$12,2,FALSE),FALSE))))","v":""},{"$f":"IF($A372=\"\",\"\",IF(VLOOKUP($G372,$H$11:$DN$1000,111,FALSE)=\"\",\"No\",IF(LEFT(VLOOKUP($G372,$H$11:$DN$1000,111,FALSE),3)=\"The\",EI372,VLOOKUP(VLOOKUP($G372,$H$11:$DN$1000,111,FALSE),DeclMatrix!$A$2:$F$5,VLOOKUP('Enrollment Form'!$B372,DeclMatrix!$A$8:$B$12,2,FALSE),FALSE))))","v":""},"",null,"","","","","","","","","","","",""]
["",{"$nulls":5},"","",{"$nulls":18},"","","","",{"$nulls":30},"","","","",{"$nulls":60},"",{"$f":"IF($A373=\"\",\"\",IF(VLOOKUP($G373,$H$11:$DN$1000,96,FALSE)=\"\",\"No\",IF(LEFT(VLOOKUP($G373,$H$11:$DN$1000,96,FALSE),3)=\"The\",EF373,VLOOKUP(VLOOKUP($G373,$H$11:$DN$1000,96,FALSE),DeclMatrix!$A$2:$F$5,VLOOKUP('Enrollment Form'!$B373,DeclMatrix!$A$8:$B$12,2,FALSE),FALSE))))","v":""},{"$f":"IF($A373=\"\",\"\",IF(VLOOKUP($G373,$H$11:$DN$1000,101,FALSE)=\"\",\"No\",IF(LEFT(VLOOKUP($G373,$H$11:$DN$1000,101,FALSE),3)=\"The\",EG373,VLOOKUP(VLOOKUP($G373,$H$11:$DN$1000,101,FALSE),DeclMatrix!$A$2:$F$5,VLOOKUP('Enrollment Form'!$B373,DeclMatrix!$A$8:$B$12,2,FALSE),FALSE))))","v":""},{"$f":"IF($A373=\"\",\"\",IF(VLOOKUP($G373,$H$11:$DN$1000,106,FALSE)=\"\",\"No\",IF(LEFT(VLOOKUP($G373,$H$11:$DN$1000,106,FALSE),3)=\"The\",EH373,VLOOKUP(VLOOKUP($G373,$H$11:$DN$1000,106,FALSE),DeclMatrix!$A$2:$F$5,VLOOKUP('Enrollment Form'!$B373,DeclMatrix!$A$8:$B$12,2,FALSE),FALSE))))","v":""},{"$f":"IF($A373=\"\",\"\",IF(VLOOKUP($G373,$H$11:$DN$1000,111,FALSE)=\"\",\"No\",IF(LEFT(VLOOKUP($G373,$H$11:$DN$1000,111,FALSE),3)=\"The\",EI373,VLOOKUP(VLOOKUP($G373,$H$11:$DN$1000,111,FALSE),DeclMatrix!$A$2:$F$5,VLOOKUP('Enrollment Form'!$B373,DeclMatrix!$A$8:$B$12,2,FALSE),FALSE))))","v":""},"",null,"","","","","","","","","","","",""]
["",{"$nulls":5},"","",{"$nulls":18},"","","","",{"$nulls":30},"","","","",{"$nulls":60},"",{"$f":"IF($A374=\"\",\"\",IF(VLOOKUP($G374,$H$11:$DN$1000,96,FALSE)=\"\",\"No\",IF(LEFT(VLOOKUP($G374,$H$11:$DN$1000,96,FALSE),3)=\"The\",EF374,VLOOKUP(VLOOKUP($G374,$H$11:$DN$1000,96,FALSE),DeclMatrix!$A$2:$F$5,VLOOKUP('Enrollment Form'!$B374,DeclMatrix!$A$8:$B$12,2,FALSE),FALSE))))","v":""},{"$f":"IF($A374=\"\",\"\",IF(VLOOKUP($G374,$H$11:$DN$1000,101,FALSE)=\"\",\"No\",IF(LEFT(VLOOKUP($G374,$H$11:$DN$1000,101,FALSE),3)=\"The\",EG374,VLOOKUP(VLOOKUP($G374,$H$11:$DN$1000,101,FALSE),DeclMatrix!$A$2:$F$5,VLOOKUP('Enrollment Form'!$B374,DeclMatrix!$A$8:$B$12,2,FALSE),FALSE))))","v":""},{"$f":"IF($A374=\"\",\"\",IF(VLOOKUP($G374,$H$11:$DN$1000,106,FALSE)=\"\",\"No\",IF(LEFT(VLOOKUP($G374,$H$11:$DN$1000,106,FALSE),3)=\"The\",EH374,VLOOKUP(VLOOKUP($G374,$H$11:$DN$1000,106,FALSE),DeclMatrix!$A$2:$F$5,VLOOKUP('Enrollment Form'!$B374,DeclMatrix!$A$8:$B$12,2,FALSE),FALSE))))","v":""},{"$f":"IF($A374=\"\",\"\",IF(VLOOKUP($G374,$H$11:$DN$1000,111,FALSE)=\"\",\"No\",IF(LEFT(VLOOKUP($G374,$H$11:$DN$1000,111,FALSE),3)=\"The\",EI374,VLOOKUP(VLOOKUP($G374,$H$11:$DN$1000,111,FALSE),DeclMatrix!$A$2:$F$5,VLOOKUP('Enrollment Form'!$B374,DeclMatrix!$A$8:$B$12,2,FALSE),FALSE))))","v":""},"",null,"","","","","","","","","","","",""]
["",{"$nulls":5},"","",{"$nulls":18},"","","","",{"$nulls":30},"","","","",{"$nulls":60},"",{"$f":"IF($A375=\"\",\"\",IF(VLOOKUP($G375,$H$11:$DN$1000,96,FALSE)=\"\",\"No\",IF(LEFT(VLOOKUP($G375,$H$11:$DN$1000,96,FALSE),3)=\"The\",EF375,VLOOKUP(VLOOKUP($G375,$H$11:$DN$1000,96,FALSE),DeclMatrix!$A$2:$F$5,VLOOKUP('Enrollment Form'!$B375,DeclMatrix!$A$8:$B$12,2,FALSE),FALSE))))","v":""},{"$f":"IF($A375=\"\",\"\",IF(VLOOKUP($G375,$H$11:$DN$1000,101,FALSE)=\"\",\"No\",IF(LEFT(VLOOKUP($G375,$H$11:$DN$1000,101,FALSE),3)=\"The\",EG375,VLOOKUP(VLOOKUP($G375,$H$11:$DN$1000,101,FALSE),DeclMatrix!$A$2:$F$5,VLOOKUP('Enrollment Form'!$B375,DeclMatrix!$A$8:$B$12,2,FALSE),FALSE))))","v":""},{"$f":"IF($A375=\"\",\"\",IF(VLOOKUP($G375,$H$11:$DN$1000,106,FALSE)=\"\",\"No\",IF(LEFT(VLOOKUP($G375,$H$11:$DN$1000,106,FALSE),3)=\"The\",EH375,VLOOKUP(VLOOKUP($G375,$H$11:$DN$1000,106,FALSE),DeclMatrix!$A$2:$F$5,VLOOKUP('Enrollment Form'!$B375,DeclMatrix!$A$8:$B$12,2,FALSE),FALSE))))","v":""},{"$f":"IF($A375=\"\",\"\",IF(VLOOKUP($G375,$H$11:$DN$1000,111,FALSE)=\"\",\"No\",IF(LEFT(VLOOKUP($G375,$H$11:$DN$1000,111,FALSE),3)=\"The\",EI375,VLOOKUP(VLOOKUP($G375,$H$11:$DN$1000,111,FALSE),DeclMatrix!$A$2:$F$5,VLOOKUP('Enrollment Form'!$B375,DeclMatrix!$A$8:$B$12,2,FALSE),FALSE))))","v":""},"",null,"","","","","","","","","","","",""]
["",{"$nulls":5},"","",{"$nulls":18},"","","","",{"$nulls":30},"","","","",{"$nulls":60},"",{"$f":"IF($A376=\"\",\"\",IF(VLOOKUP($G376,$H$11:$DN$1000,96,FALSE)=\"\",\"No\",IF(LEFT(VLOOKUP($G376,$H$11:$DN$1000,96,FALSE),3)=\"The\",EF376,VLOOKUP(VLOOKUP($G376,$H$11:$DN$1000,96,FALSE),DeclMatrix!$A$2:$F$5,VLOOKUP('Enrollment Form'!$B376,DeclMatrix!$A$8:$B$12,2,FALSE),FALSE))))","v":""},{"$f":"IF($A376=\"\",\"\",IF(VLOOKUP($G376,$H$11:$DN$1000,101,FALSE)=\"\",\"No\",IF(LEFT(VLOOKUP($G376,$H$11:$DN$1000,101,FALSE),3)=\"The\",EG376,VLOOKUP(VLOOKUP($G376,$H$11:$DN$1000,101,FALSE),DeclMatrix!$A$2:$F$5,VLOOKUP('Enrollment Form'!$B376,DeclMatrix!$A$8:$B$12,2,FALSE),FALSE))))","v":""},{"$f":"IF($A376=\"\",\"\",IF(VLOOKUP($G376,$H$11:$DN$1000,106,FALSE)=\"\",\"No\",IF(LEFT(VLOOKUP($G376,$H$11:$DN$1000,106,FALSE),3)=\"The\",EH376,VLOOKUP(VLOOKUP($G376,$H$11:$DN$1000,106,FALSE),DeclMatrix!$A$2:$F$5,VLOOKUP('Enrollment Form'!$B376,DeclMatrix!$A$8:$B$12,2,FALSE),FALSE))))","v":""},{"$f":"IF($A376=\"\",\"\",IF(VLOOKUP($G376,$H$11:$DN$1000,111,FALSE)=\"\",\"No\",IF(LEFT(VLOOKUP($G376,$H$11:$DN$1000,111,FALSE),3)=\"The\",EI376,VLOOKUP(VLOOKUP($G376,$H$11:$DN$1000,111,FALSE),DeclMatrix!$A$2:$F$5,VLOOKUP('Enrollment Form'!$B376,DeclMatrix!$A$8:$B$12,2,FALSE),FALSE))))","v":""},"",null,"","","","","","","","","","","",""]
["",{"$nulls":5},"","",{"$nulls":18},"","","","",{"$nulls":30},"","","","",{"$nulls":60},"",{"$f":"IF($A377=\"\",\"\",IF(VLOOKUP($G377,$H$11:$DN$1000,96,FALSE)=\"\",\"No\",IF(LEFT(VLOOKUP($G377,$H$11:$DN$1000,96,FALSE),3)=\"The\",EF377,VLOOKUP(VLOOKUP($G377,$H$11:$DN$1000,96,FALSE),DeclMatrix!$A$2:$F$5,VLOOKUP('Enrollment Form'!$B377,DeclMatrix!$A$8:$B$12,2,FALSE),FALSE))))","v":""},{"$f":"IF($A377=\"\",\"\",IF(VLOOKUP($G377,$H$11:$DN$1000,101,FALSE)=\"\",\"No\",IF(LEFT(VLOOKUP($G377,$H$11:$DN$1000,101,FALSE),3)=\"The\",EG377,VLOOKUP(VLOOKUP($G377,$H$11:$DN$1000,101,FALSE),DeclMatrix!$A$2:$F$5,VLOOKUP('Enrollment Form'!$B377,DeclMatrix!$A$8:$B$12,2,FALSE),FALSE))))","v":""},{"$f":"IF($A377=\"\",\"\",IF(VLOOKUP($G377,$H$11:$DN$1000,106,FALSE)=\"\",\"No\",IF(LEFT(VLOOKUP($G377,$H$11:$DN$1000,106,FALSE),3)=\"The\",EH377,VLOOKUP(VLOOKUP($G377,$H$11:$DN$1000,106,FALSE),DeclMatrix!$A$2:$F$5,VLOOKUP('Enrollment Form'!$B377,DeclMatrix!$A$8:$B$12,2,FALSE),FALSE))))","v":""},{"$f":"IF($A377=\"\",\"\",IF(VLOOKUP($G377,$H$11:$DN$1000,111,FALSE)=\"\",\"No\",IF(LEFT(VLOOKUP($G377,$H$11:$DN$1000,111,FALSE),3)=\"The\",EI377,VLOOKUP(VLOOKUP($G377,$H$11:$DN$1000,111,FALSE),DeclMatrix!$A$2:$F$5,VLOOKUP('Enrollment Form'!$B377,DeclMatrix!$A$8:$B$12,2,FALSE),FALSE))))","v":""},"",null,"","","","","","","","","","","",""]
["",{"$nulls":5},"","",{"$nulls":18},"","","","",{"$nulls":30},"","","","",{"$nulls":60},"",{"$f":"IF($A378=\"\",\"\",IF(VLOOKUP($G378,$H$11:$DN$1000,96,FALSE)=\"\",\"No\",IF(LEFT(VLOOKUP($G378,$H$11:$DN$1000,96,FALSE),3)=\"The\",EF378,VLOOKUP(VLOOKUP($G378,$H$11:$DN$1000,96,FALSE),DeclMatrix!$A$2:$F$5,VLOOKUP('Enrollment Form'!$B378,DeclMatrix!$A$8:$B$12,2,FALSE),FALSE))))","v":""},{"$f":"IF($A378=\"\",\"\",IF(VLOOKUP($G378,$H$11:$DN$1000,101,FALSE)=\"\",\"No\",IF(LEFT(VLOOKUP($G378,$H$11:$DN$1000,101,FALSE),3)=\"The\",EG378,VLOOKUP(VLOOKUP($G378,$H$11:$DN$1000,101,FALSE),DeclMatrix!$A$2:$F$5,VLOOKUP('Enrollment Form'!$B378,DeclMatrix!$A$8:$B$12,2,FALSE),FALSE))))","v":""},{"$f":"IF($A378=\"\",\"\",IF(VLOOKUP($G378,$H$11:$DN$1000,106,FALSE)=\"\",\"No\",IF(LEFT(VLOOKUP($G378,$H$11:$DN$1000,106,FALSE),3)=\"The\",EH378,VLOOKUP(VLOOKUP($G378,$H$11:$DN$1000,106,FALSE),DeclMatrix!$A$2:$F$5,VLOOKUP('Enrollment Form'!$B378,DeclMatrix!$A$8:$B$12,2,FALSE),FALSE))))","v":""},{"$f":"IF($A378=\"\",\"\",IF(VLOOKUP($G378,$H$11:$DN$1000,111,FALSE)=\"\",\"No\",IF(LEFT(VLOOKUP($G378,$H$11:$DN$1000,111,FALSE),3)=\"The\",EI378,VLOOKUP(VLOOKUP($G378,$H$11:$DN$1000,111,FALSE),DeclMatrix!$A$2:$F$5,VLOOKUP('Enrollment Form'!$B378,DeclMatrix!$A$8:$B$12,2,FALSE),FALSE))))","v":""},"",null,"","","","","","","","","","","",""]
["",{"$nulls":5},"","",{"$nulls":18},"","","","",{"$nulls":30},"","","","",{"$nulls":60},"",{"$f":"IF($A379=\"\",\"\",IF(VLOOKUP($G379,$H$11:$DN$1000,96,FALSE)=\"\",\"No\",IF(LEFT(VLOOKUP($G379,$H$11:$DN$1000,96,FALSE),3)=\"The\",EF379,VLOOKUP(VLOOKUP($G379,$H$11:$DN$1000,96,FALSE),DeclMatrix!$A$2:$F$5,VLOOKUP('Enrollment Form'!$B379,DeclMatrix!$A$8:$B$12,2,FALSE),FALSE))))","v":""},{"$f":"IF($A379=\"\",\"\",IF(VLOOKUP($G379,$H$11:$DN$1000,101,FALSE)=\"\",\"No\",IF(LEFT(VLOOKUP($G379,$H$11:$DN$1000,101,FALSE),3)=\"The\",EG379,VLOOKUP(VLOOKUP($G379,$H$11:$DN$1000,101,FALSE),DeclMatrix!$A$2:$F$5,VLOOKUP('Enrollment Form'!$B379,DeclMatrix!$A$8:$B$12,2,FALSE),FALSE))))","v":""},{"$f":"IF($A379=\"\",\"\",IF(VLOOKUP($G379,$H$11:$DN$1000,106,FALSE)=\"\",\"No\",IF(LEFT(VLOOKUP($G379,$H$11:$DN$1000,106,FALSE),3)=\"The\",EH379,VLOOKUP(VLOOKUP($G379,$H$11:$DN$1000,106,FALSE),DeclMatrix!$A$2:$F$5,VLOOKUP('Enrollment Form'!$B379,DeclMatrix!$A$8:$B$12,2,FALSE),FALSE))))","v":""},{"$f":"IF($A379=\"\",\"\",IF(VLOOKUP($G379,$H$11:$DN$1000,111,FALSE)=\"\",\"No\",IF(LEFT(VLOOKUP($G379,$H$11:$DN$1000,111,FALSE),3)=\"The\",EI379,VLOOKUP(VLOOKUP($G379,$H$11:$DN$1000,111,FALSE),DeclMatrix!$A$2:$F$5,VLOOKUP('Enrollment Form'!$B379,DeclMatrix!$A$8:$B$12,2,FALSE),FALSE))))","v":""},"",null,"","","","","","","","","","","",""]
["",{"$nulls":5},"","",{"$nulls":18},"","","","",{"$nulls":30},"","","","",{"$nulls":60},"",{"$f":"IF($A380=\"\",\"\",IF(VLOOKUP($G380,$H$11:$DN$1000,96,FALSE)=\"\",\"No\",IF(LEFT(VLOOKUP($G380,$H$11:$DN$1000,96,FALSE),3)=\"The\",EF380,VLOOKUP(VLOOKUP($G380,$H$11:$DN$1000,96,FALSE),DeclMatrix!$A$2:$F$5,VLOOKUP('Enrollment Form'!$B380,DeclMatrix!$A$8:$B$12,2,FALSE),FALSE))))","v":""},{"$f":"IF($A380=\"\",\"\",IF(VLOOKUP($G380,$H$11:$DN$1000,101,FALSE)=\"\",\"No\",IF(LEFT(VLOOKUP($G380,$H$11:$DN$1000,101,FALSE),3)=\"The\",EG380,VLOOKUP(VLOOKUP($G380,$H$11:$DN$1000,101,FALSE),DeclMatrix!$A$2:$F$5,VLOOKUP('Enrollment Form'!$B380,DeclMatrix!$A$8:$B$12,2,FALSE),FALSE))))","v":""},{"$f":"IF($A380=\"\",\"\",IF(VLOOKUP($G380,$H$11:$DN$1000,106,FALSE)=\"\",\"No\",IF(LEFT(VLOOKUP($G380,$H$11:$DN$1000,106,FALSE),3)=\"The\",EH380,VLOOKUP(VLOOKUP($G380,$H$11:$DN$1000,106,FALSE),DeclMatrix!$A$2:$F$5,VLOOKUP('Enrollment Form'!$B380,DeclMatrix!$A$8:$B$12,2,FALSE),FALSE))))","v":""},{"$f":"IF($A380=\"\",\"\",IF(VLOOKUP($G380,$H$11:$DN$1000,111,FALSE)=\"\",\"No\",IF(LEFT(VLOOKUP($G380,$H$11:$DN$1000,111,FALSE),3)=\"The\",EI380,VLOOKUP(VLOOKUP($G380,$H$11:$DN$1000,111,FALSE),DeclMatrix!$A$2:$F$5,VLOOKUP('Enrollment Form'!$B380,DeclMatrix!$A$8:$B$12,2,FALSE),FALSE))))","v":""},"",null,"","","","","","","","","","","",""]
["",{"$nulls":5},"","",{"$nulls":18},"","","","",{"$nulls":30},"","","","",{"$nulls":60},"",{"$f":"IF($A381=\"\",\"\",IF(VLOOKUP($G381,$H$11:$DN$1000,96,FALSE)=\"\",\"No\",IF(LEFT(VLOOKUP($G381,$H$11:$DN$1000,96,FALSE),3)=\"The\",EF381,VLOOKUP(VLOOKUP($G381,$H$11:$DN$1000,96,FALSE),DeclMatrix!$A$2:$F$5,VLOOKUP('Enrollment Form'!$B381,DeclMatrix!$A$8:$B$12,2,FALSE),FALSE))))","v":""},{"$f":"IF($A381=\"\",\"\",IF(VLOOKUP($G381,$H$11:$DN$1000,101,FALSE)=\"\",\"No\",IF(LEFT(VLOOKUP($G381,$H$11:$DN$1000,101,FALSE),3)=\"The\",EG381,VLOOKUP(VLOOKUP($G381,$H$11:$DN$1000,101,FALSE),DeclMatrix!$A$2:$F$5,VLOOKUP('Enrollment Form'!$B381,DeclMatrix!$A$8:$B$12,2,FALSE),FALSE))))","v":""},{"$f":"IF($A381=\"\",\"\",IF(VLOOKUP($G381,$H$11:$DN$1000,106,FALSE)=\"\",\"No\",IF(LEFT(VLOOKUP($G381,$H$11:$DN$1000,106,FALSE),3)=\"The\",EH381,VLOOKUP(VLOOKUP($G381,$H$11:$DN$1000,106,FALSE),DeclMatrix!$A$2:$F$5,VLOOKUP('Enrollment Form'!$B381,DeclMatrix!$A$8:$B$12,2,FALSE),FALSE))))","v":""},{"$f":"IF($A381=\"\",\"\",IF(VLOOKUP($G381,$H$11:$DN$1000,111,FALSE)=\"\",\"No\",IF(LEFT(VLOOKUP($G381,$H$11:$DN$1000,111,FALSE),3)=\"The\",EI381,VLOOKUP(VLOOKUP($G381,$H$11:$DN$1000,111,FALSE),DeclMatrix!$A$2:$F$5,VLOOKUP('Enrollment Form'!$B381,DeclMatrix!$A$8:$B$12,2,FALSE),FALSE))))","v":""},"",null,"","","","","","","","","","","",""]
["",{"$nulls":5},"","",{"$nulls":18},"","","","",{"$nulls":30},"","","","",{"$nulls":60},"",{"$f":"IF($A382=\"\",\"\",IF(VLOOKUP($G382,$H$11:$DN$1000,96,FALSE)=\"\",\"No\",IF(LEFT(VLOOKUP($G382,$H$11:$DN$1000,96,FALSE),3)=\"The\",EF382,VLOOKUP(VLOOKUP($G382,$H$11:$DN$1000,96,FALSE),DeclMatrix!$A$2:$F$5,VLOOKUP('Enrollment Form'!$B382,DeclMatrix!$A$8:$B$12,2,FALSE),FALSE))))","v":""},{"$f":"IF($A382=\"\",\"\",IF(VLOOKUP($G382,$H$11:$DN$1000,101,FALSE)=\"\",\"No\",IF(LEFT(VLOOKUP($G382,$H$11:$DN$1000,101,FALSE),3)=\"The\",EG382,VLOOKUP(VLOOKUP($G382,$H$11:$DN$1000,101,FALSE),DeclMatrix!$A$2:$F$5,VLOOKUP('Enrollment Form'!$B382,DeclMatrix!$A$8:$B$12,2,FALSE),FALSE))))","v":""},{"$f":"IF($A382=\"\",\"\",IF(VLOOKUP($G382,$H$11:$DN$1000,106,FALSE)=\"\",\"No\",IF(LEFT(VLOOKUP($G382,$H$11:$DN$1000,106,FALSE),3)=\"The\",EH382,VLOOKUP(VLOOKUP($G382,$H$11:$DN$1000,106,FALSE),DeclMatrix!$A$2:$F$5,VLOOKUP('Enrollment Form'!$B382,DeclMatrix!$A$8:$B$12,2,FALSE),FALSE))))","v":""},{"$f":"IF($A382=\"\",\"\",IF(VLOOKUP($G382,$H$11:$DN$1000,111,FALSE)=\"\",\"No\",IF(LEFT(VLOOKUP($G382,$H$11:$DN$1000,111,FALSE),3)=\"The\",EI382,VLOOKUP(VLOOKUP($G382,$H$11:$DN$1000,111,FALSE),DeclMatrix!$A$2:$F$5,VLOOKUP('Enrollment Form'!$B382,DeclMatrix!$A$8:$B$12,2,FALSE),FALSE))))","v":""},"",null,"","","","","","","","","","","",""]
["",{"$nulls":5},"","",{"$nulls":18},"","","","",{"$nulls":30},"","","","",{"$nulls":60},"",{"$f":"IF($A383=\"\",\"\",IF(VLOOKUP($G383,$H$11:$DN$1000,96,FALSE)=\"\",\"No\",IF(LEFT(VLOOKUP($G383,$H$11:$DN$1000,96,FALSE),3)=\"The\",EF383,VLOOKUP(VLOOKUP($G383,$H$11:$DN$1000,96,FALSE),DeclMatrix!$A$2:$F$5,VLOOKUP('Enrollment Form'!$B383,DeclMatrix!$A$8:$B$12,2,FALSE),FALSE))))","v":""},{"$f":"IF($A383=\"\",\"\",IF(VLOOKUP($G383,$H$11:$DN$1000,101,FALSE)=\"\",\"No\",IF(LEFT(VLOOKUP($G383,$H$11:$DN$1000,101,FALSE),3)=\"The\",EG383,VLOOKUP(VLOOKUP($G383,$H$11:$DN$1000,101,FALSE),DeclMatrix!$A$2:$F$5,VLOOKUP('Enrollment Form'!$B383,DeclMatrix!$A$8:$B$12,2,FALSE),FALSE))))","v":""},{"$f":"IF($A383=\"\",\"\",IF(VLOOKUP($G383,$H$11:$DN$1000,106,FALSE)=\"\",\"No\",IF(LEFT(VLOOKUP($G383,$H$11:$DN$1000,106,FALSE),3)=\"The\",EH383,VLOOKUP(VLOOKUP($G383,$H$11:$DN$1000,106,FALSE),DeclMatrix!$A$2:$F$5,VLOOKUP('Enrollment Form'!$B383,DeclMatrix!$A$8:$B$12,2,FALSE),FALSE))))","v":""},{"$f":"IF($A383=\"\",\"\",IF(VLOOKUP($G383,$H$11:$DN$1000,111,FALSE)=\"\",\"No\",IF(LEFT(VLOOKUP($G383,$H$11:$DN$1000,111,FALSE),3)=\"The\",EI383,VLOOKUP(VLOOKUP($G383,$H$11:$DN$1000,111,FALSE),DeclMatrix!$A$2:$F$5,VLOOKUP('Enrollment Form'!$B383,DeclMatrix!$A$8:$B$12,2,FALSE),FALSE))))","v":""},"",null,"","","","","","","","","","","",""]
["",{"$nulls":5},"","",{"$nulls":18},"","","","",{"$nulls":30},"","","","",{"$nulls":60},"",{"$f":"IF($A384=\"\",\"\",IF(VLOOKUP($G384,$H$11:$DN$1000,96,FALSE)=\"\",\"No\",IF(LEFT(VLOOKUP($G384,$H$11:$DN$1000,96,FALSE),3)=\"The\",EF384,VLOOKUP(VLOOKUP($G384,$H$11:$DN$1000,96,FALSE),DeclMatrix!$A$2:$F$5,VLOOKUP('Enrollment Form'!$B384,DeclMatrix!$A$8:$B$12,2,FALSE),FALSE))))","v":""},{"$f":"IF($A384=\"\",\"\",IF(VLOOKUP($G384,$H$11:$DN$1000,101,FALSE)=\"\",\"No\",IF(LEFT(VLOOKUP($G384,$H$11:$DN$1000,101,FALSE),3)=\"The\",EG384,VLOOKUP(VLOOKUP($G384,$H$11:$DN$1000,101,FALSE),DeclMatrix!$A$2:$F$5,VLOOKUP('Enrollment Form'!$B384,DeclMatrix!$A$8:$B$12,2,FALSE),FALSE))))","v":""},{"$f":"IF($A384=\"\",\"\",IF(VLOOKUP($G384,$H$11:$DN$1000,106,FALSE)=\"\",\"No\",IF(LEFT(VLOOKUP($G384,$H$11:$DN$1000,106,FALSE),3)=\"The\",EH384,VLOOKUP(VLOOKUP($G384,$H$11:$DN$1000,106,FALSE),DeclMatrix!$A$2:$F$5,VLOOKUP('Enrollment Form'!$B384,DeclMatrix!$A$8:$B$12,2,FALSE),FALSE))))","v":""},{"$f":"IF($A384=\"\",\"\",IF(VLOOKUP($G384,$H$11:$DN$1000,111,FALSE)=\"\",\"No\",IF(LEFT(VLOOKUP($G384,$H$11:$DN$1000,111,FALSE),3)=\"The\",EI384,VLOOKUP(VLOOKUP($G384,$H$11:$DN$1000,111,FALSE),DeclMatrix!$A$2:$F$5,VLOOKUP('Enrollment Form'!$B384,DeclMatrix!$A$8:$B$12,2,FALSE),FALSE))))","v":""},"",null,"","","","","","","","","","","",""]
["",{"$nulls":5},"","",{"$nulls":18},"","","","",{"$nulls":30},"","","","",{"$nulls":60},"",{"$f":"IF($A385=\"\",\"\",IF(VLOOKUP($G385,$H$11:$DN$1000,96,FALSE)=\"\",\"No\",IF(LEFT(VLOOKUP($G385,$H$11:$DN$1000,96,FALSE),3)=\"The\",EF385,VLOOKUP(VLOOKUP($G385,$H$11:$DN$1000,96,FALSE),DeclMatrix!$A$2:$F$5,VLOOKUP('Enrollment Form'!$B385,DeclMatrix!$A$8:$B$12,2,FALSE),FALSE))))","v":""},{"$f":"IF($A385=\"\",\"\",IF(VLOOKUP($G385,$H$11:$DN$1000,101,FALSE)=\"\",\"No\",IF(LEFT(VLOOKUP($G385,$H$11:$DN$1000,101,FALSE),3)=\"The\",EG385,VLOOKUP(VLOOKUP($G385,$H$11:$DN$1000,101,FALSE),DeclMatrix!$A$2:$F$5,VLOOKUP('Enrollment Form'!$B385,DeclMatrix!$A$8:$B$12,2,FALSE),FALSE))))","v":""},{"$f":"IF($A385=\"\",\"\",IF(VLOOKUP($G385,$H$11:$DN$1000,106,FALSE)=\"\",\"No\",IF(LEFT(VLOOKUP($G385,$H$11:$DN$1000,106,FALSE),3)=\"The\",EH385,VLOOKUP(VLOOKUP($G385,$H$11:$DN$1000,106,FALSE),DeclMatrix!$A$2:$F$5,VLOOKUP('Enrollment Form'!$B385,DeclMatrix!$A$8:$B$12,2,FALSE),FALSE))))","v":""},{"$f":"IF($A385=\"\",\"\",IF(VLOOKUP($G385,$H$11:$DN$1000,111,FALSE)=\"\",\"No\",IF(LEFT(VLOOKUP($G385,$H$11:$DN$1000,111,FALSE),3)=\"The\",EI385,VLOOKUP(VLOOKUP($G385,$H$11:$DN$1000,111,FALSE),DeclMatrix!$A$2:$F$5,VLOOKUP('Enrollment Form'!$B385,DeclMatrix!$A$8:$B$12,2,FALSE),FALSE))))","v":""},"",null,"","","","","","","","","","","",""]
["",{"$nulls":5},"","",{"$nulls":18},"","","","",{"$nulls":30},"","","","",{"$nulls":60},"",{"$f":"IF($A386=\"\",\"\",IF(VLOOKUP($G386,$H$11:$DN$1000,96,FALSE)=\"\",\"No\",IF(LEFT(VLOOKUP($G386,$H$11:$DN$1000,96,FALSE),3)=\"The\",EF386,VLOOKUP(VLOOKUP($G386,$H$11:$DN$1000,96,FALSE),DeclMatrix!$A$2:$F$5,VLOOKUP('Enrollment Form'!$B386,DeclMatrix!$A$8:$B$12,2,FALSE),FALSE))))","v":""},{"$f":"IF($A386=\"\",\"\",IF(VLOOKUP($G386,$H$11:$DN$1000,101,FALSE)=\"\",\"No\",IF(LEFT(VLOOKUP($G386,$H$11:$DN$1000,101,FALSE),3)=\"The\",EG386,VLOOKUP(VLOOKUP($G386,$H$11:$DN$1000,101,FALSE),DeclMatrix!$A$2:$F$5,VLOOKUP('Enrollment Form'!$B386,DeclMatrix!$A$8:$B$12,2,FALSE),FALSE))))","v":""},{"$f":"IF($A386=\"\",\"\",IF(VLOOKUP($G386,$H$11:$DN$1000,106,FALSE)=\"\",\"No\",IF(LEFT(VLOOKUP($G386,$H$11:$DN$1000,106,FALSE),3)=\"The\",EH386,VLOOKUP(VLOOKUP($G386,$H$11:$DN$1000,106,FALSE),DeclMatrix!$A$2:$F$5,VLOOKUP('Enrollment Form'!$B386,DeclMatrix!$A$8:$B$12,2,FALSE),FALSE))))","v":""},{"$f":"IF($A386=\"\",\"\",IF(VLOOKUP($G386,$H$11:$DN$1000,111,FALSE)=\"\",\"No\",IF(LEFT(VLOOKUP($G386,$H$11:$DN$1000,111,FALSE),3)=\"The\",EI386,VLOOKUP(VLOOKUP($G386,$H$11:$DN$1000,111,FALSE),DeclMatrix!$A$2:$F$5,VLOOKUP('Enrollment Form'!$B386,DeclMatrix!$A$8:$B$12,2,FALSE),FALSE))))","v":""},"",null,"","","","","","","","","","","",""]
["",{"$nulls":5},"","",{"$nulls":18},"","","","",{"$nulls":30},"","","","",{"$nulls":60},"",{"$f":"IF($A387=\"\",\"\",IF(VLOOKUP($G387,$H$11:$DN$1000,96,FALSE)=\"\",\"No\",IF(LEFT(VLOOKUP($G387,$H$11:$DN$1000,96,FALSE),3)=\"The\",EF387,VLOOKUP(VLOOKUP($G387,$H$11:$DN$1000,96,FALSE),DeclMatrix!$A$2:$F$5,VLOOKUP('Enrollment Form'!$B387,DeclMatrix!$A$8:$B$12,2,FALSE),FALSE))))","v":""},{"$f":"IF($A387=\"\",\"\",IF(VLOOKUP($G387,$H$11:$DN$1000,101,FALSE)=\"\",\"No\",IF(LEFT(VLOOKUP($G387,$H$11:$DN$1000,101,FALSE),3)=\"The\",EG387,VLOOKUP(VLOOKUP($G387,$H$11:$DN$1000,101,FALSE),DeclMatrix!$A$2:$F$5,VLOOKUP('Enrollment Form'!$B387,DeclMatrix!$A$8:$B$12,2,FALSE),FALSE))))","v":""},{"$f":"IF($A387=\"\",\"\",IF(VLOOKUP($G387,$H$11:$DN$1000,106,FALSE)=\"\",\"No\",IF(LEFT(VLOOKUP($G387,$H$11:$DN$1000,106,FALSE),3)=\"The\",EH387,VLOOKUP(VLOOKUP($G387,$H$11:$DN$1000,106,FALSE),DeclMatrix!$A$2:$F$5,VLOOKUP('Enrollment Form'!$B387,DeclMatrix!$A$8:$B$12,2,FALSE),FALSE))))","v":""},{"$f":"IF($A387=\"\",\"\",IF(VLOOKUP($G387,$H$11:$DN$1000,111,FALSE)=\"\",\"No\",IF(LEFT(VLOOKUP($G387,$H$11:$DN$1000,111,FALSE),3)=\"The\",EI387,VLOOKUP(VLOOKUP($G387,$H$11:$DN$1000,111,FALSE),DeclMatrix!$A$2:$F$5,VLOOKUP('Enrollment Form'!$B387,DeclMatrix!$A$8:$B$12,2,FALSE),FALSE))))","v":""},"",null,"","","","","","","","","","","",""]
["",{"$nulls":5},"","",{"$nulls":18},"","","","",{"$nulls":30},"","","","",{"$nulls":60},"",{"$f":"IF($A388=\"\",\"\",IF(VLOOKUP($G388,$H$11:$DN$1000,96,FALSE)=\"\",\"No\",IF(LEFT(VLOOKUP($G388,$H$11:$DN$1000,96,FALSE),3)=\"The\",EF388,VLOOKUP(VLOOKUP($G388,$H$11:$DN$1000,96,FALSE),DeclMatrix!$A$2:$F$5,VLOOKUP('Enrollment Form'!$B388,DeclMatrix!$A$8:$B$12,2,FALSE),FALSE))))","v":""},{"$f":"IF($A388=\"\",\"\",IF(VLOOKUP($G388,$H$11:$DN$1000,101,FALSE)=\"\",\"No\",IF(LEFT(VLOOKUP($G388,$H$11:$DN$1000,101,FALSE),3)=\"The\",EG388,VLOOKUP(VLOOKUP($G388,$H$11:$DN$1000,101,FALSE),DeclMatrix!$A$2:$F$5,VLOOKUP('Enrollment Form'!$B388,DeclMatrix!$A$8:$B$12,2,FALSE),FALSE))))","v":""},{"$f":"IF($A388=\"\",\"\",IF(VLOOKUP($G388,$H$11:$DN$1000,106,FALSE)=\"\",\"No\",IF(LEFT(VLOOKUP($G388,$H$11:$DN$1000,106,FALSE),3)=\"The\",EH388,VLOOKUP(VLOOKUP($G388,$H$11:$DN$1000,106,FALSE),DeclMatrix!$A$2:$F$5,VLOOKUP('Enrollment Form'!$B388,DeclMatrix!$A$8:$B$12,2,FALSE),FALSE))))","v":""},{"$f":"IF($A388=\"\",\"\",IF(VLOOKUP($G388,$H$11:$DN$1000,111,FALSE)=\"\",\"No\",IF(LEFT(VLOOKUP($G388,$H$11:$DN$1000,111,FALSE),3)=\"The\",EI388,VLOOKUP(VLOOKUP($G388,$H$11:$DN$1000,111,FALSE),DeclMatrix!$A$2:$F$5,VLOOKUP('Enrollment Form'!$B388,DeclMatrix!$A$8:$B$12,2,FALSE),FALSE))))","v":""},"",null,"","","","","","","","","","","",""]
["",{"$nulls":5},"","",{"$nulls":18},"","","","",{"$nulls":30},"","","","",{"$nulls":60},"",{"$f":"IF($A389=\"\",\"\",IF(VLOOKUP($G389,$H$11:$DN$1000,96,FALSE)=\"\",\"No\",IF(LEFT(VLOOKUP($G389,$H$11:$DN$1000,96,FALSE),3)=\"The\",EF389,VLOOKUP(VLOOKUP($G389,$H$11:$DN$1000,96,FALSE),DeclMatrix!$A$2:$F$5,VLOOKUP('Enrollment Form'!$B389,DeclMatrix!$A$8:$B$12,2,FALSE),FALSE))))","v":""},{"$f":"IF($A389=\"\",\"\",IF(VLOOKUP($G389,$H$11:$DN$1000,101,FALSE)=\"\",\"No\",IF(LEFT(VLOOKUP($G389,$H$11:$DN$1000,101,FALSE),3)=\"The\",EG389,VLOOKUP(VLOOKUP($G389,$H$11:$DN$1000,101,FALSE),DeclMatrix!$A$2:$F$5,VLOOKUP('Enrollment Form'!$B389,DeclMatrix!$A$8:$B$12,2,FALSE),FALSE))))","v":""},{"$f":"IF($A389=\"\",\"\",IF(VLOOKUP($G389,$H$11:$DN$1000,106,FALSE)=\"\",\"No\",IF(LEFT(VLOOKUP($G389,$H$11:$DN$1000,106,FALSE),3)=\"The\",EH389,VLOOKUP(VLOOKUP($G389,$H$11:$DN$1000,106,FALSE),DeclMatrix!$A$2:$F$5,VLOOKUP('Enrollment Form'!$B389,DeclMatrix!$A$8:$B$12,2,FALSE),FALSE))))","v":""},{"$f":"IF($A389=\"\",\"\",IF(VLOOKUP($G389,$H$11:$DN$1000,111,FALSE)=\"\",\"No\",IF(LEFT(VLOOKUP($G389,$H$11:$DN$1000,111,FALSE),3)=\"The\",EI389,VLOOKUP(VLOOKUP($G389,$H$11:$DN$1000,111,FALSE),DeclMatrix!$A$2:$F$5,VLOOKUP('Enrollment Form'!$B389,DeclMatrix!$A$8:$B$12,2,FALSE),FALSE))))","v":""},"",null,"","","","","","","","","","","",""]
["",{"$nulls":5},"","",{"$nulls":18},"","","","",{"$nulls":30},"","","","",{"$nulls":60},"",{"$f":"IF($A390=\"\",\"\",IF(VLOOKUP($G390,$H$11:$DN$1000,96,FALSE)=\"\",\"No\",IF(LEFT(VLOOKUP($G390,$H$11:$DN$1000,96,FALSE),3)=\"The\",EF390,VLOOKUP(VLOOKUP($G390,$H$11:$DN$1000,96,FALSE),DeclMatrix!$A$2:$F$5,VLOOKUP('Enrollment Form'!$B390,DeclMatrix!$A$8:$B$12,2,FALSE),FALSE))))","v":""},{"$f":"IF($A390=\"\",\"\",IF(VLOOKUP($G390,$H$11:$DN$1000,101,FALSE)=\"\",\"No\",IF(LEFT(VLOOKUP($G390,$H$11:$DN$1000,101,FALSE),3)=\"The\",EG390,VLOOKUP(VLOOKUP($G390,$H$11:$DN$1000,101,FALSE),DeclMatrix!$A$2:$F$5,VLOOKUP('Enrollment Form'!$B390,DeclMatrix!$A$8:$B$12,2,FALSE),FALSE))))","v":""},{"$f":"IF($A390=\"\",\"\",IF(VLOOKUP($G390,$H$11:$DN$1000,106,FALSE)=\"\",\"No\",IF(LEFT(VLOOKUP($G390,$H$11:$DN$1000,106,FALSE),3)=\"The\",EH390,VLOOKUP(VLOOKUP($G390,$H$11:$DN$1000,106,FALSE),DeclMatrix!$A$2:$F$5,VLOOKUP('Enrollment Form'!$B390,DeclMatrix!$A$8:$B$12,2,FALSE),FALSE))))","v":""},{"$f":"IF($A390=\"\",\"\",IF(VLOOKUP($G390,$H$11:$DN$1000,111,FALSE)=\"\",\"No\",IF(LEFT(VLOOKUP($G390,$H$11:$DN$1000,111,FALSE),3)=\"The\",EI390,VLOOKUP(VLOOKUP($G390,$H$11:$DN$1000,111,FALSE),DeclMatrix!$A$2:$F$5,VLOOKUP('Enrollment Form'!$B390,DeclMatrix!$A$8:$B$12,2,FALSE),FALSE))))","v":""},"",null,"","","","","","","","","","","",""]
["",{"$nulls":5},"","",{"$nulls":18},"","","","",{"$nulls":30},"","","","",{"$nulls":60},"",{"$f":"IF($A391=\"\",\"\",IF(VLOOKUP($G391,$H$11:$DN$1000,96,FALSE)=\"\",\"No\",IF(LEFT(VLOOKUP($G391,$H$11:$DN$1000,96,FALSE),3)=\"The\",EF391,VLOOKUP(VLOOKUP($G391,$H$11:$DN$1000,96,FALSE),DeclMatrix!$A$2:$F$5,VLOOKUP('Enrollment Form'!$B391,DeclMatrix!$A$8:$B$12,2,FALSE),FALSE))))","v":""},{"$f":"IF($A391=\"\",\"\",IF(VLOOKUP($G391,$H$11:$DN$1000,101,FALSE)=\"\",\"No\",IF(LEFT(VLOOKUP($G391,$H$11:$DN$1000,101,FALSE),3)=\"The\",EG391,VLOOKUP(VLOOKUP($G391,$H$11:$DN$1000,101,FALSE),DeclMatrix!$A$2:$F$5,VLOOKUP('Enrollment Form'!$B391,DeclMatrix!$A$8:$B$12,2,FALSE),FALSE))))","v":""},{"$f":"IF($A391=\"\",\"\",IF(VLOOKUP($G391,$H$11:$DN$1000,106,FALSE)=\"\",\"No\",IF(LEFT(VLOOKUP($G391,$H$11:$DN$1000,106,FALSE),3)=\"The\",EH391,VLOOKUP(VLOOKUP($G391,$H$11:$DN$1000,106,FALSE),DeclMatrix!$A$2:$F$5,VLOOKUP('Enrollment Form'!$B391,DeclMatrix!$A$8:$B$12,2,FALSE),FALSE))))","v":""},{"$f":"IF($A391=\"\",\"\",IF(VLOOKUP($G391,$H$11:$DN$1000,111,FALSE)=\"\",\"No\",IF(LEFT(VLOOKUP($G391,$H$11:$DN$1000,111,FALSE),3)=\"The\",EI391,VLOOKUP(VLOOKUP($G391,$H$11:$DN$1000,111,FALSE),DeclMatrix!$A$2:$F$5,VLOOKUP('Enrollment Form'!$B391,DeclMatrix!$A$8:$B$12,2,FALSE),FALSE))))","v":""},"",null,"","","","","","","","","","","",""]
["",{"$nulls":5},"","",{"$nulls":18},"","","","",{"$nulls":30},"","","","",{"$nulls":60},"",{"$f":"IF($A392=\"\",\"\",IF(VLOOKUP($G392,$H$11:$DN$1000,96,FALSE)=\"\",\"No\",IF(LEFT(VLOOKUP($G392,$H$11:$DN$1000,96,FALSE),3)=\"The\",EF392,VLOOKUP(VLOOKUP($G392,$H$11:$DN$1000,96,FALSE),DeclMatrix!$A$2:$F$5,VLOOKUP('Enrollment Form'!$B392,DeclMatrix!$A$8:$B$12,2,FALSE),FALSE))))","v":""},{"$f":"IF($A392=\"\",\"\",IF(VLOOKUP($G392,$H$11:$DN$1000,101,FALSE)=\"\",\"No\",IF(LEFT(VLOOKUP($G392,$H$11:$DN$1000,101,FALSE),3)=\"The\",EG392,VLOOKUP(VLOOKUP($G392,$H$11:$DN$1000,101,FALSE),DeclMatrix!$A$2:$F$5,VLOOKUP('Enrollment Form'!$B392,DeclMatrix!$A$8:$B$12,2,FALSE),FALSE))))","v":""},{"$f":"IF($A392=\"\",\"\",IF(VLOOKUP($G392,$H$11:$DN$1000,106,FALSE)=\"\",\"No\",IF(LEFT(VLOOKUP($G392,$H$11:$DN$1000,106,FALSE),3)=\"The\",EH392,VLOOKUP(VLOOKUP($G392,$H$11:$DN$1000,106,FALSE),DeclMatrix!$A$2:$F$5,VLOOKUP('Enrollment Form'!$B392,DeclMatrix!$A$8:$B$12,2,FALSE),FALSE))))","v":""},{"$f":"IF($A392=\"\",\"\",IF(VLOOKUP($G392,$H$11:$DN$1000,111,FALSE)=\"\",\"No\",IF(LEFT(VLOOKUP($G392,$H$11:$DN$1000,111,FALSE),3)=\"The\",EI392,VLOOKUP(VLOOKUP($G392,$H$11:$DN$1000,111,FALSE),DeclMatrix!$A$2:$F$5,VLOOKUP('Enrollment Form'!$B392,DeclMatrix!$A$8:$B$12,2,FALSE),FALSE))))","v":""},"",null,"","","","","","","","","","","",""]
["",{"$nulls":5},"","",{"$nulls":18},"","","","",{"$nulls":30},"","","","",{"$nulls":60},"",{"$f":"IF($A393=\"\",\"\",IF(VLOOKUP($G393,$H$11:$DN$1000,96,FALSE)=\"\",\"No\",IF(LEFT(VLOOKUP($G393,$H$11:$DN$1000,96,FALSE),3)=\"The\",EF393,VLOOKUP(VLOOKUP($G393,$H$11:$DN$1000,96,FALSE),DeclMatrix!$A$2:$F$5,VLOOKUP('Enrollment Form'!$B393,DeclMatrix!$A$8:$B$12,2,FALSE),FALSE))))","v":""},{"$f":"IF($A393=\"\",\"\",IF(VLOOKUP($G393,$H$11:$DN$1000,101,FALSE)=\"\",\"No\",IF(LEFT(VLOOKUP($G393,$H$11:$DN$1000,101,FALSE),3)=\"The\",EG393,VLOOKUP(VLOOKUP($G393,$H$11:$DN$1000,101,FALSE),DeclMatrix!$A$2:$F$5,VLOOKUP('Enrollment Form'!$B393,DeclMatrix!$A$8:$B$12,2,FALSE),FALSE))))","v":""},{"$f":"IF($A393=\"\",\"\",IF(VLOOKUP($G393,$H$11:$DN$1000,106,FALSE)=\"\",\"No\",IF(LEFT(VLOOKUP($G393,$H$11:$DN$1000,106,FALSE),3)=\"The\",EH393,VLOOKUP(VLOOKUP($G393,$H$11:$DN$1000,106,FALSE),DeclMatrix!$A$2:$F$5,VLOOKUP('Enrollment Form'!$B393,DeclMatrix!$A$8:$B$12,2,FALSE),FALSE))))","v":""},{"$f":"IF($A393=\"\",\"\",IF(VLOOKUP($G393,$H$11:$DN$1000,111,FALSE)=\"\",\"No\",IF(LEFT(VLOOKUP($G393,$H$11:$DN$1000,111,FALSE),3)=\"The\",EI393,VLOOKUP(VLOOKUP($G393,$H$11:$DN$1000,111,FALSE),DeclMatrix!$A$2:$F$5,VLOOKUP('Enrollment Form'!$B393,DeclMatrix!$A$8:$B$12,2,FALSE),FALSE))))","v":""},"",null,"","","","","","","","","","","",""]
["",{"$nulls":5},"","",{"$nulls":18},"","","","",{"$nulls":30},"","","","",{"$nulls":60},"",{"$f":"IF($A394=\"\",\"\",IF(VLOOKUP($G394,$H$11:$DN$1000,96,FALSE)=\"\",\"No\",IF(LEFT(VLOOKUP($G394,$H$11:$DN$1000,96,FALSE),3)=\"The\",EF394,VLOOKUP(VLOOKUP($G394,$H$11:$DN$1000,96,FALSE),DeclMatrix!$A$2:$F$5,VLOOKUP('Enrollment Form'!$B394,DeclMatrix!$A$8:$B$12,2,FALSE),FALSE))))","v":""},{"$f":"IF($A394=\"\",\"\",IF(VLOOKUP($G394,$H$11:$DN$1000,101,FALSE)=\"\",\"No\",IF(LEFT(VLOOKUP($G394,$H$11:$DN$1000,101,FALSE),3)=\"The\",EG394,VLOOKUP(VLOOKUP($G394,$H$11:$DN$1000,101,FALSE),DeclMatrix!$A$2:$F$5,VLOOKUP('Enrollment Form'!$B394,DeclMatrix!$A$8:$B$12,2,FALSE),FALSE))))","v":""},{"$f":"IF($A394=\"\",\"\",IF(VLOOKUP($G394,$H$11:$DN$1000,106,FALSE)=\"\",\"No\",IF(LEFT(VLOOKUP($G394,$H$11:$DN$1000,106,FALSE),3)=\"The\",EH394,VLOOKUP(VLOOKUP($G394,$H$11:$DN$1000,106,FALSE),DeclMatrix!$A$2:$F$5,VLOOKUP('Enrollment Form'!$B394,DeclMatrix!$A$8:$B$12,2,FALSE),FALSE))))","v":""},{"$f":"IF($A394=\"\",\"\",IF(VLOOKUP($G394,$H$11:$DN$1000,111,FALSE)=\"\",\"No\",IF(LEFT(VLOOKUP($G394,$H$11:$DN$1000,111,FALSE),3)=\"The\",EI394,VLOOKUP(VLOOKUP($G394,$H$11:$DN$1000,111,FALSE),DeclMatrix!$A$2:$F$5,VLOOKUP('Enrollment Form'!$B394,DeclMatrix!$A$8:$B$12,2,FALSE),FALSE))))","v":""},"",null,"","","","","","","","","","","",""]
[{"$f":"IF(LEN($B395)>0,$C$2,\"\")","v":""},{"$nulls":5},"","",{"$nulls":18},"","","","",{"$nulls":30},{"$f":"IF(AND($B395<>\"Subscriber\",$BH395=\"Yes\"),VLOOKUP($G395,$H$11:$Y$1000,15,FALSE),\"\")","v":""},{"$f":"IF(AND($B395<>\"Subscriber\",$BH395=\"Yes\"),VLOOKUP($G395,$H$11:$Y$1000,16,FALSE),\"\")","v":""},{"$f":"IF(AND($B395<>\"Subscriber\",$BH395=\"Yes\"),VLOOKUP($G395,$H$11:$Y$1000,17,FALSE),\"\")","v":""},{"$f":"IF(AND($B395<>\"Subscriber\",$BH395=\"Yes\"),VLOOKUP($G395,$H$11:$Y$1000,18,FALSE),\"\")","v":""},{"$nulls":60},{"$f":"IF($A395=\"\",\"\",IF($B395=\"Subscriber\",$AG395,VLOOKUP($G395,$H$11:$AG$1000,26,FALSE)))","v":""},{"$f":"IF($A395=\"\",\"\",IF(VLOOKUP($G395,$H$11:$DN$1000,96,FALSE)=\"\",\"No\",IF(LEFT(VLOOKUP($G395,$H$11:$DN$1000,96,FALSE),3)=\"The\",EF395,VLOOKUP(VLOOKUP($G395,$H$11:$DN$1000,96,FALSE),DeclMatrix!$A$2:$F$5,VLOOKUP('Enrollment Form'!$B395,DeclMatrix!$A$8:$B$12,2,FALSE),FALSE))))","v":""},{"$f":"IF($A395=\"\",\"\",IF(VLOOKUP($G395,$H$11:$DN$1000,101,FALSE)=\"\",\"No\",IF(LEFT(VLOOKUP($G395,$H$11:$DN$1000,101,FALSE),3)=\"The\",EG395,VLOOKUP(VLOOKUP($G395,$H$11:$DN$1000,101,FALSE),DeclMatrix!$A$2:$F$5,VLOOKUP('Enrollment Form'!$B395,DeclMatrix!$A$8:$B$12,2,FALSE),FALSE))))","v":""},{"$f":"IF($A395=\"\",\"\",IF(VLOOKUP($G395,$H$11:$DN$1000,106,FALSE)=\"\",\"No\",IF(LEFT(VLOOKUP($G395,$H$11:$DN$1000,106,FALSE),3)=\"The\",EH395,VLOOKUP(VLOOKUP($G395,$H$11:$DN$1000,106,FALSE),DeclMatrix!$A$2:$F$5,VLOOKUP('Enrollment Form'!$B395,DeclMatrix!$A$8:$B$12,2,FALSE),FALSE))))","v":""},{"$f":"IF($A395=\"\",\"\",IF(VLOOKUP($G395,$H$11:$DN$1000,111,FALSE)=\"\",\"No\",IF(LEFT(VLOOKUP($G395,$H$11:$DN$1000,111,FALSE),3)=\"The\",EI395,VLOOKUP(VLOOKUP($G395,$H$11:$DN$1000,111,FALSE),DeclMatrix!$A$2:$F$5,VLOOKUP('Enrollment Form'!$B395,DeclMatrix!$A$8:$B$12,2,FALSE),FALSE))))","v":""},"",null,{"$f":"$B395&$G395&$J395","v":""},{"$f":"$B395&$G395&$L395","v":""},{"$f":"$B395&$G395&$N395","v":""},{"$f":"$B395&$G395&$O395","v":""},"","","","",{"$f":"IF($A395=\"\",\"\",IF(AND($B395=\"Subscriber\",$I395<>\"Waive\",$I395<>\"\"),\"Yes\",IF(AND($B395<>\"Subscriber\",$BF395=\"Yes\"),VLOOKUP($G395,$H$11:$EM$1000,133,FALSE),IF(AND($C395=\"Enroll\",VLOOKUP($G396,$H$11:$EM$1000,96,FALSE)<>\"\"),VLOOKUP($DV395,$DW$2:$DX$3,2,FALSE),\"No\"))))","v":""},{"$f":"IF($A395=\"\",\"\",IF(AND($B395=\"Subscriber\",$K395<>\"Waive\",$K395<>\"\"),\"Yes\",IF(AND($B395<>\"Subscriber\",$BF395=\"Yes\"),VLOOKUP($G395,$H$11:$EM$1000,134,FALSE),IF(AND($C395=\"Enroll\",VLOOKUP($G396,$H$11:$EM$1000,101,FALSE)<>\"\"),VLOOKUP($DW395,$DW$2:$DX$3,2,FALSE),\"No\"))))","v":""},{"$f":"IF($A395=\"\",\"\",IF(AND($B395=\"Subscriber\",$M395<>\"Waive\",$M395<>\"\"),\"Yes\",IF(AND($B395<>\"Subscriber\",$BF395=\"Yes\"),VLOOKUP($G395,$H$11:$EM$1000,135,FALSE),IF(AND($C395=\"Enroll\",VLOOKUP($G396,$H$11:$EM$1000,106,FALSE)<>\"\"),VLOOKUP($DX395,$DW$2:$DX$3,2,FALSE),\"No\"))))","v":""},{"$f":"IF($A395=\"\",\"\",IF(AND($B395=\"Subscriber\",$O395<>\"Waive\",$O395<>\"\"),\"Yes\",IF(AND($B395<>\"Subscriber\",$BF395=\"Yes\"),VLOOKUP($G395,$H$11:$EM$1000,136,FALSE),IF(AND($C395=\"Enroll\",VLOOKUP($G396,$H$11:$EM$1000,111,FALSE)<>\"\"),VLOOKUP($DY395,$DW$2:$DX$3,2,FALSE),\"No\"))))","v":""}]
["",{"$nulls":5},{"$f":"IF(A396=\"\",\"\",IF(AND(B396<>\"Subscriber\",B396<>\"\"),G395,\"\"))","v":""},{"$f":"IF(AND(B396=\"Subscriber\",G396<>\"\"),G396,\"\")","v":""},{"$nulls":18},{"$f":"IF(AND($B396=\"Subscriber\",$Z396=\"Yes\"),V396,\"\")","v":""},{"$f":"IF(AND($B396=\"Subscriber\",$Z396=\"Yes\"),W396,\"\")","v":""},{"$f":"IF(AND($B396=\"Subscriber\",$Z396=\"Yes\"),X396,\"\")","v":""},{"$f":"IF(AND($B396=\"Subscriber\",$Z396=\"Yes\"),Y396,\"\")","v":""},{"$nulls":30},"","","","",{"$nulls":60},"",{"$f":"IF($A396=\"\",\"\",IF(VLOOKUP($G396,$H$11:$DN$1000,96,FALSE)=\"\",\"No\",IF(LEFT(VLOOKUP($G396,$H$11:$DN$1000,96,FALSE),3)=\"The\",EF396,VLOOKUP(VLOOKUP($G396,$H$11:$DN$1000,96,FALSE),DeclMatrix!$A$2:$F$5,VLOOKUP('Enrollment Form'!$B396,DeclMatrix!$A$8:$B$12,2,FALSE),FALSE))))","v":""},{"$f":"IF($A396=\"\",\"\",IF(VLOOKUP($G396,$H$11:$DN$1000,101,FALSE)=\"\",\"No\",IF(LEFT(VLOOKUP($G396,$H$11:$DN$1000,101,FALSE),3)=\"The\",EG396,VLOOKUP(VLOOKUP($G396,$H$11:$DN$1000,101,FALSE),DeclMatrix!$A$2:$F$5,VLOOKUP('Enrollment Form'!$B396,DeclMatrix!$A$8:$B$12,2,FALSE),FALSE))))","v":""},{"$f":"IF($A396=\"\",\"\",IF(VLOOKUP($G396,$H$11:$DN$1000,106,FALSE)=\"\",\"No\",IF(LEFT(VLOOKUP($G396,$H$11:$DN$1000,106,FALSE),3)=\"The\",EH396,VLOOKUP(VLOOKUP($G396,$H$11:$DN$1000,106,FALSE),DeclMatrix!$A$2:$F$5,VLOOKUP('Enrollment Form'!$B396,DeclMatrix!$A$8:$B$12,2,FALSE),FALSE))))","v":""},{"$f":"IF($A396=\"\",\"\",IF(VLOOKUP($G396,$H$11:$DN$1000,111,FALSE)=\"\",\"No\",IF(LEFT(VLOOKUP($G396,$H$11:$DN$1000,111,FALSE),3)=\"The\",EI396,VLOOKUP(VLOOKUP($G396,$H$11:$DN$1000,111,FALSE),DeclMatrix!$A$2:$F$5,VLOOKUP('Enrollment Form'!$B396,DeclMatrix!$A$8:$B$12,2,FALSE),FALSE))))","v":""},{"$f":"IF(A396<>\"\",\"1X\",\"\")","v":""},null,"","","","",{"$f":"IF($A396=\"\",\"\",IF($B396=\"Subscriber\",\"No\",IF(OR($CY396=\"\",$CY396=\"No\"),\"No\",\"Yes\")))","v":""},{"$f":"IF($A396=\"\",\"\",IF($B396=\"Subscriber\",\"No\",IF(OR($DD396=\"\",$DD396=\"No\"),\"No\",\"Yes\")))","v":""},{"$f":"IF($A396=\"\",\"\",IF($B396=\"Subscriber\",\"No\",IF(OR($DI396=\"\",$DI396=\"No\"),\"No\",\"Yes\")))","v":""},{"$f":"IF($A396=\"\",\"\",IF($B396=\"Subscriber\",\"No\",IF(OR($DN396=\"\",$DN396=\"No\"),\"No\",\"Yes\")))","v":""},"","","",""]
["",{"$nulls":5},"","",{"$nulls":18},"","","","",{"$nulls":30},"","","","",{"$nulls":60},"",{"$f":"IF($A397=\"\",\"\",IF(VLOOKUP($G397,$H$11:$DN$1000,96,FALSE)=\"\",\"No\",IF(LEFT(VLOOKUP($G397,$H$11:$DN$1000,96,FALSE),3)=\"The\",EF397,VLOOKUP(VLOOKUP($G397,$H$11:$DN$1000,96,FALSE),DeclMatrix!$A$2:$F$5,VLOOKUP('Enrollment Form'!$B397,DeclMatrix!$A$8:$B$12,2,FALSE),FALSE))))","v":""},{"$f":"IF($A397=\"\",\"\",IF(VLOOKUP($G397,$H$11:$DN$1000,101,FALSE)=\"\",\"No\",IF(LEFT(VLOOKUP($G397,$H$11:$DN$1000,101,FALSE),3)=\"The\",EG397,VLOOKUP(VLOOKUP($G397,$H$11:$DN$1000,101,FALSE),DeclMatrix!$A$2:$F$5,VLOOKUP('Enrollment Form'!$B397,DeclMatrix!$A$8:$B$12,2,FALSE),FALSE))))","v":""},{"$f":"IF($A397=\"\",\"\",IF(VLOOKUP($G397,$H$11:$DN$1000,106,FALSE)=\"\",\"No\",IF(LEFT(VLOOKUP($G397,$H$11:$DN$1000,106,FALSE),3)=\"The\",EH397,VLOOKUP(VLOOKUP($G397,$H$11:$DN$1000,106,FALSE),DeclMatrix!$A$2:$F$5,VLOOKUP('Enrollment Form'!$B397,DeclMatrix!$A$8:$B$12,2,FALSE),FALSE))))","v":""},{"$f":"IF($A397=\"\",\"\",IF(VLOOKUP($G397,$H$11:$DN$1000,111,FALSE)=\"\",\"No\",IF(LEFT(VLOOKUP($G397,$H$11:$DN$1000,111,FALSE),3)=\"The\",EI397,VLOOKUP(VLOOKUP($G397,$H$11:$DN$1000,111,FALSE),DeclMatrix!$A$2:$F$5,VLOOKUP('Enrollment Form'!$B397,DeclMatrix!$A$8:$B$12,2,FALSE),FALSE))))","v":""},"",null,"","","","","","","","","","","",""]
["",{"$nulls":5},"","",{"$nulls":18},"","","","",{"$nulls":30},"","","","",{"$nulls":60},"",{"$f":"IF($A398=\"\",\"\",IF(VLOOKUP($G398,$H$11:$DN$1000,96,FALSE)=\"\",\"No\",IF(LEFT(VLOOKUP($G398,$H$11:$DN$1000,96,FALSE),3)=\"The\",EF398,VLOOKUP(VLOOKUP($G398,$H$11:$DN$1000,96,FALSE),DeclMatrix!$A$2:$F$5,VLOOKUP('Enrollment Form'!$B398,DeclMatrix!$A$8:$B$12,2,FALSE),FALSE))))","v":""},{"$f":"IF($A398=\"\",\"\",IF(VLOOKUP($G398,$H$11:$DN$1000,101,FALSE)=\"\",\"No\",IF(LEFT(VLOOKUP($G398,$H$11:$DN$1000,101,FALSE),3)=\"The\",EG398,VLOOKUP(VLOOKUP($G398,$H$11:$DN$1000,101,FALSE),DeclMatrix!$A$2:$F$5,VLOOKUP('Enrollment Form'!$B398,DeclMatrix!$A$8:$B$12,2,FALSE),FALSE))))","v":""},{"$f":"IF($A398=\"\",\"\",IF(VLOOKUP($G398,$H$11:$DN$1000,106,FALSE)=\"\",\"No\",IF(LEFT(VLOOKUP($G398,$H$11:$DN$1000,106,FALSE),3)=\"The\",EH398,VLOOKUP(VLOOKUP($G398,$H$11:$DN$1000,106,FALSE),DeclMatrix!$A$2:$F$5,VLOOKUP('Enrollment Form'!$B398,DeclMatrix!$A$8:$B$12,2,FALSE),FALSE))))","v":""},{"$f":"IF($A398=\"\",\"\",IF(VLOOKUP($G398,$H$11:$DN$1000,111,FALSE)=\"\",\"No\",IF(LEFT(VLOOKUP($G398,$H$11:$DN$1000,111,FALSE),3)=\"The\",EI398,VLOOKUP(VLOOKUP($G398,$H$11:$DN$1000,111,FALSE),DeclMatrix!$A$2:$F$5,VLOOKUP('Enrollment Form'!$B398,DeclMatrix!$A$8:$B$12,2,FALSE),FALSE))))","v":""},"",null,"","","","","","","","","","","",""]
["",{"$nulls":5},"","",{"$nulls":18},"","","","",{"$nulls":30},"","","","",{"$nulls":60},"",{"$f":"IF($A399=\"\",\"\",IF(VLOOKUP($G399,$H$11:$DN$1000,96,FALSE)=\"\",\"No\",IF(LEFT(VLOOKUP($G399,$H$11:$DN$1000,96,FALSE),3)=\"The\",EF399,VLOOKUP(VLOOKUP($G399,$H$11:$DN$1000,96,FALSE),DeclMatrix!$A$2:$F$5,VLOOKUP('Enrollment Form'!$B399,DeclMatrix!$A$8:$B$12,2,FALSE),FALSE))))","v":""},{"$f":"IF($A399=\"\",\"\",IF(VLOOKUP($G399,$H$11:$DN$1000,101,FALSE)=\"\",\"No\",IF(LEFT(VLOOKUP($G399,$H$11:$DN$1000,101,FALSE),3)=\"The\",EG399,VLOOKUP(VLOOKUP($G399,$H$11:$DN$1000,101,FALSE),DeclMatrix!$A$2:$F$5,VLOOKUP('Enrollment Form'!$B399,DeclMatrix!$A$8:$B$12,2,FALSE),FALSE))))","v":""},{"$f":"IF($A399=\"\",\"\",IF(VLOOKUP($G399,$H$11:$DN$1000,106,FALSE)=\"\",\"No\",IF(LEFT(VLOOKUP($G399,$H$11:$DN$1000,106,FALSE),3)=\"The\",EH399,VLOOKUP(VLOOKUP($G399,$H$11:$DN$1000,106,FALSE),DeclMatrix!$A$2:$F$5,VLOOKUP('Enrollment Form'!$B399,DeclMatrix!$A$8:$B$12,2,FALSE),FALSE))))","v":""},{"$f":"IF($A399=\"\",\"\",IF(VLOOKUP($G399,$H$11:$DN$1000,111,FALSE)=\"\",\"No\",IF(LEFT(VLOOKUP($G399,$H$11:$DN$1000,111,FALSE),3)=\"The\",EI399,VLOOKUP(VLOOKUP($G399,$H$11:$DN$1000,111,FALSE),DeclMatrix!$A$2:$F$5,VLOOKUP('Enrollment Form'!$B399,DeclMatrix!$A$8:$B$12,2,FALSE),FALSE))))","v":""},"",null,"","","","","","","","","","","",""]
["",{"$nulls":5},"","",{"$nulls":18},"","","","",{"$nulls":30},"","","","",{"$nulls":60},"",{"$f":"IF($A400=\"\",\"\",IF(VLOOKUP($G400,$H$11:$DN$1000,96,FALSE)=\"\",\"No\",IF(LEFT(VLOOKUP($G400,$H$11:$DN$1000,96,FALSE),3)=\"The\",EF400,VLOOKUP(VLOOKUP($G400,$H$11:$DN$1000,96,FALSE),DeclMatrix!$A$2:$F$5,VLOOKUP('Enrollment Form'!$B400,DeclMatrix!$A$8:$B$12,2,FALSE),FALSE))))","v":""},{"$f":"IF($A400=\"\",\"\",IF(VLOOKUP($G400,$H$11:$DN$1000,101,FALSE)=\"\",\"No\",IF(LEFT(VLOOKUP($G400,$H$11:$DN$1000,101,FALSE),3)=\"The\",EG400,VLOOKUP(VLOOKUP($G400,$H$11:$DN$1000,101,FALSE),DeclMatrix!$A$2:$F$5,VLOOKUP('Enrollment Form'!$B400,DeclMatrix!$A$8:$B$12,2,FALSE),FALSE))))","v":""},{"$f":"IF($A400=\"\",\"\",IF(VLOOKUP($G400,$H$11:$DN$1000,106,FALSE)=\"\",\"No\",IF(LEFT(VLOOKUP($G400,$H$11:$DN$1000,106,FALSE),3)=\"The\",EH400,VLOOKUP(VLOOKUP($G400,$H$11:$DN$1000,106,FALSE),DeclMatrix!$A$2:$F$5,VLOOKUP('Enrollment Form'!$B400,DeclMatrix!$A$8:$B$12,2,FALSE),FALSE))))","v":""},{"$f":"IF($A400=\"\",\"\",IF(VLOOKUP($G400,$H$11:$DN$1000,111,FALSE)=\"\",\"No\",IF(LEFT(VLOOKUP($G400,$H$11:$DN$1000,111,FALSE),3)=\"The\",EI400,VLOOKUP(VLOOKUP($G400,$H$11:$DN$1000,111,FALSE),DeclMatrix!$A$2:$F$5,VLOOKUP('Enrollment Form'!$B400,DeclMatrix!$A$8:$B$12,2,FALSE),FALSE))))","v":""},"",null,"","","","","","","","","","","",""]
["",{"$nulls":5},"","",{"$nulls":18},"","","","",{"$nulls":30},"","","","",{"$nulls":60},"",{"$f":"IF($A401=\"\",\"\",IF(VLOOKUP($G401,$H$11:$DN$1000,96,FALSE)=\"\",\"No\",IF(LEFT(VLOOKUP($G401,$H$11:$DN$1000,96,FALSE),3)=\"The\",EF401,VLOOKUP(VLOOKUP($G401,$H$11:$DN$1000,96,FALSE),DeclMatrix!$A$2:$F$5,VLOOKUP('Enrollment Form'!$B401,DeclMatrix!$A$8:$B$12,2,FALSE),FALSE))))","v":""},{"$f":"IF($A401=\"\",\"\",IF(VLOOKUP($G401,$H$11:$DN$1000,101,FALSE)=\"\",\"No\",IF(LEFT(VLOOKUP($G401,$H$11:$DN$1000,101,FALSE),3)=\"The\",EG401,VLOOKUP(VLOOKUP($G401,$H$11:$DN$1000,101,FALSE),DeclMatrix!$A$2:$F$5,VLOOKUP('Enrollment Form'!$B401,DeclMatrix!$A$8:$B$12,2,FALSE),FALSE))))","v":""},{"$f":"IF($A401=\"\",\"\",IF(VLOOKUP($G401,$H$11:$DN$1000,106,FALSE)=\"\",\"No\",IF(LEFT(VLOOKUP($G401,$H$11:$DN$1000,106,FALSE),3)=\"The\",EH401,VLOOKUP(VLOOKUP($G401,$H$11:$DN$1000,106,FALSE),DeclMatrix!$A$2:$F$5,VLOOKUP('Enrollment Form'!$B401,DeclMatrix!$A$8:$B$12,2,FALSE),FALSE))))","v":""},{"$f":"IF($A401=\"\",\"\",IF(VLOOKUP($G401,$H$11:$DN$1000,111,FALSE)=\"\",\"No\",IF(LEFT(VLOOKUP($G401,$H$11:$DN$1000,111,FALSE),3)=\"The\",EI401,VLOOKUP(VLOOKUP($G401,$H$11:$DN$1000,111,FALSE),DeclMatrix!$A$2:$F$5,VLOOKUP('Enrollment Form'!$B401,DeclMatrix!$A$8:$B$12,2,FALSE),FALSE))))","v":""},"",null,"","","","","","","","","","","",""]
["",{"$nulls":5},"","",{"$nulls":18},"","","","",{"$nulls":30},"","","","",{"$nulls":60},"",{"$f":"IF($A402=\"\",\"\",IF(VLOOKUP($G402,$H$11:$DN$1000,96,FALSE)=\"\",\"No\",IF(LEFT(VLOOKUP($G402,$H$11:$DN$1000,96,FALSE),3)=\"The\",EF402,VLOOKUP(VLOOKUP($G402,$H$11:$DN$1000,96,FALSE),DeclMatrix!$A$2:$F$5,VLOOKUP('Enrollment Form'!$B402,DeclMatrix!$A$8:$B$12,2,FALSE),FALSE))))","v":""},{"$f":"IF($A402=\"\",\"\",IF(VLOOKUP($G402,$H$11:$DN$1000,101,FALSE)=\"\",\"No\",IF(LEFT(VLOOKUP($G402,$H$11:$DN$1000,101,FALSE),3)=\"The\",EG402,VLOOKUP(VLOOKUP($G402,$H$11:$DN$1000,101,FALSE),DeclMatrix!$A$2:$F$5,VLOOKUP('Enrollment Form'!$B402,DeclMatrix!$A$8:$B$12,2,FALSE),FALSE))))","v":""},{"$f":"IF($A402=\"\",\"\",IF(VLOOKUP($G402,$H$11:$DN$1000,106,FALSE)=\"\",\"No\",IF(LEFT(VLOOKUP($G402,$H$11:$DN$1000,106,FALSE),3)=\"The\",EH402,VLOOKUP(VLOOKUP($G402,$H$11:$DN$1000,106,FALSE),DeclMatrix!$A$2:$F$5,VLOOKUP('Enrollment Form'!$B402,DeclMatrix!$A$8:$B$12,2,FALSE),FALSE))))","v":""},{"$f":"IF($A402=\"\",\"\",IF(VLOOKUP($G402,$H$11:$DN$1000,111,FALSE)=\"\",\"No\",IF(LEFT(VLOOKUP($G402,$H$11:$DN$1000,111,FALSE),3)=\"The\",EI402,VLOOKUP(VLOOKUP($G402,$H$11:$DN$1000,111,FALSE),DeclMatrix!$A$2:$F$5,VLOOKUP('Enrollment Form'!$B402,DeclMatrix!$A$8:$B$12,2,FALSE),FALSE))))","v":""},"",null,"","","","","","","","","","","",""]
["",{"$nulls":5},"","",{"$nulls":18},"","","","",{"$nulls":30},"","","","",{"$nulls":60},"",{"$f":"IF($A403=\"\",\"\",IF(VLOOKUP($G403,$H$11:$DN$1000,96,FALSE)=\"\",\"No\",IF(LEFT(VLOOKUP($G403,$H$11:$DN$1000,96,FALSE),3)=\"The\",EF403,VLOOKUP(VLOOKUP($G403,$H$11:$DN$1000,96,FALSE),DeclMatrix!$A$2:$F$5,VLOOKUP('Enrollment Form'!$B403,DeclMatrix!$A$8:$B$12,2,FALSE),FALSE))))","v":""},{"$f":"IF($A403=\"\",\"\",IF(VLOOKUP($G403,$H$11:$DN$1000,101,FALSE)=\"\",\"No\",IF(LEFT(VLOOKUP($G403,$H$11:$DN$1000,101,FALSE),3)=\"The\",EG403,VLOOKUP(VLOOKUP($G403,$H$11:$DN$1000,101,FALSE),DeclMatrix!$A$2:$F$5,VLOOKUP('Enrollment Form'!$B403,DeclMatrix!$A$8:$B$12,2,FALSE),FALSE))))","v":""},{"$f":"IF($A403=\"\",\"\",IF(VLOOKUP($G403,$H$11:$DN$1000,106,FALSE)=\"\",\"No\",IF(LEFT(VLOOKUP($G403,$H$11:$DN$1000,106,FALSE),3)=\"The\",EH403,VLOOKUP(VLOOKUP($G403,$H$11:$DN$1000,106,FALSE),DeclMatrix!$A$2:$F$5,VLOOKUP('Enrollment Form'!$B403,DeclMatrix!$A$8:$B$12,2,FALSE),FALSE))))","v":""},{"$f":"IF($A403=\"\",\"\",IF(VLOOKUP($G403,$H$11:$DN$1000,111,FALSE)=\"\",\"No\",IF(LEFT(VLOOKUP($G403,$H$11:$DN$1000,111,FALSE),3)=\"The\",EI403,VLOOKUP(VLOOKUP($G403,$H$11:$DN$1000,111,FALSE),DeclMatrix!$A$2:$F$5,VLOOKUP('Enrollment Form'!$B403,DeclMatrix!$A$8:$B$12,2,FALSE),FALSE))))","v":""},"",null,"","","","","","","","","","","",""]
["",{"$nulls":5},"","",{"$nulls":18},"","","","",{"$nulls":30},"","","","",{"$nulls":60},"",{"$f":"IF($A404=\"\",\"\",IF(VLOOKUP($G404,$H$11:$DN$1000,96,FALSE)=\"\",\"No\",IF(LEFT(VLOOKUP($G404,$H$11:$DN$1000,96,FALSE),3)=\"The\",EF404,VLOOKUP(VLOOKUP($G404,$H$11:$DN$1000,96,FALSE),DeclMatrix!$A$2:$F$5,VLOOKUP('Enrollment Form'!$B404,DeclMatrix!$A$8:$B$12,2,FALSE),FALSE))))","v":""},{"$f":"IF($A404=\"\",\"\",IF(VLOOKUP($G404,$H$11:$DN$1000,101,FALSE)=\"\",\"No\",IF(LEFT(VLOOKUP($G404,$H$11:$DN$1000,101,FALSE),3)=\"The\",EG404,VLOOKUP(VLOOKUP($G404,$H$11:$DN$1000,101,FALSE),DeclMatrix!$A$2:$F$5,VLOOKUP('Enrollment Form'!$B404,DeclMatrix!$A$8:$B$12,2,FALSE),FALSE))))","v":""},{"$f":"IF($A404=\"\",\"\",IF(VLOOKUP($G404,$H$11:$DN$1000,106,FALSE)=\"\",\"No\",IF(LEFT(VLOOKUP($G404,$H$11:$DN$1000,106,FALSE),3)=\"The\",EH404,VLOOKUP(VLOOKUP($G404,$H$11:$DN$1000,106,FALSE),DeclMatrix!$A$2:$F$5,VLOOKUP('Enrollment Form'!$B404,DeclMatrix!$A$8:$B$12,2,FALSE),FALSE))))","v":""},{"$f":"IF($A404=\"\",\"\",IF(VLOOKUP($G404,$H$11:$DN$1000,111,FALSE)=\"\",\"No\",IF(LEFT(VLOOKUP($G404,$H$11:$DN$1000,111,FALSE),3)=\"The\",EI404,VLOOKUP(VLOOKUP($G404,$H$11:$DN$1000,111,FALSE),DeclMatrix!$A$2:$F$5,VLOOKUP('Enrollment Form'!$B404,DeclMatrix!$A$8:$B$12,2,FALSE),FALSE))))","v":""},"",null,"","","","","","","","","","","",""]
["",{"$nulls":5},"","",{"$nulls":18},"","","","",{"$nulls":30},"","","","",{"$nulls":60},"",{"$f":"IF($A405=\"\",\"\",IF(VLOOKUP($G405,$H$11:$DN$1000,96,FALSE)=\"\",\"No\",IF(LEFT(VLOOKUP($G405,$H$11:$DN$1000,96,FALSE),3)=\"The\",EF405,VLOOKUP(VLOOKUP($G405,$H$11:$DN$1000,96,FALSE),DeclMatrix!$A$2:$F$5,VLOOKUP('Enrollment Form'!$B405,DeclMatrix!$A$8:$B$12,2,FALSE),FALSE))))","v":""},{"$f":"IF($A405=\"\",\"\",IF(VLOOKUP($G405,$H$11:$DN$1000,101,FALSE)=\"\",\"No\",IF(LEFT(VLOOKUP($G405,$H$11:$DN$1000,101,FALSE),3)=\"The\",EG405,VLOOKUP(VLOOKUP($G405,$H$11:$DN$1000,101,FALSE),DeclMatrix!$A$2:$F$5,VLOOKUP('Enrollment Form'!$B405,DeclMatrix!$A$8:$B$12,2,FALSE),FALSE))))","v":""},{"$f":"IF($A405=\"\",\"\",IF(VLOOKUP($G405,$H$11:$DN$1000,106,FALSE)=\"\",\"No\",IF(LEFT(VLOOKUP($G405,$H$11:$DN$1000,106,FALSE),3)=\"The\",EH405,VLOOKUP(VLOOKUP($G405,$H$11:$DN$1000,106,FALSE),DeclMatrix!$A$2:$F$5,VLOOKUP('Enrollment Form'!$B405,DeclMatrix!$A$8:$B$12,2,FALSE),FALSE))))","v":""},{"$f":"IF($A405=\"\",\"\",IF(VLOOKUP($G405,$H$11:$DN$1000,111,FALSE)=\"\",\"No\",IF(LEFT(VLOOKUP($G405,$H$11:$DN$1000,111,FALSE),3)=\"The\",EI405,VLOOKUP(VLOOKUP($G405,$H$11:$DN$1000,111,FALSE),DeclMatrix!$A$2:$F$5,VLOOKUP('Enrollment Form'!$B405,DeclMatrix!$A$8:$B$12,2,FALSE),FALSE))))","v":""},"",null,"","","","","","","","","","","",""]
["",{"$nulls":5},"","",{"$nulls":18},"","","","",{"$nulls":30},"","","","",{"$nulls":60},"",{"$f":"IF($A406=\"\",\"\",IF(VLOOKUP($G406,$H$11:$DN$1000,96,FALSE)=\"\",\"No\",IF(LEFT(VLOOKUP($G406,$H$11:$DN$1000,96,FALSE),3)=\"The\",EF406,VLOOKUP(VLOOKUP($G406,$H$11:$DN$1000,96,FALSE),DeclMatrix!$A$2:$F$5,VLOOKUP('Enrollment Form'!$B406,DeclMatrix!$A$8:$B$12,2,FALSE),FALSE))))","v":""},{"$f":"IF($A406=\"\",\"\",IF(VLOOKUP($G406,$H$11:$DN$1000,101,FALSE)=\"\",\"No\",IF(LEFT(VLOOKUP($G406,$H$11:$DN$1000,101,FALSE),3)=\"The\",EG406,VLOOKUP(VLOOKUP($G406,$H$11:$DN$1000,101,FALSE),DeclMatrix!$A$2:$F$5,VLOOKUP('Enrollment Form'!$B406,DeclMatrix!$A$8:$B$12,2,FALSE),FALSE))))","v":""},{"$f":"IF($A406=\"\",\"\",IF(VLOOKUP($G406,$H$11:$DN$1000,106,FALSE)=\"\",\"No\",IF(LEFT(VLOOKUP($G406,$H$11:$DN$1000,106,FALSE),3)=\"The\",EH406,VLOOKUP(VLOOKUP($G406,$H$11:$DN$1000,106,FALSE),DeclMatrix!$A$2:$F$5,VLOOKUP('Enrollment Form'!$B406,DeclMatrix!$A$8:$B$12,2,FALSE),FALSE))))","v":""},{"$f":"IF($A406=\"\",\"\",IF(VLOOKUP($G406,$H$11:$DN$1000,111,FALSE)=\"\",\"No\",IF(LEFT(VLOOKUP($G406,$H$11:$DN$1000,111,FALSE),3)=\"The\",EI406,VLOOKUP(VLOOKUP($G406,$H$11:$DN$1000,111,FALSE),DeclMatrix!$A$2:$F$5,VLOOKUP('Enrollment Form'!$B406,DeclMatrix!$A$8:$B$12,2,FALSE),FALSE))))","v":""},"",null,"","","","","","","","","","","",""]
["",{"$nulls":5},"","",{"$nulls":18},"","","","",{"$nulls":30},"","","","",{"$nulls":60},"",{"$f":"IF($A407=\"\",\"\",IF(VLOOKUP($G407,$H$11:$DN$1000,96,FALSE)=\"\",\"No\",IF(LEFT(VLOOKUP($G407,$H$11:$DN$1000,96,FALSE),3)=\"The\",EF407,VLOOKUP(VLOOKUP($G407,$H$11:$DN$1000,96,FALSE),DeclMatrix!$A$2:$F$5,VLOOKUP('Enrollment Form'!$B407,DeclMatrix!$A$8:$B$12,2,FALSE),FALSE))))","v":""},{"$f":"IF($A407=\"\",\"\",IF(VLOOKUP($G407,$H$11:$DN$1000,101,FALSE)=\"\",\"No\",IF(LEFT(VLOOKUP($G407,$H$11:$DN$1000,101,FALSE),3)=\"The\",EG407,VLOOKUP(VLOOKUP($G407,$H$11:$DN$1000,101,FALSE),DeclMatrix!$A$2:$F$5,VLOOKUP('Enrollment Form'!$B407,DeclMatrix!$A$8:$B$12,2,FALSE),FALSE))))","v":""},{"$f":"IF($A407=\"\",\"\",IF(VLOOKUP($G407,$H$11:$DN$1000,106,FALSE)=\"\",\"No\",IF(LEFT(VLOOKUP($G407,$H$11:$DN$1000,106,FALSE),3)=\"The\",EH407,VLOOKUP(VLOOKUP($G407,$H$11:$DN$1000,106,FALSE),DeclMatrix!$A$2:$F$5,VLOOKUP('Enrollment Form'!$B407,DeclMatrix!$A$8:$B$12,2,FALSE),FALSE))))","v":""},{"$f":"IF($A407=\"\",\"\",IF(VLOOKUP($G407,$H$11:$DN$1000,111,FALSE)=\"\",\"No\",IF(LEFT(VLOOKUP($G407,$H$11:$DN$1000,111,FALSE),3)=\"The\",EI407,VLOOKUP(VLOOKUP($G407,$H$11:$DN$1000,111,FALSE),DeclMatrix!$A$2:$F$5,VLOOKUP('Enrollment Form'!$B407,DeclMatrix!$A$8:$B$12,2,FALSE),FALSE))))","v":""},"",null,"","","","","","","","","","","",""]
["",{"$nulls":5},"","",{"$nulls":18},"","","","",{"$nulls":30},"","","","",{"$nulls":60},"",{"$f":"IF($A408=\"\",\"\",IF(VLOOKUP($G408,$H$11:$DN$1000,96,FALSE)=\"\",\"No\",IF(LEFT(VLOOKUP($G408,$H$11:$DN$1000,96,FALSE),3)=\"The\",EF408,VLOOKUP(VLOOKUP($G408,$H$11:$DN$1000,96,FALSE),DeclMatrix!$A$2:$F$5,VLOOKUP('Enrollment Form'!$B408,DeclMatrix!$A$8:$B$12,2,FALSE),FALSE))))","v":""},{"$f":"IF($A408=\"\",\"\",IF(VLOOKUP($G408,$H$11:$DN$1000,101,FALSE)=\"\",\"No\",IF(LEFT(VLOOKUP($G408,$H$11:$DN$1000,101,FALSE),3)=\"The\",EG408,VLOOKUP(VLOOKUP($G408,$H$11:$DN$1000,101,FALSE),DeclMatrix!$A$2:$F$5,VLOOKUP('Enrollment Form'!$B408,DeclMatrix!$A$8:$B$12,2,FALSE),FALSE))))","v":""},{"$f":"IF($A408=\"\",\"\",IF(VLOOKUP($G408,$H$11:$DN$1000,106,FALSE)=\"\",\"No\",IF(LEFT(VLOOKUP($G408,$H$11:$DN$1000,106,FALSE),3)=\"The\",EH408,VLOOKUP(VLOOKUP($G408,$H$11:$DN$1000,106,FALSE),DeclMatrix!$A$2:$F$5,VLOOKUP('Enrollment Form'!$B408,DeclMatrix!$A$8:$B$12,2,FALSE),FALSE))))","v":""},{"$f":"IF($A408=\"\",\"\",IF(VLOOKUP($G408,$H$11:$DN$1000,111,FALSE)=\"\",\"No\",IF(LEFT(VLOOKUP($G408,$H$11:$DN$1000,111,FALSE),3)=\"The\",EI408,VLOOKUP(VLOOKUP($G408,$H$11:$DN$1000,111,FALSE),DeclMatrix!$A$2:$F$5,VLOOKUP('Enrollment Form'!$B408,DeclMatrix!$A$8:$B$12,2,FALSE),FALSE))))","v":""},"",null,"","","","","","","","","","","",""]
["",{"$nulls":5},"","",{"$nulls":18},"","","","",{"$nulls":30},"","","","",{"$nulls":60},"",{"$f":"IF($A409=\"\",\"\",IF(VLOOKUP($G409,$H$11:$DN$1000,96,FALSE)=\"\",\"No\",IF(LEFT(VLOOKUP($G409,$H$11:$DN$1000,96,FALSE),3)=\"The\",EF409,VLOOKUP(VLOOKUP($G409,$H$11:$DN$1000,96,FALSE),DeclMatrix!$A$2:$F$5,VLOOKUP('Enrollment Form'!$B409,DeclMatrix!$A$8:$B$12,2,FALSE),FALSE))))","v":""},{"$f":"IF($A409=\"\",\"\",IF(VLOOKUP($G409,$H$11:$DN$1000,101,FALSE)=\"\",\"No\",IF(LEFT(VLOOKUP($G409,$H$11:$DN$1000,101,FALSE),3)=\"The\",EG409,VLOOKUP(VLOOKUP($G409,$H$11:$DN$1000,101,FALSE),DeclMatrix!$A$2:$F$5,VLOOKUP('Enrollment Form'!$B409,DeclMatrix!$A$8:$B$12,2,FALSE),FALSE))))","v":""},{"$f":"IF($A409=\"\",\"\",IF(VLOOKUP($G409,$H$11:$DN$1000,106,FALSE)=\"\",\"No\",IF(LEFT(VLOOKUP($G409,$H$11:$DN$1000,106,FALSE),3)=\"The\",EH409,VLOOKUP(VLOOKUP($G409,$H$11:$DN$1000,106,FALSE),DeclMatrix!$A$2:$F$5,VLOOKUP('Enrollment Form'!$B409,DeclMatrix!$A$8:$B$12,2,FALSE),FALSE))))","v":""},{"$f":"IF($A409=\"\",\"\",IF(VLOOKUP($G409,$H$11:$DN$1000,111,FALSE)=\"\",\"No\",IF(LEFT(VLOOKUP($G409,$H$11:$DN$1000,111,FALSE),3)=\"The\",EI409,VLOOKUP(VLOOKUP($G409,$H$11:$DN$1000,111,FALSE),DeclMatrix!$A$2:$F$5,VLOOKUP('Enrollment Form'!$B409,DeclMatrix!$A$8:$B$12,2,FALSE),FALSE))))","v":""},"",null,"","","","","","","","","","","",""]
["",{"$nulls":5},"","",{"$nulls":18},"","","","",{"$nulls":30},"","","","",{"$nulls":60},"",{"$f":"IF($A410=\"\",\"\",IF(VLOOKUP($G410,$H$11:$DN$1000,96,FALSE)=\"\",\"No\",IF(LEFT(VLOOKUP($G410,$H$11:$DN$1000,96,FALSE),3)=\"The\",EF410,VLOOKUP(VLOOKUP($G410,$H$11:$DN$1000,96,FALSE),DeclMatrix!$A$2:$F$5,VLOOKUP('Enrollment Form'!$B410,DeclMatrix!$A$8:$B$12,2,FALSE),FALSE))))","v":""},{"$f":"IF($A410=\"\",\"\",IF(VLOOKUP($G410,$H$11:$DN$1000,101,FALSE)=\"\",\"No\",IF(LEFT(VLOOKUP($G410,$H$11:$DN$1000,101,FALSE),3)=\"The\",EG410,VLOOKUP(VLOOKUP($G410,$H$11:$DN$1000,101,FALSE),DeclMatrix!$A$2:$F$5,VLOOKUP('Enrollment Form'!$B410,DeclMatrix!$A$8:$B$12,2,FALSE),FALSE))))","v":""},{"$f":"IF($A410=\"\",\"\",IF(VLOOKUP($G410,$H$11:$DN$1000,106,FALSE)=\"\",\"No\",IF(LEFT(VLOOKUP($G410,$H$11:$DN$1000,106,FALSE),3)=\"The\",EH410,VLOOKUP(VLOOKUP($G410,$H$11:$DN$1000,106,FALSE),DeclMatrix!$A$2:$F$5,VLOOKUP('Enrollment Form'!$B410,DeclMatrix!$A$8:$B$12,2,FALSE),FALSE))))","v":""},{"$f":"IF($A410=\"\",\"\",IF(VLOOKUP($G410,$H$11:$DN$1000,111,FALSE)=\"\",\"No\",IF(LEFT(VLOOKUP($G410,$H$11:$DN$1000,111,FALSE),3)=\"The\",EI410,VLOOKUP(VLOOKUP($G410,$H$11:$DN$1000,111,FALSE),DeclMatrix!$A$2:$F$5,VLOOKUP('Enrollment Form'!$B410,DeclMatrix!$A$8:$B$12,2,FALSE),FALSE))))","v":""},"",null,"","","","","","","","","","","",""]
["",{"$nulls":5},"","",{"$nulls":18},"","","","",{"$nulls":30},"","","","",{"$nulls":60},"",{"$f":"IF($A411=\"\",\"\",IF(VLOOKUP($G411,$H$11:$DN$1000,96,FALSE)=\"\",\"No\",IF(LEFT(VLOOKUP($G411,$H$11:$DN$1000,96,FALSE),3)=\"The\",EF411,VLOOKUP(VLOOKUP($G411,$H$11:$DN$1000,96,FALSE),DeclMatrix!$A$2:$F$5,VLOOKUP('Enrollment Form'!$B411,DeclMatrix!$A$8:$B$12,2,FALSE),FALSE))))","v":""},{"$f":"IF($A411=\"\",\"\",IF(VLOOKUP($G411,$H$11:$DN$1000,101,FALSE)=\"\",\"No\",IF(LEFT(VLOOKUP($G411,$H$11:$DN$1000,101,FALSE),3)=\"The\",EG411,VLOOKUP(VLOOKUP($G411,$H$11:$DN$1000,101,FALSE),DeclMatrix!$A$2:$F$5,VLOOKUP('Enrollment Form'!$B411,DeclMatrix!$A$8:$B$12,2,FALSE),FALSE))))","v":""},{"$f":"IF($A411=\"\",\"\",IF(VLOOKUP($G411,$H$11:$DN$1000,106,FALSE)=\"\",\"No\",IF(LEFT(VLOOKUP($G411,$H$11:$DN$1000,106,FALSE),3)=\"The\",EH411,VLOOKUP(VLOOKUP($G411,$H$11:$DN$1000,106,FALSE),DeclMatrix!$A$2:$F$5,VLOOKUP('Enrollment Form'!$B411,DeclMatrix!$A$8:$B$12,2,FALSE),FALSE))))","v":""},{"$f":"IF($A411=\"\",\"\",IF(VLOOKUP($G411,$H$11:$DN$1000,111,FALSE)=\"\",\"No\",IF(LEFT(VLOOKUP($G411,$H$11:$DN$1000,111,FALSE),3)=\"The\",EI411,VLOOKUP(VLOOKUP($G411,$H$11:$DN$1000,111,FALSE),DeclMatrix!$A$2:$F$5,VLOOKUP('Enrollment Form'!$B411,DeclMatrix!$A$8:$B$12,2,FALSE),FALSE))))","v":""},"",null,"","","","","","","","","","","",""]
["",{"$nulls":5},"","",{"$nulls":18},"","","","",{"$nulls":30},"","","","",{"$nulls":60},"",{"$f":"IF($A412=\"\",\"\",IF(VLOOKUP($G412,$H$11:$DN$1000,96,FALSE)=\"\",\"No\",IF(LEFT(VLOOKUP($G412,$H$11:$DN$1000,96,FALSE),3)=\"The\",EF412,VLOOKUP(VLOOKUP($G412,$H$11:$DN$1000,96,FALSE),DeclMatrix!$A$2:$F$5,VLOOKUP('Enrollment Form'!$B412,DeclMatrix!$A$8:$B$12,2,FALSE),FALSE))))","v":""},{"$f":"IF($A412=\"\",\"\",IF(VLOOKUP($G412,$H$11:$DN$1000,101,FALSE)=\"\",\"No\",IF(LEFT(VLOOKUP($G412,$H$11:$DN$1000,101,FALSE),3)=\"The\",EG412,VLOOKUP(VLOOKUP($G412,$H$11:$DN$1000,101,FALSE),DeclMatrix!$A$2:$F$5,VLOOKUP('Enrollment Form'!$B412,DeclMatrix!$A$8:$B$12,2,FALSE),FALSE))))","v":""},{"$f":"IF($A412=\"\",\"\",IF(VLOOKUP($G412,$H$11:$DN$1000,106,FALSE)=\"\",\"No\",IF(LEFT(VLOOKUP($G412,$H$11:$DN$1000,106,FALSE),3)=\"The\",EH412,VLOOKUP(VLOOKUP($G412,$H$11:$DN$1000,106,FALSE),DeclMatrix!$A$2:$F$5,VLOOKUP('Enrollment Form'!$B412,DeclMatrix!$A$8:$B$12,2,FALSE),FALSE))))","v":""},{"$f":"IF($A412=\"\",\"\",IF(VLOOKUP($G412,$H$11:$DN$1000,111,FALSE)=\"\",\"No\",IF(LEFT(VLOOKUP($G412,$H$11:$DN$1000,111,FALSE),3)=\"The\",EI412,VLOOKUP(VLOOKUP($G412,$H$11:$DN$1000,111,FALSE),DeclMatrix!$A$2:$F$5,VLOOKUP('Enrollment Form'!$B412,DeclMatrix!$A$8:$B$12,2,FALSE),FALSE))))","v":""},"",null,"","","","","","","","","","","",""]
["",{"$nulls":5},"","",{"$nulls":18},"","","","",{"$nulls":30},"","","","",{"$nulls":60},"",{"$f":"IF($A413=\"\",\"\",IF(VLOOKUP($G413,$H$11:$DN$1000,96,FALSE)=\"\",\"No\",IF(LEFT(VLOOKUP($G413,$H$11:$DN$1000,96,FALSE),3)=\"The\",EF413,VLOOKUP(VLOOKUP($G413,$H$11:$DN$1000,96,FALSE),DeclMatrix!$A$2:$F$5,VLOOKUP('Enrollment Form'!$B413,DeclMatrix!$A$8:$B$12,2,FALSE),FALSE))))","v":""},{"$f":"IF($A413=\"\",\"\",IF(VLOOKUP($G413,$H$11:$DN$1000,101,FALSE)=\"\",\"No\",IF(LEFT(VLOOKUP($G413,$H$11:$DN$1000,101,FALSE),3)=\"The\",EG413,VLOOKUP(VLOOKUP($G413,$H$11:$DN$1000,101,FALSE),DeclMatrix!$A$2:$F$5,VLOOKUP('Enrollment Form'!$B413,DeclMatrix!$A$8:$B$12,2,FALSE),FALSE))))","v":""},{"$f":"IF($A413=\"\",\"\",IF(VLOOKUP($G413,$H$11:$DN$1000,106,FALSE)=\"\",\"No\",IF(LEFT(VLOOKUP($G413,$H$11:$DN$1000,106,FALSE),3)=\"The\",EH413,VLOOKUP(VLOOKUP($G413,$H$11:$DN$1000,106,FALSE),DeclMatrix!$A$2:$F$5,VLOOKUP('Enrollment Form'!$B413,DeclMatrix!$A$8:$B$12,2,FALSE),FALSE))))","v":""},{"$f":"IF($A413=\"\",\"\",IF(VLOOKUP($G413,$H$11:$DN$1000,111,FALSE)=\"\",\"No\",IF(LEFT(VLOOKUP($G413,$H$11:$DN$1000,111,FALSE),3)=\"The\",EI413,VLOOKUP(VLOOKUP($G413,$H$11:$DN$1000,111,FALSE),DeclMatrix!$A$2:$F$5,VLOOKUP('Enrollment Form'!$B413,DeclMatrix!$A$8:$B$12,2,FALSE),FALSE))))","v":""},"",null,"","","","","","","","","","","",""]
["",{"$nulls":5},"","",{"$nulls":18},"","","","",{"$nulls":30},"","","","",{"$nulls":60},"",{"$f":"IF($A414=\"\",\"\",IF(VLOOKUP($G414,$H$11:$DN$1000,96,FALSE)=\"\",\"No\",IF(LEFT(VLOOKUP($G414,$H$11:$DN$1000,96,FALSE),3)=\"The\",EF414,VLOOKUP(VLOOKUP($G414,$H$11:$DN$1000,96,FALSE),DeclMatrix!$A$2:$F$5,VLOOKUP('Enrollment Form'!$B414,DeclMatrix!$A$8:$B$12,2,FALSE),FALSE))))","v":""},{"$f":"IF($A414=\"\",\"\",IF(VLOOKUP($G414,$H$11:$DN$1000,101,FALSE)=\"\",\"No\",IF(LEFT(VLOOKUP($G414,$H$11:$DN$1000,101,FALSE),3)=\"The\",EG414,VLOOKUP(VLOOKUP($G414,$H$11:$DN$1000,101,FALSE),DeclMatrix!$A$2:$F$5,VLOOKUP('Enrollment Form'!$B414,DeclMatrix!$A$8:$B$12,2,FALSE),FALSE))))","v":""},{"$f":"IF($A414=\"\",\"\",IF(VLOOKUP($G414,$H$11:$DN$1000,106,FALSE)=\"\",\"No\",IF(LEFT(VLOOKUP($G414,$H$11:$DN$1000,106,FALSE),3)=\"The\",EH414,VLOOKUP(VLOOKUP($G414,$H$11:$DN$1000,106,FALSE),DeclMatrix!$A$2:$F$5,VLOOKUP('Enrollment Form'!$B414,DeclMatrix!$A$8:$B$12,2,FALSE),FALSE))))","v":""},{"$f":"IF($A414=\"\",\"\",IF(VLOOKUP($G414,$H$11:$DN$1000,111,FALSE)=\"\",\"No\",IF(LEFT(VLOOKUP($G414,$H$11:$DN$1000,111,FALSE),3)=\"The\",EI414,VLOOKUP(VLOOKUP($G414,$H$11:$DN$1000,111,FALSE),DeclMatrix!$A$2:$F$5,VLOOKUP('Enrollment Form'!$B414,DeclMatrix!$A$8:$B$12,2,FALSE),FALSE))))","v":""},"",null,"","","","","","","","","","","",""]
["",{"$nulls":5},"","",{"$nulls":18},"","","","",{"$nulls":30},"","","","",{"$nulls":60},"",{"$f":"IF($A415=\"\",\"\",IF(VLOOKUP($G415,$H$11:$DN$1000,96,FALSE)=\"\",\"No\",IF(LEFT(VLOOKUP($G415,$H$11:$DN$1000,96,FALSE),3)=\"The\",EF415,VLOOKUP(VLOOKUP($G415,$H$11:$DN$1000,96,FALSE),DeclMatrix!$A$2:$F$5,VLOOKUP('Enrollment Form'!$B415,DeclMatrix!$A$8:$B$12,2,FALSE),FALSE))))","v":""},{"$f":"IF($A415=\"\",\"\",IF(VLOOKUP($G415,$H$11:$DN$1000,101,FALSE)=\"\",\"No\",IF(LEFT(VLOOKUP($G415,$H$11:$DN$1000,101,FALSE),3)=\"The\",EG415,VLOOKUP(VLOOKUP($G415,$H$11:$DN$1000,101,FALSE),DeclMatrix!$A$2:$F$5,VLOOKUP('Enrollment Form'!$B415,DeclMatrix!$A$8:$B$12,2,FALSE),FALSE))))","v":""},{"$f":"IF($A415=\"\",\"\",IF(VLOOKUP($G415,$H$11:$DN$1000,106,FALSE)=\"\",\"No\",IF(LEFT(VLOOKUP($G415,$H$11:$DN$1000,106,FALSE),3)=\"The\",EH415,VLOOKUP(VLOOKUP($G415,$H$11:$DN$1000,106,FALSE),DeclMatrix!$A$2:$F$5,VLOOKUP('Enrollment Form'!$B415,DeclMatrix!$A$8:$B$12,2,FALSE),FALSE))))","v":""},{"$f":"IF($A415=\"\",\"\",IF(VLOOKUP($G415,$H$11:$DN$1000,111,FALSE)=\"\",\"No\",IF(LEFT(VLOOKUP($G415,$H$11:$DN$1000,111,FALSE),3)=\"The\",EI415,VLOOKUP(VLOOKUP($G415,$H$11:$DN$1000,111,FALSE),DeclMatrix!$A$2:$F$5,VLOOKUP('Enrollment Form'!$B415,DeclMatrix!$A$8:$B$12,2,FALSE),FALSE))))","v":""},"",null,"","","","","","","","","","","",""]
["",{"$nulls":5},"","",{"$nulls":18},"","","","",{"$nulls":30},"","","","",{"$nulls":60},"",{"$f":"IF($A416=\"\",\"\",IF(VLOOKUP($G416,$H$11:$DN$1000,96,FALSE)=\"\",\"No\",IF(LEFT(VLOOKUP($G416,$H$11:$DN$1000,96,FALSE),3)=\"The\",EF416,VLOOKUP(VLOOKUP($G416,$H$11:$DN$1000,96,FALSE),DeclMatrix!$A$2:$F$5,VLOOKUP('Enrollment Form'!$B416,DeclMatrix!$A$8:$B$12,2,FALSE),FALSE))))","v":""},{"$f":"IF($A416=\"\",\"\",IF(VLOOKUP($G416,$H$11:$DN$1000,101,FALSE)=\"\",\"No\",IF(LEFT(VLOOKUP($G416,$H$11:$DN$1000,101,FALSE),3)=\"The\",EG416,VLOOKUP(VLOOKUP($G416,$H$11:$DN$1000,101,FALSE),DeclMatrix!$A$2:$F$5,VLOOKUP('Enrollment Form'!$B416,DeclMatrix!$A$8:$B$12,2,FALSE),FALSE))))","v":""},{"$f":"IF($A416=\"\",\"\",IF(VLOOKUP($G416,$H$11:$DN$1000,106,FALSE)=\"\",\"No\",IF(LEFT(VLOOKUP($G416,$H$11:$DN$1000,106,FALSE),3)=\"The\",EH416,VLOOKUP(VLOOKUP($G416,$H$11:$DN$1000,106,FALSE),DeclMatrix!$A$2:$F$5,VLOOKUP('Enrollment Form'!$B416,DeclMatrix!$A$8:$B$12,2,FALSE),FALSE))))","v":""},{"$f":"IF($A416=\"\",\"\",IF(VLOOKUP($G416,$H$11:$DN$1000,111,FALSE)=\"\",\"No\",IF(LEFT(VLOOKUP($G416,$H$11:$DN$1000,111,FALSE),3)=\"The\",EI416,VLOOKUP(VLOOKUP($G416,$H$11:$DN$1000,111,FALSE),DeclMatrix!$A$2:$F$5,VLOOKUP('Enrollment Form'!$B416,DeclMatrix!$A$8:$B$12,2,FALSE),FALSE))))","v":""},"",null,"","","","","","","","","","","",""]
["",{"$nulls":5},"","",{"$nulls":18},"","","","",{"$nulls":30},"","","","",{"$nulls":60},"",{"$f":"IF($A417=\"\",\"\",IF(VLOOKUP($G417,$H$11:$DN$1000,96,FALSE)=\"\",\"No\",IF(LEFT(VLOOKUP($G417,$H$11:$DN$1000,96,FALSE),3)=\"The\",EF417,VLOOKUP(VLOOKUP($G417,$H$11:$DN$1000,96,FALSE),DeclMatrix!$A$2:$F$5,VLOOKUP('Enrollment Form'!$B417,DeclMatrix!$A$8:$B$12,2,FALSE),FALSE))))","v":""},{"$f":"IF($A417=\"\",\"\",IF(VLOOKUP($G417,$H$11:$DN$1000,101,FALSE)=\"\",\"No\",IF(LEFT(VLOOKUP($G417,$H$11:$DN$1000,101,FALSE),3)=\"The\",EG417,VLOOKUP(VLOOKUP($G417,$H$11:$DN$1000,101,FALSE),DeclMatrix!$A$2:$F$5,VLOOKUP('Enrollment Form'!$B417,DeclMatrix!$A$8:$B$12,2,FALSE),FALSE))))","v":""},{"$f":"IF($A417=\"\",\"\",IF(VLOOKUP($G417,$H$11:$DN$1000,106,FALSE)=\"\",\"No\",IF(LEFT(VLOOKUP($G417,$H$11:$DN$1000,106,FALSE),3)=\"The\",EH417,VLOOKUP(VLOOKUP($G417,$H$11:$DN$1000,106,FALSE),DeclMatrix!$A$2:$F$5,VLOOKUP('Enrollment Form'!$B417,DeclMatrix!$A$8:$B$12,2,FALSE),FALSE))))","v":""},{"$f":"IF($A417=\"\",\"\",IF(VLOOKUP($G417,$H$11:$DN$1000,111,FALSE)=\"\",\"No\",IF(LEFT(VLOOKUP($G417,$H$11:$DN$1000,111,FALSE),3)=\"The\",EI417,VLOOKUP(VLOOKUP($G417,$H$11:$DN$1000,111,FALSE),DeclMatrix!$A$2:$F$5,VLOOKUP('Enrollment Form'!$B417,DeclMatrix!$A$8:$B$12,2,FALSE),FALSE))))","v":""},"",null,"","","","","","","","","","","",""]
["",{"$nulls":5},"","",{"$nulls":18},"","","","",{"$nulls":30},"","","","",{"$nulls":60},"",{"$f":"IF($A418=\"\",\"\",IF(VLOOKUP($G418,$H$11:$DN$1000,96,FALSE)=\"\",\"No\",IF(LEFT(VLOOKUP($G418,$H$11:$DN$1000,96,FALSE),3)=\"The\",EF418,VLOOKUP(VLOOKUP($G418,$H$11:$DN$1000,96,FALSE),DeclMatrix!$A$2:$F$5,VLOOKUP('Enrollment Form'!$B418,DeclMatrix!$A$8:$B$12,2,FALSE),FALSE))))","v":""},{"$f":"IF($A418=\"\",\"\",IF(VLOOKUP($G418,$H$11:$DN$1000,101,FALSE)=\"\",\"No\",IF(LEFT(VLOOKUP($G418,$H$11:$DN$1000,101,FALSE),3)=\"The\",EG418,VLOOKUP(VLOOKUP($G418,$H$11:$DN$1000,101,FALSE),DeclMatrix!$A$2:$F$5,VLOOKUP('Enrollment Form'!$B418,DeclMatrix!$A$8:$B$12,2,FALSE),FALSE))))","v":""},{"$f":"IF($A418=\"\",\"\",IF(VLOOKUP($G418,$H$11:$DN$1000,106,FALSE)=\"\",\"No\",IF(LEFT(VLOOKUP($G418,$H$11:$DN$1000,106,FALSE),3)=\"The\",EH418,VLOOKUP(VLOOKUP($G418,$H$11:$DN$1000,106,FALSE),DeclMatrix!$A$2:$F$5,VLOOKUP('Enrollment Form'!$B418,DeclMatrix!$A$8:$B$12,2,FALSE),FALSE))))","v":""},{"$f":"IF($A418=\"\",\"\",IF(VLOOKUP($G418,$H$11:$DN$1000,111,FALSE)=\"\",\"No\",IF(LEFT(VLOOKUP($G418,$H$11:$DN$1000,111,FALSE),3)=\"The\",EI418,VLOOKUP(VLOOKUP($G418,$H$11:$DN$1000,111,FALSE),DeclMatrix!$A$2:$F$5,VLOOKUP('Enrollment Form'!$B418,DeclMatrix!$A$8:$B$12,2,FALSE),FALSE))))","v":""},"",null,"","","","","","","","","","","",""]
["",{"$nulls":5},"","",{"$nulls":18},"","","","",{"$nulls":30},"","","","",{"$nulls":60},"",{"$f":"IF($A419=\"\",\"\",IF(VLOOKUP($G419,$H$11:$DN$1000,96,FALSE)=\"\",\"No\",IF(LEFT(VLOOKUP($G419,$H$11:$DN$1000,96,FALSE),3)=\"The\",EF419,VLOOKUP(VLOOKUP($G419,$H$11:$DN$1000,96,FALSE),DeclMatrix!$A$2:$F$5,VLOOKUP('Enrollment Form'!$B419,DeclMatrix!$A$8:$B$12,2,FALSE),FALSE))))","v":""},{"$f":"IF($A419=\"\",\"\",IF(VLOOKUP($G419,$H$11:$DN$1000,101,FALSE)=\"\",\"No\",IF(LEFT(VLOOKUP($G419,$H$11:$DN$1000,101,FALSE),3)=\"The\",EG419,VLOOKUP(VLOOKUP($G419,$H$11:$DN$1000,101,FALSE),DeclMatrix!$A$2:$F$5,VLOOKUP('Enrollment Form'!$B419,DeclMatrix!$A$8:$B$12,2,FALSE),FALSE))))","v":""},{"$f":"IF($A419=\"\",\"\",IF(VLOOKUP($G419,$H$11:$DN$1000,106,FALSE)=\"\",\"No\",IF(LEFT(VLOOKUP($G419,$H$11:$DN$1000,106,FALSE),3)=\"The\",EH419,VLOOKUP(VLOOKUP($G419,$H$11:$DN$1000,106,FALSE),DeclMatrix!$A$2:$F$5,VLOOKUP('Enrollment Form'!$B419,DeclMatrix!$A$8:$B$12,2,FALSE),FALSE))))","v":""},{"$f":"IF($A419=\"\",\"\",IF(VLOOKUP($G419,$H$11:$DN$1000,111,FALSE)=\"\",\"No\",IF(LEFT(VLOOKUP($G419,$H$11:$DN$1000,111,FALSE),3)=\"The\",EI419,VLOOKUP(VLOOKUP($G419,$H$11:$DN$1000,111,FALSE),DeclMatrix!$A$2:$F$5,VLOOKUP('Enrollment Form'!$B419,DeclMatrix!$A$8:$B$12,2,FALSE),FALSE))))","v":""},"",null,"","","","","","","","","","","",""]
["",{"$nulls":5},"","",{"$nulls":18},"","","","",{"$nulls":30},"","","","",{"$nulls":60},"",{"$f":"IF($A420=\"\",\"\",IF(VLOOKUP($G420,$H$11:$DN$1000,96,FALSE)=\"\",\"No\",IF(LEFT(VLOOKUP($G420,$H$11:$DN$1000,96,FALSE),3)=\"The\",EF420,VLOOKUP(VLOOKUP($G420,$H$11:$DN$1000,96,FALSE),DeclMatrix!$A$2:$F$5,VLOOKUP('Enrollment Form'!$B420,DeclMatrix!$A$8:$B$12,2,FALSE),FALSE))))","v":""},{"$f":"IF($A420=\"\",\"\",IF(VLOOKUP($G420,$H$11:$DN$1000,101,FALSE)=\"\",\"No\",IF(LEFT(VLOOKUP($G420,$H$11:$DN$1000,101,FALSE),3)=\"The\",EG420,VLOOKUP(VLOOKUP($G420,$H$11:$DN$1000,101,FALSE),DeclMatrix!$A$2:$F$5,VLOOKUP('Enrollment Form'!$B420,DeclMatrix!$A$8:$B$12,2,FALSE),FALSE))))","v":""},{"$f":"IF($A420=\"\",\"\",IF(VLOOKUP($G420,$H$11:$DN$1000,106,FALSE)=\"\",\"No\",IF(LEFT(VLOOKUP($G420,$H$11:$DN$1000,106,FALSE),3)=\"The\",EH420,VLOOKUP(VLOOKUP($G420,$H$11:$DN$1000,106,FALSE),DeclMatrix!$A$2:$F$5,VLOOKUP('Enrollment Form'!$B420,DeclMatrix!$A$8:$B$12,2,FALSE),FALSE))))","v":""},{"$f":"IF($A420=\"\",\"\",IF(VLOOKUP($G420,$H$11:$DN$1000,111,FALSE)=\"\",\"No\",IF(LEFT(VLOOKUP($G420,$H$11:$DN$1000,111,FALSE),3)=\"The\",EI420,VLOOKUP(VLOOKUP($G420,$H$11:$DN$1000,111,FALSE),DeclMatrix!$A$2:$F$5,VLOOKUP('Enrollment Form'!$B420,DeclMatrix!$A$8:$B$12,2,FALSE),FALSE))))","v":""},"",null,"","","","","","","","","","","",""]
["",{"$nulls":5},"","",{"$nulls":18},"","","","",{"$nulls":30},"","","","",{"$nulls":60},"",{"$f":"IF($A421=\"\",\"\",IF(VLOOKUP($G421,$H$11:$DN$1000,96,FALSE)=\"\",\"No\",IF(LEFT(VLOOKUP($G421,$H$11:$DN$1000,96,FALSE),3)=\"The\",EF421,VLOOKUP(VLOOKUP($G421,$H$11:$DN$1000,96,FALSE),DeclMatrix!$A$2:$F$5,VLOOKUP('Enrollment Form'!$B421,DeclMatrix!$A$8:$B$12,2,FALSE),FALSE))))","v":""},{"$f":"IF($A421=\"\",\"\",IF(VLOOKUP($G421,$H$11:$DN$1000,101,FALSE)=\"\",\"No\",IF(LEFT(VLOOKUP($G421,$H$11:$DN$1000,101,FALSE),3)=\"The\",EG421,VLOOKUP(VLOOKUP($G421,$H$11:$DN$1000,101,FALSE),DeclMatrix!$A$2:$F$5,VLOOKUP('Enrollment Form'!$B421,DeclMatrix!$A$8:$B$12,2,FALSE),FALSE))))","v":""},{"$f":"IF($A421=\"\",\"\",IF(VLOOKUP($G421,$H$11:$DN$1000,106,FALSE)=\"\",\"No\",IF(LEFT(VLOOKUP($G421,$H$11:$DN$1000,106,FALSE),3)=\"The\",EH421,VLOOKUP(VLOOKUP($G421,$H$11:$DN$1000,106,FALSE),DeclMatrix!$A$2:$F$5,VLOOKUP('Enrollment Form'!$B421,DeclMatrix!$A$8:$B$12,2,FALSE),FALSE))))","v":""},{"$f":"IF($A421=\"\",\"\",IF(VLOOKUP($G421,$H$11:$DN$1000,111,FALSE)=\"\",\"No\",IF(LEFT(VLOOKUP($G421,$H$11:$DN$1000,111,FALSE),3)=\"The\",EI421,VLOOKUP(VLOOKUP($G421,$H$11:$DN$1000,111,FALSE),DeclMatrix!$A$2:$F$5,VLOOKUP('Enrollment Form'!$B421,DeclMatrix!$A$8:$B$12,2,FALSE),FALSE))))","v":""},"",null,"","","","","","","","","","","",""]
["",{"$nulls":5},"","",{"$nulls":18},"","","","",{"$nulls":30},"","","","",{"$nulls":60},"",{"$f":"IF($A422=\"\",\"\",IF(VLOOKUP($G422,$H$11:$DN$1000,96,FALSE)=\"\",\"No\",IF(LEFT(VLOOKUP($G422,$H$11:$DN$1000,96,FALSE),3)=\"The\",EF422,VLOOKUP(VLOOKUP($G422,$H$11:$DN$1000,96,FALSE),DeclMatrix!$A$2:$F$5,VLOOKUP('Enrollment Form'!$B422,DeclMatrix!$A$8:$B$12,2,FALSE),FALSE))))","v":""},{"$f":"IF($A422=\"\",\"\",IF(VLOOKUP($G422,$H$11:$DN$1000,101,FALSE)=\"\",\"No\",IF(LEFT(VLOOKUP($G422,$H$11:$DN$1000,101,FALSE),3)=\"The\",EG422,VLOOKUP(VLOOKUP($G422,$H$11:$DN$1000,101,FALSE),DeclMatrix!$A$2:$F$5,VLOOKUP('Enrollment Form'!$B422,DeclMatrix!$A$8:$B$12,2,FALSE),FALSE))))","v":""},{"$f":"IF($A422=\"\",\"\",IF(VLOOKUP($G422,$H$11:$DN$1000,106,FALSE)=\"\",\"No\",IF(LEFT(VLOOKUP($G422,$H$11:$DN$1000,106,FALSE),3)=\"The\",EH422,VLOOKUP(VLOOKUP($G422,$H$11:$DN$1000,106,FALSE),DeclMatrix!$A$2:$F$5,VLOOKUP('Enrollment Form'!$B422,DeclMatrix!$A$8:$B$12,2,FALSE),FALSE))))","v":""},{"$f":"IF($A422=\"\",\"\",IF(VLOOKUP($G422,$H$11:$DN$1000,111,FALSE)=\"\",\"No\",IF(LEFT(VLOOKUP($G422,$H$11:$DN$1000,111,FALSE),3)=\"The\",EI422,VLOOKUP(VLOOKUP($G422,$H$11:$DN$1000,111,FALSE),DeclMatrix!$A$2:$F$5,VLOOKUP('Enrollment Form'!$B422,DeclMatrix!$A$8:$B$12,2,FALSE),FALSE))))","v":""},"",null,"","","","","","","","","","","",""]
["",{"$nulls":5},"","",{"$nulls":18},"","","","",{"$nulls":30},"","","","",{"$nulls":60},"",{"$f":"IF($A423=\"\",\"\",IF(VLOOKUP($G423,$H$11:$DN$1000,96,FALSE)=\"\",\"No\",IF(LEFT(VLOOKUP($G423,$H$11:$DN$1000,96,FALSE),3)=\"The\",EF423,VLOOKUP(VLOOKUP($G423,$H$11:$DN$1000,96,FALSE),DeclMatrix!$A$2:$F$5,VLOOKUP('Enrollment Form'!$B423,DeclMatrix!$A$8:$B$12,2,FALSE),FALSE))))","v":""},{"$f":"IF($A423=\"\",\"\",IF(VLOOKUP($G423,$H$11:$DN$1000,101,FALSE)=\"\",\"No\",IF(LEFT(VLOOKUP($G423,$H$11:$DN$1000,101,FALSE),3)=\"The\",EG423,VLOOKUP(VLOOKUP($G423,$H$11:$DN$1000,101,FALSE),DeclMatrix!$A$2:$F$5,VLOOKUP('Enrollment Form'!$B423,DeclMatrix!$A$8:$B$12,2,FALSE),FALSE))))","v":""},{"$f":"IF($A423=\"\",\"\",IF(VLOOKUP($G423,$H$11:$DN$1000,106,FALSE)=\"\",\"No\",IF(LEFT(VLOOKUP($G423,$H$11:$DN$1000,106,FALSE),3)=\"The\",EH423,VLOOKUP(VLOOKUP($G423,$H$11:$DN$1000,106,FALSE),DeclMatrix!$A$2:$F$5,VLOOKUP('Enrollment Form'!$B423,DeclMatrix!$A$8:$B$12,2,FALSE),FALSE))))","v":""},{"$f":"IF($A423=\"\",\"\",IF(VLOOKUP($G423,$H$11:$DN$1000,111,FALSE)=\"\",\"No\",IF(LEFT(VLOOKUP($G423,$H$11:$DN$1000,111,FALSE),3)=\"The\",EI423,VLOOKUP(VLOOKUP($G423,$H$11:$DN$1000,111,FALSE),DeclMatrix!$A$2:$F$5,VLOOKUP('Enrollment Form'!$B423,DeclMatrix!$A$8:$B$12,2,FALSE),FALSE))))","v":""},"",null,"","","","","","","","","","","",""]
["",{"$nulls":5},"","",{"$nulls":18},"","","","",{"$nulls":30},"","","","",{"$nulls":60},"",{"$f":"IF($A424=\"\",\"\",IF(VLOOKUP($G424,$H$11:$DN$1000,96,FALSE)=\"\",\"No\",IF(LEFT(VLOOKUP($G424,$H$11:$DN$1000,96,FALSE),3)=\"The\",EF424,VLOOKUP(VLOOKUP($G424,$H$11:$DN$1000,96,FALSE),DeclMatrix!$A$2:$F$5,VLOOKUP('Enrollment Form'!$B424,DeclMatrix!$A$8:$B$12,2,FALSE),FALSE))))","v":""},{"$f":"IF($A424=\"\",\"\",IF(VLOOKUP($G424,$H$11:$DN$1000,101,FALSE)=\"\",\"No\",IF(LEFT(VLOOKUP($G424,$H$11:$DN$1000,101,FALSE),3)=\"The\",EG424,VLOOKUP(VLOOKUP($G424,$H$11:$DN$1000,101,FALSE),DeclMatrix!$A$2:$F$5,VLOOKUP('Enrollment Form'!$B424,DeclMatrix!$A$8:$B$12,2,FALSE),FALSE))))","v":""},{"$f":"IF($A424=\"\",\"\",IF(VLOOKUP($G424,$H$11:$DN$1000,106,FALSE)=\"\",\"No\",IF(LEFT(VLOOKUP($G424,$H$11:$DN$1000,106,FALSE),3)=\"The\",EH424,VLOOKUP(VLOOKUP($G424,$H$11:$DN$1000,106,FALSE),DeclMatrix!$A$2:$F$5,VLOOKUP('Enrollment Form'!$B424,DeclMatrix!$A$8:$B$12,2,FALSE),FALSE))))","v":""},{"$f":"IF($A424=\"\",\"\",IF(VLOOKUP($G424,$H$11:$DN$1000,111,FALSE)=\"\",\"No\",IF(LEFT(VLOOKUP($G424,$H$11:$DN$1000,111,FALSE),3)=\"The\",EI424,VLOOKUP(VLOOKUP($G424,$H$11:$DN$1000,111,FALSE),DeclMatrix!$A$2:$F$5,VLOOKUP('Enrollment Form'!$B424,DeclMatrix!$A$8:$B$12,2,FALSE),FALSE))))","v":""},"",null,"","","","","","","","","","","",""]
["",{"$nulls":5},"","",{"$nulls":18},"","","","",{"$nulls":30},"","","","",{"$nulls":60},"",{"$f":"IF($A425=\"\",\"\",IF(VLOOKUP($G425,$H$11:$DN$1000,96,FALSE)=\"\",\"No\",IF(LEFT(VLOOKUP($G425,$H$11:$DN$1000,96,FALSE),3)=\"The\",EF425,VLOOKUP(VLOOKUP($G425,$H$11:$DN$1000,96,FALSE),DeclMatrix!$A$2:$F$5,VLOOKUP('Enrollment Form'!$B425,DeclMatrix!$A$8:$B$12,2,FALSE),FALSE))))","v":""},{"$f":"IF($A425=\"\",\"\",IF(VLOOKUP($G425,$H$11:$DN$1000,101,FALSE)=\"\",\"No\",IF(LEFT(VLOOKUP($G425,$H$11:$DN$1000,101,FALSE),3)=\"The\",EG425,VLOOKUP(VLOOKUP($G425,$H$11:$DN$1000,101,FALSE),DeclMatrix!$A$2:$F$5,VLOOKUP('Enrollment Form'!$B425,DeclMatrix!$A$8:$B$12,2,FALSE),FALSE))))","v":""},{"$f":"IF($A425=\"\",\"\",IF(VLOOKUP($G425,$H$11:$DN$1000,106,FALSE)=\"\",\"No\",IF(LEFT(VLOOKUP($G425,$H$11:$DN$1000,106,FALSE),3)=\"The\",EH425,VLOOKUP(VLOOKUP($G425,$H$11:$DN$1000,106,FALSE),DeclMatrix!$A$2:$F$5,VLOOKUP('Enrollment Form'!$B425,DeclMatrix!$A$8:$B$12,2,FALSE),FALSE))))","v":""},{"$f":"IF($A425=\"\",\"\",IF(VLOOKUP($G425,$H$11:$DN$1000,111,FALSE)=\"\",\"No\",IF(LEFT(VLOOKUP($G425,$H$11:$DN$1000,111,FALSE),3)=\"The\",EI425,VLOOKUP(VLOOKUP($G425,$H$11:$DN$1000,111,FALSE),DeclMatrix!$A$2:$F$5,VLOOKUP('Enrollment Form'!$B425,DeclMatrix!$A$8:$B$12,2,FALSE),FALSE))))","v":""},"",null,"","","","","","","","","","","",""]
["",{"$nulls":5},"","",{"$nulls":18},"","","","",{"$nulls":30},"","","","",{"$nulls":60},"",{"$f":"IF($A426=\"\",\"\",IF(VLOOKUP($G426,$H$11:$DN$1000,96,FALSE)=\"\",\"No\",IF(LEFT(VLOOKUP($G426,$H$11:$DN$1000,96,FALSE),3)=\"The\",EF426,VLOOKUP(VLOOKUP($G426,$H$11:$DN$1000,96,FALSE),DeclMatrix!$A$2:$F$5,VLOOKUP('Enrollment Form'!$B426,DeclMatrix!$A$8:$B$12,2,FALSE),FALSE))))","v":""},{"$f":"IF($A426=\"\",\"\",IF(VLOOKUP($G426,$H$11:$DN$1000,101,FALSE)=\"\",\"No\",IF(LEFT(VLOOKUP($G426,$H$11:$DN$1000,101,FALSE),3)=\"The\",EG426,VLOOKUP(VLOOKUP($G426,$H$11:$DN$1000,101,FALSE),DeclMatrix!$A$2:$F$5,VLOOKUP('Enrollment Form'!$B426,DeclMatrix!$A$8:$B$12,2,FALSE),FALSE))))","v":""},{"$f":"IF($A426=\"\",\"\",IF(VLOOKUP($G426,$H$11:$DN$1000,106,FALSE)=\"\",\"No\",IF(LEFT(VLOOKUP($G426,$H$11:$DN$1000,106,FALSE),3)=\"The\",EH426,VLOOKUP(VLOOKUP($G426,$H$11:$DN$1000,106,FALSE),DeclMatrix!$A$2:$F$5,VLOOKUP('Enrollment Form'!$B426,DeclMatrix!$A$8:$B$12,2,FALSE),FALSE))))","v":""},{"$f":"IF($A426=\"\",\"\",IF(VLOOKUP($G426,$H$11:$DN$1000,111,FALSE)=\"\",\"No\",IF(LEFT(VLOOKUP($G426,$H$11:$DN$1000,111,FALSE),3)=\"The\",EI426,VLOOKUP(VLOOKUP($G426,$H$11:$DN$1000,111,FALSE),DeclMatrix!$A$2:$F$5,VLOOKUP('Enrollment Form'!$B426,DeclMatrix!$A$8:$B$12,2,FALSE),FALSE))))","v":""},"",null,"","","","","","","","","","","",""]
["",{"$nulls":5},"","",{"$nulls":18},"","","","",{"$nulls":30},"","","","",{"$nulls":60},"",{"$f":"IF($A427=\"\",\"\",IF(VLOOKUP($G427,$H$11:$DN$1000,96,FALSE)=\"\",\"No\",IF(LEFT(VLOOKUP($G427,$H$11:$DN$1000,96,FALSE),3)=\"The\",EF427,VLOOKUP(VLOOKUP($G427,$H$11:$DN$1000,96,FALSE),DeclMatrix!$A$2:$F$5,VLOOKUP('Enrollment Form'!$B427,DeclMatrix!$A$8:$B$12,2,FALSE),FALSE))))","v":""},{"$f":"IF($A427=\"\",\"\",IF(VLOOKUP($G427,$H$11:$DN$1000,101,FALSE)=\"\",\"No\",IF(LEFT(VLOOKUP($G427,$H$11:$DN$1000,101,FALSE),3)=\"The\",EG427,VLOOKUP(VLOOKUP($G427,$H$11:$DN$1000,101,FALSE),DeclMatrix!$A$2:$F$5,VLOOKUP('Enrollment Form'!$B427,DeclMatrix!$A$8:$B$12,2,FALSE),FALSE))))","v":""},{"$f":"IF($A427=\"\",\"\",IF(VLOOKUP($G427,$H$11:$DN$1000,106,FALSE)=\"\",\"No\",IF(LEFT(VLOOKUP($G427,$H$11:$DN$1000,106,FALSE),3)=\"The\",EH427,VLOOKUP(VLOOKUP($G427,$H$11:$DN$1000,106,FALSE),DeclMatrix!$A$2:$F$5,VLOOKUP('Enrollment Form'!$B427,DeclMatrix!$A$8:$B$12,2,FALSE),FALSE))))","v":""},{"$f":"IF($A427=\"\",\"\",IF(VLOOKUP($G427,$H$11:$DN$1000,111,FALSE)=\"\",\"No\",IF(LEFT(VLOOKUP($G427,$H$11:$DN$1000,111,FALSE),3)=\"The\",EI427,VLOOKUP(VLOOKUP($G427,$H$11:$DN$1000,111,FALSE),DeclMatrix!$A$2:$F$5,VLOOKUP('Enrollment Form'!$B427,DeclMatrix!$A$8:$B$12,2,FALSE),FALSE))))","v":""},"",null,"","","","","","","","","","","",""]
["",{"$nulls":5},"","",{"$nulls":18},"","","","",{"$nulls":30},"","","","",{"$nulls":60},"",{"$f":"IF($A428=\"\",\"\",IF(VLOOKUP($G428,$H$11:$DN$1000,96,FALSE)=\"\",\"No\",IF(LEFT(VLOOKUP($G428,$H$11:$DN$1000,96,FALSE),3)=\"The\",EF428,VLOOKUP(VLOOKUP($G428,$H$11:$DN$1000,96,FALSE),DeclMatrix!$A$2:$F$5,VLOOKUP('Enrollment Form'!$B428,DeclMatrix!$A$8:$B$12,2,FALSE),FALSE))))","v":""},{"$f":"IF($A428=\"\",\"\",IF(VLOOKUP($G428,$H$11:$DN$1000,101,FALSE)=\"\",\"No\",IF(LEFT(VLOOKUP($G428,$H$11:$DN$1000,101,FALSE),3)=\"The\",EG428,VLOOKUP(VLOOKUP($G428,$H$11:$DN$1000,101,FALSE),DeclMatrix!$A$2:$F$5,VLOOKUP('Enrollment Form'!$B428,DeclMatrix!$A$8:$B$12,2,FALSE),FALSE))))","v":""},{"$f":"IF($A428=\"\",\"\",IF(VLOOKUP($G428,$H$11:$DN$1000,106,FALSE)=\"\",\"No\",IF(LEFT(VLOOKUP($G428,$H$11:$DN$1000,106,FALSE),3)=\"The\",EH428,VLOOKUP(VLOOKUP($G428,$H$11:$DN$1000,106,FALSE),DeclMatrix!$A$2:$F$5,VLOOKUP('Enrollment Form'!$B428,DeclMatrix!$A$8:$B$12,2,FALSE),FALSE))))","v":""},{"$f":"IF($A428=\"\",\"\",IF(VLOOKUP($G428,$H$11:$DN$1000,111,FALSE)=\"\",\"No\",IF(LEFT(VLOOKUP($G428,$H$11:$DN$1000,111,FALSE),3)=\"The\",EI428,VLOOKUP(VLOOKUP($G428,$H$11:$DN$1000,111,FALSE),DeclMatrix!$A$2:$F$5,VLOOKUP('Enrollment Form'!$B428,DeclMatrix!$A$8:$B$12,2,FALSE),FALSE))))","v":""},"",null,"","","","","","","","","","","",""]
["",{"$nulls":5},"","",{"$nulls":18},"","","","",{"$nulls":30},"","","","",{"$nulls":60},"",{"$f":"IF($A429=\"\",\"\",IF(VLOOKUP($G429,$H$11:$DN$1000,96,FALSE)=\"\",\"No\",IF(LEFT(VLOOKUP($G429,$H$11:$DN$1000,96,FALSE),3)=\"The\",EF429,VLOOKUP(VLOOKUP($G429,$H$11:$DN$1000,96,FALSE),DeclMatrix!$A$2:$F$5,VLOOKUP('Enrollment Form'!$B429,DeclMatrix!$A$8:$B$12,2,FALSE),FALSE))))","v":""},{"$f":"IF($A429=\"\",\"\",IF(VLOOKUP($G429,$H$11:$DN$1000,101,FALSE)=\"\",\"No\",IF(LEFT(VLOOKUP($G429,$H$11:$DN$1000,101,FALSE),3)=\"The\",EG429,VLOOKUP(VLOOKUP($G429,$H$11:$DN$1000,101,FALSE),DeclMatrix!$A$2:$F$5,VLOOKUP('Enrollment Form'!$B429,DeclMatrix!$A$8:$B$12,2,FALSE),FALSE))))","v":""},{"$f":"IF($A429=\"\",\"\",IF(VLOOKUP($G429,$H$11:$DN$1000,106,FALSE)=\"\",\"No\",IF(LEFT(VLOOKUP($G429,$H$11:$DN$1000,106,FALSE),3)=\"The\",EH429,VLOOKUP(VLOOKUP($G429,$H$11:$DN$1000,106,FALSE),DeclMatrix!$A$2:$F$5,VLOOKUP('Enrollment Form'!$B429,DeclMatrix!$A$8:$B$12,2,FALSE),FALSE))))","v":""},{"$f":"IF($A429=\"\",\"\",IF(VLOOKUP($G429,$H$11:$DN$1000,111,FALSE)=\"\",\"No\",IF(LEFT(VLOOKUP($G429,$H$11:$DN$1000,111,FALSE),3)=\"The\",EI429,VLOOKUP(VLOOKUP($G429,$H$11:$DN$1000,111,FALSE),DeclMatrix!$A$2:$F$5,VLOOKUP('Enrollment Form'!$B429,DeclMatrix!$A$8:$B$12,2,FALSE),FALSE))))","v":""},"",null,"","","","","","","","","","","",""]
["",{"$nulls":5},"","",{"$nulls":18},"","","","",{"$nulls":30},"","","","",{"$nulls":60},"",{"$f":"IF($A430=\"\",\"\",IF(VLOOKUP($G430,$H$11:$DN$1000,96,FALSE)=\"\",\"No\",IF(LEFT(VLOOKUP($G430,$H$11:$DN$1000,96,FALSE),3)=\"The\",EF430,VLOOKUP(VLOOKUP($G430,$H$11:$DN$1000,96,FALSE),DeclMatrix!$A$2:$F$5,VLOOKUP('Enrollment Form'!$B430,DeclMatrix!$A$8:$B$12,2,FALSE),FALSE))))","v":""},{"$f":"IF($A430=\"\",\"\",IF(VLOOKUP($G430,$H$11:$DN$1000,101,FALSE)=\"\",\"No\",IF(LEFT(VLOOKUP($G430,$H$11:$DN$1000,101,FALSE),3)=\"The\",EG430,VLOOKUP(VLOOKUP($G430,$H$11:$DN$1000,101,FALSE),DeclMatrix!$A$2:$F$5,VLOOKUP('Enrollment Form'!$B430,DeclMatrix!$A$8:$B$12,2,FALSE),FALSE))))","v":""},{"$f":"IF($A430=\"\",\"\",IF(VLOOKUP($G430,$H$11:$DN$1000,106,FALSE)=\"\",\"No\",IF(LEFT(VLOOKUP($G430,$H$11:$DN$1000,106,FALSE),3)=\"The\",EH430,VLOOKUP(VLOOKUP($G430,$H$11:$DN$1000,106,FALSE),DeclMatrix!$A$2:$F$5,VLOOKUP('Enrollment Form'!$B430,DeclMatrix!$A$8:$B$12,2,FALSE),FALSE))))","v":""},{"$f":"IF($A430=\"\",\"\",IF(VLOOKUP($G430,$H$11:$DN$1000,111,FALSE)=\"\",\"No\",IF(LEFT(VLOOKUP($G430,$H$11:$DN$1000,111,FALSE),3)=\"The\",EI430,VLOOKUP(VLOOKUP($G430,$H$11:$DN$1000,111,FALSE),DeclMatrix!$A$2:$F$5,VLOOKUP('Enrollment Form'!$B430,DeclMatrix!$A$8:$B$12,2,FALSE),FALSE))))","v":""},"",null,"","","","","","","","","","","",""]
["",{"$nulls":5},"","",{"$nulls":18},"","","","",{"$nulls":30},"","","","",{"$nulls":60},"",{"$f":"IF($A431=\"\",\"\",IF(VLOOKUP($G431,$H$11:$DN$1000,96,FALSE)=\"\",\"No\",IF(LEFT(VLOOKUP($G431,$H$11:$DN$1000,96,FALSE),3)=\"The\",EF431,VLOOKUP(VLOOKUP($G431,$H$11:$DN$1000,96,FALSE),DeclMatrix!$A$2:$F$5,VLOOKUP('Enrollment Form'!$B431,DeclMatrix!$A$8:$B$12,2,FALSE),FALSE))))","v":""},{"$f":"IF($A431=\"\",\"\",IF(VLOOKUP($G431,$H$11:$DN$1000,101,FALSE)=\"\",\"No\",IF(LEFT(VLOOKUP($G431,$H$11:$DN$1000,101,FALSE),3)=\"The\",EG431,VLOOKUP(VLOOKUP($G431,$H$11:$DN$1000,101,FALSE),DeclMatrix!$A$2:$F$5,VLOOKUP('Enrollment Form'!$B431,DeclMatrix!$A$8:$B$12,2,FALSE),FALSE))))","v":""},{"$f":"IF($A431=\"\",\"\",IF(VLOOKUP($G431,$H$11:$DN$1000,106,FALSE)=\"\",\"No\",IF(LEFT(VLOOKUP($G431,$H$11:$DN$1000,106,FALSE),3)=\"The\",EH431,VLOOKUP(VLOOKUP($G431,$H$11:$DN$1000,106,FALSE),DeclMatrix!$A$2:$F$5,VLOOKUP('Enrollment Form'!$B431,DeclMatrix!$A$8:$B$12,2,FALSE),FALSE))))","v":""},{"$f":"IF($A431=\"\",\"\",IF(VLOOKUP($G431,$H$11:$DN$1000,111,FALSE)=\"\",\"No\",IF(LEFT(VLOOKUP($G431,$H$11:$DN$1000,111,FALSE),3)=\"The\",EI431,VLOOKUP(VLOOKUP($G431,$H$11:$DN$1000,111,FALSE),DeclMatrix!$A$2:$F$5,VLOOKUP('Enrollment Form'!$B431,DeclMatrix!$A$8:$B$12,2,FALSE),FALSE))))","v":""},"",null,"","","","","","","","","","","",""]
["",{"$nulls":5},"","",{"$nulls":18},"","","","",{"$nulls":30},"","","","",{"$nulls":60},"",{"$f":"IF($A432=\"\",\"\",IF(VLOOKUP($G432,$H$11:$DN$1000,96,FALSE)=\"\",\"No\",IF(LEFT(VLOOKUP($G432,$H$11:$DN$1000,96,FALSE),3)=\"The\",EF432,VLOOKUP(VLOOKUP($G432,$H$11:$DN$1000,96,FALSE),DeclMatrix!$A$2:$F$5,VLOOKUP('Enrollment Form'!$B432,DeclMatrix!$A$8:$B$12,2,FALSE),FALSE))))","v":""},{"$f":"IF($A432=\"\",\"\",IF(VLOOKUP($G432,$H$11:$DN$1000,101,FALSE)=\"\",\"No\",IF(LEFT(VLOOKUP($G432,$H$11:$DN$1000,101,FALSE),3)=\"The\",EG432,VLOOKUP(VLOOKUP($G432,$H$11:$DN$1000,101,FALSE),DeclMatrix!$A$2:$F$5,VLOOKUP('Enrollment Form'!$B432,DeclMatrix!$A$8:$B$12,2,FALSE),FALSE))))","v":""},{"$f":"IF($A432=\"\",\"\",IF(VLOOKUP($G432,$H$11:$DN$1000,106,FALSE)=\"\",\"No\",IF(LEFT(VLOOKUP($G432,$H$11:$DN$1000,106,FALSE),3)=\"The\",EH432,VLOOKUP(VLOOKUP($G432,$H$11:$DN$1000,106,FALSE),DeclMatrix!$A$2:$F$5,VLOOKUP('Enrollment Form'!$B432,DeclMatrix!$A$8:$B$12,2,FALSE),FALSE))))","v":""},{"$f":"IF($A432=\"\",\"\",IF(VLOOKUP($G432,$H$11:$DN$1000,111,FALSE)=\"\",\"No\",IF(LEFT(VLOOKUP($G432,$H$11:$DN$1000,111,FALSE),3)=\"The\",EI432,VLOOKUP(VLOOKUP($G432,$H$11:$DN$1000,111,FALSE),DeclMatrix!$A$2:$F$5,VLOOKUP('Enrollment Form'!$B432,DeclMatrix!$A$8:$B$12,2,FALSE),FALSE))))","v":""},"",null,"","","","","","","","","","","",""]
["",{"$nulls":5},"","",{"$nulls":18},"","","","",{"$nulls":30},"","","","",{"$nulls":60},"",{"$f":"IF($A433=\"\",\"\",IF(VLOOKUP($G433,$H$11:$DN$1000,96,FALSE)=\"\",\"No\",IF(LEFT(VLOOKUP($G433,$H$11:$DN$1000,96,FALSE),3)=\"The\",EF433,VLOOKUP(VLOOKUP($G433,$H$11:$DN$1000,96,FALSE),DeclMatrix!$A$2:$F$5,VLOOKUP('Enrollment Form'!$B433,DeclMatrix!$A$8:$B$12,2,FALSE),FALSE))))","v":""},{"$f":"IF($A433=\"\",\"\",IF(VLOOKUP($G433,$H$11:$DN$1000,101,FALSE)=\"\",\"No\",IF(LEFT(VLOOKUP($G433,$H$11:$DN$1000,101,FALSE),3)=\"The\",EG433,VLOOKUP(VLOOKUP($G433,$H$11:$DN$1000,101,FALSE),DeclMatrix!$A$2:$F$5,VLOOKUP('Enrollment Form'!$B433,DeclMatrix!$A$8:$B$12,2,FALSE),FALSE))))","v":""},{"$f":"IF($A433=\"\",\"\",IF(VLOOKUP($G433,$H$11:$DN$1000,106,FALSE)=\"\",\"No\",IF(LEFT(VLOOKUP($G433,$H$11:$DN$1000,106,FALSE),3)=\"The\",EH433,VLOOKUP(VLOOKUP($G433,$H$11:$DN$1000,106,FALSE),DeclMatrix!$A$2:$F$5,VLOOKUP('Enrollment Form'!$B433,DeclMatrix!$A$8:$B$12,2,FALSE),FALSE))))","v":""},{"$f":"IF($A433=\"\",\"\",IF(VLOOKUP($G433,$H$11:$DN$1000,111,FALSE)=\"\",\"No\",IF(LEFT(VLOOKUP($G433,$H$11:$DN$1000,111,FALSE),3)=\"The\",EI433,VLOOKUP(VLOOKUP($G433,$H$11:$DN$1000,111,FALSE),DeclMatrix!$A$2:$F$5,VLOOKUP('Enrollment Form'!$B433,DeclMatrix!$A$8:$B$12,2,FALSE),FALSE))))","v":""},"",null,"","","","","","","","","","","",""]
["",{"$nulls":5},"","",{"$nulls":18},"","","","",{"$nulls":30},"","","","",{"$nulls":60},"",{"$f":"IF($A434=\"\",\"\",IF(VLOOKUP($G434,$H$11:$DN$1000,96,FALSE)=\"\",\"No\",IF(LEFT(VLOOKUP($G434,$H$11:$DN$1000,96,FALSE),3)=\"The\",EF434,VLOOKUP(VLOOKUP($G434,$H$11:$DN$1000,96,FALSE),DeclMatrix!$A$2:$F$5,VLOOKUP('Enrollment Form'!$B434,DeclMatrix!$A$8:$B$12,2,FALSE),FALSE))))","v":""},{"$f":"IF($A434=\"\",\"\",IF(VLOOKUP($G434,$H$11:$DN$1000,101,FALSE)=\"\",\"No\",IF(LEFT(VLOOKUP($G434,$H$11:$DN$1000,101,FALSE),3)=\"The\",EG434,VLOOKUP(VLOOKUP($G434,$H$11:$DN$1000,101,FALSE),DeclMatrix!$A$2:$F$5,VLOOKUP('Enrollment Form'!$B434,DeclMatrix!$A$8:$B$12,2,FALSE),FALSE))))","v":""},{"$f":"IF($A434=\"\",\"\",IF(VLOOKUP($G434,$H$11:$DN$1000,106,FALSE)=\"\",\"No\",IF(LEFT(VLOOKUP($G434,$H$11:$DN$1000,106,FALSE),3)=\"The\",EH434,VLOOKUP(VLOOKUP($G434,$H$11:$DN$1000,106,FALSE),DeclMatrix!$A$2:$F$5,VLOOKUP('Enrollment Form'!$B434,DeclMatrix!$A$8:$B$12,2,FALSE),FALSE))))","v":""},{"$f":"IF($A434=\"\",\"\",IF(VLOOKUP($G434,$H$11:$DN$1000,111,FALSE)=\"\",\"No\",IF(LEFT(VLOOKUP($G434,$H$11:$DN$1000,111,FALSE),3)=\"The\",EI434,VLOOKUP(VLOOKUP($G434,$H$11:$DN$1000,111,FALSE),DeclMatrix!$A$2:$F$5,VLOOKUP('Enrollment Form'!$B434,DeclMatrix!$A$8:$B$12,2,FALSE),FALSE))))","v":""},"",null,"","","","","","","","","","","",""]
["",{"$nulls":5},"","",{"$nulls":18},"","","","",{"$nulls":30},"","","","",{"$nulls":60},"",{"$f":"IF($A435=\"\",\"\",IF(VLOOKUP($G435,$H$11:$DN$1000,96,FALSE)=\"\",\"No\",IF(LEFT(VLOOKUP($G435,$H$11:$DN$1000,96,FALSE),3)=\"The\",EF435,VLOOKUP(VLOOKUP($G435,$H$11:$DN$1000,96,FALSE),DeclMatrix!$A$2:$F$5,VLOOKUP('Enrollment Form'!$B435,DeclMatrix!$A$8:$B$12,2,FALSE),FALSE))))","v":""},{"$f":"IF($A435=\"\",\"\",IF(VLOOKUP($G435,$H$11:$DN$1000,101,FALSE)=\"\",\"No\",IF(LEFT(VLOOKUP($G435,$H$11:$DN$1000,101,FALSE),3)=\"The\",EG435,VLOOKUP(VLOOKUP($G435,$H$11:$DN$1000,101,FALSE),DeclMatrix!$A$2:$F$5,VLOOKUP('Enrollment Form'!$B435,DeclMatrix!$A$8:$B$12,2,FALSE),FALSE))))","v":""},{"$f":"IF($A435=\"\",\"\",IF(VLOOKUP($G435,$H$11:$DN$1000,106,FALSE)=\"\",\"No\",IF(LEFT(VLOOKUP($G435,$H$11:$DN$1000,106,FALSE),3)=\"The\",EH435,VLOOKUP(VLOOKUP($G435,$H$11:$DN$1000,106,FALSE),DeclMatrix!$A$2:$F$5,VLOOKUP('Enrollment Form'!$B435,DeclMatrix!$A$8:$B$12,2,FALSE),FALSE))))","v":""},{"$f":"IF($A435=\"\",\"\",IF(VLOOKUP($G435,$H$11:$DN$1000,111,FALSE)=\"\",\"No\",IF(LEFT(VLOOKUP($G435,$H$11:$DN$1000,111,FALSE),3)=\"The\",EI435,VLOOKUP(VLOOKUP($G435,$H$11:$DN$1000,111,FALSE),DeclMatrix!$A$2:$F$5,VLOOKUP('Enrollment Form'!$B435,DeclMatrix!$A$8:$B$12,2,FALSE),FALSE))))","v":""},"",null,"","","","","","","","","","","",""]
["",{"$nulls":5},"","",{"$nulls":18},"","","","",{"$nulls":30},"","","","",{"$nulls":60},"",{"$f":"IF($A436=\"\",\"\",IF(VLOOKUP($G436,$H$11:$DN$1000,96,FALSE)=\"\",\"No\",IF(LEFT(VLOOKUP($G436,$H$11:$DN$1000,96,FALSE),3)=\"The\",EF436,VLOOKUP(VLOOKUP($G436,$H$11:$DN$1000,96,FALSE),DeclMatrix!$A$2:$F$5,VLOOKUP('Enrollment Form'!$B436,DeclMatrix!$A$8:$B$12,2,FALSE),FALSE))))","v":""},{"$f":"IF($A436=\"\",\"\",IF(VLOOKUP($G436,$H$11:$DN$1000,101,FALSE)=\"\",\"No\",IF(LEFT(VLOOKUP($G436,$H$11:$DN$1000,101,FALSE),3)=\"The\",EG436,VLOOKUP(VLOOKUP($G436,$H$11:$DN$1000,101,FALSE),DeclMatrix!$A$2:$F$5,VLOOKUP('Enrollment Form'!$B436,DeclMatrix!$A$8:$B$12,2,FALSE),FALSE))))","v":""},{"$f":"IF($A436=\"\",\"\",IF(VLOOKUP($G436,$H$11:$DN$1000,106,FALSE)=\"\",\"No\",IF(LEFT(VLOOKUP($G436,$H$11:$DN$1000,106,FALSE),3)=\"The\",EH436,VLOOKUP(VLOOKUP($G436,$H$11:$DN$1000,106,FALSE),DeclMatrix!$A$2:$F$5,VLOOKUP('Enrollment Form'!$B436,DeclMatrix!$A$8:$B$12,2,FALSE),FALSE))))","v":""},{"$f":"IF($A436=\"\",\"\",IF(VLOOKUP($G436,$H$11:$DN$1000,111,FALSE)=\"\",\"No\",IF(LEFT(VLOOKUP($G436,$H$11:$DN$1000,111,FALSE),3)=\"The\",EI436,VLOOKUP(VLOOKUP($G436,$H$11:$DN$1000,111,FALSE),DeclMatrix!$A$2:$F$5,VLOOKUP('Enrollment Form'!$B436,DeclMatrix!$A$8:$B$12,2,FALSE),FALSE))))","v":""},"",null,"","","","","","","","","","","",""]
["",{"$nulls":5},"","",{"$nulls":18},"","","","",{"$nulls":30},"","","","",{"$nulls":60},"",{"$f":"IF($A437=\"\",\"\",IF(VLOOKUP($G437,$H$11:$DN$1000,96,FALSE)=\"\",\"No\",IF(LEFT(VLOOKUP($G437,$H$11:$DN$1000,96,FALSE),3)=\"The\",EF437,VLOOKUP(VLOOKUP($G437,$H$11:$DN$1000,96,FALSE),DeclMatrix!$A$2:$F$5,VLOOKUP('Enrollment Form'!$B437,DeclMatrix!$A$8:$B$12,2,FALSE),FALSE))))","v":""},{"$f":"IF($A437=\"\",\"\",IF(VLOOKUP($G437,$H$11:$DN$1000,101,FALSE)=\"\",\"No\",IF(LEFT(VLOOKUP($G437,$H$11:$DN$1000,101,FALSE),3)=\"The\",EG437,VLOOKUP(VLOOKUP($G437,$H$11:$DN$1000,101,FALSE),DeclMatrix!$A$2:$F$5,VLOOKUP('Enrollment Form'!$B437,DeclMatrix!$A$8:$B$12,2,FALSE),FALSE))))","v":""},{"$f":"IF($A437=\"\",\"\",IF(VLOOKUP($G437,$H$11:$DN$1000,106,FALSE)=\"\",\"No\",IF(LEFT(VLOOKUP($G437,$H$11:$DN$1000,106,FALSE),3)=\"The\",EH437,VLOOKUP(VLOOKUP($G437,$H$11:$DN$1000,106,FALSE),DeclMatrix!$A$2:$F$5,VLOOKUP('Enrollment Form'!$B437,DeclMatrix!$A$8:$B$12,2,FALSE),FALSE))))","v":""},{"$f":"IF($A437=\"\",\"\",IF(VLOOKUP($G437,$H$11:$DN$1000,111,FALSE)=\"\",\"No\",IF(LEFT(VLOOKUP($G437,$H$11:$DN$1000,111,FALSE),3)=\"The\",EI437,VLOOKUP(VLOOKUP($G437,$H$11:$DN$1000,111,FALSE),DeclMatrix!$A$2:$F$5,VLOOKUP('Enrollment Form'!$B437,DeclMatrix!$A$8:$B$12,2,FALSE),FALSE))))","v":""},"",null,"","","","","","","","","","","",""]
["",{"$nulls":5},"","",{"$nulls":18},"","","","",{"$nulls":30},"","","","",{"$nulls":60},"",{"$f":"IF($A438=\"\",\"\",IF(VLOOKUP($G438,$H$11:$DN$1000,96,FALSE)=\"\",\"No\",IF(LEFT(VLOOKUP($G438,$H$11:$DN$1000,96,FALSE),3)=\"The\",EF438,VLOOKUP(VLOOKUP($G438,$H$11:$DN$1000,96,FALSE),DeclMatrix!$A$2:$F$5,VLOOKUP('Enrollment Form'!$B438,DeclMatrix!$A$8:$B$12,2,FALSE),FALSE))))","v":""},{"$f":"IF($A438=\"\",\"\",IF(VLOOKUP($G438,$H$11:$DN$1000,101,FALSE)=\"\",\"No\",IF(LEFT(VLOOKUP($G438,$H$11:$DN$1000,101,FALSE),3)=\"The\",EG438,VLOOKUP(VLOOKUP($G438,$H$11:$DN$1000,101,FALSE),DeclMatrix!$A$2:$F$5,VLOOKUP('Enrollment Form'!$B438,DeclMatrix!$A$8:$B$12,2,FALSE),FALSE))))","v":""},{"$f":"IF($A438=\"\",\"\",IF(VLOOKUP($G438,$H$11:$DN$1000,106,FALSE)=\"\",\"No\",IF(LEFT(VLOOKUP($G438,$H$11:$DN$1000,106,FALSE),3)=\"The\",EH438,VLOOKUP(VLOOKUP($G438,$H$11:$DN$1000,106,FALSE),DeclMatrix!$A$2:$F$5,VLOOKUP('Enrollment Form'!$B438,DeclMatrix!$A$8:$B$12,2,FALSE),FALSE))))","v":""},{"$f":"IF($A438=\"\",\"\",IF(VLOOKUP($G438,$H$11:$DN$1000,111,FALSE)=\"\",\"No\",IF(LEFT(VLOOKUP($G438,$H$11:$DN$1000,111,FALSE),3)=\"The\",EI438,VLOOKUP(VLOOKUP($G438,$H$11:$DN$1000,111,FALSE),DeclMatrix!$A$2:$F$5,VLOOKUP('Enrollment Form'!$B438,DeclMatrix!$A$8:$B$12,2,FALSE),FALSE))))","v":""},"",null,"","","","","","","","","","","",""]
["",{"$nulls":5},"","",{"$nulls":18},"","","","",{"$nulls":30},"","","","",{"$nulls":60},"",{"$f":"IF($A439=\"\",\"\",IF(VLOOKUP($G439,$H$11:$DN$1000,96,FALSE)=\"\",\"No\",IF(LEFT(VLOOKUP($G439,$H$11:$DN$1000,96,FALSE),3)=\"The\",EF439,VLOOKUP(VLOOKUP($G439,$H$11:$DN$1000,96,FALSE),DeclMatrix!$A$2:$F$5,VLOOKUP('Enrollment Form'!$B439,DeclMatrix!$A$8:$B$12,2,FALSE),FALSE))))","v":""},{"$f":"IF($A439=\"\",\"\",IF(VLOOKUP($G439,$H$11:$DN$1000,101,FALSE)=\"\",\"No\",IF(LEFT(VLOOKUP($G439,$H$11:$DN$1000,101,FALSE),3)=\"The\",EG439,VLOOKUP(VLOOKUP($G439,$H$11:$DN$1000,101,FALSE),DeclMatrix!$A$2:$F$5,VLOOKUP('Enrollment Form'!$B439,DeclMatrix!$A$8:$B$12,2,FALSE),FALSE))))","v":""},{"$f":"IF($A439=\"\",\"\",IF(VLOOKUP($G439,$H$11:$DN$1000,106,FALSE)=\"\",\"No\",IF(LEFT(VLOOKUP($G439,$H$11:$DN$1000,106,FALSE),3)=\"The\",EH439,VLOOKUP(VLOOKUP($G439,$H$11:$DN$1000,106,FALSE),DeclMatrix!$A$2:$F$5,VLOOKUP('Enrollment Form'!$B439,DeclMatrix!$A$8:$B$12,2,FALSE),FALSE))))","v":""},{"$f":"IF($A439=\"\",\"\",IF(VLOOKUP($G439,$H$11:$DN$1000,111,FALSE)=\"\",\"No\",IF(LEFT(VLOOKUP($G439,$H$11:$DN$1000,111,FALSE),3)=\"The\",EI439,VLOOKUP(VLOOKUP($G439,$H$11:$DN$1000,111,FALSE),DeclMatrix!$A$2:$F$5,VLOOKUP('Enrollment Form'!$B439,DeclMatrix!$A$8:$B$12,2,FALSE),FALSE))))","v":""},"",null,"","","","","","","","","","","",""]
["",{"$nulls":5},"","",{"$nulls":18},"","","","",{"$nulls":30},"","","","",{"$nulls":60},"",{"$f":"IF($A440=\"\",\"\",IF(VLOOKUP($G440,$H$11:$DN$1000,96,FALSE)=\"\",\"No\",IF(LEFT(VLOOKUP($G440,$H$11:$DN$1000,96,FALSE),3)=\"The\",EF440,VLOOKUP(VLOOKUP($G440,$H$11:$DN$1000,96,FALSE),DeclMatrix!$A$2:$F$5,VLOOKUP('Enrollment Form'!$B440,DeclMatrix!$A$8:$B$12,2,FALSE),FALSE))))","v":""},{"$f":"IF($A440=\"\",\"\",IF(VLOOKUP($G440,$H$11:$DN$1000,101,FALSE)=\"\",\"No\",IF(LEFT(VLOOKUP($G440,$H$11:$DN$1000,101,FALSE),3)=\"The\",EG440,VLOOKUP(VLOOKUP($G440,$H$11:$DN$1000,101,FALSE),DeclMatrix!$A$2:$F$5,VLOOKUP('Enrollment Form'!$B440,DeclMatrix!$A$8:$B$12,2,FALSE),FALSE))))","v":""},{"$f":"IF($A440=\"\",\"\",IF(VLOOKUP($G440,$H$11:$DN$1000,106,FALSE)=\"\",\"No\",IF(LEFT(VLOOKUP($G440,$H$11:$DN$1000,106,FALSE),3)=\"The\",EH440,VLOOKUP(VLOOKUP($G440,$H$11:$DN$1000,106,FALSE),DeclMatrix!$A$2:$F$5,VLOOKUP('Enrollment Form'!$B440,DeclMatrix!$A$8:$B$12,2,FALSE),FALSE))))","v":""},{"$f":"IF($A440=\"\",\"\",IF(VLOOKUP($G440,$H$11:$DN$1000,111,FALSE)=\"\",\"No\",IF(LEFT(VLOOKUP($G440,$H$11:$DN$1000,111,FALSE),3)=\"The\",EI440,VLOOKUP(VLOOKUP($G440,$H$11:$DN$1000,111,FALSE),DeclMatrix!$A$2:$F$5,VLOOKUP('Enrollment Form'!$B440,DeclMatrix!$A$8:$B$12,2,FALSE),FALSE))))","v":""},"",null,"","","","","","","","","","","",""]
["",{"$nulls":5},"","",{"$nulls":18},"","","","",{"$nulls":30},"","","","",{"$nulls":60},"",{"$f":"IF($A441=\"\",\"\",IF(VLOOKUP($G441,$H$11:$DN$1000,96,FALSE)=\"\",\"No\",IF(LEFT(VLOOKUP($G441,$H$11:$DN$1000,96,FALSE),3)=\"The\",EF441,VLOOKUP(VLOOKUP($G441,$H$11:$DN$1000,96,FALSE),DeclMatrix!$A$2:$F$5,VLOOKUP('Enrollment Form'!$B441,DeclMatrix!$A$8:$B$12,2,FALSE),FALSE))))","v":""},{"$f":"IF($A441=\"\",\"\",IF(VLOOKUP($G441,$H$11:$DN$1000,101,FALSE)=\"\",\"No\",IF(LEFT(VLOOKUP($G441,$H$11:$DN$1000,101,FALSE),3)=\"The\",EG441,VLOOKUP(VLOOKUP($G441,$H$11:$DN$1000,101,FALSE),DeclMatrix!$A$2:$F$5,VLOOKUP('Enrollment Form'!$B441,DeclMatrix!$A$8:$B$12,2,FALSE),FALSE))))","v":""},{"$f":"IF($A441=\"\",\"\",IF(VLOOKUP($G441,$H$11:$DN$1000,106,FALSE)=\"\",\"No\",IF(LEFT(VLOOKUP($G441,$H$11:$DN$1000,106,FALSE),3)=\"The\",EH441,VLOOKUP(VLOOKUP($G441,$H$11:$DN$1000,106,FALSE),DeclMatrix!$A$2:$F$5,VLOOKUP('Enrollment Form'!$B441,DeclMatrix!$A$8:$B$12,2,FALSE),FALSE))))","v":""},{"$f":"IF($A441=\"\",\"\",IF(VLOOKUP($G441,$H$11:$DN$1000,111,FALSE)=\"\",\"No\",IF(LEFT(VLOOKUP($G441,$H$11:$DN$1000,111,FALSE),3)=\"The\",EI441,VLOOKUP(VLOOKUP($G441,$H$11:$DN$1000,111,FALSE),DeclMatrix!$A$2:$F$5,VLOOKUP('Enrollment Form'!$B441,DeclMatrix!$A$8:$B$12,2,FALSE),FALSE))))","v":""},"",null,"","","","","","","","","","","",""]
["",{"$nulls":5},"","",{"$nulls":18},"","","","",{"$nulls":30},"","","","",{"$nulls":60},"",{"$f":"IF($A442=\"\",\"\",IF(VLOOKUP($G442,$H$11:$DN$1000,96,FALSE)=\"\",\"No\",IF(LEFT(VLOOKUP($G442,$H$11:$DN$1000,96,FALSE),3)=\"The\",EF442,VLOOKUP(VLOOKUP($G442,$H$11:$DN$1000,96,FALSE),DeclMatrix!$A$2:$F$5,VLOOKUP('Enrollment Form'!$B442,DeclMatrix!$A$8:$B$12,2,FALSE),FALSE))))","v":""},{"$f":"IF($A442=\"\",\"\",IF(VLOOKUP($G442,$H$11:$DN$1000,101,FALSE)=\"\",\"No\",IF(LEFT(VLOOKUP($G442,$H$11:$DN$1000,101,FALSE),3)=\"The\",EG442,VLOOKUP(VLOOKUP($G442,$H$11:$DN$1000,101,FALSE),DeclMatrix!$A$2:$F$5,VLOOKUP('Enrollment Form'!$B442,DeclMatrix!$A$8:$B$12,2,FALSE),FALSE))))","v":""},{"$f":"IF($A442=\"\",\"\",IF(VLOOKUP($G442,$H$11:$DN$1000,106,FALSE)=\"\",\"No\",IF(LEFT(VLOOKUP($G442,$H$11:$DN$1000,106,FALSE),3)=\"The\",EH442,VLOOKUP(VLOOKUP($G442,$H$11:$DN$1000,106,FALSE),DeclMatrix!$A$2:$F$5,VLOOKUP('Enrollment Form'!$B442,DeclMatrix!$A$8:$B$12,2,FALSE),FALSE))))","v":""},{"$f":"IF($A442=\"\",\"\",IF(VLOOKUP($G442,$H$11:$DN$1000,111,FALSE)=\"\",\"No\",IF(LEFT(VLOOKUP($G442,$H$11:$DN$1000,111,FALSE),3)=\"The\",EI442,VLOOKUP(VLOOKUP($G442,$H$11:$DN$1000,111,FALSE),DeclMatrix!$A$2:$F$5,VLOOKUP('Enrollment Form'!$B442,DeclMatrix!$A$8:$B$12,2,FALSE),FALSE))))","v":""},"",null,"","","","","","","","","","","",""]
["",{"$nulls":5},"","",{"$nulls":18},"","","","",{"$nulls":30},"","","","",{"$nulls":60},"",{"$f":"IF($A443=\"\",\"\",IF(VLOOKUP($G443,$H$11:$DN$1000,96,FALSE)=\"\",\"No\",IF(LEFT(VLOOKUP($G443,$H$11:$DN$1000,96,FALSE),3)=\"The\",EF443,VLOOKUP(VLOOKUP($G443,$H$11:$DN$1000,96,FALSE),DeclMatrix!$A$2:$F$5,VLOOKUP('Enrollment Form'!$B443,DeclMatrix!$A$8:$B$12,2,FALSE),FALSE))))","v":""},{"$f":"IF($A443=\"\",\"\",IF(VLOOKUP($G443,$H$11:$DN$1000,101,FALSE)=\"\",\"No\",IF(LEFT(VLOOKUP($G443,$H$11:$DN$1000,101,FALSE),3)=\"The\",EG443,VLOOKUP(VLOOKUP($G443,$H$11:$DN$1000,101,FALSE),DeclMatrix!$A$2:$F$5,VLOOKUP('Enrollment Form'!$B443,DeclMatrix!$A$8:$B$12,2,FALSE),FALSE))))","v":""},{"$f":"IF($A443=\"\",\"\",IF(VLOOKUP($G443,$H$11:$DN$1000,106,FALSE)=\"\",\"No\",IF(LEFT(VLOOKUP($G443,$H$11:$DN$1000,106,FALSE),3)=\"The\",EH443,VLOOKUP(VLOOKUP($G443,$H$11:$DN$1000,106,FALSE),DeclMatrix!$A$2:$F$5,VLOOKUP('Enrollment Form'!$B443,DeclMatrix!$A$8:$B$12,2,FALSE),FALSE))))","v":""},{"$f":"IF($A443=\"\",\"\",IF(VLOOKUP($G443,$H$11:$DN$1000,111,FALSE)=\"\",\"No\",IF(LEFT(VLOOKUP($G443,$H$11:$DN$1000,111,FALSE),3)=\"The\",EI443,VLOOKUP(VLOOKUP($G443,$H$11:$DN$1000,111,FALSE),DeclMatrix!$A$2:$F$5,VLOOKUP('Enrollment Form'!$B443,DeclMatrix!$A$8:$B$12,2,FALSE),FALSE))))","v":""},"",null,"","","","","","","","","","","",""]
["",{"$nulls":5},"","",{"$nulls":18},"","","","",{"$nulls":30},"","","","",{"$nulls":60},"",{"$f":"IF($A444=\"\",\"\",IF(VLOOKUP($G444,$H$11:$DN$1000,96,FALSE)=\"\",\"No\",IF(LEFT(VLOOKUP($G444,$H$11:$DN$1000,96,FALSE),3)=\"The\",EF444,VLOOKUP(VLOOKUP($G444,$H$11:$DN$1000,96,FALSE),DeclMatrix!$A$2:$F$5,VLOOKUP('Enrollment Form'!$B444,DeclMatrix!$A$8:$B$12,2,FALSE),FALSE))))","v":""},{"$f":"IF($A444=\"\",\"\",IF(VLOOKUP($G444,$H$11:$DN$1000,101,FALSE)=\"\",\"No\",IF(LEFT(VLOOKUP($G444,$H$11:$DN$1000,101,FALSE),3)=\"The\",EG444,VLOOKUP(VLOOKUP($G444,$H$11:$DN$1000,101,FALSE),DeclMatrix!$A$2:$F$5,VLOOKUP('Enrollment Form'!$B444,DeclMatrix!$A$8:$B$12,2,FALSE),FALSE))))","v":""},{"$f":"IF($A444=\"\",\"\",IF(VLOOKUP($G444,$H$11:$DN$1000,106,FALSE)=\"\",\"No\",IF(LEFT(VLOOKUP($G444,$H$11:$DN$1000,106,FALSE),3)=\"The\",EH444,VLOOKUP(VLOOKUP($G444,$H$11:$DN$1000,106,FALSE),DeclMatrix!$A$2:$F$5,VLOOKUP('Enrollment Form'!$B444,DeclMatrix!$A$8:$B$12,2,FALSE),FALSE))))","v":""},{"$f":"IF($A444=\"\",\"\",IF(VLOOKUP($G444,$H$11:$DN$1000,111,FALSE)=\"\",\"No\",IF(LEFT(VLOOKUP($G444,$H$11:$DN$1000,111,FALSE),3)=\"The\",EI444,VLOOKUP(VLOOKUP($G444,$H$11:$DN$1000,111,FALSE),DeclMatrix!$A$2:$F$5,VLOOKUP('Enrollment Form'!$B444,DeclMatrix!$A$8:$B$12,2,FALSE),FALSE))))","v":""},"",null,"","","","","","","","","","","",""]
["",{"$nulls":5},"","",{"$nulls":18},"","","","",{"$nulls":30},"","","","",{"$nulls":60},"",{"$f":"IF($A445=\"\",\"\",IF(VLOOKUP($G445,$H$11:$DN$1000,96,FALSE)=\"\",\"No\",IF(LEFT(VLOOKUP($G445,$H$11:$DN$1000,96,FALSE),3)=\"The\",EF445,VLOOKUP(VLOOKUP($G445,$H$11:$DN$1000,96,FALSE),DeclMatrix!$A$2:$F$5,VLOOKUP('Enrollment Form'!$B445,DeclMatrix!$A$8:$B$12,2,FALSE),FALSE))))","v":""},{"$f":"IF($A445=\"\",\"\",IF(VLOOKUP($G445,$H$11:$DN$1000,101,FALSE)=\"\",\"No\",IF(LEFT(VLOOKUP($G445,$H$11:$DN$1000,101,FALSE),3)=\"The\",EG445,VLOOKUP(VLOOKUP($G445,$H$11:$DN$1000,101,FALSE),DeclMatrix!$A$2:$F$5,VLOOKUP('Enrollment Form'!$B445,DeclMatrix!$A$8:$B$12,2,FALSE),FALSE))))","v":""},{"$f":"IF($A445=\"\",\"\",IF(VLOOKUP($G445,$H$11:$DN$1000,106,FALSE)=\"\",\"No\",IF(LEFT(VLOOKUP($G445,$H$11:$DN$1000,106,FALSE),3)=\"The\",EH445,VLOOKUP(VLOOKUP($G445,$H$11:$DN$1000,106,FALSE),DeclMatrix!$A$2:$F$5,VLOOKUP('Enrollment Form'!$B445,DeclMatrix!$A$8:$B$12,2,FALSE),FALSE))))","v":""},{"$f":"IF($A445=\"\",\"\",IF(VLOOKUP($G445,$H$11:$DN$1000,111,FALSE)=\"\",\"No\",IF(LEFT(VLOOKUP($G445,$H$11:$DN$1000,111,FALSE),3)=\"The\",EI445,VLOOKUP(VLOOKUP($G445,$H$11:$DN$1000,111,FALSE),DeclMatrix!$A$2:$F$5,VLOOKUP('Enrollment Form'!$B445,DeclMatrix!$A$8:$B$12,2,FALSE),FALSE))))","v":""},"",null,"","","","","","","","","","","",""]
["",{"$nulls":5},"","",{"$nulls":18},"","","","",{"$nulls":30},"","","","",{"$nulls":60},"",{"$f":"IF($A446=\"\",\"\",IF(VLOOKUP($G446,$H$11:$DN$1000,96,FALSE)=\"\",\"No\",IF(LEFT(VLOOKUP($G446,$H$11:$DN$1000,96,FALSE),3)=\"The\",EF446,VLOOKUP(VLOOKUP($G446,$H$11:$DN$1000,96,FALSE),DeclMatrix!$A$2:$F$5,VLOOKUP('Enrollment Form'!$B446,DeclMatrix!$A$8:$B$12,2,FALSE),FALSE))))","v":""},{"$f":"IF($A446=\"\",\"\",IF(VLOOKUP($G446,$H$11:$DN$1000,101,FALSE)=\"\",\"No\",IF(LEFT(VLOOKUP($G446,$H$11:$DN$1000,101,FALSE),3)=\"The\",EG446,VLOOKUP(VLOOKUP($G446,$H$11:$DN$1000,101,FALSE),DeclMatrix!$A$2:$F$5,VLOOKUP('Enrollment Form'!$B446,DeclMatrix!$A$8:$B$12,2,FALSE),FALSE))))","v":""},{"$f":"IF($A446=\"\",\"\",IF(VLOOKUP($G446,$H$11:$DN$1000,106,FALSE)=\"\",\"No\",IF(LEFT(VLOOKUP($G446,$H$11:$DN$1000,106,FALSE),3)=\"The\",EH446,VLOOKUP(VLOOKUP($G446,$H$11:$DN$1000,106,FALSE),DeclMatrix!$A$2:$F$5,VLOOKUP('Enrollment Form'!$B446,DeclMatrix!$A$8:$B$12,2,FALSE),FALSE))))","v":""},{"$f":"IF($A446=\"\",\"\",IF(VLOOKUP($G446,$H$11:$DN$1000,111,FALSE)=\"\",\"No\",IF(LEFT(VLOOKUP($G446,$H$11:$DN$1000,111,FALSE),3)=\"The\",EI446,VLOOKUP(VLOOKUP($G446,$H$11:$DN$1000,111,FALSE),DeclMatrix!$A$2:$F$5,VLOOKUP('Enrollment Form'!$B446,DeclMatrix!$A$8:$B$12,2,FALSE),FALSE))))","v":""},"",null,"","","","","","","","","","","",""]
["",{"$nulls":5},"","",{"$nulls":18},"","","","",{"$nulls":30},"","","","",{"$nulls":60},"",{"$f":"IF($A447=\"\",\"\",IF(VLOOKUP($G447,$H$11:$DN$1000,96,FALSE)=\"\",\"No\",IF(LEFT(VLOOKUP($G447,$H$11:$DN$1000,96,FALSE),3)=\"The\",EF447,VLOOKUP(VLOOKUP($G447,$H$11:$DN$1000,96,FALSE),DeclMatrix!$A$2:$F$5,VLOOKUP('Enrollment Form'!$B447,DeclMatrix!$A$8:$B$12,2,FALSE),FALSE))))","v":""},{"$f":"IF($A447=\"\",\"\",IF(VLOOKUP($G447,$H$11:$DN$1000,101,FALSE)=\"\",\"No\",IF(LEFT(VLOOKUP($G447,$H$11:$DN$1000,101,FALSE),3)=\"The\",EG447,VLOOKUP(VLOOKUP($G447,$H$11:$DN$1000,101,FALSE),DeclMatrix!$A$2:$F$5,VLOOKUP('Enrollment Form'!$B447,DeclMatrix!$A$8:$B$12,2,FALSE),FALSE))))","v":""},{"$f":"IF($A447=\"\",\"\",IF(VLOOKUP($G447,$H$11:$DN$1000,106,FALSE)=\"\",\"No\",IF(LEFT(VLOOKUP($G447,$H$11:$DN$1000,106,FALSE),3)=\"The\",EH447,VLOOKUP(VLOOKUP($G447,$H$11:$DN$1000,106,FALSE),DeclMatrix!$A$2:$F$5,VLOOKUP('Enrollment Form'!$B447,DeclMatrix!$A$8:$B$12,2,FALSE),FALSE))))","v":""},{"$f":"IF($A447=\"\",\"\",IF(VLOOKUP($G447,$H$11:$DN$1000,111,FALSE)=\"\",\"No\",IF(LEFT(VLOOKUP($G447,$H$11:$DN$1000,111,FALSE),3)=\"The\",EI447,VLOOKUP(VLOOKUP($G447,$H$11:$DN$1000,111,FALSE),DeclMatrix!$A$2:$F$5,VLOOKUP('Enrollment Form'!$B447,DeclMatrix!$A$8:$B$12,2,FALSE),FALSE))))","v":""},"",null,"","","","","","","","","","","",""]
["",{"$nulls":5},"","",{"$nulls":18},"","","","",{"$nulls":30},"","","","",{"$nulls":60},"",{"$f":"IF($A448=\"\",\"\",IF(VLOOKUP($G448,$H$11:$DN$1000,96,FALSE)=\"\",\"No\",IF(LEFT(VLOOKUP($G448,$H$11:$DN$1000,96,FALSE),3)=\"The\",EF448,VLOOKUP(VLOOKUP($G448,$H$11:$DN$1000,96,FALSE),DeclMatrix!$A$2:$F$5,VLOOKUP('Enrollment Form'!$B448,DeclMatrix!$A$8:$B$12,2,FALSE),FALSE))))","v":""},{"$f":"IF($A448=\"\",\"\",IF(VLOOKUP($G448,$H$11:$DN$1000,101,FALSE)=\"\",\"No\",IF(LEFT(VLOOKUP($G448,$H$11:$DN$1000,101,FALSE),3)=\"The\",EG448,VLOOKUP(VLOOKUP($G448,$H$11:$DN$1000,101,FALSE),DeclMatrix!$A$2:$F$5,VLOOKUP('Enrollment Form'!$B448,DeclMatrix!$A$8:$B$12,2,FALSE),FALSE))))","v":""},{"$f":"IF($A448=\"\",\"\",IF(VLOOKUP($G448,$H$11:$DN$1000,106,FALSE)=\"\",\"No\",IF(LEFT(VLOOKUP($G448,$H$11:$DN$1000,106,FALSE),3)=\"The\",EH448,VLOOKUP(VLOOKUP($G448,$H$11:$DN$1000,106,FALSE),DeclMatrix!$A$2:$F$5,VLOOKUP('Enrollment Form'!$B448,DeclMatrix!$A$8:$B$12,2,FALSE),FALSE))))","v":""},{"$f":"IF($A448=\"\",\"\",IF(VLOOKUP($G448,$H$11:$DN$1000,111,FALSE)=\"\",\"No\",IF(LEFT(VLOOKUP($G448,$H$11:$DN$1000,111,FALSE),3)=\"The\",EI448,VLOOKUP(VLOOKUP($G448,$H$11:$DN$1000,111,FALSE),DeclMatrix!$A$2:$F$5,VLOOKUP('Enrollment Form'!$B448,DeclMatrix!$A$8:$B$12,2,FALSE),FALSE))))","v":""},"",null,"","","","","","","","","","","",""]
["",{"$nulls":5},"","",{"$nulls":18},"","","","",{"$nulls":30},"","","","",{"$nulls":60},"",{"$f":"IF($A449=\"\",\"\",IF(VLOOKUP($G449,$H$11:$DN$1000,96,FALSE)=\"\",\"No\",IF(LEFT(VLOOKUP($G449,$H$11:$DN$1000,96,FALSE),3)=\"The\",EF449,VLOOKUP(VLOOKUP($G449,$H$11:$DN$1000,96,FALSE),DeclMatrix!$A$2:$F$5,VLOOKUP('Enrollment Form'!$B449,DeclMatrix!$A$8:$B$12,2,FALSE),FALSE))))","v":""},{"$f":"IF($A449=\"\",\"\",IF(VLOOKUP($G449,$H$11:$DN$1000,101,FALSE)=\"\",\"No\",IF(LEFT(VLOOKUP($G449,$H$11:$DN$1000,101,FALSE),3)=\"The\",EG449,VLOOKUP(VLOOKUP($G449,$H$11:$DN$1000,101,FALSE),DeclMatrix!$A$2:$F$5,VLOOKUP('Enrollment Form'!$B449,DeclMatrix!$A$8:$B$12,2,FALSE),FALSE))))","v":""},{"$f":"IF($A449=\"\",\"\",IF(VLOOKUP($G449,$H$11:$DN$1000,106,FALSE)=\"\",\"No\",IF(LEFT(VLOOKUP($G449,$H$11:$DN$1000,106,FALSE),3)=\"The\",EH449,VLOOKUP(VLOOKUP($G449,$H$11:$DN$1000,106,FALSE),DeclMatrix!$A$2:$F$5,VLOOKUP('Enrollment Form'!$B449,DeclMatrix!$A$8:$B$12,2,FALSE),FALSE))))","v":""},{"$f":"IF($A449=\"\",\"\",IF(VLOOKUP($G449,$H$11:$DN$1000,111,FALSE)=\"\",\"No\",IF(LEFT(VLOOKUP($G449,$H$11:$DN$1000,111,FALSE),3)=\"The\",EI449,VLOOKUP(VLOOKUP($G449,$H$11:$DN$1000,111,FALSE),DeclMatrix!$A$2:$F$5,VLOOKUP('Enrollment Form'!$B449,DeclMatrix!$A$8:$B$12,2,FALSE),FALSE))))","v":""},"",null,"","","","","","","","","","","",""]
["",{"$nulls":5},"","",{"$nulls":18},"","","","",{"$nulls":30},"","","","",{"$nulls":60},"",{"$f":"IF($A450=\"\",\"\",IF(VLOOKUP($G450,$H$11:$DN$1000,96,FALSE)=\"\",\"No\",IF(LEFT(VLOOKUP($G450,$H$11:$DN$1000,96,FALSE),3)=\"The\",EF450,VLOOKUP(VLOOKUP($G450,$H$11:$DN$1000,96,FALSE),DeclMatrix!$A$2:$F$5,VLOOKUP('Enrollment Form'!$B450,DeclMatrix!$A$8:$B$12,2,FALSE),FALSE))))","v":""},{"$f":"IF($A450=\"\",\"\",IF(VLOOKUP($G450,$H$11:$DN$1000,101,FALSE)=\"\",\"No\",IF(LEFT(VLOOKUP($G450,$H$11:$DN$1000,101,FALSE),3)=\"The\",EG450,VLOOKUP(VLOOKUP($G450,$H$11:$DN$1000,101,FALSE),DeclMatrix!$A$2:$F$5,VLOOKUP('Enrollment Form'!$B450,DeclMatrix!$A$8:$B$12,2,FALSE),FALSE))))","v":""},{"$f":"IF($A450=\"\",\"\",IF(VLOOKUP($G450,$H$11:$DN$1000,106,FALSE)=\"\",\"No\",IF(LEFT(VLOOKUP($G450,$H$11:$DN$1000,106,FALSE),3)=\"The\",EH450,VLOOKUP(VLOOKUP($G450,$H$11:$DN$1000,106,FALSE),DeclMatrix!$A$2:$F$5,VLOOKUP('Enrollment Form'!$B450,DeclMatrix!$A$8:$B$12,2,FALSE),FALSE))))","v":""},{"$f":"IF($A450=\"\",\"\",IF(VLOOKUP($G450,$H$11:$DN$1000,111,FALSE)=\"\",\"No\",IF(LEFT(VLOOKUP($G450,$H$11:$DN$1000,111,FALSE),3)=\"The\",EI450,VLOOKUP(VLOOKUP($G450,$H$11:$DN$1000,111,FALSE),DeclMatrix!$A$2:$F$5,VLOOKUP('Enrollment Form'!$B450,DeclMatrix!$A$8:$B$12,2,FALSE),FALSE))))","v":""},"",null,"","","","","","","","","","","",""]
["",{"$nulls":5},"","",{"$nulls":18},"","","","",{"$nulls":30},"","","","",{"$nulls":60},"",{"$f":"IF($A451=\"\",\"\",IF(VLOOKUP($G451,$H$11:$DN$1000,96,FALSE)=\"\",\"No\",IF(LEFT(VLOOKUP($G451,$H$11:$DN$1000,96,FALSE),3)=\"The\",EF451,VLOOKUP(VLOOKUP($G451,$H$11:$DN$1000,96,FALSE),DeclMatrix!$A$2:$F$5,VLOOKUP('Enrollment Form'!$B451,DeclMatrix!$A$8:$B$12,2,FALSE),FALSE))))","v":""},{"$f":"IF($A451=\"\",\"\",IF(VLOOKUP($G451,$H$11:$DN$1000,101,FALSE)=\"\",\"No\",IF(LEFT(VLOOKUP($G451,$H$11:$DN$1000,101,FALSE),3)=\"The\",EG451,VLOOKUP(VLOOKUP($G451,$H$11:$DN$1000,101,FALSE),DeclMatrix!$A$2:$F$5,VLOOKUP('Enrollment Form'!$B451,DeclMatrix!$A$8:$B$12,2,FALSE),FALSE))))","v":""},{"$f":"IF($A451=\"\",\"\",IF(VLOOKUP($G451,$H$11:$DN$1000,106,FALSE)=\"\",\"No\",IF(LEFT(VLOOKUP($G451,$H$11:$DN$1000,106,FALSE),3)=\"The\",EH451,VLOOKUP(VLOOKUP($G451,$H$11:$DN$1000,106,FALSE),DeclMatrix!$A$2:$F$5,VLOOKUP('Enrollment Form'!$B451,DeclMatrix!$A$8:$B$12,2,FALSE),FALSE))))","v":""},{"$f":"IF($A451=\"\",\"\",IF(VLOOKUP($G451,$H$11:$DN$1000,111,FALSE)=\"\",\"No\",IF(LEFT(VLOOKUP($G451,$H$11:$DN$1000,111,FALSE),3)=\"The\",EI451,VLOOKUP(VLOOKUP($G451,$H$11:$DN$1000,111,FALSE),DeclMatrix!$A$2:$F$5,VLOOKUP('Enrollment Form'!$B451,DeclMatrix!$A$8:$B$12,2,FALSE),FALSE))))","v":""},"",null,"","","","","","","","","","","",""]
["",{"$nulls":5},"","",{"$nulls":18},"","","","",{"$nulls":30},"","","","",{"$nulls":60},"",{"$f":"IF($A452=\"\",\"\",IF(VLOOKUP($G452,$H$11:$DN$1000,96,FALSE)=\"\",\"No\",IF(LEFT(VLOOKUP($G452,$H$11:$DN$1000,96,FALSE),3)=\"The\",EF452,VLOOKUP(VLOOKUP($G452,$H$11:$DN$1000,96,FALSE),DeclMatrix!$A$2:$F$5,VLOOKUP('Enrollment Form'!$B452,DeclMatrix!$A$8:$B$12,2,FALSE),FALSE))))","v":""},{"$f":"IF($A452=\"\",\"\",IF(VLOOKUP($G452,$H$11:$DN$1000,101,FALSE)=\"\",\"No\",IF(LEFT(VLOOKUP($G452,$H$11:$DN$1000,101,FALSE),3)=\"The\",EG452,VLOOKUP(VLOOKUP($G452,$H$11:$DN$1000,101,FALSE),DeclMatrix!$A$2:$F$5,VLOOKUP('Enrollment Form'!$B452,DeclMatrix!$A$8:$B$12,2,FALSE),FALSE))))","v":""},{"$f":"IF($A452=\"\",\"\",IF(VLOOKUP($G452,$H$11:$DN$1000,106,FALSE)=\"\",\"No\",IF(LEFT(VLOOKUP($G452,$H$11:$DN$1000,106,FALSE),3)=\"The\",EH452,VLOOKUP(VLOOKUP($G452,$H$11:$DN$1000,106,FALSE),DeclMatrix!$A$2:$F$5,VLOOKUP('Enrollment Form'!$B452,DeclMatrix!$A$8:$B$12,2,FALSE),FALSE))))","v":""},{"$f":"IF($A452=\"\",\"\",IF(VLOOKUP($G452,$H$11:$DN$1000,111,FALSE)=\"\",\"No\",IF(LEFT(VLOOKUP($G452,$H$11:$DN$1000,111,FALSE),3)=\"The\",EI452,VLOOKUP(VLOOKUP($G452,$H$11:$DN$1000,111,FALSE),DeclMatrix!$A$2:$F$5,VLOOKUP('Enrollment Form'!$B452,DeclMatrix!$A$8:$B$12,2,FALSE),FALSE))))","v":""},"",null,"","","","","","","","","","","",""]
["",{"$nulls":5},"","",{"$nulls":18},"","","","",{"$nulls":30},"","","","",{"$nulls":60},"",{"$f":"IF($A453=\"\",\"\",IF(VLOOKUP($G453,$H$11:$DN$1000,96,FALSE)=\"\",\"No\",IF(LEFT(VLOOKUP($G453,$H$11:$DN$1000,96,FALSE),3)=\"The\",EF453,VLOOKUP(VLOOKUP($G453,$H$11:$DN$1000,96,FALSE),DeclMatrix!$A$2:$F$5,VLOOKUP('Enrollment Form'!$B453,DeclMatrix!$A$8:$B$12,2,FALSE),FALSE))))","v":""},{"$f":"IF($A453=\"\",\"\",IF(VLOOKUP($G453,$H$11:$DN$1000,101,FALSE)=\"\",\"No\",IF(LEFT(VLOOKUP($G453,$H$11:$DN$1000,101,FALSE),3)=\"The\",EG453,VLOOKUP(VLOOKUP($G453,$H$11:$DN$1000,101,FALSE),DeclMatrix!$A$2:$F$5,VLOOKUP('Enrollment Form'!$B453,DeclMatrix!$A$8:$B$12,2,FALSE),FALSE))))","v":""},{"$f":"IF($A453=\"\",\"\",IF(VLOOKUP($G453,$H$11:$DN$1000,106,FALSE)=\"\",\"No\",IF(LEFT(VLOOKUP($G453,$H$11:$DN$1000,106,FALSE),3)=\"The\",EH453,VLOOKUP(VLOOKUP($G453,$H$11:$DN$1000,106,FALSE),DeclMatrix!$A$2:$F$5,VLOOKUP('Enrollment Form'!$B453,DeclMatrix!$A$8:$B$12,2,FALSE),FALSE))))","v":""},{"$f":"IF($A453=\"\",\"\",IF(VLOOKUP($G453,$H$11:$DN$1000,111,FALSE)=\"\",\"No\",IF(LEFT(VLOOKUP($G453,$H$11:$DN$1000,111,FALSE),3)=\"The\",EI453,VLOOKUP(VLOOKUP($G453,$H$11:$DN$1000,111,FALSE),DeclMatrix!$A$2:$F$5,VLOOKUP('Enrollment Form'!$B453,DeclMatrix!$A$8:$B$12,2,FALSE),FALSE))))","v":""},"",null,"","","","","","","","","","","",""]
["",{"$nulls":5},"","",{"$nulls":18},"","","","",{"$nulls":30},"","","","",{"$nulls":60},"",{"$f":"IF($A454=\"\",\"\",IF(VLOOKUP($G454,$H$11:$DN$1000,96,FALSE)=\"\",\"No\",IF(LEFT(VLOOKUP($G454,$H$11:$DN$1000,96,FALSE),3)=\"The\",EF454,VLOOKUP(VLOOKUP($G454,$H$11:$DN$1000,96,FALSE),DeclMatrix!$A$2:$F$5,VLOOKUP('Enrollment Form'!$B454,DeclMatrix!$A$8:$B$12,2,FALSE),FALSE))))","v":""},{"$f":"IF($A454=\"\",\"\",IF(VLOOKUP($G454,$H$11:$DN$1000,101,FALSE)=\"\",\"No\",IF(LEFT(VLOOKUP($G454,$H$11:$DN$1000,101,FALSE),3)=\"The\",EG454,VLOOKUP(VLOOKUP($G454,$H$11:$DN$1000,101,FALSE),DeclMatrix!$A$2:$F$5,VLOOKUP('Enrollment Form'!$B454,DeclMatrix!$A$8:$B$12,2,FALSE),FALSE))))","v":""},{"$f":"IF($A454=\"\",\"\",IF(VLOOKUP($G454,$H$11:$DN$1000,106,FALSE)=\"\",\"No\",IF(LEFT(VLOOKUP($G454,$H$11:$DN$1000,106,FALSE),3)=\"The\",EH454,VLOOKUP(VLOOKUP($G454,$H$11:$DN$1000,106,FALSE),DeclMatrix!$A$2:$F$5,VLOOKUP('Enrollment Form'!$B454,DeclMatrix!$A$8:$B$12,2,FALSE),FALSE))))","v":""},{"$f":"IF($A454=\"\",\"\",IF(VLOOKUP($G454,$H$11:$DN$1000,111,FALSE)=\"\",\"No\",IF(LEFT(VLOOKUP($G454,$H$11:$DN$1000,111,FALSE),3)=\"The\",EI454,VLOOKUP(VLOOKUP($G454,$H$11:$DN$1000,111,FALSE),DeclMatrix!$A$2:$F$5,VLOOKUP('Enrollment Form'!$B454,DeclMatrix!$A$8:$B$12,2,FALSE),FALSE))))","v":""},"",null,"","","","","","","","","","","",""]
["",{"$nulls":5},"","",{"$nulls":18},"","","","",{"$nulls":30},"","","","",{"$nulls":60},"",{"$f":"IF($A455=\"\",\"\",IF(VLOOKUP($G455,$H$11:$DN$1000,96,FALSE)=\"\",\"No\",IF(LEFT(VLOOKUP($G455,$H$11:$DN$1000,96,FALSE),3)=\"The\",EF455,VLOOKUP(VLOOKUP($G455,$H$11:$DN$1000,96,FALSE),DeclMatrix!$A$2:$F$5,VLOOKUP('Enrollment Form'!$B455,DeclMatrix!$A$8:$B$12,2,FALSE),FALSE))))","v":""},{"$f":"IF($A455=\"\",\"\",IF(VLOOKUP($G455,$H$11:$DN$1000,101,FALSE)=\"\",\"No\",IF(LEFT(VLOOKUP($G455,$H$11:$DN$1000,101,FALSE),3)=\"The\",EG455,VLOOKUP(VLOOKUP($G455,$H$11:$DN$1000,101,FALSE),DeclMatrix!$A$2:$F$5,VLOOKUP('Enrollment Form'!$B455,DeclMatrix!$A$8:$B$12,2,FALSE),FALSE))))","v":""},{"$f":"IF($A455=\"\",\"\",IF(VLOOKUP($G455,$H$11:$DN$1000,106,FALSE)=\"\",\"No\",IF(LEFT(VLOOKUP($G455,$H$11:$DN$1000,106,FALSE),3)=\"The\",EH455,VLOOKUP(VLOOKUP($G455,$H$11:$DN$1000,106,FALSE),DeclMatrix!$A$2:$F$5,VLOOKUP('Enrollment Form'!$B455,DeclMatrix!$A$8:$B$12,2,FALSE),FALSE))))","v":""},{"$f":"IF($A455=\"\",\"\",IF(VLOOKUP($G455,$H$11:$DN$1000,111,FALSE)=\"\",\"No\",IF(LEFT(VLOOKUP($G455,$H$11:$DN$1000,111,FALSE),3)=\"The\",EI455,VLOOKUP(VLOOKUP($G455,$H$11:$DN$1000,111,FALSE),DeclMatrix!$A$2:$F$5,VLOOKUP('Enrollment Form'!$B455,DeclMatrix!$A$8:$B$12,2,FALSE),FALSE))))","v":""},"",null,"","","","","","","","","","","",""]
["",{"$nulls":5},"","",{"$nulls":18},"","","","",{"$nulls":30},"","","","",{"$nulls":60},"",{"$f":"IF($A456=\"\",\"\",IF(VLOOKUP($G456,$H$11:$DN$1000,96,FALSE)=\"\",\"No\",IF(LEFT(VLOOKUP($G456,$H$11:$DN$1000,96,FALSE),3)=\"The\",EF456,VLOOKUP(VLOOKUP($G456,$H$11:$DN$1000,96,FALSE),DeclMatrix!$A$2:$F$5,VLOOKUP('Enrollment Form'!$B456,DeclMatrix!$A$8:$B$12,2,FALSE),FALSE))))","v":""},{"$f":"IF($A456=\"\",\"\",IF(VLOOKUP($G456,$H$11:$DN$1000,101,FALSE)=\"\",\"No\",IF(LEFT(VLOOKUP($G456,$H$11:$DN$1000,101,FALSE),3)=\"The\",EG456,VLOOKUP(VLOOKUP($G456,$H$11:$DN$1000,101,FALSE),DeclMatrix!$A$2:$F$5,VLOOKUP('Enrollment Form'!$B456,DeclMatrix!$A$8:$B$12,2,FALSE),FALSE))))","v":""},{"$f":"IF($A456=\"\",\"\",IF(VLOOKUP($G456,$H$11:$DN$1000,106,FALSE)=\"\",\"No\",IF(LEFT(VLOOKUP($G456,$H$11:$DN$1000,106,FALSE),3)=\"The\",EH456,VLOOKUP(VLOOKUP($G456,$H$11:$DN$1000,106,FALSE),DeclMatrix!$A$2:$F$5,VLOOKUP('Enrollment Form'!$B456,DeclMatrix!$A$8:$B$12,2,FALSE),FALSE))))","v":""},{"$f":"IF($A456=\"\",\"\",IF(VLOOKUP($G456,$H$11:$DN$1000,111,FALSE)=\"\",\"No\",IF(LEFT(VLOOKUP($G456,$H$11:$DN$1000,111,FALSE),3)=\"The\",EI456,VLOOKUP(VLOOKUP($G456,$H$11:$DN$1000,111,FALSE),DeclMatrix!$A$2:$F$5,VLOOKUP('Enrollment Form'!$B456,DeclMatrix!$A$8:$B$12,2,FALSE),FALSE))))","v":""},"",null,"","","","","","","","","","","",""]
["",{"$nulls":5},"","",{"$nulls":18},"","","","",{"$nulls":30},"","","","",{"$nulls":60},"",{"$f":"IF($A457=\"\",\"\",IF(VLOOKUP($G457,$H$11:$DN$1000,96,FALSE)=\"\",\"No\",IF(LEFT(VLOOKUP($G457,$H$11:$DN$1000,96,FALSE),3)=\"The\",EF457,VLOOKUP(VLOOKUP($G457,$H$11:$DN$1000,96,FALSE),DeclMatrix!$A$2:$F$5,VLOOKUP('Enrollment Form'!$B457,DeclMatrix!$A$8:$B$12,2,FALSE),FALSE))))","v":""},{"$f":"IF($A457=\"\",\"\",IF(VLOOKUP($G457,$H$11:$DN$1000,101,FALSE)=\"\",\"No\",IF(LEFT(VLOOKUP($G457,$H$11:$DN$1000,101,FALSE),3)=\"The\",EG457,VLOOKUP(VLOOKUP($G457,$H$11:$DN$1000,101,FALSE),DeclMatrix!$A$2:$F$5,VLOOKUP('Enrollment Form'!$B457,DeclMatrix!$A$8:$B$12,2,FALSE),FALSE))))","v":""},{"$f":"IF($A457=\"\",\"\",IF(VLOOKUP($G457,$H$11:$DN$1000,106,FALSE)=\"\",\"No\",IF(LEFT(VLOOKUP($G457,$H$11:$DN$1000,106,FALSE),3)=\"The\",EH457,VLOOKUP(VLOOKUP($G457,$H$11:$DN$1000,106,FALSE),DeclMatrix!$A$2:$F$5,VLOOKUP('Enrollment Form'!$B457,DeclMatrix!$A$8:$B$12,2,FALSE),FALSE))))","v":""},{"$f":"IF($A457=\"\",\"\",IF(VLOOKUP($G457,$H$11:$DN$1000,111,FALSE)=\"\",\"No\",IF(LEFT(VLOOKUP($G457,$H$11:$DN$1000,111,FALSE),3)=\"The\",EI457,VLOOKUP(VLOOKUP($G457,$H$11:$DN$1000,111,FALSE),DeclMatrix!$A$2:$F$5,VLOOKUP('Enrollment Form'!$B457,DeclMatrix!$A$8:$B$12,2,FALSE),FALSE))))","v":""},"",null,"","","","","","","","","","","",""]
["",{"$nulls":5},"","",{"$nulls":18},"","","","",{"$nulls":30},"","","","",{"$nulls":60},"",{"$f":"IF($A458=\"\",\"\",IF(VLOOKUP($G458,$H$11:$DN$1000,96,FALSE)=\"\",\"No\",IF(LEFT(VLOOKUP($G458,$H$11:$DN$1000,96,FALSE),3)=\"The\",EF458,VLOOKUP(VLOOKUP($G458,$H$11:$DN$1000,96,FALSE),DeclMatrix!$A$2:$F$5,VLOOKUP('Enrollment Form'!$B458,DeclMatrix!$A$8:$B$12,2,FALSE),FALSE))))","v":""},{"$f":"IF($A458=\"\",\"\",IF(VLOOKUP($G458,$H$11:$DN$1000,101,FALSE)=\"\",\"No\",IF(LEFT(VLOOKUP($G458,$H$11:$DN$1000,101,FALSE),3)=\"The\",EG458,VLOOKUP(VLOOKUP($G458,$H$11:$DN$1000,101,FALSE),DeclMatrix!$A$2:$F$5,VLOOKUP('Enrollment Form'!$B458,DeclMatrix!$A$8:$B$12,2,FALSE),FALSE))))","v":""},{"$f":"IF($A458=\"\",\"\",IF(VLOOKUP($G458,$H$11:$DN$1000,106,FALSE)=\"\",\"No\",IF(LEFT(VLOOKUP($G458,$H$11:$DN$1000,106,FALSE),3)=\"The\",EH458,VLOOKUP(VLOOKUP($G458,$H$11:$DN$1000,106,FALSE),DeclMatrix!$A$2:$F$5,VLOOKUP('Enrollment Form'!$B458,DeclMatrix!$A$8:$B$12,2,FALSE),FALSE))))","v":""},{"$f":"IF($A458=\"\",\"\",IF(VLOOKUP($G458,$H$11:$DN$1000,111,FALSE)=\"\",\"No\",IF(LEFT(VLOOKUP($G458,$H$11:$DN$1000,111,FALSE),3)=\"The\",EI458,VLOOKUP(VLOOKUP($G458,$H$11:$DN$1000,111,FALSE),DeclMatrix!$A$2:$F$5,VLOOKUP('Enrollment Form'!$B458,DeclMatrix!$A$8:$B$12,2,FALSE),FALSE))))","v":""},"",null,"","","","","","","","","","","",""]
[{"$f":"IF(LEN($B459)>0,$C$2,\"\")","v":""},{"$nulls":5},"","",{"$nulls":18},"","","","",{"$nulls":30},{"$f":"IF(AND($B459<>\"Subscriber\",$BH459=\"Yes\"),VLOOKUP($G459,$H$11:$Y$1000,15,FALSE),\"\")","v":""},{"$f":"IF(AND($B459<>\"Subscriber\",$BH459=\"Yes\"),VLOOKUP($G459,$H$11:$Y$1000,16,FALSE),\"\")","v":""},{"$f":"IF(AND($B459<>\"Subscriber\",$BH459=\"Yes\"),VLOOKUP($G459,$H$11:$Y$1000,17,FALSE),\"\")","v":""},{"$f":"IF(AND($B459<>\"Subscriber\",$BH459=\"Yes\"),VLOOKUP($G459,$H$11:$Y$1000,18,FALSE),\"\")","v":""},{"$nulls":60},{"$f":"IF($A459=\"\",\"\",IF($B459=\"Subscriber\",$AG459,VLOOKUP($G459,$H$11:$AG$1000,26,FALSE)))","v":""},{"$f":"IF($A459=\"\",\"\",IF(VLOOKUP($G459,$H$11:$DN$1000,96,FALSE)=\"\",\"No\",IF(LEFT(VLOOKUP($G459,$H$11:$DN$1000,96,FALSE),3)=\"The\",EF459,VLOOKUP(VLOOKUP($G459,$H$11:$DN$1000,96,FALSE),DeclMatrix!$A$2:$F$5,VLOOKUP('Enrollment Form'!$B459,DeclMatrix!$A$8:$B$12,2,FALSE),FALSE))))","v":""},{"$f":"IF($A459=\"\",\"\",IF(VLOOKUP($G459,$H$11:$DN$1000,101,FALSE)=\"\",\"No\",IF(LEFT(VLOOKUP($G459,$H$11:$DN$1000,101,FALSE),3)=\"The\",EG459,VLOOKUP(VLOOKUP($G459,$H$11:$DN$1000,101,FALSE),DeclMatrix!$A$2:$F$5,VLOOKUP('Enrollment Form'!$B459,DeclMatrix!$A$8:$B$12,2,FALSE),FALSE))))","v":""},{"$f":"IF($A459=\"\",\"\",IF(VLOOKUP($G459,$H$11:$DN$1000,106,FALSE)=\"\",\"No\",IF(LEFT(VLOOKUP($G459,$H$11:$DN$1000,106,FALSE),3)=\"The\",EH459,VLOOKUP(VLOOKUP($G459,$H$11:$DN$1000,106,FALSE),DeclMatrix!$A$2:$F$5,VLOOKUP('Enrollment Form'!$B459,DeclMatrix!$A$8:$B$12,2,FALSE),FALSE))))","v":""},{"$f":"IF($A459=\"\",\"\",IF(VLOOKUP($G459,$H$11:$DN$1000,111,FALSE)=\"\",\"No\",IF(LEFT(VLOOKUP($G459,$H$11:$DN$1000,111,FALSE),3)=\"The\",EI459,VLOOKUP(VLOOKUP($G459,$H$11:$DN$1000,111,FALSE),DeclMatrix!$A$2:$F$5,VLOOKUP('Enrollment Form'!$B459,DeclMatrix!$A$8:$B$12,2,FALSE),FALSE))))","v":""},"",null,{"$f":"$B459&$G459&$J459","v":""},{"$f":"$B459&$G459&$L459","v":""},{"$f":"$B459&$G459&$N459","v":""},{"$f":"$B459&$G459&$O459","v":""},"","","","",{"$f":"IF($A459=\"\",\"\",IF(AND($B459=\"Subscriber\",$I459<>\"Waive\",$I459<>\"\"),\"Yes\",IF(AND($B459<>\"Subscriber\",$BF459=\"Yes\"),VLOOKUP($G459,$H$11:$EM$1000,133,FALSE),IF(AND($C459=\"Enroll\",VLOOKUP($G460,$H$11:$EM$1000,96,FALSE)<>\"\"),VLOOKUP($DV459,$DW$2:$DX$3,2,FALSE),\"No\"))))","v":""},{"$f":"IF($A459=\"\",\"\",IF(AND($B459=\"Subscriber\",$K459<>\"Waive\",$K459<>\"\"),\"Yes\",IF(AND($B459<>\"Subscriber\",$BF459=\"Yes\"),VLOOKUP($G459,$H$11:$EM$1000,134,FALSE),IF(AND($C459=\"Enroll\",VLOOKUP($G460,$H$11:$EM$1000,101,FALSE)<>\"\"),VLOOKUP($DW459,$DW$2:$DX$3,2,FALSE),\"No\"))))","v":""},{"$f":"IF($A459=\"\",\"\",IF(AND($B459=\"Subscriber\",$M459<>\"Waive\",$M459<>\"\"),\"Yes\",IF(AND($B459<>\"Subscriber\",$BF459=\"Yes\"),VLOOKUP($G459,$H$11:$EM$1000,135,FALSE),IF(AND($C459=\"Enroll\",VLOOKUP($G460,$H$11:$EM$1000,106,FALSE)<>\"\"),VLOOKUP($DX459,$DW$2:$DX$3,2,FALSE),\"No\"))))","v":""},{"$f":"IF($A459=\"\",\"\",IF(AND($B459=\"Subscriber\",$O459<>\"Waive\",$O459<>\"\"),\"Yes\",IF(AND($B459<>\"Subscriber\",$BF459=\"Yes\"),VLOOKUP($G459,$H$11:$EM$1000,136,FALSE),IF(AND($C459=\"Enroll\",VLOOKUP($G460,$H$11:$EM$1000,111,FALSE)<>\"\"),VLOOKUP($DY459,$DW$2:$DX$3,2,FALSE),\"No\"))))","v":""}]
["",{"$nulls":5},{"$f":"IF(A460=\"\",\"\",IF(AND(B460<>\"Subscriber\",B460<>\"\"),G459,\"\"))","v":""},{"$f":"IF(AND(B460=\"Subscriber\",G460<>\"\"),G460,\"\")","v":""},{"$nulls":18},{"$f":"IF(AND($B460=\"Subscriber\",$Z460=\"Yes\"),V460,\"\")","v":""},{"$f":"IF(AND($B460=\"Subscriber\",$Z460=\"Yes\"),W460,\"\")","v":""},{"$f":"IF(AND($B460=\"Subscriber\",$Z460=\"Yes\"),X460,\"\")","v":""},{"$f":"IF(AND($B460=\"Subscriber\",$Z460=\"Yes\"),Y460,\"\")","v":""},{"$nulls":30},"","","","",{"$nulls":60},"",{"$f":"IF($A460=\"\",\"\",IF(VLOOKUP($G460,$H$11:$DN$1000,96,FALSE)=\"\",\"No\",IF(LEFT(VLOOKUP($G460,$H$11:$DN$1000,96,FALSE),3)=\"The\",EF460,VLOOKUP(VLOOKUP($G460,$H$11:$DN$1000,96,FALSE),DeclMatrix!$A$2:$F$5,VLOOKUP('Enrollment Form'!$B460,DeclMatrix!$A$8:$B$12,2,FALSE),FALSE))))","v":""},{"$f":"IF($A460=\"\",\"\",IF(VLOOKUP($G460,$H$11:$DN$1000,101,FALSE)=\"\",\"No\",IF(LEFT(VLOOKUP($G460,$H$11:$DN$1000,101,FALSE),3)=\"The\",EG460,VLOOKUP(VLOOKUP($G460,$H$11:$DN$1000,101,FALSE),DeclMatrix!$A$2:$F$5,VLOOKUP('Enrollment Form'!$B460,DeclMatrix!$A$8:$B$12,2,FALSE),FALSE))))","v":""},{"$f":"IF($A460=\"\",\"\",IF(VLOOKUP($G460,$H$11:$DN$1000,106,FALSE)=\"\",\"No\",IF(LEFT(VLOOKUP($G460,$H$11:$DN$1000,106,FALSE),3)=\"The\",EH460,VLOOKUP(VLOOKUP($G460,$H$11:$DN$1000,106,FALSE),DeclMatrix!$A$2:$F$5,VLOOKUP('Enrollment Form'!$B460,DeclMatrix!$A$8:$B$12,2,FALSE),FALSE))))","v":""},{"$f":"IF($A460=\"\",\"\",IF(VLOOKUP($G460,$H$11:$DN$1000,111,FALSE)=\"\",\"No\",IF(LEFT(VLOOKUP($G460,$H$11:$DN$1000,111,FALSE),3)=\"The\",EI460,VLOOKUP(VLOOKUP($G460,$H$11:$DN$1000,111,FALSE),DeclMatrix!$A$2:$F$5,VLOOKUP('Enrollment Form'!$B460,DeclMatrix!$A$8:$B$12,2,FALSE),FALSE))))","v":""},{"$f":"IF(A460<>\"\",\"1X\",\"\")","v":""},null,"","","","",{"$f":"IF($A460=\"\",\"\",IF($B460=\"Subscriber\",\"No\",IF(OR($CY460=\"\",$CY460=\"No\"),\"No\",\"Yes\")))","v":""},{"$f":"IF($A460=\"\",\"\",IF($B460=\"Subscriber\",\"No\",IF(OR($DD460=\"\",$DD460=\"No\"),\"No\",\"Yes\")))","v":""},{"$f":"IF($A460=\"\",\"\",IF($B460=\"Subscriber\",\"No\",IF(OR($DI460=\"\",$DI460=\"No\"),\"No\",\"Yes\")))","v":""},{"$f":"IF($A460=\"\",\"\",IF($B460=\"Subscriber\",\"No\",IF(OR($DN460=\"\",$DN460=\"No\"),\"No\",\"Yes\")))","v":""},"","","",""]
["",{"$nulls":5},"","",{"$nulls":18},"","","","",{"$nulls":30},"","","","",{"$nulls":60},"",{"$f":"IF($A461=\"\",\"\",IF(VLOOKUP($G461,$H$11:$DN$1000,96,FALSE)=\"\",\"No\",IF(LEFT(VLOOKUP($G461,$H$11:$DN$1000,96,FALSE),3)=\"The\",EF461,VLOOKUP(VLOOKUP($G461,$H$11:$DN$1000,96,FALSE),DeclMatrix!$A$2:$F$5,VLOOKUP('Enrollment Form'!$B461,DeclMatrix!$A$8:$B$12,2,FALSE),FALSE))))","v":""},{"$f":"IF($A461=\"\",\"\",IF(VLOOKUP($G461,$H$11:$DN$1000,101,FALSE)=\"\",\"No\",IF(LEFT(VLOOKUP($G461,$H$11:$DN$1000,101,FALSE),3)=\"The\",EG461,VLOOKUP(VLOOKUP($G461,$H$11:$DN$1000,101,FALSE),DeclMatrix!$A$2:$F$5,VLOOKUP('Enrollment Form'!$B461,DeclMatrix!$A$8:$B$12,2,FALSE),FALSE))))","v":""},{"$f":"IF($A461=\"\",\"\",IF(VLOOKUP($G461,$H$11:$DN$1000,106,FALSE)=\"\",\"No\",IF(LEFT(VLOOKUP($G461,$H$11:$DN$1000,106,FALSE),3)=\"The\",EH461,VLOOKUP(VLOOKUP($G461,$H$11:$DN$1000,106,FALSE),DeclMatrix!$A$2:$F$5,VLOOKUP('Enrollment Form'!$B461,DeclMatrix!$A$8:$B$12,2,FALSE),FALSE))))","v":""},{"$f":"IF($A461=\"\",\"\",IF(VLOOKUP($G461,$H$11:$DN$1000,111,FALSE)=\"\",\"No\",IF(LEFT(VLOOKUP($G461,$H$11:$DN$1000,111,FALSE),3)=\"The\",EI461,VLOOKUP(VLOOKUP($G461,$H$11:$DN$1000,111,FALSE),DeclMatrix!$A$2:$F$5,VLOOKUP('Enrollment Form'!$B461,DeclMatrix!$A$8:$B$12,2,FALSE),FALSE))))","v":""},"",null,"","","","","","","","","","","",""]
["",{"$nulls":5},"","",{"$nulls":18},"","","","",{"$nulls":30},"","","","",{"$nulls":60},"",{"$f":"IF($A462=\"\",\"\",IF(VLOOKUP($G462,$H$11:$DN$1000,96,FALSE)=\"\",\"No\",IF(LEFT(VLOOKUP($G462,$H$11:$DN$1000,96,FALSE),3)=\"The\",EF462,VLOOKUP(VLOOKUP($G462,$H$11:$DN$1000,96,FALSE),DeclMatrix!$A$2:$F$5,VLOOKUP('Enrollment Form'!$B462,DeclMatrix!$A$8:$B$12,2,FALSE),FALSE))))","v":""},{"$f":"IF($A462=\"\",\"\",IF(VLOOKUP($G462,$H$11:$DN$1000,101,FALSE)=\"\",\"No\",IF(LEFT(VLOOKUP($G462,$H$11:$DN$1000,101,FALSE),3)=\"The\",EG462,VLOOKUP(VLOOKUP($G462,$H$11:$DN$1000,101,FALSE),DeclMatrix!$A$2:$F$5,VLOOKUP('Enrollment Form'!$B462,DeclMatrix!$A$8:$B$12,2,FALSE),FALSE))))","v":""},{"$f":"IF($A462=\"\",\"\",IF(VLOOKUP($G462,$H$11:$DN$1000,106,FALSE)=\"\",\"No\",IF(LEFT(VLOOKUP($G462,$H$11:$DN$1000,106,FALSE),3)=\"The\",EH462,VLOOKUP(VLOOKUP($G462,$H$11:$DN$1000,106,FALSE),DeclMatrix!$A$2:$F$5,VLOOKUP('Enrollment Form'!$B462,DeclMatrix!$A$8:$B$12,2,FALSE),FALSE))))","v":""},{"$f":"IF($A462=\"\",\"\",IF(VLOOKUP($G462,$H$11:$DN$1000,111,FALSE)=\"\",\"No\",IF(LEFT(VLOOKUP($G462,$H$11:$DN$1000,111,FALSE),3)=\"The\",EI462,VLOOKUP(VLOOKUP($G462,$H$11:$DN$1000,111,FALSE),DeclMatrix!$A$2:$F$5,VLOOKUP('Enrollment Form'!$B462,DeclMatrix!$A$8:$B$12,2,FALSE),FALSE))))","v":""},"",null,"","","","","","","","","","","",""]
["",{"$nulls":5},"","",{"$nulls":18},"","","","",{"$nulls":30},"","","","",{"$nulls":60},"",{"$f":"IF($A463=\"\",\"\",IF(VLOOKUP($G463,$H$11:$DN$1000,96,FALSE)=\"\",\"No\",IF(LEFT(VLOOKUP($G463,$H$11:$DN$1000,96,FALSE),3)=\"The\",EF463,VLOOKUP(VLOOKUP($G463,$H$11:$DN$1000,96,FALSE),DeclMatrix!$A$2:$F$5,VLOOKUP('Enrollment Form'!$B463,DeclMatrix!$A$8:$B$12,2,FALSE),FALSE))))","v":""},{"$f":"IF($A463=\"\",\"\",IF(VLOOKUP($G463,$H$11:$DN$1000,101,FALSE)=\"\",\"No\",IF(LEFT(VLOOKUP($G463,$H$11:$DN$1000,101,FALSE),3)=\"The\",EG463,VLOOKUP(VLOOKUP($G463,$H$11:$DN$1000,101,FALSE),DeclMatrix!$A$2:$F$5,VLOOKUP('Enrollment Form'!$B463,DeclMatrix!$A$8:$B$12,2,FALSE),FALSE))))","v":""},{"$f":"IF($A463=\"\",\"\",IF(VLOOKUP($G463,$H$11:$DN$1000,106,FALSE)=\"\",\"No\",IF(LEFT(VLOOKUP($G463,$H$11:$DN$1000,106,FALSE),3)=\"The\",EH463,VLOOKUP(VLOOKUP($G463,$H$11:$DN$1000,106,FALSE),DeclMatrix!$A$2:$F$5,VLOOKUP('Enrollment Form'!$B463,DeclMatrix!$A$8:$B$12,2,FALSE),FALSE))))","v":""},{"$f":"IF($A463=\"\",\"\",IF(VLOOKUP($G463,$H$11:$DN$1000,111,FALSE)=\"\",\"No\",IF(LEFT(VLOOKUP($G463,$H$11:$DN$1000,111,FALSE),3)=\"The\",EI463,VLOOKUP(VLOOKUP($G463,$H$11:$DN$1000,111,FALSE),DeclMatrix!$A$2:$F$5,VLOOKUP('Enrollment Form'!$B463,DeclMatrix!$A$8:$B$12,2,FALSE),FALSE))))","v":""},"",null,"","","","","","","","","","","",""]
["",{"$nulls":5},"","",{"$nulls":18},"","","","",{"$nulls":30},"","","","",{"$nulls":60},"",{"$f":"IF($A464=\"\",\"\",IF(VLOOKUP($G464,$H$11:$DN$1000,96,FALSE)=\"\",\"No\",IF(LEFT(VLOOKUP($G464,$H$11:$DN$1000,96,FALSE),3)=\"The\",EF464,VLOOKUP(VLOOKUP($G464,$H$11:$DN$1000,96,FALSE),DeclMatrix!$A$2:$F$5,VLOOKUP('Enrollment Form'!$B464,DeclMatrix!$A$8:$B$12,2,FALSE),FALSE))))","v":""},{"$f":"IF($A464=\"\",\"\",IF(VLOOKUP($G464,$H$11:$DN$1000,101,FALSE)=\"\",\"No\",IF(LEFT(VLOOKUP($G464,$H$11:$DN$1000,101,FALSE),3)=\"The\",EG464,VLOOKUP(VLOOKUP($G464,$H$11:$DN$1000,101,FALSE),DeclMatrix!$A$2:$F$5,VLOOKUP('Enrollment Form'!$B464,DeclMatrix!$A$8:$B$12,2,FALSE),FALSE))))","v":""},{"$f":"IF($A464=\"\",\"\",IF(VLOOKUP($G464,$H$11:$DN$1000,106,FALSE)=\"\",\"No\",IF(LEFT(VLOOKUP($G464,$H$11:$DN$1000,106,FALSE),3)=\"The\",EH464,VLOOKUP(VLOOKUP($G464,$H$11:$DN$1000,106,FALSE),DeclMatrix!$A$2:$F$5,VLOOKUP('Enrollment Form'!$B464,DeclMatrix!$A$8:$B$12,2,FALSE),FALSE))))","v":""},{"$f":"IF($A464=\"\",\"\",IF(VLOOKUP($G464,$H$11:$DN$1000,111,FALSE)=\"\",\"No\",IF(LEFT(VLOOKUP($G464,$H$11:$DN$1000,111,FALSE),3)=\"The\",EI464,VLOOKUP(VLOOKUP($G464,$H$11:$DN$1000,111,FALSE),DeclMatrix!$A$2:$F$5,VLOOKUP('Enrollment Form'!$B464,DeclMatrix!$A$8:$B$12,2,FALSE),FALSE))))","v":""},"",null,"","","","","","","","","","","",""]
["",{"$nulls":5},"","",{"$nulls":18},"","","","",{"$nulls":30},"","","","",{"$nulls":60},"",{"$f":"IF($A465=\"\",\"\",IF(VLOOKUP($G465,$H$11:$DN$1000,96,FALSE)=\"\",\"No\",IF(LEFT(VLOOKUP($G465,$H$11:$DN$1000,96,FALSE),3)=\"The\",EF465,VLOOKUP(VLOOKUP($G465,$H$11:$DN$1000,96,FALSE),DeclMatrix!$A$2:$F$5,VLOOKUP('Enrollment Form'!$B465,DeclMatrix!$A$8:$B$12,2,FALSE),FALSE))))","v":""},{"$f":"IF($A465=\"\",\"\",IF(VLOOKUP($G465,$H$11:$DN$1000,101,FALSE)=\"\",\"No\",IF(LEFT(VLOOKUP($G465,$H$11:$DN$1000,101,FALSE),3)=\"The\",EG465,VLOOKUP(VLOOKUP($G465,$H$11:$DN$1000,101,FALSE),DeclMatrix!$A$2:$F$5,VLOOKUP('Enrollment Form'!$B465,DeclMatrix!$A$8:$B$12,2,FALSE),FALSE))))","v":""},{"$f":"IF($A465=\"\",\"\",IF(VLOOKUP($G465,$H$11:$DN$1000,106,FALSE)=\"\",\"No\",IF(LEFT(VLOOKUP($G465,$H$11:$DN$1000,106,FALSE),3)=\"The\",EH465,VLOOKUP(VLOOKUP($G465,$H$11:$DN$1000,106,FALSE),DeclMatrix!$A$2:$F$5,VLOOKUP('Enrollment Form'!$B465,DeclMatrix!$A$8:$B$12,2,FALSE),FALSE))))","v":""},{"$f":"IF($A465=\"\",\"\",IF(VLOOKUP($G465,$H$11:$DN$1000,111,FALSE)=\"\",\"No\",IF(LEFT(VLOOKUP($G465,$H$11:$DN$1000,111,FALSE),3)=\"The\",EI465,VLOOKUP(VLOOKUP($G465,$H$11:$DN$1000,111,FALSE),DeclMatrix!$A$2:$F$5,VLOOKUP('Enrollment Form'!$B465,DeclMatrix!$A$8:$B$12,2,FALSE),FALSE))))","v":""},"",null,"","","","","","","","","","","",""]
["",{"$nulls":5},"","",{"$nulls":18},"","","","",{"$nulls":30},"","","","",{"$nulls":60},"",{"$f":"IF($A466=\"\",\"\",IF(VLOOKUP($G466,$H$11:$DN$1000,96,FALSE)=\"\",\"No\",IF(LEFT(VLOOKUP($G466,$H$11:$DN$1000,96,FALSE),3)=\"The\",EF466,VLOOKUP(VLOOKUP($G466,$H$11:$DN$1000,96,FALSE),DeclMatrix!$A$2:$F$5,VLOOKUP('Enrollment Form'!$B466,DeclMatrix!$A$8:$B$12,2,FALSE),FALSE))))","v":""},{"$f":"IF($A466=\"\",\"\",IF(VLOOKUP($G466,$H$11:$DN$1000,101,FALSE)=\"\",\"No\",IF(LEFT(VLOOKUP($G466,$H$11:$DN$1000,101,FALSE),3)=\"The\",EG466,VLOOKUP(VLOOKUP($G466,$H$11:$DN$1000,101,FALSE),DeclMatrix!$A$2:$F$5,VLOOKUP('Enrollment Form'!$B466,DeclMatrix!$A$8:$B$12,2,FALSE),FALSE))))","v":""},{"$f":"IF($A466=\"\",\"\",IF(VLOOKUP($G466,$H$11:$DN$1000,106,FALSE)=\"\",\"No\",IF(LEFT(VLOOKUP($G466,$H$11:$DN$1000,106,FALSE),3)=\"The\",EH466,VLOOKUP(VLOOKUP($G466,$H$11:$DN$1000,106,FALSE),DeclMatrix!$A$2:$F$5,VLOOKUP('Enrollment Form'!$B466,DeclMatrix!$A$8:$B$12,2,FALSE),FALSE))))","v":""},{"$f":"IF($A466=\"\",\"\",IF(VLOOKUP($G466,$H$11:$DN$1000,111,FALSE)=\"\",\"No\",IF(LEFT(VLOOKUP($G466,$H$11:$DN$1000,111,FALSE),3)=\"The\",EI466,VLOOKUP(VLOOKUP($G466,$H$11:$DN$1000,111,FALSE),DeclMatrix!$A$2:$F$5,VLOOKUP('Enrollment Form'!$B466,DeclMatrix!$A$8:$B$12,2,FALSE),FALSE))))","v":""},"",null,"","","","","","","","","","","",""]
["",{"$nulls":5},"","",{"$nulls":18},"","","","",{"$nulls":30},"","","","",{"$nulls":60},"",{"$f":"IF($A467=\"\",\"\",IF(VLOOKUP($G467,$H$11:$DN$1000,96,FALSE)=\"\",\"No\",IF(LEFT(VLOOKUP($G467,$H$11:$DN$1000,96,FALSE),3)=\"The\",EF467,VLOOKUP(VLOOKUP($G467,$H$11:$DN$1000,96,FALSE),DeclMatrix!$A$2:$F$5,VLOOKUP('Enrollment Form'!$B467,DeclMatrix!$A$8:$B$12,2,FALSE),FALSE))))","v":""},{"$f":"IF($A467=\"\",\"\",IF(VLOOKUP($G467,$H$11:$DN$1000,101,FALSE)=\"\",\"No\",IF(LEFT(VLOOKUP($G467,$H$11:$DN$1000,101,FALSE),3)=\"The\",EG467,VLOOKUP(VLOOKUP($G467,$H$11:$DN$1000,101,FALSE),DeclMatrix!$A$2:$F$5,VLOOKUP('Enrollment Form'!$B467,DeclMatrix!$A$8:$B$12,2,FALSE),FALSE))))","v":""},{"$f":"IF($A467=\"\",\"\",IF(VLOOKUP($G467,$H$11:$DN$1000,106,FALSE)=\"\",\"No\",IF(LEFT(VLOOKUP($G467,$H$11:$DN$1000,106,FALSE),3)=\"The\",EH467,VLOOKUP(VLOOKUP($G467,$H$11:$DN$1000,106,FALSE),DeclMatrix!$A$2:$F$5,VLOOKUP('Enrollment Form'!$B467,DeclMatrix!$A$8:$B$12,2,FALSE),FALSE))))","v":""},{"$f":"IF($A467=\"\",\"\",IF(VLOOKUP($G467,$H$11:$DN$1000,111,FALSE)=\"\",\"No\",IF(LEFT(VLOOKUP($G467,$H$11:$DN$1000,111,FALSE),3)=\"The\",EI467,VLOOKUP(VLOOKUP($G467,$H$11:$DN$1000,111,FALSE),DeclMatrix!$A$2:$F$5,VLOOKUP('Enrollment Form'!$B467,DeclMatrix!$A$8:$B$12,2,FALSE),FALSE))))","v":""},"",null,"","","","","","","","","","","",""]
["",{"$nulls":5},"","",{"$nulls":18},"","","","",{"$nulls":30},"","","","",{"$nulls":60},"",{"$f":"IF($A468=\"\",\"\",IF(VLOOKUP($G468,$H$11:$DN$1000,96,FALSE)=\"\",\"No\",IF(LEFT(VLOOKUP($G468,$H$11:$DN$1000,96,FALSE),3)=\"The\",EF468,VLOOKUP(VLOOKUP($G468,$H$11:$DN$1000,96,FALSE),DeclMatrix!$A$2:$F$5,VLOOKUP('Enrollment Form'!$B468,DeclMatrix!$A$8:$B$12,2,FALSE),FALSE))))","v":""},{"$f":"IF($A468=\"\",\"\",IF(VLOOKUP($G468,$H$11:$DN$1000,101,FALSE)=\"\",\"No\",IF(LEFT(VLOOKUP($G468,$H$11:$DN$1000,101,FALSE),3)=\"The\",EG468,VLOOKUP(VLOOKUP($G468,$H$11:$DN$1000,101,FALSE),DeclMatrix!$A$2:$F$5,VLOOKUP('Enrollment Form'!$B468,DeclMatrix!$A$8:$B$12,2,FALSE),FALSE))))","v":""},{"$f":"IF($A468=\"\",\"\",IF(VLOOKUP($G468,$H$11:$DN$1000,106,FALSE)=\"\",\"No\",IF(LEFT(VLOOKUP($G468,$H$11:$DN$1000,106,FALSE),3)=\"The\",EH468,VLOOKUP(VLOOKUP($G468,$H$11:$DN$1000,106,FALSE),DeclMatrix!$A$2:$F$5,VLOOKUP('Enrollment Form'!$B468,DeclMatrix!$A$8:$B$12,2,FALSE),FALSE))))","v":""},{"$f":"IF($A468=\"\",\"\",IF(VLOOKUP($G468,$H$11:$DN$1000,111,FALSE)=\"\",\"No\",IF(LEFT(VLOOKUP($G468,$H$11:$DN$1000,111,FALSE),3)=\"The\",EI468,VLOOKUP(VLOOKUP($G468,$H$11:$DN$1000,111,FALSE),DeclMatrix!$A$2:$F$5,VLOOKUP('Enrollment Form'!$B468,DeclMatrix!$A$8:$B$12,2,FALSE),FALSE))))","v":""},"",null,"","","","","","","","","","","",""]
["",{"$nulls":5},"","",{"$nulls":18},"","","","",{"$nulls":30},"","","","",{"$nulls":60},"",{"$f":"IF($A469=\"\",\"\",IF(VLOOKUP($G469,$H$11:$DN$1000,96,FALSE)=\"\",\"No\",IF(LEFT(VLOOKUP($G469,$H$11:$DN$1000,96,FALSE),3)=\"The\",EF469,VLOOKUP(VLOOKUP($G469,$H$11:$DN$1000,96,FALSE),DeclMatrix!$A$2:$F$5,VLOOKUP('Enrollment Form'!$B469,DeclMatrix!$A$8:$B$12,2,FALSE),FALSE))))","v":""},{"$f":"IF($A469=\"\",\"\",IF(VLOOKUP($G469,$H$11:$DN$1000,101,FALSE)=\"\",\"No\",IF(LEFT(VLOOKUP($G469,$H$11:$DN$1000,101,FALSE),3)=\"The\",EG469,VLOOKUP(VLOOKUP($G469,$H$11:$DN$1000,101,FALSE),DeclMatrix!$A$2:$F$5,VLOOKUP('Enrollment Form'!$B469,DeclMatrix!$A$8:$B$12,2,FALSE),FALSE))))","v":""},{"$f":"IF($A469=\"\",\"\",IF(VLOOKUP($G469,$H$11:$DN$1000,106,FALSE)=\"\",\"No\",IF(LEFT(VLOOKUP($G469,$H$11:$DN$1000,106,FALSE),3)=\"The\",EH469,VLOOKUP(VLOOKUP($G469,$H$11:$DN$1000,106,FALSE),DeclMatrix!$A$2:$F$5,VLOOKUP('Enrollment Form'!$B469,DeclMatrix!$A$8:$B$12,2,FALSE),FALSE))))","v":""},{"$f":"IF($A469=\"\",\"\",IF(VLOOKUP($G469,$H$11:$DN$1000,111,FALSE)=\"\",\"No\",IF(LEFT(VLOOKUP($G469,$H$11:$DN$1000,111,FALSE),3)=\"The\",EI469,VLOOKUP(VLOOKUP($G469,$H$11:$DN$1000,111,FALSE),DeclMatrix!$A$2:$F$5,VLOOKUP('Enrollment Form'!$B469,DeclMatrix!$A$8:$B$12,2,FALSE),FALSE))))","v":""},"",null,"","","","","","","","","","","",""]
["",{"$nulls":5},"","",{"$nulls":18},"","","","",{"$nulls":30},"","","","",{"$nulls":60},"",{"$f":"IF($A470=\"\",\"\",IF(VLOOKUP($G470,$H$11:$DN$1000,96,FALSE)=\"\",\"No\",IF(LEFT(VLOOKUP($G470,$H$11:$DN$1000,96,FALSE),3)=\"The\",EF470,VLOOKUP(VLOOKUP($G470,$H$11:$DN$1000,96,FALSE),DeclMatrix!$A$2:$F$5,VLOOKUP('Enrollment Form'!$B470,DeclMatrix!$A$8:$B$12,2,FALSE),FALSE))))","v":""},{"$f":"IF($A470=\"\",\"\",IF(VLOOKUP($G470,$H$11:$DN$1000,101,FALSE)=\"\",\"No\",IF(LEFT(VLOOKUP($G470,$H$11:$DN$1000,101,FALSE),3)=\"The\",EG470,VLOOKUP(VLOOKUP($G470,$H$11:$DN$1000,101,FALSE),DeclMatrix!$A$2:$F$5,VLOOKUP('Enrollment Form'!$B470,DeclMatrix!$A$8:$B$12,2,FALSE),FALSE))))","v":""},{"$f":"IF($A470=\"\",\"\",IF(VLOOKUP($G470,$H$11:$DN$1000,106,FALSE)=\"\",\"No\",IF(LEFT(VLOOKUP($G470,$H$11:$DN$1000,106,FALSE),3)=\"The\",EH470,VLOOKUP(VLOOKUP($G470,$H$11:$DN$1000,106,FALSE),DeclMatrix!$A$2:$F$5,VLOOKUP('Enrollment Form'!$B470,DeclMatrix!$A$8:$B$12,2,FALSE),FALSE))))","v":""},{"$f":"IF($A470=\"\",\"\",IF(VLOOKUP($G470,$H$11:$DN$1000,111,FALSE)=\"\",\"No\",IF(LEFT(VLOOKUP($G470,$H$11:$DN$1000,111,FALSE),3)=\"The\",EI470,VLOOKUP(VLOOKUP($G470,$H$11:$DN$1000,111,FALSE),DeclMatrix!$A$2:$F$5,VLOOKUP('Enrollment Form'!$B470,DeclMatrix!$A$8:$B$12,2,FALSE),FALSE))))","v":""},"",null,"","","","","","","","","","","",""]
["",{"$nulls":5},"","",{"$nulls":18},"","","","",{"$nulls":30},"","","","",{"$nulls":60},"",{"$f":"IF($A471=\"\",\"\",IF(VLOOKUP($G471,$H$11:$DN$1000,96,FALSE)=\"\",\"No\",IF(LEFT(VLOOKUP($G471,$H$11:$DN$1000,96,FALSE),3)=\"The\",EF471,VLOOKUP(VLOOKUP($G471,$H$11:$DN$1000,96,FALSE),DeclMatrix!$A$2:$F$5,VLOOKUP('Enrollment Form'!$B471,DeclMatrix!$A$8:$B$12,2,FALSE),FALSE))))","v":""},{"$f":"IF($A471=\"\",\"\",IF(VLOOKUP($G471,$H$11:$DN$1000,101,FALSE)=\"\",\"No\",IF(LEFT(VLOOKUP($G471,$H$11:$DN$1000,101,FALSE),3)=\"The\",EG471,VLOOKUP(VLOOKUP($G471,$H$11:$DN$1000,101,FALSE),DeclMatrix!$A$2:$F$5,VLOOKUP('Enrollment Form'!$B471,DeclMatrix!$A$8:$B$12,2,FALSE),FALSE))))","v":""},{"$f":"IF($A471=\"\",\"\",IF(VLOOKUP($G471,$H$11:$DN$1000,106,FALSE)=\"\",\"No\",IF(LEFT(VLOOKUP($G471,$H$11:$DN$1000,106,FALSE),3)=\"The\",EH471,VLOOKUP(VLOOKUP($G471,$H$11:$DN$1000,106,FALSE),DeclMatrix!$A$2:$F$5,VLOOKUP('Enrollment Form'!$B471,DeclMatrix!$A$8:$B$12,2,FALSE),FALSE))))","v":""},{"$f":"IF($A471=\"\",\"\",IF(VLOOKUP($G471,$H$11:$DN$1000,111,FALSE)=\"\",\"No\",IF(LEFT(VLOOKUP($G471,$H$11:$DN$1000,111,FALSE),3)=\"The\",EI471,VLOOKUP(VLOOKUP($G471,$H$11:$DN$1000,111,FALSE),DeclMatrix!$A$2:$F$5,VLOOKUP('Enrollment Form'!$B471,DeclMatrix!$A$8:$B$12,2,FALSE),FALSE))))","v":""},"",null,"","","","","","","","","","","",""]
["",{"$nulls":5},"","",{"$nulls":18},"","","","",{"$nulls":30},"","","","",{"$nulls":60},"",{"$f":"IF($A472=\"\",\"\",IF(VLOOKUP($G472,$H$11:$DN$1000,96,FALSE)=\"\",\"No\",IF(LEFT(VLOOKUP($G472,$H$11:$DN$1000,96,FALSE),3)=\"The\",EF472,VLOOKUP(VLOOKUP($G472,$H$11:$DN$1000,96,FALSE),DeclMatrix!$A$2:$F$5,VLOOKUP('Enrollment Form'!$B472,DeclMatrix!$A$8:$B$12,2,FALSE),FALSE))))","v":""},{"$f":"IF($A472=\"\",\"\",IF(VLOOKUP($G472,$H$11:$DN$1000,101,FALSE)=\"\",\"No\",IF(LEFT(VLOOKUP($G472,$H$11:$DN$1000,101,FALSE),3)=\"The\",EG472,VLOOKUP(VLOOKUP($G472,$H$11:$DN$1000,101,FALSE),DeclMatrix!$A$2:$F$5,VLOOKUP('Enrollment Form'!$B472,DeclMatrix!$A$8:$B$12,2,FALSE),FALSE))))","v":""},{"$f":"IF($A472=\"\",\"\",IF(VLOOKUP($G472,$H$11:$DN$1000,106,FALSE)=\"\",\"No\",IF(LEFT(VLOOKUP($G472,$H$11:$DN$1000,106,FALSE),3)=\"The\",EH472,VLOOKUP(VLOOKUP($G472,$H$11:$DN$1000,106,FALSE),DeclMatrix!$A$2:$F$5,VLOOKUP('Enrollment Form'!$B472,DeclMatrix!$A$8:$B$12,2,FALSE),FALSE))))","v":""},{"$f":"IF($A472=\"\",\"\",IF(VLOOKUP($G472,$H$11:$DN$1000,111,FALSE)=\"\",\"No\",IF(LEFT(VLOOKUP($G472,$H$11:$DN$1000,111,FALSE),3)=\"The\",EI472,VLOOKUP(VLOOKUP($G472,$H$11:$DN$1000,111,FALSE),DeclMatrix!$A$2:$F$5,VLOOKUP('Enrollment Form'!$B472,DeclMatrix!$A$8:$B$12,2,FALSE),FALSE))))","v":""},"",null,"","","","","","","","","","","",""]
["",{"$nulls":5},"","",{"$nulls":18},"","","","",{"$nulls":30},"","","","",{"$nulls":60},"",{"$f":"IF($A473=\"\",\"\",IF(VLOOKUP($G473,$H$11:$DN$1000,96,FALSE)=\"\",\"No\",IF(LEFT(VLOOKUP($G473,$H$11:$DN$1000,96,FALSE),3)=\"The\",EF473,VLOOKUP(VLOOKUP($G473,$H$11:$DN$1000,96,FALSE),DeclMatrix!$A$2:$F$5,VLOOKUP('Enrollment Form'!$B473,DeclMatrix!$A$8:$B$12,2,FALSE),FALSE))))","v":""},{"$f":"IF($A473=\"\",\"\",IF(VLOOKUP($G473,$H$11:$DN$1000,101,FALSE)=\"\",\"No\",IF(LEFT(VLOOKUP($G473,$H$11:$DN$1000,101,FALSE),3)=\"The\",EG473,VLOOKUP(VLOOKUP($G473,$H$11:$DN$1000,101,FALSE),DeclMatrix!$A$2:$F$5,VLOOKUP('Enrollment Form'!$B473,DeclMatrix!$A$8:$B$12,2,FALSE),FALSE))))","v":""},{"$f":"IF($A473=\"\",\"\",IF(VLOOKUP($G473,$H$11:$DN$1000,106,FALSE)=\"\",\"No\",IF(LEFT(VLOOKUP($G473,$H$11:$DN$1000,106,FALSE),3)=\"The\",EH473,VLOOKUP(VLOOKUP($G473,$H$11:$DN$1000,106,FALSE),DeclMatrix!$A$2:$F$5,VLOOKUP('Enrollment Form'!$B473,DeclMatrix!$A$8:$B$12,2,FALSE),FALSE))))","v":""},{"$f":"IF($A473=\"\",\"\",IF(VLOOKUP($G473,$H$11:$DN$1000,111,FALSE)=\"\",\"No\",IF(LEFT(VLOOKUP($G473,$H$11:$DN$1000,111,FALSE),3)=\"The\",EI473,VLOOKUP(VLOOKUP($G473,$H$11:$DN$1000,111,FALSE),DeclMatrix!$A$2:$F$5,VLOOKUP('Enrollment Form'!$B473,DeclMatrix!$A$8:$B$12,2,FALSE),FALSE))))","v":""},"",null,"","","","","","","","","","","",""]
["",{"$nulls":5},"","",{"$nulls":18},"","","","",{"$nulls":30},"","","","",{"$nulls":60},"",{"$f":"IF($A474=\"\",\"\",IF(VLOOKUP($G474,$H$11:$DN$1000,96,FALSE)=\"\",\"No\",IF(LEFT(VLOOKUP($G474,$H$11:$DN$1000,96,FALSE),3)=\"The\",EF474,VLOOKUP(VLOOKUP($G474,$H$11:$DN$1000,96,FALSE),DeclMatrix!$A$2:$F$5,VLOOKUP('Enrollment Form'!$B474,DeclMatrix!$A$8:$B$12,2,FALSE),FALSE))))","v":""},{"$f":"IF($A474=\"\",\"\",IF(VLOOKUP($G474,$H$11:$DN$1000,101,FALSE)=\"\",\"No\",IF(LEFT(VLOOKUP($G474,$H$11:$DN$1000,101,FALSE),3)=\"The\",EG474,VLOOKUP(VLOOKUP($G474,$H$11:$DN$1000,101,FALSE),DeclMatrix!$A$2:$F$5,VLOOKUP('Enrollment Form'!$B474,DeclMatrix!$A$8:$B$12,2,FALSE),FALSE))))","v":""},{"$f":"IF($A474=\"\",\"\",IF(VLOOKUP($G474,$H$11:$DN$1000,106,FALSE)=\"\",\"No\",IF(LEFT(VLOOKUP($G474,$H$11:$DN$1000,106,FALSE),3)=\"The\",EH474,VLOOKUP(VLOOKUP($G474,$H$11:$DN$1000,106,FALSE),DeclMatrix!$A$2:$F$5,VLOOKUP('Enrollment Form'!$B474,DeclMatrix!$A$8:$B$12,2,FALSE),FALSE))))","v":""},{"$f":"IF($A474=\"\",\"\",IF(VLOOKUP($G474,$H$11:$DN$1000,111,FALSE)=\"\",\"No\",IF(LEFT(VLOOKUP($G474,$H$11:$DN$1000,111,FALSE),3)=\"The\",EI474,VLOOKUP(VLOOKUP($G474,$H$11:$DN$1000,111,FALSE),DeclMatrix!$A$2:$F$5,VLOOKUP('Enrollment Form'!$B474,DeclMatrix!$A$8:$B$12,2,FALSE),FALSE))))","v":""},"",null,"","","","","","","","","","","",""]
["",{"$nulls":5},"","",{"$nulls":18},"","","","",{"$nulls":30},"","","","",{"$nulls":60},"",{"$f":"IF($A475=\"\",\"\",IF(VLOOKUP($G475,$H$11:$DN$1000,96,FALSE)=\"\",\"No\",IF(LEFT(VLOOKUP($G475,$H$11:$DN$1000,96,FALSE),3)=\"The\",EF475,VLOOKUP(VLOOKUP($G475,$H$11:$DN$1000,96,FALSE),DeclMatrix!$A$2:$F$5,VLOOKUP('Enrollment Form'!$B475,DeclMatrix!$A$8:$B$12,2,FALSE),FALSE))))","v":""},{"$f":"IF($A475=\"\",\"\",IF(VLOOKUP($G475,$H$11:$DN$1000,101,FALSE)=\"\",\"No\",IF(LEFT(VLOOKUP($G475,$H$11:$DN$1000,101,FALSE),3)=\"The\",EG475,VLOOKUP(VLOOKUP($G475,$H$11:$DN$1000,101,FALSE),DeclMatrix!$A$2:$F$5,VLOOKUP('Enrollment Form'!$B475,DeclMatrix!$A$8:$B$12,2,FALSE),FALSE))))","v":""},{"$f":"IF($A475=\"\",\"\",IF(VLOOKUP($G475,$H$11:$DN$1000,106,FALSE)=\"\",\"No\",IF(LEFT(VLOOKUP($G475,$H$11:$DN$1000,106,FALSE),3)=\"The\",EH475,VLOOKUP(VLOOKUP($G475,$H$11:$DN$1000,106,FALSE),DeclMatrix!$A$2:$F$5,VLOOKUP('Enrollment Form'!$B475,DeclMatrix!$A$8:$B$12,2,FALSE),FALSE))))","v":""},{"$f":"IF($A475=\"\",\"\",IF(VLOOKUP($G475,$H$11:$DN$1000,111,FALSE)=\"\",\"No\",IF(LEFT(VLOOKUP($G475,$H$11:$DN$1000,111,FALSE),3)=\"The\",EI475,VLOOKUP(VLOOKUP($G475,$H$11:$DN$1000,111,FALSE),DeclMatrix!$A$2:$F$5,VLOOKUP('Enrollment Form'!$B475,DeclMatrix!$A$8:$B$12,2,FALSE),FALSE))))","v":""},"",null,"","","","","","","","","","","",""]
["",{"$nulls":5},"","",{"$nulls":18},"","","","",{"$nulls":30},"","","","",{"$nulls":60},"",{"$f":"IF($A476=\"\",\"\",IF(VLOOKUP($G476,$H$11:$DN$1000,96,FALSE)=\"\",\"No\",IF(LEFT(VLOOKUP($G476,$H$11:$DN$1000,96,FALSE),3)=\"The\",EF476,VLOOKUP(VLOOKUP($G476,$H$11:$DN$1000,96,FALSE),DeclMatrix!$A$2:$F$5,VLOOKUP('Enrollment Form'!$B476,DeclMatrix!$A$8:$B$12,2,FALSE),FALSE))))","v":""},{"$f":"IF($A476=\"\",\"\",IF(VLOOKUP($G476,$H$11:$DN$1000,101,FALSE)=\"\",\"No\",IF(LEFT(VLOOKUP($G476,$H$11:$DN$1000,101,FALSE),3)=\"The\",EG476,VLOOKUP(VLOOKUP($G476,$H$11:$DN$1000,101,FALSE),DeclMatrix!$A$2:$F$5,VLOOKUP('Enrollment Form'!$B476,DeclMatrix!$A$8:$B$12,2,FALSE),FALSE))))","v":""},{"$f":"IF($A476=\"\",\"\",IF(VLOOKUP($G476,$H$11:$DN$1000,106,FALSE)=\"\",\"No\",IF(LEFT(VLOOKUP($G476,$H$11:$DN$1000,106,FALSE),3)=\"The\",EH476,VLOOKUP(VLOOKUP($G476,$H$11:$DN$1000,106,FALSE),DeclMatrix!$A$2:$F$5,VLOOKUP('Enrollment Form'!$B476,DeclMatrix!$A$8:$B$12,2,FALSE),FALSE))))","v":""},{"$f":"IF($A476=\"\",\"\",IF(VLOOKUP($G476,$H$11:$DN$1000,111,FALSE)=\"\",\"No\",IF(LEFT(VLOOKUP($G476,$H$11:$DN$1000,111,FALSE),3)=\"The\",EI476,VLOOKUP(VLOOKUP($G476,$H$11:$DN$1000,111,FALSE),DeclMatrix!$A$2:$F$5,VLOOKUP('Enrollment Form'!$B476,DeclMatrix!$A$8:$B$12,2,FALSE),FALSE))))","v":""},"",null,"","","","","","","","","","","",""]
["",{"$nulls":5},"","",{"$nulls":18},"","","","",{"$nulls":30},"","","","",{"$nulls":60},"",{"$f":"IF($A477=\"\",\"\",IF(VLOOKUP($G477,$H$11:$DN$1000,96,FALSE)=\"\",\"No\",IF(LEFT(VLOOKUP($G477,$H$11:$DN$1000,96,FALSE),3)=\"The\",EF477,VLOOKUP(VLOOKUP($G477,$H$11:$DN$1000,96,FALSE),DeclMatrix!$A$2:$F$5,VLOOKUP('Enrollment Form'!$B477,DeclMatrix!$A$8:$B$12,2,FALSE),FALSE))))","v":""},{"$f":"IF($A477=\"\",\"\",IF(VLOOKUP($G477,$H$11:$DN$1000,101,FALSE)=\"\",\"No\",IF(LEFT(VLOOKUP($G477,$H$11:$DN$1000,101,FALSE),3)=\"The\",EG477,VLOOKUP(VLOOKUP($G477,$H$11:$DN$1000,101,FALSE),DeclMatrix!$A$2:$F$5,VLOOKUP('Enrollment Form'!$B477,DeclMatrix!$A$8:$B$12,2,FALSE),FALSE))))","v":""},{"$f":"IF($A477=\"\",\"\",IF(VLOOKUP($G477,$H$11:$DN$1000,106,FALSE)=\"\",\"No\",IF(LEFT(VLOOKUP($G477,$H$11:$DN$1000,106,FALSE),3)=\"The\",EH477,VLOOKUP(VLOOKUP($G477,$H$11:$DN$1000,106,FALSE),DeclMatrix!$A$2:$F$5,VLOOKUP('Enrollment Form'!$B477,DeclMatrix!$A$8:$B$12,2,FALSE),FALSE))))","v":""},{"$f":"IF($A477=\"\",\"\",IF(VLOOKUP($G477,$H$11:$DN$1000,111,FALSE)=\"\",\"No\",IF(LEFT(VLOOKUP($G477,$H$11:$DN$1000,111,FALSE),3)=\"The\",EI477,VLOOKUP(VLOOKUP($G477,$H$11:$DN$1000,111,FALSE),DeclMatrix!$A$2:$F$5,VLOOKUP('Enrollment Form'!$B477,DeclMatrix!$A$8:$B$12,2,FALSE),FALSE))))","v":""},"",null,"","","","","","","","","","","",""]
["",{"$nulls":5},"","",{"$nulls":18},"","","","",{"$nulls":30},"","","","",{"$nulls":60},"",{"$f":"IF($A478=\"\",\"\",IF(VLOOKUP($G478,$H$11:$DN$1000,96,FALSE)=\"\",\"No\",IF(LEFT(VLOOKUP($G478,$H$11:$DN$1000,96,FALSE),3)=\"The\",EF478,VLOOKUP(VLOOKUP($G478,$H$11:$DN$1000,96,FALSE),DeclMatrix!$A$2:$F$5,VLOOKUP('Enrollment Form'!$B478,DeclMatrix!$A$8:$B$12,2,FALSE),FALSE))))","v":""},{"$f":"IF($A478=\"\",\"\",IF(VLOOKUP($G478,$H$11:$DN$1000,101,FALSE)=\"\",\"No\",IF(LEFT(VLOOKUP($G478,$H$11:$DN$1000,101,FALSE),3)=\"The\",EG478,VLOOKUP(VLOOKUP($G478,$H$11:$DN$1000,101,FALSE),DeclMatrix!$A$2:$F$5,VLOOKUP('Enrollment Form'!$B478,DeclMatrix!$A$8:$B$12,2,FALSE),FALSE))))","v":""},{"$f":"IF($A478=\"\",\"\",IF(VLOOKUP($G478,$H$11:$DN$1000,106,FALSE)=\"\",\"No\",IF(LEFT(VLOOKUP($G478,$H$11:$DN$1000,106,FALSE),3)=\"The\",EH478,VLOOKUP(VLOOKUP($G478,$H$11:$DN$1000,106,FALSE),DeclMatrix!$A$2:$F$5,VLOOKUP('Enrollment Form'!$B478,DeclMatrix!$A$8:$B$12,2,FALSE),FALSE))))","v":""},{"$f":"IF($A478=\"\",\"\",IF(VLOOKUP($G478,$H$11:$DN$1000,111,FALSE)=\"\",\"No\",IF(LEFT(VLOOKUP($G478,$H$11:$DN$1000,111,FALSE),3)=\"The\",EI478,VLOOKUP(VLOOKUP($G478,$H$11:$DN$1000,111,FALSE),DeclMatrix!$A$2:$F$5,VLOOKUP('Enrollment Form'!$B478,DeclMatrix!$A$8:$B$12,2,FALSE),FALSE))))","v":""},"",null,"","","","","","","","","","","",""]
["",{"$nulls":5},"","",{"$nulls":18},"","","","",{"$nulls":30},"","","","",{"$nulls":60},"",{"$f":"IF($A479=\"\",\"\",IF(VLOOKUP($G479,$H$11:$DN$1000,96,FALSE)=\"\",\"No\",IF(LEFT(VLOOKUP($G479,$H$11:$DN$1000,96,FALSE),3)=\"The\",EF479,VLOOKUP(VLOOKUP($G479,$H$11:$DN$1000,96,FALSE),DeclMatrix!$A$2:$F$5,VLOOKUP('Enrollment Form'!$B479,DeclMatrix!$A$8:$B$12,2,FALSE),FALSE))))","v":""},{"$f":"IF($A479=\"\",\"\",IF(VLOOKUP($G479,$H$11:$DN$1000,101,FALSE)=\"\",\"No\",IF(LEFT(VLOOKUP($G479,$H$11:$DN$1000,101,FALSE),3)=\"The\",EG479,VLOOKUP(VLOOKUP($G479,$H$11:$DN$1000,101,FALSE),DeclMatrix!$A$2:$F$5,VLOOKUP('Enrollment Form'!$B479,DeclMatrix!$A$8:$B$12,2,FALSE),FALSE))))","v":""},{"$f":"IF($A479=\"\",\"\",IF(VLOOKUP($G479,$H$11:$DN$1000,106,FALSE)=\"\",\"No\",IF(LEFT(VLOOKUP($G479,$H$11:$DN$1000,106,FALSE),3)=\"The\",EH479,VLOOKUP(VLOOKUP($G479,$H$11:$DN$1000,106,FALSE),DeclMatrix!$A$2:$F$5,VLOOKUP('Enrollment Form'!$B479,DeclMatrix!$A$8:$B$12,2,FALSE),FALSE))))","v":""},{"$f":"IF($A479=\"\",\"\",IF(VLOOKUP($G479,$H$11:$DN$1000,111,FALSE)=\"\",\"No\",IF(LEFT(VLOOKUP($G479,$H$11:$DN$1000,111,FALSE),3)=\"The\",EI479,VLOOKUP(VLOOKUP($G479,$H$11:$DN$1000,111,FALSE),DeclMatrix!$A$2:$F$5,VLOOKUP('Enrollment Form'!$B479,DeclMatrix!$A$8:$B$12,2,FALSE),FALSE))))","v":""},"",null,"","","","","","","","","","","",""]
["",{"$nulls":5},"","",{"$nulls":18},"","","","",{"$nulls":30},"","","","",{"$nulls":60},"",{"$f":"IF($A480=\"\",\"\",IF(VLOOKUP($G480,$H$11:$DN$1000,96,FALSE)=\"\",\"No\",IF(LEFT(VLOOKUP($G480,$H$11:$DN$1000,96,FALSE),3)=\"The\",EF480,VLOOKUP(VLOOKUP($G480,$H$11:$DN$1000,96,FALSE),DeclMatrix!$A$2:$F$5,VLOOKUP('Enrollment Form'!$B480,DeclMatrix!$A$8:$B$12,2,FALSE),FALSE))))","v":""},{"$f":"IF($A480=\"\",\"\",IF(VLOOKUP($G480,$H$11:$DN$1000,101,FALSE)=\"\",\"No\",IF(LEFT(VLOOKUP($G480,$H$11:$DN$1000,101,FALSE),3)=\"The\",EG480,VLOOKUP(VLOOKUP($G480,$H$11:$DN$1000,101,FALSE),DeclMatrix!$A$2:$F$5,VLOOKUP('Enrollment Form'!$B480,DeclMatrix!$A$8:$B$12,2,FALSE),FALSE))))","v":""},{"$f":"IF($A480=\"\",\"\",IF(VLOOKUP($G480,$H$11:$DN$1000,106,FALSE)=\"\",\"No\",IF(LEFT(VLOOKUP($G480,$H$11:$DN$1000,106,FALSE),3)=\"The\",EH480,VLOOKUP(VLOOKUP($G480,$H$11:$DN$1000,106,FALSE),DeclMatrix!$A$2:$F$5,VLOOKUP('Enrollment Form'!$B480,DeclMatrix!$A$8:$B$12,2,FALSE),FALSE))))","v":""},{"$f":"IF($A480=\"\",\"\",IF(VLOOKUP($G480,$H$11:$DN$1000,111,FALSE)=\"\",\"No\",IF(LEFT(VLOOKUP($G480,$H$11:$DN$1000,111,FALSE),3)=\"The\",EI480,VLOOKUP(VLOOKUP($G480,$H$11:$DN$1000,111,FALSE),DeclMatrix!$A$2:$F$5,VLOOKUP('Enrollment Form'!$B480,DeclMatrix!$A$8:$B$12,2,FALSE),FALSE))))","v":""},"",null,"","","","","","","","","","","",""]
["",{"$nulls":5},"","",{"$nulls":18},"","","","",{"$nulls":30},"","","","",{"$nulls":60},"",{"$f":"IF($A481=\"\",\"\",IF(VLOOKUP($G481,$H$11:$DN$1000,96,FALSE)=\"\",\"No\",IF(LEFT(VLOOKUP($G481,$H$11:$DN$1000,96,FALSE),3)=\"The\",EF481,VLOOKUP(VLOOKUP($G481,$H$11:$DN$1000,96,FALSE),DeclMatrix!$A$2:$F$5,VLOOKUP('Enrollment Form'!$B481,DeclMatrix!$A$8:$B$12,2,FALSE),FALSE))))","v":""},{"$f":"IF($A481=\"\",\"\",IF(VLOOKUP($G481,$H$11:$DN$1000,101,FALSE)=\"\",\"No\",IF(LEFT(VLOOKUP($G481,$H$11:$DN$1000,101,FALSE),3)=\"The\",EG481,VLOOKUP(VLOOKUP($G481,$H$11:$DN$1000,101,FALSE),DeclMatrix!$A$2:$F$5,VLOOKUP('Enrollment Form'!$B481,DeclMatrix!$A$8:$B$12,2,FALSE),FALSE))))","v":""},{"$f":"IF($A481=\"\",\"\",IF(VLOOKUP($G481,$H$11:$DN$1000,106,FALSE)=\"\",\"No\",IF(LEFT(VLOOKUP($G481,$H$11:$DN$1000,106,FALSE),3)=\"The\",EH481,VLOOKUP(VLOOKUP($G481,$H$11:$DN$1000,106,FALSE),DeclMatrix!$A$2:$F$5,VLOOKUP('Enrollment Form'!$B481,DeclMatrix!$A$8:$B$12,2,FALSE),FALSE))))","v":""},{"$f":"IF($A481=\"\",\"\",IF(VLOOKUP($G481,$H$11:$DN$1000,111,FALSE)=\"\",\"No\",IF(LEFT(VLOOKUP($G481,$H$11:$DN$1000,111,FALSE),3)=\"The\",EI481,VLOOKUP(VLOOKUP($G481,$H$11:$DN$1000,111,FALSE),DeclMatrix!$A$2:$F$5,VLOOKUP('Enrollment Form'!$B481,DeclMatrix!$A$8:$B$12,2,FALSE),FALSE))))","v":""},"",null,"","","","","","","","","","","",""]
["",{"$nulls":5},"","",{"$nulls":18},"","","","",{"$nulls":30},"","","","",{"$nulls":60},"",{"$f":"IF($A482=\"\",\"\",IF(VLOOKUP($G482,$H$11:$DN$1000,96,FALSE)=\"\",\"No\",IF(LEFT(VLOOKUP($G482,$H$11:$DN$1000,96,FALSE),3)=\"The\",EF482,VLOOKUP(VLOOKUP($G482,$H$11:$DN$1000,96,FALSE),DeclMatrix!$A$2:$F$5,VLOOKUP('Enrollment Form'!$B482,DeclMatrix!$A$8:$B$12,2,FALSE),FALSE))))","v":""},{"$f":"IF($A482=\"\",\"\",IF(VLOOKUP($G482,$H$11:$DN$1000,101,FALSE)=\"\",\"No\",IF(LEFT(VLOOKUP($G482,$H$11:$DN$1000,101,FALSE),3)=\"The\",EG482,VLOOKUP(VLOOKUP($G482,$H$11:$DN$1000,101,FALSE),DeclMatrix!$A$2:$F$5,VLOOKUP('Enrollment Form'!$B482,DeclMatrix!$A$8:$B$12,2,FALSE),FALSE))))","v":""},{"$f":"IF($A482=\"\",\"\",IF(VLOOKUP($G482,$H$11:$DN$1000,106,FALSE)=\"\",\"No\",IF(LEFT(VLOOKUP($G482,$H$11:$DN$1000,106,FALSE),3)=\"The\",EH482,VLOOKUP(VLOOKUP($G482,$H$11:$DN$1000,106,FALSE),DeclMatrix!$A$2:$F$5,VLOOKUP('Enrollment Form'!$B482,DeclMatrix!$A$8:$B$12,2,FALSE),FALSE))))","v":""},{"$f":"IF($A482=\"\",\"\",IF(VLOOKUP($G482,$H$11:$DN$1000,111,FALSE)=\"\",\"No\",IF(LEFT(VLOOKUP($G482,$H$11:$DN$1000,111,FALSE),3)=\"The\",EI482,VLOOKUP(VLOOKUP($G482,$H$11:$DN$1000,111,FALSE),DeclMatrix!$A$2:$F$5,VLOOKUP('Enrollment Form'!$B482,DeclMatrix!$A$8:$B$12,2,FALSE),FALSE))))","v":""},"",null,"","","","","","","","","","","",""]
["",{"$nulls":5},"","",{"$nulls":18},"","","","",{"$nulls":30},"","","","",{"$nulls":60},"",{"$f":"IF($A483=\"\",\"\",IF(VLOOKUP($G483,$H$11:$DN$1000,96,FALSE)=\"\",\"No\",IF(LEFT(VLOOKUP($G483,$H$11:$DN$1000,96,FALSE),3)=\"The\",EF483,VLOOKUP(VLOOKUP($G483,$H$11:$DN$1000,96,FALSE),DeclMatrix!$A$2:$F$5,VLOOKUP('Enrollment Form'!$B483,DeclMatrix!$A$8:$B$12,2,FALSE),FALSE))))","v":""},{"$f":"IF($A483=\"\",\"\",IF(VLOOKUP($G483,$H$11:$DN$1000,101,FALSE)=\"\",\"No\",IF(LEFT(VLOOKUP($G483,$H$11:$DN$1000,101,FALSE),3)=\"The\",EG483,VLOOKUP(VLOOKUP($G483,$H$11:$DN$1000,101,FALSE),DeclMatrix!$A$2:$F$5,VLOOKUP('Enrollment Form'!$B483,DeclMatrix!$A$8:$B$12,2,FALSE),FALSE))))","v":""},{"$f":"IF($A483=\"\",\"\",IF(VLOOKUP($G483,$H$11:$DN$1000,106,FALSE)=\"\",\"No\",IF(LEFT(VLOOKUP($G483,$H$11:$DN$1000,106,FALSE),3)=\"The\",EH483,VLOOKUP(VLOOKUP($G483,$H$11:$DN$1000,106,FALSE),DeclMatrix!$A$2:$F$5,VLOOKUP('Enrollment Form'!$B483,DeclMatrix!$A$8:$B$12,2,FALSE),FALSE))))","v":""},{"$f":"IF($A483=\"\",\"\",IF(VLOOKUP($G483,$H$11:$DN$1000,111,FALSE)=\"\",\"No\",IF(LEFT(VLOOKUP($G483,$H$11:$DN$1000,111,FALSE),3)=\"The\",EI483,VLOOKUP(VLOOKUP($G483,$H$11:$DN$1000,111,FALSE),DeclMatrix!$A$2:$F$5,VLOOKUP('Enrollment Form'!$B483,DeclMatrix!$A$8:$B$12,2,FALSE),FALSE))))","v":""},"",null,"","","","","","","","","","","",""]
["",{"$nulls":5},"","",{"$nulls":18},"","","","",{"$nulls":30},"","","","",{"$nulls":60},"",{"$f":"IF($A484=\"\",\"\",IF(VLOOKUP($G484,$H$11:$DN$1000,96,FALSE)=\"\",\"No\",IF(LEFT(VLOOKUP($G484,$H$11:$DN$1000,96,FALSE),3)=\"The\",EF484,VLOOKUP(VLOOKUP($G484,$H$11:$DN$1000,96,FALSE),DeclMatrix!$A$2:$F$5,VLOOKUP('Enrollment Form'!$B484,DeclMatrix!$A$8:$B$12,2,FALSE),FALSE))))","v":""},{"$f":"IF($A484=\"\",\"\",IF(VLOOKUP($G484,$H$11:$DN$1000,101,FALSE)=\"\",\"No\",IF(LEFT(VLOOKUP($G484,$H$11:$DN$1000,101,FALSE),3)=\"The\",EG484,VLOOKUP(VLOOKUP($G484,$H$11:$DN$1000,101,FALSE),DeclMatrix!$A$2:$F$5,VLOOKUP('Enrollment Form'!$B484,DeclMatrix!$A$8:$B$12,2,FALSE),FALSE))))","v":""},{"$f":"IF($A484=\"\",\"\",IF(VLOOKUP($G484,$H$11:$DN$1000,106,FALSE)=\"\",\"No\",IF(LEFT(VLOOKUP($G484,$H$11:$DN$1000,106,FALSE),3)=\"The\",EH484,VLOOKUP(VLOOKUP($G484,$H$11:$DN$1000,106,FALSE),DeclMatrix!$A$2:$F$5,VLOOKUP('Enrollment Form'!$B484,DeclMatrix!$A$8:$B$12,2,FALSE),FALSE))))","v":""},{"$f":"IF($A484=\"\",\"\",IF(VLOOKUP($G484,$H$11:$DN$1000,111,FALSE)=\"\",\"No\",IF(LEFT(VLOOKUP($G484,$H$11:$DN$1000,111,FALSE),3)=\"The\",EI484,VLOOKUP(VLOOKUP($G484,$H$11:$DN$1000,111,FALSE),DeclMatrix!$A$2:$F$5,VLOOKUP('Enrollment Form'!$B484,DeclMatrix!$A$8:$B$12,2,FALSE),FALSE))))","v":""},"",null,"","","","","","","","","","","",""]
["",{"$nulls":5},"","",{"$nulls":18},"","","","",{"$nulls":30},"","","","",{"$nulls":60},"",{"$f":"IF($A485=\"\",\"\",IF(VLOOKUP($G485,$H$11:$DN$1000,96,FALSE)=\"\",\"No\",IF(LEFT(VLOOKUP($G485,$H$11:$DN$1000,96,FALSE),3)=\"The\",EF485,VLOOKUP(VLOOKUP($G485,$H$11:$DN$1000,96,FALSE),DeclMatrix!$A$2:$F$5,VLOOKUP('Enrollment Form'!$B485,DeclMatrix!$A$8:$B$12,2,FALSE),FALSE))))","v":""},{"$f":"IF($A485=\"\",\"\",IF(VLOOKUP($G485,$H$11:$DN$1000,101,FALSE)=\"\",\"No\",IF(LEFT(VLOOKUP($G485,$H$11:$DN$1000,101,FALSE),3)=\"The\",EG485,VLOOKUP(VLOOKUP($G485,$H$11:$DN$1000,101,FALSE),DeclMatrix!$A$2:$F$5,VLOOKUP('Enrollment Form'!$B485,DeclMatrix!$A$8:$B$12,2,FALSE),FALSE))))","v":""},{"$f":"IF($A485=\"\",\"\",IF(VLOOKUP($G485,$H$11:$DN$1000,106,FALSE)=\"\",\"No\",IF(LEFT(VLOOKUP($G485,$H$11:$DN$1000,106,FALSE),3)=\"The\",EH485,VLOOKUP(VLOOKUP($G485,$H$11:$DN$1000,106,FALSE),DeclMatrix!$A$2:$F$5,VLOOKUP('Enrollment Form'!$B485,DeclMatrix!$A$8:$B$12,2,FALSE),FALSE))))","v":""},{"$f":"IF($A485=\"\",\"\",IF(VLOOKUP($G485,$H$11:$DN$1000,111,FALSE)=\"\",\"No\",IF(LEFT(VLOOKUP($G485,$H$11:$DN$1000,111,FALSE),3)=\"The\",EI485,VLOOKUP(VLOOKUP($G485,$H$11:$DN$1000,111,FALSE),DeclMatrix!$A$2:$F$5,VLOOKUP('Enrollment Form'!$B485,DeclMatrix!$A$8:$B$12,2,FALSE),FALSE))))","v":""},"",null,"","","","","","","","","","","",""]
["",{"$nulls":5},"","",{"$nulls":18},"","","","",{"$nulls":30},"","","","",{"$nulls":60},"",{"$f":"IF($A486=\"\",\"\",IF(VLOOKUP($G486,$H$11:$DN$1000,96,FALSE)=\"\",\"No\",IF(LEFT(VLOOKUP($G486,$H$11:$DN$1000,96,FALSE),3)=\"The\",EF486,VLOOKUP(VLOOKUP($G486,$H$11:$DN$1000,96,FALSE),DeclMatrix!$A$2:$F$5,VLOOKUP('Enrollment Form'!$B486,DeclMatrix!$A$8:$B$12,2,FALSE),FALSE))))","v":""},{"$f":"IF($A486=\"\",\"\",IF(VLOOKUP($G486,$H$11:$DN$1000,101,FALSE)=\"\",\"No\",IF(LEFT(VLOOKUP($G486,$H$11:$DN$1000,101,FALSE),3)=\"The\",EG486,VLOOKUP(VLOOKUP($G486,$H$11:$DN$1000,101,FALSE),DeclMatrix!$A$2:$F$5,VLOOKUP('Enrollment Form'!$B486,DeclMatrix!$A$8:$B$12,2,FALSE),FALSE))))","v":""},{"$f":"IF($A486=\"\",\"\",IF(VLOOKUP($G486,$H$11:$DN$1000,106,FALSE)=\"\",\"No\",IF(LEFT(VLOOKUP($G486,$H$11:$DN$1000,106,FALSE),3)=\"The\",EH486,VLOOKUP(VLOOKUP($G486,$H$11:$DN$1000,106,FALSE),DeclMatrix!$A$2:$F$5,VLOOKUP('Enrollment Form'!$B486,DeclMatrix!$A$8:$B$12,2,FALSE),FALSE))))","v":""},{"$f":"IF($A486=\"\",\"\",IF(VLOOKUP($G486,$H$11:$DN$1000,111,FALSE)=\"\",\"No\",IF(LEFT(VLOOKUP($G486,$H$11:$DN$1000,111,FALSE),3)=\"The\",EI486,VLOOKUP(VLOOKUP($G486,$H$11:$DN$1000,111,FALSE),DeclMatrix!$A$2:$F$5,VLOOKUP('Enrollment Form'!$B486,DeclMatrix!$A$8:$B$12,2,FALSE),FALSE))))","v":""},"",null,"","","","","","","","","","","",""]
["",{"$nulls":5},"","",{"$nulls":18},"","","","",{"$nulls":30},"","","","",{"$nulls":60},"",{"$f":"IF($A487=\"\",\"\",IF(VLOOKUP($G487,$H$11:$DN$1000,96,FALSE)=\"\",\"No\",IF(LEFT(VLOOKUP($G487,$H$11:$DN$1000,96,FALSE),3)=\"The\",EF487,VLOOKUP(VLOOKUP($G487,$H$11:$DN$1000,96,FALSE),DeclMatrix!$A$2:$F$5,VLOOKUP('Enrollment Form'!$B487,DeclMatrix!$A$8:$B$12,2,FALSE),FALSE))))","v":""},{"$f":"IF($A487=\"\",\"\",IF(VLOOKUP($G487,$H$11:$DN$1000,101,FALSE)=\"\",\"No\",IF(LEFT(VLOOKUP($G487,$H$11:$DN$1000,101,FALSE),3)=\"The\",EG487,VLOOKUP(VLOOKUP($G487,$H$11:$DN$1000,101,FALSE),DeclMatrix!$A$2:$F$5,VLOOKUP('Enrollment Form'!$B487,DeclMatrix!$A$8:$B$12,2,FALSE),FALSE))))","v":""},{"$f":"IF($A487=\"\",\"\",IF(VLOOKUP($G487,$H$11:$DN$1000,106,FALSE)=\"\",\"No\",IF(LEFT(VLOOKUP($G487,$H$11:$DN$1000,106,FALSE),3)=\"The\",EH487,VLOOKUP(VLOOKUP($G487,$H$11:$DN$1000,106,FALSE),DeclMatrix!$A$2:$F$5,VLOOKUP('Enrollment Form'!$B487,DeclMatrix!$A$8:$B$12,2,FALSE),FALSE))))","v":""},{"$f":"IF($A487=\"\",\"\",IF(VLOOKUP($G487,$H$11:$DN$1000,111,FALSE)=\"\",\"No\",IF(LEFT(VLOOKUP($G487,$H$11:$DN$1000,111,FALSE),3)=\"The\",EI487,VLOOKUP(VLOOKUP($G487,$H$11:$DN$1000,111,FALSE),DeclMatrix!$A$2:$F$5,VLOOKUP('Enrollment Form'!$B487,DeclMatrix!$A$8:$B$12,2,FALSE),FALSE))))","v":""},"",null,"","","","","","","","","","","",""]
["",{"$nulls":5},"","",{"$nulls":18},"","","","",{"$nulls":30},"","","","",{"$nulls":60},"",{"$f":"IF($A488=\"\",\"\",IF(VLOOKUP($G488,$H$11:$DN$1000,96,FALSE)=\"\",\"No\",IF(LEFT(VLOOKUP($G488,$H$11:$DN$1000,96,FALSE),3)=\"The\",EF488,VLOOKUP(VLOOKUP($G488,$H$11:$DN$1000,96,FALSE),DeclMatrix!$A$2:$F$5,VLOOKUP('Enrollment Form'!$B488,DeclMatrix!$A$8:$B$12,2,FALSE),FALSE))))","v":""},{"$f":"IF($A488=\"\",\"\",IF(VLOOKUP($G488,$H$11:$DN$1000,101,FALSE)=\"\",\"No\",IF(LEFT(VLOOKUP($G488,$H$11:$DN$1000,101,FALSE),3)=\"The\",EG488,VLOOKUP(VLOOKUP($G488,$H$11:$DN$1000,101,FALSE),DeclMatrix!$A$2:$F$5,VLOOKUP('Enrollment Form'!$B488,DeclMatrix!$A$8:$B$12,2,FALSE),FALSE))))","v":""},{"$f":"IF($A488=\"\",\"\",IF(VLOOKUP($G488,$H$11:$DN$1000,106,FALSE)=\"\",\"No\",IF(LEFT(VLOOKUP($G488,$H$11:$DN$1000,106,FALSE),3)=\"The\",EH488,VLOOKUP(VLOOKUP($G488,$H$11:$DN$1000,106,FALSE),DeclMatrix!$A$2:$F$5,VLOOKUP('Enrollment Form'!$B488,DeclMatrix!$A$8:$B$12,2,FALSE),FALSE))))","v":""},{"$f":"IF($A488=\"\",\"\",IF(VLOOKUP($G488,$H$11:$DN$1000,111,FALSE)=\"\",\"No\",IF(LEFT(VLOOKUP($G488,$H$11:$DN$1000,111,FALSE),3)=\"The\",EI488,VLOOKUP(VLOOKUP($G488,$H$11:$DN$1000,111,FALSE),DeclMatrix!$A$2:$F$5,VLOOKUP('Enrollment Form'!$B488,DeclMatrix!$A$8:$B$12,2,FALSE),FALSE))))","v":""},"",null,"","","","","","","","","","","",""]
["",{"$nulls":5},"","",{"$nulls":18},"","","","",{"$nulls":30},"","","","",{"$nulls":60},"",{"$f":"IF($A489=\"\",\"\",IF(VLOOKUP($G489,$H$11:$DN$1000,96,FALSE)=\"\",\"No\",IF(LEFT(VLOOKUP($G489,$H$11:$DN$1000,96,FALSE),3)=\"The\",EF489,VLOOKUP(VLOOKUP($G489,$H$11:$DN$1000,96,FALSE),DeclMatrix!$A$2:$F$5,VLOOKUP('Enrollment Form'!$B489,DeclMatrix!$A$8:$B$12,2,FALSE),FALSE))))","v":""},{"$f":"IF($A489=\"\",\"\",IF(VLOOKUP($G489,$H$11:$DN$1000,101,FALSE)=\"\",\"No\",IF(LEFT(VLOOKUP($G489,$H$11:$DN$1000,101,FALSE),3)=\"The\",EG489,VLOOKUP(VLOOKUP($G489,$H$11:$DN$1000,101,FALSE),DeclMatrix!$A$2:$F$5,VLOOKUP('Enrollment Form'!$B489,DeclMatrix!$A$8:$B$12,2,FALSE),FALSE))))","v":""},{"$f":"IF($A489=\"\",\"\",IF(VLOOKUP($G489,$H$11:$DN$1000,106,FALSE)=\"\",\"No\",IF(LEFT(VLOOKUP($G489,$H$11:$DN$1000,106,FALSE),3)=\"The\",EH489,VLOOKUP(VLOOKUP($G489,$H$11:$DN$1000,106,FALSE),DeclMatrix!$A$2:$F$5,VLOOKUP('Enrollment Form'!$B489,DeclMatrix!$A$8:$B$12,2,FALSE),FALSE))))","v":""},{"$f":"IF($A489=\"\",\"\",IF(VLOOKUP($G489,$H$11:$DN$1000,111,FALSE)=\"\",\"No\",IF(LEFT(VLOOKUP($G489,$H$11:$DN$1000,111,FALSE),3)=\"The\",EI489,VLOOKUP(VLOOKUP($G489,$H$11:$DN$1000,111,FALSE),DeclMatrix!$A$2:$F$5,VLOOKUP('Enrollment Form'!$B489,DeclMatrix!$A$8:$B$12,2,FALSE),FALSE))))","v":""},"",null,"","","","","","","","","","","",""]
["",{"$nulls":5},"","",{"$nulls":18},"","","","",{"$nulls":30},"","","","",{"$nulls":60},"",{"$f":"IF($A490=\"\",\"\",IF(VLOOKUP($G490,$H$11:$DN$1000,96,FALSE)=\"\",\"No\",IF(LEFT(VLOOKUP($G490,$H$11:$DN$1000,96,FALSE),3)=\"The\",EF490,VLOOKUP(VLOOKUP($G490,$H$11:$DN$1000,96,FALSE),DeclMatrix!$A$2:$F$5,VLOOKUP('Enrollment Form'!$B490,DeclMatrix!$A$8:$B$12,2,FALSE),FALSE))))","v":""},{"$f":"IF($A490=\"\",\"\",IF(VLOOKUP($G490,$H$11:$DN$1000,101,FALSE)=\"\",\"No\",IF(LEFT(VLOOKUP($G490,$H$11:$DN$1000,101,FALSE),3)=\"The\",EG490,VLOOKUP(VLOOKUP($G490,$H$11:$DN$1000,101,FALSE),DeclMatrix!$A$2:$F$5,VLOOKUP('Enrollment Form'!$B490,DeclMatrix!$A$8:$B$12,2,FALSE),FALSE))))","v":""},{"$f":"IF($A490=\"\",\"\",IF(VLOOKUP($G490,$H$11:$DN$1000,106,FALSE)=\"\",\"No\",IF(LEFT(VLOOKUP($G490,$H$11:$DN$1000,106,FALSE),3)=\"The\",EH490,VLOOKUP(VLOOKUP($G490,$H$11:$DN$1000,106,FALSE),DeclMatrix!$A$2:$F$5,VLOOKUP('Enrollment Form'!$B490,DeclMatrix!$A$8:$B$12,2,FALSE),FALSE))))","v":""},{"$f":"IF($A490=\"\",\"\",IF(VLOOKUP($G490,$H$11:$DN$1000,111,FALSE)=\"\",\"No\",IF(LEFT(VLOOKUP($G490,$H$11:$DN$1000,111,FALSE),3)=\"The\",EI490,VLOOKUP(VLOOKUP($G490,$H$11:$DN$1000,111,FALSE),DeclMatrix!$A$2:$F$5,VLOOKUP('Enrollment Form'!$B490,DeclMatrix!$A$8:$B$12,2,FALSE),FALSE))))","v":""},"",null,"","","","","","","","","","","",""]
["",{"$nulls":5},"","",{"$nulls":18},"","","","",{"$nulls":30},"","","","",{"$nulls":60},"",{"$f":"IF($A491=\"\",\"\",IF(VLOOKUP($G491,$H$11:$DN$1000,96,FALSE)=\"\",\"No\",IF(LEFT(VLOOKUP($G491,$H$11:$DN$1000,96,FALSE),3)=\"The\",EF491,VLOOKUP(VLOOKUP($G491,$H$11:$DN$1000,96,FALSE),DeclMatrix!$A$2:$F$5,VLOOKUP('Enrollment Form'!$B491,DeclMatrix!$A$8:$B$12,2,FALSE),FALSE))))","v":""},{"$f":"IF($A491=\"\",\"\",IF(VLOOKUP($G491,$H$11:$DN$1000,101,FALSE)=\"\",\"No\",IF(LEFT(VLOOKUP($G491,$H$11:$DN$1000,101,FALSE),3)=\"The\",EG491,VLOOKUP(VLOOKUP($G491,$H$11:$DN$1000,101,FALSE),DeclMatrix!$A$2:$F$5,VLOOKUP('Enrollment Form'!$B491,DeclMatrix!$A$8:$B$12,2,FALSE),FALSE))))","v":""},{"$f":"IF($A491=\"\",\"\",IF(VLOOKUP($G491,$H$11:$DN$1000,106,FALSE)=\"\",\"No\",IF(LEFT(VLOOKUP($G491,$H$11:$DN$1000,106,FALSE),3)=\"The\",EH491,VLOOKUP(VLOOKUP($G491,$H$11:$DN$1000,106,FALSE),DeclMatrix!$A$2:$F$5,VLOOKUP('Enrollment Form'!$B491,DeclMatrix!$A$8:$B$12,2,FALSE),FALSE))))","v":""},{"$f":"IF($A491=\"\",\"\",IF(VLOOKUP($G491,$H$11:$DN$1000,111,FALSE)=\"\",\"No\",IF(LEFT(VLOOKUP($G491,$H$11:$DN$1000,111,FALSE),3)=\"The\",EI491,VLOOKUP(VLOOKUP($G491,$H$11:$DN$1000,111,FALSE),DeclMatrix!$A$2:$F$5,VLOOKUP('Enrollment Form'!$B491,DeclMatrix!$A$8:$B$12,2,FALSE),FALSE))))","v":""},"",null,"","","","","","","","","","","",""]
["",{"$nulls":5},"","",{"$nulls":18},"","","","",{"$nulls":30},"","","","",{"$nulls":60},"",{"$f":"IF($A492=\"\",\"\",IF(VLOOKUP($G492,$H$11:$DN$1000,96,FALSE)=\"\",\"No\",IF(LEFT(VLOOKUP($G492,$H$11:$DN$1000,96,FALSE),3)=\"The\",EF492,VLOOKUP(VLOOKUP($G492,$H$11:$DN$1000,96,FALSE),DeclMatrix!$A$2:$F$5,VLOOKUP('Enrollment Form'!$B492,DeclMatrix!$A$8:$B$12,2,FALSE),FALSE))))","v":""},{"$f":"IF($A492=\"\",\"\",IF(VLOOKUP($G492,$H$11:$DN$1000,101,FALSE)=\"\",\"No\",IF(LEFT(VLOOKUP($G492,$H$11:$DN$1000,101,FALSE),3)=\"The\",EG492,VLOOKUP(VLOOKUP($G492,$H$11:$DN$1000,101,FALSE),DeclMatrix!$A$2:$F$5,VLOOKUP('Enrollment Form'!$B492,DeclMatrix!$A$8:$B$12,2,FALSE),FALSE))))","v":""},{"$f":"IF($A492=\"\",\"\",IF(VLOOKUP($G492,$H$11:$DN$1000,106,FALSE)=\"\",\"No\",IF(LEFT(VLOOKUP($G492,$H$11:$DN$1000,106,FALSE),3)=\"The\",EH492,VLOOKUP(VLOOKUP($G492,$H$11:$DN$1000,106,FALSE),DeclMatrix!$A$2:$F$5,VLOOKUP('Enrollment Form'!$B492,DeclMatrix!$A$8:$B$12,2,FALSE),FALSE))))","v":""},{"$f":"IF($A492=\"\",\"\",IF(VLOOKUP($G492,$H$11:$DN$1000,111,FALSE)=\"\",\"No\",IF(LEFT(VLOOKUP($G492,$H$11:$DN$1000,111,FALSE),3)=\"The\",EI492,VLOOKUP(VLOOKUP($G492,$H$11:$DN$1000,111,FALSE),DeclMatrix!$A$2:$F$5,VLOOKUP('Enrollment Form'!$B492,DeclMatrix!$A$8:$B$12,2,FALSE),FALSE))))","v":""},"",null,"","","","","","","","","","","",""]
["",{"$nulls":5},"","",{"$nulls":18},"","","","",{"$nulls":30},"","","","",{"$nulls":60},"",{"$f":"IF($A493=\"\",\"\",IF(VLOOKUP($G493,$H$11:$DN$1000,96,FALSE)=\"\",\"No\",IF(LEFT(VLOOKUP($G493,$H$11:$DN$1000,96,FALSE),3)=\"The\",EF493,VLOOKUP(VLOOKUP($G493,$H$11:$DN$1000,96,FALSE),DeclMatrix!$A$2:$F$5,VLOOKUP('Enrollment Form'!$B493,DeclMatrix!$A$8:$B$12,2,FALSE),FALSE))))","v":""},{"$f":"IF($A493=\"\",\"\",IF(VLOOKUP($G493,$H$11:$DN$1000,101,FALSE)=\"\",\"No\",IF(LEFT(VLOOKUP($G493,$H$11:$DN$1000,101,FALSE),3)=\"The\",EG493,VLOOKUP(VLOOKUP($G493,$H$11:$DN$1000,101,FALSE),DeclMatrix!$A$2:$F$5,VLOOKUP('Enrollment Form'!$B493,DeclMatrix!$A$8:$B$12,2,FALSE),FALSE))))","v":""},{"$f":"IF($A493=\"\",\"\",IF(VLOOKUP($G493,$H$11:$DN$1000,106,FALSE)=\"\",\"No\",IF(LEFT(VLOOKUP($G493,$H$11:$DN$1000,106,FALSE),3)=\"The\",EH493,VLOOKUP(VLOOKUP($G493,$H$11:$DN$1000,106,FALSE),DeclMatrix!$A$2:$F$5,VLOOKUP('Enrollment Form'!$B493,DeclMatrix!$A$8:$B$12,2,FALSE),FALSE))))","v":""},{"$f":"IF($A493=\"\",\"\",IF(VLOOKUP($G493,$H$11:$DN$1000,111,FALSE)=\"\",\"No\",IF(LEFT(VLOOKUP($G493,$H$11:$DN$1000,111,FALSE),3)=\"The\",EI493,VLOOKUP(VLOOKUP($G493,$H$11:$DN$1000,111,FALSE),DeclMatrix!$A$2:$F$5,VLOOKUP('Enrollment Form'!$B493,DeclMatrix!$A$8:$B$12,2,FALSE),FALSE))))","v":""},"",null,"","","","","","","","","","","",""]
["",{"$nulls":5},"","",{"$nulls":18},"","","","",{"$nulls":30},"","","","",{"$nulls":60},"",{"$f":"IF($A494=\"\",\"\",IF(VLOOKUP($G494,$H$11:$DN$1000,96,FALSE)=\"\",\"No\",IF(LEFT(VLOOKUP($G494,$H$11:$DN$1000,96,FALSE),3)=\"The\",EF494,VLOOKUP(VLOOKUP($G494,$H$11:$DN$1000,96,FALSE),DeclMatrix!$A$2:$F$5,VLOOKUP('Enrollment Form'!$B494,DeclMatrix!$A$8:$B$12,2,FALSE),FALSE))))","v":""},{"$f":"IF($A494=\"\",\"\",IF(VLOOKUP($G494,$H$11:$DN$1000,101,FALSE)=\"\",\"No\",IF(LEFT(VLOOKUP($G494,$H$11:$DN$1000,101,FALSE),3)=\"The\",EG494,VLOOKUP(VLOOKUP($G494,$H$11:$DN$1000,101,FALSE),DeclMatrix!$A$2:$F$5,VLOOKUP('Enrollment Form'!$B494,DeclMatrix!$A$8:$B$12,2,FALSE),FALSE))))","v":""},{"$f":"IF($A494=\"\",\"\",IF(VLOOKUP($G494,$H$11:$DN$1000,106,FALSE)=\"\",\"No\",IF(LEFT(VLOOKUP($G494,$H$11:$DN$1000,106,FALSE),3)=\"The\",EH494,VLOOKUP(VLOOKUP($G494,$H$11:$DN$1000,106,FALSE),DeclMatrix!$A$2:$F$5,VLOOKUP('Enrollment Form'!$B494,DeclMatrix!$A$8:$B$12,2,FALSE),FALSE))))","v":""},{"$f":"IF($A494=\"\",\"\",IF(VLOOKUP($G494,$H$11:$DN$1000,111,FALSE)=\"\",\"No\",IF(LEFT(VLOOKUP($G494,$H$11:$DN$1000,111,FALSE),3)=\"The\",EI494,VLOOKUP(VLOOKUP($G494,$H$11:$DN$1000,111,FALSE),DeclMatrix!$A$2:$F$5,VLOOKUP('Enrollment Form'!$B494,DeclMatrix!$A$8:$B$12,2,FALSE),FALSE))))","v":""},"",null,"","","","","","","","","","","",""]
["",{"$nulls":5},"","",{"$nulls":18},"","","","",{"$nulls":30},"","","","",{"$nulls":60},"",{"$f":"IF($A495=\"\",\"\",IF(VLOOKUP($G495,$H$11:$DN$1000,96,FALSE)=\"\",\"No\",IF(LEFT(VLOOKUP($G495,$H$11:$DN$1000,96,FALSE),3)=\"The\",EF495,VLOOKUP(VLOOKUP($G495,$H$11:$DN$1000,96,FALSE),DeclMatrix!$A$2:$F$5,VLOOKUP('Enrollment Form'!$B495,DeclMatrix!$A$8:$B$12,2,FALSE),FALSE))))","v":""},{"$f":"IF($A495=\"\",\"\",IF(VLOOKUP($G495,$H$11:$DN$1000,101,FALSE)=\"\",\"No\",IF(LEFT(VLOOKUP($G495,$H$11:$DN$1000,101,FALSE),3)=\"The\",EG495,VLOOKUP(VLOOKUP($G495,$H$11:$DN$1000,101,FALSE),DeclMatrix!$A$2:$F$5,VLOOKUP('Enrollment Form'!$B495,DeclMatrix!$A$8:$B$12,2,FALSE),FALSE))))","v":""},{"$f":"IF($A495=\"\",\"\",IF(VLOOKUP($G495,$H$11:$DN$1000,106,FALSE)=\"\",\"No\",IF(LEFT(VLOOKUP($G495,$H$11:$DN$1000,106,FALSE),3)=\"The\",EH495,VLOOKUP(VLOOKUP($G495,$H$11:$DN$1000,106,FALSE),DeclMatrix!$A$2:$F$5,VLOOKUP('Enrollment Form'!$B495,DeclMatrix!$A$8:$B$12,2,FALSE),FALSE))))","v":""},{"$f":"IF($A495=\"\",\"\",IF(VLOOKUP($G495,$H$11:$DN$1000,111,FALSE)=\"\",\"No\",IF(LEFT(VLOOKUP($G495,$H$11:$DN$1000,111,FALSE),3)=\"The\",EI495,VLOOKUP(VLOOKUP($G495,$H$11:$DN$1000,111,FALSE),DeclMatrix!$A$2:$F$5,VLOOKUP('Enrollment Form'!$B495,DeclMatrix!$A$8:$B$12,2,FALSE),FALSE))))","v":""},"",null,"","","","","","","","","","","",""]
["",{"$nulls":5},"","",{"$nulls":18},"","","","",{"$nulls":30},"","","","",{"$nulls":60},"",{"$f":"IF($A496=\"\",\"\",IF(VLOOKUP($G496,$H$11:$DN$1000,96,FALSE)=\"\",\"No\",IF(LEFT(VLOOKUP($G496,$H$11:$DN$1000,96,FALSE),3)=\"The\",EF496,VLOOKUP(VLOOKUP($G496,$H$11:$DN$1000,96,FALSE),DeclMatrix!$A$2:$F$5,VLOOKUP('Enrollment Form'!$B496,DeclMatrix!$A$8:$B$12,2,FALSE),FALSE))))","v":""},{"$f":"IF($A496=\"\",\"\",IF(VLOOKUP($G496,$H$11:$DN$1000,101,FALSE)=\"\",\"No\",IF(LEFT(VLOOKUP($G496,$H$11:$DN$1000,101,FALSE),3)=\"The\",EG496,VLOOKUP(VLOOKUP($G496,$H$11:$DN$1000,101,FALSE),DeclMatrix!$A$2:$F$5,VLOOKUP('Enrollment Form'!$B496,DeclMatrix!$A$8:$B$12,2,FALSE),FALSE))))","v":""},{"$f":"IF($A496=\"\",\"\",IF(VLOOKUP($G496,$H$11:$DN$1000,106,FALSE)=\"\",\"No\",IF(LEFT(VLOOKUP($G496,$H$11:$DN$1000,106,FALSE),3)=\"The\",EH496,VLOOKUP(VLOOKUP($G496,$H$11:$DN$1000,106,FALSE),DeclMatrix!$A$2:$F$5,VLOOKUP('Enrollment Form'!$B496,DeclMatrix!$A$8:$B$12,2,FALSE),FALSE))))","v":""},{"$f":"IF($A496=\"\",\"\",IF(VLOOKUP($G496,$H$11:$DN$1000,111,FALSE)=\"\",\"No\",IF(LEFT(VLOOKUP($G496,$H$11:$DN$1000,111,FALSE),3)=\"The\",EI496,VLOOKUP(VLOOKUP($G496,$H$11:$DN$1000,111,FALSE),DeclMatrix!$A$2:$F$5,VLOOKUP('Enrollment Form'!$B496,DeclMatrix!$A$8:$B$12,2,FALSE),FALSE))))","v":""},"",null,"","","","","","","","","","","",""]
["",{"$nulls":5},"","",{"$nulls":18},"","","","",{"$nulls":30},"","","","",{"$nulls":60},"",{"$f":"IF($A497=\"\",\"\",IF(VLOOKUP($G497,$H$11:$DN$1000,96,FALSE)=\"\",\"No\",IF(LEFT(VLOOKUP($G497,$H$11:$DN$1000,96,FALSE),3)=\"The\",EF497,VLOOKUP(VLOOKUP($G497,$H$11:$DN$1000,96,FALSE),DeclMatrix!$A$2:$F$5,VLOOKUP('Enrollment Form'!$B497,DeclMatrix!$A$8:$B$12,2,FALSE),FALSE))))","v":""},{"$f":"IF($A497=\"\",\"\",IF(VLOOKUP($G497,$H$11:$DN$1000,101,FALSE)=\"\",\"No\",IF(LEFT(VLOOKUP($G497,$H$11:$DN$1000,101,FALSE),3)=\"The\",EG497,VLOOKUP(VLOOKUP($G497,$H$11:$DN$1000,101,FALSE),DeclMatrix!$A$2:$F$5,VLOOKUP('Enrollment Form'!$B497,DeclMatrix!$A$8:$B$12,2,FALSE),FALSE))))","v":""},{"$f":"IF($A497=\"\",\"\",IF(VLOOKUP($G497,$H$11:$DN$1000,106,FALSE)=\"\",\"No\",IF(LEFT(VLOOKUP($G497,$H$11:$DN$1000,106,FALSE),3)=\"The\",EH497,VLOOKUP(VLOOKUP($G497,$H$11:$DN$1000,106,FALSE),DeclMatrix!$A$2:$F$5,VLOOKUP('Enrollment Form'!$B497,DeclMatrix!$A$8:$B$12,2,FALSE),FALSE))))","v":""},{"$f":"IF($A497=\"\",\"\",IF(VLOOKUP($G497,$H$11:$DN$1000,111,FALSE)=\"\",\"No\",IF(LEFT(VLOOKUP($G497,$H$11:$DN$1000,111,FALSE),3)=\"The\",EI497,VLOOKUP(VLOOKUP($G497,$H$11:$DN$1000,111,FALSE),DeclMatrix!$A$2:$F$5,VLOOKUP('Enrollment Form'!$B497,DeclMatrix!$A$8:$B$12,2,FALSE),FALSE))))","v":""},"",null,"","","","","","","","","","","",""]
["",{"$nulls":5},"","",{"$nulls":18},"","","","",{"$nulls":30},"","","","",{"$nulls":60},"",{"$f":"IF($A498=\"\",\"\",IF(VLOOKUP($G498,$H$11:$DN$1000,96,FALSE)=\"\",\"No\",IF(LEFT(VLOOKUP($G498,$H$11:$DN$1000,96,FALSE),3)=\"The\",EF498,VLOOKUP(VLOOKUP($G498,$H$11:$DN$1000,96,FALSE),DeclMatrix!$A$2:$F$5,VLOOKUP('Enrollment Form'!$B498,DeclMatrix!$A$8:$B$12,2,FALSE),FALSE))))","v":""},{"$f":"IF($A498=\"\",\"\",IF(VLOOKUP($G498,$H$11:$DN$1000,101,FALSE)=\"\",\"No\",IF(LEFT(VLOOKUP($G498,$H$11:$DN$1000,101,FALSE),3)=\"The\",EG498,VLOOKUP(VLOOKUP($G498,$H$11:$DN$1000,101,FALSE),DeclMatrix!$A$2:$F$5,VLOOKUP('Enrollment Form'!$B498,DeclMatrix!$A$8:$B$12,2,FALSE),FALSE))))","v":""},{"$f":"IF($A498=\"\",\"\",IF(VLOOKUP($G498,$H$11:$DN$1000,106,FALSE)=\"\",\"No\",IF(LEFT(VLOOKUP($G498,$H$11:$DN$1000,106,FALSE),3)=\"The\",EH498,VLOOKUP(VLOOKUP($G498,$H$11:$DN$1000,106,FALSE),DeclMatrix!$A$2:$F$5,VLOOKUP('Enrollment Form'!$B498,DeclMatrix!$A$8:$B$12,2,FALSE),FALSE))))","v":""},{"$f":"IF($A498=\"\",\"\",IF(VLOOKUP($G498,$H$11:$DN$1000,111,FALSE)=\"\",\"No\",IF(LEFT(VLOOKUP($G498,$H$11:$DN$1000,111,FALSE),3)=\"The\",EI498,VLOOKUP(VLOOKUP($G498,$H$11:$DN$1000,111,FALSE),DeclMatrix!$A$2:$F$5,VLOOKUP('Enrollment Form'!$B498,DeclMatrix!$A$8:$B$12,2,FALSE),FALSE))))","v":""},"",null,"","","","","","","","","","","",""]
["",{"$nulls":5},"","",{"$nulls":18},"","","","",{"$nulls":30},"","","","",{"$nulls":60},"",{"$f":"IF($A499=\"\",\"\",IF(VLOOKUP($G499,$H$11:$DN$1000,96,FALSE)=\"\",\"No\",IF(LEFT(VLOOKUP($G499,$H$11:$DN$1000,96,FALSE),3)=\"The\",EF499,VLOOKUP(VLOOKUP($G499,$H$11:$DN$1000,96,FALSE),DeclMatrix!$A$2:$F$5,VLOOKUP('Enrollment Form'!$B499,DeclMatrix!$A$8:$B$12,2,FALSE),FALSE))))","v":""},{"$f":"IF($A499=\"\",\"\",IF(VLOOKUP($G499,$H$11:$DN$1000,101,FALSE)=\"\",\"No\",IF(LEFT(VLOOKUP($G499,$H$11:$DN$1000,101,FALSE),3)=\"The\",EG499,VLOOKUP(VLOOKUP($G499,$H$11:$DN$1000,101,FALSE),DeclMatrix!$A$2:$F$5,VLOOKUP('Enrollment Form'!$B499,DeclMatrix!$A$8:$B$12,2,FALSE),FALSE))))","v":""},{"$f":"IF($A499=\"\",\"\",IF(VLOOKUP($G499,$H$11:$DN$1000,106,FALSE)=\"\",\"No\",IF(LEFT(VLOOKUP($G499,$H$11:$DN$1000,106,FALSE),3)=\"The\",EH499,VLOOKUP(VLOOKUP($G499,$H$11:$DN$1000,106,FALSE),DeclMatrix!$A$2:$F$5,VLOOKUP('Enrollment Form'!$B499,DeclMatrix!$A$8:$B$12,2,FALSE),FALSE))))","v":""},{"$f":"IF($A499=\"\",\"\",IF(VLOOKUP($G499,$H$11:$DN$1000,111,FALSE)=\"\",\"No\",IF(LEFT(VLOOKUP($G499,$H$11:$DN$1000,111,FALSE),3)=\"The\",EI499,VLOOKUP(VLOOKUP($G499,$H$11:$DN$1000,111,FALSE),DeclMatrix!$A$2:$F$5,VLOOKUP('Enrollment Form'!$B499,DeclMatrix!$A$8:$B$12,2,FALSE),FALSE))))","v":""},"",null,"","","","","","","","","","","",""]
["",{"$nulls":5},"","",{"$nulls":18},"","","","",{"$nulls":30},"","","","",{"$nulls":60},"",{"$f":"IF($A500=\"\",\"\",IF(VLOOKUP($G500,$H$11:$DN$1000,96,FALSE)=\"\",\"No\",IF(LEFT(VLOOKUP($G500,$H$11:$DN$1000,96,FALSE),3)=\"The\",EF500,VLOOKUP(VLOOKUP($G500,$H$11:$DN$1000,96,FALSE),DeclMatrix!$A$2:$F$5,VLOOKUP('Enrollment Form'!$B500,DeclMatrix!$A$8:$B$12,2,FALSE),FALSE))))","v":""},{"$f":"IF($A500=\"\",\"\",IF(VLOOKUP($G500,$H$11:$DN$1000,101,FALSE)=\"\",\"No\",IF(LEFT(VLOOKUP($G500,$H$11:$DN$1000,101,FALSE),3)=\"The\",EG500,VLOOKUP(VLOOKUP($G500,$H$11:$DN$1000,101,FALSE),DeclMatrix!$A$2:$F$5,VLOOKUP('Enrollment Form'!$B500,DeclMatrix!$A$8:$B$12,2,FALSE),FALSE))))","v":""},{"$f":"IF($A500=\"\",\"\",IF(VLOOKUP($G500,$H$11:$DN$1000,106,FALSE)=\"\",\"No\",IF(LEFT(VLOOKUP($G500,$H$11:$DN$1000,106,FALSE),3)=\"The\",EH500,VLOOKUP(VLOOKUP($G500,$H$11:$DN$1000,106,FALSE),DeclMatrix!$A$2:$F$5,VLOOKUP('Enrollment Form'!$B500,DeclMatrix!$A$8:$B$12,2,FALSE),FALSE))))","v":""},{"$f":"IF($A500=\"\",\"\",IF(VLOOKUP($G500,$H$11:$DN$1000,111,FALSE)=\"\",\"No\",IF(LEFT(VLOOKUP($G500,$H$11:$DN$1000,111,FALSE),3)=\"The\",EI500,VLOOKUP(VLOOKUP($G500,$H$11:$DN$1000,111,FALSE),DeclMatrix!$A$2:$F$5,VLOOKUP('Enrollment Form'!$B500,DeclMatrix!$A$8:$B$12,2,FALSE),FALSE))))","v":""},"",null,"","","","","","","","","","","",""]
["",{"$nulls":5},"","",{"$nulls":18},"","","","",{"$nulls":30},"","","","",{"$nulls":60},"",{"$f":"IF($A501=\"\",\"\",IF(VLOOKUP($G501,$H$11:$DN$1000,96,FALSE)=\"\",\"No\",IF(LEFT(VLOOKUP($G501,$H$11:$DN$1000,96,FALSE),3)=\"The\",EF501,VLOOKUP(VLOOKUP($G501,$H$11:$DN$1000,96,FALSE),DeclMatrix!$A$2:$F$5,VLOOKUP('Enrollment Form'!$B501,DeclMatrix!$A$8:$B$12,2,FALSE),FALSE))))","v":""},{"$f":"IF($A501=\"\",\"\",IF(VLOOKUP($G501,$H$11:$DN$1000,101,FALSE)=\"\",\"No\",IF(LEFT(VLOOKUP($G501,$H$11:$DN$1000,101,FALSE),3)=\"The\",EG501,VLOOKUP(VLOOKUP($G501,$H$11:$DN$1000,101,FALSE),DeclMatrix!$A$2:$F$5,VLOOKUP('Enrollment Form'!$B501,DeclMatrix!$A$8:$B$12,2,FALSE),FALSE))))","v":""},{"$f":"IF($A501=\"\",\"\",IF(VLOOKUP($G501,$H$11:$DN$1000,106,FALSE)=\"\",\"No\",IF(LEFT(VLOOKUP($G501,$H$11:$DN$1000,106,FALSE),3)=\"The\",EH501,VLOOKUP(VLOOKUP($G501,$H$11:$DN$1000,106,FALSE),DeclMatrix!$A$2:$F$5,VLOOKUP('Enrollment Form'!$B501,DeclMatrix!$A$8:$B$12,2,FALSE),FALSE))))","v":""},{"$f":"IF($A501=\"\",\"\",IF(VLOOKUP($G501,$H$11:$DN$1000,111,FALSE)=\"\",\"No\",IF(LEFT(VLOOKUP($G501,$H$11:$DN$1000,111,FALSE),3)=\"The\",EI501,VLOOKUP(VLOOKUP($G501,$H$11:$DN$1000,111,FALSE),DeclMatrix!$A$2:$F$5,VLOOKUP('Enrollment Form'!$B501,DeclMatrix!$A$8:$B$12,2,FALSE),FALSE))))","v":""},"",null,"","","","","","","","","","","",""]
["",{"$nulls":5},"","",{"$nulls":18},"","","","",{"$nulls":30},"","","","",{"$nulls":60},"",{"$f":"IF($A502=\"\",\"\",IF(VLOOKUP($G502,$H$11:$DN$1000,96,FALSE)=\"\",\"No\",IF(LEFT(VLOOKUP($G502,$H$11:$DN$1000,96,FALSE),3)=\"The\",EF502,VLOOKUP(VLOOKUP($G502,$H$11:$DN$1000,96,FALSE),DeclMatrix!$A$2:$F$5,VLOOKUP('Enrollment Form'!$B502,DeclMatrix!$A$8:$B$12,2,FALSE),FALSE))))","v":""},{"$f":"IF($A502=\"\",\"\",IF(VLOOKUP($G502,$H$11:$DN$1000,101,FALSE)=\"\",\"No\",IF(LEFT(VLOOKUP($G502,$H$11:$DN$1000,101,FALSE),3)=\"The\",EG502,VLOOKUP(VLOOKUP($G502,$H$11:$DN$1000,101,FALSE),DeclMatrix!$A$2:$F$5,VLOOKUP('Enrollment Form'!$B502,DeclMatrix!$A$8:$B$12,2,FALSE),FALSE))))","v":""},{"$f":"IF($A502=\"\",\"\",IF(VLOOKUP($G502,$H$11:$DN$1000,106,FALSE)=\"\",\"No\",IF(LEFT(VLOOKUP($G502,$H$11:$DN$1000,106,FALSE),3)=\"The\",EH502,VLOOKUP(VLOOKUP($G502,$H$11:$DN$1000,106,FALSE),DeclMatrix!$A$2:$F$5,VLOOKUP('Enrollment Form'!$B502,DeclMatrix!$A$8:$B$12,2,FALSE),FALSE))))","v":""},{"$f":"IF($A502=\"\",\"\",IF(VLOOKUP($G502,$H$11:$DN$1000,111,FALSE)=\"\",\"No\",IF(LEFT(VLOOKUP($G502,$H$11:$DN$1000,111,FALSE),3)=\"The\",EI502,VLOOKUP(VLOOKUP($G502,$H$11:$DN$1000,111,FALSE),DeclMatrix!$A$2:$F$5,VLOOKUP('Enrollment Form'!$B502,DeclMatrix!$A$8:$B$12,2,FALSE),FALSE))))","v":""},"",null,"","","","","","","","","","","",""]
["",{"$nulls":5},"","",{"$nulls":18},"","","","",{"$nulls":30},"","","","",{"$nulls":60},"",{"$f":"IF($A503=\"\",\"\",IF(VLOOKUP($G503,$H$11:$DN$1000,96,FALSE)=\"\",\"No\",IF(LEFT(VLOOKUP($G503,$H$11:$DN$1000,96,FALSE),3)=\"The\",EF503,VLOOKUP(VLOOKUP($G503,$H$11:$DN$1000,96,FALSE),DeclMatrix!$A$2:$F$5,VLOOKUP('Enrollment Form'!$B503,DeclMatrix!$A$8:$B$12,2,FALSE),FALSE))))","v":""},{"$f":"IF($A503=\"\",\"\",IF(VLOOKUP($G503,$H$11:$DN$1000,101,FALSE)=\"\",\"No\",IF(LEFT(VLOOKUP($G503,$H$11:$DN$1000,101,FALSE),3)=\"The\",EG503,VLOOKUP(VLOOKUP($G503,$H$11:$DN$1000,101,FALSE),DeclMatrix!$A$2:$F$5,VLOOKUP('Enrollment Form'!$B503,DeclMatrix!$A$8:$B$12,2,FALSE),FALSE))))","v":""},{"$f":"IF($A503=\"\",\"\",IF(VLOOKUP($G503,$H$11:$DN$1000,106,FALSE)=\"\",\"No\",IF(LEFT(VLOOKUP($G503,$H$11:$DN$1000,106,FALSE),3)=\"The\",EH503,VLOOKUP(VLOOKUP($G503,$H$11:$DN$1000,106,FALSE),DeclMatrix!$A$2:$F$5,VLOOKUP('Enrollment Form'!$B503,DeclMatrix!$A$8:$B$12,2,FALSE),FALSE))))","v":""},{"$f":"IF($A503=\"\",\"\",IF(VLOOKUP($G503,$H$11:$DN$1000,111,FALSE)=\"\",\"No\",IF(LEFT(VLOOKUP($G503,$H$11:$DN$1000,111,FALSE),3)=\"The\",EI503,VLOOKUP(VLOOKUP($G503,$H$11:$DN$1000,111,FALSE),DeclMatrix!$A$2:$F$5,VLOOKUP('Enrollment Form'!$B503,DeclMatrix!$A$8:$B$12,2,FALSE),FALSE))))","v":""},"",null,"","","","","","","","","","","",""]
["",{"$nulls":5},"","",{"$nulls":18},"","","","",{"$nulls":30},"","","","",{"$nulls":60},"",{"$f":"IF($A504=\"\",\"\",IF(VLOOKUP($G504,$H$11:$DN$1000,96,FALSE)=\"\",\"No\",IF(LEFT(VLOOKUP($G504,$H$11:$DN$1000,96,FALSE),3)=\"The\",EF504,VLOOKUP(VLOOKUP($G504,$H$11:$DN$1000,96,FALSE),DeclMatrix!$A$2:$F$5,VLOOKUP('Enrollment Form'!$B504,DeclMatrix!$A$8:$B$12,2,FALSE),FALSE))))","v":""},{"$f":"IF($A504=\"\",\"\",IF(VLOOKUP($G504,$H$11:$DN$1000,101,FALSE)=\"\",\"No\",IF(LEFT(VLOOKUP($G504,$H$11:$DN$1000,101,FALSE),3)=\"The\",EG504,VLOOKUP(VLOOKUP($G504,$H$11:$DN$1000,101,FALSE),DeclMatrix!$A$2:$F$5,VLOOKUP('Enrollment Form'!$B504,DeclMatrix!$A$8:$B$12,2,FALSE),FALSE))))","v":""},{"$f":"IF($A504=\"\",\"\",IF(VLOOKUP($G504,$H$11:$DN$1000,106,FALSE)=\"\",\"No\",IF(LEFT(VLOOKUP($G504,$H$11:$DN$1000,106,FALSE),3)=\"The\",EH504,VLOOKUP(VLOOKUP($G504,$H$11:$DN$1000,106,FALSE),DeclMatrix!$A$2:$F$5,VLOOKUP('Enrollment Form'!$B504,DeclMatrix!$A$8:$B$12,2,FALSE),FALSE))))","v":""},{"$f":"IF($A504=\"\",\"\",IF(VLOOKUP($G504,$H$11:$DN$1000,111,FALSE)=\"\",\"No\",IF(LEFT(VLOOKUP($G504,$H$11:$DN$1000,111,FALSE),3)=\"The\",EI504,VLOOKUP(VLOOKUP($G504,$H$11:$DN$1000,111,FALSE),DeclMatrix!$A$2:$F$5,VLOOKUP('Enrollment Form'!$B504,DeclMatrix!$A$8:$B$12,2,FALSE),FALSE))))","v":""},"",null,"","","","","","","","","","","",""]
["",{"$nulls":5},"","",{"$nulls":18},"","","","",{"$nulls":30},"","","","",{"$nulls":60},"",{"$f":"IF($A505=\"\",\"\",IF(VLOOKUP($G505,$H$11:$DN$1000,96,FALSE)=\"\",\"No\",IF(LEFT(VLOOKUP($G505,$H$11:$DN$1000,96,FALSE),3)=\"The\",EF505,VLOOKUP(VLOOKUP($G505,$H$11:$DN$1000,96,FALSE),DeclMatrix!$A$2:$F$5,VLOOKUP('Enrollment Form'!$B505,DeclMatrix!$A$8:$B$12,2,FALSE),FALSE))))","v":""},{"$f":"IF($A505=\"\",\"\",IF(VLOOKUP($G505,$H$11:$DN$1000,101,FALSE)=\"\",\"No\",IF(LEFT(VLOOKUP($G505,$H$11:$DN$1000,101,FALSE),3)=\"The\",EG505,VLOOKUP(VLOOKUP($G505,$H$11:$DN$1000,101,FALSE),DeclMatrix!$A$2:$F$5,VLOOKUP('Enrollment Form'!$B505,DeclMatrix!$A$8:$B$12,2,FALSE),FALSE))))","v":""},{"$f":"IF($A505=\"\",\"\",IF(VLOOKUP($G505,$H$11:$DN$1000,106,FALSE)=\"\",\"No\",IF(LEFT(VLOOKUP($G505,$H$11:$DN$1000,106,FALSE),3)=\"The\",EH505,VLOOKUP(VLOOKUP($G505,$H$11:$DN$1000,106,FALSE),DeclMatrix!$A$2:$F$5,VLOOKUP('Enrollment Form'!$B505,DeclMatrix!$A$8:$B$12,2,FALSE),FALSE))))","v":""},{"$f":"IF($A505=\"\",\"\",IF(VLOOKUP($G505,$H$11:$DN$1000,111,FALSE)=\"\",\"No\",IF(LEFT(VLOOKUP($G505,$H$11:$DN$1000,111,FALSE),3)=\"The\",EI505,VLOOKUP(VLOOKUP($G505,$H$11:$DN$1000,111,FALSE),DeclMatrix!$A$2:$F$5,VLOOKUP('Enrollment Form'!$B505,DeclMatrix!$A$8:$B$12,2,FALSE),FALSE))))","v":""},"",null,"","","","","","","","","","","",""]
["",{"$nulls":5},"","",{"$nulls":18},"","","","",{"$nulls":30},"","","","",{"$nulls":60},"",{"$f":"IF($A506=\"\",\"\",IF(VLOOKUP($G506,$H$11:$DN$1000,96,FALSE)=\"\",\"No\",IF(LEFT(VLOOKUP($G506,$H$11:$DN$1000,96,FALSE),3)=\"The\",EF506,VLOOKUP(VLOOKUP($G506,$H$11:$DN$1000,96,FALSE),DeclMatrix!$A$2:$F$5,VLOOKUP('Enrollment Form'!$B506,DeclMatrix!$A$8:$B$12,2,FALSE),FALSE))))","v":""},{"$f":"IF($A506=\"\",\"\",IF(VLOOKUP($G506,$H$11:$DN$1000,101,FALSE)=\"\",\"No\",IF(LEFT(VLOOKUP($G506,$H$11:$DN$1000,101,FALSE),3)=\"The\",EG506,VLOOKUP(VLOOKUP($G506,$H$11:$DN$1000,101,FALSE),DeclMatrix!$A$2:$F$5,VLOOKUP('Enrollment Form'!$B506,DeclMatrix!$A$8:$B$12,2,FALSE),FALSE))))","v":""},{"$f":"IF($A506=\"\",\"\",IF(VLOOKUP($G506,$H$11:$DN$1000,106,FALSE)=\"\",\"No\",IF(LEFT(VLOOKUP($G506,$H$11:$DN$1000,106,FALSE),3)=\"The\",EH506,VLOOKUP(VLOOKUP($G506,$H$11:$DN$1000,106,FALSE),DeclMatrix!$A$2:$F$5,VLOOKUP('Enrollment Form'!$B506,DeclMatrix!$A$8:$B$12,2,FALSE),FALSE))))","v":""},{"$f":"IF($A506=\"\",\"\",IF(VLOOKUP($G506,$H$11:$DN$1000,111,FALSE)=\"\",\"No\",IF(LEFT(VLOOKUP($G506,$H$11:$DN$1000,111,FALSE),3)=\"The\",EI506,VLOOKUP(VLOOKUP($G506,$H$11:$DN$1000,111,FALSE),DeclMatrix!$A$2:$F$5,VLOOKUP('Enrollment Form'!$B506,DeclMatrix!$A$8:$B$12,2,FALSE),FALSE))))","v":""},"",null,"","","","","","","","","","","",""]
["",{"$nulls":5},"","",{"$nulls":18},"","","","",{"$nulls":30},"","","","",{"$nulls":60},"",{"$f":"IF($A507=\"\",\"\",IF(VLOOKUP($G507,$H$11:$DN$1000,96,FALSE)=\"\",\"No\",IF(LEFT(VLOOKUP($G507,$H$11:$DN$1000,96,FALSE),3)=\"The\",EF507,VLOOKUP(VLOOKUP($G507,$H$11:$DN$1000,96,FALSE),DeclMatrix!$A$2:$F$5,VLOOKUP('Enrollment Form'!$B507,DeclMatrix!$A$8:$B$12,2,FALSE),FALSE))))","v":""},{"$f":"IF($A507=\"\",\"\",IF(VLOOKUP($G507,$H$11:$DN$1000,101,FALSE)=\"\",\"No\",IF(LEFT(VLOOKUP($G507,$H$11:$DN$1000,101,FALSE),3)=\"The\",EG507,VLOOKUP(VLOOKUP($G507,$H$11:$DN$1000,101,FALSE),DeclMatrix!$A$2:$F$5,VLOOKUP('Enrollment Form'!$B507,DeclMatrix!$A$8:$B$12,2,FALSE),FALSE))))","v":""},{"$f":"IF($A507=\"\",\"\",IF(VLOOKUP($G507,$H$11:$DN$1000,106,FALSE)=\"\",\"No\",IF(LEFT(VLOOKUP($G507,$H$11:$DN$1000,106,FALSE),3)=\"The\",EH507,VLOOKUP(VLOOKUP($G507,$H$11:$DN$1000,106,FALSE),DeclMatrix!$A$2:$F$5,VLOOKUP('Enrollment Form'!$B507,DeclMatrix!$A$8:$B$12,2,FALSE),FALSE))))","v":""},{"$f":"IF($A507=\"\",\"\",IF(VLOOKUP($G507,$H$11:$DN$1000,111,FALSE)=\"\",\"No\",IF(LEFT(VLOOKUP($G507,$H$11:$DN$1000,111,FALSE),3)=\"The\",EI507,VLOOKUP(VLOOKUP($G507,$H$11:$DN$1000,111,FALSE),DeclMatrix!$A$2:$F$5,VLOOKUP('Enrollment Form'!$B507,DeclMatrix!$A$8:$B$12,2,FALSE),FALSE))))","v":""},"",null,"","","","","","","","","","","",""]
["",{"$nulls":5},"","",{"$nulls":18},"","","","",{"$nulls":30},"","","","",{"$nulls":60},"",{"$f":"IF($A508=\"\",\"\",IF(VLOOKUP($G508,$H$11:$DN$1000,96,FALSE)=\"\",\"No\",IF(LEFT(VLOOKUP($G508,$H$11:$DN$1000,96,FALSE),3)=\"The\",EF508,VLOOKUP(VLOOKUP($G508,$H$11:$DN$1000,96,FALSE),DeclMatrix!$A$2:$F$5,VLOOKUP('Enrollment Form'!$B508,DeclMatrix!$A$8:$B$12,2,FALSE),FALSE))))","v":""},{"$f":"IF($A508=\"\",\"\",IF(VLOOKUP($G508,$H$11:$DN$1000,101,FALSE)=\"\",\"No\",IF(LEFT(VLOOKUP($G508,$H$11:$DN$1000,101,FALSE),3)=\"The\",EG508,VLOOKUP(VLOOKUP($G508,$H$11:$DN$1000,101,FALSE),DeclMatrix!$A$2:$F$5,VLOOKUP('Enrollment Form'!$B508,DeclMatrix!$A$8:$B$12,2,FALSE),FALSE))))","v":""},{"$f":"IF($A508=\"\",\"\",IF(VLOOKUP($G508,$H$11:$DN$1000,106,FALSE)=\"\",\"No\",IF(LEFT(VLOOKUP($G508,$H$11:$DN$1000,106,FALSE),3)=\"The\",EH508,VLOOKUP(VLOOKUP($G508,$H$11:$DN$1000,106,FALSE),DeclMatrix!$A$2:$F$5,VLOOKUP('Enrollment Form'!$B508,DeclMatrix!$A$8:$B$12,2,FALSE),FALSE))))","v":""},{"$f":"IF($A508=\"\",\"\",IF(VLOOKUP($G508,$H$11:$DN$1000,111,FALSE)=\"\",\"No\",IF(LEFT(VLOOKUP($G508,$H$11:$DN$1000,111,FALSE),3)=\"The\",EI508,VLOOKUP(VLOOKUP($G508,$H$11:$DN$1000,111,FALSE),DeclMatrix!$A$2:$F$5,VLOOKUP('Enrollment Form'!$B508,DeclMatrix!$A$8:$B$12,2,FALSE),FALSE))))","v":""},"",null,"","","","","","","","","","","",""]
["",{"$nulls":5},"","",{"$nulls":18},"","","","",{"$nulls":30},"","","","",{"$nulls":60},"",{"$f":"IF($A509=\"\",\"\",IF(VLOOKUP($G509,$H$11:$DN$1000,96,FALSE)=\"\",\"No\",IF(LEFT(VLOOKUP($G509,$H$11:$DN$1000,96,FALSE),3)=\"The\",EF509,VLOOKUP(VLOOKUP($G509,$H$11:$DN$1000,96,FALSE),DeclMatrix!$A$2:$F$5,VLOOKUP('Enrollment Form'!$B509,DeclMatrix!$A$8:$B$12,2,FALSE),FALSE))))","v":""},{"$f":"IF($A509=\"\",\"\",IF(VLOOKUP($G509,$H$11:$DN$1000,101,FALSE)=\"\",\"No\",IF(LEFT(VLOOKUP($G509,$H$11:$DN$1000,101,FALSE),3)=\"The\",EG509,VLOOKUP(VLOOKUP($G509,$H$11:$DN$1000,101,FALSE),DeclMatrix!$A$2:$F$5,VLOOKUP('Enrollment Form'!$B509,DeclMatrix!$A$8:$B$12,2,FALSE),FALSE))))","v":""},{"$f":"IF($A509=\"\",\"\",IF(VLOOKUP($G509,$H$11:$DN$1000,106,FALSE)=\"\",\"No\",IF(LEFT(VLOOKUP($G509,$H$11:$DN$1000,106,FALSE),3)=\"The\",EH509,VLOOKUP(VLOOKUP($G509,$H$11:$DN$1000,106,FALSE),DeclMatrix!$A$2:$F$5,VLOOKUP('Enrollment Form'!$B509,DeclMatrix!$A$8:$B$12,2,FALSE),FALSE))))","v":""},{"$f":"IF($A509=\"\",\"\",IF(VLOOKUP($G509,$H$11:$DN$1000,111,FALSE)=\"\",\"No\",IF(LEFT(VLOOKUP($G509,$H$11:$DN$1000,111,FALSE),3)=\"The\",EI509,VLOOKUP(VLOOKUP($G509,$H$11:$DN$1000,111,FALSE),DeclMatrix!$A$2:$F$5,VLOOKUP('Enrollment Form'!$B509,DeclMatrix!$A$8:$B$12,2,FALSE),FALSE))))","v":""},"",null,"","","","","","","","","","","",""]
["",{"$nulls":5},"","",{"$nulls":18},"","","","",{"$nulls":30},"","","","",{"$nulls":60},"",{"$f":"IF($A510=\"\",\"\",IF(VLOOKUP($G510,$H$11:$DN$1000,96,FALSE)=\"\",\"No\",IF(LEFT(VLOOKUP($G510,$H$11:$DN$1000,96,FALSE),3)=\"The\",EF510,VLOOKUP(VLOOKUP($G510,$H$11:$DN$1000,96,FALSE),DeclMatrix!$A$2:$F$5,VLOOKUP('Enrollment Form'!$B510,DeclMatrix!$A$8:$B$12,2,FALSE),FALSE))))","v":""},{"$f":"IF($A510=\"\",\"\",IF(VLOOKUP($G510,$H$11:$DN$1000,101,FALSE)=\"\",\"No\",IF(LEFT(VLOOKUP($G510,$H$11:$DN$1000,101,FALSE),3)=\"The\",EG510,VLOOKUP(VLOOKUP($G510,$H$11:$DN$1000,101,FALSE),DeclMatrix!$A$2:$F$5,VLOOKUP('Enrollment Form'!$B510,DeclMatrix!$A$8:$B$12,2,FALSE),FALSE))))","v":""},{"$f":"IF($A510=\"\",\"\",IF(VLOOKUP($G510,$H$11:$DN$1000,106,FALSE)=\"\",\"No\",IF(LEFT(VLOOKUP($G510,$H$11:$DN$1000,106,FALSE),3)=\"The\",EH510,VLOOKUP(VLOOKUP($G510,$H$11:$DN$1000,106,FALSE),DeclMatrix!$A$2:$F$5,VLOOKUP('Enrollment Form'!$B510,DeclMatrix!$A$8:$B$12,2,FALSE),FALSE))))","v":""},{"$f":"IF($A510=\"\",\"\",IF(VLOOKUP($G510,$H$11:$DN$1000,111,FALSE)=\"\",\"No\",IF(LEFT(VLOOKUP($G510,$H$11:$DN$1000,111,FALSE),3)=\"The\",EI510,VLOOKUP(VLOOKUP($G510,$H$11:$DN$1000,111,FALSE),DeclMatrix!$A$2:$F$5,VLOOKUP('Enrollment Form'!$B510,DeclMatrix!$A$8:$B$12,2,FALSE),FALSE))))","v":""},"",null,"","","","","","","","","","","",""]
["",{"$nulls":5},"","",{"$nulls":18},"","","","",{"$nulls":30},"","","","",{"$nulls":60},"",{"$f":"IF($A511=\"\",\"\",IF(VLOOKUP($G511,$H$11:$DN$1000,96,FALSE)=\"\",\"No\",IF(LEFT(VLOOKUP($G511,$H$11:$DN$1000,96,FALSE),3)=\"The\",EF511,VLOOKUP(VLOOKUP($G511,$H$11:$DN$1000,96,FALSE),DeclMatrix!$A$2:$F$5,VLOOKUP('Enrollment Form'!$B511,DeclMatrix!$A$8:$B$12,2,FALSE),FALSE))))","v":""},{"$f":"IF($A511=\"\",\"\",IF(VLOOKUP($G511,$H$11:$DN$1000,101,FALSE)=\"\",\"No\",IF(LEFT(VLOOKUP($G511,$H$11:$DN$1000,101,FALSE),3)=\"The\",EG511,VLOOKUP(VLOOKUP($G511,$H$11:$DN$1000,101,FALSE),DeclMatrix!$A$2:$F$5,VLOOKUP('Enrollment Form'!$B511,DeclMatrix!$A$8:$B$12,2,FALSE),FALSE))))","v":""},{"$f":"IF($A511=\"\",\"\",IF(VLOOKUP($G511,$H$11:$DN$1000,106,FALSE)=\"\",\"No\",IF(LEFT(VLOOKUP($G511,$H$11:$DN$1000,106,FALSE),3)=\"The\",EH511,VLOOKUP(VLOOKUP($G511,$H$11:$DN$1000,106,FALSE),DeclMatrix!$A$2:$F$5,VLOOKUP('Enrollment Form'!$B511,DeclMatrix!$A$8:$B$12,2,FALSE),FALSE))))","v":""},{"$f":"IF($A511=\"\",\"\",IF(VLOOKUP($G511,$H$11:$DN$1000,111,FALSE)=\"\",\"No\",IF(LEFT(VLOOKUP($G511,$H$11:$DN$1000,111,FALSE),3)=\"The\",EI511,VLOOKUP(VLOOKUP($G511,$H$11:$DN$1000,111,FALSE),DeclMatrix!$A$2:$F$5,VLOOKUP('Enrollment Form'!$B511,DeclMatrix!$A$8:$B$12,2,FALSE),FALSE))))","v":""},"",null,"","","","","","","","","","","",""]
["",{"$nulls":5},"","",{"$nulls":18},"","","","",{"$nulls":30},"","","","",{"$nulls":60},"",{"$f":"IF($A512=\"\",\"\",IF(VLOOKUP($G512,$H$11:$DN$1000,96,FALSE)=\"\",\"No\",IF(LEFT(VLOOKUP($G512,$H$11:$DN$1000,96,FALSE),3)=\"The\",EF512,VLOOKUP(VLOOKUP($G512,$H$11:$DN$1000,96,FALSE),DeclMatrix!$A$2:$F$5,VLOOKUP('Enrollment Form'!$B512,DeclMatrix!$A$8:$B$12,2,FALSE),FALSE))))","v":""},{"$f":"IF($A512=\"\",\"\",IF(VLOOKUP($G512,$H$11:$DN$1000,101,FALSE)=\"\",\"No\",IF(LEFT(VLOOKUP($G512,$H$11:$DN$1000,101,FALSE),3)=\"The\",EG512,VLOOKUP(VLOOKUP($G512,$H$11:$DN$1000,101,FALSE),DeclMatrix!$A$2:$F$5,VLOOKUP('Enrollment Form'!$B512,DeclMatrix!$A$8:$B$12,2,FALSE),FALSE))))","v":""},{"$f":"IF($A512=\"\",\"\",IF(VLOOKUP($G512,$H$11:$DN$1000,106,FALSE)=\"\",\"No\",IF(LEFT(VLOOKUP($G512,$H$11:$DN$1000,106,FALSE),3)=\"The\",EH512,VLOOKUP(VLOOKUP($G512,$H$11:$DN$1000,106,FALSE),DeclMatrix!$A$2:$F$5,VLOOKUP('Enrollment Form'!$B512,DeclMatrix!$A$8:$B$12,2,FALSE),FALSE))))","v":""},{"$f":"IF($A512=\"\",\"\",IF(VLOOKUP($G512,$H$11:$DN$1000,111,FALSE)=\"\",\"No\",IF(LEFT(VLOOKUP($G512,$H$11:$DN$1000,111,FALSE),3)=\"The\",EI512,VLOOKUP(VLOOKUP($G512,$H$11:$DN$1000,111,FALSE),DeclMatrix!$A$2:$F$5,VLOOKUP('Enrollment Form'!$B512,DeclMatrix!$A$8:$B$12,2,FALSE),FALSE))))","v":""},"",null,"","","","","","","","","","","",""]
["",{"$nulls":5},"","",{"$nulls":18},"","","","",{"$nulls":30},"","","","",{"$nulls":60},"",{"$f":"IF($A513=\"\",\"\",IF(VLOOKUP($G513,$H$11:$DN$1000,96,FALSE)=\"\",\"No\",IF(LEFT(VLOOKUP($G513,$H$11:$DN$1000,96,FALSE),3)=\"The\",EF513,VLOOKUP(VLOOKUP($G513,$H$11:$DN$1000,96,FALSE),DeclMatrix!$A$2:$F$5,VLOOKUP('Enrollment Form'!$B513,DeclMatrix!$A$8:$B$12,2,FALSE),FALSE))))","v":""},{"$f":"IF($A513=\"\",\"\",IF(VLOOKUP($G513,$H$11:$DN$1000,101,FALSE)=\"\",\"No\",IF(LEFT(VLOOKUP($G513,$H$11:$DN$1000,101,FALSE),3)=\"The\",EG513,VLOOKUP(VLOOKUP($G513,$H$11:$DN$1000,101,FALSE),DeclMatrix!$A$2:$F$5,VLOOKUP('Enrollment Form'!$B513,DeclMatrix!$A$8:$B$12,2,FALSE),FALSE))))","v":""},{"$f":"IF($A513=\"\",\"\",IF(VLOOKUP($G513,$H$11:$DN$1000,106,FALSE)=\"\",\"No\",IF(LEFT(VLOOKUP($G513,$H$11:$DN$1000,106,FALSE),3)=\"The\",EH513,VLOOKUP(VLOOKUP($G513,$H$11:$DN$1000,106,FALSE),DeclMatrix!$A$2:$F$5,VLOOKUP('Enrollment Form'!$B513,DeclMatrix!$A$8:$B$12,2,FALSE),FALSE))))","v":""},{"$f":"IF($A513=\"\",\"\",IF(VLOOKUP($G513,$H$11:$DN$1000,111,FALSE)=\"\",\"No\",IF(LEFT(VLOOKUP($G513,$H$11:$DN$1000,111,FALSE),3)=\"The\",EI513,VLOOKUP(VLOOKUP($G513,$H$11:$DN$1000,111,FALSE),DeclMatrix!$A$2:$F$5,VLOOKUP('Enrollment Form'!$B513,DeclMatrix!$A$8:$B$12,2,FALSE),FALSE))))","v":""},"",null,"","","","","","","","","","","",""]
["",{"$nulls":5},"","",{"$nulls":18},"","","","",{"$nulls":30},"","","","",{"$nulls":60},"",{"$f":"IF($A514=\"\",\"\",IF(VLOOKUP($G514,$H$11:$DN$1000,96,FALSE)=\"\",\"No\",IF(LEFT(VLOOKUP($G514,$H$11:$DN$1000,96,FALSE),3)=\"The\",EF514,VLOOKUP(VLOOKUP($G514,$H$11:$DN$1000,96,FALSE),DeclMatrix!$A$2:$F$5,VLOOKUP('Enrollment Form'!$B514,DeclMatrix!$A$8:$B$12,2,FALSE),FALSE))))","v":""},{"$f":"IF($A514=\"\",\"\",IF(VLOOKUP($G514,$H$11:$DN$1000,101,FALSE)=\"\",\"No\",IF(LEFT(VLOOKUP($G514,$H$11:$DN$1000,101,FALSE),3)=\"The\",EG514,VLOOKUP(VLOOKUP($G514,$H$11:$DN$1000,101,FALSE),DeclMatrix!$A$2:$F$5,VLOOKUP('Enrollment Form'!$B514,DeclMatrix!$A$8:$B$12,2,FALSE),FALSE))))","v":""},{"$f":"IF($A514=\"\",\"\",IF(VLOOKUP($G514,$H$11:$DN$1000,106,FALSE)=\"\",\"No\",IF(LEFT(VLOOKUP($G514,$H$11:$DN$1000,106,FALSE),3)=\"The\",EH514,VLOOKUP(VLOOKUP($G514,$H$11:$DN$1000,106,FALSE),DeclMatrix!$A$2:$F$5,VLOOKUP('Enrollment Form'!$B514,DeclMatrix!$A$8:$B$12,2,FALSE),FALSE))))","v":""},{"$f":"IF($A514=\"\",\"\",IF(VLOOKUP($G514,$H$11:$DN$1000,111,FALSE)=\"\",\"No\",IF(LEFT(VLOOKUP($G514,$H$11:$DN$1000,111,FALSE),3)=\"The\",EI514,VLOOKUP(VLOOKUP($G514,$H$11:$DN$1000,111,FALSE),DeclMatrix!$A$2:$F$5,VLOOKUP('Enrollment Form'!$B514,DeclMatrix!$A$8:$B$12,2,FALSE),FALSE))))","v":""},"",null,"","","","","","","","","","","",""]
["",{"$nulls":5},"","",{"$nulls":18},"","","","",{"$nulls":30},"","","","",{"$nulls":60},"",{"$f":"IF($A515=\"\",\"\",IF(VLOOKUP($G515,$H$11:$DN$1000,96,FALSE)=\"\",\"No\",IF(LEFT(VLOOKUP($G515,$H$11:$DN$1000,96,FALSE),3)=\"The\",EF515,VLOOKUP(VLOOKUP($G515,$H$11:$DN$1000,96,FALSE),DeclMatrix!$A$2:$F$5,VLOOKUP('Enrollment Form'!$B515,DeclMatrix!$A$8:$B$12,2,FALSE),FALSE))))","v":""},{"$f":"IF($A515=\"\",\"\",IF(VLOOKUP($G515,$H$11:$DN$1000,101,FALSE)=\"\",\"No\",IF(LEFT(VLOOKUP($G515,$H$11:$DN$1000,101,FALSE),3)=\"The\",EG515,VLOOKUP(VLOOKUP($G515,$H$11:$DN$1000,101,FALSE),DeclMatrix!$A$2:$F$5,VLOOKUP('Enrollment Form'!$B515,DeclMatrix!$A$8:$B$12,2,FALSE),FALSE))))","v":""},{"$f":"IF($A515=\"\",\"\",IF(VLOOKUP($G515,$H$11:$DN$1000,106,FALSE)=\"\",\"No\",IF(LEFT(VLOOKUP($G515,$H$11:$DN$1000,106,FALSE),3)=\"The\",EH515,VLOOKUP(VLOOKUP($G515,$H$11:$DN$1000,106,FALSE),DeclMatrix!$A$2:$F$5,VLOOKUP('Enrollment Form'!$B515,DeclMatrix!$A$8:$B$12,2,FALSE),FALSE))))","v":""},{"$f":"IF($A515=\"\",\"\",IF(VLOOKUP($G515,$H$11:$DN$1000,111,FALSE)=\"\",\"No\",IF(LEFT(VLOOKUP($G515,$H$11:$DN$1000,111,FALSE),3)=\"The\",EI515,VLOOKUP(VLOOKUP($G515,$H$11:$DN$1000,111,FALSE),DeclMatrix!$A$2:$F$5,VLOOKUP('Enrollment Form'!$B515,DeclMatrix!$A$8:$B$12,2,FALSE),FALSE))))","v":""},"",null,"","","","","","","","","","","",""]
["",{"$nulls":5},"","",{"$nulls":18},"","","","",{"$nulls":30},"","","","",{"$nulls":60},"",{"$f":"IF($A516=\"\",\"\",IF(VLOOKUP($G516,$H$11:$DN$1000,96,FALSE)=\"\",\"No\",IF(LEFT(VLOOKUP($G516,$H$11:$DN$1000,96,FALSE),3)=\"The\",EF516,VLOOKUP(VLOOKUP($G516,$H$11:$DN$1000,96,FALSE),DeclMatrix!$A$2:$F$5,VLOOKUP('Enrollment Form'!$B516,DeclMatrix!$A$8:$B$12,2,FALSE),FALSE))))","v":""},{"$f":"IF($A516=\"\",\"\",IF(VLOOKUP($G516,$H$11:$DN$1000,101,FALSE)=\"\",\"No\",IF(LEFT(VLOOKUP($G516,$H$11:$DN$1000,101,FALSE),3)=\"The\",EG516,VLOOKUP(VLOOKUP($G516,$H$11:$DN$1000,101,FALSE),DeclMatrix!$A$2:$F$5,VLOOKUP('Enrollment Form'!$B516,DeclMatrix!$A$8:$B$12,2,FALSE),FALSE))))","v":""},{"$f":"IF($A516=\"\",\"\",IF(VLOOKUP($G516,$H$11:$DN$1000,106,FALSE)=\"\",\"No\",IF(LEFT(VLOOKUP($G516,$H$11:$DN$1000,106,FALSE),3)=\"The\",EH516,VLOOKUP(VLOOKUP($G516,$H$11:$DN$1000,106,FALSE),DeclMatrix!$A$2:$F$5,VLOOKUP('Enrollment Form'!$B516,DeclMatrix!$A$8:$B$12,2,FALSE),FALSE))))","v":""},{"$f":"IF($A516=\"\",\"\",IF(VLOOKUP($G516,$H$11:$DN$1000,111,FALSE)=\"\",\"No\",IF(LEFT(VLOOKUP($G516,$H$11:$DN$1000,111,FALSE),3)=\"The\",EI516,VLOOKUP(VLOOKUP($G516,$H$11:$DN$1000,111,FALSE),DeclMatrix!$A$2:$F$5,VLOOKUP('Enrollment Form'!$B516,DeclMatrix!$A$8:$B$12,2,FALSE),FALSE))))","v":""},"",null,"","","","","","","","","","","",""]
["",{"$nulls":5},"","",{"$nulls":18},"","","","",{"$nulls":30},"","","","",{"$nulls":60},"",{"$f":"IF($A517=\"\",\"\",IF(VLOOKUP($G517,$H$11:$DN$1000,96,FALSE)=\"\",\"No\",IF(LEFT(VLOOKUP($G517,$H$11:$DN$1000,96,FALSE),3)=\"The\",EF517,VLOOKUP(VLOOKUP($G517,$H$11:$DN$1000,96,FALSE),DeclMatrix!$A$2:$F$5,VLOOKUP('Enrollment Form'!$B517,DeclMatrix!$A$8:$B$12,2,FALSE),FALSE))))","v":""},{"$f":"IF($A517=\"\",\"\",IF(VLOOKUP($G517,$H$11:$DN$1000,101,FALSE)=\"\",\"No\",IF(LEFT(VLOOKUP($G517,$H$11:$DN$1000,101,FALSE),3)=\"The\",EG517,VLOOKUP(VLOOKUP($G517,$H$11:$DN$1000,101,FALSE),DeclMatrix!$A$2:$F$5,VLOOKUP('Enrollment Form'!$B517,DeclMatrix!$A$8:$B$12,2,FALSE),FALSE))))","v":""},{"$f":"IF($A517=\"\",\"\",IF(VLOOKUP($G517,$H$11:$DN$1000,106,FALSE)=\"\",\"No\",IF(LEFT(VLOOKUP($G517,$H$11:$DN$1000,106,FALSE),3)=\"The\",EH517,VLOOKUP(VLOOKUP($G517,$H$11:$DN$1000,106,FALSE),DeclMatrix!$A$2:$F$5,VLOOKUP('Enrollment Form'!$B517,DeclMatrix!$A$8:$B$12,2,FALSE),FALSE))))","v":""},{"$f":"IF($A517=\"\",\"\",IF(VLOOKUP($G517,$H$11:$DN$1000,111,FALSE)=\"\",\"No\",IF(LEFT(VLOOKUP($G517,$H$11:$DN$1000,111,FALSE),3)=\"The\",EI517,VLOOKUP(VLOOKUP($G517,$H$11:$DN$1000,111,FALSE),DeclMatrix!$A$2:$F$5,VLOOKUP('Enrollment Form'!$B517,DeclMatrix!$A$8:$B$12,2,FALSE),FALSE))))","v":""},"",null,"","","","","","","","","","","",""]
["",{"$nulls":5},"","",{"$nulls":18},"","","","",{"$nulls":30},"","","","",{"$nulls":60},"",{"$f":"IF($A518=\"\",\"\",IF(VLOOKUP($G518,$H$11:$DN$1000,96,FALSE)=\"\",\"No\",IF(LEFT(VLOOKUP($G518,$H$11:$DN$1000,96,FALSE),3)=\"The\",EF518,VLOOKUP(VLOOKUP($G518,$H$11:$DN$1000,96,FALSE),DeclMatrix!$A$2:$F$5,VLOOKUP('Enrollment Form'!$B518,DeclMatrix!$A$8:$B$12,2,FALSE),FALSE))))","v":""},{"$f":"IF($A518=\"\",\"\",IF(VLOOKUP($G518,$H$11:$DN$1000,101,FALSE)=\"\",\"No\",IF(LEFT(VLOOKUP($G518,$H$11:$DN$1000,101,FALSE),3)=\"The\",EG518,VLOOKUP(VLOOKUP($G518,$H$11:$DN$1000,101,FALSE),DeclMatrix!$A$2:$F$5,VLOOKUP('Enrollment Form'!$B518,DeclMatrix!$A$8:$B$12,2,FALSE),FALSE))))","v":""},{"$f":"IF($A518=\"\",\"\",IF(VLOOKUP($G518,$H$11:$DN$1000,106,FALSE)=\"\",\"No\",IF(LEFT(VLOOKUP($G518,$H$11:$DN$1000,106,FALSE),3)=\"The\",EH518,VLOOKUP(VLOOKUP($G518,$H$11:$DN$1000,106,FALSE),DeclMatrix!$A$2:$F$5,VLOOKUP('Enrollment Form'!$B518,DeclMatrix!$A$8:$B$12,2,FALSE),FALSE))))","v":""},{"$f":"IF($A518=\"\",\"\",IF(VLOOKUP($G518,$H$11:$DN$1000,111,FALSE)=\"\",\"No\",IF(LEFT(VLOOKUP($G518,$H$11:$DN$1000,111,FALSE),3)=\"The\",EI518,VLOOKUP(VLOOKUP($G518,$H$11:$DN$1000,111,FALSE),DeclMatrix!$A$2:$F$5,VLOOKUP('Enrollment Form'!$B518,DeclMatrix!$A$8:$B$12,2,FALSE),FALSE))))","v":""},"",null,"","","","","","","","","","","",""]
["",{"$nulls":5},"","",{"$nulls":18},"","","","",{"$nulls":30},"","","","",{"$nulls":60},"",{"$f":"IF($A519=\"\",\"\",IF(VLOOKUP($G519,$H$11:$DN$1000,96,FALSE)=\"\",\"No\",IF(LEFT(VLOOKUP($G519,$H$11:$DN$1000,96,FALSE),3)=\"The\",EF519,VLOOKUP(VLOOKUP($G519,$H$11:$DN$1000,96,FALSE),DeclMatrix!$A$2:$F$5,VLOOKUP('Enrollment Form'!$B519,DeclMatrix!$A$8:$B$12,2,FALSE),FALSE))))","v":""},{"$f":"IF($A519=\"\",\"\",IF(VLOOKUP($G519,$H$11:$DN$1000,101,FALSE)=\"\",\"No\",IF(LEFT(VLOOKUP($G519,$H$11:$DN$1000,101,FALSE),3)=\"The\",EG519,VLOOKUP(VLOOKUP($G519,$H$11:$DN$1000,101,FALSE),DeclMatrix!$A$2:$F$5,VLOOKUP('Enrollment Form'!$B519,DeclMatrix!$A$8:$B$12,2,FALSE),FALSE))))","v":""},{"$f":"IF($A519=\"\",\"\",IF(VLOOKUP($G519,$H$11:$DN$1000,106,FALSE)=\"\",\"No\",IF(LEFT(VLOOKUP($G519,$H$11:$DN$1000,106,FALSE),3)=\"The\",EH519,VLOOKUP(VLOOKUP($G519,$H$11:$DN$1000,106,FALSE),DeclMatrix!$A$2:$F$5,VLOOKUP('Enrollment Form'!$B519,DeclMatrix!$A$8:$B$12,2,FALSE),FALSE))))","v":""},{"$f":"IF($A519=\"\",\"\",IF(VLOOKUP($G519,$H$11:$DN$1000,111,FALSE)=\"\",\"No\",IF(LEFT(VLOOKUP($G519,$H$11:$DN$1000,111,FALSE),3)=\"The\",EI519,VLOOKUP(VLOOKUP($G519,$H$11:$DN$1000,111,FALSE),DeclMatrix!$A$2:$F$5,VLOOKUP('Enrollment Form'!$B519,DeclMatrix!$A$8:$B$12,2,FALSE),FALSE))))","v":""},"",null,"","","","","","","","","","","",""]
["",{"$nulls":5},"","",{"$nulls":18},"","","","",{"$nulls":30},"","","","",{"$nulls":60},"",{"$f":"IF($A520=\"\",\"\",IF(VLOOKUP($G520,$H$11:$DN$1000,96,FALSE)=\"\",\"No\",IF(LEFT(VLOOKUP($G520,$H$11:$DN$1000,96,FALSE),3)=\"The\",EF520,VLOOKUP(VLOOKUP($G520,$H$11:$DN$1000,96,FALSE),DeclMatrix!$A$2:$F$5,VLOOKUP('Enrollment Form'!$B520,DeclMatrix!$A$8:$B$12,2,FALSE),FALSE))))","v":""},{"$f":"IF($A520=\"\",\"\",IF(VLOOKUP($G520,$H$11:$DN$1000,101,FALSE)=\"\",\"No\",IF(LEFT(VLOOKUP($G520,$H$11:$DN$1000,101,FALSE),3)=\"The\",EG520,VLOOKUP(VLOOKUP($G520,$H$11:$DN$1000,101,FALSE),DeclMatrix!$A$2:$F$5,VLOOKUP('Enrollment Form'!$B520,DeclMatrix!$A$8:$B$12,2,FALSE),FALSE))))","v":""},{"$f":"IF($A520=\"\",\"\",IF(VLOOKUP($G520,$H$11:$DN$1000,106,FALSE)=\"\",\"No\",IF(LEFT(VLOOKUP($G520,$H$11:$DN$1000,106,FALSE),3)=\"The\",EH520,VLOOKUP(VLOOKUP($G520,$H$11:$DN$1000,106,FALSE),DeclMatrix!$A$2:$F$5,VLOOKUP('Enrollment Form'!$B520,DeclMatrix!$A$8:$B$12,2,FALSE),FALSE))))","v":""},{"$f":"IF($A520=\"\",\"\",IF(VLOOKUP($G520,$H$11:$DN$1000,111,FALSE)=\"\",\"No\",IF(LEFT(VLOOKUP($G520,$H$11:$DN$1000,111,FALSE),3)=\"The\",EI520,VLOOKUP(VLOOKUP($G520,$H$11:$DN$1000,111,FALSE),DeclMatrix!$A$2:$F$5,VLOOKUP('Enrollment Form'!$B520,DeclMatrix!$A$8:$B$12,2,FALSE),FALSE))))","v":""},"",null,"","","","","","","","","","","",""]
["",{"$nulls":5},"","",{"$nulls":18},"","","","",{"$nulls":30},"","","","",{"$nulls":60},"",{"$f":"IF($A521=\"\",\"\",IF(VLOOKUP($G521,$H$11:$DN$1000,96,FALSE)=\"\",\"No\",IF(LEFT(VLOOKUP($G521,$H$11:$DN$1000,96,FALSE),3)=\"The\",EF521,VLOOKUP(VLOOKUP($G521,$H$11:$DN$1000,96,FALSE),DeclMatrix!$A$2:$F$5,VLOOKUP('Enrollment Form'!$B521,DeclMatrix!$A$8:$B$12,2,FALSE),FALSE))))","v":""},{"$f":"IF($A521=\"\",\"\",IF(VLOOKUP($G521,$H$11:$DN$1000,101,FALSE)=\"\",\"No\",IF(LEFT(VLOOKUP($G521,$H$11:$DN$1000,101,FALSE),3)=\"The\",EG521,VLOOKUP(VLOOKUP($G521,$H$11:$DN$1000,101,FALSE),DeclMatrix!$A$2:$F$5,VLOOKUP('Enrollment Form'!$B521,DeclMatrix!$A$8:$B$12,2,FALSE),FALSE))))","v":""},{"$f":"IF($A521=\"\",\"\",IF(VLOOKUP($G521,$H$11:$DN$1000,106,FALSE)=\"\",\"No\",IF(LEFT(VLOOKUP($G521,$H$11:$DN$1000,106,FALSE),3)=\"The\",EH521,VLOOKUP(VLOOKUP($G521,$H$11:$DN$1000,106,FALSE),DeclMatrix!$A$2:$F$5,VLOOKUP('Enrollment Form'!$B521,DeclMatrix!$A$8:$B$12,2,FALSE),FALSE))))","v":""},{"$f":"IF($A521=\"\",\"\",IF(VLOOKUP($G521,$H$11:$DN$1000,111,FALSE)=\"\",\"No\",IF(LEFT(VLOOKUP($G521,$H$11:$DN$1000,111,FALSE),3)=\"The\",EI521,VLOOKUP(VLOOKUP($G521,$H$11:$DN$1000,111,FALSE),DeclMatrix!$A$2:$F$5,VLOOKUP('Enrollment Form'!$B521,DeclMatrix!$A$8:$B$12,2,FALSE),FALSE))))","v":""},"",null,"","","","","","","","","","","",""]
["",{"$nulls":5},"","",{"$nulls":18},"","","","",{"$nulls":30},"","","","",{"$nulls":60},"",{"$f":"IF($A522=\"\",\"\",IF(VLOOKUP($G522,$H$11:$DN$1000,96,FALSE)=\"\",\"No\",IF(LEFT(VLOOKUP($G522,$H$11:$DN$1000,96,FALSE),3)=\"The\",EF522,VLOOKUP(VLOOKUP($G522,$H$11:$DN$1000,96,FALSE),DeclMatrix!$A$2:$F$5,VLOOKUP('Enrollment Form'!$B522,DeclMatrix!$A$8:$B$12,2,FALSE),FALSE))))","v":""},{"$f":"IF($A522=\"\",\"\",IF(VLOOKUP($G522,$H$11:$DN$1000,101,FALSE)=\"\",\"No\",IF(LEFT(VLOOKUP($G522,$H$11:$DN$1000,101,FALSE),3)=\"The\",EG522,VLOOKUP(VLOOKUP($G522,$H$11:$DN$1000,101,FALSE),DeclMatrix!$A$2:$F$5,VLOOKUP('Enrollment Form'!$B522,DeclMatrix!$A$8:$B$12,2,FALSE),FALSE))))","v":""},{"$f":"IF($A522=\"\",\"\",IF(VLOOKUP($G522,$H$11:$DN$1000,106,FALSE)=\"\",\"No\",IF(LEFT(VLOOKUP($G522,$H$11:$DN$1000,106,FALSE),3)=\"The\",EH522,VLOOKUP(VLOOKUP($G522,$H$11:$DN$1000,106,FALSE),DeclMatrix!$A$2:$F$5,VLOOKUP('Enrollment Form'!$B522,DeclMatrix!$A$8:$B$12,2,FALSE),FALSE))))","v":""},{"$f":"IF($A522=\"\",\"\",IF(VLOOKUP($G522,$H$11:$DN$1000,111,FALSE)=\"\",\"No\",IF(LEFT(VLOOKUP($G522,$H$11:$DN$1000,111,FALSE),3)=\"The\",EI522,VLOOKUP(VLOOKUP($G522,$H$11:$DN$1000,111,FALSE),DeclMatrix!$A$2:$F$5,VLOOKUP('Enrollment Form'!$B522,DeclMatrix!$A$8:$B$12,2,FALSE),FALSE))))","v":""},"",null,"","","","","","","","","","","",""]
[{"$f":"IF(LEN($B523)>0,$C$2,\"\")","v":""},{"$nulls":5},"","",{"$nulls":18},"","","","",{"$nulls":30},{"$f":"IF(AND($B523<>\"Subscriber\",$BH523=\"Yes\"),VLOOKUP($G523,$H$11:$Y$1000,15,FALSE),\"\")","v":""},{"$f":"IF(AND($B523<>\"Subscriber\",$BH523=\"Yes\"),VLOOKUP($G523,$H$11:$Y$1000,16,FALSE),\"\")","v":""},{"$f":"IF(AND($B523<>\"Subscriber\",$BH523=\"Yes\"),VLOOKUP($G523,$H$11:$Y$1000,17,FALSE),\"\")","v":""},{"$f":"IF(AND($B523<>\"Subscriber\",$BH523=\"Yes\"),VLOOKUP($G523,$H$11:$Y$1000,18,FALSE),\"\")","v":""},{"$nulls":60},{"$f":"IF($A523=\"\",\"\",IF($B523=\"Subscriber\",$AG523,VLOOKUP($G523,$H$11:$AG$1000,26,FALSE)))","v":""},{"$f":"IF($A523=\"\",\"\",IF(VLOOKUP($G523,$H$11:$DN$1000,96,FALSE)=\"\",\"No\",IF(LEFT(VLOOKUP($G523,$H$11:$DN$1000,96,FALSE),3)=\"The\",EF523,VLOOKUP(VLOOKUP($G523,$H$11:$DN$1000,96,FALSE),DeclMatrix!$A$2:$F$5,VLOOKUP('Enrollment Form'!$B523,DeclMatrix!$A$8:$B$12,2,FALSE),FALSE))))","v":""},{"$f":"IF($A523=\"\",\"\",IF(VLOOKUP($G523,$H$11:$DN$1000,101,FALSE)=\"\",\"No\",IF(LEFT(VLOOKUP($G523,$H$11:$DN$1000,101,FALSE),3)=\"The\",EG523,VLOOKUP(VLOOKUP($G523,$H$11:$DN$1000,101,FALSE),DeclMatrix!$A$2:$F$5,VLOOKUP('Enrollment Form'!$B523,DeclMatrix!$A$8:$B$12,2,FALSE),FALSE))))","v":""},{"$f":"IF($A523=\"\",\"\",IF(VLOOKUP($G523,$H$11:$DN$1000,106,FALSE)=\"\",\"No\",IF(LEFT(VLOOKUP($G523,$H$11:$DN$1000,106,FALSE),3)=\"The\",EH523,VLOOKUP(VLOOKUP($G523,$H$11:$DN$1000,106,FALSE),DeclMatrix!$A$2:$F$5,VLOOKUP('Enrollment Form'!$B523,DeclMatrix!$A$8:$B$12,2,FALSE),FALSE))))","v":""},{"$f":"IF($A523=\"\",\"\",IF(VLOOKUP($G523,$H$11:$DN$1000,111,FALSE)=\"\",\"No\",IF(LEFT(VLOOKUP($G523,$H$11:$DN$1000,111,FALSE),3)=\"The\",EI523,VLOOKUP(VLOOKUP($G523,$H$11:$DN$1000,111,FALSE),DeclMatrix!$A$2:$F$5,VLOOKUP('Enrollment Form'!$B523,DeclMatrix!$A$8:$B$12,2,FALSE),FALSE))))","v":""},"",null,{"$f":"$B523&$G523&$J523","v":""},{"$f":"$B523&$G523&$L523","v":""},{"$f":"$B523&$G523&$N523","v":""},{"$f":"$B523&$G523&$O523","v":""},"","","","",{"$f":"IF($A523=\"\",\"\",IF(AND($B523=\"Subscriber\",$I523<>\"Waive\",$I523<>\"\"),\"Yes\",IF(AND($B523<>\"Subscriber\",$BF523=\"Yes\"),VLOOKUP($G523,$H$11:$EM$1000,133,FALSE),IF(AND($C523=\"Enroll\",VLOOKUP($G524,$H$11:$EM$1000,96,FALSE)<>\"\"),VLOOKUP($DV523,$DW$2:$DX$3,2,FALSE),\"No\"))))","v":""},{"$f":"IF($A523=\"\",\"\",IF(AND($B523=\"Subscriber\",$K523<>\"Waive\",$K523<>\"\"),\"Yes\",IF(AND($B523<>\"Subscriber\",$BF523=\"Yes\"),VLOOKUP($G523,$H$11:$EM$1000,134,FALSE),IF(AND($C523=\"Enroll\",VLOOKUP($G524,$H$11:$EM$1000,101,FALSE)<>\"\"),VLOOKUP($DW523,$DW$2:$DX$3,2,FALSE),\"No\"))))","v":""},{"$f":"IF($A523=\"\",\"\",IF(AND($B523=\"Subscriber\",$M523<>\"Waive\",$M523<>\"\"),\"Yes\",IF(AND($B523<>\"Subscriber\",$BF523=\"Yes\"),VLOOKUP($G523,$H$11:$EM$1000,135,FALSE),IF(AND($C523=\"Enroll\",VLOOKUP($G524,$H$11:$EM$1000,106,FALSE)<>\"\"),VLOOKUP($DX523,$DW$2:$DX$3,2,FALSE),\"No\"))))","v":""},{"$f":"IF($A523=\"\",\"\",IF(AND($B523=\"Subscriber\",$O523<>\"Waive\",$O523<>\"\"),\"Yes\",IF(AND($B523<>\"Subscriber\",$BF523=\"Yes\"),VLOOKUP($G523,$H$11:$EM$1000,136,FALSE),IF(AND($C523=\"Enroll\",VLOOKUP($G524,$H$11:$EM$1000,111,FALSE)<>\"\"),VLOOKUP($DY523,$DW$2:$DX$3,2,FALSE),\"No\"))))","v":""}]
["",{"$nulls":5},{"$f":"IF(A524=\"\",\"\",IF(AND(B524<>\"Subscriber\",B524<>\"\"),G523,\"\"))","v":""},{"$f":"IF(AND(B524=\"Subscriber\",G524<>\"\"),G524,\"\")","v":""},{"$nulls":18},{"$f":"IF(AND($B524=\"Subscriber\",$Z524=\"Yes\"),V524,\"\")","v":""},{"$f":"IF(AND($B524=\"Subscriber\",$Z524=\"Yes\"),W524,\"\")","v":""},{"$f":"IF(AND($B524=\"Subscriber\",$Z524=\"Yes\"),X524,\"\")","v":""},{"$f":"IF(AND($B524=\"Subscriber\",$Z524=\"Yes\"),Y524,\"\")","v":""},{"$nulls":30},"","","","",{"$nulls":60},"",{"$f":"IF($A524=\"\",\"\",IF(VLOOKUP($G524,$H$11:$DN$1000,96,FALSE)=\"\",\"No\",IF(LEFT(VLOOKUP($G524,$H$11:$DN$1000,96,FALSE),3)=\"The\",EF524,VLOOKUP(VLOOKUP($G524,$H$11:$DN$1000,96,FALSE),DeclMatrix!$A$2:$F$5,VLOOKUP('Enrollment Form'!$B524,DeclMatrix!$A$8:$B$12,2,FALSE),FALSE))))","v":""},{"$f":"IF($A524=\"\",\"\",IF(VLOOKUP($G524,$H$11:$DN$1000,101,FALSE)=\"\",\"No\",IF(LEFT(VLOOKUP($G524,$H$11:$DN$1000,101,FALSE),3)=\"The\",EG524,VLOOKUP(VLOOKUP($G524,$H$11:$DN$1000,101,FALSE),DeclMatrix!$A$2:$F$5,VLOOKUP('Enrollment Form'!$B524,DeclMatrix!$A$8:$B$12,2,FALSE),FALSE))))","v":""},{"$f":"IF($A524=\"\",\"\",IF(VLOOKUP($G524,$H$11:$DN$1000,106,FALSE)=\"\",\"No\",IF(LEFT(VLOOKUP($G524,$H$11:$DN$1000,106,FALSE),3)=\"The\",EH524,VLOOKUP(VLOOKUP($G524,$H$11:$DN$1000,106,FALSE),DeclMatrix!$A$2:$F$5,VLOOKUP('Enrollment Form'!$B524,DeclMatrix!$A$8:$B$12,2,FALSE),FALSE))))","v":""},{"$f":"IF($A524=\"\",\"\",IF(VLOOKUP($G524,$H$11:$DN$1000,111,FALSE)=\"\",\"No\",IF(LEFT(VLOOKUP($G524,$H$11:$DN$1000,111,FALSE),3)=\"The\",EI524,VLOOKUP(VLOOKUP($G524,$H$11:$DN$1000,111,FALSE),DeclMatrix!$A$2:$F$5,VLOOKUP('Enrollment Form'!$B524,DeclMatrix!$A$8:$B$12,2,FALSE),FALSE))))","v":""},{"$f":"IF(A524<>\"\",\"1X\",\"\")","v":""},null,"","","","",{"$f":"IF($A524=\"\",\"\",IF($B524=\"Subscriber\",\"No\",IF(OR($CY524=\"\",$CY524=\"No\"),\"No\",\"Yes\")))","v":""},{"$f":"IF($A524=\"\",\"\",IF($B524=\"Subscriber\",\"No\",IF(OR($DD524=\"\",$DD524=\"No\"),\"No\",\"Yes\")))","v":""},{"$f":"IF($A524=\"\",\"\",IF($B524=\"Subscriber\",\"No\",IF(OR($DI524=\"\",$DI524=\"No\"),\"No\",\"Yes\")))","v":""},{"$f":"IF($A524=\"\",\"\",IF($B524=\"Subscriber\",\"No\",IF(OR($DN524=\"\",$DN524=\"No\"),\"No\",\"Yes\")))","v":""},"","","",""]
["",{"$nulls":5},"","",{"$nulls":18},"","","","",{"$nulls":30},"","","","",{"$nulls":60},"",{"$f":"IF($A525=\"\",\"\",IF(VLOOKUP($G525,$H$11:$DN$1000,96,FALSE)=\"\",\"No\",IF(LEFT(VLOOKUP($G525,$H$11:$DN$1000,96,FALSE),3)=\"The\",EF525,VLOOKUP(VLOOKUP($G525,$H$11:$DN$1000,96,FALSE),DeclMatrix!$A$2:$F$5,VLOOKUP('Enrollment Form'!$B525,DeclMatrix!$A$8:$B$12,2,FALSE),FALSE))))","v":""},{"$f":"IF($A525=\"\",\"\",IF(VLOOKUP($G525,$H$11:$DN$1000,101,FALSE)=\"\",\"No\",IF(LEFT(VLOOKUP($G525,$H$11:$DN$1000,101,FALSE),3)=\"The\",EG525,VLOOKUP(VLOOKUP($G525,$H$11:$DN$1000,101,FALSE),DeclMatrix!$A$2:$F$5,VLOOKUP('Enrollment Form'!$B525,DeclMatrix!$A$8:$B$12,2,FALSE),FALSE))))","v":""},{"$f":"IF($A525=\"\",\"\",IF(VLOOKUP($G525,$H$11:$DN$1000,106,FALSE)=\"\",\"No\",IF(LEFT(VLOOKUP($G525,$H$11:$DN$1000,106,FALSE),3)=\"The\",EH525,VLOOKUP(VLOOKUP($G525,$H$11:$DN$1000,106,FALSE),DeclMatrix!$A$2:$F$5,VLOOKUP('Enrollment Form'!$B525,DeclMatrix!$A$8:$B$12,2,FALSE),FALSE))))","v":""},{"$f":"IF($A525=\"\",\"\",IF(VLOOKUP($G525,$H$11:$DN$1000,111,FALSE)=\"\",\"No\",IF(LEFT(VLOOKUP($G525,$H$11:$DN$1000,111,FALSE),3)=\"The\",EI525,VLOOKUP(VLOOKUP($G525,$H$11:$DN$1000,111,FALSE),DeclMatrix!$A$2:$F$5,VLOOKUP('Enrollment Form'!$B525,DeclMatrix!$A$8:$B$12,2,FALSE),FALSE))))","v":""},"",null,"","","","","","","","","","","",""]
["",{"$nulls":5},"","",{"$nulls":18},"","","","",{"$nulls":30},"","","","",{"$nulls":60},"",{"$f":"IF($A526=\"\",\"\",IF(VLOOKUP($G526,$H$11:$DN$1000,96,FALSE)=\"\",\"No\",IF(LEFT(VLOOKUP($G526,$H$11:$DN$1000,96,FALSE),3)=\"The\",EF526,VLOOKUP(VLOOKUP($G526,$H$11:$DN$1000,96,FALSE),DeclMatrix!$A$2:$F$5,VLOOKUP('Enrollment Form'!$B526,DeclMatrix!$A$8:$B$12,2,FALSE),FALSE))))","v":""},{"$f":"IF($A526=\"\",\"\",IF(VLOOKUP($G526,$H$11:$DN$1000,101,FALSE)=\"\",\"No\",IF(LEFT(VLOOKUP($G526,$H$11:$DN$1000,101,FALSE),3)=\"The\",EG526,VLOOKUP(VLOOKUP($G526,$H$11:$DN$1000,101,FALSE),DeclMatrix!$A$2:$F$5,VLOOKUP('Enrollment Form'!$B526,DeclMatrix!$A$8:$B$12,2,FALSE),FALSE))))","v":""},{"$f":"IF($A526=\"\",\"\",IF(VLOOKUP($G526,$H$11:$DN$1000,106,FALSE)=\"\",\"No\",IF(LEFT(VLOOKUP($G526,$H$11:$DN$1000,106,FALSE),3)=\"The\",EH526,VLOOKUP(VLOOKUP($G526,$H$11:$DN$1000,106,FALSE),DeclMatrix!$A$2:$F$5,VLOOKUP('Enrollment Form'!$B526,DeclMatrix!$A$8:$B$12,2,FALSE),FALSE))))","v":""},{"$f":"IF($A526=\"\",\"\",IF(VLOOKUP($G526,$H$11:$DN$1000,111,FALSE)=\"\",\"No\",IF(LEFT(VLOOKUP($G526,$H$11:$DN$1000,111,FALSE),3)=\"The\",EI526,VLOOKUP(VLOOKUP($G526,$H$11:$DN$1000,111,FALSE),DeclMatrix!$A$2:$F$5,VLOOKUP('Enrollment Form'!$B526,DeclMatrix!$A$8:$B$12,2,FALSE),FALSE))))","v":""},"",null,"","","","","","","","","","","",""]
["",{"$nulls":5},"","",{"$nulls":18},"","","","",{"$nulls":30},"","","","",{"$nulls":60},"",{"$f":"IF($A527=\"\",\"\",IF(VLOOKUP($G527,$H$11:$DN$1000,96,FALSE)=\"\",\"No\",IF(LEFT(VLOOKUP($G527,$H$11:$DN$1000,96,FALSE),3)=\"The\",EF527,VLOOKUP(VLOOKUP($G527,$H$11:$DN$1000,96,FALSE),DeclMatrix!$A$2:$F$5,VLOOKUP('Enrollment Form'!$B527,DeclMatrix!$A$8:$B$12,2,FALSE),FALSE))))","v":""},{"$f":"IF($A527=\"\",\"\",IF(VLOOKUP($G527,$H$11:$DN$1000,101,FALSE)=\"\",\"No\",IF(LEFT(VLOOKUP($G527,$H$11:$DN$1000,101,FALSE),3)=\"The\",EG527,VLOOKUP(VLOOKUP($G527,$H$11:$DN$1000,101,FALSE),DeclMatrix!$A$2:$F$5,VLOOKUP('Enrollment Form'!$B527,DeclMatrix!$A$8:$B$12,2,FALSE),FALSE))))","v":""},{"$f":"IF($A527=\"\",\"\",IF(VLOOKUP($G527,$H$11:$DN$1000,106,FALSE)=\"\",\"No\",IF(LEFT(VLOOKUP($G527,$H$11:$DN$1000,106,FALSE),3)=\"The\",EH527,VLOOKUP(VLOOKUP($G527,$H$11:$DN$1000,106,FALSE),DeclMatrix!$A$2:$F$5,VLOOKUP('Enrollment Form'!$B527,DeclMatrix!$A$8:$B$12,2,FALSE),FALSE))))","v":""},{"$f":"IF($A527=\"\",\"\",IF(VLOOKUP($G527,$H$11:$DN$1000,111,FALSE)=\"\",\"No\",IF(LEFT(VLOOKUP($G527,$H$11:$DN$1000,111,FALSE),3)=\"The\",EI527,VLOOKUP(VLOOKUP($G527,$H$11:$DN$1000,111,FALSE),DeclMatrix!$A$2:$F$5,VLOOKUP('Enrollment Form'!$B527,DeclMatrix!$A$8:$B$12,2,FALSE),FALSE))))","v":""},"",null,"","","","","","","","","","","",""]
["",{"$nulls":5},"","",{"$nulls":18},"","","","",{"$nulls":30},"","","","",{"$nulls":60},"",{"$f":"IF($A528=\"\",\"\",IF(VLOOKUP($G528,$H$11:$DN$1000,96,FALSE)=\"\",\"No\",IF(LEFT(VLOOKUP($G528,$H$11:$DN$1000,96,FALSE),3)=\"The\",EF528,VLOOKUP(VLOOKUP($G528,$H$11:$DN$1000,96,FALSE),DeclMatrix!$A$2:$F$5,VLOOKUP('Enrollment Form'!$B528,DeclMatrix!$A$8:$B$12,2,FALSE),FALSE))))","v":""},{"$f":"IF($A528=\"\",\"\",IF(VLOOKUP($G528,$H$11:$DN$1000,101,FALSE)=\"\",\"No\",IF(LEFT(VLOOKUP($G528,$H$11:$DN$1000,101,FALSE),3)=\"The\",EG528,VLOOKUP(VLOOKUP($G528,$H$11:$DN$1000,101,FALSE),DeclMatrix!$A$2:$F$5,VLOOKUP('Enrollment Form'!$B528,DeclMatrix!$A$8:$B$12,2,FALSE),FALSE))))","v":""},{"$f":"IF($A528=\"\",\"\",IF(VLOOKUP($G528,$H$11:$DN$1000,106,FALSE)=\"\",\"No\",IF(LEFT(VLOOKUP($G528,$H$11:$DN$1000,106,FALSE),3)=\"The\",EH528,VLOOKUP(VLOOKUP($G528,$H$11:$DN$1000,106,FALSE),DeclMatrix!$A$2:$F$5,VLOOKUP('Enrollment Form'!$B528,DeclMatrix!$A$8:$B$12,2,FALSE),FALSE))))","v":""},{"$f":"IF($A528=\"\",\"\",IF(VLOOKUP($G528,$H$11:$DN$1000,111,FALSE)=\"\",\"No\",IF(LEFT(VLOOKUP($G528,$H$11:$DN$1000,111,FALSE),3)=\"The\",EI528,VLOOKUP(VLOOKUP($G528,$H$11:$DN$1000,111,FALSE),DeclMatrix!$A$2:$F$5,VLOOKUP('Enrollment Form'!$B528,DeclMatrix!$A$8:$B$12,2,FALSE),FALSE))))","v":""},"",null,"","","","","","","","","","","",""]
["",{"$nulls":5},"","",{"$nulls":18},"","","","",{"$nulls":30},"","","","",{"$nulls":60},"",{"$f":"IF($A529=\"\",\"\",IF(VLOOKUP($G529,$H$11:$DN$1000,96,FALSE)=\"\",\"No\",IF(LEFT(VLOOKUP($G529,$H$11:$DN$1000,96,FALSE),3)=\"The\",EF529,VLOOKUP(VLOOKUP($G529,$H$11:$DN$1000,96,FALSE),DeclMatrix!$A$2:$F$5,VLOOKUP('Enrollment Form'!$B529,DeclMatrix!$A$8:$B$12,2,FALSE),FALSE))))","v":""},{"$f":"IF($A529=\"\",\"\",IF(VLOOKUP($G529,$H$11:$DN$1000,101,FALSE)=\"\",\"No\",IF(LEFT(VLOOKUP($G529,$H$11:$DN$1000,101,FALSE),3)=\"The\",EG529,VLOOKUP(VLOOKUP($G529,$H$11:$DN$1000,101,FALSE),DeclMatrix!$A$2:$F$5,VLOOKUP('Enrollment Form'!$B529,DeclMatrix!$A$8:$B$12,2,FALSE),FALSE))))","v":""},{"$f":"IF($A529=\"\",\"\",IF(VLOOKUP($G529,$H$11:$DN$1000,106,FALSE)=\"\",\"No\",IF(LEFT(VLOOKUP($G529,$H$11:$DN$1000,106,FALSE),3)=\"The\",EH529,VLOOKUP(VLOOKUP($G529,$H$11:$DN$1000,106,FALSE),DeclMatrix!$A$2:$F$5,VLOOKUP('Enrollment Form'!$B529,DeclMatrix!$A$8:$B$12,2,FALSE),FALSE))))","v":""},{"$f":"IF($A529=\"\",\"\",IF(VLOOKUP($G529,$H$11:$DN$1000,111,FALSE)=\"\",\"No\",IF(LEFT(VLOOKUP($G529,$H$11:$DN$1000,111,FALSE),3)=\"The\",EI529,VLOOKUP(VLOOKUP($G529,$H$11:$DN$1000,111,FALSE),DeclMatrix!$A$2:$F$5,VLOOKUP('Enrollment Form'!$B529,DeclMatrix!$A$8:$B$12,2,FALSE),FALSE))))","v":""},"",null,"","","","","","","","","","","",""]
["",{"$nulls":5},"","",{"$nulls":18},"","","","",{"$nulls":30},"","","","",{"$nulls":60},"",{"$f":"IF($A530=\"\",\"\",IF(VLOOKUP($G530,$H$11:$DN$1000,96,FALSE)=\"\",\"No\",IF(LEFT(VLOOKUP($G530,$H$11:$DN$1000,96,FALSE),3)=\"The\",EF530,VLOOKUP(VLOOKUP($G530,$H$11:$DN$1000,96,FALSE),DeclMatrix!$A$2:$F$5,VLOOKUP('Enrollment Form'!$B530,DeclMatrix!$A$8:$B$12,2,FALSE),FALSE))))","v":""},{"$f":"IF($A530=\"\",\"\",IF(VLOOKUP($G530,$H$11:$DN$1000,101,FALSE)=\"\",\"No\",IF(LEFT(VLOOKUP($G530,$H$11:$DN$1000,101,FALSE),3)=\"The\",EG530,VLOOKUP(VLOOKUP($G530,$H$11:$DN$1000,101,FALSE),DeclMatrix!$A$2:$F$5,VLOOKUP('Enrollment Form'!$B530,DeclMatrix!$A$8:$B$12,2,FALSE),FALSE))))","v":""},{"$f":"IF($A530=\"\",\"\",IF(VLOOKUP($G530,$H$11:$DN$1000,106,FALSE)=\"\",\"No\",IF(LEFT(VLOOKUP($G530,$H$11:$DN$1000,106,FALSE),3)=\"The\",EH530,VLOOKUP(VLOOKUP($G530,$H$11:$DN$1000,106,FALSE),DeclMatrix!$A$2:$F$5,VLOOKUP('Enrollment Form'!$B530,DeclMatrix!$A$8:$B$12,2,FALSE),FALSE))))","v":""},{"$f":"IF($A530=\"\",\"\",IF(VLOOKUP($G530,$H$11:$DN$1000,111,FALSE)=\"\",\"No\",IF(LEFT(VLOOKUP($G530,$H$11:$DN$1000,111,FALSE),3)=\"The\",EI530,VLOOKUP(VLOOKUP($G530,$H$11:$DN$1000,111,FALSE),DeclMatrix!$A$2:$F$5,VLOOKUP('Enrollment Form'!$B530,DeclMatrix!$A$8:$B$12,2,FALSE),FALSE))))","v":""},"",null,"","","","","","","","","","","",""]
["",{"$nulls":5},"","",{"$nulls":18},"","","","",{"$nulls":30},"","","","",{"$nulls":60},"",{"$f":"IF($A531=\"\",\"\",IF(VLOOKUP($G531,$H$11:$DN$1000,96,FALSE)=\"\",\"No\",IF(LEFT(VLOOKUP($G531,$H$11:$DN$1000,96,FALSE),3)=\"The\",EF531,VLOOKUP(VLOOKUP($G531,$H$11:$DN$1000,96,FALSE),DeclMatrix!$A$2:$F$5,VLOOKUP('Enrollment Form'!$B531,DeclMatrix!$A$8:$B$12,2,FALSE),FALSE))))","v":""},{"$f":"IF($A531=\"\",\"\",IF(VLOOKUP($G531,$H$11:$DN$1000,101,FALSE)=\"\",\"No\",IF(LEFT(VLOOKUP($G531,$H$11:$DN$1000,101,FALSE),3)=\"The\",EG531,VLOOKUP(VLOOKUP($G531,$H$11:$DN$1000,101,FALSE),DeclMatrix!$A$2:$F$5,VLOOKUP('Enrollment Form'!$B531,DeclMatrix!$A$8:$B$12,2,FALSE),FALSE))))","v":""},{"$f":"IF($A531=\"\",\"\",IF(VLOOKUP($G531,$H$11:$DN$1000,106,FALSE)=\"\",\"No\",IF(LEFT(VLOOKUP($G531,$H$11:$DN$1000,106,FALSE),3)=\"The\",EH531,VLOOKUP(VLOOKUP($G531,$H$11:$DN$1000,106,FALSE),DeclMatrix!$A$2:$F$5,VLOOKUP('Enrollment Form'!$B531,DeclMatrix!$A$8:$B$12,2,FALSE),FALSE))))","v":""},{"$f":"IF($A531=\"\",\"\",IF(VLOOKUP($G531,$H$11:$DN$1000,111,FALSE)=\"\",\"No\",IF(LEFT(VLOOKUP($G531,$H$11:$DN$1000,111,FALSE),3)=\"The\",EI531,VLOOKUP(VLOOKUP($G531,$H$11:$DN$1000,111,FALSE),DeclMatrix!$A$2:$F$5,VLOOKUP('Enrollment Form'!$B531,DeclMatrix!$A$8:$B$12,2,FALSE),FALSE))))","v":""},"",null,"","","","","","","","","","","",""]
["",{"$nulls":5},"","",{"$nulls":18},"","","","",{"$nulls":30},"","","","",{"$nulls":60},"",{"$f":"IF($A532=\"\",\"\",IF(VLOOKUP($G532,$H$11:$DN$1000,96,FALSE)=\"\",\"No\",IF(LEFT(VLOOKUP($G532,$H$11:$DN$1000,96,FALSE),3)=\"The\",EF532,VLOOKUP(VLOOKUP($G532,$H$11:$DN$1000,96,FALSE),DeclMatrix!$A$2:$F$5,VLOOKUP('Enrollment Form'!$B532,DeclMatrix!$A$8:$B$12,2,FALSE),FALSE))))","v":""},{"$f":"IF($A532=\"\",\"\",IF(VLOOKUP($G532,$H$11:$DN$1000,101,FALSE)=\"\",\"No\",IF(LEFT(VLOOKUP($G532,$H$11:$DN$1000,101,FALSE),3)=\"The\",EG532,VLOOKUP(VLOOKUP($G532,$H$11:$DN$1000,101,FALSE),DeclMatrix!$A$2:$F$5,VLOOKUP('Enrollment Form'!$B532,DeclMatrix!$A$8:$B$12,2,FALSE),FALSE))))","v":""},{"$f":"IF($A532=\"\",\"\",IF(VLOOKUP($G532,$H$11:$DN$1000,106,FALSE)=\"\",\"No\",IF(LEFT(VLOOKUP($G532,$H$11:$DN$1000,106,FALSE),3)=\"The\",EH532,VLOOKUP(VLOOKUP($G532,$H$11:$DN$1000,106,FALSE),DeclMatrix!$A$2:$F$5,VLOOKUP('Enrollment Form'!$B532,DeclMatrix!$A$8:$B$12,2,FALSE),FALSE))))","v":""},{"$f":"IF($A532=\"\",\"\",IF(VLOOKUP($G532,$H$11:$DN$1000,111,FALSE)=\"\",\"No\",IF(LEFT(VLOOKUP($G532,$H$11:$DN$1000,111,FALSE),3)=\"The\",EI532,VLOOKUP(VLOOKUP($G532,$H$11:$DN$1000,111,FALSE),DeclMatrix!$A$2:$F$5,VLOOKUP('Enrollment Form'!$B532,DeclMatrix!$A$8:$B$12,2,FALSE),FALSE))))","v":""},"",null,"","","","","","","","","","","",""]
["",{"$nulls":5},"","",{"$nulls":18},"","","","",{"$nulls":30},"","","","",{"$nulls":60},"",{"$f":"IF($A533=\"\",\"\",IF(VLOOKUP($G533,$H$11:$DN$1000,96,FALSE)=\"\",\"No\",IF(LEFT(VLOOKUP($G533,$H$11:$DN$1000,96,FALSE),3)=\"The\",EF533,VLOOKUP(VLOOKUP($G533,$H$11:$DN$1000,96,FALSE),DeclMatrix!$A$2:$F$5,VLOOKUP('Enrollment Form'!$B533,DeclMatrix!$A$8:$B$12,2,FALSE),FALSE))))","v":""},{"$f":"IF($A533=\"\",\"\",IF(VLOOKUP($G533,$H$11:$DN$1000,101,FALSE)=\"\",\"No\",IF(LEFT(VLOOKUP($G533,$H$11:$DN$1000,101,FALSE),3)=\"The\",EG533,VLOOKUP(VLOOKUP($G533,$H$11:$DN$1000,101,FALSE),DeclMatrix!$A$2:$F$5,VLOOKUP('Enrollment Form'!$B533,DeclMatrix!$A$8:$B$12,2,FALSE),FALSE))))","v":""},{"$f":"IF($A533=\"\",\"\",IF(VLOOKUP($G533,$H$11:$DN$1000,106,FALSE)=\"\",\"No\",IF(LEFT(VLOOKUP($G533,$H$11:$DN$1000,106,FALSE),3)=\"The\",EH533,VLOOKUP(VLOOKUP($G533,$H$11:$DN$1000,106,FALSE),DeclMatrix!$A$2:$F$5,VLOOKUP('Enrollment Form'!$B533,DeclMatrix!$A$8:$B$12,2,FALSE),FALSE))))","v":""},{"$f":"IF($A533=\"\",\"\",IF(VLOOKUP($G533,$H$11:$DN$1000,111,FALSE)=\"\",\"No\",IF(LEFT(VLOOKUP($G533,$H$11:$DN$1000,111,FALSE),3)=\"The\",EI533,VLOOKUP(VLOOKUP($G533,$H$11:$DN$1000,111,FALSE),DeclMatrix!$A$2:$F$5,VLOOKUP('Enrollment Form'!$B533,DeclMatrix!$A$8:$B$12,2,FALSE),FALSE))))","v":""},"",null,"","","","","","","","","","","",""]
["",{"$nulls":5},"","",{"$nulls":18},"","","","",{"$nulls":30},"","","","",{"$nulls":60},"",{"$f":"IF($A534=\"\",\"\",IF(VLOOKUP($G534,$H$11:$DN$1000,96,FALSE)=\"\",\"No\",IF(LEFT(VLOOKUP($G534,$H$11:$DN$1000,96,FALSE),3)=\"The\",EF534,VLOOKUP(VLOOKUP($G534,$H$11:$DN$1000,96,FALSE),DeclMatrix!$A$2:$F$5,VLOOKUP('Enrollment Form'!$B534,DeclMatrix!$A$8:$B$12,2,FALSE),FALSE))))","v":""},{"$f":"IF($A534=\"\",\"\",IF(VLOOKUP($G534,$H$11:$DN$1000,101,FALSE)=\"\",\"No\",IF(LEFT(VLOOKUP($G534,$H$11:$DN$1000,101,FALSE),3)=\"The\",EG534,VLOOKUP(VLOOKUP($G534,$H$11:$DN$1000,101,FALSE),DeclMatrix!$A$2:$F$5,VLOOKUP('Enrollment Form'!$B534,DeclMatrix!$A$8:$B$12,2,FALSE),FALSE))))","v":""},{"$f":"IF($A534=\"\",\"\",IF(VLOOKUP($G534,$H$11:$DN$1000,106,FALSE)=\"\",\"No\",IF(LEFT(VLOOKUP($G534,$H$11:$DN$1000,106,FALSE),3)=\"The\",EH534,VLOOKUP(VLOOKUP($G534,$H$11:$DN$1000,106,FALSE),DeclMatrix!$A$2:$F$5,VLOOKUP('Enrollment Form'!$B534,DeclMatrix!$A$8:$B$12,2,FALSE),FALSE))))","v":""},{"$f":"IF($A534=\"\",\"\",IF(VLOOKUP($G534,$H$11:$DN$1000,111,FALSE)=\"\",\"No\",IF(LEFT(VLOOKUP($G534,$H$11:$DN$1000,111,FALSE),3)=\"The\",EI534,VLOOKUP(VLOOKUP($G534,$H$11:$DN$1000,111,FALSE),DeclMatrix!$A$2:$F$5,VLOOKUP('Enrollment Form'!$B534,DeclMatrix!$A$8:$B$12,2,FALSE),FALSE))))","v":""},"",null,"","","","","","","","","","","",""]
["",{"$nulls":5},"","",{"$nulls":18},"","","","",{"$nulls":30},"","","","",{"$nulls":60},"",{"$f":"IF($A535=\"\",\"\",IF(VLOOKUP($G535,$H$11:$DN$1000,96,FALSE)=\"\",\"No\",IF(LEFT(VLOOKUP($G535,$H$11:$DN$1000,96,FALSE),3)=\"The\",EF535,VLOOKUP(VLOOKUP($G535,$H$11:$DN$1000,96,FALSE),DeclMatrix!$A$2:$F$5,VLOOKUP('Enrollment Form'!$B535,DeclMatrix!$A$8:$B$12,2,FALSE),FALSE))))","v":""},{"$f":"IF($A535=\"\",\"\",IF(VLOOKUP($G535,$H$11:$DN$1000,101,FALSE)=\"\",\"No\",IF(LEFT(VLOOKUP($G535,$H$11:$DN$1000,101,FALSE),3)=\"The\",EG535,VLOOKUP(VLOOKUP($G535,$H$11:$DN$1000,101,FALSE),DeclMatrix!$A$2:$F$5,VLOOKUP('Enrollment Form'!$B535,DeclMatrix!$A$8:$B$12,2,FALSE),FALSE))))","v":""},{"$f":"IF($A535=\"\",\"\",IF(VLOOKUP($G535,$H$11:$DN$1000,106,FALSE)=\"\",\"No\",IF(LEFT(VLOOKUP($G535,$H$11:$DN$1000,106,FALSE),3)=\"The\",EH535,VLOOKUP(VLOOKUP($G535,$H$11:$DN$1000,106,FALSE),DeclMatrix!$A$2:$F$5,VLOOKUP('Enrollment Form'!$B535,DeclMatrix!$A$8:$B$12,2,FALSE),FALSE))))","v":""},{"$f":"IF($A535=\"\",\"\",IF(VLOOKUP($G535,$H$11:$DN$1000,111,FALSE)=\"\",\"No\",IF(LEFT(VLOOKUP($G535,$H$11:$DN$1000,111,FALSE),3)=\"The\",EI535,VLOOKUP(VLOOKUP($G535,$H$11:$DN$1000,111,FALSE),DeclMatrix!$A$2:$F$5,VLOOKUP('Enrollment Form'!$B535,DeclMatrix!$A$8:$B$12,2,FALSE),FALSE))))","v":""},"",null,"","","","","","","","","","","",""]
["",{"$nulls":5},"","",{"$nulls":18},"","","","",{"$nulls":30},"","","","",{"$nulls":60},"",{"$f":"IF($A536=\"\",\"\",IF(VLOOKUP($G536,$H$11:$DN$1000,96,FALSE)=\"\",\"No\",IF(LEFT(VLOOKUP($G536,$H$11:$DN$1000,96,FALSE),3)=\"The\",EF536,VLOOKUP(VLOOKUP($G536,$H$11:$DN$1000,96,FALSE),DeclMatrix!$A$2:$F$5,VLOOKUP('Enrollment Form'!$B536,DeclMatrix!$A$8:$B$12,2,FALSE),FALSE))))","v":""},{"$f":"IF($A536=\"\",\"\",IF(VLOOKUP($G536,$H$11:$DN$1000,101,FALSE)=\"\",\"No\",IF(LEFT(VLOOKUP($G536,$H$11:$DN$1000,101,FALSE),3)=\"The\",EG536,VLOOKUP(VLOOKUP($G536,$H$11:$DN$1000,101,FALSE),DeclMatrix!$A$2:$F$5,VLOOKUP('Enrollment Form'!$B536,DeclMatrix!$A$8:$B$12,2,FALSE),FALSE))))","v":""},{"$f":"IF($A536=\"\",\"\",IF(VLOOKUP($G536,$H$11:$DN$1000,106,FALSE)=\"\",\"No\",IF(LEFT(VLOOKUP($G536,$H$11:$DN$1000,106,FALSE),3)=\"The\",EH536,VLOOKUP(VLOOKUP($G536,$H$11:$DN$1000,106,FALSE),DeclMatrix!$A$2:$F$5,VLOOKUP('Enrollment Form'!$B536,DeclMatrix!$A$8:$B$12,2,FALSE),FALSE))))","v":""},{"$f":"IF($A536=\"\",\"\",IF(VLOOKUP($G536,$H$11:$DN$1000,111,FALSE)=\"\",\"No\",IF(LEFT(VLOOKUP($G536,$H$11:$DN$1000,111,FALSE),3)=\"The\",EI536,VLOOKUP(VLOOKUP($G536,$H$11:$DN$1000,111,FALSE),DeclMatrix!$A$2:$F$5,VLOOKUP('Enrollment Form'!$B536,DeclMatrix!$A$8:$B$12,2,FALSE),FALSE))))","v":""},"",null,"","","","","","","","","","","",""]
["",{"$nulls":5},"","",{"$nulls":18},"","","","",{"$nulls":30},"","","","",{"$nulls":60},"",{"$f":"IF($A537=\"\",\"\",IF(VLOOKUP($G537,$H$11:$DN$1000,96,FALSE)=\"\",\"No\",IF(LEFT(VLOOKUP($G537,$H$11:$DN$1000,96,FALSE),3)=\"The\",EF537,VLOOKUP(VLOOKUP($G537,$H$11:$DN$1000,96,FALSE),DeclMatrix!$A$2:$F$5,VLOOKUP('Enrollment Form'!$B537,DeclMatrix!$A$8:$B$12,2,FALSE),FALSE))))","v":""},{"$f":"IF($A537=\"\",\"\",IF(VLOOKUP($G537,$H$11:$DN$1000,101,FALSE)=\"\",\"No\",IF(LEFT(VLOOKUP($G537,$H$11:$DN$1000,101,FALSE),3)=\"The\",EG537,VLOOKUP(VLOOKUP($G537,$H$11:$DN$1000,101,FALSE),DeclMatrix!$A$2:$F$5,VLOOKUP('Enrollment Form'!$B537,DeclMatrix!$A$8:$B$12,2,FALSE),FALSE))))","v":""},{"$f":"IF($A537=\"\",\"\",IF(VLOOKUP($G537,$H$11:$DN$1000,106,FALSE)=\"\",\"No\",IF(LEFT(VLOOKUP($G537,$H$11:$DN$1000,106,FALSE),3)=\"The\",EH537,VLOOKUP(VLOOKUP($G537,$H$11:$DN$1000,106,FALSE),DeclMatrix!$A$2:$F$5,VLOOKUP('Enrollment Form'!$B537,DeclMatrix!$A$8:$B$12,2,FALSE),FALSE))))","v":""},{"$f":"IF($A537=\"\",\"\",IF(VLOOKUP($G537,$H$11:$DN$1000,111,FALSE)=\"\",\"No\",IF(LEFT(VLOOKUP($G537,$H$11:$DN$1000,111,FALSE),3)=\"The\",EI537,VLOOKUP(VLOOKUP($G537,$H$11:$DN$1000,111,FALSE),DeclMatrix!$A$2:$F$5,VLOOKUP('Enrollment Form'!$B537,DeclMatrix!$A$8:$B$12,2,FALSE),FALSE))))","v":""},"",null,"","","","","","","","","","","",""]
["",{"$nulls":5},"","",{"$nulls":18},"","","","",{"$nulls":30},"","","","",{"$nulls":60},"",{"$f":"IF($A538=\"\",\"\",IF(VLOOKUP($G538,$H$11:$DN$1000,96,FALSE)=\"\",\"No\",IF(LEFT(VLOOKUP($G538,$H$11:$DN$1000,96,FALSE),3)=\"The\",EF538,VLOOKUP(VLOOKUP($G538,$H$11:$DN$1000,96,FALSE),DeclMatrix!$A$2:$F$5,VLOOKUP('Enrollment Form'!$B538,DeclMatrix!$A$8:$B$12,2,FALSE),FALSE))))","v":""},{"$f":"IF($A538=\"\",\"\",IF(VLOOKUP($G538,$H$11:$DN$1000,101,FALSE)=\"\",\"No\",IF(LEFT(VLOOKUP($G538,$H$11:$DN$1000,101,FALSE),3)=\"The\",EG538,VLOOKUP(VLOOKUP($G538,$H$11:$DN$1000,101,FALSE),DeclMatrix!$A$2:$F$5,VLOOKUP('Enrollment Form'!$B538,DeclMatrix!$A$8:$B$12,2,FALSE),FALSE))))","v":""},{"$f":"IF($A538=\"\",\"\",IF(VLOOKUP($G538,$H$11:$DN$1000,106,FALSE)=\"\",\"No\",IF(LEFT(VLOOKUP($G538,$H$11:$DN$1000,106,FALSE),3)=\"The\",EH538,VLOOKUP(VLOOKUP($G538,$H$11:$DN$1000,106,FALSE),DeclMatrix!$A$2:$F$5,VLOOKUP('Enrollment Form'!$B538,DeclMatrix!$A$8:$B$12,2,FALSE),FALSE))))","v":""},{"$f":"IF($A538=\"\",\"\",IF(VLOOKUP($G538,$H$11:$DN$1000,111,FALSE)=\"\",\"No\",IF(LEFT(VLOOKUP($G538,$H$11:$DN$1000,111,FALSE),3)=\"The\",EI538,VLOOKUP(VLOOKUP($G538,$H$11:$DN$1000,111,FALSE),DeclMatrix!$A$2:$F$5,VLOOKUP('Enrollment Form'!$B538,DeclMatrix!$A$8:$B$12,2,FALSE),FALSE))))","v":""},"",null,"","","","","","","","","","","",""]
["",{"$nulls":5},"","",{"$nulls":18},"","","","",{"$nulls":30},"","","","",{"$nulls":60},"",{"$f":"IF($A539=\"\",\"\",IF(VLOOKUP($G539,$H$11:$DN$1000,96,FALSE)=\"\",\"No\",IF(LEFT(VLOOKUP($G539,$H$11:$DN$1000,96,FALSE),3)=\"The\",EF539,VLOOKUP(VLOOKUP($G539,$H$11:$DN$1000,96,FALSE),DeclMatrix!$A$2:$F$5,VLOOKUP('Enrollment Form'!$B539,DeclMatrix!$A$8:$B$12,2,FALSE),FALSE))))","v":""},{"$f":"IF($A539=\"\",\"\",IF(VLOOKUP($G539,$H$11:$DN$1000,101,FALSE)=\"\",\"No\",IF(LEFT(VLOOKUP($G539,$H$11:$DN$1000,101,FALSE),3)=\"The\",EG539,VLOOKUP(VLOOKUP($G539,$H$11:$DN$1000,101,FALSE),DeclMatrix!$A$2:$F$5,VLOOKUP('Enrollment Form'!$B539,DeclMatrix!$A$8:$B$12,2,FALSE),FALSE))))","v":""},{"$f":"IF($A539=\"\",\"\",IF(VLOOKUP($G539,$H$11:$DN$1000,106,FALSE)=\"\",\"No\",IF(LEFT(VLOOKUP($G539,$H$11:$DN$1000,106,FALSE),3)=\"The\",EH539,VLOOKUP(VLOOKUP($G539,$H$11:$DN$1000,106,FALSE),DeclMatrix!$A$2:$F$5,VLOOKUP('Enrollment Form'!$B539,DeclMatrix!$A$8:$B$12,2,FALSE),FALSE))))","v":""},{"$f":"IF($A539=\"\",\"\",IF(VLOOKUP($G539,$H$11:$DN$1000,111,FALSE)=\"\",\"No\",IF(LEFT(VLOOKUP($G539,$H$11:$DN$1000,111,FALSE),3)=\"The\",EI539,VLOOKUP(VLOOKUP($G539,$H$11:$DN$1000,111,FALSE),DeclMatrix!$A$2:$F$5,VLOOKUP('Enrollment Form'!$B539,DeclMatrix!$A$8:$B$12,2,FALSE),FALSE))))","v":""},"",null,"","","","","","","","","","","",""]
["",{"$nulls":5},"","",{"$nulls":18},"","","","",{"$nulls":30},"","","","",{"$nulls":60},"",{"$f":"IF($A540=\"\",\"\",IF(VLOOKUP($G540,$H$11:$DN$1000,96,FALSE)=\"\",\"No\",IF(LEFT(VLOOKUP($G540,$H$11:$DN$1000,96,FALSE),3)=\"The\",EF540,VLOOKUP(VLOOKUP($G540,$H$11:$DN$1000,96,FALSE),DeclMatrix!$A$2:$F$5,VLOOKUP('Enrollment Form'!$B540,DeclMatrix!$A$8:$B$12,2,FALSE),FALSE))))","v":""},{"$f":"IF($A540=\"\",\"\",IF(VLOOKUP($G540,$H$11:$DN$1000,101,FALSE)=\"\",\"No\",IF(LEFT(VLOOKUP($G540,$H$11:$DN$1000,101,FALSE),3)=\"The\",EG540,VLOOKUP(VLOOKUP($G540,$H$11:$DN$1000,101,FALSE),DeclMatrix!$A$2:$F$5,VLOOKUP('Enrollment Form'!$B540,DeclMatrix!$A$8:$B$12,2,FALSE),FALSE))))","v":""},{"$f":"IF($A540=\"\",\"\",IF(VLOOKUP($G540,$H$11:$DN$1000,106,FALSE)=\"\",\"No\",IF(LEFT(VLOOKUP($G540,$H$11:$DN$1000,106,FALSE),3)=\"The\",EH540,VLOOKUP(VLOOKUP($G540,$H$11:$DN$1000,106,FALSE),DeclMatrix!$A$2:$F$5,VLOOKUP('Enrollment Form'!$B540,DeclMatrix!$A$8:$B$12,2,FALSE),FALSE))))","v":""},{"$f":"IF($A540=\"\",\"\",IF(VLOOKUP($G540,$H$11:$DN$1000,111,FALSE)=\"\",\"No\",IF(LEFT(VLOOKUP($G540,$H$11:$DN$1000,111,FALSE),3)=\"The\",EI540,VLOOKUP(VLOOKUP($G540,$H$11:$DN$1000,111,FALSE),DeclMatrix!$A$2:$F$5,VLOOKUP('Enrollment Form'!$B540,DeclMatrix!$A$8:$B$12,2,FALSE),FALSE))))","v":""},"",null,"","","","","","","","","","","",""]
["",{"$nulls":5},"","",{"$nulls":18},"","","","",{"$nulls":30},"","","","",{"$nulls":60},"",{"$f":"IF($A541=\"\",\"\",IF(VLOOKUP($G541,$H$11:$DN$1000,96,FALSE)=\"\",\"No\",IF(LEFT(VLOOKUP($G541,$H$11:$DN$1000,96,FALSE),3)=\"The\",EF541,VLOOKUP(VLOOKUP($G541,$H$11:$DN$1000,96,FALSE),DeclMatrix!$A$2:$F$5,VLOOKUP('Enrollment Form'!$B541,DeclMatrix!$A$8:$B$12,2,FALSE),FALSE))))","v":""},{"$f":"IF($A541=\"\",\"\",IF(VLOOKUP($G541,$H$11:$DN$1000,101,FALSE)=\"\",\"No\",IF(LEFT(VLOOKUP($G541,$H$11:$DN$1000,101,FALSE),3)=\"The\",EG541,VLOOKUP(VLOOKUP($G541,$H$11:$DN$1000,101,FALSE),DeclMatrix!$A$2:$F$5,VLOOKUP('Enrollment Form'!$B541,DeclMatrix!$A$8:$B$12,2,FALSE),FALSE))))","v":""},{"$f":"IF($A541=\"\",\"\",IF(VLOOKUP($G541,$H$11:$DN$1000,106,FALSE)=\"\",\"No\",IF(LEFT(VLOOKUP($G541,$H$11:$DN$1000,106,FALSE),3)=\"The\",EH541,VLOOKUP(VLOOKUP($G541,$H$11:$DN$1000,106,FALSE),DeclMatrix!$A$2:$F$5,VLOOKUP('Enrollment Form'!$B541,DeclMatrix!$A$8:$B$12,2,FALSE),FALSE))))","v":""},{"$f":"IF($A541=\"\",\"\",IF(VLOOKUP($G541,$H$11:$DN$1000,111,FALSE)=\"\",\"No\",IF(LEFT(VLOOKUP($G541,$H$11:$DN$1000,111,FALSE),3)=\"The\",EI541,VLOOKUP(VLOOKUP($G541,$H$11:$DN$1000,111,FALSE),DeclMatrix!$A$2:$F$5,VLOOKUP('Enrollment Form'!$B541,DeclMatrix!$A$8:$B$12,2,FALSE),FALSE))))","v":""},"",null,"","","","","","","","","","","",""]
["",{"$nulls":5},"","",{"$nulls":18},"","","","",{"$nulls":30},"","","","",{"$nulls":60},"",{"$f":"IF($A542=\"\",\"\",IF(VLOOKUP($G542,$H$11:$DN$1000,96,FALSE)=\"\",\"No\",IF(LEFT(VLOOKUP($G542,$H$11:$DN$1000,96,FALSE),3)=\"The\",EF542,VLOOKUP(VLOOKUP($G542,$H$11:$DN$1000,96,FALSE),DeclMatrix!$A$2:$F$5,VLOOKUP('Enrollment Form'!$B542,DeclMatrix!$A$8:$B$12,2,FALSE),FALSE))))","v":""},{"$f":"IF($A542=\"\",\"\",IF(VLOOKUP($G542,$H$11:$DN$1000,101,FALSE)=\"\",\"No\",IF(LEFT(VLOOKUP($G542,$H$11:$DN$1000,101,FALSE),3)=\"The\",EG542,VLOOKUP(VLOOKUP($G542,$H$11:$DN$1000,101,FALSE),DeclMatrix!$A$2:$F$5,VLOOKUP('Enrollment Form'!$B542,DeclMatrix!$A$8:$B$12,2,FALSE),FALSE))))","v":""},{"$f":"IF($A542=\"\",\"\",IF(VLOOKUP($G542,$H$11:$DN$1000,106,FALSE)=\"\",\"No\",IF(LEFT(VLOOKUP($G542,$H$11:$DN$1000,106,FALSE),3)=\"The\",EH542,VLOOKUP(VLOOKUP($G542,$H$11:$DN$1000,106,FALSE),DeclMatrix!$A$2:$F$5,VLOOKUP('Enrollment Form'!$B542,DeclMatrix!$A$8:$B$12,2,FALSE),FALSE))))","v":""},{"$f":"IF($A542=\"\",\"\",IF(VLOOKUP($G542,$H$11:$DN$1000,111,FALSE)=\"\",\"No\",IF(LEFT(VLOOKUP($G542,$H$11:$DN$1000,111,FALSE),3)=\"The\",EI542,VLOOKUP(VLOOKUP($G542,$H$11:$DN$1000,111,FALSE),DeclMatrix!$A$2:$F$5,VLOOKUP('Enrollment Form'!$B542,DeclMatrix!$A$8:$B$12,2,FALSE),FALSE))))","v":""},"",null,"","","","","","","","","","","",""]
["",{"$nulls":5},"","",{"$nulls":18},"","","","",{"$nulls":30},"","","","",{"$nulls":60},"",{"$f":"IF($A543=\"\",\"\",IF(VLOOKUP($G543,$H$11:$DN$1000,96,FALSE)=\"\",\"No\",IF(LEFT(VLOOKUP($G543,$H$11:$DN$1000,96,FALSE),3)=\"The\",EF543,VLOOKUP(VLOOKUP($G543,$H$11:$DN$1000,96,FALSE),DeclMatrix!$A$2:$F$5,VLOOKUP('Enrollment Form'!$B543,DeclMatrix!$A$8:$B$12,2,FALSE),FALSE))))","v":""},{"$f":"IF($A543=\"\",\"\",IF(VLOOKUP($G543,$H$11:$DN$1000,101,FALSE)=\"\",\"No\",IF(LEFT(VLOOKUP($G543,$H$11:$DN$1000,101,FALSE),3)=\"The\",EG543,VLOOKUP(VLOOKUP($G543,$H$11:$DN$1000,101,FALSE),DeclMatrix!$A$2:$F$5,VLOOKUP('Enrollment Form'!$B543,DeclMatrix!$A$8:$B$12,2,FALSE),FALSE))))","v":""},{"$f":"IF($A543=\"\",\"\",IF(VLOOKUP($G543,$H$11:$DN$1000,106,FALSE)=\"\",\"No\",IF(LEFT(VLOOKUP($G543,$H$11:$DN$1000,106,FALSE),3)=\"The\",EH543,VLOOKUP(VLOOKUP($G543,$H$11:$DN$1000,106,FALSE),DeclMatrix!$A$2:$F$5,VLOOKUP('Enrollment Form'!$B543,DeclMatrix!$A$8:$B$12,2,FALSE),FALSE))))","v":""},{"$f":"IF($A543=\"\",\"\",IF(VLOOKUP($G543,$H$11:$DN$1000,111,FALSE)=\"\",\"No\",IF(LEFT(VLOOKUP($G543,$H$11:$DN$1000,111,FALSE),3)=\"The\",EI543,VLOOKUP(VLOOKUP($G543,$H$11:$DN$1000,111,FALSE),DeclMatrix!$A$2:$F$5,VLOOKUP('Enrollment Form'!$B543,DeclMatrix!$A$8:$B$12,2,FALSE),FALSE))))","v":""},"",null,"","","","","","","","","","","",""]
["",{"$nulls":5},"","",{"$nulls":18},"","","","",{"$nulls":30},"","","","",{"$nulls":60},"",{"$f":"IF($A544=\"\",\"\",IF(VLOOKUP($G544,$H$11:$DN$1000,96,FALSE)=\"\",\"No\",IF(LEFT(VLOOKUP($G544,$H$11:$DN$1000,96,FALSE),3)=\"The\",EF544,VLOOKUP(VLOOKUP($G544,$H$11:$DN$1000,96,FALSE),DeclMatrix!$A$2:$F$5,VLOOKUP('Enrollment Form'!$B544,DeclMatrix!$A$8:$B$12,2,FALSE),FALSE))))","v":""},{"$f":"IF($A544=\"\",\"\",IF(VLOOKUP($G544,$H$11:$DN$1000,101,FALSE)=\"\",\"No\",IF(LEFT(VLOOKUP($G544,$H$11:$DN$1000,101,FALSE),3)=\"The\",EG544,VLOOKUP(VLOOKUP($G544,$H$11:$DN$1000,101,FALSE),DeclMatrix!$A$2:$F$5,VLOOKUP('Enrollment Form'!$B544,DeclMatrix!$A$8:$B$12,2,FALSE),FALSE))))","v":""},{"$f":"IF($A544=\"\",\"\",IF(VLOOKUP($G544,$H$11:$DN$1000,106,FALSE)=\"\",\"No\",IF(LEFT(VLOOKUP($G544,$H$11:$DN$1000,106,FALSE),3)=\"The\",EH544,VLOOKUP(VLOOKUP($G544,$H$11:$DN$1000,106,FALSE),DeclMatrix!$A$2:$F$5,VLOOKUP('Enrollment Form'!$B544,DeclMatrix!$A$8:$B$12,2,FALSE),FALSE))))","v":""},{"$f":"IF($A544=\"\",\"\",IF(VLOOKUP($G544,$H$11:$DN$1000,111,FALSE)=\"\",\"No\",IF(LEFT(VLOOKUP($G544,$H$11:$DN$1000,111,FALSE),3)=\"The\",EI544,VLOOKUP(VLOOKUP($G544,$H$11:$DN$1000,111,FALSE),DeclMatrix!$A$2:$F$5,VLOOKUP('Enrollment Form'!$B544,DeclMatrix!$A$8:$B$12,2,FALSE),FALSE))))","v":""},"",null,"","","","","","","","","","","",""]
["",{"$nulls":5},"","",{"$nulls":18},"","","","",{"$nulls":30},"","","","",{"$nulls":60},"",{"$f":"IF($A545=\"\",\"\",IF(VLOOKUP($G545,$H$11:$DN$1000,96,FALSE)=\"\",\"No\",IF(LEFT(VLOOKUP($G545,$H$11:$DN$1000,96,FALSE),3)=\"The\",EF545,VLOOKUP(VLOOKUP($G545,$H$11:$DN$1000,96,FALSE),DeclMatrix!$A$2:$F$5,VLOOKUP('Enrollment Form'!$B545,DeclMatrix!$A$8:$B$12,2,FALSE),FALSE))))","v":""},{"$f":"IF($A545=\"\",\"\",IF(VLOOKUP($G545,$H$11:$DN$1000,101,FALSE)=\"\",\"No\",IF(LEFT(VLOOKUP($G545,$H$11:$DN$1000,101,FALSE),3)=\"The\",EG545,VLOOKUP(VLOOKUP($G545,$H$11:$DN$1000,101,FALSE),DeclMatrix!$A$2:$F$5,VLOOKUP('Enrollment Form'!$B545,DeclMatrix!$A$8:$B$12,2,FALSE),FALSE))))","v":""},{"$f":"IF($A545=\"\",\"\",IF(VLOOKUP($G545,$H$11:$DN$1000,106,FALSE)=\"\",\"No\",IF(LEFT(VLOOKUP($G545,$H$11:$DN$1000,106,FALSE),3)=\"The\",EH545,VLOOKUP(VLOOKUP($G545,$H$11:$DN$1000,106,FALSE),DeclMatrix!$A$2:$F$5,VLOOKUP('Enrollment Form'!$B545,DeclMatrix!$A$8:$B$12,2,FALSE),FALSE))))","v":""},{"$f":"IF($A545=\"\",\"\",IF(VLOOKUP($G545,$H$11:$DN$1000,111,FALSE)=\"\",\"No\",IF(LEFT(VLOOKUP($G545,$H$11:$DN$1000,111,FALSE),3)=\"The\",EI545,VLOOKUP(VLOOKUP($G545,$H$11:$DN$1000,111,FALSE),DeclMatrix!$A$2:$F$5,VLOOKUP('Enrollment Form'!$B545,DeclMatrix!$A$8:$B$12,2,FALSE),FALSE))))","v":""},"",null,"","","","","","","","","","","",""]
["",{"$nulls":5},"","",{"$nulls":18},"","","","",{"$nulls":30},"","","","",{"$nulls":60},"",{"$f":"IF($A546=\"\",\"\",IF(VLOOKUP($G546,$H$11:$DN$1000,96,FALSE)=\"\",\"No\",IF(LEFT(VLOOKUP($G546,$H$11:$DN$1000,96,FALSE),3)=\"The\",EF546,VLOOKUP(VLOOKUP($G546,$H$11:$DN$1000,96,FALSE),DeclMatrix!$A$2:$F$5,VLOOKUP('Enrollment Form'!$B546,DeclMatrix!$A$8:$B$12,2,FALSE),FALSE))))","v":""},{"$f":"IF($A546=\"\",\"\",IF(VLOOKUP($G546,$H$11:$DN$1000,101,FALSE)=\"\",\"No\",IF(LEFT(VLOOKUP($G546,$H$11:$DN$1000,101,FALSE),3)=\"The\",EG546,VLOOKUP(VLOOKUP($G546,$H$11:$DN$1000,101,FALSE),DeclMatrix!$A$2:$F$5,VLOOKUP('Enrollment Form'!$B546,DeclMatrix!$A$8:$B$12,2,FALSE),FALSE))))","v":""},{"$f":"IF($A546=\"\",\"\",IF(VLOOKUP($G546,$H$11:$DN$1000,106,FALSE)=\"\",\"No\",IF(LEFT(VLOOKUP($G546,$H$11:$DN$1000,106,FALSE),3)=\"The\",EH546,VLOOKUP(VLOOKUP($G546,$H$11:$DN$1000,106,FALSE),DeclMatrix!$A$2:$F$5,VLOOKUP('Enrollment Form'!$B546,DeclMatrix!$A$8:$B$12,2,FALSE),FALSE))))","v":""},{"$f":"IF($A546=\"\",\"\",IF(VLOOKUP($G546,$H$11:$DN$1000,111,FALSE)=\"\",\"No\",IF(LEFT(VLOOKUP($G546,$H$11:$DN$1000,111,FALSE),3)=\"The\",EI546,VLOOKUP(VLOOKUP($G546,$H$11:$DN$1000,111,FALSE),DeclMatrix!$A$2:$F$5,VLOOKUP('Enrollment Form'!$B546,DeclMatrix!$A$8:$B$12,2,FALSE),FALSE))))","v":""},"",null,"","","","","","","","","","","",""]
["",{"$nulls":5},"","",{"$nulls":18},"","","","",{"$nulls":30},"","","","",{"$nulls":60},"",{"$f":"IF($A547=\"\",\"\",IF(VLOOKUP($G547,$H$11:$DN$1000,96,FALSE)=\"\",\"No\",IF(LEFT(VLOOKUP($G547,$H$11:$DN$1000,96,FALSE),3)=\"The\",EF547,VLOOKUP(VLOOKUP($G547,$H$11:$DN$1000,96,FALSE),DeclMatrix!$A$2:$F$5,VLOOKUP('Enrollment Form'!$B547,DeclMatrix!$A$8:$B$12,2,FALSE),FALSE))))","v":""},{"$f":"IF($A547=\"\",\"\",IF(VLOOKUP($G547,$H$11:$DN$1000,101,FALSE)=\"\",\"No\",IF(LEFT(VLOOKUP($G547,$H$11:$DN$1000,101,FALSE),3)=\"The\",EG547,VLOOKUP(VLOOKUP($G547,$H$11:$DN$1000,101,FALSE),DeclMatrix!$A$2:$F$5,VLOOKUP('Enrollment Form'!$B547,DeclMatrix!$A$8:$B$12,2,FALSE),FALSE))))","v":""},{"$f":"IF($A547=\"\",\"\",IF(VLOOKUP($G547,$H$11:$DN$1000,106,FALSE)=\"\",\"No\",IF(LEFT(VLOOKUP($G547,$H$11:$DN$1000,106,FALSE),3)=\"The\",EH547,VLOOKUP(VLOOKUP($G547,$H$11:$DN$1000,106,FALSE),DeclMatrix!$A$2:$F$5,VLOOKUP('Enrollment Form'!$B547,DeclMatrix!$A$8:$B$12,2,FALSE),FALSE))))","v":""},{"$f":"IF($A547=\"\",\"\",IF(VLOOKUP($G547,$H$11:$DN$1000,111,FALSE)=\"\",\"No\",IF(LEFT(VLOOKUP($G547,$H$11:$DN$1000,111,FALSE),3)=\"The\",EI547,VLOOKUP(VLOOKUP($G547,$H$11:$DN$1000,111,FALSE),DeclMatrix!$A$2:$F$5,VLOOKUP('Enrollment Form'!$B547,DeclMatrix!$A$8:$B$12,2,FALSE),FALSE))))","v":""},"",null,"","","","","","","","","","","",""]
["",{"$nulls":5},"","",{"$nulls":18},"","","","",{"$nulls":30},"","","","",{"$nulls":60},"",{"$f":"IF($A548=\"\",\"\",IF(VLOOKUP($G548,$H$11:$DN$1000,96,FALSE)=\"\",\"No\",IF(LEFT(VLOOKUP($G548,$H$11:$DN$1000,96,FALSE),3)=\"The\",EF548,VLOOKUP(VLOOKUP($G548,$H$11:$DN$1000,96,FALSE),DeclMatrix!$A$2:$F$5,VLOOKUP('Enrollment Form'!$B548,DeclMatrix!$A$8:$B$12,2,FALSE),FALSE))))","v":""},{"$f":"IF($A548=\"\",\"\",IF(VLOOKUP($G548,$H$11:$DN$1000,101,FALSE)=\"\",\"No\",IF(LEFT(VLOOKUP($G548,$H$11:$DN$1000,101,FALSE),3)=\"The\",EG548,VLOOKUP(VLOOKUP($G548,$H$11:$DN$1000,101,FALSE),DeclMatrix!$A$2:$F$5,VLOOKUP('Enrollment Form'!$B548,DeclMatrix!$A$8:$B$12,2,FALSE),FALSE))))","v":""},{"$f":"IF($A548=\"\",\"\",IF(VLOOKUP($G548,$H$11:$DN$1000,106,FALSE)=\"\",\"No\",IF(LEFT(VLOOKUP($G548,$H$11:$DN$1000,106,FALSE),3)=\"The\",EH548,VLOOKUP(VLOOKUP($G548,$H$11:$DN$1000,106,FALSE),DeclMatrix!$A$2:$F$5,VLOOKUP('Enrollment Form'!$B548,DeclMatrix!$A$8:$B$12,2,FALSE),FALSE))))","v":""},{"$f":"IF($A548=\"\",\"\",IF(VLOOKUP($G548,$H$11:$DN$1000,111,FALSE)=\"\",\"No\",IF(LEFT(VLOOKUP($G548,$H$11:$DN$1000,111,FALSE),3)=\"The\",EI548,VLOOKUP(VLOOKUP($G548,$H$11:$DN$1000,111,FALSE),DeclMatrix!$A$2:$F$5,VLOOKUP('Enrollment Form'!$B548,DeclMatrix!$A$8:$B$12,2,FALSE),FALSE))))","v":""},"",null,"","","","","","","","","","","",""]
["",{"$nulls":5},"","",{"$nulls":18},"","","","",{"$nulls":30},"","","","",{"$nulls":60},"",{"$f":"IF($A549=\"\",\"\",IF(VLOOKUP($G549,$H$11:$DN$1000,96,FALSE)=\"\",\"No\",IF(LEFT(VLOOKUP($G549,$H$11:$DN$1000,96,FALSE),3)=\"The\",EF549,VLOOKUP(VLOOKUP($G549,$H$11:$DN$1000,96,FALSE),DeclMatrix!$A$2:$F$5,VLOOKUP('Enrollment Form'!$B549,DeclMatrix!$A$8:$B$12,2,FALSE),FALSE))))","v":""},{"$f":"IF($A549=\"\",\"\",IF(VLOOKUP($G549,$H$11:$DN$1000,101,FALSE)=\"\",\"No\",IF(LEFT(VLOOKUP($G549,$H$11:$DN$1000,101,FALSE),3)=\"The\",EG549,VLOOKUP(VLOOKUP($G549,$H$11:$DN$1000,101,FALSE),DeclMatrix!$A$2:$F$5,VLOOKUP('Enrollment Form'!$B549,DeclMatrix!$A$8:$B$12,2,FALSE),FALSE))))","v":""},{"$f":"IF($A549=\"\",\"\",IF(VLOOKUP($G549,$H$11:$DN$1000,106,FALSE)=\"\",\"No\",IF(LEFT(VLOOKUP($G549,$H$11:$DN$1000,106,FALSE),3)=\"The\",EH549,VLOOKUP(VLOOKUP($G549,$H$11:$DN$1000,106,FALSE),DeclMatrix!$A$2:$F$5,VLOOKUP('Enrollment Form'!$B549,DeclMatrix!$A$8:$B$12,2,FALSE),FALSE))))","v":""},{"$f":"IF($A549=\"\",\"\",IF(VLOOKUP($G549,$H$11:$DN$1000,111,FALSE)=\"\",\"No\",IF(LEFT(VLOOKUP($G549,$H$11:$DN$1000,111,FALSE),3)=\"The\",EI549,VLOOKUP(VLOOKUP($G549,$H$11:$DN$1000,111,FALSE),DeclMatrix!$A$2:$F$5,VLOOKUP('Enrollment Form'!$B549,DeclMatrix!$A$8:$B$12,2,FALSE),FALSE))))","v":""},"",null,"","","","","","","","","","","",""]
["",{"$nulls":5},"","",{"$nulls":18},"","","","",{"$nulls":30},"","","","",{"$nulls":60},"",{"$f":"IF($A550=\"\",\"\",IF(VLOOKUP($G550,$H$11:$DN$1000,96,FALSE)=\"\",\"No\",IF(LEFT(VLOOKUP($G550,$H$11:$DN$1000,96,FALSE),3)=\"The\",EF550,VLOOKUP(VLOOKUP($G550,$H$11:$DN$1000,96,FALSE),DeclMatrix!$A$2:$F$5,VLOOKUP('Enrollment Form'!$B550,DeclMatrix!$A$8:$B$12,2,FALSE),FALSE))))","v":""},{"$f":"IF($A550=\"\",\"\",IF(VLOOKUP($G550,$H$11:$DN$1000,101,FALSE)=\"\",\"No\",IF(LEFT(VLOOKUP($G550,$H$11:$DN$1000,101,FALSE),3)=\"The\",EG550,VLOOKUP(VLOOKUP($G550,$H$11:$DN$1000,101,FALSE),DeclMatrix!$A$2:$F$5,VLOOKUP('Enrollment Form'!$B550,DeclMatrix!$A$8:$B$12,2,FALSE),FALSE))))","v":""},{"$f":"IF($A550=\"\",\"\",IF(VLOOKUP($G550,$H$11:$DN$1000,106,FALSE)=\"\",\"No\",IF(LEFT(VLOOKUP($G550,$H$11:$DN$1000,106,FALSE),3)=\"The\",EH550,VLOOKUP(VLOOKUP($G550,$H$11:$DN$1000,106,FALSE),DeclMatrix!$A$2:$F$5,VLOOKUP('Enrollment Form'!$B550,DeclMatrix!$A$8:$B$12,2,FALSE),FALSE))))","v":""},{"$f":"IF($A550=\"\",\"\",IF(VLOOKUP($G550,$H$11:$DN$1000,111,FALSE)=\"\",\"No\",IF(LEFT(VLOOKUP($G550,$H$11:$DN$1000,111,FALSE),3)=\"The\",EI550,VLOOKUP(VLOOKUP($G550,$H$11:$DN$1000,111,FALSE),DeclMatrix!$A$2:$F$5,VLOOKUP('Enrollment Form'!$B550,DeclMatrix!$A$8:$B$12,2,FALSE),FALSE))))","v":""},"",null,"","","","","","","","","","","",""]
["",{"$nulls":5},"","",{"$nulls":18},"","","","",{"$nulls":30},"","","","",{"$nulls":60},"",{"$f":"IF($A551=\"\",\"\",IF(VLOOKUP($G551,$H$11:$DN$1000,96,FALSE)=\"\",\"No\",IF(LEFT(VLOOKUP($G551,$H$11:$DN$1000,96,FALSE),3)=\"The\",EF551,VLOOKUP(VLOOKUP($G551,$H$11:$DN$1000,96,FALSE),DeclMatrix!$A$2:$F$5,VLOOKUP('Enrollment Form'!$B551,DeclMatrix!$A$8:$B$12,2,FALSE),FALSE))))","v":""},{"$f":"IF($A551=\"\",\"\",IF(VLOOKUP($G551,$H$11:$DN$1000,101,FALSE)=\"\",\"No\",IF(LEFT(VLOOKUP($G551,$H$11:$DN$1000,101,FALSE),3)=\"The\",EG551,VLOOKUP(VLOOKUP($G551,$H$11:$DN$1000,101,FALSE),DeclMatrix!$A$2:$F$5,VLOOKUP('Enrollment Form'!$B551,DeclMatrix!$A$8:$B$12,2,FALSE),FALSE))))","v":""},{"$f":"IF($A551=\"\",\"\",IF(VLOOKUP($G551,$H$11:$DN$1000,106,FALSE)=\"\",\"No\",IF(LEFT(VLOOKUP($G551,$H$11:$DN$1000,106,FALSE),3)=\"The\",EH551,VLOOKUP(VLOOKUP($G551,$H$11:$DN$1000,106,FALSE),DeclMatrix!$A$2:$F$5,VLOOKUP('Enrollment Form'!$B551,DeclMatrix!$A$8:$B$12,2,FALSE),FALSE))))","v":""},{"$f":"IF($A551=\"\",\"\",IF(VLOOKUP($G551,$H$11:$DN$1000,111,FALSE)=\"\",\"No\",IF(LEFT(VLOOKUP($G551,$H$11:$DN$1000,111,FALSE),3)=\"The\",EI551,VLOOKUP(VLOOKUP($G551,$H$11:$DN$1000,111,FALSE),DeclMatrix!$A$2:$F$5,VLOOKUP('Enrollment Form'!$B551,DeclMatrix!$A$8:$B$12,2,FALSE),FALSE))))","v":""},"",null,"","","","","","","","","","","",""]
["",{"$nulls":5},"","",{"$nulls":18},"","","","",{"$nulls":30},"","","","",{"$nulls":60},"",{"$f":"IF($A552=\"\",\"\",IF(VLOOKUP($G552,$H$11:$DN$1000,96,FALSE)=\"\",\"No\",IF(LEFT(VLOOKUP($G552,$H$11:$DN$1000,96,FALSE),3)=\"The\",EF552,VLOOKUP(VLOOKUP($G552,$H$11:$DN$1000,96,FALSE),DeclMatrix!$A$2:$F$5,VLOOKUP('Enrollment Form'!$B552,DeclMatrix!$A$8:$B$12,2,FALSE),FALSE))))","v":""},{"$f":"IF($A552=\"\",\"\",IF(VLOOKUP($G552,$H$11:$DN$1000,101,FALSE)=\"\",\"No\",IF(LEFT(VLOOKUP($G552,$H$11:$DN$1000,101,FALSE),3)=\"The\",EG552,VLOOKUP(VLOOKUP($G552,$H$11:$DN$1000,101,FALSE),DeclMatrix!$A$2:$F$5,VLOOKUP('Enrollment Form'!$B552,DeclMatrix!$A$8:$B$12,2,FALSE),FALSE))))","v":""},{"$f":"IF($A552=\"\",\"\",IF(VLOOKUP($G552,$H$11:$DN$1000,106,FALSE)=\"\",\"No\",IF(LEFT(VLOOKUP($G552,$H$11:$DN$1000,106,FALSE),3)=\"The\",EH552,VLOOKUP(VLOOKUP($G552,$H$11:$DN$1000,106,FALSE),DeclMatrix!$A$2:$F$5,VLOOKUP('Enrollment Form'!$B552,DeclMatrix!$A$8:$B$12,2,FALSE),FALSE))))","v":""},{"$f":"IF($A552=\"\",\"\",IF(VLOOKUP($G552,$H$11:$DN$1000,111,FALSE)=\"\",\"No\",IF(LEFT(VLOOKUP($G552,$H$11:$DN$1000,111,FALSE),3)=\"The\",EI552,VLOOKUP(VLOOKUP($G552,$H$11:$DN$1000,111,FALSE),DeclMatrix!$A$2:$F$5,VLOOKUP('Enrollment Form'!$B552,DeclMatrix!$A$8:$B$12,2,FALSE),FALSE))))","v":""},"",null,"","","","","","","","","","","",""]
["",{"$nulls":5},"","",{"$nulls":18},"","","","",{"$nulls":30},"","","","",{"$nulls":60},"",{"$f":"IF($A553=\"\",\"\",IF(VLOOKUP($G553,$H$11:$DN$1000,96,FALSE)=\"\",\"No\",IF(LEFT(VLOOKUP($G553,$H$11:$DN$1000,96,FALSE),3)=\"The\",EF553,VLOOKUP(VLOOKUP($G553,$H$11:$DN$1000,96,FALSE),DeclMatrix!$A$2:$F$5,VLOOKUP('Enrollment Form'!$B553,DeclMatrix!$A$8:$B$12,2,FALSE),FALSE))))","v":""},{"$f":"IF($A553=\"\",\"\",IF(VLOOKUP($G553,$H$11:$DN$1000,101,FALSE)=\"\",\"No\",IF(LEFT(VLOOKUP($G553,$H$11:$DN$1000,101,FALSE),3)=\"The\",EG553,VLOOKUP(VLOOKUP($G553,$H$11:$DN$1000,101,FALSE),DeclMatrix!$A$2:$F$5,VLOOKUP('Enrollment Form'!$B553,DeclMatrix!$A$8:$B$12,2,FALSE),FALSE))))","v":""},{"$f":"IF($A553=\"\",\"\",IF(VLOOKUP($G553,$H$11:$DN$1000,106,FALSE)=\"\",\"No\",IF(LEFT(VLOOKUP($G553,$H$11:$DN$1000,106,FALSE),3)=\"The\",EH553,VLOOKUP(VLOOKUP($G553,$H$11:$DN$1000,106,FALSE),DeclMatrix!$A$2:$F$5,VLOOKUP('Enrollment Form'!$B553,DeclMatrix!$A$8:$B$12,2,FALSE),FALSE))))","v":""},{"$f":"IF($A553=\"\",\"\",IF(VLOOKUP($G553,$H$11:$DN$1000,111,FALSE)=\"\",\"No\",IF(LEFT(VLOOKUP($G553,$H$11:$DN$1000,111,FALSE),3)=\"The\",EI553,VLOOKUP(VLOOKUP($G553,$H$11:$DN$1000,111,FALSE),DeclMatrix!$A$2:$F$5,VLOOKUP('Enrollment Form'!$B553,DeclMatrix!$A$8:$B$12,2,FALSE),FALSE))))","v":""},"",null,"","","","","","","","","","","",""]
["",{"$nulls":5},"","",{"$nulls":18},"","","","",{"$nulls":30},"","","","",{"$nulls":60},"",{"$f":"IF($A554=\"\",\"\",IF(VLOOKUP($G554,$H$11:$DN$1000,96,FALSE)=\"\",\"No\",IF(LEFT(VLOOKUP($G554,$H$11:$DN$1000,96,FALSE),3)=\"The\",EF554,VLOOKUP(VLOOKUP($G554,$H$11:$DN$1000,96,FALSE),DeclMatrix!$A$2:$F$5,VLOOKUP('Enrollment Form'!$B554,DeclMatrix!$A$8:$B$12,2,FALSE),FALSE))))","v":""},{"$f":"IF($A554=\"\",\"\",IF(VLOOKUP($G554,$H$11:$DN$1000,101,FALSE)=\"\",\"No\",IF(LEFT(VLOOKUP($G554,$H$11:$DN$1000,101,FALSE),3)=\"The\",EG554,VLOOKUP(VLOOKUP($G554,$H$11:$DN$1000,101,FALSE),DeclMatrix!$A$2:$F$5,VLOOKUP('Enrollment Form'!$B554,DeclMatrix!$A$8:$B$12,2,FALSE),FALSE))))","v":""},{"$f":"IF($A554=\"\",\"\",IF(VLOOKUP($G554,$H$11:$DN$1000,106,FALSE)=\"\",\"No\",IF(LEFT(VLOOKUP($G554,$H$11:$DN$1000,106,FALSE),3)=\"The\",EH554,VLOOKUP(VLOOKUP($G554,$H$11:$DN$1000,106,FALSE),DeclMatrix!$A$2:$F$5,VLOOKUP('Enrollment Form'!$B554,DeclMatrix!$A$8:$B$12,2,FALSE),FALSE))))","v":""},{"$f":"IF($A554=\"\",\"\",IF(VLOOKUP($G554,$H$11:$DN$1000,111,FALSE)=\"\",\"No\",IF(LEFT(VLOOKUP($G554,$H$11:$DN$1000,111,FALSE),3)=\"The\",EI554,VLOOKUP(VLOOKUP($G554,$H$11:$DN$1000,111,FALSE),DeclMatrix!$A$2:$F$5,VLOOKUP('Enrollment Form'!$B554,DeclMatrix!$A$8:$B$12,2,FALSE),FALSE))))","v":""},"",null,"","","","","","","","","","","",""]
["",{"$nulls":5},"","",{"$nulls":18},"","","","",{"$nulls":30},"","","","",{"$nulls":60},"",{"$f":"IF($A555=\"\",\"\",IF(VLOOKUP($G555,$H$11:$DN$1000,96,FALSE)=\"\",\"No\",IF(LEFT(VLOOKUP($G555,$H$11:$DN$1000,96,FALSE),3)=\"The\",EF555,VLOOKUP(VLOOKUP($G555,$H$11:$DN$1000,96,FALSE),DeclMatrix!$A$2:$F$5,VLOOKUP('Enrollment Form'!$B555,DeclMatrix!$A$8:$B$12,2,FALSE),FALSE))))","v":""},{"$f":"IF($A555=\"\",\"\",IF(VLOOKUP($G555,$H$11:$DN$1000,101,FALSE)=\"\",\"No\",IF(LEFT(VLOOKUP($G555,$H$11:$DN$1000,101,FALSE),3)=\"The\",EG555,VLOOKUP(VLOOKUP($G555,$H$11:$DN$1000,101,FALSE),DeclMatrix!$A$2:$F$5,VLOOKUP('Enrollment Form'!$B555,DeclMatrix!$A$8:$B$12,2,FALSE),FALSE))))","v":""},{"$f":"IF($A555=\"\",\"\",IF(VLOOKUP($G555,$H$11:$DN$1000,106,FALSE)=\"\",\"No\",IF(LEFT(VLOOKUP($G555,$H$11:$DN$1000,106,FALSE),3)=\"The\",EH555,VLOOKUP(VLOOKUP($G555,$H$11:$DN$1000,106,FALSE),DeclMatrix!$A$2:$F$5,VLOOKUP('Enrollment Form'!$B555,DeclMatrix!$A$8:$B$12,2,FALSE),FALSE))))","v":""},{"$f":"IF($A555=\"\",\"\",IF(VLOOKUP($G555,$H$11:$DN$1000,111,FALSE)=\"\",\"No\",IF(LEFT(VLOOKUP($G555,$H$11:$DN$1000,111,FALSE),3)=\"The\",EI555,VLOOKUP(VLOOKUP($G555,$H$11:$DN$1000,111,FALSE),DeclMatrix!$A$2:$F$5,VLOOKUP('Enrollment Form'!$B555,DeclMatrix!$A$8:$B$12,2,FALSE),FALSE))))","v":""},"",null,"","","","","","","","","","","",""]
["",{"$nulls":5},"","",{"$nulls":18},"","","","",{"$nulls":30},"","","","",{"$nulls":60},"",{"$f":"IF($A556=\"\",\"\",IF(VLOOKUP($G556,$H$11:$DN$1000,96,FALSE)=\"\",\"No\",IF(LEFT(VLOOKUP($G556,$H$11:$DN$1000,96,FALSE),3)=\"The\",EF556,VLOOKUP(VLOOKUP($G556,$H$11:$DN$1000,96,FALSE),DeclMatrix!$A$2:$F$5,VLOOKUP('Enrollment Form'!$B556,DeclMatrix!$A$8:$B$12,2,FALSE),FALSE))))","v":""},{"$f":"IF($A556=\"\",\"\",IF(VLOOKUP($G556,$H$11:$DN$1000,101,FALSE)=\"\",\"No\",IF(LEFT(VLOOKUP($G556,$H$11:$DN$1000,101,FALSE),3)=\"The\",EG556,VLOOKUP(VLOOKUP($G556,$H$11:$DN$1000,101,FALSE),DeclMatrix!$A$2:$F$5,VLOOKUP('Enrollment Form'!$B556,DeclMatrix!$A$8:$B$12,2,FALSE),FALSE))))","v":""},{"$f":"IF($A556=\"\",\"\",IF(VLOOKUP($G556,$H$11:$DN$1000,106,FALSE)=\"\",\"No\",IF(LEFT(VLOOKUP($G556,$H$11:$DN$1000,106,FALSE),3)=\"The\",EH556,VLOOKUP(VLOOKUP($G556,$H$11:$DN$1000,106,FALSE),DeclMatrix!$A$2:$F$5,VLOOKUP('Enrollment Form'!$B556,DeclMatrix!$A$8:$B$12,2,FALSE),FALSE))))","v":""},{"$f":"IF($A556=\"\",\"\",IF(VLOOKUP($G556,$H$11:$DN$1000,111,FALSE)=\"\",\"No\",IF(LEFT(VLOOKUP($G556,$H$11:$DN$1000,111,FALSE),3)=\"The\",EI556,VLOOKUP(VLOOKUP($G556,$H$11:$DN$1000,111,FALSE),DeclMatrix!$A$2:$F$5,VLOOKUP('Enrollment Form'!$B556,DeclMatrix!$A$8:$B$12,2,FALSE),FALSE))))","v":""},"",null,"","","","","","","","","","","",""]
["",{"$nulls":5},"","",{"$nulls":18},"","","","",{"$nulls":30},"","","","",{"$nulls":60},"",{"$f":"IF($A557=\"\",\"\",IF(VLOOKUP($G557,$H$11:$DN$1000,96,FALSE)=\"\",\"No\",IF(LEFT(VLOOKUP($G557,$H$11:$DN$1000,96,FALSE),3)=\"The\",EF557,VLOOKUP(VLOOKUP($G557,$H$11:$DN$1000,96,FALSE),DeclMatrix!$A$2:$F$5,VLOOKUP('Enrollment Form'!$B557,DeclMatrix!$A$8:$B$12,2,FALSE),FALSE))))","v":""},{"$f":"IF($A557=\"\",\"\",IF(VLOOKUP($G557,$H$11:$DN$1000,101,FALSE)=\"\",\"No\",IF(LEFT(VLOOKUP($G557,$H$11:$DN$1000,101,FALSE),3)=\"The\",EG557,VLOOKUP(VLOOKUP($G557,$H$11:$DN$1000,101,FALSE),DeclMatrix!$A$2:$F$5,VLOOKUP('Enrollment Form'!$B557,DeclMatrix!$A$8:$B$12,2,FALSE),FALSE))))","v":""},{"$f":"IF($A557=\"\",\"\",IF(VLOOKUP($G557,$H$11:$DN$1000,106,FALSE)=\"\",\"No\",IF(LEFT(VLOOKUP($G557,$H$11:$DN$1000,106,FALSE),3)=\"The\",EH557,VLOOKUP(VLOOKUP($G557,$H$11:$DN$1000,106,FALSE),DeclMatrix!$A$2:$F$5,VLOOKUP('Enrollment Form'!$B557,DeclMatrix!$A$8:$B$12,2,FALSE),FALSE))))","v":""},{"$f":"IF($A557=\"\",\"\",IF(VLOOKUP($G557,$H$11:$DN$1000,111,FALSE)=\"\",\"No\",IF(LEFT(VLOOKUP($G557,$H$11:$DN$1000,111,FALSE),3)=\"The\",EI557,VLOOKUP(VLOOKUP($G557,$H$11:$DN$1000,111,FALSE),DeclMatrix!$A$2:$F$5,VLOOKUP('Enrollment Form'!$B557,DeclMatrix!$A$8:$B$12,2,FALSE),FALSE))))","v":""},"",null,"","","","","","","","","","","",""]
["",{"$nulls":5},"","",{"$nulls":18},"","","","",{"$nulls":30},"","","","",{"$nulls":60},"",{"$f":"IF($A558=\"\",\"\",IF(VLOOKUP($G558,$H$11:$DN$1000,96,FALSE)=\"\",\"No\",IF(LEFT(VLOOKUP($G558,$H$11:$DN$1000,96,FALSE),3)=\"The\",EF558,VLOOKUP(VLOOKUP($G558,$H$11:$DN$1000,96,FALSE),DeclMatrix!$A$2:$F$5,VLOOKUP('Enrollment Form'!$B558,DeclMatrix!$A$8:$B$12,2,FALSE),FALSE))))","v":""},{"$f":"IF($A558=\"\",\"\",IF(VLOOKUP($G558,$H$11:$DN$1000,101,FALSE)=\"\",\"No\",IF(LEFT(VLOOKUP($G558,$H$11:$DN$1000,101,FALSE),3)=\"The\",EG558,VLOOKUP(VLOOKUP($G558,$H$11:$DN$1000,101,FALSE),DeclMatrix!$A$2:$F$5,VLOOKUP('Enrollment Form'!$B558,DeclMatrix!$A$8:$B$12,2,FALSE),FALSE))))","v":""},{"$f":"IF($A558=\"\",\"\",IF(VLOOKUP($G558,$H$11:$DN$1000,106,FALSE)=\"\",\"No\",IF(LEFT(VLOOKUP($G558,$H$11:$DN$1000,106,FALSE),3)=\"The\",EH558,VLOOKUP(VLOOKUP($G558,$H$11:$DN$1000,106,FALSE),DeclMatrix!$A$2:$F$5,VLOOKUP('Enrollment Form'!$B558,DeclMatrix!$A$8:$B$12,2,FALSE),FALSE))))","v":""},{"$f":"IF($A558=\"\",\"\",IF(VLOOKUP($G558,$H$11:$DN$1000,111,FALSE)=\"\",\"No\",IF(LEFT(VLOOKUP($G558,$H$11:$DN$1000,111,FALSE),3)=\"The\",EI558,VLOOKUP(VLOOKUP($G558,$H$11:$DN$1000,111,FALSE),DeclMatrix!$A$2:$F$5,VLOOKUP('Enrollment Form'!$B558,DeclMatrix!$A$8:$B$12,2,FALSE),FALSE))))","v":""},"",null,"","","","","","","","","","","",""]
["",{"$nulls":5},"","",{"$nulls":18},"","","","",{"$nulls":30},"","","","",{"$nulls":60},"",{"$f":"IF($A559=\"\",\"\",IF(VLOOKUP($G559,$H$11:$DN$1000,96,FALSE)=\"\",\"No\",IF(LEFT(VLOOKUP($G559,$H$11:$DN$1000,96,FALSE),3)=\"The\",EF559,VLOOKUP(VLOOKUP($G559,$H$11:$DN$1000,96,FALSE),DeclMatrix!$A$2:$F$5,VLOOKUP('Enrollment Form'!$B559,DeclMatrix!$A$8:$B$12,2,FALSE),FALSE))))","v":""},{"$f":"IF($A559=\"\",\"\",IF(VLOOKUP($G559,$H$11:$DN$1000,101,FALSE)=\"\",\"No\",IF(LEFT(VLOOKUP($G559,$H$11:$DN$1000,101,FALSE),3)=\"The\",EG559,VLOOKUP(VLOOKUP($G559,$H$11:$DN$1000,101,FALSE),DeclMatrix!$A$2:$F$5,VLOOKUP('Enrollment Form'!$B559,DeclMatrix!$A$8:$B$12,2,FALSE),FALSE))))","v":""},{"$f":"IF($A559=\"\",\"\",IF(VLOOKUP($G559,$H$11:$DN$1000,106,FALSE)=\"\",\"No\",IF(LEFT(VLOOKUP($G559,$H$11:$DN$1000,106,FALSE),3)=\"The\",EH559,VLOOKUP(VLOOKUP($G559,$H$11:$DN$1000,106,FALSE),DeclMatrix!$A$2:$F$5,VLOOKUP('Enrollment Form'!$B559,DeclMatrix!$A$8:$B$12,2,FALSE),FALSE))))","v":""},{"$f":"IF($A559=\"\",\"\",IF(VLOOKUP($G559,$H$11:$DN$1000,111,FALSE)=\"\",\"No\",IF(LEFT(VLOOKUP($G559,$H$11:$DN$1000,111,FALSE),3)=\"The\",EI559,VLOOKUP(VLOOKUP($G559,$H$11:$DN$1000,111,FALSE),DeclMatrix!$A$2:$F$5,VLOOKUP('Enrollment Form'!$B559,DeclMatrix!$A$8:$B$12,2,FALSE),FALSE))))","v":""},"",null,"","","","","","","","","","","",""]
["",{"$nulls":5},"","",{"$nulls":18},"","","","",{"$nulls":30},"","","","",{"$nulls":60},"",{"$f":"IF($A560=\"\",\"\",IF(VLOOKUP($G560,$H$11:$DN$1000,96,FALSE)=\"\",\"No\",IF(LEFT(VLOOKUP($G560,$H$11:$DN$1000,96,FALSE),3)=\"The\",EF560,VLOOKUP(VLOOKUP($G560,$H$11:$DN$1000,96,FALSE),DeclMatrix!$A$2:$F$5,VLOOKUP('Enrollment Form'!$B560,DeclMatrix!$A$8:$B$12,2,FALSE),FALSE))))","v":""},{"$f":"IF($A560=\"\",\"\",IF(VLOOKUP($G560,$H$11:$DN$1000,101,FALSE)=\"\",\"No\",IF(LEFT(VLOOKUP($G560,$H$11:$DN$1000,101,FALSE),3)=\"The\",EG560,VLOOKUP(VLOOKUP($G560,$H$11:$DN$1000,101,FALSE),DeclMatrix!$A$2:$F$5,VLOOKUP('Enrollment Form'!$B560,DeclMatrix!$A$8:$B$12,2,FALSE),FALSE))))","v":""},{"$f":"IF($A560=\"\",\"\",IF(VLOOKUP($G560,$H$11:$DN$1000,106,FALSE)=\"\",\"No\",IF(LEFT(VLOOKUP($G560,$H$11:$DN$1000,106,FALSE),3)=\"The\",EH560,VLOOKUP(VLOOKUP($G560,$H$11:$DN$1000,106,FALSE),DeclMatrix!$A$2:$F$5,VLOOKUP('Enrollment Form'!$B560,DeclMatrix!$A$8:$B$12,2,FALSE),FALSE))))","v":""},{"$f":"IF($A560=\"\",\"\",IF(VLOOKUP($G560,$H$11:$DN$1000,111,FALSE)=\"\",\"No\",IF(LEFT(VLOOKUP($G560,$H$11:$DN$1000,111,FALSE),3)=\"The\",EI560,VLOOKUP(VLOOKUP($G560,$H$11:$DN$1000,111,FALSE),DeclMatrix!$A$2:$F$5,VLOOKUP('Enrollment Form'!$B560,DeclMatrix!$A$8:$B$12,2,FALSE),FALSE))))","v":""},"",null,"","","","","","","","","","","",""]
["",{"$nulls":5},"","",{"$nulls":18},"","","","",{"$nulls":30},"","","","",{"$nulls":60},"",{"$f":"IF($A561=\"\",\"\",IF(VLOOKUP($G561,$H$11:$DN$1000,96,FALSE)=\"\",\"No\",IF(LEFT(VLOOKUP($G561,$H$11:$DN$1000,96,FALSE),3)=\"The\",EF561,VLOOKUP(VLOOKUP($G561,$H$11:$DN$1000,96,FALSE),DeclMatrix!$A$2:$F$5,VLOOKUP('Enrollment Form'!$B561,DeclMatrix!$A$8:$B$12,2,FALSE),FALSE))))","v":""},{"$f":"IF($A561=\"\",\"\",IF(VLOOKUP($G561,$H$11:$DN$1000,101,FALSE)=\"\",\"No\",IF(LEFT(VLOOKUP($G561,$H$11:$DN$1000,101,FALSE),3)=\"The\",EG561,VLOOKUP(VLOOKUP($G561,$H$11:$DN$1000,101,FALSE),DeclMatrix!$A$2:$F$5,VLOOKUP('Enrollment Form'!$B561,DeclMatrix!$A$8:$B$12,2,FALSE),FALSE))))","v":""},{"$f":"IF($A561=\"\",\"\",IF(VLOOKUP($G561,$H$11:$DN$1000,106,FALSE)=\"\",\"No\",IF(LEFT(VLOOKUP($G561,$H$11:$DN$1000,106,FALSE),3)=\"The\",EH561,VLOOKUP(VLOOKUP($G561,$H$11:$DN$1000,106,FALSE),DeclMatrix!$A$2:$F$5,VLOOKUP('Enrollment Form'!$B561,DeclMatrix!$A$8:$B$12,2,FALSE),FALSE))))","v":""},{"$f":"IF($A561=\"\",\"\",IF(VLOOKUP($G561,$H$11:$DN$1000,111,FALSE)=\"\",\"No\",IF(LEFT(VLOOKUP($G561,$H$11:$DN$1000,111,FALSE),3)=\"The\",EI561,VLOOKUP(VLOOKUP($G561,$H$11:$DN$1000,111,FALSE),DeclMatrix!$A$2:$F$5,VLOOKUP('Enrollment Form'!$B561,DeclMatrix!$A$8:$B$12,2,FALSE),FALSE))))","v":""},"",null,"","","","","","","","","","","",""]
["",{"$nulls":5},"","",{"$nulls":18},"","","","",{"$nulls":30},"","","","",{"$nulls":60},"",{"$f":"IF($A562=\"\",\"\",IF(VLOOKUP($G562,$H$11:$DN$1000,96,FALSE)=\"\",\"No\",IF(LEFT(VLOOKUP($G562,$H$11:$DN$1000,96,FALSE),3)=\"The\",EF562,VLOOKUP(VLOOKUP($G562,$H$11:$DN$1000,96,FALSE),DeclMatrix!$A$2:$F$5,VLOOKUP('Enrollment Form'!$B562,DeclMatrix!$A$8:$B$12,2,FALSE),FALSE))))","v":""},{"$f":"IF($A562=\"\",\"\",IF(VLOOKUP($G562,$H$11:$DN$1000,101,FALSE)=\"\",\"No\",IF(LEFT(VLOOKUP($G562,$H$11:$DN$1000,101,FALSE),3)=\"The\",EG562,VLOOKUP(VLOOKUP($G562,$H$11:$DN$1000,101,FALSE),DeclMatrix!$A$2:$F$5,VLOOKUP('Enrollment Form'!$B562,DeclMatrix!$A$8:$B$12,2,FALSE),FALSE))))","v":""},{"$f":"IF($A562=\"\",\"\",IF(VLOOKUP($G562,$H$11:$DN$1000,106,FALSE)=\"\",\"No\",IF(LEFT(VLOOKUP($G562,$H$11:$DN$1000,106,FALSE),3)=\"The\",EH562,VLOOKUP(VLOOKUP($G562,$H$11:$DN$1000,106,FALSE),DeclMatrix!$A$2:$F$5,VLOOKUP('Enrollment Form'!$B562,DeclMatrix!$A$8:$B$12,2,FALSE),FALSE))))","v":""},{"$f":"IF($A562=\"\",\"\",IF(VLOOKUP($G562,$H$11:$DN$1000,111,FALSE)=\"\",\"No\",IF(LEFT(VLOOKUP($G562,$H$11:$DN$1000,111,FALSE),3)=\"The\",EI562,VLOOKUP(VLOOKUP($G562,$H$11:$DN$1000,111,FALSE),DeclMatrix!$A$2:$F$5,VLOOKUP('Enrollment Form'!$B562,DeclMatrix!$A$8:$B$12,2,FALSE),FALSE))))","v":""},"",null,"","","","","","","","","","","",""]
["",{"$nulls":5},"","",{"$nulls":18},"","","","",{"$nulls":30},"","","","",{"$nulls":60},"",{"$f":"IF($A563=\"\",\"\",IF(VLOOKUP($G563,$H$11:$DN$1000,96,FALSE)=\"\",\"No\",IF(LEFT(VLOOKUP($G563,$H$11:$DN$1000,96,FALSE),3)=\"The\",EF563,VLOOKUP(VLOOKUP($G563,$H$11:$DN$1000,96,FALSE),DeclMatrix!$A$2:$F$5,VLOOKUP('Enrollment Form'!$B563,DeclMatrix!$A$8:$B$12,2,FALSE),FALSE))))","v":""},{"$f":"IF($A563=\"\",\"\",IF(VLOOKUP($G563,$H$11:$DN$1000,101,FALSE)=\"\",\"No\",IF(LEFT(VLOOKUP($G563,$H$11:$DN$1000,101,FALSE),3)=\"The\",EG563,VLOOKUP(VLOOKUP($G563,$H$11:$DN$1000,101,FALSE),DeclMatrix!$A$2:$F$5,VLOOKUP('Enrollment Form'!$B563,DeclMatrix!$A$8:$B$12,2,FALSE),FALSE))))","v":""},{"$f":"IF($A563=\"\",\"\",IF(VLOOKUP($G563,$H$11:$DN$1000,106,FALSE)=\"\",\"No\",IF(LEFT(VLOOKUP($G563,$H$11:$DN$1000,106,FALSE),3)=\"The\",EH563,VLOOKUP(VLOOKUP($G563,$H$11:$DN$1000,106,FALSE),DeclMatrix!$A$2:$F$5,VLOOKUP('Enrollment Form'!$B563,DeclMatrix!$A$8:$B$12,2,FALSE),FALSE))))","v":""},{"$f":"IF($A563=\"\",\"\",IF(VLOOKUP($G563,$H$11:$DN$1000,111,FALSE)=\"\",\"No\",IF(LEFT(VLOOKUP($G563,$H$11:$DN$1000,111,FALSE),3)=\"The\",EI563,VLOOKUP(VLOOKUP($G563,$H$11:$DN$1000,111,FALSE),DeclMatrix!$A$2:$F$5,VLOOKUP('Enrollment Form'!$B563,DeclMatrix!$A$8:$B$12,2,FALSE),FALSE))))","v":""},"",null,"","","","","","","","","","","",""]
["",{"$nulls":5},"","",{"$nulls":18},"","","","",{"$nulls":30},"","","","",{"$nulls":60},"",{"$f":"IF($A564=\"\",\"\",IF(VLOOKUP($G564,$H$11:$DN$1000,96,FALSE)=\"\",\"No\",IF(LEFT(VLOOKUP($G564,$H$11:$DN$1000,96,FALSE),3)=\"The\",EF564,VLOOKUP(VLOOKUP($G564,$H$11:$DN$1000,96,FALSE),DeclMatrix!$A$2:$F$5,VLOOKUP('Enrollment Form'!$B564,DeclMatrix!$A$8:$B$12,2,FALSE),FALSE))))","v":""},{"$f":"IF($A564=\"\",\"\",IF(VLOOKUP($G564,$H$11:$DN$1000,101,FALSE)=\"\",\"No\",IF(LEFT(VLOOKUP($G564,$H$11:$DN$1000,101,FALSE),3)=\"The\",EG564,VLOOKUP(VLOOKUP($G564,$H$11:$DN$1000,101,FALSE),DeclMatrix!$A$2:$F$5,VLOOKUP('Enrollment Form'!$B564,DeclMatrix!$A$8:$B$12,2,FALSE),FALSE))))","v":""},{"$f":"IF($A564=\"\",\"\",IF(VLOOKUP($G564,$H$11:$DN$1000,106,FALSE)=\"\",\"No\",IF(LEFT(VLOOKUP($G564,$H$11:$DN$1000,106,FALSE),3)=\"The\",EH564,VLOOKUP(VLOOKUP($G564,$H$11:$DN$1000,106,FALSE),DeclMatrix!$A$2:$F$5,VLOOKUP('Enrollment Form'!$B564,DeclMatrix!$A$8:$B$12,2,FALSE),FALSE))))","v":""},{"$f":"IF($A564=\"\",\"\",IF(VLOOKUP($G564,$H$11:$DN$1000,111,FALSE)=\"\",\"No\",IF(LEFT(VLOOKUP($G564,$H$11:$DN$1000,111,FALSE),3)=\"The\",EI564,VLOOKUP(VLOOKUP($G564,$H$11:$DN$1000,111,FALSE),DeclMatrix!$A$2:$F$5,VLOOKUP('Enrollment Form'!$B564,DeclMatrix!$A$8:$B$12,2,FALSE),FALSE))))","v":""},"",null,"","","","","","","","","","","",""]
["",{"$nulls":5},"","",{"$nulls":18},"","","","",{"$nulls":30},"","","","",{"$nulls":60},"",{"$f":"IF($A565=\"\",\"\",IF(VLOOKUP($G565,$H$11:$DN$1000,96,FALSE)=\"\",\"No\",IF(LEFT(VLOOKUP($G565,$H$11:$DN$1000,96,FALSE),3)=\"The\",EF565,VLOOKUP(VLOOKUP($G565,$H$11:$DN$1000,96,FALSE),DeclMatrix!$A$2:$F$5,VLOOKUP('Enrollment Form'!$B565,DeclMatrix!$A$8:$B$12,2,FALSE),FALSE))))","v":""},{"$f":"IF($A565=\"\",\"\",IF(VLOOKUP($G565,$H$11:$DN$1000,101,FALSE)=\"\",\"No\",IF(LEFT(VLOOKUP($G565,$H$11:$DN$1000,101,FALSE),3)=\"The\",EG565,VLOOKUP(VLOOKUP($G565,$H$11:$DN$1000,101,FALSE),DeclMatrix!$A$2:$F$5,VLOOKUP('Enrollment Form'!$B565,DeclMatrix!$A$8:$B$12,2,FALSE),FALSE))))","v":""},{"$f":"IF($A565=\"\",\"\",IF(VLOOKUP($G565,$H$11:$DN$1000,106,FALSE)=\"\",\"No\",IF(LEFT(VLOOKUP($G565,$H$11:$DN$1000,106,FALSE),3)=\"The\",EH565,VLOOKUP(VLOOKUP($G565,$H$11:$DN$1000,106,FALSE),DeclMatrix!$A$2:$F$5,VLOOKUP('Enrollment Form'!$B565,DeclMatrix!$A$8:$B$12,2,FALSE),FALSE))))","v":""},{"$f":"IF($A565=\"\",\"\",IF(VLOOKUP($G565,$H$11:$DN$1000,111,FALSE)=\"\",\"No\",IF(LEFT(VLOOKUP($G565,$H$11:$DN$1000,111,FALSE),3)=\"The\",EI565,VLOOKUP(VLOOKUP($G565,$H$11:$DN$1000,111,FALSE),DeclMatrix!$A$2:$F$5,VLOOKUP('Enrollment Form'!$B565,DeclMatrix!$A$8:$B$12,2,FALSE),FALSE))))","v":""},"",null,"","","","","","","","","","","",""]
["",{"$nulls":5},"","",{"$nulls":18},"","","","",{"$nulls":30},"","","","",{"$nulls":60},"",{"$f":"IF($A566=\"\",\"\",IF(VLOOKUP($G566,$H$11:$DN$1000,96,FALSE)=\"\",\"No\",IF(LEFT(VLOOKUP($G566,$H$11:$DN$1000,96,FALSE),3)=\"The\",EF566,VLOOKUP(VLOOKUP($G566,$H$11:$DN$1000,96,FALSE),DeclMatrix!$A$2:$F$5,VLOOKUP('Enrollment Form'!$B566,DeclMatrix!$A$8:$B$12,2,FALSE),FALSE))))","v":""},{"$f":"IF($A566=\"\",\"\",IF(VLOOKUP($G566,$H$11:$DN$1000,101,FALSE)=\"\",\"No\",IF(LEFT(VLOOKUP($G566,$H$11:$DN$1000,101,FALSE),3)=\"The\",EG566,VLOOKUP(VLOOKUP($G566,$H$11:$DN$1000,101,FALSE),DeclMatrix!$A$2:$F$5,VLOOKUP('Enrollment Form'!$B566,DeclMatrix!$A$8:$B$12,2,FALSE),FALSE))))","v":""},{"$f":"IF($A566=\"\",\"\",IF(VLOOKUP($G566,$H$11:$DN$1000,106,FALSE)=\"\",\"No\",IF(LEFT(VLOOKUP($G566,$H$11:$DN$1000,106,FALSE),3)=\"The\",EH566,VLOOKUP(VLOOKUP($G566,$H$11:$DN$1000,106,FALSE),DeclMatrix!$A$2:$F$5,VLOOKUP('Enrollment Form'!$B566,DeclMatrix!$A$8:$B$12,2,FALSE),FALSE))))","v":""},{"$f":"IF($A566=\"\",\"\",IF(VLOOKUP($G566,$H$11:$DN$1000,111,FALSE)=\"\",\"No\",IF(LEFT(VLOOKUP($G566,$H$11:$DN$1000,111,FALSE),3)=\"The\",EI566,VLOOKUP(VLOOKUP($G566,$H$11:$DN$1000,111,FALSE),DeclMatrix!$A$2:$F$5,VLOOKUP('Enrollment Form'!$B566,DeclMatrix!$A$8:$B$12,2,FALSE),FALSE))))","v":""},"",null,"","","","","","","","","","","",""]
["",{"$nulls":5},"","",{"$nulls":18},"","","","",{"$nulls":30},"","","","",{"$nulls":60},"",{"$f":"IF($A567=\"\",\"\",IF(VLOOKUP($G567,$H$11:$DN$1000,96,FALSE)=\"\",\"No\",IF(LEFT(VLOOKUP($G567,$H$11:$DN$1000,96,FALSE),3)=\"The\",EF567,VLOOKUP(VLOOKUP($G567,$H$11:$DN$1000,96,FALSE),DeclMatrix!$A$2:$F$5,VLOOKUP('Enrollment Form'!$B567,DeclMatrix!$A$8:$B$12,2,FALSE),FALSE))))","v":""},{"$f":"IF($A567=\"\",\"\",IF(VLOOKUP($G567,$H$11:$DN$1000,101,FALSE)=\"\",\"No\",IF(LEFT(VLOOKUP($G567,$H$11:$DN$1000,101,FALSE),3)=\"The\",EG567,VLOOKUP(VLOOKUP($G567,$H$11:$DN$1000,101,FALSE),DeclMatrix!$A$2:$F$5,VLOOKUP('Enrollment Form'!$B567,DeclMatrix!$A$8:$B$12,2,FALSE),FALSE))))","v":""},{"$f":"IF($A567=\"\",\"\",IF(VLOOKUP($G567,$H$11:$DN$1000,106,FALSE)=\"\",\"No\",IF(LEFT(VLOOKUP($G567,$H$11:$DN$1000,106,FALSE),3)=\"The\",EH567,VLOOKUP(VLOOKUP($G567,$H$11:$DN$1000,106,FALSE),DeclMatrix!$A$2:$F$5,VLOOKUP('Enrollment Form'!$B567,DeclMatrix!$A$8:$B$12,2,FALSE),FALSE))))","v":""},{"$f":"IF($A567=\"\",\"\",IF(VLOOKUP($G567,$H$11:$DN$1000,111,FALSE)=\"\",\"No\",IF(LEFT(VLOOKUP($G567,$H$11:$DN$1000,111,FALSE),3)=\"The\",EI567,VLOOKUP(VLOOKUP($G567,$H$11:$DN$1000,111,FALSE),DeclMatrix!$A$2:$F$5,VLOOKUP('Enrollment Form'!$B567,DeclMatrix!$A$8:$B$12,2,FALSE),FALSE))))","v":""},"",null,"","","","","","","","","","","",""]
["",{"$nulls":5},"","",{"$nulls":18},"","","","",{"$nulls":30},"","","","",{"$nulls":60},"",{"$f":"IF($A568=\"\",\"\",IF(VLOOKUP($G568,$H$11:$DN$1000,96,FALSE)=\"\",\"No\",IF(LEFT(VLOOKUP($G568,$H$11:$DN$1000,96,FALSE),3)=\"The\",EF568,VLOOKUP(VLOOKUP($G568,$H$11:$DN$1000,96,FALSE),DeclMatrix!$A$2:$F$5,VLOOKUP('Enrollment Form'!$B568,DeclMatrix!$A$8:$B$12,2,FALSE),FALSE))))","v":""},{"$f":"IF($A568=\"\",\"\",IF(VLOOKUP($G568,$H$11:$DN$1000,101,FALSE)=\"\",\"No\",IF(LEFT(VLOOKUP($G568,$H$11:$DN$1000,101,FALSE),3)=\"The\",EG568,VLOOKUP(VLOOKUP($G568,$H$11:$DN$1000,101,FALSE),DeclMatrix!$A$2:$F$5,VLOOKUP('Enrollment Form'!$B568,DeclMatrix!$A$8:$B$12,2,FALSE),FALSE))))","v":""},{"$f":"IF($A568=\"\",\"\",IF(VLOOKUP($G568,$H$11:$DN$1000,106,FALSE)=\"\",\"No\",IF(LEFT(VLOOKUP($G568,$H$11:$DN$1000,106,FALSE),3)=\"The\",EH568,VLOOKUP(VLOOKUP($G568,$H$11:$DN$1000,106,FALSE),DeclMatrix!$A$2:$F$5,VLOOKUP('Enrollment Form'!$B568,DeclMatrix!$A$8:$B$12,2,FALSE),FALSE))))","v":""},{"$f":"IF($A568=\"\",\"\",IF(VLOOKUP($G568,$H$11:$DN$1000,111,FALSE)=\"\",\"No\",IF(LEFT(VLOOKUP($G568,$H$11:$DN$1000,111,FALSE),3)=\"The\",EI568,VLOOKUP(VLOOKUP($G568,$H$11:$DN$1000,111,FALSE),DeclMatrix!$A$2:$F$5,VLOOKUP('Enrollment Form'!$B568,DeclMatrix!$A$8:$B$12,2,FALSE),FALSE))))","v":""},"",null,"","","","","","","","","","","",""]
["",{"$nulls":5},"","",{"$nulls":18},"","","","",{"$nulls":30},"","","","",{"$nulls":60},"",{"$f":"IF($A569=\"\",\"\",IF(VLOOKUP($G569,$H$11:$DN$1000,96,FALSE)=\"\",\"No\",IF(LEFT(VLOOKUP($G569,$H$11:$DN$1000,96,FALSE),3)=\"The\",EF569,VLOOKUP(VLOOKUP($G569,$H$11:$DN$1000,96,FALSE),DeclMatrix!$A$2:$F$5,VLOOKUP('Enrollment Form'!$B569,DeclMatrix!$A$8:$B$12,2,FALSE),FALSE))))","v":""},{"$f":"IF($A569=\"\",\"\",IF(VLOOKUP($G569,$H$11:$DN$1000,101,FALSE)=\"\",\"No\",IF(LEFT(VLOOKUP($G569,$H$11:$DN$1000,101,FALSE),3)=\"The\",EG569,VLOOKUP(VLOOKUP($G569,$H$11:$DN$1000,101,FALSE),DeclMatrix!$A$2:$F$5,VLOOKUP('Enrollment Form'!$B569,DeclMatrix!$A$8:$B$12,2,FALSE),FALSE))))","v":""},{"$f":"IF($A569=\"\",\"\",IF(VLOOKUP($G569,$H$11:$DN$1000,106,FALSE)=\"\",\"No\",IF(LEFT(VLOOKUP($G569,$H$11:$DN$1000,106,FALSE),3)=\"The\",EH569,VLOOKUP(VLOOKUP($G569,$H$11:$DN$1000,106,FALSE),DeclMatrix!$A$2:$F$5,VLOOKUP('Enrollment Form'!$B569,DeclMatrix!$A$8:$B$12,2,FALSE),FALSE))))","v":""},{"$f":"IF($A569=\"\",\"\",IF(VLOOKUP($G569,$H$11:$DN$1000,111,FALSE)=\"\",\"No\",IF(LEFT(VLOOKUP($G569,$H$11:$DN$1000,111,FALSE),3)=\"The\",EI569,VLOOKUP(VLOOKUP($G569,$H$11:$DN$1000,111,FALSE),DeclMatrix!$A$2:$F$5,VLOOKUP('Enrollment Form'!$B569,DeclMatrix!$A$8:$B$12,2,FALSE),FALSE))))","v":""},"",null,"","","","","","","","","","","",""]
["",{"$nulls":5},"","",{"$nulls":18},"","","","",{"$nulls":30},"","","","",{"$nulls":60},"",{"$f":"IF($A570=\"\",\"\",IF(VLOOKUP($G570,$H$11:$DN$1000,96,FALSE)=\"\",\"No\",IF(LEFT(VLOOKUP($G570,$H$11:$DN$1000,96,FALSE),3)=\"The\",EF570,VLOOKUP(VLOOKUP($G570,$H$11:$DN$1000,96,FALSE),DeclMatrix!$A$2:$F$5,VLOOKUP('Enrollment Form'!$B570,DeclMatrix!$A$8:$B$12,2,FALSE),FALSE))))","v":""},{"$f":"IF($A570=\"\",\"\",IF(VLOOKUP($G570,$H$11:$DN$1000,101,FALSE)=\"\",\"No\",IF(LEFT(VLOOKUP($G570,$H$11:$DN$1000,101,FALSE),3)=\"The\",EG570,VLOOKUP(VLOOKUP($G570,$H$11:$DN$1000,101,FALSE),DeclMatrix!$A$2:$F$5,VLOOKUP('Enrollment Form'!$B570,DeclMatrix!$A$8:$B$12,2,FALSE),FALSE))))","v":""},{"$f":"IF($A570=\"\",\"\",IF(VLOOKUP($G570,$H$11:$DN$1000,106,FALSE)=\"\",\"No\",IF(LEFT(VLOOKUP($G570,$H$11:$DN$1000,106,FALSE),3)=\"The\",EH570,VLOOKUP(VLOOKUP($G570,$H$11:$DN$1000,106,FALSE),DeclMatrix!$A$2:$F$5,VLOOKUP('Enrollment Form'!$B570,DeclMatrix!$A$8:$B$12,2,FALSE),FALSE))))","v":""},{"$f":"IF($A570=\"\",\"\",IF(VLOOKUP($G570,$H$11:$DN$1000,111,FALSE)=\"\",\"No\",IF(LEFT(VLOOKUP($G570,$H$11:$DN$1000,111,FALSE),3)=\"The\",EI570,VLOOKUP(VLOOKUP($G570,$H$11:$DN$1000,111,FALSE),DeclMatrix!$A$2:$F$5,VLOOKUP('Enrollment Form'!$B570,DeclMatrix!$A$8:$B$12,2,FALSE),FALSE))))","v":""},"",null,"","","","","","","","","","","",""]
["",{"$nulls":5},"","",{"$nulls":18},"","","","",{"$nulls":30},"","","","",{"$nulls":60},"",{"$f":"IF($A571=\"\",\"\",IF(VLOOKUP($G571,$H$11:$DN$1000,96,FALSE)=\"\",\"No\",IF(LEFT(VLOOKUP($G571,$H$11:$DN$1000,96,FALSE),3)=\"The\",EF571,VLOOKUP(VLOOKUP($G571,$H$11:$DN$1000,96,FALSE),DeclMatrix!$A$2:$F$5,VLOOKUP('Enrollment Form'!$B571,DeclMatrix!$A$8:$B$12,2,FALSE),FALSE))))","v":""},{"$f":"IF($A571=\"\",\"\",IF(VLOOKUP($G571,$H$11:$DN$1000,101,FALSE)=\"\",\"No\",IF(LEFT(VLOOKUP($G571,$H$11:$DN$1000,101,FALSE),3)=\"The\",EG571,VLOOKUP(VLOOKUP($G571,$H$11:$DN$1000,101,FALSE),DeclMatrix!$A$2:$F$5,VLOOKUP('Enrollment Form'!$B571,DeclMatrix!$A$8:$B$12,2,FALSE),FALSE))))","v":""},{"$f":"IF($A571=\"\",\"\",IF(VLOOKUP($G571,$H$11:$DN$1000,106,FALSE)=\"\",\"No\",IF(LEFT(VLOOKUP($G571,$H$11:$DN$1000,106,FALSE),3)=\"The\",EH571,VLOOKUP(VLOOKUP($G571,$H$11:$DN$1000,106,FALSE),DeclMatrix!$A$2:$F$5,VLOOKUP('Enrollment Form'!$B571,DeclMatrix!$A$8:$B$12,2,FALSE),FALSE))))","v":""},{"$f":"IF($A571=\"\",\"\",IF(VLOOKUP($G571,$H$11:$DN$1000,111,FALSE)=\"\",\"No\",IF(LEFT(VLOOKUP($G571,$H$11:$DN$1000,111,FALSE),3)=\"The\",EI571,VLOOKUP(VLOOKUP($G571,$H$11:$DN$1000,111,FALSE),DeclMatrix!$A$2:$F$5,VLOOKUP('Enrollment Form'!$B571,DeclMatrix!$A$8:$B$12,2,FALSE),FALSE))))","v":""},"",null,"","","","","","","","","","","",""]
["",{"$nulls":5},"","",{"$nulls":18},"","","","",{"$nulls":30},"","","","",{"$nulls":60},"",{"$f":"IF($A572=\"\",\"\",IF(VLOOKUP($G572,$H$11:$DN$1000,96,FALSE)=\"\",\"No\",IF(LEFT(VLOOKUP($G572,$H$11:$DN$1000,96,FALSE),3)=\"The\",EF572,VLOOKUP(VLOOKUP($G572,$H$11:$DN$1000,96,FALSE),DeclMatrix!$A$2:$F$5,VLOOKUP('Enrollment Form'!$B572,DeclMatrix!$A$8:$B$12,2,FALSE),FALSE))))","v":""},{"$f":"IF($A572=\"\",\"\",IF(VLOOKUP($G572,$H$11:$DN$1000,101,FALSE)=\"\",\"No\",IF(LEFT(VLOOKUP($G572,$H$11:$DN$1000,101,FALSE),3)=\"The\",EG572,VLOOKUP(VLOOKUP($G572,$H$11:$DN$1000,101,FALSE),DeclMatrix!$A$2:$F$5,VLOOKUP('Enrollment Form'!$B572,DeclMatrix!$A$8:$B$12,2,FALSE),FALSE))))","v":""},{"$f":"IF($A572=\"\",\"\",IF(VLOOKUP($G572,$H$11:$DN$1000,106,FALSE)=\"\",\"No\",IF(LEFT(VLOOKUP($G572,$H$11:$DN$1000,106,FALSE),3)=\"The\",EH572,VLOOKUP(VLOOKUP($G572,$H$11:$DN$1000,106,FALSE),DeclMatrix!$A$2:$F$5,VLOOKUP('Enrollment Form'!$B572,DeclMatrix!$A$8:$B$12,2,FALSE),FALSE))))","v":""},{"$f":"IF($A572=\"\",\"\",IF(VLOOKUP($G572,$H$11:$DN$1000,111,FALSE)=\"\",\"No\",IF(LEFT(VLOOKUP($G572,$H$11:$DN$1000,111,FALSE),3)=\"The\",EI572,VLOOKUP(VLOOKUP($G572,$H$11:$DN$1000,111,FALSE),DeclMatrix!$A$2:$F$5,VLOOKUP('Enrollment Form'!$B572,DeclMatrix!$A$8:$B$12,2,FALSE),FALSE))))","v":""},"",null,"","","","","","","","","","","",""]
["",{"$nulls":5},"","",{"$nulls":18},"","","","",{"$nulls":30},"","","","",{"$nulls":60},"",{"$f":"IF($A573=\"\",\"\",IF(VLOOKUP($G573,$H$11:$DN$1000,96,FALSE)=\"\",\"No\",IF(LEFT(VLOOKUP($G573,$H$11:$DN$1000,96,FALSE),3)=\"The\",EF573,VLOOKUP(VLOOKUP($G573,$H$11:$DN$1000,96,FALSE),DeclMatrix!$A$2:$F$5,VLOOKUP('Enrollment Form'!$B573,DeclMatrix!$A$8:$B$12,2,FALSE),FALSE))))","v":""},{"$f":"IF($A573=\"\",\"\",IF(VLOOKUP($G573,$H$11:$DN$1000,101,FALSE)=\"\",\"No\",IF(LEFT(VLOOKUP($G573,$H$11:$DN$1000,101,FALSE),3)=\"The\",EG573,VLOOKUP(VLOOKUP($G573,$H$11:$DN$1000,101,FALSE),DeclMatrix!$A$2:$F$5,VLOOKUP('Enrollment Form'!$B573,DeclMatrix!$A$8:$B$12,2,FALSE),FALSE))))","v":""},{"$f":"IF($A573=\"\",\"\",IF(VLOOKUP($G573,$H$11:$DN$1000,106,FALSE)=\"\",\"No\",IF(LEFT(VLOOKUP($G573,$H$11:$DN$1000,106,FALSE),3)=\"The\",EH573,VLOOKUP(VLOOKUP($G573,$H$11:$DN$1000,106,FALSE),DeclMatrix!$A$2:$F$5,VLOOKUP('Enrollment Form'!$B573,DeclMatrix!$A$8:$B$12,2,FALSE),FALSE))))","v":""},{"$f":"IF($A573=\"\",\"\",IF(VLOOKUP($G573,$H$11:$DN$1000,111,FALSE)=\"\",\"No\",IF(LEFT(VLOOKUP($G573,$H$11:$DN$1000,111,FALSE),3)=\"The\",EI573,VLOOKUP(VLOOKUP($G573,$H$11:$DN$1000,111,FALSE),DeclMatrix!$A$2:$F$5,VLOOKUP('Enrollment Form'!$B573,DeclMatrix!$A$8:$B$12,2,FALSE),FALSE))))","v":""},"",null,"","","","","","","","","","","",""]
["",{"$nulls":5},"","",{"$nulls":18},"","","","",{"$nulls":30},"","","","",{"$nulls":60},"",{"$f":"IF($A574=\"\",\"\",IF(VLOOKUP($G574,$H$11:$DN$1000,96,FALSE)=\"\",\"No\",IF(LEFT(VLOOKUP($G574,$H$11:$DN$1000,96,FALSE),3)=\"The\",EF574,VLOOKUP(VLOOKUP($G574,$H$11:$DN$1000,96,FALSE),DeclMatrix!$A$2:$F$5,VLOOKUP('Enrollment Form'!$B574,DeclMatrix!$A$8:$B$12,2,FALSE),FALSE))))","v":""},{"$f":"IF($A574=\"\",\"\",IF(VLOOKUP($G574,$H$11:$DN$1000,101,FALSE)=\"\",\"No\",IF(LEFT(VLOOKUP($G574,$H$11:$DN$1000,101,FALSE),3)=\"The\",EG574,VLOOKUP(VLOOKUP($G574,$H$11:$DN$1000,101,FALSE),DeclMatrix!$A$2:$F$5,VLOOKUP('Enrollment Form'!$B574,DeclMatrix!$A$8:$B$12,2,FALSE),FALSE))))","v":""},{"$f":"IF($A574=\"\",\"\",IF(VLOOKUP($G574,$H$11:$DN$1000,106,FALSE)=\"\",\"No\",IF(LEFT(VLOOKUP($G574,$H$11:$DN$1000,106,FALSE),3)=\"The\",EH574,VLOOKUP(VLOOKUP($G574,$H$11:$DN$1000,106,FALSE),DeclMatrix!$A$2:$F$5,VLOOKUP('Enrollment Form'!$B574,DeclMatrix!$A$8:$B$12,2,FALSE),FALSE))))","v":""},{"$f":"IF($A574=\"\",\"\",IF(VLOOKUP($G574,$H$11:$DN$1000,111,FALSE)=\"\",\"No\",IF(LEFT(VLOOKUP($G574,$H$11:$DN$1000,111,FALSE),3)=\"The\",EI574,VLOOKUP(VLOOKUP($G574,$H$11:$DN$1000,111,FALSE),DeclMatrix!$A$2:$F$5,VLOOKUP('Enrollment Form'!$B574,DeclMatrix!$A$8:$B$12,2,FALSE),FALSE))))","v":""},"",null,"","","","","","","","","","","",""]
["",{"$nulls":5},"","",{"$nulls":18},"","","","",{"$nulls":30},"","","","",{"$nulls":60},"",{"$f":"IF($A575=\"\",\"\",IF(VLOOKUP($G575,$H$11:$DN$1000,96,FALSE)=\"\",\"No\",IF(LEFT(VLOOKUP($G575,$H$11:$DN$1000,96,FALSE),3)=\"The\",EF575,VLOOKUP(VLOOKUP($G575,$H$11:$DN$1000,96,FALSE),DeclMatrix!$A$2:$F$5,VLOOKUP('Enrollment Form'!$B575,DeclMatrix!$A$8:$B$12,2,FALSE),FALSE))))","v":""},{"$f":"IF($A575=\"\",\"\",IF(VLOOKUP($G575,$H$11:$DN$1000,101,FALSE)=\"\",\"No\",IF(LEFT(VLOOKUP($G575,$H$11:$DN$1000,101,FALSE),3)=\"The\",EG575,VLOOKUP(VLOOKUP($G575,$H$11:$DN$1000,101,FALSE),DeclMatrix!$A$2:$F$5,VLOOKUP('Enrollment Form'!$B575,DeclMatrix!$A$8:$B$12,2,FALSE),FALSE))))","v":""},{"$f":"IF($A575=\"\",\"\",IF(VLOOKUP($G575,$H$11:$DN$1000,106,FALSE)=\"\",\"No\",IF(LEFT(VLOOKUP($G575,$H$11:$DN$1000,106,FALSE),3)=\"The\",EH575,VLOOKUP(VLOOKUP($G575,$H$11:$DN$1000,106,FALSE),DeclMatrix!$A$2:$F$5,VLOOKUP('Enrollment Form'!$B575,DeclMatrix!$A$8:$B$12,2,FALSE),FALSE))))","v":""},{"$f":"IF($A575=\"\",\"\",IF(VLOOKUP($G575,$H$11:$DN$1000,111,FALSE)=\"\",\"No\",IF(LEFT(VLOOKUP($G575,$H$11:$DN$1000,111,FALSE),3)=\"The\",EI575,VLOOKUP(VLOOKUP($G575,$H$11:$DN$1000,111,FALSE),DeclMatrix!$A$2:$F$5,VLOOKUP('Enrollment Form'!$B575,DeclMatrix!$A$8:$B$12,2,FALSE),FALSE))))","v":""},"",null,"","","","","","","","","","","",""]
["",{"$nulls":5},"","",{"$nulls":18},"","","","",{"$nulls":30},"","","","",{"$nulls":60},"",{"$f":"IF($A576=\"\",\"\",IF(VLOOKUP($G576,$H$11:$DN$1000,96,FALSE)=\"\",\"No\",IF(LEFT(VLOOKUP($G576,$H$11:$DN$1000,96,FALSE),3)=\"The\",EF576,VLOOKUP(VLOOKUP($G576,$H$11:$DN$1000,96,FALSE),DeclMatrix!$A$2:$F$5,VLOOKUP('Enrollment Form'!$B576,DeclMatrix!$A$8:$B$12,2,FALSE),FALSE))))","v":""},{"$f":"IF($A576=\"\",\"\",IF(VLOOKUP($G576,$H$11:$DN$1000,101,FALSE)=\"\",\"No\",IF(LEFT(VLOOKUP($G576,$H$11:$DN$1000,101,FALSE),3)=\"The\",EG576,VLOOKUP(VLOOKUP($G576,$H$11:$DN$1000,101,FALSE),DeclMatrix!$A$2:$F$5,VLOOKUP('Enrollment Form'!$B576,DeclMatrix!$A$8:$B$12,2,FALSE),FALSE))))","v":""},{"$f":"IF($A576=\"\",\"\",IF(VLOOKUP($G576,$H$11:$DN$1000,106,FALSE)=\"\",\"No\",IF(LEFT(VLOOKUP($G576,$H$11:$DN$1000,106,FALSE),3)=\"The\",EH576,VLOOKUP(VLOOKUP($G576,$H$11:$DN$1000,106,FALSE),DeclMatrix!$A$2:$F$5,VLOOKUP('Enrollment Form'!$B576,DeclMatrix!$A$8:$B$12,2,FALSE),FALSE))))","v":""},{"$f":"IF($A576=\"\",\"\",IF(VLOOKUP($G576,$H$11:$DN$1000,111,FALSE)=\"\",\"No\",IF(LEFT(VLOOKUP($G576,$H$11:$DN$1000,111,FALSE),3)=\"The\",EI576,VLOOKUP(VLOOKUP($G576,$H$11:$DN$1000,111,FALSE),DeclMatrix!$A$2:$F$5,VLOOKUP('Enrollment Form'!$B576,DeclMatrix!$A$8:$B$12,2,FALSE),FALSE))))","v":""},"",null,"","","","","","","","","","","",""]
["",{"$nulls":5},"","",{"$nulls":18},"","","","",{"$nulls":30},"","","","",{"$nulls":60},"",{"$f":"IF($A577=\"\",\"\",IF(VLOOKUP($G577,$H$11:$DN$1000,96,FALSE)=\"\",\"No\",IF(LEFT(VLOOKUP($G577,$H$11:$DN$1000,96,FALSE),3)=\"The\",EF577,VLOOKUP(VLOOKUP($G577,$H$11:$DN$1000,96,FALSE),DeclMatrix!$A$2:$F$5,VLOOKUP('Enrollment Form'!$B577,DeclMatrix!$A$8:$B$12,2,FALSE),FALSE))))","v":""},{"$f":"IF($A577=\"\",\"\",IF(VLOOKUP($G577,$H$11:$DN$1000,101,FALSE)=\"\",\"No\",IF(LEFT(VLOOKUP($G577,$H$11:$DN$1000,101,FALSE),3)=\"The\",EG577,VLOOKUP(VLOOKUP($G577,$H$11:$DN$1000,101,FALSE),DeclMatrix!$A$2:$F$5,VLOOKUP('Enrollment Form'!$B577,DeclMatrix!$A$8:$B$12,2,FALSE),FALSE))))","v":""},{"$f":"IF($A577=\"\",\"\",IF(VLOOKUP($G577,$H$11:$DN$1000,106,FALSE)=\"\",\"No\",IF(LEFT(VLOOKUP($G577,$H$11:$DN$1000,106,FALSE),3)=\"The\",EH577,VLOOKUP(VLOOKUP($G577,$H$11:$DN$1000,106,FALSE),DeclMatrix!$A$2:$F$5,VLOOKUP('Enrollment Form'!$B577,DeclMatrix!$A$8:$B$12,2,FALSE),FALSE))))","v":""},{"$f":"IF($A577=\"\",\"\",IF(VLOOKUP($G577,$H$11:$DN$1000,111,FALSE)=\"\",\"No\",IF(LEFT(VLOOKUP($G577,$H$11:$DN$1000,111,FALSE),3)=\"The\",EI577,VLOOKUP(VLOOKUP($G577,$H$11:$DN$1000,111,FALSE),DeclMatrix!$A$2:$F$5,VLOOKUP('Enrollment Form'!$B577,DeclMatrix!$A$8:$B$12,2,FALSE),FALSE))))","v":""},"",null,"","","","","","","","","","","",""]
["",{"$nulls":5},"","",{"$nulls":18},"","","","",{"$nulls":30},"","","","",{"$nulls":60},"",{"$f":"IF($A578=\"\",\"\",IF(VLOOKUP($G578,$H$11:$DN$1000,96,FALSE)=\"\",\"No\",IF(LEFT(VLOOKUP($G578,$H$11:$DN$1000,96,FALSE),3)=\"The\",EF578,VLOOKUP(VLOOKUP($G578,$H$11:$DN$1000,96,FALSE),DeclMatrix!$A$2:$F$5,VLOOKUP('Enrollment Form'!$B578,DeclMatrix!$A$8:$B$12,2,FALSE),FALSE))))","v":""},{"$f":"IF($A578=\"\",\"\",IF(VLOOKUP($G578,$H$11:$DN$1000,101,FALSE)=\"\",\"No\",IF(LEFT(VLOOKUP($G578,$H$11:$DN$1000,101,FALSE),3)=\"The\",EG578,VLOOKUP(VLOOKUP($G578,$H$11:$DN$1000,101,FALSE),DeclMatrix!$A$2:$F$5,VLOOKUP('Enrollment Form'!$B578,DeclMatrix!$A$8:$B$12,2,FALSE),FALSE))))","v":""},{"$f":"IF($A578=\"\",\"\",IF(VLOOKUP($G578,$H$11:$DN$1000,106,FALSE)=\"\",\"No\",IF(LEFT(VLOOKUP($G578,$H$11:$DN$1000,106,FALSE),3)=\"The\",EH578,VLOOKUP(VLOOKUP($G578,$H$11:$DN$1000,106,FALSE),DeclMatrix!$A$2:$F$5,VLOOKUP('Enrollment Form'!$B578,DeclMatrix!$A$8:$B$12,2,FALSE),FALSE))))","v":""},{"$f":"IF($A578=\"\",\"\",IF(VLOOKUP($G578,$H$11:$DN$1000,111,FALSE)=\"\",\"No\",IF(LEFT(VLOOKUP($G578,$H$11:$DN$1000,111,FALSE),3)=\"The\",EI578,VLOOKUP(VLOOKUP($G578,$H$11:$DN$1000,111,FALSE),DeclMatrix!$A$2:$F$5,VLOOKUP('Enrollment Form'!$B578,DeclMatrix!$A$8:$B$12,2,FALSE),FALSE))))","v":""},"",null,"","","","","","","","","","","",""]
["",{"$nulls":5},"","",{"$nulls":18},"","","","",{"$nulls":30},"","","","",{"$nulls":60},"",{"$f":"IF($A579=\"\",\"\",IF(VLOOKUP($G579,$H$11:$DN$1000,96,FALSE)=\"\",\"No\",IF(LEFT(VLOOKUP($G579,$H$11:$DN$1000,96,FALSE),3)=\"The\",EF579,VLOOKUP(VLOOKUP($G579,$H$11:$DN$1000,96,FALSE),DeclMatrix!$A$2:$F$5,VLOOKUP('Enrollment Form'!$B579,DeclMatrix!$A$8:$B$12,2,FALSE),FALSE))))","v":""},{"$f":"IF($A579=\"\",\"\",IF(VLOOKUP($G579,$H$11:$DN$1000,101,FALSE)=\"\",\"No\",IF(LEFT(VLOOKUP($G579,$H$11:$DN$1000,101,FALSE),3)=\"The\",EG579,VLOOKUP(VLOOKUP($G579,$H$11:$DN$1000,101,FALSE),DeclMatrix!$A$2:$F$5,VLOOKUP('Enrollment Form'!$B579,DeclMatrix!$A$8:$B$12,2,FALSE),FALSE))))","v":""},{"$f":"IF($A579=\"\",\"\",IF(VLOOKUP($G579,$H$11:$DN$1000,106,FALSE)=\"\",\"No\",IF(LEFT(VLOOKUP($G579,$H$11:$DN$1000,106,FALSE),3)=\"The\",EH579,VLOOKUP(VLOOKUP($G579,$H$11:$DN$1000,106,FALSE),DeclMatrix!$A$2:$F$5,VLOOKUP('Enrollment Form'!$B579,DeclMatrix!$A$8:$B$12,2,FALSE),FALSE))))","v":""},{"$f":"IF($A579=\"\",\"\",IF(VLOOKUP($G579,$H$11:$DN$1000,111,FALSE)=\"\",\"No\",IF(LEFT(VLOOKUP($G579,$H$11:$DN$1000,111,FALSE),3)=\"The\",EI579,VLOOKUP(VLOOKUP($G579,$H$11:$DN$1000,111,FALSE),DeclMatrix!$A$2:$F$5,VLOOKUP('Enrollment Form'!$B579,DeclMatrix!$A$8:$B$12,2,FALSE),FALSE))))","v":""},"",null,"","","","","","","","","","","",""]
["",{"$nulls":5},"","",{"$nulls":18},"","","","",{"$nulls":30},"","","","",{"$nulls":60},"",{"$f":"IF($A580=\"\",\"\",IF(VLOOKUP($G580,$H$11:$DN$1000,96,FALSE)=\"\",\"No\",IF(LEFT(VLOOKUP($G580,$H$11:$DN$1000,96,FALSE),3)=\"The\",EF580,VLOOKUP(VLOOKUP($G580,$H$11:$DN$1000,96,FALSE),DeclMatrix!$A$2:$F$5,VLOOKUP('Enrollment Form'!$B580,DeclMatrix!$A$8:$B$12,2,FALSE),FALSE))))","v":""},{"$f":"IF($A580=\"\",\"\",IF(VLOOKUP($G580,$H$11:$DN$1000,101,FALSE)=\"\",\"No\",IF(LEFT(VLOOKUP($G580,$H$11:$DN$1000,101,FALSE),3)=\"The\",EG580,VLOOKUP(VLOOKUP($G580,$H$11:$DN$1000,101,FALSE),DeclMatrix!$A$2:$F$5,VLOOKUP('Enrollment Form'!$B580,DeclMatrix!$A$8:$B$12,2,FALSE),FALSE))))","v":""},{"$f":"IF($A580=\"\",\"\",IF(VLOOKUP($G580,$H$11:$DN$1000,106,FALSE)=\"\",\"No\",IF(LEFT(VLOOKUP($G580,$H$11:$DN$1000,106,FALSE),3)=\"The\",EH580,VLOOKUP(VLOOKUP($G580,$H$11:$DN$1000,106,FALSE),DeclMatrix!$A$2:$F$5,VLOOKUP('Enrollment Form'!$B580,DeclMatrix!$A$8:$B$12,2,FALSE),FALSE))))","v":""},{"$f":"IF($A580=\"\",\"\",IF(VLOOKUP($G580,$H$11:$DN$1000,111,FALSE)=\"\",\"No\",IF(LEFT(VLOOKUP($G580,$H$11:$DN$1000,111,FALSE),3)=\"The\",EI580,VLOOKUP(VLOOKUP($G580,$H$11:$DN$1000,111,FALSE),DeclMatrix!$A$2:$F$5,VLOOKUP('Enrollment Form'!$B580,DeclMatrix!$A$8:$B$12,2,FALSE),FALSE))))","v":""},"",null,"","","","","","","","","","","",""]
["",{"$nulls":5},"","",{"$nulls":18},"","","","",{"$nulls":30},"","","","",{"$nulls":60},"",{"$f":"IF($A581=\"\",\"\",IF(VLOOKUP($G581,$H$11:$DN$1000,96,FALSE)=\"\",\"No\",IF(LEFT(VLOOKUP($G581,$H$11:$DN$1000,96,FALSE),3)=\"The\",EF581,VLOOKUP(VLOOKUP($G581,$H$11:$DN$1000,96,FALSE),DeclMatrix!$A$2:$F$5,VLOOKUP('Enrollment Form'!$B581,DeclMatrix!$A$8:$B$12,2,FALSE),FALSE))))","v":""},{"$f":"IF($A581=\"\",\"\",IF(VLOOKUP($G581,$H$11:$DN$1000,101,FALSE)=\"\",\"No\",IF(LEFT(VLOOKUP($G581,$H$11:$DN$1000,101,FALSE),3)=\"The\",EG581,VLOOKUP(VLOOKUP($G581,$H$11:$DN$1000,101,FALSE),DeclMatrix!$A$2:$F$5,VLOOKUP('Enrollment Form'!$B581,DeclMatrix!$A$8:$B$12,2,FALSE),FALSE))))","v":""},{"$f":"IF($A581=\"\",\"\",IF(VLOOKUP($G581,$H$11:$DN$1000,106,FALSE)=\"\",\"No\",IF(LEFT(VLOOKUP($G581,$H$11:$DN$1000,106,FALSE),3)=\"The\",EH581,VLOOKUP(VLOOKUP($G581,$H$11:$DN$1000,106,FALSE),DeclMatrix!$A$2:$F$5,VLOOKUP('Enrollment Form'!$B581,DeclMatrix!$A$8:$B$12,2,FALSE),FALSE))))","v":""},{"$f":"IF($A581=\"\",\"\",IF(VLOOKUP($G581,$H$11:$DN$1000,111,FALSE)=\"\",\"No\",IF(LEFT(VLOOKUP($G581,$H$11:$DN$1000,111,FALSE),3)=\"The\",EI581,VLOOKUP(VLOOKUP($G581,$H$11:$DN$1000,111,FALSE),DeclMatrix!$A$2:$F$5,VLOOKUP('Enrollment Form'!$B581,DeclMatrix!$A$8:$B$12,2,FALSE),FALSE))))","v":""},"",null,"","","","","","","","","","","",""]
["",{"$nulls":5},"","",{"$nulls":18},"","","","",{"$nulls":30},"","","","",{"$nulls":60},"",{"$f":"IF($A582=\"\",\"\",IF(VLOOKUP($G582,$H$11:$DN$1000,96,FALSE)=\"\",\"No\",IF(LEFT(VLOOKUP($G582,$H$11:$DN$1000,96,FALSE),3)=\"The\",EF582,VLOOKUP(VLOOKUP($G582,$H$11:$DN$1000,96,FALSE),DeclMatrix!$A$2:$F$5,VLOOKUP('Enrollment Form'!$B582,DeclMatrix!$A$8:$B$12,2,FALSE),FALSE))))","v":""},{"$f":"IF($A582=\"\",\"\",IF(VLOOKUP($G582,$H$11:$DN$1000,101,FALSE)=\"\",\"No\",IF(LEFT(VLOOKUP($G582,$H$11:$DN$1000,101,FALSE),3)=\"The\",EG582,VLOOKUP(VLOOKUP($G582,$H$11:$DN$1000,101,FALSE),DeclMatrix!$A$2:$F$5,VLOOKUP('Enrollment Form'!$B582,DeclMatrix!$A$8:$B$12,2,FALSE),FALSE))))","v":""},{"$f":"IF($A582=\"\",\"\",IF(VLOOKUP($G582,$H$11:$DN$1000,106,FALSE)=\"\",\"No\",IF(LEFT(VLOOKUP($G582,$H$11:$DN$1000,106,FALSE),3)=\"The\",EH582,VLOOKUP(VLOOKUP($G582,$H$11:$DN$1000,106,FALSE),DeclMatrix!$A$2:$F$5,VLOOKUP('Enrollment Form'!$B582,DeclMatrix!$A$8:$B$12,2,FALSE),FALSE))))","v":""},{"$f":"IF($A582=\"\",\"\",IF(VLOOKUP($G582,$H$11:$DN$1000,111,FALSE)=\"\",\"No\",IF(LEFT(VLOOKUP($G582,$H$11:$DN$1000,111,FALSE),3)=\"The\",EI582,VLOOKUP(VLOOKUP($G582,$H$11:$DN$1000,111,FALSE),DeclMatrix!$A$2:$F$5,VLOOKUP('Enrollment Form'!$B582,DeclMatrix!$A$8:$B$12,2,FALSE),FALSE))))","v":""},"",null,"","","","","","","","","","","",""]
["",{"$nulls":5},"","",{"$nulls":18},"","","","",{"$nulls":30},"","","","",{"$nulls":60},"",{"$f":"IF($A583=\"\",\"\",IF(VLOOKUP($G583,$H$11:$DN$1000,96,FALSE)=\"\",\"No\",IF(LEFT(VLOOKUP($G583,$H$11:$DN$1000,96,FALSE),3)=\"The\",EF583,VLOOKUP(VLOOKUP($G583,$H$11:$DN$1000,96,FALSE),DeclMatrix!$A$2:$F$5,VLOOKUP('Enrollment Form'!$B583,DeclMatrix!$A$8:$B$12,2,FALSE),FALSE))))","v":""},{"$f":"IF($A583=\"\",\"\",IF(VLOOKUP($G583,$H$11:$DN$1000,101,FALSE)=\"\",\"No\",IF(LEFT(VLOOKUP($G583,$H$11:$DN$1000,101,FALSE),3)=\"The\",EG583,VLOOKUP(VLOOKUP($G583,$H$11:$DN$1000,101,FALSE),DeclMatrix!$A$2:$F$5,VLOOKUP('Enrollment Form'!$B583,DeclMatrix!$A$8:$B$12,2,FALSE),FALSE))))","v":""},{"$f":"IF($A583=\"\",\"\",IF(VLOOKUP($G583,$H$11:$DN$1000,106,FALSE)=\"\",\"No\",IF(LEFT(VLOOKUP($G583,$H$11:$DN$1000,106,FALSE),3)=\"The\",EH583,VLOOKUP(VLOOKUP($G583,$H$11:$DN$1000,106,FALSE),DeclMatrix!$A$2:$F$5,VLOOKUP('Enrollment Form'!$B583,DeclMatrix!$A$8:$B$12,2,FALSE),FALSE))))","v":""},{"$f":"IF($A583=\"\",\"\",IF(VLOOKUP($G583,$H$11:$DN$1000,111,FALSE)=\"\",\"No\",IF(LEFT(VLOOKUP($G583,$H$11:$DN$1000,111,FALSE),3)=\"The\",EI583,VLOOKUP(VLOOKUP($G583,$H$11:$DN$1000,111,FALSE),DeclMatrix!$A$2:$F$5,VLOOKUP('Enrollment Form'!$B583,DeclMatrix!$A$8:$B$12,2,FALSE),FALSE))))","v":""},"",null,"","","","","","","","","","","",""]
["",{"$nulls":5},"","",{"$nulls":18},"","","","",{"$nulls":30},"","","","",{"$nulls":60},"",{"$f":"IF($A584=\"\",\"\",IF(VLOOKUP($G584,$H$11:$DN$1000,96,FALSE)=\"\",\"No\",IF(LEFT(VLOOKUP($G584,$H$11:$DN$1000,96,FALSE),3)=\"The\",EF584,VLOOKUP(VLOOKUP($G584,$H$11:$DN$1000,96,FALSE),DeclMatrix!$A$2:$F$5,VLOOKUP('Enrollment Form'!$B584,DeclMatrix!$A$8:$B$12,2,FALSE),FALSE))))","v":""},{"$f":"IF($A584=\"\",\"\",IF(VLOOKUP($G584,$H$11:$DN$1000,101,FALSE)=\"\",\"No\",IF(LEFT(VLOOKUP($G584,$H$11:$DN$1000,101,FALSE),3)=\"The\",EG584,VLOOKUP(VLOOKUP($G584,$H$11:$DN$1000,101,FALSE),DeclMatrix!$A$2:$F$5,VLOOKUP('Enrollment Form'!$B584,DeclMatrix!$A$8:$B$12,2,FALSE),FALSE))))","v":""},{"$f":"IF($A584=\"\",\"\",IF(VLOOKUP($G584,$H$11:$DN$1000,106,FALSE)=\"\",\"No\",IF(LEFT(VLOOKUP($G584,$H$11:$DN$1000,106,FALSE),3)=\"The\",EH584,VLOOKUP(VLOOKUP($G584,$H$11:$DN$1000,106,FALSE),DeclMatrix!$A$2:$F$5,VLOOKUP('Enrollment Form'!$B584,DeclMatrix!$A$8:$B$12,2,FALSE),FALSE))))","v":""},{"$f":"IF($A584=\"\",\"\",IF(VLOOKUP($G584,$H$11:$DN$1000,111,FALSE)=\"\",\"No\",IF(LEFT(VLOOKUP($G584,$H$11:$DN$1000,111,FALSE),3)=\"The\",EI584,VLOOKUP(VLOOKUP($G584,$H$11:$DN$1000,111,FALSE),DeclMatrix!$A$2:$F$5,VLOOKUP('Enrollment Form'!$B584,DeclMatrix!$A$8:$B$12,2,FALSE),FALSE))))","v":""},"",null,"","","","","","","","","","","",""]
["",{"$nulls":5},"","",{"$nulls":18},"","","","",{"$nulls":30},"","","","",{"$nulls":60},"",{"$f":"IF($A585=\"\",\"\",IF(VLOOKUP($G585,$H$11:$DN$1000,96,FALSE)=\"\",\"No\",IF(LEFT(VLOOKUP($G585,$H$11:$DN$1000,96,FALSE),3)=\"The\",EF585,VLOOKUP(VLOOKUP($G585,$H$11:$DN$1000,96,FALSE),DeclMatrix!$A$2:$F$5,VLOOKUP('Enrollment Form'!$B585,DeclMatrix!$A$8:$B$12,2,FALSE),FALSE))))","v":""},{"$f":"IF($A585=\"\",\"\",IF(VLOOKUP($G585,$H$11:$DN$1000,101,FALSE)=\"\",\"No\",IF(LEFT(VLOOKUP($G585,$H$11:$DN$1000,101,FALSE),3)=\"The\",EG585,VLOOKUP(VLOOKUP($G585,$H$11:$DN$1000,101,FALSE),DeclMatrix!$A$2:$F$5,VLOOKUP('Enrollment Form'!$B585,DeclMatrix!$A$8:$B$12,2,FALSE),FALSE))))","v":""},{"$f":"IF($A585=\"\",\"\",IF(VLOOKUP($G585,$H$11:$DN$1000,106,FALSE)=\"\",\"No\",IF(LEFT(VLOOKUP($G585,$H$11:$DN$1000,106,FALSE),3)=\"The\",EH585,VLOOKUP(VLOOKUP($G585,$H$11:$DN$1000,106,FALSE),DeclMatrix!$A$2:$F$5,VLOOKUP('Enrollment Form'!$B585,DeclMatrix!$A$8:$B$12,2,FALSE),FALSE))))","v":""},{"$f":"IF($A585=\"\",\"\",IF(VLOOKUP($G585,$H$11:$DN$1000,111,FALSE)=\"\",\"No\",IF(LEFT(VLOOKUP($G585,$H$11:$DN$1000,111,FALSE),3)=\"The\",EI585,VLOOKUP(VLOOKUP($G585,$H$11:$DN$1000,111,FALSE),DeclMatrix!$A$2:$F$5,VLOOKUP('Enrollment Form'!$B585,DeclMatrix!$A$8:$B$12,2,FALSE),FALSE))))","v":""},"",null,"","","","","","","","","","","",""]
["",{"$nulls":5},"","",{"$nulls":18},"","","","",{"$nulls":30},"","","","",{"$nulls":60},"",{"$f":"IF($A586=\"\",\"\",IF(VLOOKUP($G586,$H$11:$DN$1000,96,FALSE)=\"\",\"No\",IF(LEFT(VLOOKUP($G586,$H$11:$DN$1000,96,FALSE),3)=\"The\",EF586,VLOOKUP(VLOOKUP($G586,$H$11:$DN$1000,96,FALSE),DeclMatrix!$A$2:$F$5,VLOOKUP('Enrollment Form'!$B586,DeclMatrix!$A$8:$B$12,2,FALSE),FALSE))))","v":""},{"$f":"IF($A586=\"\",\"\",IF(VLOOKUP($G586,$H$11:$DN$1000,101,FALSE)=\"\",\"No\",IF(LEFT(VLOOKUP($G586,$H$11:$DN$1000,101,FALSE),3)=\"The\",EG586,VLOOKUP(VLOOKUP($G586,$H$11:$DN$1000,101,FALSE),DeclMatrix!$A$2:$F$5,VLOOKUP('Enrollment Form'!$B586,DeclMatrix!$A$8:$B$12,2,FALSE),FALSE))))","v":""},{"$f":"IF($A586=\"\",\"\",IF(VLOOKUP($G586,$H$11:$DN$1000,106,FALSE)=\"\",\"No\",IF(LEFT(VLOOKUP($G586,$H$11:$DN$1000,106,FALSE),3)=\"The\",EH586,VLOOKUP(VLOOKUP($G586,$H$11:$DN$1000,106,FALSE),DeclMatrix!$A$2:$F$5,VLOOKUP('Enrollment Form'!$B586,DeclMatrix!$A$8:$B$12,2,FALSE),FALSE))))","v":""},{"$f":"IF($A586=\"\",\"\",IF(VLOOKUP($G586,$H$11:$DN$1000,111,FALSE)=\"\",\"No\",IF(LEFT(VLOOKUP($G586,$H$11:$DN$1000,111,FALSE),3)=\"The\",EI586,VLOOKUP(VLOOKUP($G586,$H$11:$DN$1000,111,FALSE),DeclMatrix!$A$2:$F$5,VLOOKUP('Enrollment Form'!$B586,DeclMatrix!$A$8:$B$12,2,FALSE),FALSE))))","v":""},"",null,"","","","","","","","","","","",""]
[{"$f":"IF(LEN($B587)>0,$C$2,\"\")","v":""},{"$nulls":5},"","",{"$nulls":18},"","","","",{"$nulls":30},{"$f":"IF(AND($B587<>\"Subscriber\",$BH587=\"Yes\"),VLOOKUP($G587,$H$11:$Y$1000,15,FALSE),\"\")","v":""},{"$f":"IF(AND($B587<>\"Subscriber\",$BH587=\"Yes\"),VLOOKUP($G587,$H$11:$Y$1000,16,FALSE),\"\")","v":""},{"$f":"IF(AND($B587<>\"Subscriber\",$BH587=\"Yes\"),VLOOKUP($G587,$H$11:$Y$1000,17,FALSE),\"\")","v":""},{"$f":"IF(AND($B587<>\"Subscriber\",$BH587=\"Yes\"),VLOOKUP($G587,$H$11:$Y$1000,18,FALSE),\"\")","v":""},{"$nulls":60},{"$f":"IF($A587=\"\",\"\",IF($B587=\"Subscriber\",$AG587,VLOOKUP($G587,$H$11:$AG$1000,26,FALSE)))","v":""},{"$f":"IF($A587=\"\",\"\",IF(VLOOKUP($G587,$H$11:$DN$1000,96,FALSE)=\"\",\"No\",IF(LEFT(VLOOKUP($G587,$H$11:$DN$1000,96,FALSE),3)=\"The\",EF587,VLOOKUP(VLOOKUP($G587,$H$11:$DN$1000,96,FALSE),DeclMatrix!$A$2:$F$5,VLOOKUP('Enrollment Form'!$B587,DeclMatrix!$A$8:$B$12,2,FALSE),FALSE))))","v":""},{"$f":"IF($A587=\"\",\"\",IF(VLOOKUP($G587,$H$11:$DN$1000,101,FALSE)=\"\",\"No\",IF(LEFT(VLOOKUP($G587,$H$11:$DN$1000,101,FALSE),3)=\"The\",EG587,VLOOKUP(VLOOKUP($G587,$H$11:$DN$1000,101,FALSE),DeclMatrix!$A$2:$F$5,VLOOKUP('Enrollment Form'!$B587,DeclMatrix!$A$8:$B$12,2,FALSE),FALSE))))","v":""},{"$f":"IF($A587=\"\",\"\",IF(VLOOKUP($G587,$H$11:$DN$1000,106,FALSE)=\"\",\"No\",IF(LEFT(VLOOKUP($G587,$H$11:$DN$1000,106,FALSE),3)=\"The\",EH587,VLOOKUP(VLOOKUP($G587,$H$11:$DN$1000,106,FALSE),DeclMatrix!$A$2:$F$5,VLOOKUP('Enrollment Form'!$B587,DeclMatrix!$A$8:$B$12,2,FALSE),FALSE))))","v":""},{"$f":"IF($A587=\"\",\"\",IF(VLOOKUP($G587,$H$11:$DN$1000,111,FALSE)=\"\",\"No\",IF(LEFT(VLOOKUP($G587,$H$11:$DN$1000,111,FALSE),3)=\"The\",EI587,VLOOKUP(VLOOKUP($G587,$H$11:$DN$1000,111,FALSE),DeclMatrix!$A$2:$F$5,VLOOKUP('Enrollment Form'!$B587,DeclMatrix!$A$8:$B$12,2,FALSE),FALSE))))","v":""},"",null,{"$f":"$B587&$G587&$J587","v":""},{"$f":"$B587&$G587&$L587","v":""},{"$f":"$B587&$G587&$N587","v":""},{"$f":"$B587&$G587&$O587","v":""},"","","","",{"$f":"IF($A587=\"\",\"\",IF(AND($B587=\"Subscriber\",$I587<>\"Waive\",$I587<>\"\"),\"Yes\",IF(AND($B587<>\"Subscriber\",$BF587=\"Yes\"),VLOOKUP($G587,$H$11:$EM$1000,133,FALSE),IF(AND($C587=\"Enroll\",VLOOKUP($G588,$H$11:$EM$1000,96,FALSE)<>\"\"),VLOOKUP($DV587,$DW$2:$DX$3,2,FALSE),\"No\"))))","v":""},{"$f":"IF($A587=\"\",\"\",IF(AND($B587=\"Subscriber\",$K587<>\"Waive\",$K587<>\"\"),\"Yes\",IF(AND($B587<>\"Subscriber\",$BF587=\"Yes\"),VLOOKUP($G587,$H$11:$EM$1000,134,FALSE),IF(AND($C587=\"Enroll\",VLOOKUP($G588,$H$11:$EM$1000,101,FALSE)<>\"\"),VLOOKUP($DW587,$DW$2:$DX$3,2,FALSE),\"No\"))))","v":""},{"$f":"IF($A587=\"\",\"\",IF(AND($B587=\"Subscriber\",$M587<>\"Waive\",$M587<>\"\"),\"Yes\",IF(AND($B587<>\"Subscriber\",$BF587=\"Yes\"),VLOOKUP($G587,$H$11:$EM$1000,135,FALSE),IF(AND($C587=\"Enroll\",VLOOKUP($G588,$H$11:$EM$1000,106,FALSE)<>\"\"),VLOOKUP($DX587,$DW$2:$DX$3,2,FALSE),\"No\"))))","v":""},{"$f":"IF($A587=\"\",\"\",IF(AND($B587=\"Subscriber\",$O587<>\"Waive\",$O587<>\"\"),\"Yes\",IF(AND($B587<>\"Subscriber\",$BF587=\"Yes\"),VLOOKUP($G587,$H$11:$EM$1000,136,FALSE),IF(AND($C587=\"Enroll\",VLOOKUP($G588,$H$11:$EM$1000,111,FALSE)<>\"\"),VLOOKUP($DY587,$DW$2:$DX$3,2,FALSE),\"No\"))))","v":""}]
["",{"$nulls":5},{"$f":"IF(A588=\"\",\"\",IF(AND(B588<>\"Subscriber\",B588<>\"\"),G587,\"\"))","v":""},{"$f":"IF(AND(B588=\"Subscriber\",G588<>\"\"),G588,\"\")","v":""},{"$nulls":18},{"$f":"IF(AND($B588=\"Subscriber\",$Z588=\"Yes\"),V588,\"\")","v":""},{"$f":"IF(AND($B588=\"Subscriber\",$Z588=\"Yes\"),W588,\"\")","v":""},{"$f":"IF(AND($B588=\"Subscriber\",$Z588=\"Yes\"),X588,\"\")","v":""},{"$f":"IF(AND($B588=\"Subscriber\",$Z588=\"Yes\"),Y588,\"\")","v":""},{"$nulls":30},"","","","",{"$nulls":60},"",{"$f":"IF($A588=\"\",\"\",IF(VLOOKUP($G588,$H$11:$DN$1000,96,FALSE)=\"\",\"No\",IF(LEFT(VLOOKUP($G588,$H$11:$DN$1000,96,FALSE),3)=\"The\",EF588,VLOOKUP(VLOOKUP($G588,$H$11:$DN$1000,96,FALSE),DeclMatrix!$A$2:$F$5,VLOOKUP('Enrollment Form'!$B588,DeclMatrix!$A$8:$B$12,2,FALSE),FALSE))))","v":""},{"$f":"IF($A588=\"\",\"\",IF(VLOOKUP($G588,$H$11:$DN$1000,101,FALSE)=\"\",\"No\",IF(LEFT(VLOOKUP($G588,$H$11:$DN$1000,101,FALSE),3)=\"The\",EG588,VLOOKUP(VLOOKUP($G588,$H$11:$DN$1000,101,FALSE),DeclMatrix!$A$2:$F$5,VLOOKUP('Enrollment Form'!$B588,DeclMatrix!$A$8:$B$12,2,FALSE),FALSE))))","v":""},{"$f":"IF($A588=\"\",\"\",IF(VLOOKUP($G588,$H$11:$DN$1000,106,FALSE)=\"\",\"No\",IF(LEFT(VLOOKUP($G588,$H$11:$DN$1000,106,FALSE),3)=\"The\",EH588,VLOOKUP(VLOOKUP($G588,$H$11:$DN$1000,106,FALSE),DeclMatrix!$A$2:$F$5,VLOOKUP('Enrollment Form'!$B588,DeclMatrix!$A$8:$B$12,2,FALSE),FALSE))))","v":""},{"$f":"IF($A588=\"\",\"\",IF(VLOOKUP($G588,$H$11:$DN$1000,111,FALSE)=\"\",\"No\",IF(LEFT(VLOOKUP($G588,$H$11:$DN$1000,111,FALSE),3)=\"The\",EI588,VLOOKUP(VLOOKUP($G588,$H$11:$DN$1000,111,FALSE),DeclMatrix!$A$2:$F$5,VLOOKUP('Enrollment Form'!$B588,DeclMatrix!$A$8:$B$12,2,FALSE),FALSE))))","v":""},{"$f":"IF(A588<>\"\",\"1X\",\"\")","v":""},null,"","","","",{"$f":"IF($A588=\"\",\"\",IF($B588=\"Subscriber\",\"No\",IF(OR($CY588=\"\",$CY588=\"No\"),\"No\",\"Yes\")))","v":""},{"$f":"IF($A588=\"\",\"\",IF($B588=\"Subscriber\",\"No\",IF(OR($DD588=\"\",$DD588=\"No\"),\"No\",\"Yes\")))","v":""},{"$f":"IF($A588=\"\",\"\",IF($B588=\"Subscriber\",\"No\",IF(OR($DI588=\"\",$DI588=\"No\"),\"No\",\"Yes\")))","v":""},{"$f":"IF($A588=\"\",\"\",IF($B588=\"Subscriber\",\"No\",IF(OR($DN588=\"\",$DN588=\"No\"),\"No\",\"Yes\")))","v":""},"","","",""]
["",{"$nulls":5},"","",{"$nulls":18},"","","","",{"$nulls":30},"","","","",{"$nulls":60},"",{"$f":"IF($A589=\"\",\"\",IF(VLOOKUP($G589,$H$11:$DN$1000,96,FALSE)=\"\",\"No\",IF(LEFT(VLOOKUP($G589,$H$11:$DN$1000,96,FALSE),3)=\"The\",EF589,VLOOKUP(VLOOKUP($G589,$H$11:$DN$1000,96,FALSE),DeclMatrix!$A$2:$F$5,VLOOKUP('Enrollment Form'!$B589,DeclMatrix!$A$8:$B$12,2,FALSE),FALSE))))","v":""},{"$f":"IF($A589=\"\",\"\",IF(VLOOKUP($G589,$H$11:$DN$1000,101,FALSE)=\"\",\"No\",IF(LEFT(VLOOKUP($G589,$H$11:$DN$1000,101,FALSE),3)=\"The\",EG589,VLOOKUP(VLOOKUP($G589,$H$11:$DN$1000,101,FALSE),DeclMatrix!$A$2:$F$5,VLOOKUP('Enrollment Form'!$B589,DeclMatrix!$A$8:$B$12,2,FALSE),FALSE))))","v":""},{"$f":"IF($A589=\"\",\"\",IF(VLOOKUP($G589,$H$11:$DN$1000,106,FALSE)=\"\",\"No\",IF(LEFT(VLOOKUP($G589,$H$11:$DN$1000,106,FALSE),3)=\"The\",EH589,VLOOKUP(VLOOKUP($G589,$H$11:$DN$1000,106,FALSE),DeclMatrix!$A$2:$F$5,VLOOKUP('Enrollment Form'!$B589,DeclMatrix!$A$8:$B$12,2,FALSE),FALSE))))","v":""},{"$f":"IF($A589=\"\",\"\",IF(VLOOKUP($G589,$H$11:$DN$1000,111,FALSE)=\"\",\"No\",IF(LEFT(VLOOKUP($G589,$H$11:$DN$1000,111,FALSE),3)=\"The\",EI589,VLOOKUP(VLOOKUP($G589,$H$11:$DN$1000,111,FALSE),DeclMatrix!$A$2:$F$5,VLOOKUP('Enrollment Form'!$B589,DeclMatrix!$A$8:$B$12,2,FALSE),FALSE))))","v":""},"",null,"","","","","","","","","","","",""]
["",{"$nulls":5},"","",{"$nulls":18},"","","","",{"$nulls":30},"","","","",{"$nulls":60},"",{"$f":"IF($A590=\"\",\"\",IF(VLOOKUP($G590,$H$11:$DN$1000,96,FALSE)=\"\",\"No\",IF(LEFT(VLOOKUP($G590,$H$11:$DN$1000,96,FALSE),3)=\"The\",EF590,VLOOKUP(VLOOKUP($G590,$H$11:$DN$1000,96,FALSE),DeclMatrix!$A$2:$F$5,VLOOKUP('Enrollment Form'!$B590,DeclMatrix!$A$8:$B$12,2,FALSE),FALSE))))","v":""},{"$f":"IF($A590=\"\",\"\",IF(VLOOKUP($G590,$H$11:$DN$1000,101,FALSE)=\"\",\"No\",IF(LEFT(VLOOKUP($G590,$H$11:$DN$1000,101,FALSE),3)=\"The\",EG590,VLOOKUP(VLOOKUP($G590,$H$11:$DN$1000,101,FALSE),DeclMatrix!$A$2:$F$5,VLOOKUP('Enrollment Form'!$B590,DeclMatrix!$A$8:$B$12,2,FALSE),FALSE))))","v":""},{"$f":"IF($A590=\"\",\"\",IF(VLOOKUP($G590,$H$11:$DN$1000,106,FALSE)=\"\",\"No\",IF(LEFT(VLOOKUP($G590,$H$11:$DN$1000,106,FALSE),3)=\"The\",EH590,VLOOKUP(VLOOKUP($G590,$H$11:$DN$1000,106,FALSE),DeclMatrix!$A$2:$F$5,VLOOKUP('Enrollment Form'!$B590,DeclMatrix!$A$8:$B$12,2,FALSE),FALSE))))","v":""},{"$f":"IF($A590=\"\",\"\",IF(VLOOKUP($G590,$H$11:$DN$1000,111,FALSE)=\"\",\"No\",IF(LEFT(VLOOKUP($G590,$H$11:$DN$1000,111,FALSE),3)=\"The\",EI590,VLOOKUP(VLOOKUP($G590,$H$11:$DN$1000,111,FALSE),DeclMatrix!$A$2:$F$5,VLOOKUP('Enrollment Form'!$B590,DeclMatrix!$A$8:$B$12,2,FALSE),FALSE))))","v":""},"",null,"","","","","","","","","","","",""]
["",{"$nulls":5},"","",{"$nulls":18},"","","","",{"$nulls":30},"","","","",{"$nulls":60},"",{"$f":"IF($A591=\"\",\"\",IF(VLOOKUP($G591,$H$11:$DN$1000,96,FALSE)=\"\",\"No\",IF(LEFT(VLOOKUP($G591,$H$11:$DN$1000,96,FALSE),3)=\"The\",EF591,VLOOKUP(VLOOKUP($G591,$H$11:$DN$1000,96,FALSE),DeclMatrix!$A$2:$F$5,VLOOKUP('Enrollment Form'!$B591,DeclMatrix!$A$8:$B$12,2,FALSE),FALSE))))","v":""},{"$f":"IF($A591=\"\",\"\",IF(VLOOKUP($G591,$H$11:$DN$1000,101,FALSE)=\"\",\"No\",IF(LEFT(VLOOKUP($G591,$H$11:$DN$1000,101,FALSE),3)=\"The\",EG591,VLOOKUP(VLOOKUP($G591,$H$11:$DN$1000,101,FALSE),DeclMatrix!$A$2:$F$5,VLOOKUP('Enrollment Form'!$B591,DeclMatrix!$A$8:$B$12,2,FALSE),FALSE))))","v":""},{"$f":"IF($A591=\"\",\"\",IF(VLOOKUP($G591,$H$11:$DN$1000,106,FALSE)=\"\",\"No\",IF(LEFT(VLOOKUP($G591,$H$11:$DN$1000,106,FALSE),3)=\"The\",EH591,VLOOKUP(VLOOKUP($G591,$H$11:$DN$1000,106,FALSE),DeclMatrix!$A$2:$F$5,VLOOKUP('Enrollment Form'!$B591,DeclMatrix!$A$8:$B$12,2,FALSE),FALSE))))","v":""},{"$f":"IF($A591=\"\",\"\",IF(VLOOKUP($G591,$H$11:$DN$1000,111,FALSE)=\"\",\"No\",IF(LEFT(VLOOKUP($G591,$H$11:$DN$1000,111,FALSE),3)=\"The\",EI591,VLOOKUP(VLOOKUP($G591,$H$11:$DN$1000,111,FALSE),DeclMatrix!$A$2:$F$5,VLOOKUP('Enrollment Form'!$B591,DeclMatrix!$A$8:$B$12,2,FALSE),FALSE))))","v":""},"",null,"","","","","","","","","","","",""]
["",{"$nulls":5},"","",{"$nulls":18},"","","","",{"$nulls":30},"","","","",{"$nulls":60},"",{"$f":"IF($A592=\"\",\"\",IF(VLOOKUP($G592,$H$11:$DN$1000,96,FALSE)=\"\",\"No\",IF(LEFT(VLOOKUP($G592,$H$11:$DN$1000,96,FALSE),3)=\"The\",EF592,VLOOKUP(VLOOKUP($G592,$H$11:$DN$1000,96,FALSE),DeclMatrix!$A$2:$F$5,VLOOKUP('Enrollment Form'!$B592,DeclMatrix!$A$8:$B$12,2,FALSE),FALSE))))","v":""},{"$f":"IF($A592=\"\",\"\",IF(VLOOKUP($G592,$H$11:$DN$1000,101,FALSE)=\"\",\"No\",IF(LEFT(VLOOKUP($G592,$H$11:$DN$1000,101,FALSE),3)=\"The\",EG592,VLOOKUP(VLOOKUP($G592,$H$11:$DN$1000,101,FALSE),DeclMatrix!$A$2:$F$5,VLOOKUP('Enrollment Form'!$B592,DeclMatrix!$A$8:$B$12,2,FALSE),FALSE))))","v":""},{"$f":"IF($A592=\"\",\"\",IF(VLOOKUP($G592,$H$11:$DN$1000,106,FALSE)=\"\",\"No\",IF(LEFT(VLOOKUP($G592,$H$11:$DN$1000,106,FALSE),3)=\"The\",EH592,VLOOKUP(VLOOKUP($G592,$H$11:$DN$1000,106,FALSE),DeclMatrix!$A$2:$F$5,VLOOKUP('Enrollment Form'!$B592,DeclMatrix!$A$8:$B$12,2,FALSE),FALSE))))","v":""},{"$f":"IF($A592=\"\",\"\",IF(VLOOKUP($G592,$H$11:$DN$1000,111,FALSE)=\"\",\"No\",IF(LEFT(VLOOKUP($G592,$H$11:$DN$1000,111,FALSE),3)=\"The\",EI592,VLOOKUP(VLOOKUP($G592,$H$11:$DN$1000,111,FALSE),DeclMatrix!$A$2:$F$5,VLOOKUP('Enrollment Form'!$B592,DeclMatrix!$A$8:$B$12,2,FALSE),FALSE))))","v":""},"",null,"","","","","","","","","","","",""]
["",{"$nulls":5},"","",{"$nulls":18},"","","","",{"$nulls":30},"","","","",{"$nulls":60},"",{"$f":"IF($A593=\"\",\"\",IF(VLOOKUP($G593,$H$11:$DN$1000,96,FALSE)=\"\",\"No\",IF(LEFT(VLOOKUP($G593,$H$11:$DN$1000,96,FALSE),3)=\"The\",EF593,VLOOKUP(VLOOKUP($G593,$H$11:$DN$1000,96,FALSE),DeclMatrix!$A$2:$F$5,VLOOKUP('Enrollment Form'!$B593,DeclMatrix!$A$8:$B$12,2,FALSE),FALSE))))","v":""},{"$f":"IF($A593=\"\",\"\",IF(VLOOKUP($G593,$H$11:$DN$1000,101,FALSE)=\"\",\"No\",IF(LEFT(VLOOKUP($G593,$H$11:$DN$1000,101,FALSE),3)=\"The\",EG593,VLOOKUP(VLOOKUP($G593,$H$11:$DN$1000,101,FALSE),DeclMatrix!$A$2:$F$5,VLOOKUP('Enrollment Form'!$B593,DeclMatrix!$A$8:$B$12,2,FALSE),FALSE))))","v":""},{"$f":"IF($A593=\"\",\"\",IF(VLOOKUP($G593,$H$11:$DN$1000,106,FALSE)=\"\",\"No\",IF(LEFT(VLOOKUP($G593,$H$11:$DN$1000,106,FALSE),3)=\"The\",EH593,VLOOKUP(VLOOKUP($G593,$H$11:$DN$1000,106,FALSE),DeclMatrix!$A$2:$F$5,VLOOKUP('Enrollment Form'!$B593,DeclMatrix!$A$8:$B$12,2,FALSE),FALSE))))","v":""},{"$f":"IF($A593=\"\",\"\",IF(VLOOKUP($G593,$H$11:$DN$1000,111,FALSE)=\"\",\"No\",IF(LEFT(VLOOKUP($G593,$H$11:$DN$1000,111,FALSE),3)=\"The\",EI593,VLOOKUP(VLOOKUP($G593,$H$11:$DN$1000,111,FALSE),DeclMatrix!$A$2:$F$5,VLOOKUP('Enrollment Form'!$B593,DeclMatrix!$A$8:$B$12,2,FALSE),FALSE))))","v":""},"",null,"","","","","","","","","","","",""]
["",{"$nulls":5},"","",{"$nulls":18},"","","","",{"$nulls":30},"","","","",{"$nulls":60},"",{"$f":"IF($A594=\"\",\"\",IF(VLOOKUP($G594,$H$11:$DN$1000,96,FALSE)=\"\",\"No\",IF(LEFT(VLOOKUP($G594,$H$11:$DN$1000,96,FALSE),3)=\"The\",EF594,VLOOKUP(VLOOKUP($G594,$H$11:$DN$1000,96,FALSE),DeclMatrix!$A$2:$F$5,VLOOKUP('Enrollment Form'!$B594,DeclMatrix!$A$8:$B$12,2,FALSE),FALSE))))","v":""},{"$f":"IF($A594=\"\",\"\",IF(VLOOKUP($G594,$H$11:$DN$1000,101,FALSE)=\"\",\"No\",IF(LEFT(VLOOKUP($G594,$H$11:$DN$1000,101,FALSE),3)=\"The\",EG594,VLOOKUP(VLOOKUP($G594,$H$11:$DN$1000,101,FALSE),DeclMatrix!$A$2:$F$5,VLOOKUP('Enrollment Form'!$B594,DeclMatrix!$A$8:$B$12,2,FALSE),FALSE))))","v":""},{"$f":"IF($A594=\"\",\"\",IF(VLOOKUP($G594,$H$11:$DN$1000,106,FALSE)=\"\",\"No\",IF(LEFT(VLOOKUP($G594,$H$11:$DN$1000,106,FALSE),3)=\"The\",EH594,VLOOKUP(VLOOKUP($G594,$H$11:$DN$1000,106,FALSE),DeclMatrix!$A$2:$F$5,VLOOKUP('Enrollment Form'!$B594,DeclMatrix!$A$8:$B$12,2,FALSE),FALSE))))","v":""},{"$f":"IF($A594=\"\",\"\",IF(VLOOKUP($G594,$H$11:$DN$1000,111,FALSE)=\"\",\"No\",IF(LEFT(VLOOKUP($G594,$H$11:$DN$1000,111,FALSE),3)=\"The\",EI594,VLOOKUP(VLOOKUP($G594,$H$11:$DN$1000,111,FALSE),DeclMatrix!$A$2:$F$5,VLOOKUP('Enrollment Form'!$B594,DeclMatrix!$A$8:$B$12,2,FALSE),FALSE))))","v":""},"",null,"","","","","","","","","","","",""]
["",{"$nulls":5},"","",{"$nulls":18},"","","","",{"$nulls":30},"","","","",{"$nulls":60},"",{"$f":"IF($A595=\"\",\"\",IF(VLOOKUP($G595,$H$11:$DN$1000,96,FALSE)=\"\",\"No\",IF(LEFT(VLOOKUP($G595,$H$11:$DN$1000,96,FALSE),3)=\"The\",EF595,VLOOKUP(VLOOKUP($G595,$H$11:$DN$1000,96,FALSE),DeclMatrix!$A$2:$F$5,VLOOKUP('Enrollment Form'!$B595,DeclMatrix!$A$8:$B$12,2,FALSE),FALSE))))","v":""},{"$f":"IF($A595=\"\",\"\",IF(VLOOKUP($G595,$H$11:$DN$1000,101,FALSE)=\"\",\"No\",IF(LEFT(VLOOKUP($G595,$H$11:$DN$1000,101,FALSE),3)=\"The\",EG595,VLOOKUP(VLOOKUP($G595,$H$11:$DN$1000,101,FALSE),DeclMatrix!$A$2:$F$5,VLOOKUP('Enrollment Form'!$B595,DeclMatrix!$A$8:$B$12,2,FALSE),FALSE))))","v":""},{"$f":"IF($A595=\"\",\"\",IF(VLOOKUP($G595,$H$11:$DN$1000,106,FALSE)=\"\",\"No\",IF(LEFT(VLOOKUP($G595,$H$11:$DN$1000,106,FALSE),3)=\"The\",EH595,VLOOKUP(VLOOKUP($G595,$H$11:$DN$1000,106,FALSE),DeclMatrix!$A$2:$F$5,VLOOKUP('Enrollment Form'!$B595,DeclMatrix!$A$8:$B$12,2,FALSE),FALSE))))","v":""},{"$f":"IF($A595=\"\",\"\",IF(VLOOKUP($G595,$H$11:$DN$1000,111,FALSE)=\"\",\"No\",IF(LEFT(VLOOKUP($G595,$H$11:$DN$1000,111,FALSE),3)=\"The\",EI595,VLOOKUP(VLOOKUP($G595,$H$11:$DN$1000,111,FALSE),DeclMatrix!$A$2:$F$5,VLOOKUP('Enrollment Form'!$B595,DeclMatrix!$A$8:$B$12,2,FALSE),FALSE))))","v":""},"",null,"","","","","","","","","","","",""]
["",{"$nulls":5},"","",{"$nulls":18},"","","","",{"$nulls":30},"","","","",{"$nulls":60},"",{"$f":"IF($A596=\"\",\"\",IF(VLOOKUP($G596,$H$11:$DN$1000,96,FALSE)=\"\",\"No\",IF(LEFT(VLOOKUP($G596,$H$11:$DN$1000,96,FALSE),3)=\"The\",EF596,VLOOKUP(VLOOKUP($G596,$H$11:$DN$1000,96,FALSE),DeclMatrix!$A$2:$F$5,VLOOKUP('Enrollment Form'!$B596,DeclMatrix!$A$8:$B$12,2,FALSE),FALSE))))","v":""},{"$f":"IF($A596=\"\",\"\",IF(VLOOKUP($G596,$H$11:$DN$1000,101,FALSE)=\"\",\"No\",IF(LEFT(VLOOKUP($G596,$H$11:$DN$1000,101,FALSE),3)=\"The\",EG596,VLOOKUP(VLOOKUP($G596,$H$11:$DN$1000,101,FALSE),DeclMatrix!$A$2:$F$5,VLOOKUP('Enrollment Form'!$B596,DeclMatrix!$A$8:$B$12,2,FALSE),FALSE))))","v":""},{"$f":"IF($A596=\"\",\"\",IF(VLOOKUP($G596,$H$11:$DN$1000,106,FALSE)=\"\",\"No\",IF(LEFT(VLOOKUP($G596,$H$11:$DN$1000,106,FALSE),3)=\"The\",EH596,VLOOKUP(VLOOKUP($G596,$H$11:$DN$1000,106,FALSE),DeclMatrix!$A$2:$F$5,VLOOKUP('Enrollment Form'!$B596,DeclMatrix!$A$8:$B$12,2,FALSE),FALSE))))","v":""},{"$f":"IF($A596=\"\",\"\",IF(VLOOKUP($G596,$H$11:$DN$1000,111,FALSE)=\"\",\"No\",IF(LEFT(VLOOKUP($G596,$H$11:$DN$1000,111,FALSE),3)=\"The\",EI596,VLOOKUP(VLOOKUP($G596,$H$11:$DN$1000,111,FALSE),DeclMatrix!$A$2:$F$5,VLOOKUP('Enrollment Form'!$B596,DeclMatrix!$A$8:$B$12,2,FALSE),FALSE))))","v":""},"",null,"","","","","","","","","","","",""]
["",{"$nulls":5},"","",{"$nulls":18},"","","","",{"$nulls":30},"","","","",{"$nulls":60},"",{"$f":"IF($A597=\"\",\"\",IF(VLOOKUP($G597,$H$11:$DN$1000,96,FALSE)=\"\",\"No\",IF(LEFT(VLOOKUP($G597,$H$11:$DN$1000,96,FALSE),3)=\"The\",EF597,VLOOKUP(VLOOKUP($G597,$H$11:$DN$1000,96,FALSE),DeclMatrix!$A$2:$F$5,VLOOKUP('Enrollment Form'!$B597,DeclMatrix!$A$8:$B$12,2,FALSE),FALSE))))","v":""},{"$f":"IF($A597=\"\",\"\",IF(VLOOKUP($G597,$H$11:$DN$1000,101,FALSE)=\"\",\"No\",IF(LEFT(VLOOKUP($G597,$H$11:$DN$1000,101,FALSE),3)=\"The\",EG597,VLOOKUP(VLOOKUP($G597,$H$11:$DN$1000,101,FALSE),DeclMatrix!$A$2:$F$5,VLOOKUP('Enrollment Form'!$B597,DeclMatrix!$A$8:$B$12,2,FALSE),FALSE))))","v":""},{"$f":"IF($A597=\"\",\"\",IF(VLOOKUP($G597,$H$11:$DN$1000,106,FALSE)=\"\",\"No\",IF(LEFT(VLOOKUP($G597,$H$11:$DN$1000,106,FALSE),3)=\"The\",EH597,VLOOKUP(VLOOKUP($G597,$H$11:$DN$1000,106,FALSE),DeclMatrix!$A$2:$F$5,VLOOKUP('Enrollment Form'!$B597,DeclMatrix!$A$8:$B$12,2,FALSE),FALSE))))","v":""},{"$f":"IF($A597=\"\",\"\",IF(VLOOKUP($G597,$H$11:$DN$1000,111,FALSE)=\"\",\"No\",IF(LEFT(VLOOKUP($G597,$H$11:$DN$1000,111,FALSE),3)=\"The\",EI597,VLOOKUP(VLOOKUP($G597,$H$11:$DN$1000,111,FALSE),DeclMatrix!$A$2:$F$5,VLOOKUP('Enrollment Form'!$B597,DeclMatrix!$A$8:$B$12,2,FALSE),FALSE))))","v":""},"",null,"","","","","","","","","","","",""]
["",{"$nulls":5},"","",{"$nulls":18},"","","","",{"$nulls":30},"","","","",{"$nulls":60},"",{"$f":"IF($A598=\"\",\"\",IF(VLOOKUP($G598,$H$11:$DN$1000,96,FALSE)=\"\",\"No\",IF(LEFT(VLOOKUP($G598,$H$11:$DN$1000,96,FALSE),3)=\"The\",EF598,VLOOKUP(VLOOKUP($G598,$H$11:$DN$1000,96,FALSE),DeclMatrix!$A$2:$F$5,VLOOKUP('Enrollment Form'!$B598,DeclMatrix!$A$8:$B$12,2,FALSE),FALSE))))","v":""},{"$f":"IF($A598=\"\",\"\",IF(VLOOKUP($G598,$H$11:$DN$1000,101,FALSE)=\"\",\"No\",IF(LEFT(VLOOKUP($G598,$H$11:$DN$1000,101,FALSE),3)=\"The\",EG598,VLOOKUP(VLOOKUP($G598,$H$11:$DN$1000,101,FALSE),DeclMatrix!$A$2:$F$5,VLOOKUP('Enrollment Form'!$B598,DeclMatrix!$A$8:$B$12,2,FALSE),FALSE))))","v":""},{"$f":"IF($A598=\"\",\"\",IF(VLOOKUP($G598,$H$11:$DN$1000,106,FALSE)=\"\",\"No\",IF(LEFT(VLOOKUP($G598,$H$11:$DN$1000,106,FALSE),3)=\"The\",EH598,VLOOKUP(VLOOKUP($G598,$H$11:$DN$1000,106,FALSE),DeclMatrix!$A$2:$F$5,VLOOKUP('Enrollment Form'!$B598,DeclMatrix!$A$8:$B$12,2,FALSE),FALSE))))","v":""},{"$f":"IF($A598=\"\",\"\",IF(VLOOKUP($G598,$H$11:$DN$1000,111,FALSE)=\"\",\"No\",IF(LEFT(VLOOKUP($G598,$H$11:$DN$1000,111,FALSE),3)=\"The\",EI598,VLOOKUP(VLOOKUP($G598,$H$11:$DN$1000,111,FALSE),DeclMatrix!$A$2:$F$5,VLOOKUP('Enrollment Form'!$B598,DeclMatrix!$A$8:$B$12,2,FALSE),FALSE))))","v":""},"",null,"","","","","","","","","","","",""]
["",{"$nulls":5},"","",{"$nulls":18},"","","","",{"$nulls":30},"","","","",{"$nulls":60},"",{"$f":"IF($A599=\"\",\"\",IF(VLOOKUP($G599,$H$11:$DN$1000,96,FALSE)=\"\",\"No\",IF(LEFT(VLOOKUP($G599,$H$11:$DN$1000,96,FALSE),3)=\"The\",EF599,VLOOKUP(VLOOKUP($G599,$H$11:$DN$1000,96,FALSE),DeclMatrix!$A$2:$F$5,VLOOKUP('Enrollment Form'!$B599,DeclMatrix!$A$8:$B$12,2,FALSE),FALSE))))","v":""},{"$f":"IF($A599=\"\",\"\",IF(VLOOKUP($G599,$H$11:$DN$1000,101,FALSE)=\"\",\"No\",IF(LEFT(VLOOKUP($G599,$H$11:$DN$1000,101,FALSE),3)=\"The\",EG599,VLOOKUP(VLOOKUP($G599,$H$11:$DN$1000,101,FALSE),DeclMatrix!$A$2:$F$5,VLOOKUP('Enrollment Form'!$B599,DeclMatrix!$A$8:$B$12,2,FALSE),FALSE))))","v":""},{"$f":"IF($A599=\"\",\"\",IF(VLOOKUP($G599,$H$11:$DN$1000,106,FALSE)=\"\",\"No\",IF(LEFT(VLOOKUP($G599,$H$11:$DN$1000,106,FALSE),3)=\"The\",EH599,VLOOKUP(VLOOKUP($G599,$H$11:$DN$1000,106,FALSE),DeclMatrix!$A$2:$F$5,VLOOKUP('Enrollment Form'!$B599,DeclMatrix!$A$8:$B$12,2,FALSE),FALSE))))","v":""},{"$f":"IF($A599=\"\",\"\",IF(VLOOKUP($G599,$H$11:$DN$1000,111,FALSE)=\"\",\"No\",IF(LEFT(VLOOKUP($G599,$H$11:$DN$1000,111,FALSE),3)=\"The\",EI599,VLOOKUP(VLOOKUP($G599,$H$11:$DN$1000,111,FALSE),DeclMatrix!$A$2:$F$5,VLOOKUP('Enrollment Form'!$B599,DeclMatrix!$A$8:$B$12,2,FALSE),FALSE))))","v":""},"",null,"","","","","","","","","","","",""]
["",{"$nulls":5},"","",{"$nulls":18},"","","","",{"$nulls":30},"","","","",{"$nulls":60},"",{"$f":"IF($A600=\"\",\"\",IF(VLOOKUP($G600,$H$11:$DN$1000,96,FALSE)=\"\",\"No\",IF(LEFT(VLOOKUP($G600,$H$11:$DN$1000,96,FALSE),3)=\"The\",EF600,VLOOKUP(VLOOKUP($G600,$H$11:$DN$1000,96,FALSE),DeclMatrix!$A$2:$F$5,VLOOKUP('Enrollment Form'!$B600,DeclMatrix!$A$8:$B$12,2,FALSE),FALSE))))","v":""},{"$f":"IF($A600=\"\",\"\",IF(VLOOKUP($G600,$H$11:$DN$1000,101,FALSE)=\"\",\"No\",IF(LEFT(VLOOKUP($G600,$H$11:$DN$1000,101,FALSE),3)=\"The\",EG600,VLOOKUP(VLOOKUP($G600,$H$11:$DN$1000,101,FALSE),DeclMatrix!$A$2:$F$5,VLOOKUP('Enrollment Form'!$B600,DeclMatrix!$A$8:$B$12,2,FALSE),FALSE))))","v":""},{"$f":"IF($A600=\"\",\"\",IF(VLOOKUP($G600,$H$11:$DN$1000,106,FALSE)=\"\",\"No\",IF(LEFT(VLOOKUP($G600,$H$11:$DN$1000,106,FALSE),3)=\"The\",EH600,VLOOKUP(VLOOKUP($G600,$H$11:$DN$1000,106,FALSE),DeclMatrix!$A$2:$F$5,VLOOKUP('Enrollment Form'!$B600,DeclMatrix!$A$8:$B$12,2,FALSE),FALSE))))","v":""},{"$f":"IF($A600=\"\",\"\",IF(VLOOKUP($G600,$H$11:$DN$1000,111,FALSE)=\"\",\"No\",IF(LEFT(VLOOKUP($G600,$H$11:$DN$1000,111,FALSE),3)=\"The\",EI600,VLOOKUP(VLOOKUP($G600,$H$11:$DN$1000,111,FALSE),DeclMatrix!$A$2:$F$5,VLOOKUP('Enrollment Form'!$B600,DeclMatrix!$A$8:$B$12,2,FALSE),FALSE))))","v":""},"",null,"","","","","","","","","","","",""]
["",{"$nulls":5},"","",{"$nulls":18},"","","","",{"$nulls":30},"","","","",{"$nulls":60},"",{"$f":"IF($A601=\"\",\"\",IF(VLOOKUP($G601,$H$11:$DN$1000,96,FALSE)=\"\",\"No\",IF(LEFT(VLOOKUP($G601,$H$11:$DN$1000,96,FALSE),3)=\"The\",EF601,VLOOKUP(VLOOKUP($G601,$H$11:$DN$1000,96,FALSE),DeclMatrix!$A$2:$F$5,VLOOKUP('Enrollment Form'!$B601,DeclMatrix!$A$8:$B$12,2,FALSE),FALSE))))","v":""},{"$f":"IF($A601=\"\",\"\",IF(VLOOKUP($G601,$H$11:$DN$1000,101,FALSE)=\"\",\"No\",IF(LEFT(VLOOKUP($G601,$H$11:$DN$1000,101,FALSE),3)=\"The\",EG601,VLOOKUP(VLOOKUP($G601,$H$11:$DN$1000,101,FALSE),DeclMatrix!$A$2:$F$5,VLOOKUP('Enrollment Form'!$B601,DeclMatrix!$A$8:$B$12,2,FALSE),FALSE))))","v":""},{"$f":"IF($A601=\"\",\"\",IF(VLOOKUP($G601,$H$11:$DN$1000,106,FALSE)=\"\",\"No\",IF(LEFT(VLOOKUP($G601,$H$11:$DN$1000,106,FALSE),3)=\"The\",EH601,VLOOKUP(VLOOKUP($G601,$H$11:$DN$1000,106,FALSE),DeclMatrix!$A$2:$F$5,VLOOKUP('Enrollment Form'!$B601,DeclMatrix!$A$8:$B$12,2,FALSE),FALSE))))","v":""},{"$f":"IF($A601=\"\",\"\",IF(VLOOKUP($G601,$H$11:$DN$1000,111,FALSE)=\"\",\"No\",IF(LEFT(VLOOKUP($G601,$H$11:$DN$1000,111,FALSE),3)=\"The\",EI601,VLOOKUP(VLOOKUP($G601,$H$11:$DN$1000,111,FALSE),DeclMatrix!$A$2:$F$5,VLOOKUP('Enrollment Form'!$B601,DeclMatrix!$A$8:$B$12,2,FALSE),FALSE))))","v":""},"",null,"","","","","","","","","","","",""]
["",{"$nulls":5},"","",{"$nulls":18},"","","","",{"$nulls":30},"","","","",{"$nulls":60},"",{"$f":"IF($A602=\"\",\"\",IF(VLOOKUP($G602,$H$11:$DN$1000,96,FALSE)=\"\",\"No\",IF(LEFT(VLOOKUP($G602,$H$11:$DN$1000,96,FALSE),3)=\"The\",EF602,VLOOKUP(VLOOKUP($G602,$H$11:$DN$1000,96,FALSE),DeclMatrix!$A$2:$F$5,VLOOKUP('Enrollment Form'!$B602,DeclMatrix!$A$8:$B$12,2,FALSE),FALSE))))","v":""},{"$f":"IF($A602=\"\",\"\",IF(VLOOKUP($G602,$H$11:$DN$1000,101,FALSE)=\"\",\"No\",IF(LEFT(VLOOKUP($G602,$H$11:$DN$1000,101,FALSE),3)=\"The\",EG602,VLOOKUP(VLOOKUP($G602,$H$11:$DN$1000,101,FALSE),DeclMatrix!$A$2:$F$5,VLOOKUP('Enrollment Form'!$B602,DeclMatrix!$A$8:$B$12,2,FALSE),FALSE))))","v":""},{"$f":"IF($A602=\"\",\"\",IF(VLOOKUP($G602,$H$11:$DN$1000,106,FALSE)=\"\",\"No\",IF(LEFT(VLOOKUP($G602,$H$11:$DN$1000,106,FALSE),3)=\"The\",EH602,VLOOKUP(VLOOKUP($G602,$H$11:$DN$1000,106,FALSE),DeclMatrix!$A$2:$F$5,VLOOKUP('Enrollment Form'!$B602,DeclMatrix!$A$8:$B$12,2,FALSE),FALSE))))","v":""},{"$f":"IF($A602=\"\",\"\",IF(VLOOKUP($G602,$H$11:$DN$1000,111,FALSE)=\"\",\"No\",IF(LEFT(VLOOKUP($G602,$H$11:$DN$1000,111,FALSE),3)=\"The\",EI602,VLOOKUP(VLOOKUP($G602,$H$11:$DN$1000,111,FALSE),DeclMatrix!$A$2:$F$5,VLOOKUP('Enrollment Form'!$B602,DeclMatrix!$A$8:$B$12,2,FALSE),FALSE))))","v":""},"",null,"","","","","","","","","","","",""]
["",{"$nulls":5},"","",{"$nulls":18},"","","","",{"$nulls":30},"","","","",{"$nulls":60},"",{"$f":"IF($A603=\"\",\"\",IF(VLOOKUP($G603,$H$11:$DN$1000,96,FALSE)=\"\",\"No\",IF(LEFT(VLOOKUP($G603,$H$11:$DN$1000,96,FALSE),3)=\"The\",EF603,VLOOKUP(VLOOKUP($G603,$H$11:$DN$1000,96,FALSE),DeclMatrix!$A$2:$F$5,VLOOKUP('Enrollment Form'!$B603,DeclMatrix!$A$8:$B$12,2,FALSE),FALSE))))","v":""},{"$f":"IF($A603=\"\",\"\",IF(VLOOKUP($G603,$H$11:$DN$1000,101,FALSE)=\"\",\"No\",IF(LEFT(VLOOKUP($G603,$H$11:$DN$1000,101,FALSE),3)=\"The\",EG603,VLOOKUP(VLOOKUP($G603,$H$11:$DN$1000,101,FALSE),DeclMatrix!$A$2:$F$5,VLOOKUP('Enrollment Form'!$B603,DeclMatrix!$A$8:$B$12,2,FALSE),FALSE))))","v":""},{"$f":"IF($A603=\"\",\"\",IF(VLOOKUP($G603,$H$11:$DN$1000,106,FALSE)=\"\",\"No\",IF(LEFT(VLOOKUP($G603,$H$11:$DN$1000,106,FALSE),3)=\"The\",EH603,VLOOKUP(VLOOKUP($G603,$H$11:$DN$1000,106,FALSE),DeclMatrix!$A$2:$F$5,VLOOKUP('Enrollment Form'!$B603,DeclMatrix!$A$8:$B$12,2,FALSE),FALSE))))","v":""},{"$f":"IF($A603=\"\",\"\",IF(VLOOKUP($G603,$H$11:$DN$1000,111,FALSE)=\"\",\"No\",IF(LEFT(VLOOKUP($G603,$H$11:$DN$1000,111,FALSE),3)=\"The\",EI603,VLOOKUP(VLOOKUP($G603,$H$11:$DN$1000,111,FALSE),DeclMatrix!$A$2:$F$5,VLOOKUP('Enrollment Form'!$B603,DeclMatrix!$A$8:$B$12,2,FALSE),FALSE))))","v":""},"",null,"","","","","","","","","","","",""]
["",{"$nulls":5},"","",{"$nulls":18},"","","","",{"$nulls":30},"","","","",{"$nulls":60},"",{"$f":"IF($A604=\"\",\"\",IF(VLOOKUP($G604,$H$11:$DN$1000,96,FALSE)=\"\",\"No\",IF(LEFT(VLOOKUP($G604,$H$11:$DN$1000,96,FALSE),3)=\"The\",EF604,VLOOKUP(VLOOKUP($G604,$H$11:$DN$1000,96,FALSE),DeclMatrix!$A$2:$F$5,VLOOKUP('Enrollment Form'!$B604,DeclMatrix!$A$8:$B$12,2,FALSE),FALSE))))","v":""},{"$f":"IF($A604=\"\",\"\",IF(VLOOKUP($G604,$H$11:$DN$1000,101,FALSE)=\"\",\"No\",IF(LEFT(VLOOKUP($G604,$H$11:$DN$1000,101,FALSE),3)=\"The\",EG604,VLOOKUP(VLOOKUP($G604,$H$11:$DN$1000,101,FALSE),DeclMatrix!$A$2:$F$5,VLOOKUP('Enrollment Form'!$B604,DeclMatrix!$A$8:$B$12,2,FALSE),FALSE))))","v":""},{"$f":"IF($A604=\"\",\"\",IF(VLOOKUP($G604,$H$11:$DN$1000,106,FALSE)=\"\",\"No\",IF(LEFT(VLOOKUP($G604,$H$11:$DN$1000,106,FALSE),3)=\"The\",EH604,VLOOKUP(VLOOKUP($G604,$H$11:$DN$1000,106,FALSE),DeclMatrix!$A$2:$F$5,VLOOKUP('Enrollment Form'!$B604,DeclMatrix!$A$8:$B$12,2,FALSE),FALSE))))","v":""},{"$f":"IF($A604=\"\",\"\",IF(VLOOKUP($G604,$H$11:$DN$1000,111,FALSE)=\"\",\"No\",IF(LEFT(VLOOKUP($G604,$H$11:$DN$1000,111,FALSE),3)=\"The\",EI604,VLOOKUP(VLOOKUP($G604,$H$11:$DN$1000,111,FALSE),DeclMatrix!$A$2:$F$5,VLOOKUP('Enrollment Form'!$B604,DeclMatrix!$A$8:$B$12,2,FALSE),FALSE))))","v":""},"",null,"","","","","","","","","","","",""]
["",{"$nulls":5},"","",{"$nulls":18},"","","","",{"$nulls":30},"","","","",{"$nulls":60},"",{"$f":"IF($A605=\"\",\"\",IF(VLOOKUP($G605,$H$11:$DN$1000,96,FALSE)=\"\",\"No\",IF(LEFT(VLOOKUP($G605,$H$11:$DN$1000,96,FALSE),3)=\"The\",EF605,VLOOKUP(VLOOKUP($G605,$H$11:$DN$1000,96,FALSE),DeclMatrix!$A$2:$F$5,VLOOKUP('Enrollment Form'!$B605,DeclMatrix!$A$8:$B$12,2,FALSE),FALSE))))","v":""},{"$f":"IF($A605=\"\",\"\",IF(VLOOKUP($G605,$H$11:$DN$1000,101,FALSE)=\"\",\"No\",IF(LEFT(VLOOKUP($G605,$H$11:$DN$1000,101,FALSE),3)=\"The\",EG605,VLOOKUP(VLOOKUP($G605,$H$11:$DN$1000,101,FALSE),DeclMatrix!$A$2:$F$5,VLOOKUP('Enrollment Form'!$B605,DeclMatrix!$A$8:$B$12,2,FALSE),FALSE))))","v":""},{"$f":"IF($A605=\"\",\"\",IF(VLOOKUP($G605,$H$11:$DN$1000,106,FALSE)=\"\",\"No\",IF(LEFT(VLOOKUP($G605,$H$11:$DN$1000,106,FALSE),3)=\"The\",EH605,VLOOKUP(VLOOKUP($G605,$H$11:$DN$1000,106,FALSE),DeclMatrix!$A$2:$F$5,VLOOKUP('Enrollment Form'!$B605,DeclMatrix!$A$8:$B$12,2,FALSE),FALSE))))","v":""},{"$f":"IF($A605=\"\",\"\",IF(VLOOKUP($G605,$H$11:$DN$1000,111,FALSE)=\"\",\"No\",IF(LEFT(VLOOKUP($G605,$H$11:$DN$1000,111,FALSE),3)=\"The\",EI605,VLOOKUP(VLOOKUP($G605,$H$11:$DN$1000,111,FALSE),DeclMatrix!$A$2:$F$5,VLOOKUP('Enrollment Form'!$B605,DeclMatrix!$A$8:$B$12,2,FALSE),FALSE))))","v":""},"",null,"","","","","","","","","","","",""]
["",{"$nulls":5},"","",{"$nulls":18},"","","","",{"$nulls":30},"","","","",{"$nulls":60},"",{"$f":"IF($A606=\"\",\"\",IF(VLOOKUP($G606,$H$11:$DN$1000,96,FALSE)=\"\",\"No\",IF(LEFT(VLOOKUP($G606,$H$11:$DN$1000,96,FALSE),3)=\"The\",EF606,VLOOKUP(VLOOKUP($G606,$H$11:$DN$1000,96,FALSE),DeclMatrix!$A$2:$F$5,VLOOKUP('Enrollment Form'!$B606,DeclMatrix!$A$8:$B$12,2,FALSE),FALSE))))","v":""},{"$f":"IF($A606=\"\",\"\",IF(VLOOKUP($G606,$H$11:$DN$1000,101,FALSE)=\"\",\"No\",IF(LEFT(VLOOKUP($G606,$H$11:$DN$1000,101,FALSE),3)=\"The\",EG606,VLOOKUP(VLOOKUP($G606,$H$11:$DN$1000,101,FALSE),DeclMatrix!$A$2:$F$5,VLOOKUP('Enrollment Form'!$B606,DeclMatrix!$A$8:$B$12,2,FALSE),FALSE))))","v":""},{"$f":"IF($A606=\"\",\"\",IF(VLOOKUP($G606,$H$11:$DN$1000,106,FALSE)=\"\",\"No\",IF(LEFT(VLOOKUP($G606,$H$11:$DN$1000,106,FALSE),3)=\"The\",EH606,VLOOKUP(VLOOKUP($G606,$H$11:$DN$1000,106,FALSE),DeclMatrix!$A$2:$F$5,VLOOKUP('Enrollment Form'!$B606,DeclMatrix!$A$8:$B$12,2,FALSE),FALSE))))","v":""},{"$f":"IF($A606=\"\",\"\",IF(VLOOKUP($G606,$H$11:$DN$1000,111,FALSE)=\"\",\"No\",IF(LEFT(VLOOKUP($G606,$H$11:$DN$1000,111,FALSE),3)=\"The\",EI606,VLOOKUP(VLOOKUP($G606,$H$11:$DN$1000,111,FALSE),DeclMatrix!$A$2:$F$5,VLOOKUP('Enrollment Form'!$B606,DeclMatrix!$A$8:$B$12,2,FALSE),FALSE))))","v":""},"",null,"","","","","","","","","","","",""]
["",{"$nulls":5},"","",{"$nulls":18},"","","","",{"$nulls":30},"","","","",{"$nulls":60},"",{"$f":"IF($A607=\"\",\"\",IF(VLOOKUP($G607,$H$11:$DN$1000,96,FALSE)=\"\",\"No\",IF(LEFT(VLOOKUP($G607,$H$11:$DN$1000,96,FALSE),3)=\"The\",EF607,VLOOKUP(VLOOKUP($G607,$H$11:$DN$1000,96,FALSE),DeclMatrix!$A$2:$F$5,VLOOKUP('Enrollment Form'!$B607,DeclMatrix!$A$8:$B$12,2,FALSE),FALSE))))","v":""},{"$f":"IF($A607=\"\",\"\",IF(VLOOKUP($G607,$H$11:$DN$1000,101,FALSE)=\"\",\"No\",IF(LEFT(VLOOKUP($G607,$H$11:$DN$1000,101,FALSE),3)=\"The\",EG607,VLOOKUP(VLOOKUP($G607,$H$11:$DN$1000,101,FALSE),DeclMatrix!$A$2:$F$5,VLOOKUP('Enrollment Form'!$B607,DeclMatrix!$A$8:$B$12,2,FALSE),FALSE))))","v":""},{"$f":"IF($A607=\"\",\"\",IF(VLOOKUP($G607,$H$11:$DN$1000,106,FALSE)=\"\",\"No\",IF(LEFT(VLOOKUP($G607,$H$11:$DN$1000,106,FALSE),3)=\"The\",EH607,VLOOKUP(VLOOKUP($G607,$H$11:$DN$1000,106,FALSE),DeclMatrix!$A$2:$F$5,VLOOKUP('Enrollment Form'!$B607,DeclMatrix!$A$8:$B$12,2,FALSE),FALSE))))","v":""},{"$f":"IF($A607=\"\",\"\",IF(VLOOKUP($G607,$H$11:$DN$1000,111,FALSE)=\"\",\"No\",IF(LEFT(VLOOKUP($G607,$H$11:$DN$1000,111,FALSE),3)=\"The\",EI607,VLOOKUP(VLOOKUP($G607,$H$11:$DN$1000,111,FALSE),DeclMatrix!$A$2:$F$5,VLOOKUP('Enrollment Form'!$B607,DeclMatrix!$A$8:$B$12,2,FALSE),FALSE))))","v":""},"",null,"","","","","","","","","","","",""]
["",{"$nulls":5},"","",{"$nulls":18},"","","","",{"$nulls":30},"","","","",{"$nulls":60},"",{"$f":"IF($A608=\"\",\"\",IF(VLOOKUP($G608,$H$11:$DN$1000,96,FALSE)=\"\",\"No\",IF(LEFT(VLOOKUP($G608,$H$11:$DN$1000,96,FALSE),3)=\"The\",EF608,VLOOKUP(VLOOKUP($G608,$H$11:$DN$1000,96,FALSE),DeclMatrix!$A$2:$F$5,VLOOKUP('Enrollment Form'!$B608,DeclMatrix!$A$8:$B$12,2,FALSE),FALSE))))","v":""},{"$f":"IF($A608=\"\",\"\",IF(VLOOKUP($G608,$H$11:$DN$1000,101,FALSE)=\"\",\"No\",IF(LEFT(VLOOKUP($G608,$H$11:$DN$1000,101,FALSE),3)=\"The\",EG608,VLOOKUP(VLOOKUP($G608,$H$11:$DN$1000,101,FALSE),DeclMatrix!$A$2:$F$5,VLOOKUP('Enrollment Form'!$B608,DeclMatrix!$A$8:$B$12,2,FALSE),FALSE))))","v":""},{"$f":"IF($A608=\"\",\"\",IF(VLOOKUP($G608,$H$11:$DN$1000,106,FALSE)=\"\",\"No\",IF(LEFT(VLOOKUP($G608,$H$11:$DN$1000,106,FALSE),3)=\"The\",EH608,VLOOKUP(VLOOKUP($G608,$H$11:$DN$1000,106,FALSE),DeclMatrix!$A$2:$F$5,VLOOKUP('Enrollment Form'!$B608,DeclMatrix!$A$8:$B$12,2,FALSE),FALSE))))","v":""},{"$f":"IF($A608=\"\",\"\",IF(VLOOKUP($G608,$H$11:$DN$1000,111,FALSE)=\"\",\"No\",IF(LEFT(VLOOKUP($G608,$H$11:$DN$1000,111,FALSE),3)=\"The\",EI608,VLOOKUP(VLOOKUP($G608,$H$11:$DN$1000,111,FALSE),DeclMatrix!$A$2:$F$5,VLOOKUP('Enrollment Form'!$B608,DeclMatrix!$A$8:$B$12,2,FALSE),FALSE))))","v":""},"",null,"","","","","","","","","","","",""]
["",{"$nulls":5},"","",{"$nulls":18},"","","","",{"$nulls":30},"","","","",{"$nulls":60},"",{"$f":"IF($A609=\"\",\"\",IF(VLOOKUP($G609,$H$11:$DN$1000,96,FALSE)=\"\",\"No\",IF(LEFT(VLOOKUP($G609,$H$11:$DN$1000,96,FALSE),3)=\"The\",EF609,VLOOKUP(VLOOKUP($G609,$H$11:$DN$1000,96,FALSE),DeclMatrix!$A$2:$F$5,VLOOKUP('Enrollment Form'!$B609,DeclMatrix!$A$8:$B$12,2,FALSE),FALSE))))","v":""},{"$f":"IF($A609=\"\",\"\",IF(VLOOKUP($G609,$H$11:$DN$1000,101,FALSE)=\"\",\"No\",IF(LEFT(VLOOKUP($G609,$H$11:$DN$1000,101,FALSE),3)=\"The\",EG609,VLOOKUP(VLOOKUP($G609,$H$11:$DN$1000,101,FALSE),DeclMatrix!$A$2:$F$5,VLOOKUP('Enrollment Form'!$B609,DeclMatrix!$A$8:$B$12,2,FALSE),FALSE))))","v":""},{"$f":"IF($A609=\"\",\"\",IF(VLOOKUP($G609,$H$11:$DN$1000,106,FALSE)=\"\",\"No\",IF(LEFT(VLOOKUP($G609,$H$11:$DN$1000,106,FALSE),3)=\"The\",EH609,VLOOKUP(VLOOKUP($G609,$H$11:$DN$1000,106,FALSE),DeclMatrix!$A$2:$F$5,VLOOKUP('Enrollment Form'!$B609,DeclMatrix!$A$8:$B$12,2,FALSE),FALSE))))","v":""},{"$f":"IF($A609=\"\",\"\",IF(VLOOKUP($G609,$H$11:$DN$1000,111,FALSE)=\"\",\"No\",IF(LEFT(VLOOKUP($G609,$H$11:$DN$1000,111,FALSE),3)=\"The\",EI609,VLOOKUP(VLOOKUP($G609,$H$11:$DN$1000,111,FALSE),DeclMatrix!$A$2:$F$5,VLOOKUP('Enrollment Form'!$B609,DeclMatrix!$A$8:$B$12,2,FALSE),FALSE))))","v":""},"",null,"","","","","","","","","","","",""]
["",{"$nulls":5},"","",{"$nulls":18},"","","","",{"$nulls":30},"","","","",{"$nulls":60},"",{"$f":"IF($A610=\"\",\"\",IF(VLOOKUP($G610,$H$11:$DN$1000,96,FALSE)=\"\",\"No\",IF(LEFT(VLOOKUP($G610,$H$11:$DN$1000,96,FALSE),3)=\"The\",EF610,VLOOKUP(VLOOKUP($G610,$H$11:$DN$1000,96,FALSE),DeclMatrix!$A$2:$F$5,VLOOKUP('Enrollment Form'!$B610,DeclMatrix!$A$8:$B$12,2,FALSE),FALSE))))","v":""},{"$f":"IF($A610=\"\",\"\",IF(VLOOKUP($G610,$H$11:$DN$1000,101,FALSE)=\"\",\"No\",IF(LEFT(VLOOKUP($G610,$H$11:$DN$1000,101,FALSE),3)=\"The\",EG610,VLOOKUP(VLOOKUP($G610,$H$11:$DN$1000,101,FALSE),DeclMatrix!$A$2:$F$5,VLOOKUP('Enrollment Form'!$B610,DeclMatrix!$A$8:$B$12,2,FALSE),FALSE))))","v":""},{"$f":"IF($A610=\"\",\"\",IF(VLOOKUP($G610,$H$11:$DN$1000,106,FALSE)=\"\",\"No\",IF(LEFT(VLOOKUP($G610,$H$11:$DN$1000,106,FALSE),3)=\"The\",EH610,VLOOKUP(VLOOKUP($G610,$H$11:$DN$1000,106,FALSE),DeclMatrix!$A$2:$F$5,VLOOKUP('Enrollment Form'!$B610,DeclMatrix!$A$8:$B$12,2,FALSE),FALSE))))","v":""},{"$f":"IF($A610=\"\",\"\",IF(VLOOKUP($G610,$H$11:$DN$1000,111,FALSE)=\"\",\"No\",IF(LEFT(VLOOKUP($G610,$H$11:$DN$1000,111,FALSE),3)=\"The\",EI610,VLOOKUP(VLOOKUP($G610,$H$11:$DN$1000,111,FALSE),DeclMatrix!$A$2:$F$5,VLOOKUP('Enrollment Form'!$B610,DeclMatrix!$A$8:$B$12,2,FALSE),FALSE))))","v":""},"",null,"","","","","","","","","","","",""]
["",{"$nulls":5},"","",{"$nulls":18},"","","","",{"$nulls":30},"","","","",{"$nulls":60},"",{"$f":"IF($A611=\"\",\"\",IF(VLOOKUP($G611,$H$11:$DN$1000,96,FALSE)=\"\",\"No\",IF(LEFT(VLOOKUP($G611,$H$11:$DN$1000,96,FALSE),3)=\"The\",EF611,VLOOKUP(VLOOKUP($G611,$H$11:$DN$1000,96,FALSE),DeclMatrix!$A$2:$F$5,VLOOKUP('Enrollment Form'!$B611,DeclMatrix!$A$8:$B$12,2,FALSE),FALSE))))","v":""},{"$f":"IF($A611=\"\",\"\",IF(VLOOKUP($G611,$H$11:$DN$1000,101,FALSE)=\"\",\"No\",IF(LEFT(VLOOKUP($G611,$H$11:$DN$1000,101,FALSE),3)=\"The\",EG611,VLOOKUP(VLOOKUP($G611,$H$11:$DN$1000,101,FALSE),DeclMatrix!$A$2:$F$5,VLOOKUP('Enrollment Form'!$B611,DeclMatrix!$A$8:$B$12,2,FALSE),FALSE))))","v":""},{"$f":"IF($A611=\"\",\"\",IF(VLOOKUP($G611,$H$11:$DN$1000,106,FALSE)=\"\",\"No\",IF(LEFT(VLOOKUP($G611,$H$11:$DN$1000,106,FALSE),3)=\"The\",EH611,VLOOKUP(VLOOKUP($G611,$H$11:$DN$1000,106,FALSE),DeclMatrix!$A$2:$F$5,VLOOKUP('Enrollment Form'!$B611,DeclMatrix!$A$8:$B$12,2,FALSE),FALSE))))","v":""},{"$f":"IF($A611=\"\",\"\",IF(VLOOKUP($G611,$H$11:$DN$1000,111,FALSE)=\"\",\"No\",IF(LEFT(VLOOKUP($G611,$H$11:$DN$1000,111,FALSE),3)=\"The\",EI611,VLOOKUP(VLOOKUP($G611,$H$11:$DN$1000,111,FALSE),DeclMatrix!$A$2:$F$5,VLOOKUP('Enrollment Form'!$B611,DeclMatrix!$A$8:$B$12,2,FALSE),FALSE))))","v":""},"",null,"","","","","","","","","","","",""]
["",{"$nulls":5},"","",{"$nulls":18},"","","","",{"$nulls":30},"","","","",{"$nulls":60},"",{"$f":"IF($A612=\"\",\"\",IF(VLOOKUP($G612,$H$11:$DN$1000,96,FALSE)=\"\",\"No\",IF(LEFT(VLOOKUP($G612,$H$11:$DN$1000,96,FALSE),3)=\"The\",EF612,VLOOKUP(VLOOKUP($G612,$H$11:$DN$1000,96,FALSE),DeclMatrix!$A$2:$F$5,VLOOKUP('Enrollment Form'!$B612,DeclMatrix!$A$8:$B$12,2,FALSE),FALSE))))","v":""},{"$f":"IF($A612=\"\",\"\",IF(VLOOKUP($G612,$H$11:$DN$1000,101,FALSE)=\"\",\"No\",IF(LEFT(VLOOKUP($G612,$H$11:$DN$1000,101,FALSE),3)=\"The\",EG612,VLOOKUP(VLOOKUP($G612,$H$11:$DN$1000,101,FALSE),DeclMatrix!$A$2:$F$5,VLOOKUP('Enrollment Form'!$B612,DeclMatrix!$A$8:$B$12,2,FALSE),FALSE))))","v":""},{"$f":"IF($A612=\"\",\"\",IF(VLOOKUP($G612,$H$11:$DN$1000,106,FALSE)=\"\",\"No\",IF(LEFT(VLOOKUP($G612,$H$11:$DN$1000,106,FALSE),3)=\"The\",EH612,VLOOKUP(VLOOKUP($G612,$H$11:$DN$1000,106,FALSE),DeclMatrix!$A$2:$F$5,VLOOKUP('Enrollment Form'!$B612,DeclMatrix!$A$8:$B$12,2,FALSE),FALSE))))","v":""},{"$f":"IF($A612=\"\",\"\",IF(VLOOKUP($G612,$H$11:$DN$1000,111,FALSE)=\"\",\"No\",IF(LEFT(VLOOKUP($G612,$H$11:$DN$1000,111,FALSE),3)=\"The\",EI612,VLOOKUP(VLOOKUP($G612,$H$11:$DN$1000,111,FALSE),DeclMatrix!$A$2:$F$5,VLOOKUP('Enrollment Form'!$B612,DeclMatrix!$A$8:$B$12,2,FALSE),FALSE))))","v":""},"",null,"","","","","","","","","","","",""]
["",{"$nulls":5},"","",{"$nulls":18},"","","","",{"$nulls":30},"","","","",{"$nulls":60},"",{"$f":"IF($A613=\"\",\"\",IF(VLOOKUP($G613,$H$11:$DN$1000,96,FALSE)=\"\",\"No\",IF(LEFT(VLOOKUP($G613,$H$11:$DN$1000,96,FALSE),3)=\"The\",EF613,VLOOKUP(VLOOKUP($G613,$H$11:$DN$1000,96,FALSE),DeclMatrix!$A$2:$F$5,VLOOKUP('Enrollment Form'!$B613,DeclMatrix!$A$8:$B$12,2,FALSE),FALSE))))","v":""},{"$f":"IF($A613=\"\",\"\",IF(VLOOKUP($G613,$H$11:$DN$1000,101,FALSE)=\"\",\"No\",IF(LEFT(VLOOKUP($G613,$H$11:$DN$1000,101,FALSE),3)=\"The\",EG613,VLOOKUP(VLOOKUP($G613,$H$11:$DN$1000,101,FALSE),DeclMatrix!$A$2:$F$5,VLOOKUP('Enrollment Form'!$B613,DeclMatrix!$A$8:$B$12,2,FALSE),FALSE))))","v":""},{"$f":"IF($A613=\"\",\"\",IF(VLOOKUP($G613,$H$11:$DN$1000,106,FALSE)=\"\",\"No\",IF(LEFT(VLOOKUP($G613,$H$11:$DN$1000,106,FALSE),3)=\"The\",EH613,VLOOKUP(VLOOKUP($G613,$H$11:$DN$1000,106,FALSE),DeclMatrix!$A$2:$F$5,VLOOKUP('Enrollment Form'!$B613,DeclMatrix!$A$8:$B$12,2,FALSE),FALSE))))","v":""},{"$f":"IF($A613=\"\",\"\",IF(VLOOKUP($G613,$H$11:$DN$1000,111,FALSE)=\"\",\"No\",IF(LEFT(VLOOKUP($G613,$H$11:$DN$1000,111,FALSE),3)=\"The\",EI613,VLOOKUP(VLOOKUP($G613,$H$11:$DN$1000,111,FALSE),DeclMatrix!$A$2:$F$5,VLOOKUP('Enrollment Form'!$B613,DeclMatrix!$A$8:$B$12,2,FALSE),FALSE))))","v":""},"",null,"","","","","","","","","","","",""]
["",{"$nulls":5},"","",{"$nulls":18},"","","","",{"$nulls":30},"","","","",{"$nulls":60},"",{"$f":"IF($A614=\"\",\"\",IF(VLOOKUP($G614,$H$11:$DN$1000,96,FALSE)=\"\",\"No\",IF(LEFT(VLOOKUP($G614,$H$11:$DN$1000,96,FALSE),3)=\"The\",EF614,VLOOKUP(VLOOKUP($G614,$H$11:$DN$1000,96,FALSE),DeclMatrix!$A$2:$F$5,VLOOKUP('Enrollment Form'!$B614,DeclMatrix!$A$8:$B$12,2,FALSE),FALSE))))","v":""},{"$f":"IF($A614=\"\",\"\",IF(VLOOKUP($G614,$H$11:$DN$1000,101,FALSE)=\"\",\"No\",IF(LEFT(VLOOKUP($G614,$H$11:$DN$1000,101,FALSE),3)=\"The\",EG614,VLOOKUP(VLOOKUP($G614,$H$11:$DN$1000,101,FALSE),DeclMatrix!$A$2:$F$5,VLOOKUP('Enrollment Form'!$B614,DeclMatrix!$A$8:$B$12,2,FALSE),FALSE))))","v":""},{"$f":"IF($A614=\"\",\"\",IF(VLOOKUP($G614,$H$11:$DN$1000,106,FALSE)=\"\",\"No\",IF(LEFT(VLOOKUP($G614,$H$11:$DN$1000,106,FALSE),3)=\"The\",EH614,VLOOKUP(VLOOKUP($G614,$H$11:$DN$1000,106,FALSE),DeclMatrix!$A$2:$F$5,VLOOKUP('Enrollment Form'!$B614,DeclMatrix!$A$8:$B$12,2,FALSE),FALSE))))","v":""},{"$f":"IF($A614=\"\",\"\",IF(VLOOKUP($G614,$H$11:$DN$1000,111,FALSE)=\"\",\"No\",IF(LEFT(VLOOKUP($G614,$H$11:$DN$1000,111,FALSE),3)=\"The\",EI614,VLOOKUP(VLOOKUP($G614,$H$11:$DN$1000,111,FALSE),DeclMatrix!$A$2:$F$5,VLOOKUP('Enrollment Form'!$B614,DeclMatrix!$A$8:$B$12,2,FALSE),FALSE))))","v":""},"",null,"","","","","","","","","","","",""]
["",{"$nulls":5},"","",{"$nulls":18},"","","","",{"$nulls":30},"","","","",{"$nulls":60},"",{"$f":"IF($A615=\"\",\"\",IF(VLOOKUP($G615,$H$11:$DN$1000,96,FALSE)=\"\",\"No\",IF(LEFT(VLOOKUP($G615,$H$11:$DN$1000,96,FALSE),3)=\"The\",EF615,VLOOKUP(VLOOKUP($G615,$H$11:$DN$1000,96,FALSE),DeclMatrix!$A$2:$F$5,VLOOKUP('Enrollment Form'!$B615,DeclMatrix!$A$8:$B$12,2,FALSE),FALSE))))","v":""},{"$f":"IF($A615=\"\",\"\",IF(VLOOKUP($G615,$H$11:$DN$1000,101,FALSE)=\"\",\"No\",IF(LEFT(VLOOKUP($G615,$H$11:$DN$1000,101,FALSE),3)=\"The\",EG615,VLOOKUP(VLOOKUP($G615,$H$11:$DN$1000,101,FALSE),DeclMatrix!$A$2:$F$5,VLOOKUP('Enrollment Form'!$B615,DeclMatrix!$A$8:$B$12,2,FALSE),FALSE))))","v":""},{"$f":"IF($A615=\"\",\"\",IF(VLOOKUP($G615,$H$11:$DN$1000,106,FALSE)=\"\",\"No\",IF(LEFT(VLOOKUP($G615,$H$11:$DN$1000,106,FALSE),3)=\"The\",EH615,VLOOKUP(VLOOKUP($G615,$H$11:$DN$1000,106,FALSE),DeclMatrix!$A$2:$F$5,VLOOKUP('Enrollment Form'!$B615,DeclMatrix!$A$8:$B$12,2,FALSE),FALSE))))","v":""},{"$f":"IF($A615=\"\",\"\",IF(VLOOKUP($G615,$H$11:$DN$1000,111,FALSE)=\"\",\"No\",IF(LEFT(VLOOKUP($G615,$H$11:$DN$1000,111,FALSE),3)=\"The\",EI615,VLOOKUP(VLOOKUP($G615,$H$11:$DN$1000,111,FALSE),DeclMatrix!$A$2:$F$5,VLOOKUP('Enrollment Form'!$B615,DeclMatrix!$A$8:$B$12,2,FALSE),FALSE))))","v":""},"",null,"","","","","","","","","","","",""]
["",{"$nulls":5},"","",{"$nulls":18},"","","","",{"$nulls":30},"","","","",{"$nulls":60},"",{"$f":"IF($A616=\"\",\"\",IF(VLOOKUP($G616,$H$11:$DN$1000,96,FALSE)=\"\",\"No\",IF(LEFT(VLOOKUP($G616,$H$11:$DN$1000,96,FALSE),3)=\"The\",EF616,VLOOKUP(VLOOKUP($G616,$H$11:$DN$1000,96,FALSE),DeclMatrix!$A$2:$F$5,VLOOKUP('Enrollment Form'!$B616,DeclMatrix!$A$8:$B$12,2,FALSE),FALSE))))","v":""},{"$f":"IF($A616=\"\",\"\",IF(VLOOKUP($G616,$H$11:$DN$1000,101,FALSE)=\"\",\"No\",IF(LEFT(VLOOKUP($G616,$H$11:$DN$1000,101,FALSE),3)=\"The\",EG616,VLOOKUP(VLOOKUP($G616,$H$11:$DN$1000,101,FALSE),DeclMatrix!$A$2:$F$5,VLOOKUP('Enrollment Form'!$B616,DeclMatrix!$A$8:$B$12,2,FALSE),FALSE))))","v":""},{"$f":"IF($A616=\"\",\"\",IF(VLOOKUP($G616,$H$11:$DN$1000,106,FALSE)=\"\",\"No\",IF(LEFT(VLOOKUP($G616,$H$11:$DN$1000,106,FALSE),3)=\"The\",EH616,VLOOKUP(VLOOKUP($G616,$H$11:$DN$1000,106,FALSE),DeclMatrix!$A$2:$F$5,VLOOKUP('Enrollment Form'!$B616,DeclMatrix!$A$8:$B$12,2,FALSE),FALSE))))","v":""},{"$f":"IF($A616=\"\",\"\",IF(VLOOKUP($G616,$H$11:$DN$1000,111,FALSE)=\"\",\"No\",IF(LEFT(VLOOKUP($G616,$H$11:$DN$1000,111,FALSE),3)=\"The\",EI616,VLOOKUP(VLOOKUP($G616,$H$11:$DN$1000,111,FALSE),DeclMatrix!$A$2:$F$5,VLOOKUP('Enrollment Form'!$B616,DeclMatrix!$A$8:$B$12,2,FALSE),FALSE))))","v":""},"",null,"","","","","","","","","","","",""]
["",{"$nulls":5},"","",{"$nulls":18},"","","","",{"$nulls":30},"","","","",{"$nulls":60},"",{"$f":"IF($A617=\"\",\"\",IF(VLOOKUP($G617,$H$11:$DN$1000,96,FALSE)=\"\",\"No\",IF(LEFT(VLOOKUP($G617,$H$11:$DN$1000,96,FALSE),3)=\"The\",EF617,VLOOKUP(VLOOKUP($G617,$H$11:$DN$1000,96,FALSE),DeclMatrix!$A$2:$F$5,VLOOKUP('Enrollment Form'!$B617,DeclMatrix!$A$8:$B$12,2,FALSE),FALSE))))","v":""},{"$f":"IF($A617=\"\",\"\",IF(VLOOKUP($G617,$H$11:$DN$1000,101,FALSE)=\"\",\"No\",IF(LEFT(VLOOKUP($G617,$H$11:$DN$1000,101,FALSE),3)=\"The\",EG617,VLOOKUP(VLOOKUP($G617,$H$11:$DN$1000,101,FALSE),DeclMatrix!$A$2:$F$5,VLOOKUP('Enrollment Form'!$B617,DeclMatrix!$A$8:$B$12,2,FALSE),FALSE))))","v":""},{"$f":"IF($A617=\"\",\"\",IF(VLOOKUP($G617,$H$11:$DN$1000,106,FALSE)=\"\",\"No\",IF(LEFT(VLOOKUP($G617,$H$11:$DN$1000,106,FALSE),3)=\"The\",EH617,VLOOKUP(VLOOKUP($G617,$H$11:$DN$1000,106,FALSE),DeclMatrix!$A$2:$F$5,VLOOKUP('Enrollment Form'!$B617,DeclMatrix!$A$8:$B$12,2,FALSE),FALSE))))","v":""},{"$f":"IF($A617=\"\",\"\",IF(VLOOKUP($G617,$H$11:$DN$1000,111,FALSE)=\"\",\"No\",IF(LEFT(VLOOKUP($G617,$H$11:$DN$1000,111,FALSE),3)=\"The\",EI617,VLOOKUP(VLOOKUP($G617,$H$11:$DN$1000,111,FALSE),DeclMatrix!$A$2:$F$5,VLOOKUP('Enrollment Form'!$B617,DeclMatrix!$A$8:$B$12,2,FALSE),FALSE))))","v":""},"",null,"","","","","","","","","","","",""]
["",{"$nulls":5},"","",{"$nulls":18},"","","","",{"$nulls":30},"","","","",{"$nulls":60},"",{"$f":"IF($A618=\"\",\"\",IF(VLOOKUP($G618,$H$11:$DN$1000,96,FALSE)=\"\",\"No\",IF(LEFT(VLOOKUP($G618,$H$11:$DN$1000,96,FALSE),3)=\"The\",EF618,VLOOKUP(VLOOKUP($G618,$H$11:$DN$1000,96,FALSE),DeclMatrix!$A$2:$F$5,VLOOKUP('Enrollment Form'!$B618,DeclMatrix!$A$8:$B$12,2,FALSE),FALSE))))","v":""},{"$f":"IF($A618=\"\",\"\",IF(VLOOKUP($G618,$H$11:$DN$1000,101,FALSE)=\"\",\"No\",IF(LEFT(VLOOKUP($G618,$H$11:$DN$1000,101,FALSE),3)=\"The\",EG618,VLOOKUP(VLOOKUP($G618,$H$11:$DN$1000,101,FALSE),DeclMatrix!$A$2:$F$5,VLOOKUP('Enrollment Form'!$B618,DeclMatrix!$A$8:$B$12,2,FALSE),FALSE))))","v":""},{"$f":"IF($A618=\"\",\"\",IF(VLOOKUP($G618,$H$11:$DN$1000,106,FALSE)=\"\",\"No\",IF(LEFT(VLOOKUP($G618,$H$11:$DN$1000,106,FALSE),3)=\"The\",EH618,VLOOKUP(VLOOKUP($G618,$H$11:$DN$1000,106,FALSE),DeclMatrix!$A$2:$F$5,VLOOKUP('Enrollment Form'!$B618,DeclMatrix!$A$8:$B$12,2,FALSE),FALSE))))","v":""},{"$f":"IF($A618=\"\",\"\",IF(VLOOKUP($G618,$H$11:$DN$1000,111,FALSE)=\"\",\"No\",IF(LEFT(VLOOKUP($G618,$H$11:$DN$1000,111,FALSE),3)=\"The\",EI618,VLOOKUP(VLOOKUP($G618,$H$11:$DN$1000,111,FALSE),DeclMatrix!$A$2:$F$5,VLOOKUP('Enrollment Form'!$B618,DeclMatrix!$A$8:$B$12,2,FALSE),FALSE))))","v":""},"",null,"","","","","","","","","","","",""]
["",{"$nulls":5},"","",{"$nulls":18},"","","","",{"$nulls":30},"","","","",{"$nulls":60},"",{"$f":"IF($A619=\"\",\"\",IF(VLOOKUP($G619,$H$11:$DN$1000,96,FALSE)=\"\",\"No\",IF(LEFT(VLOOKUP($G619,$H$11:$DN$1000,96,FALSE),3)=\"The\",EF619,VLOOKUP(VLOOKUP($G619,$H$11:$DN$1000,96,FALSE),DeclMatrix!$A$2:$F$5,VLOOKUP('Enrollment Form'!$B619,DeclMatrix!$A$8:$B$12,2,FALSE),FALSE))))","v":""},{"$f":"IF($A619=\"\",\"\",IF(VLOOKUP($G619,$H$11:$DN$1000,101,FALSE)=\"\",\"No\",IF(LEFT(VLOOKUP($G619,$H$11:$DN$1000,101,FALSE),3)=\"The\",EG619,VLOOKUP(VLOOKUP($G619,$H$11:$DN$1000,101,FALSE),DeclMatrix!$A$2:$F$5,VLOOKUP('Enrollment Form'!$B619,DeclMatrix!$A$8:$B$12,2,FALSE),FALSE))))","v":""},{"$f":"IF($A619=\"\",\"\",IF(VLOOKUP($G619,$H$11:$DN$1000,106,FALSE)=\"\",\"No\",IF(LEFT(VLOOKUP($G619,$H$11:$DN$1000,106,FALSE),3)=\"The\",EH619,VLOOKUP(VLOOKUP($G619,$H$11:$DN$1000,106,FALSE),DeclMatrix!$A$2:$F$5,VLOOKUP('Enrollment Form'!$B619,DeclMatrix!$A$8:$B$12,2,FALSE),FALSE))))","v":""},{"$f":"IF($A619=\"\",\"\",IF(VLOOKUP($G619,$H$11:$DN$1000,111,FALSE)=\"\",\"No\",IF(LEFT(VLOOKUP($G619,$H$11:$DN$1000,111,FALSE),3)=\"The\",EI619,VLOOKUP(VLOOKUP($G619,$H$11:$DN$1000,111,FALSE),DeclMatrix!$A$2:$F$5,VLOOKUP('Enrollment Form'!$B619,DeclMatrix!$A$8:$B$12,2,FALSE),FALSE))))","v":""},"",null,"","","","","","","","","","","",""]
["",{"$nulls":5},"","",{"$nulls":18},"","","","",{"$nulls":30},"","","","",{"$nulls":60},"",{"$f":"IF($A620=\"\",\"\",IF(VLOOKUP($G620,$H$11:$DN$1000,96,FALSE)=\"\",\"No\",IF(LEFT(VLOOKUP($G620,$H$11:$DN$1000,96,FALSE),3)=\"The\",EF620,VLOOKUP(VLOOKUP($G620,$H$11:$DN$1000,96,FALSE),DeclMatrix!$A$2:$F$5,VLOOKUP('Enrollment Form'!$B620,DeclMatrix!$A$8:$B$12,2,FALSE),FALSE))))","v":""},{"$f":"IF($A620=\"\",\"\",IF(VLOOKUP($G620,$H$11:$DN$1000,101,FALSE)=\"\",\"No\",IF(LEFT(VLOOKUP($G620,$H$11:$DN$1000,101,FALSE),3)=\"The\",EG620,VLOOKUP(VLOOKUP($G620,$H$11:$DN$1000,101,FALSE),DeclMatrix!$A$2:$F$5,VLOOKUP('Enrollment Form'!$B620,DeclMatrix!$A$8:$B$12,2,FALSE),FALSE))))","v":""},{"$f":"IF($A620=\"\",\"\",IF(VLOOKUP($G620,$H$11:$DN$1000,106,FALSE)=\"\",\"No\",IF(LEFT(VLOOKUP($G620,$H$11:$DN$1000,106,FALSE),3)=\"The\",EH620,VLOOKUP(VLOOKUP($G620,$H$11:$DN$1000,106,FALSE),DeclMatrix!$A$2:$F$5,VLOOKUP('Enrollment Form'!$B620,DeclMatrix!$A$8:$B$12,2,FALSE),FALSE))))","v":""},{"$f":"IF($A620=\"\",\"\",IF(VLOOKUP($G620,$H$11:$DN$1000,111,FALSE)=\"\",\"No\",IF(LEFT(VLOOKUP($G620,$H$11:$DN$1000,111,FALSE),3)=\"The\",EI620,VLOOKUP(VLOOKUP($G620,$H$11:$DN$1000,111,FALSE),DeclMatrix!$A$2:$F$5,VLOOKUP('Enrollment Form'!$B620,DeclMatrix!$A$8:$B$12,2,FALSE),FALSE))))","v":""},"",null,"","","","","","","","","","","",""]
["",{"$nulls":5},"","",{"$nulls":18},"","","","",{"$nulls":30},"","","","",{"$nulls":60},"",{"$f":"IF($A621=\"\",\"\",IF(VLOOKUP($G621,$H$11:$DN$1000,96,FALSE)=\"\",\"No\",IF(LEFT(VLOOKUP($G621,$H$11:$DN$1000,96,FALSE),3)=\"The\",EF621,VLOOKUP(VLOOKUP($G621,$H$11:$DN$1000,96,FALSE),DeclMatrix!$A$2:$F$5,VLOOKUP('Enrollment Form'!$B621,DeclMatrix!$A$8:$B$12,2,FALSE),FALSE))))","v":""},{"$f":"IF($A621=\"\",\"\",IF(VLOOKUP($G621,$H$11:$DN$1000,101,FALSE)=\"\",\"No\",IF(LEFT(VLOOKUP($G621,$H$11:$DN$1000,101,FALSE),3)=\"The\",EG621,VLOOKUP(VLOOKUP($G621,$H$11:$DN$1000,101,FALSE),DeclMatrix!$A$2:$F$5,VLOOKUP('Enrollment Form'!$B621,DeclMatrix!$A$8:$B$12,2,FALSE),FALSE))))","v":""},{"$f":"IF($A621=\"\",\"\",IF(VLOOKUP($G621,$H$11:$DN$1000,106,FALSE)=\"\",\"No\",IF(LEFT(VLOOKUP($G621,$H$11:$DN$1000,106,FALSE),3)=\"The\",EH621,VLOOKUP(VLOOKUP($G621,$H$11:$DN$1000,106,FALSE),DeclMatrix!$A$2:$F$5,VLOOKUP('Enrollment Form'!$B621,DeclMatrix!$A$8:$B$12,2,FALSE),FALSE))))","v":""},{"$f":"IF($A621=\"\",\"\",IF(VLOOKUP($G621,$H$11:$DN$1000,111,FALSE)=\"\",\"No\",IF(LEFT(VLOOKUP($G621,$H$11:$DN$1000,111,FALSE),3)=\"The\",EI621,VLOOKUP(VLOOKUP($G621,$H$11:$DN$1000,111,FALSE),DeclMatrix!$A$2:$F$5,VLOOKUP('Enrollment Form'!$B621,DeclMatrix!$A$8:$B$12,2,FALSE),FALSE))))","v":""},"",null,"","","","","","","","","","","",""]
["",{"$nulls":5},"","",{"$nulls":18},"","","","",{"$nulls":30},"","","","",{"$nulls":60},"",{"$f":"IF($A622=\"\",\"\",IF(VLOOKUP($G622,$H$11:$DN$1000,96,FALSE)=\"\",\"No\",IF(LEFT(VLOOKUP($G622,$H$11:$DN$1000,96,FALSE),3)=\"The\",EF622,VLOOKUP(VLOOKUP($G622,$H$11:$DN$1000,96,FALSE),DeclMatrix!$A$2:$F$5,VLOOKUP('Enrollment Form'!$B622,DeclMatrix!$A$8:$B$12,2,FALSE),FALSE))))","v":""},{"$f":"IF($A622=\"\",\"\",IF(VLOOKUP($G622,$H$11:$DN$1000,101,FALSE)=\"\",\"No\",IF(LEFT(VLOOKUP($G622,$H$11:$DN$1000,101,FALSE),3)=\"The\",EG622,VLOOKUP(VLOOKUP($G622,$H$11:$DN$1000,101,FALSE),DeclMatrix!$A$2:$F$5,VLOOKUP('Enrollment Form'!$B622,DeclMatrix!$A$8:$B$12,2,FALSE),FALSE))))","v":""},{"$f":"IF($A622=\"\",\"\",IF(VLOOKUP($G622,$H$11:$DN$1000,106,FALSE)=\"\",\"No\",IF(LEFT(VLOOKUP($G622,$H$11:$DN$1000,106,FALSE),3)=\"The\",EH622,VLOOKUP(VLOOKUP($G622,$H$11:$DN$1000,106,FALSE),DeclMatrix!$A$2:$F$5,VLOOKUP('Enrollment Form'!$B622,DeclMatrix!$A$8:$B$12,2,FALSE),FALSE))))","v":""},{"$f":"IF($A622=\"\",\"\",IF(VLOOKUP($G622,$H$11:$DN$1000,111,FALSE)=\"\",\"No\",IF(LEFT(VLOOKUP($G622,$H$11:$DN$1000,111,FALSE),3)=\"The\",EI622,VLOOKUP(VLOOKUP($G622,$H$11:$DN$1000,111,FALSE),DeclMatrix!$A$2:$F$5,VLOOKUP('Enrollment Form'!$B622,DeclMatrix!$A$8:$B$12,2,FALSE),FALSE))))","v":""},"",null,"","","","","","","","","","","",""]
["",{"$nulls":5},"","",{"$nulls":18},"","","","",{"$nulls":30},"","","","",{"$nulls":60},"",{"$f":"IF($A623=\"\",\"\",IF(VLOOKUP($G623,$H$11:$DN$1000,96,FALSE)=\"\",\"No\",IF(LEFT(VLOOKUP($G623,$H$11:$DN$1000,96,FALSE),3)=\"The\",EF623,VLOOKUP(VLOOKUP($G623,$H$11:$DN$1000,96,FALSE),DeclMatrix!$A$2:$F$5,VLOOKUP('Enrollment Form'!$B623,DeclMatrix!$A$8:$B$12,2,FALSE),FALSE))))","v":""},{"$f":"IF($A623=\"\",\"\",IF(VLOOKUP($G623,$H$11:$DN$1000,101,FALSE)=\"\",\"No\",IF(LEFT(VLOOKUP($G623,$H$11:$DN$1000,101,FALSE),3)=\"The\",EG623,VLOOKUP(VLOOKUP($G623,$H$11:$DN$1000,101,FALSE),DeclMatrix!$A$2:$F$5,VLOOKUP('Enrollment Form'!$B623,DeclMatrix!$A$8:$B$12,2,FALSE),FALSE))))","v":""},{"$f":"IF($A623=\"\",\"\",IF(VLOOKUP($G623,$H$11:$DN$1000,106,FALSE)=\"\",\"No\",IF(LEFT(VLOOKUP($G623,$H$11:$DN$1000,106,FALSE),3)=\"The\",EH623,VLOOKUP(VLOOKUP($G623,$H$11:$DN$1000,106,FALSE),DeclMatrix!$A$2:$F$5,VLOOKUP('Enrollment Form'!$B623,DeclMatrix!$A$8:$B$12,2,FALSE),FALSE))))","v":""},{"$f":"IF($A623=\"\",\"\",IF(VLOOKUP($G623,$H$11:$DN$1000,111,FALSE)=\"\",\"No\",IF(LEFT(VLOOKUP($G623,$H$11:$DN$1000,111,FALSE),3)=\"The\",EI623,VLOOKUP(VLOOKUP($G623,$H$11:$DN$1000,111,FALSE),DeclMatrix!$A$2:$F$5,VLOOKUP('Enrollment Form'!$B623,DeclMatrix!$A$8:$B$12,2,FALSE),FALSE))))","v":""},"",null,"","","","","","","","","","","",""]
["",{"$nulls":5},"","",{"$nulls":18},"","","","",{"$nulls":30},"","","","",{"$nulls":60},"",{"$f":"IF($A624=\"\",\"\",IF(VLOOKUP($G624,$H$11:$DN$1000,96,FALSE)=\"\",\"No\",IF(LEFT(VLOOKUP($G624,$H$11:$DN$1000,96,FALSE),3)=\"The\",EF624,VLOOKUP(VLOOKUP($G624,$H$11:$DN$1000,96,FALSE),DeclMatrix!$A$2:$F$5,VLOOKUP('Enrollment Form'!$B624,DeclMatrix!$A$8:$B$12,2,FALSE),FALSE))))","v":""},{"$f":"IF($A624=\"\",\"\",IF(VLOOKUP($G624,$H$11:$DN$1000,101,FALSE)=\"\",\"No\",IF(LEFT(VLOOKUP($G624,$H$11:$DN$1000,101,FALSE),3)=\"The\",EG624,VLOOKUP(VLOOKUP($G624,$H$11:$DN$1000,101,FALSE),DeclMatrix!$A$2:$F$5,VLOOKUP('Enrollment Form'!$B624,DeclMatrix!$A$8:$B$12,2,FALSE),FALSE))))","v":""},{"$f":"IF($A624=\"\",\"\",IF(VLOOKUP($G624,$H$11:$DN$1000,106,FALSE)=\"\",\"No\",IF(LEFT(VLOOKUP($G624,$H$11:$DN$1000,106,FALSE),3)=\"The\",EH624,VLOOKUP(VLOOKUP($G624,$H$11:$DN$1000,106,FALSE),DeclMatrix!$A$2:$F$5,VLOOKUP('Enrollment Form'!$B624,DeclMatrix!$A$8:$B$12,2,FALSE),FALSE))))","v":""},{"$f":"IF($A624=\"\",\"\",IF(VLOOKUP($G624,$H$11:$DN$1000,111,FALSE)=\"\",\"No\",IF(LEFT(VLOOKUP($G624,$H$11:$DN$1000,111,FALSE),3)=\"The\",EI624,VLOOKUP(VLOOKUP($G624,$H$11:$DN$1000,111,FALSE),DeclMatrix!$A$2:$F$5,VLOOKUP('Enrollment Form'!$B624,DeclMatrix!$A$8:$B$12,2,FALSE),FALSE))))","v":""},"",null,"","","","","","","","","","","",""]
["",{"$nulls":5},"","",{"$nulls":18},"","","","",{"$nulls":30},"","","","",{"$nulls":60},"",{"$f":"IF($A625=\"\",\"\",IF(VLOOKUP($G625,$H$11:$DN$1000,96,FALSE)=\"\",\"No\",IF(LEFT(VLOOKUP($G625,$H$11:$DN$1000,96,FALSE),3)=\"The\",EF625,VLOOKUP(VLOOKUP($G625,$H$11:$DN$1000,96,FALSE),DeclMatrix!$A$2:$F$5,VLOOKUP('Enrollment Form'!$B625,DeclMatrix!$A$8:$B$12,2,FALSE),FALSE))))","v":""},{"$f":"IF($A625=\"\",\"\",IF(VLOOKUP($G625,$H$11:$DN$1000,101,FALSE)=\"\",\"No\",IF(LEFT(VLOOKUP($G625,$H$11:$DN$1000,101,FALSE),3)=\"The\",EG625,VLOOKUP(VLOOKUP($G625,$H$11:$DN$1000,101,FALSE),DeclMatrix!$A$2:$F$5,VLOOKUP('Enrollment Form'!$B625,DeclMatrix!$A$8:$B$12,2,FALSE),FALSE))))","v":""},{"$f":"IF($A625=\"\",\"\",IF(VLOOKUP($G625,$H$11:$DN$1000,106,FALSE)=\"\",\"No\",IF(LEFT(VLOOKUP($G625,$H$11:$DN$1000,106,FALSE),3)=\"The\",EH625,VLOOKUP(VLOOKUP($G625,$H$11:$DN$1000,106,FALSE),DeclMatrix!$A$2:$F$5,VLOOKUP('Enrollment Form'!$B625,DeclMatrix!$A$8:$B$12,2,FALSE),FALSE))))","v":""},{"$f":"IF($A625=\"\",\"\",IF(VLOOKUP($G625,$H$11:$DN$1000,111,FALSE)=\"\",\"No\",IF(LEFT(VLOOKUP($G625,$H$11:$DN$1000,111,FALSE),3)=\"The\",EI625,VLOOKUP(VLOOKUP($G625,$H$11:$DN$1000,111,FALSE),DeclMatrix!$A$2:$F$5,VLOOKUP('Enrollment Form'!$B625,DeclMatrix!$A$8:$B$12,2,FALSE),FALSE))))","v":""},"",null,"","","","","","","","","","","",""]
["",{"$nulls":5},"","",{"$nulls":18},"","","","",{"$nulls":30},"","","","",{"$nulls":60},"",{"$f":"IF($A626=\"\",\"\",IF(VLOOKUP($G626,$H$11:$DN$1000,96,FALSE)=\"\",\"No\",IF(LEFT(VLOOKUP($G626,$H$11:$DN$1000,96,FALSE),3)=\"The\",EF626,VLOOKUP(VLOOKUP($G626,$H$11:$DN$1000,96,FALSE),DeclMatrix!$A$2:$F$5,VLOOKUP('Enrollment Form'!$B626,DeclMatrix!$A$8:$B$12,2,FALSE),FALSE))))","v":""},{"$f":"IF($A626=\"\",\"\",IF(VLOOKUP($G626,$H$11:$DN$1000,101,FALSE)=\"\",\"No\",IF(LEFT(VLOOKUP($G626,$H$11:$DN$1000,101,FALSE),3)=\"The\",EG626,VLOOKUP(VLOOKUP($G626,$H$11:$DN$1000,101,FALSE),DeclMatrix!$A$2:$F$5,VLOOKUP('Enrollment Form'!$B626,DeclMatrix!$A$8:$B$12,2,FALSE),FALSE))))","v":""},{"$f":"IF($A626=\"\",\"\",IF(VLOOKUP($G626,$H$11:$DN$1000,106,FALSE)=\"\",\"No\",IF(LEFT(VLOOKUP($G626,$H$11:$DN$1000,106,FALSE),3)=\"The\",EH626,VLOOKUP(VLOOKUP($G626,$H$11:$DN$1000,106,FALSE),DeclMatrix!$A$2:$F$5,VLOOKUP('Enrollment Form'!$B626,DeclMatrix!$A$8:$B$12,2,FALSE),FALSE))))","v":""},{"$f":"IF($A626=\"\",\"\",IF(VLOOKUP($G626,$H$11:$DN$1000,111,FALSE)=\"\",\"No\",IF(LEFT(VLOOKUP($G626,$H$11:$DN$1000,111,FALSE),3)=\"The\",EI626,VLOOKUP(VLOOKUP($G626,$H$11:$DN$1000,111,FALSE),DeclMatrix!$A$2:$F$5,VLOOKUP('Enrollment Form'!$B626,DeclMatrix!$A$8:$B$12,2,FALSE),FALSE))))","v":""},"",null,"","","","","","","","","","","",""]
["",{"$nulls":5},"","",{"$nulls":18},"","","","",{"$nulls":30},"","","","",{"$nulls":60},"",{"$f":"IF($A627=\"\",\"\",IF(VLOOKUP($G627,$H$11:$DN$1000,96,FALSE)=\"\",\"No\",IF(LEFT(VLOOKUP($G627,$H$11:$DN$1000,96,FALSE),3)=\"The\",EF627,VLOOKUP(VLOOKUP($G627,$H$11:$DN$1000,96,FALSE),DeclMatrix!$A$2:$F$5,VLOOKUP('Enrollment Form'!$B627,DeclMatrix!$A$8:$B$12,2,FALSE),FALSE))))","v":""},{"$f":"IF($A627=\"\",\"\",IF(VLOOKUP($G627,$H$11:$DN$1000,101,FALSE)=\"\",\"No\",IF(LEFT(VLOOKUP($G627,$H$11:$DN$1000,101,FALSE),3)=\"The\",EG627,VLOOKUP(VLOOKUP($G627,$H$11:$DN$1000,101,FALSE),DeclMatrix!$A$2:$F$5,VLOOKUP('Enrollment Form'!$B627,DeclMatrix!$A$8:$B$12,2,FALSE),FALSE))))","v":""},{"$f":"IF($A627=\"\",\"\",IF(VLOOKUP($G627,$H$11:$DN$1000,106,FALSE)=\"\",\"No\",IF(LEFT(VLOOKUP($G627,$H$11:$DN$1000,106,FALSE),3)=\"The\",EH627,VLOOKUP(VLOOKUP($G627,$H$11:$DN$1000,106,FALSE),DeclMatrix!$A$2:$F$5,VLOOKUP('Enrollment Form'!$B627,DeclMatrix!$A$8:$B$12,2,FALSE),FALSE))))","v":""},{"$f":"IF($A627=\"\",\"\",IF(VLOOKUP($G627,$H$11:$DN$1000,111,FALSE)=\"\",\"No\",IF(LEFT(VLOOKUP($G627,$H$11:$DN$1000,111,FALSE),3)=\"The\",EI627,VLOOKUP(VLOOKUP($G627,$H$11:$DN$1000,111,FALSE),DeclMatrix!$A$2:$F$5,VLOOKUP('Enrollment Form'!$B627,DeclMatrix!$A$8:$B$12,2,FALSE),FALSE))))","v":""},"",null,"","","","","","","","","","","",""]
["",{"$nulls":5},"","",{"$nulls":18},"","","","",{"$nulls":30},"","","","",{"$nulls":60},"",{"$f":"IF($A628=\"\",\"\",IF(VLOOKUP($G628,$H$11:$DN$1000,96,FALSE)=\"\",\"No\",IF(LEFT(VLOOKUP($G628,$H$11:$DN$1000,96,FALSE),3)=\"The\",EF628,VLOOKUP(VLOOKUP($G628,$H$11:$DN$1000,96,FALSE),DeclMatrix!$A$2:$F$5,VLOOKUP('Enrollment Form'!$B628,DeclMatrix!$A$8:$B$12,2,FALSE),FALSE))))","v":""},{"$f":"IF($A628=\"\",\"\",IF(VLOOKUP($G628,$H$11:$DN$1000,101,FALSE)=\"\",\"No\",IF(LEFT(VLOOKUP($G628,$H$11:$DN$1000,101,FALSE),3)=\"The\",EG628,VLOOKUP(VLOOKUP($G628,$H$11:$DN$1000,101,FALSE),DeclMatrix!$A$2:$F$5,VLOOKUP('Enrollment Form'!$B628,DeclMatrix!$A$8:$B$12,2,FALSE),FALSE))))","v":""},{"$f":"IF($A628=\"\",\"\",IF(VLOOKUP($G628,$H$11:$DN$1000,106,FALSE)=\"\",\"No\",IF(LEFT(VLOOKUP($G628,$H$11:$DN$1000,106,FALSE),3)=\"The\",EH628,VLOOKUP(VLOOKUP($G628,$H$11:$DN$1000,106,FALSE),DeclMatrix!$A$2:$F$5,VLOOKUP('Enrollment Form'!$B628,DeclMatrix!$A$8:$B$12,2,FALSE),FALSE))))","v":""},{"$f":"IF($A628=\"\",\"\",IF(VLOOKUP($G628,$H$11:$DN$1000,111,FALSE)=\"\",\"No\",IF(LEFT(VLOOKUP($G628,$H$11:$DN$1000,111,FALSE),3)=\"The\",EI628,VLOOKUP(VLOOKUP($G628,$H$11:$DN$1000,111,FALSE),DeclMatrix!$A$2:$F$5,VLOOKUP('Enrollment Form'!$B628,DeclMatrix!$A$8:$B$12,2,FALSE),FALSE))))","v":""},"",null,"","","","","","","","","","","",""]
["",{"$nulls":5},"","",{"$nulls":18},"","","","",{"$nulls":30},"","","","",{"$nulls":60},"",{"$f":"IF($A629=\"\",\"\",IF(VLOOKUP($G629,$H$11:$DN$1000,96,FALSE)=\"\",\"No\",IF(LEFT(VLOOKUP($G629,$H$11:$DN$1000,96,FALSE),3)=\"The\",EF629,VLOOKUP(VLOOKUP($G629,$H$11:$DN$1000,96,FALSE),DeclMatrix!$A$2:$F$5,VLOOKUP('Enrollment Form'!$B629,DeclMatrix!$A$8:$B$12,2,FALSE),FALSE))))","v":""},{"$f":"IF($A629=\"\",\"\",IF(VLOOKUP($G629,$H$11:$DN$1000,101,FALSE)=\"\",\"No\",IF(LEFT(VLOOKUP($G629,$H$11:$DN$1000,101,FALSE),3)=\"The\",EG629,VLOOKUP(VLOOKUP($G629,$H$11:$DN$1000,101,FALSE),DeclMatrix!$A$2:$F$5,VLOOKUP('Enrollment Form'!$B629,DeclMatrix!$A$8:$B$12,2,FALSE),FALSE))))","v":""},{"$f":"IF($A629=\"\",\"\",IF(VLOOKUP($G629,$H$11:$DN$1000,106,FALSE)=\"\",\"No\",IF(LEFT(VLOOKUP($G629,$H$11:$DN$1000,106,FALSE),3)=\"The\",EH629,VLOOKUP(VLOOKUP($G629,$H$11:$DN$1000,106,FALSE),DeclMatrix!$A$2:$F$5,VLOOKUP('Enrollment Form'!$B629,DeclMatrix!$A$8:$B$12,2,FALSE),FALSE))))","v":""},{"$f":"IF($A629=\"\",\"\",IF(VLOOKUP($G629,$H$11:$DN$1000,111,FALSE)=\"\",\"No\",IF(LEFT(VLOOKUP($G629,$H$11:$DN$1000,111,FALSE),3)=\"The\",EI629,VLOOKUP(VLOOKUP($G629,$H$11:$DN$1000,111,FALSE),DeclMatrix!$A$2:$F$5,VLOOKUP('Enrollment Form'!$B629,DeclMatrix!$A$8:$B$12,2,FALSE),FALSE))))","v":""},"",null,"","","","","","","","","","","",""]
["",{"$nulls":5},"","",{"$nulls":18},"","","","",{"$nulls":30},"","","","",{"$nulls":60},"",{"$f":"IF($A630=\"\",\"\",IF(VLOOKUP($G630,$H$11:$DN$1000,96,FALSE)=\"\",\"No\",IF(LEFT(VLOOKUP($G630,$H$11:$DN$1000,96,FALSE),3)=\"The\",EF630,VLOOKUP(VLOOKUP($G630,$H$11:$DN$1000,96,FALSE),DeclMatrix!$A$2:$F$5,VLOOKUP('Enrollment Form'!$B630,DeclMatrix!$A$8:$B$12,2,FALSE),FALSE))))","v":""},{"$f":"IF($A630=\"\",\"\",IF(VLOOKUP($G630,$H$11:$DN$1000,101,FALSE)=\"\",\"No\",IF(LEFT(VLOOKUP($G630,$H$11:$DN$1000,101,FALSE),3)=\"The\",EG630,VLOOKUP(VLOOKUP($G630,$H$11:$DN$1000,101,FALSE),DeclMatrix!$A$2:$F$5,VLOOKUP('Enrollment Form'!$B630,DeclMatrix!$A$8:$B$12,2,FALSE),FALSE))))","v":""},{"$f":"IF($A630=\"\",\"\",IF(VLOOKUP($G630,$H$11:$DN$1000,106,FALSE)=\"\",\"No\",IF(LEFT(VLOOKUP($G630,$H$11:$DN$1000,106,FALSE),3)=\"The\",EH630,VLOOKUP(VLOOKUP($G630,$H$11:$DN$1000,106,FALSE),DeclMatrix!$A$2:$F$5,VLOOKUP('Enrollment Form'!$B630,DeclMatrix!$A$8:$B$12,2,FALSE),FALSE))))","v":""},{"$f":"IF($A630=\"\",\"\",IF(VLOOKUP($G630,$H$11:$DN$1000,111,FALSE)=\"\",\"No\",IF(LEFT(VLOOKUP($G630,$H$11:$DN$1000,111,FALSE),3)=\"The\",EI630,VLOOKUP(VLOOKUP($G630,$H$11:$DN$1000,111,FALSE),DeclMatrix!$A$2:$F$5,VLOOKUP('Enrollment Form'!$B630,DeclMatrix!$A$8:$B$12,2,FALSE),FALSE))))","v":""},"",null,"","","","","","","","","","","",""]
["",{"$nulls":5},"","",{"$nulls":18},"","","","",{"$nulls":30},"","","","",{"$nulls":60},"",{"$f":"IF($A631=\"\",\"\",IF(VLOOKUP($G631,$H$11:$DN$1000,96,FALSE)=\"\",\"No\",IF(LEFT(VLOOKUP($G631,$H$11:$DN$1000,96,FALSE),3)=\"The\",EF631,VLOOKUP(VLOOKUP($G631,$H$11:$DN$1000,96,FALSE),DeclMatrix!$A$2:$F$5,VLOOKUP('Enrollment Form'!$B631,DeclMatrix!$A$8:$B$12,2,FALSE),FALSE))))","v":""},{"$f":"IF($A631=\"\",\"\",IF(VLOOKUP($G631,$H$11:$DN$1000,101,FALSE)=\"\",\"No\",IF(LEFT(VLOOKUP($G631,$H$11:$DN$1000,101,FALSE),3)=\"The\",EG631,VLOOKUP(VLOOKUP($G631,$H$11:$DN$1000,101,FALSE),DeclMatrix!$A$2:$F$5,VLOOKUP('Enrollment Form'!$B631,DeclMatrix!$A$8:$B$12,2,FALSE),FALSE))))","v":""},{"$f":"IF($A631=\"\",\"\",IF(VLOOKUP($G631,$H$11:$DN$1000,106,FALSE)=\"\",\"No\",IF(LEFT(VLOOKUP($G631,$H$11:$DN$1000,106,FALSE),3)=\"The\",EH631,VLOOKUP(VLOOKUP($G631,$H$11:$DN$1000,106,FALSE),DeclMatrix!$A$2:$F$5,VLOOKUP('Enrollment Form'!$B631,DeclMatrix!$A$8:$B$12,2,FALSE),FALSE))))","v":""},{"$f":"IF($A631=\"\",\"\",IF(VLOOKUP($G631,$H$11:$DN$1000,111,FALSE)=\"\",\"No\",IF(LEFT(VLOOKUP($G631,$H$11:$DN$1000,111,FALSE),3)=\"The\",EI631,VLOOKUP(VLOOKUP($G631,$H$11:$DN$1000,111,FALSE),DeclMatrix!$A$2:$F$5,VLOOKUP('Enrollment Form'!$B631,DeclMatrix!$A$8:$B$12,2,FALSE),FALSE))))","v":""},"",null,"","","","","","","","","","","",""]
["",{"$nulls":5},"","",{"$nulls":18},"","","","",{"$nulls":30},"","","","",{"$nulls":60},"",{"$f":"IF($A632=\"\",\"\",IF(VLOOKUP($G632,$H$11:$DN$1000,96,FALSE)=\"\",\"No\",IF(LEFT(VLOOKUP($G632,$H$11:$DN$1000,96,FALSE),3)=\"The\",EF632,VLOOKUP(VLOOKUP($G632,$H$11:$DN$1000,96,FALSE),DeclMatrix!$A$2:$F$5,VLOOKUP('Enrollment Form'!$B632,DeclMatrix!$A$8:$B$12,2,FALSE),FALSE))))","v":""},{"$f":"IF($A632=\"\",\"\",IF(VLOOKUP($G632,$H$11:$DN$1000,101,FALSE)=\"\",\"No\",IF(LEFT(VLOOKUP($G632,$H$11:$DN$1000,101,FALSE),3)=\"The\",EG632,VLOOKUP(VLOOKUP($G632,$H$11:$DN$1000,101,FALSE),DeclMatrix!$A$2:$F$5,VLOOKUP('Enrollment Form'!$B632,DeclMatrix!$A$8:$B$12,2,FALSE),FALSE))))","v":""},{"$f":"IF($A632=\"\",\"\",IF(VLOOKUP($G632,$H$11:$DN$1000,106,FALSE)=\"\",\"No\",IF(LEFT(VLOOKUP($G632,$H$11:$DN$1000,106,FALSE),3)=\"The\",EH632,VLOOKUP(VLOOKUP($G632,$H$11:$DN$1000,106,FALSE),DeclMatrix!$A$2:$F$5,VLOOKUP('Enrollment Form'!$B632,DeclMatrix!$A$8:$B$12,2,FALSE),FALSE))))","v":""},{"$f":"IF($A632=\"\",\"\",IF(VLOOKUP($G632,$H$11:$DN$1000,111,FALSE)=\"\",\"No\",IF(LEFT(VLOOKUP($G632,$H$11:$DN$1000,111,FALSE),3)=\"The\",EI632,VLOOKUP(VLOOKUP($G632,$H$11:$DN$1000,111,FALSE),DeclMatrix!$A$2:$F$5,VLOOKUP('Enrollment Form'!$B632,DeclMatrix!$A$8:$B$12,2,FALSE),FALSE))))","v":""},"",null,"","","","","","","","","","","",""]
["",{"$nulls":5},"","",{"$nulls":18},"","","","",{"$nulls":30},"","","","",{"$nulls":60},"",{"$f":"IF($A633=\"\",\"\",IF(VLOOKUP($G633,$H$11:$DN$1000,96,FALSE)=\"\",\"No\",IF(LEFT(VLOOKUP($G633,$H$11:$DN$1000,96,FALSE),3)=\"The\",EF633,VLOOKUP(VLOOKUP($G633,$H$11:$DN$1000,96,FALSE),DeclMatrix!$A$2:$F$5,VLOOKUP('Enrollment Form'!$B633,DeclMatrix!$A$8:$B$12,2,FALSE),FALSE))))","v":""},{"$f":"IF($A633=\"\",\"\",IF(VLOOKUP($G633,$H$11:$DN$1000,101,FALSE)=\"\",\"No\",IF(LEFT(VLOOKUP($G633,$H$11:$DN$1000,101,FALSE),3)=\"The\",EG633,VLOOKUP(VLOOKUP($G633,$H$11:$DN$1000,101,FALSE),DeclMatrix!$A$2:$F$5,VLOOKUP('Enrollment Form'!$B633,DeclMatrix!$A$8:$B$12,2,FALSE),FALSE))))","v":""},{"$f":"IF($A633=\"\",\"\",IF(VLOOKUP($G633,$H$11:$DN$1000,106,FALSE)=\"\",\"No\",IF(LEFT(VLOOKUP($G633,$H$11:$DN$1000,106,FALSE),3)=\"The\",EH633,VLOOKUP(VLOOKUP($G633,$H$11:$DN$1000,106,FALSE),DeclMatrix!$A$2:$F$5,VLOOKUP('Enrollment Form'!$B633,DeclMatrix!$A$8:$B$12,2,FALSE),FALSE))))","v":""},{"$f":"IF($A633=\"\",\"\",IF(VLOOKUP($G633,$H$11:$DN$1000,111,FALSE)=\"\",\"No\",IF(LEFT(VLOOKUP($G633,$H$11:$DN$1000,111,FALSE),3)=\"The\",EI633,VLOOKUP(VLOOKUP($G633,$H$11:$DN$1000,111,FALSE),DeclMatrix!$A$2:$F$5,VLOOKUP('Enrollment Form'!$B633,DeclMatrix!$A$8:$B$12,2,FALSE),FALSE))))","v":""},"",null,"","","","","","","","","","","",""]
["",{"$nulls":5},"","",{"$nulls":18},"","","","",{"$nulls":30},"","","","",{"$nulls":60},"",{"$f":"IF($A634=\"\",\"\",IF(VLOOKUP($G634,$H$11:$DN$1000,96,FALSE)=\"\",\"No\",IF(LEFT(VLOOKUP($G634,$H$11:$DN$1000,96,FALSE),3)=\"The\",EF634,VLOOKUP(VLOOKUP($G634,$H$11:$DN$1000,96,FALSE),DeclMatrix!$A$2:$F$5,VLOOKUP('Enrollment Form'!$B634,DeclMatrix!$A$8:$B$12,2,FALSE),FALSE))))","v":""},{"$f":"IF($A634=\"\",\"\",IF(VLOOKUP($G634,$H$11:$DN$1000,101,FALSE)=\"\",\"No\",IF(LEFT(VLOOKUP($G634,$H$11:$DN$1000,101,FALSE),3)=\"The\",EG634,VLOOKUP(VLOOKUP($G634,$H$11:$DN$1000,101,FALSE),DeclMatrix!$A$2:$F$5,VLOOKUP('Enrollment Form'!$B634,DeclMatrix!$A$8:$B$12,2,FALSE),FALSE))))","v":""},{"$f":"IF($A634=\"\",\"\",IF(VLOOKUP($G634,$H$11:$DN$1000,106,FALSE)=\"\",\"No\",IF(LEFT(VLOOKUP($G634,$H$11:$DN$1000,106,FALSE),3)=\"The\",EH634,VLOOKUP(VLOOKUP($G634,$H$11:$DN$1000,106,FALSE),DeclMatrix!$A$2:$F$5,VLOOKUP('Enrollment Form'!$B634,DeclMatrix!$A$8:$B$12,2,FALSE),FALSE))))","v":""},{"$f":"IF($A634=\"\",\"\",IF(VLOOKUP($G634,$H$11:$DN$1000,111,FALSE)=\"\",\"No\",IF(LEFT(VLOOKUP($G634,$H$11:$DN$1000,111,FALSE),3)=\"The\",EI634,VLOOKUP(VLOOKUP($G634,$H$11:$DN$1000,111,FALSE),DeclMatrix!$A$2:$F$5,VLOOKUP('Enrollment Form'!$B634,DeclMatrix!$A$8:$B$12,2,FALSE),FALSE))))","v":""},"",null,"","","","","","","","","","","",""]
["",{"$nulls":5},"","",{"$nulls":18},"","","","",{"$nulls":30},"","","","",{"$nulls":60},"",{"$f":"IF($A635=\"\",\"\",IF(VLOOKUP($G635,$H$11:$DN$1000,96,FALSE)=\"\",\"No\",IF(LEFT(VLOOKUP($G635,$H$11:$DN$1000,96,FALSE),3)=\"The\",EF635,VLOOKUP(VLOOKUP($G635,$H$11:$DN$1000,96,FALSE),DeclMatrix!$A$2:$F$5,VLOOKUP('Enrollment Form'!$B635,DeclMatrix!$A$8:$B$12,2,FALSE),FALSE))))","v":""},{"$f":"IF($A635=\"\",\"\",IF(VLOOKUP($G635,$H$11:$DN$1000,101,FALSE)=\"\",\"No\",IF(LEFT(VLOOKUP($G635,$H$11:$DN$1000,101,FALSE),3)=\"The\",EG635,VLOOKUP(VLOOKUP($G635,$H$11:$DN$1000,101,FALSE),DeclMatrix!$A$2:$F$5,VLOOKUP('Enrollment Form'!$B635,DeclMatrix!$A$8:$B$12,2,FALSE),FALSE))))","v":""},{"$f":"IF($A635=\"\",\"\",IF(VLOOKUP($G635,$H$11:$DN$1000,106,FALSE)=\"\",\"No\",IF(LEFT(VLOOKUP($G635,$H$11:$DN$1000,106,FALSE),3)=\"The\",EH635,VLOOKUP(VLOOKUP($G635,$H$11:$DN$1000,106,FALSE),DeclMatrix!$A$2:$F$5,VLOOKUP('Enrollment Form'!$B635,DeclMatrix!$A$8:$B$12,2,FALSE),FALSE))))","v":""},{"$f":"IF($A635=\"\",\"\",IF(VLOOKUP($G635,$H$11:$DN$1000,111,FALSE)=\"\",\"No\",IF(LEFT(VLOOKUP($G635,$H$11:$DN$1000,111,FALSE),3)=\"The\",EI635,VLOOKUP(VLOOKUP($G635,$H$11:$DN$1000,111,FALSE),DeclMatrix!$A$2:$F$5,VLOOKUP('Enrollment Form'!$B635,DeclMatrix!$A$8:$B$12,2,FALSE),FALSE))))","v":""},"",null,"","","","","","","","","","","",""]
["",{"$nulls":5},"","",{"$nulls":18},"","","","",{"$nulls":30},"","","","",{"$nulls":60},"",{"$f":"IF($A636=\"\",\"\",IF(VLOOKUP($G636,$H$11:$DN$1000,96,FALSE)=\"\",\"No\",IF(LEFT(VLOOKUP($G636,$H$11:$DN$1000,96,FALSE),3)=\"The\",EF636,VLOOKUP(VLOOKUP($G636,$H$11:$DN$1000,96,FALSE),DeclMatrix!$A$2:$F$5,VLOOKUP('Enrollment Form'!$B636,DeclMatrix!$A$8:$B$12,2,FALSE),FALSE))))","v":""},{"$f":"IF($A636=\"\",\"\",IF(VLOOKUP($G636,$H$11:$DN$1000,101,FALSE)=\"\",\"No\",IF(LEFT(VLOOKUP($G636,$H$11:$DN$1000,101,FALSE),3)=\"The\",EG636,VLOOKUP(VLOOKUP($G636,$H$11:$DN$1000,101,FALSE),DeclMatrix!$A$2:$F$5,VLOOKUP('Enrollment Form'!$B636,DeclMatrix!$A$8:$B$12,2,FALSE),FALSE))))","v":""},{"$f":"IF($A636=\"\",\"\",IF(VLOOKUP($G636,$H$11:$DN$1000,106,FALSE)=\"\",\"No\",IF(LEFT(VLOOKUP($G636,$H$11:$DN$1000,106,FALSE),3)=\"The\",EH636,VLOOKUP(VLOOKUP($G636,$H$11:$DN$1000,106,FALSE),DeclMatrix!$A$2:$F$5,VLOOKUP('Enrollment Form'!$B636,DeclMatrix!$A$8:$B$12,2,FALSE),FALSE))))","v":""},{"$f":"IF($A636=\"\",\"\",IF(VLOOKUP($G636,$H$11:$DN$1000,111,FALSE)=\"\",\"No\",IF(LEFT(VLOOKUP($G636,$H$11:$DN$1000,111,FALSE),3)=\"The\",EI636,VLOOKUP(VLOOKUP($G636,$H$11:$DN$1000,111,FALSE),DeclMatrix!$A$2:$F$5,VLOOKUP('Enrollment Form'!$B636,DeclMatrix!$A$8:$B$12,2,FALSE),FALSE))))","v":""},"",null,"","","","","","","","","","","",""]
["",{"$nulls":5},"","",{"$nulls":18},"","","","",{"$nulls":30},"","","","",{"$nulls":60},"",{"$f":"IF($A637=\"\",\"\",IF(VLOOKUP($G637,$H$11:$DN$1000,96,FALSE)=\"\",\"No\",IF(LEFT(VLOOKUP($G637,$H$11:$DN$1000,96,FALSE),3)=\"The\",EF637,VLOOKUP(VLOOKUP($G637,$H$11:$DN$1000,96,FALSE),DeclMatrix!$A$2:$F$5,VLOOKUP('Enrollment Form'!$B637,DeclMatrix!$A$8:$B$12,2,FALSE),FALSE))))","v":""},{"$f":"IF($A637=\"\",\"\",IF(VLOOKUP($G637,$H$11:$DN$1000,101,FALSE)=\"\",\"No\",IF(LEFT(VLOOKUP($G637,$H$11:$DN$1000,101,FALSE),3)=\"The\",EG637,VLOOKUP(VLOOKUP($G637,$H$11:$DN$1000,101,FALSE),DeclMatrix!$A$2:$F$5,VLOOKUP('Enrollment Form'!$B637,DeclMatrix!$A$8:$B$12,2,FALSE),FALSE))))","v":""},{"$f":"IF($A637=\"\",\"\",IF(VLOOKUP($G637,$H$11:$DN$1000,106,FALSE)=\"\",\"No\",IF(LEFT(VLOOKUP($G637,$H$11:$DN$1000,106,FALSE),3)=\"The\",EH637,VLOOKUP(VLOOKUP($G637,$H$11:$DN$1000,106,FALSE),DeclMatrix!$A$2:$F$5,VLOOKUP('Enrollment Form'!$B637,DeclMatrix!$A$8:$B$12,2,FALSE),FALSE))))","v":""},{"$f":"IF($A637=\"\",\"\",IF(VLOOKUP($G637,$H$11:$DN$1000,111,FALSE)=\"\",\"No\",IF(LEFT(VLOOKUP($G637,$H$11:$DN$1000,111,FALSE),3)=\"The\",EI637,VLOOKUP(VLOOKUP($G637,$H$11:$DN$1000,111,FALSE),DeclMatrix!$A$2:$F$5,VLOOKUP('Enrollment Form'!$B637,DeclMatrix!$A$8:$B$12,2,FALSE),FALSE))))","v":""},"",null,"","","","","","","","","","","",""]
["",{"$nulls":5},"","",{"$nulls":18},"","","","",{"$nulls":30},"","","","",{"$nulls":60},"",{"$f":"IF($A638=\"\",\"\",IF(VLOOKUP($G638,$H$11:$DN$1000,96,FALSE)=\"\",\"No\",IF(LEFT(VLOOKUP($G638,$H$11:$DN$1000,96,FALSE),3)=\"The\",EF638,VLOOKUP(VLOOKUP($G638,$H$11:$DN$1000,96,FALSE),DeclMatrix!$A$2:$F$5,VLOOKUP('Enrollment Form'!$B638,DeclMatrix!$A$8:$B$12,2,FALSE),FALSE))))","v":""},{"$f":"IF($A638=\"\",\"\",IF(VLOOKUP($G638,$H$11:$DN$1000,101,FALSE)=\"\",\"No\",IF(LEFT(VLOOKUP($G638,$H$11:$DN$1000,101,FALSE),3)=\"The\",EG638,VLOOKUP(VLOOKUP($G638,$H$11:$DN$1000,101,FALSE),DeclMatrix!$A$2:$F$5,VLOOKUP('Enrollment Form'!$B638,DeclMatrix!$A$8:$B$12,2,FALSE),FALSE))))","v":""},{"$f":"IF($A638=\"\",\"\",IF(VLOOKUP($G638,$H$11:$DN$1000,106,FALSE)=\"\",\"No\",IF(LEFT(VLOOKUP($G638,$H$11:$DN$1000,106,FALSE),3)=\"The\",EH638,VLOOKUP(VLOOKUP($G638,$H$11:$DN$1000,106,FALSE),DeclMatrix!$A$2:$F$5,VLOOKUP('Enrollment Form'!$B638,DeclMatrix!$A$8:$B$12,2,FALSE),FALSE))))","v":""},{"$f":"IF($A638=\"\",\"\",IF(VLOOKUP($G638,$H$11:$DN$1000,111,FALSE)=\"\",\"No\",IF(LEFT(VLOOKUP($G638,$H$11:$DN$1000,111,FALSE),3)=\"The\",EI638,VLOOKUP(VLOOKUP($G638,$H$11:$DN$1000,111,FALSE),DeclMatrix!$A$2:$F$5,VLOOKUP('Enrollment Form'!$B638,DeclMatrix!$A$8:$B$12,2,FALSE),FALSE))))","v":""},"",null,"","","","","","","","","","","",""]
["",{"$nulls":5},"","",{"$nulls":18},"","","","",{"$nulls":30},"","","","",{"$nulls":60},"",{"$f":"IF($A639=\"\",\"\",IF(VLOOKUP($G639,$H$11:$DN$1000,96,FALSE)=\"\",\"No\",IF(LEFT(VLOOKUP($G639,$H$11:$DN$1000,96,FALSE),3)=\"The\",EF639,VLOOKUP(VLOOKUP($G639,$H$11:$DN$1000,96,FALSE),DeclMatrix!$A$2:$F$5,VLOOKUP('Enrollment Form'!$B639,DeclMatrix!$A$8:$B$12,2,FALSE),FALSE))))","v":""},{"$f":"IF($A639=\"\",\"\",IF(VLOOKUP($G639,$H$11:$DN$1000,101,FALSE)=\"\",\"No\",IF(LEFT(VLOOKUP($G639,$H$11:$DN$1000,101,FALSE),3)=\"The\",EG639,VLOOKUP(VLOOKUP($G639,$H$11:$DN$1000,101,FALSE),DeclMatrix!$A$2:$F$5,VLOOKUP('Enrollment Form'!$B639,DeclMatrix!$A$8:$B$12,2,FALSE),FALSE))))","v":""},{"$f":"IF($A639=\"\",\"\",IF(VLOOKUP($G639,$H$11:$DN$1000,106,FALSE)=\"\",\"No\",IF(LEFT(VLOOKUP($G639,$H$11:$DN$1000,106,FALSE),3)=\"The\",EH639,VLOOKUP(VLOOKUP($G639,$H$11:$DN$1000,106,FALSE),DeclMatrix!$A$2:$F$5,VLOOKUP('Enrollment Form'!$B639,DeclMatrix!$A$8:$B$12,2,FALSE),FALSE))))","v":""},{"$f":"IF($A639=\"\",\"\",IF(VLOOKUP($G639,$H$11:$DN$1000,111,FALSE)=\"\",\"No\",IF(LEFT(VLOOKUP($G639,$H$11:$DN$1000,111,FALSE),3)=\"The\",EI639,VLOOKUP(VLOOKUP($G639,$H$11:$DN$1000,111,FALSE),DeclMatrix!$A$2:$F$5,VLOOKUP('Enrollment Form'!$B639,DeclMatrix!$A$8:$B$12,2,FALSE),FALSE))))","v":""},"",null,"","","","","","","","","","","",""]
["",{"$nulls":5},"","",{"$nulls":18},"","","","",{"$nulls":30},"","","","",{"$nulls":60},"",{"$f":"IF($A640=\"\",\"\",IF(VLOOKUP($G640,$H$11:$DN$1000,96,FALSE)=\"\",\"No\",IF(LEFT(VLOOKUP($G640,$H$11:$DN$1000,96,FALSE),3)=\"The\",EF640,VLOOKUP(VLOOKUP($G640,$H$11:$DN$1000,96,FALSE),DeclMatrix!$A$2:$F$5,VLOOKUP('Enrollment Form'!$B640,DeclMatrix!$A$8:$B$12,2,FALSE),FALSE))))","v":""},{"$f":"IF($A640=\"\",\"\",IF(VLOOKUP($G640,$H$11:$DN$1000,101,FALSE)=\"\",\"No\",IF(LEFT(VLOOKUP($G640,$H$11:$DN$1000,101,FALSE),3)=\"The\",EG640,VLOOKUP(VLOOKUP($G640,$H$11:$DN$1000,101,FALSE),DeclMatrix!$A$2:$F$5,VLOOKUP('Enrollment Form'!$B640,DeclMatrix!$A$8:$B$12,2,FALSE),FALSE))))","v":""},{"$f":"IF($A640=\"\",\"\",IF(VLOOKUP($G640,$H$11:$DN$1000,106,FALSE)=\"\",\"No\",IF(LEFT(VLOOKUP($G640,$H$11:$DN$1000,106,FALSE),3)=\"The\",EH640,VLOOKUP(VLOOKUP($G640,$H$11:$DN$1000,106,FALSE),DeclMatrix!$A$2:$F$5,VLOOKUP('Enrollment Form'!$B640,DeclMatrix!$A$8:$B$12,2,FALSE),FALSE))))","v":""},{"$f":"IF($A640=\"\",\"\",IF(VLOOKUP($G640,$H$11:$DN$1000,111,FALSE)=\"\",\"No\",IF(LEFT(VLOOKUP($G640,$H$11:$DN$1000,111,FALSE),3)=\"The\",EI640,VLOOKUP(VLOOKUP($G640,$H$11:$DN$1000,111,FALSE),DeclMatrix!$A$2:$F$5,VLOOKUP('Enrollment Form'!$B640,DeclMatrix!$A$8:$B$12,2,FALSE),FALSE))))","v":""},"",null,"","","","","","","","","","","",""]
["",{"$nulls":5},"","",{"$nulls":18},"","","","",{"$nulls":30},"","","","",{"$nulls":60},"",{"$f":"IF($A641=\"\",\"\",IF(VLOOKUP($G641,$H$11:$DN$1000,96,FALSE)=\"\",\"No\",IF(LEFT(VLOOKUP($G641,$H$11:$DN$1000,96,FALSE),3)=\"The\",EF641,VLOOKUP(VLOOKUP($G641,$H$11:$DN$1000,96,FALSE),DeclMatrix!$A$2:$F$5,VLOOKUP('Enrollment Form'!$B641,DeclMatrix!$A$8:$B$12,2,FALSE),FALSE))))","v":""},{"$f":"IF($A641=\"\",\"\",IF(VLOOKUP($G641,$H$11:$DN$1000,101,FALSE)=\"\",\"No\",IF(LEFT(VLOOKUP($G641,$H$11:$DN$1000,101,FALSE),3)=\"The\",EG641,VLOOKUP(VLOOKUP($G641,$H$11:$DN$1000,101,FALSE),DeclMatrix!$A$2:$F$5,VLOOKUP('Enrollment Form'!$B641,DeclMatrix!$A$8:$B$12,2,FALSE),FALSE))))","v":""},{"$f":"IF($A641=\"\",\"\",IF(VLOOKUP($G641,$H$11:$DN$1000,106,FALSE)=\"\",\"No\",IF(LEFT(VLOOKUP($G641,$H$11:$DN$1000,106,FALSE),3)=\"The\",EH641,VLOOKUP(VLOOKUP($G641,$H$11:$DN$1000,106,FALSE),DeclMatrix!$A$2:$F$5,VLOOKUP('Enrollment Form'!$B641,DeclMatrix!$A$8:$B$12,2,FALSE),FALSE))))","v":""},{"$f":"IF($A641=\"\",\"\",IF(VLOOKUP($G641,$H$11:$DN$1000,111,FALSE)=\"\",\"No\",IF(LEFT(VLOOKUP($G641,$H$11:$DN$1000,111,FALSE),3)=\"The\",EI641,VLOOKUP(VLOOKUP($G641,$H$11:$DN$1000,111,FALSE),DeclMatrix!$A$2:$F$5,VLOOKUP('Enrollment Form'!$B641,DeclMatrix!$A$8:$B$12,2,FALSE),FALSE))))","v":""},"",null,"","","","","","","","","","","",""]
["",{"$nulls":5},"","",{"$nulls":18},"","","","",{"$nulls":30},"","","","",{"$nulls":60},"",{"$f":"IF($A642=\"\",\"\",IF(VLOOKUP($G642,$H$11:$DN$1000,96,FALSE)=\"\",\"No\",IF(LEFT(VLOOKUP($G642,$H$11:$DN$1000,96,FALSE),3)=\"The\",EF642,VLOOKUP(VLOOKUP($G642,$H$11:$DN$1000,96,FALSE),DeclMatrix!$A$2:$F$5,VLOOKUP('Enrollment Form'!$B642,DeclMatrix!$A$8:$B$12,2,FALSE),FALSE))))","v":""},{"$f":"IF($A642=\"\",\"\",IF(VLOOKUP($G642,$H$11:$DN$1000,101,FALSE)=\"\",\"No\",IF(LEFT(VLOOKUP($G642,$H$11:$DN$1000,101,FALSE),3)=\"The\",EG642,VLOOKUP(VLOOKUP($G642,$H$11:$DN$1000,101,FALSE),DeclMatrix!$A$2:$F$5,VLOOKUP('Enrollment Form'!$B642,DeclMatrix!$A$8:$B$12,2,FALSE),FALSE))))","v":""},{"$f":"IF($A642=\"\",\"\",IF(VLOOKUP($G642,$H$11:$DN$1000,106,FALSE)=\"\",\"No\",IF(LEFT(VLOOKUP($G642,$H$11:$DN$1000,106,FALSE),3)=\"The\",EH642,VLOOKUP(VLOOKUP($G642,$H$11:$DN$1000,106,FALSE),DeclMatrix!$A$2:$F$5,VLOOKUP('Enrollment Form'!$B642,DeclMatrix!$A$8:$B$12,2,FALSE),FALSE))))","v":""},{"$f":"IF($A642=\"\",\"\",IF(VLOOKUP($G642,$H$11:$DN$1000,111,FALSE)=\"\",\"No\",IF(LEFT(VLOOKUP($G642,$H$11:$DN$1000,111,FALSE),3)=\"The\",EI642,VLOOKUP(VLOOKUP($G642,$H$11:$DN$1000,111,FALSE),DeclMatrix!$A$2:$F$5,VLOOKUP('Enrollment Form'!$B642,DeclMatrix!$A$8:$B$12,2,FALSE),FALSE))))","v":""},"",null,"","","","","","","","","","","",""]
["",{"$nulls":5},"","",{"$nulls":18},"","","","",{"$nulls":30},"","","","",{"$nulls":60},"",{"$f":"IF($A643=\"\",\"\",IF(VLOOKUP($G643,$H$11:$DN$1000,96,FALSE)=\"\",\"No\",IF(LEFT(VLOOKUP($G643,$H$11:$DN$1000,96,FALSE),3)=\"The\",EF643,VLOOKUP(VLOOKUP($G643,$H$11:$DN$1000,96,FALSE),DeclMatrix!$A$2:$F$5,VLOOKUP('Enrollment Form'!$B643,DeclMatrix!$A$8:$B$12,2,FALSE),FALSE))))","v":""},{"$f":"IF($A643=\"\",\"\",IF(VLOOKUP($G643,$H$11:$DN$1000,101,FALSE)=\"\",\"No\",IF(LEFT(VLOOKUP($G643,$H$11:$DN$1000,101,FALSE),3)=\"The\",EG643,VLOOKUP(VLOOKUP($G643,$H$11:$DN$1000,101,FALSE),DeclMatrix!$A$2:$F$5,VLOOKUP('Enrollment Form'!$B643,DeclMatrix!$A$8:$B$12,2,FALSE),FALSE))))","v":""},{"$f":"IF($A643=\"\",\"\",IF(VLOOKUP($G643,$H$11:$DN$1000,106,FALSE)=\"\",\"No\",IF(LEFT(VLOOKUP($G643,$H$11:$DN$1000,106,FALSE),3)=\"The\",EH643,VLOOKUP(VLOOKUP($G643,$H$11:$DN$1000,106,FALSE),DeclMatrix!$A$2:$F$5,VLOOKUP('Enrollment Form'!$B643,DeclMatrix!$A$8:$B$12,2,FALSE),FALSE))))","v":""},{"$f":"IF($A643=\"\",\"\",IF(VLOOKUP($G643,$H$11:$DN$1000,111,FALSE)=\"\",\"No\",IF(LEFT(VLOOKUP($G643,$H$11:$DN$1000,111,FALSE),3)=\"The\",EI643,VLOOKUP(VLOOKUP($G643,$H$11:$DN$1000,111,FALSE),DeclMatrix!$A$2:$F$5,VLOOKUP('Enrollment Form'!$B643,DeclMatrix!$A$8:$B$12,2,FALSE),FALSE))))","v":""},"",null,"","","","","","","","","","","",""]
["",{"$nulls":5},"","",{"$nulls":18},"","","","",{"$nulls":30},"","","","",{"$nulls":60},"",{"$f":"IF($A644=\"\",\"\",IF(VLOOKUP($G644,$H$11:$DN$1000,96,FALSE)=\"\",\"No\",IF(LEFT(VLOOKUP($G644,$H$11:$DN$1000,96,FALSE),3)=\"The\",EF644,VLOOKUP(VLOOKUP($G644,$H$11:$DN$1000,96,FALSE),DeclMatrix!$A$2:$F$5,VLOOKUP('Enrollment Form'!$B644,DeclMatrix!$A$8:$B$12,2,FALSE),FALSE))))","v":""},{"$f":"IF($A644=\"\",\"\",IF(VLOOKUP($G644,$H$11:$DN$1000,101,FALSE)=\"\",\"No\",IF(LEFT(VLOOKUP($G644,$H$11:$DN$1000,101,FALSE),3)=\"The\",EG644,VLOOKUP(VLOOKUP($G644,$H$11:$DN$1000,101,FALSE),DeclMatrix!$A$2:$F$5,VLOOKUP('Enrollment Form'!$B644,DeclMatrix!$A$8:$B$12,2,FALSE),FALSE))))","v":""},{"$f":"IF($A644=\"\",\"\",IF(VLOOKUP($G644,$H$11:$DN$1000,106,FALSE)=\"\",\"No\",IF(LEFT(VLOOKUP($G644,$H$11:$DN$1000,106,FALSE),3)=\"The\",EH644,VLOOKUP(VLOOKUP($G644,$H$11:$DN$1000,106,FALSE),DeclMatrix!$A$2:$F$5,VLOOKUP('Enrollment Form'!$B644,DeclMatrix!$A$8:$B$12,2,FALSE),FALSE))))","v":""},{"$f":"IF($A644=\"\",\"\",IF(VLOOKUP($G644,$H$11:$DN$1000,111,FALSE)=\"\",\"No\",IF(LEFT(VLOOKUP($G644,$H$11:$DN$1000,111,FALSE),3)=\"The\",EI644,VLOOKUP(VLOOKUP($G644,$H$11:$DN$1000,111,FALSE),DeclMatrix!$A$2:$F$5,VLOOKUP('Enrollment Form'!$B644,DeclMatrix!$A$8:$B$12,2,FALSE),FALSE))))","v":""},"",null,"","","","","","","","","","","",""]
["",{"$nulls":5},"","",{"$nulls":18},"","","","",{"$nulls":30},"","","","",{"$nulls":60},"",{"$f":"IF($A645=\"\",\"\",IF(VLOOKUP($G645,$H$11:$DN$1000,96,FALSE)=\"\",\"No\",IF(LEFT(VLOOKUP($G645,$H$11:$DN$1000,96,FALSE),3)=\"The\",EF645,VLOOKUP(VLOOKUP($G645,$H$11:$DN$1000,96,FALSE),DeclMatrix!$A$2:$F$5,VLOOKUP('Enrollment Form'!$B645,DeclMatrix!$A$8:$B$12,2,FALSE),FALSE))))","v":""},{"$f":"IF($A645=\"\",\"\",IF(VLOOKUP($G645,$H$11:$DN$1000,101,FALSE)=\"\",\"No\",IF(LEFT(VLOOKUP($G645,$H$11:$DN$1000,101,FALSE),3)=\"The\",EG645,VLOOKUP(VLOOKUP($G645,$H$11:$DN$1000,101,FALSE),DeclMatrix!$A$2:$F$5,VLOOKUP('Enrollment Form'!$B645,DeclMatrix!$A$8:$B$12,2,FALSE),FALSE))))","v":""},{"$f":"IF($A645=\"\",\"\",IF(VLOOKUP($G645,$H$11:$DN$1000,106,FALSE)=\"\",\"No\",IF(LEFT(VLOOKUP($G645,$H$11:$DN$1000,106,FALSE),3)=\"The\",EH645,VLOOKUP(VLOOKUP($G645,$H$11:$DN$1000,106,FALSE),DeclMatrix!$A$2:$F$5,VLOOKUP('Enrollment Form'!$B645,DeclMatrix!$A$8:$B$12,2,FALSE),FALSE))))","v":""},{"$f":"IF($A645=\"\",\"\",IF(VLOOKUP($G645,$H$11:$DN$1000,111,FALSE)=\"\",\"No\",IF(LEFT(VLOOKUP($G645,$H$11:$DN$1000,111,FALSE),3)=\"The\",EI645,VLOOKUP(VLOOKUP($G645,$H$11:$DN$1000,111,FALSE),DeclMatrix!$A$2:$F$5,VLOOKUP('Enrollment Form'!$B645,DeclMatrix!$A$8:$B$12,2,FALSE),FALSE))))","v":""},"",null,"","","","","","","","","","","",""]
["",{"$nulls":5},"","",{"$nulls":18},"","","","",{"$nulls":30},"","","","",{"$nulls":60},"",{"$f":"IF($A646=\"\",\"\",IF(VLOOKUP($G646,$H$11:$DN$1000,96,FALSE)=\"\",\"No\",IF(LEFT(VLOOKUP($G646,$H$11:$DN$1000,96,FALSE),3)=\"The\",EF646,VLOOKUP(VLOOKUP($G646,$H$11:$DN$1000,96,FALSE),DeclMatrix!$A$2:$F$5,VLOOKUP('Enrollment Form'!$B646,DeclMatrix!$A$8:$B$12,2,FALSE),FALSE))))","v":""},{"$f":"IF($A646=\"\",\"\",IF(VLOOKUP($G646,$H$11:$DN$1000,101,FALSE)=\"\",\"No\",IF(LEFT(VLOOKUP($G646,$H$11:$DN$1000,101,FALSE),3)=\"The\",EG646,VLOOKUP(VLOOKUP($G646,$H$11:$DN$1000,101,FALSE),DeclMatrix!$A$2:$F$5,VLOOKUP('Enrollment Form'!$B646,DeclMatrix!$A$8:$B$12,2,FALSE),FALSE))))","v":""},{"$f":"IF($A646=\"\",\"\",IF(VLOOKUP($G646,$H$11:$DN$1000,106,FALSE)=\"\",\"No\",IF(LEFT(VLOOKUP($G646,$H$11:$DN$1000,106,FALSE),3)=\"The\",EH646,VLOOKUP(VLOOKUP($G646,$H$11:$DN$1000,106,FALSE),DeclMatrix!$A$2:$F$5,VLOOKUP('Enrollment Form'!$B646,DeclMatrix!$A$8:$B$12,2,FALSE),FALSE))))","v":""},{"$f":"IF($A646=\"\",\"\",IF(VLOOKUP($G646,$H$11:$DN$1000,111,FALSE)=\"\",\"No\",IF(LEFT(VLOOKUP($G646,$H$11:$DN$1000,111,FALSE),3)=\"The\",EI646,VLOOKUP(VLOOKUP($G646,$H$11:$DN$1000,111,FALSE),DeclMatrix!$A$2:$F$5,VLOOKUP('Enrollment Form'!$B646,DeclMatrix!$A$8:$B$12,2,FALSE),FALSE))))","v":""},"",null,"","","","","","","","","","","",""]
["",{"$nulls":5},"","",{"$nulls":18},"","","","",{"$nulls":30},"","","","",{"$nulls":60},"",{"$f":"IF($A647=\"\",\"\",IF(VLOOKUP($G647,$H$11:$DN$1000,96,FALSE)=\"\",\"No\",IF(LEFT(VLOOKUP($G647,$H$11:$DN$1000,96,FALSE),3)=\"The\",EF647,VLOOKUP(VLOOKUP($G647,$H$11:$DN$1000,96,FALSE),DeclMatrix!$A$2:$F$5,VLOOKUP('Enrollment Form'!$B647,DeclMatrix!$A$8:$B$12,2,FALSE),FALSE))))","v":""},{"$f":"IF($A647=\"\",\"\",IF(VLOOKUP($G647,$H$11:$DN$1000,101,FALSE)=\"\",\"No\",IF(LEFT(VLOOKUP($G647,$H$11:$DN$1000,101,FALSE),3)=\"The\",EG647,VLOOKUP(VLOOKUP($G647,$H$11:$DN$1000,101,FALSE),DeclMatrix!$A$2:$F$5,VLOOKUP('Enrollment Form'!$B647,DeclMatrix!$A$8:$B$12,2,FALSE),FALSE))))","v":""},{"$f":"IF($A647=\"\",\"\",IF(VLOOKUP($G647,$H$11:$DN$1000,106,FALSE)=\"\",\"No\",IF(LEFT(VLOOKUP($G647,$H$11:$DN$1000,106,FALSE),3)=\"The\",EH647,VLOOKUP(VLOOKUP($G647,$H$11:$DN$1000,106,FALSE),DeclMatrix!$A$2:$F$5,VLOOKUP('Enrollment Form'!$B647,DeclMatrix!$A$8:$B$12,2,FALSE),FALSE))))","v":""},{"$f":"IF($A647=\"\",\"\",IF(VLOOKUP($G647,$H$11:$DN$1000,111,FALSE)=\"\",\"No\",IF(LEFT(VLOOKUP($G647,$H$11:$DN$1000,111,FALSE),3)=\"The\",EI647,VLOOKUP(VLOOKUP($G647,$H$11:$DN$1000,111,FALSE),DeclMatrix!$A$2:$F$5,VLOOKUP('Enrollment Form'!$B647,DeclMatrix!$A$8:$B$12,2,FALSE),FALSE))))","v":""},"",null,"","","","","","","","","","","",""]
["",{"$nulls":5},"","",{"$nulls":18},"","","","",{"$nulls":30},"","","","",{"$nulls":60},"",{"$f":"IF($A648=\"\",\"\",IF(VLOOKUP($G648,$H$11:$DN$1000,96,FALSE)=\"\",\"No\",IF(LEFT(VLOOKUP($G648,$H$11:$DN$1000,96,FALSE),3)=\"The\",EF648,VLOOKUP(VLOOKUP($G648,$H$11:$DN$1000,96,FALSE),DeclMatrix!$A$2:$F$5,VLOOKUP('Enrollment Form'!$B648,DeclMatrix!$A$8:$B$12,2,FALSE),FALSE))))","v":""},{"$f":"IF($A648=\"\",\"\",IF(VLOOKUP($G648,$H$11:$DN$1000,101,FALSE)=\"\",\"No\",IF(LEFT(VLOOKUP($G648,$H$11:$DN$1000,101,FALSE),3)=\"The\",EG648,VLOOKUP(VLOOKUP($G648,$H$11:$DN$1000,101,FALSE),DeclMatrix!$A$2:$F$5,VLOOKUP('Enrollment Form'!$B648,DeclMatrix!$A$8:$B$12,2,FALSE),FALSE))))","v":""},{"$f":"IF($A648=\"\",\"\",IF(VLOOKUP($G648,$H$11:$DN$1000,106,FALSE)=\"\",\"No\",IF(LEFT(VLOOKUP($G648,$H$11:$DN$1000,106,FALSE),3)=\"The\",EH648,VLOOKUP(VLOOKUP($G648,$H$11:$DN$1000,106,FALSE),DeclMatrix!$A$2:$F$5,VLOOKUP('Enrollment Form'!$B648,DeclMatrix!$A$8:$B$12,2,FALSE),FALSE))))","v":""},{"$f":"IF($A648=\"\",\"\",IF(VLOOKUP($G648,$H$11:$DN$1000,111,FALSE)=\"\",\"No\",IF(LEFT(VLOOKUP($G648,$H$11:$DN$1000,111,FALSE),3)=\"The\",EI648,VLOOKUP(VLOOKUP($G648,$H$11:$DN$1000,111,FALSE),DeclMatrix!$A$2:$F$5,VLOOKUP('Enrollment Form'!$B648,DeclMatrix!$A$8:$B$12,2,FALSE),FALSE))))","v":""},"",null,"","","","","","","","","","","",""]
["",{"$nulls":5},"","",{"$nulls":18},"","","","",{"$nulls":30},"","","","",{"$nulls":60},"",{"$f":"IF($A649=\"\",\"\",IF(VLOOKUP($G649,$H$11:$DN$1000,96,FALSE)=\"\",\"No\",IF(LEFT(VLOOKUP($G649,$H$11:$DN$1000,96,FALSE),3)=\"The\",EF649,VLOOKUP(VLOOKUP($G649,$H$11:$DN$1000,96,FALSE),DeclMatrix!$A$2:$F$5,VLOOKUP('Enrollment Form'!$B649,DeclMatrix!$A$8:$B$12,2,FALSE),FALSE))))","v":""},{"$f":"IF($A649=\"\",\"\",IF(VLOOKUP($G649,$H$11:$DN$1000,101,FALSE)=\"\",\"No\",IF(LEFT(VLOOKUP($G649,$H$11:$DN$1000,101,FALSE),3)=\"The\",EG649,VLOOKUP(VLOOKUP($G649,$H$11:$DN$1000,101,FALSE),DeclMatrix!$A$2:$F$5,VLOOKUP('Enrollment Form'!$B649,DeclMatrix!$A$8:$B$12,2,FALSE),FALSE))))","v":""},{"$f":"IF($A649=\"\",\"\",IF(VLOOKUP($G649,$H$11:$DN$1000,106,FALSE)=\"\",\"No\",IF(LEFT(VLOOKUP($G649,$H$11:$DN$1000,106,FALSE),3)=\"The\",EH649,VLOOKUP(VLOOKUP($G649,$H$11:$DN$1000,106,FALSE),DeclMatrix!$A$2:$F$5,VLOOKUP('Enrollment Form'!$B649,DeclMatrix!$A$8:$B$12,2,FALSE),FALSE))))","v":""},{"$f":"IF($A649=\"\",\"\",IF(VLOOKUP($G649,$H$11:$DN$1000,111,FALSE)=\"\",\"No\",IF(LEFT(VLOOKUP($G649,$H$11:$DN$1000,111,FALSE),3)=\"The\",EI649,VLOOKUP(VLOOKUP($G649,$H$11:$DN$1000,111,FALSE),DeclMatrix!$A$2:$F$5,VLOOKUP('Enrollment Form'!$B649,DeclMatrix!$A$8:$B$12,2,FALSE),FALSE))))","v":""},"",null,"","","","","","","","","","","",""]
["",{"$nulls":5},"","",{"$nulls":18},"","","","",{"$nulls":30},"","","","",{"$nulls":60},"",{"$f":"IF($A650=\"\",\"\",IF(VLOOKUP($G650,$H$11:$DN$1000,96,FALSE)=\"\",\"No\",IF(LEFT(VLOOKUP($G650,$H$11:$DN$1000,96,FALSE),3)=\"The\",EF650,VLOOKUP(VLOOKUP($G650,$H$11:$DN$1000,96,FALSE),DeclMatrix!$A$2:$F$5,VLOOKUP('Enrollment Form'!$B650,DeclMatrix!$A$8:$B$12,2,FALSE),FALSE))))","v":""},{"$f":"IF($A650=\"\",\"\",IF(VLOOKUP($G650,$H$11:$DN$1000,101,FALSE)=\"\",\"No\",IF(LEFT(VLOOKUP($G650,$H$11:$DN$1000,101,FALSE),3)=\"The\",EG650,VLOOKUP(VLOOKUP($G650,$H$11:$DN$1000,101,FALSE),DeclMatrix!$A$2:$F$5,VLOOKUP('Enrollment Form'!$B650,DeclMatrix!$A$8:$B$12,2,FALSE),FALSE))))","v":""},{"$f":"IF($A650=\"\",\"\",IF(VLOOKUP($G650,$H$11:$DN$1000,106,FALSE)=\"\",\"No\",IF(LEFT(VLOOKUP($G650,$H$11:$DN$1000,106,FALSE),3)=\"The\",EH650,VLOOKUP(VLOOKUP($G650,$H$11:$DN$1000,106,FALSE),DeclMatrix!$A$2:$F$5,VLOOKUP('Enrollment Form'!$B650,DeclMatrix!$A$8:$B$12,2,FALSE),FALSE))))","v":""},{"$f":"IF($A650=\"\",\"\",IF(VLOOKUP($G650,$H$11:$DN$1000,111,FALSE)=\"\",\"No\",IF(LEFT(VLOOKUP($G650,$H$11:$DN$1000,111,FALSE),3)=\"The\",EI650,VLOOKUP(VLOOKUP($G650,$H$11:$DN$1000,111,FALSE),DeclMatrix!$A$2:$F$5,VLOOKUP('Enrollment Form'!$B650,DeclMatrix!$A$8:$B$12,2,FALSE),FALSE))))","v":""},"",null,"","","","","","","","","","","",""]
[{"$f":"IF(LEN($B651)>0,$C$2,\"\")","v":""},{"$nulls":5},"","",{"$nulls":18},"","","","",{"$nulls":30},{"$f":"IF(AND($B651<>\"Subscriber\",$BH651=\"Yes\"),VLOOKUP($G651,$H$11:$Y$1000,15,FALSE),\"\")","v":""},{"$f":"IF(AND($B651<>\"Subscriber\",$BH651=\"Yes\"),VLOOKUP($G651,$H$11:$Y$1000,16,FALSE),\"\")","v":""},{"$f":"IF(AND($B651<>\"Subscriber\",$BH651=\"Yes\"),VLOOKUP($G651,$H$11:$Y$1000,17,FALSE),\"\")","v":""},{"$f":"IF(AND($B651<>\"Subscriber\",$BH651=\"Yes\"),VLOOKUP($G651,$H$11:$Y$1000,18,FALSE),\"\")","v":""},{"$nulls":60},{"$f":"IF($A651=\"\",\"\",IF($B651=\"Subscriber\",$AG651,VLOOKUP($G651,$H$11:$AG$1000,26,FALSE)))","v":""},{"$f":"IF($A651=\"\",\"\",IF(VLOOKUP($G651,$H$11:$DN$1000,96,FALSE)=\"\",\"No\",IF(LEFT(VLOOKUP($G651,$H$11:$DN$1000,96,FALSE),3)=\"The\",EF651,VLOOKUP(VLOOKUP($G651,$H$11:$DN$1000,96,FALSE),DeclMatrix!$A$2:$F$5,VLOOKUP('Enrollment Form'!$B651,DeclMatrix!$A$8:$B$12,2,FALSE),FALSE))))","v":""},{"$f":"IF($A651=\"\",\"\",IF(VLOOKUP($G651,$H$11:$DN$1000,101,FALSE)=\"\",\"No\",IF(LEFT(VLOOKUP($G651,$H$11:$DN$1000,101,FALSE),3)=\"The\",EG651,VLOOKUP(VLOOKUP($G651,$H$11:$DN$1000,101,FALSE),DeclMatrix!$A$2:$F$5,VLOOKUP('Enrollment Form'!$B651,DeclMatrix!$A$8:$B$12,2,FALSE),FALSE))))","v":""},{"$f":"IF($A651=\"\",\"\",IF(VLOOKUP($G651,$H$11:$DN$1000,106,FALSE)=\"\",\"No\",IF(LEFT(VLOOKUP($G651,$H$11:$DN$1000,106,FALSE),3)=\"The\",EH651,VLOOKUP(VLOOKUP($G651,$H$11:$DN$1000,106,FALSE),DeclMatrix!$A$2:$F$5,VLOOKUP('Enrollment Form'!$B651,DeclMatrix!$A$8:$B$12,2,FALSE),FALSE))))","v":""},{"$f":"IF($A651=\"\",\"\",IF(VLOOKUP($G651,$H$11:$DN$1000,111,FALSE)=\"\",\"No\",IF(LEFT(VLOOKUP($G651,$H$11:$DN$1000,111,FALSE),3)=\"The\",EI651,VLOOKUP(VLOOKUP($G651,$H$11:$DN$1000,111,FALSE),DeclMatrix!$A$2:$F$5,VLOOKUP('Enrollment Form'!$B651,DeclMatrix!$A$8:$B$12,2,FALSE),FALSE))))","v":""},"",null,{"$f":"$B651&$G651&$J651","v":""},{"$f":"$B651&$G651&$L651","v":""},{"$f":"$B651&$G651&$N651","v":""},{"$f":"$B651&$G651&$O651","v":""},"","","","",{"$f":"IF($A651=\"\",\"\",IF(AND($B651=\"Subscriber\",$I651<>\"Waive\",$I651<>\"\"),\"Yes\",IF(AND($B651<>\"Subscriber\",$BF651=\"Yes\"),VLOOKUP($G651,$H$11:$EM$1000,133,FALSE),IF(AND($C651=\"Enroll\",VLOOKUP($G652,$H$11:$EM$1000,96,FALSE)<>\"\"),VLOOKUP($DV651,$DW$2:$DX$3,2,FALSE),\"No\"))))","v":""},{"$f":"IF($A651=\"\",\"\",IF(AND($B651=\"Subscriber\",$K651<>\"Waive\",$K651<>\"\"),\"Yes\",IF(AND($B651<>\"Subscriber\",$BF651=\"Yes\"),VLOOKUP($G651,$H$11:$EM$1000,134,FALSE),IF(AND($C651=\"Enroll\",VLOOKUP($G652,$H$11:$EM$1000,101,FALSE)<>\"\"),VLOOKUP($DW651,$DW$2:$DX$3,2,FALSE),\"No\"))))","v":""},{"$f":"IF($A651=\"\",\"\",IF(AND($B651=\"Subscriber\",$M651<>\"Waive\",$M651<>\"\"),\"Yes\",IF(AND($B651<>\"Subscriber\",$BF651=\"Yes\"),VLOOKUP($G651,$H$11:$EM$1000,135,FALSE),IF(AND($C651=\"Enroll\",VLOOKUP($G652,$H$11:$EM$1000,106,FALSE)<>\"\"),VLOOKUP($DX651,$DW$2:$DX$3,2,FALSE),\"No\"))))","v":""},{"$f":"IF($A651=\"\",\"\",IF(AND($B651=\"Subscriber\",$O651<>\"Waive\",$O651<>\"\"),\"Yes\",IF(AND($B651<>\"Subscriber\",$BF651=\"Yes\"),VLOOKUP($G651,$H$11:$EM$1000,136,FALSE),IF(AND($C651=\"Enroll\",VLOOKUP($G652,$H$11:$EM$1000,111,FALSE)<>\"\"),VLOOKUP($DY651,$DW$2:$DX$3,2,FALSE),\"No\"))))","v":""}]
["",{"$nulls":5},{"$f":"IF(A652=\"\",\"\",IF(AND(B652<>\"Subscriber\",B652<>\"\"),G651,\"\"))","v":""},{"$f":"IF(AND(B652=\"Subscriber\",G652<>\"\"),G652,\"\")","v":""},{"$nulls":18},{"$f":"IF(AND($B652=\"Subscriber\",$Z652=\"Yes\"),V652,\"\")","v":""},{"$f":"IF(AND($B652=\"Subscriber\",$Z652=\"Yes\"),W652,\"\")","v":""},{"$f":"IF(AND($B652=\"Subscriber\",$Z652=\"Yes\"),X652,\"\")","v":""},{"$f":"IF(AND($B652=\"Subscriber\",$Z652=\"Yes\"),Y652,\"\")","v":""},{"$nulls":30},"","","","",{"$nulls":60},"",{"$f":"IF($A652=\"\",\"\",IF(VLOOKUP($G652,$H$11:$DN$1000,96,FALSE)=\"\",\"No\",IF(LEFT(VLOOKUP($G652,$H$11:$DN$1000,96,FALSE),3)=\"The\",EF652,VLOOKUP(VLOOKUP($G652,$H$11:$DN$1000,96,FALSE),DeclMatrix!$A$2:$F$5,VLOOKUP('Enrollment Form'!$B652,DeclMatrix!$A$8:$B$12,2,FALSE),FALSE))))","v":""},{"$f":"IF($A652=\"\",\"\",IF(VLOOKUP($G652,$H$11:$DN$1000,101,FALSE)=\"\",\"No\",IF(LEFT(VLOOKUP($G652,$H$11:$DN$1000,101,FALSE),3)=\"The\",EG652,VLOOKUP(VLOOKUP($G652,$H$11:$DN$1000,101,FALSE),DeclMatrix!$A$2:$F$5,VLOOKUP('Enrollment Form'!$B652,DeclMatrix!$A$8:$B$12,2,FALSE),FALSE))))","v":""},{"$f":"IF($A652=\"\",\"\",IF(VLOOKUP($G652,$H$11:$DN$1000,106,FALSE)=\"\",\"No\",IF(LEFT(VLOOKUP($G652,$H$11:$DN$1000,106,FALSE),3)=\"The\",EH652,VLOOKUP(VLOOKUP($G652,$H$11:$DN$1000,106,FALSE),DeclMatrix!$A$2:$F$5,VLOOKUP('Enrollment Form'!$B652,DeclMatrix!$A$8:$B$12,2,FALSE),FALSE))))","v":""},{"$f":"IF($A652=\"\",\"\",IF(VLOOKUP($G652,$H$11:$DN$1000,111,FALSE)=\"\",\"No\",IF(LEFT(VLOOKUP($G652,$H$11:$DN$1000,111,FALSE),3)=\"The\",EI652,VLOOKUP(VLOOKUP($G652,$H$11:$DN$1000,111,FALSE),DeclMatrix!$A$2:$F$5,VLOOKUP('Enrollment Form'!$B652,DeclMatrix!$A$8:$B$12,2,FALSE),FALSE))))","v":""},{"$f":"IF(A652<>\"\",\"1X\",\"\")","v":""},null,"","","","",{"$f":"IF($A652=\"\",\"\",IF($B652=\"Subscriber\",\"No\",IF(OR($CY652=\"\",$CY652=\"No\"),\"No\",\"Yes\")))","v":""},{"$f":"IF($A652=\"\",\"\",IF($B652=\"Subscriber\",\"No\",IF(OR($DD652=\"\",$DD652=\"No\"),\"No\",\"Yes\")))","v":""},{"$f":"IF($A652=\"\",\"\",IF($B652=\"Subscriber\",\"No\",IF(OR($DI652=\"\",$DI652=\"No\"),\"No\",\"Yes\")))","v":""},{"$f":"IF($A652=\"\",\"\",IF($B652=\"Subscriber\",\"No\",IF(OR($DN652=\"\",$DN652=\"No\"),\"No\",\"Yes\")))","v":""},"","","",""]
["",{"$nulls":5},"","",{"$nulls":18},"","","","",{"$nulls":30},"","","","",{"$nulls":60},"",{"$f":"IF($A653=\"\",\"\",IF(VLOOKUP($G653,$H$11:$DN$1000,96,FALSE)=\"\",\"No\",IF(LEFT(VLOOKUP($G653,$H$11:$DN$1000,96,FALSE),3)=\"The\",EF653,VLOOKUP(VLOOKUP($G653,$H$11:$DN$1000,96,FALSE),DeclMatrix!$A$2:$F$5,VLOOKUP('Enrollment Form'!$B653,DeclMatrix!$A$8:$B$12,2,FALSE),FALSE))))","v":""},{"$f":"IF($A653=\"\",\"\",IF(VLOOKUP($G653,$H$11:$DN$1000,101,FALSE)=\"\",\"No\",IF(LEFT(VLOOKUP($G653,$H$11:$DN$1000,101,FALSE),3)=\"The\",EG653,VLOOKUP(VLOOKUP($G653,$H$11:$DN$1000,101,FALSE),DeclMatrix!$A$2:$F$5,VLOOKUP('Enrollment Form'!$B653,DeclMatrix!$A$8:$B$12,2,FALSE),FALSE))))","v":""},{"$f":"IF($A653=\"\",\"\",IF(VLOOKUP($G653,$H$11:$DN$1000,106,FALSE)=\"\",\"No\",IF(LEFT(VLOOKUP($G653,$H$11:$DN$1000,106,FALSE),3)=\"The\",EH653,VLOOKUP(VLOOKUP($G653,$H$11:$DN$1000,106,FALSE),DeclMatrix!$A$2:$F$5,VLOOKUP('Enrollment Form'!$B653,DeclMatrix!$A$8:$B$12,2,FALSE),FALSE))))","v":""},{"$f":"IF($A653=\"\",\"\",IF(VLOOKUP($G653,$H$11:$DN$1000,111,FALSE)=\"\",\"No\",IF(LEFT(VLOOKUP($G653,$H$11:$DN$1000,111,FALSE),3)=\"The\",EI653,VLOOKUP(VLOOKUP($G653,$H$11:$DN$1000,111,FALSE),DeclMatrix!$A$2:$F$5,VLOOKUP('Enrollment Form'!$B653,DeclMatrix!$A$8:$B$12,2,FALSE),FALSE))))","v":""},"",null,"","","","","","","","","","","",""]
["",{"$nulls":5},"","",{"$nulls":18},"","","","",{"$nulls":30},"","","","",{"$nulls":60},"",{"$f":"IF($A654=\"\",\"\",IF(VLOOKUP($G654,$H$11:$DN$1000,96,FALSE)=\"\",\"No\",IF(LEFT(VLOOKUP($G654,$H$11:$DN$1000,96,FALSE),3)=\"The\",EF654,VLOOKUP(VLOOKUP($G654,$H$11:$DN$1000,96,FALSE),DeclMatrix!$A$2:$F$5,VLOOKUP('Enrollment Form'!$B654,DeclMatrix!$A$8:$B$12,2,FALSE),FALSE))))","v":""},{"$f":"IF($A654=\"\",\"\",IF(VLOOKUP($G654,$H$11:$DN$1000,101,FALSE)=\"\",\"No\",IF(LEFT(VLOOKUP($G654,$H$11:$DN$1000,101,FALSE),3)=\"The\",EG654,VLOOKUP(VLOOKUP($G654,$H$11:$DN$1000,101,FALSE),DeclMatrix!$A$2:$F$5,VLOOKUP('Enrollment Form'!$B654,DeclMatrix!$A$8:$B$12,2,FALSE),FALSE))))","v":""},{"$f":"IF($A654=\"\",\"\",IF(VLOOKUP($G654,$H$11:$DN$1000,106,FALSE)=\"\",\"No\",IF(LEFT(VLOOKUP($G654,$H$11:$DN$1000,106,FALSE),3)=\"The\",EH654,VLOOKUP(VLOOKUP($G654,$H$11:$DN$1000,106,FALSE),DeclMatrix!$A$2:$F$5,VLOOKUP('Enrollment Form'!$B654,DeclMatrix!$A$8:$B$12,2,FALSE),FALSE))))","v":""},{"$f":"IF($A654=\"\",\"\",IF(VLOOKUP($G654,$H$11:$DN$1000,111,FALSE)=\"\",\"No\",IF(LEFT(VLOOKUP($G654,$H$11:$DN$1000,111,FALSE),3)=\"The\",EI654,VLOOKUP(VLOOKUP($G654,$H$11:$DN$1000,111,FALSE),DeclMatrix!$A$2:$F$5,VLOOKUP('Enrollment Form'!$B654,DeclMatrix!$A$8:$B$12,2,FALSE),FALSE))))","v":""},"",null,"","","","","","","","","","","",""]
["",{"$nulls":5},"","",{"$nulls":18},"","","","",{"$nulls":30},"","","","",{"$nulls":60},"",{"$f":"IF($A655=\"\",\"\",IF(VLOOKUP($G655,$H$11:$DN$1000,96,FALSE)=\"\",\"No\",IF(LEFT(VLOOKUP($G655,$H$11:$DN$1000,96,FALSE),3)=\"The\",EF655,VLOOKUP(VLOOKUP($G655,$H$11:$DN$1000,96,FALSE),DeclMatrix!$A$2:$F$5,VLOOKUP('Enrollment Form'!$B655,DeclMatrix!$A$8:$B$12,2,FALSE),FALSE))))","v":""},{"$f":"IF($A655=\"\",\"\",IF(VLOOKUP($G655,$H$11:$DN$1000,101,FALSE)=\"\",\"No\",IF(LEFT(VLOOKUP($G655,$H$11:$DN$1000,101,FALSE),3)=\"The\",EG655,VLOOKUP(VLOOKUP($G655,$H$11:$DN$1000,101,FALSE),DeclMatrix!$A$2:$F$5,VLOOKUP('Enrollment Form'!$B655,DeclMatrix!$A$8:$B$12,2,FALSE),FALSE))))","v":""},{"$f":"IF($A655=\"\",\"\",IF(VLOOKUP($G655,$H$11:$DN$1000,106,FALSE)=\"\",\"No\",IF(LEFT(VLOOKUP($G655,$H$11:$DN$1000,106,FALSE),3)=\"The\",EH655,VLOOKUP(VLOOKUP($G655,$H$11:$DN$1000,106,FALSE),DeclMatrix!$A$2:$F$5,VLOOKUP('Enrollment Form'!$B655,DeclMatrix!$A$8:$B$12,2,FALSE),FALSE))))","v":""},{"$f":"IF($A655=\"\",\"\",IF(VLOOKUP($G655,$H$11:$DN$1000,111,FALSE)=\"\",\"No\",IF(LEFT(VLOOKUP($G655,$H$11:$DN$1000,111,FALSE),3)=\"The\",EI655,VLOOKUP(VLOOKUP($G655,$H$11:$DN$1000,111,FALSE),DeclMatrix!$A$2:$F$5,VLOOKUP('Enrollment Form'!$B655,DeclMatrix!$A$8:$B$12,2,FALSE),FALSE))))","v":""},"",null,"","","","","","","","","","","",""]
["",{"$nulls":5},"","",{"$nulls":18},"","","","",{"$nulls":30},"","","","",{"$nulls":60},"",{"$f":"IF($A656=\"\",\"\",IF(VLOOKUP($G656,$H$11:$DN$1000,96,FALSE)=\"\",\"No\",IF(LEFT(VLOOKUP($G656,$H$11:$DN$1000,96,FALSE),3)=\"The\",EF656,VLOOKUP(VLOOKUP($G656,$H$11:$DN$1000,96,FALSE),DeclMatrix!$A$2:$F$5,VLOOKUP('Enrollment Form'!$B656,DeclMatrix!$A$8:$B$12,2,FALSE),FALSE))))","v":""},{"$f":"IF($A656=\"\",\"\",IF(VLOOKUP($G656,$H$11:$DN$1000,101,FALSE)=\"\",\"No\",IF(LEFT(VLOOKUP($G656,$H$11:$DN$1000,101,FALSE),3)=\"The\",EG656,VLOOKUP(VLOOKUP($G656,$H$11:$DN$1000,101,FALSE),DeclMatrix!$A$2:$F$5,VLOOKUP('Enrollment Form'!$B656,DeclMatrix!$A$8:$B$12,2,FALSE),FALSE))))","v":""},{"$f":"IF($A656=\"\",\"\",IF(VLOOKUP($G656,$H$11:$DN$1000,106,FALSE)=\"\",\"No\",IF(LEFT(VLOOKUP($G656,$H$11:$DN$1000,106,FALSE),3)=\"The\",EH656,VLOOKUP(VLOOKUP($G656,$H$11:$DN$1000,106,FALSE),DeclMatrix!$A$2:$F$5,VLOOKUP('Enrollment Form'!$B656,DeclMatrix!$A$8:$B$12,2,FALSE),FALSE))))","v":""},{"$f":"IF($A656=\"\",\"\",IF(VLOOKUP($G656,$H$11:$DN$1000,111,FALSE)=\"\",\"No\",IF(LEFT(VLOOKUP($G656,$H$11:$DN$1000,111,FALSE),3)=\"The\",EI656,VLOOKUP(VLOOKUP($G656,$H$11:$DN$1000,111,FALSE),DeclMatrix!$A$2:$F$5,VLOOKUP('Enrollment Form'!$B656,DeclMatrix!$A$8:$B$12,2,FALSE),FALSE))))","v":""},"",null,"","","","","","","","","","","",""]
["",{"$nulls":5},"","",{"$nulls":18},"","","","",{"$nulls":30},"","","","",{"$nulls":60},"",{"$f":"IF($A657=\"\",\"\",IF(VLOOKUP($G657,$H$11:$DN$1000,96,FALSE)=\"\",\"No\",IF(LEFT(VLOOKUP($G657,$H$11:$DN$1000,96,FALSE),3)=\"The\",EF657,VLOOKUP(VLOOKUP($G657,$H$11:$DN$1000,96,FALSE),DeclMatrix!$A$2:$F$5,VLOOKUP('Enrollment Form'!$B657,DeclMatrix!$A$8:$B$12,2,FALSE),FALSE))))","v":""},{"$f":"IF($A657=\"\",\"\",IF(VLOOKUP($G657,$H$11:$DN$1000,101,FALSE)=\"\",\"No\",IF(LEFT(VLOOKUP($G657,$H$11:$DN$1000,101,FALSE),3)=\"The\",EG657,VLOOKUP(VLOOKUP($G657,$H$11:$DN$1000,101,FALSE),DeclMatrix!$A$2:$F$5,VLOOKUP('Enrollment Form'!$B657,DeclMatrix!$A$8:$B$12,2,FALSE),FALSE))))","v":""},{"$f":"IF($A657=\"\",\"\",IF(VLOOKUP($G657,$H$11:$DN$1000,106,FALSE)=\"\",\"No\",IF(LEFT(VLOOKUP($G657,$H$11:$DN$1000,106,FALSE),3)=\"The\",EH657,VLOOKUP(VLOOKUP($G657,$H$11:$DN$1000,106,FALSE),DeclMatrix!$A$2:$F$5,VLOOKUP('Enrollment Form'!$B657,DeclMatrix!$A$8:$B$12,2,FALSE),FALSE))))","v":""},{"$f":"IF($A657=\"\",\"\",IF(VLOOKUP($G657,$H$11:$DN$1000,111,FALSE)=\"\",\"No\",IF(LEFT(VLOOKUP($G657,$H$11:$DN$1000,111,FALSE),3)=\"The\",EI657,VLOOKUP(VLOOKUP($G657,$H$11:$DN$1000,111,FALSE),DeclMatrix!$A$2:$F$5,VLOOKUP('Enrollment Form'!$B657,DeclMatrix!$A$8:$B$12,2,FALSE),FALSE))))","v":""},"",null,"","","","","","","","","","","",""]
["",{"$nulls":5},"","",{"$nulls":18},"","","","",{"$nulls":30},"","","","",{"$nulls":60},"",{"$f":"IF($A658=\"\",\"\",IF(VLOOKUP($G658,$H$11:$DN$1000,96,FALSE)=\"\",\"No\",IF(LEFT(VLOOKUP($G658,$H$11:$DN$1000,96,FALSE),3)=\"The\",EF658,VLOOKUP(VLOOKUP($G658,$H$11:$DN$1000,96,FALSE),DeclMatrix!$A$2:$F$5,VLOOKUP('Enrollment Form'!$B658,DeclMatrix!$A$8:$B$12,2,FALSE),FALSE))))","v":""},{"$f":"IF($A658=\"\",\"\",IF(VLOOKUP($G658,$H$11:$DN$1000,101,FALSE)=\"\",\"No\",IF(LEFT(VLOOKUP($G658,$H$11:$DN$1000,101,FALSE),3)=\"The\",EG658,VLOOKUP(VLOOKUP($G658,$H$11:$DN$1000,101,FALSE),DeclMatrix!$A$2:$F$5,VLOOKUP('Enrollment Form'!$B658,DeclMatrix!$A$8:$B$12,2,FALSE),FALSE))))","v":""},{"$f":"IF($A658=\"\",\"\",IF(VLOOKUP($G658,$H$11:$DN$1000,106,FALSE)=\"\",\"No\",IF(LEFT(VLOOKUP($G658,$H$11:$DN$1000,106,FALSE),3)=\"The\",EH658,VLOOKUP(VLOOKUP($G658,$H$11:$DN$1000,106,FALSE),DeclMatrix!$A$2:$F$5,VLOOKUP('Enrollment Form'!$B658,DeclMatrix!$A$8:$B$12,2,FALSE),FALSE))))","v":""},{"$f":"IF($A658=\"\",\"\",IF(VLOOKUP($G658,$H$11:$DN$1000,111,FALSE)=\"\",\"No\",IF(LEFT(VLOOKUP($G658,$H$11:$DN$1000,111,FALSE),3)=\"The\",EI658,VLOOKUP(VLOOKUP($G658,$H$11:$DN$1000,111,FALSE),DeclMatrix!$A$2:$F$5,VLOOKUP('Enrollment Form'!$B658,DeclMatrix!$A$8:$B$12,2,FALSE),FALSE))))","v":""},"",null,"","","","","","","","","","","",""]
["",{"$nulls":5},"","",{"$nulls":18},"","","","",{"$nulls":30},"","","","",{"$nulls":60},"",{"$f":"IF($A659=\"\",\"\",IF(VLOOKUP($G659,$H$11:$DN$1000,96,FALSE)=\"\",\"No\",IF(LEFT(VLOOKUP($G659,$H$11:$DN$1000,96,FALSE),3)=\"The\",EF659,VLOOKUP(VLOOKUP($G659,$H$11:$DN$1000,96,FALSE),DeclMatrix!$A$2:$F$5,VLOOKUP('Enrollment Form'!$B659,DeclMatrix!$A$8:$B$12,2,FALSE),FALSE))))","v":""},{"$f":"IF($A659=\"\",\"\",IF(VLOOKUP($G659,$H$11:$DN$1000,101,FALSE)=\"\",\"No\",IF(LEFT(VLOOKUP($G659,$H$11:$DN$1000,101,FALSE),3)=\"The\",EG659,VLOOKUP(VLOOKUP($G659,$H$11:$DN$1000,101,FALSE),DeclMatrix!$A$2:$F$5,VLOOKUP('Enrollment Form'!$B659,DeclMatrix!$A$8:$B$12,2,FALSE),FALSE))))","v":""},{"$f":"IF($A659=\"\",\"\",IF(VLOOKUP($G659,$H$11:$DN$1000,106,FALSE)=\"\",\"No\",IF(LEFT(VLOOKUP($G659,$H$11:$DN$1000,106,FALSE),3)=\"The\",EH659,VLOOKUP(VLOOKUP($G659,$H$11:$DN$1000,106,FALSE),DeclMatrix!$A$2:$F$5,VLOOKUP('Enrollment Form'!$B659,DeclMatrix!$A$8:$B$12,2,FALSE),FALSE))))","v":""},{"$f":"IF($A659=\"\",\"\",IF(VLOOKUP($G659,$H$11:$DN$1000,111,FALSE)=\"\",\"No\",IF(LEFT(VLOOKUP($G659,$H$11:$DN$1000,111,FALSE),3)=\"The\",EI659,VLOOKUP(VLOOKUP($G659,$H$11:$DN$1000,111,FALSE),DeclMatrix!$A$2:$F$5,VLOOKUP('Enrollment Form'!$B659,DeclMatrix!$A$8:$B$12,2,FALSE),FALSE))))","v":""},"",null,"","","","","","","","","","","",""]
["",{"$nulls":5},"","",{"$nulls":18},"","","","",{"$nulls":30},"","","","",{"$nulls":60},"",{"$f":"IF($A660=\"\",\"\",IF(VLOOKUP($G660,$H$11:$DN$1000,96,FALSE)=\"\",\"No\",IF(LEFT(VLOOKUP($G660,$H$11:$DN$1000,96,FALSE),3)=\"The\",EF660,VLOOKUP(VLOOKUP($G660,$H$11:$DN$1000,96,FALSE),DeclMatrix!$A$2:$F$5,VLOOKUP('Enrollment Form'!$B660,DeclMatrix!$A$8:$B$12,2,FALSE),FALSE))))","v":""},{"$f":"IF($A660=\"\",\"\",IF(VLOOKUP($G660,$H$11:$DN$1000,101,FALSE)=\"\",\"No\",IF(LEFT(VLOOKUP($G660,$H$11:$DN$1000,101,FALSE),3)=\"The\",EG660,VLOOKUP(VLOOKUP($G660,$H$11:$DN$1000,101,FALSE),DeclMatrix!$A$2:$F$5,VLOOKUP('Enrollment Form'!$B660,DeclMatrix!$A$8:$B$12,2,FALSE),FALSE))))","v":""},{"$f":"IF($A660=\"\",\"\",IF(VLOOKUP($G660,$H$11:$DN$1000,106,FALSE)=\"\",\"No\",IF(LEFT(VLOOKUP($G660,$H$11:$DN$1000,106,FALSE),3)=\"The\",EH660,VLOOKUP(VLOOKUP($G660,$H$11:$DN$1000,106,FALSE),DeclMatrix!$A$2:$F$5,VLOOKUP('Enrollment Form'!$B660,DeclMatrix!$A$8:$B$12,2,FALSE),FALSE))))","v":""},{"$f":"IF($A660=\"\",\"\",IF(VLOOKUP($G660,$H$11:$DN$1000,111,FALSE)=\"\",\"No\",IF(LEFT(VLOOKUP($G660,$H$11:$DN$1000,111,FALSE),3)=\"The\",EI660,VLOOKUP(VLOOKUP($G660,$H$11:$DN$1000,111,FALSE),DeclMatrix!$A$2:$F$5,VLOOKUP('Enrollment Form'!$B660,DeclMatrix!$A$8:$B$12,2,FALSE),FALSE))))","v":""},"",null,"","","","","","","","","","","",""]
["",{"$nulls":5},"","",{"$nulls":18},"","","","",{"$nulls":30},"","","","",{"$nulls":60},"",{"$f":"IF($A661=\"\",\"\",IF(VLOOKUP($G661,$H$11:$DN$1000,96,FALSE)=\"\",\"No\",IF(LEFT(VLOOKUP($G661,$H$11:$DN$1000,96,FALSE),3)=\"The\",EF661,VLOOKUP(VLOOKUP($G661,$H$11:$DN$1000,96,FALSE),DeclMatrix!$A$2:$F$5,VLOOKUP('Enrollment Form'!$B661,DeclMatrix!$A$8:$B$12,2,FALSE),FALSE))))","v":""},{"$f":"IF($A661=\"\",\"\",IF(VLOOKUP($G661,$H$11:$DN$1000,101,FALSE)=\"\",\"No\",IF(LEFT(VLOOKUP($G661,$H$11:$DN$1000,101,FALSE),3)=\"The\",EG661,VLOOKUP(VLOOKUP($G661,$H$11:$DN$1000,101,FALSE),DeclMatrix!$A$2:$F$5,VLOOKUP('Enrollment Form'!$B661,DeclMatrix!$A$8:$B$12,2,FALSE),FALSE))))","v":""},{"$f":"IF($A661=\"\",\"\",IF(VLOOKUP($G661,$H$11:$DN$1000,106,FALSE)=\"\",\"No\",IF(LEFT(VLOOKUP($G661,$H$11:$DN$1000,106,FALSE),3)=\"The\",EH661,VLOOKUP(VLOOKUP($G661,$H$11:$DN$1000,106,FALSE),DeclMatrix!$A$2:$F$5,VLOOKUP('Enrollment Form'!$B661,DeclMatrix!$A$8:$B$12,2,FALSE),FALSE))))","v":""},{"$f":"IF($A661=\"\",\"\",IF(VLOOKUP($G661,$H$11:$DN$1000,111,FALSE)=\"\",\"No\",IF(LEFT(VLOOKUP($G661,$H$11:$DN$1000,111,FALSE),3)=\"The\",EI661,VLOOKUP(VLOOKUP($G661,$H$11:$DN$1000,111,FALSE),DeclMatrix!$A$2:$F$5,VLOOKUP('Enrollment Form'!$B661,DeclMatrix!$A$8:$B$12,2,FALSE),FALSE))))","v":""},"",null,"","","","","","","","","","","",""]
["",{"$nulls":5},"","",{"$nulls":18},"","","","",{"$nulls":30},"","","","",{"$nulls":60},"",{"$f":"IF($A662=\"\",\"\",IF(VLOOKUP($G662,$H$11:$DN$1000,96,FALSE)=\"\",\"No\",IF(LEFT(VLOOKUP($G662,$H$11:$DN$1000,96,FALSE),3)=\"The\",EF662,VLOOKUP(VLOOKUP($G662,$H$11:$DN$1000,96,FALSE),DeclMatrix!$A$2:$F$5,VLOOKUP('Enrollment Form'!$B662,DeclMatrix!$A$8:$B$12,2,FALSE),FALSE))))","v":""},{"$f":"IF($A662=\"\",\"\",IF(VLOOKUP($G662,$H$11:$DN$1000,101,FALSE)=\"\",\"No\",IF(LEFT(VLOOKUP($G662,$H$11:$DN$1000,101,FALSE),3)=\"The\",EG662,VLOOKUP(VLOOKUP($G662,$H$11:$DN$1000,101,FALSE),DeclMatrix!$A$2:$F$5,VLOOKUP('Enrollment Form'!$B662,DeclMatrix!$A$8:$B$12,2,FALSE),FALSE))))","v":""},{"$f":"IF($A662=\"\",\"\",IF(VLOOKUP($G662,$H$11:$DN$1000,106,FALSE)=\"\",\"No\",IF(LEFT(VLOOKUP($G662,$H$11:$DN$1000,106,FALSE),3)=\"The\",EH662,VLOOKUP(VLOOKUP($G662,$H$11:$DN$1000,106,FALSE),DeclMatrix!$A$2:$F$5,VLOOKUP('Enrollment Form'!$B662,DeclMatrix!$A$8:$B$12,2,FALSE),FALSE))))","v":""},{"$f":"IF($A662=\"\",\"\",IF(VLOOKUP($G662,$H$11:$DN$1000,111,FALSE)=\"\",\"No\",IF(LEFT(VLOOKUP($G662,$H$11:$DN$1000,111,FALSE),3)=\"The\",EI662,VLOOKUP(VLOOKUP($G662,$H$11:$DN$1000,111,FALSE),DeclMatrix!$A$2:$F$5,VLOOKUP('Enrollment Form'!$B662,DeclMatrix!$A$8:$B$12,2,FALSE),FALSE))))","v":""},"",null,"","","","","","","","","","","",""]
["",{"$nulls":5},"","",{"$nulls":18},"","","","",{"$nulls":30},"","","","",{"$nulls":60},"",{"$f":"IF($A663=\"\",\"\",IF(VLOOKUP($G663,$H$11:$DN$1000,96,FALSE)=\"\",\"No\",IF(LEFT(VLOOKUP($G663,$H$11:$DN$1000,96,FALSE),3)=\"The\",EF663,VLOOKUP(VLOOKUP($G663,$H$11:$DN$1000,96,FALSE),DeclMatrix!$A$2:$F$5,VLOOKUP('Enrollment Form'!$B663,DeclMatrix!$A$8:$B$12,2,FALSE),FALSE))))","v":""},{"$f":"IF($A663=\"\",\"\",IF(VLOOKUP($G663,$H$11:$DN$1000,101,FALSE)=\"\",\"No\",IF(LEFT(VLOOKUP($G663,$H$11:$DN$1000,101,FALSE),3)=\"The\",EG663,VLOOKUP(VLOOKUP($G663,$H$11:$DN$1000,101,FALSE),DeclMatrix!$A$2:$F$5,VLOOKUP('Enrollment Form'!$B663,DeclMatrix!$A$8:$B$12,2,FALSE),FALSE))))","v":""},{"$f":"IF($A663=\"\",\"\",IF(VLOOKUP($G663,$H$11:$DN$1000,106,FALSE)=\"\",\"No\",IF(LEFT(VLOOKUP($G663,$H$11:$DN$1000,106,FALSE),3)=\"The\",EH663,VLOOKUP(VLOOKUP($G663,$H$11:$DN$1000,106,FALSE),DeclMatrix!$A$2:$F$5,VLOOKUP('Enrollment Form'!$B663,DeclMatrix!$A$8:$B$12,2,FALSE),FALSE))))","v":""},{"$f":"IF($A663=\"\",\"\",IF(VLOOKUP($G663,$H$11:$DN$1000,111,FALSE)=\"\",\"No\",IF(LEFT(VLOOKUP($G663,$H$11:$DN$1000,111,FALSE),3)=\"The\",EI663,VLOOKUP(VLOOKUP($G663,$H$11:$DN$1000,111,FALSE),DeclMatrix!$A$2:$F$5,VLOOKUP('Enrollment Form'!$B663,DeclMatrix!$A$8:$B$12,2,FALSE),FALSE))))","v":""},"",null,"","","","","","","","","","","",""]
["",{"$nulls":5},"","",{"$nulls":18},"","","","",{"$nulls":30},"","","","",{"$nulls":60},"",{"$f":"IF($A664=\"\",\"\",IF(VLOOKUP($G664,$H$11:$DN$1000,96,FALSE)=\"\",\"No\",IF(LEFT(VLOOKUP($G664,$H$11:$DN$1000,96,FALSE),3)=\"The\",EF664,VLOOKUP(VLOOKUP($G664,$H$11:$DN$1000,96,FALSE),DeclMatrix!$A$2:$F$5,VLOOKUP('Enrollment Form'!$B664,DeclMatrix!$A$8:$B$12,2,FALSE),FALSE))))","v":""},{"$f":"IF($A664=\"\",\"\",IF(VLOOKUP($G664,$H$11:$DN$1000,101,FALSE)=\"\",\"No\",IF(LEFT(VLOOKUP($G664,$H$11:$DN$1000,101,FALSE),3)=\"The\",EG664,VLOOKUP(VLOOKUP($G664,$H$11:$DN$1000,101,FALSE),DeclMatrix!$A$2:$F$5,VLOOKUP('Enrollment Form'!$B664,DeclMatrix!$A$8:$B$12,2,FALSE),FALSE))))","v":""},{"$f":"IF($A664=\"\",\"\",IF(VLOOKUP($G664,$H$11:$DN$1000,106,FALSE)=\"\",\"No\",IF(LEFT(VLOOKUP($G664,$H$11:$DN$1000,106,FALSE),3)=\"The\",EH664,VLOOKUP(VLOOKUP($G664,$H$11:$DN$1000,106,FALSE),DeclMatrix!$A$2:$F$5,VLOOKUP('Enrollment Form'!$B664,DeclMatrix!$A$8:$B$12,2,FALSE),FALSE))))","v":""},{"$f":"IF($A664=\"\",\"\",IF(VLOOKUP($G664,$H$11:$DN$1000,111,FALSE)=\"\",\"No\",IF(LEFT(VLOOKUP($G664,$H$11:$DN$1000,111,FALSE),3)=\"The\",EI664,VLOOKUP(VLOOKUP($G664,$H$11:$DN$1000,111,FALSE),DeclMatrix!$A$2:$F$5,VLOOKUP('Enrollment Form'!$B664,DeclMatrix!$A$8:$B$12,2,FALSE),FALSE))))","v":""},"",null,"","","","","","","","","","","",""]
["",{"$nulls":5},"","",{"$nulls":18},"","","","",{"$nulls":30},"","","","",{"$nulls":60},"",{"$f":"IF($A665=\"\",\"\",IF(VLOOKUP($G665,$H$11:$DN$1000,96,FALSE)=\"\",\"No\",IF(LEFT(VLOOKUP($G665,$H$11:$DN$1000,96,FALSE),3)=\"The\",EF665,VLOOKUP(VLOOKUP($G665,$H$11:$DN$1000,96,FALSE),DeclMatrix!$A$2:$F$5,VLOOKUP('Enrollment Form'!$B665,DeclMatrix!$A$8:$B$12,2,FALSE),FALSE))))","v":""},{"$f":"IF($A665=\"\",\"\",IF(VLOOKUP($G665,$H$11:$DN$1000,101,FALSE)=\"\",\"No\",IF(LEFT(VLOOKUP($G665,$H$11:$DN$1000,101,FALSE),3)=\"The\",EG665,VLOOKUP(VLOOKUP($G665,$H$11:$DN$1000,101,FALSE),DeclMatrix!$A$2:$F$5,VLOOKUP('Enrollment Form'!$B665,DeclMatrix!$A$8:$B$12,2,FALSE),FALSE))))","v":""},{"$f":"IF($A665=\"\",\"\",IF(VLOOKUP($G665,$H$11:$DN$1000,106,FALSE)=\"\",\"No\",IF(LEFT(VLOOKUP($G665,$H$11:$DN$1000,106,FALSE),3)=\"The\",EH665,VLOOKUP(VLOOKUP($G665,$H$11:$DN$1000,106,FALSE),DeclMatrix!$A$2:$F$5,VLOOKUP('Enrollment Form'!$B665,DeclMatrix!$A$8:$B$12,2,FALSE),FALSE))))","v":""},{"$f":"IF($A665=\"\",\"\",IF(VLOOKUP($G665,$H$11:$DN$1000,111,FALSE)=\"\",\"No\",IF(LEFT(VLOOKUP($G665,$H$11:$DN$1000,111,FALSE),3)=\"The\",EI665,VLOOKUP(VLOOKUP($G665,$H$11:$DN$1000,111,FALSE),DeclMatrix!$A$2:$F$5,VLOOKUP('Enrollment Form'!$B665,DeclMatrix!$A$8:$B$12,2,FALSE),FALSE))))","v":""},"",null,"","","","","","","","","","","",""]
["",{"$nulls":5},"","",{"$nulls":18},"","","","",{"$nulls":30},"","","","",{"$nulls":60},"",{"$f":"IF($A666=\"\",\"\",IF(VLOOKUP($G666,$H$11:$DN$1000,96,FALSE)=\"\",\"No\",IF(LEFT(VLOOKUP($G666,$H$11:$DN$1000,96,FALSE),3)=\"The\",EF666,VLOOKUP(VLOOKUP($G666,$H$11:$DN$1000,96,FALSE),DeclMatrix!$A$2:$F$5,VLOOKUP('Enrollment Form'!$B666,DeclMatrix!$A$8:$B$12,2,FALSE),FALSE))))","v":""},{"$f":"IF($A666=\"\",\"\",IF(VLOOKUP($G666,$H$11:$DN$1000,101,FALSE)=\"\",\"No\",IF(LEFT(VLOOKUP($G666,$H$11:$DN$1000,101,FALSE),3)=\"The\",EG666,VLOOKUP(VLOOKUP($G666,$H$11:$DN$1000,101,FALSE),DeclMatrix!$A$2:$F$5,VLOOKUP('Enrollment Form'!$B666,DeclMatrix!$A$8:$B$12,2,FALSE),FALSE))))","v":""},{"$f":"IF($A666=\"\",\"\",IF(VLOOKUP($G666,$H$11:$DN$1000,106,FALSE)=\"\",\"No\",IF(LEFT(VLOOKUP($G666,$H$11:$DN$1000,106,FALSE),3)=\"The\",EH666,VLOOKUP(VLOOKUP($G666,$H$11:$DN$1000,106,FALSE),DeclMatrix!$A$2:$F$5,VLOOKUP('Enrollment Form'!$B666,DeclMatrix!$A$8:$B$12,2,FALSE),FALSE))))","v":""},{"$f":"IF($A666=\"\",\"\",IF(VLOOKUP($G666,$H$11:$DN$1000,111,FALSE)=\"\",\"No\",IF(LEFT(VLOOKUP($G666,$H$11:$DN$1000,111,FALSE),3)=\"The\",EI666,VLOOKUP(VLOOKUP($G666,$H$11:$DN$1000,111,FALSE),DeclMatrix!$A$2:$F$5,VLOOKUP('Enrollment Form'!$B666,DeclMatrix!$A$8:$B$12,2,FALSE),FALSE))))","v":""},"",null,"","","","","","","","","","","",""]
["",{"$nulls":5},"","",{"$nulls":18},"","","","",{"$nulls":30},"","","","",{"$nulls":60},"",{"$f":"IF($A667=\"\",\"\",IF(VLOOKUP($G667,$H$11:$DN$1000,96,FALSE)=\"\",\"No\",IF(LEFT(VLOOKUP($G667,$H$11:$DN$1000,96,FALSE),3)=\"The\",EF667,VLOOKUP(VLOOKUP($G667,$H$11:$DN$1000,96,FALSE),DeclMatrix!$A$2:$F$5,VLOOKUP('Enrollment Form'!$B667,DeclMatrix!$A$8:$B$12,2,FALSE),FALSE))))","v":""},{"$f":"IF($A667=\"\",\"\",IF(VLOOKUP($G667,$H$11:$DN$1000,101,FALSE)=\"\",\"No\",IF(LEFT(VLOOKUP($G667,$H$11:$DN$1000,101,FALSE),3)=\"The\",EG667,VLOOKUP(VLOOKUP($G667,$H$11:$DN$1000,101,FALSE),DeclMatrix!$A$2:$F$5,VLOOKUP('Enrollment Form'!$B667,DeclMatrix!$A$8:$B$12,2,FALSE),FALSE))))","v":""},{"$f":"IF($A667=\"\",\"\",IF(VLOOKUP($G667,$H$11:$DN$1000,106,FALSE)=\"\",\"No\",IF(LEFT(VLOOKUP($G667,$H$11:$DN$1000,106,FALSE),3)=\"The\",EH667,VLOOKUP(VLOOKUP($G667,$H$11:$DN$1000,106,FALSE),DeclMatrix!$A$2:$F$5,VLOOKUP('Enrollment Form'!$B667,DeclMatrix!$A$8:$B$12,2,FALSE),FALSE))))","v":""},{"$f":"IF($A667=\"\",\"\",IF(VLOOKUP($G667,$H$11:$DN$1000,111,FALSE)=\"\",\"No\",IF(LEFT(VLOOKUP($G667,$H$11:$DN$1000,111,FALSE),3)=\"The\",EI667,VLOOKUP(VLOOKUP($G667,$H$11:$DN$1000,111,FALSE),DeclMatrix!$A$2:$F$5,VLOOKUP('Enrollment Form'!$B667,DeclMatrix!$A$8:$B$12,2,FALSE),FALSE))))","v":""},"",null,"","","","","","","","","","","",""]
["",{"$nulls":5},"","",{"$nulls":18},"","","","",{"$nulls":30},"","","","",{"$nulls":60},"",{"$f":"IF($A668=\"\",\"\",IF(VLOOKUP($G668,$H$11:$DN$1000,96,FALSE)=\"\",\"No\",IF(LEFT(VLOOKUP($G668,$H$11:$DN$1000,96,FALSE),3)=\"The\",EF668,VLOOKUP(VLOOKUP($G668,$H$11:$DN$1000,96,FALSE),DeclMatrix!$A$2:$F$5,VLOOKUP('Enrollment Form'!$B668,DeclMatrix!$A$8:$B$12,2,FALSE),FALSE))))","v":""},{"$f":"IF($A668=\"\",\"\",IF(VLOOKUP($G668,$H$11:$DN$1000,101,FALSE)=\"\",\"No\",IF(LEFT(VLOOKUP($G668,$H$11:$DN$1000,101,FALSE),3)=\"The\",EG668,VLOOKUP(VLOOKUP($G668,$H$11:$DN$1000,101,FALSE),DeclMatrix!$A$2:$F$5,VLOOKUP('Enrollment Form'!$B668,DeclMatrix!$A$8:$B$12,2,FALSE),FALSE))))","v":""},{"$f":"IF($A668=\"\",\"\",IF(VLOOKUP($G668,$H$11:$DN$1000,106,FALSE)=\"\",\"No\",IF(LEFT(VLOOKUP($G668,$H$11:$DN$1000,106,FALSE),3)=\"The\",EH668,VLOOKUP(VLOOKUP($G668,$H$11:$DN$1000,106,FALSE),DeclMatrix!$A$2:$F$5,VLOOKUP('Enrollment Form'!$B668,DeclMatrix!$A$8:$B$12,2,FALSE),FALSE))))","v":""},{"$f":"IF($A668=\"\",\"\",IF(VLOOKUP($G668,$H$11:$DN$1000,111,FALSE)=\"\",\"No\",IF(LEFT(VLOOKUP($G668,$H$11:$DN$1000,111,FALSE),3)=\"The\",EI668,VLOOKUP(VLOOKUP($G668,$H$11:$DN$1000,111,FALSE),DeclMatrix!$A$2:$F$5,VLOOKUP('Enrollment Form'!$B668,DeclMatrix!$A$8:$B$12,2,FALSE),FALSE))))","v":""},"",null,"","","","","","","","","","","",""]
["",{"$nulls":5},"","",{"$nulls":18},"","","","",{"$nulls":30},"","","","",{"$nulls":60},"",{"$f":"IF($A669=\"\",\"\",IF(VLOOKUP($G669,$H$11:$DN$1000,96,FALSE)=\"\",\"No\",IF(LEFT(VLOOKUP($G669,$H$11:$DN$1000,96,FALSE),3)=\"The\",EF669,VLOOKUP(VLOOKUP($G669,$H$11:$DN$1000,96,FALSE),DeclMatrix!$A$2:$F$5,VLOOKUP('Enrollment Form'!$B669,DeclMatrix!$A$8:$B$12,2,FALSE),FALSE))))","v":""},{"$f":"IF($A669=\"\",\"\",IF(VLOOKUP($G669,$H$11:$DN$1000,101,FALSE)=\"\",\"No\",IF(LEFT(VLOOKUP($G669,$H$11:$DN$1000,101,FALSE),3)=\"The\",EG669,VLOOKUP(VLOOKUP($G669,$H$11:$DN$1000,101,FALSE),DeclMatrix!$A$2:$F$5,VLOOKUP('Enrollment Form'!$B669,DeclMatrix!$A$8:$B$12,2,FALSE),FALSE))))","v":""},{"$f":"IF($A669=\"\",\"\",IF(VLOOKUP($G669,$H$11:$DN$1000,106,FALSE)=\"\",\"No\",IF(LEFT(VLOOKUP($G669,$H$11:$DN$1000,106,FALSE),3)=\"The\",EH669,VLOOKUP(VLOOKUP($G669,$H$11:$DN$1000,106,FALSE),DeclMatrix!$A$2:$F$5,VLOOKUP('Enrollment Form'!$B669,DeclMatrix!$A$8:$B$12,2,FALSE),FALSE))))","v":""},{"$f":"IF($A669=\"\",\"\",IF(VLOOKUP($G669,$H$11:$DN$1000,111,FALSE)=\"\",\"No\",IF(LEFT(VLOOKUP($G669,$H$11:$DN$1000,111,FALSE),3)=\"The\",EI669,VLOOKUP(VLOOKUP($G669,$H$11:$DN$1000,111,FALSE),DeclMatrix!$A$2:$F$5,VLOOKUP('Enrollment Form'!$B669,DeclMatrix!$A$8:$B$12,2,FALSE),FALSE))))","v":""},"",null,"","","","","","","","","","","",""]
["",{"$nulls":5},"","",{"$nulls":18},"","","","",{"$nulls":30},"","","","",{"$nulls":60},"",{"$f":"IF($A670=\"\",\"\",IF(VLOOKUP($G670,$H$11:$DN$1000,96,FALSE)=\"\",\"No\",IF(LEFT(VLOOKUP($G670,$H$11:$DN$1000,96,FALSE),3)=\"The\",EF670,VLOOKUP(VLOOKUP($G670,$H$11:$DN$1000,96,FALSE),DeclMatrix!$A$2:$F$5,VLOOKUP('Enrollment Form'!$B670,DeclMatrix!$A$8:$B$12,2,FALSE),FALSE))))","v":""},{"$f":"IF($A670=\"\",\"\",IF(VLOOKUP($G670,$H$11:$DN$1000,101,FALSE)=\"\",\"No\",IF(LEFT(VLOOKUP($G670,$H$11:$DN$1000,101,FALSE),3)=\"The\",EG670,VLOOKUP(VLOOKUP($G670,$H$11:$DN$1000,101,FALSE),DeclMatrix!$A$2:$F$5,VLOOKUP('Enrollment Form'!$B670,DeclMatrix!$A$8:$B$12,2,FALSE),FALSE))))","v":""},{"$f":"IF($A670=\"\",\"\",IF(VLOOKUP($G670,$H$11:$DN$1000,106,FALSE)=\"\",\"No\",IF(LEFT(VLOOKUP($G670,$H$11:$DN$1000,106,FALSE),3)=\"The\",EH670,VLOOKUP(VLOOKUP($G670,$H$11:$DN$1000,106,FALSE),DeclMatrix!$A$2:$F$5,VLOOKUP('Enrollment Form'!$B670,DeclMatrix!$A$8:$B$12,2,FALSE),FALSE))))","v":""},{"$f":"IF($A670=\"\",\"\",IF(VLOOKUP($G670,$H$11:$DN$1000,111,FALSE)=\"\",\"No\",IF(LEFT(VLOOKUP($G670,$H$11:$DN$1000,111,FALSE),3)=\"The\",EI670,VLOOKUP(VLOOKUP($G670,$H$11:$DN$1000,111,FALSE),DeclMatrix!$A$2:$F$5,VLOOKUP('Enrollment Form'!$B670,DeclMatrix!$A$8:$B$12,2,FALSE),FALSE))))","v":""},"",null,"","","","","","","","","","","",""]
["",{"$nulls":5},"","",{"$nulls":18},"","","","",{"$nulls":30},"","","","",{"$nulls":60},"",{"$f":"IF($A671=\"\",\"\",IF(VLOOKUP($G671,$H$11:$DN$1000,96,FALSE)=\"\",\"No\",IF(LEFT(VLOOKUP($G671,$H$11:$DN$1000,96,FALSE),3)=\"The\",EF671,VLOOKUP(VLOOKUP($G671,$H$11:$DN$1000,96,FALSE),DeclMatrix!$A$2:$F$5,VLOOKUP('Enrollment Form'!$B671,DeclMatrix!$A$8:$B$12,2,FALSE),FALSE))))","v":""},{"$f":"IF($A671=\"\",\"\",IF(VLOOKUP($G671,$H$11:$DN$1000,101,FALSE)=\"\",\"No\",IF(LEFT(VLOOKUP($G671,$H$11:$DN$1000,101,FALSE),3)=\"The\",EG671,VLOOKUP(VLOOKUP($G671,$H$11:$DN$1000,101,FALSE),DeclMatrix!$A$2:$F$5,VLOOKUP('Enrollment Form'!$B671,DeclMatrix!$A$8:$B$12,2,FALSE),FALSE))))","v":""},{"$f":"IF($A671=\"\",\"\",IF(VLOOKUP($G671,$H$11:$DN$1000,106,FALSE)=\"\",\"No\",IF(LEFT(VLOOKUP($G671,$H$11:$DN$1000,106,FALSE),3)=\"The\",EH671,VLOOKUP(VLOOKUP($G671,$H$11:$DN$1000,106,FALSE),DeclMatrix!$A$2:$F$5,VLOOKUP('Enrollment Form'!$B671,DeclMatrix!$A$8:$B$12,2,FALSE),FALSE))))","v":""},{"$f":"IF($A671=\"\",\"\",IF(VLOOKUP($G671,$H$11:$DN$1000,111,FALSE)=\"\",\"No\",IF(LEFT(VLOOKUP($G671,$H$11:$DN$1000,111,FALSE),3)=\"The\",EI671,VLOOKUP(VLOOKUP($G671,$H$11:$DN$1000,111,FALSE),DeclMatrix!$A$2:$F$5,VLOOKUP('Enrollment Form'!$B671,DeclMatrix!$A$8:$B$12,2,FALSE),FALSE))))","v":""},"",null,"","","","","","","","","","","",""]
["",{"$nulls":5},"","",{"$nulls":18},"","","","",{"$nulls":30},"","","","",{"$nulls":60},"",{"$f":"IF($A672=\"\",\"\",IF(VLOOKUP($G672,$H$11:$DN$1000,96,FALSE)=\"\",\"No\",IF(LEFT(VLOOKUP($G672,$H$11:$DN$1000,96,FALSE),3)=\"The\",EF672,VLOOKUP(VLOOKUP($G672,$H$11:$DN$1000,96,FALSE),DeclMatrix!$A$2:$F$5,VLOOKUP('Enrollment Form'!$B672,DeclMatrix!$A$8:$B$12,2,FALSE),FALSE))))","v":""},{"$f":"IF($A672=\"\",\"\",IF(VLOOKUP($G672,$H$11:$DN$1000,101,FALSE)=\"\",\"No\",IF(LEFT(VLOOKUP($G672,$H$11:$DN$1000,101,FALSE),3)=\"The\",EG672,VLOOKUP(VLOOKUP($G672,$H$11:$DN$1000,101,FALSE),DeclMatrix!$A$2:$F$5,VLOOKUP('Enrollment Form'!$B672,DeclMatrix!$A$8:$B$12,2,FALSE),FALSE))))","v":""},{"$f":"IF($A672=\"\",\"\",IF(VLOOKUP($G672,$H$11:$DN$1000,106,FALSE)=\"\",\"No\",IF(LEFT(VLOOKUP($G672,$H$11:$DN$1000,106,FALSE),3)=\"The\",EH672,VLOOKUP(VLOOKUP($G672,$H$11:$DN$1000,106,FALSE),DeclMatrix!$A$2:$F$5,VLOOKUP('Enrollment Form'!$B672,DeclMatrix!$A$8:$B$12,2,FALSE),FALSE))))","v":""},{"$f":"IF($A672=\"\",\"\",IF(VLOOKUP($G672,$H$11:$DN$1000,111,FALSE)=\"\",\"No\",IF(LEFT(VLOOKUP($G672,$H$11:$DN$1000,111,FALSE),3)=\"The\",EI672,VLOOKUP(VLOOKUP($G672,$H$11:$DN$1000,111,FALSE),DeclMatrix!$A$2:$F$5,VLOOKUP('Enrollment Form'!$B672,DeclMatrix!$A$8:$B$12,2,FALSE),FALSE))))","v":""},"",null,"","","","","","","","","","","",""]
["",{"$nulls":5},"","",{"$nulls":18},"","","","",{"$nulls":30},"","","","",{"$nulls":60},"",{"$f":"IF($A673=\"\",\"\",IF(VLOOKUP($G673,$H$11:$DN$1000,96,FALSE)=\"\",\"No\",IF(LEFT(VLOOKUP($G673,$H$11:$DN$1000,96,FALSE),3)=\"The\",EF673,VLOOKUP(VLOOKUP($G673,$H$11:$DN$1000,96,FALSE),DeclMatrix!$A$2:$F$5,VLOOKUP('Enrollment Form'!$B673,DeclMatrix!$A$8:$B$12,2,FALSE),FALSE))))","v":""},{"$f":"IF($A673=\"\",\"\",IF(VLOOKUP($G673,$H$11:$DN$1000,101,FALSE)=\"\",\"No\",IF(LEFT(VLOOKUP($G673,$H$11:$DN$1000,101,FALSE),3)=\"The\",EG673,VLOOKUP(VLOOKUP($G673,$H$11:$DN$1000,101,FALSE),DeclMatrix!$A$2:$F$5,VLOOKUP('Enrollment Form'!$B673,DeclMatrix!$A$8:$B$12,2,FALSE),FALSE))))","v":""},{"$f":"IF($A673=\"\",\"\",IF(VLOOKUP($G673,$H$11:$DN$1000,106,FALSE)=\"\",\"No\",IF(LEFT(VLOOKUP($G673,$H$11:$DN$1000,106,FALSE),3)=\"The\",EH673,VLOOKUP(VLOOKUP($G673,$H$11:$DN$1000,106,FALSE),DeclMatrix!$A$2:$F$5,VLOOKUP('Enrollment Form'!$B673,DeclMatrix!$A$8:$B$12,2,FALSE),FALSE))))","v":""},{"$f":"IF($A673=\"\",\"\",IF(VLOOKUP($G673,$H$11:$DN$1000,111,FALSE)=\"\",\"No\",IF(LEFT(VLOOKUP($G673,$H$11:$DN$1000,111,FALSE),3)=\"The\",EI673,VLOOKUP(VLOOKUP($G673,$H$11:$DN$1000,111,FALSE),DeclMatrix!$A$2:$F$5,VLOOKUP('Enrollment Form'!$B673,DeclMatrix!$A$8:$B$12,2,FALSE),FALSE))))","v":""},"",null,"","","","","","","","","","","",""]
["",{"$nulls":5},"","",{"$nulls":18},"","","","",{"$nulls":30},"","","","",{"$nulls":60},"",{"$f":"IF($A674=\"\",\"\",IF(VLOOKUP($G674,$H$11:$DN$1000,96,FALSE)=\"\",\"No\",IF(LEFT(VLOOKUP($G674,$H$11:$DN$1000,96,FALSE),3)=\"The\",EF674,VLOOKUP(VLOOKUP($G674,$H$11:$DN$1000,96,FALSE),DeclMatrix!$A$2:$F$5,VLOOKUP('Enrollment Form'!$B674,DeclMatrix!$A$8:$B$12,2,FALSE),FALSE))))","v":""},{"$f":"IF($A674=\"\",\"\",IF(VLOOKUP($G674,$H$11:$DN$1000,101,FALSE)=\"\",\"No\",IF(LEFT(VLOOKUP($G674,$H$11:$DN$1000,101,FALSE),3)=\"The\",EG674,VLOOKUP(VLOOKUP($G674,$H$11:$DN$1000,101,FALSE),DeclMatrix!$A$2:$F$5,VLOOKUP('Enrollment Form'!$B674,DeclMatrix!$A$8:$B$12,2,FALSE),FALSE))))","v":""},{"$f":"IF($A674=\"\",\"\",IF(VLOOKUP($G674,$H$11:$DN$1000,106,FALSE)=\"\",\"No\",IF(LEFT(VLOOKUP($G674,$H$11:$DN$1000,106,FALSE),3)=\"The\",EH674,VLOOKUP(VLOOKUP($G674,$H$11:$DN$1000,106,FALSE),DeclMatrix!$A$2:$F$5,VLOOKUP('Enrollment Form'!$B674,DeclMatrix!$A$8:$B$12,2,FALSE),FALSE))))","v":""},{"$f":"IF($A674=\"\",\"\",IF(VLOOKUP($G674,$H$11:$DN$1000,111,FALSE)=\"\",\"No\",IF(LEFT(VLOOKUP($G674,$H$11:$DN$1000,111,FALSE),3)=\"The\",EI674,VLOOKUP(VLOOKUP($G674,$H$11:$DN$1000,111,FALSE),DeclMatrix!$A$2:$F$5,VLOOKUP('Enrollment Form'!$B674,DeclMatrix!$A$8:$B$12,2,FALSE),FALSE))))","v":""},"",null,"","","","","","","","","","","",""]
["",{"$nulls":5},"","",{"$nulls":18},"","","","",{"$nulls":30},"","","","",{"$nulls":60},"",{"$f":"IF($A675=\"\",\"\",IF(VLOOKUP($G675,$H$11:$DN$1000,96,FALSE)=\"\",\"No\",IF(LEFT(VLOOKUP($G675,$H$11:$DN$1000,96,FALSE),3)=\"The\",EF675,VLOOKUP(VLOOKUP($G675,$H$11:$DN$1000,96,FALSE),DeclMatrix!$A$2:$F$5,VLOOKUP('Enrollment Form'!$B675,DeclMatrix!$A$8:$B$12,2,FALSE),FALSE))))","v":""},{"$f":"IF($A675=\"\",\"\",IF(VLOOKUP($G675,$H$11:$DN$1000,101,FALSE)=\"\",\"No\",IF(LEFT(VLOOKUP($G675,$H$11:$DN$1000,101,FALSE),3)=\"The\",EG675,VLOOKUP(VLOOKUP($G675,$H$11:$DN$1000,101,FALSE),DeclMatrix!$A$2:$F$5,VLOOKUP('Enrollment Form'!$B675,DeclMatrix!$A$8:$B$12,2,FALSE),FALSE))))","v":""},{"$f":"IF($A675=\"\",\"\",IF(VLOOKUP($G675,$H$11:$DN$1000,106,FALSE)=\"\",\"No\",IF(LEFT(VLOOKUP($G675,$H$11:$DN$1000,106,FALSE),3)=\"The\",EH675,VLOOKUP(VLOOKUP($G675,$H$11:$DN$1000,106,FALSE),DeclMatrix!$A$2:$F$5,VLOOKUP('Enrollment Form'!$B675,DeclMatrix!$A$8:$B$12,2,FALSE),FALSE))))","v":""},{"$f":"IF($A675=\"\",\"\",IF(VLOOKUP($G675,$H$11:$DN$1000,111,FALSE)=\"\",\"No\",IF(LEFT(VLOOKUP($G675,$H$11:$DN$1000,111,FALSE),3)=\"The\",EI675,VLOOKUP(VLOOKUP($G675,$H$11:$DN$1000,111,FALSE),DeclMatrix!$A$2:$F$5,VLOOKUP('Enrollment Form'!$B675,DeclMatrix!$A$8:$B$12,2,FALSE),FALSE))))","v":""},"",null,"","","","","","","","","","","",""]
["",{"$nulls":5},"","",{"$nulls":18},"","","","",{"$nulls":30},"","","","",{"$nulls":60},"",{"$f":"IF($A676=\"\",\"\",IF(VLOOKUP($G676,$H$11:$DN$1000,96,FALSE)=\"\",\"No\",IF(LEFT(VLOOKUP($G676,$H$11:$DN$1000,96,FALSE),3)=\"The\",EF676,VLOOKUP(VLOOKUP($G676,$H$11:$DN$1000,96,FALSE),DeclMatrix!$A$2:$F$5,VLOOKUP('Enrollment Form'!$B676,DeclMatrix!$A$8:$B$12,2,FALSE),FALSE))))","v":""},{"$f":"IF($A676=\"\",\"\",IF(VLOOKUP($G676,$H$11:$DN$1000,101,FALSE)=\"\",\"No\",IF(LEFT(VLOOKUP($G676,$H$11:$DN$1000,101,FALSE),3)=\"The\",EG676,VLOOKUP(VLOOKUP($G676,$H$11:$DN$1000,101,FALSE),DeclMatrix!$A$2:$F$5,VLOOKUP('Enrollment Form'!$B676,DeclMatrix!$A$8:$B$12,2,FALSE),FALSE))))","v":""},{"$f":"IF($A676=\"\",\"\",IF(VLOOKUP($G676,$H$11:$DN$1000,106,FALSE)=\"\",\"No\",IF(LEFT(VLOOKUP($G676,$H$11:$DN$1000,106,FALSE),3)=\"The\",EH676,VLOOKUP(VLOOKUP($G676,$H$11:$DN$1000,106,FALSE),DeclMatrix!$A$2:$F$5,VLOOKUP('Enrollment Form'!$B676,DeclMatrix!$A$8:$B$12,2,FALSE),FALSE))))","v":""},{"$f":"IF($A676=\"\",\"\",IF(VLOOKUP($G676,$H$11:$DN$1000,111,FALSE)=\"\",\"No\",IF(LEFT(VLOOKUP($G676,$H$11:$DN$1000,111,FALSE),3)=\"The\",EI676,VLOOKUP(VLOOKUP($G676,$H$11:$DN$1000,111,FALSE),DeclMatrix!$A$2:$F$5,VLOOKUP('Enrollment Form'!$B676,DeclMatrix!$A$8:$B$12,2,FALSE),FALSE))))","v":""},"",null,"","","","","","","","","","","",""]
["",{"$nulls":5},"","",{"$nulls":18},"","","","",{"$nulls":30},"","","","",{"$nulls":60},"",{"$f":"IF($A677=\"\",\"\",IF(VLOOKUP($G677,$H$11:$DN$1000,96,FALSE)=\"\",\"No\",IF(LEFT(VLOOKUP($G677,$H$11:$DN$1000,96,FALSE),3)=\"The\",EF677,VLOOKUP(VLOOKUP($G677,$H$11:$DN$1000,96,FALSE),DeclMatrix!$A$2:$F$5,VLOOKUP('Enrollment Form'!$B677,DeclMatrix!$A$8:$B$12,2,FALSE),FALSE))))","v":""},{"$f":"IF($A677=\"\",\"\",IF(VLOOKUP($G677,$H$11:$DN$1000,101,FALSE)=\"\",\"No\",IF(LEFT(VLOOKUP($G677,$H$11:$DN$1000,101,FALSE),3)=\"The\",EG677,VLOOKUP(VLOOKUP($G677,$H$11:$DN$1000,101,FALSE),DeclMatrix!$A$2:$F$5,VLOOKUP('Enrollment Form'!$B677,DeclMatrix!$A$8:$B$12,2,FALSE),FALSE))))","v":""},{"$f":"IF($A677=\"\",\"\",IF(VLOOKUP($G677,$H$11:$DN$1000,106,FALSE)=\"\",\"No\",IF(LEFT(VLOOKUP($G677,$H$11:$DN$1000,106,FALSE),3)=\"The\",EH677,VLOOKUP(VLOOKUP($G677,$H$11:$DN$1000,106,FALSE),DeclMatrix!$A$2:$F$5,VLOOKUP('Enrollment Form'!$B677,DeclMatrix!$A$8:$B$12,2,FALSE),FALSE))))","v":""},{"$f":"IF($A677=\"\",\"\",IF(VLOOKUP($G677,$H$11:$DN$1000,111,FALSE)=\"\",\"No\",IF(LEFT(VLOOKUP($G677,$H$11:$DN$1000,111,FALSE),3)=\"The\",EI677,VLOOKUP(VLOOKUP($G677,$H$11:$DN$1000,111,FALSE),DeclMatrix!$A$2:$F$5,VLOOKUP('Enrollment Form'!$B677,DeclMatrix!$A$8:$B$12,2,FALSE),FALSE))))","v":""},"",null,"","","","","","","","","","","",""]
["",{"$nulls":5},"","",{"$nulls":18},"","","","",{"$nulls":30},"","","","",{"$nulls":60},"",{"$f":"IF($A678=\"\",\"\",IF(VLOOKUP($G678,$H$11:$DN$1000,96,FALSE)=\"\",\"No\",IF(LEFT(VLOOKUP($G678,$H$11:$DN$1000,96,FALSE),3)=\"The\",EF678,VLOOKUP(VLOOKUP($G678,$H$11:$DN$1000,96,FALSE),DeclMatrix!$A$2:$F$5,VLOOKUP('Enrollment Form'!$B678,DeclMatrix!$A$8:$B$12,2,FALSE),FALSE))))","v":""},{"$f":"IF($A678=\"\",\"\",IF(VLOOKUP($G678,$H$11:$DN$1000,101,FALSE)=\"\",\"No\",IF(LEFT(VLOOKUP($G678,$H$11:$DN$1000,101,FALSE),3)=\"The\",EG678,VLOOKUP(VLOOKUP($G678,$H$11:$DN$1000,101,FALSE),DeclMatrix!$A$2:$F$5,VLOOKUP('Enrollment Form'!$B678,DeclMatrix!$A$8:$B$12,2,FALSE),FALSE))))","v":""},{"$f":"IF($A678=\"\",\"\",IF(VLOOKUP($G678,$H$11:$DN$1000,106,FALSE)=\"\",\"No\",IF(LEFT(VLOOKUP($G678,$H$11:$DN$1000,106,FALSE),3)=\"The\",EH678,VLOOKUP(VLOOKUP($G678,$H$11:$DN$1000,106,FALSE),DeclMatrix!$A$2:$F$5,VLOOKUP('Enrollment Form'!$B678,DeclMatrix!$A$8:$B$12,2,FALSE),FALSE))))","v":""},{"$f":"IF($A678=\"\",\"\",IF(VLOOKUP($G678,$H$11:$DN$1000,111,FALSE)=\"\",\"No\",IF(LEFT(VLOOKUP($G678,$H$11:$DN$1000,111,FALSE),3)=\"The\",EI678,VLOOKUP(VLOOKUP($G678,$H$11:$DN$1000,111,FALSE),DeclMatrix!$A$2:$F$5,VLOOKUP('Enrollment Form'!$B678,DeclMatrix!$A$8:$B$12,2,FALSE),FALSE))))","v":""},"",null,"","","","","","","","","","","",""]
["",{"$nulls":5},"","",{"$nulls":18},"","","","",{"$nulls":30},"","","","",{"$nulls":60},"",{"$f":"IF($A679=\"\",\"\",IF(VLOOKUP($G679,$H$11:$DN$1000,96,FALSE)=\"\",\"No\",IF(LEFT(VLOOKUP($G679,$H$11:$DN$1000,96,FALSE),3)=\"The\",EF679,VLOOKUP(VLOOKUP($G679,$H$11:$DN$1000,96,FALSE),DeclMatrix!$A$2:$F$5,VLOOKUP('Enrollment Form'!$B679,DeclMatrix!$A$8:$B$12,2,FALSE),FALSE))))","v":""},{"$f":"IF($A679=\"\",\"\",IF(VLOOKUP($G679,$H$11:$DN$1000,101,FALSE)=\"\",\"No\",IF(LEFT(VLOOKUP($G679,$H$11:$DN$1000,101,FALSE),3)=\"The\",EG679,VLOOKUP(VLOOKUP($G679,$H$11:$DN$1000,101,FALSE),DeclMatrix!$A$2:$F$5,VLOOKUP('Enrollment Form'!$B679,DeclMatrix!$A$8:$B$12,2,FALSE),FALSE))))","v":""},{"$f":"IF($A679=\"\",\"\",IF(VLOOKUP($G679,$H$11:$DN$1000,106,FALSE)=\"\",\"No\",IF(LEFT(VLOOKUP($G679,$H$11:$DN$1000,106,FALSE),3)=\"The\",EH679,VLOOKUP(VLOOKUP($G679,$H$11:$DN$1000,106,FALSE),DeclMatrix!$A$2:$F$5,VLOOKUP('Enrollment Form'!$B679,DeclMatrix!$A$8:$B$12,2,FALSE),FALSE))))","v":""},{"$f":"IF($A679=\"\",\"\",IF(VLOOKUP($G679,$H$11:$DN$1000,111,FALSE)=\"\",\"No\",IF(LEFT(VLOOKUP($G679,$H$11:$DN$1000,111,FALSE),3)=\"The\",EI679,VLOOKUP(VLOOKUP($G679,$H$11:$DN$1000,111,FALSE),DeclMatrix!$A$2:$F$5,VLOOKUP('Enrollment Form'!$B679,DeclMatrix!$A$8:$B$12,2,FALSE),FALSE))))","v":""},"",null,"","","","","","","","","","","",""]
["",{"$nulls":5},"","",{"$nulls":18},"","","","",{"$nulls":30},"","","","",{"$nulls":60},"",{"$f":"IF($A680=\"\",\"\",IF(VLOOKUP($G680,$H$11:$DN$1000,96,FALSE)=\"\",\"No\",IF(LEFT(VLOOKUP($G680,$H$11:$DN$1000,96,FALSE),3)=\"The\",EF680,VLOOKUP(VLOOKUP($G680,$H$11:$DN$1000,96,FALSE),DeclMatrix!$A$2:$F$5,VLOOKUP('Enrollment Form'!$B680,DeclMatrix!$A$8:$B$12,2,FALSE),FALSE))))","v":""},{"$f":"IF($A680=\"\",\"\",IF(VLOOKUP($G680,$H$11:$DN$1000,101,FALSE)=\"\",\"No\",IF(LEFT(VLOOKUP($G680,$H$11:$DN$1000,101,FALSE),3)=\"The\",EG680,VLOOKUP(VLOOKUP($G680,$H$11:$DN$1000,101,FALSE),DeclMatrix!$A$2:$F$5,VLOOKUP('Enrollment Form'!$B680,DeclMatrix!$A$8:$B$12,2,FALSE),FALSE))))","v":""},{"$f":"IF($A680=\"\",\"\",IF(VLOOKUP($G680,$H$11:$DN$1000,106,FALSE)=\"\",\"No\",IF(LEFT(VLOOKUP($G680,$H$11:$DN$1000,106,FALSE),3)=\"The\",EH680,VLOOKUP(VLOOKUP($G680,$H$11:$DN$1000,106,FALSE),DeclMatrix!$A$2:$F$5,VLOOKUP('Enrollment Form'!$B680,DeclMatrix!$A$8:$B$12,2,FALSE),FALSE))))","v":""},{"$f":"IF($A680=\"\",\"\",IF(VLOOKUP($G680,$H$11:$DN$1000,111,FALSE)=\"\",\"No\",IF(LEFT(VLOOKUP($G680,$H$11:$DN$1000,111,FALSE),3)=\"The\",EI680,VLOOKUP(VLOOKUP($G680,$H$11:$DN$1000,111,FALSE),DeclMatrix!$A$2:$F$5,VLOOKUP('Enrollment Form'!$B680,DeclMatrix!$A$8:$B$12,2,FALSE),FALSE))))","v":""},"",null,"","","","","","","","","","","",""]
["",{"$nulls":5},"","",{"$nulls":18},"","","","",{"$nulls":30},"","","","",{"$nulls":60},"",{"$f":"IF($A681=\"\",\"\",IF(VLOOKUP($G681,$H$11:$DN$1000,96,FALSE)=\"\",\"No\",IF(LEFT(VLOOKUP($G681,$H$11:$DN$1000,96,FALSE),3)=\"The\",EF681,VLOOKUP(VLOOKUP($G681,$H$11:$DN$1000,96,FALSE),DeclMatrix!$A$2:$F$5,VLOOKUP('Enrollment Form'!$B681,DeclMatrix!$A$8:$B$12,2,FALSE),FALSE))))","v":""},{"$f":"IF($A681=\"\",\"\",IF(VLOOKUP($G681,$H$11:$DN$1000,101,FALSE)=\"\",\"No\",IF(LEFT(VLOOKUP($G681,$H$11:$DN$1000,101,FALSE),3)=\"The\",EG681,VLOOKUP(VLOOKUP($G681,$H$11:$DN$1000,101,FALSE),DeclMatrix!$A$2:$F$5,VLOOKUP('Enrollment Form'!$B681,DeclMatrix!$A$8:$B$12,2,FALSE),FALSE))))","v":""},{"$f":"IF($A681=\"\",\"\",IF(VLOOKUP($G681,$H$11:$DN$1000,106,FALSE)=\"\",\"No\",IF(LEFT(VLOOKUP($G681,$H$11:$DN$1000,106,FALSE),3)=\"The\",EH681,VLOOKUP(VLOOKUP($G681,$H$11:$DN$1000,106,FALSE),DeclMatrix!$A$2:$F$5,VLOOKUP('Enrollment Form'!$B681,DeclMatrix!$A$8:$B$12,2,FALSE),FALSE))))","v":""},{"$f":"IF($A681=\"\",\"\",IF(VLOOKUP($G681,$H$11:$DN$1000,111,FALSE)=\"\",\"No\",IF(LEFT(VLOOKUP($G681,$H$11:$DN$1000,111,FALSE),3)=\"The\",EI681,VLOOKUP(VLOOKUP($G681,$H$11:$DN$1000,111,FALSE),DeclMatrix!$A$2:$F$5,VLOOKUP('Enrollment Form'!$B681,DeclMatrix!$A$8:$B$12,2,FALSE),FALSE))))","v":""},"",null,"","","","","","","","","","","",""]
["",{"$nulls":5},"","",{"$nulls":18},"","","","",{"$nulls":30},"","","","",{"$nulls":60},"",{"$f":"IF($A682=\"\",\"\",IF(VLOOKUP($G682,$H$11:$DN$1000,96,FALSE)=\"\",\"No\",IF(LEFT(VLOOKUP($G682,$H$11:$DN$1000,96,FALSE),3)=\"The\",EF682,VLOOKUP(VLOOKUP($G682,$H$11:$DN$1000,96,FALSE),DeclMatrix!$A$2:$F$5,VLOOKUP('Enrollment Form'!$B682,DeclMatrix!$A$8:$B$12,2,FALSE),FALSE))))","v":""},{"$f":"IF($A682=\"\",\"\",IF(VLOOKUP($G682,$H$11:$DN$1000,101,FALSE)=\"\",\"No\",IF(LEFT(VLOOKUP($G682,$H$11:$DN$1000,101,FALSE),3)=\"The\",EG682,VLOOKUP(VLOOKUP($G682,$H$11:$DN$1000,101,FALSE),DeclMatrix!$A$2:$F$5,VLOOKUP('Enrollment Form'!$B682,DeclMatrix!$A$8:$B$12,2,FALSE),FALSE))))","v":""},{"$f":"IF($A682=\"\",\"\",IF(VLOOKUP($G682,$H$11:$DN$1000,106,FALSE)=\"\",\"No\",IF(LEFT(VLOOKUP($G682,$H$11:$DN$1000,106,FALSE),3)=\"The\",EH682,VLOOKUP(VLOOKUP($G682,$H$11:$DN$1000,106,FALSE),DeclMatrix!$A$2:$F$5,VLOOKUP('Enrollment Form'!$B682,DeclMatrix!$A$8:$B$12,2,FALSE),FALSE))))","v":""},{"$f":"IF($A682=\"\",\"\",IF(VLOOKUP($G682,$H$11:$DN$1000,111,FALSE)=\"\",\"No\",IF(LEFT(VLOOKUP($G682,$H$11:$DN$1000,111,FALSE),3)=\"The\",EI682,VLOOKUP(VLOOKUP($G682,$H$11:$DN$1000,111,FALSE),DeclMatrix!$A$2:$F$5,VLOOKUP('Enrollment Form'!$B682,DeclMatrix!$A$8:$B$12,2,FALSE),FALSE))))","v":""},"",null,"","","","","","","","","","","",""]
["",{"$nulls":5},"","",{"$nulls":18},"","","","",{"$nulls":30},"","","","",{"$nulls":60},"",{"$f":"IF($A683=\"\",\"\",IF(VLOOKUP($G683,$H$11:$DN$1000,96,FALSE)=\"\",\"No\",IF(LEFT(VLOOKUP($G683,$H$11:$DN$1000,96,FALSE),3)=\"The\",EF683,VLOOKUP(VLOOKUP($G683,$H$11:$DN$1000,96,FALSE),DeclMatrix!$A$2:$F$5,VLOOKUP('Enrollment Form'!$B683,DeclMatrix!$A$8:$B$12,2,FALSE),FALSE))))","v":""},{"$f":"IF($A683=\"\",\"\",IF(VLOOKUP($G683,$H$11:$DN$1000,101,FALSE)=\"\",\"No\",IF(LEFT(VLOOKUP($G683,$H$11:$DN$1000,101,FALSE),3)=\"The\",EG683,VLOOKUP(VLOOKUP($G683,$H$11:$DN$1000,101,FALSE),DeclMatrix!$A$2:$F$5,VLOOKUP('Enrollment Form'!$B683,DeclMatrix!$A$8:$B$12,2,FALSE),FALSE))))","v":""},{"$f":"IF($A683=\"\",\"\",IF(VLOOKUP($G683,$H$11:$DN$1000,106,FALSE)=\"\",\"No\",IF(LEFT(VLOOKUP($G683,$H$11:$DN$1000,106,FALSE),3)=\"The\",EH683,VLOOKUP(VLOOKUP($G683,$H$11:$DN$1000,106,FALSE),DeclMatrix!$A$2:$F$5,VLOOKUP('Enrollment Form'!$B683,DeclMatrix!$A$8:$B$12,2,FALSE),FALSE))))","v":""},{"$f":"IF($A683=\"\",\"\",IF(VLOOKUP($G683,$H$11:$DN$1000,111,FALSE)=\"\",\"No\",IF(LEFT(VLOOKUP($G683,$H$11:$DN$1000,111,FALSE),3)=\"The\",EI683,VLOOKUP(VLOOKUP($G683,$H$11:$DN$1000,111,FALSE),DeclMatrix!$A$2:$F$5,VLOOKUP('Enrollment Form'!$B683,DeclMatrix!$A$8:$B$12,2,FALSE),FALSE))))","v":""},"",null,"","","","","","","","","","","",""]
["",{"$nulls":5},"","",{"$nulls":18},"","","","",{"$nulls":30},"","","","",{"$nulls":60},"",{"$f":"IF($A684=\"\",\"\",IF(VLOOKUP($G684,$H$11:$DN$1000,96,FALSE)=\"\",\"No\",IF(LEFT(VLOOKUP($G684,$H$11:$DN$1000,96,FALSE),3)=\"The\",EF684,VLOOKUP(VLOOKUP($G684,$H$11:$DN$1000,96,FALSE),DeclMatrix!$A$2:$F$5,VLOOKUP('Enrollment Form'!$B684,DeclMatrix!$A$8:$B$12,2,FALSE),FALSE))))","v":""},{"$f":"IF($A684=\"\",\"\",IF(VLOOKUP($G684,$H$11:$DN$1000,101,FALSE)=\"\",\"No\",IF(LEFT(VLOOKUP($G684,$H$11:$DN$1000,101,FALSE),3)=\"The\",EG684,VLOOKUP(VLOOKUP($G684,$H$11:$DN$1000,101,FALSE),DeclMatrix!$A$2:$F$5,VLOOKUP('Enrollment Form'!$B684,DeclMatrix!$A$8:$B$12,2,FALSE),FALSE))))","v":""},{"$f":"IF($A684=\"\",\"\",IF(VLOOKUP($G684,$H$11:$DN$1000,106,FALSE)=\"\",\"No\",IF(LEFT(VLOOKUP($G684,$H$11:$DN$1000,106,FALSE),3)=\"The\",EH684,VLOOKUP(VLOOKUP($G684,$H$11:$DN$1000,106,FALSE),DeclMatrix!$A$2:$F$5,VLOOKUP('Enrollment Form'!$B684,DeclMatrix!$A$8:$B$12,2,FALSE),FALSE))))","v":""},{"$f":"IF($A684=\"\",\"\",IF(VLOOKUP($G684,$H$11:$DN$1000,111,FALSE)=\"\",\"No\",IF(LEFT(VLOOKUP($G684,$H$11:$DN$1000,111,FALSE),3)=\"The\",EI684,VLOOKUP(VLOOKUP($G684,$H$11:$DN$1000,111,FALSE),DeclMatrix!$A$2:$F$5,VLOOKUP('Enrollment Form'!$B684,DeclMatrix!$A$8:$B$12,2,FALSE),FALSE))))","v":""},"",null,"","","","","","","","","","","",""]
["",{"$nulls":5},"","",{"$nulls":18},"","","","",{"$nulls":30},"","","","",{"$nulls":60},"",{"$f":"IF($A685=\"\",\"\",IF(VLOOKUP($G685,$H$11:$DN$1000,96,FALSE)=\"\",\"No\",IF(LEFT(VLOOKUP($G685,$H$11:$DN$1000,96,FALSE),3)=\"The\",EF685,VLOOKUP(VLOOKUP($G685,$H$11:$DN$1000,96,FALSE),DeclMatrix!$A$2:$F$5,VLOOKUP('Enrollment Form'!$B685,DeclMatrix!$A$8:$B$12,2,FALSE),FALSE))))","v":""},{"$f":"IF($A685=\"\",\"\",IF(VLOOKUP($G685,$H$11:$DN$1000,101,FALSE)=\"\",\"No\",IF(LEFT(VLOOKUP($G685,$H$11:$DN$1000,101,FALSE),3)=\"The\",EG685,VLOOKUP(VLOOKUP($G685,$H$11:$DN$1000,101,FALSE),DeclMatrix!$A$2:$F$5,VLOOKUP('Enrollment Form'!$B685,DeclMatrix!$A$8:$B$12,2,FALSE),FALSE))))","v":""},{"$f":"IF($A685=\"\",\"\",IF(VLOOKUP($G685,$H$11:$DN$1000,106,FALSE)=\"\",\"No\",IF(LEFT(VLOOKUP($G685,$H$11:$DN$1000,106,FALSE),3)=\"The\",EH685,VLOOKUP(VLOOKUP($G685,$H$11:$DN$1000,106,FALSE),DeclMatrix!$A$2:$F$5,VLOOKUP('Enrollment Form'!$B685,DeclMatrix!$A$8:$B$12,2,FALSE),FALSE))))","v":""},{"$f":"IF($A685=\"\",\"\",IF(VLOOKUP($G685,$H$11:$DN$1000,111,FALSE)=\"\",\"No\",IF(LEFT(VLOOKUP($G685,$H$11:$DN$1000,111,FALSE),3)=\"The\",EI685,VLOOKUP(VLOOKUP($G685,$H$11:$DN$1000,111,FALSE),DeclMatrix!$A$2:$F$5,VLOOKUP('Enrollment Form'!$B685,DeclMatrix!$A$8:$B$12,2,FALSE),FALSE))))","v":""},"",null,"","","","","","","","","","","",""]
["",{"$nulls":5},"","",{"$nulls":18},"","","","",{"$nulls":30},"","","","",{"$nulls":60},"",{"$f":"IF($A686=\"\",\"\",IF(VLOOKUP($G686,$H$11:$DN$1000,96,FALSE)=\"\",\"No\",IF(LEFT(VLOOKUP($G686,$H$11:$DN$1000,96,FALSE),3)=\"The\",EF686,VLOOKUP(VLOOKUP($G686,$H$11:$DN$1000,96,FALSE),DeclMatrix!$A$2:$F$5,VLOOKUP('Enrollment Form'!$B686,DeclMatrix!$A$8:$B$12,2,FALSE),FALSE))))","v":""},{"$f":"IF($A686=\"\",\"\",IF(VLOOKUP($G686,$H$11:$DN$1000,101,FALSE)=\"\",\"No\",IF(LEFT(VLOOKUP($G686,$H$11:$DN$1000,101,FALSE),3)=\"The\",EG686,VLOOKUP(VLOOKUP($G686,$H$11:$DN$1000,101,FALSE),DeclMatrix!$A$2:$F$5,VLOOKUP('Enrollment Form'!$B686,DeclMatrix!$A$8:$B$12,2,FALSE),FALSE))))","v":""},{"$f":"IF($A686=\"\",\"\",IF(VLOOKUP($G686,$H$11:$DN$1000,106,FALSE)=\"\",\"No\",IF(LEFT(VLOOKUP($G686,$H$11:$DN$1000,106,FALSE),3)=\"The\",EH686,VLOOKUP(VLOOKUP($G686,$H$11:$DN$1000,106,FALSE),DeclMatrix!$A$2:$F$5,VLOOKUP('Enrollment Form'!$B686,DeclMatrix!$A$8:$B$12,2,FALSE),FALSE))))","v":""},{"$f":"IF($A686=\"\",\"\",IF(VLOOKUP($G686,$H$11:$DN$1000,111,FALSE)=\"\",\"No\",IF(LEFT(VLOOKUP($G686,$H$11:$DN$1000,111,FALSE),3)=\"The\",EI686,VLOOKUP(VLOOKUP($G686,$H$11:$DN$1000,111,FALSE),DeclMatrix!$A$2:$F$5,VLOOKUP('Enrollment Form'!$B686,DeclMatrix!$A$8:$B$12,2,FALSE),FALSE))))","v":""},"",null,"","","","","","","","","","","",""]
["",{"$nulls":5},"","",{"$nulls":18},"","","","",{"$nulls":30},"","","","",{"$nulls":60},"",{"$f":"IF($A687=\"\",\"\",IF(VLOOKUP($G687,$H$11:$DN$1000,96,FALSE)=\"\",\"No\",IF(LEFT(VLOOKUP($G687,$H$11:$DN$1000,96,FALSE),3)=\"The\",EF687,VLOOKUP(VLOOKUP($G687,$H$11:$DN$1000,96,FALSE),DeclMatrix!$A$2:$F$5,VLOOKUP('Enrollment Form'!$B687,DeclMatrix!$A$8:$B$12,2,FALSE),FALSE))))","v":""},{"$f":"IF($A687=\"\",\"\",IF(VLOOKUP($G687,$H$11:$DN$1000,101,FALSE)=\"\",\"No\",IF(LEFT(VLOOKUP($G687,$H$11:$DN$1000,101,FALSE),3)=\"The\",EG687,VLOOKUP(VLOOKUP($G687,$H$11:$DN$1000,101,FALSE),DeclMatrix!$A$2:$F$5,VLOOKUP('Enrollment Form'!$B687,DeclMatrix!$A$8:$B$12,2,FALSE),FALSE))))","v":""},{"$f":"IF($A687=\"\",\"\",IF(VLOOKUP($G687,$H$11:$DN$1000,106,FALSE)=\"\",\"No\",IF(LEFT(VLOOKUP($G687,$H$11:$DN$1000,106,FALSE),3)=\"The\",EH687,VLOOKUP(VLOOKUP($G687,$H$11:$DN$1000,106,FALSE),DeclMatrix!$A$2:$F$5,VLOOKUP('Enrollment Form'!$B687,DeclMatrix!$A$8:$B$12,2,FALSE),FALSE))))","v":""},{"$f":"IF($A687=\"\",\"\",IF(VLOOKUP($G687,$H$11:$DN$1000,111,FALSE)=\"\",\"No\",IF(LEFT(VLOOKUP($G687,$H$11:$DN$1000,111,FALSE),3)=\"The\",EI687,VLOOKUP(VLOOKUP($G687,$H$11:$DN$1000,111,FALSE),DeclMatrix!$A$2:$F$5,VLOOKUP('Enrollment Form'!$B687,DeclMatrix!$A$8:$B$12,2,FALSE),FALSE))))","v":""},"",null,"","","","","","","","","","","",""]
["",{"$nulls":5},"","",{"$nulls":18},"","","","",{"$nulls":30},"","","","",{"$nulls":60},"",{"$f":"IF($A688=\"\",\"\",IF(VLOOKUP($G688,$H$11:$DN$1000,96,FALSE)=\"\",\"No\",IF(LEFT(VLOOKUP($G688,$H$11:$DN$1000,96,FALSE),3)=\"The\",EF688,VLOOKUP(VLOOKUP($G688,$H$11:$DN$1000,96,FALSE),DeclMatrix!$A$2:$F$5,VLOOKUP('Enrollment Form'!$B688,DeclMatrix!$A$8:$B$12,2,FALSE),FALSE))))","v":""},{"$f":"IF($A688=\"\",\"\",IF(VLOOKUP($G688,$H$11:$DN$1000,101,FALSE)=\"\",\"No\",IF(LEFT(VLOOKUP($G688,$H$11:$DN$1000,101,FALSE),3)=\"The\",EG688,VLOOKUP(VLOOKUP($G688,$H$11:$DN$1000,101,FALSE),DeclMatrix!$A$2:$F$5,VLOOKUP('Enrollment Form'!$B688,DeclMatrix!$A$8:$B$12,2,FALSE),FALSE))))","v":""},{"$f":"IF($A688=\"\",\"\",IF(VLOOKUP($G688,$H$11:$DN$1000,106,FALSE)=\"\",\"No\",IF(LEFT(VLOOKUP($G688,$H$11:$DN$1000,106,FALSE),3)=\"The\",EH688,VLOOKUP(VLOOKUP($G688,$H$11:$DN$1000,106,FALSE),DeclMatrix!$A$2:$F$5,VLOOKUP('Enrollment Form'!$B688,DeclMatrix!$A$8:$B$12,2,FALSE),FALSE))))","v":""},{"$f":"IF($A688=\"\",\"\",IF(VLOOKUP($G688,$H$11:$DN$1000,111,FALSE)=\"\",\"No\",IF(LEFT(VLOOKUP($G688,$H$11:$DN$1000,111,FALSE),3)=\"The\",EI688,VLOOKUP(VLOOKUP($G688,$H$11:$DN$1000,111,FALSE),DeclMatrix!$A$2:$F$5,VLOOKUP('Enrollment Form'!$B688,DeclMatrix!$A$8:$B$12,2,FALSE),FALSE))))","v":""},"",null,"","","","","","","","","","","",""]
["",{"$nulls":5},"","",{"$nulls":18},"","","","",{"$nulls":30},"","","","",{"$nulls":60},"",{"$f":"IF($A689=\"\",\"\",IF(VLOOKUP($G689,$H$11:$DN$1000,96,FALSE)=\"\",\"No\",IF(LEFT(VLOOKUP($G689,$H$11:$DN$1000,96,FALSE),3)=\"The\",EF689,VLOOKUP(VLOOKUP($G689,$H$11:$DN$1000,96,FALSE),DeclMatrix!$A$2:$F$5,VLOOKUP('Enrollment Form'!$B689,DeclMatrix!$A$8:$B$12,2,FALSE),FALSE))))","v":""},{"$f":"IF($A689=\"\",\"\",IF(VLOOKUP($G689,$H$11:$DN$1000,101,FALSE)=\"\",\"No\",IF(LEFT(VLOOKUP($G689,$H$11:$DN$1000,101,FALSE),3)=\"The\",EG689,VLOOKUP(VLOOKUP($G689,$H$11:$DN$1000,101,FALSE),DeclMatrix!$A$2:$F$5,VLOOKUP('Enrollment Form'!$B689,DeclMatrix!$A$8:$B$12,2,FALSE),FALSE))))","v":""},{"$f":"IF($A689=\"\",\"\",IF(VLOOKUP($G689,$H$11:$DN$1000,106,FALSE)=\"\",\"No\",IF(LEFT(VLOOKUP($G689,$H$11:$DN$1000,106,FALSE),3)=\"The\",EH689,VLOOKUP(VLOOKUP($G689,$H$11:$DN$1000,106,FALSE),DeclMatrix!$A$2:$F$5,VLOOKUP('Enrollment Form'!$B689,DeclMatrix!$A$8:$B$12,2,FALSE),FALSE))))","v":""},{"$f":"IF($A689=\"\",\"\",IF(VLOOKUP($G689,$H$11:$DN$1000,111,FALSE)=\"\",\"No\",IF(LEFT(VLOOKUP($G689,$H$11:$DN$1000,111,FALSE),3)=\"The\",EI689,VLOOKUP(VLOOKUP($G689,$H$11:$DN$1000,111,FALSE),DeclMatrix!$A$2:$F$5,VLOOKUP('Enrollment Form'!$B689,DeclMatrix!$A$8:$B$12,2,FALSE),FALSE))))","v":""},"",null,"","","","","","","","","","","",""]
["",{"$nulls":5},"","",{"$nulls":18},"","","","",{"$nulls":30},"","","","",{"$nulls":60},"",{"$f":"IF($A690=\"\",\"\",IF(VLOOKUP($G690,$H$11:$DN$1000,96,FALSE)=\"\",\"No\",IF(LEFT(VLOOKUP($G690,$H$11:$DN$1000,96,FALSE),3)=\"The\",EF690,VLOOKUP(VLOOKUP($G690,$H$11:$DN$1000,96,FALSE),DeclMatrix!$A$2:$F$5,VLOOKUP('Enrollment Form'!$B690,DeclMatrix!$A$8:$B$12,2,FALSE),FALSE))))","v":""},{"$f":"IF($A690=\"\",\"\",IF(VLOOKUP($G690,$H$11:$DN$1000,101,FALSE)=\"\",\"No\",IF(LEFT(VLOOKUP($G690,$H$11:$DN$1000,101,FALSE),3)=\"The\",EG690,VLOOKUP(VLOOKUP($G690,$H$11:$DN$1000,101,FALSE),DeclMatrix!$A$2:$F$5,VLOOKUP('Enrollment Form'!$B690,DeclMatrix!$A$8:$B$12,2,FALSE),FALSE))))","v":""},{"$f":"IF($A690=\"\",\"\",IF(VLOOKUP($G690,$H$11:$DN$1000,106,FALSE)=\"\",\"No\",IF(LEFT(VLOOKUP($G690,$H$11:$DN$1000,106,FALSE),3)=\"The\",EH690,VLOOKUP(VLOOKUP($G690,$H$11:$DN$1000,106,FALSE),DeclMatrix!$A$2:$F$5,VLOOKUP('Enrollment Form'!$B690,DeclMatrix!$A$8:$B$12,2,FALSE),FALSE))))","v":""},{"$f":"IF($A690=\"\",\"\",IF(VLOOKUP($G690,$H$11:$DN$1000,111,FALSE)=\"\",\"No\",IF(LEFT(VLOOKUP($G690,$H$11:$DN$1000,111,FALSE),3)=\"The\",EI690,VLOOKUP(VLOOKUP($G690,$H$11:$DN$1000,111,FALSE),DeclMatrix!$A$2:$F$5,VLOOKUP('Enrollment Form'!$B690,DeclMatrix!$A$8:$B$12,2,FALSE),FALSE))))","v":""},"",null,"","","","","","","","","","","",""]
["",{"$nulls":5},"","",{"$nulls":18},"","","","",{"$nulls":30},"","","","",{"$nulls":60},"",{"$f":"IF($A691=\"\",\"\",IF(VLOOKUP($G691,$H$11:$DN$1000,96,FALSE)=\"\",\"No\",IF(LEFT(VLOOKUP($G691,$H$11:$DN$1000,96,FALSE),3)=\"The\",EF691,VLOOKUP(VLOOKUP($G691,$H$11:$DN$1000,96,FALSE),DeclMatrix!$A$2:$F$5,VLOOKUP('Enrollment Form'!$B691,DeclMatrix!$A$8:$B$12,2,FALSE),FALSE))))","v":""},{"$f":"IF($A691=\"\",\"\",IF(VLOOKUP($G691,$H$11:$DN$1000,101,FALSE)=\"\",\"No\",IF(LEFT(VLOOKUP($G691,$H$11:$DN$1000,101,FALSE),3)=\"The\",EG691,VLOOKUP(VLOOKUP($G691,$H$11:$DN$1000,101,FALSE),DeclMatrix!$A$2:$F$5,VLOOKUP('Enrollment Form'!$B691,DeclMatrix!$A$8:$B$12,2,FALSE),FALSE))))","v":""},{"$f":"IF($A691=\"\",\"\",IF(VLOOKUP($G691,$H$11:$DN$1000,106,FALSE)=\"\",\"No\",IF(LEFT(VLOOKUP($G691,$H$11:$DN$1000,106,FALSE),3)=\"The\",EH691,VLOOKUP(VLOOKUP($G691,$H$11:$DN$1000,106,FALSE),DeclMatrix!$A$2:$F$5,VLOOKUP('Enrollment Form'!$B691,DeclMatrix!$A$8:$B$12,2,FALSE),FALSE))))","v":""},{"$f":"IF($A691=\"\",\"\",IF(VLOOKUP($G691,$H$11:$DN$1000,111,FALSE)=\"\",\"No\",IF(LEFT(VLOOKUP($G691,$H$11:$DN$1000,111,FALSE),3)=\"The\",EI691,VLOOKUP(VLOOKUP($G691,$H$11:$DN$1000,111,FALSE),DeclMatrix!$A$2:$F$5,VLOOKUP('Enrollment Form'!$B691,DeclMatrix!$A$8:$B$12,2,FALSE),FALSE))))","v":""},"",null,"","","","","","","","","","","",""]
["",{"$nulls":5},"","",{"$nulls":18},"","","","",{"$nulls":30},"","","","",{"$nulls":60},"",{"$f":"IF($A692=\"\",\"\",IF(VLOOKUP($G692,$H$11:$DN$1000,96,FALSE)=\"\",\"No\",IF(LEFT(VLOOKUP($G692,$H$11:$DN$1000,96,FALSE),3)=\"The\",EF692,VLOOKUP(VLOOKUP($G692,$H$11:$DN$1000,96,FALSE),DeclMatrix!$A$2:$F$5,VLOOKUP('Enrollment Form'!$B692,DeclMatrix!$A$8:$B$12,2,FALSE),FALSE))))","v":""},{"$f":"IF($A692=\"\",\"\",IF(VLOOKUP($G692,$H$11:$DN$1000,101,FALSE)=\"\",\"No\",IF(LEFT(VLOOKUP($G692,$H$11:$DN$1000,101,FALSE),3)=\"The\",EG692,VLOOKUP(VLOOKUP($G692,$H$11:$DN$1000,101,FALSE),DeclMatrix!$A$2:$F$5,VLOOKUP('Enrollment Form'!$B692,DeclMatrix!$A$8:$B$12,2,FALSE),FALSE))))","v":""},{"$f":"IF($A692=\"\",\"\",IF(VLOOKUP($G692,$H$11:$DN$1000,106,FALSE)=\"\",\"No\",IF(LEFT(VLOOKUP($G692,$H$11:$DN$1000,106,FALSE),3)=\"The\",EH692,VLOOKUP(VLOOKUP($G692,$H$11:$DN$1000,106,FALSE),DeclMatrix!$A$2:$F$5,VLOOKUP('Enrollment Form'!$B692,DeclMatrix!$A$8:$B$12,2,FALSE),FALSE))))","v":""},{"$f":"IF($A692=\"\",\"\",IF(VLOOKUP($G692,$H$11:$DN$1000,111,FALSE)=\"\",\"No\",IF(LEFT(VLOOKUP($G692,$H$11:$DN$1000,111,FALSE),3)=\"The\",EI692,VLOOKUP(VLOOKUP($G692,$H$11:$DN$1000,111,FALSE),DeclMatrix!$A$2:$F$5,VLOOKUP('Enrollment Form'!$B692,DeclMatrix!$A$8:$B$12,2,FALSE),FALSE))))","v":""},"",null,"","","","","","","","","","","",""]
["",{"$nulls":5},"","",{"$nulls":18},"","","","",{"$nulls":30},"","","","",{"$nulls":60},"",{"$f":"IF($A693=\"\",\"\",IF(VLOOKUP($G693,$H$11:$DN$1000,96,FALSE)=\"\",\"No\",IF(LEFT(VLOOKUP($G693,$H$11:$DN$1000,96,FALSE),3)=\"The\",EF693,VLOOKUP(VLOOKUP($G693,$H$11:$DN$1000,96,FALSE),DeclMatrix!$A$2:$F$5,VLOOKUP('Enrollment Form'!$B693,DeclMatrix!$A$8:$B$12,2,FALSE),FALSE))))","v":""},{"$f":"IF($A693=\"\",\"\",IF(VLOOKUP($G693,$H$11:$DN$1000,101,FALSE)=\"\",\"No\",IF(LEFT(VLOOKUP($G693,$H$11:$DN$1000,101,FALSE),3)=\"The\",EG693,VLOOKUP(VLOOKUP($G693,$H$11:$DN$1000,101,FALSE),DeclMatrix!$A$2:$F$5,VLOOKUP('Enrollment Form'!$B693,DeclMatrix!$A$8:$B$12,2,FALSE),FALSE))))","v":""},{"$f":"IF($A693=\"\",\"\",IF(VLOOKUP($G693,$H$11:$DN$1000,106,FALSE)=\"\",\"No\",IF(LEFT(VLOOKUP($G693,$H$11:$DN$1000,106,FALSE),3)=\"The\",EH693,VLOOKUP(VLOOKUP($G693,$H$11:$DN$1000,106,FALSE),DeclMatrix!$A$2:$F$5,VLOOKUP('Enrollment Form'!$B693,DeclMatrix!$A$8:$B$12,2,FALSE),FALSE))))","v":""},{"$f":"IF($A693=\"\",\"\",IF(VLOOKUP($G693,$H$11:$DN$1000,111,FALSE)=\"\",\"No\",IF(LEFT(VLOOKUP($G693,$H$11:$DN$1000,111,FALSE),3)=\"The\",EI693,VLOOKUP(VLOOKUP($G693,$H$11:$DN$1000,111,FALSE),DeclMatrix!$A$2:$F$5,VLOOKUP('Enrollment Form'!$B693,DeclMatrix!$A$8:$B$12,2,FALSE),FALSE))))","v":""},"",null,"","","","","","","","","","","",""]
["",{"$nulls":5},"","",{"$nulls":18},"","","","",{"$nulls":30},"","","","",{"$nulls":60},"",{"$f":"IF($A694=\"\",\"\",IF(VLOOKUP($G694,$H$11:$DN$1000,96,FALSE)=\"\",\"No\",IF(LEFT(VLOOKUP($G694,$H$11:$DN$1000,96,FALSE),3)=\"The\",EF694,VLOOKUP(VLOOKUP($G694,$H$11:$DN$1000,96,FALSE),DeclMatrix!$A$2:$F$5,VLOOKUP('Enrollment Form'!$B694,DeclMatrix!$A$8:$B$12,2,FALSE),FALSE))))","v":""},{"$f":"IF($A694=\"\",\"\",IF(VLOOKUP($G694,$H$11:$DN$1000,101,FALSE)=\"\",\"No\",IF(LEFT(VLOOKUP($G694,$H$11:$DN$1000,101,FALSE),3)=\"The\",EG694,VLOOKUP(VLOOKUP($G694,$H$11:$DN$1000,101,FALSE),DeclMatrix!$A$2:$F$5,VLOOKUP('Enrollment Form'!$B694,DeclMatrix!$A$8:$B$12,2,FALSE),FALSE))))","v":""},{"$f":"IF($A694=\"\",\"\",IF(VLOOKUP($G694,$H$11:$DN$1000,106,FALSE)=\"\",\"No\",IF(LEFT(VLOOKUP($G694,$H$11:$DN$1000,106,FALSE),3)=\"The\",EH694,VLOOKUP(VLOOKUP($G694,$H$11:$DN$1000,106,FALSE),DeclMatrix!$A$2:$F$5,VLOOKUP('Enrollment Form'!$B694,DeclMatrix!$A$8:$B$12,2,FALSE),FALSE))))","v":""},{"$f":"IF($A694=\"\",\"\",IF(VLOOKUP($G694,$H$11:$DN$1000,111,FALSE)=\"\",\"No\",IF(LEFT(VLOOKUP($G694,$H$11:$DN$1000,111,FALSE),3)=\"The\",EI694,VLOOKUP(VLOOKUP($G694,$H$11:$DN$1000,111,FALSE),DeclMatrix!$A$2:$F$5,VLOOKUP('Enrollment Form'!$B694,DeclMatrix!$A$8:$B$12,2,FALSE),FALSE))))","v":""},"",null,"","","","","","","","","","","",""]
["",{"$nulls":5},"","",{"$nulls":18},"","","","",{"$nulls":30},"","","","",{"$nulls":60},"",{"$f":"IF($A695=\"\",\"\",IF(VLOOKUP($G695,$H$11:$DN$1000,96,FALSE)=\"\",\"No\",IF(LEFT(VLOOKUP($G695,$H$11:$DN$1000,96,FALSE),3)=\"The\",EF695,VLOOKUP(VLOOKUP($G695,$H$11:$DN$1000,96,FALSE),DeclMatrix!$A$2:$F$5,VLOOKUP('Enrollment Form'!$B695,DeclMatrix!$A$8:$B$12,2,FALSE),FALSE))))","v":""},{"$f":"IF($A695=\"\",\"\",IF(VLOOKUP($G695,$H$11:$DN$1000,101,FALSE)=\"\",\"No\",IF(LEFT(VLOOKUP($G695,$H$11:$DN$1000,101,FALSE),3)=\"The\",EG695,VLOOKUP(VLOOKUP($G695,$H$11:$DN$1000,101,FALSE),DeclMatrix!$A$2:$F$5,VLOOKUP('Enrollment Form'!$B695,DeclMatrix!$A$8:$B$12,2,FALSE),FALSE))))","v":""},{"$f":"IF($A695=\"\",\"\",IF(VLOOKUP($G695,$H$11:$DN$1000,106,FALSE)=\"\",\"No\",IF(LEFT(VLOOKUP($G695,$H$11:$DN$1000,106,FALSE),3)=\"The\",EH695,VLOOKUP(VLOOKUP($G695,$H$11:$DN$1000,106,FALSE),DeclMatrix!$A$2:$F$5,VLOOKUP('Enrollment Form'!$B695,DeclMatrix!$A$8:$B$12,2,FALSE),FALSE))))","v":""},{"$f":"IF($A695=\"\",\"\",IF(VLOOKUP($G695,$H$11:$DN$1000,111,FALSE)=\"\",\"No\",IF(LEFT(VLOOKUP($G695,$H$11:$DN$1000,111,FALSE),3)=\"The\",EI695,VLOOKUP(VLOOKUP($G695,$H$11:$DN$1000,111,FALSE),DeclMatrix!$A$2:$F$5,VLOOKUP('Enrollment Form'!$B695,DeclMatrix!$A$8:$B$12,2,FALSE),FALSE))))","v":""},"",null,"","","","","","","","","","","",""]
["",{"$nulls":5},"","",{"$nulls":18},"","","","",{"$nulls":30},"","","","",{"$nulls":60},"",{"$f":"IF($A696=\"\",\"\",IF(VLOOKUP($G696,$H$11:$DN$1000,96,FALSE)=\"\",\"No\",IF(LEFT(VLOOKUP($G696,$H$11:$DN$1000,96,FALSE),3)=\"The\",EF696,VLOOKUP(VLOOKUP($G696,$H$11:$DN$1000,96,FALSE),DeclMatrix!$A$2:$F$5,VLOOKUP('Enrollment Form'!$B696,DeclMatrix!$A$8:$B$12,2,FALSE),FALSE))))","v":""},{"$f":"IF($A696=\"\",\"\",IF(VLOOKUP($G696,$H$11:$DN$1000,101,FALSE)=\"\",\"No\",IF(LEFT(VLOOKUP($G696,$H$11:$DN$1000,101,FALSE),3)=\"The\",EG696,VLOOKUP(VLOOKUP($G696,$H$11:$DN$1000,101,FALSE),DeclMatrix!$A$2:$F$5,VLOOKUP('Enrollment Form'!$B696,DeclMatrix!$A$8:$B$12,2,FALSE),FALSE))))","v":""},{"$f":"IF($A696=\"\",\"\",IF(VLOOKUP($G696,$H$11:$DN$1000,106,FALSE)=\"\",\"No\",IF(LEFT(VLOOKUP($G696,$H$11:$DN$1000,106,FALSE),3)=\"The\",EH696,VLOOKUP(VLOOKUP($G696,$H$11:$DN$1000,106,FALSE),DeclMatrix!$A$2:$F$5,VLOOKUP('Enrollment Form'!$B696,DeclMatrix!$A$8:$B$12,2,FALSE),FALSE))))","v":""},{"$f":"IF($A696=\"\",\"\",IF(VLOOKUP($G696,$H$11:$DN$1000,111,FALSE)=\"\",\"No\",IF(LEFT(VLOOKUP($G696,$H$11:$DN$1000,111,FALSE),3)=\"The\",EI696,VLOOKUP(VLOOKUP($G696,$H$11:$DN$1000,111,FALSE),DeclMatrix!$A$2:$F$5,VLOOKUP('Enrollment Form'!$B696,DeclMatrix!$A$8:$B$12,2,FALSE),FALSE))))","v":""},"",null,"","","","","","","","","","","",""]
["",{"$nulls":5},"","",{"$nulls":18},"","","","",{"$nulls":30},"","","","",{"$nulls":60},"",{"$f":"IF($A697=\"\",\"\",IF(VLOOKUP($G697,$H$11:$DN$1000,96,FALSE)=\"\",\"No\",IF(LEFT(VLOOKUP($G697,$H$11:$DN$1000,96,FALSE),3)=\"The\",EF697,VLOOKUP(VLOOKUP($G697,$H$11:$DN$1000,96,FALSE),DeclMatrix!$A$2:$F$5,VLOOKUP('Enrollment Form'!$B697,DeclMatrix!$A$8:$B$12,2,FALSE),FALSE))))","v":""},{"$f":"IF($A697=\"\",\"\",IF(VLOOKUP($G697,$H$11:$DN$1000,101,FALSE)=\"\",\"No\",IF(LEFT(VLOOKUP($G697,$H$11:$DN$1000,101,FALSE),3)=\"The\",EG697,VLOOKUP(VLOOKUP($G697,$H$11:$DN$1000,101,FALSE),DeclMatrix!$A$2:$F$5,VLOOKUP('Enrollment Form'!$B697,DeclMatrix!$A$8:$B$12,2,FALSE),FALSE))))","v":""},{"$f":"IF($A697=\"\",\"\",IF(VLOOKUP($G697,$H$11:$DN$1000,106,FALSE)=\"\",\"No\",IF(LEFT(VLOOKUP($G697,$H$11:$DN$1000,106,FALSE),3)=\"The\",EH697,VLOOKUP(VLOOKUP($G697,$H$11:$DN$1000,106,FALSE),DeclMatrix!$A$2:$F$5,VLOOKUP('Enrollment Form'!$B697,DeclMatrix!$A$8:$B$12,2,FALSE),FALSE))))","v":""},{"$f":"IF($A697=\"\",\"\",IF(VLOOKUP($G697,$H$11:$DN$1000,111,FALSE)=\"\",\"No\",IF(LEFT(VLOOKUP($G697,$H$11:$DN$1000,111,FALSE),3)=\"The\",EI697,VLOOKUP(VLOOKUP($G697,$H$11:$DN$1000,111,FALSE),DeclMatrix!$A$2:$F$5,VLOOKUP('Enrollment Form'!$B697,DeclMatrix!$A$8:$B$12,2,FALSE),FALSE))))","v":""},"",null,"","","","","","","","","","","",""]
["",{"$nulls":5},"","",{"$nulls":18},"","","","",{"$nulls":30},"","","","",{"$nulls":60},"",{"$f":"IF($A698=\"\",\"\",IF(VLOOKUP($G698,$H$11:$DN$1000,96,FALSE)=\"\",\"No\",IF(LEFT(VLOOKUP($G698,$H$11:$DN$1000,96,FALSE),3)=\"The\",EF698,VLOOKUP(VLOOKUP($G698,$H$11:$DN$1000,96,FALSE),DeclMatrix!$A$2:$F$5,VLOOKUP('Enrollment Form'!$B698,DeclMatrix!$A$8:$B$12,2,FALSE),FALSE))))","v":""},{"$f":"IF($A698=\"\",\"\",IF(VLOOKUP($G698,$H$11:$DN$1000,101,FALSE)=\"\",\"No\",IF(LEFT(VLOOKUP($G698,$H$11:$DN$1000,101,FALSE),3)=\"The\",EG698,VLOOKUP(VLOOKUP($G698,$H$11:$DN$1000,101,FALSE),DeclMatrix!$A$2:$F$5,VLOOKUP('Enrollment Form'!$B698,DeclMatrix!$A$8:$B$12,2,FALSE),FALSE))))","v":""},{"$f":"IF($A698=\"\",\"\",IF(VLOOKUP($G698,$H$11:$DN$1000,106,FALSE)=\"\",\"No\",IF(LEFT(VLOOKUP($G698,$H$11:$DN$1000,106,FALSE),3)=\"The\",EH698,VLOOKUP(VLOOKUP($G698,$H$11:$DN$1000,106,FALSE),DeclMatrix!$A$2:$F$5,VLOOKUP('Enrollment Form'!$B698,DeclMatrix!$A$8:$B$12,2,FALSE),FALSE))))","v":""},{"$f":"IF($A698=\"\",\"\",IF(VLOOKUP($G698,$H$11:$DN$1000,111,FALSE)=\"\",\"No\",IF(LEFT(VLOOKUP($G698,$H$11:$DN$1000,111,FALSE),3)=\"The\",EI698,VLOOKUP(VLOOKUP($G698,$H$11:$DN$1000,111,FALSE),DeclMatrix!$A$2:$F$5,VLOOKUP('Enrollment Form'!$B698,DeclMatrix!$A$8:$B$12,2,FALSE),FALSE))))","v":""},"",null,"","","","","","","","","","","",""]
["",{"$nulls":5},"","",{"$nulls":18},"","","","",{"$nulls":30},"","","","",{"$nulls":60},"",{"$f":"IF($A699=\"\",\"\",IF(VLOOKUP($G699,$H$11:$DN$1000,96,FALSE)=\"\",\"No\",IF(LEFT(VLOOKUP($G699,$H$11:$DN$1000,96,FALSE),3)=\"The\",EF699,VLOOKUP(VLOOKUP($G699,$H$11:$DN$1000,96,FALSE),DeclMatrix!$A$2:$F$5,VLOOKUP('Enrollment Form'!$B699,DeclMatrix!$A$8:$B$12,2,FALSE),FALSE))))","v":""},{"$f":"IF($A699=\"\",\"\",IF(VLOOKUP($G699,$H$11:$DN$1000,101,FALSE)=\"\",\"No\",IF(LEFT(VLOOKUP($G699,$H$11:$DN$1000,101,FALSE),3)=\"The\",EG699,VLOOKUP(VLOOKUP($G699,$H$11:$DN$1000,101,FALSE),DeclMatrix!$A$2:$F$5,VLOOKUP('Enrollment Form'!$B699,DeclMatrix!$A$8:$B$12,2,FALSE),FALSE))))","v":""},{"$f":"IF($A699=\"\",\"\",IF(VLOOKUP($G699,$H$11:$DN$1000,106,FALSE)=\"\",\"No\",IF(LEFT(VLOOKUP($G699,$H$11:$DN$1000,106,FALSE),3)=\"The\",EH699,VLOOKUP(VLOOKUP($G699,$H$11:$DN$1000,106,FALSE),DeclMatrix!$A$2:$F$5,VLOOKUP('Enrollment Form'!$B699,DeclMatrix!$A$8:$B$12,2,FALSE),FALSE))))","v":""},{"$f":"IF($A699=\"\",\"\",IF(VLOOKUP($G699,$H$11:$DN$1000,111,FALSE)=\"\",\"No\",IF(LEFT(VLOOKUP($G699,$H$11:$DN$1000,111,FALSE),3)=\"The\",EI699,VLOOKUP(VLOOKUP($G699,$H$11:$DN$1000,111,FALSE),DeclMatrix!$A$2:$F$5,VLOOKUP('Enrollment Form'!$B699,DeclMatrix!$A$8:$B$12,2,FALSE),FALSE))))","v":""},"",null,"","","","","","","","","","","",""]
["",{"$nulls":5},"","",{"$nulls":18},"","","","",{"$nulls":30},"","","","",{"$nulls":60},"",{"$f":"IF($A700=\"\",\"\",IF(VLOOKUP($G700,$H$11:$DN$1000,96,FALSE)=\"\",\"No\",IF(LEFT(VLOOKUP($G700,$H$11:$DN$1000,96,FALSE),3)=\"The\",EF700,VLOOKUP(VLOOKUP($G700,$H$11:$DN$1000,96,FALSE),DeclMatrix!$A$2:$F$5,VLOOKUP('Enrollment Form'!$B700,DeclMatrix!$A$8:$B$12,2,FALSE),FALSE))))","v":""},{"$f":"IF($A700=\"\",\"\",IF(VLOOKUP($G700,$H$11:$DN$1000,101,FALSE)=\"\",\"No\",IF(LEFT(VLOOKUP($G700,$H$11:$DN$1000,101,FALSE),3)=\"The\",EG700,VLOOKUP(VLOOKUP($G700,$H$11:$DN$1000,101,FALSE),DeclMatrix!$A$2:$F$5,VLOOKUP('Enrollment Form'!$B700,DeclMatrix!$A$8:$B$12,2,FALSE),FALSE))))","v":""},{"$f":"IF($A700=\"\",\"\",IF(VLOOKUP($G700,$H$11:$DN$1000,106,FALSE)=\"\",\"No\",IF(LEFT(VLOOKUP($G700,$H$11:$DN$1000,106,FALSE),3)=\"The\",EH700,VLOOKUP(VLOOKUP($G700,$H$11:$DN$1000,106,FALSE),DeclMatrix!$A$2:$F$5,VLOOKUP('Enrollment Form'!$B700,DeclMatrix!$A$8:$B$12,2,FALSE),FALSE))))","v":""},{"$f":"IF($A700=\"\",\"\",IF(VLOOKUP($G700,$H$11:$DN$1000,111,FALSE)=\"\",\"No\",IF(LEFT(VLOOKUP($G700,$H$11:$DN$1000,111,FALSE),3)=\"The\",EI700,VLOOKUP(VLOOKUP($G700,$H$11:$DN$1000,111,FALSE),DeclMatrix!$A$2:$F$5,VLOOKUP('Enrollment Form'!$B700,DeclMatrix!$A$8:$B$12,2,FALSE),FALSE))))","v":""},"",null,"","","","","","","","","","","",""]
["",{"$nulls":5},"","",{"$nulls":18},"","","","",{"$nulls":30},"","","","",{"$nulls":60},"",{"$f":"IF($A701=\"\",\"\",IF(VLOOKUP($G701,$H$11:$DN$1000,96,FALSE)=\"\",\"No\",IF(LEFT(VLOOKUP($G701,$H$11:$DN$1000,96,FALSE),3)=\"The\",EF701,VLOOKUP(VLOOKUP($G701,$H$11:$DN$1000,96,FALSE),DeclMatrix!$A$2:$F$5,VLOOKUP('Enrollment Form'!$B701,DeclMatrix!$A$8:$B$12,2,FALSE),FALSE))))","v":""},{"$f":"IF($A701=\"\",\"\",IF(VLOOKUP($G701,$H$11:$DN$1000,101,FALSE)=\"\",\"No\",IF(LEFT(VLOOKUP($G701,$H$11:$DN$1000,101,FALSE),3)=\"The\",EG701,VLOOKUP(VLOOKUP($G701,$H$11:$DN$1000,101,FALSE),DeclMatrix!$A$2:$F$5,VLOOKUP('Enrollment Form'!$B701,DeclMatrix!$A$8:$B$12,2,FALSE),FALSE))))","v":""},{"$f":"IF($A701=\"\",\"\",IF(VLOOKUP($G701,$H$11:$DN$1000,106,FALSE)=\"\",\"No\",IF(LEFT(VLOOKUP($G701,$H$11:$DN$1000,106,FALSE),3)=\"The\",EH701,VLOOKUP(VLOOKUP($G701,$H$11:$DN$1000,106,FALSE),DeclMatrix!$A$2:$F$5,VLOOKUP('Enrollment Form'!$B701,DeclMatrix!$A$8:$B$12,2,FALSE),FALSE))))","v":""},{"$f":"IF($A701=\"\",\"\",IF(VLOOKUP($G701,$H$11:$DN$1000,111,FALSE)=\"\",\"No\",IF(LEFT(VLOOKUP($G701,$H$11:$DN$1000,111,FALSE),3)=\"The\",EI701,VLOOKUP(VLOOKUP($G701,$H$11:$DN$1000,111,FALSE),DeclMatrix!$A$2:$F$5,VLOOKUP('Enrollment Form'!$B701,DeclMatrix!$A$8:$B$12,2,FALSE),FALSE))))","v":""},"",null,"","","","","","","","","","","",""]
["",{"$nulls":5},"","",{"$nulls":18},"","","","",{"$nulls":30},"","","","",{"$nulls":60},"",{"$f":"IF($A702=\"\",\"\",IF(VLOOKUP($G702,$H$11:$DN$1000,96,FALSE)=\"\",\"No\",IF(LEFT(VLOOKUP($G702,$H$11:$DN$1000,96,FALSE),3)=\"The\",EF702,VLOOKUP(VLOOKUP($G702,$H$11:$DN$1000,96,FALSE),DeclMatrix!$A$2:$F$5,VLOOKUP('Enrollment Form'!$B702,DeclMatrix!$A$8:$B$12,2,FALSE),FALSE))))","v":""},{"$f":"IF($A702=\"\",\"\",IF(VLOOKUP($G702,$H$11:$DN$1000,101,FALSE)=\"\",\"No\",IF(LEFT(VLOOKUP($G702,$H$11:$DN$1000,101,FALSE),3)=\"The\",EG702,VLOOKUP(VLOOKUP($G702,$H$11:$DN$1000,101,FALSE),DeclMatrix!$A$2:$F$5,VLOOKUP('Enrollment Form'!$B702,DeclMatrix!$A$8:$B$12,2,FALSE),FALSE))))","v":""},{"$f":"IF($A702=\"\",\"\",IF(VLOOKUP($G702,$H$11:$DN$1000,106,FALSE)=\"\",\"No\",IF(LEFT(VLOOKUP($G702,$H$11:$DN$1000,106,FALSE),3)=\"The\",EH702,VLOOKUP(VLOOKUP($G702,$H$11:$DN$1000,106,FALSE),DeclMatrix!$A$2:$F$5,VLOOKUP('Enrollment Form'!$B702,DeclMatrix!$A$8:$B$12,2,FALSE),FALSE))))","v":""},{"$f":"IF($A702=\"\",\"\",IF(VLOOKUP($G702,$H$11:$DN$1000,111,FALSE)=\"\",\"No\",IF(LEFT(VLOOKUP($G702,$H$11:$DN$1000,111,FALSE),3)=\"The\",EI702,VLOOKUP(VLOOKUP($G702,$H$11:$DN$1000,111,FALSE),DeclMatrix!$A$2:$F$5,VLOOKUP('Enrollment Form'!$B702,DeclMatrix!$A$8:$B$12,2,FALSE),FALSE))))","v":""},"",null,"","","","","","","","","","","",""]
["",{"$nulls":5},"","",{"$nulls":18},"","","","",{"$nulls":30},"","","","",{"$nulls":60},"",{"$f":"IF($A703=\"\",\"\",IF(VLOOKUP($G703,$H$11:$DN$1000,96,FALSE)=\"\",\"No\",IF(LEFT(VLOOKUP($G703,$H$11:$DN$1000,96,FALSE),3)=\"The\",EF703,VLOOKUP(VLOOKUP($G703,$H$11:$DN$1000,96,FALSE),DeclMatrix!$A$2:$F$5,VLOOKUP('Enrollment Form'!$B703,DeclMatrix!$A$8:$B$12,2,FALSE),FALSE))))","v":""},{"$f":"IF($A703=\"\",\"\",IF(VLOOKUP($G703,$H$11:$DN$1000,101,FALSE)=\"\",\"No\",IF(LEFT(VLOOKUP($G703,$H$11:$DN$1000,101,FALSE),3)=\"The\",EG703,VLOOKUP(VLOOKUP($G703,$H$11:$DN$1000,101,FALSE),DeclMatrix!$A$2:$F$5,VLOOKUP('Enrollment Form'!$B703,DeclMatrix!$A$8:$B$12,2,FALSE),FALSE))))","v":""},{"$f":"IF($A703=\"\",\"\",IF(VLOOKUP($G703,$H$11:$DN$1000,106,FALSE)=\"\",\"No\",IF(LEFT(VLOOKUP($G703,$H$11:$DN$1000,106,FALSE),3)=\"The\",EH703,VLOOKUP(VLOOKUP($G703,$H$11:$DN$1000,106,FALSE),DeclMatrix!$A$2:$F$5,VLOOKUP('Enrollment Form'!$B703,DeclMatrix!$A$8:$B$12,2,FALSE),FALSE))))","v":""},{"$f":"IF($A703=\"\",\"\",IF(VLOOKUP($G703,$H$11:$DN$1000,111,FALSE)=\"\",\"No\",IF(LEFT(VLOOKUP($G703,$H$11:$DN$1000,111,FALSE),3)=\"The\",EI703,VLOOKUP(VLOOKUP($G703,$H$11:$DN$1000,111,FALSE),DeclMatrix!$A$2:$F$5,VLOOKUP('Enrollment Form'!$B703,DeclMatrix!$A$8:$B$12,2,FALSE),FALSE))))","v":""},"",null,"","","","","","","","","","","",""]
["",{"$nulls":5},"","",{"$nulls":18},"","","","",{"$nulls":30},"","","","",{"$nulls":60},"",{"$f":"IF($A704=\"\",\"\",IF(VLOOKUP($G704,$H$11:$DN$1000,96,FALSE)=\"\",\"No\",IF(LEFT(VLOOKUP($G704,$H$11:$DN$1000,96,FALSE),3)=\"The\",EF704,VLOOKUP(VLOOKUP($G704,$H$11:$DN$1000,96,FALSE),DeclMatrix!$A$2:$F$5,VLOOKUP('Enrollment Form'!$B704,DeclMatrix!$A$8:$B$12,2,FALSE),FALSE))))","v":""},{"$f":"IF($A704=\"\",\"\",IF(VLOOKUP($G704,$H$11:$DN$1000,101,FALSE)=\"\",\"No\",IF(LEFT(VLOOKUP($G704,$H$11:$DN$1000,101,FALSE),3)=\"The\",EG704,VLOOKUP(VLOOKUP($G704,$H$11:$DN$1000,101,FALSE),DeclMatrix!$A$2:$F$5,VLOOKUP('Enrollment Form'!$B704,DeclMatrix!$A$8:$B$12,2,FALSE),FALSE))))","v":""},{"$f":"IF($A704=\"\",\"\",IF(VLOOKUP($G704,$H$11:$DN$1000,106,FALSE)=\"\",\"No\",IF(LEFT(VLOOKUP($G704,$H$11:$DN$1000,106,FALSE),3)=\"The\",EH704,VLOOKUP(VLOOKUP($G704,$H$11:$DN$1000,106,FALSE),DeclMatrix!$A$2:$F$5,VLOOKUP('Enrollment Form'!$B704,DeclMatrix!$A$8:$B$12,2,FALSE),FALSE))))","v":""},{"$f":"IF($A704=\"\",\"\",IF(VLOOKUP($G704,$H$11:$DN$1000,111,FALSE)=\"\",\"No\",IF(LEFT(VLOOKUP($G704,$H$11:$DN$1000,111,FALSE),3)=\"The\",EI704,VLOOKUP(VLOOKUP($G704,$H$11:$DN$1000,111,FALSE),DeclMatrix!$A$2:$F$5,VLOOKUP('Enrollment Form'!$B704,DeclMatrix!$A$8:$B$12,2,FALSE),FALSE))))","v":""},"",null,"","","","","","","","","","","",""]
["",{"$nulls":5},"","",{"$nulls":18},"","","","",{"$nulls":30},"","","","",{"$nulls":60},"",{"$f":"IF($A705=\"\",\"\",IF(VLOOKUP($G705,$H$11:$DN$1000,96,FALSE)=\"\",\"No\",IF(LEFT(VLOOKUP($G705,$H$11:$DN$1000,96,FALSE),3)=\"The\",EF705,VLOOKUP(VLOOKUP($G705,$H$11:$DN$1000,96,FALSE),DeclMatrix!$A$2:$F$5,VLOOKUP('Enrollment Form'!$B705,DeclMatrix!$A$8:$B$12,2,FALSE),FALSE))))","v":""},{"$f":"IF($A705=\"\",\"\",IF(VLOOKUP($G705,$H$11:$DN$1000,101,FALSE)=\"\",\"No\",IF(LEFT(VLOOKUP($G705,$H$11:$DN$1000,101,FALSE),3)=\"The\",EG705,VLOOKUP(VLOOKUP($G705,$H$11:$DN$1000,101,FALSE),DeclMatrix!$A$2:$F$5,VLOOKUP('Enrollment Form'!$B705,DeclMatrix!$A$8:$B$12,2,FALSE),FALSE))))","v":""},{"$f":"IF($A705=\"\",\"\",IF(VLOOKUP($G705,$H$11:$DN$1000,106,FALSE)=\"\",\"No\",IF(LEFT(VLOOKUP($G705,$H$11:$DN$1000,106,FALSE),3)=\"The\",EH705,VLOOKUP(VLOOKUP($G705,$H$11:$DN$1000,106,FALSE),DeclMatrix!$A$2:$F$5,VLOOKUP('Enrollment Form'!$B705,DeclMatrix!$A$8:$B$12,2,FALSE),FALSE))))","v":""},{"$f":"IF($A705=\"\",\"\",IF(VLOOKUP($G705,$H$11:$DN$1000,111,FALSE)=\"\",\"No\",IF(LEFT(VLOOKUP($G705,$H$11:$DN$1000,111,FALSE),3)=\"The\",EI705,VLOOKUP(VLOOKUP($G705,$H$11:$DN$1000,111,FALSE),DeclMatrix!$A$2:$F$5,VLOOKUP('Enrollment Form'!$B705,DeclMatrix!$A$8:$B$12,2,FALSE),FALSE))))","v":""},"",null,"","","","","","","","","","","",""]
["",{"$nulls":5},"","",{"$nulls":18},"","","","",{"$nulls":30},"","","","",{"$nulls":60},"",{"$f":"IF($A706=\"\",\"\",IF(VLOOKUP($G706,$H$11:$DN$1000,96,FALSE)=\"\",\"No\",IF(LEFT(VLOOKUP($G706,$H$11:$DN$1000,96,FALSE),3)=\"The\",EF706,VLOOKUP(VLOOKUP($G706,$H$11:$DN$1000,96,FALSE),DeclMatrix!$A$2:$F$5,VLOOKUP('Enrollment Form'!$B706,DeclMatrix!$A$8:$B$12,2,FALSE),FALSE))))","v":""},{"$f":"IF($A706=\"\",\"\",IF(VLOOKUP($G706,$H$11:$DN$1000,101,FALSE)=\"\",\"No\",IF(LEFT(VLOOKUP($G706,$H$11:$DN$1000,101,FALSE),3)=\"The\",EG706,VLOOKUP(VLOOKUP($G706,$H$11:$DN$1000,101,FALSE),DeclMatrix!$A$2:$F$5,VLOOKUP('Enrollment Form'!$B706,DeclMatrix!$A$8:$B$12,2,FALSE),FALSE))))","v":""},{"$f":"IF($A706=\"\",\"\",IF(VLOOKUP($G706,$H$11:$DN$1000,106,FALSE)=\"\",\"No\",IF(LEFT(VLOOKUP($G706,$H$11:$DN$1000,106,FALSE),3)=\"The\",EH706,VLOOKUP(VLOOKUP($G706,$H$11:$DN$1000,106,FALSE),DeclMatrix!$A$2:$F$5,VLOOKUP('Enrollment Form'!$B706,DeclMatrix!$A$8:$B$12,2,FALSE),FALSE))))","v":""},{"$f":"IF($A706=\"\",\"\",IF(VLOOKUP($G706,$H$11:$DN$1000,111,FALSE)=\"\",\"No\",IF(LEFT(VLOOKUP($G706,$H$11:$DN$1000,111,FALSE),3)=\"The\",EI706,VLOOKUP(VLOOKUP($G706,$H$11:$DN$1000,111,FALSE),DeclMatrix!$A$2:$F$5,VLOOKUP('Enrollment Form'!$B706,DeclMatrix!$A$8:$B$12,2,FALSE),FALSE))))","v":""},"",null,"","","","","","","","","","","",""]
["",{"$nulls":5},"","",{"$nulls":18},"","","","",{"$nulls":30},"","","","",{"$nulls":60},"",{"$f":"IF($A707=\"\",\"\",IF(VLOOKUP($G707,$H$11:$DN$1000,96,FALSE)=\"\",\"No\",IF(LEFT(VLOOKUP($G707,$H$11:$DN$1000,96,FALSE),3)=\"The\",EF707,VLOOKUP(VLOOKUP($G707,$H$11:$DN$1000,96,FALSE),DeclMatrix!$A$2:$F$5,VLOOKUP('Enrollment Form'!$B707,DeclMatrix!$A$8:$B$12,2,FALSE),FALSE))))","v":""},{"$f":"IF($A707=\"\",\"\",IF(VLOOKUP($G707,$H$11:$DN$1000,101,FALSE)=\"\",\"No\",IF(LEFT(VLOOKUP($G707,$H$11:$DN$1000,101,FALSE),3)=\"The\",EG707,VLOOKUP(VLOOKUP($G707,$H$11:$DN$1000,101,FALSE),DeclMatrix!$A$2:$F$5,VLOOKUP('Enrollment Form'!$B707,DeclMatrix!$A$8:$B$12,2,FALSE),FALSE))))","v":""},{"$f":"IF($A707=\"\",\"\",IF(VLOOKUP($G707,$H$11:$DN$1000,106,FALSE)=\"\",\"No\",IF(LEFT(VLOOKUP($G707,$H$11:$DN$1000,106,FALSE),3)=\"The\",EH707,VLOOKUP(VLOOKUP($G707,$H$11:$DN$1000,106,FALSE),DeclMatrix!$A$2:$F$5,VLOOKUP('Enrollment Form'!$B707,DeclMatrix!$A$8:$B$12,2,FALSE),FALSE))))","v":""},{"$f":"IF($A707=\"\",\"\",IF(VLOOKUP($G707,$H$11:$DN$1000,111,FALSE)=\"\",\"No\",IF(LEFT(VLOOKUP($G707,$H$11:$DN$1000,111,FALSE),3)=\"The\",EI707,VLOOKUP(VLOOKUP($G707,$H$11:$DN$1000,111,FALSE),DeclMatrix!$A$2:$F$5,VLOOKUP('Enrollment Form'!$B707,DeclMatrix!$A$8:$B$12,2,FALSE),FALSE))))","v":""},"",null,"","","","","","","","","","","",""]
["",{"$nulls":5},"","",{"$nulls":18},"","","","",{"$nulls":30},"","","","",{"$nulls":60},"",{"$f":"IF($A708=\"\",\"\",IF(VLOOKUP($G708,$H$11:$DN$1000,96,FALSE)=\"\",\"No\",IF(LEFT(VLOOKUP($G708,$H$11:$DN$1000,96,FALSE),3)=\"The\",EF708,VLOOKUP(VLOOKUP($G708,$H$11:$DN$1000,96,FALSE),DeclMatrix!$A$2:$F$5,VLOOKUP('Enrollment Form'!$B708,DeclMatrix!$A$8:$B$12,2,FALSE),FALSE))))","v":""},{"$f":"IF($A708=\"\",\"\",IF(VLOOKUP($G708,$H$11:$DN$1000,101,FALSE)=\"\",\"No\",IF(LEFT(VLOOKUP($G708,$H$11:$DN$1000,101,FALSE),3)=\"The\",EG708,VLOOKUP(VLOOKUP($G708,$H$11:$DN$1000,101,FALSE),DeclMatrix!$A$2:$F$5,VLOOKUP('Enrollment Form'!$B708,DeclMatrix!$A$8:$B$12,2,FALSE),FALSE))))","v":""},{"$f":"IF($A708=\"\",\"\",IF(VLOOKUP($G708,$H$11:$DN$1000,106,FALSE)=\"\",\"No\",IF(LEFT(VLOOKUP($G708,$H$11:$DN$1000,106,FALSE),3)=\"The\",EH708,VLOOKUP(VLOOKUP($G708,$H$11:$DN$1000,106,FALSE),DeclMatrix!$A$2:$F$5,VLOOKUP('Enrollment Form'!$B708,DeclMatrix!$A$8:$B$12,2,FALSE),FALSE))))","v":""},{"$f":"IF($A708=\"\",\"\",IF(VLOOKUP($G708,$H$11:$DN$1000,111,FALSE)=\"\",\"No\",IF(LEFT(VLOOKUP($G708,$H$11:$DN$1000,111,FALSE),3)=\"The\",EI708,VLOOKUP(VLOOKUP($G708,$H$11:$DN$1000,111,FALSE),DeclMatrix!$A$2:$F$5,VLOOKUP('Enrollment Form'!$B708,DeclMatrix!$A$8:$B$12,2,FALSE),FALSE))))","v":""},"",null,"","","","","","","","","","","",""]
["",{"$nulls":5},"","",{"$nulls":18},"","","","",{"$nulls":30},"","","","",{"$nulls":60},"",{"$f":"IF($A709=\"\",\"\",IF(VLOOKUP($G709,$H$11:$DN$1000,96,FALSE)=\"\",\"No\",IF(LEFT(VLOOKUP($G709,$H$11:$DN$1000,96,FALSE),3)=\"The\",EF709,VLOOKUP(VLOOKUP($G709,$H$11:$DN$1000,96,FALSE),DeclMatrix!$A$2:$F$5,VLOOKUP('Enrollment Form'!$B709,DeclMatrix!$A$8:$B$12,2,FALSE),FALSE))))","v":""},{"$f":"IF($A709=\"\",\"\",IF(VLOOKUP($G709,$H$11:$DN$1000,101,FALSE)=\"\",\"No\",IF(LEFT(VLOOKUP($G709,$H$11:$DN$1000,101,FALSE),3)=\"The\",EG709,VLOOKUP(VLOOKUP($G709,$H$11:$DN$1000,101,FALSE),DeclMatrix!$A$2:$F$5,VLOOKUP('Enrollment Form'!$B709,DeclMatrix!$A$8:$B$12,2,FALSE),FALSE))))","v":""},{"$f":"IF($A709=\"\",\"\",IF(VLOOKUP($G709,$H$11:$DN$1000,106,FALSE)=\"\",\"No\",IF(LEFT(VLOOKUP($G709,$H$11:$DN$1000,106,FALSE),3)=\"The\",EH709,VLOOKUP(VLOOKUP($G709,$H$11:$DN$1000,106,FALSE),DeclMatrix!$A$2:$F$5,VLOOKUP('Enrollment Form'!$B709,DeclMatrix!$A$8:$B$12,2,FALSE),FALSE))))","v":""},{"$f":"IF($A709=\"\",\"\",IF(VLOOKUP($G709,$H$11:$DN$1000,111,FALSE)=\"\",\"No\",IF(LEFT(VLOOKUP($G709,$H$11:$DN$1000,111,FALSE),3)=\"The\",EI709,VLOOKUP(VLOOKUP($G709,$H$11:$DN$1000,111,FALSE),DeclMatrix!$A$2:$F$5,VLOOKUP('Enrollment Form'!$B709,DeclMatrix!$A$8:$B$12,2,FALSE),FALSE))))","v":""},"",null,"","","","","","","","","","","",""]
["",{"$nulls":5},"","",{"$nulls":18},"","","","",{"$nulls":30},"","","","",{"$nulls":60},"",{"$f":"IF($A710=\"\",\"\",IF(VLOOKUP($G710,$H$11:$DN$1000,96,FALSE)=\"\",\"No\",IF(LEFT(VLOOKUP($G710,$H$11:$DN$1000,96,FALSE),3)=\"The\",EF710,VLOOKUP(VLOOKUP($G710,$H$11:$DN$1000,96,FALSE),DeclMatrix!$A$2:$F$5,VLOOKUP('Enrollment Form'!$B710,DeclMatrix!$A$8:$B$12,2,FALSE),FALSE))))","v":""},{"$f":"IF($A710=\"\",\"\",IF(VLOOKUP($G710,$H$11:$DN$1000,101,FALSE)=\"\",\"No\",IF(LEFT(VLOOKUP($G710,$H$11:$DN$1000,101,FALSE),3)=\"The\",EG710,VLOOKUP(VLOOKUP($G710,$H$11:$DN$1000,101,FALSE),DeclMatrix!$A$2:$F$5,VLOOKUP('Enrollment Form'!$B710,DeclMatrix!$A$8:$B$12,2,FALSE),FALSE))))","v":""},{"$f":"IF($A710=\"\",\"\",IF(VLOOKUP($G710,$H$11:$DN$1000,106,FALSE)=\"\",\"No\",IF(LEFT(VLOOKUP($G710,$H$11:$DN$1000,106,FALSE),3)=\"The\",EH710,VLOOKUP(VLOOKUP($G710,$H$11:$DN$1000,106,FALSE),DeclMatrix!$A$2:$F$5,VLOOKUP('Enrollment Form'!$B710,DeclMatrix!$A$8:$B$12,2,FALSE),FALSE))))","v":""},{"$f":"IF($A710=\"\",\"\",IF(VLOOKUP($G710,$H$11:$DN$1000,111,FALSE)=\"\",\"No\",IF(LEFT(VLOOKUP($G710,$H$11:$DN$1000,111,FALSE),3)=\"The\",EI710,VLOOKUP(VLOOKUP($G710,$H$11:$DN$1000,111,FALSE),DeclMatrix!$A$2:$F$5,VLOOKUP('Enrollment Form'!$B710,DeclMatrix!$A$8:$B$12,2,FALSE),FALSE))))","v":""},"",null,"","","","","","","","","","","",""]
["",{"$nulls":5},"","",{"$nulls":18},"","","","",{"$nulls":30},"","","","",{"$nulls":60},"",{"$f":"IF($A711=\"\",\"\",IF(VLOOKUP($G711,$H$11:$DN$1000,96,FALSE)=\"\",\"No\",IF(LEFT(VLOOKUP($G711,$H$11:$DN$1000,96,FALSE),3)=\"The\",EF711,VLOOKUP(VLOOKUP($G711,$H$11:$DN$1000,96,FALSE),DeclMatrix!$A$2:$F$5,VLOOKUP('Enrollment Form'!$B711,DeclMatrix!$A$8:$B$12,2,FALSE),FALSE))))","v":""},{"$f":"IF($A711=\"\",\"\",IF(VLOOKUP($G711,$H$11:$DN$1000,101,FALSE)=\"\",\"No\",IF(LEFT(VLOOKUP($G711,$H$11:$DN$1000,101,FALSE),3)=\"The\",EG711,VLOOKUP(VLOOKUP($G711,$H$11:$DN$1000,101,FALSE),DeclMatrix!$A$2:$F$5,VLOOKUP('Enrollment Form'!$B711,DeclMatrix!$A$8:$B$12,2,FALSE),FALSE))))","v":""},{"$f":"IF($A711=\"\",\"\",IF(VLOOKUP($G711,$H$11:$DN$1000,106,FALSE)=\"\",\"No\",IF(LEFT(VLOOKUP($G711,$H$11:$DN$1000,106,FALSE),3)=\"The\",EH711,VLOOKUP(VLOOKUP($G711,$H$11:$DN$1000,106,FALSE),DeclMatrix!$A$2:$F$5,VLOOKUP('Enrollment Form'!$B711,DeclMatrix!$A$8:$B$12,2,FALSE),FALSE))))","v":""},{"$f":"IF($A711=\"\",\"\",IF(VLOOKUP($G711,$H$11:$DN$1000,111,FALSE)=\"\",\"No\",IF(LEFT(VLOOKUP($G711,$H$11:$DN$1000,111,FALSE),3)=\"The\",EI711,VLOOKUP(VLOOKUP($G711,$H$11:$DN$1000,111,FALSE),DeclMatrix!$A$2:$F$5,VLOOKUP('Enrollment Form'!$B711,DeclMatrix!$A$8:$B$12,2,FALSE),FALSE))))","v":""},"",null,"","","","","","","","","","","",""]
["",{"$nulls":5},"","",{"$nulls":18},"","","","",{"$nulls":30},"","","","",{"$nulls":60},"",{"$f":"IF($A712=\"\",\"\",IF(VLOOKUP($G712,$H$11:$DN$1000,96,FALSE)=\"\",\"No\",IF(LEFT(VLOOKUP($G712,$H$11:$DN$1000,96,FALSE),3)=\"The\",EF712,VLOOKUP(VLOOKUP($G712,$H$11:$DN$1000,96,FALSE),DeclMatrix!$A$2:$F$5,VLOOKUP('Enrollment Form'!$B712,DeclMatrix!$A$8:$B$12,2,FALSE),FALSE))))","v":""},{"$f":"IF($A712=\"\",\"\",IF(VLOOKUP($G712,$H$11:$DN$1000,101,FALSE)=\"\",\"No\",IF(LEFT(VLOOKUP($G712,$H$11:$DN$1000,101,FALSE),3)=\"The\",EG712,VLOOKUP(VLOOKUP($G712,$H$11:$DN$1000,101,FALSE),DeclMatrix!$A$2:$F$5,VLOOKUP('Enrollment Form'!$B712,DeclMatrix!$A$8:$B$12,2,FALSE),FALSE))))","v":""},{"$f":"IF($A712=\"\",\"\",IF(VLOOKUP($G712,$H$11:$DN$1000,106,FALSE)=\"\",\"No\",IF(LEFT(VLOOKUP($G712,$H$11:$DN$1000,106,FALSE),3)=\"The\",EH712,VLOOKUP(VLOOKUP($G712,$H$11:$DN$1000,106,FALSE),DeclMatrix!$A$2:$F$5,VLOOKUP('Enrollment Form'!$B712,DeclMatrix!$A$8:$B$12,2,FALSE),FALSE))))","v":""},{"$f":"IF($A712=\"\",\"\",IF(VLOOKUP($G712,$H$11:$DN$1000,111,FALSE)=\"\",\"No\",IF(LEFT(VLOOKUP($G712,$H$11:$DN$1000,111,FALSE),3)=\"The\",EI712,VLOOKUP(VLOOKUP($G712,$H$11:$DN$1000,111,FALSE),DeclMatrix!$A$2:$F$5,VLOOKUP('Enrollment Form'!$B712,DeclMatrix!$A$8:$B$12,2,FALSE),FALSE))))","v":""},"",null,"","","","","","","","","","","",""]
["",{"$nulls":5},"","",{"$nulls":18},"","","","",{"$nulls":30},"","","","",{"$nulls":60},"",{"$f":"IF($A713=\"\",\"\",IF(VLOOKUP($G713,$H$11:$DN$1000,96,FALSE)=\"\",\"No\",IF(LEFT(VLOOKUP($G713,$H$11:$DN$1000,96,FALSE),3)=\"The\",EF713,VLOOKUP(VLOOKUP($G713,$H$11:$DN$1000,96,FALSE),DeclMatrix!$A$2:$F$5,VLOOKUP('Enrollment Form'!$B713,DeclMatrix!$A$8:$B$12,2,FALSE),FALSE))))","v":""},{"$f":"IF($A713=\"\",\"\",IF(VLOOKUP($G713,$H$11:$DN$1000,101,FALSE)=\"\",\"No\",IF(LEFT(VLOOKUP($G713,$H$11:$DN$1000,101,FALSE),3)=\"The\",EG713,VLOOKUP(VLOOKUP($G713,$H$11:$DN$1000,101,FALSE),DeclMatrix!$A$2:$F$5,VLOOKUP('Enrollment Form'!$B713,DeclMatrix!$A$8:$B$12,2,FALSE),FALSE))))","v":""},{"$f":"IF($A713=\"\",\"\",IF(VLOOKUP($G713,$H$11:$DN$1000,106,FALSE)=\"\",\"No\",IF(LEFT(VLOOKUP($G713,$H$11:$DN$1000,106,FALSE),3)=\"The\",EH713,VLOOKUP(VLOOKUP($G713,$H$11:$DN$1000,106,FALSE),DeclMatrix!$A$2:$F$5,VLOOKUP('Enrollment Form'!$B713,DeclMatrix!$A$8:$B$12,2,FALSE),FALSE))))","v":""},{"$f":"IF($A713=\"\",\"\",IF(VLOOKUP($G713,$H$11:$DN$1000,111,FALSE)=\"\",\"No\",IF(LEFT(VLOOKUP($G713,$H$11:$DN$1000,111,FALSE),3)=\"The\",EI713,VLOOKUP(VLOOKUP($G713,$H$11:$DN$1000,111,FALSE),DeclMatrix!$A$2:$F$5,VLOOKUP('Enrollment Form'!$B713,DeclMatrix!$A$8:$B$12,2,FALSE),FALSE))))","v":""},"",null,"","","","","","","","","","","",""]
["",{"$nulls":5},"","",{"$nulls":18},"","","","",{"$nulls":30},"","","","",{"$nulls":60},"",{"$f":"IF($A714=\"\",\"\",IF(VLOOKUP($G714,$H$11:$DN$1000,96,FALSE)=\"\",\"No\",IF(LEFT(VLOOKUP($G714,$H$11:$DN$1000,96,FALSE),3)=\"The\",EF714,VLOOKUP(VLOOKUP($G714,$H$11:$DN$1000,96,FALSE),DeclMatrix!$A$2:$F$5,VLOOKUP('Enrollment Form'!$B714,DeclMatrix!$A$8:$B$12,2,FALSE),FALSE))))","v":""},{"$f":"IF($A714=\"\",\"\",IF(VLOOKUP($G714,$H$11:$DN$1000,101,FALSE)=\"\",\"No\",IF(LEFT(VLOOKUP($G714,$H$11:$DN$1000,101,FALSE),3)=\"The\",EG714,VLOOKUP(VLOOKUP($G714,$H$11:$DN$1000,101,FALSE),DeclMatrix!$A$2:$F$5,VLOOKUP('Enrollment Form'!$B714,DeclMatrix!$A$8:$B$12,2,FALSE),FALSE))))","v":""},{"$f":"IF($A714=\"\",\"\",IF(VLOOKUP($G714,$H$11:$DN$1000,106,FALSE)=\"\",\"No\",IF(LEFT(VLOOKUP($G714,$H$11:$DN$1000,106,FALSE),3)=\"The\",EH714,VLOOKUP(VLOOKUP($G714,$H$11:$DN$1000,106,FALSE),DeclMatrix!$A$2:$F$5,VLOOKUP('Enrollment Form'!$B714,DeclMatrix!$A$8:$B$12,2,FALSE),FALSE))))","v":""},{"$f":"IF($A714=\"\",\"\",IF(VLOOKUP($G714,$H$11:$DN$1000,111,FALSE)=\"\",\"No\",IF(LEFT(VLOOKUP($G714,$H$11:$DN$1000,111,FALSE),3)=\"The\",EI714,VLOOKUP(VLOOKUP($G714,$H$11:$DN$1000,111,FALSE),DeclMatrix!$A$2:$F$5,VLOOKUP('Enrollment Form'!$B714,DeclMatrix!$A$8:$B$12,2,FALSE),FALSE))))","v":""},"",null,"","","","","","","","","","","",""]
[{"$f":"IF(LEN($B715)>0,$C$2,\"\")","v":""},{"$nulls":5},"","",{"$nulls":18},"","","","",{"$nulls":30},{"$f":"IF(AND($B715<>\"Subscriber\",$BH715=\"Yes\"),VLOOKUP($G715,$H$11:$Y$1000,15,FALSE),\"\")","v":""},{"$f":"IF(AND($B715<>\"Subscriber\",$BH715=\"Yes\"),VLOOKUP($G715,$H$11:$Y$1000,16,FALSE),\"\")","v":""},{"$f":"IF(AND($B715<>\"Subscriber\",$BH715=\"Yes\"),VLOOKUP($G715,$H$11:$Y$1000,17,FALSE),\"\")","v":""},{"$f":"IF(AND($B715<>\"Subscriber\",$BH715=\"Yes\"),VLOOKUP($G715,$H$11:$Y$1000,18,FALSE),\"\")","v":""},{"$nulls":60},{"$f":"IF($A715=\"\",\"\",IF($B715=\"Subscriber\",$AG715,VLOOKUP($G715,$H$11:$AG$1000,26,FALSE)))","v":""},{"$f":"IF($A715=\"\",\"\",IF(VLOOKUP($G715,$H$11:$DN$1000,96,FALSE)=\"\",\"No\",IF(LEFT(VLOOKUP($G715,$H$11:$DN$1000,96,FALSE),3)=\"The\",EF715,VLOOKUP(VLOOKUP($G715,$H$11:$DN$1000,96,FALSE),DeclMatrix!$A$2:$F$5,VLOOKUP('Enrollment Form'!$B715,DeclMatrix!$A$8:$B$12,2,FALSE),FALSE))))","v":""},{"$f":"IF($A715=\"\",\"\",IF(VLOOKUP($G715,$H$11:$DN$1000,101,FALSE)=\"\",\"No\",IF(LEFT(VLOOKUP($G715,$H$11:$DN$1000,101,FALSE),3)=\"The\",EG715,VLOOKUP(VLOOKUP($G715,$H$11:$DN$1000,101,FALSE),DeclMatrix!$A$2:$F$5,VLOOKUP('Enrollment Form'!$B715,DeclMatrix!$A$8:$B$12,2,FALSE),FALSE))))","v":""},{"$f":"IF($A715=\"\",\"\",IF(VLOOKUP($G715,$H$11:$DN$1000,106,FALSE)=\"\",\"No\",IF(LEFT(VLOOKUP($G715,$H$11:$DN$1000,106,FALSE),3)=\"The\",EH715,VLOOKUP(VLOOKUP($G715,$H$11:$DN$1000,106,FALSE),DeclMatrix!$A$2:$F$5,VLOOKUP('Enrollment Form'!$B715,DeclMatrix!$A$8:$B$12,2,FALSE),FALSE))))","v":""},{"$f":"IF($A715=\"\",\"\",IF(VLOOKUP($G715,$H$11:$DN$1000,111,FALSE)=\"\",\"No\",IF(LEFT(VLOOKUP($G715,$H$11:$DN$1000,111,FALSE),3)=\"The\",EI715,VLOOKUP(VLOOKUP($G715,$H$11:$DN$1000,111,FALSE),DeclMatrix!$A$2:$F$5,VLOOKUP('Enrollment Form'!$B715,DeclMatrix!$A$8:$B$12,2,FALSE),FALSE))))","v":""},"",null,{"$f":"$B715&$G715&$J715","v":""},{"$f":"$B715&$G715&$L715","v":""},{"$f":"$B715&$G715&$N715","v":""},{"$f":"$B715&$G715&$O715","v":""},"","","","",{"$f":"IF($A715=\"\",\"\",IF(AND($B715=\"Subscriber\",$I715<>\"Waive\",$I715<>\"\"),\"Yes\",IF(AND($B715<>\"Subscriber\",$BF715=\"Yes\"),VLOOKUP($G715,$H$11:$EM$1000,133,FALSE),IF(AND($C715=\"Enroll\",VLOOKUP($G716,$H$11:$EM$1000,96,FALSE)<>\"\"),VLOOKUP($DV715,$DW$2:$DX$3,2,FALSE),\"No\"))))","v":""},{"$f":"IF($A715=\"\",\"\",IF(AND($B715=\"Subscriber\",$K715<>\"Waive\",$K715<>\"\"),\"Yes\",IF(AND($B715<>\"Subscriber\",$BF715=\"Yes\"),VLOOKUP($G715,$H$11:$EM$1000,134,FALSE),IF(AND($C715=\"Enroll\",VLOOKUP($G716,$H$11:$EM$1000,101,FALSE)<>\"\"),VLOOKUP($DW715,$DW$2:$DX$3,2,FALSE),\"No\"))))","v":""},{"$f":"IF($A715=\"\",\"\",IF(AND($B715=\"Subscriber\",$M715<>\"Waive\",$M715<>\"\"),\"Yes\",IF(AND($B715<>\"Subscriber\",$BF715=\"Yes\"),VLOOKUP($G715,$H$11:$EM$1000,135,FALSE),IF(AND($C715=\"Enroll\",VLOOKUP($G716,$H$11:$EM$1000,106,FALSE)<>\"\"),VLOOKUP($DX715,$DW$2:$DX$3,2,FALSE),\"No\"))))","v":""},{"$f":"IF($A715=\"\",\"\",IF(AND($B715=\"Subscriber\",$O715<>\"Waive\",$O715<>\"\"),\"Yes\",IF(AND($B715<>\"Subscriber\",$BF715=\"Yes\"),VLOOKUP($G715,$H$11:$EM$1000,136,FALSE),IF(AND($C715=\"Enroll\",VLOOKUP($G716,$H$11:$EM$1000,111,FALSE)<>\"\"),VLOOKUP($DY715,$DW$2:$DX$3,2,FALSE),\"No\"))))","v":""}]
["",{"$nulls":5},{"$f":"IF(A716=\"\",\"\",IF(AND(B716<>\"Subscriber\",B716<>\"\"),G715,\"\"))","v":""},{"$f":"IF(AND(B716=\"Subscriber\",G716<>\"\"),G716,\"\")","v":""},{"$nulls":18},{"$f":"IF(AND($B716=\"Subscriber\",$Z716=\"Yes\"),V716,\"\")","v":""},{"$f":"IF(AND($B716=\"Subscriber\",$Z716=\"Yes\"),W716,\"\")","v":""},{"$f":"IF(AND($B716=\"Subscriber\",$Z716=\"Yes\"),X716,\"\")","v":""},{"$f":"IF(AND($B716=\"Subscriber\",$Z716=\"Yes\"),Y716,\"\")","v":""},{"$nulls":30},"","","","",{"$nulls":60},"",{"$f":"IF($A716=\"\",\"\",IF(VLOOKUP($G716,$H$11:$DN$1000,96,FALSE)=\"\",\"No\",IF(LEFT(VLOOKUP($G716,$H$11:$DN$1000,96,FALSE),3)=\"The\",EF716,VLOOKUP(VLOOKUP($G716,$H$11:$DN$1000,96,FALSE),DeclMatrix!$A$2:$F$5,VLOOKUP('Enrollment Form'!$B716,DeclMatrix!$A$8:$B$12,2,FALSE),FALSE))))","v":""},{"$f":"IF($A716=\"\",\"\",IF(VLOOKUP($G716,$H$11:$DN$1000,101,FALSE)=\"\",\"No\",IF(LEFT(VLOOKUP($G716,$H$11:$DN$1000,101,FALSE),3)=\"The\",EG716,VLOOKUP(VLOOKUP($G716,$H$11:$DN$1000,101,FALSE),DeclMatrix!$A$2:$F$5,VLOOKUP('Enrollment Form'!$B716,DeclMatrix!$A$8:$B$12,2,FALSE),FALSE))))","v":""},{"$f":"IF($A716=\"\",\"\",IF(VLOOKUP($G716,$H$11:$DN$1000,106,FALSE)=\"\",\"No\",IF(LEFT(VLOOKUP($G716,$H$11:$DN$1000,106,FALSE),3)=\"The\",EH716,VLOOKUP(VLOOKUP($G716,$H$11:$DN$1000,106,FALSE),DeclMatrix!$A$2:$F$5,VLOOKUP('Enrollment Form'!$B716,DeclMatrix!$A$8:$B$12,2,FALSE),FALSE))))","v":""},{"$f":"IF($A716=\"\",\"\",IF(VLOOKUP($G716,$H$11:$DN$1000,111,FALSE)=\"\",\"No\",IF(LEFT(VLOOKUP($G716,$H$11:$DN$1000,111,FALSE),3)=\"The\",EI716,VLOOKUP(VLOOKUP($G716,$H$11:$DN$1000,111,FALSE),DeclMatrix!$A$2:$F$5,VLOOKUP('Enrollment Form'!$B716,DeclMatrix!$A$8:$B$12,2,FALSE),FALSE))))","v":""},{"$f":"IF(A716<>\"\",\"1X\",\"\")","v":""},null,"","","","",{"$f":"IF($A716=\"\",\"\",IF($B716=\"Subscriber\",\"No\",IF(OR($CY716=\"\",$CY716=\"No\"),\"No\",\"Yes\")))","v":""},{"$f":"IF($A716=\"\",\"\",IF($B716=\"Subscriber\",\"No\",IF(OR($DD716=\"\",$DD716=\"No\"),\"No\",\"Yes\")))","v":""},{"$f":"IF($A716=\"\",\"\",IF($B716=\"Subscriber\",\"No\",IF(OR($DI716=\"\",$DI716=\"No\"),\"No\",\"Yes\")))","v":""},{"$f":"IF($A716=\"\",\"\",IF($B716=\"Subscriber\",\"No\",IF(OR($DN716=\"\",$DN716=\"No\"),\"No\",\"Yes\")))","v":""},"","","",""]
["",{"$nulls":5},"","",{"$nulls":18},"","","","",{"$nulls":30},"","","","",{"$nulls":60},"",{"$f":"IF($A717=\"\",\"\",IF(VLOOKUP($G717,$H$11:$DN$1000,96,FALSE)=\"\",\"No\",IF(LEFT(VLOOKUP($G717,$H$11:$DN$1000,96,FALSE),3)=\"The\",EF717,VLOOKUP(VLOOKUP($G717,$H$11:$DN$1000,96,FALSE),DeclMatrix!$A$2:$F$5,VLOOKUP('Enrollment Form'!$B717,DeclMatrix!$A$8:$B$12,2,FALSE),FALSE))))","v":""},{"$f":"IF($A717=\"\",\"\",IF(VLOOKUP($G717,$H$11:$DN$1000,101,FALSE)=\"\",\"No\",IF(LEFT(VLOOKUP($G717,$H$11:$DN$1000,101,FALSE),3)=\"The\",EG717,VLOOKUP(VLOOKUP($G717,$H$11:$DN$1000,101,FALSE),DeclMatrix!$A$2:$F$5,VLOOKUP('Enrollment Form'!$B717,DeclMatrix!$A$8:$B$12,2,FALSE),FALSE))))","v":""},{"$f":"IF($A717=\"\",\"\",IF(VLOOKUP($G717,$H$11:$DN$1000,106,FALSE)=\"\",\"No\",IF(LEFT(VLOOKUP($G717,$H$11:$DN$1000,106,FALSE),3)=\"The\",EH717,VLOOKUP(VLOOKUP($G717,$H$11:$DN$1000,106,FALSE),DeclMatrix!$A$2:$F$5,VLOOKUP('Enrollment Form'!$B717,DeclMatrix!$A$8:$B$12,2,FALSE),FALSE))))","v":""},{"$f":"IF($A717=\"\",\"\",IF(VLOOKUP($G717,$H$11:$DN$1000,111,FALSE)=\"\",\"No\",IF(LEFT(VLOOKUP($G717,$H$11:$DN$1000,111,FALSE),3)=\"The\",EI717,VLOOKUP(VLOOKUP($G717,$H$11:$DN$1000,111,FALSE),DeclMatrix!$A$2:$F$5,VLOOKUP('Enrollment Form'!$B717,DeclMatrix!$A$8:$B$12,2,FALSE),FALSE))))","v":""},"",null,"","","","","","","","","","","",""]
["",{"$nulls":5},"","",{"$nulls":18},"","","","",{"$nulls":30},"","","","",{"$nulls":60},"",{"$f":"IF($A718=\"\",\"\",IF(VLOOKUP($G718,$H$11:$DN$1000,96,FALSE)=\"\",\"No\",IF(LEFT(VLOOKUP($G718,$H$11:$DN$1000,96,FALSE),3)=\"The\",EF718,VLOOKUP(VLOOKUP($G718,$H$11:$DN$1000,96,FALSE),DeclMatrix!$A$2:$F$5,VLOOKUP('Enrollment Form'!$B718,DeclMatrix!$A$8:$B$12,2,FALSE),FALSE))))","v":""},{"$f":"IF($A718=\"\",\"\",IF(VLOOKUP($G718,$H$11:$DN$1000,101,FALSE)=\"\",\"No\",IF(LEFT(VLOOKUP($G718,$H$11:$DN$1000,101,FALSE),3)=\"The\",EG718,VLOOKUP(VLOOKUP($G718,$H$11:$DN$1000,101,FALSE),DeclMatrix!$A$2:$F$5,VLOOKUP('Enrollment Form'!$B718,DeclMatrix!$A$8:$B$12,2,FALSE),FALSE))))","v":""},{"$f":"IF($A718=\"\",\"\",IF(VLOOKUP($G718,$H$11:$DN$1000,106,FALSE)=\"\",\"No\",IF(LEFT(VLOOKUP($G718,$H$11:$DN$1000,106,FALSE),3)=\"The\",EH718,VLOOKUP(VLOOKUP($G718,$H$11:$DN$1000,106,FALSE),DeclMatrix!$A$2:$F$5,VLOOKUP('Enrollment Form'!$B718,DeclMatrix!$A$8:$B$12,2,FALSE),FALSE))))","v":""},{"$f":"IF($A718=\"\",\"\",IF(VLOOKUP($G718,$H$11:$DN$1000,111,FALSE)=\"\",\"No\",IF(LEFT(VLOOKUP($G718,$H$11:$DN$1000,111,FALSE),3)=\"The\",EI718,VLOOKUP(VLOOKUP($G718,$H$11:$DN$1000,111,FALSE),DeclMatrix!$A$2:$F$5,VLOOKUP('Enrollment Form'!$B718,DeclMatrix!$A$8:$B$12,2,FALSE),FALSE))))","v":""},"",null,"","","","","","","","","","","",""]
["",{"$nulls":5},"","",{"$nulls":18},"","","","",{"$nulls":30},"","","","",{"$nulls":60},"",{"$f":"IF($A719=\"\",\"\",IF(VLOOKUP($G719,$H$11:$DN$1000,96,FALSE)=\"\",\"No\",IF(LEFT(VLOOKUP($G719,$H$11:$DN$1000,96,FALSE),3)=\"The\",EF719,VLOOKUP(VLOOKUP($G719,$H$11:$DN$1000,96,FALSE),DeclMatrix!$A$2:$F$5,VLOOKUP('Enrollment Form'!$B719,DeclMatrix!$A$8:$B$12,2,FALSE),FALSE))))","v":""},{"$f":"IF($A719=\"\",\"\",IF(VLOOKUP($G719,$H$11:$DN$1000,101,FALSE)=\"\",\"No\",IF(LEFT(VLOOKUP($G719,$H$11:$DN$1000,101,FALSE),3)=\"The\",EG719,VLOOKUP(VLOOKUP($G719,$H$11:$DN$1000,101,FALSE),DeclMatrix!$A$2:$F$5,VLOOKUP('Enrollment Form'!$B719,DeclMatrix!$A$8:$B$12,2,FALSE),FALSE))))","v":""},{"$f":"IF($A719=\"\",\"\",IF(VLOOKUP($G719,$H$11:$DN$1000,106,FALSE)=\"\",\"No\",IF(LEFT(VLOOKUP($G719,$H$11:$DN$1000,106,FALSE),3)=\"The\",EH719,VLOOKUP(VLOOKUP($G719,$H$11:$DN$1000,106,FALSE),DeclMatrix!$A$2:$F$5,VLOOKUP('Enrollment Form'!$B719,DeclMatrix!$A$8:$B$12,2,FALSE),FALSE))))","v":""},{"$f":"IF($A719=\"\",\"\",IF(VLOOKUP($G719,$H$11:$DN$1000,111,FALSE)=\"\",\"No\",IF(LEFT(VLOOKUP($G719,$H$11:$DN$1000,111,FALSE),3)=\"The\",EI719,VLOOKUP(VLOOKUP($G719,$H$11:$DN$1000,111,FALSE),DeclMatrix!$A$2:$F$5,VLOOKUP('Enrollment Form'!$B719,DeclMatrix!$A$8:$B$12,2,FALSE),FALSE))))","v":""},"",null,"","","","","","","","","","","",""]
["",{"$nulls":5},"","",{"$nulls":18},"","","","",{"$nulls":30},"","","","",{"$nulls":60},"",{"$f":"IF($A720=\"\",\"\",IF(VLOOKUP($G720,$H$11:$DN$1000,96,FALSE)=\"\",\"No\",IF(LEFT(VLOOKUP($G720,$H$11:$DN$1000,96,FALSE),3)=\"The\",EF720,VLOOKUP(VLOOKUP($G720,$H$11:$DN$1000,96,FALSE),DeclMatrix!$A$2:$F$5,VLOOKUP('Enrollment Form'!$B720,DeclMatrix!$A$8:$B$12,2,FALSE),FALSE))))","v":""},{"$f":"IF($A720=\"\",\"\",IF(VLOOKUP($G720,$H$11:$DN$1000,101,FALSE)=\"\",\"No\",IF(LEFT(VLOOKUP($G720,$H$11:$DN$1000,101,FALSE),3)=\"The\",EG720,VLOOKUP(VLOOKUP($G720,$H$11:$DN$1000,101,FALSE),DeclMatrix!$A$2:$F$5,VLOOKUP('Enrollment Form'!$B720,DeclMatrix!$A$8:$B$12,2,FALSE),FALSE))))","v":""},{"$f":"IF($A720=\"\",\"\",IF(VLOOKUP($G720,$H$11:$DN$1000,106,FALSE)=\"\",\"No\",IF(LEFT(VLOOKUP($G720,$H$11:$DN$1000,106,FALSE),3)=\"The\",EH720,VLOOKUP(VLOOKUP($G720,$H$11:$DN$1000,106,FALSE),DeclMatrix!$A$2:$F$5,VLOOKUP('Enrollment Form'!$B720,DeclMatrix!$A$8:$B$12,2,FALSE),FALSE))))","v":""},{"$f":"IF($A720=\"\",\"\",IF(VLOOKUP($G720,$H$11:$DN$1000,111,FALSE)=\"\",\"No\",IF(LEFT(VLOOKUP($G720,$H$11:$DN$1000,111,FALSE),3)=\"The\",EI720,VLOOKUP(VLOOKUP($G720,$H$11:$DN$1000,111,FALSE),DeclMatrix!$A$2:$F$5,VLOOKUP('Enrollment Form'!$B720,DeclMatrix!$A$8:$B$12,2,FALSE),FALSE))))","v":""},"",null,"","","","","","","","","","","",""]
["",{"$nulls":5},"","",{"$nulls":18},"","","","",{"$nulls":30},"","","","",{"$nulls":60},"",{"$f":"IF($A721=\"\",\"\",IF(VLOOKUP($G721,$H$11:$DN$1000,96,FALSE)=\"\",\"No\",IF(LEFT(VLOOKUP($G721,$H$11:$DN$1000,96,FALSE),3)=\"The\",EF721,VLOOKUP(VLOOKUP($G721,$H$11:$DN$1000,96,FALSE),DeclMatrix!$A$2:$F$5,VLOOKUP('Enrollment Form'!$B721,DeclMatrix!$A$8:$B$12,2,FALSE),FALSE))))","v":""},{"$f":"IF($A721=\"\",\"\",IF(VLOOKUP($G721,$H$11:$DN$1000,101,FALSE)=\"\",\"No\",IF(LEFT(VLOOKUP($G721,$H$11:$DN$1000,101,FALSE),3)=\"The\",EG721,VLOOKUP(VLOOKUP($G721,$H$11:$DN$1000,101,FALSE),DeclMatrix!$A$2:$F$5,VLOOKUP('Enrollment Form'!$B721,DeclMatrix!$A$8:$B$12,2,FALSE),FALSE))))","v":""},{"$f":"IF($A721=\"\",\"\",IF(VLOOKUP($G721,$H$11:$DN$1000,106,FALSE)=\"\",\"No\",IF(LEFT(VLOOKUP($G721,$H$11:$DN$1000,106,FALSE),3)=\"The\",EH721,VLOOKUP(VLOOKUP($G721,$H$11:$DN$1000,106,FALSE),DeclMatrix!$A$2:$F$5,VLOOKUP('Enrollment Form'!$B721,DeclMatrix!$A$8:$B$12,2,FALSE),FALSE))))","v":""},{"$f":"IF($A721=\"\",\"\",IF(VLOOKUP($G721,$H$11:$DN$1000,111,FALSE)=\"\",\"No\",IF(LEFT(VLOOKUP($G721,$H$11:$DN$1000,111,FALSE),3)=\"The\",EI721,VLOOKUP(VLOOKUP($G721,$H$11:$DN$1000,111,FALSE),DeclMatrix!$A$2:$F$5,VLOOKUP('Enrollment Form'!$B721,DeclMatrix!$A$8:$B$12,2,FALSE),FALSE))))","v":""},"",null,"","","","","","","","","","","",""]
["",{"$nulls":5},"","",{"$nulls":18},"","","","",{"$nulls":30},"","","","",{"$nulls":60},"",{"$f":"IF($A722=\"\",\"\",IF(VLOOKUP($G722,$H$11:$DN$1000,96,FALSE)=\"\",\"No\",IF(LEFT(VLOOKUP($G722,$H$11:$DN$1000,96,FALSE),3)=\"The\",EF722,VLOOKUP(VLOOKUP($G722,$H$11:$DN$1000,96,FALSE),DeclMatrix!$A$2:$F$5,VLOOKUP('Enrollment Form'!$B722,DeclMatrix!$A$8:$B$12,2,FALSE),FALSE))))","v":""},{"$f":"IF($A722=\"\",\"\",IF(VLOOKUP($G722,$H$11:$DN$1000,101,FALSE)=\"\",\"No\",IF(LEFT(VLOOKUP($G722,$H$11:$DN$1000,101,FALSE),3)=\"The\",EG722,VLOOKUP(VLOOKUP($G722,$H$11:$DN$1000,101,FALSE),DeclMatrix!$A$2:$F$5,VLOOKUP('Enrollment Form'!$B722,DeclMatrix!$A$8:$B$12,2,FALSE),FALSE))))","v":""},{"$f":"IF($A722=\"\",\"\",IF(VLOOKUP($G722,$H$11:$DN$1000,106,FALSE)=\"\",\"No\",IF(LEFT(VLOOKUP($G722,$H$11:$DN$1000,106,FALSE),3)=\"The\",EH722,VLOOKUP(VLOOKUP($G722,$H$11:$DN$1000,106,FALSE),DeclMatrix!$A$2:$F$5,VLOOKUP('Enrollment Form'!$B722,DeclMatrix!$A$8:$B$12,2,FALSE),FALSE))))","v":""},{"$f":"IF($A722=\"\",\"\",IF(VLOOKUP($G722,$H$11:$DN$1000,111,FALSE)=\"\",\"No\",IF(LEFT(VLOOKUP($G722,$H$11:$DN$1000,111,FALSE),3)=\"The\",EI722,VLOOKUP(VLOOKUP($G722,$H$11:$DN$1000,111,FALSE),DeclMatrix!$A$2:$F$5,VLOOKUP('Enrollment Form'!$B722,DeclMatrix!$A$8:$B$12,2,FALSE),FALSE))))","v":""},"",null,"","","","","","","","","","","",""]
["",{"$nulls":5},"","",{"$nulls":18},"","","","",{"$nulls":30},"","","","",{"$nulls":60},"",{"$f":"IF($A723=\"\",\"\",IF(VLOOKUP($G723,$H$11:$DN$1000,96,FALSE)=\"\",\"No\",IF(LEFT(VLOOKUP($G723,$H$11:$DN$1000,96,FALSE),3)=\"The\",EF723,VLOOKUP(VLOOKUP($G723,$H$11:$DN$1000,96,FALSE),DeclMatrix!$A$2:$F$5,VLOOKUP('Enrollment Form'!$B723,DeclMatrix!$A$8:$B$12,2,FALSE),FALSE))))","v":""},{"$f":"IF($A723=\"\",\"\",IF(VLOOKUP($G723,$H$11:$DN$1000,101,FALSE)=\"\",\"No\",IF(LEFT(VLOOKUP($G723,$H$11:$DN$1000,101,FALSE),3)=\"The\",EG723,VLOOKUP(VLOOKUP($G723,$H$11:$DN$1000,101,FALSE),DeclMatrix!$A$2:$F$5,VLOOKUP('Enrollment Form'!$B723,DeclMatrix!$A$8:$B$12,2,FALSE),FALSE))))","v":""},{"$f":"IF($A723=\"\",\"\",IF(VLOOKUP($G723,$H$11:$DN$1000,106,FALSE)=\"\",\"No\",IF(LEFT(VLOOKUP($G723,$H$11:$DN$1000,106,FALSE),3)=\"The\",EH723,VLOOKUP(VLOOKUP($G723,$H$11:$DN$1000,106,FALSE),DeclMatrix!$A$2:$F$5,VLOOKUP('Enrollment Form'!$B723,DeclMatrix!$A$8:$B$12,2,FALSE),FALSE))))","v":""},{"$f":"IF($A723=\"\",\"\",IF(VLOOKUP($G723,$H$11:$DN$1000,111,FALSE)=\"\",\"No\",IF(LEFT(VLOOKUP($G723,$H$11:$DN$1000,111,FALSE),3)=\"The\",EI723,VLOOKUP(VLOOKUP($G723,$H$11:$DN$1000,111,FALSE),DeclMatrix!$A$2:$F$5,VLOOKUP('Enrollment Form'!$B723,DeclMatrix!$A$8:$B$12,2,FALSE),FALSE))))","v":""},"",null,"","","","","","","","","","","",""]
["",{"$nulls":5},"","",{"$nulls":18},"","","","",{"$nulls":30},"","","","",{"$nulls":60},"",{"$f":"IF($A724=\"\",\"\",IF(VLOOKUP($G724,$H$11:$DN$1000,96,FALSE)=\"\",\"No\",IF(LEFT(VLOOKUP($G724,$H$11:$DN$1000,96,FALSE),3)=\"The\",EF724,VLOOKUP(VLOOKUP($G724,$H$11:$DN$1000,96,FALSE),DeclMatrix!$A$2:$F$5,VLOOKUP('Enrollment Form'!$B724,DeclMatrix!$A$8:$B$12,2,FALSE),FALSE))))","v":""},{"$f":"IF($A724=\"\",\"\",IF(VLOOKUP($G724,$H$11:$DN$1000,101,FALSE)=\"\",\"No\",IF(LEFT(VLOOKUP($G724,$H$11:$DN$1000,101,FALSE),3)=\"The\",EG724,VLOOKUP(VLOOKUP($G724,$H$11:$DN$1000,101,FALSE),DeclMatrix!$A$2:$F$5,VLOOKUP('Enrollment Form'!$B724,DeclMatrix!$A$8:$B$12,2,FALSE),FALSE))))","v":""},{"$f":"IF($A724=\"\",\"\",IF(VLOOKUP($G724,$H$11:$DN$1000,106,FALSE)=\"\",\"No\",IF(LEFT(VLOOKUP($G724,$H$11:$DN$1000,106,FALSE),3)=\"The\",EH724,VLOOKUP(VLOOKUP($G724,$H$11:$DN$1000,106,FALSE),DeclMatrix!$A$2:$F$5,VLOOKUP('Enrollment Form'!$B724,DeclMatrix!$A$8:$B$12,2,FALSE),FALSE))))","v":""},{"$f":"IF($A724=\"\",\"\",IF(VLOOKUP($G724,$H$11:$DN$1000,111,FALSE)=\"\",\"No\",IF(LEFT(VLOOKUP($G724,$H$11:$DN$1000,111,FALSE),3)=\"The\",EI724,VLOOKUP(VLOOKUP($G724,$H$11:$DN$1000,111,FALSE),DeclMatrix!$A$2:$F$5,VLOOKUP('Enrollment Form'!$B724,DeclMatrix!$A$8:$B$12,2,FALSE),FALSE))))","v":""},"",null,"","","","","","","","","","","",""]
["",{"$nulls":5},"","",{"$nulls":18},"","","","",{"$nulls":30},"","","","",{"$nulls":60},"",{"$f":"IF($A725=\"\",\"\",IF(VLOOKUP($G725,$H$11:$DN$1000,96,FALSE)=\"\",\"No\",IF(LEFT(VLOOKUP($G725,$H$11:$DN$1000,96,FALSE),3)=\"The\",EF725,VLOOKUP(VLOOKUP($G725,$H$11:$DN$1000,96,FALSE),DeclMatrix!$A$2:$F$5,VLOOKUP('Enrollment Form'!$B725,DeclMatrix!$A$8:$B$12,2,FALSE),FALSE))))","v":""},{"$f":"IF($A725=\"\",\"\",IF(VLOOKUP($G725,$H$11:$DN$1000,101,FALSE)=\"\",\"No\",IF(LEFT(VLOOKUP($G725,$H$11:$DN$1000,101,FALSE),3)=\"The\",EG725,VLOOKUP(VLOOKUP($G725,$H$11:$DN$1000,101,FALSE),DeclMatrix!$A$2:$F$5,VLOOKUP('Enrollment Form'!$B725,DeclMatrix!$A$8:$B$12,2,FALSE),FALSE))))","v":""},{"$f":"IF($A725=\"\",\"\",IF(VLOOKUP($G725,$H$11:$DN$1000,106,FALSE)=\"\",\"No\",IF(LEFT(VLOOKUP($G725,$H$11:$DN$1000,106,FALSE),3)=\"The\",EH725,VLOOKUP(VLOOKUP($G725,$H$11:$DN$1000,106,FALSE),DeclMatrix!$A$2:$F$5,VLOOKUP('Enrollment Form'!$B725,DeclMatrix!$A$8:$B$12,2,FALSE),FALSE))))","v":""},{"$f":"IF($A725=\"\",\"\",IF(VLOOKUP($G725,$H$11:$DN$1000,111,FALSE)=\"\",\"No\",IF(LEFT(VLOOKUP($G725,$H$11:$DN$1000,111,FALSE),3)=\"The\",EI725,VLOOKUP(VLOOKUP($G725,$H$11:$DN$1000,111,FALSE),DeclMatrix!$A$2:$F$5,VLOOKUP('Enrollment Form'!$B725,DeclMatrix!$A$8:$B$12,2,FALSE),FALSE))))","v":""},"",null,"","","","","","","","","","","",""]
["",{"$nulls":5},"","",{"$nulls":18},"","","","",{"$nulls":30},"","","","",{"$nulls":60},"",{"$f":"IF($A726=\"\",\"\",IF(VLOOKUP($G726,$H$11:$DN$1000,96,FALSE)=\"\",\"No\",IF(LEFT(VLOOKUP($G726,$H$11:$DN$1000,96,FALSE),3)=\"The\",EF726,VLOOKUP(VLOOKUP($G726,$H$11:$DN$1000,96,FALSE),DeclMatrix!$A$2:$F$5,VLOOKUP('Enrollment Form'!$B726,DeclMatrix!$A$8:$B$12,2,FALSE),FALSE))))","v":""},{"$f":"IF($A726=\"\",\"\",IF(VLOOKUP($G726,$H$11:$DN$1000,101,FALSE)=\"\",\"No\",IF(LEFT(VLOOKUP($G726,$H$11:$DN$1000,101,FALSE),3)=\"The\",EG726,VLOOKUP(VLOOKUP($G726,$H$11:$DN$1000,101,FALSE),DeclMatrix!$A$2:$F$5,VLOOKUP('Enrollment Form'!$B726,DeclMatrix!$A$8:$B$12,2,FALSE),FALSE))))","v":""},{"$f":"IF($A726=\"\",\"\",IF(VLOOKUP($G726,$H$11:$DN$1000,106,FALSE)=\"\",\"No\",IF(LEFT(VLOOKUP($G726,$H$11:$DN$1000,106,FALSE),3)=\"The\",EH726,VLOOKUP(VLOOKUP($G726,$H$11:$DN$1000,106,FALSE),DeclMatrix!$A$2:$F$5,VLOOKUP('Enrollment Form'!$B726,DeclMatrix!$A$8:$B$12,2,FALSE),FALSE))))","v":""},{"$f":"IF($A726=\"\",\"\",IF(VLOOKUP($G726,$H$11:$DN$1000,111,FALSE)=\"\",\"No\",IF(LEFT(VLOOKUP($G726,$H$11:$DN$1000,111,FALSE),3)=\"The\",EI726,VLOOKUP(VLOOKUP($G726,$H$11:$DN$1000,111,FALSE),DeclMatrix!$A$2:$F$5,VLOOKUP('Enrollment Form'!$B726,DeclMatrix!$A$8:$B$12,2,FALSE),FALSE))))","v":""},"",null,"","","","","","","","","","","",""]
["",{"$nulls":5},"","",{"$nulls":18},"","","","",{"$nulls":30},"","","","",{"$nulls":60},"",{"$f":"IF($A727=\"\",\"\",IF(VLOOKUP($G727,$H$11:$DN$1000,96,FALSE)=\"\",\"No\",IF(LEFT(VLOOKUP($G727,$H$11:$DN$1000,96,FALSE),3)=\"The\",EF727,VLOOKUP(VLOOKUP($G727,$H$11:$DN$1000,96,FALSE),DeclMatrix!$A$2:$F$5,VLOOKUP('Enrollment Form'!$B727,DeclMatrix!$A$8:$B$12,2,FALSE),FALSE))))","v":""},{"$f":"IF($A727=\"\",\"\",IF(VLOOKUP($G727,$H$11:$DN$1000,101,FALSE)=\"\",\"No\",IF(LEFT(VLOOKUP($G727,$H$11:$DN$1000,101,FALSE),3)=\"The\",EG727,VLOOKUP(VLOOKUP($G727,$H$11:$DN$1000,101,FALSE),DeclMatrix!$A$2:$F$5,VLOOKUP('Enrollment Form'!$B727,DeclMatrix!$A$8:$B$12,2,FALSE),FALSE))))","v":""},{"$f":"IF($A727=\"\",\"\",IF(VLOOKUP($G727,$H$11:$DN$1000,106,FALSE)=\"\",\"No\",IF(LEFT(VLOOKUP($G727,$H$11:$DN$1000,106,FALSE),3)=\"The\",EH727,VLOOKUP(VLOOKUP($G727,$H$11:$DN$1000,106,FALSE),DeclMatrix!$A$2:$F$5,VLOOKUP('Enrollment Form'!$B727,DeclMatrix!$A$8:$B$12,2,FALSE),FALSE))))","v":""},{"$f":"IF($A727=\"\",\"\",IF(VLOOKUP($G727,$H$11:$DN$1000,111,FALSE)=\"\",\"No\",IF(LEFT(VLOOKUP($G727,$H$11:$DN$1000,111,FALSE),3)=\"The\",EI727,VLOOKUP(VLOOKUP($G727,$H$11:$DN$1000,111,FALSE),DeclMatrix!$A$2:$F$5,VLOOKUP('Enrollment Form'!$B727,DeclMatrix!$A$8:$B$12,2,FALSE),FALSE))))","v":""},"",null,"","","","","","","","","","","",""]
["",{"$nulls":5},"","",{"$nulls":18},"","","","",{"$nulls":30},"","","","",{"$nulls":60},"",{"$f":"IF($A728=\"\",\"\",IF(VLOOKUP($G728,$H$11:$DN$1000,96,FALSE)=\"\",\"No\",IF(LEFT(VLOOKUP($G728,$H$11:$DN$1000,96,FALSE),3)=\"The\",EF728,VLOOKUP(VLOOKUP($G728,$H$11:$DN$1000,96,FALSE),DeclMatrix!$A$2:$F$5,VLOOKUP('Enrollment Form'!$B728,DeclMatrix!$A$8:$B$12,2,FALSE),FALSE))))","v":""},{"$f":"IF($A728=\"\",\"\",IF(VLOOKUP($G728,$H$11:$DN$1000,101,FALSE)=\"\",\"No\",IF(LEFT(VLOOKUP($G728,$H$11:$DN$1000,101,FALSE),3)=\"The\",EG728,VLOOKUP(VLOOKUP($G728,$H$11:$DN$1000,101,FALSE),DeclMatrix!$A$2:$F$5,VLOOKUP('Enrollment Form'!$B728,DeclMatrix!$A$8:$B$12,2,FALSE),FALSE))))","v":""},{"$f":"IF($A728=\"\",\"\",IF(VLOOKUP($G728,$H$11:$DN$1000,106,FALSE)=\"\",\"No\",IF(LEFT(VLOOKUP($G728,$H$11:$DN$1000,106,FALSE),3)=\"The\",EH728,VLOOKUP(VLOOKUP($G728,$H$11:$DN$1000,106,FALSE),DeclMatrix!$A$2:$F$5,VLOOKUP('Enrollment Form'!$B728,DeclMatrix!$A$8:$B$12,2,FALSE),FALSE))))","v":""},{"$f":"IF($A728=\"\",\"\",IF(VLOOKUP($G728,$H$11:$DN$1000,111,FALSE)=\"\",\"No\",IF(LEFT(VLOOKUP($G728,$H$11:$DN$1000,111,FALSE),3)=\"The\",EI728,VLOOKUP(VLOOKUP($G728,$H$11:$DN$1000,111,FALSE),DeclMatrix!$A$2:$F$5,VLOOKUP('Enrollment Form'!$B728,DeclMatrix!$A$8:$B$12,2,FALSE),FALSE))))","v":""},"",null,"","","","","","","","","","","",""]
["",{"$nulls":5},"","",{"$nulls":18},"","","","",{"$nulls":30},"","","","",{"$nulls":60},"",{"$f":"IF($A729=\"\",\"\",IF(VLOOKUP($G729,$H$11:$DN$1000,96,FALSE)=\"\",\"No\",IF(LEFT(VLOOKUP($G729,$H$11:$DN$1000,96,FALSE),3)=\"The\",EF729,VLOOKUP(VLOOKUP($G729,$H$11:$DN$1000,96,FALSE),DeclMatrix!$A$2:$F$5,VLOOKUP('Enrollment Form'!$B729,DeclMatrix!$A$8:$B$12,2,FALSE),FALSE))))","v":""},{"$f":"IF($A729=\"\",\"\",IF(VLOOKUP($G729,$H$11:$DN$1000,101,FALSE)=\"\",\"No\",IF(LEFT(VLOOKUP($G729,$H$11:$DN$1000,101,FALSE),3)=\"The\",EG729,VLOOKUP(VLOOKUP($G729,$H$11:$DN$1000,101,FALSE),DeclMatrix!$A$2:$F$5,VLOOKUP('Enrollment Form'!$B729,DeclMatrix!$A$8:$B$12,2,FALSE),FALSE))))","v":""},{"$f":"IF($A729=\"\",\"\",IF(VLOOKUP($G729,$H$11:$DN$1000,106,FALSE)=\"\",\"No\",IF(LEFT(VLOOKUP($G729,$H$11:$DN$1000,106,FALSE),3)=\"The\",EH729,VLOOKUP(VLOOKUP($G729,$H$11:$DN$1000,106,FALSE),DeclMatrix!$A$2:$F$5,VLOOKUP('Enrollment Form'!$B729,DeclMatrix!$A$8:$B$12,2,FALSE),FALSE))))","v":""},{"$f":"IF($A729=\"\",\"\",IF(VLOOKUP($G729,$H$11:$DN$1000,111,FALSE)=\"\",\"No\",IF(LEFT(VLOOKUP($G729,$H$11:$DN$1000,111,FALSE),3)=\"The\",EI729,VLOOKUP(VLOOKUP($G729,$H$11:$DN$1000,111,FALSE),DeclMatrix!$A$2:$F$5,VLOOKUP('Enrollment Form'!$B729,DeclMatrix!$A$8:$B$12,2,FALSE),FALSE))))","v":""},"",null,"","","","","","","","","","","",""]
["",{"$nulls":5},"","",{"$nulls":18},"","","","",{"$nulls":30},"","","","",{"$nulls":60},"",{"$f":"IF($A730=\"\",\"\",IF(VLOOKUP($G730,$H$11:$DN$1000,96,FALSE)=\"\",\"No\",IF(LEFT(VLOOKUP($G730,$H$11:$DN$1000,96,FALSE),3)=\"The\",EF730,VLOOKUP(VLOOKUP($G730,$H$11:$DN$1000,96,FALSE),DeclMatrix!$A$2:$F$5,VLOOKUP('Enrollment Form'!$B730,DeclMatrix!$A$8:$B$12,2,FALSE),FALSE))))","v":""},{"$f":"IF($A730=\"\",\"\",IF(VLOOKUP($G730,$H$11:$DN$1000,101,FALSE)=\"\",\"No\",IF(LEFT(VLOOKUP($G730,$H$11:$DN$1000,101,FALSE),3)=\"The\",EG730,VLOOKUP(VLOOKUP($G730,$H$11:$DN$1000,101,FALSE),DeclMatrix!$A$2:$F$5,VLOOKUP('Enrollment Form'!$B730,DeclMatrix!$A$8:$B$12,2,FALSE),FALSE))))","v":""},{"$f":"IF($A730=\"\",\"\",IF(VLOOKUP($G730,$H$11:$DN$1000,106,FALSE)=\"\",\"No\",IF(LEFT(VLOOKUP($G730,$H$11:$DN$1000,106,FALSE),3)=\"The\",EH730,VLOOKUP(VLOOKUP($G730,$H$11:$DN$1000,106,FALSE),DeclMatrix!$A$2:$F$5,VLOOKUP('Enrollment Form'!$B730,DeclMatrix!$A$8:$B$12,2,FALSE),FALSE))))","v":""},{"$f":"IF($A730=\"\",\"\",IF(VLOOKUP($G730,$H$11:$DN$1000,111,FALSE)=\"\",\"No\",IF(LEFT(VLOOKUP($G730,$H$11:$DN$1000,111,FALSE),3)=\"The\",EI730,VLOOKUP(VLOOKUP($G730,$H$11:$DN$1000,111,FALSE),DeclMatrix!$A$2:$F$5,VLOOKUP('Enrollment Form'!$B730,DeclMatrix!$A$8:$B$12,2,FALSE),FALSE))))","v":""},"",null,"","","","","","","","","","","",""]
["",{"$nulls":5},"","",{"$nulls":18},"","","","",{"$nulls":30},"","","","",{"$nulls":60},"",{"$f":"IF($A731=\"\",\"\",IF(VLOOKUP($G731,$H$11:$DN$1000,96,FALSE)=\"\",\"No\",IF(LEFT(VLOOKUP($G731,$H$11:$DN$1000,96,FALSE),3)=\"The\",EF731,VLOOKUP(VLOOKUP($G731,$H$11:$DN$1000,96,FALSE),DeclMatrix!$A$2:$F$5,VLOOKUP('Enrollment Form'!$B731,DeclMatrix!$A$8:$B$12,2,FALSE),FALSE))))","v":""},{"$f":"IF($A731=\"\",\"\",IF(VLOOKUP($G731,$H$11:$DN$1000,101,FALSE)=\"\",\"No\",IF(LEFT(VLOOKUP($G731,$H$11:$DN$1000,101,FALSE),3)=\"The\",EG731,VLOOKUP(VLOOKUP($G731,$H$11:$DN$1000,101,FALSE),DeclMatrix!$A$2:$F$5,VLOOKUP('Enrollment Form'!$B731,DeclMatrix!$A$8:$B$12,2,FALSE),FALSE))))","v":""},{"$f":"IF($A731=\"\",\"\",IF(VLOOKUP($G731,$H$11:$DN$1000,106,FALSE)=\"\",\"No\",IF(LEFT(VLOOKUP($G731,$H$11:$DN$1000,106,FALSE),3)=\"The\",EH731,VLOOKUP(VLOOKUP($G731,$H$11:$DN$1000,106,FALSE),DeclMatrix!$A$2:$F$5,VLOOKUP('Enrollment Form'!$B731,DeclMatrix!$A$8:$B$12,2,FALSE),FALSE))))","v":""},{"$f":"IF($A731=\"\",\"\",IF(VLOOKUP($G731,$H$11:$DN$1000,111,FALSE)=\"\",\"No\",IF(LEFT(VLOOKUP($G731,$H$11:$DN$1000,111,FALSE),3)=\"The\",EI731,VLOOKUP(VLOOKUP($G731,$H$11:$DN$1000,111,FALSE),DeclMatrix!$A$2:$F$5,VLOOKUP('Enrollment Form'!$B731,DeclMatrix!$A$8:$B$12,2,FALSE),FALSE))))","v":""},"",null,"","","","","","","","","","","",""]
["",{"$nulls":5},"","",{"$nulls":18},"","","","",{"$nulls":30},"","","","",{"$nulls":60},"",{"$f":"IF($A732=\"\",\"\",IF(VLOOKUP($G732,$H$11:$DN$1000,96,FALSE)=\"\",\"No\",IF(LEFT(VLOOKUP($G732,$H$11:$DN$1000,96,FALSE),3)=\"The\",EF732,VLOOKUP(VLOOKUP($G732,$H$11:$DN$1000,96,FALSE),DeclMatrix!$A$2:$F$5,VLOOKUP('Enrollment Form'!$B732,DeclMatrix!$A$8:$B$12,2,FALSE),FALSE))))","v":""},{"$f":"IF($A732=\"\",\"\",IF(VLOOKUP($G732,$H$11:$DN$1000,101,FALSE)=\"\",\"No\",IF(LEFT(VLOOKUP($G732,$H$11:$DN$1000,101,FALSE),3)=\"The\",EG732,VLOOKUP(VLOOKUP($G732,$H$11:$DN$1000,101,FALSE),DeclMatrix!$A$2:$F$5,VLOOKUP('Enrollment Form'!$B732,DeclMatrix!$A$8:$B$12,2,FALSE),FALSE))))","v":""},{"$f":"IF($A732=\"\",\"\",IF(VLOOKUP($G732,$H$11:$DN$1000,106,FALSE)=\"\",\"No\",IF(LEFT(VLOOKUP($G732,$H$11:$DN$1000,106,FALSE),3)=\"The\",EH732,VLOOKUP(VLOOKUP($G732,$H$11:$DN$1000,106,FALSE),DeclMatrix!$A$2:$F$5,VLOOKUP('Enrollment Form'!$B732,DeclMatrix!$A$8:$B$12,2,FALSE),FALSE))))","v":""},{"$f":"IF($A732=\"\",\"\",IF(VLOOKUP($G732,$H$11:$DN$1000,111,FALSE)=\"\",\"No\",IF(LEFT(VLOOKUP($G732,$H$11:$DN$1000,111,FALSE),3)=\"The\",EI732,VLOOKUP(VLOOKUP($G732,$H$11:$DN$1000,111,FALSE),DeclMatrix!$A$2:$F$5,VLOOKUP('Enrollment Form'!$B732,DeclMatrix!$A$8:$B$12,2,FALSE),FALSE))))","v":""},"",null,"","","","","","","","","","","",""]
["",{"$nulls":5},"","",{"$nulls":18},"","","","",{"$nulls":30},"","","","",{"$nulls":60},"",{"$f":"IF($A733=\"\",\"\",IF(VLOOKUP($G733,$H$11:$DN$1000,96,FALSE)=\"\",\"No\",IF(LEFT(VLOOKUP($G733,$H$11:$DN$1000,96,FALSE),3)=\"The\",EF733,VLOOKUP(VLOOKUP($G733,$H$11:$DN$1000,96,FALSE),DeclMatrix!$A$2:$F$5,VLOOKUP('Enrollment Form'!$B733,DeclMatrix!$A$8:$B$12,2,FALSE),FALSE))))","v":""},{"$f":"IF($A733=\"\",\"\",IF(VLOOKUP($G733,$H$11:$DN$1000,101,FALSE)=\"\",\"No\",IF(LEFT(VLOOKUP($G733,$H$11:$DN$1000,101,FALSE),3)=\"The\",EG733,VLOOKUP(VLOOKUP($G733,$H$11:$DN$1000,101,FALSE),DeclMatrix!$A$2:$F$5,VLOOKUP('Enrollment Form'!$B733,DeclMatrix!$A$8:$B$12,2,FALSE),FALSE))))","v":""},{"$f":"IF($A733=\"\",\"\",IF(VLOOKUP($G733,$H$11:$DN$1000,106,FALSE)=\"\",\"No\",IF(LEFT(VLOOKUP($G733,$H$11:$DN$1000,106,FALSE),3)=\"The\",EH733,VLOOKUP(VLOOKUP($G733,$H$11:$DN$1000,106,FALSE),DeclMatrix!$A$2:$F$5,VLOOKUP('Enrollment Form'!$B733,DeclMatrix!$A$8:$B$12,2,FALSE),FALSE))))","v":""},{"$f":"IF($A733=\"\",\"\",IF(VLOOKUP($G733,$H$11:$DN$1000,111,FALSE)=\"\",\"No\",IF(LEFT(VLOOKUP($G733,$H$11:$DN$1000,111,FALSE),3)=\"The\",EI733,VLOOKUP(VLOOKUP($G733,$H$11:$DN$1000,111,FALSE),DeclMatrix!$A$2:$F$5,VLOOKUP('Enrollment Form'!$B733,DeclMatrix!$A$8:$B$12,2,FALSE),FALSE))))","v":""},"",null,"","","","","","","","","","","",""]
["",{"$nulls":5},"","",{"$nulls":18},"","","","",{"$nulls":30},"","","","",{"$nulls":60},"",{"$f":"IF($A734=\"\",\"\",IF(VLOOKUP($G734,$H$11:$DN$1000,96,FALSE)=\"\",\"No\",IF(LEFT(VLOOKUP($G734,$H$11:$DN$1000,96,FALSE),3)=\"The\",EF734,VLOOKUP(VLOOKUP($G734,$H$11:$DN$1000,96,FALSE),DeclMatrix!$A$2:$F$5,VLOOKUP('Enrollment Form'!$B734,DeclMatrix!$A$8:$B$12,2,FALSE),FALSE))))","v":""},{"$f":"IF($A734=\"\",\"\",IF(VLOOKUP($G734,$H$11:$DN$1000,101,FALSE)=\"\",\"No\",IF(LEFT(VLOOKUP($G734,$H$11:$DN$1000,101,FALSE),3)=\"The\",EG734,VLOOKUP(VLOOKUP($G734,$H$11:$DN$1000,101,FALSE),DeclMatrix!$A$2:$F$5,VLOOKUP('Enrollment Form'!$B734,DeclMatrix!$A$8:$B$12,2,FALSE),FALSE))))","v":""},{"$f":"IF($A734=\"\",\"\",IF(VLOOKUP($G734,$H$11:$DN$1000,106,FALSE)=\"\",\"No\",IF(LEFT(VLOOKUP($G734,$H$11:$DN$1000,106,FALSE),3)=\"The\",EH734,VLOOKUP(VLOOKUP($G734,$H$11:$DN$1000,106,FALSE),DeclMatrix!$A$2:$F$5,VLOOKUP('Enrollment Form'!$B734,DeclMatrix!$A$8:$B$12,2,FALSE),FALSE))))","v":""},{"$f":"IF($A734=\"\",\"\",IF(VLOOKUP($G734,$H$11:$DN$1000,111,FALSE)=\"\",\"No\",IF(LEFT(VLOOKUP($G734,$H$11:$DN$1000,111,FALSE),3)=\"The\",EI734,VLOOKUP(VLOOKUP($G734,$H$11:$DN$1000,111,FALSE),DeclMatrix!$A$2:$F$5,VLOOKUP('Enrollment Form'!$B734,DeclMatrix!$A$8:$B$12,2,FALSE),FALSE))))","v":""},"",null,"","","","","","","","","","","",""]
["",{"$nulls":5},"","",{"$nulls":18},"","","","",{"$nulls":30},"","","","",{"$nulls":60},"",{"$f":"IF($A735=\"\",\"\",IF(VLOOKUP($G735,$H$11:$DN$1000,96,FALSE)=\"\",\"No\",IF(LEFT(VLOOKUP($G735,$H$11:$DN$1000,96,FALSE),3)=\"The\",EF735,VLOOKUP(VLOOKUP($G735,$H$11:$DN$1000,96,FALSE),DeclMatrix!$A$2:$F$5,VLOOKUP('Enrollment Form'!$B735,DeclMatrix!$A$8:$B$12,2,FALSE),FALSE))))","v":""},{"$f":"IF($A735=\"\",\"\",IF(VLOOKUP($G735,$H$11:$DN$1000,101,FALSE)=\"\",\"No\",IF(LEFT(VLOOKUP($G735,$H$11:$DN$1000,101,FALSE),3)=\"The\",EG735,VLOOKUP(VLOOKUP($G735,$H$11:$DN$1000,101,FALSE),DeclMatrix!$A$2:$F$5,VLOOKUP('Enrollment Form'!$B735,DeclMatrix!$A$8:$B$12,2,FALSE),FALSE))))","v":""},{"$f":"IF($A735=\"\",\"\",IF(VLOOKUP($G735,$H$11:$DN$1000,106,FALSE)=\"\",\"No\",IF(LEFT(VLOOKUP($G735,$H$11:$DN$1000,106,FALSE),3)=\"The\",EH735,VLOOKUP(VLOOKUP($G735,$H$11:$DN$1000,106,FALSE),DeclMatrix!$A$2:$F$5,VLOOKUP('Enrollment Form'!$B735,DeclMatrix!$A$8:$B$12,2,FALSE),FALSE))))","v":""},{"$f":"IF($A735=\"\",\"\",IF(VLOOKUP($G735,$H$11:$DN$1000,111,FALSE)=\"\",\"No\",IF(LEFT(VLOOKUP($G735,$H$11:$DN$1000,111,FALSE),3)=\"The\",EI735,VLOOKUP(VLOOKUP($G735,$H$11:$DN$1000,111,FALSE),DeclMatrix!$A$2:$F$5,VLOOKUP('Enrollment Form'!$B735,DeclMatrix!$A$8:$B$12,2,FALSE),FALSE))))","v":""},"",null,"","","","","","","","","","","",""]
["",{"$nulls":5},"","",{"$nulls":18},"","","","",{"$nulls":30},"","","","",{"$nulls":60},"",{"$f":"IF($A736=\"\",\"\",IF(VLOOKUP($G736,$H$11:$DN$1000,96,FALSE)=\"\",\"No\",IF(LEFT(VLOOKUP($G736,$H$11:$DN$1000,96,FALSE),3)=\"The\",EF736,VLOOKUP(VLOOKUP($G736,$H$11:$DN$1000,96,FALSE),DeclMatrix!$A$2:$F$5,VLOOKUP('Enrollment Form'!$B736,DeclMatrix!$A$8:$B$12,2,FALSE),FALSE))))","v":""},{"$f":"IF($A736=\"\",\"\",IF(VLOOKUP($G736,$H$11:$DN$1000,101,FALSE)=\"\",\"No\",IF(LEFT(VLOOKUP($G736,$H$11:$DN$1000,101,FALSE),3)=\"The\",EG736,VLOOKUP(VLOOKUP($G736,$H$11:$DN$1000,101,FALSE),DeclMatrix!$A$2:$F$5,VLOOKUP('Enrollment Form'!$B736,DeclMatrix!$A$8:$B$12,2,FALSE),FALSE))))","v":""},{"$f":"IF($A736=\"\",\"\",IF(VLOOKUP($G736,$H$11:$DN$1000,106,FALSE)=\"\",\"No\",IF(LEFT(VLOOKUP($G736,$H$11:$DN$1000,106,FALSE),3)=\"The\",EH736,VLOOKUP(VLOOKUP($G736,$H$11:$DN$1000,106,FALSE),DeclMatrix!$A$2:$F$5,VLOOKUP('Enrollment Form'!$B736,DeclMatrix!$A$8:$B$12,2,FALSE),FALSE))))","v":""},{"$f":"IF($A736=\"\",\"\",IF(VLOOKUP($G736,$H$11:$DN$1000,111,FALSE)=\"\",\"No\",IF(LEFT(VLOOKUP($G736,$H$11:$DN$1000,111,FALSE),3)=\"The\",EI736,VLOOKUP(VLOOKUP($G736,$H$11:$DN$1000,111,FALSE),DeclMatrix!$A$2:$F$5,VLOOKUP('Enrollment Form'!$B736,DeclMatrix!$A$8:$B$12,2,FALSE),FALSE))))","v":""},"",null,"","","","","","","","","","","",""]
["",{"$nulls":5},"","",{"$nulls":18},"","","","",{"$nulls":30},"","","","",{"$nulls":60},"",{"$f":"IF($A737=\"\",\"\",IF(VLOOKUP($G737,$H$11:$DN$1000,96,FALSE)=\"\",\"No\",IF(LEFT(VLOOKUP($G737,$H$11:$DN$1000,96,FALSE),3)=\"The\",EF737,VLOOKUP(VLOOKUP($G737,$H$11:$DN$1000,96,FALSE),DeclMatrix!$A$2:$F$5,VLOOKUP('Enrollment Form'!$B737,DeclMatrix!$A$8:$B$12,2,FALSE),FALSE))))","v":""},{"$f":"IF($A737=\"\",\"\",IF(VLOOKUP($G737,$H$11:$DN$1000,101,FALSE)=\"\",\"No\",IF(LEFT(VLOOKUP($G737,$H$11:$DN$1000,101,FALSE),3)=\"The\",EG737,VLOOKUP(VLOOKUP($G737,$H$11:$DN$1000,101,FALSE),DeclMatrix!$A$2:$F$5,VLOOKUP('Enrollment Form'!$B737,DeclMatrix!$A$8:$B$12,2,FALSE),FALSE))))","v":""},{"$f":"IF($A737=\"\",\"\",IF(VLOOKUP($G737,$H$11:$DN$1000,106,FALSE)=\"\",\"No\",IF(LEFT(VLOOKUP($G737,$H$11:$DN$1000,106,FALSE),3)=\"The\",EH737,VLOOKUP(VLOOKUP($G737,$H$11:$DN$1000,106,FALSE),DeclMatrix!$A$2:$F$5,VLOOKUP('Enrollment Form'!$B737,DeclMatrix!$A$8:$B$12,2,FALSE),FALSE))))","v":""},{"$f":"IF($A737=\"\",\"\",IF(VLOOKUP($G737,$H$11:$DN$1000,111,FALSE)=\"\",\"No\",IF(LEFT(VLOOKUP($G737,$H$11:$DN$1000,111,FALSE),3)=\"The\",EI737,VLOOKUP(VLOOKUP($G737,$H$11:$DN$1000,111,FALSE),DeclMatrix!$A$2:$F$5,VLOOKUP('Enrollment Form'!$B737,DeclMatrix!$A$8:$B$12,2,FALSE),FALSE))))","v":""},"",null,"","","","","","","","","","","",""]
["",{"$nulls":5},"","",{"$nulls":18},"","","","",{"$nulls":30},"","","","",{"$nulls":60},"",{"$f":"IF($A738=\"\",\"\",IF(VLOOKUP($G738,$H$11:$DN$1000,96,FALSE)=\"\",\"No\",IF(LEFT(VLOOKUP($G738,$H$11:$DN$1000,96,FALSE),3)=\"The\",EF738,VLOOKUP(VLOOKUP($G738,$H$11:$DN$1000,96,FALSE),DeclMatrix!$A$2:$F$5,VLOOKUP('Enrollment Form'!$B738,DeclMatrix!$A$8:$B$12,2,FALSE),FALSE))))","v":""},{"$f":"IF($A738=\"\",\"\",IF(VLOOKUP($G738,$H$11:$DN$1000,101,FALSE)=\"\",\"No\",IF(LEFT(VLOOKUP($G738,$H$11:$DN$1000,101,FALSE),3)=\"The\",EG738,VLOOKUP(VLOOKUP($G738,$H$11:$DN$1000,101,FALSE),DeclMatrix!$A$2:$F$5,VLOOKUP('Enrollment Form'!$B738,DeclMatrix!$A$8:$B$12,2,FALSE),FALSE))))","v":""},{"$f":"IF($A738=\"\",\"\",IF(VLOOKUP($G738,$H$11:$DN$1000,106,FALSE)=\"\",\"No\",IF(LEFT(VLOOKUP($G738,$H$11:$DN$1000,106,FALSE),3)=\"The\",EH738,VLOOKUP(VLOOKUP($G738,$H$11:$DN$1000,106,FALSE),DeclMatrix!$A$2:$F$5,VLOOKUP('Enrollment Form'!$B738,DeclMatrix!$A$8:$B$12,2,FALSE),FALSE))))","v":""},{"$f":"IF($A738=\"\",\"\",IF(VLOOKUP($G738,$H$11:$DN$1000,111,FALSE)=\"\",\"No\",IF(LEFT(VLOOKUP($G738,$H$11:$DN$1000,111,FALSE),3)=\"The\",EI738,VLOOKUP(VLOOKUP($G738,$H$11:$DN$1000,111,FALSE),DeclMatrix!$A$2:$F$5,VLOOKUP('Enrollment Form'!$B738,DeclMatrix!$A$8:$B$12,2,FALSE),FALSE))))","v":""},"",null,"","","","","","","","","","","",""]
["",{"$nulls":5},"","",{"$nulls":18},"","","","",{"$nulls":30},"","","","",{"$nulls":60},"",{"$f":"IF($A739=\"\",\"\",IF(VLOOKUP($G739,$H$11:$DN$1000,96,FALSE)=\"\",\"No\",IF(LEFT(VLOOKUP($G739,$H$11:$DN$1000,96,FALSE),3)=\"The\",EF739,VLOOKUP(VLOOKUP($G739,$H$11:$DN$1000,96,FALSE),DeclMatrix!$A$2:$F$5,VLOOKUP('Enrollment Form'!$B739,DeclMatrix!$A$8:$B$12,2,FALSE),FALSE))))","v":""},{"$f":"IF($A739=\"\",\"\",IF(VLOOKUP($G739,$H$11:$DN$1000,101,FALSE)=\"\",\"No\",IF(LEFT(VLOOKUP($G739,$H$11:$DN$1000,101,FALSE),3)=\"The\",EG739,VLOOKUP(VLOOKUP($G739,$H$11:$DN$1000,101,FALSE),DeclMatrix!$A$2:$F$5,VLOOKUP('Enrollment Form'!$B739,DeclMatrix!$A$8:$B$12,2,FALSE),FALSE))))","v":""},{"$f":"IF($A739=\"\",\"\",IF(VLOOKUP($G739,$H$11:$DN$1000,106,FALSE)=\"\",\"No\",IF(LEFT(VLOOKUP($G739,$H$11:$DN$1000,106,FALSE),3)=\"The\",EH739,VLOOKUP(VLOOKUP($G739,$H$11:$DN$1000,106,FALSE),DeclMatrix!$A$2:$F$5,VLOOKUP('Enrollment Form'!$B739,DeclMatrix!$A$8:$B$12,2,FALSE),FALSE))))","v":""},{"$f":"IF($A739=\"\",\"\",IF(VLOOKUP($G739,$H$11:$DN$1000,111,FALSE)=\"\",\"No\",IF(LEFT(VLOOKUP($G739,$H$11:$DN$1000,111,FALSE),3)=\"The\",EI739,VLOOKUP(VLOOKUP($G739,$H$11:$DN$1000,111,FALSE),DeclMatrix!$A$2:$F$5,VLOOKUP('Enrollment Form'!$B739,DeclMatrix!$A$8:$B$12,2,FALSE),FALSE))))","v":""},"",null,"","","","","","","","","","","",""]
["",{"$nulls":5},"","",{"$nulls":18},"","","","",{"$nulls":30},"","","","",{"$nulls":60},"",{"$f":"IF($A740=\"\",\"\",IF(VLOOKUP($G740,$H$11:$DN$1000,96,FALSE)=\"\",\"No\",IF(LEFT(VLOOKUP($G740,$H$11:$DN$1000,96,FALSE),3)=\"The\",EF740,VLOOKUP(VLOOKUP($G740,$H$11:$DN$1000,96,FALSE),DeclMatrix!$A$2:$F$5,VLOOKUP('Enrollment Form'!$B740,DeclMatrix!$A$8:$B$12,2,FALSE),FALSE))))","v":""},{"$f":"IF($A740=\"\",\"\",IF(VLOOKUP($G740,$H$11:$DN$1000,101,FALSE)=\"\",\"No\",IF(LEFT(VLOOKUP($G740,$H$11:$DN$1000,101,FALSE),3)=\"The\",EG740,VLOOKUP(VLOOKUP($G740,$H$11:$DN$1000,101,FALSE),DeclMatrix!$A$2:$F$5,VLOOKUP('Enrollment Form'!$B740,DeclMatrix!$A$8:$B$12,2,FALSE),FALSE))))","v":""},{"$f":"IF($A740=\"\",\"\",IF(VLOOKUP($G740,$H$11:$DN$1000,106,FALSE)=\"\",\"No\",IF(LEFT(VLOOKUP($G740,$H$11:$DN$1000,106,FALSE),3)=\"The\",EH740,VLOOKUP(VLOOKUP($G740,$H$11:$DN$1000,106,FALSE),DeclMatrix!$A$2:$F$5,VLOOKUP('Enrollment Form'!$B740,DeclMatrix!$A$8:$B$12,2,FALSE),FALSE))))","v":""},{"$f":"IF($A740=\"\",\"\",IF(VLOOKUP($G740,$H$11:$DN$1000,111,FALSE)=\"\",\"No\",IF(LEFT(VLOOKUP($G740,$H$11:$DN$1000,111,FALSE),3)=\"The\",EI740,VLOOKUP(VLOOKUP($G740,$H$11:$DN$1000,111,FALSE),DeclMatrix!$A$2:$F$5,VLOOKUP('Enrollment Form'!$B740,DeclMatrix!$A$8:$B$12,2,FALSE),FALSE))))","v":""},"",null,"","","","","","","","","","","",""]
["",{"$nulls":5},"","",{"$nulls":18},"","","","",{"$nulls":30},"","","","",{"$nulls":60},"",{"$f":"IF($A741=\"\",\"\",IF(VLOOKUP($G741,$H$11:$DN$1000,96,FALSE)=\"\",\"No\",IF(LEFT(VLOOKUP($G741,$H$11:$DN$1000,96,FALSE),3)=\"The\",EF741,VLOOKUP(VLOOKUP($G741,$H$11:$DN$1000,96,FALSE),DeclMatrix!$A$2:$F$5,VLOOKUP('Enrollment Form'!$B741,DeclMatrix!$A$8:$B$12,2,FALSE),FALSE))))","v":""},{"$f":"IF($A741=\"\",\"\",IF(VLOOKUP($G741,$H$11:$DN$1000,101,FALSE)=\"\",\"No\",IF(LEFT(VLOOKUP($G741,$H$11:$DN$1000,101,FALSE),3)=\"The\",EG741,VLOOKUP(VLOOKUP($G741,$H$11:$DN$1000,101,FALSE),DeclMatrix!$A$2:$F$5,VLOOKUP('Enrollment Form'!$B741,DeclMatrix!$A$8:$B$12,2,FALSE),FALSE))))","v":""},{"$f":"IF($A741=\"\",\"\",IF(VLOOKUP($G741,$H$11:$DN$1000,106,FALSE)=\"\",\"No\",IF(LEFT(VLOOKUP($G741,$H$11:$DN$1000,106,FALSE),3)=\"The\",EH741,VLOOKUP(VLOOKUP($G741,$H$11:$DN$1000,106,FALSE),DeclMatrix!$A$2:$F$5,VLOOKUP('Enrollment Form'!$B741,DeclMatrix!$A$8:$B$12,2,FALSE),FALSE))))","v":""},{"$f":"IF($A741=\"\",\"\",IF(VLOOKUP($G741,$H$11:$DN$1000,111,FALSE)=\"\",\"No\",IF(LEFT(VLOOKUP($G741,$H$11:$DN$1000,111,FALSE),3)=\"The\",EI741,VLOOKUP(VLOOKUP($G741,$H$11:$DN$1000,111,FALSE),DeclMatrix!$A$2:$F$5,VLOOKUP('Enrollment Form'!$B741,DeclMatrix!$A$8:$B$12,2,FALSE),FALSE))))","v":""},"",null,"","","","","","","","","","","",""]
["",{"$nulls":5},"","",{"$nulls":18},"","","","",{"$nulls":30},"","","","",{"$nulls":60},"",{"$f":"IF($A742=\"\",\"\",IF(VLOOKUP($G742,$H$11:$DN$1000,96,FALSE)=\"\",\"No\",IF(LEFT(VLOOKUP($G742,$H$11:$DN$1000,96,FALSE),3)=\"The\",EF742,VLOOKUP(VLOOKUP($G742,$H$11:$DN$1000,96,FALSE),DeclMatrix!$A$2:$F$5,VLOOKUP('Enrollment Form'!$B742,DeclMatrix!$A$8:$B$12,2,FALSE),FALSE))))","v":""},{"$f":"IF($A742=\"\",\"\",IF(VLOOKUP($G742,$H$11:$DN$1000,101,FALSE)=\"\",\"No\",IF(LEFT(VLOOKUP($G742,$H$11:$DN$1000,101,FALSE),3)=\"The\",EG742,VLOOKUP(VLOOKUP($G742,$H$11:$DN$1000,101,FALSE),DeclMatrix!$A$2:$F$5,VLOOKUP('Enrollment Form'!$B742,DeclMatrix!$A$8:$B$12,2,FALSE),FALSE))))","v":""},{"$f":"IF($A742=\"\",\"\",IF(VLOOKUP($G742,$H$11:$DN$1000,106,FALSE)=\"\",\"No\",IF(LEFT(VLOOKUP($G742,$H$11:$DN$1000,106,FALSE),3)=\"The\",EH742,VLOOKUP(VLOOKUP($G742,$H$11:$DN$1000,106,FALSE),DeclMatrix!$A$2:$F$5,VLOOKUP('Enrollment Form'!$B742,DeclMatrix!$A$8:$B$12,2,FALSE),FALSE))))","v":""},{"$f":"IF($A742=\"\",\"\",IF(VLOOKUP($G742,$H$11:$DN$1000,111,FALSE)=\"\",\"No\",IF(LEFT(VLOOKUP($G742,$H$11:$DN$1000,111,FALSE),3)=\"The\",EI742,VLOOKUP(VLOOKUP($G742,$H$11:$DN$1000,111,FALSE),DeclMatrix!$A$2:$F$5,VLOOKUP('Enrollment Form'!$B742,DeclMatrix!$A$8:$B$12,2,FALSE),FALSE))))","v":""},"",null,"","","","","","","","","","","",""]
["",{"$nulls":5},"","",{"$nulls":18},"","","","",{"$nulls":30},"","","","",{"$nulls":60},"",{"$f":"IF($A743=\"\",\"\",IF(VLOOKUP($G743,$H$11:$DN$1000,96,FALSE)=\"\",\"No\",IF(LEFT(VLOOKUP($G743,$H$11:$DN$1000,96,FALSE),3)=\"The\",EF743,VLOOKUP(VLOOKUP($G743,$H$11:$DN$1000,96,FALSE),DeclMatrix!$A$2:$F$5,VLOOKUP('Enrollment Form'!$B743,DeclMatrix!$A$8:$B$12,2,FALSE),FALSE))))","v":""},{"$f":"IF($A743=\"\",\"\",IF(VLOOKUP($G743,$H$11:$DN$1000,101,FALSE)=\"\",\"No\",IF(LEFT(VLOOKUP($G743,$H$11:$DN$1000,101,FALSE),3)=\"The\",EG743,VLOOKUP(VLOOKUP($G743,$H$11:$DN$1000,101,FALSE),DeclMatrix!$A$2:$F$5,VLOOKUP('Enrollment Form'!$B743,DeclMatrix!$A$8:$B$12,2,FALSE),FALSE))))","v":""},{"$f":"IF($A743=\"\",\"\",IF(VLOOKUP($G743,$H$11:$DN$1000,106,FALSE)=\"\",\"No\",IF(LEFT(VLOOKUP($G743,$H$11:$DN$1000,106,FALSE),3)=\"The\",EH743,VLOOKUP(VLOOKUP($G743,$H$11:$DN$1000,106,FALSE),DeclMatrix!$A$2:$F$5,VLOOKUP('Enrollment Form'!$B743,DeclMatrix!$A$8:$B$12,2,FALSE),FALSE))))","v":""},{"$f":"IF($A743=\"\",\"\",IF(VLOOKUP($G743,$H$11:$DN$1000,111,FALSE)=\"\",\"No\",IF(LEFT(VLOOKUP($G743,$H$11:$DN$1000,111,FALSE),3)=\"The\",EI743,VLOOKUP(VLOOKUP($G743,$H$11:$DN$1000,111,FALSE),DeclMatrix!$A$2:$F$5,VLOOKUP('Enrollment Form'!$B743,DeclMatrix!$A$8:$B$12,2,FALSE),FALSE))))","v":""},"",null,"","","","","","","","","","","",""]
["",{"$nulls":5},"","",{"$nulls":18},"","","","",{"$nulls":30},"","","","",{"$nulls":60},"",{"$f":"IF($A744=\"\",\"\",IF(VLOOKUP($G744,$H$11:$DN$1000,96,FALSE)=\"\",\"No\",IF(LEFT(VLOOKUP($G744,$H$11:$DN$1000,96,FALSE),3)=\"The\",EF744,VLOOKUP(VLOOKUP($G744,$H$11:$DN$1000,96,FALSE),DeclMatrix!$A$2:$F$5,VLOOKUP('Enrollment Form'!$B744,DeclMatrix!$A$8:$B$12,2,FALSE),FALSE))))","v":""},{"$f":"IF($A744=\"\",\"\",IF(VLOOKUP($G744,$H$11:$DN$1000,101,FALSE)=\"\",\"No\",IF(LEFT(VLOOKUP($G744,$H$11:$DN$1000,101,FALSE),3)=\"The\",EG744,VLOOKUP(VLOOKUP($G744,$H$11:$DN$1000,101,FALSE),DeclMatrix!$A$2:$F$5,VLOOKUP('Enrollment Form'!$B744,DeclMatrix!$A$8:$B$12,2,FALSE),FALSE))))","v":""},{"$f":"IF($A744=\"\",\"\",IF(VLOOKUP($G744,$H$11:$DN$1000,106,FALSE)=\"\",\"No\",IF(LEFT(VLOOKUP($G744,$H$11:$DN$1000,106,FALSE),3)=\"The\",EH744,VLOOKUP(VLOOKUP($G744,$H$11:$DN$1000,106,FALSE),DeclMatrix!$A$2:$F$5,VLOOKUP('Enrollment Form'!$B744,DeclMatrix!$A$8:$B$12,2,FALSE),FALSE))))","v":""},{"$f":"IF($A744=\"\",\"\",IF(VLOOKUP($G744,$H$11:$DN$1000,111,FALSE)=\"\",\"No\",IF(LEFT(VLOOKUP($G744,$H$11:$DN$1000,111,FALSE),3)=\"The\",EI744,VLOOKUP(VLOOKUP($G744,$H$11:$DN$1000,111,FALSE),DeclMatrix!$A$2:$F$5,VLOOKUP('Enrollment Form'!$B744,DeclMatrix!$A$8:$B$12,2,FALSE),FALSE))))","v":""},"",null,"","","","","","","","","","","",""]
["",{"$nulls":5},"","",{"$nulls":18},"","","","",{"$nulls":30},"","","","",{"$nulls":60},"",{"$f":"IF($A745=\"\",\"\",IF(VLOOKUP($G745,$H$11:$DN$1000,96,FALSE)=\"\",\"No\",IF(LEFT(VLOOKUP($G745,$H$11:$DN$1000,96,FALSE),3)=\"The\",EF745,VLOOKUP(VLOOKUP($G745,$H$11:$DN$1000,96,FALSE),DeclMatrix!$A$2:$F$5,VLOOKUP('Enrollment Form'!$B745,DeclMatrix!$A$8:$B$12,2,FALSE),FALSE))))","v":""},{"$f":"IF($A745=\"\",\"\",IF(VLOOKUP($G745,$H$11:$DN$1000,101,FALSE)=\"\",\"No\",IF(LEFT(VLOOKUP($G745,$H$11:$DN$1000,101,FALSE),3)=\"The\",EG745,VLOOKUP(VLOOKUP($G745,$H$11:$DN$1000,101,FALSE),DeclMatrix!$A$2:$F$5,VLOOKUP('Enrollment Form'!$B745,DeclMatrix!$A$8:$B$12,2,FALSE),FALSE))))","v":""},{"$f":"IF($A745=\"\",\"\",IF(VLOOKUP($G745,$H$11:$DN$1000,106,FALSE)=\"\",\"No\",IF(LEFT(VLOOKUP($G745,$H$11:$DN$1000,106,FALSE),3)=\"The\",EH745,VLOOKUP(VLOOKUP($G745,$H$11:$DN$1000,106,FALSE),DeclMatrix!$A$2:$F$5,VLOOKUP('Enrollment Form'!$B745,DeclMatrix!$A$8:$B$12,2,FALSE),FALSE))))","v":""},{"$f":"IF($A745=\"\",\"\",IF(VLOOKUP($G745,$H$11:$DN$1000,111,FALSE)=\"\",\"No\",IF(LEFT(VLOOKUP($G745,$H$11:$DN$1000,111,FALSE),3)=\"The\",EI745,VLOOKUP(VLOOKUP($G745,$H$11:$DN$1000,111,FALSE),DeclMatrix!$A$2:$F$5,VLOOKUP('Enrollment Form'!$B745,DeclMatrix!$A$8:$B$12,2,FALSE),FALSE))))","v":""},"",null,"","","","","","","","","","","",""]
["",{"$nulls":5},"","",{"$nulls":18},"","","","",{"$nulls":30},"","","","",{"$nulls":60},"",{"$f":"IF($A746=\"\",\"\",IF(VLOOKUP($G746,$H$11:$DN$1000,96,FALSE)=\"\",\"No\",IF(LEFT(VLOOKUP($G746,$H$11:$DN$1000,96,FALSE),3)=\"The\",EF746,VLOOKUP(VLOOKUP($G746,$H$11:$DN$1000,96,FALSE),DeclMatrix!$A$2:$F$5,VLOOKUP('Enrollment Form'!$B746,DeclMatrix!$A$8:$B$12,2,FALSE),FALSE))))","v":""},{"$f":"IF($A746=\"\",\"\",IF(VLOOKUP($G746,$H$11:$DN$1000,101,FALSE)=\"\",\"No\",IF(LEFT(VLOOKUP($G746,$H$11:$DN$1000,101,FALSE),3)=\"The\",EG746,VLOOKUP(VLOOKUP($G746,$H$11:$DN$1000,101,FALSE),DeclMatrix!$A$2:$F$5,VLOOKUP('Enrollment Form'!$B746,DeclMatrix!$A$8:$B$12,2,FALSE),FALSE))))","v":""},{"$f":"IF($A746=\"\",\"\",IF(VLOOKUP($G746,$H$11:$DN$1000,106,FALSE)=\"\",\"No\",IF(LEFT(VLOOKUP($G746,$H$11:$DN$1000,106,FALSE),3)=\"The\",EH746,VLOOKUP(VLOOKUP($G746,$H$11:$DN$1000,106,FALSE),DeclMatrix!$A$2:$F$5,VLOOKUP('Enrollment Form'!$B746,DeclMatrix!$A$8:$B$12,2,FALSE),FALSE))))","v":""},{"$f":"IF($A746=\"\",\"\",IF(VLOOKUP($G746,$H$11:$DN$1000,111,FALSE)=\"\",\"No\",IF(LEFT(VLOOKUP($G746,$H$11:$DN$1000,111,FALSE),3)=\"The\",EI746,VLOOKUP(VLOOKUP($G746,$H$11:$DN$1000,111,FALSE),DeclMatrix!$A$2:$F$5,VLOOKUP('Enrollment Form'!$B746,DeclMatrix!$A$8:$B$12,2,FALSE),FALSE))))","v":""},"",null,"","","","","","","","","","","",""]
["",{"$nulls":5},"","",{"$nulls":18},"","","","",{"$nulls":30},"","","","",{"$nulls":60},"",{"$f":"IF($A747=\"\",\"\",IF(VLOOKUP($G747,$H$11:$DN$1000,96,FALSE)=\"\",\"No\",IF(LEFT(VLOOKUP($G747,$H$11:$DN$1000,96,FALSE),3)=\"The\",EF747,VLOOKUP(VLOOKUP($G747,$H$11:$DN$1000,96,FALSE),DeclMatrix!$A$2:$F$5,VLOOKUP('Enrollment Form'!$B747,DeclMatrix!$A$8:$B$12,2,FALSE),FALSE))))","v":""},{"$f":"IF($A747=\"\",\"\",IF(VLOOKUP($G747,$H$11:$DN$1000,101,FALSE)=\"\",\"No\",IF(LEFT(VLOOKUP($G747,$H$11:$DN$1000,101,FALSE),3)=\"The\",EG747,VLOOKUP(VLOOKUP($G747,$H$11:$DN$1000,101,FALSE),DeclMatrix!$A$2:$F$5,VLOOKUP('Enrollment Form'!$B747,DeclMatrix!$A$8:$B$12,2,FALSE),FALSE))))","v":""},{"$f":"IF($A747=\"\",\"\",IF(VLOOKUP($G747,$H$11:$DN$1000,106,FALSE)=\"\",\"No\",IF(LEFT(VLOOKUP($G747,$H$11:$DN$1000,106,FALSE),3)=\"The\",EH747,VLOOKUP(VLOOKUP($G747,$H$11:$DN$1000,106,FALSE),DeclMatrix!$A$2:$F$5,VLOOKUP('Enrollment Form'!$B747,DeclMatrix!$A$8:$B$12,2,FALSE),FALSE))))","v":""},{"$f":"IF($A747=\"\",\"\",IF(VLOOKUP($G747,$H$11:$DN$1000,111,FALSE)=\"\",\"No\",IF(LEFT(VLOOKUP($G747,$H$11:$DN$1000,111,FALSE),3)=\"The\",EI747,VLOOKUP(VLOOKUP($G747,$H$11:$DN$1000,111,FALSE),DeclMatrix!$A$2:$F$5,VLOOKUP('Enrollment Form'!$B747,DeclMatrix!$A$8:$B$12,2,FALSE),FALSE))))","v":""},"",null,"","","","","","","","","","","",""]
["",{"$nulls":5},"","",{"$nulls":18},"","","","",{"$nulls":30},"","","","",{"$nulls":60},"",{"$f":"IF($A748=\"\",\"\",IF(VLOOKUP($G748,$H$11:$DN$1000,96,FALSE)=\"\",\"No\",IF(LEFT(VLOOKUP($G748,$H$11:$DN$1000,96,FALSE),3)=\"The\",EF748,VLOOKUP(VLOOKUP($G748,$H$11:$DN$1000,96,FALSE),DeclMatrix!$A$2:$F$5,VLOOKUP('Enrollment Form'!$B748,DeclMatrix!$A$8:$B$12,2,FALSE),FALSE))))","v":""},{"$f":"IF($A748=\"\",\"\",IF(VLOOKUP($G748,$H$11:$DN$1000,101,FALSE)=\"\",\"No\",IF(LEFT(VLOOKUP($G748,$H$11:$DN$1000,101,FALSE),3)=\"The\",EG748,VLOOKUP(VLOOKUP($G748,$H$11:$DN$1000,101,FALSE),DeclMatrix!$A$2:$F$5,VLOOKUP('Enrollment Form'!$B748,DeclMatrix!$A$8:$B$12,2,FALSE),FALSE))))","v":""},{"$f":"IF($A748=\"\",\"\",IF(VLOOKUP($G748,$H$11:$DN$1000,106,FALSE)=\"\",\"No\",IF(LEFT(VLOOKUP($G748,$H$11:$DN$1000,106,FALSE),3)=\"The\",EH748,VLOOKUP(VLOOKUP($G748,$H$11:$DN$1000,106,FALSE),DeclMatrix!$A$2:$F$5,VLOOKUP('Enrollment Form'!$B748,DeclMatrix!$A$8:$B$12,2,FALSE),FALSE))))","v":""},{"$f":"IF($A748=\"\",\"\",IF(VLOOKUP($G748,$H$11:$DN$1000,111,FALSE)=\"\",\"No\",IF(LEFT(VLOOKUP($G748,$H$11:$DN$1000,111,FALSE),3)=\"The\",EI748,VLOOKUP(VLOOKUP($G748,$H$11:$DN$1000,111,FALSE),DeclMatrix!$A$2:$F$5,VLOOKUP('Enrollment Form'!$B748,DeclMatrix!$A$8:$B$12,2,FALSE),FALSE))))","v":""},"",null,"","","","","","","","","","","",""]
["",{"$nulls":5},"","",{"$nulls":18},"","","","",{"$nulls":30},"","","","",{"$nulls":60},"",{"$f":"IF($A749=\"\",\"\",IF(VLOOKUP($G749,$H$11:$DN$1000,96,FALSE)=\"\",\"No\",IF(LEFT(VLOOKUP($G749,$H$11:$DN$1000,96,FALSE),3)=\"The\",EF749,VLOOKUP(VLOOKUP($G749,$H$11:$DN$1000,96,FALSE),DeclMatrix!$A$2:$F$5,VLOOKUP('Enrollment Form'!$B749,DeclMatrix!$A$8:$B$12,2,FALSE),FALSE))))","v":""},{"$f":"IF($A749=\"\",\"\",IF(VLOOKUP($G749,$H$11:$DN$1000,101,FALSE)=\"\",\"No\",IF(LEFT(VLOOKUP($G749,$H$11:$DN$1000,101,FALSE),3)=\"The\",EG749,VLOOKUP(VLOOKUP($G749,$H$11:$DN$1000,101,FALSE),DeclMatrix!$A$2:$F$5,VLOOKUP('Enrollment Form'!$B749,DeclMatrix!$A$8:$B$12,2,FALSE),FALSE))))","v":""},{"$f":"IF($A749=\"\",\"\",IF(VLOOKUP($G749,$H$11:$DN$1000,106,FALSE)=\"\",\"No\",IF(LEFT(VLOOKUP($G749,$H$11:$DN$1000,106,FALSE),3)=\"The\",EH749,VLOOKUP(VLOOKUP($G749,$H$11:$DN$1000,106,FALSE),DeclMatrix!$A$2:$F$5,VLOOKUP('Enrollment Form'!$B749,DeclMatrix!$A$8:$B$12,2,FALSE),FALSE))))","v":""},{"$f":"IF($A749=\"\",\"\",IF(VLOOKUP($G749,$H$11:$DN$1000,111,FALSE)=\"\",\"No\",IF(LEFT(VLOOKUP($G749,$H$11:$DN$1000,111,FALSE),3)=\"The\",EI749,VLOOKUP(VLOOKUP($G749,$H$11:$DN$1000,111,FALSE),DeclMatrix!$A$2:$F$5,VLOOKUP('Enrollment Form'!$B749,DeclMatrix!$A$8:$B$12,2,FALSE),FALSE))))","v":""},"",null,"","","","","","","","","","","",""]
["",{"$nulls":5},"","",{"$nulls":18},"","","","",{"$nulls":30},"","","","",{"$nulls":60},"",{"$f":"IF($A750=\"\",\"\",IF(VLOOKUP($G750,$H$11:$DN$1000,96,FALSE)=\"\",\"No\",IF(LEFT(VLOOKUP($G750,$H$11:$DN$1000,96,FALSE),3)=\"The\",EF750,VLOOKUP(VLOOKUP($G750,$H$11:$DN$1000,96,FALSE),DeclMatrix!$A$2:$F$5,VLOOKUP('Enrollment Form'!$B750,DeclMatrix!$A$8:$B$12,2,FALSE),FALSE))))","v":""},{"$f":"IF($A750=\"\",\"\",IF(VLOOKUP($G750,$H$11:$DN$1000,101,FALSE)=\"\",\"No\",IF(LEFT(VLOOKUP($G750,$H$11:$DN$1000,101,FALSE),3)=\"The\",EG750,VLOOKUP(VLOOKUP($G750,$H$11:$DN$1000,101,FALSE),DeclMatrix!$A$2:$F$5,VLOOKUP('Enrollment Form'!$B750,DeclMatrix!$A$8:$B$12,2,FALSE),FALSE))))","v":""},{"$f":"IF($A750=\"\",\"\",IF(VLOOKUP($G750,$H$11:$DN$1000,106,FALSE)=\"\",\"No\",IF(LEFT(VLOOKUP($G750,$H$11:$DN$1000,106,FALSE),3)=\"The\",EH750,VLOOKUP(VLOOKUP($G750,$H$11:$DN$1000,106,FALSE),DeclMatrix!$A$2:$F$5,VLOOKUP('Enrollment Form'!$B750,DeclMatrix!$A$8:$B$12,2,FALSE),FALSE))))","v":""},{"$f":"IF($A750=\"\",\"\",IF(VLOOKUP($G750,$H$11:$DN$1000,111,FALSE)=\"\",\"No\",IF(LEFT(VLOOKUP($G750,$H$11:$DN$1000,111,FALSE),3)=\"The\",EI750,VLOOKUP(VLOOKUP($G750,$H$11:$DN$1000,111,FALSE),DeclMatrix!$A$2:$F$5,VLOOKUP('Enrollment Form'!$B750,DeclMatrix!$A$8:$B$12,2,FALSE),FALSE))))","v":""},"",null,"","","","","","","","","","","",""]
["",{"$nulls":5},"","",{"$nulls":18},"","","","",{"$nulls":30},"","","","",{"$nulls":60},"",{"$f":"IF($A751=\"\",\"\",IF(VLOOKUP($G751,$H$11:$DN$1000,96,FALSE)=\"\",\"No\",IF(LEFT(VLOOKUP($G751,$H$11:$DN$1000,96,FALSE),3)=\"The\",EF751,VLOOKUP(VLOOKUP($G751,$H$11:$DN$1000,96,FALSE),DeclMatrix!$A$2:$F$5,VLOOKUP('Enrollment Form'!$B751,DeclMatrix!$A$8:$B$12,2,FALSE),FALSE))))","v":""},{"$f":"IF($A751=\"\",\"\",IF(VLOOKUP($G751,$H$11:$DN$1000,101,FALSE)=\"\",\"No\",IF(LEFT(VLOOKUP($G751,$H$11:$DN$1000,101,FALSE),3)=\"The\",EG751,VLOOKUP(VLOOKUP($G751,$H$11:$DN$1000,101,FALSE),DeclMatrix!$A$2:$F$5,VLOOKUP('Enrollment Form'!$B751,DeclMatrix!$A$8:$B$12,2,FALSE),FALSE))))","v":""},{"$f":"IF($A751=\"\",\"\",IF(VLOOKUP($G751,$H$11:$DN$1000,106,FALSE)=\"\",\"No\",IF(LEFT(VLOOKUP($G751,$H$11:$DN$1000,106,FALSE),3)=\"The\",EH751,VLOOKUP(VLOOKUP($G751,$H$11:$DN$1000,106,FALSE),DeclMatrix!$A$2:$F$5,VLOOKUP('Enrollment Form'!$B751,DeclMatrix!$A$8:$B$12,2,FALSE),FALSE))))","v":""},{"$f":"IF($A751=\"\",\"\",IF(VLOOKUP($G751,$H$11:$DN$1000,111,FALSE)=\"\",\"No\",IF(LEFT(VLOOKUP($G751,$H$11:$DN$1000,111,FALSE),3)=\"The\",EI751,VLOOKUP(VLOOKUP($G751,$H$11:$DN$1000,111,FALSE),DeclMatrix!$A$2:$F$5,VLOOKUP('Enrollment Form'!$B751,DeclMatrix!$A$8:$B$12,2,FALSE),FALSE))))","v":""},"",null,"","","","","","","","","","","",""]
["",{"$nulls":5},"","",{"$nulls":18},"","","","",{"$nulls":30},"","","","",{"$nulls":60},"",{"$f":"IF($A752=\"\",\"\",IF(VLOOKUP($G752,$H$11:$DN$1000,96,FALSE)=\"\",\"No\",IF(LEFT(VLOOKUP($G752,$H$11:$DN$1000,96,FALSE),3)=\"The\",EF752,VLOOKUP(VLOOKUP($G752,$H$11:$DN$1000,96,FALSE),DeclMatrix!$A$2:$F$5,VLOOKUP('Enrollment Form'!$B752,DeclMatrix!$A$8:$B$12,2,FALSE),FALSE))))","v":""},{"$f":"IF($A752=\"\",\"\",IF(VLOOKUP($G752,$H$11:$DN$1000,101,FALSE)=\"\",\"No\",IF(LEFT(VLOOKUP($G752,$H$11:$DN$1000,101,FALSE),3)=\"The\",EG752,VLOOKUP(VLOOKUP($G752,$H$11:$DN$1000,101,FALSE),DeclMatrix!$A$2:$F$5,VLOOKUP('Enrollment Form'!$B752,DeclMatrix!$A$8:$B$12,2,FALSE),FALSE))))","v":""},{"$f":"IF($A752=\"\",\"\",IF(VLOOKUP($G752,$H$11:$DN$1000,106,FALSE)=\"\",\"No\",IF(LEFT(VLOOKUP($G752,$H$11:$DN$1000,106,FALSE),3)=\"The\",EH752,VLOOKUP(VLOOKUP($G752,$H$11:$DN$1000,106,FALSE),DeclMatrix!$A$2:$F$5,VLOOKUP('Enrollment Form'!$B752,DeclMatrix!$A$8:$B$12,2,FALSE),FALSE))))","v":""},{"$f":"IF($A752=\"\",\"\",IF(VLOOKUP($G752,$H$11:$DN$1000,111,FALSE)=\"\",\"No\",IF(LEFT(VLOOKUP($G752,$H$11:$DN$1000,111,FALSE),3)=\"The\",EI752,VLOOKUP(VLOOKUP($G752,$H$11:$DN$1000,111,FALSE),DeclMatrix!$A$2:$F$5,VLOOKUP('Enrollment Form'!$B752,DeclMatrix!$A$8:$B$12,2,FALSE),FALSE))))","v":""},"",null,"","","","","","","","","","","",""]
["",{"$nulls":5},"","",{"$nulls":18},"","","","",{"$nulls":30},"","","","",{"$nulls":60},"",{"$f":"IF($A753=\"\",\"\",IF(VLOOKUP($G753,$H$11:$DN$1000,96,FALSE)=\"\",\"No\",IF(LEFT(VLOOKUP($G753,$H$11:$DN$1000,96,FALSE),3)=\"The\",EF753,VLOOKUP(VLOOKUP($G753,$H$11:$DN$1000,96,FALSE),DeclMatrix!$A$2:$F$5,VLOOKUP('Enrollment Form'!$B753,DeclMatrix!$A$8:$B$12,2,FALSE),FALSE))))","v":""},{"$f":"IF($A753=\"\",\"\",IF(VLOOKUP($G753,$H$11:$DN$1000,101,FALSE)=\"\",\"No\",IF(LEFT(VLOOKUP($G753,$H$11:$DN$1000,101,FALSE),3)=\"The\",EG753,VLOOKUP(VLOOKUP($G753,$H$11:$DN$1000,101,FALSE),DeclMatrix!$A$2:$F$5,VLOOKUP('Enrollment Form'!$B753,DeclMatrix!$A$8:$B$12,2,FALSE),FALSE))))","v":""},{"$f":"IF($A753=\"\",\"\",IF(VLOOKUP($G753,$H$11:$DN$1000,106,FALSE)=\"\",\"No\",IF(LEFT(VLOOKUP($G753,$H$11:$DN$1000,106,FALSE),3)=\"The\",EH753,VLOOKUP(VLOOKUP($G753,$H$11:$DN$1000,106,FALSE),DeclMatrix!$A$2:$F$5,VLOOKUP('Enrollment Form'!$B753,DeclMatrix!$A$8:$B$12,2,FALSE),FALSE))))","v":""},{"$f":"IF($A753=\"\",\"\",IF(VLOOKUP($G753,$H$11:$DN$1000,111,FALSE)=\"\",\"No\",IF(LEFT(VLOOKUP($G753,$H$11:$DN$1000,111,FALSE),3)=\"The\",EI753,VLOOKUP(VLOOKUP($G753,$H$11:$DN$1000,111,FALSE),DeclMatrix!$A$2:$F$5,VLOOKUP('Enrollment Form'!$B753,DeclMatrix!$A$8:$B$12,2,FALSE),FALSE))))","v":""},"",null,"","","","","","","","","","","",""]
["",{"$nulls":5},"","",{"$nulls":18},"","","","",{"$nulls":30},"","","","",{"$nulls":60},"",{"$f":"IF($A754=\"\",\"\",IF(VLOOKUP($G754,$H$11:$DN$1000,96,FALSE)=\"\",\"No\",IF(LEFT(VLOOKUP($G754,$H$11:$DN$1000,96,FALSE),3)=\"The\",EF754,VLOOKUP(VLOOKUP($G754,$H$11:$DN$1000,96,FALSE),DeclMatrix!$A$2:$F$5,VLOOKUP('Enrollment Form'!$B754,DeclMatrix!$A$8:$B$12,2,FALSE),FALSE))))","v":""},{"$f":"IF($A754=\"\",\"\",IF(VLOOKUP($G754,$H$11:$DN$1000,101,FALSE)=\"\",\"No\",IF(LEFT(VLOOKUP($G754,$H$11:$DN$1000,101,FALSE),3)=\"The\",EG754,VLOOKUP(VLOOKUP($G754,$H$11:$DN$1000,101,FALSE),DeclMatrix!$A$2:$F$5,VLOOKUP('Enrollment Form'!$B754,DeclMatrix!$A$8:$B$12,2,FALSE),FALSE))))","v":""},{"$f":"IF($A754=\"\",\"\",IF(VLOOKUP($G754,$H$11:$DN$1000,106,FALSE)=\"\",\"No\",IF(LEFT(VLOOKUP($G754,$H$11:$DN$1000,106,FALSE),3)=\"The\",EH754,VLOOKUP(VLOOKUP($G754,$H$11:$DN$1000,106,FALSE),DeclMatrix!$A$2:$F$5,VLOOKUP('Enrollment Form'!$B754,DeclMatrix!$A$8:$B$12,2,FALSE),FALSE))))","v":""},{"$f":"IF($A754=\"\",\"\",IF(VLOOKUP($G754,$H$11:$DN$1000,111,FALSE)=\"\",\"No\",IF(LEFT(VLOOKUP($G754,$H$11:$DN$1000,111,FALSE),3)=\"The\",EI754,VLOOKUP(VLOOKUP($G754,$H$11:$DN$1000,111,FALSE),DeclMatrix!$A$2:$F$5,VLOOKUP('Enrollment Form'!$B754,DeclMatrix!$A$8:$B$12,2,FALSE),FALSE))))","v":""},"",null,"","","","","","","","","","","",""]
["",{"$nulls":5},"","",{"$nulls":18},"","","","",{"$nulls":30},"","","","",{"$nulls":60},"",{"$f":"IF($A755=\"\",\"\",IF(VLOOKUP($G755,$H$11:$DN$1000,96,FALSE)=\"\",\"No\",IF(LEFT(VLOOKUP($G755,$H$11:$DN$1000,96,FALSE),3)=\"The\",EF755,VLOOKUP(VLOOKUP($G755,$H$11:$DN$1000,96,FALSE),DeclMatrix!$A$2:$F$5,VLOOKUP('Enrollment Form'!$B755,DeclMatrix!$A$8:$B$12,2,FALSE),FALSE))))","v":""},{"$f":"IF($A755=\"\",\"\",IF(VLOOKUP($G755,$H$11:$DN$1000,101,FALSE)=\"\",\"No\",IF(LEFT(VLOOKUP($G755,$H$11:$DN$1000,101,FALSE),3)=\"The\",EG755,VLOOKUP(VLOOKUP($G755,$H$11:$DN$1000,101,FALSE),DeclMatrix!$A$2:$F$5,VLOOKUP('Enrollment Form'!$B755,DeclMatrix!$A$8:$B$12,2,FALSE),FALSE))))","v":""},{"$f":"IF($A755=\"\",\"\",IF(VLOOKUP($G755,$H$11:$DN$1000,106,FALSE)=\"\",\"No\",IF(LEFT(VLOOKUP($G755,$H$11:$DN$1000,106,FALSE),3)=\"The\",EH755,VLOOKUP(VLOOKUP($G755,$H$11:$DN$1000,106,FALSE),DeclMatrix!$A$2:$F$5,VLOOKUP('Enrollment Form'!$B755,DeclMatrix!$A$8:$B$12,2,FALSE),FALSE))))","v":""},{"$f":"IF($A755=\"\",\"\",IF(VLOOKUP($G755,$H$11:$DN$1000,111,FALSE)=\"\",\"No\",IF(LEFT(VLOOKUP($G755,$H$11:$DN$1000,111,FALSE),3)=\"The\",EI755,VLOOKUP(VLOOKUP($G755,$H$11:$DN$1000,111,FALSE),DeclMatrix!$A$2:$F$5,VLOOKUP('Enrollment Form'!$B755,DeclMatrix!$A$8:$B$12,2,FALSE),FALSE))))","v":""},"",null,"","","","","","","","","","","",""]
["",{"$nulls":5},"","",{"$nulls":18},"","","","",{"$nulls":30},"","","","",{"$nulls":60},"",{"$f":"IF($A756=\"\",\"\",IF(VLOOKUP($G756,$H$11:$DN$1000,96,FALSE)=\"\",\"No\",IF(LEFT(VLOOKUP($G756,$H$11:$DN$1000,96,FALSE),3)=\"The\",EF756,VLOOKUP(VLOOKUP($G756,$H$11:$DN$1000,96,FALSE),DeclMatrix!$A$2:$F$5,VLOOKUP('Enrollment Form'!$B756,DeclMatrix!$A$8:$B$12,2,FALSE),FALSE))))","v":""},{"$f":"IF($A756=\"\",\"\",IF(VLOOKUP($G756,$H$11:$DN$1000,101,FALSE)=\"\",\"No\",IF(LEFT(VLOOKUP($G756,$H$11:$DN$1000,101,FALSE),3)=\"The\",EG756,VLOOKUP(VLOOKUP($G756,$H$11:$DN$1000,101,FALSE),DeclMatrix!$A$2:$F$5,VLOOKUP('Enrollment Form'!$B756,DeclMatrix!$A$8:$B$12,2,FALSE),FALSE))))","v":""},{"$f":"IF($A756=\"\",\"\",IF(VLOOKUP($G756,$H$11:$DN$1000,106,FALSE)=\"\",\"No\",IF(LEFT(VLOOKUP($G756,$H$11:$DN$1000,106,FALSE),3)=\"The\",EH756,VLOOKUP(VLOOKUP($G756,$H$11:$DN$1000,106,FALSE),DeclMatrix!$A$2:$F$5,VLOOKUP('Enrollment Form'!$B756,DeclMatrix!$A$8:$B$12,2,FALSE),FALSE))))","v":""},{"$f":"IF($A756=\"\",\"\",IF(VLOOKUP($G756,$H$11:$DN$1000,111,FALSE)=\"\",\"No\",IF(LEFT(VLOOKUP($G756,$H$11:$DN$1000,111,FALSE),3)=\"The\",EI756,VLOOKUP(VLOOKUP($G756,$H$11:$DN$1000,111,FALSE),DeclMatrix!$A$2:$F$5,VLOOKUP('Enrollment Form'!$B756,DeclMatrix!$A$8:$B$12,2,FALSE),FALSE))))","v":""},"",null,"","","","","","","","","","","",""]
["",{"$nulls":5},"","",{"$nulls":18},"","","","",{"$nulls":30},"","","","",{"$nulls":60},"",{"$f":"IF($A757=\"\",\"\",IF(VLOOKUP($G757,$H$11:$DN$1000,96,FALSE)=\"\",\"No\",IF(LEFT(VLOOKUP($G757,$H$11:$DN$1000,96,FALSE),3)=\"The\",EF757,VLOOKUP(VLOOKUP($G757,$H$11:$DN$1000,96,FALSE),DeclMatrix!$A$2:$F$5,VLOOKUP('Enrollment Form'!$B757,DeclMatrix!$A$8:$B$12,2,FALSE),FALSE))))","v":""},{"$f":"IF($A757=\"\",\"\",IF(VLOOKUP($G757,$H$11:$DN$1000,101,FALSE)=\"\",\"No\",IF(LEFT(VLOOKUP($G757,$H$11:$DN$1000,101,FALSE),3)=\"The\",EG757,VLOOKUP(VLOOKUP($G757,$H$11:$DN$1000,101,FALSE),DeclMatrix!$A$2:$F$5,VLOOKUP('Enrollment Form'!$B757,DeclMatrix!$A$8:$B$12,2,FALSE),FALSE))))","v":""},{"$f":"IF($A757=\"\",\"\",IF(VLOOKUP($G757,$H$11:$DN$1000,106,FALSE)=\"\",\"No\",IF(LEFT(VLOOKUP($G757,$H$11:$DN$1000,106,FALSE),3)=\"The\",EH757,VLOOKUP(VLOOKUP($G757,$H$11:$DN$1000,106,FALSE),DeclMatrix!$A$2:$F$5,VLOOKUP('Enrollment Form'!$B757,DeclMatrix!$A$8:$B$12,2,FALSE),FALSE))))","v":""},{"$f":"IF($A757=\"\",\"\",IF(VLOOKUP($G757,$H$11:$DN$1000,111,FALSE)=\"\",\"No\",IF(LEFT(VLOOKUP($G757,$H$11:$DN$1000,111,FALSE),3)=\"The\",EI757,VLOOKUP(VLOOKUP($G757,$H$11:$DN$1000,111,FALSE),DeclMatrix!$A$2:$F$5,VLOOKUP('Enrollment Form'!$B757,DeclMatrix!$A$8:$B$12,2,FALSE),FALSE))))","v":""},"",null,"","","","","","","","","","","",""]
["",{"$nulls":5},"","",{"$nulls":18},"","","","",{"$nulls":30},"","","","",{"$nulls":60},"",{"$f":"IF($A758=\"\",\"\",IF(VLOOKUP($G758,$H$11:$DN$1000,96,FALSE)=\"\",\"No\",IF(LEFT(VLOOKUP($G758,$H$11:$DN$1000,96,FALSE),3)=\"The\",EF758,VLOOKUP(VLOOKUP($G758,$H$11:$DN$1000,96,FALSE),DeclMatrix!$A$2:$F$5,VLOOKUP('Enrollment Form'!$B758,DeclMatrix!$A$8:$B$12,2,FALSE),FALSE))))","v":""},{"$f":"IF($A758=\"\",\"\",IF(VLOOKUP($G758,$H$11:$DN$1000,101,FALSE)=\"\",\"No\",IF(LEFT(VLOOKUP($G758,$H$11:$DN$1000,101,FALSE),3)=\"The\",EG758,VLOOKUP(VLOOKUP($G758,$H$11:$DN$1000,101,FALSE),DeclMatrix!$A$2:$F$5,VLOOKUP('Enrollment Form'!$B758,DeclMatrix!$A$8:$B$12,2,FALSE),FALSE))))","v":""},{"$f":"IF($A758=\"\",\"\",IF(VLOOKUP($G758,$H$11:$DN$1000,106,FALSE)=\"\",\"No\",IF(LEFT(VLOOKUP($G758,$H$11:$DN$1000,106,FALSE),3)=\"The\",EH758,VLOOKUP(VLOOKUP($G758,$H$11:$DN$1000,106,FALSE),DeclMatrix!$A$2:$F$5,VLOOKUP('Enrollment Form'!$B758,DeclMatrix!$A$8:$B$12,2,FALSE),FALSE))))","v":""},{"$f":"IF($A758=\"\",\"\",IF(VLOOKUP($G758,$H$11:$DN$1000,111,FALSE)=\"\",\"No\",IF(LEFT(VLOOKUP($G758,$H$11:$DN$1000,111,FALSE),3)=\"The\",EI758,VLOOKUP(VLOOKUP($G758,$H$11:$DN$1000,111,FALSE),DeclMatrix!$A$2:$F$5,VLOOKUP('Enrollment Form'!$B758,DeclMatrix!$A$8:$B$12,2,FALSE),FALSE))))","v":""},"",null,"","","","","","","","","","","",""]
["",{"$nulls":5},"","",{"$nulls":18},"","","","",{"$nulls":30},"","","","",{"$nulls":60},"",{"$f":"IF($A759=\"\",\"\",IF(VLOOKUP($G759,$H$11:$DN$1000,96,FALSE)=\"\",\"No\",IF(LEFT(VLOOKUP($G759,$H$11:$DN$1000,96,FALSE),3)=\"The\",EF759,VLOOKUP(VLOOKUP($G759,$H$11:$DN$1000,96,FALSE),DeclMatrix!$A$2:$F$5,VLOOKUP('Enrollment Form'!$B759,DeclMatrix!$A$8:$B$12,2,FALSE),FALSE))))","v":""},{"$f":"IF($A759=\"\",\"\",IF(VLOOKUP($G759,$H$11:$DN$1000,101,FALSE)=\"\",\"No\",IF(LEFT(VLOOKUP($G759,$H$11:$DN$1000,101,FALSE),3)=\"The\",EG759,VLOOKUP(VLOOKUP($G759,$H$11:$DN$1000,101,FALSE),DeclMatrix!$A$2:$F$5,VLOOKUP('Enrollment Form'!$B759,DeclMatrix!$A$8:$B$12,2,FALSE),FALSE))))","v":""},{"$f":"IF($A759=\"\",\"\",IF(VLOOKUP($G759,$H$11:$DN$1000,106,FALSE)=\"\",\"No\",IF(LEFT(VLOOKUP($G759,$H$11:$DN$1000,106,FALSE),3)=\"The\",EH759,VLOOKUP(VLOOKUP($G759,$H$11:$DN$1000,106,FALSE),DeclMatrix!$A$2:$F$5,VLOOKUP('Enrollment Form'!$B759,DeclMatrix!$A$8:$B$12,2,FALSE),FALSE))))","v":""},{"$f":"IF($A759=\"\",\"\",IF(VLOOKUP($G759,$H$11:$DN$1000,111,FALSE)=\"\",\"No\",IF(LEFT(VLOOKUP($G759,$H$11:$DN$1000,111,FALSE),3)=\"The\",EI759,VLOOKUP(VLOOKUP($G759,$H$11:$DN$1000,111,FALSE),DeclMatrix!$A$2:$F$5,VLOOKUP('Enrollment Form'!$B759,DeclMatrix!$A$8:$B$12,2,FALSE),FALSE))))","v":""},"",null,"","","","","","","","","","","",""]
["",{"$nulls":5},"","",{"$nulls":18},"","","","",{"$nulls":30},"","","","",{"$nulls":60},"",{"$f":"IF($A760=\"\",\"\",IF(VLOOKUP($G760,$H$11:$DN$1000,96,FALSE)=\"\",\"No\",IF(LEFT(VLOOKUP($G760,$H$11:$DN$1000,96,FALSE),3)=\"The\",EF760,VLOOKUP(VLOOKUP($G760,$H$11:$DN$1000,96,FALSE),DeclMatrix!$A$2:$F$5,VLOOKUP('Enrollment Form'!$B760,DeclMatrix!$A$8:$B$12,2,FALSE),FALSE))))","v":""},{"$f":"IF($A760=\"\",\"\",IF(VLOOKUP($G760,$H$11:$DN$1000,101,FALSE)=\"\",\"No\",IF(LEFT(VLOOKUP($G760,$H$11:$DN$1000,101,FALSE),3)=\"The\",EG760,VLOOKUP(VLOOKUP($G760,$H$11:$DN$1000,101,FALSE),DeclMatrix!$A$2:$F$5,VLOOKUP('Enrollment Form'!$B760,DeclMatrix!$A$8:$B$12,2,FALSE),FALSE))))","v":""},{"$f":"IF($A760=\"\",\"\",IF(VLOOKUP($G760,$H$11:$DN$1000,106,FALSE)=\"\",\"No\",IF(LEFT(VLOOKUP($G760,$H$11:$DN$1000,106,FALSE),3)=\"The\",EH760,VLOOKUP(VLOOKUP($G760,$H$11:$DN$1000,106,FALSE),DeclMatrix!$A$2:$F$5,VLOOKUP('Enrollment Form'!$B760,DeclMatrix!$A$8:$B$12,2,FALSE),FALSE))))","v":""},{"$f":"IF($A760=\"\",\"\",IF(VLOOKUP($G760,$H$11:$DN$1000,111,FALSE)=\"\",\"No\",IF(LEFT(VLOOKUP($G760,$H$11:$DN$1000,111,FALSE),3)=\"The\",EI760,VLOOKUP(VLOOKUP($G760,$H$11:$DN$1000,111,FALSE),DeclMatrix!$A$2:$F$5,VLOOKUP('Enrollment Form'!$B760,DeclMatrix!$A$8:$B$12,2,FALSE),FALSE))))","v":""},"",null,"","","","","","","","","","","",""]
["",{"$nulls":5},"","",{"$nulls":18},"","","","",{"$nulls":30},"","","","",{"$nulls":60},"",{"$f":"IF($A761=\"\",\"\",IF(VLOOKUP($G761,$H$11:$DN$1000,96,FALSE)=\"\",\"No\",IF(LEFT(VLOOKUP($G761,$H$11:$DN$1000,96,FALSE),3)=\"The\",EF761,VLOOKUP(VLOOKUP($G761,$H$11:$DN$1000,96,FALSE),DeclMatrix!$A$2:$F$5,VLOOKUP('Enrollment Form'!$B761,DeclMatrix!$A$8:$B$12,2,FALSE),FALSE))))","v":""},{"$f":"IF($A761=\"\",\"\",IF(VLOOKUP($G761,$H$11:$DN$1000,101,FALSE)=\"\",\"No\",IF(LEFT(VLOOKUP($G761,$H$11:$DN$1000,101,FALSE),3)=\"The\",EG761,VLOOKUP(VLOOKUP($G761,$H$11:$DN$1000,101,FALSE),DeclMatrix!$A$2:$F$5,VLOOKUP('Enrollment Form'!$B761,DeclMatrix!$A$8:$B$12,2,FALSE),FALSE))))","v":""},{"$f":"IF($A761=\"\",\"\",IF(VLOOKUP($G761,$H$11:$DN$1000,106,FALSE)=\"\",\"No\",IF(LEFT(VLOOKUP($G761,$H$11:$DN$1000,106,FALSE),3)=\"The\",EH761,VLOOKUP(VLOOKUP($G761,$H$11:$DN$1000,106,FALSE),DeclMatrix!$A$2:$F$5,VLOOKUP('Enrollment Form'!$B761,DeclMatrix!$A$8:$B$12,2,FALSE),FALSE))))","v":""},{"$f":"IF($A761=\"\",\"\",IF(VLOOKUP($G761,$H$11:$DN$1000,111,FALSE)=\"\",\"No\",IF(LEFT(VLOOKUP($G761,$H$11:$DN$1000,111,FALSE),3)=\"The\",EI761,VLOOKUP(VLOOKUP($G761,$H$11:$DN$1000,111,FALSE),DeclMatrix!$A$2:$F$5,VLOOKUP('Enrollment Form'!$B761,DeclMatrix!$A$8:$B$12,2,FALSE),FALSE))))","v":""},"",null,"","","","","","","","","","","",""]
["",{"$nulls":5},"","",{"$nulls":18},"","","","",{"$nulls":30},"","","","",{"$nulls":60},"",{"$f":"IF($A762=\"\",\"\",IF(VLOOKUP($G762,$H$11:$DN$1000,96,FALSE)=\"\",\"No\",IF(LEFT(VLOOKUP($G762,$H$11:$DN$1000,96,FALSE),3)=\"The\",EF762,VLOOKUP(VLOOKUP($G762,$H$11:$DN$1000,96,FALSE),DeclMatrix!$A$2:$F$5,VLOOKUP('Enrollment Form'!$B762,DeclMatrix!$A$8:$B$12,2,FALSE),FALSE))))","v":""},{"$f":"IF($A762=\"\",\"\",IF(VLOOKUP($G762,$H$11:$DN$1000,101,FALSE)=\"\",\"No\",IF(LEFT(VLOOKUP($G762,$H$11:$DN$1000,101,FALSE),3)=\"The\",EG762,VLOOKUP(VLOOKUP($G762,$H$11:$DN$1000,101,FALSE),DeclMatrix!$A$2:$F$5,VLOOKUP('Enrollment Form'!$B762,DeclMatrix!$A$8:$B$12,2,FALSE),FALSE))))","v":""},{"$f":"IF($A762=\"\",\"\",IF(VLOOKUP($G762,$H$11:$DN$1000,106,FALSE)=\"\",\"No\",IF(LEFT(VLOOKUP($G762,$H$11:$DN$1000,106,FALSE),3)=\"The\",EH762,VLOOKUP(VLOOKUP($G762,$H$11:$DN$1000,106,FALSE),DeclMatrix!$A$2:$F$5,VLOOKUP('Enrollment Form'!$B762,DeclMatrix!$A$8:$B$12,2,FALSE),FALSE))))","v":""},{"$f":"IF($A762=\"\",\"\",IF(VLOOKUP($G762,$H$11:$DN$1000,111,FALSE)=\"\",\"No\",IF(LEFT(VLOOKUP($G762,$H$11:$DN$1000,111,FALSE),3)=\"The\",EI762,VLOOKUP(VLOOKUP($G762,$H$11:$DN$1000,111,FALSE),DeclMatrix!$A$2:$F$5,VLOOKUP('Enrollment Form'!$B762,DeclMatrix!$A$8:$B$12,2,FALSE),FALSE))))","v":""},"",null,"","","","","","","","","","","",""]
["",{"$nulls":5},"","",{"$nulls":18},"","","","",{"$nulls":30},"","","","",{"$nulls":60},"",{"$f":"IF($A763=\"\",\"\",IF(VLOOKUP($G763,$H$11:$DN$1000,96,FALSE)=\"\",\"No\",IF(LEFT(VLOOKUP($G763,$H$11:$DN$1000,96,FALSE),3)=\"The\",EF763,VLOOKUP(VLOOKUP($G763,$H$11:$DN$1000,96,FALSE),DeclMatrix!$A$2:$F$5,VLOOKUP('Enrollment Form'!$B763,DeclMatrix!$A$8:$B$12,2,FALSE),FALSE))))","v":""},{"$f":"IF($A763=\"\",\"\",IF(VLOOKUP($G763,$H$11:$DN$1000,101,FALSE)=\"\",\"No\",IF(LEFT(VLOOKUP($G763,$H$11:$DN$1000,101,FALSE),3)=\"The\",EG763,VLOOKUP(VLOOKUP($G763,$H$11:$DN$1000,101,FALSE),DeclMatrix!$A$2:$F$5,VLOOKUP('Enrollment Form'!$B763,DeclMatrix!$A$8:$B$12,2,FALSE),FALSE))))","v":""},{"$f":"IF($A763=\"\",\"\",IF(VLOOKUP($G763,$H$11:$DN$1000,106,FALSE)=\"\",\"No\",IF(LEFT(VLOOKUP($G763,$H$11:$DN$1000,106,FALSE),3)=\"The\",EH763,VLOOKUP(VLOOKUP($G763,$H$11:$DN$1000,106,FALSE),DeclMatrix!$A$2:$F$5,VLOOKUP('Enrollment Form'!$B763,DeclMatrix!$A$8:$B$12,2,FALSE),FALSE))))","v":""},{"$f":"IF($A763=\"\",\"\",IF(VLOOKUP($G763,$H$11:$DN$1000,111,FALSE)=\"\",\"No\",IF(LEFT(VLOOKUP($G763,$H$11:$DN$1000,111,FALSE),3)=\"The\",EI763,VLOOKUP(VLOOKUP($G763,$H$11:$DN$1000,111,FALSE),DeclMatrix!$A$2:$F$5,VLOOKUP('Enrollment Form'!$B763,DeclMatrix!$A$8:$B$12,2,FALSE),FALSE))))","v":""},"",null,"","","","","","","","","","","",""]
["",{"$nulls":5},"","",{"$nulls":18},"","","","",{"$nulls":30},"","","","",{"$nulls":60},"",{"$f":"IF($A764=\"\",\"\",IF(VLOOKUP($G764,$H$11:$DN$1000,96,FALSE)=\"\",\"No\",IF(LEFT(VLOOKUP($G764,$H$11:$DN$1000,96,FALSE),3)=\"The\",EF764,VLOOKUP(VLOOKUP($G764,$H$11:$DN$1000,96,FALSE),DeclMatrix!$A$2:$F$5,VLOOKUP('Enrollment Form'!$B764,DeclMatrix!$A$8:$B$12,2,FALSE),FALSE))))","v":""},{"$f":"IF($A764=\"\",\"\",IF(VLOOKUP($G764,$H$11:$DN$1000,101,FALSE)=\"\",\"No\",IF(LEFT(VLOOKUP($G764,$H$11:$DN$1000,101,FALSE),3)=\"The\",EG764,VLOOKUP(VLOOKUP($G764,$H$11:$DN$1000,101,FALSE),DeclMatrix!$A$2:$F$5,VLOOKUP('Enrollment Form'!$B764,DeclMatrix!$A$8:$B$12,2,FALSE),FALSE))))","v":""},{"$f":"IF($A764=\"\",\"\",IF(VLOOKUP($G764,$H$11:$DN$1000,106,FALSE)=\"\",\"No\",IF(LEFT(VLOOKUP($G764,$H$11:$DN$1000,106,FALSE),3)=\"The\",EH764,VLOOKUP(VLOOKUP($G764,$H$11:$DN$1000,106,FALSE),DeclMatrix!$A$2:$F$5,VLOOKUP('Enrollment Form'!$B764,DeclMatrix!$A$8:$B$12,2,FALSE),FALSE))))","v":""},{"$f":"IF($A764=\"\",\"\",IF(VLOOKUP($G764,$H$11:$DN$1000,111,FALSE)=\"\",\"No\",IF(LEFT(VLOOKUP($G764,$H$11:$DN$1000,111,FALSE),3)=\"The\",EI764,VLOOKUP(VLOOKUP($G764,$H$11:$DN$1000,111,FALSE),DeclMatrix!$A$2:$F$5,VLOOKUP('Enrollment Form'!$B764,DeclMatrix!$A$8:$B$12,2,FALSE),FALSE))))","v":""},"",null,"","","","","","","","","","","",""]
["",{"$nulls":5},"","",{"$nulls":18},"","","","",{"$nulls":30},"","","","",{"$nulls":60},"",{"$f":"IF($A765=\"\",\"\",IF(VLOOKUP($G765,$H$11:$DN$1000,96,FALSE)=\"\",\"No\",IF(LEFT(VLOOKUP($G765,$H$11:$DN$1000,96,FALSE),3)=\"The\",EF765,VLOOKUP(VLOOKUP($G765,$H$11:$DN$1000,96,FALSE),DeclMatrix!$A$2:$F$5,VLOOKUP('Enrollment Form'!$B765,DeclMatrix!$A$8:$B$12,2,FALSE),FALSE))))","v":""},{"$f":"IF($A765=\"\",\"\",IF(VLOOKUP($G765,$H$11:$DN$1000,101,FALSE)=\"\",\"No\",IF(LEFT(VLOOKUP($G765,$H$11:$DN$1000,101,FALSE),3)=\"The\",EG765,VLOOKUP(VLOOKUP($G765,$H$11:$DN$1000,101,FALSE),DeclMatrix!$A$2:$F$5,VLOOKUP('Enrollment Form'!$B765,DeclMatrix!$A$8:$B$12,2,FALSE),FALSE))))","v":""},{"$f":"IF($A765=\"\",\"\",IF(VLOOKUP($G765,$H$11:$DN$1000,106,FALSE)=\"\",\"No\",IF(LEFT(VLOOKUP($G765,$H$11:$DN$1000,106,FALSE),3)=\"The\",EH765,VLOOKUP(VLOOKUP($G765,$H$11:$DN$1000,106,FALSE),DeclMatrix!$A$2:$F$5,VLOOKUP('Enrollment Form'!$B765,DeclMatrix!$A$8:$B$12,2,FALSE),FALSE))))","v":""},{"$f":"IF($A765=\"\",\"\",IF(VLOOKUP($G765,$H$11:$DN$1000,111,FALSE)=\"\",\"No\",IF(LEFT(VLOOKUP($G765,$H$11:$DN$1000,111,FALSE),3)=\"The\",EI765,VLOOKUP(VLOOKUP($G765,$H$11:$DN$1000,111,FALSE),DeclMatrix!$A$2:$F$5,VLOOKUP('Enrollment Form'!$B765,DeclMatrix!$A$8:$B$12,2,FALSE),FALSE))))","v":""},"",null,"","","","","","","","","","","",""]
["",{"$nulls":5},"","",{"$nulls":18},"","","","",{"$nulls":30},"","","","",{"$nulls":60},"",{"$f":"IF($A766=\"\",\"\",IF(VLOOKUP($G766,$H$11:$DN$1000,96,FALSE)=\"\",\"No\",IF(LEFT(VLOOKUP($G766,$H$11:$DN$1000,96,FALSE),3)=\"The\",EF766,VLOOKUP(VLOOKUP($G766,$H$11:$DN$1000,96,FALSE),DeclMatrix!$A$2:$F$5,VLOOKUP('Enrollment Form'!$B766,DeclMatrix!$A$8:$B$12,2,FALSE),FALSE))))","v":""},{"$f":"IF($A766=\"\",\"\",IF(VLOOKUP($G766,$H$11:$DN$1000,101,FALSE)=\"\",\"No\",IF(LEFT(VLOOKUP($G766,$H$11:$DN$1000,101,FALSE),3)=\"The\",EG766,VLOOKUP(VLOOKUP($G766,$H$11:$DN$1000,101,FALSE),DeclMatrix!$A$2:$F$5,VLOOKUP('Enrollment Form'!$B766,DeclMatrix!$A$8:$B$12,2,FALSE),FALSE))))","v":""},{"$f":"IF($A766=\"\",\"\",IF(VLOOKUP($G766,$H$11:$DN$1000,106,FALSE)=\"\",\"No\",IF(LEFT(VLOOKUP($G766,$H$11:$DN$1000,106,FALSE),3)=\"The\",EH766,VLOOKUP(VLOOKUP($G766,$H$11:$DN$1000,106,FALSE),DeclMatrix!$A$2:$F$5,VLOOKUP('Enrollment Form'!$B766,DeclMatrix!$A$8:$B$12,2,FALSE),FALSE))))","v":""},{"$f":"IF($A766=\"\",\"\",IF(VLOOKUP($G766,$H$11:$DN$1000,111,FALSE)=\"\",\"No\",IF(LEFT(VLOOKUP($G766,$H$11:$DN$1000,111,FALSE),3)=\"The\",EI766,VLOOKUP(VLOOKUP($G766,$H$11:$DN$1000,111,FALSE),DeclMatrix!$A$2:$F$5,VLOOKUP('Enrollment Form'!$B766,DeclMatrix!$A$8:$B$12,2,FALSE),FALSE))))","v":""},"",null,"","","","","","","","","","","",""]
["",{"$nulls":5},"","",{"$nulls":18},"","","","",{"$nulls":30},"","","","",{"$nulls":60},"",{"$f":"IF($A767=\"\",\"\",IF(VLOOKUP($G767,$H$11:$DN$1000,96,FALSE)=\"\",\"No\",IF(LEFT(VLOOKUP($G767,$H$11:$DN$1000,96,FALSE),3)=\"The\",EF767,VLOOKUP(VLOOKUP($G767,$H$11:$DN$1000,96,FALSE),DeclMatrix!$A$2:$F$5,VLOOKUP('Enrollment Form'!$B767,DeclMatrix!$A$8:$B$12,2,FALSE),FALSE))))","v":""},{"$f":"IF($A767=\"\",\"\",IF(VLOOKUP($G767,$H$11:$DN$1000,101,FALSE)=\"\",\"No\",IF(LEFT(VLOOKUP($G767,$H$11:$DN$1000,101,FALSE),3)=\"The\",EG767,VLOOKUP(VLOOKUP($G767,$H$11:$DN$1000,101,FALSE),DeclMatrix!$A$2:$F$5,VLOOKUP('Enrollment Form'!$B767,DeclMatrix!$A$8:$B$12,2,FALSE),FALSE))))","v":""},{"$f":"IF($A767=\"\",\"\",IF(VLOOKUP($G767,$H$11:$DN$1000,106,FALSE)=\"\",\"No\",IF(LEFT(VLOOKUP($G767,$H$11:$DN$1000,106,FALSE),3)=\"The\",EH767,VLOOKUP(VLOOKUP($G767,$H$11:$DN$1000,106,FALSE),DeclMatrix!$A$2:$F$5,VLOOKUP('Enrollment Form'!$B767,DeclMatrix!$A$8:$B$12,2,FALSE),FALSE))))","v":""},{"$f":"IF($A767=\"\",\"\",IF(VLOOKUP($G767,$H$11:$DN$1000,111,FALSE)=\"\",\"No\",IF(LEFT(VLOOKUP($G767,$H$11:$DN$1000,111,FALSE),3)=\"The\",EI767,VLOOKUP(VLOOKUP($G767,$H$11:$DN$1000,111,FALSE),DeclMatrix!$A$2:$F$5,VLOOKUP('Enrollment Form'!$B767,DeclMatrix!$A$8:$B$12,2,FALSE),FALSE))))","v":""},"",null,"","","","","","","","","","","",""]
["",{"$nulls":5},"","",{"$nulls":18},"","","","",{"$nulls":30},"","","","",{"$nulls":60},"",{"$f":"IF($A768=\"\",\"\",IF(VLOOKUP($G768,$H$11:$DN$1000,96,FALSE)=\"\",\"No\",IF(LEFT(VLOOKUP($G768,$H$11:$DN$1000,96,FALSE),3)=\"The\",EF768,VLOOKUP(VLOOKUP($G768,$H$11:$DN$1000,96,FALSE),DeclMatrix!$A$2:$F$5,VLOOKUP('Enrollment Form'!$B768,DeclMatrix!$A$8:$B$12,2,FALSE),FALSE))))","v":""},{"$f":"IF($A768=\"\",\"\",IF(VLOOKUP($G768,$H$11:$DN$1000,101,FALSE)=\"\",\"No\",IF(LEFT(VLOOKUP($G768,$H$11:$DN$1000,101,FALSE),3)=\"The\",EG768,VLOOKUP(VLOOKUP($G768,$H$11:$DN$1000,101,FALSE),DeclMatrix!$A$2:$F$5,VLOOKUP('Enrollment Form'!$B768,DeclMatrix!$A$8:$B$12,2,FALSE),FALSE))))","v":""},{"$f":"IF($A768=\"\",\"\",IF(VLOOKUP($G768,$H$11:$DN$1000,106,FALSE)=\"\",\"No\",IF(LEFT(VLOOKUP($G768,$H$11:$DN$1000,106,FALSE),3)=\"The\",EH768,VLOOKUP(VLOOKUP($G768,$H$11:$DN$1000,106,FALSE),DeclMatrix!$A$2:$F$5,VLOOKUP('Enrollment Form'!$B768,DeclMatrix!$A$8:$B$12,2,FALSE),FALSE))))","v":""},{"$f":"IF($A768=\"\",\"\",IF(VLOOKUP($G768,$H$11:$DN$1000,111,FALSE)=\"\",\"No\",IF(LEFT(VLOOKUP($G768,$H$11:$DN$1000,111,FALSE),3)=\"The\",EI768,VLOOKUP(VLOOKUP($G768,$H$11:$DN$1000,111,FALSE),DeclMatrix!$A$2:$F$5,VLOOKUP('Enrollment Form'!$B768,DeclMatrix!$A$8:$B$12,2,FALSE),FALSE))))","v":""},"",null,"","","","","","","","","","","",""]
["",{"$nulls":5},"","",{"$nulls":18},"","","","",{"$nulls":30},"","","","",{"$nulls":60},"",{"$f":"IF($A769=\"\",\"\",IF(VLOOKUP($G769,$H$11:$DN$1000,96,FALSE)=\"\",\"No\",IF(LEFT(VLOOKUP($G769,$H$11:$DN$1000,96,FALSE),3)=\"The\",EF769,VLOOKUP(VLOOKUP($G769,$H$11:$DN$1000,96,FALSE),DeclMatrix!$A$2:$F$5,VLOOKUP('Enrollment Form'!$B769,DeclMatrix!$A$8:$B$12,2,FALSE),FALSE))))","v":""},{"$f":"IF($A769=\"\",\"\",IF(VLOOKUP($G769,$H$11:$DN$1000,101,FALSE)=\"\",\"No\",IF(LEFT(VLOOKUP($G769,$H$11:$DN$1000,101,FALSE),3)=\"The\",EG769,VLOOKUP(VLOOKUP($G769,$H$11:$DN$1000,101,FALSE),DeclMatrix!$A$2:$F$5,VLOOKUP('Enrollment Form'!$B769,DeclMatrix!$A$8:$B$12,2,FALSE),FALSE))))","v":""},{"$f":"IF($A769=\"\",\"\",IF(VLOOKUP($G769,$H$11:$DN$1000,106,FALSE)=\"\",\"No\",IF(LEFT(VLOOKUP($G769,$H$11:$DN$1000,106,FALSE),3)=\"The\",EH769,VLOOKUP(VLOOKUP($G769,$H$11:$DN$1000,106,FALSE),DeclMatrix!$A$2:$F$5,VLOOKUP('Enrollment Form'!$B769,DeclMatrix!$A$8:$B$12,2,FALSE),FALSE))))","v":""},{"$f":"IF($A769=\"\",\"\",IF(VLOOKUP($G769,$H$11:$DN$1000,111,FALSE)=\"\",\"No\",IF(LEFT(VLOOKUP($G769,$H$11:$DN$1000,111,FALSE),3)=\"The\",EI769,VLOOKUP(VLOOKUP($G769,$H$11:$DN$1000,111,FALSE),DeclMatrix!$A$2:$F$5,VLOOKUP('Enrollment Form'!$B769,DeclMatrix!$A$8:$B$12,2,FALSE),FALSE))))","v":""},"",null,"","","","","","","","","","","",""]
["",{"$nulls":5},"","",{"$nulls":18},"","","","",{"$nulls":30},"","","","",{"$nulls":60},"",{"$f":"IF($A770=\"\",\"\",IF(VLOOKUP($G770,$H$11:$DN$1000,96,FALSE)=\"\",\"No\",IF(LEFT(VLOOKUP($G770,$H$11:$DN$1000,96,FALSE),3)=\"The\",EF770,VLOOKUP(VLOOKUP($G770,$H$11:$DN$1000,96,FALSE),DeclMatrix!$A$2:$F$5,VLOOKUP('Enrollment Form'!$B770,DeclMatrix!$A$8:$B$12,2,FALSE),FALSE))))","v":""},{"$f":"IF($A770=\"\",\"\",IF(VLOOKUP($G770,$H$11:$DN$1000,101,FALSE)=\"\",\"No\",IF(LEFT(VLOOKUP($G770,$H$11:$DN$1000,101,FALSE),3)=\"The\",EG770,VLOOKUP(VLOOKUP($G770,$H$11:$DN$1000,101,FALSE),DeclMatrix!$A$2:$F$5,VLOOKUP('Enrollment Form'!$B770,DeclMatrix!$A$8:$B$12,2,FALSE),FALSE))))","v":""},{"$f":"IF($A770=\"\",\"\",IF(VLOOKUP($G770,$H$11:$DN$1000,106,FALSE)=\"\",\"No\",IF(LEFT(VLOOKUP($G770,$H$11:$DN$1000,106,FALSE),3)=\"The\",EH770,VLOOKUP(VLOOKUP($G770,$H$11:$DN$1000,106,FALSE),DeclMatrix!$A$2:$F$5,VLOOKUP('Enrollment Form'!$B770,DeclMatrix!$A$8:$B$12,2,FALSE),FALSE))))","v":""},{"$f":"IF($A770=\"\",\"\",IF(VLOOKUP($G770,$H$11:$DN$1000,111,FALSE)=\"\",\"No\",IF(LEFT(VLOOKUP($G770,$H$11:$DN$1000,111,FALSE),3)=\"The\",EI770,VLOOKUP(VLOOKUP($G770,$H$11:$DN$1000,111,FALSE),DeclMatrix!$A$2:$F$5,VLOOKUP('Enrollment Form'!$B770,DeclMatrix!$A$8:$B$12,2,FALSE),FALSE))))","v":""},"",null,"","","","","","","","","","","",""]
["",{"$nulls":5},"","",{"$nulls":18},"","","","",{"$nulls":30},"","","","",{"$nulls":60},"",{"$f":"IF($A771=\"\",\"\",IF(VLOOKUP($G771,$H$11:$DN$1000,96,FALSE)=\"\",\"No\",IF(LEFT(VLOOKUP($G771,$H$11:$DN$1000,96,FALSE),3)=\"The\",EF771,VLOOKUP(VLOOKUP($G771,$H$11:$DN$1000,96,FALSE),DeclMatrix!$A$2:$F$5,VLOOKUP('Enrollment Form'!$B771,DeclMatrix!$A$8:$B$12,2,FALSE),FALSE))))","v":""},{"$f":"IF($A771=\"\",\"\",IF(VLOOKUP($G771,$H$11:$DN$1000,101,FALSE)=\"\",\"No\",IF(LEFT(VLOOKUP($G771,$H$11:$DN$1000,101,FALSE),3)=\"The\",EG771,VLOOKUP(VLOOKUP($G771,$H$11:$DN$1000,101,FALSE),DeclMatrix!$A$2:$F$5,VLOOKUP('Enrollment Form'!$B771,DeclMatrix!$A$8:$B$12,2,FALSE),FALSE))))","v":""},{"$f":"IF($A771=\"\",\"\",IF(VLOOKUP($G771,$H$11:$DN$1000,106,FALSE)=\"\",\"No\",IF(LEFT(VLOOKUP($G771,$H$11:$DN$1000,106,FALSE),3)=\"The\",EH771,VLOOKUP(VLOOKUP($G771,$H$11:$DN$1000,106,FALSE),DeclMatrix!$A$2:$F$5,VLOOKUP('Enrollment Form'!$B771,DeclMatrix!$A$8:$B$12,2,FALSE),FALSE))))","v":""},{"$f":"IF($A771=\"\",\"\",IF(VLOOKUP($G771,$H$11:$DN$1000,111,FALSE)=\"\",\"No\",IF(LEFT(VLOOKUP($G771,$H$11:$DN$1000,111,FALSE),3)=\"The\",EI771,VLOOKUP(VLOOKUP($G771,$H$11:$DN$1000,111,FALSE),DeclMatrix!$A$2:$F$5,VLOOKUP('Enrollment Form'!$B771,DeclMatrix!$A$8:$B$12,2,FALSE),FALSE))))","v":""},"",null,"","","","","","","","","","","",""]
["",{"$nulls":5},"","",{"$nulls":18},"","","","",{"$nulls":30},"","","","",{"$nulls":60},"",{"$f":"IF($A772=\"\",\"\",IF(VLOOKUP($G772,$H$11:$DN$1000,96,FALSE)=\"\",\"No\",IF(LEFT(VLOOKUP($G772,$H$11:$DN$1000,96,FALSE),3)=\"The\",EF772,VLOOKUP(VLOOKUP($G772,$H$11:$DN$1000,96,FALSE),DeclMatrix!$A$2:$F$5,VLOOKUP('Enrollment Form'!$B772,DeclMatrix!$A$8:$B$12,2,FALSE),FALSE))))","v":""},{"$f":"IF($A772=\"\",\"\",IF(VLOOKUP($G772,$H$11:$DN$1000,101,FALSE)=\"\",\"No\",IF(LEFT(VLOOKUP($G772,$H$11:$DN$1000,101,FALSE),3)=\"The\",EG772,VLOOKUP(VLOOKUP($G772,$H$11:$DN$1000,101,FALSE),DeclMatrix!$A$2:$F$5,VLOOKUP('Enrollment Form'!$B772,DeclMatrix!$A$8:$B$12,2,FALSE),FALSE))))","v":""},{"$f":"IF($A772=\"\",\"\",IF(VLOOKUP($G772,$H$11:$DN$1000,106,FALSE)=\"\",\"No\",IF(LEFT(VLOOKUP($G772,$H$11:$DN$1000,106,FALSE),3)=\"The\",EH772,VLOOKUP(VLOOKUP($G772,$H$11:$DN$1000,106,FALSE),DeclMatrix!$A$2:$F$5,VLOOKUP('Enrollment Form'!$B772,DeclMatrix!$A$8:$B$12,2,FALSE),FALSE))))","v":""},{"$f":"IF($A772=\"\",\"\",IF(VLOOKUP($G772,$H$11:$DN$1000,111,FALSE)=\"\",\"No\",IF(LEFT(VLOOKUP($G772,$H$11:$DN$1000,111,FALSE),3)=\"The\",EI772,VLOOKUP(VLOOKUP($G772,$H$11:$DN$1000,111,FALSE),DeclMatrix!$A$2:$F$5,VLOOKUP('Enrollment Form'!$B772,DeclMatrix!$A$8:$B$12,2,FALSE),FALSE))))","v":""},"",null,"","","","","","","","","","","",""]
["",{"$nulls":5},"","",{"$nulls":18},"","","","",{"$nulls":30},"","","","",{"$nulls":60},"",{"$f":"IF($A773=\"\",\"\",IF(VLOOKUP($G773,$H$11:$DN$1000,96,FALSE)=\"\",\"No\",IF(LEFT(VLOOKUP($G773,$H$11:$DN$1000,96,FALSE),3)=\"The\",EF773,VLOOKUP(VLOOKUP($G773,$H$11:$DN$1000,96,FALSE),DeclMatrix!$A$2:$F$5,VLOOKUP('Enrollment Form'!$B773,DeclMatrix!$A$8:$B$12,2,FALSE),FALSE))))","v":""},{"$f":"IF($A773=\"\",\"\",IF(VLOOKUP($G773,$H$11:$DN$1000,101,FALSE)=\"\",\"No\",IF(LEFT(VLOOKUP($G773,$H$11:$DN$1000,101,FALSE),3)=\"The\",EG773,VLOOKUP(VLOOKUP($G773,$H$11:$DN$1000,101,FALSE),DeclMatrix!$A$2:$F$5,VLOOKUP('Enrollment Form'!$B773,DeclMatrix!$A$8:$B$12,2,FALSE),FALSE))))","v":""},{"$f":"IF($A773=\"\",\"\",IF(VLOOKUP($G773,$H$11:$DN$1000,106,FALSE)=\"\",\"No\",IF(LEFT(VLOOKUP($G773,$H$11:$DN$1000,106,FALSE),3)=\"The\",EH773,VLOOKUP(VLOOKUP($G773,$H$11:$DN$1000,106,FALSE),DeclMatrix!$A$2:$F$5,VLOOKUP('Enrollment Form'!$B773,DeclMatrix!$A$8:$B$12,2,FALSE),FALSE))))","v":""},{"$f":"IF($A773=\"\",\"\",IF(VLOOKUP($G773,$H$11:$DN$1000,111,FALSE)=\"\",\"No\",IF(LEFT(VLOOKUP($G773,$H$11:$DN$1000,111,FALSE),3)=\"The\",EI773,VLOOKUP(VLOOKUP($G773,$H$11:$DN$1000,111,FALSE),DeclMatrix!$A$2:$F$5,VLOOKUP('Enrollment Form'!$B773,DeclMatrix!$A$8:$B$12,2,FALSE),FALSE))))","v":""},"",null,"","","","","","","","","","","",""]
["",{"$nulls":5},"","",{"$nulls":18},"","","","",{"$nulls":30},"","","","",{"$nulls":60},"",{"$f":"IF($A774=\"\",\"\",IF(VLOOKUP($G774,$H$11:$DN$1000,96,FALSE)=\"\",\"No\",IF(LEFT(VLOOKUP($G774,$H$11:$DN$1000,96,FALSE),3)=\"The\",EF774,VLOOKUP(VLOOKUP($G774,$H$11:$DN$1000,96,FALSE),DeclMatrix!$A$2:$F$5,VLOOKUP('Enrollment Form'!$B774,DeclMatrix!$A$8:$B$12,2,FALSE),FALSE))))","v":""},{"$f":"IF($A774=\"\",\"\",IF(VLOOKUP($G774,$H$11:$DN$1000,101,FALSE)=\"\",\"No\",IF(LEFT(VLOOKUP($G774,$H$11:$DN$1000,101,FALSE),3)=\"The\",EG774,VLOOKUP(VLOOKUP($G774,$H$11:$DN$1000,101,FALSE),DeclMatrix!$A$2:$F$5,VLOOKUP('Enrollment Form'!$B774,DeclMatrix!$A$8:$B$12,2,FALSE),FALSE))))","v":""},{"$f":"IF($A774=\"\",\"\",IF(VLOOKUP($G774,$H$11:$DN$1000,106,FALSE)=\"\",\"No\",IF(LEFT(VLOOKUP($G774,$H$11:$DN$1000,106,FALSE),3)=\"The\",EH774,VLOOKUP(VLOOKUP($G774,$H$11:$DN$1000,106,FALSE),DeclMatrix!$A$2:$F$5,VLOOKUP('Enrollment Form'!$B774,DeclMatrix!$A$8:$B$12,2,FALSE),FALSE))))","v":""},{"$f":"IF($A774=\"\",\"\",IF(VLOOKUP($G774,$H$11:$DN$1000,111,FALSE)=\"\",\"No\",IF(LEFT(VLOOKUP($G774,$H$11:$DN$1000,111,FALSE),3)=\"The\",EI774,VLOOKUP(VLOOKUP($G774,$H$11:$DN$1000,111,FALSE),DeclMatrix!$A$2:$F$5,VLOOKUP('Enrollment Form'!$B774,DeclMatrix!$A$8:$B$12,2,FALSE),FALSE))))","v":""},"",null,"","","","","","","","","","","",""]
["",{"$nulls":5},"","",{"$nulls":18},"","","","",{"$nulls":30},"","","","",{"$nulls":60},"",{"$f":"IF($A775=\"\",\"\",IF(VLOOKUP($G775,$H$11:$DN$1000,96,FALSE)=\"\",\"No\",IF(LEFT(VLOOKUP($G775,$H$11:$DN$1000,96,FALSE),3)=\"The\",EF775,VLOOKUP(VLOOKUP($G775,$H$11:$DN$1000,96,FALSE),DeclMatrix!$A$2:$F$5,VLOOKUP('Enrollment Form'!$B775,DeclMatrix!$A$8:$B$12,2,FALSE),FALSE))))","v":""},{"$f":"IF($A775=\"\",\"\",IF(VLOOKUP($G775,$H$11:$DN$1000,101,FALSE)=\"\",\"No\",IF(LEFT(VLOOKUP($G775,$H$11:$DN$1000,101,FALSE),3)=\"The\",EG775,VLOOKUP(VLOOKUP($G775,$H$11:$DN$1000,101,FALSE),DeclMatrix!$A$2:$F$5,VLOOKUP('Enrollment Form'!$B775,DeclMatrix!$A$8:$B$12,2,FALSE),FALSE))))","v":""},{"$f":"IF($A775=\"\",\"\",IF(VLOOKUP($G775,$H$11:$DN$1000,106,FALSE)=\"\",\"No\",IF(LEFT(VLOOKUP($G775,$H$11:$DN$1000,106,FALSE),3)=\"The\",EH775,VLOOKUP(VLOOKUP($G775,$H$11:$DN$1000,106,FALSE),DeclMatrix!$A$2:$F$5,VLOOKUP('Enrollment Form'!$B775,DeclMatrix!$A$8:$B$12,2,FALSE),FALSE))))","v":""},{"$f":"IF($A775=\"\",\"\",IF(VLOOKUP($G775,$H$11:$DN$1000,111,FALSE)=\"\",\"No\",IF(LEFT(VLOOKUP($G775,$H$11:$DN$1000,111,FALSE),3)=\"The\",EI775,VLOOKUP(VLOOKUP($G775,$H$11:$DN$1000,111,FALSE),DeclMatrix!$A$2:$F$5,VLOOKUP('Enrollment Form'!$B775,DeclMatrix!$A$8:$B$12,2,FALSE),FALSE))))","v":""},"",null,"","","","","","","","","","","",""]
["",{"$nulls":5},"","",{"$nulls":18},"","","","",{"$nulls":30},"","","","",{"$nulls":60},"",{"$f":"IF($A776=\"\",\"\",IF(VLOOKUP($G776,$H$11:$DN$1000,96,FALSE)=\"\",\"No\",IF(LEFT(VLOOKUP($G776,$H$11:$DN$1000,96,FALSE),3)=\"The\",EF776,VLOOKUP(VLOOKUP($G776,$H$11:$DN$1000,96,FALSE),DeclMatrix!$A$2:$F$5,VLOOKUP('Enrollment Form'!$B776,DeclMatrix!$A$8:$B$12,2,FALSE),FALSE))))","v":""},{"$f":"IF($A776=\"\",\"\",IF(VLOOKUP($G776,$H$11:$DN$1000,101,FALSE)=\"\",\"No\",IF(LEFT(VLOOKUP($G776,$H$11:$DN$1000,101,FALSE),3)=\"The\",EG776,VLOOKUP(VLOOKUP($G776,$H$11:$DN$1000,101,FALSE),DeclMatrix!$A$2:$F$5,VLOOKUP('Enrollment Form'!$B776,DeclMatrix!$A$8:$B$12,2,FALSE),FALSE))))","v":""},{"$f":"IF($A776=\"\",\"\",IF(VLOOKUP($G776,$H$11:$DN$1000,106,FALSE)=\"\",\"No\",IF(LEFT(VLOOKUP($G776,$H$11:$DN$1000,106,FALSE),3)=\"The\",EH776,VLOOKUP(VLOOKUP($G776,$H$11:$DN$1000,106,FALSE),DeclMatrix!$A$2:$F$5,VLOOKUP('Enrollment Form'!$B776,DeclMatrix!$A$8:$B$12,2,FALSE),FALSE))))","v":""},{"$f":"IF($A776=\"\",\"\",IF(VLOOKUP($G776,$H$11:$DN$1000,111,FALSE)=\"\",\"No\",IF(LEFT(VLOOKUP($G776,$H$11:$DN$1000,111,FALSE),3)=\"The\",EI776,VLOOKUP(VLOOKUP($G776,$H$11:$DN$1000,111,FALSE),DeclMatrix!$A$2:$F$5,VLOOKUP('Enrollment Form'!$B776,DeclMatrix!$A$8:$B$12,2,FALSE),FALSE))))","v":""},"",null,"","","","","","","","","","","",""]
["",{"$nulls":5},"","",{"$nulls":18},"","","","",{"$nulls":30},"","","","",{"$nulls":60},"",{"$f":"IF($A777=\"\",\"\",IF(VLOOKUP($G777,$H$11:$DN$1000,96,FALSE)=\"\",\"No\",IF(LEFT(VLOOKUP($G777,$H$11:$DN$1000,96,FALSE),3)=\"The\",EF777,VLOOKUP(VLOOKUP($G777,$H$11:$DN$1000,96,FALSE),DeclMatrix!$A$2:$F$5,VLOOKUP('Enrollment Form'!$B777,DeclMatrix!$A$8:$B$12,2,FALSE),FALSE))))","v":""},{"$f":"IF($A777=\"\",\"\",IF(VLOOKUP($G777,$H$11:$DN$1000,101,FALSE)=\"\",\"No\",IF(LEFT(VLOOKUP($G777,$H$11:$DN$1000,101,FALSE),3)=\"The\",EG777,VLOOKUP(VLOOKUP($G777,$H$11:$DN$1000,101,FALSE),DeclMatrix!$A$2:$F$5,VLOOKUP('Enrollment Form'!$B777,DeclMatrix!$A$8:$B$12,2,FALSE),FALSE))))","v":""},{"$f":"IF($A777=\"\",\"\",IF(VLOOKUP($G777,$H$11:$DN$1000,106,FALSE)=\"\",\"No\",IF(LEFT(VLOOKUP($G777,$H$11:$DN$1000,106,FALSE),3)=\"The\",EH777,VLOOKUP(VLOOKUP($G777,$H$11:$DN$1000,106,FALSE),DeclMatrix!$A$2:$F$5,VLOOKUP('Enrollment Form'!$B777,DeclMatrix!$A$8:$B$12,2,FALSE),FALSE))))","v":""},{"$f":"IF($A777=\"\",\"\",IF(VLOOKUP($G777,$H$11:$DN$1000,111,FALSE)=\"\",\"No\",IF(LEFT(VLOOKUP($G777,$H$11:$DN$1000,111,FALSE),3)=\"The\",EI777,VLOOKUP(VLOOKUP($G777,$H$11:$DN$1000,111,FALSE),DeclMatrix!$A$2:$F$5,VLOOKUP('Enrollment Form'!$B777,DeclMatrix!$A$8:$B$12,2,FALSE),FALSE))))","v":""},"",null,"","","","","","","","","","","",""]
["",{"$nulls":5},"","",{"$nulls":18},"","","","",{"$nulls":30},"","","","",{"$nulls":60},"",{"$f":"IF($A778=\"\",\"\",IF(VLOOKUP($G778,$H$11:$DN$1000,96,FALSE)=\"\",\"No\",IF(LEFT(VLOOKUP($G778,$H$11:$DN$1000,96,FALSE),3)=\"The\",EF778,VLOOKUP(VLOOKUP($G778,$H$11:$DN$1000,96,FALSE),DeclMatrix!$A$2:$F$5,VLOOKUP('Enrollment Form'!$B778,DeclMatrix!$A$8:$B$12,2,FALSE),FALSE))))","v":""},{"$f":"IF($A778=\"\",\"\",IF(VLOOKUP($G778,$H$11:$DN$1000,101,FALSE)=\"\",\"No\",IF(LEFT(VLOOKUP($G778,$H$11:$DN$1000,101,FALSE),3)=\"The\",EG778,VLOOKUP(VLOOKUP($G778,$H$11:$DN$1000,101,FALSE),DeclMatrix!$A$2:$F$5,VLOOKUP('Enrollment Form'!$B778,DeclMatrix!$A$8:$B$12,2,FALSE),FALSE))))","v":""},{"$f":"IF($A778=\"\",\"\",IF(VLOOKUP($G778,$H$11:$DN$1000,106,FALSE)=\"\",\"No\",IF(LEFT(VLOOKUP($G778,$H$11:$DN$1000,106,FALSE),3)=\"The\",EH778,VLOOKUP(VLOOKUP($G778,$H$11:$DN$1000,106,FALSE),DeclMatrix!$A$2:$F$5,VLOOKUP('Enrollment Form'!$B778,DeclMatrix!$A$8:$B$12,2,FALSE),FALSE))))","v":""},{"$f":"IF($A778=\"\",\"\",IF(VLOOKUP($G778,$H$11:$DN$1000,111,FALSE)=\"\",\"No\",IF(LEFT(VLOOKUP($G778,$H$11:$DN$1000,111,FALSE),3)=\"The\",EI778,VLOOKUP(VLOOKUP($G778,$H$11:$DN$1000,111,FALSE),DeclMatrix!$A$2:$F$5,VLOOKUP('Enrollment Form'!$B778,DeclMatrix!$A$8:$B$12,2,FALSE),FALSE))))","v":""},"",null,"","","","","","","","","","","",""]
[{"$f":"IF(LEN($B779)>0,$C$2,\"\")","v":""},{"$nulls":5},"","",{"$nulls":18},"","","","",{"$nulls":30},{"$f":"IF(AND($B779<>\"Subscriber\",$BH779=\"Yes\"),VLOOKUP($G779,$H$11:$Y$1000,15,FALSE),\"\")","v":""},{"$f":"IF(AND($B779<>\"Subscriber\",$BH779=\"Yes\"),VLOOKUP($G779,$H$11:$Y$1000,16,FALSE),\"\")","v":""},{"$f":"IF(AND($B779<>\"Subscriber\",$BH779=\"Yes\"),VLOOKUP($G779,$H$11:$Y$1000,17,FALSE),\"\")","v":""},{"$f":"IF(AND($B779<>\"Subscriber\",$BH779=\"Yes\"),VLOOKUP($G779,$H$11:$Y$1000,18,FALSE),\"\")","v":""},{"$nulls":60},{"$f":"IF($A779=\"\",\"\",IF($B779=\"Subscriber\",$AG779,VLOOKUP($G779,$H$11:$AG$1000,26,FALSE)))","v":""},{"$f":"IF($A779=\"\",\"\",IF(VLOOKUP($G779,$H$11:$DN$1000,96,FALSE)=\"\",\"No\",IF(LEFT(VLOOKUP($G779,$H$11:$DN$1000,96,FALSE),3)=\"The\",EF779,VLOOKUP(VLOOKUP($G779,$H$11:$DN$1000,96,FALSE),DeclMatrix!$A$2:$F$5,VLOOKUP('Enrollment Form'!$B779,DeclMatrix!$A$8:$B$12,2,FALSE),FALSE))))","v":""},{"$f":"IF($A779=\"\",\"\",IF(VLOOKUP($G779,$H$11:$DN$1000,101,FALSE)=\"\",\"No\",IF(LEFT(VLOOKUP($G779,$H$11:$DN$1000,101,FALSE),3)=\"The\",EG779,VLOOKUP(VLOOKUP($G779,$H$11:$DN$1000,101,FALSE),DeclMatrix!$A$2:$F$5,VLOOKUP('Enrollment Form'!$B779,DeclMatrix!$A$8:$B$12,2,FALSE),FALSE))))","v":""},{"$f":"IF($A779=\"\",\"\",IF(VLOOKUP($G779,$H$11:$DN$1000,106,FALSE)=\"\",\"No\",IF(LEFT(VLOOKUP($G779,$H$11:$DN$1000,106,FALSE),3)=\"The\",EH779,VLOOKUP(VLOOKUP($G779,$H$11:$DN$1000,106,FALSE),DeclMatrix!$A$2:$F$5,VLOOKUP('Enrollment Form'!$B779,DeclMatrix!$A$8:$B$12,2,FALSE),FALSE))))","v":""},{"$f":"IF($A779=\"\",\"\",IF(VLOOKUP($G779,$H$11:$DN$1000,111,FALSE)=\"\",\"No\",IF(LEFT(VLOOKUP($G779,$H$11:$DN$1000,111,FALSE),3)=\"The\",EI779,VLOOKUP(VLOOKUP($G779,$H$11:$DN$1000,111,FALSE),DeclMatrix!$A$2:$F$5,VLOOKUP('Enrollment Form'!$B779,DeclMatrix!$A$8:$B$12,2,FALSE),FALSE))))","v":""},"",null,{"$f":"$B779&$G779&$J779","v":""},{"$f":"$B779&$G779&$L779","v":""},{"$f":"$B779&$G779&$N779","v":""},{"$f":"$B779&$G779&$O779","v":""},"","","","",{"$f":"IF($A779=\"\",\"\",IF(AND($B779=\"Subscriber\",$I779<>\"Waive\",$I779<>\"\"),\"Yes\",IF(AND($B779<>\"Subscriber\",$BF779=\"Yes\"),VLOOKUP($G779,$H$11:$EM$1000,133,FALSE),IF(AND($C779=\"Enroll\",VLOOKUP($G780,$H$11:$EM$1000,96,FALSE)<>\"\"),VLOOKUP($DV779,$DW$2:$DX$3,2,FALSE),\"No\"))))","v":""},{"$f":"IF($A779=\"\",\"\",IF(AND($B779=\"Subscriber\",$K779<>\"Waive\",$K779<>\"\"),\"Yes\",IF(AND($B779<>\"Subscriber\",$BF779=\"Yes\"),VLOOKUP($G779,$H$11:$EM$1000,134,FALSE),IF(AND($C779=\"Enroll\",VLOOKUP($G780,$H$11:$EM$1000,101,FALSE)<>\"\"),VLOOKUP($DW779,$DW$2:$DX$3,2,FALSE),\"No\"))))","v":""},{"$f":"IF($A779=\"\",\"\",IF(AND($B779=\"Subscriber\",$M779<>\"Waive\",$M779<>\"\"),\"Yes\",IF(AND($B779<>\"Subscriber\",$BF779=\"Yes\"),VLOOKUP($G779,$H$11:$EM$1000,135,FALSE),IF(AND($C779=\"Enroll\",VLOOKUP($G780,$H$11:$EM$1000,106,FALSE)<>\"\"),VLOOKUP($DX779,$DW$2:$DX$3,2,FALSE),\"No\"))))","v":""},{"$f":"IF($A779=\"\",\"\",IF(AND($B779=\"Subscriber\",$O779<>\"Waive\",$O779<>\"\"),\"Yes\",IF(AND($B779<>\"Subscriber\",$BF779=\"Yes\"),VLOOKUP($G779,$H$11:$EM$1000,136,FALSE),IF(AND($C779=\"Enroll\",VLOOKUP($G780,$H$11:$EM$1000,111,FALSE)<>\"\"),VLOOKUP($DY779,$DW$2:$DX$3,2,FALSE),\"No\"))))","v":""}]
["",{"$nulls":5},{"$f":"IF(A780=\"\",\"\",IF(AND(B780<>\"Subscriber\",B780<>\"\"),G779,\"\"))","v":""},{"$f":"IF(AND(B780=\"Subscriber\",G780<>\"\"),G780,\"\")","v":""},{"$nulls":18},{"$f":"IF(AND($B780=\"Subscriber\",$Z780=\"Yes\"),V780,\"\")","v":""},{"$f":"IF(AND($B780=\"Subscriber\",$Z780=\"Yes\"),W780,\"\")","v":""},{"$f":"IF(AND($B780=\"Subscriber\",$Z780=\"Yes\"),X780,\"\")","v":""},{"$f":"IF(AND($B780=\"Subscriber\",$Z780=\"Yes\"),Y780,\"\")","v":""},{"$nulls":30},"","","","",{"$nulls":60},"",{"$f":"IF($A780=\"\",\"\",IF(VLOOKUP($G780,$H$11:$DN$1000,96,FALSE)=\"\",\"No\",IF(LEFT(VLOOKUP($G780,$H$11:$DN$1000,96,FALSE),3)=\"The\",EF780,VLOOKUP(VLOOKUP($G780,$H$11:$DN$1000,96,FALSE),DeclMatrix!$A$2:$F$5,VLOOKUP('Enrollment Form'!$B780,DeclMatrix!$A$8:$B$12,2,FALSE),FALSE))))","v":""},{"$f":"IF($A780=\"\",\"\",IF(VLOOKUP($G780,$H$11:$DN$1000,101,FALSE)=\"\",\"No\",IF(LEFT(VLOOKUP($G780,$H$11:$DN$1000,101,FALSE),3)=\"The\",EG780,VLOOKUP(VLOOKUP($G780,$H$11:$DN$1000,101,FALSE),DeclMatrix!$A$2:$F$5,VLOOKUP('Enrollment Form'!$B780,DeclMatrix!$A$8:$B$12,2,FALSE),FALSE))))","v":""},{"$f":"IF($A780=\"\",\"\",IF(VLOOKUP($G780,$H$11:$DN$1000,106,FALSE)=\"\",\"No\",IF(LEFT(VLOOKUP($G780,$H$11:$DN$1000,106,FALSE),3)=\"The\",EH780,VLOOKUP(VLOOKUP($G780,$H$11:$DN$1000,106,FALSE),DeclMatrix!$A$2:$F$5,VLOOKUP('Enrollment Form'!$B780,DeclMatrix!$A$8:$B$12,2,FALSE),FALSE))))","v":""},{"$f":"IF($A780=\"\",\"\",IF(VLOOKUP($G780,$H$11:$DN$1000,111,FALSE)=\"\",\"No\",IF(LEFT(VLOOKUP($G780,$H$11:$DN$1000,111,FALSE),3)=\"The\",EI780,VLOOKUP(VLOOKUP($G780,$H$11:$DN$1000,111,FALSE),DeclMatrix!$A$2:$F$5,VLOOKUP('Enrollment Form'!$B780,DeclMatrix!$A$8:$B$12,2,FALSE),FALSE))))","v":""},{"$f":"IF(A780<>\"\",\"1X\",\"\")","v":""},null,"","","","",{"$f":"IF($A780=\"\",\"\",IF($B780=\"Subscriber\",\"No\",IF(OR($CY780=\"\",$CY780=\"No\"),\"No\",\"Yes\")))","v":""},{"$f":"IF($A780=\"\",\"\",IF($B780=\"Subscriber\",\"No\",IF(OR($DD780=\"\",$DD780=\"No\"),\"No\",\"Yes\")))","v":""},{"$f":"IF($A780=\"\",\"\",IF($B780=\"Subscriber\",\"No\",IF(OR($DI780=\"\",$DI780=\"No\"),\"No\",\"Yes\")))","v":""},{"$f":"IF($A780=\"\",\"\",IF($B780=\"Subscriber\",\"No\",IF(OR($DN780=\"\",$DN780=\"No\"),\"No\",\"Yes\")))","v":""},"","","",""]
["",{"$nulls":5},"","",{"$nulls":18},"","","","",{"$nulls":30},"","","","",{"$nulls":60},"",{"$f":"IF($A781=\"\",\"\",IF(VLOOKUP($G781,$H$11:$DN$1000,96,FALSE)=\"\",\"No\",IF(LEFT(VLOOKUP($G781,$H$11:$DN$1000,96,FALSE),3)=\"The\",EF781,VLOOKUP(VLOOKUP($G781,$H$11:$DN$1000,96,FALSE),DeclMatrix!$A$2:$F$5,VLOOKUP('Enrollment Form'!$B781,DeclMatrix!$A$8:$B$12,2,FALSE),FALSE))))","v":""},{"$f":"IF($A781=\"\",\"\",IF(VLOOKUP($G781,$H$11:$DN$1000,101,FALSE)=\"\",\"No\",IF(LEFT(VLOOKUP($G781,$H$11:$DN$1000,101,FALSE),3)=\"The\",EG781,VLOOKUP(VLOOKUP($G781,$H$11:$DN$1000,101,FALSE),DeclMatrix!$A$2:$F$5,VLOOKUP('Enrollment Form'!$B781,DeclMatrix!$A$8:$B$12,2,FALSE),FALSE))))","v":""},{"$f":"IF($A781=\"\",\"\",IF(VLOOKUP($G781,$H$11:$DN$1000,106,FALSE)=\"\",\"No\",IF(LEFT(VLOOKUP($G781,$H$11:$DN$1000,106,FALSE),3)=\"The\",EH781,VLOOKUP(VLOOKUP($G781,$H$11:$DN$1000,106,FALSE),DeclMatrix!$A$2:$F$5,VLOOKUP('Enrollment Form'!$B781,DeclMatrix!$A$8:$B$12,2,FALSE),FALSE))))","v":""},{"$f":"IF($A781=\"\",\"\",IF(VLOOKUP($G781,$H$11:$DN$1000,111,FALSE)=\"\",\"No\",IF(LEFT(VLOOKUP($G781,$H$11:$DN$1000,111,FALSE),3)=\"The\",EI781,VLOOKUP(VLOOKUP($G781,$H$11:$DN$1000,111,FALSE),DeclMatrix!$A$2:$F$5,VLOOKUP('Enrollment Form'!$B781,DeclMatrix!$A$8:$B$12,2,FALSE),FALSE))))","v":""},"",null,"","","","","","","","","","","",""]
["",{"$nulls":5},"","",{"$nulls":18},"","","","",{"$nulls":30},"","","","",{"$nulls":60},"",{"$f":"IF($A782=\"\",\"\",IF(VLOOKUP($G782,$H$11:$DN$1000,96,FALSE)=\"\",\"No\",IF(LEFT(VLOOKUP($G782,$H$11:$DN$1000,96,FALSE),3)=\"The\",EF782,VLOOKUP(VLOOKUP($G782,$H$11:$DN$1000,96,FALSE),DeclMatrix!$A$2:$F$5,VLOOKUP('Enrollment Form'!$B782,DeclMatrix!$A$8:$B$12,2,FALSE),FALSE))))","v":""},{"$f":"IF($A782=\"\",\"\",IF(VLOOKUP($G782,$H$11:$DN$1000,101,FALSE)=\"\",\"No\",IF(LEFT(VLOOKUP($G782,$H$11:$DN$1000,101,FALSE),3)=\"The\",EG782,VLOOKUP(VLOOKUP($G782,$H$11:$DN$1000,101,FALSE),DeclMatrix!$A$2:$F$5,VLOOKUP('Enrollment Form'!$B782,DeclMatrix!$A$8:$B$12,2,FALSE),FALSE))))","v":""},{"$f":"IF($A782=\"\",\"\",IF(VLOOKUP($G782,$H$11:$DN$1000,106,FALSE)=\"\",\"No\",IF(LEFT(VLOOKUP($G782,$H$11:$DN$1000,106,FALSE),3)=\"The\",EH782,VLOOKUP(VLOOKUP($G782,$H$11:$DN$1000,106,FALSE),DeclMatrix!$A$2:$F$5,VLOOKUP('Enrollment Form'!$B782,DeclMatrix!$A$8:$B$12,2,FALSE),FALSE))))","v":""},{"$f":"IF($A782=\"\",\"\",IF(VLOOKUP($G782,$H$11:$DN$1000,111,FALSE)=\"\",\"No\",IF(LEFT(VLOOKUP($G782,$H$11:$DN$1000,111,FALSE),3)=\"The\",EI782,VLOOKUP(VLOOKUP($G782,$H$11:$DN$1000,111,FALSE),DeclMatrix!$A$2:$F$5,VLOOKUP('Enrollment Form'!$B782,DeclMatrix!$A$8:$B$12,2,FALSE),FALSE))))","v":""},"",null,"","","","","","","","","","","",""]
["",{"$nulls":5},"","",{"$nulls":18},"","","","",{"$nulls":30},"","","","",{"$nulls":60},"",{"$f":"IF($A783=\"\",\"\",IF(VLOOKUP($G783,$H$11:$DN$1000,96,FALSE)=\"\",\"No\",IF(LEFT(VLOOKUP($G783,$H$11:$DN$1000,96,FALSE),3)=\"The\",EF783,VLOOKUP(VLOOKUP($G783,$H$11:$DN$1000,96,FALSE),DeclMatrix!$A$2:$F$5,VLOOKUP('Enrollment Form'!$B783,DeclMatrix!$A$8:$B$12,2,FALSE),FALSE))))","v":""},{"$f":"IF($A783=\"\",\"\",IF(VLOOKUP($G783,$H$11:$DN$1000,101,FALSE)=\"\",\"No\",IF(LEFT(VLOOKUP($G783,$H$11:$DN$1000,101,FALSE),3)=\"The\",EG783,VLOOKUP(VLOOKUP($G783,$H$11:$DN$1000,101,FALSE),DeclMatrix!$A$2:$F$5,VLOOKUP('Enrollment Form'!$B783,DeclMatrix!$A$8:$B$12,2,FALSE),FALSE))))","v":""},{"$f":"IF($A783=\"\",\"\",IF(VLOOKUP($G783,$H$11:$DN$1000,106,FALSE)=\"\",\"No\",IF(LEFT(VLOOKUP($G783,$H$11:$DN$1000,106,FALSE),3)=\"The\",EH783,VLOOKUP(VLOOKUP($G783,$H$11:$DN$1000,106,FALSE),DeclMatrix!$A$2:$F$5,VLOOKUP('Enrollment Form'!$B783,DeclMatrix!$A$8:$B$12,2,FALSE),FALSE))))","v":""},{"$f":"IF($A783=\"\",\"\",IF(VLOOKUP($G783,$H$11:$DN$1000,111,FALSE)=\"\",\"No\",IF(LEFT(VLOOKUP($G783,$H$11:$DN$1000,111,FALSE),3)=\"The\",EI783,VLOOKUP(VLOOKUP($G783,$H$11:$DN$1000,111,FALSE),DeclMatrix!$A$2:$F$5,VLOOKUP('Enrollment Form'!$B783,DeclMatrix!$A$8:$B$12,2,FALSE),FALSE))))","v":""},"",null,"","","","","","","","","","","",""]
["",{"$nulls":5},"","",{"$nulls":18},"","","","",{"$nulls":30},"","","","",{"$nulls":60},"",{"$f":"IF($A784=\"\",\"\",IF(VLOOKUP($G784,$H$11:$DN$1000,96,FALSE)=\"\",\"No\",IF(LEFT(VLOOKUP($G784,$H$11:$DN$1000,96,FALSE),3)=\"The\",EF784,VLOOKUP(VLOOKUP($G784,$H$11:$DN$1000,96,FALSE),DeclMatrix!$A$2:$F$5,VLOOKUP('Enrollment Form'!$B784,DeclMatrix!$A$8:$B$12,2,FALSE),FALSE))))","v":""},{"$f":"IF($A784=\"\",\"\",IF(VLOOKUP($G784,$H$11:$DN$1000,101,FALSE)=\"\",\"No\",IF(LEFT(VLOOKUP($G784,$H$11:$DN$1000,101,FALSE),3)=\"The\",EG784,VLOOKUP(VLOOKUP($G784,$H$11:$DN$1000,101,FALSE),DeclMatrix!$A$2:$F$5,VLOOKUP('Enrollment Form'!$B784,DeclMatrix!$A$8:$B$12,2,FALSE),FALSE))))","v":""},{"$f":"IF($A784=\"\",\"\",IF(VLOOKUP($G784,$H$11:$DN$1000,106,FALSE)=\"\",\"No\",IF(LEFT(VLOOKUP($G784,$H$11:$DN$1000,106,FALSE),3)=\"The\",EH784,VLOOKUP(VLOOKUP($G784,$H$11:$DN$1000,106,FALSE),DeclMatrix!$A$2:$F$5,VLOOKUP('Enrollment Form'!$B784,DeclMatrix!$A$8:$B$12,2,FALSE),FALSE))))","v":""},{"$f":"IF($A784=\"\",\"\",IF(VLOOKUP($G784,$H$11:$DN$1000,111,FALSE)=\"\",\"No\",IF(LEFT(VLOOKUP($G784,$H$11:$DN$1000,111,FALSE),3)=\"The\",EI784,VLOOKUP(VLOOKUP($G784,$H$11:$DN$1000,111,FALSE),DeclMatrix!$A$2:$F$5,VLOOKUP('Enrollment Form'!$B784,DeclMatrix!$A$8:$B$12,2,FALSE),FALSE))))","v":""},"",null,"","","","","","","","","","","",""]
["",{"$nulls":5},"","",{"$nulls":18},"","","","",{"$nulls":30},"","","","",{"$nulls":60},"",{"$f":"IF($A785=\"\",\"\",IF(VLOOKUP($G785,$H$11:$DN$1000,96,FALSE)=\"\",\"No\",IF(LEFT(VLOOKUP($G785,$H$11:$DN$1000,96,FALSE),3)=\"The\",EF785,VLOOKUP(VLOOKUP($G785,$H$11:$DN$1000,96,FALSE),DeclMatrix!$A$2:$F$5,VLOOKUP('Enrollment Form'!$B785,DeclMatrix!$A$8:$B$12,2,FALSE),FALSE))))","v":""},{"$f":"IF($A785=\"\",\"\",IF(VLOOKUP($G785,$H$11:$DN$1000,101,FALSE)=\"\",\"No\",IF(LEFT(VLOOKUP($G785,$H$11:$DN$1000,101,FALSE),3)=\"The\",EG785,VLOOKUP(VLOOKUP($G785,$H$11:$DN$1000,101,FALSE),DeclMatrix!$A$2:$F$5,VLOOKUP('Enrollment Form'!$B785,DeclMatrix!$A$8:$B$12,2,FALSE),FALSE))))","v":""},{"$f":"IF($A785=\"\",\"\",IF(VLOOKUP($G785,$H$11:$DN$1000,106,FALSE)=\"\",\"No\",IF(LEFT(VLOOKUP($G785,$H$11:$DN$1000,106,FALSE),3)=\"The\",EH785,VLOOKUP(VLOOKUP($G785,$H$11:$DN$1000,106,FALSE),DeclMatrix!$A$2:$F$5,VLOOKUP('Enrollment Form'!$B785,DeclMatrix!$A$8:$B$12,2,FALSE),FALSE))))","v":""},{"$f":"IF($A785=\"\",\"\",IF(VLOOKUP($G785,$H$11:$DN$1000,111,FALSE)=\"\",\"No\",IF(LEFT(VLOOKUP($G785,$H$11:$DN$1000,111,FALSE),3)=\"The\",EI785,VLOOKUP(VLOOKUP($G785,$H$11:$DN$1000,111,FALSE),DeclMatrix!$A$2:$F$5,VLOOKUP('Enrollment Form'!$B785,DeclMatrix!$A$8:$B$12,2,FALSE),FALSE))))","v":""},"",null,"","","","","","","","","","","",""]
["",{"$nulls":5},"","",{"$nulls":18},"","","","",{"$nulls":30},"","","","",{"$nulls":60},"",{"$f":"IF($A786=\"\",\"\",IF(VLOOKUP($G786,$H$11:$DN$1000,96,FALSE)=\"\",\"No\",IF(LEFT(VLOOKUP($G786,$H$11:$DN$1000,96,FALSE),3)=\"The\",EF786,VLOOKUP(VLOOKUP($G786,$H$11:$DN$1000,96,FALSE),DeclMatrix!$A$2:$F$5,VLOOKUP('Enrollment Form'!$B786,DeclMatrix!$A$8:$B$12,2,FALSE),FALSE))))","v":""},{"$f":"IF($A786=\"\",\"\",IF(VLOOKUP($G786,$H$11:$DN$1000,101,FALSE)=\"\",\"No\",IF(LEFT(VLOOKUP($G786,$H$11:$DN$1000,101,FALSE),3)=\"The\",EG786,VLOOKUP(VLOOKUP($G786,$H$11:$DN$1000,101,FALSE),DeclMatrix!$A$2:$F$5,VLOOKUP('Enrollment Form'!$B786,DeclMatrix!$A$8:$B$12,2,FALSE),FALSE))))","v":""},{"$f":"IF($A786=\"\",\"\",IF(VLOOKUP($G786,$H$11:$DN$1000,106,FALSE)=\"\",\"No\",IF(LEFT(VLOOKUP($G786,$H$11:$DN$1000,106,FALSE),3)=\"The\",EH786,VLOOKUP(VLOOKUP($G786,$H$11:$DN$1000,106,FALSE),DeclMatrix!$A$2:$F$5,VLOOKUP('Enrollment Form'!$B786,DeclMatrix!$A$8:$B$12,2,FALSE),FALSE))))","v":""},{"$f":"IF($A786=\"\",\"\",IF(VLOOKUP($G786,$H$11:$DN$1000,111,FALSE)=\"\",\"No\",IF(LEFT(VLOOKUP($G786,$H$11:$DN$1000,111,FALSE),3)=\"The\",EI786,VLOOKUP(VLOOKUP($G786,$H$11:$DN$1000,111,FALSE),DeclMatrix!$A$2:$F$5,VLOOKUP('Enrollment Form'!$B786,DeclMatrix!$A$8:$B$12,2,FALSE),FALSE))))","v":""},"",null,"","","","","","","","","","","",""]
["",{"$nulls":5},"","",{"$nulls":18},"","","","",{"$nulls":30},"","","","",{"$nulls":60},"",{"$f":"IF($A787=\"\",\"\",IF(VLOOKUP($G787,$H$11:$DN$1000,96,FALSE)=\"\",\"No\",IF(LEFT(VLOOKUP($G787,$H$11:$DN$1000,96,FALSE),3)=\"The\",EF787,VLOOKUP(VLOOKUP($G787,$H$11:$DN$1000,96,FALSE),DeclMatrix!$A$2:$F$5,VLOOKUP('Enrollment Form'!$B787,DeclMatrix!$A$8:$B$12,2,FALSE),FALSE))))","v":""},{"$f":"IF($A787=\"\",\"\",IF(VLOOKUP($G787,$H$11:$DN$1000,101,FALSE)=\"\",\"No\",IF(LEFT(VLOOKUP($G787,$H$11:$DN$1000,101,FALSE),3)=\"The\",EG787,VLOOKUP(VLOOKUP($G787,$H$11:$DN$1000,101,FALSE),DeclMatrix!$A$2:$F$5,VLOOKUP('Enrollment Form'!$B787,DeclMatrix!$A$8:$B$12,2,FALSE),FALSE))))","v":""},{"$f":"IF($A787=\"\",\"\",IF(VLOOKUP($G787,$H$11:$DN$1000,106,FALSE)=\"\",\"No\",IF(LEFT(VLOOKUP($G787,$H$11:$DN$1000,106,FALSE),3)=\"The\",EH787,VLOOKUP(VLOOKUP($G787,$H$11:$DN$1000,106,FALSE),DeclMatrix!$A$2:$F$5,VLOOKUP('Enrollment Form'!$B787,DeclMatrix!$A$8:$B$12,2,FALSE),FALSE))))","v":""},{"$f":"IF($A787=\"\",\"\",IF(VLOOKUP($G787,$H$11:$DN$1000,111,FALSE)=\"\",\"No\",IF(LEFT(VLOOKUP($G787,$H$11:$DN$1000,111,FALSE),3)=\"The\",EI787,VLOOKUP(VLOOKUP($G787,$H$11:$DN$1000,111,FALSE),DeclMatrix!$A$2:$F$5,VLOOKUP('Enrollment Form'!$B787,DeclMatrix!$A$8:$B$12,2,FALSE),FALSE))))","v":""},"",null,"","","","","","","","","","","",""]
["",{"$nulls":5},"","",{"$nulls":18},"","","","",{"$nulls":30},"","","","",{"$nulls":60},"",{"$f":"IF($A788=\"\",\"\",IF(VLOOKUP($G788,$H$11:$DN$1000,96,FALSE)=\"\",\"No\",IF(LEFT(VLOOKUP($G788,$H$11:$DN$1000,96,FALSE),3)=\"The\",EF788,VLOOKUP(VLOOKUP($G788,$H$11:$DN$1000,96,FALSE),DeclMatrix!$A$2:$F$5,VLOOKUP('Enrollment Form'!$B788,DeclMatrix!$A$8:$B$12,2,FALSE),FALSE))))","v":""},{"$f":"IF($A788=\"\",\"\",IF(VLOOKUP($G788,$H$11:$DN$1000,101,FALSE)=\"\",\"No\",IF(LEFT(VLOOKUP($G788,$H$11:$DN$1000,101,FALSE),3)=\"The\",EG788,VLOOKUP(VLOOKUP($G788,$H$11:$DN$1000,101,FALSE),DeclMatrix!$A$2:$F$5,VLOOKUP('Enrollment Form'!$B788,DeclMatrix!$A$8:$B$12,2,FALSE),FALSE))))","v":""},{"$f":"IF($A788=\"\",\"\",IF(VLOOKUP($G788,$H$11:$DN$1000,106,FALSE)=\"\",\"No\",IF(LEFT(VLOOKUP($G788,$H$11:$DN$1000,106,FALSE),3)=\"The\",EH788,VLOOKUP(VLOOKUP($G788,$H$11:$DN$1000,106,FALSE),DeclMatrix!$A$2:$F$5,VLOOKUP('Enrollment Form'!$B788,DeclMatrix!$A$8:$B$12,2,FALSE),FALSE))))","v":""},{"$f":"IF($A788=\"\",\"\",IF(VLOOKUP($G788,$H$11:$DN$1000,111,FALSE)=\"\",\"No\",IF(LEFT(VLOOKUP($G788,$H$11:$DN$1000,111,FALSE),3)=\"The\",EI788,VLOOKUP(VLOOKUP($G788,$H$11:$DN$1000,111,FALSE),DeclMatrix!$A$2:$F$5,VLOOKUP('Enrollment Form'!$B788,DeclMatrix!$A$8:$B$12,2,FALSE),FALSE))))","v":""},"",null,"","","","","","","","","","","",""]
["",{"$nulls":5},"","",{"$nulls":18},"","","","",{"$nulls":30},"","","","",{"$nulls":60},"",{"$f":"IF($A789=\"\",\"\",IF(VLOOKUP($G789,$H$11:$DN$1000,96,FALSE)=\"\",\"No\",IF(LEFT(VLOOKUP($G789,$H$11:$DN$1000,96,FALSE),3)=\"The\",EF789,VLOOKUP(VLOOKUP($G789,$H$11:$DN$1000,96,FALSE),DeclMatrix!$A$2:$F$5,VLOOKUP('Enrollment Form'!$B789,DeclMatrix!$A$8:$B$12,2,FALSE),FALSE))))","v":""},{"$f":"IF($A789=\"\",\"\",IF(VLOOKUP($G789,$H$11:$DN$1000,101,FALSE)=\"\",\"No\",IF(LEFT(VLOOKUP($G789,$H$11:$DN$1000,101,FALSE),3)=\"The\",EG789,VLOOKUP(VLOOKUP($G789,$H$11:$DN$1000,101,FALSE),DeclMatrix!$A$2:$F$5,VLOOKUP('Enrollment Form'!$B789,DeclMatrix!$A$8:$B$12,2,FALSE),FALSE))))","v":""},{"$f":"IF($A789=\"\",\"\",IF(VLOOKUP($G789,$H$11:$DN$1000,106,FALSE)=\"\",\"No\",IF(LEFT(VLOOKUP($G789,$H$11:$DN$1000,106,FALSE),3)=\"The\",EH789,VLOOKUP(VLOOKUP($G789,$H$11:$DN$1000,106,FALSE),DeclMatrix!$A$2:$F$5,VLOOKUP('Enrollment Form'!$B789,DeclMatrix!$A$8:$B$12,2,FALSE),FALSE))))","v":""},{"$f":"IF($A789=\"\",\"\",IF(VLOOKUP($G789,$H$11:$DN$1000,111,FALSE)=\"\",\"No\",IF(LEFT(VLOOKUP($G789,$H$11:$DN$1000,111,FALSE),3)=\"The\",EI789,VLOOKUP(VLOOKUP($G789,$H$11:$DN$1000,111,FALSE),DeclMatrix!$A$2:$F$5,VLOOKUP('Enrollment Form'!$B789,DeclMatrix!$A$8:$B$12,2,FALSE),FALSE))))","v":""},"",null,"","","","","","","","","","","",""]
["",{"$nulls":5},"","",{"$nulls":18},"","","","",{"$nulls":30},"","","","",{"$nulls":60},"",{"$f":"IF($A790=\"\",\"\",IF(VLOOKUP($G790,$H$11:$DN$1000,96,FALSE)=\"\",\"No\",IF(LEFT(VLOOKUP($G790,$H$11:$DN$1000,96,FALSE),3)=\"The\",EF790,VLOOKUP(VLOOKUP($G790,$H$11:$DN$1000,96,FALSE),DeclMatrix!$A$2:$F$5,VLOOKUP('Enrollment Form'!$B790,DeclMatrix!$A$8:$B$12,2,FALSE),FALSE))))","v":""},{"$f":"IF($A790=\"\",\"\",IF(VLOOKUP($G790,$H$11:$DN$1000,101,FALSE)=\"\",\"No\",IF(LEFT(VLOOKUP($G790,$H$11:$DN$1000,101,FALSE),3)=\"The\",EG790,VLOOKUP(VLOOKUP($G790,$H$11:$DN$1000,101,FALSE),DeclMatrix!$A$2:$F$5,VLOOKUP('Enrollment Form'!$B790,DeclMatrix!$A$8:$B$12,2,FALSE),FALSE))))","v":""},{"$f":"IF($A790=\"\",\"\",IF(VLOOKUP($G790,$H$11:$DN$1000,106,FALSE)=\"\",\"No\",IF(LEFT(VLOOKUP($G790,$H$11:$DN$1000,106,FALSE),3)=\"The\",EH790,VLOOKUP(VLOOKUP($G790,$H$11:$DN$1000,106,FALSE),DeclMatrix!$A$2:$F$5,VLOOKUP('Enrollment Form'!$B790,DeclMatrix!$A$8:$B$12,2,FALSE),FALSE))))","v":""},{"$f":"IF($A790=\"\",\"\",IF(VLOOKUP($G790,$H$11:$DN$1000,111,FALSE)=\"\",\"No\",IF(LEFT(VLOOKUP($G790,$H$11:$DN$1000,111,FALSE),3)=\"The\",EI790,VLOOKUP(VLOOKUP($G790,$H$11:$DN$1000,111,FALSE),DeclMatrix!$A$2:$F$5,VLOOKUP('Enrollment Form'!$B790,DeclMatrix!$A$8:$B$12,2,FALSE),FALSE))))","v":""},"",null,"","","","","","","","","","","",""]
["",{"$nulls":5},"","",{"$nulls":18},"","","","",{"$nulls":30},"","","","",{"$nulls":60},"",{"$f":"IF($A791=\"\",\"\",IF(VLOOKUP($G791,$H$11:$DN$1000,96,FALSE)=\"\",\"No\",IF(LEFT(VLOOKUP($G791,$H$11:$DN$1000,96,FALSE),3)=\"The\",EF791,VLOOKUP(VLOOKUP($G791,$H$11:$DN$1000,96,FALSE),DeclMatrix!$A$2:$F$5,VLOOKUP('Enrollment Form'!$B791,DeclMatrix!$A$8:$B$12,2,FALSE),FALSE))))","v":""},{"$f":"IF($A791=\"\",\"\",IF(VLOOKUP($G791,$H$11:$DN$1000,101,FALSE)=\"\",\"No\",IF(LEFT(VLOOKUP($G791,$H$11:$DN$1000,101,FALSE),3)=\"The\",EG791,VLOOKUP(VLOOKUP($G791,$H$11:$DN$1000,101,FALSE),DeclMatrix!$A$2:$F$5,VLOOKUP('Enrollment Form'!$B791,DeclMatrix!$A$8:$B$12,2,FALSE),FALSE))))","v":""},{"$f":"IF($A791=\"\",\"\",IF(VLOOKUP($G791,$H$11:$DN$1000,106,FALSE)=\"\",\"No\",IF(LEFT(VLOOKUP($G791,$H$11:$DN$1000,106,FALSE),3)=\"The\",EH791,VLOOKUP(VLOOKUP($G791,$H$11:$DN$1000,106,FALSE),DeclMatrix!$A$2:$F$5,VLOOKUP('Enrollment Form'!$B791,DeclMatrix!$A$8:$B$12,2,FALSE),FALSE))))","v":""},{"$f":"IF($A791=\"\",\"\",IF(VLOOKUP($G791,$H$11:$DN$1000,111,FALSE)=\"\",\"No\",IF(LEFT(VLOOKUP($G791,$H$11:$DN$1000,111,FALSE),3)=\"The\",EI791,VLOOKUP(VLOOKUP($G791,$H$11:$DN$1000,111,FALSE),DeclMatrix!$A$2:$F$5,VLOOKUP('Enrollment Form'!$B791,DeclMatrix!$A$8:$B$12,2,FALSE),FALSE))))","v":""},"",null,"","","","","","","","","","","",""]
["",{"$nulls":5},"","",{"$nulls":18},"","","","",{"$nulls":30},"","","","",{"$nulls":60},"",{"$f":"IF($A792=\"\",\"\",IF(VLOOKUP($G792,$H$11:$DN$1000,96,FALSE)=\"\",\"No\",IF(LEFT(VLOOKUP($G792,$H$11:$DN$1000,96,FALSE),3)=\"The\",EF792,VLOOKUP(VLOOKUP($G792,$H$11:$DN$1000,96,FALSE),DeclMatrix!$A$2:$F$5,VLOOKUP('Enrollment Form'!$B792,DeclMatrix!$A$8:$B$12,2,FALSE),FALSE))))","v":""},{"$f":"IF($A792=\"\",\"\",IF(VLOOKUP($G792,$H$11:$DN$1000,101,FALSE)=\"\",\"No\",IF(LEFT(VLOOKUP($G792,$H$11:$DN$1000,101,FALSE),3)=\"The\",EG792,VLOOKUP(VLOOKUP($G792,$H$11:$DN$1000,101,FALSE),DeclMatrix!$A$2:$F$5,VLOOKUP('Enrollment Form'!$B792,DeclMatrix!$A$8:$B$12,2,FALSE),FALSE))))","v":""},{"$f":"IF($A792=\"\",\"\",IF(VLOOKUP($G792,$H$11:$DN$1000,106,FALSE)=\"\",\"No\",IF(LEFT(VLOOKUP($G792,$H$11:$DN$1000,106,FALSE),3)=\"The\",EH792,VLOOKUP(VLOOKUP($G792,$H$11:$DN$1000,106,FALSE),DeclMatrix!$A$2:$F$5,VLOOKUP('Enrollment Form'!$B792,DeclMatrix!$A$8:$B$12,2,FALSE),FALSE))))","v":""},{"$f":"IF($A792=\"\",\"\",IF(VLOOKUP($G792,$H$11:$DN$1000,111,FALSE)=\"\",\"No\",IF(LEFT(VLOOKUP($G792,$H$11:$DN$1000,111,FALSE),3)=\"The\",EI792,VLOOKUP(VLOOKUP($G792,$H$11:$DN$1000,111,FALSE),DeclMatrix!$A$2:$F$5,VLOOKUP('Enrollment Form'!$B792,DeclMatrix!$A$8:$B$12,2,FALSE),FALSE))))","v":""},"",null,"","","","","","","","","","","",""]
["",{"$nulls":5},"","",{"$nulls":18},"","","","",{"$nulls":30},"","","","",{"$nulls":60},"",{"$f":"IF($A793=\"\",\"\",IF(VLOOKUP($G793,$H$11:$DN$1000,96,FALSE)=\"\",\"No\",IF(LEFT(VLOOKUP($G793,$H$11:$DN$1000,96,FALSE),3)=\"The\",EF793,VLOOKUP(VLOOKUP($G793,$H$11:$DN$1000,96,FALSE),DeclMatrix!$A$2:$F$5,VLOOKUP('Enrollment Form'!$B793,DeclMatrix!$A$8:$B$12,2,FALSE),FALSE))))","v":""},{"$f":"IF($A793=\"\",\"\",IF(VLOOKUP($G793,$H$11:$DN$1000,101,FALSE)=\"\",\"No\",IF(LEFT(VLOOKUP($G793,$H$11:$DN$1000,101,FALSE),3)=\"The\",EG793,VLOOKUP(VLOOKUP($G793,$H$11:$DN$1000,101,FALSE),DeclMatrix!$A$2:$F$5,VLOOKUP('Enrollment Form'!$B793,DeclMatrix!$A$8:$B$12,2,FALSE),FALSE))))","v":""},{"$f":"IF($A793=\"\",\"\",IF(VLOOKUP($G793,$H$11:$DN$1000,106,FALSE)=\"\",\"No\",IF(LEFT(VLOOKUP($G793,$H$11:$DN$1000,106,FALSE),3)=\"The\",EH793,VLOOKUP(VLOOKUP($G793,$H$11:$DN$1000,106,FALSE),DeclMatrix!$A$2:$F$5,VLOOKUP('Enrollment Form'!$B793,DeclMatrix!$A$8:$B$12,2,FALSE),FALSE))))","v":""},{"$f":"IF($A793=\"\",\"\",IF(VLOOKUP($G793,$H$11:$DN$1000,111,FALSE)=\"\",\"No\",IF(LEFT(VLOOKUP($G793,$H$11:$DN$1000,111,FALSE),3)=\"The\",EI793,VLOOKUP(VLOOKUP($G793,$H$11:$DN$1000,111,FALSE),DeclMatrix!$A$2:$F$5,VLOOKUP('Enrollment Form'!$B793,DeclMatrix!$A$8:$B$12,2,FALSE),FALSE))))","v":""},"",null,"","","","","","","","","","","",""]
["",{"$nulls":5},"","",{"$nulls":18},"","","","",{"$nulls":30},"","","","",{"$nulls":60},"",{"$f":"IF($A794=\"\",\"\",IF(VLOOKUP($G794,$H$11:$DN$1000,96,FALSE)=\"\",\"No\",IF(LEFT(VLOOKUP($G794,$H$11:$DN$1000,96,FALSE),3)=\"The\",EF794,VLOOKUP(VLOOKUP($G794,$H$11:$DN$1000,96,FALSE),DeclMatrix!$A$2:$F$5,VLOOKUP('Enrollment Form'!$B794,DeclMatrix!$A$8:$B$12,2,FALSE),FALSE))))","v":""},{"$f":"IF($A794=\"\",\"\",IF(VLOOKUP($G794,$H$11:$DN$1000,101,FALSE)=\"\",\"No\",IF(LEFT(VLOOKUP($G794,$H$11:$DN$1000,101,FALSE),3)=\"The\",EG794,VLOOKUP(VLOOKUP($G794,$H$11:$DN$1000,101,FALSE),DeclMatrix!$A$2:$F$5,VLOOKUP('Enrollment Form'!$B794,DeclMatrix!$A$8:$B$12,2,FALSE),FALSE))))","v":""},{"$f":"IF($A794=\"\",\"\",IF(VLOOKUP($G794,$H$11:$DN$1000,106,FALSE)=\"\",\"No\",IF(LEFT(VLOOKUP($G794,$H$11:$DN$1000,106,FALSE),3)=\"The\",EH794,VLOOKUP(VLOOKUP($G794,$H$11:$DN$1000,106,FALSE),DeclMatrix!$A$2:$F$5,VLOOKUP('Enrollment Form'!$B794,DeclMatrix!$A$8:$B$12,2,FALSE),FALSE))))","v":""},{"$f":"IF($A794=\"\",\"\",IF(VLOOKUP($G794,$H$11:$DN$1000,111,FALSE)=\"\",\"No\",IF(LEFT(VLOOKUP($G794,$H$11:$DN$1000,111,FALSE),3)=\"The\",EI794,VLOOKUP(VLOOKUP($G794,$H$11:$DN$1000,111,FALSE),DeclMatrix!$A$2:$F$5,VLOOKUP('Enrollment Form'!$B794,DeclMatrix!$A$8:$B$12,2,FALSE),FALSE))))","v":""},"",null,"","","","","","","","","","","",""]
["",{"$nulls":5},"","",{"$nulls":18},"","","","",{"$nulls":30},"","","","",{"$nulls":60},"",{"$f":"IF($A795=\"\",\"\",IF(VLOOKUP($G795,$H$11:$DN$1000,96,FALSE)=\"\",\"No\",IF(LEFT(VLOOKUP($G795,$H$11:$DN$1000,96,FALSE),3)=\"The\",EF795,VLOOKUP(VLOOKUP($G795,$H$11:$DN$1000,96,FALSE),DeclMatrix!$A$2:$F$5,VLOOKUP('Enrollment Form'!$B795,DeclMatrix!$A$8:$B$12,2,FALSE),FALSE))))","v":""},{"$f":"IF($A795=\"\",\"\",IF(VLOOKUP($G795,$H$11:$DN$1000,101,FALSE)=\"\",\"No\",IF(LEFT(VLOOKUP($G795,$H$11:$DN$1000,101,FALSE),3)=\"The\",EG795,VLOOKUP(VLOOKUP($G795,$H$11:$DN$1000,101,FALSE),DeclMatrix!$A$2:$F$5,VLOOKUP('Enrollment Form'!$B795,DeclMatrix!$A$8:$B$12,2,FALSE),FALSE))))","v":""},{"$f":"IF($A795=\"\",\"\",IF(VLOOKUP($G795,$H$11:$DN$1000,106,FALSE)=\"\",\"No\",IF(LEFT(VLOOKUP($G795,$H$11:$DN$1000,106,FALSE),3)=\"The\",EH795,VLOOKUP(VLOOKUP($G795,$H$11:$DN$1000,106,FALSE),DeclMatrix!$A$2:$F$5,VLOOKUP('Enrollment Form'!$B795,DeclMatrix!$A$8:$B$12,2,FALSE),FALSE))))","v":""},{"$f":"IF($A795=\"\",\"\",IF(VLOOKUP($G795,$H$11:$DN$1000,111,FALSE)=\"\",\"No\",IF(LEFT(VLOOKUP($G795,$H$11:$DN$1000,111,FALSE),3)=\"The\",EI795,VLOOKUP(VLOOKUP($G795,$H$11:$DN$1000,111,FALSE),DeclMatrix!$A$2:$F$5,VLOOKUP('Enrollment Form'!$B795,DeclMatrix!$A$8:$B$12,2,FALSE),FALSE))))","v":""},"",null,"","","","","","","","","","","",""]
["",{"$nulls":5},"","",{"$nulls":18},"","","","",{"$nulls":30},"","","","",{"$nulls":60},"",{"$f":"IF($A796=\"\",\"\",IF(VLOOKUP($G796,$H$11:$DN$1000,96,FALSE)=\"\",\"No\",IF(LEFT(VLOOKUP($G796,$H$11:$DN$1000,96,FALSE),3)=\"The\",EF796,VLOOKUP(VLOOKUP($G796,$H$11:$DN$1000,96,FALSE),DeclMatrix!$A$2:$F$5,VLOOKUP('Enrollment Form'!$B796,DeclMatrix!$A$8:$B$12,2,FALSE),FALSE))))","v":""},{"$f":"IF($A796=\"\",\"\",IF(VLOOKUP($G796,$H$11:$DN$1000,101,FALSE)=\"\",\"No\",IF(LEFT(VLOOKUP($G796,$H$11:$DN$1000,101,FALSE),3)=\"The\",EG796,VLOOKUP(VLOOKUP($G796,$H$11:$DN$1000,101,FALSE),DeclMatrix!$A$2:$F$5,VLOOKUP('Enrollment Form'!$B796,DeclMatrix!$A$8:$B$12,2,FALSE),FALSE))))","v":""},{"$f":"IF($A796=\"\",\"\",IF(VLOOKUP($G796,$H$11:$DN$1000,106,FALSE)=\"\",\"No\",IF(LEFT(VLOOKUP($G796,$H$11:$DN$1000,106,FALSE),3)=\"The\",EH796,VLOOKUP(VLOOKUP($G796,$H$11:$DN$1000,106,FALSE),DeclMatrix!$A$2:$F$5,VLOOKUP('Enrollment Form'!$B796,DeclMatrix!$A$8:$B$12,2,FALSE),FALSE))))","v":""},{"$f":"IF($A796=\"\",\"\",IF(VLOOKUP($G796,$H$11:$DN$1000,111,FALSE)=\"\",\"No\",IF(LEFT(VLOOKUP($G796,$H$11:$DN$1000,111,FALSE),3)=\"The\",EI796,VLOOKUP(VLOOKUP($G796,$H$11:$DN$1000,111,FALSE),DeclMatrix!$A$2:$F$5,VLOOKUP('Enrollment Form'!$B796,DeclMatrix!$A$8:$B$12,2,FALSE),FALSE))))","v":""},"",null,"","","","","","","","","","","",""]
["",{"$nulls":5},"","",{"$nulls":18},"","","","",{"$nulls":30},"","","","",{"$nulls":60},"",{"$f":"IF($A797=\"\",\"\",IF(VLOOKUP($G797,$H$11:$DN$1000,96,FALSE)=\"\",\"No\",IF(LEFT(VLOOKUP($G797,$H$11:$DN$1000,96,FALSE),3)=\"The\",EF797,VLOOKUP(VLOOKUP($G797,$H$11:$DN$1000,96,FALSE),DeclMatrix!$A$2:$F$5,VLOOKUP('Enrollment Form'!$B797,DeclMatrix!$A$8:$B$12,2,FALSE),FALSE))))","v":""},{"$f":"IF($A797=\"\",\"\",IF(VLOOKUP($G797,$H$11:$DN$1000,101,FALSE)=\"\",\"No\",IF(LEFT(VLOOKUP($G797,$H$11:$DN$1000,101,FALSE),3)=\"The\",EG797,VLOOKUP(VLOOKUP($G797,$H$11:$DN$1000,101,FALSE),DeclMatrix!$A$2:$F$5,VLOOKUP('Enrollment Form'!$B797,DeclMatrix!$A$8:$B$12,2,FALSE),FALSE))))","v":""},{"$f":"IF($A797=\"\",\"\",IF(VLOOKUP($G797,$H$11:$DN$1000,106,FALSE)=\"\",\"No\",IF(LEFT(VLOOKUP($G797,$H$11:$DN$1000,106,FALSE),3)=\"The\",EH797,VLOOKUP(VLOOKUP($G797,$H$11:$DN$1000,106,FALSE),DeclMatrix!$A$2:$F$5,VLOOKUP('Enrollment Form'!$B797,DeclMatrix!$A$8:$B$12,2,FALSE),FALSE))))","v":""},{"$f":"IF($A797=\"\",\"\",IF(VLOOKUP($G797,$H$11:$DN$1000,111,FALSE)=\"\",\"No\",IF(LEFT(VLOOKUP($G797,$H$11:$DN$1000,111,FALSE),3)=\"The\",EI797,VLOOKUP(VLOOKUP($G797,$H$11:$DN$1000,111,FALSE),DeclMatrix!$A$2:$F$5,VLOOKUP('Enrollment Form'!$B797,DeclMatrix!$A$8:$B$12,2,FALSE),FALSE))))","v":""},"",null,"","","","","","","","","","","",""]
["",{"$nulls":5},"","",{"$nulls":18},"","","","",{"$nulls":30},"","","","",{"$nulls":60},"",{"$f":"IF($A798=\"\",\"\",IF(VLOOKUP($G798,$H$11:$DN$1000,96,FALSE)=\"\",\"No\",IF(LEFT(VLOOKUP($G798,$H$11:$DN$1000,96,FALSE),3)=\"The\",EF798,VLOOKUP(VLOOKUP($G798,$H$11:$DN$1000,96,FALSE),DeclMatrix!$A$2:$F$5,VLOOKUP('Enrollment Form'!$B798,DeclMatrix!$A$8:$B$12,2,FALSE),FALSE))))","v":""},{"$f":"IF($A798=\"\",\"\",IF(VLOOKUP($G798,$H$11:$DN$1000,101,FALSE)=\"\",\"No\",IF(LEFT(VLOOKUP($G798,$H$11:$DN$1000,101,FALSE),3)=\"The\",EG798,VLOOKUP(VLOOKUP($G798,$H$11:$DN$1000,101,FALSE),DeclMatrix!$A$2:$F$5,VLOOKUP('Enrollment Form'!$B798,DeclMatrix!$A$8:$B$12,2,FALSE),FALSE))))","v":""},{"$f":"IF($A798=\"\",\"\",IF(VLOOKUP($G798,$H$11:$DN$1000,106,FALSE)=\"\",\"No\",IF(LEFT(VLOOKUP($G798,$H$11:$DN$1000,106,FALSE),3)=\"The\",EH798,VLOOKUP(VLOOKUP($G798,$H$11:$DN$1000,106,FALSE),DeclMatrix!$A$2:$F$5,VLOOKUP('Enrollment Form'!$B798,DeclMatrix!$A$8:$B$12,2,FALSE),FALSE))))","v":""},{"$f":"IF($A798=\"\",\"\",IF(VLOOKUP($G798,$H$11:$DN$1000,111,FALSE)=\"\",\"No\",IF(LEFT(VLOOKUP($G798,$H$11:$DN$1000,111,FALSE),3)=\"The\",EI798,VLOOKUP(VLOOKUP($G798,$H$11:$DN$1000,111,FALSE),DeclMatrix!$A$2:$F$5,VLOOKUP('Enrollment Form'!$B798,DeclMatrix!$A$8:$B$12,2,FALSE),FALSE))))","v":""},"",null,"","","","","","","","","","","",""]
["",{"$nulls":5},"","",{"$nulls":18},"","","","",{"$nulls":30},"","","","",{"$nulls":60},"",{"$f":"IF($A799=\"\",\"\",IF(VLOOKUP($G799,$H$11:$DN$1000,96,FALSE)=\"\",\"No\",IF(LEFT(VLOOKUP($G799,$H$11:$DN$1000,96,FALSE),3)=\"The\",EF799,VLOOKUP(VLOOKUP($G799,$H$11:$DN$1000,96,FALSE),DeclMatrix!$A$2:$F$5,VLOOKUP('Enrollment Form'!$B799,DeclMatrix!$A$8:$B$12,2,FALSE),FALSE))))","v":""},{"$f":"IF($A799=\"\",\"\",IF(VLOOKUP($G799,$H$11:$DN$1000,101,FALSE)=\"\",\"No\",IF(LEFT(VLOOKUP($G799,$H$11:$DN$1000,101,FALSE),3)=\"The\",EG799,VLOOKUP(VLOOKUP($G799,$H$11:$DN$1000,101,FALSE),DeclMatrix!$A$2:$F$5,VLOOKUP('Enrollment Form'!$B799,DeclMatrix!$A$8:$B$12,2,FALSE),FALSE))))","v":""},{"$f":"IF($A799=\"\",\"\",IF(VLOOKUP($G799,$H$11:$DN$1000,106,FALSE)=\"\",\"No\",IF(LEFT(VLOOKUP($G799,$H$11:$DN$1000,106,FALSE),3)=\"The\",EH799,VLOOKUP(VLOOKUP($G799,$H$11:$DN$1000,106,FALSE),DeclMatrix!$A$2:$F$5,VLOOKUP('Enrollment Form'!$B799,DeclMatrix!$A$8:$B$12,2,FALSE),FALSE))))","v":""},{"$f":"IF($A799=\"\",\"\",IF(VLOOKUP($G799,$H$11:$DN$1000,111,FALSE)=\"\",\"No\",IF(LEFT(VLOOKUP($G799,$H$11:$DN$1000,111,FALSE),3)=\"The\",EI799,VLOOKUP(VLOOKUP($G799,$H$11:$DN$1000,111,FALSE),DeclMatrix!$A$2:$F$5,VLOOKUP('Enrollment Form'!$B799,DeclMatrix!$A$8:$B$12,2,FALSE),FALSE))))","v":""},"",null,"","","","","","","","","","","",""]
["",{"$nulls":5},"","",{"$nulls":18},"","","","",{"$nulls":30},"","","","",{"$nulls":60},"",{"$f":"IF($A800=\"\",\"\",IF(VLOOKUP($G800,$H$11:$DN$1000,96,FALSE)=\"\",\"No\",IF(LEFT(VLOOKUP($G800,$H$11:$DN$1000,96,FALSE),3)=\"The\",EF800,VLOOKUP(VLOOKUP($G800,$H$11:$DN$1000,96,FALSE),DeclMatrix!$A$2:$F$5,VLOOKUP('Enrollment Form'!$B800,DeclMatrix!$A$8:$B$12,2,FALSE),FALSE))))","v":""},{"$f":"IF($A800=\"\",\"\",IF(VLOOKUP($G800,$H$11:$DN$1000,101,FALSE)=\"\",\"No\",IF(LEFT(VLOOKUP($G800,$H$11:$DN$1000,101,FALSE),3)=\"The\",EG800,VLOOKUP(VLOOKUP($G800,$H$11:$DN$1000,101,FALSE),DeclMatrix!$A$2:$F$5,VLOOKUP('Enrollment Form'!$B800,DeclMatrix!$A$8:$B$12,2,FALSE),FALSE))))","v":""},{"$f":"IF($A800=\"\",\"\",IF(VLOOKUP($G800,$H$11:$DN$1000,106,FALSE)=\"\",\"No\",IF(LEFT(VLOOKUP($G800,$H$11:$DN$1000,106,FALSE),3)=\"The\",EH800,VLOOKUP(VLOOKUP($G800,$H$11:$DN$1000,106,FALSE),DeclMatrix!$A$2:$F$5,VLOOKUP('Enrollment Form'!$B800,DeclMatrix!$A$8:$B$12,2,FALSE),FALSE))))","v":""},{"$f":"IF($A800=\"\",\"\",IF(VLOOKUP($G800,$H$11:$DN$1000,111,FALSE)=\"\",\"No\",IF(LEFT(VLOOKUP($G800,$H$11:$DN$1000,111,FALSE),3)=\"The\",EI800,VLOOKUP(VLOOKUP($G800,$H$11:$DN$1000,111,FALSE),DeclMatrix!$A$2:$F$5,VLOOKUP('Enrollment Form'!$B800,DeclMatrix!$A$8:$B$12,2,FALSE),FALSE))))","v":""},"",null,"","","","","","","","","","","",""]
["",{"$nulls":5},"","",{"$nulls":18},"","","","",{"$nulls":30},"","","","",{"$nulls":60},"",{"$f":"IF($A801=\"\",\"\",IF(VLOOKUP($G801,$H$11:$DN$1000,96,FALSE)=\"\",\"No\",IF(LEFT(VLOOKUP($G801,$H$11:$DN$1000,96,FALSE),3)=\"The\",EF801,VLOOKUP(VLOOKUP($G801,$H$11:$DN$1000,96,FALSE),DeclMatrix!$A$2:$F$5,VLOOKUP('Enrollment Form'!$B801,DeclMatrix!$A$8:$B$12,2,FALSE),FALSE))))","v":""},{"$f":"IF($A801=\"\",\"\",IF(VLOOKUP($G801,$H$11:$DN$1000,101,FALSE)=\"\",\"No\",IF(LEFT(VLOOKUP($G801,$H$11:$DN$1000,101,FALSE),3)=\"The\",EG801,VLOOKUP(VLOOKUP($G801,$H$11:$DN$1000,101,FALSE),DeclMatrix!$A$2:$F$5,VLOOKUP('Enrollment Form'!$B801,DeclMatrix!$A$8:$B$12,2,FALSE),FALSE))))","v":""},{"$f":"IF($A801=\"\",\"\",IF(VLOOKUP($G801,$H$11:$DN$1000,106,FALSE)=\"\",\"No\",IF(LEFT(VLOOKUP($G801,$H$11:$DN$1000,106,FALSE),3)=\"The\",EH801,VLOOKUP(VLOOKUP($G801,$H$11:$DN$1000,106,FALSE),DeclMatrix!$A$2:$F$5,VLOOKUP('Enrollment Form'!$B801,DeclMatrix!$A$8:$B$12,2,FALSE),FALSE))))","v":""},{"$f":"IF($A801=\"\",\"\",IF(VLOOKUP($G801,$H$11:$DN$1000,111,FALSE)=\"\",\"No\",IF(LEFT(VLOOKUP($G801,$H$11:$DN$1000,111,FALSE),3)=\"The\",EI801,VLOOKUP(VLOOKUP($G801,$H$11:$DN$1000,111,FALSE),DeclMatrix!$A$2:$F$5,VLOOKUP('Enrollment Form'!$B801,DeclMatrix!$A$8:$B$12,2,FALSE),FALSE))))","v":""},"",null,"","","","","","","","","","","",""]
["",{"$nulls":5},"","",{"$nulls":18},"","","","",{"$nulls":30},"","","","",{"$nulls":60},"",{"$f":"IF($A802=\"\",\"\",IF(VLOOKUP($G802,$H$11:$DN$1000,96,FALSE)=\"\",\"No\",IF(LEFT(VLOOKUP($G802,$H$11:$DN$1000,96,FALSE),3)=\"The\",EF802,VLOOKUP(VLOOKUP($G802,$H$11:$DN$1000,96,FALSE),DeclMatrix!$A$2:$F$5,VLOOKUP('Enrollment Form'!$B802,DeclMatrix!$A$8:$B$12,2,FALSE),FALSE))))","v":""},{"$f":"IF($A802=\"\",\"\",IF(VLOOKUP($G802,$H$11:$DN$1000,101,FALSE)=\"\",\"No\",IF(LEFT(VLOOKUP($G802,$H$11:$DN$1000,101,FALSE),3)=\"The\",EG802,VLOOKUP(VLOOKUP($G802,$H$11:$DN$1000,101,FALSE),DeclMatrix!$A$2:$F$5,VLOOKUP('Enrollment Form'!$B802,DeclMatrix!$A$8:$B$12,2,FALSE),FALSE))))","v":""},{"$f":"IF($A802=\"\",\"\",IF(VLOOKUP($G802,$H$11:$DN$1000,106,FALSE)=\"\",\"No\",IF(LEFT(VLOOKUP($G802,$H$11:$DN$1000,106,FALSE),3)=\"The\",EH802,VLOOKUP(VLOOKUP($G802,$H$11:$DN$1000,106,FALSE),DeclMatrix!$A$2:$F$5,VLOOKUP('Enrollment Form'!$B802,DeclMatrix!$A$8:$B$12,2,FALSE),FALSE))))","v":""},{"$f":"IF($A802=\"\",\"\",IF(VLOOKUP($G802,$H$11:$DN$1000,111,FALSE)=\"\",\"No\",IF(LEFT(VLOOKUP($G802,$H$11:$DN$1000,111,FALSE),3)=\"The\",EI802,VLOOKUP(VLOOKUP($G802,$H$11:$DN$1000,111,FALSE),DeclMatrix!$A$2:$F$5,VLOOKUP('Enrollment Form'!$B802,DeclMatrix!$A$8:$B$12,2,FALSE),FALSE))))","v":""},"",null,"","","","","","","","","","","",""]
["",{"$nulls":5},"","",{"$nulls":18},"","","","",{"$nulls":30},"","","","",{"$nulls":60},"",{"$f":"IF($A803=\"\",\"\",IF(VLOOKUP($G803,$H$11:$DN$1000,96,FALSE)=\"\",\"No\",IF(LEFT(VLOOKUP($G803,$H$11:$DN$1000,96,FALSE),3)=\"The\",EF803,VLOOKUP(VLOOKUP($G803,$H$11:$DN$1000,96,FALSE),DeclMatrix!$A$2:$F$5,VLOOKUP('Enrollment Form'!$B803,DeclMatrix!$A$8:$B$12,2,FALSE),FALSE))))","v":""},{"$f":"IF($A803=\"\",\"\",IF(VLOOKUP($G803,$H$11:$DN$1000,101,FALSE)=\"\",\"No\",IF(LEFT(VLOOKUP($G803,$H$11:$DN$1000,101,FALSE),3)=\"The\",EG803,VLOOKUP(VLOOKUP($G803,$H$11:$DN$1000,101,FALSE),DeclMatrix!$A$2:$F$5,VLOOKUP('Enrollment Form'!$B803,DeclMatrix!$A$8:$B$12,2,FALSE),FALSE))))","v":""},{"$f":"IF($A803=\"\",\"\",IF(VLOOKUP($G803,$H$11:$DN$1000,106,FALSE)=\"\",\"No\",IF(LEFT(VLOOKUP($G803,$H$11:$DN$1000,106,FALSE),3)=\"The\",EH803,VLOOKUP(VLOOKUP($G803,$H$11:$DN$1000,106,FALSE),DeclMatrix!$A$2:$F$5,VLOOKUP('Enrollment Form'!$B803,DeclMatrix!$A$8:$B$12,2,FALSE),FALSE))))","v":""},{"$f":"IF($A803=\"\",\"\",IF(VLOOKUP($G803,$H$11:$DN$1000,111,FALSE)=\"\",\"No\",IF(LEFT(VLOOKUP($G803,$H$11:$DN$1000,111,FALSE),3)=\"The\",EI803,VLOOKUP(VLOOKUP($G803,$H$11:$DN$1000,111,FALSE),DeclMatrix!$A$2:$F$5,VLOOKUP('Enrollment Form'!$B803,DeclMatrix!$A$8:$B$12,2,FALSE),FALSE))))","v":""},"",null,"","","","","","","","","","","",""]
["",{"$nulls":5},"","",{"$nulls":18},"","","","",{"$nulls":30},"","","","",{"$nulls":60},"",{"$f":"IF($A804=\"\",\"\",IF(VLOOKUP($G804,$H$11:$DN$1000,96,FALSE)=\"\",\"No\",IF(LEFT(VLOOKUP($G804,$H$11:$DN$1000,96,FALSE),3)=\"The\",EF804,VLOOKUP(VLOOKUP($G804,$H$11:$DN$1000,96,FALSE),DeclMatrix!$A$2:$F$5,VLOOKUP('Enrollment Form'!$B804,DeclMatrix!$A$8:$B$12,2,FALSE),FALSE))))","v":""},{"$f":"IF($A804=\"\",\"\",IF(VLOOKUP($G804,$H$11:$DN$1000,101,FALSE)=\"\",\"No\",IF(LEFT(VLOOKUP($G804,$H$11:$DN$1000,101,FALSE),3)=\"The\",EG804,VLOOKUP(VLOOKUP($G804,$H$11:$DN$1000,101,FALSE),DeclMatrix!$A$2:$F$5,VLOOKUP('Enrollment Form'!$B804,DeclMatrix!$A$8:$B$12,2,FALSE),FALSE))))","v":""},{"$f":"IF($A804=\"\",\"\",IF(VLOOKUP($G804,$H$11:$DN$1000,106,FALSE)=\"\",\"No\",IF(LEFT(VLOOKUP($G804,$H$11:$DN$1000,106,FALSE),3)=\"The\",EH804,VLOOKUP(VLOOKUP($G804,$H$11:$DN$1000,106,FALSE),DeclMatrix!$A$2:$F$5,VLOOKUP('Enrollment Form'!$B804,DeclMatrix!$A$8:$B$12,2,FALSE),FALSE))))","v":""},{"$f":"IF($A804=\"\",\"\",IF(VLOOKUP($G804,$H$11:$DN$1000,111,FALSE)=\"\",\"No\",IF(LEFT(VLOOKUP($G804,$H$11:$DN$1000,111,FALSE),3)=\"The\",EI804,VLOOKUP(VLOOKUP($G804,$H$11:$DN$1000,111,FALSE),DeclMatrix!$A$2:$F$5,VLOOKUP('Enrollment Form'!$B804,DeclMatrix!$A$8:$B$12,2,FALSE),FALSE))))","v":""},"",null,"","","","","","","","","","","",""]
["",{"$nulls":5},"","",{"$nulls":18},"","","","",{"$nulls":30},"","","","",{"$nulls":60},"",{"$f":"IF($A805=\"\",\"\",IF(VLOOKUP($G805,$H$11:$DN$1000,96,FALSE)=\"\",\"No\",IF(LEFT(VLOOKUP($G805,$H$11:$DN$1000,96,FALSE),3)=\"The\",EF805,VLOOKUP(VLOOKUP($G805,$H$11:$DN$1000,96,FALSE),DeclMatrix!$A$2:$F$5,VLOOKUP('Enrollment Form'!$B805,DeclMatrix!$A$8:$B$12,2,FALSE),FALSE))))","v":""},{"$f":"IF($A805=\"\",\"\",IF(VLOOKUP($G805,$H$11:$DN$1000,101,FALSE)=\"\",\"No\",IF(LEFT(VLOOKUP($G805,$H$11:$DN$1000,101,FALSE),3)=\"The\",EG805,VLOOKUP(VLOOKUP($G805,$H$11:$DN$1000,101,FALSE),DeclMatrix!$A$2:$F$5,VLOOKUP('Enrollment Form'!$B805,DeclMatrix!$A$8:$B$12,2,FALSE),FALSE))))","v":""},{"$f":"IF($A805=\"\",\"\",IF(VLOOKUP($G805,$H$11:$DN$1000,106,FALSE)=\"\",\"No\",IF(LEFT(VLOOKUP($G805,$H$11:$DN$1000,106,FALSE),3)=\"The\",EH805,VLOOKUP(VLOOKUP($G805,$H$11:$DN$1000,106,FALSE),DeclMatrix!$A$2:$F$5,VLOOKUP('Enrollment Form'!$B805,DeclMatrix!$A$8:$B$12,2,FALSE),FALSE))))","v":""},{"$f":"IF($A805=\"\",\"\",IF(VLOOKUP($G805,$H$11:$DN$1000,111,FALSE)=\"\",\"No\",IF(LEFT(VLOOKUP($G805,$H$11:$DN$1000,111,FALSE),3)=\"The\",EI805,VLOOKUP(VLOOKUP($G805,$H$11:$DN$1000,111,FALSE),DeclMatrix!$A$2:$F$5,VLOOKUP('Enrollment Form'!$B805,DeclMatrix!$A$8:$B$12,2,FALSE),FALSE))))","v":""},"",null,"","","","","","","","","","","",""]
["",{"$nulls":5},"","",{"$nulls":18},"","","","",{"$nulls":30},"","","","",{"$nulls":60},"",{"$f":"IF($A806=\"\",\"\",IF(VLOOKUP($G806,$H$11:$DN$1000,96,FALSE)=\"\",\"No\",IF(LEFT(VLOOKUP($G806,$H$11:$DN$1000,96,FALSE),3)=\"The\",EF806,VLOOKUP(VLOOKUP($G806,$H$11:$DN$1000,96,FALSE),DeclMatrix!$A$2:$F$5,VLOOKUP('Enrollment Form'!$B806,DeclMatrix!$A$8:$B$12,2,FALSE),FALSE))))","v":""},{"$f":"IF($A806=\"\",\"\",IF(VLOOKUP($G806,$H$11:$DN$1000,101,FALSE)=\"\",\"No\",IF(LEFT(VLOOKUP($G806,$H$11:$DN$1000,101,FALSE),3)=\"The\",EG806,VLOOKUP(VLOOKUP($G806,$H$11:$DN$1000,101,FALSE),DeclMatrix!$A$2:$F$5,VLOOKUP('Enrollment Form'!$B806,DeclMatrix!$A$8:$B$12,2,FALSE),FALSE))))","v":""},{"$f":"IF($A806=\"\",\"\",IF(VLOOKUP($G806,$H$11:$DN$1000,106,FALSE)=\"\",\"No\",IF(LEFT(VLOOKUP($G806,$H$11:$DN$1000,106,FALSE),3)=\"The\",EH806,VLOOKUP(VLOOKUP($G806,$H$11:$DN$1000,106,FALSE),DeclMatrix!$A$2:$F$5,VLOOKUP('Enrollment Form'!$B806,DeclMatrix!$A$8:$B$12,2,FALSE),FALSE))))","v":""},{"$f":"IF($A806=\"\",\"\",IF(VLOOKUP($G806,$H$11:$DN$1000,111,FALSE)=\"\",\"No\",IF(LEFT(VLOOKUP($G806,$H$11:$DN$1000,111,FALSE),3)=\"The\",EI806,VLOOKUP(VLOOKUP($G806,$H$11:$DN$1000,111,FALSE),DeclMatrix!$A$2:$F$5,VLOOKUP('Enrollment Form'!$B806,DeclMatrix!$A$8:$B$12,2,FALSE),FALSE))))","v":""},"",null,"","","","","","","","","","","",""]
["",{"$nulls":5},"","",{"$nulls":18},"","","","",{"$nulls":30},"","","","",{"$nulls":60},"",{"$f":"IF($A807=\"\",\"\",IF(VLOOKUP($G807,$H$11:$DN$1000,96,FALSE)=\"\",\"No\",IF(LEFT(VLOOKUP($G807,$H$11:$DN$1000,96,FALSE),3)=\"The\",EF807,VLOOKUP(VLOOKUP($G807,$H$11:$DN$1000,96,FALSE),DeclMatrix!$A$2:$F$5,VLOOKUP('Enrollment Form'!$B807,DeclMatrix!$A$8:$B$12,2,FALSE),FALSE))))","v":""},{"$f":"IF($A807=\"\",\"\",IF(VLOOKUP($G807,$H$11:$DN$1000,101,FALSE)=\"\",\"No\",IF(LEFT(VLOOKUP($G807,$H$11:$DN$1000,101,FALSE),3)=\"The\",EG807,VLOOKUP(VLOOKUP($G807,$H$11:$DN$1000,101,FALSE),DeclMatrix!$A$2:$F$5,VLOOKUP('Enrollment Form'!$B807,DeclMatrix!$A$8:$B$12,2,FALSE),FALSE))))","v":""},{"$f":"IF($A807=\"\",\"\",IF(VLOOKUP($G807,$H$11:$DN$1000,106,FALSE)=\"\",\"No\",IF(LEFT(VLOOKUP($G807,$H$11:$DN$1000,106,FALSE),3)=\"The\",EH807,VLOOKUP(VLOOKUP($G807,$H$11:$DN$1000,106,FALSE),DeclMatrix!$A$2:$F$5,VLOOKUP('Enrollment Form'!$B807,DeclMatrix!$A$8:$B$12,2,FALSE),FALSE))))","v":""},{"$f":"IF($A807=\"\",\"\",IF(VLOOKUP($G807,$H$11:$DN$1000,111,FALSE)=\"\",\"No\",IF(LEFT(VLOOKUP($G807,$H$11:$DN$1000,111,FALSE),3)=\"The\",EI807,VLOOKUP(VLOOKUP($G807,$H$11:$DN$1000,111,FALSE),DeclMatrix!$A$2:$F$5,VLOOKUP('Enrollment Form'!$B807,DeclMatrix!$A$8:$B$12,2,FALSE),FALSE))))","v":""},"",null,"","","","","","","","","","","",""]
["",{"$nulls":5},"","",{"$nulls":18},"","","","",{"$nulls":30},"","","","",{"$nulls":60},"",{"$f":"IF($A808=\"\",\"\",IF(VLOOKUP($G808,$H$11:$DN$1000,96,FALSE)=\"\",\"No\",IF(LEFT(VLOOKUP($G808,$H$11:$DN$1000,96,FALSE),3)=\"The\",EF808,VLOOKUP(VLOOKUP($G808,$H$11:$DN$1000,96,FALSE),DeclMatrix!$A$2:$F$5,VLOOKUP('Enrollment Form'!$B808,DeclMatrix!$A$8:$B$12,2,FALSE),FALSE))))","v":""},{"$f":"IF($A808=\"\",\"\",IF(VLOOKUP($G808,$H$11:$DN$1000,101,FALSE)=\"\",\"No\",IF(LEFT(VLOOKUP($G808,$H$11:$DN$1000,101,FALSE),3)=\"The\",EG808,VLOOKUP(VLOOKUP($G808,$H$11:$DN$1000,101,FALSE),DeclMatrix!$A$2:$F$5,VLOOKUP('Enrollment Form'!$B808,DeclMatrix!$A$8:$B$12,2,FALSE),FALSE))))","v":""},{"$f":"IF($A808=\"\",\"\",IF(VLOOKUP($G808,$H$11:$DN$1000,106,FALSE)=\"\",\"No\",IF(LEFT(VLOOKUP($G808,$H$11:$DN$1000,106,FALSE),3)=\"The\",EH808,VLOOKUP(VLOOKUP($G808,$H$11:$DN$1000,106,FALSE),DeclMatrix!$A$2:$F$5,VLOOKUP('Enrollment Form'!$B808,DeclMatrix!$A$8:$B$12,2,FALSE),FALSE))))","v":""},{"$f":"IF($A808=\"\",\"\",IF(VLOOKUP($G808,$H$11:$DN$1000,111,FALSE)=\"\",\"No\",IF(LEFT(VLOOKUP($G808,$H$11:$DN$1000,111,FALSE),3)=\"The\",EI808,VLOOKUP(VLOOKUP($G808,$H$11:$DN$1000,111,FALSE),DeclMatrix!$A$2:$F$5,VLOOKUP('Enrollment Form'!$B808,DeclMatrix!$A$8:$B$12,2,FALSE),FALSE))))","v":""},"",null,"","","","","","","","","","","",""]
["",{"$nulls":5},"","",{"$nulls":18},"","","","",{"$nulls":30},"","","","",{"$nulls":60},"",{"$f":"IF($A809=\"\",\"\",IF(VLOOKUP($G809,$H$11:$DN$1000,96,FALSE)=\"\",\"No\",IF(LEFT(VLOOKUP($G809,$H$11:$DN$1000,96,FALSE),3)=\"The\",EF809,VLOOKUP(VLOOKUP($G809,$H$11:$DN$1000,96,FALSE),DeclMatrix!$A$2:$F$5,VLOOKUP('Enrollment Form'!$B809,DeclMatrix!$A$8:$B$12,2,FALSE),FALSE))))","v":""},{"$f":"IF($A809=\"\",\"\",IF(VLOOKUP($G809,$H$11:$DN$1000,101,FALSE)=\"\",\"No\",IF(LEFT(VLOOKUP($G809,$H$11:$DN$1000,101,FALSE),3)=\"The\",EG809,VLOOKUP(VLOOKUP($G809,$H$11:$DN$1000,101,FALSE),DeclMatrix!$A$2:$F$5,VLOOKUP('Enrollment Form'!$B809,DeclMatrix!$A$8:$B$12,2,FALSE),FALSE))))","v":""},{"$f":"IF($A809=\"\",\"\",IF(VLOOKUP($G809,$H$11:$DN$1000,106,FALSE)=\"\",\"No\",IF(LEFT(VLOOKUP($G809,$H$11:$DN$1000,106,FALSE),3)=\"The\",EH809,VLOOKUP(VLOOKUP($G809,$H$11:$DN$1000,106,FALSE),DeclMatrix!$A$2:$F$5,VLOOKUP('Enrollment Form'!$B809,DeclMatrix!$A$8:$B$12,2,FALSE),FALSE))))","v":""},{"$f":"IF($A809=\"\",\"\",IF(VLOOKUP($G809,$H$11:$DN$1000,111,FALSE)=\"\",\"No\",IF(LEFT(VLOOKUP($G809,$H$11:$DN$1000,111,FALSE),3)=\"The\",EI809,VLOOKUP(VLOOKUP($G809,$H$11:$DN$1000,111,FALSE),DeclMatrix!$A$2:$F$5,VLOOKUP('Enrollment Form'!$B809,DeclMatrix!$A$8:$B$12,2,FALSE),FALSE))))","v":""},"",null,"","","","","","","","","","","",""]
["",{"$nulls":5},"","",{"$nulls":18},"","","","",{"$nulls":30},"","","","",{"$nulls":60},"",{"$f":"IF($A810=\"\",\"\",IF(VLOOKUP($G810,$H$11:$DN$1000,96,FALSE)=\"\",\"No\",IF(LEFT(VLOOKUP($G810,$H$11:$DN$1000,96,FALSE),3)=\"The\",EF810,VLOOKUP(VLOOKUP($G810,$H$11:$DN$1000,96,FALSE),DeclMatrix!$A$2:$F$5,VLOOKUP('Enrollment Form'!$B810,DeclMatrix!$A$8:$B$12,2,FALSE),FALSE))))","v":""},{"$f":"IF($A810=\"\",\"\",IF(VLOOKUP($G810,$H$11:$DN$1000,101,FALSE)=\"\",\"No\",IF(LEFT(VLOOKUP($G810,$H$11:$DN$1000,101,FALSE),3)=\"The\",EG810,VLOOKUP(VLOOKUP($G810,$H$11:$DN$1000,101,FALSE),DeclMatrix!$A$2:$F$5,VLOOKUP('Enrollment Form'!$B810,DeclMatrix!$A$8:$B$12,2,FALSE),FALSE))))","v":""},{"$f":"IF($A810=\"\",\"\",IF(VLOOKUP($G810,$H$11:$DN$1000,106,FALSE)=\"\",\"No\",IF(LEFT(VLOOKUP($G810,$H$11:$DN$1000,106,FALSE),3)=\"The\",EH810,VLOOKUP(VLOOKUP($G810,$H$11:$DN$1000,106,FALSE),DeclMatrix!$A$2:$F$5,VLOOKUP('Enrollment Form'!$B810,DeclMatrix!$A$8:$B$12,2,FALSE),FALSE))))","v":""},{"$f":"IF($A810=\"\",\"\",IF(VLOOKUP($G810,$H$11:$DN$1000,111,FALSE)=\"\",\"No\",IF(LEFT(VLOOKUP($G810,$H$11:$DN$1000,111,FALSE),3)=\"The\",EI810,VLOOKUP(VLOOKUP($G810,$H$11:$DN$1000,111,FALSE),DeclMatrix!$A$2:$F$5,VLOOKUP('Enrollment Form'!$B810,DeclMatrix!$A$8:$B$12,2,FALSE),FALSE))))","v":""},"",null,"","","","","","","","","","","",""]
["",{"$nulls":5},"","",{"$nulls":18},"","","","",{"$nulls":30},"","","","",{"$nulls":60},"",{"$f":"IF($A811=\"\",\"\",IF(VLOOKUP($G811,$H$11:$DN$1000,96,FALSE)=\"\",\"No\",IF(LEFT(VLOOKUP($G811,$H$11:$DN$1000,96,FALSE),3)=\"The\",EF811,VLOOKUP(VLOOKUP($G811,$H$11:$DN$1000,96,FALSE),DeclMatrix!$A$2:$F$5,VLOOKUP('Enrollment Form'!$B811,DeclMatrix!$A$8:$B$12,2,FALSE),FALSE))))","v":""},{"$f":"IF($A811=\"\",\"\",IF(VLOOKUP($G811,$H$11:$DN$1000,101,FALSE)=\"\",\"No\",IF(LEFT(VLOOKUP($G811,$H$11:$DN$1000,101,FALSE),3)=\"The\",EG811,VLOOKUP(VLOOKUP($G811,$H$11:$DN$1000,101,FALSE),DeclMatrix!$A$2:$F$5,VLOOKUP('Enrollment Form'!$B811,DeclMatrix!$A$8:$B$12,2,FALSE),FALSE))))","v":""},{"$f":"IF($A811=\"\",\"\",IF(VLOOKUP($G811,$H$11:$DN$1000,106,FALSE)=\"\",\"No\",IF(LEFT(VLOOKUP($G811,$H$11:$DN$1000,106,FALSE),3)=\"The\",EH811,VLOOKUP(VLOOKUP($G811,$H$11:$DN$1000,106,FALSE),DeclMatrix!$A$2:$F$5,VLOOKUP('Enrollment Form'!$B811,DeclMatrix!$A$8:$B$12,2,FALSE),FALSE))))","v":""},{"$f":"IF($A811=\"\",\"\",IF(VLOOKUP($G811,$H$11:$DN$1000,111,FALSE)=\"\",\"No\",IF(LEFT(VLOOKUP($G811,$H$11:$DN$1000,111,FALSE),3)=\"The\",EI811,VLOOKUP(VLOOKUP($G811,$H$11:$DN$1000,111,FALSE),DeclMatrix!$A$2:$F$5,VLOOKUP('Enrollment Form'!$B811,DeclMatrix!$A$8:$B$12,2,FALSE),FALSE))))","v":""},"",null,"","","","","","","","","","","",""]
["",{"$nulls":5},"","",{"$nulls":18},"","","","",{"$nulls":30},"","","","",{"$nulls":60},"",{"$f":"IF($A812=\"\",\"\",IF(VLOOKUP($G812,$H$11:$DN$1000,96,FALSE)=\"\",\"No\",IF(LEFT(VLOOKUP($G812,$H$11:$DN$1000,96,FALSE),3)=\"The\",EF812,VLOOKUP(VLOOKUP($G812,$H$11:$DN$1000,96,FALSE),DeclMatrix!$A$2:$F$5,VLOOKUP('Enrollment Form'!$B812,DeclMatrix!$A$8:$B$12,2,FALSE),FALSE))))","v":""},{"$f":"IF($A812=\"\",\"\",IF(VLOOKUP($G812,$H$11:$DN$1000,101,FALSE)=\"\",\"No\",IF(LEFT(VLOOKUP($G812,$H$11:$DN$1000,101,FALSE),3)=\"The\",EG812,VLOOKUP(VLOOKUP($G812,$H$11:$DN$1000,101,FALSE),DeclMatrix!$A$2:$F$5,VLOOKUP('Enrollment Form'!$B812,DeclMatrix!$A$8:$B$12,2,FALSE),FALSE))))","v":""},{"$f":"IF($A812=\"\",\"\",IF(VLOOKUP($G812,$H$11:$DN$1000,106,FALSE)=\"\",\"No\",IF(LEFT(VLOOKUP($G812,$H$11:$DN$1000,106,FALSE),3)=\"The\",EH812,VLOOKUP(VLOOKUP($G812,$H$11:$DN$1000,106,FALSE),DeclMatrix!$A$2:$F$5,VLOOKUP('Enrollment Form'!$B812,DeclMatrix!$A$8:$B$12,2,FALSE),FALSE))))","v":""},{"$f":"IF($A812=\"\",\"\",IF(VLOOKUP($G812,$H$11:$DN$1000,111,FALSE)=\"\",\"No\",IF(LEFT(VLOOKUP($G812,$H$11:$DN$1000,111,FALSE),3)=\"The\",EI812,VLOOKUP(VLOOKUP($G812,$H$11:$DN$1000,111,FALSE),DeclMatrix!$A$2:$F$5,VLOOKUP('Enrollment Form'!$B812,DeclMatrix!$A$8:$B$12,2,FALSE),FALSE))))","v":""},"",null,"","","","","","","","","","","",""]
["",{"$nulls":5},"","",{"$nulls":18},"","","","",{"$nulls":30},"","","","",{"$nulls":60},"",{"$f":"IF($A813=\"\",\"\",IF(VLOOKUP($G813,$H$11:$DN$1000,96,FALSE)=\"\",\"No\",IF(LEFT(VLOOKUP($G813,$H$11:$DN$1000,96,FALSE),3)=\"The\",EF813,VLOOKUP(VLOOKUP($G813,$H$11:$DN$1000,96,FALSE),DeclMatrix!$A$2:$F$5,VLOOKUP('Enrollment Form'!$B813,DeclMatrix!$A$8:$B$12,2,FALSE),FALSE))))","v":""},{"$f":"IF($A813=\"\",\"\",IF(VLOOKUP($G813,$H$11:$DN$1000,101,FALSE)=\"\",\"No\",IF(LEFT(VLOOKUP($G813,$H$11:$DN$1000,101,FALSE),3)=\"The\",EG813,VLOOKUP(VLOOKUP($G813,$H$11:$DN$1000,101,FALSE),DeclMatrix!$A$2:$F$5,VLOOKUP('Enrollment Form'!$B813,DeclMatrix!$A$8:$B$12,2,FALSE),FALSE))))","v":""},{"$f":"IF($A813=\"\",\"\",IF(VLOOKUP($G813,$H$11:$DN$1000,106,FALSE)=\"\",\"No\",IF(LEFT(VLOOKUP($G813,$H$11:$DN$1000,106,FALSE),3)=\"The\",EH813,VLOOKUP(VLOOKUP($G813,$H$11:$DN$1000,106,FALSE),DeclMatrix!$A$2:$F$5,VLOOKUP('Enrollment Form'!$B813,DeclMatrix!$A$8:$B$12,2,FALSE),FALSE))))","v":""},{"$f":"IF($A813=\"\",\"\",IF(VLOOKUP($G813,$H$11:$DN$1000,111,FALSE)=\"\",\"No\",IF(LEFT(VLOOKUP($G813,$H$11:$DN$1000,111,FALSE),3)=\"The\",EI813,VLOOKUP(VLOOKUP($G813,$H$11:$DN$1000,111,FALSE),DeclMatrix!$A$2:$F$5,VLOOKUP('Enrollment Form'!$B813,DeclMatrix!$A$8:$B$12,2,FALSE),FALSE))))","v":""},"",null,"","","","","","","","","","","",""]
["",{"$nulls":5},"","",{"$nulls":18},"","","","",{"$nulls":30},"","","","",{"$nulls":60},"",{"$f":"IF($A814=\"\",\"\",IF(VLOOKUP($G814,$H$11:$DN$1000,96,FALSE)=\"\",\"No\",IF(LEFT(VLOOKUP($G814,$H$11:$DN$1000,96,FALSE),3)=\"The\",EF814,VLOOKUP(VLOOKUP($G814,$H$11:$DN$1000,96,FALSE),DeclMatrix!$A$2:$F$5,VLOOKUP('Enrollment Form'!$B814,DeclMatrix!$A$8:$B$12,2,FALSE),FALSE))))","v":""},{"$f":"IF($A814=\"\",\"\",IF(VLOOKUP($G814,$H$11:$DN$1000,101,FALSE)=\"\",\"No\",IF(LEFT(VLOOKUP($G814,$H$11:$DN$1000,101,FALSE),3)=\"The\",EG814,VLOOKUP(VLOOKUP($G814,$H$11:$DN$1000,101,FALSE),DeclMatrix!$A$2:$F$5,VLOOKUP('Enrollment Form'!$B814,DeclMatrix!$A$8:$B$12,2,FALSE),FALSE))))","v":""},{"$f":"IF($A814=\"\",\"\",IF(VLOOKUP($G814,$H$11:$DN$1000,106,FALSE)=\"\",\"No\",IF(LEFT(VLOOKUP($G814,$H$11:$DN$1000,106,FALSE),3)=\"The\",EH814,VLOOKUP(VLOOKUP($G814,$H$11:$DN$1000,106,FALSE),DeclMatrix!$A$2:$F$5,VLOOKUP('Enrollment Form'!$B814,DeclMatrix!$A$8:$B$12,2,FALSE),FALSE))))","v":""},{"$f":"IF($A814=\"\",\"\",IF(VLOOKUP($G814,$H$11:$DN$1000,111,FALSE)=\"\",\"No\",IF(LEFT(VLOOKUP($G814,$H$11:$DN$1000,111,FALSE),3)=\"The\",EI814,VLOOKUP(VLOOKUP($G814,$H$11:$DN$1000,111,FALSE),DeclMatrix!$A$2:$F$5,VLOOKUP('Enrollment Form'!$B814,DeclMatrix!$A$8:$B$12,2,FALSE),FALSE))))","v":""},"",null,"","","","","","","","","","","",""]
["",{"$nulls":5},"","",{"$nulls":18},"","","","",{"$nulls":30},"","","","",{"$nulls":60},"",{"$f":"IF($A815=\"\",\"\",IF(VLOOKUP($G815,$H$11:$DN$1000,96,FALSE)=\"\",\"No\",IF(LEFT(VLOOKUP($G815,$H$11:$DN$1000,96,FALSE),3)=\"The\",EF815,VLOOKUP(VLOOKUP($G815,$H$11:$DN$1000,96,FALSE),DeclMatrix!$A$2:$F$5,VLOOKUP('Enrollment Form'!$B815,DeclMatrix!$A$8:$B$12,2,FALSE),FALSE))))","v":""},{"$f":"IF($A815=\"\",\"\",IF(VLOOKUP($G815,$H$11:$DN$1000,101,FALSE)=\"\",\"No\",IF(LEFT(VLOOKUP($G815,$H$11:$DN$1000,101,FALSE),3)=\"The\",EG815,VLOOKUP(VLOOKUP($G815,$H$11:$DN$1000,101,FALSE),DeclMatrix!$A$2:$F$5,VLOOKUP('Enrollment Form'!$B815,DeclMatrix!$A$8:$B$12,2,FALSE),FALSE))))","v":""},{"$f":"IF($A815=\"\",\"\",IF(VLOOKUP($G815,$H$11:$DN$1000,106,FALSE)=\"\",\"No\",IF(LEFT(VLOOKUP($G815,$H$11:$DN$1000,106,FALSE),3)=\"The\",EH815,VLOOKUP(VLOOKUP($G815,$H$11:$DN$1000,106,FALSE),DeclMatrix!$A$2:$F$5,VLOOKUP('Enrollment Form'!$B815,DeclMatrix!$A$8:$B$12,2,FALSE),FALSE))))","v":""},{"$f":"IF($A815=\"\",\"\",IF(VLOOKUP($G815,$H$11:$DN$1000,111,FALSE)=\"\",\"No\",IF(LEFT(VLOOKUP($G815,$H$11:$DN$1000,111,FALSE),3)=\"The\",EI815,VLOOKUP(VLOOKUP($G815,$H$11:$DN$1000,111,FALSE),DeclMatrix!$A$2:$F$5,VLOOKUP('Enrollment Form'!$B815,DeclMatrix!$A$8:$B$12,2,FALSE),FALSE))))","v":""},"",null,"","","","","","","","","","","",""]
["",{"$nulls":5},"","",{"$nulls":18},"","","","",{"$nulls":30},"","","","",{"$nulls":60},"",{"$f":"IF($A816=\"\",\"\",IF(VLOOKUP($G816,$H$11:$DN$1000,96,FALSE)=\"\",\"No\",IF(LEFT(VLOOKUP($G816,$H$11:$DN$1000,96,FALSE),3)=\"The\",EF816,VLOOKUP(VLOOKUP($G816,$H$11:$DN$1000,96,FALSE),DeclMatrix!$A$2:$F$5,VLOOKUP('Enrollment Form'!$B816,DeclMatrix!$A$8:$B$12,2,FALSE),FALSE))))","v":""},{"$f":"IF($A816=\"\",\"\",IF(VLOOKUP($G816,$H$11:$DN$1000,101,FALSE)=\"\",\"No\",IF(LEFT(VLOOKUP($G816,$H$11:$DN$1000,101,FALSE),3)=\"The\",EG816,VLOOKUP(VLOOKUP($G816,$H$11:$DN$1000,101,FALSE),DeclMatrix!$A$2:$F$5,VLOOKUP('Enrollment Form'!$B816,DeclMatrix!$A$8:$B$12,2,FALSE),FALSE))))","v":""},{"$f":"IF($A816=\"\",\"\",IF(VLOOKUP($G816,$H$11:$DN$1000,106,FALSE)=\"\",\"No\",IF(LEFT(VLOOKUP($G816,$H$11:$DN$1000,106,FALSE),3)=\"The\",EH816,VLOOKUP(VLOOKUP($G816,$H$11:$DN$1000,106,FALSE),DeclMatrix!$A$2:$F$5,VLOOKUP('Enrollment Form'!$B816,DeclMatrix!$A$8:$B$12,2,FALSE),FALSE))))","v":""},{"$f":"IF($A816=\"\",\"\",IF(VLOOKUP($G816,$H$11:$DN$1000,111,FALSE)=\"\",\"No\",IF(LEFT(VLOOKUP($G816,$H$11:$DN$1000,111,FALSE),3)=\"The\",EI816,VLOOKUP(VLOOKUP($G816,$H$11:$DN$1000,111,FALSE),DeclMatrix!$A$2:$F$5,VLOOKUP('Enrollment Form'!$B816,DeclMatrix!$A$8:$B$12,2,FALSE),FALSE))))","v":""},"",null,"","","","","","","","","","","",""]
["",{"$nulls":5},"","",{"$nulls":18},"","","","",{"$nulls":30},"","","","",{"$nulls":60},"",{"$f":"IF($A817=\"\",\"\",IF(VLOOKUP($G817,$H$11:$DN$1000,96,FALSE)=\"\",\"No\",IF(LEFT(VLOOKUP($G817,$H$11:$DN$1000,96,FALSE),3)=\"The\",EF817,VLOOKUP(VLOOKUP($G817,$H$11:$DN$1000,96,FALSE),DeclMatrix!$A$2:$F$5,VLOOKUP('Enrollment Form'!$B817,DeclMatrix!$A$8:$B$12,2,FALSE),FALSE))))","v":""},{"$f":"IF($A817=\"\",\"\",IF(VLOOKUP($G817,$H$11:$DN$1000,101,FALSE)=\"\",\"No\",IF(LEFT(VLOOKUP($G817,$H$11:$DN$1000,101,FALSE),3)=\"The\",EG817,VLOOKUP(VLOOKUP($G817,$H$11:$DN$1000,101,FALSE),DeclMatrix!$A$2:$F$5,VLOOKUP('Enrollment Form'!$B817,DeclMatrix!$A$8:$B$12,2,FALSE),FALSE))))","v":""},{"$f":"IF($A817=\"\",\"\",IF(VLOOKUP($G817,$H$11:$DN$1000,106,FALSE)=\"\",\"No\",IF(LEFT(VLOOKUP($G817,$H$11:$DN$1000,106,FALSE),3)=\"The\",EH817,VLOOKUP(VLOOKUP($G817,$H$11:$DN$1000,106,FALSE),DeclMatrix!$A$2:$F$5,VLOOKUP('Enrollment Form'!$B817,DeclMatrix!$A$8:$B$12,2,FALSE),FALSE))))","v":""},{"$f":"IF($A817=\"\",\"\",IF(VLOOKUP($G817,$H$11:$DN$1000,111,FALSE)=\"\",\"No\",IF(LEFT(VLOOKUP($G817,$H$11:$DN$1000,111,FALSE),3)=\"The\",EI817,VLOOKUP(VLOOKUP($G817,$H$11:$DN$1000,111,FALSE),DeclMatrix!$A$2:$F$5,VLOOKUP('Enrollment Form'!$B817,DeclMatrix!$A$8:$B$12,2,FALSE),FALSE))))","v":""},"",null,"","","","","","","","","","","",""]
["",{"$nulls":5},"","",{"$nulls":18},"","","","",{"$nulls":30},"","","","",{"$nulls":60},"",{"$f":"IF($A818=\"\",\"\",IF(VLOOKUP($G818,$H$11:$DN$1000,96,FALSE)=\"\",\"No\",IF(LEFT(VLOOKUP($G818,$H$11:$DN$1000,96,FALSE),3)=\"The\",EF818,VLOOKUP(VLOOKUP($G818,$H$11:$DN$1000,96,FALSE),DeclMatrix!$A$2:$F$5,VLOOKUP('Enrollment Form'!$B818,DeclMatrix!$A$8:$B$12,2,FALSE),FALSE))))","v":""},{"$f":"IF($A818=\"\",\"\",IF(VLOOKUP($G818,$H$11:$DN$1000,101,FALSE)=\"\",\"No\",IF(LEFT(VLOOKUP($G818,$H$11:$DN$1000,101,FALSE),3)=\"The\",EG818,VLOOKUP(VLOOKUP($G818,$H$11:$DN$1000,101,FALSE),DeclMatrix!$A$2:$F$5,VLOOKUP('Enrollment Form'!$B818,DeclMatrix!$A$8:$B$12,2,FALSE),FALSE))))","v":""},{"$f":"IF($A818=\"\",\"\",IF(VLOOKUP($G818,$H$11:$DN$1000,106,FALSE)=\"\",\"No\",IF(LEFT(VLOOKUP($G818,$H$11:$DN$1000,106,FALSE),3)=\"The\",EH818,VLOOKUP(VLOOKUP($G818,$H$11:$DN$1000,106,FALSE),DeclMatrix!$A$2:$F$5,VLOOKUP('Enrollment Form'!$B818,DeclMatrix!$A$8:$B$12,2,FALSE),FALSE))))","v":""},{"$f":"IF($A818=\"\",\"\",IF(VLOOKUP($G818,$H$11:$DN$1000,111,FALSE)=\"\",\"No\",IF(LEFT(VLOOKUP($G818,$H$11:$DN$1000,111,FALSE),3)=\"The\",EI818,VLOOKUP(VLOOKUP($G818,$H$11:$DN$1000,111,FALSE),DeclMatrix!$A$2:$F$5,VLOOKUP('Enrollment Form'!$B818,DeclMatrix!$A$8:$B$12,2,FALSE),FALSE))))","v":""},"",null,"","","","","","","","","","","",""]
["",{"$nulls":5},"","",{"$nulls":18},"","","","",{"$nulls":30},"","","","",{"$nulls":60},"",{"$f":"IF($A819=\"\",\"\",IF(VLOOKUP($G819,$H$11:$DN$1000,96,FALSE)=\"\",\"No\",IF(LEFT(VLOOKUP($G819,$H$11:$DN$1000,96,FALSE),3)=\"The\",EF819,VLOOKUP(VLOOKUP($G819,$H$11:$DN$1000,96,FALSE),DeclMatrix!$A$2:$F$5,VLOOKUP('Enrollment Form'!$B819,DeclMatrix!$A$8:$B$12,2,FALSE),FALSE))))","v":""},{"$f":"IF($A819=\"\",\"\",IF(VLOOKUP($G819,$H$11:$DN$1000,101,FALSE)=\"\",\"No\",IF(LEFT(VLOOKUP($G819,$H$11:$DN$1000,101,FALSE),3)=\"The\",EG819,VLOOKUP(VLOOKUP($G819,$H$11:$DN$1000,101,FALSE),DeclMatrix!$A$2:$F$5,VLOOKUP('Enrollment Form'!$B819,DeclMatrix!$A$8:$B$12,2,FALSE),FALSE))))","v":""},{"$f":"IF($A819=\"\",\"\",IF(VLOOKUP($G819,$H$11:$DN$1000,106,FALSE)=\"\",\"No\",IF(LEFT(VLOOKUP($G819,$H$11:$DN$1000,106,FALSE),3)=\"The\",EH819,VLOOKUP(VLOOKUP($G819,$H$11:$DN$1000,106,FALSE),DeclMatrix!$A$2:$F$5,VLOOKUP('Enrollment Form'!$B819,DeclMatrix!$A$8:$B$12,2,FALSE),FALSE))))","v":""},{"$f":"IF($A819=\"\",\"\",IF(VLOOKUP($G819,$H$11:$DN$1000,111,FALSE)=\"\",\"No\",IF(LEFT(VLOOKUP($G819,$H$11:$DN$1000,111,FALSE),3)=\"The\",EI819,VLOOKUP(VLOOKUP($G819,$H$11:$DN$1000,111,FALSE),DeclMatrix!$A$2:$F$5,VLOOKUP('Enrollment Form'!$B819,DeclMatrix!$A$8:$B$12,2,FALSE),FALSE))))","v":""},"",null,"","","","","","","","","","","",""]
["",{"$nulls":5},"","",{"$nulls":18},"","","","",{"$nulls":30},"","","","",{"$nulls":60},"",{"$f":"IF($A820=\"\",\"\",IF(VLOOKUP($G820,$H$11:$DN$1000,96,FALSE)=\"\",\"No\",IF(LEFT(VLOOKUP($G820,$H$11:$DN$1000,96,FALSE),3)=\"The\",EF820,VLOOKUP(VLOOKUP($G820,$H$11:$DN$1000,96,FALSE),DeclMatrix!$A$2:$F$5,VLOOKUP('Enrollment Form'!$B820,DeclMatrix!$A$8:$B$12,2,FALSE),FALSE))))","v":""},{"$f":"IF($A820=\"\",\"\",IF(VLOOKUP($G820,$H$11:$DN$1000,101,FALSE)=\"\",\"No\",IF(LEFT(VLOOKUP($G820,$H$11:$DN$1000,101,FALSE),3)=\"The\",EG820,VLOOKUP(VLOOKUP($G820,$H$11:$DN$1000,101,FALSE),DeclMatrix!$A$2:$F$5,VLOOKUP('Enrollment Form'!$B820,DeclMatrix!$A$8:$B$12,2,FALSE),FALSE))))","v":""},{"$f":"IF($A820=\"\",\"\",IF(VLOOKUP($G820,$H$11:$DN$1000,106,FALSE)=\"\",\"No\",IF(LEFT(VLOOKUP($G820,$H$11:$DN$1000,106,FALSE),3)=\"The\",EH820,VLOOKUP(VLOOKUP($G820,$H$11:$DN$1000,106,FALSE),DeclMatrix!$A$2:$F$5,VLOOKUP('Enrollment Form'!$B820,DeclMatrix!$A$8:$B$12,2,FALSE),FALSE))))","v":""},{"$f":"IF($A820=\"\",\"\",IF(VLOOKUP($G820,$H$11:$DN$1000,111,FALSE)=\"\",\"No\",IF(LEFT(VLOOKUP($G820,$H$11:$DN$1000,111,FALSE),3)=\"The\",EI820,VLOOKUP(VLOOKUP($G820,$H$11:$DN$1000,111,FALSE),DeclMatrix!$A$2:$F$5,VLOOKUP('Enrollment Form'!$B820,DeclMatrix!$A$8:$B$12,2,FALSE),FALSE))))","v":""},"",null,"","","","","","","","","","","",""]
["",{"$nulls":5},"","",{"$nulls":18},"","","","",{"$nulls":30},"","","","",{"$nulls":60},"",{"$f":"IF($A821=\"\",\"\",IF(VLOOKUP($G821,$H$11:$DN$1000,96,FALSE)=\"\",\"No\",IF(LEFT(VLOOKUP($G821,$H$11:$DN$1000,96,FALSE),3)=\"The\",EF821,VLOOKUP(VLOOKUP($G821,$H$11:$DN$1000,96,FALSE),DeclMatrix!$A$2:$F$5,VLOOKUP('Enrollment Form'!$B821,DeclMatrix!$A$8:$B$12,2,FALSE),FALSE))))","v":""},{"$f":"IF($A821=\"\",\"\",IF(VLOOKUP($G821,$H$11:$DN$1000,101,FALSE)=\"\",\"No\",IF(LEFT(VLOOKUP($G821,$H$11:$DN$1000,101,FALSE),3)=\"The\",EG821,VLOOKUP(VLOOKUP($G821,$H$11:$DN$1000,101,FALSE),DeclMatrix!$A$2:$F$5,VLOOKUP('Enrollment Form'!$B821,DeclMatrix!$A$8:$B$12,2,FALSE),FALSE))))","v":""},{"$f":"IF($A821=\"\",\"\",IF(VLOOKUP($G821,$H$11:$DN$1000,106,FALSE)=\"\",\"No\",IF(LEFT(VLOOKUP($G821,$H$11:$DN$1000,106,FALSE),3)=\"The\",EH821,VLOOKUP(VLOOKUP($G821,$H$11:$DN$1000,106,FALSE),DeclMatrix!$A$2:$F$5,VLOOKUP('Enrollment Form'!$B821,DeclMatrix!$A$8:$B$12,2,FALSE),FALSE))))","v":""},{"$f":"IF($A821=\"\",\"\",IF(VLOOKUP($G821,$H$11:$DN$1000,111,FALSE)=\"\",\"No\",IF(LEFT(VLOOKUP($G821,$H$11:$DN$1000,111,FALSE),3)=\"The\",EI821,VLOOKUP(VLOOKUP($G821,$H$11:$DN$1000,111,FALSE),DeclMatrix!$A$2:$F$5,VLOOKUP('Enrollment Form'!$B821,DeclMatrix!$A$8:$B$12,2,FALSE),FALSE))))","v":""},"",null,"","","","","","","","","","","",""]
["",{"$nulls":5},"","",{"$nulls":18},"","","","",{"$nulls":30},"","","","",{"$nulls":60},"",{"$f":"IF($A822=\"\",\"\",IF(VLOOKUP($G822,$H$11:$DN$1000,96,FALSE)=\"\",\"No\",IF(LEFT(VLOOKUP($G822,$H$11:$DN$1000,96,FALSE),3)=\"The\",EF822,VLOOKUP(VLOOKUP($G822,$H$11:$DN$1000,96,FALSE),DeclMatrix!$A$2:$F$5,VLOOKUP('Enrollment Form'!$B822,DeclMatrix!$A$8:$B$12,2,FALSE),FALSE))))","v":""},{"$f":"IF($A822=\"\",\"\",IF(VLOOKUP($G822,$H$11:$DN$1000,101,FALSE)=\"\",\"No\",IF(LEFT(VLOOKUP($G822,$H$11:$DN$1000,101,FALSE),3)=\"The\",EG822,VLOOKUP(VLOOKUP($G822,$H$11:$DN$1000,101,FALSE),DeclMatrix!$A$2:$F$5,VLOOKUP('Enrollment Form'!$B822,DeclMatrix!$A$8:$B$12,2,FALSE),FALSE))))","v":""},{"$f":"IF($A822=\"\",\"\",IF(VLOOKUP($G822,$H$11:$DN$1000,106,FALSE)=\"\",\"No\",IF(LEFT(VLOOKUP($G822,$H$11:$DN$1000,106,FALSE),3)=\"The\",EH822,VLOOKUP(VLOOKUP($G822,$H$11:$DN$1000,106,FALSE),DeclMatrix!$A$2:$F$5,VLOOKUP('Enrollment Form'!$B822,DeclMatrix!$A$8:$B$12,2,FALSE),FALSE))))","v":""},{"$f":"IF($A822=\"\",\"\",IF(VLOOKUP($G822,$H$11:$DN$1000,111,FALSE)=\"\",\"No\",IF(LEFT(VLOOKUP($G822,$H$11:$DN$1000,111,FALSE),3)=\"The\",EI822,VLOOKUP(VLOOKUP($G822,$H$11:$DN$1000,111,FALSE),DeclMatrix!$A$2:$F$5,VLOOKUP('Enrollment Form'!$B822,DeclMatrix!$A$8:$B$12,2,FALSE),FALSE))))","v":""},"",null,"","","","","","","","","","","",""]
["",{"$nulls":5},"","",{"$nulls":18},"","","","",{"$nulls":30},"","","","",{"$nulls":60},"",{"$f":"IF($A823=\"\",\"\",IF(VLOOKUP($G823,$H$11:$DN$1000,96,FALSE)=\"\",\"No\",IF(LEFT(VLOOKUP($G823,$H$11:$DN$1000,96,FALSE),3)=\"The\",EF823,VLOOKUP(VLOOKUP($G823,$H$11:$DN$1000,96,FALSE),DeclMatrix!$A$2:$F$5,VLOOKUP('Enrollment Form'!$B823,DeclMatrix!$A$8:$B$12,2,FALSE),FALSE))))","v":""},{"$f":"IF($A823=\"\",\"\",IF(VLOOKUP($G823,$H$11:$DN$1000,101,FALSE)=\"\",\"No\",IF(LEFT(VLOOKUP($G823,$H$11:$DN$1000,101,FALSE),3)=\"The\",EG823,VLOOKUP(VLOOKUP($G823,$H$11:$DN$1000,101,FALSE),DeclMatrix!$A$2:$F$5,VLOOKUP('Enrollment Form'!$B823,DeclMatrix!$A$8:$B$12,2,FALSE),FALSE))))","v":""},{"$f":"IF($A823=\"\",\"\",IF(VLOOKUP($G823,$H$11:$DN$1000,106,FALSE)=\"\",\"No\",IF(LEFT(VLOOKUP($G823,$H$11:$DN$1000,106,FALSE),3)=\"The\",EH823,VLOOKUP(VLOOKUP($G823,$H$11:$DN$1000,106,FALSE),DeclMatrix!$A$2:$F$5,VLOOKUP('Enrollment Form'!$B823,DeclMatrix!$A$8:$B$12,2,FALSE),FALSE))))","v":""},{"$f":"IF($A823=\"\",\"\",IF(VLOOKUP($G823,$H$11:$DN$1000,111,FALSE)=\"\",\"No\",IF(LEFT(VLOOKUP($G823,$H$11:$DN$1000,111,FALSE),3)=\"The\",EI823,VLOOKUP(VLOOKUP($G823,$H$11:$DN$1000,111,FALSE),DeclMatrix!$A$2:$F$5,VLOOKUP('Enrollment Form'!$B823,DeclMatrix!$A$8:$B$12,2,FALSE),FALSE))))","v":""},"",null,"","","","","","","","","","","",""]
["",{"$nulls":5},"","",{"$nulls":18},"","","","",{"$nulls":30},"","","","",{"$nulls":60},"",{"$f":"IF($A824=\"\",\"\",IF(VLOOKUP($G824,$H$11:$DN$1000,96,FALSE)=\"\",\"No\",IF(LEFT(VLOOKUP($G824,$H$11:$DN$1000,96,FALSE),3)=\"The\",EF824,VLOOKUP(VLOOKUP($G824,$H$11:$DN$1000,96,FALSE),DeclMatrix!$A$2:$F$5,VLOOKUP('Enrollment Form'!$B824,DeclMatrix!$A$8:$B$12,2,FALSE),FALSE))))","v":""},{"$f":"IF($A824=\"\",\"\",IF(VLOOKUP($G824,$H$11:$DN$1000,101,FALSE)=\"\",\"No\",IF(LEFT(VLOOKUP($G824,$H$11:$DN$1000,101,FALSE),3)=\"The\",EG824,VLOOKUP(VLOOKUP($G824,$H$11:$DN$1000,101,FALSE),DeclMatrix!$A$2:$F$5,VLOOKUP('Enrollment Form'!$B824,DeclMatrix!$A$8:$B$12,2,FALSE),FALSE))))","v":""},{"$f":"IF($A824=\"\",\"\",IF(VLOOKUP($G824,$H$11:$DN$1000,106,FALSE)=\"\",\"No\",IF(LEFT(VLOOKUP($G824,$H$11:$DN$1000,106,FALSE),3)=\"The\",EH824,VLOOKUP(VLOOKUP($G824,$H$11:$DN$1000,106,FALSE),DeclMatrix!$A$2:$F$5,VLOOKUP('Enrollment Form'!$B824,DeclMatrix!$A$8:$B$12,2,FALSE),FALSE))))","v":""},{"$f":"IF($A824=\"\",\"\",IF(VLOOKUP($G824,$H$11:$DN$1000,111,FALSE)=\"\",\"No\",IF(LEFT(VLOOKUP($G824,$H$11:$DN$1000,111,FALSE),3)=\"The\",EI824,VLOOKUP(VLOOKUP($G824,$H$11:$DN$1000,111,FALSE),DeclMatrix!$A$2:$F$5,VLOOKUP('Enrollment Form'!$B824,DeclMatrix!$A$8:$B$12,2,FALSE),FALSE))))","v":""},"",null,"","","","","","","","","","","",""]
["",{"$nulls":5},"","",{"$nulls":18},"","","","",{"$nulls":30},"","","","",{"$nulls":60},"",{"$f":"IF($A825=\"\",\"\",IF(VLOOKUP($G825,$H$11:$DN$1000,96,FALSE)=\"\",\"No\",IF(LEFT(VLOOKUP($G825,$H$11:$DN$1000,96,FALSE),3)=\"The\",EF825,VLOOKUP(VLOOKUP($G825,$H$11:$DN$1000,96,FALSE),DeclMatrix!$A$2:$F$5,VLOOKUP('Enrollment Form'!$B825,DeclMatrix!$A$8:$B$12,2,FALSE),FALSE))))","v":""},{"$f":"IF($A825=\"\",\"\",IF(VLOOKUP($G825,$H$11:$DN$1000,101,FALSE)=\"\",\"No\",IF(LEFT(VLOOKUP($G825,$H$11:$DN$1000,101,FALSE),3)=\"The\",EG825,VLOOKUP(VLOOKUP($G825,$H$11:$DN$1000,101,FALSE),DeclMatrix!$A$2:$F$5,VLOOKUP('Enrollment Form'!$B825,DeclMatrix!$A$8:$B$12,2,FALSE),FALSE))))","v":""},{"$f":"IF($A825=\"\",\"\",IF(VLOOKUP($G825,$H$11:$DN$1000,106,FALSE)=\"\",\"No\",IF(LEFT(VLOOKUP($G825,$H$11:$DN$1000,106,FALSE),3)=\"The\",EH825,VLOOKUP(VLOOKUP($G825,$H$11:$DN$1000,106,FALSE),DeclMatrix!$A$2:$F$5,VLOOKUP('Enrollment Form'!$B825,DeclMatrix!$A$8:$B$12,2,FALSE),FALSE))))","v":""},{"$f":"IF($A825=\"\",\"\",IF(VLOOKUP($G825,$H$11:$DN$1000,111,FALSE)=\"\",\"No\",IF(LEFT(VLOOKUP($G825,$H$11:$DN$1000,111,FALSE),3)=\"The\",EI825,VLOOKUP(VLOOKUP($G825,$H$11:$DN$1000,111,FALSE),DeclMatrix!$A$2:$F$5,VLOOKUP('Enrollment Form'!$B825,DeclMatrix!$A$8:$B$12,2,FALSE),FALSE))))","v":""},"",null,"","","","","","","","","","","",""]
["",{"$nulls":5},"","",{"$nulls":18},"","","","",{"$nulls":30},"","","","",{"$nulls":60},"",{"$f":"IF($A826=\"\",\"\",IF(VLOOKUP($G826,$H$11:$DN$1000,96,FALSE)=\"\",\"No\",IF(LEFT(VLOOKUP($G826,$H$11:$DN$1000,96,FALSE),3)=\"The\",EF826,VLOOKUP(VLOOKUP($G826,$H$11:$DN$1000,96,FALSE),DeclMatrix!$A$2:$F$5,VLOOKUP('Enrollment Form'!$B826,DeclMatrix!$A$8:$B$12,2,FALSE),FALSE))))","v":""},{"$f":"IF($A826=\"\",\"\",IF(VLOOKUP($G826,$H$11:$DN$1000,101,FALSE)=\"\",\"No\",IF(LEFT(VLOOKUP($G826,$H$11:$DN$1000,101,FALSE),3)=\"The\",EG826,VLOOKUP(VLOOKUP($G826,$H$11:$DN$1000,101,FALSE),DeclMatrix!$A$2:$F$5,VLOOKUP('Enrollment Form'!$B826,DeclMatrix!$A$8:$B$12,2,FALSE),FALSE))))","v":""},{"$f":"IF($A826=\"\",\"\",IF(VLOOKUP($G826,$H$11:$DN$1000,106,FALSE)=\"\",\"No\",IF(LEFT(VLOOKUP($G826,$H$11:$DN$1000,106,FALSE),3)=\"The\",EH826,VLOOKUP(VLOOKUP($G826,$H$11:$DN$1000,106,FALSE),DeclMatrix!$A$2:$F$5,VLOOKUP('Enrollment Form'!$B826,DeclMatrix!$A$8:$B$12,2,FALSE),FALSE))))","v":""},{"$f":"IF($A826=\"\",\"\",IF(VLOOKUP($G826,$H$11:$DN$1000,111,FALSE)=\"\",\"No\",IF(LEFT(VLOOKUP($G826,$H$11:$DN$1000,111,FALSE),3)=\"The\",EI826,VLOOKUP(VLOOKUP($G826,$H$11:$DN$1000,111,FALSE),DeclMatrix!$A$2:$F$5,VLOOKUP('Enrollment Form'!$B826,DeclMatrix!$A$8:$B$12,2,FALSE),FALSE))))","v":""},"",null,"","","","","","","","","","","",""]
["",{"$nulls":5},"","",{"$nulls":18},"","","","",{"$nulls":30},"","","","",{"$nulls":60},"",{"$f":"IF($A827=\"\",\"\",IF(VLOOKUP($G827,$H$11:$DN$1000,96,FALSE)=\"\",\"No\",IF(LEFT(VLOOKUP($G827,$H$11:$DN$1000,96,FALSE),3)=\"The\",EF827,VLOOKUP(VLOOKUP($G827,$H$11:$DN$1000,96,FALSE),DeclMatrix!$A$2:$F$5,VLOOKUP('Enrollment Form'!$B827,DeclMatrix!$A$8:$B$12,2,FALSE),FALSE))))","v":""},{"$f":"IF($A827=\"\",\"\",IF(VLOOKUP($G827,$H$11:$DN$1000,101,FALSE)=\"\",\"No\",IF(LEFT(VLOOKUP($G827,$H$11:$DN$1000,101,FALSE),3)=\"The\",EG827,VLOOKUP(VLOOKUP($G827,$H$11:$DN$1000,101,FALSE),DeclMatrix!$A$2:$F$5,VLOOKUP('Enrollment Form'!$B827,DeclMatrix!$A$8:$B$12,2,FALSE),FALSE))))","v":""},{"$f":"IF($A827=\"\",\"\",IF(VLOOKUP($G827,$H$11:$DN$1000,106,FALSE)=\"\",\"No\",IF(LEFT(VLOOKUP($G827,$H$11:$DN$1000,106,FALSE),3)=\"The\",EH827,VLOOKUP(VLOOKUP($G827,$H$11:$DN$1000,106,FALSE),DeclMatrix!$A$2:$F$5,VLOOKUP('Enrollment Form'!$B827,DeclMatrix!$A$8:$B$12,2,FALSE),FALSE))))","v":""},{"$f":"IF($A827=\"\",\"\",IF(VLOOKUP($G827,$H$11:$DN$1000,111,FALSE)=\"\",\"No\",IF(LEFT(VLOOKUP($G827,$H$11:$DN$1000,111,FALSE),3)=\"The\",EI827,VLOOKUP(VLOOKUP($G827,$H$11:$DN$1000,111,FALSE),DeclMatrix!$A$2:$F$5,VLOOKUP('Enrollment Form'!$B827,DeclMatrix!$A$8:$B$12,2,FALSE),FALSE))))","v":""},"",null,"","","","","","","","","","","",""]
["",{"$nulls":5},"","",{"$nulls":18},"","","","",{"$nulls":30},"","","","",{"$nulls":60},"",{"$f":"IF($A828=\"\",\"\",IF(VLOOKUP($G828,$H$11:$DN$1000,96,FALSE)=\"\",\"No\",IF(LEFT(VLOOKUP($G828,$H$11:$DN$1000,96,FALSE),3)=\"The\",EF828,VLOOKUP(VLOOKUP($G828,$H$11:$DN$1000,96,FALSE),DeclMatrix!$A$2:$F$5,VLOOKUP('Enrollment Form'!$B828,DeclMatrix!$A$8:$B$12,2,FALSE),FALSE))))","v":""},{"$f":"IF($A828=\"\",\"\",IF(VLOOKUP($G828,$H$11:$DN$1000,101,FALSE)=\"\",\"No\",IF(LEFT(VLOOKUP($G828,$H$11:$DN$1000,101,FALSE),3)=\"The\",EG828,VLOOKUP(VLOOKUP($G828,$H$11:$DN$1000,101,FALSE),DeclMatrix!$A$2:$F$5,VLOOKUP('Enrollment Form'!$B828,DeclMatrix!$A$8:$B$12,2,FALSE),FALSE))))","v":""},{"$f":"IF($A828=\"\",\"\",IF(VLOOKUP($G828,$H$11:$DN$1000,106,FALSE)=\"\",\"No\",IF(LEFT(VLOOKUP($G828,$H$11:$DN$1000,106,FALSE),3)=\"The\",EH828,VLOOKUP(VLOOKUP($G828,$H$11:$DN$1000,106,FALSE),DeclMatrix!$A$2:$F$5,VLOOKUP('Enrollment Form'!$B828,DeclMatrix!$A$8:$B$12,2,FALSE),FALSE))))","v":""},{"$f":"IF($A828=\"\",\"\",IF(VLOOKUP($G828,$H$11:$DN$1000,111,FALSE)=\"\",\"No\",IF(LEFT(VLOOKUP($G828,$H$11:$DN$1000,111,FALSE),3)=\"The\",EI828,VLOOKUP(VLOOKUP($G828,$H$11:$DN$1000,111,FALSE),DeclMatrix!$A$2:$F$5,VLOOKUP('Enrollment Form'!$B828,DeclMatrix!$A$8:$B$12,2,FALSE),FALSE))))","v":""},"",null,"","","","","","","","","","","",""]
["",{"$nulls":5},"","",{"$nulls":18},"","","","",{"$nulls":30},"","","","",{"$nulls":60},"",{"$f":"IF($A829=\"\",\"\",IF(VLOOKUP($G829,$H$11:$DN$1000,96,FALSE)=\"\",\"No\",IF(LEFT(VLOOKUP($G829,$H$11:$DN$1000,96,FALSE),3)=\"The\",EF829,VLOOKUP(VLOOKUP($G829,$H$11:$DN$1000,96,FALSE),DeclMatrix!$A$2:$F$5,VLOOKUP('Enrollment Form'!$B829,DeclMatrix!$A$8:$B$12,2,FALSE),FALSE))))","v":""},{"$f":"IF($A829=\"\",\"\",IF(VLOOKUP($G829,$H$11:$DN$1000,101,FALSE)=\"\",\"No\",IF(LEFT(VLOOKUP($G829,$H$11:$DN$1000,101,FALSE),3)=\"The\",EG829,VLOOKUP(VLOOKUP($G829,$H$11:$DN$1000,101,FALSE),DeclMatrix!$A$2:$F$5,VLOOKUP('Enrollment Form'!$B829,DeclMatrix!$A$8:$B$12,2,FALSE),FALSE))))","v":""},{"$f":"IF($A829=\"\",\"\",IF(VLOOKUP($G829,$H$11:$DN$1000,106,FALSE)=\"\",\"No\",IF(LEFT(VLOOKUP($G829,$H$11:$DN$1000,106,FALSE),3)=\"The\",EH829,VLOOKUP(VLOOKUP($G829,$H$11:$DN$1000,106,FALSE),DeclMatrix!$A$2:$F$5,VLOOKUP('Enrollment Form'!$B829,DeclMatrix!$A$8:$B$12,2,FALSE),FALSE))))","v":""},{"$f":"IF($A829=\"\",\"\",IF(VLOOKUP($G829,$H$11:$DN$1000,111,FALSE)=\"\",\"No\",IF(LEFT(VLOOKUP($G829,$H$11:$DN$1000,111,FALSE),3)=\"The\",EI829,VLOOKUP(VLOOKUP($G829,$H$11:$DN$1000,111,FALSE),DeclMatrix!$A$2:$F$5,VLOOKUP('Enrollment Form'!$B829,DeclMatrix!$A$8:$B$12,2,FALSE),FALSE))))","v":""},"",null,"","","","","","","","","","","",""]
["",{"$nulls":5},"","",{"$nulls":18},"","","","",{"$nulls":30},"","","","",{"$nulls":60},"",{"$f":"IF($A830=\"\",\"\",IF(VLOOKUP($G830,$H$11:$DN$1000,96,FALSE)=\"\",\"No\",IF(LEFT(VLOOKUP($G830,$H$11:$DN$1000,96,FALSE),3)=\"The\",EF830,VLOOKUP(VLOOKUP($G830,$H$11:$DN$1000,96,FALSE),DeclMatrix!$A$2:$F$5,VLOOKUP('Enrollment Form'!$B830,DeclMatrix!$A$8:$B$12,2,FALSE),FALSE))))","v":""},{"$f":"IF($A830=\"\",\"\",IF(VLOOKUP($G830,$H$11:$DN$1000,101,FALSE)=\"\",\"No\",IF(LEFT(VLOOKUP($G830,$H$11:$DN$1000,101,FALSE),3)=\"The\",EG830,VLOOKUP(VLOOKUP($G830,$H$11:$DN$1000,101,FALSE),DeclMatrix!$A$2:$F$5,VLOOKUP('Enrollment Form'!$B830,DeclMatrix!$A$8:$B$12,2,FALSE),FALSE))))","v":""},{"$f":"IF($A830=\"\",\"\",IF(VLOOKUP($G830,$H$11:$DN$1000,106,FALSE)=\"\",\"No\",IF(LEFT(VLOOKUP($G830,$H$11:$DN$1000,106,FALSE),3)=\"The\",EH830,VLOOKUP(VLOOKUP($G830,$H$11:$DN$1000,106,FALSE),DeclMatrix!$A$2:$F$5,VLOOKUP('Enrollment Form'!$B830,DeclMatrix!$A$8:$B$12,2,FALSE),FALSE))))","v":""},{"$f":"IF($A830=\"\",\"\",IF(VLOOKUP($G830,$H$11:$DN$1000,111,FALSE)=\"\",\"No\",IF(LEFT(VLOOKUP($G830,$H$11:$DN$1000,111,FALSE),3)=\"The\",EI830,VLOOKUP(VLOOKUP($G830,$H$11:$DN$1000,111,FALSE),DeclMatrix!$A$2:$F$5,VLOOKUP('Enrollment Form'!$B830,DeclMatrix!$A$8:$B$12,2,FALSE),FALSE))))","v":""},"",null,"","","","","","","","","","","",""]
["",{"$nulls":5},"","",{"$nulls":18},"","","","",{"$nulls":30},"","","","",{"$nulls":60},"",{"$f":"IF($A831=\"\",\"\",IF(VLOOKUP($G831,$H$11:$DN$1000,96,FALSE)=\"\",\"No\",IF(LEFT(VLOOKUP($G831,$H$11:$DN$1000,96,FALSE),3)=\"The\",EF831,VLOOKUP(VLOOKUP($G831,$H$11:$DN$1000,96,FALSE),DeclMatrix!$A$2:$F$5,VLOOKUP('Enrollment Form'!$B831,DeclMatrix!$A$8:$B$12,2,FALSE),FALSE))))","v":""},{"$f":"IF($A831=\"\",\"\",IF(VLOOKUP($G831,$H$11:$DN$1000,101,FALSE)=\"\",\"No\",IF(LEFT(VLOOKUP($G831,$H$11:$DN$1000,101,FALSE),3)=\"The\",EG831,VLOOKUP(VLOOKUP($G831,$H$11:$DN$1000,101,FALSE),DeclMatrix!$A$2:$F$5,VLOOKUP('Enrollment Form'!$B831,DeclMatrix!$A$8:$B$12,2,FALSE),FALSE))))","v":""},{"$f":"IF($A831=\"\",\"\",IF(VLOOKUP($G831,$H$11:$DN$1000,106,FALSE)=\"\",\"No\",IF(LEFT(VLOOKUP($G831,$H$11:$DN$1000,106,FALSE),3)=\"The\",EH831,VLOOKUP(VLOOKUP($G831,$H$11:$DN$1000,106,FALSE),DeclMatrix!$A$2:$F$5,VLOOKUP('Enrollment Form'!$B831,DeclMatrix!$A$8:$B$12,2,FALSE),FALSE))))","v":""},{"$f":"IF($A831=\"\",\"\",IF(VLOOKUP($G831,$H$11:$DN$1000,111,FALSE)=\"\",\"No\",IF(LEFT(VLOOKUP($G831,$H$11:$DN$1000,111,FALSE),3)=\"The\",EI831,VLOOKUP(VLOOKUP($G831,$H$11:$DN$1000,111,FALSE),DeclMatrix!$A$2:$F$5,VLOOKUP('Enrollment Form'!$B831,DeclMatrix!$A$8:$B$12,2,FALSE),FALSE))))","v":""},"",null,"","","","","","","","","","","",""]
["",{"$nulls":5},"","",{"$nulls":18},"","","","",{"$nulls":30},"","","","",{"$nulls":60},"",{"$f":"IF($A832=\"\",\"\",IF(VLOOKUP($G832,$H$11:$DN$1000,96,FALSE)=\"\",\"No\",IF(LEFT(VLOOKUP($G832,$H$11:$DN$1000,96,FALSE),3)=\"The\",EF832,VLOOKUP(VLOOKUP($G832,$H$11:$DN$1000,96,FALSE),DeclMatrix!$A$2:$F$5,VLOOKUP('Enrollment Form'!$B832,DeclMatrix!$A$8:$B$12,2,FALSE),FALSE))))","v":""},{"$f":"IF($A832=\"\",\"\",IF(VLOOKUP($G832,$H$11:$DN$1000,101,FALSE)=\"\",\"No\",IF(LEFT(VLOOKUP($G832,$H$11:$DN$1000,101,FALSE),3)=\"The\",EG832,VLOOKUP(VLOOKUP($G832,$H$11:$DN$1000,101,FALSE),DeclMatrix!$A$2:$F$5,VLOOKUP('Enrollment Form'!$B832,DeclMatrix!$A$8:$B$12,2,FALSE),FALSE))))","v":""},{"$f":"IF($A832=\"\",\"\",IF(VLOOKUP($G832,$H$11:$DN$1000,106,FALSE)=\"\",\"No\",IF(LEFT(VLOOKUP($G832,$H$11:$DN$1000,106,FALSE),3)=\"The\",EH832,VLOOKUP(VLOOKUP($G832,$H$11:$DN$1000,106,FALSE),DeclMatrix!$A$2:$F$5,VLOOKUP('Enrollment Form'!$B832,DeclMatrix!$A$8:$B$12,2,FALSE),FALSE))))","v":""},{"$f":"IF($A832=\"\",\"\",IF(VLOOKUP($G832,$H$11:$DN$1000,111,FALSE)=\"\",\"No\",IF(LEFT(VLOOKUP($G832,$H$11:$DN$1000,111,FALSE),3)=\"The\",EI832,VLOOKUP(VLOOKUP($G832,$H$11:$DN$1000,111,FALSE),DeclMatrix!$A$2:$F$5,VLOOKUP('Enrollment Form'!$B832,DeclMatrix!$A$8:$B$12,2,FALSE),FALSE))))","v":""},"",null,"","","","","","","","","","","",""]
["",{"$nulls":5},"","",{"$nulls":18},"","","","",{"$nulls":30},"","","","",{"$nulls":60},"",{"$f":"IF($A833=\"\",\"\",IF(VLOOKUP($G833,$H$11:$DN$1000,96,FALSE)=\"\",\"No\",IF(LEFT(VLOOKUP($G833,$H$11:$DN$1000,96,FALSE),3)=\"The\",EF833,VLOOKUP(VLOOKUP($G833,$H$11:$DN$1000,96,FALSE),DeclMatrix!$A$2:$F$5,VLOOKUP('Enrollment Form'!$B833,DeclMatrix!$A$8:$B$12,2,FALSE),FALSE))))","v":""},{"$f":"IF($A833=\"\",\"\",IF(VLOOKUP($G833,$H$11:$DN$1000,101,FALSE)=\"\",\"No\",IF(LEFT(VLOOKUP($G833,$H$11:$DN$1000,101,FALSE),3)=\"The\",EG833,VLOOKUP(VLOOKUP($G833,$H$11:$DN$1000,101,FALSE),DeclMatrix!$A$2:$F$5,VLOOKUP('Enrollment Form'!$B833,DeclMatrix!$A$8:$B$12,2,FALSE),FALSE))))","v":""},{"$f":"IF($A833=\"\",\"\",IF(VLOOKUP($G833,$H$11:$DN$1000,106,FALSE)=\"\",\"No\",IF(LEFT(VLOOKUP($G833,$H$11:$DN$1000,106,FALSE),3)=\"The\",EH833,VLOOKUP(VLOOKUP($G833,$H$11:$DN$1000,106,FALSE),DeclMatrix!$A$2:$F$5,VLOOKUP('Enrollment Form'!$B833,DeclMatrix!$A$8:$B$12,2,FALSE),FALSE))))","v":""},{"$f":"IF($A833=\"\",\"\",IF(VLOOKUP($G833,$H$11:$DN$1000,111,FALSE)=\"\",\"No\",IF(LEFT(VLOOKUP($G833,$H$11:$DN$1000,111,FALSE),3)=\"The\",EI833,VLOOKUP(VLOOKUP($G833,$H$11:$DN$1000,111,FALSE),DeclMatrix!$A$2:$F$5,VLOOKUP('Enrollment Form'!$B833,DeclMatrix!$A$8:$B$12,2,FALSE),FALSE))))","v":""},"",null,"","","","","","","","","","","",""]
["",{"$nulls":5},"","",{"$nulls":18},"","","","",{"$nulls":30},"","","","",{"$nulls":60},"",{"$f":"IF($A834=\"\",\"\",IF(VLOOKUP($G834,$H$11:$DN$1000,96,FALSE)=\"\",\"No\",IF(LEFT(VLOOKUP($G834,$H$11:$DN$1000,96,FALSE),3)=\"The\",EF834,VLOOKUP(VLOOKUP($G834,$H$11:$DN$1000,96,FALSE),DeclMatrix!$A$2:$F$5,VLOOKUP('Enrollment Form'!$B834,DeclMatrix!$A$8:$B$12,2,FALSE),FALSE))))","v":""},{"$f":"IF($A834=\"\",\"\",IF(VLOOKUP($G834,$H$11:$DN$1000,101,FALSE)=\"\",\"No\",IF(LEFT(VLOOKUP($G834,$H$11:$DN$1000,101,FALSE),3)=\"The\",EG834,VLOOKUP(VLOOKUP($G834,$H$11:$DN$1000,101,FALSE),DeclMatrix!$A$2:$F$5,VLOOKUP('Enrollment Form'!$B834,DeclMatrix!$A$8:$B$12,2,FALSE),FALSE))))","v":""},{"$f":"IF($A834=\"\",\"\",IF(VLOOKUP($G834,$H$11:$DN$1000,106,FALSE)=\"\",\"No\",IF(LEFT(VLOOKUP($G834,$H$11:$DN$1000,106,FALSE),3)=\"The\",EH834,VLOOKUP(VLOOKUP($G834,$H$11:$DN$1000,106,FALSE),DeclMatrix!$A$2:$F$5,VLOOKUP('Enrollment Form'!$B834,DeclMatrix!$A$8:$B$12,2,FALSE),FALSE))))","v":""},{"$f":"IF($A834=\"\",\"\",IF(VLOOKUP($G834,$H$11:$DN$1000,111,FALSE)=\"\",\"No\",IF(LEFT(VLOOKUP($G834,$H$11:$DN$1000,111,FALSE),3)=\"The\",EI834,VLOOKUP(VLOOKUP($G834,$H$11:$DN$1000,111,FALSE),DeclMatrix!$A$2:$F$5,VLOOKUP('Enrollment Form'!$B834,DeclMatrix!$A$8:$B$12,2,FALSE),FALSE))))","v":""},"",null,"","","","","","","","","","","",""]
["",{"$nulls":5},"","",{"$nulls":18},"","","","",{"$nulls":30},"","","","",{"$nulls":60},"",{"$f":"IF($A835=\"\",\"\",IF(VLOOKUP($G835,$H$11:$DN$1000,96,FALSE)=\"\",\"No\",IF(LEFT(VLOOKUP($G835,$H$11:$DN$1000,96,FALSE),3)=\"The\",EF835,VLOOKUP(VLOOKUP($G835,$H$11:$DN$1000,96,FALSE),DeclMatrix!$A$2:$F$5,VLOOKUP('Enrollment Form'!$B835,DeclMatrix!$A$8:$B$12,2,FALSE),FALSE))))","v":""},{"$f":"IF($A835=\"\",\"\",IF(VLOOKUP($G835,$H$11:$DN$1000,101,FALSE)=\"\",\"No\",IF(LEFT(VLOOKUP($G835,$H$11:$DN$1000,101,FALSE),3)=\"The\",EG835,VLOOKUP(VLOOKUP($G835,$H$11:$DN$1000,101,FALSE),DeclMatrix!$A$2:$F$5,VLOOKUP('Enrollment Form'!$B835,DeclMatrix!$A$8:$B$12,2,FALSE),FALSE))))","v":""},{"$f":"IF($A835=\"\",\"\",IF(VLOOKUP($G835,$H$11:$DN$1000,106,FALSE)=\"\",\"No\",IF(LEFT(VLOOKUP($G835,$H$11:$DN$1000,106,FALSE),3)=\"The\",EH835,VLOOKUP(VLOOKUP($G835,$H$11:$DN$1000,106,FALSE),DeclMatrix!$A$2:$F$5,VLOOKUP('Enrollment Form'!$B835,DeclMatrix!$A$8:$B$12,2,FALSE),FALSE))))","v":""},{"$f":"IF($A835=\"\",\"\",IF(VLOOKUP($G835,$H$11:$DN$1000,111,FALSE)=\"\",\"No\",IF(LEFT(VLOOKUP($G835,$H$11:$DN$1000,111,FALSE),3)=\"The\",EI835,VLOOKUP(VLOOKUP($G835,$H$11:$DN$1000,111,FALSE),DeclMatrix!$A$2:$F$5,VLOOKUP('Enrollment Form'!$B835,DeclMatrix!$A$8:$B$12,2,FALSE),FALSE))))","v":""},"",null,"","","","","","","","","","","",""]
["",{"$nulls":5},"","",{"$nulls":18},"","","","",{"$nulls":30},"","","","",{"$nulls":60},"",{"$f":"IF($A836=\"\",\"\",IF(VLOOKUP($G836,$H$11:$DN$1000,96,FALSE)=\"\",\"No\",IF(LEFT(VLOOKUP($G836,$H$11:$DN$1000,96,FALSE),3)=\"The\",EF836,VLOOKUP(VLOOKUP($G836,$H$11:$DN$1000,96,FALSE),DeclMatrix!$A$2:$F$5,VLOOKUP('Enrollment Form'!$B836,DeclMatrix!$A$8:$B$12,2,FALSE),FALSE))))","v":""},{"$f":"IF($A836=\"\",\"\",IF(VLOOKUP($G836,$H$11:$DN$1000,101,FALSE)=\"\",\"No\",IF(LEFT(VLOOKUP($G836,$H$11:$DN$1000,101,FALSE),3)=\"The\",EG836,VLOOKUP(VLOOKUP($G836,$H$11:$DN$1000,101,FALSE),DeclMatrix!$A$2:$F$5,VLOOKUP('Enrollment Form'!$B836,DeclMatrix!$A$8:$B$12,2,FALSE),FALSE))))","v":""},{"$f":"IF($A836=\"\",\"\",IF(VLOOKUP($G836,$H$11:$DN$1000,106,FALSE)=\"\",\"No\",IF(LEFT(VLOOKUP($G836,$H$11:$DN$1000,106,FALSE),3)=\"The\",EH836,VLOOKUP(VLOOKUP($G836,$H$11:$DN$1000,106,FALSE),DeclMatrix!$A$2:$F$5,VLOOKUP('Enrollment Form'!$B836,DeclMatrix!$A$8:$B$12,2,FALSE),FALSE))))","v":""},{"$f":"IF($A836=\"\",\"\",IF(VLOOKUP($G836,$H$11:$DN$1000,111,FALSE)=\"\",\"No\",IF(LEFT(VLOOKUP($G836,$H$11:$DN$1000,111,FALSE),3)=\"The\",EI836,VLOOKUP(VLOOKUP($G836,$H$11:$DN$1000,111,FALSE),DeclMatrix!$A$2:$F$5,VLOOKUP('Enrollment Form'!$B836,DeclMatrix!$A$8:$B$12,2,FALSE),FALSE))))","v":""},"",null,"","","","","","","","","","","",""]
["",{"$nulls":5},"","",{"$nulls":18},"","","","",{"$nulls":30},"","","","",{"$nulls":60},"",{"$f":"IF($A837=\"\",\"\",IF(VLOOKUP($G837,$H$11:$DN$1000,96,FALSE)=\"\",\"No\",IF(LEFT(VLOOKUP($G837,$H$11:$DN$1000,96,FALSE),3)=\"The\",EF837,VLOOKUP(VLOOKUP($G837,$H$11:$DN$1000,96,FALSE),DeclMatrix!$A$2:$F$5,VLOOKUP('Enrollment Form'!$B837,DeclMatrix!$A$8:$B$12,2,FALSE),FALSE))))","v":""},{"$f":"IF($A837=\"\",\"\",IF(VLOOKUP($G837,$H$11:$DN$1000,101,FALSE)=\"\",\"No\",IF(LEFT(VLOOKUP($G837,$H$11:$DN$1000,101,FALSE),3)=\"The\",EG837,VLOOKUP(VLOOKUP($G837,$H$11:$DN$1000,101,FALSE),DeclMatrix!$A$2:$F$5,VLOOKUP('Enrollment Form'!$B837,DeclMatrix!$A$8:$B$12,2,FALSE),FALSE))))","v":""},{"$f":"IF($A837=\"\",\"\",IF(VLOOKUP($G837,$H$11:$DN$1000,106,FALSE)=\"\",\"No\",IF(LEFT(VLOOKUP($G837,$H$11:$DN$1000,106,FALSE),3)=\"The\",EH837,VLOOKUP(VLOOKUP($G837,$H$11:$DN$1000,106,FALSE),DeclMatrix!$A$2:$F$5,VLOOKUP('Enrollment Form'!$B837,DeclMatrix!$A$8:$B$12,2,FALSE),FALSE))))","v":""},{"$f":"IF($A837=\"\",\"\",IF(VLOOKUP($G837,$H$11:$DN$1000,111,FALSE)=\"\",\"No\",IF(LEFT(VLOOKUP($G837,$H$11:$DN$1000,111,FALSE),3)=\"The\",EI837,VLOOKUP(VLOOKUP($G837,$H$11:$DN$1000,111,FALSE),DeclMatrix!$A$2:$F$5,VLOOKUP('Enrollment Form'!$B837,DeclMatrix!$A$8:$B$12,2,FALSE),FALSE))))","v":""},"",null,"","","","","","","","","","","",""]
["",{"$nulls":5},"","",{"$nulls":18},"","","","",{"$nulls":30},"","","","",{"$nulls":60},"",{"$f":"IF($A838=\"\",\"\",IF(VLOOKUP($G838,$H$11:$DN$1000,96,FALSE)=\"\",\"No\",IF(LEFT(VLOOKUP($G838,$H$11:$DN$1000,96,FALSE),3)=\"The\",EF838,VLOOKUP(VLOOKUP($G838,$H$11:$DN$1000,96,FALSE),DeclMatrix!$A$2:$F$5,VLOOKUP('Enrollment Form'!$B838,DeclMatrix!$A$8:$B$12,2,FALSE),FALSE))))","v":""},{"$f":"IF($A838=\"\",\"\",IF(VLOOKUP($G838,$H$11:$DN$1000,101,FALSE)=\"\",\"No\",IF(LEFT(VLOOKUP($G838,$H$11:$DN$1000,101,FALSE),3)=\"The\",EG838,VLOOKUP(VLOOKUP($G838,$H$11:$DN$1000,101,FALSE),DeclMatrix!$A$2:$F$5,VLOOKUP('Enrollment Form'!$B838,DeclMatrix!$A$8:$B$12,2,FALSE),FALSE))))","v":""},{"$f":"IF($A838=\"\",\"\",IF(VLOOKUP($G838,$H$11:$DN$1000,106,FALSE)=\"\",\"No\",IF(LEFT(VLOOKUP($G838,$H$11:$DN$1000,106,FALSE),3)=\"The\",EH838,VLOOKUP(VLOOKUP($G838,$H$11:$DN$1000,106,FALSE),DeclMatrix!$A$2:$F$5,VLOOKUP('Enrollment Form'!$B838,DeclMatrix!$A$8:$B$12,2,FALSE),FALSE))))","v":""},{"$f":"IF($A838=\"\",\"\",IF(VLOOKUP($G838,$H$11:$DN$1000,111,FALSE)=\"\",\"No\",IF(LEFT(VLOOKUP($G838,$H$11:$DN$1000,111,FALSE),3)=\"The\",EI838,VLOOKUP(VLOOKUP($G838,$H$11:$DN$1000,111,FALSE),DeclMatrix!$A$2:$F$5,VLOOKUP('Enrollment Form'!$B838,DeclMatrix!$A$8:$B$12,2,FALSE),FALSE))))","v":""},"",null,"","","","","","","","","","","",""]
["",{"$nulls":5},"","",{"$nulls":18},"","","","",{"$nulls":30},"","","","",{"$nulls":60},"",{"$f":"IF($A839=\"\",\"\",IF(VLOOKUP($G839,$H$11:$DN$1000,96,FALSE)=\"\",\"No\",IF(LEFT(VLOOKUP($G839,$H$11:$DN$1000,96,FALSE),3)=\"The\",EF839,VLOOKUP(VLOOKUP($G839,$H$11:$DN$1000,96,FALSE),DeclMatrix!$A$2:$F$5,VLOOKUP('Enrollment Form'!$B839,DeclMatrix!$A$8:$B$12,2,FALSE),FALSE))))","v":""},{"$f":"IF($A839=\"\",\"\",IF(VLOOKUP($G839,$H$11:$DN$1000,101,FALSE)=\"\",\"No\",IF(LEFT(VLOOKUP($G839,$H$11:$DN$1000,101,FALSE),3)=\"The\",EG839,VLOOKUP(VLOOKUP($G839,$H$11:$DN$1000,101,FALSE),DeclMatrix!$A$2:$F$5,VLOOKUP('Enrollment Form'!$B839,DeclMatrix!$A$8:$B$12,2,FALSE),FALSE))))","v":""},{"$f":"IF($A839=\"\",\"\",IF(VLOOKUP($G839,$H$11:$DN$1000,106,FALSE)=\"\",\"No\",IF(LEFT(VLOOKUP($G839,$H$11:$DN$1000,106,FALSE),3)=\"The\",EH839,VLOOKUP(VLOOKUP($G839,$H$11:$DN$1000,106,FALSE),DeclMatrix!$A$2:$F$5,VLOOKUP('Enrollment Form'!$B839,DeclMatrix!$A$8:$B$12,2,FALSE),FALSE))))","v":""},{"$f":"IF($A839=\"\",\"\",IF(VLOOKUP($G839,$H$11:$DN$1000,111,FALSE)=\"\",\"No\",IF(LEFT(VLOOKUP($G839,$H$11:$DN$1000,111,FALSE),3)=\"The\",EI839,VLOOKUP(VLOOKUP($G839,$H$11:$DN$1000,111,FALSE),DeclMatrix!$A$2:$F$5,VLOOKUP('Enrollment Form'!$B839,DeclMatrix!$A$8:$B$12,2,FALSE),FALSE))))","v":""},"",null,"","","","","","","","","","","",""]
["",{"$nulls":5},"","",{"$nulls":18},"","","","",{"$nulls":30},"","","","",{"$nulls":60},"",{"$f":"IF($A840=\"\",\"\",IF(VLOOKUP($G840,$H$11:$DN$1000,96,FALSE)=\"\",\"No\",IF(LEFT(VLOOKUP($G840,$H$11:$DN$1000,96,FALSE),3)=\"The\",EF840,VLOOKUP(VLOOKUP($G840,$H$11:$DN$1000,96,FALSE),DeclMatrix!$A$2:$F$5,VLOOKUP('Enrollment Form'!$B840,DeclMatrix!$A$8:$B$12,2,FALSE),FALSE))))","v":""},{"$f":"IF($A840=\"\",\"\",IF(VLOOKUP($G840,$H$11:$DN$1000,101,FALSE)=\"\",\"No\",IF(LEFT(VLOOKUP($G840,$H$11:$DN$1000,101,FALSE),3)=\"The\",EG840,VLOOKUP(VLOOKUP($G840,$H$11:$DN$1000,101,FALSE),DeclMatrix!$A$2:$F$5,VLOOKUP('Enrollment Form'!$B840,DeclMatrix!$A$8:$B$12,2,FALSE),FALSE))))","v":""},{"$f":"IF($A840=\"\",\"\",IF(VLOOKUP($G840,$H$11:$DN$1000,106,FALSE)=\"\",\"No\",IF(LEFT(VLOOKUP($G840,$H$11:$DN$1000,106,FALSE),3)=\"The\",EH840,VLOOKUP(VLOOKUP($G840,$H$11:$DN$1000,106,FALSE),DeclMatrix!$A$2:$F$5,VLOOKUP('Enrollment Form'!$B840,DeclMatrix!$A$8:$B$12,2,FALSE),FALSE))))","v":""},{"$f":"IF($A840=\"\",\"\",IF(VLOOKUP($G840,$H$11:$DN$1000,111,FALSE)=\"\",\"No\",IF(LEFT(VLOOKUP($G840,$H$11:$DN$1000,111,FALSE),3)=\"The\",EI840,VLOOKUP(VLOOKUP($G840,$H$11:$DN$1000,111,FALSE),DeclMatrix!$A$2:$F$5,VLOOKUP('Enrollment Form'!$B840,DeclMatrix!$A$8:$B$12,2,FALSE),FALSE))))","v":""},"",null,"","","","","","","","","","","",""]
["",{"$nulls":5},"","",{"$nulls":18},"","","","",{"$nulls":30},"","","","",{"$nulls":60},"",{"$f":"IF($A841=\"\",\"\",IF(VLOOKUP($G841,$H$11:$DN$1000,96,FALSE)=\"\",\"No\",IF(LEFT(VLOOKUP($G841,$H$11:$DN$1000,96,FALSE),3)=\"The\",EF841,VLOOKUP(VLOOKUP($G841,$H$11:$DN$1000,96,FALSE),DeclMatrix!$A$2:$F$5,VLOOKUP('Enrollment Form'!$B841,DeclMatrix!$A$8:$B$12,2,FALSE),FALSE))))","v":""},{"$f":"IF($A841=\"\",\"\",IF(VLOOKUP($G841,$H$11:$DN$1000,101,FALSE)=\"\",\"No\",IF(LEFT(VLOOKUP($G841,$H$11:$DN$1000,101,FALSE),3)=\"The\",EG841,VLOOKUP(VLOOKUP($G841,$H$11:$DN$1000,101,FALSE),DeclMatrix!$A$2:$F$5,VLOOKUP('Enrollment Form'!$B841,DeclMatrix!$A$8:$B$12,2,FALSE),FALSE))))","v":""},{"$f":"IF($A841=\"\",\"\",IF(VLOOKUP($G841,$H$11:$DN$1000,106,FALSE)=\"\",\"No\",IF(LEFT(VLOOKUP($G841,$H$11:$DN$1000,106,FALSE),3)=\"The\",EH841,VLOOKUP(VLOOKUP($G841,$H$11:$DN$1000,106,FALSE),DeclMatrix!$A$2:$F$5,VLOOKUP('Enrollment Form'!$B841,DeclMatrix!$A$8:$B$12,2,FALSE),FALSE))))","v":""},{"$f":"IF($A841=\"\",\"\",IF(VLOOKUP($G841,$H$11:$DN$1000,111,FALSE)=\"\",\"No\",IF(LEFT(VLOOKUP($G841,$H$11:$DN$1000,111,FALSE),3)=\"The\",EI841,VLOOKUP(VLOOKUP($G841,$H$11:$DN$1000,111,FALSE),DeclMatrix!$A$2:$F$5,VLOOKUP('Enrollment Form'!$B841,DeclMatrix!$A$8:$B$12,2,FALSE),FALSE))))","v":""},"",null,"","","","","","","","","","","",""]
["",{"$nulls":5},"","",{"$nulls":18},"","","","",{"$nulls":30},"","","","",{"$nulls":60},"",{"$f":"IF($A842=\"\",\"\",IF(VLOOKUP($G842,$H$11:$DN$1000,96,FALSE)=\"\",\"No\",IF(LEFT(VLOOKUP($G842,$H$11:$DN$1000,96,FALSE),3)=\"The\",EF842,VLOOKUP(VLOOKUP($G842,$H$11:$DN$1000,96,FALSE),DeclMatrix!$A$2:$F$5,VLOOKUP('Enrollment Form'!$B842,DeclMatrix!$A$8:$B$12,2,FALSE),FALSE))))","v":""},{"$f":"IF($A842=\"\",\"\",IF(VLOOKUP($G842,$H$11:$DN$1000,101,FALSE)=\"\",\"No\",IF(LEFT(VLOOKUP($G842,$H$11:$DN$1000,101,FALSE),3)=\"The\",EG842,VLOOKUP(VLOOKUP($G842,$H$11:$DN$1000,101,FALSE),DeclMatrix!$A$2:$F$5,VLOOKUP('Enrollment Form'!$B842,DeclMatrix!$A$8:$B$12,2,FALSE),FALSE))))","v":""},{"$f":"IF($A842=\"\",\"\",IF(VLOOKUP($G842,$H$11:$DN$1000,106,FALSE)=\"\",\"No\",IF(LEFT(VLOOKUP($G842,$H$11:$DN$1000,106,FALSE),3)=\"The\",EH842,VLOOKUP(VLOOKUP($G842,$H$11:$DN$1000,106,FALSE),DeclMatrix!$A$2:$F$5,VLOOKUP('Enrollment Form'!$B842,DeclMatrix!$A$8:$B$12,2,FALSE),FALSE))))","v":""},{"$f":"IF($A842=\"\",\"\",IF(VLOOKUP($G842,$H$11:$DN$1000,111,FALSE)=\"\",\"No\",IF(LEFT(VLOOKUP($G842,$H$11:$DN$1000,111,FALSE),3)=\"The\",EI842,VLOOKUP(VLOOKUP($G842,$H$11:$DN$1000,111,FALSE),DeclMatrix!$A$2:$F$5,VLOOKUP('Enrollment Form'!$B842,DeclMatrix!$A$8:$B$12,2,FALSE),FALSE))))","v":""},"",null,"","","","","","","","","","","",""]
[{"$f":"IF(LEN($B843)>0,$C$2,\"\")","v":""},{"$nulls":5},"","",{"$nulls":18},"","","","",{"$nulls":30},{"$f":"IF(AND($B843<>\"Subscriber\",$BH843=\"Yes\"),VLOOKUP($G843,$H$11:$Y$1000,15,FALSE),\"\")","v":""},{"$f":"IF(AND($B843<>\"Subscriber\",$BH843=\"Yes\"),VLOOKUP($G843,$H$11:$Y$1000,16,FALSE),\"\")","v":""},{"$f":"IF(AND($B843<>\"Subscriber\",$BH843=\"Yes\"),VLOOKUP($G843,$H$11:$Y$1000,17,FALSE),\"\")","v":""},{"$f":"IF(AND($B843<>\"Subscriber\",$BH843=\"Yes\"),VLOOKUP($G843,$H$11:$Y$1000,18,FALSE),\"\")","v":""},{"$nulls":60},{"$f":"IF($A843=\"\",\"\",IF($B843=\"Subscriber\",$AG843,VLOOKUP($G843,$H$11:$AG$1000,26,FALSE)))","v":""},{"$f":"IF($A843=\"\",\"\",IF(VLOOKUP($G843,$H$11:$DN$1000,96,FALSE)=\"\",\"No\",IF(LEFT(VLOOKUP($G843,$H$11:$DN$1000,96,FALSE),3)=\"The\",EF843,VLOOKUP(VLOOKUP($G843,$H$11:$DN$1000,96,FALSE),DeclMatrix!$A$2:$F$5,VLOOKUP('Enrollment Form'!$B843,DeclMatrix!$A$8:$B$12,2,FALSE),FALSE))))","v":""},{"$f":"IF($A843=\"\",\"\",IF(VLOOKUP($G843,$H$11:$DN$1000,101,FALSE)=\"\",\"No\",IF(LEFT(VLOOKUP($G843,$H$11:$DN$1000,101,FALSE),3)=\"The\",EG843,VLOOKUP(VLOOKUP($G843,$H$11:$DN$1000,101,FALSE),DeclMatrix!$A$2:$F$5,VLOOKUP('Enrollment Form'!$B843,DeclMatrix!$A$8:$B$12,2,FALSE),FALSE))))","v":""},{"$f":"IF($A843=\"\",\"\",IF(VLOOKUP($G843,$H$11:$DN$1000,106,FALSE)=\"\",\"No\",IF(LEFT(VLOOKUP($G843,$H$11:$DN$1000,106,FALSE),3)=\"The\",EH843,VLOOKUP(VLOOKUP($G843,$H$11:$DN$1000,106,FALSE),DeclMatrix!$A$2:$F$5,VLOOKUP('Enrollment Form'!$B843,DeclMatrix!$A$8:$B$12,2,FALSE),FALSE))))","v":""},{"$f":"IF($A843=\"\",\"\",IF(VLOOKUP($G843,$H$11:$DN$1000,111,FALSE)=\"\",\"No\",IF(LEFT(VLOOKUP($G843,$H$11:$DN$1000,111,FALSE),3)=\"The\",EI843,VLOOKUP(VLOOKUP($G843,$H$11:$DN$1000,111,FALSE),DeclMatrix!$A$2:$F$5,VLOOKUP('Enrollment Form'!$B843,DeclMatrix!$A$8:$B$12,2,FALSE),FALSE))))","v":""},"",null,{"$f":"$B843&$G843&$J843","v":""},{"$f":"$B843&$G843&$L843","v":""},{"$f":"$B843&$G843&$N843","v":""},{"$f":"$B843&$G843&$O843","v":""},"","","","",{"$f":"IF($A843=\"\",\"\",IF(AND($B843=\"Subscriber\",$I843<>\"Waive\",$I843<>\"\"),\"Yes\",IF(AND($B843<>\"Subscriber\",$BF843=\"Yes\"),VLOOKUP($G843,$H$11:$EM$1000,133,FALSE),IF(AND($C843=\"Enroll\",VLOOKUP($G844,$H$11:$EM$1000,96,FALSE)<>\"\"),VLOOKUP($DV843,$DW$2:$DX$3,2,FALSE),\"No\"))))","v":""},{"$f":"IF($A843=\"\",\"\",IF(AND($B843=\"Subscriber\",$K843<>\"Waive\",$K843<>\"\"),\"Yes\",IF(AND($B843<>\"Subscriber\",$BF843=\"Yes\"),VLOOKUP($G843,$H$11:$EM$1000,134,FALSE),IF(AND($C843=\"Enroll\",VLOOKUP($G844,$H$11:$EM$1000,101,FALSE)<>\"\"),VLOOKUP($DW843,$DW$2:$DX$3,2,FALSE),\"No\"))))","v":""},{"$f":"IF($A843=\"\",\"\",IF(AND($B843=\"Subscriber\",$M843<>\"Waive\",$M843<>\"\"),\"Yes\",IF(AND($B843<>\"Subscriber\",$BF843=\"Yes\"),VLOOKUP($G843,$H$11:$EM$1000,135,FALSE),IF(AND($C843=\"Enroll\",VLOOKUP($G844,$H$11:$EM$1000,106,FALSE)<>\"\"),VLOOKUP($DX843,$DW$2:$DX$3,2,FALSE),\"No\"))))","v":""},{"$f":"IF($A843=\"\",\"\",IF(AND($B843=\"Subscriber\",$O843<>\"Waive\",$O843<>\"\"),\"Yes\",IF(AND($B843<>\"Subscriber\",$BF843=\"Yes\"),VLOOKUP($G843,$H$11:$EM$1000,136,FALSE),IF(AND($C843=\"Enroll\",VLOOKUP($G844,$H$11:$EM$1000,111,FALSE)<>\"\"),VLOOKUP($DY843,$DW$2:$DX$3,2,FALSE),\"No\"))))","v":""}]
["",{"$nulls":5},{"$f":"IF(A844=\"\",\"\",IF(AND(B844<>\"Subscriber\",B844<>\"\"),G843,\"\"))","v":""},{"$f":"IF(AND(B844=\"Subscriber\",G844<>\"\"),G844,\"\")","v":""},{"$nulls":18},{"$f":"IF(AND($B844=\"Subscriber\",$Z844=\"Yes\"),V844,\"\")","v":""},{"$f":"IF(AND($B844=\"Subscriber\",$Z844=\"Yes\"),W844,\"\")","v":""},{"$f":"IF(AND($B844=\"Subscriber\",$Z844=\"Yes\"),X844,\"\")","v":""},{"$f":"IF(AND($B844=\"Subscriber\",$Z844=\"Yes\"),Y844,\"\")","v":""},{"$nulls":30},"","","","",{"$nulls":60},"",{"$f":"IF($A844=\"\",\"\",IF(VLOOKUP($G844,$H$11:$DN$1000,96,FALSE)=\"\",\"No\",IF(LEFT(VLOOKUP($G844,$H$11:$DN$1000,96,FALSE),3)=\"The\",EF844,VLOOKUP(VLOOKUP($G844,$H$11:$DN$1000,96,FALSE),DeclMatrix!$A$2:$F$5,VLOOKUP('Enrollment Form'!$B844,DeclMatrix!$A$8:$B$12,2,FALSE),FALSE))))","v":""},{"$f":"IF($A844=\"\",\"\",IF(VLOOKUP($G844,$H$11:$DN$1000,101,FALSE)=\"\",\"No\",IF(LEFT(VLOOKUP($G844,$H$11:$DN$1000,101,FALSE),3)=\"The\",EG844,VLOOKUP(VLOOKUP($G844,$H$11:$DN$1000,101,FALSE),DeclMatrix!$A$2:$F$5,VLOOKUP('Enrollment Form'!$B844,DeclMatrix!$A$8:$B$12,2,FALSE),FALSE))))","v":""},{"$f":"IF($A844=\"\",\"\",IF(VLOOKUP($G844,$H$11:$DN$1000,106,FALSE)=\"\",\"No\",IF(LEFT(VLOOKUP($G844,$H$11:$DN$1000,106,FALSE),3)=\"The\",EH844,VLOOKUP(VLOOKUP($G844,$H$11:$DN$1000,106,FALSE),DeclMatrix!$A$2:$F$5,VLOOKUP('Enrollment Form'!$B844,DeclMatrix!$A$8:$B$12,2,FALSE),FALSE))))","v":""},{"$f":"IF($A844=\"\",\"\",IF(VLOOKUP($G844,$H$11:$DN$1000,111,FALSE)=\"\",\"No\",IF(LEFT(VLOOKUP($G844,$H$11:$DN$1000,111,FALSE),3)=\"The\",EI844,VLOOKUP(VLOOKUP($G844,$H$11:$DN$1000,111,FALSE),DeclMatrix!$A$2:$F$5,VLOOKUP('Enrollment Form'!$B844,DeclMatrix!$A$8:$B$12,2,FALSE),FALSE))))","v":""},{"$f":"IF(A844<>\"\",\"1X\",\"\")","v":""},null,"","","","",{"$f":"IF($A844=\"\",\"\",IF($B844=\"Subscriber\",\"No\",IF(OR($CY844=\"\",$CY844=\"No\"),\"No\",\"Yes\")))","v":""},{"$f":"IF($A844=\"\",\"\",IF($B844=\"Subscriber\",\"No\",IF(OR($DD844=\"\",$DD844=\"No\"),\"No\",\"Yes\")))","v":""},{"$f":"IF($A844=\"\",\"\",IF($B844=\"Subscriber\",\"No\",IF(OR($DI844=\"\",$DI844=\"No\"),\"No\",\"Yes\")))","v":""},{"$f":"IF($A844=\"\",\"\",IF($B844=\"Subscriber\",\"No\",IF(OR($DN844=\"\",$DN844=\"No\"),\"No\",\"Yes\")))","v":""},"","","",""]
["",{"$nulls":5},"","",{"$nulls":18},"","","","",{"$nulls":30},"","","","",{"$nulls":60},"",{"$f":"IF($A845=\"\",\"\",IF(VLOOKUP($G845,$H$11:$DN$1000,96,FALSE)=\"\",\"No\",IF(LEFT(VLOOKUP($G845,$H$11:$DN$1000,96,FALSE),3)=\"The\",EF845,VLOOKUP(VLOOKUP($G845,$H$11:$DN$1000,96,FALSE),DeclMatrix!$A$2:$F$5,VLOOKUP('Enrollment Form'!$B845,DeclMatrix!$A$8:$B$12,2,FALSE),FALSE))))","v":""},{"$f":"IF($A845=\"\",\"\",IF(VLOOKUP($G845,$H$11:$DN$1000,101,FALSE)=\"\",\"No\",IF(LEFT(VLOOKUP($G845,$H$11:$DN$1000,101,FALSE),3)=\"The\",EG845,VLOOKUP(VLOOKUP($G845,$H$11:$DN$1000,101,FALSE),DeclMatrix!$A$2:$F$5,VLOOKUP('Enrollment Form'!$B845,DeclMatrix!$A$8:$B$12,2,FALSE),FALSE))))","v":""},{"$f":"IF($A845=\"\",\"\",IF(VLOOKUP($G845,$H$11:$DN$1000,106,FALSE)=\"\",\"No\",IF(LEFT(VLOOKUP($G845,$H$11:$DN$1000,106,FALSE),3)=\"The\",EH845,VLOOKUP(VLOOKUP($G845,$H$11:$DN$1000,106,FALSE),DeclMatrix!$A$2:$F$5,VLOOKUP('Enrollment Form'!$B845,DeclMatrix!$A$8:$B$12,2,FALSE),FALSE))))","v":""},{"$f":"IF($A845=\"\",\"\",IF(VLOOKUP($G845,$H$11:$DN$1000,111,FALSE)=\"\",\"No\",IF(LEFT(VLOOKUP($G845,$H$11:$DN$1000,111,FALSE),3)=\"The\",EI845,VLOOKUP(VLOOKUP($G845,$H$11:$DN$1000,111,FALSE),DeclMatrix!$A$2:$F$5,VLOOKUP('Enrollment Form'!$B845,DeclMatrix!$A$8:$B$12,2,FALSE),FALSE))))","v":""},"",null,"","","","","","","","","","","",""]
["",{"$nulls":5},"","",{"$nulls":18},"","","","",{"$nulls":30},"","","","",{"$nulls":60},"",{"$f":"IF($A846=\"\",\"\",IF(VLOOKUP($G846,$H$11:$DN$1000,96,FALSE)=\"\",\"No\",IF(LEFT(VLOOKUP($G846,$H$11:$DN$1000,96,FALSE),3)=\"The\",EF846,VLOOKUP(VLOOKUP($G846,$H$11:$DN$1000,96,FALSE),DeclMatrix!$A$2:$F$5,VLOOKUP('Enrollment Form'!$B846,DeclMatrix!$A$8:$B$12,2,FALSE),FALSE))))","v":""},{"$f":"IF($A846=\"\",\"\",IF(VLOOKUP($G846,$H$11:$DN$1000,101,FALSE)=\"\",\"No\",IF(LEFT(VLOOKUP($G846,$H$11:$DN$1000,101,FALSE),3)=\"The\",EG846,VLOOKUP(VLOOKUP($G846,$H$11:$DN$1000,101,FALSE),DeclMatrix!$A$2:$F$5,VLOOKUP('Enrollment Form'!$B846,DeclMatrix!$A$8:$B$12,2,FALSE),FALSE))))","v":""},{"$f":"IF($A846=\"\",\"\",IF(VLOOKUP($G846,$H$11:$DN$1000,106,FALSE)=\"\",\"No\",IF(LEFT(VLOOKUP($G846,$H$11:$DN$1000,106,FALSE),3)=\"The\",EH846,VLOOKUP(VLOOKUP($G846,$H$11:$DN$1000,106,FALSE),DeclMatrix!$A$2:$F$5,VLOOKUP('Enrollment Form'!$B846,DeclMatrix!$A$8:$B$12,2,FALSE),FALSE))))","v":""},{"$f":"IF($A846=\"\",\"\",IF(VLOOKUP($G846,$H$11:$DN$1000,111,FALSE)=\"\",\"No\",IF(LEFT(VLOOKUP($G846,$H$11:$DN$1000,111,FALSE),3)=\"The\",EI846,VLOOKUP(VLOOKUP($G846,$H$11:$DN$1000,111,FALSE),DeclMatrix!$A$2:$F$5,VLOOKUP('Enrollment Form'!$B846,DeclMatrix!$A$8:$B$12,2,FALSE),FALSE))))","v":""},"",null,"","","","","","","","","","","",""]
["",{"$nulls":5},"","",{"$nulls":18},"","","","",{"$nulls":30},"","","","",{"$nulls":60},"",{"$f":"IF($A847=\"\",\"\",IF(VLOOKUP($G847,$H$11:$DN$1000,96,FALSE)=\"\",\"No\",IF(LEFT(VLOOKUP($G847,$H$11:$DN$1000,96,FALSE),3)=\"The\",EF847,VLOOKUP(VLOOKUP($G847,$H$11:$DN$1000,96,FALSE),DeclMatrix!$A$2:$F$5,VLOOKUP('Enrollment Form'!$B847,DeclMatrix!$A$8:$B$12,2,FALSE),FALSE))))","v":""},{"$f":"IF($A847=\"\",\"\",IF(VLOOKUP($G847,$H$11:$DN$1000,101,FALSE)=\"\",\"No\",IF(LEFT(VLOOKUP($G847,$H$11:$DN$1000,101,FALSE),3)=\"The\",EG847,VLOOKUP(VLOOKUP($G847,$H$11:$DN$1000,101,FALSE),DeclMatrix!$A$2:$F$5,VLOOKUP('Enrollment Form'!$B847,DeclMatrix!$A$8:$B$12,2,FALSE),FALSE))))","v":""},{"$f":"IF($A847=\"\",\"\",IF(VLOOKUP($G847,$H$11:$DN$1000,106,FALSE)=\"\",\"No\",IF(LEFT(VLOOKUP($G847,$H$11:$DN$1000,106,FALSE),3)=\"The\",EH847,VLOOKUP(VLOOKUP($G847,$H$11:$DN$1000,106,FALSE),DeclMatrix!$A$2:$F$5,VLOOKUP('Enrollment Form'!$B847,DeclMatrix!$A$8:$B$12,2,FALSE),FALSE))))","v":""},{"$f":"IF($A847=\"\",\"\",IF(VLOOKUP($G847,$H$11:$DN$1000,111,FALSE)=\"\",\"No\",IF(LEFT(VLOOKUP($G847,$H$11:$DN$1000,111,FALSE),3)=\"The\",EI847,VLOOKUP(VLOOKUP($G847,$H$11:$DN$1000,111,FALSE),DeclMatrix!$A$2:$F$5,VLOOKUP('Enrollment Form'!$B847,DeclMatrix!$A$8:$B$12,2,FALSE),FALSE))))","v":""},"",null,"","","","","","","","","","","",""]
["",{"$nulls":5},"","",{"$nulls":18},"","","","",{"$nulls":30},"","","","",{"$nulls":60},"",{"$f":"IF($A848=\"\",\"\",IF(VLOOKUP($G848,$H$11:$DN$1000,96,FALSE)=\"\",\"No\",IF(LEFT(VLOOKUP($G848,$H$11:$DN$1000,96,FALSE),3)=\"The\",EF848,VLOOKUP(VLOOKUP($G848,$H$11:$DN$1000,96,FALSE),DeclMatrix!$A$2:$F$5,VLOOKUP('Enrollment Form'!$B848,DeclMatrix!$A$8:$B$12,2,FALSE),FALSE))))","v":""},{"$f":"IF($A848=\"\",\"\",IF(VLOOKUP($G848,$H$11:$DN$1000,101,FALSE)=\"\",\"No\",IF(LEFT(VLOOKUP($G848,$H$11:$DN$1000,101,FALSE),3)=\"The\",EG848,VLOOKUP(VLOOKUP($G848,$H$11:$DN$1000,101,FALSE),DeclMatrix!$A$2:$F$5,VLOOKUP('Enrollment Form'!$B848,DeclMatrix!$A$8:$B$12,2,FALSE),FALSE))))","v":""},{"$f":"IF($A848=\"\",\"\",IF(VLOOKUP($G848,$H$11:$DN$1000,106,FALSE)=\"\",\"No\",IF(LEFT(VLOOKUP($G848,$H$11:$DN$1000,106,FALSE),3)=\"The\",EH848,VLOOKUP(VLOOKUP($G848,$H$11:$DN$1000,106,FALSE),DeclMatrix!$A$2:$F$5,VLOOKUP('Enrollment Form'!$B848,DeclMatrix!$A$8:$B$12,2,FALSE),FALSE))))","v":""},{"$f":"IF($A848=\"\",\"\",IF(VLOOKUP($G848,$H$11:$DN$1000,111,FALSE)=\"\",\"No\",IF(LEFT(VLOOKUP($G848,$H$11:$DN$1000,111,FALSE),3)=\"The\",EI848,VLOOKUP(VLOOKUP($G848,$H$11:$DN$1000,111,FALSE),DeclMatrix!$A$2:$F$5,VLOOKUP('Enrollment Form'!$B848,DeclMatrix!$A$8:$B$12,2,FALSE),FALSE))))","v":""},"",null,"","","","","","","","","","","",""]
["",{"$nulls":5},"","",{"$nulls":18},"","","","",{"$nulls":30},"","","","",{"$nulls":60},"",{"$f":"IF($A849=\"\",\"\",IF(VLOOKUP($G849,$H$11:$DN$1000,96,FALSE)=\"\",\"No\",IF(LEFT(VLOOKUP($G849,$H$11:$DN$1000,96,FALSE),3)=\"The\",EF849,VLOOKUP(VLOOKUP($G849,$H$11:$DN$1000,96,FALSE),DeclMatrix!$A$2:$F$5,VLOOKUP('Enrollment Form'!$B849,DeclMatrix!$A$8:$B$12,2,FALSE),FALSE))))","v":""},{"$f":"IF($A849=\"\",\"\",IF(VLOOKUP($G849,$H$11:$DN$1000,101,FALSE)=\"\",\"No\",IF(LEFT(VLOOKUP($G849,$H$11:$DN$1000,101,FALSE),3)=\"The\",EG849,VLOOKUP(VLOOKUP($G849,$H$11:$DN$1000,101,FALSE),DeclMatrix!$A$2:$F$5,VLOOKUP('Enrollment Form'!$B849,DeclMatrix!$A$8:$B$12,2,FALSE),FALSE))))","v":""},{"$f":"IF($A849=\"\",\"\",IF(VLOOKUP($G849,$H$11:$DN$1000,106,FALSE)=\"\",\"No\",IF(LEFT(VLOOKUP($G849,$H$11:$DN$1000,106,FALSE),3)=\"The\",EH849,VLOOKUP(VLOOKUP($G849,$H$11:$DN$1000,106,FALSE),DeclMatrix!$A$2:$F$5,VLOOKUP('Enrollment Form'!$B849,DeclMatrix!$A$8:$B$12,2,FALSE),FALSE))))","v":""},{"$f":"IF($A849=\"\",\"\",IF(VLOOKUP($G849,$H$11:$DN$1000,111,FALSE)=\"\",\"No\",IF(LEFT(VLOOKUP($G849,$H$11:$DN$1000,111,FALSE),3)=\"The\",EI849,VLOOKUP(VLOOKUP($G849,$H$11:$DN$1000,111,FALSE),DeclMatrix!$A$2:$F$5,VLOOKUP('Enrollment Form'!$B849,DeclMatrix!$A$8:$B$12,2,FALSE),FALSE))))","v":""},"",null,"","","","","","","","","","","",""]
["",{"$nulls":5},"","",{"$nulls":18},"","","","",{"$nulls":30},"","","","",{"$nulls":60},"",{"$f":"IF($A850=\"\",\"\",IF(VLOOKUP($G850,$H$11:$DN$1000,96,FALSE)=\"\",\"No\",IF(LEFT(VLOOKUP($G850,$H$11:$DN$1000,96,FALSE),3)=\"The\",EF850,VLOOKUP(VLOOKUP($G850,$H$11:$DN$1000,96,FALSE),DeclMatrix!$A$2:$F$5,VLOOKUP('Enrollment Form'!$B850,DeclMatrix!$A$8:$B$12,2,FALSE),FALSE))))","v":""},{"$f":"IF($A850=\"\",\"\",IF(VLOOKUP($G850,$H$11:$DN$1000,101,FALSE)=\"\",\"No\",IF(LEFT(VLOOKUP($G850,$H$11:$DN$1000,101,FALSE),3)=\"The\",EG850,VLOOKUP(VLOOKUP($G850,$H$11:$DN$1000,101,FALSE),DeclMatrix!$A$2:$F$5,VLOOKUP('Enrollment Form'!$B850,DeclMatrix!$A$8:$B$12,2,FALSE),FALSE))))","v":""},{"$f":"IF($A850=\"\",\"\",IF(VLOOKUP($G850,$H$11:$DN$1000,106,FALSE)=\"\",\"No\",IF(LEFT(VLOOKUP($G850,$H$11:$DN$1000,106,FALSE),3)=\"The\",EH850,VLOOKUP(VLOOKUP($G850,$H$11:$DN$1000,106,FALSE),DeclMatrix!$A$2:$F$5,VLOOKUP('Enrollment Form'!$B850,DeclMatrix!$A$8:$B$12,2,FALSE),FALSE))))","v":""},{"$f":"IF($A850=\"\",\"\",IF(VLOOKUP($G850,$H$11:$DN$1000,111,FALSE)=\"\",\"No\",IF(LEFT(VLOOKUP($G850,$H$11:$DN$1000,111,FALSE),3)=\"The\",EI850,VLOOKUP(VLOOKUP($G850,$H$11:$DN$1000,111,FALSE),DeclMatrix!$A$2:$F$5,VLOOKUP('Enrollment Form'!$B850,DeclMatrix!$A$8:$B$12,2,FALSE),FALSE))))","v":""},"",null,"","","","","","","","","","","",""]
["",{"$nulls":5},"","",{"$nulls":18},"","","","",{"$nulls":30},"","","","",{"$nulls":60},"",{"$f":"IF($A851=\"\",\"\",IF(VLOOKUP($G851,$H$11:$DN$1000,96,FALSE)=\"\",\"No\",IF(LEFT(VLOOKUP($G851,$H$11:$DN$1000,96,FALSE),3)=\"The\",EF851,VLOOKUP(VLOOKUP($G851,$H$11:$DN$1000,96,FALSE),DeclMatrix!$A$2:$F$5,VLOOKUP('Enrollment Form'!$B851,DeclMatrix!$A$8:$B$12,2,FALSE),FALSE))))","v":""},{"$f":"IF($A851=\"\",\"\",IF(VLOOKUP($G851,$H$11:$DN$1000,101,FALSE)=\"\",\"No\",IF(LEFT(VLOOKUP($G851,$H$11:$DN$1000,101,FALSE),3)=\"The\",EG851,VLOOKUP(VLOOKUP($G851,$H$11:$DN$1000,101,FALSE),DeclMatrix!$A$2:$F$5,VLOOKUP('Enrollment Form'!$B851,DeclMatrix!$A$8:$B$12,2,FALSE),FALSE))))","v":""},{"$f":"IF($A851=\"\",\"\",IF(VLOOKUP($G851,$H$11:$DN$1000,106,FALSE)=\"\",\"No\",IF(LEFT(VLOOKUP($G851,$H$11:$DN$1000,106,FALSE),3)=\"The\",EH851,VLOOKUP(VLOOKUP($G851,$H$11:$DN$1000,106,FALSE),DeclMatrix!$A$2:$F$5,VLOOKUP('Enrollment Form'!$B851,DeclMatrix!$A$8:$B$12,2,FALSE),FALSE))))","v":""},{"$f":"IF($A851=\"\",\"\",IF(VLOOKUP($G851,$H$11:$DN$1000,111,FALSE)=\"\",\"No\",IF(LEFT(VLOOKUP($G851,$H$11:$DN$1000,111,FALSE),3)=\"The\",EI851,VLOOKUP(VLOOKUP($G851,$H$11:$DN$1000,111,FALSE),DeclMatrix!$A$2:$F$5,VLOOKUP('Enrollment Form'!$B851,DeclMatrix!$A$8:$B$12,2,FALSE),FALSE))))","v":""},"",null,"","","","","","","","","","","",""]
["",{"$nulls":5},"","",{"$nulls":18},"","","","",{"$nulls":30},"","","","",{"$nulls":60},"",{"$f":"IF($A852=\"\",\"\",IF(VLOOKUP($G852,$H$11:$DN$1000,96,FALSE)=\"\",\"No\",IF(LEFT(VLOOKUP($G852,$H$11:$DN$1000,96,FALSE),3)=\"The\",EF852,VLOOKUP(VLOOKUP($G852,$H$11:$DN$1000,96,FALSE),DeclMatrix!$A$2:$F$5,VLOOKUP('Enrollment Form'!$B852,DeclMatrix!$A$8:$B$12,2,FALSE),FALSE))))","v":""},{"$f":"IF($A852=\"\",\"\",IF(VLOOKUP($G852,$H$11:$DN$1000,101,FALSE)=\"\",\"No\",IF(LEFT(VLOOKUP($G852,$H$11:$DN$1000,101,FALSE),3)=\"The\",EG852,VLOOKUP(VLOOKUP($G852,$H$11:$DN$1000,101,FALSE),DeclMatrix!$A$2:$F$5,VLOOKUP('Enrollment Form'!$B852,DeclMatrix!$A$8:$B$12,2,FALSE),FALSE))))","v":""},{"$f":"IF($A852=\"\",\"\",IF(VLOOKUP($G852,$H$11:$DN$1000,106,FALSE)=\"\",\"No\",IF(LEFT(VLOOKUP($G852,$H$11:$DN$1000,106,FALSE),3)=\"The\",EH852,VLOOKUP(VLOOKUP($G852,$H$11:$DN$1000,106,FALSE),DeclMatrix!$A$2:$F$5,VLOOKUP('Enrollment Form'!$B852,DeclMatrix!$A$8:$B$12,2,FALSE),FALSE))))","v":""},{"$f":"IF($A852=\"\",\"\",IF(VLOOKUP($G852,$H$11:$DN$1000,111,FALSE)=\"\",\"No\",IF(LEFT(VLOOKUP($G852,$H$11:$DN$1000,111,FALSE),3)=\"The\",EI852,VLOOKUP(VLOOKUP($G852,$H$11:$DN$1000,111,FALSE),DeclMatrix!$A$2:$F$5,VLOOKUP('Enrollment Form'!$B852,DeclMatrix!$A$8:$B$12,2,FALSE),FALSE))))","v":""},"",null,"","","","","","","","","","","",""]
["",{"$nulls":5},"","",{"$nulls":18},"","","","",{"$nulls":30},"","","","",{"$nulls":60},"",{"$f":"IF($A853=\"\",\"\",IF(VLOOKUP($G853,$H$11:$DN$1000,96,FALSE)=\"\",\"No\",IF(LEFT(VLOOKUP($G853,$H$11:$DN$1000,96,FALSE),3)=\"The\",EF853,VLOOKUP(VLOOKUP($G853,$H$11:$DN$1000,96,FALSE),DeclMatrix!$A$2:$F$5,VLOOKUP('Enrollment Form'!$B853,DeclMatrix!$A$8:$B$12,2,FALSE),FALSE))))","v":""},{"$f":"IF($A853=\"\",\"\",IF(VLOOKUP($G853,$H$11:$DN$1000,101,FALSE)=\"\",\"No\",IF(LEFT(VLOOKUP($G853,$H$11:$DN$1000,101,FALSE),3)=\"The\",EG853,VLOOKUP(VLOOKUP($G853,$H$11:$DN$1000,101,FALSE),DeclMatrix!$A$2:$F$5,VLOOKUP('Enrollment Form'!$B853,DeclMatrix!$A$8:$B$12,2,FALSE),FALSE))))","v":""},{"$f":"IF($A853=\"\",\"\",IF(VLOOKUP($G853,$H$11:$DN$1000,106,FALSE)=\"\",\"No\",IF(LEFT(VLOOKUP($G853,$H$11:$DN$1000,106,FALSE),3)=\"The\",EH853,VLOOKUP(VLOOKUP($G853,$H$11:$DN$1000,106,FALSE),DeclMatrix!$A$2:$F$5,VLOOKUP('Enrollment Form'!$B853,DeclMatrix!$A$8:$B$12,2,FALSE),FALSE))))","v":""},{"$f":"IF($A853=\"\",\"\",IF(VLOOKUP($G853,$H$11:$DN$1000,111,FALSE)=\"\",\"No\",IF(LEFT(VLOOKUP($G853,$H$11:$DN$1000,111,FALSE),3)=\"The\",EI853,VLOOKUP(VLOOKUP($G853,$H$11:$DN$1000,111,FALSE),DeclMatrix!$A$2:$F$5,VLOOKUP('Enrollment Form'!$B853,DeclMatrix!$A$8:$B$12,2,FALSE),FALSE))))","v":""},"",null,"","","","","","","","","","","",""]
["",{"$nulls":5},"","",{"$nulls":18},"","","","",{"$nulls":30},"","","","",{"$nulls":60},"",{"$f":"IF($A854=\"\",\"\",IF(VLOOKUP($G854,$H$11:$DN$1000,96,FALSE)=\"\",\"No\",IF(LEFT(VLOOKUP($G854,$H$11:$DN$1000,96,FALSE),3)=\"The\",EF854,VLOOKUP(VLOOKUP($G854,$H$11:$DN$1000,96,FALSE),DeclMatrix!$A$2:$F$5,VLOOKUP('Enrollment Form'!$B854,DeclMatrix!$A$8:$B$12,2,FALSE),FALSE))))","v":""},{"$f":"IF($A854=\"\",\"\",IF(VLOOKUP($G854,$H$11:$DN$1000,101,FALSE)=\"\",\"No\",IF(LEFT(VLOOKUP($G854,$H$11:$DN$1000,101,FALSE),3)=\"The\",EG854,VLOOKUP(VLOOKUP($G854,$H$11:$DN$1000,101,FALSE),DeclMatrix!$A$2:$F$5,VLOOKUP('Enrollment Form'!$B854,DeclMatrix!$A$8:$B$12,2,FALSE),FALSE))))","v":""},{"$f":"IF($A854=\"\",\"\",IF(VLOOKUP($G854,$H$11:$DN$1000,106,FALSE)=\"\",\"No\",IF(LEFT(VLOOKUP($G854,$H$11:$DN$1000,106,FALSE),3)=\"The\",EH854,VLOOKUP(VLOOKUP($G854,$H$11:$DN$1000,106,FALSE),DeclMatrix!$A$2:$F$5,VLOOKUP('Enrollment Form'!$B854,DeclMatrix!$A$8:$B$12,2,FALSE),FALSE))))","v":""},{"$f":"IF($A854=\"\",\"\",IF(VLOOKUP($G854,$H$11:$DN$1000,111,FALSE)=\"\",\"No\",IF(LEFT(VLOOKUP($G854,$H$11:$DN$1000,111,FALSE),3)=\"The\",EI854,VLOOKUP(VLOOKUP($G854,$H$11:$DN$1000,111,FALSE),DeclMatrix!$A$2:$F$5,VLOOKUP('Enrollment Form'!$B854,DeclMatrix!$A$8:$B$12,2,FALSE),FALSE))))","v":""},"",null,"","","","","","","","","","","",""]
["",{"$nulls":5},"","",{"$nulls":18},"","","","",{"$nulls":30},"","","","",{"$nulls":60},"",{"$f":"IF($A855=\"\",\"\",IF(VLOOKUP($G855,$H$11:$DN$1000,96,FALSE)=\"\",\"No\",IF(LEFT(VLOOKUP($G855,$H$11:$DN$1000,96,FALSE),3)=\"The\",EF855,VLOOKUP(VLOOKUP($G855,$H$11:$DN$1000,96,FALSE),DeclMatrix!$A$2:$F$5,VLOOKUP('Enrollment Form'!$B855,DeclMatrix!$A$8:$B$12,2,FALSE),FALSE))))","v":""},{"$f":"IF($A855=\"\",\"\",IF(VLOOKUP($G855,$H$11:$DN$1000,101,FALSE)=\"\",\"No\",IF(LEFT(VLOOKUP($G855,$H$11:$DN$1000,101,FALSE),3)=\"The\",EG855,VLOOKUP(VLOOKUP($G855,$H$11:$DN$1000,101,FALSE),DeclMatrix!$A$2:$F$5,VLOOKUP('Enrollment Form'!$B855,DeclMatrix!$A$8:$B$12,2,FALSE),FALSE))))","v":""},{"$f":"IF($A855=\"\",\"\",IF(VLOOKUP($G855,$H$11:$DN$1000,106,FALSE)=\"\",\"No\",IF(LEFT(VLOOKUP($G855,$H$11:$DN$1000,106,FALSE),3)=\"The\",EH855,VLOOKUP(VLOOKUP($G855,$H$11:$DN$1000,106,FALSE),DeclMatrix!$A$2:$F$5,VLOOKUP('Enrollment Form'!$B855,DeclMatrix!$A$8:$B$12,2,FALSE),FALSE))))","v":""},{"$f":"IF($A855=\"\",\"\",IF(VLOOKUP($G855,$H$11:$DN$1000,111,FALSE)=\"\",\"No\",IF(LEFT(VLOOKUP($G855,$H$11:$DN$1000,111,FALSE),3)=\"The\",EI855,VLOOKUP(VLOOKUP($G855,$H$11:$DN$1000,111,FALSE),DeclMatrix!$A$2:$F$5,VLOOKUP('Enrollment Form'!$B855,DeclMatrix!$A$8:$B$12,2,FALSE),FALSE))))","v":""},"",null,"","","","","","","","","","","",""]
["",{"$nulls":5},"","",{"$nulls":18},"","","","",{"$nulls":30},"","","","",{"$nulls":60},"",{"$f":"IF($A856=\"\",\"\",IF(VLOOKUP($G856,$H$11:$DN$1000,96,FALSE)=\"\",\"No\",IF(LEFT(VLOOKUP($G856,$H$11:$DN$1000,96,FALSE),3)=\"The\",EF856,VLOOKUP(VLOOKUP($G856,$H$11:$DN$1000,96,FALSE),DeclMatrix!$A$2:$F$5,VLOOKUP('Enrollment Form'!$B856,DeclMatrix!$A$8:$B$12,2,FALSE),FALSE))))","v":""},{"$f":"IF($A856=\"\",\"\",IF(VLOOKUP($G856,$H$11:$DN$1000,101,FALSE)=\"\",\"No\",IF(LEFT(VLOOKUP($G856,$H$11:$DN$1000,101,FALSE),3)=\"The\",EG856,VLOOKUP(VLOOKUP($G856,$H$11:$DN$1000,101,FALSE),DeclMatrix!$A$2:$F$5,VLOOKUP('Enrollment Form'!$B856,DeclMatrix!$A$8:$B$12,2,FALSE),FALSE))))","v":""},{"$f":"IF($A856=\"\",\"\",IF(VLOOKUP($G856,$H$11:$DN$1000,106,FALSE)=\"\",\"No\",IF(LEFT(VLOOKUP($G856,$H$11:$DN$1000,106,FALSE),3)=\"The\",EH856,VLOOKUP(VLOOKUP($G856,$H$11:$DN$1000,106,FALSE),DeclMatrix!$A$2:$F$5,VLOOKUP('Enrollment Form'!$B856,DeclMatrix!$A$8:$B$12,2,FALSE),FALSE))))","v":""},{"$f":"IF($A856=\"\",\"\",IF(VLOOKUP($G856,$H$11:$DN$1000,111,FALSE)=\"\",\"No\",IF(LEFT(VLOOKUP($G856,$H$11:$DN$1000,111,FALSE),3)=\"The\",EI856,VLOOKUP(VLOOKUP($G856,$H$11:$DN$1000,111,FALSE),DeclMatrix!$A$2:$F$5,VLOOKUP('Enrollment Form'!$B856,DeclMatrix!$A$8:$B$12,2,FALSE),FALSE))))","v":""},"",null,"","","","","","","","","","","",""]
["",{"$nulls":5},"","",{"$nulls":18},"","","","",{"$nulls":30},"","","","",{"$nulls":60},"",{"$f":"IF($A857=\"\",\"\",IF(VLOOKUP($G857,$H$11:$DN$1000,96,FALSE)=\"\",\"No\",IF(LEFT(VLOOKUP($G857,$H$11:$DN$1000,96,FALSE),3)=\"The\",EF857,VLOOKUP(VLOOKUP($G857,$H$11:$DN$1000,96,FALSE),DeclMatrix!$A$2:$F$5,VLOOKUP('Enrollment Form'!$B857,DeclMatrix!$A$8:$B$12,2,FALSE),FALSE))))","v":""},{"$f":"IF($A857=\"\",\"\",IF(VLOOKUP($G857,$H$11:$DN$1000,101,FALSE)=\"\",\"No\",IF(LEFT(VLOOKUP($G857,$H$11:$DN$1000,101,FALSE),3)=\"The\",EG857,VLOOKUP(VLOOKUP($G857,$H$11:$DN$1000,101,FALSE),DeclMatrix!$A$2:$F$5,VLOOKUP('Enrollment Form'!$B857,DeclMatrix!$A$8:$B$12,2,FALSE),FALSE))))","v":""},{"$f":"IF($A857=\"\",\"\",IF(VLOOKUP($G857,$H$11:$DN$1000,106,FALSE)=\"\",\"No\",IF(LEFT(VLOOKUP($G857,$H$11:$DN$1000,106,FALSE),3)=\"The\",EH857,VLOOKUP(VLOOKUP($G857,$H$11:$DN$1000,106,FALSE),DeclMatrix!$A$2:$F$5,VLOOKUP('Enrollment Form'!$B857,DeclMatrix!$A$8:$B$12,2,FALSE),FALSE))))","v":""},{"$f":"IF($A857=\"\",\"\",IF(VLOOKUP($G857,$H$11:$DN$1000,111,FALSE)=\"\",\"No\",IF(LEFT(VLOOKUP($G857,$H$11:$DN$1000,111,FALSE),3)=\"The\",EI857,VLOOKUP(VLOOKUP($G857,$H$11:$DN$1000,111,FALSE),DeclMatrix!$A$2:$F$5,VLOOKUP('Enrollment Form'!$B857,DeclMatrix!$A$8:$B$12,2,FALSE),FALSE))))","v":""},"",null,"","","","","","","","","","","",""]
["",{"$nulls":5},"","",{"$nulls":18},"","","","",{"$nulls":30},"","","","",{"$nulls":60},"",{"$f":"IF($A858=\"\",\"\",IF(VLOOKUP($G858,$H$11:$DN$1000,96,FALSE)=\"\",\"No\",IF(LEFT(VLOOKUP($G858,$H$11:$DN$1000,96,FALSE),3)=\"The\",EF858,VLOOKUP(VLOOKUP($G858,$H$11:$DN$1000,96,FALSE),DeclMatrix!$A$2:$F$5,VLOOKUP('Enrollment Form'!$B858,DeclMatrix!$A$8:$B$12,2,FALSE),FALSE))))","v":""},{"$f":"IF($A858=\"\",\"\",IF(VLOOKUP($G858,$H$11:$DN$1000,101,FALSE)=\"\",\"No\",IF(LEFT(VLOOKUP($G858,$H$11:$DN$1000,101,FALSE),3)=\"The\",EG858,VLOOKUP(VLOOKUP($G858,$H$11:$DN$1000,101,FALSE),DeclMatrix!$A$2:$F$5,VLOOKUP('Enrollment Form'!$B858,DeclMatrix!$A$8:$B$12,2,FALSE),FALSE))))","v":""},{"$f":"IF($A858=\"\",\"\",IF(VLOOKUP($G858,$H$11:$DN$1000,106,FALSE)=\"\",\"No\",IF(LEFT(VLOOKUP($G858,$H$11:$DN$1000,106,FALSE),3)=\"The\",EH858,VLOOKUP(VLOOKUP($G858,$H$11:$DN$1000,106,FALSE),DeclMatrix!$A$2:$F$5,VLOOKUP('Enrollment Form'!$B858,DeclMatrix!$A$8:$B$12,2,FALSE),FALSE))))","v":""},{"$f":"IF($A858=\"\",\"\",IF(VLOOKUP($G858,$H$11:$DN$1000,111,FALSE)=\"\",\"No\",IF(LEFT(VLOOKUP($G858,$H$11:$DN$1000,111,FALSE),3)=\"The\",EI858,VLOOKUP(VLOOKUP($G858,$H$11:$DN$1000,111,FALSE),DeclMatrix!$A$2:$F$5,VLOOKUP('Enrollment Form'!$B858,DeclMatrix!$A$8:$B$12,2,FALSE),FALSE))))","v":""},"",null,"","","","","","","","","","","",""]
["",{"$nulls":5},"","",{"$nulls":18},"","","","",{"$nulls":30},"","","","",{"$nulls":60},"",{"$f":"IF($A859=\"\",\"\",IF(VLOOKUP($G859,$H$11:$DN$1000,96,FALSE)=\"\",\"No\",IF(LEFT(VLOOKUP($G859,$H$11:$DN$1000,96,FALSE),3)=\"The\",EF859,VLOOKUP(VLOOKUP($G859,$H$11:$DN$1000,96,FALSE),DeclMatrix!$A$2:$F$5,VLOOKUP('Enrollment Form'!$B859,DeclMatrix!$A$8:$B$12,2,FALSE),FALSE))))","v":""},{"$f":"IF($A859=\"\",\"\",IF(VLOOKUP($G859,$H$11:$DN$1000,101,FALSE)=\"\",\"No\",IF(LEFT(VLOOKUP($G859,$H$11:$DN$1000,101,FALSE),3)=\"The\",EG859,VLOOKUP(VLOOKUP($G859,$H$11:$DN$1000,101,FALSE),DeclMatrix!$A$2:$F$5,VLOOKUP('Enrollment Form'!$B859,DeclMatrix!$A$8:$B$12,2,FALSE),FALSE))))","v":""},{"$f":"IF($A859=\"\",\"\",IF(VLOOKUP($G859,$H$11:$DN$1000,106,FALSE)=\"\",\"No\",IF(LEFT(VLOOKUP($G859,$H$11:$DN$1000,106,FALSE),3)=\"The\",EH859,VLOOKUP(VLOOKUP($G859,$H$11:$DN$1000,106,FALSE),DeclMatrix!$A$2:$F$5,VLOOKUP('Enrollment Form'!$B859,DeclMatrix!$A$8:$B$12,2,FALSE),FALSE))))","v":""},{"$f":"IF($A859=\"\",\"\",IF(VLOOKUP($G859,$H$11:$DN$1000,111,FALSE)=\"\",\"No\",IF(LEFT(VLOOKUP($G859,$H$11:$DN$1000,111,FALSE),3)=\"The\",EI859,VLOOKUP(VLOOKUP($G859,$H$11:$DN$1000,111,FALSE),DeclMatrix!$A$2:$F$5,VLOOKUP('Enrollment Form'!$B859,DeclMatrix!$A$8:$B$12,2,FALSE),FALSE))))","v":""},"",null,"","","","","","","","","","","",""]
["",{"$nulls":5},"","",{"$nulls":18},"","","","",{"$nulls":30},"","","","",{"$nulls":60},"",{"$f":"IF($A860=\"\",\"\",IF(VLOOKUP($G860,$H$11:$DN$1000,96,FALSE)=\"\",\"No\",IF(LEFT(VLOOKUP($G860,$H$11:$DN$1000,96,FALSE),3)=\"The\",EF860,VLOOKUP(VLOOKUP($G860,$H$11:$DN$1000,96,FALSE),DeclMatrix!$A$2:$F$5,VLOOKUP('Enrollment Form'!$B860,DeclMatrix!$A$8:$B$12,2,FALSE),FALSE))))","v":""},{"$f":"IF($A860=\"\",\"\",IF(VLOOKUP($G860,$H$11:$DN$1000,101,FALSE)=\"\",\"No\",IF(LEFT(VLOOKUP($G860,$H$11:$DN$1000,101,FALSE),3)=\"The\",EG860,VLOOKUP(VLOOKUP($G860,$H$11:$DN$1000,101,FALSE),DeclMatrix!$A$2:$F$5,VLOOKUP('Enrollment Form'!$B860,DeclMatrix!$A$8:$B$12,2,FALSE),FALSE))))","v":""},{"$f":"IF($A860=\"\",\"\",IF(VLOOKUP($G860,$H$11:$DN$1000,106,FALSE)=\"\",\"No\",IF(LEFT(VLOOKUP($G860,$H$11:$DN$1000,106,FALSE),3)=\"The\",EH860,VLOOKUP(VLOOKUP($G860,$H$11:$DN$1000,106,FALSE),DeclMatrix!$A$2:$F$5,VLOOKUP('Enrollment Form'!$B860,DeclMatrix!$A$8:$B$12,2,FALSE),FALSE))))","v":""},{"$f":"IF($A860=\"\",\"\",IF(VLOOKUP($G860,$H$11:$DN$1000,111,FALSE)=\"\",\"No\",IF(LEFT(VLOOKUP($G860,$H$11:$DN$1000,111,FALSE),3)=\"The\",EI860,VLOOKUP(VLOOKUP($G860,$H$11:$DN$1000,111,FALSE),DeclMatrix!$A$2:$F$5,VLOOKUP('Enrollment Form'!$B860,DeclMatrix!$A$8:$B$12,2,FALSE),FALSE))))","v":""},"",null,"","","","","","","","","","","",""]
["",{"$nulls":5},"","",{"$nulls":18},"","","","",{"$nulls":30},"","","","",{"$nulls":60},"",{"$f":"IF($A861=\"\",\"\",IF(VLOOKUP($G861,$H$11:$DN$1000,96,FALSE)=\"\",\"No\",IF(LEFT(VLOOKUP($G861,$H$11:$DN$1000,96,FALSE),3)=\"The\",EF861,VLOOKUP(VLOOKUP($G861,$H$11:$DN$1000,96,FALSE),DeclMatrix!$A$2:$F$5,VLOOKUP('Enrollment Form'!$B861,DeclMatrix!$A$8:$B$12,2,FALSE),FALSE))))","v":""},{"$f":"IF($A861=\"\",\"\",IF(VLOOKUP($G861,$H$11:$DN$1000,101,FALSE)=\"\",\"No\",IF(LEFT(VLOOKUP($G861,$H$11:$DN$1000,101,FALSE),3)=\"The\",EG861,VLOOKUP(VLOOKUP($G861,$H$11:$DN$1000,101,FALSE),DeclMatrix!$A$2:$F$5,VLOOKUP('Enrollment Form'!$B861,DeclMatrix!$A$8:$B$12,2,FALSE),FALSE))))","v":""},{"$f":"IF($A861=\"\",\"\",IF(VLOOKUP($G861,$H$11:$DN$1000,106,FALSE)=\"\",\"No\",IF(LEFT(VLOOKUP($G861,$H$11:$DN$1000,106,FALSE),3)=\"The\",EH861,VLOOKUP(VLOOKUP($G861,$H$11:$DN$1000,106,FALSE),DeclMatrix!$A$2:$F$5,VLOOKUP('Enrollment Form'!$B861,DeclMatrix!$A$8:$B$12,2,FALSE),FALSE))))","v":""},{"$f":"IF($A861=\"\",\"\",IF(VLOOKUP($G861,$H$11:$DN$1000,111,FALSE)=\"\",\"No\",IF(LEFT(VLOOKUP($G861,$H$11:$DN$1000,111,FALSE),3)=\"The\",EI861,VLOOKUP(VLOOKUP($G861,$H$11:$DN$1000,111,FALSE),DeclMatrix!$A$2:$F$5,VLOOKUP('Enrollment Form'!$B861,DeclMatrix!$A$8:$B$12,2,FALSE),FALSE))))","v":""},"",null,"","","","","","","","","","","",""]
["",{"$nulls":5},"","",{"$nulls":18},"","","","",{"$nulls":30},"","","","",{"$nulls":60},"",{"$f":"IF($A862=\"\",\"\",IF(VLOOKUP($G862,$H$11:$DN$1000,96,FALSE)=\"\",\"No\",IF(LEFT(VLOOKUP($G862,$H$11:$DN$1000,96,FALSE),3)=\"The\",EF862,VLOOKUP(VLOOKUP($G862,$H$11:$DN$1000,96,FALSE),DeclMatrix!$A$2:$F$5,VLOOKUP('Enrollment Form'!$B862,DeclMatrix!$A$8:$B$12,2,FALSE),FALSE))))","v":""},{"$f":"IF($A862=\"\",\"\",IF(VLOOKUP($G862,$H$11:$DN$1000,101,FALSE)=\"\",\"No\",IF(LEFT(VLOOKUP($G862,$H$11:$DN$1000,101,FALSE),3)=\"The\",EG862,VLOOKUP(VLOOKUP($G862,$H$11:$DN$1000,101,FALSE),DeclMatrix!$A$2:$F$5,VLOOKUP('Enrollment Form'!$B862,DeclMatrix!$A$8:$B$12,2,FALSE),FALSE))))","v":""},{"$f":"IF($A862=\"\",\"\",IF(VLOOKUP($G862,$H$11:$DN$1000,106,FALSE)=\"\",\"No\",IF(LEFT(VLOOKUP($G862,$H$11:$DN$1000,106,FALSE),3)=\"The\",EH862,VLOOKUP(VLOOKUP($G862,$H$11:$DN$1000,106,FALSE),DeclMatrix!$A$2:$F$5,VLOOKUP('Enrollment Form'!$B862,DeclMatrix!$A$8:$B$12,2,FALSE),FALSE))))","v":""},{"$f":"IF($A862=\"\",\"\",IF(VLOOKUP($G862,$H$11:$DN$1000,111,FALSE)=\"\",\"No\",IF(LEFT(VLOOKUP($G862,$H$11:$DN$1000,111,FALSE),3)=\"The\",EI862,VLOOKUP(VLOOKUP($G862,$H$11:$DN$1000,111,FALSE),DeclMatrix!$A$2:$F$5,VLOOKUP('Enrollment Form'!$B862,DeclMatrix!$A$8:$B$12,2,FALSE),FALSE))))","v":""},"",null,"","","","","","","","","","","",""]
["",{"$nulls":5},"","",{"$nulls":18},"","","","",{"$nulls":30},"","","","",{"$nulls":60},"",{"$f":"IF($A863=\"\",\"\",IF(VLOOKUP($G863,$H$11:$DN$1000,96,FALSE)=\"\",\"No\",IF(LEFT(VLOOKUP($G863,$H$11:$DN$1000,96,FALSE),3)=\"The\",EF863,VLOOKUP(VLOOKUP($G863,$H$11:$DN$1000,96,FALSE),DeclMatrix!$A$2:$F$5,VLOOKUP('Enrollment Form'!$B863,DeclMatrix!$A$8:$B$12,2,FALSE),FALSE))))","v":""},{"$f":"IF($A863=\"\",\"\",IF(VLOOKUP($G863,$H$11:$DN$1000,101,FALSE)=\"\",\"No\",IF(LEFT(VLOOKUP($G863,$H$11:$DN$1000,101,FALSE),3)=\"The\",EG863,VLOOKUP(VLOOKUP($G863,$H$11:$DN$1000,101,FALSE),DeclMatrix!$A$2:$F$5,VLOOKUP('Enrollment Form'!$B863,DeclMatrix!$A$8:$B$12,2,FALSE),FALSE))))","v":""},{"$f":"IF($A863=\"\",\"\",IF(VLOOKUP($G863,$H$11:$DN$1000,106,FALSE)=\"\",\"No\",IF(LEFT(VLOOKUP($G863,$H$11:$DN$1000,106,FALSE),3)=\"The\",EH863,VLOOKUP(VLOOKUP($G863,$H$11:$DN$1000,106,FALSE),DeclMatrix!$A$2:$F$5,VLOOKUP('Enrollment Form'!$B863,DeclMatrix!$A$8:$B$12,2,FALSE),FALSE))))","v":""},{"$f":"IF($A863=\"\",\"\",IF(VLOOKUP($G863,$H$11:$DN$1000,111,FALSE)=\"\",\"No\",IF(LEFT(VLOOKUP($G863,$H$11:$DN$1000,111,FALSE),3)=\"The\",EI863,VLOOKUP(VLOOKUP($G863,$H$11:$DN$1000,111,FALSE),DeclMatrix!$A$2:$F$5,VLOOKUP('Enrollment Form'!$B863,DeclMatrix!$A$8:$B$12,2,FALSE),FALSE))))","v":""},"",null,"","","","","","","","","","","",""]
["",{"$nulls":5},"","",{"$nulls":18},"","","","",{"$nulls":30},"","","","",{"$nulls":60},"",{"$f":"IF($A864=\"\",\"\",IF(VLOOKUP($G864,$H$11:$DN$1000,96,FALSE)=\"\",\"No\",IF(LEFT(VLOOKUP($G864,$H$11:$DN$1000,96,FALSE),3)=\"The\",EF864,VLOOKUP(VLOOKUP($G864,$H$11:$DN$1000,96,FALSE),DeclMatrix!$A$2:$F$5,VLOOKUP('Enrollment Form'!$B864,DeclMatrix!$A$8:$B$12,2,FALSE),FALSE))))","v":""},{"$f":"IF($A864=\"\",\"\",IF(VLOOKUP($G864,$H$11:$DN$1000,101,FALSE)=\"\",\"No\",IF(LEFT(VLOOKUP($G864,$H$11:$DN$1000,101,FALSE),3)=\"The\",EG864,VLOOKUP(VLOOKUP($G864,$H$11:$DN$1000,101,FALSE),DeclMatrix!$A$2:$F$5,VLOOKUP('Enrollment Form'!$B864,DeclMatrix!$A$8:$B$12,2,FALSE),FALSE))))","v":""},{"$f":"IF($A864=\"\",\"\",IF(VLOOKUP($G864,$H$11:$DN$1000,106,FALSE)=\"\",\"No\",IF(LEFT(VLOOKUP($G864,$H$11:$DN$1000,106,FALSE),3)=\"The\",EH864,VLOOKUP(VLOOKUP($G864,$H$11:$DN$1000,106,FALSE),DeclMatrix!$A$2:$F$5,VLOOKUP('Enrollment Form'!$B864,DeclMatrix!$A$8:$B$12,2,FALSE),FALSE))))","v":""},{"$f":"IF($A864=\"\",\"\",IF(VLOOKUP($G864,$H$11:$DN$1000,111,FALSE)=\"\",\"No\",IF(LEFT(VLOOKUP($G864,$H$11:$DN$1000,111,FALSE),3)=\"The\",EI864,VLOOKUP(VLOOKUP($G864,$H$11:$DN$1000,111,FALSE),DeclMatrix!$A$2:$F$5,VLOOKUP('Enrollment Form'!$B864,DeclMatrix!$A$8:$B$12,2,FALSE),FALSE))))","v":""},"",null,"","","","","","","","","","","",""]
["",{"$nulls":5},"","",{"$nulls":18},"","","","",{"$nulls":30},"","","","",{"$nulls":60},"",{"$f":"IF($A865=\"\",\"\",IF(VLOOKUP($G865,$H$11:$DN$1000,96,FALSE)=\"\",\"No\",IF(LEFT(VLOOKUP($G865,$H$11:$DN$1000,96,FALSE),3)=\"The\",EF865,VLOOKUP(VLOOKUP($G865,$H$11:$DN$1000,96,FALSE),DeclMatrix!$A$2:$F$5,VLOOKUP('Enrollment Form'!$B865,DeclMatrix!$A$8:$B$12,2,FALSE),FALSE))))","v":""},{"$f":"IF($A865=\"\",\"\",IF(VLOOKUP($G865,$H$11:$DN$1000,101,FALSE)=\"\",\"No\",IF(LEFT(VLOOKUP($G865,$H$11:$DN$1000,101,FALSE),3)=\"The\",EG865,VLOOKUP(VLOOKUP($G865,$H$11:$DN$1000,101,FALSE),DeclMatrix!$A$2:$F$5,VLOOKUP('Enrollment Form'!$B865,DeclMatrix!$A$8:$B$12,2,FALSE),FALSE))))","v":""},{"$f":"IF($A865=\"\",\"\",IF(VLOOKUP($G865,$H$11:$DN$1000,106,FALSE)=\"\",\"No\",IF(LEFT(VLOOKUP($G865,$H$11:$DN$1000,106,FALSE),3)=\"The\",EH865,VLOOKUP(VLOOKUP($G865,$H$11:$DN$1000,106,FALSE),DeclMatrix!$A$2:$F$5,VLOOKUP('Enrollment Form'!$B865,DeclMatrix!$A$8:$B$12,2,FALSE),FALSE))))","v":""},{"$f":"IF($A865=\"\",\"\",IF(VLOOKUP($G865,$H$11:$DN$1000,111,FALSE)=\"\",\"No\",IF(LEFT(VLOOKUP($G865,$H$11:$DN$1000,111,FALSE),3)=\"The\",EI865,VLOOKUP(VLOOKUP($G865,$H$11:$DN$1000,111,FALSE),DeclMatrix!$A$2:$F$5,VLOOKUP('Enrollment Form'!$B865,DeclMatrix!$A$8:$B$12,2,FALSE),FALSE))))","v":""},"",null,"","","","","","","","","","","",""]
["",{"$nulls":5},"","",{"$nulls":18},"","","","",{"$nulls":30},"","","","",{"$nulls":60},"",{"$f":"IF($A866=\"\",\"\",IF(VLOOKUP($G866,$H$11:$DN$1000,96,FALSE)=\"\",\"No\",IF(LEFT(VLOOKUP($G866,$H$11:$DN$1000,96,FALSE),3)=\"The\",EF866,VLOOKUP(VLOOKUP($G866,$H$11:$DN$1000,96,FALSE),DeclMatrix!$A$2:$F$5,VLOOKUP('Enrollment Form'!$B866,DeclMatrix!$A$8:$B$12,2,FALSE),FALSE))))","v":""},{"$f":"IF($A866=\"\",\"\",IF(VLOOKUP($G866,$H$11:$DN$1000,101,FALSE)=\"\",\"No\",IF(LEFT(VLOOKUP($G866,$H$11:$DN$1000,101,FALSE),3)=\"The\",EG866,VLOOKUP(VLOOKUP($G866,$H$11:$DN$1000,101,FALSE),DeclMatrix!$A$2:$F$5,VLOOKUP('Enrollment Form'!$B866,DeclMatrix!$A$8:$B$12,2,FALSE),FALSE))))","v":""},{"$f":"IF($A866=\"\",\"\",IF(VLOOKUP($G866,$H$11:$DN$1000,106,FALSE)=\"\",\"No\",IF(LEFT(VLOOKUP($G866,$H$11:$DN$1000,106,FALSE),3)=\"The\",EH866,VLOOKUP(VLOOKUP($G866,$H$11:$DN$1000,106,FALSE),DeclMatrix!$A$2:$F$5,VLOOKUP('Enrollment Form'!$B866,DeclMatrix!$A$8:$B$12,2,FALSE),FALSE))))","v":""},{"$f":"IF($A866=\"\",\"\",IF(VLOOKUP($G866,$H$11:$DN$1000,111,FALSE)=\"\",\"No\",IF(LEFT(VLOOKUP($G866,$H$11:$DN$1000,111,FALSE),3)=\"The\",EI866,VLOOKUP(VLOOKUP($G866,$H$11:$DN$1000,111,FALSE),DeclMatrix!$A$2:$F$5,VLOOKUP('Enrollment Form'!$B866,DeclMatrix!$A$8:$B$12,2,FALSE),FALSE))))","v":""},"",null,"","","","","","","","","","","",""]
["",{"$nulls":5},"","",{"$nulls":18},"","","","",{"$nulls":30},"","","","",{"$nulls":60},"",{"$f":"IF($A867=\"\",\"\",IF(VLOOKUP($G867,$H$11:$DN$1000,96,FALSE)=\"\",\"No\",IF(LEFT(VLOOKUP($G867,$H$11:$DN$1000,96,FALSE),3)=\"The\",EF867,VLOOKUP(VLOOKUP($G867,$H$11:$DN$1000,96,FALSE),DeclMatrix!$A$2:$F$5,VLOOKUP('Enrollment Form'!$B867,DeclMatrix!$A$8:$B$12,2,FALSE),FALSE))))","v":""},{"$f":"IF($A867=\"\",\"\",IF(VLOOKUP($G867,$H$11:$DN$1000,101,FALSE)=\"\",\"No\",IF(LEFT(VLOOKUP($G867,$H$11:$DN$1000,101,FALSE),3)=\"The\",EG867,VLOOKUP(VLOOKUP($G867,$H$11:$DN$1000,101,FALSE),DeclMatrix!$A$2:$F$5,VLOOKUP('Enrollment Form'!$B867,DeclMatrix!$A$8:$B$12,2,FALSE),FALSE))))","v":""},{"$f":"IF($A867=\"\",\"\",IF(VLOOKUP($G867,$H$11:$DN$1000,106,FALSE)=\"\",\"No\",IF(LEFT(VLOOKUP($G867,$H$11:$DN$1000,106,FALSE),3)=\"The\",EH867,VLOOKUP(VLOOKUP($G867,$H$11:$DN$1000,106,FALSE),DeclMatrix!$A$2:$F$5,VLOOKUP('Enrollment Form'!$B867,DeclMatrix!$A$8:$B$12,2,FALSE),FALSE))))","v":""},{"$f":"IF($A867=\"\",\"\",IF(VLOOKUP($G867,$H$11:$DN$1000,111,FALSE)=\"\",\"No\",IF(LEFT(VLOOKUP($G867,$H$11:$DN$1000,111,FALSE),3)=\"The\",EI867,VLOOKUP(VLOOKUP($G867,$H$11:$DN$1000,111,FALSE),DeclMatrix!$A$2:$F$5,VLOOKUP('Enrollment Form'!$B867,DeclMatrix!$A$8:$B$12,2,FALSE),FALSE))))","v":""},"",null,"","","","","","","","","","","",""]
["",{"$nulls":5},"","",{"$nulls":18},"","","","",{"$nulls":30},"","","","",{"$nulls":60},"",{"$f":"IF($A868=\"\",\"\",IF(VLOOKUP($G868,$H$11:$DN$1000,96,FALSE)=\"\",\"No\",IF(LEFT(VLOOKUP($G868,$H$11:$DN$1000,96,FALSE),3)=\"The\",EF868,VLOOKUP(VLOOKUP($G868,$H$11:$DN$1000,96,FALSE),DeclMatrix!$A$2:$F$5,VLOOKUP('Enrollment Form'!$B868,DeclMatrix!$A$8:$B$12,2,FALSE),FALSE))))","v":""},{"$f":"IF($A868=\"\",\"\",IF(VLOOKUP($G868,$H$11:$DN$1000,101,FALSE)=\"\",\"No\",IF(LEFT(VLOOKUP($G868,$H$11:$DN$1000,101,FALSE),3)=\"The\",EG868,VLOOKUP(VLOOKUP($G868,$H$11:$DN$1000,101,FALSE),DeclMatrix!$A$2:$F$5,VLOOKUP('Enrollment Form'!$B868,DeclMatrix!$A$8:$B$12,2,FALSE),FALSE))))","v":""},{"$f":"IF($A868=\"\",\"\",IF(VLOOKUP($G868,$H$11:$DN$1000,106,FALSE)=\"\",\"No\",IF(LEFT(VLOOKUP($G868,$H$11:$DN$1000,106,FALSE),3)=\"The\",EH868,VLOOKUP(VLOOKUP($G868,$H$11:$DN$1000,106,FALSE),DeclMatrix!$A$2:$F$5,VLOOKUP('Enrollment Form'!$B868,DeclMatrix!$A$8:$B$12,2,FALSE),FALSE))))","v":""},{"$f":"IF($A868=\"\",\"\",IF(VLOOKUP($G868,$H$11:$DN$1000,111,FALSE)=\"\",\"No\",IF(LEFT(VLOOKUP($G868,$H$11:$DN$1000,111,FALSE),3)=\"The\",EI868,VLOOKUP(VLOOKUP($G868,$H$11:$DN$1000,111,FALSE),DeclMatrix!$A$2:$F$5,VLOOKUP('Enrollment Form'!$B868,DeclMatrix!$A$8:$B$12,2,FALSE),FALSE))))","v":""},"",null,"","","","","","","","","","","",""]
["",{"$nulls":5},"","",{"$nulls":18},"","","","",{"$nulls":30},"","","","",{"$nulls":60},"",{"$f":"IF($A869=\"\",\"\",IF(VLOOKUP($G869,$H$11:$DN$1000,96,FALSE)=\"\",\"No\",IF(LEFT(VLOOKUP($G869,$H$11:$DN$1000,96,FALSE),3)=\"The\",EF869,VLOOKUP(VLOOKUP($G869,$H$11:$DN$1000,96,FALSE),DeclMatrix!$A$2:$F$5,VLOOKUP('Enrollment Form'!$B869,DeclMatrix!$A$8:$B$12,2,FALSE),FALSE))))","v":""},{"$f":"IF($A869=\"\",\"\",IF(VLOOKUP($G869,$H$11:$DN$1000,101,FALSE)=\"\",\"No\",IF(LEFT(VLOOKUP($G869,$H$11:$DN$1000,101,FALSE),3)=\"The\",EG869,VLOOKUP(VLOOKUP($G869,$H$11:$DN$1000,101,FALSE),DeclMatrix!$A$2:$F$5,VLOOKUP('Enrollment Form'!$B869,DeclMatrix!$A$8:$B$12,2,FALSE),FALSE))))","v":""},{"$f":"IF($A869=\"\",\"\",IF(VLOOKUP($G869,$H$11:$DN$1000,106,FALSE)=\"\",\"No\",IF(LEFT(VLOOKUP($G869,$H$11:$DN$1000,106,FALSE),3)=\"The\",EH869,VLOOKUP(VLOOKUP($G869,$H$11:$DN$1000,106,FALSE),DeclMatrix!$A$2:$F$5,VLOOKUP('Enrollment Form'!$B869,DeclMatrix!$A$8:$B$12,2,FALSE),FALSE))))","v":""},{"$f":"IF($A869=\"\",\"\",IF(VLOOKUP($G869,$H$11:$DN$1000,111,FALSE)=\"\",\"No\",IF(LEFT(VLOOKUP($G869,$H$11:$DN$1000,111,FALSE),3)=\"The\",EI869,VLOOKUP(VLOOKUP($G869,$H$11:$DN$1000,111,FALSE),DeclMatrix!$A$2:$F$5,VLOOKUP('Enrollment Form'!$B869,DeclMatrix!$A$8:$B$12,2,FALSE),FALSE))))","v":""},"",null,"","","","","","","","","","","",""]
["",{"$nulls":5},"","",{"$nulls":18},"","","","",{"$nulls":30},"","","","",{"$nulls":60},"",{"$f":"IF($A870=\"\",\"\",IF(VLOOKUP($G870,$H$11:$DN$1000,96,FALSE)=\"\",\"No\",IF(LEFT(VLOOKUP($G870,$H$11:$DN$1000,96,FALSE),3)=\"The\",EF870,VLOOKUP(VLOOKUP($G870,$H$11:$DN$1000,96,FALSE),DeclMatrix!$A$2:$F$5,VLOOKUP('Enrollment Form'!$B870,DeclMatrix!$A$8:$B$12,2,FALSE),FALSE))))","v":""},{"$f":"IF($A870=\"\",\"\",IF(VLOOKUP($G870,$H$11:$DN$1000,101,FALSE)=\"\",\"No\",IF(LEFT(VLOOKUP($G870,$H$11:$DN$1000,101,FALSE),3)=\"The\",EG870,VLOOKUP(VLOOKUP($G870,$H$11:$DN$1000,101,FALSE),DeclMatrix!$A$2:$F$5,VLOOKUP('Enrollment Form'!$B870,DeclMatrix!$A$8:$B$12,2,FALSE),FALSE))))","v":""},{"$f":"IF($A870=\"\",\"\",IF(VLOOKUP($G870,$H$11:$DN$1000,106,FALSE)=\"\",\"No\",IF(LEFT(VLOOKUP($G870,$H$11:$DN$1000,106,FALSE),3)=\"The\",EH870,VLOOKUP(VLOOKUP($G870,$H$11:$DN$1000,106,FALSE),DeclMatrix!$A$2:$F$5,VLOOKUP('Enrollment Form'!$B870,DeclMatrix!$A$8:$B$12,2,FALSE),FALSE))))","v":""},{"$f":"IF($A870=\"\",\"\",IF(VLOOKUP($G870,$H$11:$DN$1000,111,FALSE)=\"\",\"No\",IF(LEFT(VLOOKUP($G870,$H$11:$DN$1000,111,FALSE),3)=\"The\",EI870,VLOOKUP(VLOOKUP($G870,$H$11:$DN$1000,111,FALSE),DeclMatrix!$A$2:$F$5,VLOOKUP('Enrollment Form'!$B870,DeclMatrix!$A$8:$B$12,2,FALSE),FALSE))))","v":""},"",null,"","","","","","","","","","","",""]
["",{"$nulls":5},"","",{"$nulls":18},"","","","",{"$nulls":30},"","","","",{"$nulls":60},"",{"$f":"IF($A871=\"\",\"\",IF(VLOOKUP($G871,$H$11:$DN$1000,96,FALSE)=\"\",\"No\",IF(LEFT(VLOOKUP($G871,$H$11:$DN$1000,96,FALSE),3)=\"The\",EF871,VLOOKUP(VLOOKUP($G871,$H$11:$DN$1000,96,FALSE),DeclMatrix!$A$2:$F$5,VLOOKUP('Enrollment Form'!$B871,DeclMatrix!$A$8:$B$12,2,FALSE),FALSE))))","v":""},{"$f":"IF($A871=\"\",\"\",IF(VLOOKUP($G871,$H$11:$DN$1000,101,FALSE)=\"\",\"No\",IF(LEFT(VLOOKUP($G871,$H$11:$DN$1000,101,FALSE),3)=\"The\",EG871,VLOOKUP(VLOOKUP($G871,$H$11:$DN$1000,101,FALSE),DeclMatrix!$A$2:$F$5,VLOOKUP('Enrollment Form'!$B871,DeclMatrix!$A$8:$B$12,2,FALSE),FALSE))))","v":""},{"$f":"IF($A871=\"\",\"\",IF(VLOOKUP($G871,$H$11:$DN$1000,106,FALSE)=\"\",\"No\",IF(LEFT(VLOOKUP($G871,$H$11:$DN$1000,106,FALSE),3)=\"The\",EH871,VLOOKUP(VLOOKUP($G871,$H$11:$DN$1000,106,FALSE),DeclMatrix!$A$2:$F$5,VLOOKUP('Enrollment Form'!$B871,DeclMatrix!$A$8:$B$12,2,FALSE),FALSE))))","v":""},{"$f":"IF($A871=\"\",\"\",IF(VLOOKUP($G871,$H$11:$DN$1000,111,FALSE)=\"\",\"No\",IF(LEFT(VLOOKUP($G871,$H$11:$DN$1000,111,FALSE),3)=\"The\",EI871,VLOOKUP(VLOOKUP($G871,$H$11:$DN$1000,111,FALSE),DeclMatrix!$A$2:$F$5,VLOOKUP('Enrollment Form'!$B871,DeclMatrix!$A$8:$B$12,2,FALSE),FALSE))))","v":""},"",null,"","","","","","","","","","","",""]
["",{"$nulls":5},"","",{"$nulls":18},"","","","",{"$nulls":30},"","","","",{"$nulls":60},"",{"$f":"IF($A872=\"\",\"\",IF(VLOOKUP($G872,$H$11:$DN$1000,96,FALSE)=\"\",\"No\",IF(LEFT(VLOOKUP($G872,$H$11:$DN$1000,96,FALSE),3)=\"The\",EF872,VLOOKUP(VLOOKUP($G872,$H$11:$DN$1000,96,FALSE),DeclMatrix!$A$2:$F$5,VLOOKUP('Enrollment Form'!$B872,DeclMatrix!$A$8:$B$12,2,FALSE),FALSE))))","v":""},{"$f":"IF($A872=\"\",\"\",IF(VLOOKUP($G872,$H$11:$DN$1000,101,FALSE)=\"\",\"No\",IF(LEFT(VLOOKUP($G872,$H$11:$DN$1000,101,FALSE),3)=\"The\",EG872,VLOOKUP(VLOOKUP($G872,$H$11:$DN$1000,101,FALSE),DeclMatrix!$A$2:$F$5,VLOOKUP('Enrollment Form'!$B872,DeclMatrix!$A$8:$B$12,2,FALSE),FALSE))))","v":""},{"$f":"IF($A872=\"\",\"\",IF(VLOOKUP($G872,$H$11:$DN$1000,106,FALSE)=\"\",\"No\",IF(LEFT(VLOOKUP($G872,$H$11:$DN$1000,106,FALSE),3)=\"The\",EH872,VLOOKUP(VLOOKUP($G872,$H$11:$DN$1000,106,FALSE),DeclMatrix!$A$2:$F$5,VLOOKUP('Enrollment Form'!$B872,DeclMatrix!$A$8:$B$12,2,FALSE),FALSE))))","v":""},{"$f":"IF($A872=\"\",\"\",IF(VLOOKUP($G872,$H$11:$DN$1000,111,FALSE)=\"\",\"No\",IF(LEFT(VLOOKUP($G872,$H$11:$DN$1000,111,FALSE),3)=\"The\",EI872,VLOOKUP(VLOOKUP($G872,$H$11:$DN$1000,111,FALSE),DeclMatrix!$A$2:$F$5,VLOOKUP('Enrollment Form'!$B872,DeclMatrix!$A$8:$B$12,2,FALSE),FALSE))))","v":""},"",null,"","","","","","","","","","","",""]
["",{"$nulls":5},"","",{"$nulls":18},"","","","",{"$nulls":30},"","","","",{"$nulls":60},"",{"$f":"IF($A873=\"\",\"\",IF(VLOOKUP($G873,$H$11:$DN$1000,96,FALSE)=\"\",\"No\",IF(LEFT(VLOOKUP($G873,$H$11:$DN$1000,96,FALSE),3)=\"The\",EF873,VLOOKUP(VLOOKUP($G873,$H$11:$DN$1000,96,FALSE),DeclMatrix!$A$2:$F$5,VLOOKUP('Enrollment Form'!$B873,DeclMatrix!$A$8:$B$12,2,FALSE),FALSE))))","v":""},{"$f":"IF($A873=\"\",\"\",IF(VLOOKUP($G873,$H$11:$DN$1000,101,FALSE)=\"\",\"No\",IF(LEFT(VLOOKUP($G873,$H$11:$DN$1000,101,FALSE),3)=\"The\",EG873,VLOOKUP(VLOOKUP($G873,$H$11:$DN$1000,101,FALSE),DeclMatrix!$A$2:$F$5,VLOOKUP('Enrollment Form'!$B873,DeclMatrix!$A$8:$B$12,2,FALSE),FALSE))))","v":""},{"$f":"IF($A873=\"\",\"\",IF(VLOOKUP($G873,$H$11:$DN$1000,106,FALSE)=\"\",\"No\",IF(LEFT(VLOOKUP($G873,$H$11:$DN$1000,106,FALSE),3)=\"The\",EH873,VLOOKUP(VLOOKUP($G873,$H$11:$DN$1000,106,FALSE),DeclMatrix!$A$2:$F$5,VLOOKUP('Enrollment Form'!$B873,DeclMatrix!$A$8:$B$12,2,FALSE),FALSE))))","v":""},{"$f":"IF($A873=\"\",\"\",IF(VLOOKUP($G873,$H$11:$DN$1000,111,FALSE)=\"\",\"No\",IF(LEFT(VLOOKUP($G873,$H$11:$DN$1000,111,FALSE),3)=\"The\",EI873,VLOOKUP(VLOOKUP($G873,$H$11:$DN$1000,111,FALSE),DeclMatrix!$A$2:$F$5,VLOOKUP('Enrollment Form'!$B873,DeclMatrix!$A$8:$B$12,2,FALSE),FALSE))))","v":""},"",null,"","","","","","","","","","","",""]
["",{"$nulls":5},"","",{"$nulls":18},"","","","",{"$nulls":30},"","","","",{"$nulls":60},"",{"$f":"IF($A874=\"\",\"\",IF(VLOOKUP($G874,$H$11:$DN$1000,96,FALSE)=\"\",\"No\",IF(LEFT(VLOOKUP($G874,$H$11:$DN$1000,96,FALSE),3)=\"The\",EF874,VLOOKUP(VLOOKUP($G874,$H$11:$DN$1000,96,FALSE),DeclMatrix!$A$2:$F$5,VLOOKUP('Enrollment Form'!$B874,DeclMatrix!$A$8:$B$12,2,FALSE),FALSE))))","v":""},{"$f":"IF($A874=\"\",\"\",IF(VLOOKUP($G874,$H$11:$DN$1000,101,FALSE)=\"\",\"No\",IF(LEFT(VLOOKUP($G874,$H$11:$DN$1000,101,FALSE),3)=\"The\",EG874,VLOOKUP(VLOOKUP($G874,$H$11:$DN$1000,101,FALSE),DeclMatrix!$A$2:$F$5,VLOOKUP('Enrollment Form'!$B874,DeclMatrix!$A$8:$B$12,2,FALSE),FALSE))))","v":""},{"$f":"IF($A874=\"\",\"\",IF(VLOOKUP($G874,$H$11:$DN$1000,106,FALSE)=\"\",\"No\",IF(LEFT(VLOOKUP($G874,$H$11:$DN$1000,106,FALSE),3)=\"The\",EH874,VLOOKUP(VLOOKUP($G874,$H$11:$DN$1000,106,FALSE),DeclMatrix!$A$2:$F$5,VLOOKUP('Enrollment Form'!$B874,DeclMatrix!$A$8:$B$12,2,FALSE),FALSE))))","v":""},{"$f":"IF($A874=\"\",\"\",IF(VLOOKUP($G874,$H$11:$DN$1000,111,FALSE)=\"\",\"No\",IF(LEFT(VLOOKUP($G874,$H$11:$DN$1000,111,FALSE),3)=\"The\",EI874,VLOOKUP(VLOOKUP($G874,$H$11:$DN$1000,111,FALSE),DeclMatrix!$A$2:$F$5,VLOOKUP('Enrollment Form'!$B874,DeclMatrix!$A$8:$B$12,2,FALSE),FALSE))))","v":""},"",null,"","","","","","","","","","","",""]
["",{"$nulls":5},"","",{"$nulls":18},"","","","",{"$nulls":30},"","","","",{"$nulls":60},"",{"$f":"IF($A875=\"\",\"\",IF(VLOOKUP($G875,$H$11:$DN$1000,96,FALSE)=\"\",\"No\",IF(LEFT(VLOOKUP($G875,$H$11:$DN$1000,96,FALSE),3)=\"The\",EF875,VLOOKUP(VLOOKUP($G875,$H$11:$DN$1000,96,FALSE),DeclMatrix!$A$2:$F$5,VLOOKUP('Enrollment Form'!$B875,DeclMatrix!$A$8:$B$12,2,FALSE),FALSE))))","v":""},{"$f":"IF($A875=\"\",\"\",IF(VLOOKUP($G875,$H$11:$DN$1000,101,FALSE)=\"\",\"No\",IF(LEFT(VLOOKUP($G875,$H$11:$DN$1000,101,FALSE),3)=\"The\",EG875,VLOOKUP(VLOOKUP($G875,$H$11:$DN$1000,101,FALSE),DeclMatrix!$A$2:$F$5,VLOOKUP('Enrollment Form'!$B875,DeclMatrix!$A$8:$B$12,2,FALSE),FALSE))))","v":""},{"$f":"IF($A875=\"\",\"\",IF(VLOOKUP($G875,$H$11:$DN$1000,106,FALSE)=\"\",\"No\",IF(LEFT(VLOOKUP($G875,$H$11:$DN$1000,106,FALSE),3)=\"The\",EH875,VLOOKUP(VLOOKUP($G875,$H$11:$DN$1000,106,FALSE),DeclMatrix!$A$2:$F$5,VLOOKUP('Enrollment Form'!$B875,DeclMatrix!$A$8:$B$12,2,FALSE),FALSE))))","v":""},{"$f":"IF($A875=\"\",\"\",IF(VLOOKUP($G875,$H$11:$DN$1000,111,FALSE)=\"\",\"No\",IF(LEFT(VLOOKUP($G875,$H$11:$DN$1000,111,FALSE),3)=\"The\",EI875,VLOOKUP(VLOOKUP($G875,$H$11:$DN$1000,111,FALSE),DeclMatrix!$A$2:$F$5,VLOOKUP('Enrollment Form'!$B875,DeclMatrix!$A$8:$B$12,2,FALSE),FALSE))))","v":""},"",null,"","","","","","","","","","","",""]
["",{"$nulls":5},"","",{"$nulls":18},"","","","",{"$nulls":30},"","","","",{"$nulls":60},"",{"$f":"IF($A876=\"\",\"\",IF(VLOOKUP($G876,$H$11:$DN$1000,96,FALSE)=\"\",\"No\",IF(LEFT(VLOOKUP($G876,$H$11:$DN$1000,96,FALSE),3)=\"The\",EF876,VLOOKUP(VLOOKUP($G876,$H$11:$DN$1000,96,FALSE),DeclMatrix!$A$2:$F$5,VLOOKUP('Enrollment Form'!$B876,DeclMatrix!$A$8:$B$12,2,FALSE),FALSE))))","v":""},{"$f":"IF($A876=\"\",\"\",IF(VLOOKUP($G876,$H$11:$DN$1000,101,FALSE)=\"\",\"No\",IF(LEFT(VLOOKUP($G876,$H$11:$DN$1000,101,FALSE),3)=\"The\",EG876,VLOOKUP(VLOOKUP($G876,$H$11:$DN$1000,101,FALSE),DeclMatrix!$A$2:$F$5,VLOOKUP('Enrollment Form'!$B876,DeclMatrix!$A$8:$B$12,2,FALSE),FALSE))))","v":""},{"$f":"IF($A876=\"\",\"\",IF(VLOOKUP($G876,$H$11:$DN$1000,106,FALSE)=\"\",\"No\",IF(LEFT(VLOOKUP($G876,$H$11:$DN$1000,106,FALSE),3)=\"The\",EH876,VLOOKUP(VLOOKUP($G876,$H$11:$DN$1000,106,FALSE),DeclMatrix!$A$2:$F$5,VLOOKUP('Enrollment Form'!$B876,DeclMatrix!$A$8:$B$12,2,FALSE),FALSE))))","v":""},{"$f":"IF($A876=\"\",\"\",IF(VLOOKUP($G876,$H$11:$DN$1000,111,FALSE)=\"\",\"No\",IF(LEFT(VLOOKUP($G876,$H$11:$DN$1000,111,FALSE),3)=\"The\",EI876,VLOOKUP(VLOOKUP($G876,$H$11:$DN$1000,111,FALSE),DeclMatrix!$A$2:$F$5,VLOOKUP('Enrollment Form'!$B876,DeclMatrix!$A$8:$B$12,2,FALSE),FALSE))))","v":""},"",null,"","","","","","","","","","","",""]
["",{"$nulls":5},"","",{"$nulls":18},"","","","",{"$nulls":30},"","","","",{"$nulls":60},"",{"$f":"IF($A877=\"\",\"\",IF(VLOOKUP($G877,$H$11:$DN$1000,96,FALSE)=\"\",\"No\",IF(LEFT(VLOOKUP($G877,$H$11:$DN$1000,96,FALSE),3)=\"The\",EF877,VLOOKUP(VLOOKUP($G877,$H$11:$DN$1000,96,FALSE),DeclMatrix!$A$2:$F$5,VLOOKUP('Enrollment Form'!$B877,DeclMatrix!$A$8:$B$12,2,FALSE),FALSE))))","v":""},{"$f":"IF($A877=\"\",\"\",IF(VLOOKUP($G877,$H$11:$DN$1000,101,FALSE)=\"\",\"No\",IF(LEFT(VLOOKUP($G877,$H$11:$DN$1000,101,FALSE),3)=\"The\",EG877,VLOOKUP(VLOOKUP($G877,$H$11:$DN$1000,101,FALSE),DeclMatrix!$A$2:$F$5,VLOOKUP('Enrollment Form'!$B877,DeclMatrix!$A$8:$B$12,2,FALSE),FALSE))))","v":""},{"$f":"IF($A877=\"\",\"\",IF(VLOOKUP($G877,$H$11:$DN$1000,106,FALSE)=\"\",\"No\",IF(LEFT(VLOOKUP($G877,$H$11:$DN$1000,106,FALSE),3)=\"The\",EH877,VLOOKUP(VLOOKUP($G877,$H$11:$DN$1000,106,FALSE),DeclMatrix!$A$2:$F$5,VLOOKUP('Enrollment Form'!$B877,DeclMatrix!$A$8:$B$12,2,FALSE),FALSE))))","v":""},{"$f":"IF($A877=\"\",\"\",IF(VLOOKUP($G877,$H$11:$DN$1000,111,FALSE)=\"\",\"No\",IF(LEFT(VLOOKUP($G877,$H$11:$DN$1000,111,FALSE),3)=\"The\",EI877,VLOOKUP(VLOOKUP($G877,$H$11:$DN$1000,111,FALSE),DeclMatrix!$A$2:$F$5,VLOOKUP('Enrollment Form'!$B877,DeclMatrix!$A$8:$B$12,2,FALSE),FALSE))))","v":""},"",null,"","","","","","","","","","","",""]
["",{"$nulls":5},"","",{"$nulls":18},"","","","",{"$nulls":30},"","","","",{"$nulls":60},"",{"$f":"IF($A878=\"\",\"\",IF(VLOOKUP($G878,$H$11:$DN$1000,96,FALSE)=\"\",\"No\",IF(LEFT(VLOOKUP($G878,$H$11:$DN$1000,96,FALSE),3)=\"The\",EF878,VLOOKUP(VLOOKUP($G878,$H$11:$DN$1000,96,FALSE),DeclMatrix!$A$2:$F$5,VLOOKUP('Enrollment Form'!$B878,DeclMatrix!$A$8:$B$12,2,FALSE),FALSE))))","v":""},{"$f":"IF($A878=\"\",\"\",IF(VLOOKUP($G878,$H$11:$DN$1000,101,FALSE)=\"\",\"No\",IF(LEFT(VLOOKUP($G878,$H$11:$DN$1000,101,FALSE),3)=\"The\",EG878,VLOOKUP(VLOOKUP($G878,$H$11:$DN$1000,101,FALSE),DeclMatrix!$A$2:$F$5,VLOOKUP('Enrollment Form'!$B878,DeclMatrix!$A$8:$B$12,2,FALSE),FALSE))))","v":""},{"$f":"IF($A878=\"\",\"\",IF(VLOOKUP($G878,$H$11:$DN$1000,106,FALSE)=\"\",\"No\",IF(LEFT(VLOOKUP($G878,$H$11:$DN$1000,106,FALSE),3)=\"The\",EH878,VLOOKUP(VLOOKUP($G878,$H$11:$DN$1000,106,FALSE),DeclMatrix!$A$2:$F$5,VLOOKUP('Enrollment Form'!$B878,DeclMatrix!$A$8:$B$12,2,FALSE),FALSE))))","v":""},{"$f":"IF($A878=\"\",\"\",IF(VLOOKUP($G878,$H$11:$DN$1000,111,FALSE)=\"\",\"No\",IF(LEFT(VLOOKUP($G878,$H$11:$DN$1000,111,FALSE),3)=\"The\",EI878,VLOOKUP(VLOOKUP($G878,$H$11:$DN$1000,111,FALSE),DeclMatrix!$A$2:$F$5,VLOOKUP('Enrollment Form'!$B878,DeclMatrix!$A$8:$B$12,2,FALSE),FALSE))))","v":""},"",null,"","","","","","","","","","","",""]
["",{"$nulls":5},"","",{"$nulls":18},"","","","",{"$nulls":30},"","","","",{"$nulls":60},"",{"$f":"IF($A879=\"\",\"\",IF(VLOOKUP($G879,$H$11:$DN$1000,96,FALSE)=\"\",\"No\",IF(LEFT(VLOOKUP($G879,$H$11:$DN$1000,96,FALSE),3)=\"The\",EF879,VLOOKUP(VLOOKUP($G879,$H$11:$DN$1000,96,FALSE),DeclMatrix!$A$2:$F$5,VLOOKUP('Enrollment Form'!$B879,DeclMatrix!$A$8:$B$12,2,FALSE),FALSE))))","v":""},{"$f":"IF($A879=\"\",\"\",IF(VLOOKUP($G879,$H$11:$DN$1000,101,FALSE)=\"\",\"No\",IF(LEFT(VLOOKUP($G879,$H$11:$DN$1000,101,FALSE),3)=\"The\",EG879,VLOOKUP(VLOOKUP($G879,$H$11:$DN$1000,101,FALSE),DeclMatrix!$A$2:$F$5,VLOOKUP('Enrollment Form'!$B879,DeclMatrix!$A$8:$B$12,2,FALSE),FALSE))))","v":""},{"$f":"IF($A879=\"\",\"\",IF(VLOOKUP($G879,$H$11:$DN$1000,106,FALSE)=\"\",\"No\",IF(LEFT(VLOOKUP($G879,$H$11:$DN$1000,106,FALSE),3)=\"The\",EH879,VLOOKUP(VLOOKUP($G879,$H$11:$DN$1000,106,FALSE),DeclMatrix!$A$2:$F$5,VLOOKUP('Enrollment Form'!$B879,DeclMatrix!$A$8:$B$12,2,FALSE),FALSE))))","v":""},{"$f":"IF($A879=\"\",\"\",IF(VLOOKUP($G879,$H$11:$DN$1000,111,FALSE)=\"\",\"No\",IF(LEFT(VLOOKUP($G879,$H$11:$DN$1000,111,FALSE),3)=\"The\",EI879,VLOOKUP(VLOOKUP($G879,$H$11:$DN$1000,111,FALSE),DeclMatrix!$A$2:$F$5,VLOOKUP('Enrollment Form'!$B879,DeclMatrix!$A$8:$B$12,2,FALSE),FALSE))))","v":""},"",null,"","","","","","","","","","","",""]
["",{"$nulls":5},"","",{"$nulls":18},"","","","",{"$nulls":30},"","","","",{"$nulls":60},"",{"$f":"IF($A880=\"\",\"\",IF(VLOOKUP($G880,$H$11:$DN$1000,96,FALSE)=\"\",\"No\",IF(LEFT(VLOOKUP($G880,$H$11:$DN$1000,96,FALSE),3)=\"The\",EF880,VLOOKUP(VLOOKUP($G880,$H$11:$DN$1000,96,FALSE),DeclMatrix!$A$2:$F$5,VLOOKUP('Enrollment Form'!$B880,DeclMatrix!$A$8:$B$12,2,FALSE),FALSE))))","v":""},{"$f":"IF($A880=\"\",\"\",IF(VLOOKUP($G880,$H$11:$DN$1000,101,FALSE)=\"\",\"No\",IF(LEFT(VLOOKUP($G880,$H$11:$DN$1000,101,FALSE),3)=\"The\",EG880,VLOOKUP(VLOOKUP($G880,$H$11:$DN$1000,101,FALSE),DeclMatrix!$A$2:$F$5,VLOOKUP('Enrollment Form'!$B880,DeclMatrix!$A$8:$B$12,2,FALSE),FALSE))))","v":""},{"$f":"IF($A880=\"\",\"\",IF(VLOOKUP($G880,$H$11:$DN$1000,106,FALSE)=\"\",\"No\",IF(LEFT(VLOOKUP($G880,$H$11:$DN$1000,106,FALSE),3)=\"The\",EH880,VLOOKUP(VLOOKUP($G880,$H$11:$DN$1000,106,FALSE),DeclMatrix!$A$2:$F$5,VLOOKUP('Enrollment Form'!$B880,DeclMatrix!$A$8:$B$12,2,FALSE),FALSE))))","v":""},{"$f":"IF($A880=\"\",\"\",IF(VLOOKUP($G880,$H$11:$DN$1000,111,FALSE)=\"\",\"No\",IF(LEFT(VLOOKUP($G880,$H$11:$DN$1000,111,FALSE),3)=\"The\",EI880,VLOOKUP(VLOOKUP($G880,$H$11:$DN$1000,111,FALSE),DeclMatrix!$A$2:$F$5,VLOOKUP('Enrollment Form'!$B880,DeclMatrix!$A$8:$B$12,2,FALSE),FALSE))))","v":""},"",null,"","","","","","","","","","","",""]
["",{"$nulls":5},"","",{"$nulls":18},"","","","",{"$nulls":30},"","","","",{"$nulls":60},"",{"$f":"IF($A881=\"\",\"\",IF(VLOOKUP($G881,$H$11:$DN$1000,96,FALSE)=\"\",\"No\",IF(LEFT(VLOOKUP($G881,$H$11:$DN$1000,96,FALSE),3)=\"The\",EF881,VLOOKUP(VLOOKUP($G881,$H$11:$DN$1000,96,FALSE),DeclMatrix!$A$2:$F$5,VLOOKUP('Enrollment Form'!$B881,DeclMatrix!$A$8:$B$12,2,FALSE),FALSE))))","v":""},{"$f":"IF($A881=\"\",\"\",IF(VLOOKUP($G881,$H$11:$DN$1000,101,FALSE)=\"\",\"No\",IF(LEFT(VLOOKUP($G881,$H$11:$DN$1000,101,FALSE),3)=\"The\",EG881,VLOOKUP(VLOOKUP($G881,$H$11:$DN$1000,101,FALSE),DeclMatrix!$A$2:$F$5,VLOOKUP('Enrollment Form'!$B881,DeclMatrix!$A$8:$B$12,2,FALSE),FALSE))))","v":""},{"$f":"IF($A881=\"\",\"\",IF(VLOOKUP($G881,$H$11:$DN$1000,106,FALSE)=\"\",\"No\",IF(LEFT(VLOOKUP($G881,$H$11:$DN$1000,106,FALSE),3)=\"The\",EH881,VLOOKUP(VLOOKUP($G881,$H$11:$DN$1000,106,FALSE),DeclMatrix!$A$2:$F$5,VLOOKUP('Enrollment Form'!$B881,DeclMatrix!$A$8:$B$12,2,FALSE),FALSE))))","v":""},{"$f":"IF($A881=\"\",\"\",IF(VLOOKUP($G881,$H$11:$DN$1000,111,FALSE)=\"\",\"No\",IF(LEFT(VLOOKUP($G881,$H$11:$DN$1000,111,FALSE),3)=\"The\",EI881,VLOOKUP(VLOOKUP($G881,$H$11:$DN$1000,111,FALSE),DeclMatrix!$A$2:$F$5,VLOOKUP('Enrollment Form'!$B881,DeclMatrix!$A$8:$B$12,2,FALSE),FALSE))))","v":""},"",null,"","","","","","","","","","","",""]
["",{"$nulls":5},"","",{"$nulls":18},"","","","",{"$nulls":30},"","","","",{"$nulls":60},"",{"$f":"IF($A882=\"\",\"\",IF(VLOOKUP($G882,$H$11:$DN$1000,96,FALSE)=\"\",\"No\",IF(LEFT(VLOOKUP($G882,$H$11:$DN$1000,96,FALSE),3)=\"The\",EF882,VLOOKUP(VLOOKUP($G882,$H$11:$DN$1000,96,FALSE),DeclMatrix!$A$2:$F$5,VLOOKUP('Enrollment Form'!$B882,DeclMatrix!$A$8:$B$12,2,FALSE),FALSE))))","v":""},{"$f":"IF($A882=\"\",\"\",IF(VLOOKUP($G882,$H$11:$DN$1000,101,FALSE)=\"\",\"No\",IF(LEFT(VLOOKUP($G882,$H$11:$DN$1000,101,FALSE),3)=\"The\",EG882,VLOOKUP(VLOOKUP($G882,$H$11:$DN$1000,101,FALSE),DeclMatrix!$A$2:$F$5,VLOOKUP('Enrollment Form'!$B882,DeclMatrix!$A$8:$B$12,2,FALSE),FALSE))))","v":""},{"$f":"IF($A882=\"\",\"\",IF(VLOOKUP($G882,$H$11:$DN$1000,106,FALSE)=\"\",\"No\",IF(LEFT(VLOOKUP($G882,$H$11:$DN$1000,106,FALSE),3)=\"The\",EH882,VLOOKUP(VLOOKUP($G882,$H$11:$DN$1000,106,FALSE),DeclMatrix!$A$2:$F$5,VLOOKUP('Enrollment Form'!$B882,DeclMatrix!$A$8:$B$12,2,FALSE),FALSE))))","v":""},{"$f":"IF($A882=\"\",\"\",IF(VLOOKUP($G882,$H$11:$DN$1000,111,FALSE)=\"\",\"No\",IF(LEFT(VLOOKUP($G882,$H$11:$DN$1000,111,FALSE),3)=\"The\",EI882,VLOOKUP(VLOOKUP($G882,$H$11:$DN$1000,111,FALSE),DeclMatrix!$A$2:$F$5,VLOOKUP('Enrollment Form'!$B882,DeclMatrix!$A$8:$B$12,2,FALSE),FALSE))))","v":""},"",null,"","","","","","","","","","","",""]
["",{"$nulls":5},"","",{"$nulls":18},"","","","",{"$nulls":30},"","","","",{"$nulls":60},"",{"$f":"IF($A883=\"\",\"\",IF(VLOOKUP($G883,$H$11:$DN$1000,96,FALSE)=\"\",\"No\",IF(LEFT(VLOOKUP($G883,$H$11:$DN$1000,96,FALSE),3)=\"The\",EF883,VLOOKUP(VLOOKUP($G883,$H$11:$DN$1000,96,FALSE),DeclMatrix!$A$2:$F$5,VLOOKUP('Enrollment Form'!$B883,DeclMatrix!$A$8:$B$12,2,FALSE),FALSE))))","v":""},{"$f":"IF($A883=\"\",\"\",IF(VLOOKUP($G883,$H$11:$DN$1000,101,FALSE)=\"\",\"No\",IF(LEFT(VLOOKUP($G883,$H$11:$DN$1000,101,FALSE),3)=\"The\",EG883,VLOOKUP(VLOOKUP($G883,$H$11:$DN$1000,101,FALSE),DeclMatrix!$A$2:$F$5,VLOOKUP('Enrollment Form'!$B883,DeclMatrix!$A$8:$B$12,2,FALSE),FALSE))))","v":""},{"$f":"IF($A883=\"\",\"\",IF(VLOOKUP($G883,$H$11:$DN$1000,106,FALSE)=\"\",\"No\",IF(LEFT(VLOOKUP($G883,$H$11:$DN$1000,106,FALSE),3)=\"The\",EH883,VLOOKUP(VLOOKUP($G883,$H$11:$DN$1000,106,FALSE),DeclMatrix!$A$2:$F$5,VLOOKUP('Enrollment Form'!$B883,DeclMatrix!$A$8:$B$12,2,FALSE),FALSE))))","v":""},{"$f":"IF($A883=\"\",\"\",IF(VLOOKUP($G883,$H$11:$DN$1000,111,FALSE)=\"\",\"No\",IF(LEFT(VLOOKUP($G883,$H$11:$DN$1000,111,FALSE),3)=\"The\",EI883,VLOOKUP(VLOOKUP($G883,$H$11:$DN$1000,111,FALSE),DeclMatrix!$A$2:$F$5,VLOOKUP('Enrollment Form'!$B883,DeclMatrix!$A$8:$B$12,2,FALSE),FALSE))))","v":""},"",null,"","","","","","","","","","","",""]
["",{"$nulls":5},"","",{"$nulls":18},"","","","",{"$nulls":30},"","","","",{"$nulls":60},"",{"$f":"IF($A884=\"\",\"\",IF(VLOOKUP($G884,$H$11:$DN$1000,96,FALSE)=\"\",\"No\",IF(LEFT(VLOOKUP($G884,$H$11:$DN$1000,96,FALSE),3)=\"The\",EF884,VLOOKUP(VLOOKUP($G884,$H$11:$DN$1000,96,FALSE),DeclMatrix!$A$2:$F$5,VLOOKUP('Enrollment Form'!$B884,DeclMatrix!$A$8:$B$12,2,FALSE),FALSE))))","v":""},{"$f":"IF($A884=\"\",\"\",IF(VLOOKUP($G884,$H$11:$DN$1000,101,FALSE)=\"\",\"No\",IF(LEFT(VLOOKUP($G884,$H$11:$DN$1000,101,FALSE),3)=\"The\",EG884,VLOOKUP(VLOOKUP($G884,$H$11:$DN$1000,101,FALSE),DeclMatrix!$A$2:$F$5,VLOOKUP('Enrollment Form'!$B884,DeclMatrix!$A$8:$B$12,2,FALSE),FALSE))))","v":""},{"$f":"IF($A884=\"\",\"\",IF(VLOOKUP($G884,$H$11:$DN$1000,106,FALSE)=\"\",\"No\",IF(LEFT(VLOOKUP($G884,$H$11:$DN$1000,106,FALSE),3)=\"The\",EH884,VLOOKUP(VLOOKUP($G884,$H$11:$DN$1000,106,FALSE),DeclMatrix!$A$2:$F$5,VLOOKUP('Enrollment Form'!$B884,DeclMatrix!$A$8:$B$12,2,FALSE),FALSE))))","v":""},{"$f":"IF($A884=\"\",\"\",IF(VLOOKUP($G884,$H$11:$DN$1000,111,FALSE)=\"\",\"No\",IF(LEFT(VLOOKUP($G884,$H$11:$DN$1000,111,FALSE),3)=\"The\",EI884,VLOOKUP(VLOOKUP($G884,$H$11:$DN$1000,111,FALSE),DeclMatrix!$A$2:$F$5,VLOOKUP('Enrollment Form'!$B884,DeclMatrix!$A$8:$B$12,2,FALSE),FALSE))))","v":""},"",null,"","","","","","","","","","","",""]
["",{"$nulls":5},"","",{"$nulls":18},"","","","",{"$nulls":30},"","","","",{"$nulls":60},"",{"$f":"IF($A885=\"\",\"\",IF(VLOOKUP($G885,$H$11:$DN$1000,96,FALSE)=\"\",\"No\",IF(LEFT(VLOOKUP($G885,$H$11:$DN$1000,96,FALSE),3)=\"The\",EF885,VLOOKUP(VLOOKUP($G885,$H$11:$DN$1000,96,FALSE),DeclMatrix!$A$2:$F$5,VLOOKUP('Enrollment Form'!$B885,DeclMatrix!$A$8:$B$12,2,FALSE),FALSE))))","v":""},{"$f":"IF($A885=\"\",\"\",IF(VLOOKUP($G885,$H$11:$DN$1000,101,FALSE)=\"\",\"No\",IF(LEFT(VLOOKUP($G885,$H$11:$DN$1000,101,FALSE),3)=\"The\",EG885,VLOOKUP(VLOOKUP($G885,$H$11:$DN$1000,101,FALSE),DeclMatrix!$A$2:$F$5,VLOOKUP('Enrollment Form'!$B885,DeclMatrix!$A$8:$B$12,2,FALSE),FALSE))))","v":""},{"$f":"IF($A885=\"\",\"\",IF(VLOOKUP($G885,$H$11:$DN$1000,106,FALSE)=\"\",\"No\",IF(LEFT(VLOOKUP($G885,$H$11:$DN$1000,106,FALSE),3)=\"The\",EH885,VLOOKUP(VLOOKUP($G885,$H$11:$DN$1000,106,FALSE),DeclMatrix!$A$2:$F$5,VLOOKUP('Enrollment Form'!$B885,DeclMatrix!$A$8:$B$12,2,FALSE),FALSE))))","v":""},{"$f":"IF($A885=\"\",\"\",IF(VLOOKUP($G885,$H$11:$DN$1000,111,FALSE)=\"\",\"No\",IF(LEFT(VLOOKUP($G885,$H$11:$DN$1000,111,FALSE),3)=\"The\",EI885,VLOOKUP(VLOOKUP($G885,$H$11:$DN$1000,111,FALSE),DeclMatrix!$A$2:$F$5,VLOOKUP('Enrollment Form'!$B885,DeclMatrix!$A$8:$B$12,2,FALSE),FALSE))))","v":""},"",null,"","","","","","","","","","","",""]
["",{"$nulls":5},"","",{"$nulls":18},"","","","",{"$nulls":30},"","","","",{"$nulls":60},"",{"$f":"IF($A886=\"\",\"\",IF(VLOOKUP($G886,$H$11:$DN$1000,96,FALSE)=\"\",\"No\",IF(LEFT(VLOOKUP($G886,$H$11:$DN$1000,96,FALSE),3)=\"The\",EF886,VLOOKUP(VLOOKUP($G886,$H$11:$DN$1000,96,FALSE),DeclMatrix!$A$2:$F$5,VLOOKUP('Enrollment Form'!$B886,DeclMatrix!$A$8:$B$12,2,FALSE),FALSE))))","v":""},{"$f":"IF($A886=\"\",\"\",IF(VLOOKUP($G886,$H$11:$DN$1000,101,FALSE)=\"\",\"No\",IF(LEFT(VLOOKUP($G886,$H$11:$DN$1000,101,FALSE),3)=\"The\",EG886,VLOOKUP(VLOOKUP($G886,$H$11:$DN$1000,101,FALSE),DeclMatrix!$A$2:$F$5,VLOOKUP('Enrollment Form'!$B886,DeclMatrix!$A$8:$B$12,2,FALSE),FALSE))))","v":""},{"$f":"IF($A886=\"\",\"\",IF(VLOOKUP($G886,$H$11:$DN$1000,106,FALSE)=\"\",\"No\",IF(LEFT(VLOOKUP($G886,$H$11:$DN$1000,106,FALSE),3)=\"The\",EH886,VLOOKUP(VLOOKUP($G886,$H$11:$DN$1000,106,FALSE),DeclMatrix!$A$2:$F$5,VLOOKUP('Enrollment Form'!$B886,DeclMatrix!$A$8:$B$12,2,FALSE),FALSE))))","v":""},{"$f":"IF($A886=\"\",\"\",IF(VLOOKUP($G886,$H$11:$DN$1000,111,FALSE)=\"\",\"No\",IF(LEFT(VLOOKUP($G886,$H$11:$DN$1000,111,FALSE),3)=\"The\",EI886,VLOOKUP(VLOOKUP($G886,$H$11:$DN$1000,111,FALSE),DeclMatrix!$A$2:$F$5,VLOOKUP('Enrollment Form'!$B886,DeclMatrix!$A$8:$B$12,2,FALSE),FALSE))))","v":""},"",null,"","","","","","","","","","","",""]
["",{"$nulls":5},"","",{"$nulls":18},"","","","",{"$nulls":30},"","","","",{"$nulls":60},"",{"$f":"IF($A887=\"\",\"\",IF(VLOOKUP($G887,$H$11:$DN$1000,96,FALSE)=\"\",\"No\",IF(LEFT(VLOOKUP($G887,$H$11:$DN$1000,96,FALSE),3)=\"The\",EF887,VLOOKUP(VLOOKUP($G887,$H$11:$DN$1000,96,FALSE),DeclMatrix!$A$2:$F$5,VLOOKUP('Enrollment Form'!$B887,DeclMatrix!$A$8:$B$12,2,FALSE),FALSE))))","v":""},{"$f":"IF($A887=\"\",\"\",IF(VLOOKUP($G887,$H$11:$DN$1000,101,FALSE)=\"\",\"No\",IF(LEFT(VLOOKUP($G887,$H$11:$DN$1000,101,FALSE),3)=\"The\",EG887,VLOOKUP(VLOOKUP($G887,$H$11:$DN$1000,101,FALSE),DeclMatrix!$A$2:$F$5,VLOOKUP('Enrollment Form'!$B887,DeclMatrix!$A$8:$B$12,2,FALSE),FALSE))))","v":""},{"$f":"IF($A887=\"\",\"\",IF(VLOOKUP($G887,$H$11:$DN$1000,106,FALSE)=\"\",\"No\",IF(LEFT(VLOOKUP($G887,$H$11:$DN$1000,106,FALSE),3)=\"The\",EH887,VLOOKUP(VLOOKUP($G887,$H$11:$DN$1000,106,FALSE),DeclMatrix!$A$2:$F$5,VLOOKUP('Enrollment Form'!$B887,DeclMatrix!$A$8:$B$12,2,FALSE),FALSE))))","v":""},{"$f":"IF($A887=\"\",\"\",IF(VLOOKUP($G887,$H$11:$DN$1000,111,FALSE)=\"\",\"No\",IF(LEFT(VLOOKUP($G887,$H$11:$DN$1000,111,FALSE),3)=\"The\",EI887,VLOOKUP(VLOOKUP($G887,$H$11:$DN$1000,111,FALSE),DeclMatrix!$A$2:$F$5,VLOOKUP('Enrollment Form'!$B887,DeclMatrix!$A$8:$B$12,2,FALSE),FALSE))))","v":""},"",null,"","","","","","","","","","","",""]
["",{"$nulls":5},"","",{"$nulls":18},"","","","",{"$nulls":30},"","","","",{"$nulls":60},"",{"$f":"IF($A888=\"\",\"\",IF(VLOOKUP($G888,$H$11:$DN$1000,96,FALSE)=\"\",\"No\",IF(LEFT(VLOOKUP($G888,$H$11:$DN$1000,96,FALSE),3)=\"The\",EF888,VLOOKUP(VLOOKUP($G888,$H$11:$DN$1000,96,FALSE),DeclMatrix!$A$2:$F$5,VLOOKUP('Enrollment Form'!$B888,DeclMatrix!$A$8:$B$12,2,FALSE),FALSE))))","v":""},{"$f":"IF($A888=\"\",\"\",IF(VLOOKUP($G888,$H$11:$DN$1000,101,FALSE)=\"\",\"No\",IF(LEFT(VLOOKUP($G888,$H$11:$DN$1000,101,FALSE),3)=\"The\",EG888,VLOOKUP(VLOOKUP($G888,$H$11:$DN$1000,101,FALSE),DeclMatrix!$A$2:$F$5,VLOOKUP('Enrollment Form'!$B888,DeclMatrix!$A$8:$B$12,2,FALSE),FALSE))))","v":""},{"$f":"IF($A888=\"\",\"\",IF(VLOOKUP($G888,$H$11:$DN$1000,106,FALSE)=\"\",\"No\",IF(LEFT(VLOOKUP($G888,$H$11:$DN$1000,106,FALSE),3)=\"The\",EH888,VLOOKUP(VLOOKUP($G888,$H$11:$DN$1000,106,FALSE),DeclMatrix!$A$2:$F$5,VLOOKUP('Enrollment Form'!$B888,DeclMatrix!$A$8:$B$12,2,FALSE),FALSE))))","v":""},{"$f":"IF($A888=\"\",\"\",IF(VLOOKUP($G888,$H$11:$DN$1000,111,FALSE)=\"\",\"No\",IF(LEFT(VLOOKUP($G888,$H$11:$DN$1000,111,FALSE),3)=\"The\",EI888,VLOOKUP(VLOOKUP($G888,$H$11:$DN$1000,111,FALSE),DeclMatrix!$A$2:$F$5,VLOOKUP('Enrollment Form'!$B888,DeclMatrix!$A$8:$B$12,2,FALSE),FALSE))))","v":""},"",null,"","","","","","","","","","","",""]
["",{"$nulls":5},"","",{"$nulls":18},"","","","",{"$nulls":30},"","","","",{"$nulls":60},"",{"$f":"IF($A889=\"\",\"\",IF(VLOOKUP($G889,$H$11:$DN$1000,96,FALSE)=\"\",\"No\",IF(LEFT(VLOOKUP($G889,$H$11:$DN$1000,96,FALSE),3)=\"The\",EF889,VLOOKUP(VLOOKUP($G889,$H$11:$DN$1000,96,FALSE),DeclMatrix!$A$2:$F$5,VLOOKUP('Enrollment Form'!$B889,DeclMatrix!$A$8:$B$12,2,FALSE),FALSE))))","v":""},{"$f":"IF($A889=\"\",\"\",IF(VLOOKUP($G889,$H$11:$DN$1000,101,FALSE)=\"\",\"No\",IF(LEFT(VLOOKUP($G889,$H$11:$DN$1000,101,FALSE),3)=\"The\",EG889,VLOOKUP(VLOOKUP($G889,$H$11:$DN$1000,101,FALSE),DeclMatrix!$A$2:$F$5,VLOOKUP('Enrollment Form'!$B889,DeclMatrix!$A$8:$B$12,2,FALSE),FALSE))))","v":""},{"$f":"IF($A889=\"\",\"\",IF(VLOOKUP($G889,$H$11:$DN$1000,106,FALSE)=\"\",\"No\",IF(LEFT(VLOOKUP($G889,$H$11:$DN$1000,106,FALSE),3)=\"The\",EH889,VLOOKUP(VLOOKUP($G889,$H$11:$DN$1000,106,FALSE),DeclMatrix!$A$2:$F$5,VLOOKUP('Enrollment Form'!$B889,DeclMatrix!$A$8:$B$12,2,FALSE),FALSE))))","v":""},{"$f":"IF($A889=\"\",\"\",IF(VLOOKUP($G889,$H$11:$DN$1000,111,FALSE)=\"\",\"No\",IF(LEFT(VLOOKUP($G889,$H$11:$DN$1000,111,FALSE),3)=\"The\",EI889,VLOOKUP(VLOOKUP($G889,$H$11:$DN$1000,111,FALSE),DeclMatrix!$A$2:$F$5,VLOOKUP('Enrollment Form'!$B889,DeclMatrix!$A$8:$B$12,2,FALSE),FALSE))))","v":""},"",null,"","","","","","","","","","","",""]
["",{"$nulls":5},"","",{"$nulls":18},"","","","",{"$nulls":30},"","","","",{"$nulls":60},"",{"$f":"IF($A890=\"\",\"\",IF(VLOOKUP($G890,$H$11:$DN$1000,96,FALSE)=\"\",\"No\",IF(LEFT(VLOOKUP($G890,$H$11:$DN$1000,96,FALSE),3)=\"The\",EF890,VLOOKUP(VLOOKUP($G890,$H$11:$DN$1000,96,FALSE),DeclMatrix!$A$2:$F$5,VLOOKUP('Enrollment Form'!$B890,DeclMatrix!$A$8:$B$12,2,FALSE),FALSE))))","v":""},{"$f":"IF($A890=\"\",\"\",IF(VLOOKUP($G890,$H$11:$DN$1000,101,FALSE)=\"\",\"No\",IF(LEFT(VLOOKUP($G890,$H$11:$DN$1000,101,FALSE),3)=\"The\",EG890,VLOOKUP(VLOOKUP($G890,$H$11:$DN$1000,101,FALSE),DeclMatrix!$A$2:$F$5,VLOOKUP('Enrollment Form'!$B890,DeclMatrix!$A$8:$B$12,2,FALSE),FALSE))))","v":""},{"$f":"IF($A890=\"\",\"\",IF(VLOOKUP($G890,$H$11:$DN$1000,106,FALSE)=\"\",\"No\",IF(LEFT(VLOOKUP($G890,$H$11:$DN$1000,106,FALSE),3)=\"The\",EH890,VLOOKUP(VLOOKUP($G890,$H$11:$DN$1000,106,FALSE),DeclMatrix!$A$2:$F$5,VLOOKUP('Enrollment Form'!$B890,DeclMatrix!$A$8:$B$12,2,FALSE),FALSE))))","v":""},{"$f":"IF($A890=\"\",\"\",IF(VLOOKUP($G890,$H$11:$DN$1000,111,FALSE)=\"\",\"No\",IF(LEFT(VLOOKUP($G890,$H$11:$DN$1000,111,FALSE),3)=\"The\",EI890,VLOOKUP(VLOOKUP($G890,$H$11:$DN$1000,111,FALSE),DeclMatrix!$A$2:$F$5,VLOOKUP('Enrollment Form'!$B890,DeclMatrix!$A$8:$B$12,2,FALSE),FALSE))))","v":""},"",null,"","","","","","","","","","","",""]
["",{"$nulls":5},"","",{"$nulls":18},"","","","",{"$nulls":30},"","","","",{"$nulls":60},"",{"$f":"IF($A891=\"\",\"\",IF(VLOOKUP($G891,$H$11:$DN$1000,96,FALSE)=\"\",\"No\",IF(LEFT(VLOOKUP($G891,$H$11:$DN$1000,96,FALSE),3)=\"The\",EF891,VLOOKUP(VLOOKUP($G891,$H$11:$DN$1000,96,FALSE),DeclMatrix!$A$2:$F$5,VLOOKUP('Enrollment Form'!$B891,DeclMatrix!$A$8:$B$12,2,FALSE),FALSE))))","v":""},{"$f":"IF($A891=\"\",\"\",IF(VLOOKUP($G891,$H$11:$DN$1000,101,FALSE)=\"\",\"No\",IF(LEFT(VLOOKUP($G891,$H$11:$DN$1000,101,FALSE),3)=\"The\",EG891,VLOOKUP(VLOOKUP($G891,$H$11:$DN$1000,101,FALSE),DeclMatrix!$A$2:$F$5,VLOOKUP('Enrollment Form'!$B891,DeclMatrix!$A$8:$B$12,2,FALSE),FALSE))))","v":""},{"$f":"IF($A891=\"\",\"\",IF(VLOOKUP($G891,$H$11:$DN$1000,106,FALSE)=\"\",\"No\",IF(LEFT(VLOOKUP($G891,$H$11:$DN$1000,106,FALSE),3)=\"The\",EH891,VLOOKUP(VLOOKUP($G891,$H$11:$DN$1000,106,FALSE),DeclMatrix!$A$2:$F$5,VLOOKUP('Enrollment Form'!$B891,DeclMatrix!$A$8:$B$12,2,FALSE),FALSE))))","v":""},{"$f":"IF($A891=\"\",\"\",IF(VLOOKUP($G891,$H$11:$DN$1000,111,FALSE)=\"\",\"No\",IF(LEFT(VLOOKUP($G891,$H$11:$DN$1000,111,FALSE),3)=\"The\",EI891,VLOOKUP(VLOOKUP($G891,$H$11:$DN$1000,111,FALSE),DeclMatrix!$A$2:$F$5,VLOOKUP('Enrollment Form'!$B891,DeclMatrix!$A$8:$B$12,2,FALSE),FALSE))))","v":""},"",null,"","","","","","","","","","","",""]
["",{"$nulls":5},"","",{"$nulls":18},"","","","",{"$nulls":30},"","","","",{"$nulls":60},"",{"$f":"IF($A892=\"\",\"\",IF(VLOOKUP($G892,$H$11:$DN$1000,96,FALSE)=\"\",\"No\",IF(LEFT(VLOOKUP($G892,$H$11:$DN$1000,96,FALSE),3)=\"The\",EF892,VLOOKUP(VLOOKUP($G892,$H$11:$DN$1000,96,FALSE),DeclMatrix!$A$2:$F$5,VLOOKUP('Enrollment Form'!$B892,DeclMatrix!$A$8:$B$12,2,FALSE),FALSE))))","v":""},{"$f":"IF($A892=\"\",\"\",IF(VLOOKUP($G892,$H$11:$DN$1000,101,FALSE)=\"\",\"No\",IF(LEFT(VLOOKUP($G892,$H$11:$DN$1000,101,FALSE),3)=\"The\",EG892,VLOOKUP(VLOOKUP($G892,$H$11:$DN$1000,101,FALSE),DeclMatrix!$A$2:$F$5,VLOOKUP('Enrollment Form'!$B892,DeclMatrix!$A$8:$B$12,2,FALSE),FALSE))))","v":""},{"$f":"IF($A892=\"\",\"\",IF(VLOOKUP($G892,$H$11:$DN$1000,106,FALSE)=\"\",\"No\",IF(LEFT(VLOOKUP($G892,$H$11:$DN$1000,106,FALSE),3)=\"The\",EH892,VLOOKUP(VLOOKUP($G892,$H$11:$DN$1000,106,FALSE),DeclMatrix!$A$2:$F$5,VLOOKUP('Enrollment Form'!$B892,DeclMatrix!$A$8:$B$12,2,FALSE),FALSE))))","v":""},{"$f":"IF($A892=\"\",\"\",IF(VLOOKUP($G892,$H$11:$DN$1000,111,FALSE)=\"\",\"No\",IF(LEFT(VLOOKUP($G892,$H$11:$DN$1000,111,FALSE),3)=\"The\",EI892,VLOOKUP(VLOOKUP($G892,$H$11:$DN$1000,111,FALSE),DeclMatrix!$A$2:$F$5,VLOOKUP('Enrollment Form'!$B892,DeclMatrix!$A$8:$B$12,2,FALSE),FALSE))))","v":""},"",null,"","","","","","","","","","","",""]
["",{"$nulls":5},"","",{"$nulls":18},"","","","",{"$nulls":30},"","","","",{"$nulls":60},"",{"$f":"IF($A893=\"\",\"\",IF(VLOOKUP($G893,$H$11:$DN$1000,96,FALSE)=\"\",\"No\",IF(LEFT(VLOOKUP($G893,$H$11:$DN$1000,96,FALSE),3)=\"The\",EF893,VLOOKUP(VLOOKUP($G893,$H$11:$DN$1000,96,FALSE),DeclMatrix!$A$2:$F$5,VLOOKUP('Enrollment Form'!$B893,DeclMatrix!$A$8:$B$12,2,FALSE),FALSE))))","v":""},{"$f":"IF($A893=\"\",\"\",IF(VLOOKUP($G893,$H$11:$DN$1000,101,FALSE)=\"\",\"No\",IF(LEFT(VLOOKUP($G893,$H$11:$DN$1000,101,FALSE),3)=\"The\",EG893,VLOOKUP(VLOOKUP($G893,$H$11:$DN$1000,101,FALSE),DeclMatrix!$A$2:$F$5,VLOOKUP('Enrollment Form'!$B893,DeclMatrix!$A$8:$B$12,2,FALSE),FALSE))))","v":""},{"$f":"IF($A893=\"\",\"\",IF(VLOOKUP($G893,$H$11:$DN$1000,106,FALSE)=\"\",\"No\",IF(LEFT(VLOOKUP($G893,$H$11:$DN$1000,106,FALSE),3)=\"The\",EH893,VLOOKUP(VLOOKUP($G893,$H$11:$DN$1000,106,FALSE),DeclMatrix!$A$2:$F$5,VLOOKUP('Enrollment Form'!$B893,DeclMatrix!$A$8:$B$12,2,FALSE),FALSE))))","v":""},{"$f":"IF($A893=\"\",\"\",IF(VLOOKUP($G893,$H$11:$DN$1000,111,FALSE)=\"\",\"No\",IF(LEFT(VLOOKUP($G893,$H$11:$DN$1000,111,FALSE),3)=\"The\",EI893,VLOOKUP(VLOOKUP($G893,$H$11:$DN$1000,111,FALSE),DeclMatrix!$A$2:$F$5,VLOOKUP('Enrollment Form'!$B893,DeclMatrix!$A$8:$B$12,2,FALSE),FALSE))))","v":""},"",null,"","","","","","","","","","","",""]
["",{"$nulls":5},"","",{"$nulls":18},"","","","",{"$nulls":30},"","","","",{"$nulls":60},"",{"$f":"IF($A894=\"\",\"\",IF(VLOOKUP($G894,$H$11:$DN$1000,96,FALSE)=\"\",\"No\",IF(LEFT(VLOOKUP($G894,$H$11:$DN$1000,96,FALSE),3)=\"The\",EF894,VLOOKUP(VLOOKUP($G894,$H$11:$DN$1000,96,FALSE),DeclMatrix!$A$2:$F$5,VLOOKUP('Enrollment Form'!$B894,DeclMatrix!$A$8:$B$12,2,FALSE),FALSE))))","v":""},{"$f":"IF($A894=\"\",\"\",IF(VLOOKUP($G894,$H$11:$DN$1000,101,FALSE)=\"\",\"No\",IF(LEFT(VLOOKUP($G894,$H$11:$DN$1000,101,FALSE),3)=\"The\",EG894,VLOOKUP(VLOOKUP($G894,$H$11:$DN$1000,101,FALSE),DeclMatrix!$A$2:$F$5,VLOOKUP('Enrollment Form'!$B894,DeclMatrix!$A$8:$B$12,2,FALSE),FALSE))))","v":""},{"$f":"IF($A894=\"\",\"\",IF(VLOOKUP($G894,$H$11:$DN$1000,106,FALSE)=\"\",\"No\",IF(LEFT(VLOOKUP($G894,$H$11:$DN$1000,106,FALSE),3)=\"The\",EH894,VLOOKUP(VLOOKUP($G894,$H$11:$DN$1000,106,FALSE),DeclMatrix!$A$2:$F$5,VLOOKUP('Enrollment Form'!$B894,DeclMatrix!$A$8:$B$12,2,FALSE),FALSE))))","v":""},{"$f":"IF($A894=\"\",\"\",IF(VLOOKUP($G894,$H$11:$DN$1000,111,FALSE)=\"\",\"No\",IF(LEFT(VLOOKUP($G894,$H$11:$DN$1000,111,FALSE),3)=\"The\",EI894,VLOOKUP(VLOOKUP($G894,$H$11:$DN$1000,111,FALSE),DeclMatrix!$A$2:$F$5,VLOOKUP('Enrollment Form'!$B894,DeclMatrix!$A$8:$B$12,2,FALSE),FALSE))))","v":""},"",null,"","","","","","","","","","","",""]
["",{"$nulls":5},"","",{"$nulls":18},"","","","",{"$nulls":30},"","","","",{"$nulls":60},"",{"$f":"IF($A895=\"\",\"\",IF(VLOOKUP($G895,$H$11:$DN$1000,96,FALSE)=\"\",\"No\",IF(LEFT(VLOOKUP($G895,$H$11:$DN$1000,96,FALSE),3)=\"The\",EF895,VLOOKUP(VLOOKUP($G895,$H$11:$DN$1000,96,FALSE),DeclMatrix!$A$2:$F$5,VLOOKUP('Enrollment Form'!$B895,DeclMatrix!$A$8:$B$12,2,FALSE),FALSE))))","v":""},{"$f":"IF($A895=\"\",\"\",IF(VLOOKUP($G895,$H$11:$DN$1000,101,FALSE)=\"\",\"No\",IF(LEFT(VLOOKUP($G895,$H$11:$DN$1000,101,FALSE),3)=\"The\",EG895,VLOOKUP(VLOOKUP($G895,$H$11:$DN$1000,101,FALSE),DeclMatrix!$A$2:$F$5,VLOOKUP('Enrollment Form'!$B895,DeclMatrix!$A$8:$B$12,2,FALSE),FALSE))))","v":""},{"$f":"IF($A895=\"\",\"\",IF(VLOOKUP($G895,$H$11:$DN$1000,106,FALSE)=\"\",\"No\",IF(LEFT(VLOOKUP($G895,$H$11:$DN$1000,106,FALSE),3)=\"The\",EH895,VLOOKUP(VLOOKUP($G895,$H$11:$DN$1000,106,FALSE),DeclMatrix!$A$2:$F$5,VLOOKUP('Enrollment Form'!$B895,DeclMatrix!$A$8:$B$12,2,FALSE),FALSE))))","v":""},{"$f":"IF($A895=\"\",\"\",IF(VLOOKUP($G895,$H$11:$DN$1000,111,FALSE)=\"\",\"No\",IF(LEFT(VLOOKUP($G895,$H$11:$DN$1000,111,FALSE),3)=\"The\",EI895,VLOOKUP(VLOOKUP($G895,$H$11:$DN$1000,111,FALSE),DeclMatrix!$A$2:$F$5,VLOOKUP('Enrollment Form'!$B895,DeclMatrix!$A$8:$B$12,2,FALSE),FALSE))))","v":""},"",null,"","","","","","","","","","","",""]
["",{"$nulls":5},"","",{"$nulls":18},"","","","",{"$nulls":30},"","","","",{"$nulls":60},"",{"$f":"IF($A896=\"\",\"\",IF(VLOOKUP($G896,$H$11:$DN$1000,96,FALSE)=\"\",\"No\",IF(LEFT(VLOOKUP($G896,$H$11:$DN$1000,96,FALSE),3)=\"The\",EF896,VLOOKUP(VLOOKUP($G896,$H$11:$DN$1000,96,FALSE),DeclMatrix!$A$2:$F$5,VLOOKUP('Enrollment Form'!$B896,DeclMatrix!$A$8:$B$12,2,FALSE),FALSE))))","v":""},{"$f":"IF($A896=\"\",\"\",IF(VLOOKUP($G896,$H$11:$DN$1000,101,FALSE)=\"\",\"No\",IF(LEFT(VLOOKUP($G896,$H$11:$DN$1000,101,FALSE),3)=\"The\",EG896,VLOOKUP(VLOOKUP($G896,$H$11:$DN$1000,101,FALSE),DeclMatrix!$A$2:$F$5,VLOOKUP('Enrollment Form'!$B896,DeclMatrix!$A$8:$B$12,2,FALSE),FALSE))))","v":""},{"$f":"IF($A896=\"\",\"\",IF(VLOOKUP($G896,$H$11:$DN$1000,106,FALSE)=\"\",\"No\",IF(LEFT(VLOOKUP($G896,$H$11:$DN$1000,106,FALSE),3)=\"The\",EH896,VLOOKUP(VLOOKUP($G896,$H$11:$DN$1000,106,FALSE),DeclMatrix!$A$2:$F$5,VLOOKUP('Enrollment Form'!$B896,DeclMatrix!$A$8:$B$12,2,FALSE),FALSE))))","v":""},{"$f":"IF($A896=\"\",\"\",IF(VLOOKUP($G896,$H$11:$DN$1000,111,FALSE)=\"\",\"No\",IF(LEFT(VLOOKUP($G896,$H$11:$DN$1000,111,FALSE),3)=\"The\",EI896,VLOOKUP(VLOOKUP($G896,$H$11:$DN$1000,111,FALSE),DeclMatrix!$A$2:$F$5,VLOOKUP('Enrollment Form'!$B896,DeclMatrix!$A$8:$B$12,2,FALSE),FALSE))))","v":""},"",null,"","","","","","","","","","","",""]
["",{"$nulls":5},"","",{"$nulls":18},"","","","",{"$nulls":30},"","","","",{"$nulls":60},"",{"$f":"IF($A897=\"\",\"\",IF(VLOOKUP($G897,$H$11:$DN$1000,96,FALSE)=\"\",\"No\",IF(LEFT(VLOOKUP($G897,$H$11:$DN$1000,96,FALSE),3)=\"The\",EF897,VLOOKUP(VLOOKUP($G897,$H$11:$DN$1000,96,FALSE),DeclMatrix!$A$2:$F$5,VLOOKUP('Enrollment Form'!$B897,DeclMatrix!$A$8:$B$12,2,FALSE),FALSE))))","v":""},{"$f":"IF($A897=\"\",\"\",IF(VLOOKUP($G897,$H$11:$DN$1000,101,FALSE)=\"\",\"No\",IF(LEFT(VLOOKUP($G897,$H$11:$DN$1000,101,FALSE),3)=\"The\",EG897,VLOOKUP(VLOOKUP($G897,$H$11:$DN$1000,101,FALSE),DeclMatrix!$A$2:$F$5,VLOOKUP('Enrollment Form'!$B897,DeclMatrix!$A$8:$B$12,2,FALSE),FALSE))))","v":""},{"$f":"IF($A897=\"\",\"\",IF(VLOOKUP($G897,$H$11:$DN$1000,106,FALSE)=\"\",\"No\",IF(LEFT(VLOOKUP($G897,$H$11:$DN$1000,106,FALSE),3)=\"The\",EH897,VLOOKUP(VLOOKUP($G897,$H$11:$DN$1000,106,FALSE),DeclMatrix!$A$2:$F$5,VLOOKUP('Enrollment Form'!$B897,DeclMatrix!$A$8:$B$12,2,FALSE),FALSE))))","v":""},{"$f":"IF($A897=\"\",\"\",IF(VLOOKUP($G897,$H$11:$DN$1000,111,FALSE)=\"\",\"No\",IF(LEFT(VLOOKUP($G897,$H$11:$DN$1000,111,FALSE),3)=\"The\",EI897,VLOOKUP(VLOOKUP($G897,$H$11:$DN$1000,111,FALSE),DeclMatrix!$A$2:$F$5,VLOOKUP('Enrollment Form'!$B897,DeclMatrix!$A$8:$B$12,2,FALSE),FALSE))))","v":""},"",null,"","","","","","","","","","","",""]
["",{"$nulls":5},"","",{"$nulls":18},"","","","",{"$nulls":30},"","","","",{"$nulls":60},"",{"$f":"IF($A898=\"\",\"\",IF(VLOOKUP($G898,$H$11:$DN$1000,96,FALSE)=\"\",\"No\",IF(LEFT(VLOOKUP($G898,$H$11:$DN$1000,96,FALSE),3)=\"The\",EF898,VLOOKUP(VLOOKUP($G898,$H$11:$DN$1000,96,FALSE),DeclMatrix!$A$2:$F$5,VLOOKUP('Enrollment Form'!$B898,DeclMatrix!$A$8:$B$12,2,FALSE),FALSE))))","v":""},{"$f":"IF($A898=\"\",\"\",IF(VLOOKUP($G898,$H$11:$DN$1000,101,FALSE)=\"\",\"No\",IF(LEFT(VLOOKUP($G898,$H$11:$DN$1000,101,FALSE),3)=\"The\",EG898,VLOOKUP(VLOOKUP($G898,$H$11:$DN$1000,101,FALSE),DeclMatrix!$A$2:$F$5,VLOOKUP('Enrollment Form'!$B898,DeclMatrix!$A$8:$B$12,2,FALSE),FALSE))))","v":""},{"$f":"IF($A898=\"\",\"\",IF(VLOOKUP($G898,$H$11:$DN$1000,106,FALSE)=\"\",\"No\",IF(LEFT(VLOOKUP($G898,$H$11:$DN$1000,106,FALSE),3)=\"The\",EH898,VLOOKUP(VLOOKUP($G898,$H$11:$DN$1000,106,FALSE),DeclMatrix!$A$2:$F$5,VLOOKUP('Enrollment Form'!$B898,DeclMatrix!$A$8:$B$12,2,FALSE),FALSE))))","v":""},{"$f":"IF($A898=\"\",\"\",IF(VLOOKUP($G898,$H$11:$DN$1000,111,FALSE)=\"\",\"No\",IF(LEFT(VLOOKUP($G898,$H$11:$DN$1000,111,FALSE),3)=\"The\",EI898,VLOOKUP(VLOOKUP($G898,$H$11:$DN$1000,111,FALSE),DeclMatrix!$A$2:$F$5,VLOOKUP('Enrollment Form'!$B898,DeclMatrix!$A$8:$B$12,2,FALSE),FALSE))))","v":""},"",null,"","","","","","","","","","","",""]
["",{"$nulls":5},"","",{"$nulls":18},"","","","",{"$nulls":30},"","","","",{"$nulls":60},"",{"$f":"IF($A899=\"\",\"\",IF(VLOOKUP($G899,$H$11:$DN$1000,96,FALSE)=\"\",\"No\",IF(LEFT(VLOOKUP($G899,$H$11:$DN$1000,96,FALSE),3)=\"The\",EF899,VLOOKUP(VLOOKUP($G899,$H$11:$DN$1000,96,FALSE),DeclMatrix!$A$2:$F$5,VLOOKUP('Enrollment Form'!$B899,DeclMatrix!$A$8:$B$12,2,FALSE),FALSE))))","v":""},{"$f":"IF($A899=\"\",\"\",IF(VLOOKUP($G899,$H$11:$DN$1000,101,FALSE)=\"\",\"No\",IF(LEFT(VLOOKUP($G899,$H$11:$DN$1000,101,FALSE),3)=\"The\",EG899,VLOOKUP(VLOOKUP($G899,$H$11:$DN$1000,101,FALSE),DeclMatrix!$A$2:$F$5,VLOOKUP('Enrollment Form'!$B899,DeclMatrix!$A$8:$B$12,2,FALSE),FALSE))))","v":""},{"$f":"IF($A899=\"\",\"\",IF(VLOOKUP($G899,$H$11:$DN$1000,106,FALSE)=\"\",\"No\",IF(LEFT(VLOOKUP($G899,$H$11:$DN$1000,106,FALSE),3)=\"The\",EH899,VLOOKUP(VLOOKUP($G899,$H$11:$DN$1000,106,FALSE),DeclMatrix!$A$2:$F$5,VLOOKUP('Enrollment Form'!$B899,DeclMatrix!$A$8:$B$12,2,FALSE),FALSE))))","v":""},{"$f":"IF($A899=\"\",\"\",IF(VLOOKUP($G899,$H$11:$DN$1000,111,FALSE)=\"\",\"No\",IF(LEFT(VLOOKUP($G899,$H$11:$DN$1000,111,FALSE),3)=\"The\",EI899,VLOOKUP(VLOOKUP($G899,$H$11:$DN$1000,111,FALSE),DeclMatrix!$A$2:$F$5,VLOOKUP('Enrollment Form'!$B899,DeclMatrix!$A$8:$B$12,2,FALSE),FALSE))))","v":""},"",null,"","","","","","","","","","","",""]
["",{"$nulls":5},"","",{"$nulls":18},"","","","",{"$nulls":30},"","","","",{"$nulls":60},"",{"$f":"IF($A900=\"\",\"\",IF(VLOOKUP($G900,$H$11:$DN$1000,96,FALSE)=\"\",\"No\",IF(LEFT(VLOOKUP($G900,$H$11:$DN$1000,96,FALSE),3)=\"The\",EF900,VLOOKUP(VLOOKUP($G900,$H$11:$DN$1000,96,FALSE),DeclMatrix!$A$2:$F$5,VLOOKUP('Enrollment Form'!$B900,DeclMatrix!$A$8:$B$12,2,FALSE),FALSE))))","v":""},{"$f":"IF($A900=\"\",\"\",IF(VLOOKUP($G900,$H$11:$DN$1000,101,FALSE)=\"\",\"No\",IF(LEFT(VLOOKUP($G900,$H$11:$DN$1000,101,FALSE),3)=\"The\",EG900,VLOOKUP(VLOOKUP($G900,$H$11:$DN$1000,101,FALSE),DeclMatrix!$A$2:$F$5,VLOOKUP('Enrollment Form'!$B900,DeclMatrix!$A$8:$B$12,2,FALSE),FALSE))))","v":""},{"$f":"IF($A900=\"\",\"\",IF(VLOOKUP($G900,$H$11:$DN$1000,106,FALSE)=\"\",\"No\",IF(LEFT(VLOOKUP($G900,$H$11:$DN$1000,106,FALSE),3)=\"The\",EH900,VLOOKUP(VLOOKUP($G900,$H$11:$DN$1000,106,FALSE),DeclMatrix!$A$2:$F$5,VLOOKUP('Enrollment Form'!$B900,DeclMatrix!$A$8:$B$12,2,FALSE),FALSE))))","v":""},{"$f":"IF($A900=\"\",\"\",IF(VLOOKUP($G900,$H$11:$DN$1000,111,FALSE)=\"\",\"No\",IF(LEFT(VLOOKUP($G900,$H$11:$DN$1000,111,FALSE),3)=\"The\",EI900,VLOOKUP(VLOOKUP($G900,$H$11:$DN$1000,111,FALSE),DeclMatrix!$A$2:$F$5,VLOOKUP('Enrollment Form'!$B900,DeclMatrix!$A$8:$B$12,2,FALSE),FALSE))))","v":""},"",null,"","","","","","","","","","","",""]
["",{"$nulls":5},"","",{"$nulls":18},"","","","",{"$nulls":30},"","","","",{"$nulls":60},"",{"$f":"IF($A901=\"\",\"\",IF(VLOOKUP($G901,$H$11:$DN$1000,96,FALSE)=\"\",\"No\",IF(LEFT(VLOOKUP($G901,$H$11:$DN$1000,96,FALSE),3)=\"The\",EF901,VLOOKUP(VLOOKUP($G901,$H$11:$DN$1000,96,FALSE),DeclMatrix!$A$2:$F$5,VLOOKUP('Enrollment Form'!$B901,DeclMatrix!$A$8:$B$12,2,FALSE),FALSE))))","v":""},{"$f":"IF($A901=\"\",\"\",IF(VLOOKUP($G901,$H$11:$DN$1000,101,FALSE)=\"\",\"No\",IF(LEFT(VLOOKUP($G901,$H$11:$DN$1000,101,FALSE),3)=\"The\",EG901,VLOOKUP(VLOOKUP($G901,$H$11:$DN$1000,101,FALSE),DeclMatrix!$A$2:$F$5,VLOOKUP('Enrollment Form'!$B901,DeclMatrix!$A$8:$B$12,2,FALSE),FALSE))))","v":""},{"$f":"IF($A901=\"\",\"\",IF(VLOOKUP($G901,$H$11:$DN$1000,106,FALSE)=\"\",\"No\",IF(LEFT(VLOOKUP($G901,$H$11:$DN$1000,106,FALSE),3)=\"The\",EH901,VLOOKUP(VLOOKUP($G901,$H$11:$DN$1000,106,FALSE),DeclMatrix!$A$2:$F$5,VLOOKUP('Enrollment Form'!$B901,DeclMatrix!$A$8:$B$12,2,FALSE),FALSE))))","v":""},{"$f":"IF($A901=\"\",\"\",IF(VLOOKUP($G901,$H$11:$DN$1000,111,FALSE)=\"\",\"No\",IF(LEFT(VLOOKUP($G901,$H$11:$DN$1000,111,FALSE),3)=\"The\",EI901,VLOOKUP(VLOOKUP($G901,$H$11:$DN$1000,111,FALSE),DeclMatrix!$A$2:$F$5,VLOOKUP('Enrollment Form'!$B901,DeclMatrix!$A$8:$B$12,2,FALSE),FALSE))))","v":""},"",null,"","","","","","","","","","","",""]
["",{"$nulls":5},"","",{"$nulls":18},"","","","",{"$nulls":30},"","","","",{"$nulls":60},"",{"$f":"IF($A902=\"\",\"\",IF(VLOOKUP($G902,$H$11:$DN$1000,96,FALSE)=\"\",\"No\",IF(LEFT(VLOOKUP($G902,$H$11:$DN$1000,96,FALSE),3)=\"The\",EF902,VLOOKUP(VLOOKUP($G902,$H$11:$DN$1000,96,FALSE),DeclMatrix!$A$2:$F$5,VLOOKUP('Enrollment Form'!$B902,DeclMatrix!$A$8:$B$12,2,FALSE),FALSE))))","v":""},{"$f":"IF($A902=\"\",\"\",IF(VLOOKUP($G902,$H$11:$DN$1000,101,FALSE)=\"\",\"No\",IF(LEFT(VLOOKUP($G902,$H$11:$DN$1000,101,FALSE),3)=\"The\",EG902,VLOOKUP(VLOOKUP($G902,$H$11:$DN$1000,101,FALSE),DeclMatrix!$A$2:$F$5,VLOOKUP('Enrollment Form'!$B902,DeclMatrix!$A$8:$B$12,2,FALSE),FALSE))))","v":""},{"$f":"IF($A902=\"\",\"\",IF(VLOOKUP($G902,$H$11:$DN$1000,106,FALSE)=\"\",\"No\",IF(LEFT(VLOOKUP($G902,$H$11:$DN$1000,106,FALSE),3)=\"The\",EH902,VLOOKUP(VLOOKUP($G902,$H$11:$DN$1000,106,FALSE),DeclMatrix!$A$2:$F$5,VLOOKUP('Enrollment Form'!$B902,DeclMatrix!$A$8:$B$12,2,FALSE),FALSE))))","v":""},{"$f":"IF($A902=\"\",\"\",IF(VLOOKUP($G902,$H$11:$DN$1000,111,FALSE)=\"\",\"No\",IF(LEFT(VLOOKUP($G902,$H$11:$DN$1000,111,FALSE),3)=\"The\",EI902,VLOOKUP(VLOOKUP($G902,$H$11:$DN$1000,111,FALSE),DeclMatrix!$A$2:$F$5,VLOOKUP('Enrollment Form'!$B902,DeclMatrix!$A$8:$B$12,2,FALSE),FALSE))))","v":""},"",null,"","","","","","","","","","","",""]
["",{"$nulls":5},"","",{"$nulls":18},"","","","",{"$nulls":30},"","","","",{"$nulls":60},"",{"$f":"IF($A903=\"\",\"\",IF(VLOOKUP($G903,$H$11:$DN$1000,96,FALSE)=\"\",\"No\",IF(LEFT(VLOOKUP($G903,$H$11:$DN$1000,96,FALSE),3)=\"The\",EF903,VLOOKUP(VLOOKUP($G903,$H$11:$DN$1000,96,FALSE),DeclMatrix!$A$2:$F$5,VLOOKUP('Enrollment Form'!$B903,DeclMatrix!$A$8:$B$12,2,FALSE),FALSE))))","v":""},{"$f":"IF($A903=\"\",\"\",IF(VLOOKUP($G903,$H$11:$DN$1000,101,FALSE)=\"\",\"No\",IF(LEFT(VLOOKUP($G903,$H$11:$DN$1000,101,FALSE),3)=\"The\",EG903,VLOOKUP(VLOOKUP($G903,$H$11:$DN$1000,101,FALSE),DeclMatrix!$A$2:$F$5,VLOOKUP('Enrollment Form'!$B903,DeclMatrix!$A$8:$B$12,2,FALSE),FALSE))))","v":""},{"$f":"IF($A903=\"\",\"\",IF(VLOOKUP($G903,$H$11:$DN$1000,106,FALSE)=\"\",\"No\",IF(LEFT(VLOOKUP($G903,$H$11:$DN$1000,106,FALSE),3)=\"The\",EH903,VLOOKUP(VLOOKUP($G903,$H$11:$DN$1000,106,FALSE),DeclMatrix!$A$2:$F$5,VLOOKUP('Enrollment Form'!$B903,DeclMatrix!$A$8:$B$12,2,FALSE),FALSE))))","v":""},{"$f":"IF($A903=\"\",\"\",IF(VLOOKUP($G903,$H$11:$DN$1000,111,FALSE)=\"\",\"No\",IF(LEFT(VLOOKUP($G903,$H$11:$DN$1000,111,FALSE),3)=\"The\",EI903,VLOOKUP(VLOOKUP($G903,$H$11:$DN$1000,111,FALSE),DeclMatrix!$A$2:$F$5,VLOOKUP('Enrollment Form'!$B903,DeclMatrix!$A$8:$B$12,2,FALSE),FALSE))))","v":""},"",null,"","","","","","","","","","","",""]
["",{"$nulls":5},"","",{"$nulls":18},"","","","",{"$nulls":30},"","","","",{"$nulls":60},"",{"$f":"IF($A904=\"\",\"\",IF(VLOOKUP($G904,$H$11:$DN$1000,96,FALSE)=\"\",\"No\",IF(LEFT(VLOOKUP($G904,$H$11:$DN$1000,96,FALSE),3)=\"The\",EF904,VLOOKUP(VLOOKUP($G904,$H$11:$DN$1000,96,FALSE),DeclMatrix!$A$2:$F$5,VLOOKUP('Enrollment Form'!$B904,DeclMatrix!$A$8:$B$12,2,FALSE),FALSE))))","v":""},{"$f":"IF($A904=\"\",\"\",IF(VLOOKUP($G904,$H$11:$DN$1000,101,FALSE)=\"\",\"No\",IF(LEFT(VLOOKUP($G904,$H$11:$DN$1000,101,FALSE),3)=\"The\",EG904,VLOOKUP(VLOOKUP($G904,$H$11:$DN$1000,101,FALSE),DeclMatrix!$A$2:$F$5,VLOOKUP('Enrollment Form'!$B904,DeclMatrix!$A$8:$B$12,2,FALSE),FALSE))))","v":""},{"$f":"IF($A904=\"\",\"\",IF(VLOOKUP($G904,$H$11:$DN$1000,106,FALSE)=\"\",\"No\",IF(LEFT(VLOOKUP($G904,$H$11:$DN$1000,106,FALSE),3)=\"The\",EH904,VLOOKUP(VLOOKUP($G904,$H$11:$DN$1000,106,FALSE),DeclMatrix!$A$2:$F$5,VLOOKUP('Enrollment Form'!$B904,DeclMatrix!$A$8:$B$12,2,FALSE),FALSE))))","v":""},{"$f":"IF($A904=\"\",\"\",IF(VLOOKUP($G904,$H$11:$DN$1000,111,FALSE)=\"\",\"No\",IF(LEFT(VLOOKUP($G904,$H$11:$DN$1000,111,FALSE),3)=\"The\",EI904,VLOOKUP(VLOOKUP($G904,$H$11:$DN$1000,111,FALSE),DeclMatrix!$A$2:$F$5,VLOOKUP('Enrollment Form'!$B904,DeclMatrix!$A$8:$B$12,2,FALSE),FALSE))))","v":""},"",null,"","","","","","","","","","","",""]
["",{"$nulls":5},"","",{"$nulls":18},"","","","",{"$nulls":30},"","","","",{"$nulls":60},"",{"$f":"IF($A905=\"\",\"\",IF(VLOOKUP($G905,$H$11:$DN$1000,96,FALSE)=\"\",\"No\",IF(LEFT(VLOOKUP($G905,$H$11:$DN$1000,96,FALSE),3)=\"The\",EF905,VLOOKUP(VLOOKUP($G905,$H$11:$DN$1000,96,FALSE),DeclMatrix!$A$2:$F$5,VLOOKUP('Enrollment Form'!$B905,DeclMatrix!$A$8:$B$12,2,FALSE),FALSE))))","v":""},{"$f":"IF($A905=\"\",\"\",IF(VLOOKUP($G905,$H$11:$DN$1000,101,FALSE)=\"\",\"No\",IF(LEFT(VLOOKUP($G905,$H$11:$DN$1000,101,FALSE),3)=\"The\",EG905,VLOOKUP(VLOOKUP($G905,$H$11:$DN$1000,101,FALSE),DeclMatrix!$A$2:$F$5,VLOOKUP('Enrollment Form'!$B905,DeclMatrix!$A$8:$B$12,2,FALSE),FALSE))))","v":""},{"$f":"IF($A905=\"\",\"\",IF(VLOOKUP($G905,$H$11:$DN$1000,106,FALSE)=\"\",\"No\",IF(LEFT(VLOOKUP($G905,$H$11:$DN$1000,106,FALSE),3)=\"The\",EH905,VLOOKUP(VLOOKUP($G905,$H$11:$DN$1000,106,FALSE),DeclMatrix!$A$2:$F$5,VLOOKUP('Enrollment Form'!$B905,DeclMatrix!$A$8:$B$12,2,FALSE),FALSE))))","v":""},{"$f":"IF($A905=\"\",\"\",IF(VLOOKUP($G905,$H$11:$DN$1000,111,FALSE)=\"\",\"No\",IF(LEFT(VLOOKUP($G905,$H$11:$DN$1000,111,FALSE),3)=\"The\",EI905,VLOOKUP(VLOOKUP($G905,$H$11:$DN$1000,111,FALSE),DeclMatrix!$A$2:$F$5,VLOOKUP('Enrollment Form'!$B905,DeclMatrix!$A$8:$B$12,2,FALSE),FALSE))))","v":""},"",null,"","","","","","","","","","","",""]
["",{"$nulls":5},"","",{"$nulls":18},"","","","",{"$nulls":30},"","","","",{"$nulls":60},"",{"$f":"IF($A906=\"\",\"\",IF(VLOOKUP($G906,$H$11:$DN$1000,96,FALSE)=\"\",\"No\",IF(LEFT(VLOOKUP($G906,$H$11:$DN$1000,96,FALSE),3)=\"The\",EF906,VLOOKUP(VLOOKUP($G906,$H$11:$DN$1000,96,FALSE),DeclMatrix!$A$2:$F$5,VLOOKUP('Enrollment Form'!$B906,DeclMatrix!$A$8:$B$12,2,FALSE),FALSE))))","v":""},{"$f":"IF($A906=\"\",\"\",IF(VLOOKUP($G906,$H$11:$DN$1000,101,FALSE)=\"\",\"No\",IF(LEFT(VLOOKUP($G906,$H$11:$DN$1000,101,FALSE),3)=\"The\",EG906,VLOOKUP(VLOOKUP($G906,$H$11:$DN$1000,101,FALSE),DeclMatrix!$A$2:$F$5,VLOOKUP('Enrollment Form'!$B906,DeclMatrix!$A$8:$B$12,2,FALSE),FALSE))))","v":""},{"$f":"IF($A906=\"\",\"\",IF(VLOOKUP($G906,$H$11:$DN$1000,106,FALSE)=\"\",\"No\",IF(LEFT(VLOOKUP($G906,$H$11:$DN$1000,106,FALSE),3)=\"The\",EH906,VLOOKUP(VLOOKUP($G906,$H$11:$DN$1000,106,FALSE),DeclMatrix!$A$2:$F$5,VLOOKUP('Enrollment Form'!$B906,DeclMatrix!$A$8:$B$12,2,FALSE),FALSE))))","v":""},{"$f":"IF($A906=\"\",\"\",IF(VLOOKUP($G906,$H$11:$DN$1000,111,FALSE)=\"\",\"No\",IF(LEFT(VLOOKUP($G906,$H$11:$DN$1000,111,FALSE),3)=\"The\",EI906,VLOOKUP(VLOOKUP($G906,$H$11:$DN$1000,111,FALSE),DeclMatrix!$A$2:$F$5,VLOOKUP('Enrollment Form'!$B906,DeclMatrix!$A$8:$B$12,2,FALSE),FALSE))))","v":""},"",null,"","","","","","","","","","","",""]
[{"$f":"IF(LEN($B907)>0,$C$2,\"\")","v":""},{"$nulls":5},"","",{"$nulls":18},"","","","",{"$nulls":30},{"$f":"IF(AND($B907<>\"Subscriber\",$BH907=\"Yes\"),VLOOKUP($G907,$H$11:$Y$1000,15,FALSE),\"\")","v":""},{"$f":"IF(AND($B907<>\"Subscriber\",$BH907=\"Yes\"),VLOOKUP($G907,$H$11:$Y$1000,16,FALSE),\"\")","v":""},{"$f":"IF(AND($B907<>\"Subscriber\",$BH907=\"Yes\"),VLOOKUP($G907,$H$11:$Y$1000,17,FALSE),\"\")","v":""},{"$f":"IF(AND($B907<>\"Subscriber\",$BH907=\"Yes\"),VLOOKUP($G907,$H$11:$Y$1000,18,FALSE),\"\")","v":""},{"$nulls":60},{"$f":"IF($A907=\"\",\"\",IF($B907=\"Subscriber\",$AG907,VLOOKUP($G907,$H$11:$AG$1000,26,FALSE)))","v":""},{"$f":"IF($A907=\"\",\"\",IF(VLOOKUP($G907,$H$11:$DN$1000,96,FALSE)=\"\",\"No\",IF(LEFT(VLOOKUP($G907,$H$11:$DN$1000,96,FALSE),3)=\"The\",EF907,VLOOKUP(VLOOKUP($G907,$H$11:$DN$1000,96,FALSE),DeclMatrix!$A$2:$F$5,VLOOKUP('Enrollment Form'!$B907,DeclMatrix!$A$8:$B$12,2,FALSE),FALSE))))","v":""},{"$f":"IF($A907=\"\",\"\",IF(VLOOKUP($G907,$H$11:$DN$1000,101,FALSE)=\"\",\"No\",IF(LEFT(VLOOKUP($G907,$H$11:$DN$1000,101,FALSE),3)=\"The\",EG907,VLOOKUP(VLOOKUP($G907,$H$11:$DN$1000,101,FALSE),DeclMatrix!$A$2:$F$5,VLOOKUP('Enrollment Form'!$B907,DeclMatrix!$A$8:$B$12,2,FALSE),FALSE))))","v":""},{"$f":"IF($A907=\"\",\"\",IF(VLOOKUP($G907,$H$11:$DN$1000,106,FALSE)=\"\",\"No\",IF(LEFT(VLOOKUP($G907,$H$11:$DN$1000,106,FALSE),3)=\"The\",EH907,VLOOKUP(VLOOKUP($G907,$H$11:$DN$1000,106,FALSE),DeclMatrix!$A$2:$F$5,VLOOKUP('Enrollment Form'!$B907,DeclMatrix!$A$8:$B$12,2,FALSE),FALSE))))","v":""},{"$f":"IF($A907=\"\",\"\",IF(VLOOKUP($G907,$H$11:$DN$1000,111,FALSE)=\"\",\"No\",IF(LEFT(VLOOKUP($G907,$H$11:$DN$1000,111,FALSE),3)=\"The\",EI907,VLOOKUP(VLOOKUP($G907,$H$11:$DN$1000,111,FALSE),DeclMatrix!$A$2:$F$5,VLOOKUP('Enrollment Form'!$B907,DeclMatrix!$A$8:$B$12,2,FALSE),FALSE))))","v":""},"",null,{"$f":"$B907&$G907&$J907","v":""},{"$f":"$B907&$G907&$L907","v":""},{"$f":"$B907&$G907&$N907","v":""},{"$f":"$B907&$G907&$O907","v":""},"","","","",{"$f":"IF($A907=\"\",\"\",IF(AND($B907=\"Subscriber\",$I907<>\"Waive\",$I907<>\"\"),\"Yes\",IF(AND($B907<>\"Subscriber\",$BF907=\"Yes\"),VLOOKUP($G907,$H$11:$EM$1000,133,FALSE),IF(AND($C907=\"Enroll\",VLOOKUP($G908,$H$11:$EM$1000,96,FALSE)<>\"\"),VLOOKUP($DV907,$DW$2:$DX$3,2,FALSE),\"No\"))))","v":""},{"$f":"IF($A907=\"\",\"\",IF(AND($B907=\"Subscriber\",$K907<>\"Waive\",$K907<>\"\"),\"Yes\",IF(AND($B907<>\"Subscriber\",$BF907=\"Yes\"),VLOOKUP($G907,$H$11:$EM$1000,134,FALSE),IF(AND($C907=\"Enroll\",VLOOKUP($G908,$H$11:$EM$1000,101,FALSE)<>\"\"),VLOOKUP($DW907,$DW$2:$DX$3,2,FALSE),\"No\"))))","v":""},{"$f":"IF($A907=\"\",\"\",IF(AND($B907=\"Subscriber\",$M907<>\"Waive\",$M907<>\"\"),\"Yes\",IF(AND($B907<>\"Subscriber\",$BF907=\"Yes\"),VLOOKUP($G907,$H$11:$EM$1000,135,FALSE),IF(AND($C907=\"Enroll\",VLOOKUP($G908,$H$11:$EM$1000,106,FALSE)<>\"\"),VLOOKUP($DX907,$DW$2:$DX$3,2,FALSE),\"No\"))))","v":""},{"$f":"IF($A907=\"\",\"\",IF(AND($B907=\"Subscriber\",$O907<>\"Waive\",$O907<>\"\"),\"Yes\",IF(AND($B907<>\"Subscriber\",$BF907=\"Yes\"),VLOOKUP($G907,$H$11:$EM$1000,136,FALSE),IF(AND($C907=\"Enroll\",VLOOKUP($G908,$H$11:$EM$1000,111,FALSE)<>\"\"),VLOOKUP($DY907,$DW$2:$DX$3,2,FALSE),\"No\"))))","v":""}]
["",{"$nulls":5},{"$f":"IF(A908=\"\",\"\",IF(AND(B908<>\"Subscriber\",B908<>\"\"),G907,\"\"))","v":""},{"$f":"IF(AND(B908=\"Subscriber\",G908<>\"\"),G908,\"\")","v":""},{"$nulls":18},{"$f":"IF(AND($B908=\"Subscriber\",$Z908=\"Yes\"),V908,\"\")","v":""},{"$f":"IF(AND($B908=\"Subscriber\",$Z908=\"Yes\"),W908,\"\")","v":""},{"$f":"IF(AND($B908=\"Subscriber\",$Z908=\"Yes\"),X908,\"\")","v":""},{"$f":"IF(AND($B908=\"Subscriber\",$Z908=\"Yes\"),Y908,\"\")","v":""},{"$nulls":30},"","","","",{"$nulls":60},"",{"$f":"IF($A908=\"\",\"\",IF(VLOOKUP($G908,$H$11:$DN$1000,96,FALSE)=\"\",\"No\",IF(LEFT(VLOOKUP($G908,$H$11:$DN$1000,96,FALSE),3)=\"The\",EF908,VLOOKUP(VLOOKUP($G908,$H$11:$DN$1000,96,FALSE),DeclMatrix!$A$2:$F$5,VLOOKUP('Enrollment Form'!$B908,DeclMatrix!$A$8:$B$12,2,FALSE),FALSE))))","v":""},{"$f":"IF($A908=\"\",\"\",IF(VLOOKUP($G908,$H$11:$DN$1000,101,FALSE)=\"\",\"No\",IF(LEFT(VLOOKUP($G908,$H$11:$DN$1000,101,FALSE),3)=\"The\",EG908,VLOOKUP(VLOOKUP($G908,$H$11:$DN$1000,101,FALSE),DeclMatrix!$A$2:$F$5,VLOOKUP('Enrollment Form'!$B908,DeclMatrix!$A$8:$B$12,2,FALSE),FALSE))))","v":""},{"$f":"IF($A908=\"\",\"\",IF(VLOOKUP($G908,$H$11:$DN$1000,106,FALSE)=\"\",\"No\",IF(LEFT(VLOOKUP($G908,$H$11:$DN$1000,106,FALSE),3)=\"The\",EH908,VLOOKUP(VLOOKUP($G908,$H$11:$DN$1000,106,FALSE),DeclMatrix!$A$2:$F$5,VLOOKUP('Enrollment Form'!$B908,DeclMatrix!$A$8:$B$12,2,FALSE),FALSE))))","v":""},{"$f":"IF($A908=\"\",\"\",IF(VLOOKUP($G908,$H$11:$DN$1000,111,FALSE)=\"\",\"No\",IF(LEFT(VLOOKUP($G908,$H$11:$DN$1000,111,FALSE),3)=\"The\",EI908,VLOOKUP(VLOOKUP($G908,$H$11:$DN$1000,111,FALSE),DeclMatrix!$A$2:$F$5,VLOOKUP('Enrollment Form'!$B908,DeclMatrix!$A$8:$B$12,2,FALSE),FALSE))))","v":""},{"$f":"IF(A908<>\"\",\"1X\",\"\")","v":""},null,"","","","",{"$f":"IF($A908=\"\",\"\",IF($B908=\"Subscriber\",\"No\",IF(OR($CY908=\"\",$CY908=\"No\"),\"No\",\"Yes\")))","v":""},{"$f":"IF($A908=\"\",\"\",IF($B908=\"Subscriber\",\"No\",IF(OR($DD908=\"\",$DD908=\"No\"),\"No\",\"Yes\")))","v":""},{"$f":"IF($A908=\"\",\"\",IF($B908=\"Subscriber\",\"No\",IF(OR($DI908=\"\",$DI908=\"No\"),\"No\",\"Yes\")))","v":""},{"$f":"IF($A908=\"\",\"\",IF($B908=\"Subscriber\",\"No\",IF(OR($DN908=\"\",$DN908=\"No\"),\"No\",\"Yes\")))","v":""},"","","",""]
["",{"$nulls":5},"","",{"$nulls":18},"","","","",{"$nulls":30},"","","","",{"$nulls":60},"",{"$f":"IF($A909=\"\",\"\",IF(VLOOKUP($G909,$H$11:$DN$1000,96,FALSE)=\"\",\"No\",IF(LEFT(VLOOKUP($G909,$H$11:$DN$1000,96,FALSE),3)=\"The\",EF909,VLOOKUP(VLOOKUP($G909,$H$11:$DN$1000,96,FALSE),DeclMatrix!$A$2:$F$5,VLOOKUP('Enrollment Form'!$B909,DeclMatrix!$A$8:$B$12,2,FALSE),FALSE))))","v":""},{"$f":"IF($A909=\"\",\"\",IF(VLOOKUP($G909,$H$11:$DN$1000,101,FALSE)=\"\",\"No\",IF(LEFT(VLOOKUP($G909,$H$11:$DN$1000,101,FALSE),3)=\"The\",EG909,VLOOKUP(VLOOKUP($G909,$H$11:$DN$1000,101,FALSE),DeclMatrix!$A$2:$F$5,VLOOKUP('Enrollment Form'!$B909,DeclMatrix!$A$8:$B$12,2,FALSE),FALSE))))","v":""},{"$f":"IF($A909=\"\",\"\",IF(VLOOKUP($G909,$H$11:$DN$1000,106,FALSE)=\"\",\"No\",IF(LEFT(VLOOKUP($G909,$H$11:$DN$1000,106,FALSE),3)=\"The\",EH909,VLOOKUP(VLOOKUP($G909,$H$11:$DN$1000,106,FALSE),DeclMatrix!$A$2:$F$5,VLOOKUP('Enrollment Form'!$B909,DeclMatrix!$A$8:$B$12,2,FALSE),FALSE))))","v":""},{"$f":"IF($A909=\"\",\"\",IF(VLOOKUP($G909,$H$11:$DN$1000,111,FALSE)=\"\",\"No\",IF(LEFT(VLOOKUP($G909,$H$11:$DN$1000,111,FALSE),3)=\"The\",EI909,VLOOKUP(VLOOKUP($G909,$H$11:$DN$1000,111,FALSE),DeclMatrix!$A$2:$F$5,VLOOKUP('Enrollment Form'!$B909,DeclMatrix!$A$8:$B$12,2,FALSE),FALSE))))","v":""},"",null,"","","","","","","","","","","",""]
["",{"$nulls":5},"","",{"$nulls":18},"","","","",{"$nulls":30},"","","","",{"$nulls":60},"",{"$f":"IF($A910=\"\",\"\",IF(VLOOKUP($G910,$H$11:$DN$1000,96,FALSE)=\"\",\"No\",IF(LEFT(VLOOKUP($G910,$H$11:$DN$1000,96,FALSE),3)=\"The\",EF910,VLOOKUP(VLOOKUP($G910,$H$11:$DN$1000,96,FALSE),DeclMatrix!$A$2:$F$5,VLOOKUP('Enrollment Form'!$B910,DeclMatrix!$A$8:$B$12,2,FALSE),FALSE))))","v":""},{"$f":"IF($A910=\"\",\"\",IF(VLOOKUP($G910,$H$11:$DN$1000,101,FALSE)=\"\",\"No\",IF(LEFT(VLOOKUP($G910,$H$11:$DN$1000,101,FALSE),3)=\"The\",EG910,VLOOKUP(VLOOKUP($G910,$H$11:$DN$1000,101,FALSE),DeclMatrix!$A$2:$F$5,VLOOKUP('Enrollment Form'!$B910,DeclMatrix!$A$8:$B$12,2,FALSE),FALSE))))","v":""},{"$f":"IF($A910=\"\",\"\",IF(VLOOKUP($G910,$H$11:$DN$1000,106,FALSE)=\"\",\"No\",IF(LEFT(VLOOKUP($G910,$H$11:$DN$1000,106,FALSE),3)=\"The\",EH910,VLOOKUP(VLOOKUP($G910,$H$11:$DN$1000,106,FALSE),DeclMatrix!$A$2:$F$5,VLOOKUP('Enrollment Form'!$B910,DeclMatrix!$A$8:$B$12,2,FALSE),FALSE))))","v":""},{"$f":"IF($A910=\"\",\"\",IF(VLOOKUP($G910,$H$11:$DN$1000,111,FALSE)=\"\",\"No\",IF(LEFT(VLOOKUP($G910,$H$11:$DN$1000,111,FALSE),3)=\"The\",EI910,VLOOKUP(VLOOKUP($G910,$H$11:$DN$1000,111,FALSE),DeclMatrix!$A$2:$F$5,VLOOKUP('Enrollment Form'!$B910,DeclMatrix!$A$8:$B$12,2,FALSE),FALSE))))","v":""},"",null,"","","","","","","","","","","",""]
["",{"$nulls":5},"","",{"$nulls":18},"","","","",{"$nulls":30},"","","","",{"$nulls":60},"",{"$f":"IF($A911=\"\",\"\",IF(VLOOKUP($G911,$H$11:$DN$1000,96,FALSE)=\"\",\"No\",IF(LEFT(VLOOKUP($G911,$H$11:$DN$1000,96,FALSE),3)=\"The\",EF911,VLOOKUP(VLOOKUP($G911,$H$11:$DN$1000,96,FALSE),DeclMatrix!$A$2:$F$5,VLOOKUP('Enrollment Form'!$B911,DeclMatrix!$A$8:$B$12,2,FALSE),FALSE))))","v":""},{"$f":"IF($A911=\"\",\"\",IF(VLOOKUP($G911,$H$11:$DN$1000,101,FALSE)=\"\",\"No\",IF(LEFT(VLOOKUP($G911,$H$11:$DN$1000,101,FALSE),3)=\"The\",EG911,VLOOKUP(VLOOKUP($G911,$H$11:$DN$1000,101,FALSE),DeclMatrix!$A$2:$F$5,VLOOKUP('Enrollment Form'!$B911,DeclMatrix!$A$8:$B$12,2,FALSE),FALSE))))","v":""},{"$f":"IF($A911=\"\",\"\",IF(VLOOKUP($G911,$H$11:$DN$1000,106,FALSE)=\"\",\"No\",IF(LEFT(VLOOKUP($G911,$H$11:$DN$1000,106,FALSE),3)=\"The\",EH911,VLOOKUP(VLOOKUP($G911,$H$11:$DN$1000,106,FALSE),DeclMatrix!$A$2:$F$5,VLOOKUP('Enrollment Form'!$B911,DeclMatrix!$A$8:$B$12,2,FALSE),FALSE))))","v":""},{"$f":"IF($A911=\"\",\"\",IF(VLOOKUP($G911,$H$11:$DN$1000,111,FALSE)=\"\",\"No\",IF(LEFT(VLOOKUP($G911,$H$11:$DN$1000,111,FALSE),3)=\"The\",EI911,VLOOKUP(VLOOKUP($G911,$H$11:$DN$1000,111,FALSE),DeclMatrix!$A$2:$F$5,VLOOKUP('Enrollment Form'!$B911,DeclMatrix!$A$8:$B$12,2,FALSE),FALSE))))","v":""},"",null,"","","","","","","","","","","",""]
["",{"$nulls":5},"","",{"$nulls":18},"","","","",{"$nulls":30},"","","","",{"$nulls":60},"",{"$f":"IF($A912=\"\",\"\",IF(VLOOKUP($G912,$H$11:$DN$1000,96,FALSE)=\"\",\"No\",IF(LEFT(VLOOKUP($G912,$H$11:$DN$1000,96,FALSE),3)=\"The\",EF912,VLOOKUP(VLOOKUP($G912,$H$11:$DN$1000,96,FALSE),DeclMatrix!$A$2:$F$5,VLOOKUP('Enrollment Form'!$B912,DeclMatrix!$A$8:$B$12,2,FALSE),FALSE))))","v":""},{"$f":"IF($A912=\"\",\"\",IF(VLOOKUP($G912,$H$11:$DN$1000,101,FALSE)=\"\",\"No\",IF(LEFT(VLOOKUP($G912,$H$11:$DN$1000,101,FALSE),3)=\"The\",EG912,VLOOKUP(VLOOKUP($G912,$H$11:$DN$1000,101,FALSE),DeclMatrix!$A$2:$F$5,VLOOKUP('Enrollment Form'!$B912,DeclMatrix!$A$8:$B$12,2,FALSE),FALSE))))","v":""},{"$f":"IF($A912=\"\",\"\",IF(VLOOKUP($G912,$H$11:$DN$1000,106,FALSE)=\"\",\"No\",IF(LEFT(VLOOKUP($G912,$H$11:$DN$1000,106,FALSE),3)=\"The\",EH912,VLOOKUP(VLOOKUP($G912,$H$11:$DN$1000,106,FALSE),DeclMatrix!$A$2:$F$5,VLOOKUP('Enrollment Form'!$B912,DeclMatrix!$A$8:$B$12,2,FALSE),FALSE))))","v":""},{"$f":"IF($A912=\"\",\"\",IF(VLOOKUP($G912,$H$11:$DN$1000,111,FALSE)=\"\",\"No\",IF(LEFT(VLOOKUP($G912,$H$11:$DN$1000,111,FALSE),3)=\"The\",EI912,VLOOKUP(VLOOKUP($G912,$H$11:$DN$1000,111,FALSE),DeclMatrix!$A$2:$F$5,VLOOKUP('Enrollment Form'!$B912,DeclMatrix!$A$8:$B$12,2,FALSE),FALSE))))","v":""},"",null,"","","","","","","","","","","",""]
["",{"$nulls":5},"","",{"$nulls":18},"","","","",{"$nulls":30},"","","","",{"$nulls":60},"",{"$f":"IF($A913=\"\",\"\",IF(VLOOKUP($G913,$H$11:$DN$1000,96,FALSE)=\"\",\"No\",IF(LEFT(VLOOKUP($G913,$H$11:$DN$1000,96,FALSE),3)=\"The\",EF913,VLOOKUP(VLOOKUP($G913,$H$11:$DN$1000,96,FALSE),DeclMatrix!$A$2:$F$5,VLOOKUP('Enrollment Form'!$B913,DeclMatrix!$A$8:$B$12,2,FALSE),FALSE))))","v":""},{"$f":"IF($A913=\"\",\"\",IF(VLOOKUP($G913,$H$11:$DN$1000,101,FALSE)=\"\",\"No\",IF(LEFT(VLOOKUP($G913,$H$11:$DN$1000,101,FALSE),3)=\"The\",EG913,VLOOKUP(VLOOKUP($G913,$H$11:$DN$1000,101,FALSE),DeclMatrix!$A$2:$F$5,VLOOKUP('Enrollment Form'!$B913,DeclMatrix!$A$8:$B$12,2,FALSE),FALSE))))","v":""},{"$f":"IF($A913=\"\",\"\",IF(VLOOKUP($G913,$H$11:$DN$1000,106,FALSE)=\"\",\"No\",IF(LEFT(VLOOKUP($G913,$H$11:$DN$1000,106,FALSE),3)=\"The\",EH913,VLOOKUP(VLOOKUP($G913,$H$11:$DN$1000,106,FALSE),DeclMatrix!$A$2:$F$5,VLOOKUP('Enrollment Form'!$B913,DeclMatrix!$A$8:$B$12,2,FALSE),FALSE))))","v":""},{"$f":"IF($A913=\"\",\"\",IF(VLOOKUP($G913,$H$11:$DN$1000,111,FALSE)=\"\",\"No\",IF(LEFT(VLOOKUP($G913,$H$11:$DN$1000,111,FALSE),3)=\"The\",EI913,VLOOKUP(VLOOKUP($G913,$H$11:$DN$1000,111,FALSE),DeclMatrix!$A$2:$F$5,VLOOKUP('Enrollment Form'!$B913,DeclMatrix!$A$8:$B$12,2,FALSE),FALSE))))","v":""},"",null,"","","","","","","","","","","",""]
["",{"$nulls":5},"","",{"$nulls":18},"","","","",{"$nulls":30},"","","","",{"$nulls":60},"",{"$f":"IF($A914=\"\",\"\",IF(VLOOKUP($G914,$H$11:$DN$1000,96,FALSE)=\"\",\"No\",IF(LEFT(VLOOKUP($G914,$H$11:$DN$1000,96,FALSE),3)=\"The\",EF914,VLOOKUP(VLOOKUP($G914,$H$11:$DN$1000,96,FALSE),DeclMatrix!$A$2:$F$5,VLOOKUP('Enrollment Form'!$B914,DeclMatrix!$A$8:$B$12,2,FALSE),FALSE))))","v":""},{"$f":"IF($A914=\"\",\"\",IF(VLOOKUP($G914,$H$11:$DN$1000,101,FALSE)=\"\",\"No\",IF(LEFT(VLOOKUP($G914,$H$11:$DN$1000,101,FALSE),3)=\"The\",EG914,VLOOKUP(VLOOKUP($G914,$H$11:$DN$1000,101,FALSE),DeclMatrix!$A$2:$F$5,VLOOKUP('Enrollment Form'!$B914,DeclMatrix!$A$8:$B$12,2,FALSE),FALSE))))","v":""},{"$f":"IF($A914=\"\",\"\",IF(VLOOKUP($G914,$H$11:$DN$1000,106,FALSE)=\"\",\"No\",IF(LEFT(VLOOKUP($G914,$H$11:$DN$1000,106,FALSE),3)=\"The\",EH914,VLOOKUP(VLOOKUP($G914,$H$11:$DN$1000,106,FALSE),DeclMatrix!$A$2:$F$5,VLOOKUP('Enrollment Form'!$B914,DeclMatrix!$A$8:$B$12,2,FALSE),FALSE))))","v":""},{"$f":"IF($A914=\"\",\"\",IF(VLOOKUP($G914,$H$11:$DN$1000,111,FALSE)=\"\",\"No\",IF(LEFT(VLOOKUP($G914,$H$11:$DN$1000,111,FALSE),3)=\"The\",EI914,VLOOKUP(VLOOKUP($G914,$H$11:$DN$1000,111,FALSE),DeclMatrix!$A$2:$F$5,VLOOKUP('Enrollment Form'!$B914,DeclMatrix!$A$8:$B$12,2,FALSE),FALSE))))","v":""},"",null,"","","","","","","","","","","",""]
["",{"$nulls":5},"","",{"$nulls":18},"","","","",{"$nulls":30},"","","","",{"$nulls":60},"",{"$f":"IF($A915=\"\",\"\",IF(VLOOKUP($G915,$H$11:$DN$1000,96,FALSE)=\"\",\"No\",IF(LEFT(VLOOKUP($G915,$H$11:$DN$1000,96,FALSE),3)=\"The\",EF915,VLOOKUP(VLOOKUP($G915,$H$11:$DN$1000,96,FALSE),DeclMatrix!$A$2:$F$5,VLOOKUP('Enrollment Form'!$B915,DeclMatrix!$A$8:$B$12,2,FALSE),FALSE))))","v":""},{"$f":"IF($A915=\"\",\"\",IF(VLOOKUP($G915,$H$11:$DN$1000,101,FALSE)=\"\",\"No\",IF(LEFT(VLOOKUP($G915,$H$11:$DN$1000,101,FALSE),3)=\"The\",EG915,VLOOKUP(VLOOKUP($G915,$H$11:$DN$1000,101,FALSE),DeclMatrix!$A$2:$F$5,VLOOKUP('Enrollment Form'!$B915,DeclMatrix!$A$8:$B$12,2,FALSE),FALSE))))","v":""},{"$f":"IF($A915=\"\",\"\",IF(VLOOKUP($G915,$H$11:$DN$1000,106,FALSE)=\"\",\"No\",IF(LEFT(VLOOKUP($G915,$H$11:$DN$1000,106,FALSE),3)=\"The\",EH915,VLOOKUP(VLOOKUP($G915,$H$11:$DN$1000,106,FALSE),DeclMatrix!$A$2:$F$5,VLOOKUP('Enrollment Form'!$B915,DeclMatrix!$A$8:$B$12,2,FALSE),FALSE))))","v":""},{"$f":"IF($A915=\"\",\"\",IF(VLOOKUP($G915,$H$11:$DN$1000,111,FALSE)=\"\",\"No\",IF(LEFT(VLOOKUP($G915,$H$11:$DN$1000,111,FALSE),3)=\"The\",EI915,VLOOKUP(VLOOKUP($G915,$H$11:$DN$1000,111,FALSE),DeclMatrix!$A$2:$F$5,VLOOKUP('Enrollment Form'!$B915,DeclMatrix!$A$8:$B$12,2,FALSE),FALSE))))","v":""},"",null,"","","","","","","","","","","",""]
["",{"$nulls":5},"","",{"$nulls":18},"","","","",{"$nulls":30},"","","","",{"$nulls":60},"",{"$f":"IF($A916=\"\",\"\",IF(VLOOKUP($G916,$H$11:$DN$1000,96,FALSE)=\"\",\"No\",IF(LEFT(VLOOKUP($G916,$H$11:$DN$1000,96,FALSE),3)=\"The\",EF916,VLOOKUP(VLOOKUP($G916,$H$11:$DN$1000,96,FALSE),DeclMatrix!$A$2:$F$5,VLOOKUP('Enrollment Form'!$B916,DeclMatrix!$A$8:$B$12,2,FALSE),FALSE))))","v":""},{"$f":"IF($A916=\"\",\"\",IF(VLOOKUP($G916,$H$11:$DN$1000,101,FALSE)=\"\",\"No\",IF(LEFT(VLOOKUP($G916,$H$11:$DN$1000,101,FALSE),3)=\"The\",EG916,VLOOKUP(VLOOKUP($G916,$H$11:$DN$1000,101,FALSE),DeclMatrix!$A$2:$F$5,VLOOKUP('Enrollment Form'!$B916,DeclMatrix!$A$8:$B$12,2,FALSE),FALSE))))","v":""},{"$f":"IF($A916=\"\",\"\",IF(VLOOKUP($G916,$H$11:$DN$1000,106,FALSE)=\"\",\"No\",IF(LEFT(VLOOKUP($G916,$H$11:$DN$1000,106,FALSE),3)=\"The\",EH916,VLOOKUP(VLOOKUP($G916,$H$11:$DN$1000,106,FALSE),DeclMatrix!$A$2:$F$5,VLOOKUP('Enrollment Form'!$B916,DeclMatrix!$A$8:$B$12,2,FALSE),FALSE))))","v":""},{"$f":"IF($A916=\"\",\"\",IF(VLOOKUP($G916,$H$11:$DN$1000,111,FALSE)=\"\",\"No\",IF(LEFT(VLOOKUP($G916,$H$11:$DN$1000,111,FALSE),3)=\"The\",EI916,VLOOKUP(VLOOKUP($G916,$H$11:$DN$1000,111,FALSE),DeclMatrix!$A$2:$F$5,VLOOKUP('Enrollment Form'!$B916,DeclMatrix!$A$8:$B$12,2,FALSE),FALSE))))","v":""},"",null,"","","","","","","","","","","",""]
["",{"$nulls":5},"","",{"$nulls":18},"","","","",{"$nulls":30},"","","","",{"$nulls":60},"",{"$f":"IF($A917=\"\",\"\",IF(VLOOKUP($G917,$H$11:$DN$1000,96,FALSE)=\"\",\"No\",IF(LEFT(VLOOKUP($G917,$H$11:$DN$1000,96,FALSE),3)=\"The\",EF917,VLOOKUP(VLOOKUP($G917,$H$11:$DN$1000,96,FALSE),DeclMatrix!$A$2:$F$5,VLOOKUP('Enrollment Form'!$B917,DeclMatrix!$A$8:$B$12,2,FALSE),FALSE))))","v":""},{"$f":"IF($A917=\"\",\"\",IF(VLOOKUP($G917,$H$11:$DN$1000,101,FALSE)=\"\",\"No\",IF(LEFT(VLOOKUP($G917,$H$11:$DN$1000,101,FALSE),3)=\"The\",EG917,VLOOKUP(VLOOKUP($G917,$H$11:$DN$1000,101,FALSE),DeclMatrix!$A$2:$F$5,VLOOKUP('Enrollment Form'!$B917,DeclMatrix!$A$8:$B$12,2,FALSE),FALSE))))","v":""},{"$f":"IF($A917=\"\",\"\",IF(VLOOKUP($G917,$H$11:$DN$1000,106,FALSE)=\"\",\"No\",IF(LEFT(VLOOKUP($G917,$H$11:$DN$1000,106,FALSE),3)=\"The\",EH917,VLOOKUP(VLOOKUP($G917,$H$11:$DN$1000,106,FALSE),DeclMatrix!$A$2:$F$5,VLOOKUP('Enrollment Form'!$B917,DeclMatrix!$A$8:$B$12,2,FALSE),FALSE))))","v":""},{"$f":"IF($A917=\"\",\"\",IF(VLOOKUP($G917,$H$11:$DN$1000,111,FALSE)=\"\",\"No\",IF(LEFT(VLOOKUP($G917,$H$11:$DN$1000,111,FALSE),3)=\"The\",EI917,VLOOKUP(VLOOKUP($G917,$H$11:$DN$1000,111,FALSE),DeclMatrix!$A$2:$F$5,VLOOKUP('Enrollment Form'!$B917,DeclMatrix!$A$8:$B$12,2,FALSE),FALSE))))","v":""},"",null,"","","","","","","","","","","",""]
["",{"$nulls":5},"","",{"$nulls":18},"","","","",{"$nulls":30},"","","","",{"$nulls":60},"",{"$f":"IF($A918=\"\",\"\",IF(VLOOKUP($G918,$H$11:$DN$1000,96,FALSE)=\"\",\"No\",IF(LEFT(VLOOKUP($G918,$H$11:$DN$1000,96,FALSE),3)=\"The\",EF918,VLOOKUP(VLOOKUP($G918,$H$11:$DN$1000,96,FALSE),DeclMatrix!$A$2:$F$5,VLOOKUP('Enrollment Form'!$B918,DeclMatrix!$A$8:$B$12,2,FALSE),FALSE))))","v":""},{"$f":"IF($A918=\"\",\"\",IF(VLOOKUP($G918,$H$11:$DN$1000,101,FALSE)=\"\",\"No\",IF(LEFT(VLOOKUP($G918,$H$11:$DN$1000,101,FALSE),3)=\"The\",EG918,VLOOKUP(VLOOKUP($G918,$H$11:$DN$1000,101,FALSE),DeclMatrix!$A$2:$F$5,VLOOKUP('Enrollment Form'!$B918,DeclMatrix!$A$8:$B$12,2,FALSE),FALSE))))","v":""},{"$f":"IF($A918=\"\",\"\",IF(VLOOKUP($G918,$H$11:$DN$1000,106,FALSE)=\"\",\"No\",IF(LEFT(VLOOKUP($G918,$H$11:$DN$1000,106,FALSE),3)=\"The\",EH918,VLOOKUP(VLOOKUP($G918,$H$11:$DN$1000,106,FALSE),DeclMatrix!$A$2:$F$5,VLOOKUP('Enrollment Form'!$B918,DeclMatrix!$A$8:$B$12,2,FALSE),FALSE))))","v":""},{"$f":"IF($A918=\"\",\"\",IF(VLOOKUP($G918,$H$11:$DN$1000,111,FALSE)=\"\",\"No\",IF(LEFT(VLOOKUP($G918,$H$11:$DN$1000,111,FALSE),3)=\"The\",EI918,VLOOKUP(VLOOKUP($G918,$H$11:$DN$1000,111,FALSE),DeclMatrix!$A$2:$F$5,VLOOKUP('Enrollment Form'!$B918,DeclMatrix!$A$8:$B$12,2,FALSE),FALSE))))","v":""},"",null,"","","","","","","","","","","",""]
["",{"$nulls":5},"","",{"$nulls":18},"","","","",{"$nulls":30},"","","","",{"$nulls":60},"",{"$f":"IF($A919=\"\",\"\",IF(VLOOKUP($G919,$H$11:$DN$1000,96,FALSE)=\"\",\"No\",IF(LEFT(VLOOKUP($G919,$H$11:$DN$1000,96,FALSE),3)=\"The\",EF919,VLOOKUP(VLOOKUP($G919,$H$11:$DN$1000,96,FALSE),DeclMatrix!$A$2:$F$5,VLOOKUP('Enrollment Form'!$B919,DeclMatrix!$A$8:$B$12,2,FALSE),FALSE))))","v":""},{"$f":"IF($A919=\"\",\"\",IF(VLOOKUP($G919,$H$11:$DN$1000,101,FALSE)=\"\",\"No\",IF(LEFT(VLOOKUP($G919,$H$11:$DN$1000,101,FALSE),3)=\"The\",EG919,VLOOKUP(VLOOKUP($G919,$H$11:$DN$1000,101,FALSE),DeclMatrix!$A$2:$F$5,VLOOKUP('Enrollment Form'!$B919,DeclMatrix!$A$8:$B$12,2,FALSE),FALSE))))","v":""},{"$f":"IF($A919=\"\",\"\",IF(VLOOKUP($G919,$H$11:$DN$1000,106,FALSE)=\"\",\"No\",IF(LEFT(VLOOKUP($G919,$H$11:$DN$1000,106,FALSE),3)=\"The\",EH919,VLOOKUP(VLOOKUP($G919,$H$11:$DN$1000,106,FALSE),DeclMatrix!$A$2:$F$5,VLOOKUP('Enrollment Form'!$B919,DeclMatrix!$A$8:$B$12,2,FALSE),FALSE))))","v":""},{"$f":"IF($A919=\"\",\"\",IF(VLOOKUP($G919,$H$11:$DN$1000,111,FALSE)=\"\",\"No\",IF(LEFT(VLOOKUP($G919,$H$11:$DN$1000,111,FALSE),3)=\"The\",EI919,VLOOKUP(VLOOKUP($G919,$H$11:$DN$1000,111,FALSE),DeclMatrix!$A$2:$F$5,VLOOKUP('Enrollment Form'!$B919,DeclMatrix!$A$8:$B$12,2,FALSE),FALSE))))","v":""},"",null,"","","","","","","","","","","",""]
["",{"$nulls":5},"","",{"$nulls":18},"","","","",{"$nulls":30},"","","","",{"$nulls":60},"",{"$f":"IF($A920=\"\",\"\",IF(VLOOKUP($G920,$H$11:$DN$1000,96,FALSE)=\"\",\"No\",IF(LEFT(VLOOKUP($G920,$H$11:$DN$1000,96,FALSE),3)=\"The\",EF920,VLOOKUP(VLOOKUP($G920,$H$11:$DN$1000,96,FALSE),DeclMatrix!$A$2:$F$5,VLOOKUP('Enrollment Form'!$B920,DeclMatrix!$A$8:$B$12,2,FALSE),FALSE))))","v":""},{"$f":"IF($A920=\"\",\"\",IF(VLOOKUP($G920,$H$11:$DN$1000,101,FALSE)=\"\",\"No\",IF(LEFT(VLOOKUP($G920,$H$11:$DN$1000,101,FALSE),3)=\"The\",EG920,VLOOKUP(VLOOKUP($G920,$H$11:$DN$1000,101,FALSE),DeclMatrix!$A$2:$F$5,VLOOKUP('Enrollment Form'!$B920,DeclMatrix!$A$8:$B$12,2,FALSE),FALSE))))","v":""},{"$f":"IF($A920=\"\",\"\",IF(VLOOKUP($G920,$H$11:$DN$1000,106,FALSE)=\"\",\"No\",IF(LEFT(VLOOKUP($G920,$H$11:$DN$1000,106,FALSE),3)=\"The\",EH920,VLOOKUP(VLOOKUP($G920,$H$11:$DN$1000,106,FALSE),DeclMatrix!$A$2:$F$5,VLOOKUP('Enrollment Form'!$B920,DeclMatrix!$A$8:$B$12,2,FALSE),FALSE))))","v":""},{"$f":"IF($A920=\"\",\"\",IF(VLOOKUP($G920,$H$11:$DN$1000,111,FALSE)=\"\",\"No\",IF(LEFT(VLOOKUP($G920,$H$11:$DN$1000,111,FALSE),3)=\"The\",EI920,VLOOKUP(VLOOKUP($G920,$H$11:$DN$1000,111,FALSE),DeclMatrix!$A$2:$F$5,VLOOKUP('Enrollment Form'!$B920,DeclMatrix!$A$8:$B$12,2,FALSE),FALSE))))","v":""},"",null,"","","","","","","","","","","",""]
["",{"$nulls":5},"","",{"$nulls":18},"","","","",{"$nulls":30},"","","","",{"$nulls":60},"",{"$f":"IF($A921=\"\",\"\",IF(VLOOKUP($G921,$H$11:$DN$1000,96,FALSE)=\"\",\"No\",IF(LEFT(VLOOKUP($G921,$H$11:$DN$1000,96,FALSE),3)=\"The\",EF921,VLOOKUP(VLOOKUP($G921,$H$11:$DN$1000,96,FALSE),DeclMatrix!$A$2:$F$5,VLOOKUP('Enrollment Form'!$B921,DeclMatrix!$A$8:$B$12,2,FALSE),FALSE))))","v":""},{"$f":"IF($A921=\"\",\"\",IF(VLOOKUP($G921,$H$11:$DN$1000,101,FALSE)=\"\",\"No\",IF(LEFT(VLOOKUP($G921,$H$11:$DN$1000,101,FALSE),3)=\"The\",EG921,VLOOKUP(VLOOKUP($G921,$H$11:$DN$1000,101,FALSE),DeclMatrix!$A$2:$F$5,VLOOKUP('Enrollment Form'!$B921,DeclMatrix!$A$8:$B$12,2,FALSE),FALSE))))","v":""},{"$f":"IF($A921=\"\",\"\",IF(VLOOKUP($G921,$H$11:$DN$1000,106,FALSE)=\"\",\"No\",IF(LEFT(VLOOKUP($G921,$H$11:$DN$1000,106,FALSE),3)=\"The\",EH921,VLOOKUP(VLOOKUP($G921,$H$11:$DN$1000,106,FALSE),DeclMatrix!$A$2:$F$5,VLOOKUP('Enrollment Form'!$B921,DeclMatrix!$A$8:$B$12,2,FALSE),FALSE))))","v":""},{"$f":"IF($A921=\"\",\"\",IF(VLOOKUP($G921,$H$11:$DN$1000,111,FALSE)=\"\",\"No\",IF(LEFT(VLOOKUP($G921,$H$11:$DN$1000,111,FALSE),3)=\"The\",EI921,VLOOKUP(VLOOKUP($G921,$H$11:$DN$1000,111,FALSE),DeclMatrix!$A$2:$F$5,VLOOKUP('Enrollment Form'!$B921,DeclMatrix!$A$8:$B$12,2,FALSE),FALSE))))","v":""},"",null,"","","","","","","","","","","",""]
["",{"$nulls":5},"","",{"$nulls":18},"","","","",{"$nulls":30},"","","","",{"$nulls":60},"",{"$f":"IF($A922=\"\",\"\",IF(VLOOKUP($G922,$H$11:$DN$1000,96,FALSE)=\"\",\"No\",IF(LEFT(VLOOKUP($G922,$H$11:$DN$1000,96,FALSE),3)=\"The\",EF922,VLOOKUP(VLOOKUP($G922,$H$11:$DN$1000,96,FALSE),DeclMatrix!$A$2:$F$5,VLOOKUP('Enrollment Form'!$B922,DeclMatrix!$A$8:$B$12,2,FALSE),FALSE))))","v":""},{"$f":"IF($A922=\"\",\"\",IF(VLOOKUP($G922,$H$11:$DN$1000,101,FALSE)=\"\",\"No\",IF(LEFT(VLOOKUP($G922,$H$11:$DN$1000,101,FALSE),3)=\"The\",EG922,VLOOKUP(VLOOKUP($G922,$H$11:$DN$1000,101,FALSE),DeclMatrix!$A$2:$F$5,VLOOKUP('Enrollment Form'!$B922,DeclMatrix!$A$8:$B$12,2,FALSE),FALSE))))","v":""},{"$f":"IF($A922=\"\",\"\",IF(VLOOKUP($G922,$H$11:$DN$1000,106,FALSE)=\"\",\"No\",IF(LEFT(VLOOKUP($G922,$H$11:$DN$1000,106,FALSE),3)=\"The\",EH922,VLOOKUP(VLOOKUP($G922,$H$11:$DN$1000,106,FALSE),DeclMatrix!$A$2:$F$5,VLOOKUP('Enrollment Form'!$B922,DeclMatrix!$A$8:$B$12,2,FALSE),FALSE))))","v":""},{"$f":"IF($A922=\"\",\"\",IF(VLOOKUP($G922,$H$11:$DN$1000,111,FALSE)=\"\",\"No\",IF(LEFT(VLOOKUP($G922,$H$11:$DN$1000,111,FALSE),3)=\"The\",EI922,VLOOKUP(VLOOKUP($G922,$H$11:$DN$1000,111,FALSE),DeclMatrix!$A$2:$F$5,VLOOKUP('Enrollment Form'!$B922,DeclMatrix!$A$8:$B$12,2,FALSE),FALSE))))","v":""},"",null,"","","","","","","","","","","",""]
["",{"$nulls":5},"","",{"$nulls":18},"","","","",{"$nulls":30},"","","","",{"$nulls":60},"",{"$f":"IF($A923=\"\",\"\",IF(VLOOKUP($G923,$H$11:$DN$1000,96,FALSE)=\"\",\"No\",IF(LEFT(VLOOKUP($G923,$H$11:$DN$1000,96,FALSE),3)=\"The\",EF923,VLOOKUP(VLOOKUP($G923,$H$11:$DN$1000,96,FALSE),DeclMatrix!$A$2:$F$5,VLOOKUP('Enrollment Form'!$B923,DeclMatrix!$A$8:$B$12,2,FALSE),FALSE))))","v":""},{"$f":"IF($A923=\"\",\"\",IF(VLOOKUP($G923,$H$11:$DN$1000,101,FALSE)=\"\",\"No\",IF(LEFT(VLOOKUP($G923,$H$11:$DN$1000,101,FALSE),3)=\"The\",EG923,VLOOKUP(VLOOKUP($G923,$H$11:$DN$1000,101,FALSE),DeclMatrix!$A$2:$F$5,VLOOKUP('Enrollment Form'!$B923,DeclMatrix!$A$8:$B$12,2,FALSE),FALSE))))","v":""},{"$f":"IF($A923=\"\",\"\",IF(VLOOKUP($G923,$H$11:$DN$1000,106,FALSE)=\"\",\"No\",IF(LEFT(VLOOKUP($G923,$H$11:$DN$1000,106,FALSE),3)=\"The\",EH923,VLOOKUP(VLOOKUP($G923,$H$11:$DN$1000,106,FALSE),DeclMatrix!$A$2:$F$5,VLOOKUP('Enrollment Form'!$B923,DeclMatrix!$A$8:$B$12,2,FALSE),FALSE))))","v":""},{"$f":"IF($A923=\"\",\"\",IF(VLOOKUP($G923,$H$11:$DN$1000,111,FALSE)=\"\",\"No\",IF(LEFT(VLOOKUP($G923,$H$11:$DN$1000,111,FALSE),3)=\"The\",EI923,VLOOKUP(VLOOKUP($G923,$H$11:$DN$1000,111,FALSE),DeclMatrix!$A$2:$F$5,VLOOKUP('Enrollment Form'!$B923,DeclMatrix!$A$8:$B$12,2,FALSE),FALSE))))","v":""},"",null,"","","","","","","","","","","",""]
["",{"$nulls":5},"","",{"$nulls":18},"","","","",{"$nulls":30},"","","","",{"$nulls":60},"",{"$f":"IF($A924=\"\",\"\",IF(VLOOKUP($G924,$H$11:$DN$1000,96,FALSE)=\"\",\"No\",IF(LEFT(VLOOKUP($G924,$H$11:$DN$1000,96,FALSE),3)=\"The\",EF924,VLOOKUP(VLOOKUP($G924,$H$11:$DN$1000,96,FALSE),DeclMatrix!$A$2:$F$5,VLOOKUP('Enrollment Form'!$B924,DeclMatrix!$A$8:$B$12,2,FALSE),FALSE))))","v":""},{"$f":"IF($A924=\"\",\"\",IF(VLOOKUP($G924,$H$11:$DN$1000,101,FALSE)=\"\",\"No\",IF(LEFT(VLOOKUP($G924,$H$11:$DN$1000,101,FALSE),3)=\"The\",EG924,VLOOKUP(VLOOKUP($G924,$H$11:$DN$1000,101,FALSE),DeclMatrix!$A$2:$F$5,VLOOKUP('Enrollment Form'!$B924,DeclMatrix!$A$8:$B$12,2,FALSE),FALSE))))","v":""},{"$f":"IF($A924=\"\",\"\",IF(VLOOKUP($G924,$H$11:$DN$1000,106,FALSE)=\"\",\"No\",IF(LEFT(VLOOKUP($G924,$H$11:$DN$1000,106,FALSE),3)=\"The\",EH924,VLOOKUP(VLOOKUP($G924,$H$11:$DN$1000,106,FALSE),DeclMatrix!$A$2:$F$5,VLOOKUP('Enrollment Form'!$B924,DeclMatrix!$A$8:$B$12,2,FALSE),FALSE))))","v":""},{"$f":"IF($A924=\"\",\"\",IF(VLOOKUP($G924,$H$11:$DN$1000,111,FALSE)=\"\",\"No\",IF(LEFT(VLOOKUP($G924,$H$11:$DN$1000,111,FALSE),3)=\"The\",EI924,VLOOKUP(VLOOKUP($G924,$H$11:$DN$1000,111,FALSE),DeclMatrix!$A$2:$F$5,VLOOKUP('Enrollment Form'!$B924,DeclMatrix!$A$8:$B$12,2,FALSE),FALSE))))","v":""},"",null,"","","","","","","","","","","",""]
["",{"$nulls":5},"","",{"$nulls":18},"","","","",{"$nulls":30},"","","","",{"$nulls":60},"",{"$f":"IF($A925=\"\",\"\",IF(VLOOKUP($G925,$H$11:$DN$1000,96,FALSE)=\"\",\"No\",IF(LEFT(VLOOKUP($G925,$H$11:$DN$1000,96,FALSE),3)=\"The\",EF925,VLOOKUP(VLOOKUP($G925,$H$11:$DN$1000,96,FALSE),DeclMatrix!$A$2:$F$5,VLOOKUP('Enrollment Form'!$B925,DeclMatrix!$A$8:$B$12,2,FALSE),FALSE))))","v":""},{"$f":"IF($A925=\"\",\"\",IF(VLOOKUP($G925,$H$11:$DN$1000,101,FALSE)=\"\",\"No\",IF(LEFT(VLOOKUP($G925,$H$11:$DN$1000,101,FALSE),3)=\"The\",EG925,VLOOKUP(VLOOKUP($G925,$H$11:$DN$1000,101,FALSE),DeclMatrix!$A$2:$F$5,VLOOKUP('Enrollment Form'!$B925,DeclMatrix!$A$8:$B$12,2,FALSE),FALSE))))","v":""},{"$f":"IF($A925=\"\",\"\",IF(VLOOKUP($G925,$H$11:$DN$1000,106,FALSE)=\"\",\"No\",IF(LEFT(VLOOKUP($G925,$H$11:$DN$1000,106,FALSE),3)=\"The\",EH925,VLOOKUP(VLOOKUP($G925,$H$11:$DN$1000,106,FALSE),DeclMatrix!$A$2:$F$5,VLOOKUP('Enrollment Form'!$B925,DeclMatrix!$A$8:$B$12,2,FALSE),FALSE))))","v":""},{"$f":"IF($A925=\"\",\"\",IF(VLOOKUP($G925,$H$11:$DN$1000,111,FALSE)=\"\",\"No\",IF(LEFT(VLOOKUP($G925,$H$11:$DN$1000,111,FALSE),3)=\"The\",EI925,VLOOKUP(VLOOKUP($G925,$H$11:$DN$1000,111,FALSE),DeclMatrix!$A$2:$F$5,VLOOKUP('Enrollment Form'!$B925,DeclMatrix!$A$8:$B$12,2,FALSE),FALSE))))","v":""},"",null,"","","","","","","","","","","",""]
["",{"$nulls":5},"","",{"$nulls":18},"","","","",{"$nulls":30},"","","","",{"$nulls":60},"",{"$f":"IF($A926=\"\",\"\",IF(VLOOKUP($G926,$H$11:$DN$1000,96,FALSE)=\"\",\"No\",IF(LEFT(VLOOKUP($G926,$H$11:$DN$1000,96,FALSE),3)=\"The\",EF926,VLOOKUP(VLOOKUP($G926,$H$11:$DN$1000,96,FALSE),DeclMatrix!$A$2:$F$5,VLOOKUP('Enrollment Form'!$B926,DeclMatrix!$A$8:$B$12,2,FALSE),FALSE))))","v":""},{"$f":"IF($A926=\"\",\"\",IF(VLOOKUP($G926,$H$11:$DN$1000,101,FALSE)=\"\",\"No\",IF(LEFT(VLOOKUP($G926,$H$11:$DN$1000,101,FALSE),3)=\"The\",EG926,VLOOKUP(VLOOKUP($G926,$H$11:$DN$1000,101,FALSE),DeclMatrix!$A$2:$F$5,VLOOKUP('Enrollment Form'!$B926,DeclMatrix!$A$8:$B$12,2,FALSE),FALSE))))","v":""},{"$f":"IF($A926=\"\",\"\",IF(VLOOKUP($G926,$H$11:$DN$1000,106,FALSE)=\"\",\"No\",IF(LEFT(VLOOKUP($G926,$H$11:$DN$1000,106,FALSE),3)=\"The\",EH926,VLOOKUP(VLOOKUP($G926,$H$11:$DN$1000,106,FALSE),DeclMatrix!$A$2:$F$5,VLOOKUP('Enrollment Form'!$B926,DeclMatrix!$A$8:$B$12,2,FALSE),FALSE))))","v":""},{"$f":"IF($A926=\"\",\"\",IF(VLOOKUP($G926,$H$11:$DN$1000,111,FALSE)=\"\",\"No\",IF(LEFT(VLOOKUP($G926,$H$11:$DN$1000,111,FALSE),3)=\"The\",EI926,VLOOKUP(VLOOKUP($G926,$H$11:$DN$1000,111,FALSE),DeclMatrix!$A$2:$F$5,VLOOKUP('Enrollment Form'!$B926,DeclMatrix!$A$8:$B$12,2,FALSE),FALSE))))","v":""},"",null,"","","","","","","","","","","",""]
["",{"$nulls":5},"","",{"$nulls":18},"","","","",{"$nulls":30},"","","","",{"$nulls":60},"",{"$f":"IF($A927=\"\",\"\",IF(VLOOKUP($G927,$H$11:$DN$1000,96,FALSE)=\"\",\"No\",IF(LEFT(VLOOKUP($G927,$H$11:$DN$1000,96,FALSE),3)=\"The\",EF927,VLOOKUP(VLOOKUP($G927,$H$11:$DN$1000,96,FALSE),DeclMatrix!$A$2:$F$5,VLOOKUP('Enrollment Form'!$B927,DeclMatrix!$A$8:$B$12,2,FALSE),FALSE))))","v":""},{"$f":"IF($A927=\"\",\"\",IF(VLOOKUP($G927,$H$11:$DN$1000,101,FALSE)=\"\",\"No\",IF(LEFT(VLOOKUP($G927,$H$11:$DN$1000,101,FALSE),3)=\"The\",EG927,VLOOKUP(VLOOKUP($G927,$H$11:$DN$1000,101,FALSE),DeclMatrix!$A$2:$F$5,VLOOKUP('Enrollment Form'!$B927,DeclMatrix!$A$8:$B$12,2,FALSE),FALSE))))","v":""},{"$f":"IF($A927=\"\",\"\",IF(VLOOKUP($G927,$H$11:$DN$1000,106,FALSE)=\"\",\"No\",IF(LEFT(VLOOKUP($G927,$H$11:$DN$1000,106,FALSE),3)=\"The\",EH927,VLOOKUP(VLOOKUP($G927,$H$11:$DN$1000,106,FALSE),DeclMatrix!$A$2:$F$5,VLOOKUP('Enrollment Form'!$B927,DeclMatrix!$A$8:$B$12,2,FALSE),FALSE))))","v":""},{"$f":"IF($A927=\"\",\"\",IF(VLOOKUP($G927,$H$11:$DN$1000,111,FALSE)=\"\",\"No\",IF(LEFT(VLOOKUP($G927,$H$11:$DN$1000,111,FALSE),3)=\"The\",EI927,VLOOKUP(VLOOKUP($G927,$H$11:$DN$1000,111,FALSE),DeclMatrix!$A$2:$F$5,VLOOKUP('Enrollment Form'!$B927,DeclMatrix!$A$8:$B$12,2,FALSE),FALSE))))","v":""},"",null,"","","","","","","","","","","",""]
["",{"$nulls":5},"","",{"$nulls":18},"","","","",{"$nulls":30},"","","","",{"$nulls":60},"",{"$f":"IF($A928=\"\",\"\",IF(VLOOKUP($G928,$H$11:$DN$1000,96,FALSE)=\"\",\"No\",IF(LEFT(VLOOKUP($G928,$H$11:$DN$1000,96,FALSE),3)=\"The\",EF928,VLOOKUP(VLOOKUP($G928,$H$11:$DN$1000,96,FALSE),DeclMatrix!$A$2:$F$5,VLOOKUP('Enrollment Form'!$B928,DeclMatrix!$A$8:$B$12,2,FALSE),FALSE))))","v":""},{"$f":"IF($A928=\"\",\"\",IF(VLOOKUP($G928,$H$11:$DN$1000,101,FALSE)=\"\",\"No\",IF(LEFT(VLOOKUP($G928,$H$11:$DN$1000,101,FALSE),3)=\"The\",EG928,VLOOKUP(VLOOKUP($G928,$H$11:$DN$1000,101,FALSE),DeclMatrix!$A$2:$F$5,VLOOKUP('Enrollment Form'!$B928,DeclMatrix!$A$8:$B$12,2,FALSE),FALSE))))","v":""},{"$f":"IF($A928=\"\",\"\",IF(VLOOKUP($G928,$H$11:$DN$1000,106,FALSE)=\"\",\"No\",IF(LEFT(VLOOKUP($G928,$H$11:$DN$1000,106,FALSE),3)=\"The\",EH928,VLOOKUP(VLOOKUP($G928,$H$11:$DN$1000,106,FALSE),DeclMatrix!$A$2:$F$5,VLOOKUP('Enrollment Form'!$B928,DeclMatrix!$A$8:$B$12,2,FALSE),FALSE))))","v":""},{"$f":"IF($A928=\"\",\"\",IF(VLOOKUP($G928,$H$11:$DN$1000,111,FALSE)=\"\",\"No\",IF(LEFT(VLOOKUP($G928,$H$11:$DN$1000,111,FALSE),3)=\"The\",EI928,VLOOKUP(VLOOKUP($G928,$H$11:$DN$1000,111,FALSE),DeclMatrix!$A$2:$F$5,VLOOKUP('Enrollment Form'!$B928,DeclMatrix!$A$8:$B$12,2,FALSE),FALSE))))","v":""},"",null,"","","","","","","","","","","",""]
["",{"$nulls":5},"","",{"$nulls":18},"","","","",{"$nulls":30},"","","","",{"$nulls":60},"",{"$f":"IF($A929=\"\",\"\",IF(VLOOKUP($G929,$H$11:$DN$1000,96,FALSE)=\"\",\"No\",IF(LEFT(VLOOKUP($G929,$H$11:$DN$1000,96,FALSE),3)=\"The\",EF929,VLOOKUP(VLOOKUP($G929,$H$11:$DN$1000,96,FALSE),DeclMatrix!$A$2:$F$5,VLOOKUP('Enrollment Form'!$B929,DeclMatrix!$A$8:$B$12,2,FALSE),FALSE))))","v":""},{"$f":"IF($A929=\"\",\"\",IF(VLOOKUP($G929,$H$11:$DN$1000,101,FALSE)=\"\",\"No\",IF(LEFT(VLOOKUP($G929,$H$11:$DN$1000,101,FALSE),3)=\"The\",EG929,VLOOKUP(VLOOKUP($G929,$H$11:$DN$1000,101,FALSE),DeclMatrix!$A$2:$F$5,VLOOKUP('Enrollment Form'!$B929,DeclMatrix!$A$8:$B$12,2,FALSE),FALSE))))","v":""},{"$f":"IF($A929=\"\",\"\",IF(VLOOKUP($G929,$H$11:$DN$1000,106,FALSE)=\"\",\"No\",IF(LEFT(VLOOKUP($G929,$H$11:$DN$1000,106,FALSE),3)=\"The\",EH929,VLOOKUP(VLOOKUP($G929,$H$11:$DN$1000,106,FALSE),DeclMatrix!$A$2:$F$5,VLOOKUP('Enrollment Form'!$B929,DeclMatrix!$A$8:$B$12,2,FALSE),FALSE))))","v":""},{"$f":"IF($A929=\"\",\"\",IF(VLOOKUP($G929,$H$11:$DN$1000,111,FALSE)=\"\",\"No\",IF(LEFT(VLOOKUP($G929,$H$11:$DN$1000,111,FALSE),3)=\"The\",EI929,VLOOKUP(VLOOKUP($G929,$H$11:$DN$1000,111,FALSE),DeclMatrix!$A$2:$F$5,VLOOKUP('Enrollment Form'!$B929,DeclMatrix!$A$8:$B$12,2,FALSE),FALSE))))","v":""},"",null,"","","","","","","","","","","",""]
["",{"$nulls":5},"","",{"$nulls":18},"","","","",{"$nulls":30},"","","","",{"$nulls":60},"",{"$f":"IF($A930=\"\",\"\",IF(VLOOKUP($G930,$H$11:$DN$1000,96,FALSE)=\"\",\"No\",IF(LEFT(VLOOKUP($G930,$H$11:$DN$1000,96,FALSE),3)=\"The\",EF930,VLOOKUP(VLOOKUP($G930,$H$11:$DN$1000,96,FALSE),DeclMatrix!$A$2:$F$5,VLOOKUP('Enrollment Form'!$B930,DeclMatrix!$A$8:$B$12,2,FALSE),FALSE))))","v":""},{"$f":"IF($A930=\"\",\"\",IF(VLOOKUP($G930,$H$11:$DN$1000,101,FALSE)=\"\",\"No\",IF(LEFT(VLOOKUP($G930,$H$11:$DN$1000,101,FALSE),3)=\"The\",EG930,VLOOKUP(VLOOKUP($G930,$H$11:$DN$1000,101,FALSE),DeclMatrix!$A$2:$F$5,VLOOKUP('Enrollment Form'!$B930,DeclMatrix!$A$8:$B$12,2,FALSE),FALSE))))","v":""},{"$f":"IF($A930=\"\",\"\",IF(VLOOKUP($G930,$H$11:$DN$1000,106,FALSE)=\"\",\"No\",IF(LEFT(VLOOKUP($G930,$H$11:$DN$1000,106,FALSE),3)=\"The\",EH930,VLOOKUP(VLOOKUP($G930,$H$11:$DN$1000,106,FALSE),DeclMatrix!$A$2:$F$5,VLOOKUP('Enrollment Form'!$B930,DeclMatrix!$A$8:$B$12,2,FALSE),FALSE))))","v":""},{"$f":"IF($A930=\"\",\"\",IF(VLOOKUP($G930,$H$11:$DN$1000,111,FALSE)=\"\",\"No\",IF(LEFT(VLOOKUP($G930,$H$11:$DN$1000,111,FALSE),3)=\"The\",EI930,VLOOKUP(VLOOKUP($G930,$H$11:$DN$1000,111,FALSE),DeclMatrix!$A$2:$F$5,VLOOKUP('Enrollment Form'!$B930,DeclMatrix!$A$8:$B$12,2,FALSE),FALSE))))","v":""},"",null,"","","","","","","","","","","",""]
["",{"$nulls":5},"","",{"$nulls":18},"","","","",{"$nulls":30},"","","","",{"$nulls":60},"",{"$f":"IF($A931=\"\",\"\",IF(VLOOKUP($G931,$H$11:$DN$1000,96,FALSE)=\"\",\"No\",IF(LEFT(VLOOKUP($G931,$H$11:$DN$1000,96,FALSE),3)=\"The\",EF931,VLOOKUP(VLOOKUP($G931,$H$11:$DN$1000,96,FALSE),DeclMatrix!$A$2:$F$5,VLOOKUP('Enrollment Form'!$B931,DeclMatrix!$A$8:$B$12,2,FALSE),FALSE))))","v":""},{"$f":"IF($A931=\"\",\"\",IF(VLOOKUP($G931,$H$11:$DN$1000,101,FALSE)=\"\",\"No\",IF(LEFT(VLOOKUP($G931,$H$11:$DN$1000,101,FALSE),3)=\"The\",EG931,VLOOKUP(VLOOKUP($G931,$H$11:$DN$1000,101,FALSE),DeclMatrix!$A$2:$F$5,VLOOKUP('Enrollment Form'!$B931,DeclMatrix!$A$8:$B$12,2,FALSE),FALSE))))","v":""},{"$f":"IF($A931=\"\",\"\",IF(VLOOKUP($G931,$H$11:$DN$1000,106,FALSE)=\"\",\"No\",IF(LEFT(VLOOKUP($G931,$H$11:$DN$1000,106,FALSE),3)=\"The\",EH931,VLOOKUP(VLOOKUP($G931,$H$11:$DN$1000,106,FALSE),DeclMatrix!$A$2:$F$5,VLOOKUP('Enrollment Form'!$B931,DeclMatrix!$A$8:$B$12,2,FALSE),FALSE))))","v":""},{"$f":"IF($A931=\"\",\"\",IF(VLOOKUP($G931,$H$11:$DN$1000,111,FALSE)=\"\",\"No\",IF(LEFT(VLOOKUP($G931,$H$11:$DN$1000,111,FALSE),3)=\"The\",EI931,VLOOKUP(VLOOKUP($G931,$H$11:$DN$1000,111,FALSE),DeclMatrix!$A$2:$F$5,VLOOKUP('Enrollment Form'!$B931,DeclMatrix!$A$8:$B$12,2,FALSE),FALSE))))","v":""},"",null,"","","","","","","","","","","",""]
["",{"$nulls":5},"","",{"$nulls":18},"","","","",{"$nulls":30},"","","","",{"$nulls":60},"",{"$f":"IF($A932=\"\",\"\",IF(VLOOKUP($G932,$H$11:$DN$1000,96,FALSE)=\"\",\"No\",IF(LEFT(VLOOKUP($G932,$H$11:$DN$1000,96,FALSE),3)=\"The\",EF932,VLOOKUP(VLOOKUP($G932,$H$11:$DN$1000,96,FALSE),DeclMatrix!$A$2:$F$5,VLOOKUP('Enrollment Form'!$B932,DeclMatrix!$A$8:$B$12,2,FALSE),FALSE))))","v":""},{"$f":"IF($A932=\"\",\"\",IF(VLOOKUP($G932,$H$11:$DN$1000,101,FALSE)=\"\",\"No\",IF(LEFT(VLOOKUP($G932,$H$11:$DN$1000,101,FALSE),3)=\"The\",EG932,VLOOKUP(VLOOKUP($G932,$H$11:$DN$1000,101,FALSE),DeclMatrix!$A$2:$F$5,VLOOKUP('Enrollment Form'!$B932,DeclMatrix!$A$8:$B$12,2,FALSE),FALSE))))","v":""},{"$f":"IF($A932=\"\",\"\",IF(VLOOKUP($G932,$H$11:$DN$1000,106,FALSE)=\"\",\"No\",IF(LEFT(VLOOKUP($G932,$H$11:$DN$1000,106,FALSE),3)=\"The\",EH932,VLOOKUP(VLOOKUP($G932,$H$11:$DN$1000,106,FALSE),DeclMatrix!$A$2:$F$5,VLOOKUP('Enrollment Form'!$B932,DeclMatrix!$A$8:$B$12,2,FALSE),FALSE))))","v":""},{"$f":"IF($A932=\"\",\"\",IF(VLOOKUP($G932,$H$11:$DN$1000,111,FALSE)=\"\",\"No\",IF(LEFT(VLOOKUP($G932,$H$11:$DN$1000,111,FALSE),3)=\"The\",EI932,VLOOKUP(VLOOKUP($G932,$H$11:$DN$1000,111,FALSE),DeclMatrix!$A$2:$F$5,VLOOKUP('Enrollment Form'!$B932,DeclMatrix!$A$8:$B$12,2,FALSE),FALSE))))","v":""},"",null,"","","","","","","","","","","",""]
["",{"$nulls":5},"","",{"$nulls":18},"","","","",{"$nulls":30},"","","","",{"$nulls":60},"",{"$f":"IF($A933=\"\",\"\",IF(VLOOKUP($G933,$H$11:$DN$1000,96,FALSE)=\"\",\"No\",IF(LEFT(VLOOKUP($G933,$H$11:$DN$1000,96,FALSE),3)=\"The\",EF933,VLOOKUP(VLOOKUP($G933,$H$11:$DN$1000,96,FALSE),DeclMatrix!$A$2:$F$5,VLOOKUP('Enrollment Form'!$B933,DeclMatrix!$A$8:$B$12,2,FALSE),FALSE))))","v":""},{"$f":"IF($A933=\"\",\"\",IF(VLOOKUP($G933,$H$11:$DN$1000,101,FALSE)=\"\",\"No\",IF(LEFT(VLOOKUP($G933,$H$11:$DN$1000,101,FALSE),3)=\"The\",EG933,VLOOKUP(VLOOKUP($G933,$H$11:$DN$1000,101,FALSE),DeclMatrix!$A$2:$F$5,VLOOKUP('Enrollment Form'!$B933,DeclMatrix!$A$8:$B$12,2,FALSE),FALSE))))","v":""},{"$f":"IF($A933=\"\",\"\",IF(VLOOKUP($G933,$H$11:$DN$1000,106,FALSE)=\"\",\"No\",IF(LEFT(VLOOKUP($G933,$H$11:$DN$1000,106,FALSE),3)=\"The\",EH933,VLOOKUP(VLOOKUP($G933,$H$11:$DN$1000,106,FALSE),DeclMatrix!$A$2:$F$5,VLOOKUP('Enrollment Form'!$B933,DeclMatrix!$A$8:$B$12,2,FALSE),FALSE))))","v":""},{"$f":"IF($A933=\"\",\"\",IF(VLOOKUP($G933,$H$11:$DN$1000,111,FALSE)=\"\",\"No\",IF(LEFT(VLOOKUP($G933,$H$11:$DN$1000,111,FALSE),3)=\"The\",EI933,VLOOKUP(VLOOKUP($G933,$H$11:$DN$1000,111,FALSE),DeclMatrix!$A$2:$F$5,VLOOKUP('Enrollment Form'!$B933,DeclMatrix!$A$8:$B$12,2,FALSE),FALSE))))","v":""},"",null,"","","","","","","","","","","",""]
["",{"$nulls":5},"","",{"$nulls":18},"","","","",{"$nulls":30},"","","","",{"$nulls":60},"",{"$f":"IF($A934=\"\",\"\",IF(VLOOKUP($G934,$H$11:$DN$1000,96,FALSE)=\"\",\"No\",IF(LEFT(VLOOKUP($G934,$H$11:$DN$1000,96,FALSE),3)=\"The\",EF934,VLOOKUP(VLOOKUP($G934,$H$11:$DN$1000,96,FALSE),DeclMatrix!$A$2:$F$5,VLOOKUP('Enrollment Form'!$B934,DeclMatrix!$A$8:$B$12,2,FALSE),FALSE))))","v":""},{"$f":"IF($A934=\"\",\"\",IF(VLOOKUP($G934,$H$11:$DN$1000,101,FALSE)=\"\",\"No\",IF(LEFT(VLOOKUP($G934,$H$11:$DN$1000,101,FALSE),3)=\"The\",EG934,VLOOKUP(VLOOKUP($G934,$H$11:$DN$1000,101,FALSE),DeclMatrix!$A$2:$F$5,VLOOKUP('Enrollment Form'!$B934,DeclMatrix!$A$8:$B$12,2,FALSE),FALSE))))","v":""},{"$f":"IF($A934=\"\",\"\",IF(VLOOKUP($G934,$H$11:$DN$1000,106,FALSE)=\"\",\"No\",IF(LEFT(VLOOKUP($G934,$H$11:$DN$1000,106,FALSE),3)=\"The\",EH934,VLOOKUP(VLOOKUP($G934,$H$11:$DN$1000,106,FALSE),DeclMatrix!$A$2:$F$5,VLOOKUP('Enrollment Form'!$B934,DeclMatrix!$A$8:$B$12,2,FALSE),FALSE))))","v":""},{"$f":"IF($A934=\"\",\"\",IF(VLOOKUP($G934,$H$11:$DN$1000,111,FALSE)=\"\",\"No\",IF(LEFT(VLOOKUP($G934,$H$11:$DN$1000,111,FALSE),3)=\"The\",EI934,VLOOKUP(VLOOKUP($G934,$H$11:$DN$1000,111,FALSE),DeclMatrix!$A$2:$F$5,VLOOKUP('Enrollment Form'!$B934,DeclMatrix!$A$8:$B$12,2,FALSE),FALSE))))","v":""},"",null,"","","","","","","","","","","",""]
["",{"$nulls":5},"","",{"$nulls":18},"","","","",{"$nulls":30},"","","","",{"$nulls":60},"",{"$f":"IF($A935=\"\",\"\",IF(VLOOKUP($G935,$H$11:$DN$1000,96,FALSE)=\"\",\"No\",IF(LEFT(VLOOKUP($G935,$H$11:$DN$1000,96,FALSE),3)=\"The\",EF935,VLOOKUP(VLOOKUP($G935,$H$11:$DN$1000,96,FALSE),DeclMatrix!$A$2:$F$5,VLOOKUP('Enrollment Form'!$B935,DeclMatrix!$A$8:$B$12,2,FALSE),FALSE))))","v":""},{"$f":"IF($A935=\"\",\"\",IF(VLOOKUP($G935,$H$11:$DN$1000,101,FALSE)=\"\",\"No\",IF(LEFT(VLOOKUP($G935,$H$11:$DN$1000,101,FALSE),3)=\"The\",EG935,VLOOKUP(VLOOKUP($G935,$H$11:$DN$1000,101,FALSE),DeclMatrix!$A$2:$F$5,VLOOKUP('Enrollment Form'!$B935,DeclMatrix!$A$8:$B$12,2,FALSE),FALSE))))","v":""},{"$f":"IF($A935=\"\",\"\",IF(VLOOKUP($G935,$H$11:$DN$1000,106,FALSE)=\"\",\"No\",IF(LEFT(VLOOKUP($G935,$H$11:$DN$1000,106,FALSE),3)=\"The\",EH935,VLOOKUP(VLOOKUP($G935,$H$11:$DN$1000,106,FALSE),DeclMatrix!$A$2:$F$5,VLOOKUP('Enrollment Form'!$B935,DeclMatrix!$A$8:$B$12,2,FALSE),FALSE))))","v":""},{"$f":"IF($A935=\"\",\"\",IF(VLOOKUP($G935,$H$11:$DN$1000,111,FALSE)=\"\",\"No\",IF(LEFT(VLOOKUP($G935,$H$11:$DN$1000,111,FALSE),3)=\"The\",EI935,VLOOKUP(VLOOKUP($G935,$H$11:$DN$1000,111,FALSE),DeclMatrix!$A$2:$F$5,VLOOKUP('Enrollment Form'!$B935,DeclMatrix!$A$8:$B$12,2,FALSE),FALSE))))","v":""},"",null,"","","","","","","","","","","",""]
["",{"$nulls":5},"","",{"$nulls":18},"","","","",{"$nulls":30},"","","","",{"$nulls":60},"",{"$f":"IF($A936=\"\",\"\",IF(VLOOKUP($G936,$H$11:$DN$1000,96,FALSE)=\"\",\"No\",IF(LEFT(VLOOKUP($G936,$H$11:$DN$1000,96,FALSE),3)=\"The\",EF936,VLOOKUP(VLOOKUP($G936,$H$11:$DN$1000,96,FALSE),DeclMatrix!$A$2:$F$5,VLOOKUP('Enrollment Form'!$B936,DeclMatrix!$A$8:$B$12,2,FALSE),FALSE))))","v":""},{"$f":"IF($A936=\"\",\"\",IF(VLOOKUP($G936,$H$11:$DN$1000,101,FALSE)=\"\",\"No\",IF(LEFT(VLOOKUP($G936,$H$11:$DN$1000,101,FALSE),3)=\"The\",EG936,VLOOKUP(VLOOKUP($G936,$H$11:$DN$1000,101,FALSE),DeclMatrix!$A$2:$F$5,VLOOKUP('Enrollment Form'!$B936,DeclMatrix!$A$8:$B$12,2,FALSE),FALSE))))","v":""},{"$f":"IF($A936=\"\",\"\",IF(VLOOKUP($G936,$H$11:$DN$1000,106,FALSE)=\"\",\"No\",IF(LEFT(VLOOKUP($G936,$H$11:$DN$1000,106,FALSE),3)=\"The\",EH936,VLOOKUP(VLOOKUP($G936,$H$11:$DN$1000,106,FALSE),DeclMatrix!$A$2:$F$5,VLOOKUP('Enrollment Form'!$B936,DeclMatrix!$A$8:$B$12,2,FALSE),FALSE))))","v":""},{"$f":"IF($A936=\"\",\"\",IF(VLOOKUP($G936,$H$11:$DN$1000,111,FALSE)=\"\",\"No\",IF(LEFT(VLOOKUP($G936,$H$11:$DN$1000,111,FALSE),3)=\"The\",EI936,VLOOKUP(VLOOKUP($G936,$H$11:$DN$1000,111,FALSE),DeclMatrix!$A$2:$F$5,VLOOKUP('Enrollment Form'!$B936,DeclMatrix!$A$8:$B$12,2,FALSE),FALSE))))","v":""},"",null,"","","","","","","","","","","",""]
["",{"$nulls":5},"","",{"$nulls":18},"","","","",{"$nulls":30},"","","","",{"$nulls":60},"",{"$f":"IF($A937=\"\",\"\",IF(VLOOKUP($G937,$H$11:$DN$1000,96,FALSE)=\"\",\"No\",IF(LEFT(VLOOKUP($G937,$H$11:$DN$1000,96,FALSE),3)=\"The\",EF937,VLOOKUP(VLOOKUP($G937,$H$11:$DN$1000,96,FALSE),DeclMatrix!$A$2:$F$5,VLOOKUP('Enrollment Form'!$B937,DeclMatrix!$A$8:$B$12,2,FALSE),FALSE))))","v":""},{"$f":"IF($A937=\"\",\"\",IF(VLOOKUP($G937,$H$11:$DN$1000,101,FALSE)=\"\",\"No\",IF(LEFT(VLOOKUP($G937,$H$11:$DN$1000,101,FALSE),3)=\"The\",EG937,VLOOKUP(VLOOKUP($G937,$H$11:$DN$1000,101,FALSE),DeclMatrix!$A$2:$F$5,VLOOKUP('Enrollment Form'!$B937,DeclMatrix!$A$8:$B$12,2,FALSE),FALSE))))","v":""},{"$f":"IF($A937=\"\",\"\",IF(VLOOKUP($G937,$H$11:$DN$1000,106,FALSE)=\"\",\"No\",IF(LEFT(VLOOKUP($G937,$H$11:$DN$1000,106,FALSE),3)=\"The\",EH937,VLOOKUP(VLOOKUP($G937,$H$11:$DN$1000,106,FALSE),DeclMatrix!$A$2:$F$5,VLOOKUP('Enrollment Form'!$B937,DeclMatrix!$A$8:$B$12,2,FALSE),FALSE))))","v":""},{"$f":"IF($A937=\"\",\"\",IF(VLOOKUP($G937,$H$11:$DN$1000,111,FALSE)=\"\",\"No\",IF(LEFT(VLOOKUP($G937,$H$11:$DN$1000,111,FALSE),3)=\"The\",EI937,VLOOKUP(VLOOKUP($G937,$H$11:$DN$1000,111,FALSE),DeclMatrix!$A$2:$F$5,VLOOKUP('Enrollment Form'!$B937,DeclMatrix!$A$8:$B$12,2,FALSE),FALSE))))","v":""},"",null,"","","","","","","","","","","",""]
["",{"$nulls":5},"","",{"$nulls":18},"","","","",{"$nulls":30},"","","","",{"$nulls":60},"",{"$f":"IF($A938=\"\",\"\",IF(VLOOKUP($G938,$H$11:$DN$1000,96,FALSE)=\"\",\"No\",IF(LEFT(VLOOKUP($G938,$H$11:$DN$1000,96,FALSE),3)=\"The\",EF938,VLOOKUP(VLOOKUP($G938,$H$11:$DN$1000,96,FALSE),DeclMatrix!$A$2:$F$5,VLOOKUP('Enrollment Form'!$B938,DeclMatrix!$A$8:$B$12,2,FALSE),FALSE))))","v":""},{"$f":"IF($A938=\"\",\"\",IF(VLOOKUP($G938,$H$11:$DN$1000,101,FALSE)=\"\",\"No\",IF(LEFT(VLOOKUP($G938,$H$11:$DN$1000,101,FALSE),3)=\"The\",EG938,VLOOKUP(VLOOKUP($G938,$H$11:$DN$1000,101,FALSE),DeclMatrix!$A$2:$F$5,VLOOKUP('Enrollment Form'!$B938,DeclMatrix!$A$8:$B$12,2,FALSE),FALSE))))","v":""},{"$f":"IF($A938=\"\",\"\",IF(VLOOKUP($G938,$H$11:$DN$1000,106,FALSE)=\"\",\"No\",IF(LEFT(VLOOKUP($G938,$H$11:$DN$1000,106,FALSE),3)=\"The\",EH938,VLOOKUP(VLOOKUP($G938,$H$11:$DN$1000,106,FALSE),DeclMatrix!$A$2:$F$5,VLOOKUP('Enrollment Form'!$B938,DeclMatrix!$A$8:$B$12,2,FALSE),FALSE))))","v":""},{"$f":"IF($A938=\"\",\"\",IF(VLOOKUP($G938,$H$11:$DN$1000,111,FALSE)=\"\",\"No\",IF(LEFT(VLOOKUP($G938,$H$11:$DN$1000,111,FALSE),3)=\"The\",EI938,VLOOKUP(VLOOKUP($G938,$H$11:$DN$1000,111,FALSE),DeclMatrix!$A$2:$F$5,VLOOKUP('Enrollment Form'!$B938,DeclMatrix!$A$8:$B$12,2,FALSE),FALSE))))","v":""},"",null,"","","","","","","","","","","",""]
["",{"$nulls":5},"","",{"$nulls":18},"","","","",{"$nulls":30},"","","","",{"$nulls":60},"",{"$f":"IF($A939=\"\",\"\",IF(VLOOKUP($G939,$H$11:$DN$1000,96,FALSE)=\"\",\"No\",IF(LEFT(VLOOKUP($G939,$H$11:$DN$1000,96,FALSE),3)=\"The\",EF939,VLOOKUP(VLOOKUP($G939,$H$11:$DN$1000,96,FALSE),DeclMatrix!$A$2:$F$5,VLOOKUP('Enrollment Form'!$B939,DeclMatrix!$A$8:$B$12,2,FALSE),FALSE))))","v":""},{"$f":"IF($A939=\"\",\"\",IF(VLOOKUP($G939,$H$11:$DN$1000,101,FALSE)=\"\",\"No\",IF(LEFT(VLOOKUP($G939,$H$11:$DN$1000,101,FALSE),3)=\"The\",EG939,VLOOKUP(VLOOKUP($G939,$H$11:$DN$1000,101,FALSE),DeclMatrix!$A$2:$F$5,VLOOKUP('Enrollment Form'!$B939,DeclMatrix!$A$8:$B$12,2,FALSE),FALSE))))","v":""},{"$f":"IF($A939=\"\",\"\",IF(VLOOKUP($G939,$H$11:$DN$1000,106,FALSE)=\"\",\"No\",IF(LEFT(VLOOKUP($G939,$H$11:$DN$1000,106,FALSE),3)=\"The\",EH939,VLOOKUP(VLOOKUP($G939,$H$11:$DN$1000,106,FALSE),DeclMatrix!$A$2:$F$5,VLOOKUP('Enrollment Form'!$B939,DeclMatrix!$A$8:$B$12,2,FALSE),FALSE))))","v":""},{"$f":"IF($A939=\"\",\"\",IF(VLOOKUP($G939,$H$11:$DN$1000,111,FALSE)=\"\",\"No\",IF(LEFT(VLOOKUP($G939,$H$11:$DN$1000,111,FALSE),3)=\"The\",EI939,VLOOKUP(VLOOKUP($G939,$H$11:$DN$1000,111,FALSE),DeclMatrix!$A$2:$F$5,VLOOKUP('Enrollment Form'!$B939,DeclMatrix!$A$8:$B$12,2,FALSE),FALSE))))","v":""},"",null,"","","","","","","","","","","",""]
["",{"$nulls":5},"","",{"$nulls":18},"","","","",{"$nulls":30},"","","","",{"$nulls":60},"",{"$f":"IF($A940=\"\",\"\",IF(VLOOKUP($G940,$H$11:$DN$1000,96,FALSE)=\"\",\"No\",IF(LEFT(VLOOKUP($G940,$H$11:$DN$1000,96,FALSE),3)=\"The\",EF940,VLOOKUP(VLOOKUP($G940,$H$11:$DN$1000,96,FALSE),DeclMatrix!$A$2:$F$5,VLOOKUP('Enrollment Form'!$B940,DeclMatrix!$A$8:$B$12,2,FALSE),FALSE))))","v":""},{"$f":"IF($A940=\"\",\"\",IF(VLOOKUP($G940,$H$11:$DN$1000,101,FALSE)=\"\",\"No\",IF(LEFT(VLOOKUP($G940,$H$11:$DN$1000,101,FALSE),3)=\"The\",EG940,VLOOKUP(VLOOKUP($G940,$H$11:$DN$1000,101,FALSE),DeclMatrix!$A$2:$F$5,VLOOKUP('Enrollment Form'!$B940,DeclMatrix!$A$8:$B$12,2,FALSE),FALSE))))","v":""},{"$f":"IF($A940=\"\",\"\",IF(VLOOKUP($G940,$H$11:$DN$1000,106,FALSE)=\"\",\"No\",IF(LEFT(VLOOKUP($G940,$H$11:$DN$1000,106,FALSE),3)=\"The\",EH940,VLOOKUP(VLOOKUP($G940,$H$11:$DN$1000,106,FALSE),DeclMatrix!$A$2:$F$5,VLOOKUP('Enrollment Form'!$B940,DeclMatrix!$A$8:$B$12,2,FALSE),FALSE))))","v":""},{"$f":"IF($A940=\"\",\"\",IF(VLOOKUP($G940,$H$11:$DN$1000,111,FALSE)=\"\",\"No\",IF(LEFT(VLOOKUP($G940,$H$11:$DN$1000,111,FALSE),3)=\"The\",EI940,VLOOKUP(VLOOKUP($G940,$H$11:$DN$1000,111,FALSE),DeclMatrix!$A$2:$F$5,VLOOKUP('Enrollment Form'!$B940,DeclMatrix!$A$8:$B$12,2,FALSE),FALSE))))","v":""},"",null,"","","","","","","","","","","",""]
["",{"$nulls":5},"","",{"$nulls":18},"","","","",{"$nulls":30},"","","","",{"$nulls":60},"",{"$f":"IF($A941=\"\",\"\",IF(VLOOKUP($G941,$H$11:$DN$1000,96,FALSE)=\"\",\"No\",IF(LEFT(VLOOKUP($G941,$H$11:$DN$1000,96,FALSE),3)=\"The\",EF941,VLOOKUP(VLOOKUP($G941,$H$11:$DN$1000,96,FALSE),DeclMatrix!$A$2:$F$5,VLOOKUP('Enrollment Form'!$B941,DeclMatrix!$A$8:$B$12,2,FALSE),FALSE))))","v":""},{"$f":"IF($A941=\"\",\"\",IF(VLOOKUP($G941,$H$11:$DN$1000,101,FALSE)=\"\",\"No\",IF(LEFT(VLOOKUP($G941,$H$11:$DN$1000,101,FALSE),3)=\"The\",EG941,VLOOKUP(VLOOKUP($G941,$H$11:$DN$1000,101,FALSE),DeclMatrix!$A$2:$F$5,VLOOKUP('Enrollment Form'!$B941,DeclMatrix!$A$8:$B$12,2,FALSE),FALSE))))","v":""},{"$f":"IF($A941=\"\",\"\",IF(VLOOKUP($G941,$H$11:$DN$1000,106,FALSE)=\"\",\"No\",IF(LEFT(VLOOKUP($G941,$H$11:$DN$1000,106,FALSE),3)=\"The\",EH941,VLOOKUP(VLOOKUP($G941,$H$11:$DN$1000,106,FALSE),DeclMatrix!$A$2:$F$5,VLOOKUP('Enrollment Form'!$B941,DeclMatrix!$A$8:$B$12,2,FALSE),FALSE))))","v":""},{"$f":"IF($A941=\"\",\"\",IF(VLOOKUP($G941,$H$11:$DN$1000,111,FALSE)=\"\",\"No\",IF(LEFT(VLOOKUP($G941,$H$11:$DN$1000,111,FALSE),3)=\"The\",EI941,VLOOKUP(VLOOKUP($G941,$H$11:$DN$1000,111,FALSE),DeclMatrix!$A$2:$F$5,VLOOKUP('Enrollment Form'!$B941,DeclMatrix!$A$8:$B$12,2,FALSE),FALSE))))","v":""},"",null,"","","","","","","","","","","",""]
["",{"$nulls":5},"","",{"$nulls":18},"","","","",{"$nulls":30},"","","","",{"$nulls":60},"",{"$f":"IF($A942=\"\",\"\",IF(VLOOKUP($G942,$H$11:$DN$1000,96,FALSE)=\"\",\"No\",IF(LEFT(VLOOKUP($G942,$H$11:$DN$1000,96,FALSE),3)=\"The\",EF942,VLOOKUP(VLOOKUP($G942,$H$11:$DN$1000,96,FALSE),DeclMatrix!$A$2:$F$5,VLOOKUP('Enrollment Form'!$B942,DeclMatrix!$A$8:$B$12,2,FALSE),FALSE))))","v":""},{"$f":"IF($A942=\"\",\"\",IF(VLOOKUP($G942,$H$11:$DN$1000,101,FALSE)=\"\",\"No\",IF(LEFT(VLOOKUP($G942,$H$11:$DN$1000,101,FALSE),3)=\"The\",EG942,VLOOKUP(VLOOKUP($G942,$H$11:$DN$1000,101,FALSE),DeclMatrix!$A$2:$F$5,VLOOKUP('Enrollment Form'!$B942,DeclMatrix!$A$8:$B$12,2,FALSE),FALSE))))","v":""},{"$f":"IF($A942=\"\",\"\",IF(VLOOKUP($G942,$H$11:$DN$1000,106,FALSE)=\"\",\"No\",IF(LEFT(VLOOKUP($G942,$H$11:$DN$1000,106,FALSE),3)=\"The\",EH942,VLOOKUP(VLOOKUP($G942,$H$11:$DN$1000,106,FALSE),DeclMatrix!$A$2:$F$5,VLOOKUP('Enrollment Form'!$B942,DeclMatrix!$A$8:$B$12,2,FALSE),FALSE))))","v":""},{"$f":"IF($A942=\"\",\"\",IF(VLOOKUP($G942,$H$11:$DN$1000,111,FALSE)=\"\",\"No\",IF(LEFT(VLOOKUP($G942,$H$11:$DN$1000,111,FALSE),3)=\"The\",EI942,VLOOKUP(VLOOKUP($G942,$H$11:$DN$1000,111,FALSE),DeclMatrix!$A$2:$F$5,VLOOKUP('Enrollment Form'!$B942,DeclMatrix!$A$8:$B$12,2,FALSE),FALSE))))","v":""},"",null,"","","","","","","","","","","",""]
["",{"$nulls":5},"","",{"$nulls":18},"","","","",{"$nulls":30},"","","","",{"$nulls":60},"",{"$f":"IF($A943=\"\",\"\",IF(VLOOKUP($G943,$H$11:$DN$1000,96,FALSE)=\"\",\"No\",IF(LEFT(VLOOKUP($G943,$H$11:$DN$1000,96,FALSE),3)=\"The\",EF943,VLOOKUP(VLOOKUP($G943,$H$11:$DN$1000,96,FALSE),DeclMatrix!$A$2:$F$5,VLOOKUP('Enrollment Form'!$B943,DeclMatrix!$A$8:$B$12,2,FALSE),FALSE))))","v":""},{"$f":"IF($A943=\"\",\"\",IF(VLOOKUP($G943,$H$11:$DN$1000,101,FALSE)=\"\",\"No\",IF(LEFT(VLOOKUP($G943,$H$11:$DN$1000,101,FALSE),3)=\"The\",EG943,VLOOKUP(VLOOKUP($G943,$H$11:$DN$1000,101,FALSE),DeclMatrix!$A$2:$F$5,VLOOKUP('Enrollment Form'!$B943,DeclMatrix!$A$8:$B$12,2,FALSE),FALSE))))","v":""},{"$f":"IF($A943=\"\",\"\",IF(VLOOKUP($G943,$H$11:$DN$1000,106,FALSE)=\"\",\"No\",IF(LEFT(VLOOKUP($G943,$H$11:$DN$1000,106,FALSE),3)=\"The\",EH943,VLOOKUP(VLOOKUP($G943,$H$11:$DN$1000,106,FALSE),DeclMatrix!$A$2:$F$5,VLOOKUP('Enrollment Form'!$B943,DeclMatrix!$A$8:$B$12,2,FALSE),FALSE))))","v":""},{"$f":"IF($A943=\"\",\"\",IF(VLOOKUP($G943,$H$11:$DN$1000,111,FALSE)=\"\",\"No\",IF(LEFT(VLOOKUP($G943,$H$11:$DN$1000,111,FALSE),3)=\"The\",EI943,VLOOKUP(VLOOKUP($G943,$H$11:$DN$1000,111,FALSE),DeclMatrix!$A$2:$F$5,VLOOKUP('Enrollment Form'!$B943,DeclMatrix!$A$8:$B$12,2,FALSE),FALSE))))","v":""},"",null,"","","","","","","","","","","",""]
["",{"$nulls":5},"","",{"$nulls":18},"","","","",{"$nulls":30},"","","","",{"$nulls":60},"",{"$f":"IF($A944=\"\",\"\",IF(VLOOKUP($G944,$H$11:$DN$1000,96,FALSE)=\"\",\"No\",IF(LEFT(VLOOKUP($G944,$H$11:$DN$1000,96,FALSE),3)=\"The\",EF944,VLOOKUP(VLOOKUP($G944,$H$11:$DN$1000,96,FALSE),DeclMatrix!$A$2:$F$5,VLOOKUP('Enrollment Form'!$B944,DeclMatrix!$A$8:$B$12,2,FALSE),FALSE))))","v":""},{"$f":"IF($A944=\"\",\"\",IF(VLOOKUP($G944,$H$11:$DN$1000,101,FALSE)=\"\",\"No\",IF(LEFT(VLOOKUP($G944,$H$11:$DN$1000,101,FALSE),3)=\"The\",EG944,VLOOKUP(VLOOKUP($G944,$H$11:$DN$1000,101,FALSE),DeclMatrix!$A$2:$F$5,VLOOKUP('Enrollment Form'!$B944,DeclMatrix!$A$8:$B$12,2,FALSE),FALSE))))","v":""},{"$f":"IF($A944=\"\",\"\",IF(VLOOKUP($G944,$H$11:$DN$1000,106,FALSE)=\"\",\"No\",IF(LEFT(VLOOKUP($G944,$H$11:$DN$1000,106,FALSE),3)=\"The\",EH944,VLOOKUP(VLOOKUP($G944,$H$11:$DN$1000,106,FALSE),DeclMatrix!$A$2:$F$5,VLOOKUP('Enrollment Form'!$B944,DeclMatrix!$A$8:$B$12,2,FALSE),FALSE))))","v":""},{"$f":"IF($A944=\"\",\"\",IF(VLOOKUP($G944,$H$11:$DN$1000,111,FALSE)=\"\",\"No\",IF(LEFT(VLOOKUP($G944,$H$11:$DN$1000,111,FALSE),3)=\"The\",EI944,VLOOKUP(VLOOKUP($G944,$H$11:$DN$1000,111,FALSE),DeclMatrix!$A$2:$F$5,VLOOKUP('Enrollment Form'!$B944,DeclMatrix!$A$8:$B$12,2,FALSE),FALSE))))","v":""},"",null,"","","","","","","","","","","",""]
["",{"$nulls":5},"","",{"$nulls":18},"","","","",{"$nulls":30},"","","","",{"$nulls":60},"",{"$f":"IF($A945=\"\",\"\",IF(VLOOKUP($G945,$H$11:$DN$1000,96,FALSE)=\"\",\"No\",IF(LEFT(VLOOKUP($G945,$H$11:$DN$1000,96,FALSE),3)=\"The\",EF945,VLOOKUP(VLOOKUP($G945,$H$11:$DN$1000,96,FALSE),DeclMatrix!$A$2:$F$5,VLOOKUP('Enrollment Form'!$B945,DeclMatrix!$A$8:$B$12,2,FALSE),FALSE))))","v":""},{"$f":"IF($A945=\"\",\"\",IF(VLOOKUP($G945,$H$11:$DN$1000,101,FALSE)=\"\",\"No\",IF(LEFT(VLOOKUP($G945,$H$11:$DN$1000,101,FALSE),3)=\"The\",EG945,VLOOKUP(VLOOKUP($G945,$H$11:$DN$1000,101,FALSE),DeclMatrix!$A$2:$F$5,VLOOKUP('Enrollment Form'!$B945,DeclMatrix!$A$8:$B$12,2,FALSE),FALSE))))","v":""},{"$f":"IF($A945=\"\",\"\",IF(VLOOKUP($G945,$H$11:$DN$1000,106,FALSE)=\"\",\"No\",IF(LEFT(VLOOKUP($G945,$H$11:$DN$1000,106,FALSE),3)=\"The\",EH945,VLOOKUP(VLOOKUP($G945,$H$11:$DN$1000,106,FALSE),DeclMatrix!$A$2:$F$5,VLOOKUP('Enrollment Form'!$B945,DeclMatrix!$A$8:$B$12,2,FALSE),FALSE))))","v":""},{"$f":"IF($A945=\"\",\"\",IF(VLOOKUP($G945,$H$11:$DN$1000,111,FALSE)=\"\",\"No\",IF(LEFT(VLOOKUP($G945,$H$11:$DN$1000,111,FALSE),3)=\"The\",EI945,VLOOKUP(VLOOKUP($G945,$H$11:$DN$1000,111,FALSE),DeclMatrix!$A$2:$F$5,VLOOKUP('Enrollment Form'!$B945,DeclMatrix!$A$8:$B$12,2,FALSE),FALSE))))","v":""},"",null,"","","","","","","","","","","",""]
["",{"$nulls":5},"","",{"$nulls":18},"","","","",{"$nulls":30},"","","","",{"$nulls":60},"",{"$f":"IF($A946=\"\",\"\",IF(VLOOKUP($G946,$H$11:$DN$1000,96,FALSE)=\"\",\"No\",IF(LEFT(VLOOKUP($G946,$H$11:$DN$1000,96,FALSE),3)=\"The\",EF946,VLOOKUP(VLOOKUP($G946,$H$11:$DN$1000,96,FALSE),DeclMatrix!$A$2:$F$5,VLOOKUP('Enrollment Form'!$B946,DeclMatrix!$A$8:$B$12,2,FALSE),FALSE))))","v":""},{"$f":"IF($A946=\"\",\"\",IF(VLOOKUP($G946,$H$11:$DN$1000,101,FALSE)=\"\",\"No\",IF(LEFT(VLOOKUP($G946,$H$11:$DN$1000,101,FALSE),3)=\"The\",EG946,VLOOKUP(VLOOKUP($G946,$H$11:$DN$1000,101,FALSE),DeclMatrix!$A$2:$F$5,VLOOKUP('Enrollment Form'!$B946,DeclMatrix!$A$8:$B$12,2,FALSE),FALSE))))","v":""},{"$f":"IF($A946=\"\",\"\",IF(VLOOKUP($G946,$H$11:$DN$1000,106,FALSE)=\"\",\"No\",IF(LEFT(VLOOKUP($G946,$H$11:$DN$1000,106,FALSE),3)=\"The\",EH946,VLOOKUP(VLOOKUP($G946,$H$11:$DN$1000,106,FALSE),DeclMatrix!$A$2:$F$5,VLOOKUP('Enrollment Form'!$B946,DeclMatrix!$A$8:$B$12,2,FALSE),FALSE))))","v":""},{"$f":"IF($A946=\"\",\"\",IF(VLOOKUP($G946,$H$11:$DN$1000,111,FALSE)=\"\",\"No\",IF(LEFT(VLOOKUP($G946,$H$11:$DN$1000,111,FALSE),3)=\"The\",EI946,VLOOKUP(VLOOKUP($G946,$H$11:$DN$1000,111,FALSE),DeclMatrix!$A$2:$F$5,VLOOKUP('Enrollment Form'!$B946,DeclMatrix!$A$8:$B$12,2,FALSE),FALSE))))","v":""},"",null,"","","","","","","","","","","",""]
["",{"$nulls":5},"","",{"$nulls":18},"","","","",{"$nulls":30},"","","","",{"$nulls":60},"",{"$f":"IF($A947=\"\",\"\",IF(VLOOKUP($G947,$H$11:$DN$1000,96,FALSE)=\"\",\"No\",IF(LEFT(VLOOKUP($G947,$H$11:$DN$1000,96,FALSE),3)=\"The\",EF947,VLOOKUP(VLOOKUP($G947,$H$11:$DN$1000,96,FALSE),DeclMatrix!$A$2:$F$5,VLOOKUP('Enrollment Form'!$B947,DeclMatrix!$A$8:$B$12,2,FALSE),FALSE))))","v":""},{"$f":"IF($A947=\"\",\"\",IF(VLOOKUP($G947,$H$11:$DN$1000,101,FALSE)=\"\",\"No\",IF(LEFT(VLOOKUP($G947,$H$11:$DN$1000,101,FALSE),3)=\"The\",EG947,VLOOKUP(VLOOKUP($G947,$H$11:$DN$1000,101,FALSE),DeclMatrix!$A$2:$F$5,VLOOKUP('Enrollment Form'!$B947,DeclMatrix!$A$8:$B$12,2,FALSE),FALSE))))","v":""},{"$f":"IF($A947=\"\",\"\",IF(VLOOKUP($G947,$H$11:$DN$1000,106,FALSE)=\"\",\"No\",IF(LEFT(VLOOKUP($G947,$H$11:$DN$1000,106,FALSE),3)=\"The\",EH947,VLOOKUP(VLOOKUP($G947,$H$11:$DN$1000,106,FALSE),DeclMatrix!$A$2:$F$5,VLOOKUP('Enrollment Form'!$B947,DeclMatrix!$A$8:$B$12,2,FALSE),FALSE))))","v":""},{"$f":"IF($A947=\"\",\"\",IF(VLOOKUP($G947,$H$11:$DN$1000,111,FALSE)=\"\",\"No\",IF(LEFT(VLOOKUP($G947,$H$11:$DN$1000,111,FALSE),3)=\"The\",EI947,VLOOKUP(VLOOKUP($G947,$H$11:$DN$1000,111,FALSE),DeclMatrix!$A$2:$F$5,VLOOKUP('Enrollment Form'!$B947,DeclMatrix!$A$8:$B$12,2,FALSE),FALSE))))","v":""},"",null,"","","","","","","","","","","",""]
["",{"$nulls":5},"","",{"$nulls":18},"","","","",{"$nulls":30},"","","","",{"$nulls":60},"",{"$f":"IF($A948=\"\",\"\",IF(VLOOKUP($G948,$H$11:$DN$1000,96,FALSE)=\"\",\"No\",IF(LEFT(VLOOKUP($G948,$H$11:$DN$1000,96,FALSE),3)=\"The\",EF948,VLOOKUP(VLOOKUP($G948,$H$11:$DN$1000,96,FALSE),DeclMatrix!$A$2:$F$5,VLOOKUP('Enrollment Form'!$B948,DeclMatrix!$A$8:$B$12,2,FALSE),FALSE))))","v":""},{"$f":"IF($A948=\"\",\"\",IF(VLOOKUP($G948,$H$11:$DN$1000,101,FALSE)=\"\",\"No\",IF(LEFT(VLOOKUP($G948,$H$11:$DN$1000,101,FALSE),3)=\"The\",EG948,VLOOKUP(VLOOKUP($G948,$H$11:$DN$1000,101,FALSE),DeclMatrix!$A$2:$F$5,VLOOKUP('Enrollment Form'!$B948,DeclMatrix!$A$8:$B$12,2,FALSE),FALSE))))","v":""},{"$f":"IF($A948=\"\",\"\",IF(VLOOKUP($G948,$H$11:$DN$1000,106,FALSE)=\"\",\"No\",IF(LEFT(VLOOKUP($G948,$H$11:$DN$1000,106,FALSE),3)=\"The\",EH948,VLOOKUP(VLOOKUP($G948,$H$11:$DN$1000,106,FALSE),DeclMatrix!$A$2:$F$5,VLOOKUP('Enrollment Form'!$B948,DeclMatrix!$A$8:$B$12,2,FALSE),FALSE))))","v":""},{"$f":"IF($A948=\"\",\"\",IF(VLOOKUP($G948,$H$11:$DN$1000,111,FALSE)=\"\",\"No\",IF(LEFT(VLOOKUP($G948,$H$11:$DN$1000,111,FALSE),3)=\"The\",EI948,VLOOKUP(VLOOKUP($G948,$H$11:$DN$1000,111,FALSE),DeclMatrix!$A$2:$F$5,VLOOKUP('Enrollment Form'!$B948,DeclMatrix!$A$8:$B$12,2,FALSE),FALSE))))","v":""},"",null,"","","","","","","","","","","",""]
["",{"$nulls":5},"","",{"$nulls":18},"","","","",{"$nulls":30},"","","","",{"$nulls":60},"",{"$f":"IF($A949=\"\",\"\",IF(VLOOKUP($G949,$H$11:$DN$1000,96,FALSE)=\"\",\"No\",IF(LEFT(VLOOKUP($G949,$H$11:$DN$1000,96,FALSE),3)=\"The\",EF949,VLOOKUP(VLOOKUP($G949,$H$11:$DN$1000,96,FALSE),DeclMatrix!$A$2:$F$5,VLOOKUP('Enrollment Form'!$B949,DeclMatrix!$A$8:$B$12,2,FALSE),FALSE))))","v":""},{"$f":"IF($A949=\"\",\"\",IF(VLOOKUP($G949,$H$11:$DN$1000,101,FALSE)=\"\",\"No\",IF(LEFT(VLOOKUP($G949,$H$11:$DN$1000,101,FALSE),3)=\"The\",EG949,VLOOKUP(VLOOKUP($G949,$H$11:$DN$1000,101,FALSE),DeclMatrix!$A$2:$F$5,VLOOKUP('Enrollment Form'!$B949,DeclMatrix!$A$8:$B$12,2,FALSE),FALSE))))","v":""},{"$f":"IF($A949=\"\",\"\",IF(VLOOKUP($G949,$H$11:$DN$1000,106,FALSE)=\"\",\"No\",IF(LEFT(VLOOKUP($G949,$H$11:$DN$1000,106,FALSE),3)=\"The\",EH949,VLOOKUP(VLOOKUP($G949,$H$11:$DN$1000,106,FALSE),DeclMatrix!$A$2:$F$5,VLOOKUP('Enrollment Form'!$B949,DeclMatrix!$A$8:$B$12,2,FALSE),FALSE))))","v":""},{"$f":"IF($A949=\"\",\"\",IF(VLOOKUP($G949,$H$11:$DN$1000,111,FALSE)=\"\",\"No\",IF(LEFT(VLOOKUP($G949,$H$11:$DN$1000,111,FALSE),3)=\"The\",EI949,VLOOKUP(VLOOKUP($G949,$H$11:$DN$1000,111,FALSE),DeclMatrix!$A$2:$F$5,VLOOKUP('Enrollment Form'!$B949,DeclMatrix!$A$8:$B$12,2,FALSE),FALSE))))","v":""},"",null,"","","","","","","","","","","",""]
["",{"$nulls":5},"","",{"$nulls":18},"","","","",{"$nulls":30},"","","","",{"$nulls":60},"",{"$f":"IF($A950=\"\",\"\",IF(VLOOKUP($G950,$H$11:$DN$1000,96,FALSE)=\"\",\"No\",IF(LEFT(VLOOKUP($G950,$H$11:$DN$1000,96,FALSE),3)=\"The\",EF950,VLOOKUP(VLOOKUP($G950,$H$11:$DN$1000,96,FALSE),DeclMatrix!$A$2:$F$5,VLOOKUP('Enrollment Form'!$B950,DeclMatrix!$A$8:$B$12,2,FALSE),FALSE))))","v":""},{"$f":"IF($A950=\"\",\"\",IF(VLOOKUP($G950,$H$11:$DN$1000,101,FALSE)=\"\",\"No\",IF(LEFT(VLOOKUP($G950,$H$11:$DN$1000,101,FALSE),3)=\"The\",EG950,VLOOKUP(VLOOKUP($G950,$H$11:$DN$1000,101,FALSE),DeclMatrix!$A$2:$F$5,VLOOKUP('Enrollment Form'!$B950,DeclMatrix!$A$8:$B$12,2,FALSE),FALSE))))","v":""},{"$f":"IF($A950=\"\",\"\",IF(VLOOKUP($G950,$H$11:$DN$1000,106,FALSE)=\"\",\"No\",IF(LEFT(VLOOKUP($G950,$H$11:$DN$1000,106,FALSE),3)=\"The\",EH950,VLOOKUP(VLOOKUP($G950,$H$11:$DN$1000,106,FALSE),DeclMatrix!$A$2:$F$5,VLOOKUP('Enrollment Form'!$B950,DeclMatrix!$A$8:$B$12,2,FALSE),FALSE))))","v":""},{"$f":"IF($A950=\"\",\"\",IF(VLOOKUP($G950,$H$11:$DN$1000,111,FALSE)=\"\",\"No\",IF(LEFT(VLOOKUP($G950,$H$11:$DN$1000,111,FALSE),3)=\"The\",EI950,VLOOKUP(VLOOKUP($G950,$H$11:$DN$1000,111,FALSE),DeclMatrix!$A$2:$F$5,VLOOKUP('Enrollment Form'!$B950,DeclMatrix!$A$8:$B$12,2,FALSE),FALSE))))","v":""},"",null,"","","","","","","","","","","",""]
["",{"$nulls":5},"","",{"$nulls":18},"","","","",{"$nulls":30},"","","","",{"$nulls":60},"",{"$f":"IF($A951=\"\",\"\",IF(VLOOKUP($G951,$H$11:$DN$1000,96,FALSE)=\"\",\"No\",IF(LEFT(VLOOKUP($G951,$H$11:$DN$1000,96,FALSE),3)=\"The\",EF951,VLOOKUP(VLOOKUP($G951,$H$11:$DN$1000,96,FALSE),DeclMatrix!$A$2:$F$5,VLOOKUP('Enrollment Form'!$B951,DeclMatrix!$A$8:$B$12,2,FALSE),FALSE))))","v":""},{"$f":"IF($A951=\"\",\"\",IF(VLOOKUP($G951,$H$11:$DN$1000,101,FALSE)=\"\",\"No\",IF(LEFT(VLOOKUP($G951,$H$11:$DN$1000,101,FALSE),3)=\"The\",EG951,VLOOKUP(VLOOKUP($G951,$H$11:$DN$1000,101,FALSE),DeclMatrix!$A$2:$F$5,VLOOKUP('Enrollment Form'!$B951,DeclMatrix!$A$8:$B$12,2,FALSE),FALSE))))","v":""},{"$f":"IF($A951=\"\",\"\",IF(VLOOKUP($G951,$H$11:$DN$1000,106,FALSE)=\"\",\"No\",IF(LEFT(VLOOKUP($G951,$H$11:$DN$1000,106,FALSE),3)=\"The\",EH951,VLOOKUP(VLOOKUP($G951,$H$11:$DN$1000,106,FALSE),DeclMatrix!$A$2:$F$5,VLOOKUP('Enrollment Form'!$B951,DeclMatrix!$A$8:$B$12,2,FALSE),FALSE))))","v":""},{"$f":"IF($A951=\"\",\"\",IF(VLOOKUP($G951,$H$11:$DN$1000,111,FALSE)=\"\",\"No\",IF(LEFT(VLOOKUP($G951,$H$11:$DN$1000,111,FALSE),3)=\"The\",EI951,VLOOKUP(VLOOKUP($G951,$H$11:$DN$1000,111,FALSE),DeclMatrix!$A$2:$F$5,VLOOKUP('Enrollment Form'!$B951,DeclMatrix!$A$8:$B$12,2,FALSE),FALSE))))","v":""},"",null,"","","","","","","","","","","",""]
["",{"$nulls":5},"","",{"$nulls":18},"","","","",{"$nulls":30},"","","","",{"$nulls":60},"",{"$f":"IF($A952=\"\",\"\",IF(VLOOKUP($G952,$H$11:$DN$1000,96,FALSE)=\"\",\"No\",IF(LEFT(VLOOKUP($G952,$H$11:$DN$1000,96,FALSE),3)=\"The\",EF952,VLOOKUP(VLOOKUP($G952,$H$11:$DN$1000,96,FALSE),DeclMatrix!$A$2:$F$5,VLOOKUP('Enrollment Form'!$B952,DeclMatrix!$A$8:$B$12,2,FALSE),FALSE))))","v":""},{"$f":"IF($A952=\"\",\"\",IF(VLOOKUP($G952,$H$11:$DN$1000,101,FALSE)=\"\",\"No\",IF(LEFT(VLOOKUP($G952,$H$11:$DN$1000,101,FALSE),3)=\"The\",EG952,VLOOKUP(VLOOKUP($G952,$H$11:$DN$1000,101,FALSE),DeclMatrix!$A$2:$F$5,VLOOKUP('Enrollment Form'!$B952,DeclMatrix!$A$8:$B$12,2,FALSE),FALSE))))","v":""},{"$f":"IF($A952=\"\",\"\",IF(VLOOKUP($G952,$H$11:$DN$1000,106,FALSE)=\"\",\"No\",IF(LEFT(VLOOKUP($G952,$H$11:$DN$1000,106,FALSE),3)=\"The\",EH952,VLOOKUP(VLOOKUP($G952,$H$11:$DN$1000,106,FALSE),DeclMatrix!$A$2:$F$5,VLOOKUP('Enrollment Form'!$B952,DeclMatrix!$A$8:$B$12,2,FALSE),FALSE))))","v":""},{"$f":"IF($A952=\"\",\"\",IF(VLOOKUP($G952,$H$11:$DN$1000,111,FALSE)=\"\",\"No\",IF(LEFT(VLOOKUP($G952,$H$11:$DN$1000,111,FALSE),3)=\"The\",EI952,VLOOKUP(VLOOKUP($G952,$H$11:$DN$1000,111,FALSE),DeclMatrix!$A$2:$F$5,VLOOKUP('Enrollment Form'!$B952,DeclMatrix!$A$8:$B$12,2,FALSE),FALSE))))","v":""},"",null,"","","","","","","","","","","",""]
["",{"$nulls":5},"","",{"$nulls":18},"","","","",{"$nulls":30},"","","","",{"$nulls":60},"",{"$f":"IF($A953=\"\",\"\",IF(VLOOKUP($G953,$H$11:$DN$1000,96,FALSE)=\"\",\"No\",IF(LEFT(VLOOKUP($G953,$H$11:$DN$1000,96,FALSE),3)=\"The\",EF953,VLOOKUP(VLOOKUP($G953,$H$11:$DN$1000,96,FALSE),DeclMatrix!$A$2:$F$5,VLOOKUP('Enrollment Form'!$B953,DeclMatrix!$A$8:$B$12,2,FALSE),FALSE))))","v":""},{"$f":"IF($A953=\"\",\"\",IF(VLOOKUP($G953,$H$11:$DN$1000,101,FALSE)=\"\",\"No\",IF(LEFT(VLOOKUP($G953,$H$11:$DN$1000,101,FALSE),3)=\"The\",EG953,VLOOKUP(VLOOKUP($G953,$H$11:$DN$1000,101,FALSE),DeclMatrix!$A$2:$F$5,VLOOKUP('Enrollment Form'!$B953,DeclMatrix!$A$8:$B$12,2,FALSE),FALSE))))","v":""},{"$f":"IF($A953=\"\",\"\",IF(VLOOKUP($G953,$H$11:$DN$1000,106,FALSE)=\"\",\"No\",IF(LEFT(VLOOKUP($G953,$H$11:$DN$1000,106,FALSE),3)=\"The\",EH953,VLOOKUP(VLOOKUP($G953,$H$11:$DN$1000,106,FALSE),DeclMatrix!$A$2:$F$5,VLOOKUP('Enrollment Form'!$B953,DeclMatrix!$A$8:$B$12,2,FALSE),FALSE))))","v":""},{"$f":"IF($A953=\"\",\"\",IF(VLOOKUP($G953,$H$11:$DN$1000,111,FALSE)=\"\",\"No\",IF(LEFT(VLOOKUP($G953,$H$11:$DN$1000,111,FALSE),3)=\"The\",EI953,VLOOKUP(VLOOKUP($G953,$H$11:$DN$1000,111,FALSE),DeclMatrix!$A$2:$F$5,VLOOKUP('Enrollment Form'!$B953,DeclMatrix!$A$8:$B$12,2,FALSE),FALSE))))","v":""},"",null,"","","","","","","","","","","",""]
["",{"$nulls":5},"","",{"$nulls":18},"","","","",{"$nulls":30},"","","","",{"$nulls":60},"",{"$f":"IF($A954=\"\",\"\",IF(VLOOKUP($G954,$H$11:$DN$1000,96,FALSE)=\"\",\"No\",IF(LEFT(VLOOKUP($G954,$H$11:$DN$1000,96,FALSE),3)=\"The\",EF954,VLOOKUP(VLOOKUP($G954,$H$11:$DN$1000,96,FALSE),DeclMatrix!$A$2:$F$5,VLOOKUP('Enrollment Form'!$B954,DeclMatrix!$A$8:$B$12,2,FALSE),FALSE))))","v":""},{"$f":"IF($A954=\"\",\"\",IF(VLOOKUP($G954,$H$11:$DN$1000,101,FALSE)=\"\",\"No\",IF(LEFT(VLOOKUP($G954,$H$11:$DN$1000,101,FALSE),3)=\"The\",EG954,VLOOKUP(VLOOKUP($G954,$H$11:$DN$1000,101,FALSE),DeclMatrix!$A$2:$F$5,VLOOKUP('Enrollment Form'!$B954,DeclMatrix!$A$8:$B$12,2,FALSE),FALSE))))","v":""},{"$f":"IF($A954=\"\",\"\",IF(VLOOKUP($G954,$H$11:$DN$1000,106,FALSE)=\"\",\"No\",IF(LEFT(VLOOKUP($G954,$H$11:$DN$1000,106,FALSE),3)=\"The\",EH954,VLOOKUP(VLOOKUP($G954,$H$11:$DN$1000,106,FALSE),DeclMatrix!$A$2:$F$5,VLOOKUP('Enrollment Form'!$B954,DeclMatrix!$A$8:$B$12,2,FALSE),FALSE))))","v":""},{"$f":"IF($A954=\"\",\"\",IF(VLOOKUP($G954,$H$11:$DN$1000,111,FALSE)=\"\",\"No\",IF(LEFT(VLOOKUP($G954,$H$11:$DN$1000,111,FALSE),3)=\"The\",EI954,VLOOKUP(VLOOKUP($G954,$H$11:$DN$1000,111,FALSE),DeclMatrix!$A$2:$F$5,VLOOKUP('Enrollment Form'!$B954,DeclMatrix!$A$8:$B$12,2,FALSE),FALSE))))","v":""},"",null,"","","","","","","","","","","",""]
["",{"$nulls":5},"","",{"$nulls":18},"","","","",{"$nulls":30},"","","","",{"$nulls":60},"",{"$f":"IF($A955=\"\",\"\",IF(VLOOKUP($G955,$H$11:$DN$1000,96,FALSE)=\"\",\"No\",IF(LEFT(VLOOKUP($G955,$H$11:$DN$1000,96,FALSE),3)=\"The\",EF955,VLOOKUP(VLOOKUP($G955,$H$11:$DN$1000,96,FALSE),DeclMatrix!$A$2:$F$5,VLOOKUP('Enrollment Form'!$B955,DeclMatrix!$A$8:$B$12,2,FALSE),FALSE))))","v":""},{"$f":"IF($A955=\"\",\"\",IF(VLOOKUP($G955,$H$11:$DN$1000,101,FALSE)=\"\",\"No\",IF(LEFT(VLOOKUP($G955,$H$11:$DN$1000,101,FALSE),3)=\"The\",EG955,VLOOKUP(VLOOKUP($G955,$H$11:$DN$1000,101,FALSE),DeclMatrix!$A$2:$F$5,VLOOKUP('Enrollment Form'!$B955,DeclMatrix!$A$8:$B$12,2,FALSE),FALSE))))","v":""},{"$f":"IF($A955=\"\",\"\",IF(VLOOKUP($G955,$H$11:$DN$1000,106,FALSE)=\"\",\"No\",IF(LEFT(VLOOKUP($G955,$H$11:$DN$1000,106,FALSE),3)=\"The\",EH955,VLOOKUP(VLOOKUP($G955,$H$11:$DN$1000,106,FALSE),DeclMatrix!$A$2:$F$5,VLOOKUP('Enrollment Form'!$B955,DeclMatrix!$A$8:$B$12,2,FALSE),FALSE))))","v":""},{"$f":"IF($A955=\"\",\"\",IF(VLOOKUP($G955,$H$11:$DN$1000,111,FALSE)=\"\",\"No\",IF(LEFT(VLOOKUP($G955,$H$11:$DN$1000,111,FALSE),3)=\"The\",EI955,VLOOKUP(VLOOKUP($G955,$H$11:$DN$1000,111,FALSE),DeclMatrix!$A$2:$F$5,VLOOKUP('Enrollment Form'!$B955,DeclMatrix!$A$8:$B$12,2,FALSE),FALSE))))","v":""},"",null,"","","","","","","","","","","",""]
["",{"$nulls":5},"","",{"$nulls":18},"","","","",{"$nulls":30},"","","","",{"$nulls":60},"",{"$f":"IF($A956=\"\",\"\",IF(VLOOKUP($G956,$H$11:$DN$1000,96,FALSE)=\"\",\"No\",IF(LEFT(VLOOKUP($G956,$H$11:$DN$1000,96,FALSE),3)=\"The\",EF956,VLOOKUP(VLOOKUP($G956,$H$11:$DN$1000,96,FALSE),DeclMatrix!$A$2:$F$5,VLOOKUP('Enrollment Form'!$B956,DeclMatrix!$A$8:$B$12,2,FALSE),FALSE))))","v":""},{"$f":"IF($A956=\"\",\"\",IF(VLOOKUP($G956,$H$11:$DN$1000,101,FALSE)=\"\",\"No\",IF(LEFT(VLOOKUP($G956,$H$11:$DN$1000,101,FALSE),3)=\"The\",EG956,VLOOKUP(VLOOKUP($G956,$H$11:$DN$1000,101,FALSE),DeclMatrix!$A$2:$F$5,VLOOKUP('Enrollment Form'!$B956,DeclMatrix!$A$8:$B$12,2,FALSE),FALSE))))","v":""},{"$f":"IF($A956=\"\",\"\",IF(VLOOKUP($G956,$H$11:$DN$1000,106,FALSE)=\"\",\"No\",IF(LEFT(VLOOKUP($G956,$H$11:$DN$1000,106,FALSE),3)=\"The\",EH956,VLOOKUP(VLOOKUP($G956,$H$11:$DN$1000,106,FALSE),DeclMatrix!$A$2:$F$5,VLOOKUP('Enrollment Form'!$B956,DeclMatrix!$A$8:$B$12,2,FALSE),FALSE))))","v":""},{"$f":"IF($A956=\"\",\"\",IF(VLOOKUP($G956,$H$11:$DN$1000,111,FALSE)=\"\",\"No\",IF(LEFT(VLOOKUP($G956,$H$11:$DN$1000,111,FALSE),3)=\"The\",EI956,VLOOKUP(VLOOKUP($G956,$H$11:$DN$1000,111,FALSE),DeclMatrix!$A$2:$F$5,VLOOKUP('Enrollment Form'!$B956,DeclMatrix!$A$8:$B$12,2,FALSE),FALSE))))","v":""},"",null,"","","","","","","","","","","",""]
["",{"$nulls":5},"","",{"$nulls":18},"","","","",{"$nulls":30},"","","","",{"$nulls":60},"",{"$f":"IF($A957=\"\",\"\",IF(VLOOKUP($G957,$H$11:$DN$1000,96,FALSE)=\"\",\"No\",IF(LEFT(VLOOKUP($G957,$H$11:$DN$1000,96,FALSE),3)=\"The\",EF957,VLOOKUP(VLOOKUP($G957,$H$11:$DN$1000,96,FALSE),DeclMatrix!$A$2:$F$5,VLOOKUP('Enrollment Form'!$B957,DeclMatrix!$A$8:$B$12,2,FALSE),FALSE))))","v":""},{"$f":"IF($A957=\"\",\"\",IF(VLOOKUP($G957,$H$11:$DN$1000,101,FALSE)=\"\",\"No\",IF(LEFT(VLOOKUP($G957,$H$11:$DN$1000,101,FALSE),3)=\"The\",EG957,VLOOKUP(VLOOKUP($G957,$H$11:$DN$1000,101,FALSE),DeclMatrix!$A$2:$F$5,VLOOKUP('Enrollment Form'!$B957,DeclMatrix!$A$8:$B$12,2,FALSE),FALSE))))","v":""},{"$f":"IF($A957=\"\",\"\",IF(VLOOKUP($G957,$H$11:$DN$1000,106,FALSE)=\"\",\"No\",IF(LEFT(VLOOKUP($G957,$H$11:$DN$1000,106,FALSE),3)=\"The\",EH957,VLOOKUP(VLOOKUP($G957,$H$11:$DN$1000,106,FALSE),DeclMatrix!$A$2:$F$5,VLOOKUP('Enrollment Form'!$B957,DeclMatrix!$A$8:$B$12,2,FALSE),FALSE))))","v":""},{"$f":"IF($A957=\"\",\"\",IF(VLOOKUP($G957,$H$11:$DN$1000,111,FALSE)=\"\",\"No\",IF(LEFT(VLOOKUP($G957,$H$11:$DN$1000,111,FALSE),3)=\"The\",EI957,VLOOKUP(VLOOKUP($G957,$H$11:$DN$1000,111,FALSE),DeclMatrix!$A$2:$F$5,VLOOKUP('Enrollment Form'!$B957,DeclMatrix!$A$8:$B$12,2,FALSE),FALSE))))","v":""},"",null,"","","","","","","","","","","",""]
["",{"$nulls":5},"","",{"$nulls":18},"","","","",{"$nulls":30},"","","","",{"$nulls":60},"",{"$f":"IF($A958=\"\",\"\",IF(VLOOKUP($G958,$H$11:$DN$1000,96,FALSE)=\"\",\"No\",IF(LEFT(VLOOKUP($G958,$H$11:$DN$1000,96,FALSE),3)=\"The\",EF958,VLOOKUP(VLOOKUP($G958,$H$11:$DN$1000,96,FALSE),DeclMatrix!$A$2:$F$5,VLOOKUP('Enrollment Form'!$B958,DeclMatrix!$A$8:$B$12,2,FALSE),FALSE))))","v":""},{"$f":"IF($A958=\"\",\"\",IF(VLOOKUP($G958,$H$11:$DN$1000,101,FALSE)=\"\",\"No\",IF(LEFT(VLOOKUP($G958,$H$11:$DN$1000,101,FALSE),3)=\"The\",EG958,VLOOKUP(VLOOKUP($G958,$H$11:$DN$1000,101,FALSE),DeclMatrix!$A$2:$F$5,VLOOKUP('Enrollment Form'!$B958,DeclMatrix!$A$8:$B$12,2,FALSE),FALSE))))","v":""},{"$f":"IF($A958=\"\",\"\",IF(VLOOKUP($G958,$H$11:$DN$1000,106,FALSE)=\"\",\"No\",IF(LEFT(VLOOKUP($G958,$H$11:$DN$1000,106,FALSE),3)=\"The\",EH958,VLOOKUP(VLOOKUP($G958,$H$11:$DN$1000,106,FALSE),DeclMatrix!$A$2:$F$5,VLOOKUP('Enrollment Form'!$B958,DeclMatrix!$A$8:$B$12,2,FALSE),FALSE))))","v":""},{"$f":"IF($A958=\"\",\"\",IF(VLOOKUP($G958,$H$11:$DN$1000,111,FALSE)=\"\",\"No\",IF(LEFT(VLOOKUP($G958,$H$11:$DN$1000,111,FALSE),3)=\"The\",EI958,VLOOKUP(VLOOKUP($G958,$H$11:$DN$1000,111,FALSE),DeclMatrix!$A$2:$F$5,VLOOKUP('Enrollment Form'!$B958,DeclMatrix!$A$8:$B$12,2,FALSE),FALSE))))","v":""},"",null,"","","","","","","","","","","",""]
["",{"$nulls":5},"","",{"$nulls":18},"","","","",{"$nulls":30},"","","","",{"$nulls":60},"",{"$f":"IF($A959=\"\",\"\",IF(VLOOKUP($G959,$H$11:$DN$1000,96,FALSE)=\"\",\"No\",IF(LEFT(VLOOKUP($G959,$H$11:$DN$1000,96,FALSE),3)=\"The\",EF959,VLOOKUP(VLOOKUP($G959,$H$11:$DN$1000,96,FALSE),DeclMatrix!$A$2:$F$5,VLOOKUP('Enrollment Form'!$B959,DeclMatrix!$A$8:$B$12,2,FALSE),FALSE))))","v":""},{"$f":"IF($A959=\"\",\"\",IF(VLOOKUP($G959,$H$11:$DN$1000,101,FALSE)=\"\",\"No\",IF(LEFT(VLOOKUP($G959,$H$11:$DN$1000,101,FALSE),3)=\"The\",EG959,VLOOKUP(VLOOKUP($G959,$H$11:$DN$1000,101,FALSE),DeclMatrix!$A$2:$F$5,VLOOKUP('Enrollment Form'!$B959,DeclMatrix!$A$8:$B$12,2,FALSE),FALSE))))","v":""},{"$f":"IF($A959=\"\",\"\",IF(VLOOKUP($G959,$H$11:$DN$1000,106,FALSE)=\"\",\"No\",IF(LEFT(VLOOKUP($G959,$H$11:$DN$1000,106,FALSE),3)=\"The\",EH959,VLOOKUP(VLOOKUP($G959,$H$11:$DN$1000,106,FALSE),DeclMatrix!$A$2:$F$5,VLOOKUP('Enrollment Form'!$B959,DeclMatrix!$A$8:$B$12,2,FALSE),FALSE))))","v":""},{"$f":"IF($A959=\"\",\"\",IF(VLOOKUP($G959,$H$11:$DN$1000,111,FALSE)=\"\",\"No\",IF(LEFT(VLOOKUP($G959,$H$11:$DN$1000,111,FALSE),3)=\"The\",EI959,VLOOKUP(VLOOKUP($G959,$H$11:$DN$1000,111,FALSE),DeclMatrix!$A$2:$F$5,VLOOKUP('Enrollment Form'!$B959,DeclMatrix!$A$8:$B$12,2,FALSE),FALSE))))","v":""},"",null,"","","","","","","","","","","",""]
["",{"$nulls":5},"","",{"$nulls":18},"","","","",{"$nulls":30},"","","","",{"$nulls":60},"",{"$f":"IF($A960=\"\",\"\",IF(VLOOKUP($G960,$H$11:$DN$1000,96,FALSE)=\"\",\"No\",IF(LEFT(VLOOKUP($G960,$H$11:$DN$1000,96,FALSE),3)=\"The\",EF960,VLOOKUP(VLOOKUP($G960,$H$11:$DN$1000,96,FALSE),DeclMatrix!$A$2:$F$5,VLOOKUP('Enrollment Form'!$B960,DeclMatrix!$A$8:$B$12,2,FALSE),FALSE))))","v":""},{"$f":"IF($A960=\"\",\"\",IF(VLOOKUP($G960,$H$11:$DN$1000,101,FALSE)=\"\",\"No\",IF(LEFT(VLOOKUP($G960,$H$11:$DN$1000,101,FALSE),3)=\"The\",EG960,VLOOKUP(VLOOKUP($G960,$H$11:$DN$1000,101,FALSE),DeclMatrix!$A$2:$F$5,VLOOKUP('Enrollment Form'!$B960,DeclMatrix!$A$8:$B$12,2,FALSE),FALSE))))","v":""},{"$f":"IF($A960=\"\",\"\",IF(VLOOKUP($G960,$H$11:$DN$1000,106,FALSE)=\"\",\"No\",IF(LEFT(VLOOKUP($G960,$H$11:$DN$1000,106,FALSE),3)=\"The\",EH960,VLOOKUP(VLOOKUP($G960,$H$11:$DN$1000,106,FALSE),DeclMatrix!$A$2:$F$5,VLOOKUP('Enrollment Form'!$B960,DeclMatrix!$A$8:$B$12,2,FALSE),FALSE))))","v":""},{"$f":"IF($A960=\"\",\"\",IF(VLOOKUP($G960,$H$11:$DN$1000,111,FALSE)=\"\",\"No\",IF(LEFT(VLOOKUP($G960,$H$11:$DN$1000,111,FALSE),3)=\"The\",EI960,VLOOKUP(VLOOKUP($G960,$H$11:$DN$1000,111,FALSE),DeclMatrix!$A$2:$F$5,VLOOKUP('Enrollment Form'!$B960,DeclMatrix!$A$8:$B$12,2,FALSE),FALSE))))","v":""},"",null,"","","","","","","","","","","",""]
["",{"$nulls":5},"","",{"$nulls":18},"","","","",{"$nulls":30},"","","","",{"$nulls":60},"",{"$f":"IF($A961=\"\",\"\",IF(VLOOKUP($G961,$H$11:$DN$1000,96,FALSE)=\"\",\"No\",IF(LEFT(VLOOKUP($G961,$H$11:$DN$1000,96,FALSE),3)=\"The\",EF961,VLOOKUP(VLOOKUP($G961,$H$11:$DN$1000,96,FALSE),DeclMatrix!$A$2:$F$5,VLOOKUP('Enrollment Form'!$B961,DeclMatrix!$A$8:$B$12,2,FALSE),FALSE))))","v":""},{"$f":"IF($A961=\"\",\"\",IF(VLOOKUP($G961,$H$11:$DN$1000,101,FALSE)=\"\",\"No\",IF(LEFT(VLOOKUP($G961,$H$11:$DN$1000,101,FALSE),3)=\"The\",EG961,VLOOKUP(VLOOKUP($G961,$H$11:$DN$1000,101,FALSE),DeclMatrix!$A$2:$F$5,VLOOKUP('Enrollment Form'!$B961,DeclMatrix!$A$8:$B$12,2,FALSE),FALSE))))","v":""},{"$f":"IF($A961=\"\",\"\",IF(VLOOKUP($G961,$H$11:$DN$1000,106,FALSE)=\"\",\"No\",IF(LEFT(VLOOKUP($G961,$H$11:$DN$1000,106,FALSE),3)=\"The\",EH961,VLOOKUP(VLOOKUP($G961,$H$11:$DN$1000,106,FALSE),DeclMatrix!$A$2:$F$5,VLOOKUP('Enrollment Form'!$B961,DeclMatrix!$A$8:$B$12,2,FALSE),FALSE))))","v":""},{"$f":"IF($A961=\"\",\"\",IF(VLOOKUP($G961,$H$11:$DN$1000,111,FALSE)=\"\",\"No\",IF(LEFT(VLOOKUP($G961,$H$11:$DN$1000,111,FALSE),3)=\"The\",EI961,VLOOKUP(VLOOKUP($G961,$H$11:$DN$1000,111,FALSE),DeclMatrix!$A$2:$F$5,VLOOKUP('Enrollment Form'!$B961,DeclMatrix!$A$8:$B$12,2,FALSE),FALSE))))","v":""},"",null,"","","","","","","","","","","",""]
["",{"$nulls":5},"","",{"$nulls":18},"","","","",{"$nulls":30},"","","","",{"$nulls":60},"",{"$f":"IF($A962=\"\",\"\",IF(VLOOKUP($G962,$H$11:$DN$1000,96,FALSE)=\"\",\"No\",IF(LEFT(VLOOKUP($G962,$H$11:$DN$1000,96,FALSE),3)=\"The\",EF962,VLOOKUP(VLOOKUP($G962,$H$11:$DN$1000,96,FALSE),DeclMatrix!$A$2:$F$5,VLOOKUP('Enrollment Form'!$B962,DeclMatrix!$A$8:$B$12,2,FALSE),FALSE))))","v":""},{"$f":"IF($A962=\"\",\"\",IF(VLOOKUP($G962,$H$11:$DN$1000,101,FALSE)=\"\",\"No\",IF(LEFT(VLOOKUP($G962,$H$11:$DN$1000,101,FALSE),3)=\"The\",EG962,VLOOKUP(VLOOKUP($G962,$H$11:$DN$1000,101,FALSE),DeclMatrix!$A$2:$F$5,VLOOKUP('Enrollment Form'!$B962,DeclMatrix!$A$8:$B$12,2,FALSE),FALSE))))","v":""},{"$f":"IF($A962=\"\",\"\",IF(VLOOKUP($G962,$H$11:$DN$1000,106,FALSE)=\"\",\"No\",IF(LEFT(VLOOKUP($G962,$H$11:$DN$1000,106,FALSE),3)=\"The\",EH962,VLOOKUP(VLOOKUP($G962,$H$11:$DN$1000,106,FALSE),DeclMatrix!$A$2:$F$5,VLOOKUP('Enrollment Form'!$B962,DeclMatrix!$A$8:$B$12,2,FALSE),FALSE))))","v":""},{"$f":"IF($A962=\"\",\"\",IF(VLOOKUP($G962,$H$11:$DN$1000,111,FALSE)=\"\",\"No\",IF(LEFT(VLOOKUP($G962,$H$11:$DN$1000,111,FALSE),3)=\"The\",EI962,VLOOKUP(VLOOKUP($G962,$H$11:$DN$1000,111,FALSE),DeclMatrix!$A$2:$F$5,VLOOKUP('Enrollment Form'!$B962,DeclMatrix!$A$8:$B$12,2,FALSE),FALSE))))","v":""},"",null,"","","","","","","","","","","",""]
["",{"$nulls":5},"","",{"$nulls":18},"","","","",{"$nulls":30},"","","","",{"$nulls":60},"",{"$f":"IF($A963=\"\",\"\",IF(VLOOKUP($G963,$H$11:$DN$1000,96,FALSE)=\"\",\"No\",IF(LEFT(VLOOKUP($G963,$H$11:$DN$1000,96,FALSE),3)=\"The\",EF963,VLOOKUP(VLOOKUP($G963,$H$11:$DN$1000,96,FALSE),DeclMatrix!$A$2:$F$5,VLOOKUP('Enrollment Form'!$B963,DeclMatrix!$A$8:$B$12,2,FALSE),FALSE))))","v":""},{"$f":"IF($A963=\"\",\"\",IF(VLOOKUP($G963,$H$11:$DN$1000,101,FALSE)=\"\",\"No\",IF(LEFT(VLOOKUP($G963,$H$11:$DN$1000,101,FALSE),3)=\"The\",EG963,VLOOKUP(VLOOKUP($G963,$H$11:$DN$1000,101,FALSE),DeclMatrix!$A$2:$F$5,VLOOKUP('Enrollment Form'!$B963,DeclMatrix!$A$8:$B$12,2,FALSE),FALSE))))","v":""},{"$f":"IF($A963=\"\",\"\",IF(VLOOKUP($G963,$H$11:$DN$1000,106,FALSE)=\"\",\"No\",IF(LEFT(VLOOKUP($G963,$H$11:$DN$1000,106,FALSE),3)=\"The\",EH963,VLOOKUP(VLOOKUP($G963,$H$11:$DN$1000,106,FALSE),DeclMatrix!$A$2:$F$5,VLOOKUP('Enrollment Form'!$B963,DeclMatrix!$A$8:$B$12,2,FALSE),FALSE))))","v":""},{"$f":"IF($A963=\"\",\"\",IF(VLOOKUP($G963,$H$11:$DN$1000,111,FALSE)=\"\",\"No\",IF(LEFT(VLOOKUP($G963,$H$11:$DN$1000,111,FALSE),3)=\"The\",EI963,VLOOKUP(VLOOKUP($G963,$H$11:$DN$1000,111,FALSE),DeclMatrix!$A$2:$F$5,VLOOKUP('Enrollment Form'!$B963,DeclMatrix!$A$8:$B$12,2,FALSE),FALSE))))","v":""},"",null,"","","","","","","","","","","",""]
["",{"$nulls":5},"","",{"$nulls":18},"","","","",{"$nulls":30},"","","","",{"$nulls":60},"",{"$f":"IF($A964=\"\",\"\",IF(VLOOKUP($G964,$H$11:$DN$1000,96,FALSE)=\"\",\"No\",IF(LEFT(VLOOKUP($G964,$H$11:$DN$1000,96,FALSE),3)=\"The\",EF964,VLOOKUP(VLOOKUP($G964,$H$11:$DN$1000,96,FALSE),DeclMatrix!$A$2:$F$5,VLOOKUP('Enrollment Form'!$B964,DeclMatrix!$A$8:$B$12,2,FALSE),FALSE))))","v":""},{"$f":"IF($A964=\"\",\"\",IF(VLOOKUP($G964,$H$11:$DN$1000,101,FALSE)=\"\",\"No\",IF(LEFT(VLOOKUP($G964,$H$11:$DN$1000,101,FALSE),3)=\"The\",EG964,VLOOKUP(VLOOKUP($G964,$H$11:$DN$1000,101,FALSE),DeclMatrix!$A$2:$F$5,VLOOKUP('Enrollment Form'!$B964,DeclMatrix!$A$8:$B$12,2,FALSE),FALSE))))","v":""},{"$f":"IF($A964=\"\",\"\",IF(VLOOKUP($G964,$H$11:$DN$1000,106,FALSE)=\"\",\"No\",IF(LEFT(VLOOKUP($G964,$H$11:$DN$1000,106,FALSE),3)=\"The\",EH964,VLOOKUP(VLOOKUP($G964,$H$11:$DN$1000,106,FALSE),DeclMatrix!$A$2:$F$5,VLOOKUP('Enrollment Form'!$B964,DeclMatrix!$A$8:$B$12,2,FALSE),FALSE))))","v":""},{"$f":"IF($A964=\"\",\"\",IF(VLOOKUP($G964,$H$11:$DN$1000,111,FALSE)=\"\",\"No\",IF(LEFT(VLOOKUP($G964,$H$11:$DN$1000,111,FALSE),3)=\"The\",EI964,VLOOKUP(VLOOKUP($G964,$H$11:$DN$1000,111,FALSE),DeclMatrix!$A$2:$F$5,VLOOKUP('Enrollment Form'!$B964,DeclMatrix!$A$8:$B$12,2,FALSE),FALSE))))","v":""},"",null,"","","","","","","","","","","",""]
["",{"$nulls":5},"","",{"$nulls":18},"","","","",{"$nulls":30},"","","","",{"$nulls":60},"",{"$f":"IF($A965=\"\",\"\",IF(VLOOKUP($G965,$H$11:$DN$1000,96,FALSE)=\"\",\"No\",IF(LEFT(VLOOKUP($G965,$H$11:$DN$1000,96,FALSE),3)=\"The\",EF965,VLOOKUP(VLOOKUP($G965,$H$11:$DN$1000,96,FALSE),DeclMatrix!$A$2:$F$5,VLOOKUP('Enrollment Form'!$B965,DeclMatrix!$A$8:$B$12,2,FALSE),FALSE))))","v":""},{"$f":"IF($A965=\"\",\"\",IF(VLOOKUP($G965,$H$11:$DN$1000,101,FALSE)=\"\",\"No\",IF(LEFT(VLOOKUP($G965,$H$11:$DN$1000,101,FALSE),3)=\"The\",EG965,VLOOKUP(VLOOKUP($G965,$H$11:$DN$1000,101,FALSE),DeclMatrix!$A$2:$F$5,VLOOKUP('Enrollment Form'!$B965,DeclMatrix!$A$8:$B$12,2,FALSE),FALSE))))","v":""},{"$f":"IF($A965=\"\",\"\",IF(VLOOKUP($G965,$H$11:$DN$1000,106,FALSE)=\"\",\"No\",IF(LEFT(VLOOKUP($G965,$H$11:$DN$1000,106,FALSE),3)=\"The\",EH965,VLOOKUP(VLOOKUP($G965,$H$11:$DN$1000,106,FALSE),DeclMatrix!$A$2:$F$5,VLOOKUP('Enrollment Form'!$B965,DeclMatrix!$A$8:$B$12,2,FALSE),FALSE))))","v":""},{"$f":"IF($A965=\"\",\"\",IF(VLOOKUP($G965,$H$11:$DN$1000,111,FALSE)=\"\",\"No\",IF(LEFT(VLOOKUP($G965,$H$11:$DN$1000,111,FALSE),3)=\"The\",EI965,VLOOKUP(VLOOKUP($G965,$H$11:$DN$1000,111,FALSE),DeclMatrix!$A$2:$F$5,VLOOKUP('Enrollment Form'!$B965,DeclMatrix!$A$8:$B$12,2,FALSE),FALSE))))","v":""},"",null,"","","","","","","","","","","",""]
["",{"$nulls":5},"","",{"$nulls":18},"","","","",{"$nulls":30},"","","","",{"$nulls":60},"",{"$f":"IF($A966=\"\",\"\",IF(VLOOKUP($G966,$H$11:$DN$1000,96,FALSE)=\"\",\"No\",IF(LEFT(VLOOKUP($G966,$H$11:$DN$1000,96,FALSE),3)=\"The\",EF966,VLOOKUP(VLOOKUP($G966,$H$11:$DN$1000,96,FALSE),DeclMatrix!$A$2:$F$5,VLOOKUP('Enrollment Form'!$B966,DeclMatrix!$A$8:$B$12,2,FALSE),FALSE))))","v":""},{"$f":"IF($A966=\"\",\"\",IF(VLOOKUP($G966,$H$11:$DN$1000,101,FALSE)=\"\",\"No\",IF(LEFT(VLOOKUP($G966,$H$11:$DN$1000,101,FALSE),3)=\"The\",EG966,VLOOKUP(VLOOKUP($G966,$H$11:$DN$1000,101,FALSE),DeclMatrix!$A$2:$F$5,VLOOKUP('Enrollment Form'!$B966,DeclMatrix!$A$8:$B$12,2,FALSE),FALSE))))","v":""},{"$f":"IF($A966=\"\",\"\",IF(VLOOKUP($G966,$H$11:$DN$1000,106,FALSE)=\"\",\"No\",IF(LEFT(VLOOKUP($G966,$H$11:$DN$1000,106,FALSE),3)=\"The\",EH966,VLOOKUP(VLOOKUP($G966,$H$11:$DN$1000,106,FALSE),DeclMatrix!$A$2:$F$5,VLOOKUP('Enrollment Form'!$B966,DeclMatrix!$A$8:$B$12,2,FALSE),FALSE))))","v":""},{"$f":"IF($A966=\"\",\"\",IF(VLOOKUP($G966,$H$11:$DN$1000,111,FALSE)=\"\",\"No\",IF(LEFT(VLOOKUP($G966,$H$11:$DN$1000,111,FALSE),3)=\"The\",EI966,VLOOKUP(VLOOKUP($G966,$H$11:$DN$1000,111,FALSE),DeclMatrix!$A$2:$F$5,VLOOKUP('Enrollment Form'!$B966,DeclMatrix!$A$8:$B$12,2,FALSE),FALSE))))","v":""},"",null,"","","","","","","","","","","",""]
["",{"$nulls":5},"","",{"$nulls":18},"","","","",{"$nulls":30},"","","","",{"$nulls":60},"",{"$f":"IF($A967=\"\",\"\",IF(VLOOKUP($G967,$H$11:$DN$1000,96,FALSE)=\"\",\"No\",IF(LEFT(VLOOKUP($G967,$H$11:$DN$1000,96,FALSE),3)=\"The\",EF967,VLOOKUP(VLOOKUP($G967,$H$11:$DN$1000,96,FALSE),DeclMatrix!$A$2:$F$5,VLOOKUP('Enrollment Form'!$B967,DeclMatrix!$A$8:$B$12,2,FALSE),FALSE))))","v":""},{"$f":"IF($A967=\"\",\"\",IF(VLOOKUP($G967,$H$11:$DN$1000,101,FALSE)=\"\",\"No\",IF(LEFT(VLOOKUP($G967,$H$11:$DN$1000,101,FALSE),3)=\"The\",EG967,VLOOKUP(VLOOKUP($G967,$H$11:$DN$1000,101,FALSE),DeclMatrix!$A$2:$F$5,VLOOKUP('Enrollment Form'!$B967,DeclMatrix!$A$8:$B$12,2,FALSE),FALSE))))","v":""},{"$f":"IF($A967=\"\",\"\",IF(VLOOKUP($G967,$H$11:$DN$1000,106,FALSE)=\"\",\"No\",IF(LEFT(VLOOKUP($G967,$H$11:$DN$1000,106,FALSE),3)=\"The\",EH967,VLOOKUP(VLOOKUP($G967,$H$11:$DN$1000,106,FALSE),DeclMatrix!$A$2:$F$5,VLOOKUP('Enrollment Form'!$B967,DeclMatrix!$A$8:$B$12,2,FALSE),FALSE))))","v":""},{"$f":"IF($A967=\"\",\"\",IF(VLOOKUP($G967,$H$11:$DN$1000,111,FALSE)=\"\",\"No\",IF(LEFT(VLOOKUP($G967,$H$11:$DN$1000,111,FALSE),3)=\"The\",EI967,VLOOKUP(VLOOKUP($G967,$H$11:$DN$1000,111,FALSE),DeclMatrix!$A$2:$F$5,VLOOKUP('Enrollment Form'!$B967,DeclMatrix!$A$8:$B$12,2,FALSE),FALSE))))","v":""},"",null,"","","","","","","","","","","",""]
["",{"$nulls":5},"","",{"$nulls":18},"","","","",{"$nulls":30},"","","","",{"$nulls":60},"",{"$f":"IF($A968=\"\",\"\",IF(VLOOKUP($G968,$H$11:$DN$1000,96,FALSE)=\"\",\"No\",IF(LEFT(VLOOKUP($G968,$H$11:$DN$1000,96,FALSE),3)=\"The\",EF968,VLOOKUP(VLOOKUP($G968,$H$11:$DN$1000,96,FALSE),DeclMatrix!$A$2:$F$5,VLOOKUP('Enrollment Form'!$B968,DeclMatrix!$A$8:$B$12,2,FALSE),FALSE))))","v":""},{"$f":"IF($A968=\"\",\"\",IF(VLOOKUP($G968,$H$11:$DN$1000,101,FALSE)=\"\",\"No\",IF(LEFT(VLOOKUP($G968,$H$11:$DN$1000,101,FALSE),3)=\"The\",EG968,VLOOKUP(VLOOKUP($G968,$H$11:$DN$1000,101,FALSE),DeclMatrix!$A$2:$F$5,VLOOKUP('Enrollment Form'!$B968,DeclMatrix!$A$8:$B$12,2,FALSE),FALSE))))","v":""},{"$f":"IF($A968=\"\",\"\",IF(VLOOKUP($G968,$H$11:$DN$1000,106,FALSE)=\"\",\"No\",IF(LEFT(VLOOKUP($G968,$H$11:$DN$1000,106,FALSE),3)=\"The\",EH968,VLOOKUP(VLOOKUP($G968,$H$11:$DN$1000,106,FALSE),DeclMatrix!$A$2:$F$5,VLOOKUP('Enrollment Form'!$B968,DeclMatrix!$A$8:$B$12,2,FALSE),FALSE))))","v":""},{"$f":"IF($A968=\"\",\"\",IF(VLOOKUP($G968,$H$11:$DN$1000,111,FALSE)=\"\",\"No\",IF(LEFT(VLOOKUP($G968,$H$11:$DN$1000,111,FALSE),3)=\"The\",EI968,VLOOKUP(VLOOKUP($G968,$H$11:$DN$1000,111,FALSE),DeclMatrix!$A$2:$F$5,VLOOKUP('Enrollment Form'!$B968,DeclMatrix!$A$8:$B$12,2,FALSE),FALSE))))","v":""},"",null,"","","","","","","","","","","",""]
["",{"$nulls":5},"","",{"$nulls":18},"","","","",{"$nulls":30},"","","","",{"$nulls":60},"",{"$f":"IF($A969=\"\",\"\",IF(VLOOKUP($G969,$H$11:$DN$1000,96,FALSE)=\"\",\"No\",IF(LEFT(VLOOKUP($G969,$H$11:$DN$1000,96,FALSE),3)=\"The\",EF969,VLOOKUP(VLOOKUP($G969,$H$11:$DN$1000,96,FALSE),DeclMatrix!$A$2:$F$5,VLOOKUP('Enrollment Form'!$B969,DeclMatrix!$A$8:$B$12,2,FALSE),FALSE))))","v":""},{"$f":"IF($A969=\"\",\"\",IF(VLOOKUP($G969,$H$11:$DN$1000,101,FALSE)=\"\",\"No\",IF(LEFT(VLOOKUP($G969,$H$11:$DN$1000,101,FALSE),3)=\"The\",EG969,VLOOKUP(VLOOKUP($G969,$H$11:$DN$1000,101,FALSE),DeclMatrix!$A$2:$F$5,VLOOKUP('Enrollment Form'!$B969,DeclMatrix!$A$8:$B$12,2,FALSE),FALSE))))","v":""},{"$f":"IF($A969=\"\",\"\",IF(VLOOKUP($G969,$H$11:$DN$1000,106,FALSE)=\"\",\"No\",IF(LEFT(VLOOKUP($G969,$H$11:$DN$1000,106,FALSE),3)=\"The\",EH969,VLOOKUP(VLOOKUP($G969,$H$11:$DN$1000,106,FALSE),DeclMatrix!$A$2:$F$5,VLOOKUP('Enrollment Form'!$B969,DeclMatrix!$A$8:$B$12,2,FALSE),FALSE))))","v":""},{"$f":"IF($A969=\"\",\"\",IF(VLOOKUP($G969,$H$11:$DN$1000,111,FALSE)=\"\",\"No\",IF(LEFT(VLOOKUP($G969,$H$11:$DN$1000,111,FALSE),3)=\"The\",EI969,VLOOKUP(VLOOKUP($G969,$H$11:$DN$1000,111,FALSE),DeclMatrix!$A$2:$F$5,VLOOKUP('Enrollment Form'!$B969,DeclMatrix!$A$8:$B$12,2,FALSE),FALSE))))","v":""},"",null,"","","","","","","","","","","",""]
["",{"$nulls":5},"","",{"$nulls":18},"","","","",{"$nulls":30},"","","","",{"$nulls":60},"",{"$f":"IF($A970=\"\",\"\",IF(VLOOKUP($G970,$H$11:$DN$1000,96,FALSE)=\"\",\"No\",IF(LEFT(VLOOKUP($G970,$H$11:$DN$1000,96,FALSE),3)=\"The\",EF970,VLOOKUP(VLOOKUP($G970,$H$11:$DN$1000,96,FALSE),DeclMatrix!$A$2:$F$5,VLOOKUP('Enrollment Form'!$B970,DeclMatrix!$A$8:$B$12,2,FALSE),FALSE))))","v":""},{"$f":"IF($A970=\"\",\"\",IF(VLOOKUP($G970,$H$11:$DN$1000,101,FALSE)=\"\",\"No\",IF(LEFT(VLOOKUP($G970,$H$11:$DN$1000,101,FALSE),3)=\"The\",EG970,VLOOKUP(VLOOKUP($G970,$H$11:$DN$1000,101,FALSE),DeclMatrix!$A$2:$F$5,VLOOKUP('Enrollment Form'!$B970,DeclMatrix!$A$8:$B$12,2,FALSE),FALSE))))","v":""},{"$f":"IF($A970=\"\",\"\",IF(VLOOKUP($G970,$H$11:$DN$1000,106,FALSE)=\"\",\"No\",IF(LEFT(VLOOKUP($G970,$H$11:$DN$1000,106,FALSE),3)=\"The\",EH970,VLOOKUP(VLOOKUP($G970,$H$11:$DN$1000,106,FALSE),DeclMatrix!$A$2:$F$5,VLOOKUP('Enrollment Form'!$B970,DeclMatrix!$A$8:$B$12,2,FALSE),FALSE))))","v":""},{"$f":"IF($A970=\"\",\"\",IF(VLOOKUP($G970,$H$11:$DN$1000,111,FALSE)=\"\",\"No\",IF(LEFT(VLOOKUP($G970,$H$11:$DN$1000,111,FALSE),3)=\"The\",EI970,VLOOKUP(VLOOKUP($G970,$H$11:$DN$1000,111,FALSE),DeclMatrix!$A$2:$F$5,VLOOKUP('Enrollment Form'!$B970,DeclMatrix!$A$8:$B$12,2,FALSE),FALSE))))","v":""},"",null,"","","","","","","","","","","",""]
[{"$f":"IF(LEN($B971)>0,$C$2,\"\")","v":""},{"$nulls":5},"","",{"$nulls":18},"","","","",{"$nulls":30},{"$f":"IF(AND($B971<>\"Subscriber\",$BH971=\"Yes\"),VLOOKUP($G971,$H$11:$Y$1000,15,FALSE),\"\")","v":""},{"$f":"IF(AND($B971<>\"Subscriber\",$BH971=\"Yes\"),VLOOKUP($G971,$H$11:$Y$1000,16,FALSE),\"\")","v":""},{"$f":"IF(AND($B971<>\"Subscriber\",$BH971=\"Yes\"),VLOOKUP($G971,$H$11:$Y$1000,17,FALSE),\"\")","v":""},{"$f":"IF(AND($B971<>\"Subscriber\",$BH971=\"Yes\"),VLOOKUP($G971,$H$11:$Y$1000,18,FALSE),\"\")","v":""},{"$nulls":60},{"$f":"IF($A971=\"\",\"\",IF($B971=\"Subscriber\",$AG971,VLOOKUP($G971,$H$11:$AG$1000,26,FALSE)))","v":""},{"$f":"IF($A971=\"\",\"\",IF(VLOOKUP($G971,$H$11:$DN$1000,96,FALSE)=\"\",\"No\",IF(LEFT(VLOOKUP($G971,$H$11:$DN$1000,96,FALSE),3)=\"The\",EF971,VLOOKUP(VLOOKUP($G971,$H$11:$DN$1000,96,FALSE),DeclMatrix!$A$2:$F$5,VLOOKUP('Enrollment Form'!$B971,DeclMatrix!$A$8:$B$12,2,FALSE),FALSE))))","v":""},{"$f":"IF($A971=\"\",\"\",IF(VLOOKUP($G971,$H$11:$DN$1000,101,FALSE)=\"\",\"No\",IF(LEFT(VLOOKUP($G971,$H$11:$DN$1000,101,FALSE),3)=\"The\",EG971,VLOOKUP(VLOOKUP($G971,$H$11:$DN$1000,101,FALSE),DeclMatrix!$A$2:$F$5,VLOOKUP('Enrollment Form'!$B971,DeclMatrix!$A$8:$B$12,2,FALSE),FALSE))))","v":""},{"$f":"IF($A971=\"\",\"\",IF(VLOOKUP($G971,$H$11:$DN$1000,106,FALSE)=\"\",\"No\",IF(LEFT(VLOOKUP($G971,$H$11:$DN$1000,106,FALSE),3)=\"The\",EH971,VLOOKUP(VLOOKUP($G971,$H$11:$DN$1000,106,FALSE),DeclMatrix!$A$2:$F$5,VLOOKUP('Enrollment Form'!$B971,DeclMatrix!$A$8:$B$12,2,FALSE),FALSE))))","v":""},{"$f":"IF($A971=\"\",\"\",IF(VLOOKUP($G971,$H$11:$DN$1000,111,FALSE)=\"\",\"No\",IF(LEFT(VLOOKUP($G971,$H$11:$DN$1000,111,FALSE),3)=\"The\",EI971,VLOOKUP(VLOOKUP($G971,$H$11:$DN$1000,111,FALSE),DeclMatrix!$A$2:$F$5,VLOOKUP('Enrollment Form'!$B971,DeclMatrix!$A$8:$B$12,2,FALSE),FALSE))))","v":""},"",null,{"$f":"$B971&$G971&$J971","v":""},{"$f":"$B971&$G971&$L971","v":""},{"$f":"$B971&$G971&$N971","v":""},{"$f":"$B971&$G971&$O971","v":""},"","","","",{"$f":"IF($A971=\"\",\"\",IF(AND($B971=\"Subscriber\",$I971<>\"Waive\",$I971<>\"\"),\"Yes\",IF(AND($B971<>\"Subscriber\",$BF971=\"Yes\"),VLOOKUP($G971,$H$11:$EM$1000,133,FALSE),IF(AND($C971=\"Enroll\",VLOOKUP($G972,$H$11:$EM$1000,96,FALSE)<>\"\"),VLOOKUP($DV971,$DW$2:$DX$3,2,FALSE),\"No\"))))","v":""},{"$f":"IF($A971=\"\",\"\",IF(AND($B971=\"Subscriber\",$K971<>\"Waive\",$K971<>\"\"),\"Yes\",IF(AND($B971<>\"Subscriber\",$BF971=\"Yes\"),VLOOKUP($G971,$H$11:$EM$1000,134,FALSE),IF(AND($C971=\"Enroll\",VLOOKUP($G972,$H$11:$EM$1000,101,FALSE)<>\"\"),VLOOKUP($DW971,$DW$2:$DX$3,2,FALSE),\"No\"))))","v":""},{"$f":"IF($A971=\"\",\"\",IF(AND($B971=\"Subscriber\",$M971<>\"Waive\",$M971<>\"\"),\"Yes\",IF(AND($B971<>\"Subscriber\",$BF971=\"Yes\"),VLOOKUP($G971,$H$11:$EM$1000,135,FALSE),IF(AND($C971=\"Enroll\",VLOOKUP($G972,$H$11:$EM$1000,106,FALSE)<>\"\"),VLOOKUP($DX971,$DW$2:$DX$3,2,FALSE),\"No\"))))","v":""},{"$f":"IF($A971=\"\",\"\",IF(AND($B971=\"Subscriber\",$O971<>\"Waive\",$O971<>\"\"),\"Yes\",IF(AND($B971<>\"Subscriber\",$BF971=\"Yes\"),VLOOKUP($G971,$H$11:$EM$1000,136,FALSE),IF(AND($C971=\"Enroll\",VLOOKUP($G972,$H$11:$EM$1000,111,FALSE)<>\"\"),VLOOKUP($DY971,$DW$2:$DX$3,2,FALSE),\"No\"))))","v":""}]
["",{"$nulls":5},{"$f":"IF(A972=\"\",\"\",IF(AND(B972<>\"Subscriber\",B972<>\"\"),G971,\"\"))","v":""},{"$f":"IF(AND(B972=\"Subscriber\",G972<>\"\"),G972,\"\")","v":""},{"$nulls":18},{"$f":"IF(AND($B972=\"Subscriber\",$Z972=\"Yes\"),V972,\"\")","v":""},{"$f":"IF(AND($B972=\"Subscriber\",$Z972=\"Yes\"),W972,\"\")","v":""},{"$f":"IF(AND($B972=\"Subscriber\",$Z972=\"Yes\"),X972,\"\")","v":""},{"$f":"IF(AND($B972=\"Subscriber\",$Z972=\"Yes\"),Y972,\"\")","v":""},{"$nulls":30},"","","","",{"$nulls":60},"",{"$f":"IF($A972=\"\",\"\",IF(VLOOKUP($G972,$H$11:$DN$1000,96,FALSE)=\"\",\"No\",IF(LEFT(VLOOKUP($G972,$H$11:$DN$1000,96,FALSE),3)=\"The\",EF972,VLOOKUP(VLOOKUP($G972,$H$11:$DN$1000,96,FALSE),DeclMatrix!$A$2:$F$5,VLOOKUP('Enrollment Form'!$B972,DeclMatrix!$A$8:$B$12,2,FALSE),FALSE))))","v":""},{"$f":"IF($A972=\"\",\"\",IF(VLOOKUP($G972,$H$11:$DN$1000,101,FALSE)=\"\",\"No\",IF(LEFT(VLOOKUP($G972,$H$11:$DN$1000,101,FALSE),3)=\"The\",EG972,VLOOKUP(VLOOKUP($G972,$H$11:$DN$1000,101,FALSE),DeclMatrix!$A$2:$F$5,VLOOKUP('Enrollment Form'!$B972,DeclMatrix!$A$8:$B$12,2,FALSE),FALSE))))","v":""},{"$f":"IF($A972=\"\",\"\",IF(VLOOKUP($G972,$H$11:$DN$1000,106,FALSE)=\"\",\"No\",IF(LEFT(VLOOKUP($G972,$H$11:$DN$1000,106,FALSE),3)=\"The\",EH972,VLOOKUP(VLOOKUP($G972,$H$11:$DN$1000,106,FALSE),DeclMatrix!$A$2:$F$5,VLOOKUP('Enrollment Form'!$B972,DeclMatrix!$A$8:$B$12,2,FALSE),FALSE))))","v":""},{"$f":"IF($A972=\"\",\"\",IF(VLOOKUP($G972,$H$11:$DN$1000,111,FALSE)=\"\",\"No\",IF(LEFT(VLOOKUP($G972,$H$11:$DN$1000,111,FALSE),3)=\"The\",EI972,VLOOKUP(VLOOKUP($G972,$H$11:$DN$1000,111,FALSE),DeclMatrix!$A$2:$F$5,VLOOKUP('Enrollment Form'!$B972,DeclMatrix!$A$8:$B$12,2,FALSE),FALSE))))","v":""},{"$f":"IF(A972<>\"\",\"1X\",\"\")","v":""},null,"","","","",{"$f":"IF($A972=\"\",\"\",IF($B972=\"Subscriber\",\"No\",IF(OR($CY972=\"\",$CY972=\"No\"),\"No\",\"Yes\")))","v":""},{"$f":"IF($A972=\"\",\"\",IF($B972=\"Subscriber\",\"No\",IF(OR($DD972=\"\",$DD972=\"No\"),\"No\",\"Yes\")))","v":""},{"$f":"IF($A972=\"\",\"\",IF($B972=\"Subscriber\",\"No\",IF(OR($DI972=\"\",$DI972=\"No\"),\"No\",\"Yes\")))","v":""},{"$f":"IF($A972=\"\",\"\",IF($B972=\"Subscriber\",\"No\",IF(OR($DN972=\"\",$DN972=\"No\"),\"No\",\"Yes\")))","v":""},"","","",""]
["",{"$nulls":5},"","",{"$nulls":18},"","","","",{"$nulls":30},"","","","",{"$nulls":60},"",{"$f":"IF($A973=\"\",\"\",IF(VLOOKUP($G973,$H$11:$DN$1000,96,FALSE)=\"\",\"No\",IF(LEFT(VLOOKUP($G973,$H$11:$DN$1000,96,FALSE),3)=\"The\",EF973,VLOOKUP(VLOOKUP($G973,$H$11:$DN$1000,96,FALSE),DeclMatrix!$A$2:$F$5,VLOOKUP('Enrollment Form'!$B973,DeclMatrix!$A$8:$B$12,2,FALSE),FALSE))))","v":""},{"$f":"IF($A973=\"\",\"\",IF(VLOOKUP($G973,$H$11:$DN$1000,101,FALSE)=\"\",\"No\",IF(LEFT(VLOOKUP($G973,$H$11:$DN$1000,101,FALSE),3)=\"The\",EG973,VLOOKUP(VLOOKUP($G973,$H$11:$DN$1000,101,FALSE),DeclMatrix!$A$2:$F$5,VLOOKUP('Enrollment Form'!$B973,DeclMatrix!$A$8:$B$12,2,FALSE),FALSE))))","v":""},{"$f":"IF($A973=\"\",\"\",IF(VLOOKUP($G973,$H$11:$DN$1000,106,FALSE)=\"\",\"No\",IF(LEFT(VLOOKUP($G973,$H$11:$DN$1000,106,FALSE),3)=\"The\",EH973,VLOOKUP(VLOOKUP($G973,$H$11:$DN$1000,106,FALSE),DeclMatrix!$A$2:$F$5,VLOOKUP('Enrollment Form'!$B973,DeclMatrix!$A$8:$B$12,2,FALSE),FALSE))))","v":""},{"$f":"IF($A973=\"\",\"\",IF(VLOOKUP($G973,$H$11:$DN$1000,111,FALSE)=\"\",\"No\",IF(LEFT(VLOOKUP($G973,$H$11:$DN$1000,111,FALSE),3)=\"The\",EI973,VLOOKUP(VLOOKUP($G973,$H$11:$DN$1000,111,FALSE),DeclMatrix!$A$2:$F$5,VLOOKUP('Enrollment Form'!$B973,DeclMatrix!$A$8:$B$12,2,FALSE),FALSE))))","v":""},"",null,"","","","","","","","","","","",""]
["",{"$nulls":5},"","",{"$nulls":18},"","","","",{"$nulls":30},"","","","",{"$nulls":60},"",{"$f":"IF($A974=\"\",\"\",IF(VLOOKUP($G974,$H$11:$DN$1000,96,FALSE)=\"\",\"No\",IF(LEFT(VLOOKUP($G974,$H$11:$DN$1000,96,FALSE),3)=\"The\",EF974,VLOOKUP(VLOOKUP($G974,$H$11:$DN$1000,96,FALSE),DeclMatrix!$A$2:$F$5,VLOOKUP('Enrollment Form'!$B974,DeclMatrix!$A$8:$B$12,2,FALSE),FALSE))))","v":""},{"$f":"IF($A974=\"\",\"\",IF(VLOOKUP($G974,$H$11:$DN$1000,101,FALSE)=\"\",\"No\",IF(LEFT(VLOOKUP($G974,$H$11:$DN$1000,101,FALSE),3)=\"The\",EG974,VLOOKUP(VLOOKUP($G974,$H$11:$DN$1000,101,FALSE),DeclMatrix!$A$2:$F$5,VLOOKUP('Enrollment Form'!$B974,DeclMatrix!$A$8:$B$12,2,FALSE),FALSE))))","v":""},{"$f":"IF($A974=\"\",\"\",IF(VLOOKUP($G974,$H$11:$DN$1000,106,FALSE)=\"\",\"No\",IF(LEFT(VLOOKUP($G974,$H$11:$DN$1000,106,FALSE),3)=\"The\",EH974,VLOOKUP(VLOOKUP($G974,$H$11:$DN$1000,106,FALSE),DeclMatrix!$A$2:$F$5,VLOOKUP('Enrollment Form'!$B974,DeclMatrix!$A$8:$B$12,2,FALSE),FALSE))))","v":""},{"$f":"IF($A974=\"\",\"\",IF(VLOOKUP($G974,$H$11:$DN$1000,111,FALSE)=\"\",\"No\",IF(LEFT(VLOOKUP($G974,$H$11:$DN$1000,111,FALSE),3)=\"The\",EI974,VLOOKUP(VLOOKUP($G974,$H$11:$DN$1000,111,FALSE),DeclMatrix!$A$2:$F$5,VLOOKUP('Enrollment Form'!$B974,DeclMatrix!$A$8:$B$12,2,FALSE),FALSE))))","v":""},"",null,"","","","","","","","","","","",""]
["",{"$nulls":5},"","",{"$nulls":18},"","","","",{"$nulls":30},"","","","",{"$nulls":60},"",{"$f":"IF($A975=\"\",\"\",IF(VLOOKUP($G975,$H$11:$DN$1000,96,FALSE)=\"\",\"No\",IF(LEFT(VLOOKUP($G975,$H$11:$DN$1000,96,FALSE),3)=\"The\",EF975,VLOOKUP(VLOOKUP($G975,$H$11:$DN$1000,96,FALSE),DeclMatrix!$A$2:$F$5,VLOOKUP('Enrollment Form'!$B975,DeclMatrix!$A$8:$B$12,2,FALSE),FALSE))))","v":""},{"$f":"IF($A975=\"\",\"\",IF(VLOOKUP($G975,$H$11:$DN$1000,101,FALSE)=\"\",\"No\",IF(LEFT(VLOOKUP($G975,$H$11:$DN$1000,101,FALSE),3)=\"The\",EG975,VLOOKUP(VLOOKUP($G975,$H$11:$DN$1000,101,FALSE),DeclMatrix!$A$2:$F$5,VLOOKUP('Enrollment Form'!$B975,DeclMatrix!$A$8:$B$12,2,FALSE),FALSE))))","v":""},{"$f":"IF($A975=\"\",\"\",IF(VLOOKUP($G975,$H$11:$DN$1000,106,FALSE)=\"\",\"No\",IF(LEFT(VLOOKUP($G975,$H$11:$DN$1000,106,FALSE),3)=\"The\",EH975,VLOOKUP(VLOOKUP($G975,$H$11:$DN$1000,106,FALSE),DeclMatrix!$A$2:$F$5,VLOOKUP('Enrollment Form'!$B975,DeclMatrix!$A$8:$B$12,2,FALSE),FALSE))))","v":""},{"$f":"IF($A975=\"\",\"\",IF(VLOOKUP($G975,$H$11:$DN$1000,111,FALSE)=\"\",\"No\",IF(LEFT(VLOOKUP($G975,$H$11:$DN$1000,111,FALSE),3)=\"The\",EI975,VLOOKUP(VLOOKUP($G975,$H$11:$DN$1000,111,FALSE),DeclMatrix!$A$2:$F$5,VLOOKUP('Enrollment Form'!$B975,DeclMatrix!$A$8:$B$12,2,FALSE),FALSE))))","v":""},"",null,"","","","","","","","","","","",""]
["",{"$nulls":5},"","",{"$nulls":18},"","","","",{"$nulls":30},"","","","",{"$nulls":60},"",{"$f":"IF($A976=\"\",\"\",IF(VLOOKUP($G976,$H$11:$DN$1000,96,FALSE)=\"\",\"No\",IF(LEFT(VLOOKUP($G976,$H$11:$DN$1000,96,FALSE),3)=\"The\",EF976,VLOOKUP(VLOOKUP($G976,$H$11:$DN$1000,96,FALSE),DeclMatrix!$A$2:$F$5,VLOOKUP('Enrollment Form'!$B976,DeclMatrix!$A$8:$B$12,2,FALSE),FALSE))))","v":""},{"$f":"IF($A976=\"\",\"\",IF(VLOOKUP($G976,$H$11:$DN$1000,101,FALSE)=\"\",\"No\",IF(LEFT(VLOOKUP($G976,$H$11:$DN$1000,101,FALSE),3)=\"The\",EG976,VLOOKUP(VLOOKUP($G976,$H$11:$DN$1000,101,FALSE),DeclMatrix!$A$2:$F$5,VLOOKUP('Enrollment Form'!$B976,DeclMatrix!$A$8:$B$12,2,FALSE),FALSE))))","v":""},{"$f":"IF($A976=\"\",\"\",IF(VLOOKUP($G976,$H$11:$DN$1000,106,FALSE)=\"\",\"No\",IF(LEFT(VLOOKUP($G976,$H$11:$DN$1000,106,FALSE),3)=\"The\",EH976,VLOOKUP(VLOOKUP($G976,$H$11:$DN$1000,106,FALSE),DeclMatrix!$A$2:$F$5,VLOOKUP('Enrollment Form'!$B976,DeclMatrix!$A$8:$B$12,2,FALSE),FALSE))))","v":""},{"$f":"IF($A976=\"\",\"\",IF(VLOOKUP($G976,$H$11:$DN$1000,111,FALSE)=\"\",\"No\",IF(LEFT(VLOOKUP($G976,$H$11:$DN$1000,111,FALSE),3)=\"The\",EI976,VLOOKUP(VLOOKUP($G976,$H$11:$DN$1000,111,FALSE),DeclMatrix!$A$2:$F$5,VLOOKUP('Enrollment Form'!$B976,DeclMatrix!$A$8:$B$12,2,FALSE),FALSE))))","v":""},"",null,"","","","","","","","","","","",""]
["",{"$nulls":5},"","",{"$nulls":18},"","","","",{"$nulls":30},"","","","",{"$nulls":60},"",{"$f":"IF($A977=\"\",\"\",IF(VLOOKUP($G977,$H$11:$DN$1000,96,FALSE)=\"\",\"No\",IF(LEFT(VLOOKUP($G977,$H$11:$DN$1000,96,FALSE),3)=\"The\",EF977,VLOOKUP(VLOOKUP($G977,$H$11:$DN$1000,96,FALSE),DeclMatrix!$A$2:$F$5,VLOOKUP('Enrollment Form'!$B977,DeclMatrix!$A$8:$B$12,2,FALSE),FALSE))))","v":""},{"$f":"IF($A977=\"\",\"\",IF(VLOOKUP($G977,$H$11:$DN$1000,101,FALSE)=\"\",\"No\",IF(LEFT(VLOOKUP($G977,$H$11:$DN$1000,101,FALSE),3)=\"The\",EG977,VLOOKUP(VLOOKUP($G977,$H$11:$DN$1000,101,FALSE),DeclMatrix!$A$2:$F$5,VLOOKUP('Enrollment Form'!$B977,DeclMatrix!$A$8:$B$12,2,FALSE),FALSE))))","v":""},{"$f":"IF($A977=\"\",\"\",IF(VLOOKUP($G977,$H$11:$DN$1000,106,FALSE)=\"\",\"No\",IF(LEFT(VLOOKUP($G977,$H$11:$DN$1000,106,FALSE),3)=\"The\",EH977,VLOOKUP(VLOOKUP($G977,$H$11:$DN$1000,106,FALSE),DeclMatrix!$A$2:$F$5,VLOOKUP('Enrollment Form'!$B977,DeclMatrix!$A$8:$B$12,2,FALSE),FALSE))))","v":""},{"$f":"IF($A977=\"\",\"\",IF(VLOOKUP($G977,$H$11:$DN$1000,111,FALSE)=\"\",\"No\",IF(LEFT(VLOOKUP($G977,$H$11:$DN$1000,111,FALSE),3)=\"The\",EI977,VLOOKUP(VLOOKUP($G977,$H$11:$DN$1000,111,FALSE),DeclMatrix!$A$2:$F$5,VLOOKUP('Enrollment Form'!$B977,DeclMatrix!$A$8:$B$12,2,FALSE),FALSE))))","v":""},"",null,"","","","","","","","","","","",""]
["",{"$nulls":5},"","",{"$nulls":18},"","","","",{"$nulls":30},"","","","",{"$nulls":60},"",{"$f":"IF($A978=\"\",\"\",IF(VLOOKUP($G978,$H$11:$DN$1000,96,FALSE)=\"\",\"No\",IF(LEFT(VLOOKUP($G978,$H$11:$DN$1000,96,FALSE),3)=\"The\",EF978,VLOOKUP(VLOOKUP($G978,$H$11:$DN$1000,96,FALSE),DeclMatrix!$A$2:$F$5,VLOOKUP('Enrollment Form'!$B978,DeclMatrix!$A$8:$B$12,2,FALSE),FALSE))))","v":""},{"$f":"IF($A978=\"\",\"\",IF(VLOOKUP($G978,$H$11:$DN$1000,101,FALSE)=\"\",\"No\",IF(LEFT(VLOOKUP($G978,$H$11:$DN$1000,101,FALSE),3)=\"The\",EG978,VLOOKUP(VLOOKUP($G978,$H$11:$DN$1000,101,FALSE),DeclMatrix!$A$2:$F$5,VLOOKUP('Enrollment Form'!$B978,DeclMatrix!$A$8:$B$12,2,FALSE),FALSE))))","v":""},{"$f":"IF($A978=\"\",\"\",IF(VLOOKUP($G978,$H$11:$DN$1000,106,FALSE)=\"\",\"No\",IF(LEFT(VLOOKUP($G978,$H$11:$DN$1000,106,FALSE),3)=\"The\",EH978,VLOOKUP(VLOOKUP($G978,$H$11:$DN$1000,106,FALSE),DeclMatrix!$A$2:$F$5,VLOOKUP('Enrollment Form'!$B978,DeclMatrix!$A$8:$B$12,2,FALSE),FALSE))))","v":""},{"$f":"IF($A978=\"\",\"\",IF(VLOOKUP($G978,$H$11:$DN$1000,111,FALSE)=\"\",\"No\",IF(LEFT(VLOOKUP($G978,$H$11:$DN$1000,111,FALSE),3)=\"The\",EI978,VLOOKUP(VLOOKUP($G978,$H$11:$DN$1000,111,FALSE),DeclMatrix!$A$2:$F$5,VLOOKUP('Enrollment Form'!$B978,DeclMatrix!$A$8:$B$12,2,FALSE),FALSE))))","v":""},"",null,"","","","","","","","","","","",""]
["",{"$nulls":5},"","",{"$nulls":18},"","","","",{"$nulls":30},"","","","",{"$nulls":60},"",{"$f":"IF($A979=\"\",\"\",IF(VLOOKUP($G979,$H$11:$DN$1000,96,FALSE)=\"\",\"No\",IF(LEFT(VLOOKUP($G979,$H$11:$DN$1000,96,FALSE),3)=\"The\",EF979,VLOOKUP(VLOOKUP($G979,$H$11:$DN$1000,96,FALSE),DeclMatrix!$A$2:$F$5,VLOOKUP('Enrollment Form'!$B979,DeclMatrix!$A$8:$B$12,2,FALSE),FALSE))))","v":""},{"$f":"IF($A979=\"\",\"\",IF(VLOOKUP($G979,$H$11:$DN$1000,101,FALSE)=\"\",\"No\",IF(LEFT(VLOOKUP($G979,$H$11:$DN$1000,101,FALSE),3)=\"The\",EG979,VLOOKUP(VLOOKUP($G979,$H$11:$DN$1000,101,FALSE),DeclMatrix!$A$2:$F$5,VLOOKUP('Enrollment Form'!$B979,DeclMatrix!$A$8:$B$12,2,FALSE),FALSE))))","v":""},{"$f":"IF($A979=\"\",\"\",IF(VLOOKUP($G979,$H$11:$DN$1000,106,FALSE)=\"\",\"No\",IF(LEFT(VLOOKUP($G979,$H$11:$DN$1000,106,FALSE),3)=\"The\",EH979,VLOOKUP(VLOOKUP($G979,$H$11:$DN$1000,106,FALSE),DeclMatrix!$A$2:$F$5,VLOOKUP('Enrollment Form'!$B979,DeclMatrix!$A$8:$B$12,2,FALSE),FALSE))))","v":""},{"$f":"IF($A979=\"\",\"\",IF(VLOOKUP($G979,$H$11:$DN$1000,111,FALSE)=\"\",\"No\",IF(LEFT(VLOOKUP($G979,$H$11:$DN$1000,111,FALSE),3)=\"The\",EI979,VLOOKUP(VLOOKUP($G979,$H$11:$DN$1000,111,FALSE),DeclMatrix!$A$2:$F$5,VLOOKUP('Enrollment Form'!$B979,DeclMatrix!$A$8:$B$12,2,FALSE),FALSE))))","v":""},"",null,"","","","","","","","","","","",""]
["",{"$nulls":5},"","",{"$nulls":18},"","","","",{"$nulls":30},"","","","",{"$nulls":60},"",{"$f":"IF($A980=\"\",\"\",IF(VLOOKUP($G980,$H$11:$DN$1000,96,FALSE)=\"\",\"No\",IF(LEFT(VLOOKUP($G980,$H$11:$DN$1000,96,FALSE),3)=\"The\",EF980,VLOOKUP(VLOOKUP($G980,$H$11:$DN$1000,96,FALSE),DeclMatrix!$A$2:$F$5,VLOOKUP('Enrollment Form'!$B980,DeclMatrix!$A$8:$B$12,2,FALSE),FALSE))))","v":""},{"$f":"IF($A980=\"\",\"\",IF(VLOOKUP($G980,$H$11:$DN$1000,101,FALSE)=\"\",\"No\",IF(LEFT(VLOOKUP($G980,$H$11:$DN$1000,101,FALSE),3)=\"The\",EG980,VLOOKUP(VLOOKUP($G980,$H$11:$DN$1000,101,FALSE),DeclMatrix!$A$2:$F$5,VLOOKUP('Enrollment Form'!$B980,DeclMatrix!$A$8:$B$12,2,FALSE),FALSE))))","v":""},{"$f":"IF($A980=\"\",\"\",IF(VLOOKUP($G980,$H$11:$DN$1000,106,FALSE)=\"\",\"No\",IF(LEFT(VLOOKUP($G980,$H$11:$DN$1000,106,FALSE),3)=\"The\",EH980,VLOOKUP(VLOOKUP($G980,$H$11:$DN$1000,106,FALSE),DeclMatrix!$A$2:$F$5,VLOOKUP('Enrollment Form'!$B980,DeclMatrix!$A$8:$B$12,2,FALSE),FALSE))))","v":""},{"$f":"IF($A980=\"\",\"\",IF(VLOOKUP($G980,$H$11:$DN$1000,111,FALSE)=\"\",\"No\",IF(LEFT(VLOOKUP($G980,$H$11:$DN$1000,111,FALSE),3)=\"The\",EI980,VLOOKUP(VLOOKUP($G980,$H$11:$DN$1000,111,FALSE),DeclMatrix!$A$2:$F$5,VLOOKUP('Enrollment Form'!$B980,DeclMatrix!$A$8:$B$12,2,FALSE),FALSE))))","v":""},"",null,"","","","","","","","","","","",""]
["",{"$nulls":5},"","",{"$nulls":18},"","","","",{"$nulls":30},"","","","",{"$nulls":60},"",{"$f":"IF($A981=\"\",\"\",IF(VLOOKUP($G981,$H$11:$DN$1000,96,FALSE)=\"\",\"No\",IF(LEFT(VLOOKUP($G981,$H$11:$DN$1000,96,FALSE),3)=\"The\",EF981,VLOOKUP(VLOOKUP($G981,$H$11:$DN$1000,96,FALSE),DeclMatrix!$A$2:$F$5,VLOOKUP('Enrollment Form'!$B981,DeclMatrix!$A$8:$B$12,2,FALSE),FALSE))))","v":""},{"$f":"IF($A981=\"\",\"\",IF(VLOOKUP($G981,$H$11:$DN$1000,101,FALSE)=\"\",\"No\",IF(LEFT(VLOOKUP($G981,$H$11:$DN$1000,101,FALSE),3)=\"The\",EG981,VLOOKUP(VLOOKUP($G981,$H$11:$DN$1000,101,FALSE),DeclMatrix!$A$2:$F$5,VLOOKUP('Enrollment Form'!$B981,DeclMatrix!$A$8:$B$12,2,FALSE),FALSE))))","v":""},{"$f":"IF($A981=\"\",\"\",IF(VLOOKUP($G981,$H$11:$DN$1000,106,FALSE)=\"\",\"No\",IF(LEFT(VLOOKUP($G981,$H$11:$DN$1000,106,FALSE),3)=\"The\",EH981,VLOOKUP(VLOOKUP($G981,$H$11:$DN$1000,106,FALSE),DeclMatrix!$A$2:$F$5,VLOOKUP('Enrollment Form'!$B981,DeclMatrix!$A$8:$B$12,2,FALSE),FALSE))))","v":""},{"$f":"IF($A981=\"\",\"\",IF(VLOOKUP($G981,$H$11:$DN$1000,111,FALSE)=\"\",\"No\",IF(LEFT(VLOOKUP($G981,$H$11:$DN$1000,111,FALSE),3)=\"The\",EI981,VLOOKUP(VLOOKUP($G981,$H$11:$DN$1000,111,FALSE),DeclMatrix!$A$2:$F$5,VLOOKUP('Enrollment Form'!$B981,DeclMatrix!$A$8:$B$12,2,FALSE),FALSE))))","v":""},"",null,"","","","","","","","","","","",""]
["",{"$nulls":5},"","",{"$nulls":18},"","","","",{"$nulls":30},"","","","",{"$nulls":60},"",{"$f":"IF($A982=\"\",\"\",IF(VLOOKUP($G982,$H$11:$DN$1000,96,FALSE)=\"\",\"No\",IF(LEFT(VLOOKUP($G982,$H$11:$DN$1000,96,FALSE),3)=\"The\",EF982,VLOOKUP(VLOOKUP($G982,$H$11:$DN$1000,96,FALSE),DeclMatrix!$A$2:$F$5,VLOOKUP('Enrollment Form'!$B982,DeclMatrix!$A$8:$B$12,2,FALSE),FALSE))))","v":""},{"$f":"IF($A982=\"\",\"\",IF(VLOOKUP($G982,$H$11:$DN$1000,101,FALSE)=\"\",\"No\",IF(LEFT(VLOOKUP($G982,$H$11:$DN$1000,101,FALSE),3)=\"The\",EG982,VLOOKUP(VLOOKUP($G982,$H$11:$DN$1000,101,FALSE),DeclMatrix!$A$2:$F$5,VLOOKUP('Enrollment Form'!$B982,DeclMatrix!$A$8:$B$12,2,FALSE),FALSE))))","v":""},{"$f":"IF($A982=\"\",\"\",IF(VLOOKUP($G982,$H$11:$DN$1000,106,FALSE)=\"\",\"No\",IF(LEFT(VLOOKUP($G982,$H$11:$DN$1000,106,FALSE),3)=\"The\",EH982,VLOOKUP(VLOOKUP($G982,$H$11:$DN$1000,106,FALSE),DeclMatrix!$A$2:$F$5,VLOOKUP('Enrollment Form'!$B982,DeclMatrix!$A$8:$B$12,2,FALSE),FALSE))))","v":""},{"$f":"IF($A982=\"\",\"\",IF(VLOOKUP($G982,$H$11:$DN$1000,111,FALSE)=\"\",\"No\",IF(LEFT(VLOOKUP($G982,$H$11:$DN$1000,111,FALSE),3)=\"The\",EI982,VLOOKUP(VLOOKUP($G982,$H$11:$DN$1000,111,FALSE),DeclMatrix!$A$2:$F$5,VLOOKUP('Enrollment Form'!$B982,DeclMatrix!$A$8:$B$12,2,FALSE),FALSE))))","v":""},"",null,"","","","","","","","","","","",""]
["",{"$nulls":5},"","",{"$nulls":18},"","","","",{"$nulls":30},"","","","",{"$nulls":60},"",{"$f":"IF($A983=\"\",\"\",IF(VLOOKUP($G983,$H$11:$DN$1000,96,FALSE)=\"\",\"No\",IF(LEFT(VLOOKUP($G983,$H$11:$DN$1000,96,FALSE),3)=\"The\",EF983,VLOOKUP(VLOOKUP($G983,$H$11:$DN$1000,96,FALSE),DeclMatrix!$A$2:$F$5,VLOOKUP('Enrollment Form'!$B983,DeclMatrix!$A$8:$B$12,2,FALSE),FALSE))))","v":""},{"$f":"IF($A983=\"\",\"\",IF(VLOOKUP($G983,$H$11:$DN$1000,101,FALSE)=\"\",\"No\",IF(LEFT(VLOOKUP($G983,$H$11:$DN$1000,101,FALSE),3)=\"The\",EG983,VLOOKUP(VLOOKUP($G983,$H$11:$DN$1000,101,FALSE),DeclMatrix!$A$2:$F$5,VLOOKUP('Enrollment Form'!$B983,DeclMatrix!$A$8:$B$12,2,FALSE),FALSE))))","v":""},{"$f":"IF($A983=\"\",\"\",IF(VLOOKUP($G983,$H$11:$DN$1000,106,FALSE)=\"\",\"No\",IF(LEFT(VLOOKUP($G983,$H$11:$DN$1000,106,FALSE),3)=\"The\",EH983,VLOOKUP(VLOOKUP($G983,$H$11:$DN$1000,106,FALSE),DeclMatrix!$A$2:$F$5,VLOOKUP('Enrollment Form'!$B983,DeclMatrix!$A$8:$B$12,2,FALSE),FALSE))))","v":""},{"$f":"IF($A983=\"\",\"\",IF(VLOOKUP($G983,$H$11:$DN$1000,111,FALSE)=\"\",\"No\",IF(LEFT(VLOOKUP($G983,$H$11:$DN$1000,111,FALSE),3)=\"The\",EI983,VLOOKUP(VLOOKUP($G983,$H$11:$DN$1000,111,FALSE),DeclMatrix!$A$2:$F$5,VLOOKUP('Enrollment Form'!$B983,DeclMatrix!$A$8:$B$12,2,FALSE),FALSE))))","v":""},"",null,"","","","","","","","","","","",""]
["",{"$nulls":5},"","",{"$nulls":18},"","","","",{"$nulls":30},"","","","",{"$nulls":60},"",{"$f":"IF($A984=\"\",\"\",IF(VLOOKUP($G984,$H$11:$DN$1000,96,FALSE)=\"\",\"No\",IF(LEFT(VLOOKUP($G984,$H$11:$DN$1000,96,FALSE),3)=\"The\",EF984,VLOOKUP(VLOOKUP($G984,$H$11:$DN$1000,96,FALSE),DeclMatrix!$A$2:$F$5,VLOOKUP('Enrollment Form'!$B984,DeclMatrix!$A$8:$B$12,2,FALSE),FALSE))))","v":""},{"$f":"IF($A984=\"\",\"\",IF(VLOOKUP($G984,$H$11:$DN$1000,101,FALSE)=\"\",\"No\",IF(LEFT(VLOOKUP($G984,$H$11:$DN$1000,101,FALSE),3)=\"The\",EG984,VLOOKUP(VLOOKUP($G984,$H$11:$DN$1000,101,FALSE),DeclMatrix!$A$2:$F$5,VLOOKUP('Enrollment Form'!$B984,DeclMatrix!$A$8:$B$12,2,FALSE),FALSE))))","v":""},{"$f":"IF($A984=\"\",\"\",IF(VLOOKUP($G984,$H$11:$DN$1000,106,FALSE)=\"\",\"No\",IF(LEFT(VLOOKUP($G984,$H$11:$DN$1000,106,FALSE),3)=\"The\",EH984,VLOOKUP(VLOOKUP($G984,$H$11:$DN$1000,106,FALSE),DeclMatrix!$A$2:$F$5,VLOOKUP('Enrollment Form'!$B984,DeclMatrix!$A$8:$B$12,2,FALSE),FALSE))))","v":""},{"$f":"IF($A984=\"\",\"\",IF(VLOOKUP($G984,$H$11:$DN$1000,111,FALSE)=\"\",\"No\",IF(LEFT(VLOOKUP($G984,$H$11:$DN$1000,111,FALSE),3)=\"The\",EI984,VLOOKUP(VLOOKUP($G984,$H$11:$DN$1000,111,FALSE),DeclMatrix!$A$2:$F$5,VLOOKUP('Enrollment Form'!$B984,DeclMatrix!$A$8:$B$12,2,FALSE),FALSE))))","v":""},"",null,"","","","","","","","","","","",""]
["",{"$nulls":5},"","",{"$nulls":18},"","","","",{"$nulls":30},"","","","",{"$nulls":60},"",{"$f":"IF($A985=\"\",\"\",IF(VLOOKUP($G985,$H$11:$DN$1000,96,FALSE)=\"\",\"No\",IF(LEFT(VLOOKUP($G985,$H$11:$DN$1000,96,FALSE),3)=\"The\",EF985,VLOOKUP(VLOOKUP($G985,$H$11:$DN$1000,96,FALSE),DeclMatrix!$A$2:$F$5,VLOOKUP('Enrollment Form'!$B985,DeclMatrix!$A$8:$B$12,2,FALSE),FALSE))))","v":""},{"$f":"IF($A985=\"\",\"\",IF(VLOOKUP($G985,$H$11:$DN$1000,101,FALSE)=\"\",\"No\",IF(LEFT(VLOOKUP($G985,$H$11:$DN$1000,101,FALSE),3)=\"The\",EG985,VLOOKUP(VLOOKUP($G985,$H$11:$DN$1000,101,FALSE),DeclMatrix!$A$2:$F$5,VLOOKUP('Enrollment Form'!$B985,DeclMatrix!$A$8:$B$12,2,FALSE),FALSE))))","v":""},{"$f":"IF($A985=\"\",\"\",IF(VLOOKUP($G985,$H$11:$DN$1000,106,FALSE)=\"\",\"No\",IF(LEFT(VLOOKUP($G985,$H$11:$DN$1000,106,FALSE),3)=\"The\",EH985,VLOOKUP(VLOOKUP($G985,$H$11:$DN$1000,106,FALSE),DeclMatrix!$A$2:$F$5,VLOOKUP('Enrollment Form'!$B985,DeclMatrix!$A$8:$B$12,2,FALSE),FALSE))))","v":""},{"$f":"IF($A985=\"\",\"\",IF(VLOOKUP($G985,$H$11:$DN$1000,111,FALSE)=\"\",\"No\",IF(LEFT(VLOOKUP($G985,$H$11:$DN$1000,111,FALSE),3)=\"The\",EI985,VLOOKUP(VLOOKUP($G985,$H$11:$DN$1000,111,FALSE),DeclMatrix!$A$2:$F$5,VLOOKUP('Enrollment Form'!$B985,DeclMatrix!$A$8:$B$12,2,FALSE),FALSE))))","v":""},"",null,"","","","","","","","","","","",""]
["",{"$nulls":5},"","",{"$nulls":18},"","","","",{"$nulls":30},"","","","",{"$nulls":60},"",{"$f":"IF($A986=\"\",\"\",IF(VLOOKUP($G986,$H$11:$DN$1000,96,FALSE)=\"\",\"No\",IF(LEFT(VLOOKUP($G986,$H$11:$DN$1000,96,FALSE),3)=\"The\",EF986,VLOOKUP(VLOOKUP($G986,$H$11:$DN$1000,96,FALSE),DeclMatrix!$A$2:$F$5,VLOOKUP('Enrollment Form'!$B986,DeclMatrix!$A$8:$B$12,2,FALSE),FALSE))))","v":""},{"$f":"IF($A986=\"\",\"\",IF(VLOOKUP($G986,$H$11:$DN$1000,101,FALSE)=\"\",\"No\",IF(LEFT(VLOOKUP($G986,$H$11:$DN$1000,101,FALSE),3)=\"The\",EG986,VLOOKUP(VLOOKUP($G986,$H$11:$DN$1000,101,FALSE),DeclMatrix!$A$2:$F$5,VLOOKUP('Enrollment Form'!$B986,DeclMatrix!$A$8:$B$12,2,FALSE),FALSE))))","v":""},{"$f":"IF($A986=\"\",\"\",IF(VLOOKUP($G986,$H$11:$DN$1000,106,FALSE)=\"\",\"No\",IF(LEFT(VLOOKUP($G986,$H$11:$DN$1000,106,FALSE),3)=\"The\",EH986,VLOOKUP(VLOOKUP($G986,$H$11:$DN$1000,106,FALSE),DeclMatrix!$A$2:$F$5,VLOOKUP('Enrollment Form'!$B986,DeclMatrix!$A$8:$B$12,2,FALSE),FALSE))))","v":""},{"$f":"IF($A986=\"\",\"\",IF(VLOOKUP($G986,$H$11:$DN$1000,111,FALSE)=\"\",\"No\",IF(LEFT(VLOOKUP($G986,$H$11:$DN$1000,111,FALSE),3)=\"The\",EI986,VLOOKUP(VLOOKUP($G986,$H$11:$DN$1000,111,FALSE),DeclMatrix!$A$2:$F$5,VLOOKUP('Enrollment Form'!$B986,DeclMatrix!$A$8:$B$12,2,FALSE),FALSE))))","v":""},"",null,"","","","","","","","","","","",""]
["",{"$nulls":5},"","",{"$nulls":18},"","","","",{"$nulls":30},"","","","",{"$nulls":60},"",{"$f":"IF($A987=\"\",\"\",IF(VLOOKUP($G987,$H$11:$DN$1000,96,FALSE)=\"\",\"No\",IF(LEFT(VLOOKUP($G987,$H$11:$DN$1000,96,FALSE),3)=\"The\",EF987,VLOOKUP(VLOOKUP($G987,$H$11:$DN$1000,96,FALSE),DeclMatrix!$A$2:$F$5,VLOOKUP('Enrollment Form'!$B987,DeclMatrix!$A$8:$B$12,2,FALSE),FALSE))))","v":""},{"$f":"IF($A987=\"\",\"\",IF(VLOOKUP($G987,$H$11:$DN$1000,101,FALSE)=\"\",\"No\",IF(LEFT(VLOOKUP($G987,$H$11:$DN$1000,101,FALSE),3)=\"The\",EG987,VLOOKUP(VLOOKUP($G987,$H$11:$DN$1000,101,FALSE),DeclMatrix!$A$2:$F$5,VLOOKUP('Enrollment Form'!$B987,DeclMatrix!$A$8:$B$12,2,FALSE),FALSE))))","v":""},{"$f":"IF($A987=\"\",\"\",IF(VLOOKUP($G987,$H$11:$DN$1000,106,FALSE)=\"\",\"No\",IF(LEFT(VLOOKUP($G987,$H$11:$DN$1000,106,FALSE),3)=\"The\",EH987,VLOOKUP(VLOOKUP($G987,$H$11:$DN$1000,106,FALSE),DeclMatrix!$A$2:$F$5,VLOOKUP('Enrollment Form'!$B987,DeclMatrix!$A$8:$B$12,2,FALSE),FALSE))))","v":""},{"$f":"IF($A987=\"\",\"\",IF(VLOOKUP($G987,$H$11:$DN$1000,111,FALSE)=\"\",\"No\",IF(LEFT(VLOOKUP($G987,$H$11:$DN$1000,111,FALSE),3)=\"The\",EI987,VLOOKUP(VLOOKUP($G987,$H$11:$DN$1000,111,FALSE),DeclMatrix!$A$2:$F$5,VLOOKUP('Enrollment Form'!$B987,DeclMatrix!$A$8:$B$12,2,FALSE),FALSE))))","v":""},"",null,"","","","","","","","","","","",""]
["",{"$nulls":5},"","",{"$nulls":18},"","","","",{"$nulls":30},"","","","",{"$nulls":60},"",{"$f":"IF($A988=\"\",\"\",IF(VLOOKUP($G988,$H$11:$DN$1000,96,FALSE)=\"\",\"No\",IF(LEFT(VLOOKUP($G988,$H$11:$DN$1000,96,FALSE),3)=\"The\",EF988,VLOOKUP(VLOOKUP($G988,$H$11:$DN$1000,96,FALSE),DeclMatrix!$A$2:$F$5,VLOOKUP('Enrollment Form'!$B988,DeclMatrix!$A$8:$B$12,2,FALSE),FALSE))))","v":""},{"$f":"IF($A988=\"\",\"\",IF(VLOOKUP($G988,$H$11:$DN$1000,101,FALSE)=\"\",\"No\",IF(LEFT(VLOOKUP($G988,$H$11:$DN$1000,101,FALSE),3)=\"The\",EG988,VLOOKUP(VLOOKUP($G988,$H$11:$DN$1000,101,FALSE),DeclMatrix!$A$2:$F$5,VLOOKUP('Enrollment Form'!$B988,DeclMatrix!$A$8:$B$12,2,FALSE),FALSE))))","v":""},{"$f":"IF($A988=\"\",\"\",IF(VLOOKUP($G988,$H$11:$DN$1000,106,FALSE)=\"\",\"No\",IF(LEFT(VLOOKUP($G988,$H$11:$DN$1000,106,FALSE),3)=\"The\",EH988,VLOOKUP(VLOOKUP($G988,$H$11:$DN$1000,106,FALSE),DeclMatrix!$A$2:$F$5,VLOOKUP('Enrollment Form'!$B988,DeclMatrix!$A$8:$B$12,2,FALSE),FALSE))))","v":""},{"$f":"IF($A988=\"\",\"\",IF(VLOOKUP($G988,$H$11:$DN$1000,111,FALSE)=\"\",\"No\",IF(LEFT(VLOOKUP($G988,$H$11:$DN$1000,111,FALSE),3)=\"The\",EI988,VLOOKUP(VLOOKUP($G988,$H$11:$DN$1000,111,FALSE),DeclMatrix!$A$2:$F$5,VLOOKUP('Enrollment Form'!$B988,DeclMatrix!$A$8:$B$12,2,FALSE),FALSE))))","v":""},"",null,"","","","","","","","","","","",""]
["",{"$nulls":5},"","",{"$nulls":18},"","","","",{"$nulls":30},"","","","",{"$nulls":60},"",{"$f":"IF($A989=\"\",\"\",IF(VLOOKUP($G989,$H$11:$DN$1000,96,FALSE)=\"\",\"No\",IF(LEFT(VLOOKUP($G989,$H$11:$DN$1000,96,FALSE),3)=\"The\",EF989,VLOOKUP(VLOOKUP($G989,$H$11:$DN$1000,96,FALSE),DeclMatrix!$A$2:$F$5,VLOOKUP('Enrollment Form'!$B989,DeclMatrix!$A$8:$B$12,2,FALSE),FALSE))))","v":""},{"$f":"IF($A989=\"\",\"\",IF(VLOOKUP($G989,$H$11:$DN$1000,101,FALSE)=\"\",\"No\",IF(LEFT(VLOOKUP($G989,$H$11:$DN$1000,101,FALSE),3)=\"The\",EG989,VLOOKUP(VLOOKUP($G989,$H$11:$DN$1000,101,FALSE),DeclMatrix!$A$2:$F$5,VLOOKUP('Enrollment Form'!$B989,DeclMatrix!$A$8:$B$12,2,FALSE),FALSE))))","v":""},{"$f":"IF($A989=\"\",\"\",IF(VLOOKUP($G989,$H$11:$DN$1000,106,FALSE)=\"\",\"No\",IF(LEFT(VLOOKUP($G989,$H$11:$DN$1000,106,FALSE),3)=\"The\",EH989,VLOOKUP(VLOOKUP($G989,$H$11:$DN$1000,106,FALSE),DeclMatrix!$A$2:$F$5,VLOOKUP('Enrollment Form'!$B989,DeclMatrix!$A$8:$B$12,2,FALSE),FALSE))))","v":""},{"$f":"IF($A989=\"\",\"\",IF(VLOOKUP($G989,$H$11:$DN$1000,111,FALSE)=\"\",\"No\",IF(LEFT(VLOOKUP($G989,$H$11:$DN$1000,111,FALSE),3)=\"The\",EI989,VLOOKUP(VLOOKUP($G989,$H$11:$DN$1000,111,FALSE),DeclMatrix!$A$2:$F$5,VLOOKUP('Enrollment Form'!$B989,DeclMatrix!$A$8:$B$12,2,FALSE),FALSE))))","v":""},"",null,"","","","","","","","","","","",""]
["",{"$nulls":5},"","",{"$nulls":18},"","","","",{"$nulls":30},"","","","",{"$nulls":60},"",{"$f":"IF($A990=\"\",\"\",IF(VLOOKUP($G990,$H$11:$DN$1000,96,FALSE)=\"\",\"No\",IF(LEFT(VLOOKUP($G990,$H$11:$DN$1000,96,FALSE),3)=\"The\",EF990,VLOOKUP(VLOOKUP($G990,$H$11:$DN$1000,96,FALSE),DeclMatrix!$A$2:$F$5,VLOOKUP('Enrollment Form'!$B990,DeclMatrix!$A$8:$B$12,2,FALSE),FALSE))))","v":""},{"$f":"IF($A990=\"\",\"\",IF(VLOOKUP($G990,$H$11:$DN$1000,101,FALSE)=\"\",\"No\",IF(LEFT(VLOOKUP($G990,$H$11:$DN$1000,101,FALSE),3)=\"The\",EG990,VLOOKUP(VLOOKUP($G990,$H$11:$DN$1000,101,FALSE),DeclMatrix!$A$2:$F$5,VLOOKUP('Enrollment Form'!$B990,DeclMatrix!$A$8:$B$12,2,FALSE),FALSE))))","v":""},{"$f":"IF($A990=\"\",\"\",IF(VLOOKUP($G990,$H$11:$DN$1000,106,FALSE)=\"\",\"No\",IF(LEFT(VLOOKUP($G990,$H$11:$DN$1000,106,FALSE),3)=\"The\",EH990,VLOOKUP(VLOOKUP($G990,$H$11:$DN$1000,106,FALSE),DeclMatrix!$A$2:$F$5,VLOOKUP('Enrollment Form'!$B990,DeclMatrix!$A$8:$B$12,2,FALSE),FALSE))))","v":""},{"$f":"IF($A990=\"\",\"\",IF(VLOOKUP($G990,$H$11:$DN$1000,111,FALSE)=\"\",\"No\",IF(LEFT(VLOOKUP($G990,$H$11:$DN$1000,111,FALSE),3)=\"The\",EI990,VLOOKUP(VLOOKUP($G990,$H$11:$DN$1000,111,FALSE),DeclMatrix!$A$2:$F$5,VLOOKUP('Enrollment Form'!$B990,DeclMatrix!$A$8:$B$12,2,FALSE),FALSE))))","v":""},"",null,"","","","","","","","","","","",""]
["",{"$nulls":5},"","",{"$nulls":18},"","","","",{"$nulls":30},"","","","",{"$nulls":60},"",{"$f":"IF($A991=\"\",\"\",IF(VLOOKUP($G991,$H$11:$DN$1000,96,FALSE)=\"\",\"No\",IF(LEFT(VLOOKUP($G991,$H$11:$DN$1000,96,FALSE),3)=\"The\",EF991,VLOOKUP(VLOOKUP($G991,$H$11:$DN$1000,96,FALSE),DeclMatrix!$A$2:$F$5,VLOOKUP('Enrollment Form'!$B991,DeclMatrix!$A$8:$B$12,2,FALSE),FALSE))))","v":""},{"$f":"IF($A991=\"\",\"\",IF(VLOOKUP($G991,$H$11:$DN$1000,101,FALSE)=\"\",\"No\",IF(LEFT(VLOOKUP($G991,$H$11:$DN$1000,101,FALSE),3)=\"The\",EG991,VLOOKUP(VLOOKUP($G991,$H$11:$DN$1000,101,FALSE),DeclMatrix!$A$2:$F$5,VLOOKUP('Enrollment Form'!$B991,DeclMatrix!$A$8:$B$12,2,FALSE),FALSE))))","v":""},{"$f":"IF($A991=\"\",\"\",IF(VLOOKUP($G991,$H$11:$DN$1000,106,FALSE)=\"\",\"No\",IF(LEFT(VLOOKUP($G991,$H$11:$DN$1000,106,FALSE),3)=\"The\",EH991,VLOOKUP(VLOOKUP($G991,$H$11:$DN$1000,106,FALSE),DeclMatrix!$A$2:$F$5,VLOOKUP('Enrollment Form'!$B991,DeclMatrix!$A$8:$B$12,2,FALSE),FALSE))))","v":""},{"$f":"IF($A991=\"\",\"\",IF(VLOOKUP($G991,$H$11:$DN$1000,111,FALSE)=\"\",\"No\",IF(LEFT(VLOOKUP($G991,$H$11:$DN$1000,111,FALSE),3)=\"The\",EI991,VLOOKUP(VLOOKUP($G991,$H$11:$DN$1000,111,FALSE),DeclMatrix!$A$2:$F$5,VLOOKUP('Enrollment Form'!$B991,DeclMatrix!$A$8:$B$12,2,FALSE),FALSE))))","v":""},"",null,"","","","","","","","","","","",""]
["",{"$nulls":5},"","",{"$nulls":18},"","","","",{"$nulls":30},"","","","",{"$nulls":60},"",{"$f":"IF($A992=\"\",\"\",IF(VLOOKUP($G992,$H$11:$DN$1000,96,FALSE)=\"\",\"No\",IF(LEFT(VLOOKUP($G992,$H$11:$DN$1000,96,FALSE),3)=\"The\",EF992,VLOOKUP(VLOOKUP($G992,$H$11:$DN$1000,96,FALSE),DeclMatrix!$A$2:$F$5,VLOOKUP('Enrollment Form'!$B992,DeclMatrix!$A$8:$B$12,2,FALSE),FALSE))))","v":""},{"$f":"IF($A992=\"\",\"\",IF(VLOOKUP($G992,$H$11:$DN$1000,101,FALSE)=\"\",\"No\",IF(LEFT(VLOOKUP($G992,$H$11:$DN$1000,101,FALSE),3)=\"The\",EG992,VLOOKUP(VLOOKUP($G992,$H$11:$DN$1000,101,FALSE),DeclMatrix!$A$2:$F$5,VLOOKUP('Enrollment Form'!$B992,DeclMatrix!$A$8:$B$12,2,FALSE),FALSE))))","v":""},{"$f":"IF($A992=\"\",\"\",IF(VLOOKUP($G992,$H$11:$DN$1000,106,FALSE)=\"\",\"No\",IF(LEFT(VLOOKUP($G992,$H$11:$DN$1000,106,FALSE),3)=\"The\",EH992,VLOOKUP(VLOOKUP($G992,$H$11:$DN$1000,106,FALSE),DeclMatrix!$A$2:$F$5,VLOOKUP('Enrollment Form'!$B992,DeclMatrix!$A$8:$B$12,2,FALSE),FALSE))))","v":""},{"$f":"IF($A992=\"\",\"\",IF(VLOOKUP($G992,$H$11:$DN$1000,111,FALSE)=\"\",\"No\",IF(LEFT(VLOOKUP($G992,$H$11:$DN$1000,111,FALSE),3)=\"The\",EI992,VLOOKUP(VLOOKUP($G992,$H$11:$DN$1000,111,FALSE),DeclMatrix!$A$2:$F$5,VLOOKUP('Enrollment Form'!$B992,DeclMatrix!$A$8:$B$12,2,FALSE),FALSE))))","v":""},"",null,"","","","","","","","","","","",""]
["",{"$nulls":5},"","",{"$nulls":18},"","","","",{"$nulls":30},"","","","",{"$nulls":60},"",{"$f":"IF($A993=\"\",\"\",IF(VLOOKUP($G993,$H$11:$DN$1000,96,FALSE)=\"\",\"No\",IF(LEFT(VLOOKUP($G993,$H$11:$DN$1000,96,FALSE),3)=\"The\",EF993,VLOOKUP(VLOOKUP($G993,$H$11:$DN$1000,96,FALSE),DeclMatrix!$A$2:$F$5,VLOOKUP('Enrollment Form'!$B993,DeclMatrix!$A$8:$B$12,2,FALSE),FALSE))))","v":""},{"$f":"IF($A993=\"\",\"\",IF(VLOOKUP($G993,$H$11:$DN$1000,101,FALSE)=\"\",\"No\",IF(LEFT(VLOOKUP($G993,$H$11:$DN$1000,101,FALSE),3)=\"The\",EG993,VLOOKUP(VLOOKUP($G993,$H$11:$DN$1000,101,FALSE),DeclMatrix!$A$2:$F$5,VLOOKUP('Enrollment Form'!$B993,DeclMatrix!$A$8:$B$12,2,FALSE),FALSE))))","v":""},{"$f":"IF($A993=\"\",\"\",IF(VLOOKUP($G993,$H$11:$DN$1000,106,FALSE)=\"\",\"No\",IF(LEFT(VLOOKUP($G993,$H$11:$DN$1000,106,FALSE),3)=\"The\",EH993,VLOOKUP(VLOOKUP($G993,$H$11:$DN$1000,106,FALSE),DeclMatrix!$A$2:$F$5,VLOOKUP('Enrollment Form'!$B993,DeclMatrix!$A$8:$B$12,2,FALSE),FALSE))))","v":""},{"$f":"IF($A993=\"\",\"\",IF(VLOOKUP($G993,$H$11:$DN$1000,111,FALSE)=\"\",\"No\",IF(LEFT(VLOOKUP($G993,$H$11:$DN$1000,111,FALSE),3)=\"The\",EI993,VLOOKUP(VLOOKUP($G993,$H$11:$DN$1000,111,FALSE),DeclMatrix!$A$2:$F$5,VLOOKUP('Enrollment Form'!$B993,DeclMatrix!$A$8:$B$12,2,FALSE),FALSE))))","v":""},"",null,"","","","","","","","","","","",""]
["",{"$nulls":5},"","",{"$nulls":18},"","","","",{"$nulls":30},"","","","",{"$nulls":60},"",{"$f":"IF($A994=\"\",\"\",IF(VLOOKUP($G994,$H$11:$DN$1000,96,FALSE)=\"\",\"No\",IF(LEFT(VLOOKUP($G994,$H$11:$DN$1000,96,FALSE),3)=\"The\",EF994,VLOOKUP(VLOOKUP($G994,$H$11:$DN$1000,96,FALSE),DeclMatrix!$A$2:$F$5,VLOOKUP('Enrollment Form'!$B994,DeclMatrix!$A$8:$B$12,2,FALSE),FALSE))))","v":""},{"$f":"IF($A994=\"\",\"\",IF(VLOOKUP($G994,$H$11:$DN$1000,101,FALSE)=\"\",\"No\",IF(LEFT(VLOOKUP($G994,$H$11:$DN$1000,101,FALSE),3)=\"The\",EG994,VLOOKUP(VLOOKUP($G994,$H$11:$DN$1000,101,FALSE),DeclMatrix!$A$2:$F$5,VLOOKUP('Enrollment Form'!$B994,DeclMatrix!$A$8:$B$12,2,FALSE),FALSE))))","v":""},{"$f":"IF($A994=\"\",\"\",IF(VLOOKUP($G994,$H$11:$DN$1000,106,FALSE)=\"\",\"No\",IF(LEFT(VLOOKUP($G994,$H$11:$DN$1000,106,FALSE),3)=\"The\",EH994,VLOOKUP(VLOOKUP($G994,$H$11:$DN$1000,106,FALSE),DeclMatrix!$A$2:$F$5,VLOOKUP('Enrollment Form'!$B994,DeclMatrix!$A$8:$B$12,2,FALSE),FALSE))))","v":""},{"$f":"IF($A994=\"\",\"\",IF(VLOOKUP($G994,$H$11:$DN$1000,111,FALSE)=\"\",\"No\",IF(LEFT(VLOOKUP($G994,$H$11:$DN$1000,111,FALSE),3)=\"The\",EI994,VLOOKUP(VLOOKUP($G994,$H$11:$DN$1000,111,FALSE),DeclMatrix!$A$2:$F$5,VLOOKUP('Enrollment Form'!$B994,DeclMatrix!$A$8:$B$12,2,FALSE),FALSE))))","v":""},"",null,"","","","","","","","","","","",""]
["",{"$nulls":5},"","",{"$nulls":18},"","","","",{"$nulls":30},"","","","",{"$nulls":60},"",{"$f":"IF($A995=\"\",\"\",IF(VLOOKUP($G995,$H$11:$DN$1000,96,FALSE)=\"\",\"No\",IF(LEFT(VLOOKUP($G995,$H$11:$DN$1000,96,FALSE),3)=\"The\",EF995,VLOOKUP(VLOOKUP($G995,$H$11:$DN$1000,96,FALSE),DeclMatrix!$A$2:$F$5,VLOOKUP('Enrollment Form'!$B995,DeclMatrix!$A$8:$B$12,2,FALSE),FALSE))))","v":""},{"$f":"IF($A995=\"\",\"\",IF(VLOOKUP($G995,$H$11:$DN$1000,101,FALSE)=\"\",\"No\",IF(LEFT(VLOOKUP($G995,$H$11:$DN$1000,101,FALSE),3)=\"The\",EG995,VLOOKUP(VLOOKUP($G995,$H$11:$DN$1000,101,FALSE),DeclMatrix!$A$2:$F$5,VLOOKUP('Enrollment Form'!$B995,DeclMatrix!$A$8:$B$12,2,FALSE),FALSE))))","v":""},{"$f":"IF($A995=\"\",\"\",IF(VLOOKUP($G995,$H$11:$DN$1000,106,FALSE)=\"\",\"No\",IF(LEFT(VLOOKUP($G995,$H$11:$DN$1000,106,FALSE),3)=\"The\",EH995,VLOOKUP(VLOOKUP($G995,$H$11:$DN$1000,106,FALSE),DeclMatrix!$A$2:$F$5,VLOOKUP('Enrollment Form'!$B995,DeclMatrix!$A$8:$B$12,2,FALSE),FALSE))))","v":""},{"$f":"IF($A995=\"\",\"\",IF(VLOOKUP($G995,$H$11:$DN$1000,111,FALSE)=\"\",\"No\",IF(LEFT(VLOOKUP($G995,$H$11:$DN$1000,111,FALSE),3)=\"The\",EI995,VLOOKUP(VLOOKUP($G995,$H$11:$DN$1000,111,FALSE),DeclMatrix!$A$2:$F$5,VLOOKUP('Enrollment Form'!$B995,DeclMatrix!$A$8:$B$12,2,FALSE),FALSE))))","v":""},"",null,"","","","","","","","","","","",""]
["",{"$nulls":5},"","",{"$nulls":18},"","","","",{"$nulls":30},"","","","",{"$nulls":60},"",{"$f":"IF($A996=\"\",\"\",IF(VLOOKUP($G996,$H$11:$DN$1000,96,FALSE)=\"\",\"No\",IF(LEFT(VLOOKUP($G996,$H$11:$DN$1000,96,FALSE),3)=\"The\",EF996,VLOOKUP(VLOOKUP($G996,$H$11:$DN$1000,96,FALSE),DeclMatrix!$A$2:$F$5,VLOOKUP('Enrollment Form'!$B996,DeclMatrix!$A$8:$B$12,2,FALSE),FALSE))))","v":""},{"$f":"IF($A996=\"\",\"\",IF(VLOOKUP($G996,$H$11:$DN$1000,101,FALSE)=\"\",\"No\",IF(LEFT(VLOOKUP($G996,$H$11:$DN$1000,101,FALSE),3)=\"The\",EG996,VLOOKUP(VLOOKUP($G996,$H$11:$DN$1000,101,FALSE),DeclMatrix!$A$2:$F$5,VLOOKUP('Enrollment Form'!$B996,DeclMatrix!$A$8:$B$12,2,FALSE),FALSE))))","v":""},{"$f":"IF($A996=\"\",\"\",IF(VLOOKUP($G996,$H$11:$DN$1000,106,FALSE)=\"\",\"No\",IF(LEFT(VLOOKUP($G996,$H$11:$DN$1000,106,FALSE),3)=\"The\",EH996,VLOOKUP(VLOOKUP($G996,$H$11:$DN$1000,106,FALSE),DeclMatrix!$A$2:$F$5,VLOOKUP('Enrollment Form'!$B996,DeclMatrix!$A$8:$B$12,2,FALSE),FALSE))))","v":""},{"$f":"IF($A996=\"\",\"\",IF(VLOOKUP($G996,$H$11:$DN$1000,111,FALSE)=\"\",\"No\",IF(LEFT(VLOOKUP($G996,$H$11:$DN$1000,111,FALSE),3)=\"The\",EI996,VLOOKUP(VLOOKUP($G996,$H$11:$DN$1000,111,FALSE),DeclMatrix!$A$2:$F$5,VLOOKUP('Enrollment Form'!$B996,DeclMatrix!$A$8:$B$12,2,FALSE),FALSE))))","v":""},"",null,"","","","","","","","","","","",""]
["",{"$nulls":5},"","",{"$nulls":18},"","","","",{"$nulls":30},"","","","",{"$nulls":60},"",{"$f":"IF($A997=\"\",\"\",IF(VLOOKUP($G997,$H$11:$DN$1000,96,FALSE)=\"\",\"No\",IF(LEFT(VLOOKUP($G997,$H$11:$DN$1000,96,FALSE),3)=\"The\",EF997,VLOOKUP(VLOOKUP($G997,$H$11:$DN$1000,96,FALSE),DeclMatrix!$A$2:$F$5,VLOOKUP('Enrollment Form'!$B997,DeclMatrix!$A$8:$B$12,2,FALSE),FALSE))))","v":""},{"$f":"IF($A997=\"\",\"\",IF(VLOOKUP($G997,$H$11:$DN$1000,101,FALSE)=\"\",\"No\",IF(LEFT(VLOOKUP($G997,$H$11:$DN$1000,101,FALSE),3)=\"The\",EG997,VLOOKUP(VLOOKUP($G997,$H$11:$DN$1000,101,FALSE),DeclMatrix!$A$2:$F$5,VLOOKUP('Enrollment Form'!$B997,DeclMatrix!$A$8:$B$12,2,FALSE),FALSE))))","v":""},{"$f":"IF($A997=\"\",\"\",IF(VLOOKUP($G997,$H$11:$DN$1000,106,FALSE)=\"\",\"No\",IF(LEFT(VLOOKUP($G997,$H$11:$DN$1000,106,FALSE),3)=\"The\",EH997,VLOOKUP(VLOOKUP($G997,$H$11:$DN$1000,106,FALSE),DeclMatrix!$A$2:$F$5,VLOOKUP('Enrollment Form'!$B997,DeclMatrix!$A$8:$B$12,2,FALSE),FALSE))))","v":""},{"$f":"IF($A997=\"\",\"\",IF(VLOOKUP($G997,$H$11:$DN$1000,111,FALSE)=\"\",\"No\",IF(LEFT(VLOOKUP($G997,$H$11:$DN$1000,111,FALSE),3)=\"The\",EI997,VLOOKUP(VLOOKUP($G997,$H$11:$DN$1000,111,FALSE),DeclMatrix!$A$2:$F$5,VLOOKUP('Enrollment Form'!$B997,DeclMatrix!$A$8:$B$12,2,FALSE),FALSE))))","v":""},"",null,"","","","","","","","","","","",""]
["",{"$nulls":5},"","",{"$nulls":18},"","","","",{"$nulls":30},"","","","",{"$nulls":60},"",{"$f":"IF($A998=\"\",\"\",IF(VLOOKUP($G998,$H$11:$DN$1000,96,FALSE)=\"\",\"No\",IF(LEFT(VLOOKUP($G998,$H$11:$DN$1000,96,FALSE),3)=\"The\",EF998,VLOOKUP(VLOOKUP($G998,$H$11:$DN$1000,96,FALSE),DeclMatrix!$A$2:$F$5,VLOOKUP('Enrollment Form'!$B998,DeclMatrix!$A$8:$B$12,2,FALSE),FALSE))))","v":""},{"$f":"IF($A998=\"\",\"\",IF(VLOOKUP($G998,$H$11:$DN$1000,101,FALSE)=\"\",\"No\",IF(LEFT(VLOOKUP($G998,$H$11:$DN$1000,101,FALSE),3)=\"The\",EG998,VLOOKUP(VLOOKUP($G998,$H$11:$DN$1000,101,FALSE),DeclMatrix!$A$2:$F$5,VLOOKUP('Enrollment Form'!$B998,DeclMatrix!$A$8:$B$12,2,FALSE),FALSE))))","v":""},{"$f":"IF($A998=\"\",\"\",IF(VLOOKUP($G998,$H$11:$DN$1000,106,FALSE)=\"\",\"No\",IF(LEFT(VLOOKUP($G998,$H$11:$DN$1000,106,FALSE),3)=\"The\",EH998,VLOOKUP(VLOOKUP($G998,$H$11:$DN$1000,106,FALSE),DeclMatrix!$A$2:$F$5,VLOOKUP('Enrollment Form'!$B998,DeclMatrix!$A$8:$B$12,2,FALSE),FALSE))))","v":""},{"$f":"IF($A998=\"\",\"\",IF(VLOOKUP($G998,$H$11:$DN$1000,111,FALSE)=\"\",\"No\",IF(LEFT(VLOOKUP($G998,$H$11:$DN$1000,111,FALSE),3)=\"The\",EI998,VLOOKUP(VLOOKUP($G998,$H$11:$DN$1000,111,FALSE),DeclMatrix!$A$2:$F$5,VLOOKUP('Enrollment Form'!$B998,DeclMatrix!$A$8:$B$12,2,FALSE),FALSE))))","v":""},"",null,"","","","","","","","","","","",""]
["",{"$nulls":5},"","",{"$nulls":18},"","","","",{"$nulls":30},"","","","",{"$nulls":60},"",{"$f":"IF($A999=\"\",\"\",IF(VLOOKUP($G999,$H$11:$DN$1000,96,FALSE)=\"\",\"No\",IF(LEFT(VLOOKUP($G999,$H$11:$DN$1000,96,FALSE),3)=\"The\",EF999,VLOOKUP(VLOOKUP($G999,$H$11:$DN$1000,96,FALSE),DeclMatrix!$A$2:$F$5,VLOOKUP('Enrollment Form'!$B999,DeclMatrix!$A$8:$B$12,2,FALSE),FALSE))))","v":""},{"$f":"IF($A999=\"\",\"\",IF(VLOOKUP($G999,$H$11:$DN$1000,101,FALSE)=\"\",\"No\",IF(LEFT(VLOOKUP($G999,$H$11:$DN$1000,101,FALSE),3)=\"The\",EG999,VLOOKUP(VLOOKUP($G999,$H$11:$DN$1000,101,FALSE),DeclMatrix!$A$2:$F$5,VLOOKUP('Enrollment Form'!$B999,DeclMatrix!$A$8:$B$12,2,FALSE),FALSE))))","v":""},{"$f":"IF($A999=\"\",\"\",IF(VLOOKUP($G999,$H$11:$DN$1000,106,FALSE)=\"\",\"No\",IF(LEFT(VLOOKUP($G999,$H$11:$DN$1000,106,FALSE),3)=\"The\",EH999,VLOOKUP(VLOOKUP($G999,$H$11:$DN$1000,106,FALSE),DeclMatrix!$A$2:$F$5,VLOOKUP('Enrollment Form'!$B999,DeclMatrix!$A$8:$B$12,2,FALSE),FALSE))))","v":""},{"$f":"IF($A999=\"\",\"\",IF(VLOOKUP($G999,$H$11:$DN$1000,111,FALSE)=\"\",\"No\",IF(LEFT(VLOOKUP($G999,$H$11:$DN$1000,111,FALSE),3)=\"The\",EI999,VLOOKUP(VLOOKUP($G999,$H$11:$DN$1000,111,FALSE),DeclMatrix!$A$2:$F$5,VLOOKUP('Enrollment Form'!$B999,DeclMatrix!$A$8:$B$12,2,FALSE),FALSE))))","v":""},"",null,"","","","","","","","","","","",""]
["",{"$nulls":5},"","",{"$nulls":18},"","","","",{"$nulls":30},"","","","",{"$nulls":60},"",{"$f":"IF($A1000=\"\",\"\",IF(VLOOKUP($G1000,$H$11:$DN$1000,96,FALSE)=\"\",\"No\",IF(LEFT(VLOOKUP($G1000,$H$11:$DN$1000,96,FALSE),3)=\"The\",EF1000,VLOOKUP(VLOOKUP($G1000,$H$11:$DN$1000,96,FALSE),DeclMatrix!$A$2:$F$5,VLOOKUP('Enrollment Form'!$B1000,DeclMatrix!$A$8:$B$12,2,FALSE),FALSE))))","v":""},{"$f":"IF($A1000=\"\",\"\",IF(VLOOKUP($G1000,$H$11:$DN$1000,101,FALSE)=\"\",\"No\",IF(LEFT(VLOOKUP($G1000,$H$11:$DN$1000,101,FALSE),3)=\"The\",EG1000,VLOOKUP(VLOOKUP($G1000,$H$11:$DN$1000,101,FALSE),DeclMatrix!$A$2:$F$5,VLOOKUP('Enrollment Form'!$B1000,DeclMatrix!$A$8:$B$12,2,FALSE),FALSE))))","v":""},{"$f":"IF($A1000=\"\",\"\",IF(VLOOKUP($G1000,$H$11:$DN$1000,106,FALSE)=\"\",\"No\",IF(LEFT(VLOOKUP($G1000,$H$11:$DN$1000,106,FALSE),3)=\"The\",EH1000,VLOOKUP(VLOOKUP($G1000,$H$11:$DN$1000,106,FALSE),DeclMatrix!$A$2:$F$5,VLOOKUP('Enrollment Form'!$B1000,DeclMatrix!$A$8:$B$12,2,FALSE),FALSE))))","v":""},{"$f":"IF($A1000=\"\",\"\",IF(VLOOKUP($G1000,$H$11:$DN$1000,111,FALSE)=\"\",\"No\",IF(LEFT(VLOOKUP($G1000,$H$11:$DN$1000,111,FALSE),3)=\"The\",EI1000,VLOOKUP(VLOOKUP($G1000,$H$11:$DN$1000,111,FALSE),DeclMatrix!$A$2:$F$5,VLOOKUP('Enrollment Form'!$B1000,DeclMatrix!$A$8:$B$12,2,FALSE),FALSE))))","v":""},"",null,"","","","","","","","","","","",""]

{"sheet":"Validation","index":13,"n_rows":1001,"n_cols":51,"rows_kept":1001,"merged":[[0,1,0,39]]}
[null,"Condition"]
[null,"01","02","03","04","05","06","07","08","09","10","11","12","13","14","15","16","17","18","19","20","21","22","23","24","25","26","27","28","29","30","31","32","33","34","35","36","37","38","39",{"$nulls":3}," = Error that needs to be corrected"]
["Row #","Valid record?","Applicant Type is populated?","If Sub, SSN match Appl SSN?","Non-Dupe Applicant SSN/Type?","Sub ZIP Code 5 digits?","Mail ZIP Code 5 digits?","Depend ZIP Code 5 digits?","Sub Work Phone 10 digits?","Sub Home Phone 10 digits?","Job Class filled if \"Graded\" LI?","Sub DOB filled?","Sub Gender filled?","Sub Marital Status filled?","Sub Date of Hire filled?","Sub Job Title filled?","Sub Dependents <26 filled?","Sub # Dependents <26 filled?","Sub Signature filled?","Sub Signature Date filled?","HMO provider info complete?","Dep DOB and Gender filled?","Enrolling in COBRA filled?","COBRA qual Reason & Date filled?","Reason Decl \"Other\" filled?","Existing COBRA filled?","Life Mult of Sal Earnings filled?","Life amount filled?","Sub ROC Signature filled?","Sub ROC Signature Date filled?","Correct email format?","Sub works full-time OR part-time?","Medicare Part A Date Filled?","Medicare Part B Date Filled?","Medicare dialysis date filled?","Medicare type of dialysis filled?","Sub Mailing Address filled?","Dependent Address filled?","SSN populated for Subscriber?","Sub & Dependent SSNs different?","Total Errors",null,"Records with errors",{"$f":"COUNTIF(AO:AO,\">0\")","v":0},"Total Errors",{"$f":"SUM(AO:AO)","v":0},null,"Validation\nRule","Validation\nDescription","Validation\nDetail","Reference Column(s) on Enrollment Form Tab"]
[11,{"$f":"IF('Enrollment Form'!$A11<>\"\",\"Y\",\"N\")","v":"N"},{"$f":"IF(AND('Enrollment Form'!$B11=\"\",'Enrollment Form'!$C11<>\"\"),\"N\",IF($B4=\"N\",\"\",\"Y\"))","v":""},{"$f":"IF(OR($B4=\"N\",'Enrollment Form'!G11=\"\"),\"\",IF('Enrollment Form'!$B11<>\"Subscriber\",\"\",IF('Enrollment Form'!$G11='Enrollment Form'!$H11,\"Y\",\"N\")))","v":""},{"$f":"IF($B4=\"N\",\"\",IF(AND(COUNTIFS('Enrollment Form'!$H$11:$H$1000,'Enrollment Form'!$H11,'Enrollment Form'!$B$11:$B$1000,'Enrollment Form'!$B11)>1,'Enrollment Form'!$H11<>\"\"),\"N\",\"Y\"))","v":""},{"$f":"IF($B4=\"N\",\"\",IF(LEN('Enrollment Form'!$Y11)=0,\"\",IF(LEN('Enrollment Form'!$Y11)<>5,\"N\",\"Y\")))","v":""},{"$f":"IF($B4=\"N\",\"\",IF(LEN('Enrollment Form'!$AD11=0),\"\",IF(LEN('Enrollment Form'!$AD11)<>5,\"N\",\"Y\")))","v":""},{"$f":"IF($B4=\"N\",\"\",IF(LEN('Enrollment Form'!$BL11=0),\"\",IF(LEN('Enrollment Form'!$BL11)<>5,\"N\",\"Y\")))","v":""},{"$f":"IF($B4=\"N\",\"\",IF(LEN('Enrollment Form'!$AE11)=0,\"\",IF(LEN('Enrollment Form'!$AE11)<>10,\"N\",\"Y\")))","v":""},{"$f":"IF($B4=\"N\",\"\",IF(LEN('Enrollment Form'!$AF11)=0,\"\",IF(LEN('Enrollment Form'!$AF11)<>10,\"N\",\"Y\")))","v":""},{"$f":"IF('Enrollment Form'!$O11<>\"Graded\",\"-\",IF(AND('Enrollment Form'!$O11=\"Graded\",'Enrollment Form'!$AO11<>\"\"),\"Y\",\"N\"))","v":"-"},{"$f":"IF($B4=\"N\",\"\",IF(OR('Enrollment Form'!$B11<>\"Subscriber\",'Enrollment Form'!$C11=\"ROC\"),\"-\",IF(AND('Enrollment Form'!$B11=\"Subscriber\",'Enrollment Form'!$C11=\"Enroll\",'Enrollment Form'!$AJ11<>\"\"),\"Y\",\"N\")))","v":""},{"$f":"IF($B4=\"N\",\"\",IF(OR('Enrollment Form'!$B11<>\"Subscriber\",'Enrollment Form'!$C11=\"ROC\"),\"-\",IF(AND('Enrollment Form'!$B11=\"Subscriber\",'Enrollment Form'!$C11=\"Enroll\",'Enrollment Form'!$AK11<>\"\"),\"Y\",\"N\")))","v":""},{"$f":"IF($B4=\"N\",\"\",IF(OR('Enrollment Form'!$B11<>\"Subscriber\",'Enrollment Form'!$C11=\"ROC\"),\"-\",IF(AND('Enrollment Form'!$B11=\"Subscriber\",'Enrollment Form'!$C11=\"Enroll\",'Enrollment Form'!$AL11<>\"\"),\"Y\",\"N\")))","v":""},{"$f":"IF($B4=\"N\",\"\",IF(OR('Enrollment Form'!$B11<>\"Subscriber\",'Enrollment Form'!$C11=\"ROC\"),\"-\",IF(AND('Enrollment Form'!$B11=\"Subscriber\",'Enrollment Form'!$C11=\"Enroll\",'Enrollment Form'!$AM11<>\"\"),\"Y\",\"N\")))","v":""},{"$f":"IF($B4=\"N\",\"\",IF(OR('Enrollment Form'!$B11<>\"Subscriber\",'Enrollment Form'!$C11=\"ROC\"),\"-\",IF(AND('Enrollment Form'!$B11=\"Subscriber\",'Enrollment Form'!$C11=\"Enroll\",'Enrollment Form'!$AN11<>\"\"),\"Y\",\"N\")))","v":""},{"$f":"IF($B4=\"N\",\"\",IF(OR('Enrollment Form'!$B11<>\"Subscriber\",'Enrollment Form'!$C11=\"ROC\"),\"-\",IF(AND('Enrollment Form'!$B11=\"Subscriber\",'Enrollment Form'!$C11=\"Enroll\",'Enrollment Form'!$AP11<>\"\"),\"Y\",\"N\")))","v":""},{"$f":"IF($B4=\"N\",\"\",IF($Q4=\"-\",\"-\",IF(AND($Q4=\"Y\",'Enrollment Form'!$AP11=\"No\"),\"-\",IF(AND($Q4=\"Y\",'Enrollment Form'!$AP11=\"Yes\",'Enrollment Form'!$AQ11<>\"\"),\"Y\",\"N\"))))","v":""},{"$f":"IF($B4=\"N\",\"\",IF(OR('Enrollment Form'!$B11<>\"Subscriber\",'Enrollment Form'!$C11=\"ROC\"),\"-\",IF(AND('Enrollment Form'!$B11=\"Subscriber\",'Enrollment Form'!$C11=\"Enroll\",'Enrollment Form'!$CO11<>\"\"),\"Y\",\"N\")))","v":""},{"$f":"IF($B4=\"N\",\"\",IF($S4=\"-\",\"-\",IF(AND($S4=\"Y\",'Enrollment Form'!$CO11=\"No\"),\"-\",IF(AND($S4=\"Y\",'Enrollment Form'!$CO11=\"Yes\",'Enrollment Form'!$CP11<>\"\"),\"Y\",\"N\"))))","v":""},{"$f":"IF(OR('Enrollment Form'!$AV11=\"Yes\",'Enrollment Form'!$AV11=\"\"),\"-\",IF(AND('Enrollment Form'!$AV11=\"No\",ISERROR(FIND(\"HMO\",VLOOKUP('Enrollment Form'!G11,'Enrollment Form'!H$11:J$1000,3,FALSE),1))=FALSE,COUNTA('Enrollment Form'!$AW11:$AZ11)=4),\"Y\",\"N\"))","v":"-"},{"$f":"IF($B4=\"N\",\"\",IF('Enrollment Form'!$B11=\"Subscriber\",\"-\",IF(COUNTA('Enrollment Form'!$BE11,'Enrollment Form'!$BG11)=2,\"Y\",\"N\")))","v":""},{"$f":"IF($B4=\"N\",\"\",IF(OR('Enrollment Form'!$AU11=\"\",'Enrollment Form'!$AU11=\"No\"),\"-\",IF(AND('Enrollment Form'!$AU11=\"Yes\",COUNTA('Enrollment Form'!$CK11)=1),\"Y\",\"N\")))","v":""},{"$f":"IF(OR('Enrollment Form'!$CK11=\"\",'Enrollment Form'!$CK11=\"No\"),\"-\",IF(COUNTA('Enrollment Form'!$CM11:$CN11)=2,\"Y\",\"N\"))","v":"-"},{"$f":"IF($B4=\"N\",\"\",IF(COUNTIF('Enrollment Form'!$CZ11:$DO11,\"Other\")=COUNTA('Enrollment Form'!$DF11,'Enrollment Form'!$DA11,'Enrollment Form'!$DK11,'Enrollment Form'!$DP11),\"Y\",\"N\"))","v":""},{"$f":"IF($B4=\"N\",\"\",IF(OR('Enrollment Form'!B11<>\"Subscriber\",'Enrollment Form'!C11=\"ROC\",COUNTIF('Enrollment Form'!AS11:AT11,\"Yes\")>=1),\"-\",IF(AND('Enrollment Form'!C11=\"Enroll\",COUNTIF('Enrollment Form'!AS11:AT11,\"No\")=2,'Enrollment Form'!AU11=\"\"),\"N\",\"Y\")))","v":""},{"$f":"IF(OR(B4=\"N\",'Enrollment Form'!B11<>\"Subscriber\",'Enrollment Form'!C11=\"ROC\",'Enrollment Form'!O11<>\"Multiple of Salary\"),\"-\",IF(COUNTA('Enrollment Form'!T11:U11)<2,\"N\",\"Y\"))","v":"-"},{"$f":"IF(B4=\"N\",\"\",IF(OR('Enrollment Form'!C11=\"ROC\",'Enrollment Form'!B11<>\"Subscriber\",'Enrollment Form'!O11=\"Waive\",'Enrollment Form'!O11=\"\"),\"-\",IF('Enrollment Form'!P11=\"\",\"N\",\"Y\")))","v":""},{"$f":"IF($B4=\"N\",\"\",IF(AND('Enrollment Form'!$C11=\"ROC\",'Enrollment Form'!$DS11<>\"\"),\"Y\",IF(AND('Enrollment Form'!$C11=\"ROC\",'Enrollment Form'!$DS11=\"\"),\"N\",IF(AND('Enrollment Form'!$C11=\"Enroll\",'Enrollment Form'!$B11=\"Subscriber\",'Enrollment Form'!$CQ11=\"No\",'Enrollment Form'!$DS11=\"\"),\"N\",IF(AND('Enrollment Form'!$C11=\"Enroll\",'Enrollment Form'!$B11=\"Subscriber\",'Enrollment Form'!$CQ11=\"Yes\"),\"-\",\"Y\")))))","v":""},{"$f":"IF($B4=\"N\",\"\",IF(AND('Enrollment Form'!$C11=\"ROC\",'Enrollment Form'!$DT11<>\"\"),\"Y\",IF(AND('Enrollment Form'!$C11=\"ROC\",'Enrollment Form'!$DT11=\"\"),\"N\",IF(AND('Enrollment Form'!$C11=\"Enroll\",'Enrollment Form'!$B11=\"Subscriber\",'Enrollment Form'!$CQ11=\"No\",'Enrollment Form'!$DT11=\"\"),\"N\",IF(AND('Enrollment Form'!$C11=\"Enroll\",'Enrollment Form'!$B11=\"Subscriber\",'Enrollment Form'!$CQ11=\"Yes\"),\"-\",\"Y\")))))","v":""},{"$f":"IF('Enrollment Form'!AH11=\"\",\"\",IF(ISERROR(SEARCH(\".\",'Enrollment Form'!AH11,SEARCH(\"@\",'Enrollment Form'!AH11))),\"N\",\"Y\"))","v":""},{"$f":"IF(OR($B4=\"N\",'Enrollment Form'!$G11=\"\"),\"\",IF('Enrollment Form'!$B11<>\"Subscriber\",\"-\",IF(COUNTIF('Enrollment Form'!$AS11:$AT11,\"Yes\")=2,\"N\",\"Y\")))","v":""},{"$f":"IF(OR('Enrollment Form'!$CC11=\"\",'Enrollment Form'!$CC11=\"No\"),\"-\",IF(AND('Enrollment Form'!$CC11=\"Yes\",'Enrollment Form'!$CD11=\"\"),\"N\",\"Y\"))","v":"-"},{"$f":"IF(OR('Enrollment Form'!$CE11=\"\",'Enrollment Form'!$CE11=\"No\"),\"-\",IF(AND('Enrollment Form'!$CE11=\"Yes\",'Enrollment Form'!$CF11=\"\"),\"N\",\"Y\"))","v":"-"},{"$f":"IF(OR('Enrollment Form'!$CG11=\"\",'Enrollment Form'!$CG11=\"No\"),\"-\",IF(AND('Enrollment Form'!$CG11=\"Yes\",'Enrollment Form'!$CH11=\"\"),\"N\",\"Y\"))","v":"-"},{"$f":"IF(OR('Enrollment Form'!$CG11=\"\",'Enrollment Form'!$CG11=\"No\"),\"-\",IF(AND('Enrollment Form'!$CG11=\"Yes\",'Enrollment Form'!$CI11=\"\"),\"N\",\"Y\"))","v":"-"},{"$f":"IF('Enrollment Form'!B11<>\"Subscriber\",\"-\",IF(AND('Enrollment Form'!B11=\"Subscriber\",'Enrollment Form'!C11=\"Enroll\",'Enrollment Form'!AA11=\"\"),\"N\",\"Y\"))","v":"-"},{"$f":"IF(OR('Enrollment Form'!B11=\"Subscriber\",'Enrollment Form'!B11=\"\"),\"-\",IF('Enrollment Form'!BI11=\"\",\"N\",\"Y\"))","v":"-"},{"$f":"IF('Enrollment Form'!B11<>\"Subscriber\",\"-\",IF(AND('Enrollment Form'!B11=\"Subscriber\",'Enrollment Form'!G11=\"\"),\"N\",\"Y\"))","v":"-"},{"$f":"IF('Enrollment Form'!A11=\"\",\"\",IF('Enrollment Form'!B11=\"Subscriber\",\"-\",IF(AND('Enrollment Form'!B11<>\"Subscriber\",'Enrollment Form'!G11='Enrollment Form'!H11),\"N\",\"Y\")))","v":""},{"$f":"COUNTIF(C4:AN4,\"N\")","v":0},{"$nulls":6},"01","Valid Record?","First column in row must be populated for it to be a valid record","A"]
[{"$f":"1+A4","v":12},{"$f":"IF('Enrollment Form'!$A12<>\"\",\"Y\",\"N\")","v":"N"},{"$f":"IF(AND('Enrollment Form'!$B12=\"\",'Enrollment Form'!$C12<>\"\"),\"N\",IF($B5=\"N\",\"\",\"Y\"))","v":""},{"$f":"IF(OR($B5=\"N\",'Enrollment Form'!G12=\"\"),\"\",IF('Enrollment Form'!$B12<>\"Subscriber\",\"\",IF('Enrollment Form'!$G12='Enrollment Form'!$H12,\"Y\",\"N\")))","v":""},{"$f":"IF($B5=\"N\",\"\",IF(AND(COUNTIFS('Enrollment Form'!$H$11:$H$1000,'Enrollment Form'!$H12,'Enrollment Form'!$B$11:$B$1000,'Enrollment Form'!$B12)>1,'Enrollment Form'!$H12<>\"\"),\"N\",\"Y\"))","v":""},{"$f":"IF($B5=\"N\",\"\",IF(LEN('Enrollment Form'!$Y12)=0,\"\",IF(LEN('Enrollment Form'!$Y12)<>5,\"N\",\"Y\")))","v":""},{"$f":"IF($B5=\"N\",\"\",IF(LEN('Enrollment Form'!$AD12=0),\"\",IF(LEN('Enrollment Form'!$AD12)<>5,\"N\",\"Y\")))","v":""},{"$f":"IF($B5=\"N\",\"\",IF(LEN('Enrollment Form'!$BL12=0),\"\",IF(LEN('Enrollment Form'!$BL12)<>5,\"N\",\"Y\")))","v":""},{"$f":"IF($B5=\"N\",\"\",IF(LEN('Enrollment Form'!$AE12)=0,\"\",IF(LEN('Enrollment Form'!$AE12)<>10,\"N\",\"Y\")))","v":""},{"$f":"IF($B5=\"N\",\"\",IF(LEN('Enrollment Form'!$AF12)=0,\"\",IF(LEN('Enrollment Form'!$AF12)<>10,\"N\",\"Y\")))","v":""},{"$f":"IF('Enrollment Form'!$O12<>\"Graded\",\"-\",IF(AND('Enrollment Form'!$O12=\"Graded\",'Enrollment Form'!$AO12<>\"\"),\"Y\",\"N\"))","v":"-"},{"$f":"IF($B5=\"N\",\"\",IF(OR('Enrollment Form'!$B12<>\"Subscriber\",'Enrollment Form'!$C12=\"ROC\"),\"-\",IF(AND('Enrollment Form'!$B12=\"Subscriber\",'Enrollment Form'!$C12=\"Enroll\",'Enrollment Form'!$AJ12<>\"\"),\"Y\",\"N\")))","v":""},{"$f":"IF($B5=\"N\",\"\",IF(OR('Enrollment Form'!$B12<>\"Subscriber\",'Enrollment Form'!$C12=\"ROC\"),\"-\",IF(AND('Enrollment Form'!$B12=\"Subscriber\",'Enrollment Form'!$C12=\"Enroll\",'Enrollment Form'!$AK12<>\"\"),\"Y\",\"N\")))","v":""},{"$f":"IF($B5=\"N\",\"\",IF(OR('Enrollment Form'!$B12<>\"Subscriber\",'Enrollment Form'!$C12=\"ROC\"),\"-\",IF(AND('Enrollment Form'!$B12=\"Subscriber\",'Enrollment Form'!$C12=\"Enroll\",'Enrollment Form'!$AL12<>\"\"),\"Y\",\"N\")))","v":""},{"$f":"IF($B5=\"N\",\"\",IF(OR('Enrollment Form'!$B12<>\"Subscriber\",'Enrollment Form'!$C12=\"ROC\"),\"-\",IF(AND('Enrollment Form'!$B12=\"Subscriber\",'Enrollment Form'!$C12=\"Enroll\",'Enrollment Form'!$AM12<>\"\"),\"Y\",\"N\")))","v":""},{"$f":"IF($B5=\"N\",\"\",IF(OR('Enrollment Form'!$B12<>\"Subscriber\",'Enrollment Form'!$C12=\"ROC\"),\"-\",IF(AND('Enrollment Form'!$B12=\"Subscriber\",'Enrollment Form'!$C12=\"Enroll\",'Enrollment Form'!$AN12<>\"\"),\"Y\",\"N\")))","v":""},{"$f":"IF($B5=\"N\",\"\",IF(OR('Enrollment Form'!$B12<>\"Subscriber\",'Enrollment Form'!$C12=\"ROC\"),\"-\",IF(AND('Enrollment Form'!$B12=\"Subscriber\",'Enrollment Form'!$C12=\"Enroll\",'Enrollment Form'!$AP12<>\"\"),\"Y\",\"N\")))","v":""},{"$f":"IF($B5=\"N\",\"\",IF($Q5=\"-\",\"-\",IF(AND($Q5=\"Y\",'Enrollment Form'!$AP12=\"No\"),\"-\",IF(AND($Q5=\"Y\",'Enrollment Form'!$AP12=\"Yes\",'Enrollment Form'!$AQ12<>\"\"),\"Y\",\"N\"))))","v":""},{"$f":"IF($B5=\"N\",\"\",IF(OR('Enrollment Form'!$B12<>\"Subscriber\",'Enrollment Form'!$C12=\"ROC\"),\"-\",IF(AND('Enrollment Form'!$B12=\"Subscriber\",'Enrollment Form'!$C12=\"Enroll\",'Enrollment Form'!$CO12<>\"\"),\"Y\",\"N\")))","v":""},{"$f":"IF($B5=\"N\",\"\",IF($S5=\"-\",\"-\",IF(AND($S5=\"Y\",'Enrollment Form'!$CO12=\"No\"),\"-\",IF(AND($S5=\"Y\",'Enrollment Form'!$CO12=\"Yes\",'Enrollment Form'!$CP12<>\"\"),\"Y\",\"N\"))))","v":""},{"$f":"IF(OR('Enrollment Form'!$AV12=\"Yes\",'Enrollment Form'!$AV12=\"\"),\"-\",IF(AND('Enrollment Form'!$AV12=\"No\",ISERROR(FIND(\"HMO\",VLOOKUP('Enrollment Form'!G12,'Enrollment Form'!H$11:J$1000,3,FALSE),1))=FALSE,COUNTA('Enrollment Form'!$AW12:$AZ12)=4),\"Y\",\"N\"))","v":"-"},{"$f":"IF($B5=\"N\",\"\",IF('Enrollment Form'!$B12=\"Subscriber\",\"-\",IF(COUNTA('Enrollment Form'!$BE12,'Enrollment Form'!$BG12)=2,\"Y\",\"N\")))","v":""},{"$f":"IF($B5=\"N\",\"\",IF(OR('Enrollment Form'!$AU12=\"\",'Enrollment Form'!$AU12=\"No\"),\"-\",IF(AND('Enrollment Form'!$AU12=\"Yes\",COUNTA('Enrollment Form'!$CK12)=1),\"Y\",\"N\")))","v":""},{"$f":"IF(OR('Enrollment Form'!$CK12=\"\",'Enrollment Form'!$CK12=\"No\"),\"-\",IF(COUNTA('Enrollment Form'!$CM12:$CN12)=2,\"Y\",\"N\"))","v":"-"},{"$f":"IF($B5=\"N\",\"\",IF(COUNTIF('Enrollment Form'!$CZ12:$DO12,\"Other\")=COUNTA('Enrollment Form'!$DF12,'Enrollment Form'!$DA12,'Enrollment Form'!$DK12,'Enrollment Form'!$DP12),\"Y\",\"N\"))","v":""},{"$f":"IF($B5=\"N\",\"\",IF(OR('Enrollment Form'!B12<>\"Subscriber\",'Enrollment Form'!C12=\"ROC\",COUNTIF('Enrollment Form'!AS12:AT12,\"Yes\")>=1),\"-\",IF(AND('Enrollment Form'!C12=\"Enroll\",COUNTIF('Enrollment Form'!AS12:AT12,\"No\")=2,'Enrollment Form'!AU12=\"\"),\"N\",\"Y\")))","v":""},{"$f":"IF(OR(B5=\"N\",'Enrollment Form'!B12<>\"Subscriber\",'Enrollment Form'!C12=\"ROC\",'Enrollment Form'!O12<>\"Multiple of Salary\"),\"-\",IF(COUNTA('Enrollment Form'!T12:U12)<2,\"N\",\"Y\"))","v":"-"},{"$f":"IF(B5=\"N\",\"\",IF(OR('Enrollment Form'!C12=\"ROC\",'Enrollment Form'!B12<>\"Subscriber\",'Enrollment Form'!O12=\"Waive\",'Enrollment Form'!O12=\"\"),\"-\",IF('Enrollment Form'!P12=\"\",\"N\",\"Y\")))","v":""},{"$f":"IF($B5=\"N\",\"\",IF(AND('Enrollment Form'!$C12=\"ROC\",'Enrollment Form'!$DS12<>\"\"),\"Y\",IF(AND('Enrollment Form'!$C12=\"ROC\",'Enrollment Form'!$DS12=\"\"),\"N\",IF(AND('Enrollment Form'!$C12=\"Enroll\",'Enrollment Form'!$B12=\"Subscriber\",'Enrollment Form'!$CQ12=\"No\",'Enrollment Form'!$DS12=\"\"),\"N\",IF(AND('Enrollment Form'!$C12=\"Enroll\",'Enrollment Form'!$B12=\"Subscriber\",'Enrollment Form'!$CQ12=\"Yes\"),\"-\",\"Y\")))))","v":""},{"$f":"IF($B5=\"N\",\"\",IF(AND('Enrollment Form'!$C12=\"ROC\",'Enrollment Form'!$DT12<>\"\"),\"Y\",IF(AND('Enrollment Form'!$C12=\"ROC\",'Enrollment Form'!$DT12=\"\"),\"N\",IF(AND('Enrollment Form'!$C12=\"Enroll\",'Enrollment Form'!$B12=\"Subscriber\",'Enrollment Form'!$CQ12=\"No\",'Enrollment Form'!$DT12=\"\"),\"N\",IF(AND('Enrollment Form'!$C12=\"Enroll\",'Enrollment Form'!$B12=\"Subscriber\",'Enrollment Form'!$CQ12=\"Yes\"),\"-\",\"Y\")))))","v":""},{"$f":"IF('Enrollment Form'!AH12=\"\",\"\",IF(ISERROR(SEARCH(\".\",'Enrollment Form'!AH12,SEARCH(\"@\",'Enrollment Form'!AH12))),\"N\",\"Y\"))","v":""},{"$f":"IF(OR($B5=\"N\",'Enrollment Form'!$G12=\"\"),\"\",IF('Enrollment Form'!$B12<>\"Subscriber\",\"-\",IF(COUNTIF('Enrollment Form'!$AS12:$AT12,\"Yes\")=2,\"N\",\"Y\")))","v":""},{"$f":"IF(OR('Enrollment Form'!$CC12=\"\",'Enrollment Form'!$CC12=\"No\"),\"-\",IF(AND('Enrollment Form'!$CC12=\"Yes\",'Enrollment Form'!$CD12=\"\"),\"N\",\"Y\"))","v":"-"},{"$f":"IF(OR('Enrollment Form'!$CE12=\"\",'Enrollment Form'!$CE12=\"No\"),\"-\",IF(AND('Enrollment Form'!$CE12=\"Yes\",'Enrollment Form'!$CF12=\"\"),\"N\",\"Y\"))","v":"-"},{"$f":"IF(OR('Enrollment Form'!$CG12=\"\",'Enrollment Form'!$CG12=\"No\"),\"-\",IF(AND('Enrollment Form'!$CG12=\"Yes\",'Enrollment Form'!$CH12=\"\"),\"N\",\"Y\"))","v":"-"},{"$f":"IF(OR('Enrollment Form'!$CG12=\"\",'Enrollment Form'!$CG12=\"No\"),\"-\",IF(AND('Enrollment Form'!$CG12=\"Yes\",'Enrollment Form'!$CI12=\"\"),\"N\",\"Y\"))","v":"-"},{"$f":"IF('Enrollment Form'!B12<>\"Subscriber\",\"-\",IF(AND('Enrollment Form'!B12=\"Subscriber\",'Enrollment Form'!C12=\"Enroll\",'Enrollment Form'!AA12=\"\"),\"N\",\"Y\"))","v":"-"},{"$f":"IF(OR('Enrollment Form'!B12=\"Subscriber\",'Enrollment Form'!B12=\"\"),\"-\",IF('Enrollment Form'!BI12=\"\",\"N\",\"Y\"))","v":"-"},{"$f":"IF('Enrollment Form'!B12<>\"Subscriber\",\"-\",IF(AND('Enrollment Form'!B12=\"Subscriber\",'Enrollment Form'!G12=\"\"),\"N\",\"Y\"))","v":"-"},{"$f":"IF('Enrollment Form'!A12=\"\",\"\",IF('Enrollment Form'!B12=\"Subscriber\",\"-\",IF(AND('Enrollment Form'!B12<>\"Subscriber\",'Enrollment Form'!G12='Enrollment Form'!H12),\"N\",\"Y\")))","v":""},0,{"$nulls":6},"02","Applicant Type is populated?","Value from dropdown must be selected","B"]
[{"$f":"1+A5","v":13},{"$f":"IF('Enrollment Form'!$A13<>\"\",\"Y\",\"N\")","v":"N"},{"$f":"IF(AND('Enrollment Form'!$B13=\"\",'Enrollment Form'!$C13<>\"\"),\"N\",IF($B6=\"N\",\"\",\"Y\"))","v":""},{"$f":"IF(OR($B6=\"N\",'Enrollment Form'!G13=\"\"),\"\",IF('Enrollment Form'!$B13<>\"Subscriber\",\"\",IF('Enrollment Form'!$G13='Enrollment Form'!$H13,\"Y\",\"N\")))","v":""},{"$f":"IF($B6=\"N\",\"\",IF(AND(COUNTIFS('Enrollment Form'!$H$11:$H$1000,'Enrollment Form'!$H13,'Enrollment Form'!$B$11:$B$1000,'Enrollment Form'!$B13)>1,'Enrollment Form'!$H13<>\"\"),\"N\",\"Y\"))","v":""},{"$f":"IF($B6=\"N\",\"\",IF(LEN('Enrollment Form'!$Y13)=0,\"\",IF(LEN('Enrollment Form'!$Y13)<>5,\"N\",\"Y\")))","v":""},{"$f":"IF($B6=\"N\",\"\",IF(LEN('Enrollment Form'!$AD13=0),\"\",IF(LEN('Enrollment Form'!$AD13)<>5,\"N\",\"Y\")))","v":""},{"$f":"IF($B6=\"N\",\"\",IF(LEN('Enrollment Form'!$BL13=0),\"\",IF(LEN('Enrollment Form'!$BL13)<>5,\"N\",\"Y\")))","v":""},{"$f":"IF($B6=\"N\",\"\",IF(LEN('Enrollment Form'!$AE13)=0,\"\",IF(LEN('Enrollment Form'!$AE13)<>10,\"N\",\"Y\")))","v":""},{"$f":"IF($B6=\"N\",\"\",IF(LEN('Enrollment Form'!$AF13)=0,\"\",IF(LEN('Enrollment Form'!$AF13)<>10,\"N\",\"Y\")))","v":""},{"$f":"IF('Enrollment Form'!$O13<>\"Graded\",\"-\",IF(AND('Enrollment Form'!$O13=\"Graded\",'Enrollment Form'!$AO13<>\"\"),\"Y\",\"N\"))","v":"-"},{"$f":"IF($B6=\"N\",\"\",IF(OR('Enrollment Form'!$B13<>\"Subscriber\",'Enrollment Form'!$C13=\"ROC\"),\"-\",IF(AND('Enrollment Form'!$B13=\"Subscriber\",'Enrollment Form'!$C13=\"Enroll\",'Enrollment Form'!$AJ13<>\"\"),\"Y\",\"N\")))","v":""},{"$f":"IF($B6=\"N\",\"\",IF(OR('Enrollment Form'!$B13<>\"Subscriber\",'Enrollment Form'!$C13=\"ROC\"),\"-\",IF(AND('Enrollment Form'!$B13=\"Subscriber\",'Enrollment Form'!$C13=\"Enroll\",'Enrollment Form'!$AK13<>\"\"),\"Y\",\"N\")))","v":""},{"$f":"IF($B6=\"N\",\"\",IF(OR('Enrollment Form'!$B13<>\"Subscriber\",'Enrollment Form'!$C13=\"ROC\"),\"-\",IF(AND('Enrollment Form'!$B13=\"Subscriber\",'Enrollment Form'!$C13=\"Enroll\",'Enrollment Form'!$AL13<>\"\"),\"Y\",\"N\")))","v":""},{"$f":"IF($B6=\"N\",\"\",IF(OR('Enrollment Form'!$B13<>\"Subscriber\",'Enrollment Form'!$C13=\"ROC\"),\"-\",IF(AND('Enrollment Form'!$B13=\"Subscriber\",'Enrollment Form'!$C13=\"Enroll\",'Enrollment Form'!$AM13<>\"\"),\"Y\",\"N\")))","v":""},{"$f":"IF($B6=\"N\",\"\",IF(OR('Enrollment Form'!$B13<>\"Subscriber\",'Enrollment Form'!$C13=\"ROC\"),\"-\",IF(AND('Enrollment Form'!$B13=\"Subscriber\",'Enrollment Form'!$C13=\"Enroll\",'Enrollment Form'!$AN13<>\"\"),\"Y\",\"N\")))","v":""},{"$f":"IF($B6=\"N\",\"\",IF(OR('Enrollment Form'!$B13<>\"Subscriber\",'Enrollment Form'!$C13=\"ROC\"),\"-\",IF(AND('Enrollment Form'!$B13=\"Subscriber\",'Enrollment Form'!$C13=\"Enroll\",'Enrollment Form'!$AP13<>\"\"),\"Y\",\"N\")))","v":""},{"$f":"IF($B6=\"N\",\"\",IF($Q6=\"-\",\"-\",IF(AND($Q6=\"Y\",'Enrollment Form'!$AP13=\"No\"),\"-\",IF(AND($Q6=\"Y\",'Enrollment Form'!$AP13=\"Yes\",'Enrollment Form'!$AQ13<>\"\"),\"Y\",\"N\"))))","v":""},{"$f":"IF($B6=\"N\",\"\",IF(OR('Enrollment Form'!$B13<>\"Subscriber\",'Enrollment Form'!$C13=\"ROC\"),\"-\",IF(AND('Enrollment Form'!$B13=\"Subscriber\",'Enrollment Form'!$C13=\"Enroll\",'Enrollment Form'!$CO13<>\"\"),\"Y\",\"N\")))","v":""},{"$f":"IF($B6=\"N\",\"\",IF($S6=\"-\",\"-\",IF(AND($S6=\"Y\",'Enrollment Form'!$CO13=\"No\"),\"-\",IF(AND($S6=\"Y\",'Enrollment Form'!$CO13=\"Yes\",'Enrollment Form'!$CP13<>\"\"),\"Y\",\"N\"))))","v":""},{"$f":"IF(OR('Enrollment Form'!$AV13=\"Yes\",'Enrollment Form'!$AV13=\"\"),\"-\",IF(AND('Enrollment Form'!$AV13=\"No\",ISERROR(FIND(\"HMO\",VLOOKUP('Enrollment Form'!G13,'Enrollment Form'!H$11:J$1000,3,FALSE),1))=FALSE,COUNTA('Enrollment Form'!$AW13:$AZ13)=4),\"Y\",\"N\"))","v":"-"},{"$f":"IF($B6=\"N\",\"\",IF('Enrollment Form'!$B13=\"Subscriber\",\"-\",IF(COUNTA('Enrollment Form'!$BE13,'Enrollment Form'!$BG13)=2,\"Y\",\"N\")))","v":""},{"$f":"IF($B6=\"N\",\"\",IF(OR('Enrollment Form'!$AU13=\"\",'Enrollment Form'!$AU13=\"No\"),\"-\",IF(AND('Enrollment Form'!$AU13=\"Yes\",COUNTA('Enrollment Form'!$CK13)=1),\"Y\",\"N\")))","v":""},{"$f":"IF(OR('Enrollment Form'!$CK13=\"\",'Enrollment Form'!$CK13=\"No\"),\"-\",IF(COUNTA('Enrollment Form'!$CM13:$CN13)=2,\"Y\",\"N\"))","v":"-"},{"$f":"IF($B6=\"N\",\"\",IF(COUNTIF('Enrollment Form'!$CZ13:$DO13,\"Other\")=COUNTA('Enrollment Form'!$DF13,'Enrollment Form'!$DA13,'Enrollment Form'!$DK13,'Enrollment Form'!$DP13),\"Y\",\"N\"))","v":""},{"$f":"IF($B6=\"N\",\"\",IF(OR('Enrollment Form'!B13<>\"Subscriber\",'Enrollment Form'!C13=\"ROC\",COUNTIF('Enrollment Form'!AS13:AT13,\"Yes\")>=1),\"-\",IF(AND('Enrollment Form'!C13=\"Enroll\",COUNTIF('Enrollment Form'!AS13:AT13,\"No\")=2,'Enrollment Form'!AU13=\"\"),\"N\",\"Y\")))","v":""},{"$f":"IF(OR(B6=\"N\",'Enrollment Form'!B13<>\"Subscriber\",'Enrollment Form'!C13=\"ROC\",'Enrollment Form'!O13<>\"Multiple of Salary\"),\"-\",IF(COUNTA('Enrollment Form'!T13:U13)<2,\"N\",\"Y\"))","v":"-"},{"$f":"IF(B6=\"N\",\"\",IF(OR('Enrollment Form'!C13=\"ROC\",'Enrollment Form'!B13<>\"Subscriber\",'Enrollment Form'!O13=\"Waive\",'Enrollment Form'!O13=\"\"),\"-\",IF('Enrollment Form'!P13=\"\",\"N\",\"Y\")))","v":""},{"$f":"IF($B6=\"N\",\"\",IF(AND('Enrollment Form'!$C13=\"ROC\",'Enrollment Form'!$DS13<>\"\"),\"Y\",IF(AND('Enrollment Form'!$C13=\"ROC\",'Enrollment Form'!$DS13=\"\"),\"N\",IF(AND('Enrollment Form'!$C13=\"Enroll\",'Enrollment Form'!$B13=\"Subscriber\",'Enrollment Form'!$CQ13=\"No\",'Enrollment Form'!$DS13=\"\"),\"N\",IF(AND('Enrollment Form'!$C13=\"Enroll\",'Enrollment Form'!$B13=\"Subscriber\",'Enrollment Form'!$CQ13=\"Yes\"),\"-\",\"Y\")))))","v":""},{"$f":"IF($B6=\"N\",\"\",IF(AND('Enrollment Form'!$C13=\"ROC\",'Enrollment Form'!$DT13<>\"\"),\"Y\",IF(AND('Enrollment Form'!$C13=\"ROC\",'Enrollment Form'!$DT13=\"\"),\"N\",IF(AND('Enrollment Form'!$C13=\"Enroll\",'Enrollment Form'!$B13=\"Subscriber\",'Enrollment Form'!$CQ13=\"No\",'Enrollment Form'!$DT13=\"\"),\"N\",IF(AND('Enrollment Form'!$C13=\"Enroll\",'Enrollment Form'!$B13=\"Subscriber\",'Enrollment Form'!$CQ13=\"Yes\"),\"-\",\"Y\")))))","v":""},{"$f":"IF('Enrollment Form'!AH13=\"\",\"\",IF(ISERROR(SEARCH(\".\",'Enrollment Form'!AH13,SEARCH(\"@\",'Enrollment Form'!AH13))),\"N\",\"Y\"))","v":""},{"$f":"IF(OR($B6=\"N\",'Enrollment Form'!$G13=\"\"),\"\",IF('Enrollment Form'!$B13<>\"Subscriber\",\"-\",IF(COUNTIF('Enrollment Form'!$AS13:$AT13,\"Yes\")=2,\"N\",\"Y\")))","v":""},{"$f":"IF(OR('Enrollment Form'!$CC13=\"\",'Enrollment Form'!$CC13=\"No\"),\"-\",IF(AND('Enrollment Form'!$CC13=\"Yes\",'Enrollment Form'!$CD13=\"\"),\"N\",\"Y\"))","v":"-"},{"$f":"IF(OR('Enrollment Form'!$CE13=\"\",'Enrollment Form'!$CE13=\"No\"),\"-\",IF(AND('Enrollment Form'!$CE13=\"Yes\",'Enrollment Form'!$CF13=\"\"),\"N\",\"Y\"))","v":"-"},{"$f":"IF(OR('Enrollment Form'!$CG13=\"\",'Enrollment Form'!$CG13=\"No\"),\"-\",IF(AND('Enrollment Form'!$CG13=\"Yes\",'Enrollment Form'!$CH13=\"\"),\"N\",\"Y\"))","v":"-"},{"$f":"IF(OR('Enrollment Form'!$CG13=\"\",'Enrollment Form'!$CG13=\"No\"),\"-\",IF(AND('Enrollment Form'!$CG13=\"Yes\",'Enrollment Form'!$CI13=\"\"),\"N\",\"Y\"))","v":"-"},{"$f":"IF('Enrollment Form'!B13<>\"Subscriber\",\"-\",IF(AND('Enrollment Form'!B13=\"Subscriber\",'Enrollment Form'!C13=\"Enroll\",'Enrollment Form'!AA13=\"\"),\"N\",\"Y\"))","v":"-"},{"$f":"IF(OR('Enrollment Form'!B13=\"Subscriber\",'Enrollment Form'!B13=\"\"),\"-\",IF('Enrollment Form'!BI13=\"\",\"N\",\"Y\"))","v":"-"},{"$f":"IF('Enrollment Form'!B13<>\"Subscriber\",\"-\",IF(AND('Enrollment Form'!B13=\"Subscriber\",'Enrollment Form'!G13=\"\"),\"N\",\"Y\"))","v":"-"},{"$f":"IF('Enrollment Form'!A13=\"\",\"\",IF('Enrollment Form'!B13=\"Subscriber\",\"-\",IF(AND('Enrollment Form'!B13<>\"Subscriber\",'Enrollment Form'!G13='Enrollment Form'!H13),\"N\",\"Y\")))","v":""},0,{"$nulls":6},"03","If Sub, SSN match Appl SSN?","If Applicant Type = \"Subscriber\", then Subscriber SSN must match Applicant SSN for that record","G,H"]
[14,{"$f":"IF('Enrollment Form'!$A14<>\"\",\"Y\",\"N\")","v":"N"},{"$f":"IF(AND('Enrollment Form'!$B14=\"\",'Enrollment Form'!$C14<>\"\"),\"N\",IF($B7=\"N\",\"\",\"Y\"))","v":""},{"$f":"IF(OR($B7=\"N\",'Enrollment Form'!G14=\"\"),\"\",IF('Enrollment Form'!$B14<>\"Subscriber\",\"\",IF('Enrollment Form'!$G14='Enrollment Form'!$H14,\"Y\",\"N\")))","v":""},{"$f":"IF($B7=\"N\",\"\",IF(AND(COUNTIFS('Enrollment Form'!$H$11:$H$1000,'Enrollment Form'!$H14,'Enrollment Form'!$B$11:$B$1000,'Enrollment Form'!$B14)>1,'Enrollment Form'!$H14<>\"\"),\"N\",\"Y\"))","v":""},{"$f":"IF($B7=\"N\",\"\",IF(LEN('Enrollment Form'!$Y14)=0,\"\",IF(LEN('Enrollment Form'!$Y14)<>5,\"N\",\"Y\")))","v":""},{"$f":"IF($B7=\"N\",\"\",IF(LEN('Enrollment Form'!$AD14=0),\"\",IF(LEN('Enrollment Form'!$AD14)<>5,\"N\",\"Y\")))","v":""},{"$f":"IF($B7=\"N\",\"\",IF(LEN('Enrollment Form'!$BL14=0),\"\",IF(LEN('Enrollment Form'!$BL14)<>5,\"N\",\"Y\")))","v":""},{"$f":"IF($B7=\"N\",\"\",IF(LEN('Enrollment Form'!$AE14)=0,\"\",IF(LEN('Enrollment Form'!$AE14)<>10,\"N\",\"Y\")))","v":""},{"$f":"IF($B7=\"N\",\"\",IF(LEN('Enrollment Form'!$AF14)=0,\"\",IF(LEN('Enrollment Form'!$AF14)<>10,\"N\",\"Y\")))","v":""},{"$f":"IF('Enrollment Form'!$O14<>\"Graded\",\"-\",IF(AND('Enrollment Form'!$O14=\"Graded\",'Enrollment Form'!$AO14<>\"\"),\"Y\",\"N\"))","v":"-"},{"$f":"IF($B7=\"N\",\"\",IF(OR('Enrollment Form'!$B14<>\"Subscriber\",'Enrollment Form'!$C14=\"ROC\"),\"-\",IF(AND('Enrollment Form'!$B14=\"Subscriber\",'Enrollment Form'!$C14=\"Enroll\",'Enrollment Form'!$AJ14<>\"\"),\"Y\",\"N\")))","v":""},{"$f":"IF($B7=\"N\",\"\",IF(OR('Enrollment Form'!$B14<>\"Subscriber\",'Enrollment Form'!$C14=\"ROC\"),\"-\",IF(AND('Enrollment Form'!$B14=\"Subscriber\",'Enrollment Form'!$C14=\"Enroll\",'Enrollment Form'!$AK14<>\"\"),\"Y\",\"N\")))","v":""},{"$f":"IF($B7=\"N\",\"\",IF(OR('Enrollment Form'!$B14<>\"Subscriber\",'Enrollment Form'!$C14=\"ROC\"),\"-\",IF(AND('Enrollment Form'!$B14=\"Subscriber\",'Enrollment Form'!$C14=\"Enroll\",'Enrollment Form'!$AL14<>\"\"),\"Y\",\"N\")))","v":""},{"$f":"IF($B7=\"N\",\"\",IF(OR('Enrollment Form'!$B14<>\"Subscriber\",'Enrollment Form'!$C14=\"ROC\"),\"-\",IF(AND('Enrollment Form'!$B14=\"Subscriber\",'Enrollment Form'!$C14=\"Enroll\",'Enrollment Form'!$AM14<>\"\"),\"Y\",\"N\")))","v":""},{"$f":"IF($B7=\"N\",\"\",IF(OR('Enrollment Form'!$B14<>\"Subscriber\",'Enrollment Form'!$C14=\"ROC\"),\"-\",IF(AND('Enrollment Form'!$B14=\"Subscriber\",'Enrollment Form'!$C14=\"Enroll\",'Enrollment Form'!$AN14<>\"\"),\"Y\",\"N\")))","v":""},{"$f":"IF($B7=\"N\",\"\",IF(OR('Enrollment Form'!$B14<>\"Subscriber\",'Enrollment Form'!$C14=\"ROC\"),\"-\",IF(AND('Enrollment Form'!$B14=\"Subscriber\",'Enrollment Form'!$C14=\"Enroll\",'Enrollment Form'!$AP14<>\"\"),\"Y\",\"N\")))","v":""},{"$f":"IF($B7=\"N\",\"\",IF($Q7=\"-\",\"-\",IF(AND($Q7=\"Y\",'Enrollment Form'!$AP14=\"No\"),\"-\",IF(AND($Q7=\"Y\",'Enrollment Form'!$AP14=\"Yes\",'Enrollment Form'!$AQ14<>\"\"),\"Y\",\"N\"))))","v":""},{"$f":"IF($B7=\"N\",\"\",IF(OR('Enrollment Form'!$B14<>\"Subscriber\",'Enrollment Form'!$C14=\"ROC\"),\"-\",IF(AND('Enrollment Form'!$B14=\"Subscriber\",'Enrollment Form'!$C14=\"Enroll\",'Enrollment Form'!$CO14<>\"\"),\"Y\",\"N\")))","v":""},{"$f":"IF($B7=\"N\",\"\",IF($S7=\"-\",\"-\",IF(AND($S7=\"Y\",'Enrollment Form'!$CO14=\"No\"),\"-\",IF(AND($S7=\"Y\",'Enrollment Form'!$CO14=\"Yes\",'Enrollment Form'!$CP14<>\"\"),\"Y\",\"N\"))))","v":""},{"$f":"IF(OR('Enrollment Form'!$AV14=\"Yes\",'Enrollment Form'!$AV14=\"\"),\"-\",IF(AND('Enrollment Form'!$AV14=\"No\",ISERROR(FIND(\"HMO\",VLOOKUP('Enrollment Form'!G14,'Enrollment Form'!H$11:J$1000,3,FALSE),1))=FALSE,COUNTA('Enrollment Form'!$AW14:$AZ14)=4),\"Y\",\"N\"))","v":"-"},{"$f":"IF($B7=\"N\",\"\",IF('Enrollment Form'!$B14=\"Subscriber\",\"-\",IF(COUNTA('Enrollment Form'!$BE14,'Enrollment Form'!$BG14)=2,\"Y\",\"N\")))","v":""},{"$f":"IF($B7=\"N\",\"\",IF(OR('Enrollment Form'!$AU14=\"\",'Enrollment Form'!$AU14=\"No\"),\"-\",IF(AND('Enrollment Form'!$AU14=\"Yes\",COUNTA('Enrollment Form'!$CK14)=1),\"Y\",\"N\")))","v":""},{"$f":"IF(OR('Enrollment Form'!$CK14=\"\",'Enrollment Form'!$CK14=\"No\"),\"-\",IF(COUNTA('Enrollment Form'!$CM14:$CN14)=2,\"Y\",\"N\"))","v":"-"},{"$f":"IF($B7=\"N\",\"\",IF(COUNTIF('Enrollment Form'!$CZ14:$DO14,\"Other\")=COUNTA('Enrollment Form'!$DF14,'Enrollment Form'!$DA14,'Enrollment Form'!$DK14,'Enrollment Form'!$DP14),\"Y\",\"N\"))","v":""},{"$f":"IF($B7=\"N\",\"\",IF(OR('Enrollment Form'!B14<>\"Subscriber\",'Enrollment Form'!C14=\"ROC\",COUNTIF('Enrollment Form'!AS14:AT14,\"Yes\")>=1),\"-\",IF(AND('Enrollment Form'!C14=\"Enroll\",COUNTIF('Enrollment Form'!AS14:AT14,\"No\")=2,'Enrollment Form'!AU14=\"\"),\"N\",\"Y\")))","v":""},{"$f":"IF(OR(B7=\"N\",'Enrollment Form'!B14<>\"Subscriber\",'Enrollment Form'!C14=\"ROC\",'Enrollment Form'!O14<>\"Multiple of Salary\"),\"-\",IF(COUNTA('Enrollment Form'!T14:U14)<2,\"N\",\"Y\"))","v":"-"},{"$f":"IF(B7=\"N\",\"\",IF(OR('Enrollment Form'!C14=\"ROC\",'Enrollment Form'!B14<>\"Subscriber\",'Enrollment Form'!O14=\"Waive\",'Enrollment Form'!O14=\"\"),\"-\",IF('Enrollment Form'!P14=\"\",\"N\",\"Y\")))","v":""},{"$f":"IF($B7=\"N\",\"\",IF(AND('Enrollment Form'!$C14=\"ROC\",'Enrollment Form'!$DS14<>\"\"),\"Y\",IF(AND('Enrollment Form'!$C14=\"ROC\",'Enrollment Form'!$DS14=\"\"),\"N\",IF(AND('Enrollment Form'!$C14=\"Enroll\",'Enrollment Form'!$B14=\"Subscriber\",'Enrollment Form'!$CQ14=\"No\",'Enrollment Form'!$DS14=\"\"),\"N\",IF(AND('Enrollment Form'!$C14=\"Enroll\",'Enrollment Form'!$B14=\"Subscriber\",'Enrollment Form'!$CQ14=\"Yes\"),\"-\",\"Y\")))))","v":""},{"$f":"IF($B7=\"N\",\"\",IF(AND('Enrollment Form'!$C14=\"ROC\",'Enrollment Form'!$DT14<>\"\"),\"Y\",IF(AND('Enrollment Form'!$C14=\"ROC\",'Enrollment Form'!$DT14=\"\"),\"N\",IF(AND('Enrollment Form'!$C14=\"Enroll\",'Enrollment Form'!$B14=\"Subscriber\",'Enrollment Form'!$CQ14=\"No\",'Enrollment Form'!$DT14=\"\"),\"N\",IF(AND('Enrollment Form'!$C14=\"Enroll\",'Enrollment Form'!$B14=\"Subscriber\",'Enrollment Form'!$CQ14=\"Yes\"),\"-\",\"Y\")))))","v":""},{"$f":"IF('Enrollment Form'!AH14=\"\",\"\",IF(ISERROR(SEARCH(\".\",'Enrollment Form'!AH14,SEARCH(\"@\",'Enrollment Form'!AH14))),\"N\",\"Y\"))","v":""},{"$f":"IF(OR($B7=\"N\",'Enrollment Form'!$G14=\"\"),\"\",IF('Enrollment Form'!$B14<>\"Subscriber\",\"-\",IF(COUNTIF('Enrollment Form'!$AS14:$AT14,\"Yes\")=2,\"N\",\"Y\")))","v":""},{"$f":"IF(OR('Enrollment Form'!$CC14=\"\",'Enrollment Form'!$CC14=\"No\"),\"-\",IF(AND('Enrollment Form'!$CC14=\"Yes\",'Enrollment Form'!$CD14=\"\"),\"N\",\"Y\"))","v":"-"},{"$f":"IF(OR('Enrollment Form'!$CE14=\"\",'Enrollment Form'!$CE14=\"No\"),\"-\",IF(AND('Enrollment Form'!$CE14=\"Yes\",'Enrollment Form'!$CF14=\"\"),\"N\",\"Y\"))","v":"-"},{"$f":"IF(OR('Enrollment Form'!$CG14=\"\",'Enrollment Form'!$CG14=\"No\"),\"-\",IF(AND('Enrollment Form'!$CG14=\"Yes\",'Enrollment Form'!$CH14=\"\"),\"N\",\"Y\"))","v":"-"},{"$f":"IF(OR('Enrollment Form'!$CG14=\"\",'Enrollment Form'!$CG14=\"No\"),\"-\",IF(AND('Enrollment Form'!$CG14=\"Yes\",'Enrollment Form'!$CI14=\"\"),\"N\",\"Y\"))","v":"-"},{"$f":"IF('Enrollment Form'!B14<>\"Subscriber\",\"-\",IF(AND('Enrollment Form'!B14=\"Subscriber\",'Enrollment Form'!C14=\"Enroll\",'Enrollment Form'!AA14=\"\"),\"N\",\"Y\"))","v":"-"},{"$f":"IF(OR('Enrollment Form'!B14=\"Subscriber\",'Enrollment Form'!B14=\"\"),\"-\",IF('Enrollment Form'!BI14=\"\",\"N\",\"Y\"))","v":"-"},{"$f":"IF('Enrollment Form'!B14<>\"Subscriber\",\"-\",IF(AND('Enrollment Form'!B14=\"Subscriber\",'Enrollment Form'!G14=\"\"),\"N\",\"Y\"))","v":"-"},{"$f":"IF('Enrollment Form'!A14=\"\",\"\",IF('Enrollment Form'!B14=\"Subscriber\",\"-\",IF(AND('Enrollment Form'!B14<>\"Subscriber\",'Enrollment Form'!G14='Enrollment Form'!H14),\"N\",\"Y\")))","v":""},0,{"$nulls":6},"04","Non-Dupe Applicant SSN?","Applicant SSN must be unique for every record on sheet","H"]
[15,{"$f":"IF('Enrollment Form'!$A15<>\"\",\"Y\",\"N\")","v":"N"},{"$f":"IF(AND('Enrollment Form'!$B15=\"\",'Enrollment Form'!$C15<>\"\"),\"N\",IF($B8=\"N\",\"\",\"Y\"))","v":""},{"$f":"IF(OR($B8=\"N\",'Enrollment Form'!G15=\"\"),\"\",IF('Enrollment Form'!$B15<>\"Subscriber\",\"\",IF('Enrollment Form'!$G15='Enrollment Form'!$H15,\"Y\",\"N\")))","v":""},{"$f":"IF($B8=\"N\",\"\",IF(AND(COUNTIFS('Enrollment Form'!$H$11:$H$1000,'Enrollment Form'!$H15,'Enrollment Form'!$B$11:$B$1000,'Enrollment Form'!$B15)>1,'Enrollment Form'!$H15<>\"\"),\"N\",\"Y\"))","v":""},{"$f":"IF($B8=\"N\",\"\",IF(LEN('Enrollment Form'!$Y15)=0,\"\",IF(LEN('Enrollment Form'!$Y15)<>5,\"N\",\"Y\")))","v":""},{"$f":"IF($B8=\"N\",\"\",IF(LEN('Enrollment Form'!$AD15=0),\"\",IF(LEN('Enrollment Form'!$AD15)<>5,\"N\",\"Y\")))","v":""},{"$f":"IF($B8=\"N\",\"\",IF(LEN('Enrollment Form'!$BL15=0),\"\",IF(LEN('Enrollment Form'!$BL15)<>5,\"N\",\"Y\")))","v":""},{"$f":"IF($B8=\"N\",\"\",IF(LEN('Enrollment Form'!$AE15)=0,\"\",IF(LEN('Enrollment Form'!$AE15)<>10,\"N\",\"Y\")))","v":""},{"$f":"IF($B8=\"N\",\"\",IF(LEN('Enrollment Form'!$AF15)=0,\"\",IF(LEN('Enrollment Form'!$AF15)<>10,\"N\",\"Y\")))","v":""},{"$f":"IF('Enrollment Form'!$O15<>\"Graded\",\"-\",IF(AND('Enrollment Form'!$O15=\"Graded\",'Enrollment Form'!$AO15<>\"\"),\"Y\",\"N\"))","v":"-"},{"$f":"IF($B8=\"N\",\"\",IF(OR('Enrollment Form'!$B15<>\"Subscriber\",'Enrollment Form'!$C15=\"ROC\"),\"-\",IF(AND('Enrollment Form'!$B15=\"Subscriber\",'Enrollment Form'!$C15=\"Enroll\",'Enrollment Form'!$AJ15<>\"\"),\"Y\",\"N\")))","v":""},{"$f":"IF($B8=\"N\",\"\",IF(OR('Enrollment Form'!$B15<>\"Subscriber\",'Enrollment Form'!$C15=\"ROC\"),\"-\",IF(AND('Enrollment Form'!$B15=\"Subscriber\",'Enrollment Form'!$C15=\"Enroll\",'Enrollment Form'!$AK15<>\"\"),\"Y\",\"N\")))","v":""},{"$f":"IF($B8=\"N\",\"\",IF(OR('Enrollment Form'!$B15<>\"Subscriber\",'Enrollment Form'!$C15=\"ROC\"),\"-\",IF(AND('Enrollment Form'!$B15=\"Subscriber\",'Enrollment Form'!$C15=\"Enroll\",'Enrollment Form'!$AL15<>\"\"),\"Y\",\"N\")))","v":""},{"$f":"IF($B8=\"N\",\"\",IF(OR('Enrollment Form'!$B15<>\"Subscriber\",'Enrollment Form'!$C15=\"ROC\"),\"-\",IF(AND('Enrollment Form'!$B15=\"Subscriber\",'Enrollment Form'!$C15=\"Enroll\",'Enrollment Form'!$AM15<>\"\"),\"Y\",\"N\")))","v":""},{"$f":"IF($B8=\"N\",\"\",IF(OR('Enrollment Form'!$B15<>\"Subscriber\",'Enrollment Form'!$C15=\"ROC\"),\"-\",IF(AND('Enrollment Form'!$B15=\"Subscriber\",'Enrollment Form'!$C15=\"Enroll\",'Enrollment Form'!$AN15<>\"\"),\"Y\",\"N\")))","v":""},{"$f":"IF($B8=\"N\",\"\",IF(OR('Enrollment Form'!$B15<>\"Subscriber\",'Enrollment Form'!$C15=\"ROC\"),\"-\",IF(AND('Enrollment Form'!$B15=\"Subscriber\",'Enrollment Form'!$C15=\"Enroll\",'Enrollment Form'!$AP15<>\"\"),\"Y\",\"N\")))","v":""},{"$f":"IF($B8=\"N\",\"\",IF($Q8=\"-\",\"-\",IF(AND($Q8=\"Y\",'Enrollment Form'!$AP15=\"No\"),\"-\",IF(AND($Q8=\"Y\",'Enrollment Form'!$AP15=\"Yes\",'Enrollment Form'!$AQ15<>\"\"),\"Y\",\"N\"))))","v":""},{"$f":"IF($B8=\"N\",\"\",IF(OR('Enrollment Form'!$B15<>\"Subscriber\",'Enrollment Form'!$C15=\"ROC\"),\"-\",IF(AND('Enrollment Form'!$B15=\"Subscriber\",'Enrollment Form'!$C15=\"Enroll\",'Enrollment Form'!$CO15<>\"\"),\"Y\",\"N\")))","v":""},{"$f":"IF($B8=\"N\",\"\",IF($S8=\"-\",\"-\",IF(AND($S8=\"Y\",'Enrollment Form'!$CO15=\"No\"),\"-\",IF(AND($S8=\"Y\",'Enrollment Form'!$CO15=\"Yes\",'Enrollment Form'!$CP15<>\"\"),\"Y\",\"N\"))))","v":""},{"$f":"IF(OR('Enrollment Form'!$AV15=\"Yes\",'Enrollment Form'!$AV15=\"\"),\"-\",IF(AND('Enrollment Form'!$AV15=\"No\",ISERROR(FIND(\"HMO\",VLOOKUP('Enrollment Form'!G15,'Enrollment Form'!H$11:J$1000,3,FALSE),1))=FALSE,COUNTA('Enrollment Form'!$AW15:$AZ15)=4),\"Y\",\"N\"))","v":"-"},{"$f":"IF($B8=\"N\",\"\",IF('Enrollment Form'!$B15=\"Subscriber\",\"-\",IF(COUNTA('Enrollment Form'!$BE15,'Enrollment Form'!$BG15)=2,\"Y\",\"N\")))","v":""},{"$f":"IF($B8=\"N\",\"\",IF(OR('Enrollment Form'!$AU15=\"\",'Enrollment Form'!$AU15=\"No\"),\"-\",IF(AND('Enrollment Form'!$AU15=\"Yes\",COUNTA('Enrollment Form'!$CK15)=1),\"Y\",\"N\")))","v":""},{"$f":"IF(OR('Enrollment Form'!$CK15=\"\",'Enrollment Form'!$CK15=\"No\"),\"-\",IF(COUNTA('Enrollment Form'!$CM15:$CN15)=2,\"Y\",\"N\"))","v":"-"},{"$f":"IF($B8=\"N\",\"\",IF(COUNTIF('Enrollment Form'!$CZ15:$DO15,\"Other\")=COUNTA('Enrollment Form'!$DF15,'Enrollment Form'!$DA15,'Enrollment Form'!$DK15,'Enrollment Form'!$DP15),\"Y\",\"N\"))","v":""},{"$f":"IF($B8=\"N\",\"\",IF(OR('Enrollment Form'!B15<>\"Subscriber\",'Enrollment Form'!C15=\"ROC\",COUNTIF('Enrollment Form'!AS15:AT15,\"Yes\")>=1),\"-\",IF(AND('Enrollment Form'!C15=\"Enroll\",COUNTIF('Enrollment Form'!AS15:AT15,\"No\")=2,'Enrollment Form'!AU15=\"\"),\"N\",\"Y\")))","v":""},{"$f":"IF(OR(B8=\"N\",'Enrollment Form'!B15<>\"Subscriber\",'Enrollment Form'!C15=\"ROC\",'Enrollment Form'!O15<>\"Multiple of Salary\"),\"-\",IF(COUNTA('Enrollment Form'!T15:U15)<2,\"N\",\"Y\"))","v":"-"},{"$f":"IF(B8=\"N\",\"\",IF(OR('Enrollment Form'!C15=\"ROC\",'Enrollment Form'!B15<>\"Subscriber\",'Enrollment Form'!O15=\"Waive\",'Enrollment Form'!O15=\"\"),\"-\",IF('Enrollment Form'!P15=\"\",\"N\",\"Y\")))","v":""},{"$f":"IF($B8=\"N\",\"\",IF(AND('Enrollment Form'!$C15=\"ROC\",'Enrollment Form'!$DS15<>\"\"),\"Y\",IF(AND('Enrollment Form'!$C15=\"ROC\",'Enrollment Form'!$DS15=\"\"),\"N\",IF(AND('Enrollment Form'!$C15=\"Enroll\",'Enrollment Form'!$B15=\"Subscriber\",'Enrollment Form'!$CQ15=\"No\",'Enrollment Form'!$DS15=\"\"),\"N\",IF(AND('Enrollment Form'!$C15=\"Enroll\",'Enrollment Form'!$B15=\"Subscriber\",'Enrollment Form'!$CQ15=\"Yes\"),\"-\",\"Y\")))))","v":""},{"$f":"IF($B8=\"N\",\"\",IF(AND('Enrollment Form'!$C15=\"ROC\",'Enrollment Form'!$DT15<>\"\"),\"Y\",IF(AND('Enrollment Form'!$C15=\"ROC\",'Enrollment Form'!$DT15=\"\"),\"N\",IF(AND('Enrollment Form'!$C15=\"Enroll\",'Enrollment Form'!$B15=\"Subscriber\",'Enrollment Form'!$CQ15=\"No\",'Enrollment Form'!$DT15=\"\"),\"N\",IF(AND('Enrollment Form'!$C15=\"Enroll\",'Enrollment Form'!$B15=\"Subscriber\",'Enrollment Form'!$CQ15=\"Yes\"),\"-\",\"Y\")))))","v":""},{"$f":"IF('Enrollment Form'!AH15=\"\",\"\",IF(ISERROR(SEARCH(\".\",'Enrollment Form'!AH15,SEARCH(\"@\",'Enrollment Form'!AH15))),\"N\",\"Y\"))","v":""},{"$f":"IF(OR($B8=\"N\",'Enrollment Form'!$G15=\"\"),\"\",IF('Enrollment Form'!$B15<>\"Subscriber\",\"-\",IF(COUNTIF('Enrollment Form'!$AS15:$AT15,\"Yes\")=2,\"N\",\"Y\")))","v":""},{"$f":"IF(OR('Enrollment Form'!$CC15=\"\",'Enrollment Form'!$CC15=\"No\"),\"-\",IF(AND('Enrollment Form'!$CC15=\"Yes\",'Enrollment Form'!$CD15=\"\"),\"N\",\"Y\"))","v":"-"},{"$f":"IF(OR('Enrollment Form'!$CE15=\"\",'Enrollment Form'!$CE15=\"No\"),\"-\",IF(AND('Enrollment Form'!$CE15=\"Yes\",'Enrollment Form'!$CF15=\"\"),\"N\",\"Y\"))","v":"-"},{"$f":"IF(OR('Enrollment Form'!$CG15=\"\",'Enrollment Form'!$CG15=\"No\"),\"-\",IF(AND('Enrollment Form'!$CG15=\"Yes\",'Enrollment Form'!$CH15=\"\"),\"N\",\"Y\"))","v":"-"},{"$f":"IF(OR('Enrollment Form'!$CG15=\"\",'Enrollment Form'!$CG15=\"No\"),\"-\",IF(AND('Enrollment Form'!$CG15=\"Yes\",'Enrollment Form'!$CI15=\"\"),\"N\",\"Y\"))","v":"-"},{"$f":"IF('Enrollment Form'!B15<>\"Subscriber\",\"-\",IF(AND('Enrollment Form'!B15=\"Subscriber\",'Enrollment Form'!C15=\"Enroll\",'Enrollment Form'!AA15=\"\"),\"N\",\"Y\"))","v":"-"},{"$f":"IF(OR('Enrollment Form'!B15=\"Subscriber\",'Enrollment Form'!B15=\"\"),\"-\",IF('Enrollment Form'!BI15=\"\",\"N\",\"Y\"))","v":"-"},{"$f":"IF('Enrollment Form'!B15<>\"Subscriber\",\"-\",IF(AND('Enrollment Form'!B15=\"Subscriber\",'Enrollment Form'!G15=\"\"),\"N\",\"Y\"))","v":"-"},{"$f":"IF('Enrollment Form'!A15=\"\",\"\",IF('Enrollment Form'!B15=\"Subscriber\",\"-\",IF(AND('Enrollment Form'!B15<>\"Subscriber\",'Enrollment Form'!G15='Enrollment Form'!H15),\"N\",\"Y\")))","v":""},0,{"$nulls":6},"05","Sub ZIP Code 5 digits?","ZIP code must be 5 characters long","Y"]
[16,{"$f":"IF('Enrollment Form'!$A16<>\"\",\"Y\",\"N\")","v":"N"},{"$f":"IF(AND('Enrollment Form'!$B16=\"\",'Enrollment Form'!$C16<>\"\"),\"N\",IF($B9=\"N\",\"\",\"Y\"))","v":""},{"$f":"IF(OR($B9=\"N\",'Enrollment Form'!G16=\"\"),\"\",IF('Enrollment Form'!$B16<>\"Subscriber\",\"\",IF('Enrollment Form'!$G16='Enrollment Form'!$H16,\"Y\",\"N\")))","v":""},{"$f":"IF($B9=\"N\",\"\",IF(AND(COUNTIFS('Enrollment Form'!$H$11:$H$1000,'Enrollment Form'!$H16,'Enrollment Form'!$B$11:$B$1000,'Enrollment Form'!$B16)>1,'Enrollment Form'!$H16<>\"\"),\"N\",\"Y\"))","v":""},{"$f":"IF($B9=\"N\",\"\",IF(LEN('Enrollment Form'!$Y16)=0,\"\",IF(LEN('Enrollment Form'!$Y16)<>5,\"N\",\"Y\")))","v":""},{"$f":"IF($B9=\"N\",\"\",IF(LEN('Enrollment Form'!$AD16=0),\"\",IF(LEN('Enrollment Form'!$AD16)<>5,\"N\",\"Y\")))","v":""},{"$f":"IF($B9=\"N\",\"\",IF(LEN('Enrollment Form'!$BL16=0),\"\",IF(LEN('Enrollment Form'!$BL16)<>5,\"N\",\"Y\")))","v":""},{"$f":"IF($B9=\"N\",\"\",IF(LEN('Enrollment Form'!$AE16)=0,\"\",IF(LEN('Enrollment Form'!$AE16)<>10,\"N\",\"Y\")))","v":""},{"$f":"IF($B9=\"N\",\"\",IF(LEN('Enrollment Form'!$AF16)=0,\"\",IF(LEN('Enrollment Form'!$AF16)<>10,\"N\",\"Y\")))","v":""},{"$f":"IF('Enrollment Form'!$O16<>\"Graded\",\"-\",IF(AND('Enrollment Form'!$O16=\"Graded\",'Enrollment Form'!$AO16<>\"\"),\"Y\",\"N\"))","v":"-"},{"$f":"IF($B9=\"N\",\"\",IF(OR('Enrollment Form'!$B16<>\"Subscriber\",'Enrollment Form'!$C16=\"ROC\"),\"-\",IF(AND('Enrollment Form'!$B16=\"Subscriber\",'Enrollment Form'!$C16=\"Enroll\",'Enrollment Form'!$AJ16<>\"\"),\"Y\",\"N\")))","v":""},{"$f":"IF($B9=\"N\",\"\",IF(OR('Enrollment Form'!$B16<>\"Subscriber\",'Enrollment Form'!$C16=\"ROC\"),\"-\",IF(AND('Enrollment Form'!$B16=\"Subscriber\",'Enrollment Form'!$C16=\"Enroll\",'Enrollment Form'!$AK16<>\"\"),\"Y\",\"N\")))","v":""},{"$f":"IF($B9=\"N\",\"\",IF(OR('Enrollment Form'!$B16<>\"Subscriber\",'Enrollment Form'!$C16=\"ROC\"),\"-\",IF(AND('Enrollment Form'!$B16=\"Subscriber\",'Enrollment Form'!$C16=\"Enroll\",'Enrollment Form'!$AL16<>\"\"),\"Y\",\"N\")))","v":""},{"$f":"IF($B9=\"N\",\"\",IF(OR('Enrollment Form'!$B16<>\"Subscriber\",'Enrollment Form'!$C16=\"ROC\"),\"-\",IF(AND('Enrollment Form'!$B16=\"Subscriber\",'Enrollment Form'!$C16=\"Enroll\",'Enrollment Form'!$AM16<>\"\"),\"Y\",\"N\")))","v":""},{"$f":"IF($B9=\"N\",\"\",IF(OR('Enrollment Form'!$B16<>\"Subscriber\",'Enrollment Form'!$C16=\"ROC\"),\"-\",IF(AND('Enrollment Form'!$B16=\"Subscriber\",'Enrollment Form'!$C16=\"Enroll\",'Enrollment Form'!$AN16<>\"\"),\"Y\",\"N\")))","v":""},{"$f":"IF($B9=\"N\",\"\",IF(OR('Enrollment Form'!$B16<>\"Subscriber\",'Enrollment Form'!$C16=\"ROC\"),\"-\",IF(AND('Enrollment Form'!$B16=\"Subscriber\",'Enrollment Form'!$C16=\"Enroll\",'Enrollment Form'!$AP16<>\"\"),\"Y\",\"N\")))","v":""},{"$f":"IF($B9=\"N\",\"\",IF($Q9=\"-\",\"-\",IF(AND($Q9=\"Y\",'Enrollment Form'!$AP16=\"No\"),\"-\",IF(AND($Q9=\"Y\",'Enrollment Form'!$AP16=\"Yes\",'Enrollment Form'!$AQ16<>\"\"),\"Y\",\"N\"))))","v":""},{"$f":"IF($B9=\"N\",\"\",IF(OR('Enrollment Form'!$B16<>\"Subscriber\",'Enrollment Form'!$C16=\"ROC\"),\"-\",IF(AND('Enrollment Form'!$B16=\"Subscriber\",'Enrollment Form'!$C16=\"Enroll\",'Enrollment Form'!$CO16<>\"\"),\"Y\",\"N\")))","v":""},{"$f":"IF($B9=\"N\",\"\",IF($S9=\"-\",\"-\",IF(AND($S9=\"Y\",'Enrollment Form'!$CO16=\"No\"),\"-\",IF(AND($S9=\"Y\",'Enrollment Form'!$CO16=\"Yes\",'Enrollment Form'!$CP16<>\"\"),\"Y\",\"N\"))))","v":""},{"$f":"IF(OR('Enrollment Form'!$AV16=\"Yes\",'Enrollment Form'!$AV16=\"\"),\"-\",IF(AND('Enrollment Form'!$AV16=\"No\",ISERROR(FIND(\"HMO\",VLOOKUP('Enrollment Form'!G16,'Enrollment Form'!H$11:J$1000,3,FALSE),1))=FALSE,COUNTA('Enrollment Form'!$AW16:$AZ16)=4),\"Y\",\"N\"))","v":"-"},{"$f":"IF($B9=\"N\",\"\",IF('Enrollment Form'!$B16=\"Subscriber\",\"-\",IF(COUNTA('Enrollment Form'!$BE16,'Enrollment Form'!$BG16)=2,\"Y\",\"N\")))","v":""},{"$f":"IF($B9=\"N\",\"\",IF(OR('Enrollment Form'!$AU16=\"\",'Enrollment Form'!$AU16=\"No\"),\"-\",IF(AND('Enrollment Form'!$AU16=\"Yes\",COUNTA('Enrollment Form'!$CK16)=1),\"Y\",\"N\")))","v":""},{"$f":"IF(OR('Enrollment Form'!$CK16=\"\",'Enrollment Form'!$CK16=\"No\"),\"-\",IF(COUNTA('Enrollment Form'!$CM16:$CN16)=2,\"Y\",\"N\"))","v":"-"},{"$f":"IF($B9=\"N\",\"\",IF(COUNTIF('Enrollment Form'!$CZ16:$DO16,\"Other\")=COUNTA('Enrollment Form'!$DF16,'Enrollment Form'!$DA16,'Enrollment Form'!$DK16,'Enrollment Form'!$DP16),\"Y\",\"N\"))","v":""},{"$f":"IF($B9=\"N\",\"\",IF(OR('Enrollment Form'!B16<>\"Subscriber\",'Enrollment Form'!C16=\"ROC\",COUNTIF('Enrollment Form'!AS16:AT16,\"Yes\")>=1),\"-\",IF(AND('Enrollment Form'!C16=\"Enroll\",COUNTIF('Enrollment Form'!AS16:AT16,\"No\")=2,'Enrollment Form'!AU16=\"\"),\"N\",\"Y\")))","v":""},{"$f":"IF(OR(B9=\"N\",'Enrollment Form'!B16<>\"Subscriber\",'Enrollment Form'!C16=\"ROC\",'Enrollment Form'!O16<>\"Multiple of Salary\"),\"-\",IF(COUNTA('Enrollment Form'!T16:U16)<2,\"N\",\"Y\"))","v":"-"},{"$f":"IF(B9=\"N\",\"\",IF(OR('Enrollment Form'!C16=\"ROC\",'Enrollment Form'!B16<>\"Subscriber\",'Enrollment Form'!O16=\"Waive\",'Enrollment Form'!O16=\"\"),\"-\",IF('Enrollment Form'!P16=\"\",\"N\",\"Y\")))","v":""},{"$f":"IF($B9=\"N\",\"\",IF(AND('Enrollment Form'!$C16=\"ROC\",'Enrollment Form'!$DS16<>\"\"),\"Y\",IF(AND('Enrollment Form'!$C16=\"ROC\",'Enrollment Form'!$DS16=\"\"),\"N\",IF(AND('Enrollment Form'!$C16=\"Enroll\",'Enrollment Form'!$B16=\"Subscriber\",'Enrollment Form'!$CQ16=\"No\",'Enrollment Form'!$DS16=\"\"),\"N\",IF(AND('Enrollment Form'!$C16=\"Enroll\",'Enrollment Form'!$B16=\"Subscriber\",'Enrollment Form'!$CQ16=\"Yes\"),\"-\",\"Y\")))))","v":""},{"$f":"IF($B9=\"N\",\"\",IF(AND('Enrollment Form'!$C16=\"ROC\",'Enrollment Form'!$DT16<>\"\"),\"Y\",IF(AND('Enrollment Form'!$C16=\"ROC\",'Enrollment Form'!$DT16=\"\"),\"N\",IF(AND('Enrollment Form'!$C16=\"Enroll\",'Enrollment Form'!$B16=\"Subscriber\",'Enrollment Form'!$CQ16=\"No\",'Enrollment Form'!$DT16=\"\"),\"N\",IF(AND('Enrollment Form'!$C16=\"Enroll\",'Enrollment Form'!$B16=\"Subscriber\",'Enrollment Form'!$CQ16=\"Yes\"),\"-\",\"Y\")))))","v":""},{"$f":"IF('Enrollment Form'!AH16=\"\",\"\",IF(ISERROR(SEARCH(\".\",'Enrollment Form'!AH16,SEARCH(\"@\",'Enrollment Form'!AH16))),\"N\",\"Y\"))","v":""},{"$f":"IF(OR($B9=\"N\",'Enrollment Form'!$G16=\"\"),\"\",IF('Enrollment Form'!$B16<>\"Subscriber\",\"-\",IF(COUNTIF('Enrollment Form'!$AS16:$AT16,\"Yes\")=2,\"N\",\"Y\")))","v":""},{"$f":"IF(OR('Enrollment Form'!$CC16=\"\",'Enrollment Form'!$CC16=\"No\"),\"-\",IF(AND('Enrollment Form'!$CC16=\"Yes\",'Enrollment Form'!$CD16=\"\"),\"N\",\"Y\"))","v":"-"},{"$f":"IF(OR('Enrollment Form'!$CE16=\"\",'Enrollment Form'!$CE16=\"No\"),\"-\",IF(AND('Enrollment Form'!$CE16=\"Yes\",'Enrollment Form'!$CF16=\"\"),\"N\",\"Y\"))","v":"-"},{"$f":"IF(OR('Enrollment Form'!$CG16=\"\",'Enrollment Form'!$CG16=\"No\"),\"-\",IF(AND('Enrollment Form'!$CG16=\"Yes\",'Enrollment Form'!$CH16=\"\"),\"N\",\"Y\"))","v":"-"},{"$f":"IF(OR('Enrollment Form'!$CG16=\"\",'Enrollment Form'!$CG16=\"No\"),\"-\",IF(AND('Enrollment Form'!$CG16=\"Yes\",'Enrollment Form'!$CI16=\"\"),\"N\",\"Y\"))","v":"-"},{"$f":"IF('Enrollment Form'!B16<>\"Subscriber\",\"-\",IF(AND('Enrollment Form'!B16=\"Subscriber\",'Enrollment Form'!C16=\"Enroll\",'Enrollment Form'!AA16=\"\"),\"N\",\"Y\"))","v":"-"},{"$f":"IF(OR('Enrollment Form'!B16=\"Subscriber\",'Enrollment Form'!B16=\"\"),\"-\",IF('Enrollment Form'!BI16=\"\",\"N\",\"Y\"))","v":"-"},{"$f":"IF('Enrollment Form'!B16<>\"Subscriber\",\"-\",IF(AND('Enrollment Form'!B16=\"Subscriber\",'Enrollment Form'!G16=\"\"),\"N\",\"Y\"))","v":"-"},{"$f":"IF('Enrollment Form'!A16=\"\",\"\",IF('Enrollment Form'!B16=\"Subscriber\",\"-\",IF(AND('Enrollment Form'!B16<>\"Subscriber\",'Enrollment Form'!G16='Enrollment Form'!H16),\"N\",\"Y\")))","v":""},0,{"$nulls":6},"06","Mail ZIP Code 5 digits?","ZIP code must be 5 characters long","AD"]
[17,{"$f":"IF('Enrollment Form'!$A17<>\"\",\"Y\",\"N\")","v":"N"},{"$f":"IF(AND('Enrollment Form'!$B17=\"\",'Enrollment Form'!$C17<>\"\"),\"N\",IF($B10=\"N\",\"\",\"Y\"))","v":""},{"$f":"IF(OR($B10=\"N\",'Enrollment Form'!G17=\"\"),\"\",IF('Enrollment Form'!$B17<>\"Subscriber\",\"\",IF('Enrollment Form'!$G17='Enrollment Form'!$H17,\"Y\",\"N\")))","v":""},{"$f":"IF($B10=\"N\",\"\",IF(AND(COUNTIFS('Enrollment Form'!$H$11:$H$1000,'Enrollment Form'!$H17,'Enrollment Form'!$B$11:$B$1000,'Enrollment Form'!$B17)>1,'Enrollment Form'!$H17<>\"\"),\"N\",\"Y\"))","v":""},{"$f":"IF($B10=\"N\",\"\",IF(LEN('Enrollment Form'!$Y17)=0,\"\",IF(LEN('Enrollment Form'!$Y17)<>5,\"N\",\"Y\")))","v":""},{"$f":"IF($B10=\"N\",\"\",IF(LEN('Enrollment Form'!$AD17=0),\"\",IF(LEN('Enrollment Form'!$AD17)<>5,\"N\",\"Y\")))","v":""},{"$f":"IF($B10=\"N\",\"\",IF(LEN('Enrollment Form'!$BL17=0),\"\",IF(LEN('Enrollment Form'!$BL17)<>5,\"N\",\"Y\")))","v":""},{"$f":"IF($B10=\"N\",\"\",IF(LEN('Enrollment Form'!$AE17)=0,\"\",IF(LEN('Enrollment Form'!$AE17)<>10,\"N\",\"Y\")))","v":""},{"$f":"IF($B10=\"N\",\"\",IF(LEN('Enrollment Form'!$AF17)=0,\"\",IF(LEN('Enrollment Form'!$AF17)<>10,\"N\",\"Y\")))","v":""},{"$f":"IF('Enrollment Form'!$O17<>\"Graded\",\"-\",IF(AND('Enrollment Form'!$O17=\"Graded\",'Enrollment Form'!$AO17<>\"\"),\"Y\",\"N\"))","v":"-"},{"$f":"IF($B10=\"N\",\"\",IF(OR('Enrollment Form'!$B17<>\"Subscriber\",'Enrollment Form'!$C17=\"ROC\"),\"-\",IF(AND('Enrollment Form'!$B17=\"Subscriber\",'Enrollment Form'!$C17=\"Enroll\",'Enrollment Form'!$AJ17<>\"\"),\"Y\",\"N\")))","v":""},{"$f":"IF($B10=\"N\",\"\",IF(OR('Enrollment Form'!$B17<>\"Subscriber\",'Enrollment Form'!$C17=\"ROC\"),\"-\",IF(AND('Enrollment Form'!$B17=\"Subscriber\",'Enrollment Form'!$C17=\"Enroll\",'Enrollment Form'!$AK17<>\"\"),\"Y\",\"N\")))","v":""},{"$f":"IF($B10=\"N\",\"\",IF(OR('Enrollment Form'!$B17<>\"Subscriber\",'Enrollment Form'!$C17=\"ROC\"),\"-\",IF(AND('Enrollment Form'!$B17=\"Subscriber\",'Enrollment Form'!$C17=\"Enroll\",'Enrollment Form'!$AL17<>\"\"),\"Y\",\"N\")))","v":""},{"$f":"IF($B10=\"N\",\"\",IF(OR('Enrollment Form'!$B17<>\"Subscriber\",'Enrollment Form'!$C17=\"ROC\"),\"-\",IF(AND('Enrollment Form'!$B17=\"Subscriber\",'Enrollment Form'!$C17=\"Enroll\",'Enrollment Form'!$AM17<>\"\"),\"Y\",\"N\")))","v":""},{"$f":"IF($B10=\"N\",\"\",IF(OR('Enrollment Form'!$B17<>\"Subscriber\",'Enrollment Form'!$C17=\"ROC\"),\"-\",IF(AND('Enrollment Form'!$B17=\"Subscriber\",'Enrollment Form'!$C17=\"Enroll\",'Enrollment Form'!$AN17<>\"\"),\"Y\",\"N\")))","v":""},{"$f":"IF($B10=\"N\",\"\",IF(OR('Enrollment Form'!$B17<>\"Subscriber\",'Enrollment Form'!$C17=\"ROC\"),\"-\",IF(AND('Enrollment Form'!$B17=\"Subscriber\",'Enrollment Form'!$C17=\"Enroll\",'Enrollment Form'!$AP17<>\"\"),\"Y\",\"N\")))","v":""},{"$f":"IF($B10=\"N\",\"\",IF($Q10=\"-\",\"-\",IF(AND($Q10=\"Y\",'Enrollment Form'!$AP17=\"No\"),\"-\",IF(AND($Q10=\"Y\",'Enrollment Form'!$AP17=\"Yes\",'Enrollment Form'!$AQ17<>\"\"),\"Y\",\"N\"))))","v":""},{"$f":"IF($B10=\"N\",\"\",IF(OR('Enrollment Form'!$B17<>\"Subscriber\",'Enrollment Form'!$C17=\"ROC\"),\"-\",IF(AND('Enrollment Form'!$B17=\"Subscriber\",'Enrollment Form'!$C17=\"Enroll\",'Enrollment Form'!$CO17<>\"\"),\"Y\",\"N\")))","v":""},{"$f":"IF($B10=\"N\",\"\",IF($S10=\"-\",\"-\",IF(AND($S10=\"Y\",'Enrollment Form'!$CO17=\"No\"),\"-\",IF(AND($S10=\"Y\",'Enrollment Form'!$CO17=\"Yes\",'Enrollment Form'!$CP17<>\"\"),\"Y\",\"N\"))))","v":""},{"$f":"IF(OR('Enrollment Form'!$AV17=\"Yes\",'Enrollment Form'!$AV17=\"\"),\"-\",IF(AND('Enrollment Form'!$AV17=\"No\",ISERROR(FIND(\"HMO\",VLOOKUP('Enrollment Form'!G17,'Enrollment Form'!H$11:J$1000,3,FALSE),1))=FALSE,COUNTA('Enrollment Form'!$AW17:$AZ17)=4),\"Y\",\"N\"))","v":"-"},{"$f":"IF($B10=\"N\",\"\",IF('Enrollment Form'!$B17=\"Subscriber\",\"-\",IF(COUNTA('Enrollment Form'!$BE17,'Enrollment Form'!$BG17)=2,\"Y\",\"N\")))","v":""},{"$f":"IF($B10=\"N\",\"\",IF(OR('Enrollment Form'!$AU17=\"\",'Enrollment Form'!$AU17=\"No\"),\"-\",IF(AND('Enrollment Form'!$AU17=\"Yes\",COUNTA('Enrollment Form'!$CK17)=1),\"Y\",\"N\")))","v":""},{"$f":"IF(OR('Enrollment Form'!$CK17=\"\",'Enrollment Form'!$CK17=\"No\"),\"-\",IF(COUNTA('Enrollment Form'!$CM17:$CN17)=2,\"Y\",\"N\"))","v":"-"},{"$f":"IF($B10=\"N\",\"\",IF(COUNTIF('Enrollment Form'!$CZ17:$DO17,\"Other\")=COUNTA('Enrollment Form'!$DF17,'Enrollment Form'!$DA17,'Enrollment Form'!$DK17,'Enrollment Form'!$DP17),\"Y\",\"N\"))","v":""},{"$f":"IF($B10=\"N\",\"\",IF(OR('Enrollment Form'!B17<>\"Subscriber\",'Enrollment Form'!C17=\"ROC\",COUNTIF('Enrollment Form'!AS17:AT17,\"Yes\")>=1),\"-\",IF(AND('Enrollment Form'!C17=\"Enroll\",COUNTIF('Enrollment Form'!AS17:AT17,\"No\")=2,'Enrollment Form'!AU17=\"\"),\"N\",\"Y\")))","v":""},{"$f":"IF(OR(B10=\"N\",'Enrollment Form'!B17<>\"Subscriber\",'Enrollment Form'!C17=\"ROC\",'Enrollment Form'!O17<>\"Multiple of Salary\"),\"-\",IF(COUNTA('Enrollment Form'!T17:U17)<2,\"N\",\"Y\"))","v":"-"},{"$f":"IF(B10=\"N\",\"\",IF(OR('Enrollment Form'!C17=\"ROC\",'Enrollment Form'!B17<>\"Subscriber\",'Enrollment Form'!O17=\"Waive\",'Enrollment Form'!O17=\"\"),\"-\",IF('Enrollment Form'!P17=\"\",\"N\",\"Y\")))","v":""},{"$f":"IF($B10=\"N\",\"\",IF(AND('Enrollment Form'!$C17=\"ROC\",'Enrollment Form'!$DS17<>\"\"),\"Y\",IF(AND('Enrollment Form'!$C17=\"ROC\",'Enrollment Form'!$DS17=\"\"),\"N\",IF(AND('Enrollment Form'!$C17=\"Enroll\",'Enrollment Form'!$B17=\"Subscriber\",'Enrollment Form'!$CQ17=\"No\",'Enrollment Form'!$DS17=\"\"),\"N\",IF(AND('Enrollment Form'!$C17=\"Enroll\",'Enrollment Form'!$B17=\"Subscriber\",'Enrollment Form'!$CQ17=\"Yes\"),\"-\",\"Y\")))))","v":""},{"$f":"IF($B10=\"N\",\"\",IF(AND('Enrollment Form'!$C17=\"ROC\",'Enrollment Form'!$DT17<>\"\"),\"Y\",IF(AND('Enrollment Form'!$C17=\"ROC\",'Enrollment Form'!$DT17=\"\"),\"N\",IF(AND('Enrollment Form'!$C17=\"Enroll\",'Enrollment Form'!$B17=\"Subscriber\",'Enrollment Form'!$CQ17=\"No\",'Enrollment Form'!$DT17=\"\"),\"N\",IF(AND('Enrollment Form'!$C17=\"Enroll\",'Enrollment Form'!$B17=\"Subscriber\",'Enrollment Form'!$CQ17=\"Yes\"),\"-\",\"Y\")))))","v":""},{"$f":"IF('Enrollment Form'!AH17=\"\",\"\",IF(ISERROR(SEARCH(\".\",'Enrollment Form'!AH17,SEARCH(\"@\",'Enrollment Form'!AH17))),\"N\",\"Y\"))","v":""},{"$f":"IF(OR($B10=\"N\",'Enrollment Form'!$G17=\"\"),\"\",IF('Enrollment Form'!$B17<>\"Subscriber\",\"-\",IF(COUNTIF('Enrollment Form'!$AS17:$AT17,\"Yes\")=2,\"N\",\"Y\")))","v":""},{"$f":"IF(OR('Enrollment Form'!$CC17=\"\",'Enrollment Form'!$CC17=\"No\"),\"-\",IF(AND('Enrollment Form'!$CC17=\"Yes\",'Enrollment Form'!$CD17=\"\"),\"N\",\"Y\"))","v":"-"},{"$f":"IF(OR('Enrollment Form'!$CE17=\"\",'Enrollment Form'!$CE17=\"No\"),\"-\",IF(AND('Enrollment Form'!$CE17=\"Yes\",'Enrollment Form'!$CF17=\"\"),\"N\",\"Y\"))","v":"-"},{"$f":"IF(OR('Enrollment Form'!$CG17=\"\",'Enrollment Form'!$CG17=\"No\"),\"-\",IF(AND('Enrollment Form'!$CG17=\"Yes\",'Enrollment Form'!$CH17=\"\"),\"N\",\"Y\"))","v":"-"},{"$f":"IF(OR('Enrollment Form'!$CG17=\"\",'Enrollment Form'!$CG17=\"No\"),\"-\",IF(AND('Enrollment Form'!$CG17=\"Yes\",'Enrollment Form'!$CI17=\"\"),\"N\",\"Y\"))","v":"-"},{"$f":"IF('Enrollment Form'!B17<>\"Subscriber\",\"-\",IF(AND('Enrollment Form'!B17=\"Subscriber\",'Enrollment Form'!C17=\"Enroll\",'Enrollment Form'!AA17=\"\"),\"N\",\"Y\"))","v":"-"},{"$f":"IF(OR('Enrollment Form'!B17=\"Subscriber\",'Enrollment Form'!B17=\"\"),\"-\",IF('Enrollment Form'!BI17=\"\",\"N\",\"Y\"))","v":"-"},{"$f":"IF('Enrollment Form'!B17<>\"Subscriber\",\"-\",IF(AND('Enrollment Form'!B17=\"Subscriber\",'Enrollment Form'!G17=\"\"),\"N\",\"Y\"))","v":"-"},{"$f":"IF('Enrollment Form'!A17=\"\",\"\",IF('Enrollment Form'!B17=\"Subscriber\",\"-\",IF(AND('Enrollment Form'!B17<>\"Subscriber\",'Enrollment Form'!G17='Enrollment Form'!H17),\"N\",\"Y\")))","v":""},0,{"$nulls":6},"07","Depend ZIP Code 5 digits?","ZIP code must be 5 characters long","BL"]
[18,{"$f":"IF('Enrollment Form'!$A18<>\"\",\"Y\",\"N\")","v":"N"},{"$f":"IF(AND('Enrollment Form'!$B18=\"\",'Enrollment Form'!$C18<>\"\"),\"N\",IF($B11=\"N\",\"\",\"Y\"))","v":""},{"$f":"IF(OR($B11=\"N\",'Enrollment Form'!G18=\"\"),\"\",IF('Enrollment Form'!$B18<>\"Subscriber\",\"\",IF('Enrollment Form'!$G18='Enrollment Form'!$H18,\"Y\",\"N\")))","v":""},{"$f":"IF($B11=\"N\",\"\",IF(AND(COUNTIFS('Enrollment Form'!$H$11:$H$1000,'Enrollment Form'!$H18,'Enrollment Form'!$B$11:$B$1000,'Enrollment Form'!$B18)>1,'Enrollment Form'!$H18<>\"\"),\"N\",\"Y\"))","v":""},{"$f":"IF($B11=\"N\",\"\",IF(LEN('Enrollment Form'!$Y18)=0,\"\",IF(LEN('Enrollment Form'!$Y18)<>5,\"N\",\"Y\")))","v":""},{"$f":"IF($B11=\"N\",\"\",IF(LEN('Enrollment Form'!$AD18=0),\"\",IF(LEN('Enrollment Form'!$AD18)<>5,\"N\",\"Y\")))","v":""},{"$f":"IF($B11=\"N\",\"\",IF(LEN('Enrollment Form'!$BL18=0),\"\",IF(LEN('Enrollment Form'!$BL18)<>5,\"N\",\"Y\")))","v":""},{"$f":"IF($B11=\"N\",\"\",IF(LEN('Enrollment Form'!$AE18)=0,\"\",IF(LEN('Enrollment Form'!$AE18)<>10,\"N\",\"Y\")))","v":""},{"$f":"IF($B11=\"N\",\"\",IF(LEN('Enrollment Form'!$AF18)=0,\"\",IF(LEN('Enrollment Form'!$AF18)<>10,\"N\",\"Y\")))","v":""},{"$f":"IF('Enrollment Form'!$O18<>\"Graded\",\"-\",IF(AND('Enrollment Form'!$O18=\"Graded\",'Enrollment Form'!$AO18<>\"\"),\"Y\",\"N\"))","v":"-"},{"$f":"IF($B11=\"N\",\"\",IF(OR('Enrollment Form'!$B18<>\"Subscriber\",'Enrollment Form'!$C18=\"ROC\"),\"-\",IF(AND('Enrollment Form'!$B18=\"Subscriber\",'Enrollment Form'!$C18=\"Enroll\",'Enrollment Form'!$AJ18<>\"\"),\"Y\",\"N\")))","v":""},{"$f":"IF($B11=\"N\",\"\",IF(OR('Enrollment Form'!$B18<>\"Subscriber\",'Enrollment Form'!$C18=\"ROC\"),\"-\",IF(AND('Enrollment Form'!$B18=\"Subscriber\",'Enrollment Form'!$C18=\"Enroll\",'Enrollment Form'!$AK18<>\"\"),\"Y\",\"N\")))","v":""},{"$f":"IF($B11=\"N\",\"\",IF(OR('Enrollment Form'!$B18<>\"Subscriber\",'Enrollment Form'!$C18=\"ROC\"),\"-\",IF(AND('Enrollment Form'!$B18=\"Subscriber\",'Enrollment Form'!$C18=\"Enroll\",'Enrollment Form'!$AL18<>\"\"),\"Y\",\"N\")))","v":""},{"$f":"IF($B11=\"N\",\"\",IF(OR('Enrollment Form'!$B18<>\"Subscriber\",'Enrollment Form'!$C18=\"ROC\"),\"-\",IF(AND('Enrollment Form'!$B18=\"Subscriber\",'Enrollment Form'!$C18=\"Enroll\",'Enrollment Form'!$AM18<>\"\"),\"Y\",\"N\")))","v":""},{"$f":"IF($B11=\"N\",\"\",IF(OR('Enrollment Form'!$B18<>\"Subscriber\",'Enrollment Form'!$C18=\"ROC\"),\"-\",IF(AND('Enrollment Form'!$B18=\"Subscriber\",'Enrollment Form'!$C18=\"Enroll\",'Enrollment Form'!$AN18<>\"\"),\"Y\",\"N\")))","v":""},{"$f":"IF($B11=\"N\",\"\",IF(OR('Enrollment Form'!$B18<>\"Subscriber\",'Enrollment Form'!$C18=\"ROC\"),\"-\",IF(AND('Enrollment Form'!$B18=\"Subscriber\",'Enrollment Form'!$C18=\"Enroll\",'Enrollment Form'!$AP18<>\"\"),\"Y\",\"N\")))","v":""},{"$f":"IF($B11=\"N\",\"\",IF($Q11=\"-\",\"-\",IF(AND($Q11=\"Y\",'Enrollment Form'!$AP18=\"No\"),\"-\",IF(AND($Q11=\"Y\",'Enrollment Form'!$AP18=\"Yes\",'Enrollment Form'!$AQ18<>\"\"),\"Y\",\"N\"))))","v":""},{"$f":"IF($B11=\"N\",\"\",IF(OR('Enrollment Form'!$B18<>\"Subscriber\",'Enrollment Form'!$C18=\"ROC\"),\"-\",IF(AND('Enrollment Form'!$B18=\"Subscriber\",'Enrollment Form'!$C18=\"Enroll\",'Enrollment Form'!$CO18<>\"\"),\"Y\",\"N\")))","v":""},{"$f":"IF($B11=\"N\",\"\",IF($S11=\"-\",\"-\",IF(AND($S11=\"Y\",'Enrollment Form'!$CO18=\"No\"),\"-\",IF(AND($S11=\"Y\",'Enrollment Form'!$CO18=\"Yes\",'Enrollment Form'!$CP18<>\"\"),\"Y\",\"N\"))))","v":""},{"$f":"IF(OR('Enrollment Form'!$AV18=\"Yes\",'Enrollment Form'!$AV18=\"\"),\"-\",IF(AND('Enrollment Form'!$AV18=\"No\",ISERROR(FIND(\"HMO\",VLOOKUP('Enrollment Form'!G18,'Enrollment Form'!H$11:J$1000,3,FALSE),1))=FALSE,COUNTA('Enrollment Form'!$AW18:$AZ18)=4),\"Y\",\"N\"))","v":"-"},{"$f":"IF($B11=\"N\",\"\",IF('Enrollment Form'!$B18=\"Subscriber\",\"-\",IF(COUNTA('Enrollment Form'!$BE18,'Enrollment Form'!$BG18)=2,\"Y\",\"N\")))","v":""},{"$f":"IF($B11=\"N\",\"\",IF(OR('Enrollment Form'!$AU18=\"\",'Enrollment Form'!$AU18=\"No\"),\"-\",IF(AND('Enrollment Form'!$AU18=\"Yes\",COUNTA('Enrollment Form'!$CK18)=1),\"Y\",\"N\")))","v":""},{"$f":"IF(OR('Enrollment Form'!$CK18=\"\",'Enrollment Form'!$CK18=\"No\"),\"-\",IF(COUNTA('Enrollment Form'!$CM18:$CN18)=2,\"Y\",\"N\"))","v":"-"},{"$f":"IF($B11=\"N\",\"\",IF(COUNTIF('Enrollment Form'!$CZ18:$DO18,\"Other\")=COUNTA('Enrollment Form'!$DF18,'Enrollment Form'!$DA18,'Enrollment Form'!$DK18,'Enrollment Form'!$DP18),\"Y\",\"N\"))","v":""},{"$f":"IF($B11=\"N\",\"\",IF(OR('Enrollment Form'!B18<>\"Subscriber\",'Enrollment Form'!C18=\"ROC\",COUNTIF('Enrollment Form'!AS18:AT18,\"Yes\")>=1),\"-\",IF(AND('Enrollment Form'!C18=\"Enroll\",COUNTIF('Enrollment Form'!AS18:AT18,\"No\")=2,'Enrollment Form'!AU18=\"\"),\"N\",\"Y\")))","v":""},{"$f":"IF(OR(B11=\"N\",'Enrollment Form'!B18<>\"Subscriber\",'Enrollment Form'!C18=\"ROC\",'Enrollment Form'!O18<>\"Multiple of Salary\"),\"-\",IF(COUNTA('Enrollment Form'!T18:U18)<2,\"N\",\"Y\"))","v":"-"},{"$f":"IF(B11=\"N\",\"\",IF(OR('Enrollment Form'!C18=\"ROC\",'Enrollment Form'!B18<>\"Subscriber\",'Enrollment Form'!O18=\"Waive\",'Enrollment Form'!O18=\"\"),\"-\",IF('Enrollment Form'!P18=\"\",\"N\",\"Y\")))","v":""},{"$f":"IF($B11=\"N\",\"\",IF(AND('Enrollment Form'!$C18=\"ROC\",'Enrollment Form'!$DS18<>\"\"),\"Y\",IF(AND('Enrollment Form'!$C18=\"ROC\",'Enrollment Form'!$DS18=\"\"),\"N\",IF(AND('Enrollment Form'!$C18=\"Enroll\",'Enrollment Form'!$B18=\"Subscriber\",'Enrollment Form'!$CQ18=\"No\",'Enrollment Form'!$DS18=\"\"),\"N\",IF(AND('Enrollment Form'!$C18=\"Enroll\",'Enrollment Form'!$B18=\"Subscriber\",'Enrollment Form'!$CQ18=\"Yes\"),\"-\",\"Y\")))))","v":""},{"$f":"IF($B11=\"N\",\"\",IF(AND('Enrollment Form'!$C18=\"ROC\",'Enrollment Form'!$DT18<>\"\"),\"Y\",IF(AND('Enrollment Form'!$C18=\"ROC\",'Enrollment Form'!$DT18=\"\"),\"N\",IF(AND('Enrollment Form'!$C18=\"Enroll\",'Enrollment Form'!$B18=\"Subscriber\",'Enrollment Form'!$CQ18=\"No\",'Enrollment Form'!$DT18=\"\"),\"N\",IF(AND('Enrollment Form'!$C18=\"Enroll\",'Enrollment Form'!$B18=\"Subscriber\",'Enrollment Form'!$CQ18=\"Yes\"),\"-\",\"Y\")))))","v":""},{"$f":"IF('Enrollment Form'!AH18=\"\",\"\",IF(ISERROR(SEARCH(\".\",'Enrollment Form'!AH18,SEARCH(\"@\",'Enrollment Form'!AH18))),\"N\",\"Y\"))","v":""},{"$f":"IF(OR($B11=\"N\",'Enrollment Form'!$G18=\"\"),\"\",IF('Enrollment Form'!$B18<>\"Subscriber\",\"-\",IF(COUNTIF('Enrollment Form'!$AS18:$AT18,\"Yes\")=2,\"N\",\"Y\")))","v":""},{"$f":"IF(OR('Enrollment Form'!$CC18=\"\",'Enrollment Form'!$CC18=\"No\"),\"-\",IF(AND('Enrollment Form'!$CC18=\"Yes\",'Enrollment Form'!$CD18=\"\"),\"N\",\"Y\"))","v":"-"},{"$f":"IF(OR('Enrollment Form'!$CE18=\"\",'Enrollment Form'!$CE18=\"No\"),\"-\",IF(AND('Enrollment Form'!$CE18=\"Yes\",'Enrollment Form'!$CF18=\"\"),\"N\",\"Y\"))","v":"-"},{"$f":"IF(OR('Enrollment Form'!$CG18=\"\",'Enrollment Form'!$CG18=\"No\"),\"-\",IF(AND('Enrollment Form'!$CG18=\"Yes\",'Enrollment Form'!$CH18=\"\"),\"N\",\"Y\"))","v":"-"},{"$f":"IF(OR('Enrollment Form'!$CG18=\"\",'Enrollment Form'!$CG18=\"No\"),\"-\",IF(AND('Enrollment Form'!$CG18=\"Yes\",'Enrollment Form'!$CI18=\"\"),\"N\",\"Y\"))","v":"-"},{"$f":"IF('Enrollment Form'!B18<>\"Subscriber\",\"-\",IF(AND('Enrollment Form'!B18=\"Subscriber\",'Enrollment Form'!C18=\"Enroll\",'Enrollment Form'!AA18=\"\"),\"N\",\"Y\"))","v":"-"},{"$f":"IF(OR('Enrollment Form'!B18=\"Subscriber\",'Enrollment Form'!B18=\"\"),\"-\",IF('Enrollment Form'!BI18=\"\",\"N\",\"Y\"))","v":"-"},{"$f":"IF('Enrollment Form'!B18<>\"Subscriber\",\"-\",IF(AND('Enrollment Form'!B18=\"Subscriber\",'Enrollment Form'!G18=\"\"),\"N\",\"Y\"))","v":"-"},{"$f":"IF('Enrollment Form'!A18=\"\",\"\",IF('Enrollment Form'!B18=\"Subscriber\",\"-\",IF(AND('Enrollment Form'!B18<>\"Subscriber\",'Enrollment Form'!G18='Enrollment Form'!H18),\"N\",\"Y\")))","v":""},0,{"$nulls":6},"08","Sub Work Phone 10 digits?","Phone number must be 10 characters long","AF"]
[19,{"$f":"IF('Enrollment Form'!$A19<>\"\",\"Y\",\"N\")","v":"N"},{"$f":"IF(AND('Enrollment Form'!$B19=\"\",'Enrollment Form'!$C19<>\"\"),\"N\",IF($B12=\"N\",\"\",\"Y\"))","v":""},{"$f":"IF(OR($B12=\"N\",'Enrollment Form'!G19=\"\"),\"\",IF('Enrollment Form'!$B19<>\"Subscriber\",\"\",IF('Enrollment Form'!$G19='Enrollment Form'!$H19,\"Y\",\"N\")))","v":""},{"$f":"IF($B12=\"N\",\"\",IF(AND(COUNTIFS('Enrollment Form'!$H$11:$H$1000,'Enrollment Form'!$H19,'Enrollment Form'!$B$11:$B$1000,'Enrollment Form'!$B19)>1,'Enrollment Form'!$H19<>\"\"),\"N\",\"Y\"))","v":""},{"$f":"IF($B12=\"N\",\"\",IF(LEN('Enrollment Form'!$Y19)=0,\"\",IF(LEN('Enrollment Form'!$Y19)<>5,\"N\",\"Y\")))","v":""},{"$f":"IF($B12=\"N\",\"\",IF(LEN('Enrollment Form'!$AD19=0),\"\",IF(LEN('Enrollment Form'!$AD19)<>5,\"N\",\"Y\")))","v":""},{"$f":"IF($B12=\"N\",\"\",IF(LEN('Enrollment Form'!$BL19=0),\"\",IF(LEN('Enrollment Form'!$BL19)<>5,\"N\",\"Y\")))","v":""},{"$f":"IF($B12=\"N\",\"\",IF(LEN('Enrollment Form'!$AE19)=0,\"\",IF(LEN('Enrollment Form'!$AE19)<>10,\"N\",\"Y\")))","v":""},{"$f":"IF($B12=\"N\",\"\",IF(LEN('Enrollment Form'!$AF19)=0,\"\",IF(LEN('Enrollment Form'!$AF19)<>10,\"N\",\"Y\")))","v":""},{"$f":"IF('Enrollment Form'!$O19<>\"Graded\",\"-\",IF(AND('Enrollment Form'!$O19=\"Graded\",'Enrollment Form'!$AO19<>\"\"),\"Y\",\"N\"))","v":"-"},{"$f":"IF($B12=\"N\",\"\",IF(OR('Enrollment Form'!$B19<>\"Subscriber\",'Enrollment Form'!$C19=\"ROC\"),\"-\",IF(AND('Enrollment Form'!$B19=\"Subscriber\",'Enrollment Form'!$C19=\"Enroll\",'Enrollment Form'!$AJ19<>\"\"),\"Y\",\"N\")))","v":""},{"$f":"IF($B12=\"N\",\"\",IF(OR('Enrollment Form'!$B19<>\"Subscriber\",'Enrollment Form'!$C19=\"ROC\"),\"-\",IF(AND('Enrollment Form'!$B19=\"Subscriber\",'Enrollment Form'!$C19=\"Enroll\",'Enrollment Form'!$AK19<>\"\"),\"Y\",\"N\")))","v":""},{"$f":"IF($B12=\"N\",\"\",IF(OR('Enrollment Form'!$B19<>\"Subscriber\",'Enrollment Form'!$C19=\"ROC\"),\"-\",IF(AND('Enrollment Form'!$B19=\"Subscriber\",'Enrollment Form'!$C19=\"Enroll\",'Enrollment Form'!$AL19<>\"\"),\"Y\",\"N\")))","v":""},{"$f":"IF($B12=\"N\",\"\",IF(OR('Enrollment Form'!$B19<>\"Subscriber\",'Enrollment Form'!$C19=\"ROC\"),\"-\",IF(AND('Enrollment Form'!$B19=\"Subscriber\",'Enrollment Form'!$C19=\"Enroll\",'Enrollment Form'!$AM19<>\"\"),\"Y\",\"N\")))","v":""},{"$f":"IF($B12=\"N\",\"\",IF(OR('Enrollment Form'!$B19<>\"Subscriber\",'Enrollment Form'!$C19=\"ROC\"),\"-\",IF(AND('Enrollment Form'!$B19=\"Subscriber\",'Enrollment Form'!$C19=\"Enroll\",'Enrollment Form'!$AN19<>\"\"),\"Y\",\"N\")))","v":""},{"$f":"IF($B12=\"N\",\"\",IF(OR('Enrollment Form'!$B19<>\"Subscriber\",'Enrollment Form'!$C19=\"ROC\"),\"-\",IF(AND('Enrollment Form'!$B19=\"Subscriber\",'Enrollment Form'!$C19=\"Enroll\",'Enrollment Form'!$AP19<>\"\"),\"Y\",\"N\")))","v":""},{"$f":"IF($B12=\"N\",\"\",IF($Q12=\"-\",\"-\",IF(AND($Q12=\"Y\",'Enrollment Form'!$AP19=\"No\"),\"-\",IF(AND($Q12=\"Y\",'Enrollment Form'!$AP19=\"Yes\",'Enrollment Form'!$AQ19<>\"\"),\"Y\",\"N\"))))","v":""},{"$f":"IF($B12=\"N\",\"\",IF(OR('Enrollment Form'!$B19<>\"Subscriber\",'Enrollment Form'!$C19=\"ROC\"),\"-\",IF(AND('Enrollment Form'!$B19=\"Subscriber\",'Enrollment Form'!$C19=\"Enroll\",'Enrollment Form'!$CO19<>\"\"),\"Y\",\"N\")))","v":""},{"$f":"IF($B12=\"N\",\"\",IF($S12=\"-\",\"-\",IF(AND($S12=\"Y\",'Enrollment Form'!$CO19=\"No\"),\"-\",IF(AND($S12=\"Y\",'Enrollment Form'!$CO19=\"Yes\",'Enrollment Form'!$CP19<>\"\"),\"Y\",\"N\"))))","v":""},{"$f":"IF(OR('Enrollment Form'!$AV19=\"Yes\",'Enrollment Form'!$AV19=\"\"),\"-\",IF(AND('Enrollment Form'!$AV19=\"No\",ISERROR(FIND(\"HMO\",VLOOKUP('Enrollment Form'!G19,'Enrollment Form'!H$11:J$1000,3,FALSE),1))=FALSE,COUNTA('Enrollment Form'!$AW19:$AZ19)=4),\"Y\",\"N\"))","v":"-"},{"$f":"IF($B12=\"N\",\"\",IF('Enrollment Form'!$B19=\"Subscriber\",\"-\",IF(COUNTA('Enrollment Form'!$BE19,'Enrollment Form'!$BG19)=2,\"Y\",\"N\")))","v":""},{"$f":"IF($B12=\"N\",\"\",IF(OR('Enrollment Form'!$AU19=\"\",'Enrollment Form'!$AU19=\"No\"),\"-\",IF(AND('Enrollment Form'!$AU19=\"Yes\",COUNTA('Enrollment Form'!$CK19)=1),\"Y\",\"N\")))","v":""},{"$f":"IF(OR('Enrollment Form'!$CK19=\"\",'Enrollment Form'!$CK19=\"No\"),\"-\",IF(COUNTA('Enrollment Form'!$CM19:$CN19)=2,\"Y\",\"N\"))","v":"-"},{"$f":"IF($B12=\"N\",\"\",IF(COUNTIF('Enrollment Form'!$CZ19:$DO19,\"Other\")=COUNTA('Enrollment Form'!$DF19,'Enrollment Form'!$DA19,'Enrollment Form'!$DK19,'Enrollment Form'!$DP19),\"Y\",\"N\"))","v":""},{"$f":"IF($B12=\"N\",\"\",IF(OR('Enrollment Form'!B19<>\"Subscriber\",'Enrollment Form'!C19=\"ROC\",COUNTIF('Enrollment Form'!AS19:AT19,\"Yes\")>=1),\"-\",IF(AND('Enrollment Form'!C19=\"Enroll\",COUNTIF('Enrollment Form'!AS19:AT19,\"No\")=2,'Enrollment Form'!AU19=\"\"),\"N\",\"Y\")))","v":""},{"$f":"IF(OR(B12=\"N\",'Enrollment Form'!B19<>\"Subscriber\",'Enrollment Form'!C19=\"ROC\",'Enrollment Form'!O19<>\"Multiple of Salary\"),\"-\",IF(COUNTA('Enrollment Form'!T19:U19)<2,\"N\",\"Y\"))","v":"-"},{"$f":"IF(B12=\"N\",\"\",IF(OR('Enrollment Form'!C19=\"ROC\",'Enrollment Form'!B19<>\"Subscriber\",'Enrollment Form'!O19=\"Waive\",'Enrollment Form'!O19=\"\"),\"-\",IF('Enrollment Form'!P19=\"\",\"N\",\"Y\")))","v":""},{"$f":"IF($B12=\"N\",\"\",IF(AND('Enrollment Form'!$C19=\"ROC\",'Enrollment Form'!$DS19<>\"\"),\"Y\",IF(AND('Enrollment Form'!$C19=\"ROC\",'Enrollment Form'!$DS19=\"\"),\"N\",IF(AND('Enrollment Form'!$C19=\"Enroll\",'Enrollment Form'!$B19=\"Subscriber\",'Enrollment Form'!$CQ19=\"No\",'Enrollment Form'!$DS19=\"\"),\"N\",IF(AND('Enrollment Form'!$C19=\"Enroll\",'Enrollment Form'!$B19=\"Subscriber\",'Enrollment Form'!$CQ19=\"Yes\"),\"-\",\"Y\")))))","v":""},{"$f":"IF($B12=\"N\",\"\",IF(AND('Enrollment Form'!$C19=\"ROC\",'Enrollment Form'!$DT19<>\"\"),\"Y\",IF(AND('Enrollment Form'!$C19=\"ROC\",'Enrollment Form'!$DT19=\"\"),\"N\",IF(AND('Enrollment Form'!$C19=\"Enroll\",'Enrollment Form'!$B19=\"Subscriber\",'Enrollment Form'!$CQ19=\"No\",'Enrollment Form'!$DT19=\"\"),\"N\",IF(AND('Enrollment Form'!$C19=\"Enroll\",'Enrollment Form'!$B19=\"Subscriber\",'Enrollment Form'!$CQ19=\"Yes\"),\"-\",\"Y\")))))","v":""},{"$f":"IF('Enrollment Form'!AH19=\"\",\"\",IF(ISERROR(SEARCH(\".\",'Enrollment Form'!AH19,SEARCH(\"@\",'Enrollment Form'!AH19))),\"N\",\"Y\"))","v":""},{"$f":"IF(OR($B12=\"N\",'Enrollment Form'!$G19=\"\"),\"\",IF('Enrollment Form'!$B19<>\"Subscriber\",\"-\",IF(COUNTIF('Enrollment Form'!$AS19:$AT19,\"Yes\")=2,\"N\",\"Y\")))","v":""},{"$f":"IF(OR('Enrollment Form'!$CC19=\"\",'Enrollment Form'!$CC19=\"No\"),\"-\",IF(AND('Enrollment Form'!$CC19=\"Yes\",'Enrollment Form'!$CD19=\"\"),\"N\",\"Y\"))","v":"-"},{"$f":"IF(OR('Enrollment Form'!$CE19=\"\",'Enrollment Form'!$CE19=\"No\"),\"-\",IF(AND('Enrollment Form'!$CE19=\"Yes\",'Enrollment Form'!$CF19=\"\"),\"N\",\"Y\"))","v":"-"},{"$f":"IF(OR('Enrollment Form'!$CG19=\"\",'Enrollment Form'!$CG19=\"No\"),\"-\",IF(AND('Enrollment Form'!$CG19=\"Yes\",'Enrollment Form'!$CH19=\"\"),\"N\",\"Y\"))","v":"-"},{"$f":"IF(OR('Enrollment Form'!$CG19=\"\",'Enrollment Form'!$CG19=\"No\"),\"-\",IF(AND('Enrollment Form'!$CG19=\"Yes\",'Enrollment Form'!$CI19=\"\"),\"N\",\"Y\"))","v":"-"},{"$f":"IF('Enrollment Form'!B19<>\"Subscriber\",\"-\",IF(AND('Enrollment Form'!B19=\"Subscriber\",'Enrollment Form'!C19=\"Enroll\",'Enrollment Form'!AA19=\"\"),\"N\",\"Y\"))","v":"-"},{"$f":"IF(OR('Enrollment Form'!B19=\"Subscriber\",'Enrollment Form'!B19=\"\"),\"-\",IF('Enrollment Form'!BI19=\"\",\"N\",\"Y\"))","v":"-"},{"$f":"IF('Enrollment Form'!B19<>\"Subscriber\",\"-\",IF(AND('Enrollment Form'!B19=\"Subscriber\",'Enrollment Form'!G19=\"\"),\"N\",\"Y\"))","v":"-"},{"$f":"IF('Enrollment Form'!A19=\"\",\"\",IF('Enrollment Form'!B19=\"Subscriber\",\"-\",IF(AND('Enrollment Form'!B19<>\"Subscriber\",'Enrollment Form'!G19='Enrollment Form'!H19),\"N\",\"Y\")))","v":""},0,{"$nulls":6},"09","Sub Home Phone 10 digits?","Phone number must be 10 characters long","AE"]
[20,{"$f":"IF('Enrollment Form'!$A20<>\"\",\"Y\",\"N\")","v":"N"},{"$f":"IF(AND('Enrollment Form'!$B20=\"\",'Enrollment Form'!$C20<>\"\"),\"N\",IF($B13=\"N\",\"\",\"Y\"))","v":""},{"$f":"IF(OR($B13=\"N\",'Enrollment Form'!G20=\"\"),\"\",IF('Enrollment Form'!$B20<>\"Subscriber\",\"\",IF('Enrollment Form'!$G20='Enrollment Form'!$H20,\"Y\",\"N\")))","v":""},{"$f":"IF($B13=\"N\",\"\",IF(AND(COUNTIFS('Enrollment Form'!$H$11:$H$1000,'Enrollment Form'!$H20,'Enrollment Form'!$B$11:$B$1000,'Enrollment Form'!$B20)>1,'Enrollment Form'!$H20<>\"\"),\"N\",\"Y\"))","v":""},{"$f":"IF($B13=\"N\",\"\",IF(LEN('Enrollment Form'!$Y20)=0,\"\",IF(LEN('Enrollment Form'!$Y20)<>5,\"N\",\"Y\")))","v":""},{"$f":"IF($B13=\"N\",\"\",IF(LEN('Enrollment Form'!$AD20=0),\"\",IF(LEN('Enrollment Form'!$AD20)<>5,\"N\",\"Y\")))","v":""},{"$f":"IF($B13=\"N\",\"\",IF(LEN('Enrollment Form'!$BL20=0),\"\",IF(LEN('Enrollment Form'!$BL20)<>5,\"N\",\"Y\")))","v":""},{"$f":"IF($B13=\"N\",\"\",IF(LEN('Enrollment Form'!$AE20)=0,\"\",IF(LEN('Enrollment Form'!$AE20)<>10,\"N\",\"Y\")))","v":""},{"$f":"IF($B13=\"N\",\"\",IF(LEN('Enrollment Form'!$AF20)=0,\"\",IF(LEN('Enrollment Form'!$AF20)<>10,\"N\",\"Y\")))","v":""},{"$f":"IF('Enrollment Form'!$O20<>\"Graded\",\"-\",IF(AND('Enrollment Form'!$O20=\"Graded\",'Enrollment Form'!$AO20<>\"\"),\"Y\",\"N\"))","v":"-"},{"$f":"IF($B13=\"N\",\"\",IF(OR('Enrollment Form'!$B20<>\"Subscriber\",'Enrollment Form'!$C20=\"ROC\"),\"-\",IF(AND('Enrollment Form'!$B20=\"Subscriber\",'Enrollment Form'!$C20=\"Enroll\",'Enrollment Form'!$AJ20<>\"\"),\"Y\",\"N\")))","v":""},{"$f":"IF($B13=\"N\",\"\",IF(OR('Enrollment Form'!$B20<>\"Subscriber\",'Enrollment Form'!$C20=\"ROC\"),\"-\",IF(AND('Enrollment Form'!$B20=\"Subscriber\",'Enrollment Form'!$C20=\"Enroll\",'Enrollment Form'!$AK20<>\"\"),\"Y\",\"N\")))","v":""},{"$f":"IF($B13=\"N\",\"\",IF(OR('Enrollment Form'!$B20<>\"Subscriber\",'Enrollment Form'!$C20=\"ROC\"),\"-\",IF(AND('Enrollment Form'!$B20=\"Subscriber\",'Enrollment Form'!$C20=\"Enroll\",'Enrollment Form'!$AL20<>\"\"),\"Y\",\"N\")))","v":""},{"$f":"IF($B13=\"N\",\"\",IF(OR('Enrollment Form'!$B20<>\"Subscriber\",'Enrollment Form'!$C20=\"ROC\"),\"-\",IF(AND('Enrollment Form'!$B20=\"Subscriber\",'Enrollment Form'!$C20=\"Enroll\",'Enrollment Form'!$AM20<>\"\"),\"Y\",\"N\")))","v":""},{"$f":"IF($B13=\"N\",\"\",IF(OR('Enrollment Form'!$B20<>\"Subscriber\",'Enrollment Form'!$C20=\"ROC\"),\"-\",IF(AND('Enrollment Form'!$B20=\"Subscriber\",'Enrollment Form'!$C20=\"Enroll\",'Enrollment Form'!$AN20<>\"\"),\"Y\",\"N\")))","v":""},{"$f":"IF($B13=\"N\",\"\",IF(OR('Enrollment Form'!$B20<>\"Subscriber\",'Enrollment Form'!$C20=\"ROC\"),\"-\",IF(AND('Enrollment Form'!$B20=\"Subscriber\",'Enrollment Form'!$C20=\"Enroll\",'Enrollment Form'!$AP20<>\"\"),\"Y\",\"N\")))","v":""},{"$f":"IF($B13=\"N\",\"\",IF($Q13=\"-\",\"-\",IF(AND($Q13=\"Y\",'Enrollment Form'!$AP20=\"No\"),\"-\",IF(AND($Q13=\"Y\",'Enrollment Form'!$AP20=\"Yes\",'Enrollment Form'!$AQ20<>\"\"),\"Y\",\"N\"))))","v":""},{"$f":"IF($B13=\"N\",\"\",IF(OR('Enrollment Form'!$B20<>\"Subscriber\",'Enrollment Form'!$C20=\"ROC\"),\"-\",IF(AND('Enrollment Form'!$B20=\"Subscriber\",'Enrollment Form'!$C20=\"Enroll\",'Enrollment Form'!$CO20<>\"\"),\"Y\",\"N\")))","v":""},{"$f":"IF($B13=\"N\",\"\",IF($S13=\"-\",\"-\",IF(AND($S13=\"Y\",'Enrollment Form'!$CO20=\"No\"),\"-\",IF(AND($S13=\"Y\",'Enrollment Form'!$CO20=\"Yes\",'Enrollment Form'!$CP20<>\"\"),\"Y\",\"N\"))))","v":""},{"$f":"IF(OR('Enrollment Form'!$AV20=\"Yes\",'Enrollment Form'!$AV20=\"\"),\"-\",IF(AND('Enrollment Form'!$AV20=\"No\",ISERROR(FIND(\"HMO\",VLOOKUP('Enrollment Form'!G20,'Enrollment Form'!H$11:J$1000,3,FALSE),1))=FALSE,COUNTA('Enrollment Form'!$AW20:$AZ20)=4),\"Y\",\"N\"))","v":"-"},{"$f":"IF($B13=\"N\",\"\",IF('Enrollment Form'!$B20=\"Subscriber\",\"-\",IF(COUNTA('Enrollment Form'!$BE20,'Enrollment Form'!$BG20)=2,\"Y\",\"N\")))","v":""},{"$f":"IF($B13=\"N\",\"\",IF(OR('Enrollment Form'!$AU20=\"\",'Enrollment Form'!$AU20=\"No\"),\"-\",IF(AND('Enrollment Form'!$AU20=\"Yes\",COUNTA('Enrollment Form'!$CK20)=1),\"Y\",\"N\")))","v":""},{"$f":"IF(OR('Enrollment Form'!$CK20=\"\",'Enrollment Form'!$CK20=\"No\"),\"-\",IF(COUNTA('Enrollment Form'!$CM20:$CN20)=2,\"Y\",\"N\"))","v":"-"},{"$f":"IF($B13=\"N\",\"\",IF(COUNTIF('Enrollment Form'!$CZ20:$DO20,\"Other\")=COUNTA('Enrollment Form'!$DF20,'Enrollment Form'!$DA20,'Enrollment Form'!$DK20,'Enrollment Form'!$DP20),\"Y\",\"N\"))","v":""},{"$f":"IF($B13=\"N\",\"\",IF(OR('Enrollment Form'!B20<>\"Subscriber\",'Enrollment Form'!C20=\"ROC\",COUNTIF('Enrollment Form'!AS20:AT20,\"Yes\")>=1),\"-\",IF(AND('Enrollment Form'!C20=\"Enroll\",COUNTIF('Enrollment Form'!AS20:AT20,\"No\")=2,'Enrollment Form'!AU20=\"\"),\"N\",\"Y\")))","v":""},{"$f":"IF(OR(B13=\"N\",'Enrollment Form'!B20<>\"Subscriber\",'Enrollment Form'!C20=\"ROC\",'Enrollment Form'!O20<>\"Multiple of Salary\"),\"-\",IF(COUNTA('Enrollment Form'!T20:U20)<2,\"N\",\"Y\"))","v":"-"},{"$f":"IF(B13=\"N\",\"\",IF(OR('Enrollment Form'!C20=\"ROC\",'Enrollment Form'!B20<>\"Subscriber\",'Enrollment Form'!O20=\"Waive\",'Enrollment Form'!O20=\"\"),\"-\",IF('Enrollment Form'!P20=\"\",\"N\",\"Y\")))","v":""},{"$f":"IF($B13=\"N\",\"\",IF(AND('Enrollment Form'!$C20=\"ROC\",'Enrollment Form'!$DS20<>\"\"),\"Y\",IF(AND('Enrollment Form'!$C20=\"ROC\",'Enrollment Form'!$DS20=\"\"),\"N\",IF(AND('Enrollment Form'!$C20=\"Enroll\",'Enrollment Form'!$B20=\"Subscriber\",'Enrollment Form'!$CQ20=\"No\",'Enrollment Form'!$DS20=\"\"),\"N\",IF(AND('Enrollment Form'!$C20=\"Enroll\",'Enrollment Form'!$B20=\"Subscriber\",'Enrollment Form'!$CQ20=\"Yes\"),\"-\",\"Y\")))))","v":""},{"$f":"IF($B13=\"N\",\"\",IF(AND('Enrollment Form'!$C20=\"ROC\",'Enrollment Form'!$DT20<>\"\"),\"Y\",IF(AND('Enrollment Form'!$C20=\"ROC\",'Enrollment Form'!$DT20=\"\"),\"N\",IF(AND('Enrollment Form'!$C20=\"Enroll\",'Enrollment Form'!$B20=\"Subscriber\",'Enrollment Form'!$CQ20=\"No\",'Enrollment Form'!$DT20=\"\"),\"N\",IF(AND('Enrollment Form'!$C20=\"Enroll\",'Enrollment Form'!$B20=\"Subscriber\",'Enrollment Form'!$CQ20=\"Yes\"),\"-\",\"Y\")))))","v":""},{"$f":"IF('Enrollment Form'!AH20=\"\",\"\",IF(ISERROR(SEARCH(\".\",'Enrollment Form'!AH20,SEARCH(\"@\",'Enrollment Form'!AH20))),\"N\",\"Y\"))","v":""},{"$f":"IF(OR($B13=\"N\",'Enrollment Form'!$G20=\"\"),\"\",IF('Enrollment Form'!$B20<>\"Subscriber\",\"-\",IF(COUNTIF('Enrollment Form'!$AS20:$AT20,\"Yes\")=2,\"N\",\"Y\")))","v":""},{"$f":"IF(OR('Enrollment Form'!$CC20=\"\",'Enrollment Form'!$CC20=\"No\"),\"-\",IF(AND('Enrollment Form'!$CC20=\"Yes\",'Enrollment Form'!$CD20=\"\"),\"N\",\"Y\"))","v":"-"},{"$f":"IF(OR('Enrollment Form'!$CE20=\"\",'Enrollment Form'!$CE20=\"No\"),\"-\",IF(AND('Enrollment Form'!$CE20=\"Yes\",'Enrollment Form'!$CF20=\"\"),\"N\",\"Y\"))","v":"-"},{"$f":"IF(OR('Enrollment Form'!$CG20=\"\",'Enrollment Form'!$CG20=\"No\"),\"-\",IF(AND('Enrollment Form'!$CG20=\"Yes\",'Enrollment Form'!$CH20=\"\"),\"N\",\"Y\"))","v":"-"},{"$f":"IF(OR('Enrollment Form'!$CG20=\"\",'Enrollment Form'!$CG20=\"No\"),\"-\",IF(AND('Enrollment Form'!$CG20=\"Yes\",'Enrollment Form'!$CI20=\"\"),\"N\",\"Y\"))","v":"-"},{"$f":"IF('Enrollment Form'!B20<>\"Subscriber\",\"-\",IF(AND('Enrollment Form'!B20=\"Subscriber\",'Enrollment Form'!C20=\"Enroll\",'Enrollment Form'!AA20=\"\"),\"N\",\"Y\"))","v":"-"},{"$f":"IF(OR('Enrollment Form'!B20=\"Subscriber\",'Enrollment Form'!B20=\"\"),\"-\",IF('Enrollment Form'!BI20=\"\",\"N\",\"Y\"))","v":"-"},{"$f":"IF('Enrollment Form'!B20<>\"Subscriber\",\"-\",IF(AND('Enrollment Form'!B20=\"Subscriber\",'Enrollment Form'!G20=\"\"),\"N\",\"Y\"))","v":"-"},{"$f":"IF('Enrollment Form'!A20=\"\",\"\",IF('Enrollment Form'!B20=\"Subscriber\",\"-\",IF(AND('Enrollment Form'!B20<>\"Subscriber\",'Enrollment Form'!G20='Enrollment Form'!H20),\"N\",\"Y\")))","v":""},0,{"$nulls":6},"10","Job Class filled if \"Graded\" LI?","Job Class must be populated if \"Graded\" Life Insurance is selected","O,AO"]
[21,{"$f":"IF('Enrollment Form'!$A21<>\"\",\"Y\",\"N\")","v":"N"},{"$f":"IF(AND('Enrollment Form'!$B21=\"\",'Enrollment Form'!$C21<>\"\"),\"N\",IF($B14=\"N\",\"\",\"Y\"))","v":""},{"$f":"IF(OR($B14=\"N\",'Enrollment Form'!G21=\"\"),\"\",IF('Enrollment Form'!$B21<>\"Subscriber\",\"\",IF('Enrollment Form'!$G21='Enrollment Form'!$H21,\"Y\",\"N\")))","v":""},{"$f":"IF($B14=\"N\",\"\",IF(AND(COUNTIFS('Enrollment Form'!$H$11:$H$1000,'Enrollment Form'!$H21,'Enrollment Form'!$B$11:$B$1000,'Enrollment Form'!$B21)>1,'Enrollment Form'!$H21<>\"\"),\"N\",\"Y\"))","v":""},{"$f":"IF($B14=\"N\",\"\",IF(LEN('Enrollment Form'!$Y21)=0,\"\",IF(LEN('Enrollment Form'!$Y21)<>5,\"N\",\"Y\")))","v":""},{"$f":"IF($B14=\"N\",\"\",IF(LEN('Enrollment Form'!$AD21=0),\"\",IF(LEN('Enrollment Form'!$AD21)<>5,\"N\",\"Y\")))","v":""},{"$f":"IF($B14=\"N\",\"\",IF(LEN('Enrollment Form'!$BL21=0),\"\",IF(LEN('Enrollment Form'!$BL21)<>5,\"N\",\"Y\")))","v":""},{"$f":"IF($B14=\"N\",\"\",IF(LEN('Enrollment Form'!$AE21)=0,\"\",IF(LEN('Enrollment Form'!$AE21)<>10,\"N\",\"Y\")))","v":""},{"$f":"IF($B14=\"N\",\"\",IF(LEN('Enrollment Form'!$AF21)=0,\"\",IF(LEN('Enrollment Form'!$AF21)<>10,\"N\",\"Y\")))","v":""},{"$f":"IF('Enrollment Form'!$O21<>\"Graded\",\"-\",IF(AND('Enrollment Form'!$O21=\"Graded\",'Enrollment Form'!$AO21<>\"\"),\"Y\",\"N\"))","v":"-"},{"$f":"IF($B14=\"N\",\"\",IF(OR('Enrollment Form'!$B21<>\"Subscriber\",'Enrollment Form'!$C21=\"ROC\"),\"-\",IF(AND('Enrollment Form'!$B21=\"Subscriber\",'Enrollment Form'!$C21=\"Enroll\",'Enrollment Form'!$AJ21<>\"\"),\"Y\",\"N\")))","v":""},{"$f":"IF($B14=\"N\",\"\",IF(OR('Enrollment Form'!$B21<>\"Subscriber\",'Enrollment Form'!$C21=\"ROC\"),\"-\",IF(AND('Enrollment Form'!$B21=\"Subscriber\",'Enrollment Form'!$C21=\"Enroll\",'Enrollment Form'!$AK21<>\"\"),\"Y\",\"N\")))","v":""},{"$f":"IF($B14=\"N\",\"\",IF(OR('Enrollment Form'!$B21<>\"Subscriber\",'Enrollment Form'!$C21=\"ROC\"),\"-\",IF(AND('Enrollment Form'!$B21=\"Subscriber\",'Enrollment Form'!$C21=\"Enroll\",'Enrollment Form'!$AL21<>\"\"),\"Y\",\"N\")))","v":""},{"$f":"IF($B14=\"N\",\"\",IF(OR('Enrollment Form'!$B21<>\"Subscriber\",'Enrollment Form'!$C21=\"ROC\"),\"-\",IF(AND('Enrollment Form'!$B21=\"Subscriber\",'Enrollment Form'!$C21=\"Enroll\",'Enrollment Form'!$AM21<>\"\"),\"Y\",\"N\")))","v":""},{"$f":"IF($B14=\"N\",\"\",IF(OR('Enrollment Form'!$B21<>\"Subscriber\",'Enrollment Form'!$C21=\"ROC\"),\"-\",IF(AND('Enrollment Form'!$B21=\"Subscriber\",'Enrollment Form'!$C21=\"Enroll\",'Enrollment Form'!$AN21<>\"\"),\"Y\",\"N\")))","v":""},{"$f":"IF($B14=\"N\",\"\",IF(OR('Enrollment Form'!$B21<>\"Subscriber\",'Enrollment Form'!$C21=\"ROC\"),\"-\",IF(AND('Enrollment Form'!$B21=\"Subscriber\",'Enrollment Form'!$C21=\"Enroll\",'Enrollment Form'!$AP21<>\"\"),\"Y\",\"N\")))","v":""},{"$f":"IF($B14=\"N\",\"\",IF($Q14=\"-\",\"-\",IF(AND($Q14=\"Y\",'Enrollment Form'!$AP21=\"No\"),\"-\",IF(AND($Q14=\"Y\",'Enrollment Form'!$AP21=\"Yes\",'Enrollment Form'!$AQ21<>\"\"),\"Y\",\"N\"))))","v":""},{"$f":"IF($B14=\"N\",\"\",IF(OR('Enrollment Form'!$B21<>\"Subscriber\",'Enrollment Form'!$C21=\"ROC\"),\"-\",IF(AND('Enrollment Form'!$B21=\"Subscriber\",'Enrollment Form'!$C21=\"Enroll\",'Enrollment Form'!$CO21<>\"\"),\"Y\",\"N\")))","v":""},{"$f":"IF($B14=\"N\",\"\",IF($S14=\"-\",\"-\",IF(AND($S14=\"Y\",'Enrollment Form'!$CO21=\"No\"),\"-\",IF(AND($S14=\"Y\",'Enrollment Form'!$CO21=\"Yes\",'Enrollment Form'!$CP21<>\"\"),\"Y\",\"N\"))))","v":""},{"$f":"IF(OR('Enrollment Form'!$AV21=\"Yes\",'Enrollment Form'!$AV21=\"\"),\"-\",IF(AND('Enrollment Form'!$AV21=\"No\",ISERROR(FIND(\"HMO\",VLOOKUP('Enrollment Form'!G21,'Enrollment Form'!H$11:J$1000,3,FALSE),1))=FALSE,COUNTA('Enrollment Form'!$AW21:$AZ21)=4),\"Y\",\"N\"))","v":"-"},{"$f":"IF($B14=\"N\",\"\",IF('Enrollment Form'!$B21=\"Subscriber\",\"-\",IF(COUNTA('Enrollment Form'!$BE21,'Enrollment Form'!$BG21)=2,\"Y\",\"N\")))","v":""},{"$f":"IF($B14=\"N\",\"\",IF(OR('Enrollment Form'!$AU21=\"\",'Enrollment Form'!$AU21=\"No\"),\"-\",IF(AND('Enrollment Form'!$AU21=\"Yes\",COUNTA('Enrollment Form'!$CK21)=1),\"Y\",\"N\")))","v":""},{"$f":"IF(OR('Enrollment Form'!$CK21=\"\",'Enrollment Form'!$CK21=\"No\"),\"-\",IF(COUNTA('Enrollment Form'!$CM21:$CN21)=2,\"Y\",\"N\"))","v":"-"},{"$f":"IF($B14=\"N\",\"\",IF(COUNTIF('Enrollment Form'!$CZ21:$DO21,\"Other\")=COUNTA('Enrollment Form'!$DF21,'Enrollment Form'!$DA21,'Enrollment Form'!$DK21,'Enrollment Form'!$DP21),\"Y\",\"N\"))","v":""},{"$f":"IF($B14=\"N\",\"\",IF(OR('Enrollment Form'!B21<>\"Subscriber\",'Enrollment Form'!C21=\"ROC\",COUNTIF('Enrollment Form'!AS21:AT21,\"Yes\")>=1),\"-\",IF(AND('Enrollment Form'!C21=\"Enroll\",COUNTIF('Enrollment Form'!AS21:AT21,\"No\")=2,'Enrollment Form'!AU21=\"\"),\"N\",\"Y\")))","v":""},{"$f":"IF(OR(B14=\"N\",'Enrollment Form'!B21<>\"Subscriber\",'Enrollment Form'!C21=\"ROC\",'Enrollment Form'!O21<>\"Multiple of Salary\"),\"-\",IF(COUNTA('Enrollment Form'!T21:U21)<2,\"N\",\"Y\"))","v":"-"},{"$f":"IF(B14=\"N\",\"\",IF(OR('Enrollment Form'!C21=\"ROC\",'Enrollment Form'!B21<>\"Subscriber\",'Enrollment Form'!O21=\"Waive\",'Enrollment Form'!O21=\"\"),\"-\",IF('Enrollment Form'!P21=\"\",\"N\",\"Y\")))","v":""},{"$f":"IF($B14=\"N\",\"\",IF(AND('Enrollment Form'!$C21=\"ROC\",'Enrollment Form'!$DS21<>\"\"),\"Y\",IF(AND('Enrollment Form'!$C21=\"ROC\",'Enrollment Form'!$DS21=\"\"),\"N\",IF(AND('Enrollment Form'!$C21=\"Enroll\",'Enrollment Form'!$B21=\"Subscriber\",'Enrollment Form'!$CQ21=\"No\",'Enrollment Form'!$DS21=\"\"),\"N\",IF(AND('Enrollment Form'!$C21=\"Enroll\",'Enrollment Form'!$B21=\"Subscriber\",'Enrollment Form'!$CQ21=\"Yes\"),\"-\",\"Y\")))))","v":""},{"$f":"IF($B14=\"N\",\"\",IF(AND('Enrollment Form'!$C21=\"ROC\",'Enrollment Form'!$DT21<>\"\"),\"Y\",IF(AND('Enrollment Form'!$C21=\"ROC\",'Enrollment Form'!$DT21=\"\"),\"N\",IF(AND('Enrollment Form'!$C21=\"Enroll\",'Enrollment Form'!$B21=\"Subscriber\",'Enrollment Form'!$CQ21=\"No\",'Enrollment Form'!$DT21=\"\"),\"N\",IF(AND('Enrollment Form'!$C21=\"Enroll\",'Enrollment Form'!$B21=\"Subscriber\",'Enrollment Form'!$CQ21=\"Yes\"),\"-\",\"Y\")))))","v":""},{"$f":"IF('Enrollment Form'!AH21=\"\",\"\",IF(ISERROR(SEARCH(\".\",'Enrollment Form'!AH21,SEARCH(\"@\",'Enrollment Form'!AH21))),\"N\",\"Y\"))","v":""},{"$f":"IF(OR($B14=\"N\",'Enrollment Form'!$G21=\"\"),\"\",IF('Enrollment Form'!$B21<>\"Subscriber\",\"-\",IF(COUNTIF('Enrollment Form'!$AS21:$AT21,\"Yes\")=2,\"N\",\"Y\")))","v":""},{"$f":"IF(OR('Enrollment Form'!$CC21=\"\",'Enrollment Form'!$CC21=\"No\"),\"-\",IF(AND('Enrollment Form'!$CC21=\"Yes\",'Enrollment Form'!$CD21=\"\"),\"N\",\"Y\"))","v":"-"},{"$f":"IF(OR('Enrollment Form'!$CE21=\"\",'Enrollment Form'!$CE21=\"No\"),\"-\",IF(AND('Enrollment Form'!$CE21=\"Yes\",'Enrollment Form'!$CF21=\"\"),\"N\",\"Y\"))","v":"-"},{"$f":"IF(OR('Enrollment Form'!$CG21=\"\",'Enrollment Form'!$CG21=\"No\"),\"-\",IF(AND('Enrollment Form'!$CG21=\"Yes\",'Enrollment Form'!$CH21=\"\"),\"N\",\"Y\"))","v":"-"},{"$f":"IF(OR('Enrollment Form'!$CG21=\"\",'Enrollment Form'!$CG21=\"No\"),\"-\",IF(AND('Enrollment Form'!$CG21=\"Yes\",'Enrollment Form'!$CI21=\"\"),\"N\",\"Y\"))","v":"-"},{"$f":"IF('Enrollment Form'!B21<>\"Subscriber\",\"-\",IF(AND('Enrollment Form'!B21=\"Subscriber\",'Enrollment Form'!C21=\"Enroll\",'Enrollment Form'!AA21=\"\"),\"N\",\"Y\"))","v":"-"},{"$f":"IF(OR('Enrollment Form'!B21=\"Subscriber\",'Enrollment Form'!B21=\"\"),\"-\",IF('Enrollment Form'!BI21=\"\",\"N\",\"Y\"))","v":"-"},{"$f":"IF('Enrollment Form'!B21<>\"Subscriber\",\"-\",IF(AND('Enrollment Form'!B21=\"Subscriber\",'Enrollment Form'!G21=\"\"),\"N\",\"Y\"))","v":"-"},{"$f":"IF('Enrollment Form'!A21=\"\",\"\",IF('Enrollment Form'!B21=\"Subscriber\",\"-\",IF(AND('Enrollment Form'!B21<>\"Subscriber\",'Enrollment Form'!G21='Enrollment Form'!H21),\"N\",\"Y\")))","v":""},0,{"$nulls":6},"11","Sub DOB filled?","Subscriber Date of Birth must be populated","AJ"]
[22,{"$f":"IF('Enrollment Form'!$A22<>\"\",\"Y\",\"N\")","v":"N"},{"$f":"IF(AND('Enrollment Form'!$B22=\"\",'Enrollment Form'!$C22<>\"\"),\"N\",IF($B15=\"N\",\"\",\"Y\"))","v":""},{"$f":"IF(OR($B15=\"N\",'Enrollment Form'!G22=\"\"),\"\",IF('Enrollment Form'!$B22<>\"Subscriber\",\"\",IF('Enrollment Form'!$G22='Enrollment Form'!$H22,\"Y\",\"N\")))","v":""},{"$f":"IF($B15=\"N\",\"\",IF(AND(COUNTIFS('Enrollment Form'!$H$11:$H$1000,'Enrollment Form'!$H22,'Enrollment Form'!$B$11:$B$1000,'Enrollment Form'!$B22)>1,'Enrollment Form'!$H22<>\"\"),\"N\",\"Y\"))","v":""},{"$f":"IF($B15=\"N\",\"\",IF(LEN('Enrollment Form'!$Y22)=0,\"\",IF(LEN('Enrollment Form'!$Y22)<>5,\"N\",\"Y\")))","v":""},{"$f":"IF($B15=\"N\",\"\",IF(LEN('Enrollment Form'!$AD22=0),\"\",IF(LEN('Enrollment Form'!$AD22)<>5,\"N\",\"Y\")))","v":""},{"$f":"IF($B15=\"N\",\"\",IF(LEN('Enrollment Form'!$BL22=0),\"\",IF(LEN('Enrollment Form'!$BL22)<>5,\"N\",\"Y\")))","v":""},{"$f":"IF($B15=\"N\",\"\",IF(LEN('Enrollment Form'!$AE22)=0,\"\",IF(LEN('Enrollment Form'!$AE22)<>10,\"N\",\"Y\")))","v":""},{"$f":"IF($B15=\"N\",\"\",IF(LEN('Enrollment Form'!$AF22)=0,\"\",IF(LEN('Enrollment Form'!$AF22)<>10,\"N\",\"Y\")))","v":""},{"$f":"IF('Enrollment Form'!$O22<>\"Graded\",\"-\",IF(AND('Enrollment Form'!$O22=\"Graded\",'Enrollment Form'!$AO22<>\"\"),\"Y\",\"N\"))","v":"-"},{"$f":"IF($B15=\"N\",\"\",IF(OR('Enrollment Form'!$B22<>\"Subscriber\",'Enrollment Form'!$C22=\"ROC\"),\"-\",IF(AND('Enrollment Form'!$B22=\"Subscriber\",'Enrollment Form'!$C22=\"Enroll\",'Enrollment Form'!$AJ22<>\"\"),\"Y\",\"N\")))","v":""},{"$f":"IF($B15=\"N\",\"\",IF(OR('Enrollment Form'!$B22<>\"Subscriber\",'Enrollment Form'!$C22=\"ROC\"),\"-\",IF(AND('Enrollment Form'!$B22=\"Subscriber\",'Enrollment Form'!$C22=\"Enroll\",'Enrollment Form'!$AK22<>\"\"),\"Y\",\"N\")))","v":""},{"$f":"IF($B15=\"N\",\"\",IF(OR('Enrollment Form'!$B22<>\"Subscriber\",'Enrollment Form'!$C22=\"ROC\"),\"-\",IF(AND('Enrollment Form'!$B22=\"Subscriber\",'Enrollment Form'!$C22=\"Enroll\",'Enrollment Form'!$AL22<>\"\"),\"Y\",\"N\")))","v":""},{"$f":"IF($B15=\"N\",\"\",IF(OR('Enrollment Form'!$B22<>\"Subscriber\",'Enrollment Form'!$C22=\"ROC\"),\"-\",IF(AND('Enrollment Form'!$B22=\"Subscriber\",'Enrollment Form'!$C22=\"Enroll\",'Enrollment Form'!$AM22<>\"\"),\"Y\",\"N\")))","v":""},{"$f":"IF($B15=\"N\",\"\",IF(OR('Enrollment Form'!$B22<>\"Subscriber\",'Enrollment Form'!$C22=\"ROC\"),\"-\",IF(AND('Enrollment Form'!$B22=\"Subscriber\",'Enrollment Form'!$C22=\"Enroll\",'Enrollment Form'!$AN22<>\"\"),\"Y\",\"N\")))","v":""},{"$f":"IF($B15=\"N\",\"\",IF(OR('Enrollment Form'!$B22<>\"Subscriber\",'Enrollment Form'!$C22=\"ROC\"),\"-\",IF(AND('Enrollment Form'!$B22=\"Subscriber\",'Enrollment Form'!$C22=\"Enroll\",'Enrollment Form'!$AP22<>\"\"),\"Y\",\"N\")))","v":""},{"$f":"IF($B15=\"N\",\"\",IF($Q15=\"-\",\"-\",IF(AND($Q15=\"Y\",'Enrollment Form'!$AP22=\"No\"),\"-\",IF(AND($Q15=\"Y\",'Enrollment Form'!$AP22=\"Yes\",'Enrollment Form'!$AQ22<>\"\"),\"Y\",\"N\"))))","v":""},{"$f":"IF($B15=\"N\",\"\",IF(OR('Enrollment Form'!$B22<>\"Subscriber\",'Enrollment Form'!$C22=\"ROC\"),\"-\",IF(AND('Enrollment Form'!$B22=\"Subscriber\",'Enrollment Form'!$C22=\"Enroll\",'Enrollment Form'!$CO22<>\"\"),\"Y\",\"N\")))","v":""},{"$f":"IF($B15=\"N\",\"\",IF($S15=\"-\",\"-\",IF(AND($S15=\"Y\",'Enrollment Form'!$CO22=\"No\"),\"-\",IF(AND($S15=\"Y\",'Enrollment Form'!$CO22=\"Yes\",'Enrollment Form'!$CP22<>\"\"),\"Y\",\"N\"))))","v":""},{"$f":"IF(OR('Enrollment Form'!$AV22=\"Yes\",'Enrollment Form'!$AV22=\"\"),\"-\",IF(AND('Enrollment Form'!$AV22=\"No\",ISERROR(FIND(\"HMO\",VLOOKUP('Enrollment Form'!G22,'Enrollment Form'!H$11:J$1000,3,FALSE),1))=FALSE,COUNTA('Enrollment Form'!$AW22:$AZ22)=4),\"Y\",\"N\"))","v":"-"},{"$f":"IF($B15=\"N\",\"\",IF('Enrollment Form'!$B22=\"Subscriber\",\"-\",IF(COUNTA('Enrollment Form'!$BE22,'Enrollment Form'!$BG22)=2,\"Y\",\"N\")))","v":""},{"$f":"IF($B15=\"N\",\"\",IF(OR('Enrollment Form'!$AU22=\"\",'Enrollment Form'!$AU22=\"No\"),\"-\",IF(AND('Enrollment Form'!$AU22=\"Yes\",COUNTA('Enrollment Form'!$CK22)=1),\"Y\",\"N\")))","v":""},{"$f":"IF(OR('Enrollment Form'!$CK22=\"\",'Enrollment Form'!$CK22=\"No\"),\"-\",IF(COUNTA('Enrollment Form'!$CM22:$CN22)=2,\"Y\",\"N\"))","v":"-"},{"$f":"IF($B15=\"N\",\"\",IF(COUNTIF('Enrollment Form'!$CZ22:$DO22,\"Other\")=COUNTA('Enrollment Form'!$DF22,'Enrollment Form'!$DA22,'Enrollment Form'!$DK22,'Enrollment Form'!$DP22),\"Y\",\"N\"))","v":""},{"$f":"IF($B15=\"N\",\"\",IF(OR('Enrollment Form'!B22<>\"Subscriber\",'Enrollment Form'!C22=\"ROC\",COUNTIF('Enrollment Form'!AS22:AT22,\"Yes\")>=1),\"-\",IF(AND('Enrollment Form'!C22=\"Enroll\",COUNTIF('Enrollment Form'!AS22:AT22,\"No\")=2,'Enrollment Form'!AU22=\"\"),\"N\",\"Y\")))","v":""},{"$f":"IF(OR(B15=\"N\",'Enrollment Form'!B22<>\"Subscriber\",'Enrollment Form'!C22=\"ROC\",'Enrollment Form'!O22<>\"Multiple of Salary\"),\"-\",IF(COUNTA('Enrollment Form'!T22:U22)<2,\"N\",\"Y\"))","v":"-"},{"$f":"IF(B15=\"N\",\"\",IF(OR('Enrollment Form'!C22=\"ROC\",'Enrollment Form'!B22<>\"Subscriber\",'Enrollment Form'!O22=\"Waive\",'Enrollment Form'!O22=\"\"),\"-\",IF('Enrollment Form'!P22=\"\",\"N\",\"Y\")))","v":""},{"$f":"IF($B15=\"N\",\"\",IF(AND('Enrollment Form'!$C22=\"ROC\",'Enrollment Form'!$DS22<>\"\"),\"Y\",IF(AND('Enrollment Form'!$C22=\"ROC\",'Enrollment Form'!$DS22=\"\"),\"N\",IF(AND('Enrollment Form'!$C22=\"Enroll\",'Enrollment Form'!$B22=\"Subscriber\",'Enrollment Form'!$CQ22=\"No\",'Enrollment Form'!$DS22=\"\"),\"N\",IF(AND('Enrollment Form'!$C22=\"Enroll\",'Enrollment Form'!$B22=\"Subscriber\",'Enrollment Form'!$CQ22=\"Yes\"),\"-\",\"Y\")))))","v":""},{"$f":"IF($B15=\"N\",\"\",IF(AND('Enrollment Form'!$C22=\"ROC\",'Enrollment Form'!$DT22<>\"\"),\"Y\",IF(AND('Enrollment Form'!$C22=\"ROC\",'Enrollment Form'!$DT22=\"\"),\"N\",IF(AND('Enrollment Form'!$C22=\"Enroll\",'Enrollment Form'!$B22=\"Subscriber\",'Enrollment Form'!$CQ22=\"No\",'Enrollment Form'!$DT22=\"\"),\"N\",IF(AND('Enrollment Form'!$C22=\"Enroll\",'Enrollment Form'!$B22=\"Subscriber\",'Enrollment Form'!$CQ22=\"Yes\"),\"-\",\"Y\")))))","v":""},{"$f":"IF('Enrollment Form'!AH22=\"\",\"\",IF(ISERROR(SEARCH(\".\",'Enrollment Form'!AH22,SEARCH(\"@\",'Enrollment Form'!AH22))),\"N\",\"Y\"))","v":""},{"$f":"IF(OR($B15=\"N\",'Enrollment Form'!$G22=\"\"),\"\",IF('Enrollment Form'!$B22<>\"Subscriber\",\"-\",IF(COUNTIF('Enrollment Form'!$AS22:$AT22,\"Yes\")=2,\"N\",\"Y\")))","v":""},{"$f":"IF(OR('Enrollment Form'!$CC22=\"\",'Enrollment Form'!$CC22=\"No\"),\"-\",IF(AND('Enrollment Form'!$CC22=\"Yes\",'Enrollment Form'!$CD22=\"\"),\"N\",\"Y\"))","v":"-"},{"$f":"IF(OR('Enrollment Form'!$CE22=\"\",'Enrollment Form'!$CE22=\"No\"),\"-\",IF(AND('Enrollment Form'!$CE22=\"Yes\",'Enrollment Form'!$CF22=\"\"),\"N\",\"Y\"))","v":"-"},{"$f":"IF(OR('Enrollment Form'!$CG22=\"\",'Enrollment Form'!$CG22=\"No\"),\"-\",IF(AND('Enrollment Form'!$CG22=\"Yes\",'Enrollment Form'!$CH22=\"\"),\"N\",\"Y\"))","v":"-"},{"$f":"IF(OR('Enrollment Form'!$CG22=\"\",'Enrollment Form'!$CG22=\"No\"),\"-\",IF(AND('Enrollment Form'!$CG22=\"Yes\",'Enrollment Form'!$CI22=\"\"),\"N\",\"Y\"))","v":"-"},{"$f":"IF('Enrollment Form'!B22<>\"Subscriber\",\"-\",IF(AND('Enrollment Form'!B22=\"Subscriber\",'Enrollment Form'!C22=\"Enroll\",'Enrollment Form'!AA22=\"\"),\"N\",\"Y\"))","v":"-"},{"$f":"IF(OR('Enrollment Form'!B22=\"Subscriber\",'Enrollment Form'!B22=\"\"),\"-\",IF('Enrollment Form'!BI22=\"\",\"N\",\"Y\"))","v":"-"},{"$f":"IF('Enrollment Form'!B22<>\"Subscriber\",\"-\",IF(AND('Enrollment Form'!B22=\"Subscriber\",'Enrollment Form'!G22=\"\"),\"N\",\"Y\"))","v":"-"},{"$f":"IF('Enrollment Form'!A22=\"\",\"\",IF('Enrollment Form'!B22=\"Subscriber\",\"-\",IF(AND('Enrollment Form'!B22<>\"Subscriber\",'Enrollment Form'!G22='Enrollment Form'!H22),\"N\",\"Y\")))","v":""},0,{"$nulls":6},"12","Sub Gender filled?","Subscriber Gender must be populated","AK"]
[23,{"$f":"IF('Enrollment Form'!$A23<>\"\",\"Y\",\"N\")","v":"N"},{"$f":"IF(AND('Enrollment Form'!$B23=\"\",'Enrollment Form'!$C23<>\"\"),\"N\",IF($B16=\"N\",\"\",\"Y\"))","v":""},{"$f":"IF(OR($B16=\"N\",'Enrollment Form'!G23=\"\"),\"\",IF('Enrollment Form'!$B23<>\"Subscriber\",\"\",IF('Enrollment Form'!$G23='Enrollment Form'!$H23,\"Y\",\"N\")))","v":""},{"$f":"IF($B16=\"N\",\"\",IF(AND(COUNTIFS('Enrollment Form'!$H$11:$H$1000,'Enrollment Form'!$H23,'Enrollment Form'!$B$11:$B$1000,'Enrollment Form'!$B23)>1,'Enrollment Form'!$H23<>\"\"),\"N\",\"Y\"))","v":""},{"$f":"IF($B16=\"N\",\"\",IF(LEN('Enrollment Form'!$Y23)=0,\"\",IF(LEN('Enrollment Form'!$Y23)<>5,\"N\",\"Y\")))","v":""},{"$f":"IF($B16=\"N\",\"\",IF(LEN('Enrollment Form'!$AD23=0),\"\",IF(LEN('Enrollment Form'!$AD23)<>5,\"N\",\"Y\")))","v":""},{"$f":"IF($B16=\"N\",\"\",IF(LEN('Enrollment Form'!$BL23=0),\"\",IF(LEN('Enrollment Form'!$BL23)<>5,\"N\",\"Y\")))","v":""},{"$f":"IF($B16=\"N\",\"\",IF(LEN('Enrollment Form'!$AE23)=0,\"\",IF(LEN('Enrollment Form'!$AE23)<>10,\"N\",\"Y\")))","v":""},{"$f":"IF($B16=\"N\",\"\",IF(LEN('Enrollment Form'!$AF23)=0,\"\",IF(LEN('Enrollment Form'!$AF23)<>10,\"N\",\"Y\")))","v":""},{"$f":"IF('Enrollment Form'!$O23<>\"Graded\",\"-\",IF(AND('Enrollment Form'!$O23=\"Graded\",'Enrollment Form'!$AO23<>\"\"),\"Y\",\"N\"))","v":"-"},{"$f":"IF($B16=\"N\",\"\",IF(OR('Enrollment Form'!$B23<>\"Subscriber\",'Enrollment Form'!$C23=\"ROC\"),\"-\",IF(AND('Enrollment Form'!$B23=\"Subscriber\",'Enrollment Form'!$C23=\"Enroll\",'Enrollment Form'!$AJ23<>\"\"),\"Y\",\"N\")))","v":""},{"$f":"IF($B16=\"N\",\"\",IF(OR('Enrollment Form'!$B23<>\"Subscriber\",'Enrollment Form'!$C23=\"ROC\"),\"-\",IF(AND('Enrollment Form'!$B23=\"Subscriber\",'Enrollment Form'!$C23=\"Enroll\",'Enrollment Form'!$AK23<>\"\"),\"Y\",\"N\")))","v":""},{"$f":"IF($B16=\"N\",\"\",IF(OR('Enrollment Form'!$B23<>\"Subscriber\",'Enrollment Form'!$C23=\"ROC\"),\"-\",IF(AND('Enrollment Form'!$B23=\"Subscriber\",'Enrollment Form'!$C23=\"Enroll\",'Enrollment Form'!$AL23<>\"\"),\"Y\",\"N\")))","v":""},{"$f":"IF($B16=\"N\",\"\",IF(OR('Enrollment Form'!$B23<>\"Subscriber\",'Enrollment Form'!$C23=\"ROC\"),\"-\",IF(AND('Enrollment Form'!$B23=\"Subscriber\",'Enrollment Form'!$C23=\"Enroll\",'Enrollment Form'!$AM23<>\"\"),\"Y\",\"N\")))","v":""},{"$f":"IF($B16=\"N\",\"\",IF(OR('Enrollment Form'!$B23<>\"Subscriber\",'Enrollment Form'!$C23=\"ROC\"),\"-\",IF(AND('Enrollment Form'!$B23=\"Subscriber\",'Enrollment Form'!$C23=\"Enroll\",'Enrollment Form'!$AN23<>\"\"),\"Y\",\"N\")))","v":""},{"$f":"IF($B16=\"N\",\"\",IF(OR('Enrollment Form'!$B23<>\"Subscriber\",'Enrollment Form'!$C23=\"ROC\"),\"-\",IF(AND('Enrollment Form'!$B23=\"Subscriber\",'Enrollment Form'!$C23=\"Enroll\",'Enrollment Form'!$AP23<>\"\"),\"Y\",\"N\")))","v":""},{"$f":"IF($B16=\"N\",\"\",IF($Q16=\"-\",\"-\",IF(AND($Q16=\"Y\",'Enrollment Form'!$AP23=\"No\"),\"-\",IF(AND($Q16=\"Y\",'Enrollment Form'!$AP23=\"Yes\",'Enrollment Form'!$AQ23<>\"\"),\"Y\",\"N\"))))","v":""},{"$f":"IF($B16=\"N\",\"\",IF(OR('Enrollment Form'!$B23<>\"Subscriber\",'Enrollment Form'!$C23=\"ROC\"),\"-\",IF(AND('Enrollment Form'!$B23=\"Subscriber\",'Enrollment Form'!$C23=\"Enroll\",'Enrollment Form'!$CO23<>\"\"),\"Y\",\"N\")))","v":""},{"$f":"IF($B16=\"N\",\"\",IF($S16=\"-\",\"-\",IF(AND($S16=\"Y\",'Enrollment Form'!$CO23=\"No\"),\"-\",IF(AND($S16=\"Y\",'Enrollment Form'!$CO23=\"Yes\",'Enrollment Form'!$CP23<>\"\"),\"Y\",\"N\"))))","v":""},{"$f":"IF(OR('Enrollment Form'!$AV23=\"Yes\",'Enrollment Form'!$AV23=\"\"),\"-\",IF(AND('Enrollment Form'!$AV23=\"No\",ISERROR(FIND(\"HMO\",VLOOKUP('Enrollment Form'!G23,'Enrollment Form'!H$11:J$1000,3,FALSE),1))=FALSE,COUNTA('Enrollment Form'!$AW23:$AZ23)=4),\"Y\",\"N\"))","v":"-"},{"$f":"IF($B16=\"N\",\"\",IF('Enrollment Form'!$B23=\"Subscriber\",\"-\",IF(COUNTA('Enrollment Form'!$BE23,'Enrollment Form'!$BG23)=2,\"Y\",\"N\")))","v":""},{"$f":"IF($B16=\"N\",\"\",IF(OR('Enrollment Form'!$AU23=\"\",'Enrollment Form'!$AU23=\"No\"),\"-\",IF(AND('Enrollment Form'!$AU23=\"Yes\",COUNTA('Enrollment Form'!$CK23)=1),\"Y\",\"N\")))","v":""},{"$f":"IF(OR('Enrollment Form'!$CK23=\"\",'Enrollment Form'!$CK23=\"No\"),\"-\",IF(COUNTA('Enrollment Form'!$CM23:$CN23)=2,\"Y\",\"N\"))","v":"-"},{"$f":"IF($B16=\"N\",\"\",IF(COUNTIF('Enrollment Form'!$CZ23:$DO23,\"Other\")=COUNTA('Enrollment Form'!$DF23,'Enrollment Form'!$DA23,'Enrollment Form'!$DK23,'Enrollment Form'!$DP23),\"Y\",\"N\"))","v":""},{"$f":"IF($B16=\"N\",\"\",IF(OR('Enrollment Form'!B23<>\"Subscriber\",'Enrollment Form'!C23=\"ROC\",COUNTIF('Enrollment Form'!AS23:AT23,\"Yes\")>=1),\"-\",IF(AND('Enrollment Form'!C23=\"Enroll\",COUNTIF('Enrollment Form'!AS23:AT23,\"No\")=2,'Enrollment Form'!AU23=\"\"),\"N\",\"Y\")))","v":""},{"$f":"IF(OR(B16=\"N\",'Enrollment Form'!B23<>\"Subscriber\",'Enrollment Form'!C23=\"ROC\",'Enrollment Form'!O23<>\"Multiple of Salary\"),\"-\",IF(COUNTA('Enrollment Form'!T23:U23)<2,\"N\",\"Y\"))","v":"-"},{"$f":"IF(B16=\"N\",\"\",IF(OR('Enrollment Form'!C23=\"ROC\",'Enrollment Form'!B23<>\"Subscriber\",'Enrollment Form'!O23=\"Waive\",'Enrollment Form'!O23=\"\"),\"-\",IF('Enrollment Form'!P23=\"\",\"N\",\"Y\")))","v":""},{"$f":"IF($B16=\"N\",\"\",IF(AND('Enrollment Form'!$C23=\"ROC\",'Enrollment Form'!$DS23<>\"\"),\"Y\",IF(AND('Enrollment Form'!$C23=\"ROC\",'Enrollment Form'!$DS23=\"\"),\"N\",IF(AND('Enrollment Form'!$C23=\"Enroll\",'Enrollment Form'!$B23=\"Subscriber\",'Enrollment Form'!$CQ23=\"No\",'Enrollment Form'!$DS23=\"\"),\"N\",IF(AND('Enrollment Form'!$C23=\"Enroll\",'Enrollment Form'!$B23=\"Subscriber\",'Enrollment Form'!$CQ23=\"Yes\"),\"-\",\"Y\")))))","v":""},{"$f":"IF($B16=\"N\",\"\",IF(AND('Enrollment Form'!$C23=\"ROC\",'Enrollment Form'!$DT23<>\"\"),\"Y\",IF(AND('Enrollment Form'!$C23=\"ROC\",'Enrollment Form'!$DT23=\"\"),\"N\",IF(AND('Enrollment Form'!$C23=\"Enroll\",'Enrollment Form'!$B23=\"Subscriber\",'Enrollment Form'!$CQ23=\"No\",'Enrollment Form'!$DT23=\"\"),\"N\",IF(AND('Enrollment Form'!$C23=\"Enroll\",'Enrollment Form'!$B23=\"Subscriber\",'Enrollment Form'!$CQ23=\"Yes\"),\"-\",\"Y\")))))","v":""},{"$f":"IF('Enrollment Form'!AH23=\"\",\"\",IF(ISERROR(SEARCH(\".\",'Enrollment Form'!AH23,SEARCH(\"@\",'Enrollment Form'!AH23))),\"N\",\"Y\"))","v":""},{"$f":"IF(OR($B16=\"N\",'Enrollment Form'!$G23=\"\"),\"\",IF('Enrollment Form'!$B23<>\"Subscriber\",\"-\",IF(COUNTIF('Enrollment Form'!$AS23:$AT23,\"Yes\")=2,\"N\",\"Y\")))","v":""},{"$f":"IF(OR('Enrollment Form'!$CC23=\"\",'Enrollment Form'!$CC23=\"No\"),\"-\",IF(AND('Enrollment Form'!$CC23=\"Yes\",'Enrollment Form'!$CD23=\"\"),\"N\",\"Y\"))","v":"-"},{"$f":"IF(OR('Enrollment Form'!$CE23=\"\",'Enrollment Form'!$CE23=\"No\"),\"-\",IF(AND('Enrollment Form'!$CE23=\"Yes\",'Enrollment Form'!$CF23=\"\"),\"N\",\"Y\"))","v":"-"},{"$f":"IF(OR('Enrollment Form'!$CG23=\"\",'Enrollment Form'!$CG23=\"No\"),\"-\",IF(AND('Enrollment Form'!$CG23=\"Yes\",'Enrollment Form'!$CH23=\"\"),\"N\",\"Y\"))","v":"-"},{"$f":"IF(OR('Enrollment Form'!$CG23=\"\",'Enrollment Form'!$CG23=\"No\"),\"-\",IF(AND('Enrollment Form'!$CG23=\"Yes\",'Enrollment Form'!$CI23=\"\"),\"N\",\"Y\"))","v":"-"},{"$f":"IF('Enrollment Form'!B23<>\"Subscriber\",\"-\",IF(AND('Enrollment Form'!B23=\"Subscriber\",'Enrollment Form'!C23=\"Enroll\",'Enrollment Form'!AA23=\"\"),\"N\",\"Y\"))","v":"-"},{"$f":"IF(OR('Enrollment Form'!B23=\"Subscriber\",'Enrollment Form'!B23=\"\"),\"-\",IF('Enrollment Form'!BI23=\"\",\"N\",\"Y\"))","v":"-"},{"$f":"IF('Enrollment Form'!B23<>\"Subscriber\",\"-\",IF(AND('Enrollment Form'!B23=\"Subscriber\",'Enrollment Form'!G23=\"\"),\"N\",\"Y\"))","v":"-"},{"$f":"IF('Enrollment Form'!A23=\"\",\"\",IF('Enrollment Form'!B23=\"Subscriber\",\"-\",IF(AND('Enrollment Form'!B23<>\"Subscriber\",'Enrollment Form'!G23='Enrollment Form'!H23),\"N\",\"Y\")))","v":""},0,{"$nulls":6},"13","Sub Marital Status filled?","Subscriber Marital Status must be populated","AL"]
[24,{"$f":"IF('Enrollment Form'!$A24<>\"\",\"Y\",\"N\")","v":"N"},{"$f":"IF(AND('Enrollment Form'!$B24=\"\",'Enrollment Form'!$C24<>\"\"),\"N\",IF($B17=\"N\",\"\",\"Y\"))","v":""},{"$f":"IF(OR($B17=\"N\",'Enrollment Form'!G24=\"\"),\"\",IF('Enrollment Form'!$B24<>\"Subscriber\",\"\",IF('Enrollment Form'!$G24='Enrollment Form'!$H24,\"Y\",\"N\")))","v":""},{"$f":"IF($B17=\"N\",\"\",IF(AND(COUNTIFS('Enrollment Form'!$H$11:$H$1000,'Enrollment Form'!$H24,'Enrollment Form'!$B$11:$B$1000,'Enrollment Form'!$B24)>1,'Enrollment Form'!$H24<>\"\"),\"N\",\"Y\"))","v":""},{"$f":"IF($B17=\"N\",\"\",IF(LEN('Enrollment Form'!$Y24)=0,\"\",IF(LEN('Enrollment Form'!$Y24)<>5,\"N\",\"Y\")))","v":""},{"$f":"IF($B17=\"N\",\"\",IF(LEN('Enrollment Form'!$AD24=0),\"\",IF(LEN('Enrollment Form'!$AD24)<>5,\"N\",\"Y\")))","v":""},{"$f":"IF($B17=\"N\",\"\",IF(LEN('Enrollment Form'!$BL24=0),\"\",IF(LEN('Enrollment Form'!$BL24)<>5,\"N\",\"Y\")))","v":""},{"$f":"IF($B17=\"N\",\"\",IF(LEN('Enrollment Form'!$AE24)=0,\"\",IF(LEN('Enrollment Form'!$AE24)<>10,\"N\",\"Y\")))","v":""},{"$f":"IF($B17=\"N\",\"\",IF(LEN('Enrollment Form'!$AF24)=0,\"\",IF(LEN('Enrollment Form'!$AF24)<>10,\"N\",\"Y\")))","v":""},{"$f":"IF('Enrollment Form'!$O24<>\"Graded\",\"-\",IF(AND('Enrollment Form'!$O24=\"Graded\",'Enrollment Form'!$AO24<>\"\"),\"Y\",\"N\"))","v":"-"},{"$f":"IF($B17=\"N\",\"\",IF(OR('Enrollment Form'!$B24<>\"Subscriber\",'Enrollment Form'!$C24=\"ROC\"),\"-\",IF(AND('Enrollment Form'!$B24=\"Subscriber\",'Enrollment Form'!$C24=\"Enroll\",'Enrollment Form'!$AJ24<>\"\"),\"Y\",\"N\")))","v":""},{"$f":"IF($B17=\"N\",\"\",IF(OR('Enrollment Form'!$B24<>\"Subscriber\",'Enrollment Form'!$C24=\"ROC\"),\"-\",IF(AND('Enrollment Form'!$B24=\"Subscriber\",'Enrollment Form'!$C24=\"Enroll\",'Enrollment Form'!$AK24<>\"\"),\"Y\",\"N\")))","v":""},{"$f":"IF($B17=\"N\",\"\",IF(OR('Enrollment Form'!$B24<>\"Subscriber\",'Enrollment Form'!$C24=\"ROC\"),\"-\",IF(AND('Enrollment Form'!$B24=\"Subscriber\",'Enrollment Form'!$C24=\"Enroll\",'Enrollment Form'!$AL24<>\"\"),\"Y\",\"N\")))","v":""},{"$f":"IF($B17=\"N\",\"\",IF(OR('Enrollment Form'!$B24<>\"Subscriber\",'Enrollment Form'!$C24=\"ROC\"),\"-\",IF(AND('Enrollment Form'!$B24=\"Subscriber\",'Enrollment Form'!$C24=\"Enroll\",'Enrollment Form'!$AM24<>\"\"),\"Y\",\"N\")))","v":""},{"$f":"IF($B17=\"N\",\"\",IF(OR('Enrollment Form'!$B24<>\"Subscriber\",'Enrollment Form'!$C24=\"ROC\"),\"-\",IF(AND('Enrollment Form'!$B24=\"Subscriber\",'Enrollment Form'!$C24=\"Enroll\",'Enrollment Form'!$AN24<>\"\"),\"Y\",\"N\")))","v":""},{"$f":"IF($B17=\"N\",\"\",IF(OR('Enrollment Form'!$B24<>\"Subscriber\",'Enrollment Form'!$C24=\"ROC\"),\"-\",IF(AND('Enrollment Form'!$B24=\"Subscriber\",'Enrollment Form'!$C24=\"Enroll\",'Enrollment Form'!$AP24<>\"\"),\"Y\",\"N\")))","v":""},{"$f":"IF($B17=\"N\",\"\",IF($Q17=\"-\",\"-\",IF(AND($Q17=\"Y\",'Enrollment Form'!$AP24=\"No\"),\"-\",IF(AND($Q17=\"Y\",'Enrollment Form'!$AP24=\"Yes\",'Enrollment Form'!$AQ24<>\"\"),\"Y\",\"N\"))))","v":""},{"$f":"IF($B17=\"N\",\"\",IF(OR('Enrollment Form'!$B24<>\"Subscriber\",'Enrollment Form'!$C24=\"ROC\"),\"-\",IF(AND('Enrollment Form'!$B24=\"Subscriber\",'Enrollment Form'!$C24=\"Enroll\",'Enrollment Form'!$CO24<>\"\"),\"Y\",\"N\")))","v":""},{"$f":"IF($B17=\"N\",\"\",IF($S17=\"-\",\"-\",IF(AND($S17=\"Y\",'Enrollment Form'!$CO24=\"No\"),\"-\",IF(AND($S17=\"Y\",'Enrollment Form'!$CO24=\"Yes\",'Enrollment Form'!$CP24<>\"\"),\"Y\",\"N\"))))","v":""},{"$f":"IF(OR('Enrollment Form'!$AV24=\"Yes\",'Enrollment Form'!$AV24=\"\"),\"-\",IF(AND('Enrollment Form'!$AV24=\"No\",ISERROR(FIND(\"HMO\",VLOOKUP('Enrollment Form'!G24,'Enrollment Form'!H$11:J$1000,3,FALSE),1))=FALSE,COUNTA('Enrollment Form'!$AW24:$AZ24)=4),\"Y\",\"N\"))","v":"-"},{"$f":"IF($B17=\"N\",\"\",IF('Enrollment Form'!$B24=\"Subscriber\",\"-\",IF(COUNTA('Enrollment Form'!$BE24,'Enrollment Form'!$BG24)=2,\"Y\",\"N\")))","v":""},{"$f":"IF($B17=\"N\",\"\",IF(OR('Enrollment Form'!$AU24=\"\",'Enrollment Form'!$AU24=\"No\"),\"-\",IF(AND('Enrollment Form'!$AU24=\"Yes\",COUNTA('Enrollment Form'!$CK24)=1),\"Y\",\"N\")))","v":""},{"$f":"IF(OR('Enrollment Form'!$CK24=\"\",'Enrollment Form'!$CK24=\"No\"),\"-\",IF(COUNTA('Enrollment Form'!$CM24:$CN24)=2,\"Y\",\"N\"))","v":"-"},{"$f":"IF($B17=\"N\",\"\",IF(COUNTIF('Enrollment Form'!$CZ24:$DO24,\"Other\")=COUNTA('Enrollment Form'!$DF24,'Enrollment Form'!$DA24,'Enrollment Form'!$DK24,'Enrollment Form'!$DP24),\"Y\",\"N\"))","v":""},{"$f":"IF($B17=\"N\",\"\",IF(OR('Enrollment Form'!B24<>\"Subscriber\",'Enrollment Form'!C24=\"ROC\",COUNTIF('Enrollment Form'!AS24:AT24,\"Yes\")>=1),\"-\",IF(AND('Enrollment Form'!C24=\"Enroll\",COUNTIF('Enrollment Form'!AS24:AT24,\"No\")=2,'Enrollment Form'!AU24=\"\"),\"N\",\"Y\")))","v":""},{"$f":"IF(OR(B17=\"N\",'Enrollment Form'!B24<>\"Subscriber\",'Enrollment Form'!C24=\"ROC\",'Enrollment Form'!O24<>\"Multiple of Salary\"),\"-\",IF(COUNTA('Enrollment Form'!T24:U24)<2,\"N\",\"Y\"))","v":"-"},{"$f":"IF(B17=\"N\",\"\",IF(OR('Enrollment Form'!C24=\"ROC\",'Enrollment Form'!B24<>\"Subscriber\",'Enrollment Form'!O24=\"Waive\",'Enrollment Form'!O24=\"\"),\"-\",IF('Enrollment Form'!P24=\"\",\"N\",\"Y\")))","v":""},{"$f":"IF($B17=\"N\",\"\",IF(AND('Enrollment Form'!$C24=\"ROC\",'Enrollment Form'!$DS24<>\"\"),\"Y\",IF(AND('Enrollment Form'!$C24=\"ROC\",'Enrollment Form'!$DS24=\"\"),\"N\",IF(AND('Enrollment Form'!$C24=\"Enroll\",'Enrollment Form'!$B24=\"Subscriber\",'Enrollment Form'!$CQ24=\"No\",'Enrollment Form'!$DS24=\"\"),\"N\",IF(AND('Enrollment Form'!$C24=\"Enroll\",'Enrollment Form'!$B24=\"Subscriber\",'Enrollment Form'!$CQ24=\"Yes\"),\"-\",\"Y\")))))","v":""},{"$f":"IF($B17=\"N\",\"\",IF(AND('Enrollment Form'!$C24=\"ROC\",'Enrollment Form'!$DT24<>\"\"),\"Y\",IF(AND('Enrollment Form'!$C24=\"ROC\",'Enrollment Form'!$DT24=\"\"),\"N\",IF(AND('Enrollment Form'!$C24=\"Enroll\",'Enrollment Form'!$B24=\"Subscriber\",'Enrollment Form'!$CQ24=\"No\",'Enrollment Form'!$DT24=\"\"),\"N\",IF(AND('Enrollment Form'!$C24=\"Enroll\",'Enrollment Form'!$B24=\"Subscriber\",'Enrollment Form'!$CQ24=\"Yes\"),\"-\",\"Y\")))))","v":""},{"$f":"IF('Enrollment Form'!AH24=\"\",\"\",IF(ISERROR(SEARCH(\".\",'Enrollment Form'!AH24,SEARCH(\"@\",'Enrollment Form'!AH24))),\"N\",\"Y\"))","v":""},{"$f":"IF(OR($B17=\"N\",'Enrollment Form'!$G24=\"\"),\"\",IF('Enrollment Form'!$B24<>\"Subscriber\",\"-\",IF(COUNTIF('Enrollment Form'!$AS24:$AT24,\"Yes\")=2,\"N\",\"Y\")))","v":""},{"$f":"IF(OR('Enrollment Form'!$CC24=\"\",'Enrollment Form'!$CC24=\"No\"),\"-\",IF(AND('Enrollment Form'!$CC24=\"Yes\",'Enrollment Form'!$CD24=\"\"),\"N\",\"Y\"))","v":"-"},{"$f":"IF(OR('Enrollment Form'!$CE24=\"\",'Enrollment Form'!$CE24=\"No\"),\"-\",IF(AND('Enrollment Form'!$CE24=\"Yes\",'Enrollment Form'!$CF24=\"\"),\"N\",\"Y\"))","v":"-"},{"$f":"IF(OR('Enrollment Form'!$CG24=\"\",'Enrollment Form'!$CG24=\"No\"),\"-\",IF(AND('Enrollment Form'!$CG24=\"Yes\",'Enrollment Form'!$CH24=\"\"),\"N\",\"Y\"))","v":"-"},{"$f":"IF(OR('Enrollment Form'!$CG24=\"\",'Enrollment Form'!$CG24=\"No\"),\"-\",IF(AND('Enrollment Form'!$CG24=\"Yes\",'Enrollment Form'!$CI24=\"\"),\"N\",\"Y\"))","v":"-"},{"$f":"IF('Enrollment Form'!B24<>\"Subscriber\",\"-\",IF(AND('Enrollment Form'!B24=\"Subscriber\",'Enrollment Form'!C24=\"Enroll\",'Enrollment Form'!AA24=\"\"),\"N\",\"Y\"))","v":"-"},{"$f":"IF(OR('Enrollment Form'!B24=\"Subscriber\",'Enrollment Form'!B24=\"\"),\"-\",IF('Enrollment Form'!BI24=\"\",\"N\",\"Y\"))","v":"-"},{"$f":"IF('Enrollment Form'!B24<>\"Subscriber\",\"-\",IF(AND('Enrollment Form'!B24=\"Subscriber\",'Enrollment Form'!G24=\"\"),\"N\",\"Y\"))","v":"-"},{"$f":"IF('Enrollment Form'!A24=\"\",\"\",IF('Enrollment Form'!B24=\"Subscriber\",\"-\",IF(AND('Enrollment Form'!B24<>\"Subscriber\",'Enrollment Form'!G24='Enrollment Form'!H24),\"N\",\"Y\")))","v":""},0,{"$nulls":6},"14","Sub Date of Hire filled?","Subscriber Date of Hire must be populated","AM"]
[25,{"$f":"IF('Enrollment Form'!$A25<>\"\",\"Y\",\"N\")","v":"N"},{"$f":"IF(AND('Enrollment Form'!$B25=\"\",'Enrollment Form'!$C25<>\"\"),\"N\",IF($B18=\"N\",\"\",\"Y\"))","v":""},{"$f":"IF(OR($B18=\"N\",'Enrollment Form'!G25=\"\"),\"\",IF('Enrollment Form'!$B25<>\"Subscriber\",\"\",IF('Enrollment Form'!$G25='Enrollment Form'!$H25,\"Y\",\"N\")))","v":""},{"$f":"IF($B18=\"N\",\"\",IF(AND(COUNTIFS('Enrollment Form'!$H$11:$H$1000,'Enrollment Form'!$H25,'Enrollment Form'!$B$11:$B$1000,'Enrollment Form'!$B25)>1,'Enrollment Form'!$H25<>\"\"),\"N\",\"Y\"))","v":""},{"$f":"IF($B18=\"N\",\"\",IF(LEN('Enrollment Form'!$Y25)=0,\"\",IF(LEN('Enrollment Form'!$Y25)<>5,\"N\",\"Y\")))","v":""},{"$f":"IF($B18=\"N\",\"\",IF(LEN('Enrollment Form'!$AD25=0),\"\",IF(LEN('Enrollment Form'!$AD25)<>5,\"N\",\"Y\")))","v":""},{"$f":"IF($B18=\"N\",\"\",IF(LEN('Enrollment Form'!$BL25=0),\"\",IF(LEN('Enrollment Form'!$BL25)<>5,\"N\",\"Y\")))","v":""},{"$f":"IF($B18=\"N\",\"\",IF(LEN('Enrollment Form'!$AE25)=0,\"\",IF(LEN('Enrollment Form'!$AE25)<>10,\"N\",\"Y\")))","v":""},{"$f":"IF($B18=\"N\",\"\",IF(LEN('Enrollment Form'!$AF25)=0,\"\",IF(LEN('Enrollment Form'!$AF25)<>10,\"N\",\"Y\")))","v":""},{"$f":"IF('Enrollment Form'!$O25<>\"Graded\",\"-\",IF(AND('Enrollment Form'!$O25=\"Graded\",'Enrollment Form'!$AO25<>\"\"),\"Y\",\"N\"))","v":"-"},{"$f":"IF($B18=\"N\",\"\",IF(OR('Enrollment Form'!$B25<>\"Subscriber\",'Enrollment Form'!$C25=\"ROC\"),\"-\",IF(AND('Enrollment Form'!$B25=\"Subscriber\",'Enrollment Form'!$C25=\"Enroll\",'Enrollment Form'!$AJ25<>\"\"),\"Y\",\"N\")))","v":""},{"$f":"IF($B18=\"N\",\"\",IF(OR('Enrollment Form'!$B25<>\"Subscriber\",'Enrollment Form'!$C25=\"ROC\"),\"-\",IF(AND('Enrollment Form'!$B25=\"Subscriber\",'Enrollment Form'!$C25=\"Enroll\",'Enrollment Form'!$AK25<>\"\"),\"Y\",\"N\")))","v":""},{"$f":"IF($B18=\"N\",\"\",IF(OR('Enrollment Form'!$B25<>\"Subscriber\",'Enrollment Form'!$C25=\"ROC\"),\"-\",IF(AND('Enrollment Form'!$B25=\"Subscriber\",'Enrollment Form'!$C25=\"Enroll\",'Enrollment Form'!$AL25<>\"\"),\"Y\",\"N\")))","v":""},{"$f":"IF($B18=\"N\",\"\",IF(OR('Enrollment Form'!$B25<>\"Subscriber\",'Enrollment Form'!$C25=\"ROC\"),\"-\",IF(AND('Enrollment Form'!$B25=\"Subscriber\",'Enrollment Form'!$C25=\"Enroll\",'Enrollment Form'!$AM25<>\"\"),\"Y\",\"N\")))","v":""},{"$f":"IF($B18=\"N\",\"\",IF(OR('Enrollment Form'!$B25<>\"Subscriber\",'Enrollment Form'!$C25=\"ROC\"),\"-\",IF(AND('Enrollment Form'!$B25=\"Subscriber\",'Enrollment Form'!$C25=\"Enroll\",'Enrollment Form'!$AN25<>\"\"),\"Y\",\"N\")))","v":""},{"$f":"IF($B18=\"N\",\"\",IF(OR('Enrollment Form'!$B25<>\"Subscriber\",'Enrollment Form'!$C25=\"ROC\"),\"-\",IF(AND('Enrollment Form'!$B25=\"Subscriber\",'Enrollment Form'!$C25=\"Enroll\",'Enrollment Form'!$AP25<>\"\"),\"Y\",\"N\")))","v":""},{"$f":"IF($B18=\"N\",\"\",IF($Q18=\"-\",\"-\",IF(AND($Q18=\"Y\",'Enrollment Form'!$AP25=\"No\"),\"-\",IF(AND($Q18=\"Y\",'Enrollment Form'!$AP25=\"Yes\",'Enrollment Form'!$AQ25<>\"\"),\"Y\",\"N\"))))","v":""},{"$f":"IF($B18=\"N\",\"\",IF(OR('Enrollment Form'!$B25<>\"Subscriber\",'Enrollment Form'!$C25=\"ROC\"),\"-\",IF(AND('Enrollment Form'!$B25=\"Subscriber\",'Enrollment Form'!$C25=\"Enroll\",'Enrollment Form'!$CO25<>\"\"),\"Y\",\"N\")))","v":""},{"$f":"IF($B18=\"N\",\"\",IF($S18=\"-\",\"-\",IF(AND($S18=\"Y\",'Enrollment Form'!$CO25=\"No\"),\"-\",IF(AND($S18=\"Y\",'Enrollment Form'!$CO25=\"Yes\",'Enrollment Form'!$CP25<>\"\"),\"Y\",\"N\"))))","v":""},{"$f":"IF(OR('Enrollment Form'!$AV25=\"Yes\",'Enrollment Form'!$AV25=\"\"),\"-\",IF(AND('Enrollment Form'!$AV25=\"No\",ISERROR(FIND(\"HMO\",VLOOKUP('Enrollment Form'!G25,'Enrollment Form'!H$11:J$1000,3,FALSE),1))=FALSE,COUNTA('Enrollment Form'!$AW25:$AZ25)=4),\"Y\",\"N\"))","v":"-"},{"$f":"IF($B18=\"N\",\"\",IF('Enrollment Form'!$B25=\"Subscriber\",\"-\",IF(COUNTA('Enrollment Form'!$BE25,'Enrollment Form'!$BG25)=2,\"Y\",\"N\")))","v":""},{"$f":"IF($B18=\"N\",\"\",IF(OR('Enrollment Form'!$AU25=\"\",'Enrollment Form'!$AU25=\"No\"),\"-\",IF(AND('Enrollment Form'!$AU25=\"Yes\",COUNTA('Enrollment Form'!$CK25)=1),\"Y\",\"N\")))","v":""},{"$f":"IF(OR('Enrollment Form'!$CK25=\"\",'Enrollment Form'!$CK25=\"No\"),\"-\",IF(COUNTA('Enrollment Form'!$CM25:$CN25)=2,\"Y\",\"N\"))","v":"-"},{"$f":"IF($B18=\"N\",\"\",IF(COUNTIF('Enrollment Form'!$CZ25:$DO25,\"Other\")=COUNTA('Enrollment Form'!$DF25,'Enrollment Form'!$DA25,'Enrollment Form'!$DK25,'Enrollment Form'!$DP25),\"Y\",\"N\"))","v":""},{"$f":"IF($B18=\"N\",\"\",IF(OR('Enrollment Form'!B25<>\"Subscriber\",'Enrollment Form'!C25=\"ROC\",COUNTIF('Enrollment Form'!AS25:AT25,\"Yes\")>=1),\"-\",IF(AND('Enrollment Form'!C25=\"Enroll\",COUNTIF('Enrollment Form'!AS25:AT25,\"No\")=2,'Enrollment Form'!AU25=\"\"),\"N\",\"Y\")))","v":""},{"$f":"IF(OR(B18=\"N\",'Enrollment Form'!B25<>\"Subscriber\",'Enrollment Form'!C25=\"ROC\",'Enrollment Form'!O25<>\"Multiple of Salary\"),\"-\",IF(COUNTA('Enrollment Form'!T25:U25)<2,\"N\",\"Y\"))","v":"-"},{"$f":"IF(B18=\"N\",\"\",IF(OR('Enrollment Form'!C25=\"ROC\",'Enrollment Form'!B25<>\"Subscriber\",'Enrollment Form'!O25=\"Waive\",'Enrollment Form'!O25=\"\"),\"-\",IF('Enrollment Form'!P25=\"\",\"N\",\"Y\")))","v":""},{"$f":"IF($B18=\"N\",\"\",IF(AND('Enrollment Form'!$C25=\"ROC\",'Enrollment Form'!$DS25<>\"\"),\"Y\",IF(AND('Enrollment Form'!$C25=\"ROC\",'Enrollment Form'!$DS25=\"\"),\"N\",IF(AND('Enrollment Form'!$C25=\"Enroll\",'Enrollment Form'!$B25=\"Subscriber\",'Enrollment Form'!$CQ25=\"No\",'Enrollment Form'!$DS25=\"\"),\"N\",IF(AND('Enrollment Form'!$C25=\"Enroll\",'Enrollment Form'!$B25=\"Subscriber\",'Enrollment Form'!$CQ25=\"Yes\"),\"-\",\"Y\")))))","v":""},{"$f":"IF($B18=\"N\",\"\",IF(AND('Enrollment Form'!$C25=\"ROC\",'Enrollment Form'!$DT25<>\"\"),\"Y\",IF(AND('Enrollment Form'!$C25=\"ROC\",'Enrollment Form'!$DT25=\"\"),\"N\",IF(AND('Enrollment Form'!$C25=\"Enroll\",'Enrollment Form'!$B25=\"Subscriber\",'Enrollment Form'!$CQ25=\"No\",'Enrollment Form'!$DT25=\"\"),\"N\",IF(AND('Enrollment Form'!$C25=\"Enroll\",'Enrollment Form'!$B25=\"Subscriber\",'Enrollment Form'!$CQ25=\"Yes\"),\"-\",\"Y\")))))","v":""},{"$f":"IF('Enrollment Form'!AH25=\"\",\"\",IF(ISERROR(SEARCH(\".\",'Enrollment Form'!AH25,SEARCH(\"@\",'Enrollment Form'!AH25))),\"N\",\"Y\"))","v":""},{"$f":"IF(OR($B18=\"N\",'Enrollment Form'!$G25=\"\"),\"\",IF('Enrollment Form'!$B25<>\"Subscriber\",\"-\",IF(COUNTIF('Enrollment Form'!$AS25:$AT25,\"Yes\")=2,\"N\",\"Y\")))","v":""},{"$f":"IF(OR('Enrollment Form'!$CC25=\"\",'Enrollment Form'!$CC25=\"No\"),\"-\",IF(AND('Enrollment Form'!$CC25=\"Yes\",'Enrollment Form'!$CD25=\"\"),\"N\",\"Y\"))","v":"-"},{"$f":"IF(OR('Enrollment Form'!$CE25=\"\",'Enrollment Form'!$CE25=\"No\"),\"-\",IF(AND('Enrollment Form'!$CE25=\"Yes\",'Enrollment Form'!$CF25=\"\"),\"N\",\"Y\"))","v":"-"},{"$f":"IF(OR('Enrollment Form'!$CG25=\"\",'Enrollment Form'!$CG25=\"No\"),\"-\",IF(AND('Enrollment Form'!$CG25=\"Yes\",'Enrollment Form'!$CH25=\"\"),\"N\",\"Y\"))","v":"-"},{"$f":"IF(OR('Enrollment Form'!$CG25=\"\",'Enrollment Form'!$CG25=\"No\"),\"-\",IF(AND('Enrollment Form'!$CG25=\"Yes\",'Enrollment Form'!$CI25=\"\"),\"N\",\"Y\"))","v":"-"},{"$f":"IF('Enrollment Form'!B25<>\"Subscriber\",\"-\",IF(AND('Enrollment Form'!B25=\"Subscriber\",'Enrollment Form'!C25=\"Enroll\",'Enrollment Form'!AA25=\"\"),\"N\",\"Y\"))","v":"-"},{"$f":"IF(OR('Enrollment Form'!B25=\"Subscriber\",'Enrollment Form'!B25=\"\"),\"-\",IF('Enrollment Form'!BI25=\"\",\"N\",\"Y\"))","v":"-"},{"$f":"IF('Enrollment Form'!B25<>\"Subscriber\",\"-\",IF(AND('Enrollment Form'!B25=\"Subscriber\",'Enrollment Form'!G25=\"\"),\"N\",\"Y\"))","v":"-"},{"$f":"IF('Enrollment Form'!A25=\"\",\"\",IF('Enrollment Form'!B25=\"Subscriber\",\"-\",IF(AND('Enrollment Form'!B25<>\"Subscriber\",'Enrollment Form'!G25='Enrollment Form'!H25),\"N\",\"Y\")))","v":""},0,{"$nulls":6},"15","Sub Job Title filled?","Subscriber Job Title must be populated","AN"]
[26,{"$f":"IF('Enrollment Form'!$A26<>\"\",\"Y\",\"N\")","v":"N"},{"$f":"IF(AND('Enrollment Form'!$B26=\"\",'Enrollment Form'!$C26<>\"\"),\"N\",IF($B19=\"N\",\"\",\"Y\"))","v":""},{"$f":"IF(OR($B19=\"N\",'Enrollment Form'!G26=\"\"),\"\",IF('Enrollment Form'!$B26<>\"Subscriber\",\"\",IF('Enrollment Form'!$G26='Enrollment Form'!$H26,\"Y\",\"N\")))","v":""},{"$f":"IF($B19=\"N\",\"\",IF(AND(COUNTIFS('Enrollment Form'!$H$11:$H$1000,'Enrollment Form'!$H26,'Enrollment Form'!$B$11:$B$1000,'Enrollment Form'!$B26)>1,'Enrollment Form'!$H26<>\"\"),\"N\",\"Y\"))","v":""},{"$f":"IF($B19=\"N\",\"\",IF(LEN('Enrollment Form'!$Y26)=0,\"\",IF(LEN('Enrollment Form'!$Y26)<>5,\"N\",\"Y\")))","v":""},{"$f":"IF($B19=\"N\",\"\",IF(LEN('Enrollment Form'!$AD26=0),\"\",IF(LEN('Enrollment Form'!$AD26)<>5,\"N\",\"Y\")))","v":""},{"$f":"IF($B19=\"N\",\"\",IF(LEN('Enrollment Form'!$BL26=0),\"\",IF(LEN('Enrollment Form'!$BL26)<>5,\"N\",\"Y\")))","v":""},{"$f":"IF($B19=\"N\",\"\",IF(LEN('Enrollment Form'!$AE26)=0,\"\",IF(LEN('Enrollment Form'!$AE26)<>10,\"N\",\"Y\")))","v":""},{"$f":"IF($B19=\"N\",\"\",IF(LEN('Enrollment Form'!$AF26)=0,\"\",IF(LEN('Enrollment Form'!$AF26)<>10,\"N\",\"Y\")))","v":""},{"$f":"IF('Enrollment Form'!$O26<>\"Graded\",\"-\",IF(AND('Enrollment Form'!$O26=\"Graded\",'Enrollment Form'!$AO26<>\"\"),\"Y\",\"N\"))","v":"-"},{"$f":"IF($B19=\"N\",\"\",IF(OR('Enrollment Form'!$B26<>\"Subscriber\",'Enrollment Form'!$C26=\"ROC\"),\"-\",IF(AND('Enrollment Form'!$B26=\"Subscriber\",'Enrollment Form'!$C26=\"Enroll\",'Enrollment Form'!$AJ26<>\"\"),\"Y\",\"N\")))","v":""},{"$f":"IF($B19=\"N\",\"\",IF(OR('Enrollment Form'!$B26<>\"Subscriber\",'Enrollment Form'!$C26=\"ROC\"),\"-\",IF(AND('Enrollment Form'!$B26=\"Subscriber\",'Enrollment Form'!$C26=\"Enroll\",'Enrollment Form'!$AK26<>\"\"),\"Y\",\"N\")))","v":""},{"$f":"IF($B19=\"N\",\"\",IF(OR('Enrollment Form'!$B26<>\"Subscriber\",'Enrollment Form'!$C26=\"ROC\"),\"-\",IF(AND('Enrollment Form'!$B26=\"Subscriber\",'Enrollment Form'!$C26=\"Enroll\",'Enrollment Form'!$AL26<>\"\"),\"Y\",\"N\")))","v":""},{"$f":"IF($B19=\"N\",\"\",IF(OR('Enrollment Form'!$B26<>\"Subscriber\",'Enrollment Form'!$C26=\"ROC\"),\"-\",IF(AND('Enrollment Form'!$B26=\"Subscriber\",'Enrollment Form'!$C26=\"Enroll\",'Enrollment Form'!$AM26<>\"\"),\"Y\",\"N\")))","v":""},{"$f":"IF($B19=\"N\",\"\",IF(OR('Enrollment Form'!$B26<>\"Subscriber\",'Enrollment Form'!$C26=\"ROC\"),\"-\",IF(AND('Enrollment Form'!$B26=\"Subscriber\",'Enrollment Form'!$C26=\"Enroll\",'Enrollment Form'!$AN26<>\"\"),\"Y\",\"N\")))","v":""},{"$f":"IF($B19=\"N\",\"\",IF(OR('Enrollment Form'!$B26<>\"Subscriber\",'Enrollment Form'!$C26=\"ROC\"),\"-\",IF(AND('Enrollment Form'!$B26=\"Subscriber\",'Enrollment Form'!$C26=\"Enroll\",'Enrollment Form'!$AP26<>\"\"),\"Y\",\"N\")))","v":""},{"$f":"IF($B19=\"N\",\"\",IF($Q19=\"-\",\"-\",IF(AND($Q19=\"Y\",'Enrollment Form'!$AP26=\"No\"),\"-\",IF(AND($Q19=\"Y\",'Enrollment Form'!$AP26=\"Yes\",'Enrollment Form'!$AQ26<>\"\"),\"Y\",\"N\"))))","v":""},{"$f":"IF($B19=\"N\",\"\",IF(OR('Enrollment Form'!$B26<>\"Subscriber\",'Enrollment Form'!$C26=\"ROC\"),\"-\",IF(AND('Enrollment Form'!$B26=\"Subscriber\",'Enrollment Form'!$C26=\"Enroll\",'Enrollment Form'!$CO26<>\"\"),\"Y\",\"N\")))","v":""},{"$f":"IF($B19=\"N\",\"\",IF($S19=\"-\",\"-\",IF(AND($S19=\"Y\",'Enrollment Form'!$CO26=\"No\"),\"-\",IF(AND($S19=\"Y\",'Enrollment Form'!$CO26=\"Yes\",'Enrollment Form'!$CP26<>\"\"),\"Y\",\"N\"))))","v":""},{"$f":"IF(OR('Enrollment Form'!$AV26=\"Yes\",'Enrollment Form'!$AV26=\"\"),\"-\",IF(AND('Enrollment Form'!$AV26=\"No\",ISERROR(FIND(\"HMO\",VLOOKUP('Enrollment Form'!G26,'Enrollment Form'!H$11:J$1000,3,FALSE),1))=FALSE,COUNTA('Enrollment Form'!$AW26:$AZ26)=4),\"Y\",\"N\"))","v":"-"},{"$f":"IF($B19=\"N\",\"\",IF('Enrollment Form'!$B26=\"Subscriber\",\"-\",IF(COUNTA('Enrollment Form'!$BE26,'Enrollment Form'!$BG26)=2,\"Y\",\"N\")))","v":""},{"$f":"IF($B19=\"N\",\"\",IF(OR('Enrollment Form'!$AU26=\"\",'Enrollment Form'!$AU26=\"No\"),\"-\",IF(AND('Enrollment Form'!$AU26=\"Yes\",COUNTA('Enrollment Form'!$CK26)=1),\"Y\",\"N\")))","v":""},{"$f":"IF(OR('Enrollment Form'!$CK26=\"\",'Enrollment Form'!$CK26=\"No\"),\"-\",IF(COUNTA('Enrollment Form'!$CM26:$CN26)=2,\"Y\",\"N\"))","v":"-"},{"$f":"IF($B19=\"N\",\"\",IF(COUNTIF('Enrollment Form'!$CZ26:$DO26,\"Other\")=COUNTA('Enrollment Form'!$DF26,'Enrollment Form'!$DA26,'Enrollment Form'!$DK26,'Enrollment Form'!$DP26),\"Y\",\"N\"))","v":""},{"$f":"IF($B19=\"N\",\"\",IF(OR('Enrollment Form'!B26<>\"Subscriber\",'Enrollment Form'!C26=\"ROC\",COUNTIF('Enrollment Form'!AS26:AT26,\"Yes\")>=1),\"-\",IF(AND('Enrollment Form'!C26=\"Enroll\",COUNTIF('Enrollment Form'!AS26:AT26,\"No\")=2,'Enrollment Form'!AU26=\"\"),\"N\",\"Y\")))","v":""},{"$f":"IF(OR(B19=\"N\",'Enrollment Form'!B26<>\"Subscriber\",'Enrollment Form'!C26=\"ROC\",'Enrollment Form'!O26<>\"Multiple of Salary\"),\"-\",IF(COUNTA('Enrollment Form'!T26:U26)<2,\"N\",\"Y\"))","v":"-"},{"$f":"IF(B19=\"N\",\"\",IF(OR('Enrollment Form'!C26=\"ROC\",'Enrollment Form'!B26<>\"Subscriber\",'Enrollment Form'!O26=\"Waive\",'Enrollment Form'!O26=\"\"),\"-\",IF('Enrollment Form'!P26=\"\",\"N\",\"Y\")))","v":""},{"$f":"IF($B19=\"N\",\"\",IF(AND('Enrollment Form'!$C26=\"ROC\",'Enrollment Form'!$DS26<>\"\"),\"Y\",IF(AND('Enrollment Form'!$C26=\"ROC\",'Enrollment Form'!$DS26=\"\"),\"N\",IF(AND('Enrollment Form'!$C26=\"Enroll\",'Enrollment Form'!$B26=\"Subscriber\",'Enrollment Form'!$CQ26=\"No\",'Enrollment Form'!$DS26=\"\"),\"N\",IF(AND('Enrollment Form'!$C26=\"Enroll\",'Enrollment Form'!$B26=\"Subscriber\",'Enrollment Form'!$CQ26=\"Yes\"),\"-\",\"Y\")))))","v":""},{"$f":"IF($B19=\"N\",\"\",IF(AND('Enrollment Form'!$C26=\"ROC\",'Enrollment Form'!$DT26<>\"\"),\"Y\",IF(AND('Enrollment Form'!$C26=\"ROC\",'Enrollment Form'!$DT26=\"\"),\"N\",IF(AND('Enrollment Form'!$C26=\"Enroll\",'Enrollment Form'!$B26=\"Subscriber\",'Enrollment Form'!$CQ26=\"No\",'Enrollment Form'!$DT26=\"\"),\"N\",IF(AND('Enrollment Form'!$C26=\"Enroll\",'Enrollment Form'!$B26=\"Subscriber\",'Enrollment Form'!$CQ26=\"Yes\"),\"-\",\"Y\")))))","v":""},{"$f":"IF('Enrollment Form'!AH26=\"\",\"\",IF(ISERROR(SEARCH(\".\",'Enrollment Form'!AH26,SEARCH(\"@\",'Enrollment Form'!AH26))),\"N\",\"Y\"))","v":""},{"$f":"IF(OR($B19=\"N\",'Enrollment Form'!$G26=\"\"),\"\",IF('Enrollment Form'!$B26<>\"Subscriber\",\"-\",IF(COUNTIF('Enrollment Form'!$AS26:$AT26,\"Yes\")=2,\"N\",\"Y\")))","v":""},{"$f":"IF(OR('Enrollment Form'!$CC26=\"\",'Enrollment Form'!$CC26=\"No\"),\"-\",IF(AND('Enrollment Form'!$CC26=\"Yes\",'Enrollment Form'!$CD26=\"\"),\"N\",\"Y\"))","v":"-"},{"$f":"IF(OR('Enrollment Form'!$CE26=\"\",'Enrollment Form'!$CE26=\"No\"),\"-\",IF(AND('Enrollment Form'!$CE26=\"Yes\",'Enrollment Form'!$CF26=\"\"),\"N\",\"Y\"))","v":"-"},{"$f":"IF(OR('Enrollment Form'!$CG26=\"\",'Enrollment Form'!$CG26=\"No\"),\"-\",IF(AND('Enrollment Form'!$CG26=\"Yes\",'Enrollment Form'!$CH26=\"\"),\"N\",\"Y\"))","v":"-"},{"$f":"IF(OR('Enrollment Form'!$CG26=\"\",'Enrollment Form'!$CG26=\"No\"),\"-\",IF(AND('Enrollment Form'!$CG26=\"Yes\",'Enrollment Form'!$CI26=\"\"),\"N\",\"Y\"))","v":"-"},{"$f":"IF('Enrollment Form'!B26<>\"Subscriber\",\"-\",IF(AND('Enrollment Form'!B26=\"Subscriber\",'Enrollment Form'!C26=\"Enroll\",'Enrollment Form'!AA26=\"\"),\"N\",\"Y\"))","v":"-"},{"$f":"IF(OR('Enrollment Form'!B26=\"Subscriber\",'Enrollment Form'!B26=\"\"),\"-\",IF('Enrollment Form'!BI26=\"\",\"N\",\"Y\"))","v":"-"},{"$f":"IF('Enrollment Form'!B26<>\"Subscriber\",\"-\",IF(AND('Enrollment Form'!B26=\"Subscriber\",'Enrollment Form'!G26=\"\"),\"N\",\"Y\"))","v":"-"},{"$f":"IF('Enrollment Form'!A26=\"\",\"\",IF('Enrollment Form'!B26=\"Subscriber\",\"-\",IF(AND('Enrollment Form'!B26<>\"Subscriber\",'Enrollment Form'!G26='Enrollment Form'!H26),\"N\",\"Y\")))","v":""},0,{"$nulls":6},"16","Sub Dependents <26 filled?","Does Subscriber have any dependents under the age of 26 must be populated","AP"]
[27,{"$f":"IF('Enrollment Form'!$A27<>\"\",\"Y\",\"N\")","v":"N"},{"$f":"IF(AND('Enrollment Form'!$B27=\"\",'Enrollment Form'!$C27<>\"\"),\"N\",IF($B20=\"N\",\"\",\"Y\"))","v":""},{"$f":"IF(OR($B20=\"N\",'Enrollment Form'!G27=\"\"),\"\",IF('Enrollment Form'!$B27<>\"Subscriber\",\"\",IF('Enrollment Form'!$G27='Enrollment Form'!$H27,\"Y\",\"N\")))","v":""},{"$f":"IF($B20=\"N\",\"\",IF(AND(COUNTIFS('Enrollment Form'!$H$11:$H$1000,'Enrollment Form'!$H27,'Enrollment Form'!$B$11:$B$1000,'Enrollment Form'!$B27)>1,'Enrollment Form'!$H27<>\"\"),\"N\",\"Y\"))","v":""},{"$f":"IF($B20=\"N\",\"\",IF(LEN('Enrollment Form'!$Y27)=0,\"\",IF(LEN('Enrollment Form'!$Y27)<>5,\"N\",\"Y\")))","v":""},{"$f":"IF($B20=\"N\",\"\",IF(LEN('Enrollment Form'!$AD27=0),\"\",IF(LEN('Enrollment Form'!$AD27)<>5,\"N\",\"Y\")))","v":""},{"$f":"IF($B20=\"N\",\"\",IF(LEN('Enrollment Form'!$BL27=0),\"\",IF(LEN('Enrollment Form'!$BL27)<>5,\"N\",\"Y\")))","v":""},{"$f":"IF($B20=\"N\",\"\",IF(LEN('Enrollment Form'!$AE27)=0,\"\",IF(LEN('Enrollment Form'!$AE27)<>10,\"N\",\"Y\")))","v":""},{"$f":"IF($B20=\"N\",\"\",IF(LEN('Enrollment Form'!$AF27)=0,\"\",IF(LEN('Enrollment Form'!$AF27)<>10,\"N\",\"Y\")))","v":""},{"$f":"IF('Enrollment Form'!$O27<>\"Graded\",\"-\",IF(AND('Enrollment Form'!$O27=\"Graded\",'Enrollment Form'!$AO27<>\"\"),\"Y\",\"N\"))","v":"-"},{"$f":"IF($B20=\"N\",\"\",IF(OR('Enrollment Form'!$B27<>\"Subscriber\",'Enrollment Form'!$C27=\"ROC\"),\"-\",IF(AND('Enrollment Form'!$B27=\"Subscriber\",'Enrollment Form'!$C27=\"Enroll\",'Enrollment Form'!$AJ27<>\"\"),\"Y\",\"N\")))","v":""},{"$f":"IF($B20=\"N\",\"\",IF(OR('Enrollment Form'!$B27<>\"Subscriber\",'Enrollment Form'!$C27=\"ROC\"),\"-\",IF(AND('Enrollment Form'!$B27=\"Subscriber\",'Enrollment Form'!$C27=\"Enroll\",'Enrollment Form'!$AK27<>\"\"),\"Y\",\"N\")))","v":""},{"$f":"IF($B20=\"N\",\"\",IF(OR('Enrollment Form'!$B27<>\"Subscriber\",'Enrollment Form'!$C27=\"ROC\"),\"-\",IF(AND('Enrollment Form'!$B27=\"Subscriber\",'Enrollment Form'!$C27=\"Enroll\",'Enrollment Form'!$AL27<>\"\"),\"Y\",\"N\")))","v":""},{"$f":"IF($B20=\"N\",\"\",IF(OR('Enrollment Form'!$B27<>\"Subscriber\",'Enrollment Form'!$C27=\"ROC\"),\"-\",IF(AND('Enrollment Form'!$B27=\"Subscriber\",'Enrollment Form'!$C27=\"Enroll\",'Enrollment Form'!$AM27<>\"\"),\"Y\",\"N\")))","v":""},{"$f":"IF($B20=\"N\",\"\",IF(OR('Enrollment Form'!$B27<>\"Subscriber\",'Enrollment Form'!$C27=\"ROC\"),\"-\",IF(AND('Enrollment Form'!$B27=\"Subscriber\",'Enrollment Form'!$C27=\"Enroll\",'Enrollment Form'!$AN27<>\"\"),\"Y\",\"N\")))","v":""},{"$f":"IF($B20=\"N\",\"\",IF(OR('Enrollment Form'!$B27<>\"Subscriber\",'Enrollment Form'!$C27=\"ROC\"),\"-\",IF(AND('Enrollment Form'!$B27=\"Subscriber\",'Enrollment Form'!$C27=\"Enroll\",'Enrollment Form'!$AP27<>\"\"),\"Y\",\"N\")))","v":""},{"$f":"IF($B20=\"N\",\"\",IF($Q20=\"-\",\"-\",IF(AND($Q20=\"Y\",'Enrollment Form'!$AP27=\"No\"),\"-\",IF(AND($Q20=\"Y\",'Enrollment Form'!$AP27=\"Yes\",'Enrollment Form'!$AQ27<>\"\"),\"Y\",\"N\"))))","v":""},{"$f":"IF($B20=\"N\",\"\",IF(OR('Enrollment Form'!$B27<>\"Subscriber\",'Enrollment Form'!$C27=\"ROC\"),\"-\",IF(AND('Enrollment Form'!$B27=\"Subscriber\",'Enrollment Form'!$C27=\"Enroll\",'Enrollment Form'!$CO27<>\"\"),\"Y\",\"N\")))","v":""},{"$f":"IF($B20=\"N\",\"\",IF($S20=\"-\",\"-\",IF(AND($S20=\"Y\",'Enrollment Form'!$CO27=\"No\"),\"-\",IF(AND($S20=\"Y\",'Enrollment Form'!$CO27=\"Yes\",'Enrollment Form'!$CP27<>\"\"),\"Y\",\"N\"))))","v":""},{"$f":"IF(OR('Enrollment Form'!$AV27=\"Yes\",'Enrollment Form'!$AV27=\"\"),\"-\",IF(AND('Enrollment Form'!$AV27=\"No\",ISERROR(FIND(\"HMO\",VLOOKUP('Enrollment Form'!G27,'Enrollment Form'!H$11:J$1000,3,FALSE),1))=FALSE,COUNTA('Enrollment Form'!$AW27:$AZ27)=4),\"Y\",\"N\"))","v":"-"},{"$f":"IF($B20=\"N\",\"\",IF('Enrollment Form'!$B27=\"Subscriber\",\"-\",IF(COUNTA('Enrollment Form'!$BE27,'Enrollment Form'!$BG27)=2,\"Y\",\"N\")))","v":""},{"$f":"IF($B20=\"N\",\"\",IF(OR('Enrollment Form'!$AU27=\"\",'Enrollment Form'!$AU27=\"No\"),\"-\",IF(AND('Enrollment Form'!$AU27=\"Yes\",COUNTA('Enrollment Form'!$CK27)=1),\"Y\",\"N\")))","v":""},{"$f":"IF(OR('Enrollment Form'!$CK27=\"\",'Enrollment Form'!$CK27=\"No\"),\"-\",IF(COUNTA('Enrollment Form'!$CM27:$CN27)=2,\"Y\",\"N\"))","v":"-"},{"$f":"IF($B20=\"N\",\"\",IF(COUNTIF('Enrollment Form'!$CZ27:$DO27,\"Other\")=COUNTA('Enrollment Form'!$DF27,'Enrollment Form'!$DA27,'Enrollment Form'!$DK27,'Enrollment Form'!$DP27),\"Y\",\"N\"))","v":""},{"$f":"IF($B20=\"N\",\"\",IF(OR('Enrollment Form'!B27<>\"Subscriber\",'Enrollment Form'!C27=\"ROC\",COUNTIF('Enrollment Form'!AS27:AT27,\"Yes\")>=1),\"-\",IF(AND('Enrollment Form'!C27=\"Enroll\",COUNTIF('Enrollment Form'!AS27:AT27,\"No\")=2,'Enrollment Form'!AU27=\"\"),\"N\",\"Y\")))","v":""},{"$f":"IF(OR(B20=\"N\",'Enrollment Form'!B27<>\"Subscriber\",'Enrollment Form'!C27=\"ROC\",'Enrollment Form'!O27<>\"Multiple of Salary\"),\"-\",IF(COUNTA('Enrollment Form'!T27:U27)<2,\"N\",\"Y\"))","v":"-"},{"$f":"IF(B20=\"N\",\"\",IF(OR('Enrollment Form'!C27=\"ROC\",'Enrollment Form'!B27<>\"Subscriber\",'Enrollment Form'!O27=\"Waive\",'Enrollment Form'!O27=\"\"),\"-\",IF('Enrollment Form'!P27=\"\",\"N\",\"Y\")))","v":""},{"$f":"IF($B20=\"N\",\"\",IF(AND('Enrollment Form'!$C27=\"ROC\",'Enrollment Form'!$DS27<>\"\"),\"Y\",IF(AND('Enrollment Form'!$C27=\"ROC\",'Enrollment Form'!$DS27=\"\"),\"N\",IF(AND('Enrollment Form'!$C27=\"Enroll\",'Enrollment Form'!$B27=\"Subscriber\",'Enrollment Form'!$CQ27=\"No\",'Enrollment Form'!$DS27=\"\"),\"N\",IF(AND('Enrollment Form'!$C27=\"Enroll\",'Enrollment Form'!$B27=\"Subscriber\",'Enrollment Form'!$CQ27=\"Yes\"),\"-\",\"Y\")))))","v":""},{"$f":"IF($B20=\"N\",\"\",IF(AND('Enrollment Form'!$C27=\"ROC\",'Enrollment Form'!$DT27<>\"\"),\"Y\",IF(AND('Enrollment Form'!$C27=\"ROC\",'Enrollment Form'!$DT27=\"\"),\"N\",IF(AND('Enrollment Form'!$C27=\"Enroll\",'Enrollment Form'!$B27=\"Subscriber\",'Enrollment Form'!$CQ27=\"No\",'Enrollment Form'!$DT27=\"\"),\"N\",IF(AND('Enrollment Form'!$C27=\"Enroll\",'Enrollment Form'!$B27=\"Subscriber\",'Enrollment Form'!$CQ27=\"Yes\"),\"-\",\"Y\")))))","v":""},{"$f":"IF('Enrollment Form'!AH27=\"\",\"\",IF(ISERROR(SEARCH(\".\",'Enrollment Form'!AH27,SEARCH(\"@\",'Enrollment Form'!AH27))),\"N\",\"Y\"))","v":""},{"$f":"IF(OR($B20=\"N\",'Enrollment Form'!$G27=\"\"),\"\",IF('Enrollment Form'!$B27<>\"Subscriber\",\"-\",IF(COUNTIF('Enrollment Form'!$AS27:$AT27,\"Yes\")=2,\"N\",\"Y\")))","v":""},{"$f":"IF(OR('Enrollment Form'!$CC27=\"\",'Enrollment Form'!$CC27=\"No\"),\"-\",IF(AND('Enrollment Form'!$CC27=\"Yes\",'Enrollment Form'!$CD27=\"\"),\"N\",\"Y\"))","v":"-"},{"$f":"IF(OR('Enrollment Form'!$CE27=\"\",'Enrollment Form'!$CE27=\"No\"),\"-\",IF(AND('Enrollment Form'!$CE27=\"Yes\",'Enrollment Form'!$CF27=\"\"),\"N\",\"Y\"))","v":"-"},{"$f":"IF(OR('Enrollment Form'!$CG27=\"\",'Enrollment Form'!$CG27=\"No\"),\"-\",IF(AND('Enrollment Form'!$CG27=\"Yes\",'Enrollment Form'!$CH27=\"\"),\"N\",\"Y\"))","v":"-"},{"$f":"IF(OR('Enrollment Form'!$CG27=\"\",'Enrollment Form'!$CG27=\"No\"),\"-\",IF(AND('Enrollment Form'!$CG27=\"Yes\",'Enrollment Form'!$CI27=\"\"),\"N\",\"Y\"))","v":"-"},{"$f":"IF('Enrollment Form'!B27<>\"Subscriber\",\"-\",IF(AND('Enrollment Form'!B27=\"Subscriber\",'Enrollment Form'!C27=\"Enroll\",'Enrollment Form'!AA27=\"\"),\"N\",\"Y\"))","v":"-"},{"$f":"IF(OR('Enrollment Form'!B27=\"Subscriber\",'Enrollment Form'!B27=\"\"),\"-\",IF('Enrollment Form'!BI27=\"\",\"N\",\"Y\"))","v":"-"},{"$f":"IF('Enrollment Form'!B27<>\"Subscriber\",\"-\",IF(AND('Enrollment Form'!B27=\"Subscriber\",'Enrollment Form'!G27=\"\"),\"N\",\"Y\"))","v":"-"},{"$f":"IF('Enrollment Form'!A27=\"\",\"\",IF('Enrollment Form'!B27=\"Subscriber\",\"-\",IF(AND('Enrollment Form'!B27<>\"Subscriber\",'Enrollment Form'!G27='Enrollment Form'!H27),\"N\",\"Y\")))","v":""},0,{"$nulls":6},"17","Sub # Dependents <26 filled?","If \"Yes\" to above question, then number of dependents under the age of 26 must be supplied","AP-AQ"]
[28,{"$f":"IF('Enrollment Form'!$A28<>\"\",\"Y\",\"N\")","v":"N"},{"$f":"IF(AND('Enrollment Form'!$B28=\"\",'Enrollment Form'!$C28<>\"\"),\"N\",IF($B21=\"N\",\"\",\"Y\"))","v":""},{"$f":"IF(OR($B21=\"N\",'Enrollment Form'!G28=\"\"),\"\",IF('Enrollment Form'!$B28<>\"Subscriber\",\"\",IF('Enrollment Form'!$G28='Enrollment Form'!$H28,\"Y\",\"N\")))","v":""},{"$f":"IF($B21=\"N\",\"\",IF(AND(COUNTIFS('Enrollment Form'!$H$11:$H$1000,'Enrollment Form'!$H28,'Enrollment Form'!$B$11:$B$1000,'Enrollment Form'!$B28)>1,'Enrollment Form'!$H28<>\"\"),\"N\",\"Y\"))","v":""},{"$f":"IF($B21=\"N\",\"\",IF(LEN('Enrollment Form'!$Y28)=0,\"\",IF(LEN('Enrollment Form'!$Y28)<>5,\"N\",\"Y\")))","v":""},{"$f":"IF($B21=\"N\",\"\",IF(LEN('Enrollment Form'!$AD28=0),\"\",IF(LEN('Enrollment Form'!$AD28)<>5,\"N\",\"Y\")))","v":""},{"$f":"IF($B21=\"N\",\"\",IF(LEN('Enrollment Form'!$BL28=0),\"\",IF(LEN('Enrollment Form'!$BL28)<>5,\"N\",\"Y\")))","v":""},{"$f":"IF($B21=\"N\",\"\",IF(LEN('Enrollment Form'!$AE28)=0,\"\",IF(LEN('Enrollment Form'!$AE28)<>10,\"N\",\"Y\")))","v":""},{"$f":"IF($B21=\"N\",\"\",IF(LEN('Enrollment Form'!$AF28)=0,\"\",IF(LEN('Enrollment Form'!$AF28)<>10,\"N\",\"Y\")))","v":""},{"$f":"IF('Enrollment Form'!$O28<>\"Graded\",\"-\",IF(AND('Enrollment Form'!$O28=\"Graded\",'Enrollment Form'!$AO28<>\"\"),\"Y\",\"N\"))","v":"-"},{"$f":"IF($B21=\"N\",\"\",IF(OR('Enrollment Form'!$B28<>\"Subscriber\",'Enrollment Form'!$C28=\"ROC\"),\"-\",IF(AND('Enrollment Form'!$B28=\"Subscriber\",'Enrollment Form'!$C28=\"Enroll\",'Enrollment Form'!$AJ28<>\"\"),\"Y\",\"N\")))","v":""},{"$f":"IF($B21=\"N\",\"\",IF(OR('Enrollment Form'!$B28<>\"Subscriber\",'Enrollment Form'!$C28=\"ROC\"),\"-\",IF(AND('Enrollment Form'!$B28=\"Subscriber\",'Enrollment Form'!$C28=\"Enroll\",'Enrollment Form'!$AK28<>\"\"),\"Y\",\"N\")))","v":""},{"$f":"IF($B21=\"N\",\"\",IF(OR('Enrollment Form'!$B28<>\"Subscriber\",'Enrollment Form'!$C28=\"ROC\"),\"-\",IF(AND('Enrollment Form'!$B28=\"Subscriber\",'Enrollment Form'!$C28=\"Enroll\",'Enrollment Form'!$AL28<>\"\"),\"Y\",\"N\")))","v":""},{"$f":"IF($B21=\"N\",\"\",IF(OR('Enrollment Form'!$B28<>\"Subscriber\",'Enrollment Form'!$C28=\"ROC\"),\"-\",IF(AND('Enrollment Form'!$B28=\"Subscriber\",'Enrollment Form'!$C28=\"Enroll\",'Enrollment Form'!$AM28<>\"\"),\"Y\",\"N\")))","v":""},{"$f":"IF($B21=\"N\",\"\",IF(OR('Enrollment Form'!$B28<>\"Subscriber\",'Enrollment Form'!$C28=\"ROC\"),\"-\",IF(AND('Enrollment Form'!$B28=\"Subscriber\",'Enrollment Form'!$C28=\"Enroll\",'Enrollment Form'!$AN28<>\"\"),\"Y\",\"N\")))","v":""},{"$f":"IF($B21=\"N\",\"\",IF(OR('Enrollment Form'!$B28<>\"Subscriber\",'Enrollment Form'!$C28=\"ROC\"),\"-\",IF(AND('Enrollment Form'!$B28=\"Subscriber\",'Enrollment Form'!$C28=\"Enroll\",'Enrollment Form'!$AP28<>\"\"),\"Y\",\"N\")))","v":""},{"$f":"IF($B21=\"N\",\"\",IF($Q21=\"-\",\"-\",IF(AND($Q21=\"Y\",'Enrollment Form'!$AP28=\"No\"),\"-\",IF(AND($Q21=\"Y\",'Enrollment Form'!$AP28=\"Yes\",'Enrollment Form'!$AQ28<>\"\"),\"Y\",\"N\"))))","v":""},{"$f":"IF($B21=\"N\",\"\",IF(OR('Enrollment Form'!$B28<>\"Subscriber\",'Enrollment Form'!$C28=\"ROC\"),\"-\",IF(AND('Enrollment Form'!$B28=\"Subscriber\",'Enrollment Form'!$C28=\"Enroll\",'Enrollment Form'!$CO28<>\"\"),\"Y\",\"N\")))","v":""},{"$f":"IF($B21=\"N\",\"\",IF($S21=\"-\",\"-\",IF(AND($S21=\"Y\",'Enrollment Form'!$CO28=\"No\"),\"-\",IF(AND($S21=\"Y\",'Enrollment Form'!$CO28=\"Yes\",'Enrollment Form'!$CP28<>\"\"),\"Y\",\"N\"))))","v":""},{"$f":"IF(OR('Enrollment Form'!$AV28=\"Yes\",'Enrollment Form'!$AV28=\"\"),\"-\",IF(AND('Enrollment Form'!$AV28=\"No\",ISERROR(FIND(\"HMO\",VLOOKUP('Enrollment Form'!G28,'Enrollment Form'!H$11:J$1000,3,FALSE),1))=FALSE,COUNTA('Enrollment Form'!$AW28:$AZ28)=4),\"Y\",\"N\"))","v":"-"},{"$f":"IF($B21=\"N\",\"\",IF('Enrollment Form'!$B28=\"Subscriber\",\"-\",IF(COUNTA('Enrollment Form'!$BE28,'Enrollment Form'!$BG28)=2,\"Y\",\"N\")))","v":""},{"$f":"IF($B21=\"N\",\"\",IF(OR('Enrollment Form'!$AU28=\"\",'Enrollment Form'!$AU28=\"No\"),\"-\",IF(AND('Enrollment Form'!$AU28=\"Yes\",COUNTA('Enrollment Form'!$CK28)=1),\"Y\",\"N\")))","v":""},{"$f":"IF(OR('Enrollment Form'!$CK28=\"\",'Enrollment Form'!$CK28=\"No\"),\"-\",IF(COUNTA('Enrollment Form'!$CM28:$CN28)=2,\"Y\",\"N\"))","v":"-"},{"$f":"IF($B21=\"N\",\"\",IF(COUNTIF('Enrollment Form'!$CZ28:$DO28,\"Other\")=COUNTA('Enrollment Form'!$DF28,'Enrollment Form'!$DA28,'Enrollment Form'!$DK28,'Enrollment Form'!$DP28),\"Y\",\"N\"))","v":""},{"$f":"IF($B21=\"N\",\"\",IF(OR('Enrollment Form'!B28<>\"Subscriber\",'Enrollment Form'!C28=\"ROC\",COUNTIF('Enrollment Form'!AS28:AT28,\"Yes\")>=1),\"-\",IF(AND('Enrollment Form'!C28=\"Enroll\",COUNTIF('Enrollment Form'!AS28:AT28,\"No\")=2,'Enrollment Form'!AU28=\"\"),\"N\",\"Y\")))","v":""},{"$f":"IF(OR(B21=\"N\",'Enrollment Form'!B28<>\"Subscriber\",'Enrollment Form'!C28=\"ROC\",'Enrollment Form'!O28<>\"Multiple of Salary\"),\"-\",IF(COUNTA('Enrollment Form'!T28:U28)<2,\"N\",\"Y\"))","v":"-"},{"$f":"IF(B21=\"N\",\"\",IF(OR('Enrollment Form'!C28=\"ROC\",'Enrollment Form'!B28<>\"Subscriber\",'Enrollment Form'!O28=\"Waive\",'Enrollment Form'!O28=\"\"),\"-\",IF('Enrollment Form'!P28=\"\",\"N\",\"Y\")))","v":""},{"$f":"IF($B21=\"N\",\"\",IF(AND('Enrollment Form'!$C28=\"ROC\",'Enrollment Form'!$DS28<>\"\"),\"Y\",IF(AND('Enrollment Form'!$C28=\"ROC\",'Enrollment Form'!$DS28=\"\"),\"N\",IF(AND('Enrollment Form'!$C28=\"Enroll\",'Enrollment Form'!$B28=\"Subscriber\",'Enrollment Form'!$CQ28=\"No\",'Enrollment Form'!$DS28=\"\"),\"N\",IF(AND('Enrollment Form'!$C28=\"Enroll\",'Enrollment Form'!$B28=\"Subscriber\",'Enrollment Form'!$CQ28=\"Yes\"),\"-\",\"Y\")))))","v":""},{"$f":"IF($B21=\"N\",\"\",IF(AND('Enrollment Form'!$C28=\"ROC\",'Enrollment Form'!$DT28<>\"\"),\"Y\",IF(AND('Enrollment Form'!$C28=\"ROC\",'Enrollment Form'!$DT28=\"\"),\"N\",IF(AND('Enrollment Form'!$C28=\"Enroll\",'Enrollment Form'!$B28=\"Subscriber\",'Enrollment Form'!$CQ28=\"No\",'Enrollment Form'!$DT28=\"\"),\"N\",IF(AND('Enrollment Form'!$C28=\"Enroll\",'Enrollment Form'!$B28=\"Subscriber\",'Enrollment Form'!$CQ28=\"Yes\"),\"-\",\"Y\")))))","v":""},{"$f":"IF('Enrollment Form'!AH28=\"\",\"\",IF(ISERROR(SEARCH(\".\",'Enrollment Form'!AH28,SEARCH(\"@\",'Enrollment Form'!AH28))),\"N\",\"Y\"))","v":""},{"$f":"IF(OR($B21=\"N\",'Enrollment Form'!$G28=\"\"),\"\",IF('Enrollment Form'!$B28<>\"Subscriber\",\"-\",IF(COUNTIF('Enrollment Form'!$AS28:$AT28,\"Yes\")=2,\"N\",\"Y\")))","v":""},{"$f":"IF(OR('Enrollment Form'!$CC28=\"\",'Enrollment Form'!$CC28=\"No\"),\"-\",IF(AND('Enrollment Form'!$CC28=\"Yes\",'Enrollment Form'!$CD28=\"\"),\"N\",\"Y\"))","v":"-"},{"$f":"IF(OR('Enrollment Form'!$CE28=\"\",'Enrollment Form'!$CE28=\"No\"),\"-\",IF(AND('Enrollment Form'!$CE28=\"Yes\",'Enrollment Form'!$CF28=\"\"),\"N\",\"Y\"))","v":"-"},{"$f":"IF(OR('Enrollment Form'!$CG28=\"\",'Enrollment Form'!$CG28=\"No\"),\"-\",IF(AND('Enrollment Form'!$CG28=\"Yes\",'Enrollment Form'!$CH28=\"\"),\"N\",\"Y\"))","v":"-"},{"$f":"IF(OR('Enrollment Form'!$CG28=\"\",'Enrollment Form'!$CG28=\"No\"),\"-\",IF(AND('Enrollment Form'!$CG28=\"Yes\",'Enrollment Form'!$CI28=\"\"),\"N\",\"Y\"))","v":"-"},{"$f":"IF('Enrollment Form'!B28<>\"Subscriber\",\"-\",IF(AND('Enrollment Form'!B28=\"Subscriber\",'Enrollment Form'!C28=\"Enroll\",'Enrollment Form'!AA28=\"\"),\"N\",\"Y\"))","v":"-"},{"$f":"IF(OR('Enrollment Form'!B28=\"Subscriber\",'Enrollment Form'!B28=\"\"),\"-\",IF('Enrollment Form'!BI28=\"\",\"N\",\"Y\"))","v":"-"},{"$f":"IF('Enrollment Form'!B28<>\"Subscriber\",\"-\",IF(AND('Enrollment Form'!B28=\"Subscriber\",'Enrollment Form'!G28=\"\"),\"N\",\"Y\"))","v":"-"},{"$f":"IF('Enrollment Form'!A28=\"\",\"\",IF('Enrollment Form'!B28=\"Subscriber\",\"-\",IF(AND('Enrollment Form'!B28<>\"Subscriber\",'Enrollment Form'!G28='Enrollment Form'!H28),\"N\",\"Y\")))","v":""},0,{"$nulls":6},"18","Sub Signature filled?","If Application Type = \"Enroll\" then Signature of Employee must be populated","CO"]
[29,{"$f":"IF('Enrollment Form'!$A29<>\"\",\"Y\",\"N\")","v":"N"},{"$f":"IF(AND('Enrollment Form'!$B29=\"\",'Enrollment Form'!$C29<>\"\"),\"N\",IF($B22=\"N\",\"\",\"Y\"))","v":""},{"$f":"IF(OR($B22=\"N\",'Enrollment Form'!G29=\"\"),\"\",IF('Enrollment Form'!$B29<>\"Subscriber\",\"\",IF('Enrollment Form'!$G29='Enrollment Form'!$H29,\"Y\",\"N\")))","v":""},{"$f":"IF($B22=\"N\",\"\",IF(AND(COUNTIFS('Enrollment Form'!$H$11:$H$1000,'Enrollment Form'!$H29,'Enrollment Form'!$B$11:$B$1000,'Enrollment Form'!$B29)>1,'Enrollment Form'!$H29<>\"\"),\"N\",\"Y\"))","v":""},{"$f":"IF($B22=\"N\",\"\",IF(LEN('Enrollment Form'!$Y29)=0,\"\",IF(LEN('Enrollment Form'!$Y29)<>5,\"N\",\"Y\")))","v":""},{"$f":"IF($B22=\"N\",\"\",IF(LEN('Enrollment Form'!$AD29=0),\"\",IF(LEN('Enrollment Form'!$AD29)<>5,\"N\",\"Y\")))","v":""},{"$f":"IF($B22=\"N\",\"\",IF(LEN('Enrollment Form'!$BL29=0),\"\",IF(LEN('Enrollment Form'!$BL29)<>5,\"N\",\"Y\")))","v":""},{"$f":"IF($B22=\"N\",\"\",IF(LEN('Enrollment Form'!$AE29)=0,\"\",IF(LEN('Enrollment Form'!$AE29)<>10,\"N\",\"Y\")))","v":""},{"$f":"IF($B22=\"N\",\"\",IF(LEN('Enrollment Form'!$AF29)=0,\"\",IF(LEN('Enrollment Form'!$AF29)<>10,\"N\",\"Y\")))","v":""},{"$f":"IF('Enrollment Form'!$O29<>\"Graded\",\"-\",IF(AND('Enrollment Form'!$O29=\"Graded\",'Enrollment Form'!$AO29<>\"\"),\"Y\",\"N\"))","v":"-"},{"$f":"IF($B22=\"N\",\"\",IF(OR('Enrollment Form'!$B29<>\"Subscriber\",'Enrollment Form'!$C29=\"ROC\"),\"-\",IF(AND('Enrollment Form'!$B29=\"Subscriber\",'Enrollment Form'!$C29=\"Enroll\",'Enrollment Form'!$AJ29<>\"\"),\"Y\",\"N\")))","v":""},{"$f":"IF($B22=\"N\",\"\",IF(OR('Enrollment Form'!$B29<>\"Subscriber\",'Enrollment Form'!$C29=\"ROC\"),\"-\",IF(AND('Enrollment Form'!$B29=\"Subscriber\",'Enrollment Form'!$C29=\"Enroll\",'Enrollment Form'!$AK29<>\"\"),\"Y\",\"N\")))","v":""},{"$f":"IF($B22=\"N\",\"\",IF(OR('Enrollment Form'!$B29<>\"Subscriber\",'Enrollment Form'!$C29=\"ROC\"),\"-\",IF(AND('Enrollment Form'!$B29=\"Subscriber\",'Enrollment Form'!$C29=\"Enroll\",'Enrollment Form'!$AL29<>\"\"),\"Y\",\"N\")))","v":""},{"$f":"IF($B22=\"N\",\"\",IF(OR('Enrollment Form'!$B29<>\"Subscriber\",'Enrollment Form'!$C29=\"ROC\"),\"-\",IF(AND('Enrollment Form'!$B29=\"Subscriber\",'Enrollment Form'!$C29=\"Enroll\",'Enrollment Form'!$AM29<>\"\"),\"Y\",\"N\")))","v":""},{"$f":"IF($B22=\"N\",\"\",IF(OR('Enrollment Form'!$B29<>\"Subscriber\",'Enrollment Form'!$C29=\"ROC\"),\"-\",IF(AND('Enrollment Form'!$B29=\"Subscriber\",'Enrollment Form'!$C29=\"Enroll\",'Enrollment Form'!$AN29<>\"\"),\"Y\",\"N\")))","v":""},{"$f":"IF($B22=\"N\",\"\",IF(OR('Enrollment Form'!$B29<>\"Subscriber\",'Enrollment Form'!$C29=\"ROC\"),\"-\",IF(AND('Enrollment Form'!$B29=\"Subscriber\",'Enrollment Form'!$C29=\"Enroll\",'Enrollment Form'!$AP29<>\"\"),\"Y\",\"N\")))","v":""},{"$f":"IF($B22=\"N\",\"\",IF($Q22=\"-\",\"-\",IF(AND($Q22=\"Y\",'Enrollment Form'!$AP29=\"No\"),\"-\",IF(AND($Q22=\"Y\",'Enrollment Form'!$AP29=\"Yes\",'Enrollment Form'!$AQ29<>\"\"),\"Y\",\"N\"))))","v":""},{"$f":"IF($B22=\"N\",\"\",IF(OR('Enrollment Form'!$B29<>\"Subscriber\",'Enrollment Form'!$C29=\"ROC\"),\"-\",IF(AND('Enrollment Form'!$B29=\"Subscriber\",'Enrollment Form'!$C29=\"Enroll\",'Enrollment Form'!$CO29<>\"\"),\"Y\",\"N\")))","v":""},{"$f":"IF($B22=\"N\",\"\",IF($S22=\"-\",\"-\",IF(AND($S22=\"Y\",'Enrollment Form'!$CO29=\"No\"),\"-\",IF(AND($S22=\"Y\",'Enrollment Form'!$CO29=\"Yes\",'Enrollment Form'!$CP29<>\"\"),\"Y\",\"N\"))))","v":""},{"$f":"IF(OR('Enrollment Form'!$AV29=\"Yes\",'Enrollment Form'!$AV29=\"\"),\"-\",IF(AND('Enrollment Form'!$AV29=\"No\",ISERROR(FIND(\"HMO\",VLOOKUP('Enrollment Form'!G29,'Enrollment Form'!H$11:J$1000,3,FALSE),1))=FALSE,COUNTA('Enrollment Form'!$AW29:$AZ29)=4),\"Y\",\"N\"))","v":"-"},{"$f":"IF($B22=\"N\",\"\",IF('Enrollment Form'!$B29=\"Subscriber\",\"-\",IF(COUNTA('Enrollment Form'!$BE29,'Enrollment Form'!$BG29)=2,\"Y\",\"N\")))","v":""},{"$f":"IF($B22=\"N\",\"\",IF(OR('Enrollment Form'!$AU29=\"\",'Enrollment Form'!$AU29=\"No\"),\"-\",IF(AND('Enrollment Form'!$AU29=\"Yes\",COUNTA('Enrollment Form'!$CK29)=1),\"Y\",\"N\")))","v":""},{"$f":"IF(OR('Enrollment Form'!$CK29=\"\",'Enrollment Form'!$CK29=\"No\"),\"-\",IF(COUNTA('Enrollment Form'!$CM29:$CN29)=2,\"Y\",\"N\"))","v":"-"},{"$f":"IF($B22=\"N\",\"\",IF(COUNTIF('Enrollment Form'!$CZ29:$DO29,\"Other\")=COUNTA('Enrollment Form'!$DF29,'Enrollment Form'!$DA29,'Enrollment Form'!$DK29,'Enrollment Form'!$DP29),\"Y\",\"N\"))","v":""},{"$f":"IF($B22=\"N\",\"\",IF(OR('Enrollment Form'!B29<>\"Subscriber\",'Enrollment Form'!C29=\"ROC\",COUNTIF('Enrollment Form'!AS29:AT29,\"Yes\")>=1),\"-\",IF(AND('Enrollment Form'!C29=\"Enroll\",COUNTIF('Enrollment Form'!AS29:AT29,\"No\")=2,'Enrollment Form'!AU29=\"\"),\"N\",\"Y\")))","v":""},{"$f":"IF(OR(B22=\"N\",'Enrollment Form'!B29<>\"Subscriber\",'Enrollment Form'!C29=\"ROC\",'Enrollment Form'!O29<>\"Multiple of Salary\"),\"-\",IF(COUNTA('Enrollment Form'!T29:U29)<2,\"N\",\"Y\"))","v":"-"},{"$f":"IF(B22=\"N\",\"\",IF(OR('Enrollment Form'!C29=\"ROC\",'Enrollment Form'!B29<>\"Subscriber\",'Enrollment Form'!O29=\"Waive\",'Enrollment Form'!O29=\"\"),\"-\",IF('Enrollment Form'!P29=\"\",\"N\",\"Y\")))","v":""},{"$f":"IF($B22=\"N\",\"\",IF(AND('Enrollment Form'!$C29=\"ROC\",'Enrollment Form'!$DS29<>\"\"),\"Y\",IF(AND('Enrollment Form'!$C29=\"ROC\",'Enrollment Form'!$DS29=\"\"),\"N\",IF(AND('Enrollment Form'!$C29=\"Enroll\",'Enrollment Form'!$B29=\"Subscriber\",'Enrollment Form'!$CQ29=\"No\",'Enrollment Form'!$DS29=\"\"),\"N\",IF(AND('Enrollment Form'!$C29=\"Enroll\",'Enrollment Form'!$B29=\"Subscriber\",'Enrollment Form'!$CQ29=\"Yes\"),\"-\",\"Y\")))))","v":""},{"$f":"IF($B22=\"N\",\"\",IF(AND('Enrollment Form'!$C29=\"ROC\",'Enrollment Form'!$DT29<>\"\"),\"Y\",IF(AND('Enrollment Form'!$C29=\"ROC\",'Enrollment Form'!$DT29=\"\"),\"N\",IF(AND('Enrollment Form'!$C29=\"Enroll\",'Enrollment Form'!$B29=\"Subscriber\",'Enrollment Form'!$CQ29=\"No\",'Enrollment Form'!$DT29=\"\"),\"N\",IF(AND('Enrollment Form'!$C29=\"Enroll\",'Enrollment Form'!$B29=\"Subscriber\",'Enrollment Form'!$CQ29=\"Yes\"),\"-\",\"Y\")))))","v":""},{"$f":"IF('Enrollment Form'!AH29=\"\",\"\",IF(ISERROR(SEARCH(\".\",'Enrollment Form'!AH29,SEARCH(\"@\",'Enrollment Form'!AH29))),\"N\",\"Y\"))","v":""},{"$f":"IF(OR($B22=\"N\",'Enrollment Form'!$G29=\"\"),\"\",IF('Enrollment Form'!$B29<>\"Subscriber\",\"-\",IF(COUNTIF('Enrollment Form'!$AS29:$AT29,\"Yes\")=2,\"N\",\"Y\")))","v":""},{"$f":"IF(OR('Enrollment Form'!$CC29=\"\",'Enrollment Form'!$CC29=\"No\"),\"-\",IF(AND('Enrollment Form'!$CC29=\"Yes\",'Enrollment Form'!$CD29=\"\"),\"N\",\"Y\"))","v":"-"},{"$f":"IF(OR('Enrollment Form'!$CE29=\"\",'Enrollment Form'!$CE29=\"No\"),\"-\",IF(AND('Enrollment Form'!$CE29=\"Yes\",'Enrollment Form'!$CF29=\"\"),\"N\",\"Y\"))","v":"-"},{"$f":"IF(OR('Enrollment Form'!$CG29=\"\",'Enrollment Form'!$CG29=\"No\"),\"-\",IF(AND('Enrollment Form'!$CG29=\"Yes\",'Enrollment Form'!$CH29=\"\"),\"N\",\"Y\"))","v":"-"},{"$f":"IF(OR('Enrollment Form'!$CG29=\"\",'Enrollment Form'!$CG29=\"No\"),\"-\",IF(AND('Enrollment Form'!$CG29=\"Yes\",'Enrollment Form'!$CI29=\"\"),\"N\",\"Y\"))","v":"-"},{"$f":"IF('Enrollment Form'!B29<>\"Subscriber\",\"-\",IF(AND('Enrollment Form'!B29=\"Subscriber\",'Enrollment Form'!C29=\"Enroll\",'Enrollment Form'!AA29=\"\"),\"N\",\"Y\"))","v":"-"},{"$f":"IF(OR('Enrollment Form'!B29=\"Subscriber\",'Enrollment Form'!B29=\"\"),\"-\",IF('Enrollment Form'!BI29=\"\",\"N\",\"Y\"))","v":"-"},{"$f":"IF('Enrollment Form'!B29<>\"Subscriber\",\"-\",IF(AND('Enrollment Form'!B29=\"Subscriber\",'Enrollment Form'!G29=\"\"),\"N\",\"Y\"))","v":"-"},{"$f":"IF('Enrollment Form'!A29=\"\",\"\",IF('Enrollment Form'!B29=\"Subscriber\",\"-\",IF(AND('Enrollment Form'!B29<>\"Subscriber\",'Enrollment Form'!G29='Enrollment Form'!H29),\"N\",\"Y\")))","v":""},0,{"$nulls":6},"19","Sub Signature Date filled?","If Application Type = \"Enroll\" then Signature Date must be populated","CP"]
[30,{"$f":"IF('Enrollment Form'!$A30<>\"\",\"Y\",\"N\")","v":"N"},{"$f":"IF(AND('Enrollment Form'!$B30=\"\",'Enrollment Form'!$C30<>\"\"),\"N\",IF($B23=\"N\",\"\",\"Y\"))","v":""},{"$f":"IF(OR($B23=\"N\",'Enrollment Form'!G30=\"\"),\"\",IF('Enrollment Form'!$B30<>\"Subscriber\",\"\",IF('Enrollment Form'!$G30='Enrollment Form'!$H30,\"Y\",\"N\")))","v":""},{"$f":"IF($B23=\"N\",\"\",IF(AND(COUNTIFS('Enrollment Form'!$H$11:$H$1000,'Enrollment Form'!$H30,'Enrollment Form'!$B$11:$B$1000,'Enrollment Form'!$B30)>1,'Enrollment Form'!$H30<>\"\"),\"N\",\"Y\"))","v":""},{"$f":"IF($B23=\"N\",\"\",IF(LEN('Enrollment Form'!$Y30)=0,\"\",IF(LEN('Enrollment Form'!$Y30)<>5,\"N\",\"Y\")))","v":""},{"$f":"IF($B23=\"N\",\"\",IF(LEN('Enrollment Form'!$AD30=0),\"\",IF(LEN('Enrollment Form'!$AD30)<>5,\"N\",\"Y\")))","v":""},{"$f":"IF($B23=\"N\",\"\",IF(LEN('Enrollment Form'!$BL30=0),\"\",IF(LEN('Enrollment Form'!$BL30)<>5,\"N\",\"Y\")))","v":""},{"$f":"IF($B23=\"N\",\"\",IF(LEN('Enrollment Form'!$AE30)=0,\"\",IF(LEN('Enrollment Form'!$AE30)<>10,\"N\",\"Y\")))","v":""},{"$f":"IF($B23=\"N\",\"\",IF(LEN('Enrollment Form'!$AF30)=0,\"\",IF(LEN('Enrollment Form'!$AF30)<>10,\"N\",\"Y\")))","v":""},{"$f":"IF('Enrollment Form'!$O30<>\"Graded\",\"-\",IF(AND('Enrollment Form'!$O30=\"Graded\",'Enrollment Form'!$AO30<>\"\"),\"Y\",\"N\"))","v":"-"},{"$f":"IF($B23=\"N\",\"\",IF(OR('Enrollment Form'!$B30<>\"Subscriber\",'Enrollment Form'!$C30=\"ROC\"),\"-\",IF(AND('Enrollment Form'!$B30=\"Subscriber\",'Enrollment Form'!$C30=\"Enroll\",'Enrollment Form'!$AJ30<>\"\"),\"Y\",\"N\")))","v":""},{"$f":"IF($B23=\"N\",\"\",IF(OR('Enrollment Form'!$B30<>\"Subscriber\",'Enrollment Form'!$C30=\"ROC\"),\"-\",IF(AND('Enrollment Form'!$B30=\"Subscriber\",'Enrollment Form'!$C30=\"Enroll\",'Enrollment Form'!$AK30<>\"\"),\"Y\",\"N\")))","v":""},{"$f":"IF($B23=\"N\",\"\",IF(OR('Enrollment Form'!$B30<>\"Subscriber\",'Enrollment Form'!$C30=\"ROC\"),\"-\",IF(AND('Enrollment Form'!$B30=\"Subscriber\",'Enrollment Form'!$C30=\"Enroll\",'Enrollment Form'!$AL30<>\"\"),\"Y\",\"N\")))","v":""},{"$f":"IF($B23=\"N\",\"\",IF(OR('Enrollment Form'!$B30<>\"Subscriber\",'Enrollment Form'!$C30=\"ROC\"),\"-\",IF(AND('Enrollment Form'!$B30=\"Subscriber\",'Enrollment Form'!$C30=\"Enroll\",'Enrollment Form'!$AM30<>\"\"),\"Y\",\"N\")))","v":""},{"$f":"IF($B23=\"N\",\"\",IF(OR('Enrollment Form'!$B30<>\"Subscriber\",'Enrollment Form'!$C30=\"ROC\"),\"-\",IF(AND('Enrollment Form'!$B30=\"Subscriber\",'Enrollment Form'!$C30=\"Enroll\",'Enrollment Form'!$AN30<>\"\"),\"Y\",\"N\")))","v":""},{"$f":"IF($B23=\"N\",\"\",IF(OR('Enrollment Form'!$B30<>\"Subscriber\",'Enrollment Form'!$C30=\"ROC\"),\"-\",IF(AND('Enrollment Form'!$B30=\"Subscriber\",'Enrollment Form'!$C30=\"Enroll\",'Enrollment Form'!$AP30<>\"\"),\"Y\",\"N\")))","v":""},{"$f":"IF($B23=\"N\",\"\",IF($Q23=\"-\",\"-\",IF(AND($Q23=\"Y\",'Enrollment Form'!$AP30=\"No\"),\"-\",IF(AND($Q23=\"Y\",'Enrollment Form'!$AP30=\"Yes\",'Enrollment Form'!$AQ30<>\"\"),\"Y\",\"N\"))))","v":""},{"$f":"IF($B23=\"N\",\"\",IF(OR('Enrollment Form'!$B30<>\"Subscriber\",'Enrollment Form'!$C30=\"ROC\"),\"-\",IF(AND('Enrollment Form'!$B30=\"Subscriber\",'Enrollment Form'!$C30=\"Enroll\",'Enrollment Form'!$CO30<>\"\"),\"Y\",\"N\")))","v":""},{"$f":"IF($B23=\"N\",\"\",IF($S23=\"-\",\"-\",IF(AND($S23=\"Y\",'Enrollment Form'!$CO30=\"No\"),\"-\",IF(AND($S23=\"Y\",'Enrollment Form'!$CO30=\"Yes\",'Enrollment Form'!$CP30<>\"\"),\"Y\",\"N\"))))","v":""},{"$f":"IF(OR('Enrollment Form'!$AV30=\"Yes\",'Enrollment Form'!$AV30=\"\"),\"-\",IF(AND('Enrollment Form'!$AV30=\"No\",ISERROR(FIND(\"HMO\",VLOOKUP('Enrollment Form'!G30,'Enrollment Form'!H$11:J$1000,3,FALSE),1))=FALSE,COUNTA('Enrollment Form'!$AW30:$AZ30)=4),\"Y\",\"N\"))","v":"-"},{"$f":"IF($B23=\"N\",\"\",IF('Enrollment Form'!$B30=\"Subscriber\",\"-\",IF(COUNTA('Enrollment Form'!$BE30,'Enrollment Form'!$BG30)=2,\"Y\",\"N\")))","v":""},{"$f":"IF($B23=\"N\",\"\",IF(OR('Enrollment Form'!$AU30=\"\",'Enrollment Form'!$AU30=\"No\"),\"-\",IF(AND('Enrollment Form'!$AU30=\"Yes\",COUNTA('Enrollment Form'!$CK30)=1),\"Y\",\"N\")))","v":""},{"$f":"IF(OR('Enrollment Form'!$CK30=\"\",'Enrollment Form'!$CK30=\"No\"),\"-\",IF(COUNTA('Enrollment Form'!$CM30:$CN30)=2,\"Y\",\"N\"))","v":"-"},{"$f":"IF($B23=\"N\",\"\",IF(COUNTIF('Enrollment Form'!$CZ30:$DO30,\"Other\")=COUNTA('Enrollment Form'!$DF30,'Enrollment Form'!$DA30,'Enrollment Form'!$DK30,'Enrollment Form'!$DP30),\"Y\",\"N\"))","v":""},{"$f":"IF($B23=\"N\",\"\",IF(OR('Enrollment Form'!B30<>\"Subscriber\",'Enrollment Form'!C30=\"ROC\",COUNTIF('Enrollment Form'!AS30:AT30,\"Yes\")>=1),\"-\",IF(AND('Enrollment Form'!C30=\"Enroll\",COUNTIF('Enrollment Form'!AS30:AT30,\"No\")=2,'Enrollment Form'!AU30=\"\"),\"N\",\"Y\")))","v":""},{"$f":"IF(OR(B23=\"N\",'Enrollment Form'!B30<>\"Subscriber\",'Enrollment Form'!C30=\"ROC\",'Enrollment Form'!O30<>\"Multiple of Salary\"),\"-\",IF(COUNTA('Enrollment Form'!T30:U30)<2,\"N\",\"Y\"))","v":"-"},{"$f":"IF(B23=\"N\",\"\",IF(OR('Enrollment Form'!C30=\"ROC\",'Enrollment Form'!B30<>\"Subscriber\",'Enrollment Form'!O30=\"Waive\",'Enrollment Form'!O30=\"\"),\"-\",IF('Enrollment Form'!P30=\"\",\"N\",\"Y\")))","v":""},{"$f":"IF($B23=\"N\",\"\",IF(AND('Enrollment Form'!$C30=\"ROC\",'Enrollment Form'!$DS30<>\"\"),\"Y\",IF(AND('Enrollment Form'!$C30=\"ROC\",'Enrollment Form'!$DS30=\"\"),\"N\",IF(AND('Enrollment Form'!$C30=\"Enroll\",'Enrollment Form'!$B30=\"Subscriber\",'Enrollment Form'!$CQ30=\"No\",'Enrollment Form'!$DS30=\"\"),\"N\",IF(AND('Enrollment Form'!$C30=\"Enroll\",'Enrollment Form'!$B30=\"Subscriber\",'Enrollment Form'!$CQ30=\"Yes\"),\"-\",\"Y\")))))","v":""},{"$f":"IF($B23=\"N\",\"\",IF(AND('Enrollment Form'!$C30=\"ROC\",'Enrollment Form'!$DT30<>\"\"),\"Y\",IF(AND('Enrollment Form'!$C30=\"ROC\",'Enrollment Form'!$DT30=\"\"),\"N\",IF(AND('Enrollment Form'!$C30=\"Enroll\",'Enrollment Form'!$B30=\"Subscriber\",'Enrollment Form'!$CQ30=\"No\",'Enrollment Form'!$DT30=\"\"),\"N\",IF(AND('Enrollment Form'!$C30=\"Enroll\",'Enrollment Form'!$B30=\"Subscriber\",'Enrollment Form'!$CQ30=\"Yes\"),\"-\",\"Y\")))))","v":""},{"$f":"IF('Enrollment Form'!AH30=\"\",\"\",IF(ISERROR(SEARCH(\".\",'Enrollment Form'!AH30,SEARCH(\"@\",'Enrollment Form'!AH30))),\"N\",\"Y\"))","v":""},{"$f":"IF(OR($B23=\"N\",'Enrollment Form'!$G30=\"\"),\"\",IF('Enrollment Form'!$B30<>\"Subscriber\",\"-\",IF(COUNTIF('Enrollment Form'!$AS30:$AT30,\"Yes\")=2,\"N\",\"Y\")))","v":""},{"$f":"IF(OR('Enrollment Form'!$CC30=\"\",'Enrollment Form'!$CC30=\"No\"),\"-\",IF(AND('Enrollment Form'!$CC30=\"Yes\",'Enrollment Form'!$CD30=\"\"),\"N\",\"Y\"))","v":"-"},{"$f":"IF(OR('Enrollment Form'!$CE30=\"\",'Enrollment Form'!$CE30=\"No\"),\"-\",IF(AND('Enrollment Form'!$CE30=\"Yes\",'Enrollment Form'!$CF30=\"\"),\"N\",\"Y\"))","v":"-"},{"$f":"IF(OR('Enrollment Form'!$CG30=\"\",'Enrollment Form'!$CG30=\"No\"),\"-\",IF(AND('Enrollment Form'!$CG30=\"Yes\",'Enrollment Form'!$CH30=\"\"),\"N\",\"Y\"))","v":"-"},{"$f":"IF(OR('Enrollment Form'!$CG30=\"\",'Enrollment Form'!$CG30=\"No\"),\"-\",IF(AND('Enrollment Form'!$CG30=\"Yes\",'Enrollment Form'!$CI30=\"\"),\"N\",\"Y\"))","v":"-"},{"$f":"IF('Enrollment Form'!B30<>\"Subscriber\",\"-\",IF(AND('Enrollment Form'!B30=\"Subscriber\",'Enrollment Form'!C30=\"Enroll\",'Enrollment Form'!AA30=\"\"),\"N\",\"Y\"))","v":"-"},{"$f":"IF(OR('Enrollment Form'!B30=\"Subscriber\",'Enrollment Form'!B30=\"\"),\"-\",IF('Enrollment Form'!BI30=\"\",\"N\",\"Y\"))","v":"-"},{"$f":"IF('Enrollment Form'!B30<>\"Subscriber\",\"-\",IF(AND('Enrollment Form'!B30=\"Subscriber\",'Enrollment Form'!G30=\"\"),\"N\",\"Y\"))","v":"-"},{"$f":"IF('Enrollment Form'!A30=\"\",\"\",IF('Enrollment Form'!B30=\"Subscriber\",\"-\",IF(AND('Enrollment Form'!B30<>\"Subscriber\",'Enrollment Form'!G30='Enrollment Form'!H30),\"N\",\"Y\")))","v":""},0,{"$nulls":6},"20","HMO provider info complete?","If BSC should designate a provider, then all 4 following fields must be populated","AV-AZ"]
[31,{"$f":"IF('Enrollment Form'!$A31<>\"\",\"Y\",\"N\")","v":"N"},{"$f":"IF(AND('Enrollment Form'!$B31=\"\",'Enrollment Form'!$C31<>\"\"),\"N\",IF($B24=\"N\",\"\",\"Y\"))","v":""},{"$f":"IF(OR($B24=\"N\",'Enrollment Form'!G31=\"\"),\"\",IF('Enrollment Form'!$B31<>\"Subscriber\",\"\",IF('Enrollment Form'!$G31='Enrollment Form'!$H31,\"Y\",\"N\")))","v":""},{"$f":"IF($B24=\"N\",\"\",IF(AND(COUNTIFS('Enrollment Form'!$H$11:$H$1000,'Enrollment Form'!$H31,'Enrollment Form'!$B$11:$B$1000,'Enrollment Form'!$B31)>1,'Enrollment Form'!$H31<>\"\"),\"N\",\"Y\"))","v":""},{"$f":"IF($B24=\"N\",\"\",IF(LEN('Enrollment Form'!$Y31)=0,\"\",IF(LEN('Enrollment Form'!$Y31)<>5,\"N\",\"Y\")))","v":""},{"$f":"IF($B24=\"N\",\"\",IF(LEN('Enrollment Form'!$AD31=0),\"\",IF(LEN('Enrollment Form'!$AD31)<>5,\"N\",\"Y\")))","v":""},{"$f":"IF($B24=\"N\",\"\",IF(LEN('Enrollment Form'!$BL31=0),\"\",IF(LEN('Enrollment Form'!$BL31)<>5,\"N\",\"Y\")))","v":""},{"$f":"IF($B24=\"N\",\"\",IF(LEN('Enrollment Form'!$AE31)=0,\"\",IF(LEN('Enrollment Form'!$AE31)<>10,\"N\",\"Y\")))","v":""},{"$f":"IF($B24=\"N\",\"\",IF(LEN('Enrollment Form'!$AF31)=0,\"\",IF(LEN('Enrollment Form'!$AF31)<>10,\"N\",\"Y\")))","v":""},{"$f":"IF('Enrollment Form'!$O31<>\"Graded\",\"-\",IF(AND('Enrollment Form'!$O31=\"Graded\",'Enrollment Form'!$AO31<>\"\"),\"Y\",\"N\"))","v":"-"},{"$f":"IF($B24=\"N\",\"\",IF(OR('Enrollment Form'!$B31<>\"Subscriber\",'Enrollment Form'!$C31=\"ROC\"),\"-\",IF(AND('Enrollment Form'!$B31=\"Subscriber\",'Enrollment Form'!$C31=\"Enroll\",'Enrollment Form'!$AJ31<>\"\"),\"Y\",\"N\")))","v":""},{"$f":"IF($B24=\"N\",\"\",IF(OR('Enrollment Form'!$B31<>\"Subscriber\",'Enrollment Form'!$C31=\"ROC\"),\"-\",IF(AND('Enrollment Form'!$B31=\"Subscriber\",'Enrollment Form'!$C31=\"Enroll\",'Enrollment Form'!$AK31<>\"\"),\"Y\",\"N\")))","v":""},{"$f":"IF($B24=\"N\",\"\",IF(OR('Enrollment Form'!$B31<>\"Subscriber\",'Enrollment Form'!$C31=\"ROC\"),\"-\",IF(AND('Enrollment Form'!$B31=\"Subscriber\",'Enrollment Form'!$C31=\"Enroll\",'Enrollment Form'!$AL31<>\"\"),\"Y\",\"N\")))","v":""},{"$f":"IF($B24=\"N\",\"\",IF(OR('Enrollment Form'!$B31<>\"Subscriber\",'Enrollment Form'!$C31=\"ROC\"),\"-\",IF(AND('Enrollment Form'!$B31=\"Subscriber\",'Enrollment Form'!$C31=\"Enroll\",'Enrollment Form'!$AM31<>\"\"),\"Y\",\"N\")))","v":""},{"$f":"IF($B24=\"N\",\"\",IF(OR('Enrollment Form'!$B31<>\"Subscriber\",'Enrollment Form'!$C31=\"ROC\"),\"-\",IF(AND('Enrollment Form'!$B31=\"Subscriber\",'Enrollment Form'!$C31=\"Enroll\",'Enrollment Form'!$AN31<>\"\"),\"Y\",\"N\")))","v":""},{"$f":"IF($B24=\"N\",\"\",IF(OR('Enrollment Form'!$B31<>\"Subscriber\",'Enrollment Form'!$C31=\"ROC\"),\"-\",IF(AND('Enrollment Form'!$B31=\"Subscriber\",'Enrollment Form'!$C31=\"Enroll\",'Enrollment Form'!$AP31<>\"\"),\"Y\",\"N\")))","v":""},{"$f":"IF($B24=\"N\",\"\",IF($Q24=\"-\",\"-\",IF(AND($Q24=\"Y\",'Enrollment Form'!$AP31=\"No\"),\"-\",IF(AND($Q24=\"Y\",'Enrollment Form'!$AP31=\"Yes\",'Enrollment Form'!$AQ31<>\"\"),\"Y\",\"N\"))))","v":""},{"$f":"IF($B24=\"N\",\"\",IF(OR('Enrollment Form'!$B31<>\"Subscriber\",'Enrollment Form'!$C31=\"ROC\"),\"-\",IF(AND('Enrollment Form'!$B31=\"Subscriber\",'Enrollment Form'!$C31=\"Enroll\",'Enrollment Form'!$CO31<>\"\"),\"Y\",\"N\")))","v":""},{"$f":"IF($B24=\"N\",\"\",IF($S24=\"-\",\"-\",IF(AND($S24=\"Y\",'Enrollment Form'!$CO31=\"No\"),\"-\",IF(AND($S24=\"Y\",'Enrollment Form'!$CO31=\"Yes\",'Enrollment Form'!$CP31<>\"\"),\"Y\",\"N\"))))","v":""},{"$f":"IF(OR('Enrollment Form'!$AV31=\"Yes\",'Enrollment Form'!$AV31=\"\"),\"-\",IF(AND('Enrollment Form'!$AV31=\"No\",ISERROR(FIND(\"HMO\",VLOOKUP('Enrollment Form'!G31,'Enrollment Form'!H$11:J$1000,3,FALSE),1))=FALSE,COUNTA('Enrollment Form'!$AW31:$AZ31)=4),\"Y\",\"N\"))","v":"-"},{"$f":"IF($B24=\"N\",\"\",IF('Enrollment Form'!$B31=\"Subscriber\",\"-\",IF(COUNTA('Enrollment Form'!$BE31,'Enrollment Form'!$BG31)=2,\"Y\",\"N\")))","v":""},{"$f":"IF($B24=\"N\",\"\",IF(OR('Enrollment Form'!$AU31=\"\",'Enrollment Form'!$AU31=\"No\"),\"-\",IF(AND('Enrollment Form'!$AU31=\"Yes\",COUNTA('Enrollment Form'!$CK31)=1),\"Y\",\"N\")))","v":""},{"$f":"IF(OR('Enrollment Form'!$CK31=\"\",'Enrollment Form'!$CK31=\"No\"),\"-\",IF(COUNTA('Enrollment Form'!$CM31:$CN31)=2,\"Y\",\"N\"))","v":"-"},{"$f":"IF($B24=\"N\",\"\",IF(COUNTIF('Enrollment Form'!$CZ31:$DO31,\"Other\")=COUNTA('Enrollment Form'!$DF31,'Enrollment Form'!$DA31,'Enrollment Form'!$DK31,'Enrollment Form'!$DP31),\"Y\",\"N\"))","v":""},{"$f":"IF($B24=\"N\",\"\",IF(OR('Enrollment Form'!B31<>\"Subscriber\",'Enrollment Form'!C31=\"ROC\",COUNTIF('Enrollment Form'!AS31:AT31,\"Yes\")>=1),\"-\",IF(AND('Enrollment Form'!C31=\"Enroll\",COUNTIF('Enrollment Form'!AS31:AT31,\"No\")=2,'Enrollment Form'!AU31=\"\"),\"N\",\"Y\")))","v":""},{"$f":"IF(OR(B24=\"N\",'Enrollment Form'!B31<>\"Subscriber\",'Enrollment Form'!C31=\"ROC\",'Enrollment Form'!O31<>\"Multiple of Salary\"),\"-\",IF(COUNTA('Enrollment Form'!T31:U31)<2,\"N\",\"Y\"))","v":"-"},{"$f":"IF(B24=\"N\",\"\",IF(OR('Enrollment Form'!C31=\"ROC\",'Enrollment Form'!B31<>\"Subscriber\",'Enrollment Form'!O31=\"Waive\",'Enrollment Form'!O31=\"\"),\"-\",IF('Enrollment Form'!P31=\"\",\"N\",\"Y\")))","v":""},{"$f":"IF($B24=\"N\",\"\",IF(AND('Enrollment Form'!$C31=\"ROC\",'Enrollment Form'!$DS31<>\"\"),\"Y\",IF(AND('Enrollment Form'!$C31=\"ROC\",'Enrollment Form'!$DS31=\"\"),\"N\",IF(AND('Enrollment Form'!$C31=\"Enroll\",'Enrollment Form'!$B31=\"Subscriber\",'Enrollment Form'!$CQ31=\"No\",'Enrollment Form'!$DS31=\"\"),\"N\",IF(AND('Enrollment Form'!$C31=\"Enroll\",'Enrollment Form'!$B31=\"Subscriber\",'Enrollment Form'!$CQ31=\"Yes\"),\"-\",\"Y\")))))","v":""},{"$f":"IF($B24=\"N\",\"\",IF(AND('Enrollment Form'!$C31=\"ROC\",'Enrollment Form'!$DT31<>\"\"),\"Y\",IF(AND('Enrollment Form'!$C31=\"ROC\",'Enrollment Form'!$DT31=\"\"),\"N\",IF(AND('Enrollment Form'!$C31=\"Enroll\",'Enrollment Form'!$B31=\"Subscriber\",'Enrollment Form'!$CQ31=\"No\",'Enrollment Form'!$DT31=\"\"),\"N\",IF(AND('Enrollment Form'!$C31=\"Enroll\",'Enrollment Form'!$B31=\"Subscriber\",'Enrollment Form'!$CQ31=\"Yes\"),\"-\",\"Y\")))))","v":""},{"$f":"IF('Enrollment Form'!AH31=\"\",\"\",IF(ISERROR(SEARCH(\".\",'Enrollment Form'!AH31,SEARCH(\"@\",'Enrollment Form'!AH31))),\"N\",\"Y\"))","v":""},{"$f":"IF(OR($B24=\"N\",'Enrollment Form'!$G31=\"\"),\"\",IF('Enrollment Form'!$B31<>\"Subscriber\",\"-\",IF(COUNTIF('Enrollment Form'!$AS31:$AT31,\"Yes\")=2,\"N\",\"Y\")))","v":""},{"$f":"IF(OR('Enrollment Form'!$CC31=\"\",'Enrollment Form'!$CC31=\"No\"),\"-\",IF(AND('Enrollment Form'!$CC31=\"Yes\",'Enrollment Form'!$CD31=\"\"),\"N\",\"Y\"))","v":"-"},{"$f":"IF(OR('Enrollment Form'!$CE31=\"\",'Enrollment Form'!$CE31=\"No\"),\"-\",IF(AND('Enrollment Form'!$CE31=\"Yes\",'Enrollment Form'!$CF31=\"\"),\"N\",\"Y\"))","v":"-"},{"$f":"IF(OR('Enrollment Form'!$CG31=\"\",'Enrollment Form'!$CG31=\"No\"),\"-\",IF(AND('Enrollment Form'!$CG31=\"Yes\",'Enrollment Form'!$CH31=\"\"),\"N\",\"Y\"))","v":"-"},{"$f":"IF(OR('Enrollment Form'!$CG31=\"\",'Enrollment Form'!$CG31=\"No\"),\"-\",IF(AND('Enrollment Form'!$CG31=\"Yes\",'Enrollment Form'!$CI31=\"\"),\"N\",\"Y\"))","v":"-"},{"$f":"IF('Enrollment Form'!B31<>\"Subscriber\",\"-\",IF(AND('Enrollment Form'!B31=\"Subscriber\",'Enrollment Form'!C31=\"Enroll\",'Enrollment Form'!AA31=\"\"),\"N\",\"Y\"))","v":"-"},{"$f":"IF(OR('Enrollment Form'!B31=\"Subscriber\",'Enrollment Form'!B31=\"\"),\"-\",IF('Enrollment Form'!BI31=\"\",\"N\",\"Y\"))","v":"-"},{"$f":"IF('Enrollment Form'!B31<>\"Subscriber\",\"-\",IF(AND('Enrollment Form'!B31=\"Subscriber\",'Enrollment Form'!G31=\"\"),\"N\",\"Y\"))","v":"-"},{"$f":"IF('Enrollment Form'!A31=\"\",\"\",IF('Enrollment Form'!B31=\"Subscriber\",\"-\",IF(AND('Enrollment Form'!B31<>\"Subscriber\",'Enrollment Form'!G31='Enrollment Form'!H31),\"N\",\"Y\")))","v":""},0,{"$nulls":6},"21","Dep DOB and Gender filled?","If Applicant Type <> \"Subscriber\", then Dependent DOB and Gender must be populated","BE,BG"]
[32,{"$f":"IF('Enrollment Form'!$A32<>\"\",\"Y\",\"N\")","v":"N"},{"$f":"IF(AND('Enrollment Form'!$B32=\"\",'Enrollment Form'!$C32<>\"\"),\"N\",IF($B25=\"N\",\"\",\"Y\"))","v":""},{"$f":"IF(OR($B25=\"N\",'Enrollment Form'!G32=\"\"),\"\",IF('Enrollment Form'!$B32<>\"Subscriber\",\"\",IF('Enrollment Form'!$G32='Enrollment Form'!$H32,\"Y\",\"N\")))","v":""},{"$f":"IF($B25=\"N\",\"\",IF(AND(COUNTIFS('Enrollment Form'!$H$11:$H$1000,'Enrollment Form'!$H32,'Enrollment Form'!$B$11:$B$1000,'Enrollment Form'!$B32)>1,'Enrollment Form'!$H32<>\"\"),\"N\",\"Y\"))","v":""},{"$f":"IF($B25=\"N\",\"\",IF(LEN('Enrollment Form'!$Y32)=0,\"\",IF(LEN('Enrollment Form'!$Y32)<>5,\"N\",\"Y\")))","v":""},{"$f":"IF($B25=\"N\",\"\",IF(LEN('Enrollment Form'!$AD32=0),\"\",IF(LEN('Enrollment Form'!$AD32)<>5,\"N\",\"Y\")))","v":""},{"$f":"IF($B25=\"N\",\"\",IF(LEN('Enrollment Form'!$BL32=0),\"\",IF(LEN('Enrollment Form'!$BL32)<>5,\"N\",\"Y\")))","v":""},{"$f":"IF($B25=\"N\",\"\",IF(LEN('Enrollment Form'!$AE32)=0,\"\",IF(LEN('Enrollment Form'!$AE32)<>10,\"N\",\"Y\")))","v":""},{"$f":"IF($B25=\"N\",\"\",IF(LEN('Enrollment Form'!$AF32)=0,\"\",IF(LEN('Enrollment Form'!$AF32)<>10,\"N\",\"Y\")))","v":""},{"$f":"IF('Enrollment Form'!$O32<>\"Graded\",\"-\",IF(AND('Enrollment Form'!$O32=\"Graded\",'Enrollment Form'!$AO32<>\"\"),\"Y\",\"N\"))","v":"-"},{"$f":"IF($B25=\"N\",\"\",IF(OR('Enrollment Form'!$B32<>\"Subscriber\",'Enrollment Form'!$C32=\"ROC\"),\"-\",IF(AND('Enrollment Form'!$B32=\"Subscriber\",'Enrollment Form'!$C32=\"Enroll\",'Enrollment Form'!$AJ32<>\"\"),\"Y\",\"N\")))","v":""},{"$f":"IF($B25=\"N\",\"\",IF(OR('Enrollment Form'!$B32<>\"Subscriber\",'Enrollment Form'!$C32=\"ROC\"),\"-\",IF(AND('Enrollment Form'!$B32=\"Subscriber\",'Enrollment Form'!$C32=\"Enroll\",'Enrollment Form'!$AK32<>\"\"),\"Y\",\"N\")))","v":""},{"$f":"IF($B25=\"N\",\"\",IF(OR('Enrollment Form'!$B32<>\"Subscriber\",'Enrollment Form'!$C32=\"ROC\"),\"-\",IF(AND('Enrollment Form'!$B32=\"Subscriber\",'Enrollment Form'!$C32=\"Enroll\",'Enrollment Form'!$AL32<>\"\"),\"Y\",\"N\")))","v":""},{"$f":"IF($B25=\"N\",\"\",IF(OR('Enrollment Form'!$B32<>\"Subscriber\",'Enrollment Form'!$C32=\"ROC\"),\"-\",IF(AND('Enrollment Form'!$B32=\"Subscriber\",'Enrollment Form'!$C32=\"Enroll\",'Enrollment Form'!$AM32<>\"\"),\"Y\",\"N\")))","v":""},{"$f":"IF($B25=\"N\",\"\",IF(OR('Enrollment Form'!$B32<>\"Subscriber\",'Enrollment Form'!$C32=\"ROC\"),\"-\",IF(AND('Enrollment Form'!$B32=\"Subscriber\",'Enrollment Form'!$C32=\"Enroll\",'Enrollment Form'!$AN32<>\"\"),\"Y\",\"N\")))","v":""},{"$f":"IF($B25=\"N\",\"\",IF(OR('Enrollment Form'!$B32<>\"Subscriber\",'Enrollment Form'!$C32=\"ROC\"),\"-\",IF(AND('Enrollment Form'!$B32=\"Subscriber\",'Enrollment Form'!$C32=\"Enroll\",'Enrollment Form'!$AP32<>\"\"),\"Y\",\"N\")))","v":""},{"$f":"IF($B25=\"N\",\"\",IF($Q25=\"-\",\"-\",IF(AND($Q25=\"Y\",'Enrollment Form'!$AP32=\"No\"),\"-\",IF(AND($Q25=\"Y\",'Enrollment Form'!$AP32=\"Yes\",'Enrollment Form'!$AQ32<>\"\"),\"Y\",\"N\"))))","v":""},{"$f":"IF($B25=\"N\",\"\",IF(OR('Enrollment Form'!$B32<>\"Subscriber\",'Enrollment Form'!$C32=\"ROC\"),\"-\",IF(AND('Enrollment Form'!$B32=\"Subscriber\",'Enrollment Form'!$C32=\"Enroll\",'Enrollment Form'!$CO32<>\"\"),\"Y\",\"N\")))","v":""},{"$f":"IF($B25=\"N\",\"\",IF($S25=\"-\",\"-\",IF(AND($S25=\"Y\",'Enrollment Form'!$CO32=\"No\"),\"-\",IF(AND($S25=\"Y\",'Enrollment Form'!$CO32=\"Yes\",'Enrollment Form'!$CP32<>\"\"),\"Y\",\"N\"))))","v":""},{"$f":"IF(OR('Enrollment Form'!$AV32=\"Yes\",'Enrollment Form'!$AV32=\"\"),\"-\",IF(AND('Enrollment Form'!$AV32=\"No\",ISERROR(FIND(\"HMO\",VLOOKUP('Enrollment Form'!G32,'Enrollment Form'!H$11:J$1000,3,FALSE),1))=FALSE,COUNTA('Enrollment Form'!$AW32:$AZ32)=4),\"Y\",\"N\"))","v":"-"},{"$f":"IF($B25=\"N\",\"\",IF('Enrollment Form'!$B32=\"Subscriber\",\"-\",IF(COUNTA('Enrollment Form'!$BE32,'Enrollment Form'!$BG32)=2,\"Y\",\"N\")))","v":""},{"$f":"IF($B25=\"N\",\"\",IF(OR('Enrollment Form'!$AU32=\"\",'Enrollment Form'!$AU32=\"No\"),\"-\",IF(AND('Enrollment Form'!$AU32=\"Yes\",COUNTA('Enrollment Form'!$CK32)=1),\"Y\",\"N\")))","v":""},{"$f":"IF(OR('Enrollment Form'!$CK32=\"\",'Enrollment Form'!$CK32=\"No\"),\"-\",IF(COUNTA('Enrollment Form'!$CM32:$CN32)=2,\"Y\",\"N\"))","v":"-"},{"$f":"IF($B25=\"N\",\"\",IF(COUNTIF('Enrollment Form'!$CZ32:$DO32,\"Other\")=COUNTA('Enrollment Form'!$DF32,'Enrollment Form'!$DA32,'Enrollment Form'!$DK32,'Enrollment Form'!$DP32),\"Y\",\"N\"))","v":""},{"$f":"IF($B25=\"N\",\"\",IF(OR('Enrollment Form'!B32<>\"Subscriber\",'Enrollment Form'!C32=\"ROC\",COUNTIF('Enrollment Form'!AS32:AT32,\"Yes\")>=1),\"-\",IF(AND('Enrollment Form'!C32=\"Enroll\",COUNTIF('Enrollment Form'!AS32:AT32,\"No\")=2,'Enrollment Form'!AU32=\"\"),\"N\",\"Y\")))","v":""},{"$f":"IF(OR(B25=\"N\",'Enrollment Form'!B32<>\"Subscriber\",'Enrollment Form'!C32=\"ROC\",'Enrollment Form'!O32<>\"Multiple of Salary\"),\"-\",IF(COUNTA('Enrollment Form'!T32:U32)<2,\"N\",\"Y\"))","v":"-"},{"$f":"IF(B25=\"N\",\"\",IF(OR('Enrollment Form'!C32=\"ROC\",'Enrollment Form'!B32<>\"Subscriber\",'Enrollment Form'!O32=\"Waive\",'Enrollment Form'!O32=\"\"),\"-\",IF('Enrollment Form'!P32=\"\",\"N\",\"Y\")))","v":""},{"$f":"IF($B25=\"N\",\"\",IF(AND('Enrollment Form'!$C32=\"ROC\",'Enrollment Form'!$DS32<>\"\"),\"Y\",IF(AND('Enrollment Form'!$C32=\"ROC\",'Enrollment Form'!$DS32=\"\"),\"N\",IF(AND('Enrollment Form'!$C32=\"Enroll\",'Enrollment Form'!$B32=\"Subscriber\",'Enrollment Form'!$CQ32=\"No\",'Enrollment Form'!$DS32=\"\"),\"N\",IF(AND('Enrollment Form'!$C32=\"Enroll\",'Enrollment Form'!$B32=\"Subscriber\",'Enrollment Form'!$CQ32=\"Yes\"),\"-\",\"Y\")))))","v":""},{"$f":"IF($B25=\"N\",\"\",IF(AND('Enrollment Form'!$C32=\"ROC\",'Enrollment Form'!$DT32<>\"\"),\"Y\",IF(AND('Enrollment Form'!$C32=\"ROC\",'Enrollment Form'!$DT32=\"\"),\"N\",IF(AND('Enrollment Form'!$C32=\"Enroll\",'Enrollment Form'!$B32=\"Subscriber\",'Enrollment Form'!$CQ32=\"No\",'Enrollment Form'!$DT32=\"\"),\"N\",IF(AND('Enrollment Form'!$C32=\"Enroll\",'Enrollment Form'!$B32=\"Subscriber\",'Enrollment Form'!$CQ32=\"Yes\"),\"-\",\"Y\")))))","v":""},{"$f":"IF('Enrollment Form'!AH32=\"\",\"\",IF(ISERROR(SEARCH(\".\",'Enrollment Form'!AH32,SEARCH(\"@\",'Enrollment Form'!AH32))),\"N\",\"Y\"))","v":""},{"$f":"IF(OR($B25=\"N\",'Enrollment Form'!$G32=\"\"),\"\",IF('Enrollment Form'!$B32<>\"Subscriber\",\"-\",IF(COUNTIF('Enrollment Form'!$AS32:$AT32,\"Yes\")=2,\"N\",\"Y\")))","v":""},{"$f":"IF(OR('Enrollment Form'!$CC32=\"\",'Enrollment Form'!$CC32=\"No\"),\"-\",IF(AND('Enrollment Form'!$CC32=\"Yes\",'Enrollment Form'!$CD32=\"\"),\"N\",\"Y\"))","v":"-"},{"$f":"IF(OR('Enrollment Form'!$CE32=\"\",'Enrollment Form'!$CE32=\"No\"),\"-\",IF(AND('Enrollment Form'!$CE32=\"Yes\",'Enrollment Form'!$CF32=\"\"),\"N\",\"Y\"))","v":"-"},{"$f":"IF(OR('Enrollment Form'!$CG32=\"\",'Enrollment Form'!$CG32=\"No\"),\"-\",IF(AND('Enrollment Form'!$CG32=\"Yes\",'Enrollment Form'!$CH32=\"\"),\"N\",\"Y\"))","v":"-"},{"$f":"IF(OR('Enrollment Form'!$CG32=\"\",'Enrollment Form'!$CG32=\"No\"),\"-\",IF(AND('Enrollment Form'!$CG32=\"Yes\",'Enrollment Form'!$CI32=\"\"),\"N\",\"Y\"))","v":"-"},{"$f":"IF('Enrollment Form'!B32<>\"Subscriber\",\"-\",IF(AND('Enrollment Form'!B32=\"Subscriber\",'Enrollment Form'!C32=\"Enroll\",'Enrollment Form'!AA32=\"\"),\"N\",\"Y\"))","v":"-"},{"$f":"IF(OR('Enrollment Form'!B32=\"Subscriber\",'Enrollment Form'!B32=\"\"),\"-\",IF('Enrollment Form'!BI32=\"\",\"N\",\"Y\"))","v":"-"},{"$f":"IF('Enrollment Form'!B32<>\"Subscriber\",\"-\",IF(AND('Enrollment Form'!B32=\"Subscriber\",'Enrollment Form'!G32=\"\"),\"N\",\"Y\"))","v":"-"},{"$f":"IF('Enrollment Form'!A32=\"\",\"\",IF('Enrollment Form'!B32=\"Subscriber\",\"-\",IF(AND('Enrollment Form'!B32<>\"Subscriber\",'Enrollment Form'!G32='Enrollment Form'!H32),\"N\",\"Y\")))","v":""},0,{"$nulls":6},"22","Enrolling in COBRA filled?","If existing/enrolling in CalCOBRA, then both fields need to be populated","AU,CK"]
[33,{"$f":"IF('Enrollment Form'!$A33<>\"\",\"Y\",\"N\")","v":"N"},{"$f":"IF(AND('Enrollment Form'!$B33=\"\",'Enrollment Form'!$C33<>\"\"),\"N\",IF($B26=\"N\",\"\",\"Y\"))","v":""},{"$f":"IF(OR($B26=\"N\",'Enrollment Form'!G33=\"\"),\"\",IF('Enrollment Form'!$B33<>\"Subscriber\",\"\",IF('Enrollment Form'!$G33='Enrollment Form'!$H33,\"Y\",\"N\")))","v":""},{"$f":"IF($B26=\"N\",\"\",IF(AND(COUNTIFS('Enrollment Form'!$H$11:$H$1000,'Enrollment Form'!$H33,'Enrollment Form'!$B$11:$B$1000,'Enrollment Form'!$B33)>1,'Enrollment Form'!$H33<>\"\"),\"N\",\"Y\"))","v":""},{"$f":"IF($B26=\"N\",\"\",IF(LEN('Enrollment Form'!$Y33)=0,\"\",IF(LEN('Enrollment Form'!$Y33)<>5,\"N\",\"Y\")))","v":""},{"$f":"IF($B26=\"N\",\"\",IF(LEN('Enrollment Form'!$AD33=0),\"\",IF(LEN('Enrollment Form'!$AD33)<>5,\"N\",\"Y\")))","v":""},{"$f":"IF($B26=\"N\",\"\",IF(LEN('Enrollment Form'!$BL33=0),\"\",IF(LEN('Enrollment Form'!$BL33)<>5,\"N\",\"Y\")))","v":""},{"$f":"IF($B26=\"N\",\"\",IF(LEN('Enrollment Form'!$AE33)=0,\"\",IF(LEN('Enrollment Form'!$AE33)<>10,\"N\",\"Y\")))","v":""},{"$f":"IF($B26=\"N\",\"\",IF(LEN('Enrollment Form'!$AF33)=0,\"\",IF(LEN('Enrollment Form'!$AF33)<>10,\"N\",\"Y\")))","v":""},{"$f":"IF('Enrollment Form'!$O33<>\"Graded\",\"-\",IF(AND('Enrollment Form'!$O33=\"Graded\",'Enrollment Form'!$AO33<>\"\"),\"Y\",\"N\"))","v":"-"},{"$f":"IF($B26=\"N\",\"\",IF(OR('Enrollment Form'!$B33<>\"Subscriber\",'Enrollment Form'!$C33=\"ROC\"),\"-\",IF(AND('Enrollment Form'!$B33=\"Subscriber\",'Enrollment Form'!$C33=\"Enroll\",'Enrollment Form'!$AJ33<>\"\"),\"Y\",\"N\")))","v":""},{"$f":"IF($B26=\"N\",\"\",IF(OR('Enrollment Form'!$B33<>\"Subscriber\",'Enrollment Form'!$C33=\"ROC\"),\"-\",IF(AND('Enrollment Form'!$B33=\"Subscriber\",'Enrollment Form'!$C33=\"Enroll\",'Enrollment Form'!$AK33<>\"\"),\"Y\",\"N\")))","v":""},{"$f":"IF($B26=\"N\",\"\",IF(OR('Enrollment Form'!$B33<>\"Subscriber\",'Enrollment Form'!$C33=\"ROC\"),\"-\",IF(AND('Enrollment Form'!$B33=\"Subscriber\",'Enrollment Form'!$C33=\"Enroll\",'Enrollment Form'!$AL33<>\"\"),\"Y\",\"N\")))","v":""},{"$f":"IF($B26=\"N\",\"\",IF(OR('Enrollment Form'!$B33<>\"Subscriber\",'Enrollment Form'!$C33=\"ROC\"),\"-\",IF(AND('Enrollment Form'!$B33=\"Subscriber\",'Enrollment Form'!$C33=\"Enroll\",'Enrollment Form'!$AM33<>\"\"),\"Y\",\"N\")))","v":""},{"$f":"IF($B26=\"N\",\"\",IF(OR('Enrollment Form'!$B33<>\"Subscriber\",'Enrollment Form'!$C33=\"ROC\"),\"-\",IF(AND('Enrollment Form'!$B33=\"Subscriber\",'Enrollment Form'!$C33=\"Enroll\",'Enrollment Form'!$AN33<>\"\"),\"Y\",\"N\")))","v":""},{"$f":"IF($B26=\"N\",\"\",IF(OR('Enrollment Form'!$B33<>\"Subscriber\",'Enrollment Form'!$C33=\"ROC\"),\"-\",IF(AND('Enrollment Form'!$B33=\"Subscriber\",'Enrollment Form'!$C33=\"Enroll\",'Enrollment Form'!$AP33<>\"\"),\"Y\",\"N\")))","v":""},{"$f":"IF($B26=\"N\",\"\",IF($Q26=\"-\",\"-\",IF(AND($Q26=\"Y\",'Enrollment Form'!$AP33=\"No\"),\"-\",IF(AND($Q26=\"Y\",'Enrollment Form'!$AP33=\"Yes\",'Enrollment Form'!$AQ33<>\"\"),\"Y\",\"N\"))))","v":""},{"$f":"IF($B26=\"N\",\"\",IF(OR('Enrollment Form'!$B33<>\"Subscriber\",'Enrollment Form'!$C33=\"ROC\"),\"-\",IF(AND('Enrollment Form'!$B33=\"Subscriber\",'Enrollment Form'!$C33=\"Enroll\",'Enrollment Form'!$CO33<>\"\"),\"Y\",\"N\")))","v":""},{"$f":"IF($B26=\"N\",\"\",IF($S26=\"-\",\"-\",IF(AND($S26=\"Y\",'Enrollment Form'!$CO33=\"No\"),\"-\",IF(AND($S26=\"Y\",'Enrollment Form'!$CO33=\"Yes\",'Enrollment Form'!$CP33<>\"\"),\"Y\",\"N\"))))","v":""},{"$f":"IF(OR('Enrollment Form'!$AV33=\"Yes\",'Enrollment Form'!$AV33=\"\"),\"-\",IF(AND('Enrollment Form'!$AV33=\"No\",ISERROR(FIND(\"HMO\",VLOOKUP('Enrollment Form'!G33,'Enrollment Form'!H$11:J$1000,3,FALSE),1))=FALSE,COUNTA('Enrollment Form'!$AW33:$AZ33)=4),\"Y\",\"N\"))","v":"-"},{"$f":"IF($B26=\"N\",\"\",IF('Enrollment Form'!$B33=\"Subscriber\",\"-\",IF(COUNTA('Enrollment Form'!$BE33,'Enrollment Form'!$BG33)=2,\"Y\",\"N\")))","v":""},{"$f":"IF($B26=\"N\",\"\",IF(OR('Enrollment Form'!$AU33=\"\",'Enrollment Form'!$AU33=\"No\"),\"-\",IF(AND('Enrollment Form'!$AU33=\"Yes\",COUNTA('Enrollment Form'!$CK33)=1),\"Y\",\"N\")))","v":""},{"$f":"IF(OR('Enrollment Form'!$CK33=\"\",'Enrollment Form'!$CK33=\"No\"),\"-\",IF(COUNTA('Enrollment Form'!$CM33:$CN33)=2,\"Y\",\"N\"))","v":"-"},{"$f":"IF($B26=\"N\",\"\",IF(COUNTIF('Enrollment Form'!$CZ33:$DO33,\"Other\")=COUNTA('Enrollment Form'!$DF33,'Enrollment Form'!$DA33,'Enrollment Form'!$DK33,'Enrollment Form'!$DP33),\"Y\",\"N\"))","v":""},{"$f":"IF($B26=\"N\",\"\",IF(OR('Enrollment Form'!B33<>\"Subscriber\",'Enrollment Form'!C33=\"ROC\",COUNTIF('Enrollment Form'!AS33:AT33,\"Yes\")>=1),\"-\",IF(AND('Enrollment Form'!C33=\"Enroll\",COUNTIF('Enrollment Form'!AS33:AT33,\"No\")=2,'Enrollment Form'!AU33=\"\"),\"N\",\"Y\")))","v":""},{"$f":"IF(OR(B26=\"N\",'Enrollment Form'!B33<>\"Subscriber\",'Enrollment Form'!C33=\"ROC\",'Enrollment Form'!O33<>\"Multiple of Salary\"),\"-\",IF(COUNTA('Enrollment Form'!T33:U33)<2,\"N\",\"Y\"))","v":"-"},{"$f":"IF(B26=\"N\",\"\",IF(OR('Enrollment Form'!C33=\"ROC\",'Enrollment Form'!B33<>\"Subscriber\",'Enrollment Form'!O33=\"Waive\",'Enrollment Form'!O33=\"\"),\"-\",IF('Enrollment Form'!P33=\"\",\"N\",\"Y\")))","v":""},{"$f":"IF($B26=\"N\",\"\",IF(AND('Enrollment Form'!$C33=\"ROC\",'Enrollment Form'!$DS33<>\"\"),\"Y\",IF(AND('Enrollment Form'!$C33=\"ROC\",'Enrollment Form'!$DS33=\"\"),\"N\",IF(AND('Enrollment Form'!$C33=\"Enroll\",'Enrollment Form'!$B33=\"Subscriber\",'Enrollment Form'!$CQ33=\"No\",'Enrollment Form'!$DS33=\"\"),\"N\",IF(AND('Enrollment Form'!$C33=\"Enroll\",'Enrollment Form'!$B33=\"Subscriber\",'Enrollment Form'!$CQ33=\"Yes\"),\"-\",\"Y\")))))","v":""},{"$f":"IF($B26=\"N\",\"\",IF(AND('Enrollment Form'!$C33=\"ROC\",'Enrollment Form'!$DT33<>\"\"),\"Y\",IF(AND('Enrollment Form'!$C33=\"ROC\",'Enrollment Form'!$DT33=\"\"),\"N\",IF(AND('Enrollment Form'!$C33=\"Enroll\",'Enrollment Form'!$B33=\"Subscriber\",'Enrollment Form'!$CQ33=\"No\",'Enrollment Form'!$DT33=\"\"),\"N\",IF(AND('Enrollment Form'!$C33=\"Enroll\",'Enrollment Form'!$B33=\"Subscriber\",'Enrollment Form'!$CQ33=\"Yes\"),\"-\",\"Y\")))))","v":""},{"$f":"IF('Enrollment Form'!AH33=\"\",\"\",IF(ISERROR(SEARCH(\".\",'Enrollment Form'!AH33,SEARCH(\"@\",'Enrollment Form'!AH33))),\"N\",\"Y\"))","v":""},{"$f":"IF(OR($B26=\"N\",'Enrollment Form'!$G33=\"\"),\"\",IF('Enrollment Form'!$B33<>\"Subscriber\",\"-\",IF(COUNTIF('Enrollment Form'!$AS33:$AT33,\"Yes\")=2,\"N\",\"Y\")))","v":""},{"$f":"IF(OR('Enrollment Form'!$CC33=\"\",'Enrollment Form'!$CC33=\"No\"),\"-\",IF(AND('Enrollment Form'!$CC33=\"Yes\",'Enrollment Form'!$CD33=\"\"),\"N\",\"Y\"))","v":"-"},{"$f":"IF(OR('Enrollment Form'!$CE33=\"\",'Enrollment Form'!$CE33=\"No\"),\"-\",IF(AND('Enrollment Form'!$CE33=\"Yes\",'Enrollment Form'!$CF33=\"\"),\"N\",\"Y\"))","v":"-"},{"$f":"IF(OR('Enrollment Form'!$CG33=\"\",'Enrollment Form'!$CG33=\"No\"),\"-\",IF(AND('Enrollment Form'!$CG33=\"Yes\",'Enrollment Form'!$CH33=\"\"),\"N\",\"Y\"))","v":"-"},{"$f":"IF(OR('Enrollment Form'!$CG33=\"\",'Enrollment Form'!$CG33=\"No\"),\"-\",IF(AND('Enrollment Form'!$CG33=\"Yes\",'Enrollment Form'!$CI33=\"\"),\"N\",\"Y\"))","v":"-"},{"$f":"IF('Enrollment Form'!B33<>\"Subscriber\",\"-\",IF(AND('Enrollment Form'!B33=\"Subscriber\",'Enrollment Form'!C33=\"Enroll\",'Enrollment Form'!AA33=\"\"),\"N\",\"Y\"))","v":"-"},{"$f":"IF(OR('Enrollment Form'!B33=\"Subscriber\",'Enrollment Form'!B33=\"\"),\"-\",IF('Enrollment Form'!BI33=\"\",\"N\",\"Y\"))","v":"-"},{"$f":"IF('Enrollment Form'!B33<>\"Subscriber\",\"-\",IF(AND('Enrollment Form'!B33=\"Subscriber\",'Enrollment Form'!G33=\"\"),\"N\",\"Y\"))","v":"-"},{"$f":"IF('Enrollment Form'!A33=\"\",\"\",IF('Enrollment Form'!B33=\"Subscriber\",\"-\",IF(AND('Enrollment Form'!B33<>\"Subscriber\",'Enrollment Form'!G33='Enrollment Form'!H33),\"N\",\"Y\")))","v":""},0,{"$nulls":6},"23","COBRA qual Reason & Date filled?","If original qualifying date is populated, event reason needed too","CM-CN"]
[34,{"$f":"IF('Enrollment Form'!$A34<>\"\",\"Y\",\"N\")","v":"N"},{"$f":"IF(AND('Enrollment Form'!$B34=\"\",'Enrollment Form'!$C34<>\"\"),\"N\",IF($B27=\"N\",\"\",\"Y\"))","v":""},{"$f":"IF(OR($B27=\"N\",'Enrollment Form'!G34=\"\"),\"\",IF('Enrollment Form'!$B34<>\"Subscriber\",\"\",IF('Enrollment Form'!$G34='Enrollment Form'!$H34,\"Y\",\"N\")))","v":""},{"$f":"IF($B27=\"N\",\"\",IF(AND(COUNTIFS('Enrollment Form'!$H$11:$H$1000,'Enrollment Form'!$H34,'Enrollment Form'!$B$11:$B$1000,'Enrollment Form'!$B34)>1,'Enrollment Form'!$H34<>\"\"),\"N\",\"Y\"))","v":""},{"$f":"IF($B27=\"N\",\"\",IF(LEN('Enrollment Form'!$Y34)=0,\"\",IF(LEN('Enrollment Form'!$Y34)<>5,\"N\",\"Y\")))","v":""},{"$f":"IF($B27=\"N\",\"\",IF(LEN('Enrollment Form'!$AD34=0),\"\",IF(LEN('Enrollment Form'!$AD34)<>5,\"N\",\"Y\")))","v":""},{"$f":"IF($B27=\"N\",\"\",IF(LEN('Enrollment Form'!$BL34=0),\"\",IF(LEN('Enrollment Form'!$BL34)<>5,\"N\",\"Y\")))","v":""},{"$f":"IF($B27=\"N\",\"\",IF(LEN('Enrollment Form'!$AE34)=0,\"\",IF(LEN('Enrollment Form'!$AE34)<>10,\"N\",\"Y\")))","v":""},{"$f":"IF($B27=\"N\",\"\",IF(LEN('Enrollment Form'!$AF34)=0,\"\",IF(LEN('Enrollment Form'!$AF34)<>10,\"N\",\"Y\")))","v":""},{"$f":"IF('Enrollment Form'!$O34<>\"Graded\",\"-\",IF(AND('Enrollment Form'!$O34=\"Graded\",'Enrollment Form'!$AO34<>\"\"),\"Y\",\"N\"))","v":"-"},{"$f":"IF($B27=\"N\",\"\",IF(OR('Enrollment Form'!$B34<>\"Subscriber\",'Enrollment Form'!$C34=\"ROC\"),\"-\",IF(AND('Enrollment Form'!$B34=\"Subscriber\",'Enrollment Form'!$C34=\"Enroll\",'Enrollment Form'!$AJ34<>\"\"),\"Y\",\"N\")))","v":""},{"$f":"IF($B27=\"N\",\"\",IF(OR('Enrollment Form'!$B34<>\"Subscriber\",'Enrollment Form'!$C34=\"ROC\"),\"-\",IF(AND('Enrollment Form'!$B34=\"Subscriber\",'Enrollment Form'!$C34=\"Enroll\",'Enrollment Form'!$AK34<>\"\"),\"Y\",\"N\")))","v":""},{"$f":"IF($B27=\"N\",\"\",IF(OR('Enrollment Form'!$B34<>\"Subscriber\",'Enrollment Form'!$C34=\"ROC\"),\"-\",IF(AND('Enrollment Form'!$B34=\"Subscriber\",'Enrollment Form'!$C34=\"Enroll\",'Enrollment Form'!$AL34<>\"\"),\"Y\",\"N\")))","v":""},{"$f":"IF($B27=\"N\",\"\",IF(OR('Enrollment Form'!$B34<>\"Subscriber\",'Enrollment Form'!$C34=\"ROC\"),\"-\",IF(AND('Enrollment Form'!$B34=\"Subscriber\",'Enrollment Form'!$C34=\"Enroll\",'Enrollment Form'!$AM34<>\"\"),\"Y\",\"N\")))","v":""},{"$f":"IF($B27=\"N\",\"\",IF(OR('Enrollment Form'!$B34<>\"Subscriber\",'Enrollment Form'!$C34=\"ROC\"),\"-\",IF(AND('Enrollment Form'!$B34=\"Subscriber\",'Enrollment Form'!$C34=\"Enroll\",'Enrollment Form'!$AN34<>\"\"),\"Y\",\"N\")))","v":""},{"$f":"IF($B27=\"N\",\"\",IF(OR('Enrollment Form'!$B34<>\"Subscriber\",'Enrollment Form'!$C34=\"ROC\"),\"-\",IF(AND('Enrollment Form'!$B34=\"Subscriber\",'Enrollment Form'!$C34=\"Enroll\",'Enrollment Form'!$AP34<>\"\"),\"Y\",\"N\")))","v":""},{"$f":"IF($B27=\"N\",\"\",IF($Q27=\"-\",\"-\",IF(AND($Q27=\"Y\",'Enrollment Form'!$AP34=\"No\"),\"-\",IF(AND($Q27=\"Y\",'Enrollment Form'!$AP34=\"Yes\",'Enrollment Form'!$AQ34<>\"\"),\"Y\",\"N\"))))","v":""},{"$f":"IF($B27=\"N\",\"\",IF(OR('Enrollment Form'!$B34<>\"Subscriber\",'Enrollment Form'!$C34=\"ROC\"),\"-\",IF(AND('Enrollment Form'!$B34=\"Subscriber\",'Enrollment Form'!$C34=\"Enroll\",'Enrollment Form'!$CO34<>\"\"),\"Y\",\"N\")))","v":""},{"$f":"IF($B27=\"N\",\"\",IF($S27=\"-\",\"-\",IF(AND($S27=\"Y\",'Enrollment Form'!$CO34=\"No\"),\"-\",IF(AND($S27=\"Y\",'Enrollment Form'!$CO34=\"Yes\",'Enrollment Form'!$CP34<>\"\"),\"Y\",\"N\"))))","v":""},{"$f":"IF(OR('Enrollment Form'!$AV34=\"Yes\",'Enrollment Form'!$AV34=\"\"),\"-\",IF(AND('Enrollment Form'!$AV34=\"No\",ISERROR(FIND(\"HMO\",VLOOKUP('Enrollment Form'!G34,'Enrollment Form'!H$11:J$1000,3,FALSE),1))=FALSE,COUNTA('Enrollment Form'!$AW34:$AZ34)=4),\"Y\",\"N\"))","v":"-"},{"$f":"IF($B27=\"N\",\"\",IF('Enrollment Form'!$B34=\"Subscriber\",\"-\",IF(COUNTA('Enrollment Form'!$BE34,'Enrollment Form'!$BG34)=2,\"Y\",\"N\")))","v":""},{"$f":"IF($B27=\"N\",\"\",IF(OR('Enrollment Form'!$AU34=\"\",'Enrollment Form'!$AU34=\"No\"),\"-\",IF(AND('Enrollment Form'!$AU34=\"Yes\",COUNTA('Enrollment Form'!$CK34)=1),\"Y\",\"N\")))","v":""},{"$f":"IF(OR('Enrollment Form'!$CK34=\"\",'Enrollment Form'!$CK34=\"No\"),\"-\",IF(COUNTA('Enrollment Form'!$CM34:$CN34)=2,\"Y\",\"N\"))","v":"-"},{"$f":"IF($B27=\"N\",\"\",IF(COUNTIF('Enrollment Form'!$CZ34:$DO34,\"Other\")=COUNTA('Enrollment Form'!$DF34,'Enrollment Form'!$DA34,'Enrollment Form'!$DK34,'Enrollment Form'!$DP34),\"Y\",\"N\"))","v":""},{"$f":"IF($B27=\"N\",\"\",IF(OR('Enrollment Form'!B34<>\"Subscriber\",'Enrollment Form'!C34=\"ROC\",COUNTIF('Enrollment Form'!AS34:AT34,\"Yes\")>=1),\"-\",IF(AND('Enrollment Form'!C34=\"Enroll\",COUNTIF('Enrollment Form'!AS34:AT34,\"No\")=2,'Enrollment Form'!AU34=\"\"),\"N\",\"Y\")))","v":""},{"$f":"IF(OR(B27=\"N\",'Enrollment Form'!B34<>\"Subscriber\",'Enrollment Form'!C34=\"ROC\",'Enrollment Form'!O34<>\"Multiple of Salary\"),\"-\",IF(COUNTA('Enrollment Form'!T34:U34)<2,\"N\",\"Y\"))","v":"-"},{"$f":"IF(B27=\"N\",\"\",IF(OR('Enrollment Form'!C34=\"ROC\",'Enrollment Form'!B34<>\"Subscriber\",'Enrollment Form'!O34=\"Waive\",'Enrollment Form'!O34=\"\"),\"-\",IF('Enrollment Form'!P34=\"\",\"N\",\"Y\")))","v":""},{"$f":"IF($B27=\"N\",\"\",IF(AND('Enrollment Form'!$C34=\"ROC\",'Enrollment Form'!$DS34<>\"\"),\"Y\",IF(AND('Enrollment Form'!$C34=\"ROC\",'Enrollment Form'!$DS34=\"\"),\"N\",IF(AND('Enrollment Form'!$C34=\"Enroll\",'Enrollment Form'!$B34=\"Subscriber\",'Enrollment Form'!$CQ34=\"No\",'Enrollment Form'!$DS34=\"\"),\"N\",IF(AND('Enrollment Form'!$C34=\"Enroll\",'Enrollment Form'!$B34=\"Subscriber\",'Enrollment Form'!$CQ34=\"Yes\"),\"-\",\"Y\")))))","v":""},{"$f":"IF($B27=\"N\",\"\",IF(AND('Enrollment Form'!$C34=\"ROC\",'Enrollment Form'!$DT34<>\"\"),\"Y\",IF(AND('Enrollment Form'!$C34=\"ROC\",'Enrollment Form'!$DT34=\"\"),\"N\",IF(AND('Enrollment Form'!$C34=\"Enroll\",'Enrollment Form'!$B34=\"Subscriber\",'Enrollment Form'!$CQ34=\"No\",'Enrollment Form'!$DT34=\"\"),\"N\",IF(AND('Enrollment Form'!$C34=\"Enroll\",'Enrollment Form'!$B34=\"Subscriber\",'Enrollment Form'!$CQ34=\"Yes\"),\"-\",\"Y\")))))","v":""},{"$f":"IF('Enrollment Form'!AH34=\"\",\"\",IF(ISERROR(SEARCH(\".\",'Enrollment Form'!AH34,SEARCH(\"@\",'Enrollment Form'!AH34))),\"N\",\"Y\"))","v":""},{"$f":"IF(OR($B27=\"N\",'Enrollment Form'!$G34=\"\"),\"\",IF('Enrollment Form'!$B34<>\"Subscriber\",\"-\",IF(COUNTIF('Enrollment Form'!$AS34:$AT34,\"Yes\")=2,\"N\",\"Y\")))","v":""},{"$f":"IF(OR('Enrollment Form'!$CC34=\"\",'Enrollment Form'!$CC34=\"No\"),\"-\",IF(AND('Enrollment Form'!$CC34=\"Yes\",'Enrollment Form'!$CD34=\"\"),\"N\",\"Y\"))","v":"-"},{"$f":"IF(OR('Enrollment Form'!$CE34=\"\",'Enrollment Form'!$CE34=\"No\"),\"-\",IF(AND('Enrollment Form'!$CE34=\"Yes\",'Enrollment Form'!$CF34=\"\"),\"N\",\"Y\"))","v":"-"},{"$f":"IF(OR('Enrollment Form'!$CG34=\"\",'Enrollment Form'!$CG34=\"No\"),\"-\",IF(AND('Enrollment Form'!$CG34=\"Yes\",'Enrollment Form'!$CH34=\"\"),\"N\",\"Y\"))","v":"-"},{"$f":"IF(OR('Enrollment Form'!$CG34=\"\",'Enrollment Form'!$CG34=\"No\"),\"-\",IF(AND('Enrollment Form'!$CG34=\"Yes\",'Enrollment Form'!$CI34=\"\"),\"N\",\"Y\"))","v":"-"},{"$f":"IF('Enrollment Form'!B34<>\"Subscriber\",\"-\",IF(AND('Enrollment Form'!B34=\"Subscriber\",'Enrollment Form'!C34=\"Enroll\",'Enrollment Form'!AA34=\"\"),\"N\",\"Y\"))","v":"-"},{"$f":"IF(OR('Enrollment Form'!B34=\"Subscriber\",'Enrollment Form'!B34=\"\"),\"-\",IF('Enrollment Form'!BI34=\"\",\"N\",\"Y\"))","v":"-"},{"$f":"IF('Enrollment Form'!B34<>\"Subscriber\",\"-\",IF(AND('Enrollment Form'!B34=\"Subscriber\",'Enrollment Form'!G34=\"\"),\"N\",\"Y\"))","v":"-"},{"$f":"IF('Enrollment Form'!A34=\"\",\"\",IF('Enrollment Form'!B34=\"Subscriber\",\"-\",IF(AND('Enrollment Form'!B34<>\"Subscriber\",'Enrollment Form'!G34='Enrollment Form'!H34),\"N\",\"Y\")))","v":""},0,{"$nulls":6},"24","Reason Decl \"Other\" filled?","If reason for declining Medical, Dental, Vision, or Life = \"Other\", then reason for \"Other\" is required","CZ-DA,DE-DF,DJ-DK,DO-DP"]
[35,{"$f":"IF('Enrollment Form'!$A35<>\"\",\"Y\",\"N\")","v":"N"},{"$f":"IF(AND('Enrollment Form'!$B35=\"\",'Enrollment Form'!$C35<>\"\"),\"N\",IF($B28=\"N\",\"\",\"Y\"))","v":""},{"$f":"IF(OR($B28=\"N\",'Enrollment Form'!G35=\"\"),\"\",IF('Enrollment Form'!$B35<>\"Subscriber\",\"\",IF('Enrollment Form'!$G35='Enrollment Form'!$H35,\"Y\",\"N\")))","v":""},{"$f":"IF($B28=\"N\",\"\",IF(AND(COUNTIFS('Enrollment Form'!$H$11:$H$1000,'Enrollment Form'!$H35,'Enrollment Form'!$B$11:$B$1000,'Enrollment Form'!$B35)>1,'Enrollment Form'!$H35<>\"\"),\"N\",\"Y\"))","v":""},{"$f":"IF($B28=\"N\",\"\",IF(LEN('Enrollment Form'!$Y35)=0,\"\",IF(LEN('Enrollment Form'!$Y35)<>5,\"N\",\"Y\")))","v":""},{"$f":"IF($B28=\"N\",\"\",IF(LEN('Enrollment Form'!$AD35=0),\"\",IF(LEN('Enrollment Form'!$AD35)<>5,\"N\",\"Y\")))","v":""},{"$f":"IF($B28=\"N\",\"\",IF(LEN('Enrollment Form'!$BL35=0),\"\",IF(LEN('Enrollment Form'!$BL35)<>5,\"N\",\"Y\")))","v":""},{"$f":"IF($B28=\"N\",\"\",IF(LEN('Enrollment Form'!$AE35)=0,\"\",IF(LEN('Enrollment Form'!$AE35)<>10,\"N\",\"Y\")))","v":""},{"$f":"IF($B28=\"N\",\"\",IF(LEN('Enrollment Form'!$AF35)=0,\"\",IF(LEN('Enrollment Form'!$AF35)<>10,\"N\",\"Y\")))","v":""},{"$f":"IF('Enrollment Form'!$O35<>\"Graded\",\"-\",IF(AND('Enrollment Form'!$O35=\"Graded\",'Enrollment Form'!$AO35<>\"\"),\"Y\",\"N\"))","v":"-"},{"$f":"IF($B28=\"N\",\"\",IF(OR('Enrollment Form'!$B35<>\"Subscriber\",'Enrollment Form'!$C35=\"ROC\"),\"-\",IF(AND('Enrollment Form'!$B35=\"Subscriber\",'Enrollment Form'!$C35=\"Enroll\",'Enrollment Form'!$AJ35<>\"\"),\"Y\",\"N\")))","v":""},{"$f":"IF($B28=\"N\",\"\",IF(OR('Enrollment Form'!$B35<>\"Subscriber\",'Enrollment Form'!$C35=\"ROC\"),\"-\",IF(AND('Enrollment Form'!$B35=\"Subscriber\",'Enrollment Form'!$C35=\"Enroll\",'Enrollment Form'!$AK35<>\"\"),\"Y\",\"N\")))","v":""},{"$f":"IF($B28=\"N\",\"\",IF(OR('Enrollment Form'!$B35<>\"Subscriber\",'Enrollment Form'!$C35=\"ROC\"),\"-\",IF(AND('Enrollment Form'!$B35=\"Subscriber\",'Enrollment Form'!$C35=\"Enroll\",'Enrollment Form'!$AL35<>\"\"),\"Y\",\"N\")))","v":""},{"$f":"IF($B28=\"N\",\"\",IF(OR('Enrollment Form'!$B35<>\"Subscriber\",'Enrollment Form'!$C35=\"ROC\"),\"-\",IF(AND('Enrollment Form'!$B35=\"Subscriber\",'Enrollment Form'!$C35=\"Enroll\",'Enrollment Form'!$AM35<>\"\"),\"Y\",\"N\")))","v":""},{"$f":"IF($B28=\"N\",\"\",IF(OR('Enrollment Form'!$B35<>\"Subscriber\",'Enrollment Form'!$C35=\"ROC\"),\"-\",IF(AND('Enrollment Form'!$B35=\"Subscriber\",'Enrollment Form'!$C35=\"Enroll\",'Enrollment Form'!$AN35<>\"\"),\"Y\",\"N\")))","v":""},{"$f":"IF($B28=\"N\",\"\",IF(OR('Enrollment Form'!$B35<>\"Subscriber\",'Enrollment Form'!$C35=\"ROC\"),\"-\",IF(AND('Enrollment Form'!$B35=\"Subscriber\",'Enrollment Form'!$C35=\"Enroll\",'Enrollment Form'!$AP35<>\"\"),\"Y\",\"N\")))","v":""},{"$f":"IF($B28=\"N\",\"\",IF($Q28=\"-\",\"-\",IF(AND($Q28=\"Y\",'Enrollment Form'!$AP35=\"No\"),\"-\",IF(AND($Q28=\"Y\",'Enrollment Form'!$AP35=\"Yes\",'Enrollment Form'!$AQ35<>\"\"),\"Y\",\"N\"))))","v":""},{"$f":"IF($B28=\"N\",\"\",IF(OR('Enrollment Form'!$B35<>\"Subscriber\",'Enrollment Form'!$C35=\"ROC\"),\"-\",IF(AND('Enrollment Form'!$B35=\"Subscriber\",'Enrollment Form'!$C35=\"Enroll\",'Enrollment Form'!$CO35<>\"\"),\"Y\",\"N\")))","v":""},{"$f":"IF($B28=\"N\",\"\",IF($S28=\"-\",\"-\",IF(AND($S28=\"Y\",'Enrollment Form'!$CO35=\"No\"),\"-\",IF(AND($S28=\"Y\",'Enrollment Form'!$CO35=\"Yes\",'Enrollment Form'!$CP35<>\"\"),\"Y\",\"N\"))))","v":""},{"$f":"IF(OR('Enrollment Form'!$AV35=\"Yes\",'Enrollment Form'!$AV35=\"\"),\"-\",IF(AND('Enrollment Form'!$AV35=\"No\",ISERROR(FIND(\"HMO\",VLOOKUP('Enrollment Form'!G35,'Enrollment Form'!H$11:J$1000,3,FALSE),1))=FALSE,COUNTA('Enrollment Form'!$AW35:$AZ35)=4),\"Y\",\"N\"))","v":"-"},{"$f":"IF($B28=\"N\",\"\",IF('Enrollment Form'!$B35=\"Subscriber\",\"-\",IF(COUNTA('Enrollment Form'!$BE35,'Enrollment Form'!$BG35)=2,\"Y\",\"N\")))","v":""},{"$f":"IF($B28=\"N\",\"\",IF(OR('Enrollment Form'!$AU35=\"\",'Enrollment Form'!$AU35=\"No\"),\"-\",IF(AND('Enrollment Form'!$AU35=\"Yes\",COUNTA('Enrollment Form'!$CK35)=1),\"Y\",\"N\")))","v":""},{"$f":"IF(OR('Enrollment Form'!$CK35=\"\",'Enrollment Form'!$CK35=\"No\"),\"-\",IF(COUNTA('Enrollment Form'!$CM35:$CN35)=2,\"Y\",\"N\"))","v":"-"},{"$f":"IF($B28=\"N\",\"\",IF(COUNTIF('Enrollment Form'!$CZ35:$DO35,\"Other\")=COUNTA('Enrollment Form'!$DF35,'Enrollment Form'!$DA35,'Enrollment Form'!$DK35,'Enrollment Form'!$DP35),\"Y\",\"N\"))","v":""},{"$f":"IF($B28=\"N\",\"\",IF(OR('Enrollment Form'!B35<>\"Subscriber\",'Enrollment Form'!C35=\"ROC\",COUNTIF('Enrollment Form'!AS35:AT35,\"Yes\")>=1),\"-\",IF(AND('Enrollment Form'!C35=\"Enroll\",COUNTIF('Enrollment Form'!AS35:AT35,\"No\")=2,'Enrollment Form'!AU35=\"\"),\"N\",\"Y\")))","v":""},{"$f":"IF(OR(B28=\"N\",'Enrollment Form'!B35<>\"Subscriber\",'Enrollment Form'!C35=\"ROC\",'Enrollment Form'!O35<>\"Multiple of Salary\"),\"-\",IF(COUNTA('Enrollment Form'!T35:U35)<2,\"N\",\"Y\"))","v":"-"},{"$f":"IF(B28=\"N\",\"\",IF(OR('Enrollment Form'!C35=\"ROC\",'Enrollment Form'!B35<>\"Subscriber\",'Enrollment Form'!O35=\"Waive\",'Enrollment Form'!O35=\"\"),\"-\",IF('Enrollment Form'!P35=\"\",\"N\",\"Y\")))","v":""},{"$f":"IF($B28=\"N\",\"\",IF(AND('Enrollment Form'!$C35=\"ROC\",'Enrollment Form'!$DS35<>\"\"),\"Y\",IF(AND('Enrollment Form'!$C35=\"ROC\",'Enrollment Form'!$DS35=\"\"),\"N\",IF(AND('Enrollment Form'!$C35=\"Enroll\",'Enrollment Form'!$B35=\"Subscriber\",'Enrollment Form'!$CQ35=\"No\",'Enrollment Form'!$DS35=\"\"),\"N\",IF(AND('Enrollment Form'!$C35=\"Enroll\",'Enrollment Form'!$B35=\"Subscriber\",'Enrollment Form'!$CQ35=\"Yes\"),\"-\",\"Y\")))))","v":""},{"$f":"IF($B28=\"N\",\"\",IF(AND('Enrollment Form'!$C35=\"ROC\",'Enrollment Form'!$DT35<>\"\"),\"Y\",IF(AND('Enrollment Form'!$C35=\"ROC\",'Enrollment Form'!$DT35=\"\"),\"N\",IF(AND('Enrollment Form'!$C35=\"Enroll\",'Enrollment Form'!$B35=\"Subscriber\",'Enrollment Form'!$CQ35=\"No\",'Enrollment Form'!$DT35=\"\"),\"N\",IF(AND('Enrollment Form'!$C35=\"Enroll\",'Enrollment Form'!$B35=\"Subscriber\",'Enrollment Form'!$CQ35=\"Yes\"),\"-\",\"Y\")))))","v":""},{"$f":"IF('Enrollment Form'!AH35=\"\",\"\",IF(ISERROR(SEARCH(\".\",'Enrollment Form'!AH35,SEARCH(\"@\",'Enrollment Form'!AH35))),\"N\",\"Y\"))","v":""},{"$f":"IF(OR($B28=\"N\",'Enrollment Form'!$G35=\"\"),\"\",IF('Enrollment Form'!$B35<>\"Subscriber\",\"-\",IF(COUNTIF('Enrollment Form'!$AS35:$AT35,\"Yes\")=2,\"N\",\"Y\")))","v":""},{"$f":"IF(OR('Enrollment Form'!$CC35=\"\",'Enrollment Form'!$CC35=\"No\"),\"-\",IF(AND('Enrollment Form'!$CC35=\"Yes\",'Enrollment Form'!$CD35=\"\"),\"N\",\"Y\"))","v":"-"},{"$f":"IF(OR('Enrollment Form'!$CE35=\"\",'Enrollment Form'!$CE35=\"No\"),\"-\",IF(AND('Enrollment Form'!$CE35=\"Yes\",'Enrollment Form'!$CF35=\"\"),\"N\",\"Y\"))","v":"-"},{"$f":"IF(OR('Enrollment Form'!$CG35=\"\",'Enrollment Form'!$CG35=\"No\"),\"-\",IF(AND('Enrollment Form'!$CG35=\"Yes\",'Enrollment Form'!$CH35=\"\"),\"N\",\"Y\"))","v":"-"},{"$f":"IF(OR('Enrollment Form'!$CG35=\"\",'Enrollment Form'!$CG35=\"No\"),\"-\",IF(AND('Enrollment Form'!$CG35=\"Yes\",'Enrollment Form'!$CI35=\"\"),\"N\",\"Y\"))","v":"-"},{"$f":"IF('Enrollment Form'!B35<>\"Subscriber\",\"-\",IF(AND('Enrollment Form'!B35=\"Subscriber\",'Enrollment Form'!C35=\"Enroll\",'Enrollment Form'!AA35=\"\"),\"N\",\"Y\"))","v":"-"},{"$f":"IF(OR('Enrollment Form'!B35=\"Subscriber\",'Enrollment Form'!B35=\"\"),\"-\",IF('Enrollment Form'!BI35=\"\",\"N\",\"Y\"))","v":"-"},{"$f":"IF('Enrollment Form'!B35<>\"Subscriber\",\"-\",IF(AND('Enrollment Form'!B35=\"Subscriber\",'Enrollment Form'!G35=\"\"),\"N\",\"Y\"))","v":"-"},{"$f":"IF('Enrollment Form'!A35=\"\",\"\",IF('Enrollment Form'!B35=\"Subscriber\",\"-\",IF(AND('Enrollment Form'!B35<>\"Subscriber\",'Enrollment Form'!G35='Enrollment Form'!H35),\"N\",\"Y\")))","v":""},0,{"$nulls":6},"25","Existing COBRA filled?","If you work less than 20 hours a week, then must be specified if you are existing or enrolling","AS-AU"]
[36,{"$f":"IF('Enrollment Form'!$A36<>\"\",\"Y\",\"N\")","v":"N"},{"$f":"IF(AND('Enrollment Form'!$B36=\"\",'Enrollment Form'!$C36<>\"\"),\"N\",IF($B29=\"N\",\"\",\"Y\"))","v":""},{"$f":"IF(OR($B29=\"N\",'Enrollment Form'!G36=\"\"),\"\",IF('Enrollment Form'!$B36<>\"Subscriber\",\"\",IF('Enrollment Form'!$G36='Enrollment Form'!$H36,\"Y\",\"N\")))","v":""},{"$f":"IF($B29=\"N\",\"\",IF(AND(COUNTIFS('Enrollment Form'!$H$11:$H$1000,'Enrollment Form'!$H36,'Enrollment Form'!$B$11:$B$1000,'Enrollment Form'!$B36)>1,'Enrollment Form'!$H36<>\"\"),\"N\",\"Y\"))","v":""},{"$f":"IF($B29=\"N\",\"\",IF(LEN('Enrollment Form'!$Y36)=0,\"\",IF(LEN('Enrollment Form'!$Y36)<>5,\"N\",\"Y\")))","v":""},{"$f":"IF($B29=\"N\",\"\",IF(LEN('Enrollment Form'!$AD36=0),\"\",IF(LEN('Enrollment Form'!$AD36)<>5,\"N\",\"Y\")))","v":""},{"$f":"IF($B29=\"N\",\"\",IF(LEN('Enrollment Form'!$BL36=0),\"\",IF(LEN('Enrollment Form'!$BL36)<>5,\"N\",\"Y\")))","v":""},{"$f":"IF($B29=\"N\",\"\",IF(LEN('Enrollment Form'!$AE36)=0,\"\",IF(LEN('Enrollment Form'!$AE36)<>10,\"N\",\"Y\")))","v":""},{"$f":"IF($B29=\"N\",\"\",IF(LEN('Enrollment Form'!$AF36)=0,\"\",IF(LEN('Enrollment Form'!$AF36)<>10,\"N\",\"Y\")))","v":""},{"$f":"IF('Enrollment Form'!$O36<>\"Graded\",\"-\",IF(AND('Enrollment Form'!$O36=\"Graded\",'Enrollment Form'!$AO36<>\"\"),\"Y\",\"N\"))","v":"-"},{"$f":"IF($B29=\"N\",\"\",IF(OR('Enrollment Form'!$B36<>\"Subscriber\",'Enrollment Form'!$C36=\"ROC\"),\"-\",IF(AND('Enrollment Form'!$B36=\"Subscriber\",'Enrollment Form'!$C36=\"Enroll\",'Enrollment Form'!$AJ36<>\"\"),\"Y\",\"N\")))","v":""},{"$f":"IF($B29=\"N\",\"\",IF(OR('Enrollment Form'!$B36<>\"Subscriber\",'Enrollment Form'!$C36=\"ROC\"),\"-\",IF(AND('Enrollment Form'!$B36=\"Subscriber\",'Enrollment Form'!$C36=\"Enroll\",'Enrollment Form'!$AK36<>\"\"),\"Y\",\"N\")))","v":""},{"$f":"IF($B29=\"N\",\"\",IF(OR('Enrollment Form'!$B36<>\"Subscriber\",'Enrollment Form'!$C36=\"ROC\"),\"-\",IF(AND('Enrollment Form'!$B36=\"Subscriber\",'Enrollment Form'!$C36=\"Enroll\",'Enrollment Form'!$AL36<>\"\"),\"Y\",\"N\")))","v":""},{"$f":"IF($B29=\"N\",\"\",IF(OR('Enrollment Form'!$B36<>\"Subscriber\",'Enrollment Form'!$C36=\"ROC\"),\"-\",IF(AND('Enrollment Form'!$B36=\"Subscriber\",'Enrollment Form'!$C36=\"Enroll\",'Enrollment Form'!$AM36<>\"\"),\"Y\",\"N\")))","v":""},{"$f":"IF($B29=\"N\",\"\",IF(OR('Enrollment Form'!$B36<>\"Subscriber\",'Enrollment Form'!$C36=\"ROC\"),\"-\",IF(AND('Enrollment Form'!$B36=\"Subscriber\",'Enrollment Form'!$C36=\"Enroll\",'Enrollment Form'!$AN36<>\"\"),\"Y\",\"N\")))","v":""},{"$f":"IF($B29=\"N\",\"\",IF(OR('Enrollment Form'!$B36<>\"Subscriber\",'Enrollment Form'!$C36=\"ROC\"),\"-\",IF(AND('Enrollment Form'!$B36=\"Subscriber\",'Enrollment Form'!$C36=\"Enroll\",'Enrollment Form'!$AP36<>\"\"),\"Y\",\"N\")))","v":""},{"$f":"IF($B29=\"N\",\"\",IF($Q29=\"-\",\"-\",IF(AND($Q29=\"Y\",'Enrollment Form'!$AP36=\"No\"),\"-\",IF(AND($Q29=\"Y\",'Enrollment Form'!$AP36=\"Yes\",'Enrollment Form'!$AQ36<>\"\"),\"Y\",\"N\"))))","v":""},{"$f":"IF($B29=\"N\",\"\",IF(OR('Enrollment Form'!$B36<>\"Subscriber\",'Enrollment Form'!$C36=\"ROC\"),\"-\",IF(AND('Enrollment Form'!$B36=\"Subscriber\",'Enrollment Form'!$C36=\"Enroll\",'Enrollment Form'!$CO36<>\"\"),\"Y\",\"N\")))","v":""},{"$f":"IF($B29=\"N\",\"\",IF($S29=\"-\",\"-\",IF(AND($S29=\"Y\",'Enrollment Form'!$CO36=\"No\"),\"-\",IF(AND($S29=\"Y\",'Enrollment Form'!$CO36=\"Yes\",'Enrollment Form'!$CP36<>\"\"),\"Y\",\"N\"))))","v":""},{"$f":"IF(OR('Enrollment Form'!$AV36=\"Yes\",'Enrollment Form'!$AV36=\"\"),\"-\",IF(AND('Enrollment Form'!$AV36=\"No\",ISERROR(FIND(\"HMO\",VLOOKUP('Enrollment Form'!G36,'Enrollment Form'!H$11:J$1000,3,FALSE),1))=FALSE,COUNTA('Enrollment Form'!$AW36:$AZ36)=4),\"Y\",\"N\"))","v":"-"},{"$f":"IF($B29=\"N\",\"\",IF('Enrollment Form'!$B36=\"Subscriber\",\"-\",IF(COUNTA('Enrollment Form'!$BE36,'Enrollment Form'!$BG36)=2,\"Y\",\"N\")))","v":""},{"$f":"IF($B29=\"N\",\"\",IF(OR('Enrollment Form'!$AU36=\"\",'Enrollment Form'!$AU36=\"No\"),\"-\",IF(AND('Enrollment Form'!$AU36=\"Yes\",COUNTA('Enrollment Form'!$CK36)=1),\"Y\",\"N\")))","v":""},{"$f":"IF(OR('Enrollment Form'!$CK36=\"\",'Enrollment Form'!$CK36=\"No\"),\"-\",IF(COUNTA('Enrollment Form'!$CM36:$CN36)=2,\"Y\",\"N\"))","v":"-"},{"$f":"IF($B29=\"N\",\"\",IF(COUNTIF('Enrollment Form'!$CZ36:$DO36,\"Other\")=COUNTA('Enrollment Form'!$DF36,'Enrollment Form'!$DA36,'Enrollment Form'!$DK36,'Enrollment Form'!$DP36),\"Y\",\"N\"))","v":""},{"$f":"IF($B29=\"N\",\"\",IF(OR('Enrollment Form'!B36<>\"Subscriber\",'Enrollment Form'!C36=\"ROC\",COUNTIF('Enrollment Form'!AS36:AT36,\"Yes\")>=1),\"-\",IF(AND('Enrollment Form'!C36=\"Enroll\",COUNTIF('Enrollment Form'!AS36:AT36,\"No\")=2,'Enrollment Form'!AU36=\"\"),\"N\",\"Y\")))","v":""},{"$f":"IF(OR(B29=\"N\",'Enrollment Form'!B36<>\"Subscriber\",'Enrollment Form'!C36=\"ROC\",'Enrollment Form'!O36<>\"Multiple of Salary\"),\"-\",IF(COUNTA('Enrollment Form'!T36:U36)<2,\"N\",\"Y\"))","v":"-"},{"$f":"IF(B29=\"N\",\"\",IF(OR('Enrollment Form'!C36=\"ROC\",'Enrollment Form'!B36<>\"Subscriber\",'Enrollment Form'!O36=\"Waive\",'Enrollment Form'!O36=\"\"),\"-\",IF('Enrollment Form'!P36=\"\",\"N\",\"Y\")))","v":""},{"$f":"IF($B29=\"N\",\"\",IF(AND('Enrollment Form'!$C36=\"ROC\",'Enrollment Form'!$DS36<>\"\"),\"Y\",IF(AND('Enrollment Form'!$C36=\"ROC\",'Enrollment Form'!$DS36=\"\"),\"N\",IF(AND('Enrollment Form'!$C36=\"Enroll\",'Enrollment Form'!$B36=\"Subscriber\",'Enrollment Form'!$CQ36=\"No\",'Enrollment Form'!$DS36=\"\"),\"N\",IF(AND('Enrollment Form'!$C36=\"Enroll\",'Enrollment Form'!$B36=\"Subscriber\",'Enrollment Form'!$CQ36=\"Yes\"),\"-\",\"Y\")))))","v":""},{"$f":"IF($B29=\"N\",\"\",IF(AND('Enrollment Form'!$C36=\"ROC\",'Enrollment Form'!$DT36<>\"\"),\"Y\",IF(AND('Enrollment Form'!$C36=\"ROC\",'Enrollment Form'!$DT36=\"\"),\"N\",IF(AND('Enrollment Form'!$C36=\"Enroll\",'Enrollment Form'!$B36=\"Subscriber\",'Enrollment Form'!$CQ36=\"No\",'Enrollment Form'!$DT36=\"\"),\"N\",IF(AND('Enrollment Form'!$C36=\"Enroll\",'Enrollment Form'!$B36=\"Subscriber\",'Enrollment Form'!$CQ36=\"Yes\"),\"-\",\"Y\")))))","v":""},{"$f":"IF('Enrollment Form'!AH36=\"\",\"\",IF(ISERROR(SEARCH(\".\",'Enrollment Form'!AH36,SEARCH(\"@\",'Enrollment Form'!AH36))),\"N\",\"Y\"))","v":""},{"$f":"IF(OR($B29=\"N\",'Enrollment Form'!$G36=\"\"),\"\",IF('Enrollment Form'!$B36<>\"Subscriber\",\"-\",IF(COUNTIF('Enrollment Form'!$AS36:$AT36,\"Yes\")=2,\"N\",\"Y\")))","v":""},{"$f":"IF(OR('Enrollment Form'!$CC36=\"\",'Enrollment Form'!$CC36=\"No\"),\"-\",IF(AND('Enrollment Form'!$CC36=\"Yes\",'Enrollment Form'!$CD36=\"\"),\"N\",\"Y\"))","v":"-"},{"$f":"IF(OR('Enrollment Form'!$CE36=\"\",'Enrollment Form'!$CE36=\"No\"),\"-\",IF(AND('Enrollment Form'!$CE36=\"Yes\",'Enrollment Form'!$CF36=\"\"),\"N\",\"Y\"))","v":"-"},{"$f":"IF(OR('Enrollment Form'!$CG36=\"\",'Enrollment Form'!$CG36=\"No\"),\"-\",IF(AND('Enrollment Form'!$CG36=\"Yes\",'Enrollment Form'!$CH36=\"\"),\"N\",\"Y\"))","v":"-"},{"$f":"IF(OR('Enrollment Form'!$CG36=\"\",'Enrollment Form'!$CG36=\"No\"),\"-\",IF(AND('Enrollment Form'!$CG36=\"Yes\",'Enrollment Form'!$CI36=\"\"),\"N\",\"Y\"))","v":"-"},{"$f":"IF('Enrollment Form'!B36<>\"Subscriber\",\"-\",IF(AND('Enrollment Form'!B36=\"Subscriber\",'Enrollment Form'!C36=\"Enroll\",'Enrollment Form'!AA36=\"\"),\"N\",\"Y\"))","v":"-"},{"$f":"IF(OR('Enrollment Form'!B36=\"Subscriber\",'Enrollment Form'!B36=\"\"),\"-\",IF('Enrollment Form'!BI36=\"\",\"N\",\"Y\"))","v":"-"},{"$f":"IF('Enrollment Form'!B36<>\"Subscriber\",\"-\",IF(AND('Enrollment Form'!B36=\"Subscriber\",'Enrollment Form'!G36=\"\"),\"N\",\"Y\"))","v":"-"},{"$f":"IF('Enrollment Form'!A36=\"\",\"\",IF('Enrollment Form'!B36=\"Subscriber\",\"-\",IF(AND('Enrollment Form'!B36<>\"Subscriber\",'Enrollment Form'!G36='Enrollment Form'!H36),\"N\",\"Y\")))","v":""},0,{"$nulls":6},"26","Life Mult of Sal Earnings filled?","If \"Multiple of Salary\" is selected for Life Ins, then earnings & frequency must be populated","O,T-U"]
[37,{"$f":"IF('Enrollment Form'!$A37<>\"\",\"Y\",\"N\")","v":"N"},{"$f":"IF(AND('Enrollment Form'!$B37=\"\",'Enrollment Form'!$C37<>\"\"),\"N\",IF($B30=\"N\",\"\",\"Y\"))","v":""},{"$f":"IF(OR($B30=\"N\",'Enrollment Form'!G37=\"\"),\"\",IF('Enrollment Form'!$B37<>\"Subscriber\",\"\",IF('Enrollment Form'!$G37='Enrollment Form'!$H37,\"Y\",\"N\")))","v":""},{"$f":"IF($B30=\"N\",\"\",IF(AND(COUNTIFS('Enrollment Form'!$H$11:$H$1000,'Enrollment Form'!$H37,'Enrollment Form'!$B$11:$B$1000,'Enrollment Form'!$B37)>1,'Enrollment Form'!$H37<>\"\"),\"N\",\"Y\"))","v":""},{"$f":"IF($B30=\"N\",\"\",IF(LEN('Enrollment Form'!$Y37)=0,\"\",IF(LEN('Enrollment Form'!$Y37)<>5,\"N\",\"Y\")))","v":""},{"$f":"IF($B30=\"N\",\"\",IF(LEN('Enrollment Form'!$AD37=0),\"\",IF(LEN('Enrollment Form'!$AD37)<>5,\"N\",\"Y\")))","v":""},{"$f":"IF($B30=\"N\",\"\",IF(LEN('Enrollment Form'!$BL37=0),\"\",IF(LEN('Enrollment Form'!$BL37)<>5,\"N\",\"Y\")))","v":""},{"$f":"IF($B30=\"N\",\"\",IF(LEN('Enrollment Form'!$AE37)=0,\"\",IF(LEN('Enrollment Form'!$AE37)<>10,\"N\",\"Y\")))","v":""},{"$f":"IF($B30=\"N\",\"\",IF(LEN('Enrollment Form'!$AF37)=0,\"\",IF(LEN('Enrollment Form'!$AF37)<>10,\"N\",\"Y\")))","v":""},{"$f":"IF('Enrollment Form'!$O37<>\"Graded\",\"-\",IF(AND('Enrollment Form'!$O37=\"Graded\",'Enrollment Form'!$AO37<>\"\"),\"Y\",\"N\"))","v":"-"},{"$f":"IF($B30=\"N\",\"\",IF(OR('Enrollment Form'!$B37<>\"Subscriber\",'Enrollment Form'!$C37=\"ROC\"),\"-\",IF(AND('Enrollment Form'!$B37=\"Subscriber\",'Enrollment Form'!$C37=\"Enroll\",'Enrollment Form'!$AJ37<>\"\"),\"Y\",\"N\")))","v":""},{"$f":"IF($B30=\"N\",\"\",IF(OR('Enrollment Form'!$B37<>\"Subscriber\",'Enrollment Form'!$C37=\"ROC\"),\"-\",IF(AND('Enrollment Form'!$B37=\"Subscriber\",'Enrollment Form'!$C37=\"Enroll\",'Enrollment Form'!$AK37<>\"\"),\"Y\",\"N\")))","v":""},{"$f":"IF($B30=\"N\",\"\",IF(OR('Enrollment Form'!$B37<>\"Subscriber\",'Enrollment Form'!$C37=\"ROC\"),\"-\",IF(AND('Enrollment Form'!$B37=\"Subscriber\",'Enrollment Form'!$C37=\"Enroll\",'Enrollment Form'!$AL37<>\"\"),\"Y\",\"N\")))","v":""},{"$f":"IF($B30=\"N\",\"\",IF(OR('Enrollment Form'!$B37<>\"Subscriber\",'Enrollment Form'!$C37=\"ROC\"),\"-\",IF(AND('Enrollment Form'!$B37=\"Subscriber\",'Enrollment Form'!$C37=\"Enroll\",'Enrollment Form'!$AM37<>\"\"),\"Y\",\"N\")))","v":""},{"$f":"IF($B30=\"N\",\"\",IF(OR('Enrollment Form'!$B37<>\"Subscriber\",'Enrollment Form'!$C37=\"ROC\"),\"-\",IF(AND('Enrollment Form'!$B37=\"Subscriber\",'Enrollment Form'!$C37=\"Enroll\",'Enrollment Form'!$AN37<>\"\"),\"Y\",\"N\")))","v":""},{"$f":"IF($B30=\"N\",\"\",IF(OR('Enrollment Form'!$B37<>\"Subscriber\",'Enrollment Form'!$C37=\"ROC\"),\"-\",IF(AND('Enrollment Form'!$B37=\"Subscriber\",'Enrollment Form'!$C37=\"Enroll\",'Enrollment Form'!$AP37<>\"\"),\"Y\",\"N\")))","v":""},{"$f":"IF($B30=\"N\",\"\",IF($Q30=\"-\",\"-\",IF(AND($Q30=\"Y\",'Enrollment Form'!$AP37=\"No\"),\"-\",IF(AND($Q30=\"Y\",'Enrollment Form'!$AP37=\"Yes\",'Enrollment Form'!$AQ37<>\"\"),\"Y\",\"N\"))))","v":""},{"$f":"IF($B30=\"N\",\"\",IF(OR('Enrollment Form'!$B37<>\"Subscriber\",'Enrollment Form'!$C37=\"ROC\"),\"-\",IF(AND('Enrollment Form'!$B37=\"Subscriber\",'Enrollment Form'!$C37=\"Enroll\",'Enrollment Form'!$CO37<>\"\"),\"Y\",\"N\")))","v":""},{"$f":"IF($B30=\"N\",\"\",IF($S30=\"-\",\"-\",IF(AND($S30=\"Y\",'Enrollment Form'!$CO37=\"No\"),\"-\",IF(AND($S30=\"Y\",'Enrollment Form'!$CO37=\"Yes\",'Enrollment Form'!$CP37<>\"\"),\"Y\",\"N\"))))","v":""},{"$f":"IF(OR('Enrollment Form'!$AV37=\"Yes\",'Enrollment Form'!$AV37=\"\"),\"-\",IF(AND('Enrollment Form'!$AV37=\"No\",ISERROR(FIND(\"HMO\",VLOOKUP('Enrollment Form'!G37,'Enrollment Form'!H$11:J$1000,3,FALSE),1))=FALSE,COUNTA('Enrollment Form'!$AW37:$AZ37)=4),\"Y\",\"N\"))","v":"-"},{"$f":"IF($B30=\"N\",\"\",IF('Enrollment Form'!$B37=\"Subscriber\",\"-\",IF(COUNTA('Enrollment Form'!$BE37,'Enrollment Form'!$BG37)=2,\"Y\",\"N\")))","v":""},{"$f":"IF($B30=\"N\",\"\",IF(OR('Enrollment Form'!$AU37=\"\",'Enrollment Form'!$AU37=\"No\"),\"-\",IF(AND('Enrollment Form'!$AU37=\"Yes\",COUNTA('Enrollment Form'!$CK37)=1),\"Y\",\"N\")))","v":""},{"$f":"IF(OR('Enrollment Form'!$CK37=\"\",'Enrollment Form'!$CK37=\"No\"),\"-\",IF(COUNTA('Enrollment Form'!$CM37:$CN37)=2,\"Y\",\"N\"))","v":"-"},{"$f":"IF($B30=\"N\",\"\",IF(COUNTIF('Enrollment Form'!$CZ37:$DO37,\"Other\")=COUNTA('Enrollment Form'!$DF37,'Enrollment Form'!$DA37,'Enrollment Form'!$DK37,'Enrollment Form'!$DP37),\"Y\",\"N\"))","v":""},{"$f":"IF($B30=\"N\",\"\",IF(OR('Enrollment Form'!B37<>\"Subscriber\",'Enrollment Form'!C37=\"ROC\",COUNTIF('Enrollment Form'!AS37:AT37,\"Yes\")>=1),\"-\",IF(AND('Enrollment Form'!C37=\"Enroll\",COUNTIF('Enrollment Form'!AS37:AT37,\"No\")=2,'Enrollment Form'!AU37=\"\"),\"N\",\"Y\")))","v":""},{"$f":"IF(OR(B30=\"N\",'Enrollment Form'!B37<>\"Subscriber\",'Enrollment Form'!C37=\"ROC\",'Enrollment Form'!O37<>\"Multiple of Salary\"),\"-\",IF(COUNTA('Enrollment Form'!T37:U37)<2,\"N\",\"Y\"))","v":"-"},{"$f":"IF(B30=\"N\",\"\",IF(OR('Enrollment Form'!C37=\"ROC\",'Enrollment Form'!B37<>\"Subscriber\",'Enrollment Form'!O37=\"Waive\",'Enrollment Form'!O37=\"\"),\"-\",IF('Enrollment Form'!P37=\"\",\"N\",\"Y\")))","v":""},{"$f":"IF($B30=\"N\",\"\",IF(AND('Enrollment Form'!$C37=\"ROC\",'Enrollment Form'!$DS37<>\"\"),\"Y\",IF(AND('Enrollment Form'!$C37=\"ROC\",'Enrollment Form'!$DS37=\"\"),\"N\",IF(AND('Enrollment Form'!$C37=\"Enroll\",'Enrollment Form'!$B37=\"Subscriber\",'Enrollment Form'!$CQ37=\"No\",'Enrollment Form'!$DS37=\"\"),\"N\",IF(AND('Enrollment Form'!$C37=\"Enroll\",'Enrollment Form'!$B37=\"Subscriber\",'Enrollment Form'!$CQ37=\"Yes\"),\"-\",\"Y\")))))","v":""},{"$f":"IF($B30=\"N\",\"\",IF(AND('Enrollment Form'!$C37=\"ROC\",'Enrollment Form'!$DT37<>\"\"),\"Y\",IF(AND('Enrollment Form'!$C37=\"ROC\",'Enrollment Form'!$DT37=\"\"),\"N\",IF(AND('Enrollment Form'!$C37=\"Enroll\",'Enrollment Form'!$B37=\"Subscriber\",'Enrollment Form'!$CQ37=\"No\",'Enrollment Form'!$DT37=\"\"),\"N\",IF(AND('Enrollment Form'!$C37=\"Enroll\",'Enrollment Form'!$B37=\"Subscriber\",'Enrollment Form'!$CQ37=\"Yes\"),\"-\",\"Y\")))))","v":""},{"$f":"IF('Enrollment Form'!AH37=\"\",\"\",IF(ISERROR(SEARCH(\".\",'Enrollment Form'!AH37,SEARCH(\"@\",'Enrollment Form'!AH37))),\"N\",\"Y\"))","v":""},{"$f":"IF(OR($B30=\"N\",'Enrollment Form'!$G37=\"\"),\"\",IF('Enrollment Form'!$B37<>\"Subscriber\",\"-\",IF(COUNTIF('Enrollment Form'!$AS37:$AT37,\"Yes\")=2,\"N\",\"Y\")))","v":""},{"$f":"IF(OR('Enrollment Form'!$CC37=\"\",'Enrollment Form'!$CC37=\"No\"),\"-\",IF(AND('Enrollment Form'!$CC37=\"Yes\",'Enrollment Form'!$CD37=\"\"),\"N\",\"Y\"))","v":"-"},{"$f":"IF(OR('Enrollment Form'!$CE37=\"\",'Enrollment Form'!$CE37=\"No\"),\"-\",IF(AND('Enrollment Form'!$CE37=\"Yes\",'Enrollment Form'!$CF37=\"\"),\"N\",\"Y\"))","v":"-"},{"$f":"IF(OR('Enrollment Form'!$CG37=\"\",'Enrollment Form'!$CG37=\"No\"),\"-\",IF(AND('Enrollment Form'!$CG37=\"Yes\",'Enrollment Form'!$CH37=\"\"),\"N\",\"Y\"))","v":"-"},{"$f":"IF(OR('Enrollment Form'!$CG37=\"\",'Enrollment Form'!$CG37=\"No\"),\"-\",IF(AND('Enrollment Form'!$CG37=\"Yes\",'Enrollment Form'!$CI37=\"\"),\"N\",\"Y\"))","v":"-"},{"$f":"IF('Enrollment Form'!B37<>\"Subscriber\",\"-\",IF(AND('Enrollment Form'!B37=\"Subscriber\",'Enrollment Form'!C37=\"Enroll\",'Enrollment Form'!AA37=\"\"),\"N\",\"Y\"))","v":"-"},{"$f":"IF(OR('Enrollment Form'!B37=\"Subscriber\",'Enrollment Form'!B37=\"\"),\"-\",IF('Enrollment Form'!BI37=\"\",\"N\",\"Y\"))","v":"-"},{"$f":"IF('Enrollment Form'!B37<>\"Subscriber\",\"-\",IF(AND('Enrollment Form'!B37=\"Subscriber\",'Enrollment Form'!G37=\"\"),\"N\",\"Y\"))","v":"-"},{"$f":"IF('Enrollment Form'!A37=\"\",\"\",IF('Enrollment Form'!B37=\"Subscriber\",\"-\",IF(AND('Enrollment Form'!B37<>\"Subscriber\",'Enrollment Form'!G37='Enrollment Form'!H37),\"N\",\"Y\")))","v":""},0,{"$nulls":6},"27","Life amount filled?","If not waiving Life Insurance, then an amount must be selected","O-P"]
[38,{"$f":"IF('Enrollment Form'!$A38<>\"\",\"Y\",\"N\")","v":"N"},{"$f":"IF(AND('Enrollment Form'!$B38=\"\",'Enrollment Form'!$C38<>\"\"),\"N\",IF($B31=\"N\",\"\",\"Y\"))","v":""},{"$f":"IF(OR($B31=\"N\",'Enrollment Form'!G38=\"\"),\"\",IF('Enrollment Form'!$B38<>\"Subscriber\",\"\",IF('Enrollment Form'!$G38='Enrollment Form'!$H38,\"Y\",\"N\")))","v":""},{"$f":"IF($B31=\"N\",\"\",IF(AND(COUNTIFS('Enrollment Form'!$H$11:$H$1000,'Enrollment Form'!$H38,'Enrollment Form'!$B$11:$B$1000,'Enrollment Form'!$B38)>1,'Enrollment Form'!$H38<>\"\"),\"N\",\"Y\"))","v":""},{"$f":"IF($B31=\"N\",\"\",IF(LEN('Enrollment Form'!$Y38)=0,\"\",IF(LEN('Enrollment Form'!$Y38)<>5,\"N\",\"Y\")))","v":""},{"$f":"IF($B31=\"N\",\"\",IF(LEN('Enrollment Form'!$AD38=0),\"\",IF(LEN('Enrollment Form'!$AD38)<>5,\"N\",\"Y\")))","v":""},{"$f":"IF($B31=\"N\",\"\",IF(LEN('Enrollment Form'!$BL38=0),\"\",IF(LEN('Enrollment Form'!$BL38)<>5,\"N\",\"Y\")))","v":""},{"$f":"IF($B31=\"N\",\"\",IF(LEN('Enrollment Form'!$AE38)=0,\"\",IF(LEN('Enrollment Form'!$AE38)<>10,\"N\",\"Y\")))","v":""},{"$f":"IF($B31=\"N\",\"\",IF(LEN('Enrollment Form'!$AF38)=0,\"\",IF(LEN('Enrollment Form'!$AF38)<>10,\"N\",\"Y\")))","v":""},{"$f":"IF('Enrollment Form'!$O38<>\"Graded\",\"-\",IF(AND('Enrollment Form'!$O38=\"Graded\",'Enrollment Form'!$AO38<>\"\"),\"Y\",\"N\"))","v":"-"},{"$f":"IF($B31=\"N\",\"\",IF(OR('Enrollment Form'!$B38<>\"Subscriber\",'Enrollment Form'!$C38=\"ROC\"),\"-\",IF(AND('Enrollment Form'!$B38=\"Subscriber\",'Enrollment Form'!$C38=\"Enroll\",'Enrollment Form'!$AJ38<>\"\"),\"Y\",\"N\")))","v":""},{"$f":"IF($B31=\"N\",\"\",IF(OR('Enrollment Form'!$B38<>\"Subscriber\",'Enrollment Form'!$C38=\"ROC\"),\"-\",IF(AND('Enrollment Form'!$B38=\"Subscriber\",'Enrollment Form'!$C38=\"Enroll\",'Enrollment Form'!$AK38<>\"\"),\"Y\",\"N\")))","v":""},{"$f":"IF($B31=\"N\",\"\",IF(OR('Enrollment Form'!$B38<>\"Subscriber\",'Enrollment Form'!$C38=\"ROC\"),\"-\",IF(AND('Enrollment Form'!$B38=\"Subscriber\",'Enrollment Form'!$C38=\"Enroll\",'Enrollment Form'!$AL38<>\"\"),\"Y\",\"N\")))","v":""},{"$f":"IF($B31=\"N\",\"\",IF(OR('Enrollment Form'!$B38<>\"Subscriber\",'Enrollment Form'!$C38=\"ROC\"),\"-\",IF(AND('Enrollment Form'!$B38=\"Subscriber\",'Enrollment Form'!$C38=\"Enroll\",'Enrollment Form'!$AM38<>\"\"),\"Y\",\"N\")))","v":""},{"$f":"IF($B31=\"N\",\"\",IF(OR('Enrollment Form'!$B38<>\"Subscriber\",'Enrollment Form'!$C38=\"ROC\"),\"-\",IF(AND('Enrollment Form'!$B38=\"Subscriber\",'Enrollment Form'!$C38=\"Enroll\",'Enrollment Form'!$AN38<>\"\"),\"Y\",\"N\")))","v":""},{"$f":"IF($B31=\"N\",\"\",IF(OR('Enrollment Form'!$B38<>\"Subscriber\",'Enrollment Form'!$C38=\"ROC\"),\"-\",IF(AND('Enrollment Form'!$B38=\"Subscriber\",'Enrollment Form'!$C38=\"Enroll\",'Enrollment Form'!$AP38<>\"\"),\"Y\",\"N\")))","v":""},{"$f":"IF($B31=\"N\",\"\",IF($Q31=\"-\",\"-\",IF(AND($Q31=\"Y\",'Enrollment Form'!$AP38=\"No\"),\"-\",IF(AND($Q31=\"Y\",'Enrollment Form'!$AP38=\"Yes\",'Enrollment Form'!$AQ38<>\"\"),\"Y\",\"N\"))))","v":""},{"$f":"IF($B31=\"N\",\"\",IF(OR('Enrollment Form'!$B38<>\"Subscriber\",'Enrollment Form'!$C38=\"ROC\"),\"-\",IF(AND('Enrollment Form'!$B38=\"Subscriber\",'Enrollment Form'!$C38=\"Enroll\",'Enrollment Form'!$CO38<>\"\"),\"Y\",\"N\")))","v":""},{"$f":"IF($B31=\"N\",\"\",IF($S31=\"-\",\"-\",IF(AND($S31=\"Y\",'Enrollment Form'!$CO38=\"No\"),\"-\",IF(AND($S31=\"Y\",'Enrollment Form'!$CO38=\"Yes\",'Enrollment Form'!$CP38<>\"\"),\"Y\",\"N\"))))","v":""},{"$f":"IF(OR('Enrollment Form'!$AV38=\"Yes\",'Enrollment Form'!$AV38=\"\"),\"-\",IF(AND('Enrollment Form'!$AV38=\"No\",ISERROR(FIND(\"HMO\",VLOOKUP('Enrollment Form'!G38,'Enrollment Form'!H$11:J$1000,3,FALSE),1))=FALSE,COUNTA('Enrollment Form'!$AW38:$AZ38)=4),\"Y\",\"N\"))","v":"-"},{"$f":"IF($B31=\"N\",\"\",IF('Enrollment Form'!$B38=\"Subscriber\",\"-\",IF(COUNTA('Enrollment Form'!$BE38,'Enrollment Form'!$BG38)=2,\"Y\",\"N\")))","v":""},{"$f":"IF($B31=\"N\",\"\",IF(OR('Enrollment Form'!$AU38=\"\",'Enrollment Form'!$AU38=\"No\"),\"-\",IF(AND('Enrollment Form'!$AU38=\"Yes\",COUNTA('Enrollment Form'!$CK38)=1),\"Y\",\"N\")))","v":""},{"$f":"IF(OR('Enrollment Form'!$CK38=\"\",'Enrollment Form'!$CK38=\"No\"),\"-\",IF(COUNTA('Enrollment Form'!$CM38:$CN38)=2,\"Y\",\"N\"))","v":"-"},{"$f":"IF($B31=\"N\",\"\",IF(COUNTIF('Enrollment Form'!$CZ38:$DO38,\"Other\")=COUNTA('Enrollment Form'!$DF38,'Enrollment Form'!$DA38,'Enrollment Form'!$DK38,'Enrollment Form'!$DP38),\"Y\",\"N\"))","v":""},{"$f":"IF($B31=\"N\",\"\",IF(OR('Enrollment Form'!B38<>\"Subscriber\",'Enrollment Form'!C38=\"ROC\",COUNTIF('Enrollment Form'!AS38:AT38,\"Yes\")>=1),\"-\",IF(AND('Enrollment Form'!C38=\"Enroll\",COUNTIF('Enrollment Form'!AS38:AT38,\"No\")=2,'Enrollment Form'!AU38=\"\"),\"N\",\"Y\")))","v":""},{"$f":"IF(OR(B31=\"N\",'Enrollment Form'!B38<>\"Subscriber\",'Enrollment Form'!C38=\"ROC\",'Enrollment Form'!O38<>\"Multiple of Salary\"),\"-\",IF(COUNTA('Enrollment Form'!T38:U38)<2,\"N\",\"Y\"))","v":"-"},{"$f":"IF(B31=\"N\",\"\",IF(OR('Enrollment Form'!C38=\"ROC\",'Enrollment Form'!B38<>\"Subscriber\",'Enrollment Form'!O38=\"Waive\",'Enrollment Form'!O38=\"\"),\"-\",IF('Enrollment Form'!P38=\"\",\"N\",\"Y\")))","v":""},{"$f":"IF($B31=\"N\",\"\",IF(AND('Enrollment Form'!$C38=\"ROC\",'Enrollment Form'!$DS38<>\"\"),\"Y\",IF(AND('Enrollment Form'!$C38=\"ROC\",'Enrollment Form'!$DS38=\"\"),\"N\",IF(AND('Enrollment Form'!$C38=\"Enroll\",'Enrollment Form'!$B38=\"Subscriber\",'Enrollment Form'!$CQ38=\"No\",'Enrollment Form'!$DS38=\"\"),\"N\",IF(AND('Enrollment Form'!$C38=\"Enroll\",'Enrollment Form'!$B38=\"Subscriber\",'Enrollment Form'!$CQ38=\"Yes\"),\"-\",\"Y\")))))","v":""},{"$f":"IF($B31=\"N\",\"\",IF(AND('Enrollment Form'!$C38=\"ROC\",'Enrollment Form'!$DT38<>\"\"),\"Y\",IF(AND('Enrollment Form'!$C38=\"ROC\",'Enrollment Form'!$DT38=\"\"),\"N\",IF(AND('Enrollment Form'!$C38=\"Enroll\",'Enrollment Form'!$B38=\"Subscriber\",'Enrollment Form'!$CQ38=\"No\",'Enrollment Form'!$DT38=\"\"),\"N\",IF(AND('Enrollment Form'!$C38=\"Enroll\",'Enrollment Form'!$B38=\"Subscriber\",'Enrollment Form'!$CQ38=\"Yes\"),\"-\",\"Y\")))))","v":""},{"$f":"IF('Enrollment Form'!AH38=\"\",\"\",IF(ISERROR(SEARCH(\".\",'Enrollment Form'!AH38,SEARCH(\"@\",'Enrollment Form'!AH38))),\"N\",\"Y\"))","v":""},{"$f":"IF(OR($B31=\"N\",'Enrollment Form'!$G38=\"\"),\"\",IF('Enrollment Form'!$B38<>\"Subscriber\",\"-\",IF(COUNTIF('Enrollment Form'!$AS38:$AT38,\"Yes\")=2,\"N\",\"Y\")))","v":""},{"$f":"IF(OR('Enrollment Form'!$CC38=\"\",'Enrollment Form'!$CC38=\"No\"),\"-\",IF(AND('Enrollment Form'!$CC38=\"Yes\",'Enrollment Form'!$CD38=\"\"),\"N\",\"Y\"))","v":"-"},{"$f":"IF(OR('Enrollment Form'!$CE38=\"\",'Enrollment Form'!$CE38=\"No\"),\"-\",IF(AND('Enrollment Form'!$CE38=\"Yes\",'Enrollment Form'!$CF38=\"\"),\"N\",\"Y\"))","v":"-"},{"$f":"IF(OR('Enrollment Form'!$CG38=\"\",'Enrollment Form'!$CG38=\"No\"),\"-\",IF(AND('Enrollment Form'!$CG38=\"Yes\",'Enrollment Form'!$CH38=\"\"),\"N\",\"Y\"))","v":"-"},{"$f":"IF(OR('Enrollment Form'!$CG38=\"\",'Enrollment Form'!$CG38=\"No\"),\"-\",IF(AND('Enrollment Form'!$CG38=\"Yes\",'Enrollment Form'!$CI38=\"\"),\"N\",\"Y\"))","v":"-"},{"$f":"IF('Enrollment Form'!B38<>\"Subscriber\",\"-\",IF(AND('Enrollment Form'!B38=\"Subscriber\",'Enrollment Form'!C38=\"Enroll\",'Enrollment Form'!AA38=\"\"),\"N\",\"Y\"))","v":"-"},{"$f":"IF(OR('Enrollment Form'!B38=\"Subscriber\",'Enrollment Form'!B38=\"\"),\"-\",IF('Enrollment Form'!BI38=\"\",\"N\",\"Y\"))","v":"-"},{"$f":"IF('Enrollment Form'!B38<>\"Subscriber\",\"-\",IF(AND('Enrollment Form'!B38=\"Subscriber\",'Enrollment Form'!G38=\"\"),\"N\",\"Y\"))","v":"-"},{"$f":"IF('Enrollment Form'!A38=\"\",\"\",IF('Enrollment Form'!B38=\"Subscriber\",\"-\",IF(AND('Enrollment Form'!B38<>\"Subscriber\",'Enrollment Form'!G38='Enrollment Form'!H38),\"N\",\"Y\")))","v":""},0,{"$nulls":6},"28","Sub ROC Signature filled?","If Application Type = \"ROC\" then ROC Signature of Employee must be populated","DS"]
[39,{"$f":"IF('Enrollment Form'!$A39<>\"\",\"Y\",\"N\")","v":"N"},{"$f":"IF(AND('Enrollment Form'!$B39=\"\",'Enrollment Form'!$C39<>\"\"),\"N\",IF($B32=\"N\",\"\",\"Y\"))","v":""},{"$f":"IF(OR($B32=\"N\",'Enrollment Form'!G39=\"\"),\"\",IF('Enrollment Form'!$B39<>\"Subscriber\",\"\",IF('Enrollment Form'!$G39='Enrollment Form'!$H39,\"Y\",\"N\")))","v":""},{"$f":"IF($B32=\"N\",\"\",IF(AND(COUNTIFS('Enrollment Form'!$H$11:$H$1000,'Enrollment Form'!$H39,'Enrollment Form'!$B$11:$B$1000,'Enrollment Form'!$B39)>1,'Enrollment Form'!$H39<>\"\"),\"N\",\"Y\"))","v":""},{"$f":"IF($B32=\"N\",\"\",IF(LEN('Enrollment Form'!$Y39)=0,\"\",IF(LEN('Enrollment Form'!$Y39)<>5,\"N\",\"Y\")))","v":""},{"$f":"IF($B32=\"N\",\"\",IF(LEN('Enrollment Form'!$AD39=0),\"\",IF(LEN('Enrollment Form'!$AD39)<>5,\"N\",\"Y\")))","v":""},{"$f":"IF($B32=\"N\",\"\",IF(LEN('Enrollment Form'!$BL39=0),\"\",IF(LEN('Enrollment Form'!$BL39)<>5,\"N\",\"Y\")))","v":""},{"$f":"IF($B32=\"N\",\"\",IF(LEN('Enrollment Form'!$AE39)=0,\"\",IF(LEN('Enrollment Form'!$AE39)<>10,\"N\",\"Y\")))","v":""},{"$f":"IF($B32=\"N\",\"\",IF(LEN('Enrollment Form'!$AF39)=0,\"\",IF(LEN('Enrollment Form'!$AF39)<>10,\"N\",\"Y\")))","v":""},{"$f":"IF('Enrollment Form'!$O39<>\"Graded\",\"-\",IF(AND('Enrollment Form'!$O39=\"Graded\",'Enrollment Form'!$AO39<>\"\"),\"Y\",\"N\"))","v":"-"},{"$f":"IF($B32=\"N\",\"\",IF(OR('Enrollment Form'!$B39<>\"Subscriber\",'Enrollment Form'!$C39=\"ROC\"),\"-\",IF(AND('Enrollment Form'!$B39=\"Subscriber\",'Enrollment Form'!$C39=\"Enroll\",'Enrollment Form'!$AJ39<>\"\"),\"Y\",\"N\")))","v":""},{"$f":"IF($B32=\"N\",\"\",IF(OR('Enrollment Form'!$B39<>\"Subscriber\",'Enrollment Form'!$C39=\"ROC\"),\"-\",IF(AND('Enrollment Form'!$B39=\"Subscriber\",'Enrollment Form'!$C39=\"Enroll\",'Enrollment Form'!$AK39<>\"\"),\"Y\",\"N\")))","v":""},{"$f":"IF($B32=\"N\",\"\",IF(OR('Enrollment Form'!$B39<>\"Subscriber\",'Enrollment Form'!$C39=\"ROC\"),\"-\",IF(AND('Enrollment Form'!$B39=\"Subscriber\",'Enrollment Form'!$C39=\"Enroll\",'Enrollment Form'!$AL39<>\"\"),\"Y\",\"N\")))","v":""},{"$f":"IF($B32=\"N\",\"\",IF(OR('Enrollment Form'!$B39<>\"Subscriber\",'Enrollment Form'!$C39=\"ROC\"),\"-\",IF(AND('Enrollment Form'!$B39=\"Subscriber\",'Enrollment Form'!$C39=\"Enroll\",'Enrollment Form'!$AM39<>\"\"),\"Y\",\"N\")))","v":""},{"$f":"IF($B32=\"N\",\"\",IF(OR('Enrollment Form'!$B39<>\"Subscriber\",'Enrollment Form'!$C39=\"ROC\"),\"-\",IF(AND('Enrollment Form'!$B39=\"Subscriber\",'Enrollment Form'!$C39=\"Enroll\",'Enrollment Form'!$AN39<>\"\"),\"Y\",\"N\")))","v":""},{"$f":"IF($B32=\"N\",\"\",IF(OR('Enrollment Form'!$B39<>\"Subscriber\",'Enrollment Form'!$C39=\"ROC\"),\"-\",IF(AND('Enrollment Form'!$B39=\"Subscriber\",'Enrollment Form'!$C39=\"Enroll\",'Enrollment Form'!$AP39<>\"\"),\"Y\",\"N\")))","v":""},{"$f":"IF($B32=\"N\",\"\",IF($Q32=\"-\",\"-\",IF(AND($Q32=\"Y\",'Enrollment Form'!$AP39=\"No\"),\"-\",IF(AND($Q32=\"Y\",'Enrollment Form'!$AP39=\"Yes\",'Enrollment Form'!$AQ39<>\"\"),\"Y\",\"N\"))))","v":""},{"$f":"IF($B32=\"N\",\"\",IF(OR('Enrollment Form'!$B39<>\"Subscriber\",'Enrollment Form'!$C39=\"ROC\"),\"-\",IF(AND('Enrollment Form'!$B39=\"Subscriber\",'Enrollment Form'!$C39=\"Enroll\",'Enrollment Form'!$CO39<>\"\"),\"Y\",\"N\")))","v":""},{"$f":"IF($B32=\"N\",\"\",IF($S32=\"-\",\"-\",IF(AND($S32=\"Y\",'Enrollment Form'!$CO39=\"No\"),\"-\",IF(AND($S32=\"Y\",'Enrollment Form'!$CO39=\"Yes\",'Enrollment Form'!$CP39<>\"\"),\"Y\",\"N\"))))","v":""},{"$f":"IF(OR('Enrollment Form'!$AV39=\"Yes\",'Enrollment Form'!$AV39=\"\"),\"-\",IF(AND('Enrollment Form'!$AV39=\"No\",ISERROR(FIND(\"HMO\",VLOOKUP('Enrollment Form'!G39,'Enrollment Form'!H$11:J$1000,3,FALSE),1))=FALSE,COUNTA('Enrollment Form'!$AW39:$AZ39)=4),\"Y\",\"N\"))","v":"-"},{"$f":"IF($B32=\"N\",\"\",IF('Enrollment Form'!$B39=\"Subscriber\",\"-\",IF(COUNTA('Enrollment Form'!$BE39,'Enrollment Form'!$BG39)=2,\"Y\",\"N\")))","v":""},{"$f":"IF($B32=\"N\",\"\",IF(OR('Enrollment Form'!$AU39=\"\",'Enrollment Form'!$AU39=\"No\"),\"-\",IF(AND('Enrollment Form'!$AU39=\"Yes\",COUNTA('Enrollment Form'!$CK39)=1),\"Y\",\"N\")))","v":""},{"$f":"IF(OR('Enrollment Form'!$CK39=\"\",'Enrollment Form'!$CK39=\"No\"),\"-\",IF(COUNTA('Enrollment Form'!$CM39:$CN39)=2,\"Y\",\"N\"))","v":"-"},{"$f":"IF($B32=\"N\",\"\",IF(COUNTIF('Enrollment Form'!$CZ39:$DO39,\"Other\")=COUNTA('Enrollment Form'!$DF39,'Enrollment Form'!$DA39,'Enrollment Form'!$DK39,'Enrollment Form'!$DP39),\"Y\",\"N\"))","v":""},{"$f":"IF($B32=\"N\",\"\",IF(OR('Enrollment Form'!B39<>\"Subscriber\",'Enrollment Form'!C39=\"ROC\",COUNTIF('Enrollment Form'!AS39:AT39,\"Yes\")>=1),\"-\",IF(AND('Enrollment Form'!C39=\"Enroll\",COUNTIF('Enrollment Form'!AS39:AT39,\"No\")=2,'Enrollment Form'!AU39=\"\"),\"N\",\"Y\")))","v":""},{"$f":"IF(OR(B32=\"N\",'Enrollment Form'!B39<>\"Subscriber\",'Enrollment Form'!C39=\"ROC\",'Enrollment Form'!O39<>\"Multiple of Salary\"),\"-\",IF(COUNTA('Enrollment Form'!T39:U39)<2,\"N\",\"Y\"))","v":"-"},{"$f":"IF(B32=\"N\",\"\",IF(OR('Enrollment Form'!C39=\"ROC\",'Enrollment Form'!B39<>\"Subscriber\",'Enrollment Form'!O39=\"Waive\",'Enrollment Form'!O39=\"\"),\"-\",IF('Enrollment Form'!P39=\"\",\"N\",\"Y\")))","v":""},{"$f":"IF($B32=\"N\",\"\",IF(AND('Enrollment Form'!$C39=\"ROC\",'Enrollment Form'!$DS39<>\"\"),\"Y\",IF(AND('Enrollment Form'!$C39=\"ROC\",'Enrollment Form'!$DS39=\"\"),\"N\",IF(AND('Enrollment Form'!$C39=\"Enroll\",'Enrollment Form'!$B39=\"Subscriber\",'Enrollment Form'!$CQ39=\"No\",'Enrollment Form'!$DS39=\"\"),\"N\",IF(AND('Enrollment Form'!$C39=\"Enroll\",'Enrollment Form'!$B39=\"Subscriber\",'Enrollment Form'!$CQ39=\"Yes\"),\"-\",\"Y\")))))","v":""},{"$f":"IF($B32=\"N\",\"\",IF(AND('Enrollment Form'!$C39=\"ROC\",'Enrollment Form'!$DT39<>\"\"),\"Y\",IF(AND('Enrollment Form'!$C39=\"ROC\",'Enrollment Form'!$DT39=\"\"),\"N\",IF(AND('Enrollment Form'!$C39=\"Enroll\",'Enrollment Form'!$B39=\"Subscriber\",'Enrollment Form'!$CQ39=\"No\",'Enrollment Form'!$DT39=\"\"),\"N\",IF(AND('Enrollment Form'!$C39=\"Enroll\",'Enrollment Form'!$B39=\"Subscriber\",'Enrollment Form'!$CQ39=\"Yes\"),\"-\",\"Y\")))))","v":""},{"$f":"IF('Enrollment Form'!AH39=\"\",\"\",IF(ISERROR(SEARCH(\".\",'Enrollment Form'!AH39,SEARCH(\"@\",'Enrollment Form'!AH39))),\"N\",\"Y\"))","v":""},{"$f":"IF(OR($B32=\"N\",'Enrollment Form'!$G39=\"\"),\"\",IF('Enrollment Form'!$B39<>\"Subscriber\",\"-\",IF(COUNTIF('Enrollment Form'!$AS39:$AT39,\"Yes\")=2,\"N\",\"Y\")))","v":""},{"$f":"IF(OR('Enrollment Form'!$CC39=\"\",'Enrollment Form'!$CC39=\"No\"),\"-\",IF(AND('Enrollment Form'!$CC39=\"Yes\",'Enrollment Form'!$CD39=\"\"),\"N\",\"Y\"))","v":"-"},{"$f":"IF(OR('Enrollment Form'!$CE39=\"\",'Enrollment Form'!$CE39=\"No\"),\"-\",IF(AND('Enrollment Form'!$CE39=\"Yes\",'Enrollment Form'!$CF39=\"\"),\"N\",\"Y\"))","v":"-"},{"$f":"IF(OR('Enrollment Form'!$CG39=\"\",'Enrollment Form'!$CG39=\"No\"),\"-\",IF(AND('Enrollment Form'!$CG39=\"Yes\",'Enrollment Form'!$CH39=\"\"),\"N\",\"Y\"))","v":"-"},{"$f":"IF(OR('Enrollment Form'!$CG39=\"\",'Enrollment Form'!$CG39=\"No\"),\"-\",IF(AND('Enrollment Form'!$CG39=\"Yes\",'Enrollment Form'!$CI39=\"\"),\"N\",\"Y\"))","v":"-"},{"$f":"IF('Enrollment Form'!B39<>\"Subscriber\",\"-\",IF(AND('Enrollment Form'!B39=\"Subscriber\",'Enrollment Form'!C39=\"Enroll\",'Enrollment Form'!AA39=\"\"),\"N\",\"Y\"))","v":"-"},{"$f":"IF(OR('Enrollment Form'!B39=\"Subscriber\",'Enrollment Form'!B39=\"\"),\"-\",IF('Enrollment Form'!BI39=\"\",\"N\",\"Y\"))","v":"-"},{"$f":"IF('Enrollment Form'!B39<>\"Subscriber\",\"-\",IF(AND('Enrollment Form'!B39=\"Subscriber\",'Enrollment Form'!G39=\"\"),\"N\",\"Y\"))","v":"-"},{"$f":"IF('Enrollment Form'!A39=\"\",\"\",IF('Enrollment Form'!B39=\"Subscriber\",\"-\",IF(AND('Enrollment Form'!B39<>\"Subscriber\",'Enrollment Form'!G39='Enrollment Form'!H39),\"N\",\"Y\")))","v":""},0,{"$nulls":6},"29","Sub ROC Signature Date filled?","If Application Type = \"ROC\" then Signature Date must be populated","DT"]
[40,{"$f":"IF('Enrollment Form'!$A40<>\"\",\"Y\",\"N\")","v":"N"},{"$f":"IF(AND('Enrollment Form'!$B40=\"\",'Enrollment Form'!$C40<>\"\"),\"N\",IF($B33=\"N\",\"\",\"Y\"))","v":""},{"$f":"IF(OR($B33=\"N\",'Enrollment Form'!G40=\"\"),\"\",IF('Enrollment Form'!$B40<>\"Subscriber\",\"\",IF('Enrollment Form'!$G40='Enrollment Form'!$H40,\"Y\",\"N\")))","v":""},{"$f":"IF($B33=\"N\",\"\",IF(AND(COUNTIFS('Enrollment Form'!$H$11:$H$1000,'Enrollment Form'!$H40,'Enrollment Form'!$B$11:$B$1000,'Enrollment Form'!$B40)>1,'Enrollment Form'!$H40<>\"\"),\"N\",\"Y\"))","v":""},{"$f":"IF($B33=\"N\",\"\",IF(LEN('Enrollment Form'!$Y40)=0,\"\",IF(LEN('Enrollment Form'!$Y40)<>5,\"N\",\"Y\")))","v":""},{"$f":"IF($B33=\"N\",\"\",IF(LEN('Enrollment Form'!$AD40=0),\"\",IF(LEN('Enrollment Form'!$AD40)<>5,\"N\",\"Y\")))","v":""},{"$f":"IF($B33=\"N\",\"\",IF(LEN('Enrollment Form'!$BL40=0),\"\",IF(LEN('Enrollment Form'!$BL40)<>5,\"N\",\"Y\")))","v":""},{"$f":"IF($B33=\"N\",\"\",IF(LEN('Enrollment Form'!$AE40)=0,\"\",IF(LEN('Enrollment Form'!$AE40)<>10,\"N\",\"Y\")))","v":""},{"$f":"IF($B33=\"N\",\"\",IF(LEN('Enrollment Form'!$AF40)=0,\"\",IF(LEN('Enrollment Form'!$AF40)<>10,\"N\",\"Y\")))","v":""},{"$f":"IF('Enrollment Form'!$O40<>\"Graded\",\"-\",IF(AND('Enrollment Form'!$O40=\"Graded\",'Enrollment Form'!$AO40<>\"\"),\"Y\",\"N\"))","v":"-"},{"$f":"IF($B33=\"N\",\"\",IF(OR('Enrollment Form'!$B40<>\"Subscriber\",'Enrollment Form'!$C40=\"ROC\"),\"-\",IF(AND('Enrollment Form'!$B40=\"Subscriber\",'Enrollment Form'!$C40=\"Enroll\",'Enrollment Form'!$AJ40<>\"\"),\"Y\",\"N\")))","v":""},{"$f":"IF($B33=\"N\",\"\",IF(OR('Enrollment Form'!$B40<>\"Subscriber\",'Enrollment Form'!$C40=\"ROC\"),\"-\",IF(AND('Enrollment Form'!$B40=\"Subscriber\",'Enrollment Form'!$C40=\"Enroll\",'Enrollment Form'!$AK40<>\"\"),\"Y\",\"N\")))","v":""},{"$f":"IF($B33=\"N\",\"\",IF(OR('Enrollment Form'!$B40<>\"Subscriber\",'Enrollment Form'!$C40=\"ROC\"),\"-\",IF(AND('Enrollment Form'!$B40=\"Subscriber\",'Enrollment Form'!$C40=\"Enroll\",'Enrollment Form'!$AL40<>\"\"),\"Y\",\"N\")))","v":""},{"$f":"IF($B33=\"N\",\"\",IF(OR('Enrollment Form'!$B40<>\"Subscriber\",'Enrollment Form'!$C40=\"ROC\"),\"-\",IF(AND('Enrollment Form'!$B40=\"Subscriber\",'Enrollment Form'!$C40=\"Enroll\",'Enrollment Form'!$AM40<>\"\"),\"Y\",\"N\")))","v":""},{"$f":"IF($B33=\"N\",\"\",IF(OR('Enrollment Form'!$B40<>\"Subscriber\",'Enrollment Form'!$C40=\"ROC\"),\"-\",IF(AND('Enrollment Form'!$B40=\"Subscriber\",'Enrollment Form'!$C40=\"Enroll\",'Enrollment Form'!$AN40<>\"\"),\"Y\",\"N\")))","v":""},{"$f":"IF($B33=\"N\",\"\",IF(OR('Enrollment Form'!$B40<>\"Subscriber\",'Enrollment Form'!$C40=\"ROC\"),\"-\",IF(AND('Enrollment Form'!$B40=\"Subscriber\",'Enrollment Form'!$C40=\"Enroll\",'Enrollment Form'!$AP40<>\"\"),\"Y\",\"N\")))","v":""},{"$f":"IF($B33=\"N\",\"\",IF($Q33=\"-\",\"-\",IF(AND($Q33=\"Y\",'Enrollment Form'!$AP40=\"No\"),\"-\",IF(AND($Q33=\"Y\",'Enrollment Form'!$AP40=\"Yes\",'Enrollment Form'!$AQ40<>\"\"),\"Y\",\"N\"))))","v":""},{"$f":"IF($B33=\"N\",\"\",IF(OR('Enrollment Form'!$B40<>\"Subscriber\",'Enrollment Form'!$C40=\"ROC\"),\"-\",IF(AND('Enrollment Form'!$B40=\"Subscriber\",'Enrollment Form'!$C40=\"Enroll\",'Enrollment Form'!$CO40<>\"\"),\"Y\",\"N\")))","v":""},{"$f":"IF($B33=\"N\",\"\",IF($S33=\"-\",\"-\",IF(AND($S33=\"Y\",'Enrollment Form'!$CO40=\"No\"),\"-\",IF(AND($S33=\"Y\",'Enrollment Form'!$CO40=\"Yes\",'Enrollment Form'!$CP40<>\"\"),\"Y\",\"N\"))))","v":""},{"$f":"IF(OR('Enrollment Form'!$AV40=\"Yes\",'Enrollment Form'!$AV40=\"\"),\"-\",IF(AND('Enrollment Form'!$AV40=\"No\",ISERROR(FIND(\"HMO\",VLOOKUP('Enrollment Form'!G40,'Enrollment Form'!H$11:J$1000,3,FALSE),1))=FALSE,COUNTA('Enrollment Form'!$AW40:$AZ40)=4),\"Y\",\"N\"))","v":"-"},{"$f":"IF($B33=\"N\",\"\",IF('Enrollment Form'!$B40=\"Subscriber\",\"-\",IF(COUNTA('Enrollment Form'!$BE40,'Enrollment Form'!$BG40)=2,\"Y\",\"N\")))","v":""},{"$f":"IF($B33=\"N\",\"\",IF(OR('Enrollment Form'!$AU40=\"\",'Enrollment Form'!$AU40=\"No\"),\"-\",IF(AND('Enrollment Form'!$AU40=\"Yes\",COUNTA('Enrollment Form'!$CK40)=1),\"Y\",\"N\")))","v":""},{"$f":"IF(OR('Enrollment Form'!$CK40=\"\",'Enrollment Form'!$CK40=\"No\"),\"-\",IF(COUNTA('Enrollment Form'!$CM40:$CN40)=2,\"Y\",\"N\"))","v":"-"},{"$f":"IF($B33=\"N\",\"\",IF(COUNTIF('Enrollment Form'!$CZ40:$DO40,\"Other\")=COUNTA('Enrollment Form'!$DF40,'Enrollment Form'!$DA40,'Enrollment Form'!$DK40,'Enrollment Form'!$DP40),\"Y\",\"N\"))","v":""},{"$f":"IF($B33=\"N\",\"\",IF(OR('Enrollment Form'!B40<>\"Subscriber\",'Enrollment Form'!C40=\"ROC\",COUNTIF('Enrollment Form'!AS40:AT40,\"Yes\")>=1),\"-\",IF(AND('Enrollment Form'!C40=\"Enroll\",COUNTIF('Enrollment Form'!AS40:AT40,\"No\")=2,'Enrollment Form'!AU40=\"\"),\"N\",\"Y\")))","v":""},{"$f":"IF(OR(B33=\"N\",'Enrollment Form'!B40<>\"Subscriber\",'Enrollment Form'!C40=\"ROC\",'Enrollment Form'!O40<>\"Multiple of Salary\"),\"-\",IF(COUNTA('Enrollment Form'!T40:U40)<2,\"N\",\"Y\"))","v":"-"},{"$f":"IF(B33=\"N\",\"\",IF(OR('Enrollment Form'!C40=\"ROC\",'Enrollment Form'!B40<>\"Subscriber\",'Enrollment Form'!O40=\"Waive\",'Enrollment Form'!O40=\"\"),\"-\",IF('Enrollment Form'!P40=\"\",\"N\",\"Y\")))","v":""},{"$f":"IF($B33=\"N\",\"\",IF(AND('Enrollment Form'!$C40=\"ROC\",'Enrollment Form'!$DS40<>\"\"),\"Y\",IF(AND('Enrollment Form'!$C40=\"ROC\",'Enrollment Form'!$DS40=\"\"),\"N\",IF(AND('Enrollment Form'!$C40=\"Enroll\",'Enrollment Form'!$B40=\"Subscriber\",'Enrollment Form'!$CQ40=\"No\",'Enrollment Form'!$DS40=\"\"),\"N\",IF(AND('Enrollment Form'!$C40=\"Enroll\",'Enrollment Form'!$B40=\"Subscriber\",'Enrollment Form'!$CQ40=\"Yes\"),\"-\",\"Y\")))))","v":""},{"$f":"IF($B33=\"N\",\"\",IF(AND('Enrollment Form'!$C40=\"ROC\",'Enrollment Form'!$DT40<>\"\"),\"Y\",IF(AND('Enrollment Form'!$C40=\"ROC\",'Enrollment Form'!$DT40=\"\"),\"N\",IF(AND('Enrollment Form'!$C40=\"Enroll\",'Enrollment Form'!$B40=\"Subscriber\",'Enrollment Form'!$CQ40=\"No\",'Enrollment Form'!$DT40=\"\"),\"N\",IF(AND('Enrollment Form'!$C40=\"Enroll\",'Enrollment Form'!$B40=\"Subscriber\",'Enrollment Form'!$CQ40=\"Yes\"),\"-\",\"Y\")))))","v":""},{"$f":"IF('Enrollment Form'!AH40=\"\",\"\",IF(ISERROR(SEARCH(\".\",'Enrollment Form'!AH40,SEARCH(\"@\",'Enrollment Form'!AH40))),\"N\",\"Y\"))","v":""},{"$f":"IF(OR($B33=\"N\",'Enrollment Form'!$G40=\"\"),\"\",IF('Enrollment Form'!$B40<>\"Subscriber\",\"-\",IF(COUNTIF('Enrollment Form'!$AS40:$AT40,\"Yes\")=2,\"N\",\"Y\")))","v":""},{"$f":"IF(OR('Enrollment Form'!$CC40=\"\",'Enrollment Form'!$CC40=\"No\"),\"-\",IF(AND('Enrollment Form'!$CC40=\"Yes\",'Enrollment Form'!$CD40=\"\"),\"N\",\"Y\"))","v":"-"},{"$f":"IF(OR('Enrollment Form'!$CE40=\"\",'Enrollment Form'!$CE40=\"No\"),\"-\",IF(AND('Enrollment Form'!$CE40=\"Yes\",'Enrollment Form'!$CF40=\"\"),\"N\",\"Y\"))","v":"-"},{"$f":"IF(OR('Enrollment Form'!$CG40=\"\",'Enrollment Form'!$CG40=\"No\"),\"-\",IF(AND('Enrollment Form'!$CG40=\"Yes\",'Enrollment Form'!$CH40=\"\"),\"N\",\"Y\"))","v":"-"},{"$f":"IF(OR('Enrollment Form'!$CG40=\"\",'Enrollment Form'!$CG40=\"No\"),\"-\",IF(AND('Enrollment Form'!$CG40=\"Yes\",'Enrollment Form'!$CI40=\"\"),\"N\",\"Y\"))","v":"-"},{"$f":"IF('Enrollment Form'!B40<>\"Subscriber\",\"-\",IF(AND('Enrollment Form'!B40=\"Subscriber\",'Enrollment Form'!C40=\"Enroll\",'Enrollment Form'!AA40=\"\"),\"N\",\"Y\"))","v":"-"},{"$f":"IF(OR('Enrollment Form'!B40=\"Subscriber\",'Enrollment Form'!B40=\"\"),\"-\",IF('Enrollment Form'!BI40=\"\",\"N\",\"Y\"))","v":"-"},{"$f":"IF('Enrollment Form'!B40<>\"Subscriber\",\"-\",IF(AND('Enrollment Form'!B40=\"Subscriber\",'Enrollment Form'!G40=\"\"),\"N\",\"Y\"))","v":"-"},{"$f":"IF('Enrollment Form'!A40=\"\",\"\",IF('Enrollment Form'!B40=\"Subscriber\",\"-\",IF(AND('Enrollment Form'!B40<>\"Subscriber\",'Enrollment Form'!G40='Enrollment Form'!H40),\"N\",\"Y\")))","v":""},0,{"$nulls":6},"30","Correct email format?","E-mail format must contain an \"@\" and a \".\"","AH"]
[41,{"$f":"IF('Enrollment Form'!$A41<>\"\",\"Y\",\"N\")","v":"N"},{"$f":"IF(AND('Enrollment Form'!$B41=\"\",'Enrollment Form'!$C41<>\"\"),\"N\",IF($B34=\"N\",\"\",\"Y\"))","v":""},{"$f":"IF(OR($B34=\"N\",'Enrollment Form'!G41=\"\"),\"\",IF('Enrollment Form'!$B41<>\"Subscriber\",\"\",IF('Enrollment Form'!$G41='Enrollment Form'!$H41,\"Y\",\"N\")))","v":""},{"$f":"IF($B34=\"N\",\"\",IF(AND(COUNTIFS('Enrollment Form'!$H$11:$H$1000,'Enrollment Form'!$H41,'Enrollment Form'!$B$11:$B$1000,'Enrollment Form'!$B41)>1,'Enrollment Form'!$H41<>\"\"),\"N\",\"Y\"))","v":""},{"$f":"IF($B34=\"N\",\"\",IF(LEN('Enrollment Form'!$Y41)=0,\"\",IF(LEN('Enrollment Form'!$Y41)<>5,\"N\",\"Y\")))","v":""},{"$f":"IF($B34=\"N\",\"\",IF(LEN('Enrollment Form'!$AD41=0),\"\",IF(LEN('Enrollment Form'!$AD41)<>5,\"N\",\"Y\")))","v":""},{"$f":"IF($B34=\"N\",\"\",IF(LEN('Enrollment Form'!$BL41=0),\"\",IF(LEN('Enrollment Form'!$BL41)<>5,\"N\",\"Y\")))","v":""},{"$f":"IF($B34=\"N\",\"\",IF(LEN('Enrollment Form'!$AE41)=0,\"\",IF(LEN('Enrollment Form'!$AE41)<>10,\"N\",\"Y\")))","v":""},{"$f":"IF($B34=\"N\",\"\",IF(LEN('Enrollment Form'!$AF41)=0,\"\",IF(LEN('Enrollment Form'!$AF41)<>10,\"N\",\"Y\")))","v":""},{"$f":"IF('Enrollment Form'!$O41<>\"Graded\",\"-\",IF(AND('Enrollment Form'!$O41=\"Graded\",'Enrollment Form'!$AO41<>\"\"),\"Y\",\"N\"))","v":"-"},{"$f":"IF($B34=\"N\",\"\",IF(OR('Enrollment Form'!$B41<>\"Subscriber\",'Enrollment Form'!$C41=\"ROC\"),\"-\",IF(AND('Enrollment Form'!$B41=\"Subscriber\",'Enrollment Form'!$C41=\"Enroll\",'Enrollment Form'!$AJ41<>\"\"),\"Y\",\"N\")))","v":""},{"$f":"IF($B34=\"N\",\"\",IF(OR('Enrollment Form'!$B41<>\"Subscriber\",'Enrollment Form'!$C41=\"ROC\"),\"-\",IF(AND('Enrollment Form'!$B41=\"Subscriber\",'Enrollment Form'!$C41=\"Enroll\",'Enrollment Form'!$AK41<>\"\"),\"Y\",\"N\")))","v":""},{"$f":"IF($B34=\"N\",\"\",IF(OR('Enrollment Form'!$B41<>\"Subscriber\",'Enrollment Form'!$C41=\"ROC\"),\"-\",IF(AND('Enrollment Form'!$B41=\"Subscriber\",'Enrollment Form'!$C41=\"Enroll\",'Enrollment Form'!$AL41<>\"\"),\"Y\",\"N\")))","v":""},{"$f":"IF($B34=\"N\",\"\",IF(OR('Enrollment Form'!$B41<>\"Subscriber\",'Enrollment Form'!$C41=\"ROC\"),\"-\",IF(AND('Enrollment Form'!$B41=\"Subscriber\",'Enrollment Form'!$C41=\"Enroll\",'Enrollment Form'!$AM41<>\"\"),\"Y\",\"N\")))","v":""},{"$f":"IF($B34=\"N\",\"\",IF(OR('Enrollment Form'!$B41<>\"Subscriber\",'Enrollment Form'!$C41=\"ROC\"),\"-\",IF(AND('Enrollment Form'!$B41=\"Subscriber\",'Enrollment Form'!$C41=\"Enroll\",'Enrollment Form'!$AN41<>\"\"),\"Y\",\"N\")))","v":""},{"$f":"IF($B34=\"N\",\"\",IF(OR('Enrollment Form'!$B41<>\"Subscriber\",'Enrollment Form'!$C41=\"ROC\"),\"-\",IF(AND('Enrollment Form'!$B41=\"Subscriber\",'Enrollment Form'!$C41=\"Enroll\",'Enrollment Form'!$AP41<>\"\"),\"Y\",\"N\")))","v":""},{"$f":"IF($B34=\"N\",\"\",IF($Q34=\"-\",\"-\",IF(AND($Q34=\"Y\",'Enrollment Form'!$AP41=\"No\"),\"-\",IF(AND($Q34=\"Y\",'Enrollment Form'!$AP41=\"Yes\",'Enrollment Form'!$AQ41<>\"\"),\"Y\",\"N\"))))","v":""},{"$f":"IF($B34=\"N\",\"\",IF(OR('Enrollment Form'!$B41<>\"Subscriber\",'Enrollment Form'!$C41=\"ROC\"),\"-\",IF(AND('Enrollment Form'!$B41=\"Subscriber\",'Enrollment Form'!$C41=\"Enroll\",'Enrollment Form'!$CO41<>\"\"),\"Y\",\"N\")))","v":""},{"$f":"IF($B34=\"N\",\"\",IF($S34=\"-\",\"-\",IF(AND($S34=\"Y\",'Enrollment Form'!$CO41=\"No\"),\"-\",IF(AND($S34=\"Y\",'Enrollment Form'!$CO41=\"Yes\",'Enrollment Form'!$CP41<>\"\"),\"Y\",\"N\"))))","v":""},{"$f":"IF(OR('Enrollment Form'!$AV41=\"Yes\",'Enrollment Form'!$AV41=\"\"),\"-\",IF(AND('Enrollment Form'!$AV41=\"No\",ISERROR(FIND(\"HMO\",VLOOKUP('Enrollment Form'!G41,'Enrollment Form'!H$11:J$1000,3,FALSE),1))=FALSE,COUNTA('Enrollment Form'!$AW41:$AZ41)=4),\"Y\",\"N\"))","v":"-"},{"$f":"IF($B34=\"N\",\"\",IF('Enrollment Form'!$B41=\"Subscriber\",\"-\",IF(COUNTA('Enrollment Form'!$BE41,'Enrollment Form'!$BG41)=2,\"Y\",\"N\")))","v":""},{"$f":"IF($B34=\"N\",\"\",IF(OR('Enrollment Form'!$AU41=\"\",'Enrollment Form'!$AU41=\"No\"),\"-\",IF(AND('Enrollment Form'!$AU41=\"Yes\",COUNTA('Enrollment Form'!$CK41)=1),\"Y\",\"N\")))","v":""},{"$f":"IF(OR('Enrollment Form'!$CK41=\"\",'Enrollment Form'!$CK41=\"No\"),\"-\",IF(COUNTA('Enrollment Form'!$CM41:$CN41)=2,\"Y\",\"N\"))","v":"-"},{"$f":"IF($B34=\"N\",\"\",IF(COUNTIF('Enrollment Form'!$CZ41:$DO41,\"Other\")=COUNTA('Enrollment Form'!$DF41,'Enrollment Form'!$DA41,'Enrollment Form'!$DK41,'Enrollment Form'!$DP41),\"Y\",\"N\"))","v":""},{"$f":"IF($B34=\"N\",\"\",IF(OR('Enrollment Form'!B41<>\"Subscriber\",'Enrollment Form'!C41=\"ROC\",COUNTIF('Enrollment Form'!AS41:AT41,\"Yes\")>=1),\"-\",IF(AND('Enrollment Form'!C41=\"Enroll\",COUNTIF('Enrollment Form'!AS41:AT41,\"No\")=2,'Enrollment Form'!AU41=\"\"),\"N\",\"Y\")))","v":""},{"$f":"IF(OR(B34=\"N\",'Enrollment Form'!B41<>\"Subscriber\",'Enrollment Form'!C41=\"ROC\",'Enrollment Form'!O41<>\"Multiple of Salary\"),\"-\",IF(COUNTA('Enrollment Form'!T41:U41)<2,\"N\",\"Y\"))","v":"-"},{"$f":"IF(B34=\"N\",\"\",IF(OR('Enrollment Form'!C41=\"ROC\",'Enrollment Form'!B41<>\"Subscriber\",'Enrollment Form'!O41=\"Waive\",'Enrollment Form'!O41=\"\"),\"-\",IF('Enrollment Form'!P41=\"\",\"N\",\"Y\")))","v":""},{"$f":"IF($B34=\"N\",\"\",IF(AND('Enrollment Form'!$C41=\"ROC\",'Enrollment Form'!$DS41<>\"\"),\"Y\",IF(AND('Enrollment Form'!$C41=\"ROC\",'Enrollment Form'!$DS41=\"\"),\"N\",IF(AND('Enrollment Form'!$C41=\"Enroll\",'Enrollment Form'!$B41=\"Subscriber\",'Enrollment Form'!$CQ41=\"No\",'Enrollment Form'!$DS41=\"\"),\"N\",IF(AND('Enrollment Form'!$C41=\"Enroll\",'Enrollment Form'!$B41=\"Subscriber\",'Enrollment Form'!$CQ41=\"Yes\"),\"-\",\"Y\")))))","v":""},{"$f":"IF($B34=\"N\",\"\",IF(AND('Enrollment Form'!$C41=\"ROC\",'Enrollment Form'!$DT41<>\"\"),\"Y\",IF(AND('Enrollment Form'!$C41=\"ROC\",'Enrollment Form'!$DT41=\"\"),\"N\",IF(AND('Enrollment Form'!$C41=\"Enroll\",'Enrollment Form'!$B41=\"Subscriber\",'Enrollment Form'!$CQ41=\"No\",'Enrollment Form'!$DT41=\"\"),\"N\",IF(AND('Enrollment Form'!$C41=\"Enroll\",'Enrollment Form'!$B41=\"Subscriber\",'Enrollment Form'!$CQ41=\"Yes\"),\"-\",\"Y\")))))","v":""},{"$f":"IF('Enrollment Form'!AH41=\"\",\"\",IF(ISERROR(SEARCH(\".\",'Enrollment Form'!AH41,SEARCH(\"@\",'Enrollment Form'!AH41))),\"N\",\"Y\"))","v":""},{"$f":"IF(OR($B34=\"N\",'Enrollment Form'!$G41=\"\"),\"\",IF('Enrollment Form'!$B41<>\"Subscriber\",\"-\",IF(COUNTIF('Enrollment Form'!$AS41:$AT41,\"Yes\")=2,\"N\",\"Y\")))","v":""},{"$f":"IF(OR('Enrollment Form'!$CC41=\"\",'Enrollment Form'!$CC41=\"No\"),\"-\",IF(AND('Enrollment Form'!$CC41=\"Yes\",'Enrollment Form'!$CD41=\"\"),\"N\",\"Y\"))","v":"-"},{"$f":"IF(OR('Enrollment Form'!$CE41=\"\",'Enrollment Form'!$CE41=\"No\"),\"-\",IF(AND('Enrollment Form'!$CE41=\"Yes\",'Enrollment Form'!$CF41=\"\"),\"N\",\"Y\"))","v":"-"},{"$f":"IF(OR('Enrollment Form'!$CG41=\"\",'Enrollment Form'!$CG41=\"No\"),\"-\",IF(AND('Enrollment Form'!$CG41=\"Yes\",'Enrollment Form'!$CH41=\"\"),\"N\",\"Y\"))","v":"-"},{"$f":"IF(OR('Enrollment Form'!$CG41=\"\",'Enrollment Form'!$CG41=\"No\"),\"-\",IF(AND('Enrollment Form'!$CG41=\"Yes\",'Enrollment Form'!$CI41=\"\"),\"N\",\"Y\"))","v":"-"},{"$f":"IF('Enrollment Form'!B41<>\"Subscriber\",\"-\",IF(AND('Enrollment Form'!B41=\"Subscriber\",'Enrollment Form'!C41=\"Enroll\",'Enrollment Form'!AA41=\"\"),\"N\",\"Y\"))","v":"-"},{"$f":"IF(OR('Enrollment Form'!B41=\"Subscriber\",'Enrollment Form'!B41=\"\"),\"-\",IF('Enrollment Form'!BI41=\"\",\"N\",\"Y\"))","v":"-"},{"$f":"IF('Enrollment Form'!B41<>\"Subscriber\",\"-\",IF(AND('Enrollment Form'!B41=\"Subscriber\",'Enrollment Form'!G41=\"\"),\"N\",\"Y\"))","v":"-"},{"$f":"IF('Enrollment Form'!A41=\"\",\"\",IF('Enrollment Form'!B41=\"Subscriber\",\"-\",IF(AND('Enrollment Form'!B41<>\"Subscriber\",'Enrollment Form'!G41='Enrollment Form'!H41),\"N\",\"Y\")))","v":""},0,{"$nulls":6},"31","Sub works full-time OR part-time?","A sub can work either full-time or part-time, but not both","AS-AT"]
[42,{"$f":"IF('Enrollment Form'!$A42<>\"\",\"Y\",\"N\")","v":"N"},{"$f":"IF(AND('Enrollment Form'!$B42=\"\",'Enrollment Form'!$C42<>\"\"),\"N\",IF($B35=\"N\",\"\",\"Y\"))","v":""},{"$f":"IF(OR($B35=\"N\",'Enrollment Form'!G42=\"\"),\"\",IF('Enrollment Form'!$B42<>\"Subscriber\",\"\",IF('Enrollment Form'!$G42='Enrollment Form'!$H42,\"Y\",\"N\")))","v":""},{"$f":"IF($B35=\"N\",\"\",IF(AND(COUNTIFS('Enrollment Form'!$H$11:$H$1000,'Enrollment Form'!$H42,'Enrollment Form'!$B$11:$B$1000,'Enrollment Form'!$B42)>1,'Enrollment Form'!$H42<>\"\"),\"N\",\"Y\"))","v":""},{"$f":"IF($B35=\"N\",\"\",IF(LEN('Enrollment Form'!$Y42)=0,\"\",IF(LEN('Enrollment Form'!$Y42)<>5,\"N\",\"Y\")))","v":""},{"$f":"IF($B35=\"N\",\"\",IF(LEN('Enrollment Form'!$AD42=0),\"\",IF(LEN('Enrollment Form'!$AD42)<>5,\"N\",\"Y\")))","v":""},{"$f":"IF($B35=\"N\",\"\",IF(LEN('Enrollment Form'!$BL42=0),\"\",IF(LEN('Enrollment Form'!$BL42)<>5,\"N\",\"Y\")))","v":""},{"$f":"IF($B35=\"N\",\"\",IF(LEN('Enrollment Form'!$AE42)=0,\"\",IF(LEN('Enrollment Form'!$AE42)<>10,\"N\",\"Y\")))","v":""},{"$f":"IF($B35=\"N\",\"\",IF(LEN('Enrollment Form'!$AF42)=0,\"\",IF(LEN('Enrollment Form'!$AF42)<>10,\"N\",\"Y\")))","v":""},{"$f":"IF('Enrollment Form'!$O42<>\"Graded\",\"-\",IF(AND('Enrollment Form'!$O42=\"Graded\",'Enrollment Form'!$AO42<>\"\"),\"Y\",\"N\"))","v":"-"},{"$f":"IF($B35=\"N\",\"\",IF(OR('Enrollment Form'!$B42<>\"Subscriber\",'Enrollment Form'!$C42=\"ROC\"),\"-\",IF(AND('Enrollment Form'!$B42=\"Subscriber\",'Enrollment Form'!$C42=\"Enroll\",'Enrollment Form'!$AJ42<>\"\"),\"Y\",\"N\")))","v":""},{"$f":"IF($B35=\"N\",\"\",IF(OR('Enrollment Form'!$B42<>\"Subscriber\",'Enrollment Form'!$C42=\"ROC\"),\"-\",IF(AND('Enrollment Form'!$B42=\"Subscriber\",'Enrollment Form'!$C42=\"Enroll\",'Enrollment Form'!$AK42<>\"\"),\"Y\",\"N\")))","v":""},{"$f":"IF($B35=\"N\",\"\",IF(OR('Enrollment Form'!$B42<>\"Subscriber\",'Enrollment Form'!$C42=\"ROC\"),\"-\",IF(AND('Enrollment Form'!$B42=\"Subscriber\",'Enrollment Form'!$C42=\"Enroll\",'Enrollment Form'!$AL42<>\"\"),\"Y\",\"N\")))","v":""},{"$f":"IF($B35=\"N\",\"\",IF(OR('Enrollment Form'!$B42<>\"Subscriber\",'Enrollment Form'!$C42=\"ROC\"),\"-\",IF(AND('Enrollment Form'!$B42=\"Subscriber\",'Enrollment Form'!$C42=\"Enroll\",'Enrollment Form'!$AM42<>\"\"),\"Y\",\"N\")))","v":""},{"$f":"IF($B35=\"N\",\"\",IF(OR('Enrollment Form'!$B42<>\"Subscriber\",'Enrollment Form'!$C42=\"ROC\"),\"-\",IF(AND('Enrollment Form'!$B42=\"Subscriber\",'Enrollment Form'!$C42=\"Enroll\",'Enrollment Form'!$AN42<>\"\"),\"Y\",\"N\")))","v":""},{"$f":"IF($B35=\"N\",\"\",IF(OR('Enrollment Form'!$B42<>\"Subscriber\",'Enrollment Form'!$C42=\"ROC\"),\"-\",IF(AND('Enrollment Form'!$B42=\"Subscriber\",'Enrollment Form'!$C42=\"Enroll\",'Enrollment Form'!$AP42<>\"\"),\"Y\",\"N\")))","v":""},{"$f":"IF($B35=\"N\",\"\",IF($Q35=\"-\",\"-\",IF(AND($Q35=\"Y\",'Enrollment Form'!$AP42=\"No\"),\"-\",IF(AND($Q35=\"Y\",'Enrollment Form'!$AP42=\"Yes\",'Enrollment Form'!$AQ42<>\"\"),\"Y\",\"N\"))))","v":""},{"$f":"IF($B35=\"N\",\"\",IF(OR('Enrollment Form'!$B42<>\"Subscriber\",'Enrollment Form'!$C42=\"ROC\"),\"-\",IF(AND('Enrollment Form'!$B42=\"Subscriber\",'Enrollment Form'!$C42=\"Enroll\",'Enrollment Form'!$CO42<>\"\"),\"Y\",\"N\")))","v":""},{"$f":"IF($B35=\"N\",\"\",IF($S35=\"-\",\"-\",IF(AND($S35=\"Y\",'Enrollment Form'!$CO42=\"No\"),\"-\",IF(AND($S35=\"Y\",'Enrollment Form'!$CO42=\"Yes\",'Enrollment Form'!$CP42<>\"\"),\"Y\",\"N\"))))","v":""},{"$f":"IF(OR('Enrollment Form'!$AV42=\"Yes\",'Enrollment Form'!$AV42=\"\"),\"-\",IF(AND('Enrollment Form'!$AV42=\"No\",ISERROR(FIND(\"HMO\",VLOOKUP('Enrollment Form'!G42,'Enrollment Form'!H$11:J$1000,3,FALSE),1))=FALSE,COUNTA('Enrollment Form'!$AW42:$AZ42)=4),\"Y\",\"N\"))","v":"-"},{"$f":"IF($B35=\"N\",\"\",IF('Enrollment Form'!$B42=\"Subscriber\",\"-\",IF(COUNTA('Enrollment Form'!$BE42,'Enrollment Form'!$BG42)=2,\"Y\",\"N\")))","v":""},{"$f":"IF($B35=\"N\",\"\",IF(OR('Enrollment Form'!$AU42=\"\",'Enrollment Form'!$AU42=\"No\"),\"-\",IF(AND('Enrollment Form'!$AU42=\"Yes\",COUNTA('Enrollment Form'!$CK42)=1),\"Y\",\"N\")))","v":""},{"$f":"IF(OR('Enrollment Form'!$CK42=\"\",'Enrollment Form'!$CK42=\"No\"),\"-\",IF(COUNTA('Enrollment Form'!$CM42:$CN42)=2,\"Y\",\"N\"))","v":"-"},{"$f":"IF($B35=\"N\",\"\",IF(COUNTIF('Enrollment Form'!$CZ42:$DO42,\"Other\")=COUNTA('Enrollment Form'!$DF42,'Enrollment Form'!$DA42,'Enrollment Form'!$DK42,'Enrollment Form'!$DP42),\"Y\",\"N\"))","v":""},{"$f":"IF($B35=\"N\",\"\",IF(OR('Enrollment Form'!B42<>\"Subscriber\",'Enrollment Form'!C42=\"ROC\",COUNTIF('Enrollment Form'!AS42:AT42,\"Yes\")>=1),\"-\",IF(AND('Enrollment Form'!C42=\"Enroll\",COUNTIF('Enrollment Form'!AS42:AT42,\"No\")=2,'Enrollment Form'!AU42=\"\"),\"N\",\"Y\")))","v":""},{"$f":"IF(OR(B35=\"N\",'Enrollment Form'!B42<>\"Subscriber\",'Enrollment Form'!C42=\"ROC\",'Enrollment Form'!O42<>\"Multiple of Salary\"),\"-\",IF(COUNTA('Enrollment Form'!T42:U42)<2,\"N\",\"Y\"))","v":"-"},{"$f":"IF(B35=\"N\",\"\",IF(OR('Enrollment Form'!C42=\"ROC\",'Enrollment Form'!B42<>\"Subscriber\",'Enrollment Form'!O42=\"Waive\",'Enrollment Form'!O42=\"\"),\"-\",IF('Enrollment Form'!P42=\"\",\"N\",\"Y\")))","v":""},{"$f":"IF($B35=\"N\",\"\",IF(AND('Enrollment Form'!$C42=\"ROC\",'Enrollment Form'!$DS42<>\"\"),\"Y\",IF(AND('Enrollment Form'!$C42=\"ROC\",'Enrollment Form'!$DS42=\"\"),\"N\",IF(AND('Enrollment Form'!$C42=\"Enroll\",'Enrollment Form'!$B42=\"Subscriber\",'Enrollment Form'!$CQ42=\"No\",'Enrollment Form'!$DS42=\"\"),\"N\",IF(AND('Enrollment Form'!$C42=\"Enroll\",'Enrollment Form'!$B42=\"Subscriber\",'Enrollment Form'!$CQ42=\"Yes\"),\"-\",\"Y\")))))","v":""},{"$f":"IF($B35=\"N\",\"\",IF(AND('Enrollment Form'!$C42=\"ROC\",'Enrollment Form'!$DT42<>\"\"),\"Y\",IF(AND('Enrollment Form'!$C42=\"ROC\",'Enrollment Form'!$DT42=\"\"),\"N\",IF(AND('Enrollment Form'!$C42=\"Enroll\",'Enrollment Form'!$B42=\"Subscriber\",'Enrollment Form'!$CQ42=\"No\",'Enrollment Form'!$DT42=\"\"),\"N\",IF(AND('Enrollment Form'!$C42=\"Enroll\",'Enrollment Form'!$B42=\"Subscriber\",'Enrollment Form'!$CQ42=\"Yes\"),\"-\",\"Y\")))))","v":""},{"$f":"IF('Enrollment Form'!AH42=\"\",\"\",IF(ISERROR(SEARCH(\".\",'Enrollment Form'!AH42,SEARCH(\"@\",'Enrollment Form'!AH42))),\"N\",\"Y\"))","v":""},{"$f":"IF(OR($B35=\"N\",'Enrollment Form'!$G42=\"\"),\"\",IF('Enrollment Form'!$B42<>\"Subscriber\",\"-\",IF(COUNTIF('Enrollment Form'!$AS42:$AT42,\"Yes\")=2,\"N\",\"Y\")))","v":""},{"$f":"IF(OR('Enrollment Form'!$CC42=\"\",'Enrollment Form'!$CC42=\"No\"),\"-\",IF(AND('Enrollment Form'!$CC42=\"Yes\",'Enrollment Form'!$CD42=\"\"),\"N\",\"Y\"))","v":"-"},{"$f":"IF(OR('Enrollment Form'!$CE42=\"\",'Enrollment Form'!$CE42=\"No\"),\"-\",IF(AND('Enrollment Form'!$CE42=\"Yes\",'Enrollment Form'!$CF42=\"\"),\"N\",\"Y\"))","v":"-"},{"$f":"IF(OR('Enrollment Form'!$CG42=\"\",'Enrollment Form'!$CG42=\"No\"),\"-\",IF(AND('Enrollment Form'!$CG42=\"Yes\",'Enrollment Form'!$CH42=\"\"),\"N\",\"Y\"))","v":"-"},{"$f":"IF(OR('Enrollment Form'!$CG42=\"\",'Enrollment Form'!$CG42=\"No\"),\"-\",IF(AND('Enrollment Form'!$CG42=\"Yes\",'Enrollment Form'!$CI42=\"\"),\"N\",\"Y\"))","v":"-"},{"$f":"IF('Enrollment Form'!B42<>\"Subscriber\",\"-\",IF(AND('Enrollment Form'!B42=\"Subscriber\",'Enrollment Form'!C42=\"Enroll\",'Enrollment Form'!AA42=\"\"),\"N\",\"Y\"))","v":"-"},{"$f":"IF(OR('Enrollment Form'!B42=\"Subscriber\",'Enrollment Form'!B42=\"\"),\"-\",IF('Enrollment Form'!BI42=\"\",\"N\",\"Y\"))","v":"-"},{"$f":"IF('Enrollment Form'!B42<>\"Subscriber\",\"-\",IF(AND('Enrollment Form'!B42=\"Subscriber\",'Enrollment Form'!G42=\"\"),\"N\",\"Y\"))","v":"-"},{"$f":"IF('Enrollment Form'!A42=\"\",\"\",IF('Enrollment Form'!B42=\"Subscriber\",\"-\",IF(AND('Enrollment Form'!B42<>\"Subscriber\",'Enrollment Form'!G42='Enrollment Form'!H42),\"N\",\"Y\")))","v":""},0,{"$nulls":6},"32","Medicare Part A Date Filled?","If Part A coverage, then Part A date must be populated","CC-CD"]
[43,{"$f":"IF('Enrollment Form'!$A43<>\"\",\"Y\",\"N\")","v":"N"},{"$f":"IF(AND('Enrollment Form'!$B43=\"\",'Enrollment Form'!$C43<>\"\"),\"N\",IF($B36=\"N\",\"\",\"Y\"))","v":""},{"$f":"IF(OR($B36=\"N\",'Enrollment Form'!G43=\"\"),\"\",IF('Enrollment Form'!$B43<>\"Subscriber\",\"\",IF('Enrollment Form'!$G43='Enrollment Form'!$H43,\"Y\",\"N\")))","v":""},{"$f":"IF($B36=\"N\",\"\",IF(AND(COUNTIFS('Enrollment Form'!$H$11:$H$1000,'Enrollment Form'!$H43,'Enrollment Form'!$B$11:$B$1000,'Enrollment Form'!$B43)>1,'Enrollment Form'!$H43<>\"\"),\"N\",\"Y\"))","v":""},{"$f":"IF($B36=\"N\",\"\",IF(LEN('Enrollment Form'!$Y43)=0,\"\",IF(LEN('Enrollment Form'!$Y43)<>5,\"N\",\"Y\")))","v":""},{"$f":"IF($B36=\"N\",\"\",IF(LEN('Enrollment Form'!$AD43=0),\"\",IF(LEN('Enrollment Form'!$AD43)<>5,\"N\",\"Y\")))","v":""},{"$f":"IF($B36=\"N\",\"\",IF(LEN('Enrollment Form'!$BL43=0),\"\",IF(LEN('Enrollment Form'!$BL43)<>5,\"N\",\"Y\")))","v":""},{"$f":"IF($B36=\"N\",\"\",IF(LEN('Enrollment Form'!$AE43)=0,\"\",IF(LEN('Enrollment Form'!$AE43)<>10,\"N\",\"Y\")))","v":""},{"$f":"IF($B36=\"N\",\"\",IF(LEN('Enrollment Form'!$AF43)=0,\"\",IF(LEN('Enrollment Form'!$AF43)<>10,\"N\",\"Y\")))","v":""},{"$f":"IF('Enrollment Form'!$O43<>\"Graded\",\"-\",IF(AND('Enrollment Form'!$O43=\"Graded\",'Enrollment Form'!$AO43<>\"\"),\"Y\",\"N\"))","v":"-"},{"$f":"IF($B36=\"N\",\"\",IF(OR('Enrollment Form'!$B43<>\"Subscriber\",'Enrollment Form'!$C43=\"ROC\"),\"-\",IF(AND('Enrollment Form'!$B43=\"Subscriber\",'Enrollment Form'!$C43=\"Enroll\",'Enrollment Form'!$AJ43<>\"\"),\"Y\",\"N\")))","v":""},{"$f":"IF($B36=\"N\",\"\",IF(OR('Enrollment Form'!$B43<>\"Subscriber\",'Enrollment Form'!$C43=\"ROC\"),\"-\",IF(AND('Enrollment Form'!$B43=\"Subscriber\",'Enrollment Form'!$C43=\"Enroll\",'Enrollment Form'!$AK43<>\"\"),\"Y\",\"N\")))","v":""},{"$f":"IF($B36=\"N\",\"\",IF(OR('Enrollment Form'!$B43<>\"Subscriber\",'Enrollment Form'!$C43=\"ROC\"),\"-\",IF(AND('Enrollment Form'!$B43=\"Subscriber\",'Enrollment Form'!$C43=\"Enroll\",'Enrollment Form'!$AL43<>\"\"),\"Y\",\"N\")))","v":""},{"$f":"IF($B36=\"N\",\"\",IF(OR('Enrollment Form'!$B43<>\"Subscriber\",'Enrollment Form'!$C43=\"ROC\"),\"-\",IF(AND('Enrollment Form'!$B43=\"Subscriber\",'Enrollment Form'!$C43=\"Enroll\",'Enrollment Form'!$AM43<>\"\"),\"Y\",\"N\")))","v":""},{"$f":"IF($B36=\"N\",\"\",IF(OR('Enrollment Form'!$B43<>\"Subscriber\",'Enrollment Form'!$C43=\"ROC\"),\"-\",IF(AND('Enrollment Form'!$B43=\"Subscriber\",'Enrollment Form'!$C43=\"Enroll\",'Enrollment Form'!$AN43<>\"\"),\"Y\",\"N\")))","v":""},{"$f":"IF($B36=\"N\",\"\",IF(OR('Enrollment Form'!$B43<>\"Subscriber\",'Enrollment Form'!$C43=\"ROC\"),\"-\",IF(AND('Enrollment Form'!$B43=\"Subscriber\",'Enrollment Form'!$C43=\"Enroll\",'Enrollment Form'!$AP43<>\"\"),\"Y\",\"N\")))","v":""},{"$f":"IF($B36=\"N\",\"\",IF($Q36=\"-\",\"-\",IF(AND($Q36=\"Y\",'Enrollment Form'!$AP43=\"No\"),\"-\",IF(AND($Q36=\"Y\",'Enrollment Form'!$AP43=\"Yes\",'Enrollment Form'!$AQ43<>\"\"),\"Y\",\"N\"))))","v":""},{"$f":"IF($B36=\"N\",\"\",IF(OR('Enrollment Form'!$B43<>\"Subscriber\",'Enrollment Form'!$C43=\"ROC\"),\"-\",IF(AND('Enrollment Form'!$B43=\"Subscriber\",'Enrollment Form'!$C43=\"Enroll\",'Enrollment Form'!$CO43<>\"\"),\"Y\",\"N\")))","v":""},{"$f":"IF($B36=\"N\",\"\",IF($S36=\"-\",\"-\",IF(AND($S36=\"Y\",'Enrollment Form'!$CO43=\"No\"),\"-\",IF(AND($S36=\"Y\",'Enrollment Form'!$CO43=\"Yes\",'Enrollment Form'!$CP43<>\"\"),\"Y\",\"N\"))))","v":""},{"$f":"IF(OR('Enrollment Form'!$AV43=\"Yes\",'Enrollment Form'!$AV43=\"\"),\"-\",IF(AND('Enrollment Form'!$AV43=\"No\",ISERROR(FIND(\"HMO\",VLOOKUP('Enrollment Form'!G43,'Enrollment Form'!H$11:J$1000,3,FALSE),1))=FALSE,COUNTA('Enrollment Form'!$AW43:$AZ43)=4),\"Y\",\"N\"))","v":"-"},{"$f":"IF($B36=\"N\",\"\",IF('Enrollment Form'!$B43=\"Subscriber\",\"-\",IF(COUNTA('Enrollment Form'!$BE43,'Enrollment Form'!$BG43)=2,\"Y\",\"N\")))","v":""},{"$f":"IF($B36=\"N\",\"\",IF(OR('Enrollment Form'!$AU43=\"\",'Enrollment Form'!$AU43=\"No\"),\"-\",IF(AND('Enrollment Form'!$AU43=\"Yes\",COUNTA('Enrollment Form'!$CK43)=1),\"Y\",\"N\")))","v":""},{"$f":"IF(OR('Enrollment Form'!$CK43=\"\",'Enrollment Form'!$CK43=\"No\"),\"-\",IF(COUNTA('Enrollment Form'!$CM43:$CN43)=2,\"Y\",\"N\"))","v":"-"},{"$f":"IF($B36=\"N\",\"\",IF(COUNTIF('Enrollment Form'!$CZ43:$DO43,\"Other\")=COUNTA('Enrollment Form'!$DF43,'Enrollment Form'!$DA43,'Enrollment Form'!$DK43,'Enrollment Form'!$DP43),\"Y\",\"N\"))","v":""},{"$f":"IF($B36=\"N\",\"\",IF(OR('Enrollment Form'!B43<>\"Subscriber\",'Enrollment Form'!C43=\"ROC\",COUNTIF('Enrollment Form'!AS43:AT43,\"Yes\")>=1),\"-\",IF(AND('Enrollment Form'!C43=\"Enroll\",COUNTIF('Enrollment Form'!AS43:AT43,\"No\")=2,'Enrollment Form'!AU43=\"\"),\"N\",\"Y\")))","v":""},{"$f":"IF(OR(B36=\"N\",'Enrollment Form'!B43<>\"Subscriber\",'Enrollment Form'!C43=\"ROC\",'Enrollment Form'!O43<>\"Multiple of Salary\"),\"-\",IF(COUNTA('Enrollment Form'!T43:U43)<2,\"N\",\"Y\"))","v":"-"},{"$f":"IF(B36=\"N\",\"\",IF(OR('Enrollment Form'!C43=\"ROC\",'Enrollment Form'!B43<>\"Subscriber\",'Enrollment Form'!O43=\"Waive\",'Enrollment Form'!O43=\"\"),\"-\",IF('Enrollment Form'!P43=\"\",\"N\",\"Y\")))","v":""},{"$f":"IF($B36=\"N\",\"\",IF(AND('Enrollment Form'!$C43=\"ROC\",'Enrollment Form'!$DS43<>\"\"),\"Y\",IF(AND('Enrollment Form'!$C43=\"ROC\",'Enrollment Form'!$DS43=\"\"),\"N\",IF(AND('Enrollment Form'!$C43=\"Enroll\",'Enrollment Form'!$B43=\"Subscriber\",'Enrollment Form'!$CQ43=\"No\",'Enrollment Form'!$DS43=\"\"),\"N\",IF(AND('Enrollment Form'!$C43=\"Enroll\",'Enrollment Form'!$B43=\"Subscriber\",'Enrollment Form'!$CQ43=\"Yes\"),\"-\",\"Y\")))))","v":""},{"$f":"IF($B36=\"N\",\"\",IF(AND('Enrollment Form'!$C43=\"ROC\",'Enrollment Form'!$DT43<>\"\"),\"Y\",IF(AND('Enrollment Form'!$C43=\"ROC\",'Enrollment Form'!$DT43=\"\"),\"N\",IF(AND('Enrollment Form'!$C43=\"Enroll\",'Enrollment Form'!$B43=\"Subscriber\",'Enrollment Form'!$CQ43=\"No\",'Enrollment Form'!$DT43=\"\"),\"N\",IF(AND('Enrollment Form'!$C43=\"Enroll\",'Enrollment Form'!$B43=\"Subscriber\",'Enrollment Form'!$CQ43=\"Yes\"),\"-\",\"Y\")))))","v":""},{"$f":"IF('Enrollment Form'!AH43=\"\",\"\",IF(ISERROR(SEARCH(\".\",'Enrollment Form'!AH43,SEARCH(\"@\",'Enrollment Form'!AH43))),\"N\",\"Y\"))","v":""},{"$f":"IF(OR($B36=\"N\",'Enrollment Form'!$G43=\"\"),\"\",IF('Enrollment Form'!$B43<>\"Subscriber\",\"-\",IF(COUNTIF('Enrollment Form'!$AS43:$AT43,\"Yes\")=2,\"N\",\"Y\")))","v":""},{"$f":"IF(OR('Enrollment Form'!$CC43=\"\",'Enrollment Form'!$CC43=\"No\"),\"-\",IF(AND('Enrollment Form'!$CC43=\"Yes\",'Enrollment Form'!$CD43=\"\"),\"N\",\"Y\"))","v":"-"},{"$f":"IF(OR('Enrollment Form'!$CE43=\"\",'Enrollment Form'!$CE43=\"No\"),\"-\",IF(AND('Enrollment Form'!$CE43=\"Yes\",'Enrollment Form'!$CF43=\"\"),\"N\",\"Y\"))","v":"-"},{"$f":"IF(OR('Enrollment Form'!$CG43=\"\",'Enrollment Form'!$CG43=\"No\"),\"-\",IF(AND('Enrollment Form'!$CG43=\"Yes\",'Enrollment Form'!$CH43=\"\"),\"N\",\"Y\"))","v":"-"},{"$f":"IF(OR('Enrollment Form'!$CG43=\"\",'Enrollment Form'!$CG43=\"No\"),\"-\",IF(AND('Enrollment Form'!$CG43=\"Yes\",'Enrollment Form'!$CI43=\"\"),\"N\",\"Y\"))","v":"-"},{"$f":"IF('Enrollment Form'!B43<>\"Subscriber\",\"-\",IF(AND('Enrollment Form'!B43=\"Subscriber\",'Enrollment Form'!C43=\"Enroll\",'Enrollment Form'!AA43=\"\"),\"N\",\"Y\"))","v":"-"},{"$f":"IF(OR('Enrollment Form'!B43=\"Subscriber\",'Enrollment Form'!B43=\"\"),\"-\",IF('Enrollment Form'!BI43=\"\",\"N\",\"Y\"))","v":"-"},{"$f":"IF('Enrollment Form'!B43<>\"Subscriber\",\"-\",IF(AND('Enrollment Form'!B43=\"Subscriber\",'Enrollment Form'!G43=\"\"),\"N\",\"Y\"))","v":"-"},{"$f":"IF('Enrollment Form'!A43=\"\",\"\",IF('Enrollment Form'!B43=\"Subscriber\",\"-\",IF(AND('Enrollment Form'!B43<>\"Subscriber\",'Enrollment Form'!G43='Enrollment Form'!H43),\"N\",\"Y\")))","v":""},0,{"$nulls":6},"33","Medicare Part B Date Filled?","If Part B coverage, then Part B date must be populated","CE-CF"]
[44,{"$f":"IF('Enrollment Form'!$A44<>\"\",\"Y\",\"N\")","v":"N"},{"$f":"IF(AND('Enrollment Form'!$B44=\"\",'Enrollment Form'!$C44<>\"\"),\"N\",IF($B37=\"N\",\"\",\"Y\"))","v":""},{"$f":"IF(OR($B37=\"N\",'Enrollment Form'!G44=\"\"),\"\",IF('Enrollment Form'!$B44<>\"Subscriber\",\"\",IF('Enrollment Form'!$G44='Enrollment Form'!$H44,\"Y\",\"N\")))","v":""},{"$f":"IF($B37=\"N\",\"\",IF(AND(COUNTIFS('Enrollment Form'!$H$11:$H$1000,'Enrollment Form'!$H44,'Enrollment Form'!$B$11:$B$1000,'Enrollment Form'!$B44)>1,'Enrollment Form'!$H44<>\"\"),\"N\",\"Y\"))","v":""},{"$f":"IF($B37=\"N\",\"\",IF(LEN('Enrollment Form'!$Y44)=0,\"\",IF(LEN('Enrollment Form'!$Y44)<>5,\"N\",\"Y\")))","v":""},{"$f":"IF($B37=\"N\",\"\",IF(LEN('Enrollment Form'!$AD44=0),\"\",IF(LEN('Enrollment Form'!$AD44)<>5,\"N\",\"Y\")))","v":""},{"$f":"IF($B37=\"N\",\"\",IF(LEN('Enrollment Form'!$BL44=0),\"\",IF(LEN('Enrollment Form'!$BL44)<>5,\"N\",\"Y\")))","v":""},{"$f":"IF($B37=\"N\",\"\",IF(LEN('Enrollment Form'!$AE44)=0,\"\",IF(LEN('Enrollment Form'!$AE44)<>10,\"N\",\"Y\")))","v":""},{"$f":"IF($B37=\"N\",\"\",IF(LEN('Enrollment Form'!$AF44)=0,\"\",IF(LEN('Enrollment Form'!$AF44)<>10,\"N\",\"Y\")))","v":""},{"$f":"IF('Enrollment Form'!$O44<>\"Graded\",\"-\",IF(AND('Enrollment Form'!$O44=\"Graded\",'Enrollment Form'!$AO44<>\"\"),\"Y\",\"N\"))","v":"-"},{"$f":"IF($B37=\"N\",\"\",IF(OR('Enrollment Form'!$B44<>\"Subscriber\",'Enrollment Form'!$C44=\"ROC\"),\"-\",IF(AND('Enrollment Form'!$B44=\"Subscriber\",'Enrollment Form'!$C44=\"Enroll\",'Enrollment Form'!$AJ44<>\"\"),\"Y\",\"N\")))","v":""},{"$f":"IF($B37=\"N\",\"\",IF(OR('Enrollment Form'!$B44<>\"Subscriber\",'Enrollment Form'!$C44=\"ROC\"),\"-\",IF(AND('Enrollment Form'!$B44=\"Subscriber\",'Enrollment Form'!$C44=\"Enroll\",'Enrollment Form'!$AK44<>\"\"),\"Y\",\"N\")))","v":""},{"$f":"IF($B37=\"N\",\"\",IF(OR('Enrollment Form'!$B44<>\"Subscriber\",'Enrollment Form'!$C44=\"ROC\"),\"-\",IF(AND('Enrollment Form'!$B44=\"Subscriber\",'Enrollment Form'!$C44=\"Enroll\",'Enrollment Form'!$AL44<>\"\"),\"Y\",\"N\")))","v":""},{"$f":"IF($B37=\"N\",\"\",IF(OR('Enrollment Form'!$B44<>\"Subscriber\",'Enrollment Form'!$C44=\"ROC\"),\"-\",IF(AND('Enrollment Form'!$B44=\"Subscriber\",'Enrollment Form'!$C44=\"Enroll\",'Enrollment Form'!$AM44<>\"\"),\"Y\",\"N\")))","v":""},{"$f":"IF($B37=\"N\",\"\",IF(OR('Enrollment Form'!$B44<>\"Subscriber\",'Enrollment Form'!$C44=\"ROC\"),\"-\",IF(AND('Enrollment Form'!$B44=\"Subscriber\",'Enrollment Form'!$C44=\"Enroll\",'Enrollment Form'!$AN44<>\"\"),\"Y\",\"N\")))","v":""},{"$f":"IF($B37=\"N\",\"\",IF(OR('Enrollment Form'!$B44<>\"Subscriber\",'Enrollment Form'!$C44=\"ROC\"),\"-\",IF(AND('Enrollment Form'!$B44=\"Subscriber\",'Enrollment Form'!$C44=\"Enroll\",'Enrollment Form'!$AP44<>\"\"),\"Y\",\"N\")))","v":""},{"$f":"IF($B37=\"N\",\"\",IF($Q37=\"-\",\"-\",IF(AND($Q37=\"Y\",'Enrollment Form'!$AP44=\"No\"),\"-\",IF(AND($Q37=\"Y\",'Enrollment Form'!$AP44=\"Yes\",'Enrollment Form'!$AQ44<>\"\"),\"Y\",\"N\"))))","v":""},{"$f":"IF($B37=\"N\",\"\",IF(OR('Enrollment Form'!$B44<>\"Subscriber\",'Enrollment Form'!$C44=\"ROC\"),\"-\",IF(AND('Enrollment Form'!$B44=\"Subscriber\",'Enrollment Form'!$C44=\"Enroll\",'Enrollment Form'!$CO44<>\"\"),\"Y\",\"N\")))","v":""},{"$f":"IF($B37=\"N\",\"\",IF($S37=\"-\",\"-\",IF(AND($S37=\"Y\",'Enrollment Form'!$CO44=\"No\"),\"-\",IF(AND($S37=\"Y\",'Enrollment Form'!$CO44=\"Yes\",'Enrollment Form'!$CP44<>\"\"),\"Y\",\"N\"))))","v":""},{"$f":"IF(OR('Enrollment Form'!$AV44=\"Yes\",'Enrollment Form'!$AV44=\"\"),\"-\",IF(AND('Enrollment Form'!$AV44=\"No\",ISERROR(FIND(\"HMO\",VLOOKUP('Enrollment Form'!G44,'Enrollment Form'!H$11:J$1000,3,FALSE),1))=FALSE,COUNTA('Enrollment Form'!$AW44:$AZ44)=4),\"Y\",\"N\"))","v":"-"},{"$f":"IF($B37=\"N\",\"\",IF('Enrollment Form'!$B44=\"Subscriber\",\"-\",IF(COUNTA('Enrollment Form'!$BE44,'Enrollment Form'!$BG44)=2,\"Y\",\"N\")))","v":""},{"$f":"IF($B37=\"N\",\"\",IF(OR('Enrollment Form'!$AU44=\"\",'Enrollment Form'!$AU44=\"No\"),\"-\",IF(AND('Enrollment Form'!$AU44=\"Yes\",COUNTA('Enrollment Form'!$CK44)=1),\"Y\",\"N\")))","v":""},{"$f":"IF(OR('Enrollment Form'!$CK44=\"\",'Enrollment Form'!$CK44=\"No\"),\"-\",IF(COUNTA('Enrollment Form'!$CM44:$CN44)=2,\"Y\",\"N\"))","v":"-"},{"$f":"IF($B37=\"N\",\"\",IF(COUNTIF('Enrollment Form'!$CZ44:$DO44,\"Other\")=COUNTA('Enrollment Form'!$DF44,'Enrollment Form'!$DA44,'Enrollment Form'!$DK44,'Enrollment Form'!$DP44),\"Y\",\"N\"))","v":""},{"$f":"IF($B37=\"N\",\"\",IF(OR('Enrollment Form'!B44<>\"Subscriber\",'Enrollment Form'!C44=\"ROC\",COUNTIF('Enrollment Form'!AS44:AT44,\"Yes\")>=1),\"-\",IF(AND('Enrollment Form'!C44=\"Enroll\",COUNTIF('Enrollment Form'!AS44:AT44,\"No\")=2,'Enrollment Form'!AU44=\"\"),\"N\",\"Y\")))","v":""},{"$f":"IF(OR(B37=\"N\",'Enrollment Form'!B44<>\"Subscriber\",'Enrollment Form'!C44=\"ROC\",'Enrollment Form'!O44<>\"Multiple of Salary\"),\"-\",IF(COUNTA('Enrollment Form'!T44:U44)<2,\"N\",\"Y\"))","v":"-"},{"$f":"IF(B37=\"N\",\"\",IF(OR('Enrollment Form'!C44=\"ROC\",'Enrollment Form'!B44<>\"Subscriber\",'Enrollment Form'!O44=\"Waive\",'Enrollment Form'!O44=\"\"),\"-\",IF('Enrollment Form'!P44=\"\",\"N\",\"Y\")))","v":""},{"$f":"IF($B37=\"N\",\"\",IF(AND('Enrollment Form'!$C44=\"ROC\",'Enrollment Form'!$DS44<>\"\"),\"Y\",IF(AND('Enrollment Form'!$C44=\"ROC\",'Enrollment Form'!$DS44=\"\"),\"N\",IF(AND('Enrollment Form'!$C44=\"Enroll\",'Enrollment Form'!$B44=\"Subscriber\",'Enrollment Form'!$CQ44=\"No\",'Enrollment Form'!$DS44=\"\"),\"N\",IF(AND('Enrollment Form'!$C44=\"Enroll\",'Enrollment Form'!$B44=\"Subscriber\",'Enrollment Form'!$CQ44=\"Yes\"),\"-\",\"Y\")))))","v":""},{"$f":"IF($B37=\"N\",\"\",IF(AND('Enrollment Form'!$C44=\"ROC\",'Enrollment Form'!$DT44<>\"\"),\"Y\",IF(AND('Enrollment Form'!$C44=\"ROC\",'Enrollment Form'!$DT44=\"\"),\"N\",IF(AND('Enrollment Form'!$C44=\"Enroll\",'Enrollment Form'!$B44=\"Subscriber\",'Enrollment Form'!$CQ44=\"No\",'Enrollment Form'!$DT44=\"\"),\"N\",IF(AND('Enrollment Form'!$C44=\"Enroll\",'Enrollment Form'!$B44=\"Subscriber\",'Enrollment Form'!$CQ44=\"Yes\"),\"-\",\"Y\")))))","v":""},{"$f":"IF('Enrollment Form'!AH44=\"\",\"\",IF(ISERROR(SEARCH(\".\",'Enrollment Form'!AH44,SEARCH(\"@\",'Enrollment Form'!AH44))),\"N\",\"Y\"))","v":""},{"$f":"IF(OR($B37=\"N\",'Enrollment Form'!$G44=\"\"),\"\",IF('Enrollment Form'!$B44<>\"Subscriber\",\"-\",IF(COUNTIF('Enrollment Form'!$AS44:$AT44,\"Yes\")=2,\"N\",\"Y\")))","v":""},{"$f":"IF(OR('Enrollment Form'!$CC44=\"\",'Enrollment Form'!$CC44=\"No\"),\"-\",IF(AND('Enrollment Form'!$CC44=\"Yes\",'Enrollment Form'!$CD44=\"\"),\"N\",\"Y\"))","v":"-"},{"$f":"IF(OR('Enrollment Form'!$CE44=\"\",'Enrollment Form'!$CE44=\"No\"),\"-\",IF(AND('Enrollment Form'!$CE44=\"Yes\",'Enrollment Form'!$CF44=\"\"),\"N\",\"Y\"))","v":"-"},{"$f":"IF(OR('Enrollment Form'!$CG44=\"\",'Enrollment Form'!$CG44=\"No\"),\"-\",IF(AND('Enrollment Form'!$CG44=\"Yes\",'Enrollment Form'!$CH44=\"\"),\"N\",\"Y\"))","v":"-"},{"$f":"IF(OR('Enrollment Form'!$CG44=\"\",'Enrollment Form'!$CG44=\"No\"),\"-\",IF(AND('Enrollment Form'!$CG44=\"Yes\",'Enrollment Form'!$CI44=\"\"),\"N\",\"Y\"))","v":"-"},{"$f":"IF('Enrollment Form'!B44<>\"Subscriber\",\"-\",IF(AND('Enrollment Form'!B44=\"Subscriber\",'Enrollment Form'!C44=\"Enroll\",'Enrollment Form'!AA44=\"\"),\"N\",\"Y\"))","v":"-"},{"$f":"IF(OR('Enrollment Form'!B44=\"Subscriber\",'Enrollment Form'!B44=\"\"),\"-\",IF('Enrollment Form'!BI44=\"\",\"N\",\"Y\"))","v":"-"},{"$f":"IF('Enrollment Form'!B44<>\"Subscriber\",\"-\",IF(AND('Enrollment Form'!B44=\"Subscriber\",'Enrollment Form'!G44=\"\"),\"N\",\"Y\"))","v":"-"},{"$f":"IF('Enrollment Form'!A44=\"\",\"\",IF('Enrollment Form'!B44=\"Subscriber\",\"-\",IF(AND('Enrollment Form'!B44<>\"Subscriber\",'Enrollment Form'!G44='Enrollment Form'!H44),\"N\",\"Y\")))","v":""},0,{"$nulls":6},"34","Medicare dialysis date filled?","If end stage renal disease, date of first treatment must be populated","CG,CH"]
[45,{"$f":"IF('Enrollment Form'!$A45<>\"\",\"Y\",\"N\")","v":"N"},{"$f":"IF(AND('Enrollment Form'!$B45=\"\",'Enrollment Form'!$C45<>\"\"),\"N\",IF($B38=\"N\",\"\",\"Y\"))","v":""},{"$f":"IF(OR($B38=\"N\",'Enrollment Form'!G45=\"\"),\"\",IF('Enrollment Form'!$B45<>\"Subscriber\",\"\",IF('Enrollment Form'!$G45='Enrollment Form'!$H45,\"Y\",\"N\")))","v":""},{"$f":"IF($B38=\"N\",\"\",IF(AND(COUNTIFS('Enrollment Form'!$H$11:$H$1000,'Enrollment Form'!$H45,'Enrollment Form'!$B$11:$B$1000,'Enrollment Form'!$B45)>1,'Enrollment Form'!$H45<>\"\"),\"N\",\"Y\"))","v":""},{"$f":"IF($B38=\"N\",\"\",IF(LEN('Enrollment Form'!$Y45)=0,\"\",IF(LEN('Enrollment Form'!$Y45)<>5,\"N\",\"Y\")))","v":""},{"$f":"IF($B38=\"N\",\"\",IF(LEN('Enrollment Form'!$AD45=0),\"\",IF(LEN('Enrollment Form'!$AD45)<>5,\"N\",\"Y\")))","v":""},{"$f":"IF($B38=\"N\",\"\",IF(LEN('Enrollment Form'!$BL45=0),\"\",IF(LEN('Enrollment Form'!$BL45)<>5,\"N\",\"Y\")))","v":""},{"$f":"IF($B38=\"N\",\"\",IF(LEN('Enrollment Form'!$AE45)=0,\"\",IF(LEN('Enrollment Form'!$AE45)<>10,\"N\",\"Y\")))","v":""},{"$f":"IF($B38=\"N\",\"\",IF(LEN('Enrollment Form'!$AF45)=0,\"\",IF(LEN('Enrollment Form'!$AF45)<>10,\"N\",\"Y\")))","v":""},{"$f":"IF('Enrollment Form'!$O45<>\"Graded\",\"-\",IF(AND('Enrollment Form'!$O45=\"Graded\",'Enrollment Form'!$AO45<>\"\"),\"Y\",\"N\"))","v":"-"},{"$f":"IF($B38=\"N\",\"\",IF(OR('Enrollment Form'!$B45<>\"Subscriber\",'Enrollment Form'!$C45=\"ROC\"),\"-\",IF(AND('Enrollment Form'!$B45=\"Subscriber\",'Enrollment Form'!$C45=\"Enroll\",'Enrollment Form'!$AJ45<>\"\"),\"Y\",\"N\")))","v":""},{"$f":"IF($B38=\"N\",\"\",IF(OR('Enrollment Form'!$B45<>\"Subscriber\",'Enrollment Form'!$C45=\"ROC\"),\"-\",IF(AND('Enrollment Form'!$B45=\"Subscriber\",'Enrollment Form'!$C45=\"Enroll\",'Enrollment Form'!$AK45<>\"\"),\"Y\",\"N\")))","v":""},{"$f":"IF($B38=\"N\",\"\",IF(OR('Enrollment Form'!$B45<>\"Subscriber\",'Enrollment Form'!$C45=\"ROC\"),\"-\",IF(AND('Enrollment Form'!$B45=\"Subscriber\",'Enrollment Form'!$C45=\"Enroll\",'Enrollment Form'!$AL45<>\"\"),\"Y\",\"N\")))","v":""},{"$f":"IF($B38=\"N\",\"\",IF(OR('Enrollment Form'!$B45<>\"Subscriber\",'Enrollment Form'!$C45=\"ROC\"),\"-\",IF(AND('Enrollment Form'!$B45=\"Subscriber\",'Enrollment Form'!$C45=\"Enroll\",'Enrollment Form'!$AM45<>\"\"),\"Y\",\"N\")))","v":""},{"$f":"IF($B38=\"N\",\"\",IF(OR('Enrollment Form'!$B45<>\"Subscriber\",'Enrollment Form'!$C45=\"ROC\"),\"-\",IF(AND('Enrollment Form'!$B45=\"Subscriber\",'Enrollment Form'!$C45=\"Enroll\",'Enrollment Form'!$AN45<>\"\"),\"Y\",\"N\")))","v":""},{"$f":"IF($B38=\"N\",\"\",IF(OR('Enrollment Form'!$B45<>\"Subscriber\",'Enrollment Form'!$C45=\"ROC\"),\"-\",IF(AND('Enrollment Form'!$B45=\"Subscriber\",'Enrollment Form'!$C45=\"Enroll\",'Enrollment Form'!$AP45<>\"\"),\"Y\",\"N\")))","v":""},{"$f":"IF($B38=\"N\",\"\",IF($Q38=\"-\",\"-\",IF(AND($Q38=\"Y\",'Enrollment Form'!$AP45=\"No\"),\"-\",IF(AND($Q38=\"Y\",'Enrollment Form'!$AP45=\"Yes\",'Enrollment Form'!$AQ45<>\"\"),\"Y\",\"N\"))))","v":""},{"$f":"IF($B38=\"N\",\"\",IF(OR('Enrollment Form'!$B45<>\"Subscriber\",'Enrollment Form'!$C45=\"ROC\"),\"-\",IF(AND('Enrollment Form'!$B45=\"Subscriber\",'Enrollment Form'!$C45=\"Enroll\",'Enrollment Form'!$CO45<>\"\"),\"Y\",\"N\")))","v":""},{"$f":"IF($B38=\"N\",\"\",IF($S38=\"-\",\"-\",IF(AND($S38=\"Y\",'Enrollment Form'!$CO45=\"No\"),\"-\",IF(AND($S38=\"Y\",'Enrollment Form'!$CO45=\"Yes\",'Enrollment Form'!$CP45<>\"\"),\"Y\",\"N\"))))","v":""},{"$f":"IF(OR('Enrollment Form'!$AV45=\"Yes\",'Enrollment Form'!$AV45=\"\"),\"-\",IF(AND('Enrollment Form'!$AV45=\"No\",ISERROR(FIND(\"HMO\",VLOOKUP('Enrollment Form'!G45,'Enrollment Form'!H$11:J$1000,3,FALSE),1))=FALSE,COUNTA('Enrollment Form'!$AW45:$AZ45)=4),\"Y\",\"N\"))","v":"-"},{"$f":"IF($B38=\"N\",\"\",IF('Enrollment Form'!$B45=\"Subscriber\",\"-\",IF(COUNTA('Enrollment Form'!$BE45,'Enrollment Form'!$BG45)=2,\"Y\",\"N\")))","v":""},{"$f":"IF($B38=\"N\",\"\",IF(OR('Enrollment Form'!$AU45=\"\",'Enrollment Form'!$AU45=\"No\"),\"-\",IF(AND('Enrollment Form'!$AU45=\"Yes\",COUNTA('Enrollment Form'!$CK45)=1),\"Y\",\"N\")))","v":""},{"$f":"IF(OR('Enrollment Form'!$CK45=\"\",'Enrollment Form'!$CK45=\"No\"),\"-\",IF(COUNTA('Enrollment Form'!$CM45:$CN45)=2,\"Y\",\"N\"))","v":"-"},{"$f":"IF($B38=\"N\",\"\",IF(COUNTIF('Enrollment Form'!$CZ45:$DO45,\"Other\")=COUNTA('Enrollment Form'!$DF45,'Enrollment Form'!$DA45,'Enrollment Form'!$DK45,'Enrollment Form'!$DP45),\"Y\",\"N\"))","v":""},{"$f":"IF($B38=\"N\",\"\",IF(OR('Enrollment Form'!B45<>\"Subscriber\",'Enrollment Form'!C45=\"ROC\",COUNTIF('Enrollment Form'!AS45:AT45,\"Yes\")>=1),\"-\",IF(AND('Enrollment Form'!C45=\"Enroll\",COUNTIF('Enrollment Form'!AS45:AT45,\"No\")=2,'Enrollment Form'!AU45=\"\"),\"N\",\"Y\")))","v":""},{"$f":"IF(OR(B38=\"N\",'Enrollment Form'!B45<>\"Subscriber\",'Enrollment Form'!C45=\"ROC\",'Enrollment Form'!O45<>\"Multiple of Salary\"),\"-\",IF(COUNTA('Enrollment Form'!T45:U45)<2,\"N\",\"Y\"))","v":"-"},{"$f":"IF(B38=\"N\",\"\",IF(OR('Enrollment Form'!C45=\"ROC\",'Enrollment Form'!B45<>\"Subscriber\",'Enrollment Form'!O45=\"Waive\",'Enrollment Form'!O45=\"\"),\"-\",IF('Enrollment Form'!P45=\"\",\"N\",\"Y\")))","v":""},{"$f":"IF($B38=\"N\",\"\",IF(AND('Enrollment Form'!$C45=\"ROC\",'Enrollment Form'!$DS45<>\"\"),\"Y\",IF(AND('Enrollment Form'!$C45=\"ROC\",'Enrollment Form'!$DS45=\"\"),\"N\",IF(AND('Enrollment Form'!$C45=\"Enroll\",'Enrollment Form'!$B45=\"Subscriber\",'Enrollment Form'!$CQ45=\"No\",'Enrollment Form'!$DS45=\"\"),\"N\",IF(AND('Enrollment Form'!$C45=\"Enroll\",'Enrollment Form'!$B45=\"Subscriber\",'Enrollment Form'!$CQ45=\"Yes\"),\"-\",\"Y\")))))","v":""},{"$f":"IF($B38=\"N\",\"\",IF(AND('Enrollment Form'!$C45=\"ROC\",'Enrollment Form'!$DT45<>\"\"),\"Y\",IF(AND('Enrollment Form'!$C45=\"ROC\",'Enrollment Form'!$DT45=\"\"),\"N\",IF(AND('Enrollment Form'!$C45=\"Enroll\",'Enrollment Form'!$B45=\"Subscriber\",'Enrollment Form'!$CQ45=\"No\",'Enrollment Form'!$DT45=\"\"),\"N\",IF(AND('Enrollment Form'!$C45=\"Enroll\",'Enrollment Form'!$B45=\"Subscriber\",'Enrollment Form'!$CQ45=\"Yes\"),\"-\",\"Y\")))))","v":""},{"$f":"IF('Enrollment Form'!AH45=\"\",\"\",IF(ISERROR(SEARCH(\".\",'Enrollment Form'!AH45,SEARCH(\"@\",'Enrollment Form'!AH45))),\"N\",\"Y\"))","v":""},{"$f":"IF(OR($B38=\"N\",'Enrollment Form'!$G45=\"\"),\"\",IF('Enrollment Form'!$B45<>\"Subscriber\",\"-\",IF(COUNTIF('Enrollment Form'!$AS45:$AT45,\"Yes\")=2,\"N\",\"Y\")))","v":""},{"$f":"IF(OR('Enrollment Form'!$CC45=\"\",'Enrollment Form'!$CC45=\"No\"),\"-\",IF(AND('Enrollment Form'!$CC45=\"Yes\",'Enrollment Form'!$CD45=\"\"),\"N\",\"Y\"))","v":"-"},{"$f":"IF(OR('Enrollment Form'!$CE45=\"\",'Enrollment Form'!$CE45=\"No\"),\"-\",IF(AND('Enrollment Form'!$CE45=\"Yes\",'Enrollment Form'!$CF45=\"\"),\"N\",\"Y\"))","v":"-"},{"$f":"IF(OR('Enrollment Form'!$CG45=\"\",'Enrollment Form'!$CG45=\"No\"),\"-\",IF(AND('Enrollment Form'!$CG45=\"Yes\",'Enrollment Form'!$CH45=\"\"),\"N\",\"Y\"))","v":"-"},{"$f":"IF(OR('Enrollment Form'!$CG45=\"\",'Enrollment Form'!$CG45=\"No\"),\"-\",IF(AND('Enrollment Form'!$CG45=\"Yes\",'Enrollment Form'!$CI45=\"\"),\"N\",\"Y\"))","v":"-"},{"$f":"IF('Enrollment Form'!B45<>\"Subscriber\",\"-\",IF(AND('Enrollment Form'!B45=\"Subscriber\",'Enrollment Form'!C45=\"Enroll\",'Enrollment Form'!AA45=\"\"),\"N\",\"Y\"))","v":"-"},{"$f":"IF(OR('Enrollment Form'!B45=\"Subscriber\",'Enrollment Form'!B45=\"\"),\"-\",IF('Enrollment Form'!BI45=\"\",\"N\",\"Y\"))","v":"-"},{"$f":"IF('Enrollment Form'!B45<>\"Subscriber\",\"-\",IF(AND('Enrollment Form'!B45=\"Subscriber\",'Enrollment Form'!G45=\"\"),\"N\",\"Y\"))","v":"-"},{"$f":"IF('Enrollment Form'!A45=\"\",\"\",IF('Enrollment Form'!B45=\"Subscriber\",\"-\",IF(AND('Enrollment Form'!B45<>\"Subscriber\",'Enrollment Form'!G45='Enrollment Form'!H45),\"N\",\"Y\")))","v":""},0,{"$nulls":6},"35","Medicare type of dialysis filled?","If end stage renal disease, type of dialysis must be populated","CG,CI"]
[{"$f":"1+A38","v":46},{"$f":"IF('Enrollment Form'!$A46<>\"\",\"Y\",\"N\")","v":"N"},{"$f":"IF(AND('Enrollment Form'!$B46=\"\",'Enrollment Form'!$C46<>\"\"),\"N\",IF($B39=\"N\",\"\",\"Y\"))","v":""},{"$f":"IF(OR($B39=\"N\",'Enrollment Form'!G46=\"\"),\"\",IF('Enrollment Form'!$B46<>\"Subscriber\",\"\",IF('Enrollment Form'!$G46='Enrollment Form'!$H46,\"Y\",\"N\")))","v":""},{"$f":"IF($B39=\"N\",\"\",IF(AND(COUNTIFS('Enrollment Form'!$H$11:$H$1000,'Enrollment Form'!$H46,'Enrollment Form'!$B$11:$B$1000,'Enrollment Form'!$B46)>1,'Enrollment Form'!$H46<>\"\"),\"N\",\"Y\"))","v":""},{"$f":"IF($B39=\"N\",\"\",IF(LEN('Enrollment Form'!$Y46)=0,\"\",IF(LEN('Enrollment Form'!$Y46)<>5,\"N\",\"Y\")))","v":""},{"$f":"IF($B39=\"N\",\"\",IF(LEN('Enrollment Form'!$AD46=0),\"\",IF(LEN('Enrollment Form'!$AD46)<>5,\"N\",\"Y\")))","v":""},{"$f":"IF($B39=\"N\",\"\",IF(LEN('Enrollment Form'!$BL46=0),\"\",IF(LEN('Enrollment Form'!$BL46)<>5,\"N\",\"Y\")))","v":""},{"$f":"IF($B39=\"N\",\"\",IF(LEN('Enrollment Form'!$AE46)=0,\"\",IF(LEN('Enrollment Form'!$AE46)<>10,\"N\",\"Y\")))","v":""},{"$f":"IF($B39=\"N\",\"\",IF(LEN('Enrollment Form'!$AF46)=0,\"\",IF(LEN('Enrollment Form'!$AF46)<>10,\"N\",\"Y\")))","v":""},{"$f":"IF('Enrollment Form'!$O46<>\"Graded\",\"-\",IF(AND('Enrollment Form'!$O46=\"Graded\",'Enrollment Form'!$AO46<>\"\"),\"Y\",\"N\"))","v":"-"},{"$f":"IF($B39=\"N\",\"\",IF(OR('Enrollment Form'!$B46<>\"Subscriber\",'Enrollment Form'!$C46=\"ROC\"),\"-\",IF(AND('Enrollment Form'!$B46=\"Subscriber\",'Enrollment Form'!$C46=\"Enroll\",'Enrollment Form'!$AJ46<>\"\"),\"Y\",\"N\")))","v":""},{"$f":"IF($B39=\"N\",\"\",IF(OR('Enrollment Form'!$B46<>\"Subscriber\",'Enrollment Form'!$C46=\"ROC\"),\"-\",IF(AND('Enrollment Form'!$B46=\"Subscriber\",'Enrollment Form'!$C46=\"Enroll\",'Enrollment Form'!$AK46<>\"\"),\"Y\",\"N\")))","v":""},{"$f":"IF($B39=\"N\",\"\",IF(OR('Enrollment Form'!$B46<>\"Subscriber\",'Enrollment Form'!$C46=\"ROC\"),\"-\",IF(AND('Enrollment Form'!$B46=\"Subscriber\",'Enrollment Form'!$C46=\"Enroll\",'Enrollment Form'!$AL46<>\"\"),\"Y\",\"N\")))","v":""},{"$f":"IF($B39=\"N\",\"\",IF(OR('Enrollment Form'!$B46<>\"Subscriber\",'Enrollment Form'!$C46=\"ROC\"),\"-\",IF(AND('Enrollment Form'!$B46=\"Subscriber\",'Enrollment Form'!$C46=\"Enroll\",'Enrollment Form'!$AM46<>\"\"),\"Y\",\"N\")))","v":""},{"$f":"IF($B39=\"N\",\"\",IF(OR('Enrollment Form'!$B46<>\"Subscriber\",'Enrollment Form'!$C46=\"ROC\"),\"-\",IF(AND('Enrollment Form'!$B46=\"Subscriber\",'Enrollment Form'!$C46=\"Enroll\",'Enrollment Form'!$AN46<>\"\"),\"Y\",\"N\")))","v":""},{"$f":"IF($B39=\"N\",\"\",IF(OR('Enrollment Form'!$B46<>\"Subscriber\",'Enrollment Form'!$C46=\"ROC\"),\"-\",IF(AND('Enrollment Form'!$B46=\"Subscriber\",'Enrollment Form'!$C46=\"Enroll\",'Enrollment Form'!$AP46<>\"\"),\"Y\",\"N\")))","v":""},{"$f":"IF($B39=\"N\",\"\",IF($Q39=\"-\",\"-\",IF(AND($Q39=\"Y\",'Enrollment Form'!$AP46=\"No\"),\"-\",IF(AND($Q39=\"Y\",'Enrollment Form'!$AP46=\"Yes\",'Enrollment Form'!$AQ46<>\"\"),\"Y\",\"N\"))))","v":""},{"$f":"IF($B39=\"N\",\"\",IF(OR('Enrollment Form'!$B46<>\"Subscriber\",'Enrollment Form'!$C46=\"ROC\"),\"-\",IF(AND('Enrollment Form'!$B46=\"Subscriber\",'Enrollment Form'!$C46=\"Enroll\",'Enrollment Form'!$CO46<>\"\"),\"Y\",\"N\")))","v":""},{"$f":"IF($B39=\"N\",\"\",IF($S39=\"-\",\"-\",IF(AND($S39=\"Y\",'Enrollment Form'!$CO46=\"No\"),\"-\",IF(AND($S39=\"Y\",'Enrollment Form'!$CO46=\"Yes\",'Enrollment Form'!$CP46<>\"\"),\"Y\",\"N\"))))","v":""},{"$f":"IF(OR('Enrollment Form'!$AV46=\"Yes\",'Enrollment Form'!$AV46=\"\"),\"-\",IF(AND('Enrollment Form'!$AV46=\"No\",ISERROR(FIND(\"HMO\",VLOOKUP('Enrollment Form'!G46,'Enrollment Form'!H$11:J$1000,3,FALSE),1))=FALSE,COUNTA('Enrollment Form'!$AW46:$AZ46)=4),\"Y\",\"N\"))","v":"-"},{"$f":"IF($B39=\"N\",\"\",IF('Enrollment Form'!$B46=\"Subscriber\",\"-\",IF(COUNTA('Enrollment Form'!$BE46,'Enrollment Form'!$BG46)=2,\"Y\",\"N\")))","v":""},{"$f":"IF($B39=\"N\",\"\",IF(OR('Enrollment Form'!$AU46=\"\",'Enrollment Form'!$AU46=\"No\"),\"-\",IF(AND('Enrollment Form'!$AU46=\"Yes\",COUNTA('Enrollment Form'!$CK46)=1),\"Y\",\"N\")))","v":""},{"$f":"IF(OR('Enrollment Form'!$CK46=\"\",'Enrollment Form'!$CK46=\"No\"),\"-\",IF(COUNTA('Enrollment Form'!$CM46:$CN46)=2,\"Y\",\"N\"))","v":"-"},{"$f":"IF($B39=\"N\",\"\",IF(COUNTIF('Enrollment Form'!$CZ46:$DO46,\"Other\")=COUNTA('Enrollment Form'!$DF46,'Enrollment Form'!$DA46,'Enrollment Form'!$DK46,'Enrollment Form'!$DP46),\"Y\",\"N\"))","v":""},{"$f":"IF($B39=\"N\",\"\",IF(OR('Enrollment Form'!B46<>\"Subscriber\",'Enrollment Form'!C46=\"ROC\",COUNTIF('Enrollment Form'!AS46:AT46,\"Yes\")>=1),\"-\",IF(AND('Enrollment Form'!C46=\"Enroll\",COUNTIF('Enrollment Form'!AS46:AT46,\"No\")=2,'Enrollment Form'!AU46=\"\"),\"N\",\"Y\")))","v":""},{"$f":"IF(OR(B39=\"N\",'Enrollment Form'!B46<>\"Subscriber\",'Enrollment Form'!C46=\"ROC\",'Enrollment Form'!O46<>\"Multiple of Salary\"),\"-\",IF(COUNTA('Enrollment Form'!T46:U46)<2,\"N\",\"Y\"))","v":"-"},{"$f":"IF(B39=\"N\",\"\",IF(OR('Enrollment Form'!C46=\"ROC\",'Enrollment Form'!B46<>\"Subscriber\",'Enrollment Form'!O46=\"Waive\",'Enrollment Form'!O46=\"\"),\"-\",IF('Enrollment Form'!P46=\"\",\"N\",\"Y\")))","v":""},{"$f":"IF($B39=\"N\",\"\",IF(AND('Enrollment Form'!$C46=\"ROC\",'Enrollment Form'!$DS46<>\"\"),\"Y\",IF(AND('Enrollment Form'!$C46=\"ROC\",'Enrollment Form'!$DS46=\"\"),\"N\",IF(AND('Enrollment Form'!$C46=\"Enroll\",'Enrollment Form'!$B46=\"Subscriber\",'Enrollment Form'!$CQ46=\"No\",'Enrollment Form'!$DS46=\"\"),\"N\",IF(AND('Enrollment Form'!$C46=\"Enroll\",'Enrollment Form'!$B46=\"Subscriber\",'Enrollment Form'!$CQ46=\"Yes\"),\"-\",\"Y\")))))","v":""},{"$f":"IF($B39=\"N\",\"\",IF(AND('Enrollment Form'!$C46=\"ROC\",'Enrollment Form'!$DT46<>\"\"),\"Y\",IF(AND('Enrollment Form'!$C46=\"ROC\",'Enrollment Form'!$DT46=\"\"),\"N\",IF(AND('Enrollment Form'!$C46=\"Enroll\",'Enrollment Form'!$B46=\"Subscriber\",'Enrollment Form'!$CQ46=\"No\",'Enrollment Form'!$DT46=\"\"),\"N\",IF(AND('Enrollment Form'!$C46=\"Enroll\",'Enrollment Form'!$B46=\"Subscriber\",'Enrollment Form'!$CQ46=\"Yes\"),\"-\",\"Y\")))))","v":""},{"$f":"IF('Enrollment Form'!AH46=\"\",\"\",IF(ISERROR(SEARCH(\".\",'Enrollment Form'!AH46,SEARCH(\"@\",'Enrollment Form'!AH46))),\"N\",\"Y\"))","v":""},{"$f":"IF(OR($B39=\"N\",'Enrollment Form'!$G46=\"\"),\"\",IF('Enrollment Form'!$B46<>\"Subscriber\",\"-\",IF(COUNTIF('Enrollment Form'!$AS46:$AT46,\"Yes\")=2,\"N\",\"Y\")))","v":""},{"$f":"IF(OR('Enrollment Form'!$CC46=\"\",'Enrollment Form'!$CC46=\"No\"),\"-\",IF(AND('Enrollment Form'!$CC46=\"Yes\",'Enrollment Form'!$CD46=\"\"),\"N\",\"Y\"))","v":"-"},{"$f":"IF(OR('Enrollment Form'!$CE46=\"\",'Enrollment Form'!$CE46=\"No\"),\"-\",IF(AND('Enrollment Form'!$CE46=\"Yes\",'Enrollment Form'!$CF46=\"\"),\"N\",\"Y\"))","v":"-"},{"$f":"IF(OR('Enrollment Form'!$CG46=\"\",'Enrollment Form'!$CG46=\"No\"),\"-\",IF(AND('Enrollment Form'!$CG46=\"Yes\",'Enrollment Form'!$CH46=\"\"),\"N\",\"Y\"))","v":"-"},{"$f":"IF(OR('Enrollment Form'!$CG46=\"\",'Enrollment Form'!$CG46=\"No\"),\"-\",IF(AND('Enrollment Form'!$CG46=\"Yes\",'Enrollment Form'!$CI46=\"\"),\"N\",\"Y\"))","v":"-"},{"$f":"IF('Enrollment Form'!B46<>\"Subscriber\",\"-\",IF(AND('Enrollment Form'!B46=\"Subscriber\",'Enrollment Form'!C46=\"Enroll\",'Enrollment Form'!AA46=\"\"),\"N\",\"Y\"))","v":"-"},{"$f":"IF(OR('Enrollment Form'!B46=\"Subscriber\",'Enrollment Form'!B46=\"\"),\"-\",IF('Enrollment Form'!BI46=\"\",\"N\",\"Y\"))","v":"-"},{"$f":"IF('Enrollment Form'!B46<>\"Subscriber\",\"-\",IF(AND('Enrollment Form'!B46=\"Subscriber\",'Enrollment Form'!G46=\"\"),\"N\",\"Y\"))","v":"-"},{"$f":"IF('Enrollment Form'!A46=\"\",\"\",IF('Enrollment Form'!B46=\"Subscriber\",\"-\",IF(AND('Enrollment Form'!B46<>\"Subscriber\",'Enrollment Form'!G46='Enrollment Form'!H46),\"N\",\"Y\")))","v":""},0,{"$nulls":6},"36","Sub Mailing Address filled?","If Applicant Type is Subscriber, then Subscriber Mailing Address must be populated","B,Z-AA"]
[47,{"$f":"IF('Enrollment Form'!$A47<>\"\",\"Y\",\"N\")","v":"N"},{"$f":"IF(AND('Enrollment Form'!$B47=\"\",'Enrollment Form'!$C47<>\"\"),\"N\",IF($B40=\"N\",\"\",\"Y\"))","v":""},{"$f":"IF(OR($B40=\"N\",'Enrollment Form'!G47=\"\"),\"\",IF('Enrollment Form'!$B47<>\"Subscriber\",\"\",IF('Enrollment Form'!$G47='Enrollment Form'!$H47,\"Y\",\"N\")))","v":""},{"$f":"IF($B40=\"N\",\"\",IF(AND(COUNTIFS('Enrollment Form'!$H$11:$H$1000,'Enrollment Form'!$H47,'Enrollment Form'!$B$11:$B$1000,'Enrollment Form'!$B47)>1,'Enrollment Form'!$H47<>\"\"),\"N\",\"Y\"))","v":""},{"$f":"IF($B40=\"N\",\"\",IF(LEN('Enrollment Form'!$Y47)=0,\"\",IF(LEN('Enrollment Form'!$Y47)<>5,\"N\",\"Y\")))","v":""},{"$f":"IF($B40=\"N\",\"\",IF(LEN('Enrollment Form'!$AD47=0),\"\",IF(LEN('Enrollment Form'!$AD47)<>5,\"N\",\"Y\")))","v":""},{"$f":"IF($B40=\"N\",\"\",IF(LEN('Enrollment Form'!$BL47=0),\"\",IF(LEN('Enrollment Form'!$BL47)<>5,\"N\",\"Y\")))","v":""},{"$f":"IF($B40=\"N\",\"\",IF(LEN('Enrollment Form'!$AE47)=0,\"\",IF(LEN('Enrollment Form'!$AE47)<>10,\"N\",\"Y\")))","v":""},{"$f":"IF($B40=\"N\",\"\",IF(LEN('Enrollment Form'!$AF47)=0,\"\",IF(LEN('Enrollment Form'!$AF47)<>10,\"N\",\"Y\")))","v":""},{"$f":"IF('Enrollment Form'!$O47<>\"Graded\",\"-\",IF(AND('Enrollment Form'!$O47=\"Graded\",'Enrollment Form'!$AO47<>\"\"),\"Y\",\"N\"))","v":"-"},{"$f":"IF($B40=\"N\",\"\",IF(OR('Enrollment Form'!$B47<>\"Subscriber\",'Enrollment Form'!$C47=\"ROC\"),\"-\",IF(AND('Enrollment Form'!$B47=\"Subscriber\",'Enrollment Form'!$C47=\"Enroll\",'Enrollment Form'!$AJ47<>\"\"),\"Y\",\"N\")))","v":""},{"$f":"IF($B40=\"N\",\"\",IF(OR('Enrollment Form'!$B47<>\"Subscriber\",'Enrollment Form'!$C47=\"ROC\"),\"-\",IF(AND('Enrollment Form'!$B47=\"Subscriber\",'Enrollment Form'!$C47=\"Enroll\",'Enrollment Form'!$AK47<>\"\"),\"Y\",\"N\")))","v":""},{"$f":"IF($B40=\"N\",\"\",IF(OR('Enrollment Form'!$B47<>\"Subscriber\",'Enrollment Form'!$C47=\"ROC\"),\"-\",IF(AND('Enrollment Form'!$B47=\"Subscriber\",'Enrollment Form'!$C47=\"Enroll\",'Enrollment Form'!$AL47<>\"\"),\"Y\",\"N\")))","v":""},{"$f":"IF($B40=\"N\",\"\",IF(OR('Enrollment Form'!$B47<>\"Subscriber\",'Enrollment Form'!$C47=\"ROC\"),\"-\",IF(AND('Enrollment Form'!$B47=\"Subscriber\",'Enrollment Form'!$C47=\"Enroll\",'Enrollment Form'!$AM47<>\"\"),\"Y\",\"N\")))","v":""},{"$f":"IF($B40=\"N\",\"\",IF(OR('Enrollment Form'!$B47<>\"Subscriber\",'Enrollment Form'!$C47=\"ROC\"),\"-\",IF(AND('Enrollment Form'!$B47=\"Subscriber\",'Enrollment Form'!$C47=\"Enroll\",'Enrollment Form'!$AN47<>\"\"),\"Y\",\"N\")))","v":""},{"$f":"IF($B40=\"N\",\"\",IF(OR('Enrollment Form'!$B47<>\"Subscriber\",'Enrollment Form'!$C47=\"ROC\"),\"-\",IF(AND('Enrollment Form'!$B47=\"Subscriber\",'Enrollment Form'!$C47=\"Enroll\",'Enrollment Form'!$AP47<>\"\"),\"Y\",\"N\")))","v":""},{"$f":"IF($B40=\"N\",\"\",IF($Q40=\"-\",\"-\",IF(AND($Q40=\"Y\",'Enrollment Form'!$AP47=\"No\"),\"-\",IF(AND($Q40=\"Y\",'Enrollment Form'!$AP47=\"Yes\",'Enrollment Form'!$AQ47<>\"\"),\"Y\",\"N\"))))","v":""},{"$f":"IF($B40=\"N\",\"\",IF(OR('Enrollment Form'!$B47<>\"Subscriber\",'Enrollment Form'!$C47=\"ROC\"),\"-\",IF(AND('Enrollment Form'!$B47=\"Subscriber\",'Enrollment Form'!$C47=\"Enroll\",'Enrollment Form'!$CO47<>\"\"),\"Y\",\"N\")))","v":""},{"$f":"IF($B40=\"N\",\"\",IF($S40=\"-\",\"-\",IF(AND($S40=\"Y\",'Enrollment Form'!$CO47=\"No\"),\"-\",IF(AND($S40=\"Y\",'Enrollment Form'!$CO47=\"Yes\",'Enrollment Form'!$CP47<>\"\"),\"Y\",\"N\"))))","v":""},{"$f":"IF(OR('Enrollment Form'!$AV47=\"Yes\",'Enrollment Form'!$AV47=\"\"),\"-\",IF(AND('Enrollment Form'!$AV47=\"No\",ISERROR(FIND(\"HMO\",VLOOKUP('Enrollment Form'!G47,'Enrollment Form'!H$11:J$1000,3,FALSE),1))=FALSE,COUNTA('Enrollment Form'!$AW47:$AZ47)=4),\"Y\",\"N\"))","v":"-"},{"$f":"IF($B40=\"N\",\"\",IF('Enrollment Form'!$B47=\"Subscriber\",\"-\",IF(COUNTA('Enrollment Form'!$BE47,'Enrollment Form'!$BG47)=2,\"Y\",\"N\")))","v":""},{"$f":"IF($B40=\"N\",\"\",IF(OR('Enrollment Form'!$AU47=\"\",'Enrollment Form'!$AU47=\"No\"),\"-\",IF(AND('Enrollment Form'!$AU47=\"Yes\",COUNTA('Enrollment Form'!$CK47)=1),\"Y\",\"N\")))","v":""},{"$f":"IF(OR('Enrollment Form'!$CK47=\"\",'Enrollment Form'!$CK47=\"No\"),\"-\",IF(COUNTA('Enrollment Form'!$CM47:$CN47)=2,\"Y\",\"N\"))","v":"-"},{"$f":"IF($B40=\"N\",\"\",IF(COUNTIF('Enrollment Form'!$CZ47:$DO47,\"Other\")=COUNTA('Enrollment Form'!$DF47,'Enrollment Form'!$DA47,'Enrollment Form'!$DK47,'Enrollment Form'!$DP47),\"Y\",\"N\"))","v":""},{"$f":"IF($B40=\"N\",\"\",IF(OR('Enrollment Form'!B47<>\"Subscriber\",'Enrollment Form'!C47=\"ROC\",COUNTIF('Enrollment Form'!AS47:AT47,\"Yes\")>=1),\"-\",IF(AND('Enrollment Form'!C47=\"Enroll\",COUNTIF('Enrollment Form'!AS47:AT47,\"No\")=2,'Enrollment Form'!AU47=\"\"),\"N\",\"Y\")))","v":""},{"$f":"IF(OR(B40=\"N\",'Enrollment Form'!B47<>\"Subscriber\",'Enrollment Form'!C47=\"ROC\",'Enrollment Form'!O47<>\"Multiple of Salary\"),\"-\",IF(COUNTA('Enrollment Form'!T47:U47)<2,\"N\",\"Y\"))","v":"-"},{"$f":"IF(B40=\"N\",\"\",IF(OR('Enrollment Form'!C47=\"ROC\",'Enrollment Form'!B47<>\"Subscriber\",'Enrollment Form'!O47=\"Waive\",'Enrollment Form'!O47=\"\"),\"-\",IF('Enrollment Form'!P47=\"\",\"N\",\"Y\")))","v":""},{"$f":"IF($B40=\"N\",\"\",IF(AND('Enrollment Form'!$C47=\"ROC\",'Enrollment Form'!$DS47<>\"\"),\"Y\",IF(AND('Enrollment Form'!$C47=\"ROC\",'Enrollment Form'!$DS47=\"\"),\"N\",IF(AND('Enrollment Form'!$C47=\"Enroll\",'Enrollment Form'!$B47=\"Subscriber\",'Enrollment Form'!$CQ47=\"No\",'Enrollment Form'!$DS47=\"\"),\"N\",IF(AND('Enrollment Form'!$C47=\"Enroll\",'Enrollment Form'!$B47=\"Subscriber\",'Enrollment Form'!$CQ47=\"Yes\"),\"-\",\"Y\")))))","v":""},{"$f":"IF($B40=\"N\",\"\",IF(AND('Enrollment Form'!$C47=\"ROC\",'Enrollment Form'!$DT47<>\"\"),\"Y\",IF(AND('Enrollment Form'!$C47=\"ROC\",'Enrollment Form'!$DT47=\"\"),\"N\",IF(AND('Enrollment Form'!$C47=\"Enroll\",'Enrollment Form'!$B47=\"Subscriber\",'Enrollment Form'!$CQ47=\"No\",'Enrollment Form'!$DT47=\"\"),\"N\",IF(AND('Enrollment Form'!$C47=\"Enroll\",'Enrollment Form'!$B47=\"Subscriber\",'Enrollment Form'!$CQ47=\"Yes\"),\"-\",\"Y\")))))","v":""},{"$f":"IF('Enrollment Form'!AH47=\"\",\"\",IF(ISERROR(SEARCH(\".\",'Enrollment Form'!AH47,SEARCH(\"@\",'Enrollment Form'!AH47))),\"N\",\"Y\"))","v":""},{"$f":"IF(OR($B40=\"N\",'Enrollment Form'!$G47=\"\"),\"\",IF('Enrollment Form'!$B47<>\"Subscriber\",\"-\",IF(COUNTIF('Enrollment Form'!$AS47:$AT47,\"Yes\")=2,\"N\",\"Y\")))","v":""},{"$f":"IF(OR('Enrollment Form'!$CC47=\"\",'Enrollment Form'!$CC47=\"No\"),\"-\",IF(AND('Enrollment Form'!$CC47=\"Yes\",'Enrollment Form'!$CD47=\"\"),\"N\",\"Y\"))","v":"-"},{"$f":"IF(OR('Enrollment Form'!$CE47=\"\",'Enrollment Form'!$CE47=\"No\"),\"-\",IF(AND('Enrollment Form'!$CE47=\"Yes\",'Enrollment Form'!$CF47=\"\"),\"N\",\"Y\"))","v":"-"},{"$f":"IF(OR('Enrollment Form'!$CG47=\"\",'Enrollment Form'!$CG47=\"No\"),\"-\",IF(AND('Enrollment Form'!$CG47=\"Yes\",'Enrollment Form'!$CH47=\"\"),\"N\",\"Y\"))","v":"-"},{"$f":"IF(OR('Enrollment Form'!$CG47=\"\",'Enrollment Form'!$CG47=\"No\"),\"-\",IF(AND('Enrollment Form'!$CG47=\"Yes\",'Enrollment Form'!$CI47=\"\"),\"N\",\"Y\"))","v":"-"},{"$f":"IF('Enrollment Form'!B47<>\"Subscriber\",\"-\",IF(AND('Enrollment Form'!B47=\"Subscriber\",'Enrollment Form'!C47=\"Enroll\",'Enrollment Form'!AA47=\"\"),\"N\",\"Y\"))","v":"-"},{"$f":"IF(OR('Enrollment Form'!B47=\"Subscriber\",'Enrollment Form'!B47=\"\"),\"-\",IF('Enrollment Form'!BI47=\"\",\"N\",\"Y\"))","v":"-"},{"$f":"IF('Enrollment Form'!B47<>\"Subscriber\",\"-\",IF(AND('Enrollment Form'!B47=\"Subscriber\",'Enrollment Form'!G47=\"\"),\"N\",\"Y\"))","v":"-"},{"$f":"IF('Enrollment Form'!A47=\"\",\"\",IF('Enrollment Form'!B47=\"Subscriber\",\"-\",IF(AND('Enrollment Form'!B47<>\"Subscriber\",'Enrollment Form'!G47='Enrollment Form'!H47),\"N\",\"Y\")))","v":""},0,{"$nulls":6},"37","Dependent Address filled?","If Applicant Type is a dependent, then Dependent Address must be populated","B,BH-BI"]
[48,{"$f":"IF('Enrollment Form'!$A48<>\"\",\"Y\",\"N\")","v":"N"},{"$f":"IF(AND('Enrollment Form'!$B48=\"\",'Enrollment Form'!$C48<>\"\"),\"N\",IF($B41=\"N\",\"\",\"Y\"))","v":""},{"$f":"IF(OR($B41=\"N\",'Enrollment Form'!G48=\"\"),\"\",IF('Enrollment Form'!$B48<>\"Subscriber\",\"\",IF('Enrollment Form'!$G48='Enrollment Form'!$H48,\"Y\",\"N\")))","v":""},{"$f":"IF($B41=\"N\",\"\",IF(AND(COUNTIFS('Enrollment Form'!$H$11:$H$1000,'Enrollment Form'!$H48,'Enrollment Form'!$B$11:$B$1000,'Enrollment Form'!$B48)>1,'Enrollment Form'!$H48<>\"\"),\"N\",\"Y\"))","v":""},{"$f":"IF($B41=\"N\",\"\",IF(LEN('Enrollment Form'!$Y48)=0,\"\",IF(LEN('Enrollment Form'!$Y48)<>5,\"N\",\"Y\")))","v":""},{"$f":"IF($B41=\"N\",\"\",IF(LEN('Enrollment Form'!$AD48=0),\"\",IF(LEN('Enrollment Form'!$AD48)<>5,\"N\",\"Y\")))","v":""},{"$f":"IF($B41=\"N\",\"\",IF(LEN('Enrollment Form'!$BL48=0),\"\",IF(LEN('Enrollment Form'!$BL48)<>5,\"N\",\"Y\")))","v":""},{"$f":"IF($B41=\"N\",\"\",IF(LEN('Enrollment Form'!$AE48)=0,\"\",IF(LEN('Enrollment Form'!$AE48)<>10,\"N\",\"Y\")))","v":""},{"$f":"IF($B41=\"N\",\"\",IF(LEN('Enrollment Form'!$AF48)=0,\"\",IF(LEN('Enrollment Form'!$AF48)<>10,\"N\",\"Y\")))","v":""},{"$f":"IF('Enrollment Form'!$O48<>\"Graded\",\"-\",IF(AND('Enrollment Form'!$O48=\"Graded\",'Enrollment Form'!$AO48<>\"\"),\"Y\",\"N\"))","v":"-"},{"$f":"IF($B41=\"N\",\"\",IF(OR('Enrollment Form'!$B48<>\"Subscriber\",'Enrollment Form'!$C48=\"ROC\"),\"-\",IF(AND('Enrollment Form'!$B48=\"Subscriber\",'Enrollment Form'!$C48=\"Enroll\",'Enrollment Form'!$AJ48<>\"\"),\"Y\",\"N\")))","v":""},{"$f":"IF($B41=\"N\",\"\",IF(OR('Enrollment Form'!$B48<>\"Subscriber\",'Enrollment Form'!$C48=\"ROC\"),\"-\",IF(AND('Enrollment Form'!$B48=\"Subscriber\",'Enrollment Form'!$C48=\"Enroll\",'Enrollment Form'!$AK48<>\"\"),\"Y\",\"N\")))","v":""},{"$f":"IF($B41=\"N\",\"\",IF(OR('Enrollment Form'!$B48<>\"Subscriber\",'Enrollment Form'!$C48=\"ROC\"),\"-\",IF(AND('Enrollment Form'!$B48=\"Subscriber\",'Enrollment Form'!$C48=\"Enroll\",'Enrollment Form'!$AL48<>\"\"),\"Y\",\"N\")))","v":""},{"$f":"IF($B41=\"N\",\"\",IF(OR('Enrollment Form'!$B48<>\"Subscriber\",'Enrollment Form'!$C48=\"ROC\"),\"-\",IF(AND('Enrollment Form'!$B48=\"Subscriber\",'Enrollment Form'!$C48=\"Enroll\",'Enrollment Form'!$AM48<>\"\"),\"Y\",\"N\")))","v":""},{"$f":"IF($B41=\"N\",\"\",IF(OR('Enrollment Form'!$B48<>\"Subscriber\",'Enrollment Form'!$C48=\"ROC\"),\"-\",IF(AND('Enrollment Form'!$B48=\"Subscriber\",'Enrollment Form'!$C48=\"Enroll\",'Enrollment Form'!$AN48<>\"\"),\"Y\",\"N\")))","v":""},{"$f":"IF($B41=\"N\",\"\",IF(OR('Enrollment Form'!$B48<>\"Subscriber\",'Enrollment Form'!$C48=\"ROC\"),\"-\",IF(AND('Enrollment Form'!$B48=\"Subscriber\",'Enrollment Form'!$C48=\"Enroll\",'Enrollment Form'!$AP48<>\"\"),\"Y\",\"N\")))","v":""},{"$f":"IF($B41=\"N\",\"\",IF($Q41=\"-\",\"-\",IF(AND($Q41=\"Y\",'Enrollment Form'!$AP48=\"No\"),\"-\",IF(AND($Q41=\"Y\",'Enrollment Form'!$AP48=\"Yes\",'Enrollment Form'!$AQ48<>\"\"),\"Y\",\"N\"))))","v":""},{"$f":"IF($B41=\"N\",\"\",IF(OR('Enrollment Form'!$B48<>\"Subscriber\",'Enrollment Form'!$C48=\"ROC\"),\"-\",IF(AND('Enrollment Form'!$B48=\"Subscriber\",'Enrollment Form'!$C48=\"Enroll\",'Enrollment Form'!$CO48<>\"\"),\"Y\",\"N\")))","v":""},{"$f":"IF($B41=\"N\",\"\",IF($S41=\"-\",\"-\",IF(AND($S41=\"Y\",'Enrollment Form'!$CO48=\"No\"),\"-\",IF(AND($S41=\"Y\",'Enrollment Form'!$CO48=\"Yes\",'Enrollment Form'!$CP48<>\"\"),\"Y\",\"N\"))))","v":""},{"$f":"IF(OR('Enrollment Form'!$AV48=\"Yes\",'Enrollment Form'!$AV48=\"\"),\"-\",IF(AND('Enrollment Form'!$AV48=\"No\",ISERROR(FIND(\"HMO\",VLOOKUP('Enrollment Form'!G48,'Enrollment Form'!H$11:J$1000,3,FALSE),1))=FALSE,COUNTA('Enrollment Form'!$AW48:$AZ48)=4),\"Y\",\"N\"))","v":"-"},{"$f":"IF($B41=\"N\",\"\",IF('Enrollment Form'!$B48=\"Subscriber\",\"-\",IF(COUNTA('Enrollment Form'!$BE48,'Enrollment Form'!$BG48)=2,\"Y\",\"N\")))","v":""},{"$f":"IF($B41=\"N\",\"\",IF(OR('Enrollment Form'!$AU48=\"\",'Enrollment Form'!$AU48=\"No\"),\"-\",IF(AND('Enrollment Form'!$AU48=\"Yes\",COUNTA('Enrollment Form'!$CK48)=1),\"Y\",\"N\")))","v":""},{"$f":"IF(OR('Enrollment Form'!$CK48=\"\",'Enrollment Form'!$CK48=\"No\"),\"-\",IF(COUNTA('Enrollment Form'!$CM48:$CN48)=2,\"Y\",\"N\"))","v":"-"},{"$f":"IF($B41=\"N\",\"\",IF(COUNTIF('Enrollment Form'!$CZ48:$DO48,\"Other\")=COUNTA('Enrollment Form'!$DF48,'Enrollment Form'!$DA48,'Enrollment Form'!$DK48,'Enrollment Form'!$DP48),\"Y\",\"N\"))","v":""},{"$f":"IF($B41=\"N\",\"\",IF(OR('Enrollment Form'!B48<>\"Subscriber\",'Enrollment Form'!C48=\"ROC\",COUNTIF('Enrollment Form'!AS48:AT48,\"Yes\")>=1),\"-\",IF(AND('Enrollment Form'!C48=\"Enroll\",COUNTIF('Enrollment Form'!AS48:AT48,\"No\")=2,'Enrollment Form'!AU48=\"\"),\"N\",\"Y\")))","v":""},{"$f":"IF(OR(B41=\"N\",'Enrollment Form'!B48<>\"Subscriber\",'Enrollment Form'!C48=\"ROC\",'Enrollment Form'!O48<>\"Multiple of Salary\"),\"-\",IF(COUNTA('Enrollment Form'!T48:U48)<2,\"N\",\"Y\"))","v":"-"},{"$f":"IF(B41=\"N\",\"\",IF(OR('Enrollment Form'!C48=\"ROC\",'Enrollment Form'!B48<>\"Subscriber\",'Enrollment Form'!O48=\"Waive\",'Enrollment Form'!O48=\"\"),\"-\",IF('Enrollment Form'!P48=\"\",\"N\",\"Y\")))","v":""},{"$f":"IF($B41=\"N\",\"\",IF(AND('Enrollment Form'!$C48=\"ROC\",'Enrollment Form'!$DS48<>\"\"),\"Y\",IF(AND('Enrollment Form'!$C48=\"ROC\",'Enrollment Form'!$DS48=\"\"),\"N\",IF(AND('Enrollment Form'!$C48=\"Enroll\",'Enrollment Form'!$B48=\"Subscriber\",'Enrollment Form'!$CQ48=\"No\",'Enrollment Form'!$DS48=\"\"),\"N\",IF(AND('Enrollment Form'!$C48=\"Enroll\",'Enrollment Form'!$B48=\"Subscriber\",'Enrollment Form'!$CQ48=\"Yes\"),\"-\",\"Y\")))))","v":""},{"$f":"IF($B41=\"N\",\"\",IF(AND('Enrollment Form'!$C48=\"ROC\",'Enrollment Form'!$DT48<>\"\"),\"Y\",IF(AND('Enrollment Form'!$C48=\"ROC\",'Enrollment Form'!$DT48=\"\"),\"N\",IF(AND('Enrollment Form'!$C48=\"Enroll\",'Enrollment Form'!$B48=\"Subscriber\",'Enrollment Form'!$CQ48=\"No\",'Enrollment Form'!$DT48=\"\"),\"N\",IF(AND('Enrollment Form'!$C48=\"Enroll\",'Enrollment Form'!$B48=\"Subscriber\",'Enrollment Form'!$CQ48=\"Yes\"),\"-\",\"Y\")))))","v":""},{"$f":"IF('Enrollment Form'!AH48=\"\",\"\",IF(ISERROR(SEARCH(\".\",'Enrollment Form'!AH48,SEARCH(\"@\",'Enrollment Form'!AH48))),\"N\",\"Y\"))","v":""},{"$f":"IF(OR($B41=\"N\",'Enrollment Form'!$G48=\"\"),\"\",IF('Enrollment Form'!$B48<>\"Subscriber\",\"-\",IF(COUNTIF('Enrollment Form'!$AS48:$AT48,\"Yes\")=2,\"N\",\"Y\")))","v":""},{"$f":"IF(OR('Enrollment Form'!$CC48=\"\",'Enrollment Form'!$CC48=\"No\"),\"-\",IF(AND('Enrollment Form'!$CC48=\"Yes\",'Enrollment Form'!$CD48=\"\"),\"N\",\"Y\"))","v":"-"},{"$f":"IF(OR('Enrollment Form'!$CE48=\"\",'Enrollment Form'!$CE48=\"No\"),\"-\",IF(AND('Enrollment Form'!$CE48=\"Yes\",'Enrollment Form'!$CF48=\"\"),\"N\",\"Y\"))","v":"-"},{"$f":"IF(OR('Enrollment Form'!$CG48=\"\",'Enrollment Form'!$CG48=\"No\"),\"-\",IF(AND('Enrollment Form'!$CG48=\"Yes\",'Enrollment Form'!$CH48=\"\"),\"N\",\"Y\"))","v":"-"},{"$f":"IF(OR('Enrollment Form'!$CG48=\"\",'Enrollment Form'!$CG48=\"No\"),\"-\",IF(AND('Enrollment Form'!$CG48=\"Yes\",'Enrollment Form'!$CI48=\"\"),\"N\",\"Y\"))","v":"-"},{"$f":"IF('Enrollment Form'!B48<>\"Subscriber\",\"-\",IF(AND('Enrollment Form'!B48=\"Subscriber\",'Enrollment Form'!C48=\"Enroll\",'Enrollment Form'!AA48=\"\"),\"N\",\"Y\"))","v":"-"},{"$f":"IF(OR('Enrollment Form'!B48=\"Subscriber\",'Enrollment Form'!B48=\"\"),\"-\",IF('Enrollment Form'!BI48=\"\",\"N\",\"Y\"))","v":"-"},{"$f":"IF('Enrollment Form'!B48<>\"Subscriber\",\"-\",IF(AND('Enrollment Form'!B48=\"Subscriber\",'Enrollment Form'!G48=\"\"),\"N\",\"Y\"))","v":"-"},{"$f":"IF('Enrollment Form'!A48=\"\",\"\",IF('Enrollment Form'!B48=\"Subscriber\",\"-\",IF(AND('Enrollment Form'!B48<>\"Subscriber\",'Enrollment Form'!G48='Enrollment Form'!H48),\"N\",\"Y\")))","v":""},0,{"$nulls":6},"38","SSN populated for Subscriber?","If Applicant Type is Subscriber, then Subscriber SSN must be populated","B,G"]
[49,{"$f":"IF('Enrollment Form'!$A49<>\"\",\"Y\",\"N\")","v":"N"},{"$f":"IF(AND('Enrollment Form'!$B49=\"\",'Enrollment Form'!$C49<>\"\"),\"N\",IF($B42=\"N\",\"\",\"Y\"))","v":""},{"$f":"IF(OR($B42=\"N\",'Enrollment Form'!G49=\"\"),\"\",IF('Enrollment Form'!$B49<>\"Subscriber\",\"\",IF('Enrollment Form'!$G49='Enrollment Form'!$H49,\"Y\",\"N\")))","v":""},{"$f":"IF($B42=\"N\",\"\",IF(AND(COUNTIFS('Enrollment Form'!$H$11:$H$1000,'Enrollment Form'!$H49,'Enrollment Form'!$B$11:$B$1000,'Enrollment Form'!$B49)>1,'Enrollment Form'!$H49<>\"\"),\"N\",\"Y\"))","v":""},{"$f":"IF($B42=\"N\",\"\",IF(LEN('Enrollment Form'!$Y49)=0,\"\",IF(LEN('Enrollment Form'!$Y49)<>5,\"N\",\"Y\")))","v":""},{"$f":"IF($B42=\"N\",\"\",IF(LEN('Enrollment Form'!$AD49=0),\"\",IF(LEN('Enrollment Form'!$AD49)<>5,\"N\",\"Y\")))","v":""},{"$f":"IF($B42=\"N\",\"\",IF(LEN('Enrollment Form'!$BL49=0),\"\",IF(LEN('Enrollment Form'!$BL49)<>5,\"N\",\"Y\")))","v":""},{"$f":"IF($B42=\"N\",\"\",IF(LEN('Enrollment Form'!$AE49)=0,\"\",IF(LEN('Enrollment Form'!$AE49)<>10,\"N\",\"Y\")))","v":""},{"$f":"IF($B42=\"N\",\"\",IF(LEN('Enrollment Form'!$AF49)=0,\"\",IF(LEN('Enrollment Form'!$AF49)<>10,\"N\",\"Y\")))","v":""},{"$f":"IF('Enrollment Form'!$O49<>\"Graded\",\"-\",IF(AND('Enrollment Form'!$O49=\"Graded\",'Enrollment Form'!$AO49<>\"\"),\"Y\",\"N\"))","v":"-"},{"$f":"IF($B42=\"N\",\"\",IF(OR('Enrollment Form'!$B49<>\"Subscriber\",'Enrollment Form'!$C49=\"ROC\"),\"-\",IF(AND('Enrollment Form'!$B49=\"Subscriber\",'Enrollment Form'!$C49=\"Enroll\",'Enrollment Form'!$AJ49<>\"\"),\"Y\",\"N\")))","v":""},{"$f":"IF($B42=\"N\",\"\",IF(OR('Enrollment Form'!$B49<>\"Subscriber\",'Enrollment Form'!$C49=\"ROC\"),\"-\",IF(AND('Enrollment Form'!$B49=\"Subscriber\",'Enrollment Form'!$C49=\"Enroll\",'Enrollment Form'!$AK49<>\"\"),\"Y\",\"N\")))","v":""},{"$f":"IF($B42=\"N\",\"\",IF(OR('Enrollment Form'!$B49<>\"Subscriber\",'Enrollment Form'!$C49=\"ROC\"),\"-\",IF(AND('Enrollment Form'!$B49=\"Subscriber\",'Enrollment Form'!$C49=\"Enroll\",'Enrollment Form'!$AL49<>\"\"),\"Y\",\"N\")))","v":""},{"$f":"IF($B42=\"N\",\"\",IF(OR('Enrollment Form'!$B49<>\"Subscriber\",'Enrollment Form'!$C49=\"ROC\"),\"-\",IF(AND('Enrollment Form'!$B49=\"Subscriber\",'Enrollment Form'!$C49=\"Enroll\",'Enrollment Form'!$AM49<>\"\"),\"Y\",\"N\")))","v":""},{"$f":"IF($B42=\"N\",\"\",IF(OR('Enrollment Form'!$B49<>\"Subscriber\",'Enrollment Form'!$C49=\"ROC\"),\"-\",IF(AND('Enrollment Form'!$B49=\"Subscriber\",'Enrollment Form'!$C49=\"Enroll\",'Enrollment Form'!$AN49<>\"\"),\"Y\",\"N\")))","v":""},{"$f":"IF($B42=\"N\",\"\",IF(OR('Enrollment Form'!$B49<>\"Subscriber\",'Enrollment Form'!$C49=\"ROC\"),\"-\",IF(AND('Enrollment Form'!$B49=\"Subscriber\",'Enrollment Form'!$C49=\"Enroll\",'Enrollment Form'!$AP49<>\"\"),\"Y\",\"N\")))","v":""},{"$f":"IF($B42=\"N\",\"\",IF($Q42=\"-\",\"-\",IF(AND($Q42=\"Y\",'Enrollment Form'!$AP49=\"No\"),\"-\",IF(AND($Q42=\"Y\",'Enrollment Form'!$AP49=\"Yes\",'Enrollment Form'!$AQ49<>\"\"),\"Y\",\"N\"))))","v":""},{"$f":"IF($B42=\"N\",\"\",IF(OR('Enrollment Form'!$B49<>\"Subscriber\",'Enrollment Form'!$C49=\"ROC\"),\"-\",IF(AND('Enrollment Form'!$B49=\"Subscriber\",'Enrollment Form'!$C49=\"Enroll\",'Enrollment Form'!$CO49<>\"\"),\"Y\",\"N\")))","v":""},{"$f":"IF($B42=\"N\",\"\",IF($S42=\"-\",\"-\",IF(AND($S42=\"Y\",'Enrollment Form'!$CO49=\"No\"),\"-\",IF(AND($S42=\"Y\",'Enrollment Form'!$CO49=\"Yes\",'Enrollment Form'!$CP49<>\"\"),\"Y\",\"N\"))))","v":""},{"$f":"IF(OR('Enrollment Form'!$AV49=\"Yes\",'Enrollment Form'!$AV49=\"\"),\"-\",IF(AND('Enrollment Form'!$AV49=\"No\",ISERROR(FIND(\"HMO\",VLOOKUP('Enrollment Form'!G49,'Enrollment Form'!H$11:J$1000,3,FALSE),1))=FALSE,COUNTA('Enrollment Form'!$AW49:$AZ49)=4),\"Y\",\"N\"))","v":"-"},{"$f":"IF($B42=\"N\",\"\",IF('Enrollment Form'!$B49=\"Subscriber\",\"-\",IF(COUNTA('Enrollment Form'!$BE49,'Enrollment Form'!$BG49)=2,\"Y\",\"N\")))","v":""},{"$f":"IF($B42=\"N\",\"\",IF(OR('Enrollment Form'!$AU49=\"\",'Enrollment Form'!$AU49=\"No\"),\"-\",IF(AND('Enrollment Form'!$AU49=\"Yes\",COUNTA('Enrollment Form'!$CK49)=1),\"Y\",\"N\")))","v":""},{"$f":"IF(OR('Enrollment Form'!$CK49=\"\",'Enrollment Form'!$CK49=\"No\"),\"-\",IF(COUNTA('Enrollment Form'!$CM49:$CN49)=2,\"Y\",\"N\"))","v":"-"},{"$f":"IF($B42=\"N\",\"\",IF(COUNTIF('Enrollment Form'!$CZ49:$DO49,\"Other\")=COUNTA('Enrollment Form'!$DF49,'Enrollment Form'!$DA49,'Enrollment Form'!$DK49,'Enrollment Form'!$DP49),\"Y\",\"N\"))","v":""},{"$f":"IF($B42=\"N\",\"\",IF(OR('Enrollment Form'!B49<>\"Subscriber\",'Enrollment Form'!C49=\"ROC\",COUNTIF('Enrollment Form'!AS49:AT49,\"Yes\")>=1),\"-\",IF(AND('Enrollment Form'!C49=\"Enroll\",COUNTIF('Enrollment Form'!AS49:AT49,\"No\")=2,'Enrollment Form'!AU49=\"\"),\"N\",\"Y\")))","v":""},{"$f":"IF(OR(B42=\"N\",'Enrollment Form'!B49<>\"Subscriber\",'Enrollment Form'!C49=\"ROC\",'Enrollment Form'!O49<>\"Multiple of Salary\"),\"-\",IF(COUNTA('Enrollment Form'!T49:U49)<2,\"N\",\"Y\"))","v":"-"},{"$f":"IF(B42=\"N\",\"\",IF(OR('Enrollment Form'!C49=\"ROC\",'Enrollment Form'!B49<>\"Subscriber\",'Enrollment Form'!O49=\"Waive\",'Enrollment Form'!O49=\"\"),\"-\",IF('Enrollment Form'!P49=\"\",\"N\",\"Y\")))","v":""},{"$f":"IF($B42=\"N\",\"\",IF(AND('Enrollment Form'!$C49=\"ROC\",'Enrollment Form'!$DS49<>\"\"),\"Y\",IF(AND('Enrollment Form'!$C49=\"ROC\",'Enrollment Form'!$DS49=\"\"),\"N\",IF(AND('Enrollment Form'!$C49=\"Enroll\",'Enrollment Form'!$B49=\"Subscriber\",'Enrollment Form'!$CQ49=\"No\",'Enrollment Form'!$DS49=\"\"),\"N\",IF(AND('Enrollment Form'!$C49=\"Enroll\",'Enrollment Form'!$B49=\"Subscriber\",'Enrollment Form'!$CQ49=\"Yes\"),\"-\",\"Y\")))))","v":""},{"$f":"IF($B42=\"N\",\"\",IF(AND('Enrollment Form'!$C49=\"ROC\",'Enrollment Form'!$DT49<>\"\"),\"Y\",IF(AND('Enrollment Form'!$C49=\"ROC\",'Enrollment Form'!$DT49=\"\"),\"N\",IF(AND('Enrollment Form'!$C49=\"Enroll\",'Enrollment Form'!$B49=\"Subscriber\",'Enrollment Form'!$CQ49=\"No\",'Enrollment Form'!$DT49=\"\"),\"N\",IF(AND('Enrollment Form'!$C49=\"Enroll\",'Enrollment Form'!$B49=\"Subscriber\",'Enrollment Form'!$CQ49=\"Yes\"),\"-\",\"Y\")))))","v":""},{"$f":"IF('Enrollment Form'!AH49=\"\",\"\",IF(ISERROR(SEARCH(\".\",'Enrollment Form'!AH49,SEARCH(\"@\",'Enrollment Form'!AH49))),\"N\",\"Y\"))","v":""},{"$f":"IF(OR($B42=\"N\",'Enrollment Form'!$G49=\"\"),\"\",IF('Enrollment Form'!$B49<>\"Subscriber\",\"-\",IF(COUNTIF('Enrollment Form'!$AS49:$AT49,\"Yes\")=2,\"N\",\"Y\")))","v":""},{"$f":"IF(OR('Enrollment Form'!$CC49=\"\",'Enrollment Form'!$CC49=\"No\"),\"-\",IF(AND('Enrollment Form'!$CC49=\"Yes\",'Enrollment Form'!$CD49=\"\"),\"N\",\"Y\"))","v":"-"},{"$f":"IF(OR('Enrollment Form'!$CE49=\"\",'Enrollment Form'!$CE49=\"No\"),\"-\",IF(AND('Enrollment Form'!$CE49=\"Yes\",'Enrollment Form'!$CF49=\"\"),\"N\",\"Y\"))","v":"-"},{"$f":"IF(OR('Enrollment Form'!$CG49=\"\",'Enrollment Form'!$CG49=\"No\"),\"-\",IF(AND('Enrollment Form'!$CG49=\"Yes\",'Enrollment Form'!$CH49=\"\"),\"N\",\"Y\"))","v":"-"},{"$f":"IF(OR('Enrollment Form'!$CG49=\"\",'Enrollment Form'!$CG49=\"No\"),\"-\",IF(AND('Enrollment Form'!$CG49=\"Yes\",'Enrollment Form'!$CI49=\"\"),\"N\",\"Y\"))","v":"-"},{"$f":"IF('Enrollment Form'!B49<>\"Subscriber\",\"-\",IF(AND('Enrollment Form'!B49=\"Subscriber\",'Enrollment Form'!C49=\"Enroll\",'Enrollment Form'!AA49=\"\"),\"N\",\"Y\"))","v":"-"},{"$f":"IF(OR('Enrollment Form'!B49=\"Subscriber\",'Enrollment Form'!B49=\"\"),\"-\",IF('Enrollment Form'!BI49=\"\",\"N\",\"Y\"))","v":"-"},{"$f":"IF('Enrollment Form'!B49<>\"Subscriber\",\"-\",IF(AND('Enrollment Form'!B49=\"Subscriber\",'Enrollment Form'!G49=\"\"),\"N\",\"Y\"))","v":"-"},{"$f":"IF('Enrollment Form'!A49=\"\",\"\",IF('Enrollment Form'!B49=\"Subscriber\",\"-\",IF(AND('Enrollment Form'!B49<>\"Subscriber\",'Enrollment Form'!G49='Enrollment Form'!H49),\"N\",\"Y\")))","v":""},0,{"$nulls":6},"39","Sub & Dependent SSNs different?","If Applicant Type is not Subscriber, then SSN Dependent should not match that of Subscriber","G,H"]
[50,{"$f":"IF('Enrollment Form'!$A50<>\"\",\"Y\",\"N\")","v":"N"},{"$f":"IF(AND('Enrollment Form'!$B50=\"\",'Enrollment Form'!$C50<>\"\"),\"N\",IF($B43=\"N\",\"\",\"Y\"))","v":""},{"$f":"IF(OR($B43=\"N\",'Enrollment Form'!G50=\"\"),\"\",IF('Enrollment Form'!$B50<>\"Subscriber\",\"\",IF('Enrollment Form'!$G50='Enrollment Form'!$H50,\"Y\",\"N\")))","v":""},{"$f":"IF($B43=\"N\",\"\",IF(AND(COUNTIFS('Enrollment Form'!$H$11:$H$1000,'Enrollment Form'!$H50,'Enrollment Form'!$B$11:$B$1000,'Enrollment Form'!$B50)>1,'Enrollment Form'!$H50<>\"\"),\"N\",\"Y\"))","v":""},{"$f":"IF($B43=\"N\",\"\",IF(LEN('Enrollment Form'!$Y50)=0,\"\",IF(LEN('Enrollment Form'!$Y50)<>5,\"N\",\"Y\")))","v":""},{"$f":"IF($B43=\"N\",\"\",IF(LEN('Enrollment Form'!$AD50=0),\"\",IF(LEN('Enrollment Form'!$AD50)<>5,\"N\",\"Y\")))","v":""},{"$f":"IF($B43=\"N\",\"\",IF(LEN('Enrollment Form'!$BL50=0),\"\",IF(LEN('Enrollment Form'!$BL50)<>5,\"N\",\"Y\")))","v":""},{"$f":"IF($B43=\"N\",\"\",IF(LEN('Enrollment Form'!$AE50)=0,\"\",IF(LEN('Enrollment Form'!$AE50)<>10,\"N\",\"Y\")))","v":""},{"$f":"IF($B43=\"N\",\"\",IF(LEN('Enrollment Form'!$AF50)=0,\"\",IF(LEN('Enrollment Form'!$AF50)<>10,\"N\",\"Y\")))","v":""},{"$f":"IF('Enrollment Form'!$O50<>\"Graded\",\"-\",IF(AND('Enrollment Form'!$O50=\"Graded\",'Enrollment Form'!$AO50<>\"\"),\"Y\",\"N\"))","v":"-"},{"$f":"IF($B43=\"N\",\"\",IF(OR('Enrollment Form'!$B50<>\"Subscriber\",'Enrollment Form'!$C50=\"ROC\"),\"-\",IF(AND('Enrollment Form'!$B50=\"Subscriber\",'Enrollment Form'!$C50=\"Enroll\",'Enrollment Form'!$AJ50<>\"\"),\"Y\",\"N\")))","v":""},{"$f":"IF($B43=\"N\",\"\",IF(OR('Enrollment Form'!$B50<>\"Subscriber\",'Enrollment Form'!$C50=\"ROC\"),\"-\",IF(AND('Enrollment Form'!$B50=\"Subscriber\",'Enrollment Form'!$C50=\"Enroll\",'Enrollment Form'!$AK50<>\"\"),\"Y\",\"N\")))","v":""},{"$f":"IF($B43=\"N\",\"\",IF(OR('Enrollment Form'!$B50<>\"Subscriber\",'Enrollment Form'!$C50=\"ROC\"),\"-\",IF(AND('Enrollment Form'!$B50=\"Subscriber\",'Enrollment Form'!$C50=\"Enroll\",'Enrollment Form'!$AL50<>\"\"),\"Y\",\"N\")))","v":""},{"$f":"IF($B43=\"N\",\"\",IF(OR('Enrollment Form'!$B50<>\"Subscriber\",'Enrollment Form'!$C50=\"ROC\"),\"-\",IF(AND('Enrollment Form'!$B50=\"Subscriber\",'Enrollment Form'!$C50=\"Enroll\",'Enrollment Form'!$AM50<>\"\"),\"Y\",\"N\")))","v":""},{"$f":"IF($B43=\"N\",\"\",IF(OR('Enrollment Form'!$B50<>\"Subscriber\",'Enrollment Form'!$C50=\"ROC\"),\"-\",IF(AND('Enrollment Form'!$B50=\"Subscriber\",'Enrollment Form'!$C50=\"Enroll\",'Enrollment Form'!$AN50<>\"\"),\"Y\",\"N\")))","v":""},{"$f":"IF($B43=\"N\",\"\",IF(OR('Enrollment Form'!$B50<>\"Subscriber\",'Enrollment Form'!$C50=\"ROC\"),\"-\",IF(AND('Enrollment Form'!$B50=\"Subscriber\",'Enrollment Form'!$C50=\"Enroll\",'Enrollment Form'!$AP50<>\"\"),\"Y\",\"N\")))","v":""},{"$f":"IF($B43=\"N\",\"\",IF($Q43=\"-\",\"-\",IF(AND($Q43=\"Y\",'Enrollment Form'!$AP50=\"No\"),\"-\",IF(AND($Q43=\"Y\",'Enrollment Form'!$AP50=\"Yes\",'Enrollment Form'!$AQ50<>\"\"),\"Y\",\"N\"))))","v":""},{"$f":"IF($B43=\"N\",\"\",IF(OR('Enrollment Form'!$B50<>\"Subscriber\",'Enrollment Form'!$C50=\"ROC\"),\"-\",IF(AND('Enrollment Form'!$B50=\"Subscriber\",'Enrollment Form'!$C50=\"Enroll\",'Enrollment Form'!$CO50<>\"\"),\"Y\",\"N\")))","v":""},{"$f":"IF($B43=\"N\",\"\",IF($S43=\"-\",\"-\",IF(AND($S43=\"Y\",'Enrollment Form'!$CO50=\"No\"),\"-\",IF(AND($S43=\"Y\",'Enrollment Form'!$CO50=\"Yes\",'Enrollment Form'!$CP50<>\"\"),\"Y\",\"N\"))))","v":""},{"$f":"IF(OR('Enrollment Form'!$AV50=\"Yes\",'Enrollment Form'!$AV50=\"\"),\"-\",IF(AND('Enrollment Form'!$AV50=\"No\",ISERROR(FIND(\"HMO\",VLOOKUP('Enrollment Form'!G50,'Enrollment Form'!H$11:J$1000,3,FALSE),1))=FALSE,COUNTA('Enrollment Form'!$AW50:$AZ50)=4),\"Y\",\"N\"))","v":"-"},{"$f":"IF($B43=\"N\",\"\",IF('Enrollment Form'!$B50=\"Subscriber\",\"-\",IF(COUNTA('Enrollment Form'!$BE50,'Enrollment Form'!$BG50)=2,\"Y\",\"N\")))","v":""},{"$f":"IF($B43=\"N\",\"\",IF(OR('Enrollment Form'!$AU50=\"\",'Enrollment Form'!$AU50=\"No\"),\"-\",IF(AND('Enrollment Form'!$AU50=\"Yes\",COUNTA('Enrollment Form'!$CK50)=1),\"Y\",\"N\")))","v":""},{"$f":"IF(OR('Enrollment Form'!$CK50=\"\",'Enrollment Form'!$CK50=\"No\"),\"-\",IF(COUNTA('Enrollment Form'!$CM50:$CN50)=2,\"Y\",\"N\"))","v":"-"},{"$f":"IF($B43=\"N\",\"\",IF(COUNTIF('Enrollment Form'!$CZ50:$DO50,\"Other\")=COUNTA('Enrollment Form'!$DF50,'Enrollment Form'!$DA50,'Enrollment Form'!$DK50,'Enrollment Form'!$DP50),\"Y\",\"N\"))","v":""},{"$f":"IF($B43=\"N\",\"\",IF(OR('Enrollment Form'!B50<>\"Subscriber\",'Enrollment Form'!C50=\"ROC\",COUNTIF('Enrollment Form'!AS50:AT50,\"Yes\")>=1),\"-\",IF(AND('Enrollment Form'!C50=\"Enroll\",COUNTIF('Enrollment Form'!AS50:AT50,\"No\")=2,'Enrollment Form'!AU50=\"\"),\"N\",\"Y\")))","v":""},{"$f":"IF(OR(B43=\"N\",'Enrollment Form'!B50<>\"Subscriber\",'Enrollment Form'!C50=\"ROC\",'Enrollment Form'!O50<>\"Multiple of Salary\"),\"-\",IF(COUNTA('Enrollment Form'!T50:U50)<2,\"N\",\"Y\"))","v":"-"},{"$f":"IF(B43=\"N\",\"\",IF(OR('Enrollment Form'!C50=\"ROC\",'Enrollment Form'!B50<>\"Subscriber\",'Enrollment Form'!O50=\"Waive\",'Enrollment Form'!O50=\"\"),\"-\",IF('Enrollment Form'!P50=\"\",\"N\",\"Y\")))","v":""},{"$f":"IF($B43=\"N\",\"\",IF(AND('Enrollment Form'!$C50=\"ROC\",'Enrollment Form'!$DS50<>\"\"),\"Y\",IF(AND('Enrollment Form'!$C50=\"ROC\",'Enrollment Form'!$DS50=\"\"),\"N\",IF(AND('Enrollment Form'!$C50=\"Enroll\",'Enrollment Form'!$B50=\"Subscriber\",'Enrollment Form'!$CQ50=\"No\",'Enrollment Form'!$DS50=\"\"),\"N\",IF(AND('Enrollment Form'!$C50=\"Enroll\",'Enrollment Form'!$B50=\"Subscriber\",'Enrollment Form'!$CQ50=\"Yes\"),\"-\",\"Y\")))))","v":""},{"$f":"IF($B43=\"N\",\"\",IF(AND('Enrollment Form'!$C50=\"ROC\",'Enrollment Form'!$DT50<>\"\"),\"Y\",IF(AND('Enrollment Form'!$C50=\"ROC\",'Enrollment Form'!$DT50=\"\"),\"N\",IF(AND('Enrollment Form'!$C50=\"Enroll\",'Enrollment Form'!$B50=\"Subscriber\",'Enrollment Form'!$CQ50=\"No\",'Enrollment Form'!$DT50=\"\"),\"N\",IF(AND('Enrollment Form'!$C50=\"Enroll\",'Enrollment Form'!$B50=\"Subscriber\",'Enrollment Form'!$CQ50=\"Yes\"),\"-\",\"Y\")))))","v":""},{"$f":"IF('Enrollment Form'!AH50=\"\",\"\",IF(ISERROR(SEARCH(\".\",'Enrollment Form'!AH50,SEARCH(\"@\",'Enrollment Form'!AH50))),\"N\",\"Y\"))","v":""},{"$f":"IF(OR($B43=\"N\",'Enrollment Form'!$G50=\"\"),\"\",IF('Enrollment Form'!$B50<>\"Subscriber\",\"-\",IF(COUNTIF('Enrollment Form'!$AS50:$AT50,\"Yes\")=2,\"N\",\"Y\")))","v":""},{"$f":"IF(OR('Enrollment Form'!$CC50=\"\",'Enrollment Form'!$CC50=\"No\"),\"-\",IF(AND('Enrollment Form'!$CC50=\"Yes\",'Enrollment Form'!$CD50=\"\"),\"N\",\"Y\"))","v":"-"},{"$f":"IF(OR('Enrollment Form'!$CE50=\"\",'Enrollment Form'!$CE50=\"No\"),\"-\",IF(AND('Enrollment Form'!$CE50=\"Yes\",'Enrollment Form'!$CF50=\"\"),\"N\",\"Y\"))","v":"-"},{"$f":"IF(OR('Enrollment Form'!$CG50=\"\",'Enrollment Form'!$CG50=\"No\"),\"-\",IF(AND('Enrollment Form'!$CG50=\"Yes\",'Enrollment Form'!$CH50=\"\"),\"N\",\"Y\"))","v":"-"},{"$f":"IF(OR('Enrollment Form'!$CG50=\"\",'Enrollment Form'!$CG50=\"No\"),\"-\",IF(AND('Enrollment Form'!$CG50=\"Yes\",'Enrollment Form'!$CI50=\"\"),\"N\",\"Y\"))","v":"-"},{"$f":"IF('Enrollment Form'!B50<>\"Subscriber\",\"-\",IF(AND('Enrollment Form'!B50=\"Subscriber\",'Enrollment Form'!C50=\"Enroll\",'Enrollment Form'!AA50=\"\"),\"N\",\"Y\"))","v":"-"},{"$f":"IF(OR('Enrollment Form'!B50=\"Subscriber\",'Enrollment Form'!B50=\"\"),\"-\",IF('Enrollment Form'!BI50=\"\",\"N\",\"Y\"))","v":"-"},{"$f":"IF('Enrollment Form'!B50<>\"Subscriber\",\"-\",IF(AND('Enrollment Form'!B50=\"Subscriber\",'Enrollment Form'!G50=\"\"),\"N\",\"Y\"))","v":"-"},{"$f":"IF('Enrollment Form'!A50=\"\",\"\",IF('Enrollment Form'!B50=\"Subscriber\",\"-\",IF(AND('Enrollment Form'!B50<>\"Subscriber\",'Enrollment Form'!G50='Enrollment Form'!H50),\"N\",\"Y\")))","v":""},0]
[51,{"$f":"IF('Enrollment Form'!$A51<>\"\",\"Y\",\"N\")","v":"N"},{"$f":"IF(AND('Enrollment Form'!$B51=\"\",'Enrollment Form'!$C51<>\"\"),\"N\",IF($B44=\"N\",\"\",\"Y\"))","v":""},{"$f":"IF(OR($B44=\"N\",'Enrollment Form'!G51=\"\"),\"\",IF('Enrollment Form'!$B51<>\"Subscriber\",\"\",IF('Enrollment Form'!$G51='Enrollment Form'!$H51,\"Y\",\"N\")))","v":""},{"$f":"IF($B44=\"N\",\"\",IF(AND(COUNTIFS('Enrollment Form'!$H$11:$H$1000,'Enrollment Form'!$H51,'Enrollment Form'!$B$11:$B$1000,'Enrollment Form'!$B51)>1,'Enrollment Form'!$H51<>\"\"),\"N\",\"Y\"))","v":""},{"$f":"IF($B44=\"N\",\"\",IF(LEN('Enrollment Form'!$Y51)=0,\"\",IF(LEN('Enrollment Form'!$Y51)<>5,\"N\",\"Y\")))","v":""},{"$f":"IF($B44=\"N\",\"\",IF(LEN('Enrollment Form'!$AD51=0),\"\",IF(LEN('Enrollment Form'!$AD51)<>5,\"N\",\"Y\")))","v":""},{"$f":"IF($B44=\"N\",\"\",IF(LEN('Enrollment Form'!$BL51=0),\"\",IF(LEN('Enrollment Form'!$BL51)<>5,\"N\",\"Y\")))","v":""},{"$f":"IF($B44=\"N\",\"\",IF(LEN('Enrollment Form'!$AE51)=0,\"\",IF(LEN('Enrollment Form'!$AE51)<>10,\"N\",\"Y\")))","v":""},{"$f":"IF($B44=\"N\",\"\",IF(LEN('Enrollment Form'!$AF51)=0,\"\",IF(LEN('Enrollment Form'!$AF51)<>10,\"N\",\"Y\")))","v":""},{"$f":"IF('Enrollment Form'!$O51<>\"Graded\",\"-\",IF(AND('Enrollment Form'!$O51=\"Graded\",'Enrollment Form'!$AO51<>\"\"),\"Y\",\"N\"))","v":"-"},{"$f":"IF($B44=\"N\",\"\",IF(OR('Enrollment Form'!$B51<>\"Subscriber\",'Enrollment Form'!$C51=\"ROC\"),\"-\",IF(AND('Enrollment Form'!$B51=\"Subscriber\",'Enrollment Form'!$C51=\"Enroll\",'Enrollment Form'!$AJ51<>\"\"),\"Y\",\"N\")))","v":""},{"$f":"IF($B44=\"N\",\"\",IF(OR('Enrollment Form'!$B51<>\"Subscriber\",'Enrollment Form'!$C51=\"ROC\"),\"-\",IF(AND('Enrollment Form'!$B51=\"Subscriber\",'Enrollment Form'!$C51=\"Enroll\",'Enrollment Form'!$AK51<>\"\"),\"Y\",\"N\")))","v":""},{"$f":"IF($B44=\"N\",\"\",IF(OR('Enrollment Form'!$B51<>\"Subscriber\",'Enrollment Form'!$C51=\"ROC\"),\"-\",IF(AND('Enrollment Form'!$B51=\"Subscriber\",'Enrollment Form'!$C51=\"Enroll\",'Enrollment Form'!$AL51<>\"\"),\"Y\",\"N\")))","v":""},{"$f":"IF($B44=\"N\",\"\",IF(OR('Enrollment Form'!$B51<>\"Subscriber\",'Enrollment Form'!$C51=\"ROC\"),\"-\",IF(AND('Enrollment Form'!$B51=\"Subscriber\",'Enrollment Form'!$C51=\"Enroll\",'Enrollment Form'!$AM51<>\"\"),\"Y\",\"N\")))","v":""},{"$f":"IF($B44=\"N\",\"\",IF(OR('Enrollment Form'!$B51<>\"Subscriber\",'Enrollment Form'!$C51=\"ROC\"),\"-\",IF(AND('Enrollment Form'!$B51=\"Subscriber\",'Enrollment Form'!$C51=\"Enroll\",'Enrollment Form'!$AN51<>\"\"),\"Y\",\"N\")))","v":""},{"$f":"IF($B44=\"N\",\"\",IF(OR('Enrollment Form'!$B51<>\"Subscriber\",'Enrollment Form'!$C51=\"ROC\"),\"-\",IF(AND('Enrollment Form'!$B51=\"Subscriber\",'Enrollment Form'!$C51=\"Enroll\",'Enrollment Form'!$AP51<>\"\"),\"Y\",\"N\")))","v":""},{"$f":"IF($B44=\"N\",\"\",IF($Q44=\"-\",\"-\",IF(AND($Q44=\"Y\",'Enrollment Form'!$AP51=\"No\"),\"-\",IF(AND($Q44=\"Y\",'Enrollment Form'!$AP51=\"Yes\",'Enrollment Form'!$AQ51<>\"\"),\"Y\",\"N\"))))","v":""},{"$f":"IF($B44=\"N\",\"\",IF(OR('Enrollment Form'!$B51<>\"Subscriber\",'Enrollment Form'!$C51=\"ROC\"),\"-\",IF(AND('Enrollment Form'!$B51=\"Subscriber\",'Enrollment Form'!$C51=\"Enroll\",'Enrollment Form'!$CO51<>\"\"),\"Y\",\"N\")))","v":""},{"$f":"IF($B44=\"N\",\"\",IF($S44=\"-\",\"-\",IF(AND($S44=\"Y\",'Enrollment Form'!$CO51=\"No\"),\"-\",IF(AND($S44=\"Y\",'Enrollment Form'!$CO51=\"Yes\",'Enrollment Form'!$CP51<>\"\"),\"Y\",\"N\"))))","v":""},{"$f":"IF(OR('Enrollment Form'!$AV51=\"Yes\",'Enrollment Form'!$AV51=\"\"),\"-\",IF(AND('Enrollment Form'!$AV51=\"No\",ISERROR(FIND(\"HMO\",VLOOKUP('Enrollment Form'!G51,'Enrollment Form'!H$11:J$1000,3,FALSE),1))=FALSE,COUNTA('Enrollment Form'!$AW51:$AZ51)=4),\"Y\",\"N\"))","v":"-"},{"$f":"IF($B44=\"N\",\"\",IF('Enrollment Form'!$B51=\"Subscriber\",\"-\",IF(COUNTA('Enrollment Form'!$BE51,'Enrollment Form'!$BG51)=2,\"Y\",\"N\")))","v":""},{"$f":"IF($B44=\"N\",\"\",IF(OR('Enrollment Form'!$AU51=\"\",'Enrollment Form'!$AU51=\"No\"),\"-\",IF(AND('Enrollment Form'!$AU51=\"Yes\",COUNTA('Enrollment Form'!$CK51)=1),\"Y\",\"N\")))","v":""},{"$f":"IF(OR('Enrollment Form'!$CK51=\"\",'Enrollment Form'!$CK51=\"No\"),\"-\",IF(COUNTA('Enrollment Form'!$CM51:$CN51)=2,\"Y\",\"N\"))","v":"-"},{"$f":"IF($B44=\"N\",\"\",IF(COUNTIF('Enrollment Form'!$CZ51:$DO51,\"Other\")=COUNTA('Enrollment Form'!$DF51,'Enrollment Form'!$DA51,'Enrollment Form'!$DK51,'Enrollment Form'!$DP51),\"Y\",\"N\"))","v":""},{"$f":"IF($B44=\"N\",\"\",IF(OR('Enrollment Form'!B51<>\"Subscriber\",'Enrollment Form'!C51=\"ROC\",COUNTIF('Enrollment Form'!AS51:AT51,\"Yes\")>=1),\"-\",IF(AND('Enrollment Form'!C51=\"Enroll\",COUNTIF('Enrollment Form'!AS51:AT51,\"No\")=2,'Enrollment Form'!AU51=\"\"),\"N\",\"Y\")))","v":""},{"$f":"IF(OR(B44=\"N\",'Enrollment Form'!B51<>\"Subscriber\",'Enrollment Form'!C51=\"ROC\",'Enrollment Form'!O51<>\"Multiple of Salary\"),\"-\",IF(COUNTA('Enrollment Form'!T51:U51)<2,\"N\",\"Y\"))","v":"-"},{"$f":"IF(B44=\"N\",\"\",IF(OR('Enrollment Form'!C51=\"ROC\",'Enrollment Form'!B51<>\"Subscriber\",'Enrollment Form'!O51=\"Waive\",'Enrollment Form'!O51=\"\"),\"-\",IF('Enrollment Form'!P51=\"\",\"N\",\"Y\")))","v":""},{"$f":"IF($B44=\"N\",\"\",IF(AND('Enrollment Form'!$C51=\"ROC\",'Enrollment Form'!$DS51<>\"\"),\"Y\",IF(AND('Enrollment Form'!$C51=\"ROC\",'Enrollment Form'!$DS51=\"\"),\"N\",IF(AND('Enrollment Form'!$C51=\"Enroll\",'Enrollment Form'!$B51=\"Subscriber\",'Enrollment Form'!$CQ51=\"No\",'Enrollment Form'!$DS51=\"\"),\"N\",IF(AND('Enrollment Form'!$C51=\"Enroll\",'Enrollment Form'!$B51=\"Subscriber\",'Enrollment Form'!$CQ51=\"Yes\"),\"-\",\"Y\")))))","v":""},{"$f":"IF($B44=\"N\",\"\",IF(AND('Enrollment Form'!$C51=\"ROC\",'Enrollment Form'!$DT51<>\"\"),\"Y\",IF(AND('Enrollment Form'!$C51=\"ROC\",'Enrollment Form'!$DT51=\"\"),\"N\",IF(AND('Enrollment Form'!$C51=\"Enroll\",'Enrollment Form'!$B51=\"Subscriber\",'Enrollment Form'!$CQ51=\"No\",'Enrollment Form'!$DT51=\"\"),\"N\",IF(AND('Enrollment Form'!$C51=\"Enroll\",'Enrollment Form'!$B51=\"Subscriber\",'Enrollment Form'!$CQ51=\"Yes\"),\"-\",\"Y\")))))","v":""},{"$f":"IF('Enrollment Form'!AH51=\"\",\"\",IF(ISERROR(SEARCH(\".\",'Enrollment Form'!AH51,SEARCH(\"@\",'Enrollment Form'!AH51))),\"N\",\"Y\"))","v":""},{"$f":"IF(OR($B44=\"N\",'Enrollment Form'!$G51=\"\"),\"\",IF('Enrollment Form'!$B51<>\"Subscriber\",\"-\",IF(COUNTIF('Enrollment Form'!$AS51:$AT51,\"Yes\")=2,\"N\",\"Y\")))","v":""},{"$f":"IF(OR('Enrollment Form'!$CC51=\"\",'Enrollment Form'!$CC51=\"No\"),\"-\",IF(AND('Enrollment Form'!$CC51=\"Yes\",'Enrollment Form'!$CD51=\"\"),\"N\",\"Y\"))","v":"-"},{"$f":"IF(OR('Enrollment Form'!$CE51=\"\",'Enrollment Form'!$CE51=\"No\"),\"-\",IF(AND('Enrollment Form'!$CE51=\"Yes\",'Enrollment Form'!$CF51=\"\"),\"N\",\"Y\"))","v":"-"},{"$f":"IF(OR('Enrollment Form'!$CG51=\"\",'Enrollment Form'!$CG51=\"No\"),\"-\",IF(AND('Enrollment Form'!$CG51=\"Yes\",'Enrollment Form'!$CH51=\"\"),\"N\",\"Y\"))","v":"-"},{"$f":"IF(OR('Enrollment Form'!$CG51=\"\",'Enrollment Form'!$CG51=\"No\"),\"-\",IF(AND('Enrollment Form'!$CG51=\"Yes\",'Enrollment Form'!$CI51=\"\"),\"N\",\"Y\"))","v":"-"},{"$f":"IF('Enrollment Form'!B51<>\"Subscriber\",\"-\",IF(AND('Enrollment Form'!B51=\"Subscriber\",'Enrollment Form'!C51=\"Enroll\",'Enrollment Form'!AA51=\"\"),\"N\",\"Y\"))","v":"-"},{"$f":"IF(OR('Enrollment Form'!B51=\"Subscriber\",'Enrollment Form'!B51=\"\"),\"-\",IF('Enrollment Form'!BI51=\"\",\"N\",\"Y\"))","v":"-"},{"$f":"IF('Enrollment Form'!B51<>\"Subscriber\",\"-\",IF(AND('Enrollment Form'!B51=\"Subscriber\",'Enrollment Form'!G51=\"\"),\"N\",\"Y\"))","v":"-"},{"$f":"IF('Enrollment Form'!A51=\"\",\"\",IF('Enrollment Form'!B51=\"Subscriber\",\"-\",IF(AND('Enrollment Form'!B51<>\"Subscriber\",'Enrollment Form'!G51='Enrollment Form'!H51),\"N\",\"Y\")))","v":""},0]
[52,{"$f":"IF('Enrollment Form'!$A52<>\"\",\"Y\",\"N\")","v":"N"},{"$f":"IF(AND('Enrollment Form'!$B52=\"\",'Enrollment Form'!$C52<>\"\"),\"N\",IF($B45=\"N\",\"\",\"Y\"))","v":""},{"$f":"IF(OR($B45=\"N\",'Enrollment Form'!G52=\"\"),\"\",IF('Enrollment Form'!$B52<>\"Subscriber\",\"\",IF('Enrollment Form'!$G52='Enrollment Form'!$H52,\"Y\",\"N\")))","v":""},{"$f":"IF($B45=\"N\",\"\",IF(AND(COUNTIFS('Enrollment Form'!$H$11:$H$1000,'Enrollment Form'!$H52,'Enrollment Form'!$B$11:$B$1000,'Enrollment Form'!$B52)>1,'Enrollment Form'!$H52<>\"\"),\"N\",\"Y\"))","v":""},{"$f":"IF($B45=\"N\",\"\",IF(LEN('Enrollment Form'!$Y52)=0,\"\",IF(LEN('Enrollment Form'!$Y52)<>5,\"N\",\"Y\")))","v":""},{"$f":"IF($B45=\"N\",\"\",IF(LEN('Enrollment Form'!$AD52=0),\"\",IF(LEN('Enrollment Form'!$AD52)<>5,\"N\",\"Y\")))","v":""},{"$f":"IF($B45=\"N\",\"\",IF(LEN('Enrollment Form'!$BL52=0),\"\",IF(LEN('Enrollment Form'!$BL52)<>5,\"N\",\"Y\")))","v":""},{"$f":"IF($B45=\"N\",\"\",IF(LEN('Enrollment Form'!$AE52)=0,\"\",IF(LEN('Enrollment Form'!$AE52)<>10,\"N\",\"Y\")))","v":""},{"$f":"IF($B45=\"N\",\"\",IF(LEN('Enrollment Form'!$AF52)=0,\"\",IF(LEN('Enrollment Form'!$AF52)<>10,\"N\",\"Y\")))","v":""},{"$f":"IF('Enrollment Form'!$O52<>\"Graded\",\"-\",IF(AND('Enrollment Form'!$O52=\"Graded\",'Enrollment Form'!$AO52<>\"\"),\"Y\",\"N\"))","v":"-"},{"$f":"IF($B45=\"N\",\"\",IF(OR('Enrollment Form'!$B52<>\"Subscriber\",'Enrollment Form'!$C52=\"ROC\"),\"-\",IF(AND('Enrollment Form'!$B52=\"Subscriber\",'Enrollment Form'!$C52=\"Enroll\",'Enrollment Form'!$AJ52<>\"\"),\"Y\",\"N\")))","v":""},{"$f":"IF($B45=\"N\",\"\",IF(OR('Enrollment Form'!$B52<>\"Subscriber\",'Enrollment Form'!$C52=\"ROC\"),\"-\",IF(AND('Enrollment Form'!$B52=\"Subscriber\",'Enrollment Form'!$C52=\"Enroll\",'Enrollment Form'!$AK52<>\"\"),\"Y\",\"N\")))","v":""},{"$f":"IF($B45=\"N\",\"\",IF(OR('Enrollment Form'!$B52<>\"Subscriber\",'Enrollment Form'!$C52=\"ROC\"),\"-\",IF(AND('Enrollment Form'!$B52=\"Subscriber\",'Enrollment Form'!$C52=\"Enroll\",'Enrollment Form'!$AL52<>\"\"),\"Y\",\"N\")))","v":""},{"$f":"IF($B45=\"N\",\"\",IF(OR('Enrollment Form'!$B52<>\"Subscriber\",'Enrollment Form'!$C52=\"ROC\"),\"-\",IF(AND('Enrollment Form'!$B52=\"Subscriber\",'Enrollment Form'!$C52=\"Enroll\",'Enrollment Form'!$AM52<>\"\"),\"Y\",\"N\")))","v":""},{"$f":"IF($B45=\"N\",\"\",IF(OR('Enrollment Form'!$B52<>\"Subscriber\",'Enrollment Form'!$C52=\"ROC\"),\"-\",IF(AND('Enrollment Form'!$B52=\"Subscriber\",'Enrollment Form'!$C52=\"Enroll\",'Enrollment Form'!$AN52<>\"\"),\"Y\",\"N\")))","v":""},{"$f":"IF($B45=\"N\",\"\",IF(OR('Enrollment Form'!$B52<>\"Subscriber\",'Enrollment Form'!$C52=\"ROC\"),\"-\",IF(AND('Enrollment Form'!$B52=\"Subscriber\",'Enrollment Form'!$C52=\"Enroll\",'Enrollment Form'!$AP52<>\"\"),\"Y\",\"N\")))","v":""},{"$f":"IF($B45=\"N\",\"\",IF($Q45=\"-\",\"-\",IF(AND($Q45=\"Y\",'Enrollment Form'!$AP52=\"No\"),\"-\",IF(AND($Q45=\"Y\",'Enrollment Form'!$AP52=\"Yes\",'Enrollment Form'!$AQ52<>\"\"),\"Y\",\"N\"))))","v":""},{"$f":"IF($B45=\"N\",\"\",IF(OR('Enrollment Form'!$B52<>\"Subscriber\",'Enrollment Form'!$C52=\"ROC\"),\"-\",IF(AND('Enrollment Form'!$B52=\"Subscriber\",'Enrollment Form'!$C52=\"Enroll\",'Enrollment Form'!$CO52<>\"\"),\"Y\",\"N\")))","v":""},{"$f":"IF($B45=\"N\",\"\",IF($S45=\"-\",\"-\",IF(AND($S45=\"Y\",'Enrollment Form'!$CO52=\"No\"),\"-\",IF(AND($S45=\"Y\",'Enrollment Form'!$CO52=\"Yes\",'Enrollment Form'!$CP52<>\"\"),\"Y\",\"N\"))))","v":""},{"$f":"IF(OR('Enrollment Form'!$AV52=\"Yes\",'Enrollment Form'!$AV52=\"\"),\"-\",IF(AND('Enrollment Form'!$AV52=\"No\",ISERROR(FIND(\"HMO\",VLOOKUP('Enrollment Form'!G52,'Enrollment Form'!H$11:J$1000,3,FALSE),1))=FALSE,COUNTA('Enrollment Form'!$AW52:$AZ52)=4),\"Y\",\"N\"))","v":"-"},{"$f":"IF($B45=\"N\",\"\",IF('Enrollment Form'!$B52=\"Subscriber\",\"-\",IF(COUNTA('Enrollment Form'!$BE52,'Enrollment Form'!$BG52)=2,\"Y\",\"N\")))","v":""},{"$f":"IF($B45=\"N\",\"\",IF(OR('Enrollment Form'!$AU52=\"\",'Enrollment Form'!$AU52=\"No\"),\"-\",IF(AND('Enrollment Form'!$AU52=\"Yes\",COUNTA('Enrollment Form'!$CK52)=1),\"Y\",\"N\")))","v":""},{"$f":"IF(OR('Enrollment Form'!$CK52=\"\",'Enrollment Form'!$CK52=\"No\"),\"-\",IF(COUNTA('Enrollment Form'!$CM52:$CN52)=2,\"Y\",\"N\"))","v":"-"},{"$f":"IF($B45=\"N\",\"\",IF(COUNTIF('Enrollment Form'!$CZ52:$DO52,\"Other\")=COUNTA('Enrollment Form'!$DF52,'Enrollment Form'!$DA52,'Enrollment Form'!$DK52,'Enrollment Form'!$DP52),\"Y\",\"N\"))","v":""},{"$f":"IF($B45=\"N\",\"\",IF(OR('Enrollment Form'!B52<>\"Subscriber\",'Enrollment Form'!C52=\"ROC\",COUNTIF('Enrollment Form'!AS52:AT52,\"Yes\")>=1),\"-\",IF(AND('Enrollment Form'!C52=\"Enroll\",COUNTIF('Enrollment Form'!AS52:AT52,\"No\")=2,'Enrollment Form'!AU52=\"\"),\"N\",\"Y\")))","v":""},{"$f":"IF(OR(B45=\"N\",'Enrollment Form'!B52<>\"Subscriber\",'Enrollment Form'!C52=\"ROC\",'Enrollment Form'!O52<>\"Multiple of Salary\"),\"-\",IF(COUNTA('Enrollment Form'!T52:U52)<2,\"N\",\"Y\"))","v":"-"},{"$f":"IF(B45=\"N\",\"\",IF(OR('Enrollment Form'!C52=\"ROC\",'Enrollment Form'!B52<>\"Subscriber\",'Enrollment Form'!O52=\"Waive\",'Enrollment Form'!O52=\"\"),\"-\",IF('Enrollment Form'!P52=\"\",\"N\",\"Y\")))","v":""},{"$f":"IF($B45=\"N\",\"\",IF(AND('Enrollment Form'!$C52=\"ROC\",'Enrollment Form'!$DS52<>\"\"),\"Y\",IF(AND('Enrollment Form'!$C52=\"ROC\",'Enrollment Form'!$DS52=\"\"),\"N\",IF(AND('Enrollment Form'!$C52=\"Enroll\",'Enrollment Form'!$B52=\"Subscriber\",'Enrollment Form'!$CQ52=\"No\",'Enrollment Form'!$DS52=\"\"),\"N\",IF(AND('Enrollment Form'!$C52=\"Enroll\",'Enrollment Form'!$B52=\"Subscriber\",'Enrollment Form'!$CQ52=\"Yes\"),\"-\",\"Y\")))))","v":""},{"$f":"IF($B45=\"N\",\"\",IF(AND('Enrollment Form'!$C52=\"ROC\",'Enrollment Form'!$DT52<>\"\"),\"Y\",IF(AND('Enrollment Form'!$C52=\"ROC\",'Enrollment Form'!$DT52=\"\"),\"N\",IF(AND('Enrollment Form'!$C52=\"Enroll\",'Enrollment Form'!$B52=\"Subscriber\",'Enrollment Form'!$CQ52=\"No\",'Enrollment Form'!$DT52=\"\"),\"N\",IF(AND('Enrollment Form'!$C52=\"Enroll\",'Enrollment Form'!$B52=\"Subscriber\",'Enrollment Form'!$CQ52=\"Yes\"),\"-\",\"Y\")))))","v":""},{"$f":"IF('Enrollment Form'!AH52=\"\",\"\",IF(ISERROR(SEARCH(\".\",'Enrollment Form'!AH52,SEARCH(\"@\",'Enrollment Form'!AH52))),\"N\",\"Y\"))","v":""},{"$f":"IF(OR($B45=\"N\",'Enrollment Form'!$G52=\"\"),\"\",IF('Enrollment Form'!$B52<>\"Subscriber\",\"-\",IF(COUNTIF('Enrollment Form'!$AS52:$AT52,\"Yes\")=2,\"N\",\"Y\")))","v":""},{"$f":"IF(OR('Enrollment Form'!$CC52=\"\",'Enrollment Form'!$CC52=\"No\"),\"-\",IF(AND('Enrollment Form'!$CC52=\"Yes\",'Enrollment Form'!$CD52=\"\"),\"N\",\"Y\"))","v":"-"},{"$f":"IF(OR('Enrollment Form'!$CE52=\"\",'Enrollment Form'!$CE52=\"No\"),\"-\",IF(AND('Enrollment Form'!$CE52=\"Yes\",'Enrollment Form'!$CF52=\"\"),\"N\",\"Y\"))","v":"-"},{"$f":"IF(OR('Enrollment Form'!$CG52=\"\",'Enrollment Form'!$CG52=\"No\"),\"-\",IF(AND('Enrollment Form'!$CG52=\"Yes\",'Enrollment Form'!$CH52=\"\"),\"N\",\"Y\"))","v":"-"},{"$f":"IF(OR('Enrollment Form'!$CG52=\"\",'Enrollment Form'!$CG52=\"No\"),\"-\",IF(AND('Enrollment Form'!$CG52=\"Yes\",'Enrollment Form'!$CI52=\"\"),\"N\",\"Y\"))","v":"-"},{"$f":"IF('Enrollment Form'!B52<>\"Subscriber\",\"-\",IF(AND('Enrollment Form'!B52=\"Subscriber\",'Enrollment Form'!C52=\"Enroll\",'Enrollment Form'!AA52=\"\"),\"N\",\"Y\"))","v":"-"},{"$f":"IF(OR('Enrollment Form'!B52=\"Subscriber\",'Enrollment Form'!B52=\"\"),\"-\",IF('Enrollment Form'!BI52=\"\",\"N\",\"Y\"))","v":"-"},{"$f":"IF('Enrollment Form'!B52<>\"Subscriber\",\"-\",IF(AND('Enrollment Form'!B52=\"Subscriber\",'Enrollment Form'!G52=\"\"),\"N\",\"Y\"))","v":"-"},{"$f":"IF('Enrollment Form'!A52=\"\",\"\",IF('Enrollment Form'!B52=\"Subscriber\",\"-\",IF(AND('Enrollment Form'!B52<>\"Subscriber\",'Enrollment Form'!G52='Enrollment Form'!H52),\"N\",\"Y\")))","v":""},0]
[53,{"$f":"IF('Enrollment Form'!$A53<>\"\",\"Y\",\"N\")","v":"N"},{"$f":"IF(AND('Enrollment Form'!$B53=\"\",'Enrollment Form'!$C53<>\"\"),\"N\",IF($B46=\"N\",\"\",\"Y\"))","v":""},{"$f":"IF(OR($B46=\"N\",'Enrollment Form'!G53=\"\"),\"\",IF('Enrollment Form'!$B53<>\"Subscriber\",\"\",IF('Enrollment Form'!$G53='Enrollment Form'!$H53,\"Y\",\"N\")))","v":""},{"$f":"IF($B46=\"N\",\"\",IF(AND(COUNTIFS('Enrollment Form'!$H$11:$H$1000,'Enrollment Form'!$H53,'Enrollment Form'!$B$11:$B$1000,'Enrollment Form'!$B53)>1,'Enrollment Form'!$H53<>\"\"),\"N\",\"Y\"))","v":""},{"$f":"IF($B46=\"N\",\"\",IF(LEN('Enrollment Form'!$Y53)=0,\"\",IF(LEN('Enrollment Form'!$Y53)<>5,\"N\",\"Y\")))","v":""},{"$f":"IF($B46=\"N\",\"\",IF(LEN('Enrollment Form'!$AD53=0),\"\",IF(LEN('Enrollment Form'!$AD53)<>5,\"N\",\"Y\")))","v":""},{"$f":"IF($B46=\"N\",\"\",IF(LEN('Enrollment Form'!$BL53=0),\"\",IF(LEN('Enrollment Form'!$BL53)<>5,\"N\",\"Y\")))","v":""},{"$f":"IF($B46=\"N\",\"\",IF(LEN('Enrollment Form'!$AE53)=0,\"\",IF(LEN('Enrollment Form'!$AE53)<>10,\"N\",\"Y\")))","v":""},{"$f":"IF($B46=\"N\",\"\",IF(LEN('Enrollment Form'!$AF53)=0,\"\",IF(LEN('Enrollment Form'!$AF53)<>10,\"N\",\"Y\")))","v":""},{"$f":"IF('Enrollment Form'!$O53<>\"Graded\",\"-\",IF(AND('Enrollment Form'!$O53=\"Graded\",'Enrollment Form'!$AO53<>\"\"),\"Y\",\"N\"))","v":"-"},{"$f":"IF($B46=\"N\",\"\",IF(OR('Enrollment Form'!$B53<>\"Subscriber\",'Enrollment Form'!$C53=\"ROC\"),\"-\",IF(AND('Enrollment Form'!$B53=\"Subscriber\",'Enrollment Form'!$C53=\"Enroll\",'Enrollment Form'!$AJ53<>\"\"),\"Y\",\"N\")))","v":""},{"$f":"IF($B46=\"N\",\"\",IF(OR('Enrollment Form'!$B53<>\"Subscriber\",'Enrollment Form'!$C53=\"ROC\"),\"-\",IF(AND('Enrollment Form'!$B53=\"Subscriber\",'Enrollment Form'!$C53=\"Enroll\",'Enrollment Form'!$AK53<>\"\"),\"Y\",\"N\")))","v":""},{"$f":"IF($B46=\"N\",\"\",IF(OR('Enrollment Form'!$B53<>\"Subscriber\",'Enrollment Form'!$C53=\"ROC\"),\"-\",IF(AND('Enrollment Form'!$B53=\"Subscriber\",'Enrollment Form'!$C53=\"Enroll\",'Enrollment Form'!$AL53<>\"\"),\"Y\",\"N\")))","v":""},{"$f":"IF($B46=\"N\",\"\",IF(OR('Enrollment Form'!$B53<>\"Subscriber\",'Enrollment Form'!$C53=\"ROC\"),\"-\",IF(AND('Enrollment Form'!$B53=\"Subscriber\",'Enrollment Form'!$C53=\"Enroll\",'Enrollment Form'!$AM53<>\"\"),\"Y\",\"N\")))","v":""},{"$f":"IF($B46=\"N\",\"\",IF(OR('Enrollment Form'!$B53<>\"Subscriber\",'Enrollment Form'!$C53=\"ROC\"),\"-\",IF(AND('Enrollment Form'!$B53=\"Subscriber\",'Enrollment Form'!$C53=\"Enroll\",'Enrollment Form'!$AN53<>\"\"),\"Y\",\"N\")))","v":""},{"$f":"IF($B46=\"N\",\"\",IF(OR('Enrollment Form'!$B53<>\"Subscriber\",'Enrollment Form'!$C53=\"ROC\"),\"-\",IF(AND('Enrollment Form'!$B53=\"Subscriber\",'Enrollment Form'!$C53=\"Enroll\",'Enrollment Form'!$AP53<>\"\"),\"Y\",\"N\")))","v":""},{"$f":"IF($B46=\"N\",\"\",IF($Q46=\"-\",\"-\",IF(AND($Q46=\"Y\",'Enrollment Form'!$AP53=\"No\"),\"-\",IF(AND($Q46=\"Y\",'Enrollment Form'!$AP53=\"Yes\",'Enrollment Form'!$AQ53<>\"\"),\"Y\",\"N\"))))","v":""},{"$f":"IF($B46=\"N\",\"\",IF(OR('Enrollment Form'!$B53<>\"Subscriber\",'Enrollment Form'!$C53=\"ROC\"),\"-\",IF(AND('Enrollment Form'!$B53=\"Subscriber\",'Enrollment Form'!$C53=\"Enroll\",'Enrollment Form'!$CO53<>\"\"),\"Y\",\"N\")))","v":""},{"$f":"IF($B46=\"N\",\"\",IF($S46=\"-\",\"-\",IF(AND($S46=\"Y\",'Enrollment Form'!$CO53=\"No\"),\"-\",IF(AND($S46=\"Y\",'Enrollment Form'!$CO53=\"Yes\",'Enrollment Form'!$CP53<>\"\"),\"Y\",\"N\"))))","v":""},{"$f":"IF(OR('Enrollment Form'!$AV53=\"Yes\",'Enrollment Form'!$AV53=\"\"),\"-\",IF(AND('Enrollment Form'!$AV53=\"No\",ISERROR(FIND(\"HMO\",VLOOKUP('Enrollment Form'!G53,'Enrollment Form'!H$11:J$1000,3,FALSE),1))=FALSE,COUNTA('Enrollment Form'!$AW53:$AZ53)=4),\"Y\",\"N\"))","v":"-"},{"$f":"IF($B46=\"N\",\"\",IF('Enrollment Form'!$B53=\"Subscriber\",\"-\",IF(COUNTA('Enrollment Form'!$BE53,'Enrollment Form'!$BG53)=2,\"Y\",\"N\")))","v":""},{"$f":"IF($B46=\"N\",\"\",IF(OR('Enrollment Form'!$AU53=\"\",'Enrollment Form'!$AU53=\"No\"),\"-\",IF(AND('Enrollment Form'!$AU53=\"Yes\",COUNTA('Enrollment Form'!$CK53)=1),\"Y\",\"N\")))","v":""},{"$f":"IF(OR('Enrollment Form'!$CK53=\"\",'Enrollment Form'!$CK53=\"No\"),\"-\",IF(COUNTA('Enrollment Form'!$CM53:$CN53)=2,\"Y\",\"N\"))","v":"-"},{"$f":"IF($B46=\"N\",\"\",IF(COUNTIF('Enrollment Form'!$CZ53:$DO53,\"Other\")=COUNTA('Enrollment Form'!$DF53,'Enrollment Form'!$DA53,'Enrollment Form'!$DK53,'Enrollment Form'!$DP53),\"Y\",\"N\"))","v":""},{"$f":"IF($B46=\"N\",\"\",IF(OR('Enrollment Form'!B53<>\"Subscriber\",'Enrollment Form'!C53=\"ROC\",COUNTIF('Enrollment Form'!AS53:AT53,\"Yes\")>=1),\"-\",IF(AND('Enrollment Form'!C53=\"Enroll\",COUNTIF('Enrollment Form'!AS53:AT53,\"No\")=2,'Enrollment Form'!AU53=\"\"),\"N\",\"Y\")))","v":""},{"$f":"IF(OR(B46=\"N\",'Enrollment Form'!B53<>\"Subscriber\",'Enrollment Form'!C53=\"ROC\",'Enrollment Form'!O53<>\"Multiple of Salary\"),\"-\",IF(COUNTA('Enrollment Form'!T53:U53)<2,\"N\",\"Y\"))","v":"-"},{"$f":"IF(B46=\"N\",\"\",IF(OR('Enrollment Form'!C53=\"ROC\",'Enrollment Form'!B53<>\"Subscriber\",'Enrollment Form'!O53=\"Waive\",'Enrollment Form'!O53=\"\"),\"-\",IF('Enrollment Form'!P53=\"\",\"N\",\"Y\")))","v":""},{"$f":"IF($B46=\"N\",\"\",IF(AND('Enrollment Form'!$C53=\"ROC\",'Enrollment Form'!$DS53<>\"\"),\"Y\",IF(AND('Enrollment Form'!$C53=\"ROC\",'Enrollment Form'!$DS53=\"\"),\"N\",IF(AND('Enrollment Form'!$C53=\"Enroll\",'Enrollment Form'!$B53=\"Subscriber\",'Enrollment Form'!$CQ53=\"No\",'Enrollment Form'!$DS53=\"\"),\"N\",IF(AND('Enrollment Form'!$C53=\"Enroll\",'Enrollment Form'!$B53=\"Subscriber\",'Enrollment Form'!$CQ53=\"Yes\"),\"-\",\"Y\")))))","v":""},{"$f":"IF($B46=\"N\",\"\",IF(AND('Enrollment Form'!$C53=\"ROC\",'Enrollment Form'!$DT53<>\"\"),\"Y\",IF(AND('Enrollment Form'!$C53=\"ROC\",'Enrollment Form'!$DT53=\"\"),\"N\",IF(AND('Enrollment Form'!$C53=\"Enroll\",'Enrollment Form'!$B53=\"Subscriber\",'Enrollment Form'!$CQ53=\"No\",'Enrollment Form'!$DT53=\"\"),\"N\",IF(AND('Enrollment Form'!$C53=\"Enroll\",'Enrollment Form'!$B53=\"Subscriber\",'Enrollment Form'!$CQ53=\"Yes\"),\"-\",\"Y\")))))","v":""},{"$f":"IF('Enrollment Form'!AH53=\"\",\"\",IF(ISERROR(SEARCH(\".\",'Enrollment Form'!AH53,SEARCH(\"@\",'Enrollment Form'!AH53))),\"N\",\"Y\"))","v":""},{"$f":"IF(OR($B46=\"N\",'Enrollment Form'!$G53=\"\"),\"\",IF('Enrollment Form'!$B53<>\"Subscriber\",\"-\",IF(COUNTIF('Enrollment Form'!$AS53:$AT53,\"Yes\")=2,\"N\",\"Y\")))","v":""},{"$f":"IF(OR('Enrollment Form'!$CC53=\"\",'Enrollment Form'!$CC53=\"No\"),\"-\",IF(AND('Enrollment Form'!$CC53=\"Yes\",'Enrollment Form'!$CD53=\"\"),\"N\",\"Y\"))","v":"-"},{"$f":"IF(OR('Enrollment Form'!$CE53=\"\",'Enrollment Form'!$CE53=\"No\"),\"-\",IF(AND('Enrollment Form'!$CE53=\"Yes\",'Enrollment Form'!$CF53=\"\"),\"N\",\"Y\"))","v":"-"},{"$f":"IF(OR('Enrollment Form'!$CG53=\"\",'Enrollment Form'!$CG53=\"No\"),\"-\",IF(AND('Enrollment Form'!$CG53=\"Yes\",'Enrollment Form'!$CH53=\"\"),\"N\",\"Y\"))","v":"-"},{"$f":"IF(OR('Enrollment Form'!$CG53=\"\",'Enrollment Form'!$CG53=\"No\"),\"-\",IF(AND('Enrollment Form'!$CG53=\"Yes\",'Enrollment Form'!$CI53=\"\"),\"N\",\"Y\"))","v":"-"},{"$f":"IF('Enrollment Form'!B53<>\"Subscriber\",\"-\",IF(AND('Enrollment Form'!B53=\"Subscriber\",'Enrollment Form'!C53=\"Enroll\",'Enrollment Form'!AA53=\"\"),\"N\",\"Y\"))","v":"-"},{"$f":"IF(OR('Enrollment Form'!B53=\"Subscriber\",'Enrollment Form'!B53=\"\"),\"-\",IF('Enrollment Form'!BI53=\"\",\"N\",\"Y\"))","v":"-"},{"$f":"IF('Enrollment Form'!B53<>\"Subscriber\",\"-\",IF(AND('Enrollment Form'!B53=\"Subscriber\",'Enrollment Form'!G53=\"\"),\"N\",\"Y\"))","v":"-"},{"$f":"IF('Enrollment Form'!A53=\"\",\"\",IF('Enrollment Form'!B53=\"Subscriber\",\"-\",IF(AND('Enrollment Form'!B53<>\"Subscriber\",'Enrollment Form'!G53='Enrollment Form'!H53),\"N\",\"Y\")))","v":""},0]
[54,{"$f":"IF('Enrollment Form'!$A54<>\"\",\"Y\",\"N\")","v":"N"},{"$f":"IF(AND('Enrollment Form'!$B54=\"\",'Enrollment Form'!$C54<>\"\"),\"N\",IF($B47=\"N\",\"\",\"Y\"))","v":""},{"$f":"IF(OR($B47=\"N\",'Enrollment Form'!G54=\"\"),\"\",IF('Enrollment Form'!$B54<>\"Subscriber\",\"\",IF('Enrollment Form'!$G54='Enrollment Form'!$H54,\"Y\",\"N\")))","v":""},{"$f":"IF($B47=\"N\",\"\",IF(AND(COUNTIFS('Enrollment Form'!$H$11:$H$1000,'Enrollment Form'!$H54,'Enrollment Form'!$B$11:$B$1000,'Enrollment Form'!$B54)>1,'Enrollment Form'!$H54<>\"\"),\"N\",\"Y\"))","v":""},{"$f":"IF($B47=\"N\",\"\",IF(LEN('Enrollment Form'!$Y54)=0,\"\",IF(LEN('Enrollment Form'!$Y54)<>5,\"N\",\"Y\")))","v":""},{"$f":"IF($B47=\"N\",\"\",IF(LEN('Enrollment Form'!$AD54=0),\"\",IF(LEN('Enrollment Form'!$AD54)<>5,\"N\",\"Y\")))","v":""},{"$f":"IF($B47=\"N\",\"\",IF(LEN('Enrollment Form'!$BL54=0),\"\",IF(LEN('Enrollment Form'!$BL54)<>5,\"N\",\"Y\")))","v":""},{"$f":"IF($B47=\"N\",\"\",IF(LEN('Enrollment Form'!$AE54)=0,\"\",IF(LEN('Enrollment Form'!$AE54)<>10,\"N\",\"Y\")))","v":""},{"$f":"IF($B47=\"N\",\"\",IF(LEN('Enrollment Form'!$AF54)=0,\"\",IF(LEN('Enrollment Form'!$AF54)<>10,\"N\",\"Y\")))","v":""},{"$f":"IF('Enrollment Form'!$O54<>\"Graded\",\"-\",IF(AND('Enrollment Form'!$O54=\"Graded\",'Enrollment Form'!$AO54<>\"\"),\"Y\",\"N\"))","v":"-"},{"$f":"IF($B47=\"N\",\"\",IF(OR('Enrollment Form'!$B54<>\"Subscriber\",'Enrollment Form'!$C54=\"ROC\"),\"-\",IF(AND('Enrollment Form'!$B54=\"Subscriber\",'Enrollment Form'!$C54=\"Enroll\",'Enrollment Form'!$AJ54<>\"\"),\"Y\",\"N\")))","v":""},{"$f":"IF($B47=\"N\",\"\",IF(OR('Enrollment Form'!$B54<>\"Subscriber\",'Enrollment Form'!$C54=\"ROC\"),\"-\",IF(AND('Enrollment Form'!$B54=\"Subscriber\",'Enrollment Form'!$C54=\"Enroll\",'Enrollment Form'!$AK54<>\"\"),\"Y\",\"N\")))","v":""},{"$f":"IF($B47=\"N\",\"\",IF(OR('Enrollment Form'!$B54<>\"Subscriber\",'Enrollment Form'!$C54=\"ROC\"),\"-\",IF(AND('Enrollment Form'!$B54=\"Subscriber\",'Enrollment Form'!$C54=\"Enroll\",'Enrollment Form'!$AL54<>\"\"),\"Y\",\"N\")))","v":""},{"$f":"IF($B47=\"N\",\"\",IF(OR('Enrollment Form'!$B54<>\"Subscriber\",'Enrollment Form'!$C54=\"ROC\"),\"-\",IF(AND('Enrollment Form'!$B54=\"Subscriber\",'Enrollment Form'!$C54=\"Enroll\",'Enrollment Form'!$AM54<>\"\"),\"Y\",\"N\")))","v":""},{"$f":"IF($B47=\"N\",\"\",IF(OR('Enrollment Form'!$B54<>\"Subscriber\",'Enrollment Form'!$C54=\"ROC\"),\"-\",IF(AND('Enrollment Form'!$B54=\"Subscriber\",'Enrollment Form'!$C54=\"Enroll\",'Enrollment Form'!$AN54<>\"\"),\"Y\",\"N\")))","v":""},{"$f":"IF($B47=\"N\",\"\",IF(OR('Enrollment Form'!$B54<>\"Subscriber\",'Enrollment Form'!$C54=\"ROC\"),\"-\",IF(AND('Enrollment Form'!$B54=\"Subscriber\",'Enrollment Form'!$C54=\"Enroll\",'Enrollment Form'!$AP54<>\"\"),\"Y\",\"N\")))","v":""},{"$f":"IF($B47=\"N\",\"\",IF($Q47=\"-\",\"-\",IF(AND($Q47=\"Y\",'Enrollment Form'!$AP54=\"No\"),\"-\",IF(AND($Q47=\"Y\",'Enrollment Form'!$AP54=\"Yes\",'Enrollment Form'!$AQ54<>\"\"),\"Y\",\"N\"))))","v":""},{"$f":"IF($B47=\"N\",\"\",IF(OR('Enrollment Form'!$B54<>\"Subscriber\",'Enrollment Form'!$C54=\"ROC\"),\"-\",IF(AND('Enrollment Form'!$B54=\"Subscriber\",'Enrollment Form'!$C54=\"Enroll\",'Enrollment Form'!$CO54<>\"\"),\"Y\",\"N\")))","v":""},{"$f":"IF($B47=\"N\",\"\",IF($S47=\"-\",\"-\",IF(AND($S47=\"Y\",'Enrollment Form'!$CO54=\"No\"),\"-\",IF(AND($S47=\"Y\",'Enrollment Form'!$CO54=\"Yes\",'Enrollment Form'!$CP54<>\"\"),\"Y\",\"N\"))))","v":""},{"$f":"IF(OR('Enrollment Form'!$AV54=\"Yes\",'Enrollment Form'!$AV54=\"\"),\"-\",IF(AND('Enrollment Form'!$AV54=\"No\",ISERROR(FIND(\"HMO\",VLOOKUP('Enrollment Form'!G54,'Enrollment Form'!H$11:J$1000,3,FALSE),1))=FALSE,COUNTA('Enrollment Form'!$AW54:$AZ54)=4),\"Y\",\"N\"))","v":"-"},{"$f":"IF($B47=\"N\",\"\",IF('Enrollment Form'!$B54=\"Subscriber\",\"-\",IF(COUNTA('Enrollment Form'!$BE54,'Enrollment Form'!$BG54)=2,\"Y\",\"N\")))","v":""},{"$f":"IF($B47=\"N\",\"\",IF(OR('Enrollment Form'!$AU54=\"\",'Enrollment Form'!$AU54=\"No\"),\"-\",IF(AND('Enrollment Form'!$AU54=\"Yes\",COUNTA('Enrollment Form'!$CK54)=1),\"Y\",\"N\")))","v":""},{"$f":"IF(OR('Enrollment Form'!$CK54=\"\",'Enrollment Form'!$CK54=\"No\"),\"-\",IF(COUNTA('Enrollment Form'!$CM54:$CN54)=2,\"Y\",\"N\"))","v":"-"},{"$f":"IF($B47=\"N\",\"\",IF(COUNTIF('Enrollment Form'!$CZ54:$DO54,\"Other\")=COUNTA('Enrollment Form'!$DF54,'Enrollment Form'!$DA54,'Enrollment Form'!$DK54,'Enrollment Form'!$DP54),\"Y\",\"N\"))","v":""},{"$f":"IF($B47=\"N\",\"\",IF(OR('Enrollment Form'!B54<>\"Subscriber\",'Enrollment Form'!C54=\"ROC\",COUNTIF('Enrollment Form'!AS54:AT54,\"Yes\")>=1),\"-\",IF(AND('Enrollment Form'!C54=\"Enroll\",COUNTIF('Enrollment Form'!AS54:AT54,\"No\")=2,'Enrollment Form'!AU54=\"\"),\"N\",\"Y\")))","v":""},{"$f":"IF(OR(B47=\"N\",'Enrollment Form'!B54<>\"Subscriber\",'Enrollment Form'!C54=\"ROC\",'Enrollment Form'!O54<>\"Multiple of Salary\"),\"-\",IF(COUNTA('Enrollment Form'!T54:U54)<2,\"N\",\"Y\"))","v":"-"},{"$f":"IF(B47=\"N\",\"\",IF(OR('Enrollment Form'!C54=\"ROC\",'Enrollment Form'!B54<>\"Subscriber\",'Enrollment Form'!O54=\"Waive\",'Enrollment Form'!O54=\"\"),\"-\",IF('Enrollment Form'!P54=\"\",\"N\",\"Y\")))","v":""},{"$f":"IF($B47=\"N\",\"\",IF(AND('Enrollment Form'!$C54=\"ROC\",'Enrollment Form'!$DS54<>\"\"),\"Y\",IF(AND('Enrollment Form'!$C54=\"ROC\",'Enrollment Form'!$DS54=\"\"),\"N\",IF(AND('Enrollment Form'!$C54=\"Enroll\",'Enrollment Form'!$B54=\"Subscriber\",'Enrollment Form'!$CQ54=\"No\",'Enrollment Form'!$DS54=\"\"),\"N\",IF(AND('Enrollment Form'!$C54=\"Enroll\",'Enrollment Form'!$B54=\"Subscriber\",'Enrollment Form'!$CQ54=\"Yes\"),\"-\",\"Y\")))))","v":""},{"$f":"IF($B47=\"N\",\"\",IF(AND('Enrollment Form'!$C54=\"ROC\",'Enrollment Form'!$DT54<>\"\"),\"Y\",IF(AND('Enrollment Form'!$C54=\"ROC\",'Enrollment Form'!$DT54=\"\"),\"N\",IF(AND('Enrollment Form'!$C54=\"Enroll\",'Enrollment Form'!$B54=\"Subscriber\",'Enrollment Form'!$CQ54=\"No\",'Enrollment Form'!$DT54=\"\"),\"N\",IF(AND('Enrollment Form'!$C54=\"Enroll\",'Enrollment Form'!$B54=\"Subscriber\",'Enrollment Form'!$CQ54=\"Yes\"),\"-\",\"Y\")))))","v":""},{"$f":"IF('Enrollment Form'!AH54=\"\",\"\",IF(ISERROR(SEARCH(\".\",'Enrollment Form'!AH54,SEARCH(\"@\",'Enrollment Form'!AH54))),\"N\",\"Y\"))","v":""},{"$f":"IF(OR($B47=\"N\",'Enrollment Form'!$G54=\"\"),\"\",IF('Enrollment Form'!$B54<>\"Subscriber\",\"-\",IF(COUNTIF('Enrollment Form'!$AS54:$AT54,\"Yes\")=2,\"N\",\"Y\")))","v":""},{"$f":"IF(OR('Enrollment Form'!$CC54=\"\",'Enrollment Form'!$CC54=\"No\"),\"-\",IF(AND('Enrollment Form'!$CC54=\"Yes\",'Enrollment Form'!$CD54=\"\"),\"N\",\"Y\"))","v":"-"},{"$f":"IF(OR('Enrollment Form'!$CE54=\"\",'Enrollment Form'!$CE54=\"No\"),\"-\",IF(AND('Enrollment Form'!$CE54=\"Yes\",'Enrollment Form'!$CF54=\"\"),\"N\",\"Y\"))","v":"-"},{"$f":"IF(OR('Enrollment Form'!$CG54=\"\",'Enrollment Form'!$CG54=\"No\"),\"-\",IF(AND('Enrollment Form'!$CG54=\"Yes\",'Enrollment Form'!$CH54=\"\"),\"N\",\"Y\"))","v":"-"},{"$f":"IF(OR('Enrollment Form'!$CG54=\"\",'Enrollment Form'!$CG54=\"No\"),\"-\",IF(AND('Enrollment Form'!$CG54=\"Yes\",'Enrollment Form'!$CI54=\"\"),\"N\",\"Y\"))","v":"-"},{"$f":"IF('Enrollment Form'!B54<>\"Subscriber\",\"-\",IF(AND('Enrollment Form'!B54=\"Subscriber\",'Enrollment Form'!C54=\"Enroll\",'Enrollment Form'!AA54=\"\"),\"N\",\"Y\"))","v":"-"},{"$f":"IF(OR('Enrollment Form'!B54=\"Subscriber\",'Enrollment Form'!B54=\"\"),\"-\",IF('Enrollment Form'!BI54=\"\",\"N\",\"Y\"))","v":"-"},{"$f":"IF('Enrollment Form'!B54<>\"Subscriber\",\"-\",IF(AND('Enrollment Form'!B54=\"Subscriber\",'Enrollment Form'!G54=\"\"),\"N\",\"Y\"))","v":"-"},{"$f":"IF('Enrollment Form'!A54=\"\",\"\",IF('Enrollment Form'!B54=\"Subscriber\",\"-\",IF(AND('Enrollment Form'!B54<>\"Subscriber\",'Enrollment Form'!G54='Enrollment Form'!H54),\"N\",\"Y\")))","v":""},0]
[55,{"$f":"IF('Enrollment Form'!$A55<>\"\",\"Y\",\"N\")","v":"N"},{"$f":"IF(AND('Enrollment Form'!$B55=\"\",'Enrollment Form'!$C55<>\"\"),\"N\",IF($B48=\"N\",\"\",\"Y\"))","v":""},{"$f":"IF(OR($B48=\"N\",'Enrollment Form'!G55=\"\"),\"\",IF('Enrollment Form'!$B55<>\"Subscriber\",\"\",IF('Enrollment Form'!$G55='Enrollment Form'!$H55,\"Y\",\"N\")))","v":""},{"$f":"IF($B48=\"N\",\"\",IF(AND(COUNTIFS('Enrollment Form'!$H$11:$H$1000,'Enrollment Form'!$H55,'Enrollment Form'!$B$11:$B$1000,'Enrollment Form'!$B55)>1,'Enrollment Form'!$H55<>\"\"),\"N\",\"Y\"))","v":""},{"$f":"IF($B48=\"N\",\"\",IF(LEN('Enrollment Form'!$Y55)=0,\"\",IF(LEN('Enrollment Form'!$Y55)<>5,\"N\",\"Y\")))","v":""},{"$f":"IF($B48=\"N\",\"\",IF(LEN('Enrollment Form'!$AD55=0),\"\",IF(LEN('Enrollment Form'!$AD55)<>5,\"N\",\"Y\")))","v":""},{"$f":"IF($B48=\"N\",\"\",IF(LEN('Enrollment Form'!$BL55=0),\"\",IF(LEN('Enrollment Form'!$BL55)<>5,\"N\",\"Y\")))","v":""},{"$f":"IF($B48=\"N\",\"\",IF(LEN('Enrollment Form'!$AE55)=0,\"\",IF(LEN('Enrollment Form'!$AE55)<>10,\"N\",\"Y\")))","v":""},{"$f":"IF($B48=\"N\",\"\",IF(LEN('Enrollment Form'!$AF55)=0,\"\",IF(LEN('Enrollment Form'!$AF55)<>10,\"N\",\"Y\")))","v":""},{"$f":"IF('Enrollment Form'!$O55<>\"Graded\",\"-\",IF(AND('Enrollment Form'!$O55=\"Graded\",'Enrollment Form'!$AO55<>\"\"),\"Y\",\"N\"))","v":"-"},{"$f":"IF($B48=\"N\",\"\",IF(OR('Enrollment Form'!$B55<>\"Subscriber\",'Enrollment Form'!$C55=\"ROC\"),\"-\",IF(AND('Enrollment Form'!$B55=\"Subscriber\",'Enrollment Form'!$C55=\"Enroll\",'Enrollment Form'!$AJ55<>\"\"),\"Y\",\"N\")))","v":""},{"$f":"IF($B48=\"N\",\"\",IF(OR('Enrollment Form'!$B55<>\"Subscriber\",'Enrollment Form'!$C55=\"ROC\"),\"-\",IF(AND('Enrollment Form'!$B55=\"Subscriber\",'Enrollment Form'!$C55=\"Enroll\",'Enrollment Form'!$AK55<>\"\"),\"Y\",\"N\")))","v":""},{"$f":"IF($B48=\"N\",\"\",IF(OR('Enrollment Form'!$B55<>\"Subscriber\",'Enrollment Form'!$C55=\"ROC\"),\"-\",IF(AND('Enrollment Form'!$B55=\"Subscriber\",'Enrollment Form'!$C55=\"Enroll\",'Enrollment Form'!$AL55<>\"\"),\"Y\",\"N\")))","v":""},{"$f":"IF($B48=\"N\",\"\",IF(OR('Enrollment Form'!$B55<>\"Subscriber\",'Enrollment Form'!$C55=\"ROC\"),\"-\",IF(AND('Enrollment Form'!$B55=\"Subscriber\",'Enrollment Form'!$C55=\"Enroll\",'Enrollment Form'!$AM55<>\"\"),\"Y\",\"N\")))","v":""},{"$f":"IF($B48=\"N\",\"\",IF(OR('Enrollment Form'!$B55<>\"Subscriber\",'Enrollment Form'!$C55=\"ROC\"),\"-\",IF(AND('Enrollment Form'!$B55=\"Subscriber\",'Enrollment Form'!$C55=\"Enroll\",'Enrollment Form'!$AN55<>\"\"),\"Y\",\"N\")))","v":""},{"$f":"IF($B48=\"N\",\"\",IF(OR('Enrollment Form'!$B55<>\"Subscriber\",'Enrollment Form'!$C55=\"ROC\"),\"-\",IF(AND('Enrollment Form'!$B55=\"Subscriber\",'Enrollment Form'!$C55=\"Enroll\",'Enrollment Form'!$AP55<>\"\"),\"Y\",\"N\")))","v":""},{"$f":"IF($B48=\"N\",\"\",IF($Q48=\"-\",\"-\",IF(AND($Q48=\"Y\",'Enrollment Form'!$AP55=\"No\"),\"-\",IF(AND($Q48=\"Y\",'Enrollment Form'!$AP55=\"Yes\",'Enrollment Form'!$AQ55<>\"\"),\"Y\",\"N\"))))","v":""},{"$f":"IF($B48=\"N\",\"\",IF(OR('Enrollment Form'!$B55<>\"Subscriber\",'Enrollment Form'!$C55=\"ROC\"),\"-\",IF(AND('Enrollment Form'!$B55=\"Subscriber\",'Enrollment Form'!$C55=\"Enroll\",'Enrollment Form'!$CO55<>\"\"),\"Y\",\"N\")))","v":""},{"$f":"IF($B48=\"N\",\"\",IF($S48=\"-\",\"-\",IF(AND($S48=\"Y\",'Enrollment Form'!$CO55=\"No\"),\"-\",IF(AND($S48=\"Y\",'Enrollment Form'!$CO55=\"Yes\",'Enrollment Form'!$CP55<>\"\"),\"Y\",\"N\"))))","v":""},{"$f":"IF(OR('Enrollment Form'!$AV55=\"Yes\",'Enrollment Form'!$AV55=\"\"),\"-\",IF(AND('Enrollment Form'!$AV55=\"No\",ISERROR(FIND(\"HMO\",VLOOKUP('Enrollment Form'!G55,'Enrollment Form'!H$11:J$1000,3,FALSE),1))=FALSE,COUNTA('Enrollment Form'!$AW55:$AZ55)=4),\"Y\",\"N\"))","v":"-"},{"$f":"IF($B48=\"N\",\"\",IF('Enrollment Form'!$B55=\"Subscriber\",\"-\",IF(COUNTA('Enrollment Form'!$BE55,'Enrollment Form'!$BG55)=2,\"Y\",\"N\")))","v":""},{"$f":"IF($B48=\"N\",\"\",IF(OR('Enrollment Form'!$AU55=\"\",'Enrollment Form'!$AU55=\"No\"),\"-\",IF(AND('Enrollment Form'!$AU55=\"Yes\",COUNTA('Enrollment Form'!$CK55)=1),\"Y\",\"N\")))","v":""},{"$f":"IF(OR('Enrollment Form'!$CK55=\"\",'Enrollment Form'!$CK55=\"No\"),\"-\",IF(COUNTA('Enrollment Form'!$CM55:$CN55)=2,\"Y\",\"N\"))","v":"-"},{"$f":"IF($B48=\"N\",\"\",IF(COUNTIF('Enrollment Form'!$CZ55:$DO55,\"Other\")=COUNTA('Enrollment Form'!$DF55,'Enrollment Form'!$DA55,'Enrollment Form'!$DK55,'Enrollment Form'!$DP55),\"Y\",\"N\"))","v":""},{"$f":"IF($B48=\"N\",\"\",IF(OR('Enrollment Form'!B55<>\"Subscriber\",'Enrollment Form'!C55=\"ROC\",COUNTIF('Enrollment Form'!AS55:AT55,\"Yes\")>=1),\"-\",IF(AND('Enrollment Form'!C55=\"Enroll\",COUNTIF('Enrollment Form'!AS55:AT55,\"No\")=2,'Enrollment Form'!AU55=\"\"),\"N\",\"Y\")))","v":""},{"$f":"IF(OR(B48=\"N\",'Enrollment Form'!B55<>\"Subscriber\",'Enrollment Form'!C55=\"ROC\",'Enrollment Form'!O55<>\"Multiple of Salary\"),\"-\",IF(COUNTA('Enrollment Form'!T55:U55)<2,\"N\",\"Y\"))","v":"-"},{"$f":"IF(B48=\"N\",\"\",IF(OR('Enrollment Form'!C55=\"ROC\",'Enrollment Form'!B55<>\"Subscriber\",'Enrollment Form'!O55=\"Waive\",'Enrollment Form'!O55=\"\"),\"-\",IF('Enrollment Form'!P55=\"\",\"N\",\"Y\")))","v":""},{"$f":"IF($B48=\"N\",\"\",IF(AND('Enrollment Form'!$C55=\"ROC\",'Enrollment Form'!$DS55<>\"\"),\"Y\",IF(AND('Enrollment Form'!$C55=\"ROC\",'Enrollment Form'!$DS55=\"\"),\"N\",IF(AND('Enrollment Form'!$C55=\"Enroll\",'Enrollment Form'!$B55=\"Subscriber\",'Enrollment Form'!$CQ55=\"No\",'Enrollment Form'!$DS55=\"\"),\"N\",IF(AND('Enrollment Form'!$C55=\"Enroll\",'Enrollment Form'!$B55=\"Subscriber\",'Enrollment Form'!$CQ55=\"Yes\"),\"-\",\"Y\")))))","v":""},{"$f":"IF($B48=\"N\",\"\",IF(AND('Enrollment Form'!$C55=\"ROC\",'Enrollment Form'!$DT55<>\"\"),\"Y\",IF(AND('Enrollment Form'!$C55=\"ROC\",'Enrollment Form'!$DT55=\"\"),\"N\",IF(AND('Enrollment Form'!$C55=\"Enroll\",'Enrollment Form'!$B55=\"Subscriber\",'Enrollment Form'!$CQ55=\"No\",'Enrollment Form'!$DT55=\"\"),\"N\",IF(AND('Enrollment Form'!$C55=\"Enroll\",'Enrollment Form'!$B55=\"Subscriber\",'Enrollment Form'!$CQ55=\"Yes\"),\"-\",\"Y\")))))","v":""},{"$f":"IF('Enrollment Form'!AH55=\"\",\"\",IF(ISERROR(SEARCH(\".\",'Enrollment Form'!AH55,SEARCH(\"@\",'Enrollment Form'!AH55))),\"N\",\"Y\"))","v":""},{"$f":"IF(OR($B48=\"N\",'Enrollment Form'!$G55=\"\"),\"\",IF('Enrollment Form'!$B55<>\"Subscriber\",\"-\",IF(COUNTIF('Enrollment Form'!$AS55:$AT55,\"Yes\")=2,\"N\",\"Y\")))","v":""},{"$f":"IF(OR('Enrollment Form'!$CC55=\"\",'Enrollment Form'!$CC55=\"No\"),\"-\",IF(AND('Enrollment Form'!$CC55=\"Yes\",'Enrollment Form'!$CD55=\"\"),\"N\",\"Y\"))","v":"-"},{"$f":"IF(OR('Enrollment Form'!$CE55=\"\",'Enrollment Form'!$CE55=\"No\"),\"-\",IF(AND('Enrollment Form'!$CE55=\"Yes\",'Enrollment Form'!$CF55=\"\"),\"N\",\"Y\"))","v":"-"},{"$f":"IF(OR('Enrollment Form'!$CG55=\"\",'Enrollment Form'!$CG55=\"No\"),\"-\",IF(AND('Enrollment Form'!$CG55=\"Yes\",'Enrollment Form'!$CH55=\"\"),\"N\",\"Y\"))","v":"-"},{"$f":"IF(OR('Enrollment Form'!$CG55=\"\",'Enrollment Form'!$CG55=\"No\"),\"-\",IF(AND('Enrollment Form'!$CG55=\"Yes\",'Enrollment Form'!$CI55=\"\"),\"N\",\"Y\"))","v":"-"},{"$f":"IF('Enrollment Form'!B55<>\"Subscriber\",\"-\",IF(AND('Enrollment Form'!B55=\"Subscriber\",'Enrollment Form'!C55=\"Enroll\",'Enrollment Form'!AA55=\"\"),\"N\",\"Y\"))","v":"-"},{"$f":"IF(OR('Enrollment Form'!B55=\"Subscriber\",'Enrollment Form'!B55=\"\"),\"-\",IF('Enrollment Form'!BI55=\"\",\"N\",\"Y\"))","v":"-"},{"$f":"IF('Enrollment Form'!B55<>\"Subscriber\",\"-\",IF(AND('Enrollment Form'!B55=\"Subscriber\",'Enrollment Form'!G55=\"\"),\"N\",\"Y\"))","v":"-"},{"$f":"IF('Enrollment Form'!A55=\"\",\"\",IF('Enrollment Form'!B55=\"Subscriber\",\"-\",IF(AND('Enrollment Form'!B55<>\"Subscriber\",'Enrollment Form'!G55='Enrollment Form'!H55),\"N\",\"Y\")))","v":""},0]
[56,{"$f":"IF('Enrollment Form'!$A56<>\"\",\"Y\",\"N\")","v":"N"},{"$f":"IF(AND('Enrollment Form'!$B56=\"\",'Enrollment Form'!$C56<>\"\"),\"N\",IF($B49=\"N\",\"\",\"Y\"))","v":""},{"$f":"IF(OR($B49=\"N\",'Enrollment Form'!G56=\"\"),\"\",IF('Enrollment Form'!$B56<>\"Subscriber\",\"\",IF('Enrollment Form'!$G56='Enrollment Form'!$H56,\"Y\",\"N\")))","v":""},{"$f":"IF($B49=\"N\",\"\",IF(AND(COUNTIFS('Enrollment Form'!$H$11:$H$1000,'Enrollment Form'!$H56,'Enrollment Form'!$B$11:$B$1000,'Enrollment Form'!$B56)>1,'Enrollment Form'!$H56<>\"\"),\"N\",\"Y\"))","v":""},{"$f":"IF($B49=\"N\",\"\",IF(LEN('Enrollment Form'!$Y56)=0,\"\",IF(LEN('Enrollment Form'!$Y56)<>5,\"N\",\"Y\")))","v":""},{"$f":"IF($B49=\"N\",\"\",IF(LEN('Enrollment Form'!$AD56=0),\"\",IF(LEN('Enrollment Form'!$AD56)<>5,\"N\",\"Y\")))","v":""},{"$f":"IF($B49=\"N\",\"\",IF(LEN('Enrollment Form'!$BL56=0),\"\",IF(LEN('Enrollment Form'!$BL56)<>5,\"N\",\"Y\")))","v":""},{"$f":"IF($B49=\"N\",\"\",IF(LEN('Enrollment Form'!$AE56)=0,\"\",IF(LEN('Enrollment Form'!$AE56)<>10,\"N\",\"Y\")))","v":""},{"$f":"IF($B49=\"N\",\"\",IF(LEN('Enrollment Form'!$AF56)=0,\"\",IF(LEN('Enrollment Form'!$AF56)<>10,\"N\",\"Y\")))","v":""},{"$f":"IF('Enrollment Form'!$O56<>\"Graded\",\"-\",IF(AND('Enrollment Form'!$O56=\"Graded\",'Enrollment Form'!$AO56<>\"\"),\"Y\",\"N\"))","v":"-"},{"$f":"IF($B49=\"N\",\"\",IF(OR('Enrollment Form'!$B56<>\"Subscriber\",'Enrollment Form'!$C56=\"ROC\"),\"-\",IF(AND('Enrollment Form'!$B56=\"Subscriber\",'Enrollment Form'!$C56=\"Enroll\",'Enrollment Form'!$AJ56<>\"\"),\"Y\",\"N\")))","v":""},{"$f":"IF($B49=\"N\",\"\",IF(OR('Enrollment Form'!$B56<>\"Subscriber\",'Enrollment Form'!$C56=\"ROC\"),\"-\",IF(AND('Enrollment Form'!$B56=\"Subscriber\",'Enrollment Form'!$C56=\"Enroll\",'Enrollment Form'!$AK56<>\"\"),\"Y\",\"N\")))","v":""},{"$f":"IF($B49=\"N\",\"\",IF(OR('Enrollment Form'!$B56<>\"Subscriber\",'Enrollment Form'!$C56=\"ROC\"),\"-\",IF(AND('Enrollment Form'!$B56=\"Subscriber\",'Enrollment Form'!$C56=\"Enroll\",'Enrollment Form'!$AL56<>\"\"),\"Y\",\"N\")))","v":""},{"$f":"IF($B49=\"N\",\"\",IF(OR('Enrollment Form'!$B56<>\"Subscriber\",'Enrollment Form'!$C56=\"ROC\"),\"-\",IF(AND('Enrollment Form'!$B56=\"Subscriber\",'Enrollment Form'!$C56=\"Enroll\",'Enrollment Form'!$AM56<>\"\"),\"Y\",\"N\")))","v":""},{"$f":"IF($B49=\"N\",\"\",IF(OR('Enrollment Form'!$B56<>\"Subscriber\",'Enrollment Form'!$C56=\"ROC\"),\"-\",IF(AND('Enrollment Form'!$B56=\"Subscriber\",'Enrollment Form'!$C56=\"Enroll\",'Enrollment Form'!$AN56<>\"\"),\"Y\",\"N\")))","v":""},{"$f":"IF($B49=\"N\",\"\",IF(OR('Enrollment Form'!$B56<>\"Subscriber\",'Enrollment Form'!$C56=\"ROC\"),\"-\",IF(AND('Enrollment Form'!$B56=\"Subscriber\",'Enrollment Form'!$C56=\"Enroll\",'Enrollment Form'!$AP56<>\"\"),\"Y\",\"N\")))","v":""},{"$f":"IF($B49=\"N\",\"\",IF($Q49=\"-\",\"-\",IF(AND($Q49=\"Y\",'Enrollment Form'!$AP56=\"No\"),\"-\",IF(AND($Q49=\"Y\",'Enrollment Form'!$AP56=\"Yes\",'Enrollment Form'!$AQ56<>\"\"),\"Y\",\"N\"))))","v":""},{"$f":"IF($B49=\"N\",\"\",IF(OR('Enrollment Form'!$B56<>\"Subscriber\",'Enrollment Form'!$C56=\"ROC\"),\"-\",IF(AND('Enrollment Form'!$B56=\"Subscriber\",'Enrollment Form'!$C56=\"Enroll\",'Enrollment Form'!$CO56<>\"\"),\"Y\",\"N\")))","v":""},{"$f":"IF($B49=\"N\",\"\",IF($S49=\"-\",\"-\",IF(AND($S49=\"Y\",'Enrollment Form'!$CO56=\"No\"),\"-\",IF(AND($S49=\"Y\",'Enrollment Form'!$CO56=\"Yes\",'Enrollment Form'!$CP56<>\"\"),\"Y\",\"N\"))))","v":""},{"$f":"IF(OR('Enrollment Form'!$AV56=\"Yes\",'Enrollment Form'!$AV56=\"\"),\"-\",IF(AND('Enrollment Form'!$AV56=\"No\",ISERROR(FIND(\"HMO\",VLOOKUP('Enrollment Form'!G56,'Enrollment Form'!H$11:J$1000,3,FALSE),1))=FALSE,COUNTA('Enrollment Form'!$AW56:$AZ56)=4),\"Y\",\"N\"))","v":"-"},{"$f":"IF($B49=\"N\",\"\",IF('Enrollment Form'!$B56=\"Subscriber\",\"-\",IF(COUNTA('Enrollment Form'!$BE56,'Enrollment Form'!$BG56)=2,\"Y\",\"N\")))","v":""},{"$f":"IF($B49=\"N\",\"\",IF(OR('Enrollment Form'!$AU56=\"\",'Enrollment Form'!$AU56=\"No\"),\"-\",IF(AND('Enrollment Form'!$AU56=\"Yes\",COUNTA('Enrollment Form'!$CK56)=1),\"Y\",\"N\")))","v":""},{"$f":"IF(OR('Enrollment Form'!$CK56=\"\",'Enrollment Form'!$CK56=\"No\"),\"-\",IF(COUNTA('Enrollment Form'!$CM56:$CN56)=2,\"Y\",\"N\"))","v":"-"},{"$f":"IF($B49=\"N\",\"\",IF(COUNTIF('Enrollment Form'!$CZ56:$DO56,\"Other\")=COUNTA('Enrollment Form'!$DF56,'Enrollment Form'!$DA56,'Enrollment Form'!$DK56,'Enrollment Form'!$DP56),\"Y\",\"N\"))","v":""},{"$f":"IF($B49=\"N\",\"\",IF(OR('Enrollment Form'!B56<>\"Subscriber\",'Enrollment Form'!C56=\"ROC\",COUNTIF('Enrollment Form'!AS56:AT56,\"Yes\")>=1),\"-\",IF(AND('Enrollment Form'!C56=\"Enroll\",COUNTIF('Enrollment Form'!AS56:AT56,\"No\")=2,'Enrollment Form'!AU56=\"\"),\"N\",\"Y\")))","v":""},{"$f":"IF(OR(B49=\"N\",'Enrollment Form'!B56<>\"Subscriber\",'Enrollment Form'!C56=\"ROC\",'Enrollment Form'!O56<>\"Multiple of Salary\"),\"-\",IF(COUNTA('Enrollment Form'!T56:U56)<2,\"N\",\"Y\"))","v":"-"},{"$f":"IF(B49=\"N\",\"\",IF(OR('Enrollment Form'!C56=\"ROC\",'Enrollment Form'!B56<>\"Subscriber\",'Enrollment Form'!O56=\"Waive\",'Enrollment Form'!O56=\"\"),\"-\",IF('Enrollment Form'!P56=\"\",\"N\",\"Y\")))","v":""},{"$f":"IF($B49=\"N\",\"\",IF(AND('Enrollment Form'!$C56=\"ROC\",'Enrollment Form'!$DS56<>\"\"),\"Y\",IF(AND('Enrollment Form'!$C56=\"ROC\",'Enrollment Form'!$DS56=\"\"),\"N\",IF(AND('Enrollment Form'!$C56=\"Enroll\",'Enrollment Form'!$B56=\"Subscriber\",'Enrollment Form'!$CQ56=\"No\",'Enrollment Form'!$DS56=\"\"),\"N\",IF(AND('Enrollment Form'!$C56=\"Enroll\",'Enrollment Form'!$B56=\"Subscriber\",'Enrollment Form'!$CQ56=\"Yes\"),\"-\",\"Y\")))))","v":""},{"$f":"IF($B49=\"N\",\"\",IF(AND('Enrollment Form'!$C56=\"ROC\",'Enrollment Form'!$DT56<>\"\"),\"Y\",IF(AND('Enrollment Form'!$C56=\"ROC\",'Enrollment Form'!$DT56=\"\"),\"N\",IF(AND('Enrollment Form'!$C56=\"Enroll\",'Enrollment Form'!$B56=\"Subscriber\",'Enrollment Form'!$CQ56=\"No\",'Enrollment Form'!$DT56=\"\"),\"N\",IF(AND('Enrollment Form'!$C56=\"Enroll\",'Enrollment Form'!$B56=\"Subscriber\",'Enrollment Form'!$CQ56=\"Yes\"),\"-\",\"Y\")))))","v":""},{"$f":"IF('Enrollment Form'!AH56=\"\",\"\",IF(ISERROR(SEARCH(\".\",'Enrollment Form'!AH56,SEARCH(\"@\",'Enrollment Form'!AH56))),\"N\",\"Y\"))","v":""},{"$f":"IF(OR($B49=\"N\",'Enrollment Form'!$G56=\"\"),\"\",IF('Enrollment Form'!$B56<>\"Subscriber\",\"-\",IF(COUNTIF('Enrollment Form'!$AS56:$AT56,\"Yes\")=2,\"N\",\"Y\")))","v":""},{"$f":"IF(OR('Enrollment Form'!$CC56=\"\",'Enrollment Form'!$CC56=\"No\"),\"-\",IF(AND('Enrollment Form'!$CC56=\"Yes\",'Enrollment Form'!$CD56=\"\"),\"N\",\"Y\"))","v":"-"},{"$f":"IF(OR('Enrollment Form'!$CE56=\"\",'Enrollment Form'!$CE56=\"No\"),\"-\",IF(AND('Enrollment Form'!$CE56=\"Yes\",'Enrollment Form'!$CF56=\"\"),\"N\",\"Y\"))","v":"-"},{"$f":"IF(OR('Enrollment Form'!$CG56=\"\",'Enrollment Form'!$CG56=\"No\"),\"-\",IF(AND('Enrollment Form'!$CG56=\"Yes\",'Enrollment Form'!$CH56=\"\"),\"N\",\"Y\"))","v":"-"},{"$f":"IF(OR('Enrollment Form'!$CG56=\"\",'Enrollment Form'!$CG56=\"No\"),\"-\",IF(AND('Enrollment Form'!$CG56=\"Yes\",'Enrollment Form'!$CI56=\"\"),\"N\",\"Y\"))","v":"-"},{"$f":"IF('Enrollment Form'!B56<>\"Subscriber\",\"-\",IF(AND('Enrollment Form'!B56=\"Subscriber\",'Enrollment Form'!C56=\"Enroll\",'Enrollment Form'!AA56=\"\"),\"N\",\"Y\"))","v":"-"},{"$f":"IF(OR('Enrollment Form'!B56=\"Subscriber\",'Enrollment Form'!B56=\"\"),\"-\",IF('Enrollment Form'!BI56=\"\",\"N\",\"Y\"))","v":"-"},{"$f":"IF('Enrollment Form'!B56<>\"Subscriber\",\"-\",IF(AND('Enrollment Form'!B56=\"Subscriber\",'Enrollment Form'!G56=\"\"),\"N\",\"Y\"))","v":"-"},{"$f":"IF('Enrollment Form'!A56=\"\",\"\",IF('Enrollment Form'!B56=\"Subscriber\",\"-\",IF(AND('Enrollment Form'!B56<>\"Subscriber\",'Enrollment Form'!G56='Enrollment Form'!H56),\"N\",\"Y\")))","v":""},0]
[57,{"$f":"IF('Enrollment Form'!$A57<>\"\",\"Y\",\"N\")","v":"N"},{"$f":"IF(AND('Enrollment Form'!$B57=\"\",'Enrollment Form'!$C57<>\"\"),\"N\",IF($B50=\"N\",\"\",\"Y\"))","v":""},{"$f":"IF(OR($B50=\"N\",'Enrollment Form'!G57=\"\"),\"\",IF('Enrollment Form'!$B57<>\"Subscriber\",\"\",IF('Enrollment Form'!$G57='Enrollment Form'!$H57,\"Y\",\"N\")))","v":""},{"$f":"IF($B50=\"N\",\"\",IF(AND(COUNTIFS('Enrollment Form'!$H$11:$H$1000,'Enrollment Form'!$H57,'Enrollment Form'!$B$11:$B$1000,'Enrollment Form'!$B57)>1,'Enrollment Form'!$H57<>\"\"),\"N\",\"Y\"))","v":""},{"$f":"IF($B50=\"N\",\"\",IF(LEN('Enrollment Form'!$Y57)=0,\"\",IF(LEN('Enrollment Form'!$Y57)<>5,\"N\",\"Y\")))","v":""},{"$f":"IF($B50=\"N\",\"\",IF(LEN('Enrollment Form'!$AD57=0),\"\",IF(LEN('Enrollment Form'!$AD57)<>5,\"N\",\"Y\")))","v":""},{"$f":"IF($B50=\"N\",\"\",IF(LEN('Enrollment Form'!$BL57=0),\"\",IF(LEN('Enrollment Form'!$BL57)<>5,\"N\",\"Y\")))","v":""},{"$f":"IF($B50=\"N\",\"\",IF(LEN('Enrollment Form'!$AE57)=0,\"\",IF(LEN('Enrollment Form'!$AE57)<>10,\"N\",\"Y\")))","v":""},{"$f":"IF($B50=\"N\",\"\",IF(LEN('Enrollment Form'!$AF57)=0,\"\",IF(LEN('Enrollment Form'!$AF57)<>10,\"N\",\"Y\")))","v":""},{"$f":"IF('Enrollment Form'!$O57<>\"Graded\",\"-\",IF(AND('Enrollment Form'!$O57=\"Graded\",'Enrollment Form'!$AO57<>\"\"),\"Y\",\"N\"))","v":"-"},{"$f":"IF($B50=\"N\",\"\",IF(OR('Enrollment Form'!$B57<>\"Subscriber\",'Enrollment Form'!$C57=\"ROC\"),\"-\",IF(AND('Enrollment Form'!$B57=\"Subscriber\",'Enrollment Form'!$C57=\"Enroll\",'Enrollment Form'!$AJ57<>\"\"),\"Y\",\"N\")))","v":""},{"$f":"IF($B50=\"N\",\"\",IF(OR('Enrollment Form'!$B57<>\"Subscriber\",'Enrollment Form'!$C57=\"ROC\"),\"-\",IF(AND('Enrollment Form'!$B57=\"Subscriber\",'Enrollment Form'!$C57=\"Enroll\",'Enrollment Form'!$AK57<>\"\"),\"Y\",\"N\")))","v":""},{"$f":"IF($B50=\"N\",\"\",IF(OR('Enrollment Form'!$B57<>\"Subscriber\",'Enrollment Form'!$C57=\"ROC\"),\"-\",IF(AND('Enrollment Form'!$B57=\"Subscriber\",'Enrollment Form'!$C57=\"Enroll\",'Enrollment Form'!$AL57<>\"\"),\"Y\",\"N\")))","v":""},{"$f":"IF($B50=\"N\",\"\",IF(OR('Enrollment Form'!$B57<>\"Subscriber\",'Enrollment Form'!$C57=\"ROC\"),\"-\",IF(AND('Enrollment Form'!$B57=\"Subscriber\",'Enrollment Form'!$C57=\"Enroll\",'Enrollment Form'!$AM57<>\"\"),\"Y\",\"N\")))","v":""},{"$f":"IF($B50=\"N\",\"\",IF(OR('Enrollment Form'!$B57<>\"Subscriber\",'Enrollment Form'!$C57=\"ROC\"),\"-\",IF(AND('Enrollment Form'!$B57=\"Subscriber\",'Enrollment Form'!$C57=\"Enroll\",'Enrollment Form'!$AN57<>\"\"),\"Y\",\"N\")))","v":""},{"$f":"IF($B50=\"N\",\"\",IF(OR('Enrollment Form'!$B57<>\"Subscriber\",'Enrollment Form'!$C57=\"ROC\"),\"-\",IF(AND('Enrollment Form'!$B57=\"Subscriber\",'Enrollment Form'!$C57=\"Enroll\",'Enrollment Form'!$AP57<>\"\"),\"Y\",\"N\")))","v":""},{"$f":"IF($B50=\"N\",\"\",IF($Q50=\"-\",\"-\",IF(AND($Q50=\"Y\",'Enrollment Form'!$AP57=\"No\"),\"-\",IF(AND($Q50=\"Y\",'Enrollment Form'!$AP57=\"Yes\",'Enrollment Form'!$AQ57<>\"\"),\"Y\",\"N\"))))","v":""},{"$f":"IF($B50=\"N\",\"\",IF(OR('Enrollment Form'!$B57<>\"Subscriber\",'Enrollment Form'!$C57=\"ROC\"),\"-\",IF(AND('Enrollment Form'!$B57=\"Subscriber\",'Enrollment Form'!$C57=\"Enroll\",'Enrollment Form'!$CO57<>\"\"),\"Y\",\"N\")))","v":""},{"$f":"IF($B50=\"N\",\"\",IF($S50=\"-\",\"-\",IF(AND($S50=\"Y\",'Enrollment Form'!$CO57=\"No\"),\"-\",IF(AND($S50=\"Y\",'Enrollment Form'!$CO57=\"Yes\",'Enrollment Form'!$CP57<>\"\"),\"Y\",\"N\"))))","v":""},{"$f":"IF(OR('Enrollment Form'!$AV57=\"Yes\",'Enrollment Form'!$AV57=\"\"),\"-\",IF(AND('Enrollment Form'!$AV57=\"No\",ISERROR(FIND(\"HMO\",VLOOKUP('Enrollment Form'!G57,'Enrollment Form'!H$11:J$1000,3,FALSE),1))=FALSE,COUNTA('Enrollment Form'!$AW57:$AZ57)=4),\"Y\",\"N\"))","v":"-"},{"$f":"IF($B50=\"N\",\"\",IF('Enrollment Form'!$B57=\"Subscriber\",\"-\",IF(COUNTA('Enrollment Form'!$BE57,'Enrollment Form'!$BG57)=2,\"Y\",\"N\")))","v":""},{"$f":"IF($B50=\"N\",\"\",IF(OR('Enrollment Form'!$AU57=\"\",'Enrollment Form'!$AU57=\"No\"),\"-\",IF(AND('Enrollment Form'!$AU57=\"Yes\",COUNTA('Enrollment Form'!$CK57)=1),\"Y\",\"N\")))","v":""},{"$f":"IF(OR('Enrollment Form'!$CK57=\"\",'Enrollment Form'!$CK57=\"No\"),\"-\",IF(COUNTA('Enrollment Form'!$CM57:$CN57)=2,\"Y\",\"N\"))","v":"-"},{"$f":"IF($B50=\"N\",\"\",IF(COUNTIF('Enrollment Form'!$CZ57:$DO57,\"Other\")=COUNTA('Enrollment Form'!$DF57,'Enrollment Form'!$DA57,'Enrollment Form'!$DK57,'Enrollment Form'!$DP57),\"Y\",\"N\"))","v":""},{"$f":"IF($B50=\"N\",\"\",IF(OR('Enrollment Form'!B57<>\"Subscriber\",'Enrollment Form'!C57=\"ROC\",COUNTIF('Enrollment Form'!AS57:AT57,\"Yes\")>=1),\"-\",IF(AND('Enrollment Form'!C57=\"Enroll\",COUNTIF('Enrollment Form'!AS57:AT57,\"No\")=2,'Enrollment Form'!AU57=\"\"),\"N\",\"Y\")))","v":""},{"$f":"IF(OR(B50=\"N\",'Enrollment Form'!B57<>\"Subscriber\",'Enrollment Form'!C57=\"ROC\",'Enrollment Form'!O57<>\"Multiple of Salary\"),\"-\",IF(COUNTA('Enrollment Form'!T57:U57)<2,\"N\",\"Y\"))","v":"-"},{"$f":"IF(B50=\"N\",\"\",IF(OR('Enrollment Form'!C57=\"ROC\",'Enrollment Form'!B57<>\"Subscriber\",'Enrollment Form'!O57=\"Waive\",'Enrollment Form'!O57=\"\"),\"-\",IF('Enrollment Form'!P57=\"\",\"N\",\"Y\")))","v":""},{"$f":"IF($B50=\"N\",\"\",IF(AND('Enrollment Form'!$C57=\"ROC\",'Enrollment Form'!$DS57<>\"\"),\"Y\",IF(AND('Enrollment Form'!$C57=\"ROC\",'Enrollment Form'!$DS57=\"\"),\"N\",IF(AND('Enrollment Form'!$C57=\"Enroll\",'Enrollment Form'!$B57=\"Subscriber\",'Enrollment Form'!$CQ57=\"No\",'Enrollment Form'!$DS57=\"\"),\"N\",IF(AND('Enrollment Form'!$C57=\"Enroll\",'Enrollment Form'!$B57=\"Subscriber\",'Enrollment Form'!$CQ57=\"Yes\"),\"-\",\"Y\")))))","v":""},{"$f":"IF($B50=\"N\",\"\",IF(AND('Enrollment Form'!$C57=\"ROC\",'Enrollment Form'!$DT57<>\"\"),\"Y\",IF(AND('Enrollment Form'!$C57=\"ROC\",'Enrollment Form'!$DT57=\"\"),\"N\",IF(AND('Enrollment Form'!$C57=\"Enroll\",'Enrollment Form'!$B57=\"Subscriber\",'Enrollment Form'!$CQ57=\"No\",'Enrollment Form'!$DT57=\"\"),\"N\",IF(AND('Enrollment Form'!$C57=\"Enroll\",'Enrollment Form'!$B57=\"Subscriber\",'Enrollment Form'!$CQ57=\"Yes\"),\"-\",\"Y\")))))","v":""},{"$f":"IF('Enrollment Form'!AH57=\"\",\"\",IF(ISERROR(SEARCH(\".\",'Enrollment Form'!AH57,SEARCH(\"@\",'Enrollment Form'!AH57))),\"N\",\"Y\"))","v":""},{"$f":"IF(OR($B50=\"N\",'Enrollment Form'!$G57=\"\"),\"\",IF('Enrollment Form'!$B57<>\"Subscriber\",\"-\",IF(COUNTIF('Enrollment Form'!$AS57:$AT57,\"Yes\")=2,\"N\",\"Y\")))","v":""},{"$f":"IF(OR('Enrollment Form'!$CC57=\"\",'Enrollment Form'!$CC57=\"No\"),\"-\",IF(AND('Enrollment Form'!$CC57=\"Yes\",'Enrollment Form'!$CD57=\"\"),\"N\",\"Y\"))","v":"-"},{"$f":"IF(OR('Enrollment Form'!$CE57=\"\",'Enrollment Form'!$CE57=\"No\"),\"-\",IF(AND('Enrollment Form'!$CE57=\"Yes\",'Enrollment Form'!$CF57=\"\"),\"N\",\"Y\"))","v":"-"},{"$f":"IF(OR('Enrollment Form'!$CG57=\"\",'Enrollment Form'!$CG57=\"No\"),\"-\",IF(AND('Enrollment Form'!$CG57=\"Yes\",'Enrollment Form'!$CH57=\"\"),\"N\",\"Y\"))","v":"-"},{"$f":"IF(OR('Enrollment Form'!$CG57=\"\",'Enrollment Form'!$CG57=\"No\"),\"-\",IF(AND('Enrollment Form'!$CG57=\"Yes\",'Enrollment Form'!$CI57=\"\"),\"N\",\"Y\"))","v":"-"},{"$f":"IF('Enrollment Form'!B57<>\"Subscriber\",\"-\",IF(AND('Enrollment Form'!B57=\"Subscriber\",'Enrollment Form'!C57=\"Enroll\",'Enrollment Form'!AA57=\"\"),\"N\",\"Y\"))","v":"-"},{"$f":"IF(OR('Enrollment Form'!B57=\"Subscriber\",'Enrollment Form'!B57=\"\"),\"-\",IF('Enrollment Form'!BI57=\"\",\"N\",\"Y\"))","v":"-"},{"$f":"IF('Enrollment Form'!B57<>\"Subscriber\",\"-\",IF(AND('Enrollment Form'!B57=\"Subscriber\",'Enrollment Form'!G57=\"\"),\"N\",\"Y\"))","v":"-"},{"$f":"IF('Enrollment Form'!A57=\"\",\"\",IF('Enrollment Form'!B57=\"Subscriber\",\"-\",IF(AND('Enrollment Form'!B57<>\"Subscriber\",'Enrollment Form'!G57='Enrollment Form'!H57),\"N\",\"Y\")))","v":""},0]
[58,{"$f":"IF('Enrollment Form'!$A58<>\"\",\"Y\",\"N\")","v":"N"},{"$f":"IF(AND('Enrollment Form'!$B58=\"\",'Enrollment Form'!$C58<>\"\"),\"N\",IF($B51=\"N\",\"\",\"Y\"))","v":""},{"$f":"IF(OR($B51=\"N\",'Enrollment Form'!G58=\"\"),\"\",IF('Enrollment Form'!$B58<>\"Subscriber\",\"\",IF('Enrollment Form'!$G58='Enrollment Form'!$H58,\"Y\",\"N\")))","v":""},{"$f":"IF($B51=\"N\",\"\",IF(AND(COUNTIFS('Enrollment Form'!$H$11:$H$1000,'Enrollment Form'!$H58,'Enrollment Form'!$B$11:$B$1000,'Enrollment Form'!$B58)>1,'Enrollment Form'!$H58<>\"\"),\"N\",\"Y\"))","v":""},{"$f":"IF($B51=\"N\",\"\",IF(LEN('Enrollment Form'!$Y58)=0,\"\",IF(LEN('Enrollment Form'!$Y58)<>5,\"N\",\"Y\")))","v":""},{"$f":"IF($B51=\"N\",\"\",IF(LEN('Enrollment Form'!$AD58=0),\"\",IF(LEN('Enrollment Form'!$AD58)<>5,\"N\",\"Y\")))","v":""},{"$f":"IF($B51=\"N\",\"\",IF(LEN('Enrollment Form'!$BL58=0),\"\",IF(LEN('Enrollment Form'!$BL58)<>5,\"N\",\"Y\")))","v":""},{"$f":"IF($B51=\"N\",\"\",IF(LEN('Enrollment Form'!$AE58)=0,\"\",IF(LEN('Enrollment Form'!$AE58)<>10,\"N\",\"Y\")))","v":""},{"$f":"IF($B51=\"N\",\"\",IF(LEN('Enrollment Form'!$AF58)=0,\"\",IF(LEN('Enrollment Form'!$AF58)<>10,\"N\",\"Y\")))","v":""},{"$f":"IF('Enrollment Form'!$O58<>\"Graded\",\"-\",IF(AND('Enrollment Form'!$O58=\"Graded\",'Enrollment Form'!$AO58<>\"\"),\"Y\",\"N\"))","v":"-"},{"$f":"IF($B51=\"N\",\"\",IF(OR('Enrollment Form'!$B58<>\"Subscriber\",'Enrollment Form'!$C58=\"ROC\"),\"-\",IF(AND('Enrollment Form'!$B58=\"Subscriber\",'Enrollment Form'!$C58=\"Enroll\",'Enrollment Form'!$AJ58<>\"\"),\"Y\",\"N\")))","v":""},{"$f":"IF($B51=\"N\",\"\",IF(OR('Enrollment Form'!$B58<>\"Subscriber\",'Enrollment Form'!$C58=\"ROC\"),\"-\",IF(AND('Enrollment Form'!$B58=\"Subscriber\",'Enrollment Form'!$C58=\"Enroll\",'Enrollment Form'!$AK58<>\"\"),\"Y\",\"N\")))","v":""},{"$f":"IF($B51=\"N\",\"\",IF(OR('Enrollment Form'!$B58<>\"Subscriber\",'Enrollment Form'!$C58=\"ROC\"),\"-\",IF(AND('Enrollment Form'!$B58=\"Subscriber\",'Enrollment Form'!$C58=\"Enroll\",'Enrollment Form'!$AL58<>\"\"),\"Y\",\"N\")))","v":""},{"$f":"IF($B51=\"N\",\"\",IF(OR('Enrollment Form'!$B58<>\"Subscriber\",'Enrollment Form'!$C58=\"ROC\"),\"-\",IF(AND('Enrollment Form'!$B58=\"Subscriber\",'Enrollment Form'!$C58=\"Enroll\",'Enrollment Form'!$AM58<>\"\"),\"Y\",\"N\")))","v":""},{"$f":"IF($B51=\"N\",\"\",IF(OR('Enrollment Form'!$B58<>\"Subscriber\",'Enrollment Form'!$C58=\"ROC\"),\"-\",IF(AND('Enrollment Form'!$B58=\"Subscriber\",'Enrollment Form'!$C58=\"Enroll\",'Enrollment Form'!$AN58<>\"\"),\"Y\",\"N\")))","v":""},{"$f":"IF($B51=\"N\",\"\",IF(OR('Enrollment Form'!$B58<>\"Subscriber\",'Enrollment Form'!$C58=\"ROC\"),\"-\",IF(AND('Enrollment Form'!$B58=\"Subscriber\",'Enrollment Form'!$C58=\"Enroll\",'Enrollment Form'!$AP58<>\"\"),\"Y\",\"N\")))","v":""},{"$f":"IF($B51=\"N\",\"\",IF($Q51=\"-\",\"-\",IF(AND($Q51=\"Y\",'Enrollment Form'!$AP58=\"No\"),\"-\",IF(AND($Q51=\"Y\",'Enrollment Form'!$AP58=\"Yes\",'Enrollment Form'!$AQ58<>\"\"),\"Y\",\"N\"))))","v":""},{"$f":"IF($B51=\"N\",\"\",IF(OR('Enrollment Form'!$B58<>\"Subscriber\",'Enrollment Form'!$C58=\"ROC\"),\"-\",IF(AND('Enrollment Form'!$B58=\"Subscriber\",'Enrollment Form'!$C58=\"Enroll\",'Enrollment Form'!$CO58<>\"\"),\"Y\",\"N\")))","v":""},{"$f":"IF($B51=\"N\",\"\",IF($S51=\"-\",\"-\",IF(AND($S51=\"Y\",'Enrollment Form'!$CO58=\"No\"),\"-\",IF(AND($S51=\"Y\",'Enrollment Form'!$CO58=\"Yes\",'Enrollment Form'!$CP58<>\"\"),\"Y\",\"N\"))))","v":""},{"$f":"IF(OR('Enrollment Form'!$AV58=\"Yes\",'Enrollment Form'!$AV58=\"\"),\"-\",IF(AND('Enrollment Form'!$AV58=\"No\",ISERROR(FIND(\"HMO\",VLOOKUP('Enrollment Form'!G58,'Enrollment Form'!H$11:J$1000,3,FALSE),1))=FALSE,COUNTA('Enrollment Form'!$AW58:$AZ58)=4),\"Y\",\"N\"))","v":"-"},{"$f":"IF($B51=\"N\",\"\",IF('Enrollment Form'!$B58=\"Subscriber\",\"-\",IF(COUNTA('Enrollment Form'!$BE58,'Enrollment Form'!$BG58)=2,\"Y\",\"N\")))","v":""},{"$f":"IF($B51=\"N\",\"\",IF(OR('Enrollment Form'!$AU58=\"\",'Enrollment Form'!$AU58=\"No\"),\"-\",IF(AND('Enrollment Form'!$AU58=\"Yes\",COUNTA('Enrollment Form'!$CK58)=1),\"Y\",\"N\")))","v":""},{"$f":"IF(OR('Enrollment Form'!$CK58=\"\",'Enrollment Form'!$CK58=\"No\"),\"-\",IF(COUNTA('Enrollment Form'!$CM58:$CN58)=2,\"Y\",\"N\"))","v":"-"},{"$f":"IF($B51=\"N\",\"\",IF(COUNTIF('Enrollment Form'!$CZ58:$DO58,\"Other\")=COUNTA('Enrollment Form'!$DF58,'Enrollment Form'!$DA58,'Enrollment Form'!$DK58,'Enrollment Form'!$DP58),\"Y\",\"N\"))","v":""},{"$f":"IF($B51=\"N\",\"\",IF(OR('Enrollment Form'!B58<>\"Subscriber\",'Enrollment Form'!C58=\"ROC\",COUNTIF('Enrollment Form'!AS58:AT58,\"Yes\")>=1),\"-\",IF(AND('Enrollment Form'!C58=\"Enroll\",COUNTIF('Enrollment Form'!AS58:AT58,\"No\")=2,'Enrollment Form'!AU58=\"\"),\"N\",\"Y\")))","v":""},{"$f":"IF(OR(B51=\"N\",'Enrollment Form'!B58<>\"Subscriber\",'Enrollment Form'!C58=\"ROC\",'Enrollment Form'!O58<>\"Multiple of Salary\"),\"-\",IF(COUNTA('Enrollment Form'!T58:U58)<2,\"N\",\"Y\"))","v":"-"},{"$f":"IF(B51=\"N\",\"\",IF(OR('Enrollment Form'!C58=\"ROC\",'Enrollment Form'!B58<>\"Subscriber\",'Enrollment Form'!O58=\"Waive\",'Enrollment Form'!O58=\"\"),\"-\",IF('Enrollment Form'!P58=\"\",\"N\",\"Y\")))","v":""},{"$f":"IF($B51=\"N\",\"\",IF(AND('Enrollment Form'!$C58=\"ROC\",'Enrollment Form'!$DS58<>\"\"),\"Y\",IF(AND('Enrollment Form'!$C58=\"ROC\",'Enrollment Form'!$DS58=\"\"),\"N\",IF(AND('Enrollment Form'!$C58=\"Enroll\",'Enrollment Form'!$B58=\"Subscriber\",'Enrollment Form'!$CQ58=\"No\",'Enrollment Form'!$DS58=\"\"),\"N\",IF(AND('Enrollment Form'!$C58=\"Enroll\",'Enrollment Form'!$B58=\"Subscriber\",'Enrollment Form'!$CQ58=\"Yes\"),\"-\",\"Y\")))))","v":""},{"$f":"IF($B51=\"N\",\"\",IF(AND('Enrollment Form'!$C58=\"ROC\",'Enrollment Form'!$DT58<>\"\"),\"Y\",IF(AND('Enrollment Form'!$C58=\"ROC\",'Enrollment Form'!$DT58=\"\"),\"N\",IF(AND('Enrollment Form'!$C58=\"Enroll\",'Enrollment Form'!$B58=\"Subscriber\",'Enrollment Form'!$CQ58=\"No\",'Enrollment Form'!$DT58=\"\"),\"N\",IF(AND('Enrollment Form'!$C58=\"Enroll\",'Enrollment Form'!$B58=\"Subscriber\",'Enrollment Form'!$CQ58=\"Yes\"),\"-\",\"Y\")))))","v":""},{"$f":"IF('Enrollment Form'!AH58=\"\",\"\",IF(ISERROR(SEARCH(\".\",'Enrollment Form'!AH58,SEARCH(\"@\",'Enrollment Form'!AH58))),\"N\",\"Y\"))","v":""},{"$f":"IF(OR($B51=\"N\",'Enrollment Form'!$G58=\"\"),\"\",IF('Enrollment Form'!$B58<>\"Subscriber\",\"-\",IF(COUNTIF('Enrollment Form'!$AS58:$AT58,\"Yes\")=2,\"N\",\"Y\")))","v":""},{"$f":"IF(OR('Enrollment Form'!$CC58=\"\",'Enrollment Form'!$CC58=\"No\"),\"-\",IF(AND('Enrollment Form'!$CC58=\"Yes\",'Enrollment Form'!$CD58=\"\"),\"N\",\"Y\"))","v":"-"},{"$f":"IF(OR('Enrollment Form'!$CE58=\"\",'Enrollment Form'!$CE58=\"No\"),\"-\",IF(AND('Enrollment Form'!$CE58=\"Yes\",'Enrollment Form'!$CF58=\"\"),\"N\",\"Y\"))","v":"-"},{"$f":"IF(OR('Enrollment Form'!$CG58=\"\",'Enrollment Form'!$CG58=\"No\"),\"-\",IF(AND('Enrollment Form'!$CG58=\"Yes\",'Enrollment Form'!$CH58=\"\"),\"N\",\"Y\"))","v":"-"},{"$f":"IF(OR('Enrollment Form'!$CG58=\"\",'Enrollment Form'!$CG58=\"No\"),\"-\",IF(AND('Enrollment Form'!$CG58=\"Yes\",'Enrollment Form'!$CI58=\"\"),\"N\",\"Y\"))","v":"-"},{"$f":"IF('Enrollment Form'!B58<>\"Subscriber\",\"-\",IF(AND('Enrollment Form'!B58=\"Subscriber\",'Enrollment Form'!C58=\"Enroll\",'Enrollment Form'!AA58=\"\"),\"N\",\"Y\"))","v":"-"},{"$f":"IF(OR('Enrollment Form'!B58=\"Subscriber\",'Enrollment Form'!B58=\"\"),\"-\",IF('Enrollment Form'!BI58=\"\",\"N\",\"Y\"))","v":"-"},{"$f":"IF('Enrollment Form'!B58<>\"Subscriber\",\"-\",IF(AND('Enrollment Form'!B58=\"Subscriber\",'Enrollment Form'!G58=\"\"),\"N\",\"Y\"))","v":"-"},{"$f":"IF('Enrollment Form'!A58=\"\",\"\",IF('Enrollment Form'!B58=\"Subscriber\",\"-\",IF(AND('Enrollment Form'!B58<>\"Subscriber\",'Enrollment Form'!G58='Enrollment Form'!H58),\"N\",\"Y\")))","v":""},0]
[59,{"$f":"IF('Enrollment Form'!$A59<>\"\",\"Y\",\"N\")","v":"N"},{"$f":"IF(AND('Enrollment Form'!$B59=\"\",'Enrollment Form'!$C59<>\"\"),\"N\",IF($B52=\"N\",\"\",\"Y\"))","v":""},{"$f":"IF(OR($B52=\"N\",'Enrollment Form'!G59=\"\"),\"\",IF('Enrollment Form'!$B59<>\"Subscriber\",\"\",IF('Enrollment Form'!$G59='Enrollment Form'!$H59,\"Y\",\"N\")))","v":""},{"$f":"IF($B52=\"N\",\"\",IF(AND(COUNTIFS('Enrollment Form'!$H$11:$H$1000,'Enrollment Form'!$H59,'Enrollment Form'!$B$11:$B$1000,'Enrollment Form'!$B59)>1,'Enrollment Form'!$H59<>\"\"),\"N\",\"Y\"))","v":""},{"$f":"IF($B52=\"N\",\"\",IF(LEN('Enrollment Form'!$Y59)=0,\"\",IF(LEN('Enrollment Form'!$Y59)<>5,\"N\",\"Y\")))","v":""},{"$f":"IF($B52=\"N\",\"\",IF(LEN('Enrollment Form'!$AD59=0),\"\",IF(LEN('Enrollment Form'!$AD59)<>5,\"N\",\"Y\")))","v":""},{"$f":"IF($B52=\"N\",\"\",IF(LEN('Enrollment Form'!$BL59=0),\"\",IF(LEN('Enrollment Form'!$BL59)<>5,\"N\",\"Y\")))","v":""},{"$f":"IF($B52=\"N\",\"\",IF(LEN('Enrollment Form'!$AE59)=0,\"\",IF(LEN('Enrollment Form'!$AE59)<>10,\"N\",\"Y\")))","v":""},{"$f":"IF($B52=\"N\",\"\",IF(LEN('Enrollment Form'!$AF59)=0,\"\",IF(LEN('Enrollment Form'!$AF59)<>10,\"N\",\"Y\")))","v":""},{"$f":"IF('Enrollment Form'!$O59<>\"Graded\",\"-\",IF(AND('Enrollment Form'!$O59=\"Graded\",'Enrollment Form'!$AO59<>\"\"),\"Y\",\"N\"))","v":"-"},{"$f":"IF($B52=\"N\",\"\",IF(OR('Enrollment Form'!$B59<>\"Subscriber\",'Enrollment Form'!$C59=\"ROC\"),\"-\",IF(AND('Enrollment Form'!$B59=\"Subscriber\",'Enrollment Form'!$C59=\"Enroll\",'Enrollment Form'!$AJ59<>\"\"),\"Y\",\"N\")))","v":""},{"$f":"IF($B52=\"N\",\"\",IF(OR('Enrollment Form'!$B59<>\"Subscriber\",'Enrollment Form'!$C59=\"ROC\"),\"-\",IF(AND('Enrollment Form'!$B59=\"Subscriber\",'Enrollment Form'!$C59=\"Enroll\",'Enrollment Form'!$AK59<>\"\"),\"Y\",\"N\")))","v":""},{"$f":"IF($B52=\"N\",\"\",IF(OR('Enrollment Form'!$B59<>\"Subscriber\",'Enrollment Form'!$C59=\"ROC\"),\"-\",IF(AND('Enrollment Form'!$B59=\"Subscriber\",'Enrollment Form'!$C59=\"Enroll\",'Enrollment Form'!$AL59<>\"\"),\"Y\",\"N\")))","v":""},{"$f":"IF($B52=\"N\",\"\",IF(OR('Enrollment Form'!$B59<>\"Subscriber\",'Enrollment Form'!$C59=\"ROC\"),\"-\",IF(AND('Enrollment Form'!$B59=\"Subscriber\",'Enrollment Form'!$C59=\"Enroll\",'Enrollment Form'!$AM59<>\"\"),\"Y\",\"N\")))","v":""},{"$f":"IF($B52=\"N\",\"\",IF(OR('Enrollment Form'!$B59<>\"Subscriber\",'Enrollment Form'!$C59=\"ROC\"),\"-\",IF(AND('Enrollment Form'!$B59=\"Subscriber\",'Enrollment Form'!$C59=\"Enroll\",'Enrollment Form'!$AN59<>\"\"),\"Y\",\"N\")))","v":""},{"$f":"IF($B52=\"N\",\"\",IF(OR('Enrollment Form'!$B59<>\"Subscriber\",'Enrollment Form'!$C59=\"ROC\"),\"-\",IF(AND('Enrollment Form'!$B59=\"Subscriber\",'Enrollment Form'!$C59=\"Enroll\",'Enrollment Form'!$AP59<>\"\"),\"Y\",\"N\")))","v":""},{"$f":"IF($B52=\"N\",\"\",IF($Q52=\"-\",\"-\",IF(AND($Q52=\"Y\",'Enrollment Form'!$AP59=\"No\"),\"-\",IF(AND($Q52=\"Y\",'Enrollment Form'!$AP59=\"Yes\",'Enrollment Form'!$AQ59<>\"\"),\"Y\",\"N\"))))","v":""},{"$f":"IF($B52=\"N\",\"\",IF(OR('Enrollment Form'!$B59<>\"Subscriber\",'Enrollment Form'!$C59=\"ROC\"),\"-\",IF(AND('Enrollment Form'!$B59=\"Subscriber\",'Enrollment Form'!$C59=\"Enroll\",'Enrollment Form'!$CO59<>\"\"),\"Y\",\"N\")))","v":""},{"$f":"IF($B52=\"N\",\"\",IF($S52=\"-\",\"-\",IF(AND($S52=\"Y\",'Enrollment Form'!$CO59=\"No\"),\"-\",IF(AND($S52=\"Y\",'Enrollment Form'!$CO59=\"Yes\",'Enrollment Form'!$CP59<>\"\"),\"Y\",\"N\"))))","v":""},{"$f":"IF(OR('Enrollment Form'!$AV59=\"Yes\",'Enrollment Form'!$AV59=\"\"),\"-\",IF(AND('Enrollment Form'!$AV59=\"No\",ISERROR(FIND(\"HMO\",VLOOKUP('Enrollment Form'!G59,'Enrollment Form'!H$11:J$1000,3,FALSE),1))=FALSE,COUNTA('Enrollment Form'!$AW59:$AZ59)=4),\"Y\",\"N\"))","v":"-"},{"$f":"IF($B52=\"N\",\"\",IF('Enrollment Form'!$B59=\"Subscriber\",\"-\",IF(COUNTA('Enrollment Form'!$BE59,'Enrollment Form'!$BG59)=2,\"Y\",\"N\")))","v":""},{"$f":"IF($B52=\"N\",\"\",IF(OR('Enrollment Form'!$AU59=\"\",'Enrollment Form'!$AU59=\"No\"),\"-\",IF(AND('Enrollment Form'!$AU59=\"Yes\",COUNTA('Enrollment Form'!$CK59)=1),\"Y\",\"N\")))","v":""},{"$f":"IF(OR('Enrollment Form'!$CK59=\"\",'Enrollment Form'!$CK59=\"No\"),\"-\",IF(COUNTA('Enrollment Form'!$CM59:$CN59)=2,\"Y\",\"N\"))","v":"-"},{"$f":"IF($B52=\"N\",\"\",IF(COUNTIF('Enrollment Form'!$CZ59:$DO59,\"Other\")=COUNTA('Enrollment Form'!$DF59,'Enrollment Form'!$DA59,'Enrollment Form'!$DK59,'Enrollment Form'!$DP59),\"Y\",\"N\"))","v":""},{"$f":"IF($B52=\"N\",\"\",IF(OR('Enrollment Form'!B59<>\"Subscriber\",'Enrollment Form'!C59=\"ROC\",COUNTIF('Enrollment Form'!AS59:AT59,\"Yes\")>=1),\"-\",IF(AND('Enrollment Form'!C59=\"Enroll\",COUNTIF('Enrollment Form'!AS59:AT59,\"No\")=2,'Enrollment Form'!AU59=\"\"),\"N\",\"Y\")))","v":""},{"$f":"IF(OR(B52=\"N\",'Enrollment Form'!B59<>\"Subscriber\",'Enrollment Form'!C59=\"ROC\",'Enrollment Form'!O59<>\"Multiple of Salary\"),\"-\",IF(COUNTA('Enrollment Form'!T59:U59)<2,\"N\",\"Y\"))","v":"-"},{"$f":"IF(B52=\"N\",\"\",IF(OR('Enrollment Form'!C59=\"ROC\",'Enrollment Form'!B59<>\"Subscriber\",'Enrollment Form'!O59=\"Waive\",'Enrollment Form'!O59=\"\"),\"-\",IF('Enrollment Form'!P59=\"\",\"N\",\"Y\")))","v":""},{"$f":"IF($B52=\"N\",\"\",IF(AND('Enrollment Form'!$C59=\"ROC\",'Enrollment Form'!$DS59<>\"\"),\"Y\",IF(AND('Enrollment Form'!$C59=\"ROC\",'Enrollment Form'!$DS59=\"\"),\"N\",IF(AND('Enrollment Form'!$C59=\"Enroll\",'Enrollment Form'!$B59=\"Subscriber\",'Enrollment Form'!$CQ59=\"No\",'Enrollment Form'!$DS59=\"\"),\"N\",IF(AND('Enrollment Form'!$C59=\"Enroll\",'Enrollment Form'!$B59=\"Subscriber\",'Enrollment Form'!$CQ59=\"Yes\"),\"-\",\"Y\")))))","v":""},{"$f":"IF($B52=\"N\",\"\",IF(AND('Enrollment Form'!$C59=\"ROC\",'Enrollment Form'!$DT59<>\"\"),\"Y\",IF(AND('Enrollment Form'!$C59=\"ROC\",'Enrollment Form'!$DT59=\"\"),\"N\",IF(AND('Enrollment Form'!$C59=\"Enroll\",'Enrollment Form'!$B59=\"Subscriber\",'Enrollment Form'!$CQ59=\"No\",'Enrollment Form'!$DT59=\"\"),\"N\",IF(AND('Enrollment Form'!$C59=\"Enroll\",'Enrollment Form'!$B59=\"Subscriber\",'Enrollment Form'!$CQ59=\"Yes\"),\"-\",\"Y\")))))","v":""},{"$f":"IF('Enrollment Form'!AH59=\"\",\"\",IF(ISERROR(SEARCH(\".\",'Enrollment Form'!AH59,SEARCH(\"@\",'Enrollment Form'!AH59))),\"N\",\"Y\"))","v":""},{"$f":"IF(OR($B52=\"N\",'Enrollment Form'!$G59=\"\"),\"\",IF('Enrollment Form'!$B59<>\"Subscriber\",\"-\",IF(COUNTIF('Enrollment Form'!$AS59:$AT59,\"Yes\")=2,\"N\",\"Y\")))","v":""},{"$f":"IF(OR('Enrollment Form'!$CC59=\"\",'Enrollment Form'!$CC59=\"No\"),\"-\",IF(AND('Enrollment Form'!$CC59=\"Yes\",'Enrollment Form'!$CD59=\"\"),\"N\",\"Y\"))","v":"-"},{"$f":"IF(OR('Enrollment Form'!$CE59=\"\",'Enrollment Form'!$CE59=\"No\"),\"-\",IF(AND('Enrollment Form'!$CE59=\"Yes\",'Enrollment Form'!$CF59=\"\"),\"N\",\"Y\"))","v":"-"},{"$f":"IF(OR('Enrollment Form'!$CG59=\"\",'Enrollment Form'!$CG59=\"No\"),\"-\",IF(AND('Enrollment Form'!$CG59=\"Yes\",'Enrollment Form'!$CH59=\"\"),\"N\",\"Y\"))","v":"-"},{"$f":"IF(OR('Enrollment Form'!$CG59=\"\",'Enrollment Form'!$CG59=\"No\"),\"-\",IF(AND('Enrollment Form'!$CG59=\"Yes\",'Enrollment Form'!$CI59=\"\"),\"N\",\"Y\"))","v":"-"},{"$f":"IF('Enrollment Form'!B59<>\"Subscriber\",\"-\",IF(AND('Enrollment Form'!B59=\"Subscriber\",'Enrollment Form'!C59=\"Enroll\",'Enrollment Form'!AA59=\"\"),\"N\",\"Y\"))","v":"-"},{"$f":"IF(OR('Enrollment Form'!B59=\"Subscriber\",'Enrollment Form'!B59=\"\"),\"-\",IF('Enrollment Form'!BI59=\"\",\"N\",\"Y\"))","v":"-"},{"$f":"IF('Enrollment Form'!B59<>\"Subscriber\",\"-\",IF(AND('Enrollment Form'!B59=\"Subscriber\",'Enrollment Form'!G59=\"\"),\"N\",\"Y\"))","v":"-"},{"$f":"IF('Enrollment Form'!A59=\"\",\"\",IF('Enrollment Form'!B59=\"Subscriber\",\"-\",IF(AND('Enrollment Form'!B59<>\"Subscriber\",'Enrollment Form'!G59='Enrollment Form'!H59),\"N\",\"Y\")))","v":""},0]
[60,{"$f":"IF('Enrollment Form'!$A60<>\"\",\"Y\",\"N\")","v":"N"},{"$f":"IF(AND('Enrollment Form'!$B60=\"\",'Enrollment Form'!$C60<>\"\"),\"N\",IF($B53=\"N\",\"\",\"Y\"))","v":""},{"$f":"IF(OR($B53=\"N\",'Enrollment Form'!G60=\"\"),\"\",IF('Enrollment Form'!$B60<>\"Subscriber\",\"\",IF('Enrollment Form'!$G60='Enrollment Form'!$H60,\"Y\",\"N\")))","v":""},{"$f":"IF($B53=\"N\",\"\",IF(AND(COUNTIFS('Enrollment Form'!$H$11:$H$1000,'Enrollment Form'!$H60,'Enrollment Form'!$B$11:$B$1000,'Enrollment Form'!$B60)>1,'Enrollment Form'!$H60<>\"\"),\"N\",\"Y\"))","v":""},{"$f":"IF($B53=\"N\",\"\",IF(LEN('Enrollment Form'!$Y60)=0,\"\",IF(LEN('Enrollment Form'!$Y60)<>5,\"N\",\"Y\")))","v":""},{"$f":"IF($B53=\"N\",\"\",IF(LEN('Enrollment Form'!$AD60=0),\"\",IF(LEN('Enrollment Form'!$AD60)<>5,\"N\",\"Y\")))","v":""},{"$f":"IF($B53=\"N\",\"\",IF(LEN('Enrollment Form'!$BL60=0),\"\",IF(LEN('Enrollment Form'!$BL60)<>5,\"N\",\"Y\")))","v":""},{"$f":"IF($B53=\"N\",\"\",IF(LEN('Enrollment Form'!$AE60)=0,\"\",IF(LEN('Enrollment Form'!$AE60)<>10,\"N\",\"Y\")))","v":""},{"$f":"IF($B53=\"N\",\"\",IF(LEN('Enrollment Form'!$AF60)=0,\"\",IF(LEN('Enrollment Form'!$AF60)<>10,\"N\",\"Y\")))","v":""},{"$f":"IF('Enrollment Form'!$O60<>\"Graded\",\"-\",IF(AND('Enrollment Form'!$O60=\"Graded\",'Enrollment Form'!$AO60<>\"\"),\"Y\",\"N\"))","v":"-"},{"$f":"IF($B53=\"N\",\"\",IF(OR('Enrollment Form'!$B60<>\"Subscriber\",'Enrollment Form'!$C60=\"ROC\"),\"-\",IF(AND('Enrollment Form'!$B60=\"Subscriber\",'Enrollment Form'!$C60=\"Enroll\",'Enrollment Form'!$AJ60<>\"\"),\"Y\",\"N\")))","v":""},{"$f":"IF($B53=\"N\",\"\",IF(OR('Enrollment Form'!$B60<>\"Subscriber\",'Enrollment Form'!$C60=\"ROC\"),\"-\",IF(AND('Enrollment Form'!$B60=\"Subscriber\",'Enrollment Form'!$C60=\"Enroll\",'Enrollment Form'!$AK60<>\"\"),\"Y\",\"N\")))","v":""},{"$f":"IF($B53=\"N\",\"\",IF(OR('Enrollment Form'!$B60<>\"Subscriber\",'Enrollment Form'!$C60=\"ROC\"),\"-\",IF(AND('Enrollment Form'!$B60=\"Subscriber\",'Enrollment Form'!$C60=\"Enroll\",'Enrollment Form'!$AL60<>\"\"),\"Y\",\"N\")))","v":""},{"$f":"IF($B53=\"N\",\"\",IF(OR('Enrollment Form'!$B60<>\"Subscriber\",'Enrollment Form'!$C60=\"ROC\"),\"-\",IF(AND('Enrollment Form'!$B60=\"Subscriber\",'Enrollment Form'!$C60=\"Enroll\",'Enrollment Form'!$AM60<>\"\"),\"Y\",\"N\")))","v":""},{"$f":"IF($B53=\"N\",\"\",IF(OR('Enrollment Form'!$B60<>\"Subscriber\",'Enrollment Form'!$C60=\"ROC\"),\"-\",IF(AND('Enrollment Form'!$B60=\"Subscriber\",'Enrollment Form'!$C60=\"Enroll\",'Enrollment Form'!$AN60<>\"\"),\"Y\",\"N\")))","v":""},{"$f":"IF($B53=\"N\",\"\",IF(OR('Enrollment Form'!$B60<>\"Subscriber\",'Enrollment Form'!$C60=\"ROC\"),\"-\",IF(AND('Enrollment Form'!$B60=\"Subscriber\",'Enrollment Form'!$C60=\"Enroll\",'Enrollment Form'!$AP60<>\"\"),\"Y\",\"N\")))","v":""},{"$f":"IF($B53=\"N\",\"\",IF($Q53=\"-\",\"-\",IF(AND($Q53=\"Y\",'Enrollment Form'!$AP60=\"No\"),\"-\",IF(AND($Q53=\"Y\",'Enrollment Form'!$AP60=\"Yes\",'Enrollment Form'!$AQ60<>\"\"),\"Y\",\"N\"))))","v":""},{"$f":"IF($B53=\"N\",\"\",IF(OR('Enrollment Form'!$B60<>\"Subscriber\",'Enrollment Form'!$C60=\"ROC\"),\"-\",IF(AND('Enrollment Form'!$B60=\"Subscriber\",'Enrollment Form'!$C60=\"Enroll\",'Enrollment Form'!$CO60<>\"\"),\"Y\",\"N\")))","v":""},{"$f":"IF($B53=\"N\",\"\",IF($S53=\"-\",\"-\",IF(AND($S53=\"Y\",'Enrollment Form'!$CO60=\"No\"),\"-\",IF(AND($S53=\"Y\",'Enrollment Form'!$CO60=\"Yes\",'Enrollment Form'!$CP60<>\"\"),\"Y\",\"N\"))))","v":""},{"$f":"IF(OR('Enrollment Form'!$AV60=\"Yes\",'Enrollment Form'!$AV60=\"\"),\"-\",IF(AND('Enrollment Form'!$AV60=\"No\",ISERROR(FIND(\"HMO\",VLOOKUP('Enrollment Form'!G60,'Enrollment Form'!H$11:J$1000,3,FALSE),1))=FALSE,COUNTA('Enrollment Form'!$AW60:$AZ60)=4),\"Y\",\"N\"))","v":"-"},{"$f":"IF($B53=\"N\",\"\",IF('Enrollment Form'!$B60=\"Subscriber\",\"-\",IF(COUNTA('Enrollment Form'!$BE60,'Enrollment Form'!$BG60)=2,\"Y\",\"N\")))","v":""},{"$f":"IF($B53=\"N\",\"\",IF(OR('Enrollment Form'!$AU60=\"\",'Enrollment Form'!$AU60=\"No\"),\"-\",IF(AND('Enrollment Form'!$AU60=\"Yes\",COUNTA('Enrollment Form'!$CK60)=1),\"Y\",\"N\")))","v":""},{"$f":"IF(OR('Enrollment Form'!$CK60=\"\",'Enrollment Form'!$CK60=\"No\"),\"-\",IF(COUNTA('Enrollment Form'!$CM60:$CN60)=2,\"Y\",\"N\"))","v":"-"},{"$f":"IF($B53=\"N\",\"\",IF(COUNTIF('Enrollment Form'!$CZ60:$DO60,\"Other\")=COUNTA('Enrollment Form'!$DF60,'Enrollment Form'!$DA60,'Enrollment Form'!$DK60,'Enrollment Form'!$DP60),\"Y\",\"N\"))","v":""},{"$f":"IF($B53=\"N\",\"\",IF(OR('Enrollment Form'!B60<>\"Subscriber\",'Enrollment Form'!C60=\"ROC\",COUNTIF('Enrollment Form'!AS60:AT60,\"Yes\")>=1),\"-\",IF(AND('Enrollment Form'!C60=\"Enroll\",COUNTIF('Enrollment Form'!AS60:AT60,\"No\")=2,'Enrollment Form'!AU60=\"\"),\"N\",\"Y\")))","v":""},{"$f":"IF(OR(B53=\"N\",'Enrollment Form'!B60<>\"Subscriber\",'Enrollment Form'!C60=\"ROC\",'Enrollment Form'!O60<>\"Multiple of Salary\"),\"-\",IF(COUNTA('Enrollment Form'!T60:U60)<2,\"N\",\"Y\"))","v":"-"},{"$f":"IF(B53=\"N\",\"\",IF(OR('Enrollment Form'!C60=\"ROC\",'Enrollment Form'!B60<>\"Subscriber\",'Enrollment Form'!O60=\"Waive\",'Enrollment Form'!O60=\"\"),\"-\",IF('Enrollment Form'!P60=\"\",\"N\",\"Y\")))","v":""},{"$f":"IF($B53=\"N\",\"\",IF(AND('Enrollment Form'!$C60=\"ROC\",'Enrollment Form'!$DS60<>\"\"),\"Y\",IF(AND('Enrollment Form'!$C60=\"ROC\",'Enrollment Form'!$DS60=\"\"),\"N\",IF(AND('Enrollment Form'!$C60=\"Enroll\",'Enrollment Form'!$B60=\"Subscriber\",'Enrollment Form'!$CQ60=\"No\",'Enrollment Form'!$DS60=\"\"),\"N\",IF(AND('Enrollment Form'!$C60=\"Enroll\",'Enrollment Form'!$B60=\"Subscriber\",'Enrollment Form'!$CQ60=\"Yes\"),\"-\",\"Y\")))))","v":""},{"$f":"IF($B53=\"N\",\"\",IF(AND('Enrollment Form'!$C60=\"ROC\",'Enrollment Form'!$DT60<>\"\"),\"Y\",IF(AND('Enrollment Form'!$C60=\"ROC\",'Enrollment Form'!$DT60=\"\"),\"N\",IF(AND('Enrollment Form'!$C60=\"Enroll\",'Enrollment Form'!$B60=\"Subscriber\",'Enrollment Form'!$CQ60=\"No\",'Enrollment Form'!$DT60=\"\"),\"N\",IF(AND('Enrollment Form'!$C60=\"Enroll\",'Enrollment Form'!$B60=\"Subscriber\",'Enrollment Form'!$CQ60=\"Yes\"),\"-\",\"Y\")))))","v":""},{"$f":"IF('Enrollment Form'!AH60=\"\",\"\",IF(ISERROR(SEARCH(\".\",'Enrollment Form'!AH60,SEARCH(\"@\",'Enrollment Form'!AH60))),\"N\",\"Y\"))","v":""},{"$f":"IF(OR($B53=\"N\",'Enrollment Form'!$G60=\"\"),\"\",IF('Enrollment Form'!$B60<>\"Subscriber\",\"-\",IF(COUNTIF('Enrollment Form'!$AS60:$AT60,\"Yes\")=2,\"N\",\"Y\")))","v":""},{"$f":"IF(OR('Enrollment Form'!$CC60=\"\",'Enrollment Form'!$CC60=\"No\"),\"-\",IF(AND('Enrollment Form'!$CC60=\"Yes\",'Enrollment Form'!$CD60=\"\"),\"N\",\"Y\"))","v":"-"},{"$f":"IF(OR('Enrollment Form'!$CE60=\"\",'Enrollment Form'!$CE60=\"No\"),\"-\",IF(AND('Enrollment Form'!$CE60=\"Yes\",'Enrollment Form'!$CF60=\"\"),\"N\",\"Y\"))","v":"-"},{"$f":"IF(OR('Enrollment Form'!$CG60=\"\",'Enrollment Form'!$CG60=\"No\"),\"-\",IF(AND('Enrollment Form'!$CG60=\"Yes\",'Enrollment Form'!$CH60=\"\"),\"N\",\"Y\"))","v":"-"},{"$f":"IF(OR('Enrollment Form'!$CG60=\"\",'Enrollment Form'!$CG60=\"No\"),\"-\",IF(AND('Enrollment Form'!$CG60=\"Yes\",'Enrollment Form'!$CI60=\"\"),\"N\",\"Y\"))","v":"-"},{"$f":"IF('Enrollment Form'!B60<>\"Subscriber\",\"-\",IF(AND('Enrollment Form'!B60=\"Subscriber\",'Enrollment Form'!C60=\"Enroll\",'Enrollment Form'!AA60=\"\"),\"N\",\"Y\"))","v":"-"},{"$f":"IF(OR('Enrollment Form'!B60=\"Subscriber\",'Enrollment Form'!B60=\"\"),\"-\",IF('Enrollment Form'!BI60=\"\",\"N\",\"Y\"))","v":"-"},{"$f":"IF('Enrollment Form'!B60<>\"Subscriber\",\"-\",IF(AND('Enrollment Form'!B60=\"Subscriber\",'Enrollment Form'!G60=\"\"),\"N\",\"Y\"))","v":"-"},{"$f":"IF('Enrollment Form'!A60=\"\",\"\",IF('Enrollment Form'!B60=\"Subscriber\",\"-\",IF(AND('Enrollment Form'!B60<>\"Subscriber\",'Enrollment Form'!G60='Enrollment Form'!H60),\"N\",\"Y\")))","v":""},0]
[61,{"$f":"IF('Enrollment Form'!$A61<>\"\",\"Y\",\"N\")","v":"N"},{"$f":"IF(AND('Enrollment Form'!$B61=\"\",'Enrollment Form'!$C61<>\"\"),\"N\",IF($B54=\"N\",\"\",\"Y\"))","v":""},{"$f":"IF(OR($B54=\"N\",'Enrollment Form'!G61=\"\"),\"\",IF('Enrollment Form'!$B61<>\"Subscriber\",\"\",IF('Enrollment Form'!$G61='Enrollment Form'!$H61,\"Y\",\"N\")))","v":""},{"$f":"IF($B54=\"N\",\"\",IF(AND(COUNTIFS('Enrollment Form'!$H$11:$H$1000,'Enrollment Form'!$H61,'Enrollment Form'!$B$11:$B$1000,'Enrollment Form'!$B61)>1,'Enrollment Form'!$H61<>\"\"),\"N\",\"Y\"))","v":""},{"$f":"IF($B54=\"N\",\"\",IF(LEN('Enrollment Form'!$Y61)=0,\"\",IF(LEN('Enrollment Form'!$Y61)<>5,\"N\",\"Y\")))","v":""},{"$f":"IF($B54=\"N\",\"\",IF(LEN('Enrollment Form'!$AD61=0),\"\",IF(LEN('Enrollment Form'!$AD61)<>5,\"N\",\"Y\")))","v":""},{"$f":"IF($B54=\"N\",\"\",IF(LEN('Enrollment Form'!$BL61=0),\"\",IF(LEN('Enrollment Form'!$BL61)<>5,\"N\",\"Y\")))","v":""},{"$f":"IF($B54=\"N\",\"\",IF(LEN('Enrollment Form'!$AE61)=0,\"\",IF(LEN('Enrollment Form'!$AE61)<>10,\"N\",\"Y\")))","v":""},{"$f":"IF($B54=\"N\",\"\",IF(LEN('Enrollment Form'!$AF61)=0,\"\",IF(LEN('Enrollment Form'!$AF61)<>10,\"N\",\"Y\")))","v":""},{"$f":"IF('Enrollment Form'!$O61<>\"Graded\",\"-\",IF(AND('Enrollment Form'!$O61=\"Graded\",'Enrollment Form'!$AO61<>\"\"),\"Y\",\"N\"))","v":"-"},{"$f":"IF($B54=\"N\",\"\",IF(OR('Enrollment Form'!$B61<>\"Subscriber\",'Enrollment Form'!$C61=\"ROC\"),\"-\",IF(AND('Enrollment Form'!$B61=\"Subscriber\",'Enrollment Form'!$C61=\"Enroll\",'Enrollment Form'!$AJ61<>\"\"),\"Y\",\"N\")))","v":""},{"$f":"IF($B54=\"N\",\"\",IF(OR('Enrollment Form'!$B61<>\"Subscriber\",'Enrollment Form'!$C61=\"ROC\"),\"-\",IF(AND('Enrollment Form'!$B61=\"Subscriber\",'Enrollment Form'!$C61=\"Enroll\",'Enrollment Form'!$AK61<>\"\"),\"Y\",\"N\")))","v":""},{"$f":"IF($B54=\"N\",\"\",IF(OR('Enrollment Form'!$B61<>\"Subscriber\",'Enrollment Form'!$C61=\"ROC\"),\"-\",IF(AND('Enrollment Form'!$B61=\"Subscriber\",'Enrollment Form'!$C61=\"Enroll\",'Enrollment Form'!$AL61<>\"\"),\"Y\",\"N\")))","v":""},{"$f":"IF($B54=\"N\",\"\",IF(OR('Enrollment Form'!$B61<>\"Subscriber\",'Enrollment Form'!$C61=\"ROC\"),\"-\",IF(AND('Enrollment Form'!$B61=\"Subscriber\",'Enrollment Form'!$C61=\"Enroll\",'Enrollment Form'!$AM61<>\"\"),\"Y\",\"N\")))","v":""},{"$f":"IF($B54=\"N\",\"\",IF(OR('Enrollment Form'!$B61<>\"Subscriber\",'Enrollment Form'!$C61=\"ROC\"),\"-\",IF(AND('Enrollment Form'!$B61=\"Subscriber\",'Enrollment Form'!$C61=\"Enroll\",'Enrollment Form'!$AN61<>\"\"),\"Y\",\"N\")))","v":""},{"$f":"IF($B54=\"N\",\"\",IF(OR('Enrollment Form'!$B61<>\"Subscriber\",'Enrollment Form'!$C61=\"ROC\"),\"-\",IF(AND('Enrollment Form'!$B61=\"Subscriber\",'Enrollment Form'!$C61=\"Enroll\",'Enrollment Form'!$AP61<>\"\"),\"Y\",\"N\")))","v":""},{"$f":"IF($B54=\"N\",\"\",IF($Q54=\"-\",\"-\",IF(AND($Q54=\"Y\",'Enrollment Form'!$AP61=\"No\"),\"-\",IF(AND($Q54=\"Y\",'Enrollment Form'!$AP61=\"Yes\",'Enrollment Form'!$AQ61<>\"\"),\"Y\",\"N\"))))","v":""},{"$f":"IF($B54=\"N\",\"\",IF(OR('Enrollment Form'!$B61<>\"Subscriber\",'Enrollment Form'!$C61=\"ROC\"),\"-\",IF(AND('Enrollment Form'!$B61=\"Subscriber\",'Enrollment Form'!$C61=\"Enroll\",'Enrollment Form'!$CO61<>\"\"),\"Y\",\"N\")))","v":""},{"$f":"IF($B54=\"N\",\"\",IF($S54=\"-\",\"-\",IF(AND($S54=\"Y\",'Enrollment Form'!$CO61=\"No\"),\"-\",IF(AND($S54=\"Y\",'Enrollment Form'!$CO61=\"Yes\",'Enrollment Form'!$CP61<>\"\"),\"Y\",\"N\"))))","v":""},{"$f":"IF(OR('Enrollment Form'!$AV61=\"Yes\",'Enrollment Form'!$AV61=\"\"),\"-\",IF(AND('Enrollment Form'!$AV61=\"No\",ISERROR(FIND(\"HMO\",VLOOKUP('Enrollment Form'!G61,'Enrollment Form'!H$11:J$1000,3,FALSE),1))=FALSE,COUNTA('Enrollment Form'!$AW61:$AZ61)=4),\"Y\",\"N\"))","v":"-"},{"$f":"IF($B54=\"N\",\"\",IF('Enrollment Form'!$B61=\"Subscriber\",\"-\",IF(COUNTA('Enrollment Form'!$BE61,'Enrollment Form'!$BG61)=2,\"Y\",\"N\")))","v":""},{"$f":"IF($B54=\"N\",\"\",IF(OR('Enrollment Form'!$AU61=\"\",'Enrollment Form'!$AU61=\"No\"),\"-\",IF(AND('Enrollment Form'!$AU61=\"Yes\",COUNTA('Enrollment Form'!$CK61)=1),\"Y\",\"N\")))","v":""},{"$f":"IF(OR('Enrollment Form'!$CK61=\"\",'Enrollment Form'!$CK61=\"No\"),\"-\",IF(COUNTA('Enrollment Form'!$CM61:$CN61)=2,\"Y\",\"N\"))","v":"-"},{"$f":"IF($B54=\"N\",\"\",IF(COUNTIF('Enrollment Form'!$CZ61:$DO61,\"Other\")=COUNTA('Enrollment Form'!$DF61,'Enrollment Form'!$DA61,'Enrollment Form'!$DK61,'Enrollment Form'!$DP61),\"Y\",\"N\"))","v":""},{"$f":"IF($B54=\"N\",\"\",IF(OR('Enrollment Form'!B61<>\"Subscriber\",'Enrollment Form'!C61=\"ROC\",COUNTIF('Enrollment Form'!AS61:AT61,\"Yes\")>=1),\"-\",IF(AND('Enrollment Form'!C61=\"Enroll\",COUNTIF('Enrollment Form'!AS61:AT61,\"No\")=2,'Enrollment Form'!AU61=\"\"),\"N\",\"Y\")))","v":""},{"$f":"IF(OR(B54=\"N\",'Enrollment Form'!B61<>\"Subscriber\",'Enrollment Form'!C61=\"ROC\",'Enrollment Form'!O61<>\"Multiple of Salary\"),\"-\",IF(COUNTA('Enrollment Form'!T61:U61)<2,\"N\",\"Y\"))","v":"-"},{"$f":"IF(B54=\"N\",\"\",IF(OR('Enrollment Form'!C61=\"ROC\",'Enrollment Form'!B61<>\"Subscriber\",'Enrollment Form'!O61=\"Waive\",'Enrollment Form'!O61=\"\"),\"-\",IF('Enrollment Form'!P61=\"\",\"N\",\"Y\")))","v":""},{"$f":"IF($B54=\"N\",\"\",IF(AND('Enrollment Form'!$C61=\"ROC\",'Enrollment Form'!$DS61<>\"\"),\"Y\",IF(AND('Enrollment Form'!$C61=\"ROC\",'Enrollment Form'!$DS61=\"\"),\"N\",IF(AND('Enrollment Form'!$C61=\"Enroll\",'Enrollment Form'!$B61=\"Subscriber\",'Enrollment Form'!$CQ61=\"No\",'Enrollment Form'!$DS61=\"\"),\"N\",IF(AND('Enrollment Form'!$C61=\"Enroll\",'Enrollment Form'!$B61=\"Subscriber\",'Enrollment Form'!$CQ61=\"Yes\"),\"-\",\"Y\")))))","v":""},{"$f":"IF($B54=\"N\",\"\",IF(AND('Enrollment Form'!$C61=\"ROC\",'Enrollment Form'!$DT61<>\"\"),\"Y\",IF(AND('Enrollment Form'!$C61=\"ROC\",'Enrollment Form'!$DT61=\"\"),\"N\",IF(AND('Enrollment Form'!$C61=\"Enroll\",'Enrollment Form'!$B61=\"Subscriber\",'Enrollment Form'!$CQ61=\"No\",'Enrollment Form'!$DT61=\"\"),\"N\",IF(AND('Enrollment Form'!$C61=\"Enroll\",'Enrollment Form'!$B61=\"Subscriber\",'Enrollment Form'!$CQ61=\"Yes\"),\"-\",\"Y\")))))","v":""},{"$f":"IF('Enrollment Form'!AH61=\"\",\"\",IF(ISERROR(SEARCH(\".\",'Enrollment Form'!AH61,SEARCH(\"@\",'Enrollment Form'!AH61))),\"N\",\"Y\"))","v":""},{"$f":"IF(OR($B54=\"N\",'Enrollment Form'!$G61=\"\"),\"\",IF('Enrollment Form'!$B61<>\"Subscriber\",\"-\",IF(COUNTIF('Enrollment Form'!$AS61:$AT61,\"Yes\")=2,\"N\",\"Y\")))","v":""},{"$f":"IF(OR('Enrollment Form'!$CC61=\"\",'Enrollment Form'!$CC61=\"No\"),\"-\",IF(AND('Enrollment Form'!$CC61=\"Yes\",'Enrollment Form'!$CD61=\"\"),\"N\",\"Y\"))","v":"-"},{"$f":"IF(OR('Enrollment Form'!$CE61=\"\",'Enrollment Form'!$CE61=\"No\"),\"-\",IF(AND('Enrollment Form'!$CE61=\"Yes\",'Enrollment Form'!$CF61=\"\"),\"N\",\"Y\"))","v":"-"},{"$f":"IF(OR('Enrollment Form'!$CG61=\"\",'Enrollment Form'!$CG61=\"No\"),\"-\",IF(AND('Enrollment Form'!$CG61=\"Yes\",'Enrollment Form'!$CH61=\"\"),\"N\",\"Y\"))","v":"-"},{"$f":"IF(OR('Enrollment Form'!$CG61=\"\",'Enrollment Form'!$CG61=\"No\"),\"-\",IF(AND('Enrollment Form'!$CG61=\"Yes\",'Enrollment Form'!$CI61=\"\"),\"N\",\"Y\"))","v":"-"},{"$f":"IF('Enrollment Form'!B61<>\"Subscriber\",\"-\",IF(AND('Enrollment Form'!B61=\"Subscriber\",'Enrollment Form'!C61=\"Enroll\",'Enrollment Form'!AA61=\"\"),\"N\",\"Y\"))","v":"-"},{"$f":"IF(OR('Enrollment Form'!B61=\"Subscriber\",'Enrollment Form'!B61=\"\"),\"-\",IF('Enrollment Form'!BI61=\"\",\"N\",\"Y\"))","v":"-"},{"$f":"IF('Enrollment Form'!B61<>\"Subscriber\",\"-\",IF(AND('Enrollment Form'!B61=\"Subscriber\",'Enrollment Form'!G61=\"\"),\"N\",\"Y\"))","v":"-"},{"$f":"IF('Enrollment Form'!A61=\"\",\"\",IF('Enrollment Form'!B61=\"Subscriber\",\"-\",IF(AND('Enrollment Form'!B61<>\"Subscriber\",'Enrollment Form'!G61='Enrollment Form'!H61),\"N\",\"Y\")))","v":""},0]
[62,{"$f":"IF('Enrollment Form'!$A62<>\"\",\"Y\",\"N\")","v":"N"},{"$f":"IF(AND('Enrollment Form'!$B62=\"\",'Enrollment Form'!$C62<>\"\"),\"N\",IF($B55=\"N\",\"\",\"Y\"))","v":""},{"$f":"IF(OR($B55=\"N\",'Enrollment Form'!G62=\"\"),\"\",IF('Enrollment Form'!$B62<>\"Subscriber\",\"\",IF('Enrollment Form'!$G62='Enrollment Form'!$H62,\"Y\",\"N\")))","v":""},{"$f":"IF($B55=\"N\",\"\",IF(AND(COUNTIFS('Enrollment Form'!$H$11:$H$1000,'Enrollment Form'!$H62,'Enrollment Form'!$B$11:$B$1000,'Enrollment Form'!$B62)>1,'Enrollment Form'!$H62<>\"\"),\"N\",\"Y\"))","v":""},{"$f":"IF($B55=\"N\",\"\",IF(LEN('Enrollment Form'!$Y62)=0,\"\",IF(LEN('Enrollment Form'!$Y62)<>5,\"N\",\"Y\")))","v":""},{"$f":"IF($B55=\"N\",\"\",IF(LEN('Enrollment Form'!$AD62=0),\"\",IF(LEN('Enrollment Form'!$AD62)<>5,\"N\",\"Y\")))","v":""},{"$f":"IF($B55=\"N\",\"\",IF(LEN('Enrollment Form'!$BL62=0),\"\",IF(LEN('Enrollment Form'!$BL62)<>5,\"N\",\"Y\")))","v":""},{"$f":"IF($B55=\"N\",\"\",IF(LEN('Enrollment Form'!$AE62)=0,\"\",IF(LEN('Enrollment Form'!$AE62)<>10,\"N\",\"Y\")))","v":""},{"$f":"IF($B55=\"N\",\"\",IF(LEN('Enrollment Form'!$AF62)=0,\"\",IF(LEN('Enrollment Form'!$AF62)<>10,\"N\",\"Y\")))","v":""},{"$f":"IF('Enrollment Form'!$O62<>\"Graded\",\"-\",IF(AND('Enrollment Form'!$O62=\"Graded\",'Enrollment Form'!$AO62<>\"\"),\"Y\",\"N\"))","v":"-"},{"$f":"IF($B55=\"N\",\"\",IF(OR('Enrollment Form'!$B62<>\"Subscriber\",'Enrollment Form'!$C62=\"ROC\"),\"-\",IF(AND('Enrollment Form'!$B62=\"Subscriber\",'Enrollment Form'!$C62=\"Enroll\",'Enrollment Form'!$AJ62<>\"\"),\"Y\",\"N\")))","v":""},{"$f":"IF($B55=\"N\",\"\",IF(OR('Enrollment Form'!$B62<>\"Subscriber\",'Enrollment Form'!$C62=\"ROC\"),\"-\",IF(AND('Enrollment Form'!$B62=\"Subscriber\",'Enrollment Form'!$C62=\"Enroll\",'Enrollment Form'!$AK62<>\"\"),\"Y\",\"N\")))","v":""},{"$f":"IF($B55=\"N\",\"\",IF(OR('Enrollment Form'!$B62<>\"Subscriber\",'Enrollment Form'!$C62=\"ROC\"),\"-\",IF(AND('Enrollment Form'!$B62=\"Subscriber\",'Enrollment Form'!$C62=\"Enroll\",'Enrollment Form'!$AL62<>\"\"),\"Y\",\"N\")))","v":""},{"$f":"IF($B55=\"N\",\"\",IF(OR('Enrollment Form'!$B62<>\"Subscriber\",'Enrollment Form'!$C62=\"ROC\"),\"-\",IF(AND('Enrollment Form'!$B62=\"Subscriber\",'Enrollment Form'!$C62=\"Enroll\",'Enrollment Form'!$AM62<>\"\"),\"Y\",\"N\")))","v":""},{"$f":"IF($B55=\"N\",\"\",IF(OR('Enrollment Form'!$B62<>\"Subscriber\",'Enrollment Form'!$C62=\"ROC\"),\"-\",IF(AND('Enrollment Form'!$B62=\"Subscriber\",'Enrollment Form'!$C62=\"Enroll\",'Enrollment Form'!$AN62<>\"\"),\"Y\",\"N\")))","v":""},{"$f":"IF($B55=\"N\",\"\",IF(OR('Enrollment Form'!$B62<>\"Subscriber\",'Enrollment Form'!$C62=\"ROC\"),\"-\",IF(AND('Enrollment Form'!$B62=\"Subscriber\",'Enrollment Form'!$C62=\"Enroll\",'Enrollment Form'!$AP62<>\"\"),\"Y\",\"N\")))","v":""},{"$f":"IF($B55=\"N\",\"\",IF($Q55=\"-\",\"-\",IF(AND($Q55=\"Y\",'Enrollment Form'!$AP62=\"No\"),\"-\",IF(AND($Q55=\"Y\",'Enrollment Form'!$AP62=\"Yes\",'Enrollment Form'!$AQ62<>\"\"),\"Y\",\"N\"))))","v":""},{"$f":"IF($B55=\"N\",\"\",IF(OR('Enrollment Form'!$B62<>\"Subscriber\",'Enrollment Form'!$C62=\"ROC\"),\"-\",IF(AND('Enrollment Form'!$B62=\"Subscriber\",'Enrollment Form'!$C62=\"Enroll\",'Enrollment Form'!$CO62<>\"\"),\"Y\",\"N\")))","v":""},{"$f":"IF($B55=\"N\",\"\",IF($S55=\"-\",\"-\",IF(AND($S55=\"Y\",'Enrollment Form'!$CO62=\"No\"),\"-\",IF(AND($S55=\"Y\",'Enrollment Form'!$CO62=\"Yes\",'Enrollment Form'!$CP62<>\"\"),\"Y\",\"N\"))))","v":""},{"$f":"IF(OR('Enrollment Form'!$AV62=\"Yes\",'Enrollment Form'!$AV62=\"\"),\"-\",IF(AND('Enrollment Form'!$AV62=\"No\",ISERROR(FIND(\"HMO\",VLOOKUP('Enrollment Form'!G62,'Enrollment Form'!H$11:J$1000,3,FALSE),1))=FALSE,COUNTA('Enrollment Form'!$AW62:$AZ62)=4),\"Y\",\"N\"))","v":"-"},{"$f":"IF($B55=\"N\",\"\",IF('Enrollment Form'!$B62=\"Subscriber\",\"-\",IF(COUNTA('Enrollment Form'!$BE62,'Enrollment Form'!$BG62)=2,\"Y\",\"N\")))","v":""},{"$f":"IF($B55=\"N\",\"\",IF(OR('Enrollment Form'!$AU62=\"\",'Enrollment Form'!$AU62=\"No\"),\"-\",IF(AND('Enrollment Form'!$AU62=\"Yes\",COUNTA('Enrollment Form'!$CK62)=1),\"Y\",\"N\")))","v":""},{"$f":"IF(OR('Enrollment Form'!$CK62=\"\",'Enrollment Form'!$CK62=\"No\"),\"-\",IF(COUNTA('Enrollment Form'!$CM62:$CN62)=2,\"Y\",\"N\"))","v":"-"},{"$f":"IF($B55=\"N\",\"\",IF(COUNTIF('Enrollment Form'!$CZ62:$DO62,\"Other\")=COUNTA('Enrollment Form'!$DF62,'Enrollment Form'!$DA62,'Enrollment Form'!$DK62,'Enrollment Form'!$DP62),\"Y\",\"N\"))","v":""},{"$f":"IF($B55=\"N\",\"\",IF(OR('Enrollment Form'!B62<>\"Subscriber\",'Enrollment Form'!C62=\"ROC\",COUNTIF('Enrollment Form'!AS62:AT62,\"Yes\")>=1),\"-\",IF(AND('Enrollment Form'!C62=\"Enroll\",COUNTIF('Enrollment Form'!AS62:AT62,\"No\")=2,'Enrollment Form'!AU62=\"\"),\"N\",\"Y\")))","v":""},{"$f":"IF(OR(B55=\"N\",'Enrollment Form'!B62<>\"Subscriber\",'Enrollment Form'!C62=\"ROC\",'Enrollment Form'!O62<>\"Multiple of Salary\"),\"-\",IF(COUNTA('Enrollment Form'!T62:U62)<2,\"N\",\"Y\"))","v":"-"},{"$f":"IF(B55=\"N\",\"\",IF(OR('Enrollment Form'!C62=\"ROC\",'Enrollment Form'!B62<>\"Subscriber\",'Enrollment Form'!O62=\"Waive\",'Enrollment Form'!O62=\"\"),\"-\",IF('Enrollment Form'!P62=\"\",\"N\",\"Y\")))","v":""},{"$f":"IF($B55=\"N\",\"\",IF(AND('Enrollment Form'!$C62=\"ROC\",'Enrollment Form'!$DS62<>\"\"),\"Y\",IF(AND('Enrollment Form'!$C62=\"ROC\",'Enrollment Form'!$DS62=\"\"),\"N\",IF(AND('Enrollment Form'!$C62=\"Enroll\",'Enrollment Form'!$B62=\"Subscriber\",'Enrollment Form'!$CQ62=\"No\",'Enrollment Form'!$DS62=\"\"),\"N\",IF(AND('Enrollment Form'!$C62=\"Enroll\",'Enrollment Form'!$B62=\"Subscriber\",'Enrollment Form'!$CQ62=\"Yes\"),\"-\",\"Y\")))))","v":""},{"$f":"IF($B55=\"N\",\"\",IF(AND('Enrollment Form'!$C62=\"ROC\",'Enrollment Form'!$DT62<>\"\"),\"Y\",IF(AND('Enrollment Form'!$C62=\"ROC\",'Enrollment Form'!$DT62=\"\"),\"N\",IF(AND('Enrollment Form'!$C62=\"Enroll\",'Enrollment Form'!$B62=\"Subscriber\",'Enrollment Form'!$CQ62=\"No\",'Enrollment Form'!$DT62=\"\"),\"N\",IF(AND('Enrollment Form'!$C62=\"Enroll\",'Enrollment Form'!$B62=\"Subscriber\",'Enrollment Form'!$CQ62=\"Yes\"),\"-\",\"Y\")))))","v":""},{"$f":"IF('Enrollment Form'!AH62=\"\",\"\",IF(ISERROR(SEARCH(\".\",'Enrollment Form'!AH62,SEARCH(\"@\",'Enrollment Form'!AH62))),\"N\",\"Y\"))","v":""},{"$f":"IF(OR($B55=\"N\",'Enrollment Form'!$G62=\"\"),\"\",IF('Enrollment Form'!$B62<>\"Subscriber\",\"-\",IF(COUNTIF('Enrollment Form'!$AS62:$AT62,\"Yes\")=2,\"N\",\"Y\")))","v":""},{"$f":"IF(OR('Enrollment Form'!$CC62=\"\",'Enrollment Form'!$CC62=\"No\"),\"-\",IF(AND('Enrollment Form'!$CC62=\"Yes\",'Enrollment Form'!$CD62=\"\"),\"N\",\"Y\"))","v":"-"},{"$f":"IF(OR('Enrollment Form'!$CE62=\"\",'Enrollment Form'!$CE62=\"No\"),\"-\",IF(AND('Enrollment Form'!$CE62=\"Yes\",'Enrollment Form'!$CF62=\"\"),\"N\",\"Y\"))","v":"-"},{"$f":"IF(OR('Enrollment Form'!$CG62=\"\",'Enrollment Form'!$CG62=\"No\"),\"-\",IF(AND('Enrollment Form'!$CG62=\"Yes\",'Enrollment Form'!$CH62=\"\"),\"N\",\"Y\"))","v":"-"},{"$f":"IF(OR('Enrollment Form'!$CG62=\"\",'Enrollment Form'!$CG62=\"No\"),\"-\",IF(AND('Enrollment Form'!$CG62=\"Yes\",'Enrollment Form'!$CI62=\"\"),\"N\",\"Y\"))","v":"-"},{"$f":"IF('Enrollment Form'!B62<>\"Subscriber\",\"-\",IF(AND('Enrollment Form'!B62=\"Subscriber\",'Enrollment Form'!C62=\"Enroll\",'Enrollment Form'!AA62=\"\"),\"N\",\"Y\"))","v":"-"},{"$f":"IF(OR('Enrollment Form'!B62=\"Subscriber\",'Enrollment Form'!B62=\"\"),\"-\",IF('Enrollment Form'!BI62=\"\",\"N\",\"Y\"))","v":"-"},{"$f":"IF('Enrollment Form'!B62<>\"Subscriber\",\"-\",IF(AND('Enrollment Form'!B62=\"Subscriber\",'Enrollment Form'!G62=\"\"),\"N\",\"Y\"))","v":"-"},{"$f":"IF('Enrollment Form'!A62=\"\",\"\",IF('Enrollment Form'!B62=\"Subscriber\",\"-\",IF(AND('Enrollment Form'!B62<>\"Subscriber\",'Enrollment Form'!G62='Enrollment Form'!H62),\"N\",\"Y\")))","v":""},0]
[63,{"$f":"IF('Enrollment Form'!$A63<>\"\",\"Y\",\"N\")","v":"N"},{"$f":"IF(AND('Enrollment Form'!$B63=\"\",'Enrollment Form'!$C63<>\"\"),\"N\",IF($B56=\"N\",\"\",\"Y\"))","v":""},{"$f":"IF(OR($B56=\"N\",'Enrollment Form'!G63=\"\"),\"\",IF('Enrollment Form'!$B63<>\"Subscriber\",\"\",IF('Enrollment Form'!$G63='Enrollment Form'!$H63,\"Y\",\"N\")))","v":""},{"$f":"IF($B56=\"N\",\"\",IF(AND(COUNTIFS('Enrollment Form'!$H$11:$H$1000,'Enrollment Form'!$H63,'Enrollment Form'!$B$11:$B$1000,'Enrollment Form'!$B63)>1,'Enrollment Form'!$H63<>\"\"),\"N\",\"Y\"))","v":""},{"$f":"IF($B56=\"N\",\"\",IF(LEN('Enrollment Form'!$Y63)=0,\"\",IF(LEN('Enrollment Form'!$Y63)<>5,\"N\",\"Y\")))","v":""},{"$f":"IF($B56=\"N\",\"\",IF(LEN('Enrollment Form'!$AD63=0),\"\",IF(LEN('Enrollment Form'!$AD63)<>5,\"N\",\"Y\")))","v":""},{"$f":"IF($B56=\"N\",\"\",IF(LEN('Enrollment Form'!$BL63=0),\"\",IF(LEN('Enrollment Form'!$BL63)<>5,\"N\",\"Y\")))","v":""},{"$f":"IF($B56=\"N\",\"\",IF(LEN('Enrollment Form'!$AE63)=0,\"\",IF(LEN('Enrollment Form'!$AE63)<>10,\"N\",\"Y\")))","v":""},{"$f":"IF($B56=\"N\",\"\",IF(LEN('Enrollment Form'!$AF63)=0,\"\",IF(LEN('Enrollment Form'!$AF63)<>10,\"N\",\"Y\")))","v":""},{"$f":"IF('Enrollment Form'!$O63<>\"Graded\",\"-\",IF(AND('Enrollment Form'!$O63=\"Graded\",'Enrollment Form'!$AO63<>\"\"),\"Y\",\"N\"))","v":"-"},{"$f":"IF($B56=\"N\",\"\",IF(OR('Enrollment Form'!$B63<>\"Subscriber\",'Enrollment Form'!$C63=\"ROC\"),\"-\",IF(AND('Enrollment Form'!$B63=\"Subscriber\",'Enrollment Form'!$C63=\"Enroll\",'Enrollment Form'!$AJ63<>\"\"),\"Y\",\"N\")))","v":""},{"$f":"IF($B56=\"N\",\"\",IF(OR('Enrollment Form'!$B63<>\"Subscriber\",'Enrollment Form'!$C63=\"ROC\"),\"-\",IF(AND('Enrollment Form'!$B63=\"Subscriber\",'Enrollment Form'!$C63=\"Enroll\",'Enrollment Form'!$AK63<>\"\"),\"Y\",\"N\")))","v":""},{"$f":"IF($B56=\"N\",\"\",IF(OR('Enrollment Form'!$B63<>\"Subscriber\",'Enrollment Form'!$C63=\"ROC\"),\"-\",IF(AND('Enrollment Form'!$B63=\"Subscriber\",'Enrollment Form'!$C63=\"Enroll\",'Enrollment Form'!$AL63<>\"\"),\"Y\",\"N\")))","v":""},{"$f":"IF($B56=\"N\",\"\",IF(OR('Enrollment Form'!$B63<>\"Subscriber\",'Enrollment Form'!$C63=\"ROC\"),\"-\",IF(AND('Enrollment Form'!$B63=\"Subscriber\",'Enrollment Form'!$C63=\"Enroll\",'Enrollment Form'!$AM63<>\"\"),\"Y\",\"N\")))","v":""},{"$f":"IF($B56=\"N\",\"\",IF(OR('Enrollment Form'!$B63<>\"Subscriber\",'Enrollment Form'!$C63=\"ROC\"),\"-\",IF(AND('Enrollment Form'!$B63=\"Subscriber\",'Enrollment Form'!$C63=\"Enroll\",'Enrollment Form'!$AN63<>\"\"),\"Y\",\"N\")))","v":""},{"$f":"IF($B56=\"N\",\"\",IF(OR('Enrollment Form'!$B63<>\"Subscriber\",'Enrollment Form'!$C63=\"ROC\"),\"-\",IF(AND('Enrollment Form'!$B63=\"Subscriber\",'Enrollment Form'!$C63=\"Enroll\",'Enrollment Form'!$AP63<>\"\"),\"Y\",\"N\")))","v":""},{"$f":"IF($B56=\"N\",\"\",IF($Q56=\"-\",\"-\",IF(AND($Q56=\"Y\",'Enrollment Form'!$AP63=\"No\"),\"-\",IF(AND($Q56=\"Y\",'Enrollment Form'!$AP63=\"Yes\",'Enrollment Form'!$AQ63<>\"\"),\"Y\",\"N\"))))","v":""},{"$f":"IF($B56=\"N\",\"\",IF(OR('Enrollment Form'!$B63<>\"Subscriber\",'Enrollment Form'!$C63=\"ROC\"),\"-\",IF(AND('Enrollment Form'!$B63=\"Subscriber\",'Enrollment Form'!$C63=\"Enroll\",'Enrollment Form'!$CO63<>\"\"),\"Y\",\"N\")))","v":""},{"$f":"IF($B56=\"N\",\"\",IF($S56=\"-\",\"-\",IF(AND($S56=\"Y\",'Enrollment Form'!$CO63=\"No\"),\"-\",IF(AND($S56=\"Y\",'Enrollment Form'!$CO63=\"Yes\",'Enrollment Form'!$CP63<>\"\"),\"Y\",\"N\"))))","v":""},{"$f":"IF(OR('Enrollment Form'!$AV63=\"Yes\",'Enrollment Form'!$AV63=\"\"),\"-\",IF(AND('Enrollment Form'!$AV63=\"No\",ISERROR(FIND(\"HMO\",VLOOKUP('Enrollment Form'!G63,'Enrollment Form'!H$11:J$1000,3,FALSE),1))=FALSE,COUNTA('Enrollment Form'!$AW63:$AZ63)=4),\"Y\",\"N\"))","v":"-"},{"$f":"IF($B56=\"N\",\"\",IF('Enrollment Form'!$B63=\"Subscriber\",\"-\",IF(COUNTA('Enrollment Form'!$BE63,'Enrollment Form'!$BG63)=2,\"Y\",\"N\")))","v":""},{"$f":"IF($B56=\"N\",\"\",IF(OR('Enrollment Form'!$AU63=\"\",'Enrollment Form'!$AU63=\"No\"),\"-\",IF(AND('Enrollment Form'!$AU63=\"Yes\",COUNTA('Enrollment Form'!$CK63)=1),\"Y\",\"N\")))","v":""},{"$f":"IF(OR('Enrollment Form'!$CK63=\"\",'Enrollment Form'!$CK63=\"No\"),\"-\",IF(COUNTA('Enrollment Form'!$CM63:$CN63)=2,\"Y\",\"N\"))","v":"-"},{"$f":"IF($B56=\"N\",\"\",IF(COUNTIF('Enrollment Form'!$CZ63:$DO63,\"Other\")=COUNTA('Enrollment Form'!$DF63,'Enrollment Form'!$DA63,'Enrollment Form'!$DK63,'Enrollment Form'!$DP63),\"Y\",\"N\"))","v":""},{"$f":"IF($B56=\"N\",\"\",IF(OR('Enrollment Form'!B63<>\"Subscriber\",'Enrollment Form'!C63=\"ROC\",COUNTIF('Enrollment Form'!AS63:AT63,\"Yes\")>=1),\"-\",IF(AND('Enrollment Form'!C63=\"Enroll\",COUNTIF('Enrollment Form'!AS63:AT63,\"No\")=2,'Enrollment Form'!AU63=\"\"),\"N\",\"Y\")))","v":""},{"$f":"IF(OR(B56=\"N\",'Enrollment Form'!B63<>\"Subscriber\",'Enrollment Form'!C63=\"ROC\",'Enrollment Form'!O63<>\"Multiple of Salary\"),\"-\",IF(COUNTA('Enrollment Form'!T63:U63)<2,\"N\",\"Y\"))","v":"-"},{"$f":"IF(B56=\"N\",\"\",IF(OR('Enrollment Form'!C63=\"ROC\",'Enrollment Form'!B63<>\"Subscriber\",'Enrollment Form'!O63=\"Waive\",'Enrollment Form'!O63=\"\"),\"-\",IF('Enrollment Form'!P63=\"\",\"N\",\"Y\")))","v":""},{"$f":"IF($B56=\"N\",\"\",IF(AND('Enrollment Form'!$C63=\"ROC\",'Enrollment Form'!$DS63<>\"\"),\"Y\",IF(AND('Enrollment Form'!$C63=\"ROC\",'Enrollment Form'!$DS63=\"\"),\"N\",IF(AND('Enrollment Form'!$C63=\"Enroll\",'Enrollment Form'!$B63=\"Subscriber\",'Enrollment Form'!$CQ63=\"No\",'Enrollment Form'!$DS63=\"\"),\"N\",IF(AND('Enrollment Form'!$C63=\"Enroll\",'Enrollment Form'!$B63=\"Subscriber\",'Enrollment Form'!$CQ63=\"Yes\"),\"-\",\"Y\")))))","v":""},{"$f":"IF($B56=\"N\",\"\",IF(AND('Enrollment Form'!$C63=\"ROC\",'Enrollment Form'!$DT63<>\"\"),\"Y\",IF(AND('Enrollment Form'!$C63=\"ROC\",'Enrollment Form'!$DT63=\"\"),\"N\",IF(AND('Enrollment Form'!$C63=\"Enroll\",'Enrollment Form'!$B63=\"Subscriber\",'Enrollment Form'!$CQ63=\"No\",'Enrollment Form'!$DT63=\"\"),\"N\",IF(AND('Enrollment Form'!$C63=\"Enroll\",'Enrollment Form'!$B63=\"Subscriber\",'Enrollment Form'!$CQ63=\"Yes\"),\"-\",\"Y\")))))","v":""},{"$f":"IF('Enrollment Form'!AH63=\"\",\"\",IF(ISERROR(SEARCH(\".\",'Enrollment Form'!AH63,SEARCH(\"@\",'Enrollment Form'!AH63))),\"N\",\"Y\"))","v":""},{"$f":"IF(OR($B56=\"N\",'Enrollment Form'!$G63=\"\"),\"\",IF('Enrollment Form'!$B63<>\"Subscriber\",\"-\",IF(COUNTIF('Enrollment Form'!$AS63:$AT63,\"Yes\")=2,\"N\",\"Y\")))","v":""},{"$f":"IF(OR('Enrollment Form'!$CC63=\"\",'Enrollment Form'!$CC63=\"No\"),\"-\",IF(AND('Enrollment Form'!$CC63=\"Yes\",'Enrollment Form'!$CD63=\"\"),\"N\",\"Y\"))","v":"-"},{"$f":"IF(OR('Enrollment Form'!$CE63=\"\",'Enrollment Form'!$CE63=\"No\"),\"-\",IF(AND('Enrollment Form'!$CE63=\"Yes\",'Enrollment Form'!$CF63=\"\"),\"N\",\"Y\"))","v":"-"},{"$f":"IF(OR('Enrollment Form'!$CG63=\"\",'Enrollment Form'!$CG63=\"No\"),\"-\",IF(AND('Enrollment Form'!$CG63=\"Yes\",'Enrollment Form'!$CH63=\"\"),\"N\",\"Y\"))","v":"-"},{"$f":"IF(OR('Enrollment Form'!$CG63=\"\",'Enrollment Form'!$CG63=\"No\"),\"-\",IF(AND('Enrollment Form'!$CG63=\"Yes\",'Enrollment Form'!$CI63=\"\"),\"N\",\"Y\"))","v":"-"},{"$f":"IF('Enrollment Form'!B63<>\"Subscriber\",\"-\",IF(AND('Enrollment Form'!B63=\"Subscriber\",'Enrollment Form'!C63=\"Enroll\",'Enrollment Form'!AA63=\"\"),\"N\",\"Y\"))","v":"-"},{"$f":"IF(OR('Enrollment Form'!B63=\"Subscriber\",'Enrollment Form'!B63=\"\"),\"-\",IF('Enrollment Form'!BI63=\"\",\"N\",\"Y\"))","v":"-"},{"$f":"IF('Enrollment Form'!B63<>\"Subscriber\",\"-\",IF(AND('Enrollment Form'!B63=\"Subscriber\",'Enrollment Form'!G63=\"\"),\"N\",\"Y\"))","v":"-"},{"$f":"IF('Enrollment Form'!A63=\"\",\"\",IF('Enrollment Form'!B63=\"Subscriber\",\"-\",IF(AND('Enrollment Form'!B63<>\"Subscriber\",'Enrollment Form'!G63='Enrollment Form'!H63),\"N\",\"Y\")))","v":""},0]
[64,{"$f":"IF('Enrollment Form'!$A64<>\"\",\"Y\",\"N\")","v":"N"},{"$f":"IF(AND('Enrollment Form'!$B64=\"\",'Enrollment Form'!$C64<>\"\"),\"N\",IF($B57=\"N\",\"\",\"Y\"))","v":""},{"$f":"IF(OR($B57=\"N\",'Enrollment Form'!G64=\"\"),\"\",IF('Enrollment Form'!$B64<>\"Subscriber\",\"\",IF('Enrollment Form'!$G64='Enrollment Form'!$H64,\"Y\",\"N\")))","v":""},{"$f":"IF($B57=\"N\",\"\",IF(AND(COUNTIFS('Enrollment Form'!$H$11:$H$1000,'Enrollment Form'!$H64,'Enrollment Form'!$B$11:$B$1000,'Enrollment Form'!$B64)>1,'Enrollment Form'!$H64<>\"\"),\"N\",\"Y\"))","v":""},{"$f":"IF($B57=\"N\",\"\",IF(LEN('Enrollment Form'!$Y64)=0,\"\",IF(LEN('Enrollment Form'!$Y64)<>5,\"N\",\"Y\")))","v":""},{"$f":"IF($B57=\"N\",\"\",IF(LEN('Enrollment Form'!$AD64=0),\"\",IF(LEN('Enrollment Form'!$AD64)<>5,\"N\",\"Y\")))","v":""},{"$f":"IF($B57=\"N\",\"\",IF(LEN('Enrollment Form'!$BL64=0),\"\",IF(LEN('Enrollment Form'!$BL64)<>5,\"N\",\"Y\")))","v":""},{"$f":"IF($B57=\"N\",\"\",IF(LEN('Enrollment Form'!$AE64)=0,\"\",IF(LEN('Enrollment Form'!$AE64)<>10,\"N\",\"Y\")))","v":""},{"$f":"IF($B57=\"N\",\"\",IF(LEN('Enrollment Form'!$AF64)=0,\"\",IF(LEN('Enrollment Form'!$AF64)<>10,\"N\",\"Y\")))","v":""},{"$f":"IF('Enrollment Form'!$O64<>\"Graded\",\"-\",IF(AND('Enrollment Form'!$O64=\"Graded\",'Enrollment Form'!$AO64<>\"\"),\"Y\",\"N\"))","v":"-"},{"$f":"IF($B57=\"N\",\"\",IF(OR('Enrollment Form'!$B64<>\"Subscriber\",'Enrollment Form'!$C64=\"ROC\"),\"-\",IF(AND('Enrollment Form'!$B64=\"Subscriber\",'Enrollment Form'!$C64=\"Enroll\",'Enrollment Form'!$AJ64<>\"\"),\"Y\",\"N\")))","v":""},{"$f":"IF($B57=\"N\",\"\",IF(OR('Enrollment Form'!$B64<>\"Subscriber\",'Enrollment Form'!$C64=\"ROC\"),\"-\",IF(AND('Enrollment Form'!$B64=\"Subscriber\",'Enrollment Form'!$C64=\"Enroll\",'Enrollment Form'!$AK64<>\"\"),\"Y\",\"N\")))","v":""},{"$f":"IF($B57=\"N\",\"\",IF(OR('Enrollment Form'!$B64<>\"Subscriber\",'Enrollment Form'!$C64=\"ROC\"),\"-\",IF(AND('Enrollment Form'!$B64=\"Subscriber\",'Enrollment Form'!$C64=\"Enroll\",'Enrollment Form'!$AL64<>\"\"),\"Y\",\"N\")))","v":""},{"$f":"IF($B57=\"N\",\"\",IF(OR('Enrollment Form'!$B64<>\"Subscriber\",'Enrollment Form'!$C64=\"ROC\"),\"-\",IF(AND('Enrollment Form'!$B64=\"Subscriber\",'Enrollment Form'!$C64=\"Enroll\",'Enrollment Form'!$AM64<>\"\"),\"Y\",\"N\")))","v":""},{"$f":"IF($B57=\"N\",\"\",IF(OR('Enrollment Form'!$B64<>\"Subscriber\",'Enrollment Form'!$C64=\"ROC\"),\"-\",IF(AND('Enrollment Form'!$B64=\"Subscriber\",'Enrollment Form'!$C64=\"Enroll\",'Enrollment Form'!$AN64<>\"\"),\"Y\",\"N\")))","v":""},{"$f":"IF($B57=\"N\",\"\",IF(OR('Enrollment Form'!$B64<>\"Subscriber\",'Enrollment Form'!$C64=\"ROC\"),\"-\",IF(AND('Enrollment Form'!$B64=\"Subscriber\",'Enrollment Form'!$C64=\"Enroll\",'Enrollment Form'!$AP64<>\"\"),\"Y\",\"N\")))","v":""},{"$f":"IF($B57=\"N\",\"\",IF($Q57=\"-\",\"-\",IF(AND($Q57=\"Y\",'Enrollment Form'!$AP64=\"No\"),\"-\",IF(AND($Q57=\"Y\",'Enrollment Form'!$AP64=\"Yes\",'Enrollment Form'!$AQ64<>\"\"),\"Y\",\"N\"))))","v":""},{"$f":"IF($B57=\"N\",\"\",IF(OR('Enrollment Form'!$B64<>\"Subscriber\",'Enrollment Form'!$C64=\"ROC\"),\"-\",IF(AND('Enrollment Form'!$B64=\"Subscriber\",'Enrollment Form'!$C64=\"Enroll\",'Enrollment Form'!$CO64<>\"\"),\"Y\",\"N\")))","v":""},{"$f":"IF($B57=\"N\",\"\",IF($S57=\"-\",\"-\",IF(AND($S57=\"Y\",'Enrollment Form'!$CO64=\"No\"),\"-\",IF(AND($S57=\"Y\",'Enrollment Form'!$CO64=\"Yes\",'Enrollment Form'!$CP64<>\"\"),\"Y\",\"N\"))))","v":""},{"$f":"IF(OR('Enrollment Form'!$AV64=\"Yes\",'Enrollment Form'!$AV64=\"\"),\"-\",IF(AND('Enrollment Form'!$AV64=\"No\",ISERROR(FIND(\"HMO\",VLOOKUP('Enrollment Form'!G64,'Enrollment Form'!H$11:J$1000,3,FALSE),1))=FALSE,COUNTA('Enrollment Form'!$AW64:$AZ64)=4),\"Y\",\"N\"))","v":"-"},{"$f":"IF($B57=\"N\",\"\",IF('Enrollment Form'!$B64=\"Subscriber\",\"-\",IF(COUNTA('Enrollment Form'!$BE64,'Enrollment Form'!$BG64)=2,\"Y\",\"N\")))","v":""},{"$f":"IF($B57=\"N\",\"\",IF(OR('Enrollment Form'!$AU64=\"\",'Enrollment Form'!$AU64=\"No\"),\"-\",IF(AND('Enrollment Form'!$AU64=\"Yes\",COUNTA('Enrollment Form'!$CK64)=1),\"Y\",\"N\")))","v":""},{"$f":"IF(OR('Enrollment Form'!$CK64=\"\",'Enrollment Form'!$CK64=\"No\"),\"-\",IF(COUNTA('Enrollment Form'!$CM64:$CN64)=2,\"Y\",\"N\"))","v":"-"},{"$f":"IF($B57=\"N\",\"\",IF(COUNTIF('Enrollment Form'!$CZ64:$DO64,\"Other\")=COUNTA('Enrollment Form'!$DF64,'Enrollment Form'!$DA64,'Enrollment Form'!$DK64,'Enrollment Form'!$DP64),\"Y\",\"N\"))","v":""},{"$f":"IF($B57=\"N\",\"\",IF(OR('Enrollment Form'!B64<>\"Subscriber\",'Enrollment Form'!C64=\"ROC\",COUNTIF('Enrollment Form'!AS64:AT64,\"Yes\")>=1),\"-\",IF(AND('Enrollment Form'!C64=\"Enroll\",COUNTIF('Enrollment Form'!AS64:AT64,\"No\")=2,'Enrollment Form'!AU64=\"\"),\"N\",\"Y\")))","v":""},{"$f":"IF(OR(B57=\"N\",'Enrollment Form'!B64<>\"Subscriber\",'Enrollment Form'!C64=\"ROC\",'Enrollment Form'!O64<>\"Multiple of Salary\"),\"-\",IF(COUNTA('Enrollment Form'!T64:U64)<2,\"N\",\"Y\"))","v":"-"},{"$f":"IF(B57=\"N\",\"\",IF(OR('Enrollment Form'!C64=\"ROC\",'Enrollment Form'!B64<>\"Subscriber\",'Enrollment Form'!O64=\"Waive\",'Enrollment Form'!O64=\"\"),\"-\",IF('Enrollment Form'!P64=\"\",\"N\",\"Y\")))","v":""},{"$f":"IF($B57=\"N\",\"\",IF(AND('Enrollment Form'!$C64=\"ROC\",'Enrollment Form'!$DS64<>\"\"),\"Y\",IF(AND('Enrollment Form'!$C64=\"ROC\",'Enrollment Form'!$DS64=\"\"),\"N\",IF(AND('Enrollment Form'!$C64=\"Enroll\",'Enrollment Form'!$B64=\"Subscriber\",'Enrollment Form'!$CQ64=\"No\",'Enrollment Form'!$DS64=\"\"),\"N\",IF(AND('Enrollment Form'!$C64=\"Enroll\",'Enrollment Form'!$B64=\"Subscriber\",'Enrollment Form'!$CQ64=\"Yes\"),\"-\",\"Y\")))))","v":""},{"$f":"IF($B57=\"N\",\"\",IF(AND('Enrollment Form'!$C64=\"ROC\",'Enrollment Form'!$DT64<>\"\"),\"Y\",IF(AND('Enrollment Form'!$C64=\"ROC\",'Enrollment Form'!$DT64=\"\"),\"N\",IF(AND('Enrollment Form'!$C64=\"Enroll\",'Enrollment Form'!$B64=\"Subscriber\",'Enrollment Form'!$CQ64=\"No\",'Enrollment Form'!$DT64=\"\"),\"N\",IF(AND('Enrollment Form'!$C64=\"Enroll\",'Enrollment Form'!$B64=\"Subscriber\",'Enrollment Form'!$CQ64=\"Yes\"),\"-\",\"Y\")))))","v":""},{"$f":"IF('Enrollment Form'!AH64=\"\",\"\",IF(ISERROR(SEARCH(\".\",'Enrollment Form'!AH64,SEARCH(\"@\",'Enrollment Form'!AH64))),\"N\",\"Y\"))","v":""},{"$f":"IF(OR($B57=\"N\",'Enrollment Form'!$G64=\"\"),\"\",IF('Enrollment Form'!$B64<>\"Subscriber\",\"-\",IF(COUNTIF('Enrollment Form'!$AS64:$AT64,\"Yes\")=2,\"N\",\"Y\")))","v":""},{"$f":"IF(OR('Enrollment Form'!$CC64=\"\",'Enrollment Form'!$CC64=\"No\"),\"-\",IF(AND('Enrollment Form'!$CC64=\"Yes\",'Enrollment Form'!$CD64=\"\"),\"N\",\"Y\"))","v":"-"},{"$f":"IF(OR('Enrollment Form'!$CE64=\"\",'Enrollment Form'!$CE64=\"No\"),\"-\",IF(AND('Enrollment Form'!$CE64=\"Yes\",'Enrollment Form'!$CF64=\"\"),\"N\",\"Y\"))","v":"-"},{"$f":"IF(OR('Enrollment Form'!$CG64=\"\",'Enrollment Form'!$CG64=\"No\"),\"-\",IF(AND('Enrollment Form'!$CG64=\"Yes\",'Enrollment Form'!$CH64=\"\"),\"N\",\"Y\"))","v":"-"},{"$f":"IF(OR('Enrollment Form'!$CG64=\"\",'Enrollment Form'!$CG64=\"No\"),\"-\",IF(AND('Enrollment Form'!$CG64=\"Yes\",'Enrollment Form'!$CI64=\"\"),\"N\",\"Y\"))","v":"-"},{"$f":"IF('Enrollment Form'!B64<>\"Subscriber\",\"-\",IF(AND('Enrollment Form'!B64=\"Subscriber\",'Enrollment Form'!C64=\"Enroll\",'Enrollment Form'!AA64=\"\"),\"N\",\"Y\"))","v":"-"},{"$f":"IF(OR('Enrollment Form'!B64=\"Subscriber\",'Enrollment Form'!B64=\"\"),\"-\",IF('Enrollment Form'!BI64=\"\",\"N\",\"Y\"))","v":"-"},{"$f":"IF('Enrollment Form'!B64<>\"Subscriber\",\"-\",IF(AND('Enrollment Form'!B64=\"Subscriber\",'Enrollment Form'!G64=\"\"),\"N\",\"Y\"))","v":"-"},{"$f":"IF('Enrollment Form'!A64=\"\",\"\",IF('Enrollment Form'!B64=\"Subscriber\",\"-\",IF(AND('Enrollment Form'!B64<>\"Subscriber\",'Enrollment Form'!G64='Enrollment Form'!H64),\"N\",\"Y\")))","v":""},0]
[65,{"$f":"IF('Enrollment Form'!$A65<>\"\",\"Y\",\"N\")","v":"N"},{"$f":"IF(AND('Enrollment Form'!$B65=\"\",'Enrollment Form'!$C65<>\"\"),\"N\",IF($B58=\"N\",\"\",\"Y\"))","v":""},{"$f":"IF(OR($B58=\"N\",'Enrollment Form'!G65=\"\"),\"\",IF('Enrollment Form'!$B65<>\"Subscriber\",\"\",IF('Enrollment Form'!$G65='Enrollment Form'!$H65,\"Y\",\"N\")))","v":""},{"$f":"IF($B58=\"N\",\"\",IF(AND(COUNTIFS('Enrollment Form'!$H$11:$H$1000,'Enrollment Form'!$H65,'Enrollment Form'!$B$11:$B$1000,'Enrollment Form'!$B65)>1,'Enrollment Form'!$H65<>\"\"),\"N\",\"Y\"))","v":""},{"$f":"IF($B58=\"N\",\"\",IF(LEN('Enrollment Form'!$Y65)=0,\"\",IF(LEN('Enrollment Form'!$Y65)<>5,\"N\",\"Y\")))","v":""},{"$f":"IF($B58=\"N\",\"\",IF(LEN('Enrollment Form'!$AD65=0),\"\",IF(LEN('Enrollment Form'!$AD65)<>5,\"N\",\"Y\")))","v":""},{"$f":"IF($B58=\"N\",\"\",IF(LEN('Enrollment Form'!$BL65=0),\"\",IF(LEN('Enrollment Form'!$BL65)<>5,\"N\",\"Y\")))","v":""},{"$f":"IF($B58=\"N\",\"\",IF(LEN('Enrollment Form'!$AE65)=0,\"\",IF(LEN('Enrollment Form'!$AE65)<>10,\"N\",\"Y\")))","v":""},{"$f":"IF($B58=\"N\",\"\",IF(LEN('Enrollment Form'!$AF65)=0,\"\",IF(LEN('Enrollment Form'!$AF65)<>10,\"N\",\"Y\")))","v":""},{"$f":"IF('Enrollment Form'!$O65<>\"Graded\",\"-\",IF(AND('Enrollment Form'!$O65=\"Graded\",'Enrollment Form'!$AO65<>\"\"),\"Y\",\"N\"))","v":"-"},{"$f":"IF($B58=\"N\",\"\",IF(OR('Enrollment Form'!$B65<>\"Subscriber\",'Enrollment Form'!$C65=\"ROC\"),\"-\",IF(AND('Enrollment Form'!$B65=\"Subscriber\",'Enrollment Form'!$C65=\"Enroll\",'Enrollment Form'!$AJ65<>\"\"),\"Y\",\"N\")))","v":""},{"$f":"IF($B58=\"N\",\"\",IF(OR('Enrollment Form'!$B65<>\"Subscriber\",'Enrollment Form'!$C65=\"ROC\"),\"-\",IF(AND('Enrollment Form'!$B65=\"Subscriber\",'Enrollment Form'!$C65=\"Enroll\",'Enrollment Form'!$AK65<>\"\"),\"Y\",\"N\")))","v":""},{"$f":"IF($B58=\"N\",\"\",IF(OR('Enrollment Form'!$B65<>\"Subscriber\",'Enrollment Form'!$C65=\"ROC\"),\"-\",IF(AND('Enrollment Form'!$B65=\"Subscriber\",'Enrollment Form'!$C65=\"Enroll\",'Enrollment Form'!$AL65<>\"\"),\"Y\",\"N\")))","v":""},{"$f":"IF($B58=\"N\",\"\",IF(OR('Enrollment Form'!$B65<>\"Subscriber\",'Enrollment Form'!$C65=\"ROC\"),\"-\",IF(AND('Enrollment Form'!$B65=\"Subscriber\",'Enrollment Form'!$C65=\"Enroll\",'Enrollment Form'!$AM65<>\"\"),\"Y\",\"N\")))","v":""},{"$f":"IF($B58=\"N\",\"\",IF(OR('Enrollment Form'!$B65<>\"Subscriber\",'Enrollment Form'!$C65=\"ROC\"),\"-\",IF(AND('Enrollment Form'!$B65=\"Subscriber\",'Enrollment Form'!$C65=\"Enroll\",'Enrollment Form'!$AN65<>\"\"),\"Y\",\"N\")))","v":""},{"$f":"IF($B58=\"N\",\"\",IF(OR('Enrollment Form'!$B65<>\"Subscriber\",'Enrollment Form'!$C65=\"ROC\"),\"-\",IF(AND('Enrollment Form'!$B65=\"Subscriber\",'Enrollment Form'!$C65=\"Enroll\",'Enrollment Form'!$AP65<>\"\"),\"Y\",\"N\")))","v":""},{"$f":"IF($B58=\"N\",\"\",IF($Q58=\"-\",\"-\",IF(AND($Q58=\"Y\",'Enrollment Form'!$AP65=\"No\"),\"-\",IF(AND($Q58=\"Y\",'Enrollment Form'!$AP65=\"Yes\",'Enrollment Form'!$AQ65<>\"\"),\"Y\",\"N\"))))","v":""},{"$f":"IF($B58=\"N\",\"\",IF(OR('Enrollment Form'!$B65<>\"Subscriber\",'Enrollment Form'!$C65=\"ROC\"),\"-\",IF(AND('Enrollment Form'!$B65=\"Subscriber\",'Enrollment Form'!$C65=\"Enroll\",'Enrollment Form'!$CO65<>\"\"),\"Y\",\"N\")))","v":""},{"$f":"IF($B58=\"N\",\"\",IF($S58=\"-\",\"-\",IF(AND($S58=\"Y\",'Enrollment Form'!$CO65=\"No\"),\"-\",IF(AND($S58=\"Y\",'Enrollment Form'!$CO65=\"Yes\",'Enrollment Form'!$CP65<>\"\"),\"Y\",\"N\"))))","v":""},{"$f":"IF(OR('Enrollment Form'!$AV65=\"Yes\",'Enrollment Form'!$AV65=\"\"),\"-\",IF(AND('Enrollment Form'!$AV65=\"No\",ISERROR(FIND(\"HMO\",VLOOKUP('Enrollment Form'!G65,'Enrollment Form'!H$11:J$1000,3,FALSE),1))=FALSE,COUNTA('Enrollment Form'!$AW65:$AZ65)=4),\"Y\",\"N\"))","v":"-"},{"$f":"IF($B58=\"N\",\"\",IF('Enrollment Form'!$B65=\"Subscriber\",\"-\",IF(COUNTA('Enrollment Form'!$BE65,'Enrollment Form'!$BG65)=2,\"Y\",\"N\")))","v":""},{"$f":"IF($B58=\"N\",\"\",IF(OR('Enrollment Form'!$AU65=\"\",'Enrollment Form'!$AU65=\"No\"),\"-\",IF(AND('Enrollment Form'!$AU65=\"Yes\",COUNTA('Enrollment Form'!$CK65)=1),\"Y\",\"N\")))","v":""},{"$f":"IF(OR('Enrollment Form'!$CK65=\"\",'Enrollment Form'!$CK65=\"No\"),\"-\",IF(COUNTA('Enrollment Form'!$CM65:$CN65)=2,\"Y\",\"N\"))","v":"-"},{"$f":"IF($B58=\"N\",\"\",IF(COUNTIF('Enrollment Form'!$CZ65:$DO65,\"Other\")=COUNTA('Enrollment Form'!$DF65,'Enrollment Form'!$DA65,'Enrollment Form'!$DK65,'Enrollment Form'!$DP65),\"Y\",\"N\"))","v":""},{"$f":"IF($B58=\"N\",\"\",IF(OR('Enrollment Form'!B65<>\"Subscriber\",'Enrollment Form'!C65=\"ROC\",COUNTIF('Enrollment Form'!AS65:AT65,\"Yes\")>=1),\"-\",IF(AND('Enrollment Form'!C65=\"Enroll\",COUNTIF('Enrollment Form'!AS65:AT65,\"No\")=2,'Enrollment Form'!AU65=\"\"),\"N\",\"Y\")))","v":""},{"$f":"IF(OR(B58=\"N\",'Enrollment Form'!B65<>\"Subscriber\",'Enrollment Form'!C65=\"ROC\",'Enrollment Form'!O65<>\"Multiple of Salary\"),\"-\",IF(COUNTA('Enrollment Form'!T65:U65)<2,\"N\",\"Y\"))","v":"-"},{"$f":"IF(B58=\"N\",\"\",IF(OR('Enrollment Form'!C65=\"ROC\",'Enrollment Form'!B65<>\"Subscriber\",'Enrollment Form'!O65=\"Waive\",'Enrollment Form'!O65=\"\"),\"-\",IF('Enrollment Form'!P65=\"\",\"N\",\"Y\")))","v":""},{"$f":"IF($B58=\"N\",\"\",IF(AND('Enrollment Form'!$C65=\"ROC\",'Enrollment Form'!$DS65<>\"\"),\"Y\",IF(AND('Enrollment Form'!$C65=\"ROC\",'Enrollment Form'!$DS65=\"\"),\"N\",IF(AND('Enrollment Form'!$C65=\"Enroll\",'Enrollment Form'!$B65=\"Subscriber\",'Enrollment Form'!$CQ65=\"No\",'Enrollment Form'!$DS65=\"\"),\"N\",IF(AND('Enrollment Form'!$C65=\"Enroll\",'Enrollment Form'!$B65=\"Subscriber\",'Enrollment Form'!$CQ65=\"Yes\"),\"-\",\"Y\")))))","v":""},{"$f":"IF($B58=\"N\",\"\",IF(AND('Enrollment Form'!$C65=\"ROC\",'Enrollment Form'!$DT65<>\"\"),\"Y\",IF(AND('Enrollment Form'!$C65=\"ROC\",'Enrollment Form'!$DT65=\"\"),\"N\",IF(AND('Enrollment Form'!$C65=\"Enroll\",'Enrollment Form'!$B65=\"Subscriber\",'Enrollment Form'!$CQ65=\"No\",'Enrollment Form'!$DT65=\"\"),\"N\",IF(AND('Enrollment Form'!$C65=\"Enroll\",'Enrollment Form'!$B65=\"Subscriber\",'Enrollment Form'!$CQ65=\"Yes\"),\"-\",\"Y\")))))","v":""},{"$f":"IF('Enrollment Form'!AH65=\"\",\"\",IF(ISERROR(SEARCH(\".\",'Enrollment Form'!AH65,SEARCH(\"@\",'Enrollment Form'!AH65))),\"N\",\"Y\"))","v":""},{"$f":"IF(OR($B58=\"N\",'Enrollment Form'!$G65=\"\"),\"\",IF('Enrollment Form'!$B65<>\"Subscriber\",\"-\",IF(COUNTIF('Enrollment Form'!$AS65:$AT65,\"Yes\")=2,\"N\",\"Y\")))","v":""},{"$f":"IF(OR('Enrollment Form'!$CC65=\"\",'Enrollment Form'!$CC65=\"No\"),\"-\",IF(AND('Enrollment Form'!$CC65=\"Yes\",'Enrollment Form'!$CD65=\"\"),\"N\",\"Y\"))","v":"-"},{"$f":"IF(OR('Enrollment Form'!$CE65=\"\",'Enrollment Form'!$CE65=\"No\"),\"-\",IF(AND('Enrollment Form'!$CE65=\"Yes\",'Enrollment Form'!$CF65=\"\"),\"N\",\"Y\"))","v":"-"},{"$f":"IF(OR('Enrollment Form'!$CG65=\"\",'Enrollment Form'!$CG65=\"No\"),\"-\",IF(AND('Enrollment Form'!$CG65=\"Yes\",'Enrollment Form'!$CH65=\"\"),\"N\",\"Y\"))","v":"-"},{"$f":"IF(OR('Enrollment Form'!$CG65=\"\",'Enrollment Form'!$CG65=\"No\"),\"-\",IF(AND('Enrollment Form'!$CG65=\"Yes\",'Enrollment Form'!$CI65=\"\"),\"N\",\"Y\"))","v":"-"},{"$f":"IF('Enrollment Form'!B65<>\"Subscriber\",\"-\",IF(AND('Enrollment Form'!B65=\"Subscriber\",'Enrollment Form'!C65=\"Enroll\",'Enrollment Form'!AA65=\"\"),\"N\",\"Y\"))","v":"-"},{"$f":"IF(OR('Enrollment Form'!B65=\"Subscriber\",'Enrollment Form'!B65=\"\"),\"-\",IF('Enrollment Form'!BI65=\"\",\"N\",\"Y\"))","v":"-"},{"$f":"IF('Enrollment Form'!B65<>\"Subscriber\",\"-\",IF(AND('Enrollment Form'!B65=\"Subscriber\",'Enrollment Form'!G65=\"\"),\"N\",\"Y\"))","v":"-"},{"$f":"IF('Enrollment Form'!A65=\"\",\"\",IF('Enrollment Form'!B65=\"Subscriber\",\"-\",IF(AND('Enrollment Form'!B65<>\"Subscriber\",'Enrollment Form'!G65='Enrollment Form'!H65),\"N\",\"Y\")))","v":""},0]
[66,{"$f":"IF('Enrollment Form'!$A66<>\"\",\"Y\",\"N\")","v":"N"},{"$f":"IF(AND('Enrollment Form'!$B66=\"\",'Enrollment Form'!$C66<>\"\"),\"N\",IF($B59=\"N\",\"\",\"Y\"))","v":""},{"$f":"IF(OR($B59=\"N\",'Enrollment Form'!G66=\"\"),\"\",IF('Enrollment Form'!$B66<>\"Subscriber\",\"\",IF('Enrollment Form'!$G66='Enrollment Form'!$H66,\"Y\",\"N\")))","v":""},{"$f":"IF($B59=\"N\",\"\",IF(AND(COUNTIFS('Enrollment Form'!$H$11:$H$1000,'Enrollment Form'!$H66,'Enrollment Form'!$B$11:$B$1000,'Enrollment Form'!$B66)>1,'Enrollment Form'!$H66<>\"\"),\"N\",\"Y\"))","v":""},{"$f":"IF($B59=\"N\",\"\",IF(LEN('Enrollment Form'!$Y66)=0,\"\",IF(LEN('Enrollment Form'!$Y66)<>5,\"N\",\"Y\")))","v":""},{"$f":"IF($B59=\"N\",\"\",IF(LEN('Enrollment Form'!$AD66=0),\"\",IF(LEN('Enrollment Form'!$AD66)<>5,\"N\",\"Y\")))","v":""},{"$f":"IF($B59=\"N\",\"\",IF(LEN('Enrollment Form'!$BL66=0),\"\",IF(LEN('Enrollment Form'!$BL66)<>5,\"N\",\"Y\")))","v":""},{"$f":"IF($B59=\"N\",\"\",IF(LEN('Enrollment Form'!$AE66)=0,\"\",IF(LEN('Enrollment Form'!$AE66)<>10,\"N\",\"Y\")))","v":""},{"$f":"IF($B59=\"N\",\"\",IF(LEN('Enrollment Form'!$AF66)=0,\"\",IF(LEN('Enrollment Form'!$AF66)<>10,\"N\",\"Y\")))","v":""},{"$f":"IF('Enrollment Form'!$O66<>\"Graded\",\"-\",IF(AND('Enrollment Form'!$O66=\"Graded\",'Enrollment Form'!$AO66<>\"\"),\"Y\",\"N\"))","v":"-"},{"$f":"IF($B59=\"N\",\"\",IF(OR('Enrollment Form'!$B66<>\"Subscriber\",'Enrollment Form'!$C66=\"ROC\"),\"-\",IF(AND('Enrollment Form'!$B66=\"Subscriber\",'Enrollment Form'!$C66=\"Enroll\",'Enrollment Form'!$AJ66<>\"\"),\"Y\",\"N\")))","v":""},{"$f":"IF($B59=\"N\",\"\",IF(OR('Enrollment Form'!$B66<>\"Subscriber\",'Enrollment Form'!$C66=\"ROC\"),\"-\",IF(AND('Enrollment Form'!$B66=\"Subscriber\",'Enrollment Form'!$C66=\"Enroll\",'Enrollment Form'!$AK66<>\"\"),\"Y\",\"N\")))","v":""},{"$f":"IF($B59=\"N\",\"\",IF(OR('Enrollment Form'!$B66<>\"Subscriber\",'Enrollment Form'!$C66=\"ROC\"),\"-\",IF(AND('Enrollment Form'!$B66=\"Subscriber\",'Enrollment Form'!$C66=\"Enroll\",'Enrollment Form'!$AL66<>\"\"),\"Y\",\"N\")))","v":""},{"$f":"IF($B59=\"N\",\"\",IF(OR('Enrollment Form'!$B66<>\"Subscriber\",'Enrollment Form'!$C66=\"ROC\"),\"-\",IF(AND('Enrollment Form'!$B66=\"Subscriber\",'Enrollment Form'!$C66=\"Enroll\",'Enrollment Form'!$AM66<>\"\"),\"Y\",\"N\")))","v":""},{"$f":"IF($B59=\"N\",\"\",IF(OR('Enrollment Form'!$B66<>\"Subscriber\",'Enrollment Form'!$C66=\"ROC\"),\"-\",IF(AND('Enrollment Form'!$B66=\"Subscriber\",'Enrollment Form'!$C66=\"Enroll\",'Enrollment Form'!$AN66<>\"\"),\"Y\",\"N\")))","v":""},{"$f":"IF($B59=\"N\",\"\",IF(OR('Enrollment Form'!$B66<>\"Subscriber\",'Enrollment Form'!$C66=\"ROC\"),\"-\",IF(AND('Enrollment Form'!$B66=\"Subscriber\",'Enrollment Form'!$C66=\"Enroll\",'Enrollment Form'!$AP66<>\"\"),\"Y\",\"N\")))","v":""},{"$f":"IF($B59=\"N\",\"\",IF($Q59=\"-\",\"-\",IF(AND($Q59=\"Y\",'Enrollment Form'!$AP66=\"No\"),\"-\",IF(AND($Q59=\"Y\",'Enrollment Form'!$AP66=\"Yes\",'Enrollment Form'!$AQ66<>\"\"),\"Y\",\"N\"))))","v":""},{"$f":"IF($B59=\"N\",\"\",IF(OR('Enrollment Form'!$B66<>\"Subscriber\",'Enrollment Form'!$C66=\"ROC\"),\"-\",IF(AND('Enrollment Form'!$B66=\"Subscriber\",'Enrollment Form'!$C66=\"Enroll\",'Enrollment Form'!$CO66<>\"\"),\"Y\",\"N\")))","v":""},{"$f":"IF($B59=\"N\",\"\",IF($S59=\"-\",\"-\",IF(AND($S59=\"Y\",'Enrollment Form'!$CO66=\"No\"),\"-\",IF(AND($S59=\"Y\",'Enrollment Form'!$CO66=\"Yes\",'Enrollment Form'!$CP66<>\"\"),\"Y\",\"N\"))))","v":""},{"$f":"IF(OR('Enrollment Form'!$AV66=\"Yes\",'Enrollment Form'!$AV66=\"\"),\"-\",IF(AND('Enrollment Form'!$AV66=\"No\",ISERROR(FIND(\"HMO\",VLOOKUP('Enrollment Form'!G66,'Enrollment Form'!H$11:J$1000,3,FALSE),1))=FALSE,COUNTA('Enrollment Form'!$AW66:$AZ66)=4),\"Y\",\"N\"))","v":"-"},{"$f":"IF($B59=\"N\",\"\",IF('Enrollment Form'!$B66=\"Subscriber\",\"-\",IF(COUNTA('Enrollment Form'!$BE66,'Enrollment Form'!$BG66)=2,\"Y\",\"N\")))","v":""},{"$f":"IF($B59=\"N\",\"\",IF(OR('Enrollment Form'!$AU66=\"\",'Enrollment Form'!$AU66=\"No\"),\"-\",IF(AND('Enrollment Form'!$AU66=\"Yes\",COUNTA('Enrollment Form'!$CK66)=1),\"Y\",\"N\")))","v":""},{"$f":"IF(OR('Enrollment Form'!$CK66=\"\",'Enrollment Form'!$CK66=\"No\"),\"-\",IF(COUNTA('Enrollment Form'!$CM66:$CN66)=2,\"Y\",\"N\"))","v":"-"},{"$f":"IF($B59=\"N\",\"\",IF(COUNTIF('Enrollment Form'!$CZ66:$DO66,\"Other\")=COUNTA('Enrollment Form'!$DF66,'Enrollment Form'!$DA66,'Enrollment Form'!$DK66,'Enrollment Form'!$DP66),\"Y\",\"N\"))","v":""},{"$f":"IF($B59=\"N\",\"\",IF(OR('Enrollment Form'!B66<>\"Subscriber\",'Enrollment Form'!C66=\"ROC\",COUNTIF('Enrollment Form'!AS66:AT66,\"Yes\")>=1),\"-\",IF(AND('Enrollment Form'!C66=\"Enroll\",COUNTIF('Enrollment Form'!AS66:AT66,\"No\")=2,'Enrollment Form'!AU66=\"\"),\"N\",\"Y\")))","v":""},{"$f":"IF(OR(B59=\"N\",'Enrollment Form'!B66<>\"Subscriber\",'Enrollment Form'!C66=\"ROC\",'Enrollment Form'!O66<>\"Multiple of Salary\"),\"-\",IF(COUNTA('Enrollment Form'!T66:U66)<2,\"N\",\"Y\"))","v":"-"},{"$f":"IF(B59=\"N\",\"\",IF(OR('Enrollment Form'!C66=\"ROC\",'Enrollment Form'!B66<>\"Subscriber\",'Enrollment Form'!O66=\"Waive\",'Enrollment Form'!O66=\"\"),\"-\",IF('Enrollment Form'!P66=\"\",\"N\",\"Y\")))","v":""},{"$f":"IF($B59=\"N\",\"\",IF(AND('Enrollment Form'!$C66=\"ROC\",'Enrollment Form'!$DS66<>\"\"),\"Y\",IF(AND('Enrollment Form'!$C66=\"ROC\",'Enrollment Form'!$DS66=\"\"),\"N\",IF(AND('Enrollment Form'!$C66=\"Enroll\",'Enrollment Form'!$B66=\"Subscriber\",'Enrollment Form'!$CQ66=\"No\",'Enrollment Form'!$DS66=\"\"),\"N\",IF(AND('Enrollment Form'!$C66=\"Enroll\",'Enrollment Form'!$B66=\"Subscriber\",'Enrollment Form'!$CQ66=\"Yes\"),\"-\",\"Y\")))))","v":""},{"$f":"IF($B59=\"N\",\"\",IF(AND('Enrollment Form'!$C66=\"ROC\",'Enrollment Form'!$DT66<>\"\"),\"Y\",IF(AND('Enrollment Form'!$C66=\"ROC\",'Enrollment Form'!$DT66=\"\"),\"N\",IF(AND('Enrollment Form'!$C66=\"Enroll\",'Enrollment Form'!$B66=\"Subscriber\",'Enrollment Form'!$CQ66=\"No\",'Enrollment Form'!$DT66=\"\"),\"N\",IF(AND('Enrollment Form'!$C66=\"Enroll\",'Enrollment Form'!$B66=\"Subscriber\",'Enrollment Form'!$CQ66=\"Yes\"),\"-\",\"Y\")))))","v":""},{"$f":"IF('Enrollment Form'!AH66=\"\",\"\",IF(ISERROR(SEARCH(\".\",'Enrollment Form'!AH66,SEARCH(\"@\",'Enrollment Form'!AH66))),\"N\",\"Y\"))","v":""},{"$f":"IF(OR($B59=\"N\",'Enrollment Form'!$G66=\"\"),\"\",IF('Enrollment Form'!$B66<>\"Subscriber\",\"-\",IF(COUNTIF('Enrollment Form'!$AS66:$AT66,\"Yes\")=2,\"N\",\"Y\")))","v":""},{"$f":"IF(OR('Enrollment Form'!$CC66=\"\",'Enrollment Form'!$CC66=\"No\"),\"-\",IF(AND('Enrollment Form'!$CC66=\"Yes\",'Enrollment Form'!$CD66=\"\"),\"N\",\"Y\"))","v":"-"},{"$f":"IF(OR('Enrollment Form'!$CE66=\"\",'Enrollment Form'!$CE66=\"No\"),\"-\",IF(AND('Enrollment Form'!$CE66=\"Yes\",'Enrollment Form'!$CF66=\"\"),\"N\",\"Y\"))","v":"-"},{"$f":"IF(OR('Enrollment Form'!$CG66=\"\",'Enrollment Form'!$CG66=\"No\"),\"-\",IF(AND('Enrollment Form'!$CG66=\"Yes\",'Enrollment Form'!$CH66=\"\"),\"N\",\"Y\"))","v":"-"},{"$f":"IF(OR('Enrollment Form'!$CG66=\"\",'Enrollment Form'!$CG66=\"No\"),\"-\",IF(AND('Enrollment Form'!$CG66=\"Yes\",'Enrollment Form'!$CI66=\"\"),\"N\",\"Y\"))","v":"-"},{"$f":"IF('Enrollment Form'!B66<>\"Subscriber\",\"-\",IF(AND('Enrollment Form'!B66=\"Subscriber\",'Enrollment Form'!C66=\"Enroll\",'Enrollment Form'!AA66=\"\"),\"N\",\"Y\"))","v":"-"},{"$f":"IF(OR('Enrollment Form'!B66=\"Subscriber\",'Enrollment Form'!B66=\"\"),\"-\",IF('Enrollment Form'!BI66=\"\",\"N\",\"Y\"))","v":"-"},{"$f":"IF('Enrollment Form'!B66<>\"Subscriber\",\"-\",IF(AND('Enrollment Form'!B66=\"Subscriber\",'Enrollment Form'!G66=\"\"),\"N\",\"Y\"))","v":"-"},{"$f":"IF('Enrollment Form'!A66=\"\",\"\",IF('Enrollment Form'!B66=\"Subscriber\",\"-\",IF(AND('Enrollment Form'!B66<>\"Subscriber\",'Enrollment Form'!G66='Enrollment Form'!H66),\"N\",\"Y\")))","v":""},0]
[67,{"$f":"IF('Enrollment Form'!$A67<>\"\",\"Y\",\"N\")","v":"N"},{"$f":"IF(AND('Enrollment Form'!$B67=\"\",'Enrollment Form'!$C67<>\"\"),\"N\",IF($B60=\"N\",\"\",\"Y\"))","v":""},{"$f":"IF(OR($B60=\"N\",'Enrollment Form'!G67=\"\"),\"\",IF('Enrollment Form'!$B67<>\"Subscriber\",\"\",IF('Enrollment Form'!$G67='Enrollment Form'!$H67,\"Y\",\"N\")))","v":""},{"$f":"IF($B60=\"N\",\"\",IF(AND(COUNTIFS('Enrollment Form'!$H$11:$H$1000,'Enrollment Form'!$H67,'Enrollment Form'!$B$11:$B$1000,'Enrollment Form'!$B67)>1,'Enrollment Form'!$H67<>\"\"),\"N\",\"Y\"))","v":""},{"$f":"IF($B60=\"N\",\"\",IF(LEN('Enrollment Form'!$Y67)=0,\"\",IF(LEN('Enrollment Form'!$Y67)<>5,\"N\",\"Y\")))","v":""},{"$f":"IF($B60=\"N\",\"\",IF(LEN('Enrollment Form'!$AD67=0),\"\",IF(LEN('Enrollment Form'!$AD67)<>5,\"N\",\"Y\")))","v":""},{"$f":"IF($B60=\"N\",\"\",IF(LEN('Enrollment Form'!$BL67=0),\"\",IF(LEN('Enrollment Form'!$BL67)<>5,\"N\",\"Y\")))","v":""},{"$f":"IF($B60=\"N\",\"\",IF(LEN('Enrollment Form'!$AE67)=0,\"\",IF(LEN('Enrollment Form'!$AE67)<>10,\"N\",\"Y\")))","v":""},{"$f":"IF($B60=\"N\",\"\",IF(LEN('Enrollment Form'!$AF67)=0,\"\",IF(LEN('Enrollment Form'!$AF67)<>10,\"N\",\"Y\")))","v":""},{"$f":"IF('Enrollment Form'!$O67<>\"Graded\",\"-\",IF(AND('Enrollment Form'!$O67=\"Graded\",'Enrollment Form'!$AO67<>\"\"),\"Y\",\"N\"))","v":"-"},{"$f":"IF($B60=\"N\",\"\",IF(OR('Enrollment Form'!$B67<>\"Subscriber\",'Enrollment Form'!$C67=\"ROC\"),\"-\",IF(AND('Enrollment Form'!$B67=\"Subscriber\",'Enrollment Form'!$C67=\"Enroll\",'Enrollment Form'!$AJ67<>\"\"),\"Y\",\"N\")))","v":""},{"$f":"IF($B60=\"N\",\"\",IF(OR('Enrollment Form'!$B67<>\"Subscriber\",'Enrollment Form'!$C67=\"ROC\"),\"-\",IF(AND('Enrollment Form'!$B67=\"Subscriber\",'Enrollment Form'!$C67=\"Enroll\",'Enrollment Form'!$AK67<>\"\"),\"Y\",\"N\")))","v":""},{"$f":"IF($B60=\"N\",\"\",IF(OR('Enrollment Form'!$B67<>\"Subscriber\",'Enrollment Form'!$C67=\"ROC\"),\"-\",IF(AND('Enrollment Form'!$B67=\"Subscriber\",'Enrollment Form'!$C67=\"Enroll\",'Enrollment Form'!$AL67<>\"\"),\"Y\",\"N\")))","v":""},{"$f":"IF($B60=\"N\",\"\",IF(OR('Enrollment Form'!$B67<>\"Subscriber\",'Enrollment Form'!$C67=\"ROC\"),\"-\",IF(AND('Enrollment Form'!$B67=\"Subscriber\",'Enrollment Form'!$C67=\"Enroll\",'Enrollment Form'!$AM67<>\"\"),\"Y\",\"N\")))","v":""},{"$f":"IF($B60=\"N\",\"\",IF(OR('Enrollment Form'!$B67<>\"Subscriber\",'Enrollment Form'!$C67=\"ROC\"),\"-\",IF(AND('Enrollment Form'!$B67=\"Subscriber\",'Enrollment Form'!$C67=\"Enroll\",'Enrollment Form'!$AN67<>\"\"),\"Y\",\"N\")))","v":""},{"$f":"IF($B60=\"N\",\"\",IF(OR('Enrollment Form'!$B67<>\"Subscriber\",'Enrollment Form'!$C67=\"ROC\"),\"-\",IF(AND('Enrollment Form'!$B67=\"Subscriber\",'Enrollment Form'!$C67=\"Enroll\",'Enrollment Form'!$AP67<>\"\"),\"Y\",\"N\")))","v":""},{"$f":"IF($B60=\"N\",\"\",IF($Q60=\"-\",\"-\",IF(AND($Q60=\"Y\",'Enrollment Form'!$AP67=\"No\"),\"-\",IF(AND($Q60=\"Y\",'Enrollment Form'!$AP67=\"Yes\",'Enrollment Form'!$AQ67<>\"\"),\"Y\",\"N\"))))","v":""},{"$f":"IF($B60=\"N\",\"\",IF(OR('Enrollment Form'!$B67<>\"Subscriber\",'Enrollment Form'!$C67=\"ROC\"),\"-\",IF(AND('Enrollment Form'!$B67=\"Subscriber\",'Enrollment Form'!$C67=\"Enroll\",'Enrollment Form'!$CO67<>\"\"),\"Y\",\"N\")))","v":""},{"$f":"IF($B60=\"N\",\"\",IF($S60=\"-\",\"-\",IF(AND($S60=\"Y\",'Enrollment Form'!$CO67=\"No\"),\"-\",IF(AND($S60=\"Y\",'Enrollment Form'!$CO67=\"Yes\",'Enrollment Form'!$CP67<>\"\"),\"Y\",\"N\"))))","v":""},{"$f":"IF(OR('Enrollment Form'!$AV67=\"Yes\",'Enrollment Form'!$AV67=\"\"),\"-\",IF(AND('Enrollment Form'!$AV67=\"No\",ISERROR(FIND(\"HMO\",VLOOKUP('Enrollment Form'!G67,'Enrollment Form'!H$11:J$1000,3,FALSE),1))=FALSE,COUNTA('Enrollment Form'!$AW67:$AZ67)=4),\"Y\",\"N\"))","v":"-"},{"$f":"IF($B60=\"N\",\"\",IF('Enrollment Form'!$B67=\"Subscriber\",\"-\",IF(COUNTA('Enrollment Form'!$BE67,'Enrollment Form'!$BG67)=2,\"Y\",\"N\")))","v":""},{"$f":"IF($B60=\"N\",\"\",IF(OR('Enrollment Form'!$AU67=\"\",'Enrollment Form'!$AU67=\"No\"),\"-\",IF(AND('Enrollment Form'!$AU67=\"Yes\",COUNTA('Enrollment Form'!$CK67)=1),\"Y\",\"N\")))","v":""},{"$f":"IF(OR('Enrollment Form'!$CK67=\"\",'Enrollment Form'!$CK67=\"No\"),\"-\",IF(COUNTA('Enrollment Form'!$CM67:$CN67)=2,\"Y\",\"N\"))","v":"-"},{"$f":"IF($B60=\"N\",\"\",IF(COUNTIF('Enrollment Form'!$CZ67:$DO67,\"Other\")=COUNTA('Enrollment Form'!$DF67,'Enrollment Form'!$DA67,'Enrollment Form'!$DK67,'Enrollment Form'!$DP67),\"Y\",\"N\"))","v":""},{"$f":"IF($B60=\"N\",\"\",IF(OR('Enrollment Form'!B67<>\"Subscriber\",'Enrollment Form'!C67=\"ROC\",COUNTIF('Enrollment Form'!AS67:AT67,\"Yes\")>=1),\"-\",IF(AND('Enrollment Form'!C67=\"Enroll\",COUNTIF('Enrollment Form'!AS67:AT67,\"No\")=2,'Enrollment Form'!AU67=\"\"),\"N\",\"Y\")))","v":""},{"$f":"IF(OR(B60=\"N\",'Enrollment Form'!B67<>\"Subscriber\",'Enrollment Form'!C67=\"ROC\",'Enrollment Form'!O67<>\"Multiple of Salary\"),\"-\",IF(COUNTA('Enrollment Form'!T67:U67)<2,\"N\",\"Y\"))","v":"-"},{"$f":"IF(B60=\"N\",\"\",IF(OR('Enrollment Form'!C67=\"ROC\",'Enrollment Form'!B67<>\"Subscriber\",'Enrollment Form'!O67=\"Waive\",'Enrollment Form'!O67=\"\"),\"-\",IF('Enrollment Form'!P67=\"\",\"N\",\"Y\")))","v":""},{"$f":"IF($B60=\"N\",\"\",IF(AND('Enrollment Form'!$C67=\"ROC\",'Enrollment Form'!$DS67<>\"\"),\"Y\",IF(AND('Enrollment Form'!$C67=\"ROC\",'Enrollment Form'!$DS67=\"\"),\"N\",IF(AND('Enrollment Form'!$C67=\"Enroll\",'Enrollment Form'!$B67=\"Subscriber\",'Enrollment Form'!$CQ67=\"No\",'Enrollment Form'!$DS67=\"\"),\"N\",IF(AND('Enrollment Form'!$C67=\"Enroll\",'Enrollment Form'!$B67=\"Subscriber\",'Enrollment Form'!$CQ67=\"Yes\"),\"-\",\"Y\")))))","v":""},{"$f":"IF($B60=\"N\",\"\",IF(AND('Enrollment Form'!$C67=\"ROC\",'Enrollment Form'!$DT67<>\"\"),\"Y\",IF(AND('Enrollment Form'!$C67=\"ROC\",'Enrollment Form'!$DT67=\"\"),\"N\",IF(AND('Enrollment Form'!$C67=\"Enroll\",'Enrollment Form'!$B67=\"Subscriber\",'Enrollment Form'!$CQ67=\"No\",'Enrollment Form'!$DT67=\"\"),\"N\",IF(AND('Enrollment Form'!$C67=\"Enroll\",'Enrollment Form'!$B67=\"Subscriber\",'Enrollment Form'!$CQ67=\"Yes\"),\"-\",\"Y\")))))","v":""},{"$f":"IF('Enrollment Form'!AH67=\"\",\"\",IF(ISERROR(SEARCH(\".\",'Enrollment Form'!AH67,SEARCH(\"@\",'Enrollment Form'!AH67))),\"N\",\"Y\"))","v":""},{"$f":"IF(OR($B60=\"N\",'Enrollment Form'!$G67=\"\"),\"\",IF('Enrollment Form'!$B67<>\"Subscriber\",\"-\",IF(COUNTIF('Enrollment Form'!$AS67:$AT67,\"Yes\")=2,\"N\",\"Y\")))","v":""},{"$f":"IF(OR('Enrollment Form'!$CC67=\"\",'Enrollment Form'!$CC67=\"No\"),\"-\",IF(AND('Enrollment Form'!$CC67=\"Yes\",'Enrollment Form'!$CD67=\"\"),\"N\",\"Y\"))","v":"-"},{"$f":"IF(OR('Enrollment Form'!$CE67=\"\",'Enrollment Form'!$CE67=\"No\"),\"-\",IF(AND('Enrollment Form'!$CE67=\"Yes\",'Enrollment Form'!$CF67=\"\"),\"N\",\"Y\"))","v":"-"},{"$f":"IF(OR('Enrollment Form'!$CG67=\"\",'Enrollment Form'!$CG67=\"No\"),\"-\",IF(AND('Enrollment Form'!$CG67=\"Yes\",'Enrollment Form'!$CH67=\"\"),\"N\",\"Y\"))","v":"-"},{"$f":"IF(OR('Enrollment Form'!$CG67=\"\",'Enrollment Form'!$CG67=\"No\"),\"-\",IF(AND('Enrollment Form'!$CG67=\"Yes\",'Enrollment Form'!$CI67=\"\"),\"N\",\"Y\"))","v":"-"},{"$f":"IF('Enrollment Form'!B67<>\"Subscriber\",\"-\",IF(AND('Enrollment Form'!B67=\"Subscriber\",'Enrollment Form'!C67=\"Enroll\",'Enrollment Form'!AA67=\"\"),\"N\",\"Y\"))","v":"-"},{"$f":"IF(OR('Enrollment Form'!B67=\"Subscriber\",'Enrollment Form'!B67=\"\"),\"-\",IF('Enrollment Form'!BI67=\"\",\"N\",\"Y\"))","v":"-"},{"$f":"IF('Enrollment Form'!B67<>\"Subscriber\",\"-\",IF(AND('Enrollment Form'!B67=\"Subscriber\",'Enrollment Form'!G67=\"\"),\"N\",\"Y\"))","v":"-"},{"$f":"IF('Enrollment Form'!A67=\"\",\"\",IF('Enrollment Form'!B67=\"Subscriber\",\"-\",IF(AND('Enrollment Form'!B67<>\"Subscriber\",'Enrollment Form'!G67='Enrollment Form'!H67),\"N\",\"Y\")))","v":""},0]
[68,{"$f":"IF('Enrollment Form'!$A68<>\"\",\"Y\",\"N\")","v":"N"},{"$f":"IF(AND('Enrollment Form'!$B68=\"\",'Enrollment Form'!$C68<>\"\"),\"N\",IF($B61=\"N\",\"\",\"Y\"))","v":""},{"$f":"IF(OR($B61=\"N\",'Enrollment Form'!G68=\"\"),\"\",IF('Enrollment Form'!$B68<>\"Subscriber\",\"\",IF('Enrollment Form'!$G68='Enrollment Form'!$H68,\"Y\",\"N\")))","v":""},{"$f":"IF($B61=\"N\",\"\",IF(AND(COUNTIFS('Enrollment Form'!$H$11:$H$1000,'Enrollment Form'!$H68,'Enrollment Form'!$B$11:$B$1000,'Enrollment Form'!$B68)>1,'Enrollment Form'!$H68<>\"\"),\"N\",\"Y\"))","v":""},{"$f":"IF($B61=\"N\",\"\",IF(LEN('Enrollment Form'!$Y68)=0,\"\",IF(LEN('Enrollment Form'!$Y68)<>5,\"N\",\"Y\")))","v":""},{"$f":"IF($B61=\"N\",\"\",IF(LEN('Enrollment Form'!$AD68=0),\"\",IF(LEN('Enrollment Form'!$AD68)<>5,\"N\",\"Y\")))","v":""},{"$f":"IF($B61=\"N\",\"\",IF(LEN('Enrollment Form'!$BL68=0),\"\",IF(LEN('Enrollment Form'!$BL68)<>5,\"N\",\"Y\")))","v":""},{"$f":"IF($B61=\"N\",\"\",IF(LEN('Enrollment Form'!$AE68)=0,\"\",IF(LEN('Enrollment Form'!$AE68)<>10,\"N\",\"Y\")))","v":""},{"$f":"IF($B61=\"N\",\"\",IF(LEN('Enrollment Form'!$AF68)=0,\"\",IF(LEN('Enrollment Form'!$AF68)<>10,\"N\",\"Y\")))","v":""},{"$f":"IF('Enrollment Form'!$O68<>\"Graded\",\"-\",IF(AND('Enrollment Form'!$O68=\"Graded\",'Enrollment Form'!$AO68<>\"\"),\"Y\",\"N\"))","v":"-"},{"$f":"IF($B61=\"N\",\"\",IF(OR('Enrollment Form'!$B68<>\"Subscriber\",'Enrollment Form'!$C68=\"ROC\"),\"-\",IF(AND('Enrollment Form'!$B68=\"Subscriber\",'Enrollment Form'!$C68=\"Enroll\",'Enrollment Form'!$AJ68<>\"\"),\"Y\",\"N\")))","v":""},{"$f":"IF($B61=\"N\",\"\",IF(OR('Enrollment Form'!$B68<>\"Subscriber\",'Enrollment Form'!$C68=\"ROC\"),\"-\",IF(AND('Enrollment Form'!$B68=\"Subscriber\",'Enrollment Form'!$C68=\"Enroll\",'Enrollment Form'!$AK68<>\"\"),\"Y\",\"N\")))","v":""},{"$f":"IF($B61=\"N\",\"\",IF(OR('Enrollment Form'!$B68<>\"Subscriber\",'Enrollment Form'!$C68=\"ROC\"),\"-\",IF(AND('Enrollment Form'!$B68=\"Subscriber\",'Enrollment Form'!$C68=\"Enroll\",'Enrollment Form'!$AL68<>\"\"),\"Y\",\"N\")))","v":""},{"$f":"IF($B61=\"N\",\"\",IF(OR('Enrollment Form'!$B68<>\"Subscriber\",'Enrollment Form'!$C68=\"ROC\"),\"-\",IF(AND('Enrollment Form'!$B68=\"Subscriber\",'Enrollment Form'!$C68=\"Enroll\",'Enrollment Form'!$AM68<>\"\"),\"Y\",\"N\")))","v":""},{"$f":"IF($B61=\"N\",\"\",IF(OR('Enrollment Form'!$B68<>\"Subscriber\",'Enrollment Form'!$C68=\"ROC\"),\"-\",IF(AND('Enrollment Form'!$B68=\"Subscriber\",'Enrollment Form'!$C68=\"Enroll\",'Enrollment Form'!$AN68<>\"\"),\"Y\",\"N\")))","v":""},{"$f":"IF($B61=\"N\",\"\",IF(OR('Enrollment Form'!$B68<>\"Subscriber\",'Enrollment Form'!$C68=\"ROC\"),\"-\",IF(AND('Enrollment Form'!$B68=\"Subscriber\",'Enrollment Form'!$C68=\"Enroll\",'Enrollment Form'!$AP68<>\"\"),\"Y\",\"N\")))","v":""},{"$f":"IF($B61=\"N\",\"\",IF($Q61=\"-\",\"-\",IF(AND($Q61=\"Y\",'Enrollment Form'!$AP68=\"No\"),\"-\",IF(AND($Q61=\"Y\",'Enrollment Form'!$AP68=\"Yes\",'Enrollment Form'!$AQ68<>\"\"),\"Y\",\"N\"))))","v":""},{"$f":"IF($B61=\"N\",\"\",IF(OR('Enrollment Form'!$B68<>\"Subscriber\",'Enrollment Form'!$C68=\"ROC\"),\"-\",IF(AND('Enrollment Form'!$B68=\"Subscriber\",'Enrollment Form'!$C68=\"Enroll\",'Enrollment Form'!$CO68<>\"\"),\"Y\",\"N\")))","v":""},{"$f":"IF($B61=\"N\",\"\",IF($S61=\"-\",\"-\",IF(AND($S61=\"Y\",'Enrollment Form'!$CO68=\"No\"),\"-\",IF(AND($S61=\"Y\",'Enrollment Form'!$CO68=\"Yes\",'Enrollment Form'!$CP68<>\"\"),\"Y\",\"N\"))))","v":""},{"$f":"IF(OR('Enrollment Form'!$AV68=\"Yes\",'Enrollment Form'!$AV68=\"\"),\"-\",IF(AND('Enrollment Form'!$AV68=\"No\",ISERROR(FIND(\"HMO\",VLOOKUP('Enrollment Form'!G68,'Enrollment Form'!H$11:J$1000,3,FALSE),1))=FALSE,COUNTA('Enrollment Form'!$AW68:$AZ68)=4),\"Y\",\"N\"))","v":"-"},{"$f":"IF($B61=\"N\",\"\",IF('Enrollment Form'!$B68=\"Subscriber\",\"-\",IF(COUNTA('Enrollment Form'!$BE68,'Enrollment Form'!$BG68)=2,\"Y\",\"N\")))","v":""},{"$f":"IF($B61=\"N\",\"\",IF(OR('Enrollment Form'!$AU68=\"\",'Enrollment Form'!$AU68=\"No\"),\"-\",IF(AND('Enrollment Form'!$AU68=\"Yes\",COUNTA('Enrollment Form'!$CK68)=1),\"Y\",\"N\")))","v":""},{"$f":"IF(OR('Enrollment Form'!$CK68=\"\",'Enrollment Form'!$CK68=\"No\"),\"-\",IF(COUNTA('Enrollment Form'!$CM68:$CN68)=2,\"Y\",\"N\"))","v":"-"},{"$f":"IF($B61=\"N\",\"\",IF(COUNTIF('Enrollment Form'!$CZ68:$DO68,\"Other\")=COUNTA('Enrollment Form'!$DF68,'Enrollment Form'!$DA68,'Enrollment Form'!$DK68,'Enrollment Form'!$DP68),\"Y\",\"N\"))","v":""},{"$f":"IF($B61=\"N\",\"\",IF(OR('Enrollment Form'!B68<>\"Subscriber\",'Enrollment Form'!C68=\"ROC\",COUNTIF('Enrollment Form'!AS68:AT68,\"Yes\")>=1),\"-\",IF(AND('Enrollment Form'!C68=\"Enroll\",COUNTIF('Enrollment Form'!AS68:AT68,\"No\")=2,'Enrollment Form'!AU68=\"\"),\"N\",\"Y\")))","v":""},{"$f":"IF(OR(B61=\"N\",'Enrollment Form'!B68<>\"Subscriber\",'Enrollment Form'!C68=\"ROC\",'Enrollment Form'!O68<>\"Multiple of Salary\"),\"-\",IF(COUNTA('Enrollment Form'!T68:U68)<2,\"N\",\"Y\"))","v":"-"},{"$f":"IF(B61=\"N\",\"\",IF(OR('Enrollment Form'!C68=\"ROC\",'Enrollment Form'!B68<>\"Subscriber\",'Enrollment Form'!O68=\"Waive\",'Enrollment Form'!O68=\"\"),\"-\",IF('Enrollment Form'!P68=\"\",\"N\",\"Y\")))","v":""},{"$f":"IF($B61=\"N\",\"\",IF(AND('Enrollment Form'!$C68=\"ROC\",'Enrollment Form'!$DS68<>\"\"),\"Y\",IF(AND('Enrollment Form'!$C68=\"ROC\",'Enrollment Form'!$DS68=\"\"),\"N\",IF(AND('Enrollment Form'!$C68=\"Enroll\",'Enrollment Form'!$B68=\"Subscriber\",'Enrollment Form'!$CQ68=\"No\",'Enrollment Form'!$DS68=\"\"),\"N\",IF(AND('Enrollment Form'!$C68=\"Enroll\",'Enrollment Form'!$B68=\"Subscriber\",'Enrollment Form'!$CQ68=\"Yes\"),\"-\",\"Y\")))))","v":""},{"$f":"IF($B61=\"N\",\"\",IF(AND('Enrollment Form'!$C68=\"ROC\",'Enrollment Form'!$DT68<>\"\"),\"Y\",IF(AND('Enrollment Form'!$C68=\"ROC\",'Enrollment Form'!$DT68=\"\"),\"N\",IF(AND('Enrollment Form'!$C68=\"Enroll\",'Enrollment Form'!$B68=\"Subscriber\",'Enrollment Form'!$CQ68=\"No\",'Enrollment Form'!$DT68=\"\"),\"N\",IF(AND('Enrollment Form'!$C68=\"Enroll\",'Enrollment Form'!$B68=\"Subscriber\",'Enrollment Form'!$CQ68=\"Yes\"),\"-\",\"Y\")))))","v":""},{"$f":"IF('Enrollment Form'!AH68=\"\",\"\",IF(ISERROR(SEARCH(\".\",'Enrollment Form'!AH68,SEARCH(\"@\",'Enrollment Form'!AH68))),\"N\",\"Y\"))","v":""},{"$f":"IF(OR($B61=\"N\",'Enrollment Form'!$G68=\"\"),\"\",IF('Enrollment Form'!$B68<>\"Subscriber\",\"-\",IF(COUNTIF('Enrollment Form'!$AS68:$AT68,\"Yes\")=2,\"N\",\"Y\")))","v":""},{"$f":"IF(OR('Enrollment Form'!$CC68=\"\",'Enrollment Form'!$CC68=\"No\"),\"-\",IF(AND('Enrollment Form'!$CC68=\"Yes\",'Enrollment Form'!$CD68=\"\"),\"N\",\"Y\"))","v":"-"},{"$f":"IF(OR('Enrollment Form'!$CE68=\"\",'Enrollment Form'!$CE68=\"No\"),\"-\",IF(AND('Enrollment Form'!$CE68=\"Yes\",'Enrollment Form'!$CF68=\"\"),\"N\",\"Y\"))","v":"-"},{"$f":"IF(OR('Enrollment Form'!$CG68=\"\",'Enrollment Form'!$CG68=\"No\"),\"-\",IF(AND('Enrollment Form'!$CG68=\"Yes\",'Enrollment Form'!$CH68=\"\"),\"N\",\"Y\"))","v":"-"},{"$f":"IF(OR('Enrollment Form'!$CG68=\"\",'Enrollment Form'!$CG68=\"No\"),\"-\",IF(AND('Enrollment Form'!$CG68=\"Yes\",'Enrollment Form'!$CI68=\"\"),\"N\",\"Y\"))","v":"-"},{"$f":"IF('Enrollment Form'!B68<>\"Subscriber\",\"-\",IF(AND('Enrollment Form'!B68=\"Subscriber\",'Enrollment Form'!C68=\"Enroll\",'Enrollment Form'!AA68=\"\"),\"N\",\"Y\"))","v":"-"},{"$f":"IF(OR('Enrollment Form'!B68=\"Subscriber\",'Enrollment Form'!B68=\"\"),\"-\",IF('Enrollment Form'!BI68=\"\",\"N\",\"Y\"))","v":"-"},{"$f":"IF('Enrollment Form'!B68<>\"Subscriber\",\"-\",IF(AND('Enrollment Form'!B68=\"Subscriber\",'Enrollment Form'!G68=\"\"),\"N\",\"Y\"))","v":"-"},{"$f":"IF('Enrollment Form'!A68=\"\",\"\",IF('Enrollment Form'!B68=\"Subscriber\",\"-\",IF(AND('Enrollment Form'!B68<>\"Subscriber\",'Enrollment Form'!G68='Enrollment Form'!H68),\"N\",\"Y\")))","v":""},0]
[69,{"$f":"IF('Enrollment Form'!$A69<>\"\",\"Y\",\"N\")","v":"N"},{"$f":"IF(AND('Enrollment Form'!$B69=\"\",'Enrollment Form'!$C69<>\"\"),\"N\",IF($B62=\"N\",\"\",\"Y\"))","v":""},{"$f":"IF(OR($B62=\"N\",'Enrollment Form'!G69=\"\"),\"\",IF('Enrollment Form'!$B69<>\"Subscriber\",\"\",IF('Enrollment Form'!$G69='Enrollment Form'!$H69,\"Y\",\"N\")))","v":""},{"$f":"IF($B62=\"N\",\"\",IF(AND(COUNTIFS('Enrollment Form'!$H$11:$H$1000,'Enrollment Form'!$H69,'Enrollment Form'!$B$11:$B$1000,'Enrollment Form'!$B69)>1,'Enrollment Form'!$H69<>\"\"),\"N\",\"Y\"))","v":""},{"$f":"IF($B62=\"N\",\"\",IF(LEN('Enrollment Form'!$Y69)=0,\"\",IF(LEN('Enrollment Form'!$Y69)<>5,\"N\",\"Y\")))","v":""},{"$f":"IF($B62=\"N\",\"\",IF(LEN('Enrollment Form'!$AD69=0),\"\",IF(LEN('Enrollment Form'!$AD69)<>5,\"N\",\"Y\")))","v":""},{"$f":"IF($B62=\"N\",\"\",IF(LEN('Enrollment Form'!$BL69=0),\"\",IF(LEN('Enrollment Form'!$BL69)<>5,\"N\",\"Y\")))","v":""},{"$f":"IF($B62=\"N\",\"\",IF(LEN('Enrollment Form'!$AE69)=0,\"\",IF(LEN('Enrollment Form'!$AE69)<>10,\"N\",\"Y\")))","v":""},{"$f":"IF($B62=\"N\",\"\",IF(LEN('Enrollment Form'!$AF69)=0,\"\",IF(LEN('Enrollment Form'!$AF69)<>10,\"N\",\"Y\")))","v":""},{"$f":"IF('Enrollment Form'!$O69<>\"Graded\",\"-\",IF(AND('Enrollment Form'!$O69=\"Graded\",'Enrollment Form'!$AO69<>\"\"),\"Y\",\"N\"))","v":"-"},{"$f":"IF($B62=\"N\",\"\",IF(OR('Enrollment Form'!$B69<>\"Subscriber\",'Enrollment Form'!$C69=\"ROC\"),\"-\",IF(AND('Enrollment Form'!$B69=\"Subscriber\",'Enrollment Form'!$C69=\"Enroll\",'Enrollment Form'!$AJ69<>\"\"),\"Y\",\"N\")))","v":""},{"$f":"IF($B62=\"N\",\"\",IF(OR('Enrollment Form'!$B69<>\"Subscriber\",'Enrollment Form'!$C69=\"ROC\"),\"-\",IF(AND('Enrollment Form'!$B69=\"Subscriber\",'Enrollment Form'!$C69=\"Enroll\",'Enrollment Form'!$AK69<>\"\"),\"Y\",\"N\")))","v":""},{"$f":"IF($B62=\"N\",\"\",IF(OR('Enrollment Form'!$B69<>\"Subscriber\",'Enrollment Form'!$C69=\"ROC\"),\"-\",IF(AND('Enrollment Form'!$B69=\"Subscriber\",'Enrollment Form'!$C69=\"Enroll\",'Enrollment Form'!$AL69<>\"\"),\"Y\",\"N\")))","v":""},{"$f":"IF($B62=\"N\",\"\",IF(OR('Enrollment Form'!$B69<>\"Subscriber\",'Enrollment Form'!$C69=\"ROC\"),\"-\",IF(AND('Enrollment Form'!$B69=\"Subscriber\",'Enrollment Form'!$C69=\"Enroll\",'Enrollment Form'!$AM69<>\"\"),\"Y\",\"N\")))","v":""},{"$f":"IF($B62=\"N\",\"\",IF(OR('Enrollment Form'!$B69<>\"Subscriber\",'Enrollment Form'!$C69=\"ROC\"),\"-\",IF(AND('Enrollment Form'!$B69=\"Subscriber\",'Enrollment Form'!$C69=\"Enroll\",'Enrollment Form'!$AN69<>\"\"),\"Y\",\"N\")))","v":""},{"$f":"IF($B62=\"N\",\"\",IF(OR('Enrollment Form'!$B69<>\"Subscriber\",'Enrollment Form'!$C69=\"ROC\"),\"-\",IF(AND('Enrollment Form'!$B69=\"Subscriber\",'Enrollment Form'!$C69=\"Enroll\",'Enrollment Form'!$AP69<>\"\"),\"Y\",\"N\")))","v":""},{"$f":"IF($B62=\"N\",\"\",IF($Q62=\"-\",\"-\",IF(AND($Q62=\"Y\",'Enrollment Form'!$AP69=\"No\"),\"-\",IF(AND($Q62=\"Y\",'Enrollment Form'!$AP69=\"Yes\",'Enrollment Form'!$AQ69<>\"\"),\"Y\",\"N\"))))","v":""},{"$f":"IF($B62=\"N\",\"\",IF(OR('Enrollment Form'!$B69<>\"Subscriber\",'Enrollment Form'!$C69=\"ROC\"),\"-\",IF(AND('Enrollment Form'!$B69=\"Subscriber\",'Enrollment Form'!$C69=\"Enroll\",'Enrollment Form'!$CO69<>\"\"),\"Y\",\"N\")))","v":""},{"$f":"IF($B62=\"N\",\"\",IF($S62=\"-\",\"-\",IF(AND($S62=\"Y\",'Enrollment Form'!$CO69=\"No\"),\"-\",IF(AND($S62=\"Y\",'Enrollment Form'!$CO69=\"Yes\",'Enrollment Form'!$CP69<>\"\"),\"Y\",\"N\"))))","v":""},{"$f":"IF(OR('Enrollment Form'!$AV69=\"Yes\",'Enrollment Form'!$AV69=\"\"),\"-\",IF(AND('Enrollment Form'!$AV69=\"No\",ISERROR(FIND(\"HMO\",VLOOKUP('Enrollment Form'!G69,'Enrollment Form'!H$11:J$1000,3,FALSE),1))=FALSE,COUNTA('Enrollment Form'!$AW69:$AZ69)=4),\"Y\",\"N\"))","v":"-"},{"$f":"IF($B62=\"N\",\"\",IF('Enrollment Form'!$B69=\"Subscriber\",\"-\",IF(COUNTA('Enrollment Form'!$BE69,'Enrollment Form'!$BG69)=2,\"Y\",\"N\")))","v":""},{"$f":"IF($B62=\"N\",\"\",IF(OR('Enrollment Form'!$AU69=\"\",'Enrollment Form'!$AU69=\"No\"),\"-\",IF(AND('Enrollment Form'!$AU69=\"Yes\",COUNTA('Enrollment Form'!$CK69)=1),\"Y\",\"N\")))","v":""},{"$f":"IF(OR('Enrollment Form'!$CK69=\"\",'Enrollment Form'!$CK69=\"No\"),\"-\",IF(COUNTA('Enrollment Form'!$CM69:$CN69)=2,\"Y\",\"N\"))","v":"-"},{"$f":"IF($B62=\"N\",\"\",IF(COUNTIF('Enrollment Form'!$CZ69:$DO69,\"Other\")=COUNTA('Enrollment Form'!$DF69,'Enrollment Form'!$DA69,'Enrollment Form'!$DK69,'Enrollment Form'!$DP69),\"Y\",\"N\"))","v":""},{"$f":"IF($B62=\"N\",\"\",IF(OR('Enrollment Form'!B69<>\"Subscriber\",'Enrollment Form'!C69=\"ROC\",COUNTIF('Enrollment Form'!AS69:AT69,\"Yes\")>=1),\"-\",IF(AND('Enrollment Form'!C69=\"Enroll\",COUNTIF('Enrollment Form'!AS69:AT69,\"No\")=2,'Enrollment Form'!AU69=\"\"),\"N\",\"Y\")))","v":""},{"$f":"IF(OR(B62=\"N\",'Enrollment Form'!B69<>\"Subscriber\",'Enrollment Form'!C69=\"ROC\",'Enrollment Form'!O69<>\"Multiple of Salary\"),\"-\",IF(COUNTA('Enrollment Form'!T69:U69)<2,\"N\",\"Y\"))","v":"-"},{"$f":"IF(B62=\"N\",\"\",IF(OR('Enrollment Form'!C69=\"ROC\",'Enrollment Form'!B69<>\"Subscriber\",'Enrollment Form'!O69=\"Waive\",'Enrollment Form'!O69=\"\"),\"-\",IF('Enrollment Form'!P69=\"\",\"N\",\"Y\")))","v":""},{"$f":"IF($B62=\"N\",\"\",IF(AND('Enrollment Form'!$C69=\"ROC\",'Enrollment Form'!$DS69<>\"\"),\"Y\",IF(AND('Enrollment Form'!$C69=\"ROC\",'Enrollment Form'!$DS69=\"\"),\"N\",IF(AND('Enrollment Form'!$C69=\"Enroll\",'Enrollment Form'!$B69=\"Subscriber\",'Enrollment Form'!$CQ69=\"No\",'Enrollment Form'!$DS69=\"\"),\"N\",IF(AND('Enrollment Form'!$C69=\"Enroll\",'Enrollment Form'!$B69=\"Subscriber\",'Enrollment Form'!$CQ69=\"Yes\"),\"-\",\"Y\")))))","v":""},{"$f":"IF($B62=\"N\",\"\",IF(AND('Enrollment Form'!$C69=\"ROC\",'Enrollment Form'!$DT69<>\"\"),\"Y\",IF(AND('Enrollment Form'!$C69=\"ROC\",'Enrollment Form'!$DT69=\"\"),\"N\",IF(AND('Enrollment Form'!$C69=\"Enroll\",'Enrollment Form'!$B69=\"Subscriber\",'Enrollment Form'!$CQ69=\"No\",'Enrollment Form'!$DT69=\"\"),\"N\",IF(AND('Enrollment Form'!$C69=\"Enroll\",'Enrollment Form'!$B69=\"Subscriber\",'Enrollment Form'!$CQ69=\"Yes\"),\"-\",\"Y\")))))","v":""},{"$f":"IF('Enrollment Form'!AH69=\"\",\"\",IF(ISERROR(SEARCH(\".\",'Enrollment Form'!AH69,SEARCH(\"@\",'Enrollment Form'!AH69))),\"N\",\"Y\"))","v":""},{"$f":"IF(OR($B62=\"N\",'Enrollment Form'!$G69=\"\"),\"\",IF('Enrollment Form'!$B69<>\"Subscriber\",\"-\",IF(COUNTIF('Enrollment Form'!$AS69:$AT69,\"Yes\")=2,\"N\",\"Y\")))","v":""},{"$f":"IF(OR('Enrollment Form'!$CC69=\"\",'Enrollment Form'!$CC69=\"No\"),\"-\",IF(AND('Enrollment Form'!$CC69=\"Yes\",'Enrollment Form'!$CD69=\"\"),\"N\",\"Y\"))","v":"-"},{"$f":"IF(OR('Enrollment Form'!$CE69=\"\",'Enrollment Form'!$CE69=\"No\"),\"-\",IF(AND('Enrollment Form'!$CE69=\"Yes\",'Enrollment Form'!$CF69=\"\"),\"N\",\"Y\"))","v":"-"},{"$f":"IF(OR('Enrollment Form'!$CG69=\"\",'Enrollment Form'!$CG69=\"No\"),\"-\",IF(AND('Enrollment Form'!$CG69=\"Yes\",'Enrollment Form'!$CH69=\"\"),\"N\",\"Y\"))","v":"-"},{"$f":"IF(OR('Enrollment Form'!$CG69=\"\",'Enrollment Form'!$CG69=\"No\"),\"-\",IF(AND('Enrollment Form'!$CG69=\"Yes\",'Enrollment Form'!$CI69=\"\"),\"N\",\"Y\"))","v":"-"},{"$f":"IF('Enrollment Form'!B69<>\"Subscriber\",\"-\",IF(AND('Enrollment Form'!B69=\"Subscriber\",'Enrollment Form'!C69=\"Enroll\",'Enrollment Form'!AA69=\"\"),\"N\",\"Y\"))","v":"-"},{"$f":"IF(OR('Enrollment Form'!B69=\"Subscriber\",'Enrollment Form'!B69=\"\"),\"-\",IF('Enrollment Form'!BI69=\"\",\"N\",\"Y\"))","v":"-"},{"$f":"IF('Enrollment Form'!B69<>\"Subscriber\",\"-\",IF(AND('Enrollment Form'!B69=\"Subscriber\",'Enrollment Form'!G69=\"\"),\"N\",\"Y\"))","v":"-"},{"$f":"IF('Enrollment Form'!A69=\"\",\"\",IF('Enrollment Form'!B69=\"Subscriber\",\"-\",IF(AND('Enrollment Form'!B69<>\"Subscriber\",'Enrollment Form'!G69='Enrollment Form'!H69),\"N\",\"Y\")))","v":""},0]
[70,{"$f":"IF('Enrollment Form'!$A70<>\"\",\"Y\",\"N\")","v":"N"},{"$f":"IF(AND('Enrollment Form'!$B70=\"\",'Enrollment Form'!$C70<>\"\"),\"N\",IF($B63=\"N\",\"\",\"Y\"))","v":""},{"$f":"IF(OR($B63=\"N\",'Enrollment Form'!G70=\"\"),\"\",IF('Enrollment Form'!$B70<>\"Subscriber\",\"\",IF('Enrollment Form'!$G70='Enrollment Form'!$H70,\"Y\",\"N\")))","v":""},{"$f":"IF($B63=\"N\",\"\",IF(AND(COUNTIFS('Enrollment Form'!$H$11:$H$1000,'Enrollment Form'!$H70,'Enrollment Form'!$B$11:$B$1000,'Enrollment Form'!$B70)>1,'Enrollment Form'!$H70<>\"\"),\"N\",\"Y\"))","v":""},{"$f":"IF($B63=\"N\",\"\",IF(LEN('Enrollment Form'!$Y70)=0,\"\",IF(LEN('Enrollment Form'!$Y70)<>5,\"N\",\"Y\")))","v":""},{"$f":"IF($B63=\"N\",\"\",IF(LEN('Enrollment Form'!$AD70=0),\"\",IF(LEN('Enrollment Form'!$AD70)<>5,\"N\",\"Y\")))","v":""},{"$f":"IF($B63=\"N\",\"\",IF(LEN('Enrollment Form'!$BL70=0),\"\",IF(LEN('Enrollment Form'!$BL70)<>5,\"N\",\"Y\")))","v":""},{"$f":"IF($B63=\"N\",\"\",IF(LEN('Enrollment Form'!$AE70)=0,\"\",IF(LEN('Enrollment Form'!$AE70)<>10,\"N\",\"Y\")))","v":""},{"$f":"IF($B63=\"N\",\"\",IF(LEN('Enrollment Form'!$AF70)=0,\"\",IF(LEN('Enrollment Form'!$AF70)<>10,\"N\",\"Y\")))","v":""},{"$f":"IF('Enrollment Form'!$O70<>\"Graded\",\"-\",IF(AND('Enrollment Form'!$O70=\"Graded\",'Enrollment Form'!$AO70<>\"\"),\"Y\",\"N\"))","v":"-"},{"$f":"IF($B63=\"N\",\"\",IF(OR('Enrollment Form'!$B70<>\"Subscriber\",'Enrollment Form'!$C70=\"ROC\"),\"-\",IF(AND('Enrollment Form'!$B70=\"Subscriber\",'Enrollment Form'!$C70=\"Enroll\",'Enrollment Form'!$AJ70<>\"\"),\"Y\",\"N\")))","v":""},{"$f":"IF($B63=\"N\",\"\",IF(OR('Enrollment Form'!$B70<>\"Subscriber\",'Enrollment Form'!$C70=\"ROC\"),\"-\",IF(AND('Enrollment Form'!$B70=\"Subscriber\",'Enrollment Form'!$C70=\"Enroll\",'Enrollment Form'!$AK70<>\"\"),\"Y\",\"N\")))","v":""},{"$f":"IF($B63=\"N\",\"\",IF(OR('Enrollment Form'!$B70<>\"Subscriber\",'Enrollment Form'!$C70=\"ROC\"),\"-\",IF(AND('Enrollment Form'!$B70=\"Subscriber\",'Enrollment Form'!$C70=\"Enroll\",'Enrollment Form'!$AL70<>\"\"),\"Y\",\"N\")))","v":""},{"$f":"IF($B63=\"N\",\"\",IF(OR('Enrollment Form'!$B70<>\"Subscriber\",'Enrollment Form'!$C70=\"ROC\"),\"-\",IF(AND('Enrollment Form'!$B70=\"Subscriber\",'Enrollment Form'!$C70=\"Enroll\",'Enrollment Form'!$AM70<>\"\"),\"Y\",\"N\")))","v":""},{"$f":"IF($B63=\"N\",\"\",IF(OR('Enrollment Form'!$B70<>\"Subscriber\",'Enrollment Form'!$C70=\"ROC\"),\"-\",IF(AND('Enrollment Form'!$B70=\"Subscriber\",'Enrollment Form'!$C70=\"Enroll\",'Enrollment Form'!$AN70<>\"\"),\"Y\",\"N\")))","v":""},{"$f":"IF($B63=\"N\",\"\",IF(OR('Enrollment Form'!$B70<>\"Subscriber\",'Enrollment Form'!$C70=\"ROC\"),\"-\",IF(AND('Enrollment Form'!$B70=\"Subscriber\",'Enrollment Form'!$C70=\"Enroll\",'Enrollment Form'!$AP70<>\"\"),\"Y\",\"N\")))","v":""},{"$f":"IF($B63=\"N\",\"\",IF($Q63=\"-\",\"-\",IF(AND($Q63=\"Y\",'Enrollment Form'!$AP70=\"No\"),\"-\",IF(AND($Q63=\"Y\",'Enrollment Form'!$AP70=\"Yes\",'Enrollment Form'!$AQ70<>\"\"),\"Y\",\"N\"))))","v":""},{"$f":"IF($B63=\"N\",\"\",IF(OR('Enrollment Form'!$B70<>\"Subscriber\",'Enrollment Form'!$C70=\"ROC\"),\"-\",IF(AND('Enrollment Form'!$B70=\"Subscriber\",'Enrollment Form'!$C70=\"Enroll\",'Enrollment Form'!$CO70<>\"\"),\"Y\",\"N\")))","v":""},{"$f":"IF($B63=\"N\",\"\",IF($S63=\"-\",\"-\",IF(AND($S63=\"Y\",'Enrollment Form'!$CO70=\"No\"),\"-\",IF(AND($S63=\"Y\",'Enrollment Form'!$CO70=\"Yes\",'Enrollment Form'!$CP70<>\"\"),\"Y\",\"N\"))))","v":""},{"$f":"IF(OR('Enrollment Form'!$AV70=\"Yes\",'Enrollment Form'!$AV70=\"\"),\"-\",IF(AND('Enrollment Form'!$AV70=\"No\",ISERROR(FIND(\"HMO\",VLOOKUP('Enrollment Form'!G70,'Enrollment Form'!H$11:J$1000,3,FALSE),1))=FALSE,COUNTA('Enrollment Form'!$AW70:$AZ70)=4),\"Y\",\"N\"))","v":"-"},{"$f":"IF($B63=\"N\",\"\",IF('Enrollment Form'!$B70=\"Subscriber\",\"-\",IF(COUNTA('Enrollment Form'!$BE70,'Enrollment Form'!$BG70)=2,\"Y\",\"N\")))","v":""},{"$f":"IF($B63=\"N\",\"\",IF(OR('Enrollment Form'!$AU70=\"\",'Enrollment Form'!$AU70=\"No\"),\"-\",IF(AND('Enrollment Form'!$AU70=\"Yes\",COUNTA('Enrollment Form'!$CK70)=1),\"Y\",\"N\")))","v":""},{"$f":"IF(OR('Enrollment Form'!$CK70=\"\",'Enrollment Form'!$CK70=\"No\"),\"-\",IF(COUNTA('Enrollment Form'!$CM70:$CN70)=2,\"Y\",\"N\"))","v":"-"},{"$f":"IF($B63=\"N\",\"\",IF(COUNTIF('Enrollment Form'!$CZ70:$DO70,\"Other\")=COUNTA('Enrollment Form'!$DF70,'Enrollment Form'!$DA70,'Enrollment Form'!$DK70,'Enrollment Form'!$DP70),\"Y\",\"N\"))","v":""},{"$f":"IF($B63=\"N\",\"\",IF(OR('Enrollment Form'!B70<>\"Subscriber\",'Enrollment Form'!C70=\"ROC\",COUNTIF('Enrollment Form'!AS70:AT70,\"Yes\")>=1),\"-\",IF(AND('Enrollment Form'!C70=\"Enroll\",COUNTIF('Enrollment Form'!AS70:AT70,\"No\")=2,'Enrollment Form'!AU70=\"\"),\"N\",\"Y\")))","v":""},{"$f":"IF(OR(B63=\"N\",'Enrollment Form'!B70<>\"Subscriber\",'Enrollment Form'!C70=\"ROC\",'Enrollment Form'!O70<>\"Multiple of Salary\"),\"-\",IF(COUNTA('Enrollment Form'!T70:U70)<2,\"N\",\"Y\"))","v":"-"},{"$f":"IF(B63=\"N\",\"\",IF(OR('Enrollment Form'!C70=\"ROC\",'Enrollment Form'!B70<>\"Subscriber\",'Enrollment Form'!O70=\"Waive\",'Enrollment Form'!O70=\"\"),\"-\",IF('Enrollment Form'!P70=\"\",\"N\",\"Y\")))","v":""},{"$f":"IF($B63=\"N\",\"\",IF(AND('Enrollment Form'!$C70=\"ROC\",'Enrollment Form'!$DS70<>\"\"),\"Y\",IF(AND('Enrollment Form'!$C70=\"ROC\",'Enrollment Form'!$DS70=\"\"),\"N\",IF(AND('Enrollment Form'!$C70=\"Enroll\",'Enrollment Form'!$B70=\"Subscriber\",'Enrollment Form'!$CQ70=\"No\",'Enrollment Form'!$DS70=\"\"),\"N\",IF(AND('Enrollment Form'!$C70=\"Enroll\",'Enrollment Form'!$B70=\"Subscriber\",'Enrollment Form'!$CQ70=\"Yes\"),\"-\",\"Y\")))))","v":""},{"$f":"IF($B63=\"N\",\"\",IF(AND('Enrollment Form'!$C70=\"ROC\",'Enrollment Form'!$DT70<>\"\"),\"Y\",IF(AND('Enrollment Form'!$C70=\"ROC\",'Enrollment Form'!$DT70=\"\"),\"N\",IF(AND('Enrollment Form'!$C70=\"Enroll\",'Enrollment Form'!$B70=\"Subscriber\",'Enrollment Form'!$CQ70=\"No\",'Enrollment Form'!$DT70=\"\"),\"N\",IF(AND('Enrollment Form'!$C70=\"Enroll\",'Enrollment Form'!$B70=\"Subscriber\",'Enrollment Form'!$CQ70=\"Yes\"),\"-\",\"Y\")))))","v":""},{"$f":"IF('Enrollment Form'!AH70=\"\",\"\",IF(ISERROR(SEARCH(\".\",'Enrollment Form'!AH70,SEARCH(\"@\",'Enrollment Form'!AH70))),\"N\",\"Y\"))","v":""},{"$f":"IF(OR($B63=\"N\",'Enrollment Form'!$G70=\"\"),\"\",IF('Enrollment Form'!$B70<>\"Subscriber\",\"-\",IF(COUNTIF('Enrollment Form'!$AS70:$AT70,\"Yes\")=2,\"N\",\"Y\")))","v":""},{"$f":"IF(OR('Enrollment Form'!$CC70=\"\",'Enrollment Form'!$CC70=\"No\"),\"-\",IF(AND('Enrollment Form'!$CC70=\"Yes\",'Enrollment Form'!$CD70=\"\"),\"N\",\"Y\"))","v":"-"},{"$f":"IF(OR('Enrollment Form'!$CE70=\"\",'Enrollment Form'!$CE70=\"No\"),\"-\",IF(AND('Enrollment Form'!$CE70=\"Yes\",'Enrollment Form'!$CF70=\"\"),\"N\",\"Y\"))","v":"-"},{"$f":"IF(OR('Enrollment Form'!$CG70=\"\",'Enrollment Form'!$CG70=\"No\"),\"-\",IF(AND('Enrollment Form'!$CG70=\"Yes\",'Enrollment Form'!$CH70=\"\"),\"N\",\"Y\"))","v":"-"},{"$f":"IF(OR('Enrollment Form'!$CG70=\"\",'Enrollment Form'!$CG70=\"No\"),\"-\",IF(AND('Enrollment Form'!$CG70=\"Yes\",'Enrollment Form'!$CI70=\"\"),\"N\",\"Y\"))","v":"-"},{"$f":"IF('Enrollment Form'!B70<>\"Subscriber\",\"-\",IF(AND('Enrollment Form'!B70=\"Subscriber\",'Enrollment Form'!C70=\"Enroll\",'Enrollment Form'!AA70=\"\"),\"N\",\"Y\"))","v":"-"},{"$f":"IF(OR('Enrollment Form'!B70=\"Subscriber\",'Enrollment Form'!B70=\"\"),\"-\",IF('Enrollment Form'!BI70=\"\",\"N\",\"Y\"))","v":"-"},{"$f":"IF('Enrollment Form'!B70<>\"Subscriber\",\"-\",IF(AND('Enrollment Form'!B70=\"Subscriber\",'Enrollment Form'!G70=\"\"),\"N\",\"Y\"))","v":"-"},{"$f":"IF('Enrollment Form'!A70=\"\",\"\",IF('Enrollment Form'!B70=\"Subscriber\",\"-\",IF(AND('Enrollment Form'!B70<>\"Subscriber\",'Enrollment Form'!G70='Enrollment Form'!H70),\"N\",\"Y\")))","v":""},0]
[71,{"$f":"IF('Enrollment Form'!$A71<>\"\",\"Y\",\"N\")","v":"N"},{"$f":"IF(AND('Enrollment Form'!$B71=\"\",'Enrollment Form'!$C71<>\"\"),\"N\",IF($B64=\"N\",\"\",\"Y\"))","v":""},{"$f":"IF(OR($B64=\"N\",'Enrollment Form'!G71=\"\"),\"\",IF('Enrollment Form'!$B71<>\"Subscriber\",\"\",IF('Enrollment Form'!$G71='Enrollment Form'!$H71,\"Y\",\"N\")))","v":""},{"$f":"IF($B64=\"N\",\"\",IF(AND(COUNTIFS('Enrollment Form'!$H$11:$H$1000,'Enrollment Form'!$H71,'Enrollment Form'!$B$11:$B$1000,'Enrollment Form'!$B71)>1,'Enrollment Form'!$H71<>\"\"),\"N\",\"Y\"))","v":""},{"$f":"IF($B64=\"N\",\"\",IF(LEN('Enrollment Form'!$Y71)=0,\"\",IF(LEN('Enrollment Form'!$Y71)<>5,\"N\",\"Y\")))","v":""},{"$f":"IF($B64=\"N\",\"\",IF(LEN('Enrollment Form'!$AD71=0),\"\",IF(LEN('Enrollment Form'!$AD71)<>5,\"N\",\"Y\")))","v":""},{"$f":"IF($B64=\"N\",\"\",IF(LEN('Enrollment Form'!$BL71=0),\"\",IF(LEN('Enrollment Form'!$BL71)<>5,\"N\",\"Y\")))","v":""},{"$f":"IF($B64=\"N\",\"\",IF(LEN('Enrollment Form'!$AE71)=0,\"\",IF(LEN('Enrollment Form'!$AE71)<>10,\"N\",\"Y\")))","v":""},{"$f":"IF($B64=\"N\",\"\",IF(LEN('Enrollment Form'!$AF71)=0,\"\",IF(LEN('Enrollment Form'!$AF71)<>10,\"N\",\"Y\")))","v":""},{"$f":"IF('Enrollment Form'!$O71<>\"Graded\",\"-\",IF(AND('Enrollment Form'!$O71=\"Graded\",'Enrollment Form'!$AO71<>\"\"),\"Y\",\"N\"))","v":"-"},{"$f":"IF($B64=\"N\",\"\",IF(OR('Enrollment Form'!$B71<>\"Subscriber\",'Enrollment Form'!$C71=\"ROC\"),\"-\",IF(AND('Enrollment Form'!$B71=\"Subscriber\",'Enrollment Form'!$C71=\"Enroll\",'Enrollment Form'!$AJ71<>\"\"),\"Y\",\"N\")))","v":""},{"$f":"IF($B64=\"N\",\"\",IF(OR('Enrollment Form'!$B71<>\"Subscriber\",'Enrollment Form'!$C71=\"ROC\"),\"-\",IF(AND('Enrollment Form'!$B71=\"Subscriber\",'Enrollment Form'!$C71=\"Enroll\",'Enrollment Form'!$AK71<>\"\"),\"Y\",\"N\")))","v":""},{"$f":"IF($B64=\"N\",\"\",IF(OR('Enrollment Form'!$B71<>\"Subscriber\",'Enrollment Form'!$C71=\"ROC\"),\"-\",IF(AND('Enrollment Form'!$B71=\"Subscriber\",'Enrollment Form'!$C71=\"Enroll\",'Enrollment Form'!$AL71<>\"\"),\"Y\",\"N\")))","v":""},{"$f":"IF($B64=\"N\",\"\",IF(OR('Enrollment Form'!$B71<>\"Subscriber\",'Enrollment Form'!$C71=\"ROC\"),\"-\",IF(AND('Enrollment Form'!$B71=\"Subscriber\",'Enrollment Form'!$C71=\"Enroll\",'Enrollment Form'!$AM71<>\"\"),\"Y\",\"N\")))","v":""},{"$f":"IF($B64=\"N\",\"\",IF(OR('Enrollment Form'!$B71<>\"Subscriber\",'Enrollment Form'!$C71=\"ROC\"),\"-\",IF(AND('Enrollment Form'!$B71=\"Subscriber\",'Enrollment Form'!$C71=\"Enroll\",'Enrollment Form'!$AN71<>\"\"),\"Y\",\"N\")))","v":""},{"$f":"IF($B64=\"N\",\"\",IF(OR('Enrollment Form'!$B71<>\"Subscriber\",'Enrollment Form'!$C71=\"ROC\"),\"-\",IF(AND('Enrollment Form'!$B71=\"Subscriber\",'Enrollment Form'!$C71=\"Enroll\",'Enrollment Form'!$AP71<>\"\"),\"Y\",\"N\")))","v":""},{"$f":"IF($B64=\"N\",\"\",IF($Q64=\"-\",\"-\",IF(AND($Q64=\"Y\",'Enrollment Form'!$AP71=\"No\"),\"-\",IF(AND($Q64=\"Y\",'Enrollment Form'!$AP71=\"Yes\",'Enrollment Form'!$AQ71<>\"\"),\"Y\",\"N\"))))","v":""},{"$f":"IF($B64=\"N\",\"\",IF(OR('Enrollment Form'!$B71<>\"Subscriber\",'Enrollment Form'!$C71=\"ROC\"),\"-\",IF(AND('Enrollment Form'!$B71=\"Subscriber\",'Enrollment Form'!$C71=\"Enroll\",'Enrollment Form'!$CO71<>\"\"),\"Y\",\"N\")))","v":""},{"$f":"IF($B64=\"N\",\"\",IF($S64=\"-\",\"-\",IF(AND($S64=\"Y\",'Enrollment Form'!$CO71=\"No\"),\"-\",IF(AND($S64=\"Y\",'Enrollment Form'!$CO71=\"Yes\",'Enrollment Form'!$CP71<>\"\"),\"Y\",\"N\"))))","v":""},{"$f":"IF(OR('Enrollment Form'!$AV71=\"Yes\",'Enrollment Form'!$AV71=\"\"),\"-\",IF(AND('Enrollment Form'!$AV71=\"No\",ISERROR(FIND(\"HMO\",VLOOKUP('Enrollment Form'!G71,'Enrollment Form'!H$11:J$1000,3,FALSE),1))=FALSE,COUNTA('Enrollment Form'!$AW71:$AZ71)=4),\"Y\",\"N\"))","v":"-"},{"$f":"IF($B64=\"N\",\"\",IF('Enrollment Form'!$B71=\"Subscriber\",\"-\",IF(COUNTA('Enrollment Form'!$BE71,'Enrollment Form'!$BG71)=2,\"Y\",\"N\")))","v":""},{"$f":"IF($B64=\"N\",\"\",IF(OR('Enrollment Form'!$AU71=\"\",'Enrollment Form'!$AU71=\"No\"),\"-\",IF(AND('Enrollment Form'!$AU71=\"Yes\",COUNTA('Enrollment Form'!$CK71)=1),\"Y\",\"N\")))","v":""},{"$f":"IF(OR('Enrollment Form'!$CK71=\"\",'Enrollment Form'!$CK71=\"No\"),\"-\",IF(COUNTA('Enrollment Form'!$CM71:$CN71)=2,\"Y\",\"N\"))","v":"-"},{"$f":"IF($B64=\"N\",\"\",IF(COUNTIF('Enrollment Form'!$CZ71:$DO71,\"Other\")=COUNTA('Enrollment Form'!$DF71,'Enrollment Form'!$DA71,'Enrollment Form'!$DK71,'Enrollment Form'!$DP71),\"Y\",\"N\"))","v":""},{"$f":"IF($B64=\"N\",\"\",IF(OR('Enrollment Form'!B71<>\"Subscriber\",'Enrollment Form'!C71=\"ROC\",COUNTIF('Enrollment Form'!AS71:AT71,\"Yes\")>=1),\"-\",IF(AND('Enrollment Form'!C71=\"Enroll\",COUNTIF('Enrollment Form'!AS71:AT71,\"No\")=2,'Enrollment Form'!AU71=\"\"),\"N\",\"Y\")))","v":""},{"$f":"IF(OR(B64=\"N\",'Enrollment Form'!B71<>\"Subscriber\",'Enrollment Form'!C71=\"ROC\",'Enrollment Form'!O71<>\"Multiple of Salary\"),\"-\",IF(COUNTA('Enrollment Form'!T71:U71)<2,\"N\",\"Y\"))","v":"-"},{"$f":"IF(B64=\"N\",\"\",IF(OR('Enrollment Form'!C71=\"ROC\",'Enrollment Form'!B71<>\"Subscriber\",'Enrollment Form'!O71=\"Waive\",'Enrollment Form'!O71=\"\"),\"-\",IF('Enrollment Form'!P71=\"\",\"N\",\"Y\")))","v":""},{"$f":"IF($B64=\"N\",\"\",IF(AND('Enrollment Form'!$C71=\"ROC\",'Enrollment Form'!$DS71<>\"\"),\"Y\",IF(AND('Enrollment Form'!$C71=\"ROC\",'Enrollment Form'!$DS71=\"\"),\"N\",IF(AND('Enrollment Form'!$C71=\"Enroll\",'Enrollment Form'!$B71=\"Subscriber\",'Enrollment Form'!$CQ71=\"No\",'Enrollment Form'!$DS71=\"\"),\"N\",IF(AND('Enrollment Form'!$C71=\"Enroll\",'Enrollment Form'!$B71=\"Subscriber\",'Enrollment Form'!$CQ71=\"Yes\"),\"-\",\"Y\")))))","v":""},{"$f":"IF($B64=\"N\",\"\",IF(AND('Enrollment Form'!$C71=\"ROC\",'Enrollment Form'!$DT71<>\"\"),\"Y\",IF(AND('Enrollment Form'!$C71=\"ROC\",'Enrollment Form'!$DT71=\"\"),\"N\",IF(AND('Enrollment Form'!$C71=\"Enroll\",'Enrollment Form'!$B71=\"Subscriber\",'Enrollment Form'!$CQ71=\"No\",'Enrollment Form'!$DT71=\"\"),\"N\",IF(AND('Enrollment Form'!$C71=\"Enroll\",'Enrollment Form'!$B71=\"Subscriber\",'Enrollment Form'!$CQ71=\"Yes\"),\"-\",\"Y\")))))","v":""},{"$f":"IF('Enrollment Form'!AH71=\"\",\"\",IF(ISERROR(SEARCH(\".\",'Enrollment Form'!AH71,SEARCH(\"@\",'Enrollment Form'!AH71))),\"N\",\"Y\"))","v":""},{"$f":"IF(OR($B64=\"N\",'Enrollment Form'!$G71=\"\"),\"\",IF('Enrollment Form'!$B71<>\"Subscriber\",\"-\",IF(COUNTIF('Enrollment Form'!$AS71:$AT71,\"Yes\")=2,\"N\",\"Y\")))","v":""},{"$f":"IF(OR('Enrollment Form'!$CC71=\"\",'Enrollment Form'!$CC71=\"No\"),\"-\",IF(AND('Enrollment Form'!$CC71=\"Yes\",'Enrollment Form'!$CD71=\"\"),\"N\",\"Y\"))","v":"-"},{"$f":"IF(OR('Enrollment Form'!$CE71=\"\",'Enrollment Form'!$CE71=\"No\"),\"-\",IF(AND('Enrollment Form'!$CE71=\"Yes\",'Enrollment Form'!$CF71=\"\"),\"N\",\"Y\"))","v":"-"},{"$f":"IF(OR('Enrollment Form'!$CG71=\"\",'Enrollment Form'!$CG71=\"No\"),\"-\",IF(AND('Enrollment Form'!$CG71=\"Yes\",'Enrollment Form'!$CH71=\"\"),\"N\",\"Y\"))","v":"-"},{"$f":"IF(OR('Enrollment Form'!$CG71=\"\",'Enrollment Form'!$CG71=\"No\"),\"-\",IF(AND('Enrollment Form'!$CG71=\"Yes\",'Enrollment Form'!$CI71=\"\"),\"N\",\"Y\"))","v":"-"},{"$f":"IF('Enrollment Form'!B71<>\"Subscriber\",\"-\",IF(AND('Enrollment Form'!B71=\"Subscriber\",'Enrollment Form'!C71=\"Enroll\",'Enrollment Form'!AA71=\"\"),\"N\",\"Y\"))","v":"-"},{"$f":"IF(OR('Enrollment Form'!B71=\"Subscriber\",'Enrollment Form'!B71=\"\"),\"-\",IF('Enrollment Form'!BI71=\"\",\"N\",\"Y\"))","v":"-"},{"$f":"IF('Enrollment Form'!B71<>\"Subscriber\",\"-\",IF(AND('Enrollment Form'!B71=\"Subscriber\",'Enrollment Form'!G71=\"\"),\"N\",\"Y\"))","v":"-"},{"$f":"IF('Enrollment Form'!A71=\"\",\"\",IF('Enrollment Form'!B71=\"Subscriber\",\"-\",IF(AND('Enrollment Form'!B71<>\"Subscriber\",'Enrollment Form'!G71='Enrollment Form'!H71),\"N\",\"Y\")))","v":""},0]
[72,{"$f":"IF('Enrollment Form'!$A72<>\"\",\"Y\",\"N\")","v":"N"},{"$f":"IF(AND('Enrollment Form'!$B72=\"\",'Enrollment Form'!$C72<>\"\"),\"N\",IF($B65=\"N\",\"\",\"Y\"))","v":""},{"$f":"IF(OR($B65=\"N\",'Enrollment Form'!G72=\"\"),\"\",IF('Enrollment Form'!$B72<>\"Subscriber\",\"\",IF('Enrollment Form'!$G72='Enrollment Form'!$H72,\"Y\",\"N\")))","v":""},{"$f":"IF($B65=\"N\",\"\",IF(AND(COUNTIFS('Enrollment Form'!$H$11:$H$1000,'Enrollment Form'!$H72,'Enrollment Form'!$B$11:$B$1000,'Enrollment Form'!$B72)>1,'Enrollment Form'!$H72<>\"\"),\"N\",\"Y\"))","v":""},{"$f":"IF($B65=\"N\",\"\",IF(LEN('Enrollment Form'!$Y72)=0,\"\",IF(LEN('Enrollment Form'!$Y72)<>5,\"N\",\"Y\")))","v":""},{"$f":"IF($B65=\"N\",\"\",IF(LEN('Enrollment Form'!$AD72=0),\"\",IF(LEN('Enrollment Form'!$AD72)<>5,\"N\",\"Y\")))","v":""},{"$f":"IF($B65=\"N\",\"\",IF(LEN('Enrollment Form'!$BL72=0),\"\",IF(LEN('Enrollment Form'!$BL72)<>5,\"N\",\"Y\")))","v":""},{"$f":"IF($B65=\"N\",\"\",IF(LEN('Enrollment Form'!$AE72)=0,\"\",IF(LEN('Enrollment Form'!$AE72)<>10,\"N\",\"Y\")))","v":""},{"$f":"IF($B65=\"N\",\"\",IF(LEN('Enrollment Form'!$AF72)=0,\"\",IF(LEN('Enrollment Form'!$AF72)<>10,\"N\",\"Y\")))","v":""},{"$f":"IF('Enrollment Form'!$O72<>\"Graded\",\"-\",IF(AND('Enrollment Form'!$O72=\"Graded\",'Enrollment Form'!$AO72<>\"\"),\"Y\",\"N\"))","v":"-"},{"$f":"IF($B65=\"N\",\"\",IF(OR('Enrollment Form'!$B72<>\"Subscriber\",'Enrollment Form'!$C72=\"ROC\"),\"-\",IF(AND('Enrollment Form'!$B72=\"Subscriber\",'Enrollment Form'!$C72=\"Enroll\",'Enrollment Form'!$AJ72<>\"\"),\"Y\",\"N\")))","v":""},{"$f":"IF($B65=\"N\",\"\",IF(OR('Enrollment Form'!$B72<>\"Subscriber\",'Enrollment Form'!$C72=\"ROC\"),\"-\",IF(AND('Enrollment Form'!$B72=\"Subscriber\",'Enrollment Form'!$C72=\"Enroll\",'Enrollment Form'!$AK72<>\"\"),\"Y\",\"N\")))","v":""},{"$f":"IF($B65=\"N\",\"\",IF(OR('Enrollment Form'!$B72<>\"Subscriber\",'Enrollment Form'!$C72=\"ROC\"),\"-\",IF(AND('Enrollment Form'!$B72=\"Subscriber\",'Enrollment Form'!$C72=\"Enroll\",'Enrollment Form'!$AL72<>\"\"),\"Y\",\"N\")))","v":""},{"$f":"IF($B65=\"N\",\"\",IF(OR('Enrollment Form'!$B72<>\"Subscriber\",'Enrollment Form'!$C72=\"ROC\"),\"-\",IF(AND('Enrollment Form'!$B72=\"Subscriber\",'Enrollment Form'!$C72=\"Enroll\",'Enrollment Form'!$AM72<>\"\"),\"Y\",\"N\")))","v":""},{"$f":"IF($B65=\"N\",\"\",IF(OR('Enrollment Form'!$B72<>\"Subscriber\",'Enrollment Form'!$C72=\"ROC\"),\"-\",IF(AND('Enrollment Form'!$B72=\"Subscriber\",'Enrollment Form'!$C72=\"Enroll\",'Enrollment Form'!$AN72<>\"\"),\"Y\",\"N\")))","v":""},{"$f":"IF($B65=\"N\",\"\",IF(OR('Enrollment Form'!$B72<>\"Subscriber\",'Enrollment Form'!$C72=\"ROC\"),\"-\",IF(AND('Enrollment Form'!$B72=\"Subscriber\",'Enrollment Form'!$C72=\"Enroll\",'Enrollment Form'!$AP72<>\"\"),\"Y\",\"N\")))","v":""},{"$f":"IF($B65=\"N\",\"\",IF($Q65=\"-\",\"-\",IF(AND($Q65=\"Y\",'Enrollment Form'!$AP72=\"No\"),\"-\",IF(AND($Q65=\"Y\",'Enrollment Form'!$AP72=\"Yes\",'Enrollment Form'!$AQ72<>\"\"),\"Y\",\"N\"))))","v":""},{"$f":"IF($B65=\"N\",\"\",IF(OR('Enrollment Form'!$B72<>\"Subscriber\",'Enrollment Form'!$C72=\"ROC\"),\"-\",IF(AND('Enrollment Form'!$B72=\"Subscriber\",'Enrollment Form'!$C72=\"Enroll\",'Enrollment Form'!$CO72<>\"\"),\"Y\",\"N\")))","v":""},{"$f":"IF($B65=\"N\",\"\",IF($S65=\"-\",\"-\",IF(AND($S65=\"Y\",'Enrollment Form'!$CO72=\"No\"),\"-\",IF(AND($S65=\"Y\",'Enrollment Form'!$CO72=\"Yes\",'Enrollment Form'!$CP72<>\"\"),\"Y\",\"N\"))))","v":""},{"$f":"IF(OR('Enrollment Form'!$AV72=\"Yes\",'Enrollment Form'!$AV72=\"\"),\"-\",IF(AND('Enrollment Form'!$AV72=\"No\",ISERROR(FIND(\"HMO\",VLOOKUP('Enrollment Form'!G72,'Enrollment Form'!H$11:J$1000,3,FALSE),1))=FALSE,COUNTA('Enrollment Form'!$AW72:$AZ72)=4),\"Y\",\"N\"))","v":"-"},{"$f":"IF($B65=\"N\",\"\",IF('Enrollment Form'!$B72=\"Subscriber\",\"-\",IF(COUNTA('Enrollment Form'!$BE72,'Enrollment Form'!$BG72)=2,\"Y\",\"N\")))","v":""},{"$f":"IF($B65=\"N\",\"\",IF(OR('Enrollment Form'!$AU72=\"\",'Enrollment Form'!$AU72=\"No\"),\"-\",IF(AND('Enrollment Form'!$AU72=\"Yes\",COUNTA('Enrollment Form'!$CK72)=1),\"Y\",\"N\")))","v":""},{"$f":"IF(OR('Enrollment Form'!$CK72=\"\",'Enrollment Form'!$CK72=\"No\"),\"-\",IF(COUNTA('Enrollment Form'!$CM72:$CN72)=2,\"Y\",\"N\"))","v":"-"},{"$f":"IF($B65=\"N\",\"\",IF(COUNTIF('Enrollment Form'!$CZ72:$DO72,\"Other\")=COUNTA('Enrollment Form'!$DF72,'Enrollment Form'!$DA72,'Enrollment Form'!$DK72,'Enrollment Form'!$DP72),\"Y\",\"N\"))","v":""},{"$f":"IF($B65=\"N\",\"\",IF(OR('Enrollment Form'!B72<>\"Subscriber\",'Enrollment Form'!C72=\"ROC\",COUNTIF('Enrollment Form'!AS72:AT72,\"Yes\")>=1),\"-\",IF(AND('Enrollment Form'!C72=\"Enroll\",COUNTIF('Enrollment Form'!AS72:AT72,\"No\")=2,'Enrollment Form'!AU72=\"\"),\"N\",\"Y\")))","v":""},{"$f":"IF(OR(B65=\"N\",'Enrollment Form'!B72<>\"Subscriber\",'Enrollment Form'!C72=\"ROC\",'Enrollment Form'!O72<>\"Multiple of Salary\"),\"-\",IF(COUNTA('Enrollment Form'!T72:U72)<2,\"N\",\"Y\"))","v":"-"},{"$f":"IF(B65=\"N\",\"\",IF(OR('Enrollment Form'!C72=\"ROC\",'Enrollment Form'!B72<>\"Subscriber\",'Enrollment Form'!O72=\"Waive\",'Enrollment Form'!O72=\"\"),\"-\",IF('Enrollment Form'!P72=\"\",\"N\",\"Y\")))","v":""},{"$f":"IF($B65=\"N\",\"\",IF(AND('Enrollment Form'!$C72=\"ROC\",'Enrollment Form'!$DS72<>\"\"),\"Y\",IF(AND('Enrollment Form'!$C72=\"ROC\",'Enrollment Form'!$DS72=\"\"),\"N\",IF(AND('Enrollment Form'!$C72=\"Enroll\",'Enrollment Form'!$B72=\"Subscriber\",'Enrollment Form'!$CQ72=\"No\",'Enrollment Form'!$DS72=\"\"),\"N\",IF(AND('Enrollment Form'!$C72=\"Enroll\",'Enrollment Form'!$B72=\"Subscriber\",'Enrollment Form'!$CQ72=\"Yes\"),\"-\",\"Y\")))))","v":""},{"$f":"IF($B65=\"N\",\"\",IF(AND('Enrollment Form'!$C72=\"ROC\",'Enrollment Form'!$DT72<>\"\"),\"Y\",IF(AND('Enrollment Form'!$C72=\"ROC\",'Enrollment Form'!$DT72=\"\"),\"N\",IF(AND('Enrollment Form'!$C72=\"Enroll\",'Enrollment Form'!$B72=\"Subscriber\",'Enrollment Form'!$CQ72=\"No\",'Enrollment Form'!$DT72=\"\"),\"N\",IF(AND('Enrollment Form'!$C72=\"Enroll\",'Enrollment Form'!$B72=\"Subscriber\",'Enrollment Form'!$CQ72=\"Yes\"),\"-\",\"Y\")))))","v":""},{"$f":"IF('Enrollment Form'!AH72=\"\",\"\",IF(ISERROR(SEARCH(\".\",'Enrollment Form'!AH72,SEARCH(\"@\",'Enrollment Form'!AH72))),\"N\",\"Y\"))","v":""},{"$f":"IF(OR($B65=\"N\",'Enrollment Form'!$G72=\"\"),\"\",IF('Enrollment Form'!$B72<>\"Subscriber\",\"-\",IF(COUNTIF('Enrollment Form'!$AS72:$AT72,\"Yes\")=2,\"N\",\"Y\")))","v":""},{"$f":"IF(OR('Enrollment Form'!$CC72=\"\",'Enrollment Form'!$CC72=\"No\"),\"-\",IF(AND('Enrollment Form'!$CC72=\"Yes\",'Enrollment Form'!$CD72=\"\"),\"N\",\"Y\"))","v":"-"},{"$f":"IF(OR('Enrollment Form'!$CE72=\"\",'Enrollment Form'!$CE72=\"No\"),\"-\",IF(AND('Enrollment Form'!$CE72=\"Yes\",'Enrollment Form'!$CF72=\"\"),\"N\",\"Y\"))","v":"-"},{"$f":"IF(OR('Enrollment Form'!$CG72=\"\",'Enrollment Form'!$CG72=\"No\"),\"-\",IF(AND('Enrollment Form'!$CG72=\"Yes\",'Enrollment Form'!$CH72=\"\"),\"N\",\"Y\"))","v":"-"},{"$f":"IF(OR('Enrollment Form'!$CG72=\"\",'Enrollment Form'!$CG72=\"No\"),\"-\",IF(AND('Enrollment Form'!$CG72=\"Yes\",'Enrollment Form'!$CI72=\"\"),\"N\",\"Y\"))","v":"-"},{"$f":"IF('Enrollment Form'!B72<>\"Subscriber\",\"-\",IF(AND('Enrollment Form'!B72=\"Subscriber\",'Enrollment Form'!C72=\"Enroll\",'Enrollment Form'!AA72=\"\"),\"N\",\"Y\"))","v":"-"},{"$f":"IF(OR('Enrollment Form'!B72=\"Subscriber\",'Enrollment Form'!B72=\"\"),\"-\",IF('Enrollment Form'!BI72=\"\",\"N\",\"Y\"))","v":"-"},{"$f":"IF('Enrollment Form'!B72<>\"Subscriber\",\"-\",IF(AND('Enrollment Form'!B72=\"Subscriber\",'Enrollment Form'!G72=\"\"),\"N\",\"Y\"))","v":"-"},{"$f":"IF('Enrollment Form'!A72=\"\",\"\",IF('Enrollment Form'!B72=\"Subscriber\",\"-\",IF(AND('Enrollment Form'!B72<>\"Subscriber\",'Enrollment Form'!G72='Enrollment Form'!H72),\"N\",\"Y\")))","v":""},0]
[73,{"$f":"IF('Enrollment Form'!$A73<>\"\",\"Y\",\"N\")","v":"N"},{"$f":"IF(AND('Enrollment Form'!$B73=\"\",'Enrollment Form'!$C73<>\"\"),\"N\",IF($B66=\"N\",\"\",\"Y\"))","v":""},{"$f":"IF(OR($B66=\"N\",'Enrollment Form'!G73=\"\"),\"\",IF('Enrollment Form'!$B73<>\"Subscriber\",\"\",IF('Enrollment Form'!$G73='Enrollment Form'!$H73,\"Y\",\"N\")))","v":""},{"$f":"IF($B66=\"N\",\"\",IF(AND(COUNTIFS('Enrollment Form'!$H$11:$H$1000,'Enrollment Form'!$H73,'Enrollment Form'!$B$11:$B$1000,'Enrollment Form'!$B73)>1,'Enrollment Form'!$H73<>\"\"),\"N\",\"Y\"))","v":""},{"$f":"IF($B66=\"N\",\"\",IF(LEN('Enrollment Form'!$Y73)=0,\"\",IF(LEN('Enrollment Form'!$Y73)<>5,\"N\",\"Y\")))","v":""},{"$f":"IF($B66=\"N\",\"\",IF(LEN('Enrollment Form'!$AD73=0),\"\",IF(LEN('Enrollment Form'!$AD73)<>5,\"N\",\"Y\")))","v":""},{"$f":"IF($B66=\"N\",\"\",IF(LEN('Enrollment Form'!$BL73=0),\"\",IF(LEN('Enrollment Form'!$BL73)<>5,\"N\",\"Y\")))","v":""},{"$f":"IF($B66=\"N\",\"\",IF(LEN('Enrollment Form'!$AE73)=0,\"\",IF(LEN('Enrollment Form'!$AE73)<>10,\"N\",\"Y\")))","v":""},{"$f":"IF($B66=\"N\",\"\",IF(LEN('Enrollment Form'!$AF73)=0,\"\",IF(LEN('Enrollment Form'!$AF73)<>10,\"N\",\"Y\")))","v":""},{"$f":"IF('Enrollment Form'!$O73<>\"Graded\",\"-\",IF(AND('Enrollment Form'!$O73=\"Graded\",'Enrollment Form'!$AO73<>\"\"),\"Y\",\"N\"))","v":"-"},{"$f":"IF($B66=\"N\",\"\",IF(OR('Enrollment Form'!$B73<>\"Subscriber\",'Enrollment Form'!$C73=\"ROC\"),\"-\",IF(AND('Enrollment Form'!$B73=\"Subscriber\",'Enrollment Form'!$C73=\"Enroll\",'Enrollment Form'!$AJ73<>\"\"),\"Y\",\"N\")))","v":""},{"$f":"IF($B66=\"N\",\"\",IF(OR('Enrollment Form'!$B73<>\"Subscriber\",'Enrollment Form'!$C73=\"ROC\"),\"-\",IF(AND('Enrollment Form'!$B73=\"Subscriber\",'Enrollment Form'!$C73=\"Enroll\",'Enrollment Form'!$AK73<>\"\"),\"Y\",\"N\")))","v":""},{"$f":"IF($B66=\"N\",\"\",IF(OR('Enrollment Form'!$B73<>\"Subscriber\",'Enrollment Form'!$C73=\"ROC\"),\"-\",IF(AND('Enrollment Form'!$B73=\"Subscriber\",'Enrollment Form'!$C73=\"Enroll\",'Enrollment Form'!$AL73<>\"\"),\"Y\",\"N\")))","v":""},{"$f":"IF($B66=\"N\",\"\",IF(OR('Enrollment Form'!$B73<>\"Subscriber\",'Enrollment Form'!$C73=\"ROC\"),\"-\",IF(AND('Enrollment Form'!$B73=\"Subscriber\",'Enrollment Form'!$C73=\"Enroll\",'Enrollment Form'!$AM73<>\"\"),\"Y\",\"N\")))","v":""},{"$f":"IF($B66=\"N\",\"\",IF(OR('Enrollment Form'!$B73<>\"Subscriber\",'Enrollment Form'!$C73=\"ROC\"),\"-\",IF(AND('Enrollment Form'!$B73=\"Subscriber\",'Enrollment Form'!$C73=\"Enroll\",'Enrollment Form'!$AN73<>\"\"),\"Y\",\"N\")))","v":""},{"$f":"IF($B66=\"N\",\"\",IF(OR('Enrollment Form'!$B73<>\"Subscriber\",'Enrollment Form'!$C73=\"ROC\"),\"-\",IF(AND('Enrollment Form'!$B73=\"Subscriber\",'Enrollment Form'!$C73=\"Enroll\",'Enrollment Form'!$AP73<>\"\"),\"Y\",\"N\")))","v":""},{"$f":"IF($B66=\"N\",\"\",IF($Q66=\"-\",\"-\",IF(AND($Q66=\"Y\",'Enrollment Form'!$AP73=\"No\"),\"-\",IF(AND($Q66=\"Y\",'Enrollment Form'!$AP73=\"Yes\",'Enrollment Form'!$AQ73<>\"\"),\"Y\",\"N\"))))","v":""},{"$f":"IF($B66=\"N\",\"\",IF(OR('Enrollment Form'!$B73<>\"Subscriber\",'Enrollment Form'!$C73=\"ROC\"),\"-\",IF(AND('Enrollment Form'!$B73=\"Subscriber\",'Enrollment Form'!$C73=\"Enroll\",'Enrollment Form'!$CO73<>\"\"),\"Y\",\"N\")))","v":""},{"$f":"IF($B66=\"N\",\"\",IF($S66=\"-\",\"-\",IF(AND($S66=\"Y\",'Enrollment Form'!$CO73=\"No\"),\"-\",IF(AND($S66=\"Y\",'Enrollment Form'!$CO73=\"Yes\",'Enrollment Form'!$CP73<>\"\"),\"Y\",\"N\"))))","v":""},{"$f":"IF(OR('Enrollment Form'!$AV73=\"Yes\",'Enrollment Form'!$AV73=\"\"),\"-\",IF(AND('Enrollment Form'!$AV73=\"No\",ISERROR(FIND(\"HMO\",VLOOKUP('Enrollment Form'!G73,'Enrollment Form'!H$11:J$1000,3,FALSE),1))=FALSE,COUNTA('Enrollment Form'!$AW73:$AZ73)=4),\"Y\",\"N\"))","v":"-"},{"$f":"IF($B66=\"N\",\"\",IF('Enrollment Form'!$B73=\"Subscriber\",\"-\",IF(COUNTA('Enrollment Form'!$BE73,'Enrollment Form'!$BG73)=2,\"Y\",\"N\")))","v":""},{"$f":"IF($B66=\"N\",\"\",IF(OR('Enrollment Form'!$AU73=\"\",'Enrollment Form'!$AU73=\"No\"),\"-\",IF(AND('Enrollment Form'!$AU73=\"Yes\",COUNTA('Enrollment Form'!$CK73)=1),\"Y\",\"N\")))","v":""},{"$f":"IF(OR('Enrollment Form'!$CK73=\"\",'Enrollment Form'!$CK73=\"No\"),\"-\",IF(COUNTA('Enrollment Form'!$CM73:$CN73)=2,\"Y\",\"N\"))","v":"-"},{"$f":"IF($B66=\"N\",\"\",IF(COUNTIF('Enrollment Form'!$CZ73:$DO73,\"Other\")=COUNTA('Enrollment Form'!$DF73,'Enrollment Form'!$DA73,'Enrollment Form'!$DK73,'Enrollment Form'!$DP73),\"Y\",\"N\"))","v":""},{"$f":"IF($B66=\"N\",\"\",IF(OR('Enrollment Form'!B73<>\"Subscriber\",'Enrollment Form'!C73=\"ROC\",COUNTIF('Enrollment Form'!AS73:AT73,\"Yes\")>=1),\"-\",IF(AND('Enrollment Form'!C73=\"Enroll\",COUNTIF('Enrollment Form'!AS73:AT73,\"No\")=2,'Enrollment Form'!AU73=\"\"),\"N\",\"Y\")))","v":""},{"$f":"IF(OR(B66=\"N\",'Enrollment Form'!B73<>\"Subscriber\",'Enrollment Form'!C73=\"ROC\",'Enrollment Form'!O73<>\"Multiple of Salary\"),\"-\",IF(COUNTA('Enrollment Form'!T73:U73)<2,\"N\",\"Y\"))","v":"-"},{"$f":"IF(B66=\"N\",\"\",IF(OR('Enrollment Form'!C73=\"ROC\",'Enrollment Form'!B73<>\"Subscriber\",'Enrollment Form'!O73=\"Waive\",'Enrollment Form'!O73=\"\"),\"-\",IF('Enrollment Form'!P73=\"\",\"N\",\"Y\")))","v":""},{"$f":"IF($B66=\"N\",\"\",IF(AND('Enrollment Form'!$C73=\"ROC\",'Enrollment Form'!$DS73<>\"\"),\"Y\",IF(AND('Enrollment Form'!$C73=\"ROC\",'Enrollment Form'!$DS73=\"\"),\"N\",IF(AND('Enrollment Form'!$C73=\"Enroll\",'Enrollment Form'!$B73=\"Subscriber\",'Enrollment Form'!$CQ73=\"No\",'Enrollment Form'!$DS73=\"\"),\"N\",IF(AND('Enrollment Form'!$C73=\"Enroll\",'Enrollment Form'!$B73=\"Subscriber\",'Enrollment Form'!$CQ73=\"Yes\"),\"-\",\"Y\")))))","v":""},{"$f":"IF($B66=\"N\",\"\",IF(AND('Enrollment Form'!$C73=\"ROC\",'Enrollment Form'!$DT73<>\"\"),\"Y\",IF(AND('Enrollment Form'!$C73=\"ROC\",'Enrollment Form'!$DT73=\"\"),\"N\",IF(AND('Enrollment Form'!$C73=\"Enroll\",'Enrollment Form'!$B73=\"Subscriber\",'Enrollment Form'!$CQ73=\"No\",'Enrollment Form'!$DT73=\"\"),\"N\",IF(AND('Enrollment Form'!$C73=\"Enroll\",'Enrollment Form'!$B73=\"Subscriber\",'Enrollment Form'!$CQ73=\"Yes\"),\"-\",\"Y\")))))","v":""},{"$f":"IF('Enrollment Form'!AH73=\"\",\"\",IF(ISERROR(SEARCH(\".\",'Enrollment Form'!AH73,SEARCH(\"@\",'Enrollment Form'!AH73))),\"N\",\"Y\"))","v":""},{"$f":"IF(OR($B66=\"N\",'Enrollment Form'!$G73=\"\"),\"\",IF('Enrollment Form'!$B73<>\"Subscriber\",\"-\",IF(COUNTIF('Enrollment Form'!$AS73:$AT73,\"Yes\")=2,\"N\",\"Y\")))","v":""},{"$f":"IF(OR('Enrollment Form'!$CC73=\"\",'Enrollment Form'!$CC73=\"No\"),\"-\",IF(AND('Enrollment Form'!$CC73=\"Yes\",'Enrollment Form'!$CD73=\"\"),\"N\",\"Y\"))","v":"-"},{"$f":"IF(OR('Enrollment Form'!$CE73=\"\",'Enrollment Form'!$CE73=\"No\"),\"-\",IF(AND('Enrollment Form'!$CE73=\"Yes\",'Enrollment Form'!$CF73=\"\"),\"N\",\"Y\"))","v":"-"},{"$f":"IF(OR('Enrollment Form'!$CG73=\"\",'Enrollment Form'!$CG73=\"No\"),\"-\",IF(AND('Enrollment Form'!$CG73=\"Yes\",'Enrollment Form'!$CH73=\"\"),\"N\",\"Y\"))","v":"-"},{"$f":"IF(OR('Enrollment Form'!$CG73=\"\",'Enrollment Form'!$CG73=\"No\"),\"-\",IF(AND('Enrollment Form'!$CG73=\"Yes\",'Enrollment Form'!$CI73=\"\"),\"N\",\"Y\"))","v":"-"},{"$f":"IF('Enrollment Form'!B73<>\"Subscriber\",\"-\",IF(AND('Enrollment Form'!B73=\"Subscriber\",'Enrollment Form'!C73=\"Enroll\",'Enrollment Form'!AA73=\"\"),\"N\",\"Y\"))","v":"-"},{"$f":"IF(OR('Enrollment Form'!B73=\"Subscriber\",'Enrollment Form'!B73=\"\"),\"-\",IF('Enrollment Form'!BI73=\"\",\"N\",\"Y\"))","v":"-"},{"$f":"IF('Enrollment Form'!B73<>\"Subscriber\",\"-\",IF(AND('Enrollment Form'!B73=\"Subscriber\",'Enrollment Form'!G73=\"\"),\"N\",\"Y\"))","v":"-"},{"$f":"IF('Enrollment Form'!A73=\"\",\"\",IF('Enrollment Form'!B73=\"Subscriber\",\"-\",IF(AND('Enrollment Form'!B73<>\"Subscriber\",'Enrollment Form'!G73='Enrollment Form'!H73),\"N\",\"Y\")))","v":""},0]
[74,{"$f":"IF('Enrollment Form'!$A74<>\"\",\"Y\",\"N\")","v":"N"},{"$f":"IF(AND('Enrollment Form'!$B74=\"\",'Enrollment Form'!$C74<>\"\"),\"N\",IF($B67=\"N\",\"\",\"Y\"))","v":""},{"$f":"IF(OR($B67=\"N\",'Enrollment Form'!G74=\"\"),\"\",IF('Enrollment Form'!$B74<>\"Subscriber\",\"\",IF('Enrollment Form'!$G74='Enrollment Form'!$H74,\"Y\",\"N\")))","v":""},{"$f":"IF($B67=\"N\",\"\",IF(AND(COUNTIFS('Enrollment Form'!$H$11:$H$1000,'Enrollment Form'!$H74,'Enrollment Form'!$B$11:$B$1000,'Enrollment Form'!$B74)>1,'Enrollment Form'!$H74<>\"\"),\"N\",\"Y\"))","v":""},{"$f":"IF($B67=\"N\",\"\",IF(LEN('Enrollment Form'!$Y74)=0,\"\",IF(LEN('Enrollment Form'!$Y74)<>5,\"N\",\"Y\")))","v":""},{"$f":"IF($B67=\"N\",\"\",IF(LEN('Enrollment Form'!$AD74=0),\"\",IF(LEN('Enrollment Form'!$AD74)<>5,\"N\",\"Y\")))","v":""},{"$f":"IF($B67=\"N\",\"\",IF(LEN('Enrollment Form'!$BL74=0),\"\",IF(LEN('Enrollment Form'!$BL74)<>5,\"N\",\"Y\")))","v":""},{"$f":"IF($B67=\"N\",\"\",IF(LEN('Enrollment Form'!$AE74)=0,\"\",IF(LEN('Enrollment Form'!$AE74)<>10,\"N\",\"Y\")))","v":""},{"$f":"IF($B67=\"N\",\"\",IF(LEN('Enrollment Form'!$AF74)=0,\"\",IF(LEN('Enrollment Form'!$AF74)<>10,\"N\",\"Y\")))","v":""},{"$f":"IF('Enrollment Form'!$O74<>\"Graded\",\"-\",IF(AND('Enrollment Form'!$O74=\"Graded\",'Enrollment Form'!$AO74<>\"\"),\"Y\",\"N\"))","v":"-"},{"$f":"IF($B67=\"N\",\"\",IF(OR('Enrollment Form'!$B74<>\"Subscriber\",'Enrollment Form'!$C74=\"ROC\"),\"-\",IF(AND('Enrollment Form'!$B74=\"Subscriber\",'Enrollment Form'!$C74=\"Enroll\",'Enrollment Form'!$AJ74<>\"\"),\"Y\",\"N\")))","v":""},{"$f":"IF($B67=\"N\",\"\",IF(OR('Enrollment Form'!$B74<>\"Subscriber\",'Enrollment Form'!$C74=\"ROC\"),\"-\",IF(AND('Enrollment Form'!$B74=\"Subscriber\",'Enrollment Form'!$C74=\"Enroll\",'Enrollment Form'!$AK74<>\"\"),\"Y\",\"N\")))","v":""},{"$f":"IF($B67=\"N\",\"\",IF(OR('Enrollment Form'!$B74<>\"Subscriber\",'Enrollment Form'!$C74=\"ROC\"),\"-\",IF(AND('Enrollment Form'!$B74=\"Subscriber\",'Enrollment Form'!$C74=\"Enroll\",'Enrollment Form'!$AL74<>\"\"),\"Y\",\"N\")))","v":""},{"$f":"IF($B67=\"N\",\"\",IF(OR('Enrollment Form'!$B74<>\"Subscriber\",'Enrollment Form'!$C74=\"ROC\"),\"-\",IF(AND('Enrollment Form'!$B74=\"Subscriber\",'Enrollment Form'!$C74=\"Enroll\",'Enrollment Form'!$AM74<>\"\"),\"Y\",\"N\")))","v":""},{"$f":"IF($B67=\"N\",\"\",IF(OR('Enrollment Form'!$B74<>\"Subscriber\",'Enrollment Form'!$C74=\"ROC\"),\"-\",IF(AND('Enrollment Form'!$B74=\"Subscriber\",'Enrollment Form'!$C74=\"Enroll\",'Enrollment Form'!$AN74<>\"\"),\"Y\",\"N\")))","v":""},{"$f":"IF($B67=\"N\",\"\",IF(OR('Enrollment Form'!$B74<>\"Subscriber\",'Enrollment Form'!$C74=\"ROC\"),\"-\",IF(AND('Enrollment Form'!$B74=\"Subscriber\",'Enrollment Form'!$C74=\"Enroll\",'Enrollment Form'!$AP74<>\"\"),\"Y\",\"N\")))","v":""},{"$f":"IF($B67=\"N\",\"\",IF($Q67=\"-\",\"-\",IF(AND($Q67=\"Y\",'Enrollment Form'!$AP74=\"No\"),\"-\",IF(AND($Q67=\"Y\",'Enrollment Form'!$AP74=\"Yes\",'Enrollment Form'!$AQ74<>\"\"),\"Y\",\"N\"))))","v":""},{"$f":"IF($B67=\"N\",\"\",IF(OR('Enrollment Form'!$B74<>\"Subscriber\",'Enrollment Form'!$C74=\"ROC\"),\"-\",IF(AND('Enrollment Form'!$B74=\"Subscriber\",'Enrollment Form'!$C74=\"Enroll\",'Enrollment Form'!$CO74<>\"\"),\"Y\",\"N\")))","v":""},{"$f":"IF($B67=\"N\",\"\",IF($S67=\"-\",\"-\",IF(AND($S67=\"Y\",'Enrollment Form'!$CO74=\"No\"),\"-\",IF(AND($S67=\"Y\",'Enrollment Form'!$CO74=\"Yes\",'Enrollment Form'!$CP74<>\"\"),\"Y\",\"N\"))))","v":""},{"$f":"IF(OR('Enrollment Form'!$AV74=\"Yes\",'Enrollment Form'!$AV74=\"\"),\"-\",IF(AND('Enrollment Form'!$AV74=\"No\",ISERROR(FIND(\"HMO\",VLOOKUP('Enrollment Form'!G74,'Enrollment Form'!H$11:J$1000,3,FALSE),1))=FALSE,COUNTA('Enrollment Form'!$AW74:$AZ74)=4),\"Y\",\"N\"))","v":"-"},{"$f":"IF($B67=\"N\",\"\",IF('Enrollment Form'!$B74=\"Subscriber\",\"-\",IF(COUNTA('Enrollment Form'!$BE74,'Enrollment Form'!$BG74)=2,\"Y\",\"N\")))","v":""},{"$f":"IF($B67=\"N\",\"\",IF(OR('Enrollment Form'!$AU74=\"\",'Enrollment Form'!$AU74=\"No\"),\"-\",IF(AND('Enrollment Form'!$AU74=\"Yes\",COUNTA('Enrollment Form'!$CK74)=1),\"Y\",\"N\")))","v":""},{"$f":"IF(OR('Enrollment Form'!$CK74=\"\",'Enrollment Form'!$CK74=\"No\"),\"-\",IF(COUNTA('Enrollment Form'!$CM74:$CN74)=2,\"Y\",\"N\"))","v":"-"},{"$f":"IF($B67=\"N\",\"\",IF(COUNTIF('Enrollment Form'!$CZ74:$DO74,\"Other\")=COUNTA('Enrollment Form'!$DF74,'Enrollment Form'!$DA74,'Enrollment Form'!$DK74,'Enrollment Form'!$DP74),\"Y\",\"N\"))","v":""},{"$f":"IF($B67=\"N\",\"\",IF(OR('Enrollment Form'!B74<>\"Subscriber\",'Enrollment Form'!C74=\"ROC\",COUNTIF('Enrollment Form'!AS74:AT74,\"Yes\")>=1),\"-\",IF(AND('Enrollment Form'!C74=\"Enroll\",COUNTIF('Enrollment Form'!AS74:AT74,\"No\")=2,'Enrollment Form'!AU74=\"\"),\"N\",\"Y\")))","v":""},{"$f":"IF(OR(B67=\"N\",'Enrollment Form'!B74<>\"Subscriber\",'Enrollment Form'!C74=\"ROC\",'Enrollment Form'!O74<>\"Multiple of Salary\"),\"-\",IF(COUNTA('Enrollment Form'!T74:U74)<2,\"N\",\"Y\"))","v":"-"},{"$f":"IF(B67=\"N\",\"\",IF(OR('Enrollment Form'!C74=\"ROC\",'Enrollment Form'!B74<>\"Subscriber\",'Enrollment Form'!O74=\"Waive\",'Enrollment Form'!O74=\"\"),\"-\",IF('Enrollment Form'!P74=\"\",\"N\",\"Y\")))","v":""},{"$f":"IF($B67=\"N\",\"\",IF(AND('Enrollment Form'!$C74=\"ROC\",'Enrollment Form'!$DS74<>\"\"),\"Y\",IF(AND('Enrollment Form'!$C74=\"ROC\",'Enrollment Form'!$DS74=\"\"),\"N\",IF(AND('Enrollment Form'!$C74=\"Enroll\",'Enrollment Form'!$B74=\"Subscriber\",'Enrollment Form'!$CQ74=\"No\",'Enrollment Form'!$DS74=\"\"),\"N\",IF(AND('Enrollment Form'!$C74=\"Enroll\",'Enrollment Form'!$B74=\"Subscriber\",'Enrollment Form'!$CQ74=\"Yes\"),\"-\",\"Y\")))))","v":""},{"$f":"IF($B67=\"N\",\"\",IF(AND('Enrollment Form'!$C74=\"ROC\",'Enrollment Form'!$DT74<>\"\"),\"Y\",IF(AND('Enrollment Form'!$C74=\"ROC\",'Enrollment Form'!$DT74=\"\"),\"N\",IF(AND('Enrollment Form'!$C74=\"Enroll\",'Enrollment Form'!$B74=\"Subscriber\",'Enrollment Form'!$CQ74=\"No\",'Enrollment Form'!$DT74=\"\"),\"N\",IF(AND('Enrollment Form'!$C74=\"Enroll\",'Enrollment Form'!$B74=\"Subscriber\",'Enrollment Form'!$CQ74=\"Yes\"),\"-\",\"Y\")))))","v":""},{"$f":"IF('Enrollment Form'!AH74=\"\",\"\",IF(ISERROR(SEARCH(\".\",'Enrollment Form'!AH74,SEARCH(\"@\",'Enrollment Form'!AH74))),\"N\",\"Y\"))","v":""},{"$f":"IF(OR($B67=\"N\",'Enrollment Form'!$G74=\"\"),\"\",IF('Enrollment Form'!$B74<>\"Subscriber\",\"-\",IF(COUNTIF('Enrollment Form'!$AS74:$AT74,\"Yes\")=2,\"N\",\"Y\")))","v":""},{"$f":"IF(OR('Enrollment Form'!$CC74=\"\",'Enrollment Form'!$CC74=\"No\"),\"-\",IF(AND('Enrollment Form'!$CC74=\"Yes\",'Enrollment Form'!$CD74=\"\"),\"N\",\"Y\"))","v":"-"},{"$f":"IF(OR('Enrollment Form'!$CE74=\"\",'Enrollment Form'!$CE74=\"No\"),\"-\",IF(AND('Enrollment Form'!$CE74=\"Yes\",'Enrollment Form'!$CF74=\"\"),\"N\",\"Y\"))","v":"-"},{"$f":"IF(OR('Enrollment Form'!$CG74=\"\",'Enrollment Form'!$CG74=\"No\"),\"-\",IF(AND('Enrollment Form'!$CG74=\"Yes\",'Enrollment Form'!$CH74=\"\"),\"N\",\"Y\"))","v":"-"},{"$f":"IF(OR('Enrollment Form'!$CG74=\"\",'Enrollment Form'!$CG74=\"No\"),\"-\",IF(AND('Enrollment Form'!$CG74=\"Yes\",'Enrollment Form'!$CI74=\"\"),\"N\",\"Y\"))","v":"-"},{"$f":"IF('Enrollment Form'!B74<>\"Subscriber\",\"-\",IF(AND('Enrollment Form'!B74=\"Subscriber\",'Enrollment Form'!C74=\"Enroll\",'Enrollment Form'!AA74=\"\"),\"N\",\"Y\"))","v":"-"},{"$f":"IF(OR('Enrollment Form'!B74=\"Subscriber\",'Enrollment Form'!B74=\"\"),\"-\",IF('Enrollment Form'!BI74=\"\",\"N\",\"Y\"))","v":"-"},{"$f":"IF('Enrollment Form'!B74<>\"Subscriber\",\"-\",IF(AND('Enrollment Form'!B74=\"Subscriber\",'Enrollment Form'!G74=\"\"),\"N\",\"Y\"))","v":"-"},{"$f":"IF('Enrollment Form'!A74=\"\",\"\",IF('Enrollment Form'!B74=\"Subscriber\",\"-\",IF(AND('Enrollment Form'!B74<>\"Subscriber\",'Enrollment Form'!G74='Enrollment Form'!H74),\"N\",\"Y\")))","v":""},0]
[75,{"$f":"IF('Enrollment Form'!$A75<>\"\",\"Y\",\"N\")","v":"N"},{"$f":"IF(AND('Enrollment Form'!$B75=\"\",'Enrollment Form'!$C75<>\"\"),\"N\",IF($B68=\"N\",\"\",\"Y\"))","v":""},{"$f":"IF(OR($B68=\"N\",'Enrollment Form'!G75=\"\"),\"\",IF('Enrollment Form'!$B75<>\"Subscriber\",\"\",IF('Enrollment Form'!$G75='Enrollment Form'!$H75,\"Y\",\"N\")))","v":""},{"$f":"IF($B68=\"N\",\"\",IF(AND(COUNTIFS('Enrollment Form'!$H$11:$H$1000,'Enrollment Form'!$H75,'Enrollment Form'!$B$11:$B$1000,'Enrollment Form'!$B75)>1,'Enrollment Form'!$H75<>\"\"),\"N\",\"Y\"))","v":""},{"$f":"IF($B68=\"N\",\"\",IF(LEN('Enrollment Form'!$Y75)=0,\"\",IF(LEN('Enrollment Form'!$Y75)<>5,\"N\",\"Y\")))","v":""},{"$f":"IF($B68=\"N\",\"\",IF(LEN('Enrollment Form'!$AD75=0),\"\",IF(LEN('Enrollment Form'!$AD75)<>5,\"N\",\"Y\")))","v":""},{"$f":"IF($B68=\"N\",\"\",IF(LEN('Enrollment Form'!$BL75=0),\"\",IF(LEN('Enrollment Form'!$BL75)<>5,\"N\",\"Y\")))","v":""},{"$f":"IF($B68=\"N\",\"\",IF(LEN('Enrollment Form'!$AE75)=0,\"\",IF(LEN('Enrollment Form'!$AE75)<>10,\"N\",\"Y\")))","v":""},{"$f":"IF($B68=\"N\",\"\",IF(LEN('Enrollment Form'!$AF75)=0,\"\",IF(LEN('Enrollment Form'!$AF75)<>10,\"N\",\"Y\")))","v":""},{"$f":"IF('Enrollment Form'!$O75<>\"Graded\",\"-\",IF(AND('Enrollment Form'!$O75=\"Graded\",'Enrollment Form'!$AO75<>\"\"),\"Y\",\"N\"))","v":"-"},{"$f":"IF($B68=\"N\",\"\",IF(OR('Enrollment Form'!$B75<>\"Subscriber\",'Enrollment Form'!$C75=\"ROC\"),\"-\",IF(AND('Enrollment Form'!$B75=\"Subscriber\",'Enrollment Form'!$C75=\"Enroll\",'Enrollment Form'!$AJ75<>\"\"),\"Y\",\"N\")))","v":""},{"$f":"IF($B68=\"N\",\"\",IF(OR('Enrollment Form'!$B75<>\"Subscriber\",'Enrollment Form'!$C75=\"ROC\"),\"-\",IF(AND('Enrollment Form'!$B75=\"Subscriber\",'Enrollment Form'!$C75=\"Enroll\",'Enrollment Form'!$AK75<>\"\"),\"Y\",\"N\")))","v":""},{"$f":"IF($B68=\"N\",\"\",IF(OR('Enrollment Form'!$B75<>\"Subscriber\",'Enrollment Form'!$C75=\"ROC\"),\"-\",IF(AND('Enrollment Form'!$B75=\"Subscriber\",'Enrollment Form'!$C75=\"Enroll\",'Enrollment Form'!$AL75<>\"\"),\"Y\",\"N\")))","v":""},{"$f":"IF($B68=\"N\",\"\",IF(OR('Enrollment Form'!$B75<>\"Subscriber\",'Enrollment Form'!$C75=\"ROC\"),\"-\",IF(AND('Enrollment Form'!$B75=\"Subscriber\",'Enrollment Form'!$C75=\"Enroll\",'Enrollment Form'!$AM75<>\"\"),\"Y\",\"N\")))","v":""},{"$f":"IF($B68=\"N\",\"\",IF(OR('Enrollment Form'!$B75<>\"Subscriber\",'Enrollment Form'!$C75=\"ROC\"),\"-\",IF(AND('Enrollment Form'!$B75=\"Subscriber\",'Enrollment Form'!$C75=\"Enroll\",'Enrollment Form'!$AN75<>\"\"),\"Y\",\"N\")))","v":""},{"$f":"IF($B68=\"N\",\"\",IF(OR('Enrollment Form'!$B75<>\"Subscriber\",'Enrollment Form'!$C75=\"ROC\"),\"-\",IF(AND('Enrollment Form'!$B75=\"Subscriber\",'Enrollment Form'!$C75=\"Enroll\",'Enrollment Form'!$AP75<>\"\"),\"Y\",\"N\")))","v":""},{"$f":"IF($B68=\"N\",\"\",IF($Q68=\"-\",\"-\",IF(AND($Q68=\"Y\",'Enrollment Form'!$AP75=\"No\"),\"-\",IF(AND($Q68=\"Y\",'Enrollment Form'!$AP75=\"Yes\",'Enrollment Form'!$AQ75<>\"\"),\"Y\",\"N\"))))","v":""},{"$f":"IF($B68=\"N\",\"\",IF(OR('Enrollment Form'!$B75<>\"Subscriber\",'Enrollment Form'!$C75=\"ROC\"),\"-\",IF(AND('Enrollment Form'!$B75=\"Subscriber\",'Enrollment Form'!$C75=\"Enroll\",'Enrollment Form'!$CO75<>\"\"),\"Y\",\"N\")))","v":""},{"$f":"IF($B68=\"N\",\"\",IF($S68=\"-\",\"-\",IF(AND($S68=\"Y\",'Enrollment Form'!$CO75=\"No\"),\"-\",IF(AND($S68=\"Y\",'Enrollment Form'!$CO75=\"Yes\",'Enrollment Form'!$CP75<>\"\"),\"Y\",\"N\"))))","v":""},{"$f":"IF(OR('Enrollment Form'!$AV75=\"Yes\",'Enrollment Form'!$AV75=\"\"),\"-\",IF(AND('Enrollment Form'!$AV75=\"No\",ISERROR(FIND(\"HMO\",VLOOKUP('Enrollment Form'!G75,'Enrollment Form'!H$11:J$1000,3,FALSE),1))=FALSE,COUNTA('Enrollment Form'!$AW75:$AZ75)=4),\"Y\",\"N\"))","v":"-"},{"$f":"IF($B68=\"N\",\"\",IF('Enrollment Form'!$B75=\"Subscriber\",\"-\",IF(COUNTA('Enrollment Form'!$BE75,'Enrollment Form'!$BG75)=2,\"Y\",\"N\")))","v":""},{"$f":"IF($B68=\"N\",\"\",IF(OR('Enrollment Form'!$AU75=\"\",'Enrollment Form'!$AU75=\"No\"),\"-\",IF(AND('Enrollment Form'!$AU75=\"Yes\",COUNTA('Enrollment Form'!$CK75)=1),\"Y\",\"N\")))","v":""},{"$f":"IF(OR('Enrollment Form'!$CK75=\"\",'Enrollment Form'!$CK75=\"No\"),\"-\",IF(COUNTA('Enrollment Form'!$CM75:$CN75)=2,\"Y\",\"N\"))","v":"-"},{"$f":"IF($B68=\"N\",\"\",IF(COUNTIF('Enrollment Form'!$CZ75:$DO75,\"Other\")=COUNTA('Enrollment Form'!$DF75,'Enrollment Form'!$DA75,'Enrollment Form'!$DK75,'Enrollment Form'!$DP75),\"Y\",\"N\"))","v":""},{"$f":"IF($B68=\"N\",\"\",IF(OR('Enrollment Form'!B75<>\"Subscriber\",'Enrollment Form'!C75=\"ROC\",COUNTIF('Enrollment Form'!AS75:AT75,\"Yes\")>=1),\"-\",IF(AND('Enrollment Form'!C75=\"Enroll\",COUNTIF('Enrollment Form'!AS75:AT75,\"No\")=2,'Enrollment Form'!AU75=\"\"),\"N\",\"Y\")))","v":""},{"$f":"IF(OR(B68=\"N\",'Enrollment Form'!B75<>\"Subscriber\",'Enrollment Form'!C75=\"ROC\",'Enrollment Form'!O75<>\"Multiple of Salary\"),\"-\",IF(COUNTA('Enrollment Form'!T75:U75)<2,\"N\",\"Y\"))","v":"-"},{"$f":"IF(B68=\"N\",\"\",IF(OR('Enrollment Form'!C75=\"ROC\",'Enrollment Form'!B75<>\"Subscriber\",'Enrollment Form'!O75=\"Waive\",'Enrollment Form'!O75=\"\"),\"-\",IF('Enrollment Form'!P75=\"\",\"N\",\"Y\")))","v":""},{"$f":"IF($B68=\"N\",\"\",IF(AND('Enrollment Form'!$C75=\"ROC\",'Enrollment Form'!$DS75<>\"\"),\"Y\",IF(AND('Enrollment Form'!$C75=\"ROC\",'Enrollment Form'!$DS75=\"\"),\"N\",IF(AND('Enrollment Form'!$C75=\"Enroll\",'Enrollment Form'!$B75=\"Subscriber\",'Enrollment Form'!$CQ75=\"No\",'Enrollment Form'!$DS75=\"\"),\"N\",IF(AND('Enrollment Form'!$C75=\"Enroll\",'Enrollment Form'!$B75=\"Subscriber\",'Enrollment Form'!$CQ75=\"Yes\"),\"-\",\"Y\")))))","v":""},{"$f":"IF($B68=\"N\",\"\",IF(AND('Enrollment Form'!$C75=\"ROC\",'Enrollment Form'!$DT75<>\"\"),\"Y\",IF(AND('Enrollment Form'!$C75=\"ROC\",'Enrollment Form'!$DT75=\"\"),\"N\",IF(AND('Enrollment Form'!$C75=\"Enroll\",'Enrollment Form'!$B75=\"Subscriber\",'Enrollment Form'!$CQ75=\"No\",'Enrollment Form'!$DT75=\"\"),\"N\",IF(AND('Enrollment Form'!$C75=\"Enroll\",'Enrollment Form'!$B75=\"Subscriber\",'Enrollment Form'!$CQ75=\"Yes\"),\"-\",\"Y\")))))","v":""},{"$f":"IF('Enrollment Form'!AH75=\"\",\"\",IF(ISERROR(SEARCH(\".\",'Enrollment Form'!AH75,SEARCH(\"@\",'Enrollment Form'!AH75))),\"N\",\"Y\"))","v":""},{"$f":"IF(OR($B68=\"N\",'Enrollment Form'!$G75=\"\"),\"\",IF('Enrollment Form'!$B75<>\"Subscriber\",\"-\",IF(COUNTIF('Enrollment Form'!$AS75:$AT75,\"Yes\")=2,\"N\",\"Y\")))","v":""},{"$f":"IF(OR('Enrollment Form'!$CC75=\"\",'Enrollment Form'!$CC75=\"No\"),\"-\",IF(AND('Enrollment Form'!$CC75=\"Yes\",'Enrollment Form'!$CD75=\"\"),\"N\",\"Y\"))","v":"-"},{"$f":"IF(OR('Enrollment Form'!$CE75=\"\",'Enrollment Form'!$CE75=\"No\"),\"-\",IF(AND('Enrollment Form'!$CE75=\"Yes\",'Enrollment Form'!$CF75=\"\"),\"N\",\"Y\"))","v":"-"},{"$f":"IF(OR('Enrollment Form'!$CG75=\"\",'Enrollment Form'!$CG75=\"No\"),\"-\",IF(AND('Enrollment Form'!$CG75=\"Yes\",'Enrollment Form'!$CH75=\"\"),\"N\",\"Y\"))","v":"-"},{"$f":"IF(OR('Enrollment Form'!$CG75=\"\",'Enrollment Form'!$CG75=\"No\"),\"-\",IF(AND('Enrollment Form'!$CG75=\"Yes\",'Enrollment Form'!$CI75=\"\"),\"N\",\"Y\"))","v":"-"},{"$f":"IF('Enrollment Form'!B75<>\"Subscriber\",\"-\",IF(AND('Enrollment Form'!B75=\"Subscriber\",'Enrollment Form'!C75=\"Enroll\",'Enrollment Form'!AA75=\"\"),\"N\",\"Y\"))","v":"-"},{"$f":"IF(OR('Enrollment Form'!B75=\"Subscriber\",'Enrollment Form'!B75=\"\"),\"-\",IF('Enrollment Form'!BI75=\"\",\"N\",\"Y\"))","v":"-"},{"$f":"IF('Enrollment Form'!B75<>\"Subscriber\",\"-\",IF(AND('Enrollment Form'!B75=\"Subscriber\",'Enrollment Form'!G75=\"\"),\"N\",\"Y\"))","v":"-"},{"$f":"IF('Enrollment Form'!A75=\"\",\"\",IF('Enrollment Form'!B75=\"Subscriber\",\"-\",IF(AND('Enrollment Form'!B75<>\"Subscriber\",'Enrollment Form'!G75='Enrollment Form'!H75),\"N\",\"Y\")))","v":""},{"$f":"COUNTIF(C68:AN68,\"N\")","v":0}]
[76,{"$f":"IF('Enrollment Form'!$A76<>\"\",\"Y\",\"N\")","v":"N"},{"$f":"IF(AND('Enrollment Form'!$B76=\"\",'Enrollment Form'!$C76<>\"\"),\"N\",IF($B69=\"N\",\"\",\"Y\"))","v":""},{"$f":"IF(OR($B69=\"N\",'Enrollment Form'!G76=\"\"),\"\",IF('Enrollment Form'!$B76<>\"Subscriber\",\"\",IF('Enrollment Form'!$G76='Enrollment Form'!$H76,\"Y\",\"N\")))","v":""},{"$f":"IF($B69=\"N\",\"\",IF(AND(COUNTIFS('Enrollment Form'!$H$11:$H$1000,'Enrollment Form'!$H76,'Enrollment Form'!$B$11:$B$1000,'Enrollment Form'!$B76)>1,'Enrollment Form'!$H76<>\"\"),\"N\",\"Y\"))","v":""},{"$f":"IF($B69=\"N\",\"\",IF(LEN('Enrollment Form'!$Y76)=0,\"\",IF(LEN('Enrollment Form'!$Y76)<>5,\"N\",\"Y\")))","v":""},{"$f":"IF($B69=\"N\",\"\",IF(LEN('Enrollment Form'!$AD76=0),\"\",IF(LEN('Enrollment Form'!$AD76)<>5,\"N\",\"Y\")))","v":""},{"$f":"IF($B69=\"N\",\"\",IF(LEN('Enrollment Form'!$BL76=0),\"\",IF(LEN('Enrollment Form'!$BL76)<>5,\"N\",\"Y\")))","v":""},{"$f":"IF($B69=\"N\",\"\",IF(LEN('Enrollment Form'!$AE76)=0,\"\",IF(LEN('Enrollment Form'!$AE76)<>10,\"N\",\"Y\")))","v":""},{"$f":"IF($B69=\"N\",\"\",IF(LEN('Enrollment Form'!$AF76)=0,\"\",IF(LEN('Enrollment Form'!$AF76)<>10,\"N\",\"Y\")))","v":""},{"$f":"IF('Enrollment Form'!$O76<>\"Graded\",\"-\",IF(AND('Enrollment Form'!$O76=\"Graded\",'Enrollment Form'!$AO76<>\"\"),\"Y\",\"N\"))","v":"-"},{"$f":"IF($B69=\"N\",\"\",IF(OR('Enrollment Form'!$B76<>\"Subscriber\",'Enrollment Form'!$C76=\"ROC\"),\"-\",IF(AND('Enrollment Form'!$B76=\"Subscriber\",'Enrollment Form'!$C76=\"Enroll\",'Enrollment Form'!$AJ76<>\"\"),\"Y\",\"N\")))","v":""},{"$f":"IF($B69=\"N\",\"\",IF(OR('Enrollment Form'!$B76<>\"Subscriber\",'Enrollment Form'!$C76=\"ROC\"),\"-\",IF(AND('Enrollment Form'!$B76=\"Subscriber\",'Enrollment Form'!$C76=\"Enroll\",'Enrollment Form'!$AK76<>\"\"),\"Y\",\"N\")))","v":""},{"$f":"IF($B69=\"N\",\"\",IF(OR('Enrollment Form'!$B76<>\"Subscriber\",'Enrollment Form'!$C76=\"ROC\"),\"-\",IF(AND('Enrollment Form'!$B76=\"Subscriber\",'Enrollment Form'!$C76=\"Enroll\",'Enrollment Form'!$AL76<>\"\"),\"Y\",\"N\")))","v":""},{"$f":"IF($B69=\"N\",\"\",IF(OR('Enrollment Form'!$B76<>\"Subscriber\",'Enrollment Form'!$C76=\"ROC\"),\"-\",IF(AND('Enrollment Form'!$B76=\"Subscriber\",'Enrollment Form'!$C76=\"Enroll\",'Enrollment Form'!$AM76<>\"\"),\"Y\",\"N\")))","v":""},{"$f":"IF($B69=\"N\",\"\",IF(OR('Enrollment Form'!$B76<>\"Subscriber\",'Enrollment Form'!$C76=\"ROC\"),\"-\",IF(AND('Enrollment Form'!$B76=\"Subscriber\",'Enrollment Form'!$C76=\"Enroll\",'Enrollment Form'!$AN76<>\"\"),\"Y\",\"N\")))","v":""},{"$f":"IF($B69=\"N\",\"\",IF(OR('Enrollment Form'!$B76<>\"Subscriber\",'Enrollment Form'!$C76=\"ROC\"),\"-\",IF(AND('Enrollment Form'!$B76=\"Subscriber\",'Enrollment Form'!$C76=\"Enroll\",'Enrollment Form'!$AP76<>\"\"),\"Y\",\"N\")))","v":""},{"$f":"IF($B69=\"N\",\"\",IF($Q69=\"-\",\"-\",IF(AND($Q69=\"Y\",'Enrollment Form'!$AP76=\"No\"),\"-\",IF(AND($Q69=\"Y\",'Enrollment Form'!$AP76=\"Yes\",'Enrollment Form'!$AQ76<>\"\"),\"Y\",\"N\"))))","v":""},{"$f":"IF($B69=\"N\",\"\",IF(OR('Enrollment Form'!$B76<>\"Subscriber\",'Enrollment Form'!$C76=\"ROC\"),\"-\",IF(AND('Enrollment Form'!$B76=\"Subscriber\",'Enrollment Form'!$C76=\"Enroll\",'Enrollment Form'!$CO76<>\"\"),\"Y\",\"N\")))","v":""},{"$f":"IF($B69=\"N\",\"\",IF($S69=\"-\",\"-\",IF(AND($S69=\"Y\",'Enrollment Form'!$CO76=\"No\"),\"-\",IF(AND($S69=\"Y\",'Enrollment Form'!$CO76=\"Yes\",'Enrollment Form'!$CP76<>\"\"),\"Y\",\"N\"))))","v":""},{"$f":"IF(OR('Enrollment Form'!$AV76=\"Yes\",'Enrollment Form'!$AV76=\"\"),\"-\",IF(AND('Enrollment Form'!$AV76=\"No\",ISERROR(FIND(\"HMO\",VLOOKUP('Enrollment Form'!G76,'Enrollment Form'!H$11:J$1000,3,FALSE),1))=FALSE,COUNTA('Enrollment Form'!$AW76:$AZ76)=4),\"Y\",\"N\"))","v":"-"},{"$f":"IF($B69=\"N\",\"\",IF('Enrollment Form'!$B76=\"Subscriber\",\"-\",IF(COUNTA('Enrollment Form'!$BE76,'Enrollment Form'!$BG76)=2,\"Y\",\"N\")))","v":""},{"$f":"IF($B69=\"N\",\"\",IF(OR('Enrollment Form'!$AU76=\"\",'Enrollment Form'!$AU76=\"No\"),\"-\",IF(AND('Enrollment Form'!$AU76=\"Yes\",COUNTA('Enrollment Form'!$CK76)=1),\"Y\",\"N\")))","v":""},{"$f":"IF(OR('Enrollment Form'!$CK76=\"\",'Enrollment Form'!$CK76=\"No\"),\"-\",IF(COUNTA('Enrollment Form'!$CM76:$CN76)=2,\"Y\",\"N\"))","v":"-"},{"$f":"IF($B69=\"N\",\"\",IF(COUNTIF('Enrollment Form'!$CZ76:$DO76,\"Other\")=COUNTA('Enrollment Form'!$DF76,'Enrollment Form'!$DA76,'Enrollment Form'!$DK76,'Enrollment Form'!$DP76),\"Y\",\"N\"))","v":""},{"$f":"IF($B69=\"N\",\"\",IF(OR('Enrollment Form'!B76<>\"Subscriber\",'Enrollment Form'!C76=\"ROC\",COUNTIF('Enrollment Form'!AS76:AT76,\"Yes\")>=1),\"-\",IF(AND('Enrollment Form'!C76=\"Enroll\",COUNTIF('Enrollment Form'!AS76:AT76,\"No\")=2,'Enrollment Form'!AU76=\"\"),\"N\",\"Y\")))","v":""},{"$f":"IF(OR(B69=\"N\",'Enrollment Form'!B76<>\"Subscriber\",'Enrollment Form'!C76=\"ROC\",'Enrollment Form'!O76<>\"Multiple of Salary\"),\"-\",IF(COUNTA('Enrollment Form'!T76:U76)<2,\"N\",\"Y\"))","v":"-"},{"$f":"IF(B69=\"N\",\"\",IF(OR('Enrollment Form'!C76=\"ROC\",'Enrollment Form'!B76<>\"Subscriber\",'Enrollment Form'!O76=\"Waive\",'Enrollment Form'!O76=\"\"),\"-\",IF('Enrollment Form'!P76=\"\",\"N\",\"Y\")))","v":""},{"$f":"IF($B69=\"N\",\"\",IF(AND('Enrollment Form'!$C76=\"ROC\",'Enrollment Form'!$DS76<>\"\"),\"Y\",IF(AND('Enrollment Form'!$C76=\"ROC\",'Enrollment Form'!$DS76=\"\"),\"N\",IF(AND('Enrollment Form'!$C76=\"Enroll\",'Enrollment Form'!$B76=\"Subscriber\",'Enrollment Form'!$CQ76=\"No\",'Enrollment Form'!$DS76=\"\"),\"N\",IF(AND('Enrollment Form'!$C76=\"Enroll\",'Enrollment Form'!$B76=\"Subscriber\",'Enrollment Form'!$CQ76=\"Yes\"),\"-\",\"Y\")))))","v":""},{"$f":"IF($B69=\"N\",\"\",IF(AND('Enrollment Form'!$C76=\"ROC\",'Enrollment Form'!$DT76<>\"\"),\"Y\",IF(AND('Enrollment Form'!$C76=\"ROC\",'Enrollment Form'!$DT76=\"\"),\"N\",IF(AND('Enrollment Form'!$C76=\"Enroll\",'Enrollment Form'!$B76=\"Subscriber\",'Enrollment Form'!$CQ76=\"No\",'Enrollment Form'!$DT76=\"\"),\"N\",IF(AND('Enrollment Form'!$C76=\"Enroll\",'Enrollment Form'!$B76=\"Subscriber\",'Enrollment Form'!$CQ76=\"Yes\"),\"-\",\"Y\")))))","v":""},{"$f":"IF('Enrollment Form'!AH76=\"\",\"\",IF(ISERROR(SEARCH(\".\",'Enrollment Form'!AH76,SEARCH(\"@\",'Enrollment Form'!AH76))),\"N\",\"Y\"))","v":""},{"$f":"IF(OR($B69=\"N\",'Enrollment Form'!$G76=\"\"),\"\",IF('Enrollment Form'!$B76<>\"Subscriber\",\"-\",IF(COUNTIF('Enrollment Form'!$AS76:$AT76,\"Yes\")=2,\"N\",\"Y\")))","v":""},{"$f":"IF(OR('Enrollment Form'!$CC76=\"\",'Enrollment Form'!$CC76=\"No\"),\"-\",IF(AND('Enrollment Form'!$CC76=\"Yes\",'Enrollment Form'!$CD76=\"\"),\"N\",\"Y\"))","v":"-"},{"$f":"IF(OR('Enrollment Form'!$CE76=\"\",'Enrollment Form'!$CE76=\"No\"),\"-\",IF(AND('Enrollment Form'!$CE76=\"Yes\",'Enrollment Form'!$CF76=\"\"),\"N\",\"Y\"))","v":"-"},{"$f":"IF(OR('Enrollment Form'!$CG76=\"\",'Enrollment Form'!$CG76=\"No\"),\"-\",IF(AND('Enrollment Form'!$CG76=\"Yes\",'Enrollment Form'!$CH76=\"\"),\"N\",\"Y\"))","v":"-"},{"$f":"IF(OR('Enrollment Form'!$CG76=\"\",'Enrollment Form'!$CG76=\"No\"),\"-\",IF(AND('Enrollment Form'!$CG76=\"Yes\",'Enrollment Form'!$CI76=\"\"),\"N\",\"Y\"))","v":"-"},{"$f":"IF('Enrollment Form'!B76<>\"Subscriber\",\"-\",IF(AND('Enrollment Form'!B76=\"Subscriber\",'Enrollment Form'!C76=\"Enroll\",'Enrollment Form'!AA76=\"\"),\"N\",\"Y\"))","v":"-"},{"$f":"IF(OR('Enrollment Form'!B76=\"Subscriber\",'Enrollment Form'!B76=\"\"),\"-\",IF('Enrollment Form'!BI76=\"\",\"N\",\"Y\"))","v":"-"},{"$f":"IF('Enrollment Form'!B76<>\"Subscriber\",\"-\",IF(AND('Enrollment Form'!B76=\"Subscriber\",'Enrollment Form'!G76=\"\"),\"N\",\"Y\"))","v":"-"},{"$f":"IF('Enrollment Form'!A76=\"\",\"\",IF('Enrollment Form'!B76=\"Subscriber\",\"-\",IF(AND('Enrollment Form'!B76<>\"Subscriber\",'Enrollment Form'!G76='Enrollment Form'!H76),\"N\",\"Y\")))","v":""},0]
[{"$f":"1+A69","v":77},{"$f":"IF('Enrollment Form'!$A77<>\"\",\"Y\",\"N\")","v":"N"},{"$f":"IF(AND('Enrollment Form'!$B77=\"\",'Enrollment Form'!$C77<>\"\"),\"N\",IF($B70=\"N\",\"\",\"Y\"))","v":""},{"$f":"IF(OR($B70=\"N\",'Enrollment Form'!G77=\"\"),\"\",IF('Enrollment Form'!$B77<>\"Subscriber\",\"\",IF('Enrollment Form'!$G77='Enrollment Form'!$H77,\"Y\",\"N\")))","v":""},{"$f":"IF($B70=\"N\",\"\",IF(AND(COUNTIFS('Enrollment Form'!$H$11:$H$1000,'Enrollment Form'!$H77,'Enrollment Form'!$B$11:$B$1000,'Enrollment Form'!$B77)>1,'Enrollment Form'!$H77<>\"\"),\"N\",\"Y\"))","v":""},{"$f":"IF($B70=\"N\",\"\",IF(LEN('Enrollment Form'!$Y77)=0,\"\",IF(LEN('Enrollment Form'!$Y77)<>5,\"N\",\"Y\")))","v":""},{"$f":"IF($B70=\"N\",\"\",IF(LEN('Enrollment Form'!$AD77=0),\"\",IF(LEN('Enrollment Form'!$AD77)<>5,\"N\",\"Y\")))","v":""},{"$f":"IF($B70=\"N\",\"\",IF(LEN('Enrollment Form'!$BL77=0),\"\",IF(LEN('Enrollment Form'!$BL77)<>5,\"N\",\"Y\")))","v":""},{"$f":"IF($B70=\"N\",\"\",IF(LEN('Enrollment Form'!$AE77)=0,\"\",IF(LEN('Enrollment Form'!$AE77)<>10,\"N\",\"Y\")))","v":""},{"$f":"IF($B70=\"N\",\"\",IF(LEN('Enrollment Form'!$AF77)=0,\"\",IF(LEN('Enrollment Form'!$AF77)<>10,\"N\",\"Y\")))","v":""},{"$f":"IF('Enrollment Form'!$O77<>\"Graded\",\"-\",IF(AND('Enrollment Form'!$O77=\"Graded\",'Enrollment Form'!$AO77<>\"\"),\"Y\",\"N\"))","v":"-"},{"$f":"IF($B70=\"N\",\"\",IF(OR('Enrollment Form'!$B77<>\"Subscriber\",'Enrollment Form'!$C77=\"ROC\"),\"-\",IF(AND('Enrollment Form'!$B77=\"Subscriber\",'Enrollment Form'!$C77=\"Enroll\",'Enrollment Form'!$AJ77<>\"\"),\"Y\",\"N\")))","v":""},{"$f":"IF($B70=\"N\",\"\",IF(OR('Enrollment Form'!$B77<>\"Subscriber\",'Enrollment Form'!$C77=\"ROC\"),\"-\",IF(AND('Enrollment Form'!$B77=\"Subscriber\",'Enrollment Form'!$C77=\"Enroll\",'Enrollment Form'!$AK77<>\"\"),\"Y\",\"N\")))","v":""},{"$f":"IF($B70=\"N\",\"\",IF(OR('Enrollment Form'!$B77<>\"Subscriber\",'Enrollment Form'!$C77=\"ROC\"),\"-\",IF(AND('Enrollment Form'!$B77=\"Subscriber\",'Enrollment Form'!$C77=\"Enroll\",'Enrollment Form'!$AL77<>\"\"),\"Y\",\"N\")))","v":""},{"$f":"IF($B70=\"N\",\"\",IF(OR('Enrollment Form'!$B77<>\"Subscriber\",'Enrollment Form'!$C77=\"ROC\"),\"-\",IF(AND('Enrollment Form'!$B77=\"Subscriber\",'Enrollment Form'!$C77=\"Enroll\",'Enrollment Form'!$AM77<>\"\"),\"Y\",\"N\")))","v":""},{"$f":"IF($B70=\"N\",\"\",IF(OR('Enrollment Form'!$B77<>\"Subscriber\",'Enrollment Form'!$C77=\"ROC\"),\"-\",IF(AND('Enrollment Form'!$B77=\"Subscriber\",'Enrollment Form'!$C77=\"Enroll\",'Enrollment Form'!$AN77<>\"\"),\"Y\",\"N\")))","v":""},{"$f":"IF($B70=\"N\",\"\",IF(OR('Enrollment Form'!$B77<>\"Subscriber\",'Enrollment Form'!$C77=\"ROC\"),\"-\",IF(AND('Enrollment Form'!$B77=\"Subscriber\",'Enrollment Form'!$C77=\"Enroll\",'Enrollment Form'!$AP77<>\"\"),\"Y\",\"N\")))","v":""},{"$f":"IF($B70=\"N\",\"\",IF($Q70=\"-\",\"-\",IF(AND($Q70=\"Y\",'Enrollment Form'!$AP77=\"No\"),\"-\",IF(AND($Q70=\"Y\",'Enrollment Form'!$AP77=\"Yes\",'Enrollment Form'!$AQ77<>\"\"),\"Y\",\"N\"))))","v":""},{"$f":"IF($B70=\"N\",\"\",IF(OR('Enrollment Form'!$B77<>\"Subscriber\",'Enrollment Form'!$C77=\"ROC\"),\"-\",IF(AND('Enrollment Form'!$B77=\"Subscriber\",'Enrollment Form'!$C77=\"Enroll\",'Enrollment Form'!$CO77<>\"\"),\"Y\",\"N\")))","v":""},{"$f":"IF($B70=\"N\",\"\",IF($S70=\"-\",\"-\",IF(AND($S70=\"Y\",'Enrollment Form'!$CO77=\"No\"),\"-\",IF(AND($S70=\"Y\",'Enrollment Form'!$CO77=\"Yes\",'Enrollment Form'!$CP77<>\"\"),\"Y\",\"N\"))))","v":""},{"$f":"IF(OR('Enrollment Form'!$AV77=\"Yes\",'Enrollment Form'!$AV77=\"\"),\"-\",IF(AND('Enrollment Form'!$AV77=\"No\",ISERROR(FIND(\"HMO\",VLOOKUP('Enrollment Form'!G77,'Enrollment Form'!H$11:J$1000,3,FALSE),1))=FALSE,COUNTA('Enrollment Form'!$AW77:$AZ77)=4),\"Y\",\"N\"))","v":"-"},{"$f":"IF($B70=\"N\",\"\",IF('Enrollment Form'!$B77=\"Subscriber\",\"-\",IF(COUNTA('Enrollment Form'!$BE77,'Enrollment Form'!$BG77)=2,\"Y\",\"N\")))","v":""},{"$f":"IF($B70=\"N\",\"\",IF(OR('Enrollment Form'!$AU77=\"\",'Enrollment Form'!$AU77=\"No\"),\"-\",IF(AND('Enrollment Form'!$AU77=\"Yes\",COUNTA('Enrollment Form'!$CK77)=1),\"Y\",\"N\")))","v":""},{"$f":"IF(OR('Enrollment Form'!$CK77=\"\",'Enrollment Form'!$CK77=\"No\"),\"-\",IF(COUNTA('Enrollment Form'!$CM77:$CN77)=2,\"Y\",\"N\"))","v":"-"},{"$f":"IF($B70=\"N\",\"\",IF(COUNTIF('Enrollment Form'!$CZ77:$DO77,\"Other\")=COUNTA('Enrollment Form'!$DF77,'Enrollment Form'!$DA77,'Enrollment Form'!$DK77,'Enrollment Form'!$DP77),\"Y\",\"N\"))","v":""},{"$f":"IF($B70=\"N\",\"\",IF(OR('Enrollment Form'!B77<>\"Subscriber\",'Enrollment Form'!C77=\"ROC\",COUNTIF('Enrollment Form'!AS77:AT77,\"Yes\")>=1),\"-\",IF(AND('Enrollment Form'!C77=\"Enroll\",COUNTIF('Enrollment Form'!AS77:AT77,\"No\")=2,'Enrollment Form'!AU77=\"\"),\"N\",\"Y\")))","v":""},{"$f":"IF(OR(B70=\"N\",'Enrollment Form'!B77<>\"Subscriber\",'Enrollment Form'!C77=\"ROC\",'Enrollment Form'!O77<>\"Multiple of Salary\"),\"-\",IF(COUNTA('Enrollment Form'!T77:U77)<2,\"N\",\"Y\"))","v":"-"},{"$f":"IF(B70=\"N\",\"\",IF(OR('Enrollment Form'!C77=\"ROC\",'Enrollment Form'!B77<>\"Subscriber\",'Enrollment Form'!O77=\"Waive\",'Enrollment Form'!O77=\"\"),\"-\",IF('Enrollment Form'!P77=\"\",\"N\",\"Y\")))","v":""},{"$f":"IF($B70=\"N\",\"\",IF(AND('Enrollment Form'!$C77=\"ROC\",'Enrollment Form'!$DS77<>\"\"),\"Y\",IF(AND('Enrollment Form'!$C77=\"ROC\",'Enrollment Form'!$DS77=\"\"),\"N\",IF(AND('Enrollment Form'!$C77=\"Enroll\",'Enrollment Form'!$B77=\"Subscriber\",'Enrollment Form'!$CQ77=\"No\",'Enrollment Form'!$DS77=\"\"),\"N\",IF(AND('Enrollment Form'!$C77=\"Enroll\",'Enrollment Form'!$B77=\"Subscriber\",'Enrollment Form'!$CQ77=\"Yes\"),\"-\",\"Y\")))))","v":""},{"$f":"IF($B70=\"N\",\"\",IF(AND('Enrollment Form'!$C77=\"ROC\",'Enrollment Form'!$DT77<>\"\"),\"Y\",IF(AND('Enrollment Form'!$C77=\"ROC\",'Enrollment Form'!$DT77=\"\"),\"N\",IF(AND('Enrollment Form'!$C77=\"Enroll\",'Enrollment Form'!$B77=\"Subscriber\",'Enrollment Form'!$CQ77=\"No\",'Enrollment Form'!$DT77=\"\"),\"N\",IF(AND('Enrollment Form'!$C77=\"Enroll\",'Enrollment Form'!$B77=\"Subscriber\",'Enrollment Form'!$CQ77=\"Yes\"),\"-\",\"Y\")))))","v":""},{"$f":"IF('Enrollment Form'!AH77=\"\",\"\",IF(ISERROR(SEARCH(\".\",'Enrollment Form'!AH77,SEARCH(\"@\",'Enrollment Form'!AH77))),\"N\",\"Y\"))","v":""},{"$f":"IF(OR($B70=\"N\",'Enrollment Form'!$G77=\"\"),\"\",IF('Enrollment Form'!$B77<>\"Subscriber\",\"-\",IF(COUNTIF('Enrollment Form'!$AS77:$AT77,\"Yes\")=2,\"N\",\"Y\")))","v":""},{"$f":"IF(OR('Enrollment Form'!$CC77=\"\",'Enrollment Form'!$CC77=\"No\"),\"-\",IF(AND('Enrollment Form'!$CC77=\"Yes\",'Enrollment Form'!$CD77=\"\"),\"N\",\"Y\"))","v":"-"},{"$f":"IF(OR('Enrollment Form'!$CE77=\"\",'Enrollment Form'!$CE77=\"No\"),\"-\",IF(AND('Enrollment Form'!$CE77=\"Yes\",'Enrollment Form'!$CF77=\"\"),\"N\",\"Y\"))","v":"-"},{"$f":"IF(OR('Enrollment Form'!$CG77=\"\",'Enrollment Form'!$CG77=\"No\"),\"-\",IF(AND('Enrollment Form'!$CG77=\"Yes\",'Enrollment Form'!$CH77=\"\"),\"N\",\"Y\"))","v":"-"},{"$f":"IF(OR('Enrollment Form'!$CG77=\"\",'Enrollment Form'!$CG77=\"No\"),\"-\",IF(AND('Enrollment Form'!$CG77=\"Yes\",'Enrollment Form'!$CI77=\"\"),\"N\",\"Y\"))","v":"-"},{"$f":"IF('Enrollment Form'!B77<>\"Subscriber\",\"-\",IF(AND('Enrollment Form'!B77=\"Subscriber\",'Enrollment Form'!C77=\"Enroll\",'Enrollment Form'!AA77=\"\"),\"N\",\"Y\"))","v":"-"},{"$f":"IF(OR('Enrollment Form'!B77=\"Subscriber\",'Enrollment Form'!B77=\"\"),\"-\",IF('Enrollment Form'!BI77=\"\",\"N\",\"Y\"))","v":"-"},{"$f":"IF('Enrollment Form'!B77<>\"Subscriber\",\"-\",IF(AND('Enrollment Form'!B77=\"Subscriber\",'Enrollment Form'!G77=\"\"),\"N\",\"Y\"))","v":"-"},{"$f":"IF('Enrollment Form'!A77=\"\",\"\",IF('Enrollment Form'!B77=\"Subscriber\",\"-\",IF(AND('Enrollment Form'!B77<>\"Subscriber\",'Enrollment Form'!G77='Enrollment Form'!H77),\"N\",\"Y\")))","v":""},0]
[78,{"$f":"IF('Enrollment Form'!$A78<>\"\",\"Y\",\"N\")","v":"N"},{"$f":"IF(AND('Enrollment Form'!$B78=\"\",'Enrollment Form'!$C78<>\"\"),\"N\",IF($B71=\"N\",\"\",\"Y\"))","v":""},{"$f":"IF(OR($B71=\"N\",'Enrollment Form'!G78=\"\"),\"\",IF('Enrollment Form'!$B78<>\"Subscriber\",\"\",IF('Enrollment Form'!$G78='Enrollment Form'!$H78,\"Y\",\"N\")))","v":""},{"$f":"IF($B71=\"N\",\"\",IF(AND(COUNTIFS('Enrollment Form'!$H$11:$H$1000,'Enrollment Form'!$H78,'Enrollment Form'!$B$11:$B$1000,'Enrollment Form'!$B78)>1,'Enrollment Form'!$H78<>\"\"),\"N\",\"Y\"))","v":""},{"$f":"IF($B71=\"N\",\"\",IF(LEN('Enrollment Form'!$Y78)=0,\"\",IF(LEN('Enrollment Form'!$Y78)<>5,\"N\",\"Y\")))","v":""},{"$f":"IF($B71=\"N\",\"\",IF(LEN('Enrollment Form'!$AD78=0),\"\",IF(LEN('Enrollment Form'!$AD78)<>5,\"N\",\"Y\")))","v":""},{"$f":"IF($B71=\"N\",\"\",IF(LEN('Enrollment Form'!$BL78=0),\"\",IF(LEN('Enrollment Form'!$BL78)<>5,\"N\",\"Y\")))","v":""},{"$f":"IF($B71=\"N\",\"\",IF(LEN('Enrollment Form'!$AE78)=0,\"\",IF(LEN('Enrollment Form'!$AE78)<>10,\"N\",\"Y\")))","v":""},{"$f":"IF($B71=\"N\",\"\",IF(LEN('Enrollment Form'!$AF78)=0,\"\",IF(LEN('Enrollment Form'!$AF78)<>10,\"N\",\"Y\")))","v":""},{"$f":"IF('Enrollment Form'!$O78<>\"Graded\",\"-\",IF(AND('Enrollment Form'!$O78=\"Graded\",'Enrollment Form'!$AO78<>\"\"),\"Y\",\"N\"))","v":"-"},{"$f":"IF($B71=\"N\",\"\",IF(OR('Enrollment Form'!$B78<>\"Subscriber\",'Enrollment Form'!$C78=\"ROC\"),\"-\",IF(AND('Enrollment Form'!$B78=\"Subscriber\",'Enrollment Form'!$C78=\"Enroll\",'Enrollment Form'!$AJ78<>\"\"),\"Y\",\"N\")))","v":""},{"$f":"IF($B71=\"N\",\"\",IF(OR('Enrollment Form'!$B78<>\"Subscriber\",'Enrollment Form'!$C78=\"ROC\"),\"-\",IF(AND('Enrollment Form'!$B78=\"Subscriber\",'Enrollment Form'!$C78=\"Enroll\",'Enrollment Form'!$AK78<>\"\"),\"Y\",\"N\")))","v":""},{"$f":"IF($B71=\"N\",\"\",IF(OR('Enrollment Form'!$B78<>\"Subscriber\",'Enrollment Form'!$C78=\"ROC\"),\"-\",IF(AND('Enrollment Form'!$B78=\"Subscriber\",'Enrollment Form'!$C78=\"Enroll\",'Enrollment Form'!$AL78<>\"\"),\"Y\",\"N\")))","v":""},{"$f":"IF($B71=\"N\",\"\",IF(OR('Enrollment Form'!$B78<>\"Subscriber\",'Enrollment Form'!$C78=\"ROC\"),\"-\",IF(AND('Enrollment Form'!$B78=\"Subscriber\",'Enrollment Form'!$C78=\"Enroll\",'Enrollment Form'!$AM78<>\"\"),\"Y\",\"N\")))","v":""},{"$f":"IF($B71=\"N\",\"\",IF(OR('Enrollment Form'!$B78<>\"Subscriber\",'Enrollment Form'!$C78=\"ROC\"),\"-\",IF(AND('Enrollment Form'!$B78=\"Subscriber\",'Enrollment Form'!$C78=\"Enroll\",'Enrollment Form'!$AN78<>\"\"),\"Y\",\"N\")))","v":""},{"$f":"IF($B71=\"N\",\"\",IF(OR('Enrollment Form'!$B78<>\"Subscriber\",'Enrollment Form'!$C78=\"ROC\"),\"-\",IF(AND('Enrollment Form'!$B78=\"Subscriber\",'Enrollment Form'!$C78=\"Enroll\",'Enrollment Form'!$AP78<>\"\"),\"Y\",\"N\")))","v":""},{"$f":"IF($B71=\"N\",\"\",IF($Q71=\"-\",\"-\",IF(AND($Q71=\"Y\",'Enrollment Form'!$AP78=\"No\"),\"-\",IF(AND($Q71=\"Y\",'Enrollment Form'!$AP78=\"Yes\",'Enrollment Form'!$AQ78<>\"\"),\"Y\",\"N\"))))","v":""},{"$f":"IF($B71=\"N\",\"\",IF(OR('Enrollment Form'!$B78<>\"Subscriber\",'Enrollment Form'!$C78=\"ROC\"),\"-\",IF(AND('Enrollment Form'!$B78=\"Subscriber\",'Enrollment Form'!$C78=\"Enroll\",'Enrollment Form'!$CO78<>\"\"),\"Y\",\"N\")))","v":""},{"$f":"IF($B71=\"N\",\"\",IF($S71=\"-\",\"-\",IF(AND($S71=\"Y\",'Enrollment Form'!$CO78=\"No\"),\"-\",IF(AND($S71=\"Y\",'Enrollment Form'!$CO78=\"Yes\",'Enrollment Form'!$CP78<>\"\"),\"Y\",\"N\"))))","v":""},{"$f":"IF(OR('Enrollment Form'!$AV78=\"Yes\",'Enrollment Form'!$AV78=\"\"),\"-\",IF(AND('Enrollment Form'!$AV78=\"No\",ISERROR(FIND(\"HMO\",VLOOKUP('Enrollment Form'!G78,'Enrollment Form'!H$11:J$1000,3,FALSE),1))=FALSE,COUNTA('Enrollment Form'!$AW78:$AZ78)=4),\"Y\",\"N\"))","v":"-"},{"$f":"IF($B71=\"N\",\"\",IF('Enrollment Form'!$B78=\"Subscriber\",\"-\",IF(COUNTA('Enrollment Form'!$BE78,'Enrollment Form'!$BG78)=2,\"Y\",\"N\")))","v":""},{"$f":"IF($B71=\"N\",\"\",IF(OR('Enrollment Form'!$AU78=\"\",'Enrollment Form'!$AU78=\"No\"),\"-\",IF(AND('Enrollment Form'!$AU78=\"Yes\",COUNTA('Enrollment Form'!$CK78)=1),\"Y\",\"N\")))","v":""},{"$f":"IF(OR('Enrollment Form'!$CK78=\"\",'Enrollment Form'!$CK78=\"No\"),\"-\",IF(COUNTA('Enrollment Form'!$CM78:$CN78)=2,\"Y\",\"N\"))","v":"-"},{"$f":"IF($B71=\"N\",\"\",IF(COUNTIF('Enrollment Form'!$CZ78:$DO78,\"Other\")=COUNTA('Enrollment Form'!$DF78,'Enrollment Form'!$DA78,'Enrollment Form'!$DK78,'Enrollment Form'!$DP78),\"Y\",\"N\"))","v":""},{"$f":"IF($B71=\"N\",\"\",IF(OR('Enrollment Form'!B78<>\"Subscriber\",'Enrollment Form'!C78=\"ROC\",COUNTIF('Enrollment Form'!AS78:AT78,\"Yes\")>=1),\"-\",IF(AND('Enrollment Form'!C78=\"Enroll\",COUNTIF('Enrollment Form'!AS78:AT78,\"No\")=2,'Enrollment Form'!AU78=\"\"),\"N\",\"Y\")))","v":""},{"$f":"IF(OR(B71=\"N\",'Enrollment Form'!B78<>\"Subscriber\",'Enrollment Form'!C78=\"ROC\",'Enrollment Form'!O78<>\"Multiple of Salary\"),\"-\",IF(COUNTA('Enrollment Form'!T78:U78)<2,\"N\",\"Y\"))","v":"-"},{"$f":"IF(B71=\"N\",\"\",IF(OR('Enrollment Form'!C78=\"ROC\",'Enrollment Form'!B78<>\"Subscriber\",'Enrollment Form'!O78=\"Waive\",'Enrollment Form'!O78=\"\"),\"-\",IF('Enrollment Form'!P78=\"\",\"N\",\"Y\")))","v":""},{"$f":"IF($B71=\"N\",\"\",IF(AND('Enrollment Form'!$C78=\"ROC\",'Enrollment Form'!$DS78<>\"\"),\"Y\",IF(AND('Enrollment Form'!$C78=\"ROC\",'Enrollment Form'!$DS78=\"\"),\"N\",IF(AND('Enrollment Form'!$C78=\"Enroll\",'Enrollment Form'!$B78=\"Subscriber\",'Enrollment Form'!$CQ78=\"No\",'Enrollment Form'!$DS78=\"\"),\"N\",IF(AND('Enrollment Form'!$C78=\"Enroll\",'Enrollment Form'!$B78=\"Subscriber\",'Enrollment Form'!$CQ78=\"Yes\"),\"-\",\"Y\")))))","v":""},{"$f":"IF($B71=\"N\",\"\",IF(AND('Enrollment Form'!$C78=\"ROC\",'Enrollment Form'!$DT78<>\"\"),\"Y\",IF(AND('Enrollment Form'!$C78=\"ROC\",'Enrollment Form'!$DT78=\"\"),\"N\",IF(AND('Enrollment Form'!$C78=\"Enroll\",'Enrollment Form'!$B78=\"Subscriber\",'Enrollment Form'!$CQ78=\"No\",'Enrollment Form'!$DT78=\"\"),\"N\",IF(AND('Enrollment Form'!$C78=\"Enroll\",'Enrollment Form'!$B78=\"Subscriber\",'Enrollment Form'!$CQ78=\"Yes\"),\"-\",\"Y\")))))","v":""},{"$f":"IF('Enrollment Form'!AH78=\"\",\"\",IF(ISERROR(SEARCH(\".\",'Enrollment Form'!AH78,SEARCH(\"@\",'Enrollment Form'!AH78))),\"N\",\"Y\"))","v":""},{"$f":"IF(OR($B71=\"N\",'Enrollment Form'!$G78=\"\"),\"\",IF('Enrollment Form'!$B78<>\"Subscriber\",\"-\",IF(COUNTIF('Enrollment Form'!$AS78:$AT78,\"Yes\")=2,\"N\",\"Y\")))","v":""},{"$f":"IF(OR('Enrollment Form'!$CC78=\"\",'Enrollment Form'!$CC78=\"No\"),\"-\",IF(AND('Enrollment Form'!$CC78=\"Yes\",'Enrollment Form'!$CD78=\"\"),\"N\",\"Y\"))","v":"-"},{"$f":"IF(OR('Enrollment Form'!$CE78=\"\",'Enrollment Form'!$CE78=\"No\"),\"-\",IF(AND('Enrollment Form'!$CE78=\"Yes\",'Enrollment Form'!$CF78=\"\"),\"N\",\"Y\"))","v":"-"},{"$f":"IF(OR('Enrollment Form'!$CG78=\"\",'Enrollment Form'!$CG78=\"No\"),\"-\",IF(AND('Enrollment Form'!$CG78=\"Yes\",'Enrollment Form'!$CH78=\"\"),\"N\",\"Y\"))","v":"-"},{"$f":"IF(OR('Enrollment Form'!$CG78=\"\",'Enrollment Form'!$CG78=\"No\"),\"-\",IF(AND('Enrollment Form'!$CG78=\"Yes\",'Enrollment Form'!$CI78=\"\"),\"N\",\"Y\"))","v":"-"},{"$f":"IF('Enrollment Form'!B78<>\"Subscriber\",\"-\",IF(AND('Enrollment Form'!B78=\"Subscriber\",'Enrollment Form'!C78=\"Enroll\",'Enrollment Form'!AA78=\"\"),\"N\",\"Y\"))","v":"-"},{"$f":"IF(OR('Enrollment Form'!B78=\"Subscriber\",'Enrollment Form'!B78=\"\"),\"-\",IF('Enrollment Form'!BI78=\"\",\"N\",\"Y\"))","v":"-"},{"$f":"IF('Enrollment Form'!B78<>\"Subscriber\",\"-\",IF(AND('Enrollment Form'!B78=\"Subscriber\",'Enrollment Form'!G78=\"\"),\"N\",\"Y\"))","v":"-"},{"$f":"IF('Enrollment Form'!A78=\"\",\"\",IF('Enrollment Form'!B78=\"Subscriber\",\"-\",IF(AND('Enrollment Form'!B78<>\"Subscriber\",'Enrollment Form'!G78='Enrollment Form'!H78),\"N\",\"Y\")))","v":""},0]
[79,{"$f":"IF('Enrollment Form'!$A79<>\"\",\"Y\",\"N\")","v":"N"},{"$f":"IF(AND('Enrollment Form'!$B79=\"\",'Enrollment Form'!$C79<>\"\"),\"N\",IF($B72=\"N\",\"\",\"Y\"))","v":""},{"$f":"IF(OR($B72=\"N\",'Enrollment Form'!G79=\"\"),\"\",IF('Enrollment Form'!$B79<>\"Subscriber\",\"\",IF('Enrollment Form'!$G79='Enrollment Form'!$H79,\"Y\",\"N\")))","v":""},{"$f":"IF($B72=\"N\",\"\",IF(AND(COUNTIFS('Enrollment Form'!$H$11:$H$1000,'Enrollment Form'!$H79,'Enrollment Form'!$B$11:$B$1000,'Enrollment Form'!$B79)>1,'Enrollment Form'!$H79<>\"\"),\"N\",\"Y\"))","v":""},{"$f":"IF($B72=\"N\",\"\",IF(LEN('Enrollment Form'!$Y79)=0,\"\",IF(LEN('Enrollment Form'!$Y79)<>5,\"N\",\"Y\")))","v":""},{"$f":"IF($B72=\"N\",\"\",IF(LEN('Enrollment Form'!$AD79=0),\"\",IF(LEN('Enrollment Form'!$AD79)<>5,\"N\",\"Y\")))","v":""},{"$f":"IF($B72=\"N\",\"\",IF(LEN('Enrollment Form'!$BL79=0),\"\",IF(LEN('Enrollment Form'!$BL79)<>5,\"N\",\"Y\")))","v":""},{"$f":"IF($B72=\"N\",\"\",IF(LEN('Enrollment Form'!$AE79)=0,\"\",IF(LEN('Enrollment Form'!$AE79)<>10,\"N\",\"Y\")))","v":""},{"$f":"IF($B72=\"N\",\"\",IF(LEN('Enrollment Form'!$AF79)=0,\"\",IF(LEN('Enrollment Form'!$AF79)<>10,\"N\",\"Y\")))","v":""},{"$f":"IF('Enrollment Form'!$O79<>\"Graded\",\"-\",IF(AND('Enrollment Form'!$O79=\"Graded\",'Enrollment Form'!$AO79<>\"\"),\"Y\",\"N\"))","v":"-"},{"$f":"IF($B72=\"N\",\"\",IF(OR('Enrollment Form'!$B79<>\"Subscriber\",'Enrollment Form'!$C79=\"ROC\"),\"-\",IF(AND('Enrollment Form'!$B79=\"Subscriber\",'Enrollment Form'!$C79=\"Enroll\",'Enrollment Form'!$AJ79<>\"\"),\"Y\",\"N\")))","v":""},{"$f":"IF($B72=\"N\",\"\",IF(OR('Enrollment Form'!$B79<>\"Subscriber\",'Enrollment Form'!$C79=\"ROC\"),\"-\",IF(AND('Enrollment Form'!$B79=\"Subscriber\",'Enrollment Form'!$C79=\"Enroll\",'Enrollment Form'!$AK79<>\"\"),\"Y\",\"N\")))","v":""},{"$f":"IF($B72=\"N\",\"\",IF(OR('Enrollment Form'!$B79<>\"Subscriber\",'Enrollment Form'!$C79=\"ROC\"),\"-\",IF(AND('Enrollment Form'!$B79=\"Subscriber\",'Enrollment Form'!$C79=\"Enroll\",'Enrollment Form'!$AL79<>\"\"),\"Y\",\"N\")))","v":""},{"$f":"IF($B72=\"N\",\"\",IF(OR('Enrollment Form'!$B79<>\"Subscriber\",'Enrollment Form'!$C79=\"ROC\"),\"-\",IF(AND('Enrollment Form'!$B79=\"Subscriber\",'Enrollment Form'!$C79=\"Enroll\",'Enrollment Form'!$AM79<>\"\"),\"Y\",\"N\")))","v":""},{"$f":"IF($B72=\"N\",\"\",IF(OR('Enrollment Form'!$B79<>\"Subscriber\",'Enrollment Form'!$C79=\"ROC\"),\"-\",IF(AND('Enrollment Form'!$B79=\"Subscriber\",'Enrollment Form'!$C79=\"Enroll\",'Enrollment Form'!$AN79<>\"\"),\"Y\",\"N\")))","v":""},{"$f":"IF($B72=\"N\",\"\",IF(OR('Enrollment Form'!$B79<>\"Subscriber\",'Enrollment Form'!$C79=\"ROC\"),\"-\",IF(AND('Enrollment Form'!$B79=\"Subscriber\",'Enrollment Form'!$C79=\"Enroll\",'Enrollment Form'!$AP79<>\"\"),\"Y\",\"N\")))","v":""},{"$f":"IF($B72=\"N\",\"\",IF($Q72=\"-\",\"-\",IF(AND($Q72=\"Y\",'Enrollment Form'!$AP79=\"No\"),\"-\",IF(AND($Q72=\"Y\",'Enrollment Form'!$AP79=\"Yes\",'Enrollment Form'!$AQ79<>\"\"),\"Y\",\"N\"))))","v":""},{"$f":"IF($B72=\"N\",\"\",IF(OR('Enrollment Form'!$B79<>\"Subscriber\",'Enrollment Form'!$C79=\"ROC\"),\"-\",IF(AND('Enrollment Form'!$B79=\"Subscriber\",'Enrollment Form'!$C79=\"Enroll\",'Enrollment Form'!$CO79<>\"\"),\"Y\",\"N\")))","v":""},{"$f":"IF($B72=\"N\",\"\",IF($S72=\"-\",\"-\",IF(AND($S72=\"Y\",'Enrollment Form'!$CO79=\"No\"),\"-\",IF(AND($S72=\"Y\",'Enrollment Form'!$CO79=\"Yes\",'Enrollment Form'!$CP79<>\"\"),\"Y\",\"N\"))))","v":""},{"$f":"IF(OR('Enrollment Form'!$AV79=\"Yes\",'Enrollment Form'!$AV79=\"\"),\"-\",IF(AND('Enrollment Form'!$AV79=\"No\",ISERROR(FIND(\"HMO\",VLOOKUP('Enrollment Form'!G79,'Enrollment Form'!H$11:J$1000,3,FALSE),1))=FALSE,COUNTA('Enrollment Form'!$AW79:$AZ79)=4),\"Y\",\"N\"))","v":"-"},{"$f":"IF($B72=\"N\",\"\",IF('Enrollment Form'!$B79=\"Subscriber\",\"-\",IF(COUNTA('Enrollment Form'!$BE79,'Enrollment Form'!$BG79)=2,\"Y\",\"N\")))","v":""},{"$f":"IF($B72=\"N\",\"\",IF(OR('Enrollment Form'!$AU79=\"\",'Enrollment Form'!$AU79=\"No\"),\"-\",IF(AND('Enrollment Form'!$AU79=\"Yes\",COUNTA('Enrollment Form'!$CK79)=1),\"Y\",\"N\")))","v":""},{"$f":"IF(OR('Enrollment Form'!$CK79=\"\",'Enrollment Form'!$CK79=\"No\"),\"-\",IF(COUNTA('Enrollment Form'!$CM79:$CN79)=2,\"Y\",\"N\"))","v":"-"},{"$f":"IF($B72=\"N\",\"\",IF(COUNTIF('Enrollment Form'!$CZ79:$DO79,\"Other\")=COUNTA('Enrollment Form'!$DF79,'Enrollment Form'!$DA79,'Enrollment Form'!$DK79,'Enrollment Form'!$DP79),\"Y\",\"N\"))","v":""},{"$f":"IF($B72=\"N\",\"\",IF(OR('Enrollment Form'!B79<>\"Subscriber\",'Enrollment Form'!C79=\"ROC\",COUNTIF('Enrollment Form'!AS79:AT79,\"Yes\")>=1),\"-\",IF(AND('Enrollment Form'!C79=\"Enroll\",COUNTIF('Enrollment Form'!AS79:AT79,\"No\")=2,'Enrollment Form'!AU79=\"\"),\"N\",\"Y\")))","v":""},{"$f":"IF(OR(B72=\"N\",'Enrollment Form'!B79<>\"Subscriber\",'Enrollment Form'!C79=\"ROC\",'Enrollment Form'!O79<>\"Multiple of Salary\"),\"-\",IF(COUNTA('Enrollment Form'!T79:U79)<2,\"N\",\"Y\"))","v":"-"},{"$f":"IF(B72=\"N\",\"\",IF(OR('Enrollment Form'!C79=\"ROC\",'Enrollment Form'!B79<>\"Subscriber\",'Enrollment Form'!O79=\"Waive\",'Enrollment Form'!O79=\"\"),\"-\",IF('Enrollment Form'!P79=\"\",\"N\",\"Y\")))","v":""},{"$f":"IF($B72=\"N\",\"\",IF(AND('Enrollment Form'!$C79=\"ROC\",'Enrollment Form'!$DS79<>\"\"),\"Y\",IF(AND('Enrollment Form'!$C79=\"ROC\",'Enrollment Form'!$DS79=\"\"),\"N\",IF(AND('Enrollment Form'!$C79=\"Enroll\",'Enrollment Form'!$B79=\"Subscriber\",'Enrollment Form'!$CQ79=\"No\",'Enrollment Form'!$DS79=\"\"),\"N\",IF(AND('Enrollment Form'!$C79=\"Enroll\",'Enrollment Form'!$B79=\"Subscriber\",'Enrollment Form'!$CQ79=\"Yes\"),\"-\",\"Y\")))))","v":""},{"$f":"IF($B72=\"N\",\"\",IF(AND('Enrollment Form'!$C79=\"ROC\",'Enrollment Form'!$DT79<>\"\"),\"Y\",IF(AND('Enrollment Form'!$C79=\"ROC\",'Enrollment Form'!$DT79=\"\"),\"N\",IF(AND('Enrollment Form'!$C79=\"Enroll\",'Enrollment Form'!$B79=\"Subscriber\",'Enrollment Form'!$CQ79=\"No\",'Enrollment Form'!$DT79=\"\"),\"N\",IF(AND('Enrollment Form'!$C79=\"Enroll\",'Enrollment Form'!$B79=\"Subscriber\",'Enrollment Form'!$CQ79=\"Yes\"),\"-\",\"Y\")))))","v":""},{"$f":"IF('Enrollment Form'!AH79=\"\",\"\",IF(ISERROR(SEARCH(\".\",'Enrollment Form'!AH79,SEARCH(\"@\",'Enrollment Form'!AH79))),\"N\",\"Y\"))","v":""},{"$f":"IF(OR($B72=\"N\",'Enrollment Form'!$G79=\"\"),\"\",IF('Enrollment Form'!$B79<>\"Subscriber\",\"-\",IF(COUNTIF('Enrollment Form'!$AS79:$AT79,\"Yes\")=2,\"N\",\"Y\")))","v":""},{"$f":"IF(OR('Enrollment Form'!$CC79=\"\",'Enrollment Form'!$CC79=\"No\"),\"-\",IF(AND('Enrollment Form'!$CC79=\"Yes\",'Enrollment Form'!$CD79=\"\"),\"N\",\"Y\"))","v":"-"},{"$f":"IF(OR('Enrollment Form'!$CE79=\"\",'Enrollment Form'!$CE79=\"No\"),\"-\",IF(AND('Enrollment Form'!$CE79=\"Yes\",'Enrollment Form'!$CF79=\"\"),\"N\",\"Y\"))","v":"-"},{"$f":"IF(OR('Enrollment Form'!$CG79=\"\",'Enrollment Form'!$CG79=\"No\"),\"-\",IF(AND('Enrollment Form'!$CG79=\"Yes\",'Enrollment Form'!$CH79=\"\"),\"N\",\"Y\"))","v":"-"},{"$f":"IF(OR('Enrollment Form'!$CG79=\"\",'Enrollment Form'!$CG79=\"No\"),\"-\",IF(AND('Enrollment Form'!$CG79=\"Yes\",'Enrollment Form'!$CI79=\"\"),\"N\",\"Y\"))","v":"-"},{"$f":"IF('Enrollment Form'!B79<>\"Subscriber\",\"-\",IF(AND('Enrollment Form'!B79=\"Subscriber\",'Enrollment Form'!C79=\"Enroll\",'Enrollment Form'!AA79=\"\"),\"N\",\"Y\"))","v":"-"},{"$f":"IF(OR('Enrollment Form'!B79=\"Subscriber\",'Enrollment Form'!B79=\"\"),\"-\",IF('Enrollment Form'!BI79=\"\",\"N\",\"Y\"))","v":"-"},{"$f":"IF('Enrollment Form'!B79<>\"Subscriber\",\"-\",IF(AND('Enrollment Form'!B79=\"Subscriber\",'Enrollment Form'!G79=\"\"),\"N\",\"Y\"))","v":"-"},{"$f":"IF('Enrollment Form'!A79=\"\",\"\",IF('Enrollment Form'!B79=\"Subscriber\",\"-\",IF(AND('Enrollment Form'!B79<>\"Subscriber\",'Enrollment Form'!G79='Enrollment Form'!H79),\"N\",\"Y\")))","v":""},0]
[80,{"$f":"IF('Enrollment Form'!$A80<>\"\",\"Y\",\"N\")","v":"N"},{"$f":"IF(AND('Enrollment Form'!$B80=\"\",'Enrollment Form'!$C80<>\"\"),\"N\",IF($B73=\"N\",\"\",\"Y\"))","v":""},{"$f":"IF(OR($B73=\"N\",'Enrollment Form'!G80=\"\"),\"\",IF('Enrollment Form'!$B80<>\"Subscriber\",\"\",IF('Enrollment Form'!$G80='Enrollment Form'!$H80,\"Y\",\"N\")))","v":""},{"$f":"IF($B73=\"N\",\"\",IF(AND(COUNTIFS('Enrollment Form'!$H$11:$H$1000,'Enrollment Form'!$H80,'Enrollment Form'!$B$11:$B$1000,'Enrollment Form'!$B80)>1,'Enrollment Form'!$H80<>\"\"),\"N\",\"Y\"))","v":""},{"$f":"IF($B73=\"N\",\"\",IF(LEN('Enrollment Form'!$Y80)=0,\"\",IF(LEN('Enrollment Form'!$Y80)<>5,\"N\",\"Y\")))","v":""},{"$f":"IF($B73=\"N\",\"\",IF(LEN('Enrollment Form'!$AD80=0),\"\",IF(LEN('Enrollment Form'!$AD80)<>5,\"N\",\"Y\")))","v":""},{"$f":"IF($B73=\"N\",\"\",IF(LEN('Enrollment Form'!$BL80=0),\"\",IF(LEN('Enrollment Form'!$BL80)<>5,\"N\",\"Y\")))","v":""},{"$f":"IF($B73=\"N\",\"\",IF(LEN('Enrollment Form'!$AE80)=0,\"\",IF(LEN('Enrollment Form'!$AE80)<>10,\"N\",\"Y\")))","v":""},{"$f":"IF($B73=\"N\",\"\",IF(LEN('Enrollment Form'!$AF80)=0,\"\",IF(LEN('Enrollment Form'!$AF80)<>10,\"N\",\"Y\")))","v":""},{"$f":"IF('Enrollment Form'!$O80<>\"Graded\",\"-\",IF(AND('Enrollment Form'!$O80=\"Graded\",'Enrollment Form'!$AO80<>\"\"),\"Y\",\"N\"))","v":"-"},{"$f":"IF($B73=\"N\",\"\",IF(OR('Enrollment Form'!$B80<>\"Subscriber\",'Enrollment Form'!$C80=\"ROC\"),\"-\",IF(AND('Enrollment Form'!$B80=\"Subscriber\",'Enrollment Form'!$C80=\"Enroll\",'Enrollment Form'!$AJ80<>\"\"),\"Y\",\"N\")))","v":""},{"$f":"IF($B73=\"N\",\"\",IF(OR('Enrollment Form'!$B80<>\"Subscriber\",'Enrollment Form'!$C80=\"ROC\"),\"-\",IF(AND('Enrollment Form'!$B80=\"Subscriber\",'Enrollment Form'!$C80=\"Enroll\",'Enrollment Form'!$AK80<>\"\"),\"Y\",\"N\")))","v":""},{"$f":"IF($B73=\"N\",\"\",IF(OR('Enrollment Form'!$B80<>\"Subscriber\",'Enrollment Form'!$C80=\"ROC\"),\"-\",IF(AND('Enrollment Form'!$B80=\"Subscriber\",'Enrollment Form'!$C80=\"Enroll\",'Enrollment Form'!$AL80<>\"\"),\"Y\",\"N\")))","v":""},{"$f":"IF($B73=\"N\",\"\",IF(OR('Enrollment Form'!$B80<>\"Subscriber\",'Enrollment Form'!$C80=\"ROC\"),\"-\",IF(AND('Enrollment Form'!$B80=\"Subscriber\",'Enrollment Form'!$C80=\"Enroll\",'Enrollment Form'!$AM80<>\"\"),\"Y\",\"N\")))","v":""},{"$f":"IF($B73=\"N\",\"\",IF(OR('Enrollment Form'!$B80<>\"Subscriber\",'Enrollment Form'!$C80=\"ROC\"),\"-\",IF(AND('Enrollment Form'!$B80=\"Subscriber\",'Enrollment Form'!$C80=\"Enroll\",'Enrollment Form'!$AN80<>\"\"),\"Y\",\"N\")))","v":""},{"$f":"IF($B73=\"N\",\"\",IF(OR('Enrollment Form'!$B80<>\"Subscriber\",'Enrollment Form'!$C80=\"ROC\"),\"-\",IF(AND('Enrollment Form'!$B80=\"Subscriber\",'Enrollment Form'!$C80=\"Enroll\",'Enrollment Form'!$AP80<>\"\"),\"Y\",\"N\")))","v":""},{"$f":"IF($B73=\"N\",\"\",IF($Q73=\"-\",\"-\",IF(AND($Q73=\"Y\",'Enrollment Form'!$AP80=\"No\"),\"-\",IF(AND($Q73=\"Y\",'Enrollment Form'!$AP80=\"Yes\",'Enrollment Form'!$AQ80<>\"\"),\"Y\",\"N\"))))","v":""},{"$f":"IF($B73=\"N\",\"\",IF(OR('Enrollment Form'!$B80<>\"Subscriber\",'Enrollment Form'!$C80=\"ROC\"),\"-\",IF(AND('Enrollment Form'!$B80=\"Subscriber\",'Enrollment Form'!$C80=\"Enroll\",'Enrollment Form'!$CO80<>\"\"),\"Y\",\"N\")))","v":""},{"$f":"IF($B73=\"N\",\"\",IF($S73=\"-\",\"-\",IF(AND($S73=\"Y\",'Enrollment Form'!$CO80=\"No\"),\"-\",IF(AND($S73=\"Y\",'Enrollment Form'!$CO80=\"Yes\",'Enrollment Form'!$CP80<>\"\"),\"Y\",\"N\"))))","v":""},{"$f":"IF(OR('Enrollment Form'!$AV80=\"Yes\",'Enrollment Form'!$AV80=\"\"),\"-\",IF(AND('Enrollment Form'!$AV80=\"No\",ISERROR(FIND(\"HMO\",VLOOKUP('Enrollment Form'!G80,'Enrollment Form'!H$11:J$1000,3,FALSE),1))=FALSE,COUNTA('Enrollment Form'!$AW80:$AZ80)=4),\"Y\",\"N\"))","v":"-"},{"$f":"IF($B73=\"N\",\"\",IF('Enrollment Form'!$B80=\"Subscriber\",\"-\",IF(COUNTA('Enrollment Form'!$BE80,'Enrollment Form'!$BG80)=2,\"Y\",\"N\")))","v":""},{"$f":"IF($B73=\"N\",\"\",IF(OR('Enrollment Form'!$AU80=\"\",'Enrollment Form'!$AU80=\"No\"),\"-\",IF(AND('Enrollment Form'!$AU80=\"Yes\",COUNTA('Enrollment Form'!$CK80)=1),\"Y\",\"N\")))","v":""},{"$f":"IF(OR('Enrollment Form'!$CK80=\"\",'Enrollment Form'!$CK80=\"No\"),\"-\",IF(COUNTA('Enrollment Form'!$CM80:$CN80)=2,\"Y\",\"N\"))","v":"-"},{"$f":"IF($B73=\"N\",\"\",IF(COUNTIF('Enrollment Form'!$CZ80:$DO80,\"Other\")=COUNTA('Enrollment Form'!$DF80,'Enrollment Form'!$DA80,'Enrollment Form'!$DK80,'Enrollment Form'!$DP80),\"Y\",\"N\"))","v":""},{"$f":"IF($B73=\"N\",\"\",IF(OR('Enrollment Form'!B80<>\"Subscriber\",'Enrollment Form'!C80=\"ROC\",COUNTIF('Enrollment Form'!AS80:AT80,\"Yes\")>=1),\"-\",IF(AND('Enrollment Form'!C80=\"Enroll\",COUNTIF('Enrollment Form'!AS80:AT80,\"No\")=2,'Enrollment Form'!AU80=\"\"),\"N\",\"Y\")))","v":""},{"$f":"IF(OR(B73=\"N\",'Enrollment Form'!B80<>\"Subscriber\",'Enrollment Form'!C80=\"ROC\",'Enrollment Form'!O80<>\"Multiple of Salary\"),\"-\",IF(COUNTA('Enrollment Form'!T80:U80)<2,\"N\",\"Y\"))","v":"-"},{"$f":"IF(B73=\"N\",\"\",IF(OR('Enrollment Form'!C80=\"ROC\",'Enrollment Form'!B80<>\"Subscriber\",'Enrollment Form'!O80=\"Waive\",'Enrollment Form'!O80=\"\"),\"-\",IF('Enrollment Form'!P80=\"\",\"N\",\"Y\")))","v":""},{"$f":"IF($B73=\"N\",\"\",IF(AND('Enrollment Form'!$C80=\"ROC\",'Enrollment Form'!$DS80<>\"\"),\"Y\",IF(AND('Enrollment Form'!$C80=\"ROC\",'Enrollment Form'!$DS80=\"\"),\"N\",IF(AND('Enrollment Form'!$C80=\"Enroll\",'Enrollment Form'!$B80=\"Subscriber\",'Enrollment Form'!$CQ80=\"No\",'Enrollment Form'!$DS80=\"\"),\"N\",IF(AND('Enrollment Form'!$C80=\"Enroll\",'Enrollment Form'!$B80=\"Subscriber\",'Enrollment Form'!$CQ80=\"Yes\"),\"-\",\"Y\")))))","v":""},{"$f":"IF($B73=\"N\",\"\",IF(AND('Enrollment Form'!$C80=\"ROC\",'Enrollment Form'!$DT80<>\"\"),\"Y\",IF(AND('Enrollment Form'!$C80=\"ROC\",'Enrollment Form'!$DT80=\"\"),\"N\",IF(AND('Enrollment Form'!$C80=\"Enroll\",'Enrollment Form'!$B80=\"Subscriber\",'Enrollment Form'!$CQ80=\"No\",'Enrollment Form'!$DT80=\"\"),\"N\",IF(AND('Enrollment Form'!$C80=\"Enroll\",'Enrollment Form'!$B80=\"Subscriber\",'Enrollment Form'!$CQ80=\"Yes\"),\"-\",\"Y\")))))","v":""},{"$f":"IF('Enrollment Form'!AH80=\"\",\"\",IF(ISERROR(SEARCH(\".\",'Enrollment Form'!AH80,SEARCH(\"@\",'Enrollment Form'!AH80))),\"N\",\"Y\"))","v":""},{"$f":"IF(OR($B73=\"N\",'Enrollment Form'!$G80=\"\"),\"\",IF('Enrollment Form'!$B80<>\"Subscriber\",\"-\",IF(COUNTIF('Enrollment Form'!$AS80:$AT80,\"Yes\")=2,\"N\",\"Y\")))","v":""},{"$f":"IF(OR('Enrollment Form'!$CC80=\"\",'Enrollment Form'!$CC80=\"No\"),\"-\",IF(AND('Enrollment Form'!$CC80=\"Yes\",'Enrollment Form'!$CD80=\"\"),\"N\",\"Y\"))","v":"-"},{"$f":"IF(OR('Enrollment Form'!$CE80=\"\",'Enrollment Form'!$CE80=\"No\"),\"-\",IF(AND('Enrollment Form'!$CE80=\"Yes\",'Enrollment Form'!$CF80=\"\"),\"N\",\"Y\"))","v":"-"},{"$f":"IF(OR('Enrollment Form'!$CG80=\"\",'Enrollment Form'!$CG80=\"No\"),\"-\",IF(AND('Enrollment Form'!$CG80=\"Yes\",'Enrollment Form'!$CH80=\"\"),\"N\",\"Y\"))","v":"-"},{"$f":"IF(OR('Enrollment Form'!$CG80=\"\",'Enrollment Form'!$CG80=\"No\"),\"-\",IF(AND('Enrollment Form'!$CG80=\"Yes\",'Enrollment Form'!$CI80=\"\"),\"N\",\"Y\"))","v":"-"},{"$f":"IF('Enrollment Form'!B80<>\"Subscriber\",\"-\",IF(AND('Enrollment Form'!B80=\"Subscriber\",'Enrollment Form'!C80=\"Enroll\",'Enrollment Form'!AA80=\"\"),\"N\",\"Y\"))","v":"-"},{"$f":"IF(OR('Enrollment Form'!B80=\"Subscriber\",'Enrollment Form'!B80=\"\"),\"-\",IF('Enrollment Form'!BI80=\"\",\"N\",\"Y\"))","v":"-"},{"$f":"IF('Enrollment Form'!B80<>\"Subscriber\",\"-\",IF(AND('Enrollment Form'!B80=\"Subscriber\",'Enrollment Form'!G80=\"\"),\"N\",\"Y\"))","v":"-"},{"$f":"IF('Enrollment Form'!A80=\"\",\"\",IF('Enrollment Form'!B80=\"Subscriber\",\"-\",IF(AND('Enrollment Form'!B80<>\"Subscriber\",'Enrollment Form'!G80='Enrollment Form'!H80),\"N\",\"Y\")))","v":""},0]
[81,{"$f":"IF('Enrollment Form'!$A81<>\"\",\"Y\",\"N\")","v":"N"},{"$f":"IF(AND('Enrollment Form'!$B81=\"\",'Enrollment Form'!$C81<>\"\"),\"N\",IF($B74=\"N\",\"\",\"Y\"))","v":""},{"$f":"IF(OR($B74=\"N\",'Enrollment Form'!G81=\"\"),\"\",IF('Enrollment Form'!$B81<>\"Subscriber\",\"\",IF('Enrollment Form'!$G81='Enrollment Form'!$H81,\"Y\",\"N\")))","v":""},{"$f":"IF($B74=\"N\",\"\",IF(AND(COUNTIFS('Enrollment Form'!$H$11:$H$1000,'Enrollment Form'!$H81,'Enrollment Form'!$B$11:$B$1000,'Enrollment Form'!$B81)>1,'Enrollment Form'!$H81<>\"\"),\"N\",\"Y\"))","v":""},{"$f":"IF($B74=\"N\",\"\",IF(LEN('Enrollment Form'!$Y81)=0,\"\",IF(LEN('Enrollment Form'!$Y81)<>5,\"N\",\"Y\")))","v":""},{"$f":"IF($B74=\"N\",\"\",IF(LEN('Enrollment Form'!$AD81=0),\"\",IF(LEN('Enrollment Form'!$AD81)<>5,\"N\",\"Y\")))","v":""},{"$f":"IF($B74=\"N\",\"\",IF(LEN('Enrollment Form'!$BL81=0),\"\",IF(LEN('Enrollment Form'!$BL81)<>5,\"N\",\"Y\")))","v":""},{"$f":"IF($B74=\"N\",\"\",IF(LEN('Enrollment Form'!$AE81)=0,\"\",IF(LEN('Enrollment Form'!$AE81)<>10,\"N\",\"Y\")))","v":""},{"$f":"IF($B74=\"N\",\"\",IF(LEN('Enrollment Form'!$AF81)=0,\"\",IF(LEN('Enrollment Form'!$AF81)<>10,\"N\",\"Y\")))","v":""},{"$f":"IF('Enrollment Form'!$O81<>\"Graded\",\"-\",IF(AND('Enrollment Form'!$O81=\"Graded\",'Enrollment Form'!$AO81<>\"\"),\"Y\",\"N\"))","v":"-"},{"$f":"IF($B74=\"N\",\"\",IF(OR('Enrollment Form'!$B81<>\"Subscriber\",'Enrollment Form'!$C81=\"ROC\"),\"-\",IF(AND('Enrollment Form'!$B81=\"Subscriber\",'Enrollment Form'!$C81=\"Enroll\",'Enrollment Form'!$AJ81<>\"\"),\"Y\",\"N\")))","v":""},{"$f":"IF($B74=\"N\",\"\",IF(OR('Enrollment Form'!$B81<>\"Subscriber\",'Enrollment Form'!$C81=\"ROC\"),\"-\",IF(AND('Enrollment Form'!$B81=\"Subscriber\",'Enrollment Form'!$C81=\"Enroll\",'Enrollment Form'!$AK81<>\"\"),\"Y\",\"N\")))","v":""},{"$f":"IF($B74=\"N\",\"\",IF(OR('Enrollment Form'!$B81<>\"Subscriber\",'Enrollment Form'!$C81=\"ROC\"),\"-\",IF(AND('Enrollment Form'!$B81=\"Subscriber\",'Enrollment Form'!$C81=\"Enroll\",'Enrollment Form'!$AL81<>\"\"),\"Y\",\"N\")))","v":""},{"$f":"IF($B74=\"N\",\"\",IF(OR('Enrollment Form'!$B81<>\"Subscriber\",'Enrollment Form'!$C81=\"ROC\"),\"-\",IF(AND('Enrollment Form'!$B81=\"Subscriber\",'Enrollment Form'!$C81=\"Enroll\",'Enrollment Form'!$AM81<>\"\"),\"Y\",\"N\")))","v":""},{"$f":"IF($B74=\"N\",\"\",IF(OR('Enrollment Form'!$B81<>\"Subscriber\",'Enrollment Form'!$C81=\"ROC\"),\"-\",IF(AND('Enrollment Form'!$B81=\"Subscriber\",'Enrollment Form'!$C81=\"Enroll\",'Enrollment Form'!$AN81<>\"\"),\"Y\",\"N\")))","v":""},{"$f":"IF($B74=\"N\",\"\",IF(OR('Enrollment Form'!$B81<>\"Subscriber\",'Enrollment Form'!$C81=\"ROC\"),\"-\",IF(AND('Enrollment Form'!$B81=\"Subscriber\",'Enrollment Form'!$C81=\"Enroll\",'Enrollment Form'!$AP81<>\"\"),\"Y\",\"N\")))","v":""},{"$f":"IF($B74=\"N\",\"\",IF($Q74=\"-\",\"-\",IF(AND($Q74=\"Y\",'Enrollment Form'!$AP81=\"No\"),\"-\",IF(AND($Q74=\"Y\",'Enrollment Form'!$AP81=\"Yes\",'Enrollment Form'!$AQ81<>\"\"),\"Y\",\"N\"))))","v":""},{"$f":"IF($B74=\"N\",\"\",IF(OR('Enrollment Form'!$B81<>\"Subscriber\",'Enrollment Form'!$C81=\"ROC\"),\"-\",IF(AND('Enrollment Form'!$B81=\"Subscriber\",'Enrollment Form'!$C81=\"Enroll\",'Enrollment Form'!$CO81<>\"\"),\"Y\",\"N\")))","v":""},{"$f":"IF($B74=\"N\",\"\",IF($S74=\"-\",\"-\",IF(AND($S74=\"Y\",'Enrollment Form'!$CO81=\"No\"),\"-\",IF(AND($S74=\"Y\",'Enrollment Form'!$CO81=\"Yes\",'Enrollment Form'!$CP81<>\"\"),\"Y\",\"N\"))))","v":""},{"$f":"IF(OR('Enrollment Form'!$AV81=\"Yes\",'Enrollment Form'!$AV81=\"\"),\"-\",IF(AND('Enrollment Form'!$AV81=\"No\",ISERROR(FIND(\"HMO\",VLOOKUP('Enrollment Form'!G81,'Enrollment Form'!H$11:J$1000,3,FALSE),1))=FALSE,COUNTA('Enrollment Form'!$AW81:$AZ81)=4),\"Y\",\"N\"))","v":"-"},{"$f":"IF($B74=\"N\",\"\",IF('Enrollment Form'!$B81=\"Subscriber\",\"-\",IF(COUNTA('Enrollment Form'!$BE81,'Enrollment Form'!$BG81)=2,\"Y\",\"N\")))","v":""},{"$f":"IF($B74=\"N\",\"\",IF(OR('Enrollment Form'!$AU81=\"\",'Enrollment Form'!$AU81=\"No\"),\"-\",IF(AND('Enrollment Form'!$AU81=\"Yes\",COUNTA('Enrollment Form'!$CK81)=1),\"Y\",\"N\")))","v":""},{"$f":"IF(OR('Enrollment Form'!$CK81=\"\",'Enrollment Form'!$CK81=\"No\"),\"-\",IF(COUNTA('Enrollment Form'!$CM81:$CN81)=2,\"Y\",\"N\"))","v":"-"},{"$f":"IF($B74=\"N\",\"\",IF(COUNTIF('Enrollment Form'!$CZ81:$DO81,\"Other\")=COUNTA('Enrollment Form'!$DF81,'Enrollment Form'!$DA81,'Enrollment Form'!$DK81,'Enrollment Form'!$DP81),\"Y\",\"N\"))","v":""},{"$f":"IF($B74=\"N\",\"\",IF(OR('Enrollment Form'!B81<>\"Subscriber\",'Enrollment Form'!C81=\"ROC\",COUNTIF('Enrollment Form'!AS81:AT81,\"Yes\")>=1),\"-\",IF(AND('Enrollment Form'!C81=\"Enroll\",COUNTIF('Enrollment Form'!AS81:AT81,\"No\")=2,'Enrollment Form'!AU81=\"\"),\"N\",\"Y\")))","v":""},{"$f":"IF(OR(B74=\"N\",'Enrollment Form'!B81<>\"Subscriber\",'Enrollment Form'!C81=\"ROC\",'Enrollment Form'!O81<>\"Multiple of Salary\"),\"-\",IF(COUNTA('Enrollment Form'!T81:U81)<2,\"N\",\"Y\"))","v":"-"},{"$f":"IF(B74=\"N\",\"\",IF(OR('Enrollment Form'!C81=\"ROC\",'Enrollment Form'!B81<>\"Subscriber\",'Enrollment Form'!O81=\"Waive\",'Enrollment Form'!O81=\"\"),\"-\",IF('Enrollment Form'!P81=\"\",\"N\",\"Y\")))","v":""},{"$f":"IF($B74=\"N\",\"\",IF(AND('Enrollment Form'!$C81=\"ROC\",'Enrollment Form'!$DS81<>\"\"),\"Y\",IF(AND('Enrollment Form'!$C81=\"ROC\",'Enrollment Form'!$DS81=\"\"),\"N\",IF(AND('Enrollment Form'!$C81=\"Enroll\",'Enrollment Form'!$B81=\"Subscriber\",'Enrollment Form'!$CQ81=\"No\",'Enrollment Form'!$DS81=\"\"),\"N\",IF(AND('Enrollment Form'!$C81=\"Enroll\",'Enrollment Form'!$B81=\"Subscriber\",'Enrollment Form'!$CQ81=\"Yes\"),\"-\",\"Y\")))))","v":""},{"$f":"IF($B74=\"N\",\"\",IF(AND('Enrollment Form'!$C81=\"ROC\",'Enrollment Form'!$DT81<>\"\"),\"Y\",IF(AND('Enrollment Form'!$C81=\"ROC\",'Enrollment Form'!$DT81=\"\"),\"N\",IF(AND('Enrollment Form'!$C81=\"Enroll\",'Enrollment Form'!$B81=\"Subscriber\",'Enrollment Form'!$CQ81=\"No\",'Enrollment Form'!$DT81=\"\"),\"N\",IF(AND('Enrollment Form'!$C81=\"Enroll\",'Enrollment Form'!$B81=\"Subscriber\",'Enrollment Form'!$CQ81=\"Yes\"),\"-\",\"Y\")))))","v":""},{"$f":"IF('Enrollment Form'!AH81=\"\",\"\",IF(ISERROR(SEARCH(\".\",'Enrollment Form'!AH81,SEARCH(\"@\",'Enrollment Form'!AH81))),\"N\",\"Y\"))","v":""},{"$f":"IF(OR($B74=\"N\",'Enrollment Form'!$G81=\"\"),\"\",IF('Enrollment Form'!$B81<>\"Subscriber\",\"-\",IF(COUNTIF('Enrollment Form'!$AS81:$AT81,\"Yes\")=2,\"N\",\"Y\")))","v":""},{"$f":"IF(OR('Enrollment Form'!$CC81=\"\",'Enrollment Form'!$CC81=\"No\"),\"-\",IF(AND('Enrollment Form'!$CC81=\"Yes\",'Enrollment Form'!$CD81=\"\"),\"N\",\"Y\"))","v":"-"},{"$f":"IF(OR('Enrollment Form'!$CE81=\"\",'Enrollment Form'!$CE81=\"No\"),\"-\",IF(AND('Enrollment Form'!$CE81=\"Yes\",'Enrollment Form'!$CF81=\"\"),\"N\",\"Y\"))","v":"-"},{"$f":"IF(OR('Enrollment Form'!$CG81=\"\",'Enrollment Form'!$CG81=\"No\"),\"-\",IF(AND('Enrollment Form'!$CG81=\"Yes\",'Enrollment Form'!$CH81=\"\"),\"N\",\"Y\"))","v":"-"},{"$f":"IF(OR('Enrollment Form'!$CG81=\"\",'Enrollment Form'!$CG81=\"No\"),\"-\",IF(AND('Enrollment Form'!$CG81=\"Yes\",'Enrollment Form'!$CI81=\"\"),\"N\",\"Y\"))","v":"-"},{"$f":"IF('Enrollment Form'!B81<>\"Subscriber\",\"-\",IF(AND('Enrollment Form'!B81=\"Subscriber\",'Enrollment Form'!C81=\"Enroll\",'Enrollment Form'!AA81=\"\"),\"N\",\"Y\"))","v":"-"},{"$f":"IF(OR('Enrollment Form'!B81=\"Subscriber\",'Enrollment Form'!B81=\"\"),\"-\",IF('Enrollment Form'!BI81=\"\",\"N\",\"Y\"))","v":"-"},{"$f":"IF('Enrollment Form'!B81<>\"Subscriber\",\"-\",IF(AND('Enrollment Form'!B81=\"Subscriber\",'Enrollment Form'!G81=\"\"),\"N\",\"Y\"))","v":"-"},{"$f":"IF('Enrollment Form'!A81=\"\",\"\",IF('Enrollment Form'!B81=\"Subscriber\",\"-\",IF(AND('Enrollment Form'!B81<>\"Subscriber\",'Enrollment Form'!G81='Enrollment Form'!H81),\"N\",\"Y\")))","v":""},0]
[82,{"$f":"IF('Enrollment Form'!$A82<>\"\",\"Y\",\"N\")","v":"N"},{"$f":"IF(AND('Enrollment Form'!$B82=\"\",'Enrollment Form'!$C82<>\"\"),\"N\",IF($B75=\"N\",\"\",\"Y\"))","v":""},{"$f":"IF(OR($B75=\"N\",'Enrollment Form'!G82=\"\"),\"\",IF('Enrollment Form'!$B82<>\"Subscriber\",\"\",IF('Enrollment Form'!$G82='Enrollment Form'!$H82,\"Y\",\"N\")))","v":""},{"$f":"IF($B75=\"N\",\"\",IF(AND(COUNTIFS('Enrollment Form'!$H$11:$H$1000,'Enrollment Form'!$H82,'Enrollment Form'!$B$11:$B$1000,'Enrollment Form'!$B82)>1,'Enrollment Form'!$H82<>\"\"),\"N\",\"Y\"))","v":""},{"$f":"IF($B75=\"N\",\"\",IF(LEN('Enrollment Form'!$Y82)=0,\"\",IF(LEN('Enrollment Form'!$Y82)<>5,\"N\",\"Y\")))","v":""},{"$f":"IF($B75=\"N\",\"\",IF(LEN('Enrollment Form'!$AD82=0),\"\",IF(LEN('Enrollment Form'!$AD82)<>5,\"N\",\"Y\")))","v":""},{"$f":"IF($B75=\"N\",\"\",IF(LEN('Enrollment Form'!$BL82=0),\"\",IF(LEN('Enrollment Form'!$BL82)<>5,\"N\",\"Y\")))","v":""},{"$f":"IF($B75=\"N\",\"\",IF(LEN('Enrollment Form'!$AE82)=0,\"\",IF(LEN('Enrollment Form'!$AE82)<>10,\"N\",\"Y\")))","v":""},{"$f":"IF($B75=\"N\",\"\",IF(LEN('Enrollment Form'!$AF82)=0,\"\",IF(LEN('Enrollment Form'!$AF82)<>10,\"N\",\"Y\")))","v":""},{"$f":"IF('Enrollment Form'!$O82<>\"Graded\",\"-\",IF(AND('Enrollment Form'!$O82=\"Graded\",'Enrollment Form'!$AO82<>\"\"),\"Y\",\"N\"))","v":"-"},{"$f":"IF($B75=\"N\",\"\",IF(OR('Enrollment Form'!$B82<>\"Subscriber\",'Enrollment Form'!$C82=\"ROC\"),\"-\",IF(AND('Enrollment Form'!$B82=\"Subscriber\",'Enrollment Form'!$C82=\"Enroll\",'Enrollment Form'!$AJ82<>\"\"),\"Y\",\"N\")))","v":""},{"$f":"IF($B75=\"N\",\"\",IF(OR('Enrollment Form'!$B82<>\"Subscriber\",'Enrollment Form'!$C82=\"ROC\"),\"-\",IF(AND('Enrollment Form'!$B82=\"Subscriber\",'Enrollment Form'!$C82=\"Enroll\",'Enrollment Form'!$AK82<>\"\"),\"Y\",\"N\")))","v":""},{"$f":"IF($B75=\"N\",\"\",IF(OR('Enrollment Form'!$B82<>\"Subscriber\",'Enrollment Form'!$C82=\"ROC\"),\"-\",IF(AND('Enrollment Form'!$B82=\"Subscriber\",'Enrollment Form'!$C82=\"Enroll\",'Enrollment Form'!$AL82<>\"\"),\"Y\",\"N\")))","v":""},{"$f":"IF($B75=\"N\",\"\",IF(OR('Enrollment Form'!$B82<>\"Subscriber\",'Enrollment Form'!$C82=\"ROC\"),\"-\",IF(AND('Enrollment Form'!$B82=\"Subscriber\",'Enrollment Form'!$C82=\"Enroll\",'Enrollment Form'!$AM82<>\"\"),\"Y\",\"N\")))","v":""},{"$f":"IF($B75=\"N\",\"\",IF(OR('Enrollment Form'!$B82<>\"Subscriber\",'Enrollment Form'!$C82=\"ROC\"),\"-\",IF(AND('Enrollment Form'!$B82=\"Subscriber\",'Enrollment Form'!$C82=\"Enroll\",'Enrollment Form'!$AN82<>\"\"),\"Y\",\"N\")))","v":""},{"$f":"IF($B75=\"N\",\"\",IF(OR('Enrollment Form'!$B82<>\"Subscriber\",'Enrollment Form'!$C82=\"ROC\"),\"-\",IF(AND('Enrollment Form'!$B82=\"Subscriber\",'Enrollment Form'!$C82=\"Enroll\",'Enrollment Form'!$AP82<>\"\"),\"Y\",\"N\")))","v":""},{"$f":"IF($B75=\"N\",\"\",IF($Q75=\"-\",\"-\",IF(AND($Q75=\"Y\",'Enrollment Form'!$AP82=\"No\"),\"-\",IF(AND($Q75=\"Y\",'Enrollment Form'!$AP82=\"Yes\",'Enrollment Form'!$AQ82<>\"\"),\"Y\",\"N\"))))","v":""},{"$f":"IF($B75=\"N\",\"\",IF(OR('Enrollment Form'!$B82<>\"Subscriber\",'Enrollment Form'!$C82=\"ROC\"),\"-\",IF(AND('Enrollment Form'!$B82=\"Subscriber\",'Enrollment Form'!$C82=\"Enroll\",'Enrollment Form'!$CO82<>\"\"),\"Y\",\"N\")))","v":""},{"$f":"IF($B75=\"N\",\"\",IF($S75=\"-\",\"-\",IF(AND($S75=\"Y\",'Enrollment Form'!$CO82=\"No\"),\"-\",IF(AND($S75=\"Y\",'Enrollment Form'!$CO82=\"Yes\",'Enrollment Form'!$CP82<>\"\"),\"Y\",\"N\"))))","v":""},{"$f":"IF(OR('Enrollment Form'!$AV82=\"Yes\",'Enrollment Form'!$AV82=\"\"),\"-\",IF(AND('Enrollment Form'!$AV82=\"No\",ISERROR(FIND(\"HMO\",VLOOKUP('Enrollment Form'!G82,'Enrollment Form'!H$11:J$1000,3,FALSE),1))=FALSE,COUNTA('Enrollment Form'!$AW82:$AZ82)=4),\"Y\",\"N\"))","v":"-"},{"$f":"IF($B75=\"N\",\"\",IF('Enrollment Form'!$B82=\"Subscriber\",\"-\",IF(COUNTA('Enrollment Form'!$BE82,'Enrollment Form'!$BG82)=2,\"Y\",\"N\")))","v":""},{"$f":"IF($B75=\"N\",\"\",IF(OR('Enrollment Form'!$AU82=\"\",'Enrollment Form'!$AU82=\"No\"),\"-\",IF(AND('Enrollment Form'!$AU82=\"Yes\",COUNTA('Enrollment Form'!$CK82)=1),\"Y\",\"N\")))","v":""},{"$f":"IF(OR('Enrollment Form'!$CK82=\"\",'Enrollment Form'!$CK82=\"No\"),\"-\",IF(COUNTA('Enrollment Form'!$CM82:$CN82)=2,\"Y\",\"N\"))","v":"-"},{"$f":"IF($B75=\"N\",\"\",IF(COUNTIF('Enrollment Form'!$CZ82:$DO82,\"Other\")=COUNTA('Enrollment Form'!$DF82,'Enrollment Form'!$DA82,'Enrollment Form'!$DK82,'Enrollment Form'!$DP82),\"Y\",\"N\"))","v":""},{"$f":"IF($B75=\"N\",\"\",IF(OR('Enrollment Form'!B82<>\"Subscriber\",'Enrollment Form'!C82=\"ROC\",COUNTIF('Enrollment Form'!AS82:AT82,\"Yes\")>=1),\"-\",IF(AND('Enrollment Form'!C82=\"Enroll\",COUNTIF('Enrollment Form'!AS82:AT82,\"No\")=2,'Enrollment Form'!AU82=\"\"),\"N\",\"Y\")))","v":""},{"$f":"IF(OR(B75=\"N\",'Enrollment Form'!B82<>\"Subscriber\",'Enrollment Form'!C82=\"ROC\",'Enrollment Form'!O82<>\"Multiple of Salary\"),\"-\",IF(COUNTA('Enrollment Form'!T82:U82)<2,\"N\",\"Y\"))","v":"-"},{"$f":"IF(B75=\"N\",\"\",IF(OR('Enrollment Form'!C82=\"ROC\",'Enrollment Form'!B82<>\"Subscriber\",'Enrollment Form'!O82=\"Waive\",'Enrollment Form'!O82=\"\"),\"-\",IF('Enrollment Form'!P82=\"\",\"N\",\"Y\")))","v":""},{"$f":"IF($B75=\"N\",\"\",IF(AND('Enrollment Form'!$C82=\"ROC\",'Enrollment Form'!$DS82<>\"\"),\"Y\",IF(AND('Enrollment Form'!$C82=\"ROC\",'Enrollment Form'!$DS82=\"\"),\"N\",IF(AND('Enrollment Form'!$C82=\"Enroll\",'Enrollment Form'!$B82=\"Subscriber\",'Enrollment Form'!$CQ82=\"No\",'Enrollment Form'!$DS82=\"\"),\"N\",IF(AND('Enrollment Form'!$C82=\"Enroll\",'Enrollment Form'!$B82=\"Subscriber\",'Enrollment Form'!$CQ82=\"Yes\"),\"-\",\"Y\")))))","v":""},{"$f":"IF($B75=\"N\",\"\",IF(AND('Enrollment Form'!$C82=\"ROC\",'Enrollment Form'!$DT82<>\"\"),\"Y\",IF(AND('Enrollment Form'!$C82=\"ROC\",'Enrollment Form'!$DT82=\"\"),\"N\",IF(AND('Enrollment Form'!$C82=\"Enroll\",'Enrollment Form'!$B82=\"Subscriber\",'Enrollment Form'!$CQ82=\"No\",'Enrollment Form'!$DT82=\"\"),\"N\",IF(AND('Enrollment Form'!$C82=\"Enroll\",'Enrollment Form'!$B82=\"Subscriber\",'Enrollment Form'!$CQ82=\"Yes\"),\"-\",\"Y\")))))","v":""},{"$f":"IF('Enrollment Form'!AH82=\"\",\"\",IF(ISERROR(SEARCH(\".\",'Enrollment Form'!AH82,SEARCH(\"@\",'Enrollment Form'!AH82))),\"N\",\"Y\"))","v":""},{"$f":"IF(OR($B75=\"N\",'Enrollment Form'!$G82=\"\"),\"\",IF('Enrollment Form'!$B82<>\"Subscriber\",\"-\",IF(COUNTIF('Enrollment Form'!$AS82:$AT82,\"Yes\")=2,\"N\",\"Y\")))","v":""},{"$f":"IF(OR('Enrollment Form'!$CC82=\"\",'Enrollment Form'!$CC82=\"No\"),\"-\",IF(AND('Enrollment Form'!$CC82=\"Yes\",'Enrollment Form'!$CD82=\"\"),\"N\",\"Y\"))","v":"-"},{"$f":"IF(OR('Enrollment Form'!$CE82=\"\",'Enrollment Form'!$CE82=\"No\"),\"-\",IF(AND('Enrollment Form'!$CE82=\"Yes\",'Enrollment Form'!$CF82=\"\"),\"N\",\"Y\"))","v":"-"},{"$f":"IF(OR('Enrollment Form'!$CG82=\"\",'Enrollment Form'!$CG82=\"No\"),\"-\",IF(AND('Enrollment Form'!$CG82=\"Yes\",'Enrollment Form'!$CH82=\"\"),\"N\",\"Y\"))","v":"-"},{"$f":"IF(OR('Enrollment Form'!$CG82=\"\",'Enrollment Form'!$CG82=\"No\"),\"-\",IF(AND('Enrollment Form'!$CG82=\"Yes\",'Enrollment Form'!$CI82=\"\"),\"N\",\"Y\"))","v":"-"},{"$f":"IF('Enrollment Form'!B82<>\"Subscriber\",\"-\",IF(AND('Enrollment Form'!B82=\"Subscriber\",'Enrollment Form'!C82=\"Enroll\",'Enrollment Form'!AA82=\"\"),\"N\",\"Y\"))","v":"-"},{"$f":"IF(OR('Enrollment Form'!B82=\"Subscriber\",'Enrollment Form'!B82=\"\"),\"-\",IF('Enrollment Form'!BI82=\"\",\"N\",\"Y\"))","v":"-"},{"$f":"IF('Enrollment Form'!B82<>\"Subscriber\",\"-\",IF(AND('Enrollment Form'!B82=\"Subscriber\",'Enrollment Form'!G82=\"\"),\"N\",\"Y\"))","v":"-"},{"$f":"IF('Enrollment Form'!A82=\"\",\"\",IF('Enrollment Form'!B82=\"Subscriber\",\"-\",IF(AND('Enrollment Form'!B82<>\"Subscriber\",'Enrollment Form'!G82='Enrollment Form'!H82),\"N\",\"Y\")))","v":""},0]
[83,{"$f":"IF('Enrollment Form'!$A83<>\"\",\"Y\",\"N\")","v":"N"},{"$f":"IF(AND('Enrollment Form'!$B83=\"\",'Enrollment Form'!$C83<>\"\"),\"N\",IF($B76=\"N\",\"\",\"Y\"))","v":""},{"$f":"IF(OR($B76=\"N\",'Enrollment Form'!G83=\"\"),\"\",IF('Enrollment Form'!$B83<>\"Subscriber\",\"\",IF('Enrollment Form'!$G83='Enrollment Form'!$H83,\"Y\",\"N\")))","v":""},{"$f":"IF($B76=\"N\",\"\",IF(AND(COUNTIFS('Enrollment Form'!$H$11:$H$1000,'Enrollment Form'!$H83,'Enrollment Form'!$B$11:$B$1000,'Enrollment Form'!$B83)>1,'Enrollment Form'!$H83<>\"\"),\"N\",\"Y\"))","v":""},{"$f":"IF($B76=\"N\",\"\",IF(LEN('Enrollment Form'!$Y83)=0,\"\",IF(LEN('Enrollment Form'!$Y83)<>5,\"N\",\"Y\")))","v":""},{"$f":"IF($B76=\"N\",\"\",IF(LEN('Enrollment Form'!$AD83=0),\"\",IF(LEN('Enrollment Form'!$AD83)<>5,\"N\",\"Y\")))","v":""},{"$f":"IF($B76=\"N\",\"\",IF(LEN('Enrollment Form'!$BL83=0),\"\",IF(LEN('Enrollment Form'!$BL83)<>5,\"N\",\"Y\")))","v":""},{"$f":"IF($B76=\"N\",\"\",IF(LEN('Enrollment Form'!$AE83)=0,\"\",IF(LEN('Enrollment Form'!$AE83)<>10,\"N\",\"Y\")))","v":""},{"$f":"IF($B76=\"N\",\"\",IF(LEN('Enrollment Form'!$AF83)=0,\"\",IF(LEN('Enrollment Form'!$AF83)<>10,\"N\",\"Y\")))","v":""},{"$f":"IF('Enrollment Form'!$O83<>\"Graded\",\"-\",IF(AND('Enrollment Form'!$O83=\"Graded\",'Enrollment Form'!$AO83<>\"\"),\"Y\",\"N\"))","v":"-"},{"$f":"IF($B76=\"N\",\"\",IF(OR('Enrollment Form'!$B83<>\"Subscriber\",'Enrollment Form'!$C83=\"ROC\"),\"-\",IF(AND('Enrollment Form'!$B83=\"Subscriber\",'Enrollment Form'!$C83=\"Enroll\",'Enrollment Form'!$AJ83<>\"\"),\"Y\",\"N\")))","v":""},{"$f":"IF($B76=\"N\",\"\",IF(OR('Enrollment Form'!$B83<>\"Subscriber\",'Enrollment Form'!$C83=\"ROC\"),\"-\",IF(AND('Enrollment Form'!$B83=\"Subscriber\",'Enrollment Form'!$C83=\"Enroll\",'Enrollment Form'!$AK83<>\"\"),\"Y\",\"N\")))","v":""},{"$f":"IF($B76=\"N\",\"\",IF(OR('Enrollment Form'!$B83<>\"Subscriber\",'Enrollment Form'!$C83=\"ROC\"),\"-\",IF(AND('Enrollment Form'!$B83=\"Subscriber\",'Enrollment Form'!$C83=\"Enroll\",'Enrollment Form'!$AL83<>\"\"),\"Y\",\"N\")))","v":""},{"$f":"IF($B76=\"N\",\"\",IF(OR('Enrollment Form'!$B83<>\"Subscriber\",'Enrollment Form'!$C83=\"ROC\"),\"-\",IF(AND('Enrollment Form'!$B83=\"Subscriber\",'Enrollment Form'!$C83=\"Enroll\",'Enrollment Form'!$AM83<>\"\"),\"Y\",\"N\")))","v":""},{"$f":"IF($B76=\"N\",\"\",IF(OR('Enrollment Form'!$B83<>\"Subscriber\",'Enrollment Form'!$C83=\"ROC\"),\"-\",IF(AND('Enrollment Form'!$B83=\"Subscriber\",'Enrollment Form'!$C83=\"Enroll\",'Enrollment Form'!$AN83<>\"\"),\"Y\",\"N\")))","v":""},{"$f":"IF($B76=\"N\",\"\",IF(OR('Enrollment Form'!$B83<>\"Subscriber\",'Enrollment Form'!$C83=\"ROC\"),\"-\",IF(AND('Enrollment Form'!$B83=\"Subscriber\",'Enrollment Form'!$C83=\"Enroll\",'Enrollment Form'!$AP83<>\"\"),\"Y\",\"N\")))","v":""},{"$f":"IF($B76=\"N\",\"\",IF($Q76=\"-\",\"-\",IF(AND($Q76=\"Y\",'Enrollment Form'!$AP83=\"No\"),\"-\",IF(AND($Q76=\"Y\",'Enrollment Form'!$AP83=\"Yes\",'Enrollment Form'!$AQ83<>\"\"),\"Y\",\"N\"))))","v":""},{"$f":"IF($B76=\"N\",\"\",IF(OR('Enrollment Form'!$B83<>\"Subscriber\",'Enrollment Form'!$C83=\"ROC\"),\"-\",IF(AND('Enrollment Form'!$B83=\"Subscriber\",'Enrollment Form'!$C83=\"Enroll\",'Enrollment Form'!$CO83<>\"\"),\"Y\",\"N\")))","v":""},{"$f":"IF($B76=\"N\",\"\",IF($S76=\"-\",\"-\",IF(AND($S76=\"Y\",'Enrollment Form'!$CO83=\"No\"),\"-\",IF(AND($S76=\"Y\",'Enrollment Form'!$CO83=\"Yes\",'Enrollment Form'!$CP83<>\"\"),\"Y\",\"N\"))))","v":""},{"$f":"IF(OR('Enrollment Form'!$AV83=\"Yes\",'Enrollment Form'!$AV83=\"\"),\"-\",IF(AND('Enrollment Form'!$AV83=\"No\",ISERROR(FIND(\"HMO\",VLOOKUP('Enrollment Form'!G83,'Enrollment Form'!H$11:J$1000,3,FALSE),1))=FALSE,COUNTA('Enrollment Form'!$AW83:$AZ83)=4),\"Y\",\"N\"))","v":"-"},{"$f":"IF($B76=\"N\",\"\",IF('Enrollment Form'!$B83=\"Subscriber\",\"-\",IF(COUNTA('Enrollment Form'!$BE83,'Enrollment Form'!$BG83)=2,\"Y\",\"N\")))","v":""},{"$f":"IF($B76=\"N\",\"\",IF(OR('Enrollment Form'!$AU83=\"\",'Enrollment Form'!$AU83=\"No\"),\"-\",IF(AND('Enrollment Form'!$AU83=\"Yes\",COUNTA('Enrollment Form'!$CK83)=1),\"Y\",\"N\")))","v":""},{"$f":"IF(OR('Enrollment Form'!$CK83=\"\",'Enrollment Form'!$CK83=\"No\"),\"-\",IF(COUNTA('Enrollment Form'!$CM83:$CN83)=2,\"Y\",\"N\"))","v":"-"},{"$f":"IF($B76=\"N\",\"\",IF(COUNTIF('Enrollment Form'!$CZ83:$DO83,\"Other\")=COUNTA('Enrollment Form'!$DF83,'Enrollment Form'!$DA83,'Enrollment Form'!$DK83,'Enrollment Form'!$DP83),\"Y\",\"N\"))","v":""},{"$f":"IF($B76=\"N\",\"\",IF(OR('Enrollment Form'!B83<>\"Subscriber\",'Enrollment Form'!C83=\"ROC\",COUNTIF('Enrollment Form'!AS83:AT83,\"Yes\")>=1),\"-\",IF(AND('Enrollment Form'!C83=\"Enroll\",COUNTIF('Enrollment Form'!AS83:AT83,\"No\")=2,'Enrollment Form'!AU83=\"\"),\"N\",\"Y\")))","v":""},{"$f":"IF(OR(B76=\"N\",'Enrollment Form'!B83<>\"Subscriber\",'Enrollment Form'!C83=\"ROC\",'Enrollment Form'!O83<>\"Multiple of Salary\"),\"-\",IF(COUNTA('Enrollment Form'!T83:U83)<2,\"N\",\"Y\"))","v":"-"},{"$f":"IF(B76=\"N\",\"\",IF(OR('Enrollment Form'!C83=\"ROC\",'Enrollment Form'!B83<>\"Subscriber\",'Enrollment Form'!O83=\"Waive\",'Enrollment Form'!O83=\"\"),\"-\",IF('Enrollment Form'!P83=\"\",\"N\",\"Y\")))","v":""},{"$f":"IF($B76=\"N\",\"\",IF(AND('Enrollment Form'!$C83=\"ROC\",'Enrollment Form'!$DS83<>\"\"),\"Y\",IF(AND('Enrollment Form'!$C83=\"ROC\",'Enrollment Form'!$DS83=\"\"),\"N\",IF(AND('Enrollment Form'!$C83=\"Enroll\",'Enrollment Form'!$B83=\"Subscriber\",'Enrollment Form'!$CQ83=\"No\",'Enrollment Form'!$DS83=\"\"),\"N\",IF(AND('Enrollment Form'!$C83=\"Enroll\",'Enrollment Form'!$B83=\"Subscriber\",'Enrollment Form'!$CQ83=\"Yes\"),\"-\",\"Y\")))))","v":""},{"$f":"IF($B76=\"N\",\"\",IF(AND('Enrollment Form'!$C83=\"ROC\",'Enrollment Form'!$DT83<>\"\"),\"Y\",IF(AND('Enrollment Form'!$C83=\"ROC\",'Enrollment Form'!$DT83=\"\"),\"N\",IF(AND('Enrollment Form'!$C83=\"Enroll\",'Enrollment Form'!$B83=\"Subscriber\",'Enrollment Form'!$CQ83=\"No\",'Enrollment Form'!$DT83=\"\"),\"N\",IF(AND('Enrollment Form'!$C83=\"Enroll\",'Enrollment Form'!$B83=\"Subscriber\",'Enrollment Form'!$CQ83=\"Yes\"),\"-\",\"Y\")))))","v":""},{"$f":"IF('Enrollment Form'!AH83=\"\",\"\",IF(ISERROR(SEARCH(\".\",'Enrollment Form'!AH83,SEARCH(\"@\",'Enrollment Form'!AH83))),\"N\",\"Y\"))","v":""},{"$f":"IF(OR($B76=\"N\",'Enrollment Form'!$G83=\"\"),\"\",IF('Enrollment Form'!$B83<>\"Subscriber\",\"-\",IF(COUNTIF('Enrollment Form'!$AS83:$AT83,\"Yes\")=2,\"N\",\"Y\")))","v":""},{"$f":"IF(OR('Enrollment Form'!$CC83=\"\",'Enrollment Form'!$CC83=\"No\"),\"-\",IF(AND('Enrollment Form'!$CC83=\"Yes\",'Enrollment Form'!$CD83=\"\"),\"N\",\"Y\"))","v":"-"},{"$f":"IF(OR('Enrollment Form'!$CE83=\"\",'Enrollment Form'!$CE83=\"No\"),\"-\",IF(AND('Enrollment Form'!$CE83=\"Yes\",'Enrollment Form'!$CF83=\"\"),\"N\",\"Y\"))","v":"-"},{"$f":"IF(OR('Enrollment Form'!$CG83=\"\",'Enrollment Form'!$CG83=\"No\"),\"-\",IF(AND('Enrollment Form'!$CG83=\"Yes\",'Enrollment Form'!$CH83=\"\"),\"N\",\"Y\"))","v":"-"},{"$f":"IF(OR('Enrollment Form'!$CG83=\"\",'Enrollment Form'!$CG83=\"No\"),\"-\",IF(AND('Enrollment Form'!$CG83=\"Yes\",'Enrollment Form'!$CI83=\"\"),\"N\",\"Y\"))","v":"-"},{"$f":"IF('Enrollment Form'!B83<>\"Subscriber\",\"-\",IF(AND('Enrollment Form'!B83=\"Subscriber\",'Enrollment Form'!C83=\"Enroll\",'Enrollment Form'!AA83=\"\"),\"N\",\"Y\"))","v":"-"},{"$f":"IF(OR('Enrollment Form'!B83=\"Subscriber\",'Enrollment Form'!B83=\"\"),\"-\",IF('Enrollment Form'!BI83=\"\",\"N\",\"Y\"))","v":"-"},{"$f":"IF('Enrollment Form'!B83<>\"Subscriber\",\"-\",IF(AND('Enrollment Form'!B83=\"Subscriber\",'Enrollment Form'!G83=\"\"),\"N\",\"Y\"))","v":"-"},{"$f":"IF('Enrollment Form'!A83=\"\",\"\",IF('Enrollment Form'!B83=\"Subscriber\",\"-\",IF(AND('Enrollment Form'!B83<>\"Subscriber\",'Enrollment Form'!G83='Enrollment Form'!H83),\"N\",\"Y\")))","v":""},0]
[84,{"$f":"IF('Enrollment Form'!$A84<>\"\",\"Y\",\"N\")","v":"N"},{"$f":"IF(AND('Enrollment Form'!$B84=\"\",'Enrollment Form'!$C84<>\"\"),\"N\",IF($B77=\"N\",\"\",\"Y\"))","v":""},{"$f":"IF(OR($B77=\"N\",'Enrollment Form'!G84=\"\"),\"\",IF('Enrollment Form'!$B84<>\"Subscriber\",\"\",IF('Enrollment Form'!$G84='Enrollment Form'!$H84,\"Y\",\"N\")))","v":""},{"$f":"IF($B77=\"N\",\"\",IF(AND(COUNTIFS('Enrollment Form'!$H$11:$H$1000,'Enrollment Form'!$H84,'Enrollment Form'!$B$11:$B$1000,'Enrollment Form'!$B84)>1,'Enrollment Form'!$H84<>\"\"),\"N\",\"Y\"))","v":""},{"$f":"IF($B77=\"N\",\"\",IF(LEN('Enrollment Form'!$Y84)=0,\"\",IF(LEN('Enrollment Form'!$Y84)<>5,\"N\",\"Y\")))","v":""},{"$f":"IF($B77=\"N\",\"\",IF(LEN('Enrollment Form'!$AD84=0),\"\",IF(LEN('Enrollment Form'!$AD84)<>5,\"N\",\"Y\")))","v":""},{"$f":"IF($B77=\"N\",\"\",IF(LEN('Enrollment Form'!$BL84=0),\"\",IF(LEN('Enrollment Form'!$BL84)<>5,\"N\",\"Y\")))","v":""},{"$f":"IF($B77=\"N\",\"\",IF(LEN('Enrollment Form'!$AE84)=0,\"\",IF(LEN('Enrollment Form'!$AE84)<>10,\"N\",\"Y\")))","v":""},{"$f":"IF($B77=\"N\",\"\",IF(LEN('Enrollment Form'!$AF84)=0,\"\",IF(LEN('Enrollment Form'!$AF84)<>10,\"N\",\"Y\")))","v":""},{"$f":"IF('Enrollment Form'!$O84<>\"Graded\",\"-\",IF(AND('Enrollment Form'!$O84=\"Graded\",'Enrollment Form'!$AO84<>\"\"),\"Y\",\"N\"))","v":"-"},{"$f":"IF($B77=\"N\",\"\",IF(OR('Enrollment Form'!$B84<>\"Subscriber\",'Enrollment Form'!$C84=\"ROC\"),\"-\",IF(AND('Enrollment Form'!$B84=\"Subscriber\",'Enrollment Form'!$C84=\"Enroll\",'Enrollment Form'!$AJ84<>\"\"),\"Y\",\"N\")))","v":""},{"$f":"IF($B77=\"N\",\"\",IF(OR('Enrollment Form'!$B84<>\"Subscriber\",'Enrollment Form'!$C84=\"ROC\"),\"-\",IF(AND('Enrollment Form'!$B84=\"Subscriber\",'Enrollment Form'!$C84=\"Enroll\",'Enrollment Form'!$AK84<>\"\"),\"Y\",\"N\")))","v":""},{"$f":"IF($B77=\"N\",\"\",IF(OR('Enrollment Form'!$B84<>\"Subscriber\",'Enrollment Form'!$C84=\"ROC\"),\"-\",IF(AND('Enrollment Form'!$B84=\"Subscriber\",'Enrollment Form'!$C84=\"Enroll\",'Enrollment Form'!$AL84<>\"\"),\"Y\",\"N\")))","v":""},{"$f":"IF($B77=\"N\",\"\",IF(OR('Enrollment Form'!$B84<>\"Subscriber\",'Enrollment Form'!$C84=\"ROC\"),\"-\",IF(AND('Enrollment Form'!$B84=\"Subscriber\",'Enrollment Form'!$C84=\"Enroll\",'Enrollment Form'!$AM84<>\"\"),\"Y\",\"N\")))","v":""},{"$f":"IF($B77=\"N\",\"\",IF(OR('Enrollment Form'!$B84<>\"Subscriber\",'Enrollment Form'!$C84=\"ROC\"),\"-\",IF(AND('Enrollment Form'!$B84=\"Subscriber\",'Enrollment Form'!$C84=\"Enroll\",'Enrollment Form'!$AN84<>\"\"),\"Y\",\"N\")))","v":""},{"$f":"IF($B77=\"N\",\"\",IF(OR('Enrollment Form'!$B84<>\"Subscriber\",'Enrollment Form'!$C84=\"ROC\"),\"-\",IF(AND('Enrollment Form'!$B84=\"Subscriber\",'Enrollment Form'!$C84=\"Enroll\",'Enrollment Form'!$AP84<>\"\"),\"Y\",\"N\")))","v":""},{"$f":"IF($B77=\"N\",\"\",IF($Q77=\"-\",\"-\",IF(AND($Q77=\"Y\",'Enrollment Form'!$AP84=\"No\"),\"-\",IF(AND($Q77=\"Y\",'Enrollment Form'!$AP84=\"Yes\",'Enrollment Form'!$AQ84<>\"\"),\"Y\",\"N\"))))","v":""},{"$f":"IF($B77=\"N\",\"\",IF(OR('Enrollment Form'!$B84<>\"Subscriber\",'Enrollment Form'!$C84=\"ROC\"),\"-\",IF(AND('Enrollment Form'!$B84=\"Subscriber\",'Enrollment Form'!$C84=\"Enroll\",'Enrollment Form'!$CO84<>\"\"),\"Y\",\"N\")))","v":""},{"$f":"IF($B77=\"N\",\"\",IF($S77=\"-\",\"-\",IF(AND($S77=\"Y\",'Enrollment Form'!$CO84=\"No\"),\"-\",IF(AND($S77=\"Y\",'Enrollment Form'!$CO84=\"Yes\",'Enrollment Form'!$CP84<>\"\"),\"Y\",\"N\"))))","v":""},{"$f":"IF(OR('Enrollment Form'!$AV84=\"Yes\",'Enrollment Form'!$AV84=\"\"),\"-\",IF(AND('Enrollment Form'!$AV84=\"No\",ISERROR(FIND(\"HMO\",VLOOKUP('Enrollment Form'!G84,'Enrollment Form'!H$11:J$1000,3,FALSE),1))=FALSE,COUNTA('Enrollment Form'!$AW84:$AZ84)=4),\"Y\",\"N\"))","v":"-"},{"$f":"IF($B77=\"N\",\"\",IF('Enrollment Form'!$B84=\"Subscriber\",\"-\",IF(COUNTA('Enrollment Form'!$BE84,'Enrollment Form'!$BG84)=2,\"Y\",\"N\")))","v":""},{"$f":"IF($B77=\"N\",\"\",IF(OR('Enrollment Form'!$AU84=\"\",'Enrollment Form'!$AU84=\"No\"),\"-\",IF(AND('Enrollment Form'!$AU84=\"Yes\",COUNTA('Enrollment Form'!$CK84)=1),\"Y\",\"N\")))","v":""},{"$f":"IF(OR('Enrollment Form'!$CK84=\"\",'Enrollment Form'!$CK84=\"No\"),\"-\",IF(COUNTA('Enrollment Form'!$CM84:$CN84)=2,\"Y\",\"N\"))","v":"-"},{"$f":"IF($B77=\"N\",\"\",IF(COUNTIF('Enrollment Form'!$CZ84:$DO84,\"Other\")=COUNTA('Enrollment Form'!$DF84,'Enrollment Form'!$DA84,'Enrollment Form'!$DK84,'Enrollment Form'!$DP84),\"Y\",\"N\"))","v":""},{"$f":"IF($B77=\"N\",\"\",IF(OR('Enrollment Form'!B84<>\"Subscriber\",'Enrollment Form'!C84=\"ROC\",COUNTIF('Enrollment Form'!AS84:AT84,\"Yes\")>=1),\"-\",IF(AND('Enrollment Form'!C84=\"Enroll\",COUNTIF('Enrollment Form'!AS84:AT84,\"No\")=2,'Enrollment Form'!AU84=\"\"),\"N\",\"Y\")))","v":""},{"$f":"IF(OR(B77=\"N\",'Enrollment Form'!B84<>\"Subscriber\",'Enrollment Form'!C84=\"ROC\",'Enrollment Form'!O84<>\"Multiple of Salary\"),\"-\",IF(COUNTA('Enrollment Form'!T84:U84)<2,\"N\",\"Y\"))","v":"-"},{"$f":"IF(B77=\"N\",\"\",IF(OR('Enrollment Form'!C84=\"ROC\",'Enrollment Form'!B84<>\"Subscriber\",'Enrollment Form'!O84=\"Waive\",'Enrollment Form'!O84=\"\"),\"-\",IF('Enrollment Form'!P84=\"\",\"N\",\"Y\")))","v":""},{"$f":"IF($B77=\"N\",\"\",IF(AND('Enrollment Form'!$C84=\"ROC\",'Enrollment Form'!$DS84<>\"\"),\"Y\",IF(AND('Enrollment Form'!$C84=\"ROC\",'Enrollment Form'!$DS84=\"\"),\"N\",IF(AND('Enrollment Form'!$C84=\"Enroll\",'Enrollment Form'!$B84=\"Subscriber\",'Enrollment Form'!$CQ84=\"No\",'Enrollment Form'!$DS84=\"\"),\"N\",IF(AND('Enrollment Form'!$C84=\"Enroll\",'Enrollment Form'!$B84=\"Subscriber\",'Enrollment Form'!$CQ84=\"Yes\"),\"-\",\"Y\")))))","v":""},{"$f":"IF($B77=\"N\",\"\",IF(AND('Enrollment Form'!$C84=\"ROC\",'Enrollment Form'!$DT84<>\"\"),\"Y\",IF(AND('Enrollment Form'!$C84=\"ROC\",'Enrollment Form'!$DT84=\"\"),\"N\",IF(AND('Enrollment Form'!$C84=\"Enroll\",'Enrollment Form'!$B84=\"Subscriber\",'Enrollment Form'!$CQ84=\"No\",'Enrollment Form'!$DT84=\"\"),\"N\",IF(AND('Enrollment Form'!$C84=\"Enroll\",'Enrollment Form'!$B84=\"Subscriber\",'Enrollment Form'!$CQ84=\"Yes\"),\"-\",\"Y\")))))","v":""},{"$f":"IF('Enrollment Form'!AH84=\"\",\"\",IF(ISERROR(SEARCH(\".\",'Enrollment Form'!AH84,SEARCH(\"@\",'Enrollment Form'!AH84))),\"N\",\"Y\"))","v":""},{"$f":"IF(OR($B77=\"N\",'Enrollment Form'!$G84=\"\"),\"\",IF('Enrollment Form'!$B84<>\"Subscriber\",\"-\",IF(COUNTIF('Enrollment Form'!$AS84:$AT84,\"Yes\")=2,\"N\",\"Y\")))","v":""},{"$f":"IF(OR('Enrollment Form'!$CC84=\"\",'Enrollment Form'!$CC84=\"No\"),\"-\",IF(AND('Enrollment Form'!$CC84=\"Yes\",'Enrollment Form'!$CD84=\"\"),\"N\",\"Y\"))","v":"-"},{"$f":"IF(OR('Enrollment Form'!$CE84=\"\",'Enrollment Form'!$CE84=\"No\"),\"-\",IF(AND('Enrollment Form'!$CE84=\"Yes\",'Enrollment Form'!$CF84=\"\"),\"N\",\"Y\"))","v":"-"},{"$f":"IF(OR('Enrollment Form'!$CG84=\"\",'Enrollment Form'!$CG84=\"No\"),\"-\",IF(AND('Enrollment Form'!$CG84=\"Yes\",'Enrollment Form'!$CH84=\"\"),\"N\",\"Y\"))","v":"-"},{"$f":"IF(OR('Enrollment Form'!$CG84=\"\",'Enrollment Form'!$CG84=\"No\"),\"-\",IF(AND('Enrollment Form'!$CG84=\"Yes\",'Enrollment Form'!$CI84=\"\"),\"N\",\"Y\"))","v":"-"},{"$f":"IF('Enrollment Form'!B84<>\"Subscriber\",\"-\",IF(AND('Enrollment Form'!B84=\"Subscriber\",'Enrollment Form'!C84=\"Enroll\",'Enrollment Form'!AA84=\"\"),\"N\",\"Y\"))","v":"-"},{"$f":"IF(OR('Enrollment Form'!B84=\"Subscriber\",'Enrollment Form'!B84=\"\"),\"-\",IF('Enrollment Form'!BI84=\"\",\"N\",\"Y\"))","v":"-"},{"$f":"IF('Enrollment Form'!B84<>\"Subscriber\",\"-\",IF(AND('Enrollment Form'!B84=\"Subscriber\",'Enrollment Form'!G84=\"\"),\"N\",\"Y\"))","v":"-"},{"$f":"IF('Enrollment Form'!A84=\"\",\"\",IF('Enrollment Form'!B84=\"Subscriber\",\"-\",IF(AND('Enrollment Form'!B84<>\"Subscriber\",'Enrollment Form'!G84='Enrollment Form'!H84),\"N\",\"Y\")))","v":""},0]
[85,{"$f":"IF('Enrollment Form'!$A85<>\"\",\"Y\",\"N\")","v":"N"},{"$f":"IF(AND('Enrollment Form'!$B85=\"\",'Enrollment Form'!$C85<>\"\"),\"N\",IF($B78=\"N\",\"\",\"Y\"))","v":""},{"$f":"IF(OR($B78=\"N\",'Enrollment Form'!G85=\"\"),\"\",IF('Enrollment Form'!$B85<>\"Subscriber\",\"\",IF('Enrollment Form'!$G85='Enrollment Form'!$H85,\"Y\",\"N\")))","v":""},{"$f":"IF($B78=\"N\",\"\",IF(AND(COUNTIFS('Enrollment Form'!$H$11:$H$1000,'Enrollment Form'!$H85,'Enrollment Form'!$B$11:$B$1000,'Enrollment Form'!$B85)>1,'Enrollment Form'!$H85<>\"\"),\"N\",\"Y\"))","v":""},{"$f":"IF($B78=\"N\",\"\",IF(LEN('Enrollment Form'!$Y85)=0,\"\",IF(LEN('Enrollment Form'!$Y85)<>5,\"N\",\"Y\")))","v":""},{"$f":"IF($B78=\"N\",\"\",IF(LEN('Enrollment Form'!$AD85=0),\"\",IF(LEN('Enrollment Form'!$AD85)<>5,\"N\",\"Y\")))","v":""},{"$f":"IF($B78=\"N\",\"\",IF(LEN('Enrollment Form'!$BL85=0),\"\",IF(LEN('Enrollment Form'!$BL85)<>5,\"N\",\"Y\")))","v":""},{"$f":"IF($B78=\"N\",\"\",IF(LEN('Enrollment Form'!$AE85)=0,\"\",IF(LEN('Enrollment Form'!$AE85)<>10,\"N\",\"Y\")))","v":""},{"$f":"IF($B78=\"N\",\"\",IF(LEN('Enrollment Form'!$AF85)=0,\"\",IF(LEN('Enrollment Form'!$AF85)<>10,\"N\",\"Y\")))","v":""},{"$f":"IF('Enrollment Form'!$O85<>\"Graded\",\"-\",IF(AND('Enrollment Form'!$O85=\"Graded\",'Enrollment Form'!$AO85<>\"\"),\"Y\",\"N\"))","v":"-"},{"$f":"IF($B78=\"N\",\"\",IF(OR('Enrollment Form'!$B85<>\"Subscriber\",'Enrollment Form'!$C85=\"ROC\"),\"-\",IF(AND('Enrollment Form'!$B85=\"Subscriber\",'Enrollment Form'!$C85=\"Enroll\",'Enrollment Form'!$AJ85<>\"\"),\"Y\",\"N\")))","v":""},{"$f":"IF($B78=\"N\",\"\",IF(OR('Enrollment Form'!$B85<>\"Subscriber\",'Enrollment Form'!$C85=\"ROC\"),\"-\",IF(AND('Enrollment Form'!$B85=\"Subscriber\",'Enrollment Form'!$C85=\"Enroll\",'Enrollment Form'!$AK85<>\"\"),\"Y\",\"N\")))","v":""},{"$f":"IF($B78=\"N\",\"\",IF(OR('Enrollment Form'!$B85<>\"Subscriber\",'Enrollment Form'!$C85=\"ROC\"),\"-\",IF(AND('Enrollment Form'!$B85=\"Subscriber\",'Enrollment Form'!$C85=\"Enroll\",'Enrollment Form'!$AL85<>\"\"),\"Y\",\"N\")))","v":""},{"$f":"IF($B78=\"N\",\"\",IF(OR('Enrollment Form'!$B85<>\"Subscriber\",'Enrollment Form'!$C85=\"ROC\"),\"-\",IF(AND('Enrollment Form'!$B85=\"Subscriber\",'Enrollment Form'!$C85=\"Enroll\",'Enrollment Form'!$AM85<>\"\"),\"Y\",\"N\")))","v":""},{"$f":"IF($B78=\"N\",\"\",IF(OR('Enrollment Form'!$B85<>\"Subscriber\",'Enrollment Form'!$C85=\"ROC\"),\"-\",IF(AND('Enrollment Form'!$B85=\"Subscriber\",'Enrollment Form'!$C85=\"Enroll\",'Enrollment Form'!$AN85<>\"\"),\"Y\",\"N\")))","v":""},{"$f":"IF($B78=\"N\",\"\",IF(OR('Enrollment Form'!$B85<>\"Subscriber\",'Enrollment Form'!$C85=\"ROC\"),\"-\",IF(AND('Enrollment Form'!$B85=\"Subscriber\",'Enrollment Form'!$C85=\"Enroll\",'Enrollment Form'!$AP85<>\"\"),\"Y\",\"N\")))","v":""},{"$f":"IF($B78=\"N\",\"\",IF($Q78=\"-\",\"-\",IF(AND($Q78=\"Y\",'Enrollment Form'!$AP85=\"No\"),\"-\",IF(AND($Q78=\"Y\",'Enrollment Form'!$AP85=\"Yes\",'Enrollment Form'!$AQ85<>\"\"),\"Y\",\"N\"))))","v":""},{"$f":"IF($B78=\"N\",\"\",IF(OR('Enrollment Form'!$B85<>\"Subscriber\",'Enrollment Form'!$C85=\"ROC\"),\"-\",IF(AND('Enrollment Form'!$B85=\"Subscriber\",'Enrollment Form'!$C85=\"Enroll\",'Enrollment Form'!$CO85<>\"\"),\"Y\",\"N\")))","v":""},{"$f":"IF($B78=\"N\",\"\",IF($S78=\"-\",\"-\",IF(AND($S78=\"Y\",'Enrollment Form'!$CO85=\"No\"),\"-\",IF(AND($S78=\"Y\",'Enrollment Form'!$CO85=\"Yes\",'Enrollment Form'!$CP85<>\"\"),\"Y\",\"N\"))))","v":""},{"$f":"IF(OR('Enrollment Form'!$AV85=\"Yes\",'Enrollment Form'!$AV85=\"\"),\"-\",IF(AND('Enrollment Form'!$AV85=\"No\",ISERROR(FIND(\"HMO\",VLOOKUP('Enrollment Form'!G85,'Enrollment Form'!H$11:J$1000,3,FALSE),1))=FALSE,COUNTA('Enrollment Form'!$AW85:$AZ85)=4),\"Y\",\"N\"))","v":"-"},{"$f":"IF($B78=\"N\",\"\",IF('Enrollment Form'!$B85=\"Subscriber\",\"-\",IF(COUNTA('Enrollment Form'!$BE85,'Enrollment Form'!$BG85)=2,\"Y\",\"N\")))","v":""},{"$f":"IF($B78=\"N\",\"\",IF(OR('Enrollment Form'!$AU85=\"\",'Enrollment Form'!$AU85=\"No\"),\"-\",IF(AND('Enrollment Form'!$AU85=\"Yes\",COUNTA('Enrollment Form'!$CK85)=1),\"Y\",\"N\")))","v":""},{"$f":"IF(OR('Enrollment Form'!$CK85=\"\",'Enrollment Form'!$CK85=\"No\"),\"-\",IF(COUNTA('Enrollment Form'!$CM85:$CN85)=2,\"Y\",\"N\"))","v":"-"},{"$f":"IF($B78=\"N\",\"\",IF(COUNTIF('Enrollment Form'!$CZ85:$DO85,\"Other\")=COUNTA('Enrollment Form'!$DF85,'Enrollment Form'!$DA85,'Enrollment Form'!$DK85,'Enrollment Form'!$DP85),\"Y\",\"N\"))","v":""},{"$f":"IF($B78=\"N\",\"\",IF(OR('Enrollment Form'!B85<>\"Subscriber\",'Enrollment Form'!C85=\"ROC\",COUNTIF('Enrollment Form'!AS85:AT85,\"Yes\")>=1),\"-\",IF(AND('Enrollment Form'!C85=\"Enroll\",COUNTIF('Enrollment Form'!AS85:AT85,\"No\")=2,'Enrollment Form'!AU85=\"\"),\"N\",\"Y\")))","v":""},{"$f":"IF(OR(B78=\"N\",'Enrollment Form'!B85<>\"Subscriber\",'Enrollment Form'!C85=\"ROC\",'Enrollment Form'!O85<>\"Multiple of Salary\"),\"-\",IF(COUNTA('Enrollment Form'!T85:U85)<2,\"N\",\"Y\"))","v":"-"},{"$f":"IF(B78=\"N\",\"\",IF(OR('Enrollment Form'!C85=\"ROC\",'Enrollment Form'!B85<>\"Subscriber\",'Enrollment Form'!O85=\"Waive\",'Enrollment Form'!O85=\"\"),\"-\",IF('Enrollment Form'!P85=\"\",\"N\",\"Y\")))","v":""},{"$f":"IF($B78=\"N\",\"\",IF(AND('Enrollment Form'!$C85=\"ROC\",'Enrollment Form'!$DS85<>\"\"),\"Y\",IF(AND('Enrollment Form'!$C85=\"ROC\",'Enrollment Form'!$DS85=\"\"),\"N\",IF(AND('Enrollment Form'!$C85=\"Enroll\",'Enrollment Form'!$B85=\"Subscriber\",'Enrollment Form'!$CQ85=\"No\",'Enrollment Form'!$DS85=\"\"),\"N\",IF(AND('Enrollment Form'!$C85=\"Enroll\",'Enrollment Form'!$B85=\"Subscriber\",'Enrollment Form'!$CQ85=\"Yes\"),\"-\",\"Y\")))))","v":""},{"$f":"IF($B78=\"N\",\"\",IF(AND('Enrollment Form'!$C85=\"ROC\",'Enrollment Form'!$DT85<>\"\"),\"Y\",IF(AND('Enrollment Form'!$C85=\"ROC\",'Enrollment Form'!$DT85=\"\"),\"N\",IF(AND('Enrollment Form'!$C85=\"Enroll\",'Enrollment Form'!$B85=\"Subscriber\",'Enrollment Form'!$CQ85=\"No\",'Enrollment Form'!$DT85=\"\"),\"N\",IF(AND('Enrollment Form'!$C85=\"Enroll\",'Enrollment Form'!$B85=\"Subscriber\",'Enrollment Form'!$CQ85=\"Yes\"),\"-\",\"Y\")))))","v":""},{"$f":"IF('Enrollment Form'!AH85=\"\",\"\",IF(ISERROR(SEARCH(\".\",'Enrollment Form'!AH85,SEARCH(\"@\",'Enrollment Form'!AH85))),\"N\",\"Y\"))","v":""},{"$f":"IF(OR($B78=\"N\",'Enrollment Form'!$G85=\"\"),\"\",IF('Enrollment Form'!$B85<>\"Subscriber\",\"-\",IF(COUNTIF('Enrollment Form'!$AS85:$AT85,\"Yes\")=2,\"N\",\"Y\")))","v":""},{"$f":"IF(OR('Enrollment Form'!$CC85=\"\",'Enrollment Form'!$CC85=\"No\"),\"-\",IF(AND('Enrollment Form'!$CC85=\"Yes\",'Enrollment Form'!$CD85=\"\"),\"N\",\"Y\"))","v":"-"},{"$f":"IF(OR('Enrollment Form'!$CE85=\"\",'Enrollment Form'!$CE85=\"No\"),\"-\",IF(AND('Enrollment Form'!$CE85=\"Yes\",'Enrollment Form'!$CF85=\"\"),\"N\",\"Y\"))","v":"-"},{"$f":"IF(OR('Enrollment Form'!$CG85=\"\",'Enrollment Form'!$CG85=\"No\"),\"-\",IF(AND('Enrollment Form'!$CG85=\"Yes\",'Enrollment Form'!$CH85=\"\"),\"N\",\"Y\"))","v":"-"},{"$f":"IF(OR('Enrollment Form'!$CG85=\"\",'Enrollment Form'!$CG85=\"No\"),\"-\",IF(AND('Enrollment Form'!$CG85=\"Yes\",'Enrollment Form'!$CI85=\"\"),\"N\",\"Y\"))","v":"-"},{"$f":"IF('Enrollment Form'!B85<>\"Subscriber\",\"-\",IF(AND('Enrollment Form'!B85=\"Subscriber\",'Enrollment Form'!C85=\"Enroll\",'Enrollment Form'!AA85=\"\"),\"N\",\"Y\"))","v":"-"},{"$f":"IF(OR('Enrollment Form'!B85=\"Subscriber\",'Enrollment Form'!B85=\"\"),\"-\",IF('Enrollment Form'!BI85=\"\",\"N\",\"Y\"))","v":"-"},{"$f":"IF('Enrollment Form'!B85<>\"Subscriber\",\"-\",IF(AND('Enrollment Form'!B85=\"Subscriber\",'Enrollment Form'!G85=\"\"),\"N\",\"Y\"))","v":"-"},{"$f":"IF('Enrollment Form'!A85=\"\",\"\",IF('Enrollment Form'!B85=\"Subscriber\",\"-\",IF(AND('Enrollment Form'!B85<>\"Subscriber\",'Enrollment Form'!G85='Enrollment Form'!H85),\"N\",\"Y\")))","v":""},0]
[86,{"$f":"IF('Enrollment Form'!$A86<>\"\",\"Y\",\"N\")","v":"N"},{"$f":"IF(AND('Enrollment Form'!$B86=\"\",'Enrollment Form'!$C86<>\"\"),\"N\",IF($B79=\"N\",\"\",\"Y\"))","v":""},{"$f":"IF(OR($B79=\"N\",'Enrollment Form'!G86=\"\"),\"\",IF('Enrollment Form'!$B86<>\"Subscriber\",\"\",IF('Enrollment Form'!$G86='Enrollment Form'!$H86,\"Y\",\"N\")))","v":""},{"$f":"IF($B79=\"N\",\"\",IF(AND(COUNTIFS('Enrollment Form'!$H$11:$H$1000,'Enrollment Form'!$H86,'Enrollment Form'!$B$11:$B$1000,'Enrollment Form'!$B86)>1,'Enrollment Form'!$H86<>\"\"),\"N\",\"Y\"))","v":""},{"$f":"IF($B79=\"N\",\"\",IF(LEN('Enrollment Form'!$Y86)=0,\"\",IF(LEN('Enrollment Form'!$Y86)<>5,\"N\",\"Y\")))","v":""},{"$f":"IF($B79=\"N\",\"\",IF(LEN('Enrollment Form'!$AD86=0),\"\",IF(LEN('Enrollment Form'!$AD86)<>5,\"N\",\"Y\")))","v":""},{"$f":"IF($B79=\"N\",\"\",IF(LEN('Enrollment Form'!$BL86=0),\"\",IF(LEN('Enrollment Form'!$BL86)<>5,\"N\",\"Y\")))","v":""},{"$f":"IF($B79=\"N\",\"\",IF(LEN('Enrollment Form'!$AE86)=0,\"\",IF(LEN('Enrollment Form'!$AE86)<>10,\"N\",\"Y\")))","v":""},{"$f":"IF($B79=\"N\",\"\",IF(LEN('Enrollment Form'!$AF86)=0,\"\",IF(LEN('Enrollment Form'!$AF86)<>10,\"N\",\"Y\")))","v":""},{"$f":"IF('Enrollment Form'!$O86<>\"Graded\",\"-\",IF(AND('Enrollment Form'!$O86=\"Graded\",'Enrollment Form'!$AO86<>\"\"),\"Y\",\"N\"))","v":"-"},{"$f":"IF($B79=\"N\",\"\",IF(OR('Enrollment Form'!$B86<>\"Subscriber\",'Enrollment Form'!$C86=\"ROC\"),\"-\",IF(AND('Enrollment Form'!$B86=\"Subscriber\",'Enrollment Form'!$C86=\"Enroll\",'Enrollment Form'!$AJ86<>\"\"),\"Y\",\"N\")))","v":""},{"$f":"IF($B79=\"N\",\"\",IF(OR('Enrollment Form'!$B86<>\"Subscriber\",'Enrollment Form'!$C86=\"ROC\"),\"-\",IF(AND('Enrollment Form'!$B86=\"Subscriber\",'Enrollment Form'!$C86=\"Enroll\",'Enrollment Form'!$AK86<>\"\"),\"Y\",\"N\")))","v":""},{"$f":"IF($B79=\"N\",\"\",IF(OR('Enrollment Form'!$B86<>\"Subscriber\",'Enrollment Form'!$C86=\"ROC\"),\"-\",IF(AND('Enrollment Form'!$B86=\"Subscriber\",'Enrollment Form'!$C86=\"Enroll\",'Enrollment Form'!$AL86<>\"\"),\"Y\",\"N\")))","v":""},{"$f":"IF($B79=\"N\",\"\",IF(OR('Enrollment Form'!$B86<>\"Subscriber\",'Enrollment Form'!$C86=\"ROC\"),\"-\",IF(AND('Enrollment Form'!$B86=\"Subscriber\",'Enrollment Form'!$C86=\"Enroll\",'Enrollment Form'!$AM86<>\"\"),\"Y\",\"N\")))","v":""},{"$f":"IF($B79=\"N\",\"\",IF(OR('Enrollment Form'!$B86<>\"Subscriber\",'Enrollment Form'!$C86=\"ROC\"),\"-\",IF(AND('Enrollment Form'!$B86=\"Subscriber\",'Enrollment Form'!$C86=\"Enroll\",'Enrollment Form'!$AN86<>\"\"),\"Y\",\"N\")))","v":""},{"$f":"IF($B79=\"N\",\"\",IF(OR('Enrollment Form'!$B86<>\"Subscriber\",'Enrollment Form'!$C86=\"ROC\"),\"-\",IF(AND('Enrollment Form'!$B86=\"Subscriber\",'Enrollment Form'!$C86=\"Enroll\",'Enrollment Form'!$AP86<>\"\"),\"Y\",\"N\")))","v":""},{"$f":"IF($B79=\"N\",\"\",IF($Q79=\"-\",\"-\",IF(AND($Q79=\"Y\",'Enrollment Form'!$AP86=\"No\"),\"-\",IF(AND($Q79=\"Y\",'Enrollment Form'!$AP86=\"Yes\",'Enrollment Form'!$AQ86<>\"\"),\"Y\",\"N\"))))","v":""},{"$f":"IF($B79=\"N\",\"\",IF(OR('Enrollment Form'!$B86<>\"Subscriber\",'Enrollment Form'!$C86=\"ROC\"),\"-\",IF(AND('Enrollment Form'!$B86=\"Subscriber\",'Enrollment Form'!$C86=\"Enroll\",'Enrollment Form'!$CO86<>\"\"),\"Y\",\"N\")))","v":""},{"$f":"IF($B79=\"N\",\"\",IF($S79=\"-\",\"-\",IF(AND($S79=\"Y\",'Enrollment Form'!$CO86=\"No\"),\"-\",IF(AND($S79=\"Y\",'Enrollment Form'!$CO86=\"Yes\",'Enrollment Form'!$CP86<>\"\"),\"Y\",\"N\"))))","v":""},{"$f":"IF(OR('Enrollment Form'!$AV86=\"Yes\",'Enrollment Form'!$AV86=\"\"),\"-\",IF(AND('Enrollment Form'!$AV86=\"No\",ISERROR(FIND(\"HMO\",VLOOKUP('Enrollment Form'!G86,'Enrollment Form'!H$11:J$1000,3,FALSE),1))=FALSE,COUNTA('Enrollment Form'!$AW86:$AZ86)=4),\"Y\",\"N\"))","v":"-"},{"$f":"IF($B79=\"N\",\"\",IF('Enrollment Form'!$B86=\"Subscriber\",\"-\",IF(COUNTA('Enrollment Form'!$BE86,'Enrollment Form'!$BG86)=2,\"Y\",\"N\")))","v":""},{"$f":"IF($B79=\"N\",\"\",IF(OR('Enrollment Form'!$AU86=\"\",'Enrollment Form'!$AU86=\"No\"),\"-\",IF(AND('Enrollment Form'!$AU86=\"Yes\",COUNTA('Enrollment Form'!$CK86)=1),\"Y\",\"N\")))","v":""},{"$f":"IF(OR('Enrollment Form'!$CK86=\"\",'Enrollment Form'!$CK86=\"No\"),\"-\",IF(COUNTA('Enrollment Form'!$CM86:$CN86)=2,\"Y\",\"N\"))","v":"-"},{"$f":"IF($B79=\"N\",\"\",IF(COUNTIF('Enrollment Form'!$CZ86:$DO86,\"Other\")=COUNTA('Enrollment Form'!$DF86,'Enrollment Form'!$DA86,'Enrollment Form'!$DK86,'Enrollment Form'!$DP86),\"Y\",\"N\"))","v":""},{"$f":"IF($B79=\"N\",\"\",IF(OR('Enrollment Form'!B86<>\"Subscriber\",'Enrollment Form'!C86=\"ROC\",COUNTIF('Enrollment Form'!AS86:AT86,\"Yes\")>=1),\"-\",IF(AND('Enrollment Form'!C86=\"Enroll\",COUNTIF('Enrollment Form'!AS86:AT86,\"No\")=2,'Enrollment Form'!AU86=\"\"),\"N\",\"Y\")))","v":""},{"$f":"IF(OR(B79=\"N\",'Enrollment Form'!B86<>\"Subscriber\",'Enrollment Form'!C86=\"ROC\",'Enrollment Form'!O86<>\"Multiple of Salary\"),\"-\",IF(COUNTA('Enrollment Form'!T86:U86)<2,\"N\",\"Y\"))","v":"-"},{"$f":"IF(B79=\"N\",\"\",IF(OR('Enrollment Form'!C86=\"ROC\",'Enrollment Form'!B86<>\"Subscriber\",'Enrollment Form'!O86=\"Waive\",'Enrollment Form'!O86=\"\"),\"-\",IF('Enrollment Form'!P86=\"\",\"N\",\"Y\")))","v":""},{"$f":"IF($B79=\"N\",\"\",IF(AND('Enrollment Form'!$C86=\"ROC\",'Enrollment Form'!$DS86<>\"\"),\"Y\",IF(AND('Enrollment Form'!$C86=\"ROC\",'Enrollment Form'!$DS86=\"\"),\"N\",IF(AND('Enrollment Form'!$C86=\"Enroll\",'Enrollment Form'!$B86=\"Subscriber\",'Enrollment Form'!$CQ86=\"No\",'Enrollment Form'!$DS86=\"\"),\"N\",IF(AND('Enrollment Form'!$C86=\"Enroll\",'Enrollment Form'!$B86=\"Subscriber\",'Enrollment Form'!$CQ86=\"Yes\"),\"-\",\"Y\")))))","v":""},{"$f":"IF($B79=\"N\",\"\",IF(AND('Enrollment Form'!$C86=\"ROC\",'Enrollment Form'!$DT86<>\"\"),\"Y\",IF(AND('Enrollment Form'!$C86=\"ROC\",'Enrollment Form'!$DT86=\"\"),\"N\",IF(AND('Enrollment Form'!$C86=\"Enroll\",'Enrollment Form'!$B86=\"Subscriber\",'Enrollment Form'!$CQ86=\"No\",'Enrollment Form'!$DT86=\"\"),\"N\",IF(AND('Enrollment Form'!$C86=\"Enroll\",'Enrollment Form'!$B86=\"Subscriber\",'Enrollment Form'!$CQ86=\"Yes\"),\"-\",\"Y\")))))","v":""},{"$f":"IF('Enrollment Form'!AH86=\"\",\"\",IF(ISERROR(SEARCH(\".\",'Enrollment Form'!AH86,SEARCH(\"@\",'Enrollment Form'!AH86))),\"N\",\"Y\"))","v":""},{"$f":"IF(OR($B79=\"N\",'Enrollment Form'!$G86=\"\"),\"\",IF('Enrollment Form'!$B86<>\"Subscriber\",\"-\",IF(COUNTIF('Enrollment Form'!$AS86:$AT86,\"Yes\")=2,\"N\",\"Y\")))","v":""},{"$f":"IF(OR('Enrollment Form'!$CC86=\"\",'Enrollment Form'!$CC86=\"No\"),\"-\",IF(AND('Enrollment Form'!$CC86=\"Yes\",'Enrollment Form'!$CD86=\"\"),\"N\",\"Y\"))","v":"-"},{"$f":"IF(OR('Enrollment Form'!$CE86=\"\",'Enrollment Form'!$CE86=\"No\"),\"-\",IF(AND('Enrollment Form'!$CE86=\"Yes\",'Enrollment Form'!$CF86=\"\"),\"N\",\"Y\"))","v":"-"},{"$f":"IF(OR('Enrollment Form'!$CG86=\"\",'Enrollment Form'!$CG86=\"No\"),\"-\",IF(AND('Enrollment Form'!$CG86=\"Yes\",'Enrollment Form'!$CH86=\"\"),\"N\",\"Y\"))","v":"-"},{"$f":"IF(OR('Enrollment Form'!$CG86=\"\",'Enrollment Form'!$CG86=\"No\"),\"-\",IF(AND('Enrollment Form'!$CG86=\"Yes\",'Enrollment Form'!$CI86=\"\"),\"N\",\"Y\"))","v":"-"},{"$f":"IF('Enrollment Form'!B86<>\"Subscriber\",\"-\",IF(AND('Enrollment Form'!B86=\"Subscriber\",'Enrollment Form'!C86=\"Enroll\",'Enrollment Form'!AA86=\"\"),\"N\",\"Y\"))","v":"-"},{"$f":"IF(OR('Enrollment Form'!B86=\"Subscriber\",'Enrollment Form'!B86=\"\"),\"-\",IF('Enrollment Form'!BI86=\"\",\"N\",\"Y\"))","v":"-"},{"$f":"IF('Enrollment Form'!B86<>\"Subscriber\",\"-\",IF(AND('Enrollment Form'!B86=\"Subscriber\",'Enrollment Form'!G86=\"\"),\"N\",\"Y\"))","v":"-"},{"$f":"IF('Enrollment Form'!A86=\"\",\"\",IF('Enrollment Form'!B86=\"Subscriber\",\"-\",IF(AND('Enrollment Form'!B86<>\"Subscriber\",'Enrollment Form'!G86='Enrollment Form'!H86),\"N\",\"Y\")))","v":""},0]
[87,{"$f":"IF('Enrollment Form'!$A87<>\"\",\"Y\",\"N\")","v":"N"},{"$f":"IF(AND('Enrollment Form'!$B87=\"\",'Enrollment Form'!$C87<>\"\"),\"N\",IF($B80=\"N\",\"\",\"Y\"))","v":""},{"$f":"IF(OR($B80=\"N\",'Enrollment Form'!G87=\"\"),\"\",IF('Enrollment Form'!$B87<>\"Subscriber\",\"\",IF('Enrollment Form'!$G87='Enrollment Form'!$H87,\"Y\",\"N\")))","v":""},{"$f":"IF($B80=\"N\",\"\",IF(AND(COUNTIFS('Enrollment Form'!$H$11:$H$1000,'Enrollment Form'!$H87,'Enrollment Form'!$B$11:$B$1000,'Enrollment Form'!$B87)>1,'Enrollment Form'!$H87<>\"\"),\"N\",\"Y\"))","v":""},{"$f":"IF($B80=\"N\",\"\",IF(LEN('Enrollment Form'!$Y87)=0,\"\",IF(LEN('Enrollment Form'!$Y87)<>5,\"N\",\"Y\")))","v":""},{"$f":"IF($B80=\"N\",\"\",IF(LEN('Enrollment Form'!$AD87=0),\"\",IF(LEN('Enrollment Form'!$AD87)<>5,\"N\",\"Y\")))","v":""},{"$f":"IF($B80=\"N\",\"\",IF(LEN('Enrollment Form'!$BL87=0),\"\",IF(LEN('Enrollment Form'!$BL87)<>5,\"N\",\"Y\")))","v":""},{"$f":"IF($B80=\"N\",\"\",IF(LEN('Enrollment Form'!$AE87)=0,\"\",IF(LEN('Enrollment Form'!$AE87)<>10,\"N\",\"Y\")))","v":""},{"$f":"IF($B80=\"N\",\"\",IF(LEN('Enrollment Form'!$AF87)=0,\"\",IF(LEN('Enrollment Form'!$AF87)<>10,\"N\",\"Y\")))","v":""},{"$f":"IF('Enrollment Form'!$O87<>\"Graded\",\"-\",IF(AND('Enrollment Form'!$O87=\"Graded\",'Enrollment Form'!$AO87<>\"\"),\"Y\",\"N\"))","v":"-"},{"$f":"IF($B80=\"N\",\"\",IF(OR('Enrollment Form'!$B87<>\"Subscriber\",'Enrollment Form'!$C87=\"ROC\"),\"-\",IF(AND('Enrollment Form'!$B87=\"Subscriber\",'Enrollment Form'!$C87=\"Enroll\",'Enrollment Form'!$AJ87<>\"\"),\"Y\",\"N\")))","v":""},{"$f":"IF($B80=\"N\",\"\",IF(OR('Enrollment Form'!$B87<>\"Subscriber\",'Enrollment Form'!$C87=\"ROC\"),\"-\",IF(AND('Enrollment Form'!$B87=\"Subscriber\",'Enrollment Form'!$C87=\"Enroll\",'Enrollment Form'!$AK87<>\"\"),\"Y\",\"N\")))","v":""},{"$f":"IF($B80=\"N\",\"\",IF(OR('Enrollment Form'!$B87<>\"Subscriber\",'Enrollment Form'!$C87=\"ROC\"),\"-\",IF(AND('Enrollment Form'!$B87=\"Subscriber\",'Enrollment Form'!$C87=\"Enroll\",'Enrollment Form'!$AL87<>\"\"),\"Y\",\"N\")))","v":""},{"$f":"IF($B80=\"N\",\"\",IF(OR('Enrollment Form'!$B87<>\"Subscriber\",'Enrollment Form'!$C87=\"ROC\"),\"-\",IF(AND('Enrollment Form'!$B87=\"Subscriber\",'Enrollment Form'!$C87=\"Enroll\",'Enrollment Form'!$AM87<>\"\"),\"Y\",\"N\")))","v":""},{"$f":"IF($B80=\"N\",\"\",IF(OR('Enrollment Form'!$B87<>\"Subscriber\",'Enrollment Form'!$C87=\"ROC\"),\"-\",IF(AND('Enrollment Form'!$B87=\"Subscriber\",'Enrollment Form'!$C87=\"Enroll\",'Enrollment Form'!$AN87<>\"\"),\"Y\",\"N\")))","v":""},{"$f":"IF($B80=\"N\",\"\",IF(OR('Enrollment Form'!$B87<>\"Subscriber\",'Enrollment Form'!$C87=\"ROC\"),\"-\",IF(AND('Enrollment Form'!$B87=\"Subscriber\",'Enrollment Form'!$C87=\"Enroll\",'Enrollment Form'!$AP87<>\"\"),\"Y\",\"N\")))","v":""},{"$f":"IF($B80=\"N\",\"\",IF($Q80=\"-\",\"-\",IF(AND($Q80=\"Y\",'Enrollment Form'!$AP87=\"No\"),\"-\",IF(AND($Q80=\"Y\",'Enrollment Form'!$AP87=\"Yes\",'Enrollment Form'!$AQ87<>\"\"),\"Y\",\"N\"))))","v":""},{"$f":"IF($B80=\"N\",\"\",IF(OR('Enrollment Form'!$B87<>\"Subscriber\",'Enrollment Form'!$C87=\"ROC\"),\"-\",IF(AND('Enrollment Form'!$B87=\"Subscriber\",'Enrollment Form'!$C87=\"Enroll\",'Enrollment Form'!$CO87<>\"\"),\"Y\",\"N\")))","v":""},{"$f":"IF($B80=\"N\",\"\",IF($S80=\"-\",\"-\",IF(AND($S80=\"Y\",'Enrollment Form'!$CO87=\"No\"),\"-\",IF(AND($S80=\"Y\",'Enrollment Form'!$CO87=\"Yes\",'Enrollment Form'!$CP87<>\"\"),\"Y\",\"N\"))))","v":""},{"$f":"IF(OR('Enrollment Form'!$AV87=\"Yes\",'Enrollment Form'!$AV87=\"\"),\"-\",IF(AND('Enrollment Form'!$AV87=\"No\",ISERROR(FIND(\"HMO\",VLOOKUP('Enrollment Form'!G87,'Enrollment Form'!H$11:J$1000,3,FALSE),1))=FALSE,COUNTA('Enrollment Form'!$AW87:$AZ87)=4),\"Y\",\"N\"))","v":"-"},{"$f":"IF($B80=\"N\",\"\",IF('Enrollment Form'!$B87=\"Subscriber\",\"-\",IF(COUNTA('Enrollment Form'!$BE87,'Enrollment Form'!$BG87)=2,\"Y\",\"N\")))","v":""},{"$f":"IF($B80=\"N\",\"\",IF(OR('Enrollment Form'!$AU87=\"\",'Enrollment Form'!$AU87=\"No\"),\"-\",IF(AND('Enrollment Form'!$AU87=\"Yes\",COUNTA('Enrollment Form'!$CK87)=1),\"Y\",\"N\")))","v":""},{"$f":"IF(OR('Enrollment Form'!$CK87=\"\",'Enrollment Form'!$CK87=\"No\"),\"-\",IF(COUNTA('Enrollment Form'!$CM87:$CN87)=2,\"Y\",\"N\"))","v":"-"},{"$f":"IF($B80=\"N\",\"\",IF(COUNTIF('Enrollment Form'!$CZ87:$DO87,\"Other\")=COUNTA('Enrollment Form'!$DF87,'Enrollment Form'!$DA87,'Enrollment Form'!$DK87,'Enrollment Form'!$DP87),\"Y\",\"N\"))","v":""},{"$f":"IF($B80=\"N\",\"\",IF(OR('Enrollment Form'!B87<>\"Subscriber\",'Enrollment Form'!C87=\"ROC\",COUNTIF('Enrollment Form'!AS87:AT87,\"Yes\")>=1),\"-\",IF(AND('Enrollment Form'!C87=\"Enroll\",COUNTIF('Enrollment Form'!AS87:AT87,\"No\")=2,'Enrollment Form'!AU87=\"\"),\"N\",\"Y\")))","v":""},{"$f":"IF(OR(B80=\"N\",'Enrollment Form'!B87<>\"Subscriber\",'Enrollment Form'!C87=\"ROC\",'Enrollment Form'!O87<>\"Multiple of Salary\"),\"-\",IF(COUNTA('Enrollment Form'!T87:U87)<2,\"N\",\"Y\"))","v":"-"},{"$f":"IF(B80=\"N\",\"\",IF(OR('Enrollment Form'!C87=\"ROC\",'Enrollment Form'!B87<>\"Subscriber\",'Enrollment Form'!O87=\"Waive\",'Enrollment Form'!O87=\"\"),\"-\",IF('Enrollment Form'!P87=\"\",\"N\",\"Y\")))","v":""},{"$f":"IF($B80=\"N\",\"\",IF(AND('Enrollment Form'!$C87=\"ROC\",'Enrollment Form'!$DS87<>\"\"),\"Y\",IF(AND('Enrollment Form'!$C87=\"ROC\",'Enrollment Form'!$DS87=\"\"),\"N\",IF(AND('Enrollment Form'!$C87=\"Enroll\",'Enrollment Form'!$B87=\"Subscriber\",'Enrollment Form'!$CQ87=\"No\",'Enrollment Form'!$DS87=\"\"),\"N\",IF(AND('Enrollment Form'!$C87=\"Enroll\",'Enrollment Form'!$B87=\"Subscriber\",'Enrollment Form'!$CQ87=\"Yes\"),\"-\",\"Y\")))))","v":""},{"$f":"IF($B80=\"N\",\"\",IF(AND('Enrollment Form'!$C87=\"ROC\",'Enrollment Form'!$DT87<>\"\"),\"Y\",IF(AND('Enrollment Form'!$C87=\"ROC\",'Enrollment Form'!$DT87=\"\"),\"N\",IF(AND('Enrollment Form'!$C87=\"Enroll\",'Enrollment Form'!$B87=\"Subscriber\",'Enrollment Form'!$CQ87=\"No\",'Enrollment Form'!$DT87=\"\"),\"N\",IF(AND('Enrollment Form'!$C87=\"Enroll\",'Enrollment Form'!$B87=\"Subscriber\",'Enrollment Form'!$CQ87=\"Yes\"),\"-\",\"Y\")))))","v":""},{"$f":"IF('Enrollment Form'!AH87=\"\",\"\",IF(ISERROR(SEARCH(\".\",'Enrollment Form'!AH87,SEARCH(\"@\",'Enrollment Form'!AH87))),\"N\",\"Y\"))","v":""},{"$f":"IF(OR($B80=\"N\",'Enrollment Form'!$G87=\"\"),\"\",IF('Enrollment Form'!$B87<>\"Subscriber\",\"-\",IF(COUNTIF('Enrollment Form'!$AS87:$AT87,\"Yes\")=2,\"N\",\"Y\")))","v":""},{"$f":"IF(OR('Enrollment Form'!$CC87=\"\",'Enrollment Form'!$CC87=\"No\"),\"-\",IF(AND('Enrollment Form'!$CC87=\"Yes\",'Enrollment Form'!$CD87=\"\"),\"N\",\"Y\"))","v":"-"},{"$f":"IF(OR('Enrollment Form'!$CE87=\"\",'Enrollment Form'!$CE87=\"No\"),\"-\",IF(AND('Enrollment Form'!$CE87=\"Yes\",'Enrollment Form'!$CF87=\"\"),\"N\",\"Y\"))","v":"-"},{"$f":"IF(OR('Enrollment Form'!$CG87=\"\",'Enrollment Form'!$CG87=\"No\"),\"-\",IF(AND('Enrollment Form'!$CG87=\"Yes\",'Enrollment Form'!$CH87=\"\"),\"N\",\"Y\"))","v":"-"},{"$f":"IF(OR('Enrollment Form'!$CG87=\"\",'Enrollment Form'!$CG87=\"No\"),\"-\",IF(AND('Enrollment Form'!$CG87=\"Yes\",'Enrollment Form'!$CI87=\"\"),\"N\",\"Y\"))","v":"-"},{"$f":"IF('Enrollment Form'!B87<>\"Subscriber\",\"-\",IF(AND('Enrollment Form'!B87=\"Subscriber\",'Enrollment Form'!C87=\"Enroll\",'Enrollment Form'!AA87=\"\"),\"N\",\"Y\"))","v":"-"},{"$f":"IF(OR('Enrollment Form'!B87=\"Subscriber\",'Enrollment Form'!B87=\"\"),\"-\",IF('Enrollment Form'!BI87=\"\",\"N\",\"Y\"))","v":"-"},{"$f":"IF('Enrollment Form'!B87<>\"Subscriber\",\"-\",IF(AND('Enrollment Form'!B87=\"Subscriber\",'Enrollment Form'!G87=\"\"),\"N\",\"Y\"))","v":"-"},{"$f":"IF('Enrollment Form'!A87=\"\",\"\",IF('Enrollment Form'!B87=\"Subscriber\",\"-\",IF(AND('Enrollment Form'!B87<>\"Subscriber\",'Enrollment Form'!G87='Enrollment Form'!H87),\"N\",\"Y\")))","v":""},0]
[88,{"$f":"IF('Enrollment Form'!$A88<>\"\",\"Y\",\"N\")","v":"N"},{"$f":"IF(AND('Enrollment Form'!$B88=\"\",'Enrollment Form'!$C88<>\"\"),\"N\",IF($B81=\"N\",\"\",\"Y\"))","v":""},{"$f":"IF(OR($B81=\"N\",'Enrollment Form'!G88=\"\"),\"\",IF('Enrollment Form'!$B88<>\"Subscriber\",\"\",IF('Enrollment Form'!$G88='Enrollment Form'!$H88,\"Y\",\"N\")))","v":""},{"$f":"IF($B81=\"N\",\"\",IF(AND(COUNTIFS('Enrollment Form'!$H$11:$H$1000,'Enrollment Form'!$H88,'Enrollment Form'!$B$11:$B$1000,'Enrollment Form'!$B88)>1,'Enrollment Form'!$H88<>\"\"),\"N\",\"Y\"))","v":""},{"$f":"IF($B81=\"N\",\"\",IF(LEN('Enrollment Form'!$Y88)=0,\"\",IF(LEN('Enrollment Form'!$Y88)<>5,\"N\",\"Y\")))","v":""},{"$f":"IF($B81=\"N\",\"\",IF(LEN('Enrollment Form'!$AD88=0),\"\",IF(LEN('Enrollment Form'!$AD88)<>5,\"N\",\"Y\")))","v":""},{"$f":"IF($B81=\"N\",\"\",IF(LEN('Enrollment Form'!$BL88=0),\"\",IF(LEN('Enrollment Form'!$BL88)<>5,\"N\",\"Y\")))","v":""},{"$f":"IF($B81=\"N\",\"\",IF(LEN('Enrollment Form'!$AE88)=0,\"\",IF(LEN('Enrollment Form'!$AE88)<>10,\"N\",\"Y\")))","v":""},{"$f":"IF($B81=\"N\",\"\",IF(LEN('Enrollment Form'!$AF88)=0,\"\",IF(LEN('Enrollment Form'!$AF88)<>10,\"N\",\"Y\")))","v":""},{"$f":"IF('Enrollment Form'!$O88<>\"Graded\",\"-\",IF(AND('Enrollment Form'!$O88=\"Graded\",'Enrollment Form'!$AO88<>\"\"),\"Y\",\"N\"))","v":"-"},{"$f":"IF($B81=\"N\",\"\",IF(OR('Enrollment Form'!$B88<>\"Subscriber\",'Enrollment Form'!$C88=\"ROC\"),\"-\",IF(AND('Enrollment Form'!$B88=\"Subscriber\",'Enrollment Form'!$C88=\"Enroll\",'Enrollment Form'!$AJ88<>\"\"),\"Y\",\"N\")))","v":""},{"$f":"IF($B81=\"N\",\"\",IF(OR('Enrollment Form'!$B88<>\"Subscriber\",'Enrollment Form'!$C88=\"ROC\"),\"-\",IF(AND('Enrollment Form'!$B88=\"Subscriber\",'Enrollment Form'!$C88=\"Enroll\",'Enrollment Form'!$AK88<>\"\"),\"Y\",\"N\")))","v":""},{"$f":"IF($B81=\"N\",\"\",IF(OR('Enrollment Form'!$B88<>\"Subscriber\",'Enrollment Form'!$C88=\"ROC\"),\"-\",IF(AND('Enrollment Form'!$B88=\"Subscriber\",'Enrollment Form'!$C88=\"Enroll\",'Enrollment Form'!$AL88<>\"\"),\"Y\",\"N\")))","v":""},{"$f":"IF($B81=\"N\",\"\",IF(OR('Enrollment Form'!$B88<>\"Subscriber\",'Enrollment Form'!$C88=\"ROC\"),\"-\",IF(AND('Enrollment Form'!$B88=\"Subscriber\",'Enrollment Form'!$C88=\"Enroll\",'Enrollment Form'!$AM88<>\"\"),\"Y\",\"N\")))","v":""},{"$f":"IF($B81=\"N\",\"\",IF(OR('Enrollment Form'!$B88<>\"Subscriber\",'Enrollment Form'!$C88=\"ROC\"),\"-\",IF(AND('Enrollment Form'!$B88=\"Subscriber\",'Enrollment Form'!$C88=\"Enroll\",'Enrollment Form'!$AN88<>\"\"),\"Y\",\"N\")))","v":""},{"$f":"IF($B81=\"N\",\"\",IF(OR('Enrollment Form'!$B88<>\"Subscriber\",'Enrollment Form'!$C88=\"ROC\"),\"-\",IF(AND('Enrollment Form'!$B88=\"Subscriber\",'Enrollment Form'!$C88=\"Enroll\",'Enrollment Form'!$AP88<>\"\"),\"Y\",\"N\")))","v":""},{"$f":"IF($B81=\"N\",\"\",IF($Q81=\"-\",\"-\",IF(AND($Q81=\"Y\",'Enrollment Form'!$AP88=\"No\"),\"-\",IF(AND($Q81=\"Y\",'Enrollment Form'!$AP88=\"Yes\",'Enrollment Form'!$AQ88<>\"\"),\"Y\",\"N\"))))","v":""},{"$f":"IF($B81=\"N\",\"\",IF(OR('Enrollment Form'!$B88<>\"Subscriber\",'Enrollment Form'!$C88=\"ROC\"),\"-\",IF(AND('Enrollment Form'!$B88=\"Subscriber\",'Enrollment Form'!$C88=\"Enroll\",'Enrollment Form'!$CO88<>\"\"),\"Y\",\"N\")))","v":""},{"$f":"IF($B81=\"N\",\"\",IF($S81=\"-\",\"-\",IF(AND($S81=\"Y\",'Enrollment Form'!$CO88=\"No\"),\"-\",IF(AND($S81=\"Y\",'Enrollment Form'!$CO88=\"Yes\",'Enrollment Form'!$CP88<>\"\"),\"Y\",\"N\"))))","v":""},{"$f":"IF(OR('Enrollment Form'!$AV88=\"Yes\",'Enrollment Form'!$AV88=\"\"),\"-\",IF(AND('Enrollment Form'!$AV88=\"No\",ISERROR(FIND(\"HMO\",VLOOKUP('Enrollment Form'!G88,'Enrollment Form'!H$11:J$1000,3,FALSE),1))=FALSE,COUNTA('Enrollment Form'!$AW88:$AZ88)=4),\"Y\",\"N\"))","v":"-"},{"$f":"IF($B81=\"N\",\"\",IF('Enrollment Form'!$B88=\"Subscriber\",\"-\",IF(COUNTA('Enrollment Form'!$BE88,'Enrollment Form'!$BG88)=2,\"Y\",\"N\")))","v":""},{"$f":"IF($B81=\"N\",\"\",IF(OR('Enrollment Form'!$AU88=\"\",'Enrollment Form'!$AU88=\"No\"),\"-\",IF(AND('Enrollment Form'!$AU88=\"Yes\",COUNTA('Enrollment Form'!$CK88)=1),\"Y\",\"N\")))","v":""},{"$f":"IF(OR('Enrollment Form'!$CK88=\"\",'Enrollment Form'!$CK88=\"No\"),\"-\",IF(COUNTA('Enrollment Form'!$CM88:$CN88)=2,\"Y\",\"N\"))","v":"-"},{"$f":"IF($B81=\"N\",\"\",IF(COUNTIF('Enrollment Form'!$CZ88:$DO88,\"Other\")=COUNTA('Enrollment Form'!$DF88,'Enrollment Form'!$DA88,'Enrollment Form'!$DK88,'Enrollment Form'!$DP88),\"Y\",\"N\"))","v":""},{"$f":"IF($B81=\"N\",\"\",IF(OR('Enrollment Form'!B88<>\"Subscriber\",'Enrollment Form'!C88=\"ROC\",COUNTIF('Enrollment Form'!AS88:AT88,\"Yes\")>=1),\"-\",IF(AND('Enrollment Form'!C88=\"Enroll\",COUNTIF('Enrollment Form'!AS88:AT88,\"No\")=2,'Enrollment Form'!AU88=\"\"),\"N\",\"Y\")))","v":""},{"$f":"IF(OR(B81=\"N\",'Enrollment Form'!B88<>\"Subscriber\",'Enrollment Form'!C88=\"ROC\",'Enrollment Form'!O88<>\"Multiple of Salary\"),\"-\",IF(COUNTA('Enrollment Form'!T88:U88)<2,\"N\",\"Y\"))","v":"-"},{"$f":"IF(B81=\"N\",\"\",IF(OR('Enrollment Form'!C88=\"ROC\",'Enrollment Form'!B88<>\"Subscriber\",'Enrollment Form'!O88=\"Waive\",'Enrollment Form'!O88=\"\"),\"-\",IF('Enrollment Form'!P88=\"\",\"N\",\"Y\")))","v":""},{"$f":"IF($B81=\"N\",\"\",IF(AND('Enrollment Form'!$C88=\"ROC\",'Enrollment Form'!$DS88<>\"\"),\"Y\",IF(AND('Enrollment Form'!$C88=\"ROC\",'Enrollment Form'!$DS88=\"\"),\"N\",IF(AND('Enrollment Form'!$C88=\"Enroll\",'Enrollment Form'!$B88=\"Subscriber\",'Enrollment Form'!$CQ88=\"No\",'Enrollment Form'!$DS88=\"\"),\"N\",IF(AND('Enrollment Form'!$C88=\"Enroll\",'Enrollment Form'!$B88=\"Subscriber\",'Enrollment Form'!$CQ88=\"Yes\"),\"-\",\"Y\")))))","v":""},{"$f":"IF($B81=\"N\",\"\",IF(AND('Enrollment Form'!$C88=\"ROC\",'Enrollment Form'!$DT88<>\"\"),\"Y\",IF(AND('Enrollment Form'!$C88=\"ROC\",'Enrollment Form'!$DT88=\"\"),\"N\",IF(AND('Enrollment Form'!$C88=\"Enroll\",'Enrollment Form'!$B88=\"Subscriber\",'Enrollment Form'!$CQ88=\"No\",'Enrollment Form'!$DT88=\"\"),\"N\",IF(AND('Enrollment Form'!$C88=\"Enroll\",'Enrollment Form'!$B88=\"Subscriber\",'Enrollment Form'!$CQ88=\"Yes\"),\"-\",\"Y\")))))","v":""},{"$f":"IF('Enrollment Form'!AH88=\"\",\"\",IF(ISERROR(SEARCH(\".\",'Enrollment Form'!AH88,SEARCH(\"@\",'Enrollment Form'!AH88))),\"N\",\"Y\"))","v":""},{"$f":"IF(OR($B81=\"N\",'Enrollment Form'!$G88=\"\"),\"\",IF('Enrollment Form'!$B88<>\"Subscriber\",\"-\",IF(COUNTIF('Enrollment Form'!$AS88:$AT88,\"Yes\")=2,\"N\",\"Y\")))","v":""},{"$f":"IF(OR('Enrollment Form'!$CC88=\"\",'Enrollment Form'!$CC88=\"No\"),\"-\",IF(AND('Enrollment Form'!$CC88=\"Yes\",'Enrollment Form'!$CD88=\"\"),\"N\",\"Y\"))","v":"-"},{"$f":"IF(OR('Enrollment Form'!$CE88=\"\",'Enrollment Form'!$CE88=\"No\"),\"-\",IF(AND('Enrollment Form'!$CE88=\"Yes\",'Enrollment Form'!$CF88=\"\"),\"N\",\"Y\"))","v":"-"},{"$f":"IF(OR('Enrollment Form'!$CG88=\"\",'Enrollment Form'!$CG88=\"No\"),\"-\",IF(AND('Enrollment Form'!$CG88=\"Yes\",'Enrollment Form'!$CH88=\"\"),\"N\",\"Y\"))","v":"-"},{"$f":"IF(OR('Enrollment Form'!$CG88=\"\",'Enrollment Form'!$CG88=\"No\"),\"-\",IF(AND('Enrollment Form'!$CG88=\"Yes\",'Enrollment Form'!$CI88=\"\"),\"N\",\"Y\"))","v":"-"},{"$f":"IF('Enrollment Form'!B88<>\"Subscriber\",\"-\",IF(AND('Enrollment Form'!B88=\"Subscriber\",'Enrollment Form'!C88=\"Enroll\",'Enrollment Form'!AA88=\"\"),\"N\",\"Y\"))","v":"-"},{"$f":"IF(OR('Enrollment Form'!B88=\"Subscriber\",'Enrollment Form'!B88=\"\"),\"-\",IF('Enrollment Form'!BI88=\"\",\"N\",\"Y\"))","v":"-"},{"$f":"IF('Enrollment Form'!B88<>\"Subscriber\",\"-\",IF(AND('Enrollment Form'!B88=\"Subscriber\",'Enrollment Form'!G88=\"\"),\"N\",\"Y\"))","v":"-"},{"$f":"IF('Enrollment Form'!A88=\"\",\"\",IF('Enrollment Form'!B88=\"Subscriber\",\"-\",IF(AND('Enrollment Form'!B88<>\"Subscriber\",'Enrollment Form'!G88='Enrollment Form'!H88),\"N\",\"Y\")))","v":""},0]
[89,{"$f":"IF('Enrollment Form'!$A89<>\"\",\"Y\",\"N\")","v":"N"},{"$f":"IF(AND('Enrollment Form'!$B89=\"\",'Enrollment Form'!$C89<>\"\"),\"N\",IF($B82=\"N\",\"\",\"Y\"))","v":""},{"$f":"IF(OR($B82=\"N\",'Enrollment Form'!G89=\"\"),\"\",IF('Enrollment Form'!$B89<>\"Subscriber\",\"\",IF('Enrollment Form'!$G89='Enrollment Form'!$H89,\"Y\",\"N\")))","v":""},{"$f":"IF($B82=\"N\",\"\",IF(AND(COUNTIFS('Enrollment Form'!$H$11:$H$1000,'Enrollment Form'!$H89,'Enrollment Form'!$B$11:$B$1000,'Enrollment Form'!$B89)>1,'Enrollment Form'!$H89<>\"\"),\"N\",\"Y\"))","v":""},{"$f":"IF($B82=\"N\",\"\",IF(LEN('Enrollment Form'!$Y89)=0,\"\",IF(LEN('Enrollment Form'!$Y89)<>5,\"N\",\"Y\")))","v":""},{"$f":"IF($B82=\"N\",\"\",IF(LEN('Enrollment Form'!$AD89=0),\"\",IF(LEN('Enrollment Form'!$AD89)<>5,\"N\",\"Y\")))","v":""},{"$f":"IF($B82=\"N\",\"\",IF(LEN('Enrollment Form'!$BL89=0),\"\",IF(LEN('Enrollment Form'!$BL89)<>5,\"N\",\"Y\")))","v":""},{"$f":"IF($B82=\"N\",\"\",IF(LEN('Enrollment Form'!$AE89)=0,\"\",IF(LEN('Enrollment Form'!$AE89)<>10,\"N\",\"Y\")))","v":""},{"$f":"IF($B82=\"N\",\"\",IF(LEN('Enrollment Form'!$AF89)=0,\"\",IF(LEN('Enrollment Form'!$AF89)<>10,\"N\",\"Y\")))","v":""},{"$f":"IF('Enrollment Form'!$O89<>\"Graded\",\"-\",IF(AND('Enrollment Form'!$O89=\"Graded\",'Enrollment Form'!$AO89<>\"\"),\"Y\",\"N\"))","v":"-"},{"$f":"IF($B82=\"N\",\"\",IF(OR('Enrollment Form'!$B89<>\"Subscriber\",'Enrollment Form'!$C89=\"ROC\"),\"-\",IF(AND('Enrollment Form'!$B89=\"Subscriber\",'Enrollment Form'!$C89=\"Enroll\",'Enrollment Form'!$AJ89<>\"\"),\"Y\",\"N\")))","v":""},{"$f":"IF($B82=\"N\",\"\",IF(OR('Enrollment Form'!$B89<>\"Subscriber\",'Enrollment Form'!$C89=\"ROC\"),\"-\",IF(AND('Enrollment Form'!$B89=\"Subscriber\",'Enrollment Form'!$C89=\"Enroll\",'Enrollment Form'!$AK89<>\"\"),\"Y\",\"N\")))","v":""},{"$f":"IF($B82=\"N\",\"\",IF(OR('Enrollment Form'!$B89<>\"Subscriber\",'Enrollment Form'!$C89=\"ROC\"),\"-\",IF(AND('Enrollment Form'!$B89=\"Subscriber\",'Enrollment Form'!$C89=\"Enroll\",'Enrollment Form'!$AL89<>\"\"),\"Y\",\"N\")))","v":""},{"$f":"IF($B82=\"N\",\"\",IF(OR('Enrollment Form'!$B89<>\"Subscriber\",'Enrollment Form'!$C89=\"ROC\"),\"-\",IF(AND('Enrollment Form'!$B89=\"Subscriber\",'Enrollment Form'!$C89=\"Enroll\",'Enrollment Form'!$AM89<>\"\"),\"Y\",\"N\")))","v":""},{"$f":"IF($B82=\"N\",\"\",IF(OR('Enrollment Form'!$B89<>\"Subscriber\",'Enrollment Form'!$C89=\"ROC\"),\"-\",IF(AND('Enrollment Form'!$B89=\"Subscriber\",'Enrollment Form'!$C89=\"Enroll\",'Enrollment Form'!$AN89<>\"\"),\"Y\",\"N\")))","v":""},{"$f":"IF($B82=\"N\",\"\",IF(OR('Enrollment Form'!$B89<>\"Subscriber\",'Enrollment Form'!$C89=\"ROC\"),\"-\",IF(AND('Enrollment Form'!$B89=\"Subscriber\",'Enrollment Form'!$C89=\"Enroll\",'Enrollment Form'!$AP89<>\"\"),\"Y\",\"N\")))","v":""},{"$f":"IF($B82=\"N\",\"\",IF($Q82=\"-\",\"-\",IF(AND($Q82=\"Y\",'Enrollment Form'!$AP89=\"No\"),\"-\",IF(AND($Q82=\"Y\",'Enrollment Form'!$AP89=\"Yes\",'Enrollment Form'!$AQ89<>\"\"),\"Y\",\"N\"))))","v":""},{"$f":"IF($B82=\"N\",\"\",IF(OR('Enrollment Form'!$B89<>\"Subscriber\",'Enrollment Form'!$C89=\"ROC\"),\"-\",IF(AND('Enrollment Form'!$B89=\"Subscriber\",'Enrollment Form'!$C89=\"Enroll\",'Enrollment Form'!$CO89<>\"\"),\"Y\",\"N\")))","v":""},{"$f":"IF($B82=\"N\",\"\",IF($S82=\"-\",\"-\",IF(AND($S82=\"Y\",'Enrollment Form'!$CO89=\"No\"),\"-\",IF(AND($S82=\"Y\",'Enrollment Form'!$CO89=\"Yes\",'Enrollment Form'!$CP89<>\"\"),\"Y\",\"N\"))))","v":""},{"$f":"IF(OR('Enrollment Form'!$AV89=\"Yes\",'Enrollment Form'!$AV89=\"\"),\"-\",IF(AND('Enrollment Form'!$AV89=\"No\",ISERROR(FIND(\"HMO\",VLOOKUP('Enrollment Form'!G89,'Enrollment Form'!H$11:J$1000,3,FALSE),1))=FALSE,COUNTA('Enrollment Form'!$AW89:$AZ89)=4),\"Y\",\"N\"))","v":"-"},{"$f":"IF($B82=\"N\",\"\",IF('Enrollment Form'!$B89=\"Subscriber\",\"-\",IF(COUNTA('Enrollment Form'!$BE89,'Enrollment Form'!$BG89)=2,\"Y\",\"N\")))","v":""},{"$f":"IF($B82=\"N\",\"\",IF(OR('Enrollment Form'!$AU89=\"\",'Enrollment Form'!$AU89=\"No\"),\"-\",IF(AND('Enrollment Form'!$AU89=\"Yes\",COUNTA('Enrollment Form'!$CK89)=1),\"Y\",\"N\")))","v":""},{"$f":"IF(OR('Enrollment Form'!$CK89=\"\",'Enrollment Form'!$CK89=\"No\"),\"-\",IF(COUNTA('Enrollment Form'!$CM89:$CN89)=2,\"Y\",\"N\"))","v":"-"},{"$f":"IF($B82=\"N\",\"\",IF(COUNTIF('Enrollment Form'!$CZ89:$DO89,\"Other\")=COUNTA('Enrollment Form'!$DF89,'Enrollment Form'!$DA89,'Enrollment Form'!$DK89,'Enrollment Form'!$DP89),\"Y\",\"N\"))","v":""},{"$f":"IF($B82=\"N\",\"\",IF(OR('Enrollment Form'!B89<>\"Subscriber\",'Enrollment Form'!C89=\"ROC\",COUNTIF('Enrollment Form'!AS89:AT89,\"Yes\")>=1),\"-\",IF(AND('Enrollment Form'!C89=\"Enroll\",COUNTIF('Enrollment Form'!AS89:AT89,\"No\")=2,'Enrollment Form'!AU89=\"\"),\"N\",\"Y\")))","v":""},{"$f":"IF(OR(B82=\"N\",'Enrollment Form'!B89<>\"Subscriber\",'Enrollment Form'!C89=\"ROC\",'Enrollment Form'!O89<>\"Multiple of Salary\"),\"-\",IF(COUNTA('Enrollment Form'!T89:U89)<2,\"N\",\"Y\"))","v":"-"},{"$f":"IF(B82=\"N\",\"\",IF(OR('Enrollment Form'!C89=\"ROC\",'Enrollment Form'!B89<>\"Subscriber\",'Enrollment Form'!O89=\"Waive\",'Enrollment Form'!O89=\"\"),\"-\",IF('Enrollment Form'!P89=\"\",\"N\",\"Y\")))","v":""},{"$f":"IF($B82=\"N\",\"\",IF(AND('Enrollment Form'!$C89=\"ROC\",'Enrollment Form'!$DS89<>\"\"),\"Y\",IF(AND('Enrollment Form'!$C89=\"ROC\",'Enrollment Form'!$DS89=\"\"),\"N\",IF(AND('Enrollment Form'!$C89=\"Enroll\",'Enrollment Form'!$B89=\"Subscriber\",'Enrollment Form'!$CQ89=\"No\",'Enrollment Form'!$DS89=\"\"),\"N\",IF(AND('Enrollment Form'!$C89=\"Enroll\",'Enrollment Form'!$B89=\"Subscriber\",'Enrollment Form'!$CQ89=\"Yes\"),\"-\",\"Y\")))))","v":""},{"$f":"IF($B82=\"N\",\"\",IF(AND('Enrollment Form'!$C89=\"ROC\",'Enrollment Form'!$DT89<>\"\"),\"Y\",IF(AND('Enrollment Form'!$C89=\"ROC\",'Enrollment Form'!$DT89=\"\"),\"N\",IF(AND('Enrollment Form'!$C89=\"Enroll\",'Enrollment Form'!$B89=\"Subscriber\",'Enrollment Form'!$CQ89=\"No\",'Enrollment Form'!$DT89=\"\"),\"N\",IF(AND('Enrollment Form'!$C89=\"Enroll\",'Enrollment Form'!$B89=\"Subscriber\",'Enrollment Form'!$CQ89=\"Yes\"),\"-\",\"Y\")))))","v":""},{"$f":"IF('Enrollment Form'!AH89=\"\",\"\",IF(ISERROR(SEARCH(\".\",'Enrollment Form'!AH89,SEARCH(\"@\",'Enrollment Form'!AH89))),\"N\",\"Y\"))","v":""},{"$f":"IF(OR($B82=\"N\",'Enrollment Form'!$G89=\"\"),\"\",IF('Enrollment Form'!$B89<>\"Subscriber\",\"-\",IF(COUNTIF('Enrollment Form'!$AS89:$AT89,\"Yes\")=2,\"N\",\"Y\")))","v":""},{"$f":"IF(OR('Enrollment Form'!$CC89=\"\",'Enrollment Form'!$CC89=\"No\"),\"-\",IF(AND('Enrollment Form'!$CC89=\"Yes\",'Enrollment Form'!$CD89=\"\"),\"N\",\"Y\"))","v":"-"},{"$f":"IF(OR('Enrollment Form'!$CE89=\"\",'Enrollment Form'!$CE89=\"No\"),\"-\",IF(AND('Enrollment Form'!$CE89=\"Yes\",'Enrollment Form'!$CF89=\"\"),\"N\",\"Y\"))","v":"-"},{"$f":"IF(OR('Enrollment Form'!$CG89=\"\",'Enrollment Form'!$CG89=\"No\"),\"-\",IF(AND('Enrollment Form'!$CG89=\"Yes\",'Enrollment Form'!$CH89=\"\"),\"N\",\"Y\"))","v":"-"},{"$f":"IF(OR('Enrollment Form'!$CG89=\"\",'Enrollment Form'!$CG89=\"No\"),\"-\",IF(AND('Enrollment Form'!$CG89=\"Yes\",'Enrollment Form'!$CI89=\"\"),\"N\",\"Y\"))","v":"-"},{"$f":"IF('Enrollment Form'!B89<>\"Subscriber\",\"-\",IF(AND('Enrollment Form'!B89=\"Subscriber\",'Enrollment Form'!C89=\"Enroll\",'Enrollment Form'!AA89=\"\"),\"N\",\"Y\"))","v":"-"},{"$f":"IF(OR('Enrollment Form'!B89=\"Subscriber\",'Enrollment Form'!B89=\"\"),\"-\",IF('Enrollment Form'!BI89=\"\",\"N\",\"Y\"))","v":"-"},{"$f":"IF('Enrollment Form'!B89<>\"Subscriber\",\"-\",IF(AND('Enrollment Form'!B89=\"Subscriber\",'Enrollment Form'!G89=\"\"),\"N\",\"Y\"))","v":"-"},{"$f":"IF('Enrollment Form'!A89=\"\",\"\",IF('Enrollment Form'!B89=\"Subscriber\",\"-\",IF(AND('Enrollment Form'!B89<>\"Subscriber\",'Enrollment Form'!G89='Enrollment Form'!H89),\"N\",\"Y\")))","v":""},0]
[90,{"$f":"IF('Enrollment Form'!$A90<>\"\",\"Y\",\"N\")","v":"N"},{"$f":"IF(AND('Enrollment Form'!$B90=\"\",'Enrollment Form'!$C90<>\"\"),\"N\",IF($B83=\"N\",\"\",\"Y\"))","v":""},{"$f":"IF(OR($B83=\"N\",'Enrollment Form'!G90=\"\"),\"\",IF('Enrollment Form'!$B90<>\"Subscriber\",\"\",IF('Enrollment Form'!$G90='Enrollment Form'!$H90,\"Y\",\"N\")))","v":""},{"$f":"IF($B83=\"N\",\"\",IF(AND(COUNTIFS('Enrollment Form'!$H$11:$H$1000,'Enrollment Form'!$H90,'Enrollment Form'!$B$11:$B$1000,'Enrollment Form'!$B90)>1,'Enrollment Form'!$H90<>\"\"),\"N\",\"Y\"))","v":""},{"$f":"IF($B83=\"N\",\"\",IF(LEN('Enrollment Form'!$Y90)=0,\"\",IF(LEN('Enrollment Form'!$Y90)<>5,\"N\",\"Y\")))","v":""},{"$f":"IF($B83=\"N\",\"\",IF(LEN('Enrollment Form'!$AD90=0),\"\",IF(LEN('Enrollment Form'!$AD90)<>5,\"N\",\"Y\")))","v":""},{"$f":"IF($B83=\"N\",\"\",IF(LEN('Enrollment Form'!$BL90=0),\"\",IF(LEN('Enrollment Form'!$BL90)<>5,\"N\",\"Y\")))","v":""},{"$f":"IF($B83=\"N\",\"\",IF(LEN('Enrollment Form'!$AE90)=0,\"\",IF(LEN('Enrollment Form'!$AE90)<>10,\"N\",\"Y\")))","v":""},{"$f":"IF($B83=\"N\",\"\",IF(LEN('Enrollment Form'!$AF90)=0,\"\",IF(LEN('Enrollment Form'!$AF90)<>10,\"N\",\"Y\")))","v":""},{"$f":"IF('Enrollment Form'!$O90<>\"Graded\",\"-\",IF(AND('Enrollment Form'!$O90=\"Graded\",'Enrollment Form'!$AO90<>\"\"),\"Y\",\"N\"))","v":"-"},{"$f":"IF($B83=\"N\",\"\",IF(OR('Enrollment Form'!$B90<>\"Subscriber\",'Enrollment Form'!$C90=\"ROC\"),\"-\",IF(AND('Enrollment Form'!$B90=\"Subscriber\",'Enrollment Form'!$C90=\"Enroll\",'Enrollment Form'!$AJ90<>\"\"),\"Y\",\"N\")))","v":""},{"$f":"IF($B83=\"N\",\"\",IF(OR('Enrollment Form'!$B90<>\"Subscriber\",'Enrollment Form'!$C90=\"ROC\"),\"-\",IF(AND('Enrollment Form'!$B90=\"Subscriber\",'Enrollment Form'!$C90=\"Enroll\",'Enrollment Form'!$AK90<>\"\"),\"Y\",\"N\")))","v":""},{"$f":"IF($B83=\"N\",\"\",IF(OR('Enrollment Form'!$B90<>\"Subscriber\",'Enrollment Form'!$C90=\"ROC\"),\"-\",IF(AND('Enrollment Form'!$B90=\"Subscriber\",'Enrollment Form'!$C90=\"Enroll\",'Enrollment Form'!$AL90<>\"\"),\"Y\",\"N\")))","v":""},{"$f":"IF($B83=\"N\",\"\",IF(OR('Enrollment Form'!$B90<>\"Subscriber\",'Enrollment Form'!$C90=\"ROC\"),\"-\",IF(AND('Enrollment Form'!$B90=\"Subscriber\",'Enrollment Form'!$C90=\"Enroll\",'Enrollment Form'!$AM90<>\"\"),\"Y\",\"N\")))","v":""},{"$f":"IF($B83=\"N\",\"\",IF(OR('Enrollment Form'!$B90<>\"Subscriber\",'Enrollment Form'!$C90=\"ROC\"),\"-\",IF(AND('Enrollment Form'!$B90=\"Subscriber\",'Enrollment Form'!$C90=\"Enroll\",'Enrollment Form'!$AN90<>\"\"),\"Y\",\"N\")))","v":""},{"$f":"IF($B83=\"N\",\"\",IF(OR('Enrollment Form'!$B90<>\"Subscriber\",'Enrollment Form'!$C90=\"ROC\"),\"-\",IF(AND('Enrollment Form'!$B90=\"Subscriber\",'Enrollment Form'!$C90=\"Enroll\",'Enrollment Form'!$AP90<>\"\"),\"Y\",\"N\")))","v":""},{"$f":"IF($B83=\"N\",\"\",IF($Q83=\"-\",\"-\",IF(AND($Q83=\"Y\",'Enrollment Form'!$AP90=\"No\"),\"-\",IF(AND($Q83=\"Y\",'Enrollment Form'!$AP90=\"Yes\",'Enrollment Form'!$AQ90<>\"\"),\"Y\",\"N\"))))","v":""},{"$f":"IF($B83=\"N\",\"\",IF(OR('Enrollment Form'!$B90<>\"Subscriber\",'Enrollment Form'!$C90=\"ROC\"),\"-\",IF(AND('Enrollment Form'!$B90=\"Subscriber\",'Enrollment Form'!$C90=\"Enroll\",'Enrollment Form'!$CO90<>\"\"),\"Y\",\"N\")))","v":""},{"$f":"IF($B83=\"N\",\"\",IF($S83=\"-\",\"-\",IF(AND($S83=\"Y\",'Enrollment Form'!$CO90=\"No\"),\"-\",IF(AND($S83=\"Y\",'Enrollment Form'!$CO90=\"Yes\",'Enrollment Form'!$CP90<>\"\"),\"Y\",\"N\"))))","v":""},{"$f":"IF(OR('Enrollment Form'!$AV90=\"Yes\",'Enrollment Form'!$AV90=\"\"),\"-\",IF(AND('Enrollment Form'!$AV90=\"No\",ISERROR(FIND(\"HMO\",VLOOKUP('Enrollment Form'!G90,'Enrollment Form'!H$11:J$1000,3,FALSE),1))=FALSE,COUNTA('Enrollment Form'!$AW90:$AZ90)=4),\"Y\",\"N\"))","v":"-"},{"$f":"IF($B83=\"N\",\"\",IF('Enrollment Form'!$B90=\"Subscriber\",\"-\",IF(COUNTA('Enrollment Form'!$BE90,'Enrollment Form'!$BG90)=2,\"Y\",\"N\")))","v":""},{"$f":"IF($B83=\"N\",\"\",IF(OR('Enrollment Form'!$AU90=\"\",'Enrollment Form'!$AU90=\"No\"),\"-\",IF(AND('Enrollment Form'!$AU90=\"Yes\",COUNTA('Enrollment Form'!$CK90)=1),\"Y\",\"N\")))","v":""},{"$f":"IF(OR('Enrollment Form'!$CK90=\"\",'Enrollment Form'!$CK90=\"No\"),\"-\",IF(COUNTA('Enrollment Form'!$CM90:$CN90)=2,\"Y\",\"N\"))","v":"-"},{"$f":"IF($B83=\"N\",\"\",IF(COUNTIF('Enrollment Form'!$CZ90:$DO90,\"Other\")=COUNTA('Enrollment Form'!$DF90,'Enrollment Form'!$DA90,'Enrollment Form'!$DK90,'Enrollment Form'!$DP90),\"Y\",\"N\"))","v":""},{"$f":"IF($B83=\"N\",\"\",IF(OR('Enrollment Form'!B90<>\"Subscriber\",'Enrollment Form'!C90=\"ROC\",COUNTIF('Enrollment Form'!AS90:AT90,\"Yes\")>=1),\"-\",IF(AND('Enrollment Form'!C90=\"Enroll\",COUNTIF('Enrollment Form'!AS90:AT90,\"No\")=2,'Enrollment Form'!AU90=\"\"),\"N\",\"Y\")))","v":""},{"$f":"IF(OR(B83=\"N\",'Enrollment Form'!B90<>\"Subscriber\",'Enrollment Form'!C90=\"ROC\",'Enrollment Form'!O90<>\"Multiple of Salary\"),\"-\",IF(COUNTA('Enrollment Form'!T90:U90)<2,\"N\",\"Y\"))","v":"-"},{"$f":"IF(B83=\"N\",\"\",IF(OR('Enrollment Form'!C90=\"ROC\",'Enrollment Form'!B90<>\"Subscriber\",'Enrollment Form'!O90=\"Waive\",'Enrollment Form'!O90=\"\"),\"-\",IF('Enrollment Form'!P90=\"\",\"N\",\"Y\")))","v":""},{"$f":"IF($B83=\"N\",\"\",IF(AND('Enrollment Form'!$C90=\"ROC\",'Enrollment Form'!$DS90<>\"\"),\"Y\",IF(AND('Enrollment Form'!$C90=\"ROC\",'Enrollment Form'!$DS90=\"\"),\"N\",IF(AND('Enrollment Form'!$C90=\"Enroll\",'Enrollment Form'!$B90=\"Subscriber\",'Enrollment Form'!$CQ90=\"No\",'Enrollment Form'!$DS90=\"\"),\"N\",IF(AND('Enrollment Form'!$C90=\"Enroll\",'Enrollment Form'!$B90=\"Subscriber\",'Enrollment Form'!$CQ90=\"Yes\"),\"-\",\"Y\")))))","v":""},{"$f":"IF($B83=\"N\",\"\",IF(AND('Enrollment Form'!$C90=\"ROC\",'Enrollment Form'!$DT90<>\"\"),\"Y\",IF(AND('Enrollment Form'!$C90=\"ROC\",'Enrollment Form'!$DT90=\"\"),\"N\",IF(AND('Enrollment Form'!$C90=\"Enroll\",'Enrollment Form'!$B90=\"Subscriber\",'Enrollment Form'!$CQ90=\"No\",'Enrollment Form'!$DT90=\"\"),\"N\",IF(AND('Enrollment Form'!$C90=\"Enroll\",'Enrollment Form'!$B90=\"Subscriber\",'Enrollment Form'!$CQ90=\"Yes\"),\"-\",\"Y\")))))","v":""},{"$f":"IF('Enrollment Form'!AH90=\"\",\"\",IF(ISERROR(SEARCH(\".\",'Enrollment Form'!AH90,SEARCH(\"@\",'Enrollment Form'!AH90))),\"N\",\"Y\"))","v":""},{"$f":"IF(OR($B83=\"N\",'Enrollment Form'!$G90=\"\"),\"\",IF('Enrollment Form'!$B90<>\"Subscriber\",\"-\",IF(COUNTIF('Enrollment Form'!$AS90:$AT90,\"Yes\")=2,\"N\",\"Y\")))","v":""},{"$f":"IF(OR('Enrollment Form'!$CC90=\"\",'Enrollment Form'!$CC90=\"No\"),\"-\",IF(AND('Enrollment Form'!$CC90=\"Yes\",'Enrollment Form'!$CD90=\"\"),\"N\",\"Y\"))","v":"-"},{"$f":"IF(OR('Enrollment Form'!$CE90=\"\",'Enrollment Form'!$CE90=\"No\"),\"-\",IF(AND('Enrollment Form'!$CE90=\"Yes\",'Enrollment Form'!$CF90=\"\"),\"N\",\"Y\"))","v":"-"},{"$f":"IF(OR('Enrollment Form'!$CG90=\"\",'Enrollment Form'!$CG90=\"No\"),\"-\",IF(AND('Enrollment Form'!$CG90=\"Yes\",'Enrollment Form'!$CH90=\"\"),\"N\",\"Y\"))","v":"-"},{"$f":"IF(OR('Enrollment Form'!$CG90=\"\",'Enrollment Form'!$CG90=\"No\"),\"-\",IF(AND('Enrollment Form'!$CG90=\"Yes\",'Enrollment Form'!$CI90=\"\"),\"N\",\"Y\"))","v":"-"},{"$f":"IF('Enrollment Form'!B90<>\"Subscriber\",\"-\",IF(AND('Enrollment Form'!B90=\"Subscriber\",'Enrollment Form'!C90=\"Enroll\",'Enrollment Form'!AA90=\"\"),\"N\",\"Y\"))","v":"-"},{"$f":"IF(OR('Enrollment Form'!B90=\"Subscriber\",'Enrollment Form'!B90=\"\"),\"-\",IF('Enrollment Form'!BI90=\"\",\"N\",\"Y\"))","v":"-"},{"$f":"IF('Enrollment Form'!B90<>\"Subscriber\",\"-\",IF(AND('Enrollment Form'!B90=\"Subscriber\",'Enrollment Form'!G90=\"\"),\"N\",\"Y\"))","v":"-"},{"$f":"IF('Enrollment Form'!A90=\"\",\"\",IF('Enrollment Form'!B90=\"Subscriber\",\"-\",IF(AND('Enrollment Form'!B90<>\"Subscriber\",'Enrollment Form'!G90='Enrollment Form'!H90),\"N\",\"Y\")))","v":""},0]
[91,{"$f":"IF('Enrollment Form'!$A91<>\"\",\"Y\",\"N\")","v":"N"},{"$f":"IF(AND('Enrollment Form'!$B91=\"\",'Enrollment Form'!$C91<>\"\"),\"N\",IF($B84=\"N\",\"\",\"Y\"))","v":""},{"$f":"IF(OR($B84=\"N\",'Enrollment Form'!G91=\"\"),\"\",IF('Enrollment Form'!$B91<>\"Subscriber\",\"\",IF('Enrollment Form'!$G91='Enrollment Form'!$H91,\"Y\",\"N\")))","v":""},{"$f":"IF($B84=\"N\",\"\",IF(AND(COUNTIFS('Enrollment Form'!$H$11:$H$1000,'Enrollment Form'!$H91,'Enrollment Form'!$B$11:$B$1000,'Enrollment Form'!$B91)>1,'Enrollment Form'!$H91<>\"\"),\"N\",\"Y\"))","v":""},{"$f":"IF($B84=\"N\",\"\",IF(LEN('Enrollment Form'!$Y91)=0,\"\",IF(LEN('Enrollment Form'!$Y91)<>5,\"N\",\"Y\")))","v":""},{"$f":"IF($B84=\"N\",\"\",IF(LEN('Enrollment Form'!$AD91=0),\"\",IF(LEN('Enrollment Form'!$AD91)<>5,\"N\",\"Y\")))","v":""},{"$f":"IF($B84=\"N\",\"\",IF(LEN('Enrollment Form'!$BL91=0),\"\",IF(LEN('Enrollment Form'!$BL91)<>5,\"N\",\"Y\")))","v":""},{"$f":"IF($B84=\"N\",\"\",IF(LEN('Enrollment Form'!$AE91)=0,\"\",IF(LEN('Enrollment Form'!$AE91)<>10,\"N\",\"Y\")))","v":""},{"$f":"IF($B84=\"N\",\"\",IF(LEN('Enrollment Form'!$AF91)=0,\"\",IF(LEN('Enrollment Form'!$AF91)<>10,\"N\",\"Y\")))","v":""},{"$f":"IF('Enrollment Form'!$O91<>\"Graded\",\"-\",IF(AND('Enrollment Form'!$O91=\"Graded\",'Enrollment Form'!$AO91<>\"\"),\"Y\",\"N\"))","v":"-"},{"$f":"IF($B84=\"N\",\"\",IF(OR('Enrollment Form'!$B91<>\"Subscriber\",'Enrollment Form'!$C91=\"ROC\"),\"-\",IF(AND('Enrollment Form'!$B91=\"Subscriber\",'Enrollment Form'!$C91=\"Enroll\",'Enrollment Form'!$AJ91<>\"\"),\"Y\",\"N\")))","v":""},{"$f":"IF($B84=\"N\",\"\",IF(OR('Enrollment Form'!$B91<>\"Subscriber\",'Enrollment Form'!$C91=\"ROC\"),\"-\",IF(AND('Enrollment Form'!$B91=\"Subscriber\",'Enrollment Form'!$C91=\"Enroll\",'Enrollment Form'!$AK91<>\"\"),\"Y\",\"N\")))","v":""},{"$f":"IF($B84=\"N\",\"\",IF(OR('Enrollment Form'!$B91<>\"Subscriber\",'Enrollment Form'!$C91=\"ROC\"),\"-\",IF(AND('Enrollment Form'!$B91=\"Subscriber\",'Enrollment Form'!$C91=\"Enroll\",'Enrollment Form'!$AL91<>\"\"),\"Y\",\"N\")))","v":""},{"$f":"IF($B84=\"N\",\"\",IF(OR('Enrollment Form'!$B91<>\"Subscriber\",'Enrollment Form'!$C91=\"ROC\"),\"-\",IF(AND('Enrollment Form'!$B91=\"Subscriber\",'Enrollment Form'!$C91=\"Enroll\",'Enrollment Form'!$AM91<>\"\"),\"Y\",\"N\")))","v":""},{"$f":"IF($B84=\"N\",\"\",IF(OR('Enrollment Form'!$B91<>\"Subscriber\",'Enrollment Form'!$C91=\"ROC\"),\"-\",IF(AND('Enrollment Form'!$B91=\"Subscriber\",'Enrollment Form'!$C91=\"Enroll\",'Enrollment Form'!$AN91<>\"\"),\"Y\",\"N\")))","v":""},{"$f":"IF($B84=\"N\",\"\",IF(OR('Enrollment Form'!$B91<>\"Subscriber\",'Enrollment Form'!$C91=\"ROC\"),\"-\",IF(AND('Enrollment Form'!$B91=\"Subscriber\",'Enrollment Form'!$C91=\"Enroll\",'Enrollment Form'!$AP91<>\"\"),\"Y\",\"N\")))","v":""},{"$f":"IF($B84=\"N\",\"\",IF($Q84=\"-\",\"-\",IF(AND($Q84=\"Y\",'Enrollment Form'!$AP91=\"No\"),\"-\",IF(AND($Q84=\"Y\",'Enrollment Form'!$AP91=\"Yes\",'Enrollment Form'!$AQ91<>\"\"),\"Y\",\"N\"))))","v":""},{"$f":"IF($B84=\"N\",\"\",IF(OR('Enrollment Form'!$B91<>\"Subscriber\",'Enrollment Form'!$C91=\"ROC\"),\"-\",IF(AND('Enrollment Form'!$B91=\"Subscriber\",'Enrollment Form'!$C91=\"Enroll\",'Enrollment Form'!$CO91<>\"\"),\"Y\",\"N\")))","v":""},{"$f":"IF($B84=\"N\",\"\",IF($S84=\"-\",\"-\",IF(AND($S84=\"Y\",'Enrollment Form'!$CO91=\"No\"),\"-\",IF(AND($S84=\"Y\",'Enrollment Form'!$CO91=\"Yes\",'Enrollment Form'!$CP91<>\"\"),\"Y\",\"N\"))))","v":""},{"$f":"IF(OR('Enrollment Form'!$AV91=\"Yes\",'Enrollment Form'!$AV91=\"\"),\"-\",IF(AND('Enrollment Form'!$AV91=\"No\",ISERROR(FIND(\"HMO\",VLOOKUP('Enrollment Form'!G91,'Enrollment Form'!H$11:J$1000,3,FALSE),1))=FALSE,COUNTA('Enrollment Form'!$AW91:$AZ91)=4),\"Y\",\"N\"))","v":"-"},{"$f":"IF($B84=\"N\",\"\",IF('Enrollment Form'!$B91=\"Subscriber\",\"-\",IF(COUNTA('Enrollment Form'!$BE91,'Enrollment Form'!$BG91)=2,\"Y\",\"N\")))","v":""},{"$f":"IF($B84=\"N\",\"\",IF(OR('Enrollment Form'!$AU91=\"\",'Enrollment Form'!$AU91=\"No\"),\"-\",IF(AND('Enrollment Form'!$AU91=\"Yes\",COUNTA('Enrollment Form'!$CK91)=1),\"Y\",\"N\")))","v":""},{"$f":"IF(OR('Enrollment Form'!$CK91=\"\",'Enrollment Form'!$CK91=\"No\"),\"-\",IF(COUNTA('Enrollment Form'!$CM91:$CN91)=2,\"Y\",\"N\"))","v":"-"},{"$f":"IF($B84=\"N\",\"\",IF(COUNTIF('Enrollment Form'!$CZ91:$DO91,\"Other\")=COUNTA('Enrollment Form'!$DF91,'Enrollment Form'!$DA91,'Enrollment Form'!$DK91,'Enrollment Form'!$DP91),\"Y\",\"N\"))","v":""},{"$f":"IF($B84=\"N\",\"\",IF(OR('Enrollment Form'!B91<>\"Subscriber\",'Enrollment Form'!C91=\"ROC\",COUNTIF('Enrollment Form'!AS91:AT91,\"Yes\")>=1),\"-\",IF(AND('Enrollment Form'!C91=\"Enroll\",COUNTIF('Enrollment Form'!AS91:AT91,\"No\")=2,'Enrollment Form'!AU91=\"\"),\"N\",\"Y\")))","v":""},{"$f":"IF(OR(B84=\"N\",'Enrollment Form'!B91<>\"Subscriber\",'Enrollment Form'!C91=\"ROC\",'Enrollment Form'!O91<>\"Multiple of Salary\"),\"-\",IF(COUNTA('Enrollment Form'!T91:U91)<2,\"N\",\"Y\"))","v":"-"},{"$f":"IF(B84=\"N\",\"\",IF(OR('Enrollment Form'!C91=\"ROC\",'Enrollment Form'!B91<>\"Subscriber\",'Enrollment Form'!O91=\"Waive\",'Enrollment Form'!O91=\"\"),\"-\",IF('Enrollment Form'!P91=\"\",\"N\",\"Y\")))","v":""},{"$f":"IF($B84=\"N\",\"\",IF(AND('Enrollment Form'!$C91=\"ROC\",'Enrollment Form'!$DS91<>\"\"),\"Y\",IF(AND('Enrollment Form'!$C91=\"ROC\",'Enrollment Form'!$DS91=\"\"),\"N\",IF(AND('Enrollment Form'!$C91=\"Enroll\",'Enrollment Form'!$B91=\"Subscriber\",'Enrollment Form'!$CQ91=\"No\",'Enrollment Form'!$DS91=\"\"),\"N\",IF(AND('Enrollment Form'!$C91=\"Enroll\",'Enrollment Form'!$B91=\"Subscriber\",'Enrollment Form'!$CQ91=\"Yes\"),\"-\",\"Y\")))))","v":""},{"$f":"IF($B84=\"N\",\"\",IF(AND('Enrollment Form'!$C91=\"ROC\",'Enrollment Form'!$DT91<>\"\"),\"Y\",IF(AND('Enrollment Form'!$C91=\"ROC\",'Enrollment Form'!$DT91=\"\"),\"N\",IF(AND('Enrollment Form'!$C91=\"Enroll\",'Enrollment Form'!$B91=\"Subscriber\",'Enrollment Form'!$CQ91=\"No\",'Enrollment Form'!$DT91=\"\"),\"N\",IF(AND('Enrollment Form'!$C91=\"Enroll\",'Enrollment Form'!$B91=\"Subscriber\",'Enrollment Form'!$CQ91=\"Yes\"),\"-\",\"Y\")))))","v":""},{"$f":"IF('Enrollment Form'!AH91=\"\",\"\",IF(ISERROR(SEARCH(\".\",'Enrollment Form'!AH91,SEARCH(\"@\",'Enrollment Form'!AH91))),\"N\",\"Y\"))","v":""},{"$f":"IF(OR($B84=\"N\",'Enrollment Form'!$G91=\"\"),\"\",IF('Enrollment Form'!$B91<>\"Subscriber\",\"-\",IF(COUNTIF('Enrollment Form'!$AS91:$AT91,\"Yes\")=2,\"N\",\"Y\")))","v":""},{"$f":"IF(OR('Enrollment Form'!$CC91=\"\",'Enrollment Form'!$CC91=\"No\"),\"-\",IF(AND('Enrollment Form'!$CC91=\"Yes\",'Enrollment Form'!$CD91=\"\"),\"N\",\"Y\"))","v":"-"},{"$f":"IF(OR('Enrollment Form'!$CE91=\"\",'Enrollment Form'!$CE91=\"No\"),\"-\",IF(AND('Enrollment Form'!$CE91=\"Yes\",'Enrollment Form'!$CF91=\"\"),\"N\",\"Y\"))","v":"-"},{"$f":"IF(OR('Enrollment Form'!$CG91=\"\",'Enrollment Form'!$CG91=\"No\"),\"-\",IF(AND('Enrollment Form'!$CG91=\"Yes\",'Enrollment Form'!$CH91=\"\"),\"N\",\"Y\"))","v":"-"},{"$f":"IF(OR('Enrollment Form'!$CG91=\"\",'Enrollment Form'!$CG91=\"No\"),\"-\",IF(AND('Enrollment Form'!$CG91=\"Yes\",'Enrollment Form'!$CI91=\"\"),\"N\",\"Y\"))","v":"-"},{"$f":"IF('Enrollment Form'!B91<>\"Subscriber\",\"-\",IF(AND('Enrollment Form'!B91=\"Subscriber\",'Enrollment Form'!C91=\"Enroll\",'Enrollment Form'!AA91=\"\"),\"N\",\"Y\"))","v":"-"},{"$f":"IF(OR('Enrollment Form'!B91=\"Subscriber\",'Enrollment Form'!B91=\"\"),\"-\",IF('Enrollment Form'!BI91=\"\",\"N\",\"Y\"))","v":"-"},{"$f":"IF('Enrollment Form'!B91<>\"Subscriber\",\"-\",IF(AND('Enrollment Form'!B91=\"Subscriber\",'Enrollment Form'!G91=\"\"),\"N\",\"Y\"))","v":"-"},{"$f":"IF('Enrollment Form'!A91=\"\",\"\",IF('Enrollment Form'!B91=\"Subscriber\",\"-\",IF(AND('Enrollment Form'!B91<>\"Subscriber\",'Enrollment Form'!G91='Enrollment Form'!H91),\"N\",\"Y\")))","v":""},0]
[92,{"$f":"IF('Enrollment Form'!$A92<>\"\",\"Y\",\"N\")","v":"N"},{"$f":"IF(AND('Enrollment Form'!$B92=\"\",'Enrollment Form'!$C92<>\"\"),\"N\",IF($B85=\"N\",\"\",\"Y\"))","v":""},{"$f":"IF(OR($B85=\"N\",'Enrollment Form'!G92=\"\"),\"\",IF('Enrollment Form'!$B92<>\"Subscriber\",\"\",IF('Enrollment Form'!$G92='Enrollment Form'!$H92,\"Y\",\"N\")))","v":""},{"$f":"IF($B85=\"N\",\"\",IF(AND(COUNTIFS('Enrollment Form'!$H$11:$H$1000,'Enrollment Form'!$H92,'Enrollment Form'!$B$11:$B$1000,'Enrollment Form'!$B92)>1,'Enrollment Form'!$H92<>\"\"),\"N\",\"Y\"))","v":""},{"$f":"IF($B85=\"N\",\"\",IF(LEN('Enrollment Form'!$Y92)=0,\"\",IF(LEN('Enrollment Form'!$Y92)<>5,\"N\",\"Y\")))","v":""},{"$f":"IF($B85=\"N\",\"\",IF(LEN('Enrollment Form'!$AD92=0),\"\",IF(LEN('Enrollment Form'!$AD92)<>5,\"N\",\"Y\")))","v":""},{"$f":"IF($B85=\"N\",\"\",IF(LEN('Enrollment Form'!$BL92=0),\"\",IF(LEN('Enrollment Form'!$BL92)<>5,\"N\",\"Y\")))","v":""},{"$f":"IF($B85=\"N\",\"\",IF(LEN('Enrollment Form'!$AE92)=0,\"\",IF(LEN('Enrollment Form'!$AE92)<>10,\"N\",\"Y\")))","v":""},{"$f":"IF($B85=\"N\",\"\",IF(LEN('Enrollment Form'!$AF92)=0,\"\",IF(LEN('Enrollment Form'!$AF92)<>10,\"N\",\"Y\")))","v":""},{"$f":"IF('Enrollment Form'!$O92<>\"Graded\",\"-\",IF(AND('Enrollment Form'!$O92=\"Graded\",'Enrollment Form'!$AO92<>\"\"),\"Y\",\"N\"))","v":"-"},{"$f":"IF($B85=\"N\",\"\",IF(OR('Enrollment Form'!$B92<>\"Subscriber\",'Enrollment Form'!$C92=\"ROC\"),\"-\",IF(AND('Enrollment Form'!$B92=\"Subscriber\",'Enrollment Form'!$C92=\"Enroll\",'Enrollment Form'!$AJ92<>\"\"),\"Y\",\"N\")))","v":""},{"$f":"IF($B85=\"N\",\"\",IF(OR('Enrollment Form'!$B92<>\"Subscriber\",'Enrollment Form'!$C92=\"ROC\"),\"-\",IF(AND('Enrollment Form'!$B92=\"Subscriber\",'Enrollment Form'!$C92=\"Enroll\",'Enrollment Form'!$AK92<>\"\"),\"Y\",\"N\")))","v":""},{"$f":"IF($B85=\"N\",\"\",IF(OR('Enrollment Form'!$B92<>\"Subscriber\",'Enrollment Form'!$C92=\"ROC\"),\"-\",IF(AND('Enrollment Form'!$B92=\"Subscriber\",'Enrollment Form'!$C92=\"Enroll\",'Enrollment Form'!$AL92<>\"\"),\"Y\",\"N\")))","v":""},{"$f":"IF($B85=\"N\",\"\",IF(OR('Enrollment Form'!$B92<>\"Subscriber\",'Enrollment Form'!$C92=\"ROC\"),\"-\",IF(AND('Enrollment Form'!$B92=\"Subscriber\",'Enrollment Form'!$C92=\"Enroll\",'Enrollment Form'!$AM92<>\"\"),\"Y\",\"N\")))","v":""},{"$f":"IF($B85=\"N\",\"\",IF(OR('Enrollment Form'!$B92<>\"Subscriber\",'Enrollment Form'!$C92=\"ROC\"),\"-\",IF(AND('Enrollment Form'!$B92=\"Subscriber\",'Enrollment Form'!$C92=\"Enroll\",'Enrollment Form'!$AN92<>\"\"),\"Y\",\"N\")))","v":""},{"$f":"IF($B85=\"N\",\"\",IF(OR('Enrollment Form'!$B92<>\"Subscriber\",'Enrollment Form'!$C92=\"ROC\"),\"-\",IF(AND('Enrollment Form'!$B92=\"Subscriber\",'Enrollment Form'!$C92=\"Enroll\",'Enrollment Form'!$AP92<>\"\"),\"Y\",\"N\")))","v":""},{"$f":"IF($B85=\"N\",\"\",IF($Q85=\"-\",\"-\",IF(AND($Q85=\"Y\",'Enrollment Form'!$AP92=\"No\"),\"-\",IF(AND($Q85=\"Y\",'Enrollment Form'!$AP92=\"Yes\",'Enrollment Form'!$AQ92<>\"\"),\"Y\",\"N\"))))","v":""},{"$f":"IF($B85=\"N\",\"\",IF(OR('Enrollment Form'!$B92<>\"Subscriber\",'Enrollment Form'!$C92=\"ROC\"),\"-\",IF(AND('Enrollment Form'!$B92=\"Subscriber\",'Enrollment Form'!$C92=\"Enroll\",'Enrollment Form'!$CO92<>\"\"),\"Y\",\"N\")))","v":""},{"$f":"IF($B85=\"N\",\"\",IF($S85=\"-\",\"-\",IF(AND($S85=\"Y\",'Enrollment Form'!$CO92=\"No\"),\"-\",IF(AND($S85=\"Y\",'Enrollment Form'!$CO92=\"Yes\",'Enrollment Form'!$CP92<>\"\"),\"Y\",\"N\"))))","v":""},{"$f":"IF(OR('Enrollment Form'!$AV92=\"Yes\",'Enrollment Form'!$AV92=\"\"),\"-\",IF(AND('Enrollment Form'!$AV92=\"No\",ISERROR(FIND(\"HMO\",VLOOKUP('Enrollment Form'!G92,'Enrollment Form'!H$11:J$1000,3,FALSE),1))=FALSE,COUNTA('Enrollment Form'!$AW92:$AZ92)=4),\"Y\",\"N\"))","v":"-"},{"$f":"IF($B85=\"N\",\"\",IF('Enrollment Form'!$B92=\"Subscriber\",\"-\",IF(COUNTA('Enrollment Form'!$BE92,'Enrollment Form'!$BG92)=2,\"Y\",\"N\")))","v":""},{"$f":"IF($B85=\"N\",\"\",IF(OR('Enrollment Form'!$AU92=\"\",'Enrollment Form'!$AU92=\"No\"),\"-\",IF(AND('Enrollment Form'!$AU92=\"Yes\",COUNTA('Enrollment Form'!$CK92)=1),\"Y\",\"N\")))","v":""},{"$f":"IF(OR('Enrollment Form'!$CK92=\"\",'Enrollment Form'!$CK92=\"No\"),\"-\",IF(COUNTA('Enrollment Form'!$CM92:$CN92)=2,\"Y\",\"N\"))","v":"-"},{"$f":"IF($B85=\"N\",\"\",IF(COUNTIF('Enrollment Form'!$CZ92:$DO92,\"Other\")=COUNTA('Enrollment Form'!$DF92,'Enrollment Form'!$DA92,'Enrollment Form'!$DK92,'Enrollment Form'!$DP92),\"Y\",\"N\"))","v":""},{"$f":"IF($B85=\"N\",\"\",IF(OR('Enrollment Form'!B92<>\"Subscriber\",'Enrollment Form'!C92=\"ROC\",COUNTIF('Enrollment Form'!AS92:AT92,\"Yes\")>=1),\"-\",IF(AND('Enrollment Form'!C92=\"Enroll\",COUNTIF('Enrollment Form'!AS92:AT92,\"No\")=2,'Enrollment Form'!AU92=\"\"),\"N\",\"Y\")))","v":""},{"$f":"IF(OR(B85=\"N\",'Enrollment Form'!B92<>\"Subscriber\",'Enrollment Form'!C92=\"ROC\",'Enrollment Form'!O92<>\"Multiple of Salary\"),\"-\",IF(COUNTA('Enrollment Form'!T92:U92)<2,\"N\",\"Y\"))","v":"-"},{"$f":"IF(B85=\"N\",\"\",IF(OR('Enrollment Form'!C92=\"ROC\",'Enrollment Form'!B92<>\"Subscriber\",'Enrollment Form'!O92=\"Waive\",'Enrollment Form'!O92=\"\"),\"-\",IF('Enrollment Form'!P92=\"\",\"N\",\"Y\")))","v":""},{"$f":"IF($B85=\"N\",\"\",IF(AND('Enrollment Form'!$C92=\"ROC\",'Enrollment Form'!$DS92<>\"\"),\"Y\",IF(AND('Enrollment Form'!$C92=\"ROC\",'Enrollment Form'!$DS92=\"\"),\"N\",IF(AND('Enrollment Form'!$C92=\"Enroll\",'Enrollment Form'!$B92=\"Subscriber\",'Enrollment Form'!$CQ92=\"No\",'Enrollment Form'!$DS92=\"\"),\"N\",IF(AND('Enrollment Form'!$C92=\"Enroll\",'Enrollment Form'!$B92=\"Subscriber\",'Enrollment Form'!$CQ92=\"Yes\"),\"-\",\"Y\")))))","v":""},{"$f":"IF($B85=\"N\",\"\",IF(AND('Enrollment Form'!$C92=\"ROC\",'Enrollment Form'!$DT92<>\"\"),\"Y\",IF(AND('Enrollment Form'!$C92=\"ROC\",'Enrollment Form'!$DT92=\"\"),\"N\",IF(AND('Enrollment Form'!$C92=\"Enroll\",'Enrollment Form'!$B92=\"Subscriber\",'Enrollment Form'!$CQ92=\"No\",'Enrollment Form'!$DT92=\"\"),\"N\",IF(AND('Enrollment Form'!$C92=\"Enroll\",'Enrollment Form'!$B92=\"Subscriber\",'Enrollment Form'!$CQ92=\"Yes\"),\"-\",\"Y\")))))","v":""},{"$f":"IF('Enrollment Form'!AH92=\"\",\"\",IF(ISERROR(SEARCH(\".\",'Enrollment Form'!AH92,SEARCH(\"@\",'Enrollment Form'!AH92))),\"N\",\"Y\"))","v":""},{"$f":"IF(OR($B85=\"N\",'Enrollment Form'!$G92=\"\"),\"\",IF('Enrollment Form'!$B92<>\"Subscriber\",\"-\",IF(COUNTIF('Enrollment Form'!$AS92:$AT92,\"Yes\")=2,\"N\",\"Y\")))","v":""},{"$f":"IF(OR('Enrollment Form'!$CC92=\"\",'Enrollment Form'!$CC92=\"No\"),\"-\",IF(AND('Enrollment Form'!$CC92=\"Yes\",'Enrollment Form'!$CD92=\"\"),\"N\",\"Y\"))","v":"-"},{"$f":"IF(OR('Enrollment Form'!$CE92=\"\",'Enrollment Form'!$CE92=\"No\"),\"-\",IF(AND('Enrollment Form'!$CE92=\"Yes\",'Enrollment Form'!$CF92=\"\"),\"N\",\"Y\"))","v":"-"},{"$f":"IF(OR('Enrollment Form'!$CG92=\"\",'Enrollment Form'!$CG92=\"No\"),\"-\",IF(AND('Enrollment Form'!$CG92=\"Yes\",'Enrollment Form'!$CH92=\"\"),\"N\",\"Y\"))","v":"-"},{"$f":"IF(OR('Enrollment Form'!$CG92=\"\",'Enrollment Form'!$CG92=\"No\"),\"-\",IF(AND('Enrollment Form'!$CG92=\"Yes\",'Enrollment Form'!$CI92=\"\"),\"N\",\"Y\"))","v":"-"},{"$f":"IF('Enrollment Form'!B92<>\"Subscriber\",\"-\",IF(AND('Enrollment Form'!B92=\"Subscriber\",'Enrollment Form'!C92=\"Enroll\",'Enrollment Form'!AA92=\"\"),\"N\",\"Y\"))","v":"-"},{"$f":"IF(OR('Enrollment Form'!B92=\"Subscriber\",'Enrollment Form'!B92=\"\"),\"-\",IF('Enrollment Form'!BI92=\"\",\"N\",\"Y\"))","v":"-"},{"$f":"IF('Enrollment Form'!B92<>\"Subscriber\",\"-\",IF(AND('Enrollment Form'!B92=\"Subscriber\",'Enrollment Form'!G92=\"\"),\"N\",\"Y\"))","v":"-"},{"$f":"IF('Enrollment Form'!A92=\"\",\"\",IF('Enrollment Form'!B92=\"Subscriber\",\"-\",IF(AND('Enrollment Form'!B92<>\"Subscriber\",'Enrollment Form'!G92='Enrollment Form'!H92),\"N\",\"Y\")))","v":""},0]
[93,{"$f":"IF('Enrollment Form'!$A93<>\"\",\"Y\",\"N\")","v":"N"},{"$f":"IF(AND('Enrollment Form'!$B93=\"\",'Enrollment Form'!$C93<>\"\"),\"N\",IF($B86=\"N\",\"\",\"Y\"))","v":""},{"$f":"IF(OR($B86=\"N\",'Enrollment Form'!G93=\"\"),\"\",IF('Enrollment Form'!$B93<>\"Subscriber\",\"\",IF('Enrollment Form'!$G93='Enrollment Form'!$H93,\"Y\",\"N\")))","v":""},{"$f":"IF($B86=\"N\",\"\",IF(AND(COUNTIFS('Enrollment Form'!$H$11:$H$1000,'Enrollment Form'!$H93,'Enrollment Form'!$B$11:$B$1000,'Enrollment Form'!$B93)>1,'Enrollment Form'!$H93<>\"\"),\"N\",\"Y\"))","v":""},{"$f":"IF($B86=\"N\",\"\",IF(LEN('Enrollment Form'!$Y93)=0,\"\",IF(LEN('Enrollment Form'!$Y93)<>5,\"N\",\"Y\")))","v":""},{"$f":"IF($B86=\"N\",\"\",IF(LEN('Enrollment Form'!$AD93=0),\"\",IF(LEN('Enrollment Form'!$AD93)<>5,\"N\",\"Y\")))","v":""},{"$f":"IF($B86=\"N\",\"\",IF(LEN('Enrollment Form'!$BL93=0),\"\",IF(LEN('Enrollment Form'!$BL93)<>5,\"N\",\"Y\")))","v":""},{"$f":"IF($B86=\"N\",\"\",IF(LEN('Enrollment Form'!$AE93)=0,\"\",IF(LEN('Enrollment Form'!$AE93)<>10,\"N\",\"Y\")))","v":""},{"$f":"IF($B86=\"N\",\"\",IF(LEN('Enrollment Form'!$AF93)=0,\"\",IF(LEN('Enrollment Form'!$AF93)<>10,\"N\",\"Y\")))","v":""},{"$f":"IF('Enrollment Form'!$O93<>\"Graded\",\"-\",IF(AND('Enrollment Form'!$O93=\"Graded\",'Enrollment Form'!$AO93<>\"\"),\"Y\",\"N\"))","v":"-"},{"$f":"IF($B86=\"N\",\"\",IF(OR('Enrollment Form'!$B93<>\"Subscriber\",'Enrollment Form'!$C93=\"ROC\"),\"-\",IF(AND('Enrollment Form'!$B93=\"Subscriber\",'Enrollment Form'!$C93=\"Enroll\",'Enrollment Form'!$AJ93<>\"\"),\"Y\",\"N\")))","v":""},{"$f":"IF($B86=\"N\",\"\",IF(OR('Enrollment Form'!$B93<>\"Subscriber\",'Enrollment Form'!$C93=\"ROC\"),\"-\",IF(AND('Enrollment Form'!$B93=\"Subscriber\",'Enrollment Form'!$C93=\"Enroll\",'Enrollment Form'!$AK93<>\"\"),\"Y\",\"N\")))","v":""},{"$f":"IF($B86=\"N\",\"\",IF(OR('Enrollment Form'!$B93<>\"Subscriber\",'Enrollment Form'!$C93=\"ROC\"),\"-\",IF(AND('Enrollment Form'!$B93=\"Subscriber\",'Enrollment Form'!$C93=\"Enroll\",'Enrollment Form'!$AL93<>\"\"),\"Y\",\"N\")))","v":""},{"$f":"IF($B86=\"N\",\"\",IF(OR('Enrollment Form'!$B93<>\"Subscriber\",'Enrollment Form'!$C93=\"ROC\"),\"-\",IF(AND('Enrollment Form'!$B93=\"Subscriber\",'Enrollment Form'!$C93=\"Enroll\",'Enrollment Form'!$AM93<>\"\"),\"Y\",\"N\")))","v":""},{"$f":"IF($B86=\"N\",\"\",IF(OR('Enrollment Form'!$B93<>\"Subscriber\",'Enrollment Form'!$C93=\"ROC\"),\"-\",IF(AND('Enrollment Form'!$B93=\"Subscriber\",'Enrollment Form'!$C93=\"Enroll\",'Enrollment Form'!$AN93<>\"\"),\"Y\",\"N\")))","v":""},{"$f":"IF($B86=\"N\",\"\",IF(OR('Enrollment Form'!$B93<>\"Subscriber\",'Enrollment Form'!$C93=\"ROC\"),\"-\",IF(AND('Enrollment Form'!$B93=\"Subscriber\",'Enrollment Form'!$C93=\"Enroll\",'Enrollment Form'!$AP93<>\"\"),\"Y\",\"N\")))","v":""},{"$f":"IF($B86=\"N\",\"\",IF($Q86=\"-\",\"-\",IF(AND($Q86=\"Y\",'Enrollment Form'!$AP93=\"No\"),\"-\",IF(AND($Q86=\"Y\",'Enrollment Form'!$AP93=\"Yes\",'Enrollment Form'!$AQ93<>\"\"),\"Y\",\"N\"))))","v":""},{"$f":"IF($B86=\"N\",\"\",IF(OR('Enrollment Form'!$B93<>\"Subscriber\",'Enrollment Form'!$C93=\"ROC\"),\"-\",IF(AND('Enrollment Form'!$B93=\"Subscriber\",'Enrollment Form'!$C93=\"Enroll\",'Enrollment Form'!$CO93<>\"\"),\"Y\",\"N\")))","v":""},{"$f":"IF($B86=\"N\",\"\",IF($S86=\"-\",\"-\",IF(AND($S86=\"Y\",'Enrollment Form'!$CO93=\"No\"),\"-\",IF(AND($S86=\"Y\",'Enrollment Form'!$CO93=\"Yes\",'Enrollment Form'!$CP93<>\"\"),\"Y\",\"N\"))))","v":""},{"$f":"IF(OR('Enrollment Form'!$AV93=\"Yes\",'Enrollment Form'!$AV93=\"\"),\"-\",IF(AND('Enrollment Form'!$AV93=\"No\",ISERROR(FIND(\"HMO\",VLOOKUP('Enrollment Form'!G93,'Enrollment Form'!H$11:J$1000,3,FALSE),1))=FALSE,COUNTA('Enrollment Form'!$AW93:$AZ93)=4),\"Y\",\"N\"))","v":"-"},{"$f":"IF($B86=\"N\",\"\",IF('Enrollment Form'!$B93=\"Subscriber\",\"-\",IF(COUNTA('Enrollment Form'!$BE93,'Enrollment Form'!$BG93)=2,\"Y\",\"N\")))","v":""},{"$f":"IF($B86=\"N\",\"\",IF(OR('Enrollment Form'!$AU93=\"\",'Enrollment Form'!$AU93=\"No\"),\"-\",IF(AND('Enrollment Form'!$AU93=\"Yes\",COUNTA('Enrollment Form'!$CK93)=1),\"Y\",\"N\")))","v":""},{"$f":"IF(OR('Enrollment Form'!$CK93=\"\",'Enrollment Form'!$CK93=\"No\"),\"-\",IF(COUNTA('Enrollment Form'!$CM93:$CN93)=2,\"Y\",\"N\"))","v":"-"},{"$f":"IF($B86=\"N\",\"\",IF(COUNTIF('Enrollment Form'!$CZ93:$DO93,\"Other\")=COUNTA('Enrollment Form'!$DF93,'Enrollment Form'!$DA93,'Enrollment Form'!$DK93,'Enrollment Form'!$DP93),\"Y\",\"N\"))","v":""},{"$f":"IF($B86=\"N\",\"\",IF(OR('Enrollment Form'!B93<>\"Subscriber\",'Enrollment Form'!C93=\"ROC\",COUNTIF('Enrollment Form'!AS93:AT93,\"Yes\")>=1),\"-\",IF(AND('Enrollment Form'!C93=\"Enroll\",COUNTIF('Enrollment Form'!AS93:AT93,\"No\")=2,'Enrollment Form'!AU93=\"\"),\"N\",\"Y\")))","v":""},{"$f":"IF(OR(B86=\"N\",'Enrollment Form'!B93<>\"Subscriber\",'Enrollment Form'!C93=\"ROC\",'Enrollment Form'!O93<>\"Multiple of Salary\"),\"-\",IF(COUNTA('Enrollment Form'!T93:U93)<2,\"N\",\"Y\"))","v":"-"},{"$f":"IF(B86=\"N\",\"\",IF(OR('Enrollment Form'!C93=\"ROC\",'Enrollment Form'!B93<>\"Subscriber\",'Enrollment Form'!O93=\"Waive\",'Enrollment Form'!O93=\"\"),\"-\",IF('Enrollment Form'!P93=\"\",\"N\",\"Y\")))","v":""},{"$f":"IF($B86=\"N\",\"\",IF(AND('Enrollment Form'!$C93=\"ROC\",'Enrollment Form'!$DS93<>\"\"),\"Y\",IF(AND('Enrollment Form'!$C93=\"ROC\",'Enrollment Form'!$DS93=\"\"),\"N\",IF(AND('Enrollment Form'!$C93=\"Enroll\",'Enrollment Form'!$B93=\"Subscriber\",'Enrollment Form'!$CQ93=\"No\",'Enrollment Form'!$DS93=\"\"),\"N\",IF(AND('Enrollment Form'!$C93=\"Enroll\",'Enrollment Form'!$B93=\"Subscriber\",'Enrollment Form'!$CQ93=\"Yes\"),\"-\",\"Y\")))))","v":""},{"$f":"IF($B86=\"N\",\"\",IF(AND('Enrollment Form'!$C93=\"ROC\",'Enrollment Form'!$DT93<>\"\"),\"Y\",IF(AND('Enrollment Form'!$C93=\"ROC\",'Enrollment Form'!$DT93=\"\"),\"N\",IF(AND('Enrollment Form'!$C93=\"Enroll\",'Enrollment Form'!$B93=\"Subscriber\",'Enrollment Form'!$CQ93=\"No\",'Enrollment Form'!$DT93=\"\"),\"N\",IF(AND('Enrollment Form'!$C93=\"Enroll\",'Enrollment Form'!$B93=\"Subscriber\",'Enrollment Form'!$CQ93=\"Yes\"),\"-\",\"Y\")))))","v":""},{"$f":"IF('Enrollment Form'!AH93=\"\",\"\",IF(ISERROR(SEARCH(\".\",'Enrollment Form'!AH93,SEARCH(\"@\",'Enrollment Form'!AH93))),\"N\",\"Y\"))","v":""},{"$f":"IF(OR($B86=\"N\",'Enrollment Form'!$G93=\"\"),\"\",IF('Enrollment Form'!$B93<>\"Subscriber\",\"-\",IF(COUNTIF('Enrollment Form'!$AS93:$AT93,\"Yes\")=2,\"N\",\"Y\")))","v":""},{"$f":"IF(OR('Enrollment Form'!$CC93=\"\",'Enrollment Form'!$CC93=\"No\"),\"-\",IF(AND('Enrollment Form'!$CC93=\"Yes\",'Enrollment Form'!$CD93=\"\"),\"N\",\"Y\"))","v":"-"},{"$f":"IF(OR('Enrollment Form'!$CE93=\"\",'Enrollment Form'!$CE93=\"No\"),\"-\",IF(AND('Enrollment Form'!$CE93=\"Yes\",'Enrollment Form'!$CF93=\"\"),\"N\",\"Y\"))","v":"-"},{"$f":"IF(OR('Enrollment Form'!$CG93=\"\",'Enrollment Form'!$CG93=\"No\"),\"-\",IF(AND('Enrollment Form'!$CG93=\"Yes\",'Enrollment Form'!$CH93=\"\"),\"N\",\"Y\"))","v":"-"},{"$f":"IF(OR('Enrollment Form'!$CG93=\"\",'Enrollment Form'!$CG93=\"No\"),\"-\",IF(AND('Enrollment Form'!$CG93=\"Yes\",'Enrollment Form'!$CI93=\"\"),\"N\",\"Y\"))","v":"-"},{"$f":"IF('Enrollment Form'!B93<>\"Subscriber\",\"-\",IF(AND('Enrollment Form'!B93=\"Subscriber\",'Enrollment Form'!C93=\"Enroll\",'Enrollment Form'!AA93=\"\"),\"N\",\"Y\"))","v":"-"},{"$f":"IF(OR('Enrollment Form'!B93=\"Subscriber\",'Enrollment Form'!B93=\"\"),\"-\",IF('Enrollment Form'!BI93=\"\",\"N\",\"Y\"))","v":"-"},{"$f":"IF('Enrollment Form'!B93<>\"Subscriber\",\"-\",IF(AND('Enrollment Form'!B93=\"Subscriber\",'Enrollment Form'!G93=\"\"),\"N\",\"Y\"))","v":"-"},{"$f":"IF('Enrollment Form'!A93=\"\",\"\",IF('Enrollment Form'!B93=\"Subscriber\",\"-\",IF(AND('Enrollment Form'!B93<>\"Subscriber\",'Enrollment Form'!G93='Enrollment Form'!H93),\"N\",\"Y\")))","v":""},0]
[94,{"$f":"IF('Enrollment Form'!$A94<>\"\",\"Y\",\"N\")","v":"N"},{"$f":"IF(AND('Enrollment Form'!$B94=\"\",'Enrollment Form'!$C94<>\"\"),\"N\",IF($B87=\"N\",\"\",\"Y\"))","v":""},{"$f":"IF(OR($B87=\"N\",'Enrollment Form'!G94=\"\"),\"\",IF('Enrollment Form'!$B94<>\"Subscriber\",\"\",IF('Enrollment Form'!$G94='Enrollment Form'!$H94,\"Y\",\"N\")))","v":""},{"$f":"IF($B87=\"N\",\"\",IF(AND(COUNTIFS('Enrollment Form'!$H$11:$H$1000,'Enrollment Form'!$H94,'Enrollment Form'!$B$11:$B$1000,'Enrollment Form'!$B94)>1,'Enrollment Form'!$H94<>\"\"),\"N\",\"Y\"))","v":""},{"$f":"IF($B87=\"N\",\"\",IF(LEN('Enrollment Form'!$Y94)=0,\"\",IF(LEN('Enrollment Form'!$Y94)<>5,\"N\",\"Y\")))","v":""},{"$f":"IF($B87=\"N\",\"\",IF(LEN('Enrollment Form'!$AD94=0),\"\",IF(LEN('Enrollment Form'!$AD94)<>5,\"N\",\"Y\")))","v":""},{"$f":"IF($B87=\"N\",\"\",IF(LEN('Enrollment Form'!$BL94=0),\"\",IF(LEN('Enrollment Form'!$BL94)<>5,\"N\",\"Y\")))","v":""},{"$f":"IF($B87=\"N\",\"\",IF(LEN('Enrollment Form'!$AE94)=0,\"\",IF(LEN('Enrollment Form'!$AE94)<>10,\"N\",\"Y\")))","v":""},{"$f":"IF($B87=\"N\",\"\",IF(LEN('Enrollment Form'!$AF94)=0,\"\",IF(LEN('Enrollment Form'!$AF94)<>10,\"N\",\"Y\")))","v":""},{"$f":"IF('Enrollment Form'!$O94<>\"Graded\",\"-\",IF(AND('Enrollment Form'!$O94=\"Graded\",'Enrollment Form'!$AO94<>\"\"),\"Y\",\"N\"))","v":"-"},{"$f":"IF($B87=\"N\",\"\",IF(OR('Enrollment Form'!$B94<>\"Subscriber\",'Enrollment Form'!$C94=\"ROC\"),\"-\",IF(AND('Enrollment Form'!$B94=\"Subscriber\",'Enrollment Form'!$C94=\"Enroll\",'Enrollment Form'!$AJ94<>\"\"),\"Y\",\"N\")))","v":""},{"$f":"IF($B87=\"N\",\"\",IF(OR('Enrollment Form'!$B94<>\"Subscriber\",'Enrollment Form'!$C94=\"ROC\"),\"-\",IF(AND('Enrollment Form'!$B94=\"Subscriber\",'Enrollment Form'!$C94=\"Enroll\",'Enrollment Form'!$AK94<>\"\"),\"Y\",\"N\")))","v":""},{"$f":"IF($B87=\"N\",\"\",IF(OR('Enrollment Form'!$B94<>\"Subscriber\",'Enrollment Form'!$C94=\"ROC\"),\"-\",IF(AND('Enrollment Form'!$B94=\"Subscriber\",'Enrollment Form'!$C94=\"Enroll\",'Enrollment Form'!$AL94<>\"\"),\"Y\",\"N\")))","v":""},{"$f":"IF($B87=\"N\",\"\",IF(OR('Enrollment Form'!$B94<>\"Subscriber\",'Enrollment Form'!$C94=\"ROC\"),\"-\",IF(AND('Enrollment Form'!$B94=\"Subscriber\",'Enrollment Form'!$C94=\"Enroll\",'Enrollment Form'!$AM94<>\"\"),\"Y\",\"N\")))","v":""},{"$f":"IF($B87=\"N\",\"\",IF(OR('Enrollment Form'!$B94<>\"Subscriber\",'Enrollment Form'!$C94=\"ROC\"),\"-\",IF(AND('Enrollment Form'!$B94=\"Subscriber\",'Enrollment Form'!$C94=\"Enroll\",'Enrollment Form'!$AN94<>\"\"),\"Y\",\"N\")))","v":""},{"$f":"IF($B87=\"N\",\"\",IF(OR('Enrollment Form'!$B94<>\"Subscriber\",'Enrollment Form'!$C94=\"ROC\"),\"-\",IF(AND('Enrollment Form'!$B94=\"Subscriber\",'Enrollment Form'!$C94=\"Enroll\",'Enrollment Form'!$AP94<>\"\"),\"Y\",\"N\")))","v":""},{"$f":"IF($B87=\"N\",\"\",IF($Q87=\"-\",\"-\",IF(AND($Q87=\"Y\",'Enrollment Form'!$AP94=\"No\"),\"-\",IF(AND($Q87=\"Y\",'Enrollment Form'!$AP94=\"Yes\",'Enrollment Form'!$AQ94<>\"\"),\"Y\",\"N\"))))","v":""},{"$f":"IF($B87=\"N\",\"\",IF(OR('Enrollment Form'!$B94<>\"Subscriber\",'Enrollment Form'!$C94=\"ROC\"),\"-\",IF(AND('Enrollment Form'!$B94=\"Subscriber\",'Enrollment Form'!$C94=\"Enroll\",'Enrollment Form'!$CO94<>\"\"),\"Y\",\"N\")))","v":""},{"$f":"IF($B87=\"N\",\"\",IF($S87=\"-\",\"-\",IF(AND($S87=\"Y\",'Enrollment Form'!$CO94=\"No\"),\"-\",IF(AND($S87=\"Y\",'Enrollment Form'!$CO94=\"Yes\",'Enrollment Form'!$CP94<>\"\"),\"Y\",\"N\"))))","v":""},{"$f":"IF(OR('Enrollment Form'!$AV94=\"Yes\",'Enrollment Form'!$AV94=\"\"),\"-\",IF(AND('Enrollment Form'!$AV94=\"No\",ISERROR(FIND(\"HMO\",VLOOKUP('Enrollment Form'!G94,'Enrollment Form'!H$11:J$1000,3,FALSE),1))=FALSE,COUNTA('Enrollment Form'!$AW94:$AZ94)=4),\"Y\",\"N\"))","v":"-"},{"$f":"IF($B87=\"N\",\"\",IF('Enrollment Form'!$B94=\"Subscriber\",\"-\",IF(COUNTA('Enrollment Form'!$BE94,'Enrollment Form'!$BG94)=2,\"Y\",\"N\")))","v":""},{"$f":"IF($B87=\"N\",\"\",IF(OR('Enrollment Form'!$AU94=\"\",'Enrollment Form'!$AU94=\"No\"),\"-\",IF(AND('Enrollment Form'!$AU94=\"Yes\",COUNTA('Enrollment Form'!$CK94)=1),\"Y\",\"N\")))","v":""},{"$f":"IF(OR('Enrollment Form'!$CK94=\"\",'Enrollment Form'!$CK94=\"No\"),\"-\",IF(COUNTA('Enrollment Form'!$CM94:$CN94)=2,\"Y\",\"N\"))","v":"-"},{"$f":"IF($B87=\"N\",\"\",IF(COUNTIF('Enrollment Form'!$CZ94:$DO94,\"Other\")=COUNTA('Enrollment Form'!$DF94,'Enrollment Form'!$DA94,'Enrollment Form'!$DK94,'Enrollment Form'!$DP94),\"Y\",\"N\"))","v":""},{"$f":"IF($B87=\"N\",\"\",IF(OR('Enrollment Form'!B94<>\"Subscriber\",'Enrollment Form'!C94=\"ROC\",COUNTIF('Enrollment Form'!AS94:AT94,\"Yes\")>=1),\"-\",IF(AND('Enrollment Form'!C94=\"Enroll\",COUNTIF('Enrollment Form'!AS94:AT94,\"No\")=2,'Enrollment Form'!AU94=\"\"),\"N\",\"Y\")))","v":""},{"$f":"IF(OR(B87=\"N\",'Enrollment Form'!B94<>\"Subscriber\",'Enrollment Form'!C94=\"ROC\",'Enrollment Form'!O94<>\"Multiple of Salary\"),\"-\",IF(COUNTA('Enrollment Form'!T94:U94)<2,\"N\",\"Y\"))","v":"-"},{"$f":"IF(B87=\"N\",\"\",IF(OR('Enrollment Form'!C94=\"ROC\",'Enrollment Form'!B94<>\"Subscriber\",'Enrollment Form'!O94=\"Waive\",'Enrollment Form'!O94=\"\"),\"-\",IF('Enrollment Form'!P94=\"\",\"N\",\"Y\")))","v":""},{"$f":"IF($B87=\"N\",\"\",IF(AND('Enrollment Form'!$C94=\"ROC\",'Enrollment Form'!$DS94<>\"\"),\"Y\",IF(AND('Enrollment Form'!$C94=\"ROC\",'Enrollment Form'!$DS94=\"\"),\"N\",IF(AND('Enrollment Form'!$C94=\"Enroll\",'Enrollment Form'!$B94=\"Subscriber\",'Enrollment Form'!$CQ94=\"No\",'Enrollment Form'!$DS94=\"\"),\"N\",IF(AND('Enrollment Form'!$C94=\"Enroll\",'Enrollment Form'!$B94=\"Subscriber\",'Enrollment Form'!$CQ94=\"Yes\"),\"-\",\"Y\")))))","v":""},{"$f":"IF($B87=\"N\",\"\",IF(AND('Enrollment Form'!$C94=\"ROC\",'Enrollment Form'!$DT94<>\"\"),\"Y\",IF(AND('Enrollment Form'!$C94=\"ROC\",'Enrollment Form'!$DT94=\"\"),\"N\",IF(AND('Enrollment Form'!$C94=\"Enroll\",'Enrollment Form'!$B94=\"Subscriber\",'Enrollment Form'!$CQ94=\"No\",'Enrollment Form'!$DT94=\"\"),\"N\",IF(AND('Enrollment Form'!$C94=\"Enroll\",'Enrollment Form'!$B94=\"Subscriber\",'Enrollment Form'!$CQ94=\"Yes\"),\"-\",\"Y\")))))","v":""},{"$f":"IF('Enrollment Form'!AH94=\"\",\"\",IF(ISERROR(SEARCH(\".\",'Enrollment Form'!AH94,SEARCH(\"@\",'Enrollment Form'!AH94))),\"N\",\"Y\"))","v":""},{"$f":"IF(OR($B87=\"N\",'Enrollment Form'!$G94=\"\"),\"\",IF('Enrollment Form'!$B94<>\"Subscriber\",\"-\",IF(COUNTIF('Enrollment Form'!$AS94:$AT94,\"Yes\")=2,\"N\",\"Y\")))","v":""},{"$f":"IF(OR('Enrollment Form'!$CC94=\"\",'Enrollment Form'!$CC94=\"No\"),\"-\",IF(AND('Enrollment Form'!$CC94=\"Yes\",'Enrollment Form'!$CD94=\"\"),\"N\",\"Y\"))","v":"-"},{"$f":"IF(OR('Enrollment Form'!$CE94=\"\",'Enrollment Form'!$CE94=\"No\"),\"-\",IF(AND('Enrollment Form'!$CE94=\"Yes\",'Enrollment Form'!$CF94=\"\"),\"N\",\"Y\"))","v":"-"},{"$f":"IF(OR('Enrollment Form'!$CG94=\"\",'Enrollment Form'!$CG94=\"No\"),\"-\",IF(AND('Enrollment Form'!$CG94=\"Yes\",'Enrollment Form'!$CH94=\"\"),\"N\",\"Y\"))","v":"-"},{"$f":"IF(OR('Enrollment Form'!$CG94=\"\",'Enrollment Form'!$CG94=\"No\"),\"-\",IF(AND('Enrollment Form'!$CG94=\"Yes\",'Enrollment Form'!$CI94=\"\"),\"N\",\"Y\"))","v":"-"},{"$f":"IF('Enrollment Form'!B94<>\"Subscriber\",\"-\",IF(AND('Enrollment Form'!B94=\"Subscriber\",'Enrollment Form'!C94=\"Enroll\",'Enrollment Form'!AA94=\"\"),\"N\",\"Y\"))","v":"-"},{"$f":"IF(OR('Enrollment Form'!B94=\"Subscriber\",'Enrollment Form'!B94=\"\"),\"-\",IF('Enrollment Form'!BI94=\"\",\"N\",\"Y\"))","v":"-"},{"$f":"IF('Enrollment Form'!B94<>\"Subscriber\",\"-\",IF(AND('Enrollment Form'!B94=\"Subscriber\",'Enrollment Form'!G94=\"\"),\"N\",\"Y\"))","v":"-"},{"$f":"IF('Enrollment Form'!A94=\"\",\"\",IF('Enrollment Form'!B94=\"Subscriber\",\"-\",IF(AND('Enrollment Form'!B94<>\"Subscriber\",'Enrollment Form'!G94='Enrollment Form'!H94),\"N\",\"Y\")))","v":""},0]
[95,{"$f":"IF('Enrollment Form'!$A95<>\"\",\"Y\",\"N\")","v":"N"},{"$f":"IF(AND('Enrollment Form'!$B95=\"\",'Enrollment Form'!$C95<>\"\"),\"N\",IF($B88=\"N\",\"\",\"Y\"))","v":""},{"$f":"IF(OR($B88=\"N\",'Enrollment Form'!G95=\"\"),\"\",IF('Enrollment Form'!$B95<>\"Subscriber\",\"\",IF('Enrollment Form'!$G95='Enrollment Form'!$H95,\"Y\",\"N\")))","v":""},{"$f":"IF($B88=\"N\",\"\",IF(AND(COUNTIFS('Enrollment Form'!$H$11:$H$1000,'Enrollment Form'!$H95,'Enrollment Form'!$B$11:$B$1000,'Enrollment Form'!$B95)>1,'Enrollment Form'!$H95<>\"\"),\"N\",\"Y\"))","v":""},{"$f":"IF($B88=\"N\",\"\",IF(LEN('Enrollment Form'!$Y95)=0,\"\",IF(LEN('Enrollment Form'!$Y95)<>5,\"N\",\"Y\")))","v":""},{"$f":"IF($B88=\"N\",\"\",IF(LEN('Enrollment Form'!$AD95=0),\"\",IF(LEN('Enrollment Form'!$AD95)<>5,\"N\",\"Y\")))","v":""},{"$f":"IF($B88=\"N\",\"\",IF(LEN('Enrollment Form'!$BL95=0),\"\",IF(LEN('Enrollment Form'!$BL95)<>5,\"N\",\"Y\")))","v":""},{"$f":"IF($B88=\"N\",\"\",IF(LEN('Enrollment Form'!$AE95)=0,\"\",IF(LEN('Enrollment Form'!$AE95)<>10,\"N\",\"Y\")))","v":""},{"$f":"IF($B88=\"N\",\"\",IF(LEN('Enrollment Form'!$AF95)=0,\"\",IF(LEN('Enrollment Form'!$AF95)<>10,\"N\",\"Y\")))","v":""},{"$f":"IF('Enrollment Form'!$O95<>\"Graded\",\"-\",IF(AND('Enrollment Form'!$O95=\"Graded\",'Enrollment Form'!$AO95<>\"\"),\"Y\",\"N\"))","v":"-"},{"$f":"IF($B88=\"N\",\"\",IF(OR('Enrollment Form'!$B95<>\"Subscriber\",'Enrollment Form'!$C95=\"ROC\"),\"-\",IF(AND('Enrollment Form'!$B95=\"Subscriber\",'Enrollment Form'!$C95=\"Enroll\",'Enrollment Form'!$AJ95<>\"\"),\"Y\",\"N\")))","v":""},{"$f":"IF($B88=\"N\",\"\",IF(OR('Enrollment Form'!$B95<>\"Subscriber\",'Enrollment Form'!$C95=\"ROC\"),\"-\",IF(AND('Enrollment Form'!$B95=\"Subscriber\",'Enrollment Form'!$C95=\"Enroll\",'Enrollment Form'!$AK95<>\"\"),\"Y\",\"N\")))","v":""},{"$f":"IF($B88=\"N\",\"\",IF(OR('Enrollment Form'!$B95<>\"Subscriber\",'Enrollment Form'!$C95=\"ROC\"),\"-\",IF(AND('Enrollment Form'!$B95=\"Subscriber\",'Enrollment Form'!$C95=\"Enroll\",'Enrollment Form'!$AL95<>\"\"),\"Y\",\"N\")))","v":""},{"$f":"IF($B88=\"N\",\"\",IF(OR('Enrollment Form'!$B95<>\"Subscriber\",'Enrollment Form'!$C95=\"ROC\"),\"-\",IF(AND('Enrollment Form'!$B95=\"Subscriber\",'Enrollment Form'!$C95=\"Enroll\",'Enrollment Form'!$AM95<>\"\"),\"Y\",\"N\")))","v":""},{"$f":"IF($B88=\"N\",\"\",IF(OR('Enrollment Form'!$B95<>\"Subscriber\",'Enrollment Form'!$C95=\"ROC\"),\"-\",IF(AND('Enrollment Form'!$B95=\"Subscriber\",'Enrollment Form'!$C95=\"Enroll\",'Enrollment Form'!$AN95<>\"\"),\"Y\",\"N\")))","v":""},{"$f":"IF($B88=\"N\",\"\",IF(OR('Enrollment Form'!$B95<>\"Subscriber\",'Enrollment Form'!$C95=\"ROC\"),\"-\",IF(AND('Enrollment Form'!$B95=\"Subscriber\",'Enrollment Form'!$C95=\"Enroll\",'Enrollment Form'!$AP95<>\"\"),\"Y\",\"N\")))","v":""},{"$f":"IF($B88=\"N\",\"\",IF($Q88=\"-\",\"-\",IF(AND($Q88=\"Y\",'Enrollment Form'!$AP95=\"No\"),\"-\",IF(AND($Q88=\"Y\",'Enrollment Form'!$AP95=\"Yes\",'Enrollment Form'!$AQ95<>\"\"),\"Y\",\"N\"))))","v":""},{"$f":"IF($B88=\"N\",\"\",IF(OR('Enrollment Form'!$B95<>\"Subscriber\",'Enrollment Form'!$C95=\"ROC\"),\"-\",IF(AND('Enrollment Form'!$B95=\"Subscriber\",'Enrollment Form'!$C95=\"Enroll\",'Enrollment Form'!$CO95<>\"\"),\"Y\",\"N\")))","v":""},{"$f":"IF($B88=\"N\",\"\",IF($S88=\"-\",\"-\",IF(AND($S88=\"Y\",'Enrollment Form'!$CO95=\"No\"),\"-\",IF(AND($S88=\"Y\",'Enrollment Form'!$CO95=\"Yes\",'Enrollment Form'!$CP95<>\"\"),\"Y\",\"N\"))))","v":""},{"$f":"IF(OR('Enrollment Form'!$AV95=\"Yes\",'Enrollment Form'!$AV95=\"\"),\"-\",IF(AND('Enrollment Form'!$AV95=\"No\",ISERROR(FIND(\"HMO\",VLOOKUP('Enrollment Form'!G95,'Enrollment Form'!H$11:J$1000,3,FALSE),1))=FALSE,COUNTA('Enrollment Form'!$AW95:$AZ95)=4),\"Y\",\"N\"))","v":"-"},{"$f":"IF($B88=\"N\",\"\",IF('Enrollment Form'!$B95=\"Subscriber\",\"-\",IF(COUNTA('Enrollment Form'!$BE95,'Enrollment Form'!$BG95)=2,\"Y\",\"N\")))","v":""},{"$f":"IF($B88=\"N\",\"\",IF(OR('Enrollment Form'!$AU95=\"\",'Enrollment Form'!$AU95=\"No\"),\"-\",IF(AND('Enrollment Form'!$AU95=\"Yes\",COUNTA('Enrollment Form'!$CK95)=1),\"Y\",\"N\")))","v":""},{"$f":"IF(OR('Enrollment Form'!$CK95=\"\",'Enrollment Form'!$CK95=\"No\"),\"-\",IF(COUNTA('Enrollment Form'!$CM95:$CN95)=2,\"Y\",\"N\"))","v":"-"},{"$f":"IF($B88=\"N\",\"\",IF(COUNTIF('Enrollment Form'!$CZ95:$DO95,\"Other\")=COUNTA('Enrollment Form'!$DF95,'Enrollment Form'!$DA95,'Enrollment Form'!$DK95,'Enrollment Form'!$DP95),\"Y\",\"N\"))","v":""},{"$f":"IF($B88=\"N\",\"\",IF(OR('Enrollment Form'!B95<>\"Subscriber\",'Enrollment Form'!C95=\"ROC\",COUNTIF('Enrollment Form'!AS95:AT95,\"Yes\")>=1),\"-\",IF(AND('Enrollment Form'!C95=\"Enroll\",COUNTIF('Enrollment Form'!AS95:AT95,\"No\")=2,'Enrollment Form'!AU95=\"\"),\"N\",\"Y\")))","v":""},{"$f":"IF(OR(B88=\"N\",'Enrollment Form'!B95<>\"Subscriber\",'Enrollment Form'!C95=\"ROC\",'Enrollment Form'!O95<>\"Multiple of Salary\"),\"-\",IF(COUNTA('Enrollment Form'!T95:U95)<2,\"N\",\"Y\"))","v":"-"},{"$f":"IF(B88=\"N\",\"\",IF(OR('Enrollment Form'!C95=\"ROC\",'Enrollment Form'!B95<>\"Subscriber\",'Enrollment Form'!O95=\"Waive\",'Enrollment Form'!O95=\"\"),\"-\",IF('Enrollment Form'!P95=\"\",\"N\",\"Y\")))","v":""},{"$f":"IF($B88=\"N\",\"\",IF(AND('Enrollment Form'!$C95=\"ROC\",'Enrollment Form'!$DS95<>\"\"),\"Y\",IF(AND('Enrollment Form'!$C95=\"ROC\",'Enrollment Form'!$DS95=\"\"),\"N\",IF(AND('Enrollment Form'!$C95=\"Enroll\",'Enrollment Form'!$B95=\"Subscriber\",'Enrollment Form'!$CQ95=\"No\",'Enrollment Form'!$DS95=\"\"),\"N\",IF(AND('Enrollment Form'!$C95=\"Enroll\",'Enrollment Form'!$B95=\"Subscriber\",'Enrollment Form'!$CQ95=\"Yes\"),\"-\",\"Y\")))))","v":""},{"$f":"IF($B88=\"N\",\"\",IF(AND('Enrollment Form'!$C95=\"ROC\",'Enrollment Form'!$DT95<>\"\"),\"Y\",IF(AND('Enrollment Form'!$C95=\"ROC\",'Enrollment Form'!$DT95=\"\"),\"N\",IF(AND('Enrollment Form'!$C95=\"Enroll\",'Enrollment Form'!$B95=\"Subscriber\",'Enrollment Form'!$CQ95=\"No\",'Enrollment Form'!$DT95=\"\"),\"N\",IF(AND('Enrollment Form'!$C95=\"Enroll\",'Enrollment Form'!$B95=\"Subscriber\",'Enrollment Form'!$CQ95=\"Yes\"),\"-\",\"Y\")))))","v":""},{"$f":"IF('Enrollment Form'!AH95=\"\",\"\",IF(ISERROR(SEARCH(\".\",'Enrollment Form'!AH95,SEARCH(\"@\",'Enrollment Form'!AH95))),\"N\",\"Y\"))","v":""},{"$f":"IF(OR($B88=\"N\",'Enrollment Form'!$G95=\"\"),\"\",IF('Enrollment Form'!$B95<>\"Subscriber\",\"-\",IF(COUNTIF('Enrollment Form'!$AS95:$AT95,\"Yes\")=2,\"N\",\"Y\")))","v":""},{"$f":"IF(OR('Enrollment Form'!$CC95=\"\",'Enrollment Form'!$CC95=\"No\"),\"-\",IF(AND('Enrollment Form'!$CC95=\"Yes\",'Enrollment Form'!$CD95=\"\"),\"N\",\"Y\"))","v":"-"},{"$f":"IF(OR('Enrollment Form'!$CE95=\"\",'Enrollment Form'!$CE95=\"No\"),\"-\",IF(AND('Enrollment Form'!$CE95=\"Yes\",'Enrollment Form'!$CF95=\"\"),\"N\",\"Y\"))","v":"-"},{"$f":"IF(OR('Enrollment Form'!$CG95=\"\",'Enrollment Form'!$CG95=\"No\"),\"-\",IF(AND('Enrollment Form'!$CG95=\"Yes\",'Enrollment Form'!$CH95=\"\"),\"N\",\"Y\"))","v":"-"},{"$f":"IF(OR('Enrollment Form'!$CG95=\"\",'Enrollment Form'!$CG95=\"No\"),\"-\",IF(AND('Enrollment Form'!$CG95=\"Yes\",'Enrollment Form'!$CI95=\"\"),\"N\",\"Y\"))","v":"-"},{"$f":"IF('Enrollment Form'!B95<>\"Subscriber\",\"-\",IF(AND('Enrollment Form'!B95=\"Subscriber\",'Enrollment Form'!C95=\"Enroll\",'Enrollment Form'!AA95=\"\"),\"N\",\"Y\"))","v":"-"},{"$f":"IF(OR('Enrollment Form'!B95=\"Subscriber\",'Enrollment Form'!B95=\"\"),\"-\",IF('Enrollment Form'!BI95=\"\",\"N\",\"Y\"))","v":"-"},{"$f":"IF('Enrollment Form'!B95<>\"Subscriber\",\"-\",IF(AND('Enrollment Form'!B95=\"Subscriber\",'Enrollment Form'!G95=\"\"),\"N\",\"Y\"))","v":"-"},{"$f":"IF('Enrollment Form'!A95=\"\",\"\",IF('Enrollment Form'!B95=\"Subscriber\",\"-\",IF(AND('Enrollment Form'!B95<>\"Subscriber\",'Enrollment Form'!G95='Enrollment Form'!H95),\"N\",\"Y\")))","v":""},0]
[96,{"$f":"IF('Enrollment Form'!$A96<>\"\",\"Y\",\"N\")","v":"N"},{"$f":"IF(AND('Enrollment Form'!$B96=\"\",'Enrollment Form'!$C96<>\"\"),\"N\",IF($B89=\"N\",\"\",\"Y\"))","v":""},{"$f":"IF(OR($B89=\"N\",'Enrollment Form'!G96=\"\"),\"\",IF('Enrollment Form'!$B96<>\"Subscriber\",\"\",IF('Enrollment Form'!$G96='Enrollment Form'!$H96,\"Y\",\"N\")))","v":""},{"$f":"IF($B89=\"N\",\"\",IF(AND(COUNTIFS('Enrollment Form'!$H$11:$H$1000,'Enrollment Form'!$H96,'Enrollment Form'!$B$11:$B$1000,'Enrollment Form'!$B96)>1,'Enrollment Form'!$H96<>\"\"),\"N\",\"Y\"))","v":""},{"$f":"IF($B89=\"N\",\"\",IF(LEN('Enrollment Form'!$Y96)=0,\"\",IF(LEN('Enrollment Form'!$Y96)<>5,\"N\",\"Y\")))","v":""},{"$f":"IF($B89=\"N\",\"\",IF(LEN('Enrollment Form'!$AD96=0),\"\",IF(LEN('Enrollment Form'!$AD96)<>5,\"N\",\"Y\")))","v":""},{"$f":"IF($B89=\"N\",\"\",IF(LEN('Enrollment Form'!$BL96=0),\"\",IF(LEN('Enrollment Form'!$BL96)<>5,\"N\",\"Y\")))","v":""},{"$f":"IF($B89=\"N\",\"\",IF(LEN('Enrollment Form'!$AE96)=0,\"\",IF(LEN('Enrollment Form'!$AE96)<>10,\"N\",\"Y\")))","v":""},{"$f":"IF($B89=\"N\",\"\",IF(LEN('Enrollment Form'!$AF96)=0,\"\",IF(LEN('Enrollment Form'!$AF96)<>10,\"N\",\"Y\")))","v":""},{"$f":"IF('Enrollment Form'!$O96<>\"Graded\",\"-\",IF(AND('Enrollment Form'!$O96=\"Graded\",'Enrollment Form'!$AO96<>\"\"),\"Y\",\"N\"))","v":"-"},{"$f":"IF($B89=\"N\",\"\",IF(OR('Enrollment Form'!$B96<>\"Subscriber\",'Enrollment Form'!$C96=\"ROC\"),\"-\",IF(AND('Enrollment Form'!$B96=\"Subscriber\",'Enrollment Form'!$C96=\"Enroll\",'Enrollment Form'!$AJ96<>\"\"),\"Y\",\"N\")))","v":""},{"$f":"IF($B89=\"N\",\"\",IF(OR('Enrollment Form'!$B96<>\"Subscriber\",'Enrollment Form'!$C96=\"ROC\"),\"-\",IF(AND('Enrollment Form'!$B96=\"Subscriber\",'Enrollment Form'!$C96=\"Enroll\",'Enrollment Form'!$AK96<>\"\"),\"Y\",\"N\")))","v":""},{"$f":"IF($B89=\"N\",\"\",IF(OR('Enrollment Form'!$B96<>\"Subscriber\",'Enrollment Form'!$C96=\"ROC\"),\"-\",IF(AND('Enrollment Form'!$B96=\"Subscriber\",'Enrollment Form'!$C96=\"Enroll\",'Enrollment Form'!$AL96<>\"\"),\"Y\",\"N\")))","v":""},{"$f":"IF($B89=\"N\",\"\",IF(OR('Enrollment Form'!$B96<>\"Subscriber\",'Enrollment Form'!$C96=\"ROC\"),\"-\",IF(AND('Enrollment Form'!$B96=\"Subscriber\",'Enrollment Form'!$C96=\"Enroll\",'Enrollment Form'!$AM96<>\"\"),\"Y\",\"N\")))","v":""},{"$f":"IF($B89=\"N\",\"\",IF(OR('Enrollment Form'!$B96<>\"Subscriber\",'Enrollment Form'!$C96=\"ROC\"),\"-\",IF(AND('Enrollment Form'!$B96=\"Subscriber\",'Enrollment Form'!$C96=\"Enroll\",'Enrollment Form'!$AN96<>\"\"),\"Y\",\"N\")))","v":""},{"$f":"IF($B89=\"N\",\"\",IF(OR('Enrollment Form'!$B96<>\"Subscriber\",'Enrollment Form'!$C96=\"ROC\"),\"-\",IF(AND('Enrollment Form'!$B96=\"Subscriber\",'Enrollment Form'!$C96=\"Enroll\",'Enrollment Form'!$AP96<>\"\"),\"Y\",\"N\")))","v":""},{"$f":"IF($B89=\"N\",\"\",IF($Q89=\"-\",\"-\",IF(AND($Q89=\"Y\",'Enrollment Form'!$AP96=\"No\"),\"-\",IF(AND($Q89=\"Y\",'Enrollment Form'!$AP96=\"Yes\",'Enrollment Form'!$AQ96<>\"\"),\"Y\",\"N\"))))","v":""},{"$f":"IF($B89=\"N\",\"\",IF(OR('Enrollment Form'!$B96<>\"Subscriber\",'Enrollment Form'!$C96=\"ROC\"),\"-\",IF(AND('Enrollment Form'!$B96=\"Subscriber\",'Enrollment Form'!$C96=\"Enroll\",'Enrollment Form'!$CO96<>\"\"),\"Y\",\"N\")))","v":""},{"$f":"IF($B89=\"N\",\"\",IF($S89=\"-\",\"-\",IF(AND($S89=\"Y\",'Enrollment Form'!$CO96=\"No\"),\"-\",IF(AND($S89=\"Y\",'Enrollment Form'!$CO96=\"Yes\",'Enrollment Form'!$CP96<>\"\"),\"Y\",\"N\"))))","v":""},{"$f":"IF(OR('Enrollment Form'!$AV96=\"Yes\",'Enrollment Form'!$AV96=\"\"),\"-\",IF(AND('Enrollment Form'!$AV96=\"No\",ISERROR(FIND(\"HMO\",VLOOKUP('Enrollment Form'!G96,'Enrollment Form'!H$11:J$1000,3,FALSE),1))=FALSE,COUNTA('Enrollment Form'!$AW96:$AZ96)=4),\"Y\",\"N\"))","v":"-"},{"$f":"IF($B89=\"N\",\"\",IF('Enrollment Form'!$B96=\"Subscriber\",\"-\",IF(COUNTA('Enrollment Form'!$BE96,'Enrollment Form'!$BG96)=2,\"Y\",\"N\")))","v":""},{"$f":"IF($B89=\"N\",\"\",IF(OR('Enrollment Form'!$AU96=\"\",'Enrollment Form'!$AU96=\"No\"),\"-\",IF(AND('Enrollment Form'!$AU96=\"Yes\",COUNTA('Enrollment Form'!$CK96)=1),\"Y\",\"N\")))","v":""},{"$f":"IF(OR('Enrollment Form'!$CK96=\"\",'Enrollment Form'!$CK96=\"No\"),\"-\",IF(COUNTA('Enrollment Form'!$CM96:$CN96)=2,\"Y\",\"N\"))","v":"-"},{"$f":"IF($B89=\"N\",\"\",IF(COUNTIF('Enrollment Form'!$CZ96:$DO96,\"Other\")=COUNTA('Enrollment Form'!$DF96,'Enrollment Form'!$DA96,'Enrollment Form'!$DK96,'Enrollment Form'!$DP96),\"Y\",\"N\"))","v":""},{"$f":"IF($B89=\"N\",\"\",IF(OR('Enrollment Form'!B96<>\"Subscriber\",'Enrollment Form'!C96=\"ROC\",COUNTIF('Enrollment Form'!AS96:AT96,\"Yes\")>=1),\"-\",IF(AND('Enrollment Form'!C96=\"Enroll\",COUNTIF('Enrollment Form'!AS96:AT96,\"No\")=2,'Enrollment Form'!AU96=\"\"),\"N\",\"Y\")))","v":""},{"$f":"IF(OR(B89=\"N\",'Enrollment Form'!B96<>\"Subscriber\",'Enrollment Form'!C96=\"ROC\",'Enrollment Form'!O96<>\"Multiple of Salary\"),\"-\",IF(COUNTA('Enrollment Form'!T96:U96)<2,\"N\",\"Y\"))","v":"-"},{"$f":"IF(B89=\"N\",\"\",IF(OR('Enrollment Form'!C96=\"ROC\",'Enrollment Form'!B96<>\"Subscriber\",'Enrollment Form'!O96=\"Waive\",'Enrollment Form'!O96=\"\"),\"-\",IF('Enrollment Form'!P96=\"\",\"N\",\"Y\")))","v":""},{"$f":"IF($B89=\"N\",\"\",IF(AND('Enrollment Form'!$C96=\"ROC\",'Enrollment Form'!$DS96<>\"\"),\"Y\",IF(AND('Enrollment Form'!$C96=\"ROC\",'Enrollment Form'!$DS96=\"\"),\"N\",IF(AND('Enrollment Form'!$C96=\"Enroll\",'Enrollment Form'!$B96=\"Subscriber\",'Enrollment Form'!$CQ96=\"No\",'Enrollment Form'!$DS96=\"\"),\"N\",IF(AND('Enrollment Form'!$C96=\"Enroll\",'Enrollment Form'!$B96=\"Subscriber\",'Enrollment Form'!$CQ96=\"Yes\"),\"-\",\"Y\")))))","v":""},{"$f":"IF($B89=\"N\",\"\",IF(AND('Enrollment Form'!$C96=\"ROC\",'Enrollment Form'!$DT96<>\"\"),\"Y\",IF(AND('Enrollment Form'!$C96=\"ROC\",'Enrollment Form'!$DT96=\"\"),\"N\",IF(AND('Enrollment Form'!$C96=\"Enroll\",'Enrollment Form'!$B96=\"Subscriber\",'Enrollment Form'!$CQ96=\"No\",'Enrollment Form'!$DT96=\"\"),\"N\",IF(AND('Enrollment Form'!$C96=\"Enroll\",'Enrollment Form'!$B96=\"Subscriber\",'Enrollment Form'!$CQ96=\"Yes\"),\"-\",\"Y\")))))","v":""},{"$f":"IF('Enrollment Form'!AH96=\"\",\"\",IF(ISERROR(SEARCH(\".\",'Enrollment Form'!AH96,SEARCH(\"@\",'Enrollment Form'!AH96))),\"N\",\"Y\"))","v":""},{"$f":"IF(OR($B89=\"N\",'Enrollment Form'!$G96=\"\"),\"\",IF('Enrollment Form'!$B96<>\"Subscriber\",\"-\",IF(COUNTIF('Enrollment Form'!$AS96:$AT96,\"Yes\")=2,\"N\",\"Y\")))","v":""},{"$f":"IF(OR('Enrollment Form'!$CC96=\"\",'Enrollment Form'!$CC96=\"No\"),\"-\",IF(AND('Enrollment Form'!$CC96=\"Yes\",'Enrollment Form'!$CD96=\"\"),\"N\",\"Y\"))","v":"-"},{"$f":"IF(OR('Enrollment Form'!$CE96=\"\",'Enrollment Form'!$CE96=\"No\"),\"-\",IF(AND('Enrollment Form'!$CE96=\"Yes\",'Enrollment Form'!$CF96=\"\"),\"N\",\"Y\"))","v":"-"},{"$f":"IF(OR('Enrollment Form'!$CG96=\"\",'Enrollment Form'!$CG96=\"No\"),\"-\",IF(AND('Enrollment Form'!$CG96=\"Yes\",'Enrollment Form'!$CH96=\"\"),\"N\",\"Y\"))","v":"-"},{"$f":"IF(OR('Enrollment Form'!$CG96=\"\",'Enrollment Form'!$CG96=\"No\"),\"-\",IF(AND('Enrollment Form'!$CG96=\"Yes\",'Enrollment Form'!$CI96=\"\"),\"N\",\"Y\"))","v":"-"},{"$f":"IF('Enrollment Form'!B96<>\"Subscriber\",\"-\",IF(AND('Enrollment Form'!B96=\"Subscriber\",'Enrollment Form'!C96=\"Enroll\",'Enrollment Form'!AA96=\"\"),\"N\",\"Y\"))","v":"-"},{"$f":"IF(OR('Enrollment Form'!B96=\"Subscriber\",'Enrollment Form'!B96=\"\"),\"-\",IF('Enrollment Form'!BI96=\"\",\"N\",\"Y\"))","v":"-"},{"$f":"IF('Enrollment Form'!B96<>\"Subscriber\",\"-\",IF(AND('Enrollment Form'!B96=\"Subscriber\",'Enrollment Form'!G96=\"\"),\"N\",\"Y\"))","v":"-"},{"$f":"IF('Enrollment Form'!A96=\"\",\"\",IF('Enrollment Form'!B96=\"Subscriber\",\"-\",IF(AND('Enrollment Form'!B96<>\"Subscriber\",'Enrollment Form'!G96='Enrollment Form'!H96),\"N\",\"Y\")))","v":""},0]
[97,{"$f":"IF('Enrollment Form'!$A97<>\"\",\"Y\",\"N\")","v":"N"},{"$f":"IF(AND('Enrollment Form'!$B97=\"\",'Enrollment Form'!$C97<>\"\"),\"N\",IF($B90=\"N\",\"\",\"Y\"))","v":""},{"$f":"IF(OR($B90=\"N\",'Enrollment Form'!G97=\"\"),\"\",IF('Enrollment Form'!$B97<>\"Subscriber\",\"\",IF('Enrollment Form'!$G97='Enrollment Form'!$H97,\"Y\",\"N\")))","v":""},{"$f":"IF($B90=\"N\",\"\",IF(AND(COUNTIFS('Enrollment Form'!$H$11:$H$1000,'Enrollment Form'!$H97,'Enrollment Form'!$B$11:$B$1000,'Enrollment Form'!$B97)>1,'Enrollment Form'!$H97<>\"\"),\"N\",\"Y\"))","v":""},{"$f":"IF($B90=\"N\",\"\",IF(LEN('Enrollment Form'!$Y97)=0,\"\",IF(LEN('Enrollment Form'!$Y97)<>5,\"N\",\"Y\")))","v":""},{"$f":"IF($B90=\"N\",\"\",IF(LEN('Enrollment Form'!$AD97=0),\"\",IF(LEN('Enrollment Form'!$AD97)<>5,\"N\",\"Y\")))","v":""},{"$f":"IF($B90=\"N\",\"\",IF(LEN('Enrollment Form'!$BL97=0),\"\",IF(LEN('Enrollment Form'!$BL97)<>5,\"N\",\"Y\")))","v":""},{"$f":"IF($B90=\"N\",\"\",IF(LEN('Enrollment Form'!$AE97)=0,\"\",IF(LEN('Enrollment Form'!$AE97)<>10,\"N\",\"Y\")))","v":""},{"$f":"IF($B90=\"N\",\"\",IF(LEN('Enrollment Form'!$AF97)=0,\"\",IF(LEN('Enrollment Form'!$AF97)<>10,\"N\",\"Y\")))","v":""},{"$f":"IF('Enrollment Form'!$O97<>\"Graded\",\"-\",IF(AND('Enrollment Form'!$O97=\"Graded\",'Enrollment Form'!$AO97<>\"\"),\"Y\",\"N\"))","v":"-"},{"$f":"IF($B90=\"N\",\"\",IF(OR('Enrollment Form'!$B97<>\"Subscriber\",'Enrollment Form'!$C97=\"ROC\"),\"-\",IF(AND('Enrollment Form'!$B97=\"Subscriber\",'Enrollment Form'!$C97=\"Enroll\",'Enrollment Form'!$AJ97<>\"\"),\"Y\",\"N\")))","v":""},{"$f":"IF($B90=\"N\",\"\",IF(OR('Enrollment Form'!$B97<>\"Subscriber\",'Enrollment Form'!$C97=\"ROC\"),\"-\",IF(AND('Enrollment Form'!$B97=\"Subscriber\",'Enrollment Form'!$C97=\"Enroll\",'Enrollment Form'!$AK97<>\"\"),\"Y\",\"N\")))","v":""},{"$f":"IF($B90=\"N\",\"\",IF(OR('Enrollment Form'!$B97<>\"Subscriber\",'Enrollment Form'!$C97=\"ROC\"),\"-\",IF(AND('Enrollment Form'!$B97=\"Subscriber\",'Enrollment Form'!$C97=\"Enroll\",'Enrollment Form'!$AL97<>\"\"),\"Y\",\"N\")))","v":""},{"$f":"IF($B90=\"N\",\"\",IF(OR('Enrollment Form'!$B97<>\"Subscriber\",'Enrollment Form'!$C97=\"ROC\"),\"-\",IF(AND('Enrollment Form'!$B97=\"Subscriber\",'Enrollment Form'!$C97=\"Enroll\",'Enrollment Form'!$AM97<>\"\"),\"Y\",\"N\")))","v":""},{"$f":"IF($B90=\"N\",\"\",IF(OR('Enrollment Form'!$B97<>\"Subscriber\",'Enrollment Form'!$C97=\"ROC\"),\"-\",IF(AND('Enrollment Form'!$B97=\"Subscriber\",'Enrollment Form'!$C97=\"Enroll\",'Enrollment Form'!$AN97<>\"\"),\"Y\",\"N\")))","v":""},{"$f":"IF($B90=\"N\",\"\",IF(OR('Enrollment Form'!$B97<>\"Subscriber\",'Enrollment Form'!$C97=\"ROC\"),\"-\",IF(AND('Enrollment Form'!$B97=\"Subscriber\",'Enrollment Form'!$C97=\"Enroll\",'Enrollment Form'!$AP97<>\"\"),\"Y\",\"N\")))","v":""},{"$f":"IF($B90=\"N\",\"\",IF($Q90=\"-\",\"-\",IF(AND($Q90=\"Y\",'Enrollment Form'!$AP97=\"No\"),\"-\",IF(AND($Q90=\"Y\",'Enrollment Form'!$AP97=\"Yes\",'Enrollment Form'!$AQ97<>\"\"),\"Y\",\"N\"))))","v":""},{"$f":"IF($B90=\"N\",\"\",IF(OR('Enrollment Form'!$B97<>\"Subscriber\",'Enrollment Form'!$C97=\"ROC\"),\"-\",IF(AND('Enrollment Form'!$B97=\"Subscriber\",'Enrollment Form'!$C97=\"Enroll\",'Enrollment Form'!$CO97<>\"\"),\"Y\",\"N\")))","v":""},{"$f":"IF($B90=\"N\",\"\",IF($S90=\"-\",\"-\",IF(AND($S90=\"Y\",'Enrollment Form'!$CO97=\"No\"),\"-\",IF(AND($S90=\"Y\",'Enrollment Form'!$CO97=\"Yes\",'Enrollment Form'!$CP97<>\"\"),\"Y\",\"N\"))))","v":""},{"$f":"IF(OR('Enrollment Form'!$AV97=\"Yes\",'Enrollment Form'!$AV97=\"\"),\"-\",IF(AND('Enrollment Form'!$AV97=\"No\",ISERROR(FIND(\"HMO\",VLOOKUP('Enrollment Form'!G97,'Enrollment Form'!H$11:J$1000,3,FALSE),1))=FALSE,COUNTA('Enrollment Form'!$AW97:$AZ97)=4),\"Y\",\"N\"))","v":"-"},{"$f":"IF($B90=\"N\",\"\",IF('Enrollment Form'!$B97=\"Subscriber\",\"-\",IF(COUNTA('Enrollment Form'!$BE97,'Enrollment Form'!$BG97)=2,\"Y\",\"N\")))","v":""},{"$f":"IF($B90=\"N\",\"\",IF(OR('Enrollment Form'!$AU97=\"\",'Enrollment Form'!$AU97=\"No\"),\"-\",IF(AND('Enrollment Form'!$AU97=\"Yes\",COUNTA('Enrollment Form'!$CK97)=1),\"Y\",\"N\")))","v":""},{"$f":"IF(OR('Enrollment Form'!$CK97=\"\",'Enrollment Form'!$CK97=\"No\"),\"-\",IF(COUNTA('Enrollment Form'!$CM97:$CN97)=2,\"Y\",\"N\"))","v":"-"},{"$f":"IF($B90=\"N\",\"\",IF(COUNTIF('Enrollment Form'!$CZ97:$DO97,\"Other\")=COUNTA('Enrollment Form'!$DF97,'Enrollment Form'!$DA97,'Enrollment Form'!$DK97,'Enrollment Form'!$DP97),\"Y\",\"N\"))","v":""},{"$f":"IF($B90=\"N\",\"\",IF(OR('Enrollment Form'!B97<>\"Subscriber\",'Enrollment Form'!C97=\"ROC\",COUNTIF('Enrollment Form'!AS97:AT97,\"Yes\")>=1),\"-\",IF(AND('Enrollment Form'!C97=\"Enroll\",COUNTIF('Enrollment Form'!AS97:AT97,\"No\")=2,'Enrollment Form'!AU97=\"\"),\"N\",\"Y\")))","v":""},{"$f":"IF(OR(B90=\"N\",'Enrollment Form'!B97<>\"Subscriber\",'Enrollment Form'!C97=\"ROC\",'Enrollment Form'!O97<>\"Multiple of Salary\"),\"-\",IF(COUNTA('Enrollment Form'!T97:U97)<2,\"N\",\"Y\"))","v":"-"},{"$f":"IF(B90=\"N\",\"\",IF(OR('Enrollment Form'!C97=\"ROC\",'Enrollment Form'!B97<>\"Subscriber\",'Enrollment Form'!O97=\"Waive\",'Enrollment Form'!O97=\"\"),\"-\",IF('Enrollment Form'!P97=\"\",\"N\",\"Y\")))","v":""},{"$f":"IF($B90=\"N\",\"\",IF(AND('Enrollment Form'!$C97=\"ROC\",'Enrollment Form'!$DS97<>\"\"),\"Y\",IF(AND('Enrollment Form'!$C97=\"ROC\",'Enrollment Form'!$DS97=\"\"),\"N\",IF(AND('Enrollment Form'!$C97=\"Enroll\",'Enrollment Form'!$B97=\"Subscriber\",'Enrollment Form'!$CQ97=\"No\",'Enrollment Form'!$DS97=\"\"),\"N\",IF(AND('Enrollment Form'!$C97=\"Enroll\",'Enrollment Form'!$B97=\"Subscriber\",'Enrollment Form'!$CQ97=\"Yes\"),\"-\",\"Y\")))))","v":""},{"$f":"IF($B90=\"N\",\"\",IF(AND('Enrollment Form'!$C97=\"ROC\",'Enrollment Form'!$DT97<>\"\"),\"Y\",IF(AND('Enrollment Form'!$C97=\"ROC\",'Enrollment Form'!$DT97=\"\"),\"N\",IF(AND('Enrollment Form'!$C97=\"Enroll\",'Enrollment Form'!$B97=\"Subscriber\",'Enrollment Form'!$CQ97=\"No\",'Enrollment Form'!$DT97=\"\"),\"N\",IF(AND('Enrollment Form'!$C97=\"Enroll\",'Enrollment Form'!$B97=\"Subscriber\",'Enrollment Form'!$CQ97=\"Yes\"),\"-\",\"Y\")))))","v":""},{"$f":"IF('Enrollment Form'!AH97=\"\",\"\",IF(ISERROR(SEARCH(\".\",'Enrollment Form'!AH97,SEARCH(\"@\",'Enrollment Form'!AH97))),\"N\",\"Y\"))","v":""},{"$f":"IF(OR($B90=\"N\",'Enrollment Form'!$G97=\"\"),\"\",IF('Enrollment Form'!$B97<>\"Subscriber\",\"-\",IF(COUNTIF('Enrollment Form'!$AS97:$AT97,\"Yes\")=2,\"N\",\"Y\")))","v":""},{"$f":"IF(OR('Enrollment Form'!$CC97=\"\",'Enrollment Form'!$CC97=\"No\"),\"-\",IF(AND('Enrollment Form'!$CC97=\"Yes\",'Enrollment Form'!$CD97=\"\"),\"N\",\"Y\"))","v":"-"},{"$f":"IF(OR('Enrollment Form'!$CE97=\"\",'Enrollment Form'!$CE97=\"No\"),\"-\",IF(AND('Enrollment Form'!$CE97=\"Yes\",'Enrollment Form'!$CF97=\"\"),\"N\",\"Y\"))","v":"-"},{"$f":"IF(OR('Enrollment Form'!$CG97=\"\",'Enrollment Form'!$CG97=\"No\"),\"-\",IF(AND('Enrollment Form'!$CG97=\"Yes\",'Enrollment Form'!$CH97=\"\"),\"N\",\"Y\"))","v":"-"},{"$f":"IF(OR('Enrollment Form'!$CG97=\"\",'Enrollment Form'!$CG97=\"No\"),\"-\",IF(AND('Enrollment Form'!$CG97=\"Yes\",'Enrollment Form'!$CI97=\"\"),\"N\",\"Y\"))","v":"-"},{"$f":"IF('Enrollment Form'!B97<>\"Subscriber\",\"-\",IF(AND('Enrollment Form'!B97=\"Subscriber\",'Enrollment Form'!C97=\"Enroll\",'Enrollment Form'!AA97=\"\"),\"N\",\"Y\"))","v":"-"},{"$f":"IF(OR('Enrollment Form'!B97=\"Subscriber\",'Enrollment Form'!B97=\"\"),\"-\",IF('Enrollment Form'!BI97=\"\",\"N\",\"Y\"))","v":"-"},{"$f":"IF('Enrollment Form'!B97<>\"Subscriber\",\"-\",IF(AND('Enrollment Form'!B97=\"Subscriber\",'Enrollment Form'!G97=\"\"),\"N\",\"Y\"))","v":"-"},{"$f":"IF('Enrollment Form'!A97=\"\",\"\",IF('Enrollment Form'!B97=\"Subscriber\",\"-\",IF(AND('Enrollment Form'!B97<>\"Subscriber\",'Enrollment Form'!G97='Enrollment Form'!H97),\"N\",\"Y\")))","v":""},0]
[98,{"$f":"IF('Enrollment Form'!$A98<>\"\",\"Y\",\"N\")","v":"N"},{"$f":"IF(AND('Enrollment Form'!$B98=\"\",'Enrollment Form'!$C98<>\"\"),\"N\",IF($B91=\"N\",\"\",\"Y\"))","v":""},{"$f":"IF(OR($B91=\"N\",'Enrollment Form'!G98=\"\"),\"\",IF('Enrollment Form'!$B98<>\"Subscriber\",\"\",IF('Enrollment Form'!$G98='Enrollment Form'!$H98,\"Y\",\"N\")))","v":""},{"$f":"IF($B91=\"N\",\"\",IF(AND(COUNTIFS('Enrollment Form'!$H$11:$H$1000,'Enrollment Form'!$H98,'Enrollment Form'!$B$11:$B$1000,'Enrollment Form'!$B98)>1,'Enrollment Form'!$H98<>\"\"),\"N\",\"Y\"))","v":""},{"$f":"IF($B91=\"N\",\"\",IF(LEN('Enrollment Form'!$Y98)=0,\"\",IF(LEN('Enrollment Form'!$Y98)<>5,\"N\",\"Y\")))","v":""},{"$f":"IF($B91=\"N\",\"\",IF(LEN('Enrollment Form'!$AD98=0),\"\",IF(LEN('Enrollment Form'!$AD98)<>5,\"N\",\"Y\")))","v":""},{"$f":"IF($B91=\"N\",\"\",IF(LEN('Enrollment Form'!$BL98=0),\"\",IF(LEN('Enrollment Form'!$BL98)<>5,\"N\",\"Y\")))","v":""},{"$f":"IF($B91=\"N\",\"\",IF(LEN('Enrollment Form'!$AE98)=0,\"\",IF(LEN('Enrollment Form'!$AE98)<>10,\"N\",\"Y\")))","v":""},{"$f":"IF($B91=\"N\",\"\",IF(LEN('Enrollment Form'!$AF98)=0,\"\",IF(LEN('Enrollment Form'!$AF98)<>10,\"N\",\"Y\")))","v":""},{"$f":"IF('Enrollment Form'!$O98<>\"Graded\",\"-\",IF(AND('Enrollment Form'!$O98=\"Graded\",'Enrollment Form'!$AO98<>\"\"),\"Y\",\"N\"))","v":"-"},{"$f":"IF($B91=\"N\",\"\",IF(OR('Enrollment Form'!$B98<>\"Subscriber\",'Enrollment Form'!$C98=\"ROC\"),\"-\",IF(AND('Enrollment Form'!$B98=\"Subscriber\",'Enrollment Form'!$C98=\"Enroll\",'Enrollment Form'!$AJ98<>\"\"),\"Y\",\"N\")))","v":""},{"$f":"IF($B91=\"N\",\"\",IF(OR('Enrollment Form'!$B98<>\"Subscriber\",'Enrollment Form'!$C98=\"ROC\"),\"-\",IF(AND('Enrollment Form'!$B98=\"Subscriber\",'Enrollment Form'!$C98=\"Enroll\",'Enrollment Form'!$AK98<>\"\"),\"Y\",\"N\")))","v":""},{"$f":"IF($B91=\"N\",\"\",IF(OR('Enrollment Form'!$B98<>\"Subscriber\",'Enrollment Form'!$C98=\"ROC\"),\"-\",IF(AND('Enrollment Form'!$B98=\"Subscriber\",'Enrollment Form'!$C98=\"Enroll\",'Enrollment Form'!$AL98<>\"\"),\"Y\",\"N\")))","v":""},{"$f":"IF($B91=\"N\",\"\",IF(OR('Enrollment Form'!$B98<>\"Subscriber\",'Enrollment Form'!$C98=\"ROC\"),\"-\",IF(AND('Enrollment Form'!$B98=\"Subscriber\",'Enrollment Form'!$C98=\"Enroll\",'Enrollment Form'!$AM98<>\"\"),\"Y\",\"N\")))","v":""},{"$f":"IF($B91=\"N\",\"\",IF(OR('Enrollment Form'!$B98<>\"Subscriber\",'Enrollment Form'!$C98=\"ROC\"),\"-\",IF(AND('Enrollment Form'!$B98=\"Subscriber\",'Enrollment Form'!$C98=\"Enroll\",'Enrollment Form'!$AN98<>\"\"),\"Y\",\"N\")))","v":""},{"$f":"IF($B91=\"N\",\"\",IF(OR('Enrollment Form'!$B98<>\"Subscriber\",'Enrollment Form'!$C98=\"ROC\"),\"-\",IF(AND('Enrollment Form'!$B98=\"Subscriber\",'Enrollment Form'!$C98=\"Enroll\",'Enrollment Form'!$AP98<>\"\"),\"Y\",\"N\")))","v":""},{"$f":"IF($B91=\"N\",\"\",IF($Q91=\"-\",\"-\",IF(AND($Q91=\"Y\",'Enrollment Form'!$AP98=\"No\"),\"-\",IF(AND($Q91=\"Y\",'Enrollment Form'!$AP98=\"Yes\",'Enrollment Form'!$AQ98<>\"\"),\"Y\",\"N\"))))","v":""},{"$f":"IF($B91=\"N\",\"\",IF(OR('Enrollment Form'!$B98<>\"Subscriber\",'Enrollment Form'!$C98=\"ROC\"),\"-\",IF(AND('Enrollment Form'!$B98=\"Subscriber\",'Enrollment Form'!$C98=\"Enroll\",'Enrollment Form'!$CO98<>\"\"),\"Y\",\"N\")))","v":""},{"$f":"IF($B91=\"N\",\"\",IF($S91=\"-\",\"-\",IF(AND($S91=\"Y\",'Enrollment Form'!$CO98=\"No\"),\"-\",IF(AND($S91=\"Y\",'Enrollment Form'!$CO98=\"Yes\",'Enrollment Form'!$CP98<>\"\"),\"Y\",\"N\"))))","v":""},{"$f":"IF(OR('Enrollment Form'!$AV98=\"Yes\",'Enrollment Form'!$AV98=\"\"),\"-\",IF(AND('Enrollment Form'!$AV98=\"No\",ISERROR(FIND(\"HMO\",VLOOKUP('Enrollment Form'!G98,'Enrollment Form'!H$11:J$1000,3,FALSE),1))=FALSE,COUNTA('Enrollment Form'!$AW98:$AZ98)=4),\"Y\",\"N\"))","v":"-"},{"$f":"IF($B91=\"N\",\"\",IF('Enrollment Form'!$B98=\"Subscriber\",\"-\",IF(COUNTA('Enrollment Form'!$BE98,'Enrollment Form'!$BG98)=2,\"Y\",\"N\")))","v":""},{"$f":"IF($B91=\"N\",\"\",IF(OR('Enrollment Form'!$AU98=\"\",'Enrollment Form'!$AU98=\"No\"),\"-\",IF(AND('Enrollment Form'!$AU98=\"Yes\",COUNTA('Enrollment Form'!$CK98)=1),\"Y\",\"N\")))","v":""},{"$f":"IF(OR('Enrollment Form'!$CK98=\"\",'Enrollment Form'!$CK98=\"No\"),\"-\",IF(COUNTA('Enrollment Form'!$CM98:$CN98)=2,\"Y\",\"N\"))","v":"-"},{"$f":"IF($B91=\"N\",\"\",IF(COUNTIF('Enrollment Form'!$CZ98:$DO98,\"Other\")=COUNTA('Enrollment Form'!$DF98,'Enrollment Form'!$DA98,'Enrollment Form'!$DK98,'Enrollment Form'!$DP98),\"Y\",\"N\"))","v":""},{"$f":"IF($B91=\"N\",\"\",IF(OR('Enrollment Form'!B98<>\"Subscriber\",'Enrollment Form'!C98=\"ROC\",COUNTIF('Enrollment Form'!AS98:AT98,\"Yes\")>=1),\"-\",IF(AND('Enrollment Form'!C98=\"Enroll\",COUNTIF('Enrollment Form'!AS98:AT98,\"No\")=2,'Enrollment Form'!AU98=\"\"),\"N\",\"Y\")))","v":""},{"$f":"IF(OR(B91=\"N\",'Enrollment Form'!B98<>\"Subscriber\",'Enrollment Form'!C98=\"ROC\",'Enrollment Form'!O98<>\"Multiple of Salary\"),\"-\",IF(COUNTA('Enrollment Form'!T98:U98)<2,\"N\",\"Y\"))","v":"-"},{"$f":"IF(B91=\"N\",\"\",IF(OR('Enrollment Form'!C98=\"ROC\",'Enrollment Form'!B98<>\"Subscriber\",'Enrollment Form'!O98=\"Waive\",'Enrollment Form'!O98=\"\"),\"-\",IF('Enrollment Form'!P98=\"\",\"N\",\"Y\")))","v":""},{"$f":"IF($B91=\"N\",\"\",IF(AND('Enrollment Form'!$C98=\"ROC\",'Enrollment Form'!$DS98<>\"\"),\"Y\",IF(AND('Enrollment Form'!$C98=\"ROC\",'Enrollment Form'!$DS98=\"\"),\"N\",IF(AND('Enrollment Form'!$C98=\"Enroll\",'Enrollment Form'!$B98=\"Subscriber\",'Enrollment Form'!$CQ98=\"No\",'Enrollment Form'!$DS98=\"\"),\"N\",IF(AND('Enrollment Form'!$C98=\"Enroll\",'Enrollment Form'!$B98=\"Subscriber\",'Enrollment Form'!$CQ98=\"Yes\"),\"-\",\"Y\")))))","v":""},{"$f":"IF($B91=\"N\",\"\",IF(AND('Enrollment Form'!$C98=\"ROC\",'Enrollment Form'!$DT98<>\"\"),\"Y\",IF(AND('Enrollment Form'!$C98=\"ROC\",'Enrollment Form'!$DT98=\"\"),\"N\",IF(AND('Enrollment Form'!$C98=\"Enroll\",'Enrollment Form'!$B98=\"Subscriber\",'Enrollment Form'!$CQ98=\"No\",'Enrollment Form'!$DT98=\"\"),\"N\",IF(AND('Enrollment Form'!$C98=\"Enroll\",'Enrollment Form'!$B98=\"Subscriber\",'Enrollment Form'!$CQ98=\"Yes\"),\"-\",\"Y\")))))","v":""},{"$f":"IF('Enrollment Form'!AH98=\"\",\"\",IF(ISERROR(SEARCH(\".\",'Enrollment Form'!AH98,SEARCH(\"@\",'Enrollment Form'!AH98))),\"N\",\"Y\"))","v":""},{"$f":"IF(OR($B91=\"N\",'Enrollment Form'!$G98=\"\"),\"\",IF('Enrollment Form'!$B98<>\"Subscriber\",\"-\",IF(COUNTIF('Enrollment Form'!$AS98:$AT98,\"Yes\")=2,\"N\",\"Y\")))","v":""},{"$f":"IF(OR('Enrollment Form'!$CC98=\"\",'Enrollment Form'!$CC98=\"No\"),\"-\",IF(AND('Enrollment Form'!$CC98=\"Yes\",'Enrollment Form'!$CD98=\"\"),\"N\",\"Y\"))","v":"-"},{"$f":"IF(OR('Enrollment Form'!$CE98=\"\",'Enrollment Form'!$CE98=\"No\"),\"-\",IF(AND('Enrollment Form'!$CE98=\"Yes\",'Enrollment Form'!$CF98=\"\"),\"N\",\"Y\"))","v":"-"},{"$f":"IF(OR('Enrollment Form'!$CG98=\"\",'Enrollment Form'!$CG98=\"No\"),\"-\",IF(AND('Enrollment Form'!$CG98=\"Yes\",'Enrollment Form'!$CH98=\"\"),\"N\",\"Y\"))","v":"-"},{"$f":"IF(OR('Enrollment Form'!$CG98=\"\",'Enrollment Form'!$CG98=\"No\"),\"-\",IF(AND('Enrollment Form'!$CG98=\"Yes\",'Enrollment Form'!$CI98=\"\"),\"N\",\"Y\"))","v":"-"},{"$f":"IF('Enrollment Form'!B98<>\"Subscriber\",\"-\",IF(AND('Enrollment Form'!B98=\"Subscriber\",'Enrollment Form'!C98=\"Enroll\",'Enrollment Form'!AA98=\"\"),\"N\",\"Y\"))","v":"-"},{"$f":"IF(OR('Enrollment Form'!B98=\"Subscriber\",'Enrollment Form'!B98=\"\"),\"-\",IF('Enrollment Form'!BI98=\"\",\"N\",\"Y\"))","v":"-"},{"$f":"IF('Enrollment Form'!B98<>\"Subscriber\",\"-\",IF(AND('Enrollment Form'!B98=\"Subscriber\",'Enrollment Form'!G98=\"\"),\"N\",\"Y\"))","v":"-"},{"$f":"IF('Enrollment Form'!A98=\"\",\"\",IF('Enrollment Form'!B98=\"Subscriber\",\"-\",IF(AND('Enrollment Form'!B98<>\"Subscriber\",'Enrollment Form'!G98='Enrollment Form'!H98),\"N\",\"Y\")))","v":""},0]
[99,{"$f":"IF('Enrollment Form'!$A99<>\"\",\"Y\",\"N\")","v":"N"},{"$f":"IF(AND('Enrollment Form'!$B99=\"\",'Enrollment Form'!$C99<>\"\"),\"N\",IF($B92=\"N\",\"\",\"Y\"))","v":""},{"$f":"IF(OR($B92=\"N\",'Enrollment Form'!G99=\"\"),\"\",IF('Enrollment Form'!$B99<>\"Subscriber\",\"\",IF('Enrollment Form'!$G99='Enrollment Form'!$H99,\"Y\",\"N\")))","v":""},{"$f":"IF($B92=\"N\",\"\",IF(AND(COUNTIFS('Enrollment Form'!$H$11:$H$1000,'Enrollment Form'!$H99,'Enrollment Form'!$B$11:$B$1000,'Enrollment Form'!$B99)>1,'Enrollment Form'!$H99<>\"\"),\"N\",\"Y\"))","v":""},{"$f":"IF($B92=\"N\",\"\",IF(LEN('Enrollment Form'!$Y99)=0,\"\",IF(LEN('Enrollment Form'!$Y99)<>5,\"N\",\"Y\")))","v":""},{"$f":"IF($B92=\"N\",\"\",IF(LEN('Enrollment Form'!$AD99=0),\"\",IF(LEN('Enrollment Form'!$AD99)<>5,\"N\",\"Y\")))","v":""},{"$f":"IF($B92=\"N\",\"\",IF(LEN('Enrollment Form'!$BL99=0),\"\",IF(LEN('Enrollment Form'!$BL99)<>5,\"N\",\"Y\")))","v":""},{"$f":"IF($B92=\"N\",\"\",IF(LEN('Enrollment Form'!$AE99)=0,\"\",IF(LEN('Enrollment Form'!$AE99)<>10,\"N\",\"Y\")))","v":""},{"$f":"IF($B92=\"N\",\"\",IF(LEN('Enrollment Form'!$AF99)=0,\"\",IF(LEN('Enrollment Form'!$AF99)<>10,\"N\",\"Y\")))","v":""},{"$f":"IF('Enrollment Form'!$O99<>\"Graded\",\"-\",IF(AND('Enrollment Form'!$O99=\"Graded\",'Enrollment Form'!$AO99<>\"\"),\"Y\",\"N\"))","v":"-"},{"$f":"IF($B92=\"N\",\"\",IF(OR('Enrollment Form'!$B99<>\"Subscriber\",'Enrollment Form'!$C99=\"ROC\"),\"-\",IF(AND('Enrollment Form'!$B99=\"Subscriber\",'Enrollment Form'!$C99=\"Enroll\",'Enrollment Form'!$AJ99<>\"\"),\"Y\",\"N\")))","v":""},{"$f":"IF($B92=\"N\",\"\",IF(OR('Enrollment Form'!$B99<>\"Subscriber\",'Enrollment Form'!$C99=\"ROC\"),\"-\",IF(AND('Enrollment Form'!$B99=\"Subscriber\",'Enrollment Form'!$C99=\"Enroll\",'Enrollment Form'!$AK99<>\"\"),\"Y\",\"N\")))","v":""},{"$f":"IF($B92=\"N\",\"\",IF(OR('Enrollment Form'!$B99<>\"Subscriber\",'Enrollment Form'!$C99=\"ROC\"),\"-\",IF(AND('Enrollment Form'!$B99=\"Subscriber\",'Enrollment Form'!$C99=\"Enroll\",'Enrollment Form'!$AL99<>\"\"),\"Y\",\"N\")))","v":""},{"$f":"IF($B92=\"N\",\"\",IF(OR('Enrollment Form'!$B99<>\"Subscriber\",'Enrollment Form'!$C99=\"ROC\"),\"-\",IF(AND('Enrollment Form'!$B99=\"Subscriber\",'Enrollment Form'!$C99=\"Enroll\",'Enrollment Form'!$AM99<>\"\"),\"Y\",\"N\")))","v":""},{"$f":"IF($B92=\"N\",\"\",IF(OR('Enrollment Form'!$B99<>\"Subscriber\",'Enrollment Form'!$C99=\"ROC\"),\"-\",IF(AND('Enrollment Form'!$B99=\"Subscriber\",'Enrollment Form'!$C99=\"Enroll\",'Enrollment Form'!$AN99<>\"\"),\"Y\",\"N\")))","v":""},{"$f":"IF($B92=\"N\",\"\",IF(OR('Enrollment Form'!$B99<>\"Subscriber\",'Enrollment Form'!$C99=\"ROC\"),\"-\",IF(AND('Enrollment Form'!$B99=\"Subscriber\",'Enrollment Form'!$C99=\"Enroll\",'Enrollment Form'!$AP99<>\"\"),\"Y\",\"N\")))","v":""},{"$f":"IF($B92=\"N\",\"\",IF($Q92=\"-\",\"-\",IF(AND($Q92=\"Y\",'Enrollment Form'!$AP99=\"No\"),\"-\",IF(AND($Q92=\"Y\",'Enrollment Form'!$AP99=\"Yes\",'Enrollment Form'!$AQ99<>\"\"),\"Y\",\"N\"))))","v":""},{"$f":"IF($B92=\"N\",\"\",IF(OR('Enrollment Form'!$B99<>\"Subscriber\",'Enrollment Form'!$C99=\"ROC\"),\"-\",IF(AND('Enrollment Form'!$B99=\"Subscriber\",'Enrollment Form'!$C99=\"Enroll\",'Enrollment Form'!$CO99<>\"\"),\"Y\",\"N\")))","v":""},{"$f":"IF($B92=\"N\",\"\",IF($S92=\"-\",\"-\",IF(AND($S92=\"Y\",'Enrollment Form'!$CO99=\"No\"),\"-\",IF(AND($S92=\"Y\",'Enrollment Form'!$CO99=\"Yes\",'Enrollment Form'!$CP99<>\"\"),\"Y\",\"N\"))))","v":""},{"$f":"IF(OR('Enrollment Form'!$AV99=\"Yes\",'Enrollment Form'!$AV99=\"\"),\"-\",IF(AND('Enrollment Form'!$AV99=\"No\",ISERROR(FIND(\"HMO\",VLOOKUP('Enrollment Form'!G99,'Enrollment Form'!H$11:J$1000,3,FALSE),1))=FALSE,COUNTA('Enrollment Form'!$AW99:$AZ99)=4),\"Y\",\"N\"))","v":"-"},{"$f":"IF($B92=\"N\",\"\",IF('Enrollment Form'!$B99=\"Subscriber\",\"-\",IF(COUNTA('Enrollment Form'!$BE99,'Enrollment Form'!$BG99)=2,\"Y\",\"N\")))","v":""},{"$f":"IF($B92=\"N\",\"\",IF(OR('Enrollment Form'!$AU99=\"\",'Enrollment Form'!$AU99=\"No\"),\"-\",IF(AND('Enrollment Form'!$AU99=\"Yes\",COUNTA('Enrollment Form'!$CK99)=1),\"Y\",\"N\")))","v":""},{"$f":"IF(OR('Enrollment Form'!$CK99=\"\",'Enrollment Form'!$CK99=\"No\"),\"-\",IF(COUNTA('Enrollment Form'!$CM99:$CN99)=2,\"Y\",\"N\"))","v":"-"},{"$f":"IF($B92=\"N\",\"\",IF(COUNTIF('Enrollment Form'!$CZ99:$DO99,\"Other\")=COUNTA('Enrollment Form'!$DF99,'Enrollment Form'!$DA99,'Enrollment Form'!$DK99,'Enrollment Form'!$DP99),\"Y\",\"N\"))","v":""},{"$f":"IF($B92=\"N\",\"\",IF(OR('Enrollment Form'!B99<>\"Subscriber\",'Enrollment Form'!C99=\"ROC\",COUNTIF('Enrollment Form'!AS99:AT99,\"Yes\")>=1),\"-\",IF(AND('Enrollment Form'!C99=\"Enroll\",COUNTIF('Enrollment Form'!AS99:AT99,\"No\")=2,'Enrollment Form'!AU99=\"\"),\"N\",\"Y\")))","v":""},{"$f":"IF(OR(B92=\"N\",'Enrollment Form'!B99<>\"Subscriber\",'Enrollment Form'!C99=\"ROC\",'Enrollment Form'!O99<>\"Multiple of Salary\"),\"-\",IF(COUNTA('Enrollment Form'!T99:U99)<2,\"N\",\"Y\"))","v":"-"},{"$f":"IF(B92=\"N\",\"\",IF(OR('Enrollment Form'!C99=\"ROC\",'Enrollment Form'!B99<>\"Subscriber\",'Enrollment Form'!O99=\"Waive\",'Enrollment Form'!O99=\"\"),\"-\",IF('Enrollment Form'!P99=\"\",\"N\",\"Y\")))","v":""},{"$f":"IF($B92=\"N\",\"\",IF(AND('Enrollment Form'!$C99=\"ROC\",'Enrollment Form'!$DS99<>\"\"),\"Y\",IF(AND('Enrollment Form'!$C99=\"ROC\",'Enrollment Form'!$DS99=\"\"),\"N\",IF(AND('Enrollment Form'!$C99=\"Enroll\",'Enrollment Form'!$B99=\"Subscriber\",'Enrollment Form'!$CQ99=\"No\",'Enrollment Form'!$DS99=\"\"),\"N\",IF(AND('Enrollment Form'!$C99=\"Enroll\",'Enrollment Form'!$B99=\"Subscriber\",'Enrollment Form'!$CQ99=\"Yes\"),\"-\",\"Y\")))))","v":""},{"$f":"IF($B92=\"N\",\"\",IF(AND('Enrollment Form'!$C99=\"ROC\",'Enrollment Form'!$DT99<>\"\"),\"Y\",IF(AND('Enrollment Form'!$C99=\"ROC\",'Enrollment Form'!$DT99=\"\"),\"N\",IF(AND('Enrollment Form'!$C99=\"Enroll\",'Enrollment Form'!$B99=\"Subscriber\",'Enrollment Form'!$CQ99=\"No\",'Enrollment Form'!$DT99=\"\"),\"N\",IF(AND('Enrollment Form'!$C99=\"Enroll\",'Enrollment Form'!$B99=\"Subscriber\",'Enrollment Form'!$CQ99=\"Yes\"),\"-\",\"Y\")))))","v":""},{"$f":"IF('Enrollment Form'!AH99=\"\",\"\",IF(ISERROR(SEARCH(\".\",'Enrollment Form'!AH99,SEARCH(\"@\",'Enrollment Form'!AH99))),\"N\",\"Y\"))","v":""},{"$f":"IF(OR($B92=\"N\",'Enrollment Form'!$G99=\"\"),\"\",IF('Enrollment Form'!$B99<>\"Subscriber\",\"-\",IF(COUNTIF('Enrollment Form'!$AS99:$AT99,\"Yes\")=2,\"N\",\"Y\")))","v":""},{"$f":"IF(OR('Enrollment Form'!$CC99=\"\",'Enrollment Form'!$CC99=\"No\"),\"-\",IF(AND('Enrollment Form'!$CC99=\"Yes\",'Enrollment Form'!$CD99=\"\"),\"N\",\"Y\"))","v":"-"},{"$f":"IF(OR('Enrollment Form'!$CE99=\"\",'Enrollment Form'!$CE99=\"No\"),\"-\",IF(AND('Enrollment Form'!$CE99=\"Yes\",'Enrollment Form'!$CF99=\"\"),\"N\",\"Y\"))","v":"-"},{"$f":"IF(OR('Enrollment Form'!$CG99=\"\",'Enrollment Form'!$CG99=\"No\"),\"-\",IF(AND('Enrollment Form'!$CG99=\"Yes\",'Enrollment Form'!$CH99=\"\"),\"N\",\"Y\"))","v":"-"},{"$f":"IF(OR('Enrollment Form'!$CG99=\"\",'Enrollment Form'!$CG99=\"No\"),\"-\",IF(AND('Enrollment Form'!$CG99=\"Yes\",'Enrollment Form'!$CI99=\"\"),\"N\",\"Y\"))","v":"-"},{"$f":"IF('Enrollment Form'!B99<>\"Subscriber\",\"-\",IF(AND('Enrollment Form'!B99=\"Subscriber\",'Enrollment Form'!C99=\"Enroll\",'Enrollment Form'!AA99=\"\"),\"N\",\"Y\"))","v":"-"},{"$f":"IF(OR('Enrollment Form'!B99=\"Subscriber\",'Enrollment Form'!B99=\"\"),\"-\",IF('Enrollment Form'!BI99=\"\",\"N\",\"Y\"))","v":"-"},{"$f":"IF('Enrollment Form'!B99<>\"Subscriber\",\"-\",IF(AND('Enrollment Form'!B99=\"Subscriber\",'Enrollment Form'!G99=\"\"),\"N\",\"Y\"))","v":"-"},{"$f":"IF('Enrollment Form'!A99=\"\",\"\",IF('Enrollment Form'!B99=\"Subscriber\",\"-\",IF(AND('Enrollment Form'!B99<>\"Subscriber\",'Enrollment Form'!G99='Enrollment Form'!H99),\"N\",\"Y\")))","v":""},0]
[100,{"$f":"IF('Enrollment Form'!$A100<>\"\",\"Y\",\"N\")","v":"N"},{"$f":"IF(AND('Enrollment Form'!$B100=\"\",'Enrollment Form'!$C100<>\"\"),\"N\",IF($B93=\"N\",\"\",\"Y\"))","v":""},{"$f":"IF(OR($B93=\"N\",'Enrollment Form'!G100=\"\"),\"\",IF('Enrollment Form'!$B100<>\"Subscriber\",\"\",IF('Enrollment Form'!$G100='Enrollment Form'!$H100,\"Y\",\"N\")))","v":""},{"$f":"IF($B93=\"N\",\"\",IF(AND(COUNTIFS('Enrollment Form'!$H$11:$H$1000,'Enrollment Form'!$H100,'Enrollment Form'!$B$11:$B$1000,'Enrollment Form'!$B100)>1,'Enrollment Form'!$H100<>\"\"),\"N\",\"Y\"))","v":""},{"$f":"IF($B93=\"N\",\"\",IF(LEN('Enrollment Form'!$Y100)=0,\"\",IF(LEN('Enrollment Form'!$Y100)<>5,\"N\",\"Y\")))","v":""},{"$f":"IF($B93=\"N\",\"\",IF(LEN('Enrollment Form'!$AD100=0),\"\",IF(LEN('Enrollment Form'!$AD100)<>5,\"N\",\"Y\")))","v":""},{"$f":"IF($B93=\"N\",\"\",IF(LEN('Enrollment Form'!$BL100=0),\"\",IF(LEN('Enrollment Form'!$BL100)<>5,\"N\",\"Y\")))","v":""},{"$f":"IF($B93=\"N\",\"\",IF(LEN('Enrollment Form'!$AE100)=0,\"\",IF(LEN('Enrollment Form'!$AE100)<>10,\"N\",\"Y\")))","v":""},{"$f":"IF($B93=\"N\",\"\",IF(LEN('Enrollment Form'!$AF100)=0,\"\",IF(LEN('Enrollment Form'!$AF100)<>10,\"N\",\"Y\")))","v":""},{"$f":"IF('Enrollment Form'!$O100<>\"Graded\",\"-\",IF(AND('Enrollment Form'!$O100=\"Graded\",'Enrollment Form'!$AO100<>\"\"),\"Y\",\"N\"))","v":"-"},{"$f":"IF($B93=\"N\",\"\",IF(OR('Enrollment Form'!$B100<>\"Subscriber\",'Enrollment Form'!$C100=\"ROC\"),\"-\",IF(AND('Enrollment Form'!$B100=\"Subscriber\",'Enrollment Form'!$C100=\"Enroll\",'Enrollment Form'!$AJ100<>\"\"),\"Y\",\"N\")))","v":""},{"$f":"IF($B93=\"N\",\"\",IF(OR('Enrollment Form'!$B100<>\"Subscriber\",'Enrollment Form'!$C100=\"ROC\"),\"-\",IF(AND('Enrollment Form'!$B100=\"Subscriber\",'Enrollment Form'!$C100=\"Enroll\",'Enrollment Form'!$AK100<>\"\"),\"Y\",\"N\")))","v":""},{"$f":"IF($B93=\"N\",\"\",IF(OR('Enrollment Form'!$B100<>\"Subscriber\",'Enrollment Form'!$C100=\"ROC\"),\"-\",IF(AND('Enrollment Form'!$B100=\"Subscriber\",'Enrollment Form'!$C100=\"Enroll\",'Enrollment Form'!$AL100<>\"\"),\"Y\",\"N\")))","v":""},{"$f":"IF($B93=\"N\",\"\",IF(OR('Enrollment Form'!$B100<>\"Subscriber\",'Enrollment Form'!$C100=\"ROC\"),\"-\",IF(AND('Enrollment Form'!$B100=\"Subscriber\",'Enrollment Form'!$C100=\"Enroll\",'Enrollment Form'!$AM100<>\"\"),\"Y\",\"N\")))","v":""},{"$f":"IF($B93=\"N\",\"\",IF(OR('Enrollment Form'!$B100<>\"Subscriber\",'Enrollment Form'!$C100=\"ROC\"),\"-\",IF(AND('Enrollment Form'!$B100=\"Subscriber\",'Enrollment Form'!$C100=\"Enroll\",'Enrollment Form'!$AN100<>\"\"),\"Y\",\"N\")))","v":""},{"$f":"IF($B93=\"N\",\"\",IF(OR('Enrollment Form'!$B100<>\"Subscriber\",'Enrollment Form'!$C100=\"ROC\"),\"-\",IF(AND('Enrollment Form'!$B100=\"Subscriber\",'Enrollment Form'!$C100=\"Enroll\",'Enrollment Form'!$AP100<>\"\"),\"Y\",\"N\")))","v":""},{"$f":"IF($B93=\"N\",\"\",IF($Q93=\"-\",\"-\",IF(AND($Q93=\"Y\",'Enrollment Form'!$AP100=\"No\"),\"-\",IF(AND($Q93=\"Y\",'Enrollment Form'!$AP100=\"Yes\",'Enrollment Form'!$AQ100<>\"\"),\"Y\",\"N\"))))","v":""},{"$f":"IF($B93=\"N\",\"\",IF(OR('Enrollment Form'!$B100<>\"Subscriber\",'Enrollment Form'!$C100=\"ROC\"),\"-\",IF(AND('Enrollment Form'!$B100=\"Subscriber\",'Enrollment Form'!$C100=\"Enroll\",'Enrollment Form'!$CO100<>\"\"),\"Y\",\"N\")))","v":""},{"$f":"IF($B93=\"N\",\"\",IF($S93=\"-\",\"-\",IF(AND($S93=\"Y\",'Enrollment Form'!$CO100=\"No\"),\"-\",IF(AND($S93=\"Y\",'Enrollment Form'!$CO100=\"Yes\",'Enrollment Form'!$CP100<>\"\"),\"Y\",\"N\"))))","v":""},{"$f":"IF(OR('Enrollment Form'!$AV100=\"Yes\",'Enrollment Form'!$AV100=\"\"),\"-\",IF(AND('Enrollment Form'!$AV100=\"No\",ISERROR(FIND(\"HMO\",VLOOKUP('Enrollment Form'!G100,'Enrollment Form'!H$11:J$1000,3,FALSE),1))=FALSE,COUNTA('Enrollment Form'!$AW100:$AZ100)=4),\"Y\",\"N\"))","v":"-"},{"$f":"IF($B93=\"N\",\"\",IF('Enrollment Form'!$B100=\"Subscriber\",\"-\",IF(COUNTA('Enrollment Form'!$BE100,'Enrollment Form'!$BG100)=2,\"Y\",\"N\")))","v":""},{"$f":"IF($B93=\"N\",\"\",IF(OR('Enrollment Form'!$AU100=\"\",'Enrollment Form'!$AU100=\"No\"),\"-\",IF(AND('Enrollment Form'!$AU100=\"Yes\",COUNTA('Enrollment Form'!$CK100)=1),\"Y\",\"N\")))","v":""},{"$f":"IF(OR('Enrollment Form'!$CK100=\"\",'Enrollment Form'!$CK100=\"No\"),\"-\",IF(COUNTA('Enrollment Form'!$CM100:$CN100)=2,\"Y\",\"N\"))","v":"-"},{"$f":"IF($B93=\"N\",\"\",IF(COUNTIF('Enrollment Form'!$CZ100:$DO100,\"Other\")=COUNTA('Enrollment Form'!$DF100,'Enrollment Form'!$DA100,'Enrollment Form'!$DK100,'Enrollment Form'!$DP100),\"Y\",\"N\"))","v":""},{"$f":"IF($B93=\"N\",\"\",IF(OR('Enrollment Form'!B100<>\"Subscriber\",'Enrollment Form'!C100=\"ROC\",COUNTIF('Enrollment Form'!AS100:AT100,\"Yes\")>=1),\"-\",IF(AND('Enrollment Form'!C100=\"Enroll\",COUNTIF('Enrollment Form'!AS100:AT100,\"No\")=2,'Enrollment Form'!AU100=\"\"),\"N\",\"Y\")))","v":""},{"$f":"IF(OR(B93=\"N\",'Enrollment Form'!B100<>\"Subscriber\",'Enrollment Form'!C100=\"ROC\",'Enrollment Form'!O100<>\"Multiple of Salary\"),\"-\",IF(COUNTA('Enrollment Form'!T100:U100)<2,\"N\",\"Y\"))","v":"-"},{"$f":"IF(B93=\"N\",\"\",IF(OR('Enrollment Form'!C100=\"ROC\",'Enrollment Form'!B100<>\"Subscriber\",'Enrollment Form'!O100=\"Waive\",'Enrollment Form'!O100=\"\"),\"-\",IF('Enrollment Form'!P100=\"\",\"N\",\"Y\")))","v":""},{"$f":"IF($B93=\"N\",\"\",IF(AND('Enrollment Form'!$C100=\"ROC\",'Enrollment Form'!$DS100<>\"\"),\"Y\",IF(AND('Enrollment Form'!$C100=\"ROC\",'Enrollment Form'!$DS100=\"\"),\"N\",IF(AND('Enrollment Form'!$C100=\"Enroll\",'Enrollment Form'!$B100=\"Subscriber\",'Enrollment Form'!$CQ100=\"No\",'Enrollment Form'!$DS100=\"\"),\"N\",IF(AND('Enrollment Form'!$C100=\"Enroll\",'Enrollment Form'!$B100=\"Subscriber\",'Enrollment Form'!$CQ100=\"Yes\"),\"-\",\"Y\")))))","v":""},{"$f":"IF($B93=\"N\",\"\",IF(AND('Enrollment Form'!$C100=\"ROC\",'Enrollment Form'!$DT100<>\"\"),\"Y\",IF(AND('Enrollment Form'!$C100=\"ROC\",'Enrollment Form'!$DT100=\"\"),\"N\",IF(AND('Enrollment Form'!$C100=\"Enroll\",'Enrollment Form'!$B100=\"Subscriber\",'Enrollment Form'!$CQ100=\"No\",'Enrollment Form'!$DT100=\"\"),\"N\",IF(AND('Enrollment Form'!$C100=\"Enroll\",'Enrollment Form'!$B100=\"Subscriber\",'Enrollment Form'!$CQ100=\"Yes\"),\"-\",\"Y\")))))","v":""},{"$f":"IF('Enrollment Form'!AH100=\"\",\"\",IF(ISERROR(SEARCH(\".\",'Enrollment Form'!AH100,SEARCH(\"@\",'Enrollment Form'!AH100))),\"N\",\"Y\"))","v":""},{"$f":"IF(OR($B93=\"N\",'Enrollment Form'!$G100=\"\"),\"\",IF('Enrollment Form'!$B100<>\"Subscriber\",\"-\",IF(COUNTIF('Enrollment Form'!$AS100:$AT100,\"Yes\")=2,\"N\",\"Y\")))","v":""},{"$f":"IF(OR('Enrollment Form'!$CC100=\"\",'Enrollment Form'!$CC100=\"No\"),\"-\",IF(AND('Enrollment Form'!$CC100=\"Yes\",'Enrollment Form'!$CD100=\"\"),\"N\",\"Y\"))","v":"-"},{"$f":"IF(OR('Enrollment Form'!$CE100=\"\",'Enrollment Form'!$CE100=\"No\"),\"-\",IF(AND('Enrollment Form'!$CE100=\"Yes\",'Enrollment Form'!$CF100=\"\"),\"N\",\"Y\"))","v":"-"},{"$f":"IF(OR('Enrollment Form'!$CG100=\"\",'Enrollment Form'!$CG100=\"No\"),\"-\",IF(AND('Enrollment Form'!$CG100=\"Yes\",'Enrollment Form'!$CH100=\"\"),\"N\",\"Y\"))","v":"-"},{"$f":"IF(OR('Enrollment Form'!$CG100=\"\",'Enrollment Form'!$CG100=\"No\"),\"-\",IF(AND('Enrollment Form'!$CG100=\"Yes\",'Enrollment Form'!$CI100=\"\"),\"N\",\"Y\"))","v":"-"},{"$f":"IF('Enrollment Form'!B100<>\"Subscriber\",\"-\",IF(AND('Enrollment Form'!B100=\"Subscriber\",'Enrollment Form'!C100=\"Enroll\",'Enrollment Form'!AA100=\"\"),\"N\",\"Y\"))","v":"-"},{"$f":"IF(OR('Enrollment Form'!B100=\"Subscriber\",'Enrollment Form'!B100=\"\"),\"-\",IF('Enrollment Form'!BI100=\"\",\"N\",\"Y\"))","v":"-"},{"$f":"IF('Enrollment Form'!B100<>\"Subscriber\",\"-\",IF(AND('Enrollment Form'!B100=\"Subscriber\",'Enrollment Form'!G100=\"\"),\"N\",\"Y\"))","v":"-"},{"$f":"IF('Enrollment Form'!A100=\"\",\"\",IF('Enrollment Form'!B100=\"Subscriber\",\"-\",IF(AND('Enrollment Form'!B100<>\"Subscriber\",'Enrollment Form'!G100='Enrollment Form'!H100),\"N\",\"Y\")))","v":""},0]
[101,{"$f":"IF('Enrollment Form'!$A101<>\"\",\"Y\",\"N\")","v":"N"},{"$f":"IF(AND('Enrollment Form'!$B101=\"\",'Enrollment Form'!$C101<>\"\"),\"N\",IF($B94=\"N\",\"\",\"Y\"))","v":""},{"$f":"IF(OR($B94=\"N\",'Enrollment Form'!G101=\"\"),\"\",IF('Enrollment Form'!$B101<>\"Subscriber\",\"\",IF('Enrollment Form'!$G101='Enrollment Form'!$H101,\"Y\",\"N\")))","v":""},{"$f":"IF($B94=\"N\",\"\",IF(AND(COUNTIFS('Enrollment Form'!$H$11:$H$1000,'Enrollment Form'!$H101,'Enrollment Form'!$B$11:$B$1000,'Enrollment Form'!$B101)>1,'Enrollment Form'!$H101<>\"\"),\"N\",\"Y\"))","v":""},{"$f":"IF($B94=\"N\",\"\",IF(LEN('Enrollment Form'!$Y101)=0,\"\",IF(LEN('Enrollment Form'!$Y101)<>5,\"N\",\"Y\")))","v":""},{"$f":"IF($B94=\"N\",\"\",IF(LEN('Enrollment Form'!$AD101=0),\"\",IF(LEN('Enrollment Form'!$AD101)<>5,\"N\",\"Y\")))","v":""},{"$f":"IF($B94=\"N\",\"\",IF(LEN('Enrollment Form'!$BL101=0),\"\",IF(LEN('Enrollment Form'!$BL101)<>5,\"N\",\"Y\")))","v":""},{"$f":"IF($B94=\"N\",\"\",IF(LEN('Enrollment Form'!$AE101)=0,\"\",IF(LEN('Enrollment Form'!$AE101)<>10,\"N\",\"Y\")))","v":""},{"$f":"IF($B94=\"N\",\"\",IF(LEN('Enrollment Form'!$AF101)=0,\"\",IF(LEN('Enrollment Form'!$AF101)<>10,\"N\",\"Y\")))","v":""},{"$f":"IF('Enrollment Form'!$O101<>\"Graded\",\"-\",IF(AND('Enrollment Form'!$O101=\"Graded\",'Enrollment Form'!$AO101<>\"\"),\"Y\",\"N\"))","v":"-"},{"$f":"IF($B94=\"N\",\"\",IF(OR('Enrollment Form'!$B101<>\"Subscriber\",'Enrollment Form'!$C101=\"ROC\"),\"-\",IF(AND('Enrollment Form'!$B101=\"Subscriber\",'Enrollment Form'!$C101=\"Enroll\",'Enrollment Form'!$AJ101<>\"\"),\"Y\",\"N\")))","v":""},{"$f":"IF($B94=\"N\",\"\",IF(OR('Enrollment Form'!$B101<>\"Subscriber\",'Enrollment Form'!$C101=\"ROC\"),\"-\",IF(AND('Enrollment Form'!$B101=\"Subscriber\",'Enrollment Form'!$C101=\"Enroll\",'Enrollment Form'!$AK101<>\"\"),\"Y\",\"N\")))","v":""},{"$f":"IF($B94=\"N\",\"\",IF(OR('Enrollment Form'!$B101<>\"Subscriber\",'Enrollment Form'!$C101=\"ROC\"),\"-\",IF(AND('Enrollment Form'!$B101=\"Subscriber\",'Enrollment Form'!$C101=\"Enroll\",'Enrollment Form'!$AL101<>\"\"),\"Y\",\"N\")))","v":""},{"$f":"IF($B94=\"N\",\"\",IF(OR('Enrollment Form'!$B101<>\"Subscriber\",'Enrollment Form'!$C101=\"ROC\"),\"-\",IF(AND('Enrollment Form'!$B101=\"Subscriber\",'Enrollment Form'!$C101=\"Enroll\",'Enrollment Form'!$AM101<>\"\"),\"Y\",\"N\")))","v":""},{"$f":"IF($B94=\"N\",\"\",IF(OR('Enrollment Form'!$B101<>\"Subscriber\",'Enrollment Form'!$C101=\"ROC\"),\"-\",IF(AND('Enrollment Form'!$B101=\"Subscriber\",'Enrollment Form'!$C101=\"Enroll\",'Enrollment Form'!$AN101<>\"\"),\"Y\",\"N\")))","v":""},{"$f":"IF($B94=\"N\",\"\",IF(OR('Enrollment Form'!$B101<>\"Subscriber\",'Enrollment Form'!$C101=\"ROC\"),\"-\",IF(AND('Enrollment Form'!$B101=\"Subscriber\",'Enrollment Form'!$C101=\"Enroll\",'Enrollment Form'!$AP101<>\"\"),\"Y\",\"N\")))","v":""},{"$f":"IF($B94=\"N\",\"\",IF($Q94=\"-\",\"-\",IF(AND($Q94=\"Y\",'Enrollment Form'!$AP101=\"No\"),\"-\",IF(AND($Q94=\"Y\",'Enrollment Form'!$AP101=\"Yes\",'Enrollment Form'!$AQ101<>\"\"),\"Y\",\"N\"))))","v":""},{"$f":"IF($B94=\"N\",\"\",IF(OR('Enrollment Form'!$B101<>\"Subscriber\",'Enrollment Form'!$C101=\"ROC\"),\"-\",IF(AND('Enrollment Form'!$B101=\"Subscriber\",'Enrollment Form'!$C101=\"Enroll\",'Enrollment Form'!$CO101<>\"\"),\"Y\",\"N\")))","v":""},{"$f":"IF($B94=\"N\",\"\",IF($S94=\"-\",\"-\",IF(AND($S94=\"Y\",'Enrollment Form'!$CO101=\"No\"),\"-\",IF(AND($S94=\"Y\",'Enrollment Form'!$CO101=\"Yes\",'Enrollment Form'!$CP101<>\"\"),\"Y\",\"N\"))))","v":""},{"$f":"IF(OR('Enrollment Form'!$AV101=\"Yes\",'Enrollment Form'!$AV101=\"\"),\"-\",IF(AND('Enrollment Form'!$AV101=\"No\",ISERROR(FIND(\"HMO\",VLOOKUP('Enrollment Form'!G101,'Enrollment Form'!H$11:J$1000,3,FALSE),1))=FALSE,COUNTA('Enrollment Form'!$AW101:$AZ101)=4),\"Y\",\"N\"))","v":"-"},{"$f":"IF($B94=\"N\",\"\",IF('Enrollment Form'!$B101=\"Subscriber\",\"-\",IF(COUNTA('Enrollment Form'!$BE101,'Enrollment Form'!$BG101)=2,\"Y\",\"N\")))","v":""},{"$f":"IF($B94=\"N\",\"\",IF(OR('Enrollment Form'!$AU101=\"\",'Enrollment Form'!$AU101=\"No\"),\"-\",IF(AND('Enrollment Form'!$AU101=\"Yes\",COUNTA('Enrollment Form'!$CK101)=1),\"Y\",\"N\")))","v":""},{"$f":"IF(OR('Enrollment Form'!$CK101=\"\",'Enrollment Form'!$CK101=\"No\"),\"-\",IF(COUNTA('Enrollment Form'!$CM101:$CN101)=2,\"Y\",\"N\"))","v":"-"},{"$f":"IF($B94=\"N\",\"\",IF(COUNTIF('Enrollment Form'!$CZ101:$DO101,\"Other\")=COUNTA('Enrollment Form'!$DF101,'Enrollment Form'!$DA101,'Enrollment Form'!$DK101,'Enrollment Form'!$DP101),\"Y\",\"N\"))","v":""},{"$f":"IF($B94=\"N\",\"\",IF(OR('Enrollment Form'!B101<>\"Subscriber\",'Enrollment Form'!C101=\"ROC\",COUNTIF('Enrollment Form'!AS101:AT101,\"Yes\")>=1),\"-\",IF(AND('Enrollment Form'!C101=\"Enroll\",COUNTIF('Enrollment Form'!AS101:AT101,\"No\")=2,'Enrollment Form'!AU101=\"\"),\"N\",\"Y\")))","v":""},{"$f":"IF(OR(B94=\"N\",'Enrollment Form'!B101<>\"Subscriber\",'Enrollment Form'!C101=\"ROC\",'Enrollment Form'!O101<>\"Multiple of Salary\"),\"-\",IF(COUNTA('Enrollment Form'!T101:U101)<2,\"N\",\"Y\"))","v":"-"},{"$f":"IF(B94=\"N\",\"\",IF(OR('Enrollment Form'!C101=\"ROC\",'Enrollment Form'!B101<>\"Subscriber\",'Enrollment Form'!O101=\"Waive\",'Enrollment Form'!O101=\"\"),\"-\",IF('Enrollment Form'!P101=\"\",\"N\",\"Y\")))","v":""},{"$f":"IF($B94=\"N\",\"\",IF(AND('Enrollment Form'!$C101=\"ROC\",'Enrollment Form'!$DS101<>\"\"),\"Y\",IF(AND('Enrollment Form'!$C101=\"ROC\",'Enrollment Form'!$DS101=\"\"),\"N\",IF(AND('Enrollment Form'!$C101=\"Enroll\",'Enrollment Form'!$B101=\"Subscriber\",'Enrollment Form'!$CQ101=\"No\",'Enrollment Form'!$DS101=\"\"),\"N\",IF(AND('Enrollment Form'!$C101=\"Enroll\",'Enrollment Form'!$B101=\"Subscriber\",'Enrollment Form'!$CQ101=\"Yes\"),\"-\",\"Y\")))))","v":""},{"$f":"IF($B94=\"N\",\"\",IF(AND('Enrollment Form'!$C101=\"ROC\",'Enrollment Form'!$DT101<>\"\"),\"Y\",IF(AND('Enrollment Form'!$C101=\"ROC\",'Enrollment Form'!$DT101=\"\"),\"N\",IF(AND('Enrollment Form'!$C101=\"Enroll\",'Enrollment Form'!$B101=\"Subscriber\",'Enrollment Form'!$CQ101=\"No\",'Enrollment Form'!$DT101=\"\"),\"N\",IF(AND('Enrollment Form'!$C101=\"Enroll\",'Enrollment Form'!$B101=\"Subscriber\",'Enrollment Form'!$CQ101=\"Yes\"),\"-\",\"Y\")))))","v":""},{"$f":"IF('Enrollment Form'!AH101=\"\",\"\",IF(ISERROR(SEARCH(\".\",'Enrollment Form'!AH101,SEARCH(\"@\",'Enrollment Form'!AH101))),\"N\",\"Y\"))","v":""},{"$f":"IF(OR($B94=\"N\",'Enrollment Form'!$G101=\"\"),\"\",IF('Enrollment Form'!$B101<>\"Subscriber\",\"-\",IF(COUNTIF('Enrollment Form'!$AS101:$AT101,\"Yes\")=2,\"N\",\"Y\")))","v":""},{"$f":"IF(OR('Enrollment Form'!$CC101=\"\",'Enrollment Form'!$CC101=\"No\"),\"-\",IF(AND('Enrollment Form'!$CC101=\"Yes\",'Enrollment Form'!$CD101=\"\"),\"N\",\"Y\"))","v":"-"},{"$f":"IF(OR('Enrollment Form'!$CE101=\"\",'Enrollment Form'!$CE101=\"No\"),\"-\",IF(AND('Enrollment Form'!$CE101=\"Yes\",'Enrollment Form'!$CF101=\"\"),\"N\",\"Y\"))","v":"-"},{"$f":"IF(OR('Enrollment Form'!$CG101=\"\",'Enrollment Form'!$CG101=\"No\"),\"-\",IF(AND('Enrollment Form'!$CG101=\"Yes\",'Enrollment Form'!$CH101=\"\"),\"N\",\"Y\"))","v":"-"},{"$f":"IF(OR('Enrollment Form'!$CG101=\"\",'Enrollment Form'!$CG101=\"No\"),\"-\",IF(AND('Enrollment Form'!$CG101=\"Yes\",'Enrollment Form'!$CI101=\"\"),\"N\",\"Y\"))","v":"-"},{"$f":"IF('Enrollment Form'!B101<>\"Subscriber\",\"-\",IF(AND('Enrollment Form'!B101=\"Subscriber\",'Enrollment Form'!C101=\"Enroll\",'Enrollment Form'!AA101=\"\"),\"N\",\"Y\"))","v":"-"},{"$f":"IF(OR('Enrollment Form'!B101=\"Subscriber\",'Enrollment Form'!B101=\"\"),\"-\",IF('Enrollment Form'!BI101=\"\",\"N\",\"Y\"))","v":"-"},{"$f":"IF('Enrollment Form'!B101<>\"Subscriber\",\"-\",IF(AND('Enrollment Form'!B101=\"Subscriber\",'Enrollment Form'!G101=\"\"),\"N\",\"Y\"))","v":"-"},{"$f":"IF('Enrollment Form'!A101=\"\",\"\",IF('Enrollment Form'!B101=\"Subscriber\",\"-\",IF(AND('Enrollment Form'!B101<>\"Subscriber\",'Enrollment Form'!G101='Enrollment Form'!H101),\"N\",\"Y\")))","v":""},0]
[102,{"$f":"IF('Enrollment Form'!$A102<>\"\",\"Y\",\"N\")","v":"N"},{"$f":"IF(AND('Enrollment Form'!$B102=\"\",'Enrollment Form'!$C102<>\"\"),\"N\",IF($B95=\"N\",\"\",\"Y\"))","v":""},{"$f":"IF(OR($B95=\"N\",'Enrollment Form'!G102=\"\"),\"\",IF('Enrollment Form'!$B102<>\"Subscriber\",\"\",IF('Enrollment Form'!$G102='Enrollment Form'!$H102,\"Y\",\"N\")))","v":""},{"$f":"IF($B95=\"N\",\"\",IF(AND(COUNTIFS('Enrollment Form'!$H$11:$H$1000,'Enrollment Form'!$H102,'Enrollment Form'!$B$11:$B$1000,'Enrollment Form'!$B102)>1,'Enrollment Form'!$H102<>\"\"),\"N\",\"Y\"))","v":""},{"$f":"IF($B95=\"N\",\"\",IF(LEN('Enrollment Form'!$Y102)=0,\"\",IF(LEN('Enrollment Form'!$Y102)<>5,\"N\",\"Y\")))","v":""},{"$f":"IF($B95=\"N\",\"\",IF(LEN('Enrollment Form'!$AD102=0),\"\",IF(LEN('Enrollment Form'!$AD102)<>5,\"N\",\"Y\")))","v":""},{"$f":"IF($B95=\"N\",\"\",IF(LEN('Enrollment Form'!$BL102=0),\"\",IF(LEN('Enrollment Form'!$BL102)<>5,\"N\",\"Y\")))","v":""},{"$f":"IF($B95=\"N\",\"\",IF(LEN('Enrollment Form'!$AE102)=0,\"\",IF(LEN('Enrollment Form'!$AE102)<>10,\"N\",\"Y\")))","v":""},{"$f":"IF($B95=\"N\",\"\",IF(LEN('Enrollment Form'!$AF102)=0,\"\",IF(LEN('Enrollment Form'!$AF102)<>10,\"N\",\"Y\")))","v":""},{"$f":"IF('Enrollment Form'!$O102<>\"Graded\",\"-\",IF(AND('Enrollment Form'!$O102=\"Graded\",'Enrollment Form'!$AO102<>\"\"),\"Y\",\"N\"))","v":"-"},{"$f":"IF($B95=\"N\",\"\",IF(OR('Enrollment Form'!$B102<>\"Subscriber\",'Enrollment Form'!$C102=\"ROC\"),\"-\",IF(AND('Enrollment Form'!$B102=\"Subscriber\",'Enrollment Form'!$C102=\"Enroll\",'Enrollment Form'!$AJ102<>\"\"),\"Y\",\"N\")))","v":""},{"$f":"IF($B95=\"N\",\"\",IF(OR('Enrollment Form'!$B102<>\"Subscriber\",'Enrollment Form'!$C102=\"ROC\"),\"-\",IF(AND('Enrollment Form'!$B102=\"Subscriber\",'Enrollment Form'!$C102=\"Enroll\",'Enrollment Form'!$AK102<>\"\"),\"Y\",\"N\")))","v":""},{"$f":"IF($B95=\"N\",\"\",IF(OR('Enrollment Form'!$B102<>\"Subscriber\",'Enrollment Form'!$C102=\"ROC\"),\"-\",IF(AND('Enrollment Form'!$B102=\"Subscriber\",'Enrollment Form'!$C102=\"Enroll\",'Enrollment Form'!$AL102<>\"\"),\"Y\",\"N\")))","v":""},{"$f":"IF($B95=\"N\",\"\",IF(OR('Enrollment Form'!$B102<>\"Subscriber\",'Enrollment Form'!$C102=\"ROC\"),\"-\",IF(AND('Enrollment Form'!$B102=\"Subscriber\",'Enrollment Form'!$C102=\"Enroll\",'Enrollment Form'!$AM102<>\"\"),\"Y\",\"N\")))","v":""},{"$f":"IF($B95=\"N\",\"\",IF(OR('Enrollment Form'!$B102<>\"Subscriber\",'Enrollment Form'!$C102=\"ROC\"),\"-\",IF(AND('Enrollment Form'!$B102=\"Subscriber\",'Enrollment Form'!$C102=\"Enroll\",'Enrollment Form'!$AN102<>\"\"),\"Y\",\"N\")))","v":""},{"$f":"IF($B95=\"N\",\"\",IF(OR('Enrollment Form'!$B102<>\"Subscriber\",'Enrollment Form'!$C102=\"ROC\"),\"-\",IF(AND('Enrollment Form'!$B102=\"Subscriber\",'Enrollment Form'!$C102=\"Enroll\",'Enrollment Form'!$AP102<>\"\"),\"Y\",\"N\")))","v":""},{"$f":"IF($B95=\"N\",\"\",IF($Q95=\"-\",\"-\",IF(AND($Q95=\"Y\",'Enrollment Form'!$AP102=\"No\"),\"-\",IF(AND($Q95=\"Y\",'Enrollment Form'!$AP102=\"Yes\",'Enrollment Form'!$AQ102<>\"\"),\"Y\",\"N\"))))","v":""},{"$f":"IF($B95=\"N\",\"\",IF(OR('Enrollment Form'!$B102<>\"Subscriber\",'Enrollment Form'!$C102=\"ROC\"),\"-\",IF(AND('Enrollment Form'!$B102=\"Subscriber\",'Enrollment Form'!$C102=\"Enroll\",'Enrollment Form'!$CO102<>\"\"),\"Y\",\"N\")))","v":""},{"$f":"IF($B95=\"N\",\"\",IF($S95=\"-\",\"-\",IF(AND($S95=\"Y\",'Enrollment Form'!$CO102=\"No\"),\"-\",IF(AND($S95=\"Y\",'Enrollment Form'!$CO102=\"Yes\",'Enrollment Form'!$CP102<>\"\"),\"Y\",\"N\"))))","v":""},{"$f":"IF(OR('Enrollment Form'!$AV102=\"Yes\",'Enrollment Form'!$AV102=\"\"),\"-\",IF(AND('Enrollment Form'!$AV102=\"No\",ISERROR(FIND(\"HMO\",VLOOKUP('Enrollment Form'!G102,'Enrollment Form'!H$11:J$1000,3,FALSE),1))=FALSE,COUNTA('Enrollment Form'!$AW102:$AZ102)=4),\"Y\",\"N\"))","v":"-"},{"$f":"IF($B95=\"N\",\"\",IF('Enrollment Form'!$B102=\"Subscriber\",\"-\",IF(COUNTA('Enrollment Form'!$BE102,'Enrollment Form'!$BG102)=2,\"Y\",\"N\")))","v":""},{"$f":"IF($B95=\"N\",\"\",IF(OR('Enrollment Form'!$AU102=\"\",'Enrollment Form'!$AU102=\"No\"),\"-\",IF(AND('Enrollment Form'!$AU102=\"Yes\",COUNTA('Enrollment Form'!$CK102)=1),\"Y\",\"N\")))","v":""},{"$f":"IF(OR('Enrollment Form'!$CK102=\"\",'Enrollment Form'!$CK102=\"No\"),\"-\",IF(COUNTA('Enrollment Form'!$CM102:$CN102)=2,\"Y\",\"N\"))","v":"-"},{"$f":"IF($B95=\"N\",\"\",IF(COUNTIF('Enrollment Form'!$CZ102:$DO102,\"Other\")=COUNTA('Enrollment Form'!$DF102,'Enrollment Form'!$DA102,'Enrollment Form'!$DK102,'Enrollment Form'!$DP102),\"Y\",\"N\"))","v":""},{"$f":"IF($B95=\"N\",\"\",IF(OR('Enrollment Form'!B102<>\"Subscriber\",'Enrollment Form'!C102=\"ROC\",COUNTIF('Enrollment Form'!AS102:AT102,\"Yes\")>=1),\"-\",IF(AND('Enrollment Form'!C102=\"Enroll\",COUNTIF('Enrollment Form'!AS102:AT102,\"No\")=2,'Enrollment Form'!AU102=\"\"),\"N\",\"Y\")))","v":""},{"$f":"IF(OR(B95=\"N\",'Enrollment Form'!B102<>\"Subscriber\",'Enrollment Form'!C102=\"ROC\",'Enrollment Form'!O102<>\"Multiple of Salary\"),\"-\",IF(COUNTA('Enrollment Form'!T102:U102)<2,\"N\",\"Y\"))","v":"-"},{"$f":"IF(B95=\"N\",\"\",IF(OR('Enrollment Form'!C102=\"ROC\",'Enrollment Form'!B102<>\"Subscriber\",'Enrollment Form'!O102=\"Waive\",'Enrollment Form'!O102=\"\"),\"-\",IF('Enrollment Form'!P102=\"\",\"N\",\"Y\")))","v":""},{"$f":"IF($B95=\"N\",\"\",IF(AND('Enrollment Form'!$C102=\"ROC\",'Enrollment Form'!$DS102<>\"\"),\"Y\",IF(AND('Enrollment Form'!$C102=\"ROC\",'Enrollment Form'!$DS102=\"\"),\"N\",IF(AND('Enrollment Form'!$C102=\"Enroll\",'Enrollment Form'!$B102=\"Subscriber\",'Enrollment Form'!$CQ102=\"No\",'Enrollment Form'!$DS102=\"\"),\"N\",IF(AND('Enrollment Form'!$C102=\"Enroll\",'Enrollment Form'!$B102=\"Subscriber\",'Enrollment Form'!$CQ102=\"Yes\"),\"-\",\"Y\")))))","v":""},{"$f":"IF($B95=\"N\",\"\",IF(AND('Enrollment Form'!$C102=\"ROC\",'Enrollment Form'!$DT102<>\"\"),\"Y\",IF(AND('Enrollment Form'!$C102=\"ROC\",'Enrollment Form'!$DT102=\"\"),\"N\",IF(AND('Enrollment Form'!$C102=\"Enroll\",'Enrollment Form'!$B102=\"Subscriber\",'Enrollment Form'!$CQ102=\"No\",'Enrollment Form'!$DT102=\"\"),\"N\",IF(AND('Enrollment Form'!$C102=\"Enroll\",'Enrollment Form'!$B102=\"Subscriber\",'Enrollment Form'!$CQ102=\"Yes\"),\"-\",\"Y\")))))","v":""},{"$f":"IF('Enrollment Form'!AH102=\"\",\"\",IF(ISERROR(SEARCH(\".\",'Enrollment Form'!AH102,SEARCH(\"@\",'Enrollment Form'!AH102))),\"N\",\"Y\"))","v":""},{"$f":"IF(OR($B95=\"N\",'Enrollment Form'!$G102=\"\"),\"\",IF('Enrollment Form'!$B102<>\"Subscriber\",\"-\",IF(COUNTIF('Enrollment Form'!$AS102:$AT102,\"Yes\")=2,\"N\",\"Y\")))","v":""},{"$f":"IF(OR('Enrollment Form'!$CC102=\"\",'Enrollment Form'!$CC102=\"No\"),\"-\",IF(AND('Enrollment Form'!$CC102=\"Yes\",'Enrollment Form'!$CD102=\"\"),\"N\",\"Y\"))","v":"-"},{"$f":"IF(OR('Enrollment Form'!$CE102=\"\",'Enrollment Form'!$CE102=\"No\"),\"-\",IF(AND('Enrollment Form'!$CE102=\"Yes\",'Enrollment Form'!$CF102=\"\"),\"N\",\"Y\"))","v":"-"},{"$f":"IF(OR('Enrollment Form'!$CG102=\"\",'Enrollment Form'!$CG102=\"No\"),\"-\",IF(AND('Enrollment Form'!$CG102=\"Yes\",'Enrollment Form'!$CH102=\"\"),\"N\",\"Y\"))","v":"-"},{"$f":"IF(OR('Enrollment Form'!$CG102=\"\",'Enrollment Form'!$CG102=\"No\"),\"-\",IF(AND('Enrollment Form'!$CG102=\"Yes\",'Enrollment Form'!$CI102=\"\"),\"N\",\"Y\"))","v":"-"},{"$f":"IF('Enrollment Form'!B102<>\"Subscriber\",\"-\",IF(AND('Enrollment Form'!B102=\"Subscriber\",'Enrollment Form'!C102=\"Enroll\",'Enrollment Form'!AA102=\"\"),\"N\",\"Y\"))","v":"-"},{"$f":"IF(OR('Enrollment Form'!B102=\"Subscriber\",'Enrollment Form'!B102=\"\"),\"-\",IF('Enrollment Form'!BI102=\"\",\"N\",\"Y\"))","v":"-"},{"$f":"IF('Enrollment Form'!B102<>\"Subscriber\",\"-\",IF(AND('Enrollment Form'!B102=\"Subscriber\",'Enrollment Form'!G102=\"\"),\"N\",\"Y\"))","v":"-"},{"$f":"IF('Enrollment Form'!A102=\"\",\"\",IF('Enrollment Form'!B102=\"Subscriber\",\"-\",IF(AND('Enrollment Form'!B102<>\"Subscriber\",'Enrollment Form'!G102='Enrollment Form'!H102),\"N\",\"Y\")))","v":""},0]
[103,{"$f":"IF('Enrollment Form'!$A103<>\"\",\"Y\",\"N\")","v":"N"},{"$f":"IF(AND('Enrollment Form'!$B103=\"\",'Enrollment Form'!$C103<>\"\"),\"N\",IF($B96=\"N\",\"\",\"Y\"))","v":""},{"$f":"IF(OR($B96=\"N\",'Enrollment Form'!G103=\"\"),\"\",IF('Enrollment Form'!$B103<>\"Subscriber\",\"\",IF('Enrollment Form'!$G103='Enrollment Form'!$H103,\"Y\",\"N\")))","v":""},{"$f":"IF($B96=\"N\",\"\",IF(AND(COUNTIFS('Enrollment Form'!$H$11:$H$1000,'Enrollment Form'!$H103,'Enrollment Form'!$B$11:$B$1000,'Enrollment Form'!$B103)>1,'Enrollment Form'!$H103<>\"\"),\"N\",\"Y\"))","v":""},{"$f":"IF($B96=\"N\",\"\",IF(LEN('Enrollment Form'!$Y103)=0,\"\",IF(LEN('Enrollment Form'!$Y103)<>5,\"N\",\"Y\")))","v":""},{"$f":"IF($B96=\"N\",\"\",IF(LEN('Enrollment Form'!$AD103=0),\"\",IF(LEN('Enrollment Form'!$AD103)<>5,\"N\",\"Y\")))","v":""},{"$f":"IF($B96=\"N\",\"\",IF(LEN('Enrollment Form'!$BL103=0),\"\",IF(LEN('Enrollment Form'!$BL103)<>5,\"N\",\"Y\")))","v":""},{"$f":"IF($B96=\"N\",\"\",IF(LEN('Enrollment Form'!$AE103)=0,\"\",IF(LEN('Enrollment Form'!$AE103)<>10,\"N\",\"Y\")))","v":""},{"$f":"IF($B96=\"N\",\"\",IF(LEN('Enrollment Form'!$AF103)=0,\"\",IF(LEN('Enrollment Form'!$AF103)<>10,\"N\",\"Y\")))","v":""},{"$f":"IF('Enrollment Form'!$O103<>\"Graded\",\"-\",IF(AND('Enrollment Form'!$O103=\"Graded\",'Enrollment Form'!$AO103<>\"\"),\"Y\",\"N\"))","v":"-"},{"$f":"IF($B96=\"N\",\"\",IF(OR('Enrollment Form'!$B103<>\"Subscriber\",'Enrollment Form'!$C103=\"ROC\"),\"-\",IF(AND('Enrollment Form'!$B103=\"Subscriber\",'Enrollment Form'!$C103=\"Enroll\",'Enrollment Form'!$AJ103<>\"\"),\"Y\",\"N\")))","v":""},{"$f":"IF($B96=\"N\",\"\",IF(OR('Enrollment Form'!$B103<>\"Subscriber\",'Enrollment Form'!$C103=\"ROC\"),\"-\",IF(AND('Enrollment Form'!$B103=\"Subscriber\",'Enrollment Form'!$C103=\"Enroll\",'Enrollment Form'!$AK103<>\"\"),\"Y\",\"N\")))","v":""},{"$f":"IF($B96=\"N\",\"\",IF(OR('Enrollment Form'!$B103<>\"Subscriber\",'Enrollment Form'!$C103=\"ROC\"),\"-\",IF(AND('Enrollment Form'!$B103=\"Subscriber\",'Enrollment Form'!$C103=\"Enroll\",'Enrollment Form'!$AL103<>\"\"),\"Y\",\"N\")))","v":""},{"$f":"IF($B96=\"N\",\"\",IF(OR('Enrollment Form'!$B103<>\"Subscriber\",'Enrollment Form'!$C103=\"ROC\"),\"-\",IF(AND('Enrollment Form'!$B103=\"Subscriber\",'Enrollment Form'!$C103=\"Enroll\",'Enrollment Form'!$AM103<>\"\"),\"Y\",\"N\")))","v":""},{"$f":"IF($B96=\"N\",\"\",IF(OR('Enrollment Form'!$B103<>\"Subscriber\",'Enrollment Form'!$C103=\"ROC\"),\"-\",IF(AND('Enrollment Form'!$B103=\"Subscriber\",'Enrollment Form'!$C103=\"Enroll\",'Enrollment Form'!$AN103<>\"\"),\"Y\",\"N\")))","v":""},{"$f":"IF($B96=\"N\",\"\",IF(OR('Enrollment Form'!$B103<>\"Subscriber\",'Enrollment Form'!$C103=\"ROC\"),\"-\",IF(AND('Enrollment Form'!$B103=\"Subscriber\",'Enrollment Form'!$C103=\"Enroll\",'Enrollment Form'!$AP103<>\"\"),\"Y\",\"N\")))","v":""},{"$f":"IF($B96=\"N\",\"\",IF($Q96=\"-\",\"-\",IF(AND($Q96=\"Y\",'Enrollment Form'!$AP103=\"No\"),\"-\",IF(AND($Q96=\"Y\",'Enrollment Form'!$AP103=\"Yes\",'Enrollment Form'!$AQ103<>\"\"),\"Y\",\"N\"))))","v":""},{"$f":"IF($B96=\"N\",\"\",IF(OR('Enrollment Form'!$B103<>\"Subscriber\",'Enrollment Form'!$C103=\"ROC\"),\"-\",IF(AND('Enrollment Form'!$B103=\"Subscriber\",'Enrollment Form'!$C103=\"Enroll\",'Enrollment Form'!$CO103<>\"\"),\"Y\",\"N\")))","v":""},{"$f":"IF($B96=\"N\",\"\",IF($S96=\"-\",\"-\",IF(AND($S96=\"Y\",'Enrollment Form'!$CO103=\"No\"),\"-\",IF(AND($S96=\"Y\",'Enrollment Form'!$CO103=\"Yes\",'Enrollment Form'!$CP103<>\"\"),\"Y\",\"N\"))))","v":""},{"$f":"IF(OR('Enrollment Form'!$AV103=\"Yes\",'Enrollment Form'!$AV103=\"\"),\"-\",IF(AND('Enrollment Form'!$AV103=\"No\",ISERROR(FIND(\"HMO\",VLOOKUP('Enrollment Form'!G103,'Enrollment Form'!H$11:J$1000,3,FALSE),1))=FALSE,COUNTA('Enrollment Form'!$AW103:$AZ103)=4),\"Y\",\"N\"))","v":"-"},{"$f":"IF($B96=\"N\",\"\",IF('Enrollment Form'!$B103=\"Subscriber\",\"-\",IF(COUNTA('Enrollment Form'!$BE103,'Enrollment Form'!$BG103)=2,\"Y\",\"N\")))","v":""},{"$f":"IF($B96=\"N\",\"\",IF(OR('Enrollment Form'!$AU103=\"\",'Enrollment Form'!$AU103=\"No\"),\"-\",IF(AND('Enrollment Form'!$AU103=\"Yes\",COUNTA('Enrollment Form'!$CK103)=1),\"Y\",\"N\")))","v":""},{"$f":"IF(OR('Enrollment Form'!$CK103=\"\",'Enrollment Form'!$CK103=\"No\"),\"-\",IF(COUNTA('Enrollment Form'!$CM103:$CN103)=2,\"Y\",\"N\"))","v":"-"},{"$f":"IF($B96=\"N\",\"\",IF(COUNTIF('Enrollment Form'!$CZ103:$DO103,\"Other\")=COUNTA('Enrollment Form'!$DF103,'Enrollment Form'!$DA103,'Enrollment Form'!$DK103,'Enrollment Form'!$DP103),\"Y\",\"N\"))","v":""},{"$f":"IF($B96=\"N\",\"\",IF(OR('Enrollment Form'!B103<>\"Subscriber\",'Enrollment Form'!C103=\"ROC\",COUNTIF('Enrollment Form'!AS103:AT103,\"Yes\")>=1),\"-\",IF(AND('Enrollment Form'!C103=\"Enroll\",COUNTIF('Enrollment Form'!AS103:AT103,\"No\")=2,'Enrollment Form'!AU103=\"\"),\"N\",\"Y\")))","v":""},{"$f":"IF(OR(B96=\"N\",'Enrollment Form'!B103<>\"Subscriber\",'Enrollment Form'!C103=\"ROC\",'Enrollment Form'!O103<>\"Multiple of Salary\"),\"-\",IF(COUNTA('Enrollment Form'!T103:U103)<2,\"N\",\"Y\"))","v":"-"},{"$f":"IF(B96=\"N\",\"\",IF(OR('Enrollment Form'!C103=\"ROC\",'Enrollment Form'!B103<>\"Subscriber\",'Enrollment Form'!O103=\"Waive\",'Enrollment Form'!O103=\"\"),\"-\",IF('Enrollment Form'!P103=\"\",\"N\",\"Y\")))","v":""},{"$f":"IF($B96=\"N\",\"\",IF(AND('Enrollment Form'!$C103=\"ROC\",'Enrollment Form'!$DS103<>\"\"),\"Y\",IF(AND('Enrollment Form'!$C103=\"ROC\",'Enrollment Form'!$DS103=\"\"),\"N\",IF(AND('Enrollment Form'!$C103=\"Enroll\",'Enrollment Form'!$B103=\"Subscriber\",'Enrollment Form'!$CQ103=\"No\",'Enrollment Form'!$DS103=\"\"),\"N\",IF(AND('Enrollment Form'!$C103=\"Enroll\",'Enrollment Form'!$B103=\"Subscriber\",'Enrollment Form'!$CQ103=\"Yes\"),\"-\",\"Y\")))))","v":""},{"$f":"IF($B96=\"N\",\"\",IF(AND('Enrollment Form'!$C103=\"ROC\",'Enrollment Form'!$DT103<>\"\"),\"Y\",IF(AND('Enrollment Form'!$C103=\"ROC\",'Enrollment Form'!$DT103=\"\"),\"N\",IF(AND('Enrollment Form'!$C103=\"Enroll\",'Enrollment Form'!$B103=\"Subscriber\",'Enrollment Form'!$CQ103=\"No\",'Enrollment Form'!$DT103=\"\"),\"N\",IF(AND('Enrollment Form'!$C103=\"Enroll\",'Enrollment Form'!$B103=\"Subscriber\",'Enrollment Form'!$CQ103=\"Yes\"),\"-\",\"Y\")))))","v":""},{"$f":"IF('Enrollment Form'!AH103=\"\",\"\",IF(ISERROR(SEARCH(\".\",'Enrollment Form'!AH103,SEARCH(\"@\",'Enrollment Form'!AH103))),\"N\",\"Y\"))","v":""},{"$f":"IF(OR($B96=\"N\",'Enrollment Form'!$G103=\"\"),\"\",IF('Enrollment Form'!$B103<>\"Subscriber\",\"-\",IF(COUNTIF('Enrollment Form'!$AS103:$AT103,\"Yes\")=2,\"N\",\"Y\")))","v":""},{"$f":"IF(OR('Enrollment Form'!$CC103=\"\",'Enrollment Form'!$CC103=\"No\"),\"-\",IF(AND('Enrollment Form'!$CC103=\"Yes\",'Enrollment Form'!$CD103=\"\"),\"N\",\"Y\"))","v":"-"},{"$f":"IF(OR('Enrollment Form'!$CE103=\"\",'Enrollment Form'!$CE103=\"No\"),\"-\",IF(AND('Enrollment Form'!$CE103=\"Yes\",'Enrollment Form'!$CF103=\"\"),\"N\",\"Y\"))","v":"-"},{"$f":"IF(OR('Enrollment Form'!$CG103=\"\",'Enrollment Form'!$CG103=\"No\"),\"-\",IF(AND('Enrollment Form'!$CG103=\"Yes\",'Enrollment Form'!$CH103=\"\"),\"N\",\"Y\"))","v":"-"},{"$f":"IF(OR('Enrollment Form'!$CG103=\"\",'Enrollment Form'!$CG103=\"No\"),\"-\",IF(AND('Enrollment Form'!$CG103=\"Yes\",'Enrollment Form'!$CI103=\"\"),\"N\",\"Y\"))","v":"-"},{"$f":"IF('Enrollment Form'!B103<>\"Subscriber\",\"-\",IF(AND('Enrollment Form'!B103=\"Subscriber\",'Enrollment Form'!C103=\"Enroll\",'Enrollment Form'!AA103=\"\"),\"N\",\"Y\"))","v":"-"},{"$f":"IF(OR('Enrollment Form'!B103=\"Subscriber\",'Enrollment Form'!B103=\"\"),\"-\",IF('Enrollment Form'!BI103=\"\",\"N\",\"Y\"))","v":"-"},{"$f":"IF('Enrollment Form'!B103<>\"Subscriber\",\"-\",IF(AND('Enrollment Form'!B103=\"Subscriber\",'Enrollment Form'!G103=\"\"),\"N\",\"Y\"))","v":"-"},{"$f":"IF('Enrollment Form'!A103=\"\",\"\",IF('Enrollment Form'!B103=\"Subscriber\",\"-\",IF(AND('Enrollment Form'!B103<>\"Subscriber\",'Enrollment Form'!G103='Enrollment Form'!H103),\"N\",\"Y\")))","v":""},0]
[104,{"$f":"IF('Enrollment Form'!$A104<>\"\",\"Y\",\"N\")","v":"N"},{"$f":"IF(AND('Enrollment Form'!$B104=\"\",'Enrollment Form'!$C104<>\"\"),\"N\",IF($B97=\"N\",\"\",\"Y\"))","v":""},{"$f":"IF(OR($B97=\"N\",'Enrollment Form'!G104=\"\"),\"\",IF('Enrollment Form'!$B104<>\"Subscriber\",\"\",IF('Enrollment Form'!$G104='Enrollment Form'!$H104,\"Y\",\"N\")))","v":""},{"$f":"IF($B97=\"N\",\"\",IF(AND(COUNTIFS('Enrollment Form'!$H$11:$H$1000,'Enrollment Form'!$H104,'Enrollment Form'!$B$11:$B$1000,'Enrollment Form'!$B104)>1,'Enrollment Form'!$H104<>\"\"),\"N\",\"Y\"))","v":""},{"$f":"IF($B97=\"N\",\"\",IF(LEN('Enrollment Form'!$Y104)=0,\"\",IF(LEN('Enrollment Form'!$Y104)<>5,\"N\",\"Y\")))","v":""},{"$f":"IF($B97=\"N\",\"\",IF(LEN('Enrollment Form'!$AD104=0),\"\",IF(LEN('Enrollment Form'!$AD104)<>5,\"N\",\"Y\")))","v":""},{"$f":"IF($B97=\"N\",\"\",IF(LEN('Enrollment Form'!$BL104=0),\"\",IF(LEN('Enrollment Form'!$BL104)<>5,\"N\",\"Y\")))","v":""},{"$f":"IF($B97=\"N\",\"\",IF(LEN('Enrollment Form'!$AE104)=0,\"\",IF(LEN('Enrollment Form'!$AE104)<>10,\"N\",\"Y\")))","v":""},{"$f":"IF($B97=\"N\",\"\",IF(LEN('Enrollment Form'!$AF104)=0,\"\",IF(LEN('Enrollment Form'!$AF104)<>10,\"N\",\"Y\")))","v":""},{"$f":"IF('Enrollment Form'!$O104<>\"Graded\",\"-\",IF(AND('Enrollment Form'!$O104=\"Graded\",'Enrollment Form'!$AO104<>\"\"),\"Y\",\"N\"))","v":"-"},{"$f":"IF($B97=\"N\",\"\",IF(OR('Enrollment Form'!$B104<>\"Subscriber\",'Enrollment Form'!$C104=\"ROC\"),\"-\",IF(AND('Enrollment Form'!$B104=\"Subscriber\",'Enrollment Form'!$C104=\"Enroll\",'Enrollment Form'!$AJ104<>\"\"),\"Y\",\"N\")))","v":""},{"$f":"IF($B97=\"N\",\"\",IF(OR('Enrollment Form'!$B104<>\"Subscriber\",'Enrollment Form'!$C104=\"ROC\"),\"-\",IF(AND('Enrollment Form'!$B104=\"Subscriber\",'Enrollment Form'!$C104=\"Enroll\",'Enrollment Form'!$AK104<>\"\"),\"Y\",\"N\")))","v":""},{"$f":"IF($B97=\"N\",\"\",IF(OR('Enrollment Form'!$B104<>\"Subscriber\",'Enrollment Form'!$C104=\"ROC\"),\"-\",IF(AND('Enrollment Form'!$B104=\"Subscriber\",'Enrollment Form'!$C104=\"Enroll\",'Enrollment Form'!$AL104<>\"\"),\"Y\",\"N\")))","v":""},{"$f":"IF($B97=\"N\",\"\",IF(OR('Enrollment Form'!$B104<>\"Subscriber\",'Enrollment Form'!$C104=\"ROC\"),\"-\",IF(AND('Enrollment Form'!$B104=\"Subscriber\",'Enrollment Form'!$C104=\"Enroll\",'Enrollment Form'!$AM104<>\"\"),\"Y\",\"N\")))","v":""},{"$f":"IF($B97=\"N\",\"\",IF(OR('Enrollment Form'!$B104<>\"Subscriber\",'Enrollment Form'!$C104=\"ROC\"),\"-\",IF(AND('Enrollment Form'!$B104=\"Subscriber\",'Enrollment Form'!$C104=\"Enroll\",'Enrollment Form'!$AN104<>\"\"),\"Y\",\"N\")))","v":""},{"$f":"IF($B97=\"N\",\"\",IF(OR('Enrollment Form'!$B104<>\"Subscriber\",'Enrollment Form'!$C104=\"ROC\"),\"-\",IF(AND('Enrollment Form'!$B104=\"Subscriber\",'Enrollment Form'!$C104=\"Enroll\",'Enrollment Form'!$AP104<>\"\"),\"Y\",\"N\")))","v":""},{"$f":"IF($B97=\"N\",\"\",IF($Q97=\"-\",\"-\",IF(AND($Q97=\"Y\",'Enrollment Form'!$AP104=\"No\"),\"-\",IF(AND($Q97=\"Y\",'Enrollment Form'!$AP104=\"Yes\",'Enrollment Form'!$AQ104<>\"\"),\"Y\",\"N\"))))","v":""},{"$f":"IF($B97=\"N\",\"\",IF(OR('Enrollment Form'!$B104<>\"Subscriber\",'Enrollment Form'!$C104=\"ROC\"),\"-\",IF(AND('Enrollment Form'!$B104=\"Subscriber\",'Enrollment Form'!$C104=\"Enroll\",'Enrollment Form'!$CO104<>\"\"),\"Y\",\"N\")))","v":""},{"$f":"IF($B97=\"N\",\"\",IF($S97=\"-\",\"-\",IF(AND($S97=\"Y\",'Enrollment Form'!$CO104=\"No\"),\"-\",IF(AND($S97=\"Y\",'Enrollment Form'!$CO104=\"Yes\",'Enrollment Form'!$CP104<>\"\"),\"Y\",\"N\"))))","v":""},{"$f":"IF(OR('Enrollment Form'!$AV104=\"Yes\",'Enrollment Form'!$AV104=\"\"),\"-\",IF(AND('Enrollment Form'!$AV104=\"No\",ISERROR(FIND(\"HMO\",VLOOKUP('Enrollment Form'!G104,'Enrollment Form'!H$11:J$1000,3,FALSE),1))=FALSE,COUNTA('Enrollment Form'!$AW104:$AZ104)=4),\"Y\",\"N\"))","v":"-"},{"$f":"IF($B97=\"N\",\"\",IF('Enrollment Form'!$B104=\"Subscriber\",\"-\",IF(COUNTA('Enrollment Form'!$BE104,'Enrollment Form'!$BG104)=2,\"Y\",\"N\")))","v":""},{"$f":"IF($B97=\"N\",\"\",IF(OR('Enrollment Form'!$AU104=\"\",'Enrollment Form'!$AU104=\"No\"),\"-\",IF(AND('Enrollment Form'!$AU104=\"Yes\",COUNTA('Enrollment Form'!$CK104)=1),\"Y\",\"N\")))","v":""},{"$f":"IF(OR('Enrollment Form'!$CK104=\"\",'Enrollment Form'!$CK104=\"No\"),\"-\",IF(COUNTA('Enrollment Form'!$CM104:$CN104)=2,\"Y\",\"N\"))","v":"-"},{"$f":"IF($B97=\"N\",\"\",IF(COUNTIF('Enrollment Form'!$CZ104:$DO104,\"Other\")=COUNTA('Enrollment Form'!$DF104,'Enrollment Form'!$DA104,'Enrollment Form'!$DK104,'Enrollment Form'!$DP104),\"Y\",\"N\"))","v":""},{"$f":"IF($B97=\"N\",\"\",IF(OR('Enrollment Form'!B104<>\"Subscriber\",'Enrollment Form'!C104=\"ROC\",COUNTIF('Enrollment Form'!AS104:AT104,\"Yes\")>=1),\"-\",IF(AND('Enrollment Form'!C104=\"Enroll\",COUNTIF('Enrollment Form'!AS104:AT104,\"No\")=2,'Enrollment Form'!AU104=\"\"),\"N\",\"Y\")))","v":""},{"$f":"IF(OR(B97=\"N\",'Enrollment Form'!B104<>\"Subscriber\",'Enrollment Form'!C104=\"ROC\",'Enrollment Form'!O104<>\"Multiple of Salary\"),\"-\",IF(COUNTA('Enrollment Form'!T104:U104)<2,\"N\",\"Y\"))","v":"-"},{"$f":"IF(B97=\"N\",\"\",IF(OR('Enrollment Form'!C104=\"ROC\",'Enrollment Form'!B104<>\"Subscriber\",'Enrollment Form'!O104=\"Waive\",'Enrollment Form'!O104=\"\"),\"-\",IF('Enrollment Form'!P104=\"\",\"N\",\"Y\")))","v":""},{"$f":"IF($B97=\"N\",\"\",IF(AND('Enrollment Form'!$C104=\"ROC\",'Enrollment Form'!$DS104<>\"\"),\"Y\",IF(AND('Enrollment Form'!$C104=\"ROC\",'Enrollment Form'!$DS104=\"\"),\"N\",IF(AND('Enrollment Form'!$C104=\"Enroll\",'Enrollment Form'!$B104=\"Subscriber\",'Enrollment Form'!$CQ104=\"No\",'Enrollment Form'!$DS104=\"\"),\"N\",IF(AND('Enrollment Form'!$C104=\"Enroll\",'Enrollment Form'!$B104=\"Subscriber\",'Enrollment Form'!$CQ104=\"Yes\"),\"-\",\"Y\")))))","v":""},{"$f":"IF($B97=\"N\",\"\",IF(AND('Enrollment Form'!$C104=\"ROC\",'Enrollment Form'!$DT104<>\"\"),\"Y\",IF(AND('Enrollment Form'!$C104=\"ROC\",'Enrollment Form'!$DT104=\"\"),\"N\",IF(AND('Enrollment Form'!$C104=\"Enroll\",'Enrollment Form'!$B104=\"Subscriber\",'Enrollment Form'!$CQ104=\"No\",'Enrollment Form'!$DT104=\"\"),\"N\",IF(AND('Enrollment Form'!$C104=\"Enroll\",'Enrollment Form'!$B104=\"Subscriber\",'Enrollment Form'!$CQ104=\"Yes\"),\"-\",\"Y\")))))","v":""},{"$f":"IF('Enrollment Form'!AH104=\"\",\"\",IF(ISERROR(SEARCH(\".\",'Enrollment Form'!AH104,SEARCH(\"@\",'Enrollment Form'!AH104))),\"N\",\"Y\"))","v":""},{"$f":"IF(OR($B97=\"N\",'Enrollment Form'!$G104=\"\"),\"\",IF('Enrollment Form'!$B104<>\"Subscriber\",\"-\",IF(COUNTIF('Enrollment Form'!$AS104:$AT104,\"Yes\")=2,\"N\",\"Y\")))","v":""},{"$f":"IF(OR('Enrollment Form'!$CC104=\"\",'Enrollment Form'!$CC104=\"No\"),\"-\",IF(AND('Enrollment Form'!$CC104=\"Yes\",'Enrollment Form'!$CD104=\"\"),\"N\",\"Y\"))","v":"-"},{"$f":"IF(OR('Enrollment Form'!$CE104=\"\",'Enrollment Form'!$CE104=\"No\"),\"-\",IF(AND('Enrollment Form'!$CE104=\"Yes\",'Enrollment Form'!$CF104=\"\"),\"N\",\"Y\"))","v":"-"},{"$f":"IF(OR('Enrollment Form'!$CG104=\"\",'Enrollment Form'!$CG104=\"No\"),\"-\",IF(AND('Enrollment Form'!$CG104=\"Yes\",'Enrollment Form'!$CH104=\"\"),\"N\",\"Y\"))","v":"-"},{"$f":"IF(OR('Enrollment Form'!$CG104=\"\",'Enrollment Form'!$CG104=\"No\"),\"-\",IF(AND('Enrollment Form'!$CG104=\"Yes\",'Enrollment Form'!$CI104=\"\"),\"N\",\"Y\"))","v":"-"},{"$f":"IF('Enrollment Form'!B104<>\"Subscriber\",\"-\",IF(AND('Enrollment Form'!B104=\"Subscriber\",'Enrollment Form'!C104=\"Enroll\",'Enrollment Form'!AA104=\"\"),\"N\",\"Y\"))","v":"-"},{"$f":"IF(OR('Enrollment Form'!B104=\"Subscriber\",'Enrollment Form'!B104=\"\"),\"-\",IF('Enrollment Form'!BI104=\"\",\"N\",\"Y\"))","v":"-"},{"$f":"IF('Enrollment Form'!B104<>\"Subscriber\",\"-\",IF(AND('Enrollment Form'!B104=\"Subscriber\",'Enrollment Form'!G104=\"\"),\"N\",\"Y\"))","v":"-"},{"$f":"IF('Enrollment Form'!A104=\"\",\"\",IF('Enrollment Form'!B104=\"Subscriber\",\"-\",IF(AND('Enrollment Form'!B104<>\"Subscriber\",'Enrollment Form'!G104='Enrollment Form'!H104),\"N\",\"Y\")))","v":""},0]
[105,{"$f":"IF('Enrollment Form'!$A105<>\"\",\"Y\",\"N\")","v":"N"},{"$f":"IF(AND('Enrollment Form'!$B105=\"\",'Enrollment Form'!$C105<>\"\"),\"N\",IF($B98=\"N\",\"\",\"Y\"))","v":""},{"$f":"IF(OR($B98=\"N\",'Enrollment Form'!G105=\"\"),\"\",IF('Enrollment Form'!$B105<>\"Subscriber\",\"\",IF('Enrollment Form'!$G105='Enrollment Form'!$H105,\"Y\",\"N\")))","v":""},{"$f":"IF($B98=\"N\",\"\",IF(AND(COUNTIFS('Enrollment Form'!$H$11:$H$1000,'Enrollment Form'!$H105,'Enrollment Form'!$B$11:$B$1000,'Enrollment Form'!$B105)>1,'Enrollment Form'!$H105<>\"\"),\"N\",\"Y\"))","v":""},{"$f":"IF($B98=\"N\",\"\",IF(LEN('Enrollment Form'!$Y105)=0,\"\",IF(LEN('Enrollment Form'!$Y105)<>5,\"N\",\"Y\")))","v":""},{"$f":"IF($B98=\"N\",\"\",IF(LEN('Enrollment Form'!$AD105=0),\"\",IF(LEN('Enrollment Form'!$AD105)<>5,\"N\",\"Y\")))","v":""},{"$f":"IF($B98=\"N\",\"\",IF(LEN('Enrollment Form'!$BL105=0),\"\",IF(LEN('Enrollment Form'!$BL105)<>5,\"N\",\"Y\")))","v":""},{"$f":"IF($B98=\"N\",\"\",IF(LEN('Enrollment Form'!$AE105)=0,\"\",IF(LEN('Enrollment Form'!$AE105)<>10,\"N\",\"Y\")))","v":""},{"$f":"IF($B98=\"N\",\"\",IF(LEN('Enrollment Form'!$AF105)=0,\"\",IF(LEN('Enrollment Form'!$AF105)<>10,\"N\",\"Y\")))","v":""},{"$f":"IF('Enrollment Form'!$O105<>\"Graded\",\"-\",IF(AND('Enrollment Form'!$O105=\"Graded\",'Enrollment Form'!$AO105<>\"\"),\"Y\",\"N\"))","v":"-"},{"$f":"IF($B98=\"N\",\"\",IF(OR('Enrollment Form'!$B105<>\"Subscriber\",'Enrollment Form'!$C105=\"ROC\"),\"-\",IF(AND('Enrollment Form'!$B105=\"Subscriber\",'Enrollment Form'!$C105=\"Enroll\",'Enrollment Form'!$AJ105<>\"\"),\"Y\",\"N\")))","v":""},{"$f":"IF($B98=\"N\",\"\",IF(OR('Enrollment Form'!$B105<>\"Subscriber\",'Enrollment Form'!$C105=\"ROC\"),\"-\",IF(AND('Enrollment Form'!$B105=\"Subscriber\",'Enrollment Form'!$C105=\"Enroll\",'Enrollment Form'!$AK105<>\"\"),\"Y\",\"N\")))","v":""},{"$f":"IF($B98=\"N\",\"\",IF(OR('Enrollment Form'!$B105<>\"Subscriber\",'Enrollment Form'!$C105=\"ROC\"),\"-\",IF(AND('Enrollment Form'!$B105=\"Subscriber\",'Enrollment Form'!$C105=\"Enroll\",'Enrollment Form'!$AL105<>\"\"),\"Y\",\"N\")))","v":""},{"$f":"IF($B98=\"N\",\"\",IF(OR('Enrollment Form'!$B105<>\"Subscriber\",'Enrollment Form'!$C105=\"ROC\"),\"-\",IF(AND('Enrollment Form'!$B105=\"Subscriber\",'Enrollment Form'!$C105=\"Enroll\",'Enrollment Form'!$AM105<>\"\"),\"Y\",\"N\")))","v":""},{"$f":"IF($B98=\"N\",\"\",IF(OR('Enrollment Form'!$B105<>\"Subscriber\",'Enrollment Form'!$C105=\"ROC\"),\"-\",IF(AND('Enrollment Form'!$B105=\"Subscriber\",'Enrollment Form'!$C105=\"Enroll\",'Enrollment Form'!$AN105<>\"\"),\"Y\",\"N\")))","v":""},{"$f":"IF($B98=\"N\",\"\",IF(OR('Enrollment Form'!$B105<>\"Subscriber\",'Enrollment Form'!$C105=\"ROC\"),\"-\",IF(AND('Enrollment Form'!$B105=\"Subscriber\",'Enrollment Form'!$C105=\"Enroll\",'Enrollment Form'!$AP105<>\"\"),\"Y\",\"N\")))","v":""},{"$f":"IF($B98=\"N\",\"\",IF($Q98=\"-\",\"-\",IF(AND($Q98=\"Y\",'Enrollment Form'!$AP105=\"No\"),\"-\",IF(AND($Q98=\"Y\",'Enrollment Form'!$AP105=\"Yes\",'Enrollment Form'!$AQ105<>\"\"),\"Y\",\"N\"))))","v":""},{"$f":"IF($B98=\"N\",\"\",IF(OR('Enrollment Form'!$B105<>\"Subscriber\",'Enrollment Form'!$C105=\"ROC\"),\"-\",IF(AND('Enrollment Form'!$B105=\"Subscriber\",'Enrollment Form'!$C105=\"Enroll\",'Enrollment Form'!$CO105<>\"\"),\"Y\",\"N\")))","v":""},{"$f":"IF($B98=\"N\",\"\",IF($S98=\"-\",\"-\",IF(AND($S98=\"Y\",'Enrollment Form'!$CO105=\"No\"),\"-\",IF(AND($S98=\"Y\",'Enrollment Form'!$CO105=\"Yes\",'Enrollment Form'!$CP105<>\"\"),\"Y\",\"N\"))))","v":""},{"$f":"IF(OR('Enrollment Form'!$AV105=\"Yes\",'Enrollment Form'!$AV105=\"\"),\"-\",IF(AND('Enrollment Form'!$AV105=\"No\",ISERROR(FIND(\"HMO\",VLOOKUP('Enrollment Form'!G105,'Enrollment Form'!H$11:J$1000,3,FALSE),1))=FALSE,COUNTA('Enrollment Form'!$AW105:$AZ105)=4),\"Y\",\"N\"))","v":"-"},{"$f":"IF($B98=\"N\",\"\",IF('Enrollment Form'!$B105=\"Subscriber\",\"-\",IF(COUNTA('Enrollment Form'!$BE105,'Enrollment Form'!$BG105)=2,\"Y\",\"N\")))","v":""},{"$f":"IF($B98=\"N\",\"\",IF(OR('Enrollment Form'!$AU105=\"\",'Enrollment Form'!$AU105=\"No\"),\"-\",IF(AND('Enrollment Form'!$AU105=\"Yes\",COUNTA('Enrollment Form'!$CK105)=1),\"Y\",\"N\")))","v":""},{"$f":"IF(OR('Enrollment Form'!$CK105=\"\",'Enrollment Form'!$CK105=\"No\"),\"-\",IF(COUNTA('Enrollment Form'!$CM105:$CN105)=2,\"Y\",\"N\"))","v":"-"},{"$f":"IF($B98=\"N\",\"\",IF(COUNTIF('Enrollment Form'!$CZ105:$DO105,\"Other\")=COUNTA('Enrollment Form'!$DF105,'Enrollment Form'!$DA105,'Enrollment Form'!$DK105,'Enrollment Form'!$DP105),\"Y\",\"N\"))","v":""},{"$f":"IF($B98=\"N\",\"\",IF(OR('Enrollment Form'!B105<>\"Subscriber\",'Enrollment Form'!C105=\"ROC\",COUNTIF('Enrollment Form'!AS105:AT105,\"Yes\")>=1),\"-\",IF(AND('Enrollment Form'!C105=\"Enroll\",COUNTIF('Enrollment Form'!AS105:AT105,\"No\")=2,'Enrollment Form'!AU105=\"\"),\"N\",\"Y\")))","v":""},{"$f":"IF(OR(B98=\"N\",'Enrollment Form'!B105<>\"Subscriber\",'Enrollment Form'!C105=\"ROC\",'Enrollment Form'!O105<>\"Multiple of Salary\"),\"-\",IF(COUNTA('Enrollment Form'!T105:U105)<2,\"N\",\"Y\"))","v":"-"},{"$f":"IF(B98=\"N\",\"\",IF(OR('Enrollment Form'!C105=\"ROC\",'Enrollment Form'!B105<>\"Subscriber\",'Enrollment Form'!O105=\"Waive\",'Enrollment Form'!O105=\"\"),\"-\",IF('Enrollment Form'!P105=\"\",\"N\",\"Y\")))","v":""},{"$f":"IF($B98=\"N\",\"\",IF(AND('Enrollment Form'!$C105=\"ROC\",'Enrollment Form'!$DS105<>\"\"),\"Y\",IF(AND('Enrollment Form'!$C105=\"ROC\",'Enrollment Form'!$DS105=\"\"),\"N\",IF(AND('Enrollment Form'!$C105=\"Enroll\",'Enrollment Form'!$B105=\"Subscriber\",'Enrollment Form'!$CQ105=\"No\",'Enrollment Form'!$DS105=\"\"),\"N\",IF(AND('Enrollment Form'!$C105=\"Enroll\",'Enrollment Form'!$B105=\"Subscriber\",'Enrollment Form'!$CQ105=\"Yes\"),\"-\",\"Y\")))))","v":""},{"$f":"IF($B98=\"N\",\"\",IF(AND('Enrollment Form'!$C105=\"ROC\",'Enrollment Form'!$DT105<>\"\"),\"Y\",IF(AND('Enrollment Form'!$C105=\"ROC\",'Enrollment Form'!$DT105=\"\"),\"N\",IF(AND('Enrollment Form'!$C105=\"Enroll\",'Enrollment Form'!$B105=\"Subscriber\",'Enrollment Form'!$CQ105=\"No\",'Enrollment Form'!$DT105=\"\"),\"N\",IF(AND('Enrollment Form'!$C105=\"Enroll\",'Enrollment Form'!$B105=\"Subscriber\",'Enrollment Form'!$CQ105=\"Yes\"),\"-\",\"Y\")))))","v":""},{"$f":"IF('Enrollment Form'!AH105=\"\",\"\",IF(ISERROR(SEARCH(\".\",'Enrollment Form'!AH105,SEARCH(\"@\",'Enrollment Form'!AH105))),\"N\",\"Y\"))","v":""},{"$f":"IF(OR($B98=\"N\",'Enrollment Form'!$G105=\"\"),\"\",IF('Enrollment Form'!$B105<>\"Subscriber\",\"-\",IF(COUNTIF('Enrollment Form'!$AS105:$AT105,\"Yes\")=2,\"N\",\"Y\")))","v":""},{"$f":"IF(OR('Enrollment Form'!$CC105=\"\",'Enrollment Form'!$CC105=\"No\"),\"-\",IF(AND('Enrollment Form'!$CC105=\"Yes\",'Enrollment Form'!$CD105=\"\"),\"N\",\"Y\"))","v":"-"},{"$f":"IF(OR('Enrollment Form'!$CE105=\"\",'Enrollment Form'!$CE105=\"No\"),\"-\",IF(AND('Enrollment Form'!$CE105=\"Yes\",'Enrollment Form'!$CF105=\"\"),\"N\",\"Y\"))","v":"-"},{"$f":"IF(OR('Enrollment Form'!$CG105=\"\",'Enrollment Form'!$CG105=\"No\"),\"-\",IF(AND('Enrollment Form'!$CG105=\"Yes\",'Enrollment Form'!$CH105=\"\"),\"N\",\"Y\"))","v":"-"},{"$f":"IF(OR('Enrollment Form'!$CG105=\"\",'Enrollment Form'!$CG105=\"No\"),\"-\",IF(AND('Enrollment Form'!$CG105=\"Yes\",'Enrollment Form'!$CI105=\"\"),\"N\",\"Y\"))","v":"-"},{"$f":"IF('Enrollment Form'!B105<>\"Subscriber\",\"-\",IF(AND('Enrollment Form'!B105=\"Subscriber\",'Enrollment Form'!C105=\"Enroll\",'Enrollment Form'!AA105=\"\"),\"N\",\"Y\"))","v":"-"},{"$f":"IF(OR('Enrollment Form'!B105=\"Subscriber\",'Enrollment Form'!B105=\"\"),\"-\",IF('Enrollment Form'!BI105=\"\",\"N\",\"Y\"))","v":"-"},{"$f":"IF('Enrollment Form'!B105<>\"Subscriber\",\"-\",IF(AND('Enrollment Form'!B105=\"Subscriber\",'Enrollment Form'!G105=\"\"),\"N\",\"Y\"))","v":"-"},{"$f":"IF('Enrollment Form'!A105=\"\",\"\",IF('Enrollment Form'!B105=\"Subscriber\",\"-\",IF(AND('Enrollment Form'!B105<>\"Subscriber\",'Enrollment Form'!G105='Enrollment Form'!H105),\"N\",\"Y\")))","v":""},0]
[106,{"$f":"IF('Enrollment Form'!$A106<>\"\",\"Y\",\"N\")","v":"N"},{"$f":"IF(AND('Enrollment Form'!$B106=\"\",'Enrollment Form'!$C106<>\"\"),\"N\",IF($B99=\"N\",\"\",\"Y\"))","v":""},{"$f":"IF(OR($B99=\"N\",'Enrollment Form'!G106=\"\"),\"\",IF('Enrollment Form'!$B106<>\"Subscriber\",\"\",IF('Enrollment Form'!$G106='Enrollment Form'!$H106,\"Y\",\"N\")))","v":""},{"$f":"IF($B99=\"N\",\"\",IF(AND(COUNTIFS('Enrollment Form'!$H$11:$H$1000,'Enrollment Form'!$H106,'Enrollment Form'!$B$11:$B$1000,'Enrollment Form'!$B106)>1,'Enrollment Form'!$H106<>\"\"),\"N\",\"Y\"))","v":""},{"$f":"IF($B99=\"N\",\"\",IF(LEN('Enrollment Form'!$Y106)=0,\"\",IF(LEN('Enrollment Form'!$Y106)<>5,\"N\",\"Y\")))","v":""},{"$f":"IF($B99=\"N\",\"\",IF(LEN('Enrollment Form'!$AD106=0),\"\",IF(LEN('Enrollment Form'!$AD106)<>5,\"N\",\"Y\")))","v":""},{"$f":"IF($B99=\"N\",\"\",IF(LEN('Enrollment Form'!$BL106=0),\"\",IF(LEN('Enrollment Form'!$BL106)<>5,\"N\",\"Y\")))","v":""},{"$f":"IF($B99=\"N\",\"\",IF(LEN('Enrollment Form'!$AE106)=0,\"\",IF(LEN('Enrollment Form'!$AE106)<>10,\"N\",\"Y\")))","v":""},{"$f":"IF($B99=\"N\",\"\",IF(LEN('Enrollment Form'!$AF106)=0,\"\",IF(LEN('Enrollment Form'!$AF106)<>10,\"N\",\"Y\")))","v":""},{"$f":"IF('Enrollment Form'!$O106<>\"Graded\",\"-\",IF(AND('Enrollment Form'!$O106=\"Graded\",'Enrollment Form'!$AO106<>\"\"),\"Y\",\"N\"))","v":"-"},{"$f":"IF($B99=\"N\",\"\",IF(OR('Enrollment Form'!$B106<>\"Subscriber\",'Enrollment Form'!$C106=\"ROC\"),\"-\",IF(AND('Enrollment Form'!$B106=\"Subscriber\",'Enrollment Form'!$C106=\"Enroll\",'Enrollment Form'!$AJ106<>\"\"),\"Y\",\"N\")))","v":""},{"$f":"IF($B99=\"N\",\"\",IF(OR('Enrollment Form'!$B106<>\"Subscriber\",'Enrollment Form'!$C106=\"ROC\"),\"-\",IF(AND('Enrollment Form'!$B106=\"Subscriber\",'Enrollment Form'!$C106=\"Enroll\",'Enrollment Form'!$AK106<>\"\"),\"Y\",\"N\")))","v":""},{"$f":"IF($B99=\"N\",\"\",IF(OR('Enrollment Form'!$B106<>\"Subscriber\",'Enrollment Form'!$C106=\"ROC\"),\"-\",IF(AND('Enrollment Form'!$B106=\"Subscriber\",'Enrollment Form'!$C106=\"Enroll\",'Enrollment Form'!$AL106<>\"\"),\"Y\",\"N\")))","v":""},{"$f":"IF($B99=\"N\",\"\",IF(OR('Enrollment Form'!$B106<>\"Subscriber\",'Enrollment Form'!$C106=\"ROC\"),\"-\",IF(AND('Enrollment Form'!$B106=\"Subscriber\",'Enrollment Form'!$C106=\"Enroll\",'Enrollment Form'!$AM106<>\"\"),\"Y\",\"N\")))","v":""},{"$f":"IF($B99=\"N\",\"\",IF(OR('Enrollment Form'!$B106<>\"Subscriber\",'Enrollment Form'!$C106=\"ROC\"),\"-\",IF(AND('Enrollment Form'!$B106=\"Subscriber\",'Enrollment Form'!$C106=\"Enroll\",'Enrollment Form'!$AN106<>\"\"),\"Y\",\"N\")))","v":""},{"$f":"IF($B99=\"N\",\"\",IF(OR('Enrollment Form'!$B106<>\"Subscriber\",'Enrollment Form'!$C106=\"ROC\"),\"-\",IF(AND('Enrollment Form'!$B106=\"Subscriber\",'Enrollment Form'!$C106=\"Enroll\",'Enrollment Form'!$AP106<>\"\"),\"Y\",\"N\")))","v":""},{"$f":"IF($B99=\"N\",\"\",IF($Q99=\"-\",\"-\",IF(AND($Q99=\"Y\",'Enrollment Form'!$AP106=\"No\"),\"-\",IF(AND($Q99=\"Y\",'Enrollment Form'!$AP106=\"Yes\",'Enrollment Form'!$AQ106<>\"\"),\"Y\",\"N\"))))","v":""},{"$f":"IF($B99=\"N\",\"\",IF(OR('Enrollment Form'!$B106<>\"Subscriber\",'Enrollment Form'!$C106=\"ROC\"),\"-\",IF(AND('Enrollment Form'!$B106=\"Subscriber\",'Enrollment Form'!$C106=\"Enroll\",'Enrollment Form'!$CO106<>\"\"),\"Y\",\"N\")))","v":""},{"$f":"IF($B99=\"N\",\"\",IF($S99=\"-\",\"-\",IF(AND($S99=\"Y\",'Enrollment Form'!$CO106=\"No\"),\"-\",IF(AND($S99=\"Y\",'Enrollment Form'!$CO106=\"Yes\",'Enrollment Form'!$CP106<>\"\"),\"Y\",\"N\"))))","v":""},{"$f":"IF(OR('Enrollment Form'!$AV106=\"Yes\",'Enrollment Form'!$AV106=\"\"),\"-\",IF(AND('Enrollment Form'!$AV106=\"No\",ISERROR(FIND(\"HMO\",VLOOKUP('Enrollment Form'!G106,'Enrollment Form'!H$11:J$1000,3,FALSE),1))=FALSE,COUNTA('Enrollment Form'!$AW106:$AZ106)=4),\"Y\",\"N\"))","v":"-"},{"$f":"IF($B99=\"N\",\"\",IF('Enrollment Form'!$B106=\"Subscriber\",\"-\",IF(COUNTA('Enrollment Form'!$BE106,'Enrollment Form'!$BG106)=2,\"Y\",\"N\")))","v":""},{"$f":"IF($B99=\"N\",\"\",IF(OR('Enrollment Form'!$AU106=\"\",'Enrollment Form'!$AU106=\"No\"),\"-\",IF(AND('Enrollment Form'!$AU106=\"Yes\",COUNTA('Enrollment Form'!$CK106)=1),\"Y\",\"N\")))","v":""},{"$f":"IF(OR('Enrollment Form'!$CK106=\"\",'Enrollment Form'!$CK106=\"No\"),\"-\",IF(COUNTA('Enrollment Form'!$CM106:$CN106)=2,\"Y\",\"N\"))","v":"-"},{"$f":"IF($B99=\"N\",\"\",IF(COUNTIF('Enrollment Form'!$CZ106:$DO106,\"Other\")=COUNTA('Enrollment Form'!$DF106,'Enrollment Form'!$DA106,'Enrollment Form'!$DK106,'Enrollment Form'!$DP106),\"Y\",\"N\"))","v":""},{"$f":"IF($B99=\"N\",\"\",IF(OR('Enrollment Form'!B106<>\"Subscriber\",'Enrollment Form'!C106=\"ROC\",COUNTIF('Enrollment Form'!AS106:AT106,\"Yes\")>=1),\"-\",IF(AND('Enrollment Form'!C106=\"Enroll\",COUNTIF('Enrollment Form'!AS106:AT106,\"No\")=2,'Enrollment Form'!AU106=\"\"),\"N\",\"Y\")))","v":""},{"$f":"IF(OR(B99=\"N\",'Enrollment Form'!B106<>\"Subscriber\",'Enrollment Form'!C106=\"ROC\",'Enrollment Form'!O106<>\"Multiple of Salary\"),\"-\",IF(COUNTA('Enrollment Form'!T106:U106)<2,\"N\",\"Y\"))","v":"-"},{"$f":"IF(B99=\"N\",\"\",IF(OR('Enrollment Form'!C106=\"ROC\",'Enrollment Form'!B106<>\"Subscriber\",'Enrollment Form'!O106=\"Waive\",'Enrollment Form'!O106=\"\"),\"-\",IF('Enrollment Form'!P106=\"\",\"N\",\"Y\")))","v":""},{"$f":"IF($B99=\"N\",\"\",IF(AND('Enrollment Form'!$C106=\"ROC\",'Enrollment Form'!$DS106<>\"\"),\"Y\",IF(AND('Enrollment Form'!$C106=\"ROC\",'Enrollment Form'!$DS106=\"\"),\"N\",IF(AND('Enrollment Form'!$C106=\"Enroll\",'Enrollment Form'!$B106=\"Subscriber\",'Enrollment Form'!$CQ106=\"No\",'Enrollment Form'!$DS106=\"\"),\"N\",IF(AND('Enrollment Form'!$C106=\"Enroll\",'Enrollment Form'!$B106=\"Subscriber\",'Enrollment Form'!$CQ106=\"Yes\"),\"-\",\"Y\")))))","v":""},{"$f":"IF($B99=\"N\",\"\",IF(AND('Enrollment Form'!$C106=\"ROC\",'Enrollment Form'!$DT106<>\"\"),\"Y\",IF(AND('Enrollment Form'!$C106=\"ROC\",'Enrollment Form'!$DT106=\"\"),\"N\",IF(AND('Enrollment Form'!$C106=\"Enroll\",'Enrollment Form'!$B106=\"Subscriber\",'Enrollment Form'!$CQ106=\"No\",'Enrollment Form'!$DT106=\"\"),\"N\",IF(AND('Enrollment Form'!$C106=\"Enroll\",'Enrollment Form'!$B106=\"Subscriber\",'Enrollment Form'!$CQ106=\"Yes\"),\"-\",\"Y\")))))","v":""},{"$f":"IF('Enrollment Form'!AH106=\"\",\"\",IF(ISERROR(SEARCH(\".\",'Enrollment Form'!AH106,SEARCH(\"@\",'Enrollment Form'!AH106))),\"N\",\"Y\"))","v":""},{"$f":"IF(OR($B99=\"N\",'Enrollment Form'!$G106=\"\"),\"\",IF('Enrollment Form'!$B106<>\"Subscriber\",\"-\",IF(COUNTIF('Enrollment Form'!$AS106:$AT106,\"Yes\")=2,\"N\",\"Y\")))","v":""},{"$f":"IF(OR('Enrollment Form'!$CC106=\"\",'Enrollment Form'!$CC106=\"No\"),\"-\",IF(AND('Enrollment Form'!$CC106=\"Yes\",'Enrollment Form'!$CD106=\"\"),\"N\",\"Y\"))","v":"-"},{"$f":"IF(OR('Enrollment Form'!$CE106=\"\",'Enrollment Form'!$CE106=\"No\"),\"-\",IF(AND('Enrollment Form'!$CE106=\"Yes\",'Enrollment Form'!$CF106=\"\"),\"N\",\"Y\"))","v":"-"},{"$f":"IF(OR('Enrollment Form'!$CG106=\"\",'Enrollment Form'!$CG106=\"No\"),\"-\",IF(AND('Enrollment Form'!$CG106=\"Yes\",'Enrollment Form'!$CH106=\"\"),\"N\",\"Y\"))","v":"-"},{"$f":"IF(OR('Enrollment Form'!$CG106=\"\",'Enrollment Form'!$CG106=\"No\"),\"-\",IF(AND('Enrollment Form'!$CG106=\"Yes\",'Enrollment Form'!$CI106=\"\"),\"N\",\"Y\"))","v":"-"},{"$f":"IF('Enrollment Form'!B106<>\"Subscriber\",\"-\",IF(AND('Enrollment Form'!B106=\"Subscriber\",'Enrollment Form'!C106=\"Enroll\",'Enrollment Form'!AA106=\"\"),\"N\",\"Y\"))","v":"-"},{"$f":"IF(OR('Enrollment Form'!B106=\"Subscriber\",'Enrollment Form'!B106=\"\"),\"-\",IF('Enrollment Form'!BI106=\"\",\"N\",\"Y\"))","v":"-"},{"$f":"IF('Enrollment Form'!B106<>\"Subscriber\",\"-\",IF(AND('Enrollment Form'!B106=\"Subscriber\",'Enrollment Form'!G106=\"\"),\"N\",\"Y\"))","v":"-"},{"$f":"IF('Enrollment Form'!A106=\"\",\"\",IF('Enrollment Form'!B106=\"Subscriber\",\"-\",IF(AND('Enrollment Form'!B106<>\"Subscriber\",'Enrollment Form'!G106='Enrollment Form'!H106),\"N\",\"Y\")))","v":""},0]
[107,{"$f":"IF('Enrollment Form'!$A107<>\"\",\"Y\",\"N\")","v":"N"},{"$f":"IF(AND('Enrollment Form'!$B107=\"\",'Enrollment Form'!$C107<>\"\"),\"N\",IF($B100=\"N\",\"\",\"Y\"))","v":""},{"$f":"IF(OR($B100=\"N\",'Enrollment Form'!G107=\"\"),\"\",IF('Enrollment Form'!$B107<>\"Subscriber\",\"\",IF('Enrollment Form'!$G107='Enrollment Form'!$H107,\"Y\",\"N\")))","v":""},{"$f":"IF($B100=\"N\",\"\",IF(AND(COUNTIFS('Enrollment Form'!$H$11:$H$1000,'Enrollment Form'!$H107,'Enrollment Form'!$B$11:$B$1000,'Enrollment Form'!$B107)>1,'Enrollment Form'!$H107<>\"\"),\"N\",\"Y\"))","v":""},{"$f":"IF($B100=\"N\",\"\",IF(LEN('Enrollment Form'!$Y107)=0,\"\",IF(LEN('Enrollment Form'!$Y107)<>5,\"N\",\"Y\")))","v":""},{"$f":"IF($B100=\"N\",\"\",IF(LEN('Enrollment Form'!$AD107=0),\"\",IF(LEN('Enrollment Form'!$AD107)<>5,\"N\",\"Y\")))","v":""},{"$f":"IF($B100=\"N\",\"\",IF(LEN('Enrollment Form'!$BL107=0),\"\",IF(LEN('Enrollment Form'!$BL107)<>5,\"N\",\"Y\")))","v":""},{"$f":"IF($B100=\"N\",\"\",IF(LEN('Enrollment Form'!$AE107)=0,\"\",IF(LEN('Enrollment Form'!$AE107)<>10,\"N\",\"Y\")))","v":""},{"$f":"IF($B100=\"N\",\"\",IF(LEN('Enrollment Form'!$AF107)=0,\"\",IF(LEN('Enrollment Form'!$AF107)<>10,\"N\",\"Y\")))","v":""},{"$f":"IF('Enrollment Form'!$O107<>\"Graded\",\"-\",IF(AND('Enrollment Form'!$O107=\"Graded\",'Enrollment Form'!$AO107<>\"\"),\"Y\",\"N\"))","v":"-"},{"$f":"IF($B100=\"N\",\"\",IF(OR('Enrollment Form'!$B107<>\"Subscriber\",'Enrollment Form'!$C107=\"ROC\"),\"-\",IF(AND('Enrollment Form'!$B107=\"Subscriber\",'Enrollment Form'!$C107=\"Enroll\",'Enrollment Form'!$AJ107<>\"\"),\"Y\",\"N\")))","v":""},{"$f":"IF($B100=\"N\",\"\",IF(OR('Enrollment Form'!$B107<>\"Subscriber\",'Enrollment Form'!$C107=\"ROC\"),\"-\",IF(AND('Enrollment Form'!$B107=\"Subscriber\",'Enrollment Form'!$C107=\"Enroll\",'Enrollment Form'!$AK107<>\"\"),\"Y\",\"N\")))","v":""},{"$f":"IF($B100=\"N\",\"\",IF(OR('Enrollment Form'!$B107<>\"Subscriber\",'Enrollment Form'!$C107=\"ROC\"),\"-\",IF(AND('Enrollment Form'!$B107=\"Subscriber\",'Enrollment Form'!$C107=\"Enroll\",'Enrollment Form'!$AL107<>\"\"),\"Y\",\"N\")))","v":""},{"$f":"IF($B100=\"N\",\"\",IF(OR('Enrollment Form'!$B107<>\"Subscriber\",'Enrollment Form'!$C107=\"ROC\"),\"-\",IF(AND('Enrollment Form'!$B107=\"Subscriber\",'Enrollment Form'!$C107=\"Enroll\",'Enrollment Form'!$AM107<>\"\"),\"Y\",\"N\")))","v":""},{"$f":"IF($B100=\"N\",\"\",IF(OR('Enrollment Form'!$B107<>\"Subscriber\",'Enrollment Form'!$C107=\"ROC\"),\"-\",IF(AND('Enrollment Form'!$B107=\"Subscriber\",'Enrollment Form'!$C107=\"Enroll\",'Enrollment Form'!$AN107<>\"\"),\"Y\",\"N\")))","v":""},{"$f":"IF($B100=\"N\",\"\",IF(OR('Enrollment Form'!$B107<>\"Subscriber\",'Enrollment Form'!$C107=\"ROC\"),\"-\",IF(AND('Enrollment Form'!$B107=\"Subscriber\",'Enrollment Form'!$C107=\"Enroll\",'Enrollment Form'!$AP107<>\"\"),\"Y\",\"N\")))","v":""},{"$f":"IF($B100=\"N\",\"\",IF($Q100=\"-\",\"-\",IF(AND($Q100=\"Y\",'Enrollment Form'!$AP107=\"No\"),\"-\",IF(AND($Q100=\"Y\",'Enrollment Form'!$AP107=\"Yes\",'Enrollment Form'!$AQ107<>\"\"),\"Y\",\"N\"))))","v":""},{"$f":"IF($B100=\"N\",\"\",IF(OR('Enrollment Form'!$B107<>\"Subscriber\",'Enrollment Form'!$C107=\"ROC\"),\"-\",IF(AND('Enrollment Form'!$B107=\"Subscriber\",'Enrollment Form'!$C107=\"Enroll\",'Enrollment Form'!$CO107<>\"\"),\"Y\",\"N\")))","v":""},{"$f":"IF($B100=\"N\",\"\",IF($S100=\"-\",\"-\",IF(AND($S100=\"Y\",'Enrollment Form'!$CO107=\"No\"),\"-\",IF(AND($S100=\"Y\",'Enrollment Form'!$CO107=\"Yes\",'Enrollment Form'!$CP107<>\"\"),\"Y\",\"N\"))))","v":""},{"$f":"IF(OR('Enrollment Form'!$AV107=\"Yes\",'Enrollment Form'!$AV107=\"\"),\"-\",IF(AND('Enrollment Form'!$AV107=\"No\",ISERROR(FIND(\"HMO\",VLOOKUP('Enrollment Form'!G107,'Enrollment Form'!H$11:J$1000,3,FALSE),1))=FALSE,COUNTA('Enrollment Form'!$AW107:$AZ107)=4),\"Y\",\"N\"))","v":"-"},{"$f":"IF($B100=\"N\",\"\",IF('Enrollment Form'!$B107=\"Subscriber\",\"-\",IF(COUNTA('Enrollment Form'!$BE107,'Enrollment Form'!$BG107)=2,\"Y\",\"N\")))","v":""},{"$f":"IF($B100=\"N\",\"\",IF(OR('Enrollment Form'!$AU107=\"\",'Enrollment Form'!$AU107=\"No\"),\"-\",IF(AND('Enrollment Form'!$AU107=\"Yes\",COUNTA('Enrollment Form'!$CK107)=1),\"Y\",\"N\")))","v":""},{"$f":"IF(OR('Enrollment Form'!$CK107=\"\",'Enrollment Form'!$CK107=\"No\"),\"-\",IF(COUNTA('Enrollment Form'!$CM107:$CN107)=2,\"Y\",\"N\"))","v":"-"},{"$f":"IF($B100=\"N\",\"\",IF(COUNTIF('Enrollment Form'!$CZ107:$DO107,\"Other\")=COUNTA('Enrollment Form'!$DF107,'Enrollment Form'!$DA107,'Enrollment Form'!$DK107,'Enrollment Form'!$DP107),\"Y\",\"N\"))","v":""},{"$f":"IF($B100=\"N\",\"\",IF(OR('Enrollment Form'!B107<>\"Subscriber\",'Enrollment Form'!C107=\"ROC\",COUNTIF('Enrollment Form'!AS107:AT107,\"Yes\")>=1),\"-\",IF(AND('Enrollment Form'!C107=\"Enroll\",COUNTIF('Enrollment Form'!AS107:AT107,\"No\")=2,'Enrollment Form'!AU107=\"\"),\"N\",\"Y\")))","v":""},{"$f":"IF(OR(B100=\"N\",'Enrollment Form'!B107<>\"Subscriber\",'Enrollment Form'!C107=\"ROC\",'Enrollment Form'!O107<>\"Multiple of Salary\"),\"-\",IF(COUNTA('Enrollment Form'!T107:U107)<2,\"N\",\"Y\"))","v":"-"},{"$f":"IF(B100=\"N\",\"\",IF(OR('Enrollment Form'!C107=\"ROC\",'Enrollment Form'!B107<>\"Subscriber\",'Enrollment Form'!O107=\"Waive\",'Enrollment Form'!O107=\"\"),\"-\",IF('Enrollment Form'!P107=\"\",\"N\",\"Y\")))","v":""},{"$f":"IF($B100=\"N\",\"\",IF(AND('Enrollment Form'!$C107=\"ROC\",'Enrollment Form'!$DS107<>\"\"),\"Y\",IF(AND('Enrollment Form'!$C107=\"ROC\",'Enrollment Form'!$DS107=\"\"),\"N\",IF(AND('Enrollment Form'!$C107=\"Enroll\",'Enrollment Form'!$B107=\"Subscriber\",'Enrollment Form'!$CQ107=\"No\",'Enrollment Form'!$DS107=\"\"),\"N\",IF(AND('Enrollment Form'!$C107=\"Enroll\",'Enrollment Form'!$B107=\"Subscriber\",'Enrollment Form'!$CQ107=\"Yes\"),\"-\",\"Y\")))))","v":""},{"$f":"IF($B100=\"N\",\"\",IF(AND('Enrollment Form'!$C107=\"ROC\",'Enrollment Form'!$DT107<>\"\"),\"Y\",IF(AND('Enrollment Form'!$C107=\"ROC\",'Enrollment Form'!$DT107=\"\"),\"N\",IF(AND('Enrollment Form'!$C107=\"Enroll\",'Enrollment Form'!$B107=\"Subscriber\",'Enrollment Form'!$CQ107=\"No\",'Enrollment Form'!$DT107=\"\"),\"N\",IF(AND('Enrollment Form'!$C107=\"Enroll\",'Enrollment Form'!$B107=\"Subscriber\",'Enrollment Form'!$CQ107=\"Yes\"),\"-\",\"Y\")))))","v":""},{"$f":"IF('Enrollment Form'!AH107=\"\",\"\",IF(ISERROR(SEARCH(\".\",'Enrollment Form'!AH107,SEARCH(\"@\",'Enrollment Form'!AH107))),\"N\",\"Y\"))","v":""},{"$f":"IF(OR($B100=\"N\",'Enrollment Form'!$G107=\"\"),\"\",IF('Enrollment Form'!$B107<>\"Subscriber\",\"-\",IF(COUNTIF('Enrollment Form'!$AS107:$AT107,\"Yes\")=2,\"N\",\"Y\")))","v":""},{"$f":"IF(OR('Enrollment Form'!$CC107=\"\",'Enrollment Form'!$CC107=\"No\"),\"-\",IF(AND('Enrollment Form'!$CC107=\"Yes\",'Enrollment Form'!$CD107=\"\"),\"N\",\"Y\"))","v":"-"},{"$f":"IF(OR('Enrollment Form'!$CE107=\"\",'Enrollment Form'!$CE107=\"No\"),\"-\",IF(AND('Enrollment Form'!$CE107=\"Yes\",'Enrollment Form'!$CF107=\"\"),\"N\",\"Y\"))","v":"-"},{"$f":"IF(OR('Enrollment Form'!$CG107=\"\",'Enrollment Form'!$CG107=\"No\"),\"-\",IF(AND('Enrollment Form'!$CG107=\"Yes\",'Enrollment Form'!$CH107=\"\"),\"N\",\"Y\"))","v":"-"},{"$f":"IF(OR('Enrollment Form'!$CG107=\"\",'Enrollment Form'!$CG107=\"No\"),\"-\",IF(AND('Enrollment Form'!$CG107=\"Yes\",'Enrollment Form'!$CI107=\"\"),\"N\",\"Y\"))","v":"-"},{"$f":"IF('Enrollment Form'!B107<>\"Subscriber\",\"-\",IF(AND('Enrollment Form'!B107=\"Subscriber\",'Enrollment Form'!C107=\"Enroll\",'Enrollment Form'!AA107=\"\"),\"N\",\"Y\"))","v":"-"},{"$f":"IF(OR('Enrollment Form'!B107=\"Subscriber\",'Enrollment Form'!B107=\"\"),\"-\",IF('Enrollment Form'!BI107=\"\",\"N\",\"Y\"))","v":"-"},{"$f":"IF('Enrollment Form'!B107<>\"Subscriber\",\"-\",IF(AND('Enrollment Form'!B107=\"Subscriber\",'Enrollment Form'!G107=\"\"),\"N\",\"Y\"))","v":"-"},{"$f":"IF('Enrollment Form'!A107=\"\",\"\",IF('Enrollment Form'!B107=\"Subscriber\",\"-\",IF(AND('Enrollment Form'!B107<>\"Subscriber\",'Enrollment Form'!G107='Enrollment Form'!H107),\"N\",\"Y\")))","v":""},0]
[108,{"$f":"IF('Enrollment Form'!$A108<>\"\",\"Y\",\"N\")","v":"N"},{"$f":"IF(AND('Enrollment Form'!$B108=\"\",'Enrollment Form'!$C108<>\"\"),\"N\",IF($B101=\"N\",\"\",\"Y\"))","v":""},{"$f":"IF(OR($B101=\"N\",'Enrollment Form'!G108=\"\"),\"\",IF('Enrollment Form'!$B108<>\"Subscriber\",\"\",IF('Enrollment Form'!$G108='Enrollment Form'!$H108,\"Y\",\"N\")))","v":""},{"$f":"IF($B101=\"N\",\"\",IF(AND(COUNTIFS('Enrollment Form'!$H$11:$H$1000,'Enrollment Form'!$H108,'Enrollment Form'!$B$11:$B$1000,'Enrollment Form'!$B108)>1,'Enrollment Form'!$H108<>\"\"),\"N\",\"Y\"))","v":""},{"$f":"IF($B101=\"N\",\"\",IF(LEN('Enrollment Form'!$Y108)=0,\"\",IF(LEN('Enrollment Form'!$Y108)<>5,\"N\",\"Y\")))","v":""},{"$f":"IF($B101=\"N\",\"\",IF(LEN('Enrollment Form'!$AD108=0),\"\",IF(LEN('Enrollment Form'!$AD108)<>5,\"N\",\"Y\")))","v":""},{"$f":"IF($B101=\"N\",\"\",IF(LEN('Enrollment Form'!$BL108=0),\"\",IF(LEN('Enrollment Form'!$BL108)<>5,\"N\",\"Y\")))","v":""},{"$f":"IF($B101=\"N\",\"\",IF(LEN('Enrollment Form'!$AE108)=0,\"\",IF(LEN('Enrollment Form'!$AE108)<>10,\"N\",\"Y\")))","v":""},{"$f":"IF($B101=\"N\",\"\",IF(LEN('Enrollment Form'!$AF108)=0,\"\",IF(LEN('Enrollment Form'!$AF108)<>10,\"N\",\"Y\")))","v":""},{"$f":"IF('Enrollment Form'!$O108<>\"Graded\",\"-\",IF(AND('Enrollment Form'!$O108=\"Graded\",'Enrollment Form'!$AO108<>\"\"),\"Y\",\"N\"))","v":"-"},{"$f":"IF($B101=\"N\",\"\",IF(OR('Enrollment Form'!$B108<>\"Subscriber\",'Enrollment Form'!$C108=\"ROC\"),\"-\",IF(AND('Enrollment Form'!$B108=\"Subscriber\",'Enrollment Form'!$C108=\"Enroll\",'Enrollment Form'!$AJ108<>\"\"),\"Y\",\"N\")))","v":""},{"$f":"IF($B101=\"N\",\"\",IF(OR('Enrollment Form'!$B108<>\"Subscriber\",'Enrollment Form'!$C108=\"ROC\"),\"-\",IF(AND('Enrollment Form'!$B108=\"Subscriber\",'Enrollment Form'!$C108=\"Enroll\",'Enrollment Form'!$AK108<>\"\"),\"Y\",\"N\")))","v":""},{"$f":"IF($B101=\"N\",\"\",IF(OR('Enrollment Form'!$B108<>\"Subscriber\",'Enrollment Form'!$C108=\"ROC\"),\"-\",IF(AND('Enrollment Form'!$B108=\"Subscriber\",'Enrollment Form'!$C108=\"Enroll\",'Enrollment Form'!$AL108<>\"\"),\"Y\",\"N\")))","v":""},{"$f":"IF($B101=\"N\",\"\",IF(OR('Enrollment Form'!$B108<>\"Subscriber\",'Enrollment Form'!$C108=\"ROC\"),\"-\",IF(AND('Enrollment Form'!$B108=\"Subscriber\",'Enrollment Form'!$C108=\"Enroll\",'Enrollment Form'!$AM108<>\"\"),\"Y\",\"N\")))","v":""},{"$f":"IF($B101=\"N\",\"\",IF(OR('Enrollment Form'!$B108<>\"Subscriber\",'Enrollment Form'!$C108=\"ROC\"),\"-\",IF(AND('Enrollment Form'!$B108=\"Subscriber\",'Enrollment Form'!$C108=\"Enroll\",'Enrollment Form'!$AN108<>\"\"),\"Y\",\"N\")))","v":""},{"$f":"IF($B101=\"N\",\"\",IF(OR('Enrollment Form'!$B108<>\"Subscriber\",'Enrollment Form'!$C108=\"ROC\"),\"-\",IF(AND('Enrollment Form'!$B108=\"Subscriber\",'Enrollment Form'!$C108=\"Enroll\",'Enrollment Form'!$AP108<>\"\"),\"Y\",\"N\")))","v":""},{"$f":"IF($B101=\"N\",\"\",IF($Q101=\"-\",\"-\",IF(AND($Q101=\"Y\",'Enrollment Form'!$AP108=\"No\"),\"-\",IF(AND($Q101=\"Y\",'Enrollment Form'!$AP108=\"Yes\",'Enrollment Form'!$AQ108<>\"\"),\"Y\",\"N\"))))","v":""},{"$f":"IF($B101=\"N\",\"\",IF(OR('Enrollment Form'!$B108<>\"Subscriber\",'Enrollment Form'!$C108=\"ROC\"),\"-\",IF(AND('Enrollment Form'!$B108=\"Subscriber\",'Enrollment Form'!$C108=\"Enroll\",'Enrollment Form'!$CO108<>\"\"),\"Y\",\"N\")))","v":""},{"$f":"IF($B101=\"N\",\"\",IF($S101=\"-\",\"-\",IF(AND($S101=\"Y\",'Enrollment Form'!$CO108=\"No\"),\"-\",IF(AND($S101=\"Y\",'Enrollment Form'!$CO108=\"Yes\",'Enrollment Form'!$CP108<>\"\"),\"Y\",\"N\"))))","v":""},{"$f":"IF(OR('Enrollment Form'!$AV108=\"Yes\",'Enrollment Form'!$AV108=\"\"),\"-\",IF(AND('Enrollment Form'!$AV108=\"No\",ISERROR(FIND(\"HMO\",VLOOKUP('Enrollment Form'!G108,'Enrollment Form'!H$11:J$1000,3,FALSE),1))=FALSE,COUNTA('Enrollment Form'!$AW108:$AZ108)=4),\"Y\",\"N\"))","v":"-"},{"$f":"IF($B101=\"N\",\"\",IF('Enrollment Form'!$B108=\"Subscriber\",\"-\",IF(COUNTA('Enrollment Form'!$BE108,'Enrollment Form'!$BG108)=2,\"Y\",\"N\")))","v":""},{"$f":"IF($B101=\"N\",\"\",IF(OR('Enrollment Form'!$AU108=\"\",'Enrollment Form'!$AU108=\"No\"),\"-\",IF(AND('Enrollment Form'!$AU108=\"Yes\",COUNTA('Enrollment Form'!$CK108)=1),\"Y\",\"N\")))","v":""},{"$f":"IF(OR('Enrollment Form'!$CK108=\"\",'Enrollment Form'!$CK108=\"No\"),\"-\",IF(COUNTA('Enrollment Form'!$CM108:$CN108)=2,\"Y\",\"N\"))","v":"-"},{"$f":"IF($B101=\"N\",\"\",IF(COUNTIF('Enrollment Form'!$CZ108:$DO108,\"Other\")=COUNTA('Enrollment Form'!$DF108,'Enrollment Form'!$DA108,'Enrollment Form'!$DK108,'Enrollment Form'!$DP108),\"Y\",\"N\"))","v":""},{"$f":"IF($B101=\"N\",\"\",IF(OR('Enrollment Form'!B108<>\"Subscriber\",'Enrollment Form'!C108=\"ROC\",COUNTIF('Enrollment Form'!AS108:AT108,\"Yes\")>=1),\"-\",IF(AND('Enrollment Form'!C108=\"Enroll\",COUNTIF('Enrollment Form'!AS108:AT108,\"No\")=2,'Enrollment Form'!AU108=\"\"),\"N\",\"Y\")))","v":""},{"$f":"IF(OR(B101=\"N\",'Enrollment Form'!B108<>\"Subscriber\",'Enrollment Form'!C108=\"ROC\",'Enrollment Form'!O108<>\"Multiple of Salary\"),\"-\",IF(COUNTA('Enrollment Form'!T108:U108)<2,\"N\",\"Y\"))","v":"-"},{"$f":"IF(B101=\"N\",\"\",IF(OR('Enrollment Form'!C108=\"ROC\",'Enrollment Form'!B108<>\"Subscriber\",'Enrollment Form'!O108=\"Waive\",'Enrollment Form'!O108=\"\"),\"-\",IF('Enrollment Form'!P108=\"\",\"N\",\"Y\")))","v":""},{"$f":"IF($B101=\"N\",\"\",IF(AND('Enrollment Form'!$C108=\"ROC\",'Enrollment Form'!$DS108<>\"\"),\"Y\",IF(AND('Enrollment Form'!$C108=\"ROC\",'Enrollment Form'!$DS108=\"\"),\"N\",IF(AND('Enrollment Form'!$C108=\"Enroll\",'Enrollment Form'!$B108=\"Subscriber\",'Enrollment Form'!$CQ108=\"No\",'Enrollment Form'!$DS108=\"\"),\"N\",IF(AND('Enrollment Form'!$C108=\"Enroll\",'Enrollment Form'!$B108=\"Subscriber\",'Enrollment Form'!$CQ108=\"Yes\"),\"-\",\"Y\")))))","v":""},{"$f":"IF($B101=\"N\",\"\",IF(AND('Enrollment Form'!$C108=\"ROC\",'Enrollment Form'!$DT108<>\"\"),\"Y\",IF(AND('Enrollment Form'!$C108=\"ROC\",'Enrollment Form'!$DT108=\"\"),\"N\",IF(AND('Enrollment Form'!$C108=\"Enroll\",'Enrollment Form'!$B108=\"Subscriber\",'Enrollment Form'!$CQ108=\"No\",'Enrollment Form'!$DT108=\"\"),\"N\",IF(AND('Enrollment Form'!$C108=\"Enroll\",'Enrollment Form'!$B108=\"Subscriber\",'Enrollment Form'!$CQ108=\"Yes\"),\"-\",\"Y\")))))","v":""},{"$f":"IF('Enrollment Form'!AH108=\"\",\"\",IF(ISERROR(SEARCH(\".\",'Enrollment Form'!AH108,SEARCH(\"@\",'Enrollment Form'!AH108))),\"N\",\"Y\"))","v":""},{"$f":"IF(OR($B101=\"N\",'Enrollment Form'!$G108=\"\"),\"\",IF('Enrollment Form'!$B108<>\"Subscriber\",\"-\",IF(COUNTIF('Enrollment Form'!$AS108:$AT108,\"Yes\")=2,\"N\",\"Y\")))","v":""},{"$f":"IF(OR('Enrollment Form'!$CC108=\"\",'Enrollment Form'!$CC108=\"No\"),\"-\",IF(AND('Enrollment Form'!$CC108=\"Yes\",'Enrollment Form'!$CD108=\"\"),\"N\",\"Y\"))","v":"-"},{"$f":"IF(OR('Enrollment Form'!$CE108=\"\",'Enrollment Form'!$CE108=\"No\"),\"-\",IF(AND('Enrollment Form'!$CE108=\"Yes\",'Enrollment Form'!$CF108=\"\"),\"N\",\"Y\"))","v":"-"},{"$f":"IF(OR('Enrollment Form'!$CG108=\"\",'Enrollment Form'!$CG108=\"No\"),\"-\",IF(AND('Enrollment Form'!$CG108=\"Yes\",'Enrollment Form'!$CH108=\"\"),\"N\",\"Y\"))","v":"-"},{"$f":"IF(OR('Enrollment Form'!$CG108=\"\",'Enrollment Form'!$CG108=\"No\"),\"-\",IF(AND('Enrollment Form'!$CG108=\"Yes\",'Enrollment Form'!$CI108=\"\"),\"N\",\"Y\"))","v":"-"},{"$f":"IF('Enrollment Form'!B108<>\"Subscriber\",\"-\",IF(AND('Enrollment Form'!B108=\"Subscriber\",'Enrollment Form'!C108=\"Enroll\",'Enrollment Form'!AA108=\"\"),\"N\",\"Y\"))","v":"-"},{"$f":"IF(OR('Enrollment Form'!B108=\"Subscriber\",'Enrollment Form'!B108=\"\"),\"-\",IF('Enrollment Form'!BI108=\"\",\"N\",\"Y\"))","v":"-"},{"$f":"IF('Enrollment Form'!B108<>\"Subscriber\",\"-\",IF(AND('Enrollment Form'!B108=\"Subscriber\",'Enrollment Form'!G108=\"\"),\"N\",\"Y\"))","v":"-"},{"$f":"IF('Enrollment Form'!A108=\"\",\"\",IF('Enrollment Form'!B108=\"Subscriber\",\"-\",IF(AND('Enrollment Form'!B108<>\"Subscriber\",'Enrollment Form'!G108='Enrollment Form'!H108),\"N\",\"Y\")))","v":""},0]
[109,{"$f":"IF('Enrollment Form'!$A109<>\"\",\"Y\",\"N\")","v":"N"},{"$f":"IF(AND('Enrollment Form'!$B109=\"\",'Enrollment Form'!$C109<>\"\"),\"N\",IF($B102=\"N\",\"\",\"Y\"))","v":""},{"$f":"IF(OR($B102=\"N\",'Enrollment Form'!G109=\"\"),\"\",IF('Enrollment Form'!$B109<>\"Subscriber\",\"\",IF('Enrollment Form'!$G109='Enrollment Form'!$H109,\"Y\",\"N\")))","v":""},{"$f":"IF($B102=\"N\",\"\",IF(AND(COUNTIFS('Enrollment Form'!$H$11:$H$1000,'Enrollment Form'!$H109,'Enrollment Form'!$B$11:$B$1000,'Enrollment Form'!$B109)>1,'Enrollment Form'!$H109<>\"\"),\"N\",\"Y\"))","v":""},{"$f":"IF($B102=\"N\",\"\",IF(LEN('Enrollment Form'!$Y109)=0,\"\",IF(LEN('Enrollment Form'!$Y109)<>5,\"N\",\"Y\")))","v":""},{"$f":"IF($B102=\"N\",\"\",IF(LEN('Enrollment Form'!$AD109=0),\"\",IF(LEN('Enrollment Form'!$AD109)<>5,\"N\",\"Y\")))","v":""},{"$f":"IF($B102=\"N\",\"\",IF(LEN('Enrollment Form'!$BL109=0),\"\",IF(LEN('Enrollment Form'!$BL109)<>5,\"N\",\"Y\")))","v":""},{"$f":"IF($B102=\"N\",\"\",IF(LEN('Enrollment Form'!$AE109)=0,\"\",IF(LEN('Enrollment Form'!$AE109)<>10,\"N\",\"Y\")))","v":""},{"$f":"IF($B102=\"N\",\"\",IF(LEN('Enrollment Form'!$AF109)=0,\"\",IF(LEN('Enrollment Form'!$AF109)<>10,\"N\",\"Y\")))","v":""},{"$f":"IF('Enrollment Form'!$O109<>\"Graded\",\"-\",IF(AND('Enrollment Form'!$O109=\"Graded\",'Enrollment Form'!$AO109<>\"\"),\"Y\",\"N\"))","v":"-"},{"$f":"IF($B102=\"N\",\"\",IF(OR('Enrollment Form'!$B109<>\"Subscriber\",'Enrollment Form'!$C109=\"ROC\"),\"-\",IF(AND('Enrollment Form'!$B109=\"Subscriber\",'Enrollment Form'!$C109=\"Enroll\",'Enrollment Form'!$AJ109<>\"\"),\"Y\",\"N\")))","v":""},{"$f":"IF($B102=\"N\",\"\",IF(OR('Enrollment Form'!$B109<>\"Subscriber\",'Enrollment Form'!$C109=\"ROC\"),\"-\",IF(AND('Enrollment Form'!$B109=\"Subscriber\",'Enrollment Form'!$C109=\"Enroll\",'Enrollment Form'!$AK109<>\"\"),\"Y\",\"N\")))","v":""},{"$f":"IF($B102=\"N\",\"\",IF(OR('Enrollment Form'!$B109<>\"Subscriber\",'Enrollment Form'!$C109=\"ROC\"),\"-\",IF(AND('Enrollment Form'!$B109=\"Subscriber\",'Enrollment Form'!$C109=\"Enroll\",'Enrollment Form'!$AL109<>\"\"),\"Y\",\"N\")))","v":""},{"$f":"IF($B102=\"N\",\"\",IF(OR('Enrollment Form'!$B109<>\"Subscriber\",'Enrollment Form'!$C109=\"ROC\"),\"-\",IF(AND('Enrollment Form'!$B109=\"Subscriber\",'Enrollment Form'!$C109=\"Enroll\",'Enrollment Form'!$AM109<>\"\"),\"Y\",\"N\")))","v":""},{"$f":"IF($B102=\"N\",\"\",IF(OR('Enrollment Form'!$B109<>\"Subscriber\",'Enrollment Form'!$C109=\"ROC\"),\"-\",IF(AND('Enrollment Form'!$B109=\"Subscriber\",'Enrollment Form'!$C109=\"Enroll\",'Enrollment Form'!$AN109<>\"\"),\"Y\",\"N\")))","v":""},{"$f":"IF($B102=\"N\",\"\",IF(OR('Enrollment Form'!$B109<>\"Subscriber\",'Enrollment Form'!$C109=\"ROC\"),\"-\",IF(AND('Enrollment Form'!$B109=\"Subscriber\",'Enrollment Form'!$C109=\"Enroll\",'Enrollment Form'!$AP109<>\"\"),\"Y\",\"N\")))","v":""},{"$f":"IF($B102=\"N\",\"\",IF($Q102=\"-\",\"-\",IF(AND($Q102=\"Y\",'Enrollment Form'!$AP109=\"No\"),\"-\",IF(AND($Q102=\"Y\",'Enrollment Form'!$AP109=\"Yes\",'Enrollment Form'!$AQ109<>\"\"),\"Y\",\"N\"))))","v":""},{"$f":"IF($B102=\"N\",\"\",IF(OR('Enrollment Form'!$B109<>\"Subscriber\",'Enrollment Form'!$C109=\"ROC\"),\"-\",IF(AND('Enrollment Form'!$B109=\"Subscriber\",'Enrollment Form'!$C109=\"Enroll\",'Enrollment Form'!$CO109<>\"\"),\"Y\",\"N\")))","v":""},{"$f":"IF($B102=\"N\",\"\",IF($S102=\"-\",\"-\",IF(AND($S102=\"Y\",'Enrollment Form'!$CO109=\"No\"),\"-\",IF(AND($S102=\"Y\",'Enrollment Form'!$CO109=\"Yes\",'Enrollment Form'!$CP109<>\"\"),\"Y\",\"N\"))))","v":""},{"$f":"IF(OR('Enrollment Form'!$AV109=\"Yes\",'Enrollment Form'!$AV109=\"\"),\"-\",IF(AND('Enrollment Form'!$AV109=\"No\",ISERROR(FIND(\"HMO\",VLOOKUP('Enrollment Form'!G109,'Enrollment Form'!H$11:J$1000,3,FALSE),1))=FALSE,COUNTA('Enrollment Form'!$AW109:$AZ109)=4),\"Y\",\"N\"))","v":"-"},{"$f":"IF($B102=\"N\",\"\",IF('Enrollment Form'!$B109=\"Subscriber\",\"-\",IF(COUNTA('Enrollment Form'!$BE109,'Enrollment Form'!$BG109)=2,\"Y\",\"N\")))","v":""},{"$f":"IF($B102=\"N\",\"\",IF(OR('Enrollment Form'!$AU109=\"\",'Enrollment Form'!$AU109=\"No\"),\"-\",IF(AND('Enrollment Form'!$AU109=\"Yes\",COUNTA('Enrollment Form'!$CK109)=1),\"Y\",\"N\")))","v":""},{"$f":"IF(OR('Enrollment Form'!$CK109=\"\",'Enrollment Form'!$CK109=\"No\"),\"-\",IF(COUNTA('Enrollment Form'!$CM109:$CN109)=2,\"Y\",\"N\"))","v":"-"},{"$f":"IF($B102=\"N\",\"\",IF(COUNTIF('Enrollment Form'!$CZ109:$DO109,\"Other\")=COUNTA('Enrollment Form'!$DF109,'Enrollment Form'!$DA109,'Enrollment Form'!$DK109,'Enrollment Form'!$DP109),\"Y\",\"N\"))","v":""},{"$f":"IF($B102=\"N\",\"\",IF(OR('Enrollment Form'!B109<>\"Subscriber\",'Enrollment Form'!C109=\"ROC\",COUNTIF('Enrollment Form'!AS109:AT109,\"Yes\")>=1),\"-\",IF(AND('Enrollment Form'!C109=\"Enroll\",COUNTIF('Enrollment Form'!AS109:AT109,\"No\")=2,'Enrollment Form'!AU109=\"\"),\"N\",\"Y\")))","v":""},{"$f":"IF(OR(B102=\"N\",'Enrollment Form'!B109<>\"Subscriber\",'Enrollment Form'!C109=\"ROC\",'Enrollment Form'!O109<>\"Multiple of Salary\"),\"-\",IF(COUNTA('Enrollment Form'!T109:U109)<2,\"N\",\"Y\"))","v":"-"},{"$f":"IF(B102=\"N\",\"\",IF(OR('Enrollment Form'!C109=\"ROC\",'Enrollment Form'!B109<>\"Subscriber\",'Enrollment Form'!O109=\"Waive\",'Enrollment Form'!O109=\"\"),\"-\",IF('Enrollment Form'!P109=\"\",\"N\",\"Y\")))","v":""},{"$f":"IF($B102=\"N\",\"\",IF(AND('Enrollment Form'!$C109=\"ROC\",'Enrollment Form'!$DS109<>\"\"),\"Y\",IF(AND('Enrollment Form'!$C109=\"ROC\",'Enrollment Form'!$DS109=\"\"),\"N\",IF(AND('Enrollment Form'!$C109=\"Enroll\",'Enrollment Form'!$B109=\"Subscriber\",'Enrollment Form'!$CQ109=\"No\",'Enrollment Form'!$DS109=\"\"),\"N\",IF(AND('Enrollment Form'!$C109=\"Enroll\",'Enrollment Form'!$B109=\"Subscriber\",'Enrollment Form'!$CQ109=\"Yes\"),\"-\",\"Y\")))))","v":""},{"$f":"IF($B102=\"N\",\"\",IF(AND('Enrollment Form'!$C109=\"ROC\",'Enrollment Form'!$DT109<>\"\"),\"Y\",IF(AND('Enrollment Form'!$C109=\"ROC\",'Enrollment Form'!$DT109=\"\"),\"N\",IF(AND('Enrollment Form'!$C109=\"Enroll\",'Enrollment Form'!$B109=\"Subscriber\",'Enrollment Form'!$CQ109=\"No\",'Enrollment Form'!$DT109=\"\"),\"N\",IF(AND('Enrollment Form'!$C109=\"Enroll\",'Enrollment Form'!$B109=\"Subscriber\",'Enrollment Form'!$CQ109=\"Yes\"),\"-\",\"Y\")))))","v":""},{"$f":"IF('Enrollment Form'!AH109=\"\",\"\",IF(ISERROR(SEARCH(\".\",'Enrollment Form'!AH109,SEARCH(\"@\",'Enrollment Form'!AH109))),\"N\",\"Y\"))","v":""},{"$f":"IF(OR($B102=\"N\",'Enrollment Form'!$G109=\"\"),\"\",IF('Enrollment Form'!$B109<>\"Subscriber\",\"-\",IF(COUNTIF('Enrollment Form'!$AS109:$AT109,\"Yes\")=2,\"N\",\"Y\")))","v":""},{"$f":"IF(OR('Enrollment Form'!$CC109=\"\",'Enrollment Form'!$CC109=\"No\"),\"-\",IF(AND('Enrollment Form'!$CC109=\"Yes\",'Enrollment Form'!$CD109=\"\"),\"N\",\"Y\"))","v":"-"},{"$f":"IF(OR('Enrollment Form'!$CE109=\"\",'Enrollment Form'!$CE109=\"No\"),\"-\",IF(AND('Enrollment Form'!$CE109=\"Yes\",'Enrollment Form'!$CF109=\"\"),\"N\",\"Y\"))","v":"-"},{"$f":"IF(OR('Enrollment Form'!$CG109=\"\",'Enrollment Form'!$CG109=\"No\"),\"-\",IF(AND('Enrollment Form'!$CG109=\"Yes\",'Enrollment Form'!$CH109=\"\"),\"N\",\"Y\"))","v":"-"},{"$f":"IF(OR('Enrollment Form'!$CG109=\"\",'Enrollment Form'!$CG109=\"No\"),\"-\",IF(AND('Enrollment Form'!$CG109=\"Yes\",'Enrollment Form'!$CI109=\"\"),\"N\",\"Y\"))","v":"-"},{"$f":"IF('Enrollment Form'!B109<>\"Subscriber\",\"-\",IF(AND('Enrollment Form'!B109=\"Subscriber\",'Enrollment Form'!C109=\"Enroll\",'Enrollment Form'!AA109=\"\"),\"N\",\"Y\"))","v":"-"},{"$f":"IF(OR('Enrollment Form'!B109=\"Subscriber\",'Enrollment Form'!B109=\"\"),\"-\",IF('Enrollment Form'!BI109=\"\",\"N\",\"Y\"))","v":"-"},{"$f":"IF('Enrollment Form'!B109<>\"Subscriber\",\"-\",IF(AND('Enrollment Form'!B109=\"Subscriber\",'Enrollment Form'!G109=\"\"),\"N\",\"Y\"))","v":"-"},{"$f":"IF('Enrollment Form'!A109=\"\",\"\",IF('Enrollment Form'!B109=\"Subscriber\",\"-\",IF(AND('Enrollment Form'!B109<>\"Subscriber\",'Enrollment Form'!G109='Enrollment Form'!H109),\"N\",\"Y\")))","v":""},0]
[110,{"$f":"IF('Enrollment Form'!$A110<>\"\",\"Y\",\"N\")","v":"N"},{"$f":"IF(AND('Enrollment Form'!$B110=\"\",'Enrollment Form'!$C110<>\"\"),\"N\",IF($B103=\"N\",\"\",\"Y\"))","v":""},{"$f":"IF(OR($B103=\"N\",'Enrollment Form'!G110=\"\"),\"\",IF('Enrollment Form'!$B110<>\"Subscriber\",\"\",IF('Enrollment Form'!$G110='Enrollment Form'!$H110,\"Y\",\"N\")))","v":""},{"$f":"IF($B103=\"N\",\"\",IF(AND(COUNTIFS('Enrollment Form'!$H$11:$H$1000,'Enrollment Form'!$H110,'Enrollment Form'!$B$11:$B$1000,'Enrollment Form'!$B110)>1,'Enrollment Form'!$H110<>\"\"),\"N\",\"Y\"))","v":""},{"$f":"IF($B103=\"N\",\"\",IF(LEN('Enrollment Form'!$Y110)=0,\"\",IF(LEN('Enrollment Form'!$Y110)<>5,\"N\",\"Y\")))","v":""},{"$f":"IF($B103=\"N\",\"\",IF(LEN('Enrollment Form'!$AD110=0),\"\",IF(LEN('Enrollment Form'!$AD110)<>5,\"N\",\"Y\")))","v":""},{"$f":"IF($B103=\"N\",\"\",IF(LEN('Enrollment Form'!$BL110=0),\"\",IF(LEN('Enrollment Form'!$BL110)<>5,\"N\",\"Y\")))","v":""},{"$f":"IF($B103=\"N\",\"\",IF(LEN('Enrollment Form'!$AE110)=0,\"\",IF(LEN('Enrollment Form'!$AE110)<>10,\"N\",\"Y\")))","v":""},{"$f":"IF($B103=\"N\",\"\",IF(LEN('Enrollment Form'!$AF110)=0,\"\",IF(LEN('Enrollment Form'!$AF110)<>10,\"N\",\"Y\")))","v":""},{"$f":"IF('Enrollment Form'!$O110<>\"Graded\",\"-\",IF(AND('Enrollment Form'!$O110=\"Graded\",'Enrollment Form'!$AO110<>\"\"),\"Y\",\"N\"))","v":"-"},{"$f":"IF($B103=\"N\",\"\",IF(OR('Enrollment Form'!$B110<>\"Subscriber\",'Enrollment Form'!$C110=\"ROC\"),\"-\",IF(AND('Enrollment Form'!$B110=\"Subscriber\",'Enrollment Form'!$C110=\"Enroll\",'Enrollment Form'!$AJ110<>\"\"),\"Y\",\"N\")))","v":""},{"$f":"IF($B103=\"N\",\"\",IF(OR('Enrollment Form'!$B110<>\"Subscriber\",'Enrollment Form'!$C110=\"ROC\"),\"-\",IF(AND('Enrollment Form'!$B110=\"Subscriber\",'Enrollment Form'!$C110=\"Enroll\",'Enrollment Form'!$AK110<>\"\"),\"Y\",\"N\")))","v":""},{"$f":"IF($B103=\"N\",\"\",IF(OR('Enrollment Form'!$B110<>\"Subscriber\",'Enrollment Form'!$C110=\"ROC\"),\"-\",IF(AND('Enrollment Form'!$B110=\"Subscriber\",'Enrollment Form'!$C110=\"Enroll\",'Enrollment Form'!$AL110<>\"\"),\"Y\",\"N\")))","v":""},{"$f":"IF($B103=\"N\",\"\",IF(OR('Enrollment Form'!$B110<>\"Subscriber\",'Enrollment Form'!$C110=\"ROC\"),\"-\",IF(AND('Enrollment Form'!$B110=\"Subscriber\",'Enrollment Form'!$C110=\"Enroll\",'Enrollment Form'!$AM110<>\"\"),\"Y\",\"N\")))","v":""},{"$f":"IF($B103=\"N\",\"\",IF(OR('Enrollment Form'!$B110<>\"Subscriber\",'Enrollment Form'!$C110=\"ROC\"),\"-\",IF(AND('Enrollment Form'!$B110=\"Subscriber\",'Enrollment Form'!$C110=\"Enroll\",'Enrollment Form'!$AN110<>\"\"),\"Y\",\"N\")))","v":""},{"$f":"IF($B103=\"N\",\"\",IF(OR('Enrollment Form'!$B110<>\"Subscriber\",'Enrollment Form'!$C110=\"ROC\"),\"-\",IF(AND('Enrollment Form'!$B110=\"Subscriber\",'Enrollment Form'!$C110=\"Enroll\",'Enrollment Form'!$AP110<>\"\"),\"Y\",\"N\")))","v":""},{"$f":"IF($B103=\"N\",\"\",IF($Q103=\"-\",\"-\",IF(AND($Q103=\"Y\",'Enrollment Form'!$AP110=\"No\"),\"-\",IF(AND($Q103=\"Y\",'Enrollment Form'!$AP110=\"Yes\",'Enrollment Form'!$AQ110<>\"\"),\"Y\",\"N\"))))","v":""},{"$f":"IF($B103=\"N\",\"\",IF(OR('Enrollment Form'!$B110<>\"Subscriber\",'Enrollment Form'!$C110=\"ROC\"),\"-\",IF(AND('Enrollment Form'!$B110=\"Subscriber\",'Enrollment Form'!$C110=\"Enroll\",'Enrollment Form'!$CO110<>\"\"),\"Y\",\"N\")))","v":""},{"$f":"IF($B103=\"N\",\"\",IF($S103=\"-\",\"-\",IF(AND($S103=\"Y\",'Enrollment Form'!$CO110=\"No\"),\"-\",IF(AND($S103=\"Y\",'Enrollment Form'!$CO110=\"Yes\",'Enrollment Form'!$CP110<>\"\"),\"Y\",\"N\"))))","v":""},{"$f":"IF(OR('Enrollment Form'!$AV110=\"Yes\",'Enrollment Form'!$AV110=\"\"),\"-\",IF(AND('Enrollment Form'!$AV110=\"No\",ISERROR(FIND(\"HMO\",VLOOKUP('Enrollment Form'!G110,'Enrollment Form'!H$11:J$1000,3,FALSE),1))=FALSE,COUNTA('Enrollment Form'!$AW110:$AZ110)=4),\"Y\",\"N\"))","v":"-"},{"$f":"IF($B103=\"N\",\"\",IF('Enrollment Form'!$B110=\"Subscriber\",\"-\",IF(COUNTA('Enrollment Form'!$BE110,'Enrollment Form'!$BG110)=2,\"Y\",\"N\")))","v":""},{"$f":"IF($B103=\"N\",\"\",IF(OR('Enrollment Form'!$AU110=\"\",'Enrollment Form'!$AU110=\"No\"),\"-\",IF(AND('Enrollment Form'!$AU110=\"Yes\",COUNTA('Enrollment Form'!$CK110)=1),\"Y\",\"N\")))","v":""},{"$f":"IF(OR('Enrollment Form'!$CK110=\"\",'Enrollment Form'!$CK110=\"No\"),\"-\",IF(COUNTA('Enrollment Form'!$CM110:$CN110)=2,\"Y\",\"N\"))","v":"-"},{"$f":"IF($B103=\"N\",\"\",IF(COUNTIF('Enrollment Form'!$CZ110:$DO110,\"Other\")=COUNTA('Enrollment Form'!$DF110,'Enrollment Form'!$DA110,'Enrollment Form'!$DK110,'Enrollment Form'!$DP110),\"Y\",\"N\"))","v":""},{"$f":"IF($B103=\"N\",\"\",IF(OR('Enrollment Form'!B110<>\"Subscriber\",'Enrollment Form'!C110=\"ROC\",COUNTIF('Enrollment Form'!AS110:AT110,\"Yes\")>=1),\"-\",IF(AND('Enrollment Form'!C110=\"Enroll\",COUNTIF('Enrollment Form'!AS110:AT110,\"No\")=2,'Enrollment Form'!AU110=\"\"),\"N\",\"Y\")))","v":""},{"$f":"IF(OR(B103=\"N\",'Enrollment Form'!B110<>\"Subscriber\",'Enrollment Form'!C110=\"ROC\",'Enrollment Form'!O110<>\"Multiple of Salary\"),\"-\",IF(COUNTA('Enrollment Form'!T110:U110)<2,\"N\",\"Y\"))","v":"-"},{"$f":"IF(B103=\"N\",\"\",IF(OR('Enrollment Form'!C110=\"ROC\",'Enrollment Form'!B110<>\"Subscriber\",'Enrollment Form'!O110=\"Waive\",'Enrollment Form'!O110=\"\"),\"-\",IF('Enrollment Form'!P110=\"\",\"N\",\"Y\")))","v":""},{"$f":"IF($B103=\"N\",\"\",IF(AND('Enrollment Form'!$C110=\"ROC\",'Enrollment Form'!$DS110<>\"\"),\"Y\",IF(AND('Enrollment Form'!$C110=\"ROC\",'Enrollment Form'!$DS110=\"\"),\"N\",IF(AND('Enrollment Form'!$C110=\"Enroll\",'Enrollment Form'!$B110=\"Subscriber\",'Enrollment Form'!$CQ110=\"No\",'Enrollment Form'!$DS110=\"\"),\"N\",IF(AND('Enrollment Form'!$C110=\"Enroll\",'Enrollment Form'!$B110=\"Subscriber\",'Enrollment Form'!$CQ110=\"Yes\"),\"-\",\"Y\")))))","v":""},{"$f":"IF($B103=\"N\",\"\",IF(AND('Enrollment Form'!$C110=\"ROC\",'Enrollment Form'!$DT110<>\"\"),\"Y\",IF(AND('Enrollment Form'!$C110=\"ROC\",'Enrollment Form'!$DT110=\"\"),\"N\",IF(AND('Enrollment Form'!$C110=\"Enroll\",'Enrollment Form'!$B110=\"Subscriber\",'Enrollment Form'!$CQ110=\"No\",'Enrollment Form'!$DT110=\"\"),\"N\",IF(AND('Enrollment Form'!$C110=\"Enroll\",'Enrollment Form'!$B110=\"Subscriber\",'Enrollment Form'!$CQ110=\"Yes\"),\"-\",\"Y\")))))","v":""},{"$f":"IF('Enrollment Form'!AH110=\"\",\"\",IF(ISERROR(SEARCH(\".\",'Enrollment Form'!AH110,SEARCH(\"@\",'Enrollment Form'!AH110))),\"N\",\"Y\"))","v":""},{"$f":"IF(OR($B103=\"N\",'Enrollment Form'!$G110=\"\"),\"\",IF('Enrollment Form'!$B110<>\"Subscriber\",\"-\",IF(COUNTIF('Enrollment Form'!$AS110:$AT110,\"Yes\")=2,\"N\",\"Y\")))","v":""},{"$f":"IF(OR('Enrollment Form'!$CC110=\"\",'Enrollment Form'!$CC110=\"No\"),\"-\",IF(AND('Enrollment Form'!$CC110=\"Yes\",'Enrollment Form'!$CD110=\"\"),\"N\",\"Y\"))","v":"-"},{"$f":"IF(OR('Enrollment Form'!$CE110=\"\",'Enrollment Form'!$CE110=\"No\"),\"-\",IF(AND('Enrollment Form'!$CE110=\"Yes\",'Enrollment Form'!$CF110=\"\"),\"N\",\"Y\"))","v":"-"},{"$f":"IF(OR('Enrollment Form'!$CG110=\"\",'Enrollment Form'!$CG110=\"No\"),\"-\",IF(AND('Enrollment Form'!$CG110=\"Yes\",'Enrollment Form'!$CH110=\"\"),\"N\",\"Y\"))","v":"-"},{"$f":"IF(OR('Enrollment Form'!$CG110=\"\",'Enrollment Form'!$CG110=\"No\"),\"-\",IF(AND('Enrollment Form'!$CG110=\"Yes\",'Enrollment Form'!$CI110=\"\"),\"N\",\"Y\"))","v":"-"},{"$f":"IF('Enrollment Form'!B110<>\"Subscriber\",\"-\",IF(AND('Enrollment Form'!B110=\"Subscriber\",'Enrollment Form'!C110=\"Enroll\",'Enrollment Form'!AA110=\"\"),\"N\",\"Y\"))","v":"-"},{"$f":"IF(OR('Enrollment Form'!B110=\"Subscriber\",'Enrollment Form'!B110=\"\"),\"-\",IF('Enrollment Form'!BI110=\"\",\"N\",\"Y\"))","v":"-"},{"$f":"IF('Enrollment Form'!B110<>\"Subscriber\",\"-\",IF(AND('Enrollment Form'!B110=\"Subscriber\",'Enrollment Form'!G110=\"\"),\"N\",\"Y\"))","v":"-"},{"$f":"IF('Enrollment Form'!A110=\"\",\"\",IF('Enrollment Form'!B110=\"Subscriber\",\"-\",IF(AND('Enrollment Form'!B110<>\"Subscriber\",'Enrollment Form'!G110='Enrollment Form'!H110),\"N\",\"Y\")))","v":""},0]
[111,{"$f":"IF('Enrollment Form'!$A111<>\"\",\"Y\",\"N\")","v":"N"},{"$f":"IF(AND('Enrollment Form'!$B111=\"\",'Enrollment Form'!$C111<>\"\"),\"N\",IF($B104=\"N\",\"\",\"Y\"))","v":""},{"$f":"IF(OR($B104=\"N\",'Enrollment Form'!G111=\"\"),\"\",IF('Enrollment Form'!$B111<>\"Subscriber\",\"\",IF('Enrollment Form'!$G111='Enrollment Form'!$H111,\"Y\",\"N\")))","v":""},{"$f":"IF($B104=\"N\",\"\",IF(AND(COUNTIFS('Enrollment Form'!$H$11:$H$1000,'Enrollment Form'!$H111,'Enrollment Form'!$B$11:$B$1000,'Enrollment Form'!$B111)>1,'Enrollment Form'!$H111<>\"\"),\"N\",\"Y\"))","v":""},{"$f":"IF($B104=\"N\",\"\",IF(LEN('Enrollment Form'!$Y111)=0,\"\",IF(LEN('Enrollment Form'!$Y111)<>5,\"N\",\"Y\")))","v":""},{"$f":"IF($B104=\"N\",\"\",IF(LEN('Enrollment Form'!$AD111=0),\"\",IF(LEN('Enrollment Form'!$AD111)<>5,\"N\",\"Y\")))","v":""},{"$f":"IF($B104=\"N\",\"\",IF(LEN('Enrollment Form'!$BL111=0),\"\",IF(LEN('Enrollment Form'!$BL111)<>5,\"N\",\"Y\")))","v":""},{"$f":"IF($B104=\"N\",\"\",IF(LEN('Enrollment Form'!$AE111)=0,\"\",IF(LEN('Enrollment Form'!$AE111)<>10,\"N\",\"Y\")))","v":""},{"$f":"IF($B104=\"N\",\"\",IF(LEN('Enrollment Form'!$AF111)=0,\"\",IF(LEN('Enrollment Form'!$AF111)<>10,\"N\",\"Y\")))","v":""},{"$f":"IF('Enrollment Form'!$O111<>\"Graded\",\"-\",IF(AND('Enrollment Form'!$O111=\"Graded\",'Enrollment Form'!$AO111<>\"\"),\"Y\",\"N\"))","v":"-"},{"$f":"IF($B104=\"N\",\"\",IF(OR('Enrollment Form'!$B111<>\"Subscriber\",'Enrollment Form'!$C111=\"ROC\"),\"-\",IF(AND('Enrollment Form'!$B111=\"Subscriber\",'Enrollment Form'!$C111=\"Enroll\",'Enrollment Form'!$AJ111<>\"\"),\"Y\",\"N\")))","v":""},{"$f":"IF($B104=\"N\",\"\",IF(OR('Enrollment Form'!$B111<>\"Subscriber\",'Enrollment Form'!$C111=\"ROC\"),\"-\",IF(AND('Enrollment Form'!$B111=\"Subscriber\",'Enrollment Form'!$C111=\"Enroll\",'Enrollment Form'!$AK111<>\"\"),\"Y\",\"N\")))","v":""},{"$f":"IF($B104=\"N\",\"\",IF(OR('Enrollment Form'!$B111<>\"Subscriber\",'Enrollment Form'!$C111=\"ROC\"),\"-\",IF(AND('Enrollment Form'!$B111=\"Subscriber\",'Enrollment Form'!$C111=\"Enroll\",'Enrollment Form'!$AL111<>\"\"),\"Y\",\"N\")))","v":""},{"$f":"IF($B104=\"N\",\"\",IF(OR('Enrollment Form'!$B111<>\"Subscriber\",'Enrollment Form'!$C111=\"ROC\"),\"-\",IF(AND('Enrollment Form'!$B111=\"Subscriber\",'Enrollment Form'!$C111=\"Enroll\",'Enrollment Form'!$AM111<>\"\"),\"Y\",\"N\")))","v":""},{"$f":"IF($B104=\"N\",\"\",IF(OR('Enrollment Form'!$B111<>\"Subscriber\",'Enrollment Form'!$C111=\"ROC\"),\"-\",IF(AND('Enrollment Form'!$B111=\"Subscriber\",'Enrollment Form'!$C111=\"Enroll\",'Enrollment Form'!$AN111<>\"\"),\"Y\",\"N\")))","v":""},{"$f":"IF($B104=\"N\",\"\",IF(OR('Enrollment Form'!$B111<>\"Subscriber\",'Enrollment Form'!$C111=\"ROC\"),\"-\",IF(AND('Enrollment Form'!$B111=\"Subscriber\",'Enrollment Form'!$C111=\"Enroll\",'Enrollment Form'!$AP111<>\"\"),\"Y\",\"N\")))","v":""},{"$f":"IF($B104=\"N\",\"\",IF($Q104=\"-\",\"-\",IF(AND($Q104=\"Y\",'Enrollment Form'!$AP111=\"No\"),\"-\",IF(AND($Q104=\"Y\",'Enrollment Form'!$AP111=\"Yes\",'Enrollment Form'!$AQ111<>\"\"),\"Y\",\"N\"))))","v":""},{"$f":"IF($B104=\"N\",\"\",IF(OR('Enrollment Form'!$B111<>\"Subscriber\",'Enrollment Form'!$C111=\"ROC\"),\"-\",IF(AND('Enrollment Form'!$B111=\"Subscriber\",'Enrollment Form'!$C111=\"Enroll\",'Enrollment Form'!$CO111<>\"\"),\"Y\",\"N\")))","v":""},{"$f":"IF($B104=\"N\",\"\",IF($S104=\"-\",\"-\",IF(AND($S104=\"Y\",'Enrollment Form'!$CO111=\"No\"),\"-\",IF(AND($S104=\"Y\",'Enrollment Form'!$CO111=\"Yes\",'Enrollment Form'!$CP111<>\"\"),\"Y\",\"N\"))))","v":""},{"$f":"IF(OR('Enrollment Form'!$AV111=\"Yes\",'Enrollment Form'!$AV111=\"\"),\"-\",IF(AND('Enrollment Form'!$AV111=\"No\",ISERROR(FIND(\"HMO\",VLOOKUP('Enrollment Form'!G111,'Enrollment Form'!H$11:J$1000,3,FALSE),1))=FALSE,COUNTA('Enrollment Form'!$AW111:$AZ111)=4),\"Y\",\"N\"))","v":"-"},{"$f":"IF($B104=\"N\",\"\",IF('Enrollment Form'!$B111=\"Subscriber\",\"-\",IF(COUNTA('Enrollment Form'!$BE111,'Enrollment Form'!$BG111)=2,\"Y\",\"N\")))","v":""},{"$f":"IF($B104=\"N\",\"\",IF(OR('Enrollment Form'!$AU111=\"\",'Enrollment Form'!$AU111=\"No\"),\"-\",IF(AND('Enrollment Form'!$AU111=\"Yes\",COUNTA('Enrollment Form'!$CK111)=1),\"Y\",\"N\")))","v":""},{"$f":"IF(OR('Enrollment Form'!$CK111=\"\",'Enrollment Form'!$CK111=\"No\"),\"-\",IF(COUNTA('Enrollment Form'!$CM111:$CN111)=2,\"Y\",\"N\"))","v":"-"},{"$f":"IF($B104=\"N\",\"\",IF(COUNTIF('Enrollment Form'!$CZ111:$DO111,\"Other\")=COUNTA('Enrollment Form'!$DF111,'Enrollment Form'!$DA111,'Enrollment Form'!$DK111,'Enrollment Form'!$DP111),\"Y\",\"N\"))","v":""},{"$f":"IF($B104=\"N\",\"\",IF(OR('Enrollment Form'!B111<>\"Subscriber\",'Enrollment Form'!C111=\"ROC\",COUNTIF('Enrollment Form'!AS111:AT111,\"Yes\")>=1),\"-\",IF(AND('Enrollment Form'!C111=\"Enroll\",COUNTIF('Enrollment Form'!AS111:AT111,\"No\")=2,'Enrollment Form'!AU111=\"\"),\"N\",\"Y\")))","v":""},{"$f":"IF(OR(B104=\"N\",'Enrollment Form'!B111<>\"Subscriber\",'Enrollment Form'!C111=\"ROC\",'Enrollment Form'!O111<>\"Multiple of Salary\"),\"-\",IF(COUNTA('Enrollment Form'!T111:U111)<2,\"N\",\"Y\"))","v":"-"},{"$f":"IF(B104=\"N\",\"\",IF(OR('Enrollment Form'!C111=\"ROC\",'Enrollment Form'!B111<>\"Subscriber\",'Enrollment Form'!O111=\"Waive\",'Enrollment Form'!O111=\"\"),\"-\",IF('Enrollment Form'!P111=\"\",\"N\",\"Y\")))","v":""},{"$f":"IF($B104=\"N\",\"\",IF(AND('Enrollment Form'!$C111=\"ROC\",'Enrollment Form'!$DS111<>\"\"),\"Y\",IF(AND('Enrollment Form'!$C111=\"ROC\",'Enrollment Form'!$DS111=\"\"),\"N\",IF(AND('Enrollment Form'!$C111=\"Enroll\",'Enrollment Form'!$B111=\"Subscriber\",'Enrollment Form'!$CQ111=\"No\",'Enrollment Form'!$DS111=\"\"),\"N\",IF(AND('Enrollment Form'!$C111=\"Enroll\",'Enrollment Form'!$B111=\"Subscriber\",'Enrollment Form'!$CQ111=\"Yes\"),\"-\",\"Y\")))))","v":""},{"$f":"IF($B104=\"N\",\"\",IF(AND('Enrollment Form'!$C111=\"ROC\",'Enrollment Form'!$DT111<>\"\"),\"Y\",IF(AND('Enrollment Form'!$C111=\"ROC\",'Enrollment Form'!$DT111=\"\"),\"N\",IF(AND('Enrollment Form'!$C111=\"Enroll\",'Enrollment Form'!$B111=\"Subscriber\",'Enrollment Form'!$CQ111=\"No\",'Enrollment Form'!$DT111=\"\"),\"N\",IF(AND('Enrollment Form'!$C111=\"Enroll\",'Enrollment Form'!$B111=\"Subscriber\",'Enrollment Form'!$CQ111=\"Yes\"),\"-\",\"Y\")))))","v":""},{"$f":"IF('Enrollment Form'!AH111=\"\",\"\",IF(ISERROR(SEARCH(\".\",'Enrollment Form'!AH111,SEARCH(\"@\",'Enrollment Form'!AH111))),\"N\",\"Y\"))","v":""},{"$f":"IF(OR($B104=\"N\",'Enrollment Form'!$G111=\"\"),\"\",IF('Enrollment Form'!$B111<>\"Subscriber\",\"-\",IF(COUNTIF('Enrollment Form'!$AS111:$AT111,\"Yes\")=2,\"N\",\"Y\")))","v":""},{"$f":"IF(OR('Enrollment Form'!$CC111=\"\",'Enrollment Form'!$CC111=\"No\"),\"-\",IF(AND('Enrollment Form'!$CC111=\"Yes\",'Enrollment Form'!$CD111=\"\"),\"N\",\"Y\"))","v":"-"},{"$f":"IF(OR('Enrollment Form'!$CE111=\"\",'Enrollment Form'!$CE111=\"No\"),\"-\",IF(AND('Enrollment Form'!$CE111=\"Yes\",'Enrollment Form'!$CF111=\"\"),\"N\",\"Y\"))","v":"-"},{"$f":"IF(OR('Enrollment Form'!$CG111=\"\",'Enrollment Form'!$CG111=\"No\"),\"-\",IF(AND('Enrollment Form'!$CG111=\"Yes\",'Enrollment Form'!$CH111=\"\"),\"N\",\"Y\"))","v":"-"},{"$f":"IF(OR('Enrollment Form'!$CG111=\"\",'Enrollment Form'!$CG111=\"No\"),\"-\",IF(AND('Enrollment Form'!$CG111=\"Yes\",'Enrollment Form'!$CI111=\"\"),\"N\",\"Y\"))","v":"-"},{"$f":"IF('Enrollment Form'!B111<>\"Subscriber\",\"-\",IF(AND('Enrollment Form'!B111=\"Subscriber\",'Enrollment Form'!C111=\"Enroll\",'Enrollment Form'!AA111=\"\"),\"N\",\"Y\"))","v":"-"},{"$f":"IF(OR('Enrollment Form'!B111=\"Subscriber\",'Enrollment Form'!B111=\"\"),\"-\",IF('Enrollment Form'!BI111=\"\",\"N\",\"Y\"))","v":"-"},{"$f":"IF('Enrollment Form'!B111<>\"Subscriber\",\"-\",IF(AND('Enrollment Form'!B111=\"Subscriber\",'Enrollment Form'!G111=\"\"),\"N\",\"Y\"))","v":"-"},{"$f":"IF('Enrollment Form'!A111=\"\",\"\",IF('Enrollment Form'!B111=\"Subscriber\",\"-\",IF(AND('Enrollment Form'!B111<>\"Subscriber\",'Enrollment Form'!G111='Enrollment Form'!H111),\"N\",\"Y\")))","v":""},0]
[112,{"$f":"IF('Enrollment Form'!$A112<>\"\",\"Y\",\"N\")","v":"N"},{"$f":"IF(AND('Enrollment Form'!$B112=\"\",'Enrollment Form'!$C112<>\"\"),\"N\",IF($B105=\"N\",\"\",\"Y\"))","v":""},{"$f":"IF(OR($B105=\"N\",'Enrollment Form'!G112=\"\"),\"\",IF('Enrollment Form'!$B112<>\"Subscriber\",\"\",IF('Enrollment Form'!$G112='Enrollment Form'!$H112,\"Y\",\"N\")))","v":""},{"$f":"IF($B105=\"N\",\"\",IF(AND(COUNTIFS('Enrollment Form'!$H$11:$H$1000,'Enrollment Form'!$H112,'Enrollment Form'!$B$11:$B$1000,'Enrollment Form'!$B112)>1,'Enrollment Form'!$H112<>\"\"),\"N\",\"Y\"))","v":""},{"$f":"IF($B105=\"N\",\"\",IF(LEN('Enrollment Form'!$Y112)=0,\"\",IF(LEN('Enrollment Form'!$Y112)<>5,\"N\",\"Y\")))","v":""},{"$f":"IF($B105=\"N\",\"\",IF(LEN('Enrollment Form'!$AD112=0),\"\",IF(LEN('Enrollment Form'!$AD112)<>5,\"N\",\"Y\")))","v":""},{"$f":"IF($B105=\"N\",\"\",IF(LEN('Enrollment Form'!$BL112=0),\"\",IF(LEN('Enrollment Form'!$BL112)<>5,\"N\",\"Y\")))","v":""},{"$f":"IF($B105=\"N\",\"\",IF(LEN('Enrollment Form'!$AE112)=0,\"\",IF(LEN('Enrollment Form'!$AE112)<>10,\"N\",\"Y\")))","v":""},{"$f":"IF($B105=\"N\",\"\",IF(LEN('Enrollment Form'!$AF112)=0,\"\",IF(LEN('Enrollment Form'!$AF112)<>10,\"N\",\"Y\")))","v":""},{"$f":"IF('Enrollment Form'!$O112<>\"Graded\",\"-\",IF(AND('Enrollment Form'!$O112=\"Graded\",'Enrollment Form'!$AO112<>\"\"),\"Y\",\"N\"))","v":"-"},{"$f":"IF($B105=\"N\",\"\",IF(OR('Enrollment Form'!$B112<>\"Subscriber\",'Enrollment Form'!$C112=\"ROC\"),\"-\",IF(AND('Enrollment Form'!$B112=\"Subscriber\",'Enrollment Form'!$C112=\"Enroll\",'Enrollment Form'!$AJ112<>\"\"),\"Y\",\"N\")))","v":""},{"$f":"IF($B105=\"N\",\"\",IF(OR('Enrollment Form'!$B112<>\"Subscriber\",'Enrollment Form'!$C112=\"ROC\"),\"-\",IF(AND('Enrollment Form'!$B112=\"Subscriber\",'Enrollment Form'!$C112=\"Enroll\",'Enrollment Form'!$AK112<>\"\"),\"Y\",\"N\")))","v":""},{"$f":"IF($B105=\"N\",\"\",IF(OR('Enrollment Form'!$B112<>\"Subscriber\",'Enrollment Form'!$C112=\"ROC\"),\"-\",IF(AND('Enrollment Form'!$B112=\"Subscriber\",'Enrollment Form'!$C112=\"Enroll\",'Enrollment Form'!$AL112<>\"\"),\"Y\",\"N\")))","v":""},{"$f":"IF($B105=\"N\",\"\",IF(OR('Enrollment Form'!$B112<>\"Subscriber\",'Enrollment Form'!$C112=\"ROC\"),\"-\",IF(AND('Enrollment Form'!$B112=\"Subscriber\",'Enrollment Form'!$C112=\"Enroll\",'Enrollment Form'!$AM112<>\"\"),\"Y\",\"N\")))","v":""},{"$f":"IF($B105=\"N\",\"\",IF(OR('Enrollment Form'!$B112<>\"Subscriber\",'Enrollment Form'!$C112=\"ROC\"),\"-\",IF(AND('Enrollment Form'!$B112=\"Subscriber\",'Enrollment Form'!$C112=\"Enroll\",'Enrollment Form'!$AN112<>\"\"),\"Y\",\"N\")))","v":""},{"$f":"IF($B105=\"N\",\"\",IF(OR('Enrollment Form'!$B112<>\"Subscriber\",'Enrollment Form'!$C112=\"ROC\"),\"-\",IF(AND('Enrollment Form'!$B112=\"Subscriber\",'Enrollment Form'!$C112=\"Enroll\",'Enrollment Form'!$AP112<>\"\"),\"Y\",\"N\")))","v":""},{"$f":"IF($B105=\"N\",\"\",IF($Q105=\"-\",\"-\",IF(AND($Q105=\"Y\",'Enrollment Form'!$AP112=\"No\"),\"-\",IF(AND($Q105=\"Y\",'Enrollment Form'!$AP112=\"Yes\",'Enrollment Form'!$AQ112<>\"\"),\"Y\",\"N\"))))","v":""},{"$f":"IF($B105=\"N\",\"\",IF(OR('Enrollment Form'!$B112<>\"Subscriber\",'Enrollment Form'!$C112=\"ROC\"),\"-\",IF(AND('Enrollment Form'!$B112=\"Subscriber\",'Enrollment Form'!$C112=\"Enroll\",'Enrollment Form'!$CO112<>\"\"),\"Y\",\"N\")))","v":""},{"$f":"IF($B105=\"N\",\"\",IF($S105=\"-\",\"-\",IF(AND($S105=\"Y\",'Enrollment Form'!$CO112=\"No\"),\"-\",IF(AND($S105=\"Y\",'Enrollment Form'!$CO112=\"Yes\",'Enrollment Form'!$CP112<>\"\"),\"Y\",\"N\"))))","v":""},{"$f":"IF(OR('Enrollment Form'!$AV112=\"Yes\",'Enrollment Form'!$AV112=\"\"),\"-\",IF(AND('Enrollment Form'!$AV112=\"No\",ISERROR(FIND(\"HMO\",VLOOKUP('Enrollment Form'!G112,'Enrollment Form'!H$11:J$1000,3,FALSE),1))=FALSE,COUNTA('Enrollment Form'!$AW112:$AZ112)=4),\"Y\",\"N\"))","v":"-"},{"$f":"IF($B105=\"N\",\"\",IF('Enrollment Form'!$B112=\"Subscriber\",\"-\",IF(COUNTA('Enrollment Form'!$BE112,'Enrollment Form'!$BG112)=2,\"Y\",\"N\")))","v":""},{"$f":"IF($B105=\"N\",\"\",IF(OR('Enrollment Form'!$AU112=\"\",'Enrollment Form'!$AU112=\"No\"),\"-\",IF(AND('Enrollment Form'!$AU112=\"Yes\",COUNTA('Enrollment Form'!$CK112)=1),\"Y\",\"N\")))","v":""},{"$f":"IF(OR('Enrollment Form'!$CK112=\"\",'Enrollment Form'!$CK112=\"No\"),\"-\",IF(COUNTA('Enrollment Form'!$CM112:$CN112)=2,\"Y\",\"N\"))","v":"-"},{"$f":"IF($B105=\"N\",\"\",IF(COUNTIF('Enrollment Form'!$CZ112:$DO112,\"Other\")=COUNTA('Enrollment Form'!$DF112,'Enrollment Form'!$DA112,'Enrollment Form'!$DK112,'Enrollment Form'!$DP112),\"Y\",\"N\"))","v":""},{"$f":"IF($B105=\"N\",\"\",IF(OR('Enrollment Form'!B112<>\"Subscriber\",'Enrollment Form'!C112=\"ROC\",COUNTIF('Enrollment Form'!AS112:AT112,\"Yes\")>=1),\"-\",IF(AND('Enrollment Form'!C112=\"Enroll\",COUNTIF('Enrollment Form'!AS112:AT112,\"No\")=2,'Enrollment Form'!AU112=\"\"),\"N\",\"Y\")))","v":""},{"$f":"IF(OR(B105=\"N\",'Enrollment Form'!B112<>\"Subscriber\",'Enrollment Form'!C112=\"ROC\",'Enrollment Form'!O112<>\"Multiple of Salary\"),\"-\",IF(COUNTA('Enrollment Form'!T112:U112)<2,\"N\",\"Y\"))","v":"-"},{"$f":"IF(B105=\"N\",\"\",IF(OR('Enrollment Form'!C112=\"ROC\",'Enrollment Form'!B112<>\"Subscriber\",'Enrollment Form'!O112=\"Waive\",'Enrollment Form'!O112=\"\"),\"-\",IF('Enrollment Form'!P112=\"\",\"N\",\"Y\")))","v":""},{"$f":"IF($B105=\"N\",\"\",IF(AND('Enrollment Form'!$C112=\"ROC\",'Enrollment Form'!$DS112<>\"\"),\"Y\",IF(AND('Enrollment Form'!$C112=\"ROC\",'Enrollment Form'!$DS112=\"\"),\"N\",IF(AND('Enrollment Form'!$C112=\"Enroll\",'Enrollment Form'!$B112=\"Subscriber\",'Enrollment Form'!$CQ112=\"No\",'Enrollment Form'!$DS112=\"\"),\"N\",IF(AND('Enrollment Form'!$C112=\"Enroll\",'Enrollment Form'!$B112=\"Subscriber\",'Enrollment Form'!$CQ112=\"Yes\"),\"-\",\"Y\")))))","v":""},{"$f":"IF($B105=\"N\",\"\",IF(AND('Enrollment Form'!$C112=\"ROC\",'Enrollment Form'!$DT112<>\"\"),\"Y\",IF(AND('Enrollment Form'!$C112=\"ROC\",'Enrollment Form'!$DT112=\"\"),\"N\",IF(AND('Enrollment Form'!$C112=\"Enroll\",'Enrollment Form'!$B112=\"Subscriber\",'Enrollment Form'!$CQ112=\"No\",'Enrollment Form'!$DT112=\"\"),\"N\",IF(AND('Enrollment Form'!$C112=\"Enroll\",'Enrollment Form'!$B112=\"Subscriber\",'Enrollment Form'!$CQ112=\"Yes\"),\"-\",\"Y\")))))","v":""},{"$f":"IF('Enrollment Form'!AH112=\"\",\"\",IF(ISERROR(SEARCH(\".\",'Enrollment Form'!AH112,SEARCH(\"@\",'Enrollment Form'!AH112))),\"N\",\"Y\"))","v":""},{"$f":"IF(OR($B105=\"N\",'Enrollment Form'!$G112=\"\"),\"\",IF('Enrollment Form'!$B112<>\"Subscriber\",\"-\",IF(COUNTIF('Enrollment Form'!$AS112:$AT112,\"Yes\")=2,\"N\",\"Y\")))","v":""},{"$f":"IF(OR('Enrollment Form'!$CC112=\"\",'Enrollment Form'!$CC112=\"No\"),\"-\",IF(AND('Enrollment Form'!$CC112=\"Yes\",'Enrollment Form'!$CD112=\"\"),\"N\",\"Y\"))","v":"-"},{"$f":"IF(OR('Enrollment Form'!$CE112=\"\",'Enrollment Form'!$CE112=\"No\"),\"-\",IF(AND('Enrollment Form'!$CE112=\"Yes\",'Enrollment Form'!$CF112=\"\"),\"N\",\"Y\"))","v":"-"},{"$f":"IF(OR('Enrollment Form'!$CG112=\"\",'Enrollment Form'!$CG112=\"No\"),\"-\",IF(AND('Enrollment Form'!$CG112=\"Yes\",'Enrollment Form'!$CH112=\"\"),\"N\",\"Y\"))","v":"-"},{"$f":"IF(OR('Enrollment Form'!$CG112=\"\",'Enrollment Form'!$CG112=\"No\"),\"-\",IF(AND('Enrollment Form'!$CG112=\"Yes\",'Enrollment Form'!$CI112=\"\"),\"N\",\"Y\"))","v":"-"},{"$f":"IF('Enrollment Form'!B112<>\"Subscriber\",\"-\",IF(AND('Enrollment Form'!B112=\"Subscriber\",'Enrollment Form'!C112=\"Enroll\",'Enrollment Form'!AA112=\"\"),\"N\",\"Y\"))","v":"-"},{"$f":"IF(OR('Enrollment Form'!B112=\"Subscriber\",'Enrollment Form'!B112=\"\"),\"-\",IF('Enrollment Form'!BI112=\"\",\"N\",\"Y\"))","v":"-"},{"$f":"IF('Enrollment Form'!B112<>\"Subscriber\",\"-\",IF(AND('Enrollment Form'!B112=\"Subscriber\",'Enrollment Form'!G112=\"\"),\"N\",\"Y\"))","v":"-"},{"$f":"IF('Enrollment Form'!A112=\"\",\"\",IF('Enrollment Form'!B112=\"Subscriber\",\"-\",IF(AND('Enrollment Form'!B112<>\"Subscriber\",'Enrollment Form'!G112='Enrollment Form'!H112),\"N\",\"Y\")))","v":""},0]
[113,{"$f":"IF('Enrollment Form'!$A113<>\"\",\"Y\",\"N\")","v":"N"},{"$f":"IF(AND('Enrollment Form'!$B113=\"\",'Enrollment Form'!$C113<>\"\"),\"N\",IF($B106=\"N\",\"\",\"Y\"))","v":""},{"$f":"IF(OR($B106=\"N\",'Enrollment Form'!G113=\"\"),\"\",IF('Enrollment Form'!$B113<>\"Subscriber\",\"\",IF('Enrollment Form'!$G113='Enrollment Form'!$H113,\"Y\",\"N\")))","v":""},{"$f":"IF($B106=\"N\",\"\",IF(AND(COUNTIFS('Enrollment Form'!$H$11:$H$1000,'Enrollment Form'!$H113,'Enrollment Form'!$B$11:$B$1000,'Enrollment Form'!$B113)>1,'Enrollment Form'!$H113<>\"\"),\"N\",\"Y\"))","v":""},{"$f":"IF($B106=\"N\",\"\",IF(LEN('Enrollment Form'!$Y113)=0,\"\",IF(LEN('Enrollment Form'!$Y113)<>5,\"N\",\"Y\")))","v":""},{"$f":"IF($B106=\"N\",\"\",IF(LEN('Enrollment Form'!$AD113=0),\"\",IF(LEN('Enrollment Form'!$AD113)<>5,\"N\",\"Y\")))","v":""},{"$f":"IF($B106=\"N\",\"\",IF(LEN('Enrollment Form'!$BL113=0),\"\",IF(LEN('Enrollment Form'!$BL113)<>5,\"N\",\"Y\")))","v":""},{"$f":"IF($B106=\"N\",\"\",IF(LEN('Enrollment Form'!$AE113)=0,\"\",IF(LEN('Enrollment Form'!$AE113)<>10,\"N\",\"Y\")))","v":""},{"$f":"IF($B106=\"N\",\"\",IF(LEN('Enrollment Form'!$AF113)=0,\"\",IF(LEN('Enrollment Form'!$AF113)<>10,\"N\",\"Y\")))","v":""},{"$f":"IF('Enrollment Form'!$O113<>\"Graded\",\"-\",IF(AND('Enrollment Form'!$O113=\"Graded\",'Enrollment Form'!$AO113<>\"\"),\"Y\",\"N\"))","v":"-"},{"$f":"IF($B106=\"N\",\"\",IF(OR('Enrollment Form'!$B113<>\"Subscriber\",'Enrollment Form'!$C113=\"ROC\"),\"-\",IF(AND('Enrollment Form'!$B113=\"Subscriber\",'Enrollment Form'!$C113=\"Enroll\",'Enrollment Form'!$AJ113<>\"\"),\"Y\",\"N\")))","v":""},{"$f":"IF($B106=\"N\",\"\",IF(OR('Enrollment Form'!$B113<>\"Subscriber\",'Enrollment Form'!$C113=\"ROC\"),\"-\",IF(AND('Enrollment Form'!$B113=\"Subscriber\",'Enrollment Form'!$C113=\"Enroll\",'Enrollment Form'!$AK113<>\"\"),\"Y\",\"N\")))","v":""},{"$f":"IF($B106=\"N\",\"\",IF(OR('Enrollment Form'!$B113<>\"Subscriber\",'Enrollment Form'!$C113=\"ROC\"),\"-\",IF(AND('Enrollment Form'!$B113=\"Subscriber\",'Enrollment Form'!$C113=\"Enroll\",'Enrollment Form'!$AL113<>\"\"),\"Y\",\"N\")))","v":""},{"$f":"IF($B106=\"N\",\"\",IF(OR('Enrollment Form'!$B113<>\"Subscriber\",'Enrollment Form'!$C113=\"ROC\"),\"-\",IF(AND('Enrollment Form'!$B113=\"Subscriber\",'Enrollment Form'!$C113=\"Enroll\",'Enrollment Form'!$AM113<>\"\"),\"Y\",\"N\")))","v":""},{"$f":"IF($B106=\"N\",\"\",IF(OR('Enrollment Form'!$B113<>\"Subscriber\",'Enrollment Form'!$C113=\"ROC\"),\"-\",IF(AND('Enrollment Form'!$B113=\"Subscriber\",'Enrollment Form'!$C113=\"Enroll\",'Enrollment Form'!$AN113<>\"\"),\"Y\",\"N\")))","v":""},{"$f":"IF($B106=\"N\",\"\",IF(OR('Enrollment Form'!$B113<>\"Subscriber\",'Enrollment Form'!$C113=\"ROC\"),\"-\",IF(AND('Enrollment Form'!$B113=\"Subscriber\",'Enrollment Form'!$C113=\"Enroll\",'Enrollment Form'!$AP113<>\"\"),\"Y\",\"N\")))","v":""},{"$f":"IF($B106=\"N\",\"\",IF($Q106=\"-\",\"-\",IF(AND($Q106=\"Y\",'Enrollment Form'!$AP113=\"No\"),\"-\",IF(AND($Q106=\"Y\",'Enrollment Form'!$AP113=\"Yes\",'Enrollment Form'!$AQ113<>\"\"),\"Y\",\"N\"))))","v":""},{"$f":"IF($B106=\"N\",\"\",IF(OR('Enrollment Form'!$B113<>\"Subscriber\",'Enrollment Form'!$C113=\"ROC\"),\"-\",IF(AND('Enrollment Form'!$B113=\"Subscriber\",'Enrollment Form'!$C113=\"Enroll\",'Enrollment Form'!$CO113<>\"\"),\"Y\",\"N\")))","v":""},{"$f":"IF($B106=\"N\",\"\",IF($S106=\"-\",\"-\",IF(AND($S106=\"Y\",'Enrollment Form'!$CO113=\"No\"),\"-\",IF(AND($S106=\"Y\",'Enrollment Form'!$CO113=\"Yes\",'Enrollment Form'!$CP113<>\"\"),\"Y\",\"N\"))))","v":""},{"$f":"IF(OR('Enrollment Form'!$AV113=\"Yes\",'Enrollment Form'!$AV113=\"\"),\"-\",IF(AND('Enrollment Form'!$AV113=\"No\",ISERROR(FIND(\"HMO\",VLOOKUP('Enrollment Form'!G113,'Enrollment Form'!H$11:J$1000,3,FALSE),1))=FALSE,COUNTA('Enrollment Form'!$AW113:$AZ113)=4),\"Y\",\"N\"))","v":"-"},{"$f":"IF($B106=\"N\",\"\",IF('Enrollment Form'!$B113=\"Subscriber\",\"-\",IF(COUNTA('Enrollment Form'!$BE113,'Enrollment Form'!$BG113)=2,\"Y\",\"N\")))","v":""},{"$f":"IF($B106=\"N\",\"\",IF(OR('Enrollment Form'!$AU113=\"\",'Enrollment Form'!$AU113=\"No\"),\"-\",IF(AND('Enrollment Form'!$AU113=\"Yes\",COUNTA('Enrollment Form'!$CK113)=1),\"Y\",\"N\")))","v":""},{"$f":"IF(OR('Enrollment Form'!$CK113=\"\",'Enrollment Form'!$CK113=\"No\"),\"-\",IF(COUNTA('Enrollment Form'!$CM113:$CN113)=2,\"Y\",\"N\"))","v":"-"},{"$f":"IF($B106=\"N\",\"\",IF(COUNTIF('Enrollment Form'!$CZ113:$DO113,\"Other\")=COUNTA('Enrollment Form'!$DF113,'Enrollment Form'!$DA113,'Enrollment Form'!$DK113,'Enrollment Form'!$DP113),\"Y\",\"N\"))","v":""},{"$f":"IF($B106=\"N\",\"\",IF(OR('Enrollment Form'!B113<>\"Subscriber\",'Enrollment Form'!C113=\"ROC\",COUNTIF('Enrollment Form'!AS113:AT113,\"Yes\")>=1),\"-\",IF(AND('Enrollment Form'!C113=\"Enroll\",COUNTIF('Enrollment Form'!AS113:AT113,\"No\")=2,'Enrollment Form'!AU113=\"\"),\"N\",\"Y\")))","v":""},{"$f":"IF(OR(B106=\"N\",'Enrollment Form'!B113<>\"Subscriber\",'Enrollment Form'!C113=\"ROC\",'Enrollment Form'!O113<>\"Multiple of Salary\"),\"-\",IF(COUNTA('Enrollment Form'!T113:U113)<2,\"N\",\"Y\"))","v":"-"},{"$f":"IF(B106=\"N\",\"\",IF(OR('Enrollment Form'!C113=\"ROC\",'Enrollment Form'!B113<>\"Subscriber\",'Enrollment Form'!O113=\"Waive\",'Enrollment Form'!O113=\"\"),\"-\",IF('Enrollment Form'!P113=\"\",\"N\",\"Y\")))","v":""},{"$f":"IF($B106=\"N\",\"\",IF(AND('Enrollment Form'!$C113=\"ROC\",'Enrollment Form'!$DS113<>\"\"),\"Y\",IF(AND('Enrollment Form'!$C113=\"ROC\",'Enrollment Form'!$DS113=\"\"),\"N\",IF(AND('Enrollment Form'!$C113=\"Enroll\",'Enrollment Form'!$B113=\"Subscriber\",'Enrollment Form'!$CQ113=\"No\",'Enrollment Form'!$DS113=\"\"),\"N\",IF(AND('Enrollment Form'!$C113=\"Enroll\",'Enrollment Form'!$B113=\"Subscriber\",'Enrollment Form'!$CQ113=\"Yes\"),\"-\",\"Y\")))))","v":""},{"$f":"IF($B106=\"N\",\"\",IF(AND('Enrollment Form'!$C113=\"ROC\",'Enrollment Form'!$DT113<>\"\"),\"Y\",IF(AND('Enrollment Form'!$C113=\"ROC\",'Enrollment Form'!$DT113=\"\"),\"N\",IF(AND('Enrollment Form'!$C113=\"Enroll\",'Enrollment Form'!$B113=\"Subscriber\",'Enrollment Form'!$CQ113=\"No\",'Enrollment Form'!$DT113=\"\"),\"N\",IF(AND('Enrollment Form'!$C113=\"Enroll\",'Enrollment Form'!$B113=\"Subscriber\",'Enrollment Form'!$CQ113=\"Yes\"),\"-\",\"Y\")))))","v":""},{"$f":"IF('Enrollment Form'!AH113=\"\",\"\",IF(ISERROR(SEARCH(\".\",'Enrollment Form'!AH113,SEARCH(\"@\",'Enrollment Form'!AH113))),\"N\",\"Y\"))","v":""},{"$f":"IF(OR($B106=\"N\",'Enrollment Form'!$G113=\"\"),\"\",IF('Enrollment Form'!$B113<>\"Subscriber\",\"-\",IF(COUNTIF('Enrollment Form'!$AS113:$AT113,\"Yes\")=2,\"N\",\"Y\")))","v":""},{"$f":"IF(OR('Enrollment Form'!$CC113=\"\",'Enrollment Form'!$CC113=\"No\"),\"-\",IF(AND('Enrollment Form'!$CC113=\"Yes\",'Enrollment Form'!$CD113=\"\"),\"N\",\"Y\"))","v":"-"},{"$f":"IF(OR('Enrollment Form'!$CE113=\"\",'Enrollment Form'!$CE113=\"No\"),\"-\",IF(AND('Enrollment Form'!$CE113=\"Yes\",'Enrollment Form'!$CF113=\"\"),\"N\",\"Y\"))","v":"-"},{"$f":"IF(OR('Enrollment Form'!$CG113=\"\",'Enrollment Form'!$CG113=\"No\"),\"-\",IF(AND('Enrollment Form'!$CG113=\"Yes\",'Enrollment Form'!$CH113=\"\"),\"N\",\"Y\"))","v":"-"},{"$f":"IF(OR('Enrollment Form'!$CG113=\"\",'Enrollment Form'!$CG113=\"No\"),\"-\",IF(AND('Enrollment Form'!$CG113=\"Yes\",'Enrollment Form'!$CI113=\"\"),\"N\",\"Y\"))","v":"-"},{"$f":"IF('Enrollment Form'!B113<>\"Subscriber\",\"-\",IF(AND('Enrollment Form'!B113=\"Subscriber\",'Enrollment Form'!C113=\"Enroll\",'Enrollment Form'!AA113=\"\"),\"N\",\"Y\"))","v":"-"},{"$f":"IF(OR('Enrollment Form'!B113=\"Subscriber\",'Enrollment Form'!B113=\"\"),\"-\",IF('Enrollment Form'!BI113=\"\",\"N\",\"Y\"))","v":"-"},{"$f":"IF('Enrollment Form'!B113<>\"Subscriber\",\"-\",IF(AND('Enrollment Form'!B113=\"Subscriber\",'Enrollment Form'!G113=\"\"),\"N\",\"Y\"))","v":"-"},{"$f":"IF('Enrollment Form'!A113=\"\",\"\",IF('Enrollment Form'!B113=\"Subscriber\",\"-\",IF(AND('Enrollment Form'!B113<>\"Subscriber\",'Enrollment Form'!G113='Enrollment Form'!H113),\"N\",\"Y\")))","v":""},0]
[114,{"$f":"IF('Enrollment Form'!$A114<>\"\",\"Y\",\"N\")","v":"N"},{"$f":"IF(AND('Enrollment Form'!$B114=\"\",'Enrollment Form'!$C114<>\"\"),\"N\",IF($B107=\"N\",\"\",\"Y\"))","v":""},{"$f":"IF(OR($B107=\"N\",'Enrollment Form'!G114=\"\"),\"\",IF('Enrollment Form'!$B114<>\"Subscriber\",\"\",IF('Enrollment Form'!$G114='Enrollment Form'!$H114,\"Y\",\"N\")))","v":""},{"$f":"IF($B107=\"N\",\"\",IF(AND(COUNTIFS('Enrollment Form'!$H$11:$H$1000,'Enrollment Form'!$H114,'Enrollment Form'!$B$11:$B$1000,'Enrollment Form'!$B114)>1,'Enrollment Form'!$H114<>\"\"),\"N\",\"Y\"))","v":""},{"$f":"IF($B107=\"N\",\"\",IF(LEN('Enrollment Form'!$Y114)=0,\"\",IF(LEN('Enrollment Form'!$Y114)<>5,\"N\",\"Y\")))","v":""},{"$f":"IF($B107=\"N\",\"\",IF(LEN('Enrollment Form'!$AD114=0),\"\",IF(LEN('Enrollment Form'!$AD114)<>5,\"N\",\"Y\")))","v":""},{"$f":"IF($B107=\"N\",\"\",IF(LEN('Enrollment Form'!$BL114=0),\"\",IF(LEN('Enrollment Form'!$BL114)<>5,\"N\",\"Y\")))","v":""},{"$f":"IF($B107=\"N\",\"\",IF(LEN('Enrollment Form'!$AE114)=0,\"\",IF(LEN('Enrollment Form'!$AE114)<>10,\"N\",\"Y\")))","v":""},{"$f":"IF($B107=\"N\",\"\",IF(LEN('Enrollment Form'!$AF114)=0,\"\",IF(LEN('Enrollment Form'!$AF114)<>10,\"N\",\"Y\")))","v":""},{"$f":"IF('Enrollment Form'!$O114<>\"Graded\",\"-\",IF(AND('Enrollment Form'!$O114=\"Graded\",'Enrollment Form'!$AO114<>\"\"),\"Y\",\"N\"))","v":"-"},{"$f":"IF($B107=\"N\",\"\",IF(OR('Enrollment Form'!$B114<>\"Subscriber\",'Enrollment Form'!$C114=\"ROC\"),\"-\",IF(AND('Enrollment Form'!$B114=\"Subscriber\",'Enrollment Form'!$C114=\"Enroll\",'Enrollment Form'!$AJ114<>\"\"),\"Y\",\"N\")))","v":""},{"$f":"IF($B107=\"N\",\"\",IF(OR('Enrollment Form'!$B114<>\"Subscriber\",'Enrollment Form'!$C114=\"ROC\"),\"-\",IF(AND('Enrollment Form'!$B114=\"Subscriber\",'Enrollment Form'!$C114=\"Enroll\",'Enrollment Form'!$AK114<>\"\"),\"Y\",\"N\")))","v":""},{"$f":"IF($B107=\"N\",\"\",IF(OR('Enrollment Form'!$B114<>\"Subscriber\",'Enrollment Form'!$C114=\"ROC\"),\"-\",IF(AND('Enrollment Form'!$B114=\"Subscriber\",'Enrollment Form'!$C114=\"Enroll\",'Enrollment Form'!$AL114<>\"\"),\"Y\",\"N\")))","v":""},{"$f":"IF($B107=\"N\",\"\",IF(OR('Enrollment Form'!$B114<>\"Subscriber\",'Enrollment Form'!$C114=\"ROC\"),\"-\",IF(AND('Enrollment Form'!$B114=\"Subscriber\",'Enrollment Form'!$C114=\"Enroll\",'Enrollment Form'!$AM114<>\"\"),\"Y\",\"N\")))","v":""},{"$f":"IF($B107=\"N\",\"\",IF(OR('Enrollment Form'!$B114<>\"Subscriber\",'Enrollment Form'!$C114=\"ROC\"),\"-\",IF(AND('Enrollment Form'!$B114=\"Subscriber\",'Enrollment Form'!$C114=\"Enroll\",'Enrollment Form'!$AN114<>\"\"),\"Y\",\"N\")))","v":""},{"$f":"IF($B107=\"N\",\"\",IF(OR('Enrollment Form'!$B114<>\"Subscriber\",'Enrollment Form'!$C114=\"ROC\"),\"-\",IF(AND('Enrollment Form'!$B114=\"Subscriber\",'Enrollment Form'!$C114=\"Enroll\",'Enrollment Form'!$AP114<>\"\"),\"Y\",\"N\")))","v":""},{"$f":"IF($B107=\"N\",\"\",IF($Q107=\"-\",\"-\",IF(AND($Q107=\"Y\",'Enrollment Form'!$AP114=\"No\"),\"-\",IF(AND($Q107=\"Y\",'Enrollment Form'!$AP114=\"Yes\",'Enrollment Form'!$AQ114<>\"\"),\"Y\",\"N\"))))","v":""},{"$f":"IF($B107=\"N\",\"\",IF(OR('Enrollment Form'!$B114<>\"Subscriber\",'Enrollment Form'!$C114=\"ROC\"),\"-\",IF(AND('Enrollment Form'!$B114=\"Subscriber\",'Enrollment Form'!$C114=\"Enroll\",'Enrollment Form'!$CO114<>\"\"),\"Y\",\"N\")))","v":""},{"$f":"IF($B107=\"N\",\"\",IF($S107=\"-\",\"-\",IF(AND($S107=\"Y\",'Enrollment Form'!$CO114=\"No\"),\"-\",IF(AND($S107=\"Y\",'Enrollment Form'!$CO114=\"Yes\",'Enrollment Form'!$CP114<>\"\"),\"Y\",\"N\"))))","v":""},{"$f":"IF(OR('Enrollment Form'!$AV114=\"Yes\",'Enrollment Form'!$AV114=\"\"),\"-\",IF(AND('Enrollment Form'!$AV114=\"No\",ISERROR(FIND(\"HMO\",VLOOKUP('Enrollment Form'!G114,'Enrollment Form'!H$11:J$1000,3,FALSE),1))=FALSE,COUNTA('Enrollment Form'!$AW114:$AZ114)=4),\"Y\",\"N\"))","v":"-"},{"$f":"IF($B107=\"N\",\"\",IF('Enrollment Form'!$B114=\"Subscriber\",\"-\",IF(COUNTA('Enrollment Form'!$BE114,'Enrollment Form'!$BG114)=2,\"Y\",\"N\")))","v":""},{"$f":"IF($B107=\"N\",\"\",IF(OR('Enrollment Form'!$AU114=\"\",'Enrollment Form'!$AU114=\"No\"),\"-\",IF(AND('Enrollment Form'!$AU114=\"Yes\",COUNTA('Enrollment Form'!$CK114)=1),\"Y\",\"N\")))","v":""},{"$f":"IF(OR('Enrollment Form'!$CK114=\"\",'Enrollment Form'!$CK114=\"No\"),\"-\",IF(COUNTA('Enrollment Form'!$CM114:$CN114)=2,\"Y\",\"N\"))","v":"-"},{"$f":"IF($B107=\"N\",\"\",IF(COUNTIF('Enrollment Form'!$CZ114:$DO114,\"Other\")=COUNTA('Enrollment Form'!$DF114,'Enrollment Form'!$DA114,'Enrollment Form'!$DK114,'Enrollment Form'!$DP114),\"Y\",\"N\"))","v":""},{"$f":"IF($B107=\"N\",\"\",IF(OR('Enrollment Form'!B114<>\"Subscriber\",'Enrollment Form'!C114=\"ROC\",COUNTIF('Enrollment Form'!AS114:AT114,\"Yes\")>=1),\"-\",IF(AND('Enrollment Form'!C114=\"Enroll\",COUNTIF('Enrollment Form'!AS114:AT114,\"No\")=2,'Enrollment Form'!AU114=\"\"),\"N\",\"Y\")))","v":""},{"$f":"IF(OR(B107=\"N\",'Enrollment Form'!B114<>\"Subscriber\",'Enrollment Form'!C114=\"ROC\",'Enrollment Form'!O114<>\"Multiple of Salary\"),\"-\",IF(COUNTA('Enrollment Form'!T114:U114)<2,\"N\",\"Y\"))","v":"-"},{"$f":"IF(B107=\"N\",\"\",IF(OR('Enrollment Form'!C114=\"ROC\",'Enrollment Form'!B114<>\"Subscriber\",'Enrollment Form'!O114=\"Waive\",'Enrollment Form'!O114=\"\"),\"-\",IF('Enrollment Form'!P114=\"\",\"N\",\"Y\")))","v":""},{"$f":"IF($B107=\"N\",\"\",IF(AND('Enrollment Form'!$C114=\"ROC\",'Enrollment Form'!$DS114<>\"\"),\"Y\",IF(AND('Enrollment Form'!$C114=\"ROC\",'Enrollment Form'!$DS114=\"\"),\"N\",IF(AND('Enrollment Form'!$C114=\"Enroll\",'Enrollment Form'!$B114=\"Subscriber\",'Enrollment Form'!$CQ114=\"No\",'Enrollment Form'!$DS114=\"\"),\"N\",IF(AND('Enrollment Form'!$C114=\"Enroll\",'Enrollment Form'!$B114=\"Subscriber\",'Enrollment Form'!$CQ114=\"Yes\"),\"-\",\"Y\")))))","v":""},{"$f":"IF($B107=\"N\",\"\",IF(AND('Enrollment Form'!$C114=\"ROC\",'Enrollment Form'!$DT114<>\"\"),\"Y\",IF(AND('Enrollment Form'!$C114=\"ROC\",'Enrollment Form'!$DT114=\"\"),\"N\",IF(AND('Enrollment Form'!$C114=\"Enroll\",'Enrollment Form'!$B114=\"Subscriber\",'Enrollment Form'!$CQ114=\"No\",'Enrollment Form'!$DT114=\"\"),\"N\",IF(AND('Enrollment Form'!$C114=\"Enroll\",'Enrollment Form'!$B114=\"Subscriber\",'Enrollment Form'!$CQ114=\"Yes\"),\"-\",\"Y\")))))","v":""},{"$f":"IF('Enrollment Form'!AH114=\"\",\"\",IF(ISERROR(SEARCH(\".\",'Enrollment Form'!AH114,SEARCH(\"@\",'Enrollment Form'!AH114))),\"N\",\"Y\"))","v":""},{"$f":"IF(OR($B107=\"N\",'Enrollment Form'!$G114=\"\"),\"\",IF('Enrollment Form'!$B114<>\"Subscriber\",\"-\",IF(COUNTIF('Enrollment Form'!$AS114:$AT114,\"Yes\")=2,\"N\",\"Y\")))","v":""},{"$f":"IF(OR('Enrollment Form'!$CC114=\"\",'Enrollment Form'!$CC114=\"No\"),\"-\",IF(AND('Enrollment Form'!$CC114=\"Yes\",'Enrollment Form'!$CD114=\"\"),\"N\",\"Y\"))","v":"-"},{"$f":"IF(OR('Enrollment Form'!$CE114=\"\",'Enrollment Form'!$CE114=\"No\"),\"-\",IF(AND('Enrollment Form'!$CE114=\"Yes\",'Enrollment Form'!$CF114=\"\"),\"N\",\"Y\"))","v":"-"},{"$f":"IF(OR('Enrollment Form'!$CG114=\"\",'Enrollment Form'!$CG114=\"No\"),\"-\",IF(AND('Enrollment Form'!$CG114=\"Yes\",'Enrollment Form'!$CH114=\"\"),\"N\",\"Y\"))","v":"-"},{"$f":"IF(OR('Enrollment Form'!$CG114=\"\",'Enrollment Form'!$CG114=\"No\"),\"-\",IF(AND('Enrollment Form'!$CG114=\"Yes\",'Enrollment Form'!$CI114=\"\"),\"N\",\"Y\"))","v":"-"},{"$f":"IF('Enrollment Form'!B114<>\"Subscriber\",\"-\",IF(AND('Enrollment Form'!B114=\"Subscriber\",'Enrollment Form'!C114=\"Enroll\",'Enrollment Form'!AA114=\"\"),\"N\",\"Y\"))","v":"-"},{"$f":"IF(OR('Enrollment Form'!B114=\"Subscriber\",'Enrollment Form'!B114=\"\"),\"-\",IF('Enrollment Form'!BI114=\"\",\"N\",\"Y\"))","v":"-"},{"$f":"IF('Enrollment Form'!B114<>\"Subscriber\",\"-\",IF(AND('Enrollment Form'!B114=\"Subscriber\",'Enrollment Form'!G114=\"\"),\"N\",\"Y\"))","v":"-"},{"$f":"IF('Enrollment Form'!A114=\"\",\"\",IF('Enrollment Form'!B114=\"Subscriber\",\"-\",IF(AND('Enrollment Form'!B114<>\"Subscriber\",'Enrollment Form'!G114='Enrollment Form'!H114),\"N\",\"Y\")))","v":""},0]
[115,{"$f":"IF('Enrollment Form'!$A115<>\"\",\"Y\",\"N\")","v":"N"},{"$f":"IF(AND('Enrollment Form'!$B115=\"\",'Enrollment Form'!$C115<>\"\"),\"N\",IF($B108=\"N\",\"\",\"Y\"))","v":""},{"$f":"IF(OR($B108=\"N\",'Enrollment Form'!G115=\"\"),\"\",IF('Enrollment Form'!$B115<>\"Subscriber\",\"\",IF('Enrollment Form'!$G115='Enrollment Form'!$H115,\"Y\",\"N\")))","v":""},{"$f":"IF($B108=\"N\",\"\",IF(AND(COUNTIFS('Enrollment Form'!$H$11:$H$1000,'Enrollment Form'!$H115,'Enrollment Form'!$B$11:$B$1000,'Enrollment Form'!$B115)>1,'Enrollment Form'!$H115<>\"\"),\"N\",\"Y\"))","v":""},{"$f":"IF($B108=\"N\",\"\",IF(LEN('Enrollment Form'!$Y115)=0,\"\",IF(LEN('Enrollment Form'!$Y115)<>5,\"N\",\"Y\")))","v":""},{"$f":"IF($B108=\"N\",\"\",IF(LEN('Enrollment Form'!$AD115=0),\"\",IF(LEN('Enrollment Form'!$AD115)<>5,\"N\",\"Y\")))","v":""},{"$f":"IF($B108=\"N\",\"\",IF(LEN('Enrollment Form'!$BL115=0),\"\",IF(LEN('Enrollment Form'!$BL115)<>5,\"N\",\"Y\")))","v":""},{"$f":"IF($B108=\"N\",\"\",IF(LEN('Enrollment Form'!$AE115)=0,\"\",IF(LEN('Enrollment Form'!$AE115)<>10,\"N\",\"Y\")))","v":""},{"$f":"IF($B108=\"N\",\"\",IF(LEN('Enrollment Form'!$AF115)=0,\"\",IF(LEN('Enrollment Form'!$AF115)<>10,\"N\",\"Y\")))","v":""},{"$f":"IF('Enrollment Form'!$O115<>\"Graded\",\"-\",IF(AND('Enrollment Form'!$O115=\"Graded\",'Enrollment Form'!$AO115<>\"\"),\"Y\",\"N\"))","v":"-"},{"$f":"IF($B108=\"N\",\"\",IF(OR('Enrollment Form'!$B115<>\"Subscriber\",'Enrollment Form'!$C115=\"ROC\"),\"-\",IF(AND('Enrollment Form'!$B115=\"Subscriber\",'Enrollment Form'!$C115=\"Enroll\",'Enrollment Form'!$AJ115<>\"\"),\"Y\",\"N\")))","v":""},{"$f":"IF($B108=\"N\",\"\",IF(OR('Enrollment Form'!$B115<>\"Subscriber\",'Enrollment Form'!$C115=\"ROC\"),\"-\",IF(AND('Enrollment Form'!$B115=\"Subscriber\",'Enrollment Form'!$C115=\"Enroll\",'Enrollment Form'!$AK115<>\"\"),\"Y\",\"N\")))","v":""},{"$f":"IF($B108=\"N\",\"\",IF(OR('Enrollment Form'!$B115<>\"Subscriber\",'Enrollment Form'!$C115=\"ROC\"),\"-\",IF(AND('Enrollment Form'!$B115=\"Subscriber\",'Enrollment Form'!$C115=\"Enroll\",'Enrollment Form'!$AL115<>\"\"),\"Y\",\"N\")))","v":""},{"$f":"IF($B108=\"N\",\"\",IF(OR('Enrollment Form'!$B115<>\"Subscriber\",'Enrollment Form'!$C115=\"ROC\"),\"-\",IF(AND('Enrollment Form'!$B115=\"Subscriber\",'Enrollment Form'!$C115=\"Enroll\",'Enrollment Form'!$AM115<>\"\"),\"Y\",\"N\")))","v":""},{"$f":"IF($B108=\"N\",\"\",IF(OR('Enrollment Form'!$B115<>\"Subscriber\",'Enrollment Form'!$C115=\"ROC\"),\"-\",IF(AND('Enrollment Form'!$B115=\"Subscriber\",'Enrollment Form'!$C115=\"Enroll\",'Enrollment Form'!$AN115<>\"\"),\"Y\",\"N\")))","v":""},{"$f":"IF($B108=\"N\",\"\",IF(OR('Enrollment Form'!$B115<>\"Subscriber\",'Enrollment Form'!$C115=\"ROC\"),\"-\",IF(AND('Enrollment Form'!$B115=\"Subscriber\",'Enrollment Form'!$C115=\"Enroll\",'Enrollment Form'!$AP115<>\"\"),\"Y\",\"N\")))","v":""},{"$f":"IF($B108=\"N\",\"\",IF($Q108=\"-\",\"-\",IF(AND($Q108=\"Y\",'Enrollment Form'!$AP115=\"No\"),\"-\",IF(AND($Q108=\"Y\",'Enrollment Form'!$AP115=\"Yes\",'Enrollment Form'!$AQ115<>\"\"),\"Y\",\"N\"))))","v":""},{"$f":"IF($B108=\"N\",\"\",IF(OR('Enrollment Form'!$B115<>\"Subscriber\",'Enrollment Form'!$C115=\"ROC\"),\"-\",IF(AND('Enrollment Form'!$B115=\"Subscriber\",'Enrollment Form'!$C115=\"Enroll\",'Enrollment Form'!$CO115<>\"\"),\"Y\",\"N\")))","v":""},{"$f":"IF($B108=\"N\",\"\",IF($S108=\"-\",\"-\",IF(AND($S108=\"Y\",'Enrollment Form'!$CO115=\"No\"),\"-\",IF(AND($S108=\"Y\",'Enrollment Form'!$CO115=\"Yes\",'Enrollment Form'!$CP115<>\"\"),\"Y\",\"N\"))))","v":""},{"$f":"IF(OR('Enrollment Form'!$AV115=\"Yes\",'Enrollment Form'!$AV115=\"\"),\"-\",IF(AND('Enrollment Form'!$AV115=\"No\",ISERROR(FIND(\"HMO\",VLOOKUP('Enrollment Form'!G115,'Enrollment Form'!H$11:J$1000,3,FALSE),1))=FALSE,COUNTA('Enrollment Form'!$AW115:$AZ115)=4),\"Y\",\"N\"))","v":"-"},{"$f":"IF($B108=\"N\",\"\",IF('Enrollment Form'!$B115=\"Subscriber\",\"-\",IF(COUNTA('Enrollment Form'!$BE115,'Enrollment Form'!$BG115)=2,\"Y\",\"N\")))","v":""},{"$f":"IF($B108=\"N\",\"\",IF(OR('Enrollment Form'!$AU115=\"\",'Enrollment Form'!$AU115=\"No\"),\"-\",IF(AND('Enrollment Form'!$AU115=\"Yes\",COUNTA('Enrollment Form'!$CK115)=1),\"Y\",\"N\")))","v":""},{"$f":"IF(OR('Enrollment Form'!$CK115=\"\",'Enrollment Form'!$CK115=\"No\"),\"-\",IF(COUNTA('Enrollment Form'!$CM115:$CN115)=2,\"Y\",\"N\"))","v":"-"},{"$f":"IF($B108=\"N\",\"\",IF(COUNTIF('Enrollment Form'!$CZ115:$DO115,\"Other\")=COUNTA('Enrollment Form'!$DF115,'Enrollment Form'!$DA115,'Enrollment Form'!$DK115,'Enrollment Form'!$DP115),\"Y\",\"N\"))","v":""},{"$f":"IF($B108=\"N\",\"\",IF(OR('Enrollment Form'!B115<>\"Subscriber\",'Enrollment Form'!C115=\"ROC\",COUNTIF('Enrollment Form'!AS115:AT115,\"Yes\")>=1),\"-\",IF(AND('Enrollment Form'!C115=\"Enroll\",COUNTIF('Enrollment Form'!AS115:AT115,\"No\")=2,'Enrollment Form'!AU115=\"\"),\"N\",\"Y\")))","v":""},{"$f":"IF(OR(B108=\"N\",'Enrollment Form'!B115<>\"Subscriber\",'Enrollment Form'!C115=\"ROC\",'Enrollment Form'!O115<>\"Multiple of Salary\"),\"-\",IF(COUNTA('Enrollment Form'!T115:U115)<2,\"N\",\"Y\"))","v":"-"},{"$f":"IF(B108=\"N\",\"\",IF(OR('Enrollment Form'!C115=\"ROC\",'Enrollment Form'!B115<>\"Subscriber\",'Enrollment Form'!O115=\"Waive\",'Enrollment Form'!O115=\"\"),\"-\",IF('Enrollment Form'!P115=\"\",\"N\",\"Y\")))","v":""},{"$f":"IF($B108=\"N\",\"\",IF(AND('Enrollment Form'!$C115=\"ROC\",'Enrollment Form'!$DS115<>\"\"),\"Y\",IF(AND('Enrollment Form'!$C115=\"ROC\",'Enrollment Form'!$DS115=\"\"),\"N\",IF(AND('Enrollment Form'!$C115=\"Enroll\",'Enrollment Form'!$B115=\"Subscriber\",'Enrollment Form'!$CQ115=\"No\",'Enrollment Form'!$DS115=\"\"),\"N\",IF(AND('Enrollment Form'!$C115=\"Enroll\",'Enrollment Form'!$B115=\"Subscriber\",'Enrollment Form'!$CQ115=\"Yes\"),\"-\",\"Y\")))))","v":""},{"$f":"IF($B108=\"N\",\"\",IF(AND('Enrollment Form'!$C115=\"ROC\",'Enrollment Form'!$DT115<>\"\"),\"Y\",IF(AND('Enrollment Form'!$C115=\"ROC\",'Enrollment Form'!$DT115=\"\"),\"N\",IF(AND('Enrollment Form'!$C115=\"Enroll\",'Enrollment Form'!$B115=\"Subscriber\",'Enrollment Form'!$CQ115=\"No\",'Enrollment Form'!$DT115=\"\"),\"N\",IF(AND('Enrollment Form'!$C115=\"Enroll\",'Enrollment Form'!$B115=\"Subscriber\",'Enrollment Form'!$CQ115=\"Yes\"),\"-\",\"Y\")))))","v":""},{"$f":"IF('Enrollment Form'!AH115=\"\",\"\",IF(ISERROR(SEARCH(\".\",'Enrollment Form'!AH115,SEARCH(\"@\",'Enrollment Form'!AH115))),\"N\",\"Y\"))","v":""},{"$f":"IF(OR($B108=\"N\",'Enrollment Form'!$G115=\"\"),\"\",IF('Enrollment Form'!$B115<>\"Subscriber\",\"-\",IF(COUNTIF('Enrollment Form'!$AS115:$AT115,\"Yes\")=2,\"N\",\"Y\")))","v":""},{"$f":"IF(OR('Enrollment Form'!$CC115=\"\",'Enrollment Form'!$CC115=\"No\"),\"-\",IF(AND('Enrollment Form'!$CC115=\"Yes\",'Enrollment Form'!$CD115=\"\"),\"N\",\"Y\"))","v":"-"},{"$f":"IF(OR('Enrollment Form'!$CE115=\"\",'Enrollment Form'!$CE115=\"No\"),\"-\",IF(AND('Enrollment Form'!$CE115=\"Yes\",'Enrollment Form'!$CF115=\"\"),\"N\",\"Y\"))","v":"-"},{"$f":"IF(OR('Enrollment Form'!$CG115=\"\",'Enrollment Form'!$CG115=\"No\"),\"-\",IF(AND('Enrollment Form'!$CG115=\"Yes\",'Enrollment Form'!$CH115=\"\"),\"N\",\"Y\"))","v":"-"},{"$f":"IF(OR('Enrollment Form'!$CG115=\"\",'Enrollment Form'!$CG115=\"No\"),\"-\",IF(AND('Enrollment Form'!$CG115=\"Yes\",'Enrollment Form'!$CI115=\"\"),\"N\",\"Y\"))","v":"-"},{"$f":"IF('Enrollment Form'!B115<>\"Subscriber\",\"-\",IF(AND('Enrollment Form'!B115=\"Subscriber\",'Enrollment Form'!C115=\"Enroll\",'Enrollment Form'!AA115=\"\"),\"N\",\"Y\"))","v":"-"},{"$f":"IF(OR('Enrollment Form'!B115=\"Subscriber\",'Enrollment Form'!B115=\"\"),\"-\",IF('Enrollment Form'!BI115=\"\",\"N\",\"Y\"))","v":"-"},{"$f":"IF('Enrollment Form'!B115<>\"Subscriber\",\"-\",IF(AND('Enrollment Form'!B115=\"Subscriber\",'Enrollment Form'!G115=\"\"),\"N\",\"Y\"))","v":"-"},{"$f":"IF('Enrollment Form'!A115=\"\",\"\",IF('Enrollment Form'!B115=\"Subscriber\",\"-\",IF(AND('Enrollment Form'!B115<>\"Subscriber\",'Enrollment Form'!G115='Enrollment Form'!H115),\"N\",\"Y\")))","v":""},0]
[116,{"$f":"IF('Enrollment Form'!$A116<>\"\",\"Y\",\"N\")","v":"N"},{"$f":"IF(AND('Enrollment Form'!$B116=\"\",'Enrollment Form'!$C116<>\"\"),\"N\",IF($B109=\"N\",\"\",\"Y\"))","v":""},{"$f":"IF(OR($B109=\"N\",'Enrollment Form'!G116=\"\"),\"\",IF('Enrollment Form'!$B116<>\"Subscriber\",\"\",IF('Enrollment Form'!$G116='Enrollment Form'!$H116,\"Y\",\"N\")))","v":""},{"$f":"IF($B109=\"N\",\"\",IF(AND(COUNTIFS('Enrollment Form'!$H$11:$H$1000,'Enrollment Form'!$H116,'Enrollment Form'!$B$11:$B$1000,'Enrollment Form'!$B116)>1,'Enrollment Form'!$H116<>\"\"),\"N\",\"Y\"))","v":""},{"$f":"IF($B109=\"N\",\"\",IF(LEN('Enrollment Form'!$Y116)=0,\"\",IF(LEN('Enrollment Form'!$Y116)<>5,\"N\",\"Y\")))","v":""},{"$f":"IF($B109=\"N\",\"\",IF(LEN('Enrollment Form'!$AD116=0),\"\",IF(LEN('Enrollment Form'!$AD116)<>5,\"N\",\"Y\")))","v":""},{"$f":"IF($B109=\"N\",\"\",IF(LEN('Enrollment Form'!$BL116=0),\"\",IF(LEN('Enrollment Form'!$BL116)<>5,\"N\",\"Y\")))","v":""},{"$f":"IF($B109=\"N\",\"\",IF(LEN('Enrollment Form'!$AE116)=0,\"\",IF(LEN('Enrollment Form'!$AE116)<>10,\"N\",\"Y\")))","v":""},{"$f":"IF($B109=\"N\",\"\",IF(LEN('Enrollment Form'!$AF116)=0,\"\",IF(LEN('Enrollment Form'!$AF116)<>10,\"N\",\"Y\")))","v":""},{"$f":"IF('Enrollment Form'!$O116<>\"Graded\",\"-\",IF(AND('Enrollment Form'!$O116=\"Graded\",'Enrollment Form'!$AO116<>\"\"),\"Y\",\"N\"))","v":"-"},{"$f":"IF($B109=\"N\",\"\",IF(OR('Enrollment Form'!$B116<>\"Subscriber\",'Enrollment Form'!$C116=\"ROC\"),\"-\",IF(AND('Enrollment Form'!$B116=\"Subscriber\",'Enrollment Form'!$C116=\"Enroll\",'Enrollment Form'!$AJ116<>\"\"),\"Y\",\"N\")))","v":""},{"$f":"IF($B109=\"N\",\"\",IF(OR('Enrollment Form'!$B116<>\"Subscriber\",'Enrollment Form'!$C116=\"ROC\"),\"-\",IF(AND('Enrollment Form'!$B116=\"Subscriber\",'Enrollment Form'!$C116=\"Enroll\",'Enrollment Form'!$AK116<>\"\"),\"Y\",\"N\")))","v":""},{"$f":"IF($B109=\"N\",\"\",IF(OR('Enrollment Form'!$B116<>\"Subscriber\",'Enrollment Form'!$C116=\"ROC\"),\"-\",IF(AND('Enrollment Form'!$B116=\"Subscriber\",'Enrollment Form'!$C116=\"Enroll\",'Enrollment Form'!$AL116<>\"\"),\"Y\",\"N\")))","v":""},{"$f":"IF($B109=\"N\",\"\",IF(OR('Enrollment Form'!$B116<>\"Subscriber\",'Enrollment Form'!$C116=\"ROC\"),\"-\",IF(AND('Enrollment Form'!$B116=\"Subscriber\",'Enrollment Form'!$C116=\"Enroll\",'Enrollment Form'!$AM116<>\"\"),\"Y\",\"N\")))","v":""},{"$f":"IF($B109=\"N\",\"\",IF(OR('Enrollment Form'!$B116<>\"Subscriber\",'Enrollment Form'!$C116=\"ROC\"),\"-\",IF(AND('Enrollment Form'!$B116=\"Subscriber\",'Enrollment Form'!$C116=\"Enroll\",'Enrollment Form'!$AN116<>\"\"),\"Y\",\"N\")))","v":""},{"$f":"IF($B109=\"N\",\"\",IF(OR('Enrollment Form'!$B116<>\"Subscriber\",'Enrollment Form'!$C116=\"ROC\"),\"-\",IF(AND('Enrollment Form'!$B116=\"Subscriber\",'Enrollment Form'!$C116=\"Enroll\",'Enrollment Form'!$AP116<>\"\"),\"Y\",\"N\")))","v":""},{"$f":"IF($B109=\"N\",\"\",IF($Q109=\"-\",\"-\",IF(AND($Q109=\"Y\",'Enrollment Form'!$AP116=\"No\"),\"-\",IF(AND($Q109=\"Y\",'Enrollment Form'!$AP116=\"Yes\",'Enrollment Form'!$AQ116<>\"\"),\"Y\",\"N\"))))","v":""},{"$f":"IF($B109=\"N\",\"\",IF(OR('Enrollment Form'!$B116<>\"Subscriber\",'Enrollment Form'!$C116=\"ROC\"),\"-\",IF(AND('Enrollment Form'!$B116=\"Subscriber\",'Enrollment Form'!$C116=\"Enroll\",'Enrollment Form'!$CO116<>\"\"),\"Y\",\"N\")))","v":""},{"$f":"IF($B109=\"N\",\"\",IF($S109=\"-\",\"-\",IF(AND($S109=\"Y\",'Enrollment Form'!$CO116=\"No\"),\"-\",IF(AND($S109=\"Y\",'Enrollment Form'!$CO116=\"Yes\",'Enrollment Form'!$CP116<>\"\"),\"Y\",\"N\"))))","v":""},{"$f":"IF(OR('Enrollment Form'!$AV116=\"Yes\",'Enrollment Form'!$AV116=\"\"),\"-\",IF(AND('Enrollment Form'!$AV116=\"No\",ISERROR(FIND(\"HMO\",VLOOKUP('Enrollment Form'!G116,'Enrollment Form'!H$11:J$1000,3,FALSE),1))=FALSE,COUNTA('Enrollment Form'!$AW116:$AZ116)=4),\"Y\",\"N\"))","v":"-"},{"$f":"IF($B109=\"N\",\"\",IF('Enrollment Form'!$B116=\"Subscriber\",\"-\",IF(COUNTA('Enrollment Form'!$BE116,'Enrollment Form'!$BG116)=2,\"Y\",\"N\")))","v":""},{"$f":"IF($B109=\"N\",\"\",IF(OR('Enrollment Form'!$AU116=\"\",'Enrollment Form'!$AU116=\"No\"),\"-\",IF(AND('Enrollment Form'!$AU116=\"Yes\",COUNTA('Enrollment Form'!$CK116)=1),\"Y\",\"N\")))","v":""},{"$f":"IF(OR('Enrollment Form'!$CK116=\"\",'Enrollment Form'!$CK116=\"No\"),\"-\",IF(COUNTA('Enrollment Form'!$CM116:$CN116)=2,\"Y\",\"N\"))","v":"-"},{"$f":"IF($B109=\"N\",\"\",IF(COUNTIF('Enrollment Form'!$CZ116:$DO116,\"Other\")=COUNTA('Enrollment Form'!$DF116,'Enrollment Form'!$DA116,'Enrollment Form'!$DK116,'Enrollment Form'!$DP116),\"Y\",\"N\"))","v":""},{"$f":"IF($B109=\"N\",\"\",IF(OR('Enrollment Form'!B116<>\"Subscriber\",'Enrollment Form'!C116=\"ROC\",COUNTIF('Enrollment Form'!AS116:AT116,\"Yes\")>=1),\"-\",IF(AND('Enrollment Form'!C116=\"Enroll\",COUNTIF('Enrollment Form'!AS116:AT116,\"No\")=2,'Enrollment Form'!AU116=\"\"),\"N\",\"Y\")))","v":""},{"$f":"IF(OR(B109=\"N\",'Enrollment Form'!B116<>\"Subscriber\",'Enrollment Form'!C116=\"ROC\",'Enrollment Form'!O116<>\"Multiple of Salary\"),\"-\",IF(COUNTA('Enrollment Form'!T116:U116)<2,\"N\",\"Y\"))","v":"-"},{"$f":"IF(B109=\"N\",\"\",IF(OR('Enrollment Form'!C116=\"ROC\",'Enrollment Form'!B116<>\"Subscriber\",'Enrollment Form'!O116=\"Waive\",'Enrollment Form'!O116=\"\"),\"-\",IF('Enrollment Form'!P116=\"\",\"N\",\"Y\")))","v":""},{"$f":"IF($B109=\"N\",\"\",IF(AND('Enrollment Form'!$C116=\"ROC\",'Enrollment Form'!$DS116<>\"\"),\"Y\",IF(AND('Enrollment Form'!$C116=\"ROC\",'Enrollment Form'!$DS116=\"\"),\"N\",IF(AND('Enrollment Form'!$C116=\"Enroll\",'Enrollment Form'!$B116=\"Subscriber\",'Enrollment Form'!$CQ116=\"No\",'Enrollment Form'!$DS116=\"\"),\"N\",IF(AND('Enrollment Form'!$C116=\"Enroll\",'Enrollment Form'!$B116=\"Subscriber\",'Enrollment Form'!$CQ116=\"Yes\"),\"-\",\"Y\")))))","v":""},{"$f":"IF($B109=\"N\",\"\",IF(AND('Enrollment Form'!$C116=\"ROC\",'Enrollment Form'!$DT116<>\"\"),\"Y\",IF(AND('Enrollment Form'!$C116=\"ROC\",'Enrollment Form'!$DT116=\"\"),\"N\",IF(AND('Enrollment Form'!$C116=\"Enroll\",'Enrollment Form'!$B116=\"Subscriber\",'Enrollment Form'!$CQ116=\"No\",'Enrollment Form'!$DT116=\"\"),\"N\",IF(AND('Enrollment Form'!$C116=\"Enroll\",'Enrollment Form'!$B116=\"Subscriber\",'Enrollment Form'!$CQ116=\"Yes\"),\"-\",\"Y\")))))","v":""},{"$f":"IF('Enrollment Form'!AH116=\"\",\"\",IF(ISERROR(SEARCH(\".\",'Enrollment Form'!AH116,SEARCH(\"@\",'Enrollment Form'!AH116))),\"N\",\"Y\"))","v":""},{"$f":"IF(OR($B109=\"N\",'Enrollment Form'!$G116=\"\"),\"\",IF('Enrollment Form'!$B116<>\"Subscriber\",\"-\",IF(COUNTIF('Enrollment Form'!$AS116:$AT116,\"Yes\")=2,\"N\",\"Y\")))","v":""},{"$f":"IF(OR('Enrollment Form'!$CC116=\"\",'Enrollment Form'!$CC116=\"No\"),\"-\",IF(AND('Enrollment Form'!$CC116=\"Yes\",'Enrollment Form'!$CD116=\"\"),\"N\",\"Y\"))","v":"-"},{"$f":"IF(OR('Enrollment Form'!$CE116=\"\",'Enrollment Form'!$CE116=\"No\"),\"-\",IF(AND('Enrollment Form'!$CE116=\"Yes\",'Enrollment Form'!$CF116=\"\"),\"N\",\"Y\"))","v":"-"},{"$f":"IF(OR('Enrollment Form'!$CG116=\"\",'Enrollment Form'!$CG116=\"No\"),\"-\",IF(AND('Enrollment Form'!$CG116=\"Yes\",'Enrollment Form'!$CH116=\"\"),\"N\",\"Y\"))","v":"-"},{"$f":"IF(OR('Enrollment Form'!$CG116=\"\",'Enrollment Form'!$CG116=\"No\"),\"-\",IF(AND('Enrollment Form'!$CG116=\"Yes\",'Enrollment Form'!$CI116=\"\"),\"N\",\"Y\"))","v":"-"},{"$f":"IF('Enrollment Form'!B116<>\"Subscriber\",\"-\",IF(AND('Enrollment Form'!B116=\"Subscriber\",'Enrollment Form'!C116=\"Enroll\",'Enrollment Form'!AA116=\"\"),\"N\",\"Y\"))","v":"-"},{"$f":"IF(OR('Enrollment Form'!B116=\"Subscriber\",'Enrollment Form'!B116=\"\"),\"-\",IF('Enrollment Form'!BI116=\"\",\"N\",\"Y\"))","v":"-"},{"$f":"IF('Enrollment Form'!B116<>\"Subscriber\",\"-\",IF(AND('Enrollment Form'!B116=\"Subscriber\",'Enrollment Form'!G116=\"\"),\"N\",\"Y\"))","v":"-"},{"$f":"IF('Enrollment Form'!A116=\"\",\"\",IF('Enrollment Form'!B116=\"Subscriber\",\"-\",IF(AND('Enrollment Form'!B116<>\"Subscriber\",'Enrollment Form'!G116='Enrollment Form'!H116),\"N\",\"Y\")))","v":""},0]
[117,{"$f":"IF('Enrollment Form'!$A117<>\"\",\"Y\",\"N\")","v":"N"},{"$f":"IF(AND('Enrollment Form'!$B117=\"\",'Enrollment Form'!$C117<>\"\"),\"N\",IF($B110=\"N\",\"\",\"Y\"))","v":""},{"$f":"IF(OR($B110=\"N\",'Enrollment Form'!G117=\"\"),\"\",IF('Enrollment Form'!$B117<>\"Subscriber\",\"\",IF('Enrollment Form'!$G117='Enrollment Form'!$H117,\"Y\",\"N\")))","v":""},{"$f":"IF($B110=\"N\",\"\",IF(AND(COUNTIFS('Enrollment Form'!$H$11:$H$1000,'Enrollment Form'!$H117,'Enrollment Form'!$B$11:$B$1000,'Enrollment Form'!$B117)>1,'Enrollment Form'!$H117<>\"\"),\"N\",\"Y\"))","v":""},{"$f":"IF($B110=\"N\",\"\",IF(LEN('Enrollment Form'!$Y117)=0,\"\",IF(LEN('Enrollment Form'!$Y117)<>5,\"N\",\"Y\")))","v":""},{"$f":"IF($B110=\"N\",\"\",IF(LEN('Enrollment Form'!$AD117=0),\"\",IF(LEN('Enrollment Form'!$AD117)<>5,\"N\",\"Y\")))","v":""},{"$f":"IF($B110=\"N\",\"\",IF(LEN('Enrollment Form'!$BL117=0),\"\",IF(LEN('Enrollment Form'!$BL117)<>5,\"N\",\"Y\")))","v":""},{"$f":"IF($B110=\"N\",\"\",IF(LEN('Enrollment Form'!$AE117)=0,\"\",IF(LEN('Enrollment Form'!$AE117)<>10,\"N\",\"Y\")))","v":""},{"$f":"IF($B110=\"N\",\"\",IF(LEN('Enrollment Form'!$AF117)=0,\"\",IF(LEN('Enrollment Form'!$AF117)<>10,\"N\",\"Y\")))","v":""},{"$f":"IF('Enrollment Form'!$O117<>\"Graded\",\"-\",IF(AND('Enrollment Form'!$O117=\"Graded\",'Enrollment Form'!$AO117<>\"\"),\"Y\",\"N\"))","v":"-"},{"$f":"IF($B110=\"N\",\"\",IF(OR('Enrollment Form'!$B117<>\"Subscriber\",'Enrollment Form'!$C117=\"ROC\"),\"-\",IF(AND('Enrollment Form'!$B117=\"Subscriber\",'Enrollment Form'!$C117=\"Enroll\",'Enrollment Form'!$AJ117<>\"\"),\"Y\",\"N\")))","v":""},{"$f":"IF($B110=\"N\",\"\",IF(OR('Enrollment Form'!$B117<>\"Subscriber\",'Enrollment Form'!$C117=\"ROC\"),\"-\",IF(AND('Enrollment Form'!$B117=\"Subscriber\",'Enrollment Form'!$C117=\"Enroll\",'Enrollment Form'!$AK117<>\"\"),\"Y\",\"N\")))","v":""},{"$f":"IF($B110=\"N\",\"\",IF(OR('Enrollment Form'!$B117<>\"Subscriber\",'Enrollment Form'!$C117=\"ROC\"),\"-\",IF(AND('Enrollment Form'!$B117=\"Subscriber\",'Enrollment Form'!$C117=\"Enroll\",'Enrollment Form'!$AL117<>\"\"),\"Y\",\"N\")))","v":""},{"$f":"IF($B110=\"N\",\"\",IF(OR('Enrollment Form'!$B117<>\"Subscriber\",'Enrollment Form'!$C117=\"ROC\"),\"-\",IF(AND('Enrollment Form'!$B117=\"Subscriber\",'Enrollment Form'!$C117=\"Enroll\",'Enrollment Form'!$AM117<>\"\"),\"Y\",\"N\")))","v":""},{"$f":"IF($B110=\"N\",\"\",IF(OR('Enrollment Form'!$B117<>\"Subscriber\",'Enrollment Form'!$C117=\"ROC\"),\"-\",IF(AND('Enrollment Form'!$B117=\"Subscriber\",'Enrollment Form'!$C117=\"Enroll\",'Enrollment Form'!$AN117<>\"\"),\"Y\",\"N\")))","v":""},{"$f":"IF($B110=\"N\",\"\",IF(OR('Enrollment Form'!$B117<>\"Subscriber\",'Enrollment Form'!$C117=\"ROC\"),\"-\",IF(AND('Enrollment Form'!$B117=\"Subscriber\",'Enrollment Form'!$C117=\"Enroll\",'Enrollment Form'!$AP117<>\"\"),\"Y\",\"N\")))","v":""},{"$f":"IF($B110=\"N\",\"\",IF($Q110=\"-\",\"-\",IF(AND($Q110=\"Y\",'Enrollment Form'!$AP117=\"No\"),\"-\",IF(AND($Q110=\"Y\",'Enrollment Form'!$AP117=\"Yes\",'Enrollment Form'!$AQ117<>\"\"),\"Y\",\"N\"))))","v":""},{"$f":"IF($B110=\"N\",\"\",IF(OR('Enrollment Form'!$B117<>\"Subscriber\",'Enrollment Form'!$C117=\"ROC\"),\"-\",IF(AND('Enrollment Form'!$B117=\"Subscriber\",'Enrollment Form'!$C117=\"Enroll\",'Enrollment Form'!$CO117<>\"\"),\"Y\",\"N\")))","v":""},{"$f":"IF($B110=\"N\",\"\",IF($S110=\"-\",\"-\",IF(AND($S110=\"Y\",'Enrollment Form'!$CO117=\"No\"),\"-\",IF(AND($S110=\"Y\",'Enrollment Form'!$CO117=\"Yes\",'Enrollment Form'!$CP117<>\"\"),\"Y\",\"N\"))))","v":""},{"$f":"IF(OR('Enrollment Form'!$AV117=\"Yes\",'Enrollment Form'!$AV117=\"\"),\"-\",IF(AND('Enrollment Form'!$AV117=\"No\",ISERROR(FIND(\"HMO\",VLOOKUP('Enrollment Form'!G117,'Enrollment Form'!H$11:J$1000,3,FALSE),1))=FALSE,COUNTA('Enrollment Form'!$AW117:$AZ117)=4),\"Y\",\"N\"))","v":"-"},{"$f":"IF($B110=\"N\",\"\",IF('Enrollment Form'!$B117=\"Subscriber\",\"-\",IF(COUNTA('Enrollment Form'!$BE117,'Enrollment Form'!$BG117)=2,\"Y\",\"N\")))","v":""},{"$f":"IF($B110=\"N\",\"\",IF(OR('Enrollment Form'!$AU117=\"\",'Enrollment Form'!$AU117=\"No\"),\"-\",IF(AND('Enrollment Form'!$AU117=\"Yes\",COUNTA('Enrollment Form'!$CK117)=1),\"Y\",\"N\")))","v":""},{"$f":"IF(OR('Enrollment Form'!$CK117=\"\",'Enrollment Form'!$CK117=\"No\"),\"-\",IF(COUNTA('Enrollment Form'!$CM117:$CN117)=2,\"Y\",\"N\"))","v":"-"},{"$f":"IF($B110=\"N\",\"\",IF(COUNTIF('Enrollment Form'!$CZ117:$DO117,\"Other\")=COUNTA('Enrollment Form'!$DF117,'Enrollment Form'!$DA117,'Enrollment Form'!$DK117,'Enrollment Form'!$DP117),\"Y\",\"N\"))","v":""},{"$f":"IF($B110=\"N\",\"\",IF(OR('Enrollment Form'!B117<>\"Subscriber\",'Enrollment Form'!C117=\"ROC\",COUNTIF('Enrollment Form'!AS117:AT117,\"Yes\")>=1),\"-\",IF(AND('Enrollment Form'!C117=\"Enroll\",COUNTIF('Enrollment Form'!AS117:AT117,\"No\")=2,'Enrollment Form'!AU117=\"\"),\"N\",\"Y\")))","v":""},{"$f":"IF(OR(B110=\"N\",'Enrollment Form'!B117<>\"Subscriber\",'Enrollment Form'!C117=\"ROC\",'Enrollment Form'!O117<>\"Multiple of Salary\"),\"-\",IF(COUNTA('Enrollment Form'!T117:U117)<2,\"N\",\"Y\"))","v":"-"},{"$f":"IF(B110=\"N\",\"\",IF(OR('Enrollment Form'!C117=\"ROC\",'Enrollment Form'!B117<>\"Subscriber\",'Enrollment Form'!O117=\"Waive\",'Enrollment Form'!O117=\"\"),\"-\",IF('Enrollment Form'!P117=\"\",\"N\",\"Y\")))","v":""},{"$f":"IF($B110=\"N\",\"\",IF(AND('Enrollment Form'!$C117=\"ROC\",'Enrollment Form'!$DS117<>\"\"),\"Y\",IF(AND('Enrollment Form'!$C117=\"ROC\",'Enrollment Form'!$DS117=\"\"),\"N\",IF(AND('Enrollment Form'!$C117=\"Enroll\",'Enrollment Form'!$B117=\"Subscriber\",'Enrollment Form'!$CQ117=\"No\",'Enrollment Form'!$DS117=\"\"),\"N\",IF(AND('Enrollment Form'!$C117=\"Enroll\",'Enrollment Form'!$B117=\"Subscriber\",'Enrollment Form'!$CQ117=\"Yes\"),\"-\",\"Y\")))))","v":""},{"$f":"IF($B110=\"N\",\"\",IF(AND('Enrollment Form'!$C117=\"ROC\",'Enrollment Form'!$DT117<>\"\"),\"Y\",IF(AND('Enrollment Form'!$C117=\"ROC\",'Enrollment Form'!$DT117=\"\"),\"N\",IF(AND('Enrollment Form'!$C117=\"Enroll\",'Enrollment Form'!$B117=\"Subscriber\",'Enrollment Form'!$CQ117=\"No\",'Enrollment Form'!$DT117=\"\"),\"N\",IF(AND('Enrollment Form'!$C117=\"Enroll\",'Enrollment Form'!$B117=\"Subscriber\",'Enrollment Form'!$CQ117=\"Yes\"),\"-\",\"Y\")))))","v":""},{"$f":"IF('Enrollment Form'!AH117=\"\",\"\",IF(ISERROR(SEARCH(\".\",'Enrollment Form'!AH117,SEARCH(\"@\",'Enrollment Form'!AH117))),\"N\",\"Y\"))","v":""},{"$f":"IF(OR($B110=\"N\",'Enrollment Form'!$G117=\"\"),\"\",IF('Enrollment Form'!$B117<>\"Subscriber\",\"-\",IF(COUNTIF('Enrollment Form'!$AS117:$AT117,\"Yes\")=2,\"N\",\"Y\")))","v":""},{"$f":"IF(OR('Enrollment Form'!$CC117=\"\",'Enrollment Form'!$CC117=\"No\"),\"-\",IF(AND('Enrollment Form'!$CC117=\"Yes\",'Enrollment Form'!$CD117=\"\"),\"N\",\"Y\"))","v":"-"},{"$f":"IF(OR('Enrollment Form'!$CE117=\"\",'Enrollment Form'!$CE117=\"No\"),\"-\",IF(AND('Enrollment Form'!$CE117=\"Yes\",'Enrollment Form'!$CF117=\"\"),\"N\",\"Y\"))","v":"-"},{"$f":"IF(OR('Enrollment Form'!$CG117=\"\",'Enrollment Form'!$CG117=\"No\"),\"-\",IF(AND('Enrollment Form'!$CG117=\"Yes\",'Enrollment Form'!$CH117=\"\"),\"N\",\"Y\"))","v":"-"},{"$f":"IF(OR('Enrollment Form'!$CG117=\"\",'Enrollment Form'!$CG117=\"No\"),\"-\",IF(AND('Enrollment Form'!$CG117=\"Yes\",'Enrollment Form'!$CI117=\"\"),\"N\",\"Y\"))","v":"-"},{"$f":"IF('Enrollment Form'!B117<>\"Subscriber\",\"-\",IF(AND('Enrollment Form'!B117=\"Subscriber\",'Enrollment Form'!C117=\"Enroll\",'Enrollment Form'!AA117=\"\"),\"N\",\"Y\"))","v":"-"},{"$f":"IF(OR('Enrollment Form'!B117=\"Subscriber\",'Enrollment Form'!B117=\"\"),\"-\",IF('Enrollment Form'!BI117=\"\",\"N\",\"Y\"))","v":"-"},{"$f":"IF('Enrollment Form'!B117<>\"Subscriber\",\"-\",IF(AND('Enrollment Form'!B117=\"Subscriber\",'Enrollment Form'!G117=\"\"),\"N\",\"Y\"))","v":"-"},{"$f":"IF('Enrollment Form'!A117=\"\",\"\",IF('Enrollment Form'!B117=\"Subscriber\",\"-\",IF(AND('Enrollment Form'!B117<>\"Subscriber\",'Enrollment Form'!G117='Enrollment Form'!H117),\"N\",\"Y\")))","v":""},0]
[118,{"$f":"IF('Enrollment Form'!$A118<>\"\",\"Y\",\"N\")","v":"N"},{"$f":"IF(AND('Enrollment Form'!$B118=\"\",'Enrollment Form'!$C118<>\"\"),\"N\",IF($B111=\"N\",\"\",\"Y\"))","v":""},{"$f":"IF(OR($B111=\"N\",'Enrollment Form'!G118=\"\"),\"\",IF('Enrollment Form'!$B118<>\"Subscriber\",\"\",IF('Enrollment Form'!$G118='Enrollment Form'!$H118,\"Y\",\"N\")))","v":""},{"$f":"IF($B111=\"N\",\"\",IF(AND(COUNTIFS('Enrollment Form'!$H$11:$H$1000,'Enrollment Form'!$H118,'Enrollment Form'!$B$11:$B$1000,'Enrollment Form'!$B118)>1,'Enrollment Form'!$H118<>\"\"),\"N\",\"Y\"))","v":""},{"$f":"IF($B111=\"N\",\"\",IF(LEN('Enrollment Form'!$Y118)=0,\"\",IF(LEN('Enrollment Form'!$Y118)<>5,\"N\",\"Y\")))","v":""},{"$f":"IF($B111=\"N\",\"\",IF(LEN('Enrollment Form'!$AD118=0),\"\",IF(LEN('Enrollment Form'!$AD118)<>5,\"N\",\"Y\")))","v":""},{"$f":"IF($B111=\"N\",\"\",IF(LEN('Enrollment Form'!$BL118=0),\"\",IF(LEN('Enrollment Form'!$BL118)<>5,\"N\",\"Y\")))","v":""},{"$f":"IF($B111=\"N\",\"\",IF(LEN('Enrollment Form'!$AE118)=0,\"\",IF(LEN('Enrollment Form'!$AE118)<>10,\"N\",\"Y\")))","v":""},{"$f":"IF($B111=\"N\",\"\",IF(LEN('Enrollment Form'!$AF118)=0,\"\",IF(LEN('Enrollment Form'!$AF118)<>10,\"N\",\"Y\")))","v":""},{"$f":"IF('Enrollment Form'!$O118<>\"Graded\",\"-\",IF(AND('Enrollment Form'!$O118=\"Graded\",'Enrollment Form'!$AO118<>\"\"),\"Y\",\"N\"))","v":"-"},{"$f":"IF($B111=\"N\",\"\",IF(OR('Enrollment Form'!$B118<>\"Subscriber\",'Enrollment Form'!$C118=\"ROC\"),\"-\",IF(AND('Enrollment Form'!$B118=\"Subscriber\",'Enrollment Form'!$C118=\"Enroll\",'Enrollment Form'!$AJ118<>\"\"),\"Y\",\"N\")))","v":""},{"$f":"IF($B111=\"N\",\"\",IF(OR('Enrollment Form'!$B118<>\"Subscriber\",'Enrollment Form'!$C118=\"ROC\"),\"-\",IF(AND('Enrollment Form'!$B118=\"Subscriber\",'Enrollment Form'!$C118=\"Enroll\",'Enrollment Form'!$AK118<>\"\"),\"Y\",\"N\")))","v":""},{"$f":"IF($B111=\"N\",\"\",IF(OR('Enrollment Form'!$B118<>\"Subscriber\",'Enrollment Form'!$C118=\"ROC\"),\"-\",IF(AND('Enrollment Form'!$B118=\"Subscriber\",'Enrollment Form'!$C118=\"Enroll\",'Enrollment Form'!$AL118<>\"\"),\"Y\",\"N\")))","v":""},{"$f":"IF($B111=\"N\",\"\",IF(OR('Enrollment Form'!$B118<>\"Subscriber\",'Enrollment Form'!$C118=\"ROC\"),\"-\",IF(AND('Enrollment Form'!$B118=\"Subscriber\",'Enrollment Form'!$C118=\"Enroll\",'Enrollment Form'!$AM118<>\"\"),\"Y\",\"N\")))","v":""},{"$f":"IF($B111=\"N\",\"\",IF(OR('Enrollment Form'!$B118<>\"Subscriber\",'Enrollment Form'!$C118=\"ROC\"),\"-\",IF(AND('Enrollment Form'!$B118=\"Subscriber\",'Enrollment Form'!$C118=\"Enroll\",'Enrollment Form'!$AN118<>\"\"),\"Y\",\"N\")))","v":""},{"$f":"IF($B111=\"N\",\"\",IF(OR('Enrollment Form'!$B118<>\"Subscriber\",'Enrollment Form'!$C118=\"ROC\"),\"-\",IF(AND('Enrollment Form'!$B118=\"Subscriber\",'Enrollment Form'!$C118=\"Enroll\",'Enrollment Form'!$AP118<>\"\"),\"Y\",\"N\")))","v":""},{"$f":"IF($B111=\"N\",\"\",IF($Q111=\"-\",\"-\",IF(AND($Q111=\"Y\",'Enrollment Form'!$AP118=\"No\"),\"-\",IF(AND($Q111=\"Y\",'Enrollment Form'!$AP118=\"Yes\",'Enrollment Form'!$AQ118<>\"\"),\"Y\",\"N\"))))","v":""},{"$f":"IF($B111=\"N\",\"\",IF(OR('Enrollment Form'!$B118<>\"Subscriber\",'Enrollment Form'!$C118=\"ROC\"),\"-\",IF(AND('Enrollment Form'!$B118=\"Subscriber\",'Enrollment Form'!$C118=\"Enroll\",'Enrollment Form'!$CO118<>\"\"),\"Y\",\"N\")))","v":""},{"$f":"IF($B111=\"N\",\"\",IF($S111=\"-\",\"-\",IF(AND($S111=\"Y\",'Enrollment Form'!$CO118=\"No\"),\"-\",IF(AND($S111=\"Y\",'Enrollment Form'!$CO118=\"Yes\",'Enrollment Form'!$CP118<>\"\"),\"Y\",\"N\"))))","v":""},{"$f":"IF(OR('Enrollment Form'!$AV118=\"Yes\",'Enrollment Form'!$AV118=\"\"),\"-\",IF(AND('Enrollment Form'!$AV118=\"No\",ISERROR(FIND(\"HMO\",VLOOKUP('Enrollment Form'!G118,'Enrollment Form'!H$11:J$1000,3,FALSE),1))=FALSE,COUNTA('Enrollment Form'!$AW118:$AZ118)=4),\"Y\",\"N\"))","v":"-"},{"$f":"IF($B111=\"N\",\"\",IF('Enrollment Form'!$B118=\"Subscriber\",\"-\",IF(COUNTA('Enrollment Form'!$BE118,'Enrollment Form'!$BG118)=2,\"Y\",\"N\")))","v":""},{"$f":"IF($B111=\"N\",\"\",IF(OR('Enrollment Form'!$AU118=\"\",'Enrollment Form'!$AU118=\"No\"),\"-\",IF(AND('Enrollment Form'!$AU118=\"Yes\",COUNTA('Enrollment Form'!$CK118)=1),\"Y\",\"N\")))","v":""},{"$f":"IF(OR('Enrollment Form'!$CK118=\"\",'Enrollment Form'!$CK118=\"No\"),\"-\",IF(COUNTA('Enrollment Form'!$CM118:$CN118)=2,\"Y\",\"N\"))","v":"-"},{"$f":"IF($B111=\"N\",\"\",IF(COUNTIF('Enrollment Form'!$CZ118:$DO118,\"Other\")=COUNTA('Enrollment Form'!$DF118,'Enrollment Form'!$DA118,'Enrollment Form'!$DK118,'Enrollment Form'!$DP118),\"Y\",\"N\"))","v":""},{"$f":"IF($B111=\"N\",\"\",IF(OR('Enrollment Form'!B118<>\"Subscriber\",'Enrollment Form'!C118=\"ROC\",COUNTIF('Enrollment Form'!AS118:AT118,\"Yes\")>=1),\"-\",IF(AND('Enrollment Form'!C118=\"Enroll\",COUNTIF('Enrollment Form'!AS118:AT118,\"No\")=2,'Enrollment Form'!AU118=\"\"),\"N\",\"Y\")))","v":""},{"$f":"IF(OR(B111=\"N\",'Enrollment Form'!B118<>\"Subscriber\",'Enrollment Form'!C118=\"ROC\",'Enrollment Form'!O118<>\"Multiple of Salary\"),\"-\",IF(COUNTA('Enrollment Form'!T118:U118)<2,\"N\",\"Y\"))","v":"-"},{"$f":"IF(B111=\"N\",\"\",IF(OR('Enrollment Form'!C118=\"ROC\",'Enrollment Form'!B118<>\"Subscriber\",'Enrollment Form'!O118=\"Waive\",'Enrollment Form'!O118=\"\"),\"-\",IF('Enrollment Form'!P118=\"\",\"N\",\"Y\")))","v":""},{"$f":"IF($B111=\"N\",\"\",IF(AND('Enrollment Form'!$C118=\"ROC\",'Enrollment Form'!$DS118<>\"\"),\"Y\",IF(AND('Enrollment Form'!$C118=\"ROC\",'Enrollment Form'!$DS118=\"\"),\"N\",IF(AND('Enrollment Form'!$C118=\"Enroll\",'Enrollment Form'!$B118=\"Subscriber\",'Enrollment Form'!$CQ118=\"No\",'Enrollment Form'!$DS118=\"\"),\"N\",IF(AND('Enrollment Form'!$C118=\"Enroll\",'Enrollment Form'!$B118=\"Subscriber\",'Enrollment Form'!$CQ118=\"Yes\"),\"-\",\"Y\")))))","v":""},{"$f":"IF($B111=\"N\",\"\",IF(AND('Enrollment Form'!$C118=\"ROC\",'Enrollment Form'!$DT118<>\"\"),\"Y\",IF(AND('Enrollment Form'!$C118=\"ROC\",'Enrollment Form'!$DT118=\"\"),\"N\",IF(AND('Enrollment Form'!$C118=\"Enroll\",'Enrollment Form'!$B118=\"Subscriber\",'Enrollment Form'!$CQ118=\"No\",'Enrollment Form'!$DT118=\"\"),\"N\",IF(AND('Enrollment Form'!$C118=\"Enroll\",'Enrollment Form'!$B118=\"Subscriber\",'Enrollment Form'!$CQ118=\"Yes\"),\"-\",\"Y\")))))","v":""},{"$f":"IF('Enrollment Form'!AH118=\"\",\"\",IF(ISERROR(SEARCH(\".\",'Enrollment Form'!AH118,SEARCH(\"@\",'Enrollment Form'!AH118))),\"N\",\"Y\"))","v":""},{"$f":"IF(OR($B111=\"N\",'Enrollment Form'!$G118=\"\"),\"\",IF('Enrollment Form'!$B118<>\"Subscriber\",\"-\",IF(COUNTIF('Enrollment Form'!$AS118:$AT118,\"Yes\")=2,\"N\",\"Y\")))","v":""},{"$f":"IF(OR('Enrollment Form'!$CC118=\"\",'Enrollment Form'!$CC118=\"No\"),\"-\",IF(AND('Enrollment Form'!$CC118=\"Yes\",'Enrollment Form'!$CD118=\"\"),\"N\",\"Y\"))","v":"-"},{"$f":"IF(OR('Enrollment Form'!$CE118=\"\",'Enrollment Form'!$CE118=\"No\"),\"-\",IF(AND('Enrollment Form'!$CE118=\"Yes\",'Enrollment Form'!$CF118=\"\"),\"N\",\"Y\"))","v":"-"},{"$f":"IF(OR('Enrollment Form'!$CG118=\"\",'Enrollment Form'!$CG118=\"No\"),\"-\",IF(AND('Enrollment Form'!$CG118=\"Yes\",'Enrollment Form'!$CH118=\"\"),\"N\",\"Y\"))","v":"-"},{"$f":"IF(OR('Enrollment Form'!$CG118=\"\",'Enrollment Form'!$CG118=\"No\"),\"-\",IF(AND('Enrollment Form'!$CG118=\"Yes\",'Enrollment Form'!$CI118=\"\"),\"N\",\"Y\"))","v":"-"},{"$f":"IF('Enrollment Form'!B118<>\"Subscriber\",\"-\",IF(AND('Enrollment Form'!B118=\"Subscriber\",'Enrollment Form'!C118=\"Enroll\",'Enrollment Form'!AA118=\"\"),\"N\",\"Y\"))","v":"-"},{"$f":"IF(OR('Enrollment Form'!B118=\"Subscriber\",'Enrollment Form'!B118=\"\"),\"-\",IF('Enrollment Form'!BI118=\"\",\"N\",\"Y\"))","v":"-"},{"$f":"IF('Enrollment Form'!B118<>\"Subscriber\",\"-\",IF(AND('Enrollment Form'!B118=\"Subscriber\",'Enrollment Form'!G118=\"\"),\"N\",\"Y\"))","v":"-"},{"$f":"IF('Enrollment Form'!A118=\"\",\"\",IF('Enrollment Form'!B118=\"Subscriber\",\"-\",IF(AND('Enrollment Form'!B118<>\"Subscriber\",'Enrollment Form'!G118='Enrollment Form'!H118),\"N\",\"Y\")))","v":""},0]
[119,{"$f":"IF('Enrollment Form'!$A119<>\"\",\"Y\",\"N\")","v":"N"},{"$f":"IF(AND('Enrollment Form'!$B119=\"\",'Enrollment Form'!$C119<>\"\"),\"N\",IF($B112=\"N\",\"\",\"Y\"))","v":""},{"$f":"IF(OR($B112=\"N\",'Enrollment Form'!G119=\"\"),\"\",IF('Enrollment Form'!$B119<>\"Subscriber\",\"\",IF('Enrollment Form'!$G119='Enrollment Form'!$H119,\"Y\",\"N\")))","v":""},{"$f":"IF($B112=\"N\",\"\",IF(AND(COUNTIFS('Enrollment Form'!$H$11:$H$1000,'Enrollment Form'!$H119,'Enrollment Form'!$B$11:$B$1000,'Enrollment Form'!$B119)>1,'Enrollment Form'!$H119<>\"\"),\"N\",\"Y\"))","v":""},{"$f":"IF($B112=\"N\",\"\",IF(LEN('Enrollment Form'!$Y119)=0,\"\",IF(LEN('Enrollment Form'!$Y119)<>5,\"N\",\"Y\")))","v":""},{"$f":"IF($B112=\"N\",\"\",IF(LEN('Enrollment Form'!$AD119=0),\"\",IF(LEN('Enrollment Form'!$AD119)<>5,\"N\",\"Y\")))","v":""},{"$f":"IF($B112=\"N\",\"\",IF(LEN('Enrollment Form'!$BL119=0),\"\",IF(LEN('Enrollment Form'!$BL119)<>5,\"N\",\"Y\")))","v":""},{"$f":"IF($B112=\"N\",\"\",IF(LEN('Enrollment Form'!$AE119)=0,\"\",IF(LEN('Enrollment Form'!$AE119)<>10,\"N\",\"Y\")))","v":""},{"$f":"IF($B112=\"N\",\"\",IF(LEN('Enrollment Form'!$AF119)=0,\"\",IF(LEN('Enrollment Form'!$AF119)<>10,\"N\",\"Y\")))","v":""},{"$f":"IF('Enrollment Form'!$O119<>\"Graded\",\"-\",IF(AND('Enrollment Form'!$O119=\"Graded\",'Enrollment Form'!$AO119<>\"\"),\"Y\",\"N\"))","v":"-"},{"$f":"IF($B112=\"N\",\"\",IF(OR('Enrollment Form'!$B119<>\"Subscriber\",'Enrollment Form'!$C119=\"ROC\"),\"-\",IF(AND('Enrollment Form'!$B119=\"Subscriber\",'Enrollment Form'!$C119=\"Enroll\",'Enrollment Form'!$AJ119<>\"\"),\"Y\",\"N\")))","v":""},{"$f":"IF($B112=\"N\",\"\",IF(OR('Enrollment Form'!$B119<>\"Subscriber\",'Enrollment Form'!$C119=\"ROC\"),\"-\",IF(AND('Enrollment Form'!$B119=\"Subscriber\",'Enrollment Form'!$C119=\"Enroll\",'Enrollment Form'!$AK119<>\"\"),\"Y\",\"N\")))","v":""},{"$f":"IF($B112=\"N\",\"\",IF(OR('Enrollment Form'!$B119<>\"Subscriber\",'Enrollment Form'!$C119=\"ROC\"),\"-\",IF(AND('Enrollment Form'!$B119=\"Subscriber\",'Enrollment Form'!$C119=\"Enroll\",'Enrollment Form'!$AL119<>\"\"),\"Y\",\"N\")))","v":""},{"$f":"IF($B112=\"N\",\"\",IF(OR('Enrollment Form'!$B119<>\"Subscriber\",'Enrollment Form'!$C119=\"ROC\"),\"-\",IF(AND('Enrollment Form'!$B119=\"Subscriber\",'Enrollment Form'!$C119=\"Enroll\",'Enrollment Form'!$AM119<>\"\"),\"Y\",\"N\")))","v":""},{"$f":"IF($B112=\"N\",\"\",IF(OR('Enrollment Form'!$B119<>\"Subscriber\",'Enrollment Form'!$C119=\"ROC\"),\"-\",IF(AND('Enrollment Form'!$B119=\"Subscriber\",'Enrollment Form'!$C119=\"Enroll\",'Enrollment Form'!$AN119<>\"\"),\"Y\",\"N\")))","v":""},{"$f":"IF($B112=\"N\",\"\",IF(OR('Enrollment Form'!$B119<>\"Subscriber\",'Enrollment Form'!$C119=\"ROC\"),\"-\",IF(AND('Enrollment Form'!$B119=\"Subscriber\",'Enrollment Form'!$C119=\"Enroll\",'Enrollment Form'!$AP119<>\"\"),\"Y\",\"N\")))","v":""},{"$f":"IF($B112=\"N\",\"\",IF($Q112=\"-\",\"-\",IF(AND($Q112=\"Y\",'Enrollment Form'!$AP119=\"No\"),\"-\",IF(AND($Q112=\"Y\",'Enrollment Form'!$AP119=\"Yes\",'Enrollment Form'!$AQ119<>\"\"),\"Y\",\"N\"))))","v":""},{"$f":"IF($B112=\"N\",\"\",IF(OR('Enrollment Form'!$B119<>\"Subscriber\",'Enrollment Form'!$C119=\"ROC\"),\"-\",IF(AND('Enrollment Form'!$B119=\"Subscriber\",'Enrollment Form'!$C119=\"Enroll\",'Enrollment Form'!$CO119<>\"\"),\"Y\",\"N\")))","v":""},{"$f":"IF($B112=\"N\",\"\",IF($S112=\"-\",\"-\",IF(AND($S112=\"Y\",'Enrollment Form'!$CO119=\"No\"),\"-\",IF(AND($S112=\"Y\",'Enrollment Form'!$CO119=\"Yes\",'Enrollment Form'!$CP119<>\"\"),\"Y\",\"N\"))))","v":""},{"$f":"IF(OR('Enrollment Form'!$AV119=\"Yes\",'Enrollment Form'!$AV119=\"\"),\"-\",IF(AND('Enrollment Form'!$AV119=\"No\",ISERROR(FIND(\"HMO\",VLOOKUP('Enrollment Form'!G119,'Enrollment Form'!H$11:J$1000,3,FALSE),1))=FALSE,COUNTA('Enrollment Form'!$AW119:$AZ119)=4),\"Y\",\"N\"))","v":"-"},{"$f":"IF($B112=\"N\",\"\",IF('Enrollment Form'!$B119=\"Subscriber\",\"-\",IF(COUNTA('Enrollment Form'!$BE119,'Enrollment Form'!$BG119)=2,\"Y\",\"N\")))","v":""},{"$f":"IF($B112=\"N\",\"\",IF(OR('Enrollment Form'!$AU119=\"\",'Enrollment Form'!$AU119=\"No\"),\"-\",IF(AND('Enrollment Form'!$AU119=\"Yes\",COUNTA('Enrollment Form'!$CK119)=1),\"Y\",\"N\")))","v":""},{"$f":"IF(OR('Enrollment Form'!$CK119=\"\",'Enrollment Form'!$CK119=\"No\"),\"-\",IF(COUNTA('Enrollment Form'!$CM119:$CN119)=2,\"Y\",\"N\"))","v":"-"},{"$f":"IF($B112=\"N\",\"\",IF(COUNTIF('Enrollment Form'!$CZ119:$DO119,\"Other\")=COUNTA('Enrollment Form'!$DF119,'Enrollment Form'!$DA119,'Enrollment Form'!$DK119,'Enrollment Form'!$DP119),\"Y\",\"N\"))","v":""},{"$f":"IF($B112=\"N\",\"\",IF(OR('Enrollment Form'!B119<>\"Subscriber\",'Enrollment Form'!C119=\"ROC\",COUNTIF('Enrollment Form'!AS119:AT119,\"Yes\")>=1),\"-\",IF(AND('Enrollment Form'!C119=\"Enroll\",COUNTIF('Enrollment Form'!AS119:AT119,\"No\")=2,'Enrollment Form'!AU119=\"\"),\"N\",\"Y\")))","v":""},{"$f":"IF(OR(B112=\"N\",'Enrollment Form'!B119<>\"Subscriber\",'Enrollment Form'!C119=\"ROC\",'Enrollment Form'!O119<>\"Multiple of Salary\"),\"-\",IF(COUNTA('Enrollment Form'!T119:U119)<2,\"N\",\"Y\"))","v":"-"},{"$f":"IF(B112=\"N\",\"\",IF(OR('Enrollment Form'!C119=\"ROC\",'Enrollment Form'!B119<>\"Subscriber\",'Enrollment Form'!O119=\"Waive\",'Enrollment Form'!O119=\"\"),\"-\",IF('Enrollment Form'!P119=\"\",\"N\",\"Y\")))","v":""},{"$f":"IF($B112=\"N\",\"\",IF(AND('Enrollment Form'!$C119=\"ROC\",'Enrollment Form'!$DS119<>\"\"),\"Y\",IF(AND('Enrollment Form'!$C119=\"ROC\",'Enrollment Form'!$DS119=\"\"),\"N\",IF(AND('Enrollment Form'!$C119=\"Enroll\",'Enrollment Form'!$B119=\"Subscriber\",'Enrollment Form'!$CQ119=\"No\",'Enrollment Form'!$DS119=\"\"),\"N\",IF(AND('Enrollment Form'!$C119=\"Enroll\",'Enrollment Form'!$B119=\"Subscriber\",'Enrollment Form'!$CQ119=\"Yes\"),\"-\",\"Y\")))))","v":""},{"$f":"IF($B112=\"N\",\"\",IF(AND('Enrollment Form'!$C119=\"ROC\",'Enrollment Form'!$DT119<>\"\"),\"Y\",IF(AND('Enrollment Form'!$C119=\"ROC\",'Enrollment Form'!$DT119=\"\"),\"N\",IF(AND('Enrollment Form'!$C119=\"Enroll\",'Enrollment Form'!$B119=\"Subscriber\",'Enrollment Form'!$CQ119=\"No\",'Enrollment Form'!$DT119=\"\"),\"N\",IF(AND('Enrollment Form'!$C119=\"Enroll\",'Enrollment Form'!$B119=\"Subscriber\",'Enrollment Form'!$CQ119=\"Yes\"),\"-\",\"Y\")))))","v":""},{"$f":"IF('Enrollment Form'!AH119=\"\",\"\",IF(ISERROR(SEARCH(\".\",'Enrollment Form'!AH119,SEARCH(\"@\",'Enrollment Form'!AH119))),\"N\",\"Y\"))","v":""},{"$f":"IF(OR($B112=\"N\",'Enrollment Form'!$G119=\"\"),\"\",IF('Enrollment Form'!$B119<>\"Subscriber\",\"-\",IF(COUNTIF('Enrollment Form'!$AS119:$AT119,\"Yes\")=2,\"N\",\"Y\")))","v":""},{"$f":"IF(OR('Enrollment Form'!$CC119=\"\",'Enrollment Form'!$CC119=\"No\"),\"-\",IF(AND('Enrollment Form'!$CC119=\"Yes\",'Enrollment Form'!$CD119=\"\"),\"N\",\"Y\"))","v":"-"},{"$f":"IF(OR('Enrollment Form'!$CE119=\"\",'Enrollment Form'!$CE119=\"No\"),\"-\",IF(AND('Enrollment Form'!$CE119=\"Yes\",'Enrollment Form'!$CF119=\"\"),\"N\",\"Y\"))","v":"-"},{"$f":"IF(OR('Enrollment Form'!$CG119=\"\",'Enrollment Form'!$CG119=\"No\"),\"-\",IF(AND('Enrollment Form'!$CG119=\"Yes\",'Enrollment Form'!$CH119=\"\"),\"N\",\"Y\"))","v":"-"},{"$f":"IF(OR('Enrollment Form'!$CG119=\"\",'Enrollment Form'!$CG119=\"No\"),\"-\",IF(AND('Enrollment Form'!$CG119=\"Yes\",'Enrollment Form'!$CI119=\"\"),\"N\",\"Y\"))","v":"-"},{"$f":"IF('Enrollment Form'!B119<>\"Subscriber\",\"-\",IF(AND('Enrollment Form'!B119=\"Subscriber\",'Enrollment Form'!C119=\"Enroll\",'Enrollment Form'!AA119=\"\"),\"N\",\"Y\"))","v":"-"},{"$f":"IF(OR('Enrollment Form'!B119=\"Subscriber\",'Enrollment Form'!B119=\"\"),\"-\",IF('Enrollment Form'!BI119=\"\",\"N\",\"Y\"))","v":"-"},{"$f":"IF('Enrollment Form'!B119<>\"Subscriber\",\"-\",IF(AND('Enrollment Form'!B119=\"Subscriber\",'Enrollment Form'!G119=\"\"),\"N\",\"Y\"))","v":"-"},{"$f":"IF('Enrollment Form'!A119=\"\",\"\",IF('Enrollment Form'!B119=\"Subscriber\",\"-\",IF(AND('Enrollment Form'!B119<>\"Subscriber\",'Enrollment Form'!G119='Enrollment Form'!H119),\"N\",\"Y\")))","v":""},0]
[120,{"$f":"IF('Enrollment Form'!$A120<>\"\",\"Y\",\"N\")","v":"N"},{"$f":"IF(AND('Enrollment Form'!$B120=\"\",'Enrollment Form'!$C120<>\"\"),\"N\",IF($B113=\"N\",\"\",\"Y\"))","v":""},{"$f":"IF(OR($B113=\"N\",'Enrollment Form'!G120=\"\"),\"\",IF('Enrollment Form'!$B120<>\"Subscriber\",\"\",IF('Enrollment Form'!$G120='Enrollment Form'!$H120,\"Y\",\"N\")))","v":""},{"$f":"IF($B113=\"N\",\"\",IF(AND(COUNTIFS('Enrollment Form'!$H$11:$H$1000,'Enrollment Form'!$H120,'Enrollment Form'!$B$11:$B$1000,'Enrollment Form'!$B120)>1,'Enrollment Form'!$H120<>\"\"),\"N\",\"Y\"))","v":""},{"$f":"IF($B113=\"N\",\"\",IF(LEN('Enrollment Form'!$Y120)=0,\"\",IF(LEN('Enrollment Form'!$Y120)<>5,\"N\",\"Y\")))","v":""},{"$f":"IF($B113=\"N\",\"\",IF(LEN('Enrollment Form'!$AD120=0),\"\",IF(LEN('Enrollment Form'!$AD120)<>5,\"N\",\"Y\")))","v":""},{"$f":"IF($B113=\"N\",\"\",IF(LEN('Enrollment Form'!$BL120=0),\"\",IF(LEN('Enrollment Form'!$BL120)<>5,\"N\",\"Y\")))","v":""},{"$f":"IF($B113=\"N\",\"\",IF(LEN('Enrollment Form'!$AE120)=0,\"\",IF(LEN('Enrollment Form'!$AE120)<>10,\"N\",\"Y\")))","v":""},{"$f":"IF($B113=\"N\",\"\",IF(LEN('Enrollment Form'!$AF120)=0,\"\",IF(LEN('Enrollment Form'!$AF120)<>10,\"N\",\"Y\")))","v":""},{"$f":"IF('Enrollment Form'!$O120<>\"Graded\",\"-\",IF(AND('Enrollment Form'!$O120=\"Graded\",'Enrollment Form'!$AO120<>\"\"),\"Y\",\"N\"))","v":"-"},{"$f":"IF($B113=\"N\",\"\",IF(OR('Enrollment Form'!$B120<>\"Subscriber\",'Enrollment Form'!$C120=\"ROC\"),\"-\",IF(AND('Enrollment Form'!$B120=\"Subscriber\",'Enrollment Form'!$C120=\"Enroll\",'Enrollment Form'!$AJ120<>\"\"),\"Y\",\"N\")))","v":""},{"$f":"IF($B113=\"N\",\"\",IF(OR('Enrollment Form'!$B120<>\"Subscriber\",'Enrollment Form'!$C120=\"ROC\"),\"-\",IF(AND('Enrollment Form'!$B120=\"Subscriber\",'Enrollment Form'!$C120=\"Enroll\",'Enrollment Form'!$AK120<>\"\"),\"Y\",\"N\")))","v":""},{"$f":"IF($B113=\"N\",\"\",IF(OR('Enrollment Form'!$B120<>\"Subscriber\",'Enrollment Form'!$C120=\"ROC\"),\"-\",IF(AND('Enrollment Form'!$B120=\"Subscriber\",'Enrollment Form'!$C120=\"Enroll\",'Enrollment Form'!$AL120<>\"\"),\"Y\",\"N\")))","v":""},{"$f":"IF($B113=\"N\",\"\",IF(OR('Enrollment Form'!$B120<>\"Subscriber\",'Enrollment Form'!$C120=\"ROC\"),\"-\",IF(AND('Enrollment Form'!$B120=\"Subscriber\",'Enrollment Form'!$C120=\"Enroll\",'Enrollment Form'!$AM120<>\"\"),\"Y\",\"N\")))","v":""},{"$f":"IF($B113=\"N\",\"\",IF(OR('Enrollment Form'!$B120<>\"Subscriber\",'Enrollment Form'!$C120=\"ROC\"),\"-\",IF(AND('Enrollment Form'!$B120=\"Subscriber\",'Enrollment Form'!$C120=\"Enroll\",'Enrollment Form'!$AN120<>\"\"),\"Y\",\"N\")))","v":""},{"$f":"IF($B113=\"N\",\"\",IF(OR('Enrollment Form'!$B120<>\"Subscriber\",'Enrollment Form'!$C120=\"ROC\"),\"-\",IF(AND('Enrollment Form'!$B120=\"Subscriber\",'Enrollment Form'!$C120=\"Enroll\",'Enrollment Form'!$AP120<>\"\"),\"Y\",\"N\")))","v":""},{"$f":"IF($B113=\"N\",\"\",IF($Q113=\"-\",\"-\",IF(AND($Q113=\"Y\",'Enrollment Form'!$AP120=\"No\"),\"-\",IF(AND($Q113=\"Y\",'Enrollment Form'!$AP120=\"Yes\",'Enrollment Form'!$AQ120<>\"\"),\"Y\",\"N\"))))","v":""},{"$f":"IF($B113=\"N\",\"\",IF(OR('Enrollment Form'!$B120<>\"Subscriber\",'Enrollment Form'!$C120=\"ROC\"),\"-\",IF(AND('Enrollment Form'!$B120=\"Subscriber\",'Enrollment Form'!$C120=\"Enroll\",'Enrollment Form'!$CO120<>\"\"),\"Y\",\"N\")))","v":""},{"$f":"IF($B113=\"N\",\"\",IF($S113=\"-\",\"-\",IF(AND($S113=\"Y\",'Enrollment Form'!$CO120=\"No\"),\"-\",IF(AND($S113=\"Y\",'Enrollment Form'!$CO120=\"Yes\",'Enrollment Form'!$CP120<>\"\"),\"Y\",\"N\"))))","v":""},{"$f":"IF(OR('Enrollment Form'!$AV120=\"Yes\",'Enrollment Form'!$AV120=\"\"),\"-\",IF(AND('Enrollment Form'!$AV120=\"No\",ISERROR(FIND(\"HMO\",VLOOKUP('Enrollment Form'!G120,'Enrollment Form'!H$11:J$1000,3,FALSE),1))=FALSE,COUNTA('Enrollment Form'!$AW120:$AZ120)=4),\"Y\",\"N\"))","v":"-"},{"$f":"IF($B113=\"N\",\"\",IF('Enrollment Form'!$B120=\"Subscriber\",\"-\",IF(COUNTA('Enrollment Form'!$BE120,'Enrollment Form'!$BG120)=2,\"Y\",\"N\")))","v":""},{"$f":"IF($B113=\"N\",\"\",IF(OR('Enrollment Form'!$AU120=\"\",'Enrollment Form'!$AU120=\"No\"),\"-\",IF(AND('Enrollment Form'!$AU120=\"Yes\",COUNTA('Enrollment Form'!$CK120)=1),\"Y\",\"N\")))","v":""},{"$f":"IF(OR('Enrollment Form'!$CK120=\"\",'Enrollment Form'!$CK120=\"No\"),\"-\",IF(COUNTA('Enrollment Form'!$CM120:$CN120)=2,\"Y\",\"N\"))","v":"-"},{"$f":"IF($B113=\"N\",\"\",IF(COUNTIF('Enrollment Form'!$CZ120:$DO120,\"Other\")=COUNTA('Enrollment Form'!$DF120,'Enrollment Form'!$DA120,'Enrollment Form'!$DK120,'Enrollment Form'!$DP120),\"Y\",\"N\"))","v":""},{"$f":"IF($B113=\"N\",\"\",IF(OR('Enrollment Form'!B120<>\"Subscriber\",'Enrollment Form'!C120=\"ROC\",COUNTIF('Enrollment Form'!AS120:AT120,\"Yes\")>=1),\"-\",IF(AND('Enrollment Form'!C120=\"Enroll\",COUNTIF('Enrollment Form'!AS120:AT120,\"No\")=2,'Enrollment Form'!AU120=\"\"),\"N\",\"Y\")))","v":""},{"$f":"IF(OR(B113=\"N\",'Enrollment Form'!B120<>\"Subscriber\",'Enrollment Form'!C120=\"ROC\",'Enrollment Form'!O120<>\"Multiple of Salary\"),\"-\",IF(COUNTA('Enrollment Form'!T120:U120)<2,\"N\",\"Y\"))","v":"-"},{"$f":"IF(B113=\"N\",\"\",IF(OR('Enrollment Form'!C120=\"ROC\",'Enrollment Form'!B120<>\"Subscriber\",'Enrollment Form'!O120=\"Waive\",'Enrollment Form'!O120=\"\"),\"-\",IF('Enrollment Form'!P120=\"\",\"N\",\"Y\")))","v":""},{"$f":"IF($B113=\"N\",\"\",IF(AND('Enrollment Form'!$C120=\"ROC\",'Enrollment Form'!$DS120<>\"\"),\"Y\",IF(AND('Enrollment Form'!$C120=\"ROC\",'Enrollment Form'!$DS120=\"\"),\"N\",IF(AND('Enrollment Form'!$C120=\"Enroll\",'Enrollment Form'!$B120=\"Subscriber\",'Enrollment Form'!$CQ120=\"No\",'Enrollment Form'!$DS120=\"\"),\"N\",IF(AND('Enrollment Form'!$C120=\"Enroll\",'Enrollment Form'!$B120=\"Subscriber\",'Enrollment Form'!$CQ120=\"Yes\"),\"-\",\"Y\")))))","v":""},{"$f":"IF($B113=\"N\",\"\",IF(AND('Enrollment Form'!$C120=\"ROC\",'Enrollment Form'!$DT120<>\"\"),\"Y\",IF(AND('Enrollment Form'!$C120=\"ROC\",'Enrollment Form'!$DT120=\"\"),\"N\",IF(AND('Enrollment Form'!$C120=\"Enroll\",'Enrollment Form'!$B120=\"Subscriber\",'Enrollment Form'!$CQ120=\"No\",'Enrollment Form'!$DT120=\"\"),\"N\",IF(AND('Enrollment Form'!$C120=\"Enroll\",'Enrollment Form'!$B120=\"Subscriber\",'Enrollment Form'!$CQ120=\"Yes\"),\"-\",\"Y\")))))","v":""},{"$f":"IF('Enrollment Form'!AH120=\"\",\"\",IF(ISERROR(SEARCH(\".\",'Enrollment Form'!AH120,SEARCH(\"@\",'Enrollment Form'!AH120))),\"N\",\"Y\"))","v":""},{"$f":"IF(OR($B113=\"N\",'Enrollment Form'!$G120=\"\"),\"\",IF('Enrollment Form'!$B120<>\"Subscriber\",\"-\",IF(COUNTIF('Enrollment Form'!$AS120:$AT120,\"Yes\")=2,\"N\",\"Y\")))","v":""},{"$f":"IF(OR('Enrollment Form'!$CC120=\"\",'Enrollment Form'!$CC120=\"No\"),\"-\",IF(AND('Enrollment Form'!$CC120=\"Yes\",'Enrollment Form'!$CD120=\"\"),\"N\",\"Y\"))","v":"-"},{"$f":"IF(OR('Enrollment Form'!$CE120=\"\",'Enrollment Form'!$CE120=\"No\"),\"-\",IF(AND('Enrollment Form'!$CE120=\"Yes\",'Enrollment Form'!$CF120=\"\"),\"N\",\"Y\"))","v":"-"},{"$f":"IF(OR('Enrollment Form'!$CG120=\"\",'Enrollment Form'!$CG120=\"No\"),\"-\",IF(AND('Enrollment Form'!$CG120=\"Yes\",'Enrollment Form'!$CH120=\"\"),\"N\",\"Y\"))","v":"-"},{"$f":"IF(OR('Enrollment Form'!$CG120=\"\",'Enrollment Form'!$CG120=\"No\"),\"-\",IF(AND('Enrollment Form'!$CG120=\"Yes\",'Enrollment Form'!$CI120=\"\"),\"N\",\"Y\"))","v":"-"},{"$f":"IF('Enrollment Form'!B120<>\"Subscriber\",\"-\",IF(AND('Enrollment Form'!B120=\"Subscriber\",'Enrollment Form'!C120=\"Enroll\",'Enrollment Form'!AA120=\"\"),\"N\",\"Y\"))","v":"-"},{"$f":"IF(OR('Enrollment Form'!B120=\"Subscriber\",'Enrollment Form'!B120=\"\"),\"-\",IF('Enrollment Form'!BI120=\"\",\"N\",\"Y\"))","v":"-"},{"$f":"IF('Enrollment Form'!B120<>\"Subscriber\",\"-\",IF(AND('Enrollment Form'!B120=\"Subscriber\",'Enrollment Form'!G120=\"\"),\"N\",\"Y\"))","v":"-"},{"$f":"IF('Enrollment Form'!A120=\"\",\"\",IF('Enrollment Form'!B120=\"Subscriber\",\"-\",IF(AND('Enrollment Form'!B120<>\"Subscriber\",'Enrollment Form'!G120='Enrollment Form'!H120),\"N\",\"Y\")))","v":""},0]
[121,{"$f":"IF('Enrollment Form'!$A121<>\"\",\"Y\",\"N\")","v":"N"},{"$f":"IF(AND('Enrollment Form'!$B121=\"\",'Enrollment Form'!$C121<>\"\"),\"N\",IF($B114=\"N\",\"\",\"Y\"))","v":""},{"$f":"IF(OR($B114=\"N\",'Enrollment Form'!G121=\"\"),\"\",IF('Enrollment Form'!$B121<>\"Subscriber\",\"\",IF('Enrollment Form'!$G121='Enrollment Form'!$H121,\"Y\",\"N\")))","v":""},{"$f":"IF($B114=\"N\",\"\",IF(AND(COUNTIFS('Enrollment Form'!$H$11:$H$1000,'Enrollment Form'!$H121,'Enrollment Form'!$B$11:$B$1000,'Enrollment Form'!$B121)>1,'Enrollment Form'!$H121<>\"\"),\"N\",\"Y\"))","v":""},{"$f":"IF($B114=\"N\",\"\",IF(LEN('Enrollment Form'!$Y121)=0,\"\",IF(LEN('Enrollment Form'!$Y121)<>5,\"N\",\"Y\")))","v":""},{"$f":"IF($B114=\"N\",\"\",IF(LEN('Enrollment Form'!$AD121=0),\"\",IF(LEN('Enrollment Form'!$AD121)<>5,\"N\",\"Y\")))","v":""},{"$f":"IF($B114=\"N\",\"\",IF(LEN('Enrollment Form'!$BL121=0),\"\",IF(LEN('Enrollment Form'!$BL121)<>5,\"N\",\"Y\")))","v":""},{"$f":"IF($B114=\"N\",\"\",IF(LEN('Enrollment Form'!$AE121)=0,\"\",IF(LEN('Enrollment Form'!$AE121)<>10,\"N\",\"Y\")))","v":""},{"$f":"IF($B114=\"N\",\"\",IF(LEN('Enrollment Form'!$AF121)=0,\"\",IF(LEN('Enrollment Form'!$AF121)<>10,\"N\",\"Y\")))","v":""},{"$f":"IF('Enrollment Form'!$O121<>\"Graded\",\"-\",IF(AND('Enrollment Form'!$O121=\"Graded\",'Enrollment Form'!$AO121<>\"\"),\"Y\",\"N\"))","v":"-"},{"$f":"IF($B114=\"N\",\"\",IF(OR('Enrollment Form'!$B121<>\"Subscriber\",'Enrollment Form'!$C121=\"ROC\"),\"-\",IF(AND('Enrollment Form'!$B121=\"Subscriber\",'Enrollment Form'!$C121=\"Enroll\",'Enrollment Form'!$AJ121<>\"\"),\"Y\",\"N\")))","v":""},{"$f":"IF($B114=\"N\",\"\",IF(OR('Enrollment Form'!$B121<>\"Subscriber\",'Enrollment Form'!$C121=\"ROC\"),\"-\",IF(AND('Enrollment Form'!$B121=\"Subscriber\",'Enrollment Form'!$C121=\"Enroll\",'Enrollment Form'!$AK121<>\"\"),\"Y\",\"N\")))","v":""},{"$f":"IF($B114=\"N\",\"\",IF(OR('Enrollment Form'!$B121<>\"Subscriber\",'Enrollment Form'!$C121=\"ROC\"),\"-\",IF(AND('Enrollment Form'!$B121=\"Subscriber\",'Enrollment Form'!$C121=\"Enroll\",'Enrollment Form'!$AL121<>\"\"),\"Y\",\"N\")))","v":""},{"$f":"IF($B114=\"N\",\"\",IF(OR('Enrollment Form'!$B121<>\"Subscriber\",'Enrollment Form'!$C121=\"ROC\"),\"-\",IF(AND('Enrollment Form'!$B121=\"Subscriber\",'Enrollment Form'!$C121=\"Enroll\",'Enrollment Form'!$AM121<>\"\"),\"Y\",\"N\")))","v":""},{"$f":"IF($B114=\"N\",\"\",IF(OR('Enrollment Form'!$B121<>\"Subscriber\",'Enrollment Form'!$C121=\"ROC\"),\"-\",IF(AND('Enrollment Form'!$B121=\"Subscriber\",'Enrollment Form'!$C121=\"Enroll\",'Enrollment Form'!$AN121<>\"\"),\"Y\",\"N\")))","v":""},{"$f":"IF($B114=\"N\",\"\",IF(OR('Enrollment Form'!$B121<>\"Subscriber\",'Enrollment Form'!$C121=\"ROC\"),\"-\",IF(AND('Enrollment Form'!$B121=\"Subscriber\",'Enrollment Form'!$C121=\"Enroll\",'Enrollment Form'!$AP121<>\"\"),\"Y\",\"N\")))","v":""},{"$f":"IF($B114=\"N\",\"\",IF($Q114=\"-\",\"-\",IF(AND($Q114=\"Y\",'Enrollment Form'!$AP121=\"No\"),\"-\",IF(AND($Q114=\"Y\",'Enrollment Form'!$AP121=\"Yes\",'Enrollment Form'!$AQ121<>\"\"),\"Y\",\"N\"))))","v":""},{"$f":"IF($B114=\"N\",\"\",IF(OR('Enrollment Form'!$B121<>\"Subscriber\",'Enrollment Form'!$C121=\"ROC\"),\"-\",IF(AND('Enrollment Form'!$B121=\"Subscriber\",'Enrollment Form'!$C121=\"Enroll\",'Enrollment Form'!$CO121<>\"\"),\"Y\",\"N\")))","v":""},{"$f":"IF($B114=\"N\",\"\",IF($S114=\"-\",\"-\",IF(AND($S114=\"Y\",'Enrollment Form'!$CO121=\"No\"),\"-\",IF(AND($S114=\"Y\",'Enrollment Form'!$CO121=\"Yes\",'Enrollment Form'!$CP121<>\"\"),\"Y\",\"N\"))))","v":""},{"$f":"IF(OR('Enrollment Form'!$AV121=\"Yes\",'Enrollment Form'!$AV121=\"\"),\"-\",IF(AND('Enrollment Form'!$AV121=\"No\",ISERROR(FIND(\"HMO\",VLOOKUP('Enrollment Form'!G121,'Enrollment Form'!H$11:J$1000,3,FALSE),1))=FALSE,COUNTA('Enrollment Form'!$AW121:$AZ121)=4),\"Y\",\"N\"))","v":"-"},{"$f":"IF($B114=\"N\",\"\",IF('Enrollment Form'!$B121=\"Subscriber\",\"-\",IF(COUNTA('Enrollment Form'!$BE121,'Enrollment Form'!$BG121)=2,\"Y\",\"N\")))","v":""},{"$f":"IF($B114=\"N\",\"\",IF(OR('Enrollment Form'!$AU121=\"\",'Enrollment Form'!$AU121=\"No\"),\"-\",IF(AND('Enrollment Form'!$AU121=\"Yes\",COUNTA('Enrollment Form'!$CK121)=1),\"Y\",\"N\")))","v":""},{"$f":"IF(OR('Enrollment Form'!$CK121=\"\",'Enrollment Form'!$CK121=\"No\"),\"-\",IF(COUNTA('Enrollment Form'!$CM121:$CN121)=2,\"Y\",\"N\"))","v":"-"},{"$f":"IF($B114=\"N\",\"\",IF(COUNTIF('Enrollment Form'!$CZ121:$DO121,\"Other\")=COUNTA('Enrollment Form'!$DF121,'Enrollment Form'!$DA121,'Enrollment Form'!$DK121,'Enrollment Form'!$DP121),\"Y\",\"N\"))","v":""},{"$f":"IF($B114=\"N\",\"\",IF(OR('Enrollment Form'!B121<>\"Subscriber\",'Enrollment Form'!C121=\"ROC\",COUNTIF('Enrollment Form'!AS121:AT121,\"Yes\")>=1),\"-\",IF(AND('Enrollment Form'!C121=\"Enroll\",COUNTIF('Enrollment Form'!AS121:AT121,\"No\")=2,'Enrollment Form'!AU121=\"\"),\"N\",\"Y\")))","v":""},{"$f":"IF(OR(B114=\"N\",'Enrollment Form'!B121<>\"Subscriber\",'Enrollment Form'!C121=\"ROC\",'Enrollment Form'!O121<>\"Multiple of Salary\"),\"-\",IF(COUNTA('Enrollment Form'!T121:U121)<2,\"N\",\"Y\"))","v":"-"},{"$f":"IF(B114=\"N\",\"\",IF(OR('Enrollment Form'!C121=\"ROC\",'Enrollment Form'!B121<>\"Subscriber\",'Enrollment Form'!O121=\"Waive\",'Enrollment Form'!O121=\"\"),\"-\",IF('Enrollment Form'!P121=\"\",\"N\",\"Y\")))","v":""},{"$f":"IF($B114=\"N\",\"\",IF(AND('Enrollment Form'!$C121=\"ROC\",'Enrollment Form'!$DS121<>\"\"),\"Y\",IF(AND('Enrollment Form'!$C121=\"ROC\",'Enrollment Form'!$DS121=\"\"),\"N\",IF(AND('Enrollment Form'!$C121=\"Enroll\",'Enrollment Form'!$B121=\"Subscriber\",'Enrollment Form'!$CQ121=\"No\",'Enrollment Form'!$DS121=\"\"),\"N\",IF(AND('Enrollment Form'!$C121=\"Enroll\",'Enrollment Form'!$B121=\"Subscriber\",'Enrollment Form'!$CQ121=\"Yes\"),\"-\",\"Y\")))))","v":""},{"$f":"IF($B114=\"N\",\"\",IF(AND('Enrollment Form'!$C121=\"ROC\",'Enrollment Form'!$DT121<>\"\"),\"Y\",IF(AND('Enrollment Form'!$C121=\"ROC\",'Enrollment Form'!$DT121=\"\"),\"N\",IF(AND('Enrollment Form'!$C121=\"Enroll\",'Enrollment Form'!$B121=\"Subscriber\",'Enrollment Form'!$CQ121=\"No\",'Enrollment Form'!$DT121=\"\"),\"N\",IF(AND('Enrollment Form'!$C121=\"Enroll\",'Enrollment Form'!$B121=\"Subscriber\",'Enrollment Form'!$CQ121=\"Yes\"),\"-\",\"Y\")))))","v":""},{"$f":"IF('Enrollment Form'!AH121=\"\",\"\",IF(ISERROR(SEARCH(\".\",'Enrollment Form'!AH121,SEARCH(\"@\",'Enrollment Form'!AH121))),\"N\",\"Y\"))","v":""},{"$f":"IF(OR($B114=\"N\",'Enrollment Form'!$G121=\"\"),\"\",IF('Enrollment Form'!$B121<>\"Subscriber\",\"-\",IF(COUNTIF('Enrollment Form'!$AS121:$AT121,\"Yes\")=2,\"N\",\"Y\")))","v":""},{"$f":"IF(OR('Enrollment Form'!$CC121=\"\",'Enrollment Form'!$CC121=\"No\"),\"-\",IF(AND('Enrollment Form'!$CC121=\"Yes\",'Enrollment Form'!$CD121=\"\"),\"N\",\"Y\"))","v":"-"},{"$f":"IF(OR('Enrollment Form'!$CE121=\"\",'Enrollment Form'!$CE121=\"No\"),\"-\",IF(AND('Enrollment Form'!$CE121=\"Yes\",'Enrollment Form'!$CF121=\"\"),\"N\",\"Y\"))","v":"-"},{"$f":"IF(OR('Enrollment Form'!$CG121=\"\",'Enrollment Form'!$CG121=\"No\"),\"-\",IF(AND('Enrollment Form'!$CG121=\"Yes\",'Enrollment Form'!$CH121=\"\"),\"N\",\"Y\"))","v":"-"},{"$f":"IF(OR('Enrollment Form'!$CG121=\"\",'Enrollment Form'!$CG121=\"No\"),\"-\",IF(AND('Enrollment Form'!$CG121=\"Yes\",'Enrollment Form'!$CI121=\"\"),\"N\",\"Y\"))","v":"-"},{"$f":"IF('Enrollment Form'!B121<>\"Subscriber\",\"-\",IF(AND('Enrollment Form'!B121=\"Subscriber\",'Enrollment Form'!C121=\"Enroll\",'Enrollment Form'!AA121=\"\"),\"N\",\"Y\"))","v":"-"},{"$f":"IF(OR('Enrollment Form'!B121=\"Subscriber\",'Enrollment Form'!B121=\"\"),\"-\",IF('Enrollment Form'!BI121=\"\",\"N\",\"Y\"))","v":"-"},{"$f":"IF('Enrollment Form'!B121<>\"Subscriber\",\"-\",IF(AND('Enrollment Form'!B121=\"Subscriber\",'Enrollment Form'!G121=\"\"),\"N\",\"Y\"))","v":"-"},{"$f":"IF('Enrollment Form'!A121=\"\",\"\",IF('Enrollment Form'!B121=\"Subscriber\",\"-\",IF(AND('Enrollment Form'!B121<>\"Subscriber\",'Enrollment Form'!G121='Enrollment Form'!H121),\"N\",\"Y\")))","v":""},0]
[122,{"$f":"IF('Enrollment Form'!$A122<>\"\",\"Y\",\"N\")","v":"N"},{"$f":"IF(AND('Enrollment Form'!$B122=\"\",'Enrollment Form'!$C122<>\"\"),\"N\",IF($B115=\"N\",\"\",\"Y\"))","v":""},{"$f":"IF(OR($B115=\"N\",'Enrollment Form'!G122=\"\"),\"\",IF('Enrollment Form'!$B122<>\"Subscriber\",\"\",IF('Enrollment Form'!$G122='Enrollment Form'!$H122,\"Y\",\"N\")))","v":""},{"$f":"IF($B115=\"N\",\"\",IF(AND(COUNTIFS('Enrollment Form'!$H$11:$H$1000,'Enrollment Form'!$H122,'Enrollment Form'!$B$11:$B$1000,'Enrollment Form'!$B122)>1,'Enrollment Form'!$H122<>\"\"),\"N\",\"Y\"))","v":""},{"$f":"IF($B115=\"N\",\"\",IF(LEN('Enrollment Form'!$Y122)=0,\"\",IF(LEN('Enrollment Form'!$Y122)<>5,\"N\",\"Y\")))","v":""},{"$f":"IF($B115=\"N\",\"\",IF(LEN('Enrollment Form'!$AD122=0),\"\",IF(LEN('Enrollment Form'!$AD122)<>5,\"N\",\"Y\")))","v":""},{"$f":"IF($B115=\"N\",\"\",IF(LEN('Enrollment Form'!$BL122=0),\"\",IF(LEN('Enrollment Form'!$BL122)<>5,\"N\",\"Y\")))","v":""},{"$f":"IF($B115=\"N\",\"\",IF(LEN('Enrollment Form'!$AE122)=0,\"\",IF(LEN('Enrollment Form'!$AE122)<>10,\"N\",\"Y\")))","v":""},{"$f":"IF($B115=\"N\",\"\",IF(LEN('Enrollment Form'!$AF122)=0,\"\",IF(LEN('Enrollment Form'!$AF122)<>10,\"N\",\"Y\")))","v":""},{"$f":"IF('Enrollment Form'!$O122<>\"Graded\",\"-\",IF(AND('Enrollment Form'!$O122=\"Graded\",'Enrollment Form'!$AO122<>\"\"),\"Y\",\"N\"))","v":"-"},{"$f":"IF($B115=\"N\",\"\",IF(OR('Enrollment Form'!$B122<>\"Subscriber\",'Enrollment Form'!$C122=\"ROC\"),\"-\",IF(AND('Enrollment Form'!$B122=\"Subscriber\",'Enrollment Form'!$C122=\"Enroll\",'Enrollment Form'!$AJ122<>\"\"),\"Y\",\"N\")))","v":""},{"$f":"IF($B115=\"N\",\"\",IF(OR('Enrollment Form'!$B122<>\"Subscriber\",'Enrollment Form'!$C122=\"ROC\"),\"-\",IF(AND('Enrollment Form'!$B122=\"Subscriber\",'Enrollment Form'!$C122=\"Enroll\",'Enrollment Form'!$AK122<>\"\"),\"Y\",\"N\")))","v":""},{"$f":"IF($B115=\"N\",\"\",IF(OR('Enrollment Form'!$B122<>\"Subscriber\",'Enrollment Form'!$C122=\"ROC\"),\"-\",IF(AND('Enrollment Form'!$B122=\"Subscriber\",'Enrollment Form'!$C122=\"Enroll\",'Enrollment Form'!$AL122<>\"\"),\"Y\",\"N\")))","v":""},{"$f":"IF($B115=\"N\",\"\",IF(OR('Enrollment Form'!$B122<>\"Subscriber\",'Enrollment Form'!$C122=\"ROC\"),\"-\",IF(AND('Enrollment Form'!$B122=\"Subscriber\",'Enrollment Form'!$C122=\"Enroll\",'Enrollment Form'!$AM122<>\"\"),\"Y\",\"N\")))","v":""},{"$f":"IF($B115=\"N\",\"\",IF(OR('Enrollment Form'!$B122<>\"Subscriber\",'Enrollment Form'!$C122=\"ROC\"),\"-\",IF(AND('Enrollment Form'!$B122=\"Subscriber\",'Enrollment Form'!$C122=\"Enroll\",'Enrollment Form'!$AN122<>\"\"),\"Y\",\"N\")))","v":""},{"$f":"IF($B115=\"N\",\"\",IF(OR('Enrollment Form'!$B122<>\"Subscriber\",'Enrollment Form'!$C122=\"ROC\"),\"-\",IF(AND('Enrollment Form'!$B122=\"Subscriber\",'Enrollment Form'!$C122=\"Enroll\",'Enrollment Form'!$AP122<>\"\"),\"Y\",\"N\")))","v":""},{"$f":"IF($B115=\"N\",\"\",IF($Q115=\"-\",\"-\",IF(AND($Q115=\"Y\",'Enrollment Form'!$AP122=\"No\"),\"-\",IF(AND($Q115=\"Y\",'Enrollment Form'!$AP122=\"Yes\",'Enrollment Form'!$AQ122<>\"\"),\"Y\",\"N\"))))","v":""},{"$f":"IF($B115=\"N\",\"\",IF(OR('Enrollment Form'!$B122<>\"Subscriber\",'Enrollment Form'!$C122=\"ROC\"),\"-\",IF(AND('Enrollment Form'!$B122=\"Subscriber\",'Enrollment Form'!$C122=\"Enroll\",'Enrollment Form'!$CO122<>\"\"),\"Y\",\"N\")))","v":""},{"$f":"IF($B115=\"N\",\"\",IF($S115=\"-\",\"-\",IF(AND($S115=\"Y\",'Enrollment Form'!$CO122=\"No\"),\"-\",IF(AND($S115=\"Y\",'Enrollment Form'!$CO122=\"Yes\",'Enrollment Form'!$CP122<>\"\"),\"Y\",\"N\"))))","v":""},{"$f":"IF(OR('Enrollment Form'!$AV122=\"Yes\",'Enrollment Form'!$AV122=\"\"),\"-\",IF(AND('Enrollment Form'!$AV122=\"No\",ISERROR(FIND(\"HMO\",VLOOKUP('Enrollment Form'!G122,'Enrollment Form'!H$11:J$1000,3,FALSE),1))=FALSE,COUNTA('Enrollment Form'!$AW122:$AZ122)=4),\"Y\",\"N\"))","v":"-"},{"$f":"IF($B115=\"N\",\"\",IF('Enrollment Form'!$B122=\"Subscriber\",\"-\",IF(COUNTA('Enrollment Form'!$BE122,'Enrollment Form'!$BG122)=2,\"Y\",\"N\")))","v":""},{"$f":"IF($B115=\"N\",\"\",IF(OR('Enrollment Form'!$AU122=\"\",'Enrollment Form'!$AU122=\"No\"),\"-\",IF(AND('Enrollment Form'!$AU122=\"Yes\",COUNTA('Enrollment Form'!$CK122)=1),\"Y\",\"N\")))","v":""},{"$f":"IF(OR('Enrollment Form'!$CK122=\"\",'Enrollment Form'!$CK122=\"No\"),\"-\",IF(COUNTA('Enrollment Form'!$CM122:$CN122)=2,\"Y\",\"N\"))","v":"-"},{"$f":"IF($B115=\"N\",\"\",IF(COUNTIF('Enrollment Form'!$CZ122:$DO122,\"Other\")=COUNTA('Enrollment Form'!$DF122,'Enrollment Form'!$DA122,'Enrollment Form'!$DK122,'Enrollment Form'!$DP122),\"Y\",\"N\"))","v":""},{"$f":"IF($B115=\"N\",\"\",IF(OR('Enrollment Form'!B122<>\"Subscriber\",'Enrollment Form'!C122=\"ROC\",COUNTIF('Enrollment Form'!AS122:AT122,\"Yes\")>=1),\"-\",IF(AND('Enrollment Form'!C122=\"Enroll\",COUNTIF('Enrollment Form'!AS122:AT122,\"No\")=2,'Enrollment Form'!AU122=\"\"),\"N\",\"Y\")))","v":""},{"$f":"IF(OR(B115=\"N\",'Enrollment Form'!B122<>\"Subscriber\",'Enrollment Form'!C122=\"ROC\",'Enrollment Form'!O122<>\"Multiple of Salary\"),\"-\",IF(COUNTA('Enrollment Form'!T122:U122)<2,\"N\",\"Y\"))","v":"-"},{"$f":"IF(B115=\"N\",\"\",IF(OR('Enrollment Form'!C122=\"ROC\",'Enrollment Form'!B122<>\"Subscriber\",'Enrollment Form'!O122=\"Waive\",'Enrollment Form'!O122=\"\"),\"-\",IF('Enrollment Form'!P122=\"\",\"N\",\"Y\")))","v":""},{"$f":"IF($B115=\"N\",\"\",IF(AND('Enrollment Form'!$C122=\"ROC\",'Enrollment Form'!$DS122<>\"\"),\"Y\",IF(AND('Enrollment Form'!$C122=\"ROC\",'Enrollment Form'!$DS122=\"\"),\"N\",IF(AND('Enrollment Form'!$C122=\"Enroll\",'Enrollment Form'!$B122=\"Subscriber\",'Enrollment Form'!$CQ122=\"No\",'Enrollment Form'!$DS122=\"\"),\"N\",IF(AND('Enrollment Form'!$C122=\"Enroll\",'Enrollment Form'!$B122=\"Subscriber\",'Enrollment Form'!$CQ122=\"Yes\"),\"-\",\"Y\")))))","v":""},{"$f":"IF($B115=\"N\",\"\",IF(AND('Enrollment Form'!$C122=\"ROC\",'Enrollment Form'!$DT122<>\"\"),\"Y\",IF(AND('Enrollment Form'!$C122=\"ROC\",'Enrollment Form'!$DT122=\"\"),\"N\",IF(AND('Enrollment Form'!$C122=\"Enroll\",'Enrollment Form'!$B122=\"Subscriber\",'Enrollment Form'!$CQ122=\"No\",'Enrollment Form'!$DT122=\"\"),\"N\",IF(AND('Enrollment Form'!$C122=\"Enroll\",'Enrollment Form'!$B122=\"Subscriber\",'Enrollment Form'!$CQ122=\"Yes\"),\"-\",\"Y\")))))","v":""},{"$f":"IF('Enrollment Form'!AH122=\"\",\"\",IF(ISERROR(SEARCH(\".\",'Enrollment Form'!AH122,SEARCH(\"@\",'Enrollment Form'!AH122))),\"N\",\"Y\"))","v":""},{"$f":"IF(OR($B115=\"N\",'Enrollment Form'!$G122=\"\"),\"\",IF('Enrollment Form'!$B122<>\"Subscriber\",\"-\",IF(COUNTIF('Enrollment Form'!$AS122:$AT122,\"Yes\")=2,\"N\",\"Y\")))","v":""},{"$f":"IF(OR('Enrollment Form'!$CC122=\"\",'Enrollment Form'!$CC122=\"No\"),\"-\",IF(AND('Enrollment Form'!$CC122=\"Yes\",'Enrollment Form'!$CD122=\"\"),\"N\",\"Y\"))","v":"-"},{"$f":"IF(OR('Enrollment Form'!$CE122=\"\",'Enrollment Form'!$CE122=\"No\"),\"-\",IF(AND('Enrollment Form'!$CE122=\"Yes\",'Enrollment Form'!$CF122=\"\"),\"N\",\"Y\"))","v":"-"},{"$f":"IF(OR('Enrollment Form'!$CG122=\"\",'Enrollment Form'!$CG122=\"No\"),\"-\",IF(AND('Enrollment Form'!$CG122=\"Yes\",'Enrollment Form'!$CH122=\"\"),\"N\",\"Y\"))","v":"-"},{"$f":"IF(OR('Enrollment Form'!$CG122=\"\",'Enrollment Form'!$CG122=\"No\"),\"-\",IF(AND('Enrollment Form'!$CG122=\"Yes\",'Enrollment Form'!$CI122=\"\"),\"N\",\"Y\"))","v":"-"},{"$f":"IF('Enrollment Form'!B122<>\"Subscriber\",\"-\",IF(AND('Enrollment Form'!B122=\"Subscriber\",'Enrollment Form'!C122=\"Enroll\",'Enrollment Form'!AA122=\"\"),\"N\",\"Y\"))","v":"-"},{"$f":"IF(OR('Enrollment Form'!B122=\"Subscriber\",'Enrollment Form'!B122=\"\"),\"-\",IF('Enrollment Form'!BI122=\"\",\"N\",\"Y\"))","v":"-"},{"$f":"IF('Enrollment Form'!B122<>\"Subscriber\",\"-\",IF(AND('Enrollment Form'!B122=\"Subscriber\",'Enrollment Form'!G122=\"\"),\"N\",\"Y\"))","v":"-"},{"$f":"IF('Enrollment Form'!A122=\"\",\"\",IF('Enrollment Form'!B122=\"Subscriber\",\"-\",IF(AND('Enrollment Form'!B122<>\"Subscriber\",'Enrollment Form'!G122='Enrollment Form'!H122),\"N\",\"Y\")))","v":""},0]
[123,{"$f":"IF('Enrollment Form'!$A123<>\"\",\"Y\",\"N\")","v":"N"},{"$f":"IF(AND('Enrollment Form'!$B123=\"\",'Enrollment Form'!$C123<>\"\"),\"N\",IF($B116=\"N\",\"\",\"Y\"))","v":""},{"$f":"IF(OR($B116=\"N\",'Enrollment Form'!G123=\"\"),\"\",IF('Enrollment Form'!$B123<>\"Subscriber\",\"\",IF('Enrollment Form'!$G123='Enrollment Form'!$H123,\"Y\",\"N\")))","v":""},{"$f":"IF($B116=\"N\",\"\",IF(AND(COUNTIFS('Enrollment Form'!$H$11:$H$1000,'Enrollment Form'!$H123,'Enrollment Form'!$B$11:$B$1000,'Enrollment Form'!$B123)>1,'Enrollment Form'!$H123<>\"\"),\"N\",\"Y\"))","v":""},{"$f":"IF($B116=\"N\",\"\",IF(LEN('Enrollment Form'!$Y123)=0,\"\",IF(LEN('Enrollment Form'!$Y123)<>5,\"N\",\"Y\")))","v":""},{"$f":"IF($B116=\"N\",\"\",IF(LEN('Enrollment Form'!$AD123=0),\"\",IF(LEN('Enrollment Form'!$AD123)<>5,\"N\",\"Y\")))","v":""},{"$f":"IF($B116=\"N\",\"\",IF(LEN('Enrollment Form'!$BL123=0),\"\",IF(LEN('Enrollment Form'!$BL123)<>5,\"N\",\"Y\")))","v":""},{"$f":"IF($B116=\"N\",\"\",IF(LEN('Enrollment Form'!$AE123)=0,\"\",IF(LEN('Enrollment Form'!$AE123)<>10,\"N\",\"Y\")))","v":""},{"$f":"IF($B116=\"N\",\"\",IF(LEN('Enrollment Form'!$AF123)=0,\"\",IF(LEN('Enrollment Form'!$AF123)<>10,\"N\",\"Y\")))","v":""},{"$f":"IF('Enrollment Form'!$O123<>\"Graded\",\"-\",IF(AND('Enrollment Form'!$O123=\"Graded\",'Enrollment Form'!$AO123<>\"\"),\"Y\",\"N\"))","v":"-"},{"$f":"IF($B116=\"N\",\"\",IF(OR('Enrollment Form'!$B123<>\"Subscriber\",'Enrollment Form'!$C123=\"ROC\"),\"-\",IF(AND('Enrollment Form'!$B123=\"Subscriber\",'Enrollment Form'!$C123=\"Enroll\",'Enrollment Form'!$AJ123<>\"\"),\"Y\",\"N\")))","v":""},{"$f":"IF($B116=\"N\",\"\",IF(OR('Enrollment Form'!$B123<>\"Subscriber\",'Enrollment Form'!$C123=\"ROC\"),\"-\",IF(AND('Enrollment Form'!$B123=\"Subscriber\",'Enrollment Form'!$C123=\"Enroll\",'Enrollment Form'!$AK123<>\"\"),\"Y\",\"N\")))","v":""},{"$f":"IF($B116=\"N\",\"\",IF(OR('Enrollment Form'!$B123<>\"Subscriber\",'Enrollment Form'!$C123=\"ROC\"),\"-\",IF(AND('Enrollment Form'!$B123=\"Subscriber\",'Enrollment Form'!$C123=\"Enroll\",'Enrollment Form'!$AL123<>\"\"),\"Y\",\"N\")))","v":""},{"$f":"IF($B116=\"N\",\"\",IF(OR('Enrollment Form'!$B123<>\"Subscriber\",'Enrollment Form'!$C123=\"ROC\"),\"-\",IF(AND('Enrollment Form'!$B123=\"Subscriber\",'Enrollment Form'!$C123=\"Enroll\",'Enrollment Form'!$AM123<>\"\"),\"Y\",\"N\")))","v":""},{"$f":"IF($B116=\"N\",\"\",IF(OR('Enrollment Form'!$B123<>\"Subscriber\",'Enrollment Form'!$C123=\"ROC\"),\"-\",IF(AND('Enrollment Form'!$B123=\"Subscriber\",'Enrollment Form'!$C123=\"Enroll\",'Enrollment Form'!$AN123<>\"\"),\"Y\",\"N\")))","v":""},{"$f":"IF($B116=\"N\",\"\",IF(OR('Enrollment Form'!$B123<>\"Subscriber\",'Enrollment Form'!$C123=\"ROC\"),\"-\",IF(AND('Enrollment Form'!$B123=\"Subscriber\",'Enrollment Form'!$C123=\"Enroll\",'Enrollment Form'!$AP123<>\"\"),\"Y\",\"N\")))","v":""},{"$f":"IF($B116=\"N\",\"\",IF($Q116=\"-\",\"-\",IF(AND($Q116=\"Y\",'Enrollment Form'!$AP123=\"No\"),\"-\",IF(AND($Q116=\"Y\",'Enrollment Form'!$AP123=\"Yes\",'Enrollment Form'!$AQ123<>\"\"),\"Y\",\"N\"))))","v":""},{"$f":"IF($B116=\"N\",\"\",IF(OR('Enrollment Form'!$B123<>\"Subscriber\",'Enrollment Form'!$C123=\"ROC\"),\"-\",IF(AND('Enrollment Form'!$B123=\"Subscriber\",'Enrollment Form'!$C123=\"Enroll\",'Enrollment Form'!$CO123<>\"\"),\"Y\",\"N\")))","v":""},{"$f":"IF($B116=\"N\",\"\",IF($S116=\"-\",\"-\",IF(AND($S116=\"Y\",'Enrollment Form'!$CO123=\"No\"),\"-\",IF(AND($S116=\"Y\",'Enrollment Form'!$CO123=\"Yes\",'Enrollment Form'!$CP123<>\"\"),\"Y\",\"N\"))))","v":""},{"$f":"IF(OR('Enrollment Form'!$AV123=\"Yes\",'Enrollment Form'!$AV123=\"\"),\"-\",IF(AND('Enrollment Form'!$AV123=\"No\",ISERROR(FIND(\"HMO\",VLOOKUP('Enrollment Form'!G123,'Enrollment Form'!H$11:J$1000,3,FALSE),1))=FALSE,COUNTA('Enrollment Form'!$AW123:$AZ123)=4),\"Y\",\"N\"))","v":"-"},{"$f":"IF($B116=\"N\",\"\",IF('Enrollment Form'!$B123=\"Subscriber\",\"-\",IF(COUNTA('Enrollment Form'!$BE123,'Enrollment Form'!$BG123)=2,\"Y\",\"N\")))","v":""},{"$f":"IF($B116=\"N\",\"\",IF(OR('Enrollment Form'!$AU123=\"\",'Enrollment Form'!$AU123=\"No\"),\"-\",IF(AND('Enrollment Form'!$AU123=\"Yes\",COUNTA('Enrollment Form'!$CK123)=1),\"Y\",\"N\")))","v":""},{"$f":"IF(OR('Enrollment Form'!$CK123=\"\",'Enrollment Form'!$CK123=\"No\"),\"-\",IF(COUNTA('Enrollment Form'!$CM123:$CN123)=2,\"Y\",\"N\"))","v":"-"},{"$f":"IF($B116=\"N\",\"\",IF(COUNTIF('Enrollment Form'!$CZ123:$DO123,\"Other\")=COUNTA('Enrollment Form'!$DF123,'Enrollment Form'!$DA123,'Enrollment Form'!$DK123,'Enrollment Form'!$DP123),\"Y\",\"N\"))","v":""},{"$f":"IF($B116=\"N\",\"\",IF(OR('Enrollment Form'!B123<>\"Subscriber\",'Enrollment Form'!C123=\"ROC\",COUNTIF('Enrollment Form'!AS123:AT123,\"Yes\")>=1),\"-\",IF(AND('Enrollment Form'!C123=\"Enroll\",COUNTIF('Enrollment Form'!AS123:AT123,\"No\")=2,'Enrollment Form'!AU123=\"\"),\"N\",\"Y\")))","v":""},{"$f":"IF(OR(B116=\"N\",'Enrollment Form'!B123<>\"Subscriber\",'Enrollment Form'!C123=\"ROC\",'Enrollment Form'!O123<>\"Multiple of Salary\"),\"-\",IF(COUNTA('Enrollment Form'!T123:U123)<2,\"N\",\"Y\"))","v":"-"},{"$f":"IF(B116=\"N\",\"\",IF(OR('Enrollment Form'!C123=\"ROC\",'Enrollment Form'!B123<>\"Subscriber\",'Enrollment Form'!O123=\"Waive\",'Enrollment Form'!O123=\"\"),\"-\",IF('Enrollment Form'!P123=\"\",\"N\",\"Y\")))","v":""},{"$f":"IF($B116=\"N\",\"\",IF(AND('Enrollment Form'!$C123=\"ROC\",'Enrollment Form'!$DS123<>\"\"),\"Y\",IF(AND('Enrollment Form'!$C123=\"ROC\",'Enrollment Form'!$DS123=\"\"),\"N\",IF(AND('Enrollment Form'!$C123=\"Enroll\",'Enrollment Form'!$B123=\"Subscriber\",'Enrollment Form'!$CQ123=\"No\",'Enrollment Form'!$DS123=\"\"),\"N\",IF(AND('Enrollment Form'!$C123=\"Enroll\",'Enrollment Form'!$B123=\"Subscriber\",'Enrollment Form'!$CQ123=\"Yes\"),\"-\",\"Y\")))))","v":""},{"$f":"IF($B116=\"N\",\"\",IF(AND('Enrollment Form'!$C123=\"ROC\",'Enrollment Form'!$DT123<>\"\"),\"Y\",IF(AND('Enrollment Form'!$C123=\"ROC\",'Enrollment Form'!$DT123=\"\"),\"N\",IF(AND('Enrollment Form'!$C123=\"Enroll\",'Enrollment Form'!$B123=\"Subscriber\",'Enrollment Form'!$CQ123=\"No\",'Enrollment Form'!$DT123=\"\"),\"N\",IF(AND('Enrollment Form'!$C123=\"Enroll\",'Enrollment Form'!$B123=\"Subscriber\",'Enrollment Form'!$CQ123=\"Yes\"),\"-\",\"Y\")))))","v":""},{"$f":"IF('Enrollment Form'!AH123=\"\",\"\",IF(ISERROR(SEARCH(\".\",'Enrollment Form'!AH123,SEARCH(\"@\",'Enrollment Form'!AH123))),\"N\",\"Y\"))","v":""},{"$f":"IF(OR($B116=\"N\",'Enrollment Form'!$G123=\"\"),\"\",IF('Enrollment Form'!$B123<>\"Subscriber\",\"-\",IF(COUNTIF('Enrollment Form'!$AS123:$AT123,\"Yes\")=2,\"N\",\"Y\")))","v":""},{"$f":"IF(OR('Enrollment Form'!$CC123=\"\",'Enrollment Form'!$CC123=\"No\"),\"-\",IF(AND('Enrollment Form'!$CC123=\"Yes\",'Enrollment Form'!$CD123=\"\"),\"N\",\"Y\"))","v":"-"},{"$f":"IF(OR('Enrollment Form'!$CE123=\"\",'Enrollment Form'!$CE123=\"No\"),\"-\",IF(AND('Enrollment Form'!$CE123=\"Yes\",'Enrollment Form'!$CF123=\"\"),\"N\",\"Y\"))","v":"-"},{"$f":"IF(OR('Enrollment Form'!$CG123=\"\",'Enrollment Form'!$CG123=\"No\"),\"-\",IF(AND('Enrollment Form'!$CG123=\"Yes\",'Enrollment Form'!$CH123=\"\"),\"N\",\"Y\"))","v":"-"},{"$f":"IF(OR('Enrollment Form'!$CG123=\"\",'Enrollment Form'!$CG123=\"No\"),\"-\",IF(AND('Enrollment Form'!$CG123=\"Yes\",'Enrollment Form'!$CI123=\"\"),\"N\",\"Y\"))","v":"-"},{"$f":"IF('Enrollment Form'!B123<>\"Subscriber\",\"-\",IF(AND('Enrollment Form'!B123=\"Subscriber\",'Enrollment Form'!C123=\"Enroll\",'Enrollment Form'!AA123=\"\"),\"N\",\"Y\"))","v":"-"},{"$f":"IF(OR('Enrollment Form'!B123=\"Subscriber\",'Enrollment Form'!B123=\"\"),\"-\",IF('Enrollment Form'!BI123=\"\",\"N\",\"Y\"))","v":"-"},{"$f":"IF('Enrollment Form'!B123<>\"Subscriber\",\"-\",IF(AND('Enrollment Form'!B123=\"Subscriber\",'Enrollment Form'!G123=\"\"),\"N\",\"Y\"))","v":"-"},{"$f":"IF('Enrollment Form'!A123=\"\",\"\",IF('Enrollment Form'!B123=\"Subscriber\",\"-\",IF(AND('Enrollment Form'!B123<>\"Subscriber\",'Enrollment Form'!G123='Enrollment Form'!H123),\"N\",\"Y\")))","v":""},0]
[124,{"$f":"IF('Enrollment Form'!$A124<>\"\",\"Y\",\"N\")","v":"N"},{"$f":"IF(AND('Enrollment Form'!$B124=\"\",'Enrollment Form'!$C124<>\"\"),\"N\",IF($B117=\"N\",\"\",\"Y\"))","v":""},{"$f":"IF(OR($B117=\"N\",'Enrollment Form'!G124=\"\"),\"\",IF('Enrollment Form'!$B124<>\"Subscriber\",\"\",IF('Enrollment Form'!$G124='Enrollment Form'!$H124,\"Y\",\"N\")))","v":""},{"$f":"IF($B117=\"N\",\"\",IF(AND(COUNTIFS('Enrollment Form'!$H$11:$H$1000,'Enrollment Form'!$H124,'Enrollment Form'!$B$11:$B$1000,'Enrollment Form'!$B124)>1,'Enrollment Form'!$H124<>\"\"),\"N\",\"Y\"))","v":""},{"$f":"IF($B117=\"N\",\"\",IF(LEN('Enrollment Form'!$Y124)=0,\"\",IF(LEN('Enrollment Form'!$Y124)<>5,\"N\",\"Y\")))","v":""},{"$f":"IF($B117=\"N\",\"\",IF(LEN('Enrollment Form'!$AD124=0),\"\",IF(LEN('Enrollment Form'!$AD124)<>5,\"N\",\"Y\")))","v":""},{"$f":"IF($B117=\"N\",\"\",IF(LEN('Enrollment Form'!$BL124=0),\"\",IF(LEN('Enrollment Form'!$BL124)<>5,\"N\",\"Y\")))","v":""},{"$f":"IF($B117=\"N\",\"\",IF(LEN('Enrollment Form'!$AE124)=0,\"\",IF(LEN('Enrollment Form'!$AE124)<>10,\"N\",\"Y\")))","v":""},{"$f":"IF($B117=\"N\",\"\",IF(LEN('Enrollment Form'!$AF124)=0,\"\",IF(LEN('Enrollment Form'!$AF124)<>10,\"N\",\"Y\")))","v":""},{"$f":"IF('Enrollment Form'!$O124<>\"Graded\",\"-\",IF(AND('Enrollment Form'!$O124=\"Graded\",'Enrollment Form'!$AO124<>\"\"),\"Y\",\"N\"))","v":"-"},{"$f":"IF($B117=\"N\",\"\",IF(OR('Enrollment Form'!$B124<>\"Subscriber\",'Enrollment Form'!$C124=\"ROC\"),\"-\",IF(AND('Enrollment Form'!$B124=\"Subscriber\",'Enrollment Form'!$C124=\"Enroll\",'Enrollment Form'!$AJ124<>\"\"),\"Y\",\"N\")))","v":""},{"$f":"IF($B117=\"N\",\"\",IF(OR('Enrollment Form'!$B124<>\"Subscriber\",'Enrollment Form'!$C124=\"ROC\"),\"-\",IF(AND('Enrollment Form'!$B124=\"Subscriber\",'Enrollment Form'!$C124=\"Enroll\",'Enrollment Form'!$AK124<>\"\"),\"Y\",\"N\")))","v":""},{"$f":"IF($B117=\"N\",\"\",IF(OR('Enrollment Form'!$B124<>\"Subscriber\",'Enrollment Form'!$C124=\"ROC\"),\"-\",IF(AND('Enrollment Form'!$B124=\"Subscriber\",'Enrollment Form'!$C124=\"Enroll\",'Enrollment Form'!$AL124<>\"\"),\"Y\",\"N\")))","v":""},{"$f":"IF($B117=\"N\",\"\",IF(OR('Enrollment Form'!$B124<>\"Subscriber\",'Enrollment Form'!$C124=\"ROC\"),\"-\",IF(AND('Enrollment Form'!$B124=\"Subscriber\",'Enrollment Form'!$C124=\"Enroll\",'Enrollment Form'!$AM124<>\"\"),\"Y\",\"N\")))","v":""},{"$f":"IF($B117=\"N\",\"\",IF(OR('Enrollment Form'!$B124<>\"Subscriber\",'Enrollment Form'!$C124=\"ROC\"),\"-\",IF(AND('Enrollment Form'!$B124=\"Subscriber\",'Enrollment Form'!$C124=\"Enroll\",'Enrollment Form'!$AN124<>\"\"),\"Y\",\"N\")))","v":""},{"$f":"IF($B117=\"N\",\"\",IF(OR('Enrollment Form'!$B124<>\"Subscriber\",'Enrollment Form'!$C124=\"ROC\"),\"-\",IF(AND('Enrollment Form'!$B124=\"Subscriber\",'Enrollment Form'!$C124=\"Enroll\",'Enrollment Form'!$AP124<>\"\"),\"Y\",\"N\")))","v":""},{"$f":"IF($B117=\"N\",\"\",IF($Q117=\"-\",\"-\",IF(AND($Q117=\"Y\",'Enrollment Form'!$AP124=\"No\"),\"-\",IF(AND($Q117=\"Y\",'Enrollment Form'!$AP124=\"Yes\",'Enrollment Form'!$AQ124<>\"\"),\"Y\",\"N\"))))","v":""},{"$f":"IF($B117=\"N\",\"\",IF(OR('Enrollment Form'!$B124<>\"Subscriber\",'Enrollment Form'!$C124=\"ROC\"),\"-\",IF(AND('Enrollment Form'!$B124=\"Subscriber\",'Enrollment Form'!$C124=\"Enroll\",'Enrollment Form'!$CO124<>\"\"),\"Y\",\"N\")))","v":""},{"$f":"IF($B117=\"N\",\"\",IF($S117=\"-\",\"-\",IF(AND($S117=\"Y\",'Enrollment Form'!$CO124=\"No\"),\"-\",IF(AND($S117=\"Y\",'Enrollment Form'!$CO124=\"Yes\",'Enrollment Form'!$CP124<>\"\"),\"Y\",\"N\"))))","v":""},{"$f":"IF(OR('Enrollment Form'!$AV124=\"Yes\",'Enrollment Form'!$AV124=\"\"),\"-\",IF(AND('Enrollment Form'!$AV124=\"No\",ISERROR(FIND(\"HMO\",VLOOKUP('Enrollment Form'!G124,'Enrollment Form'!H$11:J$1000,3,FALSE),1))=FALSE,COUNTA('Enrollment Form'!$AW124:$AZ124)=4),\"Y\",\"N\"))","v":"-"},{"$f":"IF($B117=\"N\",\"\",IF('Enrollment Form'!$B124=\"Subscriber\",\"-\",IF(COUNTA('Enrollment Form'!$BE124,'Enrollment Form'!$BG124)=2,\"Y\",\"N\")))","v":""},{"$f":"IF($B117=\"N\",\"\",IF(OR('Enrollment Form'!$AU124=\"\",'Enrollment Form'!$AU124=\"No\"),\"-\",IF(AND('Enrollment Form'!$AU124=\"Yes\",COUNTA('Enrollment Form'!$CK124)=1),\"Y\",\"N\")))","v":""},{"$f":"IF(OR('Enrollment Form'!$CK124=\"\",'Enrollment Form'!$CK124=\"No\"),\"-\",IF(COUNTA('Enrollment Form'!$CM124:$CN124)=2,\"Y\",\"N\"))","v":"-"},{"$f":"IF($B117=\"N\",\"\",IF(COUNTIF('Enrollment Form'!$CZ124:$DO124,\"Other\")=COUNTA('Enrollment Form'!$DF124,'Enrollment Form'!$DA124,'Enrollment Form'!$DK124,'Enrollment Form'!$DP124),\"Y\",\"N\"))","v":""},{"$f":"IF($B117=\"N\",\"\",IF(OR('Enrollment Form'!B124<>\"Subscriber\",'Enrollment Form'!C124=\"ROC\",COUNTIF('Enrollment Form'!AS124:AT124,\"Yes\")>=1),\"-\",IF(AND('Enrollment Form'!C124=\"Enroll\",COUNTIF('Enrollment Form'!AS124:AT124,\"No\")=2,'Enrollment Form'!AU124=\"\"),\"N\",\"Y\")))","v":""},{"$f":"IF(OR(B117=\"N\",'Enrollment Form'!B124<>\"Subscriber\",'Enrollment Form'!C124=\"ROC\",'Enrollment Form'!O124<>\"Multiple of Salary\"),\"-\",IF(COUNTA('Enrollment Form'!T124:U124)<2,\"N\",\"Y\"))","v":"-"},{"$f":"IF(B117=\"N\",\"\",IF(OR('Enrollment Form'!C124=\"ROC\",'Enrollment Form'!B124<>\"Subscriber\",'Enrollment Form'!O124=\"Waive\",'Enrollment Form'!O124=\"\"),\"-\",IF('Enrollment Form'!P124=\"\",\"N\",\"Y\")))","v":""},{"$f":"IF($B117=\"N\",\"\",IF(AND('Enrollment Form'!$C124=\"ROC\",'Enrollment Form'!$DS124<>\"\"),\"Y\",IF(AND('Enrollment Form'!$C124=\"ROC\",'Enrollment Form'!$DS124=\"\"),\"N\",IF(AND('Enrollment Form'!$C124=\"Enroll\",'Enrollment Form'!$B124=\"Subscriber\",'Enrollment Form'!$CQ124=\"No\",'Enrollment Form'!$DS124=\"\"),\"N\",IF(AND('Enrollment Form'!$C124=\"Enroll\",'Enrollment Form'!$B124=\"Subscriber\",'Enrollment Form'!$CQ124=\"Yes\"),\"-\",\"Y\")))))","v":""},{"$f":"IF($B117=\"N\",\"\",IF(AND('Enrollment Form'!$C124=\"ROC\",'Enrollment Form'!$DT124<>\"\"),\"Y\",IF(AND('Enrollment Form'!$C124=\"ROC\",'Enrollment Form'!$DT124=\"\"),\"N\",IF(AND('Enrollment Form'!$C124=\"Enroll\",'Enrollment Form'!$B124=\"Subscriber\",'Enrollment Form'!$CQ124=\"No\",'Enrollment Form'!$DT124=\"\"),\"N\",IF(AND('Enrollment Form'!$C124=\"Enroll\",'Enrollment Form'!$B124=\"Subscriber\",'Enrollment Form'!$CQ124=\"Yes\"),\"-\",\"Y\")))))","v":""},{"$f":"IF('Enrollment Form'!AH124=\"\",\"\",IF(ISERROR(SEARCH(\".\",'Enrollment Form'!AH124,SEARCH(\"@\",'Enrollment Form'!AH124))),\"N\",\"Y\"))","v":""},{"$f":"IF(OR($B117=\"N\",'Enrollment Form'!$G124=\"\"),\"\",IF('Enrollment Form'!$B124<>\"Subscriber\",\"-\",IF(COUNTIF('Enrollment Form'!$AS124:$AT124,\"Yes\")=2,\"N\",\"Y\")))","v":""},{"$f":"IF(OR('Enrollment Form'!$CC124=\"\",'Enrollment Form'!$CC124=\"No\"),\"-\",IF(AND('Enrollment Form'!$CC124=\"Yes\",'Enrollment Form'!$CD124=\"\"),\"N\",\"Y\"))","v":"-"},{"$f":"IF(OR('Enrollment Form'!$CE124=\"\",'Enrollment Form'!$CE124=\"No\"),\"-\",IF(AND('Enrollment Form'!$CE124=\"Yes\",'Enrollment Form'!$CF124=\"\"),\"N\",\"Y\"))","v":"-"},{"$f":"IF(OR('Enrollment Form'!$CG124=\"\",'Enrollment Form'!$CG124=\"No\"),\"-\",IF(AND('Enrollment Form'!$CG124=\"Yes\",'Enrollment Form'!$CH124=\"\"),\"N\",\"Y\"))","v":"-"},{"$f":"IF(OR('Enrollment Form'!$CG124=\"\",'Enrollment Form'!$CG124=\"No\"),\"-\",IF(AND('Enrollment Form'!$CG124=\"Yes\",'Enrollment Form'!$CI124=\"\"),\"N\",\"Y\"))","v":"-"},{"$f":"IF('Enrollment Form'!B124<>\"Subscriber\",\"-\",IF(AND('Enrollment Form'!B124=\"Subscriber\",'Enrollment Form'!C124=\"Enroll\",'Enrollment Form'!AA124=\"\"),\"N\",\"Y\"))","v":"-"},{"$f":"IF(OR('Enrollment Form'!B124=\"Subscriber\",'Enrollment Form'!B124=\"\"),\"-\",IF('Enrollment Form'!BI124=\"\",\"N\",\"Y\"))","v":"-"},{"$f":"IF('Enrollment Form'!B124<>\"Subscriber\",\"-\",IF(AND('Enrollment Form'!B124=\"Subscriber\",'Enrollment Form'!G124=\"\"),\"N\",\"Y\"))","v":"-"},{"$f":"IF('Enrollment Form'!A124=\"\",\"\",IF('Enrollment Form'!B124=\"Subscriber\",\"-\",IF(AND('Enrollment Form'!B124<>\"Subscriber\",'Enrollment Form'!G124='Enrollment Form'!H124),\"N\",\"Y\")))","v":""},0]
[125,{"$f":"IF('Enrollment Form'!$A125<>\"\",\"Y\",\"N\")","v":"N"},{"$f":"IF(AND('Enrollment Form'!$B125=\"\",'Enrollment Form'!$C125<>\"\"),\"N\",IF($B118=\"N\",\"\",\"Y\"))","v":""},{"$f":"IF(OR($B118=\"N\",'Enrollment Form'!G125=\"\"),\"\",IF('Enrollment Form'!$B125<>\"Subscriber\",\"\",IF('Enrollment Form'!$G125='Enrollment Form'!$H125,\"Y\",\"N\")))","v":""},{"$f":"IF($B118=\"N\",\"\",IF(AND(COUNTIFS('Enrollment Form'!$H$11:$H$1000,'Enrollment Form'!$H125,'Enrollment Form'!$B$11:$B$1000,'Enrollment Form'!$B125)>1,'Enrollment Form'!$H125<>\"\"),\"N\",\"Y\"))","v":""},{"$f":"IF($B118=\"N\",\"\",IF(LEN('Enrollment Form'!$Y125)=0,\"\",IF(LEN('Enrollment Form'!$Y125)<>5,\"N\",\"Y\")))","v":""},{"$f":"IF($B118=\"N\",\"\",IF(LEN('Enrollment Form'!$AD125=0),\"\",IF(LEN('Enrollment Form'!$AD125)<>5,\"N\",\"Y\")))","v":""},{"$f":"IF($B118=\"N\",\"\",IF(LEN('Enrollment Form'!$BL125=0),\"\",IF(LEN('Enrollment Form'!$BL125)<>5,\"N\",\"Y\")))","v":""},{"$f":"IF($B118=\"N\",\"\",IF(LEN('Enrollment Form'!$AE125)=0,\"\",IF(LEN('Enrollment Form'!$AE125)<>10,\"N\",\"Y\")))","v":""},{"$f":"IF($B118=\"N\",\"\",IF(LEN('Enrollment Form'!$AF125)=0,\"\",IF(LEN('Enrollment Form'!$AF125)<>10,\"N\",\"Y\")))","v":""},{"$f":"IF('Enrollment Form'!$O125<>\"Graded\",\"-\",IF(AND('Enrollment Form'!$O125=\"Graded\",'Enrollment Form'!$AO125<>\"\"),\"Y\",\"N\"))","v":"-"},{"$f":"IF($B118=\"N\",\"\",IF(OR('Enrollment Form'!$B125<>\"Subscriber\",'Enrollment Form'!$C125=\"ROC\"),\"-\",IF(AND('Enrollment Form'!$B125=\"Subscriber\",'Enrollment Form'!$C125=\"Enroll\",'Enrollment Form'!$AJ125<>\"\"),\"Y\",\"N\")))","v":""},{"$f":"IF($B118=\"N\",\"\",IF(OR('Enrollment Form'!$B125<>\"Subscriber\",'Enrollment Form'!$C125=\"ROC\"),\"-\",IF(AND('Enrollment Form'!$B125=\"Subscriber\",'Enrollment Form'!$C125=\"Enroll\",'Enrollment Form'!$AK125<>\"\"),\"Y\",\"N\")))","v":""},{"$f":"IF($B118=\"N\",\"\",IF(OR('Enrollment Form'!$B125<>\"Subscriber\",'Enrollment Form'!$C125=\"ROC\"),\"-\",IF(AND('Enrollment Form'!$B125=\"Subscriber\",'Enrollment Form'!$C125=\"Enroll\",'Enrollment Form'!$AL125<>\"\"),\"Y\",\"N\")))","v":""},{"$f":"IF($B118=\"N\",\"\",IF(OR('Enrollment Form'!$B125<>\"Subscriber\",'Enrollment Form'!$C125=\"ROC\"),\"-\",IF(AND('Enrollment Form'!$B125=\"Subscriber\",'Enrollment Form'!$C125=\"Enroll\",'Enrollment Form'!$AM125<>\"\"),\"Y\",\"N\")))","v":""},{"$f":"IF($B118=\"N\",\"\",IF(OR('Enrollment Form'!$B125<>\"Subscriber\",'Enrollment Form'!$C125=\"ROC\"),\"-\",IF(AND('Enrollment Form'!$B125=\"Subscriber\",'Enrollment Form'!$C125=\"Enroll\",'Enrollment Form'!$AN125<>\"\"),\"Y\",\"N\")))","v":""},{"$f":"IF($B118=\"N\",\"\",IF(OR('Enrollment Form'!$B125<>\"Subscriber\",'Enrollment Form'!$C125=\"ROC\"),\"-\",IF(AND('Enrollment Form'!$B125=\"Subscriber\",'Enrollment Form'!$C125=\"Enroll\",'Enrollment Form'!$AP125<>\"\"),\"Y\",\"N\")))","v":""},{"$f":"IF($B118=\"N\",\"\",IF($Q118=\"-\",\"-\",IF(AND($Q118=\"Y\",'Enrollment Form'!$AP125=\"No\"),\"-\",IF(AND($Q118=\"Y\",'Enrollment Form'!$AP125=\"Yes\",'Enrollment Form'!$AQ125<>\"\"),\"Y\",\"N\"))))","v":""},{"$f":"IF($B118=\"N\",\"\",IF(OR('Enrollment Form'!$B125<>\"Subscriber\",'Enrollment Form'!$C125=\"ROC\"),\"-\",IF(AND('Enrollment Form'!$B125=\"Subscriber\",'Enrollment Form'!$C125=\"Enroll\",'Enrollment Form'!$CO125<>\"\"),\"Y\",\"N\")))","v":""},{"$f":"IF($B118=\"N\",\"\",IF($S118=\"-\",\"-\",IF(AND($S118=\"Y\",'Enrollment Form'!$CO125=\"No\"),\"-\",IF(AND($S118=\"Y\",'Enrollment Form'!$CO125=\"Yes\",'Enrollment Form'!$CP125<>\"\"),\"Y\",\"N\"))))","v":""},{"$f":"IF(OR('Enrollment Form'!$AV125=\"Yes\",'Enrollment Form'!$AV125=\"\"),\"-\",IF(AND('Enrollment Form'!$AV125=\"No\",ISERROR(FIND(\"HMO\",VLOOKUP('Enrollment Form'!G125,'Enrollment Form'!H$11:J$1000,3,FALSE),1))=FALSE,COUNTA('Enrollment Form'!$AW125:$AZ125)=4),\"Y\",\"N\"))","v":"-"},{"$f":"IF($B118=\"N\",\"\",IF('Enrollment Form'!$B125=\"Subscriber\",\"-\",IF(COUNTA('Enrollment Form'!$BE125,'Enrollment Form'!$BG125)=2,\"Y\",\"N\")))","v":""},{"$f":"IF($B118=\"N\",\"\",IF(OR('Enrollment Form'!$AU125=\"\",'Enrollment Form'!$AU125=\"No\"),\"-\",IF(AND('Enrollment Form'!$AU125=\"Yes\",COUNTA('Enrollment Form'!$CK125)=1),\"Y\",\"N\")))","v":""},{"$f":"IF(OR('Enrollment Form'!$CK125=\"\",'Enrollment Form'!$CK125=\"No\"),\"-\",IF(COUNTA('Enrollment Form'!$CM125:$CN125)=2,\"Y\",\"N\"))","v":"-"},{"$f":"IF($B118=\"N\",\"\",IF(COUNTIF('Enrollment Form'!$CZ125:$DO125,\"Other\")=COUNTA('Enrollment Form'!$DF125,'Enrollment Form'!$DA125,'Enrollment Form'!$DK125,'Enrollment Form'!$DP125),\"Y\",\"N\"))","v":""},{"$f":"IF($B118=\"N\",\"\",IF(OR('Enrollment Form'!B125<>\"Subscriber\",'Enrollment Form'!C125=\"ROC\",COUNTIF('Enrollment Form'!AS125:AT125,\"Yes\")>=1),\"-\",IF(AND('Enrollment Form'!C125=\"Enroll\",COUNTIF('Enrollment Form'!AS125:AT125,\"No\")=2,'Enrollment Form'!AU125=\"\"),\"N\",\"Y\")))","v":""},{"$f":"IF(OR(B118=\"N\",'Enrollment Form'!B125<>\"Subscriber\",'Enrollment Form'!C125=\"ROC\",'Enrollment Form'!O125<>\"Multiple of Salary\"),\"-\",IF(COUNTA('Enrollment Form'!T125:U125)<2,\"N\",\"Y\"))","v":"-"},{"$f":"IF(B118=\"N\",\"\",IF(OR('Enrollment Form'!C125=\"ROC\",'Enrollment Form'!B125<>\"Subscriber\",'Enrollment Form'!O125=\"Waive\",'Enrollment Form'!O125=\"\"),\"-\",IF('Enrollment Form'!P125=\"\",\"N\",\"Y\")))","v":""},{"$f":"IF($B118=\"N\",\"\",IF(AND('Enrollment Form'!$C125=\"ROC\",'Enrollment Form'!$DS125<>\"\"),\"Y\",IF(AND('Enrollment Form'!$C125=\"ROC\",'Enrollment Form'!$DS125=\"\"),\"N\",IF(AND('Enrollment Form'!$C125=\"Enroll\",'Enrollment Form'!$B125=\"Subscriber\",'Enrollment Form'!$CQ125=\"No\",'Enrollment Form'!$DS125=\"\"),\"N\",IF(AND('Enrollment Form'!$C125=\"Enroll\",'Enrollment Form'!$B125=\"Subscriber\",'Enrollment Form'!$CQ125=\"Yes\"),\"-\",\"Y\")))))","v":""},{"$f":"IF($B118=\"N\",\"\",IF(AND('Enrollment Form'!$C125=\"ROC\",'Enrollment Form'!$DT125<>\"\"),\"Y\",IF(AND('Enrollment Form'!$C125=\"ROC\",'Enrollment Form'!$DT125=\"\"),\"N\",IF(AND('Enrollment Form'!$C125=\"Enroll\",'Enrollment Form'!$B125=\"Subscriber\",'Enrollment Form'!$CQ125=\"No\",'Enrollment Form'!$DT125=\"\"),\"N\",IF(AND('Enrollment Form'!$C125=\"Enroll\",'Enrollment Form'!$B125=\"Subscriber\",'Enrollment Form'!$CQ125=\"Yes\"),\"-\",\"Y\")))))","v":""},{"$f":"IF('Enrollment Form'!AH125=\"\",\"\",IF(ISERROR(SEARCH(\".\",'Enrollment Form'!AH125,SEARCH(\"@\",'Enrollment Form'!AH125))),\"N\",\"Y\"))","v":""},{"$f":"IF(OR($B118=\"N\",'Enrollment Form'!$G125=\"\"),\"\",IF('Enrollment Form'!$B125<>\"Subscriber\",\"-\",IF(COUNTIF('Enrollment Form'!$AS125:$AT125,\"Yes\")=2,\"N\",\"Y\")))","v":""},{"$f":"IF(OR('Enrollment Form'!$CC125=\"\",'Enrollment Form'!$CC125=\"No\"),\"-\",IF(AND('Enrollment Form'!$CC125=\"Yes\",'Enrollment Form'!$CD125=\"\"),\"N\",\"Y\"))","v":"-"},{"$f":"IF(OR('Enrollment Form'!$CE125=\"\",'Enrollment Form'!$CE125=\"No\"),\"-\",IF(AND('Enrollment Form'!$CE125=\"Yes\",'Enrollment Form'!$CF125=\"\"),\"N\",\"Y\"))","v":"-"},{"$f":"IF(OR('Enrollment Form'!$CG125=\"\",'Enrollment Form'!$CG125=\"No\"),\"-\",IF(AND('Enrollment Form'!$CG125=\"Yes\",'Enrollment Form'!$CH125=\"\"),\"N\",\"Y\"))","v":"-"},{"$f":"IF(OR('Enrollment Form'!$CG125=\"\",'Enrollment Form'!$CG125=\"No\"),\"-\",IF(AND('Enrollment Form'!$CG125=\"Yes\",'Enrollment Form'!$CI125=\"\"),\"N\",\"Y\"))","v":"-"},{"$f":"IF('Enrollment Form'!B125<>\"Subscriber\",\"-\",IF(AND('Enrollment Form'!B125=\"Subscriber\",'Enrollment Form'!C125=\"Enroll\",'Enrollment Form'!AA125=\"\"),\"N\",\"Y\"))","v":"-"},{"$f":"IF(OR('Enrollment Form'!B125=\"Subscriber\",'Enrollment Form'!B125=\"\"),\"-\",IF('Enrollment Form'!BI125=\"\",\"N\",\"Y\"))","v":"-"},{"$f":"IF('Enrollment Form'!B125<>\"Subscriber\",\"-\",IF(AND('Enrollment Form'!B125=\"Subscriber\",'Enrollment Form'!G125=\"\"),\"N\",\"Y\"))","v":"-"},{"$f":"IF('Enrollment Form'!A125=\"\",\"\",IF('Enrollment Form'!B125=\"Subscriber\",\"-\",IF(AND('Enrollment Form'!B125<>\"Subscriber\",'Enrollment Form'!G125='Enrollment Form'!H125),\"N\",\"Y\")))","v":""},0]
[126,{"$f":"IF('Enrollment Form'!$A126<>\"\",\"Y\",\"N\")","v":"N"},{"$f":"IF(AND('Enrollment Form'!$B126=\"\",'Enrollment Form'!$C126<>\"\"),\"N\",IF($B119=\"N\",\"\",\"Y\"))","v":""},{"$f":"IF(OR($B119=\"N\",'Enrollment Form'!G126=\"\"),\"\",IF('Enrollment Form'!$B126<>\"Subscriber\",\"\",IF('Enrollment Form'!$G126='Enrollment Form'!$H126,\"Y\",\"N\")))","v":""},{"$f":"IF($B119=\"N\",\"\",IF(AND(COUNTIFS('Enrollment Form'!$H$11:$H$1000,'Enrollment Form'!$H126,'Enrollment Form'!$B$11:$B$1000,'Enrollment Form'!$B126)>1,'Enrollment Form'!$H126<>\"\"),\"N\",\"Y\"))","v":""},{"$f":"IF($B119=\"N\",\"\",IF(LEN('Enrollment Form'!$Y126)=0,\"\",IF(LEN('Enrollment Form'!$Y126)<>5,\"N\",\"Y\")))","v":""},{"$f":"IF($B119=\"N\",\"\",IF(LEN('Enrollment Form'!$AD126=0),\"\",IF(LEN('Enrollment Form'!$AD126)<>5,\"N\",\"Y\")))","v":""},{"$f":"IF($B119=\"N\",\"\",IF(LEN('Enrollment Form'!$BL126=0),\"\",IF(LEN('Enrollment Form'!$BL126)<>5,\"N\",\"Y\")))","v":""},{"$f":"IF($B119=\"N\",\"\",IF(LEN('Enrollment Form'!$AE126)=0,\"\",IF(LEN('Enrollment Form'!$AE126)<>10,\"N\",\"Y\")))","v":""},{"$f":"IF($B119=\"N\",\"\",IF(LEN('Enrollment Form'!$AF126)=0,\"\",IF(LEN('Enrollment Form'!$AF126)<>10,\"N\",\"Y\")))","v":""},{"$f":"IF('Enrollment Form'!$O126<>\"Graded\",\"-\",IF(AND('Enrollment Form'!$O126=\"Graded\",'Enrollment Form'!$AO126<>\"\"),\"Y\",\"N\"))","v":"-"},{"$f":"IF($B119=\"N\",\"\",IF(OR('Enrollment Form'!$B126<>\"Subscriber\",'Enrollment Form'!$C126=\"ROC\"),\"-\",IF(AND('Enrollment Form'!$B126=\"Subscriber\",'Enrollment Form'!$C126=\"Enroll\",'Enrollment Form'!$AJ126<>\"\"),\"Y\",\"N\")))","v":""},{"$f":"IF($B119=\"N\",\"\",IF(OR('Enrollment Form'!$B126<>\"Subscriber\",'Enrollment Form'!$C126=\"ROC\"),\"-\",IF(AND('Enrollment Form'!$B126=\"Subscriber\",'Enrollment Form'!$C126=\"Enroll\",'Enrollment Form'!$AK126<>\"\"),\"Y\",\"N\")))","v":""},{"$f":"IF($B119=\"N\",\"\",IF(OR('Enrollment Form'!$B126<>\"Subscriber\",'Enrollment Form'!$C126=\"ROC\"),\"-\",IF(AND('Enrollment Form'!$B126=\"Subscriber\",'Enrollment Form'!$C126=\"Enroll\",'Enrollment Form'!$AL126<>\"\"),\"Y\",\"N\")))","v":""},{"$f":"IF($B119=\"N\",\"\",IF(OR('Enrollment Form'!$B126<>\"Subscriber\",'Enrollment Form'!$C126=\"ROC\"),\"-\",IF(AND('Enrollment Form'!$B126=\"Subscriber\",'Enrollment Form'!$C126=\"Enroll\",'Enrollment Form'!$AM126<>\"\"),\"Y\",\"N\")))","v":""},{"$f":"IF($B119=\"N\",\"\",IF(OR('Enrollment Form'!$B126<>\"Subscriber\",'Enrollment Form'!$C126=\"ROC\"),\"-\",IF(AND('Enrollment Form'!$B126=\"Subscriber\",'Enrollment Form'!$C126=\"Enroll\",'Enrollment Form'!$AN126<>\"\"),\"Y\",\"N\")))","v":""},{"$f":"IF($B119=\"N\",\"\",IF(OR('Enrollment Form'!$B126<>\"Subscriber\",'Enrollment Form'!$C126=\"ROC\"),\"-\",IF(AND('Enrollment Form'!$B126=\"Subscriber\",'Enrollment Form'!$C126=\"Enroll\",'Enrollment Form'!$AP126<>\"\"),\"Y\",\"N\")))","v":""},{"$f":"IF($B119=\"N\",\"\",IF($Q119=\"-\",\"-\",IF(AND($Q119=\"Y\",'Enrollment Form'!$AP126=\"No\"),\"-\",IF(AND($Q119=\"Y\",'Enrollment Form'!$AP126=\"Yes\",'Enrollment Form'!$AQ126<>\"\"),\"Y\",\"N\"))))","v":""},{"$f":"IF($B119=\"N\",\"\",IF(OR('Enrollment Form'!$B126<>\"Subscriber\",'Enrollment Form'!$C126=\"ROC\"),\"-\",IF(AND('Enrollment Form'!$B126=\"Subscriber\",'Enrollment Form'!$C126=\"Enroll\",'Enrollment Form'!$CO126<>\"\"),\"Y\",\"N\")))","v":""},{"$f":"IF($B119=\"N\",\"\",IF($S119=\"-\",\"-\",IF(AND($S119=\"Y\",'Enrollment Form'!$CO126=\"No\"),\"-\",IF(AND($S119=\"Y\",'Enrollment Form'!$CO126=\"Yes\",'Enrollment Form'!$CP126<>\"\"),\"Y\",\"N\"))))","v":""},{"$f":"IF(OR('Enrollment Form'!$AV126=\"Yes\",'Enrollment Form'!$AV126=\"\"),\"-\",IF(AND('Enrollment Form'!$AV126=\"No\",ISERROR(FIND(\"HMO\",VLOOKUP('Enrollment Form'!G126,'Enrollment Form'!H$11:J$1000,3,FALSE),1))=FALSE,COUNTA('Enrollment Form'!$AW126:$AZ126)=4),\"Y\",\"N\"))","v":"-"},{"$f":"IF($B119=\"N\",\"\",IF('Enrollment Form'!$B126=\"Subscriber\",\"-\",IF(COUNTA('Enrollment Form'!$BE126,'Enrollment Form'!$BG126)=2,\"Y\",\"N\")))","v":""},{"$f":"IF($B119=\"N\",\"\",IF(OR('Enrollment Form'!$AU126=\"\",'Enrollment Form'!$AU126=\"No\"),\"-\",IF(AND('Enrollment Form'!$AU126=\"Yes\",COUNTA('Enrollment Form'!$CK126)=1),\"Y\",\"N\")))","v":""},{"$f":"IF(OR('Enrollment Form'!$CK126=\"\",'Enrollment Form'!$CK126=\"No\"),\"-\",IF(COUNTA('Enrollment Form'!$CM126:$CN126)=2,\"Y\",\"N\"))","v":"-"},{"$f":"IF($B119=\"N\",\"\",IF(COUNTIF('Enrollment Form'!$CZ126:$DO126,\"Other\")=COUNTA('Enrollment Form'!$DF126,'Enrollment Form'!$DA126,'Enrollment Form'!$DK126,'Enrollment Form'!$DP126),\"Y\",\"N\"))","v":""},{"$f":"IF($B119=\"N\",\"\",IF(OR('Enrollment Form'!B126<>\"Subscriber\",'Enrollment Form'!C126=\"ROC\",COUNTIF('Enrollment Form'!AS126:AT126,\"Yes\")>=1),\"-\",IF(AND('Enrollment Form'!C126=\"Enroll\",COUNTIF('Enrollment Form'!AS126:AT126,\"No\")=2,'Enrollment Form'!AU126=\"\"),\"N\",\"Y\")))","v":""},{"$f":"IF(OR(B119=\"N\",'Enrollment Form'!B126<>\"Subscriber\",'Enrollment Form'!C126=\"ROC\",'Enrollment Form'!O126<>\"Multiple of Salary\"),\"-\",IF(COUNTA('Enrollment Form'!T126:U126)<2,\"N\",\"Y\"))","v":"-"},{"$f":"IF(B119=\"N\",\"\",IF(OR('Enrollment Form'!C126=\"ROC\",'Enrollment Form'!B126<>\"Subscriber\",'Enrollment Form'!O126=\"Waive\",'Enrollment Form'!O126=\"\"),\"-\",IF('Enrollment Form'!P126=\"\",\"N\",\"Y\")))","v":""},{"$f":"IF($B119=\"N\",\"\",IF(AND('Enrollment Form'!$C126=\"ROC\",'Enrollment Form'!$DS126<>\"\"),\"Y\",IF(AND('Enrollment Form'!$C126=\"ROC\",'Enrollment Form'!$DS126=\"\"),\"N\",IF(AND('Enrollment Form'!$C126=\"Enroll\",'Enrollment Form'!$B126=\"Subscriber\",'Enrollment Form'!$CQ126=\"No\",'Enrollment Form'!$DS126=\"\"),\"N\",IF(AND('Enrollment Form'!$C126=\"Enroll\",'Enrollment Form'!$B126=\"Subscriber\",'Enrollment Form'!$CQ126=\"Yes\"),\"-\",\"Y\")))))","v":""},{"$f":"IF($B119=\"N\",\"\",IF(AND('Enrollment Form'!$C126=\"ROC\",'Enrollment Form'!$DT126<>\"\"),\"Y\",IF(AND('Enrollment Form'!$C126=\"ROC\",'Enrollment Form'!$DT126=\"\"),\"N\",IF(AND('Enrollment Form'!$C126=\"Enroll\",'Enrollment Form'!$B126=\"Subscriber\",'Enrollment Form'!$CQ126=\"No\",'Enrollment Form'!$DT126=\"\"),\"N\",IF(AND('Enrollment Form'!$C126=\"Enroll\",'Enrollment Form'!$B126=\"Subscriber\",'Enrollment Form'!$CQ126=\"Yes\"),\"-\",\"Y\")))))","v":""},{"$f":"IF('Enrollment Form'!AH126=\"\",\"\",IF(ISERROR(SEARCH(\".\",'Enrollment Form'!AH126,SEARCH(\"@\",'Enrollment Form'!AH126))),\"N\",\"Y\"))","v":""},{"$f":"IF(OR($B119=\"N\",'Enrollment Form'!$G126=\"\"),\"\",IF('Enrollment Form'!$B126<>\"Subscriber\",\"-\",IF(COUNTIF('Enrollment Form'!$AS126:$AT126,\"Yes\")=2,\"N\",\"Y\")))","v":""},{"$f":"IF(OR('Enrollment Form'!$CC126=\"\",'Enrollment Form'!$CC126=\"No\"),\"-\",IF(AND('Enrollment Form'!$CC126=\"Yes\",'Enrollment Form'!$CD126=\"\"),\"N\",\"Y\"))","v":"-"},{"$f":"IF(OR('Enrollment Form'!$CE126=\"\",'Enrollment Form'!$CE126=\"No\"),\"-\",IF(AND('Enrollment Form'!$CE126=\"Yes\",'Enrollment Form'!$CF126=\"\"),\"N\",\"Y\"))","v":"-"},{"$f":"IF(OR('Enrollment Form'!$CG126=\"\",'Enrollment Form'!$CG126=\"No\"),\"-\",IF(AND('Enrollment Form'!$CG126=\"Yes\",'Enrollment Form'!$CH126=\"\"),\"N\",\"Y\"))","v":"-"},{"$f":"IF(OR('Enrollment Form'!$CG126=\"\",'Enrollment Form'!$CG126=\"No\"),\"-\",IF(AND('Enrollment Form'!$CG126=\"Yes\",'Enrollment Form'!$CI126=\"\"),\"N\",\"Y\"))","v":"-"},{"$f":"IF('Enrollment Form'!B126<>\"Subscriber\",\"-\",IF(AND('Enrollment Form'!B126=\"Subscriber\",'Enrollment Form'!C126=\"Enroll\",'Enrollment Form'!AA126=\"\"),\"N\",\"Y\"))","v":"-"},{"$f":"IF(OR('Enrollment Form'!B126=\"Subscriber\",'Enrollment Form'!B126=\"\"),\"-\",IF('Enrollment Form'!BI126=\"\",\"N\",\"Y\"))","v":"-"},{"$f":"IF('Enrollment Form'!B126<>\"Subscriber\",\"-\",IF(AND('Enrollment Form'!B126=\"Subscriber\",'Enrollment Form'!G126=\"\"),\"N\",\"Y\"))","v":"-"},{"$f":"IF('Enrollment Form'!A126=\"\",\"\",IF('Enrollment Form'!B126=\"Subscriber\",\"-\",IF(AND('Enrollment Form'!B126<>\"Subscriber\",'Enrollment Form'!G126='Enrollment Form'!H126),\"N\",\"Y\")))","v":""},0]
[127,{"$f":"IF('Enrollment Form'!$A127<>\"\",\"Y\",\"N\")","v":"N"},{"$f":"IF(AND('Enrollment Form'!$B127=\"\",'Enrollment Form'!$C127<>\"\"),\"N\",IF($B120=\"N\",\"\",\"Y\"))","v":""},{"$f":"IF(OR($B120=\"N\",'Enrollment Form'!G127=\"\"),\"\",IF('Enrollment Form'!$B127<>\"Subscriber\",\"\",IF('Enrollment Form'!$G127='Enrollment Form'!$H127,\"Y\",\"N\")))","v":""},{"$f":"IF($B120=\"N\",\"\",IF(AND(COUNTIFS('Enrollment Form'!$H$11:$H$1000,'Enrollment Form'!$H127,'Enrollment Form'!$B$11:$B$1000,'Enrollment Form'!$B127)>1,'Enrollment Form'!$H127<>\"\"),\"N\",\"Y\"))","v":""},{"$f":"IF($B120=\"N\",\"\",IF(LEN('Enrollment Form'!$Y127)=0,\"\",IF(LEN('Enrollment Form'!$Y127)<>5,\"N\",\"Y\")))","v":""},{"$f":"IF($B120=\"N\",\"\",IF(LEN('Enrollment Form'!$AD127=0),\"\",IF(LEN('Enrollment Form'!$AD127)<>5,\"N\",\"Y\")))","v":""},{"$f":"IF($B120=\"N\",\"\",IF(LEN('Enrollment Form'!$BL127=0),\"\",IF(LEN('Enrollment Form'!$BL127)<>5,\"N\",\"Y\")))","v":""},{"$f":"IF($B120=\"N\",\"\",IF(LEN('Enrollment Form'!$AE127)=0,\"\",IF(LEN('Enrollment Form'!$AE127)<>10,\"N\",\"Y\")))","v":""},{"$f":"IF($B120=\"N\",\"\",IF(LEN('Enrollment Form'!$AF127)=0,\"\",IF(LEN('Enrollment Form'!$AF127)<>10,\"N\",\"Y\")))","v":""},{"$f":"IF('Enrollment Form'!$O127<>\"Graded\",\"-\",IF(AND('Enrollment Form'!$O127=\"Graded\",'Enrollment Form'!$AO127<>\"\"),\"Y\",\"N\"))","v":"-"},{"$f":"IF($B120=\"N\",\"\",IF(OR('Enrollment Form'!$B127<>\"Subscriber\",'Enrollment Form'!$C127=\"ROC\"),\"-\",IF(AND('Enrollment Form'!$B127=\"Subscriber\",'Enrollment Form'!$C127=\"Enroll\",'Enrollment Form'!$AJ127<>\"\"),\"Y\",\"N\")))","v":""},{"$f":"IF($B120=\"N\",\"\",IF(OR('Enrollment Form'!$B127<>\"Subscriber\",'Enrollment Form'!$C127=\"ROC\"),\"-\",IF(AND('Enrollment Form'!$B127=\"Subscriber\",'Enrollment Form'!$C127=\"Enroll\",'Enrollment Form'!$AK127<>\"\"),\"Y\",\"N\")))","v":""},{"$f":"IF($B120=\"N\",\"\",IF(OR('Enrollment Form'!$B127<>\"Subscriber\",'Enrollment Form'!$C127=\"ROC\"),\"-\",IF(AND('Enrollment Form'!$B127=\"Subscriber\",'Enrollment Form'!$C127=\"Enroll\",'Enrollment Form'!$AL127<>\"\"),\"Y\",\"N\")))","v":""},{"$f":"IF($B120=\"N\",\"\",IF(OR('Enrollment Form'!$B127<>\"Subscriber\",'Enrollment Form'!$C127=\"ROC\"),\"-\",IF(AND('Enrollment Form'!$B127=\"Subscriber\",'Enrollment Form'!$C127=\"Enroll\",'Enrollment Form'!$AM127<>\"\"),\"Y\",\"N\")))","v":""},{"$f":"IF($B120=\"N\",\"\",IF(OR('Enrollment Form'!$B127<>\"Subscriber\",'Enrollment Form'!$C127=\"ROC\"),\"-\",IF(AND('Enrollment Form'!$B127=\"Subscriber\",'Enrollment Form'!$C127=\"Enroll\",'Enrollment Form'!$AN127<>\"\"),\"Y\",\"N\")))","v":""},{"$f":"IF($B120=\"N\",\"\",IF(OR('Enrollment Form'!$B127<>\"Subscriber\",'Enrollment Form'!$C127=\"ROC\"),\"-\",IF(AND('Enrollment Form'!$B127=\"Subscriber\",'Enrollment Form'!$C127=\"Enroll\",'Enrollment Form'!$AP127<>\"\"),\"Y\",\"N\")))","v":""},{"$f":"IF($B120=\"N\",\"\",IF($Q120=\"-\",\"-\",IF(AND($Q120=\"Y\",'Enrollment Form'!$AP127=\"No\"),\"-\",IF(AND($Q120=\"Y\",'Enrollment Form'!$AP127=\"Yes\",'Enrollment Form'!$AQ127<>\"\"),\"Y\",\"N\"))))","v":""},{"$f":"IF($B120=\"N\",\"\",IF(OR('Enrollment Form'!$B127<>\"Subscriber\",'Enrollment Form'!$C127=\"ROC\"),\"-\",IF(AND('Enrollment Form'!$B127=\"Subscriber\",'Enrollment Form'!$C127=\"Enroll\",'Enrollment Form'!$CO127<>\"\"),\"Y\",\"N\")))","v":""},{"$f":"IF($B120=\"N\",\"\",IF($S120=\"-\",\"-\",IF(AND($S120=\"Y\",'Enrollment Form'!$CO127=\"No\"),\"-\",IF(AND($S120=\"Y\",'Enrollment Form'!$CO127=\"Yes\",'Enrollment Form'!$CP127<>\"\"),\"Y\",\"N\"))))","v":""},{"$f":"IF(OR('Enrollment Form'!$AV127=\"Yes\",'Enrollment Form'!$AV127=\"\"),\"-\",IF(AND('Enrollment Form'!$AV127=\"No\",ISERROR(FIND(\"HMO\",VLOOKUP('Enrollment Form'!G127,'Enrollment Form'!H$11:J$1000,3,FALSE),1))=FALSE,COUNTA('Enrollment Form'!$AW127:$AZ127)=4),\"Y\",\"N\"))","v":"-"},{"$f":"IF($B120=\"N\",\"\",IF('Enrollment Form'!$B127=\"Subscriber\",\"-\",IF(COUNTA('Enrollment Form'!$BE127,'Enrollment Form'!$BG127)=2,\"Y\",\"N\")))","v":""},{"$f":"IF($B120=\"N\",\"\",IF(OR('Enrollment Form'!$AU127=\"\",'Enrollment Form'!$AU127=\"No\"),\"-\",IF(AND('Enrollment Form'!$AU127=\"Yes\",COUNTA('Enrollment Form'!$CK127)=1),\"Y\",\"N\")))","v":""},{"$f":"IF(OR('Enrollment Form'!$CK127=\"\",'Enrollment Form'!$CK127=\"No\"),\"-\",IF(COUNTA('Enrollment Form'!$CM127:$CN127)=2,\"Y\",\"N\"))","v":"-"},{"$f":"IF($B120=\"N\",\"\",IF(COUNTIF('Enrollment Form'!$CZ127:$DO127,\"Other\")=COUNTA('Enrollment Form'!$DF127,'Enrollment Form'!$DA127,'Enrollment Form'!$DK127,'Enrollment Form'!$DP127),\"Y\",\"N\"))","v":""},{"$f":"IF($B120=\"N\",\"\",IF(OR('Enrollment Form'!B127<>\"Subscriber\",'Enrollment Form'!C127=\"ROC\",COUNTIF('Enrollment Form'!AS127:AT127,\"Yes\")>=1),\"-\",IF(AND('Enrollment Form'!C127=\"Enroll\",COUNTIF('Enrollment Form'!AS127:AT127,\"No\")=2,'Enrollment Form'!AU127=\"\"),\"N\",\"Y\")))","v":""},{"$f":"IF(OR(B120=\"N\",'Enrollment Form'!B127<>\"Subscriber\",'Enrollment Form'!C127=\"ROC\",'Enrollment Form'!O127<>\"Multiple of Salary\"),\"-\",IF(COUNTA('Enrollment Form'!T127:U127)<2,\"N\",\"Y\"))","v":"-"},{"$f":"IF(B120=\"N\",\"\",IF(OR('Enrollment Form'!C127=\"ROC\",'Enrollment Form'!B127<>\"Subscriber\",'Enrollment Form'!O127=\"Waive\",'Enrollment Form'!O127=\"\"),\"-\",IF('Enrollment Form'!P127=\"\",\"N\",\"Y\")))","v":""},{"$f":"IF($B120=\"N\",\"\",IF(AND('Enrollment Form'!$C127=\"ROC\",'Enrollment Form'!$DS127<>\"\"),\"Y\",IF(AND('Enrollment Form'!$C127=\"ROC\",'Enrollment Form'!$DS127=\"\"),\"N\",IF(AND('Enrollment Form'!$C127=\"Enroll\",'Enrollment Form'!$B127=\"Subscriber\",'Enrollment Form'!$CQ127=\"No\",'Enrollment Form'!$DS127=\"\"),\"N\",IF(AND('Enrollment Form'!$C127=\"Enroll\",'Enrollment Form'!$B127=\"Subscriber\",'Enrollment Form'!$CQ127=\"Yes\"),\"-\",\"Y\")))))","v":""},{"$f":"IF($B120=\"N\",\"\",IF(AND('Enrollment Form'!$C127=\"ROC\",'Enrollment Form'!$DT127<>\"\"),\"Y\",IF(AND('Enrollment Form'!$C127=\"ROC\",'Enrollment Form'!$DT127=\"\"),\"N\",IF(AND('Enrollment Form'!$C127=\"Enroll\",'Enrollment Form'!$B127=\"Subscriber\",'Enrollment Form'!$CQ127=\"No\",'Enrollment Form'!$DT127=\"\"),\"N\",IF(AND('Enrollment Form'!$C127=\"Enroll\",'Enrollment Form'!$B127=\"Subscriber\",'Enrollment Form'!$CQ127=\"Yes\"),\"-\",\"Y\")))))","v":""},{"$f":"IF('Enrollment Form'!AH127=\"\",\"\",IF(ISERROR(SEARCH(\".\",'Enrollment Form'!AH127,SEARCH(\"@\",'Enrollment Form'!AH127))),\"N\",\"Y\"))","v":""},{"$f":"IF(OR($B120=\"N\",'Enrollment Form'!$G127=\"\"),\"\",IF('Enrollment Form'!$B127<>\"Subscriber\",\"-\",IF(COUNTIF('Enrollment Form'!$AS127:$AT127,\"Yes\")=2,\"N\",\"Y\")))","v":""},{"$f":"IF(OR('Enrollment Form'!$CC127=\"\",'Enrollment Form'!$CC127=\"No\"),\"-\",IF(AND('Enrollment Form'!$CC127=\"Yes\",'Enrollment Form'!$CD127=\"\"),\"N\",\"Y\"))","v":"-"},{"$f":"IF(OR('Enrollment Form'!$CE127=\"\",'Enrollment Form'!$CE127=\"No\"),\"-\",IF(AND('Enrollment Form'!$CE127=\"Yes\",'Enrollment Form'!$CF127=\"\"),\"N\",\"Y\"))","v":"-"},{"$f":"IF(OR('Enrollment Form'!$CG127=\"\",'Enrollment Form'!$CG127=\"No\"),\"-\",IF(AND('Enrollment Form'!$CG127=\"Yes\",'Enrollment Form'!$CH127=\"\"),\"N\",\"Y\"))","v":"-"},{"$f":"IF(OR('Enrollment Form'!$CG127=\"\",'Enrollment Form'!$CG127=\"No\"),\"-\",IF(AND('Enrollment Form'!$CG127=\"Yes\",'Enrollment Form'!$CI127=\"\"),\"N\",\"Y\"))","v":"-"},{"$f":"IF('Enrollment Form'!B127<>\"Subscriber\",\"-\",IF(AND('Enrollment Form'!B127=\"Subscriber\",'Enrollment Form'!C127=\"Enroll\",'Enrollment Form'!AA127=\"\"),\"N\",\"Y\"))","v":"-"},{"$f":"IF(OR('Enrollment Form'!B127=\"Subscriber\",'Enrollment Form'!B127=\"\"),\"-\",IF('Enrollment Form'!BI127=\"\",\"N\",\"Y\"))","v":"-"},{"$f":"IF('Enrollment Form'!B127<>\"Subscriber\",\"-\",IF(AND('Enrollment Form'!B127=\"Subscriber\",'Enrollment Form'!G127=\"\"),\"N\",\"Y\"))","v":"-"},{"$f":"IF('Enrollment Form'!A127=\"\",\"\",IF('Enrollment Form'!B127=\"Subscriber\",\"-\",IF(AND('Enrollment Form'!B127<>\"Subscriber\",'Enrollment Form'!G127='Enrollment Form'!H127),\"N\",\"Y\")))","v":""},0]
[128,{"$f":"IF('Enrollment Form'!$A128<>\"\",\"Y\",\"N\")","v":"N"},{"$f":"IF(AND('Enrollment Form'!$B128=\"\",'Enrollment Form'!$C128<>\"\"),\"N\",IF($B121=\"N\",\"\",\"Y\"))","v":""},{"$f":"IF(OR($B121=\"N\",'Enrollment Form'!G128=\"\"),\"\",IF('Enrollment Form'!$B128<>\"Subscriber\",\"\",IF('Enrollment Form'!$G128='Enrollment Form'!$H128,\"Y\",\"N\")))","v":""},{"$f":"IF($B121=\"N\",\"\",IF(AND(COUNTIFS('Enrollment Form'!$H$11:$H$1000,'Enrollment Form'!$H128,'Enrollment Form'!$B$11:$B$1000,'Enrollment Form'!$B128)>1,'Enrollment Form'!$H128<>\"\"),\"N\",\"Y\"))","v":""},{"$f":"IF($B121=\"N\",\"\",IF(LEN('Enrollment Form'!$Y128)=0,\"\",IF(LEN('Enrollment Form'!$Y128)<>5,\"N\",\"Y\")))","v":""},{"$f":"IF($B121=\"N\",\"\",IF(LEN('Enrollment Form'!$AD128=0),\"\",IF(LEN('Enrollment Form'!$AD128)<>5,\"N\",\"Y\")))","v":""},{"$f":"IF($B121=\"N\",\"\",IF(LEN('Enrollment Form'!$BL128=0),\"\",IF(LEN('Enrollment Form'!$BL128)<>5,\"N\",\"Y\")))","v":""},{"$f":"IF($B121=\"N\",\"\",IF(LEN('Enrollment Form'!$AE128)=0,\"\",IF(LEN('Enrollment Form'!$AE128)<>10,\"N\",\"Y\")))","v":""},{"$f":"IF($B121=\"N\",\"\",IF(LEN('Enrollment Form'!$AF128)=0,\"\",IF(LEN('Enrollment Form'!$AF128)<>10,\"N\",\"Y\")))","v":""},{"$f":"IF('Enrollment Form'!$O128<>\"Graded\",\"-\",IF(AND('Enrollment Form'!$O128=\"Graded\",'Enrollment Form'!$AO128<>\"\"),\"Y\",\"N\"))","v":"-"},{"$f":"IF($B121=\"N\",\"\",IF(OR('Enrollment Form'!$B128<>\"Subscriber\",'Enrollment Form'!$C128=\"ROC\"),\"-\",IF(AND('Enrollment Form'!$B128=\"Subscriber\",'Enrollment Form'!$C128=\"Enroll\",'Enrollment Form'!$AJ128<>\"\"),\"Y\",\"N\")))","v":""},{"$f":"IF($B121=\"N\",\"\",IF(OR('Enrollment Form'!$B128<>\"Subscriber\",'Enrollment Form'!$C128=\"ROC\"),\"-\",IF(AND('Enrollment Form'!$B128=\"Subscriber\",'Enrollment Form'!$C128=\"Enroll\",'Enrollment Form'!$AK128<>\"\"),\"Y\",\"N\")))","v":""},{"$f":"IF($B121=\"N\",\"\",IF(OR('Enrollment Form'!$B128<>\"Subscriber\",'Enrollment Form'!$C128=\"ROC\"),\"-\",IF(AND('Enrollment Form'!$B128=\"Subscriber\",'Enrollment Form'!$C128=\"Enroll\",'Enrollment Form'!$AL128<>\"\"),\"Y\",\"N\")))","v":""},{"$f":"IF($B121=\"N\",\"\",IF(OR('Enrollment Form'!$B128<>\"Subscriber\",'Enrollment Form'!$C128=\"ROC\"),\"-\",IF(AND('Enrollment Form'!$B128=\"Subscriber\",'Enrollment Form'!$C128=\"Enroll\",'Enrollment Form'!$AM128<>\"\"),\"Y\",\"N\")))","v":""},{"$f":"IF($B121=\"N\",\"\",IF(OR('Enrollment Form'!$B128<>\"Subscriber\",'Enrollment Form'!$C128=\"ROC\"),\"-\",IF(AND('Enrollment Form'!$B128=\"Subscriber\",'Enrollment Form'!$C128=\"Enroll\",'Enrollment Form'!$AN128<>\"\"),\"Y\",\"N\")))","v":""},{"$f":"IF($B121=\"N\",\"\",IF(OR('Enrollment Form'!$B128<>\"Subscriber\",'Enrollment Form'!$C128=\"ROC\"),\"-\",IF(AND('Enrollment Form'!$B128=\"Subscriber\",'Enrollment Form'!$C128=\"Enroll\",'Enrollment Form'!$AP128<>\"\"),\"Y\",\"N\")))","v":""},{"$f":"IF($B121=\"N\",\"\",IF($Q121=\"-\",\"-\",IF(AND($Q121=\"Y\",'Enrollment Form'!$AP128=\"No\"),\"-\",IF(AND($Q121=\"Y\",'Enrollment Form'!$AP128=\"Yes\",'Enrollment Form'!$AQ128<>\"\"),\"Y\",\"N\"))))","v":""},{"$f":"IF($B121=\"N\",\"\",IF(OR('Enrollment Form'!$B128<>\"Subscriber\",'Enrollment Form'!$C128=\"ROC\"),\"-\",IF(AND('Enrollment Form'!$B128=\"Subscriber\",'Enrollment Form'!$C128=\"Enroll\",'Enrollment Form'!$CO128<>\"\"),\"Y\",\"N\")))","v":""},{"$f":"IF($B121=\"N\",\"\",IF($S121=\"-\",\"-\",IF(AND($S121=\"Y\",'Enrollment Form'!$CO128=\"No\"),\"-\",IF(AND($S121=\"Y\",'Enrollment Form'!$CO128=\"Yes\",'Enrollment Form'!$CP128<>\"\"),\"Y\",\"N\"))))","v":""},{"$f":"IF(OR('Enrollment Form'!$AV128=\"Yes\",'Enrollment Form'!$AV128=\"\"),\"-\",IF(AND('Enrollment Form'!$AV128=\"No\",ISERROR(FIND(\"HMO\",VLOOKUP('Enrollment Form'!G128,'Enrollment Form'!H$11:J$1000,3,FALSE),1))=FALSE,COUNTA('Enrollment Form'!$AW128:$AZ128)=4),\"Y\",\"N\"))","v":"-"},{"$f":"IF($B121=\"N\",\"\",IF('Enrollment Form'!$B128=\"Subscriber\",\"-\",IF(COUNTA('Enrollment Form'!$BE128,'Enrollment Form'!$BG128)=2,\"Y\",\"N\")))","v":""},{"$f":"IF($B121=\"N\",\"\",IF(OR('Enrollment Form'!$AU128=\"\",'Enrollment Form'!$AU128=\"No\"),\"-\",IF(AND('Enrollment Form'!$AU128=\"Yes\",COUNTA('Enrollment Form'!$CK128)=1),\"Y\",\"N\")))","v":""},{"$f":"IF(OR('Enrollment Form'!$CK128=\"\",'Enrollment Form'!$CK128=\"No\"),\"-\",IF(COUNTA('Enrollment Form'!$CM128:$CN128)=2,\"Y\",\"N\"))","v":"-"},{"$f":"IF($B121=\"N\",\"\",IF(COUNTIF('Enrollment Form'!$CZ128:$DO128,\"Other\")=COUNTA('Enrollment Form'!$DF128,'Enrollment Form'!$DA128,'Enrollment Form'!$DK128,'Enrollment Form'!$DP128),\"Y\",\"N\"))","v":""},{"$f":"IF($B121=\"N\",\"\",IF(OR('Enrollment Form'!B128<>\"Subscriber\",'Enrollment Form'!C128=\"ROC\",COUNTIF('Enrollment Form'!AS128:AT128,\"Yes\")>=1),\"-\",IF(AND('Enrollment Form'!C128=\"Enroll\",COUNTIF('Enrollment Form'!AS128:AT128,\"No\")=2,'Enrollment Form'!AU128=\"\"),\"N\",\"Y\")))","v":""},{"$f":"IF(OR(B121=\"N\",'Enrollment Form'!B128<>\"Subscriber\",'Enrollment Form'!C128=\"ROC\",'Enrollment Form'!O128<>\"Multiple of Salary\"),\"-\",IF(COUNTA('Enrollment Form'!T128:U128)<2,\"N\",\"Y\"))","v":"-"},{"$f":"IF(B121=\"N\",\"\",IF(OR('Enrollment Form'!C128=\"ROC\",'Enrollment Form'!B128<>\"Subscriber\",'Enrollment Form'!O128=\"Waive\",'Enrollment Form'!O128=\"\"),\"-\",IF('Enrollment Form'!P128=\"\",\"N\",\"Y\")))","v":""},{"$f":"IF($B121=\"N\",\"\",IF(AND('Enrollment Form'!$C128=\"ROC\",'Enrollment Form'!$DS128<>\"\"),\"Y\",IF(AND('Enrollment Form'!$C128=\"ROC\",'Enrollment Form'!$DS128=\"\"),\"N\",IF(AND('Enrollment Form'!$C128=\"Enroll\",'Enrollment Form'!$B128=\"Subscriber\",'Enrollment Form'!$CQ128=\"No\",'Enrollment Form'!$DS128=\"\"),\"N\",IF(AND('Enrollment Form'!$C128=\"Enroll\",'Enrollment Form'!$B128=\"Subscriber\",'Enrollment Form'!$CQ128=\"Yes\"),\"-\",\"Y\")))))","v":""},{"$f":"IF($B121=\"N\",\"\",IF(AND('Enrollment Form'!$C128=\"ROC\",'Enrollment Form'!$DT128<>\"\"),\"Y\",IF(AND('Enrollment Form'!$C128=\"ROC\",'Enrollment Form'!$DT128=\"\"),\"N\",IF(AND('Enrollment Form'!$C128=\"Enroll\",'Enrollment Form'!$B128=\"Subscriber\",'Enrollment Form'!$CQ128=\"No\",'Enrollment Form'!$DT128=\"\"),\"N\",IF(AND('Enrollment Form'!$C128=\"Enroll\",'Enrollment Form'!$B128=\"Subscriber\",'Enrollment Form'!$CQ128=\"Yes\"),\"-\",\"Y\")))))","v":""},{"$f":"IF('Enrollment Form'!AH128=\"\",\"\",IF(ISERROR(SEARCH(\".\",'Enrollment Form'!AH128,SEARCH(\"@\",'Enrollment Form'!AH128))),\"N\",\"Y\"))","v":""},{"$f":"IF(OR($B121=\"N\",'Enrollment Form'!$G128=\"\"),\"\",IF('Enrollment Form'!$B128<>\"Subscriber\",\"-\",IF(COUNTIF('Enrollment Form'!$AS128:$AT128,\"Yes\")=2,\"N\",\"Y\")))","v":""},{"$f":"IF(OR('Enrollment Form'!$CC128=\"\",'Enrollment Form'!$CC128=\"No\"),\"-\",IF(AND('Enrollment Form'!$CC128=\"Yes\",'Enrollment Form'!$CD128=\"\"),\"N\",\"Y\"))","v":"-"},{"$f":"IF(OR('Enrollment Form'!$CE128=\"\",'Enrollment Form'!$CE128=\"No\"),\"-\",IF(AND('Enrollment Form'!$CE128=\"Yes\",'Enrollment Form'!$CF128=\"\"),\"N\",\"Y\"))","v":"-"},{"$f":"IF(OR('Enrollment Form'!$CG128=\"\",'Enrollment Form'!$CG128=\"No\"),\"-\",IF(AND('Enrollment Form'!$CG128=\"Yes\",'Enrollment Form'!$CH128=\"\"),\"N\",\"Y\"))","v":"-"},{"$f":"IF(OR('Enrollment Form'!$CG128=\"\",'Enrollment Form'!$CG128=\"No\"),\"-\",IF(AND('Enrollment Form'!$CG128=\"Yes\",'Enrollment Form'!$CI128=\"\"),\"N\",\"Y\"))","v":"-"},{"$f":"IF('Enrollment Form'!B128<>\"Subscriber\",\"-\",IF(AND('Enrollment Form'!B128=\"Subscriber\",'Enrollment Form'!C128=\"Enroll\",'Enrollment Form'!AA128=\"\"),\"N\",\"Y\"))","v":"-"},{"$f":"IF(OR('Enrollment Form'!B128=\"Subscriber\",'Enrollment Form'!B128=\"\"),\"-\",IF('Enrollment Form'!BI128=\"\",\"N\",\"Y\"))","v":"-"},{"$f":"IF('Enrollment Form'!B128<>\"Subscriber\",\"-\",IF(AND('Enrollment Form'!B128=\"Subscriber\",'Enrollment Form'!G128=\"\"),\"N\",\"Y\"))","v":"-"},{"$f":"IF('Enrollment Form'!A128=\"\",\"\",IF('Enrollment Form'!B128=\"Subscriber\",\"-\",IF(AND('Enrollment Form'!B128<>\"Subscriber\",'Enrollment Form'!G128='Enrollment Form'!H128),\"N\",\"Y\")))","v":""},0]
[129,{"$f":"IF('Enrollment Form'!$A129<>\"\",\"Y\",\"N\")","v":"N"},{"$f":"IF(AND('Enrollment Form'!$B129=\"\",'Enrollment Form'!$C129<>\"\"),\"N\",IF($B122=\"N\",\"\",\"Y\"))","v":""},{"$f":"IF(OR($B122=\"N\",'Enrollment Form'!G129=\"\"),\"\",IF('Enrollment Form'!$B129<>\"Subscriber\",\"\",IF('Enrollment Form'!$G129='Enrollment Form'!$H129,\"Y\",\"N\")))","v":""},{"$f":"IF($B122=\"N\",\"\",IF(AND(COUNTIFS('Enrollment Form'!$H$11:$H$1000,'Enrollment Form'!$H129,'Enrollment Form'!$B$11:$B$1000,'Enrollment Form'!$B129)>1,'Enrollment Form'!$H129<>\"\"),\"N\",\"Y\"))","v":""},{"$f":"IF($B122=\"N\",\"\",IF(LEN('Enrollment Form'!$Y129)=0,\"\",IF(LEN('Enrollment Form'!$Y129)<>5,\"N\",\"Y\")))","v":""},{"$f":"IF($B122=\"N\",\"\",IF(LEN('Enrollment Form'!$AD129=0),\"\",IF(LEN('Enrollment Form'!$AD129)<>5,\"N\",\"Y\")))","v":""},{"$f":"IF($B122=\"N\",\"\",IF(LEN('Enrollment Form'!$BL129=0),\"\",IF(LEN('Enrollment Form'!$BL129)<>5,\"N\",\"Y\")))","v":""},{"$f":"IF($B122=\"N\",\"\",IF(LEN('Enrollment Form'!$AE129)=0,\"\",IF(LEN('Enrollment Form'!$AE129)<>10,\"N\",\"Y\")))","v":""},{"$f":"IF($B122=\"N\",\"\",IF(LEN('Enrollment Form'!$AF129)=0,\"\",IF(LEN('Enrollment Form'!$AF129)<>10,\"N\",\"Y\")))","v":""},{"$f":"IF('Enrollment Form'!$O129<>\"Graded\",\"-\",IF(AND('Enrollment Form'!$O129=\"Graded\",'Enrollment Form'!$AO129<>\"\"),\"Y\",\"N\"))","v":"-"},{"$f":"IF($B122=\"N\",\"\",IF(OR('Enrollment Form'!$B129<>\"Subscriber\",'Enrollment Form'!$C129=\"ROC\"),\"-\",IF(AND('Enrollment Form'!$B129=\"Subscriber\",'Enrollment Form'!$C129=\"Enroll\",'Enrollment Form'!$AJ129<>\"\"),\"Y\",\"N\")))","v":""},{"$f":"IF($B122=\"N\",\"\",IF(OR('Enrollment Form'!$B129<>\"Subscriber\",'Enrollment Form'!$C129=\"ROC\"),\"-\",IF(AND('Enrollment Form'!$B129=\"Subscriber\",'Enrollment Form'!$C129=\"Enroll\",'Enrollment Form'!$AK129<>\"\"),\"Y\",\"N\")))","v":""},{"$f":"IF($B122=\"N\",\"\",IF(OR('Enrollment Form'!$B129<>\"Subscriber\",'Enrollment Form'!$C129=\"ROC\"),\"-\",IF(AND('Enrollment Form'!$B129=\"Subscriber\",'Enrollment Form'!$C129=\"Enroll\",'Enrollment Form'!$AL129<>\"\"),\"Y\",\"N\")))","v":""},{"$f":"IF($B122=\"N\",\"\",IF(OR('Enrollment Form'!$B129<>\"Subscriber\",'Enrollment Form'!$C129=\"ROC\"),\"-\",IF(AND('Enrollment Form'!$B129=\"Subscriber\",'Enrollment Form'!$C129=\"Enroll\",'Enrollment Form'!$AM129<>\"\"),\"Y\",\"N\")))","v":""},{"$f":"IF($B122=\"N\",\"\",IF(OR('Enrollment Form'!$B129<>\"Subscriber\",'Enrollment Form'!$C129=\"ROC\"),\"-\",IF(AND('Enrollment Form'!$B129=\"Subscriber\",'Enrollment Form'!$C129=\"Enroll\",'Enrollment Form'!$AN129<>\"\"),\"Y\",\"N\")))","v":""},{"$f":"IF($B122=\"N\",\"\",IF(OR('Enrollment Form'!$B129<>\"Subscriber\",'Enrollment Form'!$C129=\"ROC\"),\"-\",IF(AND('Enrollment Form'!$B129=\"Subscriber\",'Enrollment Form'!$C129=\"Enroll\",'Enrollment Form'!$AP129<>\"\"),\"Y\",\"N\")))","v":""},{"$f":"IF($B122=\"N\",\"\",IF($Q122=\"-\",\"-\",IF(AND($Q122=\"Y\",'Enrollment Form'!$AP129=\"No\"),\"-\",IF(AND($Q122=\"Y\",'Enrollment Form'!$AP129=\"Yes\",'Enrollment Form'!$AQ129<>\"\"),\"Y\",\"N\"))))","v":""},{"$f":"IF($B122=\"N\",\"\",IF(OR('Enrollment Form'!$B129<>\"Subscriber\",'Enrollment Form'!$C129=\"ROC\"),\"-\",IF(AND('Enrollment Form'!$B129=\"Subscriber\",'Enrollment Form'!$C129=\"Enroll\",'Enrollment Form'!$CO129<>\"\"),\"Y\",\"N\")))","v":""},{"$f":"IF($B122=\"N\",\"\",IF($S122=\"-\",\"-\",IF(AND($S122=\"Y\",'Enrollment Form'!$CO129=\"No\"),\"-\",IF(AND($S122=\"Y\",'Enrollment Form'!$CO129=\"Yes\",'Enrollment Form'!$CP129<>\"\"),\"Y\",\"N\"))))","v":""},{"$f":"IF(OR('Enrollment Form'!$AV129=\"Yes\",'Enrollment Form'!$AV129=\"\"),\"-\",IF(AND('Enrollment Form'!$AV129=\"No\",ISERROR(FIND(\"HMO\",VLOOKUP('Enrollment Form'!G129,'Enrollment Form'!H$11:J$1000,3,FALSE),1))=FALSE,COUNTA('Enrollment Form'!$AW129:$AZ129)=4),\"Y\",\"N\"))","v":"-"},{"$f":"IF($B122=\"N\",\"\",IF('Enrollment Form'!$B129=\"Subscriber\",\"-\",IF(COUNTA('Enrollment Form'!$BE129,'Enrollment Form'!$BG129)=2,\"Y\",\"N\")))","v":""},{"$f":"IF($B122=\"N\",\"\",IF(OR('Enrollment Form'!$AU129=\"\",'Enrollment Form'!$AU129=\"No\"),\"-\",IF(AND('Enrollment Form'!$AU129=\"Yes\",COUNTA('Enrollment Form'!$CK129)=1),\"Y\",\"N\")))","v":""},{"$f":"IF(OR('Enrollment Form'!$CK129=\"\",'Enrollment Form'!$CK129=\"No\"),\"-\",IF(COUNTA('Enrollment Form'!$CM129:$CN129)=2,\"Y\",\"N\"))","v":"-"},{"$f":"IF($B122=\"N\",\"\",IF(COUNTIF('Enrollment Form'!$CZ129:$DO129,\"Other\")=COUNTA('Enrollment Form'!$DF129,'Enrollment Form'!$DA129,'Enrollment Form'!$DK129,'Enrollment Form'!$DP129),\"Y\",\"N\"))","v":""},{"$f":"IF($B122=\"N\",\"\",IF(OR('Enrollment Form'!B129<>\"Subscriber\",'Enrollment Form'!C129=\"ROC\",COUNTIF('Enrollment Form'!AS129:AT129,\"Yes\")>=1),\"-\",IF(AND('Enrollment Form'!C129=\"Enroll\",COUNTIF('Enrollment Form'!AS129:AT129,\"No\")=2,'Enrollment Form'!AU129=\"\"),\"N\",\"Y\")))","v":""},{"$f":"IF(OR(B122=\"N\",'Enrollment Form'!B129<>\"Subscriber\",'Enrollment Form'!C129=\"ROC\",'Enrollment Form'!O129<>\"Multiple of Salary\"),\"-\",IF(COUNTA('Enrollment Form'!T129:U129)<2,\"N\",\"Y\"))","v":"-"},{"$f":"IF(B122=\"N\",\"\",IF(OR('Enrollment Form'!C129=\"ROC\",'Enrollment Form'!B129<>\"Subscriber\",'Enrollment Form'!O129=\"Waive\",'Enrollment Form'!O129=\"\"),\"-\",IF('Enrollment Form'!P129=\"\",\"N\",\"Y\")))","v":""},{"$f":"IF($B122=\"N\",\"\",IF(AND('Enrollment Form'!$C129=\"ROC\",'Enrollment Form'!$DS129<>\"\"),\"Y\",IF(AND('Enrollment Form'!$C129=\"ROC\",'Enrollment Form'!$DS129=\"\"),\"N\",IF(AND('Enrollment Form'!$C129=\"Enroll\",'Enrollment Form'!$B129=\"Subscriber\",'Enrollment Form'!$CQ129=\"No\",'Enrollment Form'!$DS129=\"\"),\"N\",IF(AND('Enrollment Form'!$C129=\"Enroll\",'Enrollment Form'!$B129=\"Subscriber\",'Enrollment Form'!$CQ129=\"Yes\"),\"-\",\"Y\")))))","v":""},{"$f":"IF($B122=\"N\",\"\",IF(AND('Enrollment Form'!$C129=\"ROC\",'Enrollment Form'!$DT129<>\"\"),\"Y\",IF(AND('Enrollment Form'!$C129=\"ROC\",'Enrollment Form'!$DT129=\"\"),\"N\",IF(AND('Enrollment Form'!$C129=\"Enroll\",'Enrollment Form'!$B129=\"Subscriber\",'Enrollment Form'!$CQ129=\"No\",'Enrollment Form'!$DT129=\"\"),\"N\",IF(AND('Enrollment Form'!$C129=\"Enroll\",'Enrollment Form'!$B129=\"Subscriber\",'Enrollment Form'!$CQ129=\"Yes\"),\"-\",\"Y\")))))","v":""},{"$f":"IF('Enrollment Form'!AH129=\"\",\"\",IF(ISERROR(SEARCH(\".\",'Enrollment Form'!AH129,SEARCH(\"@\",'Enrollment Form'!AH129))),\"N\",\"Y\"))","v":""},{"$f":"IF(OR($B122=\"N\",'Enrollment Form'!$G129=\"\"),\"\",IF('Enrollment Form'!$B129<>\"Subscriber\",\"-\",IF(COUNTIF('Enrollment Form'!$AS129:$AT129,\"Yes\")=2,\"N\",\"Y\")))","v":""},{"$f":"IF(OR('Enrollment Form'!$CC129=\"\",'Enrollment Form'!$CC129=\"No\"),\"-\",IF(AND('Enrollment Form'!$CC129=\"Yes\",'Enrollment Form'!$CD129=\"\"),\"N\",\"Y\"))","v":"-"},{"$f":"IF(OR('Enrollment Form'!$CE129=\"\",'Enrollment Form'!$CE129=\"No\"),\"-\",IF(AND('Enrollment Form'!$CE129=\"Yes\",'Enrollment Form'!$CF129=\"\"),\"N\",\"Y\"))","v":"-"},{"$f":"IF(OR('Enrollment Form'!$CG129=\"\",'Enrollment Form'!$CG129=\"No\"),\"-\",IF(AND('Enrollment Form'!$CG129=\"Yes\",'Enrollment Form'!$CH129=\"\"),\"N\",\"Y\"))","v":"-"},{"$f":"IF(OR('Enrollment Form'!$CG129=\"\",'Enrollment Form'!$CG129=\"No\"),\"-\",IF(AND('Enrollment Form'!$CG129=\"Yes\",'Enrollment Form'!$CI129=\"\"),\"N\",\"Y\"))","v":"-"},{"$f":"IF('Enrollment Form'!B129<>\"Subscriber\",\"-\",IF(AND('Enrollment Form'!B129=\"Subscriber\",'Enrollment Form'!C129=\"Enroll\",'Enrollment Form'!AA129=\"\"),\"N\",\"Y\"))","v":"-"},{"$f":"IF(OR('Enrollment Form'!B129=\"Subscriber\",'Enrollment Form'!B129=\"\"),\"-\",IF('Enrollment Form'!BI129=\"\",\"N\",\"Y\"))","v":"-"},{"$f":"IF('Enrollment Form'!B129<>\"Subscriber\",\"-\",IF(AND('Enrollment Form'!B129=\"Subscriber\",'Enrollment Form'!G129=\"\"),\"N\",\"Y\"))","v":"-"},{"$f":"IF('Enrollment Form'!A129=\"\",\"\",IF('Enrollment Form'!B129=\"Subscriber\",\"-\",IF(AND('Enrollment Form'!B129<>\"Subscriber\",'Enrollment Form'!G129='Enrollment Form'!H129),\"N\",\"Y\")))","v":""},0]
[130,{"$f":"IF('Enrollment Form'!$A130<>\"\",\"Y\",\"N\")","v":"N"},{"$f":"IF(AND('Enrollment Form'!$B130=\"\",'Enrollment Form'!$C130<>\"\"),\"N\",IF($B123=\"N\",\"\",\"Y\"))","v":""},{"$f":"IF(OR($B123=\"N\",'Enrollment Form'!G130=\"\"),\"\",IF('Enrollment Form'!$B130<>\"Subscriber\",\"\",IF('Enrollment Form'!$G130='Enrollment Form'!$H130,\"Y\",\"N\")))","v":""},{"$f":"IF($B123=\"N\",\"\",IF(AND(COUNTIFS('Enrollment Form'!$H$11:$H$1000,'Enrollment Form'!$H130,'Enrollment Form'!$B$11:$B$1000,'Enrollment Form'!$B130)>1,'Enrollment Form'!$H130<>\"\"),\"N\",\"Y\"))","v":""},{"$f":"IF($B123=\"N\",\"\",IF(LEN('Enrollment Form'!$Y130)=0,\"\",IF(LEN('Enrollment Form'!$Y130)<>5,\"N\",\"Y\")))","v":""},{"$f":"IF($B123=\"N\",\"\",IF(LEN('Enrollment Form'!$AD130=0),\"\",IF(LEN('Enrollment Form'!$AD130)<>5,\"N\",\"Y\")))","v":""},{"$f":"IF($B123=\"N\",\"\",IF(LEN('Enrollment Form'!$BL130=0),\"\",IF(LEN('Enrollment Form'!$BL130)<>5,\"N\",\"Y\")))","v":""},{"$f":"IF($B123=\"N\",\"\",IF(LEN('Enrollment Form'!$AE130)=0,\"\",IF(LEN('Enrollment Form'!$AE130)<>10,\"N\",\"Y\")))","v":""},{"$f":"IF($B123=\"N\",\"\",IF(LEN('Enrollment Form'!$AF130)=0,\"\",IF(LEN('Enrollment Form'!$AF130)<>10,\"N\",\"Y\")))","v":""},{"$f":"IF('Enrollment Form'!$O130<>\"Graded\",\"-\",IF(AND('Enrollment Form'!$O130=\"Graded\",'Enrollment Form'!$AO130<>\"\"),\"Y\",\"N\"))","v":"-"},{"$f":"IF($B123=\"N\",\"\",IF(OR('Enrollment Form'!$B130<>\"Subscriber\",'Enrollment Form'!$C130=\"ROC\"),\"-\",IF(AND('Enrollment Form'!$B130=\"Subscriber\",'Enrollment Form'!$C130=\"Enroll\",'Enrollment Form'!$AJ130<>\"\"),\"Y\",\"N\")))","v":""},{"$f":"IF($B123=\"N\",\"\",IF(OR('Enrollment Form'!$B130<>\"Subscriber\",'Enrollment Form'!$C130=\"ROC\"),\"-\",IF(AND('Enrollment Form'!$B130=\"Subscriber\",'Enrollment Form'!$C130=\"Enroll\",'Enrollment Form'!$AK130<>\"\"),\"Y\",\"N\")))","v":""},{"$f":"IF($B123=\"N\",\"\",IF(OR('Enrollment Form'!$B130<>\"Subscriber\",'Enrollment Form'!$C130=\"ROC\"),\"-\",IF(AND('Enrollment Form'!$B130=\"Subscriber\",'Enrollment Form'!$C130=\"Enroll\",'Enrollment Form'!$AL130<>\"\"),\"Y\",\"N\")))","v":""},{"$f":"IF($B123=\"N\",\"\",IF(OR('Enrollment Form'!$B130<>\"Subscriber\",'Enrollment Form'!$C130=\"ROC\"),\"-\",IF(AND('Enrollment Form'!$B130=\"Subscriber\",'Enrollment Form'!$C130=\"Enroll\",'Enrollment Form'!$AM130<>\"\"),\"Y\",\"N\")))","v":""},{"$f":"IF($B123=\"N\",\"\",IF(OR('Enrollment Form'!$B130<>\"Subscriber\",'Enrollment Form'!$C130=\"ROC\"),\"-\",IF(AND('Enrollment Form'!$B130=\"Subscriber\",'Enrollment Form'!$C130=\"Enroll\",'Enrollment Form'!$AN130<>\"\"),\"Y\",\"N\")))","v":""},{"$f":"IF($B123=\"N\",\"\",IF(OR('Enrollment Form'!$B130<>\"Subscriber\",'Enrollment Form'!$C130=\"ROC\"),\"-\",IF(AND('Enrollment Form'!$B130=\"Subscriber\",'Enrollment Form'!$C130=\"Enroll\",'Enrollment Form'!$AP130<>\"\"),\"Y\",\"N\")))","v":""},{"$f":"IF($B123=\"N\",\"\",IF($Q123=\"-\",\"-\",IF(AND($Q123=\"Y\",'Enrollment Form'!$AP130=\"No\"),\"-\",IF(AND($Q123=\"Y\",'Enrollment Form'!$AP130=\"Yes\",'Enrollment Form'!$AQ130<>\"\"),\"Y\",\"N\"))))","v":""},{"$f":"IF($B123=\"N\",\"\",IF(OR('Enrollment Form'!$B130<>\"Subscriber\",'Enrollment Form'!$C130=\"ROC\"),\"-\",IF(AND('Enrollment Form'!$B130=\"Subscriber\",'Enrollment Form'!$C130=\"Enroll\",'Enrollment Form'!$CO130<>\"\"),\"Y\",\"N\")))","v":""},{"$f":"IF($B123=\"N\",\"\",IF($S123=\"-\",\"-\",IF(AND($S123=\"Y\",'Enrollment Form'!$CO130=\"No\"),\"-\",IF(AND($S123=\"Y\",'Enrollment Form'!$CO130=\"Yes\",'Enrollment Form'!$CP130<>\"\"),\"Y\",\"N\"))))","v":""},{"$f":"IF(OR('Enrollment Form'!$AV130=\"Yes\",'Enrollment Form'!$AV130=\"\"),\"-\",IF(AND('Enrollment Form'!$AV130=\"No\",ISERROR(FIND(\"HMO\",VLOOKUP('Enrollment Form'!G130,'Enrollment Form'!H$11:J$1000,3,FALSE),1))=FALSE,COUNTA('Enrollment Form'!$AW130:$AZ130)=4),\"Y\",\"N\"))","v":"-"},{"$f":"IF($B123=\"N\",\"\",IF('Enrollment Form'!$B130=\"Subscriber\",\"-\",IF(COUNTA('Enrollment Form'!$BE130,'Enrollment Form'!$BG130)=2,\"Y\",\"N\")))","v":""},{"$f":"IF($B123=\"N\",\"\",IF(OR('Enrollment Form'!$AU130=\"\",'Enrollment Form'!$AU130=\"No\"),\"-\",IF(AND('Enrollment Form'!$AU130=\"Yes\",COUNTA('Enrollment Form'!$CK130)=1),\"Y\",\"N\")))","v":""},{"$f":"IF(OR('Enrollment Form'!$CK130=\"\",'Enrollment Form'!$CK130=\"No\"),\"-\",IF(COUNTA('Enrollment Form'!$CM130:$CN130)=2,\"Y\",\"N\"))","v":"-"},{"$f":"IF($B123=\"N\",\"\",IF(COUNTIF('Enrollment Form'!$CZ130:$DO130,\"Other\")=COUNTA('Enrollment Form'!$DF130,'Enrollment Form'!$DA130,'Enrollment Form'!$DK130,'Enrollment Form'!$DP130),\"Y\",\"N\"))","v":""},{"$f":"IF($B123=\"N\",\"\",IF(OR('Enrollment Form'!B130<>\"Subscriber\",'Enrollment Form'!C130=\"ROC\",COUNTIF('Enrollment Form'!AS130:AT130,\"Yes\")>=1),\"-\",IF(AND('Enrollment Form'!C130=\"Enroll\",COUNTIF('Enrollment Form'!AS130:AT130,\"No\")=2,'Enrollment Form'!AU130=\"\"),\"N\",\"Y\")))","v":""},{"$f":"IF(OR(B123=\"N\",'Enrollment Form'!B130<>\"Subscriber\",'Enrollment Form'!C130=\"ROC\",'Enrollment Form'!O130<>\"Multiple of Salary\"),\"-\",IF(COUNTA('Enrollment Form'!T130:U130)<2,\"N\",\"Y\"))","v":"-"},{"$f":"IF(B123=\"N\",\"\",IF(OR('Enrollment Form'!C130=\"ROC\",'Enrollment Form'!B130<>\"Subscriber\",'Enrollment Form'!O130=\"Waive\",'Enrollment Form'!O130=\"\"),\"-\",IF('Enrollment Form'!P130=\"\",\"N\",\"Y\")))","v":""},{"$f":"IF($B123=\"N\",\"\",IF(AND('Enrollment Form'!$C130=\"ROC\",'Enrollment Form'!$DS130<>\"\"),\"Y\",IF(AND('Enrollment Form'!$C130=\"ROC\",'Enrollment Form'!$DS130=\"\"),\"N\",IF(AND('Enrollment Form'!$C130=\"Enroll\",'Enrollment Form'!$B130=\"Subscriber\",'Enrollment Form'!$CQ130=\"No\",'Enrollment Form'!$DS130=\"\"),\"N\",IF(AND('Enrollment Form'!$C130=\"Enroll\",'Enrollment Form'!$B130=\"Subscriber\",'Enrollment Form'!$CQ130=\"Yes\"),\"-\",\"Y\")))))","v":""},{"$f":"IF($B123=\"N\",\"\",IF(AND('Enrollment Form'!$C130=\"ROC\",'Enrollment Form'!$DT130<>\"\"),\"Y\",IF(AND('Enrollment Form'!$C130=\"ROC\",'Enrollment Form'!$DT130=\"\"),\"N\",IF(AND('Enrollment Form'!$C130=\"Enroll\",'Enrollment Form'!$B130=\"Subscriber\",'Enrollment Form'!$CQ130=\"No\",'Enrollment Form'!$DT130=\"\"),\"N\",IF(AND('Enrollment Form'!$C130=\"Enroll\",'Enrollment Form'!$B130=\"Subscriber\",'Enrollment Form'!$CQ130=\"Yes\"),\"-\",\"Y\")))))","v":""},{"$f":"IF('Enrollment Form'!AH130=\"\",\"\",IF(ISERROR(SEARCH(\".\",'Enrollment Form'!AH130,SEARCH(\"@\",'Enrollment Form'!AH130))),\"N\",\"Y\"))","v":""},{"$f":"IF(OR($B123=\"N\",'Enrollment Form'!$G130=\"\"),\"\",IF('Enrollment Form'!$B130<>\"Subscriber\",\"-\",IF(COUNTIF('Enrollment Form'!$AS130:$AT130,\"Yes\")=2,\"N\",\"Y\")))","v":""},{"$f":"IF(OR('Enrollment Form'!$CC130=\"\",'Enrollment Form'!$CC130=\"No\"),\"-\",IF(AND('Enrollment Form'!$CC130=\"Yes\",'Enrollment Form'!$CD130=\"\"),\"N\",\"Y\"))","v":"-"},{"$f":"IF(OR('Enrollment Form'!$CE130=\"\",'Enrollment Form'!$CE130=\"No\"),\"-\",IF(AND('Enrollment Form'!$CE130=\"Yes\",'Enrollment Form'!$CF130=\"\"),\"N\",\"Y\"))","v":"-"},{"$f":"IF(OR('Enrollment Form'!$CG130=\"\",'Enrollment Form'!$CG130=\"No\"),\"-\",IF(AND('Enrollment Form'!$CG130=\"Yes\",'Enrollment Form'!$CH130=\"\"),\"N\",\"Y\"))","v":"-"},{"$f":"IF(OR('Enrollment Form'!$CG130=\"\",'Enrollment Form'!$CG130=\"No\"),\"-\",IF(AND('Enrollment Form'!$CG130=\"Yes\",'Enrollment Form'!$CI130=\"\"),\"N\",\"Y\"))","v":"-"},{"$f":"IF('Enrollment Form'!B130<>\"Subscriber\",\"-\",IF(AND('Enrollment Form'!B130=\"Subscriber\",'Enrollment Form'!C130=\"Enroll\",'Enrollment Form'!AA130=\"\"),\"N\",\"Y\"))","v":"-"},{"$f":"IF(OR('Enrollment Form'!B130=\"Subscriber\",'Enrollment Form'!B130=\"\"),\"-\",IF('Enrollment Form'!BI130=\"\",\"N\",\"Y\"))","v":"-"},{"$f":"IF('Enrollment Form'!B130<>\"Subscriber\",\"-\",IF(AND('Enrollment Form'!B130=\"Subscriber\",'Enrollment Form'!G130=\"\"),\"N\",\"Y\"))","v":"-"},{"$f":"IF('Enrollment Form'!A130=\"\",\"\",IF('Enrollment Form'!B130=\"Subscriber\",\"-\",IF(AND('Enrollment Form'!B130<>\"Subscriber\",'Enrollment Form'!G130='Enrollment Form'!H130),\"N\",\"Y\")))","v":""},0]
[131,{"$f":"IF('Enrollment Form'!$A131<>\"\",\"Y\",\"N\")","v":"N"},{"$f":"IF(AND('Enrollment Form'!$B131=\"\",'Enrollment Form'!$C131<>\"\"),\"N\",IF($B124=\"N\",\"\",\"Y\"))","v":""},{"$f":"IF(OR($B124=\"N\",'Enrollment Form'!G131=\"\"),\"\",IF('Enrollment Form'!$B131<>\"Subscriber\",\"\",IF('Enrollment Form'!$G131='Enrollment Form'!$H131,\"Y\",\"N\")))","v":""},{"$f":"IF($B124=\"N\",\"\",IF(AND(COUNTIFS('Enrollment Form'!$H$11:$H$1000,'Enrollment Form'!$H131,'Enrollment Form'!$B$11:$B$1000,'Enrollment Form'!$B131)>1,'Enrollment Form'!$H131<>\"\"),\"N\",\"Y\"))","v":""},{"$f":"IF($B124=\"N\",\"\",IF(LEN('Enrollment Form'!$Y131)=0,\"\",IF(LEN('Enrollment Form'!$Y131)<>5,\"N\",\"Y\")))","v":""},{"$f":"IF($B124=\"N\",\"\",IF(LEN('Enrollment Form'!$AD131=0),\"\",IF(LEN('Enrollment Form'!$AD131)<>5,\"N\",\"Y\")))","v":""},{"$f":"IF($B124=\"N\",\"\",IF(LEN('Enrollment Form'!$BL131=0),\"\",IF(LEN('Enrollment Form'!$BL131)<>5,\"N\",\"Y\")))","v":""},{"$f":"IF($B124=\"N\",\"\",IF(LEN('Enrollment Form'!$AE131)=0,\"\",IF(LEN('Enrollment Form'!$AE131)<>10,\"N\",\"Y\")))","v":""},{"$f":"IF($B124=\"N\",\"\",IF(LEN('Enrollment Form'!$AF131)=0,\"\",IF(LEN('Enrollment Form'!$AF131)<>10,\"N\",\"Y\")))","v":""},{"$f":"IF('Enrollment Form'!$O131<>\"Graded\",\"-\",IF(AND('Enrollment Form'!$O131=\"Graded\",'Enrollment Form'!$AO131<>\"\"),\"Y\",\"N\"))","v":"-"},{"$f":"IF($B124=\"N\",\"\",IF(OR('Enrollment Form'!$B131<>\"Subscriber\",'Enrollment Form'!$C131=\"ROC\"),\"-\",IF(AND('Enrollment Form'!$B131=\"Subscriber\",'Enrollment Form'!$C131=\"Enroll\",'Enrollment Form'!$AJ131<>\"\"),\"Y\",\"N\")))","v":""},{"$f":"IF($B124=\"N\",\"\",IF(OR('Enrollment Form'!$B131<>\"Subscriber\",'Enrollment Form'!$C131=\"ROC\"),\"-\",IF(AND('Enrollment Form'!$B131=\"Subscriber\",'Enrollment Form'!$C131=\"Enroll\",'Enrollment Form'!$AK131<>\"\"),\"Y\",\"N\")))","v":""},{"$f":"IF($B124=\"N\",\"\",IF(OR('Enrollment Form'!$B131<>\"Subscriber\",'Enrollment Form'!$C131=\"ROC\"),\"-\",IF(AND('Enrollment Form'!$B131=\"Subscriber\",'Enrollment Form'!$C131=\"Enroll\",'Enrollment Form'!$AL131<>\"\"),\"Y\",\"N\")))","v":""},{"$f":"IF($B124=\"N\",\"\",IF(OR('Enrollment Form'!$B131<>\"Subscriber\",'Enrollment Form'!$C131=\"ROC\"),\"-\",IF(AND('Enrollment Form'!$B131=\"Subscriber\",'Enrollment Form'!$C131=\"Enroll\",'Enrollment Form'!$AM131<>\"\"),\"Y\",\"N\")))","v":""},{"$f":"IF($B124=\"N\",\"\",IF(OR('Enrollment Form'!$B131<>\"Subscriber\",'Enrollment Form'!$C131=\"ROC\"),\"-\",IF(AND('Enrollment Form'!$B131=\"Subscriber\",'Enrollment Form'!$C131=\"Enroll\",'Enrollment Form'!$AN131<>\"\"),\"Y\",\"N\")))","v":""},{"$f":"IF($B124=\"N\",\"\",IF(OR('Enrollment Form'!$B131<>\"Subscriber\",'Enrollment Form'!$C131=\"ROC\"),\"-\",IF(AND('Enrollment Form'!$B131=\"Subscriber\",'Enrollment Form'!$C131=\"Enroll\",'Enrollment Form'!$AP131<>\"\"),\"Y\",\"N\")))","v":""},{"$f":"IF($B124=\"N\",\"\",IF($Q124=\"-\",\"-\",IF(AND($Q124=\"Y\",'Enrollment Form'!$AP131=\"No\"),\"-\",IF(AND($Q124=\"Y\",'Enrollment Form'!$AP131=\"Yes\",'Enrollment Form'!$AQ131<>\"\"),\"Y\",\"N\"))))","v":""},{"$f":"IF($B124=\"N\",\"\",IF(OR('Enrollment Form'!$B131<>\"Subscriber\",'Enrollment Form'!$C131=\"ROC\"),\"-\",IF(AND('Enrollment Form'!$B131=\"Subscriber\",'Enrollment Form'!$C131=\"Enroll\",'Enrollment Form'!$CO131<>\"\"),\"Y\",\"N\")))","v":""},{"$f":"IF($B124=\"N\",\"\",IF($S124=\"-\",\"-\",IF(AND($S124=\"Y\",'Enrollment Form'!$CO131=\"No\"),\"-\",IF(AND($S124=\"Y\",'Enrollment Form'!$CO131=\"Yes\",'Enrollment Form'!$CP131<>\"\"),\"Y\",\"N\"))))","v":""},{"$f":"IF(OR('Enrollment Form'!$AV131=\"Yes\",'Enrollment Form'!$AV131=\"\"),\"-\",IF(AND('Enrollment Form'!$AV131=\"No\",ISERROR(FIND(\"HMO\",VLOOKUP('Enrollment Form'!G131,'Enrollment Form'!H$11:J$1000,3,FALSE),1))=FALSE,COUNTA('Enrollment Form'!$AW131:$AZ131)=4),\"Y\",\"N\"))","v":"-"},{"$f":"IF($B124=\"N\",\"\",IF('Enrollment Form'!$B131=\"Subscriber\",\"-\",IF(COUNTA('Enrollment Form'!$BE131,'Enrollment Form'!$BG131)=2,\"Y\",\"N\")))","v":""},{"$f":"IF($B124=\"N\",\"\",IF(OR('Enrollment Form'!$AU131=\"\",'Enrollment Form'!$AU131=\"No\"),\"-\",IF(AND('Enrollment Form'!$AU131=\"Yes\",COUNTA('Enrollment Form'!$CK131)=1),\"Y\",\"N\")))","v":""},{"$f":"IF(OR('Enrollment Form'!$CK131=\"\",'Enrollment Form'!$CK131=\"No\"),\"-\",IF(COUNTA('Enrollment Form'!$CM131:$CN131)=2,\"Y\",\"N\"))","v":"-"},{"$f":"IF($B124=\"N\",\"\",IF(COUNTIF('Enrollment Form'!$CZ131:$DO131,\"Other\")=COUNTA('Enrollment Form'!$DF131,'Enrollment Form'!$DA131,'Enrollment Form'!$DK131,'Enrollment Form'!$DP131),\"Y\",\"N\"))","v":""},{"$f":"IF($B124=\"N\",\"\",IF(OR('Enrollment Form'!B131<>\"Subscriber\",'Enrollment Form'!C131=\"ROC\",COUNTIF('Enrollment Form'!AS131:AT131,\"Yes\")>=1),\"-\",IF(AND('Enrollment Form'!C131=\"Enroll\",COUNTIF('Enrollment Form'!AS131:AT131,\"No\")=2,'Enrollment Form'!AU131=\"\"),\"N\",\"Y\")))","v":""},{"$f":"IF(OR(B124=\"N\",'Enrollment Form'!B131<>\"Subscriber\",'Enrollment Form'!C131=\"ROC\",'Enrollment Form'!O131<>\"Multiple of Salary\"),\"-\",IF(COUNTA('Enrollment Form'!T131:U131)<2,\"N\",\"Y\"))","v":"-"},{"$f":"IF(B124=\"N\",\"\",IF(OR('Enrollment Form'!C131=\"ROC\",'Enrollment Form'!B131<>\"Subscriber\",'Enrollment Form'!O131=\"Waive\",'Enrollment Form'!O131=\"\"),\"-\",IF('Enrollment Form'!P131=\"\",\"N\",\"Y\")))","v":""},{"$f":"IF($B124=\"N\",\"\",IF(AND('Enrollment Form'!$C131=\"ROC\",'Enrollment Form'!$DS131<>\"\"),\"Y\",IF(AND('Enrollment Form'!$C131=\"ROC\",'Enrollment Form'!$DS131=\"\"),\"N\",IF(AND('Enrollment Form'!$C131=\"Enroll\",'Enrollment Form'!$B131=\"Subscriber\",'Enrollment Form'!$CQ131=\"No\",'Enrollment Form'!$DS131=\"\"),\"N\",IF(AND('Enrollment Form'!$C131=\"Enroll\",'Enrollment Form'!$B131=\"Subscriber\",'Enrollment Form'!$CQ131=\"Yes\"),\"-\",\"Y\")))))","v":""},{"$f":"IF($B124=\"N\",\"\",IF(AND('Enrollment Form'!$C131=\"ROC\",'Enrollment Form'!$DT131<>\"\"),\"Y\",IF(AND('Enrollment Form'!$C131=\"ROC\",'Enrollment Form'!$DT131=\"\"),\"N\",IF(AND('Enrollment Form'!$C131=\"Enroll\",'Enrollment Form'!$B131=\"Subscriber\",'Enrollment Form'!$CQ131=\"No\",'Enrollment Form'!$DT131=\"\"),\"N\",IF(AND('Enrollment Form'!$C131=\"Enroll\",'Enrollment Form'!$B131=\"Subscriber\",'Enrollment Form'!$CQ131=\"Yes\"),\"-\",\"Y\")))))","v":""},{"$f":"IF('Enrollment Form'!AH131=\"\",\"\",IF(ISERROR(SEARCH(\".\",'Enrollment Form'!AH131,SEARCH(\"@\",'Enrollment Form'!AH131))),\"N\",\"Y\"))","v":""},{"$f":"IF(OR($B124=\"N\",'Enrollment Form'!$G131=\"\"),\"\",IF('Enrollment Form'!$B131<>\"Subscriber\",\"-\",IF(COUNTIF('Enrollment Form'!$AS131:$AT131,\"Yes\")=2,\"N\",\"Y\")))","v":""},{"$f":"IF(OR('Enrollment Form'!$CC131=\"\",'Enrollment Form'!$CC131=\"No\"),\"-\",IF(AND('Enrollment Form'!$CC131=\"Yes\",'Enrollment Form'!$CD131=\"\"),\"N\",\"Y\"))","v":"-"},{"$f":"IF(OR('Enrollment Form'!$CE131=\"\",'Enrollment Form'!$CE131=\"No\"),\"-\",IF(AND('Enrollment Form'!$CE131=\"Yes\",'Enrollment Form'!$CF131=\"\"),\"N\",\"Y\"))","v":"-"},{"$f":"IF(OR('Enrollment Form'!$CG131=\"\",'Enrollment Form'!$CG131=\"No\"),\"-\",IF(AND('Enrollment Form'!$CG131=\"Yes\",'Enrollment Form'!$CH131=\"\"),\"N\",\"Y\"))","v":"-"},{"$f":"IF(OR('Enrollment Form'!$CG131=\"\",'Enrollment Form'!$CG131=\"No\"),\"-\",IF(AND('Enrollment Form'!$CG131=\"Yes\",'Enrollment Form'!$CI131=\"\"),\"N\",\"Y\"))","v":"-"},{"$f":"IF('Enrollment Form'!B131<>\"Subscriber\",\"-\",IF(AND('Enrollment Form'!B131=\"Subscriber\",'Enrollment Form'!C131=\"Enroll\",'Enrollment Form'!AA131=\"\"),\"N\",\"Y\"))","v":"-"},{"$f":"IF(OR('Enrollment Form'!B131=\"Subscriber\",'Enrollment Form'!B131=\"\"),\"-\",IF('Enrollment Form'!BI131=\"\",\"N\",\"Y\"))","v":"-"},{"$f":"IF('Enrollment Form'!B131<>\"Subscriber\",\"-\",IF(AND('Enrollment Form'!B131=\"Subscriber\",'Enrollment Form'!G131=\"\"),\"N\",\"Y\"))","v":"-"},{"$f":"IF('Enrollment Form'!A131=\"\",\"\",IF('Enrollment Form'!B131=\"Subscriber\",\"-\",IF(AND('Enrollment Form'!B131<>\"Subscriber\",'Enrollment Form'!G131='Enrollment Form'!H131),\"N\",\"Y\")))","v":""},0]
[132,{"$f":"IF('Enrollment Form'!$A132<>\"\",\"Y\",\"N\")","v":"N"},{"$f":"IF(AND('Enrollment Form'!$B132=\"\",'Enrollment Form'!$C132<>\"\"),\"N\",IF($B125=\"N\",\"\",\"Y\"))","v":""},{"$f":"IF(OR($B125=\"N\",'Enrollment Form'!G132=\"\"),\"\",IF('Enrollment Form'!$B132<>\"Subscriber\",\"\",IF('Enrollment Form'!$G132='Enrollment Form'!$H132,\"Y\",\"N\")))","v":""},{"$f":"IF($B125=\"N\",\"\",IF(AND(COUNTIFS('Enrollment Form'!$H$11:$H$1000,'Enrollment Form'!$H132,'Enrollment Form'!$B$11:$B$1000,'Enrollment Form'!$B132)>1,'Enrollment Form'!$H132<>\"\"),\"N\",\"Y\"))","v":""},{"$f":"IF($B125=\"N\",\"\",IF(LEN('Enrollment Form'!$Y132)=0,\"\",IF(LEN('Enrollment Form'!$Y132)<>5,\"N\",\"Y\")))","v":""},{"$f":"IF($B125=\"N\",\"\",IF(LEN('Enrollment Form'!$AD132=0),\"\",IF(LEN('Enrollment Form'!$AD132)<>5,\"N\",\"Y\")))","v":""},{"$f":"IF($B125=\"N\",\"\",IF(LEN('Enrollment Form'!$BL132=0),\"\",IF(LEN('Enrollment Form'!$BL132)<>5,\"N\",\"Y\")))","v":""},{"$f":"IF($B125=\"N\",\"\",IF(LEN('Enrollment Form'!$AE132)=0,\"\",IF(LEN('Enrollment Form'!$AE132)<>10,\"N\",\"Y\")))","v":""},{"$f":"IF($B125=\"N\",\"\",IF(LEN('Enrollment Form'!$AF132)=0,\"\",IF(LEN('Enrollment Form'!$AF132)<>10,\"N\",\"Y\")))","v":""},{"$f":"IF('Enrollment Form'!$O132<>\"Graded\",\"-\",IF(AND('Enrollment Form'!$O132=\"Graded\",'Enrollment Form'!$AO132<>\"\"),\"Y\",\"N\"))","v":"-"},{"$f":"IF($B125=\"N\",\"\",IF(OR('Enrollment Form'!$B132<>\"Subscriber\",'Enrollment Form'!$C132=\"ROC\"),\"-\",IF(AND('Enrollment Form'!$B132=\"Subscriber\",'Enrollment Form'!$C132=\"Enroll\",'Enrollment Form'!$AJ132<>\"\"),\"Y\",\"N\")))","v":""},{"$f":"IF($B125=\"N\",\"\",IF(OR('Enrollment Form'!$B132<>\"Subscriber\",'Enrollment Form'!$C132=\"ROC\"),\"-\",IF(AND('Enrollment Form'!$B132=\"Subscriber\",'Enrollment Form'!$C132=\"Enroll\",'Enrollment Form'!$AK132<>\"\"),\"Y\",\"N\")))","v":""},{"$f":"IF($B125=\"N\",\"\",IF(OR('Enrollment Form'!$B132<>\"Subscriber\",'Enrollment Form'!$C132=\"ROC\"),\"-\",IF(AND('Enrollment Form'!$B132=\"Subscriber\",'Enrollment Form'!$C132=\"Enroll\",'Enrollment Form'!$AL132<>\"\"),\"Y\",\"N\")))","v":""},{"$f":"IF($B125=\"N\",\"\",IF(OR('Enrollment Form'!$B132<>\"Subscriber\",'Enrollment Form'!$C132=\"ROC\"),\"-\",IF(AND('Enrollment Form'!$B132=\"Subscriber\",'Enrollment Form'!$C132=\"Enroll\",'Enrollment Form'!$AM132<>\"\"),\"Y\",\"N\")))","v":""},{"$f":"IF($B125=\"N\",\"\",IF(OR('Enrollment Form'!$B132<>\"Subscriber\",'Enrollment Form'!$C132=\"ROC\"),\"-\",IF(AND('Enrollment Form'!$B132=\"Subscriber\",'Enrollment Form'!$C132=\"Enroll\",'Enrollment Form'!$AN132<>\"\"),\"Y\",\"N\")))","v":""},{"$f":"IF($B125=\"N\",\"\",IF(OR('Enrollment Form'!$B132<>\"Subscriber\",'Enrollment Form'!$C132=\"ROC\"),\"-\",IF(AND('Enrollment Form'!$B132=\"Subscriber\",'Enrollment Form'!$C132=\"Enroll\",'Enrollment Form'!$AP132<>\"\"),\"Y\",\"N\")))","v":""},{"$f":"IF($B125=\"N\",\"\",IF($Q125=\"-\",\"-\",IF(AND($Q125=\"Y\",'Enrollment Form'!$AP132=\"No\"),\"-\",IF(AND($Q125=\"Y\",'Enrollment Form'!$AP132=\"Yes\",'Enrollment Form'!$AQ132<>\"\"),\"Y\",\"N\"))))","v":""},{"$f":"IF($B125=\"N\",\"\",IF(OR('Enrollment Form'!$B132<>\"Subscriber\",'Enrollment Form'!$C132=\"ROC\"),\"-\",IF(AND('Enrollment Form'!$B132=\"Subscriber\",'Enrollment Form'!$C132=\"Enroll\",'Enrollment Form'!$CO132<>\"\"),\"Y\",\"N\")))","v":""},{"$f":"IF($B125=\"N\",\"\",IF($S125=\"-\",\"-\",IF(AND($S125=\"Y\",'Enrollment Form'!$CO132=\"No\"),\"-\",IF(AND($S125=\"Y\",'Enrollment Form'!$CO132=\"Yes\",'Enrollment Form'!$CP132<>\"\"),\"Y\",\"N\"))))","v":""},{"$f":"IF(OR('Enrollment Form'!$AV132=\"Yes\",'Enrollment Form'!$AV132=\"\"),\"-\",IF(AND('Enrollment Form'!$AV132=\"No\",ISERROR(FIND(\"HMO\",VLOOKUP('Enrollment Form'!G132,'Enrollment Form'!H$11:J$1000,3,FALSE),1))=FALSE,COUNTA('Enrollment Form'!$AW132:$AZ132)=4),\"Y\",\"N\"))","v":"-"},{"$f":"IF($B125=\"N\",\"\",IF('Enrollment Form'!$B132=\"Subscriber\",\"-\",IF(COUNTA('Enrollment Form'!$BE132,'Enrollment Form'!$BG132)=2,\"Y\",\"N\")))","v":""},{"$f":"IF($B125=\"N\",\"\",IF(OR('Enrollment Form'!$AU132=\"\",'Enrollment Form'!$AU132=\"No\"),\"-\",IF(AND('Enrollment Form'!$AU132=\"Yes\",COUNTA('Enrollment Form'!$CK132)=1),\"Y\",\"N\")))","v":""},{"$f":"IF(OR('Enrollment Form'!$CK132=\"\",'Enrollment Form'!$CK132=\"No\"),\"-\",IF(COUNTA('Enrollment Form'!$CM132:$CN132)=2,\"Y\",\"N\"))","v":"-"},{"$f":"IF($B125=\"N\",\"\",IF(COUNTIF('Enrollment Form'!$CZ132:$DO132,\"Other\")=COUNTA('Enrollment Form'!$DF132,'Enrollment Form'!$DA132,'Enrollment Form'!$DK132,'Enrollment Form'!$DP132),\"Y\",\"N\"))","v":""},{"$f":"IF($B125=\"N\",\"\",IF(OR('Enrollment Form'!B132<>\"Subscriber\",'Enrollment Form'!C132=\"ROC\",COUNTIF('Enrollment Form'!AS132:AT132,\"Yes\")>=1),\"-\",IF(AND('Enrollment Form'!C132=\"Enroll\",COUNTIF('Enrollment Form'!AS132:AT132,\"No\")=2,'Enrollment Form'!AU132=\"\"),\"N\",\"Y\")))","v":""},{"$f":"IF(OR(B125=\"N\",'Enrollment Form'!B132<>\"Subscriber\",'Enrollment Form'!C132=\"ROC\",'Enrollment Form'!O132<>\"Multiple of Salary\"),\"-\",IF(COUNTA('Enrollment Form'!T132:U132)<2,\"N\",\"Y\"))","v":"-"},{"$f":"IF(B125=\"N\",\"\",IF(OR('Enrollment Form'!C132=\"ROC\",'Enrollment Form'!B132<>\"Subscriber\",'Enrollment Form'!O132=\"Waive\",'Enrollment Form'!O132=\"\"),\"-\",IF('Enrollment Form'!P132=\"\",\"N\",\"Y\")))","v":""},{"$f":"IF($B125=\"N\",\"\",IF(AND('Enrollment Form'!$C132=\"ROC\",'Enrollment Form'!$DS132<>\"\"),\"Y\",IF(AND('Enrollment Form'!$C132=\"ROC\",'Enrollment Form'!$DS132=\"\"),\"N\",IF(AND('Enrollment Form'!$C132=\"Enroll\",'Enrollment Form'!$B132=\"Subscriber\",'Enrollment Form'!$CQ132=\"No\",'Enrollment Form'!$DS132=\"\"),\"N\",IF(AND('Enrollment Form'!$C132=\"Enroll\",'Enrollment Form'!$B132=\"Subscriber\",'Enrollment Form'!$CQ132=\"Yes\"),\"-\",\"Y\")))))","v":""},{"$f":"IF($B125=\"N\",\"\",IF(AND('Enrollment Form'!$C132=\"ROC\",'Enrollment Form'!$DT132<>\"\"),\"Y\",IF(AND('Enrollment Form'!$C132=\"ROC\",'Enrollment Form'!$DT132=\"\"),\"N\",IF(AND('Enrollment Form'!$C132=\"Enroll\",'Enrollment Form'!$B132=\"Subscriber\",'Enrollment Form'!$CQ132=\"No\",'Enrollment Form'!$DT132=\"\"),\"N\",IF(AND('Enrollment Form'!$C132=\"Enroll\",'Enrollment Form'!$B132=\"Subscriber\",'Enrollment Form'!$CQ132=\"Yes\"),\"-\",\"Y\")))))","v":""},{"$f":"IF('Enrollment Form'!AH132=\"\",\"\",IF(ISERROR(SEARCH(\".\",'Enrollment Form'!AH132,SEARCH(\"@\",'Enrollment Form'!AH132))),\"N\",\"Y\"))","v":""},{"$f":"IF(OR($B125=\"N\",'Enrollment Form'!$G132=\"\"),\"\",IF('Enrollment Form'!$B132<>\"Subscriber\",\"-\",IF(COUNTIF('Enrollment Form'!$AS132:$AT132,\"Yes\")=2,\"N\",\"Y\")))","v":""},{"$f":"IF(OR('Enrollment Form'!$CC132=\"\",'Enrollment Form'!$CC132=\"No\"),\"-\",IF(AND('Enrollment Form'!$CC132=\"Yes\",'Enrollment Form'!$CD132=\"\"),\"N\",\"Y\"))","v":"-"},{"$f":"IF(OR('Enrollment Form'!$CE132=\"\",'Enrollment Form'!$CE132=\"No\"),\"-\",IF(AND('Enrollment Form'!$CE132=\"Yes\",'Enrollment Form'!$CF132=\"\"),\"N\",\"Y\"))","v":"-"},{"$f":"IF(OR('Enrollment Form'!$CG132=\"\",'Enrollment Form'!$CG132=\"No\"),\"-\",IF(AND('Enrollment Form'!$CG132=\"Yes\",'Enrollment Form'!$CH132=\"\"),\"N\",\"Y\"))","v":"-"},{"$f":"IF(OR('Enrollment Form'!$CG132=\"\",'Enrollment Form'!$CG132=\"No\"),\"-\",IF(AND('Enrollment Form'!$CG132=\"Yes\",'Enrollment Form'!$CI132=\"\"),\"N\",\"Y\"))","v":"-"},{"$f":"IF('Enrollment Form'!B132<>\"Subscriber\",\"-\",IF(AND('Enrollment Form'!B132=\"Subscriber\",'Enrollment Form'!C132=\"Enroll\",'Enrollment Form'!AA132=\"\"),\"N\",\"Y\"))","v":"-"},{"$f":"IF(OR('Enrollment Form'!B132=\"Subscriber\",'Enrollment Form'!B132=\"\"),\"-\",IF('Enrollment Form'!BI132=\"\",\"N\",\"Y\"))","v":"-"},{"$f":"IF('Enrollment Form'!B132<>\"Subscriber\",\"-\",IF(AND('Enrollment Form'!B132=\"Subscriber\",'Enrollment Form'!G132=\"\"),\"N\",\"Y\"))","v":"-"},{"$f":"IF('Enrollment Form'!A132=\"\",\"\",IF('Enrollment Form'!B132=\"Subscriber\",\"-\",IF(AND('Enrollment Form'!B132<>\"Subscriber\",'Enrollment Form'!G132='Enrollment Form'!H132),\"N\",\"Y\")))","v":""},0]
[133,{"$f":"IF('Enrollment Form'!$A133<>\"\",\"Y\",\"N\")","v":"N"},{"$f":"IF(AND('Enrollment Form'!$B133=\"\",'Enrollment Form'!$C133<>\"\"),\"N\",IF($B126=\"N\",\"\",\"Y\"))","v":""},{"$f":"IF(OR($B126=\"N\",'Enrollment Form'!G133=\"\"),\"\",IF('Enrollment Form'!$B133<>\"Subscriber\",\"\",IF('Enrollment Form'!$G133='Enrollment Form'!$H133,\"Y\",\"N\")))","v":""},{"$f":"IF($B126=\"N\",\"\",IF(AND(COUNTIFS('Enrollment Form'!$H$11:$H$1000,'Enrollment Form'!$H133,'Enrollment Form'!$B$11:$B$1000,'Enrollment Form'!$B133)>1,'Enrollment Form'!$H133<>\"\"),\"N\",\"Y\"))","v":""},{"$f":"IF($B126=\"N\",\"\",IF(LEN('Enrollment Form'!$Y133)=0,\"\",IF(LEN('Enrollment Form'!$Y133)<>5,\"N\",\"Y\")))","v":""},{"$f":"IF($B126=\"N\",\"\",IF(LEN('Enrollment Form'!$AD133=0),\"\",IF(LEN('Enrollment Form'!$AD133)<>5,\"N\",\"Y\")))","v":""},{"$f":"IF($B126=\"N\",\"\",IF(LEN('Enrollment Form'!$BL133=0),\"\",IF(LEN('Enrollment Form'!$BL133)<>5,\"N\",\"Y\")))","v":""},{"$f":"IF($B126=\"N\",\"\",IF(LEN('Enrollment Form'!$AE133)=0,\"\",IF(LEN('Enrollment Form'!$AE133)<>10,\"N\",\"Y\")))","v":""},{"$f":"IF($B126=\"N\",\"\",IF(LEN('Enrollment Form'!$AF133)=0,\"\",IF(LEN('Enrollment Form'!$AF133)<>10,\"N\",\"Y\")))","v":""},{"$f":"IF('Enrollment Form'!$O133<>\"Graded\",\"-\",IF(AND('Enrollment Form'!$O133=\"Graded\",'Enrollment Form'!$AO133<>\"\"),\"Y\",\"N\"))","v":"-"},{"$f":"IF($B126=\"N\",\"\",IF(OR('Enrollment Form'!$B133<>\"Subscriber\",'Enrollment Form'!$C133=\"ROC\"),\"-\",IF(AND('Enrollment Form'!$B133=\"Subscriber\",'Enrollment Form'!$C133=\"Enroll\",'Enrollment Form'!$AJ133<>\"\"),\"Y\",\"N\")))","v":""},{"$f":"IF($B126=\"N\",\"\",IF(OR('Enrollment Form'!$B133<>\"Subscriber\",'Enrollment Form'!$C133=\"ROC\"),\"-\",IF(AND('Enrollment Form'!$B133=\"Subscriber\",'Enrollment Form'!$C133=\"Enroll\",'Enrollment Form'!$AK133<>\"\"),\"Y\",\"N\")))","v":""},{"$f":"IF($B126=\"N\",\"\",IF(OR('Enrollment Form'!$B133<>\"Subscriber\",'Enrollment Form'!$C133=\"ROC\"),\"-\",IF(AND('Enrollment Form'!$B133=\"Subscriber\",'Enrollment Form'!$C133=\"Enroll\",'Enrollment Form'!$AL133<>\"\"),\"Y\",\"N\")))","v":""},{"$f":"IF($B126=\"N\",\"\",IF(OR('Enrollment Form'!$B133<>\"Subscriber\",'Enrollment Form'!$C133=\"ROC\"),\"-\",IF(AND('Enrollment Form'!$B133=\"Subscriber\",'Enrollment Form'!$C133=\"Enroll\",'Enrollment Form'!$AM133<>\"\"),\"Y\",\"N\")))","v":""},{"$f":"IF($B126=\"N\",\"\",IF(OR('Enrollment Form'!$B133<>\"Subscriber\",'Enrollment Form'!$C133=\"ROC\"),\"-\",IF(AND('Enrollment Form'!$B133=\"Subscriber\",'Enrollment Form'!$C133=\"Enroll\",'Enrollment Form'!$AN133<>\"\"),\"Y\",\"N\")))","v":""},{"$f":"IF($B126=\"N\",\"\",IF(OR('Enrollment Form'!$B133<>\"Subscriber\",'Enrollment Form'!$C133=\"ROC\"),\"-\",IF(AND('Enrollment Form'!$B133=\"Subscriber\",'Enrollment Form'!$C133=\"Enroll\",'Enrollment Form'!$AP133<>\"\"),\"Y\",\"N\")))","v":""},{"$f":"IF($B126=\"N\",\"\",IF($Q126=\"-\",\"-\",IF(AND($Q126=\"Y\",'Enrollment Form'!$AP133=\"No\"),\"-\",IF(AND($Q126=\"Y\",'Enrollment Form'!$AP133=\"Yes\",'Enrollment Form'!$AQ133<>\"\"),\"Y\",\"N\"))))","v":""},{"$f":"IF($B126=\"N\",\"\",IF(OR('Enrollment Form'!$B133<>\"Subscriber\",'Enrollment Form'!$C133=\"ROC\"),\"-\",IF(AND('Enrollment Form'!$B133=\"Subscriber\",'Enrollment Form'!$C133=\"Enroll\",'Enrollment Form'!$CO133<>\"\"),\"Y\",\"N\")))","v":""},{"$f":"IF($B126=\"N\",\"\",IF($S126=\"-\",\"-\",IF(AND($S126=\"Y\",'Enrollment Form'!$CO133=\"No\"),\"-\",IF(AND($S126=\"Y\",'Enrollment Form'!$CO133=\"Yes\",'Enrollment Form'!$CP133<>\"\"),\"Y\",\"N\"))))","v":""},{"$f":"IF(OR('Enrollment Form'!$AV133=\"Yes\",'Enrollment Form'!$AV133=\"\"),\"-\",IF(AND('Enrollment Form'!$AV133=\"No\",ISERROR(FIND(\"HMO\",VLOOKUP('Enrollment Form'!G133,'Enrollment Form'!H$11:J$1000,3,FALSE),1))=FALSE,COUNTA('Enrollment Form'!$AW133:$AZ133)=4),\"Y\",\"N\"))","v":"-"},{"$f":"IF($B126=\"N\",\"\",IF('Enrollment Form'!$B133=\"Subscriber\",\"-\",IF(COUNTA('Enrollment Form'!$BE133,'Enrollment Form'!$BG133)=2,\"Y\",\"N\")))","v":""},{"$f":"IF($B126=\"N\",\"\",IF(OR('Enrollment Form'!$AU133=\"\",'Enrollment Form'!$AU133=\"No\"),\"-\",IF(AND('Enrollment Form'!$AU133=\"Yes\",COUNTA('Enrollment Form'!$CK133)=1),\"Y\",\"N\")))","v":""},{"$f":"IF(OR('Enrollment Form'!$CK133=\"\",'Enrollment Form'!$CK133=\"No\"),\"-\",IF(COUNTA('Enrollment Form'!$CM133:$CN133)=2,\"Y\",\"N\"))","v":"-"},{"$f":"IF($B126=\"N\",\"\",IF(COUNTIF('Enrollment Form'!$CZ133:$DO133,\"Other\")=COUNTA('Enrollment Form'!$DF133,'Enrollment Form'!$DA133,'Enrollment Form'!$DK133,'Enrollment Form'!$DP133),\"Y\",\"N\"))","v":""},{"$f":"IF($B126=\"N\",\"\",IF(OR('Enrollment Form'!B133<>\"Subscriber\",'Enrollment Form'!C133=\"ROC\",COUNTIF('Enrollment Form'!AS133:AT133,\"Yes\")>=1),\"-\",IF(AND('Enrollment Form'!C133=\"Enroll\",COUNTIF('Enrollment Form'!AS133:AT133,\"No\")=2,'Enrollment Form'!AU133=\"\"),\"N\",\"Y\")))","v":""},{"$f":"IF(OR(B126=\"N\",'Enrollment Form'!B133<>\"Subscriber\",'Enrollment Form'!C133=\"ROC\",'Enrollment Form'!O133<>\"Multiple of Salary\"),\"-\",IF(COUNTA('Enrollment Form'!T133:U133)<2,\"N\",\"Y\"))","v":"-"},{"$f":"IF(B126=\"N\",\"\",IF(OR('Enrollment Form'!C133=\"ROC\",'Enrollment Form'!B133<>\"Subscriber\",'Enrollment Form'!O133=\"Waive\",'Enrollment Form'!O133=\"\"),\"-\",IF('Enrollment Form'!P133=\"\",\"N\",\"Y\")))","v":""},{"$f":"IF($B126=\"N\",\"\",IF(AND('Enrollment Form'!$C133=\"ROC\",'Enrollment Form'!$DS133<>\"\"),\"Y\",IF(AND('Enrollment Form'!$C133=\"ROC\",'Enrollment Form'!$DS133=\"\"),\"N\",IF(AND('Enrollment Form'!$C133=\"Enroll\",'Enrollment Form'!$B133=\"Subscriber\",'Enrollment Form'!$CQ133=\"No\",'Enrollment Form'!$DS133=\"\"),\"N\",IF(AND('Enrollment Form'!$C133=\"Enroll\",'Enrollment Form'!$B133=\"Subscriber\",'Enrollment Form'!$CQ133=\"Yes\"),\"-\",\"Y\")))))","v":""},{"$f":"IF($B126=\"N\",\"\",IF(AND('Enrollment Form'!$C133=\"ROC\",'Enrollment Form'!$DT133<>\"\"),\"Y\",IF(AND('Enrollment Form'!$C133=\"ROC\",'Enrollment Form'!$DT133=\"\"),\"N\",IF(AND('Enrollment Form'!$C133=\"Enroll\",'Enrollment Form'!$B133=\"Subscriber\",'Enrollment Form'!$CQ133=\"No\",'Enrollment Form'!$DT133=\"\"),\"N\",IF(AND('Enrollment Form'!$C133=\"Enroll\",'Enrollment Form'!$B133=\"Subscriber\",'Enrollment Form'!$CQ133=\"Yes\"),\"-\",\"Y\")))))","v":""},{"$f":"IF('Enrollment Form'!AH133=\"\",\"\",IF(ISERROR(SEARCH(\".\",'Enrollment Form'!AH133,SEARCH(\"@\",'Enrollment Form'!AH133))),\"N\",\"Y\"))","v":""},{"$f":"IF(OR($B126=\"N\",'Enrollment Form'!$G133=\"\"),\"\",IF('Enrollment Form'!$B133<>\"Subscriber\",\"-\",IF(COUNTIF('Enrollment Form'!$AS133:$AT133,\"Yes\")=2,\"N\",\"Y\")))","v":""},{"$f":"IF(OR('Enrollment Form'!$CC133=\"\",'Enrollment Form'!$CC133=\"No\"),\"-\",IF(AND('Enrollment Form'!$CC133=\"Yes\",'Enrollment Form'!$CD133=\"\"),\"N\",\"Y\"))","v":"-"},{"$f":"IF(OR('Enrollment Form'!$CE133=\"\",'Enrollment Form'!$CE133=\"No\"),\"-\",IF(AND('Enrollment Form'!$CE133=\"Yes\",'Enrollment Form'!$CF133=\"\"),\"N\",\"Y\"))","v":"-"},{"$f":"IF(OR('Enrollment Form'!$CG133=\"\",'Enrollment Form'!$CG133=\"No\"),\"-\",IF(AND('Enrollment Form'!$CG133=\"Yes\",'Enrollment Form'!$CH133=\"\"),\"N\",\"Y\"))","v":"-"},{"$f":"IF(OR('Enrollment Form'!$CG133=\"\",'Enrollment Form'!$CG133=\"No\"),\"-\",IF(AND('Enrollment Form'!$CG133=\"Yes\",'Enrollment Form'!$CI133=\"\"),\"N\",\"Y\"))","v":"-"},{"$f":"IF('Enrollment Form'!B133<>\"Subscriber\",\"-\",IF(AND('Enrollment Form'!B133=\"Subscriber\",'Enrollment Form'!C133=\"Enroll\",'Enrollment Form'!AA133=\"\"),\"N\",\"Y\"))","v":"-"},{"$f":"IF(OR('Enrollment Form'!B133=\"Subscriber\",'Enrollment Form'!B133=\"\"),\"-\",IF('Enrollment Form'!BI133=\"\",\"N\",\"Y\"))","v":"-"},{"$f":"IF('Enrollment Form'!B133<>\"Subscriber\",\"-\",IF(AND('Enrollment Form'!B133=\"Subscriber\",'Enrollment Form'!G133=\"\"),\"N\",\"Y\"))","v":"-"},{"$f":"IF('Enrollment Form'!A133=\"\",\"\",IF('Enrollment Form'!B133=\"Subscriber\",\"-\",IF(AND('Enrollment Form'!B133<>\"Subscriber\",'Enrollment Form'!G133='Enrollment Form'!H133),\"N\",\"Y\")))","v":""},0]
[134,{"$f":"IF('Enrollment Form'!$A134<>\"\",\"Y\",\"N\")","v":"N"},{"$f":"IF(AND('Enrollment Form'!$B134=\"\",'Enrollment Form'!$C134<>\"\"),\"N\",IF($B127=\"N\",\"\",\"Y\"))","v":""},{"$f":"IF(OR($B127=\"N\",'Enrollment Form'!G134=\"\"),\"\",IF('Enrollment Form'!$B134<>\"Subscriber\",\"\",IF('Enrollment Form'!$G134='Enrollment Form'!$H134,\"Y\",\"N\")))","v":""},{"$f":"IF($B127=\"N\",\"\",IF(AND(COUNTIFS('Enrollment Form'!$H$11:$H$1000,'Enrollment Form'!$H134,'Enrollment Form'!$B$11:$B$1000,'Enrollment Form'!$B134)>1,'Enrollment Form'!$H134<>\"\"),\"N\",\"Y\"))","v":""},{"$f":"IF($B127=\"N\",\"\",IF(LEN('Enrollment Form'!$Y134)=0,\"\",IF(LEN('Enrollment Form'!$Y134)<>5,\"N\",\"Y\")))","v":""},{"$f":"IF($B127=\"N\",\"\",IF(LEN('Enrollment Form'!$AD134=0),\"\",IF(LEN('Enrollment Form'!$AD134)<>5,\"N\",\"Y\")))","v":""},{"$f":"IF($B127=\"N\",\"\",IF(LEN('Enrollment Form'!$BL134=0),\"\",IF(LEN('Enrollment Form'!$BL134)<>5,\"N\",\"Y\")))","v":""},{"$f":"IF($B127=\"N\",\"\",IF(LEN('Enrollment Form'!$AE134)=0,\"\",IF(LEN('Enrollment Form'!$AE134)<>10,\"N\",\"Y\")))","v":""},{"$f":"IF($B127=\"N\",\"\",IF(LEN('Enrollment Form'!$AF134)=0,\"\",IF(LEN('Enrollment Form'!$AF134)<>10,\"N\",\"Y\")))","v":""},{"$f":"IF('Enrollment Form'!$O134<>\"Graded\",\"-\",IF(AND('Enrollment Form'!$O134=\"Graded\",'Enrollment Form'!$AO134<>\"\"),\"Y\",\"N\"))","v":"-"},{"$f":"IF($B127=\"N\",\"\",IF(OR('Enrollment Form'!$B134<>\"Subscriber\",'Enrollment Form'!$C134=\"ROC\"),\"-\",IF(AND('Enrollment Form'!$B134=\"Subscriber\",'Enrollment Form'!$C134=\"Enroll\",'Enrollment Form'!$AJ134<>\"\"),\"Y\",\"N\")))","v":""},{"$f":"IF($B127=\"N\",\"\",IF(OR('Enrollment Form'!$B134<>\"Subscriber\",'Enrollment Form'!$C134=\"ROC\"),\"-\",IF(AND('Enrollment Form'!$B134=\"Subscriber\",'Enrollment Form'!$C134=\"Enroll\",'Enrollment Form'!$AK134<>\"\"),\"Y\",\"N\")))","v":""},{"$f":"IF($B127=\"N\",\"\",IF(OR('Enrollment Form'!$B134<>\"Subscriber\",'Enrollment Form'!$C134=\"ROC\"),\"-\",IF(AND('Enrollment Form'!$B134=\"Subscriber\",'Enrollment Form'!$C134=\"Enroll\",'Enrollment Form'!$AL134<>\"\"),\"Y\",\"N\")))","v":""},{"$f":"IF($B127=\"N\",\"\",IF(OR('Enrollment Form'!$B134<>\"Subscriber\",'Enrollment Form'!$C134=\"ROC\"),\"-\",IF(AND('Enrollment Form'!$B134=\"Subscriber\",'Enrollment Form'!$C134=\"Enroll\",'Enrollment Form'!$AM134<>\"\"),\"Y\",\"N\")))","v":""},{"$f":"IF($B127=\"N\",\"\",IF(OR('Enrollment Form'!$B134<>\"Subscriber\",'Enrollment Form'!$C134=\"ROC\"),\"-\",IF(AND('Enrollment Form'!$B134=\"Subscriber\",'Enrollment Form'!$C134=\"Enroll\",'Enrollment Form'!$AN134<>\"\"),\"Y\",\"N\")))","v":""},{"$f":"IF($B127=\"N\",\"\",IF(OR('Enrollment Form'!$B134<>\"Subscriber\",'Enrollment Form'!$C134=\"ROC\"),\"-\",IF(AND('Enrollment Form'!$B134=\"Subscriber\",'Enrollment Form'!$C134=\"Enroll\",'Enrollment Form'!$AP134<>\"\"),\"Y\",\"N\")))","v":""},{"$f":"IF($B127=\"N\",\"\",IF($Q127=\"-\",\"-\",IF(AND($Q127=\"Y\",'Enrollment Form'!$AP134=\"No\"),\"-\",IF(AND($Q127=\"Y\",'Enrollment Form'!$AP134=\"Yes\",'Enrollment Form'!$AQ134<>\"\"),\"Y\",\"N\"))))","v":""},{"$f":"IF($B127=\"N\",\"\",IF(OR('Enrollment Form'!$B134<>\"Subscriber\",'Enrollment Form'!$C134=\"ROC\"),\"-\",IF(AND('Enrollment Form'!$B134=\"Subscriber\",'Enrollment Form'!$C134=\"Enroll\",'Enrollment Form'!$CO134<>\"\"),\"Y\",\"N\")))","v":""},{"$f":"IF($B127=\"N\",\"\",IF($S127=\"-\",\"-\",IF(AND($S127=\"Y\",'Enrollment Form'!$CO134=\"No\"),\"-\",IF(AND($S127=\"Y\",'Enrollment Form'!$CO134=\"Yes\",'Enrollment Form'!$CP134<>\"\"),\"Y\",\"N\"))))","v":""},{"$f":"IF(OR('Enrollment Form'!$AV134=\"Yes\",'Enrollment Form'!$AV134=\"\"),\"-\",IF(AND('Enrollment Form'!$AV134=\"No\",ISERROR(FIND(\"HMO\",VLOOKUP('Enrollment Form'!G134,'Enrollment Form'!H$11:J$1000,3,FALSE),1))=FALSE,COUNTA('Enrollment Form'!$AW134:$AZ134)=4),\"Y\",\"N\"))","v":"-"},{"$f":"IF($B127=\"N\",\"\",IF('Enrollment Form'!$B134=\"Subscriber\",\"-\",IF(COUNTA('Enrollment Form'!$BE134,'Enrollment Form'!$BG134)=2,\"Y\",\"N\")))","v":""},{"$f":"IF($B127=\"N\",\"\",IF(OR('Enrollment Form'!$AU134=\"\",'Enrollment Form'!$AU134=\"No\"),\"-\",IF(AND('Enrollment Form'!$AU134=\"Yes\",COUNTA('Enrollment Form'!$CK134)=1),\"Y\",\"N\")))","v":""},{"$f":"IF(OR('Enrollment Form'!$CK134=\"\",'Enrollment Form'!$CK134=\"No\"),\"-\",IF(COUNTA('Enrollment Form'!$CM134:$CN134)=2,\"Y\",\"N\"))","v":"-"},{"$f":"IF($B127=\"N\",\"\",IF(COUNTIF('Enrollment Form'!$CZ134:$DO134,\"Other\")=COUNTA('Enrollment Form'!$DF134,'Enrollment Form'!$DA134,'Enrollment Form'!$DK134,'Enrollment Form'!$DP134),\"Y\",\"N\"))","v":""},{"$f":"IF($B127=\"N\",\"\",IF(OR('Enrollment Form'!B134<>\"Subscriber\",'Enrollment Form'!C134=\"ROC\",COUNTIF('Enrollment Form'!AS134:AT134,\"Yes\")>=1),\"-\",IF(AND('Enrollment Form'!C134=\"Enroll\",COUNTIF('Enrollment Form'!AS134:AT134,\"No\")=2,'Enrollment Form'!AU134=\"\"),\"N\",\"Y\")))","v":""},{"$f":"IF(OR(B127=\"N\",'Enrollment Form'!B134<>\"Subscriber\",'Enrollment Form'!C134=\"ROC\",'Enrollment Form'!O134<>\"Multiple of Salary\"),\"-\",IF(COUNTA('Enrollment Form'!T134:U134)<2,\"N\",\"Y\"))","v":"-"},{"$f":"IF(B127=\"N\",\"\",IF(OR('Enrollment Form'!C134=\"ROC\",'Enrollment Form'!B134<>\"Subscriber\",'Enrollment Form'!O134=\"Waive\",'Enrollment Form'!O134=\"\"),\"-\",IF('Enrollment Form'!P134=\"\",\"N\",\"Y\")))","v":""},{"$f":"IF($B127=\"N\",\"\",IF(AND('Enrollment Form'!$C134=\"ROC\",'Enrollment Form'!$DS134<>\"\"),\"Y\",IF(AND('Enrollment Form'!$C134=\"ROC\",'Enrollment Form'!$DS134=\"\"),\"N\",IF(AND('Enrollment Form'!$C134=\"Enroll\",'Enrollment Form'!$B134=\"Subscriber\",'Enrollment Form'!$CQ134=\"No\",'Enrollment Form'!$DS134=\"\"),\"N\",IF(AND('Enrollment Form'!$C134=\"Enroll\",'Enrollment Form'!$B134=\"Subscriber\",'Enrollment Form'!$CQ134=\"Yes\"),\"-\",\"Y\")))))","v":""},{"$f":"IF($B127=\"N\",\"\",IF(AND('Enrollment Form'!$C134=\"ROC\",'Enrollment Form'!$DT134<>\"\"),\"Y\",IF(AND('Enrollment Form'!$C134=\"ROC\",'Enrollment Form'!$DT134=\"\"),\"N\",IF(AND('Enrollment Form'!$C134=\"Enroll\",'Enrollment Form'!$B134=\"Subscriber\",'Enrollment Form'!$CQ134=\"No\",'Enrollment Form'!$DT134=\"\"),\"N\",IF(AND('Enrollment Form'!$C134=\"Enroll\",'Enrollment Form'!$B134=\"Subscriber\",'Enrollment Form'!$CQ134=\"Yes\"),\"-\",\"Y\")))))","v":""},{"$f":"IF('Enrollment Form'!AH134=\"\",\"\",IF(ISERROR(SEARCH(\".\",'Enrollment Form'!AH134,SEARCH(\"@\",'Enrollment Form'!AH134))),\"N\",\"Y\"))","v":""},{"$f":"IF(OR($B127=\"N\",'Enrollment Form'!$G134=\"\"),\"\",IF('Enrollment Form'!$B134<>\"Subscriber\",\"-\",IF(COUNTIF('Enrollment Form'!$AS134:$AT134,\"Yes\")=2,\"N\",\"Y\")))","v":""},{"$f":"IF(OR('Enrollment Form'!$CC134=\"\",'Enrollment Form'!$CC134=\"No\"),\"-\",IF(AND('Enrollment Form'!$CC134=\"Yes\",'Enrollment Form'!$CD134=\"\"),\"N\",\"Y\"))","v":"-"},{"$f":"IF(OR('Enrollment Form'!$CE134=\"\",'Enrollment Form'!$CE134=\"No\"),\"-\",IF(AND('Enrollment Form'!$CE134=\"Yes\",'Enrollment Form'!$CF134=\"\"),\"N\",\"Y\"))","v":"-"},{"$f":"IF(OR('Enrollment Form'!$CG134=\"\",'Enrollment Form'!$CG134=\"No\"),\"-\",IF(AND('Enrollment Form'!$CG134=\"Yes\",'Enrollment Form'!$CH134=\"\"),\"N\",\"Y\"))","v":"-"},{"$f":"IF(OR('Enrollment Form'!$CG134=\"\",'Enrollment Form'!$CG134=\"No\"),\"-\",IF(AND('Enrollment Form'!$CG134=\"Yes\",'Enrollment Form'!$CI134=\"\"),\"N\",\"Y\"))","v":"-"},{"$f":"IF('Enrollment Form'!B134<>\"Subscriber\",\"-\",IF(AND('Enrollment Form'!B134=\"Subscriber\",'Enrollment Form'!C134=\"Enroll\",'Enrollment Form'!AA134=\"\"),\"N\",\"Y\"))","v":"-"},{"$f":"IF(OR('Enrollment Form'!B134=\"Subscriber\",'Enrollment Form'!B134=\"\"),\"-\",IF('Enrollment Form'!BI134=\"\",\"N\",\"Y\"))","v":"-"},{"$f":"IF('Enrollment Form'!B134<>\"Subscriber\",\"-\",IF(AND('Enrollment Form'!B134=\"Subscriber\",'Enrollment Form'!G134=\"\"),\"N\",\"Y\"))","v":"-"},{"$f":"IF('Enrollment Form'!A134=\"\",\"\",IF('Enrollment Form'!B134=\"Subscriber\",\"-\",IF(AND('Enrollment Form'!B134<>\"Subscriber\",'Enrollment Form'!G134='Enrollment Form'!H134),\"N\",\"Y\")))","v":""},0]
[135,{"$f":"IF('Enrollment Form'!$A135<>\"\",\"Y\",\"N\")","v":"N"},{"$f":"IF(AND('Enrollment Form'!$B135=\"\",'Enrollment Form'!$C135<>\"\"),\"N\",IF($B128=\"N\",\"\",\"Y\"))","v":""},{"$f":"IF(OR($B128=\"N\",'Enrollment Form'!G135=\"\"),\"\",IF('Enrollment Form'!$B135<>\"Subscriber\",\"\",IF('Enrollment Form'!$G135='Enrollment Form'!$H135,\"Y\",\"N\")))","v":""},{"$f":"IF($B128=\"N\",\"\",IF(AND(COUNTIFS('Enrollment Form'!$H$11:$H$1000,'Enrollment Form'!$H135,'Enrollment Form'!$B$11:$B$1000,'Enrollment Form'!$B135)>1,'Enrollment Form'!$H135<>\"\"),\"N\",\"Y\"))","v":""},{"$f":"IF($B128=\"N\",\"\",IF(LEN('Enrollment Form'!$Y135)=0,\"\",IF(LEN('Enrollment Form'!$Y135)<>5,\"N\",\"Y\")))","v":""},{"$f":"IF($B128=\"N\",\"\",IF(LEN('Enrollment Form'!$AD135=0),\"\",IF(LEN('Enrollment Form'!$AD135)<>5,\"N\",\"Y\")))","v":""},{"$f":"IF($B128=\"N\",\"\",IF(LEN('Enrollment Form'!$BL135=0),\"\",IF(LEN('Enrollment Form'!$BL135)<>5,\"N\",\"Y\")))","v":""},{"$f":"IF($B128=\"N\",\"\",IF(LEN('Enrollment Form'!$AE135)=0,\"\",IF(LEN('Enrollment Form'!$AE135)<>10,\"N\",\"Y\")))","v":""},{"$f":"IF($B128=\"N\",\"\",IF(LEN('Enrollment Form'!$AF135)=0,\"\",IF(LEN('Enrollment Form'!$AF135)<>10,\"N\",\"Y\")))","v":""},{"$f":"IF('Enrollment Form'!$O135<>\"Graded\",\"-\",IF(AND('Enrollment Form'!$O135=\"Graded\",'Enrollment Form'!$AO135<>\"\"),\"Y\",\"N\"))","v":"-"},{"$f":"IF($B128=\"N\",\"\",IF(OR('Enrollment Form'!$B135<>\"Subscriber\",'Enrollment Form'!$C135=\"ROC\"),\"-\",IF(AND('Enrollment Form'!$B135=\"Subscriber\",'Enrollment Form'!$C135=\"Enroll\",'Enrollment Form'!$AJ135<>\"\"),\"Y\",\"N\")))","v":""},{"$f":"IF($B128=\"N\",\"\",IF(OR('Enrollment Form'!$B135<>\"Subscriber\",'Enrollment Form'!$C135=\"ROC\"),\"-\",IF(AND('Enrollment Form'!$B135=\"Subscriber\",'Enrollment Form'!$C135=\"Enroll\",'Enrollment Form'!$AK135<>\"\"),\"Y\",\"N\")))","v":""},{"$f":"IF($B128=\"N\",\"\",IF(OR('Enrollment Form'!$B135<>\"Subscriber\",'Enrollment Form'!$C135=\"ROC\"),\"-\",IF(AND('Enrollment Form'!$B135=\"Subscriber\",'Enrollment Form'!$C135=\"Enroll\",'Enrollment Form'!$AL135<>\"\"),\"Y\",\"N\")))","v":""},{"$f":"IF($B128=\"N\",\"\",IF(OR('Enrollment Form'!$B135<>\"Subscriber\",'Enrollment Form'!$C135=\"ROC\"),\"-\",IF(AND('Enrollment Form'!$B135=\"Subscriber\",'Enrollment Form'!$C135=\"Enroll\",'Enrollment Form'!$AM135<>\"\"),\"Y\",\"N\")))","v":""},{"$f":"IF($B128=\"N\",\"\",IF(OR('Enrollment Form'!$B135<>\"Subscriber\",'Enrollment Form'!$C135=\"ROC\"),\"-\",IF(AND('Enrollment Form'!$B135=\"Subscriber\",'Enrollment Form'!$C135=\"Enroll\",'Enrollment Form'!$AN135<>\"\"),\"Y\",\"N\")))","v":""},{"$f":"IF($B128=\"N\",\"\",IF(OR('Enrollment Form'!$B135<>\"Subscriber\",'Enrollment Form'!$C135=\"ROC\"),\"-\",IF(AND('Enrollment Form'!$B135=\"Subscriber\",'Enrollment Form'!$C135=\"Enroll\",'Enrollment Form'!$AP135<>\"\"),\"Y\",\"N\")))","v":""},{"$f":"IF($B128=\"N\",\"\",IF($Q128=\"-\",\"-\",IF(AND($Q128=\"Y\",'Enrollment Form'!$AP135=\"No\"),\"-\",IF(AND($Q128=\"Y\",'Enrollment Form'!$AP135=\"Yes\",'Enrollment Form'!$AQ135<>\"\"),\"Y\",\"N\"))))","v":""},{"$f":"IF($B128=\"N\",\"\",IF(OR('Enrollment Form'!$B135<>\"Subscriber\",'Enrollment Form'!$C135=\"ROC\"),\"-\",IF(AND('Enrollment Form'!$B135=\"Subscriber\",'Enrollment Form'!$C135=\"Enroll\",'Enrollment Form'!$CO135<>\"\"),\"Y\",\"N\")))","v":""},{"$f":"IF($B128=\"N\",\"\",IF($S128=\"-\",\"-\",IF(AND($S128=\"Y\",'Enrollment Form'!$CO135=\"No\"),\"-\",IF(AND($S128=\"Y\",'Enrollment Form'!$CO135=\"Yes\",'Enrollment Form'!$CP135<>\"\"),\"Y\",\"N\"))))","v":""},{"$f":"IF(OR('Enrollment Form'!$AV135=\"Yes\",'Enrollment Form'!$AV135=\"\"),\"-\",IF(AND('Enrollment Form'!$AV135=\"No\",ISERROR(FIND(\"HMO\",VLOOKUP('Enrollment Form'!G135,'Enrollment Form'!H$11:J$1000,3,FALSE),1))=FALSE,COUNTA('Enrollment Form'!$AW135:$AZ135)=4),\"Y\",\"N\"))","v":"-"},{"$f":"IF($B128=\"N\",\"\",IF('Enrollment Form'!$B135=\"Subscriber\",\"-\",IF(COUNTA('Enrollment Form'!$BE135,'Enrollment Form'!$BG135)=2,\"Y\",\"N\")))","v":""},{"$f":"IF($B128=\"N\",\"\",IF(OR('Enrollment Form'!$AU135=\"\",'Enrollment Form'!$AU135=\"No\"),\"-\",IF(AND('Enrollment Form'!$AU135=\"Yes\",COUNTA('Enrollment Form'!$CK135)=1),\"Y\",\"N\")))","v":""},{"$f":"IF(OR('Enrollment Form'!$CK135=\"\",'Enrollment Form'!$CK135=\"No\"),\"-\",IF(COUNTA('Enrollment Form'!$CM135:$CN135)=2,\"Y\",\"N\"))","v":"-"},{"$f":"IF($B128=\"N\",\"\",IF(COUNTIF('Enrollment Form'!$CZ135:$DO135,\"Other\")=COUNTA('Enrollment Form'!$DF135,'Enrollment Form'!$DA135,'Enrollment Form'!$DK135,'Enrollment Form'!$DP135),\"Y\",\"N\"))","v":""},{"$f":"IF($B128=\"N\",\"\",IF(OR('Enrollment Form'!B135<>\"Subscriber\",'Enrollment Form'!C135=\"ROC\",COUNTIF('Enrollment Form'!AS135:AT135,\"Yes\")>=1),\"-\",IF(AND('Enrollment Form'!C135=\"Enroll\",COUNTIF('Enrollment Form'!AS135:AT135,\"No\")=2,'Enrollment Form'!AU135=\"\"),\"N\",\"Y\")))","v":""},{"$f":"IF(OR(B128=\"N\",'Enrollment Form'!B135<>\"Subscriber\",'Enrollment Form'!C135=\"ROC\",'Enrollment Form'!O135<>\"Multiple of Salary\"),\"-\",IF(COUNTA('Enrollment Form'!T135:U135)<2,\"N\",\"Y\"))","v":"-"},{"$f":"IF(B128=\"N\",\"\",IF(OR('Enrollment Form'!C135=\"ROC\",'Enrollment Form'!B135<>\"Subscriber\",'Enrollment Form'!O135=\"Waive\",'Enrollment Form'!O135=\"\"),\"-\",IF('Enrollment Form'!P135=\"\",\"N\",\"Y\")))","v":""},{"$f":"IF($B128=\"N\",\"\",IF(AND('Enrollment Form'!$C135=\"ROC\",'Enrollment Form'!$DS135<>\"\"),\"Y\",IF(AND('Enrollment Form'!$C135=\"ROC\",'Enrollment Form'!$DS135=\"\"),\"N\",IF(AND('Enrollment Form'!$C135=\"Enroll\",'Enrollment Form'!$B135=\"Subscriber\",'Enrollment Form'!$CQ135=\"No\",'Enrollment Form'!$DS135=\"\"),\"N\",IF(AND('Enrollment Form'!$C135=\"Enroll\",'Enrollment Form'!$B135=\"Subscriber\",'Enrollment Form'!$CQ135=\"Yes\"),\"-\",\"Y\")))))","v":""},{"$f":"IF($B128=\"N\",\"\",IF(AND('Enrollment Form'!$C135=\"ROC\",'Enrollment Form'!$DT135<>\"\"),\"Y\",IF(AND('Enrollment Form'!$C135=\"ROC\",'Enrollment Form'!$DT135=\"\"),\"N\",IF(AND('Enrollment Form'!$C135=\"Enroll\",'Enrollment Form'!$B135=\"Subscriber\",'Enrollment Form'!$CQ135=\"No\",'Enrollment Form'!$DT135=\"\"),\"N\",IF(AND('Enrollment Form'!$C135=\"Enroll\",'Enrollment Form'!$B135=\"Subscriber\",'Enrollment Form'!$CQ135=\"Yes\"),\"-\",\"Y\")))))","v":""},{"$f":"IF('Enrollment Form'!AH135=\"\",\"\",IF(ISERROR(SEARCH(\".\",'Enrollment Form'!AH135,SEARCH(\"@\",'Enrollment Form'!AH135))),\"N\",\"Y\"))","v":""},{"$f":"IF(OR($B128=\"N\",'Enrollment Form'!$G135=\"\"),\"\",IF('Enrollment Form'!$B135<>\"Subscriber\",\"-\",IF(COUNTIF('Enrollment Form'!$AS135:$AT135,\"Yes\")=2,\"N\",\"Y\")))","v":""},{"$f":"IF(OR('Enrollment Form'!$CC135=\"\",'Enrollment Form'!$CC135=\"No\"),\"-\",IF(AND('Enrollment Form'!$CC135=\"Yes\",'Enrollment Form'!$CD135=\"\"),\"N\",\"Y\"))","v":"-"},{"$f":"IF(OR('Enrollment Form'!$CE135=\"\",'Enrollment Form'!$CE135=\"No\"),\"-\",IF(AND('Enrollment Form'!$CE135=\"Yes\",'Enrollment Form'!$CF135=\"\"),\"N\",\"Y\"))","v":"-"},{"$f":"IF(OR('Enrollment Form'!$CG135=\"\",'Enrollment Form'!$CG135=\"No\"),\"-\",IF(AND('Enrollment Form'!$CG135=\"Yes\",'Enrollment Form'!$CH135=\"\"),\"N\",\"Y\"))","v":"-"},{"$f":"IF(OR('Enrollment Form'!$CG135=\"\",'Enrollment Form'!$CG135=\"No\"),\"-\",IF(AND('Enrollment Form'!$CG135=\"Yes\",'Enrollment Form'!$CI135=\"\"),\"N\",\"Y\"))","v":"-"},{"$f":"IF('Enrollment Form'!B135<>\"Subscriber\",\"-\",IF(AND('Enrollment Form'!B135=\"Subscriber\",'Enrollment Form'!C135=\"Enroll\",'Enrollment Form'!AA135=\"\"),\"N\",\"Y\"))","v":"-"},{"$f":"IF(OR('Enrollment Form'!B135=\"Subscriber\",'Enrollment Form'!B135=\"\"),\"-\",IF('Enrollment Form'!BI135=\"\",\"N\",\"Y\"))","v":"-"},{"$f":"IF('Enrollment Form'!B135<>\"Subscriber\",\"-\",IF(AND('Enrollment Form'!B135=\"Subscriber\",'Enrollment Form'!G135=\"\"),\"N\",\"Y\"))","v":"-"},{"$f":"IF('Enrollment Form'!A135=\"\",\"\",IF('Enrollment Form'!B135=\"Subscriber\",\"-\",IF(AND('Enrollment Form'!B135<>\"Subscriber\",'Enrollment Form'!G135='Enrollment Form'!H135),\"N\",\"Y\")))","v":""},0]
[136,{"$f":"IF('Enrollment Form'!$A136<>\"\",\"Y\",\"N\")","v":"N"},{"$f":"IF(AND('Enrollment Form'!$B136=\"\",'Enrollment Form'!$C136<>\"\"),\"N\",IF($B129=\"N\",\"\",\"Y\"))","v":""},{"$f":"IF(OR($B129=\"N\",'Enrollment Form'!G136=\"\"),\"\",IF('Enrollment Form'!$B136<>\"Subscriber\",\"\",IF('Enrollment Form'!$G136='Enrollment Form'!$H136,\"Y\",\"N\")))","v":""},{"$f":"IF($B129=\"N\",\"\",IF(AND(COUNTIFS('Enrollment Form'!$H$11:$H$1000,'Enrollment Form'!$H136,'Enrollment Form'!$B$11:$B$1000,'Enrollment Form'!$B136)>1,'Enrollment Form'!$H136<>\"\"),\"N\",\"Y\"))","v":""},{"$f":"IF($B129=\"N\",\"\",IF(LEN('Enrollment Form'!$Y136)=0,\"\",IF(LEN('Enrollment Form'!$Y136)<>5,\"N\",\"Y\")))","v":""},{"$f":"IF($B129=\"N\",\"\",IF(LEN('Enrollment Form'!$AD136=0),\"\",IF(LEN('Enrollment Form'!$AD136)<>5,\"N\",\"Y\")))","v":""},{"$f":"IF($B129=\"N\",\"\",IF(LEN('Enrollment Form'!$BL136=0),\"\",IF(LEN('Enrollment Form'!$BL136)<>5,\"N\",\"Y\")))","v":""},{"$f":"IF($B129=\"N\",\"\",IF(LEN('Enrollment Form'!$AE136)=0,\"\",IF(LEN('Enrollment Form'!$AE136)<>10,\"N\",\"Y\")))","v":""},{"$f":"IF($B129=\"N\",\"\",IF(LEN('Enrollment Form'!$AF136)=0,\"\",IF(LEN('Enrollment Form'!$AF136)<>10,\"N\",\"Y\")))","v":""},{"$f":"IF('Enrollment Form'!$O136<>\"Graded\",\"-\",IF(AND('Enrollment Form'!$O136=\"Graded\",'Enrollment Form'!$AO136<>\"\"),\"Y\",\"N\"))","v":"-"},{"$f":"IF($B129=\"N\",\"\",IF(OR('Enrollment Form'!$B136<>\"Subscriber\",'Enrollment Form'!$C136=\"ROC\"),\"-\",IF(AND('Enrollment Form'!$B136=\"Subscriber\",'Enrollment Form'!$C136=\"Enroll\",'Enrollment Form'!$AJ136<>\"\"),\"Y\",\"N\")))","v":""},{"$f":"IF($B129=\"N\",\"\",IF(OR('Enrollment Form'!$B136<>\"Subscriber\",'Enrollment Form'!$C136=\"ROC\"),\"-\",IF(AND('Enrollment Form'!$B136=\"Subscriber\",'Enrollment Form'!$C136=\"Enroll\",'Enrollment Form'!$AK136<>\"\"),\"Y\",\"N\")))","v":""},{"$f":"IF($B129=\"N\",\"\",IF(OR('Enrollment Form'!$B136<>\"Subscriber\",'Enrollment Form'!$C136=\"ROC\"),\"-\",IF(AND('Enrollment Form'!$B136=\"Subscriber\",'Enrollment Form'!$C136=\"Enroll\",'Enrollment Form'!$AL136<>\"\"),\"Y\",\"N\")))","v":""},{"$f":"IF($B129=\"N\",\"\",IF(OR('Enrollment Form'!$B136<>\"Subscriber\",'Enrollment Form'!$C136=\"ROC\"),\"-\",IF(AND('Enrollment Form'!$B136=\"Subscriber\",'Enrollment Form'!$C136=\"Enroll\",'Enrollment Form'!$AM136<>\"\"),\"Y\",\"N\")))","v":""},{"$f":"IF($B129=\"N\",\"\",IF(OR('Enrollment Form'!$B136<>\"Subscriber\",'Enrollment Form'!$C136=\"ROC\"),\"-\",IF(AND('Enrollment Form'!$B136=\"Subscriber\",'Enrollment Form'!$C136=\"Enroll\",'Enrollment Form'!$AN136<>\"\"),\"Y\",\"N\")))","v":""},{"$f":"IF($B129=\"N\",\"\",IF(OR('Enrollment Form'!$B136<>\"Subscriber\",'Enrollment Form'!$C136=\"ROC\"),\"-\",IF(AND('Enrollment Form'!$B136=\"Subscriber\",'Enrollment Form'!$C136=\"Enroll\",'Enrollment Form'!$AP136<>\"\"),\"Y\",\"N\")))","v":""},{"$f":"IF($B129=\"N\",\"\",IF($Q129=\"-\",\"-\",IF(AND($Q129=\"Y\",'Enrollment Form'!$AP136=\"No\"),\"-\",IF(AND($Q129=\"Y\",'Enrollment Form'!$AP136=\"Yes\",'Enrollment Form'!$AQ136<>\"\"),\"Y\",\"N\"))))","v":""},{"$f":"IF($B129=\"N\",\"\",IF(OR('Enrollment Form'!$B136<>\"Subscriber\",'Enrollment Form'!$C136=\"ROC\"),\"-\",IF(AND('Enrollment Form'!$B136=\"Subscriber\",'Enrollment Form'!$C136=\"Enroll\",'Enrollment Form'!$CO136<>\"\"),\"Y\",\"N\")))","v":""},{"$f":"IF($B129=\"N\",\"\",IF($S129=\"-\",\"-\",IF(AND($S129=\"Y\",'Enrollment Form'!$CO136=\"No\"),\"-\",IF(AND($S129=\"Y\",'Enrollment Form'!$CO136=\"Yes\",'Enrollment Form'!$CP136<>\"\"),\"Y\",\"N\"))))","v":""},{"$f":"IF(OR('Enrollment Form'!$AV136=\"Yes\",'Enrollment Form'!$AV136=\"\"),\"-\",IF(AND('Enrollment Form'!$AV136=\"No\",ISERROR(FIND(\"HMO\",VLOOKUP('Enrollment Form'!G136,'Enrollment Form'!H$11:J$1000,3,FALSE),1))=FALSE,COUNTA('Enrollment Form'!$AW136:$AZ136)=4),\"Y\",\"N\"))","v":"-"},{"$f":"IF($B129=\"N\",\"\",IF('Enrollment Form'!$B136=\"Subscriber\",\"-\",IF(COUNTA('Enrollment Form'!$BE136,'Enrollment Form'!$BG136)=2,\"Y\",\"N\")))","v":""},{"$f":"IF($B129=\"N\",\"\",IF(OR('Enrollment Form'!$AU136=\"\",'Enrollment Form'!$AU136=\"No\"),\"-\",IF(AND('Enrollment Form'!$AU136=\"Yes\",COUNTA('Enrollment Form'!$CK136)=1),\"Y\",\"N\")))","v":""},{"$f":"IF(OR('Enrollment Form'!$CK136=\"\",'Enrollment Form'!$CK136=\"No\"),\"-\",IF(COUNTA('Enrollment Form'!$CM136:$CN136)=2,\"Y\",\"N\"))","v":"-"},{"$f":"IF($B129=\"N\",\"\",IF(COUNTIF('Enrollment Form'!$CZ136:$DO136,\"Other\")=COUNTA('Enrollment Form'!$DF136,'Enrollment Form'!$DA136,'Enrollment Form'!$DK136,'Enrollment Form'!$DP136),\"Y\",\"N\"))","v":""},{"$f":"IF($B129=\"N\",\"\",IF(OR('Enrollment Form'!B136<>\"Subscriber\",'Enrollment Form'!C136=\"ROC\",COUNTIF('Enrollment Form'!AS136:AT136,\"Yes\")>=1),\"-\",IF(AND('Enrollment Form'!C136=\"Enroll\",COUNTIF('Enrollment Form'!AS136:AT136,\"No\")=2,'Enrollment Form'!AU136=\"\"),\"N\",\"Y\")))","v":""},{"$f":"IF(OR(B129=\"N\",'Enrollment Form'!B136<>\"Subscriber\",'Enrollment Form'!C136=\"ROC\",'Enrollment Form'!O136<>\"Multiple of Salary\"),\"-\",IF(COUNTA('Enrollment Form'!T136:U136)<2,\"N\",\"Y\"))","v":"-"},{"$f":"IF(B129=\"N\",\"\",IF(OR('Enrollment Form'!C136=\"ROC\",'Enrollment Form'!B136<>\"Subscriber\",'Enrollment Form'!O136=\"Waive\",'Enrollment Form'!O136=\"\"),\"-\",IF('Enrollment Form'!P136=\"\",\"N\",\"Y\")))","v":""},{"$f":"IF($B129=\"N\",\"\",IF(AND('Enrollment Form'!$C136=\"ROC\",'Enrollment Form'!$DS136<>\"\"),\"Y\",IF(AND('Enrollment Form'!$C136=\"ROC\",'Enrollment Form'!$DS136=\"\"),\"N\",IF(AND('Enrollment Form'!$C136=\"Enroll\",'Enrollment Form'!$B136=\"Subscriber\",'Enrollment Form'!$CQ136=\"No\",'Enrollment Form'!$DS136=\"\"),\"N\",IF(AND('Enrollment Form'!$C136=\"Enroll\",'Enrollment Form'!$B136=\"Subscriber\",'Enrollment Form'!$CQ136=\"Yes\"),\"-\",\"Y\")))))","v":""},{"$f":"IF($B129=\"N\",\"\",IF(AND('Enrollment Form'!$C136=\"ROC\",'Enrollment Form'!$DT136<>\"\"),\"Y\",IF(AND('Enrollment Form'!$C136=\"ROC\",'Enrollment Form'!$DT136=\"\"),\"N\",IF(AND('Enrollment Form'!$C136=\"Enroll\",'Enrollment Form'!$B136=\"Subscriber\",'Enrollment Form'!$CQ136=\"No\",'Enrollment Form'!$DT136=\"\"),\"N\",IF(AND('Enrollment Form'!$C136=\"Enroll\",'Enrollment Form'!$B136=\"Subscriber\",'Enrollment Form'!$CQ136=\"Yes\"),\"-\",\"Y\")))))","v":""},{"$f":"IF('Enrollment Form'!AH136=\"\",\"\",IF(ISERROR(SEARCH(\".\",'Enrollment Form'!AH136,SEARCH(\"@\",'Enrollment Form'!AH136))),\"N\",\"Y\"))","v":""},{"$f":"IF(OR($B129=\"N\",'Enrollment Form'!$G136=\"\"),\"\",IF('Enrollment Form'!$B136<>\"Subscriber\",\"-\",IF(COUNTIF('Enrollment Form'!$AS136:$AT136,\"Yes\")=2,\"N\",\"Y\")))","v":""},{"$f":"IF(OR('Enrollment Form'!$CC136=\"\",'Enrollment Form'!$CC136=\"No\"),\"-\",IF(AND('Enrollment Form'!$CC136=\"Yes\",'Enrollment Form'!$CD136=\"\"),\"N\",\"Y\"))","v":"-"},{"$f":"IF(OR('Enrollment Form'!$CE136=\"\",'Enrollment Form'!$CE136=\"No\"),\"-\",IF(AND('Enrollment Form'!$CE136=\"Yes\",'Enrollment Form'!$CF136=\"\"),\"N\",\"Y\"))","v":"-"},{"$f":"IF(OR('Enrollment Form'!$CG136=\"\",'Enrollment Form'!$CG136=\"No\"),\"-\",IF(AND('Enrollment Form'!$CG136=\"Yes\",'Enrollment Form'!$CH136=\"\"),\"N\",\"Y\"))","v":"-"},{"$f":"IF(OR('Enrollment Form'!$CG136=\"\",'Enrollment Form'!$CG136=\"No\"),\"-\",IF(AND('Enrollment Form'!$CG136=\"Yes\",'Enrollment Form'!$CI136=\"\"),\"N\",\"Y\"))","v":"-"},{"$f":"IF('Enrollment Form'!B136<>\"Subscriber\",\"-\",IF(AND('Enrollment Form'!B136=\"Subscriber\",'Enrollment Form'!C136=\"Enroll\",'Enrollment Form'!AA136=\"\"),\"N\",\"Y\"))","v":"-"},{"$f":"IF(OR('Enrollment Form'!B136=\"Subscriber\",'Enrollment Form'!B136=\"\"),\"-\",IF('Enrollment Form'!BI136=\"\",\"N\",\"Y\"))","v":"-"},{"$f":"IF('Enrollment Form'!B136<>\"Subscriber\",\"-\",IF(AND('Enrollment Form'!B136=\"Subscriber\",'Enrollment Form'!G136=\"\"),\"N\",\"Y\"))","v":"-"},{"$f":"IF('Enrollment Form'!A136=\"\",\"\",IF('Enrollment Form'!B136=\"Subscriber\",\"-\",IF(AND('Enrollment Form'!B136<>\"Subscriber\",'Enrollment Form'!G136='Enrollment Form'!H136),\"N\",\"Y\")))","v":""},0]
[137,{"$f":"IF('Enrollment Form'!$A137<>\"\",\"Y\",\"N\")","v":"N"},{"$f":"IF(AND('Enrollment Form'!$B137=\"\",'Enrollment Form'!$C137<>\"\"),\"N\",IF($B130=\"N\",\"\",\"Y\"))","v":""},{"$f":"IF(OR($B130=\"N\",'Enrollment Form'!G137=\"\"),\"\",IF('Enrollment Form'!$B137<>\"Subscriber\",\"\",IF('Enrollment Form'!$G137='Enrollment Form'!$H137,\"Y\",\"N\")))","v":""},{"$f":"IF($B130=\"N\",\"\",IF(AND(COUNTIFS('Enrollment Form'!$H$11:$H$1000,'Enrollment Form'!$H137,'Enrollment Form'!$B$11:$B$1000,'Enrollment Form'!$B137)>1,'Enrollment Form'!$H137<>\"\"),\"N\",\"Y\"))","v":""},{"$f":"IF($B130=\"N\",\"\",IF(LEN('Enrollment Form'!$Y137)=0,\"\",IF(LEN('Enrollment Form'!$Y137)<>5,\"N\",\"Y\")))","v":""},{"$f":"IF($B130=\"N\",\"\",IF(LEN('Enrollment Form'!$AD137=0),\"\",IF(LEN('Enrollment Form'!$AD137)<>5,\"N\",\"Y\")))","v":""},{"$f":"IF($B130=\"N\",\"\",IF(LEN('Enrollment Form'!$BL137=0),\"\",IF(LEN('Enrollment Form'!$BL137)<>5,\"N\",\"Y\")))","v":""},{"$f":"IF($B130=\"N\",\"\",IF(LEN('Enrollment Form'!$AE137)=0,\"\",IF(LEN('Enrollment Form'!$AE137)<>10,\"N\",\"Y\")))","v":""},{"$f":"IF($B130=\"N\",\"\",IF(LEN('Enrollment Form'!$AF137)=0,\"\",IF(LEN('Enrollment Form'!$AF137)<>10,\"N\",\"Y\")))","v":""},{"$f":"IF('Enrollment Form'!$O137<>\"Graded\",\"-\",IF(AND('Enrollment Form'!$O137=\"Graded\",'Enrollment Form'!$AO137<>\"\"),\"Y\",\"N\"))","v":"-"},{"$f":"IF($B130=\"N\",\"\",IF(OR('Enrollment Form'!$B137<>\"Subscriber\",'Enrollment Form'!$C137=\"ROC\"),\"-\",IF(AND('Enrollment Form'!$B137=\"Subscriber\",'Enrollment Form'!$C137=\"Enroll\",'Enrollment Form'!$AJ137<>\"\"),\"Y\",\"N\")))","v":""},{"$f":"IF($B130=\"N\",\"\",IF(OR('Enrollment Form'!$B137<>\"Subscriber\",'Enrollment Form'!$C137=\"ROC\"),\"-\",IF(AND('Enrollment Form'!$B137=\"Subscriber\",'Enrollment Form'!$C137=\"Enroll\",'Enrollment Form'!$AK137<>\"\"),\"Y\",\"N\")))","v":""},{"$f":"IF($B130=\"N\",\"\",IF(OR('Enrollment Form'!$B137<>\"Subscriber\",'Enrollment Form'!$C137=\"ROC\"),\"-\",IF(AND('Enrollment Form'!$B137=\"Subscriber\",'Enrollment Form'!$C137=\"Enroll\",'Enrollment Form'!$AL137<>\"\"),\"Y\",\"N\")))","v":""},{"$f":"IF($B130=\"N\",\"\",IF(OR('Enrollment Form'!$B137<>\"Subscriber\",'Enrollment Form'!$C137=\"ROC\"),\"-\",IF(AND('Enrollment Form'!$B137=\"Subscriber\",'Enrollment Form'!$C137=\"Enroll\",'Enrollment Form'!$AM137<>\"\"),\"Y\",\"N\")))","v":""},{"$f":"IF($B130=\"N\",\"\",IF(OR('Enrollment Form'!$B137<>\"Subscriber\",'Enrollment Form'!$C137=\"ROC\"),\"-\",IF(AND('Enrollment Form'!$B137=\"Subscriber\",'Enrollment Form'!$C137=\"Enroll\",'Enrollment Form'!$AN137<>\"\"),\"Y\",\"N\")))","v":""},{"$f":"IF($B130=\"N\",\"\",IF(OR('Enrollment Form'!$B137<>\"Subscriber\",'Enrollment Form'!$C137=\"ROC\"),\"-\",IF(AND('Enrollment Form'!$B137=\"Subscriber\",'Enrollment Form'!$C137=\"Enroll\",'Enrollment Form'!$AP137<>\"\"),\"Y\",\"N\")))","v":""},{"$f":"IF($B130=\"N\",\"\",IF($Q130=\"-\",\"-\",IF(AND($Q130=\"Y\",'Enrollment Form'!$AP137=\"No\"),\"-\",IF(AND($Q130=\"Y\",'Enrollment Form'!$AP137=\"Yes\",'Enrollment Form'!$AQ137<>\"\"),\"Y\",\"N\"))))","v":""},{"$f":"IF($B130=\"N\",\"\",IF(OR('Enrollment Form'!$B137<>\"Subscriber\",'Enrollment Form'!$C137=\"ROC\"),\"-\",IF(AND('Enrollment Form'!$B137=\"Subscriber\",'Enrollment Form'!$C137=\"Enroll\",'Enrollment Form'!$CO137<>\"\"),\"Y\",\"N\")))","v":""},{"$f":"IF($B130=\"N\",\"\",IF($S130=\"-\",\"-\",IF(AND($S130=\"Y\",'Enrollment Form'!$CO137=\"No\"),\"-\",IF(AND($S130=\"Y\",'Enrollment Form'!$CO137=\"Yes\",'Enrollment Form'!$CP137<>\"\"),\"Y\",\"N\"))))","v":""},{"$f":"IF(OR('Enrollment Form'!$AV137=\"Yes\",'Enrollment Form'!$AV137=\"\"),\"-\",IF(AND('Enrollment Form'!$AV137=\"No\",ISERROR(FIND(\"HMO\",VLOOKUP('Enrollment Form'!G137,'Enrollment Form'!H$11:J$1000,3,FALSE),1))=FALSE,COUNTA('Enrollment Form'!$AW137:$AZ137)=4),\"Y\",\"N\"))","v":"-"},{"$f":"IF($B130=\"N\",\"\",IF('Enrollment Form'!$B137=\"Subscriber\",\"-\",IF(COUNTA('Enrollment Form'!$BE137,'Enrollment Form'!$BG137)=2,\"Y\",\"N\")))","v":""},{"$f":"IF($B130=\"N\",\"\",IF(OR('Enrollment Form'!$AU137=\"\",'Enrollment Form'!$AU137=\"No\"),\"-\",IF(AND('Enrollment Form'!$AU137=\"Yes\",COUNTA('Enrollment Form'!$CK137)=1),\"Y\",\"N\")))","v":""},{"$f":"IF(OR('Enrollment Form'!$CK137=\"\",'Enrollment Form'!$CK137=\"No\"),\"-\",IF(COUNTA('Enrollment Form'!$CM137:$CN137)=2,\"Y\",\"N\"))","v":"-"},{"$f":"IF($B130=\"N\",\"\",IF(COUNTIF('Enrollment Form'!$CZ137:$DO137,\"Other\")=COUNTA('Enrollment Form'!$DF137,'Enrollment Form'!$DA137,'Enrollment Form'!$DK137,'Enrollment Form'!$DP137),\"Y\",\"N\"))","v":""},{"$f":"IF($B130=\"N\",\"\",IF(OR('Enrollment Form'!B137<>\"Subscriber\",'Enrollment Form'!C137=\"ROC\",COUNTIF('Enrollment Form'!AS137:AT137,\"Yes\")>=1),\"-\",IF(AND('Enrollment Form'!C137=\"Enroll\",COUNTIF('Enrollment Form'!AS137:AT137,\"No\")=2,'Enrollment Form'!AU137=\"\"),\"N\",\"Y\")))","v":""},{"$f":"IF(OR(B130=\"N\",'Enrollment Form'!B137<>\"Subscriber\",'Enrollment Form'!C137=\"ROC\",'Enrollment Form'!O137<>\"Multiple of Salary\"),\"-\",IF(COUNTA('Enrollment Form'!T137:U137)<2,\"N\",\"Y\"))","v":"-"},{"$f":"IF(B130=\"N\",\"\",IF(OR('Enrollment Form'!C137=\"ROC\",'Enrollment Form'!B137<>\"Subscriber\",'Enrollment Form'!O137=\"Waive\",'Enrollment Form'!O137=\"\"),\"-\",IF('Enrollment Form'!P137=\"\",\"N\",\"Y\")))","v":""},{"$f":"IF($B130=\"N\",\"\",IF(AND('Enrollment Form'!$C137=\"ROC\",'Enrollment Form'!$DS137<>\"\"),\"Y\",IF(AND('Enrollment Form'!$C137=\"ROC\",'Enrollment Form'!$DS137=\"\"),\"N\",IF(AND('Enrollment Form'!$C137=\"Enroll\",'Enrollment Form'!$B137=\"Subscriber\",'Enrollment Form'!$CQ137=\"No\",'Enrollment Form'!$DS137=\"\"),\"N\",IF(AND('Enrollment Form'!$C137=\"Enroll\",'Enrollment Form'!$B137=\"Subscriber\",'Enrollment Form'!$CQ137=\"Yes\"),\"-\",\"Y\")))))","v":""},{"$f":"IF($B130=\"N\",\"\",IF(AND('Enrollment Form'!$C137=\"ROC\",'Enrollment Form'!$DT137<>\"\"),\"Y\",IF(AND('Enrollment Form'!$C137=\"ROC\",'Enrollment Form'!$DT137=\"\"),\"N\",IF(AND('Enrollment Form'!$C137=\"Enroll\",'Enrollment Form'!$B137=\"Subscriber\",'Enrollment Form'!$CQ137=\"No\",'Enrollment Form'!$DT137=\"\"),\"N\",IF(AND('Enrollment Form'!$C137=\"Enroll\",'Enrollment Form'!$B137=\"Subscriber\",'Enrollment Form'!$CQ137=\"Yes\"),\"-\",\"Y\")))))","v":""},{"$f":"IF('Enrollment Form'!AH137=\"\",\"\",IF(ISERROR(SEARCH(\".\",'Enrollment Form'!AH137,SEARCH(\"@\",'Enrollment Form'!AH137))),\"N\",\"Y\"))","v":""},{"$f":"IF(OR($B130=\"N\",'Enrollment Form'!$G137=\"\"),\"\",IF('Enrollment Form'!$B137<>\"Subscriber\",\"-\",IF(COUNTIF('Enrollment Form'!$AS137:$AT137,\"Yes\")=2,\"N\",\"Y\")))","v":""},{"$f":"IF(OR('Enrollment Form'!$CC137=\"\",'Enrollment Form'!$CC137=\"No\"),\"-\",IF(AND('Enrollment Form'!$CC137=\"Yes\",'Enrollment Form'!$CD137=\"\"),\"N\",\"Y\"))","v":"-"},{"$f":"IF(OR('Enrollment Form'!$CE137=\"\",'Enrollment Form'!$CE137=\"No\"),\"-\",IF(AND('Enrollment Form'!$CE137=\"Yes\",'Enrollment Form'!$CF137=\"\"),\"N\",\"Y\"))","v":"-"},{"$f":"IF(OR('Enrollment Form'!$CG137=\"\",'Enrollment Form'!$CG137=\"No\"),\"-\",IF(AND('Enrollment Form'!$CG137=\"Yes\",'Enrollment Form'!$CH137=\"\"),\"N\",\"Y\"))","v":"-"},{"$f":"IF(OR('Enrollment Form'!$CG137=\"\",'Enrollment Form'!$CG137=\"No\"),\"-\",IF(AND('Enrollment Form'!$CG137=\"Yes\",'Enrollment Form'!$CI137=\"\"),\"N\",\"Y\"))","v":"-"},{"$f":"IF('Enrollment Form'!B137<>\"Subscriber\",\"-\",IF(AND('Enrollment Form'!B137=\"Subscriber\",'Enrollment Form'!C137=\"Enroll\",'Enrollment Form'!AA137=\"\"),\"N\",\"Y\"))","v":"-"},{"$f":"IF(OR('Enrollment Form'!B137=\"Subscriber\",'Enrollment Form'!B137=\"\"),\"-\",IF('Enrollment Form'!BI137=\"\",\"N\",\"Y\"))","v":"-"},{"$f":"IF('Enrollment Form'!B137<>\"Subscriber\",\"-\",IF(AND('Enrollment Form'!B137=\"Subscriber\",'Enrollment Form'!G137=\"\"),\"N\",\"Y\"))","v":"-"},{"$f":"IF('Enrollment Form'!A137=\"\",\"\",IF('Enrollment Form'!B137=\"Subscriber\",\"-\",IF(AND('Enrollment Form'!B137<>\"Subscriber\",'Enrollment Form'!G137='Enrollment Form'!H137),\"N\",\"Y\")))","v":""},0]
[138,{"$f":"IF('Enrollment Form'!$A138<>\"\",\"Y\",\"N\")","v":"N"},{"$f":"IF(AND('Enrollment Form'!$B138=\"\",'Enrollment Form'!$C138<>\"\"),\"N\",IF($B131=\"N\",\"\",\"Y\"))","v":""},{"$f":"IF(OR($B131=\"N\",'Enrollment Form'!G138=\"\"),\"\",IF('Enrollment Form'!$B138<>\"Subscriber\",\"\",IF('Enrollment Form'!$G138='Enrollment Form'!$H138,\"Y\",\"N\")))","v":""},{"$f":"IF($B131=\"N\",\"\",IF(AND(COUNTIFS('Enrollment Form'!$H$11:$H$1000,'Enrollment Form'!$H138,'Enrollment Form'!$B$11:$B$1000,'Enrollment Form'!$B138)>1,'Enrollment Form'!$H138<>\"\"),\"N\",\"Y\"))","v":""},{"$f":"IF($B131=\"N\",\"\",IF(LEN('Enrollment Form'!$Y138)=0,\"\",IF(LEN('Enrollment Form'!$Y138)<>5,\"N\",\"Y\")))","v":""},{"$f":"IF($B131=\"N\",\"\",IF(LEN('Enrollment Form'!$AD138=0),\"\",IF(LEN('Enrollment Form'!$AD138)<>5,\"N\",\"Y\")))","v":""},{"$f":"IF($B131=\"N\",\"\",IF(LEN('Enrollment Form'!$BL138=0),\"\",IF(LEN('Enrollment Form'!$BL138)<>5,\"N\",\"Y\")))","v":""},{"$f":"IF($B131=\"N\",\"\",IF(LEN('Enrollment Form'!$AE138)=0,\"\",IF(LEN('Enrollment Form'!$AE138)<>10,\"N\",\"Y\")))","v":""},{"$f":"IF($B131=\"N\",\"\",IF(LEN('Enrollment Form'!$AF138)=0,\"\",IF(LEN('Enrollment Form'!$AF138)<>10,\"N\",\"Y\")))","v":""},{"$f":"IF('Enrollment Form'!$O138<>\"Graded\",\"-\",IF(AND('Enrollment Form'!$O138=\"Graded\",'Enrollment Form'!$AO138<>\"\"),\"Y\",\"N\"))","v":"-"},{"$f":"IF($B131=\"N\",\"\",IF(OR('Enrollment Form'!$B138<>\"Subscriber\",'Enrollment Form'!$C138=\"ROC\"),\"-\",IF(AND('Enrollment Form'!$B138=\"Subscriber\",'Enrollment Form'!$C138=\"Enroll\",'Enrollment Form'!$AJ138<>\"\"),\"Y\",\"N\")))","v":""},{"$f":"IF($B131=\"N\",\"\",IF(OR('Enrollment Form'!$B138<>\"Subscriber\",'Enrollment Form'!$C138=\"ROC\"),\"-\",IF(AND('Enrollment Form'!$B138=\"Subscriber\",'Enrollment Form'!$C138=\"Enroll\",'Enrollment Form'!$AK138<>\"\"),\"Y\",\"N\")))","v":""},{"$f":"IF($B131=\"N\",\"\",IF(OR('Enrollment Form'!$B138<>\"Subscriber\",'Enrollment Form'!$C138=\"ROC\"),\"-\",IF(AND('Enrollment Form'!$B138=\"Subscriber\",'Enrollment Form'!$C138=\"Enroll\",'Enrollment Form'!$AL138<>\"\"),\"Y\",\"N\")))","v":""},{"$f":"IF($B131=\"N\",\"\",IF(OR('Enrollment Form'!$B138<>\"Subscriber\",'Enrollment Form'!$C138=\"ROC\"),\"-\",IF(AND('Enrollment Form'!$B138=\"Subscriber\",'Enrollment Form'!$C138=\"Enroll\",'Enrollment Form'!$AM138<>\"\"),\"Y\",\"N\")))","v":""},{"$f":"IF($B131=\"N\",\"\",IF(OR('Enrollment Form'!$B138<>\"Subscriber\",'Enrollment Form'!$C138=\"ROC\"),\"-\",IF(AND('Enrollment Form'!$B138=\"Subscriber\",'Enrollment Form'!$C138=\"Enroll\",'Enrollment Form'!$AN138<>\"\"),\"Y\",\"N\")))","v":""},{"$f":"IF($B131=\"N\",\"\",IF(OR('Enrollment Form'!$B138<>\"Subscriber\",'Enrollment Form'!$C138=\"ROC\"),\"-\",IF(AND('Enrollment Form'!$B138=\"Subscriber\",'Enrollment Form'!$C138=\"Enroll\",'Enrollment Form'!$AP138<>\"\"),\"Y\",\"N\")))","v":""},{"$f":"IF($B131=\"N\",\"\",IF($Q131=\"-\",\"-\",IF(AND($Q131=\"Y\",'Enrollment Form'!$AP138=\"No\"),\"-\",IF(AND($Q131=\"Y\",'Enrollment Form'!$AP138=\"Yes\",'Enrollment Form'!$AQ138<>\"\"),\"Y\",\"N\"))))","v":""},{"$f":"IF($B131=\"N\",\"\",IF(OR('Enrollment Form'!$B138<>\"Subscriber\",'Enrollment Form'!$C138=\"ROC\"),\"-\",IF(AND('Enrollment Form'!$B138=\"Subscriber\",'Enrollment Form'!$C138=\"Enroll\",'Enrollment Form'!$CO138<>\"\"),\"Y\",\"N\")))","v":""},{"$f":"IF($B131=\"N\",\"\",IF($S131=\"-\",\"-\",IF(AND($S131=\"Y\",'Enrollment Form'!$CO138=\"No\"),\"-\",IF(AND($S131=\"Y\",'Enrollment Form'!$CO138=\"Yes\",'Enrollment Form'!$CP138<>\"\"),\"Y\",\"N\"))))","v":""},{"$f":"IF(OR('Enrollment Form'!$AV138=\"Yes\",'Enrollment Form'!$AV138=\"\"),\"-\",IF(AND('Enrollment Form'!$AV138=\"No\",ISERROR(FIND(\"HMO\",VLOOKUP('Enrollment Form'!G138,'Enrollment Form'!H$11:J$1000,3,FALSE),1))=FALSE,COUNTA('Enrollment Form'!$AW138:$AZ138)=4),\"Y\",\"N\"))","v":"-"},{"$f":"IF($B131=\"N\",\"\",IF('Enrollment Form'!$B138=\"Subscriber\",\"-\",IF(COUNTA('Enrollment Form'!$BE138,'Enrollment Form'!$BG138)=2,\"Y\",\"N\")))","v":""},{"$f":"IF($B131=\"N\",\"\",IF(OR('Enrollment Form'!$AU138=\"\",'Enrollment Form'!$AU138=\"No\"),\"-\",IF(AND('Enrollment Form'!$AU138=\"Yes\",COUNTA('Enrollment Form'!$CK138)=1),\"Y\",\"N\")))","v":""},{"$f":"IF(OR('Enrollment Form'!$CK138=\"\",'Enrollment Form'!$CK138=\"No\"),\"-\",IF(COUNTA('Enrollment Form'!$CM138:$CN138)=2,\"Y\",\"N\"))","v":"-"},{"$f":"IF($B131=\"N\",\"\",IF(COUNTIF('Enrollment Form'!$CZ138:$DO138,\"Other\")=COUNTA('Enrollment Form'!$DF138,'Enrollment Form'!$DA138,'Enrollment Form'!$DK138,'Enrollment Form'!$DP138),\"Y\",\"N\"))","v":""},{"$f":"IF($B131=\"N\",\"\",IF(OR('Enrollment Form'!B138<>\"Subscriber\",'Enrollment Form'!C138=\"ROC\",COUNTIF('Enrollment Form'!AS138:AT138,\"Yes\")>=1),\"-\",IF(AND('Enrollment Form'!C138=\"Enroll\",COUNTIF('Enrollment Form'!AS138:AT138,\"No\")=2,'Enrollment Form'!AU138=\"\"),\"N\",\"Y\")))","v":""},{"$f":"IF(OR(B131=\"N\",'Enrollment Form'!B138<>\"Subscriber\",'Enrollment Form'!C138=\"ROC\",'Enrollment Form'!O138<>\"Multiple of Salary\"),\"-\",IF(COUNTA('Enrollment Form'!T138:U138)<2,\"N\",\"Y\"))","v":"-"},{"$f":"IF(B131=\"N\",\"\",IF(OR('Enrollment Form'!C138=\"ROC\",'Enrollment Form'!B138<>\"Subscriber\",'Enrollment Form'!O138=\"Waive\",'Enrollment Form'!O138=\"\"),\"-\",IF('Enrollment Form'!P138=\"\",\"N\",\"Y\")))","v":""},{"$f":"IF($B131=\"N\",\"\",IF(AND('Enrollment Form'!$C138=\"ROC\",'Enrollment Form'!$DS138<>\"\"),\"Y\",IF(AND('Enrollment Form'!$C138=\"ROC\",'Enrollment Form'!$DS138=\"\"),\"N\",IF(AND('Enrollment Form'!$C138=\"Enroll\",'Enrollment Form'!$B138=\"Subscriber\",'Enrollment Form'!$CQ138=\"No\",'Enrollment Form'!$DS138=\"\"),\"N\",IF(AND('Enrollment Form'!$C138=\"Enroll\",'Enrollment Form'!$B138=\"Subscriber\",'Enrollment Form'!$CQ138=\"Yes\"),\"-\",\"Y\")))))","v":""},{"$f":"IF($B131=\"N\",\"\",IF(AND('Enrollment Form'!$C138=\"ROC\",'Enrollment Form'!$DT138<>\"\"),\"Y\",IF(AND('Enrollment Form'!$C138=\"ROC\",'Enrollment Form'!$DT138=\"\"),\"N\",IF(AND('Enrollment Form'!$C138=\"Enroll\",'Enrollment Form'!$B138=\"Subscriber\",'Enrollment Form'!$CQ138=\"No\",'Enrollment Form'!$DT138=\"\"),\"N\",IF(AND('Enrollment Form'!$C138=\"Enroll\",'Enrollment Form'!$B138=\"Subscriber\",'Enrollment Form'!$CQ138=\"Yes\"),\"-\",\"Y\")))))","v":""},{"$f":"IF('Enrollment Form'!AH138=\"\",\"\",IF(ISERROR(SEARCH(\".\",'Enrollment Form'!AH138,SEARCH(\"@\",'Enrollment Form'!AH138))),\"N\",\"Y\"))","v":""},{"$f":"IF(OR($B131=\"N\",'Enrollment Form'!$G138=\"\"),\"\",IF('Enrollment Form'!$B138<>\"Subscriber\",\"-\",IF(COUNTIF('Enrollment Form'!$AS138:$AT138,\"Yes\")=2,\"N\",\"Y\")))","v":""},{"$f":"IF(OR('Enrollment Form'!$CC138=\"\",'Enrollment Form'!$CC138=\"No\"),\"-\",IF(AND('Enrollment Form'!$CC138=\"Yes\",'Enrollment Form'!$CD138=\"\"),\"N\",\"Y\"))","v":"-"},{"$f":"IF(OR('Enrollment Form'!$CE138=\"\",'Enrollment Form'!$CE138=\"No\"),\"-\",IF(AND('Enrollment Form'!$CE138=\"Yes\",'Enrollment Form'!$CF138=\"\"),\"N\",\"Y\"))","v":"-"},{"$f":"IF(OR('Enrollment Form'!$CG138=\"\",'Enrollment Form'!$CG138=\"No\"),\"-\",IF(AND('Enrollment Form'!$CG138=\"Yes\",'Enrollment Form'!$CH138=\"\"),\"N\",\"Y\"))","v":"-"},{"$f":"IF(OR('Enrollment Form'!$CG138=\"\",'Enrollment Form'!$CG138=\"No\"),\"-\",IF(AND('Enrollment Form'!$CG138=\"Yes\",'Enrollment Form'!$CI138=\"\"),\"N\",\"Y\"))","v":"-"},{"$f":"IF('Enrollment Form'!B138<>\"Subscriber\",\"-\",IF(AND('Enrollment Form'!B138=\"Subscriber\",'Enrollment Form'!C138=\"Enroll\",'Enrollment Form'!AA138=\"\"),\"N\",\"Y\"))","v":"-"},{"$f":"IF(OR('Enrollment Form'!B138=\"Subscriber\",'Enrollment Form'!B138=\"\"),\"-\",IF('Enrollment Form'!BI138=\"\",\"N\",\"Y\"))","v":"-"},{"$f":"IF('Enrollment Form'!B138<>\"Subscriber\",\"-\",IF(AND('Enrollment Form'!B138=\"Subscriber\",'Enrollment Form'!G138=\"\"),\"N\",\"Y\"))","v":"-"},{"$f":"IF('Enrollment Form'!A138=\"\",\"\",IF('Enrollment Form'!B138=\"Subscriber\",\"-\",IF(AND('Enrollment Form'!B138<>\"Subscriber\",'Enrollment Form'!G138='Enrollment Form'!H138),\"N\",\"Y\")))","v":""},0]
[139,{"$f":"IF('Enrollment Form'!$A139<>\"\",\"Y\",\"N\")","v":"N"},{"$f":"IF(AND('Enrollment Form'!$B139=\"\",'Enrollment Form'!$C139<>\"\"),\"N\",IF($B132=\"N\",\"\",\"Y\"))","v":""},{"$f":"IF(OR($B132=\"N\",'Enrollment Form'!G139=\"\"),\"\",IF('Enrollment Form'!$B139<>\"Subscriber\",\"\",IF('Enrollment Form'!$G139='Enrollment Form'!$H139,\"Y\",\"N\")))","v":""},{"$f":"IF($B132=\"N\",\"\",IF(AND(COUNTIFS('Enrollment Form'!$H$11:$H$1000,'Enrollment Form'!$H139,'Enrollment Form'!$B$11:$B$1000,'Enrollment Form'!$B139)>1,'Enrollment Form'!$H139<>\"\"),\"N\",\"Y\"))","v":""},{"$f":"IF($B132=\"N\",\"\",IF(LEN('Enrollment Form'!$Y139)=0,\"\",IF(LEN('Enrollment Form'!$Y139)<>5,\"N\",\"Y\")))","v":""},{"$f":"IF($B132=\"N\",\"\",IF(LEN('Enrollment Form'!$AD139=0),\"\",IF(LEN('Enrollment Form'!$AD139)<>5,\"N\",\"Y\")))","v":""},{"$f":"IF($B132=\"N\",\"\",IF(LEN('Enrollment Form'!$BL139=0),\"\",IF(LEN('Enrollment Form'!$BL139)<>5,\"N\",\"Y\")))","v":""},{"$f":"IF($B132=\"N\",\"\",IF(LEN('Enrollment Form'!$AE139)=0,\"\",IF(LEN('Enrollment Form'!$AE139)<>10,\"N\",\"Y\")))","v":""},{"$f":"IF($B132=\"N\",\"\",IF(LEN('Enrollment Form'!$AF139)=0,\"\",IF(LEN('Enrollment Form'!$AF139)<>10,\"N\",\"Y\")))","v":""},{"$f":"IF('Enrollment Form'!$O139<>\"Graded\",\"-\",IF(AND('Enrollment Form'!$O139=\"Graded\",'Enrollment Form'!$AO139<>\"\"),\"Y\",\"N\"))","v":"-"},{"$f":"IF($B132=\"N\",\"\",IF(OR('Enrollment Form'!$B139<>\"Subscriber\",'Enrollment Form'!$C139=\"ROC\"),\"-\",IF(AND('Enrollment Form'!$B139=\"Subscriber\",'Enrollment Form'!$C139=\"Enroll\",'Enrollment Form'!$AJ139<>\"\"),\"Y\",\"N\")))","v":""},{"$f":"IF($B132=\"N\",\"\",IF(OR('Enrollment Form'!$B139<>\"Subscriber\",'Enrollment Form'!$C139=\"ROC\"),\"-\",IF(AND('Enrollment Form'!$B139=\"Subscriber\",'Enrollment Form'!$C139=\"Enroll\",'Enrollment Form'!$AK139<>\"\"),\"Y\",\"N\")))","v":""},{"$f":"IF($B132=\"N\",\"\",IF(OR('Enrollment Form'!$B139<>\"Subscriber\",'Enrollment Form'!$C139=\"ROC\"),\"-\",IF(AND('Enrollment Form'!$B139=\"Subscriber\",'Enrollment Form'!$C139=\"Enroll\",'Enrollment Form'!$AL139<>\"\"),\"Y\",\"N\")))","v":""},{"$f":"IF($B132=\"N\",\"\",IF(OR('Enrollment Form'!$B139<>\"Subscriber\",'Enrollment Form'!$C139=\"ROC\"),\"-\",IF(AND('Enrollment Form'!$B139=\"Subscriber\",'Enrollment Form'!$C139=\"Enroll\",'Enrollment Form'!$AM139<>\"\"),\"Y\",\"N\")))","v":""},{"$f":"IF($B132=\"N\",\"\",IF(OR('Enrollment Form'!$B139<>\"Subscriber\",'Enrollment Form'!$C139=\"ROC\"),\"-\",IF(AND('Enrollment Form'!$B139=\"Subscriber\",'Enrollment Form'!$C139=\"Enroll\",'Enrollment Form'!$AN139<>\"\"),\"Y\",\"N\")))","v":""},{"$f":"IF($B132=\"N\",\"\",IF(OR('Enrollment Form'!$B139<>\"Subscriber\",'Enrollment Form'!$C139=\"ROC\"),\"-\",IF(AND('Enrollment Form'!$B139=\"Subscriber\",'Enrollment Form'!$C139=\"Enroll\",'Enrollment Form'!$AP139<>\"\"),\"Y\",\"N\")))","v":""},{"$f":"IF($B132=\"N\",\"\",IF($Q132=\"-\",\"-\",IF(AND($Q132=\"Y\",'Enrollment Form'!$AP139=\"No\"),\"-\",IF(AND($Q132=\"Y\",'Enrollment Form'!$AP139=\"Yes\",'Enrollment Form'!$AQ139<>\"\"),\"Y\",\"N\"))))","v":""},{"$f":"IF($B132=\"N\",\"\",IF(OR('Enrollment Form'!$B139<>\"Subscriber\",'Enrollment Form'!$C139=\"ROC\"),\"-\",IF(AND('Enrollment Form'!$B139=\"Subscriber\",'Enrollment Form'!$C139=\"Enroll\",'Enrollment Form'!$CO139<>\"\"),\"Y\",\"N\")))","v":""},{"$f":"IF($B132=\"N\",\"\",IF($S132=\"-\",\"-\",IF(AND($S132=\"Y\",'Enrollment Form'!$CO139=\"No\"),\"-\",IF(AND($S132=\"Y\",'Enrollment Form'!$CO139=\"Yes\",'Enrollment Form'!$CP139<>\"\"),\"Y\",\"N\"))))","v":""},{"$f":"IF(OR('Enrollment Form'!$AV139=\"Yes\",'Enrollment Form'!$AV139=\"\"),\"-\",IF(AND('Enrollment Form'!$AV139=\"No\",ISERROR(FIND(\"HMO\",VLOOKUP('Enrollment Form'!G139,'Enrollment Form'!H$11:J$1000,3,FALSE),1))=FALSE,COUNTA('Enrollment Form'!$AW139:$AZ139)=4),\"Y\",\"N\"))","v":"-"},{"$f":"IF($B132=\"N\",\"\",IF('Enrollment Form'!$B139=\"Subscriber\",\"-\",IF(COUNTA('Enrollment Form'!$BE139,'Enrollment Form'!$BG139)=2,\"Y\",\"N\")))","v":""},{"$f":"IF($B132=\"N\",\"\",IF(OR('Enrollment Form'!$AU139=\"\",'Enrollment Form'!$AU139=\"No\"),\"-\",IF(AND('Enrollment Form'!$AU139=\"Yes\",COUNTA('Enrollment Form'!$CK139)=1),\"Y\",\"N\")))","v":""},{"$f":"IF(OR('Enrollment Form'!$CK139=\"\",'Enrollment Form'!$CK139=\"No\"),\"-\",IF(COUNTA('Enrollment Form'!$CM139:$CN139)=2,\"Y\",\"N\"))","v":"-"},{"$f":"IF($B132=\"N\",\"\",IF(COUNTIF('Enrollment Form'!$CZ139:$DO139,\"Other\")=COUNTA('Enrollment Form'!$DF139,'Enrollment Form'!$DA139,'Enrollment Form'!$DK139,'Enrollment Form'!$DP139),\"Y\",\"N\"))","v":""},{"$f":"IF($B132=\"N\",\"\",IF(OR('Enrollment Form'!B139<>\"Subscriber\",'Enrollment Form'!C139=\"ROC\",COUNTIF('Enrollment Form'!AS139:AT139,\"Yes\")>=1),\"-\",IF(AND('Enrollment Form'!C139=\"Enroll\",COUNTIF('Enrollment Form'!AS139:AT139,\"No\")=2,'Enrollment Form'!AU139=\"\"),\"N\",\"Y\")))","v":""},{"$f":"IF(OR(B132=\"N\",'Enrollment Form'!B139<>\"Subscriber\",'Enrollment Form'!C139=\"ROC\",'Enrollment Form'!O139<>\"Multiple of Salary\"),\"-\",IF(COUNTA('Enrollment Form'!T139:U139)<2,\"N\",\"Y\"))","v":"-"},{"$f":"IF(B132=\"N\",\"\",IF(OR('Enrollment Form'!C139=\"ROC\",'Enrollment Form'!B139<>\"Subscriber\",'Enrollment Form'!O139=\"Waive\",'Enrollment Form'!O139=\"\"),\"-\",IF('Enrollment Form'!P139=\"\",\"N\",\"Y\")))","v":""},{"$f":"IF($B132=\"N\",\"\",IF(AND('Enrollment Form'!$C139=\"ROC\",'Enrollment Form'!$DS139<>\"\"),\"Y\",IF(AND('Enrollment Form'!$C139=\"ROC\",'Enrollment Form'!$DS139=\"\"),\"N\",IF(AND('Enrollment Form'!$C139=\"Enroll\",'Enrollment Form'!$B139=\"Subscriber\",'Enrollment Form'!$CQ139=\"No\",'Enrollment Form'!$DS139=\"\"),\"N\",IF(AND('Enrollment Form'!$C139=\"Enroll\",'Enrollment Form'!$B139=\"Subscriber\",'Enrollment Form'!$CQ139=\"Yes\"),\"-\",\"Y\")))))","v":""},{"$f":"IF($B132=\"N\",\"\",IF(AND('Enrollment Form'!$C139=\"ROC\",'Enrollment Form'!$DT139<>\"\"),\"Y\",IF(AND('Enrollment Form'!$C139=\"ROC\",'Enrollment Form'!$DT139=\"\"),\"N\",IF(AND('Enrollment Form'!$C139=\"Enroll\",'Enrollment Form'!$B139=\"Subscriber\",'Enrollment Form'!$CQ139=\"No\",'Enrollment Form'!$DT139=\"\"),\"N\",IF(AND('Enrollment Form'!$C139=\"Enroll\",'Enrollment Form'!$B139=\"Subscriber\",'Enrollment Form'!$CQ139=\"Yes\"),\"-\",\"Y\")))))","v":""},{"$f":"IF('Enrollment Form'!AH139=\"\",\"\",IF(ISERROR(SEARCH(\".\",'Enrollment Form'!AH139,SEARCH(\"@\",'Enrollment Form'!AH139))),\"N\",\"Y\"))","v":""},{"$f":"IF(OR($B132=\"N\",'Enrollment Form'!$G139=\"\"),\"\",IF('Enrollment Form'!$B139<>\"Subscriber\",\"-\",IF(COUNTIF('Enrollment Form'!$AS139:$AT139,\"Yes\")=2,\"N\",\"Y\")))","v":""},{"$f":"IF(OR('Enrollment Form'!$CC139=\"\",'Enrollment Form'!$CC139=\"No\"),\"-\",IF(AND('Enrollment Form'!$CC139=\"Yes\",'Enrollment Form'!$CD139=\"\"),\"N\",\"Y\"))","v":"-"},{"$f":"IF(OR('Enrollment Form'!$CE139=\"\",'Enrollment Form'!$CE139=\"No\"),\"-\",IF(AND('Enrollment Form'!$CE139=\"Yes\",'Enrollment Form'!$CF139=\"\"),\"N\",\"Y\"))","v":"-"},{"$f":"IF(OR('Enrollment Form'!$CG139=\"\",'Enrollment Form'!$CG139=\"No\"),\"-\",IF(AND('Enrollment Form'!$CG139=\"Yes\",'Enrollment Form'!$CH139=\"\"),\"N\",\"Y\"))","v":"-"},{"$f":"IF(OR('Enrollment Form'!$CG139=\"\",'Enrollment Form'!$CG139=\"No\"),\"-\",IF(AND('Enrollment Form'!$CG139=\"Yes\",'Enrollment Form'!$CI139=\"\"),\"N\",\"Y\"))","v":"-"},{"$f":"IF('Enrollment Form'!B139<>\"Subscriber\",\"-\",IF(AND('Enrollment Form'!B139=\"Subscriber\",'Enrollment Form'!C139=\"Enroll\",'Enrollment Form'!AA139=\"\"),\"N\",\"Y\"))","v":"-"},{"$f":"IF(OR('Enrollment Form'!B139=\"Subscriber\",'Enrollment Form'!B139=\"\"),\"-\",IF('Enrollment Form'!BI139=\"\",\"N\",\"Y\"))","v":"-"},{"$f":"IF('Enrollment Form'!B139<>\"Subscriber\",\"-\",IF(AND('Enrollment Form'!B139=\"Subscriber\",'Enrollment Form'!G139=\"\"),\"N\",\"Y\"))","v":"-"},{"$f":"IF('Enrollment Form'!A139=\"\",\"\",IF('Enrollment Form'!B139=\"Subscriber\",\"-\",IF(AND('Enrollment Form'!B139<>\"Subscriber\",'Enrollment Form'!G139='Enrollment Form'!H139),\"N\",\"Y\")))","v":""},{"$f":"COUNTIF(C132:AN132,\"N\")","v":0}]
[140,{"$f":"IF('Enrollment Form'!$A140<>\"\",\"Y\",\"N\")","v":"N"},{"$f":"IF(AND('Enrollment Form'!$B140=\"\",'Enrollment Form'!$C140<>\"\"),\"N\",IF($B133=\"N\",\"\",\"Y\"))","v":""},{"$f":"IF(OR($B133=\"N\",'Enrollment Form'!G140=\"\"),\"\",IF('Enrollment Form'!$B140<>\"Subscriber\",\"\",IF('Enrollment Form'!$G140='Enrollment Form'!$H140,\"Y\",\"N\")))","v":""},{"$f":"IF($B133=\"N\",\"\",IF(AND(COUNTIFS('Enrollment Form'!$H$11:$H$1000,'Enrollment Form'!$H140,'Enrollment Form'!$B$11:$B$1000,'Enrollment Form'!$B140)>1,'Enrollment Form'!$H140<>\"\"),\"N\",\"Y\"))","v":""},{"$f":"IF($B133=\"N\",\"\",IF(LEN('Enrollment Form'!$Y140)=0,\"\",IF(LEN('Enrollment Form'!$Y140)<>5,\"N\",\"Y\")))","v":""},{"$f":"IF($B133=\"N\",\"\",IF(LEN('Enrollment Form'!$AD140=0),\"\",IF(LEN('Enrollment Form'!$AD140)<>5,\"N\",\"Y\")))","v":""},{"$f":"IF($B133=\"N\",\"\",IF(LEN('Enrollment Form'!$BL140=0),\"\",IF(LEN('Enrollment Form'!$BL140)<>5,\"N\",\"Y\")))","v":""},{"$f":"IF($B133=\"N\",\"\",IF(LEN('Enrollment Form'!$AE140)=0,\"\",IF(LEN('Enrollment Form'!$AE140)<>10,\"N\",\"Y\")))","v":""},{"$f":"IF($B133=\"N\",\"\",IF(LEN('Enrollment Form'!$AF140)=0,\"\",IF(LEN('Enrollment Form'!$AF140)<>10,\"N\",\"Y\")))","v":""},{"$f":"IF('Enrollment Form'!$O140<>\"Graded\",\"-\",IF(AND('Enrollment Form'!$O140=\"Graded\",'Enrollment Form'!$AO140<>\"\"),\"Y\",\"N\"))","v":"-"},{"$f":"IF($B133=\"N\",\"\",IF(OR('Enrollment Form'!$B140<>\"Subscriber\",'Enrollment Form'!$C140=\"ROC\"),\"-\",IF(AND('Enrollment Form'!$B140=\"Subscriber\",'Enrollment Form'!$C140=\"Enroll\",'Enrollment Form'!$AJ140<>\"\"),\"Y\",\"N\")))","v":""},{"$f":"IF($B133=\"N\",\"\",IF(OR('Enrollment Form'!$B140<>\"Subscriber\",'Enrollment Form'!$C140=\"ROC\"),\"-\",IF(AND('Enrollment Form'!$B140=\"Subscriber\",'Enrollment Form'!$C140=\"Enroll\",'Enrollment Form'!$AK140<>\"\"),\"Y\",\"N\")))","v":""},{"$f":"IF($B133=\"N\",\"\",IF(OR('Enrollment Form'!$B140<>\"Subscriber\",'Enrollment Form'!$C140=\"ROC\"),\"-\",IF(AND('Enrollment Form'!$B140=\"Subscriber\",'Enrollment Form'!$C140=\"Enroll\",'Enrollment Form'!$AL140<>\"\"),\"Y\",\"N\")))","v":""},{"$f":"IF($B133=\"N\",\"\",IF(OR('Enrollment Form'!$B140<>\"Subscriber\",'Enrollment Form'!$C140=\"ROC\"),\"-\",IF(AND('Enrollment Form'!$B140=\"Subscriber\",'Enrollment Form'!$C140=\"Enroll\",'Enrollment Form'!$AM140<>\"\"),\"Y\",\"N\")))","v":""},{"$f":"IF($B133=\"N\",\"\",IF(OR('Enrollment Form'!$B140<>\"Subscriber\",'Enrollment Form'!$C140=\"ROC\"),\"-\",IF(AND('Enrollment Form'!$B140=\"Subscriber\",'Enrollment Form'!$C140=\"Enroll\",'Enrollment Form'!$AN140<>\"\"),\"Y\",\"N\")))","v":""},{"$f":"IF($B133=\"N\",\"\",IF(OR('Enrollment Form'!$B140<>\"Subscriber\",'Enrollment Form'!$C140=\"ROC\"),\"-\",IF(AND('Enrollment Form'!$B140=\"Subscriber\",'Enrollment Form'!$C140=\"Enroll\",'Enrollment Form'!$AP140<>\"\"),\"Y\",\"N\")))","v":""},{"$f":"IF($B133=\"N\",\"\",IF($Q133=\"-\",\"-\",IF(AND($Q133=\"Y\",'Enrollment Form'!$AP140=\"No\"),\"-\",IF(AND($Q133=\"Y\",'Enrollment Form'!$AP140=\"Yes\",'Enrollment Form'!$AQ140<>\"\"),\"Y\",\"N\"))))","v":""},{"$f":"IF($B133=\"N\",\"\",IF(OR('Enrollment Form'!$B140<>\"Subscriber\",'Enrollment Form'!$C140=\"ROC\"),\"-\",IF(AND('Enrollment Form'!$B140=\"Subscriber\",'Enrollment Form'!$C140=\"Enroll\",'Enrollment Form'!$CO140<>\"\"),\"Y\",\"N\")))","v":""},{"$f":"IF($B133=\"N\",\"\",IF($S133=\"-\",\"-\",IF(AND($S133=\"Y\",'Enrollment Form'!$CO140=\"No\"),\"-\",IF(AND($S133=\"Y\",'Enrollment Form'!$CO140=\"Yes\",'Enrollment Form'!$CP140<>\"\"),\"Y\",\"N\"))))","v":""},{"$f":"IF(OR('Enrollment Form'!$AV140=\"Yes\",'Enrollment Form'!$AV140=\"\"),\"-\",IF(AND('Enrollment Form'!$AV140=\"No\",ISERROR(FIND(\"HMO\",VLOOKUP('Enrollment Form'!G140,'Enrollment Form'!H$11:J$1000,3,FALSE),1))=FALSE,COUNTA('Enrollment Form'!$AW140:$AZ140)=4),\"Y\",\"N\"))","v":"-"},{"$f":"IF($B133=\"N\",\"\",IF('Enrollment Form'!$B140=\"Subscriber\",\"-\",IF(COUNTA('Enrollment Form'!$BE140,'Enrollment Form'!$BG140)=2,\"Y\",\"N\")))","v":""},{"$f":"IF($B133=\"N\",\"\",IF(OR('Enrollment Form'!$AU140=\"\",'Enrollment Form'!$AU140=\"No\"),\"-\",IF(AND('Enrollment Form'!$AU140=\"Yes\",COUNTA('Enrollment Form'!$CK140)=1),\"Y\",\"N\")))","v":""},{"$f":"IF(OR('Enrollment Form'!$CK140=\"\",'Enrollment Form'!$CK140=\"No\"),\"-\",IF(COUNTA('Enrollment Form'!$CM140:$CN140)=2,\"Y\",\"N\"))","v":"-"},{"$f":"IF($B133=\"N\",\"\",IF(COUNTIF('Enrollment Form'!$CZ140:$DO140,\"Other\")=COUNTA('Enrollment Form'!$DF140,'Enrollment Form'!$DA140,'Enrollment Form'!$DK140,'Enrollment Form'!$DP140),\"Y\",\"N\"))","v":""},{"$f":"IF($B133=\"N\",\"\",IF(OR('Enrollment Form'!B140<>\"Subscriber\",'Enrollment Form'!C140=\"ROC\",COUNTIF('Enrollment Form'!AS140:AT140,\"Yes\")>=1),\"-\",IF(AND('Enrollment Form'!C140=\"Enroll\",COUNTIF('Enrollment Form'!AS140:AT140,\"No\")=2,'Enrollment Form'!AU140=\"\"),\"N\",\"Y\")))","v":""},{"$f":"IF(OR(B133=\"N\",'Enrollment Form'!B140<>\"Subscriber\",'Enrollment Form'!C140=\"ROC\",'Enrollment Form'!O140<>\"Multiple of Salary\"),\"-\",IF(COUNTA('Enrollment Form'!T140:U140)<2,\"N\",\"Y\"))","v":"-"},{"$f":"IF(B133=\"N\",\"\",IF(OR('Enrollment Form'!C140=\"ROC\",'Enrollment Form'!B140<>\"Subscriber\",'Enrollment Form'!O140=\"Waive\",'Enrollment Form'!O140=\"\"),\"-\",IF('Enrollment Form'!P140=\"\",\"N\",\"Y\")))","v":""},{"$f":"IF($B133=\"N\",\"\",IF(AND('Enrollment Form'!$C140=\"ROC\",'Enrollment Form'!$DS140<>\"\"),\"Y\",IF(AND('Enrollment Form'!$C140=\"ROC\",'Enrollment Form'!$DS140=\"\"),\"N\",IF(AND('Enrollment Form'!$C140=\"Enroll\",'Enrollment Form'!$B140=\"Subscriber\",'Enrollment Form'!$CQ140=\"No\",'Enrollment Form'!$DS140=\"\"),\"N\",IF(AND('Enrollment Form'!$C140=\"Enroll\",'Enrollment Form'!$B140=\"Subscriber\",'Enrollment Form'!$CQ140=\"Yes\"),\"-\",\"Y\")))))","v":""},{"$f":"IF($B133=\"N\",\"\",IF(AND('Enrollment Form'!$C140=\"ROC\",'Enrollment Form'!$DT140<>\"\"),\"Y\",IF(AND('Enrollment Form'!$C140=\"ROC\",'Enrollment Form'!$DT140=\"\"),\"N\",IF(AND('Enrollment Form'!$C140=\"Enroll\",'Enrollment Form'!$B140=\"Subscriber\",'Enrollment Form'!$CQ140=\"No\",'Enrollment Form'!$DT140=\"\"),\"N\",IF(AND('Enrollment Form'!$C140=\"Enroll\",'Enrollment Form'!$B140=\"Subscriber\",'Enrollment Form'!$CQ140=\"Yes\"),\"-\",\"Y\")))))","v":""},{"$f":"IF('Enrollment Form'!AH140=\"\",\"\",IF(ISERROR(SEARCH(\".\",'Enrollment Form'!AH140,SEARCH(\"@\",'Enrollment Form'!AH140))),\"N\",\"Y\"))","v":""},{"$f":"IF(OR($B133=\"N\",'Enrollment Form'!$G140=\"\"),\"\",IF('Enrollment Form'!$B140<>\"Subscriber\",\"-\",IF(COUNTIF('Enrollment Form'!$AS140:$AT140,\"Yes\")=2,\"N\",\"Y\")))","v":""},{"$f":"IF(OR('Enrollment Form'!$CC140=\"\",'Enrollment Form'!$CC140=\"No\"),\"-\",IF(AND('Enrollment Form'!$CC140=\"Yes\",'Enrollment Form'!$CD140=\"\"),\"N\",\"Y\"))","v":"-"},{"$f":"IF(OR('Enrollment Form'!$CE140=\"\",'Enrollment Form'!$CE140=\"No\"),\"-\",IF(AND('Enrollment Form'!$CE140=\"Yes\",'Enrollment Form'!$CF140=\"\"),\"N\",\"Y\"))","v":"-"},{"$f":"IF(OR('Enrollment Form'!$CG140=\"\",'Enrollment Form'!$CG140=\"No\"),\"-\",IF(AND('Enrollment Form'!$CG140=\"Yes\",'Enrollment Form'!$CH140=\"\"),\"N\",\"Y\"))","v":"-"},{"$f":"IF(OR('Enrollment Form'!$CG140=\"\",'Enrollment Form'!$CG140=\"No\"),\"-\",IF(AND('Enrollment Form'!$CG140=\"Yes\",'Enrollment Form'!$CI140=\"\"),\"N\",\"Y\"))","v":"-"},{"$f":"IF('Enrollment Form'!B140<>\"Subscriber\",\"-\",IF(AND('Enrollment Form'!B140=\"Subscriber\",'Enrollment Form'!C140=\"Enroll\",'Enrollment Form'!AA140=\"\"),\"N\",\"Y\"))","v":"-"},{"$f":"IF(OR('Enrollment Form'!B140=\"Subscriber\",'Enrollment Form'!B140=\"\"),\"-\",IF('Enrollment Form'!BI140=\"\",\"N\",\"Y\"))","v":"-"},{"$f":"IF('Enrollment Form'!B140<>\"Subscriber\",\"-\",IF(AND('Enrollment Form'!B140=\"Subscriber\",'Enrollment Form'!G140=\"\"),\"N\",\"Y\"))","v":"-"},{"$f":"IF('Enrollment Form'!A140=\"\",\"\",IF('Enrollment Form'!B140=\"Subscriber\",\"-\",IF(AND('Enrollment Form'!B140<>\"Subscriber\",'Enrollment Form'!G140='Enrollment Form'!H140),\"N\",\"Y\")))","v":""},0]
[{"$f":"1+A133","v":141},{"$f":"IF('Enrollment Form'!$A141<>\"\",\"Y\",\"N\")","v":"N"},{"$f":"IF(AND('Enrollment Form'!$B141=\"\",'Enrollment Form'!$C141<>\"\"),\"N\",IF($B134=\"N\",\"\",\"Y\"))","v":""},{"$f":"IF(OR($B134=\"N\",'Enrollment Form'!G141=\"\"),\"\",IF('Enrollment Form'!$B141<>\"Subscriber\",\"\",IF('Enrollment Form'!$G141='Enrollment Form'!$H141,\"Y\",\"N\")))","v":""},{"$f":"IF($B134=\"N\",\"\",IF(AND(COUNTIFS('Enrollment Form'!$H$11:$H$1000,'Enrollment Form'!$H141,'Enrollment Form'!$B$11:$B$1000,'Enrollment Form'!$B141)>1,'Enrollment Form'!$H141<>\"\"),\"N\",\"Y\"))","v":""},{"$f":"IF($B134=\"N\",\"\",IF(LEN('Enrollment Form'!$Y141)=0,\"\",IF(LEN('Enrollment Form'!$Y141)<>5,\"N\",\"Y\")))","v":""},{"$f":"IF($B134=\"N\",\"\",IF(LEN('Enrollment Form'!$AD141=0),\"\",IF(LEN('Enrollment Form'!$AD141)<>5,\"N\",\"Y\")))","v":""},{"$f":"IF($B134=\"N\",\"\",IF(LEN('Enrollment Form'!$BL141=0),\"\",IF(LEN('Enrollment Form'!$BL141)<>5,\"N\",\"Y\")))","v":""},{"$f":"IF($B134=\"N\",\"\",IF(LEN('Enrollment Form'!$AE141)=0,\"\",IF(LEN('Enrollment Form'!$AE141)<>10,\"N\",\"Y\")))","v":""},{"$f":"IF($B134=\"N\",\"\",IF(LEN('Enrollment Form'!$AF141)=0,\"\",IF(LEN('Enrollment Form'!$AF141)<>10,\"N\",\"Y\")))","v":""},{"$f":"IF('Enrollment Form'!$O141<>\"Graded\",\"-\",IF(AND('Enrollment Form'!$O141=\"Graded\",'Enrollment Form'!$AO141<>\"\"),\"Y\",\"N\"))","v":"-"},{"$f":"IF($B134=\"N\",\"\",IF(OR('Enrollment Form'!$B141<>\"Subscriber\",'Enrollment Form'!$C141=\"ROC\"),\"-\",IF(AND('Enrollment Form'!$B141=\"Subscriber\",'Enrollment Form'!$C141=\"Enroll\",'Enrollment Form'!$AJ141<>\"\"),\"Y\",\"N\")))","v":""},{"$f":"IF($B134=\"N\",\"\",IF(OR('Enrollment Form'!$B141<>\"Subscriber\",'Enrollment Form'!$C141=\"ROC\"),\"-\",IF(AND('Enrollment Form'!$B141=\"Subscriber\",'Enrollment Form'!$C141=\"Enroll\",'Enrollment Form'!$AK141<>\"\"),\"Y\",\"N\")))","v":""},{"$f":"IF($B134=\"N\",\"\",IF(OR('Enrollment Form'!$B141<>\"Subscriber\",'Enrollment Form'!$C141=\"ROC\"),\"-\",IF(AND('Enrollment Form'!$B141=\"Subscriber\",'Enrollment Form'!$C141=\"Enroll\",'Enrollment Form'!$AL141<>\"\"),\"Y\",\"N\")))","v":""},{"$f":"IF($B134=\"N\",\"\",IF(OR('Enrollment Form'!$B141<>\"Subscriber\",'Enrollment Form'!$C141=\"ROC\"),\"-\",IF(AND('Enrollment Form'!$B141=\"Subscriber\",'Enrollment Form'!$C141=\"Enroll\",'Enrollment Form'!$AM141<>\"\"),\"Y\",\"N\")))","v":""},{"$f":"IF($B134=\"N\",\"\",IF(OR('Enrollment Form'!$B141<>\"Subscriber\",'Enrollment Form'!$C141=\"ROC\"),\"-\",IF(AND('Enrollment Form'!$B141=\"Subscriber\",'Enrollment Form'!$C141=\"Enroll\",'Enrollment Form'!$AN141<>\"\"),\"Y\",\"N\")))","v":""},{"$f":"IF($B134=\"N\",\"\",IF(OR('Enrollment Form'!$B141<>\"Subscriber\",'Enrollment Form'!$C141=\"ROC\"),\"-\",IF(AND('Enrollment Form'!$B141=\"Subscriber\",'Enrollment Form'!$C141=\"Enroll\",'Enrollment Form'!$AP141<>\"\"),\"Y\",\"N\")))","v":""},{"$f":"IF($B134=\"N\",\"\",IF($Q134=\"-\",\"-\",IF(AND($Q134=\"Y\",'Enrollment Form'!$AP141=\"No\"),\"-\",IF(AND($Q134=\"Y\",'Enrollment Form'!$AP141=\"Yes\",'Enrollment Form'!$AQ141<>\"\"),\"Y\",\"N\"))))","v":""},{"$f":"IF($B134=\"N\",\"\",IF(OR('Enrollment Form'!$B141<>\"Subscriber\",'Enrollment Form'!$C141=\"ROC\"),\"-\",IF(AND('Enrollment Form'!$B141=\"Subscriber\",'Enrollment Form'!$C141=\"Enroll\",'Enrollment Form'!$CO141<>\"\"),\"Y\",\"N\")))","v":""},{"$f":"IF($B134=\"N\",\"\",IF($S134=\"-\",\"-\",IF(AND($S134=\"Y\",'Enrollment Form'!$CO141=\"No\"),\"-\",IF(AND($S134=\"Y\",'Enrollment Form'!$CO141=\"Yes\",'Enrollment Form'!$CP141<>\"\"),\"Y\",\"N\"))))","v":""},{"$f":"IF(OR('Enrollment Form'!$AV141=\"Yes\",'Enrollment Form'!$AV141=\"\"),\"-\",IF(AND('Enrollment Form'!$AV141=\"No\",ISERROR(FIND(\"HMO\",VLOOKUP('Enrollment Form'!G141,'Enrollment Form'!H$11:J$1000,3,FALSE),1))=FALSE,COUNTA('Enrollment Form'!$AW141:$AZ141)=4),\"Y\",\"N\"))","v":"-"},{"$f":"IF($B134=\"N\",\"\",IF('Enrollment Form'!$B141=\"Subscriber\",\"-\",IF(COUNTA('Enrollment Form'!$BE141,'Enrollment Form'!$BG141)=2,\"Y\",\"N\")))","v":""},{"$f":"IF($B134=\"N\",\"\",IF(OR('Enrollment Form'!$AU141=\"\",'Enrollment Form'!$AU141=\"No\"),\"-\",IF(AND('Enrollment Form'!$AU141=\"Yes\",COUNTA('Enrollment Form'!$CK141)=1),\"Y\",\"N\")))","v":""},{"$f":"IF(OR('Enrollment Form'!$CK141=\"\",'Enrollment Form'!$CK141=\"No\"),\"-\",IF(COUNTA('Enrollment Form'!$CM141:$CN141)=2,\"Y\",\"N\"))","v":"-"},{"$f":"IF($B134=\"N\",\"\",IF(COUNTIF('Enrollment Form'!$CZ141:$DO141,\"Other\")=COUNTA('Enrollment Form'!$DF141,'Enrollment Form'!$DA141,'Enrollment Form'!$DK141,'Enrollment Form'!$DP141),\"Y\",\"N\"))","v":""},{"$f":"IF($B134=\"N\",\"\",IF(OR('Enrollment Form'!B141<>\"Subscriber\",'Enrollment Form'!C141=\"ROC\",COUNTIF('Enrollment Form'!AS141:AT141,\"Yes\")>=1),\"-\",IF(AND('Enrollment Form'!C141=\"Enroll\",COUNTIF('Enrollment Form'!AS141:AT141,\"No\")=2,'Enrollment Form'!AU141=\"\"),\"N\",\"Y\")))","v":""},{"$f":"IF(OR(B134=\"N\",'Enrollment Form'!B141<>\"Subscriber\",'Enrollment Form'!C141=\"ROC\",'Enrollment Form'!O141<>\"Multiple of Salary\"),\"-\",IF(COUNTA('Enrollment Form'!T141:U141)<2,\"N\",\"Y\"))","v":"-"},{"$f":"IF(B134=\"N\",\"\",IF(OR('Enrollment Form'!C141=\"ROC\",'Enrollment Form'!B141<>\"Subscriber\",'Enrollment Form'!O141=\"Waive\",'Enrollment Form'!O141=\"\"),\"-\",IF('Enrollment Form'!P141=\"\",\"N\",\"Y\")))","v":""},{"$f":"IF($B134=\"N\",\"\",IF(AND('Enrollment Form'!$C141=\"ROC\",'Enrollment Form'!$DS141<>\"\"),\"Y\",IF(AND('Enrollment Form'!$C141=\"ROC\",'Enrollment Form'!$DS141=\"\"),\"N\",IF(AND('Enrollment Form'!$C141=\"Enroll\",'Enrollment Form'!$B141=\"Subscriber\",'Enrollment Form'!$CQ141=\"No\",'Enrollment Form'!$DS141=\"\"),\"N\",IF(AND('Enrollment Form'!$C141=\"Enroll\",'Enrollment Form'!$B141=\"Subscriber\",'Enrollment Form'!$CQ141=\"Yes\"),\"-\",\"Y\")))))","v":""},{"$f":"IF($B134=\"N\",\"\",IF(AND('Enrollment Form'!$C141=\"ROC\",'Enrollment Form'!$DT141<>\"\"),\"Y\",IF(AND('Enrollment Form'!$C141=\"ROC\",'Enrollment Form'!$DT141=\"\"),\"N\",IF(AND('Enrollment Form'!$C141=\"Enroll\",'Enrollment Form'!$B141=\"Subscriber\",'Enrollment Form'!$CQ141=\"No\",'Enrollment Form'!$DT141=\"\"),\"N\",IF(AND('Enrollment Form'!$C141=\"Enroll\",'Enrollment Form'!$B141=\"Subscriber\",'Enrollment Form'!$CQ141=\"Yes\"),\"-\",\"Y\")))))","v":""},{"$f":"IF('Enrollment Form'!AH141=\"\",\"\",IF(ISERROR(SEARCH(\".\",'Enrollment Form'!AH141,SEARCH(\"@\",'Enrollment Form'!AH141))),\"N\",\"Y\"))","v":""},{"$f":"IF(OR($B134=\"N\",'Enrollment Form'!$G141=\"\"),\"\",IF('Enrollment Form'!$B141<>\"Subscriber\",\"-\",IF(COUNTIF('Enrollment Form'!$AS141:$AT141,\"Yes\")=2,\"N\",\"Y\")))","v":""},{"$f":"IF(OR('Enrollment Form'!$CC141=\"\",'Enrollment Form'!$CC141=\"No\"),\"-\",IF(AND('Enrollment Form'!$CC141=\"Yes\",'Enrollment Form'!$CD141=\"\"),\"N\",\"Y\"))","v":"-"},{"$f":"IF(OR('Enrollment Form'!$CE141=\"\",'Enrollment Form'!$CE141=\"No\"),\"-\",IF(AND('Enrollment Form'!$CE141=\"Yes\",'Enrollment Form'!$CF141=\"\"),\"N\",\"Y\"))","v":"-"},{"$f":"IF(OR('Enrollment Form'!$CG141=\"\",'Enrollment Form'!$CG141=\"No\"),\"-\",IF(AND('Enrollment Form'!$CG141=\"Yes\",'Enrollment Form'!$CH141=\"\"),\"N\",\"Y\"))","v":"-"},{"$f":"IF(OR('Enrollment Form'!$CG141=\"\",'Enrollment Form'!$CG141=\"No\"),\"-\",IF(AND('Enrollment Form'!$CG141=\"Yes\",'Enrollment Form'!$CI141=\"\"),\"N\",\"Y\"))","v":"-"},{"$f":"IF('Enrollment Form'!B141<>\"Subscriber\",\"-\",IF(AND('Enrollment Form'!B141=\"Subscriber\",'Enrollment Form'!C141=\"Enroll\",'Enrollment Form'!AA141=\"\"),\"N\",\"Y\"))","v":"-"},{"$f":"IF(OR('Enrollment Form'!B141=\"Subscriber\",'Enrollment Form'!B141=\"\"),\"-\",IF('Enrollment Form'!BI141=\"\",\"N\",\"Y\"))","v":"-"},{"$f":"IF('Enrollment Form'!B141<>\"Subscriber\",\"-\",IF(AND('Enrollment Form'!B141=\"Subscriber\",'Enrollment Form'!G141=\"\"),\"N\",\"Y\"))","v":"-"},{"$f":"IF('Enrollment Form'!A141=\"\",\"\",IF('Enrollment Form'!B141=\"Subscriber\",\"-\",IF(AND('Enrollment Form'!B141<>\"Subscriber\",'Enrollment Form'!G141='Enrollment Form'!H141),\"N\",\"Y\")))","v":""},0]
[142,{"$f":"IF('Enrollment Form'!$A142<>\"\",\"Y\",\"N\")","v":"N"},{"$f":"IF(AND('Enrollment Form'!$B142=\"\",'Enrollment Form'!$C142<>\"\"),\"N\",IF($B135=\"N\",\"\",\"Y\"))","v":""},{"$f":"IF(OR($B135=\"N\",'Enrollment Form'!G142=\"\"),\"\",IF('Enrollment Form'!$B142<>\"Subscriber\",\"\",IF('Enrollment Form'!$G142='Enrollment Form'!$H142,\"Y\",\"N\")))","v":""},{"$f":"IF($B135=\"N\",\"\",IF(AND(COUNTIFS('Enrollment Form'!$H$11:$H$1000,'Enrollment Form'!$H142,'Enrollment Form'!$B$11:$B$1000,'Enrollment Form'!$B142)>1,'Enrollment Form'!$H142<>\"\"),\"N\",\"Y\"))","v":""},{"$f":"IF($B135=\"N\",\"\",IF(LEN('Enrollment Form'!$Y142)=0,\"\",IF(LEN('Enrollment Form'!$Y142)<>5,\"N\",\"Y\")))","v":""},{"$f":"IF($B135=\"N\",\"\",IF(LEN('Enrollment Form'!$AD142=0),\"\",IF(LEN('Enrollment Form'!$AD142)<>5,\"N\",\"Y\")))","v":""},{"$f":"IF($B135=\"N\",\"\",IF(LEN('Enrollment Form'!$BL142=0),\"\",IF(LEN('Enrollment Form'!$BL142)<>5,\"N\",\"Y\")))","v":""},{"$f":"IF($B135=\"N\",\"\",IF(LEN('Enrollment Form'!$AE142)=0,\"\",IF(LEN('Enrollment Form'!$AE142)<>10,\"N\",\"Y\")))","v":""},{"$f":"IF($B135=\"N\",\"\",IF(LEN('Enrollment Form'!$AF142)=0,\"\",IF(LEN('Enrollment Form'!$AF142)<>10,\"N\",\"Y\")))","v":""},{"$f":"IF('Enrollment Form'!$O142<>\"Graded\",\"-\",IF(AND('Enrollment Form'!$O142=\"Graded\",'Enrollment Form'!$AO142<>\"\"),\"Y\",\"N\"))","v":"-"},{"$f":"IF($B135=\"N\",\"\",IF(OR('Enrollment Form'!$B142<>\"Subscriber\",'Enrollment Form'!$C142=\"ROC\"),\"-\",IF(AND('Enrollment Form'!$B142=\"Subscriber\",'Enrollment Form'!$C142=\"Enroll\",'Enrollment Form'!$AJ142<>\"\"),\"Y\",\"N\")))","v":""},{"$f":"IF($B135=\"N\",\"\",IF(OR('Enrollment Form'!$B142<>\"Subscriber\",'Enrollment Form'!$C142=\"ROC\"),\"-\",IF(AND('Enrollment Form'!$B142=\"Subscriber\",'Enrollment Form'!$C142=\"Enroll\",'Enrollment Form'!$AK142<>\"\"),\"Y\",\"N\")))","v":""},{"$f":"IF($B135=\"N\",\"\",IF(OR('Enrollment Form'!$B142<>\"Subscriber\",'Enrollment Form'!$C142=\"ROC\"),\"-\",IF(AND('Enrollment Form'!$B142=\"Subscriber\",'Enrollment Form'!$C142=\"Enroll\",'Enrollment Form'!$AL142<>\"\"),\"Y\",\"N\")))","v":""},{"$f":"IF($B135=\"N\",\"\",IF(OR('Enrollment Form'!$B142<>\"Subscriber\",'Enrollment Form'!$C142=\"ROC\"),\"-\",IF(AND('Enrollment Form'!$B142=\"Subscriber\",'Enrollment Form'!$C142=\"Enroll\",'Enrollment Form'!$AM142<>\"\"),\"Y\",\"N\")))","v":""},{"$f":"IF($B135=\"N\",\"\",IF(OR('Enrollment Form'!$B142<>\"Subscriber\",'Enrollment Form'!$C142=\"ROC\"),\"-\",IF(AND('Enrollment Form'!$B142=\"Subscriber\",'Enrollment Form'!$C142=\"Enroll\",'Enrollment Form'!$AN142<>\"\"),\"Y\",\"N\")))","v":""},{"$f":"IF($B135=\"N\",\"\",IF(OR('Enrollment Form'!$B142<>\"Subscriber\",'Enrollment Form'!$C142=\"ROC\"),\"-\",IF(AND('Enrollment Form'!$B142=\"Subscriber\",'Enrollment Form'!$C142=\"Enroll\",'Enrollment Form'!$AP142<>\"\"),\"Y\",\"N\")))","v":""},{"$f":"IF($B135=\"N\",\"\",IF($Q135=\"-\",\"-\",IF(AND($Q135=\"Y\",'Enrollment Form'!$AP142=\"No\"),\"-\",IF(AND($Q135=\"Y\",'Enrollment Form'!$AP142=\"Yes\",'Enrollment Form'!$AQ142<>\"\"),\"Y\",\"N\"))))","v":""},{"$f":"IF($B135=\"N\",\"\",IF(OR('Enrollment Form'!$B142<>\"Subscriber\",'Enrollment Form'!$C142=\"ROC\"),\"-\",IF(AND('Enrollment Form'!$B142=\"Subscriber\",'Enrollment Form'!$C142=\"Enroll\",'Enrollment Form'!$CO142<>\"\"),\"Y\",\"N\")))","v":""},{"$f":"IF($B135=\"N\",\"\",IF($S135=\"-\",\"-\",IF(AND($S135=\"Y\",'Enrollment Form'!$CO142=\"No\"),\"-\",IF(AND($S135=\"Y\",'Enrollment Form'!$CO142=\"Yes\",'Enrollment Form'!$CP142<>\"\"),\"Y\",\"N\"))))","v":""},{"$f":"IF(OR('Enrollment Form'!$AV142=\"Yes\",'Enrollment Form'!$AV142=\"\"),\"-\",IF(AND('Enrollment Form'!$AV142=\"No\",ISERROR(FIND(\"HMO\",VLOOKUP('Enrollment Form'!G142,'Enrollment Form'!H$11:J$1000,3,FALSE),1))=FALSE,COUNTA('Enrollment Form'!$AW142:$AZ142)=4),\"Y\",\"N\"))","v":"-"},{"$f":"IF($B135=\"N\",\"\",IF('Enrollment Form'!$B142=\"Subscriber\",\"-\",IF(COUNTA('Enrollment Form'!$BE142,'Enrollment Form'!$BG142)=2,\"Y\",\"N\")))","v":""},{"$f":"IF($B135=\"N\",\"\",IF(OR('Enrollment Form'!$AU142=\"\",'Enrollment Form'!$AU142=\"No\"),\"-\",IF(AND('Enrollment Form'!$AU142=\"Yes\",COUNTA('Enrollment Form'!$CK142)=1),\"Y\",\"N\")))","v":""},{"$f":"IF(OR('Enrollment Form'!$CK142=\"\",'Enrollment Form'!$CK142=\"No\"),\"-\",IF(COUNTA('Enrollment Form'!$CM142:$CN142)=2,\"Y\",\"N\"))","v":"-"},{"$f":"IF($B135=\"N\",\"\",IF(COUNTIF('Enrollment Form'!$CZ142:$DO142,\"Other\")=COUNTA('Enrollment Form'!$DF142,'Enrollment Form'!$DA142,'Enrollment Form'!$DK142,'Enrollment Form'!$DP142),\"Y\",\"N\"))","v":""},{"$f":"IF($B135=\"N\",\"\",IF(OR('Enrollment Form'!B142<>\"Subscriber\",'Enrollment Form'!C142=\"ROC\",COUNTIF('Enrollment Form'!AS142:AT142,\"Yes\")>=1),\"-\",IF(AND('Enrollment Form'!C142=\"Enroll\",COUNTIF('Enrollment Form'!AS142:AT142,\"No\")=2,'Enrollment Form'!AU142=\"\"),\"N\",\"Y\")))","v":""},{"$f":"IF(OR(B135=\"N\",'Enrollment Form'!B142<>\"Subscriber\",'Enrollment Form'!C142=\"ROC\",'Enrollment Form'!O142<>\"Multiple of Salary\"),\"-\",IF(COUNTA('Enrollment Form'!T142:U142)<2,\"N\",\"Y\"))","v":"-"},{"$f":"IF(B135=\"N\",\"\",IF(OR('Enrollment Form'!C142=\"ROC\",'Enrollment Form'!B142<>\"Subscriber\",'Enrollment Form'!O142=\"Waive\",'Enrollment Form'!O142=\"\"),\"-\",IF('Enrollment Form'!P142=\"\",\"N\",\"Y\")))","v":""},{"$f":"IF($B135=\"N\",\"\",IF(AND('Enrollment Form'!$C142=\"ROC\",'Enrollment Form'!$DS142<>\"\"),\"Y\",IF(AND('Enrollment Form'!$C142=\"ROC\",'Enrollment Form'!$DS142=\"\"),\"N\",IF(AND('Enrollment Form'!$C142=\"Enroll\",'Enrollment Form'!$B142=\"Subscriber\",'Enrollment Form'!$CQ142=\"No\",'Enrollment Form'!$DS142=\"\"),\"N\",IF(AND('Enrollment Form'!$C142=\"Enroll\",'Enrollment Form'!$B142=\"Subscriber\",'Enrollment Form'!$CQ142=\"Yes\"),\"-\",\"Y\")))))","v":""},{"$f":"IF($B135=\"N\",\"\",IF(AND('Enrollment Form'!$C142=\"ROC\",'Enrollment Form'!$DT142<>\"\"),\"Y\",IF(AND('Enrollment Form'!$C142=\"ROC\",'Enrollment Form'!$DT142=\"\"),\"N\",IF(AND('Enrollment Form'!$C142=\"Enroll\",'Enrollment Form'!$B142=\"Subscriber\",'Enrollment Form'!$CQ142=\"No\",'Enrollment Form'!$DT142=\"\"),\"N\",IF(AND('Enrollment Form'!$C142=\"Enroll\",'Enrollment Form'!$B142=\"Subscriber\",'Enrollment Form'!$CQ142=\"Yes\"),\"-\",\"Y\")))))","v":""},{"$f":"IF('Enrollment Form'!AH142=\"\",\"\",IF(ISERROR(SEARCH(\".\",'Enrollment Form'!AH142,SEARCH(\"@\",'Enrollment Form'!AH142))),\"N\",\"Y\"))","v":""},{"$f":"IF(OR($B135=\"N\",'Enrollment Form'!$G142=\"\"),\"\",IF('Enrollment Form'!$B142<>\"Subscriber\",\"-\",IF(COUNTIF('Enrollment Form'!$AS142:$AT142,\"Yes\")=2,\"N\",\"Y\")))","v":""},{"$f":"IF(OR('Enrollment Form'!$CC142=\"\",'Enrollment Form'!$CC142=\"No\"),\"-\",IF(AND('Enrollment Form'!$CC142=\"Yes\",'Enrollment Form'!$CD142=\"\"),\"N\",\"Y\"))","v":"-"},{"$f":"IF(OR('Enrollment Form'!$CE142=\"\",'Enrollment Form'!$CE142=\"No\"),\"-\",IF(AND('Enrollment Form'!$CE142=\"Yes\",'Enrollment Form'!$CF142=\"\"),\"N\",\"Y\"))","v":"-"},{"$f":"IF(OR('Enrollment Form'!$CG142=\"\",'Enrollment Form'!$CG142=\"No\"),\"-\",IF(AND('Enrollment Form'!$CG142=\"Yes\",'Enrollment Form'!$CH142=\"\"),\"N\",\"Y\"))","v":"-"},{"$f":"IF(OR('Enrollment Form'!$CG142=\"\",'Enrollment Form'!$CG142=\"No\"),\"-\",IF(AND('Enrollment Form'!$CG142=\"Yes\",'Enrollment Form'!$CI142=\"\"),\"N\",\"Y\"))","v":"-"},{"$f":"IF('Enrollment Form'!B142<>\"Subscriber\",\"-\",IF(AND('Enrollment Form'!B142=\"Subscriber\",'Enrollment Form'!C142=\"Enroll\",'Enrollment Form'!AA142=\"\"),\"N\",\"Y\"))","v":"-"},{"$f":"IF(OR('Enrollment Form'!B142=\"Subscriber\",'Enrollment Form'!B142=\"\"),\"-\",IF('Enrollment Form'!BI142=\"\",\"N\",\"Y\"))","v":"-"},{"$f":"IF('Enrollment Form'!B142<>\"Subscriber\",\"-\",IF(AND('Enrollment Form'!B142=\"Subscriber\",'Enrollment Form'!G142=\"\"),\"N\",\"Y\"))","v":"-"},{"$f":"IF('Enrollment Form'!A142=\"\",\"\",IF('Enrollment Form'!B142=\"Subscriber\",\"-\",IF(AND('Enrollment Form'!B142<>\"Subscriber\",'Enrollment Form'!G142='Enrollment Form'!H142),\"N\",\"Y\")))","v":""},0]
[143,{"$f":"IF('Enrollment Form'!$A143<>\"\",\"Y\",\"N\")","v":"N"},{"$f":"IF(AND('Enrollment Form'!$B143=\"\",'Enrollment Form'!$C143<>\"\"),\"N\",IF($B136=\"N\",\"\",\"Y\"))","v":""},{"$f":"IF(OR($B136=\"N\",'Enrollment Form'!G143=\"\"),\"\",IF('Enrollment Form'!$B143<>\"Subscriber\",\"\",IF('Enrollment Form'!$G143='Enrollment Form'!$H143,\"Y\",\"N\")))","v":""},{"$f":"IF($B136=\"N\",\"\",IF(AND(COUNTIFS('Enrollment Form'!$H$11:$H$1000,'Enrollment Form'!$H143,'Enrollment Form'!$B$11:$B$1000,'Enrollment Form'!$B143)>1,'Enrollment Form'!$H143<>\"\"),\"N\",\"Y\"))","v":""},{"$f":"IF($B136=\"N\",\"\",IF(LEN('Enrollment Form'!$Y143)=0,\"\",IF(LEN('Enrollment Form'!$Y143)<>5,\"N\",\"Y\")))","v":""},{"$f":"IF($B136=\"N\",\"\",IF(LEN('Enrollment Form'!$AD143=0),\"\",IF(LEN('Enrollment Form'!$AD143)<>5,\"N\",\"Y\")))","v":""},{"$f":"IF($B136=\"N\",\"\",IF(LEN('Enrollment Form'!$BL143=0),\"\",IF(LEN('Enrollment Form'!$BL143)<>5,\"N\",\"Y\")))","v":""},{"$f":"IF($B136=\"N\",\"\",IF(LEN('Enrollment Form'!$AE143)=0,\"\",IF(LEN('Enrollment Form'!$AE143)<>10,\"N\",\"Y\")))","v":""},{"$f":"IF($B136=\"N\",\"\",IF(LEN('Enrollment Form'!$AF143)=0,\"\",IF(LEN('Enrollment Form'!$AF143)<>10,\"N\",\"Y\")))","v":""},{"$f":"IF('Enrollment Form'!$O143<>\"Graded\",\"-\",IF(AND('Enrollment Form'!$O143=\"Graded\",'Enrollment Form'!$AO143<>\"\"),\"Y\",\"N\"))","v":"-"},{"$f":"IF($B136=\"N\",\"\",IF(OR('Enrollment Form'!$B143<>\"Subscriber\",'Enrollment Form'!$C143=\"ROC\"),\"-\",IF(AND('Enrollment Form'!$B143=\"Subscriber\",'Enrollment Form'!$C143=\"Enroll\",'Enrollment Form'!$AJ143<>\"\"),\"Y\",\"N\")))","v":""},{"$f":"IF($B136=\"N\",\"\",IF(OR('Enrollment Form'!$B143<>\"Subscriber\",'Enrollment Form'!$C143=\"ROC\"),\"-\",IF(AND('Enrollment Form'!$B143=\"Subscriber\",'Enrollment Form'!$C143=\"Enroll\",'Enrollment Form'!$AK143<>\"\"),\"Y\",\"N\")))","v":""},{"$f":"IF($B136=\"N\",\"\",IF(OR('Enrollment Form'!$B143<>\"Subscriber\",'Enrollment Form'!$C143=\"ROC\"),\"-\",IF(AND('Enrollment Form'!$B143=\"Subscriber\",'Enrollment Form'!$C143=\"Enroll\",'Enrollment Form'!$AL143<>\"\"),\"Y\",\"N\")))","v":""},{"$f":"IF($B136=\"N\",\"\",IF(OR('Enrollment Form'!$B143<>\"Subscriber\",'Enrollment Form'!$C143=\"ROC\"),\"-\",IF(AND('Enrollment Form'!$B143=\"Subscriber\",'Enrollment Form'!$C143=\"Enroll\",'Enrollment Form'!$AM143<>\"\"),\"Y\",\"N\")))","v":""},{"$f":"IF($B136=\"N\",\"\",IF(OR('Enrollment Form'!$B143<>\"Subscriber\",'Enrollment Form'!$C143=\"ROC\"),\"-\",IF(AND('Enrollment Form'!$B143=\"Subscriber\",'Enrollment Form'!$C143=\"Enroll\",'Enrollment Form'!$AN143<>\"\"),\"Y\",\"N\")))","v":""},{"$f":"IF($B136=\"N\",\"\",IF(OR('Enrollment Form'!$B143<>\"Subscriber\",'Enrollment Form'!$C143=\"ROC\"),\"-\",IF(AND('Enrollment Form'!$B143=\"Subscriber\",'Enrollment Form'!$C143=\"Enroll\",'Enrollment Form'!$AP143<>\"\"),\"Y\",\"N\")))","v":""},{"$f":"IF($B136=\"N\",\"\",IF($Q136=\"-\",\"-\",IF(AND($Q136=\"Y\",'Enrollment Form'!$AP143=\"No\"),\"-\",IF(AND($Q136=\"Y\",'Enrollment Form'!$AP143=\"Yes\",'Enrollment Form'!$AQ143<>\"\"),\"Y\",\"N\"))))","v":""},{"$f":"IF($B136=\"N\",\"\",IF(OR('Enrollment Form'!$B143<>\"Subscriber\",'Enrollment Form'!$C143=\"ROC\"),\"-\",IF(AND('Enrollment Form'!$B143=\"Subscriber\",'Enrollment Form'!$C143=\"Enroll\",'Enrollment Form'!$CO143<>\"\"),\"Y\",\"N\")))","v":""},{"$f":"IF($B136=\"N\",\"\",IF($S136=\"-\",\"-\",IF(AND($S136=\"Y\",'Enrollment Form'!$CO143=\"No\"),\"-\",IF(AND($S136=\"Y\",'Enrollment Form'!$CO143=\"Yes\",'Enrollment Form'!$CP143<>\"\"),\"Y\",\"N\"))))","v":""},{"$f":"IF(OR('Enrollment Form'!$AV143=\"Yes\",'Enrollment Form'!$AV143=\"\"),\"-\",IF(AND('Enrollment Form'!$AV143=\"No\",ISERROR(FIND(\"HMO\",VLOOKUP('Enrollment Form'!G143,'Enrollment Form'!H$11:J$1000,3,FALSE),1))=FALSE,COUNTA('Enrollment Form'!$AW143:$AZ143)=4),\"Y\",\"N\"))","v":"-"},{"$f":"IF($B136=\"N\",\"\",IF('Enrollment Form'!$B143=\"Subscriber\",\"-\",IF(COUNTA('Enrollment Form'!$BE143,'Enrollment Form'!$BG143)=2,\"Y\",\"N\")))","v":""},{"$f":"IF($B136=\"N\",\"\",IF(OR('Enrollment Form'!$AU143=\"\",'Enrollment Form'!$AU143=\"No\"),\"-\",IF(AND('Enrollment Form'!$AU143=\"Yes\",COUNTA('Enrollment Form'!$CK143)=1),\"Y\",\"N\")))","v":""},{"$f":"IF(OR('Enrollment Form'!$CK143=\"\",'Enrollment Form'!$CK143=\"No\"),\"-\",IF(COUNTA('Enrollment Form'!$CM143:$CN143)=2,\"Y\",\"N\"))","v":"-"},{"$f":"IF($B136=\"N\",\"\",IF(COUNTIF('Enrollment Form'!$CZ143:$DO143,\"Other\")=COUNTA('Enrollment Form'!$DF143,'Enrollment Form'!$DA143,'Enrollment Form'!$DK143,'Enrollment Form'!$DP143),\"Y\",\"N\"))","v":""},{"$f":"IF($B136=\"N\",\"\",IF(OR('Enrollment Form'!B143<>\"Subscriber\",'Enrollment Form'!C143=\"ROC\",COUNTIF('Enrollment Form'!AS143:AT143,\"Yes\")>=1),\"-\",IF(AND('Enrollment Form'!C143=\"Enroll\",COUNTIF('Enrollment Form'!AS143:AT143,\"No\")=2,'Enrollment Form'!AU143=\"\"),\"N\",\"Y\")))","v":""},{"$f":"IF(OR(B136=\"N\",'Enrollment Form'!B143<>\"Subscriber\",'Enrollment Form'!C143=\"ROC\",'Enrollment Form'!O143<>\"Multiple of Salary\"),\"-\",IF(COUNTA('Enrollment Form'!T143:U143)<2,\"N\",\"Y\"))","v":"-"},{"$f":"IF(B136=\"N\",\"\",IF(OR('Enrollment Form'!C143=\"ROC\",'Enrollment Form'!B143<>\"Subscriber\",'Enrollment Form'!O143=\"Waive\",'Enrollment Form'!O143=\"\"),\"-\",IF('Enrollment Form'!P143=\"\",\"N\",\"Y\")))","v":""},{"$f":"IF($B136=\"N\",\"\",IF(AND('Enrollment Form'!$C143=\"ROC\",'Enrollment Form'!$DS143<>\"\"),\"Y\",IF(AND('Enrollment Form'!$C143=\"ROC\",'Enrollment Form'!$DS143=\"\"),\"N\",IF(AND('Enrollment Form'!$C143=\"Enroll\",'Enrollment Form'!$B143=\"Subscriber\",'Enrollment Form'!$CQ143=\"No\",'Enrollment Form'!$DS143=\"\"),\"N\",IF(AND('Enrollment Form'!$C143=\"Enroll\",'Enrollment Form'!$B143=\"Subscriber\",'Enrollment Form'!$CQ143=\"Yes\"),\"-\",\"Y\")))))","v":""},{"$f":"IF($B136=\"N\",\"\",IF(AND('Enrollment Form'!$C143=\"ROC\",'Enrollment Form'!$DT143<>\"\"),\"Y\",IF(AND('Enrollment Form'!$C143=\"ROC\",'Enrollment Form'!$DT143=\"\"),\"N\",IF(AND('Enrollment Form'!$C143=\"Enroll\",'Enrollment Form'!$B143=\"Subscriber\",'Enrollment Form'!$CQ143=\"No\",'Enrollment Form'!$DT143=\"\"),\"N\",IF(AND('Enrollment Form'!$C143=\"Enroll\",'Enrollment Form'!$B143=\"Subscriber\",'Enrollment Form'!$CQ143=\"Yes\"),\"-\",\"Y\")))))","v":""},{"$f":"IF('Enrollment Form'!AH143=\"\",\"\",IF(ISERROR(SEARCH(\".\",'Enrollment Form'!AH143,SEARCH(\"@\",'Enrollment Form'!AH143))),\"N\",\"Y\"))","v":""},{"$f":"IF(OR($B136=\"N\",'Enrollment Form'!$G143=\"\"),\"\",IF('Enrollment Form'!$B143<>\"Subscriber\",\"-\",IF(COUNTIF('Enrollment Form'!$AS143:$AT143,\"Yes\")=2,\"N\",\"Y\")))","v":""},{"$f":"IF(OR('Enrollment Form'!$CC143=\"\",'Enrollment Form'!$CC143=\"No\"),\"-\",IF(AND('Enrollment Form'!$CC143=\"Yes\",'Enrollment Form'!$CD143=\"\"),\"N\",\"Y\"))","v":"-"},{"$f":"IF(OR('Enrollment Form'!$CE143=\"\",'Enrollment Form'!$CE143=\"No\"),\"-\",IF(AND('Enrollment Form'!$CE143=\"Yes\",'Enrollment Form'!$CF143=\"\"),\"N\",\"Y\"))","v":"-"},{"$f":"IF(OR('Enrollment Form'!$CG143=\"\",'Enrollment Form'!$CG143=\"No\"),\"-\",IF(AND('Enrollment Form'!$CG143=\"Yes\",'Enrollment Form'!$CH143=\"\"),\"N\",\"Y\"))","v":"-"},{"$f":"IF(OR('Enrollment Form'!$CG143=\"\",'Enrollment Form'!$CG143=\"No\"),\"-\",IF(AND('Enrollment Form'!$CG143=\"Yes\",'Enrollment Form'!$CI143=\"\"),\"N\",\"Y\"))","v":"-"},{"$f":"IF('Enrollment Form'!B143<>\"Subscriber\",\"-\",IF(AND('Enrollment Form'!B143=\"Subscriber\",'Enrollment Form'!C143=\"Enroll\",'Enrollment Form'!AA143=\"\"),\"N\",\"Y\"))","v":"-"},{"$f":"IF(OR('Enrollment Form'!B143=\"Subscriber\",'Enrollment Form'!B143=\"\"),\"-\",IF('Enrollment Form'!BI143=\"\",\"N\",\"Y\"))","v":"-"},{"$f":"IF('Enrollment Form'!B143<>\"Subscriber\",\"-\",IF(AND('Enrollment Form'!B143=\"Subscriber\",'Enrollment Form'!G143=\"\"),\"N\",\"Y\"))","v":"-"},{"$f":"IF('Enrollment Form'!A143=\"\",\"\",IF('Enrollment Form'!B143=\"Subscriber\",\"-\",IF(AND('Enrollment Form'!B143<>\"Subscriber\",'Enrollment Form'!G143='Enrollment Form'!H143),\"N\",\"Y\")))","v":""},0]
[144,{"$f":"IF('Enrollment Form'!$A144<>\"\",\"Y\",\"N\")","v":"N"},{"$f":"IF(AND('Enrollment Form'!$B144=\"\",'Enrollment Form'!$C144<>\"\"),\"N\",IF($B137=\"N\",\"\",\"Y\"))","v":""},{"$f":"IF(OR($B137=\"N\",'Enrollment Form'!G144=\"\"),\"\",IF('Enrollment Form'!$B144<>\"Subscriber\",\"\",IF('Enrollment Form'!$G144='Enrollment Form'!$H144,\"Y\",\"N\")))","v":""},{"$f":"IF($B137=\"N\",\"\",IF(AND(COUNTIFS('Enrollment Form'!$H$11:$H$1000,'Enrollment Form'!$H144,'Enrollment Form'!$B$11:$B$1000,'Enrollment Form'!$B144)>1,'Enrollment Form'!$H144<>\"\"),\"N\",\"Y\"))","v":""},{"$f":"IF($B137=\"N\",\"\",IF(LEN('Enrollment Form'!$Y144)=0,\"\",IF(LEN('Enrollment Form'!$Y144)<>5,\"N\",\"Y\")))","v":""},{"$f":"IF($B137=\"N\",\"\",IF(LEN('Enrollment Form'!$AD144=0),\"\",IF(LEN('Enrollment Form'!$AD144)<>5,\"N\",\"Y\")))","v":""},{"$f":"IF($B137=\"N\",\"\",IF(LEN('Enrollment Form'!$BL144=0),\"\",IF(LEN('Enrollment Form'!$BL144)<>5,\"N\",\"Y\")))","v":""},{"$f":"IF($B137=\"N\",\"\",IF(LEN('Enrollment Form'!$AE144)=0,\"\",IF(LEN('Enrollment Form'!$AE144)<>10,\"N\",\"Y\")))","v":""},{"$f":"IF($B137=\"N\",\"\",IF(LEN('Enrollment Form'!$AF144)=0,\"\",IF(LEN('Enrollment Form'!$AF144)<>10,\"N\",\"Y\")))","v":""},{"$f":"IF('Enrollment Form'!$O144<>\"Graded\",\"-\",IF(AND('Enrollment Form'!$O144=\"Graded\",'Enrollment Form'!$AO144<>\"\"),\"Y\",\"N\"))","v":"-"},{"$f":"IF($B137=\"N\",\"\",IF(OR('Enrollment Form'!$B144<>\"Subscriber\",'Enrollment Form'!$C144=\"ROC\"),\"-\",IF(AND('Enrollment Form'!$B144=\"Subscriber\",'Enrollment Form'!$C144=\"Enroll\",'Enrollment Form'!$AJ144<>\"\"),\"Y\",\"N\")))","v":""},{"$f":"IF($B137=\"N\",\"\",IF(OR('Enrollment Form'!$B144<>\"Subscriber\",'Enrollment Form'!$C144=\"ROC\"),\"-\",IF(AND('Enrollment Form'!$B144=\"Subscriber\",'Enrollment Form'!$C144=\"Enroll\",'Enrollment Form'!$AK144<>\"\"),\"Y\",\"N\")))","v":""},{"$f":"IF($B137=\"N\",\"\",IF(OR('Enrollment Form'!$B144<>\"Subscriber\",'Enrollment Form'!$C144=\"ROC\"),\"-\",IF(AND('Enrollment Form'!$B144=\"Subscriber\",'Enrollment Form'!$C144=\"Enroll\",'Enrollment Form'!$AL144<>\"\"),\"Y\",\"N\")))","v":""},{"$f":"IF($B137=\"N\",\"\",IF(OR('Enrollment Form'!$B144<>\"Subscriber\",'Enrollment Form'!$C144=\"ROC\"),\"-\",IF(AND('Enrollment Form'!$B144=\"Subscriber\",'Enrollment Form'!$C144=\"Enroll\",'Enrollment Form'!$AM144<>\"\"),\"Y\",\"N\")))","v":""},{"$f":"IF($B137=\"N\",\"\",IF(OR('Enrollment Form'!$B144<>\"Subscriber\",'Enrollment Form'!$C144=\"ROC\"),\"-\",IF(AND('Enrollment Form'!$B144=\"Subscriber\",'Enrollment Form'!$C144=\"Enroll\",'Enrollment Form'!$AN144<>\"\"),\"Y\",\"N\")))","v":""},{"$f":"IF($B137=\"N\",\"\",IF(OR('Enrollment Form'!$B144<>\"Subscriber\",'Enrollment Form'!$C144=\"ROC\"),\"-\",IF(AND('Enrollment Form'!$B144=\"Subscriber\",'Enrollment Form'!$C144=\"Enroll\",'Enrollment Form'!$AP144<>\"\"),\"Y\",\"N\")))","v":""},{"$f":"IF($B137=\"N\",\"\",IF($Q137=\"-\",\"-\",IF(AND($Q137=\"Y\",'Enrollment Form'!$AP144=\"No\"),\"-\",IF(AND($Q137=\"Y\",'Enrollment Form'!$AP144=\"Yes\",'Enrollment Form'!$AQ144<>\"\"),\"Y\",\"N\"))))","v":""},{"$f":"IF($B137=\"N\",\"\",IF(OR('Enrollment Form'!$B144<>\"Subscriber\",'Enrollment Form'!$C144=\"ROC\"),\"-\",IF(AND('Enrollment Form'!$B144=\"Subscriber\",'Enrollment Form'!$C144=\"Enroll\",'Enrollment Form'!$CO144<>\"\"),\"Y\",\"N\")))","v":""},{"$f":"IF($B137=\"N\",\"\",IF($S137=\"-\",\"-\",IF(AND($S137=\"Y\",'Enrollment Form'!$CO144=\"No\"),\"-\",IF(AND($S137=\"Y\",'Enrollment Form'!$CO144=\"Yes\",'Enrollment Form'!$CP144<>\"\"),\"Y\",\"N\"))))","v":""},{"$f":"IF(OR('Enrollment Form'!$AV144=\"Yes\",'Enrollment Form'!$AV144=\"\"),\"-\",IF(AND('Enrollment Form'!$AV144=\"No\",ISERROR(FIND(\"HMO\",VLOOKUP('Enrollment Form'!G144,'Enrollment Form'!H$11:J$1000,3,FALSE),1))=FALSE,COUNTA('Enrollment Form'!$AW144:$AZ144)=4),\"Y\",\"N\"))","v":"-"},{"$f":"IF($B137=\"N\",\"\",IF('Enrollment Form'!$B144=\"Subscriber\",\"-\",IF(COUNTA('Enrollment Form'!$BE144,'Enrollment Form'!$BG144)=2,\"Y\",\"N\")))","v":""},{"$f":"IF($B137=\"N\",\"\",IF(OR('Enrollment Form'!$AU144=\"\",'Enrollment Form'!$AU144=\"No\"),\"-\",IF(AND('Enrollment Form'!$AU144=\"Yes\",COUNTA('Enrollment Form'!$CK144)=1),\"Y\",\"N\")))","v":""},{"$f":"IF(OR('Enrollment Form'!$CK144=\"\",'Enrollment Form'!$CK144=\"No\"),\"-\",IF(COUNTA('Enrollment Form'!$CM144:$CN144)=2,\"Y\",\"N\"))","v":"-"},{"$f":"IF($B137=\"N\",\"\",IF(COUNTIF('Enrollment Form'!$CZ144:$DO144,\"Other\")=COUNTA('Enrollment Form'!$DF144,'Enrollment Form'!$DA144,'Enrollment Form'!$DK144,'Enrollment Form'!$DP144),\"Y\",\"N\"))","v":""},{"$f":"IF($B137=\"N\",\"\",IF(OR('Enrollment Form'!B144<>\"Subscriber\",'Enrollment Form'!C144=\"ROC\",COUNTIF('Enrollment Form'!AS144:AT144,\"Yes\")>=1),\"-\",IF(AND('Enrollment Form'!C144=\"Enroll\",COUNTIF('Enrollment Form'!AS144:AT144,\"No\")=2,'Enrollment Form'!AU144=\"\"),\"N\",\"Y\")))","v":""},{"$f":"IF(OR(B137=\"N\",'Enrollment Form'!B144<>\"Subscriber\",'Enrollment Form'!C144=\"ROC\",'Enrollment Form'!O144<>\"Multiple of Salary\"),\"-\",IF(COUNTA('Enrollment Form'!T144:U144)<2,\"N\",\"Y\"))","v":"-"},{"$f":"IF(B137=\"N\",\"\",IF(OR('Enrollment Form'!C144=\"ROC\",'Enrollment Form'!B144<>\"Subscriber\",'Enrollment Form'!O144=\"Waive\",'Enrollment Form'!O144=\"\"),\"-\",IF('Enrollment Form'!P144=\"\",\"N\",\"Y\")))","v":""},{"$f":"IF($B137=\"N\",\"\",IF(AND('Enrollment Form'!$C144=\"ROC\",'Enrollment Form'!$DS144<>\"\"),\"Y\",IF(AND('Enrollment Form'!$C144=\"ROC\",'Enrollment Form'!$DS144=\"\"),\"N\",IF(AND('Enrollment Form'!$C144=\"Enroll\",'Enrollment Form'!$B144=\"Subscriber\",'Enrollment Form'!$CQ144=\"No\",'Enrollment Form'!$DS144=\"\"),\"N\",IF(AND('Enrollment Form'!$C144=\"Enroll\",'Enrollment Form'!$B144=\"Subscriber\",'Enrollment Form'!$CQ144=\"Yes\"),\"-\",\"Y\")))))","v":""},{"$f":"IF($B137=\"N\",\"\",IF(AND('Enrollment Form'!$C144=\"ROC\",'Enrollment Form'!$DT144<>\"\"),\"Y\",IF(AND('Enrollment Form'!$C144=\"ROC\",'Enrollment Form'!$DT144=\"\"),\"N\",IF(AND('Enrollment Form'!$C144=\"Enroll\",'Enrollment Form'!$B144=\"Subscriber\",'Enrollment Form'!$CQ144=\"No\",'Enrollment Form'!$DT144=\"\"),\"N\",IF(AND('Enrollment Form'!$C144=\"Enroll\",'Enrollment Form'!$B144=\"Subscriber\",'Enrollment Form'!$CQ144=\"Yes\"),\"-\",\"Y\")))))","v":""},{"$f":"IF('Enrollment Form'!AH144=\"\",\"\",IF(ISERROR(SEARCH(\".\",'Enrollment Form'!AH144,SEARCH(\"@\",'Enrollment Form'!AH144))),\"N\",\"Y\"))","v":""},{"$f":"IF(OR($B137=\"N\",'Enrollment Form'!$G144=\"\"),\"\",IF('Enrollment Form'!$B144<>\"Subscriber\",\"-\",IF(COUNTIF('Enrollment Form'!$AS144:$AT144,\"Yes\")=2,\"N\",\"Y\")))","v":""},{"$f":"IF(OR('Enrollment Form'!$CC144=\"\",'Enrollment Form'!$CC144=\"No\"),\"-\",IF(AND('Enrollment Form'!$CC144=\"Yes\",'Enrollment Form'!$CD144=\"\"),\"N\",\"Y\"))","v":"-"},{"$f":"IF(OR('Enrollment Form'!$CE144=\"\",'Enrollment Form'!$CE144=\"No\"),\"-\",IF(AND('Enrollment Form'!$CE144=\"Yes\",'Enrollment Form'!$CF144=\"\"),\"N\",\"Y\"))","v":"-"},{"$f":"IF(OR('Enrollment Form'!$CG144=\"\",'Enrollment Form'!$CG144=\"No\"),\"-\",IF(AND('Enrollment Form'!$CG144=\"Yes\",'Enrollment Form'!$CH144=\"\"),\"N\",\"Y\"))","v":"-"},{"$f":"IF(OR('Enrollment Form'!$CG144=\"\",'Enrollment Form'!$CG144=\"No\"),\"-\",IF(AND('Enrollment Form'!$CG144=\"Yes\",'Enrollment Form'!$CI144=\"\"),\"N\",\"Y\"))","v":"-"},{"$f":"IF('Enrollment Form'!B144<>\"Subscriber\",\"-\",IF(AND('Enrollment Form'!B144=\"Subscriber\",'Enrollment Form'!C144=\"Enroll\",'Enrollment Form'!AA144=\"\"),\"N\",\"Y\"))","v":"-"},{"$f":"IF(OR('Enrollment Form'!B144=\"Subscriber\",'Enrollment Form'!B144=\"\"),\"-\",IF('Enrollment Form'!BI144=\"\",\"N\",\"Y\"))","v":"-"},{"$f":"IF('Enrollment Form'!B144<>\"Subscriber\",\"-\",IF(AND('Enrollment Form'!B144=\"Subscriber\",'Enrollment Form'!G144=\"\"),\"N\",\"Y\"))","v":"-"},{"$f":"IF('Enrollment Form'!A144=\"\",\"\",IF('Enrollment Form'!B144=\"Subscriber\",\"-\",IF(AND('Enrollment Form'!B144<>\"Subscriber\",'Enrollment Form'!G144='Enrollment Form'!H144),\"N\",\"Y\")))","v":""},0]
[145,{"$f":"IF('Enrollment Form'!$A145<>\"\",\"Y\",\"N\")","v":"N"},{"$f":"IF(AND('Enrollment Form'!$B145=\"\",'Enrollment Form'!$C145<>\"\"),\"N\",IF($B138=\"N\",\"\",\"Y\"))","v":""},{"$f":"IF(OR($B138=\"N\",'Enrollment Form'!G145=\"\"),\"\",IF('Enrollment Form'!$B145<>\"Subscriber\",\"\",IF('Enrollment Form'!$G145='Enrollment Form'!$H145,\"Y\",\"N\")))","v":""},{"$f":"IF($B138=\"N\",\"\",IF(AND(COUNTIFS('Enrollment Form'!$H$11:$H$1000,'Enrollment Form'!$H145,'Enrollment Form'!$B$11:$B$1000,'Enrollment Form'!$B145)>1,'Enrollment Form'!$H145<>\"\"),\"N\",\"Y\"))","v":""},{"$f":"IF($B138=\"N\",\"\",IF(LEN('Enrollment Form'!$Y145)=0,\"\",IF(LEN('Enrollment Form'!$Y145)<>5,\"N\",\"Y\")))","v":""},{"$f":"IF($B138=\"N\",\"\",IF(LEN('Enrollment Form'!$AD145=0),\"\",IF(LEN('Enrollment Form'!$AD145)<>5,\"N\",\"Y\")))","v":""},{"$f":"IF($B138=\"N\",\"\",IF(LEN('Enrollment Form'!$BL145=0),\"\",IF(LEN('Enrollment Form'!$BL145)<>5,\"N\",\"Y\")))","v":""},{"$f":"IF($B138=\"N\",\"\",IF(LEN('Enrollment Form'!$AE145)=0,\"\",IF(LEN('Enrollment Form'!$AE145)<>10,\"N\",\"Y\")))","v":""},{"$f":"IF($B138=\"N\",\"\",IF(LEN('Enrollment Form'!$AF145)=0,\"\",IF(LEN('Enrollment Form'!$AF145)<>10,\"N\",\"Y\")))","v":""},{"$f":"IF('Enrollment Form'!$O145<>\"Graded\",\"-\",IF(AND('Enrollment Form'!$O145=\"Graded\",'Enrollment Form'!$AO145<>\"\"),\"Y\",\"N\"))","v":"-"},{"$f":"IF($B138=\"N\",\"\",IF(OR('Enrollment Form'!$B145<>\"Subscriber\",'Enrollment Form'!$C145=\"ROC\"),\"-\",IF(AND('Enrollment Form'!$B145=\"Subscriber\",'Enrollment Form'!$C145=\"Enroll\",'Enrollment Form'!$AJ145<>\"\"),\"Y\",\"N\")))","v":""},{"$f":"IF($B138=\"N\",\"\",IF(OR('Enrollment Form'!$B145<>\"Subscriber\",'Enrollment Form'!$C145=\"ROC\"),\"-\",IF(AND('Enrollment Form'!$B145=\"Subscriber\",'Enrollment Form'!$C145=\"Enroll\",'Enrollment Form'!$AK145<>\"\"),\"Y\",\"N\")))","v":""},{"$f":"IF($B138=\"N\",\"\",IF(OR('Enrollment Form'!$B145<>\"Subscriber\",'Enrollment Form'!$C145=\"ROC\"),\"-\",IF(AND('Enrollment Form'!$B145=\"Subscriber\",'Enrollment Form'!$C145=\"Enroll\",'Enrollment Form'!$AL145<>\"\"),\"Y\",\"N\")))","v":""},{"$f":"IF($B138=\"N\",\"\",IF(OR('Enrollment Form'!$B145<>\"Subscriber\",'Enrollment Form'!$C145=\"ROC\"),\"-\",IF(AND('Enrollment Form'!$B145=\"Subscriber\",'Enrollment Form'!$C145=\"Enroll\",'Enrollment Form'!$AM145<>\"\"),\"Y\",\"N\")))","v":""},{"$f":"IF($B138=\"N\",\"\",IF(OR('Enrollment Form'!$B145<>\"Subscriber\",'Enrollment Form'!$C145=\"ROC\"),\"-\",IF(AND('Enrollment Form'!$B145=\"Subscriber\",'Enrollment Form'!$C145=\"Enroll\",'Enrollment Form'!$AN145<>\"\"),\"Y\",\"N\")))","v":""},{"$f":"IF($B138=\"N\",\"\",IF(OR('Enrollment Form'!$B145<>\"Subscriber\",'Enrollment Form'!$C145=\"ROC\"),\"-\",IF(AND('Enrollment Form'!$B145=\"Subscriber\",'Enrollment Form'!$C145=\"Enroll\",'Enrollment Form'!$AP145<>\"\"),\"Y\",\"N\")))","v":""},{"$f":"IF($B138=\"N\",\"\",IF($Q138=\"-\",\"-\",IF(AND($Q138=\"Y\",'Enrollment Form'!$AP145=\"No\"),\"-\",IF(AND($Q138=\"Y\",'Enrollment Form'!$AP145=\"Yes\",'Enrollment Form'!$AQ145<>\"\"),\"Y\",\"N\"))))","v":""},{"$f":"IF($B138=\"N\",\"\",IF(OR('Enrollment Form'!$B145<>\"Subscriber\",'Enrollment Form'!$C145=\"ROC\"),\"-\",IF(AND('Enrollment Form'!$B145=\"Subscriber\",'Enrollment Form'!$C145=\"Enroll\",'Enrollment Form'!$CO145<>\"\"),\"Y\",\"N\")))","v":""},{"$f":"IF($B138=\"N\",\"\",IF($S138=\"-\",\"-\",IF(AND($S138=\"Y\",'Enrollment Form'!$CO145=\"No\"),\"-\",IF(AND($S138=\"Y\",'Enrollment Form'!$CO145=\"Yes\",'Enrollment Form'!$CP145<>\"\"),\"Y\",\"N\"))))","v":""},{"$f":"IF(OR('Enrollment Form'!$AV145=\"Yes\",'Enrollment Form'!$AV145=\"\"),\"-\",IF(AND('Enrollment Form'!$AV145=\"No\",ISERROR(FIND(\"HMO\",VLOOKUP('Enrollment Form'!G145,'Enrollment Form'!H$11:J$1000,3,FALSE),1))=FALSE,COUNTA('Enrollment Form'!$AW145:$AZ145)=4),\"Y\",\"N\"))","v":"-"},{"$f":"IF($B138=\"N\",\"\",IF('Enrollment Form'!$B145=\"Subscriber\",\"-\",IF(COUNTA('Enrollment Form'!$BE145,'Enrollment Form'!$BG145)=2,\"Y\",\"N\")))","v":""},{"$f":"IF($B138=\"N\",\"\",IF(OR('Enrollment Form'!$AU145=\"\",'Enrollment Form'!$AU145=\"No\"),\"-\",IF(AND('Enrollment Form'!$AU145=\"Yes\",COUNTA('Enrollment Form'!$CK145)=1),\"Y\",\"N\")))","v":""},{"$f":"IF(OR('Enrollment Form'!$CK145=\"\",'Enrollment Form'!$CK145=\"No\"),\"-\",IF(COUNTA('Enrollment Form'!$CM145:$CN145)=2,\"Y\",\"N\"))","v":"-"},{"$f":"IF($B138=\"N\",\"\",IF(COUNTIF('Enrollment Form'!$CZ145:$DO145,\"Other\")=COUNTA('Enrollment Form'!$DF145,'Enrollment Form'!$DA145,'Enrollment Form'!$DK145,'Enrollment Form'!$DP145),\"Y\",\"N\"))","v":""},{"$f":"IF($B138=\"N\",\"\",IF(OR('Enrollment Form'!B145<>\"Subscriber\",'Enrollment Form'!C145=\"ROC\",COUNTIF('Enrollment Form'!AS145:AT145,\"Yes\")>=1),\"-\",IF(AND('Enrollment Form'!C145=\"Enroll\",COUNTIF('Enrollment Form'!AS145:AT145,\"No\")=2,'Enrollment Form'!AU145=\"\"),\"N\",\"Y\")))","v":""},{"$f":"IF(OR(B138=\"N\",'Enrollment Form'!B145<>\"Subscriber\",'Enrollment Form'!C145=\"ROC\",'Enrollment Form'!O145<>\"Multiple of Salary\"),\"-\",IF(COUNTA('Enrollment Form'!T145:U145)<2,\"N\",\"Y\"))","v":"-"},{"$f":"IF(B138=\"N\",\"\",IF(OR('Enrollment Form'!C145=\"ROC\",'Enrollment Form'!B145<>\"Subscriber\",'Enrollment Form'!O145=\"Waive\",'Enrollment Form'!O145=\"\"),\"-\",IF('Enrollment Form'!P145=\"\",\"N\",\"Y\")))","v":""},{"$f":"IF($B138=\"N\",\"\",IF(AND('Enrollment Form'!$C145=\"ROC\",'Enrollment Form'!$DS145<>\"\"),\"Y\",IF(AND('Enrollment Form'!$C145=\"ROC\",'Enrollment Form'!$DS145=\"\"),\"N\",IF(AND('Enrollment Form'!$C145=\"Enroll\",'Enrollment Form'!$B145=\"Subscriber\",'Enrollment Form'!$CQ145=\"No\",'Enrollment Form'!$DS145=\"\"),\"N\",IF(AND('Enrollment Form'!$C145=\"Enroll\",'Enrollment Form'!$B145=\"Subscriber\",'Enrollment Form'!$CQ145=\"Yes\"),\"-\",\"Y\")))))","v":""},{"$f":"IF($B138=\"N\",\"\",IF(AND('Enrollment Form'!$C145=\"ROC\",'Enrollment Form'!$DT145<>\"\"),\"Y\",IF(AND('Enrollment Form'!$C145=\"ROC\",'Enrollment Form'!$DT145=\"\"),\"N\",IF(AND('Enrollment Form'!$C145=\"Enroll\",'Enrollment Form'!$B145=\"Subscriber\",'Enrollment Form'!$CQ145=\"No\",'Enrollment Form'!$DT145=\"\"),\"N\",IF(AND('Enrollment Form'!$C145=\"Enroll\",'Enrollment Form'!$B145=\"Subscriber\",'Enrollment Form'!$CQ145=\"Yes\"),\"-\",\"Y\")))))","v":""},{"$f":"IF('Enrollment Form'!AH145=\"\",\"\",IF(ISERROR(SEARCH(\".\",'Enrollment Form'!AH145,SEARCH(\"@\",'Enrollment Form'!AH145))),\"N\",\"Y\"))","v":""},{"$f":"IF(OR($B138=\"N\",'Enrollment Form'!$G145=\"\"),\"\",IF('Enrollment Form'!$B145<>\"Subscriber\",\"-\",IF(COUNTIF('Enrollment Form'!$AS145:$AT145,\"Yes\")=2,\"N\",\"Y\")))","v":""},{"$f":"IF(OR('Enrollment Form'!$CC145=\"\",'Enrollment Form'!$CC145=\"No\"),\"-\",IF(AND('Enrollment Form'!$CC145=\"Yes\",'Enrollment Form'!$CD145=\"\"),\"N\",\"Y\"))","v":"-"},{"$f":"IF(OR('Enrollment Form'!$CE145=\"\",'Enrollment Form'!$CE145=\"No\"),\"-\",IF(AND('Enrollment Form'!$CE145=\"Yes\",'Enrollment Form'!$CF145=\"\"),\"N\",\"Y\"))","v":"-"},{"$f":"IF(OR('Enrollment Form'!$CG145=\"\",'Enrollment Form'!$CG145=\"No\"),\"-\",IF(AND('Enrollment Form'!$CG145=\"Yes\",'Enrollment Form'!$CH145=\"\"),\"N\",\"Y\"))","v":"-"},{"$f":"IF(OR('Enrollment Form'!$CG145=\"\",'Enrollment Form'!$CG145=\"No\"),\"-\",IF(AND('Enrollment Form'!$CG145=\"Yes\",'Enrollment Form'!$CI145=\"\"),\"N\",\"Y\"))","v":"-"},{"$f":"IF('Enrollment Form'!B145<>\"Subscriber\",\"-\",IF(AND('Enrollment Form'!B145=\"Subscriber\",'Enrollment Form'!C145=\"Enroll\",'Enrollment Form'!AA145=\"\"),\"N\",\"Y\"))","v":"-"},{"$f":"IF(OR('Enrollment Form'!B145=\"Subscriber\",'Enrollment Form'!B145=\"\"),\"-\",IF('Enrollment Form'!BI145=\"\",\"N\",\"Y\"))","v":"-"},{"$f":"IF('Enrollment Form'!B145<>\"Subscriber\",\"-\",IF(AND('Enrollment Form'!B145=\"Subscriber\",'Enrollment Form'!G145=\"\"),\"N\",\"Y\"))","v":"-"},{"$f":"IF('Enrollment Form'!A145=\"\",\"\",IF('Enrollment Form'!B145=\"Subscriber\",\"-\",IF(AND('Enrollment Form'!B145<>\"Subscriber\",'Enrollment Form'!G145='Enrollment Form'!H145),\"N\",\"Y\")))","v":""},0]
[146,{"$f":"IF('Enrollment Form'!$A146<>\"\",\"Y\",\"N\")","v":"N"},{"$f":"IF(AND('Enrollment Form'!$B146=\"\",'Enrollment Form'!$C146<>\"\"),\"N\",IF($B139=\"N\",\"\",\"Y\"))","v":""},{"$f":"IF(OR($B139=\"N\",'Enrollment Form'!G146=\"\"),\"\",IF('Enrollment Form'!$B146<>\"Subscriber\",\"\",IF('Enrollment Form'!$G146='Enrollment Form'!$H146,\"Y\",\"N\")))","v":""},{"$f":"IF($B139=\"N\",\"\",IF(AND(COUNTIFS('Enrollment Form'!$H$11:$H$1000,'Enrollment Form'!$H146,'Enrollment Form'!$B$11:$B$1000,'Enrollment Form'!$B146)>1,'Enrollment Form'!$H146<>\"\"),\"N\",\"Y\"))","v":""},{"$f":"IF($B139=\"N\",\"\",IF(LEN('Enrollment Form'!$Y146)=0,\"\",IF(LEN('Enrollment Form'!$Y146)<>5,\"N\",\"Y\")))","v":""},{"$f":"IF($B139=\"N\",\"\",IF(LEN('Enrollment Form'!$AD146=0),\"\",IF(LEN('Enrollment Form'!$AD146)<>5,\"N\",\"Y\")))","v":""},{"$f":"IF($B139=\"N\",\"\",IF(LEN('Enrollment Form'!$BL146=0),\"\",IF(LEN('Enrollment Form'!$BL146)<>5,\"N\",\"Y\")))","v":""},{"$f":"IF($B139=\"N\",\"\",IF(LEN('Enrollment Form'!$AE146)=0,\"\",IF(LEN('Enrollment Form'!$AE146)<>10,\"N\",\"Y\")))","v":""},{"$f":"IF($B139=\"N\",\"\",IF(LEN('Enrollment Form'!$AF146)=0,\"\",IF(LEN('Enrollment Form'!$AF146)<>10,\"N\",\"Y\")))","v":""},{"$f":"IF('Enrollment Form'!$O146<>\"Graded\",\"-\",IF(AND('Enrollment Form'!$O146=\"Graded\",'Enrollment Form'!$AO146<>\"\"),\"Y\",\"N\"))","v":"-"},{"$f":"IF($B139=\"N\",\"\",IF(OR('Enrollment Form'!$B146<>\"Subscriber\",'Enrollment Form'!$C146=\"ROC\"),\"-\",IF(AND('Enrollment Form'!$B146=\"Subscriber\",'Enrollment Form'!$C146=\"Enroll\",'Enrollment Form'!$AJ146<>\"\"),\"Y\",\"N\")))","v":""},{"$f":"IF($B139=\"N\",\"\",IF(OR('Enrollment Form'!$B146<>\"Subscriber\",'Enrollment Form'!$C146=\"ROC\"),\"-\",IF(AND('Enrollment Form'!$B146=\"Subscriber\",'Enrollment Form'!$C146=\"Enroll\",'Enrollment Form'!$AK146<>\"\"),\"Y\",\"N\")))","v":""},{"$f":"IF($B139=\"N\",\"\",IF(OR('Enrollment Form'!$B146<>\"Subscriber\",'Enrollment Form'!$C146=\"ROC\"),\"-\",IF(AND('Enrollment Form'!$B146=\"Subscriber\",'Enrollment Form'!$C146=\"Enroll\",'Enrollment Form'!$AL146<>\"\"),\"Y\",\"N\")))","v":""},{"$f":"IF($B139=\"N\",\"\",IF(OR('Enrollment Form'!$B146<>\"Subscriber\",'Enrollment Form'!$C146=\"ROC\"),\"-\",IF(AND('Enrollment Form'!$B146=\"Subscriber\",'Enrollment Form'!$C146=\"Enroll\",'Enrollment Form'!$AM146<>\"\"),\"Y\",\"N\")))","v":""},{"$f":"IF($B139=\"N\",\"\",IF(OR('Enrollment Form'!$B146<>\"Subscriber\",'Enrollment Form'!$C146=\"ROC\"),\"-\",IF(AND('Enrollment Form'!$B146=\"Subscriber\",'Enrollment Form'!$C146=\"Enroll\",'Enrollment Form'!$AN146<>\"\"),\"Y\",\"N\")))","v":""},{"$f":"IF($B139=\"N\",\"\",IF(OR('Enrollment Form'!$B146<>\"Subscriber\",'Enrollment Form'!$C146=\"ROC\"),\"-\",IF(AND('Enrollment Form'!$B146=\"Subscriber\",'Enrollment Form'!$C146=\"Enroll\",'Enrollment Form'!$AP146<>\"\"),\"Y\",\"N\")))","v":""},{"$f":"IF($B139=\"N\",\"\",IF($Q139=\"-\",\"-\",IF(AND($Q139=\"Y\",'Enrollment Form'!$AP146=\"No\"),\"-\",IF(AND($Q139=\"Y\",'Enrollment Form'!$AP146=\"Yes\",'Enrollment Form'!$AQ146<>\"\"),\"Y\",\"N\"))))","v":""},{"$f":"IF($B139=\"N\",\"\",IF(OR('Enrollment Form'!$B146<>\"Subscriber\",'Enrollment Form'!$C146=\"ROC\"),\"-\",IF(AND('Enrollment Form'!$B146=\"Subscriber\",'Enrollment Form'!$C146=\"Enroll\",'Enrollment Form'!$CO146<>\"\"),\"Y\",\"N\")))","v":""},{"$f":"IF($B139=\"N\",\"\",IF($S139=\"-\",\"-\",IF(AND($S139=\"Y\",'Enrollment Form'!$CO146=\"No\"),\"-\",IF(AND($S139=\"Y\",'Enrollment Form'!$CO146=\"Yes\",'Enrollment Form'!$CP146<>\"\"),\"Y\",\"N\"))))","v":""},{"$f":"IF(OR('Enrollment Form'!$AV146=\"Yes\",'Enrollment Form'!$AV146=\"\"),\"-\",IF(AND('Enrollment Form'!$AV146=\"No\",ISERROR(FIND(\"HMO\",VLOOKUP('Enrollment Form'!G146,'Enrollment Form'!H$11:J$1000,3,FALSE),1))=FALSE,COUNTA('Enrollment Form'!$AW146:$AZ146)=4),\"Y\",\"N\"))","v":"-"},{"$f":"IF($B139=\"N\",\"\",IF('Enrollment Form'!$B146=\"Subscriber\",\"-\",IF(COUNTA('Enrollment Form'!$BE146,'Enrollment Form'!$BG146)=2,\"Y\",\"N\")))","v":""},{"$f":"IF($B139=\"N\",\"\",IF(OR('Enrollment Form'!$AU146=\"\",'Enrollment Form'!$AU146=\"No\"),\"-\",IF(AND('Enrollment Form'!$AU146=\"Yes\",COUNTA('Enrollment Form'!$CK146)=1),\"Y\",\"N\")))","v":""},{"$f":"IF(OR('Enrollment Form'!$CK146=\"\",'Enrollment Form'!$CK146=\"No\"),\"-\",IF(COUNTA('Enrollment Form'!$CM146:$CN146)=2,\"Y\",\"N\"))","v":"-"},{"$f":"IF($B139=\"N\",\"\",IF(COUNTIF('Enrollment Form'!$CZ146:$DO146,\"Other\")=COUNTA('Enrollment Form'!$DF146,'Enrollment Form'!$DA146,'Enrollment Form'!$DK146,'Enrollment Form'!$DP146),\"Y\",\"N\"))","v":""},{"$f":"IF($B139=\"N\",\"\",IF(OR('Enrollment Form'!B146<>\"Subscriber\",'Enrollment Form'!C146=\"ROC\",COUNTIF('Enrollment Form'!AS146:AT146,\"Yes\")>=1),\"-\",IF(AND('Enrollment Form'!C146=\"Enroll\",COUNTIF('Enrollment Form'!AS146:AT146,\"No\")=2,'Enrollment Form'!AU146=\"\"),\"N\",\"Y\")))","v":""},{"$f":"IF(OR(B139=\"N\",'Enrollment Form'!B146<>\"Subscriber\",'Enrollment Form'!C146=\"ROC\",'Enrollment Form'!O146<>\"Multiple of Salary\"),\"-\",IF(COUNTA('Enrollment Form'!T146:U146)<2,\"N\",\"Y\"))","v":"-"},{"$f":"IF(B139=\"N\",\"\",IF(OR('Enrollment Form'!C146=\"ROC\",'Enrollment Form'!B146<>\"Subscriber\",'Enrollment Form'!O146=\"Waive\",'Enrollment Form'!O146=\"\"),\"-\",IF('Enrollment Form'!P146=\"\",\"N\",\"Y\")))","v":""},{"$f":"IF($B139=\"N\",\"\",IF(AND('Enrollment Form'!$C146=\"ROC\",'Enrollment Form'!$DS146<>\"\"),\"Y\",IF(AND('Enrollment Form'!$C146=\"ROC\",'Enrollment Form'!$DS146=\"\"),\"N\",IF(AND('Enrollment Form'!$C146=\"Enroll\",'Enrollment Form'!$B146=\"Subscriber\",'Enrollment Form'!$CQ146=\"No\",'Enrollment Form'!$DS146=\"\"),\"N\",IF(AND('Enrollment Form'!$C146=\"Enroll\",'Enrollment Form'!$B146=\"Subscriber\",'Enrollment Form'!$CQ146=\"Yes\"),\"-\",\"Y\")))))","v":""},{"$f":"IF($B139=\"N\",\"\",IF(AND('Enrollment Form'!$C146=\"ROC\",'Enrollment Form'!$DT146<>\"\"),\"Y\",IF(AND('Enrollment Form'!$C146=\"ROC\",'Enrollment Form'!$DT146=\"\"),\"N\",IF(AND('Enrollment Form'!$C146=\"Enroll\",'Enrollment Form'!$B146=\"Subscriber\",'Enrollment Form'!$CQ146=\"No\",'Enrollment Form'!$DT146=\"\"),\"N\",IF(AND('Enrollment Form'!$C146=\"Enroll\",'Enrollment Form'!$B146=\"Subscriber\",'Enrollment Form'!$CQ146=\"Yes\"),\"-\",\"Y\")))))","v":""},{"$f":"IF('Enrollment Form'!AH146=\"\",\"\",IF(ISERROR(SEARCH(\".\",'Enrollment Form'!AH146,SEARCH(\"@\",'Enrollment Form'!AH146))),\"N\",\"Y\"))","v":""},{"$f":"IF(OR($B139=\"N\",'Enrollment Form'!$G146=\"\"),\"\",IF('Enrollment Form'!$B146<>\"Subscriber\",\"-\",IF(COUNTIF('Enrollment Form'!$AS146:$AT146,\"Yes\")=2,\"N\",\"Y\")))","v":""},{"$f":"IF(OR('Enrollment Form'!$CC146=\"\",'Enrollment Form'!$CC146=\"No\"),\"-\",IF(AND('Enrollment Form'!$CC146=\"Yes\",'Enrollment Form'!$CD146=\"\"),\"N\",\"Y\"))","v":"-"},{"$f":"IF(OR('Enrollment Form'!$CE146=\"\",'Enrollment Form'!$CE146=\"No\"),\"-\",IF(AND('Enrollment Form'!$CE146=\"Yes\",'Enrollment Form'!$CF146=\"\"),\"N\",\"Y\"))","v":"-"},{"$f":"IF(OR('Enrollment Form'!$CG146=\"\",'Enrollment Form'!$CG146=\"No\"),\"-\",IF(AND('Enrollment Form'!$CG146=\"Yes\",'Enrollment Form'!$CH146=\"\"),\"N\",\"Y\"))","v":"-"},{"$f":"IF(OR('Enrollment Form'!$CG146=\"\",'Enrollment Form'!$CG146=\"No\"),\"-\",IF(AND('Enrollment Form'!$CG146=\"Yes\",'Enrollment Form'!$CI146=\"\"),\"N\",\"Y\"))","v":"-"},{"$f":"IF('Enrollment Form'!B146<>\"Subscriber\",\"-\",IF(AND('Enrollment Form'!B146=\"Subscriber\",'Enrollment Form'!C146=\"Enroll\",'Enrollment Form'!AA146=\"\"),\"N\",\"Y\"))","v":"-"},{"$f":"IF(OR('Enrollment Form'!B146=\"Subscriber\",'Enrollment Form'!B146=\"\"),\"-\",IF('Enrollment Form'!BI146=\"\",\"N\",\"Y\"))","v":"-"},{"$f":"IF('Enrollment Form'!B146<>\"Subscriber\",\"-\",IF(AND('Enrollment Form'!B146=\"Subscriber\",'Enrollment Form'!G146=\"\"),\"N\",\"Y\"))","v":"-"},{"$f":"IF('Enrollment Form'!A146=\"\",\"\",IF('Enrollment Form'!B146=\"Subscriber\",\"-\",IF(AND('Enrollment Form'!B146<>\"Subscriber\",'Enrollment Form'!G146='Enrollment Form'!H146),\"N\",\"Y\")))","v":""},0]
[147,{"$f":"IF('Enrollment Form'!$A147<>\"\",\"Y\",\"N\")","v":"N"},{"$f":"IF(AND('Enrollment Form'!$B147=\"\",'Enrollment Form'!$C147<>\"\"),\"N\",IF($B140=\"N\",\"\",\"Y\"))","v":""},{"$f":"IF(OR($B140=\"N\",'Enrollment Form'!G147=\"\"),\"\",IF('Enrollment Form'!$B147<>\"Subscriber\",\"\",IF('Enrollment Form'!$G147='Enrollment Form'!$H147,\"Y\",\"N\")))","v":""},{"$f":"IF($B140=\"N\",\"\",IF(AND(COUNTIFS('Enrollment Form'!$H$11:$H$1000,'Enrollment Form'!$H147,'Enrollment Form'!$B$11:$B$1000,'Enrollment Form'!$B147)>1,'Enrollment Form'!$H147<>\"\"),\"N\",\"Y\"))","v":""},{"$f":"IF($B140=\"N\",\"\",IF(LEN('Enrollment Form'!$Y147)=0,\"\",IF(LEN('Enrollment Form'!$Y147)<>5,\"N\",\"Y\")))","v":""},{"$f":"IF($B140=\"N\",\"\",IF(LEN('Enrollment Form'!$AD147=0),\"\",IF(LEN('Enrollment Form'!$AD147)<>5,\"N\",\"Y\")))","v":""},{"$f":"IF($B140=\"N\",\"\",IF(LEN('Enrollment Form'!$BL147=0),\"\",IF(LEN('Enrollment Form'!$BL147)<>5,\"N\",\"Y\")))","v":""},{"$f":"IF($B140=\"N\",\"\",IF(LEN('Enrollment Form'!$AE147)=0,\"\",IF(LEN('Enrollment Form'!$AE147)<>10,\"N\",\"Y\")))","v":""},{"$f":"IF($B140=\"N\",\"\",IF(LEN('Enrollment Form'!$AF147)=0,\"\",IF(LEN('Enrollment Form'!$AF147)<>10,\"N\",\"Y\")))","v":""},{"$f":"IF('Enrollment Form'!$O147<>\"Graded\",\"-\",IF(AND('Enrollment Form'!$O147=\"Graded\",'Enrollment Form'!$AO147<>\"\"),\"Y\",\"N\"))","v":"-"},{"$f":"IF($B140=\"N\",\"\",IF(OR('Enrollment Form'!$B147<>\"Subscriber\",'Enrollment Form'!$C147=\"ROC\"),\"-\",IF(AND('Enrollment Form'!$B147=\"Subscriber\",'Enrollment Form'!$C147=\"Enroll\",'Enrollment Form'!$AJ147<>\"\"),\"Y\",\"N\")))","v":""},{"$f":"IF($B140=\"N\",\"\",IF(OR('Enrollment Form'!$B147<>\"Subscriber\",'Enrollment Form'!$C147=\"ROC\"),\"-\",IF(AND('Enrollment Form'!$B147=\"Subscriber\",'Enrollment Form'!$C147=\"Enroll\",'Enrollment Form'!$AK147<>\"\"),\"Y\",\"N\")))","v":""},{"$f":"IF($B140=\"N\",\"\",IF(OR('Enrollment Form'!$B147<>\"Subscriber\",'Enrollment Form'!$C147=\"ROC\"),\"-\",IF(AND('Enrollment Form'!$B147=\"Subscriber\",'Enrollment Form'!$C147=\"Enroll\",'Enrollment Form'!$AL147<>\"\"),\"Y\",\"N\")))","v":""},{"$f":"IF($B140=\"N\",\"\",IF(OR('Enrollment Form'!$B147<>\"Subscriber\",'Enrollment Form'!$C147=\"ROC\"),\"-\",IF(AND('Enrollment Form'!$B147=\"Subscriber\",'Enrollment Form'!$C147=\"Enroll\",'Enrollment Form'!$AM147<>\"\"),\"Y\",\"N\")))","v":""},{"$f":"IF($B140=\"N\",\"\",IF(OR('Enrollment Form'!$B147<>\"Subscriber\",'Enrollment Form'!$C147=\"ROC\"),\"-\",IF(AND('Enrollment Form'!$B147=\"Subscriber\",'Enrollment Form'!$C147=\"Enroll\",'Enrollment Form'!$AN147<>\"\"),\"Y\",\"N\")))","v":""},{"$f":"IF($B140=\"N\",\"\",IF(OR('Enrollment Form'!$B147<>\"Subscriber\",'Enrollment Form'!$C147=\"ROC\"),\"-\",IF(AND('Enrollment Form'!$B147=\"Subscriber\",'Enrollment Form'!$C147=\"Enroll\",'Enrollment Form'!$AP147<>\"\"),\"Y\",\"N\")))","v":""},{"$f":"IF($B140=\"N\",\"\",IF($Q140=\"-\",\"-\",IF(AND($Q140=\"Y\",'Enrollment Form'!$AP147=\"No\"),\"-\",IF(AND($Q140=\"Y\",'Enrollment Form'!$AP147=\"Yes\",'Enrollment Form'!$AQ147<>\"\"),\"Y\",\"N\"))))","v":""},{"$f":"IF($B140=\"N\",\"\",IF(OR('Enrollment Form'!$B147<>\"Subscriber\",'Enrollment Form'!$C147=\"ROC\"),\"-\",IF(AND('Enrollment Form'!$B147=\"Subscriber\",'Enrollment Form'!$C147=\"Enroll\",'Enrollment Form'!$CO147<>\"\"),\"Y\",\"N\")))","v":""},{"$f":"IF($B140=\"N\",\"\",IF($S140=\"-\",\"-\",IF(AND($S140=\"Y\",'Enrollment Form'!$CO147=\"No\"),\"-\",IF(AND($S140=\"Y\",'Enrollment Form'!$CO147=\"Yes\",'Enrollment Form'!$CP147<>\"\"),\"Y\",\"N\"))))","v":""},{"$f":"IF(OR('Enrollment Form'!$AV147=\"Yes\",'Enrollment Form'!$AV147=\"\"),\"-\",IF(AND('Enrollment Form'!$AV147=\"No\",ISERROR(FIND(\"HMO\",VLOOKUP('Enrollment Form'!G147,'Enrollment Form'!H$11:J$1000,3,FALSE),1))=FALSE,COUNTA('Enrollment Form'!$AW147:$AZ147)=4),\"Y\",\"N\"))","v":"-"},{"$f":"IF($B140=\"N\",\"\",IF('Enrollment Form'!$B147=\"Subscriber\",\"-\",IF(COUNTA('Enrollment Form'!$BE147,'Enrollment Form'!$BG147)=2,\"Y\",\"N\")))","v":""},{"$f":"IF($B140=\"N\",\"\",IF(OR('Enrollment Form'!$AU147=\"\",'Enrollment Form'!$AU147=\"No\"),\"-\",IF(AND('Enrollment Form'!$AU147=\"Yes\",COUNTA('Enrollment Form'!$CK147)=1),\"Y\",\"N\")))","v":""},{"$f":"IF(OR('Enrollment Form'!$CK147=\"\",'Enrollment Form'!$CK147=\"No\"),\"-\",IF(COUNTA('Enrollment Form'!$CM147:$CN147)=2,\"Y\",\"N\"))","v":"-"},{"$f":"IF($B140=\"N\",\"\",IF(COUNTIF('Enrollment Form'!$CZ147:$DO147,\"Other\")=COUNTA('Enrollment Form'!$DF147,'Enrollment Form'!$DA147,'Enrollment Form'!$DK147,'Enrollment Form'!$DP147),\"Y\",\"N\"))","v":""},{"$f":"IF($B140=\"N\",\"\",IF(OR('Enrollment Form'!B147<>\"Subscriber\",'Enrollment Form'!C147=\"ROC\",COUNTIF('Enrollment Form'!AS147:AT147,\"Yes\")>=1),\"-\",IF(AND('Enrollment Form'!C147=\"Enroll\",COUNTIF('Enrollment Form'!AS147:AT147,\"No\")=2,'Enrollment Form'!AU147=\"\"),\"N\",\"Y\")))","v":""},{"$f":"IF(OR(B140=\"N\",'Enrollment Form'!B147<>\"Subscriber\",'Enrollment Form'!C147=\"ROC\",'Enrollment Form'!O147<>\"Multiple of Salary\"),\"-\",IF(COUNTA('Enrollment Form'!T147:U147)<2,\"N\",\"Y\"))","v":"-"},{"$f":"IF(B140=\"N\",\"\",IF(OR('Enrollment Form'!C147=\"ROC\",'Enrollment Form'!B147<>\"Subscriber\",'Enrollment Form'!O147=\"Waive\",'Enrollment Form'!O147=\"\"),\"-\",IF('Enrollment Form'!P147=\"\",\"N\",\"Y\")))","v":""},{"$f":"IF($B140=\"N\",\"\",IF(AND('Enrollment Form'!$C147=\"ROC\",'Enrollment Form'!$DS147<>\"\"),\"Y\",IF(AND('Enrollment Form'!$C147=\"ROC\",'Enrollment Form'!$DS147=\"\"),\"N\",IF(AND('Enrollment Form'!$C147=\"Enroll\",'Enrollment Form'!$B147=\"Subscriber\",'Enrollment Form'!$CQ147=\"No\",'Enrollment Form'!$DS147=\"\"),\"N\",IF(AND('Enrollment Form'!$C147=\"Enroll\",'Enrollment Form'!$B147=\"Subscriber\",'Enrollment Form'!$CQ147=\"Yes\"),\"-\",\"Y\")))))","v":""},{"$f":"IF($B140=\"N\",\"\",IF(AND('Enrollment Form'!$C147=\"ROC\",'Enrollment Form'!$DT147<>\"\"),\"Y\",IF(AND('Enrollment Form'!$C147=\"ROC\",'Enrollment Form'!$DT147=\"\"),\"N\",IF(AND('Enrollment Form'!$C147=\"Enroll\",'Enrollment Form'!$B147=\"Subscriber\",'Enrollment Form'!$CQ147=\"No\",'Enrollment Form'!$DT147=\"\"),\"N\",IF(AND('Enrollment Form'!$C147=\"Enroll\",'Enrollment Form'!$B147=\"Subscriber\",'Enrollment Form'!$CQ147=\"Yes\"),\"-\",\"Y\")))))","v":""},{"$f":"IF('Enrollment Form'!AH147=\"\",\"\",IF(ISERROR(SEARCH(\".\",'Enrollment Form'!AH147,SEARCH(\"@\",'Enrollment Form'!AH147))),\"N\",\"Y\"))","v":""},{"$f":"IF(OR($B140=\"N\",'Enrollment Form'!$G147=\"\"),\"\",IF('Enrollment Form'!$B147<>\"Subscriber\",\"-\",IF(COUNTIF('Enrollment Form'!$AS147:$AT147,\"Yes\")=2,\"N\",\"Y\")))","v":""},{"$f":"IF(OR('Enrollment Form'!$CC147=\"\",'Enrollment Form'!$CC147=\"No\"),\"-\",IF(AND('Enrollment Form'!$CC147=\"Yes\",'Enrollment Form'!$CD147=\"\"),\"N\",\"Y\"))","v":"-"},{"$f":"IF(OR('Enrollment Form'!$CE147=\"\",'Enrollment Form'!$CE147=\"No\"),\"-\",IF(AND('Enrollment Form'!$CE147=\"Yes\",'Enrollment Form'!$CF147=\"\"),\"N\",\"Y\"))","v":"-"},{"$f":"IF(OR('Enrollment Form'!$CG147=\"\",'Enrollment Form'!$CG147=\"No\"),\"-\",IF(AND('Enrollment Form'!$CG147=\"Yes\",'Enrollment Form'!$CH147=\"\"),\"N\",\"Y\"))","v":"-"},{"$f":"IF(OR('Enrollment Form'!$CG147=\"\",'Enrollment Form'!$CG147=\"No\"),\"-\",IF(AND('Enrollment Form'!$CG147=\"Yes\",'Enrollment Form'!$CI147=\"\"),\"N\",\"Y\"))","v":"-"},{"$f":"IF('Enrollment Form'!B147<>\"Subscriber\",\"-\",IF(AND('Enrollment Form'!B147=\"Subscriber\",'Enrollment Form'!C147=\"Enroll\",'Enrollment Form'!AA147=\"\"),\"N\",\"Y\"))","v":"-"},{"$f":"IF(OR('Enrollment Form'!B147=\"Subscriber\",'Enrollment Form'!B147=\"\"),\"-\",IF('Enrollment Form'!BI147=\"\",\"N\",\"Y\"))","v":"-"},{"$f":"IF('Enrollment Form'!B147<>\"Subscriber\",\"-\",IF(AND('Enrollment Form'!B147=\"Subscriber\",'Enrollment Form'!G147=\"\"),\"N\",\"Y\"))","v":"-"},{"$f":"IF('Enrollment Form'!A147=\"\",\"\",IF('Enrollment Form'!B147=\"Subscriber\",\"-\",IF(AND('Enrollment Form'!B147<>\"Subscriber\",'Enrollment Form'!G147='Enrollment Form'!H147),\"N\",\"Y\")))","v":""},0]
[148,{"$f":"IF('Enrollment Form'!$A148<>\"\",\"Y\",\"N\")","v":"N"},{"$f":"IF(AND('Enrollment Form'!$B148=\"\",'Enrollment Form'!$C148<>\"\"),\"N\",IF($B141=\"N\",\"\",\"Y\"))","v":""},{"$f":"IF(OR($B141=\"N\",'Enrollment Form'!G148=\"\"),\"\",IF('Enrollment Form'!$B148<>\"Subscriber\",\"\",IF('Enrollment Form'!$G148='Enrollment Form'!$H148,\"Y\",\"N\")))","v":""},{"$f":"IF($B141=\"N\",\"\",IF(AND(COUNTIFS('Enrollment Form'!$H$11:$H$1000,'Enrollment Form'!$H148,'Enrollment Form'!$B$11:$B$1000,'Enrollment Form'!$B148)>1,'Enrollment Form'!$H148<>\"\"),\"N\",\"Y\"))","v":""},{"$f":"IF($B141=\"N\",\"\",IF(LEN('Enrollment Form'!$Y148)=0,\"\",IF(LEN('Enrollment Form'!$Y148)<>5,\"N\",\"Y\")))","v":""},{"$f":"IF($B141=\"N\",\"\",IF(LEN('Enrollment Form'!$AD148=0),\"\",IF(LEN('Enrollment Form'!$AD148)<>5,\"N\",\"Y\")))","v":""},{"$f":"IF($B141=\"N\",\"\",IF(LEN('Enrollment Form'!$BL148=0),\"\",IF(LEN('Enrollment Form'!$BL148)<>5,\"N\",\"Y\")))","v":""},{"$f":"IF($B141=\"N\",\"\",IF(LEN('Enrollment Form'!$AE148)=0,\"\",IF(LEN('Enrollment Form'!$AE148)<>10,\"N\",\"Y\")))","v":""},{"$f":"IF($B141=\"N\",\"\",IF(LEN('Enrollment Form'!$AF148)=0,\"\",IF(LEN('Enrollment Form'!$AF148)<>10,\"N\",\"Y\")))","v":""},{"$f":"IF('Enrollment Form'!$O148<>\"Graded\",\"-\",IF(AND('Enrollment Form'!$O148=\"Graded\",'Enrollment Form'!$AO148<>\"\"),\"Y\",\"N\"))","v":"-"},{"$f":"IF($B141=\"N\",\"\",IF(OR('Enrollment Form'!$B148<>\"Subscriber\",'Enrollment Form'!$C148=\"ROC\"),\"-\",IF(AND('Enrollment Form'!$B148=\"Subscriber\",'Enrollment Form'!$C148=\"Enroll\",'Enrollment Form'!$AJ148<>\"\"),\"Y\",\"N\")))","v":""},{"$f":"IF($B141=\"N\",\"\",IF(OR('Enrollment Form'!$B148<>\"Subscriber\",'Enrollment Form'!$C148=\"ROC\"),\"-\",IF(AND('Enrollment Form'!$B148=\"Subscriber\",'Enrollment Form'!$C148=\"Enroll\",'Enrollment Form'!$AK148<>\"\"),\"Y\",\"N\")))","v":""},{"$f":"IF($B141=\"N\",\"\",IF(OR('Enrollment Form'!$B148<>\"Subscriber\",'Enrollment Form'!$C148=\"ROC\"),\"-\",IF(AND('Enrollment Form'!$B148=\"Subscriber\",'Enrollment Form'!$C148=\"Enroll\",'Enrollment Form'!$AL148<>\"\"),\"Y\",\"N\")))","v":""},{"$f":"IF($B141=\"N\",\"\",IF(OR('Enrollment Form'!$B148<>\"Subscriber\",'Enrollment Form'!$C148=\"ROC\"),\"-\",IF(AND('Enrollment Form'!$B148=\"Subscriber\",'Enrollment Form'!$C148=\"Enroll\",'Enrollment Form'!$AM148<>\"\"),\"Y\",\"N\")))","v":""},{"$f":"IF($B141=\"N\",\"\",IF(OR('Enrollment Form'!$B148<>\"Subscriber\",'Enrollment Form'!$C148=\"ROC\"),\"-\",IF(AND('Enrollment Form'!$B148=\"Subscriber\",'Enrollment Form'!$C148=\"Enroll\",'Enrollment Form'!$AN148<>\"\"),\"Y\",\"N\")))","v":""},{"$f":"IF($B141=\"N\",\"\",IF(OR('Enrollment Form'!$B148<>\"Subscriber\",'Enrollment Form'!$C148=\"ROC\"),\"-\",IF(AND('Enrollment Form'!$B148=\"Subscriber\",'Enrollment Form'!$C148=\"Enroll\",'Enrollment Form'!$AP148<>\"\"),\"Y\",\"N\")))","v":""},{"$f":"IF($B141=\"N\",\"\",IF($Q141=\"-\",\"-\",IF(AND($Q141=\"Y\",'Enrollment Form'!$AP148=\"No\"),\"-\",IF(AND($Q141=\"Y\",'Enrollment Form'!$AP148=\"Yes\",'Enrollment Form'!$AQ148<>\"\"),\"Y\",\"N\"))))","v":""},{"$f":"IF($B141=\"N\",\"\",IF(OR('Enrollment Form'!$B148<>\"Subscriber\",'Enrollment Form'!$C148=\"ROC\"),\"-\",IF(AND('Enrollment Form'!$B148=\"Subscriber\",'Enrollment Form'!$C148=\"Enroll\",'Enrollment Form'!$CO148<>\"\"),\"Y\",\"N\")))","v":""},{"$f":"IF($B141=\"N\",\"\",IF($S141=\"-\",\"-\",IF(AND($S141=\"Y\",'Enrollment Form'!$CO148=\"No\"),\"-\",IF(AND($S141=\"Y\",'Enrollment Form'!$CO148=\"Yes\",'Enrollment Form'!$CP148<>\"\"),\"Y\",\"N\"))))","v":""},{"$f":"IF(OR('Enrollment Form'!$AV148=\"Yes\",'Enrollment Form'!$AV148=\"\"),\"-\",IF(AND('Enrollment Form'!$AV148=\"No\",ISERROR(FIND(\"HMO\",VLOOKUP('Enrollment Form'!G148,'Enrollment Form'!H$11:J$1000,3,FALSE),1))=FALSE,COUNTA('Enrollment Form'!$AW148:$AZ148)=4),\"Y\",\"N\"))","v":"-"},{"$f":"IF($B141=\"N\",\"\",IF('Enrollment Form'!$B148=\"Subscriber\",\"-\",IF(COUNTA('Enrollment Form'!$BE148,'Enrollment Form'!$BG148)=2,\"Y\",\"N\")))","v":""},{"$f":"IF($B141=\"N\",\"\",IF(OR('Enrollment Form'!$AU148=\"\",'Enrollment Form'!$AU148=\"No\"),\"-\",IF(AND('Enrollment Form'!$AU148=\"Yes\",COUNTA('Enrollment Form'!$CK148)=1),\"Y\",\"N\")))","v":""},{"$f":"IF(OR('Enrollment Form'!$CK148=\"\",'Enrollment Form'!$CK148=\"No\"),\"-\",IF(COUNTA('Enrollment Form'!$CM148:$CN148)=2,\"Y\",\"N\"))","v":"-"},{"$f":"IF($B141=\"N\",\"\",IF(COUNTIF('Enrollment Form'!$CZ148:$DO148,\"Other\")=COUNTA('Enrollment Form'!$DF148,'Enrollment Form'!$DA148,'Enrollment Form'!$DK148,'Enrollment Form'!$DP148),\"Y\",\"N\"))","v":""},{"$f":"IF($B141=\"N\",\"\",IF(OR('Enrollment Form'!B148<>\"Subscriber\",'Enrollment Form'!C148=\"ROC\",COUNTIF('Enrollment Form'!AS148:AT148,\"Yes\")>=1),\"-\",IF(AND('Enrollment Form'!C148=\"Enroll\",COUNTIF('Enrollment Form'!AS148:AT148,\"No\")=2,'Enrollment Form'!AU148=\"\"),\"N\",\"Y\")))","v":""},{"$f":"IF(OR(B141=\"N\",'Enrollment Form'!B148<>\"Subscriber\",'Enrollment Form'!C148=\"ROC\",'Enrollment Form'!O148<>\"Multiple of Salary\"),\"-\",IF(COUNTA('Enrollment Form'!T148:U148)<2,\"N\",\"Y\"))","v":"-"},{"$f":"IF(B141=\"N\",\"\",IF(OR('Enrollment Form'!C148=\"ROC\",'Enrollment Form'!B148<>\"Subscriber\",'Enrollment Form'!O148=\"Waive\",'Enrollment Form'!O148=\"\"),\"-\",IF('Enrollment Form'!P148=\"\",\"N\",\"Y\")))","v":""},{"$f":"IF($B141=\"N\",\"\",IF(AND('Enrollment Form'!$C148=\"ROC\",'Enrollment Form'!$DS148<>\"\"),\"Y\",IF(AND('Enrollment Form'!$C148=\"ROC\",'Enrollment Form'!$DS148=\"\"),\"N\",IF(AND('Enrollment Form'!$C148=\"Enroll\",'Enrollment Form'!$B148=\"Subscriber\",'Enrollment Form'!$CQ148=\"No\",'Enrollment Form'!$DS148=\"\"),\"N\",IF(AND('Enrollment Form'!$C148=\"Enroll\",'Enrollment Form'!$B148=\"Subscriber\",'Enrollment Form'!$CQ148=\"Yes\"),\"-\",\"Y\")))))","v":""},{"$f":"IF($B141=\"N\",\"\",IF(AND('Enrollment Form'!$C148=\"ROC\",'Enrollment Form'!$DT148<>\"\"),\"Y\",IF(AND('Enrollment Form'!$C148=\"ROC\",'Enrollment Form'!$DT148=\"\"),\"N\",IF(AND('Enrollment Form'!$C148=\"Enroll\",'Enrollment Form'!$B148=\"Subscriber\",'Enrollment Form'!$CQ148=\"No\",'Enrollment Form'!$DT148=\"\"),\"N\",IF(AND('Enrollment Form'!$C148=\"Enroll\",'Enrollment Form'!$B148=\"Subscriber\",'Enrollment Form'!$CQ148=\"Yes\"),\"-\",\"Y\")))))","v":""},{"$f":"IF('Enrollment Form'!AH148=\"\",\"\",IF(ISERROR(SEARCH(\".\",'Enrollment Form'!AH148,SEARCH(\"@\",'Enrollment Form'!AH148))),\"N\",\"Y\"))","v":""},{"$f":"IF(OR($B141=\"N\",'Enrollment Form'!$G148=\"\"),\"\",IF('Enrollment Form'!$B148<>\"Subscriber\",\"-\",IF(COUNTIF('Enrollment Form'!$AS148:$AT148,\"Yes\")=2,\"N\",\"Y\")))","v":""},{"$f":"IF(OR('Enrollment Form'!$CC148=\"\",'Enrollment Form'!$CC148=\"No\"),\"-\",IF(AND('Enrollment Form'!$CC148=\"Yes\",'Enrollment Form'!$CD148=\"\"),\"N\",\"Y\"))","v":"-"},{"$f":"IF(OR('Enrollment Form'!$CE148=\"\",'Enrollment Form'!$CE148=\"No\"),\"-\",IF(AND('Enrollment Form'!$CE148=\"Yes\",'Enrollment Form'!$CF148=\"\"),\"N\",\"Y\"))","v":"-"},{"$f":"IF(OR('Enrollment Form'!$CG148=\"\",'Enrollment Form'!$CG148=\"No\"),\"-\",IF(AND('Enrollment Form'!$CG148=\"Yes\",'Enrollment Form'!$CH148=\"\"),\"N\",\"Y\"))","v":"-"},{"$f":"IF(OR('Enrollment Form'!$CG148=\"\",'Enrollment Form'!$CG148=\"No\"),\"-\",IF(AND('Enrollment Form'!$CG148=\"Yes\",'Enrollment Form'!$CI148=\"\"),\"N\",\"Y\"))","v":"-"},{"$f":"IF('Enrollment Form'!B148<>\"Subscriber\",\"-\",IF(AND('Enrollment Form'!B148=\"Subscriber\",'Enrollment Form'!C148=\"Enroll\",'Enrollment Form'!AA148=\"\"),\"N\",\"Y\"))","v":"-"},{"$f":"IF(OR('Enrollment Form'!B148=\"Subscriber\",'Enrollment Form'!B148=\"\"),\"-\",IF('Enrollment Form'!BI148=\"\",\"N\",\"Y\"))","v":"-"},{"$f":"IF('Enrollment Form'!B148<>\"Subscriber\",\"-\",IF(AND('Enrollment Form'!B148=\"Subscriber\",'Enrollment Form'!G148=\"\"),\"N\",\"Y\"))","v":"-"},{"$f":"IF('Enrollment Form'!A148=\"\",\"\",IF('Enrollment Form'!B148=\"Subscriber\",\"-\",IF(AND('Enrollment Form'!B148<>\"Subscriber\",'Enrollment Form'!G148='Enrollment Form'!H148),\"N\",\"Y\")))","v":""},0]
[149,{"$f":"IF('Enrollment Form'!$A149<>\"\",\"Y\",\"N\")","v":"N"},{"$f":"IF(AND('Enrollment Form'!$B149=\"\",'Enrollment Form'!$C149<>\"\"),\"N\",IF($B142=\"N\",\"\",\"Y\"))","v":""},{"$f":"IF(OR($B142=\"N\",'Enrollment Form'!G149=\"\"),\"\",IF('Enrollment Form'!$B149<>\"Subscriber\",\"\",IF('Enrollment Form'!$G149='Enrollment Form'!$H149,\"Y\",\"N\")))","v":""},{"$f":"IF($B142=\"N\",\"\",IF(AND(COUNTIFS('Enrollment Form'!$H$11:$H$1000,'Enrollment Form'!$H149,'Enrollment Form'!$B$11:$B$1000,'Enrollment Form'!$B149)>1,'Enrollment Form'!$H149<>\"\"),\"N\",\"Y\"))","v":""},{"$f":"IF($B142=\"N\",\"\",IF(LEN('Enrollment Form'!$Y149)=0,\"\",IF(LEN('Enrollment Form'!$Y149)<>5,\"N\",\"Y\")))","v":""},{"$f":"IF($B142=\"N\",\"\",IF(LEN('Enrollment Form'!$AD149=0),\"\",IF(LEN('Enrollment Form'!$AD149)<>5,\"N\",\"Y\")))","v":""},{"$f":"IF($B142=\"N\",\"\",IF(LEN('Enrollment Form'!$BL149=0),\"\",IF(LEN('Enrollment Form'!$BL149)<>5,\"N\",\"Y\")))","v":""},{"$f":"IF($B142=\"N\",\"\",IF(LEN('Enrollment Form'!$AE149)=0,\"\",IF(LEN('Enrollment Form'!$AE149)<>10,\"N\",\"Y\")))","v":""},{"$f":"IF($B142=\"N\",\"\",IF(LEN('Enrollment Form'!$AF149)=0,\"\",IF(LEN('Enrollment Form'!$AF149)<>10,\"N\",\"Y\")))","v":""},{"$f":"IF('Enrollment Form'!$O149<>\"Graded\",\"-\",IF(AND('Enrollment Form'!$O149=\"Graded\",'Enrollment Form'!$AO149<>\"\"),\"Y\",\"N\"))","v":"-"},{"$f":"IF($B142=\"N\",\"\",IF(OR('Enrollment Form'!$B149<>\"Subscriber\",'Enrollment Form'!$C149=\"ROC\"),\"-\",IF(AND('Enrollment Form'!$B149=\"Subscriber\",'Enrollment Form'!$C149=\"Enroll\",'Enrollment Form'!$AJ149<>\"\"),\"Y\",\"N\")))","v":""},{"$f":"IF($B142=\"N\",\"\",IF(OR('Enrollment Form'!$B149<>\"Subscriber\",'Enrollment Form'!$C149=\"ROC\"),\"-\",IF(AND('Enrollment Form'!$B149=\"Subscriber\",'Enrollment Form'!$C149=\"Enroll\",'Enrollment Form'!$AK149<>\"\"),\"Y\",\"N\")))","v":""},{"$f":"IF($B142=\"N\",\"\",IF(OR('Enrollment Form'!$B149<>\"Subscriber\",'Enrollment Form'!$C149=\"ROC\"),\"-\",IF(AND('Enrollment Form'!$B149=\"Subscriber\",'Enrollment Form'!$C149=\"Enroll\",'Enrollment Form'!$AL149<>\"\"),\"Y\",\"N\")))","v":""},{"$f":"IF($B142=\"N\",\"\",IF(OR('Enrollment Form'!$B149<>\"Subscriber\",'Enrollment Form'!$C149=\"ROC\"),\"-\",IF(AND('Enrollment Form'!$B149=\"Subscriber\",'Enrollment Form'!$C149=\"Enroll\",'Enrollment Form'!$AM149<>\"\"),\"Y\",\"N\")))","v":""},{"$f":"IF($B142=\"N\",\"\",IF(OR('Enrollment Form'!$B149<>\"Subscriber\",'Enrollment Form'!$C149=\"ROC\"),\"-\",IF(AND('Enrollment Form'!$B149=\"Subscriber\",'Enrollment Form'!$C149=\"Enroll\",'Enrollment Form'!$AN149<>\"\"),\"Y\",\"N\")))","v":""},{"$f":"IF($B142=\"N\",\"\",IF(OR('Enrollment Form'!$B149<>\"Subscriber\",'Enrollment Form'!$C149=\"ROC\"),\"-\",IF(AND('Enrollment Form'!$B149=\"Subscriber\",'Enrollment Form'!$C149=\"Enroll\",'Enrollment Form'!$AP149<>\"\"),\"Y\",\"N\")))","v":""},{"$f":"IF($B142=\"N\",\"\",IF($Q142=\"-\",\"-\",IF(AND($Q142=\"Y\",'Enrollment Form'!$AP149=\"No\"),\"-\",IF(AND($Q142=\"Y\",'Enrollment Form'!$AP149=\"Yes\",'Enrollment Form'!$AQ149<>\"\"),\"Y\",\"N\"))))","v":""},{"$f":"IF($B142=\"N\",\"\",IF(OR('Enrollment Form'!$B149<>\"Subscriber\",'Enrollment Form'!$C149=\"ROC\"),\"-\",IF(AND('Enrollment Form'!$B149=\"Subscriber\",'Enrollment Form'!$C149=\"Enroll\",'Enrollment Form'!$CO149<>\"\"),\"Y\",\"N\")))","v":""},{"$f":"IF($B142=\"N\",\"\",IF($S142=\"-\",\"-\",IF(AND($S142=\"Y\",'Enrollment Form'!$CO149=\"No\"),\"-\",IF(AND($S142=\"Y\",'Enrollment Form'!$CO149=\"Yes\",'Enrollment Form'!$CP149<>\"\"),\"Y\",\"N\"))))","v":""},{"$f":"IF(OR('Enrollment Form'!$AV149=\"Yes\",'Enrollment Form'!$AV149=\"\"),\"-\",IF(AND('Enrollment Form'!$AV149=\"No\",ISERROR(FIND(\"HMO\",VLOOKUP('Enrollment Form'!G149,'Enrollment Form'!H$11:J$1000,3,FALSE),1))=FALSE,COUNTA('Enrollment Form'!$AW149:$AZ149)=4),\"Y\",\"N\"))","v":"-"},{"$f":"IF($B142=\"N\",\"\",IF('Enrollment Form'!$B149=\"Subscriber\",\"-\",IF(COUNTA('Enrollment Form'!$BE149,'Enrollment Form'!$BG149)=2,\"Y\",\"N\")))","v":""},{"$f":"IF($B142=\"N\",\"\",IF(OR('Enrollment Form'!$AU149=\"\",'Enrollment Form'!$AU149=\"No\"),\"-\",IF(AND('Enrollment Form'!$AU149=\"Yes\",COUNTA('Enrollment Form'!$CK149)=1),\"Y\",\"N\")))","v":""},{"$f":"IF(OR('Enrollment Form'!$CK149=\"\",'Enrollment Form'!$CK149=\"No\"),\"-\",IF(COUNTA('Enrollment Form'!$CM149:$CN149)=2,\"Y\",\"N\"))","v":"-"},{"$f":"IF($B142=\"N\",\"\",IF(COUNTIF('Enrollment Form'!$CZ149:$DO149,\"Other\")=COUNTA('Enrollment Form'!$DF149,'Enrollment Form'!$DA149,'Enrollment Form'!$DK149,'Enrollment Form'!$DP149),\"Y\",\"N\"))","v":""},{"$f":"IF($B142=\"N\",\"\",IF(OR('Enrollment Form'!B149<>\"Subscriber\",'Enrollment Form'!C149=\"ROC\",COUNTIF('Enrollment Form'!AS149:AT149,\"Yes\")>=1),\"-\",IF(AND('Enrollment Form'!C149=\"Enroll\",COUNTIF('Enrollment Form'!AS149:AT149,\"No\")=2,'Enrollment Form'!AU149=\"\"),\"N\",\"Y\")))","v":""},{"$f":"IF(OR(B142=\"N\",'Enrollment Form'!B149<>\"Subscriber\",'Enrollment Form'!C149=\"ROC\",'Enrollment Form'!O149<>\"Multiple of Salary\"),\"-\",IF(COUNTA('Enrollment Form'!T149:U149)<2,\"N\",\"Y\"))","v":"-"},{"$f":"IF(B142=\"N\",\"\",IF(OR('Enrollment Form'!C149=\"ROC\",'Enrollment Form'!B149<>\"Subscriber\",'Enrollment Form'!O149=\"Waive\",'Enrollment Form'!O149=\"\"),\"-\",IF('Enrollment Form'!P149=\"\",\"N\",\"Y\")))","v":""},{"$f":"IF($B142=\"N\",\"\",IF(AND('Enrollment Form'!$C149=\"ROC\",'Enrollment Form'!$DS149<>\"\"),\"Y\",IF(AND('Enrollment Form'!$C149=\"ROC\",'Enrollment Form'!$DS149=\"\"),\"N\",IF(AND('Enrollment Form'!$C149=\"Enroll\",'Enrollment Form'!$B149=\"Subscriber\",'Enrollment Form'!$CQ149=\"No\",'Enrollment Form'!$DS149=\"\"),\"N\",IF(AND('Enrollment Form'!$C149=\"Enroll\",'Enrollment Form'!$B149=\"Subscriber\",'Enrollment Form'!$CQ149=\"Yes\"),\"-\",\"Y\")))))","v":""},{"$f":"IF($B142=\"N\",\"\",IF(AND('Enrollment Form'!$C149=\"ROC\",'Enrollment Form'!$DT149<>\"\"),\"Y\",IF(AND('Enrollment Form'!$C149=\"ROC\",'Enrollment Form'!$DT149=\"\"),\"N\",IF(AND('Enrollment Form'!$C149=\"Enroll\",'Enrollment Form'!$B149=\"Subscriber\",'Enrollment Form'!$CQ149=\"No\",'Enrollment Form'!$DT149=\"\"),\"N\",IF(AND('Enrollment Form'!$C149=\"Enroll\",'Enrollment Form'!$B149=\"Subscriber\",'Enrollment Form'!$CQ149=\"Yes\"),\"-\",\"Y\")))))","v":""},{"$f":"IF('Enrollment Form'!AH149=\"\",\"\",IF(ISERROR(SEARCH(\".\",'Enrollment Form'!AH149,SEARCH(\"@\",'Enrollment Form'!AH149))),\"N\",\"Y\"))","v":""},{"$f":"IF(OR($B142=\"N\",'Enrollment Form'!$G149=\"\"),\"\",IF('Enrollment Form'!$B149<>\"Subscriber\",\"-\",IF(COUNTIF('Enrollment Form'!$AS149:$AT149,\"Yes\")=2,\"N\",\"Y\")))","v":""},{"$f":"IF(OR('Enrollment Form'!$CC149=\"\",'Enrollment Form'!$CC149=\"No\"),\"-\",IF(AND('Enrollment Form'!$CC149=\"Yes\",'Enrollment Form'!$CD149=\"\"),\"N\",\"Y\"))","v":"-"},{"$f":"IF(OR('Enrollment Form'!$CE149=\"\",'Enrollment Form'!$CE149=\"No\"),\"-\",IF(AND('Enrollment Form'!$CE149=\"Yes\",'Enrollment Form'!$CF149=\"\"),\"N\",\"Y\"))","v":"-"},{"$f":"IF(OR('Enrollment Form'!$CG149=\"\",'Enrollment Form'!$CG149=\"No\"),\"-\",IF(AND('Enrollment Form'!$CG149=\"Yes\",'Enrollment Form'!$CH149=\"\"),\"N\",\"Y\"))","v":"-"},{"$f":"IF(OR('Enrollment Form'!$CG149=\"\",'Enrollment Form'!$CG149=\"No\"),\"-\",IF(AND('Enrollment Form'!$CG149=\"Yes\",'Enrollment Form'!$CI149=\"\"),\"N\",\"Y\"))","v":"-"},{"$f":"IF('Enrollment Form'!B149<>\"Subscriber\",\"-\",IF(AND('Enrollment Form'!B149=\"Subscriber\",'Enrollment Form'!C149=\"Enroll\",'Enrollment Form'!AA149=\"\"),\"N\",\"Y\"))","v":"-"},{"$f":"IF(OR('Enrollment Form'!B149=\"Subscriber\",'Enrollment Form'!B149=\"\"),\"-\",IF('Enrollment Form'!BI149=\"\",\"N\",\"Y\"))","v":"-"},{"$f":"IF('Enrollment Form'!B149<>\"Subscriber\",\"-\",IF(AND('Enrollment Form'!B149=\"Subscriber\",'Enrollment Form'!G149=\"\"),\"N\",\"Y\"))","v":"-"},{"$f":"IF('Enrollment Form'!A149=\"\",\"\",IF('Enrollment Form'!B149=\"Subscriber\",\"-\",IF(AND('Enrollment Form'!B149<>\"Subscriber\",'Enrollment Form'!G149='Enrollment Form'!H149),\"N\",\"Y\")))","v":""},0]
[150,{"$f":"IF('Enrollment Form'!$A150<>\"\",\"Y\",\"N\")","v":"N"},{"$f":"IF(AND('Enrollment Form'!$B150=\"\",'Enrollment Form'!$C150<>\"\"),\"N\",IF($B143=\"N\",\"\",\"Y\"))","v":""},{"$f":"IF(OR($B143=\"N\",'Enrollment Form'!G150=\"\"),\"\",IF('Enrollment Form'!$B150<>\"Subscriber\",\"\",IF('Enrollment Form'!$G150='Enrollment Form'!$H150,\"Y\",\"N\")))","v":""},{"$f":"IF($B143=\"N\",\"\",IF(AND(COUNTIFS('Enrollment Form'!$H$11:$H$1000,'Enrollment Form'!$H150,'Enrollment Form'!$B$11:$B$1000,'Enrollment Form'!$B150)>1,'Enrollment Form'!$H150<>\"\"),\"N\",\"Y\"))","v":""},{"$f":"IF($B143=\"N\",\"\",IF(LEN('Enrollment Form'!$Y150)=0,\"\",IF(LEN('Enrollment Form'!$Y150)<>5,\"N\",\"Y\")))","v":""},{"$f":"IF($B143=\"N\",\"\",IF(LEN('Enrollment Form'!$AD150=0),\"\",IF(LEN('Enrollment Form'!$AD150)<>5,\"N\",\"Y\")))","v":""},{"$f":"IF($B143=\"N\",\"\",IF(LEN('Enrollment Form'!$BL150=0),\"\",IF(LEN('Enrollment Form'!$BL150)<>5,\"N\",\"Y\")))","v":""},{"$f":"IF($B143=\"N\",\"\",IF(LEN('Enrollment Form'!$AE150)=0,\"\",IF(LEN('Enrollment Form'!$AE150)<>10,\"N\",\"Y\")))","v":""},{"$f":"IF($B143=\"N\",\"\",IF(LEN('Enrollment Form'!$AF150)=0,\"\",IF(LEN('Enrollment Form'!$AF150)<>10,\"N\",\"Y\")))","v":""},{"$f":"IF('Enrollment Form'!$O150<>\"Graded\",\"-\",IF(AND('Enrollment Form'!$O150=\"Graded\",'Enrollment Form'!$AO150<>\"\"),\"Y\",\"N\"))","v":"-"},{"$f":"IF($B143=\"N\",\"\",IF(OR('Enrollment Form'!$B150<>\"Subscriber\",'Enrollment Form'!$C150=\"ROC\"),\"-\",IF(AND('Enrollment Form'!$B150=\"Subscriber\",'Enrollment Form'!$C150=\"Enroll\",'Enrollment Form'!$AJ150<>\"\"),\"Y\",\"N\")))","v":""},{"$f":"IF($B143=\"N\",\"\",IF(OR('Enrollment Form'!$B150<>\"Subscriber\",'Enrollment Form'!$C150=\"ROC\"),\"-\",IF(AND('Enrollment Form'!$B150=\"Subscriber\",'Enrollment Form'!$C150=\"Enroll\",'Enrollment Form'!$AK150<>\"\"),\"Y\",\"N\")))","v":""},{"$f":"IF($B143=\"N\",\"\",IF(OR('Enrollment Form'!$B150<>\"Subscriber\",'Enrollment Form'!$C150=\"ROC\"),\"-\",IF(AND('Enrollment Form'!$B150=\"Subscriber\",'Enrollment Form'!$C150=\"Enroll\",'Enrollment Form'!$AL150<>\"\"),\"Y\",\"N\")))","v":""},{"$f":"IF($B143=\"N\",\"\",IF(OR('Enrollment Form'!$B150<>\"Subscriber\",'Enrollment Form'!$C150=\"ROC\"),\"-\",IF(AND('Enrollment Form'!$B150=\"Subscriber\",'Enrollment Form'!$C150=\"Enroll\",'Enrollment Form'!$AM150<>\"\"),\"Y\",\"N\")))","v":""},{"$f":"IF($B143=\"N\",\"\",IF(OR('Enrollment Form'!$B150<>\"Subscriber\",'Enrollment Form'!$C150=\"ROC\"),\"-\",IF(AND('Enrollment Form'!$B150=\"Subscriber\",'Enrollment Form'!$C150=\"Enroll\",'Enrollment Form'!$AN150<>\"\"),\"Y\",\"N\")))","v":""},{"$f":"IF($B143=\"N\",\"\",IF(OR('Enrollment Form'!$B150<>\"Subscriber\",'Enrollment Form'!$C150=\"ROC\"),\"-\",IF(AND('Enrollment Form'!$B150=\"Subscriber\",'Enrollment Form'!$C150=\"Enroll\",'Enrollment Form'!$AP150<>\"\"),\"Y\",\"N\")))","v":""},{"$f":"IF($B143=\"N\",\"\",IF($Q143=\"-\",\"-\",IF(AND($Q143=\"Y\",'Enrollment Form'!$AP150=\"No\"),\"-\",IF(AND($Q143=\"Y\",'Enrollment Form'!$AP150=\"Yes\",'Enrollment Form'!$AQ150<>\"\"),\"Y\",\"N\"))))","v":""},{"$f":"IF($B143=\"N\",\"\",IF(OR('Enrollment Form'!$B150<>\"Subscriber\",'Enrollment Form'!$C150=\"ROC\"),\"-\",IF(AND('Enrollment Form'!$B150=\"Subscriber\",'Enrollment Form'!$C150=\"Enroll\",'Enrollment Form'!$CO150<>\"\"),\"Y\",\"N\")))","v":""},{"$f":"IF($B143=\"N\",\"\",IF($S143=\"-\",\"-\",IF(AND($S143=\"Y\",'Enrollment Form'!$CO150=\"No\"),\"-\",IF(AND($S143=\"Y\",'Enrollment Form'!$CO150=\"Yes\",'Enrollment Form'!$CP150<>\"\"),\"Y\",\"N\"))))","v":""},{"$f":"IF(OR('Enrollment Form'!$AV150=\"Yes\",'Enrollment Form'!$AV150=\"\"),\"-\",IF(AND('Enrollment Form'!$AV150=\"No\",ISERROR(FIND(\"HMO\",VLOOKUP('Enrollment Form'!G150,'Enrollment Form'!H$11:J$1000,3,FALSE),1))=FALSE,COUNTA('Enrollment Form'!$AW150:$AZ150)=4),\"Y\",\"N\"))","v":"-"},{"$f":"IF($B143=\"N\",\"\",IF('Enrollment Form'!$B150=\"Subscriber\",\"-\",IF(COUNTA('Enrollment Form'!$BE150,'Enrollment Form'!$BG150)=2,\"Y\",\"N\")))","v":""},{"$f":"IF($B143=\"N\",\"\",IF(OR('Enrollment Form'!$AU150=\"\",'Enrollment Form'!$AU150=\"No\"),\"-\",IF(AND('Enrollment Form'!$AU150=\"Yes\",COUNTA('Enrollment Form'!$CK150)=1),\"Y\",\"N\")))","v":""},{"$f":"IF(OR('Enrollment Form'!$CK150=\"\",'Enrollment Form'!$CK150=\"No\"),\"-\",IF(COUNTA('Enrollment Form'!$CM150:$CN150)=2,\"Y\",\"N\"))","v":"-"},{"$f":"IF($B143=\"N\",\"\",IF(COUNTIF('Enrollment Form'!$CZ150:$DO150,\"Other\")=COUNTA('Enrollment Form'!$DF150,'Enrollment Form'!$DA150,'Enrollment Form'!$DK150,'Enrollment Form'!$DP150),\"Y\",\"N\"))","v":""},{"$f":"IF($B143=\"N\",\"\",IF(OR('Enrollment Form'!B150<>\"Subscriber\",'Enrollment Form'!C150=\"ROC\",COUNTIF('Enrollment Form'!AS150:AT150,\"Yes\")>=1),\"-\",IF(AND('Enrollment Form'!C150=\"Enroll\",COUNTIF('Enrollment Form'!AS150:AT150,\"No\")=2,'Enrollment Form'!AU150=\"\"),\"N\",\"Y\")))","v":""},{"$f":"IF(OR(B143=\"N\",'Enrollment Form'!B150<>\"Subscriber\",'Enrollment Form'!C150=\"ROC\",'Enrollment Form'!O150<>\"Multiple of Salary\"),\"-\",IF(COUNTA('Enrollment Form'!T150:U150)<2,\"N\",\"Y\"))","v":"-"},{"$f":"IF(B143=\"N\",\"\",IF(OR('Enrollment Form'!C150=\"ROC\",'Enrollment Form'!B150<>\"Subscriber\",'Enrollment Form'!O150=\"Waive\",'Enrollment Form'!O150=\"\"),\"-\",IF('Enrollment Form'!P150=\"\",\"N\",\"Y\")))","v":""},{"$f":"IF($B143=\"N\",\"\",IF(AND('Enrollment Form'!$C150=\"ROC\",'Enrollment Form'!$DS150<>\"\"),\"Y\",IF(AND('Enrollment Form'!$C150=\"ROC\",'Enrollment Form'!$DS150=\"\"),\"N\",IF(AND('Enrollment Form'!$C150=\"Enroll\",'Enrollment Form'!$B150=\"Subscriber\",'Enrollment Form'!$CQ150=\"No\",'Enrollment Form'!$DS150=\"\"),\"N\",IF(AND('Enrollment Form'!$C150=\"Enroll\",'Enrollment Form'!$B150=\"Subscriber\",'Enrollment Form'!$CQ150=\"Yes\"),\"-\",\"Y\")))))","v":""},{"$f":"IF($B143=\"N\",\"\",IF(AND('Enrollment Form'!$C150=\"ROC\",'Enrollment Form'!$DT150<>\"\"),\"Y\",IF(AND('Enrollment Form'!$C150=\"ROC\",'Enrollment Form'!$DT150=\"\"),\"N\",IF(AND('Enrollment Form'!$C150=\"Enroll\",'Enrollment Form'!$B150=\"Subscriber\",'Enrollment Form'!$CQ150=\"No\",'Enrollment Form'!$DT150=\"\"),\"N\",IF(AND('Enrollment Form'!$C150=\"Enroll\",'Enrollment Form'!$B150=\"Subscriber\",'Enrollment Form'!$CQ150=\"Yes\"),\"-\",\"Y\")))))","v":""},{"$f":"IF('Enrollment Form'!AH150=\"\",\"\",IF(ISERROR(SEARCH(\".\",'Enrollment Form'!AH150,SEARCH(\"@\",'Enrollment Form'!AH150))),\"N\",\"Y\"))","v":""},{"$f":"IF(OR($B143=\"N\",'Enrollment Form'!$G150=\"\"),\"\",IF('Enrollment Form'!$B150<>\"Subscriber\",\"-\",IF(COUNTIF('Enrollment Form'!$AS150:$AT150,\"Yes\")=2,\"N\",\"Y\")))","v":""},{"$f":"IF(OR('Enrollment Form'!$CC150=\"\",'Enrollment Form'!$CC150=\"No\"),\"-\",IF(AND('Enrollment Form'!$CC150=\"Yes\",'Enrollment Form'!$CD150=\"\"),\"N\",\"Y\"))","v":"-"},{"$f":"IF(OR('Enrollment Form'!$CE150=\"\",'Enrollment Form'!$CE150=\"No\"),\"-\",IF(AND('Enrollment Form'!$CE150=\"Yes\",'Enrollment Form'!$CF150=\"\"),\"N\",\"Y\"))","v":"-"},{"$f":"IF(OR('Enrollment Form'!$CG150=\"\",'Enrollment Form'!$CG150=\"No\"),\"-\",IF(AND('Enrollment Form'!$CG150=\"Yes\",'Enrollment Form'!$CH150=\"\"),\"N\",\"Y\"))","v":"-"},{"$f":"IF(OR('Enrollment Form'!$CG150=\"\",'Enrollment Form'!$CG150=\"No\"),\"-\",IF(AND('Enrollment Form'!$CG150=\"Yes\",'Enrollment Form'!$CI150=\"\"),\"N\",\"Y\"))","v":"-"},{"$f":"IF('Enrollment Form'!B150<>\"Subscriber\",\"-\",IF(AND('Enrollment Form'!B150=\"Subscriber\",'Enrollment Form'!C150=\"Enroll\",'Enrollment Form'!AA150=\"\"),\"N\",\"Y\"))","v":"-"},{"$f":"IF(OR('Enrollment Form'!B150=\"Subscriber\",'Enrollment Form'!B150=\"\"),\"-\",IF('Enrollment Form'!BI150=\"\",\"N\",\"Y\"))","v":"-"},{"$f":"IF('Enrollment Form'!B150<>\"Subscriber\",\"-\",IF(AND('Enrollment Form'!B150=\"Subscriber\",'Enrollment Form'!G150=\"\"),\"N\",\"Y\"))","v":"-"},{"$f":"IF('Enrollment Form'!A150=\"\",\"\",IF('Enrollment Form'!B150=\"Subscriber\",\"-\",IF(AND('Enrollment Form'!B150<>\"Subscriber\",'Enrollment Form'!G150='Enrollment Form'!H150),\"N\",\"Y\")))","v":""},0]
[151,{"$f":"IF('Enrollment Form'!$A151<>\"\",\"Y\",\"N\")","v":"N"},{"$f":"IF(AND('Enrollment Form'!$B151=\"\",'Enrollment Form'!$C151<>\"\"),\"N\",IF($B144=\"N\",\"\",\"Y\"))","v":""},{"$f":"IF(OR($B144=\"N\",'Enrollment Form'!G151=\"\"),\"\",IF('Enrollment Form'!$B151<>\"Subscriber\",\"\",IF('Enrollment Form'!$G151='Enrollment Form'!$H151,\"Y\",\"N\")))","v":""},{"$f":"IF($B144=\"N\",\"\",IF(AND(COUNTIFS('Enrollment Form'!$H$11:$H$1000,'Enrollment Form'!$H151,'Enrollment Form'!$B$11:$B$1000,'Enrollment Form'!$B151)>1,'Enrollment Form'!$H151<>\"\"),\"N\",\"Y\"))","v":""},{"$f":"IF($B144=\"N\",\"\",IF(LEN('Enrollment Form'!$Y151)=0,\"\",IF(LEN('Enrollment Form'!$Y151)<>5,\"N\",\"Y\")))","v":""},{"$f":"IF($B144=\"N\",\"\",IF(LEN('Enrollment Form'!$AD151=0),\"\",IF(LEN('Enrollment Form'!$AD151)<>5,\"N\",\"Y\")))","v":""},{"$f":"IF($B144=\"N\",\"\",IF(LEN('Enrollment Form'!$BL151=0),\"\",IF(LEN('Enrollment Form'!$BL151)<>5,\"N\",\"Y\")))","v":""},{"$f":"IF($B144=\"N\",\"\",IF(LEN('Enrollment Form'!$AE151)=0,\"\",IF(LEN('Enrollment Form'!$AE151)<>10,\"N\",\"Y\")))","v":""},{"$f":"IF($B144=\"N\",\"\",IF(LEN('Enrollment Form'!$AF151)=0,\"\",IF(LEN('Enrollment Form'!$AF151)<>10,\"N\",\"Y\")))","v":""},{"$f":"IF('Enrollment Form'!$O151<>\"Graded\",\"-\",IF(AND('Enrollment Form'!$O151=\"Graded\",'Enrollment Form'!$AO151<>\"\"),\"Y\",\"N\"))","v":"-"},{"$f":"IF($B144=\"N\",\"\",IF(OR('Enrollment Form'!$B151<>\"Subscriber\",'Enrollment Form'!$C151=\"ROC\"),\"-\",IF(AND('Enrollment Form'!$B151=\"Subscriber\",'Enrollment Form'!$C151=\"Enroll\",'Enrollment Form'!$AJ151<>\"\"),\"Y\",\"N\")))","v":""},{"$f":"IF($B144=\"N\",\"\",IF(OR('Enrollment Form'!$B151<>\"Subscriber\",'Enrollment Form'!$C151=\"ROC\"),\"-\",IF(AND('Enrollment Form'!$B151=\"Subscriber\",'Enrollment Form'!$C151=\"Enroll\",'Enrollment Form'!$AK151<>\"\"),\"Y\",\"N\")))","v":""},{"$f":"IF($B144=\"N\",\"\",IF(OR('Enrollment Form'!$B151<>\"Subscriber\",'Enrollment Form'!$C151=\"ROC\"),\"-\",IF(AND('Enrollment Form'!$B151=\"Subscriber\",'Enrollment Form'!$C151=\"Enroll\",'Enrollment Form'!$AL151<>\"\"),\"Y\",\"N\")))","v":""},{"$f":"IF($B144=\"N\",\"\",IF(OR('Enrollment Form'!$B151<>\"Subscriber\",'Enrollment Form'!$C151=\"ROC\"),\"-\",IF(AND('Enrollment Form'!$B151=\"Subscriber\",'Enrollment Form'!$C151=\"Enroll\",'Enrollment Form'!$AM151<>\"\"),\"Y\",\"N\")))","v":""},{"$f":"IF($B144=\"N\",\"\",IF(OR('Enrollment Form'!$B151<>\"Subscriber\",'Enrollment Form'!$C151=\"ROC\"),\"-\",IF(AND('Enrollment Form'!$B151=\"Subscriber\",'Enrollment Form'!$C151=\"Enroll\",'Enrollment Form'!$AN151<>\"\"),\"Y\",\"N\")))","v":""},{"$f":"IF($B144=\"N\",\"\",IF(OR('Enrollment Form'!$B151<>\"Subscriber\",'Enrollment Form'!$C151=\"ROC\"),\"-\",IF(AND('Enrollment Form'!$B151=\"Subscriber\",'Enrollment Form'!$C151=\"Enroll\",'Enrollment Form'!$AP151<>\"\"),\"Y\",\"N\")))","v":""},{"$f":"IF($B144=\"N\",\"\",IF($Q144=\"-\",\"-\",IF(AND($Q144=\"Y\",'Enrollment Form'!$AP151=\"No\"),\"-\",IF(AND($Q144=\"Y\",'Enrollment Form'!$AP151=\"Yes\",'Enrollment Form'!$AQ151<>\"\"),\"Y\",\"N\"))))","v":""},{"$f":"IF($B144=\"N\",\"\",IF(OR('Enrollment Form'!$B151<>\"Subscriber\",'Enrollment Form'!$C151=\"ROC\"),\"-\",IF(AND('Enrollment Form'!$B151=\"Subscriber\",'Enrollment Form'!$C151=\"Enroll\",'Enrollment Form'!$CO151<>\"\"),\"Y\",\"N\")))","v":""},{"$f":"IF($B144=\"N\",\"\",IF($S144=\"-\",\"-\",IF(AND($S144=\"Y\",'Enrollment Form'!$CO151=\"No\"),\"-\",IF(AND($S144=\"Y\",'Enrollment Form'!$CO151=\"Yes\",'Enrollment Form'!$CP151<>\"\"),\"Y\",\"N\"))))","v":""},{"$f":"IF(OR('Enrollment Form'!$AV151=\"Yes\",'Enrollment Form'!$AV151=\"\"),\"-\",IF(AND('Enrollment Form'!$AV151=\"No\",ISERROR(FIND(\"HMO\",VLOOKUP('Enrollment Form'!G151,'Enrollment Form'!H$11:J$1000,3,FALSE),1))=FALSE,COUNTA('Enrollment Form'!$AW151:$AZ151)=4),\"Y\",\"N\"))","v":"-"},{"$f":"IF($B144=\"N\",\"\",IF('Enrollment Form'!$B151=\"Subscriber\",\"-\",IF(COUNTA('Enrollment Form'!$BE151,'Enrollment Form'!$BG151)=2,\"Y\",\"N\")))","v":""},{"$f":"IF($B144=\"N\",\"\",IF(OR('Enrollment Form'!$AU151=\"\",'Enrollment Form'!$AU151=\"No\"),\"-\",IF(AND('Enrollment Form'!$AU151=\"Yes\",COUNTA('Enrollment Form'!$CK151)=1),\"Y\",\"N\")))","v":""},{"$f":"IF(OR('Enrollment Form'!$CK151=\"\",'Enrollment Form'!$CK151=\"No\"),\"-\",IF(COUNTA('Enrollment Form'!$CM151:$CN151)=2,\"Y\",\"N\"))","v":"-"},{"$f":"IF($B144=\"N\",\"\",IF(COUNTIF('Enrollment Form'!$CZ151:$DO151,\"Other\")=COUNTA('Enrollment Form'!$DF151,'Enrollment Form'!$DA151,'Enrollment Form'!$DK151,'Enrollment Form'!$DP151),\"Y\",\"N\"))","v":""},{"$f":"IF($B144=\"N\",\"\",IF(OR('Enrollment Form'!B151<>\"Subscriber\",'Enrollment Form'!C151=\"ROC\",COUNTIF('Enrollment Form'!AS151:AT151,\"Yes\")>=1),\"-\",IF(AND('Enrollment Form'!C151=\"Enroll\",COUNTIF('Enrollment Form'!AS151:AT151,\"No\")=2,'Enrollment Form'!AU151=\"\"),\"N\",\"Y\")))","v":""},{"$f":"IF(OR(B144=\"N\",'Enrollment Form'!B151<>\"Subscriber\",'Enrollment Form'!C151=\"ROC\",'Enrollment Form'!O151<>\"Multiple of Salary\"),\"-\",IF(COUNTA('Enrollment Form'!T151:U151)<2,\"N\",\"Y\"))","v":"-"},{"$f":"IF(B144=\"N\",\"\",IF(OR('Enrollment Form'!C151=\"ROC\",'Enrollment Form'!B151<>\"Subscriber\",'Enrollment Form'!O151=\"Waive\",'Enrollment Form'!O151=\"\"),\"-\",IF('Enrollment Form'!P151=\"\",\"N\",\"Y\")))","v":""},{"$f":"IF($B144=\"N\",\"\",IF(AND('Enrollment Form'!$C151=\"ROC\",'Enrollment Form'!$DS151<>\"\"),\"Y\",IF(AND('Enrollment Form'!$C151=\"ROC\",'Enrollment Form'!$DS151=\"\"),\"N\",IF(AND('Enrollment Form'!$C151=\"Enroll\",'Enrollment Form'!$B151=\"Subscriber\",'Enrollment Form'!$CQ151=\"No\",'Enrollment Form'!$DS151=\"\"),\"N\",IF(AND('Enrollment Form'!$C151=\"Enroll\",'Enrollment Form'!$B151=\"Subscriber\",'Enrollment Form'!$CQ151=\"Yes\"),\"-\",\"Y\")))))","v":""},{"$f":"IF($B144=\"N\",\"\",IF(AND('Enrollment Form'!$C151=\"ROC\",'Enrollment Form'!$DT151<>\"\"),\"Y\",IF(AND('Enrollment Form'!$C151=\"ROC\",'Enrollment Form'!$DT151=\"\"),\"N\",IF(AND('Enrollment Form'!$C151=\"Enroll\",'Enrollment Form'!$B151=\"Subscriber\",'Enrollment Form'!$CQ151=\"No\",'Enrollment Form'!$DT151=\"\"),\"N\",IF(AND('Enrollment Form'!$C151=\"Enroll\",'Enrollment Form'!$B151=\"Subscriber\",'Enrollment Form'!$CQ151=\"Yes\"),\"-\",\"Y\")))))","v":""},{"$f":"IF('Enrollment Form'!AH151=\"\",\"\",IF(ISERROR(SEARCH(\".\",'Enrollment Form'!AH151,SEARCH(\"@\",'Enrollment Form'!AH151))),\"N\",\"Y\"))","v":""},{"$f":"IF(OR($B144=\"N\",'Enrollment Form'!$G151=\"\"),\"\",IF('Enrollment Form'!$B151<>\"Subscriber\",\"-\",IF(COUNTIF('Enrollment Form'!$AS151:$AT151,\"Yes\")=2,\"N\",\"Y\")))","v":""},{"$f":"IF(OR('Enrollment Form'!$CC151=\"\",'Enrollment Form'!$CC151=\"No\"),\"-\",IF(AND('Enrollment Form'!$CC151=\"Yes\",'Enrollment Form'!$CD151=\"\"),\"N\",\"Y\"))","v":"-"},{"$f":"IF(OR('Enrollment Form'!$CE151=\"\",'Enrollment Form'!$CE151=\"No\"),\"-\",IF(AND('Enrollment Form'!$CE151=\"Yes\",'Enrollment Form'!$CF151=\"\"),\"N\",\"Y\"))","v":"-"},{"$f":"IF(OR('Enrollment Form'!$CG151=\"\",'Enrollment Form'!$CG151=\"No\"),\"-\",IF(AND('Enrollment Form'!$CG151=\"Yes\",'Enrollment Form'!$CH151=\"\"),\"N\",\"Y\"))","v":"-"},{"$f":"IF(OR('Enrollment Form'!$CG151=\"\",'Enrollment Form'!$CG151=\"No\"),\"-\",IF(AND('Enrollment Form'!$CG151=\"Yes\",'Enrollment Form'!$CI151=\"\"),\"N\",\"Y\"))","v":"-"},{"$f":"IF('Enrollment Form'!B151<>\"Subscriber\",\"-\",IF(AND('Enrollment Form'!B151=\"Subscriber\",'Enrollment Form'!C151=\"Enroll\",'Enrollment Form'!AA151=\"\"),\"N\",\"Y\"))","v":"-"},{"$f":"IF(OR('Enrollment Form'!B151=\"Subscriber\",'Enrollment Form'!B151=\"\"),\"-\",IF('Enrollment Form'!BI151=\"\",\"N\",\"Y\"))","v":"-"},{"$f":"IF('Enrollment Form'!B151<>\"Subscriber\",\"-\",IF(AND('Enrollment Form'!B151=\"Subscriber\",'Enrollment Form'!G151=\"\"),\"N\",\"Y\"))","v":"-"},{"$f":"IF('Enrollment Form'!A151=\"\",\"\",IF('Enrollment Form'!B151=\"Subscriber\",\"-\",IF(AND('Enrollment Form'!B151<>\"Subscriber\",'Enrollment Form'!G151='Enrollment Form'!H151),\"N\",\"Y\")))","v":""},0]
[152,{"$f":"IF('Enrollment Form'!$A152<>\"\",\"Y\",\"N\")","v":"N"},{"$f":"IF(AND('Enrollment Form'!$B152=\"\",'Enrollment Form'!$C152<>\"\"),\"N\",IF($B145=\"N\",\"\",\"Y\"))","v":""},{"$f":"IF(OR($B145=\"N\",'Enrollment Form'!G152=\"\"),\"\",IF('Enrollment Form'!$B152<>\"Subscriber\",\"\",IF('Enrollment Form'!$G152='Enrollment Form'!$H152,\"Y\",\"N\")))","v":""},{"$f":"IF($B145=\"N\",\"\",IF(AND(COUNTIFS('Enrollment Form'!$H$11:$H$1000,'Enrollment Form'!$H152,'Enrollment Form'!$B$11:$B$1000,'Enrollment Form'!$B152)>1,'Enrollment Form'!$H152<>\"\"),\"N\",\"Y\"))","v":""},{"$f":"IF($B145=\"N\",\"\",IF(LEN('Enrollment Form'!$Y152)=0,\"\",IF(LEN('Enrollment Form'!$Y152)<>5,\"N\",\"Y\")))","v":""},{"$f":"IF($B145=\"N\",\"\",IF(LEN('Enrollment Form'!$AD152=0),\"\",IF(LEN('Enrollment Form'!$AD152)<>5,\"N\",\"Y\")))","v":""},{"$f":"IF($B145=\"N\",\"\",IF(LEN('Enrollment Form'!$BL152=0),\"\",IF(LEN('Enrollment Form'!$BL152)<>5,\"N\",\"Y\")))","v":""},{"$f":"IF($B145=\"N\",\"\",IF(LEN('Enrollment Form'!$AE152)=0,\"\",IF(LEN('Enrollment Form'!$AE152)<>10,\"N\",\"Y\")))","v":""},{"$f":"IF($B145=\"N\",\"\",IF(LEN('Enrollment Form'!$AF152)=0,\"\",IF(LEN('Enrollment Form'!$AF152)<>10,\"N\",\"Y\")))","v":""},{"$f":"IF('Enrollment Form'!$O152<>\"Graded\",\"-\",IF(AND('Enrollment Form'!$O152=\"Graded\",'Enrollment Form'!$AO152<>\"\"),\"Y\",\"N\"))","v":"-"},{"$f":"IF($B145=\"N\",\"\",IF(OR('Enrollment Form'!$B152<>\"Subscriber\",'Enrollment Form'!$C152=\"ROC\"),\"-\",IF(AND('Enrollment Form'!$B152=\"Subscriber\",'Enrollment Form'!$C152=\"Enroll\",'Enrollment Form'!$AJ152<>\"\"),\"Y\",\"N\")))","v":""},{"$f":"IF($B145=\"N\",\"\",IF(OR('Enrollment Form'!$B152<>\"Subscriber\",'Enrollment Form'!$C152=\"ROC\"),\"-\",IF(AND('Enrollment Form'!$B152=\"Subscriber\",'Enrollment Form'!$C152=\"Enroll\",'Enrollment Form'!$AK152<>\"\"),\"Y\",\"N\")))","v":""},{"$f":"IF($B145=\"N\",\"\",IF(OR('Enrollment Form'!$B152<>\"Subscriber\",'Enrollment Form'!$C152=\"ROC\"),\"-\",IF(AND('Enrollment Form'!$B152=\"Subscriber\",'Enrollment Form'!$C152=\"Enroll\",'Enrollment Form'!$AL152<>\"\"),\"Y\",\"N\")))","v":""},{"$f":"IF($B145=\"N\",\"\",IF(OR('Enrollment Form'!$B152<>\"Subscriber\",'Enrollment Form'!$C152=\"ROC\"),\"-\",IF(AND('Enrollment Form'!$B152=\"Subscriber\",'Enrollment Form'!$C152=\"Enroll\",'Enrollment Form'!$AM152<>\"\"),\"Y\",\"N\")))","v":""},{"$f":"IF($B145=\"N\",\"\",IF(OR('Enrollment Form'!$B152<>\"Subscriber\",'Enrollment Form'!$C152=\"ROC\"),\"-\",IF(AND('Enrollment Form'!$B152=\"Subscriber\",'Enrollment Form'!$C152=\"Enroll\",'Enrollment Form'!$AN152<>\"\"),\"Y\",\"N\")))","v":""},{"$f":"IF($B145=\"N\",\"\",IF(OR('Enrollment Form'!$B152<>\"Subscriber\",'Enrollment Form'!$C152=\"ROC\"),\"-\",IF(AND('Enrollment Form'!$B152=\"Subscriber\",'Enrollment Form'!$C152=\"Enroll\",'Enrollment Form'!$AP152<>\"\"),\"Y\",\"N\")))","v":""},{"$f":"IF($B145=\"N\",\"\",IF($Q145=\"-\",\"-\",IF(AND($Q145=\"Y\",'Enrollment Form'!$AP152=\"No\"),\"-\",IF(AND($Q145=\"Y\",'Enrollment Form'!$AP152=\"Yes\",'Enrollment Form'!$AQ152<>\"\"),\"Y\",\"N\"))))","v":""},{"$f":"IF($B145=\"N\",\"\",IF(OR('Enrollment Form'!$B152<>\"Subscriber\",'Enrollment Form'!$C152=\"ROC\"),\"-\",IF(AND('Enrollment Form'!$B152=\"Subscriber\",'Enrollment Form'!$C152=\"Enroll\",'Enrollment Form'!$CO152<>\"\"),\"Y\",\"N\")))","v":""},{"$f":"IF($B145=\"N\",\"\",IF($S145=\"-\",\"-\",IF(AND($S145=\"Y\",'Enrollment Form'!$CO152=\"No\"),\"-\",IF(AND($S145=\"Y\",'Enrollment Form'!$CO152=\"Yes\",'Enrollment Form'!$CP152<>\"\"),\"Y\",\"N\"))))","v":""},{"$f":"IF(OR('Enrollment Form'!$AV152=\"Yes\",'Enrollment Form'!$AV152=\"\"),\"-\",IF(AND('Enrollment Form'!$AV152=\"No\",ISERROR(FIND(\"HMO\",VLOOKUP('Enrollment Form'!G152,'Enrollment Form'!H$11:J$1000,3,FALSE),1))=FALSE,COUNTA('Enrollment Form'!$AW152:$AZ152)=4),\"Y\",\"N\"))","v":"-"},{"$f":"IF($B145=\"N\",\"\",IF('Enrollment Form'!$B152=\"Subscriber\",\"-\",IF(COUNTA('Enrollment Form'!$BE152,'Enrollment Form'!$BG152)=2,\"Y\",\"N\")))","v":""},{"$f":"IF($B145=\"N\",\"\",IF(OR('Enrollment Form'!$AU152=\"\",'Enrollment Form'!$AU152=\"No\"),\"-\",IF(AND('Enrollment Form'!$AU152=\"Yes\",COUNTA('Enrollment Form'!$CK152)=1),\"Y\",\"N\")))","v":""},{"$f":"IF(OR('Enrollment Form'!$CK152=\"\",'Enrollment Form'!$CK152=\"No\"),\"-\",IF(COUNTA('Enrollment Form'!$CM152:$CN152)=2,\"Y\",\"N\"))","v":"-"},{"$f":"IF($B145=\"N\",\"\",IF(COUNTIF('Enrollment Form'!$CZ152:$DO152,\"Other\")=COUNTA('Enrollment Form'!$DF152,'Enrollment Form'!$DA152,'Enrollment Form'!$DK152,'Enrollment Form'!$DP152),\"Y\",\"N\"))","v":""},{"$f":"IF($B145=\"N\",\"\",IF(OR('Enrollment Form'!B152<>\"Subscriber\",'Enrollment Form'!C152=\"ROC\",COUNTIF('Enrollment Form'!AS152:AT152,\"Yes\")>=1),\"-\",IF(AND('Enrollment Form'!C152=\"Enroll\",COUNTIF('Enrollment Form'!AS152:AT152,\"No\")=2,'Enrollment Form'!AU152=\"\"),\"N\",\"Y\")))","v":""},{"$f":"IF(OR(B145=\"N\",'Enrollment Form'!B152<>\"Subscriber\",'Enrollment Form'!C152=\"ROC\",'Enrollment Form'!O152<>\"Multiple of Salary\"),\"-\",IF(COUNTA('Enrollment Form'!T152:U152)<2,\"N\",\"Y\"))","v":"-"},{"$f":"IF(B145=\"N\",\"\",IF(OR('Enrollment Form'!C152=\"ROC\",'Enrollment Form'!B152<>\"Subscriber\",'Enrollment Form'!O152=\"Waive\",'Enrollment Form'!O152=\"\"),\"-\",IF('Enrollment Form'!P152=\"\",\"N\",\"Y\")))","v":""},{"$f":"IF($B145=\"N\",\"\",IF(AND('Enrollment Form'!$C152=\"ROC\",'Enrollment Form'!$DS152<>\"\"),\"Y\",IF(AND('Enrollment Form'!$C152=\"ROC\",'Enrollment Form'!$DS152=\"\"),\"N\",IF(AND('Enrollment Form'!$C152=\"Enroll\",'Enrollment Form'!$B152=\"Subscriber\",'Enrollment Form'!$CQ152=\"No\",'Enrollment Form'!$DS152=\"\"),\"N\",IF(AND('Enrollment Form'!$C152=\"Enroll\",'Enrollment Form'!$B152=\"Subscriber\",'Enrollment Form'!$CQ152=\"Yes\"),\"-\",\"Y\")))))","v":""},{"$f":"IF($B145=\"N\",\"\",IF(AND('Enrollment Form'!$C152=\"ROC\",'Enrollment Form'!$DT152<>\"\"),\"Y\",IF(AND('Enrollment Form'!$C152=\"ROC\",'Enrollment Form'!$DT152=\"\"),\"N\",IF(AND('Enrollment Form'!$C152=\"Enroll\",'Enrollment Form'!$B152=\"Subscriber\",'Enrollment Form'!$CQ152=\"No\",'Enrollment Form'!$DT152=\"\"),\"N\",IF(AND('Enrollment Form'!$C152=\"Enroll\",'Enrollment Form'!$B152=\"Subscriber\",'Enrollment Form'!$CQ152=\"Yes\"),\"-\",\"Y\")))))","v":""},{"$f":"IF('Enrollment Form'!AH152=\"\",\"\",IF(ISERROR(SEARCH(\".\",'Enrollment Form'!AH152,SEARCH(\"@\",'Enrollment Form'!AH152))),\"N\",\"Y\"))","v":""},{"$f":"IF(OR($B145=\"N\",'Enrollment Form'!$G152=\"\"),\"\",IF('Enrollment Form'!$B152<>\"Subscriber\",\"-\",IF(COUNTIF('Enrollment Form'!$AS152:$AT152,\"Yes\")=2,\"N\",\"Y\")))","v":""},{"$f":"IF(OR('Enrollment Form'!$CC152=\"\",'Enrollment Form'!$CC152=\"No\"),\"-\",IF(AND('Enrollment Form'!$CC152=\"Yes\",'Enrollment Form'!$CD152=\"\"),\"N\",\"Y\"))","v":"-"},{"$f":"IF(OR('Enrollment Form'!$CE152=\"\",'Enrollment Form'!$CE152=\"No\"),\"-\",IF(AND('Enrollment Form'!$CE152=\"Yes\",'Enrollment Form'!$CF152=\"\"),\"N\",\"Y\"))","v":"-"},{"$f":"IF(OR('Enrollment Form'!$CG152=\"\",'Enrollment Form'!$CG152=\"No\"),\"-\",IF(AND('Enrollment Form'!$CG152=\"Yes\",'Enrollment Form'!$CH152=\"\"),\"N\",\"Y\"))","v":"-"},{"$f":"IF(OR('Enrollment Form'!$CG152=\"\",'Enrollment Form'!$CG152=\"No\"),\"-\",IF(AND('Enrollment Form'!$CG152=\"Yes\",'Enrollment Form'!$CI152=\"\"),\"N\",\"Y\"))","v":"-"},{"$f":"IF('Enrollment Form'!B152<>\"Subscriber\",\"-\",IF(AND('Enrollment Form'!B152=\"Subscriber\",'Enrollment Form'!C152=\"Enroll\",'Enrollment Form'!AA152=\"\"),\"N\",\"Y\"))","v":"-"},{"$f":"IF(OR('Enrollment Form'!B152=\"Subscriber\",'Enrollment Form'!B152=\"\"),\"-\",IF('Enrollment Form'!BI152=\"\",\"N\",\"Y\"))","v":"-"},{"$f":"IF('Enrollment Form'!B152<>\"Subscriber\",\"-\",IF(AND('Enrollment Form'!B152=\"Subscriber\",'Enrollment Form'!G152=\"\"),\"N\",\"Y\"))","v":"-"},{"$f":"IF('Enrollment Form'!A152=\"\",\"\",IF('Enrollment Form'!B152=\"Subscriber\",\"-\",IF(AND('Enrollment Form'!B152<>\"Subscriber\",'Enrollment Form'!G152='Enrollment Form'!H152),\"N\",\"Y\")))","v":""},0]
[153,{"$f":"IF('Enrollment Form'!$A153<>\"\",\"Y\",\"N\")","v":"N"},{"$f":"IF(AND('Enrollment Form'!$B153=\"\",'Enrollment Form'!$C153<>\"\"),\"N\",IF($B146=\"N\",\"\",\"Y\"))","v":""},{"$f":"IF(OR($B146=\"N\",'Enrollment Form'!G153=\"\"),\"\",IF('Enrollment Form'!$B153<>\"Subscriber\",\"\",IF('Enrollment Form'!$G153='Enrollment Form'!$H153,\"Y\",\"N\")))","v":""},{"$f":"IF($B146=\"N\",\"\",IF(AND(COUNTIFS('Enrollment Form'!$H$11:$H$1000,'Enrollment Form'!$H153,'Enrollment Form'!$B$11:$B$1000,'Enrollment Form'!$B153)>1,'Enrollment Form'!$H153<>\"\"),\"N\",\"Y\"))","v":""},{"$f":"IF($B146=\"N\",\"\",IF(LEN('Enrollment Form'!$Y153)=0,\"\",IF(LEN('Enrollment Form'!$Y153)<>5,\"N\",\"Y\")))","v":""},{"$f":"IF($B146=\"N\",\"\",IF(LEN('Enrollment Form'!$AD153=0),\"\",IF(LEN('Enrollment Form'!$AD153)<>5,\"N\",\"Y\")))","v":""},{"$f":"IF($B146=\"N\",\"\",IF(LEN('Enrollment Form'!$BL153=0),\"\",IF(LEN('Enrollment Form'!$BL153)<>5,\"N\",\"Y\")))","v":""},{"$f":"IF($B146=\"N\",\"\",IF(LEN('Enrollment Form'!$AE153)=0,\"\",IF(LEN('Enrollment Form'!$AE153)<>10,\"N\",\"Y\")))","v":""},{"$f":"IF($B146=\"N\",\"\",IF(LEN('Enrollment Form'!$AF153)=0,\"\",IF(LEN('Enrollment Form'!$AF153)<>10,\"N\",\"Y\")))","v":""},{"$f":"IF('Enrollment Form'!$O153<>\"Graded\",\"-\",IF(AND('Enrollment Form'!$O153=\"Graded\",'Enrollment Form'!$AO153<>\"\"),\"Y\",\"N\"))","v":"-"},{"$f":"IF($B146=\"N\",\"\",IF(OR('Enrollment Form'!$B153<>\"Subscriber\",'Enrollment Form'!$C153=\"ROC\"),\"-\",IF(AND('Enrollment Form'!$B153=\"Subscriber\",'Enrollment Form'!$C153=\"Enroll\",'Enrollment Form'!$AJ153<>\"\"),\"Y\",\"N\")))","v":""},{"$f":"IF($B146=\"N\",\"\",IF(OR('Enrollment Form'!$B153<>\"Subscriber\",'Enrollment Form'!$C153=\"ROC\"),\"-\",IF(AND('Enrollment Form'!$B153=\"Subscriber\",'Enrollment Form'!$C153=\"Enroll\",'Enrollment Form'!$AK153<>\"\"),\"Y\",\"N\")))","v":""},{"$f":"IF($B146=\"N\",\"\",IF(OR('Enrollment Form'!$B153<>\"Subscriber\",'Enrollment Form'!$C153=\"ROC\"),\"-\",IF(AND('Enrollment Form'!$B153=\"Subscriber\",'Enrollment Form'!$C153=\"Enroll\",'Enrollment Form'!$AL153<>\"\"),\"Y\",\"N\")))","v":""},{"$f":"IF($B146=\"N\",\"\",IF(OR('Enrollment Form'!$B153<>\"Subscriber\",'Enrollment Form'!$C153=\"ROC\"),\"-\",IF(AND('Enrollment Form'!$B153=\"Subscriber\",'Enrollment Form'!$C153=\"Enroll\",'Enrollment Form'!$AM153<>\"\"),\"Y\",\"N\")))","v":""},{"$f":"IF($B146=\"N\",\"\",IF(OR('Enrollment Form'!$B153<>\"Subscriber\",'Enrollment Form'!$C153=\"ROC\"),\"-\",IF(AND('Enrollment Form'!$B153=\"Subscriber\",'Enrollment Form'!$C153=\"Enroll\",'Enrollment Form'!$AN153<>\"\"),\"Y\",\"N\")))","v":""},{"$f":"IF($B146=\"N\",\"\",IF(OR('Enrollment Form'!$B153<>\"Subscriber\",'Enrollment Form'!$C153=\"ROC\"),\"-\",IF(AND('Enrollment Form'!$B153=\"Subscriber\",'Enrollment Form'!$C153=\"Enroll\",'Enrollment Form'!$AP153<>\"\"),\"Y\",\"N\")))","v":""},{"$f":"IF($B146=\"N\",\"\",IF($Q146=\"-\",\"-\",IF(AND($Q146=\"Y\",'Enrollment Form'!$AP153=\"No\"),\"-\",IF(AND($Q146=\"Y\",'Enrollment Form'!$AP153=\"Yes\",'Enrollment Form'!$AQ153<>\"\"),\"Y\",\"N\"))))","v":""},{"$f":"IF($B146=\"N\",\"\",IF(OR('Enrollment Form'!$B153<>\"Subscriber\",'Enrollment Form'!$C153=\"ROC\"),\"-\",IF(AND('Enrollment Form'!$B153=\"Subscriber\",'Enrollment Form'!$C153=\"Enroll\",'Enrollment Form'!$CO153<>\"\"),\"Y\",\"N\")))","v":""},{"$f":"IF($B146=\"N\",\"\",IF($S146=\"-\",\"-\",IF(AND($S146=\"Y\",'Enrollment Form'!$CO153=\"No\"),\"-\",IF(AND($S146=\"Y\",'Enrollment Form'!$CO153=\"Yes\",'Enrollment Form'!$CP153<>\"\"),\"Y\",\"N\"))))","v":""},{"$f":"IF(OR('Enrollment Form'!$AV153=\"Yes\",'Enrollment Form'!$AV153=\"\"),\"-\",IF(AND('Enrollment Form'!$AV153=\"No\",ISERROR(FIND(\"HMO\",VLOOKUP('Enrollment Form'!G153,'Enrollment Form'!H$11:J$1000,3,FALSE),1))=FALSE,COUNTA('Enrollment Form'!$AW153:$AZ153)=4),\"Y\",\"N\"))","v":"-"},{"$f":"IF($B146=\"N\",\"\",IF('Enrollment Form'!$B153=\"Subscriber\",\"-\",IF(COUNTA('Enrollment Form'!$BE153,'Enrollment Form'!$BG153)=2,\"Y\",\"N\")))","v":""},{"$f":"IF($B146=\"N\",\"\",IF(OR('Enrollment Form'!$AU153=\"\",'Enrollment Form'!$AU153=\"No\"),\"-\",IF(AND('Enrollment Form'!$AU153=\"Yes\",COUNTA('Enrollment Form'!$CK153)=1),\"Y\",\"N\")))","v":""},{"$f":"IF(OR('Enrollment Form'!$CK153=\"\",'Enrollment Form'!$CK153=\"No\"),\"-\",IF(COUNTA('Enrollment Form'!$CM153:$CN153)=2,\"Y\",\"N\"))","v":"-"},{"$f":"IF($B146=\"N\",\"\",IF(COUNTIF('Enrollment Form'!$CZ153:$DO153,\"Other\")=COUNTA('Enrollment Form'!$DF153,'Enrollment Form'!$DA153,'Enrollment Form'!$DK153,'Enrollment Form'!$DP153),\"Y\",\"N\"))","v":""},{"$f":"IF($B146=\"N\",\"\",IF(OR('Enrollment Form'!B153<>\"Subscriber\",'Enrollment Form'!C153=\"ROC\",COUNTIF('Enrollment Form'!AS153:AT153,\"Yes\")>=1),\"-\",IF(AND('Enrollment Form'!C153=\"Enroll\",COUNTIF('Enrollment Form'!AS153:AT153,\"No\")=2,'Enrollment Form'!AU153=\"\"),\"N\",\"Y\")))","v":""},{"$f":"IF(OR(B146=\"N\",'Enrollment Form'!B153<>\"Subscriber\",'Enrollment Form'!C153=\"ROC\",'Enrollment Form'!O153<>\"Multiple of Salary\"),\"-\",IF(COUNTA('Enrollment Form'!T153:U153)<2,\"N\",\"Y\"))","v":"-"},{"$f":"IF(B146=\"N\",\"\",IF(OR('Enrollment Form'!C153=\"ROC\",'Enrollment Form'!B153<>\"Subscriber\",'Enrollment Form'!O153=\"Waive\",'Enrollment Form'!O153=\"\"),\"-\",IF('Enrollment Form'!P153=\"\",\"N\",\"Y\")))","v":""},{"$f":"IF($B146=\"N\",\"\",IF(AND('Enrollment Form'!$C153=\"ROC\",'Enrollment Form'!$DS153<>\"\"),\"Y\",IF(AND('Enrollment Form'!$C153=\"ROC\",'Enrollment Form'!$DS153=\"\"),\"N\",IF(AND('Enrollment Form'!$C153=\"Enroll\",'Enrollment Form'!$B153=\"Subscriber\",'Enrollment Form'!$CQ153=\"No\",'Enrollment Form'!$DS153=\"\"),\"N\",IF(AND('Enrollment Form'!$C153=\"Enroll\",'Enrollment Form'!$B153=\"Subscriber\",'Enrollment Form'!$CQ153=\"Yes\"),\"-\",\"Y\")))))","v":""},{"$f":"IF($B146=\"N\",\"\",IF(AND('Enrollment Form'!$C153=\"ROC\",'Enrollment Form'!$DT153<>\"\"),\"Y\",IF(AND('Enrollment Form'!$C153=\"ROC\",'Enrollment Form'!$DT153=\"\"),\"N\",IF(AND('Enrollment Form'!$C153=\"Enroll\",'Enrollment Form'!$B153=\"Subscriber\",'Enrollment Form'!$CQ153=\"No\",'Enrollment Form'!$DT153=\"\"),\"N\",IF(AND('Enrollment Form'!$C153=\"Enroll\",'Enrollment Form'!$B153=\"Subscriber\",'Enrollment Form'!$CQ153=\"Yes\"),\"-\",\"Y\")))))","v":""},{"$f":"IF('Enrollment Form'!AH153=\"\",\"\",IF(ISERROR(SEARCH(\".\",'Enrollment Form'!AH153,SEARCH(\"@\",'Enrollment Form'!AH153))),\"N\",\"Y\"))","v":""},{"$f":"IF(OR($B146=\"N\",'Enrollment Form'!$G153=\"\"),\"\",IF('Enrollment Form'!$B153<>\"Subscriber\",\"-\",IF(COUNTIF('Enrollment Form'!$AS153:$AT153,\"Yes\")=2,\"N\",\"Y\")))","v":""},{"$f":"IF(OR('Enrollment Form'!$CC153=\"\",'Enrollment Form'!$CC153=\"No\"),\"-\",IF(AND('Enrollment Form'!$CC153=\"Yes\",'Enrollment Form'!$CD153=\"\"),\"N\",\"Y\"))","v":"-"},{"$f":"IF(OR('Enrollment Form'!$CE153=\"\",'Enrollment Form'!$CE153=\"No\"),\"-\",IF(AND('Enrollment Form'!$CE153=\"Yes\",'Enrollment Form'!$CF153=\"\"),\"N\",\"Y\"))","v":"-"},{"$f":"IF(OR('Enrollment Form'!$CG153=\"\",'Enrollment Form'!$CG153=\"No\"),\"-\",IF(AND('Enrollment Form'!$CG153=\"Yes\",'Enrollment Form'!$CH153=\"\"),\"N\",\"Y\"))","v":"-"},{"$f":"IF(OR('Enrollment Form'!$CG153=\"\",'Enrollment Form'!$CG153=\"No\"),\"-\",IF(AND('Enrollment Form'!$CG153=\"Yes\",'Enrollment Form'!$CI153=\"\"),\"N\",\"Y\"))","v":"-"},{"$f":"IF('Enrollment Form'!B153<>\"Subscriber\",\"-\",IF(AND('Enrollment Form'!B153=\"Subscriber\",'Enrollment Form'!C153=\"Enroll\",'Enrollment Form'!AA153=\"\"),\"N\",\"Y\"))","v":"-"},{"$f":"IF(OR('Enrollment Form'!B153=\"Subscriber\",'Enrollment Form'!B153=\"\"),\"-\",IF('Enrollment Form'!BI153=\"\",\"N\",\"Y\"))","v":"-"},{"$f":"IF('Enrollment Form'!B153<>\"Subscriber\",\"-\",IF(AND('Enrollment Form'!B153=\"Subscriber\",'Enrollment Form'!G153=\"\"),\"N\",\"Y\"))","v":"-"},{"$f":"IF('Enrollment Form'!A153=\"\",\"\",IF('Enrollment Form'!B153=\"Subscriber\",\"-\",IF(AND('Enrollment Form'!B153<>\"Subscriber\",'Enrollment Form'!G153='Enrollment Form'!H153),\"N\",\"Y\")))","v":""},0]
[154,{"$f":"IF('Enrollment Form'!$A154<>\"\",\"Y\",\"N\")","v":"N"},{"$f":"IF(AND('Enrollment Form'!$B154=\"\",'Enrollment Form'!$C154<>\"\"),\"N\",IF($B147=\"N\",\"\",\"Y\"))","v":""},{"$f":"IF(OR($B147=\"N\",'Enrollment Form'!G154=\"\"),\"\",IF('Enrollment Form'!$B154<>\"Subscriber\",\"\",IF('Enrollment Form'!$G154='Enrollment Form'!$H154,\"Y\",\"N\")))","v":""},{"$f":"IF($B147=\"N\",\"\",IF(AND(COUNTIFS('Enrollment Form'!$H$11:$H$1000,'Enrollment Form'!$H154,'Enrollment Form'!$B$11:$B$1000,'Enrollment Form'!$B154)>1,'Enrollment Form'!$H154<>\"\"),\"N\",\"Y\"))","v":""},{"$f":"IF($B147=\"N\",\"\",IF(LEN('Enrollment Form'!$Y154)=0,\"\",IF(LEN('Enrollment Form'!$Y154)<>5,\"N\",\"Y\")))","v":""},{"$f":"IF($B147=\"N\",\"\",IF(LEN('Enrollment Form'!$AD154=0),\"\",IF(LEN('Enrollment Form'!$AD154)<>5,\"N\",\"Y\")))","v":""},{"$f":"IF($B147=\"N\",\"\",IF(LEN('Enrollment Form'!$BL154=0),\"\",IF(LEN('Enrollment Form'!$BL154)<>5,\"N\",\"Y\")))","v":""},{"$f":"IF($B147=\"N\",\"\",IF(LEN('Enrollment Form'!$AE154)=0,\"\",IF(LEN('Enrollment Form'!$AE154)<>10,\"N\",\"Y\")))","v":""},{"$f":"IF($B147=\"N\",\"\",IF(LEN('Enrollment Form'!$AF154)=0,\"\",IF(LEN('Enrollment Form'!$AF154)<>10,\"N\",\"Y\")))","v":""},{"$f":"IF('Enrollment Form'!$O154<>\"Graded\",\"-\",IF(AND('Enrollment Form'!$O154=\"Graded\",'Enrollment Form'!$AO154<>\"\"),\"Y\",\"N\"))","v":"-"},{"$f":"IF($B147=\"N\",\"\",IF(OR('Enrollment Form'!$B154<>\"Subscriber\",'Enrollment Form'!$C154=\"ROC\"),\"-\",IF(AND('Enrollment Form'!$B154=\"Subscriber\",'Enrollment Form'!$C154=\"Enroll\",'Enrollment Form'!$AJ154<>\"\"),\"Y\",\"N\")))","v":""},{"$f":"IF($B147=\"N\",\"\",IF(OR('Enrollment Form'!$B154<>\"Subscriber\",'Enrollment Form'!$C154=\"ROC\"),\"-\",IF(AND('Enrollment Form'!$B154=\"Subscriber\",'Enrollment Form'!$C154=\"Enroll\",'Enrollment Form'!$AK154<>\"\"),\"Y\",\"N\")))","v":""},{"$f":"IF($B147=\"N\",\"\",IF(OR('Enrollment Form'!$B154<>\"Subscriber\",'Enrollment Form'!$C154=\"ROC\"),\"-\",IF(AND('Enrollment Form'!$B154=\"Subscriber\",'Enrollment Form'!$C154=\"Enroll\",'Enrollment Form'!$AL154<>\"\"),\"Y\",\"N\")))","v":""},{"$f":"IF($B147=\"N\",\"\",IF(OR('Enrollment Form'!$B154<>\"Subscriber\",'Enrollment Form'!$C154=\"ROC\"),\"-\",IF(AND('Enrollment Form'!$B154=\"Subscriber\",'Enrollment Form'!$C154=\"Enroll\",'Enrollment Form'!$AM154<>\"\"),\"Y\",\"N\")))","v":""},{"$f":"IF($B147=\"N\",\"\",IF(OR('Enrollment Form'!$B154<>\"Subscriber\",'Enrollment Form'!$C154=\"ROC\"),\"-\",IF(AND('Enrollment Form'!$B154=\"Subscriber\",'Enrollment Form'!$C154=\"Enroll\",'Enrollment Form'!$AN154<>\"\"),\"Y\",\"N\")))","v":""},{"$f":"IF($B147=\"N\",\"\",IF(OR('Enrollment Form'!$B154<>\"Subscriber\",'Enrollment Form'!$C154=\"ROC\"),\"-\",IF(AND('Enrollment Form'!$B154=\"Subscriber\",'Enrollment Form'!$C154=\"Enroll\",'Enrollment Form'!$AP154<>\"\"),\"Y\",\"N\")))","v":""},{"$f":"IF($B147=\"N\",\"\",IF($Q147=\"-\",\"-\",IF(AND($Q147=\"Y\",'Enrollment Form'!$AP154=\"No\"),\"-\",IF(AND($Q147=\"Y\",'Enrollment Form'!$AP154=\"Yes\",'Enrollment Form'!$AQ154<>\"\"),\"Y\",\"N\"))))","v":""},{"$f":"IF($B147=\"N\",\"\",IF(OR('Enrollment Form'!$B154<>\"Subscriber\",'Enrollment Form'!$C154=\"ROC\"),\"-\",IF(AND('Enrollment Form'!$B154=\"Subscriber\",'Enrollment Form'!$C154=\"Enroll\",'Enrollment Form'!$CO154<>\"\"),\"Y\",\"N\")))","v":""},{"$f":"IF($B147=\"N\",\"\",IF($S147=\"-\",\"-\",IF(AND($S147=\"Y\",'Enrollment Form'!$CO154=\"No\"),\"-\",IF(AND($S147=\"Y\",'Enrollment Form'!$CO154=\"Yes\",'Enrollment Form'!$CP154<>\"\"),\"Y\",\"N\"))))","v":""},{"$f":"IF(OR('Enrollment Form'!$AV154=\"Yes\",'Enrollment Form'!$AV154=\"\"),\"-\",IF(AND('Enrollment Form'!$AV154=\"No\",ISERROR(FIND(\"HMO\",VLOOKUP('Enrollment Form'!G154,'Enrollment Form'!H$11:J$1000,3,FALSE),1))=FALSE,COUNTA('Enrollment Form'!$AW154:$AZ154)=4),\"Y\",\"N\"))","v":"-"},{"$f":"IF($B147=\"N\",\"\",IF('Enrollment Form'!$B154=\"Subscriber\",\"-\",IF(COUNTA('Enrollment Form'!$BE154,'Enrollment Form'!$BG154)=2,\"Y\",\"N\")))","v":""},{"$f":"IF($B147=\"N\",\"\",IF(OR('Enrollment Form'!$AU154=\"\",'Enrollment Form'!$AU154=\"No\"),\"-\",IF(AND('Enrollment Form'!$AU154=\"Yes\",COUNTA('Enrollment Form'!$CK154)=1),\"Y\",\"N\")))","v":""},{"$f":"IF(OR('Enrollment Form'!$CK154=\"\",'Enrollment Form'!$CK154=\"No\"),\"-\",IF(COUNTA('Enrollment Form'!$CM154:$CN154)=2,\"Y\",\"N\"))","v":"-"},{"$f":"IF($B147=\"N\",\"\",IF(COUNTIF('Enrollment Form'!$CZ154:$DO154,\"Other\")=COUNTA('Enrollment Form'!$DF154,'Enrollment Form'!$DA154,'Enrollment Form'!$DK154,'Enrollment Form'!$DP154),\"Y\",\"N\"))","v":""},{"$f":"IF($B147=\"N\",\"\",IF(OR('Enrollment Form'!B154<>\"Subscriber\",'Enrollment Form'!C154=\"ROC\",COUNTIF('Enrollment Form'!AS154:AT154,\"Yes\")>=1),\"-\",IF(AND('Enrollment Form'!C154=\"Enroll\",COUNTIF('Enrollment Form'!AS154:AT154,\"No\")=2,'Enrollment Form'!AU154=\"\"),\"N\",\"Y\")))","v":""},{"$f":"IF(OR(B147=\"N\",'Enrollment Form'!B154<>\"Subscriber\",'Enrollment Form'!C154=\"ROC\",'Enrollment Form'!O154<>\"Multiple of Salary\"),\"-\",IF(COUNTA('Enrollment Form'!T154:U154)<2,\"N\",\"Y\"))","v":"-"},{"$f":"IF(B147=\"N\",\"\",IF(OR('Enrollment Form'!C154=\"ROC\",'Enrollment Form'!B154<>\"Subscriber\",'Enrollment Form'!O154=\"Waive\",'Enrollment Form'!O154=\"\"),\"-\",IF('Enrollment Form'!P154=\"\",\"N\",\"Y\")))","v":""},{"$f":"IF($B147=\"N\",\"\",IF(AND('Enrollment Form'!$C154=\"ROC\",'Enrollment Form'!$DS154<>\"\"),\"Y\",IF(AND('Enrollment Form'!$C154=\"ROC\",'Enrollment Form'!$DS154=\"\"),\"N\",IF(AND('Enrollment Form'!$C154=\"Enroll\",'Enrollment Form'!$B154=\"Subscriber\",'Enrollment Form'!$CQ154=\"No\",'Enrollment Form'!$DS154=\"\"),\"N\",IF(AND('Enrollment Form'!$C154=\"Enroll\",'Enrollment Form'!$B154=\"Subscriber\",'Enrollment Form'!$CQ154=\"Yes\"),\"-\",\"Y\")))))","v":""},{"$f":"IF($B147=\"N\",\"\",IF(AND('Enrollment Form'!$C154=\"ROC\",'Enrollment Form'!$DT154<>\"\"),\"Y\",IF(AND('Enrollment Form'!$C154=\"ROC\",'Enrollment Form'!$DT154=\"\"),\"N\",IF(AND('Enrollment Form'!$C154=\"Enroll\",'Enrollment Form'!$B154=\"Subscriber\",'Enrollment Form'!$CQ154=\"No\",'Enrollment Form'!$DT154=\"\"),\"N\",IF(AND('Enrollment Form'!$C154=\"Enroll\",'Enrollment Form'!$B154=\"Subscriber\",'Enrollment Form'!$CQ154=\"Yes\"),\"-\",\"Y\")))))","v":""},{"$f":"IF('Enrollment Form'!AH154=\"\",\"\",IF(ISERROR(SEARCH(\".\",'Enrollment Form'!AH154,SEARCH(\"@\",'Enrollment Form'!AH154))),\"N\",\"Y\"))","v":""},{"$f":"IF(OR($B147=\"N\",'Enrollment Form'!$G154=\"\"),\"\",IF('Enrollment Form'!$B154<>\"Subscriber\",\"-\",IF(COUNTIF('Enrollment Form'!$AS154:$AT154,\"Yes\")=2,\"N\",\"Y\")))","v":""},{"$f":"IF(OR('Enrollment Form'!$CC154=\"\",'Enrollment Form'!$CC154=\"No\"),\"-\",IF(AND('Enrollment Form'!$CC154=\"Yes\",'Enrollment Form'!$CD154=\"\"),\"N\",\"Y\"))","v":"-"},{"$f":"IF(OR('Enrollment Form'!$CE154=\"\",'Enrollment Form'!$CE154=\"No\"),\"-\",IF(AND('Enrollment Form'!$CE154=\"Yes\",'Enrollment Form'!$CF154=\"\"),\"N\",\"Y\"))","v":"-"},{"$f":"IF(OR('Enrollment Form'!$CG154=\"\",'Enrollment Form'!$CG154=\"No\"),\"-\",IF(AND('Enrollment Form'!$CG154=\"Yes\",'Enrollment Form'!$CH154=\"\"),\"N\",\"Y\"))","v":"-"},{"$f":"IF(OR('Enrollment Form'!$CG154=\"\",'Enrollment Form'!$CG154=\"No\"),\"-\",IF(AND('Enrollment Form'!$CG154=\"Yes\",'Enrollment Form'!$CI154=\"\"),\"N\",\"Y\"))","v":"-"},{"$f":"IF('Enrollment Form'!B154<>\"Subscriber\",\"-\",IF(AND('Enrollment Form'!B154=\"Subscriber\",'Enrollment Form'!C154=\"Enroll\",'Enrollment Form'!AA154=\"\"),\"N\",\"Y\"))","v":"-"},{"$f":"IF(OR('Enrollment Form'!B154=\"Subscriber\",'Enrollment Form'!B154=\"\"),\"-\",IF('Enrollment Form'!BI154=\"\",\"N\",\"Y\"))","v":"-"},{"$f":"IF('Enrollment Form'!B154<>\"Subscriber\",\"-\",IF(AND('Enrollment Form'!B154=\"Subscriber\",'Enrollment Form'!G154=\"\"),\"N\",\"Y\"))","v":"-"},{"$f":"IF('Enrollment Form'!A154=\"\",\"\",IF('Enrollment Form'!B154=\"Subscriber\",\"-\",IF(AND('Enrollment Form'!B154<>\"Subscriber\",'Enrollment Form'!G154='Enrollment Form'!H154),\"N\",\"Y\")))","v":""},0]
[155,{"$f":"IF('Enrollment Form'!$A155<>\"\",\"Y\",\"N\")","v":"N"},{"$f":"IF(AND('Enrollment Form'!$B155=\"\",'Enrollment Form'!$C155<>\"\"),\"N\",IF($B148=\"N\",\"\",\"Y\"))","v":""},{"$f":"IF(OR($B148=\"N\",'Enrollment Form'!G155=\"\"),\"\",IF('Enrollment Form'!$B155<>\"Subscriber\",\"\",IF('Enrollment Form'!$G155='Enrollment Form'!$H155,\"Y\",\"N\")))","v":""},{"$f":"IF($B148=\"N\",\"\",IF(AND(COUNTIFS('Enrollment Form'!$H$11:$H$1000,'Enrollment Form'!$H155,'Enrollment Form'!$B$11:$B$1000,'Enrollment Form'!$B155)>1,'Enrollment Form'!$H155<>\"\"),\"N\",\"Y\"))","v":""},{"$f":"IF($B148=\"N\",\"\",IF(LEN('Enrollment Form'!$Y155)=0,\"\",IF(LEN('Enrollment Form'!$Y155)<>5,\"N\",\"Y\")))","v":""},{"$f":"IF($B148=\"N\",\"\",IF(LEN('Enrollment Form'!$AD155=0),\"\",IF(LEN('Enrollment Form'!$AD155)<>5,\"N\",\"Y\")))","v":""},{"$f":"IF($B148=\"N\",\"\",IF(LEN('Enrollment Form'!$BL155=0),\"\",IF(LEN('Enrollment Form'!$BL155)<>5,\"N\",\"Y\")))","v":""},{"$f":"IF($B148=\"N\",\"\",IF(LEN('Enrollment Form'!$AE155)=0,\"\",IF(LEN('Enrollment Form'!$AE155)<>10,\"N\",\"Y\")))","v":""},{"$f":"IF($B148=\"N\",\"\",IF(LEN('Enrollment Form'!$AF155)=0,\"\",IF(LEN('Enrollment Form'!$AF155)<>10,\"N\",\"Y\")))","v":""},{"$f":"IF('Enrollment Form'!$O155<>\"Graded\",\"-\",IF(AND('Enrollment Form'!$O155=\"Graded\",'Enrollment Form'!$AO155<>\"\"),\"Y\",\"N\"))","v":"-"},{"$f":"IF($B148=\"N\",\"\",IF(OR('Enrollment Form'!$B155<>\"Subscriber\",'Enrollment Form'!$C155=\"ROC\"),\"-\",IF(AND('Enrollment Form'!$B155=\"Subscriber\",'Enrollment Form'!$C155=\"Enroll\",'Enrollment Form'!$AJ155<>\"\"),\"Y\",\"N\")))","v":""},{"$f":"IF($B148=\"N\",\"\",IF(OR('Enrollment Form'!$B155<>\"Subscriber\",'Enrollment Form'!$C155=\"ROC\"),\"-\",IF(AND('Enrollment Form'!$B155=\"Subscriber\",'Enrollment Form'!$C155=\"Enroll\",'Enrollment Form'!$AK155<>\"\"),\"Y\",\"N\")))","v":""},{"$f":"IF($B148=\"N\",\"\",IF(OR('Enrollment Form'!$B155<>\"Subscriber\",'Enrollment Form'!$C155=\"ROC\"),\"-\",IF(AND('Enrollment Form'!$B155=\"Subscriber\",'Enrollment Form'!$C155=\"Enroll\",'Enrollment Form'!$AL155<>\"\"),\"Y\",\"N\")))","v":""},{"$f":"IF($B148=\"N\",\"\",IF(OR('Enrollment Form'!$B155<>\"Subscriber\",'Enrollment Form'!$C155=\"ROC\"),\"-\",IF(AND('Enrollment Form'!$B155=\"Subscriber\",'Enrollment Form'!$C155=\"Enroll\",'Enrollment Form'!$AM155<>\"\"),\"Y\",\"N\")))","v":""},{"$f":"IF($B148=\"N\",\"\",IF(OR('Enrollment Form'!$B155<>\"Subscriber\",'Enrollment Form'!$C155=\"ROC\"),\"-\",IF(AND('Enrollment Form'!$B155=\"Subscriber\",'Enrollment Form'!$C155=\"Enroll\",'Enrollment Form'!$AN155<>\"\"),\"Y\",\"N\")))","v":""},{"$f":"IF($B148=\"N\",\"\",IF(OR('Enrollment Form'!$B155<>\"Subscriber\",'Enrollment Form'!$C155=\"ROC\"),\"-\",IF(AND('Enrollment Form'!$B155=\"Subscriber\",'Enrollment Form'!$C155=\"Enroll\",'Enrollment Form'!$AP155<>\"\"),\"Y\",\"N\")))","v":""},{"$f":"IF($B148=\"N\",\"\",IF($Q148=\"-\",\"-\",IF(AND($Q148=\"Y\",'Enrollment Form'!$AP155=\"No\"),\"-\",IF(AND($Q148=\"Y\",'Enrollment Form'!$AP155=\"Yes\",'Enrollment Form'!$AQ155<>\"\"),\"Y\",\"N\"))))","v":""},{"$f":"IF($B148=\"N\",\"\",IF(OR('Enrollment Form'!$B155<>\"Subscriber\",'Enrollment Form'!$C155=\"ROC\"),\"-\",IF(AND('Enrollment Form'!$B155=\"Subscriber\",'Enrollment Form'!$C155=\"Enroll\",'Enrollment Form'!$CO155<>\"\"),\"Y\",\"N\")))","v":""},{"$f":"IF($B148=\"N\",\"\",IF($S148=\"-\",\"-\",IF(AND($S148=\"Y\",'Enrollment Form'!$CO155=\"No\"),\"-\",IF(AND($S148=\"Y\",'Enrollment Form'!$CO155=\"Yes\",'Enrollment Form'!$CP155<>\"\"),\"Y\",\"N\"))))","v":""},{"$f":"IF(OR('Enrollment Form'!$AV155=\"Yes\",'Enrollment Form'!$AV155=\"\"),\"-\",IF(AND('Enrollment Form'!$AV155=\"No\",ISERROR(FIND(\"HMO\",VLOOKUP('Enrollment Form'!G155,'Enrollment Form'!H$11:J$1000,3,FALSE),1))=FALSE,COUNTA('Enrollment Form'!$AW155:$AZ155)=4),\"Y\",\"N\"))","v":"-"},{"$f":"IF($B148=\"N\",\"\",IF('Enrollment Form'!$B155=\"Subscriber\",\"-\",IF(COUNTA('Enrollment Form'!$BE155,'Enrollment Form'!$BG155)=2,\"Y\",\"N\")))","v":""},{"$f":"IF($B148=\"N\",\"\",IF(OR('Enrollment Form'!$AU155=\"\",'Enrollment Form'!$AU155=\"No\"),\"-\",IF(AND('Enrollment Form'!$AU155=\"Yes\",COUNTA('Enrollment Form'!$CK155)=1),\"Y\",\"N\")))","v":""},{"$f":"IF(OR('Enrollment Form'!$CK155=\"\",'Enrollment Form'!$CK155=\"No\"),\"-\",IF(COUNTA('Enrollment Form'!$CM155:$CN155)=2,\"Y\",\"N\"))","v":"-"},{"$f":"IF($B148=\"N\",\"\",IF(COUNTIF('Enrollment Form'!$CZ155:$DO155,\"Other\")=COUNTA('Enrollment Form'!$DF155,'Enrollment Form'!$DA155,'Enrollment Form'!$DK155,'Enrollment Form'!$DP155),\"Y\",\"N\"))","v":""},{"$f":"IF($B148=\"N\",\"\",IF(OR('Enrollment Form'!B155<>\"Subscriber\",'Enrollment Form'!C155=\"ROC\",COUNTIF('Enrollment Form'!AS155:AT155,\"Yes\")>=1),\"-\",IF(AND('Enrollment Form'!C155=\"Enroll\",COUNTIF('Enrollment Form'!AS155:AT155,\"No\")=2,'Enrollment Form'!AU155=\"\"),\"N\",\"Y\")))","v":""},{"$f":"IF(OR(B148=\"N\",'Enrollment Form'!B155<>\"Subscriber\",'Enrollment Form'!C155=\"ROC\",'Enrollment Form'!O155<>\"Multiple of Salary\"),\"-\",IF(COUNTA('Enrollment Form'!T155:U155)<2,\"N\",\"Y\"))","v":"-"},{"$f":"IF(B148=\"N\",\"\",IF(OR('Enrollment Form'!C155=\"ROC\",'Enrollment Form'!B155<>\"Subscriber\",'Enrollment Form'!O155=\"Waive\",'Enrollment Form'!O155=\"\"),\"-\",IF('Enrollment Form'!P155=\"\",\"N\",\"Y\")))","v":""},{"$f":"IF($B148=\"N\",\"\",IF(AND('Enrollment Form'!$C155=\"ROC\",'Enrollment Form'!$DS155<>\"\"),\"Y\",IF(AND('Enrollment Form'!$C155=\"ROC\",'Enrollment Form'!$DS155=\"\"),\"N\",IF(AND('Enrollment Form'!$C155=\"Enroll\",'Enrollment Form'!$B155=\"Subscriber\",'Enrollment Form'!$CQ155=\"No\",'Enrollment Form'!$DS155=\"\"),\"N\",IF(AND('Enrollment Form'!$C155=\"Enroll\",'Enrollment Form'!$B155=\"Subscriber\",'Enrollment Form'!$CQ155=\"Yes\"),\"-\",\"Y\")))))","v":""},{"$f":"IF($B148=\"N\",\"\",IF(AND('Enrollment Form'!$C155=\"ROC\",'Enrollment Form'!$DT155<>\"\"),\"Y\",IF(AND('Enrollment Form'!$C155=\"ROC\",'Enrollment Form'!$DT155=\"\"),\"N\",IF(AND('Enrollment Form'!$C155=\"Enroll\",'Enrollment Form'!$B155=\"Subscriber\",'Enrollment Form'!$CQ155=\"No\",'Enrollment Form'!$DT155=\"\"),\"N\",IF(AND('Enrollment Form'!$C155=\"Enroll\",'Enrollment Form'!$B155=\"Subscriber\",'Enrollment Form'!$CQ155=\"Yes\"),\"-\",\"Y\")))))","v":""},{"$f":"IF('Enrollment Form'!AH155=\"\",\"\",IF(ISERROR(SEARCH(\".\",'Enrollment Form'!AH155,SEARCH(\"@\",'Enrollment Form'!AH155))),\"N\",\"Y\"))","v":""},{"$f":"IF(OR($B148=\"N\",'Enrollment Form'!$G155=\"\"),\"\",IF('Enrollment Form'!$B155<>\"Subscriber\",\"-\",IF(COUNTIF('Enrollment Form'!$AS155:$AT155,\"Yes\")=2,\"N\",\"Y\")))","v":""},{"$f":"IF(OR('Enrollment Form'!$CC155=\"\",'Enrollment Form'!$CC155=\"No\"),\"-\",IF(AND('Enrollment Form'!$CC155=\"Yes\",'Enrollment Form'!$CD155=\"\"),\"N\",\"Y\"))","v":"-"},{"$f":"IF(OR('Enrollment Form'!$CE155=\"\",'Enrollment Form'!$CE155=\"No\"),\"-\",IF(AND('Enrollment Form'!$CE155=\"Yes\",'Enrollment Form'!$CF155=\"\"),\"N\",\"Y\"))","v":"-"},{"$f":"IF(OR('Enrollment Form'!$CG155=\"\",'Enrollment Form'!$CG155=\"No\"),\"-\",IF(AND('Enrollment Form'!$CG155=\"Yes\",'Enrollment Form'!$CH155=\"\"),\"N\",\"Y\"))","v":"-"},{"$f":"IF(OR('Enrollment Form'!$CG155=\"\",'Enrollment Form'!$CG155=\"No\"),\"-\",IF(AND('Enrollment Form'!$CG155=\"Yes\",'Enrollment Form'!$CI155=\"\"),\"N\",\"Y\"))","v":"-"},{"$f":"IF('Enrollment Form'!B155<>\"Subscriber\",\"-\",IF(AND('Enrollment Form'!B155=\"Subscriber\",'Enrollment Form'!C155=\"Enroll\",'Enrollment Form'!AA155=\"\"),\"N\",\"Y\"))","v":"-"},{"$f":"IF(OR('Enrollment Form'!B155=\"Subscriber\",'Enrollment Form'!B155=\"\"),\"-\",IF('Enrollment Form'!BI155=\"\",\"N\",\"Y\"))","v":"-"},{"$f":"IF('Enrollment Form'!B155<>\"Subscriber\",\"-\",IF(AND('Enrollment Form'!B155=\"Subscriber\",'Enrollment Form'!G155=\"\"),\"N\",\"Y\"))","v":"-"},{"$f":"IF('Enrollment Form'!A155=\"\",\"\",IF('Enrollment Form'!B155=\"Subscriber\",\"-\",IF(AND('Enrollment Form'!B155<>\"Subscriber\",'Enrollment Form'!G155='Enrollment Form'!H155),\"N\",\"Y\")))","v":""},0]
[156,{"$f":"IF('Enrollment Form'!$A156<>\"\",\"Y\",\"N\")","v":"N"},{"$f":"IF(AND('Enrollment Form'!$B156=\"\",'Enrollment Form'!$C156<>\"\"),\"N\",IF($B149=\"N\",\"\",\"Y\"))","v":""},{"$f":"IF(OR($B149=\"N\",'Enrollment Form'!G156=\"\"),\"\",IF('Enrollment Form'!$B156<>\"Subscriber\",\"\",IF('Enrollment Form'!$G156='Enrollment Form'!$H156,\"Y\",\"N\")))","v":""},{"$f":"IF($B149=\"N\",\"\",IF(AND(COUNTIFS('Enrollment Form'!$H$11:$H$1000,'Enrollment Form'!$H156,'Enrollment Form'!$B$11:$B$1000,'Enrollment Form'!$B156)>1,'Enrollment Form'!$H156<>\"\"),\"N\",\"Y\"))","v":""},{"$f":"IF($B149=\"N\",\"\",IF(LEN('Enrollment Form'!$Y156)=0,\"\",IF(LEN('Enrollment Form'!$Y156)<>5,\"N\",\"Y\")))","v":""},{"$f":"IF($B149=\"N\",\"\",IF(LEN('Enrollment Form'!$AD156=0),\"\",IF(LEN('Enrollment Form'!$AD156)<>5,\"N\",\"Y\")))","v":""},{"$f":"IF($B149=\"N\",\"\",IF(LEN('Enrollment Form'!$BL156=0),\"\",IF(LEN('Enrollment Form'!$BL156)<>5,\"N\",\"Y\")))","v":""},{"$f":"IF($B149=\"N\",\"\",IF(LEN('Enrollment Form'!$AE156)=0,\"\",IF(LEN('Enrollment Form'!$AE156)<>10,\"N\",\"Y\")))","v":""},{"$f":"IF($B149=\"N\",\"\",IF(LEN('Enrollment Form'!$AF156)=0,\"\",IF(LEN('Enrollment Form'!$AF156)<>10,\"N\",\"Y\")))","v":""},{"$f":"IF('Enrollment Form'!$O156<>\"Graded\",\"-\",IF(AND('Enrollment Form'!$O156=\"Graded\",'Enrollment Form'!$AO156<>\"\"),\"Y\",\"N\"))","v":"-"},{"$f":"IF($B149=\"N\",\"\",IF(OR('Enrollment Form'!$B156<>\"Subscriber\",'Enrollment Form'!$C156=\"ROC\"),\"-\",IF(AND('Enrollment Form'!$B156=\"Subscriber\",'Enrollment Form'!$C156=\"Enroll\",'Enrollment Form'!$AJ156<>\"\"),\"Y\",\"N\")))","v":""},{"$f":"IF($B149=\"N\",\"\",IF(OR('Enrollment Form'!$B156<>\"Subscriber\",'Enrollment Form'!$C156=\"ROC\"),\"-\",IF(AND('Enrollment Form'!$B156=\"Subscriber\",'Enrollment Form'!$C156=\"Enroll\",'Enrollment Form'!$AK156<>\"\"),\"Y\",\"N\")))","v":""},{"$f":"IF($B149=\"N\",\"\",IF(OR('Enrollment Form'!$B156<>\"Subscriber\",'Enrollment Form'!$C156=\"ROC\"),\"-\",IF(AND('Enrollment Form'!$B156=\"Subscriber\",'Enrollment Form'!$C156=\"Enroll\",'Enrollment Form'!$AL156<>\"\"),\"Y\",\"N\")))","v":""},{"$f":"IF($B149=\"N\",\"\",IF(OR('Enrollment Form'!$B156<>\"Subscriber\",'Enrollment Form'!$C156=\"ROC\"),\"-\",IF(AND('Enrollment Form'!$B156=\"Subscriber\",'Enrollment Form'!$C156=\"Enroll\",'Enrollment Form'!$AM156<>\"\"),\"Y\",\"N\")))","v":""},{"$f":"IF($B149=\"N\",\"\",IF(OR('Enrollment Form'!$B156<>\"Subscriber\",'Enrollment Form'!$C156=\"ROC\"),\"-\",IF(AND('Enrollment Form'!$B156=\"Subscriber\",'Enrollment Form'!$C156=\"Enroll\",'Enrollment Form'!$AN156<>\"\"),\"Y\",\"N\")))","v":""},{"$f":"IF($B149=\"N\",\"\",IF(OR('Enrollment Form'!$B156<>\"Subscriber\",'Enrollment Form'!$C156=\"ROC\"),\"-\",IF(AND('Enrollment Form'!$B156=\"Subscriber\",'Enrollment Form'!$C156=\"Enroll\",'Enrollment Form'!$AP156<>\"\"),\"Y\",\"N\")))","v":""},{"$f":"IF($B149=\"N\",\"\",IF($Q149=\"-\",\"-\",IF(AND($Q149=\"Y\",'Enrollment Form'!$AP156=\"No\"),\"-\",IF(AND($Q149=\"Y\",'Enrollment Form'!$AP156=\"Yes\",'Enrollment Form'!$AQ156<>\"\"),\"Y\",\"N\"))))","v":""},{"$f":"IF($B149=\"N\",\"\",IF(OR('Enrollment Form'!$B156<>\"Subscriber\",'Enrollment Form'!$C156=\"ROC\"),\"-\",IF(AND('Enrollment Form'!$B156=\"Subscriber\",'Enrollment Form'!$C156=\"Enroll\",'Enrollment Form'!$CO156<>\"\"),\"Y\",\"N\")))","v":""},{"$f":"IF($B149=\"N\",\"\",IF($S149=\"-\",\"-\",IF(AND($S149=\"Y\",'Enrollment Form'!$CO156=\"No\"),\"-\",IF(AND($S149=\"Y\",'Enrollment Form'!$CO156=\"Yes\",'Enrollment Form'!$CP156<>\"\"),\"Y\",\"N\"))))","v":""},{"$f":"IF(OR('Enrollment Form'!$AV156=\"Yes\",'Enrollment Form'!$AV156=\"\"),\"-\",IF(AND('Enrollment Form'!$AV156=\"No\",ISERROR(FIND(\"HMO\",VLOOKUP('Enrollment Form'!G156,'Enrollment Form'!H$11:J$1000,3,FALSE),1))=FALSE,COUNTA('Enrollment Form'!$AW156:$AZ156)=4),\"Y\",\"N\"))","v":"-"},{"$f":"IF($B149=\"N\",\"\",IF('Enrollment Form'!$B156=\"Subscriber\",\"-\",IF(COUNTA('Enrollment Form'!$BE156,'Enrollment Form'!$BG156)=2,\"Y\",\"N\")))","v":""},{"$f":"IF($B149=\"N\",\"\",IF(OR('Enrollment Form'!$AU156=\"\",'Enrollment Form'!$AU156=\"No\"),\"-\",IF(AND('Enrollment Form'!$AU156=\"Yes\",COUNTA('Enrollment Form'!$CK156)=1),\"Y\",\"N\")))","v":""},{"$f":"IF(OR('Enrollment Form'!$CK156=\"\",'Enrollment Form'!$CK156=\"No\"),\"-\",IF(COUNTA('Enrollment Form'!$CM156:$CN156)=2,\"Y\",\"N\"))","v":"-"},{"$f":"IF($B149=\"N\",\"\",IF(COUNTIF('Enrollment Form'!$CZ156:$DO156,\"Other\")=COUNTA('Enrollment Form'!$DF156,'Enrollment Form'!$DA156,'Enrollment Form'!$DK156,'Enrollment Form'!$DP156),\"Y\",\"N\"))","v":""},{"$f":"IF($B149=\"N\",\"\",IF(OR('Enrollment Form'!B156<>\"Subscriber\",'Enrollment Form'!C156=\"ROC\",COUNTIF('Enrollment Form'!AS156:AT156,\"Yes\")>=1),\"-\",IF(AND('Enrollment Form'!C156=\"Enroll\",COUNTIF('Enrollment Form'!AS156:AT156,\"No\")=2,'Enrollment Form'!AU156=\"\"),\"N\",\"Y\")))","v":""},{"$f":"IF(OR(B149=\"N\",'Enrollment Form'!B156<>\"Subscriber\",'Enrollment Form'!C156=\"ROC\",'Enrollment Form'!O156<>\"Multiple of Salary\"),\"-\",IF(COUNTA('Enrollment Form'!T156:U156)<2,\"N\",\"Y\"))","v":"-"},{"$f":"IF(B149=\"N\",\"\",IF(OR('Enrollment Form'!C156=\"ROC\",'Enrollment Form'!B156<>\"Subscriber\",'Enrollment Form'!O156=\"Waive\",'Enrollment Form'!O156=\"\"),\"-\",IF('Enrollment Form'!P156=\"\",\"N\",\"Y\")))","v":""},{"$f":"IF($B149=\"N\",\"\",IF(AND('Enrollment Form'!$C156=\"ROC\",'Enrollment Form'!$DS156<>\"\"),\"Y\",IF(AND('Enrollment Form'!$C156=\"ROC\",'Enrollment Form'!$DS156=\"\"),\"N\",IF(AND('Enrollment Form'!$C156=\"Enroll\",'Enrollment Form'!$B156=\"Subscriber\",'Enrollment Form'!$CQ156=\"No\",'Enrollment Form'!$DS156=\"\"),\"N\",IF(AND('Enrollment Form'!$C156=\"Enroll\",'Enrollment Form'!$B156=\"Subscriber\",'Enrollment Form'!$CQ156=\"Yes\"),\"-\",\"Y\")))))","v":""},{"$f":"IF($B149=\"N\",\"\",IF(AND('Enrollment Form'!$C156=\"ROC\",'Enrollment Form'!$DT156<>\"\"),\"Y\",IF(AND('Enrollment Form'!$C156=\"ROC\",'Enrollment Form'!$DT156=\"\"),\"N\",IF(AND('Enrollment Form'!$C156=\"Enroll\",'Enrollment Form'!$B156=\"Subscriber\",'Enrollment Form'!$CQ156=\"No\",'Enrollment Form'!$DT156=\"\"),\"N\",IF(AND('Enrollment Form'!$C156=\"Enroll\",'Enrollment Form'!$B156=\"Subscriber\",'Enrollment Form'!$CQ156=\"Yes\"),\"-\",\"Y\")))))","v":""},{"$f":"IF('Enrollment Form'!AH156=\"\",\"\",IF(ISERROR(SEARCH(\".\",'Enrollment Form'!AH156,SEARCH(\"@\",'Enrollment Form'!AH156))),\"N\",\"Y\"))","v":""},{"$f":"IF(OR($B149=\"N\",'Enrollment Form'!$G156=\"\"),\"\",IF('Enrollment Form'!$B156<>\"Subscriber\",\"-\",IF(COUNTIF('Enrollment Form'!$AS156:$AT156,\"Yes\")=2,\"N\",\"Y\")))","v":""},{"$f":"IF(OR('Enrollment Form'!$CC156=\"\",'Enrollment Form'!$CC156=\"No\"),\"-\",IF(AND('Enrollment Form'!$CC156=\"Yes\",'Enrollment Form'!$CD156=\"\"),\"N\",\"Y\"))","v":"-"},{"$f":"IF(OR('Enrollment Form'!$CE156=\"\",'Enrollment Form'!$CE156=\"No\"),\"-\",IF(AND('Enrollment Form'!$CE156=\"Yes\",'Enrollment Form'!$CF156=\"\"),\"N\",\"Y\"))","v":"-"},{"$f":"IF(OR('Enrollment Form'!$CG156=\"\",'Enrollment Form'!$CG156=\"No\"),\"-\",IF(AND('Enrollment Form'!$CG156=\"Yes\",'Enrollment Form'!$CH156=\"\"),\"N\",\"Y\"))","v":"-"},{"$f":"IF(OR('Enrollment Form'!$CG156=\"\",'Enrollment Form'!$CG156=\"No\"),\"-\",IF(AND('Enrollment Form'!$CG156=\"Yes\",'Enrollment Form'!$CI156=\"\"),\"N\",\"Y\"))","v":"-"},{"$f":"IF('Enrollment Form'!B156<>\"Subscriber\",\"-\",IF(AND('Enrollment Form'!B156=\"Subscriber\",'Enrollment Form'!C156=\"Enroll\",'Enrollment Form'!AA156=\"\"),\"N\",\"Y\"))","v":"-"},{"$f":"IF(OR('Enrollment Form'!B156=\"Subscriber\",'Enrollment Form'!B156=\"\"),\"-\",IF('Enrollment Form'!BI156=\"\",\"N\",\"Y\"))","v":"-"},{"$f":"IF('Enrollment Form'!B156<>\"Subscriber\",\"-\",IF(AND('Enrollment Form'!B156=\"Subscriber\",'Enrollment Form'!G156=\"\"),\"N\",\"Y\"))","v":"-"},{"$f":"IF('Enrollment Form'!A156=\"\",\"\",IF('Enrollment Form'!B156=\"Subscriber\",\"-\",IF(AND('Enrollment Form'!B156<>\"Subscriber\",'Enrollment Form'!G156='Enrollment Form'!H156),\"N\",\"Y\")))","v":""},0]
[157,{"$f":"IF('Enrollment Form'!$A157<>\"\",\"Y\",\"N\")","v":"N"},{"$f":"IF(AND('Enrollment Form'!$B157=\"\",'Enrollment Form'!$C157<>\"\"),\"N\",IF($B150=\"N\",\"\",\"Y\"))","v":""},{"$f":"IF(OR($B150=\"N\",'Enrollment Form'!G157=\"\"),\"\",IF('Enrollment Form'!$B157<>\"Subscriber\",\"\",IF('Enrollment Form'!$G157='Enrollment Form'!$H157,\"Y\",\"N\")))","v":""},{"$f":"IF($B150=\"N\",\"\",IF(AND(COUNTIFS('Enrollment Form'!$H$11:$H$1000,'Enrollment Form'!$H157,'Enrollment Form'!$B$11:$B$1000,'Enrollment Form'!$B157)>1,'Enrollment Form'!$H157<>\"\"),\"N\",\"Y\"))","v":""},{"$f":"IF($B150=\"N\",\"\",IF(LEN('Enrollment Form'!$Y157)=0,\"\",IF(LEN('Enrollment Form'!$Y157)<>5,\"N\",\"Y\")))","v":""},{"$f":"IF($B150=\"N\",\"\",IF(LEN('Enrollment Form'!$AD157=0),\"\",IF(LEN('Enrollment Form'!$AD157)<>5,\"N\",\"Y\")))","v":""},{"$f":"IF($B150=\"N\",\"\",IF(LEN('Enrollment Form'!$BL157=0),\"\",IF(LEN('Enrollment Form'!$BL157)<>5,\"N\",\"Y\")))","v":""},{"$f":"IF($B150=\"N\",\"\",IF(LEN('Enrollment Form'!$AE157)=0,\"\",IF(LEN('Enrollment Form'!$AE157)<>10,\"N\",\"Y\")))","v":""},{"$f":"IF($B150=\"N\",\"\",IF(LEN('Enrollment Form'!$AF157)=0,\"\",IF(LEN('Enrollment Form'!$AF157)<>10,\"N\",\"Y\")))","v":""},{"$f":"IF('Enrollment Form'!$O157<>\"Graded\",\"-\",IF(AND('Enrollment Form'!$O157=\"Graded\",'Enrollment Form'!$AO157<>\"\"),\"Y\",\"N\"))","v":"-"},{"$f":"IF($B150=\"N\",\"\",IF(OR('Enrollment Form'!$B157<>\"Subscriber\",'Enrollment Form'!$C157=\"ROC\"),\"-\",IF(AND('Enrollment Form'!$B157=\"Subscriber\",'Enrollment Form'!$C157=\"Enroll\",'Enrollment Form'!$AJ157<>\"\"),\"Y\",\"N\")))","v":""},{"$f":"IF($B150=\"N\",\"\",IF(OR('Enrollment Form'!$B157<>\"Subscriber\",'Enrollment Form'!$C157=\"ROC\"),\"-\",IF(AND('Enrollment Form'!$B157=\"Subscriber\",'Enrollment Form'!$C157=\"Enroll\",'Enrollment Form'!$AK157<>\"\"),\"Y\",\"N\")))","v":""},{"$f":"IF($B150=\"N\",\"\",IF(OR('Enrollment Form'!$B157<>\"Subscriber\",'Enrollment Form'!$C157=\"ROC\"),\"-\",IF(AND('Enrollment Form'!$B157=\"Subscriber\",'Enrollment Form'!$C157=\"Enroll\",'Enrollment Form'!$AL157<>\"\"),\"Y\",\"N\")))","v":""},{"$f":"IF($B150=\"N\",\"\",IF(OR('Enrollment Form'!$B157<>\"Subscriber\",'Enrollment Form'!$C157=\"ROC\"),\"-\",IF(AND('Enrollment Form'!$B157=\"Subscriber\",'Enrollment Form'!$C157=\"Enroll\",'Enrollment Form'!$AM157<>\"\"),\"Y\",\"N\")))","v":""},{"$f":"IF($B150=\"N\",\"\",IF(OR('Enrollment Form'!$B157<>\"Subscriber\",'Enrollment Form'!$C157=\"ROC\"),\"-\",IF(AND('Enrollment Form'!$B157=\"Subscriber\",'Enrollment Form'!$C157=\"Enroll\",'Enrollment Form'!$AN157<>\"\"),\"Y\",\"N\")))","v":""},{"$f":"IF($B150=\"N\",\"\",IF(OR('Enrollment Form'!$B157<>\"Subscriber\",'Enrollment Form'!$C157=\"ROC\"),\"-\",IF(AND('Enrollment Form'!$B157=\"Subscriber\",'Enrollment Form'!$C157=\"Enroll\",'Enrollment Form'!$AP157<>\"\"),\"Y\",\"N\")))","v":""},{"$f":"IF($B150=\"N\",\"\",IF($Q150=\"-\",\"-\",IF(AND($Q150=\"Y\",'Enrollment Form'!$AP157=\"No\"),\"-\",IF(AND($Q150=\"Y\",'Enrollment Form'!$AP157=\"Yes\",'Enrollment Form'!$AQ157<>\"\"),\"Y\",\"N\"))))","v":""},{"$f":"IF($B150=\"N\",\"\",IF(OR('Enrollment Form'!$B157<>\"Subscriber\",'Enrollment Form'!$C157=\"ROC\"),\"-\",IF(AND('Enrollment Form'!$B157=\"Subscriber\",'Enrollment Form'!$C157=\"Enroll\",'Enrollment Form'!$CO157<>\"\"),\"Y\",\"N\")))","v":""},{"$f":"IF($B150=\"N\",\"\",IF($S150=\"-\",\"-\",IF(AND($S150=\"Y\",'Enrollment Form'!$CO157=\"No\"),\"-\",IF(AND($S150=\"Y\",'Enrollment Form'!$CO157=\"Yes\",'Enrollment Form'!$CP157<>\"\"),\"Y\",\"N\"))))","v":""},{"$f":"IF(OR('Enrollment Form'!$AV157=\"Yes\",'Enrollment Form'!$AV157=\"\"),\"-\",IF(AND('Enrollment Form'!$AV157=\"No\",ISERROR(FIND(\"HMO\",VLOOKUP('Enrollment Form'!G157,'Enrollment Form'!H$11:J$1000,3,FALSE),1))=FALSE,COUNTA('Enrollment Form'!$AW157:$AZ157)=4),\"Y\",\"N\"))","v":"-"},{"$f":"IF($B150=\"N\",\"\",IF('Enrollment Form'!$B157=\"Subscriber\",\"-\",IF(COUNTA('Enrollment Form'!$BE157,'Enrollment Form'!$BG157)=2,\"Y\",\"N\")))","v":""},{"$f":"IF($B150=\"N\",\"\",IF(OR('Enrollment Form'!$AU157=\"\",'Enrollment Form'!$AU157=\"No\"),\"-\",IF(AND('Enrollment Form'!$AU157=\"Yes\",COUNTA('Enrollment Form'!$CK157)=1),\"Y\",\"N\")))","v":""},{"$f":"IF(OR('Enrollment Form'!$CK157=\"\",'Enrollment Form'!$CK157=\"No\"),\"-\",IF(COUNTA('Enrollment Form'!$CM157:$CN157)=2,\"Y\",\"N\"))","v":"-"},{"$f":"IF($B150=\"N\",\"\",IF(COUNTIF('Enrollment Form'!$CZ157:$DO157,\"Other\")=COUNTA('Enrollment Form'!$DF157,'Enrollment Form'!$DA157,'Enrollment Form'!$DK157,'Enrollment Form'!$DP157),\"Y\",\"N\"))","v":""},{"$f":"IF($B150=\"N\",\"\",IF(OR('Enrollment Form'!B157<>\"Subscriber\",'Enrollment Form'!C157=\"ROC\",COUNTIF('Enrollment Form'!AS157:AT157,\"Yes\")>=1),\"-\",IF(AND('Enrollment Form'!C157=\"Enroll\",COUNTIF('Enrollment Form'!AS157:AT157,\"No\")=2,'Enrollment Form'!AU157=\"\"),\"N\",\"Y\")))","v":""},{"$f":"IF(OR(B150=\"N\",'Enrollment Form'!B157<>\"Subscriber\",'Enrollment Form'!C157=\"ROC\",'Enrollment Form'!O157<>\"Multiple of Salary\"),\"-\",IF(COUNTA('Enrollment Form'!T157:U157)<2,\"N\",\"Y\"))","v":"-"},{"$f":"IF(B150=\"N\",\"\",IF(OR('Enrollment Form'!C157=\"ROC\",'Enrollment Form'!B157<>\"Subscriber\",'Enrollment Form'!O157=\"Waive\",'Enrollment Form'!O157=\"\"),\"-\",IF('Enrollment Form'!P157=\"\",\"N\",\"Y\")))","v":""},{"$f":"IF($B150=\"N\",\"\",IF(AND('Enrollment Form'!$C157=\"ROC\",'Enrollment Form'!$DS157<>\"\"),\"Y\",IF(AND('Enrollment Form'!$C157=\"ROC\",'Enrollment Form'!$DS157=\"\"),\"N\",IF(AND('Enrollment Form'!$C157=\"Enroll\",'Enrollment Form'!$B157=\"Subscriber\",'Enrollment Form'!$CQ157=\"No\",'Enrollment Form'!$DS157=\"\"),\"N\",IF(AND('Enrollment Form'!$C157=\"Enroll\",'Enrollment Form'!$B157=\"Subscriber\",'Enrollment Form'!$CQ157=\"Yes\"),\"-\",\"Y\")))))","v":""},{"$f":"IF($B150=\"N\",\"\",IF(AND('Enrollment Form'!$C157=\"ROC\",'Enrollment Form'!$DT157<>\"\"),\"Y\",IF(AND('Enrollment Form'!$C157=\"ROC\",'Enrollment Form'!$DT157=\"\"),\"N\",IF(AND('Enrollment Form'!$C157=\"Enroll\",'Enrollment Form'!$B157=\"Subscriber\",'Enrollment Form'!$CQ157=\"No\",'Enrollment Form'!$DT157=\"\"),\"N\",IF(AND('Enrollment Form'!$C157=\"Enroll\",'Enrollment Form'!$B157=\"Subscriber\",'Enrollment Form'!$CQ157=\"Yes\"),\"-\",\"Y\")))))","v":""},{"$f":"IF('Enrollment Form'!AH157=\"\",\"\",IF(ISERROR(SEARCH(\".\",'Enrollment Form'!AH157,SEARCH(\"@\",'Enrollment Form'!AH157))),\"N\",\"Y\"))","v":""},{"$f":"IF(OR($B150=\"N\",'Enrollment Form'!$G157=\"\"),\"\",IF('Enrollment Form'!$B157<>\"Subscriber\",\"-\",IF(COUNTIF('Enrollment Form'!$AS157:$AT157,\"Yes\")=2,\"N\",\"Y\")))","v":""},{"$f":"IF(OR('Enrollment Form'!$CC157=\"\",'Enrollment Form'!$CC157=\"No\"),\"-\",IF(AND('Enrollment Form'!$CC157=\"Yes\",'Enrollment Form'!$CD157=\"\"),\"N\",\"Y\"))","v":"-"},{"$f":"IF(OR('Enrollment Form'!$CE157=\"\",'Enrollment Form'!$CE157=\"No\"),\"-\",IF(AND('Enrollment Form'!$CE157=\"Yes\",'Enrollment Form'!$CF157=\"\"),\"N\",\"Y\"))","v":"-"},{"$f":"IF(OR('Enrollment Form'!$CG157=\"\",'Enrollment Form'!$CG157=\"No\"),\"-\",IF(AND('Enrollment Form'!$CG157=\"Yes\",'Enrollment Form'!$CH157=\"\"),\"N\",\"Y\"))","v":"-"},{"$f":"IF(OR('Enrollment Form'!$CG157=\"\",'Enrollment Form'!$CG157=\"No\"),\"-\",IF(AND('Enrollment Form'!$CG157=\"Yes\",'Enrollment Form'!$CI157=\"\"),\"N\",\"Y\"))","v":"-"},{"$f":"IF('Enrollment Form'!B157<>\"Subscriber\",\"-\",IF(AND('Enrollment Form'!B157=\"Subscriber\",'Enrollment Form'!C157=\"Enroll\",'Enrollment Form'!AA157=\"\"),\"N\",\"Y\"))","v":"-"},{"$f":"IF(OR('Enrollment Form'!B157=\"Subscriber\",'Enrollment Form'!B157=\"\"),\"-\",IF('Enrollment Form'!BI157=\"\",\"N\",\"Y\"))","v":"-"},{"$f":"IF('Enrollment Form'!B157<>\"Subscriber\",\"-\",IF(AND('Enrollment Form'!B157=\"Subscriber\",'Enrollment Form'!G157=\"\"),\"N\",\"Y\"))","v":"-"},{"$f":"IF('Enrollment Form'!A157=\"\",\"\",IF('Enrollment Form'!B157=\"Subscriber\",\"-\",IF(AND('Enrollment Form'!B157<>\"Subscriber\",'Enrollment Form'!G157='Enrollment Form'!H157),\"N\",\"Y\")))","v":""},0]
[158,{"$f":"IF('Enrollment Form'!$A158<>\"\",\"Y\",\"N\")","v":"N"},{"$f":"IF(AND('Enrollment Form'!$B158=\"\",'Enrollment Form'!$C158<>\"\"),\"N\",IF($B151=\"N\",\"\",\"Y\"))","v":""},{"$f":"IF(OR($B151=\"N\",'Enrollment Form'!G158=\"\"),\"\",IF('Enrollment Form'!$B158<>\"Subscriber\",\"\",IF('Enrollment Form'!$G158='Enrollment Form'!$H158,\"Y\",\"N\")))","v":""},{"$f":"IF($B151=\"N\",\"\",IF(AND(COUNTIFS('Enrollment Form'!$H$11:$H$1000,'Enrollment Form'!$H158,'Enrollment Form'!$B$11:$B$1000,'Enrollment Form'!$B158)>1,'Enrollment Form'!$H158<>\"\"),\"N\",\"Y\"))","v":""},{"$f":"IF($B151=\"N\",\"\",IF(LEN('Enrollment Form'!$Y158)=0,\"\",IF(LEN('Enrollment Form'!$Y158)<>5,\"N\",\"Y\")))","v":""},{"$f":"IF($B151=\"N\",\"\",IF(LEN('Enrollment Form'!$AD158=0),\"\",IF(LEN('Enrollment Form'!$AD158)<>5,\"N\",\"Y\")))","v":""},{"$f":"IF($B151=\"N\",\"\",IF(LEN('Enrollment Form'!$BL158=0),\"\",IF(LEN('Enrollment Form'!$BL158)<>5,\"N\",\"Y\")))","v":""},{"$f":"IF($B151=\"N\",\"\",IF(LEN('Enrollment Form'!$AE158)=0,\"\",IF(LEN('Enrollment Form'!$AE158)<>10,\"N\",\"Y\")))","v":""},{"$f":"IF($B151=\"N\",\"\",IF(LEN('Enrollment Form'!$AF158)=0,\"\",IF(LEN('Enrollment Form'!$AF158)<>10,\"N\",\"Y\")))","v":""},{"$f":"IF('Enrollment Form'!$O158<>\"Graded\",\"-\",IF(AND('Enrollment Form'!$O158=\"Graded\",'Enrollment Form'!$AO158<>\"\"),\"Y\",\"N\"))","v":"-"},{"$f":"IF($B151=\"N\",\"\",IF(OR('Enrollment Form'!$B158<>\"Subscriber\",'Enrollment Form'!$C158=\"ROC\"),\"-\",IF(AND('Enrollment Form'!$B158=\"Subscriber\",'Enrollment Form'!$C158=\"Enroll\",'Enrollment Form'!$AJ158<>\"\"),\"Y\",\"N\")))","v":""},{"$f":"IF($B151=\"N\",\"\",IF(OR('Enrollment Form'!$B158<>\"Subscriber\",'Enrollment Form'!$C158=\"ROC\"),\"-\",IF(AND('Enrollment Form'!$B158=\"Subscriber\",'Enrollment Form'!$C158=\"Enroll\",'Enrollment Form'!$AK158<>\"\"),\"Y\",\"N\")))","v":""},{"$f":"IF($B151=\"N\",\"\",IF(OR('Enrollment Form'!$B158<>\"Subscriber\",'Enrollment Form'!$C158=\"ROC\"),\"-\",IF(AND('Enrollment Form'!$B158=\"Subscriber\",'Enrollment Form'!$C158=\"Enroll\",'Enrollment Form'!$AL158<>\"\"),\"Y\",\"N\")))","v":""},{"$f":"IF($B151=\"N\",\"\",IF(OR('Enrollment Form'!$B158<>\"Subscriber\",'Enrollment Form'!$C158=\"ROC\"),\"-\",IF(AND('Enrollment Form'!$B158=\"Subscriber\",'Enrollment Form'!$C158=\"Enroll\",'Enrollment Form'!$AM158<>\"\"),\"Y\",\"N\")))","v":""},{"$f":"IF($B151=\"N\",\"\",IF(OR('Enrollment Form'!$B158<>\"Subscriber\",'Enrollment Form'!$C158=\"ROC\"),\"-\",IF(AND('Enrollment Form'!$B158=\"Subscriber\",'Enrollment Form'!$C158=\"Enroll\",'Enrollment Form'!$AN158<>\"\"),\"Y\",\"N\")))","v":""},{"$f":"IF($B151=\"N\",\"\",IF(OR('Enrollment Form'!$B158<>\"Subscriber\",'Enrollment Form'!$C158=\"ROC\"),\"-\",IF(AND('Enrollment Form'!$B158=\"Subscriber\",'Enrollment Form'!$C158=\"Enroll\",'Enrollment Form'!$AP158<>\"\"),\"Y\",\"N\")))","v":""},{"$f":"IF($B151=\"N\",\"\",IF($Q151=\"-\",\"-\",IF(AND($Q151=\"Y\",'Enrollment Form'!$AP158=\"No\"),\"-\",IF(AND($Q151=\"Y\",'Enrollment Form'!$AP158=\"Yes\",'Enrollment Form'!$AQ158<>\"\"),\"Y\",\"N\"))))","v":""},{"$f":"IF($B151=\"N\",\"\",IF(OR('Enrollment Form'!$B158<>\"Subscriber\",'Enrollment Form'!$C158=\"ROC\"),\"-\",IF(AND('Enrollment Form'!$B158=\"Subscriber\",'Enrollment Form'!$C158=\"Enroll\",'Enrollment Form'!$CO158<>\"\"),\"Y\",\"N\")))","v":""},{"$f":"IF($B151=\"N\",\"\",IF($S151=\"-\",\"-\",IF(AND($S151=\"Y\",'Enrollment Form'!$CO158=\"No\"),\"-\",IF(AND($S151=\"Y\",'Enrollment Form'!$CO158=\"Yes\",'Enrollment Form'!$CP158<>\"\"),\"Y\",\"N\"))))","v":""},{"$f":"IF(OR('Enrollment Form'!$AV158=\"Yes\",'Enrollment Form'!$AV158=\"\"),\"-\",IF(AND('Enrollment Form'!$AV158=\"No\",ISERROR(FIND(\"HMO\",VLOOKUP('Enrollment Form'!G158,'Enrollment Form'!H$11:J$1000,3,FALSE),1))=FALSE,COUNTA('Enrollment Form'!$AW158:$AZ158)=4),\"Y\",\"N\"))","v":"-"},{"$f":"IF($B151=\"N\",\"\",IF('Enrollment Form'!$B158=\"Subscriber\",\"-\",IF(COUNTA('Enrollment Form'!$BE158,'Enrollment Form'!$BG158)=2,\"Y\",\"N\")))","v":""},{"$f":"IF($B151=\"N\",\"\",IF(OR('Enrollment Form'!$AU158=\"\",'Enrollment Form'!$AU158=\"No\"),\"-\",IF(AND('Enrollment Form'!$AU158=\"Yes\",COUNTA('Enrollment Form'!$CK158)=1),\"Y\",\"N\")))","v":""},{"$f":"IF(OR('Enrollment Form'!$CK158=\"\",'Enrollment Form'!$CK158=\"No\"),\"-\",IF(COUNTA('Enrollment Form'!$CM158:$CN158)=2,\"Y\",\"N\"))","v":"-"},{"$f":"IF($B151=\"N\",\"\",IF(COUNTIF('Enrollment Form'!$CZ158:$DO158,\"Other\")=COUNTA('Enrollment Form'!$DF158,'Enrollment Form'!$DA158,'Enrollment Form'!$DK158,'Enrollment Form'!$DP158),\"Y\",\"N\"))","v":""},{"$f":"IF($B151=\"N\",\"\",IF(OR('Enrollment Form'!B158<>\"Subscriber\",'Enrollment Form'!C158=\"ROC\",COUNTIF('Enrollment Form'!AS158:AT158,\"Yes\")>=1),\"-\",IF(AND('Enrollment Form'!C158=\"Enroll\",COUNTIF('Enrollment Form'!AS158:AT158,\"No\")=2,'Enrollment Form'!AU158=\"\"),\"N\",\"Y\")))","v":""},{"$f":"IF(OR(B151=\"N\",'Enrollment Form'!B158<>\"Subscriber\",'Enrollment Form'!C158=\"ROC\",'Enrollment Form'!O158<>\"Multiple of Salary\"),\"-\",IF(COUNTA('Enrollment Form'!T158:U158)<2,\"N\",\"Y\"))","v":"-"},{"$f":"IF(B151=\"N\",\"\",IF(OR('Enrollment Form'!C158=\"ROC\",'Enrollment Form'!B158<>\"Subscriber\",'Enrollment Form'!O158=\"Waive\",'Enrollment Form'!O158=\"\"),\"-\",IF('Enrollment Form'!P158=\"\",\"N\",\"Y\")))","v":""},{"$f":"IF($B151=\"N\",\"\",IF(AND('Enrollment Form'!$C158=\"ROC\",'Enrollment Form'!$DS158<>\"\"),\"Y\",IF(AND('Enrollment Form'!$C158=\"ROC\",'Enrollment Form'!$DS158=\"\"),\"N\",IF(AND('Enrollment Form'!$C158=\"Enroll\",'Enrollment Form'!$B158=\"Subscriber\",'Enrollment Form'!$CQ158=\"No\",'Enrollment Form'!$DS158=\"\"),\"N\",IF(AND('Enrollment Form'!$C158=\"Enroll\",'Enrollment Form'!$B158=\"Subscriber\",'Enrollment Form'!$CQ158=\"Yes\"),\"-\",\"Y\")))))","v":""},{"$f":"IF($B151=\"N\",\"\",IF(AND('Enrollment Form'!$C158=\"ROC\",'Enrollment Form'!$DT158<>\"\"),\"Y\",IF(AND('Enrollment Form'!$C158=\"ROC\",'Enrollment Form'!$DT158=\"\"),\"N\",IF(AND('Enrollment Form'!$C158=\"Enroll\",'Enrollment Form'!$B158=\"Subscriber\",'Enrollment Form'!$CQ158=\"No\",'Enrollment Form'!$DT158=\"\"),\"N\",IF(AND('Enrollment Form'!$C158=\"Enroll\",'Enrollment Form'!$B158=\"Subscriber\",'Enrollment Form'!$CQ158=\"Yes\"),\"-\",\"Y\")))))","v":""},{"$f":"IF('Enrollment Form'!AH158=\"\",\"\",IF(ISERROR(SEARCH(\".\",'Enrollment Form'!AH158,SEARCH(\"@\",'Enrollment Form'!AH158))),\"N\",\"Y\"))","v":""},{"$f":"IF(OR($B151=\"N\",'Enrollment Form'!$G158=\"\"),\"\",IF('Enrollment Form'!$B158<>\"Subscriber\",\"-\",IF(COUNTIF('Enrollment Form'!$AS158:$AT158,\"Yes\")=2,\"N\",\"Y\")))","v":""},{"$f":"IF(OR('Enrollment Form'!$CC158=\"\",'Enrollment Form'!$CC158=\"No\"),\"-\",IF(AND('Enrollment Form'!$CC158=\"Yes\",'Enrollment Form'!$CD158=\"\"),\"N\",\"Y\"))","v":"-"},{"$f":"IF(OR('Enrollment Form'!$CE158=\"\",'Enrollment Form'!$CE158=\"No\"),\"-\",IF(AND('Enrollment Form'!$CE158=\"Yes\",'Enrollment Form'!$CF158=\"\"),\"N\",\"Y\"))","v":"-"},{"$f":"IF(OR('Enrollment Form'!$CG158=\"\",'Enrollment Form'!$CG158=\"No\"),\"-\",IF(AND('Enrollment Form'!$CG158=\"Yes\",'Enrollment Form'!$CH158=\"\"),\"N\",\"Y\"))","v":"-"},{"$f":"IF(OR('Enrollment Form'!$CG158=\"\",'Enrollment Form'!$CG158=\"No\"),\"-\",IF(AND('Enrollment Form'!$CG158=\"Yes\",'Enrollment Form'!$CI158=\"\"),\"N\",\"Y\"))","v":"-"},{"$f":"IF('Enrollment Form'!B158<>\"Subscriber\",\"-\",IF(AND('Enrollment Form'!B158=\"Subscriber\",'Enrollment Form'!C158=\"Enroll\",'Enrollment Form'!AA158=\"\"),\"N\",\"Y\"))","v":"-"},{"$f":"IF(OR('Enrollment Form'!B158=\"Subscriber\",'Enrollment Form'!B158=\"\"),\"-\",IF('Enrollment Form'!BI158=\"\",\"N\",\"Y\"))","v":"-"},{"$f":"IF('Enrollment Form'!B158<>\"Subscriber\",\"-\",IF(AND('Enrollment Form'!B158=\"Subscriber\",'Enrollment Form'!G158=\"\"),\"N\",\"Y\"))","v":"-"},{"$f":"IF('Enrollment Form'!A158=\"\",\"\",IF('Enrollment Form'!B158=\"Subscriber\",\"-\",IF(AND('Enrollment Form'!B158<>\"Subscriber\",'Enrollment Form'!G158='Enrollment Form'!H158),\"N\",\"Y\")))","v":""},0]
[159,{"$f":"IF('Enrollment Form'!$A159<>\"\",\"Y\",\"N\")","v":"N"},{"$f":"IF(AND('Enrollment Form'!$B159=\"\",'Enrollment Form'!$C159<>\"\"),\"N\",IF($B152=\"N\",\"\",\"Y\"))","v":""},{"$f":"IF(OR($B152=\"N\",'Enrollment Form'!G159=\"\"),\"\",IF('Enrollment Form'!$B159<>\"Subscriber\",\"\",IF('Enrollment Form'!$G159='Enrollment Form'!$H159,\"Y\",\"N\")))","v":""},{"$f":"IF($B152=\"N\",\"\",IF(AND(COUNTIFS('Enrollment Form'!$H$11:$H$1000,'Enrollment Form'!$H159,'Enrollment Form'!$B$11:$B$1000,'Enrollment Form'!$B159)>1,'Enrollment Form'!$H159<>\"\"),\"N\",\"Y\"))","v":""},{"$f":"IF($B152=\"N\",\"\",IF(LEN('Enrollment Form'!$Y159)=0,\"\",IF(LEN('Enrollment Form'!$Y159)<>5,\"N\",\"Y\")))","v":""},{"$f":"IF($B152=\"N\",\"\",IF(LEN('Enrollment Form'!$AD159=0),\"\",IF(LEN('Enrollment Form'!$AD159)<>5,\"N\",\"Y\")))","v":""},{"$f":"IF($B152=\"N\",\"\",IF(LEN('Enrollment Form'!$BL159=0),\"\",IF(LEN('Enrollment Form'!$BL159)<>5,\"N\",\"Y\")))","v":""},{"$f":"IF($B152=\"N\",\"\",IF(LEN('Enrollment Form'!$AE159)=0,\"\",IF(LEN('Enrollment Form'!$AE159)<>10,\"N\",\"Y\")))","v":""},{"$f":"IF($B152=\"N\",\"\",IF(LEN('Enrollment Form'!$AF159)=0,\"\",IF(LEN('Enrollment Form'!$AF159)<>10,\"N\",\"Y\")))","v":""},{"$f":"IF('Enrollment Form'!$O159<>\"Graded\",\"-\",IF(AND('Enrollment Form'!$O159=\"Graded\",'Enrollment Form'!$AO159<>\"\"),\"Y\",\"N\"))","v":"-"},{"$f":"IF($B152=\"N\",\"\",IF(OR('Enrollment Form'!$B159<>\"Subscriber\",'Enrollment Form'!$C159=\"ROC\"),\"-\",IF(AND('Enrollment Form'!$B159=\"Subscriber\",'Enrollment Form'!$C159=\"Enroll\",'Enrollment Form'!$AJ159<>\"\"),\"Y\",\"N\")))","v":""},{"$f":"IF($B152=\"N\",\"\",IF(OR('Enrollment Form'!$B159<>\"Subscriber\",'Enrollment Form'!$C159=\"ROC\"),\"-\",IF(AND('Enrollment Form'!$B159=\"Subscriber\",'Enrollment Form'!$C159=\"Enroll\",'Enrollment Form'!$AK159<>\"\"),\"Y\",\"N\")))","v":""},{"$f":"IF($B152=\"N\",\"\",IF(OR('Enrollment Form'!$B159<>\"Subscriber\",'Enrollment Form'!$C159=\"ROC\"),\"-\",IF(AND('Enrollment Form'!$B159=\"Subscriber\",'Enrollment Form'!$C159=\"Enroll\",'Enrollment Form'!$AL159<>\"\"),\"Y\",\"N\")))","v":""},{"$f":"IF($B152=\"N\",\"\",IF(OR('Enrollment Form'!$B159<>\"Subscriber\",'Enrollment Form'!$C159=\"ROC\"),\"-\",IF(AND('Enrollment Form'!$B159=\"Subscriber\",'Enrollment Form'!$C159=\"Enroll\",'Enrollment Form'!$AM159<>\"\"),\"Y\",\"N\")))","v":""},{"$f":"IF($B152=\"N\",\"\",IF(OR('Enrollment Form'!$B159<>\"Subscriber\",'Enrollment Form'!$C159=\"ROC\"),\"-\",IF(AND('Enrollment Form'!$B159=\"Subscriber\",'Enrollment Form'!$C159=\"Enroll\",'Enrollment Form'!$AN159<>\"\"),\"Y\",\"N\")))","v":""},{"$f":"IF($B152=\"N\",\"\",IF(OR('Enrollment Form'!$B159<>\"Subscriber\",'Enrollment Form'!$C159=\"ROC\"),\"-\",IF(AND('Enrollment Form'!$B159=\"Subscriber\",'Enrollment Form'!$C159=\"Enroll\",'Enrollment Form'!$AP159<>\"\"),\"Y\",\"N\")))","v":""},{"$f":"IF($B152=\"N\",\"\",IF($Q152=\"-\",\"-\",IF(AND($Q152=\"Y\",'Enrollment Form'!$AP159=\"No\"),\"-\",IF(AND($Q152=\"Y\",'Enrollment Form'!$AP159=\"Yes\",'Enrollment Form'!$AQ159<>\"\"),\"Y\",\"N\"))))","v":""},{"$f":"IF($B152=\"N\",\"\",IF(OR('Enrollment Form'!$B159<>\"Subscriber\",'Enrollment Form'!$C159=\"ROC\"),\"-\",IF(AND('Enrollment Form'!$B159=\"Subscriber\",'Enrollment Form'!$C159=\"Enroll\",'Enrollment Form'!$CO159<>\"\"),\"Y\",\"N\")))","v":""},{"$f":"IF($B152=\"N\",\"\",IF($S152=\"-\",\"-\",IF(AND($S152=\"Y\",'Enrollment Form'!$CO159=\"No\"),\"-\",IF(AND($S152=\"Y\",'Enrollment Form'!$CO159=\"Yes\",'Enrollment Form'!$CP159<>\"\"),\"Y\",\"N\"))))","v":""},{"$f":"IF(OR('Enrollment Form'!$AV159=\"Yes\",'Enrollment Form'!$AV159=\"\"),\"-\",IF(AND('Enrollment Form'!$AV159=\"No\",ISERROR(FIND(\"HMO\",VLOOKUP('Enrollment Form'!G159,'Enrollment Form'!H$11:J$1000,3,FALSE),1))=FALSE,COUNTA('Enrollment Form'!$AW159:$AZ159)=4),\"Y\",\"N\"))","v":"-"},{"$f":"IF($B152=\"N\",\"\",IF('Enrollment Form'!$B159=\"Subscriber\",\"-\",IF(COUNTA('Enrollment Form'!$BE159,'Enrollment Form'!$BG159)=2,\"Y\",\"N\")))","v":""},{"$f":"IF($B152=\"N\",\"\",IF(OR('Enrollment Form'!$AU159=\"\",'Enrollment Form'!$AU159=\"No\"),\"-\",IF(AND('Enrollment Form'!$AU159=\"Yes\",COUNTA('Enrollment Form'!$CK159)=1),\"Y\",\"N\")))","v":""},{"$f":"IF(OR('Enrollment Form'!$CK159=\"\",'Enrollment Form'!$CK159=\"No\"),\"-\",IF(COUNTA('Enrollment Form'!$CM159:$CN159)=2,\"Y\",\"N\"))","v":"-"},{"$f":"IF($B152=\"N\",\"\",IF(COUNTIF('Enrollment Form'!$CZ159:$DO159,\"Other\")=COUNTA('Enrollment Form'!$DF159,'Enrollment Form'!$DA159,'Enrollment Form'!$DK159,'Enrollment Form'!$DP159),\"Y\",\"N\"))","v":""},{"$f":"IF($B152=\"N\",\"\",IF(OR('Enrollment Form'!B159<>\"Subscriber\",'Enrollment Form'!C159=\"ROC\",COUNTIF('Enrollment Form'!AS159:AT159,\"Yes\")>=1),\"-\",IF(AND('Enrollment Form'!C159=\"Enroll\",COUNTIF('Enrollment Form'!AS159:AT159,\"No\")=2,'Enrollment Form'!AU159=\"\"),\"N\",\"Y\")))","v":""},{"$f":"IF(OR(B152=\"N\",'Enrollment Form'!B159<>\"Subscriber\",'Enrollment Form'!C159=\"ROC\",'Enrollment Form'!O159<>\"Multiple of Salary\"),\"-\",IF(COUNTA('Enrollment Form'!T159:U159)<2,\"N\",\"Y\"))","v":"-"},{"$f":"IF(B152=\"N\",\"\",IF(OR('Enrollment Form'!C159=\"ROC\",'Enrollment Form'!B159<>\"Subscriber\",'Enrollment Form'!O159=\"Waive\",'Enrollment Form'!O159=\"\"),\"-\",IF('Enrollment Form'!P159=\"\",\"N\",\"Y\")))","v":""},{"$f":"IF($B152=\"N\",\"\",IF(AND('Enrollment Form'!$C159=\"ROC\",'Enrollment Form'!$DS159<>\"\"),\"Y\",IF(AND('Enrollment Form'!$C159=\"ROC\",'Enrollment Form'!$DS159=\"\"),\"N\",IF(AND('Enrollment Form'!$C159=\"Enroll\",'Enrollment Form'!$B159=\"Subscriber\",'Enrollment Form'!$CQ159=\"No\",'Enrollment Form'!$DS159=\"\"),\"N\",IF(AND('Enrollment Form'!$C159=\"Enroll\",'Enrollment Form'!$B159=\"Subscriber\",'Enrollment Form'!$CQ159=\"Yes\"),\"-\",\"Y\")))))","v":""},{"$f":"IF($B152=\"N\",\"\",IF(AND('Enrollment Form'!$C159=\"ROC\",'Enrollment Form'!$DT159<>\"\"),\"Y\",IF(AND('Enrollment Form'!$C159=\"ROC\",'Enrollment Form'!$DT159=\"\"),\"N\",IF(AND('Enrollment Form'!$C159=\"Enroll\",'Enrollment Form'!$B159=\"Subscriber\",'Enrollment Form'!$CQ159=\"No\",'Enrollment Form'!$DT159=\"\"),\"N\",IF(AND('Enrollment Form'!$C159=\"Enroll\",'Enrollment Form'!$B159=\"Subscriber\",'Enrollment Form'!$CQ159=\"Yes\"),\"-\",\"Y\")))))","v":""},{"$f":"IF('Enrollment Form'!AH159=\"\",\"\",IF(ISERROR(SEARCH(\".\",'Enrollment Form'!AH159,SEARCH(\"@\",'Enrollment Form'!AH159))),\"N\",\"Y\"))","v":""},{"$f":"IF(OR($B152=\"N\",'Enrollment Form'!$G159=\"\"),\"\",IF('Enrollment Form'!$B159<>\"Subscriber\",\"-\",IF(COUNTIF('Enrollment Form'!$AS159:$AT159,\"Yes\")=2,\"N\",\"Y\")))","v":""},{"$f":"IF(OR('Enrollment Form'!$CC159=\"\",'Enrollment Form'!$CC159=\"No\"),\"-\",IF(AND('Enrollment Form'!$CC159=\"Yes\",'Enrollment Form'!$CD159=\"\"),\"N\",\"Y\"))","v":"-"},{"$f":"IF(OR('Enrollment Form'!$CE159=\"\",'Enrollment Form'!$CE159=\"No\"),\"-\",IF(AND('Enrollment Form'!$CE159=\"Yes\",'Enrollment Form'!$CF159=\"\"),\"N\",\"Y\"))","v":"-"},{"$f":"IF(OR('Enrollment Form'!$CG159=\"\",'Enrollment Form'!$CG159=\"No\"),\"-\",IF(AND('Enrollment Form'!$CG159=\"Yes\",'Enrollment Form'!$CH159=\"\"),\"N\",\"Y\"))","v":"-"},{"$f":"IF(OR('Enrollment Form'!$CG159=\"\",'Enrollment Form'!$CG159=\"No\"),\"-\",IF(AND('Enrollment Form'!$CG159=\"Yes\",'Enrollment Form'!$CI159=\"\"),\"N\",\"Y\"))","v":"-"},{"$f":"IF('Enrollment Form'!B159<>\"Subscriber\",\"-\",IF(AND('Enrollment Form'!B159=\"Subscriber\",'Enrollment Form'!C159=\"Enroll\",'Enrollment Form'!AA159=\"\"),\"N\",\"Y\"))","v":"-"},{"$f":"IF(OR('Enrollment Form'!B159=\"Subscriber\",'Enrollment Form'!B159=\"\"),\"-\",IF('Enrollment Form'!BI159=\"\",\"N\",\"Y\"))","v":"-"},{"$f":"IF('Enrollment Form'!B159<>\"Subscriber\",\"-\",IF(AND('Enrollment Form'!B159=\"Subscriber\",'Enrollment Form'!G159=\"\"),\"N\",\"Y\"))","v":"-"},{"$f":"IF('Enrollment Form'!A159=\"\",\"\",IF('Enrollment Form'!B159=\"Subscriber\",\"-\",IF(AND('Enrollment Form'!B159<>\"Subscriber\",'Enrollment Form'!G159='Enrollment Form'!H159),\"N\",\"Y\")))","v":""},0]
[160,{"$f":"IF('Enrollment Form'!$A160<>\"\",\"Y\",\"N\")","v":"N"},{"$f":"IF(AND('Enrollment Form'!$B160=\"\",'Enrollment Form'!$C160<>\"\"),\"N\",IF($B153=\"N\",\"\",\"Y\"))","v":""},{"$f":"IF(OR($B153=\"N\",'Enrollment Form'!G160=\"\"),\"\",IF('Enrollment Form'!$B160<>\"Subscriber\",\"\",IF('Enrollment Form'!$G160='Enrollment Form'!$H160,\"Y\",\"N\")))","v":""},{"$f":"IF($B153=\"N\",\"\",IF(AND(COUNTIFS('Enrollment Form'!$H$11:$H$1000,'Enrollment Form'!$H160,'Enrollment Form'!$B$11:$B$1000,'Enrollment Form'!$B160)>1,'Enrollment Form'!$H160<>\"\"),\"N\",\"Y\"))","v":""},{"$f":"IF($B153=\"N\",\"\",IF(LEN('Enrollment Form'!$Y160)=0,\"\",IF(LEN('Enrollment Form'!$Y160)<>5,\"N\",\"Y\")))","v":""},{"$f":"IF($B153=\"N\",\"\",IF(LEN('Enrollment Form'!$AD160=0),\"\",IF(LEN('Enrollment Form'!$AD160)<>5,\"N\",\"Y\")))","v":""},{"$f":"IF($B153=\"N\",\"\",IF(LEN('Enrollment Form'!$BL160=0),\"\",IF(LEN('Enrollment Form'!$BL160)<>5,\"N\",\"Y\")))","v":""},{"$f":"IF($B153=\"N\",\"\",IF(LEN('Enrollment Form'!$AE160)=0,\"\",IF(LEN('Enrollment Form'!$AE160)<>10,\"N\",\"Y\")))","v":""},{"$f":"IF($B153=\"N\",\"\",IF(LEN('Enrollment Form'!$AF160)=0,\"\",IF(LEN('Enrollment Form'!$AF160)<>10,\"N\",\"Y\")))","v":""},{"$f":"IF('Enrollment Form'!$O160<>\"Graded\",\"-\",IF(AND('Enrollment Form'!$O160=\"Graded\",'Enrollment Form'!$AO160<>\"\"),\"Y\",\"N\"))","v":"-"},{"$f":"IF($B153=\"N\",\"\",IF(OR('Enrollment Form'!$B160<>\"Subscriber\",'Enrollment Form'!$C160=\"ROC\"),\"-\",IF(AND('Enrollment Form'!$B160=\"Subscriber\",'Enrollment Form'!$C160=\"Enroll\",'Enrollment Form'!$AJ160<>\"\"),\"Y\",\"N\")))","v":""},{"$f":"IF($B153=\"N\",\"\",IF(OR('Enrollment Form'!$B160<>\"Subscriber\",'Enrollment Form'!$C160=\"ROC\"),\"-\",IF(AND('Enrollment Form'!$B160=\"Subscriber\",'Enrollment Form'!$C160=\"Enroll\",'Enrollment Form'!$AK160<>\"\"),\"Y\",\"N\")))","v":""},{"$f":"IF($B153=\"N\",\"\",IF(OR('Enrollment Form'!$B160<>\"Subscriber\",'Enrollment Form'!$C160=\"ROC\"),\"-\",IF(AND('Enrollment Form'!$B160=\"Subscriber\",'Enrollment Form'!$C160=\"Enroll\",'Enrollment Form'!$AL160<>\"\"),\"Y\",\"N\")))","v":""},{"$f":"IF($B153=\"N\",\"\",IF(OR('Enrollment Form'!$B160<>\"Subscriber\",'Enrollment Form'!$C160=\"ROC\"),\"-\",IF(AND('Enrollment Form'!$B160=\"Subscriber\",'Enrollment Form'!$C160=\"Enroll\",'Enrollment Form'!$AM160<>\"\"),\"Y\",\"N\")))","v":""},{"$f":"IF($B153=\"N\",\"\",IF(OR('Enrollment Form'!$B160<>\"Subscriber\",'Enrollment Form'!$C160=\"ROC\"),\"-\",IF(AND('Enrollment Form'!$B160=\"Subscriber\",'Enrollment Form'!$C160=\"Enroll\",'Enrollment Form'!$AN160<>\"\"),\"Y\",\"N\")))","v":""},{"$f":"IF($B153=\"N\",\"\",IF(OR('Enrollment Form'!$B160<>\"Subscriber\",'Enrollment Form'!$C160=\"ROC\"),\"-\",IF(AND('Enrollment Form'!$B160=\"Subscriber\",'Enrollment Form'!$C160=\"Enroll\",'Enrollment Form'!$AP160<>\"\"),\"Y\",\"N\")))","v":""},{"$f":"IF($B153=\"N\",\"\",IF($Q153=\"-\",\"-\",IF(AND($Q153=\"Y\",'Enrollment Form'!$AP160=\"No\"),\"-\",IF(AND($Q153=\"Y\",'Enrollment Form'!$AP160=\"Yes\",'Enrollment Form'!$AQ160<>\"\"),\"Y\",\"N\"))))","v":""},{"$f":"IF($B153=\"N\",\"\",IF(OR('Enrollment Form'!$B160<>\"Subscriber\",'Enrollment Form'!$C160=\"ROC\"),\"-\",IF(AND('Enrollment Form'!$B160=\"Subscriber\",'Enrollment Form'!$C160=\"Enroll\",'Enrollment Form'!$CO160<>\"\"),\"Y\",\"N\")))","v":""},{"$f":"IF($B153=\"N\",\"\",IF($S153=\"-\",\"-\",IF(AND($S153=\"Y\",'Enrollment Form'!$CO160=\"No\"),\"-\",IF(AND($S153=\"Y\",'Enrollment Form'!$CO160=\"Yes\",'Enrollment Form'!$CP160<>\"\"),\"Y\",\"N\"))))","v":""},{"$f":"IF(OR('Enrollment Form'!$AV160=\"Yes\",'Enrollment Form'!$AV160=\"\"),\"-\",IF(AND('Enrollment Form'!$AV160=\"No\",ISERROR(FIND(\"HMO\",VLOOKUP('Enrollment Form'!G160,'Enrollment Form'!H$11:J$1000,3,FALSE),1))=FALSE,COUNTA('Enrollment Form'!$AW160:$AZ160)=4),\"Y\",\"N\"))","v":"-"},{"$f":"IF($B153=\"N\",\"\",IF('Enrollment Form'!$B160=\"Subscriber\",\"-\",IF(COUNTA('Enrollment Form'!$BE160,'Enrollment Form'!$BG160)=2,\"Y\",\"N\")))","v":""},{"$f":"IF($B153=\"N\",\"\",IF(OR('Enrollment Form'!$AU160=\"\",'Enrollment Form'!$AU160=\"No\"),\"-\",IF(AND('Enrollment Form'!$AU160=\"Yes\",COUNTA('Enrollment Form'!$CK160)=1),\"Y\",\"N\")))","v":""},{"$f":"IF(OR('Enrollment Form'!$CK160=\"\",'Enrollment Form'!$CK160=\"No\"),\"-\",IF(COUNTA('Enrollment Form'!$CM160:$CN160)=2,\"Y\",\"N\"))","v":"-"},{"$f":"IF($B153=\"N\",\"\",IF(COUNTIF('Enrollment Form'!$CZ160:$DO160,\"Other\")=COUNTA('Enrollment Form'!$DF160,'Enrollment Form'!$DA160,'Enrollment Form'!$DK160,'Enrollment Form'!$DP160),\"Y\",\"N\"))","v":""},{"$f":"IF($B153=\"N\",\"\",IF(OR('Enrollment Form'!B160<>\"Subscriber\",'Enrollment Form'!C160=\"ROC\",COUNTIF('Enrollment Form'!AS160:AT160,\"Yes\")>=1),\"-\",IF(AND('Enrollment Form'!C160=\"Enroll\",COUNTIF('Enrollment Form'!AS160:AT160,\"No\")=2,'Enrollment Form'!AU160=\"\"),\"N\",\"Y\")))","v":""},{"$f":"IF(OR(B153=\"N\",'Enrollment Form'!B160<>\"Subscriber\",'Enrollment Form'!C160=\"ROC\",'Enrollment Form'!O160<>\"Multiple of Salary\"),\"-\",IF(COUNTA('Enrollment Form'!T160:U160)<2,\"N\",\"Y\"))","v":"-"},{"$f":"IF(B153=\"N\",\"\",IF(OR('Enrollment Form'!C160=\"ROC\",'Enrollment Form'!B160<>\"Subscriber\",'Enrollment Form'!O160=\"Waive\",'Enrollment Form'!O160=\"\"),\"-\",IF('Enrollment Form'!P160=\"\",\"N\",\"Y\")))","v":""},{"$f":"IF($B153=\"N\",\"\",IF(AND('Enrollment Form'!$C160=\"ROC\",'Enrollment Form'!$DS160<>\"\"),\"Y\",IF(AND('Enrollment Form'!$C160=\"ROC\",'Enrollment Form'!$DS160=\"\"),\"N\",IF(AND('Enrollment Form'!$C160=\"Enroll\",'Enrollment Form'!$B160=\"Subscriber\",'Enrollment Form'!$CQ160=\"No\",'Enrollment Form'!$DS160=\"\"),\"N\",IF(AND('Enrollment Form'!$C160=\"Enroll\",'Enrollment Form'!$B160=\"Subscriber\",'Enrollment Form'!$CQ160=\"Yes\"),\"-\",\"Y\")))))","v":""},{"$f":"IF($B153=\"N\",\"\",IF(AND('Enrollment Form'!$C160=\"ROC\",'Enrollment Form'!$DT160<>\"\"),\"Y\",IF(AND('Enrollment Form'!$C160=\"ROC\",'Enrollment Form'!$DT160=\"\"),\"N\",IF(AND('Enrollment Form'!$C160=\"Enroll\",'Enrollment Form'!$B160=\"Subscriber\",'Enrollment Form'!$CQ160=\"No\",'Enrollment Form'!$DT160=\"\"),\"N\",IF(AND('Enrollment Form'!$C160=\"Enroll\",'Enrollment Form'!$B160=\"Subscriber\",'Enrollment Form'!$CQ160=\"Yes\"),\"-\",\"Y\")))))","v":""},{"$f":"IF('Enrollment Form'!AH160=\"\",\"\",IF(ISERROR(SEARCH(\".\",'Enrollment Form'!AH160,SEARCH(\"@\",'Enrollment Form'!AH160))),\"N\",\"Y\"))","v":""},{"$f":"IF(OR($B153=\"N\",'Enrollment Form'!$G160=\"\"),\"\",IF('Enrollment Form'!$B160<>\"Subscriber\",\"-\",IF(COUNTIF('Enrollment Form'!$AS160:$AT160,\"Yes\")=2,\"N\",\"Y\")))","v":""},{"$f":"IF(OR('Enrollment Form'!$CC160=\"\",'Enrollment Form'!$CC160=\"No\"),\"-\",IF(AND('Enrollment Form'!$CC160=\"Yes\",'Enrollment Form'!$CD160=\"\"),\"N\",\"Y\"))","v":"-"},{"$f":"IF(OR('Enrollment Form'!$CE160=\"\",'Enrollment Form'!$CE160=\"No\"),\"-\",IF(AND('Enrollment Form'!$CE160=\"Yes\",'Enrollment Form'!$CF160=\"\"),\"N\",\"Y\"))","v":"-"},{"$f":"IF(OR('Enrollment Form'!$CG160=\"\",'Enrollment Form'!$CG160=\"No\"),\"-\",IF(AND('Enrollment Form'!$CG160=\"Yes\",'Enrollment Form'!$CH160=\"\"),\"N\",\"Y\"))","v":"-"},{"$f":"IF(OR('Enrollment Form'!$CG160=\"\",'Enrollment Form'!$CG160=\"No\"),\"-\",IF(AND('Enrollment Form'!$CG160=\"Yes\",'Enrollment Form'!$CI160=\"\"),\"N\",\"Y\"))","v":"-"},{"$f":"IF('Enrollment Form'!B160<>\"Subscriber\",\"-\",IF(AND('Enrollment Form'!B160=\"Subscriber\",'Enrollment Form'!C160=\"Enroll\",'Enrollment Form'!AA160=\"\"),\"N\",\"Y\"))","v":"-"},{"$f":"IF(OR('Enrollment Form'!B160=\"Subscriber\",'Enrollment Form'!B160=\"\"),\"-\",IF('Enrollment Form'!BI160=\"\",\"N\",\"Y\"))","v":"-"},{"$f":"IF('Enrollment Form'!B160<>\"Subscriber\",\"-\",IF(AND('Enrollment Form'!B160=\"Subscriber\",'Enrollment Form'!G160=\"\"),\"N\",\"Y\"))","v":"-"},{"$f":"IF('Enrollment Form'!A160=\"\",\"\",IF('Enrollment Form'!B160=\"Subscriber\",\"-\",IF(AND('Enrollment Form'!B160<>\"Subscriber\",'Enrollment Form'!G160='Enrollment Form'!H160),\"N\",\"Y\")))","v":""},0]
[161,{"$f":"IF('Enrollment Form'!$A161<>\"\",\"Y\",\"N\")","v":"N"},{"$f":"IF(AND('Enrollment Form'!$B161=\"\",'Enrollment Form'!$C161<>\"\"),\"N\",IF($B154=\"N\",\"\",\"Y\"))","v":""},{"$f":"IF(OR($B154=\"N\",'Enrollment Form'!G161=\"\"),\"\",IF('Enrollment Form'!$B161<>\"Subscriber\",\"\",IF('Enrollment Form'!$G161='Enrollment Form'!$H161,\"Y\",\"N\")))","v":""},{"$f":"IF($B154=\"N\",\"\",IF(AND(COUNTIFS('Enrollment Form'!$H$11:$H$1000,'Enrollment Form'!$H161,'Enrollment Form'!$B$11:$B$1000,'Enrollment Form'!$B161)>1,'Enrollment Form'!$H161<>\"\"),\"N\",\"Y\"))","v":""},{"$f":"IF($B154=\"N\",\"\",IF(LEN('Enrollment Form'!$Y161)=0,\"\",IF(LEN('Enrollment Form'!$Y161)<>5,\"N\",\"Y\")))","v":""},{"$f":"IF($B154=\"N\",\"\",IF(LEN('Enrollment Form'!$AD161=0),\"\",IF(LEN('Enrollment Form'!$AD161)<>5,\"N\",\"Y\")))","v":""},{"$f":"IF($B154=\"N\",\"\",IF(LEN('Enrollment Form'!$BL161=0),\"\",IF(LEN('Enrollment Form'!$BL161)<>5,\"N\",\"Y\")))","v":""},{"$f":"IF($B154=\"N\",\"\",IF(LEN('Enrollment Form'!$AE161)=0,\"\",IF(LEN('Enrollment Form'!$AE161)<>10,\"N\",\"Y\")))","v":""},{"$f":"IF($B154=\"N\",\"\",IF(LEN('Enrollment Form'!$AF161)=0,\"\",IF(LEN('Enrollment Form'!$AF161)<>10,\"N\",\"Y\")))","v":""},{"$f":"IF('Enrollment Form'!$O161<>\"Graded\",\"-\",IF(AND('Enrollment Form'!$O161=\"Graded\",'Enrollment Form'!$AO161<>\"\"),\"Y\",\"N\"))","v":"-"},{"$f":"IF($B154=\"N\",\"\",IF(OR('Enrollment Form'!$B161<>\"Subscriber\",'Enrollment Form'!$C161=\"ROC\"),\"-\",IF(AND('Enrollment Form'!$B161=\"Subscriber\",'Enrollment Form'!$C161=\"Enroll\",'Enrollment Form'!$AJ161<>\"\"),\"Y\",\"N\")))","v":""},{"$f":"IF($B154=\"N\",\"\",IF(OR('Enrollment Form'!$B161<>\"Subscriber\",'Enrollment Form'!$C161=\"ROC\"),\"-\",IF(AND('Enrollment Form'!$B161=\"Subscriber\",'Enrollment Form'!$C161=\"Enroll\",'Enrollment Form'!$AK161<>\"\"),\"Y\",\"N\")))","v":""},{"$f":"IF($B154=\"N\",\"\",IF(OR('Enrollment Form'!$B161<>\"Subscriber\",'Enrollment Form'!$C161=\"ROC\"),\"-\",IF(AND('Enrollment Form'!$B161=\"Subscriber\",'Enrollment Form'!$C161=\"Enroll\",'Enrollment Form'!$AL161<>\"\"),\"Y\",\"N\")))","v":""},{"$f":"IF($B154=\"N\",\"\",IF(OR('Enrollment Form'!$B161<>\"Subscriber\",'Enrollment Form'!$C161=\"ROC\"),\"-\",IF(AND('Enrollment Form'!$B161=\"Subscriber\",'Enrollment Form'!$C161=\"Enroll\",'Enrollment Form'!$AM161<>\"\"),\"Y\",\"N\")))","v":""},{"$f":"IF($B154=\"N\",\"\",IF(OR('Enrollment Form'!$B161<>\"Subscriber\",'Enrollment Form'!$C161=\"ROC\"),\"-\",IF(AND('Enrollment Form'!$B161=\"Subscriber\",'Enrollment Form'!$C161=\"Enroll\",'Enrollment Form'!$AN161<>\"\"),\"Y\",\"N\")))","v":""},{"$f":"IF($B154=\"N\",\"\",IF(OR('Enrollment Form'!$B161<>\"Subscriber\",'Enrollment Form'!$C161=\"ROC\"),\"-\",IF(AND('Enrollment Form'!$B161=\"Subscriber\",'Enrollment Form'!$C161=\"Enroll\",'Enrollment Form'!$AP161<>\"\"),\"Y\",\"N\")))","v":""},{"$f":"IF($B154=\"N\",\"\",IF($Q154=\"-\",\"-\",IF(AND($Q154=\"Y\",'Enrollment Form'!$AP161=\"No\"),\"-\",IF(AND($Q154=\"Y\",'Enrollment Form'!$AP161=\"Yes\",'Enrollment Form'!$AQ161<>\"\"),\"Y\",\"N\"))))","v":""},{"$f":"IF($B154=\"N\",\"\",IF(OR('Enrollment Form'!$B161<>\"Subscriber\",'Enrollment Form'!$C161=\"ROC\"),\"-\",IF(AND('Enrollment Form'!$B161=\"Subscriber\",'Enrollment Form'!$C161=\"Enroll\",'Enrollment Form'!$CO161<>\"\"),\"Y\",\"N\")))","v":""},{"$f":"IF($B154=\"N\",\"\",IF($S154=\"-\",\"-\",IF(AND($S154=\"Y\",'Enrollment Form'!$CO161=\"No\"),\"-\",IF(AND($S154=\"Y\",'Enrollment Form'!$CO161=\"Yes\",'Enrollment Form'!$CP161<>\"\"),\"Y\",\"N\"))))","v":""},{"$f":"IF(OR('Enrollment Form'!$AV161=\"Yes\",'Enrollment Form'!$AV161=\"\"),\"-\",IF(AND('Enrollment Form'!$AV161=\"No\",ISERROR(FIND(\"HMO\",VLOOKUP('Enrollment Form'!G161,'Enrollment Form'!H$11:J$1000,3,FALSE),1))=FALSE,COUNTA('Enrollment Form'!$AW161:$AZ161)=4),\"Y\",\"N\"))","v":"-"},{"$f":"IF($B154=\"N\",\"\",IF('Enrollment Form'!$B161=\"Subscriber\",\"-\",IF(COUNTA('Enrollment Form'!$BE161,'Enrollment Form'!$BG161)=2,\"Y\",\"N\")))","v":""},{"$f":"IF($B154=\"N\",\"\",IF(OR('Enrollment Form'!$AU161=\"\",'Enrollment Form'!$AU161=\"No\"),\"-\",IF(AND('Enrollment Form'!$AU161=\"Yes\",COUNTA('Enrollment Form'!$CK161)=1),\"Y\",\"N\")))","v":""},{"$f":"IF(OR('Enrollment Form'!$CK161=\"\",'Enrollment Form'!$CK161=\"No\"),\"-\",IF(COUNTA('Enrollment Form'!$CM161:$CN161)=2,\"Y\",\"N\"))","v":"-"},{"$f":"IF($B154=\"N\",\"\",IF(COUNTIF('Enrollment Form'!$CZ161:$DO161,\"Other\")=COUNTA('Enrollment Form'!$DF161,'Enrollment Form'!$DA161,'Enrollment Form'!$DK161,'Enrollment Form'!$DP161),\"Y\",\"N\"))","v":""},{"$f":"IF($B154=\"N\",\"\",IF(OR('Enrollment Form'!B161<>\"Subscriber\",'Enrollment Form'!C161=\"ROC\",COUNTIF('Enrollment Form'!AS161:AT161,\"Yes\")>=1),\"-\",IF(AND('Enrollment Form'!C161=\"Enroll\",COUNTIF('Enrollment Form'!AS161:AT161,\"No\")=2,'Enrollment Form'!AU161=\"\"),\"N\",\"Y\")))","v":""},{"$f":"IF(OR(B154=\"N\",'Enrollment Form'!B161<>\"Subscriber\",'Enrollment Form'!C161=\"ROC\",'Enrollment Form'!O161<>\"Multiple of Salary\"),\"-\",IF(COUNTA('Enrollment Form'!T161:U161)<2,\"N\",\"Y\"))","v":"-"},{"$f":"IF(B154=\"N\",\"\",IF(OR('Enrollment Form'!C161=\"ROC\",'Enrollment Form'!B161<>\"Subscriber\",'Enrollment Form'!O161=\"Waive\",'Enrollment Form'!O161=\"\"),\"-\",IF('Enrollment Form'!P161=\"\",\"N\",\"Y\")))","v":""},{"$f":"IF($B154=\"N\",\"\",IF(AND('Enrollment Form'!$C161=\"ROC\",'Enrollment Form'!$DS161<>\"\"),\"Y\",IF(AND('Enrollment Form'!$C161=\"ROC\",'Enrollment Form'!$DS161=\"\"),\"N\",IF(AND('Enrollment Form'!$C161=\"Enroll\",'Enrollment Form'!$B161=\"Subscriber\",'Enrollment Form'!$CQ161=\"No\",'Enrollment Form'!$DS161=\"\"),\"N\",IF(AND('Enrollment Form'!$C161=\"Enroll\",'Enrollment Form'!$B161=\"Subscriber\",'Enrollment Form'!$CQ161=\"Yes\"),\"-\",\"Y\")))))","v":""},{"$f":"IF($B154=\"N\",\"\",IF(AND('Enrollment Form'!$C161=\"ROC\",'Enrollment Form'!$DT161<>\"\"),\"Y\",IF(AND('Enrollment Form'!$C161=\"ROC\",'Enrollment Form'!$DT161=\"\"),\"N\",IF(AND('Enrollment Form'!$C161=\"Enroll\",'Enrollment Form'!$B161=\"Subscriber\",'Enrollment Form'!$CQ161=\"No\",'Enrollment Form'!$DT161=\"\"),\"N\",IF(AND('Enrollment Form'!$C161=\"Enroll\",'Enrollment Form'!$B161=\"Subscriber\",'Enrollment Form'!$CQ161=\"Yes\"),\"-\",\"Y\")))))","v":""},{"$f":"IF('Enrollment Form'!AH161=\"\",\"\",IF(ISERROR(SEARCH(\".\",'Enrollment Form'!AH161,SEARCH(\"@\",'Enrollment Form'!AH161))),\"N\",\"Y\"))","v":""},{"$f":"IF(OR($B154=\"N\",'Enrollment Form'!$G161=\"\"),\"\",IF('Enrollment Form'!$B161<>\"Subscriber\",\"-\",IF(COUNTIF('Enrollment Form'!$AS161:$AT161,\"Yes\")=2,\"N\",\"Y\")))","v":""},{"$f":"IF(OR('Enrollment Form'!$CC161=\"\",'Enrollment Form'!$CC161=\"No\"),\"-\",IF(AND('Enrollment Form'!$CC161=\"Yes\",'Enrollment Form'!$CD161=\"\"),\"N\",\"Y\"))","v":"-"},{"$f":"IF(OR('Enrollment Form'!$CE161=\"\",'Enrollment Form'!$CE161=\"No\"),\"-\",IF(AND('Enrollment Form'!$CE161=\"Yes\",'Enrollment Form'!$CF161=\"\"),\"N\",\"Y\"))","v":"-"},{"$f":"IF(OR('Enrollment Form'!$CG161=\"\",'Enrollment Form'!$CG161=\"No\"),\"-\",IF(AND('Enrollment Form'!$CG161=\"Yes\",'Enrollment Form'!$CH161=\"\"),\"N\",\"Y\"))","v":"-"},{"$f":"IF(OR('Enrollment Form'!$CG161=\"\",'Enrollment Form'!$CG161=\"No\"),\"-\",IF(AND('Enrollment Form'!$CG161=\"Yes\",'Enrollment Form'!$CI161=\"\"),\"N\",\"Y\"))","v":"-"},{"$f":"IF('Enrollment Form'!B161<>\"Subscriber\",\"-\",IF(AND('Enrollment Form'!B161=\"Subscriber\",'Enrollment Form'!C161=\"Enroll\",'Enrollment Form'!AA161=\"\"),\"N\",\"Y\"))","v":"-"},{"$f":"IF(OR('Enrollment Form'!B161=\"Subscriber\",'Enrollment Form'!B161=\"\"),\"-\",IF('Enrollment Form'!BI161=\"\",\"N\",\"Y\"))","v":"-"},{"$f":"IF('Enrollment Form'!B161<>\"Subscriber\",\"-\",IF(AND('Enrollment Form'!B161=\"Subscriber\",'Enrollment Form'!G161=\"\"),\"N\",\"Y\"))","v":"-"},{"$f":"IF('Enrollment Form'!A161=\"\",\"\",IF('Enrollment Form'!B161=\"Subscriber\",\"-\",IF(AND('Enrollment Form'!B161<>\"Subscriber\",'Enrollment Form'!G161='Enrollment Form'!H161),\"N\",\"Y\")))","v":""},0]
[162,{"$f":"IF('Enrollment Form'!$A162<>\"\",\"Y\",\"N\")","v":"N"},{"$f":"IF(AND('Enrollment Form'!$B162=\"\",'Enrollment Form'!$C162<>\"\"),\"N\",IF($B155=\"N\",\"\",\"Y\"))","v":""},{"$f":"IF(OR($B155=\"N\",'Enrollment Form'!G162=\"\"),\"\",IF('Enrollment Form'!$B162<>\"Subscriber\",\"\",IF('Enrollment Form'!$G162='Enrollment Form'!$H162,\"Y\",\"N\")))","v":""},{"$f":"IF($B155=\"N\",\"\",IF(AND(COUNTIFS('Enrollment Form'!$H$11:$H$1000,'Enrollment Form'!$H162,'Enrollment Form'!$B$11:$B$1000,'Enrollment Form'!$B162)>1,'Enrollment Form'!$H162<>\"\"),\"N\",\"Y\"))","v":""},{"$f":"IF($B155=\"N\",\"\",IF(LEN('Enrollment Form'!$Y162)=0,\"\",IF(LEN('Enrollment Form'!$Y162)<>5,\"N\",\"Y\")))","v":""},{"$f":"IF($B155=\"N\",\"\",IF(LEN('Enrollment Form'!$AD162=0),\"\",IF(LEN('Enrollment Form'!$AD162)<>5,\"N\",\"Y\")))","v":""},{"$f":"IF($B155=\"N\",\"\",IF(LEN('Enrollment Form'!$BL162=0),\"\",IF(LEN('Enrollment Form'!$BL162)<>5,\"N\",\"Y\")))","v":""},{"$f":"IF($B155=\"N\",\"\",IF(LEN('Enrollment Form'!$AE162)=0,\"\",IF(LEN('Enrollment Form'!$AE162)<>10,\"N\",\"Y\")))","v":""},{"$f":"IF($B155=\"N\",\"\",IF(LEN('Enrollment Form'!$AF162)=0,\"\",IF(LEN('Enrollment Form'!$AF162)<>10,\"N\",\"Y\")))","v":""},{"$f":"IF('Enrollment Form'!$O162<>\"Graded\",\"-\",IF(AND('Enrollment Form'!$O162=\"Graded\",'Enrollment Form'!$AO162<>\"\"),\"Y\",\"N\"))","v":"-"},{"$f":"IF($B155=\"N\",\"\",IF(OR('Enrollment Form'!$B162<>\"Subscriber\",'Enrollment Form'!$C162=\"ROC\"),\"-\",IF(AND('Enrollment Form'!$B162=\"Subscriber\",'Enrollment Form'!$C162=\"Enroll\",'Enrollment Form'!$AJ162<>\"\"),\"Y\",\"N\")))","v":""},{"$f":"IF($B155=\"N\",\"\",IF(OR('Enrollment Form'!$B162<>\"Subscriber\",'Enrollment Form'!$C162=\"ROC\"),\"-\",IF(AND('Enrollment Form'!$B162=\"Subscriber\",'Enrollment Form'!$C162=\"Enroll\",'Enrollment Form'!$AK162<>\"\"),\"Y\",\"N\")))","v":""},{"$f":"IF($B155=\"N\",\"\",IF(OR('Enrollment Form'!$B162<>\"Subscriber\",'Enrollment Form'!$C162=\"ROC\"),\"-\",IF(AND('Enrollment Form'!$B162=\"Subscriber\",'Enrollment Form'!$C162=\"Enroll\",'Enrollment Form'!$AL162<>\"\"),\"Y\",\"N\")))","v":""},{"$f":"IF($B155=\"N\",\"\",IF(OR('Enrollment Form'!$B162<>\"Subscriber\",'Enrollment Form'!$C162=\"ROC\"),\"-\",IF(AND('Enrollment Form'!$B162=\"Subscriber\",'Enrollment Form'!$C162=\"Enroll\",'Enrollment Form'!$AM162<>\"\"),\"Y\",\"N\")))","v":""},{"$f":"IF($B155=\"N\",\"\",IF(OR('Enrollment Form'!$B162<>\"Subscriber\",'Enrollment Form'!$C162=\"ROC\"),\"-\",IF(AND('Enrollment Form'!$B162=\"Subscriber\",'Enrollment Form'!$C162=\"Enroll\",'Enrollment Form'!$AN162<>\"\"),\"Y\",\"N\")))","v":""},{"$f":"IF($B155=\"N\",\"\",IF(OR('Enrollment Form'!$B162<>\"Subscriber\",'Enrollment Form'!$C162=\"ROC\"),\"-\",IF(AND('Enrollment Form'!$B162=\"Subscriber\",'Enrollment Form'!$C162=\"Enroll\",'Enrollment Form'!$AP162<>\"\"),\"Y\",\"N\")))","v":""},{"$f":"IF($B155=\"N\",\"\",IF($Q155=\"-\",\"-\",IF(AND($Q155=\"Y\",'Enrollment Form'!$AP162=\"No\"),\"-\",IF(AND($Q155=\"Y\",'Enrollment Form'!$AP162=\"Yes\",'Enrollment Form'!$AQ162<>\"\"),\"Y\",\"N\"))))","v":""},{"$f":"IF($B155=\"N\",\"\",IF(OR('Enrollment Form'!$B162<>\"Subscriber\",'Enrollment Form'!$C162=\"ROC\"),\"-\",IF(AND('Enrollment Form'!$B162=\"Subscriber\",'Enrollment Form'!$C162=\"Enroll\",'Enrollment Form'!$CO162<>\"\"),\"Y\",\"N\")))","v":""},{"$f":"IF($B155=\"N\",\"\",IF($S155=\"-\",\"-\",IF(AND($S155=\"Y\",'Enrollment Form'!$CO162=\"No\"),\"-\",IF(AND($S155=\"Y\",'Enrollment Form'!$CO162=\"Yes\",'Enrollment Form'!$CP162<>\"\"),\"Y\",\"N\"))))","v":""},{"$f":"IF(OR('Enrollment Form'!$AV162=\"Yes\",'Enrollment Form'!$AV162=\"\"),\"-\",IF(AND('Enrollment Form'!$AV162=\"No\",ISERROR(FIND(\"HMO\",VLOOKUP('Enrollment Form'!G162,'Enrollment Form'!H$11:J$1000,3,FALSE),1))=FALSE,COUNTA('Enrollment Form'!$AW162:$AZ162)=4),\"Y\",\"N\"))","v":"-"},{"$f":"IF($B155=\"N\",\"\",IF('Enrollment Form'!$B162=\"Subscriber\",\"-\",IF(COUNTA('Enrollment Form'!$BE162,'Enrollment Form'!$BG162)=2,\"Y\",\"N\")))","v":""},{"$f":"IF($B155=\"N\",\"\",IF(OR('Enrollment Form'!$AU162=\"\",'Enrollment Form'!$AU162=\"No\"),\"-\",IF(AND('Enrollment Form'!$AU162=\"Yes\",COUNTA('Enrollment Form'!$CK162)=1),\"Y\",\"N\")))","v":""},{"$f":"IF(OR('Enrollment Form'!$CK162=\"\",'Enrollment Form'!$CK162=\"No\"),\"-\",IF(COUNTA('Enrollment Form'!$CM162:$CN162)=2,\"Y\",\"N\"))","v":"-"},{"$f":"IF($B155=\"N\",\"\",IF(COUNTIF('Enrollment Form'!$CZ162:$DO162,\"Other\")=COUNTA('Enrollment Form'!$DF162,'Enrollment Form'!$DA162,'Enrollment Form'!$DK162,'Enrollment Form'!$DP162),\"Y\",\"N\"))","v":""},{"$f":"IF($B155=\"N\",\"\",IF(OR('Enrollment Form'!B162<>\"Subscriber\",'Enrollment Form'!C162=\"ROC\",COUNTIF('Enrollment Form'!AS162:AT162,\"Yes\")>=1),\"-\",IF(AND('Enrollment Form'!C162=\"Enroll\",COUNTIF('Enrollment Form'!AS162:AT162,\"No\")=2,'Enrollment Form'!AU162=\"\"),\"N\",\"Y\")))","v":""},{"$f":"IF(OR(B155=\"N\",'Enrollment Form'!B162<>\"Subscriber\",'Enrollment Form'!C162=\"ROC\",'Enrollment Form'!O162<>\"Multiple of Salary\"),\"-\",IF(COUNTA('Enrollment Form'!T162:U162)<2,\"N\",\"Y\"))","v":"-"},{"$f":"IF(B155=\"N\",\"\",IF(OR('Enrollment Form'!C162=\"ROC\",'Enrollment Form'!B162<>\"Subscriber\",'Enrollment Form'!O162=\"Waive\",'Enrollment Form'!O162=\"\"),\"-\",IF('Enrollment Form'!P162=\"\",\"N\",\"Y\")))","v":""},{"$f":"IF($B155=\"N\",\"\",IF(AND('Enrollment Form'!$C162=\"ROC\",'Enrollment Form'!$DS162<>\"\"),\"Y\",IF(AND('Enrollment Form'!$C162=\"ROC\",'Enrollment Form'!$DS162=\"\"),\"N\",IF(AND('Enrollment Form'!$C162=\"Enroll\",'Enrollment Form'!$B162=\"Subscriber\",'Enrollment Form'!$CQ162=\"No\",'Enrollment Form'!$DS162=\"\"),\"N\",IF(AND('Enrollment Form'!$C162=\"Enroll\",'Enrollment Form'!$B162=\"Subscriber\",'Enrollment Form'!$CQ162=\"Yes\"),\"-\",\"Y\")))))","v":""},{"$f":"IF($B155=\"N\",\"\",IF(AND('Enrollment Form'!$C162=\"ROC\",'Enrollment Form'!$DT162<>\"\"),\"Y\",IF(AND('Enrollment Form'!$C162=\"ROC\",'Enrollment Form'!$DT162=\"\"),\"N\",IF(AND('Enrollment Form'!$C162=\"Enroll\",'Enrollment Form'!$B162=\"Subscriber\",'Enrollment Form'!$CQ162=\"No\",'Enrollment Form'!$DT162=\"\"),\"N\",IF(AND('Enrollment Form'!$C162=\"Enroll\",'Enrollment Form'!$B162=\"Subscriber\",'Enrollment Form'!$CQ162=\"Yes\"),\"-\",\"Y\")))))","v":""},{"$f":"IF('Enrollment Form'!AH162=\"\",\"\",IF(ISERROR(SEARCH(\".\",'Enrollment Form'!AH162,SEARCH(\"@\",'Enrollment Form'!AH162))),\"N\",\"Y\"))","v":""},{"$f":"IF(OR($B155=\"N\",'Enrollment Form'!$G162=\"\"),\"\",IF('Enrollment Form'!$B162<>\"Subscriber\",\"-\",IF(COUNTIF('Enrollment Form'!$AS162:$AT162,\"Yes\")=2,\"N\",\"Y\")))","v":""},{"$f":"IF(OR('Enrollment Form'!$CC162=\"\",'Enrollment Form'!$CC162=\"No\"),\"-\",IF(AND('Enrollment Form'!$CC162=\"Yes\",'Enrollment Form'!$CD162=\"\"),\"N\",\"Y\"))","v":"-"},{"$f":"IF(OR('Enrollment Form'!$CE162=\"\",'Enrollment Form'!$CE162=\"No\"),\"-\",IF(AND('Enrollment Form'!$CE162=\"Yes\",'Enrollment Form'!$CF162=\"\"),\"N\",\"Y\"))","v":"-"},{"$f":"IF(OR('Enrollment Form'!$CG162=\"\",'Enrollment Form'!$CG162=\"No\"),\"-\",IF(AND('Enrollment Form'!$CG162=\"Yes\",'Enrollment Form'!$CH162=\"\"),\"N\",\"Y\"))","v":"-"},{"$f":"IF(OR('Enrollment Form'!$CG162=\"\",'Enrollment Form'!$CG162=\"No\"),\"-\",IF(AND('Enrollment Form'!$CG162=\"Yes\",'Enrollment Form'!$CI162=\"\"),\"N\",\"Y\"))","v":"-"},{"$f":"IF('Enrollment Form'!B162<>\"Subscriber\",\"-\",IF(AND('Enrollment Form'!B162=\"Subscriber\",'Enrollment Form'!C162=\"Enroll\",'Enrollment Form'!AA162=\"\"),\"N\",\"Y\"))","v":"-"},{"$f":"IF(OR('Enrollment Form'!B162=\"Subscriber\",'Enrollment Form'!B162=\"\"),\"-\",IF('Enrollment Form'!BI162=\"\",\"N\",\"Y\"))","v":"-"},{"$f":"IF('Enrollment Form'!B162<>\"Subscriber\",\"-\",IF(AND('Enrollment Form'!B162=\"Subscriber\",'Enrollment Form'!G162=\"\"),\"N\",\"Y\"))","v":"-"},{"$f":"IF('Enrollment Form'!A162=\"\",\"\",IF('Enrollment Form'!B162=\"Subscriber\",\"-\",IF(AND('Enrollment Form'!B162<>\"Subscriber\",'Enrollment Form'!G162='Enrollment Form'!H162),\"N\",\"Y\")))","v":""},0]
[163,{"$f":"IF('Enrollment Form'!$A163<>\"\",\"Y\",\"N\")","v":"N"},{"$f":"IF(AND('Enrollment Form'!$B163=\"\",'Enrollment Form'!$C163<>\"\"),\"N\",IF($B156=\"N\",\"\",\"Y\"))","v":""},{"$f":"IF(OR($B156=\"N\",'Enrollment Form'!G163=\"\"),\"\",IF('Enrollment Form'!$B163<>\"Subscriber\",\"\",IF('Enrollment Form'!$G163='Enrollment Form'!$H163,\"Y\",\"N\")))","v":""},{"$f":"IF($B156=\"N\",\"\",IF(AND(COUNTIFS('Enrollment Form'!$H$11:$H$1000,'Enrollment Form'!$H163,'Enrollment Form'!$B$11:$B$1000,'Enrollment Form'!$B163)>1,'Enrollment Form'!$H163<>\"\"),\"N\",\"Y\"))","v":""},{"$f":"IF($B156=\"N\",\"\",IF(LEN('Enrollment Form'!$Y163)=0,\"\",IF(LEN('Enrollment Form'!$Y163)<>5,\"N\",\"Y\")))","v":""},{"$f":"IF($B156=\"N\",\"\",IF(LEN('Enrollment Form'!$AD163=0),\"\",IF(LEN('Enrollment Form'!$AD163)<>5,\"N\",\"Y\")))","v":""},{"$f":"IF($B156=\"N\",\"\",IF(LEN('Enrollment Form'!$BL163=0),\"\",IF(LEN('Enrollment Form'!$BL163)<>5,\"N\",\"Y\")))","v":""},{"$f":"IF($B156=\"N\",\"\",IF(LEN('Enrollment Form'!$AE163)=0,\"\",IF(LEN('Enrollment Form'!$AE163)<>10,\"N\",\"Y\")))","v":""},{"$f":"IF($B156=\"N\",\"\",IF(LEN('Enrollment Form'!$AF163)=0,\"\",IF(LEN('Enrollment Form'!$AF163)<>10,\"N\",\"Y\")))","v":""},{"$f":"IF('Enrollment Form'!$O163<>\"Graded\",\"-\",IF(AND('Enrollment Form'!$O163=\"Graded\",'Enrollment Form'!$AO163<>\"\"),\"Y\",\"N\"))","v":"-"},{"$f":"IF($B156=\"N\",\"\",IF(OR('Enrollment Form'!$B163<>\"Subscriber\",'Enrollment Form'!$C163=\"ROC\"),\"-\",IF(AND('Enrollment Form'!$B163=\"Subscriber\",'Enrollment Form'!$C163=\"Enroll\",'Enrollment Form'!$AJ163<>\"\"),\"Y\",\"N\")))","v":""},{"$f":"IF($B156=\"N\",\"\",IF(OR('Enrollment Form'!$B163<>\"Subscriber\",'Enrollment Form'!$C163=\"ROC\"),\"-\",IF(AND('Enrollment Form'!$B163=\"Subscriber\",'Enrollment Form'!$C163=\"Enroll\",'Enrollment Form'!$AK163<>\"\"),\"Y\",\"N\")))","v":""},{"$f":"IF($B156=\"N\",\"\",IF(OR('Enrollment Form'!$B163<>\"Subscriber\",'Enrollment Form'!$C163=\"ROC\"),\"-\",IF(AND('Enrollment Form'!$B163=\"Subscriber\",'Enrollment Form'!$C163=\"Enroll\",'Enrollment Form'!$AL163<>\"\"),\"Y\",\"N\")))","v":""},{"$f":"IF($B156=\"N\",\"\",IF(OR('Enrollment Form'!$B163<>\"Subscriber\",'Enrollment Form'!$C163=\"ROC\"),\"-\",IF(AND('Enrollment Form'!$B163=\"Subscriber\",'Enrollment Form'!$C163=\"Enroll\",'Enrollment Form'!$AM163<>\"\"),\"Y\",\"N\")))","v":""},{"$f":"IF($B156=\"N\",\"\",IF(OR('Enrollment Form'!$B163<>\"Subscriber\",'Enrollment Form'!$C163=\"ROC\"),\"-\",IF(AND('Enrollment Form'!$B163=\"Subscriber\",'Enrollment Form'!$C163=\"Enroll\",'Enrollment Form'!$AN163<>\"\"),\"Y\",\"N\")))","v":""},{"$f":"IF($B156=\"N\",\"\",IF(OR('Enrollment Form'!$B163<>\"Subscriber\",'Enrollment Form'!$C163=\"ROC\"),\"-\",IF(AND('Enrollment Form'!$B163=\"Subscriber\",'Enrollment Form'!$C163=\"Enroll\",'Enrollment Form'!$AP163<>\"\"),\"Y\",\"N\")))","v":""},{"$f":"IF($B156=\"N\",\"\",IF($Q156=\"-\",\"-\",IF(AND($Q156=\"Y\",'Enrollment Form'!$AP163=\"No\"),\"-\",IF(AND($Q156=\"Y\",'Enrollment Form'!$AP163=\"Yes\",'Enrollment Form'!$AQ163<>\"\"),\"Y\",\"N\"))))","v":""},{"$f":"IF($B156=\"N\",\"\",IF(OR('Enrollment Form'!$B163<>\"Subscriber\",'Enrollment Form'!$C163=\"ROC\"),\"-\",IF(AND('Enrollment Form'!$B163=\"Subscriber\",'Enrollment Form'!$C163=\"Enroll\",'Enrollment Form'!$CO163<>\"\"),\"Y\",\"N\")))","v":""},{"$f":"IF($B156=\"N\",\"\",IF($S156=\"-\",\"-\",IF(AND($S156=\"Y\",'Enrollment Form'!$CO163=\"No\"),\"-\",IF(AND($S156=\"Y\",'Enrollment Form'!$CO163=\"Yes\",'Enrollment Form'!$CP163<>\"\"),\"Y\",\"N\"))))","v":""},{"$f":"IF(OR('Enrollment Form'!$AV163=\"Yes\",'Enrollment Form'!$AV163=\"\"),\"-\",IF(AND('Enrollment Form'!$AV163=\"No\",ISERROR(FIND(\"HMO\",VLOOKUP('Enrollment Form'!G163,'Enrollment Form'!H$11:J$1000,3,FALSE),1))=FALSE,COUNTA('Enrollment Form'!$AW163:$AZ163)=4),\"Y\",\"N\"))","v":"-"},{"$f":"IF($B156=\"N\",\"\",IF('Enrollment Form'!$B163=\"Subscriber\",\"-\",IF(COUNTA('Enrollment Form'!$BE163,'Enrollment Form'!$BG163)=2,\"Y\",\"N\")))","v":""},{"$f":"IF($B156=\"N\",\"\",IF(OR('Enrollment Form'!$AU163=\"\",'Enrollment Form'!$AU163=\"No\"),\"-\",IF(AND('Enrollment Form'!$AU163=\"Yes\",COUNTA('Enrollment Form'!$CK163)=1),\"Y\",\"N\")))","v":""},{"$f":"IF(OR('Enrollment Form'!$CK163=\"\",'Enrollment Form'!$CK163=\"No\"),\"-\",IF(COUNTA('Enrollment Form'!$CM163:$CN163)=2,\"Y\",\"N\"))","v":"-"},{"$f":"IF($B156=\"N\",\"\",IF(COUNTIF('Enrollment Form'!$CZ163:$DO163,\"Other\")=COUNTA('Enrollment Form'!$DF163,'Enrollment Form'!$DA163,'Enrollment Form'!$DK163,'Enrollment Form'!$DP163),\"Y\",\"N\"))","v":""},{"$f":"IF($B156=\"N\",\"\",IF(OR('Enrollment Form'!B163<>\"Subscriber\",'Enrollment Form'!C163=\"ROC\",COUNTIF('Enrollment Form'!AS163:AT163,\"Yes\")>=1),\"-\",IF(AND('Enrollment Form'!C163=\"Enroll\",COUNTIF('Enrollment Form'!AS163:AT163,\"No\")=2,'Enrollment Form'!AU163=\"\"),\"N\",\"Y\")))","v":""},{"$f":"IF(OR(B156=\"N\",'Enrollment Form'!B163<>\"Subscriber\",'Enrollment Form'!C163=\"ROC\",'Enrollment Form'!O163<>\"Multiple of Salary\"),\"-\",IF(COUNTA('Enrollment Form'!T163:U163)<2,\"N\",\"Y\"))","v":"-"},{"$f":"IF(B156=\"N\",\"\",IF(OR('Enrollment Form'!C163=\"ROC\",'Enrollment Form'!B163<>\"Subscriber\",'Enrollment Form'!O163=\"Waive\",'Enrollment Form'!O163=\"\"),\"-\",IF('Enrollment Form'!P163=\"\",\"N\",\"Y\")))","v":""},{"$f":"IF($B156=\"N\",\"\",IF(AND('Enrollment Form'!$C163=\"ROC\",'Enrollment Form'!$DS163<>\"\"),\"Y\",IF(AND('Enrollment Form'!$C163=\"ROC\",'Enrollment Form'!$DS163=\"\"),\"N\",IF(AND('Enrollment Form'!$C163=\"Enroll\",'Enrollment Form'!$B163=\"Subscriber\",'Enrollment Form'!$CQ163=\"No\",'Enrollment Form'!$DS163=\"\"),\"N\",IF(AND('Enrollment Form'!$C163=\"Enroll\",'Enrollment Form'!$B163=\"Subscriber\",'Enrollment Form'!$CQ163=\"Yes\"),\"-\",\"Y\")))))","v":""},{"$f":"IF($B156=\"N\",\"\",IF(AND('Enrollment Form'!$C163=\"ROC\",'Enrollment Form'!$DT163<>\"\"),\"Y\",IF(AND('Enrollment Form'!$C163=\"ROC\",'Enrollment Form'!$DT163=\"\"),\"N\",IF(AND('Enrollment Form'!$C163=\"Enroll\",'Enrollment Form'!$B163=\"Subscriber\",'Enrollment Form'!$CQ163=\"No\",'Enrollment Form'!$DT163=\"\"),\"N\",IF(AND('Enrollment Form'!$C163=\"Enroll\",'Enrollment Form'!$B163=\"Subscriber\",'Enrollment Form'!$CQ163=\"Yes\"),\"-\",\"Y\")))))","v":""},{"$f":"IF('Enrollment Form'!AH163=\"\",\"\",IF(ISERROR(SEARCH(\".\",'Enrollment Form'!AH163,SEARCH(\"@\",'Enrollment Form'!AH163))),\"N\",\"Y\"))","v":""},{"$f":"IF(OR($B156=\"N\",'Enrollment Form'!$G163=\"\"),\"\",IF('Enrollment Form'!$B163<>\"Subscriber\",\"-\",IF(COUNTIF('Enrollment Form'!$AS163:$AT163,\"Yes\")=2,\"N\",\"Y\")))","v":""},{"$f":"IF(OR('Enrollment Form'!$CC163=\"\",'Enrollment Form'!$CC163=\"No\"),\"-\",IF(AND('Enrollment Form'!$CC163=\"Yes\",'Enrollment Form'!$CD163=\"\"),\"N\",\"Y\"))","v":"-"},{"$f":"IF(OR('Enrollment Form'!$CE163=\"\",'Enrollment Form'!$CE163=\"No\"),\"-\",IF(AND('Enrollment Form'!$CE163=\"Yes\",'Enrollment Form'!$CF163=\"\"),\"N\",\"Y\"))","v":"-"},{"$f":"IF(OR('Enrollment Form'!$CG163=\"\",'Enrollment Form'!$CG163=\"No\"),\"-\",IF(AND('Enrollment Form'!$CG163=\"Yes\",'Enrollment Form'!$CH163=\"\"),\"N\",\"Y\"))","v":"-"},{"$f":"IF(OR('Enrollment Form'!$CG163=\"\",'Enrollment Form'!$CG163=\"No\"),\"-\",IF(AND('Enrollment Form'!$CG163=\"Yes\",'Enrollment Form'!$CI163=\"\"),\"N\",\"Y\"))","v":"-"},{"$f":"IF('Enrollment Form'!B163<>\"Subscriber\",\"-\",IF(AND('Enrollment Form'!B163=\"Subscriber\",'Enrollment Form'!C163=\"Enroll\",'Enrollment Form'!AA163=\"\"),\"N\",\"Y\"))","v":"-"},{"$f":"IF(OR('Enrollment Form'!B163=\"Subscriber\",'Enrollment Form'!B163=\"\"),\"-\",IF('Enrollment Form'!BI163=\"\",\"N\",\"Y\"))","v":"-"},{"$f":"IF('Enrollment Form'!B163<>\"Subscriber\",\"-\",IF(AND('Enrollment Form'!B163=\"Subscriber\",'Enrollment Form'!G163=\"\"),\"N\",\"Y\"))","v":"-"},{"$f":"IF('Enrollment Form'!A163=\"\",\"\",IF('Enrollment Form'!B163=\"Subscriber\",\"-\",IF(AND('Enrollment Form'!B163<>\"Subscriber\",'Enrollment Form'!G163='Enrollment Form'!H163),\"N\",\"Y\")))","v":""},0]
[164,{"$f":"IF('Enrollment Form'!$A164<>\"\",\"Y\",\"N\")","v":"N"},{"$f":"IF(AND('Enrollment Form'!$B164=\"\",'Enrollment Form'!$C164<>\"\"),\"N\",IF($B157=\"N\",\"\",\"Y\"))","v":""},{"$f":"IF(OR($B157=\"N\",'Enrollment Form'!G164=\"\"),\"\",IF('Enrollment Form'!$B164<>\"Subscriber\",\"\",IF('Enrollment Form'!$G164='Enrollment Form'!$H164,\"Y\",\"N\")))","v":""},{"$f":"IF($B157=\"N\",\"\",IF(AND(COUNTIFS('Enrollment Form'!$H$11:$H$1000,'Enrollment Form'!$H164,'Enrollment Form'!$B$11:$B$1000,'Enrollment Form'!$B164)>1,'Enrollment Form'!$H164<>\"\"),\"N\",\"Y\"))","v":""},{"$f":"IF($B157=\"N\",\"\",IF(LEN('Enrollment Form'!$Y164)=0,\"\",IF(LEN('Enrollment Form'!$Y164)<>5,\"N\",\"Y\")))","v":""},{"$f":"IF($B157=\"N\",\"\",IF(LEN('Enrollment Form'!$AD164=0),\"\",IF(LEN('Enrollment Form'!$AD164)<>5,\"N\",\"Y\")))","v":""},{"$f":"IF($B157=\"N\",\"\",IF(LEN('Enrollment Form'!$BL164=0),\"\",IF(LEN('Enrollment Form'!$BL164)<>5,\"N\",\"Y\")))","v":""},{"$f":"IF($B157=\"N\",\"\",IF(LEN('Enrollment Form'!$AE164)=0,\"\",IF(LEN('Enrollment Form'!$AE164)<>10,\"N\",\"Y\")))","v":""},{"$f":"IF($B157=\"N\",\"\",IF(LEN('Enrollment Form'!$AF164)=0,\"\",IF(LEN('Enrollment Form'!$AF164)<>10,\"N\",\"Y\")))","v":""},{"$f":"IF('Enrollment Form'!$O164<>\"Graded\",\"-\",IF(AND('Enrollment Form'!$O164=\"Graded\",'Enrollment Form'!$AO164<>\"\"),\"Y\",\"N\"))","v":"-"},{"$f":"IF($B157=\"N\",\"\",IF(OR('Enrollment Form'!$B164<>\"Subscriber\",'Enrollment Form'!$C164=\"ROC\"),\"-\",IF(AND('Enrollment Form'!$B164=\"Subscriber\",'Enrollment Form'!$C164=\"Enroll\",'Enrollment Form'!$AJ164<>\"\"),\"Y\",\"N\")))","v":""},{"$f":"IF($B157=\"N\",\"\",IF(OR('Enrollment Form'!$B164<>\"Subscriber\",'Enrollment Form'!$C164=\"ROC\"),\"-\",IF(AND('Enrollment Form'!$B164=\"Subscriber\",'Enrollment Form'!$C164=\"Enroll\",'Enrollment Form'!$AK164<>\"\"),\"Y\",\"N\")))","v":""},{"$f":"IF($B157=\"N\",\"\",IF(OR('Enrollment Form'!$B164<>\"Subscriber\",'Enrollment Form'!$C164=\"ROC\"),\"-\",IF(AND('Enrollment Form'!$B164=\"Subscriber\",'Enrollment Form'!$C164=\"Enroll\",'Enrollment Form'!$AL164<>\"\"),\"Y\",\"N\")))","v":""},{"$f":"IF($B157=\"N\",\"\",IF(OR('Enrollment Form'!$B164<>\"Subscriber\",'Enrollment Form'!$C164=\"ROC\"),\"-\",IF(AND('Enrollment Form'!$B164=\"Subscriber\",'Enrollment Form'!$C164=\"Enroll\",'Enrollment Form'!$AM164<>\"\"),\"Y\",\"N\")))","v":""},{"$f":"IF($B157=\"N\",\"\",IF(OR('Enrollment Form'!$B164<>\"Subscriber\",'Enrollment Form'!$C164=\"ROC\"),\"-\",IF(AND('Enrollment Form'!$B164=\"Subscriber\",'Enrollment Form'!$C164=\"Enroll\",'Enrollment Form'!$AN164<>\"\"),\"Y\",\"N\")))","v":""},{"$f":"IF($B157=\"N\",\"\",IF(OR('Enrollment Form'!$B164<>\"Subscriber\",'Enrollment Form'!$C164=\"ROC\"),\"-\",IF(AND('Enrollment Form'!$B164=\"Subscriber\",'Enrollment Form'!$C164=\"Enroll\",'Enrollment Form'!$AP164<>\"\"),\"Y\",\"N\")))","v":""},{"$f":"IF($B157=\"N\",\"\",IF($Q157=\"-\",\"-\",IF(AND($Q157=\"Y\",'Enrollment Form'!$AP164=\"No\"),\"-\",IF(AND($Q157=\"Y\",'Enrollment Form'!$AP164=\"Yes\",'Enrollment Form'!$AQ164<>\"\"),\"Y\",\"N\"))))","v":""},{"$f":"IF($B157=\"N\",\"\",IF(OR('Enrollment Form'!$B164<>\"Subscriber\",'Enrollment Form'!$C164=\"ROC\"),\"-\",IF(AND('Enrollment Form'!$B164=\"Subscriber\",'Enrollment Form'!$C164=\"Enroll\",'Enrollment Form'!$CO164<>\"\"),\"Y\",\"N\")))","v":""},{"$f":"IF($B157=\"N\",\"\",IF($S157=\"-\",\"-\",IF(AND($S157=\"Y\",'Enrollment Form'!$CO164=\"No\"),\"-\",IF(AND($S157=\"Y\",'Enrollment Form'!$CO164=\"Yes\",'Enrollment Form'!$CP164<>\"\"),\"Y\",\"N\"))))","v":""},{"$f":"IF(OR('Enrollment Form'!$AV164=\"Yes\",'Enrollment Form'!$AV164=\"\"),\"-\",IF(AND('Enrollment Form'!$AV164=\"No\",ISERROR(FIND(\"HMO\",VLOOKUP('Enrollment Form'!G164,'Enrollment Form'!H$11:J$1000,3,FALSE),1))=FALSE,COUNTA('Enrollment Form'!$AW164:$AZ164)=4),\"Y\",\"N\"))","v":"-"},{"$f":"IF($B157=\"N\",\"\",IF('Enrollment Form'!$B164=\"Subscriber\",\"-\",IF(COUNTA('Enrollment Form'!$BE164,'Enrollment Form'!$BG164)=2,\"Y\",\"N\")))","v":""},{"$f":"IF($B157=\"N\",\"\",IF(OR('Enrollment Form'!$AU164=\"\",'Enrollment Form'!$AU164=\"No\"),\"-\",IF(AND('Enrollment Form'!$AU164=\"Yes\",COUNTA('Enrollment Form'!$CK164)=1),\"Y\",\"N\")))","v":""},{"$f":"IF(OR('Enrollment Form'!$CK164=\"\",'Enrollment Form'!$CK164=\"No\"),\"-\",IF(COUNTA('Enrollment Form'!$CM164:$CN164)=2,\"Y\",\"N\"))","v":"-"},{"$f":"IF($B157=\"N\",\"\",IF(COUNTIF('Enrollment Form'!$CZ164:$DO164,\"Other\")=COUNTA('Enrollment Form'!$DF164,'Enrollment Form'!$DA164,'Enrollment Form'!$DK164,'Enrollment Form'!$DP164),\"Y\",\"N\"))","v":""},{"$f":"IF($B157=\"N\",\"\",IF(OR('Enrollment Form'!B164<>\"Subscriber\",'Enrollment Form'!C164=\"ROC\",COUNTIF('Enrollment Form'!AS164:AT164,\"Yes\")>=1),\"-\",IF(AND('Enrollment Form'!C164=\"Enroll\",COUNTIF('Enrollment Form'!AS164:AT164,\"No\")=2,'Enrollment Form'!AU164=\"\"),\"N\",\"Y\")))","v":""},{"$f":"IF(OR(B157=\"N\",'Enrollment Form'!B164<>\"Subscriber\",'Enrollment Form'!C164=\"ROC\",'Enrollment Form'!O164<>\"Multiple of Salary\"),\"-\",IF(COUNTA('Enrollment Form'!T164:U164)<2,\"N\",\"Y\"))","v":"-"},{"$f":"IF(B157=\"N\",\"\",IF(OR('Enrollment Form'!C164=\"ROC\",'Enrollment Form'!B164<>\"Subscriber\",'Enrollment Form'!O164=\"Waive\",'Enrollment Form'!O164=\"\"),\"-\",IF('Enrollment Form'!P164=\"\",\"N\",\"Y\")))","v":""},{"$f":"IF($B157=\"N\",\"\",IF(AND('Enrollment Form'!$C164=\"ROC\",'Enrollment Form'!$DS164<>\"\"),\"Y\",IF(AND('Enrollment Form'!$C164=\"ROC\",'Enrollment Form'!$DS164=\"\"),\"N\",IF(AND('Enrollment Form'!$C164=\"Enroll\",'Enrollment Form'!$B164=\"Subscriber\",'Enrollment Form'!$CQ164=\"No\",'Enrollment Form'!$DS164=\"\"),\"N\",IF(AND('Enrollment Form'!$C164=\"Enroll\",'Enrollment Form'!$B164=\"Subscriber\",'Enrollment Form'!$CQ164=\"Yes\"),\"-\",\"Y\")))))","v":""},{"$f":"IF($B157=\"N\",\"\",IF(AND('Enrollment Form'!$C164=\"ROC\",'Enrollment Form'!$DT164<>\"\"),\"Y\",IF(AND('Enrollment Form'!$C164=\"ROC\",'Enrollment Form'!$DT164=\"\"),\"N\",IF(AND('Enrollment Form'!$C164=\"Enroll\",'Enrollment Form'!$B164=\"Subscriber\",'Enrollment Form'!$CQ164=\"No\",'Enrollment Form'!$DT164=\"\"),\"N\",IF(AND('Enrollment Form'!$C164=\"Enroll\",'Enrollment Form'!$B164=\"Subscriber\",'Enrollment Form'!$CQ164=\"Yes\"),\"-\",\"Y\")))))","v":""},{"$f":"IF('Enrollment Form'!AH164=\"\",\"\",IF(ISERROR(SEARCH(\".\",'Enrollment Form'!AH164,SEARCH(\"@\",'Enrollment Form'!AH164))),\"N\",\"Y\"))","v":""},{"$f":"IF(OR($B157=\"N\",'Enrollment Form'!$G164=\"\"),\"\",IF('Enrollment Form'!$B164<>\"Subscriber\",\"-\",IF(COUNTIF('Enrollment Form'!$AS164:$AT164,\"Yes\")=2,\"N\",\"Y\")))","v":""},{"$f":"IF(OR('Enrollment Form'!$CC164=\"\",'Enrollment Form'!$CC164=\"No\"),\"-\",IF(AND('Enrollment Form'!$CC164=\"Yes\",'Enrollment Form'!$CD164=\"\"),\"N\",\"Y\"))","v":"-"},{"$f":"IF(OR('Enrollment Form'!$CE164=\"\",'Enrollment Form'!$CE164=\"No\"),\"-\",IF(AND('Enrollment Form'!$CE164=\"Yes\",'Enrollment Form'!$CF164=\"\"),\"N\",\"Y\"))","v":"-"},{"$f":"IF(OR('Enrollment Form'!$CG164=\"\",'Enrollment Form'!$CG164=\"No\"),\"-\",IF(AND('Enrollment Form'!$CG164=\"Yes\",'Enrollment Form'!$CH164=\"\"),\"N\",\"Y\"))","v":"-"},{"$f":"IF(OR('Enrollment Form'!$CG164=\"\",'Enrollment Form'!$CG164=\"No\"),\"-\",IF(AND('Enrollment Form'!$CG164=\"Yes\",'Enrollment Form'!$CI164=\"\"),\"N\",\"Y\"))","v":"-"},{"$f":"IF('Enrollment Form'!B164<>\"Subscriber\",\"-\",IF(AND('Enrollment Form'!B164=\"Subscriber\",'Enrollment Form'!C164=\"Enroll\",'Enrollment Form'!AA164=\"\"),\"N\",\"Y\"))","v":"-"},{"$f":"IF(OR('Enrollment Form'!B164=\"Subscriber\",'Enrollment Form'!B164=\"\"),\"-\",IF('Enrollment Form'!BI164=\"\",\"N\",\"Y\"))","v":"-"},{"$f":"IF('Enrollment Form'!B164<>\"Subscriber\",\"-\",IF(AND('Enrollment Form'!B164=\"Subscriber\",'Enrollment Form'!G164=\"\"),\"N\",\"Y\"))","v":"-"},{"$f":"IF('Enrollment Form'!A164=\"\",\"\",IF('Enrollment Form'!B164=\"Subscriber\",\"-\",IF(AND('Enrollment Form'!B164<>\"Subscriber\",'Enrollment Form'!G164='Enrollment Form'!H164),\"N\",\"Y\")))","v":""},0]
[165,{"$f":"IF('Enrollment Form'!$A165<>\"\",\"Y\",\"N\")","v":"N"},{"$f":"IF(AND('Enrollment Form'!$B165=\"\",'Enrollment Form'!$C165<>\"\"),\"N\",IF($B158=\"N\",\"\",\"Y\"))","v":""},{"$f":"IF(OR($B158=\"N\",'Enrollment Form'!G165=\"\"),\"\",IF('Enrollment Form'!$B165<>\"Subscriber\",\"\",IF('Enrollment Form'!$G165='Enrollment Form'!$H165,\"Y\",\"N\")))","v":""},{"$f":"IF($B158=\"N\",\"\",IF(AND(COUNTIFS('Enrollment Form'!$H$11:$H$1000,'Enrollment Form'!$H165,'Enrollment Form'!$B$11:$B$1000,'Enrollment Form'!$B165)>1,'Enrollment Form'!$H165<>\"\"),\"N\",\"Y\"))","v":""},{"$f":"IF($B158=\"N\",\"\",IF(LEN('Enrollment Form'!$Y165)=0,\"\",IF(LEN('Enrollment Form'!$Y165)<>5,\"N\",\"Y\")))","v":""},{"$f":"IF($B158=\"N\",\"\",IF(LEN('Enrollment Form'!$AD165=0),\"\",IF(LEN('Enrollment Form'!$AD165)<>5,\"N\",\"Y\")))","v":""},{"$f":"IF($B158=\"N\",\"\",IF(LEN('Enrollment Form'!$BL165=0),\"\",IF(LEN('Enrollment Form'!$BL165)<>5,\"N\",\"Y\")))","v":""},{"$f":"IF($B158=\"N\",\"\",IF(LEN('Enrollment Form'!$AE165)=0,\"\",IF(LEN('Enrollment Form'!$AE165)<>10,\"N\",\"Y\")))","v":""},{"$f":"IF($B158=\"N\",\"\",IF(LEN('Enrollment Form'!$AF165)=0,\"\",IF(LEN('Enrollment Form'!$AF165)<>10,\"N\",\"Y\")))","v":""},{"$f":"IF('Enrollment Form'!$O165<>\"Graded\",\"-\",IF(AND('Enrollment Form'!$O165=\"Graded\",'Enrollment Form'!$AO165<>\"\"),\"Y\",\"N\"))","v":"-"},{"$f":"IF($B158=\"N\",\"\",IF(OR('Enrollment Form'!$B165<>\"Subscriber\",'Enrollment Form'!$C165=\"ROC\"),\"-\",IF(AND('Enrollment Form'!$B165=\"Subscriber\",'Enrollment Form'!$C165=\"Enroll\",'Enrollment Form'!$AJ165<>\"\"),\"Y\",\"N\")))","v":""},{"$f":"IF($B158=\"N\",\"\",IF(OR('Enrollment Form'!$B165<>\"Subscriber\",'Enrollment Form'!$C165=\"ROC\"),\"-\",IF(AND('Enrollment Form'!$B165=\"Subscriber\",'Enrollment Form'!$C165=\"Enroll\",'Enrollment Form'!$AK165<>\"\"),\"Y\",\"N\")))","v":""},{"$f":"IF($B158=\"N\",\"\",IF(OR('Enrollment Form'!$B165<>\"Subscriber\",'Enrollment Form'!$C165=\"ROC\"),\"-\",IF(AND('Enrollment Form'!$B165=\"Subscriber\",'Enrollment Form'!$C165=\"Enroll\",'Enrollment Form'!$AL165<>\"\"),\"Y\",\"N\")))","v":""},{"$f":"IF($B158=\"N\",\"\",IF(OR('Enrollment Form'!$B165<>\"Subscriber\",'Enrollment Form'!$C165=\"ROC\"),\"-\",IF(AND('Enrollment Form'!$B165=\"Subscriber\",'Enrollment Form'!$C165=\"Enroll\",'Enrollment Form'!$AM165<>\"\"),\"Y\",\"N\")))","v":""},{"$f":"IF($B158=\"N\",\"\",IF(OR('Enrollment Form'!$B165<>\"Subscriber\",'Enrollment Form'!$C165=\"ROC\"),\"-\",IF(AND('Enrollment Form'!$B165=\"Subscriber\",'Enrollment Form'!$C165=\"Enroll\",'Enrollment Form'!$AN165<>\"\"),\"Y\",\"N\")))","v":""},{"$f":"IF($B158=\"N\",\"\",IF(OR('Enrollment Form'!$B165<>\"Subscriber\",'Enrollment Form'!$C165=\"ROC\"),\"-\",IF(AND('Enrollment Form'!$B165=\"Subscriber\",'Enrollment Form'!$C165=\"Enroll\",'Enrollment Form'!$AP165<>\"\"),\"Y\",\"N\")))","v":""},{"$f":"IF($B158=\"N\",\"\",IF($Q158=\"-\",\"-\",IF(AND($Q158=\"Y\",'Enrollment Form'!$AP165=\"No\"),\"-\",IF(AND($Q158=\"Y\",'Enrollment Form'!$AP165=\"Yes\",'Enrollment Form'!$AQ165<>\"\"),\"Y\",\"N\"))))","v":""},{"$f":"IF($B158=\"N\",\"\",IF(OR('Enrollment Form'!$B165<>\"Subscriber\",'Enrollment Form'!$C165=\"ROC\"),\"-\",IF(AND('Enrollment Form'!$B165=\"Subscriber\",'Enrollment Form'!$C165=\"Enroll\",'Enrollment Form'!$CO165<>\"\"),\"Y\",\"N\")))","v":""},{"$f":"IF($B158=\"N\",\"\",IF($S158=\"-\",\"-\",IF(AND($S158=\"Y\",'Enrollment Form'!$CO165=\"No\"),\"-\",IF(AND($S158=\"Y\",'Enrollment Form'!$CO165=\"Yes\",'Enrollment Form'!$CP165<>\"\"),\"Y\",\"N\"))))","v":""},{"$f":"IF(OR('Enrollment Form'!$AV165=\"Yes\",'Enrollment Form'!$AV165=\"\"),\"-\",IF(AND('Enrollment Form'!$AV165=\"No\",ISERROR(FIND(\"HMO\",VLOOKUP('Enrollment Form'!G165,'Enrollment Form'!H$11:J$1000,3,FALSE),1))=FALSE,COUNTA('Enrollment Form'!$AW165:$AZ165)=4),\"Y\",\"N\"))","v":"-"},{"$f":"IF($B158=\"N\",\"\",IF('Enrollment Form'!$B165=\"Subscriber\",\"-\",IF(COUNTA('Enrollment Form'!$BE165,'Enrollment Form'!$BG165)=2,\"Y\",\"N\")))","v":""},{"$f":"IF($B158=\"N\",\"\",IF(OR('Enrollment Form'!$AU165=\"\",'Enrollment Form'!$AU165=\"No\"),\"-\",IF(AND('Enrollment Form'!$AU165=\"Yes\",COUNTA('Enrollment Form'!$CK165)=1),\"Y\",\"N\")))","v":""},{"$f":"IF(OR('Enrollment Form'!$CK165=\"\",'Enrollment Form'!$CK165=\"No\"),\"-\",IF(COUNTA('Enrollment Form'!$CM165:$CN165)=2,\"Y\",\"N\"))","v":"-"},{"$f":"IF($B158=\"N\",\"\",IF(COUNTIF('Enrollment Form'!$CZ165:$DO165,\"Other\")=COUNTA('Enrollment Form'!$DF165,'Enrollment Form'!$DA165,'Enrollment Form'!$DK165,'Enrollment Form'!$DP165),\"Y\",\"N\"))","v":""},{"$f":"IF($B158=\"N\",\"\",IF(OR('Enrollment Form'!B165<>\"Subscriber\",'Enrollment Form'!C165=\"ROC\",COUNTIF('Enrollment Form'!AS165:AT165,\"Yes\")>=1),\"-\",IF(AND('Enrollment Form'!C165=\"Enroll\",COUNTIF('Enrollment Form'!AS165:AT165,\"No\")=2,'Enrollment Form'!AU165=\"\"),\"N\",\"Y\")))","v":""},{"$f":"IF(OR(B158=\"N\",'Enrollment Form'!B165<>\"Subscriber\",'Enrollment Form'!C165=\"ROC\",'Enrollment Form'!O165<>\"Multiple of Salary\"),\"-\",IF(COUNTA('Enrollment Form'!T165:U165)<2,\"N\",\"Y\"))","v":"-"},{"$f":"IF(B158=\"N\",\"\",IF(OR('Enrollment Form'!C165=\"ROC\",'Enrollment Form'!B165<>\"Subscriber\",'Enrollment Form'!O165=\"Waive\",'Enrollment Form'!O165=\"\"),\"-\",IF('Enrollment Form'!P165=\"\",\"N\",\"Y\")))","v":""},{"$f":"IF($B158=\"N\",\"\",IF(AND('Enrollment Form'!$C165=\"ROC\",'Enrollment Form'!$DS165<>\"\"),\"Y\",IF(AND('Enrollment Form'!$C165=\"ROC\",'Enrollment Form'!$DS165=\"\"),\"N\",IF(AND('Enrollment Form'!$C165=\"Enroll\",'Enrollment Form'!$B165=\"Subscriber\",'Enrollment Form'!$CQ165=\"No\",'Enrollment Form'!$DS165=\"\"),\"N\",IF(AND('Enrollment Form'!$C165=\"Enroll\",'Enrollment Form'!$B165=\"Subscriber\",'Enrollment Form'!$CQ165=\"Yes\"),\"-\",\"Y\")))))","v":""},{"$f":"IF($B158=\"N\",\"\",IF(AND('Enrollment Form'!$C165=\"ROC\",'Enrollment Form'!$DT165<>\"\"),\"Y\",IF(AND('Enrollment Form'!$C165=\"ROC\",'Enrollment Form'!$DT165=\"\"),\"N\",IF(AND('Enrollment Form'!$C165=\"Enroll\",'Enrollment Form'!$B165=\"Subscriber\",'Enrollment Form'!$CQ165=\"No\",'Enrollment Form'!$DT165=\"\"),\"N\",IF(AND('Enrollment Form'!$C165=\"Enroll\",'Enrollment Form'!$B165=\"Subscriber\",'Enrollment Form'!$CQ165=\"Yes\"),\"-\",\"Y\")))))","v":""},{"$f":"IF('Enrollment Form'!AH165=\"\",\"\",IF(ISERROR(SEARCH(\".\",'Enrollment Form'!AH165,SEARCH(\"@\",'Enrollment Form'!AH165))),\"N\",\"Y\"))","v":""},{"$f":"IF(OR($B158=\"N\",'Enrollment Form'!$G165=\"\"),\"\",IF('Enrollment Form'!$B165<>\"Subscriber\",\"-\",IF(COUNTIF('Enrollment Form'!$AS165:$AT165,\"Yes\")=2,\"N\",\"Y\")))","v":""},{"$f":"IF(OR('Enrollment Form'!$CC165=\"\",'Enrollment Form'!$CC165=\"No\"),\"-\",IF(AND('Enrollment Form'!$CC165=\"Yes\",'Enrollment Form'!$CD165=\"\"),\"N\",\"Y\"))","v":"-"},{"$f":"IF(OR('Enrollment Form'!$CE165=\"\",'Enrollment Form'!$CE165=\"No\"),\"-\",IF(AND('Enrollment Form'!$CE165=\"Yes\",'Enrollment Form'!$CF165=\"\"),\"N\",\"Y\"))","v":"-"},{"$f":"IF(OR('Enrollment Form'!$CG165=\"\",'Enrollment Form'!$CG165=\"No\"),\"-\",IF(AND('Enrollment Form'!$CG165=\"Yes\",'Enrollment Form'!$CH165=\"\"),\"N\",\"Y\"))","v":"-"},{"$f":"IF(OR('Enrollment Form'!$CG165=\"\",'Enrollment Form'!$CG165=\"No\"),\"-\",IF(AND('Enrollment Form'!$CG165=\"Yes\",'Enrollment Form'!$CI165=\"\"),\"N\",\"Y\"))","v":"-"},{"$f":"IF('Enrollment Form'!B165<>\"Subscriber\",\"-\",IF(AND('Enrollment Form'!B165=\"Subscriber\",'Enrollment Form'!C165=\"Enroll\",'Enrollment Form'!AA165=\"\"),\"N\",\"Y\"))","v":"-"},{"$f":"IF(OR('Enrollment Form'!B165=\"Subscriber\",'Enrollment Form'!B165=\"\"),\"-\",IF('Enrollment Form'!BI165=\"\",\"N\",\"Y\"))","v":"-"},{"$f":"IF('Enrollment Form'!B165<>\"Subscriber\",\"-\",IF(AND('Enrollment Form'!B165=\"Subscriber\",'Enrollment Form'!G165=\"\"),\"N\",\"Y\"))","v":"-"},{"$f":"IF('Enrollment Form'!A165=\"\",\"\",IF('Enrollment Form'!B165=\"Subscriber\",\"-\",IF(AND('Enrollment Form'!B165<>\"Subscriber\",'Enrollment Form'!G165='Enrollment Form'!H165),\"N\",\"Y\")))","v":""},0]
[166,{"$f":"IF('Enrollment Form'!$A166<>\"\",\"Y\",\"N\")","v":"N"},{"$f":"IF(AND('Enrollment Form'!$B166=\"\",'Enrollment Form'!$C166<>\"\"),\"N\",IF($B159=\"N\",\"\",\"Y\"))","v":""},{"$f":"IF(OR($B159=\"N\",'Enrollment Form'!G166=\"\"),\"\",IF('Enrollment Form'!$B166<>\"Subscriber\",\"\",IF('Enrollment Form'!$G166='Enrollment Form'!$H166,\"Y\",\"N\")))","v":""},{"$f":"IF($B159=\"N\",\"\",IF(AND(COUNTIFS('Enrollment Form'!$H$11:$H$1000,'Enrollment Form'!$H166,'Enrollment Form'!$B$11:$B$1000,'Enrollment Form'!$B166)>1,'Enrollment Form'!$H166<>\"\"),\"N\",\"Y\"))","v":""},{"$f":"IF($B159=\"N\",\"\",IF(LEN('Enrollment Form'!$Y166)=0,\"\",IF(LEN('Enrollment Form'!$Y166)<>5,\"N\",\"Y\")))","v":""},{"$f":"IF($B159=\"N\",\"\",IF(LEN('Enrollment Form'!$AD166=0),\"\",IF(LEN('Enrollment Form'!$AD166)<>5,\"N\",\"Y\")))","v":""},{"$f":"IF($B159=\"N\",\"\",IF(LEN('Enrollment Form'!$BL166=0),\"\",IF(LEN('Enrollment Form'!$BL166)<>5,\"N\",\"Y\")))","v":""},{"$f":"IF($B159=\"N\",\"\",IF(LEN('Enrollment Form'!$AE166)=0,\"\",IF(LEN('Enrollment Form'!$AE166)<>10,\"N\",\"Y\")))","v":""},{"$f":"IF($B159=\"N\",\"\",IF(LEN('Enrollment Form'!$AF166)=0,\"\",IF(LEN('Enrollment Form'!$AF166)<>10,\"N\",\"Y\")))","v":""},{"$f":"IF('Enrollment Form'!$O166<>\"Graded\",\"-\",IF(AND('Enrollment Form'!$O166=\"Graded\",'Enrollment Form'!$AO166<>\"\"),\"Y\",\"N\"))","v":"-"},{"$f":"IF($B159=\"N\",\"\",IF(OR('Enrollment Form'!$B166<>\"Subscriber\",'Enrollment Form'!$C166=\"ROC\"),\"-\",IF(AND('Enrollment Form'!$B166=\"Subscriber\",'Enrollment Form'!$C166=\"Enroll\",'Enrollment Form'!$AJ166<>\"\"),\"Y\",\"N\")))","v":""},{"$f":"IF($B159=\"N\",\"\",IF(OR('Enrollment Form'!$B166<>\"Subscriber\",'Enrollment Form'!$C166=\"ROC\"),\"-\",IF(AND('Enrollment Form'!$B166=\"Subscriber\",'Enrollment Form'!$C166=\"Enroll\",'Enrollment Form'!$AK166<>\"\"),\"Y\",\"N\")))","v":""},{"$f":"IF($B159=\"N\",\"\",IF(OR('Enrollment Form'!$B166<>\"Subscriber\",'Enrollment Form'!$C166=\"ROC\"),\"-\",IF(AND('Enrollment Form'!$B166=\"Subscriber\",'Enrollment Form'!$C166=\"Enroll\",'Enrollment Form'!$AL166<>\"\"),\"Y\",\"N\")))","v":""},{"$f":"IF($B159=\"N\",\"\",IF(OR('Enrollment Form'!$B166<>\"Subscriber\",'Enrollment Form'!$C166=\"ROC\"),\"-\",IF(AND('Enrollment Form'!$B166=\"Subscriber\",'Enrollment Form'!$C166=\"Enroll\",'Enrollment Form'!$AM166<>\"\"),\"Y\",\"N\")))","v":""},{"$f":"IF($B159=\"N\",\"\",IF(OR('Enrollment Form'!$B166<>\"Subscriber\",'Enrollment Form'!$C166=\"ROC\"),\"-\",IF(AND('Enrollment Form'!$B166=\"Subscriber\",'Enrollment Form'!$C166=\"Enroll\",'Enrollment Form'!$AN166<>\"\"),\"Y\",\"N\")))","v":""},{"$f":"IF($B159=\"N\",\"\",IF(OR('Enrollment Form'!$B166<>\"Subscriber\",'Enrollment Form'!$C166=\"ROC\"),\"-\",IF(AND('Enrollment Form'!$B166=\"Subscriber\",'Enrollment Form'!$C166=\"Enroll\",'Enrollment Form'!$AP166<>\"\"),\"Y\",\"N\")))","v":""},{"$f":"IF($B159=\"N\",\"\",IF($Q159=\"-\",\"-\",IF(AND($Q159=\"Y\",'Enrollment Form'!$AP166=\"No\"),\"-\",IF(AND($Q159=\"Y\",'Enrollment Form'!$AP166=\"Yes\",'Enrollment Form'!$AQ166<>\"\"),\"Y\",\"N\"))))","v":""},{"$f":"IF($B159=\"N\",\"\",IF(OR('Enrollment Form'!$B166<>\"Subscriber\",'Enrollment Form'!$C166=\"ROC\"),\"-\",IF(AND('Enrollment Form'!$B166=\"Subscriber\",'Enrollment Form'!$C166=\"Enroll\",'Enrollment Form'!$CO166<>\"\"),\"Y\",\"N\")))","v":""},{"$f":"IF($B159=\"N\",\"\",IF($S159=\"-\",\"-\",IF(AND($S159=\"Y\",'Enrollment Form'!$CO166=\"No\"),\"-\",IF(AND($S159=\"Y\",'Enrollment Form'!$CO166=\"Yes\",'Enrollment Form'!$CP166<>\"\"),\"Y\",\"N\"))))","v":""},{"$f":"IF(OR('Enrollment Form'!$AV166=\"Yes\",'Enrollment Form'!$AV166=\"\"),\"-\",IF(AND('Enrollment Form'!$AV166=\"No\",ISERROR(FIND(\"HMO\",VLOOKUP('Enrollment Form'!G166,'Enrollment Form'!H$11:J$1000,3,FALSE),1))=FALSE,COUNTA('Enrollment Form'!$AW166:$AZ166)=4),\"Y\",\"N\"))","v":"-"},{"$f":"IF($B159=\"N\",\"\",IF('Enrollment Form'!$B166=\"Subscriber\",\"-\",IF(COUNTA('Enrollment Form'!$BE166,'Enrollment Form'!$BG166)=2,\"Y\",\"N\")))","v":""},{"$f":"IF($B159=\"N\",\"\",IF(OR('Enrollment Form'!$AU166=\"\",'Enrollment Form'!$AU166=\"No\"),\"-\",IF(AND('Enrollment Form'!$AU166=\"Yes\",COUNTA('Enrollment Form'!$CK166)=1),\"Y\",\"N\")))","v":""},{"$f":"IF(OR('Enrollment Form'!$CK166=\"\",'Enrollment Form'!$CK166=\"No\"),\"-\",IF(COUNTA('Enrollment Form'!$CM166:$CN166)=2,\"Y\",\"N\"))","v":"-"},{"$f":"IF($B159=\"N\",\"\",IF(COUNTIF('Enrollment Form'!$CZ166:$DO166,\"Other\")=COUNTA('Enrollment Form'!$DF166,'Enrollment Form'!$DA166,'Enrollment Form'!$DK166,'Enrollment Form'!$DP166),\"Y\",\"N\"))","v":""},{"$f":"IF($B159=\"N\",\"\",IF(OR('Enrollment Form'!B166<>\"Subscriber\",'Enrollment Form'!C166=\"ROC\",COUNTIF('Enrollment Form'!AS166:AT166,\"Yes\")>=1),\"-\",IF(AND('Enrollment Form'!C166=\"Enroll\",COUNTIF('Enrollment Form'!AS166:AT166,\"No\")=2,'Enrollment Form'!AU166=\"\"),\"N\",\"Y\")))","v":""},{"$f":"IF(OR(B159=\"N\",'Enrollment Form'!B166<>\"Subscriber\",'Enrollment Form'!C166=\"ROC\",'Enrollment Form'!O166<>\"Multiple of Salary\"),\"-\",IF(COUNTA('Enrollment Form'!T166:U166)<2,\"N\",\"Y\"))","v":"-"},{"$f":"IF(B159=\"N\",\"\",IF(OR('Enrollment Form'!C166=\"ROC\",'Enrollment Form'!B166<>\"Subscriber\",'Enrollment Form'!O166=\"Waive\",'Enrollment Form'!O166=\"\"),\"-\",IF('Enrollment Form'!P166=\"\",\"N\",\"Y\")))","v":""},{"$f":"IF($B159=\"N\",\"\",IF(AND('Enrollment Form'!$C166=\"ROC\",'Enrollment Form'!$DS166<>\"\"),\"Y\",IF(AND('Enrollment Form'!$C166=\"ROC\",'Enrollment Form'!$DS166=\"\"),\"N\",IF(AND('Enrollment Form'!$C166=\"Enroll\",'Enrollment Form'!$B166=\"Subscriber\",'Enrollment Form'!$CQ166=\"No\",'Enrollment Form'!$DS166=\"\"),\"N\",IF(AND('Enrollment Form'!$C166=\"Enroll\",'Enrollment Form'!$B166=\"Subscriber\",'Enrollment Form'!$CQ166=\"Yes\"),\"-\",\"Y\")))))","v":""},{"$f":"IF($B159=\"N\",\"\",IF(AND('Enrollment Form'!$C166=\"ROC\",'Enrollment Form'!$DT166<>\"\"),\"Y\",IF(AND('Enrollment Form'!$C166=\"ROC\",'Enrollment Form'!$DT166=\"\"),\"N\",IF(AND('Enrollment Form'!$C166=\"Enroll\",'Enrollment Form'!$B166=\"Subscriber\",'Enrollment Form'!$CQ166=\"No\",'Enrollment Form'!$DT166=\"\"),\"N\",IF(AND('Enrollment Form'!$C166=\"Enroll\",'Enrollment Form'!$B166=\"Subscriber\",'Enrollment Form'!$CQ166=\"Yes\"),\"-\",\"Y\")))))","v":""},{"$f":"IF('Enrollment Form'!AH166=\"\",\"\",IF(ISERROR(SEARCH(\".\",'Enrollment Form'!AH166,SEARCH(\"@\",'Enrollment Form'!AH166))),\"N\",\"Y\"))","v":""},{"$f":"IF(OR($B159=\"N\",'Enrollment Form'!$G166=\"\"),\"\",IF('Enrollment Form'!$B166<>\"Subscriber\",\"-\",IF(COUNTIF('Enrollment Form'!$AS166:$AT166,\"Yes\")=2,\"N\",\"Y\")))","v":""},{"$f":"IF(OR('Enrollment Form'!$CC166=\"\",'Enrollment Form'!$CC166=\"No\"),\"-\",IF(AND('Enrollment Form'!$CC166=\"Yes\",'Enrollment Form'!$CD166=\"\"),\"N\",\"Y\"))","v":"-"},{"$f":"IF(OR('Enrollment Form'!$CE166=\"\",'Enrollment Form'!$CE166=\"No\"),\"-\",IF(AND('Enrollment Form'!$CE166=\"Yes\",'Enrollment Form'!$CF166=\"\"),\"N\",\"Y\"))","v":"-"},{"$f":"IF(OR('Enrollment Form'!$CG166=\"\",'Enrollment Form'!$CG166=\"No\"),\"-\",IF(AND('Enrollment Form'!$CG166=\"Yes\",'Enrollment Form'!$CH166=\"\"),\"N\",\"Y\"))","v":"-"},{"$f":"IF(OR('Enrollment Form'!$CG166=\"\",'Enrollment Form'!$CG166=\"No\"),\"-\",IF(AND('Enrollment Form'!$CG166=\"Yes\",'Enrollment Form'!$CI166=\"\"),\"N\",\"Y\"))","v":"-"},{"$f":"IF('Enrollment Form'!B166<>\"Subscriber\",\"-\",IF(AND('Enrollment Form'!B166=\"Subscriber\",'Enrollment Form'!C166=\"Enroll\",'Enrollment Form'!AA166=\"\"),\"N\",\"Y\"))","v":"-"},{"$f":"IF(OR('Enrollment Form'!B166=\"Subscriber\",'Enrollment Form'!B166=\"\"),\"-\",IF('Enrollment Form'!BI166=\"\",\"N\",\"Y\"))","v":"-"},{"$f":"IF('Enrollment Form'!B166<>\"Subscriber\",\"-\",IF(AND('Enrollment Form'!B166=\"Subscriber\",'Enrollment Form'!G166=\"\"),\"N\",\"Y\"))","v":"-"},{"$f":"IF('Enrollment Form'!A166=\"\",\"\",IF('Enrollment Form'!B166=\"Subscriber\",\"-\",IF(AND('Enrollment Form'!B166<>\"Subscriber\",'Enrollment Form'!G166='Enrollment Form'!H166),\"N\",\"Y\")))","v":""},0]
[167,{"$f":"IF('Enrollment Form'!$A167<>\"\",\"Y\",\"N\")","v":"N"},{"$f":"IF(AND('Enrollment Form'!$B167=\"\",'Enrollment Form'!$C167<>\"\"),\"N\",IF($B160=\"N\",\"\",\"Y\"))","v":""},{"$f":"IF(OR($B160=\"N\",'Enrollment Form'!G167=\"\"),\"\",IF('Enrollment Form'!$B167<>\"Subscriber\",\"\",IF('Enrollment Form'!$G167='Enrollment Form'!$H167,\"Y\",\"N\")))","v":""},{"$f":"IF($B160=\"N\",\"\",IF(AND(COUNTIFS('Enrollment Form'!$H$11:$H$1000,'Enrollment Form'!$H167,'Enrollment Form'!$B$11:$B$1000,'Enrollment Form'!$B167)>1,'Enrollment Form'!$H167<>\"\"),\"N\",\"Y\"))","v":""},{"$f":"IF($B160=\"N\",\"\",IF(LEN('Enrollment Form'!$Y167)=0,\"\",IF(LEN('Enrollment Form'!$Y167)<>5,\"N\",\"Y\")))","v":""},{"$f":"IF($B160=\"N\",\"\",IF(LEN('Enrollment Form'!$AD167=0),\"\",IF(LEN('Enrollment Form'!$AD167)<>5,\"N\",\"Y\")))","v":""},{"$f":"IF($B160=\"N\",\"\",IF(LEN('Enrollment Form'!$BL167=0),\"\",IF(LEN('Enrollment Form'!$BL167)<>5,\"N\",\"Y\")))","v":""},{"$f":"IF($B160=\"N\",\"\",IF(LEN('Enrollment Form'!$AE167)=0,\"\",IF(LEN('Enrollment Form'!$AE167)<>10,\"N\",\"Y\")))","v":""},{"$f":"IF($B160=\"N\",\"\",IF(LEN('Enrollment Form'!$AF167)=0,\"\",IF(LEN('Enrollment Form'!$AF167)<>10,\"N\",\"Y\")))","v":""},{"$f":"IF('Enrollment Form'!$O167<>\"Graded\",\"-\",IF(AND('Enrollment Form'!$O167=\"Graded\",'Enrollment Form'!$AO167<>\"\"),\"Y\",\"N\"))","v":"-"},{"$f":"IF($B160=\"N\",\"\",IF(OR('Enrollment Form'!$B167<>\"Subscriber\",'Enrollment Form'!$C167=\"ROC\"),\"-\",IF(AND('Enrollment Form'!$B167=\"Subscriber\",'Enrollment Form'!$C167=\"Enroll\",'Enrollment Form'!$AJ167<>\"\"),\"Y\",\"N\")))","v":""},{"$f":"IF($B160=\"N\",\"\",IF(OR('Enrollment Form'!$B167<>\"Subscriber\",'Enrollment Form'!$C167=\"ROC\"),\"-\",IF(AND('Enrollment Form'!$B167=\"Subscriber\",'Enrollment Form'!$C167=\"Enroll\",'Enrollment Form'!$AK167<>\"\"),\"Y\",\"N\")))","v":""},{"$f":"IF($B160=\"N\",\"\",IF(OR('Enrollment Form'!$B167<>\"Subscriber\",'Enrollment Form'!$C167=\"ROC\"),\"-\",IF(AND('Enrollment Form'!$B167=\"Subscriber\",'Enrollment Form'!$C167=\"Enroll\",'Enrollment Form'!$AL167<>\"\"),\"Y\",\"N\")))","v":""},{"$f":"IF($B160=\"N\",\"\",IF(OR('Enrollment Form'!$B167<>\"Subscriber\",'Enrollment Form'!$C167=\"ROC\"),\"-\",IF(AND('Enrollment Form'!$B167=\"Subscriber\",'Enrollment Form'!$C167=\"Enroll\",'Enrollment Form'!$AM167<>\"\"),\"Y\",\"N\")))","v":""},{"$f":"IF($B160=\"N\",\"\",IF(OR('Enrollment Form'!$B167<>\"Subscriber\",'Enrollment Form'!$C167=\"ROC\"),\"-\",IF(AND('Enrollment Form'!$B167=\"Subscriber\",'Enrollment Form'!$C167=\"Enroll\",'Enrollment Form'!$AN167<>\"\"),\"Y\",\"N\")))","v":""},{"$f":"IF($B160=\"N\",\"\",IF(OR('Enrollment Form'!$B167<>\"Subscriber\",'Enrollment Form'!$C167=\"ROC\"),\"-\",IF(AND('Enrollment Form'!$B167=\"Subscriber\",'Enrollment Form'!$C167=\"Enroll\",'Enrollment Form'!$AP167<>\"\"),\"Y\",\"N\")))","v":""},{"$f":"IF($B160=\"N\",\"\",IF($Q160=\"-\",\"-\",IF(AND($Q160=\"Y\",'Enrollment Form'!$AP167=\"No\"),\"-\",IF(AND($Q160=\"Y\",'Enrollment Form'!$AP167=\"Yes\",'Enrollment Form'!$AQ167<>\"\"),\"Y\",\"N\"))))","v":""},{"$f":"IF($B160=\"N\",\"\",IF(OR('Enrollment Form'!$B167<>\"Subscriber\",'Enrollment Form'!$C167=\"ROC\"),\"-\",IF(AND('Enrollment Form'!$B167=\"Subscriber\",'Enrollment Form'!$C167=\"Enroll\",'Enrollment Form'!$CO167<>\"\"),\"Y\",\"N\")))","v":""},{"$f":"IF($B160=\"N\",\"\",IF($S160=\"-\",\"-\",IF(AND($S160=\"Y\",'Enrollment Form'!$CO167=\"No\"),\"-\",IF(AND($S160=\"Y\",'Enrollment Form'!$CO167=\"Yes\",'Enrollment Form'!$CP167<>\"\"),\"Y\",\"N\"))))","v":""},{"$f":"IF(OR('Enrollment Form'!$AV167=\"Yes\",'Enrollment Form'!$AV167=\"\"),\"-\",IF(AND('Enrollment Form'!$AV167=\"No\",ISERROR(FIND(\"HMO\",VLOOKUP('Enrollment Form'!G167,'Enrollment Form'!H$11:J$1000,3,FALSE),1))=FALSE,COUNTA('Enrollment Form'!$AW167:$AZ167)=4),\"Y\",\"N\"))","v":"-"},{"$f":"IF($B160=\"N\",\"\",IF('Enrollment Form'!$B167=\"Subscriber\",\"-\",IF(COUNTA('Enrollment Form'!$BE167,'Enrollment Form'!$BG167)=2,\"Y\",\"N\")))","v":""},{"$f":"IF($B160=\"N\",\"\",IF(OR('Enrollment Form'!$AU167=\"\",'Enrollment Form'!$AU167=\"No\"),\"-\",IF(AND('Enrollment Form'!$AU167=\"Yes\",COUNTA('Enrollment Form'!$CK167)=1),\"Y\",\"N\")))","v":""},{"$f":"IF(OR('Enrollment Form'!$CK167=\"\",'Enrollment Form'!$CK167=\"No\"),\"-\",IF(COUNTA('Enrollment Form'!$CM167:$CN167)=2,\"Y\",\"N\"))","v":"-"},{"$f":"IF($B160=\"N\",\"\",IF(COUNTIF('Enrollment Form'!$CZ167:$DO167,\"Other\")=COUNTA('Enrollment Form'!$DF167,'Enrollment Form'!$DA167,'Enrollment Form'!$DK167,'Enrollment Form'!$DP167),\"Y\",\"N\"))","v":""},{"$f":"IF($B160=\"N\",\"\",IF(OR('Enrollment Form'!B167<>\"Subscriber\",'Enrollment Form'!C167=\"ROC\",COUNTIF('Enrollment Form'!AS167:AT167,\"Yes\")>=1),\"-\",IF(AND('Enrollment Form'!C167=\"Enroll\",COUNTIF('Enrollment Form'!AS167:AT167,\"No\")=2,'Enrollment Form'!AU167=\"\"),\"N\",\"Y\")))","v":""},{"$f":"IF(OR(B160=\"N\",'Enrollment Form'!B167<>\"Subscriber\",'Enrollment Form'!C167=\"ROC\",'Enrollment Form'!O167<>\"Multiple of Salary\"),\"-\",IF(COUNTA('Enrollment Form'!T167:U167)<2,\"N\",\"Y\"))","v":"-"},{"$f":"IF(B160=\"N\",\"\",IF(OR('Enrollment Form'!C167=\"ROC\",'Enrollment Form'!B167<>\"Subscriber\",'Enrollment Form'!O167=\"Waive\",'Enrollment Form'!O167=\"\"),\"-\",IF('Enrollment Form'!P167=\"\",\"N\",\"Y\")))","v":""},{"$f":"IF($B160=\"N\",\"\",IF(AND('Enrollment Form'!$C167=\"ROC\",'Enrollment Form'!$DS167<>\"\"),\"Y\",IF(AND('Enrollment Form'!$C167=\"ROC\",'Enrollment Form'!$DS167=\"\"),\"N\",IF(AND('Enrollment Form'!$C167=\"Enroll\",'Enrollment Form'!$B167=\"Subscriber\",'Enrollment Form'!$CQ167=\"No\",'Enrollment Form'!$DS167=\"\"),\"N\",IF(AND('Enrollment Form'!$C167=\"Enroll\",'Enrollment Form'!$B167=\"Subscriber\",'Enrollment Form'!$CQ167=\"Yes\"),\"-\",\"Y\")))))","v":""},{"$f":"IF($B160=\"N\",\"\",IF(AND('Enrollment Form'!$C167=\"ROC\",'Enrollment Form'!$DT167<>\"\"),\"Y\",IF(AND('Enrollment Form'!$C167=\"ROC\",'Enrollment Form'!$DT167=\"\"),\"N\",IF(AND('Enrollment Form'!$C167=\"Enroll\",'Enrollment Form'!$B167=\"Subscriber\",'Enrollment Form'!$CQ167=\"No\",'Enrollment Form'!$DT167=\"\"),\"N\",IF(AND('Enrollment Form'!$C167=\"Enroll\",'Enrollment Form'!$B167=\"Subscriber\",'Enrollment Form'!$CQ167=\"Yes\"),\"-\",\"Y\")))))","v":""},{"$f":"IF('Enrollment Form'!AH167=\"\",\"\",IF(ISERROR(SEARCH(\".\",'Enrollment Form'!AH167,SEARCH(\"@\",'Enrollment Form'!AH167))),\"N\",\"Y\"))","v":""},{"$f":"IF(OR($B160=\"N\",'Enrollment Form'!$G167=\"\"),\"\",IF('Enrollment Form'!$B167<>\"Subscriber\",\"-\",IF(COUNTIF('Enrollment Form'!$AS167:$AT167,\"Yes\")=2,\"N\",\"Y\")))","v":""},{"$f":"IF(OR('Enrollment Form'!$CC167=\"\",'Enrollment Form'!$CC167=\"No\"),\"-\",IF(AND('Enrollment Form'!$CC167=\"Yes\",'Enrollment Form'!$CD167=\"\"),\"N\",\"Y\"))","v":"-"},{"$f":"IF(OR('Enrollment Form'!$CE167=\"\",'Enrollment Form'!$CE167=\"No\"),\"-\",IF(AND('Enrollment Form'!$CE167=\"Yes\",'Enrollment Form'!$CF167=\"\"),\"N\",\"Y\"))","v":"-"},{"$f":"IF(OR('Enrollment Form'!$CG167=\"\",'Enrollment Form'!$CG167=\"No\"),\"-\",IF(AND('Enrollment Form'!$CG167=\"Yes\",'Enrollment Form'!$CH167=\"\"),\"N\",\"Y\"))","v":"-"},{"$f":"IF(OR('Enrollment Form'!$CG167=\"\",'Enrollment Form'!$CG167=\"No\"),\"-\",IF(AND('Enrollment Form'!$CG167=\"Yes\",'Enrollment Form'!$CI167=\"\"),\"N\",\"Y\"))","v":"-"},{"$f":"IF('Enrollment Form'!B167<>\"Subscriber\",\"-\",IF(AND('Enrollment Form'!B167=\"Subscriber\",'Enrollment Form'!C167=\"Enroll\",'Enrollment Form'!AA167=\"\"),\"N\",\"Y\"))","v":"-"},{"$f":"IF(OR('Enrollment Form'!B167=\"Subscriber\",'Enrollment Form'!B167=\"\"),\"-\",IF('Enrollment Form'!BI167=\"\",\"N\",\"Y\"))","v":"-"},{"$f":"IF('Enrollment Form'!B167<>\"Subscriber\",\"-\",IF(AND('Enrollment Form'!B167=\"Subscriber\",'Enrollment Form'!G167=\"\"),\"N\",\"Y\"))","v":"-"},{"$f":"IF('Enrollment Form'!A167=\"\",\"\",IF('Enrollment Form'!B167=\"Subscriber\",\"-\",IF(AND('Enrollment Form'!B167<>\"Subscriber\",'Enrollment Form'!G167='Enrollment Form'!H167),\"N\",\"Y\")))","v":""},0]
[168,{"$f":"IF('Enrollment Form'!$A168<>\"\",\"Y\",\"N\")","v":"N"},{"$f":"IF(AND('Enrollment Form'!$B168=\"\",'Enrollment Form'!$C168<>\"\"),\"N\",IF($B161=\"N\",\"\",\"Y\"))","v":""},{"$f":"IF(OR($B161=\"N\",'Enrollment Form'!G168=\"\"),\"\",IF('Enrollment Form'!$B168<>\"Subscriber\",\"\",IF('Enrollment Form'!$G168='Enrollment Form'!$H168,\"Y\",\"N\")))","v":""},{"$f":"IF($B161=\"N\",\"\",IF(AND(COUNTIFS('Enrollment Form'!$H$11:$H$1000,'Enrollment Form'!$H168,'Enrollment Form'!$B$11:$B$1000,'Enrollment Form'!$B168)>1,'Enrollment Form'!$H168<>\"\"),\"N\",\"Y\"))","v":""},{"$f":"IF($B161=\"N\",\"\",IF(LEN('Enrollment Form'!$Y168)=0,\"\",IF(LEN('Enrollment Form'!$Y168)<>5,\"N\",\"Y\")))","v":""},{"$f":"IF($B161=\"N\",\"\",IF(LEN('Enrollment Form'!$AD168=0),\"\",IF(LEN('Enrollment Form'!$AD168)<>5,\"N\",\"Y\")))","v":""},{"$f":"IF($B161=\"N\",\"\",IF(LEN('Enrollment Form'!$BL168=0),\"\",IF(LEN('Enrollment Form'!$BL168)<>5,\"N\",\"Y\")))","v":""},{"$f":"IF($B161=\"N\",\"\",IF(LEN('Enrollment Form'!$AE168)=0,\"\",IF(LEN('Enrollment Form'!$AE168)<>10,\"N\",\"Y\")))","v":""},{"$f":"IF($B161=\"N\",\"\",IF(LEN('Enrollment Form'!$AF168)=0,\"\",IF(LEN('Enrollment Form'!$AF168)<>10,\"N\",\"Y\")))","v":""},{"$f":"IF('Enrollment Form'!$O168<>\"Graded\",\"-\",IF(AND('Enrollment Form'!$O168=\"Graded\",'Enrollment Form'!$AO168<>\"\"),\"Y\",\"N\"))","v":"-"},{"$f":"IF($B161=\"N\",\"\",IF(OR('Enrollment Form'!$B168<>\"Subscriber\",'Enrollment Form'!$C168=\"ROC\"),\"-\",IF(AND('Enrollment Form'!$B168=\"Subscriber\",'Enrollment Form'!$C168=\"Enroll\",'Enrollment Form'!$AJ168<>\"\"),\"Y\",\"N\")))","v":""},{"$f":"IF($B161=\"N\",\"\",IF(OR('Enrollment Form'!$B168<>\"Subscriber\",'Enrollment Form'!$C168=\"ROC\"),\"-\",IF(AND('Enrollment Form'!$B168=\"Subscriber\",'Enrollment Form'!$C168=\"Enroll\",'Enrollment Form'!$AK168<>\"\"),\"Y\",\"N\")))","v":""},{"$f":"IF($B161=\"N\",\"\",IF(OR('Enrollment Form'!$B168<>\"Subscriber\",'Enrollment Form'!$C168=\"ROC\"),\"-\",IF(AND('Enrollment Form'!$B168=\"Subscriber\",'Enrollment Form'!$C168=\"Enroll\",'Enrollment Form'!$AL168<>\"\"),\"Y\",\"N\")))","v":""},{"$f":"IF($B161=\"N\",\"\",IF(OR('Enrollment Form'!$B168<>\"Subscriber\",'Enrollment Form'!$C168=\"ROC\"),\"-\",IF(AND('Enrollment Form'!$B168=\"Subscriber\",'Enrollment Form'!$C168=\"Enroll\",'Enrollment Form'!$AM168<>\"\"),\"Y\",\"N\")))","v":""},{"$f":"IF($B161=\"N\",\"\",IF(OR('Enrollment Form'!$B168<>\"Subscriber\",'Enrollment Form'!$C168=\"ROC\"),\"-\",IF(AND('Enrollment Form'!$B168=\"Subscriber\",'Enrollment Form'!$C168=\"Enroll\",'Enrollment Form'!$AN168<>\"\"),\"Y\",\"N\")))","v":""},{"$f":"IF($B161=\"N\",\"\",IF(OR('Enrollment Form'!$B168<>\"Subscriber\",'Enrollment Form'!$C168=\"ROC\"),\"-\",IF(AND('Enrollment Form'!$B168=\"Subscriber\",'Enrollment Form'!$C168=\"Enroll\",'Enrollment Form'!$AP168<>\"\"),\"Y\",\"N\")))","v":""},{"$f":"IF($B161=\"N\",\"\",IF($Q161=\"-\",\"-\",IF(AND($Q161=\"Y\",'Enrollment Form'!$AP168=\"No\"),\"-\",IF(AND($Q161=\"Y\",'Enrollment Form'!$AP168=\"Yes\",'Enrollment Form'!$AQ168<>\"\"),\"Y\",\"N\"))))","v":""},{"$f":"IF($B161=\"N\",\"\",IF(OR('Enrollment Form'!$B168<>\"Subscriber\",'Enrollment Form'!$C168=\"ROC\"),\"-\",IF(AND('Enrollment Form'!$B168=\"Subscriber\",'Enrollment Form'!$C168=\"Enroll\",'Enrollment Form'!$CO168<>\"\"),\"Y\",\"N\")))","v":""},{"$f":"IF($B161=\"N\",\"\",IF($S161=\"-\",\"-\",IF(AND($S161=\"Y\",'Enrollment Form'!$CO168=\"No\"),\"-\",IF(AND($S161=\"Y\",'Enrollment Form'!$CO168=\"Yes\",'Enrollment Form'!$CP168<>\"\"),\"Y\",\"N\"))))","v":""},{"$f":"IF(OR('Enrollment Form'!$AV168=\"Yes\",'Enrollment Form'!$AV168=\"\"),\"-\",IF(AND('Enrollment Form'!$AV168=\"No\",ISERROR(FIND(\"HMO\",VLOOKUP('Enrollment Form'!G168,'Enrollment Form'!H$11:J$1000,3,FALSE),1))=FALSE,COUNTA('Enrollment Form'!$AW168:$AZ168)=4),\"Y\",\"N\"))","v":"-"},{"$f":"IF($B161=\"N\",\"\",IF('Enrollment Form'!$B168=\"Subscriber\",\"-\",IF(COUNTA('Enrollment Form'!$BE168,'Enrollment Form'!$BG168)=2,\"Y\",\"N\")))","v":""},{"$f":"IF($B161=\"N\",\"\",IF(OR('Enrollment Form'!$AU168=\"\",'Enrollment Form'!$AU168=\"No\"),\"-\",IF(AND('Enrollment Form'!$AU168=\"Yes\",COUNTA('Enrollment Form'!$CK168)=1),\"Y\",\"N\")))","v":""},{"$f":"IF(OR('Enrollment Form'!$CK168=\"\",'Enrollment Form'!$CK168=\"No\"),\"-\",IF(COUNTA('Enrollment Form'!$CM168:$CN168)=2,\"Y\",\"N\"))","v":"-"},{"$f":"IF($B161=\"N\",\"\",IF(COUNTIF('Enrollment Form'!$CZ168:$DO168,\"Other\")=COUNTA('Enrollment Form'!$DF168,'Enrollment Form'!$DA168,'Enrollment Form'!$DK168,'Enrollment Form'!$DP168),\"Y\",\"N\"))","v":""},{"$f":"IF($B161=\"N\",\"\",IF(OR('Enrollment Form'!B168<>\"Subscriber\",'Enrollment Form'!C168=\"ROC\",COUNTIF('Enrollment Form'!AS168:AT168,\"Yes\")>=1),\"-\",IF(AND('Enrollment Form'!C168=\"Enroll\",COUNTIF('Enrollment Form'!AS168:AT168,\"No\")=2,'Enrollment Form'!AU168=\"\"),\"N\",\"Y\")))","v":""},{"$f":"IF(OR(B161=\"N\",'Enrollment Form'!B168<>\"Subscriber\",'Enrollment Form'!C168=\"ROC\",'Enrollment Form'!O168<>\"Multiple of Salary\"),\"-\",IF(COUNTA('Enrollment Form'!T168:U168)<2,\"N\",\"Y\"))","v":"-"},{"$f":"IF(B161=\"N\",\"\",IF(OR('Enrollment Form'!C168=\"ROC\",'Enrollment Form'!B168<>\"Subscriber\",'Enrollment Form'!O168=\"Waive\",'Enrollment Form'!O168=\"\"),\"-\",IF('Enrollment Form'!P168=\"\",\"N\",\"Y\")))","v":""},{"$f":"IF($B161=\"N\",\"\",IF(AND('Enrollment Form'!$C168=\"ROC\",'Enrollment Form'!$DS168<>\"\"),\"Y\",IF(AND('Enrollment Form'!$C168=\"ROC\",'Enrollment Form'!$DS168=\"\"),\"N\",IF(AND('Enrollment Form'!$C168=\"Enroll\",'Enrollment Form'!$B168=\"Subscriber\",'Enrollment Form'!$CQ168=\"No\",'Enrollment Form'!$DS168=\"\"),\"N\",IF(AND('Enrollment Form'!$C168=\"Enroll\",'Enrollment Form'!$B168=\"Subscriber\",'Enrollment Form'!$CQ168=\"Yes\"),\"-\",\"Y\")))))","v":""},{"$f":"IF($B161=\"N\",\"\",IF(AND('Enrollment Form'!$C168=\"ROC\",'Enrollment Form'!$DT168<>\"\"),\"Y\",IF(AND('Enrollment Form'!$C168=\"ROC\",'Enrollment Form'!$DT168=\"\"),\"N\",IF(AND('Enrollment Form'!$C168=\"Enroll\",'Enrollment Form'!$B168=\"Subscriber\",'Enrollment Form'!$CQ168=\"No\",'Enrollment Form'!$DT168=\"\"),\"N\",IF(AND('Enrollment Form'!$C168=\"Enroll\",'Enrollment Form'!$B168=\"Subscriber\",'Enrollment Form'!$CQ168=\"Yes\"),\"-\",\"Y\")))))","v":""},{"$f":"IF('Enrollment Form'!AH168=\"\",\"\",IF(ISERROR(SEARCH(\".\",'Enrollment Form'!AH168,SEARCH(\"@\",'Enrollment Form'!AH168))),\"N\",\"Y\"))","v":""},{"$f":"IF(OR($B161=\"N\",'Enrollment Form'!$G168=\"\"),\"\",IF('Enrollment Form'!$B168<>\"Subscriber\",\"-\",IF(COUNTIF('Enrollment Form'!$AS168:$AT168,\"Yes\")=2,\"N\",\"Y\")))","v":""},{"$f":"IF(OR('Enrollment Form'!$CC168=\"\",'Enrollment Form'!$CC168=\"No\"),\"-\",IF(AND('Enrollment Form'!$CC168=\"Yes\",'Enrollment Form'!$CD168=\"\"),\"N\",\"Y\"))","v":"-"},{"$f":"IF(OR('Enrollment Form'!$CE168=\"\",'Enrollment Form'!$CE168=\"No\"),\"-\",IF(AND('Enrollment Form'!$CE168=\"Yes\",'Enrollment Form'!$CF168=\"\"),\"N\",\"Y\"))","v":"-"},{"$f":"IF(OR('Enrollment Form'!$CG168=\"\",'Enrollment Form'!$CG168=\"No\"),\"-\",IF(AND('Enrollment Form'!$CG168=\"Yes\",'Enrollment Form'!$CH168=\"\"),\"N\",\"Y\"))","v":"-"},{"$f":"IF(OR('Enrollment Form'!$CG168=\"\",'Enrollment Form'!$CG168=\"No\"),\"-\",IF(AND('Enrollment Form'!$CG168=\"Yes\",'Enrollment Form'!$CI168=\"\"),\"N\",\"Y\"))","v":"-"},{"$f":"IF('Enrollment Form'!B168<>\"Subscriber\",\"-\",IF(AND('Enrollment Form'!B168=\"Subscriber\",'Enrollment Form'!C168=\"Enroll\",'Enrollment Form'!AA168=\"\"),\"N\",\"Y\"))","v":"-"},{"$f":"IF(OR('Enrollment Form'!B168=\"Subscriber\",'Enrollment Form'!B168=\"\"),\"-\",IF('Enrollment Form'!BI168=\"\",\"N\",\"Y\"))","v":"-"},{"$f":"IF('Enrollment Form'!B168<>\"Subscriber\",\"-\",IF(AND('Enrollment Form'!B168=\"Subscriber\",'Enrollment Form'!G168=\"\"),\"N\",\"Y\"))","v":"-"},{"$f":"IF('Enrollment Form'!A168=\"\",\"\",IF('Enrollment Form'!B168=\"Subscriber\",\"-\",IF(AND('Enrollment Form'!B168<>\"Subscriber\",'Enrollment Form'!G168='Enrollment Form'!H168),\"N\",\"Y\")))","v":""},0]
[169,{"$f":"IF('Enrollment Form'!$A169<>\"\",\"Y\",\"N\")","v":"N"},{"$f":"IF(AND('Enrollment Form'!$B169=\"\",'Enrollment Form'!$C169<>\"\"),\"N\",IF($B162=\"N\",\"\",\"Y\"))","v":""},{"$f":"IF(OR($B162=\"N\",'Enrollment Form'!G169=\"\"),\"\",IF('Enrollment Form'!$B169<>\"Subscriber\",\"\",IF('Enrollment Form'!$G169='Enrollment Form'!$H169,\"Y\",\"N\")))","v":""},{"$f":"IF($B162=\"N\",\"\",IF(AND(COUNTIFS('Enrollment Form'!$H$11:$H$1000,'Enrollment Form'!$H169,'Enrollment Form'!$B$11:$B$1000,'Enrollment Form'!$B169)>1,'Enrollment Form'!$H169<>\"\"),\"N\",\"Y\"))","v":""},{"$f":"IF($B162=\"N\",\"\",IF(LEN('Enrollment Form'!$Y169)=0,\"\",IF(LEN('Enrollment Form'!$Y169)<>5,\"N\",\"Y\")))","v":""},{"$f":"IF($B162=\"N\",\"\",IF(LEN('Enrollment Form'!$AD169=0),\"\",IF(LEN('Enrollment Form'!$AD169)<>5,\"N\",\"Y\")))","v":""},{"$f":"IF($B162=\"N\",\"\",IF(LEN('Enrollment Form'!$BL169=0),\"\",IF(LEN('Enrollment Form'!$BL169)<>5,\"N\",\"Y\")))","v":""},{"$f":"IF($B162=\"N\",\"\",IF(LEN('Enrollment Form'!$AE169)=0,\"\",IF(LEN('Enrollment Form'!$AE169)<>10,\"N\",\"Y\")))","v":""},{"$f":"IF($B162=\"N\",\"\",IF(LEN('Enrollment Form'!$AF169)=0,\"\",IF(LEN('Enrollment Form'!$AF169)<>10,\"N\",\"Y\")))","v":""},{"$f":"IF('Enrollment Form'!$O169<>\"Graded\",\"-\",IF(AND('Enrollment Form'!$O169=\"Graded\",'Enrollment Form'!$AO169<>\"\"),\"Y\",\"N\"))","v":"-"},{"$f":"IF($B162=\"N\",\"\",IF(OR('Enrollment Form'!$B169<>\"Subscriber\",'Enrollment Form'!$C169=\"ROC\"),\"-\",IF(AND('Enrollment Form'!$B169=\"Subscriber\",'Enrollment Form'!$C169=\"Enroll\",'Enrollment Form'!$AJ169<>\"\"),\"Y\",\"N\")))","v":""},{"$f":"IF($B162=\"N\",\"\",IF(OR('Enrollment Form'!$B169<>\"Subscriber\",'Enrollment Form'!$C169=\"ROC\"),\"-\",IF(AND('Enrollment Form'!$B169=\"Subscriber\",'Enrollment Form'!$C169=\"Enroll\",'Enrollment Form'!$AK169<>\"\"),\"Y\",\"N\")))","v":""},{"$f":"IF($B162=\"N\",\"\",IF(OR('Enrollment Form'!$B169<>\"Subscriber\",'Enrollment Form'!$C169=\"ROC\"),\"-\",IF(AND('Enrollment Form'!$B169=\"Subscriber\",'Enrollment Form'!$C169=\"Enroll\",'Enrollment Form'!$AL169<>\"\"),\"Y\",\"N\")))","v":""},{"$f":"IF($B162=\"N\",\"\",IF(OR('Enrollment Form'!$B169<>\"Subscriber\",'Enrollment Form'!$C169=\"ROC\"),\"-\",IF(AND('Enrollment Form'!$B169=\"Subscriber\",'Enrollment Form'!$C169=\"Enroll\",'Enrollment Form'!$AM169<>\"\"),\"Y\",\"N\")))","v":""},{"$f":"IF($B162=\"N\",\"\",IF(OR('Enrollment Form'!$B169<>\"Subscriber\",'Enrollment Form'!$C169=\"ROC\"),\"-\",IF(AND('Enrollment Form'!$B169=\"Subscriber\",'Enrollment Form'!$C169=\"Enroll\",'Enrollment Form'!$AN169<>\"\"),\"Y\",\"N\")))","v":""},{"$f":"IF($B162=\"N\",\"\",IF(OR('Enrollment Form'!$B169<>\"Subscriber\",'Enrollment Form'!$C169=\"ROC\"),\"-\",IF(AND('Enrollment Form'!$B169=\"Subscriber\",'Enrollment Form'!$C169=\"Enroll\",'Enrollment Form'!$AP169<>\"\"),\"Y\",\"N\")))","v":""},{"$f":"IF($B162=\"N\",\"\",IF($Q162=\"-\",\"-\",IF(AND($Q162=\"Y\",'Enrollment Form'!$AP169=\"No\"),\"-\",IF(AND($Q162=\"Y\",'Enrollment Form'!$AP169=\"Yes\",'Enrollment Form'!$AQ169<>\"\"),\"Y\",\"N\"))))","v":""},{"$f":"IF($B162=\"N\",\"\",IF(OR('Enrollment Form'!$B169<>\"Subscriber\",'Enrollment Form'!$C169=\"ROC\"),\"-\",IF(AND('Enrollment Form'!$B169=\"Subscriber\",'Enrollment Form'!$C169=\"Enroll\",'Enrollment Form'!$CO169<>\"\"),\"Y\",\"N\")))","v":""},{"$f":"IF($B162=\"N\",\"\",IF($S162=\"-\",\"-\",IF(AND($S162=\"Y\",'Enrollment Form'!$CO169=\"No\"),\"-\",IF(AND($S162=\"Y\",'Enrollment Form'!$CO169=\"Yes\",'Enrollment Form'!$CP169<>\"\"),\"Y\",\"N\"))))","v":""},{"$f":"IF(OR('Enrollment Form'!$AV169=\"Yes\",'Enrollment Form'!$AV169=\"\"),\"-\",IF(AND('Enrollment Form'!$AV169=\"No\",ISERROR(FIND(\"HMO\",VLOOKUP('Enrollment Form'!G169,'Enrollment Form'!H$11:J$1000,3,FALSE),1))=FALSE,COUNTA('Enrollment Form'!$AW169:$AZ169)=4),\"Y\",\"N\"))","v":"-"},{"$f":"IF($B162=\"N\",\"\",IF('Enrollment Form'!$B169=\"Subscriber\",\"-\",IF(COUNTA('Enrollment Form'!$BE169,'Enrollment Form'!$BG169)=2,\"Y\",\"N\")))","v":""},{"$f":"IF($B162=\"N\",\"\",IF(OR('Enrollment Form'!$AU169=\"\",'Enrollment Form'!$AU169=\"No\"),\"-\",IF(AND('Enrollment Form'!$AU169=\"Yes\",COUNTA('Enrollment Form'!$CK169)=1),\"Y\",\"N\")))","v":""},{"$f":"IF(OR('Enrollment Form'!$CK169=\"\",'Enrollment Form'!$CK169=\"No\"),\"-\",IF(COUNTA('Enrollment Form'!$CM169:$CN169)=2,\"Y\",\"N\"))","v":"-"},{"$f":"IF($B162=\"N\",\"\",IF(COUNTIF('Enrollment Form'!$CZ169:$DO169,\"Other\")=COUNTA('Enrollment Form'!$DF169,'Enrollment Form'!$DA169,'Enrollment Form'!$DK169,'Enrollment Form'!$DP169),\"Y\",\"N\"))","v":""},{"$f":"IF($B162=\"N\",\"\",IF(OR('Enrollment Form'!B169<>\"Subscriber\",'Enrollment Form'!C169=\"ROC\",COUNTIF('Enrollment Form'!AS169:AT169,\"Yes\")>=1),\"-\",IF(AND('Enrollment Form'!C169=\"Enroll\",COUNTIF('Enrollment Form'!AS169:AT169,\"No\")=2,'Enrollment Form'!AU169=\"\"),\"N\",\"Y\")))","v":""},{"$f":"IF(OR(B162=\"N\",'Enrollment Form'!B169<>\"Subscriber\",'Enrollment Form'!C169=\"ROC\",'Enrollment Form'!O169<>\"Multiple of Salary\"),\"-\",IF(COUNTA('Enrollment Form'!T169:U169)<2,\"N\",\"Y\"))","v":"-"},{"$f":"IF(B162=\"N\",\"\",IF(OR('Enrollment Form'!C169=\"ROC\",'Enrollment Form'!B169<>\"Subscriber\",'Enrollment Form'!O169=\"Waive\",'Enrollment Form'!O169=\"\"),\"-\",IF('Enrollment Form'!P169=\"\",\"N\",\"Y\")))","v":""},{"$f":"IF($B162=\"N\",\"\",IF(AND('Enrollment Form'!$C169=\"ROC\",'Enrollment Form'!$DS169<>\"\"),\"Y\",IF(AND('Enrollment Form'!$C169=\"ROC\",'Enrollment Form'!$DS169=\"\"),\"N\",IF(AND('Enrollment Form'!$C169=\"Enroll\",'Enrollment Form'!$B169=\"Subscriber\",'Enrollment Form'!$CQ169=\"No\",'Enrollment Form'!$DS169=\"\"),\"N\",IF(AND('Enrollment Form'!$C169=\"Enroll\",'Enrollment Form'!$B169=\"Subscriber\",'Enrollment Form'!$CQ169=\"Yes\"),\"-\",\"Y\")))))","v":""},{"$f":"IF($B162=\"N\",\"\",IF(AND('Enrollment Form'!$C169=\"ROC\",'Enrollment Form'!$DT169<>\"\"),\"Y\",IF(AND('Enrollment Form'!$C169=\"ROC\",'Enrollment Form'!$DT169=\"\"),\"N\",IF(AND('Enrollment Form'!$C169=\"Enroll\",'Enrollment Form'!$B169=\"Subscriber\",'Enrollment Form'!$CQ169=\"No\",'Enrollment Form'!$DT169=\"\"),\"N\",IF(AND('Enrollment Form'!$C169=\"Enroll\",'Enrollment Form'!$B169=\"Subscriber\",'Enrollment Form'!$CQ169=\"Yes\"),\"-\",\"Y\")))))","v":""},{"$f":"IF('Enrollment Form'!AH169=\"\",\"\",IF(ISERROR(SEARCH(\".\",'Enrollment Form'!AH169,SEARCH(\"@\",'Enrollment Form'!AH169))),\"N\",\"Y\"))","v":""},{"$f":"IF(OR($B162=\"N\",'Enrollment Form'!$G169=\"\"),\"\",IF('Enrollment Form'!$B169<>\"Subscriber\",\"-\",IF(COUNTIF('Enrollment Form'!$AS169:$AT169,\"Yes\")=2,\"N\",\"Y\")))","v":""},{"$f":"IF(OR('Enrollment Form'!$CC169=\"\",'Enrollment Form'!$CC169=\"No\"),\"-\",IF(AND('Enrollment Form'!$CC169=\"Yes\",'Enrollment Form'!$CD169=\"\"),\"N\",\"Y\"))","v":"-"},{"$f":"IF(OR('Enrollment Form'!$CE169=\"\",'Enrollment Form'!$CE169=\"No\"),\"-\",IF(AND('Enrollment Form'!$CE169=\"Yes\",'Enrollment Form'!$CF169=\"\"),\"N\",\"Y\"))","v":"-"},{"$f":"IF(OR('Enrollment Form'!$CG169=\"\",'Enrollment Form'!$CG169=\"No\"),\"-\",IF(AND('Enrollment Form'!$CG169=\"Yes\",'Enrollment Form'!$CH169=\"\"),\"N\",\"Y\"))","v":"-"},{"$f":"IF(OR('Enrollment Form'!$CG169=\"\",'Enrollment Form'!$CG169=\"No\"),\"-\",IF(AND('Enrollment Form'!$CG169=\"Yes\",'Enrollment Form'!$CI169=\"\"),\"N\",\"Y\"))","v":"-"},{"$f":"IF('Enrollment Form'!B169<>\"Subscriber\",\"-\",IF(AND('Enrollment Form'!B169=\"Subscriber\",'Enrollment Form'!C169=\"Enroll\",'Enrollment Form'!AA169=\"\"),\"N\",\"Y\"))","v":"-"},{"$f":"IF(OR('Enrollment Form'!B169=\"Subscriber\",'Enrollment Form'!B169=\"\"),\"-\",IF('Enrollment Form'!BI169=\"\",\"N\",\"Y\"))","v":"-"},{"$f":"IF('Enrollment Form'!B169<>\"Subscriber\",\"-\",IF(AND('Enrollment Form'!B169=\"Subscriber\",'Enrollment Form'!G169=\"\"),\"N\",\"Y\"))","v":"-"},{"$f":"IF('Enrollment Form'!A169=\"\",\"\",IF('Enrollment Form'!B169=\"Subscriber\",\"-\",IF(AND('Enrollment Form'!B169<>\"Subscriber\",'Enrollment Form'!G169='Enrollment Form'!H169),\"N\",\"Y\")))","v":""},0]
[170,{"$f":"IF('Enrollment Form'!$A170<>\"\",\"Y\",\"N\")","v":"N"},{"$f":"IF(AND('Enrollment Form'!$B170=\"\",'Enrollment Form'!$C170<>\"\"),\"N\",IF($B163=\"N\",\"\",\"Y\"))","v":""},{"$f":"IF(OR($B163=\"N\",'Enrollment Form'!G170=\"\"),\"\",IF('Enrollment Form'!$B170<>\"Subscriber\",\"\",IF('Enrollment Form'!$G170='Enrollment Form'!$H170,\"Y\",\"N\")))","v":""},{"$f":"IF($B163=\"N\",\"\",IF(AND(COUNTIFS('Enrollment Form'!$H$11:$H$1000,'Enrollment Form'!$H170,'Enrollment Form'!$B$11:$B$1000,'Enrollment Form'!$B170)>1,'Enrollment Form'!$H170<>\"\"),\"N\",\"Y\"))","v":""},{"$f":"IF($B163=\"N\",\"\",IF(LEN('Enrollment Form'!$Y170)=0,\"\",IF(LEN('Enrollment Form'!$Y170)<>5,\"N\",\"Y\")))","v":""},{"$f":"IF($B163=\"N\",\"\",IF(LEN('Enrollment Form'!$AD170=0),\"\",IF(LEN('Enrollment Form'!$AD170)<>5,\"N\",\"Y\")))","v":""},{"$f":"IF($B163=\"N\",\"\",IF(LEN('Enrollment Form'!$BL170=0),\"\",IF(LEN('Enrollment Form'!$BL170)<>5,\"N\",\"Y\")))","v":""},{"$f":"IF($B163=\"N\",\"\",IF(LEN('Enrollment Form'!$AE170)=0,\"\",IF(LEN('Enrollment Form'!$AE170)<>10,\"N\",\"Y\")))","v":""},{"$f":"IF($B163=\"N\",\"\",IF(LEN('Enrollment Form'!$AF170)=0,\"\",IF(LEN('Enrollment Form'!$AF170)<>10,\"N\",\"Y\")))","v":""},{"$f":"IF('Enrollment Form'!$O170<>\"Graded\",\"-\",IF(AND('Enrollment Form'!$O170=\"Graded\",'Enrollment Form'!$AO170<>\"\"),\"Y\",\"N\"))","v":"-"},{"$f":"IF($B163=\"N\",\"\",IF(OR('Enrollment Form'!$B170<>\"Subscriber\",'Enrollment Form'!$C170=\"ROC\"),\"-\",IF(AND('Enrollment Form'!$B170=\"Subscriber\",'Enrollment Form'!$C170=\"Enroll\",'Enrollment Form'!$AJ170<>\"\"),\"Y\",\"N\")))","v":""},{"$f":"IF($B163=\"N\",\"\",IF(OR('Enrollment Form'!$B170<>\"Subscriber\",'Enrollment Form'!$C170=\"ROC\"),\"-\",IF(AND('Enrollment Form'!$B170=\"Subscriber\",'Enrollment Form'!$C170=\"Enroll\",'Enrollment Form'!$AK170<>\"\"),\"Y\",\"N\")))","v":""},{"$f":"IF($B163=\"N\",\"\",IF(OR('Enrollment Form'!$B170<>\"Subscriber\",'Enrollment Form'!$C170=\"ROC\"),\"-\",IF(AND('Enrollment Form'!$B170=\"Subscriber\",'Enrollment Form'!$C170=\"Enroll\",'Enrollment Form'!$AL170<>\"\"),\"Y\",\"N\")))","v":""},{"$f":"IF($B163=\"N\",\"\",IF(OR('Enrollment Form'!$B170<>\"Subscriber\",'Enrollment Form'!$C170=\"ROC\"),\"-\",IF(AND('Enrollment Form'!$B170=\"Subscriber\",'Enrollment Form'!$C170=\"Enroll\",'Enrollment Form'!$AM170<>\"\"),\"Y\",\"N\")))","v":""},{"$f":"IF($B163=\"N\",\"\",IF(OR('Enrollment Form'!$B170<>\"Subscriber\",'Enrollment Form'!$C170=\"ROC\"),\"-\",IF(AND('Enrollment Form'!$B170=\"Subscriber\",'Enrollment Form'!$C170=\"Enroll\",'Enrollment Form'!$AN170<>\"\"),\"Y\",\"N\")))","v":""},{"$f":"IF($B163=\"N\",\"\",IF(OR('Enrollment Form'!$B170<>\"Subscriber\",'Enrollment Form'!$C170=\"ROC\"),\"-\",IF(AND('Enrollment Form'!$B170=\"Subscriber\",'Enrollment Form'!$C170=\"Enroll\",'Enrollment Form'!$AP170<>\"\"),\"Y\",\"N\")))","v":""},{"$f":"IF($B163=\"N\",\"\",IF($Q163=\"-\",\"-\",IF(AND($Q163=\"Y\",'Enrollment Form'!$AP170=\"No\"),\"-\",IF(AND($Q163=\"Y\",'Enrollment Form'!$AP170=\"Yes\",'Enrollment Form'!$AQ170<>\"\"),\"Y\",\"N\"))))","v":""},{"$f":"IF($B163=\"N\",\"\",IF(OR('Enrollment Form'!$B170<>\"Subscriber\",'Enrollment Form'!$C170=\"ROC\"),\"-\",IF(AND('Enrollment Form'!$B170=\"Subscriber\",'Enrollment Form'!$C170=\"Enroll\",'Enrollment Form'!$CO170<>\"\"),\"Y\",\"N\")))","v":""},{"$f":"IF($B163=\"N\",\"\",IF($S163=\"-\",\"-\",IF(AND($S163=\"Y\",'Enrollment Form'!$CO170=\"No\"),\"-\",IF(AND($S163=\"Y\",'Enrollment Form'!$CO170=\"Yes\",'Enrollment Form'!$CP170<>\"\"),\"Y\",\"N\"))))","v":""},{"$f":"IF(OR('Enrollment Form'!$AV170=\"Yes\",'Enrollment Form'!$AV170=\"\"),\"-\",IF(AND('Enrollment Form'!$AV170=\"No\",ISERROR(FIND(\"HMO\",VLOOKUP('Enrollment Form'!G170,'Enrollment Form'!H$11:J$1000,3,FALSE),1))=FALSE,COUNTA('Enrollment Form'!$AW170:$AZ170)=4),\"Y\",\"N\"))","v":"-"},{"$f":"IF($B163=\"N\",\"\",IF('Enrollment Form'!$B170=\"Subscriber\",\"-\",IF(COUNTA('Enrollment Form'!$BE170,'Enrollment Form'!$BG170)=2,\"Y\",\"N\")))","v":""},{"$f":"IF($B163=\"N\",\"\",IF(OR('Enrollment Form'!$AU170=\"\",'Enrollment Form'!$AU170=\"No\"),\"-\",IF(AND('Enrollment Form'!$AU170=\"Yes\",COUNTA('Enrollment Form'!$CK170)=1),\"Y\",\"N\")))","v":""},{"$f":"IF(OR('Enrollment Form'!$CK170=\"\",'Enrollment Form'!$CK170=\"No\"),\"-\",IF(COUNTA('Enrollment Form'!$CM170:$CN170)=2,\"Y\",\"N\"))","v":"-"},{"$f":"IF($B163=\"N\",\"\",IF(COUNTIF('Enrollment Form'!$CZ170:$DO170,\"Other\")=COUNTA('Enrollment Form'!$DF170,'Enrollment Form'!$DA170,'Enrollment Form'!$DK170,'Enrollment Form'!$DP170),\"Y\",\"N\"))","v":""},{"$f":"IF($B163=\"N\",\"\",IF(OR('Enrollment Form'!B170<>\"Subscriber\",'Enrollment Form'!C170=\"ROC\",COUNTIF('Enrollment Form'!AS170:AT170,\"Yes\")>=1),\"-\",IF(AND('Enrollment Form'!C170=\"Enroll\",COUNTIF('Enrollment Form'!AS170:AT170,\"No\")=2,'Enrollment Form'!AU170=\"\"),\"N\",\"Y\")))","v":""},{"$f":"IF(OR(B163=\"N\",'Enrollment Form'!B170<>\"Subscriber\",'Enrollment Form'!C170=\"ROC\",'Enrollment Form'!O170<>\"Multiple of Salary\"),\"-\",IF(COUNTA('Enrollment Form'!T170:U170)<2,\"N\",\"Y\"))","v":"-"},{"$f":"IF(B163=\"N\",\"\",IF(OR('Enrollment Form'!C170=\"ROC\",'Enrollment Form'!B170<>\"Subscriber\",'Enrollment Form'!O170=\"Waive\",'Enrollment Form'!O170=\"\"),\"-\",IF('Enrollment Form'!P170=\"\",\"N\",\"Y\")))","v":""},{"$f":"IF($B163=\"N\",\"\",IF(AND('Enrollment Form'!$C170=\"ROC\",'Enrollment Form'!$DS170<>\"\"),\"Y\",IF(AND('Enrollment Form'!$C170=\"ROC\",'Enrollment Form'!$DS170=\"\"),\"N\",IF(AND('Enrollment Form'!$C170=\"Enroll\",'Enrollment Form'!$B170=\"Subscriber\",'Enrollment Form'!$CQ170=\"No\",'Enrollment Form'!$DS170=\"\"),\"N\",IF(AND('Enrollment Form'!$C170=\"Enroll\",'Enrollment Form'!$B170=\"Subscriber\",'Enrollment Form'!$CQ170=\"Yes\"),\"-\",\"Y\")))))","v":""},{"$f":"IF($B163=\"N\",\"\",IF(AND('Enrollment Form'!$C170=\"ROC\",'Enrollment Form'!$DT170<>\"\"),\"Y\",IF(AND('Enrollment Form'!$C170=\"ROC\",'Enrollment Form'!$DT170=\"\"),\"N\",IF(AND('Enrollment Form'!$C170=\"Enroll\",'Enrollment Form'!$B170=\"Subscriber\",'Enrollment Form'!$CQ170=\"No\",'Enrollment Form'!$DT170=\"\"),\"N\",IF(AND('Enrollment Form'!$C170=\"Enroll\",'Enrollment Form'!$B170=\"Subscriber\",'Enrollment Form'!$CQ170=\"Yes\"),\"-\",\"Y\")))))","v":""},{"$f":"IF('Enrollment Form'!AH170=\"\",\"\",IF(ISERROR(SEARCH(\".\",'Enrollment Form'!AH170,SEARCH(\"@\",'Enrollment Form'!AH170))),\"N\",\"Y\"))","v":""},{"$f":"IF(OR($B163=\"N\",'Enrollment Form'!$G170=\"\"),\"\",IF('Enrollment Form'!$B170<>\"Subscriber\",\"-\",IF(COUNTIF('Enrollment Form'!$AS170:$AT170,\"Yes\")=2,\"N\",\"Y\")))","v":""},{"$f":"IF(OR('Enrollment Form'!$CC170=\"\",'Enrollment Form'!$CC170=\"No\"),\"-\",IF(AND('Enrollment Form'!$CC170=\"Yes\",'Enrollment Form'!$CD170=\"\"),\"N\",\"Y\"))","v":"-"},{"$f":"IF(OR('Enrollment Form'!$CE170=\"\",'Enrollment Form'!$CE170=\"No\"),\"-\",IF(AND('Enrollment Form'!$CE170=\"Yes\",'Enrollment Form'!$CF170=\"\"),\"N\",\"Y\"))","v":"-"},{"$f":"IF(OR('Enrollment Form'!$CG170=\"\",'Enrollment Form'!$CG170=\"No\"),\"-\",IF(AND('Enrollment Form'!$CG170=\"Yes\",'Enrollment Form'!$CH170=\"\"),\"N\",\"Y\"))","v":"-"},{"$f":"IF(OR('Enrollment Form'!$CG170=\"\",'Enrollment Form'!$CG170=\"No\"),\"-\",IF(AND('Enrollment Form'!$CG170=\"Yes\",'Enrollment Form'!$CI170=\"\"),\"N\",\"Y\"))","v":"-"},{"$f":"IF('Enrollment Form'!B170<>\"Subscriber\",\"-\",IF(AND('Enrollment Form'!B170=\"Subscriber\",'Enrollment Form'!C170=\"Enroll\",'Enrollment Form'!AA170=\"\"),\"N\",\"Y\"))","v":"-"},{"$f":"IF(OR('Enrollment Form'!B170=\"Subscriber\",'Enrollment Form'!B170=\"\"),\"-\",IF('Enrollment Form'!BI170=\"\",\"N\",\"Y\"))","v":"-"},{"$f":"IF('Enrollment Form'!B170<>\"Subscriber\",\"-\",IF(AND('Enrollment Form'!B170=\"Subscriber\",'Enrollment Form'!G170=\"\"),\"N\",\"Y\"))","v":"-"},{"$f":"IF('Enrollment Form'!A170=\"\",\"\",IF('Enrollment Form'!B170=\"Subscriber\",\"-\",IF(AND('Enrollment Form'!B170<>\"Subscriber\",'Enrollment Form'!G170='Enrollment Form'!H170),\"N\",\"Y\")))","v":""},0]
[171,{"$f":"IF('Enrollment Form'!$A171<>\"\",\"Y\",\"N\")","v":"N"},{"$f":"IF(AND('Enrollment Form'!$B171=\"\",'Enrollment Form'!$C171<>\"\"),\"N\",IF($B164=\"N\",\"\",\"Y\"))","v":""},{"$f":"IF(OR($B164=\"N\",'Enrollment Form'!G171=\"\"),\"\",IF('Enrollment Form'!$B171<>\"Subscriber\",\"\",IF('Enrollment Form'!$G171='Enrollment Form'!$H171,\"Y\",\"N\")))","v":""},{"$f":"IF($B164=\"N\",\"\",IF(AND(COUNTIFS('Enrollment Form'!$H$11:$H$1000,'Enrollment Form'!$H171,'Enrollment Form'!$B$11:$B$1000,'Enrollment Form'!$B171)>1,'Enrollment Form'!$H171<>\"\"),\"N\",\"Y\"))","v":""},{"$f":"IF($B164=\"N\",\"\",IF(LEN('Enrollment Form'!$Y171)=0,\"\",IF(LEN('Enrollment Form'!$Y171)<>5,\"N\",\"Y\")))","v":""},{"$f":"IF($B164=\"N\",\"\",IF(LEN('Enrollment Form'!$AD171=0),\"\",IF(LEN('Enrollment Form'!$AD171)<>5,\"N\",\"Y\")))","v":""},{"$f":"IF($B164=\"N\",\"\",IF(LEN('Enrollment Form'!$BL171=0),\"\",IF(LEN('Enrollment Form'!$BL171)<>5,\"N\",\"Y\")))","v":""},{"$f":"IF($B164=\"N\",\"\",IF(LEN('Enrollment Form'!$AE171)=0,\"\",IF(LEN('Enrollment Form'!$AE171)<>10,\"N\",\"Y\")))","v":""},{"$f":"IF($B164=\"N\",\"\",IF(LEN('Enrollment Form'!$AF171)=0,\"\",IF(LEN('Enrollment Form'!$AF171)<>10,\"N\",\"Y\")))","v":""},{"$f":"IF('Enrollment Form'!$O171<>\"Graded\",\"-\",IF(AND('Enrollment Form'!$O171=\"Graded\",'Enrollment Form'!$AO171<>\"\"),\"Y\",\"N\"))","v":"-"},{"$f":"IF($B164=\"N\",\"\",IF(OR('Enrollment Form'!$B171<>\"Subscriber\",'Enrollment Form'!$C171=\"ROC\"),\"-\",IF(AND('Enrollment Form'!$B171=\"Subscriber\",'Enrollment Form'!$C171=\"Enroll\",'Enrollment Form'!$AJ171<>\"\"),\"Y\",\"N\")))","v":""},{"$f":"IF($B164=\"N\",\"\",IF(OR('Enrollment Form'!$B171<>\"Subscriber\",'Enrollment Form'!$C171=\"ROC\"),\"-\",IF(AND('Enrollment Form'!$B171=\"Subscriber\",'Enrollment Form'!$C171=\"Enroll\",'Enrollment Form'!$AK171<>\"\"),\"Y\",\"N\")))","v":""},{"$f":"IF($B164=\"N\",\"\",IF(OR('Enrollment Form'!$B171<>\"Subscriber\",'Enrollment Form'!$C171=\"ROC\"),\"-\",IF(AND('Enrollment Form'!$B171=\"Subscriber\",'Enrollment Form'!$C171=\"Enroll\",'Enrollment Form'!$AL171<>\"\"),\"Y\",\"N\")))","v":""},{"$f":"IF($B164=\"N\",\"\",IF(OR('Enrollment Form'!$B171<>\"Subscriber\",'Enrollment Form'!$C171=\"ROC\"),\"-\",IF(AND('Enrollment Form'!$B171=\"Subscriber\",'Enrollment Form'!$C171=\"Enroll\",'Enrollment Form'!$AM171<>\"\"),\"Y\",\"N\")))","v":""},{"$f":"IF($B164=\"N\",\"\",IF(OR('Enrollment Form'!$B171<>\"Subscriber\",'Enrollment Form'!$C171=\"ROC\"),\"-\",IF(AND('Enrollment Form'!$B171=\"Subscriber\",'Enrollment Form'!$C171=\"Enroll\",'Enrollment Form'!$AN171<>\"\"),\"Y\",\"N\")))","v":""},{"$f":"IF($B164=\"N\",\"\",IF(OR('Enrollment Form'!$B171<>\"Subscriber\",'Enrollment Form'!$C171=\"ROC\"),\"-\",IF(AND('Enrollment Form'!$B171=\"Subscriber\",'Enrollment Form'!$C171=\"Enroll\",'Enrollment Form'!$AP171<>\"\"),\"Y\",\"N\")))","v":""},{"$f":"IF($B164=\"N\",\"\",IF($Q164=\"-\",\"-\",IF(AND($Q164=\"Y\",'Enrollment Form'!$AP171=\"No\"),\"-\",IF(AND($Q164=\"Y\",'Enrollment Form'!$AP171=\"Yes\",'Enrollment Form'!$AQ171<>\"\"),\"Y\",\"N\"))))","v":""},{"$f":"IF($B164=\"N\",\"\",IF(OR('Enrollment Form'!$B171<>\"Subscriber\",'Enrollment Form'!$C171=\"ROC\"),\"-\",IF(AND('Enrollment Form'!$B171=\"Subscriber\",'Enrollment Form'!$C171=\"Enroll\",'Enrollment Form'!$CO171<>\"\"),\"Y\",\"N\")))","v":""},{"$f":"IF($B164=\"N\",\"\",IF($S164=\"-\",\"-\",IF(AND($S164=\"Y\",'Enrollment Form'!$CO171=\"No\"),\"-\",IF(AND($S164=\"Y\",'Enrollment Form'!$CO171=\"Yes\",'Enrollment Form'!$CP171<>\"\"),\"Y\",\"N\"))))","v":""},{"$f":"IF(OR('Enrollment Form'!$AV171=\"Yes\",'Enrollment Form'!$AV171=\"\"),\"-\",IF(AND('Enrollment Form'!$AV171=\"No\",ISERROR(FIND(\"HMO\",VLOOKUP('Enrollment Form'!G171,'Enrollment Form'!H$11:J$1000,3,FALSE),1))=FALSE,COUNTA('Enrollment Form'!$AW171:$AZ171)=4),\"Y\",\"N\"))","v":"-"},{"$f":"IF($B164=\"N\",\"\",IF('Enrollment Form'!$B171=\"Subscriber\",\"-\",IF(COUNTA('Enrollment Form'!$BE171,'Enrollment Form'!$BG171)=2,\"Y\",\"N\")))","v":""},{"$f":"IF($B164=\"N\",\"\",IF(OR('Enrollment Form'!$AU171=\"\",'Enrollment Form'!$AU171=\"No\"),\"-\",IF(AND('Enrollment Form'!$AU171=\"Yes\",COUNTA('Enrollment Form'!$CK171)=1),\"Y\",\"N\")))","v":""},{"$f":"IF(OR('Enrollment Form'!$CK171=\"\",'Enrollment Form'!$CK171=\"No\"),\"-\",IF(COUNTA('Enrollment Form'!$CM171:$CN171)=2,\"Y\",\"N\"))","v":"-"},{"$f":"IF($B164=\"N\",\"\",IF(COUNTIF('Enrollment Form'!$CZ171:$DO171,\"Other\")=COUNTA('Enrollment Form'!$DF171,'Enrollment Form'!$DA171,'Enrollment Form'!$DK171,'Enrollment Form'!$DP171),\"Y\",\"N\"))","v":""},{"$f":"IF($B164=\"N\",\"\",IF(OR('Enrollment Form'!B171<>\"Subscriber\",'Enrollment Form'!C171=\"ROC\",COUNTIF('Enrollment Form'!AS171:AT171,\"Yes\")>=1),\"-\",IF(AND('Enrollment Form'!C171=\"Enroll\",COUNTIF('Enrollment Form'!AS171:AT171,\"No\")=2,'Enrollment Form'!AU171=\"\"),\"N\",\"Y\")))","v":""},{"$f":"IF(OR(B164=\"N\",'Enrollment Form'!B171<>\"Subscriber\",'Enrollment Form'!C171=\"ROC\",'Enrollment Form'!O171<>\"Multiple of Salary\"),\"-\",IF(COUNTA('Enrollment Form'!T171:U171)<2,\"N\",\"Y\"))","v":"-"},{"$f":"IF(B164=\"N\",\"\",IF(OR('Enrollment Form'!C171=\"ROC\",'Enrollment Form'!B171<>\"Subscriber\",'Enrollment Form'!O171=\"Waive\",'Enrollment Form'!O171=\"\"),\"-\",IF('Enrollment Form'!P171=\"\",\"N\",\"Y\")))","v":""},{"$f":"IF($B164=\"N\",\"\",IF(AND('Enrollment Form'!$C171=\"ROC\",'Enrollment Form'!$DS171<>\"\"),\"Y\",IF(AND('Enrollment Form'!$C171=\"ROC\",'Enrollment Form'!$DS171=\"\"),\"N\",IF(AND('Enrollment Form'!$C171=\"Enroll\",'Enrollment Form'!$B171=\"Subscriber\",'Enrollment Form'!$CQ171=\"No\",'Enrollment Form'!$DS171=\"\"),\"N\",IF(AND('Enrollment Form'!$C171=\"Enroll\",'Enrollment Form'!$B171=\"Subscriber\",'Enrollment Form'!$CQ171=\"Yes\"),\"-\",\"Y\")))))","v":""},{"$f":"IF($B164=\"N\",\"\",IF(AND('Enrollment Form'!$C171=\"ROC\",'Enrollment Form'!$DT171<>\"\"),\"Y\",IF(AND('Enrollment Form'!$C171=\"ROC\",'Enrollment Form'!$DT171=\"\"),\"N\",IF(AND('Enrollment Form'!$C171=\"Enroll\",'Enrollment Form'!$B171=\"Subscriber\",'Enrollment Form'!$CQ171=\"No\",'Enrollment Form'!$DT171=\"\"),\"N\",IF(AND('Enrollment Form'!$C171=\"Enroll\",'Enrollment Form'!$B171=\"Subscriber\",'Enrollment Form'!$CQ171=\"Yes\"),\"-\",\"Y\")))))","v":""},{"$f":"IF('Enrollment Form'!AH171=\"\",\"\",IF(ISERROR(SEARCH(\".\",'Enrollment Form'!AH171,SEARCH(\"@\",'Enrollment Form'!AH171))),\"N\",\"Y\"))","v":""},{"$f":"IF(OR($B164=\"N\",'Enrollment Form'!$G171=\"\"),\"\",IF('Enrollment Form'!$B171<>\"Subscriber\",\"-\",IF(COUNTIF('Enrollment Form'!$AS171:$AT171,\"Yes\")=2,\"N\",\"Y\")))","v":""},{"$f":"IF(OR('Enrollment Form'!$CC171=\"\",'Enrollment Form'!$CC171=\"No\"),\"-\",IF(AND('Enrollment Form'!$CC171=\"Yes\",'Enrollment Form'!$CD171=\"\"),\"N\",\"Y\"))","v":"-"},{"$f":"IF(OR('Enrollment Form'!$CE171=\"\",'Enrollment Form'!$CE171=\"No\"),\"-\",IF(AND('Enrollment Form'!$CE171=\"Yes\",'Enrollment Form'!$CF171=\"\"),\"N\",\"Y\"))","v":"-"},{"$f":"IF(OR('Enrollment Form'!$CG171=\"\",'Enrollment Form'!$CG171=\"No\"),\"-\",IF(AND('Enrollment Form'!$CG171=\"Yes\",'Enrollment Form'!$CH171=\"\"),\"N\",\"Y\"))","v":"-"},{"$f":"IF(OR('Enrollment Form'!$CG171=\"\",'Enrollment Form'!$CG171=\"No\"),\"-\",IF(AND('Enrollment Form'!$CG171=\"Yes\",'Enrollment Form'!$CI171=\"\"),\"N\",\"Y\"))","v":"-"},{"$f":"IF('Enrollment Form'!B171<>\"Subscriber\",\"-\",IF(AND('Enrollment Form'!B171=\"Subscriber\",'Enrollment Form'!C171=\"Enroll\",'Enrollment Form'!AA171=\"\"),\"N\",\"Y\"))","v":"-"},{"$f":"IF(OR('Enrollment Form'!B171=\"Subscriber\",'Enrollment Form'!B171=\"\"),\"-\",IF('Enrollment Form'!BI171=\"\",\"N\",\"Y\"))","v":"-"},{"$f":"IF('Enrollment Form'!B171<>\"Subscriber\",\"-\",IF(AND('Enrollment Form'!B171=\"Subscriber\",'Enrollment Form'!G171=\"\"),\"N\",\"Y\"))","v":"-"},{"$f":"IF('Enrollment Form'!A171=\"\",\"\",IF('Enrollment Form'!B171=\"Subscriber\",\"-\",IF(AND('Enrollment Form'!B171<>\"Subscriber\",'Enrollment Form'!G171='Enrollment Form'!H171),\"N\",\"Y\")))","v":""},0]
[172,{"$f":"IF('Enrollment Form'!$A172<>\"\",\"Y\",\"N\")","v":"N"},{"$f":"IF(AND('Enrollment Form'!$B172=\"\",'Enrollment Form'!$C172<>\"\"),\"N\",IF($B165=\"N\",\"\",\"Y\"))","v":""},{"$f":"IF(OR($B165=\"N\",'Enrollment Form'!G172=\"\"),\"\",IF('Enrollment Form'!$B172<>\"Subscriber\",\"\",IF('Enrollment Form'!$G172='Enrollment Form'!$H172,\"Y\",\"N\")))","v":""},{"$f":"IF($B165=\"N\",\"\",IF(AND(COUNTIFS('Enrollment Form'!$H$11:$H$1000,'Enrollment Form'!$H172,'Enrollment Form'!$B$11:$B$1000,'Enrollment Form'!$B172)>1,'Enrollment Form'!$H172<>\"\"),\"N\",\"Y\"))","v":""},{"$f":"IF($B165=\"N\",\"\",IF(LEN('Enrollment Form'!$Y172)=0,\"\",IF(LEN('Enrollment Form'!$Y172)<>5,\"N\",\"Y\")))","v":""},{"$f":"IF($B165=\"N\",\"\",IF(LEN('Enrollment Form'!$AD172=0),\"\",IF(LEN('Enrollment Form'!$AD172)<>5,\"N\",\"Y\")))","v":""},{"$f":"IF($B165=\"N\",\"\",IF(LEN('Enrollment Form'!$BL172=0),\"\",IF(LEN('Enrollment Form'!$BL172)<>5,\"N\",\"Y\")))","v":""},{"$f":"IF($B165=\"N\",\"\",IF(LEN('Enrollment Form'!$AE172)=0,\"\",IF(LEN('Enrollment Form'!$AE172)<>10,\"N\",\"Y\")))","v":""},{"$f":"IF($B165=\"N\",\"\",IF(LEN('Enrollment Form'!$AF172)=0,\"\",IF(LEN('Enrollment Form'!$AF172)<>10,\"N\",\"Y\")))","v":""},{"$f":"IF('Enrollment Form'!$O172<>\"Graded\",\"-\",IF(AND('Enrollment Form'!$O172=\"Graded\",'Enrollment Form'!$AO172<>\"\"),\"Y\",\"N\"))","v":"-"},{"$f":"IF($B165=\"N\",\"\",IF(OR('Enrollment Form'!$B172<>\"Subscriber\",'Enrollment Form'!$C172=\"ROC\"),\"-\",IF(AND('Enrollment Form'!$B172=\"Subscriber\",'Enrollment Form'!$C172=\"Enroll\",'Enrollment Form'!$AJ172<>\"\"),\"Y\",\"N\")))","v":""},{"$f":"IF($B165=\"N\",\"\",IF(OR('Enrollment Form'!$B172<>\"Subscriber\",'Enrollment Form'!$C172=\"ROC\"),\"-\",IF(AND('Enrollment Form'!$B172=\"Subscriber\",'Enrollment Form'!$C172=\"Enroll\",'Enrollment Form'!$AK172<>\"\"),\"Y\",\"N\")))","v":""},{"$f":"IF($B165=\"N\",\"\",IF(OR('Enrollment Form'!$B172<>\"Subscriber\",'Enrollment Form'!$C172=\"ROC\"),\"-\",IF(AND('Enrollment Form'!$B172=\"Subscriber\",'Enrollment Form'!$C172=\"Enroll\",'Enrollment Form'!$AL172<>\"\"),\"Y\",\"N\")))","v":""},{"$f":"IF($B165=\"N\",\"\",IF(OR('Enrollment Form'!$B172<>\"Subscriber\",'Enrollment Form'!$C172=\"ROC\"),\"-\",IF(AND('Enrollment Form'!$B172=\"Subscriber\",'Enrollment Form'!$C172=\"Enroll\",'Enrollment Form'!$AM172<>\"\"),\"Y\",\"N\")))","v":""},{"$f":"IF($B165=\"N\",\"\",IF(OR('Enrollment Form'!$B172<>\"Subscriber\",'Enrollment Form'!$C172=\"ROC\"),\"-\",IF(AND('Enrollment Form'!$B172=\"Subscriber\",'Enrollment Form'!$C172=\"Enroll\",'Enrollment Form'!$AN172<>\"\"),\"Y\",\"N\")))","v":""},{"$f":"IF($B165=\"N\",\"\",IF(OR('Enrollment Form'!$B172<>\"Subscriber\",'Enrollment Form'!$C172=\"ROC\"),\"-\",IF(AND('Enrollment Form'!$B172=\"Subscriber\",'Enrollment Form'!$C172=\"Enroll\",'Enrollment Form'!$AP172<>\"\"),\"Y\",\"N\")))","v":""},{"$f":"IF($B165=\"N\",\"\",IF($Q165=\"-\",\"-\",IF(AND($Q165=\"Y\",'Enrollment Form'!$AP172=\"No\"),\"-\",IF(AND($Q165=\"Y\",'Enrollment Form'!$AP172=\"Yes\",'Enrollment Form'!$AQ172<>\"\"),\"Y\",\"N\"))))","v":""},{"$f":"IF($B165=\"N\",\"\",IF(OR('Enrollment Form'!$B172<>\"Subscriber\",'Enrollment Form'!$C172=\"ROC\"),\"-\",IF(AND('Enrollment Form'!$B172=\"Subscriber\",'Enrollment Form'!$C172=\"Enroll\",'Enrollment Form'!$CO172<>\"\"),\"Y\",\"N\")))","v":""},{"$f":"IF($B165=\"N\",\"\",IF($S165=\"-\",\"-\",IF(AND($S165=\"Y\",'Enrollment Form'!$CO172=\"No\"),\"-\",IF(AND($S165=\"Y\",'Enrollment Form'!$CO172=\"Yes\",'Enrollment Form'!$CP172<>\"\"),\"Y\",\"N\"))))","v":""},{"$f":"IF(OR('Enrollment Form'!$AV172=\"Yes\",'Enrollment Form'!$AV172=\"\"),\"-\",IF(AND('Enrollment Form'!$AV172=\"No\",ISERROR(FIND(\"HMO\",VLOOKUP('Enrollment Form'!G172,'Enrollment Form'!H$11:J$1000,3,FALSE),1))=FALSE,COUNTA('Enrollment Form'!$AW172:$AZ172)=4),\"Y\",\"N\"))","v":"-"},{"$f":"IF($B165=\"N\",\"\",IF('Enrollment Form'!$B172=\"Subscriber\",\"-\",IF(COUNTA('Enrollment Form'!$BE172,'Enrollment Form'!$BG172)=2,\"Y\",\"N\")))","v":""},{"$f":"IF($B165=\"N\",\"\",IF(OR('Enrollment Form'!$AU172=\"\",'Enrollment Form'!$AU172=\"No\"),\"-\",IF(AND('Enrollment Form'!$AU172=\"Yes\",COUNTA('Enrollment Form'!$CK172)=1),\"Y\",\"N\")))","v":""},{"$f":"IF(OR('Enrollment Form'!$CK172=\"\",'Enrollment Form'!$CK172=\"No\"),\"-\",IF(COUNTA('Enrollment Form'!$CM172:$CN172)=2,\"Y\",\"N\"))","v":"-"},{"$f":"IF($B165=\"N\",\"\",IF(COUNTIF('Enrollment Form'!$CZ172:$DO172,\"Other\")=COUNTA('Enrollment Form'!$DF172,'Enrollment Form'!$DA172,'Enrollment Form'!$DK172,'Enrollment Form'!$DP172),\"Y\",\"N\"))","v":""},{"$f":"IF($B165=\"N\",\"\",IF(OR('Enrollment Form'!B172<>\"Subscriber\",'Enrollment Form'!C172=\"ROC\",COUNTIF('Enrollment Form'!AS172:AT172,\"Yes\")>=1),\"-\",IF(AND('Enrollment Form'!C172=\"Enroll\",COUNTIF('Enrollment Form'!AS172:AT172,\"No\")=2,'Enrollment Form'!AU172=\"\"),\"N\",\"Y\")))","v":""},{"$f":"IF(OR(B165=\"N\",'Enrollment Form'!B172<>\"Subscriber\",'Enrollment Form'!C172=\"ROC\",'Enrollment Form'!O172<>\"Multiple of Salary\"),\"-\",IF(COUNTA('Enrollment Form'!T172:U172)<2,\"N\",\"Y\"))","v":"-"},{"$f":"IF(B165=\"N\",\"\",IF(OR('Enrollment Form'!C172=\"ROC\",'Enrollment Form'!B172<>\"Subscriber\",'Enrollment Form'!O172=\"Waive\",'Enrollment Form'!O172=\"\"),\"-\",IF('Enrollment Form'!P172=\"\",\"N\",\"Y\")))","v":""},{"$f":"IF($B165=\"N\",\"\",IF(AND('Enrollment Form'!$C172=\"ROC\",'Enrollment Form'!$DS172<>\"\"),\"Y\",IF(AND('Enrollment Form'!$C172=\"ROC\",'Enrollment Form'!$DS172=\"\"),\"N\",IF(AND('Enrollment Form'!$C172=\"Enroll\",'Enrollment Form'!$B172=\"Subscriber\",'Enrollment Form'!$CQ172=\"No\",'Enrollment Form'!$DS172=\"\"),\"N\",IF(AND('Enrollment Form'!$C172=\"Enroll\",'Enrollment Form'!$B172=\"Subscriber\",'Enrollment Form'!$CQ172=\"Yes\"),\"-\",\"Y\")))))","v":""},{"$f":"IF($B165=\"N\",\"\",IF(AND('Enrollment Form'!$C172=\"ROC\",'Enrollment Form'!$DT172<>\"\"),\"Y\",IF(AND('Enrollment Form'!$C172=\"ROC\",'Enrollment Form'!$DT172=\"\"),\"N\",IF(AND('Enrollment Form'!$C172=\"Enroll\",'Enrollment Form'!$B172=\"Subscriber\",'Enrollment Form'!$CQ172=\"No\",'Enrollment Form'!$DT172=\"\"),\"N\",IF(AND('Enrollment Form'!$C172=\"Enroll\",'Enrollment Form'!$B172=\"Subscriber\",'Enrollment Form'!$CQ172=\"Yes\"),\"-\",\"Y\")))))","v":""},{"$f":"IF('Enrollment Form'!AH172=\"\",\"\",IF(ISERROR(SEARCH(\".\",'Enrollment Form'!AH172,SEARCH(\"@\",'Enrollment Form'!AH172))),\"N\",\"Y\"))","v":""},{"$f":"IF(OR($B165=\"N\",'Enrollment Form'!$G172=\"\"),\"\",IF('Enrollment Form'!$B172<>\"Subscriber\",\"-\",IF(COUNTIF('Enrollment Form'!$AS172:$AT172,\"Yes\")=2,\"N\",\"Y\")))","v":""},{"$f":"IF(OR('Enrollment Form'!$CC172=\"\",'Enrollment Form'!$CC172=\"No\"),\"-\",IF(AND('Enrollment Form'!$CC172=\"Yes\",'Enrollment Form'!$CD172=\"\"),\"N\",\"Y\"))","v":"-"},{"$f":"IF(OR('Enrollment Form'!$CE172=\"\",'Enrollment Form'!$CE172=\"No\"),\"-\",IF(AND('Enrollment Form'!$CE172=\"Yes\",'Enrollment Form'!$CF172=\"\"),\"N\",\"Y\"))","v":"-"},{"$f":"IF(OR('Enrollment Form'!$CG172=\"\",'Enrollment Form'!$CG172=\"No\"),\"-\",IF(AND('Enrollment Form'!$CG172=\"Yes\",'Enrollment Form'!$CH172=\"\"),\"N\",\"Y\"))","v":"-"},{"$f":"IF(OR('Enrollment Form'!$CG172=\"\",'Enrollment Form'!$CG172=\"No\"),\"-\",IF(AND('Enrollment Form'!$CG172=\"Yes\",'Enrollment Form'!$CI172=\"\"),\"N\",\"Y\"))","v":"-"},{"$f":"IF('Enrollment Form'!B172<>\"Subscriber\",\"-\",IF(AND('Enrollment Form'!B172=\"Subscriber\",'Enrollment Form'!C172=\"Enroll\",'Enrollment Form'!AA172=\"\"),\"N\",\"Y\"))","v":"-"},{"$f":"IF(OR('Enrollment Form'!B172=\"Subscriber\",'Enrollment Form'!B172=\"\"),\"-\",IF('Enrollment Form'!BI172=\"\",\"N\",\"Y\"))","v":"-"},{"$f":"IF('Enrollment Form'!B172<>\"Subscriber\",\"-\",IF(AND('Enrollment Form'!B172=\"Subscriber\",'Enrollment Form'!G172=\"\"),\"N\",\"Y\"))","v":"-"},{"$f":"IF('Enrollment Form'!A172=\"\",\"\",IF('Enrollment Form'!B172=\"Subscriber\",\"-\",IF(AND('Enrollment Form'!B172<>\"Subscriber\",'Enrollment Form'!G172='Enrollment Form'!H172),\"N\",\"Y\")))","v":""},0]
[173,{"$f":"IF('Enrollment Form'!$A173<>\"\",\"Y\",\"N\")","v":"N"},{"$f":"IF(AND('Enrollment Form'!$B173=\"\",'Enrollment Form'!$C173<>\"\"),\"N\",IF($B166=\"N\",\"\",\"Y\"))","v":""},{"$f":"IF(OR($B166=\"N\",'Enrollment Form'!G173=\"\"),\"\",IF('Enrollment Form'!$B173<>\"Subscriber\",\"\",IF('Enrollment Form'!$G173='Enrollment Form'!$H173,\"Y\",\"N\")))","v":""},{"$f":"IF($B166=\"N\",\"\",IF(AND(COUNTIFS('Enrollment Form'!$H$11:$H$1000,'Enrollment Form'!$H173,'Enrollment Form'!$B$11:$B$1000,'Enrollment Form'!$B173)>1,'Enrollment Form'!$H173<>\"\"),\"N\",\"Y\"))","v":""},{"$f":"IF($B166=\"N\",\"\",IF(LEN('Enrollment Form'!$Y173)=0,\"\",IF(LEN('Enrollment Form'!$Y173)<>5,\"N\",\"Y\")))","v":""},{"$f":"IF($B166=\"N\",\"\",IF(LEN('Enrollment Form'!$AD173=0),\"\",IF(LEN('Enrollment Form'!$AD173)<>5,\"N\",\"Y\")))","v":""},{"$f":"IF($B166=\"N\",\"\",IF(LEN('Enrollment Form'!$BL173=0),\"\",IF(LEN('Enrollment Form'!$BL173)<>5,\"N\",\"Y\")))","v":""},{"$f":"IF($B166=\"N\",\"\",IF(LEN('Enrollment Form'!$AE173)=0,\"\",IF(LEN('Enrollment Form'!$AE173)<>10,\"N\",\"Y\")))","v":""},{"$f":"IF($B166=\"N\",\"\",IF(LEN('Enrollment Form'!$AF173)=0,\"\",IF(LEN('Enrollment Form'!$AF173)<>10,\"N\",\"Y\")))","v":""},{"$f":"IF('Enrollment Form'!$O173<>\"Graded\",\"-\",IF(AND('Enrollment Form'!$O173=\"Graded\",'Enrollment Form'!$AO173<>\"\"),\"Y\",\"N\"))","v":"-"},{"$f":"IF($B166=\"N\",\"\",IF(OR('Enrollment Form'!$B173<>\"Subscriber\",'Enrollment Form'!$C173=\"ROC\"),\"-\",IF(AND('Enrollment Form'!$B173=\"Subscriber\",'Enrollment Form'!$C173=\"Enroll\",'Enrollment Form'!$AJ173<>\"\"),\"Y\",\"N\")))","v":""},{"$f":"IF($B166=\"N\",\"\",IF(OR('Enrollment Form'!$B173<>\"Subscriber\",'Enrollment Form'!$C173=\"ROC\"),\"-\",IF(AND('Enrollment Form'!$B173=\"Subscriber\",'Enrollment Form'!$C173=\"Enroll\",'Enrollment Form'!$AK173<>\"\"),\"Y\",\"N\")))","v":""},{"$f":"IF($B166=\"N\",\"\",IF(OR('Enrollment Form'!$B173<>\"Subscriber\",'Enrollment Form'!$C173=\"ROC\"),\"-\",IF(AND('Enrollment Form'!$B173=\"Subscriber\",'Enrollment Form'!$C173=\"Enroll\",'Enrollment Form'!$AL173<>\"\"),\"Y\",\"N\")))","v":""},{"$f":"IF($B166=\"N\",\"\",IF(OR('Enrollment Form'!$B173<>\"Subscriber\",'Enrollment Form'!$C173=\"ROC\"),\"-\",IF(AND('Enrollment Form'!$B173=\"Subscriber\",'Enrollment Form'!$C173=\"Enroll\",'Enrollment Form'!$AM173<>\"\"),\"Y\",\"N\")))","v":""},{"$f":"IF($B166=\"N\",\"\",IF(OR('Enrollment Form'!$B173<>\"Subscriber\",'Enrollment Form'!$C173=\"ROC\"),\"-\",IF(AND('Enrollment Form'!$B173=\"Subscriber\",'Enrollment Form'!$C173=\"Enroll\",'Enrollment Form'!$AN173<>\"\"),\"Y\",\"N\")))","v":""},{"$f":"IF($B166=\"N\",\"\",IF(OR('Enrollment Form'!$B173<>\"Subscriber\",'Enrollment Form'!$C173=\"ROC\"),\"-\",IF(AND('Enrollment Form'!$B173=\"Subscriber\",'Enrollment Form'!$C173=\"Enroll\",'Enrollment Form'!$AP173<>\"\"),\"Y\",\"N\")))","v":""},{"$f":"IF($B166=\"N\",\"\",IF($Q166=\"-\",\"-\",IF(AND($Q166=\"Y\",'Enrollment Form'!$AP173=\"No\"),\"-\",IF(AND($Q166=\"Y\",'Enrollment Form'!$AP173=\"Yes\",'Enrollment Form'!$AQ173<>\"\"),\"Y\",\"N\"))))","v":""},{"$f":"IF($B166=\"N\",\"\",IF(OR('Enrollment Form'!$B173<>\"Subscriber\",'Enrollment Form'!$C173=\"ROC\"),\"-\",IF(AND('Enrollment Form'!$B173=\"Subscriber\",'Enrollment Form'!$C173=\"Enroll\",'Enrollment Form'!$CO173<>\"\"),\"Y\",\"N\")))","v":""},{"$f":"IF($B166=\"N\",\"\",IF($S166=\"-\",\"-\",IF(AND($S166=\"Y\",'Enrollment Form'!$CO173=\"No\"),\"-\",IF(AND($S166=\"Y\",'Enrollment Form'!$CO173=\"Yes\",'Enrollment Form'!$CP173<>\"\"),\"Y\",\"N\"))))","v":""},{"$f":"IF(OR('Enrollment Form'!$AV173=\"Yes\",'Enrollment Form'!$AV173=\"\"),\"-\",IF(AND('Enrollment Form'!$AV173=\"No\",ISERROR(FIND(\"HMO\",VLOOKUP('Enrollment Form'!G173,'Enrollment Form'!H$11:J$1000,3,FALSE),1))=FALSE,COUNTA('Enrollment Form'!$AW173:$AZ173)=4),\"Y\",\"N\"))","v":"-"},{"$f":"IF($B166=\"N\",\"\",IF('Enrollment Form'!$B173=\"Subscriber\",\"-\",IF(COUNTA('Enrollment Form'!$BE173,'Enrollment Form'!$BG173)=2,\"Y\",\"N\")))","v":""},{"$f":"IF($B166=\"N\",\"\",IF(OR('Enrollment Form'!$AU173=\"\",'Enrollment Form'!$AU173=\"No\"),\"-\",IF(AND('Enrollment Form'!$AU173=\"Yes\",COUNTA('Enrollment Form'!$CK173)=1),\"Y\",\"N\")))","v":""},{"$f":"IF(OR('Enrollment Form'!$CK173=\"\",'Enrollment Form'!$CK173=\"No\"),\"-\",IF(COUNTA('Enrollment Form'!$CM173:$CN173)=2,\"Y\",\"N\"))","v":"-"},{"$f":"IF($B166=\"N\",\"\",IF(COUNTIF('Enrollment Form'!$CZ173:$DO173,\"Other\")=COUNTA('Enrollment Form'!$DF173,'Enrollment Form'!$DA173,'Enrollment Form'!$DK173,'Enrollment Form'!$DP173),\"Y\",\"N\"))","v":""},{"$f":"IF($B166=\"N\",\"\",IF(OR('Enrollment Form'!B173<>\"Subscriber\",'Enrollment Form'!C173=\"ROC\",COUNTIF('Enrollment Form'!AS173:AT173,\"Yes\")>=1),\"-\",IF(AND('Enrollment Form'!C173=\"Enroll\",COUNTIF('Enrollment Form'!AS173:AT173,\"No\")=2,'Enrollment Form'!AU173=\"\"),\"N\",\"Y\")))","v":""},{"$f":"IF(OR(B166=\"N\",'Enrollment Form'!B173<>\"Subscriber\",'Enrollment Form'!C173=\"ROC\",'Enrollment Form'!O173<>\"Multiple of Salary\"),\"-\",IF(COUNTA('Enrollment Form'!T173:U173)<2,\"N\",\"Y\"))","v":"-"},{"$f":"IF(B166=\"N\",\"\",IF(OR('Enrollment Form'!C173=\"ROC\",'Enrollment Form'!B173<>\"Subscriber\",'Enrollment Form'!O173=\"Waive\",'Enrollment Form'!O173=\"\"),\"-\",IF('Enrollment Form'!P173=\"\",\"N\",\"Y\")))","v":""},{"$f":"IF($B166=\"N\",\"\",IF(AND('Enrollment Form'!$C173=\"ROC\",'Enrollment Form'!$DS173<>\"\"),\"Y\",IF(AND('Enrollment Form'!$C173=\"ROC\",'Enrollment Form'!$DS173=\"\"),\"N\",IF(AND('Enrollment Form'!$C173=\"Enroll\",'Enrollment Form'!$B173=\"Subscriber\",'Enrollment Form'!$CQ173=\"No\",'Enrollment Form'!$DS173=\"\"),\"N\",IF(AND('Enrollment Form'!$C173=\"Enroll\",'Enrollment Form'!$B173=\"Subscriber\",'Enrollment Form'!$CQ173=\"Yes\"),\"-\",\"Y\")))))","v":""},{"$f":"IF($B166=\"N\",\"\",IF(AND('Enrollment Form'!$C173=\"ROC\",'Enrollment Form'!$DT173<>\"\"),\"Y\",IF(AND('Enrollment Form'!$C173=\"ROC\",'Enrollment Form'!$DT173=\"\"),\"N\",IF(AND('Enrollment Form'!$C173=\"Enroll\",'Enrollment Form'!$B173=\"Subscriber\",'Enrollment Form'!$CQ173=\"No\",'Enrollment Form'!$DT173=\"\"),\"N\",IF(AND('Enrollment Form'!$C173=\"Enroll\",'Enrollment Form'!$B173=\"Subscriber\",'Enrollment Form'!$CQ173=\"Yes\"),\"-\",\"Y\")))))","v":""},{"$f":"IF('Enrollment Form'!AH173=\"\",\"\",IF(ISERROR(SEARCH(\".\",'Enrollment Form'!AH173,SEARCH(\"@\",'Enrollment Form'!AH173))),\"N\",\"Y\"))","v":""},{"$f":"IF(OR($B166=\"N\",'Enrollment Form'!$G173=\"\"),\"\",IF('Enrollment Form'!$B173<>\"Subscriber\",\"-\",IF(COUNTIF('Enrollment Form'!$AS173:$AT173,\"Yes\")=2,\"N\",\"Y\")))","v":""},{"$f":"IF(OR('Enrollment Form'!$CC173=\"\",'Enrollment Form'!$CC173=\"No\"),\"-\",IF(AND('Enrollment Form'!$CC173=\"Yes\",'Enrollment Form'!$CD173=\"\"),\"N\",\"Y\"))","v":"-"},{"$f":"IF(OR('Enrollment Form'!$CE173=\"\",'Enrollment Form'!$CE173=\"No\"),\"-\",IF(AND('Enrollment Form'!$CE173=\"Yes\",'Enrollment Form'!$CF173=\"\"),\"N\",\"Y\"))","v":"-"},{"$f":"IF(OR('Enrollment Form'!$CG173=\"\",'Enrollment Form'!$CG173=\"No\"),\"-\",IF(AND('Enrollment Form'!$CG173=\"Yes\",'Enrollment Form'!$CH173=\"\"),\"N\",\"Y\"))","v":"-"},{"$f":"IF(OR('Enrollment Form'!$CG173=\"\",'Enrollment Form'!$CG173=\"No\"),\"-\",IF(AND('Enrollment Form'!$CG173=\"Yes\",'Enrollment Form'!$CI173=\"\"),\"N\",\"Y\"))","v":"-"},{"$f":"IF('Enrollment Form'!B173<>\"Subscriber\",\"-\",IF(AND('Enrollment Form'!B173=\"Subscriber\",'Enrollment Form'!C173=\"Enroll\",'Enrollment Form'!AA173=\"\"),\"N\",\"Y\"))","v":"-"},{"$f":"IF(OR('Enrollment Form'!B173=\"Subscriber\",'Enrollment Form'!B173=\"\"),\"-\",IF('Enrollment Form'!BI173=\"\",\"N\",\"Y\"))","v":"-"},{"$f":"IF('Enrollment Form'!B173<>\"Subscriber\",\"-\",IF(AND('Enrollment Form'!B173=\"Subscriber\",'Enrollment Form'!G173=\"\"),\"N\",\"Y\"))","v":"-"},{"$f":"IF('Enrollment Form'!A173=\"\",\"\",IF('Enrollment Form'!B173=\"Subscriber\",\"-\",IF(AND('Enrollment Form'!B173<>\"Subscriber\",'Enrollment Form'!G173='Enrollment Form'!H173),\"N\",\"Y\")))","v":""},0]
[174,{"$f":"IF('Enrollment Form'!$A174<>\"\",\"Y\",\"N\")","v":"N"},{"$f":"IF(AND('Enrollment Form'!$B174=\"\",'Enrollment Form'!$C174<>\"\"),\"N\",IF($B167=\"N\",\"\",\"Y\"))","v":""},{"$f":"IF(OR($B167=\"N\",'Enrollment Form'!G174=\"\"),\"\",IF('Enrollment Form'!$B174<>\"Subscriber\",\"\",IF('Enrollment Form'!$G174='Enrollment Form'!$H174,\"Y\",\"N\")))","v":""},{"$f":"IF($B167=\"N\",\"\",IF(AND(COUNTIFS('Enrollment Form'!$H$11:$H$1000,'Enrollment Form'!$H174,'Enrollment Form'!$B$11:$B$1000,'Enrollment Form'!$B174)>1,'Enrollment Form'!$H174<>\"\"),\"N\",\"Y\"))","v":""},{"$f":"IF($B167=\"N\",\"\",IF(LEN('Enrollment Form'!$Y174)=0,\"\",IF(LEN('Enrollment Form'!$Y174)<>5,\"N\",\"Y\")))","v":""},{"$f":"IF($B167=\"N\",\"\",IF(LEN('Enrollment Form'!$AD174=0),\"\",IF(LEN('Enrollment Form'!$AD174)<>5,\"N\",\"Y\")))","v":""},{"$f":"IF($B167=\"N\",\"\",IF(LEN('Enrollment Form'!$BL174=0),\"\",IF(LEN('Enrollment Form'!$BL174)<>5,\"N\",\"Y\")))","v":""},{"$f":"IF($B167=\"N\",\"\",IF(LEN('Enrollment Form'!$AE174)=0,\"\",IF(LEN('Enrollment Form'!$AE174)<>10,\"N\",\"Y\")))","v":""},{"$f":"IF($B167=\"N\",\"\",IF(LEN('Enrollment Form'!$AF174)=0,\"\",IF(LEN('Enrollment Form'!$AF174)<>10,\"N\",\"Y\")))","v":""},{"$f":"IF('Enrollment Form'!$O174<>\"Graded\",\"-\",IF(AND('Enrollment Form'!$O174=\"Graded\",'Enrollment Form'!$AO174<>\"\"),\"Y\",\"N\"))","v":"-"},{"$f":"IF($B167=\"N\",\"\",IF(OR('Enrollment Form'!$B174<>\"Subscriber\",'Enrollment Form'!$C174=\"ROC\"),\"-\",IF(AND('Enrollment Form'!$B174=\"Subscriber\",'Enrollment Form'!$C174=\"Enroll\",'Enrollment Form'!$AJ174<>\"\"),\"Y\",\"N\")))","v":""},{"$f":"IF($B167=\"N\",\"\",IF(OR('Enrollment Form'!$B174<>\"Subscriber\",'Enrollment Form'!$C174=\"ROC\"),\"-\",IF(AND('Enrollment Form'!$B174=\"Subscriber\",'Enrollment Form'!$C174=\"Enroll\",'Enrollment Form'!$AK174<>\"\"),\"Y\",\"N\")))","v":""},{"$f":"IF($B167=\"N\",\"\",IF(OR('Enrollment Form'!$B174<>\"Subscriber\",'Enrollment Form'!$C174=\"ROC\"),\"-\",IF(AND('Enrollment Form'!$B174=\"Subscriber\",'Enrollment Form'!$C174=\"Enroll\",'Enrollment Form'!$AL174<>\"\"),\"Y\",\"N\")))","v":""},{"$f":"IF($B167=\"N\",\"\",IF(OR('Enrollment Form'!$B174<>\"Subscriber\",'Enrollment Form'!$C174=\"ROC\"),\"-\",IF(AND('Enrollment Form'!$B174=\"Subscriber\",'Enrollment Form'!$C174=\"Enroll\",'Enrollment Form'!$AM174<>\"\"),\"Y\",\"N\")))","v":""},{"$f":"IF($B167=\"N\",\"\",IF(OR('Enrollment Form'!$B174<>\"Subscriber\",'Enrollment Form'!$C174=\"ROC\"),\"-\",IF(AND('Enrollment Form'!$B174=\"Subscriber\",'Enrollment Form'!$C174=\"Enroll\",'Enrollment Form'!$AN174<>\"\"),\"Y\",\"N\")))","v":""},{"$f":"IF($B167=\"N\",\"\",IF(OR('Enrollment Form'!$B174<>\"Subscriber\",'Enrollment Form'!$C174=\"ROC\"),\"-\",IF(AND('Enrollment Form'!$B174=\"Subscriber\",'Enrollment Form'!$C174=\"Enroll\",'Enrollment Form'!$AP174<>\"\"),\"Y\",\"N\")))","v":""},{"$f":"IF($B167=\"N\",\"\",IF($Q167=\"-\",\"-\",IF(AND($Q167=\"Y\",'Enrollment Form'!$AP174=\"No\"),\"-\",IF(AND($Q167=\"Y\",'Enrollment Form'!$AP174=\"Yes\",'Enrollment Form'!$AQ174<>\"\"),\"Y\",\"N\"))))","v":""},{"$f":"IF($B167=\"N\",\"\",IF(OR('Enrollment Form'!$B174<>\"Subscriber\",'Enrollment Form'!$C174=\"ROC\"),\"-\",IF(AND('Enrollment Form'!$B174=\"Subscriber\",'Enrollment Form'!$C174=\"Enroll\",'Enrollment Form'!$CO174<>\"\"),\"Y\",\"N\")))","v":""},{"$f":"IF($B167=\"N\",\"\",IF($S167=\"-\",\"-\",IF(AND($S167=\"Y\",'Enrollment Form'!$CO174=\"No\"),\"-\",IF(AND($S167=\"Y\",'Enrollment Form'!$CO174=\"Yes\",'Enrollment Form'!$CP174<>\"\"),\"Y\",\"N\"))))","v":""},{"$f":"IF(OR('Enrollment Form'!$AV174=\"Yes\",'Enrollment Form'!$AV174=\"\"),\"-\",IF(AND('Enrollment Form'!$AV174=\"No\",ISERROR(FIND(\"HMO\",VLOOKUP('Enrollment Form'!G174,'Enrollment Form'!H$11:J$1000,3,FALSE),1))=FALSE,COUNTA('Enrollment Form'!$AW174:$AZ174)=4),\"Y\",\"N\"))","v":"-"},{"$f":"IF($B167=\"N\",\"\",IF('Enrollment Form'!$B174=\"Subscriber\",\"-\",IF(COUNTA('Enrollment Form'!$BE174,'Enrollment Form'!$BG174)=2,\"Y\",\"N\")))","v":""},{"$f":"IF($B167=\"N\",\"\",IF(OR('Enrollment Form'!$AU174=\"\",'Enrollment Form'!$AU174=\"No\"),\"-\",IF(AND('Enrollment Form'!$AU174=\"Yes\",COUNTA('Enrollment Form'!$CK174)=1),\"Y\",\"N\")))","v":""},{"$f":"IF(OR('Enrollment Form'!$CK174=\"\",'Enrollment Form'!$CK174=\"No\"),\"-\",IF(COUNTA('Enrollment Form'!$CM174:$CN174)=2,\"Y\",\"N\"))","v":"-"},{"$f":"IF($B167=\"N\",\"\",IF(COUNTIF('Enrollment Form'!$CZ174:$DO174,\"Other\")=COUNTA('Enrollment Form'!$DF174,'Enrollment Form'!$DA174,'Enrollment Form'!$DK174,'Enrollment Form'!$DP174),\"Y\",\"N\"))","v":""},{"$f":"IF($B167=\"N\",\"\",IF(OR('Enrollment Form'!B174<>\"Subscriber\",'Enrollment Form'!C174=\"ROC\",COUNTIF('Enrollment Form'!AS174:AT174,\"Yes\")>=1),\"-\",IF(AND('Enrollment Form'!C174=\"Enroll\",COUNTIF('Enrollment Form'!AS174:AT174,\"No\")=2,'Enrollment Form'!AU174=\"\"),\"N\",\"Y\")))","v":""},{"$f":"IF(OR(B167=\"N\",'Enrollment Form'!B174<>\"Subscriber\",'Enrollment Form'!C174=\"ROC\",'Enrollment Form'!O174<>\"Multiple of Salary\"),\"-\",IF(COUNTA('Enrollment Form'!T174:U174)<2,\"N\",\"Y\"))","v":"-"},{"$f":"IF(B167=\"N\",\"\",IF(OR('Enrollment Form'!C174=\"ROC\",'Enrollment Form'!B174<>\"Subscriber\",'Enrollment Form'!O174=\"Waive\",'Enrollment Form'!O174=\"\"),\"-\",IF('Enrollment Form'!P174=\"\",\"N\",\"Y\")))","v":""},{"$f":"IF($B167=\"N\",\"\",IF(AND('Enrollment Form'!$C174=\"ROC\",'Enrollment Form'!$DS174<>\"\"),\"Y\",IF(AND('Enrollment Form'!$C174=\"ROC\",'Enrollment Form'!$DS174=\"\"),\"N\",IF(AND('Enrollment Form'!$C174=\"Enroll\",'Enrollment Form'!$B174=\"Subscriber\",'Enrollment Form'!$CQ174=\"No\",'Enrollment Form'!$DS174=\"\"),\"N\",IF(AND('Enrollment Form'!$C174=\"Enroll\",'Enrollment Form'!$B174=\"Subscriber\",'Enrollment Form'!$CQ174=\"Yes\"),\"-\",\"Y\")))))","v":""},{"$f":"IF($B167=\"N\",\"\",IF(AND('Enrollment Form'!$C174=\"ROC\",'Enrollment Form'!$DT174<>\"\"),\"Y\",IF(AND('Enrollment Form'!$C174=\"ROC\",'Enrollment Form'!$DT174=\"\"),\"N\",IF(AND('Enrollment Form'!$C174=\"Enroll\",'Enrollment Form'!$B174=\"Subscriber\",'Enrollment Form'!$CQ174=\"No\",'Enrollment Form'!$DT174=\"\"),\"N\",IF(AND('Enrollment Form'!$C174=\"Enroll\",'Enrollment Form'!$B174=\"Subscriber\",'Enrollment Form'!$CQ174=\"Yes\"),\"-\",\"Y\")))))","v":""},{"$f":"IF('Enrollment Form'!AH174=\"\",\"\",IF(ISERROR(SEARCH(\".\",'Enrollment Form'!AH174,SEARCH(\"@\",'Enrollment Form'!AH174))),\"N\",\"Y\"))","v":""},{"$f":"IF(OR($B167=\"N\",'Enrollment Form'!$G174=\"\"),\"\",IF('Enrollment Form'!$B174<>\"Subscriber\",\"-\",IF(COUNTIF('Enrollment Form'!$AS174:$AT174,\"Yes\")=2,\"N\",\"Y\")))","v":""},{"$f":"IF(OR('Enrollment Form'!$CC174=\"\",'Enrollment Form'!$CC174=\"No\"),\"-\",IF(AND('Enrollment Form'!$CC174=\"Yes\",'Enrollment Form'!$CD174=\"\"),\"N\",\"Y\"))","v":"-"},{"$f":"IF(OR('Enrollment Form'!$CE174=\"\",'Enrollment Form'!$CE174=\"No\"),\"-\",IF(AND('Enrollment Form'!$CE174=\"Yes\",'Enrollment Form'!$CF174=\"\"),\"N\",\"Y\"))","v":"-"},{"$f":"IF(OR('Enrollment Form'!$CG174=\"\",'Enrollment Form'!$CG174=\"No\"),\"-\",IF(AND('Enrollment Form'!$CG174=\"Yes\",'Enrollment Form'!$CH174=\"\"),\"N\",\"Y\"))","v":"-"},{"$f":"IF(OR('Enrollment Form'!$CG174=\"\",'Enrollment Form'!$CG174=\"No\"),\"-\",IF(AND('Enrollment Form'!$CG174=\"Yes\",'Enrollment Form'!$CI174=\"\"),\"N\",\"Y\"))","v":"-"},{"$f":"IF('Enrollment Form'!B174<>\"Subscriber\",\"-\",IF(AND('Enrollment Form'!B174=\"Subscriber\",'Enrollment Form'!C174=\"Enroll\",'Enrollment Form'!AA174=\"\"),\"N\",\"Y\"))","v":"-"},{"$f":"IF(OR('Enrollment Form'!B174=\"Subscriber\",'Enrollment Form'!B174=\"\"),\"-\",IF('Enrollment Form'!BI174=\"\",\"N\",\"Y\"))","v":"-"},{"$f":"IF('Enrollment Form'!B174<>\"Subscriber\",\"-\",IF(AND('Enrollment Form'!B174=\"Subscriber\",'Enrollment Form'!G174=\"\"),\"N\",\"Y\"))","v":"-"},{"$f":"IF('Enrollment Form'!A174=\"\",\"\",IF('Enrollment Form'!B174=\"Subscriber\",\"-\",IF(AND('Enrollment Form'!B174<>\"Subscriber\",'Enrollment Form'!G174='Enrollment Form'!H174),\"N\",\"Y\")))","v":""},0]
[175,{"$f":"IF('Enrollment Form'!$A175<>\"\",\"Y\",\"N\")","v":"N"},{"$f":"IF(AND('Enrollment Form'!$B175=\"\",'Enrollment Form'!$C175<>\"\"),\"N\",IF($B168=\"N\",\"\",\"Y\"))","v":""},{"$f":"IF(OR($B168=\"N\",'Enrollment Form'!G175=\"\"),\"\",IF('Enrollment Form'!$B175<>\"Subscriber\",\"\",IF('Enrollment Form'!$G175='Enrollment Form'!$H175,\"Y\",\"N\")))","v":""},{"$f":"IF($B168=\"N\",\"\",IF(AND(COUNTIFS('Enrollment Form'!$H$11:$H$1000,'Enrollment Form'!$H175,'Enrollment Form'!$B$11:$B$1000,'Enrollment Form'!$B175)>1,'Enrollment Form'!$H175<>\"\"),\"N\",\"Y\"))","v":""},{"$f":"IF($B168=\"N\",\"\",IF(LEN('Enrollment Form'!$Y175)=0,\"\",IF(LEN('Enrollment Form'!$Y175)<>5,\"N\",\"Y\")))","v":""},{"$f":"IF($B168=\"N\",\"\",IF(LEN('Enrollment Form'!$AD175=0),\"\",IF(LEN('Enrollment Form'!$AD175)<>5,\"N\",\"Y\")))","v":""},{"$f":"IF($B168=\"N\",\"\",IF(LEN('Enrollment Form'!$BL175=0),\"\",IF(LEN('Enrollment Form'!$BL175)<>5,\"N\",\"Y\")))","v":""},{"$f":"IF($B168=\"N\",\"\",IF(LEN('Enrollment Form'!$AE175)=0,\"\",IF(LEN('Enrollment Form'!$AE175)<>10,\"N\",\"Y\")))","v":""},{"$f":"IF($B168=\"N\",\"\",IF(LEN('Enrollment Form'!$AF175)=0,\"\",IF(LEN('Enrollment Form'!$AF175)<>10,\"N\",\"Y\")))","v":""},{"$f":"IF('Enrollment Form'!$O175<>\"Graded\",\"-\",IF(AND('Enrollment Form'!$O175=\"Graded\",'Enrollment Form'!$AO175<>\"\"),\"Y\",\"N\"))","v":"-"},{"$f":"IF($B168=\"N\",\"\",IF(OR('Enrollment Form'!$B175<>\"Subscriber\",'Enrollment Form'!$C175=\"ROC\"),\"-\",IF(AND('Enrollment Form'!$B175=\"Subscriber\",'Enrollment Form'!$C175=\"Enroll\",'Enrollment Form'!$AJ175<>\"\"),\"Y\",\"N\")))","v":""},{"$f":"IF($B168=\"N\",\"\",IF(OR('Enrollment Form'!$B175<>\"Subscriber\",'Enrollment Form'!$C175=\"ROC\"),\"-\",IF(AND('Enrollment Form'!$B175=\"Subscriber\",'Enrollment Form'!$C175=\"Enroll\",'Enrollment Form'!$AK175<>\"\"),\"Y\",\"N\")))","v":""},{"$f":"IF($B168=\"N\",\"\",IF(OR('Enrollment Form'!$B175<>\"Subscriber\",'Enrollment Form'!$C175=\"ROC\"),\"-\",IF(AND('Enrollment Form'!$B175=\"Subscriber\",'Enrollment Form'!$C175=\"Enroll\",'Enrollment Form'!$AL175<>\"\"),\"Y\",\"N\")))","v":""},{"$f":"IF($B168=\"N\",\"\",IF(OR('Enrollment Form'!$B175<>\"Subscriber\",'Enrollment Form'!$C175=\"ROC\"),\"-\",IF(AND('Enrollment Form'!$B175=\"Subscriber\",'Enrollment Form'!$C175=\"Enroll\",'Enrollment Form'!$AM175<>\"\"),\"Y\",\"N\")))","v":""},{"$f":"IF($B168=\"N\",\"\",IF(OR('Enrollment Form'!$B175<>\"Subscriber\",'Enrollment Form'!$C175=\"ROC\"),\"-\",IF(AND('Enrollment Form'!$B175=\"Subscriber\",'Enrollment Form'!$C175=\"Enroll\",'Enrollment Form'!$AN175<>\"\"),\"Y\",\"N\")))","v":""},{"$f":"IF($B168=\"N\",\"\",IF(OR('Enrollment Form'!$B175<>\"Subscriber\",'Enrollment Form'!$C175=\"ROC\"),\"-\",IF(AND('Enrollment Form'!$B175=\"Subscriber\",'Enrollment Form'!$C175=\"Enroll\",'Enrollment Form'!$AP175<>\"\"),\"Y\",\"N\")))","v":""},{"$f":"IF($B168=\"N\",\"\",IF($Q168=\"-\",\"-\",IF(AND($Q168=\"Y\",'Enrollment Form'!$AP175=\"No\"),\"-\",IF(AND($Q168=\"Y\",'Enrollment Form'!$AP175=\"Yes\",'Enrollment Form'!$AQ175<>\"\"),\"Y\",\"N\"))))","v":""},{"$f":"IF($B168=\"N\",\"\",IF(OR('Enrollment Form'!$B175<>\"Subscriber\",'Enrollment Form'!$C175=\"ROC\"),\"-\",IF(AND('Enrollment Form'!$B175=\"Subscriber\",'Enrollment Form'!$C175=\"Enroll\",'Enrollment Form'!$CO175<>\"\"),\"Y\",\"N\")))","v":""},{"$f":"IF($B168=\"N\",\"\",IF($S168=\"-\",\"-\",IF(AND($S168=\"Y\",'Enrollment Form'!$CO175=\"No\"),\"-\",IF(AND($S168=\"Y\",'Enrollment Form'!$CO175=\"Yes\",'Enrollment Form'!$CP175<>\"\"),\"Y\",\"N\"))))","v":""},{"$f":"IF(OR('Enrollment Form'!$AV175=\"Yes\",'Enrollment Form'!$AV175=\"\"),\"-\",IF(AND('Enrollment Form'!$AV175=\"No\",ISERROR(FIND(\"HMO\",VLOOKUP('Enrollment Form'!G175,'Enrollment Form'!H$11:J$1000,3,FALSE),1))=FALSE,COUNTA('Enrollment Form'!$AW175:$AZ175)=4),\"Y\",\"N\"))","v":"-"},{"$f":"IF($B168=\"N\",\"\",IF('Enrollment Form'!$B175=\"Subscriber\",\"-\",IF(COUNTA('Enrollment Form'!$BE175,'Enrollment Form'!$BG175)=2,\"Y\",\"N\")))","v":""},{"$f":"IF($B168=\"N\",\"\",IF(OR('Enrollment Form'!$AU175=\"\",'Enrollment Form'!$AU175=\"No\"),\"-\",IF(AND('Enrollment Form'!$AU175=\"Yes\",COUNTA('Enrollment Form'!$CK175)=1),\"Y\",\"N\")))","v":""},{"$f":"IF(OR('Enrollment Form'!$CK175=\"\",'Enrollment Form'!$CK175=\"No\"),\"-\",IF(COUNTA('Enrollment Form'!$CM175:$CN175)=2,\"Y\",\"N\"))","v":"-"},{"$f":"IF($B168=\"N\",\"\",IF(COUNTIF('Enrollment Form'!$CZ175:$DO175,\"Other\")=COUNTA('Enrollment Form'!$DF175,'Enrollment Form'!$DA175,'Enrollment Form'!$DK175,'Enrollment Form'!$DP175),\"Y\",\"N\"))","v":""},{"$f":"IF($B168=\"N\",\"\",IF(OR('Enrollment Form'!B175<>\"Subscriber\",'Enrollment Form'!C175=\"ROC\",COUNTIF('Enrollment Form'!AS175:AT175,\"Yes\")>=1),\"-\",IF(AND('Enrollment Form'!C175=\"Enroll\",COUNTIF('Enrollment Form'!AS175:AT175,\"No\")=2,'Enrollment Form'!AU175=\"\"),\"N\",\"Y\")))","v":""},{"$f":"IF(OR(B168=\"N\",'Enrollment Form'!B175<>\"Subscriber\",'Enrollment Form'!C175=\"ROC\",'Enrollment Form'!O175<>\"Multiple of Salary\"),\"-\",IF(COUNTA('Enrollment Form'!T175:U175)<2,\"N\",\"Y\"))","v":"-"},{"$f":"IF(B168=\"N\",\"\",IF(OR('Enrollment Form'!C175=\"ROC\",'Enrollment Form'!B175<>\"Subscriber\",'Enrollment Form'!O175=\"Waive\",'Enrollment Form'!O175=\"\"),\"-\",IF('Enrollment Form'!P175=\"\",\"N\",\"Y\")))","v":""},{"$f":"IF($B168=\"N\",\"\",IF(AND('Enrollment Form'!$C175=\"ROC\",'Enrollment Form'!$DS175<>\"\"),\"Y\",IF(AND('Enrollment Form'!$C175=\"ROC\",'Enrollment Form'!$DS175=\"\"),\"N\",IF(AND('Enrollment Form'!$C175=\"Enroll\",'Enrollment Form'!$B175=\"Subscriber\",'Enrollment Form'!$CQ175=\"No\",'Enrollment Form'!$DS175=\"\"),\"N\",IF(AND('Enrollment Form'!$C175=\"Enroll\",'Enrollment Form'!$B175=\"Subscriber\",'Enrollment Form'!$CQ175=\"Yes\"),\"-\",\"Y\")))))","v":""},{"$f":"IF($B168=\"N\",\"\",IF(AND('Enrollment Form'!$C175=\"ROC\",'Enrollment Form'!$DT175<>\"\"),\"Y\",IF(AND('Enrollment Form'!$C175=\"ROC\",'Enrollment Form'!$DT175=\"\"),\"N\",IF(AND('Enrollment Form'!$C175=\"Enroll\",'Enrollment Form'!$B175=\"Subscriber\",'Enrollment Form'!$CQ175=\"No\",'Enrollment Form'!$DT175=\"\"),\"N\",IF(AND('Enrollment Form'!$C175=\"Enroll\",'Enrollment Form'!$B175=\"Subscriber\",'Enrollment Form'!$CQ175=\"Yes\"),\"-\",\"Y\")))))","v":""},{"$f":"IF('Enrollment Form'!AH175=\"\",\"\",IF(ISERROR(SEARCH(\".\",'Enrollment Form'!AH175,SEARCH(\"@\",'Enrollment Form'!AH175))),\"N\",\"Y\"))","v":""},{"$f":"IF(OR($B168=\"N\",'Enrollment Form'!$G175=\"\"),\"\",IF('Enrollment Form'!$B175<>\"Subscriber\",\"-\",IF(COUNTIF('Enrollment Form'!$AS175:$AT175,\"Yes\")=2,\"N\",\"Y\")))","v":""},{"$f":"IF(OR('Enrollment Form'!$CC175=\"\",'Enrollment Form'!$CC175=\"No\"),\"-\",IF(AND('Enrollment Form'!$CC175=\"Yes\",'Enrollment Form'!$CD175=\"\"),\"N\",\"Y\"))","v":"-"},{"$f":"IF(OR('Enrollment Form'!$CE175=\"\",'Enrollment Form'!$CE175=\"No\"),\"-\",IF(AND('Enrollment Form'!$CE175=\"Yes\",'Enrollment Form'!$CF175=\"\"),\"N\",\"Y\"))","v":"-"},{"$f":"IF(OR('Enrollment Form'!$CG175=\"\",'Enrollment Form'!$CG175=\"No\"),\"-\",IF(AND('Enrollment Form'!$CG175=\"Yes\",'Enrollment Form'!$CH175=\"\"),\"N\",\"Y\"))","v":"-"},{"$f":"IF(OR('Enrollment Form'!$CG175=\"\",'Enrollment Form'!$CG175=\"No\"),\"-\",IF(AND('Enrollment Form'!$CG175=\"Yes\",'Enrollment Form'!$CI175=\"\"),\"N\",\"Y\"))","v":"-"},{"$f":"IF('Enrollment Form'!B175<>\"Subscriber\",\"-\",IF(AND('Enrollment Form'!B175=\"Subscriber\",'Enrollment Form'!C175=\"Enroll\",'Enrollment Form'!AA175=\"\"),\"N\",\"Y\"))","v":"-"},{"$f":"IF(OR('Enrollment Form'!B175=\"Subscriber\",'Enrollment Form'!B175=\"\"),\"-\",IF('Enrollment Form'!BI175=\"\",\"N\",\"Y\"))","v":"-"},{"$f":"IF('Enrollment Form'!B175<>\"Subscriber\",\"-\",IF(AND('Enrollment Form'!B175=\"Subscriber\",'Enrollment Form'!G175=\"\"),\"N\",\"Y\"))","v":"-"},{"$f":"IF('Enrollment Form'!A175=\"\",\"\",IF('Enrollment Form'!B175=\"Subscriber\",\"-\",IF(AND('Enrollment Form'!B175<>\"Subscriber\",'Enrollment Form'!G175='Enrollment Form'!H175),\"N\",\"Y\")))","v":""},0]
[176,{"$f":"IF('Enrollment Form'!$A176<>\"\",\"Y\",\"N\")","v":"N"},{"$f":"IF(AND('Enrollment Form'!$B176=\"\",'Enrollment Form'!$C176<>\"\"),\"N\",IF($B169=\"N\",\"\",\"Y\"))","v":""},{"$f":"IF(OR($B169=\"N\",'Enrollment Form'!G176=\"\"),\"\",IF('Enrollment Form'!$B176<>\"Subscriber\",\"\",IF('Enrollment Form'!$G176='Enrollment Form'!$H176,\"Y\",\"N\")))","v":""},{"$f":"IF($B169=\"N\",\"\",IF(AND(COUNTIFS('Enrollment Form'!$H$11:$H$1000,'Enrollment Form'!$H176,'Enrollment Form'!$B$11:$B$1000,'Enrollment Form'!$B176)>1,'Enrollment Form'!$H176<>\"\"),\"N\",\"Y\"))","v":""},{"$f":"IF($B169=\"N\",\"\",IF(LEN('Enrollment Form'!$Y176)=0,\"\",IF(LEN('Enrollment Form'!$Y176)<>5,\"N\",\"Y\")))","v":""},{"$f":"IF($B169=\"N\",\"\",IF(LEN('Enrollment Form'!$AD176=0),\"\",IF(LEN('Enrollment Form'!$AD176)<>5,\"N\",\"Y\")))","v":""},{"$f":"IF($B169=\"N\",\"\",IF(LEN('Enrollment Form'!$BL176=0),\"\",IF(LEN('Enrollment Form'!$BL176)<>5,\"N\",\"Y\")))","v":""},{"$f":"IF($B169=\"N\",\"\",IF(LEN('Enrollment Form'!$AE176)=0,\"\",IF(LEN('Enrollment Form'!$AE176)<>10,\"N\",\"Y\")))","v":""},{"$f":"IF($B169=\"N\",\"\",IF(LEN('Enrollment Form'!$AF176)=0,\"\",IF(LEN('Enrollment Form'!$AF176)<>10,\"N\",\"Y\")))","v":""},{"$f":"IF('Enrollment Form'!$O176<>\"Graded\",\"-\",IF(AND('Enrollment Form'!$O176=\"Graded\",'Enrollment Form'!$AO176<>\"\"),\"Y\",\"N\"))","v":"-"},{"$f":"IF($B169=\"N\",\"\",IF(OR('Enrollment Form'!$B176<>\"Subscriber\",'Enrollment Form'!$C176=\"ROC\"),\"-\",IF(AND('Enrollment Form'!$B176=\"Subscriber\",'Enrollment Form'!$C176=\"Enroll\",'Enrollment Form'!$AJ176<>\"\"),\"Y\",\"N\")))","v":""},{"$f":"IF($B169=\"N\",\"\",IF(OR('Enrollment Form'!$B176<>\"Subscriber\",'Enrollment Form'!$C176=\"ROC\"),\"-\",IF(AND('Enrollment Form'!$B176=\"Subscriber\",'Enrollment Form'!$C176=\"Enroll\",'Enrollment Form'!$AK176<>\"\"),\"Y\",\"N\")))","v":""},{"$f":"IF($B169=\"N\",\"\",IF(OR('Enrollment Form'!$B176<>\"Subscriber\",'Enrollment Form'!$C176=\"ROC\"),\"-\",IF(AND('Enrollment Form'!$B176=\"Subscriber\",'Enrollment Form'!$C176=\"Enroll\",'Enrollment Form'!$AL176<>\"\"),\"Y\",\"N\")))","v":""},{"$f":"IF($B169=\"N\",\"\",IF(OR('Enrollment Form'!$B176<>\"Subscriber\",'Enrollment Form'!$C176=\"ROC\"),\"-\",IF(AND('Enrollment Form'!$B176=\"Subscriber\",'Enrollment Form'!$C176=\"Enroll\",'Enrollment Form'!$AM176<>\"\"),\"Y\",\"N\")))","v":""},{"$f":"IF($B169=\"N\",\"\",IF(OR('Enrollment Form'!$B176<>\"Subscriber\",'Enrollment Form'!$C176=\"ROC\"),\"-\",IF(AND('Enrollment Form'!$B176=\"Subscriber\",'Enrollment Form'!$C176=\"Enroll\",'Enrollment Form'!$AN176<>\"\"),\"Y\",\"N\")))","v":""},{"$f":"IF($B169=\"N\",\"\",IF(OR('Enrollment Form'!$B176<>\"Subscriber\",'Enrollment Form'!$C176=\"ROC\"),\"-\",IF(AND('Enrollment Form'!$B176=\"Subscriber\",'Enrollment Form'!$C176=\"Enroll\",'Enrollment Form'!$AP176<>\"\"),\"Y\",\"N\")))","v":""},{"$f":"IF($B169=\"N\",\"\",IF($Q169=\"-\",\"-\",IF(AND($Q169=\"Y\",'Enrollment Form'!$AP176=\"No\"),\"-\",IF(AND($Q169=\"Y\",'Enrollment Form'!$AP176=\"Yes\",'Enrollment Form'!$AQ176<>\"\"),\"Y\",\"N\"))))","v":""},{"$f":"IF($B169=\"N\",\"\",IF(OR('Enrollment Form'!$B176<>\"Subscriber\",'Enrollment Form'!$C176=\"ROC\"),\"-\",IF(AND('Enrollment Form'!$B176=\"Subscriber\",'Enrollment Form'!$C176=\"Enroll\",'Enrollment Form'!$CO176<>\"\"),\"Y\",\"N\")))","v":""},{"$f":"IF($B169=\"N\",\"\",IF($S169=\"-\",\"-\",IF(AND($S169=\"Y\",'Enrollment Form'!$CO176=\"No\"),\"-\",IF(AND($S169=\"Y\",'Enrollment Form'!$CO176=\"Yes\",'Enrollment Form'!$CP176<>\"\"),\"Y\",\"N\"))))","v":""},{"$f":"IF(OR('Enrollment Form'!$AV176=\"Yes\",'Enrollment Form'!$AV176=\"\"),\"-\",IF(AND('Enrollment Form'!$AV176=\"No\",ISERROR(FIND(\"HMO\",VLOOKUP('Enrollment Form'!G176,'Enrollment Form'!H$11:J$1000,3,FALSE),1))=FALSE,COUNTA('Enrollment Form'!$AW176:$AZ176)=4),\"Y\",\"N\"))","v":"-"},{"$f":"IF($B169=\"N\",\"\",IF('Enrollment Form'!$B176=\"Subscriber\",\"-\",IF(COUNTA('Enrollment Form'!$BE176,'Enrollment Form'!$BG176)=2,\"Y\",\"N\")))","v":""},{"$f":"IF($B169=\"N\",\"\",IF(OR('Enrollment Form'!$AU176=\"\",'Enrollment Form'!$AU176=\"No\"),\"-\",IF(AND('Enrollment Form'!$AU176=\"Yes\",COUNTA('Enrollment Form'!$CK176)=1),\"Y\",\"N\")))","v":""},{"$f":"IF(OR('Enrollment Form'!$CK176=\"\",'Enrollment Form'!$CK176=\"No\"),\"-\",IF(COUNTA('Enrollment Form'!$CM176:$CN176)=2,\"Y\",\"N\"))","v":"-"},{"$f":"IF($B169=\"N\",\"\",IF(COUNTIF('Enrollment Form'!$CZ176:$DO176,\"Other\")=COUNTA('Enrollment Form'!$DF176,'Enrollment Form'!$DA176,'Enrollment Form'!$DK176,'Enrollment Form'!$DP176),\"Y\",\"N\"))","v":""},{"$f":"IF($B169=\"N\",\"\",IF(OR('Enrollment Form'!B176<>\"Subscriber\",'Enrollment Form'!C176=\"ROC\",COUNTIF('Enrollment Form'!AS176:AT176,\"Yes\")>=1),\"-\",IF(AND('Enrollment Form'!C176=\"Enroll\",COUNTIF('Enrollment Form'!AS176:AT176,\"No\")=2,'Enrollment Form'!AU176=\"\"),\"N\",\"Y\")))","v":""},{"$f":"IF(OR(B169=\"N\",'Enrollment Form'!B176<>\"Subscriber\",'Enrollment Form'!C176=\"ROC\",'Enrollment Form'!O176<>\"Multiple of Salary\"),\"-\",IF(COUNTA('Enrollment Form'!T176:U176)<2,\"N\",\"Y\"))","v":"-"},{"$f":"IF(B169=\"N\",\"\",IF(OR('Enrollment Form'!C176=\"ROC\",'Enrollment Form'!B176<>\"Subscriber\",'Enrollment Form'!O176=\"Waive\",'Enrollment Form'!O176=\"\"),\"-\",IF('Enrollment Form'!P176=\"\",\"N\",\"Y\")))","v":""},{"$f":"IF($B169=\"N\",\"\",IF(AND('Enrollment Form'!$C176=\"ROC\",'Enrollment Form'!$DS176<>\"\"),\"Y\",IF(AND('Enrollment Form'!$C176=\"ROC\",'Enrollment Form'!$DS176=\"\"),\"N\",IF(AND('Enrollment Form'!$C176=\"Enroll\",'Enrollment Form'!$B176=\"Subscriber\",'Enrollment Form'!$CQ176=\"No\",'Enrollment Form'!$DS176=\"\"),\"N\",IF(AND('Enrollment Form'!$C176=\"Enroll\",'Enrollment Form'!$B176=\"Subscriber\",'Enrollment Form'!$CQ176=\"Yes\"),\"-\",\"Y\")))))","v":""},{"$f":"IF($B169=\"N\",\"\",IF(AND('Enrollment Form'!$C176=\"ROC\",'Enrollment Form'!$DT176<>\"\"),\"Y\",IF(AND('Enrollment Form'!$C176=\"ROC\",'Enrollment Form'!$DT176=\"\"),\"N\",IF(AND('Enrollment Form'!$C176=\"Enroll\",'Enrollment Form'!$B176=\"Subscriber\",'Enrollment Form'!$CQ176=\"No\",'Enrollment Form'!$DT176=\"\"),\"N\",IF(AND('Enrollment Form'!$C176=\"Enroll\",'Enrollment Form'!$B176=\"Subscriber\",'Enrollment Form'!$CQ176=\"Yes\"),\"-\",\"Y\")))))","v":""},{"$f":"IF('Enrollment Form'!AH176=\"\",\"\",IF(ISERROR(SEARCH(\".\",'Enrollment Form'!AH176,SEARCH(\"@\",'Enrollment Form'!AH176))),\"N\",\"Y\"))","v":""},{"$f":"IF(OR($B169=\"N\",'Enrollment Form'!$G176=\"\"),\"\",IF('Enrollment Form'!$B176<>\"Subscriber\",\"-\",IF(COUNTIF('Enrollment Form'!$AS176:$AT176,\"Yes\")=2,\"N\",\"Y\")))","v":""},{"$f":"IF(OR('Enrollment Form'!$CC176=\"\",'Enrollment Form'!$CC176=\"No\"),\"-\",IF(AND('Enrollment Form'!$CC176=\"Yes\",'Enrollment Form'!$CD176=\"\"),\"N\",\"Y\"))","v":"-"},{"$f":"IF(OR('Enrollment Form'!$CE176=\"\",'Enrollment Form'!$CE176=\"No\"),\"-\",IF(AND('Enrollment Form'!$CE176=\"Yes\",'Enrollment Form'!$CF176=\"\"),\"N\",\"Y\"))","v":"-"},{"$f":"IF(OR('Enrollment Form'!$CG176=\"\",'Enrollment Form'!$CG176=\"No\"),\"-\",IF(AND('Enrollment Form'!$CG176=\"Yes\",'Enrollment Form'!$CH176=\"\"),\"N\",\"Y\"))","v":"-"},{"$f":"IF(OR('Enrollment Form'!$CG176=\"\",'Enrollment Form'!$CG176=\"No\"),\"-\",IF(AND('Enrollment Form'!$CG176=\"Yes\",'Enrollment Form'!$CI176=\"\"),\"N\",\"Y\"))","v":"-"},{"$f":"IF('Enrollment Form'!B176<>\"Subscriber\",\"-\",IF(AND('Enrollment Form'!B176=\"Subscriber\",'Enrollment Form'!C176=\"Enroll\",'Enrollment Form'!AA176=\"\"),\"N\",\"Y\"))","v":"-"},{"$f":"IF(OR('Enrollment Form'!B176=\"Subscriber\",'Enrollment Form'!B176=\"\"),\"-\",IF('Enrollment Form'!BI176=\"\",\"N\",\"Y\"))","v":"-"},{"$f":"IF('Enrollment Form'!B176<>\"Subscriber\",\"-\",IF(AND('Enrollment Form'!B176=\"Subscriber\",'Enrollment Form'!G176=\"\"),\"N\",\"Y\"))","v":"-"},{"$f":"IF('Enrollment Form'!A176=\"\",\"\",IF('Enrollment Form'!B176=\"Subscriber\",\"-\",IF(AND('Enrollment Form'!B176<>\"Subscriber\",'Enrollment Form'!G176='Enrollment Form'!H176),\"N\",\"Y\")))","v":""},0]
[177,{"$f":"IF('Enrollment Form'!$A177<>\"\",\"Y\",\"N\")","v":"N"},{"$f":"IF(AND('Enrollment Form'!$B177=\"\",'Enrollment Form'!$C177<>\"\"),\"N\",IF($B170=\"N\",\"\",\"Y\"))","v":""},{"$f":"IF(OR($B170=\"N\",'Enrollment Form'!G177=\"\"),\"\",IF('Enrollment Form'!$B177<>\"Subscriber\",\"\",IF('Enrollment Form'!$G177='Enrollment Form'!$H177,\"Y\",\"N\")))","v":""},{"$f":"IF($B170=\"N\",\"\",IF(AND(COUNTIFS('Enrollment Form'!$H$11:$H$1000,'Enrollment Form'!$H177,'Enrollment Form'!$B$11:$B$1000,'Enrollment Form'!$B177)>1,'Enrollment Form'!$H177<>\"\"),\"N\",\"Y\"))","v":""},{"$f":"IF($B170=\"N\",\"\",IF(LEN('Enrollment Form'!$Y177)=0,\"\",IF(LEN('Enrollment Form'!$Y177)<>5,\"N\",\"Y\")))","v":""},{"$f":"IF($B170=\"N\",\"\",IF(LEN('Enrollment Form'!$AD177=0),\"\",IF(LEN('Enrollment Form'!$AD177)<>5,\"N\",\"Y\")))","v":""},{"$f":"IF($B170=\"N\",\"\",IF(LEN('Enrollment Form'!$BL177=0),\"\",IF(LEN('Enrollment Form'!$BL177)<>5,\"N\",\"Y\")))","v":""},{"$f":"IF($B170=\"N\",\"\",IF(LEN('Enrollment Form'!$AE177)=0,\"\",IF(LEN('Enrollment Form'!$AE177)<>10,\"N\",\"Y\")))","v":""},{"$f":"IF($B170=\"N\",\"\",IF(LEN('Enrollment Form'!$AF177)=0,\"\",IF(LEN('Enrollment Form'!$AF177)<>10,\"N\",\"Y\")))","v":""},{"$f":"IF('Enrollment Form'!$O177<>\"Graded\",\"-\",IF(AND('Enrollment Form'!$O177=\"Graded\",'Enrollment Form'!$AO177<>\"\"),\"Y\",\"N\"))","v":"-"},{"$f":"IF($B170=\"N\",\"\",IF(OR('Enrollment Form'!$B177<>\"Subscriber\",'Enrollment Form'!$C177=\"ROC\"),\"-\",IF(AND('Enrollment Form'!$B177=\"Subscriber\",'Enrollment Form'!$C177=\"Enroll\",'Enrollment Form'!$AJ177<>\"\"),\"Y\",\"N\")))","v":""},{"$f":"IF($B170=\"N\",\"\",IF(OR('Enrollment Form'!$B177<>\"Subscriber\",'Enrollment Form'!$C177=\"ROC\"),\"-\",IF(AND('Enrollment Form'!$B177=\"Subscriber\",'Enrollment Form'!$C177=\"Enroll\",'Enrollment Form'!$AK177<>\"\"),\"Y\",\"N\")))","v":""},{"$f":"IF($B170=\"N\",\"\",IF(OR('Enrollment Form'!$B177<>\"Subscriber\",'Enrollment Form'!$C177=\"ROC\"),\"-\",IF(AND('Enrollment Form'!$B177=\"Subscriber\",'Enrollment Form'!$C177=\"Enroll\",'Enrollment Form'!$AL177<>\"\"),\"Y\",\"N\")))","v":""},{"$f":"IF($B170=\"N\",\"\",IF(OR('Enrollment Form'!$B177<>\"Subscriber\",'Enrollment Form'!$C177=\"ROC\"),\"-\",IF(AND('Enrollment Form'!$B177=\"Subscriber\",'Enrollment Form'!$C177=\"Enroll\",'Enrollment Form'!$AM177<>\"\"),\"Y\",\"N\")))","v":""},{"$f":"IF($B170=\"N\",\"\",IF(OR('Enrollment Form'!$B177<>\"Subscriber\",'Enrollment Form'!$C177=\"ROC\"),\"-\",IF(AND('Enrollment Form'!$B177=\"Subscriber\",'Enrollment Form'!$C177=\"Enroll\",'Enrollment Form'!$AN177<>\"\"),\"Y\",\"N\")))","v":""},{"$f":"IF($B170=\"N\",\"\",IF(OR('Enrollment Form'!$B177<>\"Subscriber\",'Enrollment Form'!$C177=\"ROC\"),\"-\",IF(AND('Enrollment Form'!$B177=\"Subscriber\",'Enrollment Form'!$C177=\"Enroll\",'Enrollment Form'!$AP177<>\"\"),\"Y\",\"N\")))","v":""},{"$f":"IF($B170=\"N\",\"\",IF($Q170=\"-\",\"-\",IF(AND($Q170=\"Y\",'Enrollment Form'!$AP177=\"No\"),\"-\",IF(AND($Q170=\"Y\",'Enrollment Form'!$AP177=\"Yes\",'Enrollment Form'!$AQ177<>\"\"),\"Y\",\"N\"))))","v":""},{"$f":"IF($B170=\"N\",\"\",IF(OR('Enrollment Form'!$B177<>\"Subscriber\",'Enrollment Form'!$C177=\"ROC\"),\"-\",IF(AND('Enrollment Form'!$B177=\"Subscriber\",'Enrollment Form'!$C177=\"Enroll\",'Enrollment Form'!$CO177<>\"\"),\"Y\",\"N\")))","v":""},{"$f":"IF($B170=\"N\",\"\",IF($S170=\"-\",\"-\",IF(AND($S170=\"Y\",'Enrollment Form'!$CO177=\"No\"),\"-\",IF(AND($S170=\"Y\",'Enrollment Form'!$CO177=\"Yes\",'Enrollment Form'!$CP177<>\"\"),\"Y\",\"N\"))))","v":""},{"$f":"IF(OR('Enrollment Form'!$AV177=\"Yes\",'Enrollment Form'!$AV177=\"\"),\"-\",IF(AND('Enrollment Form'!$AV177=\"No\",ISERROR(FIND(\"HMO\",VLOOKUP('Enrollment Form'!G177,'Enrollment Form'!H$11:J$1000,3,FALSE),1))=FALSE,COUNTA('Enrollment Form'!$AW177:$AZ177)=4),\"Y\",\"N\"))","v":"-"},{"$f":"IF($B170=\"N\",\"\",IF('Enrollment Form'!$B177=\"Subscriber\",\"-\",IF(COUNTA('Enrollment Form'!$BE177,'Enrollment Form'!$BG177)=2,\"Y\",\"N\")))","v":""},{"$f":"IF($B170=\"N\",\"\",IF(OR('Enrollment Form'!$AU177=\"\",'Enrollment Form'!$AU177=\"No\"),\"-\",IF(AND('Enrollment Form'!$AU177=\"Yes\",COUNTA('Enrollment Form'!$CK177)=1),\"Y\",\"N\")))","v":""},{"$f":"IF(OR('Enrollment Form'!$CK177=\"\",'Enrollment Form'!$CK177=\"No\"),\"-\",IF(COUNTA('Enrollment Form'!$CM177:$CN177)=2,\"Y\",\"N\"))","v":"-"},{"$f":"IF($B170=\"N\",\"\",IF(COUNTIF('Enrollment Form'!$CZ177:$DO177,\"Other\")=COUNTA('Enrollment Form'!$DF177,'Enrollment Form'!$DA177,'Enrollment Form'!$DK177,'Enrollment Form'!$DP177),\"Y\",\"N\"))","v":""},{"$f":"IF($B170=\"N\",\"\",IF(OR('Enrollment Form'!B177<>\"Subscriber\",'Enrollment Form'!C177=\"ROC\",COUNTIF('Enrollment Form'!AS177:AT177,\"Yes\")>=1),\"-\",IF(AND('Enrollment Form'!C177=\"Enroll\",COUNTIF('Enrollment Form'!AS177:AT177,\"No\")=2,'Enrollment Form'!AU177=\"\"),\"N\",\"Y\")))","v":""},{"$f":"IF(OR(B170=\"N\",'Enrollment Form'!B177<>\"Subscriber\",'Enrollment Form'!C177=\"ROC\",'Enrollment Form'!O177<>\"Multiple of Salary\"),\"-\",IF(COUNTA('Enrollment Form'!T177:U177)<2,\"N\",\"Y\"))","v":"-"},{"$f":"IF(B170=\"N\",\"\",IF(OR('Enrollment Form'!C177=\"ROC\",'Enrollment Form'!B177<>\"Subscriber\",'Enrollment Form'!O177=\"Waive\",'Enrollment Form'!O177=\"\"),\"-\",IF('Enrollment Form'!P177=\"\",\"N\",\"Y\")))","v":""},{"$f":"IF($B170=\"N\",\"\",IF(AND('Enrollment Form'!$C177=\"ROC\",'Enrollment Form'!$DS177<>\"\"),\"Y\",IF(AND('Enrollment Form'!$C177=\"ROC\",'Enrollment Form'!$DS177=\"\"),\"N\",IF(AND('Enrollment Form'!$C177=\"Enroll\",'Enrollment Form'!$B177=\"Subscriber\",'Enrollment Form'!$CQ177=\"No\",'Enrollment Form'!$DS177=\"\"),\"N\",IF(AND('Enrollment Form'!$C177=\"Enroll\",'Enrollment Form'!$B177=\"Subscriber\",'Enrollment Form'!$CQ177=\"Yes\"),\"-\",\"Y\")))))","v":""},{"$f":"IF($B170=\"N\",\"\",IF(AND('Enrollment Form'!$C177=\"ROC\",'Enrollment Form'!$DT177<>\"\"),\"Y\",IF(AND('Enrollment Form'!$C177=\"ROC\",'Enrollment Form'!$DT177=\"\"),\"N\",IF(AND('Enrollment Form'!$C177=\"Enroll\",'Enrollment Form'!$B177=\"Subscriber\",'Enrollment Form'!$CQ177=\"No\",'Enrollment Form'!$DT177=\"\"),\"N\",IF(AND('Enrollment Form'!$C177=\"Enroll\",'Enrollment Form'!$B177=\"Subscriber\",'Enrollment Form'!$CQ177=\"Yes\"),\"-\",\"Y\")))))","v":""},{"$f":"IF('Enrollment Form'!AH177=\"\",\"\",IF(ISERROR(SEARCH(\".\",'Enrollment Form'!AH177,SEARCH(\"@\",'Enrollment Form'!AH177))),\"N\",\"Y\"))","v":""},{"$f":"IF(OR($B170=\"N\",'Enrollment Form'!$G177=\"\"),\"\",IF('Enrollment Form'!$B177<>\"Subscriber\",\"-\",IF(COUNTIF('Enrollment Form'!$AS177:$AT177,\"Yes\")=2,\"N\",\"Y\")))","v":""},{"$f":"IF(OR('Enrollment Form'!$CC177=\"\",'Enrollment Form'!$CC177=\"No\"),\"-\",IF(AND('Enrollment Form'!$CC177=\"Yes\",'Enrollment Form'!$CD177=\"\"),\"N\",\"Y\"))","v":"-"},{"$f":"IF(OR('Enrollment Form'!$CE177=\"\",'Enrollment Form'!$CE177=\"No\"),\"-\",IF(AND('Enrollment Form'!$CE177=\"Yes\",'Enrollment Form'!$CF177=\"\"),\"N\",\"Y\"))","v":"-"},{"$f":"IF(OR('Enrollment Form'!$CG177=\"\",'Enrollment Form'!$CG177=\"No\"),\"-\",IF(AND('Enrollment Form'!$CG177=\"Yes\",'Enrollment Form'!$CH177=\"\"),\"N\",\"Y\"))","v":"-"},{"$f":"IF(OR('Enrollment Form'!$CG177=\"\",'Enrollment Form'!$CG177=\"No\"),\"-\",IF(AND('Enrollment Form'!$CG177=\"Yes\",'Enrollment Form'!$CI177=\"\"),\"N\",\"Y\"))","v":"-"},{"$f":"IF('Enrollment Form'!B177<>\"Subscriber\",\"-\",IF(AND('Enrollment Form'!B177=\"Subscriber\",'Enrollment Form'!C177=\"Enroll\",'Enrollment Form'!AA177=\"\"),\"N\",\"Y\"))","v":"-"},{"$f":"IF(OR('Enrollment Form'!B177=\"Subscriber\",'Enrollment Form'!B177=\"\"),\"-\",IF('Enrollment Form'!BI177=\"\",\"N\",\"Y\"))","v":"-"},{"$f":"IF('Enrollment Form'!B177<>\"Subscriber\",\"-\",IF(AND('Enrollment Form'!B177=\"Subscriber\",'Enrollment Form'!G177=\"\"),\"N\",\"Y\"))","v":"-"},{"$f":"IF('Enrollment Form'!A177=\"\",\"\",IF('Enrollment Form'!B177=\"Subscriber\",\"-\",IF(AND('Enrollment Form'!B177<>\"Subscriber\",'Enrollment Form'!G177='Enrollment Form'!H177),\"N\",\"Y\")))","v":""},0]
[178,{"$f":"IF('Enrollment Form'!$A178<>\"\",\"Y\",\"N\")","v":"N"},{"$f":"IF(AND('Enrollment Form'!$B178=\"\",'Enrollment Form'!$C178<>\"\"),\"N\",IF($B171=\"N\",\"\",\"Y\"))","v":""},{"$f":"IF(OR($B171=\"N\",'Enrollment Form'!G178=\"\"),\"\",IF('Enrollment Form'!$B178<>\"Subscriber\",\"\",IF('Enrollment Form'!$G178='Enrollment Form'!$H178,\"Y\",\"N\")))","v":""},{"$f":"IF($B171=\"N\",\"\",IF(AND(COUNTIFS('Enrollment Form'!$H$11:$H$1000,'Enrollment Form'!$H178,'Enrollment Form'!$B$11:$B$1000,'Enrollment Form'!$B178)>1,'Enrollment Form'!$H178<>\"\"),\"N\",\"Y\"))","v":""},{"$f":"IF($B171=\"N\",\"\",IF(LEN('Enrollment Form'!$Y178)=0,\"\",IF(LEN('Enrollment Form'!$Y178)<>5,\"N\",\"Y\")))","v":""},{"$f":"IF($B171=\"N\",\"\",IF(LEN('Enrollment Form'!$AD178=0),\"\",IF(LEN('Enrollment Form'!$AD178)<>5,\"N\",\"Y\")))","v":""},{"$f":"IF($B171=\"N\",\"\",IF(LEN('Enrollment Form'!$BL178=0),\"\",IF(LEN('Enrollment Form'!$BL178)<>5,\"N\",\"Y\")))","v":""},{"$f":"IF($B171=\"N\",\"\",IF(LEN('Enrollment Form'!$AE178)=0,\"\",IF(LEN('Enrollment Form'!$AE178)<>10,\"N\",\"Y\")))","v":""},{"$f":"IF($B171=\"N\",\"\",IF(LEN('Enrollment Form'!$AF178)=0,\"\",IF(LEN('Enrollment Form'!$AF178)<>10,\"N\",\"Y\")))","v":""},{"$f":"IF('Enrollment Form'!$O178<>\"Graded\",\"-\",IF(AND('Enrollment Form'!$O178=\"Graded\",'Enrollment Form'!$AO178<>\"\"),\"Y\",\"N\"))","v":"-"},{"$f":"IF($B171=\"N\",\"\",IF(OR('Enrollment Form'!$B178<>\"Subscriber\",'Enrollment Form'!$C178=\"ROC\"),\"-\",IF(AND('Enrollment Form'!$B178=\"Subscriber\",'Enrollment Form'!$C178=\"Enroll\",'Enrollment Form'!$AJ178<>\"\"),\"Y\",\"N\")))","v":""},{"$f":"IF($B171=\"N\",\"\",IF(OR('Enrollment Form'!$B178<>\"Subscriber\",'Enrollment Form'!$C178=\"ROC\"),\"-\",IF(AND('Enrollment Form'!$B178=\"Subscriber\",'Enrollment Form'!$C178=\"Enroll\",'Enrollment Form'!$AK178<>\"\"),\"Y\",\"N\")))","v":""},{"$f":"IF($B171=\"N\",\"\",IF(OR('Enrollment Form'!$B178<>\"Subscriber\",'Enrollment Form'!$C178=\"ROC\"),\"-\",IF(AND('Enrollment Form'!$B178=\"Subscriber\",'Enrollment Form'!$C178=\"Enroll\",'Enrollment Form'!$AL178<>\"\"),\"Y\",\"N\")))","v":""},{"$f":"IF($B171=\"N\",\"\",IF(OR('Enrollment Form'!$B178<>\"Subscriber\",'Enrollment Form'!$C178=\"ROC\"),\"-\",IF(AND('Enrollment Form'!$B178=\"Subscriber\",'Enrollment Form'!$C178=\"Enroll\",'Enrollment Form'!$AM178<>\"\"),\"Y\",\"N\")))","v":""},{"$f":"IF($B171=\"N\",\"\",IF(OR('Enrollment Form'!$B178<>\"Subscriber\",'Enrollment Form'!$C178=\"ROC\"),\"-\",IF(AND('Enrollment Form'!$B178=\"Subscriber\",'Enrollment Form'!$C178=\"Enroll\",'Enrollment Form'!$AN178<>\"\"),\"Y\",\"N\")))","v":""},{"$f":"IF($B171=\"N\",\"\",IF(OR('Enrollment Form'!$B178<>\"Subscriber\",'Enrollment Form'!$C178=\"ROC\"),\"-\",IF(AND('Enrollment Form'!$B178=\"Subscriber\",'Enrollment Form'!$C178=\"Enroll\",'Enrollment Form'!$AP178<>\"\"),\"Y\",\"N\")))","v":""},{"$f":"IF($B171=\"N\",\"\",IF($Q171=\"-\",\"-\",IF(AND($Q171=\"Y\",'Enrollment Form'!$AP178=\"No\"),\"-\",IF(AND($Q171=\"Y\",'Enrollment Form'!$AP178=\"Yes\",'Enrollment Form'!$AQ178<>\"\"),\"Y\",\"N\"))))","v":""},{"$f":"IF($B171=\"N\",\"\",IF(OR('Enrollment Form'!$B178<>\"Subscriber\",'Enrollment Form'!$C178=\"ROC\"),\"-\",IF(AND('Enrollment Form'!$B178=\"Subscriber\",'Enrollment Form'!$C178=\"Enroll\",'Enrollment Form'!$CO178<>\"\"),\"Y\",\"N\")))","v":""},{"$f":"IF($B171=\"N\",\"\",IF($S171=\"-\",\"-\",IF(AND($S171=\"Y\",'Enrollment Form'!$CO178=\"No\"),\"-\",IF(AND($S171=\"Y\",'Enrollment Form'!$CO178=\"Yes\",'Enrollment Form'!$CP178<>\"\"),\"Y\",\"N\"))))","v":""},{"$f":"IF(OR('Enrollment Form'!$AV178=\"Yes\",'Enrollment Form'!$AV178=\"\"),\"-\",IF(AND('Enrollment Form'!$AV178=\"No\",ISERROR(FIND(\"HMO\",VLOOKUP('Enrollment Form'!G178,'Enrollment Form'!H$11:J$1000,3,FALSE),1))=FALSE,COUNTA('Enrollment Form'!$AW178:$AZ178)=4),\"Y\",\"N\"))","v":"-"},{"$f":"IF($B171=\"N\",\"\",IF('Enrollment Form'!$B178=\"Subscriber\",\"-\",IF(COUNTA('Enrollment Form'!$BE178,'Enrollment Form'!$BG178)=2,\"Y\",\"N\")))","v":""},{"$f":"IF($B171=\"N\",\"\",IF(OR('Enrollment Form'!$AU178=\"\",'Enrollment Form'!$AU178=\"No\"),\"-\",IF(AND('Enrollment Form'!$AU178=\"Yes\",COUNTA('Enrollment Form'!$CK178)=1),\"Y\",\"N\")))","v":""},{"$f":"IF(OR('Enrollment Form'!$CK178=\"\",'Enrollment Form'!$CK178=\"No\"),\"-\",IF(COUNTA('Enrollment Form'!$CM178:$CN178)=2,\"Y\",\"N\"))","v":"-"},{"$f":"IF($B171=\"N\",\"\",IF(COUNTIF('Enrollment Form'!$CZ178:$DO178,\"Other\")=COUNTA('Enrollment Form'!$DF178,'Enrollment Form'!$DA178,'Enrollment Form'!$DK178,'Enrollment Form'!$DP178),\"Y\",\"N\"))","v":""},{"$f":"IF($B171=\"N\",\"\",IF(OR('Enrollment Form'!B178<>\"Subscriber\",'Enrollment Form'!C178=\"ROC\",COUNTIF('Enrollment Form'!AS178:AT178,\"Yes\")>=1),\"-\",IF(AND('Enrollment Form'!C178=\"Enroll\",COUNTIF('Enrollment Form'!AS178:AT178,\"No\")=2,'Enrollment Form'!AU178=\"\"),\"N\",\"Y\")))","v":""},{"$f":"IF(OR(B171=\"N\",'Enrollment Form'!B178<>\"Subscriber\",'Enrollment Form'!C178=\"ROC\",'Enrollment Form'!O178<>\"Multiple of Salary\"),\"-\",IF(COUNTA('Enrollment Form'!T178:U178)<2,\"N\",\"Y\"))","v":"-"},{"$f":"IF(B171=\"N\",\"\",IF(OR('Enrollment Form'!C178=\"ROC\",'Enrollment Form'!B178<>\"Subscriber\",'Enrollment Form'!O178=\"Waive\",'Enrollment Form'!O178=\"\"),\"-\",IF('Enrollment Form'!P178=\"\",\"N\",\"Y\")))","v":""},{"$f":"IF($B171=\"N\",\"\",IF(AND('Enrollment Form'!$C178=\"ROC\",'Enrollment Form'!$DS178<>\"\"),\"Y\",IF(AND('Enrollment Form'!$C178=\"ROC\",'Enrollment Form'!$DS178=\"\"),\"N\",IF(AND('Enrollment Form'!$C178=\"Enroll\",'Enrollment Form'!$B178=\"Subscriber\",'Enrollment Form'!$CQ178=\"No\",'Enrollment Form'!$DS178=\"\"),\"N\",IF(AND('Enrollment Form'!$C178=\"Enroll\",'Enrollment Form'!$B178=\"Subscriber\",'Enrollment Form'!$CQ178=\"Yes\"),\"-\",\"Y\")))))","v":""},{"$f":"IF($B171=\"N\",\"\",IF(AND('Enrollment Form'!$C178=\"ROC\",'Enrollment Form'!$DT178<>\"\"),\"Y\",IF(AND('Enrollment Form'!$C178=\"ROC\",'Enrollment Form'!$DT178=\"\"),\"N\",IF(AND('Enrollment Form'!$C178=\"Enroll\",'Enrollment Form'!$B178=\"Subscriber\",'Enrollment Form'!$CQ178=\"No\",'Enrollment Form'!$DT178=\"\"),\"N\",IF(AND('Enrollment Form'!$C178=\"Enroll\",'Enrollment Form'!$B178=\"Subscriber\",'Enrollment Form'!$CQ178=\"Yes\"),\"-\",\"Y\")))))","v":""},{"$f":"IF('Enrollment Form'!AH178=\"\",\"\",IF(ISERROR(SEARCH(\".\",'Enrollment Form'!AH178,SEARCH(\"@\",'Enrollment Form'!AH178))),\"N\",\"Y\"))","v":""},{"$f":"IF(OR($B171=\"N\",'Enrollment Form'!$G178=\"\"),\"\",IF('Enrollment Form'!$B178<>\"Subscriber\",\"-\",IF(COUNTIF('Enrollment Form'!$AS178:$AT178,\"Yes\")=2,\"N\",\"Y\")))","v":""},{"$f":"IF(OR('Enrollment Form'!$CC178=\"\",'Enrollment Form'!$CC178=\"No\"),\"-\",IF(AND('Enrollment Form'!$CC178=\"Yes\",'Enrollment Form'!$CD178=\"\"),\"N\",\"Y\"))","v":"-"},{"$f":"IF(OR('Enrollment Form'!$CE178=\"\",'Enrollment Form'!$CE178=\"No\"),\"-\",IF(AND('Enrollment Form'!$CE178=\"Yes\",'Enrollment Form'!$CF178=\"\"),\"N\",\"Y\"))","v":"-"},{"$f":"IF(OR('Enrollment Form'!$CG178=\"\",'Enrollment Form'!$CG178=\"No\"),\"-\",IF(AND('Enrollment Form'!$CG178=\"Yes\",'Enrollment Form'!$CH178=\"\"),\"N\",\"Y\"))","v":"-"},{"$f":"IF(OR('Enrollment Form'!$CG178=\"\",'Enrollment Form'!$CG178=\"No\"),\"-\",IF(AND('Enrollment Form'!$CG178=\"Yes\",'Enrollment Form'!$CI178=\"\"),\"N\",\"Y\"))","v":"-"},{"$f":"IF('Enrollment Form'!B178<>\"Subscriber\",\"-\",IF(AND('Enrollment Form'!B178=\"Subscriber\",'Enrollment Form'!C178=\"Enroll\",'Enrollment Form'!AA178=\"\"),\"N\",\"Y\"))","v":"-"},{"$f":"IF(OR('Enrollment Form'!B178=\"Subscriber\",'Enrollment Form'!B178=\"\"),\"-\",IF('Enrollment Form'!BI178=\"\",\"N\",\"Y\"))","v":"-"},{"$f":"IF('Enrollment Form'!B178<>\"Subscriber\",\"-\",IF(AND('Enrollment Form'!B178=\"Subscriber\",'Enrollment Form'!G178=\"\"),\"N\",\"Y\"))","v":"-"},{"$f":"IF('Enrollment Form'!A178=\"\",\"\",IF('Enrollment Form'!B178=\"Subscriber\",\"-\",IF(AND('Enrollment Form'!B178<>\"Subscriber\",'Enrollment Form'!G178='Enrollment Form'!H178),\"N\",\"Y\")))","v":""},0]
[179,{"$f":"IF('Enrollment Form'!$A179<>\"\",\"Y\",\"N\")","v":"N"},{"$f":"IF(AND('Enrollment Form'!$B179=\"\",'Enrollment Form'!$C179<>\"\"),\"N\",IF($B172=\"N\",\"\",\"Y\"))","v":""},{"$f":"IF(OR($B172=\"N\",'Enrollment Form'!G179=\"\"),\"\",IF('Enrollment Form'!$B179<>\"Subscriber\",\"\",IF('Enrollment Form'!$G179='Enrollment Form'!$H179,\"Y\",\"N\")))","v":""},{"$f":"IF($B172=\"N\",\"\",IF(AND(COUNTIFS('Enrollment Form'!$H$11:$H$1000,'Enrollment Form'!$H179,'Enrollment Form'!$B$11:$B$1000,'Enrollment Form'!$B179)>1,'Enrollment Form'!$H179<>\"\"),\"N\",\"Y\"))","v":""},{"$f":"IF($B172=\"N\",\"\",IF(LEN('Enrollment Form'!$Y179)=0,\"\",IF(LEN('Enrollment Form'!$Y179)<>5,\"N\",\"Y\")))","v":""},{"$f":"IF($B172=\"N\",\"\",IF(LEN('Enrollment Form'!$AD179=0),\"\",IF(LEN('Enrollment Form'!$AD179)<>5,\"N\",\"Y\")))","v":""},{"$f":"IF($B172=\"N\",\"\",IF(LEN('Enrollment Form'!$BL179=0),\"\",IF(LEN('Enrollment Form'!$BL179)<>5,\"N\",\"Y\")))","v":""},{"$f":"IF($B172=\"N\",\"\",IF(LEN('Enrollment Form'!$AE179)=0,\"\",IF(LEN('Enrollment Form'!$AE179)<>10,\"N\",\"Y\")))","v":""},{"$f":"IF($B172=\"N\",\"\",IF(LEN('Enrollment Form'!$AF179)=0,\"\",IF(LEN('Enrollment Form'!$AF179)<>10,\"N\",\"Y\")))","v":""},{"$f":"IF('Enrollment Form'!$O179<>\"Graded\",\"-\",IF(AND('Enrollment Form'!$O179=\"Graded\",'Enrollment Form'!$AO179<>\"\"),\"Y\",\"N\"))","v":"-"},{"$f":"IF($B172=\"N\",\"\",IF(OR('Enrollment Form'!$B179<>\"Subscriber\",'Enrollment Form'!$C179=\"ROC\"),\"-\",IF(AND('Enrollment Form'!$B179=\"Subscriber\",'Enrollment Form'!$C179=\"Enroll\",'Enrollment Form'!$AJ179<>\"\"),\"Y\",\"N\")))","v":""},{"$f":"IF($B172=\"N\",\"\",IF(OR('Enrollment Form'!$B179<>\"Subscriber\",'Enrollment Form'!$C179=\"ROC\"),\"-\",IF(AND('Enrollment Form'!$B179=\"Subscriber\",'Enrollment Form'!$C179=\"Enroll\",'Enrollment Form'!$AK179<>\"\"),\"Y\",\"N\")))","v":""},{"$f":"IF($B172=\"N\",\"\",IF(OR('Enrollment Form'!$B179<>\"Subscriber\",'Enrollment Form'!$C179=\"ROC\"),\"-\",IF(AND('Enrollment Form'!$B179=\"Subscriber\",'Enrollment Form'!$C179=\"Enroll\",'Enrollment Form'!$AL179<>\"\"),\"Y\",\"N\")))","v":""},{"$f":"IF($B172=\"N\",\"\",IF(OR('Enrollment Form'!$B179<>\"Subscriber\",'Enrollment Form'!$C179=\"ROC\"),\"-\",IF(AND('Enrollment Form'!$B179=\"Subscriber\",'Enrollment Form'!$C179=\"Enroll\",'Enrollment Form'!$AM179<>\"\"),\"Y\",\"N\")))","v":""},{"$f":"IF($B172=\"N\",\"\",IF(OR('Enrollment Form'!$B179<>\"Subscriber\",'Enrollment Form'!$C179=\"ROC\"),\"-\",IF(AND('Enrollment Form'!$B179=\"Subscriber\",'Enrollment Form'!$C179=\"Enroll\",'Enrollment Form'!$AN179<>\"\"),\"Y\",\"N\")))","v":""},{"$f":"IF($B172=\"N\",\"\",IF(OR('Enrollment Form'!$B179<>\"Subscriber\",'Enrollment Form'!$C179=\"ROC\"),\"-\",IF(AND('Enrollment Form'!$B179=\"Subscriber\",'Enrollment Form'!$C179=\"Enroll\",'Enrollment Form'!$AP179<>\"\"),\"Y\",\"N\")))","v":""},{"$f":"IF($B172=\"N\",\"\",IF($Q172=\"-\",\"-\",IF(AND($Q172=\"Y\",'Enrollment Form'!$AP179=\"No\"),\"-\",IF(AND($Q172=\"Y\",'Enrollment Form'!$AP179=\"Yes\",'Enrollment Form'!$AQ179<>\"\"),\"Y\",\"N\"))))","v":""},{"$f":"IF($B172=\"N\",\"\",IF(OR('Enrollment Form'!$B179<>\"Subscriber\",'Enrollment Form'!$C179=\"ROC\"),\"-\",IF(AND('Enrollment Form'!$B179=\"Subscriber\",'Enrollment Form'!$C179=\"Enroll\",'Enrollment Form'!$CO179<>\"\"),\"Y\",\"N\")))","v":""},{"$f":"IF($B172=\"N\",\"\",IF($S172=\"-\",\"-\",IF(AND($S172=\"Y\",'Enrollment Form'!$CO179=\"No\"),\"-\",IF(AND($S172=\"Y\",'Enrollment Form'!$CO179=\"Yes\",'Enrollment Form'!$CP179<>\"\"),\"Y\",\"N\"))))","v":""},{"$f":"IF(OR('Enrollment Form'!$AV179=\"Yes\",'Enrollment Form'!$AV179=\"\"),\"-\",IF(AND('Enrollment Form'!$AV179=\"No\",ISERROR(FIND(\"HMO\",VLOOKUP('Enrollment Form'!G179,'Enrollment Form'!H$11:J$1000,3,FALSE),1))=FALSE,COUNTA('Enrollment Form'!$AW179:$AZ179)=4),\"Y\",\"N\"))","v":"-"},{"$f":"IF($B172=\"N\",\"\",IF('Enrollment Form'!$B179=\"Subscriber\",\"-\",IF(COUNTA('Enrollment Form'!$BE179,'Enrollment Form'!$BG179)=2,\"Y\",\"N\")))","v":""},{"$f":"IF($B172=\"N\",\"\",IF(OR('Enrollment Form'!$AU179=\"\",'Enrollment Form'!$AU179=\"No\"),\"-\",IF(AND('Enrollment Form'!$AU179=\"Yes\",COUNTA('Enrollment Form'!$CK179)=1),\"Y\",\"N\")))","v":""},{"$f":"IF(OR('Enrollment Form'!$CK179=\"\",'Enrollment Form'!$CK179=\"No\"),\"-\",IF(COUNTA('Enrollment Form'!$CM179:$CN179)=2,\"Y\",\"N\"))","v":"-"},{"$f":"IF($B172=\"N\",\"\",IF(COUNTIF('Enrollment Form'!$CZ179:$DO179,\"Other\")=COUNTA('Enrollment Form'!$DF179,'Enrollment Form'!$DA179,'Enrollment Form'!$DK179,'Enrollment Form'!$DP179),\"Y\",\"N\"))","v":""},{"$f":"IF($B172=\"N\",\"\",IF(OR('Enrollment Form'!B179<>\"Subscriber\",'Enrollment Form'!C179=\"ROC\",COUNTIF('Enrollment Form'!AS179:AT179,\"Yes\")>=1),\"-\",IF(AND('Enrollment Form'!C179=\"Enroll\",COUNTIF('Enrollment Form'!AS179:AT179,\"No\")=2,'Enrollment Form'!AU179=\"\"),\"N\",\"Y\")))","v":""},{"$f":"IF(OR(B172=\"N\",'Enrollment Form'!B179<>\"Subscriber\",'Enrollment Form'!C179=\"ROC\",'Enrollment Form'!O179<>\"Multiple of Salary\"),\"-\",IF(COUNTA('Enrollment Form'!T179:U179)<2,\"N\",\"Y\"))","v":"-"},{"$f":"IF(B172=\"N\",\"\",IF(OR('Enrollment Form'!C179=\"ROC\",'Enrollment Form'!B179<>\"Subscriber\",'Enrollment Form'!O179=\"Waive\",'Enrollment Form'!O179=\"\"),\"-\",IF('Enrollment Form'!P179=\"\",\"N\",\"Y\")))","v":""},{"$f":"IF($B172=\"N\",\"\",IF(AND('Enrollment Form'!$C179=\"ROC\",'Enrollment Form'!$DS179<>\"\"),\"Y\",IF(AND('Enrollment Form'!$C179=\"ROC\",'Enrollment Form'!$DS179=\"\"),\"N\",IF(AND('Enrollment Form'!$C179=\"Enroll\",'Enrollment Form'!$B179=\"Subscriber\",'Enrollment Form'!$CQ179=\"No\",'Enrollment Form'!$DS179=\"\"),\"N\",IF(AND('Enrollment Form'!$C179=\"Enroll\",'Enrollment Form'!$B179=\"Subscriber\",'Enrollment Form'!$CQ179=\"Yes\"),\"-\",\"Y\")))))","v":""},{"$f":"IF($B172=\"N\",\"\",IF(AND('Enrollment Form'!$C179=\"ROC\",'Enrollment Form'!$DT179<>\"\"),\"Y\",IF(AND('Enrollment Form'!$C179=\"ROC\",'Enrollment Form'!$DT179=\"\"),\"N\",IF(AND('Enrollment Form'!$C179=\"Enroll\",'Enrollment Form'!$B179=\"Subscriber\",'Enrollment Form'!$CQ179=\"No\",'Enrollment Form'!$DT179=\"\"),\"N\",IF(AND('Enrollment Form'!$C179=\"Enroll\",'Enrollment Form'!$B179=\"Subscriber\",'Enrollment Form'!$CQ179=\"Yes\"),\"-\",\"Y\")))))","v":""},{"$f":"IF('Enrollment Form'!AH179=\"\",\"\",IF(ISERROR(SEARCH(\".\",'Enrollment Form'!AH179,SEARCH(\"@\",'Enrollment Form'!AH179))),\"N\",\"Y\"))","v":""},{"$f":"IF(OR($B172=\"N\",'Enrollment Form'!$G179=\"\"),\"\",IF('Enrollment Form'!$B179<>\"Subscriber\",\"-\",IF(COUNTIF('Enrollment Form'!$AS179:$AT179,\"Yes\")=2,\"N\",\"Y\")))","v":""},{"$f":"IF(OR('Enrollment Form'!$CC179=\"\",'Enrollment Form'!$CC179=\"No\"),\"-\",IF(AND('Enrollment Form'!$CC179=\"Yes\",'Enrollment Form'!$CD179=\"\"),\"N\",\"Y\"))","v":"-"},{"$f":"IF(OR('Enrollment Form'!$CE179=\"\",'Enrollment Form'!$CE179=\"No\"),\"-\",IF(AND('Enrollment Form'!$CE179=\"Yes\",'Enrollment Form'!$CF179=\"\"),\"N\",\"Y\"))","v":"-"},{"$f":"IF(OR('Enrollment Form'!$CG179=\"\",'Enrollment Form'!$CG179=\"No\"),\"-\",IF(AND('Enrollment Form'!$CG179=\"Yes\",'Enrollment Form'!$CH179=\"\"),\"N\",\"Y\"))","v":"-"},{"$f":"IF(OR('Enrollment Form'!$CG179=\"\",'Enrollment Form'!$CG179=\"No\"),\"-\",IF(AND('Enrollment Form'!$CG179=\"Yes\",'Enrollment Form'!$CI179=\"\"),\"N\",\"Y\"))","v":"-"},{"$f":"IF('Enrollment Form'!B179<>\"Subscriber\",\"-\",IF(AND('Enrollment Form'!B179=\"Subscriber\",'Enrollment Form'!C179=\"Enroll\",'Enrollment Form'!AA179=\"\"),\"N\",\"Y\"))","v":"-"},{"$f":"IF(OR('Enrollment Form'!B179=\"Subscriber\",'Enrollment Form'!B179=\"\"),\"-\",IF('Enrollment Form'!BI179=\"\",\"N\",\"Y\"))","v":"-"},{"$f":"IF('Enrollment Form'!B179<>\"Subscriber\",\"-\",IF(AND('Enrollment Form'!B179=\"Subscriber\",'Enrollment Form'!G179=\"\"),\"N\",\"Y\"))","v":"-"},{"$f":"IF('Enrollment Form'!A179=\"\",\"\",IF('Enrollment Form'!B179=\"Subscriber\",\"-\",IF(AND('Enrollment Form'!B179<>\"Subscriber\",'Enrollment Form'!G179='Enrollment Form'!H179),\"N\",\"Y\")))","v":""},0]
[180,{"$f":"IF('Enrollment Form'!$A180<>\"\",\"Y\",\"N\")","v":"N"},{"$f":"IF(AND('Enrollment Form'!$B180=\"\",'Enrollment Form'!$C180<>\"\"),\"N\",IF($B173=\"N\",\"\",\"Y\"))","v":""},{"$f":"IF(OR($B173=\"N\",'Enrollment Form'!G180=\"\"),\"\",IF('Enrollment Form'!$B180<>\"Subscriber\",\"\",IF('Enrollment Form'!$G180='Enrollment Form'!$H180,\"Y\",\"N\")))","v":""},{"$f":"IF($B173=\"N\",\"\",IF(AND(COUNTIFS('Enrollment Form'!$H$11:$H$1000,'Enrollment Form'!$H180,'Enrollment Form'!$B$11:$B$1000,'Enrollment Form'!$B180)>1,'Enrollment Form'!$H180<>\"\"),\"N\",\"Y\"))","v":""},{"$f":"IF($B173=\"N\",\"\",IF(LEN('Enrollment Form'!$Y180)=0,\"\",IF(LEN('Enrollment Form'!$Y180)<>5,\"N\",\"Y\")))","v":""},{"$f":"IF($B173=\"N\",\"\",IF(LEN('Enrollment Form'!$AD180=0),\"\",IF(LEN('Enrollment Form'!$AD180)<>5,\"N\",\"Y\")))","v":""},{"$f":"IF($B173=\"N\",\"\",IF(LEN('Enrollment Form'!$BL180=0),\"\",IF(LEN('Enrollment Form'!$BL180)<>5,\"N\",\"Y\")))","v":""},{"$f":"IF($B173=\"N\",\"\",IF(LEN('Enrollment Form'!$AE180)=0,\"\",IF(LEN('Enrollment Form'!$AE180)<>10,\"N\",\"Y\")))","v":""},{"$f":"IF($B173=\"N\",\"\",IF(LEN('Enrollment Form'!$AF180)=0,\"\",IF(LEN('Enrollment Form'!$AF180)<>10,\"N\",\"Y\")))","v":""},{"$f":"IF('Enrollment Form'!$O180<>\"Graded\",\"-\",IF(AND('Enrollment Form'!$O180=\"Graded\",'Enrollment Form'!$AO180<>\"\"),\"Y\",\"N\"))","v":"-"},{"$f":"IF($B173=\"N\",\"\",IF(OR('Enrollment Form'!$B180<>\"Subscriber\",'Enrollment Form'!$C180=\"ROC\"),\"-\",IF(AND('Enrollment Form'!$B180=\"Subscriber\",'Enrollment Form'!$C180=\"Enroll\",'Enrollment Form'!$AJ180<>\"\"),\"Y\",\"N\")))","v":""},{"$f":"IF($B173=\"N\",\"\",IF(OR('Enrollment Form'!$B180<>\"Subscriber\",'Enrollment Form'!$C180=\"ROC\"),\"-\",IF(AND('Enrollment Form'!$B180=\"Subscriber\",'Enrollment Form'!$C180=\"Enroll\",'Enrollment Form'!$AK180<>\"\"),\"Y\",\"N\")))","v":""},{"$f":"IF($B173=\"N\",\"\",IF(OR('Enrollment Form'!$B180<>\"Subscriber\",'Enrollment Form'!$C180=\"ROC\"),\"-\",IF(AND('Enrollment Form'!$B180=\"Subscriber\",'Enrollment Form'!$C180=\"Enroll\",'Enrollment Form'!$AL180<>\"\"),\"Y\",\"N\")))","v":""},{"$f":"IF($B173=\"N\",\"\",IF(OR('Enrollment Form'!$B180<>\"Subscriber\",'Enrollment Form'!$C180=\"ROC\"),\"-\",IF(AND('Enrollment Form'!$B180=\"Subscriber\",'Enrollment Form'!$C180=\"Enroll\",'Enrollment Form'!$AM180<>\"\"),\"Y\",\"N\")))","v":""},{"$f":"IF($B173=\"N\",\"\",IF(OR('Enrollment Form'!$B180<>\"Subscriber\",'Enrollment Form'!$C180=\"ROC\"),\"-\",IF(AND('Enrollment Form'!$B180=\"Subscriber\",'Enrollment Form'!$C180=\"Enroll\",'Enrollment Form'!$AN180<>\"\"),\"Y\",\"N\")))","v":""},{"$f":"IF($B173=\"N\",\"\",IF(OR('Enrollment Form'!$B180<>\"Subscriber\",'Enrollment Form'!$C180=\"ROC\"),\"-\",IF(AND('Enrollment Form'!$B180=\"Subscriber\",'Enrollment Form'!$C180=\"Enroll\",'Enrollment Form'!$AP180<>\"\"),\"Y\",\"N\")))","v":""},{"$f":"IF($B173=\"N\",\"\",IF($Q173=\"-\",\"-\",IF(AND($Q173=\"Y\",'Enrollment Form'!$AP180=\"No\"),\"-\",IF(AND($Q173=\"Y\",'Enrollment Form'!$AP180=\"Yes\",'Enrollment Form'!$AQ180<>\"\"),\"Y\",\"N\"))))","v":""},{"$f":"IF($B173=\"N\",\"\",IF(OR('Enrollment Form'!$B180<>\"Subscriber\",'Enrollment Form'!$C180=\"ROC\"),\"-\",IF(AND('Enrollment Form'!$B180=\"Subscriber\",'Enrollment Form'!$C180=\"Enroll\",'Enrollment Form'!$CO180<>\"\"),\"Y\",\"N\")))","v":""},{"$f":"IF($B173=\"N\",\"\",IF($S173=\"-\",\"-\",IF(AND($S173=\"Y\",'Enrollment Form'!$CO180=\"No\"),\"-\",IF(AND($S173=\"Y\",'Enrollment Form'!$CO180=\"Yes\",'Enrollment Form'!$CP180<>\"\"),\"Y\",\"N\"))))","v":""},{"$f":"IF(OR('Enrollment Form'!$AV180=\"Yes\",'Enrollment Form'!$AV180=\"\"),\"-\",IF(AND('Enrollment Form'!$AV180=\"No\",ISERROR(FIND(\"HMO\",VLOOKUP('Enrollment Form'!G180,'Enrollment Form'!H$11:J$1000,3,FALSE),1))=FALSE,COUNTA('Enrollment Form'!$AW180:$AZ180)=4),\"Y\",\"N\"))","v":"-"},{"$f":"IF($B173=\"N\",\"\",IF('Enrollment Form'!$B180=\"Subscriber\",\"-\",IF(COUNTA('Enrollment Form'!$BE180,'Enrollment Form'!$BG180)=2,\"Y\",\"N\")))","v":""},{"$f":"IF($B173=\"N\",\"\",IF(OR('Enrollment Form'!$AU180=\"\",'Enrollment Form'!$AU180=\"No\"),\"-\",IF(AND('Enrollment Form'!$AU180=\"Yes\",COUNTA('Enrollment Form'!$CK180)=1),\"Y\",\"N\")))","v":""},{"$f":"IF(OR('Enrollment Form'!$CK180=\"\",'Enrollment Form'!$CK180=\"No\"),\"-\",IF(COUNTA('Enrollment Form'!$CM180:$CN180)=2,\"Y\",\"N\"))","v":"-"},{"$f":"IF($B173=\"N\",\"\",IF(COUNTIF('Enrollment Form'!$CZ180:$DO180,\"Other\")=COUNTA('Enrollment Form'!$DF180,'Enrollment Form'!$DA180,'Enrollment Form'!$DK180,'Enrollment Form'!$DP180),\"Y\",\"N\"))","v":""},{"$f":"IF($B173=\"N\",\"\",IF(OR('Enrollment Form'!B180<>\"Subscriber\",'Enrollment Form'!C180=\"ROC\",COUNTIF('Enrollment Form'!AS180:AT180,\"Yes\")>=1),\"-\",IF(AND('Enrollment Form'!C180=\"Enroll\",COUNTIF('Enrollment Form'!AS180:AT180,\"No\")=2,'Enrollment Form'!AU180=\"\"),\"N\",\"Y\")))","v":""},{"$f":"IF(OR(B173=\"N\",'Enrollment Form'!B180<>\"Subscriber\",'Enrollment Form'!C180=\"ROC\",'Enrollment Form'!O180<>\"Multiple of Salary\"),\"-\",IF(COUNTA('Enrollment Form'!T180:U180)<2,\"N\",\"Y\"))","v":"-"},{"$f":"IF(B173=\"N\",\"\",IF(OR('Enrollment Form'!C180=\"ROC\",'Enrollment Form'!B180<>\"Subscriber\",'Enrollment Form'!O180=\"Waive\",'Enrollment Form'!O180=\"\"),\"-\",IF('Enrollment Form'!P180=\"\",\"N\",\"Y\")))","v":""},{"$f":"IF($B173=\"N\",\"\",IF(AND('Enrollment Form'!$C180=\"ROC\",'Enrollment Form'!$DS180<>\"\"),\"Y\",IF(AND('Enrollment Form'!$C180=\"ROC\",'Enrollment Form'!$DS180=\"\"),\"N\",IF(AND('Enrollment Form'!$C180=\"Enroll\",'Enrollment Form'!$B180=\"Subscriber\",'Enrollment Form'!$CQ180=\"No\",'Enrollment Form'!$DS180=\"\"),\"N\",IF(AND('Enrollment Form'!$C180=\"Enroll\",'Enrollment Form'!$B180=\"Subscriber\",'Enrollment Form'!$CQ180=\"Yes\"),\"-\",\"Y\")))))","v":""},{"$f":"IF($B173=\"N\",\"\",IF(AND('Enrollment Form'!$C180=\"ROC\",'Enrollment Form'!$DT180<>\"\"),\"Y\",IF(AND('Enrollment Form'!$C180=\"ROC\",'Enrollment Form'!$DT180=\"\"),\"N\",IF(AND('Enrollment Form'!$C180=\"Enroll\",'Enrollment Form'!$B180=\"Subscriber\",'Enrollment Form'!$CQ180=\"No\",'Enrollment Form'!$DT180=\"\"),\"N\",IF(AND('Enrollment Form'!$C180=\"Enroll\",'Enrollment Form'!$B180=\"Subscriber\",'Enrollment Form'!$CQ180=\"Yes\"),\"-\",\"Y\")))))","v":""},{"$f":"IF('Enrollment Form'!AH180=\"\",\"\",IF(ISERROR(SEARCH(\".\",'Enrollment Form'!AH180,SEARCH(\"@\",'Enrollment Form'!AH180))),\"N\",\"Y\"))","v":""},{"$f":"IF(OR($B173=\"N\",'Enrollment Form'!$G180=\"\"),\"\",IF('Enrollment Form'!$B180<>\"Subscriber\",\"-\",IF(COUNTIF('Enrollment Form'!$AS180:$AT180,\"Yes\")=2,\"N\",\"Y\")))","v":""},{"$f":"IF(OR('Enrollment Form'!$CC180=\"\",'Enrollment Form'!$CC180=\"No\"),\"-\",IF(AND('Enrollment Form'!$CC180=\"Yes\",'Enrollment Form'!$CD180=\"\"),\"N\",\"Y\"))","v":"-"},{"$f":"IF(OR('Enrollment Form'!$CE180=\"\",'Enrollment Form'!$CE180=\"No\"),\"-\",IF(AND('Enrollment Form'!$CE180=\"Yes\",'Enrollment Form'!$CF180=\"\"),\"N\",\"Y\"))","v":"-"},{"$f":"IF(OR('Enrollment Form'!$CG180=\"\",'Enrollment Form'!$CG180=\"No\"),\"-\",IF(AND('Enrollment Form'!$CG180=\"Yes\",'Enrollment Form'!$CH180=\"\"),\"N\",\"Y\"))","v":"-"},{"$f":"IF(OR('Enrollment Form'!$CG180=\"\",'Enrollment Form'!$CG180=\"No\"),\"-\",IF(AND('Enrollment Form'!$CG180=\"Yes\",'Enrollment Form'!$CI180=\"\"),\"N\",\"Y\"))","v":"-"},{"$f":"IF('Enrollment Form'!B180<>\"Subscriber\",\"-\",IF(AND('Enrollment Form'!B180=\"Subscriber\",'Enrollment Form'!C180=\"Enroll\",'Enrollment Form'!AA180=\"\"),\"N\",\"Y\"))","v":"-"},{"$f":"IF(OR('Enrollment Form'!B180=\"Subscriber\",'Enrollment Form'!B180=\"\"),\"-\",IF('Enrollment Form'!BI180=\"\",\"N\",\"Y\"))","v":"-"},{"$f":"IF('Enrollment Form'!B180<>\"Subscriber\",\"-\",IF(AND('Enrollment Form'!B180=\"Subscriber\",'Enrollment Form'!G180=\"\"),\"N\",\"Y\"))","v":"-"},{"$f":"IF('Enrollment Form'!A180=\"\",\"\",IF('Enrollment Form'!B180=\"Subscriber\",\"-\",IF(AND('Enrollment Form'!B180<>\"Subscriber\",'Enrollment Form'!G180='Enrollment Form'!H180),\"N\",\"Y\")))","v":""},0]
[181,{"$f":"IF('Enrollment Form'!$A181<>\"\",\"Y\",\"N\")","v":"N"},{"$f":"IF(AND('Enrollment Form'!$B181=\"\",'Enrollment Form'!$C181<>\"\"),\"N\",IF($B174=\"N\",\"\",\"Y\"))","v":""},{"$f":"IF(OR($B174=\"N\",'Enrollment Form'!G181=\"\"),\"\",IF('Enrollment Form'!$B181<>\"Subscriber\",\"\",IF('Enrollment Form'!$G181='Enrollment Form'!$H181,\"Y\",\"N\")))","v":""},{"$f":"IF($B174=\"N\",\"\",IF(AND(COUNTIFS('Enrollment Form'!$H$11:$H$1000,'Enrollment Form'!$H181,'Enrollment Form'!$B$11:$B$1000,'Enrollment Form'!$B181)>1,'Enrollment Form'!$H181<>\"\"),\"N\",\"Y\"))","v":""},{"$f":"IF($B174=\"N\",\"\",IF(LEN('Enrollment Form'!$Y181)=0,\"\",IF(LEN('Enrollment Form'!$Y181)<>5,\"N\",\"Y\")))","v":""},{"$f":"IF($B174=\"N\",\"\",IF(LEN('Enrollment Form'!$AD181=0),\"\",IF(LEN('Enrollment Form'!$AD181)<>5,\"N\",\"Y\")))","v":""},{"$f":"IF($B174=\"N\",\"\",IF(LEN('Enrollment Form'!$BL181=0),\"\",IF(LEN('Enrollment Form'!$BL181)<>5,\"N\",\"Y\")))","v":""},{"$f":"IF($B174=\"N\",\"\",IF(LEN('Enrollment Form'!$AE181)=0,\"\",IF(LEN('Enrollment Form'!$AE181)<>10,\"N\",\"Y\")))","v":""},{"$f":"IF($B174=\"N\",\"\",IF(LEN('Enrollment Form'!$AF181)=0,\"\",IF(LEN('Enrollment Form'!$AF181)<>10,\"N\",\"Y\")))","v":""},{"$f":"IF('Enrollment Form'!$O181<>\"Graded\",\"-\",IF(AND('Enrollment Form'!$O181=\"Graded\",'Enrollment Form'!$AO181<>\"\"),\"Y\",\"N\"))","v":"-"},{"$f":"IF($B174=\"N\",\"\",IF(OR('Enrollment Form'!$B181<>\"Subscriber\",'Enrollment Form'!$C181=\"ROC\"),\"-\",IF(AND('Enrollment Form'!$B181=\"Subscriber\",'Enrollment Form'!$C181=\"Enroll\",'Enrollment Form'!$AJ181<>\"\"),\"Y\",\"N\")))","v":""},{"$f":"IF($B174=\"N\",\"\",IF(OR('Enrollment Form'!$B181<>\"Subscriber\",'Enrollment Form'!$C181=\"ROC\"),\"-\",IF(AND('Enrollment Form'!$B181=\"Subscriber\",'Enrollment Form'!$C181=\"Enroll\",'Enrollment Form'!$AK181<>\"\"),\"Y\",\"N\")))","v":""},{"$f":"IF($B174=\"N\",\"\",IF(OR('Enrollment Form'!$B181<>\"Subscriber\",'Enrollment Form'!$C181=\"ROC\"),\"-\",IF(AND('Enrollment Form'!$B181=\"Subscriber\",'Enrollment Form'!$C181=\"Enroll\",'Enrollment Form'!$AL181<>\"\"),\"Y\",\"N\")))","v":""},{"$f":"IF($B174=\"N\",\"\",IF(OR('Enrollment Form'!$B181<>\"Subscriber\",'Enrollment Form'!$C181=\"ROC\"),\"-\",IF(AND('Enrollment Form'!$B181=\"Subscriber\",'Enrollment Form'!$C181=\"Enroll\",'Enrollment Form'!$AM181<>\"\"),\"Y\",\"N\")))","v":""},{"$f":"IF($B174=\"N\",\"\",IF(OR('Enrollment Form'!$B181<>\"Subscriber\",'Enrollment Form'!$C181=\"ROC\"),\"-\",IF(AND('Enrollment Form'!$B181=\"Subscriber\",'Enrollment Form'!$C181=\"Enroll\",'Enrollment Form'!$AN181<>\"\"),\"Y\",\"N\")))","v":""},{"$f":"IF($B174=\"N\",\"\",IF(OR('Enrollment Form'!$B181<>\"Subscriber\",'Enrollment Form'!$C181=\"ROC\"),\"-\",IF(AND('Enrollment Form'!$B181=\"Subscriber\",'Enrollment Form'!$C181=\"Enroll\",'Enrollment Form'!$AP181<>\"\"),\"Y\",\"N\")))","v":""},{"$f":"IF($B174=\"N\",\"\",IF($Q174=\"-\",\"-\",IF(AND($Q174=\"Y\",'Enrollment Form'!$AP181=\"No\"),\"-\",IF(AND($Q174=\"Y\",'Enrollment Form'!$AP181=\"Yes\",'Enrollment Form'!$AQ181<>\"\"),\"Y\",\"N\"))))","v":""},{"$f":"IF($B174=\"N\",\"\",IF(OR('Enrollment Form'!$B181<>\"Subscriber\",'Enrollment Form'!$C181=\"ROC\"),\"-\",IF(AND('Enrollment Form'!$B181=\"Subscriber\",'Enrollment Form'!$C181=\"Enroll\",'Enrollment Form'!$CO181<>\"\"),\"Y\",\"N\")))","v":""},{"$f":"IF($B174=\"N\",\"\",IF($S174=\"-\",\"-\",IF(AND($S174=\"Y\",'Enrollment Form'!$CO181=\"No\"),\"-\",IF(AND($S174=\"Y\",'Enrollment Form'!$CO181=\"Yes\",'Enrollment Form'!$CP181<>\"\"),\"Y\",\"N\"))))","v":""},{"$f":"IF(OR('Enrollment Form'!$AV181=\"Yes\",'Enrollment Form'!$AV181=\"\"),\"-\",IF(AND('Enrollment Form'!$AV181=\"No\",ISERROR(FIND(\"HMO\",VLOOKUP('Enrollment Form'!G181,'Enrollment Form'!H$11:J$1000,3,FALSE),1))=FALSE,COUNTA('Enrollment Form'!$AW181:$AZ181)=4),\"Y\",\"N\"))","v":"-"},{"$f":"IF($B174=\"N\",\"\",IF('Enrollment Form'!$B181=\"Subscriber\",\"-\",IF(COUNTA('Enrollment Form'!$BE181,'Enrollment Form'!$BG181)=2,\"Y\",\"N\")))","v":""},{"$f":"IF($B174=\"N\",\"\",IF(OR('Enrollment Form'!$AU181=\"\",'Enrollment Form'!$AU181=\"No\"),\"-\",IF(AND('Enrollment Form'!$AU181=\"Yes\",COUNTA('Enrollment Form'!$CK181)=1),\"Y\",\"N\")))","v":""},{"$f":"IF(OR('Enrollment Form'!$CK181=\"\",'Enrollment Form'!$CK181=\"No\"),\"-\",IF(COUNTA('Enrollment Form'!$CM181:$CN181)=2,\"Y\",\"N\"))","v":"-"},{"$f":"IF($B174=\"N\",\"\",IF(COUNTIF('Enrollment Form'!$CZ181:$DO181,\"Other\")=COUNTA('Enrollment Form'!$DF181,'Enrollment Form'!$DA181,'Enrollment Form'!$DK181,'Enrollment Form'!$DP181),\"Y\",\"N\"))","v":""},{"$f":"IF($B174=\"N\",\"\",IF(OR('Enrollment Form'!B181<>\"Subscriber\",'Enrollment Form'!C181=\"ROC\",COUNTIF('Enrollment Form'!AS181:AT181,\"Yes\")>=1),\"-\",IF(AND('Enrollment Form'!C181=\"Enroll\",COUNTIF('Enrollment Form'!AS181:AT181,\"No\")=2,'Enrollment Form'!AU181=\"\"),\"N\",\"Y\")))","v":""},{"$f":"IF(OR(B174=\"N\",'Enrollment Form'!B181<>\"Subscriber\",'Enrollment Form'!C181=\"ROC\",'Enrollment Form'!O181<>\"Multiple of Salary\"),\"-\",IF(COUNTA('Enrollment Form'!T181:U181)<2,\"N\",\"Y\"))","v":"-"},{"$f":"IF(B174=\"N\",\"\",IF(OR('Enrollment Form'!C181=\"ROC\",'Enrollment Form'!B181<>\"Subscriber\",'Enrollment Form'!O181=\"Waive\",'Enrollment Form'!O181=\"\"),\"-\",IF('Enrollment Form'!P181=\"\",\"N\",\"Y\")))","v":""},{"$f":"IF($B174=\"N\",\"\",IF(AND('Enrollment Form'!$C181=\"ROC\",'Enrollment Form'!$DS181<>\"\"),\"Y\",IF(AND('Enrollment Form'!$C181=\"ROC\",'Enrollment Form'!$DS181=\"\"),\"N\",IF(AND('Enrollment Form'!$C181=\"Enroll\",'Enrollment Form'!$B181=\"Subscriber\",'Enrollment Form'!$CQ181=\"No\",'Enrollment Form'!$DS181=\"\"),\"N\",IF(AND('Enrollment Form'!$C181=\"Enroll\",'Enrollment Form'!$B181=\"Subscriber\",'Enrollment Form'!$CQ181=\"Yes\"),\"-\",\"Y\")))))","v":""},{"$f":"IF($B174=\"N\",\"\",IF(AND('Enrollment Form'!$C181=\"ROC\",'Enrollment Form'!$DT181<>\"\"),\"Y\",IF(AND('Enrollment Form'!$C181=\"ROC\",'Enrollment Form'!$DT181=\"\"),\"N\",IF(AND('Enrollment Form'!$C181=\"Enroll\",'Enrollment Form'!$B181=\"Subscriber\",'Enrollment Form'!$CQ181=\"No\",'Enrollment Form'!$DT181=\"\"),\"N\",IF(AND('Enrollment Form'!$C181=\"Enroll\",'Enrollment Form'!$B181=\"Subscriber\",'Enrollment Form'!$CQ181=\"Yes\"),\"-\",\"Y\")))))","v":""},{"$f":"IF('Enrollment Form'!AH181=\"\",\"\",IF(ISERROR(SEARCH(\".\",'Enrollment Form'!AH181,SEARCH(\"@\",'Enrollment Form'!AH181))),\"N\",\"Y\"))","v":""},{"$f":"IF(OR($B174=\"N\",'Enrollment Form'!$G181=\"\"),\"\",IF('Enrollment Form'!$B181<>\"Subscriber\",\"-\",IF(COUNTIF('Enrollment Form'!$AS181:$AT181,\"Yes\")=2,\"N\",\"Y\")))","v":""},{"$f":"IF(OR('Enrollment Form'!$CC181=\"\",'Enrollment Form'!$CC181=\"No\"),\"-\",IF(AND('Enrollment Form'!$CC181=\"Yes\",'Enrollment Form'!$CD181=\"\"),\"N\",\"Y\"))","v":"-"},{"$f":"IF(OR('Enrollment Form'!$CE181=\"\",'Enrollment Form'!$CE181=\"No\"),\"-\",IF(AND('Enrollment Form'!$CE181=\"Yes\",'Enrollment Form'!$CF181=\"\"),\"N\",\"Y\"))","v":"-"},{"$f":"IF(OR('Enrollment Form'!$CG181=\"\",'Enrollment Form'!$CG181=\"No\"),\"-\",IF(AND('Enrollment Form'!$CG181=\"Yes\",'Enrollment Form'!$CH181=\"\"),\"N\",\"Y\"))","v":"-"},{"$f":"IF(OR('Enrollment Form'!$CG181=\"\",'Enrollment Form'!$CG181=\"No\"),\"-\",IF(AND('Enrollment Form'!$CG181=\"Yes\",'Enrollment Form'!$CI181=\"\"),\"N\",\"Y\"))","v":"-"},{"$f":"IF('Enrollment Form'!B181<>\"Subscriber\",\"-\",IF(AND('Enrollment Form'!B181=\"Subscriber\",'Enrollment Form'!C181=\"Enroll\",'Enrollment Form'!AA181=\"\"),\"N\",\"Y\"))","v":"-"},{"$f":"IF(OR('Enrollment Form'!B181=\"Subscriber\",'Enrollment Form'!B181=\"\"),\"-\",IF('Enrollment Form'!BI181=\"\",\"N\",\"Y\"))","v":"-"},{"$f":"IF('Enrollment Form'!B181<>\"Subscriber\",\"-\",IF(AND('Enrollment Form'!B181=\"Subscriber\",'Enrollment Form'!G181=\"\"),\"N\",\"Y\"))","v":"-"},{"$f":"IF('Enrollment Form'!A181=\"\",\"\",IF('Enrollment Form'!B181=\"Subscriber\",\"-\",IF(AND('Enrollment Form'!B181<>\"Subscriber\",'Enrollment Form'!G181='Enrollment Form'!H181),\"N\",\"Y\")))","v":""},0]
[182,{"$f":"IF('Enrollment Form'!$A182<>\"\",\"Y\",\"N\")","v":"N"},{"$f":"IF(AND('Enrollment Form'!$B182=\"\",'Enrollment Form'!$C182<>\"\"),\"N\",IF($B175=\"N\",\"\",\"Y\"))","v":""},{"$f":"IF(OR($B175=\"N\",'Enrollment Form'!G182=\"\"),\"\",IF('Enrollment Form'!$B182<>\"Subscriber\",\"\",IF('Enrollment Form'!$G182='Enrollment Form'!$H182,\"Y\",\"N\")))","v":""},{"$f":"IF($B175=\"N\",\"\",IF(AND(COUNTIFS('Enrollment Form'!$H$11:$H$1000,'Enrollment Form'!$H182,'Enrollment Form'!$B$11:$B$1000,'Enrollment Form'!$B182)>1,'Enrollment Form'!$H182<>\"\"),\"N\",\"Y\"))","v":""},{"$f":"IF($B175=\"N\",\"\",IF(LEN('Enrollment Form'!$Y182)=0,\"\",IF(LEN('Enrollment Form'!$Y182)<>5,\"N\",\"Y\")))","v":""},{"$f":"IF($B175=\"N\",\"\",IF(LEN('Enrollment Form'!$AD182=0),\"\",IF(LEN('Enrollment Form'!$AD182)<>5,\"N\",\"Y\")))","v":""},{"$f":"IF($B175=\"N\",\"\",IF(LEN('Enrollment Form'!$BL182=0),\"\",IF(LEN('Enrollment Form'!$BL182)<>5,\"N\",\"Y\")))","v":""},{"$f":"IF($B175=\"N\",\"\",IF(LEN('Enrollment Form'!$AE182)=0,\"\",IF(LEN('Enrollment Form'!$AE182)<>10,\"N\",\"Y\")))","v":""},{"$f":"IF($B175=\"N\",\"\",IF(LEN('Enrollment Form'!$AF182)=0,\"\",IF(LEN('Enrollment Form'!$AF182)<>10,\"N\",\"Y\")))","v":""},{"$f":"IF('Enrollment Form'!$O182<>\"Graded\",\"-\",IF(AND('Enrollment Form'!$O182=\"Graded\",'Enrollment Form'!$AO182<>\"\"),\"Y\",\"N\"))","v":"-"},{"$f":"IF($B175=\"N\",\"\",IF(OR('Enrollment Form'!$B182<>\"Subscriber\",'Enrollment Form'!$C182=\"ROC\"),\"-\",IF(AND('Enrollment Form'!$B182=\"Subscriber\",'Enrollment Form'!$C182=\"Enroll\",'Enrollment Form'!$AJ182<>\"\"),\"Y\",\"N\")))","v":""},{"$f":"IF($B175=\"N\",\"\",IF(OR('Enrollment Form'!$B182<>\"Subscriber\",'Enrollment Form'!$C182=\"ROC\"),\"-\",IF(AND('Enrollment Form'!$B182=\"Subscriber\",'Enrollment Form'!$C182=\"Enroll\",'Enrollment Form'!$AK182<>\"\"),\"Y\",\"N\")))","v":""},{"$f":"IF($B175=\"N\",\"\",IF(OR('Enrollment Form'!$B182<>\"Subscriber\",'Enrollment Form'!$C182=\"ROC\"),\"-\",IF(AND('Enrollment Form'!$B182=\"Subscriber\",'Enrollment Form'!$C182=\"Enroll\",'Enrollment Form'!$AL182<>\"\"),\"Y\",\"N\")))","v":""},{"$f":"IF($B175=\"N\",\"\",IF(OR('Enrollment Form'!$B182<>\"Subscriber\",'Enrollment Form'!$C182=\"ROC\"),\"-\",IF(AND('Enrollment Form'!$B182=\"Subscriber\",'Enrollment Form'!$C182=\"Enroll\",'Enrollment Form'!$AM182<>\"\"),\"Y\",\"N\")))","v":""},{"$f":"IF($B175=\"N\",\"\",IF(OR('Enrollment Form'!$B182<>\"Subscriber\",'Enrollment Form'!$C182=\"ROC\"),\"-\",IF(AND('Enrollment Form'!$B182=\"Subscriber\",'Enrollment Form'!$C182=\"Enroll\",'Enrollment Form'!$AN182<>\"\"),\"Y\",\"N\")))","v":""},{"$f":"IF($B175=\"N\",\"\",IF(OR('Enrollment Form'!$B182<>\"Subscriber\",'Enrollment Form'!$C182=\"ROC\"),\"-\",IF(AND('Enrollment Form'!$B182=\"Subscriber\",'Enrollment Form'!$C182=\"Enroll\",'Enrollment Form'!$AP182<>\"\"),\"Y\",\"N\")))","v":""},{"$f":"IF($B175=\"N\",\"\",IF($Q175=\"-\",\"-\",IF(AND($Q175=\"Y\",'Enrollment Form'!$AP182=\"No\"),\"-\",IF(AND($Q175=\"Y\",'Enrollment Form'!$AP182=\"Yes\",'Enrollment Form'!$AQ182<>\"\"),\"Y\",\"N\"))))","v":""},{"$f":"IF($B175=\"N\",\"\",IF(OR('Enrollment Form'!$B182<>\"Subscriber\",'Enrollment Form'!$C182=\"ROC\"),\"-\",IF(AND('Enrollment Form'!$B182=\"Subscriber\",'Enrollment Form'!$C182=\"Enroll\",'Enrollment Form'!$CO182<>\"\"),\"Y\",\"N\")))","v":""},{"$f":"IF($B175=\"N\",\"\",IF($S175=\"-\",\"-\",IF(AND($S175=\"Y\",'Enrollment Form'!$CO182=\"No\"),\"-\",IF(AND($S175=\"Y\",'Enrollment Form'!$CO182=\"Yes\",'Enrollment Form'!$CP182<>\"\"),\"Y\",\"N\"))))","v":""},{"$f":"IF(OR('Enrollment Form'!$AV182=\"Yes\",'Enrollment Form'!$AV182=\"\"),\"-\",IF(AND('Enrollment Form'!$AV182=\"No\",ISERROR(FIND(\"HMO\",VLOOKUP('Enrollment Form'!G182,'Enrollment Form'!H$11:J$1000,3,FALSE),1))=FALSE,COUNTA('Enrollment Form'!$AW182:$AZ182)=4),\"Y\",\"N\"))","v":"-"},{"$f":"IF($B175=\"N\",\"\",IF('Enrollment Form'!$B182=\"Subscriber\",\"-\",IF(COUNTA('Enrollment Form'!$BE182,'Enrollment Form'!$BG182)=2,\"Y\",\"N\")))","v":""},{"$f":"IF($B175=\"N\",\"\",IF(OR('Enrollment Form'!$AU182=\"\",'Enrollment Form'!$AU182=\"No\"),\"-\",IF(AND('Enrollment Form'!$AU182=\"Yes\",COUNTA('Enrollment Form'!$CK182)=1),\"Y\",\"N\")))","v":""},{"$f":"IF(OR('Enrollment Form'!$CK182=\"\",'Enrollment Form'!$CK182=\"No\"),\"-\",IF(COUNTA('Enrollment Form'!$CM182:$CN182)=2,\"Y\",\"N\"))","v":"-"},{"$f":"IF($B175=\"N\",\"\",IF(COUNTIF('Enrollment Form'!$CZ182:$DO182,\"Other\")=COUNTA('Enrollment Form'!$DF182,'Enrollment Form'!$DA182,'Enrollment Form'!$DK182,'Enrollment Form'!$DP182),\"Y\",\"N\"))","v":""},{"$f":"IF($B175=\"N\",\"\",IF(OR('Enrollment Form'!B182<>\"Subscriber\",'Enrollment Form'!C182=\"ROC\",COUNTIF('Enrollment Form'!AS182:AT182,\"Yes\")>=1),\"-\",IF(AND('Enrollment Form'!C182=\"Enroll\",COUNTIF('Enrollment Form'!AS182:AT182,\"No\")=2,'Enrollment Form'!AU182=\"\"),\"N\",\"Y\")))","v":""},{"$f":"IF(OR(B175=\"N\",'Enrollment Form'!B182<>\"Subscriber\",'Enrollment Form'!C182=\"ROC\",'Enrollment Form'!O182<>\"Multiple of Salary\"),\"-\",IF(COUNTA('Enrollment Form'!T182:U182)<2,\"N\",\"Y\"))","v":"-"},{"$f":"IF(B175=\"N\",\"\",IF(OR('Enrollment Form'!C182=\"ROC\",'Enrollment Form'!B182<>\"Subscriber\",'Enrollment Form'!O182=\"Waive\",'Enrollment Form'!O182=\"\"),\"-\",IF('Enrollment Form'!P182=\"\",\"N\",\"Y\")))","v":""},{"$f":"IF($B175=\"N\",\"\",IF(AND('Enrollment Form'!$C182=\"ROC\",'Enrollment Form'!$DS182<>\"\"),\"Y\",IF(AND('Enrollment Form'!$C182=\"ROC\",'Enrollment Form'!$DS182=\"\"),\"N\",IF(AND('Enrollment Form'!$C182=\"Enroll\",'Enrollment Form'!$B182=\"Subscriber\",'Enrollment Form'!$CQ182=\"No\",'Enrollment Form'!$DS182=\"\"),\"N\",IF(AND('Enrollment Form'!$C182=\"Enroll\",'Enrollment Form'!$B182=\"Subscriber\",'Enrollment Form'!$CQ182=\"Yes\"),\"-\",\"Y\")))))","v":""},{"$f":"IF($B175=\"N\",\"\",IF(AND('Enrollment Form'!$C182=\"ROC\",'Enrollment Form'!$DT182<>\"\"),\"Y\",IF(AND('Enrollment Form'!$C182=\"ROC\",'Enrollment Form'!$DT182=\"\"),\"N\",IF(AND('Enrollment Form'!$C182=\"Enroll\",'Enrollment Form'!$B182=\"Subscriber\",'Enrollment Form'!$CQ182=\"No\",'Enrollment Form'!$DT182=\"\"),\"N\",IF(AND('Enrollment Form'!$C182=\"Enroll\",'Enrollment Form'!$B182=\"Subscriber\",'Enrollment Form'!$CQ182=\"Yes\"),\"-\",\"Y\")))))","v":""},{"$f":"IF('Enrollment Form'!AH182=\"\",\"\",IF(ISERROR(SEARCH(\".\",'Enrollment Form'!AH182,SEARCH(\"@\",'Enrollment Form'!AH182))),\"N\",\"Y\"))","v":""},{"$f":"IF(OR($B175=\"N\",'Enrollment Form'!$G182=\"\"),\"\",IF('Enrollment Form'!$B182<>\"Subscriber\",\"-\",IF(COUNTIF('Enrollment Form'!$AS182:$AT182,\"Yes\")=2,\"N\",\"Y\")))","v":""},{"$f":"IF(OR('Enrollment Form'!$CC182=\"\",'Enrollment Form'!$CC182=\"No\"),\"-\",IF(AND('Enrollment Form'!$CC182=\"Yes\",'Enrollment Form'!$CD182=\"\"),\"N\",\"Y\"))","v":"-"},{"$f":"IF(OR('Enrollment Form'!$CE182=\"\",'Enrollment Form'!$CE182=\"No\"),\"-\",IF(AND('Enrollment Form'!$CE182=\"Yes\",'Enrollment Form'!$CF182=\"\"),\"N\",\"Y\"))","v":"-"},{"$f":"IF(OR('Enrollment Form'!$CG182=\"\",'Enrollment Form'!$CG182=\"No\"),\"-\",IF(AND('Enrollment Form'!$CG182=\"Yes\",'Enrollment Form'!$CH182=\"\"),\"N\",\"Y\"))","v":"-"},{"$f":"IF(OR('Enrollment Form'!$CG182=\"\",'Enrollment Form'!$CG182=\"No\"),\"-\",IF(AND('Enrollment Form'!$CG182=\"Yes\",'Enrollment Form'!$CI182=\"\"),\"N\",\"Y\"))","v":"-"},{"$f":"IF('Enrollment Form'!B182<>\"Subscriber\",\"-\",IF(AND('Enrollment Form'!B182=\"Subscriber\",'Enrollment Form'!C182=\"Enroll\",'Enrollment Form'!AA182=\"\"),\"N\",\"Y\"))","v":"-"},{"$f":"IF(OR('Enrollment Form'!B182=\"Subscriber\",'Enrollment Form'!B182=\"\"),\"-\",IF('Enrollment Form'!BI182=\"\",\"N\",\"Y\"))","v":"-"},{"$f":"IF('Enrollment Form'!B182<>\"Subscriber\",\"-\",IF(AND('Enrollment Form'!B182=\"Subscriber\",'Enrollment Form'!G182=\"\"),\"N\",\"Y\"))","v":"-"},{"$f":"IF('Enrollment Form'!A182=\"\",\"\",IF('Enrollment Form'!B182=\"Subscriber\",\"-\",IF(AND('Enrollment Form'!B182<>\"Subscriber\",'Enrollment Form'!G182='Enrollment Form'!H182),\"N\",\"Y\")))","v":""},0]
[183,{"$f":"IF('Enrollment Form'!$A183<>\"\",\"Y\",\"N\")","v":"N"},{"$f":"IF(AND('Enrollment Form'!$B183=\"\",'Enrollment Form'!$C183<>\"\"),\"N\",IF($B176=\"N\",\"\",\"Y\"))","v":""},{"$f":"IF(OR($B176=\"N\",'Enrollment Form'!G183=\"\"),\"\",IF('Enrollment Form'!$B183<>\"Subscriber\",\"\",IF('Enrollment Form'!$G183='Enrollment Form'!$H183,\"Y\",\"N\")))","v":""},{"$f":"IF($B176=\"N\",\"\",IF(AND(COUNTIFS('Enrollment Form'!$H$11:$H$1000,'Enrollment Form'!$H183,'Enrollment Form'!$B$11:$B$1000,'Enrollment Form'!$B183)>1,'Enrollment Form'!$H183<>\"\"),\"N\",\"Y\"))","v":""},{"$f":"IF($B176=\"N\",\"\",IF(LEN('Enrollment Form'!$Y183)=0,\"\",IF(LEN('Enrollment Form'!$Y183)<>5,\"N\",\"Y\")))","v":""},{"$f":"IF($B176=\"N\",\"\",IF(LEN('Enrollment Form'!$AD183=0),\"\",IF(LEN('Enrollment Form'!$AD183)<>5,\"N\",\"Y\")))","v":""},{"$f":"IF($B176=\"N\",\"\",IF(LEN('Enrollment Form'!$BL183=0),\"\",IF(LEN('Enrollment Form'!$BL183)<>5,\"N\",\"Y\")))","v":""},{"$f":"IF($B176=\"N\",\"\",IF(LEN('Enrollment Form'!$AE183)=0,\"\",IF(LEN('Enrollment Form'!$AE183)<>10,\"N\",\"Y\")))","v":""},{"$f":"IF($B176=\"N\",\"\",IF(LEN('Enrollment Form'!$AF183)=0,\"\",IF(LEN('Enrollment Form'!$AF183)<>10,\"N\",\"Y\")))","v":""},{"$f":"IF('Enrollment Form'!$O183<>\"Graded\",\"-\",IF(AND('Enrollment Form'!$O183=\"Graded\",'Enrollment Form'!$AO183<>\"\"),\"Y\",\"N\"))","v":"-"},{"$f":"IF($B176=\"N\",\"\",IF(OR('Enrollment Form'!$B183<>\"Subscriber\",'Enrollment Form'!$C183=\"ROC\"),\"-\",IF(AND('Enrollment Form'!$B183=\"Subscriber\",'Enrollment Form'!$C183=\"Enroll\",'Enrollment Form'!$AJ183<>\"\"),\"Y\",\"N\")))","v":""},{"$f":"IF($B176=\"N\",\"\",IF(OR('Enrollment Form'!$B183<>\"Subscriber\",'Enrollment Form'!$C183=\"ROC\"),\"-\",IF(AND('Enrollment Form'!$B183=\"Subscriber\",'Enrollment Form'!$C183=\"Enroll\",'Enrollment Form'!$AK183<>\"\"),\"Y\",\"N\")))","v":""},{"$f":"IF($B176=\"N\",\"\",IF(OR('Enrollment Form'!$B183<>\"Subscriber\",'Enrollment Form'!$C183=\"ROC\"),\"-\",IF(AND('Enrollment Form'!$B183=\"Subscriber\",'Enrollment Form'!$C183=\"Enroll\",'Enrollment Form'!$AL183<>\"\"),\"Y\",\"N\")))","v":""},{"$f":"IF($B176=\"N\",\"\",IF(OR('Enrollment Form'!$B183<>\"Subscriber\",'Enrollment Form'!$C183=\"ROC\"),\"-\",IF(AND('Enrollment Form'!$B183=\"Subscriber\",'Enrollment Form'!$C183=\"Enroll\",'Enrollment Form'!$AM183<>\"\"),\"Y\",\"N\")))","v":""},{"$f":"IF($B176=\"N\",\"\",IF(OR('Enrollment Form'!$B183<>\"Subscriber\",'Enrollment Form'!$C183=\"ROC\"),\"-\",IF(AND('Enrollment Form'!$B183=\"Subscriber\",'Enrollment Form'!$C183=\"Enroll\",'Enrollment Form'!$AN183<>\"\"),\"Y\",\"N\")))","v":""},{"$f":"IF($B176=\"N\",\"\",IF(OR('Enrollment Form'!$B183<>\"Subscriber\",'Enrollment Form'!$C183=\"ROC\"),\"-\",IF(AND('Enrollment Form'!$B183=\"Subscriber\",'Enrollment Form'!$C183=\"Enroll\",'Enrollment Form'!$AP183<>\"\"),\"Y\",\"N\")))","v":""},{"$f":"IF($B176=\"N\",\"\",IF($Q176=\"-\",\"-\",IF(AND($Q176=\"Y\",'Enrollment Form'!$AP183=\"No\"),\"-\",IF(AND($Q176=\"Y\",'Enrollment Form'!$AP183=\"Yes\",'Enrollment Form'!$AQ183<>\"\"),\"Y\",\"N\"))))","v":""},{"$f":"IF($B176=\"N\",\"\",IF(OR('Enrollment Form'!$B183<>\"Subscriber\",'Enrollment Form'!$C183=\"ROC\"),\"-\",IF(AND('Enrollment Form'!$B183=\"Subscriber\",'Enrollment Form'!$C183=\"Enroll\",'Enrollment Form'!$CO183<>\"\"),\"Y\",\"N\")))","v":""},{"$f":"IF($B176=\"N\",\"\",IF($S176=\"-\",\"-\",IF(AND($S176=\"Y\",'Enrollment Form'!$CO183=\"No\"),\"-\",IF(AND($S176=\"Y\",'Enrollment Form'!$CO183=\"Yes\",'Enrollment Form'!$CP183<>\"\"),\"Y\",\"N\"))))","v":""},{"$f":"IF(OR('Enrollment Form'!$AV183=\"Yes\",'Enrollment Form'!$AV183=\"\"),\"-\",IF(AND('Enrollment Form'!$AV183=\"No\",ISERROR(FIND(\"HMO\",VLOOKUP('Enrollment Form'!G183,'Enrollment Form'!H$11:J$1000,3,FALSE),1))=FALSE,COUNTA('Enrollment Form'!$AW183:$AZ183)=4),\"Y\",\"N\"))","v":"-"},{"$f":"IF($B176=\"N\",\"\",IF('Enrollment Form'!$B183=\"Subscriber\",\"-\",IF(COUNTA('Enrollment Form'!$BE183,'Enrollment Form'!$BG183)=2,\"Y\",\"N\")))","v":""},{"$f":"IF($B176=\"N\",\"\",IF(OR('Enrollment Form'!$AU183=\"\",'Enrollment Form'!$AU183=\"No\"),\"-\",IF(AND('Enrollment Form'!$AU183=\"Yes\",COUNTA('Enrollment Form'!$CK183)=1),\"Y\",\"N\")))","v":""},{"$f":"IF(OR('Enrollment Form'!$CK183=\"\",'Enrollment Form'!$CK183=\"No\"),\"-\",IF(COUNTA('Enrollment Form'!$CM183:$CN183)=2,\"Y\",\"N\"))","v":"-"},{"$f":"IF($B176=\"N\",\"\",IF(COUNTIF('Enrollment Form'!$CZ183:$DO183,\"Other\")=COUNTA('Enrollment Form'!$DF183,'Enrollment Form'!$DA183,'Enrollment Form'!$DK183,'Enrollment Form'!$DP183),\"Y\",\"N\"))","v":""},{"$f":"IF($B176=\"N\",\"\",IF(OR('Enrollment Form'!B183<>\"Subscriber\",'Enrollment Form'!C183=\"ROC\",COUNTIF('Enrollment Form'!AS183:AT183,\"Yes\")>=1),\"-\",IF(AND('Enrollment Form'!C183=\"Enroll\",COUNTIF('Enrollment Form'!AS183:AT183,\"No\")=2,'Enrollment Form'!AU183=\"\"),\"N\",\"Y\")))","v":""},{"$f":"IF(OR(B176=\"N\",'Enrollment Form'!B183<>\"Subscriber\",'Enrollment Form'!C183=\"ROC\",'Enrollment Form'!O183<>\"Multiple of Salary\"),\"-\",IF(COUNTA('Enrollment Form'!T183:U183)<2,\"N\",\"Y\"))","v":"-"},{"$f":"IF(B176=\"N\",\"\",IF(OR('Enrollment Form'!C183=\"ROC\",'Enrollment Form'!B183<>\"Subscriber\",'Enrollment Form'!O183=\"Waive\",'Enrollment Form'!O183=\"\"),\"-\",IF('Enrollment Form'!P183=\"\",\"N\",\"Y\")))","v":""},{"$f":"IF($B176=\"N\",\"\",IF(AND('Enrollment Form'!$C183=\"ROC\",'Enrollment Form'!$DS183<>\"\"),\"Y\",IF(AND('Enrollment Form'!$C183=\"ROC\",'Enrollment Form'!$DS183=\"\"),\"N\",IF(AND('Enrollment Form'!$C183=\"Enroll\",'Enrollment Form'!$B183=\"Subscriber\",'Enrollment Form'!$CQ183=\"No\",'Enrollment Form'!$DS183=\"\"),\"N\",IF(AND('Enrollment Form'!$C183=\"Enroll\",'Enrollment Form'!$B183=\"Subscriber\",'Enrollment Form'!$CQ183=\"Yes\"),\"-\",\"Y\")))))","v":""},{"$f":"IF($B176=\"N\",\"\",IF(AND('Enrollment Form'!$C183=\"ROC\",'Enrollment Form'!$DT183<>\"\"),\"Y\",IF(AND('Enrollment Form'!$C183=\"ROC\",'Enrollment Form'!$DT183=\"\"),\"N\",IF(AND('Enrollment Form'!$C183=\"Enroll\",'Enrollment Form'!$B183=\"Subscriber\",'Enrollment Form'!$CQ183=\"No\",'Enrollment Form'!$DT183=\"\"),\"N\",IF(AND('Enrollment Form'!$C183=\"Enroll\",'Enrollment Form'!$B183=\"Subscriber\",'Enrollment Form'!$CQ183=\"Yes\"),\"-\",\"Y\")))))","v":""},{"$f":"IF('Enrollment Form'!AH183=\"\",\"\",IF(ISERROR(SEARCH(\".\",'Enrollment Form'!AH183,SEARCH(\"@\",'Enrollment Form'!AH183))),\"N\",\"Y\"))","v":""},{"$f":"IF(OR($B176=\"N\",'Enrollment Form'!$G183=\"\"),\"\",IF('Enrollment Form'!$B183<>\"Subscriber\",\"-\",IF(COUNTIF('Enrollment Form'!$AS183:$AT183,\"Yes\")=2,\"N\",\"Y\")))","v":""},{"$f":"IF(OR('Enrollment Form'!$CC183=\"\",'Enrollment Form'!$CC183=\"No\"),\"-\",IF(AND('Enrollment Form'!$CC183=\"Yes\",'Enrollment Form'!$CD183=\"\"),\"N\",\"Y\"))","v":"-"},{"$f":"IF(OR('Enrollment Form'!$CE183=\"\",'Enrollment Form'!$CE183=\"No\"),\"-\",IF(AND('Enrollment Form'!$CE183=\"Yes\",'Enrollment Form'!$CF183=\"\"),\"N\",\"Y\"))","v":"-"},{"$f":"IF(OR('Enrollment Form'!$CG183=\"\",'Enrollment Form'!$CG183=\"No\"),\"-\",IF(AND('Enrollment Form'!$CG183=\"Yes\",'Enrollment Form'!$CH183=\"\"),\"N\",\"Y\"))","v":"-"},{"$f":"IF(OR('Enrollment Form'!$CG183=\"\",'Enrollment Form'!$CG183=\"No\"),\"-\",IF(AND('Enrollment Form'!$CG183=\"Yes\",'Enrollment Form'!$CI183=\"\"),\"N\",\"Y\"))","v":"-"},{"$f":"IF('Enrollment Form'!B183<>\"Subscriber\",\"-\",IF(AND('Enrollment Form'!B183=\"Subscriber\",'Enrollment Form'!C183=\"Enroll\",'Enrollment Form'!AA183=\"\"),\"N\",\"Y\"))","v":"-"},{"$f":"IF(OR('Enrollment Form'!B183=\"Subscriber\",'Enrollment Form'!B183=\"\"),\"-\",IF('Enrollment Form'!BI183=\"\",\"N\",\"Y\"))","v":"-"},{"$f":"IF('Enrollment Form'!B183<>\"Subscriber\",\"-\",IF(AND('Enrollment Form'!B183=\"Subscriber\",'Enrollment Form'!G183=\"\"),\"N\",\"Y\"))","v":"-"},{"$f":"IF('Enrollment Form'!A183=\"\",\"\",IF('Enrollment Form'!B183=\"Subscriber\",\"-\",IF(AND('Enrollment Form'!B183<>\"Subscriber\",'Enrollment Form'!G183='Enrollment Form'!H183),\"N\",\"Y\")))","v":""},0]
[184,{"$f":"IF('Enrollment Form'!$A184<>\"\",\"Y\",\"N\")","v":"N"},{"$f":"IF(AND('Enrollment Form'!$B184=\"\",'Enrollment Form'!$C184<>\"\"),\"N\",IF($B177=\"N\",\"\",\"Y\"))","v":""},{"$f":"IF(OR($B177=\"N\",'Enrollment Form'!G184=\"\"),\"\",IF('Enrollment Form'!$B184<>\"Subscriber\",\"\",IF('Enrollment Form'!$G184='Enrollment Form'!$H184,\"Y\",\"N\")))","v":""},{"$f":"IF($B177=\"N\",\"\",IF(AND(COUNTIFS('Enrollment Form'!$H$11:$H$1000,'Enrollment Form'!$H184,'Enrollment Form'!$B$11:$B$1000,'Enrollment Form'!$B184)>1,'Enrollment Form'!$H184<>\"\"),\"N\",\"Y\"))","v":""},{"$f":"IF($B177=\"N\",\"\",IF(LEN('Enrollment Form'!$Y184)=0,\"\",IF(LEN('Enrollment Form'!$Y184)<>5,\"N\",\"Y\")))","v":""},{"$f":"IF($B177=\"N\",\"\",IF(LEN('Enrollment Form'!$AD184=0),\"\",IF(LEN('Enrollment Form'!$AD184)<>5,\"N\",\"Y\")))","v":""},{"$f":"IF($B177=\"N\",\"\",IF(LEN('Enrollment Form'!$BL184=0),\"\",IF(LEN('Enrollment Form'!$BL184)<>5,\"N\",\"Y\")))","v":""},{"$f":"IF($B177=\"N\",\"\",IF(LEN('Enrollment Form'!$AE184)=0,\"\",IF(LEN('Enrollment Form'!$AE184)<>10,\"N\",\"Y\")))","v":""},{"$f":"IF($B177=\"N\",\"\",IF(LEN('Enrollment Form'!$AF184)=0,\"\",IF(LEN('Enrollment Form'!$AF184)<>10,\"N\",\"Y\")))","v":""},{"$f":"IF('Enrollment Form'!$O184<>\"Graded\",\"-\",IF(AND('Enrollment Form'!$O184=\"Graded\",'Enrollment Form'!$AO184<>\"\"),\"Y\",\"N\"))","v":"-"},{"$f":"IF($B177=\"N\",\"\",IF(OR('Enrollment Form'!$B184<>\"Subscriber\",'Enrollment Form'!$C184=\"ROC\"),\"-\",IF(AND('Enrollment Form'!$B184=\"Subscriber\",'Enrollment Form'!$C184=\"Enroll\",'Enrollment Form'!$AJ184<>\"\"),\"Y\",\"N\")))","v":""},{"$f":"IF($B177=\"N\",\"\",IF(OR('Enrollment Form'!$B184<>\"Subscriber\",'Enrollment Form'!$C184=\"ROC\"),\"-\",IF(AND('Enrollment Form'!$B184=\"Subscriber\",'Enrollment Form'!$C184=\"Enroll\",'Enrollment Form'!$AK184<>\"\"),\"Y\",\"N\")))","v":""},{"$f":"IF($B177=\"N\",\"\",IF(OR('Enrollment Form'!$B184<>\"Subscriber\",'Enrollment Form'!$C184=\"ROC\"),\"-\",IF(AND('Enrollment Form'!$B184=\"Subscriber\",'Enrollment Form'!$C184=\"Enroll\",'Enrollment Form'!$AL184<>\"\"),\"Y\",\"N\")))","v":""},{"$f":"IF($B177=\"N\",\"\",IF(OR('Enrollment Form'!$B184<>\"Subscriber\",'Enrollment Form'!$C184=\"ROC\"),\"-\",IF(AND('Enrollment Form'!$B184=\"Subscriber\",'Enrollment Form'!$C184=\"Enroll\",'Enrollment Form'!$AM184<>\"\"),\"Y\",\"N\")))","v":""},{"$f":"IF($B177=\"N\",\"\",IF(OR('Enrollment Form'!$B184<>\"Subscriber\",'Enrollment Form'!$C184=\"ROC\"),\"-\",IF(AND('Enrollment Form'!$B184=\"Subscriber\",'Enrollment Form'!$C184=\"Enroll\",'Enrollment Form'!$AN184<>\"\"),\"Y\",\"N\")))","v":""},{"$f":"IF($B177=\"N\",\"\",IF(OR('Enrollment Form'!$B184<>\"Subscriber\",'Enrollment Form'!$C184=\"ROC\"),\"-\",IF(AND('Enrollment Form'!$B184=\"Subscriber\",'Enrollment Form'!$C184=\"Enroll\",'Enrollment Form'!$AP184<>\"\"),\"Y\",\"N\")))","v":""},{"$f":"IF($B177=\"N\",\"\",IF($Q177=\"-\",\"-\",IF(AND($Q177=\"Y\",'Enrollment Form'!$AP184=\"No\"),\"-\",IF(AND($Q177=\"Y\",'Enrollment Form'!$AP184=\"Yes\",'Enrollment Form'!$AQ184<>\"\"),\"Y\",\"N\"))))","v":""},{"$f":"IF($B177=\"N\",\"\",IF(OR('Enrollment Form'!$B184<>\"Subscriber\",'Enrollment Form'!$C184=\"ROC\"),\"-\",IF(AND('Enrollment Form'!$B184=\"Subscriber\",'Enrollment Form'!$C184=\"Enroll\",'Enrollment Form'!$CO184<>\"\"),\"Y\",\"N\")))","v":""},{"$f":"IF($B177=\"N\",\"\",IF($S177=\"-\",\"-\",IF(AND($S177=\"Y\",'Enrollment Form'!$CO184=\"No\"),\"-\",IF(AND($S177=\"Y\",'Enrollment Form'!$CO184=\"Yes\",'Enrollment Form'!$CP184<>\"\"),\"Y\",\"N\"))))","v":""},{"$f":"IF(OR('Enrollment Form'!$AV184=\"Yes\",'Enrollment Form'!$AV184=\"\"),\"-\",IF(AND('Enrollment Form'!$AV184=\"No\",ISERROR(FIND(\"HMO\",VLOOKUP('Enrollment Form'!G184,'Enrollment Form'!H$11:J$1000,3,FALSE),1))=FALSE,COUNTA('Enrollment Form'!$AW184:$AZ184)=4),\"Y\",\"N\"))","v":"-"},{"$f":"IF($B177=\"N\",\"\",IF('Enrollment Form'!$B184=\"Subscriber\",\"-\",IF(COUNTA('Enrollment Form'!$BE184,'Enrollment Form'!$BG184)=2,\"Y\",\"N\")))","v":""},{"$f":"IF($B177=\"N\",\"\",IF(OR('Enrollment Form'!$AU184=\"\",'Enrollment Form'!$AU184=\"No\"),\"-\",IF(AND('Enrollment Form'!$AU184=\"Yes\",COUNTA('Enrollment Form'!$CK184)=1),\"Y\",\"N\")))","v":""},{"$f":"IF(OR('Enrollment Form'!$CK184=\"\",'Enrollment Form'!$CK184=\"No\"),\"-\",IF(COUNTA('Enrollment Form'!$CM184:$CN184)=2,\"Y\",\"N\"))","v":"-"},{"$f":"IF($B177=\"N\",\"\",IF(COUNTIF('Enrollment Form'!$CZ184:$DO184,\"Other\")=COUNTA('Enrollment Form'!$DF184,'Enrollment Form'!$DA184,'Enrollment Form'!$DK184,'Enrollment Form'!$DP184),\"Y\",\"N\"))","v":""},{"$f":"IF($B177=\"N\",\"\",IF(OR('Enrollment Form'!B184<>\"Subscriber\",'Enrollment Form'!C184=\"ROC\",COUNTIF('Enrollment Form'!AS184:AT184,\"Yes\")>=1),\"-\",IF(AND('Enrollment Form'!C184=\"Enroll\",COUNTIF('Enrollment Form'!AS184:AT184,\"No\")=2,'Enrollment Form'!AU184=\"\"),\"N\",\"Y\")))","v":""},{"$f":"IF(OR(B177=\"N\",'Enrollment Form'!B184<>\"Subscriber\",'Enrollment Form'!C184=\"ROC\",'Enrollment Form'!O184<>\"Multiple of Salary\"),\"-\",IF(COUNTA('Enrollment Form'!T184:U184)<2,\"N\",\"Y\"))","v":"-"},{"$f":"IF(B177=\"N\",\"\",IF(OR('Enrollment Form'!C184=\"ROC\",'Enrollment Form'!B184<>\"Subscriber\",'Enrollment Form'!O184=\"Waive\",'Enrollment Form'!O184=\"\"),\"-\",IF('Enrollment Form'!P184=\"\",\"N\",\"Y\")))","v":""},{"$f":"IF($B177=\"N\",\"\",IF(AND('Enrollment Form'!$C184=\"ROC\",'Enrollment Form'!$DS184<>\"\"),\"Y\",IF(AND('Enrollment Form'!$C184=\"ROC\",'Enrollment Form'!$DS184=\"\"),\"N\",IF(AND('Enrollment Form'!$C184=\"Enroll\",'Enrollment Form'!$B184=\"Subscriber\",'Enrollment Form'!$CQ184=\"No\",'Enrollment Form'!$DS184=\"\"),\"N\",IF(AND('Enrollment Form'!$C184=\"Enroll\",'Enrollment Form'!$B184=\"Subscriber\",'Enrollment Form'!$CQ184=\"Yes\"),\"-\",\"Y\")))))","v":""},{"$f":"IF($B177=\"N\",\"\",IF(AND('Enrollment Form'!$C184=\"ROC\",'Enrollment Form'!$DT184<>\"\"),\"Y\",IF(AND('Enrollment Form'!$C184=\"ROC\",'Enrollment Form'!$DT184=\"\"),\"N\",IF(AND('Enrollment Form'!$C184=\"Enroll\",'Enrollment Form'!$B184=\"Subscriber\",'Enrollment Form'!$CQ184=\"No\",'Enrollment Form'!$DT184=\"\"),\"N\",IF(AND('Enrollment Form'!$C184=\"Enroll\",'Enrollment Form'!$B184=\"Subscriber\",'Enrollment Form'!$CQ184=\"Yes\"),\"-\",\"Y\")))))","v":""},{"$f":"IF('Enrollment Form'!AH184=\"\",\"\",IF(ISERROR(SEARCH(\".\",'Enrollment Form'!AH184,SEARCH(\"@\",'Enrollment Form'!AH184))),\"N\",\"Y\"))","v":""},{"$f":"IF(OR($B177=\"N\",'Enrollment Form'!$G184=\"\"),\"\",IF('Enrollment Form'!$B184<>\"Subscriber\",\"-\",IF(COUNTIF('Enrollment Form'!$AS184:$AT184,\"Yes\")=2,\"N\",\"Y\")))","v":""},{"$f":"IF(OR('Enrollment Form'!$CC184=\"\",'Enrollment Form'!$CC184=\"No\"),\"-\",IF(AND('Enrollment Form'!$CC184=\"Yes\",'Enrollment Form'!$CD184=\"\"),\"N\",\"Y\"))","v":"-"},{"$f":"IF(OR('Enrollment Form'!$CE184=\"\",'Enrollment Form'!$CE184=\"No\"),\"-\",IF(AND('Enrollment Form'!$CE184=\"Yes\",'Enrollment Form'!$CF184=\"\"),\"N\",\"Y\"))","v":"-"},{"$f":"IF(OR('Enrollment Form'!$CG184=\"\",'Enrollment Form'!$CG184=\"No\"),\"-\",IF(AND('Enrollment Form'!$CG184=\"Yes\",'Enrollment Form'!$CH184=\"\"),\"N\",\"Y\"))","v":"-"},{"$f":"IF(OR('Enrollment Form'!$CG184=\"\",'Enrollment Form'!$CG184=\"No\"),\"-\",IF(AND('Enrollment Form'!$CG184=\"Yes\",'Enrollment Form'!$CI184=\"\"),\"N\",\"Y\"))","v":"-"},{"$f":"IF('Enrollment Form'!B184<>\"Subscriber\",\"-\",IF(AND('Enrollment Form'!B184=\"Subscriber\",'Enrollment Form'!C184=\"Enroll\",'Enrollment Form'!AA184=\"\"),\"N\",\"Y\"))","v":"-"},{"$f":"IF(OR('Enrollment Form'!B184=\"Subscriber\",'Enrollment Form'!B184=\"\"),\"-\",IF('Enrollment Form'!BI184=\"\",\"N\",\"Y\"))","v":"-"},{"$f":"IF('Enrollment Form'!B184<>\"Subscriber\",\"-\",IF(AND('Enrollment Form'!B184=\"Subscriber\",'Enrollment Form'!G184=\"\"),\"N\",\"Y\"))","v":"-"},{"$f":"IF('Enrollment Form'!A184=\"\",\"\",IF('Enrollment Form'!B184=\"Subscriber\",\"-\",IF(AND('Enrollment Form'!B184<>\"Subscriber\",'Enrollment Form'!G184='Enrollment Form'!H184),\"N\",\"Y\")))","v":""},0]
[185,{"$f":"IF('Enrollment Form'!$A185<>\"\",\"Y\",\"N\")","v":"N"},{"$f":"IF(AND('Enrollment Form'!$B185=\"\",'Enrollment Form'!$C185<>\"\"),\"N\",IF($B178=\"N\",\"\",\"Y\"))","v":""},{"$f":"IF(OR($B178=\"N\",'Enrollment Form'!G185=\"\"),\"\",IF('Enrollment Form'!$B185<>\"Subscriber\",\"\",IF('Enrollment Form'!$G185='Enrollment Form'!$H185,\"Y\",\"N\")))","v":""},{"$f":"IF($B178=\"N\",\"\",IF(AND(COUNTIFS('Enrollment Form'!$H$11:$H$1000,'Enrollment Form'!$H185,'Enrollment Form'!$B$11:$B$1000,'Enrollment Form'!$B185)>1,'Enrollment Form'!$H185<>\"\"),\"N\",\"Y\"))","v":""},{"$f":"IF($B178=\"N\",\"\",IF(LEN('Enrollment Form'!$Y185)=0,\"\",IF(LEN('Enrollment Form'!$Y185)<>5,\"N\",\"Y\")))","v":""},{"$f":"IF($B178=\"N\",\"\",IF(LEN('Enrollment Form'!$AD185=0),\"\",IF(LEN('Enrollment Form'!$AD185)<>5,\"N\",\"Y\")))","v":""},{"$f":"IF($B178=\"N\",\"\",IF(LEN('Enrollment Form'!$BL185=0),\"\",IF(LEN('Enrollment Form'!$BL185)<>5,\"N\",\"Y\")))","v":""},{"$f":"IF($B178=\"N\",\"\",IF(LEN('Enrollment Form'!$AE185)=0,\"\",IF(LEN('Enrollment Form'!$AE185)<>10,\"N\",\"Y\")))","v":""},{"$f":"IF($B178=\"N\",\"\",IF(LEN('Enrollment Form'!$AF185)=0,\"\",IF(LEN('Enrollment Form'!$AF185)<>10,\"N\",\"Y\")))","v":""},{"$f":"IF('Enrollment Form'!$O185<>\"Graded\",\"-\",IF(AND('Enrollment Form'!$O185=\"Graded\",'Enrollment Form'!$AO185<>\"\"),\"Y\",\"N\"))","v":"-"},{"$f":"IF($B178=\"N\",\"\",IF(OR('Enrollment Form'!$B185<>\"Subscriber\",'Enrollment Form'!$C185=\"ROC\"),\"-\",IF(AND('Enrollment Form'!$B185=\"Subscriber\",'Enrollment Form'!$C185=\"Enroll\",'Enrollment Form'!$AJ185<>\"\"),\"Y\",\"N\")))","v":""},{"$f":"IF($B178=\"N\",\"\",IF(OR('Enrollment Form'!$B185<>\"Subscriber\",'Enrollment Form'!$C185=\"ROC\"),\"-\",IF(AND('Enrollment Form'!$B185=\"Subscriber\",'Enrollment Form'!$C185=\"Enroll\",'Enrollment Form'!$AK185<>\"\"),\"Y\",\"N\")))","v":""},{"$f":"IF($B178=\"N\",\"\",IF(OR('Enrollment Form'!$B185<>\"Subscriber\",'Enrollment Form'!$C185=\"ROC\"),\"-\",IF(AND('Enrollment Form'!$B185=\"Subscriber\",'Enrollment Form'!$C185=\"Enroll\",'Enrollment Form'!$AL185<>\"\"),\"Y\",\"N\")))","v":""},{"$f":"IF($B178=\"N\",\"\",IF(OR('Enrollment Form'!$B185<>\"Subscriber\",'Enrollment Form'!$C185=\"ROC\"),\"-\",IF(AND('Enrollment Form'!$B185=\"Subscriber\",'Enrollment Form'!$C185=\"Enroll\",'Enrollment Form'!$AM185<>\"\"),\"Y\",\"N\")))","v":""},{"$f":"IF($B178=\"N\",\"\",IF(OR('Enrollment Form'!$B185<>\"Subscriber\",'Enrollment Form'!$C185=\"ROC\"),\"-\",IF(AND('Enrollment Form'!$B185=\"Subscriber\",'Enrollment Form'!$C185=\"Enroll\",'Enrollment Form'!$AN185<>\"\"),\"Y\",\"N\")))","v":""},{"$f":"IF($B178=\"N\",\"\",IF(OR('Enrollment Form'!$B185<>\"Subscriber\",'Enrollment Form'!$C185=\"ROC\"),\"-\",IF(AND('Enrollment Form'!$B185=\"Subscriber\",'Enrollment Form'!$C185=\"Enroll\",'Enrollment Form'!$AP185<>\"\"),\"Y\",\"N\")))","v":""},{"$f":"IF($B178=\"N\",\"\",IF($Q178=\"-\",\"-\",IF(AND($Q178=\"Y\",'Enrollment Form'!$AP185=\"No\"),\"-\",IF(AND($Q178=\"Y\",'Enrollment Form'!$AP185=\"Yes\",'Enrollment Form'!$AQ185<>\"\"),\"Y\",\"N\"))))","v":""},{"$f":"IF($B178=\"N\",\"\",IF(OR('Enrollment Form'!$B185<>\"Subscriber\",'Enrollment Form'!$C185=\"ROC\"),\"-\",IF(AND('Enrollment Form'!$B185=\"Subscriber\",'Enrollment Form'!$C185=\"Enroll\",'Enrollment Form'!$CO185<>\"\"),\"Y\",\"N\")))","v":""},{"$f":"IF($B178=\"N\",\"\",IF($S178=\"-\",\"-\",IF(AND($S178=\"Y\",'Enrollment Form'!$CO185=\"No\"),\"-\",IF(AND($S178=\"Y\",'Enrollment Form'!$CO185=\"Yes\",'Enrollment Form'!$CP185<>\"\"),\"Y\",\"N\"))))","v":""},{"$f":"IF(OR('Enrollment Form'!$AV185=\"Yes\",'Enrollment Form'!$AV185=\"\"),\"-\",IF(AND('Enrollment Form'!$AV185=\"No\",ISERROR(FIND(\"HMO\",VLOOKUP('Enrollment Form'!G185,'Enrollment Form'!H$11:J$1000,3,FALSE),1))=FALSE,COUNTA('Enrollment Form'!$AW185:$AZ185)=4),\"Y\",\"N\"))","v":"-"},{"$f":"IF($B178=\"N\",\"\",IF('Enrollment Form'!$B185=\"Subscriber\",\"-\",IF(COUNTA('Enrollment Form'!$BE185,'Enrollment Form'!$BG185)=2,\"Y\",\"N\")))","v":""},{"$f":"IF($B178=\"N\",\"\",IF(OR('Enrollment Form'!$AU185=\"\",'Enrollment Form'!$AU185=\"No\"),\"-\",IF(AND('Enrollment Form'!$AU185=\"Yes\",COUNTA('Enrollment Form'!$CK185)=1),\"Y\",\"N\")))","v":""},{"$f":"IF(OR('Enrollment Form'!$CK185=\"\",'Enrollment Form'!$CK185=\"No\"),\"-\",IF(COUNTA('Enrollment Form'!$CM185:$CN185)=2,\"Y\",\"N\"))","v":"-"},{"$f":"IF($B178=\"N\",\"\",IF(COUNTIF('Enrollment Form'!$CZ185:$DO185,\"Other\")=COUNTA('Enrollment Form'!$DF185,'Enrollment Form'!$DA185,'Enrollment Form'!$DK185,'Enrollment Form'!$DP185),\"Y\",\"N\"))","v":""},{"$f":"IF($B178=\"N\",\"\",IF(OR('Enrollment Form'!B185<>\"Subscriber\",'Enrollment Form'!C185=\"ROC\",COUNTIF('Enrollment Form'!AS185:AT185,\"Yes\")>=1),\"-\",IF(AND('Enrollment Form'!C185=\"Enroll\",COUNTIF('Enrollment Form'!AS185:AT185,\"No\")=2,'Enrollment Form'!AU185=\"\"),\"N\",\"Y\")))","v":""},{"$f":"IF(OR(B178=\"N\",'Enrollment Form'!B185<>\"Subscriber\",'Enrollment Form'!C185=\"ROC\",'Enrollment Form'!O185<>\"Multiple of Salary\"),\"-\",IF(COUNTA('Enrollment Form'!T185:U185)<2,\"N\",\"Y\"))","v":"-"},{"$f":"IF(B178=\"N\",\"\",IF(OR('Enrollment Form'!C185=\"ROC\",'Enrollment Form'!B185<>\"Subscriber\",'Enrollment Form'!O185=\"Waive\",'Enrollment Form'!O185=\"\"),\"-\",IF('Enrollment Form'!P185=\"\",\"N\",\"Y\")))","v":""},{"$f":"IF($B178=\"N\",\"\",IF(AND('Enrollment Form'!$C185=\"ROC\",'Enrollment Form'!$DS185<>\"\"),\"Y\",IF(AND('Enrollment Form'!$C185=\"ROC\",'Enrollment Form'!$DS185=\"\"),\"N\",IF(AND('Enrollment Form'!$C185=\"Enroll\",'Enrollment Form'!$B185=\"Subscriber\",'Enrollment Form'!$CQ185=\"No\",'Enrollment Form'!$DS185=\"\"),\"N\",IF(AND('Enrollment Form'!$C185=\"Enroll\",'Enrollment Form'!$B185=\"Subscriber\",'Enrollment Form'!$CQ185=\"Yes\"),\"-\",\"Y\")))))","v":""},{"$f":"IF($B178=\"N\",\"\",IF(AND('Enrollment Form'!$C185=\"ROC\",'Enrollment Form'!$DT185<>\"\"),\"Y\",IF(AND('Enrollment Form'!$C185=\"ROC\",'Enrollment Form'!$DT185=\"\"),\"N\",IF(AND('Enrollment Form'!$C185=\"Enroll\",'Enrollment Form'!$B185=\"Subscriber\",'Enrollment Form'!$CQ185=\"No\",'Enrollment Form'!$DT185=\"\"),\"N\",IF(AND('Enrollment Form'!$C185=\"Enroll\",'Enrollment Form'!$B185=\"Subscriber\",'Enrollment Form'!$CQ185=\"Yes\"),\"-\",\"Y\")))))","v":""},{"$f":"IF('Enrollment Form'!AH185=\"\",\"\",IF(ISERROR(SEARCH(\".\",'Enrollment Form'!AH185,SEARCH(\"@\",'Enrollment Form'!AH185))),\"N\",\"Y\"))","v":""},{"$f":"IF(OR($B178=\"N\",'Enrollment Form'!$G185=\"\"),\"\",IF('Enrollment Form'!$B185<>\"Subscriber\",\"-\",IF(COUNTIF('Enrollment Form'!$AS185:$AT185,\"Yes\")=2,\"N\",\"Y\")))","v":""},{"$f":"IF(OR('Enrollment Form'!$CC185=\"\",'Enrollment Form'!$CC185=\"No\"),\"-\",IF(AND('Enrollment Form'!$CC185=\"Yes\",'Enrollment Form'!$CD185=\"\"),\"N\",\"Y\"))","v":"-"},{"$f":"IF(OR('Enrollment Form'!$CE185=\"\",'Enrollment Form'!$CE185=\"No\"),\"-\",IF(AND('Enrollment Form'!$CE185=\"Yes\",'Enrollment Form'!$CF185=\"\"),\"N\",\"Y\"))","v":"-"},{"$f":"IF(OR('Enrollment Form'!$CG185=\"\",'Enrollment Form'!$CG185=\"No\"),\"-\",IF(AND('Enrollment Form'!$CG185=\"Yes\",'Enrollment Form'!$CH185=\"\"),\"N\",\"Y\"))","v":"-"},{"$f":"IF(OR('Enrollment Form'!$CG185=\"\",'Enrollment Form'!$CG185=\"No\"),\"-\",IF(AND('Enrollment Form'!$CG185=\"Yes\",'Enrollment Form'!$CI185=\"\"),\"N\",\"Y\"))","v":"-"},{"$f":"IF('Enrollment Form'!B185<>\"Subscriber\",\"-\",IF(AND('Enrollment Form'!B185=\"Subscriber\",'Enrollment Form'!C185=\"Enroll\",'Enrollment Form'!AA185=\"\"),\"N\",\"Y\"))","v":"-"},{"$f":"IF(OR('Enrollment Form'!B185=\"Subscriber\",'Enrollment Form'!B185=\"\"),\"-\",IF('Enrollment Form'!BI185=\"\",\"N\",\"Y\"))","v":"-"},{"$f":"IF('Enrollment Form'!B185<>\"Subscriber\",\"-\",IF(AND('Enrollment Form'!B185=\"Subscriber\",'Enrollment Form'!G185=\"\"),\"N\",\"Y\"))","v":"-"},{"$f":"IF('Enrollment Form'!A185=\"\",\"\",IF('Enrollment Form'!B185=\"Subscriber\",\"-\",IF(AND('Enrollment Form'!B185<>\"Subscriber\",'Enrollment Form'!G185='Enrollment Form'!H185),\"N\",\"Y\")))","v":""},0]
[186,{"$f":"IF('Enrollment Form'!$A186<>\"\",\"Y\",\"N\")","v":"N"},{"$f":"IF(AND('Enrollment Form'!$B186=\"\",'Enrollment Form'!$C186<>\"\"),\"N\",IF($B179=\"N\",\"\",\"Y\"))","v":""},{"$f":"IF(OR($B179=\"N\",'Enrollment Form'!G186=\"\"),\"\",IF('Enrollment Form'!$B186<>\"Subscriber\",\"\",IF('Enrollment Form'!$G186='Enrollment Form'!$H186,\"Y\",\"N\")))","v":""},{"$f":"IF($B179=\"N\",\"\",IF(AND(COUNTIFS('Enrollment Form'!$H$11:$H$1000,'Enrollment Form'!$H186,'Enrollment Form'!$B$11:$B$1000,'Enrollment Form'!$B186)>1,'Enrollment Form'!$H186<>\"\"),\"N\",\"Y\"))","v":""},{"$f":"IF($B179=\"N\",\"\",IF(LEN('Enrollment Form'!$Y186)=0,\"\",IF(LEN('Enrollment Form'!$Y186)<>5,\"N\",\"Y\")))","v":""},{"$f":"IF($B179=\"N\",\"\",IF(LEN('Enrollment Form'!$AD186=0),\"\",IF(LEN('Enrollment Form'!$AD186)<>5,\"N\",\"Y\")))","v":""},{"$f":"IF($B179=\"N\",\"\",IF(LEN('Enrollment Form'!$BL186=0),\"\",IF(LEN('Enrollment Form'!$BL186)<>5,\"N\",\"Y\")))","v":""},{"$f":"IF($B179=\"N\",\"\",IF(LEN('Enrollment Form'!$AE186)=0,\"\",IF(LEN('Enrollment Form'!$AE186)<>10,\"N\",\"Y\")))","v":""},{"$f":"IF($B179=\"N\",\"\",IF(LEN('Enrollment Form'!$AF186)=0,\"\",IF(LEN('Enrollment Form'!$AF186)<>10,\"N\",\"Y\")))","v":""},{"$f":"IF('Enrollment Form'!$O186<>\"Graded\",\"-\",IF(AND('Enrollment Form'!$O186=\"Graded\",'Enrollment Form'!$AO186<>\"\"),\"Y\",\"N\"))","v":"-"},{"$f":"IF($B179=\"N\",\"\",IF(OR('Enrollment Form'!$B186<>\"Subscriber\",'Enrollment Form'!$C186=\"ROC\"),\"-\",IF(AND('Enrollment Form'!$B186=\"Subscriber\",'Enrollment Form'!$C186=\"Enroll\",'Enrollment Form'!$AJ186<>\"\"),\"Y\",\"N\")))","v":""},{"$f":"IF($B179=\"N\",\"\",IF(OR('Enrollment Form'!$B186<>\"Subscriber\",'Enrollment Form'!$C186=\"ROC\"),\"-\",IF(AND('Enrollment Form'!$B186=\"Subscriber\",'Enrollment Form'!$C186=\"Enroll\",'Enrollment Form'!$AK186<>\"\"),\"Y\",\"N\")))","v":""},{"$f":"IF($B179=\"N\",\"\",IF(OR('Enrollment Form'!$B186<>\"Subscriber\",'Enrollment Form'!$C186=\"ROC\"),\"-\",IF(AND('Enrollment Form'!$B186=\"Subscriber\",'Enrollment Form'!$C186=\"Enroll\",'Enrollment Form'!$AL186<>\"\"),\"Y\",\"N\")))","v":""},{"$f":"IF($B179=\"N\",\"\",IF(OR('Enrollment Form'!$B186<>\"Subscriber\",'Enrollment Form'!$C186=\"ROC\"),\"-\",IF(AND('Enrollment Form'!$B186=\"Subscriber\",'Enrollment Form'!$C186=\"Enroll\",'Enrollment Form'!$AM186<>\"\"),\"Y\",\"N\")))","v":""},{"$f":"IF($B179=\"N\",\"\",IF(OR('Enrollment Form'!$B186<>\"Subscriber\",'Enrollment Form'!$C186=\"ROC\"),\"-\",IF(AND('Enrollment Form'!$B186=\"Subscriber\",'Enrollment Form'!$C186=\"Enroll\",'Enrollment Form'!$AN186<>\"\"),\"Y\",\"N\")))","v":""},{"$f":"IF($B179=\"N\",\"\",IF(OR('Enrollment Form'!$B186<>\"Subscriber\",'Enrollment Form'!$C186=\"ROC\"),\"-\",IF(AND('Enrollment Form'!$B186=\"Subscriber\",'Enrollment Form'!$C186=\"Enroll\",'Enrollment Form'!$AP186<>\"\"),\"Y\",\"N\")))","v":""},{"$f":"IF($B179=\"N\",\"\",IF($Q179=\"-\",\"-\",IF(AND($Q179=\"Y\",'Enrollment Form'!$AP186=\"No\"),\"-\",IF(AND($Q179=\"Y\",'Enrollment Form'!$AP186=\"Yes\",'Enrollment Form'!$AQ186<>\"\"),\"Y\",\"N\"))))","v":""},{"$f":"IF($B179=\"N\",\"\",IF(OR('Enrollment Form'!$B186<>\"Subscriber\",'Enrollment Form'!$C186=\"ROC\"),\"-\",IF(AND('Enrollment Form'!$B186=\"Subscriber\",'Enrollment Form'!$C186=\"Enroll\",'Enrollment Form'!$CO186<>\"\"),\"Y\",\"N\")))","v":""},{"$f":"IF($B179=\"N\",\"\",IF($S179=\"-\",\"-\",IF(AND($S179=\"Y\",'Enrollment Form'!$CO186=\"No\"),\"-\",IF(AND($S179=\"Y\",'Enrollment Form'!$CO186=\"Yes\",'Enrollment Form'!$CP186<>\"\"),\"Y\",\"N\"))))","v":""},{"$f":"IF(OR('Enrollment Form'!$AV186=\"Yes\",'Enrollment Form'!$AV186=\"\"),\"-\",IF(AND('Enrollment Form'!$AV186=\"No\",ISERROR(FIND(\"HMO\",VLOOKUP('Enrollment Form'!G186,'Enrollment Form'!H$11:J$1000,3,FALSE),1))=FALSE,COUNTA('Enrollment Form'!$AW186:$AZ186)=4),\"Y\",\"N\"))","v":"-"},{"$f":"IF($B179=\"N\",\"\",IF('Enrollment Form'!$B186=\"Subscriber\",\"-\",IF(COUNTA('Enrollment Form'!$BE186,'Enrollment Form'!$BG186)=2,\"Y\",\"N\")))","v":""},{"$f":"IF($B179=\"N\",\"\",IF(OR('Enrollment Form'!$AU186=\"\",'Enrollment Form'!$AU186=\"No\"),\"-\",IF(AND('Enrollment Form'!$AU186=\"Yes\",COUNTA('Enrollment Form'!$CK186)=1),\"Y\",\"N\")))","v":""},{"$f":"IF(OR('Enrollment Form'!$CK186=\"\",'Enrollment Form'!$CK186=\"No\"),\"-\",IF(COUNTA('Enrollment Form'!$CM186:$CN186)=2,\"Y\",\"N\"))","v":"-"},{"$f":"IF($B179=\"N\",\"\",IF(COUNTIF('Enrollment Form'!$CZ186:$DO186,\"Other\")=COUNTA('Enrollment Form'!$DF186,'Enrollment Form'!$DA186,'Enrollment Form'!$DK186,'Enrollment Form'!$DP186),\"Y\",\"N\"))","v":""},{"$f":"IF($B179=\"N\",\"\",IF(OR('Enrollment Form'!B186<>\"Subscriber\",'Enrollment Form'!C186=\"ROC\",COUNTIF('Enrollment Form'!AS186:AT186,\"Yes\")>=1),\"-\",IF(AND('Enrollment Form'!C186=\"Enroll\",COUNTIF('Enrollment Form'!AS186:AT186,\"No\")=2,'Enrollment Form'!AU186=\"\"),\"N\",\"Y\")))","v":""},{"$f":"IF(OR(B179=\"N\",'Enrollment Form'!B186<>\"Subscriber\",'Enrollment Form'!C186=\"ROC\",'Enrollment Form'!O186<>\"Multiple of Salary\"),\"-\",IF(COUNTA('Enrollment Form'!T186:U186)<2,\"N\",\"Y\"))","v":"-"},{"$f":"IF(B179=\"N\",\"\",IF(OR('Enrollment Form'!C186=\"ROC\",'Enrollment Form'!B186<>\"Subscriber\",'Enrollment Form'!O186=\"Waive\",'Enrollment Form'!O186=\"\"),\"-\",IF('Enrollment Form'!P186=\"\",\"N\",\"Y\")))","v":""},{"$f":"IF($B179=\"N\",\"\",IF(AND('Enrollment Form'!$C186=\"ROC\",'Enrollment Form'!$DS186<>\"\"),\"Y\",IF(AND('Enrollment Form'!$C186=\"ROC\",'Enrollment Form'!$DS186=\"\"),\"N\",IF(AND('Enrollment Form'!$C186=\"Enroll\",'Enrollment Form'!$B186=\"Subscriber\",'Enrollment Form'!$CQ186=\"No\",'Enrollment Form'!$DS186=\"\"),\"N\",IF(AND('Enrollment Form'!$C186=\"Enroll\",'Enrollment Form'!$B186=\"Subscriber\",'Enrollment Form'!$CQ186=\"Yes\"),\"-\",\"Y\")))))","v":""},{"$f":"IF($B179=\"N\",\"\",IF(AND('Enrollment Form'!$C186=\"ROC\",'Enrollment Form'!$DT186<>\"\"),\"Y\",IF(AND('Enrollment Form'!$C186=\"ROC\",'Enrollment Form'!$DT186=\"\"),\"N\",IF(AND('Enrollment Form'!$C186=\"Enroll\",'Enrollment Form'!$B186=\"Subscriber\",'Enrollment Form'!$CQ186=\"No\",'Enrollment Form'!$DT186=\"\"),\"N\",IF(AND('Enrollment Form'!$C186=\"Enroll\",'Enrollment Form'!$B186=\"Subscriber\",'Enrollment Form'!$CQ186=\"Yes\"),\"-\",\"Y\")))))","v":""},{"$f":"IF('Enrollment Form'!AH186=\"\",\"\",IF(ISERROR(SEARCH(\".\",'Enrollment Form'!AH186,SEARCH(\"@\",'Enrollment Form'!AH186))),\"N\",\"Y\"))","v":""},{"$f":"IF(OR($B179=\"N\",'Enrollment Form'!$G186=\"\"),\"\",IF('Enrollment Form'!$B186<>\"Subscriber\",\"-\",IF(COUNTIF('Enrollment Form'!$AS186:$AT186,\"Yes\")=2,\"N\",\"Y\")))","v":""},{"$f":"IF(OR('Enrollment Form'!$CC186=\"\",'Enrollment Form'!$CC186=\"No\"),\"-\",IF(AND('Enrollment Form'!$CC186=\"Yes\",'Enrollment Form'!$CD186=\"\"),\"N\",\"Y\"))","v":"-"},{"$f":"IF(OR('Enrollment Form'!$CE186=\"\",'Enrollment Form'!$CE186=\"No\"),\"-\",IF(AND('Enrollment Form'!$CE186=\"Yes\",'Enrollment Form'!$CF186=\"\"),\"N\",\"Y\"))","v":"-"},{"$f":"IF(OR('Enrollment Form'!$CG186=\"\",'Enrollment Form'!$CG186=\"No\"),\"-\",IF(AND('Enrollment Form'!$CG186=\"Yes\",'Enrollment Form'!$CH186=\"\"),\"N\",\"Y\"))","v":"-"},{"$f":"IF(OR('Enrollment Form'!$CG186=\"\",'Enrollment Form'!$CG186=\"No\"),\"-\",IF(AND('Enrollment Form'!$CG186=\"Yes\",'Enrollment Form'!$CI186=\"\"),\"N\",\"Y\"))","v":"-"},{"$f":"IF('Enrollment Form'!B186<>\"Subscriber\",\"-\",IF(AND('Enrollment Form'!B186=\"Subscriber\",'Enrollment Form'!C186=\"Enroll\",'Enrollment Form'!AA186=\"\"),\"N\",\"Y\"))","v":"-"},{"$f":"IF(OR('Enrollment Form'!B186=\"Subscriber\",'Enrollment Form'!B186=\"\"),\"-\",IF('Enrollment Form'!BI186=\"\",\"N\",\"Y\"))","v":"-"},{"$f":"IF('Enrollment Form'!B186<>\"Subscriber\",\"-\",IF(AND('Enrollment Form'!B186=\"Subscriber\",'Enrollment Form'!G186=\"\"),\"N\",\"Y\"))","v":"-"},{"$f":"IF('Enrollment Form'!A186=\"\",\"\",IF('Enrollment Form'!B186=\"Subscriber\",\"-\",IF(AND('Enrollment Form'!B186<>\"Subscriber\",'Enrollment Form'!G186='Enrollment Form'!H186),\"N\",\"Y\")))","v":""},0]
[187,{"$f":"IF('Enrollment Form'!$A187<>\"\",\"Y\",\"N\")","v":"N"},{"$f":"IF(AND('Enrollment Form'!$B187=\"\",'Enrollment Form'!$C187<>\"\"),\"N\",IF($B180=\"N\",\"\",\"Y\"))","v":""},{"$f":"IF(OR($B180=\"N\",'Enrollment Form'!G187=\"\"),\"\",IF('Enrollment Form'!$B187<>\"Subscriber\",\"\",IF('Enrollment Form'!$G187='Enrollment Form'!$H187,\"Y\",\"N\")))","v":""},{"$f":"IF($B180=\"N\",\"\",IF(AND(COUNTIFS('Enrollment Form'!$H$11:$H$1000,'Enrollment Form'!$H187,'Enrollment Form'!$B$11:$B$1000,'Enrollment Form'!$B187)>1,'Enrollment Form'!$H187<>\"\"),\"N\",\"Y\"))","v":""},{"$f":"IF($B180=\"N\",\"\",IF(LEN('Enrollment Form'!$Y187)=0,\"\",IF(LEN('Enrollment Form'!$Y187)<>5,\"N\",\"Y\")))","v":""},{"$f":"IF($B180=\"N\",\"\",IF(LEN('Enrollment Form'!$AD187=0),\"\",IF(LEN('Enrollment Form'!$AD187)<>5,\"N\",\"Y\")))","v":""},{"$f":"IF($B180=\"N\",\"\",IF(LEN('Enrollment Form'!$BL187=0),\"\",IF(LEN('Enrollment Form'!$BL187)<>5,\"N\",\"Y\")))","v":""},{"$f":"IF($B180=\"N\",\"\",IF(LEN('Enrollment Form'!$AE187)=0,\"\",IF(LEN('Enrollment Form'!$AE187)<>10,\"N\",\"Y\")))","v":""},{"$f":"IF($B180=\"N\",\"\",IF(LEN('Enrollment Form'!$AF187)=0,\"\",IF(LEN('Enrollment Form'!$AF187)<>10,\"N\",\"Y\")))","v":""},{"$f":"IF('Enrollment Form'!$O187<>\"Graded\",\"-\",IF(AND('Enrollment Form'!$O187=\"Graded\",'Enrollment Form'!$AO187<>\"\"),\"Y\",\"N\"))","v":"-"},{"$f":"IF($B180=\"N\",\"\",IF(OR('Enrollment Form'!$B187<>\"Subscriber\",'Enrollment Form'!$C187=\"ROC\"),\"-\",IF(AND('Enrollment Form'!$B187=\"Subscriber\",'Enrollment Form'!$C187=\"Enroll\",'Enrollment Form'!$AJ187<>\"\"),\"Y\",\"N\")))","v":""},{"$f":"IF($B180=\"N\",\"\",IF(OR('Enrollment Form'!$B187<>\"Subscriber\",'Enrollment Form'!$C187=\"ROC\"),\"-\",IF(AND('Enrollment Form'!$B187=\"Subscriber\",'Enrollment Form'!$C187=\"Enroll\",'Enrollment Form'!$AK187<>\"\"),\"Y\",\"N\")))","v":""},{"$f":"IF($B180=\"N\",\"\",IF(OR('Enrollment Form'!$B187<>\"Subscriber\",'Enrollment Form'!$C187=\"ROC\"),\"-\",IF(AND('Enrollment Form'!$B187=\"Subscriber\",'Enrollment Form'!$C187=\"Enroll\",'Enrollment Form'!$AL187<>\"\"),\"Y\",\"N\")))","v":""},{"$f":"IF($B180=\"N\",\"\",IF(OR('Enrollment Form'!$B187<>\"Subscriber\",'Enrollment Form'!$C187=\"ROC\"),\"-\",IF(AND('Enrollment Form'!$B187=\"Subscriber\",'Enrollment Form'!$C187=\"Enroll\",'Enrollment Form'!$AM187<>\"\"),\"Y\",\"N\")))","v":""},{"$f":"IF($B180=\"N\",\"\",IF(OR('Enrollment Form'!$B187<>\"Subscriber\",'Enrollment Form'!$C187=\"ROC\"),\"-\",IF(AND('Enrollment Form'!$B187=\"Subscriber\",'Enrollment Form'!$C187=\"Enroll\",'Enrollment Form'!$AN187<>\"\"),\"Y\",\"N\")))","v":""},{"$f":"IF($B180=\"N\",\"\",IF(OR('Enrollment Form'!$B187<>\"Subscriber\",'Enrollment Form'!$C187=\"ROC\"),\"-\",IF(AND('Enrollment Form'!$B187=\"Subscriber\",'Enrollment Form'!$C187=\"Enroll\",'Enrollment Form'!$AP187<>\"\"),\"Y\",\"N\")))","v":""},{"$f":"IF($B180=\"N\",\"\",IF($Q180=\"-\",\"-\",IF(AND($Q180=\"Y\",'Enrollment Form'!$AP187=\"No\"),\"-\",IF(AND($Q180=\"Y\",'Enrollment Form'!$AP187=\"Yes\",'Enrollment Form'!$AQ187<>\"\"),\"Y\",\"N\"))))","v":""},{"$f":"IF($B180=\"N\",\"\",IF(OR('Enrollment Form'!$B187<>\"Subscriber\",'Enrollment Form'!$C187=\"ROC\"),\"-\",IF(AND('Enrollment Form'!$B187=\"Subscriber\",'Enrollment Form'!$C187=\"Enroll\",'Enrollment Form'!$CO187<>\"\"),\"Y\",\"N\")))","v":""},{"$f":"IF($B180=\"N\",\"\",IF($S180=\"-\",\"-\",IF(AND($S180=\"Y\",'Enrollment Form'!$CO187=\"No\"),\"-\",IF(AND($S180=\"Y\",'Enrollment Form'!$CO187=\"Yes\",'Enrollment Form'!$CP187<>\"\"),\"Y\",\"N\"))))","v":""},{"$f":"IF(OR('Enrollment Form'!$AV187=\"Yes\",'Enrollment Form'!$AV187=\"\"),\"-\",IF(AND('Enrollment Form'!$AV187=\"No\",ISERROR(FIND(\"HMO\",VLOOKUP('Enrollment Form'!G187,'Enrollment Form'!H$11:J$1000,3,FALSE),1))=FALSE,COUNTA('Enrollment Form'!$AW187:$AZ187)=4),\"Y\",\"N\"))","v":"-"},{"$f":"IF($B180=\"N\",\"\",IF('Enrollment Form'!$B187=\"Subscriber\",\"-\",IF(COUNTA('Enrollment Form'!$BE187,'Enrollment Form'!$BG187)=2,\"Y\",\"N\")))","v":""},{"$f":"IF($B180=\"N\",\"\",IF(OR('Enrollment Form'!$AU187=\"\",'Enrollment Form'!$AU187=\"No\"),\"-\",IF(AND('Enrollment Form'!$AU187=\"Yes\",COUNTA('Enrollment Form'!$CK187)=1),\"Y\",\"N\")))","v":""},{"$f":"IF(OR('Enrollment Form'!$CK187=\"\",'Enrollment Form'!$CK187=\"No\"),\"-\",IF(COUNTA('Enrollment Form'!$CM187:$CN187)=2,\"Y\",\"N\"))","v":"-"},{"$f":"IF($B180=\"N\",\"\",IF(COUNTIF('Enrollment Form'!$CZ187:$DO187,\"Other\")=COUNTA('Enrollment Form'!$DF187,'Enrollment Form'!$DA187,'Enrollment Form'!$DK187,'Enrollment Form'!$DP187),\"Y\",\"N\"))","v":""},{"$f":"IF($B180=\"N\",\"\",IF(OR('Enrollment Form'!B187<>\"Subscriber\",'Enrollment Form'!C187=\"ROC\",COUNTIF('Enrollment Form'!AS187:AT187,\"Yes\")>=1),\"-\",IF(AND('Enrollment Form'!C187=\"Enroll\",COUNTIF('Enrollment Form'!AS187:AT187,\"No\")=2,'Enrollment Form'!AU187=\"\"),\"N\",\"Y\")))","v":""},{"$f":"IF(OR(B180=\"N\",'Enrollment Form'!B187<>\"Subscriber\",'Enrollment Form'!C187=\"ROC\",'Enrollment Form'!O187<>\"Multiple of Salary\"),\"-\",IF(COUNTA('Enrollment Form'!T187:U187)<2,\"N\",\"Y\"))","v":"-"},{"$f":"IF(B180=\"N\",\"\",IF(OR('Enrollment Form'!C187=\"ROC\",'Enrollment Form'!B187<>\"Subscriber\",'Enrollment Form'!O187=\"Waive\",'Enrollment Form'!O187=\"\"),\"-\",IF('Enrollment Form'!P187=\"\",\"N\",\"Y\")))","v":""},{"$f":"IF($B180=\"N\",\"\",IF(AND('Enrollment Form'!$C187=\"ROC\",'Enrollment Form'!$DS187<>\"\"),\"Y\",IF(AND('Enrollment Form'!$C187=\"ROC\",'Enrollment Form'!$DS187=\"\"),\"N\",IF(AND('Enrollment Form'!$C187=\"Enroll\",'Enrollment Form'!$B187=\"Subscriber\",'Enrollment Form'!$CQ187=\"No\",'Enrollment Form'!$DS187=\"\"),\"N\",IF(AND('Enrollment Form'!$C187=\"Enroll\",'Enrollment Form'!$B187=\"Subscriber\",'Enrollment Form'!$CQ187=\"Yes\"),\"-\",\"Y\")))))","v":""},{"$f":"IF($B180=\"N\",\"\",IF(AND('Enrollment Form'!$C187=\"ROC\",'Enrollment Form'!$DT187<>\"\"),\"Y\",IF(AND('Enrollment Form'!$C187=\"ROC\",'Enrollment Form'!$DT187=\"\"),\"N\",IF(AND('Enrollment Form'!$C187=\"Enroll\",'Enrollment Form'!$B187=\"Subscriber\",'Enrollment Form'!$CQ187=\"No\",'Enrollment Form'!$DT187=\"\"),\"N\",IF(AND('Enrollment Form'!$C187=\"Enroll\",'Enrollment Form'!$B187=\"Subscriber\",'Enrollment Form'!$CQ187=\"Yes\"),\"-\",\"Y\")))))","v":""},{"$f":"IF('Enrollment Form'!AH187=\"\",\"\",IF(ISERROR(SEARCH(\".\",'Enrollment Form'!AH187,SEARCH(\"@\",'Enrollment Form'!AH187))),\"N\",\"Y\"))","v":""},{"$f":"IF(OR($B180=\"N\",'Enrollment Form'!$G187=\"\"),\"\",IF('Enrollment Form'!$B187<>\"Subscriber\",\"-\",IF(COUNTIF('Enrollment Form'!$AS187:$AT187,\"Yes\")=2,\"N\",\"Y\")))","v":""},{"$f":"IF(OR('Enrollment Form'!$CC187=\"\",'Enrollment Form'!$CC187=\"No\"),\"-\",IF(AND('Enrollment Form'!$CC187=\"Yes\",'Enrollment Form'!$CD187=\"\"),\"N\",\"Y\"))","v":"-"},{"$f":"IF(OR('Enrollment Form'!$CE187=\"\",'Enrollment Form'!$CE187=\"No\"),\"-\",IF(AND('Enrollment Form'!$CE187=\"Yes\",'Enrollment Form'!$CF187=\"\"),\"N\",\"Y\"))","v":"-"},{"$f":"IF(OR('Enrollment Form'!$CG187=\"\",'Enrollment Form'!$CG187=\"No\"),\"-\",IF(AND('Enrollment Form'!$CG187=\"Yes\",'Enrollment Form'!$CH187=\"\"),\"N\",\"Y\"))","v":"-"},{"$f":"IF(OR('Enrollment Form'!$CG187=\"\",'Enrollment Form'!$CG187=\"No\"),\"-\",IF(AND('Enrollment Form'!$CG187=\"Yes\",'Enrollment Form'!$CI187=\"\"),\"N\",\"Y\"))","v":"-"},{"$f":"IF('Enrollment Form'!B187<>\"Subscriber\",\"-\",IF(AND('Enrollment Form'!B187=\"Subscriber\",'Enrollment Form'!C187=\"Enroll\",'Enrollment Form'!AA187=\"\"),\"N\",\"Y\"))","v":"-"},{"$f":"IF(OR('Enrollment Form'!B187=\"Subscriber\",'Enrollment Form'!B187=\"\"),\"-\",IF('Enrollment Form'!BI187=\"\",\"N\",\"Y\"))","v":"-"},{"$f":"IF('Enrollment Form'!B187<>\"Subscriber\",\"-\",IF(AND('Enrollment Form'!B187=\"Subscriber\",'Enrollment Form'!G187=\"\"),\"N\",\"Y\"))","v":"-"},{"$f":"IF('Enrollment Form'!A187=\"\",\"\",IF('Enrollment Form'!B187=\"Subscriber\",\"-\",IF(AND('Enrollment Form'!B187<>\"Subscriber\",'Enrollment Form'!G187='Enrollment Form'!H187),\"N\",\"Y\")))","v":""},0]
[188,{"$f":"IF('Enrollment Form'!$A188<>\"\",\"Y\",\"N\")","v":"N"},{"$f":"IF(AND('Enrollment Form'!$B188=\"\",'Enrollment Form'!$C188<>\"\"),\"N\",IF($B181=\"N\",\"\",\"Y\"))","v":""},{"$f":"IF(OR($B181=\"N\",'Enrollment Form'!G188=\"\"),\"\",IF('Enrollment Form'!$B188<>\"Subscriber\",\"\",IF('Enrollment Form'!$G188='Enrollment Form'!$H188,\"Y\",\"N\")))","v":""},{"$f":"IF($B181=\"N\",\"\",IF(AND(COUNTIFS('Enrollment Form'!$H$11:$H$1000,'Enrollment Form'!$H188,'Enrollment Form'!$B$11:$B$1000,'Enrollment Form'!$B188)>1,'Enrollment Form'!$H188<>\"\"),\"N\",\"Y\"))","v":""},{"$f":"IF($B181=\"N\",\"\",IF(LEN('Enrollment Form'!$Y188)=0,\"\",IF(LEN('Enrollment Form'!$Y188)<>5,\"N\",\"Y\")))","v":""},{"$f":"IF($B181=\"N\",\"\",IF(LEN('Enrollment Form'!$AD188=0),\"\",IF(LEN('Enrollment Form'!$AD188)<>5,\"N\",\"Y\")))","v":""},{"$f":"IF($B181=\"N\",\"\",IF(LEN('Enrollment Form'!$BL188=0),\"\",IF(LEN('Enrollment Form'!$BL188)<>5,\"N\",\"Y\")))","v":""},{"$f":"IF($B181=\"N\",\"\",IF(LEN('Enrollment Form'!$AE188)=0,\"\",IF(LEN('Enrollment Form'!$AE188)<>10,\"N\",\"Y\")))","v":""},{"$f":"IF($B181=\"N\",\"\",IF(LEN('Enrollment Form'!$AF188)=0,\"\",IF(LEN('Enrollment Form'!$AF188)<>10,\"N\",\"Y\")))","v":""},{"$f":"IF('Enrollment Form'!$O188<>\"Graded\",\"-\",IF(AND('Enrollment Form'!$O188=\"Graded\",'Enrollment Form'!$AO188<>\"\"),\"Y\",\"N\"))","v":"-"},{"$f":"IF($B181=\"N\",\"\",IF(OR('Enrollment Form'!$B188<>\"Subscriber\",'Enrollment Form'!$C188=\"ROC\"),\"-\",IF(AND('Enrollment Form'!$B188=\"Subscriber\",'Enrollment Form'!$C188=\"Enroll\",'Enrollment Form'!$AJ188<>\"\"),\"Y\",\"N\")))","v":""},{"$f":"IF($B181=\"N\",\"\",IF(OR('Enrollment Form'!$B188<>\"Subscriber\",'Enrollment Form'!$C188=\"ROC\"),\"-\",IF(AND('Enrollment Form'!$B188=\"Subscriber\",'Enrollment Form'!$C188=\"Enroll\",'Enrollment Form'!$AK188<>\"\"),\"Y\",\"N\")))","v":""},{"$f":"IF($B181=\"N\",\"\",IF(OR('Enrollment Form'!$B188<>\"Subscriber\",'Enrollment Form'!$C188=\"ROC\"),\"-\",IF(AND('Enrollment Form'!$B188=\"Subscriber\",'Enrollment Form'!$C188=\"Enroll\",'Enrollment Form'!$AL188<>\"\"),\"Y\",\"N\")))","v":""},{"$f":"IF($B181=\"N\",\"\",IF(OR('Enrollment Form'!$B188<>\"Subscriber\",'Enrollment Form'!$C188=\"ROC\"),\"-\",IF(AND('Enrollment Form'!$B188=\"Subscriber\",'Enrollment Form'!$C188=\"Enroll\",'Enrollment Form'!$AM188<>\"\"),\"Y\",\"N\")))","v":""},{"$f":"IF($B181=\"N\",\"\",IF(OR('Enrollment Form'!$B188<>\"Subscriber\",'Enrollment Form'!$C188=\"ROC\"),\"-\",IF(AND('Enrollment Form'!$B188=\"Subscriber\",'Enrollment Form'!$C188=\"Enroll\",'Enrollment Form'!$AN188<>\"\"),\"Y\",\"N\")))","v":""},{"$f":"IF($B181=\"N\",\"\",IF(OR('Enrollment Form'!$B188<>\"Subscriber\",'Enrollment Form'!$C188=\"ROC\"),\"-\",IF(AND('Enrollment Form'!$B188=\"Subscriber\",'Enrollment Form'!$C188=\"Enroll\",'Enrollment Form'!$AP188<>\"\"),\"Y\",\"N\")))","v":""},{"$f":"IF($B181=\"N\",\"\",IF($Q181=\"-\",\"-\",IF(AND($Q181=\"Y\",'Enrollment Form'!$AP188=\"No\"),\"-\",IF(AND($Q181=\"Y\",'Enrollment Form'!$AP188=\"Yes\",'Enrollment Form'!$AQ188<>\"\"),\"Y\",\"N\"))))","v":""},{"$f":"IF($B181=\"N\",\"\",IF(OR('Enrollment Form'!$B188<>\"Subscriber\",'Enrollment Form'!$C188=\"ROC\"),\"-\",IF(AND('Enrollment Form'!$B188=\"Subscriber\",'Enrollment Form'!$C188=\"Enroll\",'Enrollment Form'!$CO188<>\"\"),\"Y\",\"N\")))","v":""},{"$f":"IF($B181=\"N\",\"\",IF($S181=\"-\",\"-\",IF(AND($S181=\"Y\",'Enrollment Form'!$CO188=\"No\"),\"-\",IF(AND($S181=\"Y\",'Enrollment Form'!$CO188=\"Yes\",'Enrollment Form'!$CP188<>\"\"),\"Y\",\"N\"))))","v":""},{"$f":"IF(OR('Enrollment Form'!$AV188=\"Yes\",'Enrollment Form'!$AV188=\"\"),\"-\",IF(AND('Enrollment Form'!$AV188=\"No\",ISERROR(FIND(\"HMO\",VLOOKUP('Enrollment Form'!G188,'Enrollment Form'!H$11:J$1000,3,FALSE),1))=FALSE,COUNTA('Enrollment Form'!$AW188:$AZ188)=4),\"Y\",\"N\"))","v":"-"},{"$f":"IF($B181=\"N\",\"\",IF('Enrollment Form'!$B188=\"Subscriber\",\"-\",IF(COUNTA('Enrollment Form'!$BE188,'Enrollment Form'!$BG188)=2,\"Y\",\"N\")))","v":""},{"$f":"IF($B181=\"N\",\"\",IF(OR('Enrollment Form'!$AU188=\"\",'Enrollment Form'!$AU188=\"No\"),\"-\",IF(AND('Enrollment Form'!$AU188=\"Yes\",COUNTA('Enrollment Form'!$CK188)=1),\"Y\",\"N\")))","v":""},{"$f":"IF(OR('Enrollment Form'!$CK188=\"\",'Enrollment Form'!$CK188=\"No\"),\"-\",IF(COUNTA('Enrollment Form'!$CM188:$CN188)=2,\"Y\",\"N\"))","v":"-"},{"$f":"IF($B181=\"N\",\"\",IF(COUNTIF('Enrollment Form'!$CZ188:$DO188,\"Other\")=COUNTA('Enrollment Form'!$DF188,'Enrollment Form'!$DA188,'Enrollment Form'!$DK188,'Enrollment Form'!$DP188),\"Y\",\"N\"))","v":""},{"$f":"IF($B181=\"N\",\"\",IF(OR('Enrollment Form'!B188<>\"Subscriber\",'Enrollment Form'!C188=\"ROC\",COUNTIF('Enrollment Form'!AS188:AT188,\"Yes\")>=1),\"-\",IF(AND('Enrollment Form'!C188=\"Enroll\",COUNTIF('Enrollment Form'!AS188:AT188,\"No\")=2,'Enrollment Form'!AU188=\"\"),\"N\",\"Y\")))","v":""},{"$f":"IF(OR(B181=\"N\",'Enrollment Form'!B188<>\"Subscriber\",'Enrollment Form'!C188=\"ROC\",'Enrollment Form'!O188<>\"Multiple of Salary\"),\"-\",IF(COUNTA('Enrollment Form'!T188:U188)<2,\"N\",\"Y\"))","v":"-"},{"$f":"IF(B181=\"N\",\"\",IF(OR('Enrollment Form'!C188=\"ROC\",'Enrollment Form'!B188<>\"Subscriber\",'Enrollment Form'!O188=\"Waive\",'Enrollment Form'!O188=\"\"),\"-\",IF('Enrollment Form'!P188=\"\",\"N\",\"Y\")))","v":""},{"$f":"IF($B181=\"N\",\"\",IF(AND('Enrollment Form'!$C188=\"ROC\",'Enrollment Form'!$DS188<>\"\"),\"Y\",IF(AND('Enrollment Form'!$C188=\"ROC\",'Enrollment Form'!$DS188=\"\"),\"N\",IF(AND('Enrollment Form'!$C188=\"Enroll\",'Enrollment Form'!$B188=\"Subscriber\",'Enrollment Form'!$CQ188=\"No\",'Enrollment Form'!$DS188=\"\"),\"N\",IF(AND('Enrollment Form'!$C188=\"Enroll\",'Enrollment Form'!$B188=\"Subscriber\",'Enrollment Form'!$CQ188=\"Yes\"),\"-\",\"Y\")))))","v":""},{"$f":"IF($B181=\"N\",\"\",IF(AND('Enrollment Form'!$C188=\"ROC\",'Enrollment Form'!$DT188<>\"\"),\"Y\",IF(AND('Enrollment Form'!$C188=\"ROC\",'Enrollment Form'!$DT188=\"\"),\"N\",IF(AND('Enrollment Form'!$C188=\"Enroll\",'Enrollment Form'!$B188=\"Subscriber\",'Enrollment Form'!$CQ188=\"No\",'Enrollment Form'!$DT188=\"\"),\"N\",IF(AND('Enrollment Form'!$C188=\"Enroll\",'Enrollment Form'!$B188=\"Subscriber\",'Enrollment Form'!$CQ188=\"Yes\"),\"-\",\"Y\")))))","v":""},{"$f":"IF('Enrollment Form'!AH188=\"\",\"\",IF(ISERROR(SEARCH(\".\",'Enrollment Form'!AH188,SEARCH(\"@\",'Enrollment Form'!AH188))),\"N\",\"Y\"))","v":""},{"$f":"IF(OR($B181=\"N\",'Enrollment Form'!$G188=\"\"),\"\",IF('Enrollment Form'!$B188<>\"Subscriber\",\"-\",IF(COUNTIF('Enrollment Form'!$AS188:$AT188,\"Yes\")=2,\"N\",\"Y\")))","v":""},{"$f":"IF(OR('Enrollment Form'!$CC188=\"\",'Enrollment Form'!$CC188=\"No\"),\"-\",IF(AND('Enrollment Form'!$CC188=\"Yes\",'Enrollment Form'!$CD188=\"\"),\"N\",\"Y\"))","v":"-"},{"$f":"IF(OR('Enrollment Form'!$CE188=\"\",'Enrollment Form'!$CE188=\"No\"),\"-\",IF(AND('Enrollment Form'!$CE188=\"Yes\",'Enrollment Form'!$CF188=\"\"),\"N\",\"Y\"))","v":"-"},{"$f":"IF(OR('Enrollment Form'!$CG188=\"\",'Enrollment Form'!$CG188=\"No\"),\"-\",IF(AND('Enrollment Form'!$CG188=\"Yes\",'Enrollment Form'!$CH188=\"\"),\"N\",\"Y\"))","v":"-"},{"$f":"IF(OR('Enrollment Form'!$CG188=\"\",'Enrollment Form'!$CG188=\"No\"),\"-\",IF(AND('Enrollment Form'!$CG188=\"Yes\",'Enrollment Form'!$CI188=\"\"),\"N\",\"Y\"))","v":"-"},{"$f":"IF('Enrollment Form'!B188<>\"Subscriber\",\"-\",IF(AND('Enrollment Form'!B188=\"Subscriber\",'Enrollment Form'!C188=\"Enroll\",'Enrollment Form'!AA188=\"\"),\"N\",\"Y\"))","v":"-"},{"$f":"IF(OR('Enrollment Form'!B188=\"Subscriber\",'Enrollment Form'!B188=\"\"),\"-\",IF('Enrollment Form'!BI188=\"\",\"N\",\"Y\"))","v":"-"},{"$f":"IF('Enrollment Form'!B188<>\"Subscriber\",\"-\",IF(AND('Enrollment Form'!B188=\"Subscriber\",'Enrollment Form'!G188=\"\"),\"N\",\"Y\"))","v":"-"},{"$f":"IF('Enrollment Form'!A188=\"\",\"\",IF('Enrollment Form'!B188=\"Subscriber\",\"-\",IF(AND('Enrollment Form'!B188<>\"Subscriber\",'Enrollment Form'!G188='Enrollment Form'!H188),\"N\",\"Y\")))","v":""},0]
[189,{"$f":"IF('Enrollment Form'!$A189<>\"\",\"Y\",\"N\")","v":"N"},{"$f":"IF(AND('Enrollment Form'!$B189=\"\",'Enrollment Form'!$C189<>\"\"),\"N\",IF($B182=\"N\",\"\",\"Y\"))","v":""},{"$f":"IF(OR($B182=\"N\",'Enrollment Form'!G189=\"\"),\"\",IF('Enrollment Form'!$B189<>\"Subscriber\",\"\",IF('Enrollment Form'!$G189='Enrollment Form'!$H189,\"Y\",\"N\")))","v":""},{"$f":"IF($B182=\"N\",\"\",IF(AND(COUNTIFS('Enrollment Form'!$H$11:$H$1000,'Enrollment Form'!$H189,'Enrollment Form'!$B$11:$B$1000,'Enrollment Form'!$B189)>1,'Enrollment Form'!$H189<>\"\"),\"N\",\"Y\"))","v":""},{"$f":"IF($B182=\"N\",\"\",IF(LEN('Enrollment Form'!$Y189)=0,\"\",IF(LEN('Enrollment Form'!$Y189)<>5,\"N\",\"Y\")))","v":""},{"$f":"IF($B182=\"N\",\"\",IF(LEN('Enrollment Form'!$AD189=0),\"\",IF(LEN('Enrollment Form'!$AD189)<>5,\"N\",\"Y\")))","v":""},{"$f":"IF($B182=\"N\",\"\",IF(LEN('Enrollment Form'!$BL189=0),\"\",IF(LEN('Enrollment Form'!$BL189)<>5,\"N\",\"Y\")))","v":""},{"$f":"IF($B182=\"N\",\"\",IF(LEN('Enrollment Form'!$AE189)=0,\"\",IF(LEN('Enrollment Form'!$AE189)<>10,\"N\",\"Y\")))","v":""},{"$f":"IF($B182=\"N\",\"\",IF(LEN('Enrollment Form'!$AF189)=0,\"\",IF(LEN('Enrollment Form'!$AF189)<>10,\"N\",\"Y\")))","v":""},{"$f":"IF('Enrollment Form'!$O189<>\"Graded\",\"-\",IF(AND('Enrollment Form'!$O189=\"Graded\",'Enrollment Form'!$AO189<>\"\"),\"Y\",\"N\"))","v":"-"},{"$f":"IF($B182=\"N\",\"\",IF(OR('Enrollment Form'!$B189<>\"Subscriber\",'Enrollment Form'!$C189=\"ROC\"),\"-\",IF(AND('Enrollment Form'!$B189=\"Subscriber\",'Enrollment Form'!$C189=\"Enroll\",'Enrollment Form'!$AJ189<>\"\"),\"Y\",\"N\")))","v":""},{"$f":"IF($B182=\"N\",\"\",IF(OR('Enrollment Form'!$B189<>\"Subscriber\",'Enrollment Form'!$C189=\"ROC\"),\"-\",IF(AND('Enrollment Form'!$B189=\"Subscriber\",'Enrollment Form'!$C189=\"Enroll\",'Enrollment Form'!$AK189<>\"\"),\"Y\",\"N\")))","v":""},{"$f":"IF($B182=\"N\",\"\",IF(OR('Enrollment Form'!$B189<>\"Subscriber\",'Enrollment Form'!$C189=\"ROC\"),\"-\",IF(AND('Enrollment Form'!$B189=\"Subscriber\",'Enrollment Form'!$C189=\"Enroll\",'Enrollment Form'!$AL189<>\"\"),\"Y\",\"N\")))","v":""},{"$f":"IF($B182=\"N\",\"\",IF(OR('Enrollment Form'!$B189<>\"Subscriber\",'Enrollment Form'!$C189=\"ROC\"),\"-\",IF(AND('Enrollment Form'!$B189=\"Subscriber\",'Enrollment Form'!$C189=\"Enroll\",'Enrollment Form'!$AM189<>\"\"),\"Y\",\"N\")))","v":""},{"$f":"IF($B182=\"N\",\"\",IF(OR('Enrollment Form'!$B189<>\"Subscriber\",'Enrollment Form'!$C189=\"ROC\"),\"-\",IF(AND('Enrollment Form'!$B189=\"Subscriber\",'Enrollment Form'!$C189=\"Enroll\",'Enrollment Form'!$AN189<>\"\"),\"Y\",\"N\")))","v":""},{"$f":"IF($B182=\"N\",\"\",IF(OR('Enrollment Form'!$B189<>\"Subscriber\",'Enrollment Form'!$C189=\"ROC\"),\"-\",IF(AND('Enrollment Form'!$B189=\"Subscriber\",'Enrollment Form'!$C189=\"Enroll\",'Enrollment Form'!$AP189<>\"\"),\"Y\",\"N\")))","v":""},{"$f":"IF($B182=\"N\",\"\",IF($Q182=\"-\",\"-\",IF(AND($Q182=\"Y\",'Enrollment Form'!$AP189=\"No\"),\"-\",IF(AND($Q182=\"Y\",'Enrollment Form'!$AP189=\"Yes\",'Enrollment Form'!$AQ189<>\"\"),\"Y\",\"N\"))))","v":""},{"$f":"IF($B182=\"N\",\"\",IF(OR('Enrollment Form'!$B189<>\"Subscriber\",'Enrollment Form'!$C189=\"ROC\"),\"-\",IF(AND('Enrollment Form'!$B189=\"Subscriber\",'Enrollment Form'!$C189=\"Enroll\",'Enrollment Form'!$CO189<>\"\"),\"Y\",\"N\")))","v":""},{"$f":"IF($B182=\"N\",\"\",IF($S182=\"-\",\"-\",IF(AND($S182=\"Y\",'Enrollment Form'!$CO189=\"No\"),\"-\",IF(AND($S182=\"Y\",'Enrollment Form'!$CO189=\"Yes\",'Enrollment Form'!$CP189<>\"\"),\"Y\",\"N\"))))","v":""},{"$f":"IF(OR('Enrollment Form'!$AV189=\"Yes\",'Enrollment Form'!$AV189=\"\"),\"-\",IF(AND('Enrollment Form'!$AV189=\"No\",ISERROR(FIND(\"HMO\",VLOOKUP('Enrollment Form'!G189,'Enrollment Form'!H$11:J$1000,3,FALSE),1))=FALSE,COUNTA('Enrollment Form'!$AW189:$AZ189)=4),\"Y\",\"N\"))","v":"-"},{"$f":"IF($B182=\"N\",\"\",IF('Enrollment Form'!$B189=\"Subscriber\",\"-\",IF(COUNTA('Enrollment Form'!$BE189,'Enrollment Form'!$BG189)=2,\"Y\",\"N\")))","v":""},{"$f":"IF($B182=\"N\",\"\",IF(OR('Enrollment Form'!$AU189=\"\",'Enrollment Form'!$AU189=\"No\"),\"-\",IF(AND('Enrollment Form'!$AU189=\"Yes\",COUNTA('Enrollment Form'!$CK189)=1),\"Y\",\"N\")))","v":""},{"$f":"IF(OR('Enrollment Form'!$CK189=\"\",'Enrollment Form'!$CK189=\"No\"),\"-\",IF(COUNTA('Enrollment Form'!$CM189:$CN189)=2,\"Y\",\"N\"))","v":"-"},{"$f":"IF($B182=\"N\",\"\",IF(COUNTIF('Enrollment Form'!$CZ189:$DO189,\"Other\")=COUNTA('Enrollment Form'!$DF189,'Enrollment Form'!$DA189,'Enrollment Form'!$DK189,'Enrollment Form'!$DP189),\"Y\",\"N\"))","v":""},{"$f":"IF($B182=\"N\",\"\",IF(OR('Enrollment Form'!B189<>\"Subscriber\",'Enrollment Form'!C189=\"ROC\",COUNTIF('Enrollment Form'!AS189:AT189,\"Yes\")>=1),\"-\",IF(AND('Enrollment Form'!C189=\"Enroll\",COUNTIF('Enrollment Form'!AS189:AT189,\"No\")=2,'Enrollment Form'!AU189=\"\"),\"N\",\"Y\")))","v":""},{"$f":"IF(OR(B182=\"N\",'Enrollment Form'!B189<>\"Subscriber\",'Enrollment Form'!C189=\"ROC\",'Enrollment Form'!O189<>\"Multiple of Salary\"),\"-\",IF(COUNTA('Enrollment Form'!T189:U189)<2,\"N\",\"Y\"))","v":"-"},{"$f":"IF(B182=\"N\",\"\",IF(OR('Enrollment Form'!C189=\"ROC\",'Enrollment Form'!B189<>\"Subscriber\",'Enrollment Form'!O189=\"Waive\",'Enrollment Form'!O189=\"\"),\"-\",IF('Enrollment Form'!P189=\"\",\"N\",\"Y\")))","v":""},{"$f":"IF($B182=\"N\",\"\",IF(AND('Enrollment Form'!$C189=\"ROC\",'Enrollment Form'!$DS189<>\"\"),\"Y\",IF(AND('Enrollment Form'!$C189=\"ROC\",'Enrollment Form'!$DS189=\"\"),\"N\",IF(AND('Enrollment Form'!$C189=\"Enroll\",'Enrollment Form'!$B189=\"Subscriber\",'Enrollment Form'!$CQ189=\"No\",'Enrollment Form'!$DS189=\"\"),\"N\",IF(AND('Enrollment Form'!$C189=\"Enroll\",'Enrollment Form'!$B189=\"Subscriber\",'Enrollment Form'!$CQ189=\"Yes\"),\"-\",\"Y\")))))","v":""},{"$f":"IF($B182=\"N\",\"\",IF(AND('Enrollment Form'!$C189=\"ROC\",'Enrollment Form'!$DT189<>\"\"),\"Y\",IF(AND('Enrollment Form'!$C189=\"ROC\",'Enrollment Form'!$DT189=\"\"),\"N\",IF(AND('Enrollment Form'!$C189=\"Enroll\",'Enrollment Form'!$B189=\"Subscriber\",'Enrollment Form'!$CQ189=\"No\",'Enrollment Form'!$DT189=\"\"),\"N\",IF(AND('Enrollment Form'!$C189=\"Enroll\",'Enrollment Form'!$B189=\"Subscriber\",'Enrollment Form'!$CQ189=\"Yes\"),\"-\",\"Y\")))))","v":""},{"$f":"IF('Enrollment Form'!AH189=\"\",\"\",IF(ISERROR(SEARCH(\".\",'Enrollment Form'!AH189,SEARCH(\"@\",'Enrollment Form'!AH189))),\"N\",\"Y\"))","v":""},{"$f":"IF(OR($B182=\"N\",'Enrollment Form'!$G189=\"\"),\"\",IF('Enrollment Form'!$B189<>\"Subscriber\",\"-\",IF(COUNTIF('Enrollment Form'!$AS189:$AT189,\"Yes\")=2,\"N\",\"Y\")))","v":""},{"$f":"IF(OR('Enrollment Form'!$CC189=\"\",'Enrollment Form'!$CC189=\"No\"),\"-\",IF(AND('Enrollment Form'!$CC189=\"Yes\",'Enrollment Form'!$CD189=\"\"),\"N\",\"Y\"))","v":"-"},{"$f":"IF(OR('Enrollment Form'!$CE189=\"\",'Enrollment Form'!$CE189=\"No\"),\"-\",IF(AND('Enrollment Form'!$CE189=\"Yes\",'Enrollment Form'!$CF189=\"\"),\"N\",\"Y\"))","v":"-"},{"$f":"IF(OR('Enrollment Form'!$CG189=\"\",'Enrollment Form'!$CG189=\"No\"),\"-\",IF(AND('Enrollment Form'!$CG189=\"Yes\",'Enrollment Form'!$CH189=\"\"),\"N\",\"Y\"))","v":"-"},{"$f":"IF(OR('Enrollment Form'!$CG189=\"\",'Enrollment Form'!$CG189=\"No\"),\"-\",IF(AND('Enrollment Form'!$CG189=\"Yes\",'Enrollment Form'!$CI189=\"\"),\"N\",\"Y\"))","v":"-"},{"$f":"IF('Enrollment Form'!B189<>\"Subscriber\",\"-\",IF(AND('Enrollment Form'!B189=\"Subscriber\",'Enrollment Form'!C189=\"Enroll\",'Enrollment Form'!AA189=\"\"),\"N\",\"Y\"))","v":"-"},{"$f":"IF(OR('Enrollment Form'!B189=\"Subscriber\",'Enrollment Form'!B189=\"\"),\"-\",IF('Enrollment Form'!BI189=\"\",\"N\",\"Y\"))","v":"-"},{"$f":"IF('Enrollment Form'!B189<>\"Subscriber\",\"-\",IF(AND('Enrollment Form'!B189=\"Subscriber\",'Enrollment Form'!G189=\"\"),\"N\",\"Y\"))","v":"-"},{"$f":"IF('Enrollment Form'!A189=\"\",\"\",IF('Enrollment Form'!B189=\"Subscriber\",\"-\",IF(AND('Enrollment Form'!B189<>\"Subscriber\",'Enrollment Form'!G189='Enrollment Form'!H189),\"N\",\"Y\")))","v":""},0]
[190,{"$f":"IF('Enrollment Form'!$A190<>\"\",\"Y\",\"N\")","v":"N"},{"$f":"IF(AND('Enrollment Form'!$B190=\"\",'Enrollment Form'!$C190<>\"\"),\"N\",IF($B183=\"N\",\"\",\"Y\"))","v":""},{"$f":"IF(OR($B183=\"N\",'Enrollment Form'!G190=\"\"),\"\",IF('Enrollment Form'!$B190<>\"Subscriber\",\"\",IF('Enrollment Form'!$G190='Enrollment Form'!$H190,\"Y\",\"N\")))","v":""},{"$f":"IF($B183=\"N\",\"\",IF(AND(COUNTIFS('Enrollment Form'!$H$11:$H$1000,'Enrollment Form'!$H190,'Enrollment Form'!$B$11:$B$1000,'Enrollment Form'!$B190)>1,'Enrollment Form'!$H190<>\"\"),\"N\",\"Y\"))","v":""},{"$f":"IF($B183=\"N\",\"\",IF(LEN('Enrollment Form'!$Y190)=0,\"\",IF(LEN('Enrollment Form'!$Y190)<>5,\"N\",\"Y\")))","v":""},{"$f":"IF($B183=\"N\",\"\",IF(LEN('Enrollment Form'!$AD190=0),\"\",IF(LEN('Enrollment Form'!$AD190)<>5,\"N\",\"Y\")))","v":""},{"$f":"IF($B183=\"N\",\"\",IF(LEN('Enrollment Form'!$BL190=0),\"\",IF(LEN('Enrollment Form'!$BL190)<>5,\"N\",\"Y\")))","v":""},{"$f":"IF($B183=\"N\",\"\",IF(LEN('Enrollment Form'!$AE190)=0,\"\",IF(LEN('Enrollment Form'!$AE190)<>10,\"N\",\"Y\")))","v":""},{"$f":"IF($B183=\"N\",\"\",IF(LEN('Enrollment Form'!$AF190)=0,\"\",IF(LEN('Enrollment Form'!$AF190)<>10,\"N\",\"Y\")))","v":""},{"$f":"IF('Enrollment Form'!$O190<>\"Graded\",\"-\",IF(AND('Enrollment Form'!$O190=\"Graded\",'Enrollment Form'!$AO190<>\"\"),\"Y\",\"N\"))","v":"-"},{"$f":"IF($B183=\"N\",\"\",IF(OR('Enrollment Form'!$B190<>\"Subscriber\",'Enrollment Form'!$C190=\"ROC\"),\"-\",IF(AND('Enrollment Form'!$B190=\"Subscriber\",'Enrollment Form'!$C190=\"Enroll\",'Enrollment Form'!$AJ190<>\"\"),\"Y\",\"N\")))","v":""},{"$f":"IF($B183=\"N\",\"\",IF(OR('Enrollment Form'!$B190<>\"Subscriber\",'Enrollment Form'!$C190=\"ROC\"),\"-\",IF(AND('Enrollment Form'!$B190=\"Subscriber\",'Enrollment Form'!$C190=\"Enroll\",'Enrollment Form'!$AK190<>\"\"),\"Y\",\"N\")))","v":""},{"$f":"IF($B183=\"N\",\"\",IF(OR('Enrollment Form'!$B190<>\"Subscriber\",'Enrollment Form'!$C190=\"ROC\"),\"-\",IF(AND('Enrollment Form'!$B190=\"Subscriber\",'Enrollment Form'!$C190=\"Enroll\",'Enrollment Form'!$AL190<>\"\"),\"Y\",\"N\")))","v":""},{"$f":"IF($B183=\"N\",\"\",IF(OR('Enrollment Form'!$B190<>\"Subscriber\",'Enrollment Form'!$C190=\"ROC\"),\"-\",IF(AND('Enrollment Form'!$B190=\"Subscriber\",'Enrollment Form'!$C190=\"Enroll\",'Enrollment Form'!$AM190<>\"\"),\"Y\",\"N\")))","v":""},{"$f":"IF($B183=\"N\",\"\",IF(OR('Enrollment Form'!$B190<>\"Subscriber\",'Enrollment Form'!$C190=\"ROC\"),\"-\",IF(AND('Enrollment Form'!$B190=\"Subscriber\",'Enrollment Form'!$C190=\"Enroll\",'Enrollment Form'!$AN190<>\"\"),\"Y\",\"N\")))","v":""},{"$f":"IF($B183=\"N\",\"\",IF(OR('Enrollment Form'!$B190<>\"Subscriber\",'Enrollment Form'!$C190=\"ROC\"),\"-\",IF(AND('Enrollment Form'!$B190=\"Subscriber\",'Enrollment Form'!$C190=\"Enroll\",'Enrollment Form'!$AP190<>\"\"),\"Y\",\"N\")))","v":""},{"$f":"IF($B183=\"N\",\"\",IF($Q183=\"-\",\"-\",IF(AND($Q183=\"Y\",'Enrollment Form'!$AP190=\"No\"),\"-\",IF(AND($Q183=\"Y\",'Enrollment Form'!$AP190=\"Yes\",'Enrollment Form'!$AQ190<>\"\"),\"Y\",\"N\"))))","v":""},{"$f":"IF($B183=\"N\",\"\",IF(OR('Enrollment Form'!$B190<>\"Subscriber\",'Enrollment Form'!$C190=\"ROC\"),\"-\",IF(AND('Enrollment Form'!$B190=\"Subscriber\",'Enrollment Form'!$C190=\"Enroll\",'Enrollment Form'!$CO190<>\"\"),\"Y\",\"N\")))","v":""},{"$f":"IF($B183=\"N\",\"\",IF($S183=\"-\",\"-\",IF(AND($S183=\"Y\",'Enrollment Form'!$CO190=\"No\"),\"-\",IF(AND($S183=\"Y\",'Enrollment Form'!$CO190=\"Yes\",'Enrollment Form'!$CP190<>\"\"),\"Y\",\"N\"))))","v":""},{"$f":"IF(OR('Enrollment Form'!$AV190=\"Yes\",'Enrollment Form'!$AV190=\"\"),\"-\",IF(AND('Enrollment Form'!$AV190=\"No\",ISERROR(FIND(\"HMO\",VLOOKUP('Enrollment Form'!G190,'Enrollment Form'!H$11:J$1000,3,FALSE),1))=FALSE,COUNTA('Enrollment Form'!$AW190:$AZ190)=4),\"Y\",\"N\"))","v":"-"},{"$f":"IF($B183=\"N\",\"\",IF('Enrollment Form'!$B190=\"Subscriber\",\"-\",IF(COUNTA('Enrollment Form'!$BE190,'Enrollment Form'!$BG190)=2,\"Y\",\"N\")))","v":""},{"$f":"IF($B183=\"N\",\"\",IF(OR('Enrollment Form'!$AU190=\"\",'Enrollment Form'!$AU190=\"No\"),\"-\",IF(AND('Enrollment Form'!$AU190=\"Yes\",COUNTA('Enrollment Form'!$CK190)=1),\"Y\",\"N\")))","v":""},{"$f":"IF(OR('Enrollment Form'!$CK190=\"\",'Enrollment Form'!$CK190=\"No\"),\"-\",IF(COUNTA('Enrollment Form'!$CM190:$CN190)=2,\"Y\",\"N\"))","v":"-"},{"$f":"IF($B183=\"N\",\"\",IF(COUNTIF('Enrollment Form'!$CZ190:$DO190,\"Other\")=COUNTA('Enrollment Form'!$DF190,'Enrollment Form'!$DA190,'Enrollment Form'!$DK190,'Enrollment Form'!$DP190),\"Y\",\"N\"))","v":""},{"$f":"IF($B183=\"N\",\"\",IF(OR('Enrollment Form'!B190<>\"Subscriber\",'Enrollment Form'!C190=\"ROC\",COUNTIF('Enrollment Form'!AS190:AT190,\"Yes\")>=1),\"-\",IF(AND('Enrollment Form'!C190=\"Enroll\",COUNTIF('Enrollment Form'!AS190:AT190,\"No\")=2,'Enrollment Form'!AU190=\"\"),\"N\",\"Y\")))","v":""},{"$f":"IF(OR(B183=\"N\",'Enrollment Form'!B190<>\"Subscriber\",'Enrollment Form'!C190=\"ROC\",'Enrollment Form'!O190<>\"Multiple of Salary\"),\"-\",IF(COUNTA('Enrollment Form'!T190:U190)<2,\"N\",\"Y\"))","v":"-"},{"$f":"IF(B183=\"N\",\"\",IF(OR('Enrollment Form'!C190=\"ROC\",'Enrollment Form'!B190<>\"Subscriber\",'Enrollment Form'!O190=\"Waive\",'Enrollment Form'!O190=\"\"),\"-\",IF('Enrollment Form'!P190=\"\",\"N\",\"Y\")))","v":""},{"$f":"IF($B183=\"N\",\"\",IF(AND('Enrollment Form'!$C190=\"ROC\",'Enrollment Form'!$DS190<>\"\"),\"Y\",IF(AND('Enrollment Form'!$C190=\"ROC\",'Enrollment Form'!$DS190=\"\"),\"N\",IF(AND('Enrollment Form'!$C190=\"Enroll\",'Enrollment Form'!$B190=\"Subscriber\",'Enrollment Form'!$CQ190=\"No\",'Enrollment Form'!$DS190=\"\"),\"N\",IF(AND('Enrollment Form'!$C190=\"Enroll\",'Enrollment Form'!$B190=\"Subscriber\",'Enrollment Form'!$CQ190=\"Yes\"),\"-\",\"Y\")))))","v":""},{"$f":"IF($B183=\"N\",\"\",IF(AND('Enrollment Form'!$C190=\"ROC\",'Enrollment Form'!$DT190<>\"\"),\"Y\",IF(AND('Enrollment Form'!$C190=\"ROC\",'Enrollment Form'!$DT190=\"\"),\"N\",IF(AND('Enrollment Form'!$C190=\"Enroll\",'Enrollment Form'!$B190=\"Subscriber\",'Enrollment Form'!$CQ190=\"No\",'Enrollment Form'!$DT190=\"\"),\"N\",IF(AND('Enrollment Form'!$C190=\"Enroll\",'Enrollment Form'!$B190=\"Subscriber\",'Enrollment Form'!$CQ190=\"Yes\"),\"-\",\"Y\")))))","v":""},{"$f":"IF('Enrollment Form'!AH190=\"\",\"\",IF(ISERROR(SEARCH(\".\",'Enrollment Form'!AH190,SEARCH(\"@\",'Enrollment Form'!AH190))),\"N\",\"Y\"))","v":""},{"$f":"IF(OR($B183=\"N\",'Enrollment Form'!$G190=\"\"),\"\",IF('Enrollment Form'!$B190<>\"Subscriber\",\"-\",IF(COUNTIF('Enrollment Form'!$AS190:$AT190,\"Yes\")=2,\"N\",\"Y\")))","v":""},{"$f":"IF(OR('Enrollment Form'!$CC190=\"\",'Enrollment Form'!$CC190=\"No\"),\"-\",IF(AND('Enrollment Form'!$CC190=\"Yes\",'Enrollment Form'!$CD190=\"\"),\"N\",\"Y\"))","v":"-"},{"$f":"IF(OR('Enrollment Form'!$CE190=\"\",'Enrollment Form'!$CE190=\"No\"),\"-\",IF(AND('Enrollment Form'!$CE190=\"Yes\",'Enrollment Form'!$CF190=\"\"),\"N\",\"Y\"))","v":"-"},{"$f":"IF(OR('Enrollment Form'!$CG190=\"\",'Enrollment Form'!$CG190=\"No\"),\"-\",IF(AND('Enrollment Form'!$CG190=\"Yes\",'Enrollment Form'!$CH190=\"\"),\"N\",\"Y\"))","v":"-"},{"$f":"IF(OR('Enrollment Form'!$CG190=\"\",'Enrollment Form'!$CG190=\"No\"),\"-\",IF(AND('Enrollment Form'!$CG190=\"Yes\",'Enrollment Form'!$CI190=\"\"),\"N\",\"Y\"))","v":"-"},{"$f":"IF('Enrollment Form'!B190<>\"Subscriber\",\"-\",IF(AND('Enrollment Form'!B190=\"Subscriber\",'Enrollment Form'!C190=\"Enroll\",'Enrollment Form'!AA190=\"\"),\"N\",\"Y\"))","v":"-"},{"$f":"IF(OR('Enrollment Form'!B190=\"Subscriber\",'Enrollment Form'!B190=\"\"),\"-\",IF('Enrollment Form'!BI190=\"\",\"N\",\"Y\"))","v":"-"},{"$f":"IF('Enrollment Form'!B190<>\"Subscriber\",\"-\",IF(AND('Enrollment Form'!B190=\"Subscriber\",'Enrollment Form'!G190=\"\"),\"N\",\"Y\"))","v":"-"},{"$f":"IF('Enrollment Form'!A190=\"\",\"\",IF('Enrollment Form'!B190=\"Subscriber\",\"-\",IF(AND('Enrollment Form'!B190<>\"Subscriber\",'Enrollment Form'!G190='Enrollment Form'!H190),\"N\",\"Y\")))","v":""},0]
[191,{"$f":"IF('Enrollment Form'!$A191<>\"\",\"Y\",\"N\")","v":"N"},{"$f":"IF(AND('Enrollment Form'!$B191=\"\",'Enrollment Form'!$C191<>\"\"),\"N\",IF($B184=\"N\",\"\",\"Y\"))","v":""},{"$f":"IF(OR($B184=\"N\",'Enrollment Form'!G191=\"\"),\"\",IF('Enrollment Form'!$B191<>\"Subscriber\",\"\",IF('Enrollment Form'!$G191='Enrollment Form'!$H191,\"Y\",\"N\")))","v":""},{"$f":"IF($B184=\"N\",\"\",IF(AND(COUNTIFS('Enrollment Form'!$H$11:$H$1000,'Enrollment Form'!$H191,'Enrollment Form'!$B$11:$B$1000,'Enrollment Form'!$B191)>1,'Enrollment Form'!$H191<>\"\"),\"N\",\"Y\"))","v":""},{"$f":"IF($B184=\"N\",\"\",IF(LEN('Enrollment Form'!$Y191)=0,\"\",IF(LEN('Enrollment Form'!$Y191)<>5,\"N\",\"Y\")))","v":""},{"$f":"IF($B184=\"N\",\"\",IF(LEN('Enrollment Form'!$AD191=0),\"\",IF(LEN('Enrollment Form'!$AD191)<>5,\"N\",\"Y\")))","v":""},{"$f":"IF($B184=\"N\",\"\",IF(LEN('Enrollment Form'!$BL191=0),\"\",IF(LEN('Enrollment Form'!$BL191)<>5,\"N\",\"Y\")))","v":""},{"$f":"IF($B184=\"N\",\"\",IF(LEN('Enrollment Form'!$AE191)=0,\"\",IF(LEN('Enrollment Form'!$AE191)<>10,\"N\",\"Y\")))","v":""},{"$f":"IF($B184=\"N\",\"\",IF(LEN('Enrollment Form'!$AF191)=0,\"\",IF(LEN('Enrollment Form'!$AF191)<>10,\"N\",\"Y\")))","v":""},{"$f":"IF('Enrollment Form'!$O191<>\"Graded\",\"-\",IF(AND('Enrollment Form'!$O191=\"Graded\",'Enrollment Form'!$AO191<>\"\"),\"Y\",\"N\"))","v":"-"},{"$f":"IF($B184=\"N\",\"\",IF(OR('Enrollment Form'!$B191<>\"Subscriber\",'Enrollment Form'!$C191=\"ROC\"),\"-\",IF(AND('Enrollment Form'!$B191=\"Subscriber\",'Enrollment Form'!$C191=\"Enroll\",'Enrollment Form'!$AJ191<>\"\"),\"Y\",\"N\")))","v":""},{"$f":"IF($B184=\"N\",\"\",IF(OR('Enrollment Form'!$B191<>\"Subscriber\",'Enrollment Form'!$C191=\"ROC\"),\"-\",IF(AND('Enrollment Form'!$B191=\"Subscriber\",'Enrollment Form'!$C191=\"Enroll\",'Enrollment Form'!$AK191<>\"\"),\"Y\",\"N\")))","v":""},{"$f":"IF($B184=\"N\",\"\",IF(OR('Enrollment Form'!$B191<>\"Subscriber\",'Enrollment Form'!$C191=\"ROC\"),\"-\",IF(AND('Enrollment Form'!$B191=\"Subscriber\",'Enrollment Form'!$C191=\"Enroll\",'Enrollment Form'!$AL191<>\"\"),\"Y\",\"N\")))","v":""},{"$f":"IF($B184=\"N\",\"\",IF(OR('Enrollment Form'!$B191<>\"Subscriber\",'Enrollment Form'!$C191=\"ROC\"),\"-\",IF(AND('Enrollment Form'!$B191=\"Subscriber\",'Enrollment Form'!$C191=\"Enroll\",'Enrollment Form'!$AM191<>\"\"),\"Y\",\"N\")))","v":""},{"$f":"IF($B184=\"N\",\"\",IF(OR('Enrollment Form'!$B191<>\"Subscriber\",'Enrollment Form'!$C191=\"ROC\"),\"-\",IF(AND('Enrollment Form'!$B191=\"Subscriber\",'Enrollment Form'!$C191=\"Enroll\",'Enrollment Form'!$AN191<>\"\"),\"Y\",\"N\")))","v":""},{"$f":"IF($B184=\"N\",\"\",IF(OR('Enrollment Form'!$B191<>\"Subscriber\",'Enrollment Form'!$C191=\"ROC\"),\"-\",IF(AND('Enrollment Form'!$B191=\"Subscriber\",'Enrollment Form'!$C191=\"Enroll\",'Enrollment Form'!$AP191<>\"\"),\"Y\",\"N\")))","v":""},{"$f":"IF($B184=\"N\",\"\",IF($Q184=\"-\",\"-\",IF(AND($Q184=\"Y\",'Enrollment Form'!$AP191=\"No\"),\"-\",IF(AND($Q184=\"Y\",'Enrollment Form'!$AP191=\"Yes\",'Enrollment Form'!$AQ191<>\"\"),\"Y\",\"N\"))))","v":""},{"$f":"IF($B184=\"N\",\"\",IF(OR('Enrollment Form'!$B191<>\"Subscriber\",'Enrollment Form'!$C191=\"ROC\"),\"-\",IF(AND('Enrollment Form'!$B191=\"Subscriber\",'Enrollment Form'!$C191=\"Enroll\",'Enrollment Form'!$CO191<>\"\"),\"Y\",\"N\")))","v":""},{"$f":"IF($B184=\"N\",\"\",IF($S184=\"-\",\"-\",IF(AND($S184=\"Y\",'Enrollment Form'!$CO191=\"No\"),\"-\",IF(AND($S184=\"Y\",'Enrollment Form'!$CO191=\"Yes\",'Enrollment Form'!$CP191<>\"\"),\"Y\",\"N\"))))","v":""},{"$f":"IF(OR('Enrollment Form'!$AV191=\"Yes\",'Enrollment Form'!$AV191=\"\"),\"-\",IF(AND('Enrollment Form'!$AV191=\"No\",ISERROR(FIND(\"HMO\",VLOOKUP('Enrollment Form'!G191,'Enrollment Form'!H$11:J$1000,3,FALSE),1))=FALSE,COUNTA('Enrollment Form'!$AW191:$AZ191)=4),\"Y\",\"N\"))","v":"-"},{"$f":"IF($B184=\"N\",\"\",IF('Enrollment Form'!$B191=\"Subscriber\",\"-\",IF(COUNTA('Enrollment Form'!$BE191,'Enrollment Form'!$BG191)=2,\"Y\",\"N\")))","v":""},{"$f":"IF($B184=\"N\",\"\",IF(OR('Enrollment Form'!$AU191=\"\",'Enrollment Form'!$AU191=\"No\"),\"-\",IF(AND('Enrollment Form'!$AU191=\"Yes\",COUNTA('Enrollment Form'!$CK191)=1),\"Y\",\"N\")))","v":""},{"$f":"IF(OR('Enrollment Form'!$CK191=\"\",'Enrollment Form'!$CK191=\"No\"),\"-\",IF(COUNTA('Enrollment Form'!$CM191:$CN191)=2,\"Y\",\"N\"))","v":"-"},{"$f":"IF($B184=\"N\",\"\",IF(COUNTIF('Enrollment Form'!$CZ191:$DO191,\"Other\")=COUNTA('Enrollment Form'!$DF191,'Enrollment Form'!$DA191,'Enrollment Form'!$DK191,'Enrollment Form'!$DP191),\"Y\",\"N\"))","v":""},{"$f":"IF($B184=\"N\",\"\",IF(OR('Enrollment Form'!B191<>\"Subscriber\",'Enrollment Form'!C191=\"ROC\",COUNTIF('Enrollment Form'!AS191:AT191,\"Yes\")>=1),\"-\",IF(AND('Enrollment Form'!C191=\"Enroll\",COUNTIF('Enrollment Form'!AS191:AT191,\"No\")=2,'Enrollment Form'!AU191=\"\"),\"N\",\"Y\")))","v":""},{"$f":"IF(OR(B184=\"N\",'Enrollment Form'!B191<>\"Subscriber\",'Enrollment Form'!C191=\"ROC\",'Enrollment Form'!O191<>\"Multiple of Salary\"),\"-\",IF(COUNTA('Enrollment Form'!T191:U191)<2,\"N\",\"Y\"))","v":"-"},{"$f":"IF(B184=\"N\",\"\",IF(OR('Enrollment Form'!C191=\"ROC\",'Enrollment Form'!B191<>\"Subscriber\",'Enrollment Form'!O191=\"Waive\",'Enrollment Form'!O191=\"\"),\"-\",IF('Enrollment Form'!P191=\"\",\"N\",\"Y\")))","v":""},{"$f":"IF($B184=\"N\",\"\",IF(AND('Enrollment Form'!$C191=\"ROC\",'Enrollment Form'!$DS191<>\"\"),\"Y\",IF(AND('Enrollment Form'!$C191=\"ROC\",'Enrollment Form'!$DS191=\"\"),\"N\",IF(AND('Enrollment Form'!$C191=\"Enroll\",'Enrollment Form'!$B191=\"Subscriber\",'Enrollment Form'!$CQ191=\"No\",'Enrollment Form'!$DS191=\"\"),\"N\",IF(AND('Enrollment Form'!$C191=\"Enroll\",'Enrollment Form'!$B191=\"Subscriber\",'Enrollment Form'!$CQ191=\"Yes\"),\"-\",\"Y\")))))","v":""},{"$f":"IF($B184=\"N\",\"\",IF(AND('Enrollment Form'!$C191=\"ROC\",'Enrollment Form'!$DT191<>\"\"),\"Y\",IF(AND('Enrollment Form'!$C191=\"ROC\",'Enrollment Form'!$DT191=\"\"),\"N\",IF(AND('Enrollment Form'!$C191=\"Enroll\",'Enrollment Form'!$B191=\"Subscriber\",'Enrollment Form'!$CQ191=\"No\",'Enrollment Form'!$DT191=\"\"),\"N\",IF(AND('Enrollment Form'!$C191=\"Enroll\",'Enrollment Form'!$B191=\"Subscriber\",'Enrollment Form'!$CQ191=\"Yes\"),\"-\",\"Y\")))))","v":""},{"$f":"IF('Enrollment Form'!AH191=\"\",\"\",IF(ISERROR(SEARCH(\".\",'Enrollment Form'!AH191,SEARCH(\"@\",'Enrollment Form'!AH191))),\"N\",\"Y\"))","v":""},{"$f":"IF(OR($B184=\"N\",'Enrollment Form'!$G191=\"\"),\"\",IF('Enrollment Form'!$B191<>\"Subscriber\",\"-\",IF(COUNTIF('Enrollment Form'!$AS191:$AT191,\"Yes\")=2,\"N\",\"Y\")))","v":""},{"$f":"IF(OR('Enrollment Form'!$CC191=\"\",'Enrollment Form'!$CC191=\"No\"),\"-\",IF(AND('Enrollment Form'!$CC191=\"Yes\",'Enrollment Form'!$CD191=\"\"),\"N\",\"Y\"))","v":"-"},{"$f":"IF(OR('Enrollment Form'!$CE191=\"\",'Enrollment Form'!$CE191=\"No\"),\"-\",IF(AND('Enrollment Form'!$CE191=\"Yes\",'Enrollment Form'!$CF191=\"\"),\"N\",\"Y\"))","v":"-"},{"$f":"IF(OR('Enrollment Form'!$CG191=\"\",'Enrollment Form'!$CG191=\"No\"),\"-\",IF(AND('Enrollment Form'!$CG191=\"Yes\",'Enrollment Form'!$CH191=\"\"),\"N\",\"Y\"))","v":"-"},{"$f":"IF(OR('Enrollment Form'!$CG191=\"\",'Enrollment Form'!$CG191=\"No\"),\"-\",IF(AND('Enrollment Form'!$CG191=\"Yes\",'Enrollment Form'!$CI191=\"\"),\"N\",\"Y\"))","v":"-"},{"$f":"IF('Enrollment Form'!B191<>\"Subscriber\",\"-\",IF(AND('Enrollment Form'!B191=\"Subscriber\",'Enrollment Form'!C191=\"Enroll\",'Enrollment Form'!AA191=\"\"),\"N\",\"Y\"))","v":"-"},{"$f":"IF(OR('Enrollment Form'!B191=\"Subscriber\",'Enrollment Form'!B191=\"\"),\"-\",IF('Enrollment Form'!BI191=\"\",\"N\",\"Y\"))","v":"-"},{"$f":"IF('Enrollment Form'!B191<>\"Subscriber\",\"-\",IF(AND('Enrollment Form'!B191=\"Subscriber\",'Enrollment Form'!G191=\"\"),\"N\",\"Y\"))","v":"-"},{"$f":"IF('Enrollment Form'!A191=\"\",\"\",IF('Enrollment Form'!B191=\"Subscriber\",\"-\",IF(AND('Enrollment Form'!B191<>\"Subscriber\",'Enrollment Form'!G191='Enrollment Form'!H191),\"N\",\"Y\")))","v":""},0]
[192,{"$f":"IF('Enrollment Form'!$A192<>\"\",\"Y\",\"N\")","v":"N"},{"$f":"IF(AND('Enrollment Form'!$B192=\"\",'Enrollment Form'!$C192<>\"\"),\"N\",IF($B185=\"N\",\"\",\"Y\"))","v":""},{"$f":"IF(OR($B185=\"N\",'Enrollment Form'!G192=\"\"),\"\",IF('Enrollment Form'!$B192<>\"Subscriber\",\"\",IF('Enrollment Form'!$G192='Enrollment Form'!$H192,\"Y\",\"N\")))","v":""},{"$f":"IF($B185=\"N\",\"\",IF(AND(COUNTIFS('Enrollment Form'!$H$11:$H$1000,'Enrollment Form'!$H192,'Enrollment Form'!$B$11:$B$1000,'Enrollment Form'!$B192)>1,'Enrollment Form'!$H192<>\"\"),\"N\",\"Y\"))","v":""},{"$f":"IF($B185=\"N\",\"\",IF(LEN('Enrollment Form'!$Y192)=0,\"\",IF(LEN('Enrollment Form'!$Y192)<>5,\"N\",\"Y\")))","v":""},{"$f":"IF($B185=\"N\",\"\",IF(LEN('Enrollment Form'!$AD192=0),\"\",IF(LEN('Enrollment Form'!$AD192)<>5,\"N\",\"Y\")))","v":""},{"$f":"IF($B185=\"N\",\"\",IF(LEN('Enrollment Form'!$BL192=0),\"\",IF(LEN('Enrollment Form'!$BL192)<>5,\"N\",\"Y\")))","v":""},{"$f":"IF($B185=\"N\",\"\",IF(LEN('Enrollment Form'!$AE192)=0,\"\",IF(LEN('Enrollment Form'!$AE192)<>10,\"N\",\"Y\")))","v":""},{"$f":"IF($B185=\"N\",\"\",IF(LEN('Enrollment Form'!$AF192)=0,\"\",IF(LEN('Enrollment Form'!$AF192)<>10,\"N\",\"Y\")))","v":""},{"$f":"IF('Enrollment Form'!$O192<>\"Graded\",\"-\",IF(AND('Enrollment Form'!$O192=\"Graded\",'Enrollment Form'!$AO192<>\"\"),\"Y\",\"N\"))","v":"-"},{"$f":"IF($B185=\"N\",\"\",IF(OR('Enrollment Form'!$B192<>\"Subscriber\",'Enrollment Form'!$C192=\"ROC\"),\"-\",IF(AND('Enrollment Form'!$B192=\"Subscriber\",'Enrollment Form'!$C192=\"Enroll\",'Enrollment Form'!$AJ192<>\"\"),\"Y\",\"N\")))","v":""},{"$f":"IF($B185=\"N\",\"\",IF(OR('Enrollment Form'!$B192<>\"Subscriber\",'Enrollment Form'!$C192=\"ROC\"),\"-\",IF(AND('Enrollment Form'!$B192=\"Subscriber\",'Enrollment Form'!$C192=\"Enroll\",'Enrollment Form'!$AK192<>\"\"),\"Y\",\"N\")))","v":""},{"$f":"IF($B185=\"N\",\"\",IF(OR('Enrollment Form'!$B192<>\"Subscriber\",'Enrollment Form'!$C192=\"ROC\"),\"-\",IF(AND('Enrollment Form'!$B192=\"Subscriber\",'Enrollment Form'!$C192=\"Enroll\",'Enrollment Form'!$AL192<>\"\"),\"Y\",\"N\")))","v":""},{"$f":"IF($B185=\"N\",\"\",IF(OR('Enrollment Form'!$B192<>\"Subscriber\",'Enrollment Form'!$C192=\"ROC\"),\"-\",IF(AND('Enrollment Form'!$B192=\"Subscriber\",'Enrollment Form'!$C192=\"Enroll\",'Enrollment Form'!$AM192<>\"\"),\"Y\",\"N\")))","v":""},{"$f":"IF($B185=\"N\",\"\",IF(OR('Enrollment Form'!$B192<>\"Subscriber\",'Enrollment Form'!$C192=\"ROC\"),\"-\",IF(AND('Enrollment Form'!$B192=\"Subscriber\",'Enrollment Form'!$C192=\"Enroll\",'Enrollment Form'!$AN192<>\"\"),\"Y\",\"N\")))","v":""},{"$f":"IF($B185=\"N\",\"\",IF(OR('Enrollment Form'!$B192<>\"Subscriber\",'Enrollment Form'!$C192=\"ROC\"),\"-\",IF(AND('Enrollment Form'!$B192=\"Subscriber\",'Enrollment Form'!$C192=\"Enroll\",'Enrollment Form'!$AP192<>\"\"),\"Y\",\"N\")))","v":""},{"$f":"IF($B185=\"N\",\"\",IF($Q185=\"-\",\"-\",IF(AND($Q185=\"Y\",'Enrollment Form'!$AP192=\"No\"),\"-\",IF(AND($Q185=\"Y\",'Enrollment Form'!$AP192=\"Yes\",'Enrollment Form'!$AQ192<>\"\"),\"Y\",\"N\"))))","v":""},{"$f":"IF($B185=\"N\",\"\",IF(OR('Enrollment Form'!$B192<>\"Subscriber\",'Enrollment Form'!$C192=\"ROC\"),\"-\",IF(AND('Enrollment Form'!$B192=\"Subscriber\",'Enrollment Form'!$C192=\"Enroll\",'Enrollment Form'!$CO192<>\"\"),\"Y\",\"N\")))","v":""},{"$f":"IF($B185=\"N\",\"\",IF($S185=\"-\",\"-\",IF(AND($S185=\"Y\",'Enrollment Form'!$CO192=\"No\"),\"-\",IF(AND($S185=\"Y\",'Enrollment Form'!$CO192=\"Yes\",'Enrollment Form'!$CP192<>\"\"),\"Y\",\"N\"))))","v":""},{"$f":"IF(OR('Enrollment Form'!$AV192=\"Yes\",'Enrollment Form'!$AV192=\"\"),\"-\",IF(AND('Enrollment Form'!$AV192=\"No\",ISERROR(FIND(\"HMO\",VLOOKUP('Enrollment Form'!G192,'Enrollment Form'!H$11:J$1000,3,FALSE),1))=FALSE,COUNTA('Enrollment Form'!$AW192:$AZ192)=4),\"Y\",\"N\"))","v":"-"},{"$f":"IF($B185=\"N\",\"\",IF('Enrollment Form'!$B192=\"Subscriber\",\"-\",IF(COUNTA('Enrollment Form'!$BE192,'Enrollment Form'!$BG192)=2,\"Y\",\"N\")))","v":""},{"$f":"IF($B185=\"N\",\"\",IF(OR('Enrollment Form'!$AU192=\"\",'Enrollment Form'!$AU192=\"No\"),\"-\",IF(AND('Enrollment Form'!$AU192=\"Yes\",COUNTA('Enrollment Form'!$CK192)=1),\"Y\",\"N\")))","v":""},{"$f":"IF(OR('Enrollment Form'!$CK192=\"\",'Enrollment Form'!$CK192=\"No\"),\"-\",IF(COUNTA('Enrollment Form'!$CM192:$CN192)=2,\"Y\",\"N\"))","v":"-"},{"$f":"IF($B185=\"N\",\"\",IF(COUNTIF('Enrollment Form'!$CZ192:$DO192,\"Other\")=COUNTA('Enrollment Form'!$DF192,'Enrollment Form'!$DA192,'Enrollment Form'!$DK192,'Enrollment Form'!$DP192),\"Y\",\"N\"))","v":""},{"$f":"IF($B185=\"N\",\"\",IF(OR('Enrollment Form'!B192<>\"Subscriber\",'Enrollment Form'!C192=\"ROC\",COUNTIF('Enrollment Form'!AS192:AT192,\"Yes\")>=1),\"-\",IF(AND('Enrollment Form'!C192=\"Enroll\",COUNTIF('Enrollment Form'!AS192:AT192,\"No\")=2,'Enrollment Form'!AU192=\"\"),\"N\",\"Y\")))","v":""},{"$f":"IF(OR(B185=\"N\",'Enrollment Form'!B192<>\"Subscriber\",'Enrollment Form'!C192=\"ROC\",'Enrollment Form'!O192<>\"Multiple of Salary\"),\"-\",IF(COUNTA('Enrollment Form'!T192:U192)<2,\"N\",\"Y\"))","v":"-"},{"$f":"IF(B185=\"N\",\"\",IF(OR('Enrollment Form'!C192=\"ROC\",'Enrollment Form'!B192<>\"Subscriber\",'Enrollment Form'!O192=\"Waive\",'Enrollment Form'!O192=\"\"),\"-\",IF('Enrollment Form'!P192=\"\",\"N\",\"Y\")))","v":""},{"$f":"IF($B185=\"N\",\"\",IF(AND('Enrollment Form'!$C192=\"ROC\",'Enrollment Form'!$DS192<>\"\"),\"Y\",IF(AND('Enrollment Form'!$C192=\"ROC\",'Enrollment Form'!$DS192=\"\"),\"N\",IF(AND('Enrollment Form'!$C192=\"Enroll\",'Enrollment Form'!$B192=\"Subscriber\",'Enrollment Form'!$CQ192=\"No\",'Enrollment Form'!$DS192=\"\"),\"N\",IF(AND('Enrollment Form'!$C192=\"Enroll\",'Enrollment Form'!$B192=\"Subscriber\",'Enrollment Form'!$CQ192=\"Yes\"),\"-\",\"Y\")))))","v":""},{"$f":"IF($B185=\"N\",\"\",IF(AND('Enrollment Form'!$C192=\"ROC\",'Enrollment Form'!$DT192<>\"\"),\"Y\",IF(AND('Enrollment Form'!$C192=\"ROC\",'Enrollment Form'!$DT192=\"\"),\"N\",IF(AND('Enrollment Form'!$C192=\"Enroll\",'Enrollment Form'!$B192=\"Subscriber\",'Enrollment Form'!$CQ192=\"No\",'Enrollment Form'!$DT192=\"\"),\"N\",IF(AND('Enrollment Form'!$C192=\"Enroll\",'Enrollment Form'!$B192=\"Subscriber\",'Enrollment Form'!$CQ192=\"Yes\"),\"-\",\"Y\")))))","v":""},{"$f":"IF('Enrollment Form'!AH192=\"\",\"\",IF(ISERROR(SEARCH(\".\",'Enrollment Form'!AH192,SEARCH(\"@\",'Enrollment Form'!AH192))),\"N\",\"Y\"))","v":""},{"$f":"IF(OR($B185=\"N\",'Enrollment Form'!$G192=\"\"),\"\",IF('Enrollment Form'!$B192<>\"Subscriber\",\"-\",IF(COUNTIF('Enrollment Form'!$AS192:$AT192,\"Yes\")=2,\"N\",\"Y\")))","v":""},{"$f":"IF(OR('Enrollment Form'!$CC192=\"\",'Enrollment Form'!$CC192=\"No\"),\"-\",IF(AND('Enrollment Form'!$CC192=\"Yes\",'Enrollment Form'!$CD192=\"\"),\"N\",\"Y\"))","v":"-"},{"$f":"IF(OR('Enrollment Form'!$CE192=\"\",'Enrollment Form'!$CE192=\"No\"),\"-\",IF(AND('Enrollment Form'!$CE192=\"Yes\",'Enrollment Form'!$CF192=\"\"),\"N\",\"Y\"))","v":"-"},{"$f":"IF(OR('Enrollment Form'!$CG192=\"\",'Enrollment Form'!$CG192=\"No\"),\"-\",IF(AND('Enrollment Form'!$CG192=\"Yes\",'Enrollment Form'!$CH192=\"\"),\"N\",\"Y\"))","v":"-"},{"$f":"IF(OR('Enrollment Form'!$CG192=\"\",'Enrollment Form'!$CG192=\"No\"),\"-\",IF(AND('Enrollment Form'!$CG192=\"Yes\",'Enrollment Form'!$CI192=\"\"),\"N\",\"Y\"))","v":"-"},{"$f":"IF('Enrollment Form'!B192<>\"Subscriber\",\"-\",IF(AND('Enrollment Form'!B192=\"Subscriber\",'Enrollment Form'!C192=\"Enroll\",'Enrollment Form'!AA192=\"\"),\"N\",\"Y\"))","v":"-"},{"$f":"IF(OR('Enrollment Form'!B192=\"Subscriber\",'Enrollment Form'!B192=\"\"),\"-\",IF('Enrollment Form'!BI192=\"\",\"N\",\"Y\"))","v":"-"},{"$f":"IF('Enrollment Form'!B192<>\"Subscriber\",\"-\",IF(AND('Enrollment Form'!B192=\"Subscriber\",'Enrollment Form'!G192=\"\"),\"N\",\"Y\"))","v":"-"},{"$f":"IF('Enrollment Form'!A192=\"\",\"\",IF('Enrollment Form'!B192=\"Subscriber\",\"-\",IF(AND('Enrollment Form'!B192<>\"Subscriber\",'Enrollment Form'!G192='Enrollment Form'!H192),\"N\",\"Y\")))","v":""},0]
[193,{"$f":"IF('Enrollment Form'!$A193<>\"\",\"Y\",\"N\")","v":"N"},{"$f":"IF(AND('Enrollment Form'!$B193=\"\",'Enrollment Form'!$C193<>\"\"),\"N\",IF($B186=\"N\",\"\",\"Y\"))","v":""},{"$f":"IF(OR($B186=\"N\",'Enrollment Form'!G193=\"\"),\"\",IF('Enrollment Form'!$B193<>\"Subscriber\",\"\",IF('Enrollment Form'!$G193='Enrollment Form'!$H193,\"Y\",\"N\")))","v":""},{"$f":"IF($B186=\"N\",\"\",IF(AND(COUNTIFS('Enrollment Form'!$H$11:$H$1000,'Enrollment Form'!$H193,'Enrollment Form'!$B$11:$B$1000,'Enrollment Form'!$B193)>1,'Enrollment Form'!$H193<>\"\"),\"N\",\"Y\"))","v":""},{"$f":"IF($B186=\"N\",\"\",IF(LEN('Enrollment Form'!$Y193)=0,\"\",IF(LEN('Enrollment Form'!$Y193)<>5,\"N\",\"Y\")))","v":""},{"$f":"IF($B186=\"N\",\"\",IF(LEN('Enrollment Form'!$AD193=0),\"\",IF(LEN('Enrollment Form'!$AD193)<>5,\"N\",\"Y\")))","v":""},{"$f":"IF($B186=\"N\",\"\",IF(LEN('Enrollment Form'!$BL193=0),\"\",IF(LEN('Enrollment Form'!$BL193)<>5,\"N\",\"Y\")))","v":""},{"$f":"IF($B186=\"N\",\"\",IF(LEN('Enrollment Form'!$AE193)=0,\"\",IF(LEN('Enrollment Form'!$AE193)<>10,\"N\",\"Y\")))","v":""},{"$f":"IF($B186=\"N\",\"\",IF(LEN('Enrollment Form'!$AF193)=0,\"\",IF(LEN('Enrollment Form'!$AF193)<>10,\"N\",\"Y\")))","v":""},{"$f":"IF('Enrollment Form'!$O193<>\"Graded\",\"-\",IF(AND('Enrollment Form'!$O193=\"Graded\",'Enrollment Form'!$AO193<>\"\"),\"Y\",\"N\"))","v":"-"},{"$f":"IF($B186=\"N\",\"\",IF(OR('Enrollment Form'!$B193<>\"Subscriber\",'Enrollment Form'!$C193=\"ROC\"),\"-\",IF(AND('Enrollment Form'!$B193=\"Subscriber\",'Enrollment Form'!$C193=\"Enroll\",'Enrollment Form'!$AJ193<>\"\"),\"Y\",\"N\")))","v":""},{"$f":"IF($B186=\"N\",\"\",IF(OR('Enrollment Form'!$B193<>\"Subscriber\",'Enrollment Form'!$C193=\"ROC\"),\"-\",IF(AND('Enrollment Form'!$B193=\"Subscriber\",'Enrollment Form'!$C193=\"Enroll\",'Enrollment Form'!$AK193<>\"\"),\"Y\",\"N\")))","v":""},{"$f":"IF($B186=\"N\",\"\",IF(OR('Enrollment Form'!$B193<>\"Subscriber\",'Enrollment Form'!$C193=\"ROC\"),\"-\",IF(AND('Enrollment Form'!$B193=\"Subscriber\",'Enrollment Form'!$C193=\"Enroll\",'Enrollment Form'!$AL193<>\"\"),\"Y\",\"N\")))","v":""},{"$f":"IF($B186=\"N\",\"\",IF(OR('Enrollment Form'!$B193<>\"Subscriber\",'Enrollment Form'!$C193=\"ROC\"),\"-\",IF(AND('Enrollment Form'!$B193=\"Subscriber\",'Enrollment Form'!$C193=\"Enroll\",'Enrollment Form'!$AM193<>\"\"),\"Y\",\"N\")))","v":""},{"$f":"IF($B186=\"N\",\"\",IF(OR('Enrollment Form'!$B193<>\"Subscriber\",'Enrollment Form'!$C193=\"ROC\"),\"-\",IF(AND('Enrollment Form'!$B193=\"Subscriber\",'Enrollment Form'!$C193=\"Enroll\",'Enrollment Form'!$AN193<>\"\"),\"Y\",\"N\")))","v":""},{"$f":"IF($B186=\"N\",\"\",IF(OR('Enrollment Form'!$B193<>\"Subscriber\",'Enrollment Form'!$C193=\"ROC\"),\"-\",IF(AND('Enrollment Form'!$B193=\"Subscriber\",'Enrollment Form'!$C193=\"Enroll\",'Enrollment Form'!$AP193<>\"\"),\"Y\",\"N\")))","v":""},{"$f":"IF($B186=\"N\",\"\",IF($Q186=\"-\",\"-\",IF(AND($Q186=\"Y\",'Enrollment Form'!$AP193=\"No\"),\"-\",IF(AND($Q186=\"Y\",'Enrollment Form'!$AP193=\"Yes\",'Enrollment Form'!$AQ193<>\"\"),\"Y\",\"N\"))))","v":""},{"$f":"IF($B186=\"N\",\"\",IF(OR('Enrollment Form'!$B193<>\"Subscriber\",'Enrollment Form'!$C193=\"ROC\"),\"-\",IF(AND('Enrollment Form'!$B193=\"Subscriber\",'Enrollment Form'!$C193=\"Enroll\",'Enrollment Form'!$CO193<>\"\"),\"Y\",\"N\")))","v":""},{"$f":"IF($B186=\"N\",\"\",IF($S186=\"-\",\"-\",IF(AND($S186=\"Y\",'Enrollment Form'!$CO193=\"No\"),\"-\",IF(AND($S186=\"Y\",'Enrollment Form'!$CO193=\"Yes\",'Enrollment Form'!$CP193<>\"\"),\"Y\",\"N\"))))","v":""},{"$f":"IF(OR('Enrollment Form'!$AV193=\"Yes\",'Enrollment Form'!$AV193=\"\"),\"-\",IF(AND('Enrollment Form'!$AV193=\"No\",ISERROR(FIND(\"HMO\",VLOOKUP('Enrollment Form'!G193,'Enrollment Form'!H$11:J$1000,3,FALSE),1))=FALSE,COUNTA('Enrollment Form'!$AW193:$AZ193)=4),\"Y\",\"N\"))","v":"-"},{"$f":"IF($B186=\"N\",\"\",IF('Enrollment Form'!$B193=\"Subscriber\",\"-\",IF(COUNTA('Enrollment Form'!$BE193,'Enrollment Form'!$BG193)=2,\"Y\",\"N\")))","v":""},{"$f":"IF($B186=\"N\",\"\",IF(OR('Enrollment Form'!$AU193=\"\",'Enrollment Form'!$AU193=\"No\"),\"-\",IF(AND('Enrollment Form'!$AU193=\"Yes\",COUNTA('Enrollment Form'!$CK193)=1),\"Y\",\"N\")))","v":""},{"$f":"IF(OR('Enrollment Form'!$CK193=\"\",'Enrollment Form'!$CK193=\"No\"),\"-\",IF(COUNTA('Enrollment Form'!$CM193:$CN193)=2,\"Y\",\"N\"))","v":"-"},{"$f":"IF($B186=\"N\",\"\",IF(COUNTIF('Enrollment Form'!$CZ193:$DO193,\"Other\")=COUNTA('Enrollment Form'!$DF193,'Enrollment Form'!$DA193,'Enrollment Form'!$DK193,'Enrollment Form'!$DP193),\"Y\",\"N\"))","v":""},{"$f":"IF($B186=\"N\",\"\",IF(OR('Enrollment Form'!B193<>\"Subscriber\",'Enrollment Form'!C193=\"ROC\",COUNTIF('Enrollment Form'!AS193:AT193,\"Yes\")>=1),\"-\",IF(AND('Enrollment Form'!C193=\"Enroll\",COUNTIF('Enrollment Form'!AS193:AT193,\"No\")=2,'Enrollment Form'!AU193=\"\"),\"N\",\"Y\")))","v":""},{"$f":"IF(OR(B186=\"N\",'Enrollment Form'!B193<>\"Subscriber\",'Enrollment Form'!C193=\"ROC\",'Enrollment Form'!O193<>\"Multiple of Salary\"),\"-\",IF(COUNTA('Enrollment Form'!T193:U193)<2,\"N\",\"Y\"))","v":"-"},{"$f":"IF(B186=\"N\",\"\",IF(OR('Enrollment Form'!C193=\"ROC\",'Enrollment Form'!B193<>\"Subscriber\",'Enrollment Form'!O193=\"Waive\",'Enrollment Form'!O193=\"\"),\"-\",IF('Enrollment Form'!P193=\"\",\"N\",\"Y\")))","v":""},{"$f":"IF($B186=\"N\",\"\",IF(AND('Enrollment Form'!$C193=\"ROC\",'Enrollment Form'!$DS193<>\"\"),\"Y\",IF(AND('Enrollment Form'!$C193=\"ROC\",'Enrollment Form'!$DS193=\"\"),\"N\",IF(AND('Enrollment Form'!$C193=\"Enroll\",'Enrollment Form'!$B193=\"Subscriber\",'Enrollment Form'!$CQ193=\"No\",'Enrollment Form'!$DS193=\"\"),\"N\",IF(AND('Enrollment Form'!$C193=\"Enroll\",'Enrollment Form'!$B193=\"Subscriber\",'Enrollment Form'!$CQ193=\"Yes\"),\"-\",\"Y\")))))","v":""},{"$f":"IF($B186=\"N\",\"\",IF(AND('Enrollment Form'!$C193=\"ROC\",'Enrollment Form'!$DT193<>\"\"),\"Y\",IF(AND('Enrollment Form'!$C193=\"ROC\",'Enrollment Form'!$DT193=\"\"),\"N\",IF(AND('Enrollment Form'!$C193=\"Enroll\",'Enrollment Form'!$B193=\"Subscriber\",'Enrollment Form'!$CQ193=\"No\",'Enrollment Form'!$DT193=\"\"),\"N\",IF(AND('Enrollment Form'!$C193=\"Enroll\",'Enrollment Form'!$B193=\"Subscriber\",'Enrollment Form'!$CQ193=\"Yes\"),\"-\",\"Y\")))))","v":""},{"$f":"IF('Enrollment Form'!AH193=\"\",\"\",IF(ISERROR(SEARCH(\".\",'Enrollment Form'!AH193,SEARCH(\"@\",'Enrollment Form'!AH193))),\"N\",\"Y\"))","v":""},{"$f":"IF(OR($B186=\"N\",'Enrollment Form'!$G193=\"\"),\"\",IF('Enrollment Form'!$B193<>\"Subscriber\",\"-\",IF(COUNTIF('Enrollment Form'!$AS193:$AT193,\"Yes\")=2,\"N\",\"Y\")))","v":""},{"$f":"IF(OR('Enrollment Form'!$CC193=\"\",'Enrollment Form'!$CC193=\"No\"),\"-\",IF(AND('Enrollment Form'!$CC193=\"Yes\",'Enrollment Form'!$CD193=\"\"),\"N\",\"Y\"))","v":"-"},{"$f":"IF(OR('Enrollment Form'!$CE193=\"\",'Enrollment Form'!$CE193=\"No\"),\"-\",IF(AND('Enrollment Form'!$CE193=\"Yes\",'Enrollment Form'!$CF193=\"\"),\"N\",\"Y\"))","v":"-"},{"$f":"IF(OR('Enrollment Form'!$CG193=\"\",'Enrollment Form'!$CG193=\"No\"),\"-\",IF(AND('Enrollment Form'!$CG193=\"Yes\",'Enrollment Form'!$CH193=\"\"),\"N\",\"Y\"))","v":"-"},{"$f":"IF(OR('Enrollment Form'!$CG193=\"\",'Enrollment Form'!$CG193=\"No\"),\"-\",IF(AND('Enrollment Form'!$CG193=\"Yes\",'Enrollment Form'!$CI193=\"\"),\"N\",\"Y\"))","v":"-"},{"$f":"IF('Enrollment Form'!B193<>\"Subscriber\",\"-\",IF(AND('Enrollment Form'!B193=\"Subscriber\",'Enrollment Form'!C193=\"Enroll\",'Enrollment Form'!AA193=\"\"),\"N\",\"Y\"))","v":"-"},{"$f":"IF(OR('Enrollment Form'!B193=\"Subscriber\",'Enrollment Form'!B193=\"\"),\"-\",IF('Enrollment Form'!BI193=\"\",\"N\",\"Y\"))","v":"-"},{"$f":"IF('Enrollment Form'!B193<>\"Subscriber\",\"-\",IF(AND('Enrollment Form'!B193=\"Subscriber\",'Enrollment Form'!G193=\"\"),\"N\",\"Y\"))","v":"-"},{"$f":"IF('Enrollment Form'!A193=\"\",\"\",IF('Enrollment Form'!B193=\"Subscriber\",\"-\",IF(AND('Enrollment Form'!B193<>\"Subscriber\",'Enrollment Form'!G193='Enrollment Form'!H193),\"N\",\"Y\")))","v":""},0]
[194,{"$f":"IF('Enrollment Form'!$A194<>\"\",\"Y\",\"N\")","v":"N"},{"$f":"IF(AND('Enrollment Form'!$B194=\"\",'Enrollment Form'!$C194<>\"\"),\"N\",IF($B187=\"N\",\"\",\"Y\"))","v":""},{"$f":"IF(OR($B187=\"N\",'Enrollment Form'!G194=\"\"),\"\",IF('Enrollment Form'!$B194<>\"Subscriber\",\"\",IF('Enrollment Form'!$G194='Enrollment Form'!$H194,\"Y\",\"N\")))","v":""},{"$f":"IF($B187=\"N\",\"\",IF(AND(COUNTIFS('Enrollment Form'!$H$11:$H$1000,'Enrollment Form'!$H194,'Enrollment Form'!$B$11:$B$1000,'Enrollment Form'!$B194)>1,'Enrollment Form'!$H194<>\"\"),\"N\",\"Y\"))","v":""},{"$f":"IF($B187=\"N\",\"\",IF(LEN('Enrollment Form'!$Y194)=0,\"\",IF(LEN('Enrollment Form'!$Y194)<>5,\"N\",\"Y\")))","v":""},{"$f":"IF($B187=\"N\",\"\",IF(LEN('Enrollment Form'!$AD194=0),\"\",IF(LEN('Enrollment Form'!$AD194)<>5,\"N\",\"Y\")))","v":""},{"$f":"IF($B187=\"N\",\"\",IF(LEN('Enrollment Form'!$BL194=0),\"\",IF(LEN('Enrollment Form'!$BL194)<>5,\"N\",\"Y\")))","v":""},{"$f":"IF($B187=\"N\",\"\",IF(LEN('Enrollment Form'!$AE194)=0,\"\",IF(LEN('Enrollment Form'!$AE194)<>10,\"N\",\"Y\")))","v":""},{"$f":"IF($B187=\"N\",\"\",IF(LEN('Enrollment Form'!$AF194)=0,\"\",IF(LEN('Enrollment Form'!$AF194)<>10,\"N\",\"Y\")))","v":""},{"$f":"IF('Enrollment Form'!$O194<>\"Graded\",\"-\",IF(AND('Enrollment Form'!$O194=\"Graded\",'Enrollment Form'!$AO194<>\"\"),\"Y\",\"N\"))","v":"-"},{"$f":"IF($B187=\"N\",\"\",IF(OR('Enrollment Form'!$B194<>\"Subscriber\",'Enrollment Form'!$C194=\"ROC\"),\"-\",IF(AND('Enrollment Form'!$B194=\"Subscriber\",'Enrollment Form'!$C194=\"Enroll\",'Enrollment Form'!$AJ194<>\"\"),\"Y\",\"N\")))","v":""},{"$f":"IF($B187=\"N\",\"\",IF(OR('Enrollment Form'!$B194<>\"Subscriber\",'Enrollment Form'!$C194=\"ROC\"),\"-\",IF(AND('Enrollment Form'!$B194=\"Subscriber\",'Enrollment Form'!$C194=\"Enroll\",'Enrollment Form'!$AK194<>\"\"),\"Y\",\"N\")))","v":""},{"$f":"IF($B187=\"N\",\"\",IF(OR('Enrollment Form'!$B194<>\"Subscriber\",'Enrollment Form'!$C194=\"ROC\"),\"-\",IF(AND('Enrollment Form'!$B194=\"Subscriber\",'Enrollment Form'!$C194=\"Enroll\",'Enrollment Form'!$AL194<>\"\"),\"Y\",\"N\")))","v":""},{"$f":"IF($B187=\"N\",\"\",IF(OR('Enrollment Form'!$B194<>\"Subscriber\",'Enrollment Form'!$C194=\"ROC\"),\"-\",IF(AND('Enrollment Form'!$B194=\"Subscriber\",'Enrollment Form'!$C194=\"Enroll\",'Enrollment Form'!$AM194<>\"\"),\"Y\",\"N\")))","v":""},{"$f":"IF($B187=\"N\",\"\",IF(OR('Enrollment Form'!$B194<>\"Subscriber\",'Enrollment Form'!$C194=\"ROC\"),\"-\",IF(AND('Enrollment Form'!$B194=\"Subscriber\",'Enrollment Form'!$C194=\"Enroll\",'Enrollment Form'!$AN194<>\"\"),\"Y\",\"N\")))","v":""},{"$f":"IF($B187=\"N\",\"\",IF(OR('Enrollment Form'!$B194<>\"Subscriber\",'Enrollment Form'!$C194=\"ROC\"),\"-\",IF(AND('Enrollment Form'!$B194=\"Subscriber\",'Enrollment Form'!$C194=\"Enroll\",'Enrollment Form'!$AP194<>\"\"),\"Y\",\"N\")))","v":""},{"$f":"IF($B187=\"N\",\"\",IF($Q187=\"-\",\"-\",IF(AND($Q187=\"Y\",'Enrollment Form'!$AP194=\"No\"),\"-\",IF(AND($Q187=\"Y\",'Enrollment Form'!$AP194=\"Yes\",'Enrollment Form'!$AQ194<>\"\"),\"Y\",\"N\"))))","v":""},{"$f":"IF($B187=\"N\",\"\",IF(OR('Enrollment Form'!$B194<>\"Subscriber\",'Enrollment Form'!$C194=\"ROC\"),\"-\",IF(AND('Enrollment Form'!$B194=\"Subscriber\",'Enrollment Form'!$C194=\"Enroll\",'Enrollment Form'!$CO194<>\"\"),\"Y\",\"N\")))","v":""},{"$f":"IF($B187=\"N\",\"\",IF($S187=\"-\",\"-\",IF(AND($S187=\"Y\",'Enrollment Form'!$CO194=\"No\"),\"-\",IF(AND($S187=\"Y\",'Enrollment Form'!$CO194=\"Yes\",'Enrollment Form'!$CP194<>\"\"),\"Y\",\"N\"))))","v":""},{"$f":"IF(OR('Enrollment Form'!$AV194=\"Yes\",'Enrollment Form'!$AV194=\"\"),\"-\",IF(AND('Enrollment Form'!$AV194=\"No\",ISERROR(FIND(\"HMO\",VLOOKUP('Enrollment Form'!G194,'Enrollment Form'!H$11:J$1000,3,FALSE),1))=FALSE,COUNTA('Enrollment Form'!$AW194:$AZ194)=4),\"Y\",\"N\"))","v":"-"},{"$f":"IF($B187=\"N\",\"\",IF('Enrollment Form'!$B194=\"Subscriber\",\"-\",IF(COUNTA('Enrollment Form'!$BE194,'Enrollment Form'!$BG194)=2,\"Y\",\"N\")))","v":""},{"$f":"IF($B187=\"N\",\"\",IF(OR('Enrollment Form'!$AU194=\"\",'Enrollment Form'!$AU194=\"No\"),\"-\",IF(AND('Enrollment Form'!$AU194=\"Yes\",COUNTA('Enrollment Form'!$CK194)=1),\"Y\",\"N\")))","v":""},{"$f":"IF(OR('Enrollment Form'!$CK194=\"\",'Enrollment Form'!$CK194=\"No\"),\"-\",IF(COUNTA('Enrollment Form'!$CM194:$CN194)=2,\"Y\",\"N\"))","v":"-"},{"$f":"IF($B187=\"N\",\"\",IF(COUNTIF('Enrollment Form'!$CZ194:$DO194,\"Other\")=COUNTA('Enrollment Form'!$DF194,'Enrollment Form'!$DA194,'Enrollment Form'!$DK194,'Enrollment Form'!$DP194),\"Y\",\"N\"))","v":""},{"$f":"IF($B187=\"N\",\"\",IF(OR('Enrollment Form'!B194<>\"Subscriber\",'Enrollment Form'!C194=\"ROC\",COUNTIF('Enrollment Form'!AS194:AT194,\"Yes\")>=1),\"-\",IF(AND('Enrollment Form'!C194=\"Enroll\",COUNTIF('Enrollment Form'!AS194:AT194,\"No\")=2,'Enrollment Form'!AU194=\"\"),\"N\",\"Y\")))","v":""},{"$f":"IF(OR(B187=\"N\",'Enrollment Form'!B194<>\"Subscriber\",'Enrollment Form'!C194=\"ROC\",'Enrollment Form'!O194<>\"Multiple of Salary\"),\"-\",IF(COUNTA('Enrollment Form'!T194:U194)<2,\"N\",\"Y\"))","v":"-"},{"$f":"IF(B187=\"N\",\"\",IF(OR('Enrollment Form'!C194=\"ROC\",'Enrollment Form'!B194<>\"Subscriber\",'Enrollment Form'!O194=\"Waive\",'Enrollment Form'!O194=\"\"),\"-\",IF('Enrollment Form'!P194=\"\",\"N\",\"Y\")))","v":""},{"$f":"IF($B187=\"N\",\"\",IF(AND('Enrollment Form'!$C194=\"ROC\",'Enrollment Form'!$DS194<>\"\"),\"Y\",IF(AND('Enrollment Form'!$C194=\"ROC\",'Enrollment Form'!$DS194=\"\"),\"N\",IF(AND('Enrollment Form'!$C194=\"Enroll\",'Enrollment Form'!$B194=\"Subscriber\",'Enrollment Form'!$CQ194=\"No\",'Enrollment Form'!$DS194=\"\"),\"N\",IF(AND('Enrollment Form'!$C194=\"Enroll\",'Enrollment Form'!$B194=\"Subscriber\",'Enrollment Form'!$CQ194=\"Yes\"),\"-\",\"Y\")))))","v":""},{"$f":"IF($B187=\"N\",\"\",IF(AND('Enrollment Form'!$C194=\"ROC\",'Enrollment Form'!$DT194<>\"\"),\"Y\",IF(AND('Enrollment Form'!$C194=\"ROC\",'Enrollment Form'!$DT194=\"\"),\"N\",IF(AND('Enrollment Form'!$C194=\"Enroll\",'Enrollment Form'!$B194=\"Subscriber\",'Enrollment Form'!$CQ194=\"No\",'Enrollment Form'!$DT194=\"\"),\"N\",IF(AND('Enrollment Form'!$C194=\"Enroll\",'Enrollment Form'!$B194=\"Subscriber\",'Enrollment Form'!$CQ194=\"Yes\"),\"-\",\"Y\")))))","v":""},{"$f":"IF('Enrollment Form'!AH194=\"\",\"\",IF(ISERROR(SEARCH(\".\",'Enrollment Form'!AH194,SEARCH(\"@\",'Enrollment Form'!AH194))),\"N\",\"Y\"))","v":""},{"$f":"IF(OR($B187=\"N\",'Enrollment Form'!$G194=\"\"),\"\",IF('Enrollment Form'!$B194<>\"Subscriber\",\"-\",IF(COUNTIF('Enrollment Form'!$AS194:$AT194,\"Yes\")=2,\"N\",\"Y\")))","v":""},{"$f":"IF(OR('Enrollment Form'!$CC194=\"\",'Enrollment Form'!$CC194=\"No\"),\"-\",IF(AND('Enrollment Form'!$CC194=\"Yes\",'Enrollment Form'!$CD194=\"\"),\"N\",\"Y\"))","v":"-"},{"$f":"IF(OR('Enrollment Form'!$CE194=\"\",'Enrollment Form'!$CE194=\"No\"),\"-\",IF(AND('Enrollment Form'!$CE194=\"Yes\",'Enrollment Form'!$CF194=\"\"),\"N\",\"Y\"))","v":"-"},{"$f":"IF(OR('Enrollment Form'!$CG194=\"\",'Enrollment Form'!$CG194=\"No\"),\"-\",IF(AND('Enrollment Form'!$CG194=\"Yes\",'Enrollment Form'!$CH194=\"\"),\"N\",\"Y\"))","v":"-"},{"$f":"IF(OR('Enrollment Form'!$CG194=\"\",'Enrollment Form'!$CG194=\"No\"),\"-\",IF(AND('Enrollment Form'!$CG194=\"Yes\",'Enrollment Form'!$CI194=\"\"),\"N\",\"Y\"))","v":"-"},{"$f":"IF('Enrollment Form'!B194<>\"Subscriber\",\"-\",IF(AND('Enrollment Form'!B194=\"Subscriber\",'Enrollment Form'!C194=\"Enroll\",'Enrollment Form'!AA194=\"\"),\"N\",\"Y\"))","v":"-"},{"$f":"IF(OR('Enrollment Form'!B194=\"Subscriber\",'Enrollment Form'!B194=\"\"),\"-\",IF('Enrollment Form'!BI194=\"\",\"N\",\"Y\"))","v":"-"},{"$f":"IF('Enrollment Form'!B194<>\"Subscriber\",\"-\",IF(AND('Enrollment Form'!B194=\"Subscriber\",'Enrollment Form'!G194=\"\"),\"N\",\"Y\"))","v":"-"},{"$f":"IF('Enrollment Form'!A194=\"\",\"\",IF('Enrollment Form'!B194=\"Subscriber\",\"-\",IF(AND('Enrollment Form'!B194<>\"Subscriber\",'Enrollment Form'!G194='Enrollment Form'!H194),\"N\",\"Y\")))","v":""},0]
[195,{"$f":"IF('Enrollment Form'!$A195<>\"\",\"Y\",\"N\")","v":"N"},{"$f":"IF(AND('Enrollment Form'!$B195=\"\",'Enrollment Form'!$C195<>\"\"),\"N\",IF($B188=\"N\",\"\",\"Y\"))","v":""},{"$f":"IF(OR($B188=\"N\",'Enrollment Form'!G195=\"\"),\"\",IF('Enrollment Form'!$B195<>\"Subscriber\",\"\",IF('Enrollment Form'!$G195='Enrollment Form'!$H195,\"Y\",\"N\")))","v":""},{"$f":"IF($B188=\"N\",\"\",IF(AND(COUNTIFS('Enrollment Form'!$H$11:$H$1000,'Enrollment Form'!$H195,'Enrollment Form'!$B$11:$B$1000,'Enrollment Form'!$B195)>1,'Enrollment Form'!$H195<>\"\"),\"N\",\"Y\"))","v":""},{"$f":"IF($B188=\"N\",\"\",IF(LEN('Enrollment Form'!$Y195)=0,\"\",IF(LEN('Enrollment Form'!$Y195)<>5,\"N\",\"Y\")))","v":""},{"$f":"IF($B188=\"N\",\"\",IF(LEN('Enrollment Form'!$AD195=0),\"\",IF(LEN('Enrollment Form'!$AD195)<>5,\"N\",\"Y\")))","v":""},{"$f":"IF($B188=\"N\",\"\",IF(LEN('Enrollment Form'!$BL195=0),\"\",IF(LEN('Enrollment Form'!$BL195)<>5,\"N\",\"Y\")))","v":""},{"$f":"IF($B188=\"N\",\"\",IF(LEN('Enrollment Form'!$AE195)=0,\"\",IF(LEN('Enrollment Form'!$AE195)<>10,\"N\",\"Y\")))","v":""},{"$f":"IF($B188=\"N\",\"\",IF(LEN('Enrollment Form'!$AF195)=0,\"\",IF(LEN('Enrollment Form'!$AF195)<>10,\"N\",\"Y\")))","v":""},{"$f":"IF('Enrollment Form'!$O195<>\"Graded\",\"-\",IF(AND('Enrollment Form'!$O195=\"Graded\",'Enrollment Form'!$AO195<>\"\"),\"Y\",\"N\"))","v":"-"},{"$f":"IF($B188=\"N\",\"\",IF(OR('Enrollment Form'!$B195<>\"Subscriber\",'Enrollment Form'!$C195=\"ROC\"),\"-\",IF(AND('Enrollment Form'!$B195=\"Subscriber\",'Enrollment Form'!$C195=\"Enroll\",'Enrollment Form'!$AJ195<>\"\"),\"Y\",\"N\")))","v":""},{"$f":"IF($B188=\"N\",\"\",IF(OR('Enrollment Form'!$B195<>\"Subscriber\",'Enrollment Form'!$C195=\"ROC\"),\"-\",IF(AND('Enrollment Form'!$B195=\"Subscriber\",'Enrollment Form'!$C195=\"Enroll\",'Enrollment Form'!$AK195<>\"\"),\"Y\",\"N\")))","v":""},{"$f":"IF($B188=\"N\",\"\",IF(OR('Enrollment Form'!$B195<>\"Subscriber\",'Enrollment Form'!$C195=\"ROC\"),\"-\",IF(AND('Enrollment Form'!$B195=\"Subscriber\",'Enrollment Form'!$C195=\"Enroll\",'Enrollment Form'!$AL195<>\"\"),\"Y\",\"N\")))","v":""},{"$f":"IF($B188=\"N\",\"\",IF(OR('Enrollment Form'!$B195<>\"Subscriber\",'Enrollment Form'!$C195=\"ROC\"),\"-\",IF(AND('Enrollment Form'!$B195=\"Subscriber\",'Enrollment Form'!$C195=\"Enroll\",'Enrollment Form'!$AM195<>\"\"),\"Y\",\"N\")))","v":""},{"$f":"IF($B188=\"N\",\"\",IF(OR('Enrollment Form'!$B195<>\"Subscriber\",'Enrollment Form'!$C195=\"ROC\"),\"-\",IF(AND('Enrollment Form'!$B195=\"Subscriber\",'Enrollment Form'!$C195=\"Enroll\",'Enrollment Form'!$AN195<>\"\"),\"Y\",\"N\")))","v":""},{"$f":"IF($B188=\"N\",\"\",IF(OR('Enrollment Form'!$B195<>\"Subscriber\",'Enrollment Form'!$C195=\"ROC\"),\"-\",IF(AND('Enrollment Form'!$B195=\"Subscriber\",'Enrollment Form'!$C195=\"Enroll\",'Enrollment Form'!$AP195<>\"\"),\"Y\",\"N\")))","v":""},{"$f":"IF($B188=\"N\",\"\",IF($Q188=\"-\",\"-\",IF(AND($Q188=\"Y\",'Enrollment Form'!$AP195=\"No\"),\"-\",IF(AND($Q188=\"Y\",'Enrollment Form'!$AP195=\"Yes\",'Enrollment Form'!$AQ195<>\"\"),\"Y\",\"N\"))))","v":""},{"$f":"IF($B188=\"N\",\"\",IF(OR('Enrollment Form'!$B195<>\"Subscriber\",'Enrollment Form'!$C195=\"ROC\"),\"-\",IF(AND('Enrollment Form'!$B195=\"Subscriber\",'Enrollment Form'!$C195=\"Enroll\",'Enrollment Form'!$CO195<>\"\"),\"Y\",\"N\")))","v":""},{"$f":"IF($B188=\"N\",\"\",IF($S188=\"-\",\"-\",IF(AND($S188=\"Y\",'Enrollment Form'!$CO195=\"No\"),\"-\",IF(AND($S188=\"Y\",'Enrollment Form'!$CO195=\"Yes\",'Enrollment Form'!$CP195<>\"\"),\"Y\",\"N\"))))","v":""},{"$f":"IF(OR('Enrollment Form'!$AV195=\"Yes\",'Enrollment Form'!$AV195=\"\"),\"-\",IF(AND('Enrollment Form'!$AV195=\"No\",ISERROR(FIND(\"HMO\",VLOOKUP('Enrollment Form'!G195,'Enrollment Form'!H$11:J$1000,3,FALSE),1))=FALSE,COUNTA('Enrollment Form'!$AW195:$AZ195)=4),\"Y\",\"N\"))","v":"-"},{"$f":"IF($B188=\"N\",\"\",IF('Enrollment Form'!$B195=\"Subscriber\",\"-\",IF(COUNTA('Enrollment Form'!$BE195,'Enrollment Form'!$BG195)=2,\"Y\",\"N\")))","v":""},{"$f":"IF($B188=\"N\",\"\",IF(OR('Enrollment Form'!$AU195=\"\",'Enrollment Form'!$AU195=\"No\"),\"-\",IF(AND('Enrollment Form'!$AU195=\"Yes\",COUNTA('Enrollment Form'!$CK195)=1),\"Y\",\"N\")))","v":""},{"$f":"IF(OR('Enrollment Form'!$CK195=\"\",'Enrollment Form'!$CK195=\"No\"),\"-\",IF(COUNTA('Enrollment Form'!$CM195:$CN195)=2,\"Y\",\"N\"))","v":"-"},{"$f":"IF($B188=\"N\",\"\",IF(COUNTIF('Enrollment Form'!$CZ195:$DO195,\"Other\")=COUNTA('Enrollment Form'!$DF195,'Enrollment Form'!$DA195,'Enrollment Form'!$DK195,'Enrollment Form'!$DP195),\"Y\",\"N\"))","v":""},{"$f":"IF($B188=\"N\",\"\",IF(OR('Enrollment Form'!B195<>\"Subscriber\",'Enrollment Form'!C195=\"ROC\",COUNTIF('Enrollment Form'!AS195:AT195,\"Yes\")>=1),\"-\",IF(AND('Enrollment Form'!C195=\"Enroll\",COUNTIF('Enrollment Form'!AS195:AT195,\"No\")=2,'Enrollment Form'!AU195=\"\"),\"N\",\"Y\")))","v":""},{"$f":"IF(OR(B188=\"N\",'Enrollment Form'!B195<>\"Subscriber\",'Enrollment Form'!C195=\"ROC\",'Enrollment Form'!O195<>\"Multiple of Salary\"),\"-\",IF(COUNTA('Enrollment Form'!T195:U195)<2,\"N\",\"Y\"))","v":"-"},{"$f":"IF(B188=\"N\",\"\",IF(OR('Enrollment Form'!C195=\"ROC\",'Enrollment Form'!B195<>\"Subscriber\",'Enrollment Form'!O195=\"Waive\",'Enrollment Form'!O195=\"\"),\"-\",IF('Enrollment Form'!P195=\"\",\"N\",\"Y\")))","v":""},{"$f":"IF($B188=\"N\",\"\",IF(AND('Enrollment Form'!$C195=\"ROC\",'Enrollment Form'!$DS195<>\"\"),\"Y\",IF(AND('Enrollment Form'!$C195=\"ROC\",'Enrollment Form'!$DS195=\"\"),\"N\",IF(AND('Enrollment Form'!$C195=\"Enroll\",'Enrollment Form'!$B195=\"Subscriber\",'Enrollment Form'!$CQ195=\"No\",'Enrollment Form'!$DS195=\"\"),\"N\",IF(AND('Enrollment Form'!$C195=\"Enroll\",'Enrollment Form'!$B195=\"Subscriber\",'Enrollment Form'!$CQ195=\"Yes\"),\"-\",\"Y\")))))","v":""},{"$f":"IF($B188=\"N\",\"\",IF(AND('Enrollment Form'!$C195=\"ROC\",'Enrollment Form'!$DT195<>\"\"),\"Y\",IF(AND('Enrollment Form'!$C195=\"ROC\",'Enrollment Form'!$DT195=\"\"),\"N\",IF(AND('Enrollment Form'!$C195=\"Enroll\",'Enrollment Form'!$B195=\"Subscriber\",'Enrollment Form'!$CQ195=\"No\",'Enrollment Form'!$DT195=\"\"),\"N\",IF(AND('Enrollment Form'!$C195=\"Enroll\",'Enrollment Form'!$B195=\"Subscriber\",'Enrollment Form'!$CQ195=\"Yes\"),\"-\",\"Y\")))))","v":""},{"$f":"IF('Enrollment Form'!AH195=\"\",\"\",IF(ISERROR(SEARCH(\".\",'Enrollment Form'!AH195,SEARCH(\"@\",'Enrollment Form'!AH195))),\"N\",\"Y\"))","v":""},{"$f":"IF(OR($B188=\"N\",'Enrollment Form'!$G195=\"\"),\"\",IF('Enrollment Form'!$B195<>\"Subscriber\",\"-\",IF(COUNTIF('Enrollment Form'!$AS195:$AT195,\"Yes\")=2,\"N\",\"Y\")))","v":""},{"$f":"IF(OR('Enrollment Form'!$CC195=\"\",'Enrollment Form'!$CC195=\"No\"),\"-\",IF(AND('Enrollment Form'!$CC195=\"Yes\",'Enrollment Form'!$CD195=\"\"),\"N\",\"Y\"))","v":"-"},{"$f":"IF(OR('Enrollment Form'!$CE195=\"\",'Enrollment Form'!$CE195=\"No\"),\"-\",IF(AND('Enrollment Form'!$CE195=\"Yes\",'Enrollment Form'!$CF195=\"\"),\"N\",\"Y\"))","v":"-"},{"$f":"IF(OR('Enrollment Form'!$CG195=\"\",'Enrollment Form'!$CG195=\"No\"),\"-\",IF(AND('Enrollment Form'!$CG195=\"Yes\",'Enrollment Form'!$CH195=\"\"),\"N\",\"Y\"))","v":"-"},{"$f":"IF(OR('Enrollment Form'!$CG195=\"\",'Enrollment Form'!$CG195=\"No\"),\"-\",IF(AND('Enrollment Form'!$CG195=\"Yes\",'Enrollment Form'!$CI195=\"\"),\"N\",\"Y\"))","v":"-"},{"$f":"IF('Enrollment Form'!B195<>\"Subscriber\",\"-\",IF(AND('Enrollment Form'!B195=\"Subscriber\",'Enrollment Form'!C195=\"Enroll\",'Enrollment Form'!AA195=\"\"),\"N\",\"Y\"))","v":"-"},{"$f":"IF(OR('Enrollment Form'!B195=\"Subscriber\",'Enrollment Form'!B195=\"\"),\"-\",IF('Enrollment Form'!BI195=\"\",\"N\",\"Y\"))","v":"-"},{"$f":"IF('Enrollment Form'!B195<>\"Subscriber\",\"-\",IF(AND('Enrollment Form'!B195=\"Subscriber\",'Enrollment Form'!G195=\"\"),\"N\",\"Y\"))","v":"-"},{"$f":"IF('Enrollment Form'!A195=\"\",\"\",IF('Enrollment Form'!B195=\"Subscriber\",\"-\",IF(AND('Enrollment Form'!B195<>\"Subscriber\",'Enrollment Form'!G195='Enrollment Form'!H195),\"N\",\"Y\")))","v":""},0]
[196,{"$f":"IF('Enrollment Form'!$A196<>\"\",\"Y\",\"N\")","v":"N"},{"$f":"IF(AND('Enrollment Form'!$B196=\"\",'Enrollment Form'!$C196<>\"\"),\"N\",IF($B189=\"N\",\"\",\"Y\"))","v":""},{"$f":"IF(OR($B189=\"N\",'Enrollment Form'!G196=\"\"),\"\",IF('Enrollment Form'!$B196<>\"Subscriber\",\"\",IF('Enrollment Form'!$G196='Enrollment Form'!$H196,\"Y\",\"N\")))","v":""},{"$f":"IF($B189=\"N\",\"\",IF(AND(COUNTIFS('Enrollment Form'!$H$11:$H$1000,'Enrollment Form'!$H196,'Enrollment Form'!$B$11:$B$1000,'Enrollment Form'!$B196)>1,'Enrollment Form'!$H196<>\"\"),\"N\",\"Y\"))","v":""},{"$f":"IF($B189=\"N\",\"\",IF(LEN('Enrollment Form'!$Y196)=0,\"\",IF(LEN('Enrollment Form'!$Y196)<>5,\"N\",\"Y\")))","v":""},{"$f":"IF($B189=\"N\",\"\",IF(LEN('Enrollment Form'!$AD196=0),\"\",IF(LEN('Enrollment Form'!$AD196)<>5,\"N\",\"Y\")))","v":""},{"$f":"IF($B189=\"N\",\"\",IF(LEN('Enrollment Form'!$BL196=0),\"\",IF(LEN('Enrollment Form'!$BL196)<>5,\"N\",\"Y\")))","v":""},{"$f":"IF($B189=\"N\",\"\",IF(LEN('Enrollment Form'!$AE196)=0,\"\",IF(LEN('Enrollment Form'!$AE196)<>10,\"N\",\"Y\")))","v":""},{"$f":"IF($B189=\"N\",\"\",IF(LEN('Enrollment Form'!$AF196)=0,\"\",IF(LEN('Enrollment Form'!$AF196)<>10,\"N\",\"Y\")))","v":""},{"$f":"IF('Enrollment Form'!$O196<>\"Graded\",\"-\",IF(AND('Enrollment Form'!$O196=\"Graded\",'Enrollment Form'!$AO196<>\"\"),\"Y\",\"N\"))","v":"-"},{"$f":"IF($B189=\"N\",\"\",IF(OR('Enrollment Form'!$B196<>\"Subscriber\",'Enrollment Form'!$C196=\"ROC\"),\"-\",IF(AND('Enrollment Form'!$B196=\"Subscriber\",'Enrollment Form'!$C196=\"Enroll\",'Enrollment Form'!$AJ196<>\"\"),\"Y\",\"N\")))","v":""},{"$f":"IF($B189=\"N\",\"\",IF(OR('Enrollment Form'!$B196<>\"Subscriber\",'Enrollment Form'!$C196=\"ROC\"),\"-\",IF(AND('Enrollment Form'!$B196=\"Subscriber\",'Enrollment Form'!$C196=\"Enroll\",'Enrollment Form'!$AK196<>\"\"),\"Y\",\"N\")))","v":""},{"$f":"IF($B189=\"N\",\"\",IF(OR('Enrollment Form'!$B196<>\"Subscriber\",'Enrollment Form'!$C196=\"ROC\"),\"-\",IF(AND('Enrollment Form'!$B196=\"Subscriber\",'Enrollment Form'!$C196=\"Enroll\",'Enrollment Form'!$AL196<>\"\"),\"Y\",\"N\")))","v":""},{"$f":"IF($B189=\"N\",\"\",IF(OR('Enrollment Form'!$B196<>\"Subscriber\",'Enrollment Form'!$C196=\"ROC\"),\"-\",IF(AND('Enrollment Form'!$B196=\"Subscriber\",'Enrollment Form'!$C196=\"Enroll\",'Enrollment Form'!$AM196<>\"\"),\"Y\",\"N\")))","v":""},{"$f":"IF($B189=\"N\",\"\",IF(OR('Enrollment Form'!$B196<>\"Subscriber\",'Enrollment Form'!$C196=\"ROC\"),\"-\",IF(AND('Enrollment Form'!$B196=\"Subscriber\",'Enrollment Form'!$C196=\"Enroll\",'Enrollment Form'!$AN196<>\"\"),\"Y\",\"N\")))","v":""},{"$f":"IF($B189=\"N\",\"\",IF(OR('Enrollment Form'!$B196<>\"Subscriber\",'Enrollment Form'!$C196=\"ROC\"),\"-\",IF(AND('Enrollment Form'!$B196=\"Subscriber\",'Enrollment Form'!$C196=\"Enroll\",'Enrollment Form'!$AP196<>\"\"),\"Y\",\"N\")))","v":""},{"$f":"IF($B189=\"N\",\"\",IF($Q189=\"-\",\"-\",IF(AND($Q189=\"Y\",'Enrollment Form'!$AP196=\"No\"),\"-\",IF(AND($Q189=\"Y\",'Enrollment Form'!$AP196=\"Yes\",'Enrollment Form'!$AQ196<>\"\"),\"Y\",\"N\"))))","v":""},{"$f":"IF($B189=\"N\",\"\",IF(OR('Enrollment Form'!$B196<>\"Subscriber\",'Enrollment Form'!$C196=\"ROC\"),\"-\",IF(AND('Enrollment Form'!$B196=\"Subscriber\",'Enrollment Form'!$C196=\"Enroll\",'Enrollment Form'!$CO196<>\"\"),\"Y\",\"N\")))","v":""},{"$f":"IF($B189=\"N\",\"\",IF($S189=\"-\",\"-\",IF(AND($S189=\"Y\",'Enrollment Form'!$CO196=\"No\"),\"-\",IF(AND($S189=\"Y\",'Enrollment Form'!$CO196=\"Yes\",'Enrollment Form'!$CP196<>\"\"),\"Y\",\"N\"))))","v":""},{"$f":"IF(OR('Enrollment Form'!$AV196=\"Yes\",'Enrollment Form'!$AV196=\"\"),\"-\",IF(AND('Enrollment Form'!$AV196=\"No\",ISERROR(FIND(\"HMO\",VLOOKUP('Enrollment Form'!G196,'Enrollment Form'!H$11:J$1000,3,FALSE),1))=FALSE,COUNTA('Enrollment Form'!$AW196:$AZ196)=4),\"Y\",\"N\"))","v":"-"},{"$f":"IF($B189=\"N\",\"\",IF('Enrollment Form'!$B196=\"Subscriber\",\"-\",IF(COUNTA('Enrollment Form'!$BE196,'Enrollment Form'!$BG196)=2,\"Y\",\"N\")))","v":""},{"$f":"IF($B189=\"N\",\"\",IF(OR('Enrollment Form'!$AU196=\"\",'Enrollment Form'!$AU196=\"No\"),\"-\",IF(AND('Enrollment Form'!$AU196=\"Yes\",COUNTA('Enrollment Form'!$CK196)=1),\"Y\",\"N\")))","v":""},{"$f":"IF(OR('Enrollment Form'!$CK196=\"\",'Enrollment Form'!$CK196=\"No\"),\"-\",IF(COUNTA('Enrollment Form'!$CM196:$CN196)=2,\"Y\",\"N\"))","v":"-"},{"$f":"IF($B189=\"N\",\"\",IF(COUNTIF('Enrollment Form'!$CZ196:$DO196,\"Other\")=COUNTA('Enrollment Form'!$DF196,'Enrollment Form'!$DA196,'Enrollment Form'!$DK196,'Enrollment Form'!$DP196),\"Y\",\"N\"))","v":""},{"$f":"IF($B189=\"N\",\"\",IF(OR('Enrollment Form'!B196<>\"Subscriber\",'Enrollment Form'!C196=\"ROC\",COUNTIF('Enrollment Form'!AS196:AT196,\"Yes\")>=1),\"-\",IF(AND('Enrollment Form'!C196=\"Enroll\",COUNTIF('Enrollment Form'!AS196:AT196,\"No\")=2,'Enrollment Form'!AU196=\"\"),\"N\",\"Y\")))","v":""},{"$f":"IF(OR(B189=\"N\",'Enrollment Form'!B196<>\"Subscriber\",'Enrollment Form'!C196=\"ROC\",'Enrollment Form'!O196<>\"Multiple of Salary\"),\"-\",IF(COUNTA('Enrollment Form'!T196:U196)<2,\"N\",\"Y\"))","v":"-"},{"$f":"IF(B189=\"N\",\"\",IF(OR('Enrollment Form'!C196=\"ROC\",'Enrollment Form'!B196<>\"Subscriber\",'Enrollment Form'!O196=\"Waive\",'Enrollment Form'!O196=\"\"),\"-\",IF('Enrollment Form'!P196=\"\",\"N\",\"Y\")))","v":""},{"$f":"IF($B189=\"N\",\"\",IF(AND('Enrollment Form'!$C196=\"ROC\",'Enrollment Form'!$DS196<>\"\"),\"Y\",IF(AND('Enrollment Form'!$C196=\"ROC\",'Enrollment Form'!$DS196=\"\"),\"N\",IF(AND('Enrollment Form'!$C196=\"Enroll\",'Enrollment Form'!$B196=\"Subscriber\",'Enrollment Form'!$CQ196=\"No\",'Enrollment Form'!$DS196=\"\"),\"N\",IF(AND('Enrollment Form'!$C196=\"Enroll\",'Enrollment Form'!$B196=\"Subscriber\",'Enrollment Form'!$CQ196=\"Yes\"),\"-\",\"Y\")))))","v":""},{"$f":"IF($B189=\"N\",\"\",IF(AND('Enrollment Form'!$C196=\"ROC\",'Enrollment Form'!$DT196<>\"\"),\"Y\",IF(AND('Enrollment Form'!$C196=\"ROC\",'Enrollment Form'!$DT196=\"\"),\"N\",IF(AND('Enrollment Form'!$C196=\"Enroll\",'Enrollment Form'!$B196=\"Subscriber\",'Enrollment Form'!$CQ196=\"No\",'Enrollment Form'!$DT196=\"\"),\"N\",IF(AND('Enrollment Form'!$C196=\"Enroll\",'Enrollment Form'!$B196=\"Subscriber\",'Enrollment Form'!$CQ196=\"Yes\"),\"-\",\"Y\")))))","v":""},{"$f":"IF('Enrollment Form'!AH196=\"\",\"\",IF(ISERROR(SEARCH(\".\",'Enrollment Form'!AH196,SEARCH(\"@\",'Enrollment Form'!AH196))),\"N\",\"Y\"))","v":""},{"$f":"IF(OR($B189=\"N\",'Enrollment Form'!$G196=\"\"),\"\",IF('Enrollment Form'!$B196<>\"Subscriber\",\"-\",IF(COUNTIF('Enrollment Form'!$AS196:$AT196,\"Yes\")=2,\"N\",\"Y\")))","v":""},{"$f":"IF(OR('Enrollment Form'!$CC196=\"\",'Enrollment Form'!$CC196=\"No\"),\"-\",IF(AND('Enrollment Form'!$CC196=\"Yes\",'Enrollment Form'!$CD196=\"\"),\"N\",\"Y\"))","v":"-"},{"$f":"IF(OR('Enrollment Form'!$CE196=\"\",'Enrollment Form'!$CE196=\"No\"),\"-\",IF(AND('Enrollment Form'!$CE196=\"Yes\",'Enrollment Form'!$CF196=\"\"),\"N\",\"Y\"))","v":"-"},{"$f":"IF(OR('Enrollment Form'!$CG196=\"\",'Enrollment Form'!$CG196=\"No\"),\"-\",IF(AND('Enrollment Form'!$CG196=\"Yes\",'Enrollment Form'!$CH196=\"\"),\"N\",\"Y\"))","v":"-"},{"$f":"IF(OR('Enrollment Form'!$CG196=\"\",'Enrollment Form'!$CG196=\"No\"),\"-\",IF(AND('Enrollment Form'!$CG196=\"Yes\",'Enrollment Form'!$CI196=\"\"),\"N\",\"Y\"))","v":"-"},{"$f":"IF('Enrollment Form'!B196<>\"Subscriber\",\"-\",IF(AND('Enrollment Form'!B196=\"Subscriber\",'Enrollment Form'!C196=\"Enroll\",'Enrollment Form'!AA196=\"\"),\"N\",\"Y\"))","v":"-"},{"$f":"IF(OR('Enrollment Form'!B196=\"Subscriber\",'Enrollment Form'!B196=\"\"),\"-\",IF('Enrollment Form'!BI196=\"\",\"N\",\"Y\"))","v":"-"},{"$f":"IF('Enrollment Form'!B196<>\"Subscriber\",\"-\",IF(AND('Enrollment Form'!B196=\"Subscriber\",'Enrollment Form'!G196=\"\"),\"N\",\"Y\"))","v":"-"},{"$f":"IF('Enrollment Form'!A196=\"\",\"\",IF('Enrollment Form'!B196=\"Subscriber\",\"-\",IF(AND('Enrollment Form'!B196<>\"Subscriber\",'Enrollment Form'!G196='Enrollment Form'!H196),\"N\",\"Y\")))","v":""},0]
[197,{"$f":"IF('Enrollment Form'!$A197<>\"\",\"Y\",\"N\")","v":"N"},{"$f":"IF(AND('Enrollment Form'!$B197=\"\",'Enrollment Form'!$C197<>\"\"),\"N\",IF($B190=\"N\",\"\",\"Y\"))","v":""},{"$f":"IF(OR($B190=\"N\",'Enrollment Form'!G197=\"\"),\"\",IF('Enrollment Form'!$B197<>\"Subscriber\",\"\",IF('Enrollment Form'!$G197='Enrollment Form'!$H197,\"Y\",\"N\")))","v":""},{"$f":"IF($B190=\"N\",\"\",IF(AND(COUNTIFS('Enrollment Form'!$H$11:$H$1000,'Enrollment Form'!$H197,'Enrollment Form'!$B$11:$B$1000,'Enrollment Form'!$B197)>1,'Enrollment Form'!$H197<>\"\"),\"N\",\"Y\"))","v":""},{"$f":"IF($B190=\"N\",\"\",IF(LEN('Enrollment Form'!$Y197)=0,\"\",IF(LEN('Enrollment Form'!$Y197)<>5,\"N\",\"Y\")))","v":""},{"$f":"IF($B190=\"N\",\"\",IF(LEN('Enrollment Form'!$AD197=0),\"\",IF(LEN('Enrollment Form'!$AD197)<>5,\"N\",\"Y\")))","v":""},{"$f":"IF($B190=\"N\",\"\",IF(LEN('Enrollment Form'!$BL197=0),\"\",IF(LEN('Enrollment Form'!$BL197)<>5,\"N\",\"Y\")))","v":""},{"$f":"IF($B190=\"N\",\"\",IF(LEN('Enrollment Form'!$AE197)=0,\"\",IF(LEN('Enrollment Form'!$AE197)<>10,\"N\",\"Y\")))","v":""},{"$f":"IF($B190=\"N\",\"\",IF(LEN('Enrollment Form'!$AF197)=0,\"\",IF(LEN('Enrollment Form'!$AF197)<>10,\"N\",\"Y\")))","v":""},{"$f":"IF('Enrollment Form'!$O197<>\"Graded\",\"-\",IF(AND('Enrollment Form'!$O197=\"Graded\",'Enrollment Form'!$AO197<>\"\"),\"Y\",\"N\"))","v":"-"},{"$f":"IF($B190=\"N\",\"\",IF(OR('Enrollment Form'!$B197<>\"Subscriber\",'Enrollment Form'!$C197=\"ROC\"),\"-\",IF(AND('Enrollment Form'!$B197=\"Subscriber\",'Enrollment Form'!$C197=\"Enroll\",'Enrollment Form'!$AJ197<>\"\"),\"Y\",\"N\")))","v":""},{"$f":"IF($B190=\"N\",\"\",IF(OR('Enrollment Form'!$B197<>\"Subscriber\",'Enrollment Form'!$C197=\"ROC\"),\"-\",IF(AND('Enrollment Form'!$B197=\"Subscriber\",'Enrollment Form'!$C197=\"Enroll\",'Enrollment Form'!$AK197<>\"\"),\"Y\",\"N\")))","v":""},{"$f":"IF($B190=\"N\",\"\",IF(OR('Enrollment Form'!$B197<>\"Subscriber\",'Enrollment Form'!$C197=\"ROC\"),\"-\",IF(AND('Enrollment Form'!$B197=\"Subscriber\",'Enrollment Form'!$C197=\"Enroll\",'Enrollment Form'!$AL197<>\"\"),\"Y\",\"N\")))","v":""},{"$f":"IF($B190=\"N\",\"\",IF(OR('Enrollment Form'!$B197<>\"Subscriber\",'Enrollment Form'!$C197=\"ROC\"),\"-\",IF(AND('Enrollment Form'!$B197=\"Subscriber\",'Enrollment Form'!$C197=\"Enroll\",'Enrollment Form'!$AM197<>\"\"),\"Y\",\"N\")))","v":""},{"$f":"IF($B190=\"N\",\"\",IF(OR('Enrollment Form'!$B197<>\"Subscriber\",'Enrollment Form'!$C197=\"ROC\"),\"-\",IF(AND('Enrollment Form'!$B197=\"Subscriber\",'Enrollment Form'!$C197=\"Enroll\",'Enrollment Form'!$AN197<>\"\"),\"Y\",\"N\")))","v":""},{"$f":"IF($B190=\"N\",\"\",IF(OR('Enrollment Form'!$B197<>\"Subscriber\",'Enrollment Form'!$C197=\"ROC\"),\"-\",IF(AND('Enrollment Form'!$B197=\"Subscriber\",'Enrollment Form'!$C197=\"Enroll\",'Enrollment Form'!$AP197<>\"\"),\"Y\",\"N\")))","v":""},{"$f":"IF($B190=\"N\",\"\",IF($Q190=\"-\",\"-\",IF(AND($Q190=\"Y\",'Enrollment Form'!$AP197=\"No\"),\"-\",IF(AND($Q190=\"Y\",'Enrollment Form'!$AP197=\"Yes\",'Enrollment Form'!$AQ197<>\"\"),\"Y\",\"N\"))))","v":""},{"$f":"IF($B190=\"N\",\"\",IF(OR('Enrollment Form'!$B197<>\"Subscriber\",'Enrollment Form'!$C197=\"ROC\"),\"-\",IF(AND('Enrollment Form'!$B197=\"Subscriber\",'Enrollment Form'!$C197=\"Enroll\",'Enrollment Form'!$CO197<>\"\"),\"Y\",\"N\")))","v":""},{"$f":"IF($B190=\"N\",\"\",IF($S190=\"-\",\"-\",IF(AND($S190=\"Y\",'Enrollment Form'!$CO197=\"No\"),\"-\",IF(AND($S190=\"Y\",'Enrollment Form'!$CO197=\"Yes\",'Enrollment Form'!$CP197<>\"\"),\"Y\",\"N\"))))","v":""},{"$f":"IF(OR('Enrollment Form'!$AV197=\"Yes\",'Enrollment Form'!$AV197=\"\"),\"-\",IF(AND('Enrollment Form'!$AV197=\"No\",ISERROR(FIND(\"HMO\",VLOOKUP('Enrollment Form'!G197,'Enrollment Form'!H$11:J$1000,3,FALSE),1))=FALSE,COUNTA('Enrollment Form'!$AW197:$AZ197)=4),\"Y\",\"N\"))","v":"-"},{"$f":"IF($B190=\"N\",\"\",IF('Enrollment Form'!$B197=\"Subscriber\",\"-\",IF(COUNTA('Enrollment Form'!$BE197,'Enrollment Form'!$BG197)=2,\"Y\",\"N\")))","v":""},{"$f":"IF($B190=\"N\",\"\",IF(OR('Enrollment Form'!$AU197=\"\",'Enrollment Form'!$AU197=\"No\"),\"-\",IF(AND('Enrollment Form'!$AU197=\"Yes\",COUNTA('Enrollment Form'!$CK197)=1),\"Y\",\"N\")))","v":""},{"$f":"IF(OR('Enrollment Form'!$CK197=\"\",'Enrollment Form'!$CK197=\"No\"),\"-\",IF(COUNTA('Enrollment Form'!$CM197:$CN197)=2,\"Y\",\"N\"))","v":"-"},{"$f":"IF($B190=\"N\",\"\",IF(COUNTIF('Enrollment Form'!$CZ197:$DO197,\"Other\")=COUNTA('Enrollment Form'!$DF197,'Enrollment Form'!$DA197,'Enrollment Form'!$DK197,'Enrollment Form'!$DP197),\"Y\",\"N\"))","v":""},{"$f":"IF($B190=\"N\",\"\",IF(OR('Enrollment Form'!B197<>\"Subscriber\",'Enrollment Form'!C197=\"ROC\",COUNTIF('Enrollment Form'!AS197:AT197,\"Yes\")>=1),\"-\",IF(AND('Enrollment Form'!C197=\"Enroll\",COUNTIF('Enrollment Form'!AS197:AT197,\"No\")=2,'Enrollment Form'!AU197=\"\"),\"N\",\"Y\")))","v":""},{"$f":"IF(OR(B190=\"N\",'Enrollment Form'!B197<>\"Subscriber\",'Enrollment Form'!C197=\"ROC\",'Enrollment Form'!O197<>\"Multiple of Salary\"),\"-\",IF(COUNTA('Enrollment Form'!T197:U197)<2,\"N\",\"Y\"))","v":"-"},{"$f":"IF(B190=\"N\",\"\",IF(OR('Enrollment Form'!C197=\"ROC\",'Enrollment Form'!B197<>\"Subscriber\",'Enrollment Form'!O197=\"Waive\",'Enrollment Form'!O197=\"\"),\"-\",IF('Enrollment Form'!P197=\"\",\"N\",\"Y\")))","v":""},{"$f":"IF($B190=\"N\",\"\",IF(AND('Enrollment Form'!$C197=\"ROC\",'Enrollment Form'!$DS197<>\"\"),\"Y\",IF(AND('Enrollment Form'!$C197=\"ROC\",'Enrollment Form'!$DS197=\"\"),\"N\",IF(AND('Enrollment Form'!$C197=\"Enroll\",'Enrollment Form'!$B197=\"Subscriber\",'Enrollment Form'!$CQ197=\"No\",'Enrollment Form'!$DS197=\"\"),\"N\",IF(AND('Enrollment Form'!$C197=\"Enroll\",'Enrollment Form'!$B197=\"Subscriber\",'Enrollment Form'!$CQ197=\"Yes\"),\"-\",\"Y\")))))","v":""},{"$f":"IF($B190=\"N\",\"\",IF(AND('Enrollment Form'!$C197=\"ROC\",'Enrollment Form'!$DT197<>\"\"),\"Y\",IF(AND('Enrollment Form'!$C197=\"ROC\",'Enrollment Form'!$DT197=\"\"),\"N\",IF(AND('Enrollment Form'!$C197=\"Enroll\",'Enrollment Form'!$B197=\"Subscriber\",'Enrollment Form'!$CQ197=\"No\",'Enrollment Form'!$DT197=\"\"),\"N\",IF(AND('Enrollment Form'!$C197=\"Enroll\",'Enrollment Form'!$B197=\"Subscriber\",'Enrollment Form'!$CQ197=\"Yes\"),\"-\",\"Y\")))))","v":""},{"$f":"IF('Enrollment Form'!AH197=\"\",\"\",IF(ISERROR(SEARCH(\".\",'Enrollment Form'!AH197,SEARCH(\"@\",'Enrollment Form'!AH197))),\"N\",\"Y\"))","v":""},{"$f":"IF(OR($B190=\"N\",'Enrollment Form'!$G197=\"\"),\"\",IF('Enrollment Form'!$B197<>\"Subscriber\",\"-\",IF(COUNTIF('Enrollment Form'!$AS197:$AT197,\"Yes\")=2,\"N\",\"Y\")))","v":""},{"$f":"IF(OR('Enrollment Form'!$CC197=\"\",'Enrollment Form'!$CC197=\"No\"),\"-\",IF(AND('Enrollment Form'!$CC197=\"Yes\",'Enrollment Form'!$CD197=\"\"),\"N\",\"Y\"))","v":"-"},{"$f":"IF(OR('Enrollment Form'!$CE197=\"\",'Enrollment Form'!$CE197=\"No\"),\"-\",IF(AND('Enrollment Form'!$CE197=\"Yes\",'Enrollment Form'!$CF197=\"\"),\"N\",\"Y\"))","v":"-"},{"$f":"IF(OR('Enrollment Form'!$CG197=\"\",'Enrollment Form'!$CG197=\"No\"),\"-\",IF(AND('Enrollment Form'!$CG197=\"Yes\",'Enrollment Form'!$CH197=\"\"),\"N\",\"Y\"))","v":"-"},{"$f":"IF(OR('Enrollment Form'!$CG197=\"\",'Enrollment Form'!$CG197=\"No\"),\"-\",IF(AND('Enrollment Form'!$CG197=\"Yes\",'Enrollment Form'!$CI197=\"\"),\"N\",\"Y\"))","v":"-"},{"$f":"IF('Enrollment Form'!B197<>\"Subscriber\",\"-\",IF(AND('Enrollment Form'!B197=\"Subscriber\",'Enrollment Form'!C197=\"Enroll\",'Enrollment Form'!AA197=\"\"),\"N\",\"Y\"))","v":"-"},{"$f":"IF(OR('Enrollment Form'!B197=\"Subscriber\",'Enrollment Form'!B197=\"\"),\"-\",IF('Enrollment Form'!BI197=\"\",\"N\",\"Y\"))","v":"-"},{"$f":"IF('Enrollment Form'!B197<>\"Subscriber\",\"-\",IF(AND('Enrollment Form'!B197=\"Subscriber\",'Enrollment Form'!G197=\"\"),\"N\",\"Y\"))","v":"-"},{"$f":"IF('Enrollment Form'!A197=\"\",\"\",IF('Enrollment Form'!B197=\"Subscriber\",\"-\",IF(AND('Enrollment Form'!B197<>\"Subscriber\",'Enrollment Form'!G197='Enrollment Form'!H197),\"N\",\"Y\")))","v":""},0]
[198,{"$f":"IF('Enrollment Form'!$A198<>\"\",\"Y\",\"N\")","v":"N"},{"$f":"IF(AND('Enrollment Form'!$B198=\"\",'Enrollment Form'!$C198<>\"\"),\"N\",IF($B191=\"N\",\"\",\"Y\"))","v":""},{"$f":"IF(OR($B191=\"N\",'Enrollment Form'!G198=\"\"),\"\",IF('Enrollment Form'!$B198<>\"Subscriber\",\"\",IF('Enrollment Form'!$G198='Enrollment Form'!$H198,\"Y\",\"N\")))","v":""},{"$f":"IF($B191=\"N\",\"\",IF(AND(COUNTIFS('Enrollment Form'!$H$11:$H$1000,'Enrollment Form'!$H198,'Enrollment Form'!$B$11:$B$1000,'Enrollment Form'!$B198)>1,'Enrollment Form'!$H198<>\"\"),\"N\",\"Y\"))","v":""},{"$f":"IF($B191=\"N\",\"\",IF(LEN('Enrollment Form'!$Y198)=0,\"\",IF(LEN('Enrollment Form'!$Y198)<>5,\"N\",\"Y\")))","v":""},{"$f":"IF($B191=\"N\",\"\",IF(LEN('Enrollment Form'!$AD198=0),\"\",IF(LEN('Enrollment Form'!$AD198)<>5,\"N\",\"Y\")))","v":""},{"$f":"IF($B191=\"N\",\"\",IF(LEN('Enrollment Form'!$BL198=0),\"\",IF(LEN('Enrollment Form'!$BL198)<>5,\"N\",\"Y\")))","v":""},{"$f":"IF($B191=\"N\",\"\",IF(LEN('Enrollment Form'!$AE198)=0,\"\",IF(LEN('Enrollment Form'!$AE198)<>10,\"N\",\"Y\")))","v":""},{"$f":"IF($B191=\"N\",\"\",IF(LEN('Enrollment Form'!$AF198)=0,\"\",IF(LEN('Enrollment Form'!$AF198)<>10,\"N\",\"Y\")))","v":""},{"$f":"IF('Enrollment Form'!$O198<>\"Graded\",\"-\",IF(AND('Enrollment Form'!$O198=\"Graded\",'Enrollment Form'!$AO198<>\"\"),\"Y\",\"N\"))","v":"-"},{"$f":"IF($B191=\"N\",\"\",IF(OR('Enrollment Form'!$B198<>\"Subscriber\",'Enrollment Form'!$C198=\"ROC\"),\"-\",IF(AND('Enrollment Form'!$B198=\"Subscriber\",'Enrollment Form'!$C198=\"Enroll\",'Enrollment Form'!$AJ198<>\"\"),\"Y\",\"N\")))","v":""},{"$f":"IF($B191=\"N\",\"\",IF(OR('Enrollment Form'!$B198<>\"Subscriber\",'Enrollment Form'!$C198=\"ROC\"),\"-\",IF(AND('Enrollment Form'!$B198=\"Subscriber\",'Enrollment Form'!$C198=\"Enroll\",'Enrollment Form'!$AK198<>\"\"),\"Y\",\"N\")))","v":""},{"$f":"IF($B191=\"N\",\"\",IF(OR('Enrollment Form'!$B198<>\"Subscriber\",'Enrollment Form'!$C198=\"ROC\"),\"-\",IF(AND('Enrollment Form'!$B198=\"Subscriber\",'Enrollment Form'!$C198=\"Enroll\",'Enrollment Form'!$AL198<>\"\"),\"Y\",\"N\")))","v":""},{"$f":"IF($B191=\"N\",\"\",IF(OR('Enrollment Form'!$B198<>\"Subscriber\",'Enrollment Form'!$C198=\"ROC\"),\"-\",IF(AND('Enrollment Form'!$B198=\"Subscriber\",'Enrollment Form'!$C198=\"Enroll\",'Enrollment Form'!$AM198<>\"\"),\"Y\",\"N\")))","v":""},{"$f":"IF($B191=\"N\",\"\",IF(OR('Enrollment Form'!$B198<>\"Subscriber\",'Enrollment Form'!$C198=\"ROC\"),\"-\",IF(AND('Enrollment Form'!$B198=\"Subscriber\",'Enrollment Form'!$C198=\"Enroll\",'Enrollment Form'!$AN198<>\"\"),\"Y\",\"N\")))","v":""},{"$f":"IF($B191=\"N\",\"\",IF(OR('Enrollment Form'!$B198<>\"Subscriber\",'Enrollment Form'!$C198=\"ROC\"),\"-\",IF(AND('Enrollment Form'!$B198=\"Subscriber\",'Enrollment Form'!$C198=\"Enroll\",'Enrollment Form'!$AP198<>\"\"),\"Y\",\"N\")))","v":""},{"$f":"IF($B191=\"N\",\"\",IF($Q191=\"-\",\"-\",IF(AND($Q191=\"Y\",'Enrollment Form'!$AP198=\"No\"),\"-\",IF(AND($Q191=\"Y\",'Enrollment Form'!$AP198=\"Yes\",'Enrollment Form'!$AQ198<>\"\"),\"Y\",\"N\"))))","v":""},{"$f":"IF($B191=\"N\",\"\",IF(OR('Enrollment Form'!$B198<>\"Subscriber\",'Enrollment Form'!$C198=\"ROC\"),\"-\",IF(AND('Enrollment Form'!$B198=\"Subscriber\",'Enrollment Form'!$C198=\"Enroll\",'Enrollment Form'!$CO198<>\"\"),\"Y\",\"N\")))","v":""},{"$f":"IF($B191=\"N\",\"\",IF($S191=\"-\",\"-\",IF(AND($S191=\"Y\",'Enrollment Form'!$CO198=\"No\"),\"-\",IF(AND($S191=\"Y\",'Enrollment Form'!$CO198=\"Yes\",'Enrollment Form'!$CP198<>\"\"),\"Y\",\"N\"))))","v":""},{"$f":"IF(OR('Enrollment Form'!$AV198=\"Yes\",'Enrollment Form'!$AV198=\"\"),\"-\",IF(AND('Enrollment Form'!$AV198=\"No\",ISERROR(FIND(\"HMO\",VLOOKUP('Enrollment Form'!G198,'Enrollment Form'!H$11:J$1000,3,FALSE),1))=FALSE,COUNTA('Enrollment Form'!$AW198:$AZ198)=4),\"Y\",\"N\"))","v":"-"},{"$f":"IF($B191=\"N\",\"\",IF('Enrollment Form'!$B198=\"Subscriber\",\"-\",IF(COUNTA('Enrollment Form'!$BE198,'Enrollment Form'!$BG198)=2,\"Y\",\"N\")))","v":""},{"$f":"IF($B191=\"N\",\"\",IF(OR('Enrollment Form'!$AU198=\"\",'Enrollment Form'!$AU198=\"No\"),\"-\",IF(AND('Enrollment Form'!$AU198=\"Yes\",COUNTA('Enrollment Form'!$CK198)=1),\"Y\",\"N\")))","v":""},{"$f":"IF(OR('Enrollment Form'!$CK198=\"\",'Enrollment Form'!$CK198=\"No\"),\"-\",IF(COUNTA('Enrollment Form'!$CM198:$CN198)=2,\"Y\",\"N\"))","v":"-"},{"$f":"IF($B191=\"N\",\"\",IF(COUNTIF('Enrollment Form'!$CZ198:$DO198,\"Other\")=COUNTA('Enrollment Form'!$DF198,'Enrollment Form'!$DA198,'Enrollment Form'!$DK198,'Enrollment Form'!$DP198),\"Y\",\"N\"))","v":""},{"$f":"IF($B191=\"N\",\"\",IF(OR('Enrollment Form'!B198<>\"Subscriber\",'Enrollment Form'!C198=\"ROC\",COUNTIF('Enrollment Form'!AS198:AT198,\"Yes\")>=1),\"-\",IF(AND('Enrollment Form'!C198=\"Enroll\",COUNTIF('Enrollment Form'!AS198:AT198,\"No\")=2,'Enrollment Form'!AU198=\"\"),\"N\",\"Y\")))","v":""},{"$f":"IF(OR(B191=\"N\",'Enrollment Form'!B198<>\"Subscriber\",'Enrollment Form'!C198=\"ROC\",'Enrollment Form'!O198<>\"Multiple of Salary\"),\"-\",IF(COUNTA('Enrollment Form'!T198:U198)<2,\"N\",\"Y\"))","v":"-"},{"$f":"IF(B191=\"N\",\"\",IF(OR('Enrollment Form'!C198=\"ROC\",'Enrollment Form'!B198<>\"Subscriber\",'Enrollment Form'!O198=\"Waive\",'Enrollment Form'!O198=\"\"),\"-\",IF('Enrollment Form'!P198=\"\",\"N\",\"Y\")))","v":""},{"$f":"IF($B191=\"N\",\"\",IF(AND('Enrollment Form'!$C198=\"ROC\",'Enrollment Form'!$DS198<>\"\"),\"Y\",IF(AND('Enrollment Form'!$C198=\"ROC\",'Enrollment Form'!$DS198=\"\"),\"N\",IF(AND('Enrollment Form'!$C198=\"Enroll\",'Enrollment Form'!$B198=\"Subscriber\",'Enrollment Form'!$CQ198=\"No\",'Enrollment Form'!$DS198=\"\"),\"N\",IF(AND('Enrollment Form'!$C198=\"Enroll\",'Enrollment Form'!$B198=\"Subscriber\",'Enrollment Form'!$CQ198=\"Yes\"),\"-\",\"Y\")))))","v":""},{"$f":"IF($B191=\"N\",\"\",IF(AND('Enrollment Form'!$C198=\"ROC\",'Enrollment Form'!$DT198<>\"\"),\"Y\",IF(AND('Enrollment Form'!$C198=\"ROC\",'Enrollment Form'!$DT198=\"\"),\"N\",IF(AND('Enrollment Form'!$C198=\"Enroll\",'Enrollment Form'!$B198=\"Subscriber\",'Enrollment Form'!$CQ198=\"No\",'Enrollment Form'!$DT198=\"\"),\"N\",IF(AND('Enrollment Form'!$C198=\"Enroll\",'Enrollment Form'!$B198=\"Subscriber\",'Enrollment Form'!$CQ198=\"Yes\"),\"-\",\"Y\")))))","v":""},{"$f":"IF('Enrollment Form'!AH198=\"\",\"\",IF(ISERROR(SEARCH(\".\",'Enrollment Form'!AH198,SEARCH(\"@\",'Enrollment Form'!AH198))),\"N\",\"Y\"))","v":""},{"$f":"IF(OR($B191=\"N\",'Enrollment Form'!$G198=\"\"),\"\",IF('Enrollment Form'!$B198<>\"Subscriber\",\"-\",IF(COUNTIF('Enrollment Form'!$AS198:$AT198,\"Yes\")=2,\"N\",\"Y\")))","v":""},{"$f":"IF(OR('Enrollment Form'!$CC198=\"\",'Enrollment Form'!$CC198=\"No\"),\"-\",IF(AND('Enrollment Form'!$CC198=\"Yes\",'Enrollment Form'!$CD198=\"\"),\"N\",\"Y\"))","v":"-"},{"$f":"IF(OR('Enrollment Form'!$CE198=\"\",'Enrollment Form'!$CE198=\"No\"),\"-\",IF(AND('Enrollment Form'!$CE198=\"Yes\",'Enrollment Form'!$CF198=\"\"),\"N\",\"Y\"))","v":"-"},{"$f":"IF(OR('Enrollment Form'!$CG198=\"\",'Enrollment Form'!$CG198=\"No\"),\"-\",IF(AND('Enrollment Form'!$CG198=\"Yes\",'Enrollment Form'!$CH198=\"\"),\"N\",\"Y\"))","v":"-"},{"$f":"IF(OR('Enrollment Form'!$CG198=\"\",'Enrollment Form'!$CG198=\"No\"),\"-\",IF(AND('Enrollment Form'!$CG198=\"Yes\",'Enrollment Form'!$CI198=\"\"),\"N\",\"Y\"))","v":"-"},{"$f":"IF('Enrollment Form'!B198<>\"Subscriber\",\"-\",IF(AND('Enrollment Form'!B198=\"Subscriber\",'Enrollment Form'!C198=\"Enroll\",'Enrollment Form'!AA198=\"\"),\"N\",\"Y\"))","v":"-"},{"$f":"IF(OR('Enrollment Form'!B198=\"Subscriber\",'Enrollment Form'!B198=\"\"),\"-\",IF('Enrollment Form'!BI198=\"\",\"N\",\"Y\"))","v":"-"},{"$f":"IF('Enrollment Form'!B198<>\"Subscriber\",\"-\",IF(AND('Enrollment Form'!B198=\"Subscriber\",'Enrollment Form'!G198=\"\"),\"N\",\"Y\"))","v":"-"},{"$f":"IF('Enrollment Form'!A198=\"\",\"\",IF('Enrollment Form'!B198=\"Subscriber\",\"-\",IF(AND('Enrollment Form'!B198<>\"Subscriber\",'Enrollment Form'!G198='Enrollment Form'!H198),\"N\",\"Y\")))","v":""},0]
[199,{"$f":"IF('Enrollment Form'!$A199<>\"\",\"Y\",\"N\")","v":"N"},{"$f":"IF(AND('Enrollment Form'!$B199=\"\",'Enrollment Form'!$C199<>\"\"),\"N\",IF($B192=\"N\",\"\",\"Y\"))","v":""},{"$f":"IF(OR($B192=\"N\",'Enrollment Form'!G199=\"\"),\"\",IF('Enrollment Form'!$B199<>\"Subscriber\",\"\",IF('Enrollment Form'!$G199='Enrollment Form'!$H199,\"Y\",\"N\")))","v":""},{"$f":"IF($B192=\"N\",\"\",IF(AND(COUNTIFS('Enrollment Form'!$H$11:$H$1000,'Enrollment Form'!$H199,'Enrollment Form'!$B$11:$B$1000,'Enrollment Form'!$B199)>1,'Enrollment Form'!$H199<>\"\"),\"N\",\"Y\"))","v":""},{"$f":"IF($B192=\"N\",\"\",IF(LEN('Enrollment Form'!$Y199)=0,\"\",IF(LEN('Enrollment Form'!$Y199)<>5,\"N\",\"Y\")))","v":""},{"$f":"IF($B192=\"N\",\"\",IF(LEN('Enrollment Form'!$AD199=0),\"\",IF(LEN('Enrollment Form'!$AD199)<>5,\"N\",\"Y\")))","v":""},{"$f":"IF($B192=\"N\",\"\",IF(LEN('Enrollment Form'!$BL199=0),\"\",IF(LEN('Enrollment Form'!$BL199)<>5,\"N\",\"Y\")))","v":""},{"$f":"IF($B192=\"N\",\"\",IF(LEN('Enrollment Form'!$AE199)=0,\"\",IF(LEN('Enrollment Form'!$AE199)<>10,\"N\",\"Y\")))","v":""},{"$f":"IF($B192=\"N\",\"\",IF(LEN('Enrollment Form'!$AF199)=0,\"\",IF(LEN('Enrollment Form'!$AF199)<>10,\"N\",\"Y\")))","v":""},{"$f":"IF('Enrollment Form'!$O199<>\"Graded\",\"-\",IF(AND('Enrollment Form'!$O199=\"Graded\",'Enrollment Form'!$AO199<>\"\"),\"Y\",\"N\"))","v":"-"},{"$f":"IF($B192=\"N\",\"\",IF(OR('Enrollment Form'!$B199<>\"Subscriber\",'Enrollment Form'!$C199=\"ROC\"),\"-\",IF(AND('Enrollment Form'!$B199=\"Subscriber\",'Enrollment Form'!$C199=\"Enroll\",'Enrollment Form'!$AJ199<>\"\"),\"Y\",\"N\")))","v":""},{"$f":"IF($B192=\"N\",\"\",IF(OR('Enrollment Form'!$B199<>\"Subscriber\",'Enrollment Form'!$C199=\"ROC\"),\"-\",IF(AND('Enrollment Form'!$B199=\"Subscriber\",'Enrollment Form'!$C199=\"Enroll\",'Enrollment Form'!$AK199<>\"\"),\"Y\",\"N\")))","v":""},{"$f":"IF($B192=\"N\",\"\",IF(OR('Enrollment Form'!$B199<>\"Subscriber\",'Enrollment Form'!$C199=\"ROC\"),\"-\",IF(AND('Enrollment Form'!$B199=\"Subscriber\",'Enrollment Form'!$C199=\"Enroll\",'Enrollment Form'!$AL199<>\"\"),\"Y\",\"N\")))","v":""},{"$f":"IF($B192=\"N\",\"\",IF(OR('Enrollment Form'!$B199<>\"Subscriber\",'Enrollment Form'!$C199=\"ROC\"),\"-\",IF(AND('Enrollment Form'!$B199=\"Subscriber\",'Enrollment Form'!$C199=\"Enroll\",'Enrollment Form'!$AM199<>\"\"),\"Y\",\"N\")))","v":""},{"$f":"IF($B192=\"N\",\"\",IF(OR('Enrollment Form'!$B199<>\"Subscriber\",'Enrollment Form'!$C199=\"ROC\"),\"-\",IF(AND('Enrollment Form'!$B199=\"Subscriber\",'Enrollment Form'!$C199=\"Enroll\",'Enrollment Form'!$AN199<>\"\"),\"Y\",\"N\")))","v":""},{"$f":"IF($B192=\"N\",\"\",IF(OR('Enrollment Form'!$B199<>\"Subscriber\",'Enrollment Form'!$C199=\"ROC\"),\"-\",IF(AND('Enrollment Form'!$B199=\"Subscriber\",'Enrollment Form'!$C199=\"Enroll\",'Enrollment Form'!$AP199<>\"\"),\"Y\",\"N\")))","v":""},{"$f":"IF($B192=\"N\",\"\",IF($Q192=\"-\",\"-\",IF(AND($Q192=\"Y\",'Enrollment Form'!$AP199=\"No\"),\"-\",IF(AND($Q192=\"Y\",'Enrollment Form'!$AP199=\"Yes\",'Enrollment Form'!$AQ199<>\"\"),\"Y\",\"N\"))))","v":""},{"$f":"IF($B192=\"N\",\"\",IF(OR('Enrollment Form'!$B199<>\"Subscriber\",'Enrollment Form'!$C199=\"ROC\"),\"-\",IF(AND('Enrollment Form'!$B199=\"Subscriber\",'Enrollment Form'!$C199=\"Enroll\",'Enrollment Form'!$CO199<>\"\"),\"Y\",\"N\")))","v":""},{"$f":"IF($B192=\"N\",\"\",IF($S192=\"-\",\"-\",IF(AND($S192=\"Y\",'Enrollment Form'!$CO199=\"No\"),\"-\",IF(AND($S192=\"Y\",'Enrollment Form'!$CO199=\"Yes\",'Enrollment Form'!$CP199<>\"\"),\"Y\",\"N\"))))","v":""},{"$f":"IF(OR('Enrollment Form'!$AV199=\"Yes\",'Enrollment Form'!$AV199=\"\"),\"-\",IF(AND('Enrollment Form'!$AV199=\"No\",ISERROR(FIND(\"HMO\",VLOOKUP('Enrollment Form'!G199,'Enrollment Form'!H$11:J$1000,3,FALSE),1))=FALSE,COUNTA('Enrollment Form'!$AW199:$AZ199)=4),\"Y\",\"N\"))","v":"-"},{"$f":"IF($B192=\"N\",\"\",IF('Enrollment Form'!$B199=\"Subscriber\",\"-\",IF(COUNTA('Enrollment Form'!$BE199,'Enrollment Form'!$BG199)=2,\"Y\",\"N\")))","v":""},{"$f":"IF($B192=\"N\",\"\",IF(OR('Enrollment Form'!$AU199=\"\",'Enrollment Form'!$AU199=\"No\"),\"-\",IF(AND('Enrollment Form'!$AU199=\"Yes\",COUNTA('Enrollment Form'!$CK199)=1),\"Y\",\"N\")))","v":""},{"$f":"IF(OR('Enrollment Form'!$CK199=\"\",'Enrollment Form'!$CK199=\"No\"),\"-\",IF(COUNTA('Enrollment Form'!$CM199:$CN199)=2,\"Y\",\"N\"))","v":"-"},{"$f":"IF($B192=\"N\",\"\",IF(COUNTIF('Enrollment Form'!$CZ199:$DO199,\"Other\")=COUNTA('Enrollment Form'!$DF199,'Enrollment Form'!$DA199,'Enrollment Form'!$DK199,'Enrollment Form'!$DP199),\"Y\",\"N\"))","v":""},{"$f":"IF($B192=\"N\",\"\",IF(OR('Enrollment Form'!B199<>\"Subscriber\",'Enrollment Form'!C199=\"ROC\",COUNTIF('Enrollment Form'!AS199:AT199,\"Yes\")>=1),\"-\",IF(AND('Enrollment Form'!C199=\"Enroll\",COUNTIF('Enrollment Form'!AS199:AT199,\"No\")=2,'Enrollment Form'!AU199=\"\"),\"N\",\"Y\")))","v":""},{"$f":"IF(OR(B192=\"N\",'Enrollment Form'!B199<>\"Subscriber\",'Enrollment Form'!C199=\"ROC\",'Enrollment Form'!O199<>\"Multiple of Salary\"),\"-\",IF(COUNTA('Enrollment Form'!T199:U199)<2,\"N\",\"Y\"))","v":"-"},{"$f":"IF(B192=\"N\",\"\",IF(OR('Enrollment Form'!C199=\"ROC\",'Enrollment Form'!B199<>\"Subscriber\",'Enrollment Form'!O199=\"Waive\",'Enrollment Form'!O199=\"\"),\"-\",IF('Enrollment Form'!P199=\"\",\"N\",\"Y\")))","v":""},{"$f":"IF($B192=\"N\",\"\",IF(AND('Enrollment Form'!$C199=\"ROC\",'Enrollment Form'!$DS199<>\"\"),\"Y\",IF(AND('Enrollment Form'!$C199=\"ROC\",'Enrollment Form'!$DS199=\"\"),\"N\",IF(AND('Enrollment Form'!$C199=\"Enroll\",'Enrollment Form'!$B199=\"Subscriber\",'Enrollment Form'!$CQ199=\"No\",'Enrollment Form'!$DS199=\"\"),\"N\",IF(AND('Enrollment Form'!$C199=\"Enroll\",'Enrollment Form'!$B199=\"Subscriber\",'Enrollment Form'!$CQ199=\"Yes\"),\"-\",\"Y\")))))","v":""},{"$f":"IF($B192=\"N\",\"\",IF(AND('Enrollment Form'!$C199=\"ROC\",'Enrollment Form'!$DT199<>\"\"),\"Y\",IF(AND('Enrollment Form'!$C199=\"ROC\",'Enrollment Form'!$DT199=\"\"),\"N\",IF(AND('Enrollment Form'!$C199=\"Enroll\",'Enrollment Form'!$B199=\"Subscriber\",'Enrollment Form'!$CQ199=\"No\",'Enrollment Form'!$DT199=\"\"),\"N\",IF(AND('Enrollment Form'!$C199=\"Enroll\",'Enrollment Form'!$B199=\"Subscriber\",'Enrollment Form'!$CQ199=\"Yes\"),\"-\",\"Y\")))))","v":""},{"$f":"IF('Enrollment Form'!AH199=\"\",\"\",IF(ISERROR(SEARCH(\".\",'Enrollment Form'!AH199,SEARCH(\"@\",'Enrollment Form'!AH199))),\"N\",\"Y\"))","v":""},{"$f":"IF(OR($B192=\"N\",'Enrollment Form'!$G199=\"\"),\"\",IF('Enrollment Form'!$B199<>\"Subscriber\",\"-\",IF(COUNTIF('Enrollment Form'!$AS199:$AT199,\"Yes\")=2,\"N\",\"Y\")))","v":""},{"$f":"IF(OR('Enrollment Form'!$CC199=\"\",'Enrollment Form'!$CC199=\"No\"),\"-\",IF(AND('Enrollment Form'!$CC199=\"Yes\",'Enrollment Form'!$CD199=\"\"),\"N\",\"Y\"))","v":"-"},{"$f":"IF(OR('Enrollment Form'!$CE199=\"\",'Enrollment Form'!$CE199=\"No\"),\"-\",IF(AND('Enrollment Form'!$CE199=\"Yes\",'Enrollment Form'!$CF199=\"\"),\"N\",\"Y\"))","v":"-"},{"$f":"IF(OR('Enrollment Form'!$CG199=\"\",'Enrollment Form'!$CG199=\"No\"),\"-\",IF(AND('Enrollment Form'!$CG199=\"Yes\",'Enrollment Form'!$CH199=\"\"),\"N\",\"Y\"))","v":"-"},{"$f":"IF(OR('Enrollment Form'!$CG199=\"\",'Enrollment Form'!$CG199=\"No\"),\"-\",IF(AND('Enrollment Form'!$CG199=\"Yes\",'Enrollment Form'!$CI199=\"\"),\"N\",\"Y\"))","v":"-"},{"$f":"IF('Enrollment Form'!B199<>\"Subscriber\",\"-\",IF(AND('Enrollment Form'!B199=\"Subscriber\",'Enrollment Form'!C199=\"Enroll\",'Enrollment Form'!AA199=\"\"),\"N\",\"Y\"))","v":"-"},{"$f":"IF(OR('Enrollment Form'!B199=\"Subscriber\",'Enrollment Form'!B199=\"\"),\"-\",IF('Enrollment Form'!BI199=\"\",\"N\",\"Y\"))","v":"-"},{"$f":"IF('Enrollment Form'!B199<>\"Subscriber\",\"-\",IF(AND('Enrollment Form'!B199=\"Subscriber\",'Enrollment Form'!G199=\"\"),\"N\",\"Y\"))","v":"-"},{"$f":"IF('Enrollment Form'!A199=\"\",\"\",IF('Enrollment Form'!B199=\"Subscriber\",\"-\",IF(AND('Enrollment Form'!B199<>\"Subscriber\",'Enrollment Form'!G199='Enrollment Form'!H199),\"N\",\"Y\")))","v":""},0]
[200,{"$f":"IF('Enrollment Form'!$A200<>\"\",\"Y\",\"N\")","v":"N"},{"$f":"IF(AND('Enrollment Form'!$B200=\"\",'Enrollment Form'!$C200<>\"\"),\"N\",IF($B193=\"N\",\"\",\"Y\"))","v":""},{"$f":"IF(OR($B193=\"N\",'Enrollment Form'!G200=\"\"),\"\",IF('Enrollment Form'!$B200<>\"Subscriber\",\"\",IF('Enrollment Form'!$G200='Enrollment Form'!$H200,\"Y\",\"N\")))","v":""},{"$f":"IF($B193=\"N\",\"\",IF(AND(COUNTIFS('Enrollment Form'!$H$11:$H$1000,'Enrollment Form'!$H200,'Enrollment Form'!$B$11:$B$1000,'Enrollment Form'!$B200)>1,'Enrollment Form'!$H200<>\"\"),\"N\",\"Y\"))","v":""},{"$f":"IF($B193=\"N\",\"\",IF(LEN('Enrollment Form'!$Y200)=0,\"\",IF(LEN('Enrollment Form'!$Y200)<>5,\"N\",\"Y\")))","v":""},{"$f":"IF($B193=\"N\",\"\",IF(LEN('Enrollment Form'!$AD200=0),\"\",IF(LEN('Enrollment Form'!$AD200)<>5,\"N\",\"Y\")))","v":""},{"$f":"IF($B193=\"N\",\"\",IF(LEN('Enrollment Form'!$BL200=0),\"\",IF(LEN('Enrollment Form'!$BL200)<>5,\"N\",\"Y\")))","v":""},{"$f":"IF($B193=\"N\",\"\",IF(LEN('Enrollment Form'!$AE200)=0,\"\",IF(LEN('Enrollment Form'!$AE200)<>10,\"N\",\"Y\")))","v":""},{"$f":"IF($B193=\"N\",\"\",IF(LEN('Enrollment Form'!$AF200)=0,\"\",IF(LEN('Enrollment Form'!$AF200)<>10,\"N\",\"Y\")))","v":""},{"$f":"IF('Enrollment Form'!$O200<>\"Graded\",\"-\",IF(AND('Enrollment Form'!$O200=\"Graded\",'Enrollment Form'!$AO200<>\"\"),\"Y\",\"N\"))","v":"-"},{"$f":"IF($B193=\"N\",\"\",IF(OR('Enrollment Form'!$B200<>\"Subscriber\",'Enrollment Form'!$C200=\"ROC\"),\"-\",IF(AND('Enrollment Form'!$B200=\"Subscriber\",'Enrollment Form'!$C200=\"Enroll\",'Enrollment Form'!$AJ200<>\"\"),\"Y\",\"N\")))","v":""},{"$f":"IF($B193=\"N\",\"\",IF(OR('Enrollment Form'!$B200<>\"Subscriber\",'Enrollment Form'!$C200=\"ROC\"),\"-\",IF(AND('Enrollment Form'!$B200=\"Subscriber\",'Enrollment Form'!$C200=\"Enroll\",'Enrollment Form'!$AK200<>\"\"),\"Y\",\"N\")))","v":""},{"$f":"IF($B193=\"N\",\"\",IF(OR('Enrollment Form'!$B200<>\"Subscriber\",'Enrollment Form'!$C200=\"ROC\"),\"-\",IF(AND('Enrollment Form'!$B200=\"Subscriber\",'Enrollment Form'!$C200=\"Enroll\",'Enrollment Form'!$AL200<>\"\"),\"Y\",\"N\")))","v":""},{"$f":"IF($B193=\"N\",\"\",IF(OR('Enrollment Form'!$B200<>\"Subscriber\",'Enrollment Form'!$C200=\"ROC\"),\"-\",IF(AND('Enrollment Form'!$B200=\"Subscriber\",'Enrollment Form'!$C200=\"Enroll\",'Enrollment Form'!$AM200<>\"\"),\"Y\",\"N\")))","v":""},{"$f":"IF($B193=\"N\",\"\",IF(OR('Enrollment Form'!$B200<>\"Subscriber\",'Enrollment Form'!$C200=\"ROC\"),\"-\",IF(AND('Enrollment Form'!$B200=\"Subscriber\",'Enrollment Form'!$C200=\"Enroll\",'Enrollment Form'!$AN200<>\"\"),\"Y\",\"N\")))","v":""},{"$f":"IF($B193=\"N\",\"\",IF(OR('Enrollment Form'!$B200<>\"Subscriber\",'Enrollment Form'!$C200=\"ROC\"),\"-\",IF(AND('Enrollment Form'!$B200=\"Subscriber\",'Enrollment Form'!$C200=\"Enroll\",'Enrollment Form'!$AP200<>\"\"),\"Y\",\"N\")))","v":""},{"$f":"IF($B193=\"N\",\"\",IF($Q193=\"-\",\"-\",IF(AND($Q193=\"Y\",'Enrollment Form'!$AP200=\"No\"),\"-\",IF(AND($Q193=\"Y\",'Enrollment Form'!$AP200=\"Yes\",'Enrollment Form'!$AQ200<>\"\"),\"Y\",\"N\"))))","v":""},{"$f":"IF($B193=\"N\",\"\",IF(OR('Enrollment Form'!$B200<>\"Subscriber\",'Enrollment Form'!$C200=\"ROC\"),\"-\",IF(AND('Enrollment Form'!$B200=\"Subscriber\",'Enrollment Form'!$C200=\"Enroll\",'Enrollment Form'!$CO200<>\"\"),\"Y\",\"N\")))","v":""},{"$f":"IF($B193=\"N\",\"\",IF($S193=\"-\",\"-\",IF(AND($S193=\"Y\",'Enrollment Form'!$CO200=\"No\"),\"-\",IF(AND($S193=\"Y\",'Enrollment Form'!$CO200=\"Yes\",'Enrollment Form'!$CP200<>\"\"),\"Y\",\"N\"))))","v":""},{"$f":"IF(OR('Enrollment Form'!$AV200=\"Yes\",'Enrollment Form'!$AV200=\"\"),\"-\",IF(AND('Enrollment Form'!$AV200=\"No\",ISERROR(FIND(\"HMO\",VLOOKUP('Enrollment Form'!G200,'Enrollment Form'!H$11:J$1000,3,FALSE),1))=FALSE,COUNTA('Enrollment Form'!$AW200:$AZ200)=4),\"Y\",\"N\"))","v":"-"},{"$f":"IF($B193=\"N\",\"\",IF('Enrollment Form'!$B200=\"Subscriber\",\"-\",IF(COUNTA('Enrollment Form'!$BE200,'Enrollment Form'!$BG200)=2,\"Y\",\"N\")))","v":""},{"$f":"IF($B193=\"N\",\"\",IF(OR('Enrollment Form'!$AU200=\"\",'Enrollment Form'!$AU200=\"No\"),\"-\",IF(AND('Enrollment Form'!$AU200=\"Yes\",COUNTA('Enrollment Form'!$CK200)=1),\"Y\",\"N\")))","v":""},{"$f":"IF(OR('Enrollment Form'!$CK200=\"\",'Enrollment Form'!$CK200=\"No\"),\"-\",IF(COUNTA('Enrollment Form'!$CM200:$CN200)=2,\"Y\",\"N\"))","v":"-"},{"$f":"IF($B193=\"N\",\"\",IF(COUNTIF('Enrollment Form'!$CZ200:$DO200,\"Other\")=COUNTA('Enrollment Form'!$DF200,'Enrollment Form'!$DA200,'Enrollment Form'!$DK200,'Enrollment Form'!$DP200),\"Y\",\"N\"))","v":""},{"$f":"IF($B193=\"N\",\"\",IF(OR('Enrollment Form'!B200<>\"Subscriber\",'Enrollment Form'!C200=\"ROC\",COUNTIF('Enrollment Form'!AS200:AT200,\"Yes\")>=1),\"-\",IF(AND('Enrollment Form'!C200=\"Enroll\",COUNTIF('Enrollment Form'!AS200:AT200,\"No\")=2,'Enrollment Form'!AU200=\"\"),\"N\",\"Y\")))","v":""},{"$f":"IF(OR(B193=\"N\",'Enrollment Form'!B200<>\"Subscriber\",'Enrollment Form'!C200=\"ROC\",'Enrollment Form'!O200<>\"Multiple of Salary\"),\"-\",IF(COUNTA('Enrollment Form'!T200:U200)<2,\"N\",\"Y\"))","v":"-"},{"$f":"IF(B193=\"N\",\"\",IF(OR('Enrollment Form'!C200=\"ROC\",'Enrollment Form'!B200<>\"Subscriber\",'Enrollment Form'!O200=\"Waive\",'Enrollment Form'!O200=\"\"),\"-\",IF('Enrollment Form'!P200=\"\",\"N\",\"Y\")))","v":""},{"$f":"IF($B193=\"N\",\"\",IF(AND('Enrollment Form'!$C200=\"ROC\",'Enrollment Form'!$DS200<>\"\"),\"Y\",IF(AND('Enrollment Form'!$C200=\"ROC\",'Enrollment Form'!$DS200=\"\"),\"N\",IF(AND('Enrollment Form'!$C200=\"Enroll\",'Enrollment Form'!$B200=\"Subscriber\",'Enrollment Form'!$CQ200=\"No\",'Enrollment Form'!$DS200=\"\"),\"N\",IF(AND('Enrollment Form'!$C200=\"Enroll\",'Enrollment Form'!$B200=\"Subscriber\",'Enrollment Form'!$CQ200=\"Yes\"),\"-\",\"Y\")))))","v":""},{"$f":"IF($B193=\"N\",\"\",IF(AND('Enrollment Form'!$C200=\"ROC\",'Enrollment Form'!$DT200<>\"\"),\"Y\",IF(AND('Enrollment Form'!$C200=\"ROC\",'Enrollment Form'!$DT200=\"\"),\"N\",IF(AND('Enrollment Form'!$C200=\"Enroll\",'Enrollment Form'!$B200=\"Subscriber\",'Enrollment Form'!$CQ200=\"No\",'Enrollment Form'!$DT200=\"\"),\"N\",IF(AND('Enrollment Form'!$C200=\"Enroll\",'Enrollment Form'!$B200=\"Subscriber\",'Enrollment Form'!$CQ200=\"Yes\"),\"-\",\"Y\")))))","v":""},{"$f":"IF('Enrollment Form'!AH200=\"\",\"\",IF(ISERROR(SEARCH(\".\",'Enrollment Form'!AH200,SEARCH(\"@\",'Enrollment Form'!AH200))),\"N\",\"Y\"))","v":""},{"$f":"IF(OR($B193=\"N\",'Enrollment Form'!$G200=\"\"),\"\",IF('Enrollment Form'!$B200<>\"Subscriber\",\"-\",IF(COUNTIF('Enrollment Form'!$AS200:$AT200,\"Yes\")=2,\"N\",\"Y\")))","v":""},{"$f":"IF(OR('Enrollment Form'!$CC200=\"\",'Enrollment Form'!$CC200=\"No\"),\"-\",IF(AND('Enrollment Form'!$CC200=\"Yes\",'Enrollment Form'!$CD200=\"\"),\"N\",\"Y\"))","v":"-"},{"$f":"IF(OR('Enrollment Form'!$CE200=\"\",'Enrollment Form'!$CE200=\"No\"),\"-\",IF(AND('Enrollment Form'!$CE200=\"Yes\",'Enrollment Form'!$CF200=\"\"),\"N\",\"Y\"))","v":"-"},{"$f":"IF(OR('Enrollment Form'!$CG200=\"\",'Enrollment Form'!$CG200=\"No\"),\"-\",IF(AND('Enrollment Form'!$CG200=\"Yes\",'Enrollment Form'!$CH200=\"\"),\"N\",\"Y\"))","v":"-"},{"$f":"IF(OR('Enrollment Form'!$CG200=\"\",'Enrollment Form'!$CG200=\"No\"),\"-\",IF(AND('Enrollment Form'!$CG200=\"Yes\",'Enrollment Form'!$CI200=\"\"),\"N\",\"Y\"))","v":"-"},{"$f":"IF('Enrollment Form'!B200<>\"Subscriber\",\"-\",IF(AND('Enrollment Form'!B200=\"Subscriber\",'Enrollment Form'!C200=\"Enroll\",'Enrollment Form'!AA200=\"\"),\"N\",\"Y\"))","v":"-"},{"$f":"IF(OR('Enrollment Form'!B200=\"Subscriber\",'Enrollment Form'!B200=\"\"),\"-\",IF('Enrollment Form'!BI200=\"\",\"N\",\"Y\"))","v":"-"},{"$f":"IF('Enrollment Form'!B200<>\"Subscriber\",\"-\",IF(AND('Enrollment Form'!B200=\"Subscriber\",'Enrollment Form'!G200=\"\"),\"N\",\"Y\"))","v":"-"},{"$f":"IF('Enrollment Form'!A200=\"\",\"\",IF('Enrollment Form'!B200=\"Subscriber\",\"-\",IF(AND('Enrollment Form'!B200<>\"Subscriber\",'Enrollment Form'!G200='Enrollment Form'!H200),\"N\",\"Y\")))","v":""},0]
[201,{"$f":"IF('Enrollment Form'!$A201<>\"\",\"Y\",\"N\")","v":"N"},{"$f":"IF(AND('Enrollment Form'!$B201=\"\",'Enrollment Form'!$C201<>\"\"),\"N\",IF($B194=\"N\",\"\",\"Y\"))","v":""},{"$f":"IF(OR($B194=\"N\",'Enrollment Form'!G201=\"\"),\"\",IF('Enrollment Form'!$B201<>\"Subscriber\",\"\",IF('Enrollment Form'!$G201='Enrollment Form'!$H201,\"Y\",\"N\")))","v":""},{"$f":"IF($B194=\"N\",\"\",IF(AND(COUNTIFS('Enrollment Form'!$H$11:$H$1000,'Enrollment Form'!$H201,'Enrollment Form'!$B$11:$B$1000,'Enrollment Form'!$B201)>1,'Enrollment Form'!$H201<>\"\"),\"N\",\"Y\"))","v":""},{"$f":"IF($B194=\"N\",\"\",IF(LEN('Enrollment Form'!$Y201)=0,\"\",IF(LEN('Enrollment Form'!$Y201)<>5,\"N\",\"Y\")))","v":""},{"$f":"IF($B194=\"N\",\"\",IF(LEN('Enrollment Form'!$AD201=0),\"\",IF(LEN('Enrollment Form'!$AD201)<>5,\"N\",\"Y\")))","v":""},{"$f":"IF($B194=\"N\",\"\",IF(LEN('Enrollment Form'!$BL201=0),\"\",IF(LEN('Enrollment Form'!$BL201)<>5,\"N\",\"Y\")))","v":""},{"$f":"IF($B194=\"N\",\"\",IF(LEN('Enrollment Form'!$AE201)=0,\"\",IF(LEN('Enrollment Form'!$AE201)<>10,\"N\",\"Y\")))","v":""},{"$f":"IF($B194=\"N\",\"\",IF(LEN('Enrollment Form'!$AF201)=0,\"\",IF(LEN('Enrollment Form'!$AF201)<>10,\"N\",\"Y\")))","v":""},{"$f":"IF('Enrollment Form'!$O201<>\"Graded\",\"-\",IF(AND('Enrollment Form'!$O201=\"Graded\",'Enrollment Form'!$AO201<>\"\"),\"Y\",\"N\"))","v":"-"},{"$f":"IF($B194=\"N\",\"\",IF(OR('Enrollment Form'!$B201<>\"Subscriber\",'Enrollment Form'!$C201=\"ROC\"),\"-\",IF(AND('Enrollment Form'!$B201=\"Subscriber\",'Enrollment Form'!$C201=\"Enroll\",'Enrollment Form'!$AJ201<>\"\"),\"Y\",\"N\")))","v":""},{"$f":"IF($B194=\"N\",\"\",IF(OR('Enrollment Form'!$B201<>\"Subscriber\",'Enrollment Form'!$C201=\"ROC\"),\"-\",IF(AND('Enrollment Form'!$B201=\"Subscriber\",'Enrollment Form'!$C201=\"Enroll\",'Enrollment Form'!$AK201<>\"\"),\"Y\",\"N\")))","v":""},{"$f":"IF($B194=\"N\",\"\",IF(OR('Enrollment Form'!$B201<>\"Subscriber\",'Enrollment Form'!$C201=\"ROC\"),\"-\",IF(AND('Enrollment Form'!$B201=\"Subscriber\",'Enrollment Form'!$C201=\"Enroll\",'Enrollment Form'!$AL201<>\"\"),\"Y\",\"N\")))","v":""},{"$f":"IF($B194=\"N\",\"\",IF(OR('Enrollment Form'!$B201<>\"Subscriber\",'Enrollment Form'!$C201=\"ROC\"),\"-\",IF(AND('Enrollment Form'!$B201=\"Subscriber\",'Enrollment Form'!$C201=\"Enroll\",'Enrollment Form'!$AM201<>\"\"),\"Y\",\"N\")))","v":""},{"$f":"IF($B194=\"N\",\"\",IF(OR('Enrollment Form'!$B201<>\"Subscriber\",'Enrollment Form'!$C201=\"ROC\"),\"-\",IF(AND('Enrollment Form'!$B201=\"Subscriber\",'Enrollment Form'!$C201=\"Enroll\",'Enrollment Form'!$AN201<>\"\"),\"Y\",\"N\")))","v":""},{"$f":"IF($B194=\"N\",\"\",IF(OR('Enrollment Form'!$B201<>\"Subscriber\",'Enrollment Form'!$C201=\"ROC\"),\"-\",IF(AND('Enrollment Form'!$B201=\"Subscriber\",'Enrollment Form'!$C201=\"Enroll\",'Enrollment Form'!$AP201<>\"\"),\"Y\",\"N\")))","v":""},{"$f":"IF($B194=\"N\",\"\",IF($Q194=\"-\",\"-\",IF(AND($Q194=\"Y\",'Enrollment Form'!$AP201=\"No\"),\"-\",IF(AND($Q194=\"Y\",'Enrollment Form'!$AP201=\"Yes\",'Enrollment Form'!$AQ201<>\"\"),\"Y\",\"N\"))))","v":""},{"$f":"IF($B194=\"N\",\"\",IF(OR('Enrollment Form'!$B201<>\"Subscriber\",'Enrollment Form'!$C201=\"ROC\"),\"-\",IF(AND('Enrollment Form'!$B201=\"Subscriber\",'Enrollment Form'!$C201=\"Enroll\",'Enrollment Form'!$CO201<>\"\"),\"Y\",\"N\")))","v":""},{"$f":"IF($B194=\"N\",\"\",IF($S194=\"-\",\"-\",IF(AND($S194=\"Y\",'Enrollment Form'!$CO201=\"No\"),\"-\",IF(AND($S194=\"Y\",'Enrollment Form'!$CO201=\"Yes\",'Enrollment Form'!$CP201<>\"\"),\"Y\",\"N\"))))","v":""},{"$f":"IF(OR('Enrollment Form'!$AV201=\"Yes\",'Enrollment Form'!$AV201=\"\"),\"-\",IF(AND('Enrollment Form'!$AV201=\"No\",ISERROR(FIND(\"HMO\",VLOOKUP('Enrollment Form'!G201,'Enrollment Form'!H$11:J$1000,3,FALSE),1))=FALSE,COUNTA('Enrollment Form'!$AW201:$AZ201)=4),\"Y\",\"N\"))","v":"-"},{"$f":"IF($B194=\"N\",\"\",IF('Enrollment Form'!$B201=\"Subscriber\",\"-\",IF(COUNTA('Enrollment Form'!$BE201,'Enrollment Form'!$BG201)=2,\"Y\",\"N\")))","v":""},{"$f":"IF($B194=\"N\",\"\",IF(OR('Enrollment Form'!$AU201=\"\",'Enrollment Form'!$AU201=\"No\"),\"-\",IF(AND('Enrollment Form'!$AU201=\"Yes\",COUNTA('Enrollment Form'!$CK201)=1),\"Y\",\"N\")))","v":""},{"$f":"IF(OR('Enrollment Form'!$CK201=\"\",'Enrollment Form'!$CK201=\"No\"),\"-\",IF(COUNTA('Enrollment Form'!$CM201:$CN201)=2,\"Y\",\"N\"))","v":"-"},{"$f":"IF($B194=\"N\",\"\",IF(COUNTIF('Enrollment Form'!$CZ201:$DO201,\"Other\")=COUNTA('Enrollment Form'!$DF201,'Enrollment Form'!$DA201,'Enrollment Form'!$DK201,'Enrollment Form'!$DP201),\"Y\",\"N\"))","v":""},{"$f":"IF($B194=\"N\",\"\",IF(OR('Enrollment Form'!B201<>\"Subscriber\",'Enrollment Form'!C201=\"ROC\",COUNTIF('Enrollment Form'!AS201:AT201,\"Yes\")>=1),\"-\",IF(AND('Enrollment Form'!C201=\"Enroll\",COUNTIF('Enrollment Form'!AS201:AT201,\"No\")=2,'Enrollment Form'!AU201=\"\"),\"N\",\"Y\")))","v":""},{"$f":"IF(OR(B194=\"N\",'Enrollment Form'!B201<>\"Subscriber\",'Enrollment Form'!C201=\"ROC\",'Enrollment Form'!O201<>\"Multiple of Salary\"),\"-\",IF(COUNTA('Enrollment Form'!T201:U201)<2,\"N\",\"Y\"))","v":"-"},{"$f":"IF(B194=\"N\",\"\",IF(OR('Enrollment Form'!C201=\"ROC\",'Enrollment Form'!B201<>\"Subscriber\",'Enrollment Form'!O201=\"Waive\",'Enrollment Form'!O201=\"\"),\"-\",IF('Enrollment Form'!P201=\"\",\"N\",\"Y\")))","v":""},{"$f":"IF($B194=\"N\",\"\",IF(AND('Enrollment Form'!$C201=\"ROC\",'Enrollment Form'!$DS201<>\"\"),\"Y\",IF(AND('Enrollment Form'!$C201=\"ROC\",'Enrollment Form'!$DS201=\"\"),\"N\",IF(AND('Enrollment Form'!$C201=\"Enroll\",'Enrollment Form'!$B201=\"Subscriber\",'Enrollment Form'!$CQ201=\"No\",'Enrollment Form'!$DS201=\"\"),\"N\",IF(AND('Enrollment Form'!$C201=\"Enroll\",'Enrollment Form'!$B201=\"Subscriber\",'Enrollment Form'!$CQ201=\"Yes\"),\"-\",\"Y\")))))","v":""},{"$f":"IF($B194=\"N\",\"\",IF(AND('Enrollment Form'!$C201=\"ROC\",'Enrollment Form'!$DT201<>\"\"),\"Y\",IF(AND('Enrollment Form'!$C201=\"ROC\",'Enrollment Form'!$DT201=\"\"),\"N\",IF(AND('Enrollment Form'!$C201=\"Enroll\",'Enrollment Form'!$B201=\"Subscriber\",'Enrollment Form'!$CQ201=\"No\",'Enrollment Form'!$DT201=\"\"),\"N\",IF(AND('Enrollment Form'!$C201=\"Enroll\",'Enrollment Form'!$B201=\"Subscriber\",'Enrollment Form'!$CQ201=\"Yes\"),\"-\",\"Y\")))))","v":""},{"$f":"IF('Enrollment Form'!AH201=\"\",\"\",IF(ISERROR(SEARCH(\".\",'Enrollment Form'!AH201,SEARCH(\"@\",'Enrollment Form'!AH201))),\"N\",\"Y\"))","v":""},{"$f":"IF(OR($B194=\"N\",'Enrollment Form'!$G201=\"\"),\"\",IF('Enrollment Form'!$B201<>\"Subscriber\",\"-\",IF(COUNTIF('Enrollment Form'!$AS201:$AT201,\"Yes\")=2,\"N\",\"Y\")))","v":""},{"$f":"IF(OR('Enrollment Form'!$CC201=\"\",'Enrollment Form'!$CC201=\"No\"),\"-\",IF(AND('Enrollment Form'!$CC201=\"Yes\",'Enrollment Form'!$CD201=\"\"),\"N\",\"Y\"))","v":"-"},{"$f":"IF(OR('Enrollment Form'!$CE201=\"\",'Enrollment Form'!$CE201=\"No\"),\"-\",IF(AND('Enrollment Form'!$CE201=\"Yes\",'Enrollment Form'!$CF201=\"\"),\"N\",\"Y\"))","v":"-"},{"$f":"IF(OR('Enrollment Form'!$CG201=\"\",'Enrollment Form'!$CG201=\"No\"),\"-\",IF(AND('Enrollment Form'!$CG201=\"Yes\",'Enrollment Form'!$CH201=\"\"),\"N\",\"Y\"))","v":"-"},{"$f":"IF(OR('Enrollment Form'!$CG201=\"\",'Enrollment Form'!$CG201=\"No\"),\"-\",IF(AND('Enrollment Form'!$CG201=\"Yes\",'Enrollment Form'!$CI201=\"\"),\"N\",\"Y\"))","v":"-"},{"$f":"IF('Enrollment Form'!B201<>\"Subscriber\",\"-\",IF(AND('Enrollment Form'!B201=\"Subscriber\",'Enrollment Form'!C201=\"Enroll\",'Enrollment Form'!AA201=\"\"),\"N\",\"Y\"))","v":"-"},{"$f":"IF(OR('Enrollment Form'!B201=\"Subscriber\",'Enrollment Form'!B201=\"\"),\"-\",IF('Enrollment Form'!BI201=\"\",\"N\",\"Y\"))","v":"-"},{"$f":"IF('Enrollment Form'!B201<>\"Subscriber\",\"-\",IF(AND('Enrollment Form'!B201=\"Subscriber\",'Enrollment Form'!G201=\"\"),\"N\",\"Y\"))","v":"-"},{"$f":"IF('Enrollment Form'!A201=\"\",\"\",IF('Enrollment Form'!B201=\"Subscriber\",\"-\",IF(AND('Enrollment Form'!B201<>\"Subscriber\",'Enrollment Form'!G201='Enrollment Form'!H201),\"N\",\"Y\")))","v":""},0]
[202,{"$f":"IF('Enrollment Form'!$A202<>\"\",\"Y\",\"N\")","v":"N"},{"$f":"IF(AND('Enrollment Form'!$B202=\"\",'Enrollment Form'!$C202<>\"\"),\"N\",IF($B195=\"N\",\"\",\"Y\"))","v":""},{"$f":"IF(OR($B195=\"N\",'Enrollment Form'!G202=\"\"),\"\",IF('Enrollment Form'!$B202<>\"Subscriber\",\"\",IF('Enrollment Form'!$G202='Enrollment Form'!$H202,\"Y\",\"N\")))","v":""},{"$f":"IF($B195=\"N\",\"\",IF(AND(COUNTIFS('Enrollment Form'!$H$11:$H$1000,'Enrollment Form'!$H202,'Enrollment Form'!$B$11:$B$1000,'Enrollment Form'!$B202)>1,'Enrollment Form'!$H202<>\"\"),\"N\",\"Y\"))","v":""},{"$f":"IF($B195=\"N\",\"\",IF(LEN('Enrollment Form'!$Y202)=0,\"\",IF(LEN('Enrollment Form'!$Y202)<>5,\"N\",\"Y\")))","v":""},{"$f":"IF($B195=\"N\",\"\",IF(LEN('Enrollment Form'!$AD202=0),\"\",IF(LEN('Enrollment Form'!$AD202)<>5,\"N\",\"Y\")))","v":""},{"$f":"IF($B195=\"N\",\"\",IF(LEN('Enrollment Form'!$BL202=0),\"\",IF(LEN('Enrollment Form'!$BL202)<>5,\"N\",\"Y\")))","v":""},{"$f":"IF($B195=\"N\",\"\",IF(LEN('Enrollment Form'!$AE202)=0,\"\",IF(LEN('Enrollment Form'!$AE202)<>10,\"N\",\"Y\")))","v":""},{"$f":"IF($B195=\"N\",\"\",IF(LEN('Enrollment Form'!$AF202)=0,\"\",IF(LEN('Enrollment Form'!$AF202)<>10,\"N\",\"Y\")))","v":""},{"$f":"IF('Enrollment Form'!$O202<>\"Graded\",\"-\",IF(AND('Enrollment Form'!$O202=\"Graded\",'Enrollment Form'!$AO202<>\"\"),\"Y\",\"N\"))","v":"-"},{"$f":"IF($B195=\"N\",\"\",IF(OR('Enrollment Form'!$B202<>\"Subscriber\",'Enrollment Form'!$C202=\"ROC\"),\"-\",IF(AND('Enrollment Form'!$B202=\"Subscriber\",'Enrollment Form'!$C202=\"Enroll\",'Enrollment Form'!$AJ202<>\"\"),\"Y\",\"N\")))","v":""},{"$f":"IF($B195=\"N\",\"\",IF(OR('Enrollment Form'!$B202<>\"Subscriber\",'Enrollment Form'!$C202=\"ROC\"),\"-\",IF(AND('Enrollment Form'!$B202=\"Subscriber\",'Enrollment Form'!$C202=\"Enroll\",'Enrollment Form'!$AK202<>\"\"),\"Y\",\"N\")))","v":""},{"$f":"IF($B195=\"N\",\"\",IF(OR('Enrollment Form'!$B202<>\"Subscriber\",'Enrollment Form'!$C202=\"ROC\"),\"-\",IF(AND('Enrollment Form'!$B202=\"Subscriber\",'Enrollment Form'!$C202=\"Enroll\",'Enrollment Form'!$AL202<>\"\"),\"Y\",\"N\")))","v":""},{"$f":"IF($B195=\"N\",\"\",IF(OR('Enrollment Form'!$B202<>\"Subscriber\",'Enrollment Form'!$C202=\"ROC\"),\"-\",IF(AND('Enrollment Form'!$B202=\"Subscriber\",'Enrollment Form'!$C202=\"Enroll\",'Enrollment Form'!$AM202<>\"\"),\"Y\",\"N\")))","v":""},{"$f":"IF($B195=\"N\",\"\",IF(OR('Enrollment Form'!$B202<>\"Subscriber\",'Enrollment Form'!$C202=\"ROC\"),\"-\",IF(AND('Enrollment Form'!$B202=\"Subscriber\",'Enrollment Form'!$C202=\"Enroll\",'Enrollment Form'!$AN202<>\"\"),\"Y\",\"N\")))","v":""},{"$f":"IF($B195=\"N\",\"\",IF(OR('Enrollment Form'!$B202<>\"Subscriber\",'Enrollment Form'!$C202=\"ROC\"),\"-\",IF(AND('Enrollment Form'!$B202=\"Subscriber\",'Enrollment Form'!$C202=\"Enroll\",'Enrollment Form'!$AP202<>\"\"),\"Y\",\"N\")))","v":""},{"$f":"IF($B195=\"N\",\"\",IF($Q195=\"-\",\"-\",IF(AND($Q195=\"Y\",'Enrollment Form'!$AP202=\"No\"),\"-\",IF(AND($Q195=\"Y\",'Enrollment Form'!$AP202=\"Yes\",'Enrollment Form'!$AQ202<>\"\"),\"Y\",\"N\"))))","v":""},{"$f":"IF($B195=\"N\",\"\",IF(OR('Enrollment Form'!$B202<>\"Subscriber\",'Enrollment Form'!$C202=\"ROC\"),\"-\",IF(AND('Enrollment Form'!$B202=\"Subscriber\",'Enrollment Form'!$C202=\"Enroll\",'Enrollment Form'!$CO202<>\"\"),\"Y\",\"N\")))","v":""},{"$f":"IF($B195=\"N\",\"\",IF($S195=\"-\",\"-\",IF(AND($S195=\"Y\",'Enrollment Form'!$CO202=\"No\"),\"-\",IF(AND($S195=\"Y\",'Enrollment Form'!$CO202=\"Yes\",'Enrollment Form'!$CP202<>\"\"),\"Y\",\"N\"))))","v":""},{"$f":"IF(OR('Enrollment Form'!$AV202=\"Yes\",'Enrollment Form'!$AV202=\"\"),\"-\",IF(AND('Enrollment Form'!$AV202=\"No\",ISERROR(FIND(\"HMO\",VLOOKUP('Enrollment Form'!G202,'Enrollment Form'!H$11:J$1000,3,FALSE),1))=FALSE,COUNTA('Enrollment Form'!$AW202:$AZ202)=4),\"Y\",\"N\"))","v":"-"},{"$f":"IF($B195=\"N\",\"\",IF('Enrollment Form'!$B202=\"Subscriber\",\"-\",IF(COUNTA('Enrollment Form'!$BE202,'Enrollment Form'!$BG202)=2,\"Y\",\"N\")))","v":""},{"$f":"IF($B195=\"N\",\"\",IF(OR('Enrollment Form'!$AU202=\"\",'Enrollment Form'!$AU202=\"No\"),\"-\",IF(AND('Enrollment Form'!$AU202=\"Yes\",COUNTA('Enrollment Form'!$CK202)=1),\"Y\",\"N\")))","v":""},{"$f":"IF(OR('Enrollment Form'!$CK202=\"\",'Enrollment Form'!$CK202=\"No\"),\"-\",IF(COUNTA('Enrollment Form'!$CM202:$CN202)=2,\"Y\",\"N\"))","v":"-"},{"$f":"IF($B195=\"N\",\"\",IF(COUNTIF('Enrollment Form'!$CZ202:$DO202,\"Other\")=COUNTA('Enrollment Form'!$DF202,'Enrollment Form'!$DA202,'Enrollment Form'!$DK202,'Enrollment Form'!$DP202),\"Y\",\"N\"))","v":""},{"$f":"IF($B195=\"N\",\"\",IF(OR('Enrollment Form'!B202<>\"Subscriber\",'Enrollment Form'!C202=\"ROC\",COUNTIF('Enrollment Form'!AS202:AT202,\"Yes\")>=1),\"-\",IF(AND('Enrollment Form'!C202=\"Enroll\",COUNTIF('Enrollment Form'!AS202:AT202,\"No\")=2,'Enrollment Form'!AU202=\"\"),\"N\",\"Y\")))","v":""},{"$f":"IF(OR(B195=\"N\",'Enrollment Form'!B202<>\"Subscriber\",'Enrollment Form'!C202=\"ROC\",'Enrollment Form'!O202<>\"Multiple of Salary\"),\"-\",IF(COUNTA('Enrollment Form'!T202:U202)<2,\"N\",\"Y\"))","v":"-"},{"$f":"IF(B195=\"N\",\"\",IF(OR('Enrollment Form'!C202=\"ROC\",'Enrollment Form'!B202<>\"Subscriber\",'Enrollment Form'!O202=\"Waive\",'Enrollment Form'!O202=\"\"),\"-\",IF('Enrollment Form'!P202=\"\",\"N\",\"Y\")))","v":""},{"$f":"IF($B195=\"N\",\"\",IF(AND('Enrollment Form'!$C202=\"ROC\",'Enrollment Form'!$DS202<>\"\"),\"Y\",IF(AND('Enrollment Form'!$C202=\"ROC\",'Enrollment Form'!$DS202=\"\"),\"N\",IF(AND('Enrollment Form'!$C202=\"Enroll\",'Enrollment Form'!$B202=\"Subscriber\",'Enrollment Form'!$CQ202=\"No\",'Enrollment Form'!$DS202=\"\"),\"N\",IF(AND('Enrollment Form'!$C202=\"Enroll\",'Enrollment Form'!$B202=\"Subscriber\",'Enrollment Form'!$CQ202=\"Yes\"),\"-\",\"Y\")))))","v":""},{"$f":"IF($B195=\"N\",\"\",IF(AND('Enrollment Form'!$C202=\"ROC\",'Enrollment Form'!$DT202<>\"\"),\"Y\",IF(AND('Enrollment Form'!$C202=\"ROC\",'Enrollment Form'!$DT202=\"\"),\"N\",IF(AND('Enrollment Form'!$C202=\"Enroll\",'Enrollment Form'!$B202=\"Subscriber\",'Enrollment Form'!$CQ202=\"No\",'Enrollment Form'!$DT202=\"\"),\"N\",IF(AND('Enrollment Form'!$C202=\"Enroll\",'Enrollment Form'!$B202=\"Subscriber\",'Enrollment Form'!$CQ202=\"Yes\"),\"-\",\"Y\")))))","v":""},{"$f":"IF('Enrollment Form'!AH202=\"\",\"\",IF(ISERROR(SEARCH(\".\",'Enrollment Form'!AH202,SEARCH(\"@\",'Enrollment Form'!AH202))),\"N\",\"Y\"))","v":""},{"$f":"IF(OR($B195=\"N\",'Enrollment Form'!$G202=\"\"),\"\",IF('Enrollment Form'!$B202<>\"Subscriber\",\"-\",IF(COUNTIF('Enrollment Form'!$AS202:$AT202,\"Yes\")=2,\"N\",\"Y\")))","v":""},{"$f":"IF(OR('Enrollment Form'!$CC202=\"\",'Enrollment Form'!$CC202=\"No\"),\"-\",IF(AND('Enrollment Form'!$CC202=\"Yes\",'Enrollment Form'!$CD202=\"\"),\"N\",\"Y\"))","v":"-"},{"$f":"IF(OR('Enrollment Form'!$CE202=\"\",'Enrollment Form'!$CE202=\"No\"),\"-\",IF(AND('Enrollment Form'!$CE202=\"Yes\",'Enrollment Form'!$CF202=\"\"),\"N\",\"Y\"))","v":"-"},{"$f":"IF(OR('Enrollment Form'!$CG202=\"\",'Enrollment Form'!$CG202=\"No\"),\"-\",IF(AND('Enrollment Form'!$CG202=\"Yes\",'Enrollment Form'!$CH202=\"\"),\"N\",\"Y\"))","v":"-"},{"$f":"IF(OR('Enrollment Form'!$CG202=\"\",'Enrollment Form'!$CG202=\"No\"),\"-\",IF(AND('Enrollment Form'!$CG202=\"Yes\",'Enrollment Form'!$CI202=\"\"),\"N\",\"Y\"))","v":"-"},{"$f":"IF('Enrollment Form'!B202<>\"Subscriber\",\"-\",IF(AND('Enrollment Form'!B202=\"Subscriber\",'Enrollment Form'!C202=\"Enroll\",'Enrollment Form'!AA202=\"\"),\"N\",\"Y\"))","v":"-"},{"$f":"IF(OR('Enrollment Form'!B202=\"Subscriber\",'Enrollment Form'!B202=\"\"),\"-\",IF('Enrollment Form'!BI202=\"\",\"N\",\"Y\"))","v":"-"},{"$f":"IF('Enrollment Form'!B202<>\"Subscriber\",\"-\",IF(AND('Enrollment Form'!B202=\"Subscriber\",'Enrollment Form'!G202=\"\"),\"N\",\"Y\"))","v":"-"},{"$f":"IF('Enrollment Form'!A202=\"\",\"\",IF('Enrollment Form'!B202=\"Subscriber\",\"-\",IF(AND('Enrollment Form'!B202<>\"Subscriber\",'Enrollment Form'!G202='Enrollment Form'!H202),\"N\",\"Y\")))","v":""},0]
[203,{"$f":"IF('Enrollment Form'!$A203<>\"\",\"Y\",\"N\")","v":"N"},{"$f":"IF(AND('Enrollment Form'!$B203=\"\",'Enrollment Form'!$C203<>\"\"),\"N\",IF($B196=\"N\",\"\",\"Y\"))","v":""},{"$f":"IF(OR($B196=\"N\",'Enrollment Form'!G203=\"\"),\"\",IF('Enrollment Form'!$B203<>\"Subscriber\",\"\",IF('Enrollment Form'!$G203='Enrollment Form'!$H203,\"Y\",\"N\")))","v":""},{"$f":"IF($B196=\"N\",\"\",IF(AND(COUNTIFS('Enrollment Form'!$H$11:$H$1000,'Enrollment Form'!$H203,'Enrollment Form'!$B$11:$B$1000,'Enrollment Form'!$B203)>1,'Enrollment Form'!$H203<>\"\"),\"N\",\"Y\"))","v":""},{"$f":"IF($B196=\"N\",\"\",IF(LEN('Enrollment Form'!$Y203)=0,\"\",IF(LEN('Enrollment Form'!$Y203)<>5,\"N\",\"Y\")))","v":""},{"$f":"IF($B196=\"N\",\"\",IF(LEN('Enrollment Form'!$AD203=0),\"\",IF(LEN('Enrollment Form'!$AD203)<>5,\"N\",\"Y\")))","v":""},{"$f":"IF($B196=\"N\",\"\",IF(LEN('Enrollment Form'!$BL203=0),\"\",IF(LEN('Enrollment Form'!$BL203)<>5,\"N\",\"Y\")))","v":""},{"$f":"IF($B196=\"N\",\"\",IF(LEN('Enrollment Form'!$AE203)=0,\"\",IF(LEN('Enrollment Form'!$AE203)<>10,\"N\",\"Y\")))","v":""},{"$f":"IF($B196=\"N\",\"\",IF(LEN('Enrollment Form'!$AF203)=0,\"\",IF(LEN('Enrollment Form'!$AF203)<>10,\"N\",\"Y\")))","v":""},{"$f":"IF('Enrollment Form'!$O203<>\"Graded\",\"-\",IF(AND('Enrollment Form'!$O203=\"Graded\",'Enrollment Form'!$AO203<>\"\"),\"Y\",\"N\"))","v":"-"},{"$f":"IF($B196=\"N\",\"\",IF(OR('Enrollment Form'!$B203<>\"Subscriber\",'Enrollment Form'!$C203=\"ROC\"),\"-\",IF(AND('Enrollment Form'!$B203=\"Subscriber\",'Enrollment Form'!$C203=\"Enroll\",'Enrollment Form'!$AJ203<>\"\"),\"Y\",\"N\")))","v":""},{"$f":"IF($B196=\"N\",\"\",IF(OR('Enrollment Form'!$B203<>\"Subscriber\",'Enrollment Form'!$C203=\"ROC\"),\"-\",IF(AND('Enrollment Form'!$B203=\"Subscriber\",'Enrollment Form'!$C203=\"Enroll\",'Enrollment Form'!$AK203<>\"\"),\"Y\",\"N\")))","v":""},{"$f":"IF($B196=\"N\",\"\",IF(OR('Enrollment Form'!$B203<>\"Subscriber\",'Enrollment Form'!$C203=\"ROC\"),\"-\",IF(AND('Enrollment Form'!$B203=\"Subscriber\",'Enrollment Form'!$C203=\"Enroll\",'Enrollment Form'!$AL203<>\"\"),\"Y\",\"N\")))","v":""},{"$f":"IF($B196=\"N\",\"\",IF(OR('Enrollment Form'!$B203<>\"Subscriber\",'Enrollment Form'!$C203=\"ROC\"),\"-\",IF(AND('Enrollment Form'!$B203=\"Subscriber\",'Enrollment Form'!$C203=\"Enroll\",'Enrollment Form'!$AM203<>\"\"),\"Y\",\"N\")))","v":""},{"$f":"IF($B196=\"N\",\"\",IF(OR('Enrollment Form'!$B203<>\"Subscriber\",'Enrollment Form'!$C203=\"ROC\"),\"-\",IF(AND('Enrollment Form'!$B203=\"Subscriber\",'Enrollment Form'!$C203=\"Enroll\",'Enrollment Form'!$AN203<>\"\"),\"Y\",\"N\")))","v":""},{"$f":"IF($B196=\"N\",\"\",IF(OR('Enrollment Form'!$B203<>\"Subscriber\",'Enrollment Form'!$C203=\"ROC\"),\"-\",IF(AND('Enrollment Form'!$B203=\"Subscriber\",'Enrollment Form'!$C203=\"Enroll\",'Enrollment Form'!$AP203<>\"\"),\"Y\",\"N\")))","v":""},{"$f":"IF($B196=\"N\",\"\",IF($Q196=\"-\",\"-\",IF(AND($Q196=\"Y\",'Enrollment Form'!$AP203=\"No\"),\"-\",IF(AND($Q196=\"Y\",'Enrollment Form'!$AP203=\"Yes\",'Enrollment Form'!$AQ203<>\"\"),\"Y\",\"N\"))))","v":""},{"$f":"IF($B196=\"N\",\"\",IF(OR('Enrollment Form'!$B203<>\"Subscriber\",'Enrollment Form'!$C203=\"ROC\"),\"-\",IF(AND('Enrollment Form'!$B203=\"Subscriber\",'Enrollment Form'!$C203=\"Enroll\",'Enrollment Form'!$CO203<>\"\"),\"Y\",\"N\")))","v":""},{"$f":"IF($B196=\"N\",\"\",IF($S196=\"-\",\"-\",IF(AND($S196=\"Y\",'Enrollment Form'!$CO203=\"No\"),\"-\",IF(AND($S196=\"Y\",'Enrollment Form'!$CO203=\"Yes\",'Enrollment Form'!$CP203<>\"\"),\"Y\",\"N\"))))","v":""},{"$f":"IF(OR('Enrollment Form'!$AV203=\"Yes\",'Enrollment Form'!$AV203=\"\"),\"-\",IF(AND('Enrollment Form'!$AV203=\"No\",ISERROR(FIND(\"HMO\",VLOOKUP('Enrollment Form'!G203,'Enrollment Form'!H$11:J$1000,3,FALSE),1))=FALSE,COUNTA('Enrollment Form'!$AW203:$AZ203)=4),\"Y\",\"N\"))","v":"-"},{"$f":"IF($B196=\"N\",\"\",IF('Enrollment Form'!$B203=\"Subscriber\",\"-\",IF(COUNTA('Enrollment Form'!$BE203,'Enrollment Form'!$BG203)=2,\"Y\",\"N\")))","v":""},{"$f":"IF($B196=\"N\",\"\",IF(OR('Enrollment Form'!$AU203=\"\",'Enrollment Form'!$AU203=\"No\"),\"-\",IF(AND('Enrollment Form'!$AU203=\"Yes\",COUNTA('Enrollment Form'!$CK203)=1),\"Y\",\"N\")))","v":""},{"$f":"IF(OR('Enrollment Form'!$CK203=\"\",'Enrollment Form'!$CK203=\"No\"),\"-\",IF(COUNTA('Enrollment Form'!$CM203:$CN203)=2,\"Y\",\"N\"))","v":"-"},{"$f":"IF($B196=\"N\",\"\",IF(COUNTIF('Enrollment Form'!$CZ203:$DO203,\"Other\")=COUNTA('Enrollment Form'!$DF203,'Enrollment Form'!$DA203,'Enrollment Form'!$DK203,'Enrollment Form'!$DP203),\"Y\",\"N\"))","v":""},{"$f":"IF($B196=\"N\",\"\",IF(OR('Enrollment Form'!B203<>\"Subscriber\",'Enrollment Form'!C203=\"ROC\",COUNTIF('Enrollment Form'!AS203:AT203,\"Yes\")>=1),\"-\",IF(AND('Enrollment Form'!C203=\"Enroll\",COUNTIF('Enrollment Form'!AS203:AT203,\"No\")=2,'Enrollment Form'!AU203=\"\"),\"N\",\"Y\")))","v":""},{"$f":"IF(OR(B196=\"N\",'Enrollment Form'!B203<>\"Subscriber\",'Enrollment Form'!C203=\"ROC\",'Enrollment Form'!O203<>\"Multiple of Salary\"),\"-\",IF(COUNTA('Enrollment Form'!T203:U203)<2,\"N\",\"Y\"))","v":"-"},{"$f":"IF(B196=\"N\",\"\",IF(OR('Enrollment Form'!C203=\"ROC\",'Enrollment Form'!B203<>\"Subscriber\",'Enrollment Form'!O203=\"Waive\",'Enrollment Form'!O203=\"\"),\"-\",IF('Enrollment Form'!P203=\"\",\"N\",\"Y\")))","v":""},{"$f":"IF($B196=\"N\",\"\",IF(AND('Enrollment Form'!$C203=\"ROC\",'Enrollment Form'!$DS203<>\"\"),\"Y\",IF(AND('Enrollment Form'!$C203=\"ROC\",'Enrollment Form'!$DS203=\"\"),\"N\",IF(AND('Enrollment Form'!$C203=\"Enroll\",'Enrollment Form'!$B203=\"Subscriber\",'Enrollment Form'!$CQ203=\"No\",'Enrollment Form'!$DS203=\"\"),\"N\",IF(AND('Enrollment Form'!$C203=\"Enroll\",'Enrollment Form'!$B203=\"Subscriber\",'Enrollment Form'!$CQ203=\"Yes\"),\"-\",\"Y\")))))","v":""},{"$f":"IF($B196=\"N\",\"\",IF(AND('Enrollment Form'!$C203=\"ROC\",'Enrollment Form'!$DT203<>\"\"),\"Y\",IF(AND('Enrollment Form'!$C203=\"ROC\",'Enrollment Form'!$DT203=\"\"),\"N\",IF(AND('Enrollment Form'!$C203=\"Enroll\",'Enrollment Form'!$B203=\"Subscriber\",'Enrollment Form'!$CQ203=\"No\",'Enrollment Form'!$DT203=\"\"),\"N\",IF(AND('Enrollment Form'!$C203=\"Enroll\",'Enrollment Form'!$B203=\"Subscriber\",'Enrollment Form'!$CQ203=\"Yes\"),\"-\",\"Y\")))))","v":""},{"$f":"IF('Enrollment Form'!AH203=\"\",\"\",IF(ISERROR(SEARCH(\".\",'Enrollment Form'!AH203,SEARCH(\"@\",'Enrollment Form'!AH203))),\"N\",\"Y\"))","v":""},{"$f":"IF(OR($B196=\"N\",'Enrollment Form'!$G203=\"\"),\"\",IF('Enrollment Form'!$B203<>\"Subscriber\",\"-\",IF(COUNTIF('Enrollment Form'!$AS203:$AT203,\"Yes\")=2,\"N\",\"Y\")))","v":""},{"$f":"IF(OR('Enrollment Form'!$CC203=\"\",'Enrollment Form'!$CC203=\"No\"),\"-\",IF(AND('Enrollment Form'!$CC203=\"Yes\",'Enrollment Form'!$CD203=\"\"),\"N\",\"Y\"))","v":"-"},{"$f":"IF(OR('Enrollment Form'!$CE203=\"\",'Enrollment Form'!$CE203=\"No\"),\"-\",IF(AND('Enrollment Form'!$CE203=\"Yes\",'Enrollment Form'!$CF203=\"\"),\"N\",\"Y\"))","v":"-"},{"$f":"IF(OR('Enrollment Form'!$CG203=\"\",'Enrollment Form'!$CG203=\"No\"),\"-\",IF(AND('Enrollment Form'!$CG203=\"Yes\",'Enrollment Form'!$CH203=\"\"),\"N\",\"Y\"))","v":"-"},{"$f":"IF(OR('Enrollment Form'!$CG203=\"\",'Enrollment Form'!$CG203=\"No\"),\"-\",IF(AND('Enrollment Form'!$CG203=\"Yes\",'Enrollment Form'!$CI203=\"\"),\"N\",\"Y\"))","v":"-"},{"$f":"IF('Enrollment Form'!B203<>\"Subscriber\",\"-\",IF(AND('Enrollment Form'!B203=\"Subscriber\",'Enrollment Form'!C203=\"Enroll\",'Enrollment Form'!AA203=\"\"),\"N\",\"Y\"))","v":"-"},{"$f":"IF(OR('Enrollment Form'!B203=\"Subscriber\",'Enrollment Form'!B203=\"\"),\"-\",IF('Enrollment Form'!BI203=\"\",\"N\",\"Y\"))","v":"-"},{"$f":"IF('Enrollment Form'!B203<>\"Subscriber\",\"-\",IF(AND('Enrollment Form'!B203=\"Subscriber\",'Enrollment Form'!G203=\"\"),\"N\",\"Y\"))","v":"-"},{"$f":"IF('Enrollment Form'!A203=\"\",\"\",IF('Enrollment Form'!B203=\"Subscriber\",\"-\",IF(AND('Enrollment Form'!B203<>\"Subscriber\",'Enrollment Form'!G203='Enrollment Form'!H203),\"N\",\"Y\")))","v":""},{"$f":"COUNTIF(C196:AN196,\"N\")","v":0}]
[204,{"$f":"IF('Enrollment Form'!$A204<>\"\",\"Y\",\"N\")","v":"N"},{"$f":"IF(AND('Enrollment Form'!$B204=\"\",'Enrollment Form'!$C204<>\"\"),\"N\",IF($B197=\"N\",\"\",\"Y\"))","v":""},{"$f":"IF(OR($B197=\"N\",'Enrollment Form'!G204=\"\"),\"\",IF('Enrollment Form'!$B204<>\"Subscriber\",\"\",IF('Enrollment Form'!$G204='Enrollment Form'!$H204,\"Y\",\"N\")))","v":""},{"$f":"IF($B197=\"N\",\"\",IF(AND(COUNTIFS('Enrollment Form'!$H$11:$H$1000,'Enrollment Form'!$H204,'Enrollment Form'!$B$11:$B$1000,'Enrollment Form'!$B204)>1,'Enrollment Form'!$H204<>\"\"),\"N\",\"Y\"))","v":""},{"$f":"IF($B197=\"N\",\"\",IF(LEN('Enrollment Form'!$Y204)=0,\"\",IF(LEN('Enrollment Form'!$Y204)<>5,\"N\",\"Y\")))","v":""},{"$f":"IF($B197=\"N\",\"\",IF(LEN('Enrollment Form'!$AD204=0),\"\",IF(LEN('Enrollment Form'!$AD204)<>5,\"N\",\"Y\")))","v":""},{"$f":"IF($B197=\"N\",\"\",IF(LEN('Enrollment Form'!$BL204=0),\"\",IF(LEN('Enrollment Form'!$BL204)<>5,\"N\",\"Y\")))","v":""},{"$f":"IF($B197=\"N\",\"\",IF(LEN('Enrollment Form'!$AE204)=0,\"\",IF(LEN('Enrollment Form'!$AE204)<>10,\"N\",\"Y\")))","v":""},{"$f":"IF($B197=\"N\",\"\",IF(LEN('Enrollment Form'!$AF204)=0,\"\",IF(LEN('Enrollment Form'!$AF204)<>10,\"N\",\"Y\")))","v":""},{"$f":"IF('Enrollment Form'!$O204<>\"Graded\",\"-\",IF(AND('Enrollment Form'!$O204=\"Graded\",'Enrollment Form'!$AO204<>\"\"),\"Y\",\"N\"))","v":"-"},{"$f":"IF($B197=\"N\",\"\",IF(OR('Enrollment Form'!$B204<>\"Subscriber\",'Enrollment Form'!$C204=\"ROC\"),\"-\",IF(AND('Enrollment Form'!$B204=\"Subscriber\",'Enrollment Form'!$C204=\"Enroll\",'Enrollment Form'!$AJ204<>\"\"),\"Y\",\"N\")))","v":""},{"$f":"IF($B197=\"N\",\"\",IF(OR('Enrollment Form'!$B204<>\"Subscriber\",'Enrollment Form'!$C204=\"ROC\"),\"-\",IF(AND('Enrollment Form'!$B204=\"Subscriber\",'Enrollment Form'!$C204=\"Enroll\",'Enrollment Form'!$AK204<>\"\"),\"Y\",\"N\")))","v":""},{"$f":"IF($B197=\"N\",\"\",IF(OR('Enrollment Form'!$B204<>\"Subscriber\",'Enrollment Form'!$C204=\"ROC\"),\"-\",IF(AND('Enrollment Form'!$B204=\"Subscriber\",'Enrollment Form'!$C204=\"Enroll\",'Enrollment Form'!$AL204<>\"\"),\"Y\",\"N\")))","v":""},{"$f":"IF($B197=\"N\",\"\",IF(OR('Enrollment Form'!$B204<>\"Subscriber\",'Enrollment Form'!$C204=\"ROC\"),\"-\",IF(AND('Enrollment Form'!$B204=\"Subscriber\",'Enrollment Form'!$C204=\"Enroll\",'Enrollment Form'!$AM204<>\"\"),\"Y\",\"N\")))","v":""},{"$f":"IF($B197=\"N\",\"\",IF(OR('Enrollment Form'!$B204<>\"Subscriber\",'Enrollment Form'!$C204=\"ROC\"),\"-\",IF(AND('Enrollment Form'!$B204=\"Subscriber\",'Enrollment Form'!$C204=\"Enroll\",'Enrollment Form'!$AN204<>\"\"),\"Y\",\"N\")))","v":""},{"$f":"IF($B197=\"N\",\"\",IF(OR('Enrollment Form'!$B204<>\"Subscriber\",'Enrollment Form'!$C204=\"ROC\"),\"-\",IF(AND('Enrollment Form'!$B204=\"Subscriber\",'Enrollment Form'!$C204=\"Enroll\",'Enrollment Form'!$AP204<>\"\"),\"Y\",\"N\")))","v":""},{"$f":"IF($B197=\"N\",\"\",IF($Q197=\"-\",\"-\",IF(AND($Q197=\"Y\",'Enrollment Form'!$AP204=\"No\"),\"-\",IF(AND($Q197=\"Y\",'Enrollment Form'!$AP204=\"Yes\",'Enrollment Form'!$AQ204<>\"\"),\"Y\",\"N\"))))","v":""},{"$f":"IF($B197=\"N\",\"\",IF(OR('Enrollment Form'!$B204<>\"Subscriber\",'Enrollment Form'!$C204=\"ROC\"),\"-\",IF(AND('Enrollment Form'!$B204=\"Subscriber\",'Enrollment Form'!$C204=\"Enroll\",'Enrollment Form'!$CO204<>\"\"),\"Y\",\"N\")))","v":""},{"$f":"IF($B197=\"N\",\"\",IF($S197=\"-\",\"-\",IF(AND($S197=\"Y\",'Enrollment Form'!$CO204=\"No\"),\"-\",IF(AND($S197=\"Y\",'Enrollment Form'!$CO204=\"Yes\",'Enrollment Form'!$CP204<>\"\"),\"Y\",\"N\"))))","v":""},{"$f":"IF(OR('Enrollment Form'!$AV204=\"Yes\",'Enrollment Form'!$AV204=\"\"),\"-\",IF(AND('Enrollment Form'!$AV204=\"No\",ISERROR(FIND(\"HMO\",VLOOKUP('Enrollment Form'!G204,'Enrollment Form'!H$11:J$1000,3,FALSE),1))=FALSE,COUNTA('Enrollment Form'!$AW204:$AZ204)=4),\"Y\",\"N\"))","v":"-"},{"$f":"IF($B197=\"N\",\"\",IF('Enrollment Form'!$B204=\"Subscriber\",\"-\",IF(COUNTA('Enrollment Form'!$BE204,'Enrollment Form'!$BG204)=2,\"Y\",\"N\")))","v":""},{"$f":"IF($B197=\"N\",\"\",IF(OR('Enrollment Form'!$AU204=\"\",'Enrollment Form'!$AU204=\"No\"),\"-\",IF(AND('Enrollment Form'!$AU204=\"Yes\",COUNTA('Enrollment Form'!$CK204)=1),\"Y\",\"N\")))","v":""},{"$f":"IF(OR('Enrollment Form'!$CK204=\"\",'Enrollment Form'!$CK204=\"No\"),\"-\",IF(COUNTA('Enrollment Form'!$CM204:$CN204)=2,\"Y\",\"N\"))","v":"-"},{"$f":"IF($B197=\"N\",\"\",IF(COUNTIF('Enrollment Form'!$CZ204:$DO204,\"Other\")=COUNTA('Enrollment Form'!$DF204,'Enrollment Form'!$DA204,'Enrollment Form'!$DK204,'Enrollment Form'!$DP204),\"Y\",\"N\"))","v":""},{"$f":"IF($B197=\"N\",\"\",IF(OR('Enrollment Form'!B204<>\"Subscriber\",'Enrollment Form'!C204=\"ROC\",COUNTIF('Enrollment Form'!AS204:AT204,\"Yes\")>=1),\"-\",IF(AND('Enrollment Form'!C204=\"Enroll\",COUNTIF('Enrollment Form'!AS204:AT204,\"No\")=2,'Enrollment Form'!AU204=\"\"),\"N\",\"Y\")))","v":""},{"$f":"IF(OR(B197=\"N\",'Enrollment Form'!B204<>\"Subscriber\",'Enrollment Form'!C204=\"ROC\",'Enrollment Form'!O204<>\"Multiple of Salary\"),\"-\",IF(COUNTA('Enrollment Form'!T204:U204)<2,\"N\",\"Y\"))","v":"-"},{"$f":"IF(B197=\"N\",\"\",IF(OR('Enrollment Form'!C204=\"ROC\",'Enrollment Form'!B204<>\"Subscriber\",'Enrollment Form'!O204=\"Waive\",'Enrollment Form'!O204=\"\"),\"-\",IF('Enrollment Form'!P204=\"\",\"N\",\"Y\")))","v":""},{"$f":"IF($B197=\"N\",\"\",IF(AND('Enrollment Form'!$C204=\"ROC\",'Enrollment Form'!$DS204<>\"\"),\"Y\",IF(AND('Enrollment Form'!$C204=\"ROC\",'Enrollment Form'!$DS204=\"\"),\"N\",IF(AND('Enrollment Form'!$C204=\"Enroll\",'Enrollment Form'!$B204=\"Subscriber\",'Enrollment Form'!$CQ204=\"No\",'Enrollment Form'!$DS204=\"\"),\"N\",IF(AND('Enrollment Form'!$C204=\"Enroll\",'Enrollment Form'!$B204=\"Subscriber\",'Enrollment Form'!$CQ204=\"Yes\"),\"-\",\"Y\")))))","v":""},{"$f":"IF($B197=\"N\",\"\",IF(AND('Enrollment Form'!$C204=\"ROC\",'Enrollment Form'!$DT204<>\"\"),\"Y\",IF(AND('Enrollment Form'!$C204=\"ROC\",'Enrollment Form'!$DT204=\"\"),\"N\",IF(AND('Enrollment Form'!$C204=\"Enroll\",'Enrollment Form'!$B204=\"Subscriber\",'Enrollment Form'!$CQ204=\"No\",'Enrollment Form'!$DT204=\"\"),\"N\",IF(AND('Enrollment Form'!$C204=\"Enroll\",'Enrollment Form'!$B204=\"Subscriber\",'Enrollment Form'!$CQ204=\"Yes\"),\"-\",\"Y\")))))","v":""},{"$f":"IF('Enrollment Form'!AH204=\"\",\"\",IF(ISERROR(SEARCH(\".\",'Enrollment Form'!AH204,SEARCH(\"@\",'Enrollment Form'!AH204))),\"N\",\"Y\"))","v":""},{"$f":"IF(OR($B197=\"N\",'Enrollment Form'!$G204=\"\"),\"\",IF('Enrollment Form'!$B204<>\"Subscriber\",\"-\",IF(COUNTIF('Enrollment Form'!$AS204:$AT204,\"Yes\")=2,\"N\",\"Y\")))","v":""},{"$f":"IF(OR('Enrollment Form'!$CC204=\"\",'Enrollment Form'!$CC204=\"No\"),\"-\",IF(AND('Enrollment Form'!$CC204=\"Yes\",'Enrollment Form'!$CD204=\"\"),\"N\",\"Y\"))","v":"-"},{"$f":"IF(OR('Enrollment Form'!$CE204=\"\",'Enrollment Form'!$CE204=\"No\"),\"-\",IF(AND('Enrollment Form'!$CE204=\"Yes\",'Enrollment Form'!$CF204=\"\"),\"N\",\"Y\"))","v":"-"},{"$f":"IF(OR('Enrollment Form'!$CG204=\"\",'Enrollment Form'!$CG204=\"No\"),\"-\",IF(AND('Enrollment Form'!$CG204=\"Yes\",'Enrollment Form'!$CH204=\"\"),\"N\",\"Y\"))","v":"-"},{"$f":"IF(OR('Enrollment Form'!$CG204=\"\",'Enrollment Form'!$CG204=\"No\"),\"-\",IF(AND('Enrollment Form'!$CG204=\"Yes\",'Enrollment Form'!$CI204=\"\"),\"N\",\"Y\"))","v":"-"},{"$f":"IF('Enrollment Form'!B204<>\"Subscriber\",\"-\",IF(AND('Enrollment Form'!B204=\"Subscriber\",'Enrollment Form'!C204=\"Enroll\",'Enrollment Form'!AA204=\"\"),\"N\",\"Y\"))","v":"-"},{"$f":"IF(OR('Enrollment Form'!B204=\"Subscriber\",'Enrollment Form'!B204=\"\"),\"-\",IF('Enrollment Form'!BI204=\"\",\"N\",\"Y\"))","v":"-"},{"$f":"IF('Enrollment Form'!B204<>\"Subscriber\",\"-\",IF(AND('Enrollment Form'!B204=\"Subscriber\",'Enrollment Form'!G204=\"\"),\"N\",\"Y\"))","v":"-"},{"$f":"IF('Enrollment Form'!A204=\"\",\"\",IF('Enrollment Form'!B204=\"Subscriber\",\"-\",IF(AND('Enrollment Form'!B204<>\"Subscriber\",'Enrollment Form'!G204='Enrollment Form'!H204),\"N\",\"Y\")))","v":""},0]
[{"$f":"1+A197","v":205},{"$f":"IF('Enrollment Form'!$A205<>\"\",\"Y\",\"N\")","v":"N"},{"$f":"IF(AND('Enrollment Form'!$B205=\"\",'Enrollment Form'!$C205<>\"\"),\"N\",IF($B198=\"N\",\"\",\"Y\"))","v":""},{"$f":"IF(OR($B198=\"N\",'Enrollment Form'!G205=\"\"),\"\",IF('Enrollment Form'!$B205<>\"Subscriber\",\"\",IF('Enrollment Form'!$G205='Enrollment Form'!$H205,\"Y\",\"N\")))","v":""},{"$f":"IF($B198=\"N\",\"\",IF(AND(COUNTIFS('Enrollment Form'!$H$11:$H$1000,'Enrollment Form'!$H205,'Enrollment Form'!$B$11:$B$1000,'Enrollment Form'!$B205)>1,'Enrollment Form'!$H205<>\"\"),\"N\",\"Y\"))","v":""},{"$f":"IF($B198=\"N\",\"\",IF(LEN('Enrollment Form'!$Y205)=0,\"\",IF(LEN('Enrollment Form'!$Y205)<>5,\"N\",\"Y\")))","v":""},{"$f":"IF($B198=\"N\",\"\",IF(LEN('Enrollment Form'!$AD205=0),\"\",IF(LEN('Enrollment Form'!$AD205)<>5,\"N\",\"Y\")))","v":""},{"$f":"IF($B198=\"N\",\"\",IF(LEN('Enrollment Form'!$BL205=0),\"\",IF(LEN('Enrollment Form'!$BL205)<>5,\"N\",\"Y\")))","v":""},{"$f":"IF($B198=\"N\",\"\",IF(LEN('Enrollment Form'!$AE205)=0,\"\",IF(LEN('Enrollment Form'!$AE205)<>10,\"N\",\"Y\")))","v":""},{"$f":"IF($B198=\"N\",\"\",IF(LEN('Enrollment Form'!$AF205)=0,\"\",IF(LEN('Enrollment Form'!$AF205)<>10,\"N\",\"Y\")))","v":""},{"$f":"IF('Enrollment Form'!$O205<>\"Graded\",\"-\",IF(AND('Enrollment Form'!$O205=\"Graded\",'Enrollment Form'!$AO205<>\"\"),\"Y\",\"N\"))","v":"-"},{"$f":"IF($B198=\"N\",\"\",IF(OR('Enrollment Form'!$B205<>\"Subscriber\",'Enrollment Form'!$C205=\"ROC\"),\"-\",IF(AND('Enrollment Form'!$B205=\"Subscriber\",'Enrollment Form'!$C205=\"Enroll\",'Enrollment Form'!$AJ205<>\"\"),\"Y\",\"N\")))","v":""},{"$f":"IF($B198=\"N\",\"\",IF(OR('Enrollment Form'!$B205<>\"Subscriber\",'Enrollment Form'!$C205=\"ROC\"),\"-\",IF(AND('Enrollment Form'!$B205=\"Subscriber\",'Enrollment Form'!$C205=\"Enroll\",'Enrollment Form'!$AK205<>\"\"),\"Y\",\"N\")))","v":""},{"$f":"IF($B198=\"N\",\"\",IF(OR('Enrollment Form'!$B205<>\"Subscriber\",'Enrollment Form'!$C205=\"ROC\"),\"-\",IF(AND('Enrollment Form'!$B205=\"Subscriber\",'Enrollment Form'!$C205=\"Enroll\",'Enrollment Form'!$AL205<>\"\"),\"Y\",\"N\")))","v":""},{"$f":"IF($B198=\"N\",\"\",IF(OR('Enrollment Form'!$B205<>\"Subscriber\",'Enrollment Form'!$C205=\"ROC\"),\"-\",IF(AND('Enrollment Form'!$B205=\"Subscriber\",'Enrollment Form'!$C205=\"Enroll\",'Enrollment Form'!$AM205<>\"\"),\"Y\",\"N\")))","v":""},{"$f":"IF($B198=\"N\",\"\",IF(OR('Enrollment Form'!$B205<>\"Subscriber\",'Enrollment Form'!$C205=\"ROC\"),\"-\",IF(AND('Enrollment Form'!$B205=\"Subscriber\",'Enrollment Form'!$C205=\"Enroll\",'Enrollment Form'!$AN205<>\"\"),\"Y\",\"N\")))","v":""},{"$f":"IF($B198=\"N\",\"\",IF(OR('Enrollment Form'!$B205<>\"Subscriber\",'Enrollment Form'!$C205=\"ROC\"),\"-\",IF(AND('Enrollment Form'!$B205=\"Subscriber\",'Enrollment Form'!$C205=\"Enroll\",'Enrollment Form'!$AP205<>\"\"),\"Y\",\"N\")))","v":""},{"$f":"IF($B198=\"N\",\"\",IF($Q198=\"-\",\"-\",IF(AND($Q198=\"Y\",'Enrollment Form'!$AP205=\"No\"),\"-\",IF(AND($Q198=\"Y\",'Enrollment Form'!$AP205=\"Yes\",'Enrollment Form'!$AQ205<>\"\"),\"Y\",\"N\"))))","v":""},{"$f":"IF($B198=\"N\",\"\",IF(OR('Enrollment Form'!$B205<>\"Subscriber\",'Enrollment Form'!$C205=\"ROC\"),\"-\",IF(AND('Enrollment Form'!$B205=\"Subscriber\",'Enrollment Form'!$C205=\"Enroll\",'Enrollment Form'!$CO205<>\"\"),\"Y\",\"N\")))","v":""},{"$f":"IF($B198=\"N\",\"\",IF($S198=\"-\",\"-\",IF(AND($S198=\"Y\",'Enrollment Form'!$CO205=\"No\"),\"-\",IF(AND($S198=\"Y\",'Enrollment Form'!$CO205=\"Yes\",'Enrollment Form'!$CP205<>\"\"),\"Y\",\"N\"))))","v":""},{"$f":"IF(OR('Enrollment Form'!$AV205=\"Yes\",'Enrollment Form'!$AV205=\"\"),\"-\",IF(AND('Enrollment Form'!$AV205=\"No\",ISERROR(FIND(\"HMO\",VLOOKUP('Enrollment Form'!G205,'Enrollment Form'!H$11:J$1000,3,FALSE),1))=FALSE,COUNTA('Enrollment Form'!$AW205:$AZ205)=4),\"Y\",\"N\"))","v":"-"},{"$f":"IF($B198=\"N\",\"\",IF('Enrollment Form'!$B205=\"Subscriber\",\"-\",IF(COUNTA('Enrollment Form'!$BE205,'Enrollment Form'!$BG205)=2,\"Y\",\"N\")))","v":""},{"$f":"IF($B198=\"N\",\"\",IF(OR('Enrollment Form'!$AU205=\"\",'Enrollment Form'!$AU205=\"No\"),\"-\",IF(AND('Enrollment Form'!$AU205=\"Yes\",COUNTA('Enrollment Form'!$CK205)=1),\"Y\",\"N\")))","v":""},{"$f":"IF(OR('Enrollment Form'!$CK205=\"\",'Enrollment Form'!$CK205=\"No\"),\"-\",IF(COUNTA('Enrollment Form'!$CM205:$CN205)=2,\"Y\",\"N\"))","v":"-"},{"$f":"IF($B198=\"N\",\"\",IF(COUNTIF('Enrollment Form'!$CZ205:$DO205,\"Other\")=COUNTA('Enrollment Form'!$DF205,'Enrollment Form'!$DA205,'Enrollment Form'!$DK205,'Enrollment Form'!$DP205),\"Y\",\"N\"))","v":""},{"$f":"IF($B198=\"N\",\"\",IF(OR('Enrollment Form'!B205<>\"Subscriber\",'Enrollment Form'!C205=\"ROC\",COUNTIF('Enrollment Form'!AS205:AT205,\"Yes\")>=1),\"-\",IF(AND('Enrollment Form'!C205=\"Enroll\",COUNTIF('Enrollment Form'!AS205:AT205,\"No\")=2,'Enrollment Form'!AU205=\"\"),\"N\",\"Y\")))","v":""},{"$f":"IF(OR(B198=\"N\",'Enrollment Form'!B205<>\"Subscriber\",'Enrollment Form'!C205=\"ROC\",'Enrollment Form'!O205<>\"Multiple of Salary\"),\"-\",IF(COUNTA('Enrollment Form'!T205:U205)<2,\"N\",\"Y\"))","v":"-"},{"$f":"IF(B198=\"N\",\"\",IF(OR('Enrollment Form'!C205=\"ROC\",'Enrollment Form'!B205<>\"Subscriber\",'Enrollment Form'!O205=\"Waive\",'Enrollment Form'!O205=\"\"),\"-\",IF('Enrollment Form'!P205=\"\",\"N\",\"Y\")))","v":""},{"$f":"IF($B198=\"N\",\"\",IF(AND('Enrollment Form'!$C205=\"ROC\",'Enrollment Form'!$DS205<>\"\"),\"Y\",IF(AND('Enrollment Form'!$C205=\"ROC\",'Enrollment Form'!$DS205=\"\"),\"N\",IF(AND('Enrollment Form'!$C205=\"Enroll\",'Enrollment Form'!$B205=\"Subscriber\",'Enrollment Form'!$CQ205=\"No\",'Enrollment Form'!$DS205=\"\"),\"N\",IF(AND('Enrollment Form'!$C205=\"Enroll\",'Enrollment Form'!$B205=\"Subscriber\",'Enrollment Form'!$CQ205=\"Yes\"),\"-\",\"Y\")))))","v":""},{"$f":"IF($B198=\"N\",\"\",IF(AND('Enrollment Form'!$C205=\"ROC\",'Enrollment Form'!$DT205<>\"\"),\"Y\",IF(AND('Enrollment Form'!$C205=\"ROC\",'Enrollment Form'!$DT205=\"\"),\"N\",IF(AND('Enrollment Form'!$C205=\"Enroll\",'Enrollment Form'!$B205=\"Subscriber\",'Enrollment Form'!$CQ205=\"No\",'Enrollment Form'!$DT205=\"\"),\"N\",IF(AND('Enrollment Form'!$C205=\"Enroll\",'Enrollment Form'!$B205=\"Subscriber\",'Enrollment Form'!$CQ205=\"Yes\"),\"-\",\"Y\")))))","v":""},{"$f":"IF('Enrollment Form'!AH205=\"\",\"\",IF(ISERROR(SEARCH(\".\",'Enrollment Form'!AH205,SEARCH(\"@\",'Enrollment Form'!AH205))),\"N\",\"Y\"))","v":""},{"$f":"IF(OR($B198=\"N\",'Enrollment Form'!$G205=\"\"),\"\",IF('Enrollment Form'!$B205<>\"Subscriber\",\"-\",IF(COUNTIF('Enrollment Form'!$AS205:$AT205,\"Yes\")=2,\"N\",\"Y\")))","v":""},{"$f":"IF(OR('Enrollment Form'!$CC205=\"\",'Enrollment Form'!$CC205=\"No\"),\"-\",IF(AND('Enrollment Form'!$CC205=\"Yes\",'Enrollment Form'!$CD205=\"\"),\"N\",\"Y\"))","v":"-"},{"$f":"IF(OR('Enrollment Form'!$CE205=\"\",'Enrollment Form'!$CE205=\"No\"),\"-\",IF(AND('Enrollment Form'!$CE205=\"Yes\",'Enrollment Form'!$CF205=\"\"),\"N\",\"Y\"))","v":"-"},{"$f":"IF(OR('Enrollment Form'!$CG205=\"\",'Enrollment Form'!$CG205=\"No\"),\"-\",IF(AND('Enrollment Form'!$CG205=\"Yes\",'Enrollment Form'!$CH205=\"\"),\"N\",\"Y\"))","v":"-"},{"$f":"IF(OR('Enrollment Form'!$CG205=\"\",'Enrollment Form'!$CG205=\"No\"),\"-\",IF(AND('Enrollment Form'!$CG205=\"Yes\",'Enrollment Form'!$CI205=\"\"),\"N\",\"Y\"))","v":"-"},{"$f":"IF('Enrollment Form'!B205<>\"Subscriber\",\"-\",IF(AND('Enrollment Form'!B205=\"Subscriber\",'Enrollment Form'!C205=\"Enroll\",'Enrollment Form'!AA205=\"\"),\"N\",\"Y\"))","v":"-"},{"$f":"IF(OR('Enrollment Form'!B205=\"Subscriber\",'Enrollment Form'!B205=\"\"),\"-\",IF('Enrollment Form'!BI205=\"\",\"N\",\"Y\"))","v":"-"},{"$f":"IF('Enrollment Form'!B205<>\"Subscriber\",\"-\",IF(AND('Enrollment Form'!B205=\"Subscriber\",'Enrollment Form'!G205=\"\"),\"N\",\"Y\"))","v":"-"},{"$f":"IF('Enrollment Form'!A205=\"\",\"\",IF('Enrollment Form'!B205=\"Subscriber\",\"-\",IF(AND('Enrollment Form'!B205<>\"Subscriber\",'Enrollment Form'!G205='Enrollment Form'!H205),\"N\",\"Y\")))","v":""},0]
[206,{"$f":"IF('Enrollment Form'!$A206<>\"\",\"Y\",\"N\")","v":"N"},{"$f":"IF(AND('Enrollment Form'!$B206=\"\",'Enrollment Form'!$C206<>\"\"),\"N\",IF($B199=\"N\",\"\",\"Y\"))","v":""},{"$f":"IF(OR($B199=\"N\",'Enrollment Form'!G206=\"\"),\"\",IF('Enrollment Form'!$B206<>\"Subscriber\",\"\",IF('Enrollment Form'!$G206='Enrollment Form'!$H206,\"Y\",\"N\")))","v":""},{"$f":"IF($B199=\"N\",\"\",IF(AND(COUNTIFS('Enrollment Form'!$H$11:$H$1000,'Enrollment Form'!$H206,'Enrollment Form'!$B$11:$B$1000,'Enrollment Form'!$B206)>1,'Enrollment Form'!$H206<>\"\"),\"N\",\"Y\"))","v":""},{"$f":"IF($B199=\"N\",\"\",IF(LEN('Enrollment Form'!$Y206)=0,\"\",IF(LEN('Enrollment Form'!$Y206)<>5,\"N\",\"Y\")))","v":""},{"$f":"IF($B199=\"N\",\"\",IF(LEN('Enrollment Form'!$AD206=0),\"\",IF(LEN('Enrollment Form'!$AD206)<>5,\"N\",\"Y\")))","v":""},{"$f":"IF($B199=\"N\",\"\",IF(LEN('Enrollment Form'!$BL206=0),\"\",IF(LEN('Enrollment Form'!$BL206)<>5,\"N\",\"Y\")))","v":""},{"$f":"IF($B199=\"N\",\"\",IF(LEN('Enrollment Form'!$AE206)=0,\"\",IF(LEN('Enrollment Form'!$AE206)<>10,\"N\",\"Y\")))","v":""},{"$f":"IF($B199=\"N\",\"\",IF(LEN('Enrollment Form'!$AF206)=0,\"\",IF(LEN('Enrollment Form'!$AF206)<>10,\"N\",\"Y\")))","v":""},{"$f":"IF('Enrollment Form'!$O206<>\"Graded\",\"-\",IF(AND('Enrollment Form'!$O206=\"Graded\",'Enrollment Form'!$AO206<>\"\"),\"Y\",\"N\"))","v":"-"},{"$f":"IF($B199=\"N\",\"\",IF(OR('Enrollment Form'!$B206<>\"Subscriber\",'Enrollment Form'!$C206=\"ROC\"),\"-\",IF(AND('Enrollment Form'!$B206=\"Subscriber\",'Enrollment Form'!$C206=\"Enroll\",'Enrollment Form'!$AJ206<>\"\"),\"Y\",\"N\")))","v":""},{"$f":"IF($B199=\"N\",\"\",IF(OR('Enrollment Form'!$B206<>\"Subscriber\",'Enrollment Form'!$C206=\"ROC\"),\"-\",IF(AND('Enrollment Form'!$B206=\"Subscriber\",'Enrollment Form'!$C206=\"Enroll\",'Enrollment Form'!$AK206<>\"\"),\"Y\",\"N\")))","v":""},{"$f":"IF($B199=\"N\",\"\",IF(OR('Enrollment Form'!$B206<>\"Subscriber\",'Enrollment Form'!$C206=\"ROC\"),\"-\",IF(AND('Enrollment Form'!$B206=\"Subscriber\",'Enrollment Form'!$C206=\"Enroll\",'Enrollment Form'!$AL206<>\"\"),\"Y\",\"N\")))","v":""},{"$f":"IF($B199=\"N\",\"\",IF(OR('Enrollment Form'!$B206<>\"Subscriber\",'Enrollment Form'!$C206=\"ROC\"),\"-\",IF(AND('Enrollment Form'!$B206=\"Subscriber\",'Enrollment Form'!$C206=\"Enroll\",'Enrollment Form'!$AM206<>\"\"),\"Y\",\"N\")))","v":""},{"$f":"IF($B199=\"N\",\"\",IF(OR('Enrollment Form'!$B206<>\"Subscriber\",'Enrollment Form'!$C206=\"ROC\"),\"-\",IF(AND('Enrollment Form'!$B206=\"Subscriber\",'Enrollment Form'!$C206=\"Enroll\",'Enrollment Form'!$AN206<>\"\"),\"Y\",\"N\")))","v":""},{"$f":"IF($B199=\"N\",\"\",IF(OR('Enrollment Form'!$B206<>\"Subscriber\",'Enrollment Form'!$C206=\"ROC\"),\"-\",IF(AND('Enrollment Form'!$B206=\"Subscriber\",'Enrollment Form'!$C206=\"Enroll\",'Enrollment Form'!$AP206<>\"\"),\"Y\",\"N\")))","v":""},{"$f":"IF($B199=\"N\",\"\",IF($Q199=\"-\",\"-\",IF(AND($Q199=\"Y\",'Enrollment Form'!$AP206=\"No\"),\"-\",IF(AND($Q199=\"Y\",'Enrollment Form'!$AP206=\"Yes\",'Enrollment Form'!$AQ206<>\"\"),\"Y\",\"N\"))))","v":""},{"$f":"IF($B199=\"N\",\"\",IF(OR('Enrollment Form'!$B206<>\"Subscriber\",'Enrollment Form'!$C206=\"ROC\"),\"-\",IF(AND('Enrollment Form'!$B206=\"Subscriber\",'Enrollment Form'!$C206=\"Enroll\",'Enrollment Form'!$CO206<>\"\"),\"Y\",\"N\")))","v":""},{"$f":"IF($B199=\"N\",\"\",IF($S199=\"-\",\"-\",IF(AND($S199=\"Y\",'Enrollment Form'!$CO206=\"No\"),\"-\",IF(AND($S199=\"Y\",'Enrollment Form'!$CO206=\"Yes\",'Enrollment Form'!$CP206<>\"\"),\"Y\",\"N\"))))","v":""},{"$f":"IF(OR('Enrollment Form'!$AV206=\"Yes\",'Enrollment Form'!$AV206=\"\"),\"-\",IF(AND('Enrollment Form'!$AV206=\"No\",ISERROR(FIND(\"HMO\",VLOOKUP('Enrollment Form'!G206,'Enrollment Form'!H$11:J$1000,3,FALSE),1))=FALSE,COUNTA('Enrollment Form'!$AW206:$AZ206)=4),\"Y\",\"N\"))","v":"-"},{"$f":"IF($B199=\"N\",\"\",IF('Enrollment Form'!$B206=\"Subscriber\",\"-\",IF(COUNTA('Enrollment Form'!$BE206,'Enrollment Form'!$BG206)=2,\"Y\",\"N\")))","v":""},{"$f":"IF($B199=\"N\",\"\",IF(OR('Enrollment Form'!$AU206=\"\",'Enrollment Form'!$AU206=\"No\"),\"-\",IF(AND('Enrollment Form'!$AU206=\"Yes\",COUNTA('Enrollment Form'!$CK206)=1),\"Y\",\"N\")))","v":""},{"$f":"IF(OR('Enrollment Form'!$CK206=\"\",'Enrollment Form'!$CK206=\"No\"),\"-\",IF(COUNTA('Enrollment Form'!$CM206:$CN206)=2,\"Y\",\"N\"))","v":"-"},{"$f":"IF($B199=\"N\",\"\",IF(COUNTIF('Enrollment Form'!$CZ206:$DO206,\"Other\")=COUNTA('Enrollment Form'!$DF206,'Enrollment Form'!$DA206,'Enrollment Form'!$DK206,'Enrollment Form'!$DP206),\"Y\",\"N\"))","v":""},{"$f":"IF($B199=\"N\",\"\",IF(OR('Enrollment Form'!B206<>\"Subscriber\",'Enrollment Form'!C206=\"ROC\",COUNTIF('Enrollment Form'!AS206:AT206,\"Yes\")>=1),\"-\",IF(AND('Enrollment Form'!C206=\"Enroll\",COUNTIF('Enrollment Form'!AS206:AT206,\"No\")=2,'Enrollment Form'!AU206=\"\"),\"N\",\"Y\")))","v":""},{"$f":"IF(OR(B199=\"N\",'Enrollment Form'!B206<>\"Subscriber\",'Enrollment Form'!C206=\"ROC\",'Enrollment Form'!O206<>\"Multiple of Salary\"),\"-\",IF(COUNTA('Enrollment Form'!T206:U206)<2,\"N\",\"Y\"))","v":"-"},{"$f":"IF(B199=\"N\",\"\",IF(OR('Enrollment Form'!C206=\"ROC\",'Enrollment Form'!B206<>\"Subscriber\",'Enrollment Form'!O206=\"Waive\",'Enrollment Form'!O206=\"\"),\"-\",IF('Enrollment Form'!P206=\"\",\"N\",\"Y\")))","v":""},{"$f":"IF($B199=\"N\",\"\",IF(AND('Enrollment Form'!$C206=\"ROC\",'Enrollment Form'!$DS206<>\"\"),\"Y\",IF(AND('Enrollment Form'!$C206=\"ROC\",'Enrollment Form'!$DS206=\"\"),\"N\",IF(AND('Enrollment Form'!$C206=\"Enroll\",'Enrollment Form'!$B206=\"Subscriber\",'Enrollment Form'!$CQ206=\"No\",'Enrollment Form'!$DS206=\"\"),\"N\",IF(AND('Enrollment Form'!$C206=\"Enroll\",'Enrollment Form'!$B206=\"Subscriber\",'Enrollment Form'!$CQ206=\"Yes\"),\"-\",\"Y\")))))","v":""},{"$f":"IF($B199=\"N\",\"\",IF(AND('Enrollment Form'!$C206=\"ROC\",'Enrollment Form'!$DT206<>\"\"),\"Y\",IF(AND('Enrollment Form'!$C206=\"ROC\",'Enrollment Form'!$DT206=\"\"),\"N\",IF(AND('Enrollment Form'!$C206=\"Enroll\",'Enrollment Form'!$B206=\"Subscriber\",'Enrollment Form'!$CQ206=\"No\",'Enrollment Form'!$DT206=\"\"),\"N\",IF(AND('Enrollment Form'!$C206=\"Enroll\",'Enrollment Form'!$B206=\"Subscriber\",'Enrollment Form'!$CQ206=\"Yes\"),\"-\",\"Y\")))))","v":""},{"$f":"IF('Enrollment Form'!AH206=\"\",\"\",IF(ISERROR(SEARCH(\".\",'Enrollment Form'!AH206,SEARCH(\"@\",'Enrollment Form'!AH206))),\"N\",\"Y\"))","v":""},{"$f":"IF(OR($B199=\"N\",'Enrollment Form'!$G206=\"\"),\"\",IF('Enrollment Form'!$B206<>\"Subscriber\",\"-\",IF(COUNTIF('Enrollment Form'!$AS206:$AT206,\"Yes\")=2,\"N\",\"Y\")))","v":""},{"$f":"IF(OR('Enrollment Form'!$CC206=\"\",'Enrollment Form'!$CC206=\"No\"),\"-\",IF(AND('Enrollment Form'!$CC206=\"Yes\",'Enrollment Form'!$CD206=\"\"),\"N\",\"Y\"))","v":"-"},{"$f":"IF(OR('Enrollment Form'!$CE206=\"\",'Enrollment Form'!$CE206=\"No\"),\"-\",IF(AND('Enrollment Form'!$CE206=\"Yes\",'Enrollment Form'!$CF206=\"\"),\"N\",\"Y\"))","v":"-"},{"$f":"IF(OR('Enrollment Form'!$CG206=\"\",'Enrollment Form'!$CG206=\"No\"),\"-\",IF(AND('Enrollment Form'!$CG206=\"Yes\",'Enrollment Form'!$CH206=\"\"),\"N\",\"Y\"))","v":"-"},{"$f":"IF(OR('Enrollment Form'!$CG206=\"\",'Enrollment Form'!$CG206=\"No\"),\"-\",IF(AND('Enrollment Form'!$CG206=\"Yes\",'Enrollment Form'!$CI206=\"\"),\"N\",\"Y\"))","v":"-"},{"$f":"IF('Enrollment Form'!B206<>\"Subscriber\",\"-\",IF(AND('Enrollment Form'!B206=\"Subscriber\",'Enrollment Form'!C206=\"Enroll\",'Enrollment Form'!AA206=\"\"),\"N\",\"Y\"))","v":"-"},{"$f":"IF(OR('Enrollment Form'!B206=\"Subscriber\",'Enrollment Form'!B206=\"\"),\"-\",IF('Enrollment Form'!BI206=\"\",\"N\",\"Y\"))","v":"-"},{"$f":"IF('Enrollment Form'!B206<>\"Subscriber\",\"-\",IF(AND('Enrollment Form'!B206=\"Subscriber\",'Enrollment Form'!G206=\"\"),\"N\",\"Y\"))","v":"-"},{"$f":"IF('Enrollment Form'!A206=\"\",\"\",IF('Enrollment Form'!B206=\"Subscriber\",\"-\",IF(AND('Enrollment Form'!B206<>\"Subscriber\",'Enrollment Form'!G206='Enrollment Form'!H206),\"N\",\"Y\")))","v":""},0]
[207,{"$f":"IF('Enrollment Form'!$A207<>\"\",\"Y\",\"N\")","v":"N"},{"$f":"IF(AND('Enrollment Form'!$B207=\"\",'Enrollment Form'!$C207<>\"\"),\"N\",IF($B200=\"N\",\"\",\"Y\"))","v":""},{"$f":"IF(OR($B200=\"N\",'Enrollment Form'!G207=\"\"),\"\",IF('Enrollment Form'!$B207<>\"Subscriber\",\"\",IF('Enrollment Form'!$G207='Enrollment Form'!$H207,\"Y\",\"N\")))","v":""},{"$f":"IF($B200=\"N\",\"\",IF(AND(COUNTIFS('Enrollment Form'!$H$11:$H$1000,'Enrollment Form'!$H207,'Enrollment Form'!$B$11:$B$1000,'Enrollment Form'!$B207)>1,'Enrollment Form'!$H207<>\"\"),\"N\",\"Y\"))","v":""},{"$f":"IF($B200=\"N\",\"\",IF(LEN('Enrollment Form'!$Y207)=0,\"\",IF(LEN('Enrollment Form'!$Y207)<>5,\"N\",\"Y\")))","v":""},{"$f":"IF($B200=\"N\",\"\",IF(LEN('Enrollment Form'!$AD207=0),\"\",IF(LEN('Enrollment Form'!$AD207)<>5,\"N\",\"Y\")))","v":""},{"$f":"IF($B200=\"N\",\"\",IF(LEN('Enrollment Form'!$BL207=0),\"\",IF(LEN('Enrollment Form'!$BL207)<>5,\"N\",\"Y\")))","v":""},{"$f":"IF($B200=\"N\",\"\",IF(LEN('Enrollment Form'!$AE207)=0,\"\",IF(LEN('Enrollment Form'!$AE207)<>10,\"N\",\"Y\")))","v":""},{"$f":"IF($B200=\"N\",\"\",IF(LEN('Enrollment Form'!$AF207)=0,\"\",IF(LEN('Enrollment Form'!$AF207)<>10,\"N\",\"Y\")))","v":""},{"$f":"IF('Enrollment Form'!$O207<>\"Graded\",\"-\",IF(AND('Enrollment Form'!$O207=\"Graded\",'Enrollment Form'!$AO207<>\"\"),\"Y\",\"N\"))","v":"-"},{"$f":"IF($B200=\"N\",\"\",IF(OR('Enrollment Form'!$B207<>\"Subscriber\",'Enrollment Form'!$C207=\"ROC\"),\"-\",IF(AND('Enrollment Form'!$B207=\"Subscriber\",'Enrollment Form'!$C207=\"Enroll\",'Enrollment Form'!$AJ207<>\"\"),\"Y\",\"N\")))","v":""},{"$f":"IF($B200=\"N\",\"\",IF(OR('Enrollment Form'!$B207<>\"Subscriber\",'Enrollment Form'!$C207=\"ROC\"),\"-\",IF(AND('Enrollment Form'!$B207=\"Subscriber\",'Enrollment Form'!$C207=\"Enroll\",'Enrollment Form'!$AK207<>\"\"),\"Y\",\"N\")))","v":""},{"$f":"IF($B200=\"N\",\"\",IF(OR('Enrollment Form'!$B207<>\"Subscriber\",'Enrollment Form'!$C207=\"ROC\"),\"-\",IF(AND('Enrollment Form'!$B207=\"Subscriber\",'Enrollment Form'!$C207=\"Enroll\",'Enrollment Form'!$AL207<>\"\"),\"Y\",\"N\")))","v":""},{"$f":"IF($B200=\"N\",\"\",IF(OR('Enrollment Form'!$B207<>\"Subscriber\",'Enrollment Form'!$C207=\"ROC\"),\"-\",IF(AND('Enrollment Form'!$B207=\"Subscriber\",'Enrollment Form'!$C207=\"Enroll\",'Enrollment Form'!$AM207<>\"\"),\"Y\",\"N\")))","v":""},{"$f":"IF($B200=\"N\",\"\",IF(OR('Enrollment Form'!$B207<>\"Subscriber\",'Enrollment Form'!$C207=\"ROC\"),\"-\",IF(AND('Enrollment Form'!$B207=\"Subscriber\",'Enrollment Form'!$C207=\"Enroll\",'Enrollment Form'!$AN207<>\"\"),\"Y\",\"N\")))","v":""},{"$f":"IF($B200=\"N\",\"\",IF(OR('Enrollment Form'!$B207<>\"Subscriber\",'Enrollment Form'!$C207=\"ROC\"),\"-\",IF(AND('Enrollment Form'!$B207=\"Subscriber\",'Enrollment Form'!$C207=\"Enroll\",'Enrollment Form'!$AP207<>\"\"),\"Y\",\"N\")))","v":""},{"$f":"IF($B200=\"N\",\"\",IF($Q200=\"-\",\"-\",IF(AND($Q200=\"Y\",'Enrollment Form'!$AP207=\"No\"),\"-\",IF(AND($Q200=\"Y\",'Enrollment Form'!$AP207=\"Yes\",'Enrollment Form'!$AQ207<>\"\"),\"Y\",\"N\"))))","v":""},{"$f":"IF($B200=\"N\",\"\",IF(OR('Enrollment Form'!$B207<>\"Subscriber\",'Enrollment Form'!$C207=\"ROC\"),\"-\",IF(AND('Enrollment Form'!$B207=\"Subscriber\",'Enrollment Form'!$C207=\"Enroll\",'Enrollment Form'!$CO207<>\"\"),\"Y\",\"N\")))","v":""},{"$f":"IF($B200=\"N\",\"\",IF($S200=\"-\",\"-\",IF(AND($S200=\"Y\",'Enrollment Form'!$CO207=\"No\"),\"-\",IF(AND($S200=\"Y\",'Enrollment Form'!$CO207=\"Yes\",'Enrollment Form'!$CP207<>\"\"),\"Y\",\"N\"))))","v":""},{"$f":"IF(OR('Enrollment Form'!$AV207=\"Yes\",'Enrollment Form'!$AV207=\"\"),\"-\",IF(AND('Enrollment Form'!$AV207=\"No\",ISERROR(FIND(\"HMO\",VLOOKUP('Enrollment Form'!G207,'Enrollment Form'!H$11:J$1000,3,FALSE),1))=FALSE,COUNTA('Enrollment Form'!$AW207:$AZ207)=4),\"Y\",\"N\"))","v":"-"},{"$f":"IF($B200=\"N\",\"\",IF('Enrollment Form'!$B207=\"Subscriber\",\"-\",IF(COUNTA('Enrollment Form'!$BE207,'Enrollment Form'!$BG207)=2,\"Y\",\"N\")))","v":""},{"$f":"IF($B200=\"N\",\"\",IF(OR('Enrollment Form'!$AU207=\"\",'Enrollment Form'!$AU207=\"No\"),\"-\",IF(AND('Enrollment Form'!$AU207=\"Yes\",COUNTA('Enrollment Form'!$CK207)=1),\"Y\",\"N\")))","v":""},{"$f":"IF(OR('Enrollment Form'!$CK207=\"\",'Enrollment Form'!$CK207=\"No\"),\"-\",IF(COUNTA('Enrollment Form'!$CM207:$CN207)=2,\"Y\",\"N\"))","v":"-"},{"$f":"IF($B200=\"N\",\"\",IF(COUNTIF('Enrollment Form'!$CZ207:$DO207,\"Other\")=COUNTA('Enrollment Form'!$DF207,'Enrollment Form'!$DA207,'Enrollment Form'!$DK207,'Enrollment Form'!$DP207),\"Y\",\"N\"))","v":""},{"$f":"IF($B200=\"N\",\"\",IF(OR('Enrollment Form'!B207<>\"Subscriber\",'Enrollment Form'!C207=\"ROC\",COUNTIF('Enrollment Form'!AS207:AT207,\"Yes\")>=1),\"-\",IF(AND('Enrollment Form'!C207=\"Enroll\",COUNTIF('Enrollment Form'!AS207:AT207,\"No\")=2,'Enrollment Form'!AU207=\"\"),\"N\",\"Y\")))","v":""},{"$f":"IF(OR(B200=\"N\",'Enrollment Form'!B207<>\"Subscriber\",'Enrollment Form'!C207=\"ROC\",'Enrollment Form'!O207<>\"Multiple of Salary\"),\"-\",IF(COUNTA('Enrollment Form'!T207:U207)<2,\"N\",\"Y\"))","v":"-"},{"$f":"IF(B200=\"N\",\"\",IF(OR('Enrollment Form'!C207=\"ROC\",'Enrollment Form'!B207<>\"Subscriber\",'Enrollment Form'!O207=\"Waive\",'Enrollment Form'!O207=\"\"),\"-\",IF('Enrollment Form'!P207=\"\",\"N\",\"Y\")))","v":""},{"$f":"IF($B200=\"N\",\"\",IF(AND('Enrollment Form'!$C207=\"ROC\",'Enrollment Form'!$DS207<>\"\"),\"Y\",IF(AND('Enrollment Form'!$C207=\"ROC\",'Enrollment Form'!$DS207=\"\"),\"N\",IF(AND('Enrollment Form'!$C207=\"Enroll\",'Enrollment Form'!$B207=\"Subscriber\",'Enrollment Form'!$CQ207=\"No\",'Enrollment Form'!$DS207=\"\"),\"N\",IF(AND('Enrollment Form'!$C207=\"Enroll\",'Enrollment Form'!$B207=\"Subscriber\",'Enrollment Form'!$CQ207=\"Yes\"),\"-\",\"Y\")))))","v":""},{"$f":"IF($B200=\"N\",\"\",IF(AND('Enrollment Form'!$C207=\"ROC\",'Enrollment Form'!$DT207<>\"\"),\"Y\",IF(AND('Enrollment Form'!$C207=\"ROC\",'Enrollment Form'!$DT207=\"\"),\"N\",IF(AND('Enrollment Form'!$C207=\"Enroll\",'Enrollment Form'!$B207=\"Subscriber\",'Enrollment Form'!$CQ207=\"No\",'Enrollment Form'!$DT207=\"\"),\"N\",IF(AND('Enrollment Form'!$C207=\"Enroll\",'Enrollment Form'!$B207=\"Subscriber\",'Enrollment Form'!$CQ207=\"Yes\"),\"-\",\"Y\")))))","v":""},{"$f":"IF('Enrollment Form'!AH207=\"\",\"\",IF(ISERROR(SEARCH(\".\",'Enrollment Form'!AH207,SEARCH(\"@\",'Enrollment Form'!AH207))),\"N\",\"Y\"))","v":""},{"$f":"IF(OR($B200=\"N\",'Enrollment Form'!$G207=\"\"),\"\",IF('Enrollment Form'!$B207<>\"Subscriber\",\"-\",IF(COUNTIF('Enrollment Form'!$AS207:$AT207,\"Yes\")=2,\"N\",\"Y\")))","v":""},{"$f":"IF(OR('Enrollment Form'!$CC207=\"\",'Enrollment Form'!$CC207=\"No\"),\"-\",IF(AND('Enrollment Form'!$CC207=\"Yes\",'Enrollment Form'!$CD207=\"\"),\"N\",\"Y\"))","v":"-"},{"$f":"IF(OR('Enrollment Form'!$CE207=\"\",'Enrollment Form'!$CE207=\"No\"),\"-\",IF(AND('Enrollment Form'!$CE207=\"Yes\",'Enrollment Form'!$CF207=\"\"),\"N\",\"Y\"))","v":"-"},{"$f":"IF(OR('Enrollment Form'!$CG207=\"\",'Enrollment Form'!$CG207=\"No\"),\"-\",IF(AND('Enrollment Form'!$CG207=\"Yes\",'Enrollment Form'!$CH207=\"\"),\"N\",\"Y\"))","v":"-"},{"$f":"IF(OR('Enrollment Form'!$CG207=\"\",'Enrollment Form'!$CG207=\"No\"),\"-\",IF(AND('Enrollment Form'!$CG207=\"Yes\",'Enrollment Form'!$CI207=\"\"),\"N\",\"Y\"))","v":"-"},{"$f":"IF('Enrollment Form'!B207<>\"Subscriber\",\"-\",IF(AND('Enrollment Form'!B207=\"Subscriber\",'Enrollment Form'!C207=\"Enroll\",'Enrollment Form'!AA207=\"\"),\"N\",\"Y\"))","v":"-"},{"$f":"IF(OR('Enrollment Form'!B207=\"Subscriber\",'Enrollment Form'!B207=\"\"),\"-\",IF('Enrollment Form'!BI207=\"\",\"N\",\"Y\"))","v":"-"},{"$f":"IF('Enrollment Form'!B207<>\"Subscriber\",\"-\",IF(AND('Enrollment Form'!B207=\"Subscriber\",'Enrollment Form'!G207=\"\"),\"N\",\"Y\"))","v":"-"},{"$f":"IF('Enrollment Form'!A207=\"\",\"\",IF('Enrollment Form'!B207=\"Subscriber\",\"-\",IF(AND('Enrollment Form'!B207<>\"Subscriber\",'Enrollment Form'!G207='Enrollment Form'!H207),\"N\",\"Y\")))","v":""},0]
[208,{"$f":"IF('Enrollment Form'!$A208<>\"\",\"Y\",\"N\")","v":"N"},{"$f":"IF(AND('Enrollment Form'!$B208=\"\",'Enrollment Form'!$C208<>\"\"),\"N\",IF($B201=\"N\",\"\",\"Y\"))","v":""},{"$f":"IF(OR($B201=\"N\",'Enrollment Form'!G208=\"\"),\"\",IF('Enrollment Form'!$B208<>\"Subscriber\",\"\",IF('Enrollment Form'!$G208='Enrollment Form'!$H208,\"Y\",\"N\")))","v":""},{"$f":"IF($B201=\"N\",\"\",IF(AND(COUNTIFS('Enrollment Form'!$H$11:$H$1000,'Enrollment Form'!$H208,'Enrollment Form'!$B$11:$B$1000,'Enrollment Form'!$B208)>1,'Enrollment Form'!$H208<>\"\"),\"N\",\"Y\"))","v":""},{"$f":"IF($B201=\"N\",\"\",IF(LEN('Enrollment Form'!$Y208)=0,\"\",IF(LEN('Enrollment Form'!$Y208)<>5,\"N\",\"Y\")))","v":""},{"$f":"IF($B201=\"N\",\"\",IF(LEN('Enrollment Form'!$AD208=0),\"\",IF(LEN('Enrollment Form'!$AD208)<>5,\"N\",\"Y\")))","v":""},{"$f":"IF($B201=\"N\",\"\",IF(LEN('Enrollment Form'!$BL208=0),\"\",IF(LEN('Enrollment Form'!$BL208)<>5,\"N\",\"Y\")))","v":""},{"$f":"IF($B201=\"N\",\"\",IF(LEN('Enrollment Form'!$AE208)=0,\"\",IF(LEN('Enrollment Form'!$AE208)<>10,\"N\",\"Y\")))","v":""},{"$f":"IF($B201=\"N\",\"\",IF(LEN('Enrollment Form'!$AF208)=0,\"\",IF(LEN('Enrollment Form'!$AF208)<>10,\"N\",\"Y\")))","v":""},{"$f":"IF('Enrollment Form'!$O208<>\"Graded\",\"-\",IF(AND('Enrollment Form'!$O208=\"Graded\",'Enrollment Form'!$AO208<>\"\"),\"Y\",\"N\"))","v":"-"},{"$f":"IF($B201=\"N\",\"\",IF(OR('Enrollment Form'!$B208<>\"Subscriber\",'Enrollment Form'!$C208=\"ROC\"),\"-\",IF(AND('Enrollment Form'!$B208=\"Subscriber\",'Enrollment Form'!$C208=\"Enroll\",'Enrollment Form'!$AJ208<>\"\"),\"Y\",\"N\")))","v":""},{"$f":"IF($B201=\"N\",\"\",IF(OR('Enrollment Form'!$B208<>\"Subscriber\",'Enrollment Form'!$C208=\"ROC\"),\"-\",IF(AND('Enrollment Form'!$B208=\"Subscriber\",'Enrollment Form'!$C208=\"Enroll\",'Enrollment Form'!$AK208<>\"\"),\"Y\",\"N\")))","v":""},{"$f":"IF($B201=\"N\",\"\",IF(OR('Enrollment Form'!$B208<>\"Subscriber\",'Enrollment Form'!$C208=\"ROC\"),\"-\",IF(AND('Enrollment Form'!$B208=\"Subscriber\",'Enrollment Form'!$C208=\"Enroll\",'Enrollment Form'!$AL208<>\"\"),\"Y\",\"N\")))","v":""},{"$f":"IF($B201=\"N\",\"\",IF(OR('Enrollment Form'!$B208<>\"Subscriber\",'Enrollment Form'!$C208=\"ROC\"),\"-\",IF(AND('Enrollment Form'!$B208=\"Subscriber\",'Enrollment Form'!$C208=\"Enroll\",'Enrollment Form'!$AM208<>\"\"),\"Y\",\"N\")))","v":""},{"$f":"IF($B201=\"N\",\"\",IF(OR('Enrollment Form'!$B208<>\"Subscriber\",'Enrollment Form'!$C208=\"ROC\"),\"-\",IF(AND('Enrollment Form'!$B208=\"Subscriber\",'Enrollment Form'!$C208=\"Enroll\",'Enrollment Form'!$AN208<>\"\"),\"Y\",\"N\")))","v":""},{"$f":"IF($B201=\"N\",\"\",IF(OR('Enrollment Form'!$B208<>\"Subscriber\",'Enrollment Form'!$C208=\"ROC\"),\"-\",IF(AND('Enrollment Form'!$B208=\"Subscriber\",'Enrollment Form'!$C208=\"Enroll\",'Enrollment Form'!$AP208<>\"\"),\"Y\",\"N\")))","v":""},{"$f":"IF($B201=\"N\",\"\",IF($Q201=\"-\",\"-\",IF(AND($Q201=\"Y\",'Enrollment Form'!$AP208=\"No\"),\"-\",IF(AND($Q201=\"Y\",'Enrollment Form'!$AP208=\"Yes\",'Enrollment Form'!$AQ208<>\"\"),\"Y\",\"N\"))))","v":""},{"$f":"IF($B201=\"N\",\"\",IF(OR('Enrollment Form'!$B208<>\"Subscriber\",'Enrollment Form'!$C208=\"ROC\"),\"-\",IF(AND('Enrollment Form'!$B208=\"Subscriber\",'Enrollment Form'!$C208=\"Enroll\",'Enrollment Form'!$CO208<>\"\"),\"Y\",\"N\")))","v":""},{"$f":"IF($B201=\"N\",\"\",IF($S201=\"-\",\"-\",IF(AND($S201=\"Y\",'Enrollment Form'!$CO208=\"No\"),\"-\",IF(AND($S201=\"Y\",'Enrollment Form'!$CO208=\"Yes\",'Enrollment Form'!$CP208<>\"\"),\"Y\",\"N\"))))","v":""},{"$f":"IF(OR('Enrollment Form'!$AV208=\"Yes\",'Enrollment Form'!$AV208=\"\"),\"-\",IF(AND('Enrollment Form'!$AV208=\"No\",ISERROR(FIND(\"HMO\",VLOOKUP('Enrollment Form'!G208,'Enrollment Form'!H$11:J$1000,3,FALSE),1))=FALSE,COUNTA('Enrollment Form'!$AW208:$AZ208)=4),\"Y\",\"N\"))","v":"-"},{"$f":"IF($B201=\"N\",\"\",IF('Enrollment Form'!$B208=\"Subscriber\",\"-\",IF(COUNTA('Enrollment Form'!$BE208,'Enrollment Form'!$BG208)=2,\"Y\",\"N\")))","v":""},{"$f":"IF($B201=\"N\",\"\",IF(OR('Enrollment Form'!$AU208=\"\",'Enrollment Form'!$AU208=\"No\"),\"-\",IF(AND('Enrollment Form'!$AU208=\"Yes\",COUNTA('Enrollment Form'!$CK208)=1),\"Y\",\"N\")))","v":""},{"$f":"IF(OR('Enrollment Form'!$CK208=\"\",'Enrollment Form'!$CK208=\"No\"),\"-\",IF(COUNTA('Enrollment Form'!$CM208:$CN208)=2,\"Y\",\"N\"))","v":"-"},{"$f":"IF($B201=\"N\",\"\",IF(COUNTIF('Enrollment Form'!$CZ208:$DO208,\"Other\")=COUNTA('Enrollment Form'!$DF208,'Enrollment Form'!$DA208,'Enrollment Form'!$DK208,'Enrollment Form'!$DP208),\"Y\",\"N\"))","v":""},{"$f":"IF($B201=\"N\",\"\",IF(OR('Enrollment Form'!B208<>\"Subscriber\",'Enrollment Form'!C208=\"ROC\",COUNTIF('Enrollment Form'!AS208:AT208,\"Yes\")>=1),\"-\",IF(AND('Enrollment Form'!C208=\"Enroll\",COUNTIF('Enrollment Form'!AS208:AT208,\"No\")=2,'Enrollment Form'!AU208=\"\"),\"N\",\"Y\")))","v":""},{"$f":"IF(OR(B201=\"N\",'Enrollment Form'!B208<>\"Subscriber\",'Enrollment Form'!C208=\"ROC\",'Enrollment Form'!O208<>\"Multiple of Salary\"),\"-\",IF(COUNTA('Enrollment Form'!T208:U208)<2,\"N\",\"Y\"))","v":"-"},{"$f":"IF(B201=\"N\",\"\",IF(OR('Enrollment Form'!C208=\"ROC\",'Enrollment Form'!B208<>\"Subscriber\",'Enrollment Form'!O208=\"Waive\",'Enrollment Form'!O208=\"\"),\"-\",IF('Enrollment Form'!P208=\"\",\"N\",\"Y\")))","v":""},{"$f":"IF($B201=\"N\",\"\",IF(AND('Enrollment Form'!$C208=\"ROC\",'Enrollment Form'!$DS208<>\"\"),\"Y\",IF(AND('Enrollment Form'!$C208=\"ROC\",'Enrollment Form'!$DS208=\"\"),\"N\",IF(AND('Enrollment Form'!$C208=\"Enroll\",'Enrollment Form'!$B208=\"Subscriber\",'Enrollment Form'!$CQ208=\"No\",'Enrollment Form'!$DS208=\"\"),\"N\",IF(AND('Enrollment Form'!$C208=\"Enroll\",'Enrollment Form'!$B208=\"Subscriber\",'Enrollment Form'!$CQ208=\"Yes\"),\"-\",\"Y\")))))","v":""},{"$f":"IF($B201=\"N\",\"\",IF(AND('Enrollment Form'!$C208=\"ROC\",'Enrollment Form'!$DT208<>\"\"),\"Y\",IF(AND('Enrollment Form'!$C208=\"ROC\",'Enrollment Form'!$DT208=\"\"),\"N\",IF(AND('Enrollment Form'!$C208=\"Enroll\",'Enrollment Form'!$B208=\"Subscriber\",'Enrollment Form'!$CQ208=\"No\",'Enrollment Form'!$DT208=\"\"),\"N\",IF(AND('Enrollment Form'!$C208=\"Enroll\",'Enrollment Form'!$B208=\"Subscriber\",'Enrollment Form'!$CQ208=\"Yes\"),\"-\",\"Y\")))))","v":""},{"$f":"IF('Enrollment Form'!AH208=\"\",\"\",IF(ISERROR(SEARCH(\".\",'Enrollment Form'!AH208,SEARCH(\"@\",'Enrollment Form'!AH208))),\"N\",\"Y\"))","v":""},{"$f":"IF(OR($B201=\"N\",'Enrollment Form'!$G208=\"\"),\"\",IF('Enrollment Form'!$B208<>\"Subscriber\",\"-\",IF(COUNTIF('Enrollment Form'!$AS208:$AT208,\"Yes\")=2,\"N\",\"Y\")))","v":""},{"$f":"IF(OR('Enrollment Form'!$CC208=\"\",'Enrollment Form'!$CC208=\"No\"),\"-\",IF(AND('Enrollment Form'!$CC208=\"Yes\",'Enrollment Form'!$CD208=\"\"),\"N\",\"Y\"))","v":"-"},{"$f":"IF(OR('Enrollment Form'!$CE208=\"\",'Enrollment Form'!$CE208=\"No\"),\"-\",IF(AND('Enrollment Form'!$CE208=\"Yes\",'Enrollment Form'!$CF208=\"\"),\"N\",\"Y\"))","v":"-"},{"$f":"IF(OR('Enrollment Form'!$CG208=\"\",'Enrollment Form'!$CG208=\"No\"),\"-\",IF(AND('Enrollment Form'!$CG208=\"Yes\",'Enrollment Form'!$CH208=\"\"),\"N\",\"Y\"))","v":"-"},{"$f":"IF(OR('Enrollment Form'!$CG208=\"\",'Enrollment Form'!$CG208=\"No\"),\"-\",IF(AND('Enrollment Form'!$CG208=\"Yes\",'Enrollment Form'!$CI208=\"\"),\"N\",\"Y\"))","v":"-"},{"$f":"IF('Enrollment Form'!B208<>\"Subscriber\",\"-\",IF(AND('Enrollment Form'!B208=\"Subscriber\",'Enrollment Form'!C208=\"Enroll\",'Enrollment Form'!AA208=\"\"),\"N\",\"Y\"))","v":"-"},{"$f":"IF(OR('Enrollment Form'!B208=\"Subscriber\",'Enrollment Form'!B208=\"\"),\"-\",IF('Enrollment Form'!BI208=\"\",\"N\",\"Y\"))","v":"-"},{"$f":"IF('Enrollment Form'!B208<>\"Subscriber\",\"-\",IF(AND('Enrollment Form'!B208=\"Subscriber\",'Enrollment Form'!G208=\"\"),\"N\",\"Y\"))","v":"-"},{"$f":"IF('Enrollment Form'!A208=\"\",\"\",IF('Enrollment Form'!B208=\"Subscriber\",\"-\",IF(AND('Enrollment Form'!B208<>\"Subscriber\",'Enrollment Form'!G208='Enrollment Form'!H208),\"N\",\"Y\")))","v":""},0]
[209,{"$f":"IF('Enrollment Form'!$A209<>\"\",\"Y\",\"N\")","v":"N"},{"$f":"IF(AND('Enrollment Form'!$B209=\"\",'Enrollment Form'!$C209<>\"\"),\"N\",IF($B202=\"N\",\"\",\"Y\"))","v":""},{"$f":"IF(OR($B202=\"N\",'Enrollment Form'!G209=\"\"),\"\",IF('Enrollment Form'!$B209<>\"Subscriber\",\"\",IF('Enrollment Form'!$G209='Enrollment Form'!$H209,\"Y\",\"N\")))","v":""},{"$f":"IF($B202=\"N\",\"\",IF(AND(COUNTIFS('Enrollment Form'!$H$11:$H$1000,'Enrollment Form'!$H209,'Enrollment Form'!$B$11:$B$1000,'Enrollment Form'!$B209)>1,'Enrollment Form'!$H209<>\"\"),\"N\",\"Y\"))","v":""},{"$f":"IF($B202=\"N\",\"\",IF(LEN('Enrollment Form'!$Y209)=0,\"\",IF(LEN('Enrollment Form'!$Y209)<>5,\"N\",\"Y\")))","v":""},{"$f":"IF($B202=\"N\",\"\",IF(LEN('Enrollment Form'!$AD209=0),\"\",IF(LEN('Enrollment Form'!$AD209)<>5,\"N\",\"Y\")))","v":""},{"$f":"IF($B202=\"N\",\"\",IF(LEN('Enrollment Form'!$BL209=0),\"\",IF(LEN('Enrollment Form'!$BL209)<>5,\"N\",\"Y\")))","v":""},{"$f":"IF($B202=\"N\",\"\",IF(LEN('Enrollment Form'!$AE209)=0,\"\",IF(LEN('Enrollment Form'!$AE209)<>10,\"N\",\"Y\")))","v":""},{"$f":"IF($B202=\"N\",\"\",IF(LEN('Enrollment Form'!$AF209)=0,\"\",IF(LEN('Enrollment Form'!$AF209)<>10,\"N\",\"Y\")))","v":""},{"$f":"IF('Enrollment Form'!$O209<>\"Graded\",\"-\",IF(AND('Enrollment Form'!$O209=\"Graded\",'Enrollment Form'!$AO209<>\"\"),\"Y\",\"N\"))","v":"-"},{"$f":"IF($B202=\"N\",\"\",IF(OR('Enrollment Form'!$B209<>\"Subscriber\",'Enrollment Form'!$C209=\"ROC\"),\"-\",IF(AND('Enrollment Form'!$B209=\"Subscriber\",'Enrollment Form'!$C209=\"Enroll\",'Enrollment Form'!$AJ209<>\"\"),\"Y\",\"N\")))","v":""},{"$f":"IF($B202=\"N\",\"\",IF(OR('Enrollment Form'!$B209<>\"Subscriber\",'Enrollment Form'!$C209=\"ROC\"),\"-\",IF(AND('Enrollment Form'!$B209=\"Subscriber\",'Enrollment Form'!$C209=\"Enroll\",'Enrollment Form'!$AK209<>\"\"),\"Y\",\"N\")))","v":""},{"$f":"IF($B202=\"N\",\"\",IF(OR('Enrollment Form'!$B209<>\"Subscriber\",'Enrollment Form'!$C209=\"ROC\"),\"-\",IF(AND('Enrollment Form'!$B209=\"Subscriber\",'Enrollment Form'!$C209=\"Enroll\",'Enrollment Form'!$AL209<>\"\"),\"Y\",\"N\")))","v":""},{"$f":"IF($B202=\"N\",\"\",IF(OR('Enrollment Form'!$B209<>\"Subscriber\",'Enrollment Form'!$C209=\"ROC\"),\"-\",IF(AND('Enrollment Form'!$B209=\"Subscriber\",'Enrollment Form'!$C209=\"Enroll\",'Enrollment Form'!$AM209<>\"\"),\"Y\",\"N\")))","v":""},{"$f":"IF($B202=\"N\",\"\",IF(OR('Enrollment Form'!$B209<>\"Subscriber\",'Enrollment Form'!$C209=\"ROC\"),\"-\",IF(AND('Enrollment Form'!$B209=\"Subscriber\",'Enrollment Form'!$C209=\"Enroll\",'Enrollment Form'!$AN209<>\"\"),\"Y\",\"N\")))","v":""},{"$f":"IF($B202=\"N\",\"\",IF(OR('Enrollment Form'!$B209<>\"Subscriber\",'Enrollment Form'!$C209=\"ROC\"),\"-\",IF(AND('Enrollment Form'!$B209=\"Subscriber\",'Enrollment Form'!$C209=\"Enroll\",'Enrollment Form'!$AP209<>\"\"),\"Y\",\"N\")))","v":""},{"$f":"IF($B202=\"N\",\"\",IF($Q202=\"-\",\"-\",IF(AND($Q202=\"Y\",'Enrollment Form'!$AP209=\"No\"),\"-\",IF(AND($Q202=\"Y\",'Enrollment Form'!$AP209=\"Yes\",'Enrollment Form'!$AQ209<>\"\"),\"Y\",\"N\"))))","v":""},{"$f":"IF($B202=\"N\",\"\",IF(OR('Enrollment Form'!$B209<>\"Subscriber\",'Enrollment Form'!$C209=\"ROC\"),\"-\",IF(AND('Enrollment Form'!$B209=\"Subscriber\",'Enrollment Form'!$C209=\"Enroll\",'Enrollment Form'!$CO209<>\"\"),\"Y\",\"N\")))","v":""},{"$f":"IF($B202=\"N\",\"\",IF($S202=\"-\",\"-\",IF(AND($S202=\"Y\",'Enrollment Form'!$CO209=\"No\"),\"-\",IF(AND($S202=\"Y\",'Enrollment Form'!$CO209=\"Yes\",'Enrollment Form'!$CP209<>\"\"),\"Y\",\"N\"))))","v":""},{"$f":"IF(OR('Enrollment Form'!$AV209=\"Yes\",'Enrollment Form'!$AV209=\"\"),\"-\",IF(AND('Enrollment Form'!$AV209=\"No\",ISERROR(FIND(\"HMO\",VLOOKUP('Enrollment Form'!G209,'Enrollment Form'!H$11:J$1000,3,FALSE),1))=FALSE,COUNTA('Enrollment Form'!$AW209:$AZ209)=4),\"Y\",\"N\"))","v":"-"},{"$f":"IF($B202=\"N\",\"\",IF('Enrollment Form'!$B209=\"Subscriber\",\"-\",IF(COUNTA('Enrollment Form'!$BE209,'Enrollment Form'!$BG209)=2,\"Y\",\"N\")))","v":""},{"$f":"IF($B202=\"N\",\"\",IF(OR('Enrollment Form'!$AU209=\"\",'Enrollment Form'!$AU209=\"No\"),\"-\",IF(AND('Enrollment Form'!$AU209=\"Yes\",COUNTA('Enrollment Form'!$CK209)=1),\"Y\",\"N\")))","v":""},{"$f":"IF(OR('Enrollment Form'!$CK209=\"\",'Enrollment Form'!$CK209=\"No\"),\"-\",IF(COUNTA('Enrollment Form'!$CM209:$CN209)=2,\"Y\",\"N\"))","v":"-"},{"$f":"IF($B202=\"N\",\"\",IF(COUNTIF('Enrollment Form'!$CZ209:$DO209,\"Other\")=COUNTA('Enrollment Form'!$DF209,'Enrollment Form'!$DA209,'Enrollment Form'!$DK209,'Enrollment Form'!$DP209),\"Y\",\"N\"))","v":""},{"$f":"IF($B202=\"N\",\"\",IF(OR('Enrollment Form'!B209<>\"Subscriber\",'Enrollment Form'!C209=\"ROC\",COUNTIF('Enrollment Form'!AS209:AT209,\"Yes\")>=1),\"-\",IF(AND('Enrollment Form'!C209=\"Enroll\",COUNTIF('Enrollment Form'!AS209:AT209,\"No\")=2,'Enrollment Form'!AU209=\"\"),\"N\",\"Y\")))","v":""},{"$f":"IF(OR(B202=\"N\",'Enrollment Form'!B209<>\"Subscriber\",'Enrollment Form'!C209=\"ROC\",'Enrollment Form'!O209<>\"Multiple of Salary\"),\"-\",IF(COUNTA('Enrollment Form'!T209:U209)<2,\"N\",\"Y\"))","v":"-"},{"$f":"IF(B202=\"N\",\"\",IF(OR('Enrollment Form'!C209=\"ROC\",'Enrollment Form'!B209<>\"Subscriber\",'Enrollment Form'!O209=\"Waive\",'Enrollment Form'!O209=\"\"),\"-\",IF('Enrollment Form'!P209=\"\",\"N\",\"Y\")))","v":""},{"$f":"IF($B202=\"N\",\"\",IF(AND('Enrollment Form'!$C209=\"ROC\",'Enrollment Form'!$DS209<>\"\"),\"Y\",IF(AND('Enrollment Form'!$C209=\"ROC\",'Enrollment Form'!$DS209=\"\"),\"N\",IF(AND('Enrollment Form'!$C209=\"Enroll\",'Enrollment Form'!$B209=\"Subscriber\",'Enrollment Form'!$CQ209=\"No\",'Enrollment Form'!$DS209=\"\"),\"N\",IF(AND('Enrollment Form'!$C209=\"Enroll\",'Enrollment Form'!$B209=\"Subscriber\",'Enrollment Form'!$CQ209=\"Yes\"),\"-\",\"Y\")))))","v":""},{"$f":"IF($B202=\"N\",\"\",IF(AND('Enrollment Form'!$C209=\"ROC\",'Enrollment Form'!$DT209<>\"\"),\"Y\",IF(AND('Enrollment Form'!$C209=\"ROC\",'Enrollment Form'!$DT209=\"\"),\"N\",IF(AND('Enrollment Form'!$C209=\"Enroll\",'Enrollment Form'!$B209=\"Subscriber\",'Enrollment Form'!$CQ209=\"No\",'Enrollment Form'!$DT209=\"\"),\"N\",IF(AND('Enrollment Form'!$C209=\"Enroll\",'Enrollment Form'!$B209=\"Subscriber\",'Enrollment Form'!$CQ209=\"Yes\"),\"-\",\"Y\")))))","v":""},{"$f":"IF('Enrollment Form'!AH209=\"\",\"\",IF(ISERROR(SEARCH(\".\",'Enrollment Form'!AH209,SEARCH(\"@\",'Enrollment Form'!AH209))),\"N\",\"Y\"))","v":""},{"$f":"IF(OR($B202=\"N\",'Enrollment Form'!$G209=\"\"),\"\",IF('Enrollment Form'!$B209<>\"Subscriber\",\"-\",IF(COUNTIF('Enrollment Form'!$AS209:$AT209,\"Yes\")=2,\"N\",\"Y\")))","v":""},{"$f":"IF(OR('Enrollment Form'!$CC209=\"\",'Enrollment Form'!$CC209=\"No\"),\"-\",IF(AND('Enrollment Form'!$CC209=\"Yes\",'Enrollment Form'!$CD209=\"\"),\"N\",\"Y\"))","v":"-"},{"$f":"IF(OR('Enrollment Form'!$CE209=\"\",'Enrollment Form'!$CE209=\"No\"),\"-\",IF(AND('Enrollment Form'!$CE209=\"Yes\",'Enrollment Form'!$CF209=\"\"),\"N\",\"Y\"))","v":"-"},{"$f":"IF(OR('Enrollment Form'!$CG209=\"\",'Enrollment Form'!$CG209=\"No\"),\"-\",IF(AND('Enrollment Form'!$CG209=\"Yes\",'Enrollment Form'!$CH209=\"\"),\"N\",\"Y\"))","v":"-"},{"$f":"IF(OR('Enrollment Form'!$CG209=\"\",'Enrollment Form'!$CG209=\"No\"),\"-\",IF(AND('Enrollment Form'!$CG209=\"Yes\",'Enrollment Form'!$CI209=\"\"),\"N\",\"Y\"))","v":"-"},{"$f":"IF('Enrollment Form'!B209<>\"Subscriber\",\"-\",IF(AND('Enrollment Form'!B209=\"Subscriber\",'Enrollment Form'!C209=\"Enroll\",'Enrollment Form'!AA209=\"\"),\"N\",\"Y\"))","v":"-"},{"$f":"IF(OR('Enrollment Form'!B209=\"Subscriber\",'Enrollment Form'!B209=\"\"),\"-\",IF('Enrollment Form'!BI209=\"\",\"N\",\"Y\"))","v":"-"},{"$f":"IF('Enrollment Form'!B209<>\"Subscriber\",\"-\",IF(AND('Enrollment Form'!B209=\"Subscriber\",'Enrollment Form'!G209=\"\"),\"N\",\"Y\"))","v":"-"},{"$f":"IF('Enrollment Form'!A209=\"\",\"\",IF('Enrollment Form'!B209=\"Subscriber\",\"-\",IF(AND('Enrollment Form'!B209<>\"Subscriber\",'Enrollment Form'!G209='Enrollment Form'!H209),\"N\",\"Y\")))","v":""},0]
[210,{"$f":"IF('Enrollment Form'!$A210<>\"\",\"Y\",\"N\")","v":"N"},{"$f":"IF(AND('Enrollment Form'!$B210=\"\",'Enrollment Form'!$C210<>\"\"),\"N\",IF($B203=\"N\",\"\",\"Y\"))","v":""},{"$f":"IF(OR($B203=\"N\",'Enrollment Form'!G210=\"\"),\"\",IF('Enrollment Form'!$B210<>\"Subscriber\",\"\",IF('Enrollment Form'!$G210='Enrollment Form'!$H210,\"Y\",\"N\")))","v":""},{"$f":"IF($B203=\"N\",\"\",IF(AND(COUNTIFS('Enrollment Form'!$H$11:$H$1000,'Enrollment Form'!$H210,'Enrollment Form'!$B$11:$B$1000,'Enrollment Form'!$B210)>1,'Enrollment Form'!$H210<>\"\"),\"N\",\"Y\"))","v":""},{"$f":"IF($B203=\"N\",\"\",IF(LEN('Enrollment Form'!$Y210)=0,\"\",IF(LEN('Enrollment Form'!$Y210)<>5,\"N\",\"Y\")))","v":""},{"$f":"IF($B203=\"N\",\"\",IF(LEN('Enrollment Form'!$AD210=0),\"\",IF(LEN('Enrollment Form'!$AD210)<>5,\"N\",\"Y\")))","v":""},{"$f":"IF($B203=\"N\",\"\",IF(LEN('Enrollment Form'!$BL210=0),\"\",IF(LEN('Enrollment Form'!$BL210)<>5,\"N\",\"Y\")))","v":""},{"$f":"IF($B203=\"N\",\"\",IF(LEN('Enrollment Form'!$AE210)=0,\"\",IF(LEN('Enrollment Form'!$AE210)<>10,\"N\",\"Y\")))","v":""},{"$f":"IF($B203=\"N\",\"\",IF(LEN('Enrollment Form'!$AF210)=0,\"\",IF(LEN('Enrollment Form'!$AF210)<>10,\"N\",\"Y\")))","v":""},{"$f":"IF('Enrollment Form'!$O210<>\"Graded\",\"-\",IF(AND('Enrollment Form'!$O210=\"Graded\",'Enrollment Form'!$AO210<>\"\"),\"Y\",\"N\"))","v":"-"},{"$f":"IF($B203=\"N\",\"\",IF(OR('Enrollment Form'!$B210<>\"Subscriber\",'Enrollment Form'!$C210=\"ROC\"),\"-\",IF(AND('Enrollment Form'!$B210=\"Subscriber\",'Enrollment Form'!$C210=\"Enroll\",'Enrollment Form'!$AJ210<>\"\"),\"Y\",\"N\")))","v":""},{"$f":"IF($B203=\"N\",\"\",IF(OR('Enrollment Form'!$B210<>\"Subscriber\",'Enrollment Form'!$C210=\"ROC\"),\"-\",IF(AND('Enrollment Form'!$B210=\"Subscriber\",'Enrollment Form'!$C210=\"Enroll\",'Enrollment Form'!$AK210<>\"\"),\"Y\",\"N\")))","v":""},{"$f":"IF($B203=\"N\",\"\",IF(OR('Enrollment Form'!$B210<>\"Subscriber\",'Enrollment Form'!$C210=\"ROC\"),\"-\",IF(AND('Enrollment Form'!$B210=\"Subscriber\",'Enrollment Form'!$C210=\"Enroll\",'Enrollment Form'!$AL210<>\"\"),\"Y\",\"N\")))","v":""},{"$f":"IF($B203=\"N\",\"\",IF(OR('Enrollment Form'!$B210<>\"Subscriber\",'Enrollment Form'!$C210=\"ROC\"),\"-\",IF(AND('Enrollment Form'!$B210=\"Subscriber\",'Enrollment Form'!$C210=\"Enroll\",'Enrollment Form'!$AM210<>\"\"),\"Y\",\"N\")))","v":""},{"$f":"IF($B203=\"N\",\"\",IF(OR('Enrollment Form'!$B210<>\"Subscriber\",'Enrollment Form'!$C210=\"ROC\"),\"-\",IF(AND('Enrollment Form'!$B210=\"Subscriber\",'Enrollment Form'!$C210=\"Enroll\",'Enrollment Form'!$AN210<>\"\"),\"Y\",\"N\")))","v":""},{"$f":"IF($B203=\"N\",\"\",IF(OR('Enrollment Form'!$B210<>\"Subscriber\",'Enrollment Form'!$C210=\"ROC\"),\"-\",IF(AND('Enrollment Form'!$B210=\"Subscriber\",'Enrollment Form'!$C210=\"Enroll\",'Enrollment Form'!$AP210<>\"\"),\"Y\",\"N\")))","v":""},{"$f":"IF($B203=\"N\",\"\",IF($Q203=\"-\",\"-\",IF(AND($Q203=\"Y\",'Enrollment Form'!$AP210=\"No\"),\"-\",IF(AND($Q203=\"Y\",'Enrollment Form'!$AP210=\"Yes\",'Enrollment Form'!$AQ210<>\"\"),\"Y\",\"N\"))))","v":""},{"$f":"IF($B203=\"N\",\"\",IF(OR('Enrollment Form'!$B210<>\"Subscriber\",'Enrollment Form'!$C210=\"ROC\"),\"-\",IF(AND('Enrollment Form'!$B210=\"Subscriber\",'Enrollment Form'!$C210=\"Enroll\",'Enrollment Form'!$CO210<>\"\"),\"Y\",\"N\")))","v":""},{"$f":"IF($B203=\"N\",\"\",IF($S203=\"-\",\"-\",IF(AND($S203=\"Y\",'Enrollment Form'!$CO210=\"No\"),\"-\",IF(AND($S203=\"Y\",'Enrollment Form'!$CO210=\"Yes\",'Enrollment Form'!$CP210<>\"\"),\"Y\",\"N\"))))","v":""},{"$f":"IF(OR('Enrollment Form'!$AV210=\"Yes\",'Enrollment Form'!$AV210=\"\"),\"-\",IF(AND('Enrollment Form'!$AV210=\"No\",ISERROR(FIND(\"HMO\",VLOOKUP('Enrollment Form'!G210,'Enrollment Form'!H$11:J$1000,3,FALSE),1))=FALSE,COUNTA('Enrollment Form'!$AW210:$AZ210)=4),\"Y\",\"N\"))","v":"-"},{"$f":"IF($B203=\"N\",\"\",IF('Enrollment Form'!$B210=\"Subscriber\",\"-\",IF(COUNTA('Enrollment Form'!$BE210,'Enrollment Form'!$BG210)=2,\"Y\",\"N\")))","v":""},{"$f":"IF($B203=\"N\",\"\",IF(OR('Enrollment Form'!$AU210=\"\",'Enrollment Form'!$AU210=\"No\"),\"-\",IF(AND('Enrollment Form'!$AU210=\"Yes\",COUNTA('Enrollment Form'!$CK210)=1),\"Y\",\"N\")))","v":""},{"$f":"IF(OR('Enrollment Form'!$CK210=\"\",'Enrollment Form'!$CK210=\"No\"),\"-\",IF(COUNTA('Enrollment Form'!$CM210:$CN210)=2,\"Y\",\"N\"))","v":"-"},{"$f":"IF($B203=\"N\",\"\",IF(COUNTIF('Enrollment Form'!$CZ210:$DO210,\"Other\")=COUNTA('Enrollment Form'!$DF210,'Enrollment Form'!$DA210,'Enrollment Form'!$DK210,'Enrollment Form'!$DP210),\"Y\",\"N\"))","v":""},{"$f":"IF($B203=\"N\",\"\",IF(OR('Enrollment Form'!B210<>\"Subscriber\",'Enrollment Form'!C210=\"ROC\",COUNTIF('Enrollment Form'!AS210:AT210,\"Yes\")>=1),\"-\",IF(AND('Enrollment Form'!C210=\"Enroll\",COUNTIF('Enrollment Form'!AS210:AT210,\"No\")=2,'Enrollment Form'!AU210=\"\"),\"N\",\"Y\")))","v":""},{"$f":"IF(OR(B203=\"N\",'Enrollment Form'!B210<>\"Subscriber\",'Enrollment Form'!C210=\"ROC\",'Enrollment Form'!O210<>\"Multiple of Salary\"),\"-\",IF(COUNTA('Enrollment Form'!T210:U210)<2,\"N\",\"Y\"))","v":"-"},{"$f":"IF(B203=\"N\",\"\",IF(OR('Enrollment Form'!C210=\"ROC\",'Enrollment Form'!B210<>\"Subscriber\",'Enrollment Form'!O210=\"Waive\",'Enrollment Form'!O210=\"\"),\"-\",IF('Enrollment Form'!P210=\"\",\"N\",\"Y\")))","v":""},{"$f":"IF($B203=\"N\",\"\",IF(AND('Enrollment Form'!$C210=\"ROC\",'Enrollment Form'!$DS210<>\"\"),\"Y\",IF(AND('Enrollment Form'!$C210=\"ROC\",'Enrollment Form'!$DS210=\"\"),\"N\",IF(AND('Enrollment Form'!$C210=\"Enroll\",'Enrollment Form'!$B210=\"Subscriber\",'Enrollment Form'!$CQ210=\"No\",'Enrollment Form'!$DS210=\"\"),\"N\",IF(AND('Enrollment Form'!$C210=\"Enroll\",'Enrollment Form'!$B210=\"Subscriber\",'Enrollment Form'!$CQ210=\"Yes\"),\"-\",\"Y\")))))","v":""},{"$f":"IF($B203=\"N\",\"\",IF(AND('Enrollment Form'!$C210=\"ROC\",'Enrollment Form'!$DT210<>\"\"),\"Y\",IF(AND('Enrollment Form'!$C210=\"ROC\",'Enrollment Form'!$DT210=\"\"),\"N\",IF(AND('Enrollment Form'!$C210=\"Enroll\",'Enrollment Form'!$B210=\"Subscriber\",'Enrollment Form'!$CQ210=\"No\",'Enrollment Form'!$DT210=\"\"),\"N\",IF(AND('Enrollment Form'!$C210=\"Enroll\",'Enrollment Form'!$B210=\"Subscriber\",'Enrollment Form'!$CQ210=\"Yes\"),\"-\",\"Y\")))))","v":""},{"$f":"IF('Enrollment Form'!AH210=\"\",\"\",IF(ISERROR(SEARCH(\".\",'Enrollment Form'!AH210,SEARCH(\"@\",'Enrollment Form'!AH210))),\"N\",\"Y\"))","v":""},{"$f":"IF(OR($B203=\"N\",'Enrollment Form'!$G210=\"\"),\"\",IF('Enrollment Form'!$B210<>\"Subscriber\",\"-\",IF(COUNTIF('Enrollment Form'!$AS210:$AT210,\"Yes\")=2,\"N\",\"Y\")))","v":""},{"$f":"IF(OR('Enrollment Form'!$CC210=\"\",'Enrollment Form'!$CC210=\"No\"),\"-\",IF(AND('Enrollment Form'!$CC210=\"Yes\",'Enrollment Form'!$CD210=\"\"),\"N\",\"Y\"))","v":"-"},{"$f":"IF(OR('Enrollment Form'!$CE210=\"\",'Enrollment Form'!$CE210=\"No\"),\"-\",IF(AND('Enrollment Form'!$CE210=\"Yes\",'Enrollment Form'!$CF210=\"\"),\"N\",\"Y\"))","v":"-"},{"$f":"IF(OR('Enrollment Form'!$CG210=\"\",'Enrollment Form'!$CG210=\"No\"),\"-\",IF(AND('Enrollment Form'!$CG210=\"Yes\",'Enrollment Form'!$CH210=\"\"),\"N\",\"Y\"))","v":"-"},{"$f":"IF(OR('Enrollment Form'!$CG210=\"\",'Enrollment Form'!$CG210=\"No\"),\"-\",IF(AND('Enrollment Form'!$CG210=\"Yes\",'Enrollment Form'!$CI210=\"\"),\"N\",\"Y\"))","v":"-"},{"$f":"IF('Enrollment Form'!B210<>\"Subscriber\",\"-\",IF(AND('Enrollment Form'!B210=\"Subscriber\",'Enrollment Form'!C210=\"Enroll\",'Enrollment Form'!AA210=\"\"),\"N\",\"Y\"))","v":"-"},{"$f":"IF(OR('Enrollment Form'!B210=\"Subscriber\",'Enrollment Form'!B210=\"\"),\"-\",IF('Enrollment Form'!BI210=\"\",\"N\",\"Y\"))","v":"-"},{"$f":"IF('Enrollment Form'!B210<>\"Subscriber\",\"-\",IF(AND('Enrollment Form'!B210=\"Subscriber\",'Enrollment Form'!G210=\"\"),\"N\",\"Y\"))","v":"-"},{"$f":"IF('Enrollment Form'!A210=\"\",\"\",IF('Enrollment Form'!B210=\"Subscriber\",\"-\",IF(AND('Enrollment Form'!B210<>\"Subscriber\",'Enrollment Form'!G210='Enrollment Form'!H210),\"N\",\"Y\")))","v":""},0]
[211,{"$f":"IF('Enrollment Form'!$A211<>\"\",\"Y\",\"N\")","v":"N"},{"$f":"IF(AND('Enrollment Form'!$B211=\"\",'Enrollment Form'!$C211<>\"\"),\"N\",IF($B204=\"N\",\"\",\"Y\"))","v":""},{"$f":"IF(OR($B204=\"N\",'Enrollment Form'!G211=\"\"),\"\",IF('Enrollment Form'!$B211<>\"Subscriber\",\"\",IF('Enrollment Form'!$G211='Enrollment Form'!$H211,\"Y\",\"N\")))","v":""},{"$f":"IF($B204=\"N\",\"\",IF(AND(COUNTIFS('Enrollment Form'!$H$11:$H$1000,'Enrollment Form'!$H211,'Enrollment Form'!$B$11:$B$1000,'Enrollment Form'!$B211)>1,'Enrollment Form'!$H211<>\"\"),\"N\",\"Y\"))","v":""},{"$f":"IF($B204=\"N\",\"\",IF(LEN('Enrollment Form'!$Y211)=0,\"\",IF(LEN('Enrollment Form'!$Y211)<>5,\"N\",\"Y\")))","v":""},{"$f":"IF($B204=\"N\",\"\",IF(LEN('Enrollment Form'!$AD211=0),\"\",IF(LEN('Enrollment Form'!$AD211)<>5,\"N\",\"Y\")))","v":""},{"$f":"IF($B204=\"N\",\"\",IF(LEN('Enrollment Form'!$BL211=0),\"\",IF(LEN('Enrollment Form'!$BL211)<>5,\"N\",\"Y\")))","v":""},{"$f":"IF($B204=\"N\",\"\",IF(LEN('Enrollment Form'!$AE211)=0,\"\",IF(LEN('Enrollment Form'!$AE211)<>10,\"N\",\"Y\")))","v":""},{"$f":"IF($B204=\"N\",\"\",IF(LEN('Enrollment Form'!$AF211)=0,\"\",IF(LEN('Enrollment Form'!$AF211)<>10,\"N\",\"Y\")))","v":""},{"$f":"IF('Enrollment Form'!$O211<>\"Graded\",\"-\",IF(AND('Enrollment Form'!$O211=\"Graded\",'Enrollment Form'!$AO211<>\"\"),\"Y\",\"N\"))","v":"-"},{"$f":"IF($B204=\"N\",\"\",IF(OR('Enrollment Form'!$B211<>\"Subscriber\",'Enrollment Form'!$C211=\"ROC\"),\"-\",IF(AND('Enrollment Form'!$B211=\"Subscriber\",'Enrollment Form'!$C211=\"Enroll\",'Enrollment Form'!$AJ211<>\"\"),\"Y\",\"N\")))","v":""},{"$f":"IF($B204=\"N\",\"\",IF(OR('Enrollment Form'!$B211<>\"Subscriber\",'Enrollment Form'!$C211=\"ROC\"),\"-\",IF(AND('Enrollment Form'!$B211=\"Subscriber\",'Enrollment Form'!$C211=\"Enroll\",'Enrollment Form'!$AK211<>\"\"),\"Y\",\"N\")))","v":""},{"$f":"IF($B204=\"N\",\"\",IF(OR('Enrollment Form'!$B211<>\"Subscriber\",'Enrollment Form'!$C211=\"ROC\"),\"-\",IF(AND('Enrollment Form'!$B211=\"Subscriber\",'Enrollment Form'!$C211=\"Enroll\",'Enrollment Form'!$AL211<>\"\"),\"Y\",\"N\")))","v":""},{"$f":"IF($B204=\"N\",\"\",IF(OR('Enrollment Form'!$B211<>\"Subscriber\",'Enrollment Form'!$C211=\"ROC\"),\"-\",IF(AND('Enrollment Form'!$B211=\"Subscriber\",'Enrollment Form'!$C211=\"Enroll\",'Enrollment Form'!$AM211<>\"\"),\"Y\",\"N\")))","v":""},{"$f":"IF($B204=\"N\",\"\",IF(OR('Enrollment Form'!$B211<>\"Subscriber\",'Enrollment Form'!$C211=\"ROC\"),\"-\",IF(AND('Enrollment Form'!$B211=\"Subscriber\",'Enrollment Form'!$C211=\"Enroll\",'Enrollment Form'!$AN211<>\"\"),\"Y\",\"N\")))","v":""},{"$f":"IF($B204=\"N\",\"\",IF(OR('Enrollment Form'!$B211<>\"Subscriber\",'Enrollment Form'!$C211=\"ROC\"),\"-\",IF(AND('Enrollment Form'!$B211=\"Subscriber\",'Enrollment Form'!$C211=\"Enroll\",'Enrollment Form'!$AP211<>\"\"),\"Y\",\"N\")))","v":""},{"$f":"IF($B204=\"N\",\"\",IF($Q204=\"-\",\"-\",IF(AND($Q204=\"Y\",'Enrollment Form'!$AP211=\"No\"),\"-\",IF(AND($Q204=\"Y\",'Enrollment Form'!$AP211=\"Yes\",'Enrollment Form'!$AQ211<>\"\"),\"Y\",\"N\"))))","v":""},{"$f":"IF($B204=\"N\",\"\",IF(OR('Enrollment Form'!$B211<>\"Subscriber\",'Enrollment Form'!$C211=\"ROC\"),\"-\",IF(AND('Enrollment Form'!$B211=\"Subscriber\",'Enrollment Form'!$C211=\"Enroll\",'Enrollment Form'!$CO211<>\"\"),\"Y\",\"N\")))","v":""},{"$f":"IF($B204=\"N\",\"\",IF($S204=\"-\",\"-\",IF(AND($S204=\"Y\",'Enrollment Form'!$CO211=\"No\"),\"-\",IF(AND($S204=\"Y\",'Enrollment Form'!$CO211=\"Yes\",'Enrollment Form'!$CP211<>\"\"),\"Y\",\"N\"))))","v":""},{"$f":"IF(OR('Enrollment Form'!$AV211=\"Yes\",'Enrollment Form'!$AV211=\"\"),\"-\",IF(AND('Enrollment Form'!$AV211=\"No\",ISERROR(FIND(\"HMO\",VLOOKUP('Enrollment Form'!G211,'Enrollment Form'!H$11:J$1000,3,FALSE),1))=FALSE,COUNTA('Enrollment Form'!$AW211:$AZ211)=4),\"Y\",\"N\"))","v":"-"},{"$f":"IF($B204=\"N\",\"\",IF('Enrollment Form'!$B211=\"Subscriber\",\"-\",IF(COUNTA('Enrollment Form'!$BE211,'Enrollment Form'!$BG211)=2,\"Y\",\"N\")))","v":""},{"$f":"IF($B204=\"N\",\"\",IF(OR('Enrollment Form'!$AU211=\"\",'Enrollment Form'!$AU211=\"No\"),\"-\",IF(AND('Enrollment Form'!$AU211=\"Yes\",COUNTA('Enrollment Form'!$CK211)=1),\"Y\",\"N\")))","v":""},{"$f":"IF(OR('Enrollment Form'!$CK211=\"\",'Enrollment Form'!$CK211=\"No\"),\"-\",IF(COUNTA('Enrollment Form'!$CM211:$CN211)=2,\"Y\",\"N\"))","v":"-"},{"$f":"IF($B204=\"N\",\"\",IF(COUNTIF('Enrollment Form'!$CZ211:$DO211,\"Other\")=COUNTA('Enrollment Form'!$DF211,'Enrollment Form'!$DA211,'Enrollment Form'!$DK211,'Enrollment Form'!$DP211),\"Y\",\"N\"))","v":""},{"$f":"IF($B204=\"N\",\"\",IF(OR('Enrollment Form'!B211<>\"Subscriber\",'Enrollment Form'!C211=\"ROC\",COUNTIF('Enrollment Form'!AS211:AT211,\"Yes\")>=1),\"-\",IF(AND('Enrollment Form'!C211=\"Enroll\",COUNTIF('Enrollment Form'!AS211:AT211,\"No\")=2,'Enrollment Form'!AU211=\"\"),\"N\",\"Y\")))","v":""},{"$f":"IF(OR(B204=\"N\",'Enrollment Form'!B211<>\"Subscriber\",'Enrollment Form'!C211=\"ROC\",'Enrollment Form'!O211<>\"Multiple of Salary\"),\"-\",IF(COUNTA('Enrollment Form'!T211:U211)<2,\"N\",\"Y\"))","v":"-"},{"$f":"IF(B204=\"N\",\"\",IF(OR('Enrollment Form'!C211=\"ROC\",'Enrollment Form'!B211<>\"Subscriber\",'Enrollment Form'!O211=\"Waive\",'Enrollment Form'!O211=\"\"),\"-\",IF('Enrollment Form'!P211=\"\",\"N\",\"Y\")))","v":""},{"$f":"IF($B204=\"N\",\"\",IF(AND('Enrollment Form'!$C211=\"ROC\",'Enrollment Form'!$DS211<>\"\"),\"Y\",IF(AND('Enrollment Form'!$C211=\"ROC\",'Enrollment Form'!$DS211=\"\"),\"N\",IF(AND('Enrollment Form'!$C211=\"Enroll\",'Enrollment Form'!$B211=\"Subscriber\",'Enrollment Form'!$CQ211=\"No\",'Enrollment Form'!$DS211=\"\"),\"N\",IF(AND('Enrollment Form'!$C211=\"Enroll\",'Enrollment Form'!$B211=\"Subscriber\",'Enrollment Form'!$CQ211=\"Yes\"),\"-\",\"Y\")))))","v":""},{"$f":"IF($B204=\"N\",\"\",IF(AND('Enrollment Form'!$C211=\"ROC\",'Enrollment Form'!$DT211<>\"\"),\"Y\",IF(AND('Enrollment Form'!$C211=\"ROC\",'Enrollment Form'!$DT211=\"\"),\"N\",IF(AND('Enrollment Form'!$C211=\"Enroll\",'Enrollment Form'!$B211=\"Subscriber\",'Enrollment Form'!$CQ211=\"No\",'Enrollment Form'!$DT211=\"\"),\"N\",IF(AND('Enrollment Form'!$C211=\"Enroll\",'Enrollment Form'!$B211=\"Subscriber\",'Enrollment Form'!$CQ211=\"Yes\"),\"-\",\"Y\")))))","v":""},{"$f":"IF('Enrollment Form'!AH211=\"\",\"\",IF(ISERROR(SEARCH(\".\",'Enrollment Form'!AH211,SEARCH(\"@\",'Enrollment Form'!AH211))),\"N\",\"Y\"))","v":""},{"$f":"IF(OR($B204=\"N\",'Enrollment Form'!$G211=\"\"),\"\",IF('Enrollment Form'!$B211<>\"Subscriber\",\"-\",IF(COUNTIF('Enrollment Form'!$AS211:$AT211,\"Yes\")=2,\"N\",\"Y\")))","v":""},{"$f":"IF(OR('Enrollment Form'!$CC211=\"\",'Enrollment Form'!$CC211=\"No\"),\"-\",IF(AND('Enrollment Form'!$CC211=\"Yes\",'Enrollment Form'!$CD211=\"\"),\"N\",\"Y\"))","v":"-"},{"$f":"IF(OR('Enrollment Form'!$CE211=\"\",'Enrollment Form'!$CE211=\"No\"),\"-\",IF(AND('Enrollment Form'!$CE211=\"Yes\",'Enrollment Form'!$CF211=\"\"),\"N\",\"Y\"))","v":"-"},{"$f":"IF(OR('Enrollment Form'!$CG211=\"\",'Enrollment Form'!$CG211=\"No\"),\"-\",IF(AND('Enrollment Form'!$CG211=\"Yes\",'Enrollment Form'!$CH211=\"\"),\"N\",\"Y\"))","v":"-"},{"$f":"IF(OR('Enrollment Form'!$CG211=\"\",'Enrollment Form'!$CG211=\"No\"),\"-\",IF(AND('Enrollment Form'!$CG211=\"Yes\",'Enrollment Form'!$CI211=\"\"),\"N\",\"Y\"))","v":"-"},{"$f":"IF('Enrollment Form'!B211<>\"Subscriber\",\"-\",IF(AND('Enrollment Form'!B211=\"Subscriber\",'Enrollment Form'!C211=\"Enroll\",'Enrollment Form'!AA211=\"\"),\"N\",\"Y\"))","v":"-"},{"$f":"IF(OR('Enrollment Form'!B211=\"Subscriber\",'Enrollment Form'!B211=\"\"),\"-\",IF('Enrollment Form'!BI211=\"\",\"N\",\"Y\"))","v":"-"},{"$f":"IF('Enrollment Form'!B211<>\"Subscriber\",\"-\",IF(AND('Enrollment Form'!B211=\"Subscriber\",'Enrollment Form'!G211=\"\"),\"N\",\"Y\"))","v":"-"},{"$f":"IF('Enrollment Form'!A211=\"\",\"\",IF('Enrollment Form'!B211=\"Subscriber\",\"-\",IF(AND('Enrollment Form'!B211<>\"Subscriber\",'Enrollment Form'!G211='Enrollment Form'!H211),\"N\",\"Y\")))","v":""},0]
[212,{"$f":"IF('Enrollment Form'!$A212<>\"\",\"Y\",\"N\")","v":"N"},{"$f":"IF(AND('Enrollment Form'!$B212=\"\",'Enrollment Form'!$C212<>\"\"),\"N\",IF($B205=\"N\",\"\",\"Y\"))","v":""},{"$f":"IF(OR($B205=\"N\",'Enrollment Form'!G212=\"\"),\"\",IF('Enrollment Form'!$B212<>\"Subscriber\",\"\",IF('Enrollment Form'!$G212='Enrollment Form'!$H212,\"Y\",\"N\")))","v":""},{"$f":"IF($B205=\"N\",\"\",IF(AND(COUNTIFS('Enrollment Form'!$H$11:$H$1000,'Enrollment Form'!$H212,'Enrollment Form'!$B$11:$B$1000,'Enrollment Form'!$B212)>1,'Enrollment Form'!$H212<>\"\"),\"N\",\"Y\"))","v":""},{"$f":"IF($B205=\"N\",\"\",IF(LEN('Enrollment Form'!$Y212)=0,\"\",IF(LEN('Enrollment Form'!$Y212)<>5,\"N\",\"Y\")))","v":""},{"$f":"IF($B205=\"N\",\"\",IF(LEN('Enrollment Form'!$AD212=0),\"\",IF(LEN('Enrollment Form'!$AD212)<>5,\"N\",\"Y\")))","v":""},{"$f":"IF($B205=\"N\",\"\",IF(LEN('Enrollment Form'!$BL212=0),\"\",IF(LEN('Enrollment Form'!$BL212)<>5,\"N\",\"Y\")))","v":""},{"$f":"IF($B205=\"N\",\"\",IF(LEN('Enrollment Form'!$AE212)=0,\"\",IF(LEN('Enrollment Form'!$AE212)<>10,\"N\",\"Y\")))","v":""},{"$f":"IF($B205=\"N\",\"\",IF(LEN('Enrollment Form'!$AF212)=0,\"\",IF(LEN('Enrollment Form'!$AF212)<>10,\"N\",\"Y\")))","v":""},{"$f":"IF('Enrollment Form'!$O212<>\"Graded\",\"-\",IF(AND('Enrollment Form'!$O212=\"Graded\",'Enrollment Form'!$AO212<>\"\"),\"Y\",\"N\"))","v":"-"},{"$f":"IF($B205=\"N\",\"\",IF(OR('Enrollment Form'!$B212<>\"Subscriber\",'Enrollment Form'!$C212=\"ROC\"),\"-\",IF(AND('Enrollment Form'!$B212=\"Subscriber\",'Enrollment Form'!$C212=\"Enroll\",'Enrollment Form'!$AJ212<>\"\"),\"Y\",\"N\")))","v":""},{"$f":"IF($B205=\"N\",\"\",IF(OR('Enrollment Form'!$B212<>\"Subscriber\",'Enrollment Form'!$C212=\"ROC\"),\"-\",IF(AND('Enrollment Form'!$B212=\"Subscriber\",'Enrollment Form'!$C212=\"Enroll\",'Enrollment Form'!$AK212<>\"\"),\"Y\",\"N\")))","v":""},{"$f":"IF($B205=\"N\",\"\",IF(OR('Enrollment Form'!$B212<>\"Subscriber\",'Enrollment Form'!$C212=\"ROC\"),\"-\",IF(AND('Enrollment Form'!$B212=\"Subscriber\",'Enrollment Form'!$C212=\"Enroll\",'Enrollment Form'!$AL212<>\"\"),\"Y\",\"N\")))","v":""},{"$f":"IF($B205=\"N\",\"\",IF(OR('Enrollment Form'!$B212<>\"Subscriber\",'Enrollment Form'!$C212=\"ROC\"),\"-\",IF(AND('Enrollment Form'!$B212=\"Subscriber\",'Enrollment Form'!$C212=\"Enroll\",'Enrollment Form'!$AM212<>\"\"),\"Y\",\"N\")))","v":""},{"$f":"IF($B205=\"N\",\"\",IF(OR('Enrollment Form'!$B212<>\"Subscriber\",'Enrollment Form'!$C212=\"ROC\"),\"-\",IF(AND('Enrollment Form'!$B212=\"Subscriber\",'Enrollment Form'!$C212=\"Enroll\",'Enrollment Form'!$AN212<>\"\"),\"Y\",\"N\")))","v":""},{"$f":"IF($B205=\"N\",\"\",IF(OR('Enrollment Form'!$B212<>\"Subscriber\",'Enrollment Form'!$C212=\"ROC\"),\"-\",IF(AND('Enrollment Form'!$B212=\"Subscriber\",'Enrollment Form'!$C212=\"Enroll\",'Enrollment Form'!$AP212<>\"\"),\"Y\",\"N\")))","v":""},{"$f":"IF($B205=\"N\",\"\",IF($Q205=\"-\",\"-\",IF(AND($Q205=\"Y\",'Enrollment Form'!$AP212=\"No\"),\"-\",IF(AND($Q205=\"Y\",'Enrollment Form'!$AP212=\"Yes\",'Enrollment Form'!$AQ212<>\"\"),\"Y\",\"N\"))))","v":""},{"$f":"IF($B205=\"N\",\"\",IF(OR('Enrollment Form'!$B212<>\"Subscriber\",'Enrollment Form'!$C212=\"ROC\"),\"-\",IF(AND('Enrollment Form'!$B212=\"Subscriber\",'Enrollment Form'!$C212=\"Enroll\",'Enrollment Form'!$CO212<>\"\"),\"Y\",\"N\")))","v":""},{"$f":"IF($B205=\"N\",\"\",IF($S205=\"-\",\"-\",IF(AND($S205=\"Y\",'Enrollment Form'!$CO212=\"No\"),\"-\",IF(AND($S205=\"Y\",'Enrollment Form'!$CO212=\"Yes\",'Enrollment Form'!$CP212<>\"\"),\"Y\",\"N\"))))","v":""},{"$f":"IF(OR('Enrollment Form'!$AV212=\"Yes\",'Enrollment Form'!$AV212=\"\"),\"-\",IF(AND('Enrollment Form'!$AV212=\"No\",ISERROR(FIND(\"HMO\",VLOOKUP('Enrollment Form'!G212,'Enrollment Form'!H$11:J$1000,3,FALSE),1))=FALSE,COUNTA('Enrollment Form'!$AW212:$AZ212)=4),\"Y\",\"N\"))","v":"-"},{"$f":"IF($B205=\"N\",\"\",IF('Enrollment Form'!$B212=\"Subscriber\",\"-\",IF(COUNTA('Enrollment Form'!$BE212,'Enrollment Form'!$BG212)=2,\"Y\",\"N\")))","v":""},{"$f":"IF($B205=\"N\",\"\",IF(OR('Enrollment Form'!$AU212=\"\",'Enrollment Form'!$AU212=\"No\"),\"-\",IF(AND('Enrollment Form'!$AU212=\"Yes\",COUNTA('Enrollment Form'!$CK212)=1),\"Y\",\"N\")))","v":""},{"$f":"IF(OR('Enrollment Form'!$CK212=\"\",'Enrollment Form'!$CK212=\"No\"),\"-\",IF(COUNTA('Enrollment Form'!$CM212:$CN212)=2,\"Y\",\"N\"))","v":"-"},{"$f":"IF($B205=\"N\",\"\",IF(COUNTIF('Enrollment Form'!$CZ212:$DO212,\"Other\")=COUNTA('Enrollment Form'!$DF212,'Enrollment Form'!$DA212,'Enrollment Form'!$DK212,'Enrollment Form'!$DP212),\"Y\",\"N\"))","v":""},{"$f":"IF($B205=\"N\",\"\",IF(OR('Enrollment Form'!B212<>\"Subscriber\",'Enrollment Form'!C212=\"ROC\",COUNTIF('Enrollment Form'!AS212:AT212,\"Yes\")>=1),\"-\",IF(AND('Enrollment Form'!C212=\"Enroll\",COUNTIF('Enrollment Form'!AS212:AT212,\"No\")=2,'Enrollment Form'!AU212=\"\"),\"N\",\"Y\")))","v":""},{"$f":"IF(OR(B205=\"N\",'Enrollment Form'!B212<>\"Subscriber\",'Enrollment Form'!C212=\"ROC\",'Enrollment Form'!O212<>\"Multiple of Salary\"),\"-\",IF(COUNTA('Enrollment Form'!T212:U212)<2,\"N\",\"Y\"))","v":"-"},{"$f":"IF(B205=\"N\",\"\",IF(OR('Enrollment Form'!C212=\"ROC\",'Enrollment Form'!B212<>\"Subscriber\",'Enrollment Form'!O212=\"Waive\",'Enrollment Form'!O212=\"\"),\"-\",IF('Enrollment Form'!P212=\"\",\"N\",\"Y\")))","v":""},{"$f":"IF($B205=\"N\",\"\",IF(AND('Enrollment Form'!$C212=\"ROC\",'Enrollment Form'!$DS212<>\"\"),\"Y\",IF(AND('Enrollment Form'!$C212=\"ROC\",'Enrollment Form'!$DS212=\"\"),\"N\",IF(AND('Enrollment Form'!$C212=\"Enroll\",'Enrollment Form'!$B212=\"Subscriber\",'Enrollment Form'!$CQ212=\"No\",'Enrollment Form'!$DS212=\"\"),\"N\",IF(AND('Enrollment Form'!$C212=\"Enroll\",'Enrollment Form'!$B212=\"Subscriber\",'Enrollment Form'!$CQ212=\"Yes\"),\"-\",\"Y\")))))","v":""},{"$f":"IF($B205=\"N\",\"\",IF(AND('Enrollment Form'!$C212=\"ROC\",'Enrollment Form'!$DT212<>\"\"),\"Y\",IF(AND('Enrollment Form'!$C212=\"ROC\",'Enrollment Form'!$DT212=\"\"),\"N\",IF(AND('Enrollment Form'!$C212=\"Enroll\",'Enrollment Form'!$B212=\"Subscriber\",'Enrollment Form'!$CQ212=\"No\",'Enrollment Form'!$DT212=\"\"),\"N\",IF(AND('Enrollment Form'!$C212=\"Enroll\",'Enrollment Form'!$B212=\"Subscriber\",'Enrollment Form'!$CQ212=\"Yes\"),\"-\",\"Y\")))))","v":""},{"$f":"IF('Enrollment Form'!AH212=\"\",\"\",IF(ISERROR(SEARCH(\".\",'Enrollment Form'!AH212,SEARCH(\"@\",'Enrollment Form'!AH212))),\"N\",\"Y\"))","v":""},{"$f":"IF(OR($B205=\"N\",'Enrollment Form'!$G212=\"\"),\"\",IF('Enrollment Form'!$B212<>\"Subscriber\",\"-\",IF(COUNTIF('Enrollment Form'!$AS212:$AT212,\"Yes\")=2,\"N\",\"Y\")))","v":""},{"$f":"IF(OR('Enrollment Form'!$CC212=\"\",'Enrollment Form'!$CC212=\"No\"),\"-\",IF(AND('Enrollment Form'!$CC212=\"Yes\",'Enrollment Form'!$CD212=\"\"),\"N\",\"Y\"))","v":"-"},{"$f":"IF(OR('Enrollment Form'!$CE212=\"\",'Enrollment Form'!$CE212=\"No\"),\"-\",IF(AND('Enrollment Form'!$CE212=\"Yes\",'Enrollment Form'!$CF212=\"\"),\"N\",\"Y\"))","v":"-"},{"$f":"IF(OR('Enrollment Form'!$CG212=\"\",'Enrollment Form'!$CG212=\"No\"),\"-\",IF(AND('Enrollment Form'!$CG212=\"Yes\",'Enrollment Form'!$CH212=\"\"),\"N\",\"Y\"))","v":"-"},{"$f":"IF(OR('Enrollment Form'!$CG212=\"\",'Enrollment Form'!$CG212=\"No\"),\"-\",IF(AND('Enrollment Form'!$CG212=\"Yes\",'Enrollment Form'!$CI212=\"\"),\"N\",\"Y\"))","v":"-"},{"$f":"IF('Enrollment Form'!B212<>\"Subscriber\",\"-\",IF(AND('Enrollment Form'!B212=\"Subscriber\",'Enrollment Form'!C212=\"Enroll\",'Enrollment Form'!AA212=\"\"),\"N\",\"Y\"))","v":"-"},{"$f":"IF(OR('Enrollment Form'!B212=\"Subscriber\",'Enrollment Form'!B212=\"\"),\"-\",IF('Enrollment Form'!BI212=\"\",\"N\",\"Y\"))","v":"-"},{"$f":"IF('Enrollment Form'!B212<>\"Subscriber\",\"-\",IF(AND('Enrollment Form'!B212=\"Subscriber\",'Enrollment Form'!G212=\"\"),\"N\",\"Y\"))","v":"-"},{"$f":"IF('Enrollment Form'!A212=\"\",\"\",IF('Enrollment Form'!B212=\"Subscriber\",\"-\",IF(AND('Enrollment Form'!B212<>\"Subscriber\",'Enrollment Form'!G212='Enrollment Form'!H212),\"N\",\"Y\")))","v":""},0]
[213,{"$f":"IF('Enrollment Form'!$A213<>\"\",\"Y\",\"N\")","v":"N"},{"$f":"IF(AND('Enrollment Form'!$B213=\"\",'Enrollment Form'!$C213<>\"\"),\"N\",IF($B206=\"N\",\"\",\"Y\"))","v":""},{"$f":"IF(OR($B206=\"N\",'Enrollment Form'!G213=\"\"),\"\",IF('Enrollment Form'!$B213<>\"Subscriber\",\"\",IF('Enrollment Form'!$G213='Enrollment Form'!$H213,\"Y\",\"N\")))","v":""},{"$f":"IF($B206=\"N\",\"\",IF(AND(COUNTIFS('Enrollment Form'!$H$11:$H$1000,'Enrollment Form'!$H213,'Enrollment Form'!$B$11:$B$1000,'Enrollment Form'!$B213)>1,'Enrollment Form'!$H213<>\"\"),\"N\",\"Y\"))","v":""},{"$f":"IF($B206=\"N\",\"\",IF(LEN('Enrollment Form'!$Y213)=0,\"\",IF(LEN('Enrollment Form'!$Y213)<>5,\"N\",\"Y\")))","v":""},{"$f":"IF($B206=\"N\",\"\",IF(LEN('Enrollment Form'!$AD213=0),\"\",IF(LEN('Enrollment Form'!$AD213)<>5,\"N\",\"Y\")))","v":""},{"$f":"IF($B206=\"N\",\"\",IF(LEN('Enrollment Form'!$BL213=0),\"\",IF(LEN('Enrollment Form'!$BL213)<>5,\"N\",\"Y\")))","v":""},{"$f":"IF($B206=\"N\",\"\",IF(LEN('Enrollment Form'!$AE213)=0,\"\",IF(LEN('Enrollment Form'!$AE213)<>10,\"N\",\"Y\")))","v":""},{"$f":"IF($B206=\"N\",\"\",IF(LEN('Enrollment Form'!$AF213)=0,\"\",IF(LEN('Enrollment Form'!$AF213)<>10,\"N\",\"Y\")))","v":""},{"$f":"IF('Enrollment Form'!$O213<>\"Graded\",\"-\",IF(AND('Enrollment Form'!$O213=\"Graded\",'Enrollment Form'!$AO213<>\"\"),\"Y\",\"N\"))","v":"-"},{"$f":"IF($B206=\"N\",\"\",IF(OR('Enrollment Form'!$B213<>\"Subscriber\",'Enrollment Form'!$C213=\"ROC\"),\"-\",IF(AND('Enrollment Form'!$B213=\"Subscriber\",'Enrollment Form'!$C213=\"Enroll\",'Enrollment Form'!$AJ213<>\"\"),\"Y\",\"N\")))","v":""},{"$f":"IF($B206=\"N\",\"\",IF(OR('Enrollment Form'!$B213<>\"Subscriber\",'Enrollment Form'!$C213=\"ROC\"),\"-\",IF(AND('Enrollment Form'!$B213=\"Subscriber\",'Enrollment Form'!$C213=\"Enroll\",'Enrollment Form'!$AK213<>\"\"),\"Y\",\"N\")))","v":""},{"$f":"IF($B206=\"N\",\"\",IF(OR('Enrollment Form'!$B213<>\"Subscriber\",'Enrollment Form'!$C213=\"ROC\"),\"-\",IF(AND('Enrollment Form'!$B213=\"Subscriber\",'Enrollment Form'!$C213=\"Enroll\",'Enrollment Form'!$AL213<>\"\"),\"Y\",\"N\")))","v":""},{"$f":"IF($B206=\"N\",\"\",IF(OR('Enrollment Form'!$B213<>\"Subscriber\",'Enrollment Form'!$C213=\"ROC\"),\"-\",IF(AND('Enrollment Form'!$B213=\"Subscriber\",'Enrollment Form'!$C213=\"Enroll\",'Enrollment Form'!$AM213<>\"\"),\"Y\",\"N\")))","v":""},{"$f":"IF($B206=\"N\",\"\",IF(OR('Enrollment Form'!$B213<>\"Subscriber\",'Enrollment Form'!$C213=\"ROC\"),\"-\",IF(AND('Enrollment Form'!$B213=\"Subscriber\",'Enrollment Form'!$C213=\"Enroll\",'Enrollment Form'!$AN213<>\"\"),\"Y\",\"N\")))","v":""},{"$f":"IF($B206=\"N\",\"\",IF(OR('Enrollment Form'!$B213<>\"Subscriber\",'Enrollment Form'!$C213=\"ROC\"),\"-\",IF(AND('Enrollment Form'!$B213=\"Subscriber\",'Enrollment Form'!$C213=\"Enroll\",'Enrollment Form'!$AP213<>\"\"),\"Y\",\"N\")))","v":""},{"$f":"IF($B206=\"N\",\"\",IF($Q206=\"-\",\"-\",IF(AND($Q206=\"Y\",'Enrollment Form'!$AP213=\"No\"),\"-\",IF(AND($Q206=\"Y\",'Enrollment Form'!$AP213=\"Yes\",'Enrollment Form'!$AQ213<>\"\"),\"Y\",\"N\"))))","v":""},{"$f":"IF($B206=\"N\",\"\",IF(OR('Enrollment Form'!$B213<>\"Subscriber\",'Enrollment Form'!$C213=\"ROC\"),\"-\",IF(AND('Enrollment Form'!$B213=\"Subscriber\",'Enrollment Form'!$C213=\"Enroll\",'Enrollment Form'!$CO213<>\"\"),\"Y\",\"N\")))","v":""},{"$f":"IF($B206=\"N\",\"\",IF($S206=\"-\",\"-\",IF(AND($S206=\"Y\",'Enrollment Form'!$CO213=\"No\"),\"-\",IF(AND($S206=\"Y\",'Enrollment Form'!$CO213=\"Yes\",'Enrollment Form'!$CP213<>\"\"),\"Y\",\"N\"))))","v":""},{"$f":"IF(OR('Enrollment Form'!$AV213=\"Yes\",'Enrollment Form'!$AV213=\"\"),\"-\",IF(AND('Enrollment Form'!$AV213=\"No\",ISERROR(FIND(\"HMO\",VLOOKUP('Enrollment Form'!G213,'Enrollment Form'!H$11:J$1000,3,FALSE),1))=FALSE,COUNTA('Enrollment Form'!$AW213:$AZ213)=4),\"Y\",\"N\"))","v":"-"},{"$f":"IF($B206=\"N\",\"\",IF('Enrollment Form'!$B213=\"Subscriber\",\"-\",IF(COUNTA('Enrollment Form'!$BE213,'Enrollment Form'!$BG213)=2,\"Y\",\"N\")))","v":""},{"$f":"IF($B206=\"N\",\"\",IF(OR('Enrollment Form'!$AU213=\"\",'Enrollment Form'!$AU213=\"No\"),\"-\",IF(AND('Enrollment Form'!$AU213=\"Yes\",COUNTA('Enrollment Form'!$CK213)=1),\"Y\",\"N\")))","v":""},{"$f":"IF(OR('Enrollment Form'!$CK213=\"\",'Enrollment Form'!$CK213=\"No\"),\"-\",IF(COUNTA('Enrollment Form'!$CM213:$CN213)=2,\"Y\",\"N\"))","v":"-"},{"$f":"IF($B206=\"N\",\"\",IF(COUNTIF('Enrollment Form'!$CZ213:$DO213,\"Other\")=COUNTA('Enrollment Form'!$DF213,'Enrollment Form'!$DA213,'Enrollment Form'!$DK213,'Enrollment Form'!$DP213),\"Y\",\"N\"))","v":""},{"$f":"IF($B206=\"N\",\"\",IF(OR('Enrollment Form'!B213<>\"Subscriber\",'Enrollment Form'!C213=\"ROC\",COUNTIF('Enrollment Form'!AS213:AT213,\"Yes\")>=1),\"-\",IF(AND('Enrollment Form'!C213=\"Enroll\",COUNTIF('Enrollment Form'!AS213:AT213,\"No\")=2,'Enrollment Form'!AU213=\"\"),\"N\",\"Y\")))","v":""},{"$f":"IF(OR(B206=\"N\",'Enrollment Form'!B213<>\"Subscriber\",'Enrollment Form'!C213=\"ROC\",'Enrollment Form'!O213<>\"Multiple of Salary\"),\"-\",IF(COUNTA('Enrollment Form'!T213:U213)<2,\"N\",\"Y\"))","v":"-"},{"$f":"IF(B206=\"N\",\"\",IF(OR('Enrollment Form'!C213=\"ROC\",'Enrollment Form'!B213<>\"Subscriber\",'Enrollment Form'!O213=\"Waive\",'Enrollment Form'!O213=\"\"),\"-\",IF('Enrollment Form'!P213=\"\",\"N\",\"Y\")))","v":""},{"$f":"IF($B206=\"N\",\"\",IF(AND('Enrollment Form'!$C213=\"ROC\",'Enrollment Form'!$DS213<>\"\"),\"Y\",IF(AND('Enrollment Form'!$C213=\"ROC\",'Enrollment Form'!$DS213=\"\"),\"N\",IF(AND('Enrollment Form'!$C213=\"Enroll\",'Enrollment Form'!$B213=\"Subscriber\",'Enrollment Form'!$CQ213=\"No\",'Enrollment Form'!$DS213=\"\"),\"N\",IF(AND('Enrollment Form'!$C213=\"Enroll\",'Enrollment Form'!$B213=\"Subscriber\",'Enrollment Form'!$CQ213=\"Yes\"),\"-\",\"Y\")))))","v":""},{"$f":"IF($B206=\"N\",\"\",IF(AND('Enrollment Form'!$C213=\"ROC\",'Enrollment Form'!$DT213<>\"\"),\"Y\",IF(AND('Enrollment Form'!$C213=\"ROC\",'Enrollment Form'!$DT213=\"\"),\"N\",IF(AND('Enrollment Form'!$C213=\"Enroll\",'Enrollment Form'!$B213=\"Subscriber\",'Enrollment Form'!$CQ213=\"No\",'Enrollment Form'!$DT213=\"\"),\"N\",IF(AND('Enrollment Form'!$C213=\"Enroll\",'Enrollment Form'!$B213=\"Subscriber\",'Enrollment Form'!$CQ213=\"Yes\"),\"-\",\"Y\")))))","v":""},{"$f":"IF('Enrollment Form'!AH213=\"\",\"\",IF(ISERROR(SEARCH(\".\",'Enrollment Form'!AH213,SEARCH(\"@\",'Enrollment Form'!AH213))),\"N\",\"Y\"))","v":""},{"$f":"IF(OR($B206=\"N\",'Enrollment Form'!$G213=\"\"),\"\",IF('Enrollment Form'!$B213<>\"Subscriber\",\"-\",IF(COUNTIF('Enrollment Form'!$AS213:$AT213,\"Yes\")=2,\"N\",\"Y\")))","v":""},{"$f":"IF(OR('Enrollment Form'!$CC213=\"\",'Enrollment Form'!$CC213=\"No\"),\"-\",IF(AND('Enrollment Form'!$CC213=\"Yes\",'Enrollment Form'!$CD213=\"\"),\"N\",\"Y\"))","v":"-"},{"$f":"IF(OR('Enrollment Form'!$CE213=\"\",'Enrollment Form'!$CE213=\"No\"),\"-\",IF(AND('Enrollment Form'!$CE213=\"Yes\",'Enrollment Form'!$CF213=\"\"),\"N\",\"Y\"))","v":"-"},{"$f":"IF(OR('Enrollment Form'!$CG213=\"\",'Enrollment Form'!$CG213=\"No\"),\"-\",IF(AND('Enrollment Form'!$CG213=\"Yes\",'Enrollment Form'!$CH213=\"\"),\"N\",\"Y\"))","v":"-"},{"$f":"IF(OR('Enrollment Form'!$CG213=\"\",'Enrollment Form'!$CG213=\"No\"),\"-\",IF(AND('Enrollment Form'!$CG213=\"Yes\",'Enrollment Form'!$CI213=\"\"),\"N\",\"Y\"))","v":"-"},{"$f":"IF('Enrollment Form'!B213<>\"Subscriber\",\"-\",IF(AND('Enrollment Form'!B213=\"Subscriber\",'Enrollment Form'!C213=\"Enroll\",'Enrollment Form'!AA213=\"\"),\"N\",\"Y\"))","v":"-"},{"$f":"IF(OR('Enrollment Form'!B213=\"Subscriber\",'Enrollment Form'!B213=\"\"),\"-\",IF('Enrollment Form'!BI213=\"\",\"N\",\"Y\"))","v":"-"},{"$f":"IF('Enrollment Form'!B213<>\"Subscriber\",\"-\",IF(AND('Enrollment Form'!B213=\"Subscriber\",'Enrollment Form'!G213=\"\"),\"N\",\"Y\"))","v":"-"},{"$f":"IF('Enrollment Form'!A213=\"\",\"\",IF('Enrollment Form'!B213=\"Subscriber\",\"-\",IF(AND('Enrollment Form'!B213<>\"Subscriber\",'Enrollment Form'!G213='Enrollment Form'!H213),\"N\",\"Y\")))","v":""},0]
[214,{"$f":"IF('Enrollment Form'!$A214<>\"\",\"Y\",\"N\")","v":"N"},{"$f":"IF(AND('Enrollment Form'!$B214=\"\",'Enrollment Form'!$C214<>\"\"),\"N\",IF($B207=\"N\",\"\",\"Y\"))","v":""},{"$f":"IF(OR($B207=\"N\",'Enrollment Form'!G214=\"\"),\"\",IF('Enrollment Form'!$B214<>\"Subscriber\",\"\",IF('Enrollment Form'!$G214='Enrollment Form'!$H214,\"Y\",\"N\")))","v":""},{"$f":"IF($B207=\"N\",\"\",IF(AND(COUNTIFS('Enrollment Form'!$H$11:$H$1000,'Enrollment Form'!$H214,'Enrollment Form'!$B$11:$B$1000,'Enrollment Form'!$B214)>1,'Enrollment Form'!$H214<>\"\"),\"N\",\"Y\"))","v":""},{"$f":"IF($B207=\"N\",\"\",IF(LEN('Enrollment Form'!$Y214)=0,\"\",IF(LEN('Enrollment Form'!$Y214)<>5,\"N\",\"Y\")))","v":""},{"$f":"IF($B207=\"N\",\"\",IF(LEN('Enrollment Form'!$AD214=0),\"\",IF(LEN('Enrollment Form'!$AD214)<>5,\"N\",\"Y\")))","v":""},{"$f":"IF($B207=\"N\",\"\",IF(LEN('Enrollment Form'!$BL214=0),\"\",IF(LEN('Enrollment Form'!$BL214)<>5,\"N\",\"Y\")))","v":""},{"$f":"IF($B207=\"N\",\"\",IF(LEN('Enrollment Form'!$AE214)=0,\"\",IF(LEN('Enrollment Form'!$AE214)<>10,\"N\",\"Y\")))","v":""},{"$f":"IF($B207=\"N\",\"\",IF(LEN('Enrollment Form'!$AF214)=0,\"\",IF(LEN('Enrollment Form'!$AF214)<>10,\"N\",\"Y\")))","v":""},{"$f":"IF('Enrollment Form'!$O214<>\"Graded\",\"-\",IF(AND('Enrollment Form'!$O214=\"Graded\",'Enrollment Form'!$AO214<>\"\"),\"Y\",\"N\"))","v":"-"},{"$f":"IF($B207=\"N\",\"\",IF(OR('Enrollment Form'!$B214<>\"Subscriber\",'Enrollment Form'!$C214=\"ROC\"),\"-\",IF(AND('Enrollment Form'!$B214=\"Subscriber\",'Enrollment Form'!$C214=\"Enroll\",'Enrollment Form'!$AJ214<>\"\"),\"Y\",\"N\")))","v":""},{"$f":"IF($B207=\"N\",\"\",IF(OR('Enrollment Form'!$B214<>\"Subscriber\",'Enrollment Form'!$C214=\"ROC\"),\"-\",IF(AND('Enrollment Form'!$B214=\"Subscriber\",'Enrollment Form'!$C214=\"Enroll\",'Enrollment Form'!$AK214<>\"\"),\"Y\",\"N\")))","v":""},{"$f":"IF($B207=\"N\",\"\",IF(OR('Enrollment Form'!$B214<>\"Subscriber\",'Enrollment Form'!$C214=\"ROC\"),\"-\",IF(AND('Enrollment Form'!$B214=\"Subscriber\",'Enrollment Form'!$C214=\"Enroll\",'Enrollment Form'!$AL214<>\"\"),\"Y\",\"N\")))","v":""},{"$f":"IF($B207=\"N\",\"\",IF(OR('Enrollment Form'!$B214<>\"Subscriber\",'Enrollment Form'!$C214=\"ROC\"),\"-\",IF(AND('Enrollment Form'!$B214=\"Subscriber\",'Enrollment Form'!$C214=\"Enroll\",'Enrollment Form'!$AM214<>\"\"),\"Y\",\"N\")))","v":""},{"$f":"IF($B207=\"N\",\"\",IF(OR('Enrollment Form'!$B214<>\"Subscriber\",'Enrollment Form'!$C214=\"ROC\"),\"-\",IF(AND('Enrollment Form'!$B214=\"Subscriber\",'Enrollment Form'!$C214=\"Enroll\",'Enrollment Form'!$AN214<>\"\"),\"Y\",\"N\")))","v":""},{"$f":"IF($B207=\"N\",\"\",IF(OR('Enrollment Form'!$B214<>\"Subscriber\",'Enrollment Form'!$C214=\"ROC\"),\"-\",IF(AND('Enrollment Form'!$B214=\"Subscriber\",'Enrollment Form'!$C214=\"Enroll\",'Enrollment Form'!$AP214<>\"\"),\"Y\",\"N\")))","v":""},{"$f":"IF($B207=\"N\",\"\",IF($Q207=\"-\",\"-\",IF(AND($Q207=\"Y\",'Enrollment Form'!$AP214=\"No\"),\"-\",IF(AND($Q207=\"Y\",'Enrollment Form'!$AP214=\"Yes\",'Enrollment Form'!$AQ214<>\"\"),\"Y\",\"N\"))))","v":""},{"$f":"IF($B207=\"N\",\"\",IF(OR('Enrollment Form'!$B214<>\"Subscriber\",'Enrollment Form'!$C214=\"ROC\"),\"-\",IF(AND('Enrollment Form'!$B214=\"Subscriber\",'Enrollment Form'!$C214=\"Enroll\",'Enrollment Form'!$CO214<>\"\"),\"Y\",\"N\")))","v":""},{"$f":"IF($B207=\"N\",\"\",IF($S207=\"-\",\"-\",IF(AND($S207=\"Y\",'Enrollment Form'!$CO214=\"No\"),\"-\",IF(AND($S207=\"Y\",'Enrollment Form'!$CO214=\"Yes\",'Enrollment Form'!$CP214<>\"\"),\"Y\",\"N\"))))","v":""},{"$f":"IF(OR('Enrollment Form'!$AV214=\"Yes\",'Enrollment Form'!$AV214=\"\"),\"-\",IF(AND('Enrollment Form'!$AV214=\"No\",ISERROR(FIND(\"HMO\",VLOOKUP('Enrollment Form'!G214,'Enrollment Form'!H$11:J$1000,3,FALSE),1))=FALSE,COUNTA('Enrollment Form'!$AW214:$AZ214)=4),\"Y\",\"N\"))","v":"-"},{"$f":"IF($B207=\"N\",\"\",IF('Enrollment Form'!$B214=\"Subscriber\",\"-\",IF(COUNTA('Enrollment Form'!$BE214,'Enrollment Form'!$BG214)=2,\"Y\",\"N\")))","v":""},{"$f":"IF($B207=\"N\",\"\",IF(OR('Enrollment Form'!$AU214=\"\",'Enrollment Form'!$AU214=\"No\"),\"-\",IF(AND('Enrollment Form'!$AU214=\"Yes\",COUNTA('Enrollment Form'!$CK214)=1),\"Y\",\"N\")))","v":""},{"$f":"IF(OR('Enrollment Form'!$CK214=\"\",'Enrollment Form'!$CK214=\"No\"),\"-\",IF(COUNTA('Enrollment Form'!$CM214:$CN214)=2,\"Y\",\"N\"))","v":"-"},{"$f":"IF($B207=\"N\",\"\",IF(COUNTIF('Enrollment Form'!$CZ214:$DO214,\"Other\")=COUNTA('Enrollment Form'!$DF214,'Enrollment Form'!$DA214,'Enrollment Form'!$DK214,'Enrollment Form'!$DP214),\"Y\",\"N\"))","v":""},{"$f":"IF($B207=\"N\",\"\",IF(OR('Enrollment Form'!B214<>\"Subscriber\",'Enrollment Form'!C214=\"ROC\",COUNTIF('Enrollment Form'!AS214:AT214,\"Yes\")>=1),\"-\",IF(AND('Enrollment Form'!C214=\"Enroll\",COUNTIF('Enrollment Form'!AS214:AT214,\"No\")=2,'Enrollment Form'!AU214=\"\"),\"N\",\"Y\")))","v":""},{"$f":"IF(OR(B207=\"N\",'Enrollment Form'!B214<>\"Subscriber\",'Enrollment Form'!C214=\"ROC\",'Enrollment Form'!O214<>\"Multiple of Salary\"),\"-\",IF(COUNTA('Enrollment Form'!T214:U214)<2,\"N\",\"Y\"))","v":"-"},{"$f":"IF(B207=\"N\",\"\",IF(OR('Enrollment Form'!C214=\"ROC\",'Enrollment Form'!B214<>\"Subscriber\",'Enrollment Form'!O214=\"Waive\",'Enrollment Form'!O214=\"\"),\"-\",IF('Enrollment Form'!P214=\"\",\"N\",\"Y\")))","v":""},{"$f":"IF($B207=\"N\",\"\",IF(AND('Enrollment Form'!$C214=\"ROC\",'Enrollment Form'!$DS214<>\"\"),\"Y\",IF(AND('Enrollment Form'!$C214=\"ROC\",'Enrollment Form'!$DS214=\"\"),\"N\",IF(AND('Enrollment Form'!$C214=\"Enroll\",'Enrollment Form'!$B214=\"Subscriber\",'Enrollment Form'!$CQ214=\"No\",'Enrollment Form'!$DS214=\"\"),\"N\",IF(AND('Enrollment Form'!$C214=\"Enroll\",'Enrollment Form'!$B214=\"Subscriber\",'Enrollment Form'!$CQ214=\"Yes\"),\"-\",\"Y\")))))","v":""},{"$f":"IF($B207=\"N\",\"\",IF(AND('Enrollment Form'!$C214=\"ROC\",'Enrollment Form'!$DT214<>\"\"),\"Y\",IF(AND('Enrollment Form'!$C214=\"ROC\",'Enrollment Form'!$DT214=\"\"),\"N\",IF(AND('Enrollment Form'!$C214=\"Enroll\",'Enrollment Form'!$B214=\"Subscriber\",'Enrollment Form'!$CQ214=\"No\",'Enrollment Form'!$DT214=\"\"),\"N\",IF(AND('Enrollment Form'!$C214=\"Enroll\",'Enrollment Form'!$B214=\"Subscriber\",'Enrollment Form'!$CQ214=\"Yes\"),\"-\",\"Y\")))))","v":""},{"$f":"IF('Enrollment Form'!AH214=\"\",\"\",IF(ISERROR(SEARCH(\".\",'Enrollment Form'!AH214,SEARCH(\"@\",'Enrollment Form'!AH214))),\"N\",\"Y\"))","v":""},{"$f":"IF(OR($B207=\"N\",'Enrollment Form'!$G214=\"\"),\"\",IF('Enrollment Form'!$B214<>\"Subscriber\",\"-\",IF(COUNTIF('Enrollment Form'!$AS214:$AT214,\"Yes\")=2,\"N\",\"Y\")))","v":""},{"$f":"IF(OR('Enrollment Form'!$CC214=\"\",'Enrollment Form'!$CC214=\"No\"),\"-\",IF(AND('Enrollment Form'!$CC214=\"Yes\",'Enrollment Form'!$CD214=\"\"),\"N\",\"Y\"))","v":"-"},{"$f":"IF(OR('Enrollment Form'!$CE214=\"\",'Enrollment Form'!$CE214=\"No\"),\"-\",IF(AND('Enrollment Form'!$CE214=\"Yes\",'Enrollment Form'!$CF214=\"\"),\"N\",\"Y\"))","v":"-"},{"$f":"IF(OR('Enrollment Form'!$CG214=\"\",'Enrollment Form'!$CG214=\"No\"),\"-\",IF(AND('Enrollment Form'!$CG214=\"Yes\",'Enrollment Form'!$CH214=\"\"),\"N\",\"Y\"))","v":"-"},{"$f":"IF(OR('Enrollment Form'!$CG214=\"\",'Enrollment Form'!$CG214=\"No\"),\"-\",IF(AND('Enrollment Form'!$CG214=\"Yes\",'Enrollment Form'!$CI214=\"\"),\"N\",\"Y\"))","v":"-"},{"$f":"IF('Enrollment Form'!B214<>\"Subscriber\",\"-\",IF(AND('Enrollment Form'!B214=\"Subscriber\",'Enrollment Form'!C214=\"Enroll\",'Enrollment Form'!AA214=\"\"),\"N\",\"Y\"))","v":"-"},{"$f":"IF(OR('Enrollment Form'!B214=\"Subscriber\",'Enrollment Form'!B214=\"\"),\"-\",IF('Enrollment Form'!BI214=\"\",\"N\",\"Y\"))","v":"-"},{"$f":"IF('Enrollment Form'!B214<>\"Subscriber\",\"-\",IF(AND('Enrollment Form'!B214=\"Subscriber\",'Enrollment Form'!G214=\"\"),\"N\",\"Y\"))","v":"-"},{"$f":"IF('Enrollment Form'!A214=\"\",\"\",IF('Enrollment Form'!B214=\"Subscriber\",\"-\",IF(AND('Enrollment Form'!B214<>\"Subscriber\",'Enrollment Form'!G214='Enrollment Form'!H214),\"N\",\"Y\")))","v":""},0]
[215,{"$f":"IF('Enrollment Form'!$A215<>\"\",\"Y\",\"N\")","v":"N"},{"$f":"IF(AND('Enrollment Form'!$B215=\"\",'Enrollment Form'!$C215<>\"\"),\"N\",IF($B208=\"N\",\"\",\"Y\"))","v":""},{"$f":"IF(OR($B208=\"N\",'Enrollment Form'!G215=\"\"),\"\",IF('Enrollment Form'!$B215<>\"Subscriber\",\"\",IF('Enrollment Form'!$G215='Enrollment Form'!$H215,\"Y\",\"N\")))","v":""},{"$f":"IF($B208=\"N\",\"\",IF(AND(COUNTIFS('Enrollment Form'!$H$11:$H$1000,'Enrollment Form'!$H215,'Enrollment Form'!$B$11:$B$1000,'Enrollment Form'!$B215)>1,'Enrollment Form'!$H215<>\"\"),\"N\",\"Y\"))","v":""},{"$f":"IF($B208=\"N\",\"\",IF(LEN('Enrollment Form'!$Y215)=0,\"\",IF(LEN('Enrollment Form'!$Y215)<>5,\"N\",\"Y\")))","v":""},{"$f":"IF($B208=\"N\",\"\",IF(LEN('Enrollment Form'!$AD215=0),\"\",IF(LEN('Enrollment Form'!$AD215)<>5,\"N\",\"Y\")))","v":""},{"$f":"IF($B208=\"N\",\"\",IF(LEN('Enrollment Form'!$BL215=0),\"\",IF(LEN('Enrollment Form'!$BL215)<>5,\"N\",\"Y\")))","v":""},{"$f":"IF($B208=\"N\",\"\",IF(LEN('Enrollment Form'!$AE215)=0,\"\",IF(LEN('Enrollment Form'!$AE215)<>10,\"N\",\"Y\")))","v":""},{"$f":"IF($B208=\"N\",\"\",IF(LEN('Enrollment Form'!$AF215)=0,\"\",IF(LEN('Enrollment Form'!$AF215)<>10,\"N\",\"Y\")))","v":""},{"$f":"IF('Enrollment Form'!$O215<>\"Graded\",\"-\",IF(AND('Enrollment Form'!$O215=\"Graded\",'Enrollment Form'!$AO215<>\"\"),\"Y\",\"N\"))","v":"-"},{"$f":"IF($B208=\"N\",\"\",IF(OR('Enrollment Form'!$B215<>\"Subscriber\",'Enrollment Form'!$C215=\"ROC\"),\"-\",IF(AND('Enrollment Form'!$B215=\"Subscriber\",'Enrollment Form'!$C215=\"Enroll\",'Enrollment Form'!$AJ215<>\"\"),\"Y\",\"N\")))","v":""},{"$f":"IF($B208=\"N\",\"\",IF(OR('Enrollment Form'!$B215<>\"Subscriber\",'Enrollment Form'!$C215=\"ROC\"),\"-\",IF(AND('Enrollment Form'!$B215=\"Subscriber\",'Enrollment Form'!$C215=\"Enroll\",'Enrollment Form'!$AK215<>\"\"),\"Y\",\"N\")))","v":""},{"$f":"IF($B208=\"N\",\"\",IF(OR('Enrollment Form'!$B215<>\"Subscriber\",'Enrollment Form'!$C215=\"ROC\"),\"-\",IF(AND('Enrollment Form'!$B215=\"Subscriber\",'Enrollment Form'!$C215=\"Enroll\",'Enrollment Form'!$AL215<>\"\"),\"Y\",\"N\")))","v":""},{"$f":"IF($B208=\"N\",\"\",IF(OR('Enrollment Form'!$B215<>\"Subscriber\",'Enrollment Form'!$C215=\"ROC\"),\"-\",IF(AND('Enrollment Form'!$B215=\"Subscriber\",'Enrollment Form'!$C215=\"Enroll\",'Enrollment Form'!$AM215<>\"\"),\"Y\",\"N\")))","v":""},{"$f":"IF($B208=\"N\",\"\",IF(OR('Enrollment Form'!$B215<>\"Subscriber\",'Enrollment Form'!$C215=\"ROC\"),\"-\",IF(AND('Enrollment Form'!$B215=\"Subscriber\",'Enrollment Form'!$C215=\"Enroll\",'Enrollment Form'!$AN215<>\"\"),\"Y\",\"N\")))","v":""},{"$f":"IF($B208=\"N\",\"\",IF(OR('Enrollment Form'!$B215<>\"Subscriber\",'Enrollment Form'!$C215=\"ROC\"),\"-\",IF(AND('Enrollment Form'!$B215=\"Subscriber\",'Enrollment Form'!$C215=\"Enroll\",'Enrollment Form'!$AP215<>\"\"),\"Y\",\"N\")))","v":""},{"$f":"IF($B208=\"N\",\"\",IF($Q208=\"-\",\"-\",IF(AND($Q208=\"Y\",'Enrollment Form'!$AP215=\"No\"),\"-\",IF(AND($Q208=\"Y\",'Enrollment Form'!$AP215=\"Yes\",'Enrollment Form'!$AQ215<>\"\"),\"Y\",\"N\"))))","v":""},{"$f":"IF($B208=\"N\",\"\",IF(OR('Enrollment Form'!$B215<>\"Subscriber\",'Enrollment Form'!$C215=\"ROC\"),\"-\",IF(AND('Enrollment Form'!$B215=\"Subscriber\",'Enrollment Form'!$C215=\"Enroll\",'Enrollment Form'!$CO215<>\"\"),\"Y\",\"N\")))","v":""},{"$f":"IF($B208=\"N\",\"\",IF($S208=\"-\",\"-\",IF(AND($S208=\"Y\",'Enrollment Form'!$CO215=\"No\"),\"-\",IF(AND($S208=\"Y\",'Enrollment Form'!$CO215=\"Yes\",'Enrollment Form'!$CP215<>\"\"),\"Y\",\"N\"))))","v":""},{"$f":"IF(OR('Enrollment Form'!$AV215=\"Yes\",'Enrollment Form'!$AV215=\"\"),\"-\",IF(AND('Enrollment Form'!$AV215=\"No\",ISERROR(FIND(\"HMO\",VLOOKUP('Enrollment Form'!G215,'Enrollment Form'!H$11:J$1000,3,FALSE),1))=FALSE,COUNTA('Enrollment Form'!$AW215:$AZ215)=4),\"Y\",\"N\"))","v":"-"},{"$f":"IF($B208=\"N\",\"\",IF('Enrollment Form'!$B215=\"Subscriber\",\"-\",IF(COUNTA('Enrollment Form'!$BE215,'Enrollment Form'!$BG215)=2,\"Y\",\"N\")))","v":""},{"$f":"IF($B208=\"N\",\"\",IF(OR('Enrollment Form'!$AU215=\"\",'Enrollment Form'!$AU215=\"No\"),\"-\",IF(AND('Enrollment Form'!$AU215=\"Yes\",COUNTA('Enrollment Form'!$CK215)=1),\"Y\",\"N\")))","v":""},{"$f":"IF(OR('Enrollment Form'!$CK215=\"\",'Enrollment Form'!$CK215=\"No\"),\"-\",IF(COUNTA('Enrollment Form'!$CM215:$CN215)=2,\"Y\",\"N\"))","v":"-"},{"$f":"IF($B208=\"N\",\"\",IF(COUNTIF('Enrollment Form'!$CZ215:$DO215,\"Other\")=COUNTA('Enrollment Form'!$DF215,'Enrollment Form'!$DA215,'Enrollment Form'!$DK215,'Enrollment Form'!$DP215),\"Y\",\"N\"))","v":""},{"$f":"IF($B208=\"N\",\"\",IF(OR('Enrollment Form'!B215<>\"Subscriber\",'Enrollment Form'!C215=\"ROC\",COUNTIF('Enrollment Form'!AS215:AT215,\"Yes\")>=1),\"-\",IF(AND('Enrollment Form'!C215=\"Enroll\",COUNTIF('Enrollment Form'!AS215:AT215,\"No\")=2,'Enrollment Form'!AU215=\"\"),\"N\",\"Y\")))","v":""},{"$f":"IF(OR(B208=\"N\",'Enrollment Form'!B215<>\"Subscriber\",'Enrollment Form'!C215=\"ROC\",'Enrollment Form'!O215<>\"Multiple of Salary\"),\"-\",IF(COUNTA('Enrollment Form'!T215:U215)<2,\"N\",\"Y\"))","v":"-"},{"$f":"IF(B208=\"N\",\"\",IF(OR('Enrollment Form'!C215=\"ROC\",'Enrollment Form'!B215<>\"Subscriber\",'Enrollment Form'!O215=\"Waive\",'Enrollment Form'!O215=\"\"),\"-\",IF('Enrollment Form'!P215=\"\",\"N\",\"Y\")))","v":""},{"$f":"IF($B208=\"N\",\"\",IF(AND('Enrollment Form'!$C215=\"ROC\",'Enrollment Form'!$DS215<>\"\"),\"Y\",IF(AND('Enrollment Form'!$C215=\"ROC\",'Enrollment Form'!$DS215=\"\"),\"N\",IF(AND('Enrollment Form'!$C215=\"Enroll\",'Enrollment Form'!$B215=\"Subscriber\",'Enrollment Form'!$CQ215=\"No\",'Enrollment Form'!$DS215=\"\"),\"N\",IF(AND('Enrollment Form'!$C215=\"Enroll\",'Enrollment Form'!$B215=\"Subscriber\",'Enrollment Form'!$CQ215=\"Yes\"),\"-\",\"Y\")))))","v":""},{"$f":"IF($B208=\"N\",\"\",IF(AND('Enrollment Form'!$C215=\"ROC\",'Enrollment Form'!$DT215<>\"\"),\"Y\",IF(AND('Enrollment Form'!$C215=\"ROC\",'Enrollment Form'!$DT215=\"\"),\"N\",IF(AND('Enrollment Form'!$C215=\"Enroll\",'Enrollment Form'!$B215=\"Subscriber\",'Enrollment Form'!$CQ215=\"No\",'Enrollment Form'!$DT215=\"\"),\"N\",IF(AND('Enrollment Form'!$C215=\"Enroll\",'Enrollment Form'!$B215=\"Subscriber\",'Enrollment Form'!$CQ215=\"Yes\"),\"-\",\"Y\")))))","v":""},{"$f":"IF('Enrollment Form'!AH215=\"\",\"\",IF(ISERROR(SEARCH(\".\",'Enrollment Form'!AH215,SEARCH(\"@\",'Enrollment Form'!AH215))),\"N\",\"Y\"))","v":""},{"$f":"IF(OR($B208=\"N\",'Enrollment Form'!$G215=\"\"),\"\",IF('Enrollment Form'!$B215<>\"Subscriber\",\"-\",IF(COUNTIF('Enrollment Form'!$AS215:$AT215,\"Yes\")=2,\"N\",\"Y\")))","v":""},{"$f":"IF(OR('Enrollment Form'!$CC215=\"\",'Enrollment Form'!$CC215=\"No\"),\"-\",IF(AND('Enrollment Form'!$CC215=\"Yes\",'Enrollment Form'!$CD215=\"\"),\"N\",\"Y\"))","v":"-"},{"$f":"IF(OR('Enrollment Form'!$CE215=\"\",'Enrollment Form'!$CE215=\"No\"),\"-\",IF(AND('Enrollment Form'!$CE215=\"Yes\",'Enrollment Form'!$CF215=\"\"),\"N\",\"Y\"))","v":"-"},{"$f":"IF(OR('Enrollment Form'!$CG215=\"\",'Enrollment Form'!$CG215=\"No\"),\"-\",IF(AND('Enrollment Form'!$CG215=\"Yes\",'Enrollment Form'!$CH215=\"\"),\"N\",\"Y\"))","v":"-"},{"$f":"IF(OR('Enrollment Form'!$CG215=\"\",'Enrollment Form'!$CG215=\"No\"),\"-\",IF(AND('Enrollment Form'!$CG215=\"Yes\",'Enrollment Form'!$CI215=\"\"),\"N\",\"Y\"))","v":"-"},{"$f":"IF('Enrollment Form'!B215<>\"Subscriber\",\"-\",IF(AND('Enrollment Form'!B215=\"Subscriber\",'Enrollment Form'!C215=\"Enroll\",'Enrollment Form'!AA215=\"\"),\"N\",\"Y\"))","v":"-"},{"$f":"IF(OR('Enrollment Form'!B215=\"Subscriber\",'Enrollment Form'!B215=\"\"),\"-\",IF('Enrollment Form'!BI215=\"\",\"N\",\"Y\"))","v":"-"},{"$f":"IF('Enrollment Form'!B215<>\"Subscriber\",\"-\",IF(AND('Enrollment Form'!B215=\"Subscriber\",'Enrollment Form'!G215=\"\"),\"N\",\"Y\"))","v":"-"},{"$f":"IF('Enrollment Form'!A215=\"\",\"\",IF('Enrollment Form'!B215=\"Subscriber\",\"-\",IF(AND('Enrollment Form'!B215<>\"Subscriber\",'Enrollment Form'!G215='Enrollment Form'!H215),\"N\",\"Y\")))","v":""},0]
[216,{"$f":"IF('Enrollment Form'!$A216<>\"\",\"Y\",\"N\")","v":"N"},{"$f":"IF(AND('Enrollment Form'!$B216=\"\",'Enrollment Form'!$C216<>\"\"),\"N\",IF($B209=\"N\",\"\",\"Y\"))","v":""},{"$f":"IF(OR($B209=\"N\",'Enrollment Form'!G216=\"\"),\"\",IF('Enrollment Form'!$B216<>\"Subscriber\",\"\",IF('Enrollment Form'!$G216='Enrollment Form'!$H216,\"Y\",\"N\")))","v":""},{"$f":"IF($B209=\"N\",\"\",IF(AND(COUNTIFS('Enrollment Form'!$H$11:$H$1000,'Enrollment Form'!$H216,'Enrollment Form'!$B$11:$B$1000,'Enrollment Form'!$B216)>1,'Enrollment Form'!$H216<>\"\"),\"N\",\"Y\"))","v":""},{"$f":"IF($B209=\"N\",\"\",IF(LEN('Enrollment Form'!$Y216)=0,\"\",IF(LEN('Enrollment Form'!$Y216)<>5,\"N\",\"Y\")))","v":""},{"$f":"IF($B209=\"N\",\"\",IF(LEN('Enrollment Form'!$AD216=0),\"\",IF(LEN('Enrollment Form'!$AD216)<>5,\"N\",\"Y\")))","v":""},{"$f":"IF($B209=\"N\",\"\",IF(LEN('Enrollment Form'!$BL216=0),\"\",IF(LEN('Enrollment Form'!$BL216)<>5,\"N\",\"Y\")))","v":""},{"$f":"IF($B209=\"N\",\"\",IF(LEN('Enrollment Form'!$AE216)=0,\"\",IF(LEN('Enrollment Form'!$AE216)<>10,\"N\",\"Y\")))","v":""},{"$f":"IF($B209=\"N\",\"\",IF(LEN('Enrollment Form'!$AF216)=0,\"\",IF(LEN('Enrollment Form'!$AF216)<>10,\"N\",\"Y\")))","v":""},{"$f":"IF('Enrollment Form'!$O216<>\"Graded\",\"-\",IF(AND('Enrollment Form'!$O216=\"Graded\",'Enrollment Form'!$AO216<>\"\"),\"Y\",\"N\"))","v":"-"},{"$f":"IF($B209=\"N\",\"\",IF(OR('Enrollment Form'!$B216<>\"Subscriber\",'Enrollment Form'!$C216=\"ROC\"),\"-\",IF(AND('Enrollment Form'!$B216=\"Subscriber\",'Enrollment Form'!$C216=\"Enroll\",'Enrollment Form'!$AJ216<>\"\"),\"Y\",\"N\")))","v":""},{"$f":"IF($B209=\"N\",\"\",IF(OR('Enrollment Form'!$B216<>\"Subscriber\",'Enrollment Form'!$C216=\"ROC\"),\"-\",IF(AND('Enrollment Form'!$B216=\"Subscriber\",'Enrollment Form'!$C216=\"Enroll\",'Enrollment Form'!$AK216<>\"\"),\"Y\",\"N\")))","v":""},{"$f":"IF($B209=\"N\",\"\",IF(OR('Enrollment Form'!$B216<>\"Subscriber\",'Enrollment Form'!$C216=\"ROC\"),\"-\",IF(AND('Enrollment Form'!$B216=\"Subscriber\",'Enrollment Form'!$C216=\"Enroll\",'Enrollment Form'!$AL216<>\"\"),\"Y\",\"N\")))","v":""},{"$f":"IF($B209=\"N\",\"\",IF(OR('Enrollment Form'!$B216<>\"Subscriber\",'Enrollment Form'!$C216=\"ROC\"),\"-\",IF(AND('Enrollment Form'!$B216=\"Subscriber\",'Enrollment Form'!$C216=\"Enroll\",'Enrollment Form'!$AM216<>\"\"),\"Y\",\"N\")))","v":""},{"$f":"IF($B209=\"N\",\"\",IF(OR('Enrollment Form'!$B216<>\"Subscriber\",'Enrollment Form'!$C216=\"ROC\"),\"-\",IF(AND('Enrollment Form'!$B216=\"Subscriber\",'Enrollment Form'!$C216=\"Enroll\",'Enrollment Form'!$AN216<>\"\"),\"Y\",\"N\")))","v":""},{"$f":"IF($B209=\"N\",\"\",IF(OR('Enrollment Form'!$B216<>\"Subscriber\",'Enrollment Form'!$C216=\"ROC\"),\"-\",IF(AND('Enrollment Form'!$B216=\"Subscriber\",'Enrollment Form'!$C216=\"Enroll\",'Enrollment Form'!$AP216<>\"\"),\"Y\",\"N\")))","v":""},{"$f":"IF($B209=\"N\",\"\",IF($Q209=\"-\",\"-\",IF(AND($Q209=\"Y\",'Enrollment Form'!$AP216=\"No\"),\"-\",IF(AND($Q209=\"Y\",'Enrollment Form'!$AP216=\"Yes\",'Enrollment Form'!$AQ216<>\"\"),\"Y\",\"N\"))))","v":""},{"$f":"IF($B209=\"N\",\"\",IF(OR('Enrollment Form'!$B216<>\"Subscriber\",'Enrollment Form'!$C216=\"ROC\"),\"-\",IF(AND('Enrollment Form'!$B216=\"Subscriber\",'Enrollment Form'!$C216=\"Enroll\",'Enrollment Form'!$CO216<>\"\"),\"Y\",\"N\")))","v":""},{"$f":"IF($B209=\"N\",\"\",IF($S209=\"-\",\"-\",IF(AND($S209=\"Y\",'Enrollment Form'!$CO216=\"No\"),\"-\",IF(AND($S209=\"Y\",'Enrollment Form'!$CO216=\"Yes\",'Enrollment Form'!$CP216<>\"\"),\"Y\",\"N\"))))","v":""},{"$f":"IF(OR('Enrollment Form'!$AV216=\"Yes\",'Enrollment Form'!$AV216=\"\"),\"-\",IF(AND('Enrollment Form'!$AV216=\"No\",ISERROR(FIND(\"HMO\",VLOOKUP('Enrollment Form'!G216,'Enrollment Form'!H$11:J$1000,3,FALSE),1))=FALSE,COUNTA('Enrollment Form'!$AW216:$AZ216)=4),\"Y\",\"N\"))","v":"-"},{"$f":"IF($B209=\"N\",\"\",IF('Enrollment Form'!$B216=\"Subscriber\",\"-\",IF(COUNTA('Enrollment Form'!$BE216,'Enrollment Form'!$BG216)=2,\"Y\",\"N\")))","v":""},{"$f":"IF($B209=\"N\",\"\",IF(OR('Enrollment Form'!$AU216=\"\",'Enrollment Form'!$AU216=\"No\"),\"-\",IF(AND('Enrollment Form'!$AU216=\"Yes\",COUNTA('Enrollment Form'!$CK216)=1),\"Y\",\"N\")))","v":""},{"$f":"IF(OR('Enrollment Form'!$CK216=\"\",'Enrollment Form'!$CK216=\"No\"),\"-\",IF(COUNTA('Enrollment Form'!$CM216:$CN216)=2,\"Y\",\"N\"))","v":"-"},{"$f":"IF($B209=\"N\",\"\",IF(COUNTIF('Enrollment Form'!$CZ216:$DO216,\"Other\")=COUNTA('Enrollment Form'!$DF216,'Enrollment Form'!$DA216,'Enrollment Form'!$DK216,'Enrollment Form'!$DP216),\"Y\",\"N\"))","v":""},{"$f":"IF($B209=\"N\",\"\",IF(OR('Enrollment Form'!B216<>\"Subscriber\",'Enrollment Form'!C216=\"ROC\",COUNTIF('Enrollment Form'!AS216:AT216,\"Yes\")>=1),\"-\",IF(AND('Enrollment Form'!C216=\"Enroll\",COUNTIF('Enrollment Form'!AS216:AT216,\"No\")=2,'Enrollment Form'!AU216=\"\"),\"N\",\"Y\")))","v":""},{"$f":"IF(OR(B209=\"N\",'Enrollment Form'!B216<>\"Subscriber\",'Enrollment Form'!C216=\"ROC\",'Enrollment Form'!O216<>\"Multiple of Salary\"),\"-\",IF(COUNTA('Enrollment Form'!T216:U216)<2,\"N\",\"Y\"))","v":"-"},{"$f":"IF(B209=\"N\",\"\",IF(OR('Enrollment Form'!C216=\"ROC\",'Enrollment Form'!B216<>\"Subscriber\",'Enrollment Form'!O216=\"Waive\",'Enrollment Form'!O216=\"\"),\"-\",IF('Enrollment Form'!P216=\"\",\"N\",\"Y\")))","v":""},{"$f":"IF($B209=\"N\",\"\",IF(AND('Enrollment Form'!$C216=\"ROC\",'Enrollment Form'!$DS216<>\"\"),\"Y\",IF(AND('Enrollment Form'!$C216=\"ROC\",'Enrollment Form'!$DS216=\"\"),\"N\",IF(AND('Enrollment Form'!$C216=\"Enroll\",'Enrollment Form'!$B216=\"Subscriber\",'Enrollment Form'!$CQ216=\"No\",'Enrollment Form'!$DS216=\"\"),\"N\",IF(AND('Enrollment Form'!$C216=\"Enroll\",'Enrollment Form'!$B216=\"Subscriber\",'Enrollment Form'!$CQ216=\"Yes\"),\"-\",\"Y\")))))","v":""},{"$f":"IF($B209=\"N\",\"\",IF(AND('Enrollment Form'!$C216=\"ROC\",'Enrollment Form'!$DT216<>\"\"),\"Y\",IF(AND('Enrollment Form'!$C216=\"ROC\",'Enrollment Form'!$DT216=\"\"),\"N\",IF(AND('Enrollment Form'!$C216=\"Enroll\",'Enrollment Form'!$B216=\"Subscriber\",'Enrollment Form'!$CQ216=\"No\",'Enrollment Form'!$DT216=\"\"),\"N\",IF(AND('Enrollment Form'!$C216=\"Enroll\",'Enrollment Form'!$B216=\"Subscriber\",'Enrollment Form'!$CQ216=\"Yes\"),\"-\",\"Y\")))))","v":""},{"$f":"IF('Enrollment Form'!AH216=\"\",\"\",IF(ISERROR(SEARCH(\".\",'Enrollment Form'!AH216,SEARCH(\"@\",'Enrollment Form'!AH216))),\"N\",\"Y\"))","v":""},{"$f":"IF(OR($B209=\"N\",'Enrollment Form'!$G216=\"\"),\"\",IF('Enrollment Form'!$B216<>\"Subscriber\",\"-\",IF(COUNTIF('Enrollment Form'!$AS216:$AT216,\"Yes\")=2,\"N\",\"Y\")))","v":""},{"$f":"IF(OR('Enrollment Form'!$CC216=\"\",'Enrollment Form'!$CC216=\"No\"),\"-\",IF(AND('Enrollment Form'!$CC216=\"Yes\",'Enrollment Form'!$CD216=\"\"),\"N\",\"Y\"))","v":"-"},{"$f":"IF(OR('Enrollment Form'!$CE216=\"\",'Enrollment Form'!$CE216=\"No\"),\"-\",IF(AND('Enrollment Form'!$CE216=\"Yes\",'Enrollment Form'!$CF216=\"\"),\"N\",\"Y\"))","v":"-"},{"$f":"IF(OR('Enrollment Form'!$CG216=\"\",'Enrollment Form'!$CG216=\"No\"),\"-\",IF(AND('Enrollment Form'!$CG216=\"Yes\",'Enrollment Form'!$CH216=\"\"),\"N\",\"Y\"))","v":"-"},{"$f":"IF(OR('Enrollment Form'!$CG216=\"\",'Enrollment Form'!$CG216=\"No\"),\"-\",IF(AND('Enrollment Form'!$CG216=\"Yes\",'Enrollment Form'!$CI216=\"\"),\"N\",\"Y\"))","v":"-"},{"$f":"IF('Enrollment Form'!B216<>\"Subscriber\",\"-\",IF(AND('Enrollment Form'!B216=\"Subscriber\",'Enrollment Form'!C216=\"Enroll\",'Enrollment Form'!AA216=\"\"),\"N\",\"Y\"))","v":"-"},{"$f":"IF(OR('Enrollment Form'!B216=\"Subscriber\",'Enrollment Form'!B216=\"\"),\"-\",IF('Enrollment Form'!BI216=\"\",\"N\",\"Y\"))","v":"-"},{"$f":"IF('Enrollment Form'!B216<>\"Subscriber\",\"-\",IF(AND('Enrollment Form'!B216=\"Subscriber\",'Enrollment Form'!G216=\"\"),\"N\",\"Y\"))","v":"-"},{"$f":"IF('Enrollment Form'!A216=\"\",\"\",IF('Enrollment Form'!B216=\"Subscriber\",\"-\",IF(AND('Enrollment Form'!B216<>\"Subscriber\",'Enrollment Form'!G216='Enrollment Form'!H216),\"N\",\"Y\")))","v":""},0]
[217,{"$f":"IF('Enrollment Form'!$A217<>\"\",\"Y\",\"N\")","v":"N"},{"$f":"IF(AND('Enrollment Form'!$B217=\"\",'Enrollment Form'!$C217<>\"\"),\"N\",IF($B210=\"N\",\"\",\"Y\"))","v":""},{"$f":"IF(OR($B210=\"N\",'Enrollment Form'!G217=\"\"),\"\",IF('Enrollment Form'!$B217<>\"Subscriber\",\"\",IF('Enrollment Form'!$G217='Enrollment Form'!$H217,\"Y\",\"N\")))","v":""},{"$f":"IF($B210=\"N\",\"\",IF(AND(COUNTIFS('Enrollment Form'!$H$11:$H$1000,'Enrollment Form'!$H217,'Enrollment Form'!$B$11:$B$1000,'Enrollment Form'!$B217)>1,'Enrollment Form'!$H217<>\"\"),\"N\",\"Y\"))","v":""},{"$f":"IF($B210=\"N\",\"\",IF(LEN('Enrollment Form'!$Y217)=0,\"\",IF(LEN('Enrollment Form'!$Y217)<>5,\"N\",\"Y\")))","v":""},{"$f":"IF($B210=\"N\",\"\",IF(LEN('Enrollment Form'!$AD217=0),\"\",IF(LEN('Enrollment Form'!$AD217)<>5,\"N\",\"Y\")))","v":""},{"$f":"IF($B210=\"N\",\"\",IF(LEN('Enrollment Form'!$BL217=0),\"\",IF(LEN('Enrollment Form'!$BL217)<>5,\"N\",\"Y\")))","v":""},{"$f":"IF($B210=\"N\",\"\",IF(LEN('Enrollment Form'!$AE217)=0,\"\",IF(LEN('Enrollment Form'!$AE217)<>10,\"N\",\"Y\")))","v":""},{"$f":"IF($B210=\"N\",\"\",IF(LEN('Enrollment Form'!$AF217)=0,\"\",IF(LEN('Enrollment Form'!$AF217)<>10,\"N\",\"Y\")))","v":""},{"$f":"IF('Enrollment Form'!$O217<>\"Graded\",\"-\",IF(AND('Enrollment Form'!$O217=\"Graded\",'Enrollment Form'!$AO217<>\"\"),\"Y\",\"N\"))","v":"-"},{"$f":"IF($B210=\"N\",\"\",IF(OR('Enrollment Form'!$B217<>\"Subscriber\",'Enrollment Form'!$C217=\"ROC\"),\"-\",IF(AND('Enrollment Form'!$B217=\"Subscriber\",'Enrollment Form'!$C217=\"Enroll\",'Enrollment Form'!$AJ217<>\"\"),\"Y\",\"N\")))","v":""},{"$f":"IF($B210=\"N\",\"\",IF(OR('Enrollment Form'!$B217<>\"Subscriber\",'Enrollment Form'!$C217=\"ROC\"),\"-\",IF(AND('Enrollment Form'!$B217=\"Subscriber\",'Enrollment Form'!$C217=\"Enroll\",'Enrollment Form'!$AK217<>\"\"),\"Y\",\"N\")))","v":""},{"$f":"IF($B210=\"N\",\"\",IF(OR('Enrollment Form'!$B217<>\"Subscriber\",'Enrollment Form'!$C217=\"ROC\"),\"-\",IF(AND('Enrollment Form'!$B217=\"Subscriber\",'Enrollment Form'!$C217=\"Enroll\",'Enrollment Form'!$AL217<>\"\"),\"Y\",\"N\")))","v":""},{"$f":"IF($B210=\"N\",\"\",IF(OR('Enrollment Form'!$B217<>\"Subscriber\",'Enrollment Form'!$C217=\"ROC\"),\"-\",IF(AND('Enrollment Form'!$B217=\"Subscriber\",'Enrollment Form'!$C217=\"Enroll\",'Enrollment Form'!$AM217<>\"\"),\"Y\",\"N\")))","v":""},{"$f":"IF($B210=\"N\",\"\",IF(OR('Enrollment Form'!$B217<>\"Subscriber\",'Enrollment Form'!$C217=\"ROC\"),\"-\",IF(AND('Enrollment Form'!$B217=\"Subscriber\",'Enrollment Form'!$C217=\"Enroll\",'Enrollment Form'!$AN217<>\"\"),\"Y\",\"N\")))","v":""},{"$f":"IF($B210=\"N\",\"\",IF(OR('Enrollment Form'!$B217<>\"Subscriber\",'Enrollment Form'!$C217=\"ROC\"),\"-\",IF(AND('Enrollment Form'!$B217=\"Subscriber\",'Enrollment Form'!$C217=\"Enroll\",'Enrollment Form'!$AP217<>\"\"),\"Y\",\"N\")))","v":""},{"$f":"IF($B210=\"N\",\"\",IF($Q210=\"-\",\"-\",IF(AND($Q210=\"Y\",'Enrollment Form'!$AP217=\"No\"),\"-\",IF(AND($Q210=\"Y\",'Enrollment Form'!$AP217=\"Yes\",'Enrollment Form'!$AQ217<>\"\"),\"Y\",\"N\"))))","v":""},{"$f":"IF($B210=\"N\",\"\",IF(OR('Enrollment Form'!$B217<>\"Subscriber\",'Enrollment Form'!$C217=\"ROC\"),\"-\",IF(AND('Enrollment Form'!$B217=\"Subscriber\",'Enrollment Form'!$C217=\"Enroll\",'Enrollment Form'!$CO217<>\"\"),\"Y\",\"N\")))","v":""},{"$f":"IF($B210=\"N\",\"\",IF($S210=\"-\",\"-\",IF(AND($S210=\"Y\",'Enrollment Form'!$CO217=\"No\"),\"-\",IF(AND($S210=\"Y\",'Enrollment Form'!$CO217=\"Yes\",'Enrollment Form'!$CP217<>\"\"),\"Y\",\"N\"))))","v":""},{"$f":"IF(OR('Enrollment Form'!$AV217=\"Yes\",'Enrollment Form'!$AV217=\"\"),\"-\",IF(AND('Enrollment Form'!$AV217=\"No\",ISERROR(FIND(\"HMO\",VLOOKUP('Enrollment Form'!G217,'Enrollment Form'!H$11:J$1000,3,FALSE),1))=FALSE,COUNTA('Enrollment Form'!$AW217:$AZ217)=4),\"Y\",\"N\"))","v":"-"},{"$f":"IF($B210=\"N\",\"\",IF('Enrollment Form'!$B217=\"Subscriber\",\"-\",IF(COUNTA('Enrollment Form'!$BE217,'Enrollment Form'!$BG217)=2,\"Y\",\"N\")))","v":""},{"$f":"IF($B210=\"N\",\"\",IF(OR('Enrollment Form'!$AU217=\"\",'Enrollment Form'!$AU217=\"No\"),\"-\",IF(AND('Enrollment Form'!$AU217=\"Yes\",COUNTA('Enrollment Form'!$CK217)=1),\"Y\",\"N\")))","v":""},{"$f":"IF(OR('Enrollment Form'!$CK217=\"\",'Enrollment Form'!$CK217=\"No\"),\"-\",IF(COUNTA('Enrollment Form'!$CM217:$CN217)=2,\"Y\",\"N\"))","v":"-"},{"$f":"IF($B210=\"N\",\"\",IF(COUNTIF('Enrollment Form'!$CZ217:$DO217,\"Other\")=COUNTA('Enrollment Form'!$DF217,'Enrollment Form'!$DA217,'Enrollment Form'!$DK217,'Enrollment Form'!$DP217),\"Y\",\"N\"))","v":""},{"$f":"IF($B210=\"N\",\"\",IF(OR('Enrollment Form'!B217<>\"Subscriber\",'Enrollment Form'!C217=\"ROC\",COUNTIF('Enrollment Form'!AS217:AT217,\"Yes\")>=1),\"-\",IF(AND('Enrollment Form'!C217=\"Enroll\",COUNTIF('Enrollment Form'!AS217:AT217,\"No\")=2,'Enrollment Form'!AU217=\"\"),\"N\",\"Y\")))","v":""},{"$f":"IF(OR(B210=\"N\",'Enrollment Form'!B217<>\"Subscriber\",'Enrollment Form'!C217=\"ROC\",'Enrollment Form'!O217<>\"Multiple of Salary\"),\"-\",IF(COUNTA('Enrollment Form'!T217:U217)<2,\"N\",\"Y\"))","v":"-"},{"$f":"IF(B210=\"N\",\"\",IF(OR('Enrollment Form'!C217=\"ROC\",'Enrollment Form'!B217<>\"Subscriber\",'Enrollment Form'!O217=\"Waive\",'Enrollment Form'!O217=\"\"),\"-\",IF('Enrollment Form'!P217=\"\",\"N\",\"Y\")))","v":""},{"$f":"IF($B210=\"N\",\"\",IF(AND('Enrollment Form'!$C217=\"ROC\",'Enrollment Form'!$DS217<>\"\"),\"Y\",IF(AND('Enrollment Form'!$C217=\"ROC\",'Enrollment Form'!$DS217=\"\"),\"N\",IF(AND('Enrollment Form'!$C217=\"Enroll\",'Enrollment Form'!$B217=\"Subscriber\",'Enrollment Form'!$CQ217=\"No\",'Enrollment Form'!$DS217=\"\"),\"N\",IF(AND('Enrollment Form'!$C217=\"Enroll\",'Enrollment Form'!$B217=\"Subscriber\",'Enrollment Form'!$CQ217=\"Yes\"),\"-\",\"Y\")))))","v":""},{"$f":"IF($B210=\"N\",\"\",IF(AND('Enrollment Form'!$C217=\"ROC\",'Enrollment Form'!$DT217<>\"\"),\"Y\",IF(AND('Enrollment Form'!$C217=\"ROC\",'Enrollment Form'!$DT217=\"\"),\"N\",IF(AND('Enrollment Form'!$C217=\"Enroll\",'Enrollment Form'!$B217=\"Subscriber\",'Enrollment Form'!$CQ217=\"No\",'Enrollment Form'!$DT217=\"\"),\"N\",IF(AND('Enrollment Form'!$C217=\"Enroll\",'Enrollment Form'!$B217=\"Subscriber\",'Enrollment Form'!$CQ217=\"Yes\"),\"-\",\"Y\")))))","v":""},{"$f":"IF('Enrollment Form'!AH217=\"\",\"\",IF(ISERROR(SEARCH(\".\",'Enrollment Form'!AH217,SEARCH(\"@\",'Enrollment Form'!AH217))),\"N\",\"Y\"))","v":""},{"$f":"IF(OR($B210=\"N\",'Enrollment Form'!$G217=\"\"),\"\",IF('Enrollment Form'!$B217<>\"Subscriber\",\"-\",IF(COUNTIF('Enrollment Form'!$AS217:$AT217,\"Yes\")=2,\"N\",\"Y\")))","v":""},{"$f":"IF(OR('Enrollment Form'!$CC217=\"\",'Enrollment Form'!$CC217=\"No\"),\"-\",IF(AND('Enrollment Form'!$CC217=\"Yes\",'Enrollment Form'!$CD217=\"\"),\"N\",\"Y\"))","v":"-"},{"$f":"IF(OR('Enrollment Form'!$CE217=\"\",'Enrollment Form'!$CE217=\"No\"),\"-\",IF(AND('Enrollment Form'!$CE217=\"Yes\",'Enrollment Form'!$CF217=\"\"),\"N\",\"Y\"))","v":"-"},{"$f":"IF(OR('Enrollment Form'!$CG217=\"\",'Enrollment Form'!$CG217=\"No\"),\"-\",IF(AND('Enrollment Form'!$CG217=\"Yes\",'Enrollment Form'!$CH217=\"\"),\"N\",\"Y\"))","v":"-"},{"$f":"IF(OR('Enrollment Form'!$CG217=\"\",'Enrollment Form'!$CG217=\"No\"),\"-\",IF(AND('Enrollment Form'!$CG217=\"Yes\",'Enrollment Form'!$CI217=\"\"),\"N\",\"Y\"))","v":"-"},{"$f":"IF('Enrollment Form'!B217<>\"Subscriber\",\"-\",IF(AND('Enrollment Form'!B217=\"Subscriber\",'Enrollment Form'!C217=\"Enroll\",'Enrollment Form'!AA217=\"\"),\"N\",\"Y\"))","v":"-"},{"$f":"IF(OR('Enrollment Form'!B217=\"Subscriber\",'Enrollment Form'!B217=\"\"),\"-\",IF('Enrollment Form'!BI217=\"\",\"N\",\"Y\"))","v":"-"},{"$f":"IF('Enrollment Form'!B217<>\"Subscriber\",\"-\",IF(AND('Enrollment Form'!B217=\"Subscriber\",'Enrollment Form'!G217=\"\"),\"N\",\"Y\"))","v":"-"},{"$f":"IF('Enrollment Form'!A217=\"\",\"\",IF('Enrollment Form'!B217=\"Subscriber\",\"-\",IF(AND('Enrollment Form'!B217<>\"Subscriber\",'Enrollment Form'!G217='Enrollment Form'!H217),\"N\",\"Y\")))","v":""},0]
[218,{"$f":"IF('Enrollment Form'!$A218<>\"\",\"Y\",\"N\")","v":"N"},{"$f":"IF(AND('Enrollment Form'!$B218=\"\",'Enrollment Form'!$C218<>\"\"),\"N\",IF($B211=\"N\",\"\",\"Y\"))","v":""},{"$f":"IF(OR($B211=\"N\",'Enrollment Form'!G218=\"\"),\"\",IF('Enrollment Form'!$B218<>\"Subscriber\",\"\",IF('Enrollment Form'!$G218='Enrollment Form'!$H218,\"Y\",\"N\")))","v":""},{"$f":"IF($B211=\"N\",\"\",IF(AND(COUNTIFS('Enrollment Form'!$H$11:$H$1000,'Enrollment Form'!$H218,'Enrollment Form'!$B$11:$B$1000,'Enrollment Form'!$B218)>1,'Enrollment Form'!$H218<>\"\"),\"N\",\"Y\"))","v":""},{"$f":"IF($B211=\"N\",\"\",IF(LEN('Enrollment Form'!$Y218)=0,\"\",IF(LEN('Enrollment Form'!$Y218)<>5,\"N\",\"Y\")))","v":""},{"$f":"IF($B211=\"N\",\"\",IF(LEN('Enrollment Form'!$AD218=0),\"\",IF(LEN('Enrollment Form'!$AD218)<>5,\"N\",\"Y\")))","v":""},{"$f":"IF($B211=\"N\",\"\",IF(LEN('Enrollment Form'!$BL218=0),\"\",IF(LEN('Enrollment Form'!$BL218)<>5,\"N\",\"Y\")))","v":""},{"$f":"IF($B211=\"N\",\"\",IF(LEN('Enrollment Form'!$AE218)=0,\"\",IF(LEN('Enrollment Form'!$AE218)<>10,\"N\",\"Y\")))","v":""},{"$f":"IF($B211=\"N\",\"\",IF(LEN('Enrollment Form'!$AF218)=0,\"\",IF(LEN('Enrollment Form'!$AF218)<>10,\"N\",\"Y\")))","v":""},{"$f":"IF('Enrollment Form'!$O218<>\"Graded\",\"-\",IF(AND('Enrollment Form'!$O218=\"Graded\",'Enrollment Form'!$AO218<>\"\"),\"Y\",\"N\"))","v":"-"},{"$f":"IF($B211=\"N\",\"\",IF(OR('Enrollment Form'!$B218<>\"Subscriber\",'Enrollment Form'!$C218=\"ROC\"),\"-\",IF(AND('Enrollment Form'!$B218=\"Subscriber\",'Enrollment Form'!$C218=\"Enroll\",'Enrollment Form'!$AJ218<>\"\"),\"Y\",\"N\")))","v":""},{"$f":"IF($B211=\"N\",\"\",IF(OR('Enrollment Form'!$B218<>\"Subscriber\",'Enrollment Form'!$C218=\"ROC\"),\"-\",IF(AND('Enrollment Form'!$B218=\"Subscriber\",'Enrollment Form'!$C218=\"Enroll\",'Enrollment Form'!$AK218<>\"\"),\"Y\",\"N\")))","v":""},{"$f":"IF($B211=\"N\",\"\",IF(OR('Enrollment Form'!$B218<>\"Subscriber\",'Enrollment Form'!$C218=\"ROC\"),\"-\",IF(AND('Enrollment Form'!$B218=\"Subscriber\",'Enrollment Form'!$C218=\"Enroll\",'Enrollment Form'!$AL218<>\"\"),\"Y\",\"N\")))","v":""},{"$f":"IF($B211=\"N\",\"\",IF(OR('Enrollment Form'!$B218<>\"Subscriber\",'Enrollment Form'!$C218=\"ROC\"),\"-\",IF(AND('Enrollment Form'!$B218=\"Subscriber\",'Enrollment Form'!$C218=\"Enroll\",'Enrollment Form'!$AM218<>\"\"),\"Y\",\"N\")))","v":""},{"$f":"IF($B211=\"N\",\"\",IF(OR('Enrollment Form'!$B218<>\"Subscriber\",'Enrollment Form'!$C218=\"ROC\"),\"-\",IF(AND('Enrollment Form'!$B218=\"Subscriber\",'Enrollment Form'!$C218=\"Enroll\",'Enrollment Form'!$AN218<>\"\"),\"Y\",\"N\")))","v":""},{"$f":"IF($B211=\"N\",\"\",IF(OR('Enrollment Form'!$B218<>\"Subscriber\",'Enrollment Form'!$C218=\"ROC\"),\"-\",IF(AND('Enrollment Form'!$B218=\"Subscriber\",'Enrollment Form'!$C218=\"Enroll\",'Enrollment Form'!$AP218<>\"\"),\"Y\",\"N\")))","v":""},{"$f":"IF($B211=\"N\",\"\",IF($Q211=\"-\",\"-\",IF(AND($Q211=\"Y\",'Enrollment Form'!$AP218=\"No\"),\"-\",IF(AND($Q211=\"Y\",'Enrollment Form'!$AP218=\"Yes\",'Enrollment Form'!$AQ218<>\"\"),\"Y\",\"N\"))))","v":""},{"$f":"IF($B211=\"N\",\"\",IF(OR('Enrollment Form'!$B218<>\"Subscriber\",'Enrollment Form'!$C218=\"ROC\"),\"-\",IF(AND('Enrollment Form'!$B218=\"Subscriber\",'Enrollment Form'!$C218=\"Enroll\",'Enrollment Form'!$CO218<>\"\"),\"Y\",\"N\")))","v":""},{"$f":"IF($B211=\"N\",\"\",IF($S211=\"-\",\"-\",IF(AND($S211=\"Y\",'Enrollment Form'!$CO218=\"No\"),\"-\",IF(AND($S211=\"Y\",'Enrollment Form'!$CO218=\"Yes\",'Enrollment Form'!$CP218<>\"\"),\"Y\",\"N\"))))","v":""},{"$f":"IF(OR('Enrollment Form'!$AV218=\"Yes\",'Enrollment Form'!$AV218=\"\"),\"-\",IF(AND('Enrollment Form'!$AV218=\"No\",ISERROR(FIND(\"HMO\",VLOOKUP('Enrollment Form'!G218,'Enrollment Form'!H$11:J$1000,3,FALSE),1))=FALSE,COUNTA('Enrollment Form'!$AW218:$AZ218)=4),\"Y\",\"N\"))","v":"-"},{"$f":"IF($B211=\"N\",\"\",IF('Enrollment Form'!$B218=\"Subscriber\",\"-\",IF(COUNTA('Enrollment Form'!$BE218,'Enrollment Form'!$BG218)=2,\"Y\",\"N\")))","v":""},{"$f":"IF($B211=\"N\",\"\",IF(OR('Enrollment Form'!$AU218=\"\",'Enrollment Form'!$AU218=\"No\"),\"-\",IF(AND('Enrollment Form'!$AU218=\"Yes\",COUNTA('Enrollment Form'!$CK218)=1),\"Y\",\"N\")))","v":""},{"$f":"IF(OR('Enrollment Form'!$CK218=\"\",'Enrollment Form'!$CK218=\"No\"),\"-\",IF(COUNTA('Enrollment Form'!$CM218:$CN218)=2,\"Y\",\"N\"))","v":"-"},{"$f":"IF($B211=\"N\",\"\",IF(COUNTIF('Enrollment Form'!$CZ218:$DO218,\"Other\")=COUNTA('Enrollment Form'!$DF218,'Enrollment Form'!$DA218,'Enrollment Form'!$DK218,'Enrollment Form'!$DP218),\"Y\",\"N\"))","v":""},{"$f":"IF($B211=\"N\",\"\",IF(OR('Enrollment Form'!B218<>\"Subscriber\",'Enrollment Form'!C218=\"ROC\",COUNTIF('Enrollment Form'!AS218:AT218,\"Yes\")>=1),\"-\",IF(AND('Enrollment Form'!C218=\"Enroll\",COUNTIF('Enrollment Form'!AS218:AT218,\"No\")=2,'Enrollment Form'!AU218=\"\"),\"N\",\"Y\")))","v":""},{"$f":"IF(OR(B211=\"N\",'Enrollment Form'!B218<>\"Subscriber\",'Enrollment Form'!C218=\"ROC\",'Enrollment Form'!O218<>\"Multiple of Salary\"),\"-\",IF(COUNTA('Enrollment Form'!T218:U218)<2,\"N\",\"Y\"))","v":"-"},{"$f":"IF(B211=\"N\",\"\",IF(OR('Enrollment Form'!C218=\"ROC\",'Enrollment Form'!B218<>\"Subscriber\",'Enrollment Form'!O218=\"Waive\",'Enrollment Form'!O218=\"\"),\"-\",IF('Enrollment Form'!P218=\"\",\"N\",\"Y\")))","v":""},{"$f":"IF($B211=\"N\",\"\",IF(AND('Enrollment Form'!$C218=\"ROC\",'Enrollment Form'!$DS218<>\"\"),\"Y\",IF(AND('Enrollment Form'!$C218=\"ROC\",'Enrollment Form'!$DS218=\"\"),\"N\",IF(AND('Enrollment Form'!$C218=\"Enroll\",'Enrollment Form'!$B218=\"Subscriber\",'Enrollment Form'!$CQ218=\"No\",'Enrollment Form'!$DS218=\"\"),\"N\",IF(AND('Enrollment Form'!$C218=\"Enroll\",'Enrollment Form'!$B218=\"Subscriber\",'Enrollment Form'!$CQ218=\"Yes\"),\"-\",\"Y\")))))","v":""},{"$f":"IF($B211=\"N\",\"\",IF(AND('Enrollment Form'!$C218=\"ROC\",'Enrollment Form'!$DT218<>\"\"),\"Y\",IF(AND('Enrollment Form'!$C218=\"ROC\",'Enrollment Form'!$DT218=\"\"),\"N\",IF(AND('Enrollment Form'!$C218=\"Enroll\",'Enrollment Form'!$B218=\"Subscriber\",'Enrollment Form'!$CQ218=\"No\",'Enrollment Form'!$DT218=\"\"),\"N\",IF(AND('Enrollment Form'!$C218=\"Enroll\",'Enrollment Form'!$B218=\"Subscriber\",'Enrollment Form'!$CQ218=\"Yes\"),\"-\",\"Y\")))))","v":""},{"$f":"IF('Enrollment Form'!AH218=\"\",\"\",IF(ISERROR(SEARCH(\".\",'Enrollment Form'!AH218,SEARCH(\"@\",'Enrollment Form'!AH218))),\"N\",\"Y\"))","v":""},{"$f":"IF(OR($B211=\"N\",'Enrollment Form'!$G218=\"\"),\"\",IF('Enrollment Form'!$B218<>\"Subscriber\",\"-\",IF(COUNTIF('Enrollment Form'!$AS218:$AT218,\"Yes\")=2,\"N\",\"Y\")))","v":""},{"$f":"IF(OR('Enrollment Form'!$CC218=\"\",'Enrollment Form'!$CC218=\"No\"),\"-\",IF(AND('Enrollment Form'!$CC218=\"Yes\",'Enrollment Form'!$CD218=\"\"),\"N\",\"Y\"))","v":"-"},{"$f":"IF(OR('Enrollment Form'!$CE218=\"\",'Enrollment Form'!$CE218=\"No\"),\"-\",IF(AND('Enrollment Form'!$CE218=\"Yes\",'Enrollment Form'!$CF218=\"\"),\"N\",\"Y\"))","v":"-"},{"$f":"IF(OR('Enrollment Form'!$CG218=\"\",'Enrollment Form'!$CG218=\"No\"),\"-\",IF(AND('Enrollment Form'!$CG218=\"Yes\",'Enrollment Form'!$CH218=\"\"),\"N\",\"Y\"))","v":"-"},{"$f":"IF(OR('Enrollment Form'!$CG218=\"\",'Enrollment Form'!$CG218=\"No\"),\"-\",IF(AND('Enrollment Form'!$CG218=\"Yes\",'Enrollment Form'!$CI218=\"\"),\"N\",\"Y\"))","v":"-"},{"$f":"IF('Enrollment Form'!B218<>\"Subscriber\",\"-\",IF(AND('Enrollment Form'!B218=\"Subscriber\",'Enrollment Form'!C218=\"Enroll\",'Enrollment Form'!AA218=\"\"),\"N\",\"Y\"))","v":"-"},{"$f":"IF(OR('Enrollment Form'!B218=\"Subscriber\",'Enrollment Form'!B218=\"\"),\"-\",IF('Enrollment Form'!BI218=\"\",\"N\",\"Y\"))","v":"-"},{"$f":"IF('Enrollment Form'!B218<>\"Subscriber\",\"-\",IF(AND('Enrollment Form'!B218=\"Subscriber\",'Enrollment Form'!G218=\"\"),\"N\",\"Y\"))","v":"-"},{"$f":"IF('Enrollment Form'!A218=\"\",\"\",IF('Enrollment Form'!B218=\"Subscriber\",\"-\",IF(AND('Enrollment Form'!B218<>\"Subscriber\",'Enrollment Form'!G218='Enrollment Form'!H218),\"N\",\"Y\")))","v":""},0]
[219,{"$f":"IF('Enrollment Form'!$A219<>\"\",\"Y\",\"N\")","v":"N"},{"$f":"IF(AND('Enrollment Form'!$B219=\"\",'Enrollment Form'!$C219<>\"\"),\"N\",IF($B212=\"N\",\"\",\"Y\"))","v":""},{"$f":"IF(OR($B212=\"N\",'Enrollment Form'!G219=\"\"),\"\",IF('Enrollment Form'!$B219<>\"Subscriber\",\"\",IF('Enrollment Form'!$G219='Enrollment Form'!$H219,\"Y\",\"N\")))","v":""},{"$f":"IF($B212=\"N\",\"\",IF(AND(COUNTIFS('Enrollment Form'!$H$11:$H$1000,'Enrollment Form'!$H219,'Enrollment Form'!$B$11:$B$1000,'Enrollment Form'!$B219)>1,'Enrollment Form'!$H219<>\"\"),\"N\",\"Y\"))","v":""},{"$f":"IF($B212=\"N\",\"\",IF(LEN('Enrollment Form'!$Y219)=0,\"\",IF(LEN('Enrollment Form'!$Y219)<>5,\"N\",\"Y\")))","v":""},{"$f":"IF($B212=\"N\",\"\",IF(LEN('Enrollment Form'!$AD219=0),\"\",IF(LEN('Enrollment Form'!$AD219)<>5,\"N\",\"Y\")))","v":""},{"$f":"IF($B212=\"N\",\"\",IF(LEN('Enrollment Form'!$BL219=0),\"\",IF(LEN('Enrollment Form'!$BL219)<>5,\"N\",\"Y\")))","v":""},{"$f":"IF($B212=\"N\",\"\",IF(LEN('Enrollment Form'!$AE219)=0,\"\",IF(LEN('Enrollment Form'!$AE219)<>10,\"N\",\"Y\")))","v":""},{"$f":"IF($B212=\"N\",\"\",IF(LEN('Enrollment Form'!$AF219)=0,\"\",IF(LEN('Enrollment Form'!$AF219)<>10,\"N\",\"Y\")))","v":""},{"$f":"IF('Enrollment Form'!$O219<>\"Graded\",\"-\",IF(AND('Enrollment Form'!$O219=\"Graded\",'Enrollment Form'!$AO219<>\"\"),\"Y\",\"N\"))","v":"-"},{"$f":"IF($B212=\"N\",\"\",IF(OR('Enrollment Form'!$B219<>\"Subscriber\",'Enrollment Form'!$C219=\"ROC\"),\"-\",IF(AND('Enrollment Form'!$B219=\"Subscriber\",'Enrollment Form'!$C219=\"Enroll\",'Enrollment Form'!$AJ219<>\"\"),\"Y\",\"N\")))","v":""},{"$f":"IF($B212=\"N\",\"\",IF(OR('Enrollment Form'!$B219<>\"Subscriber\",'Enrollment Form'!$C219=\"ROC\"),\"-\",IF(AND('Enrollment Form'!$B219=\"Subscriber\",'Enrollment Form'!$C219=\"Enroll\",'Enrollment Form'!$AK219<>\"\"),\"Y\",\"N\")))","v":""},{"$f":"IF($B212=\"N\",\"\",IF(OR('Enrollment Form'!$B219<>\"Subscriber\",'Enrollment Form'!$C219=\"ROC\"),\"-\",IF(AND('Enrollment Form'!$B219=\"Subscriber\",'Enrollment Form'!$C219=\"Enroll\",'Enrollment Form'!$AL219<>\"\"),\"Y\",\"N\")))","v":""},{"$f":"IF($B212=\"N\",\"\",IF(OR('Enrollment Form'!$B219<>\"Subscriber\",'Enrollment Form'!$C219=\"ROC\"),\"-\",IF(AND('Enrollment Form'!$B219=\"Subscriber\",'Enrollment Form'!$C219=\"Enroll\",'Enrollment Form'!$AM219<>\"\"),\"Y\",\"N\")))","v":""},{"$f":"IF($B212=\"N\",\"\",IF(OR('Enrollment Form'!$B219<>\"Subscriber\",'Enrollment Form'!$C219=\"ROC\"),\"-\",IF(AND('Enrollment Form'!$B219=\"Subscriber\",'Enrollment Form'!$C219=\"Enroll\",'Enrollment Form'!$AN219<>\"\"),\"Y\",\"N\")))","v":""},{"$f":"IF($B212=\"N\",\"\",IF(OR('Enrollment Form'!$B219<>\"Subscriber\",'Enrollment Form'!$C219=\"ROC\"),\"-\",IF(AND('Enrollment Form'!$B219=\"Subscriber\",'Enrollment Form'!$C219=\"Enroll\",'Enrollment Form'!$AP219<>\"\"),\"Y\",\"N\")))","v":""},{"$f":"IF($B212=\"N\",\"\",IF($Q212=\"-\",\"-\",IF(AND($Q212=\"Y\",'Enrollment Form'!$AP219=\"No\"),\"-\",IF(AND($Q212=\"Y\",'Enrollment Form'!$AP219=\"Yes\",'Enrollment Form'!$AQ219<>\"\"),\"Y\",\"N\"))))","v":""},{"$f":"IF($B212=\"N\",\"\",IF(OR('Enrollment Form'!$B219<>\"Subscriber\",'Enrollment Form'!$C219=\"ROC\"),\"-\",IF(AND('Enrollment Form'!$B219=\"Subscriber\",'Enrollment Form'!$C219=\"Enroll\",'Enrollment Form'!$CO219<>\"\"),\"Y\",\"N\")))","v":""},{"$f":"IF($B212=\"N\",\"\",IF($S212=\"-\",\"-\",IF(AND($S212=\"Y\",'Enrollment Form'!$CO219=\"No\"),\"-\",IF(AND($S212=\"Y\",'Enrollment Form'!$CO219=\"Yes\",'Enrollment Form'!$CP219<>\"\"),\"Y\",\"N\"))))","v":""},{"$f":"IF(OR('Enrollment Form'!$AV219=\"Yes\",'Enrollment Form'!$AV219=\"\"),\"-\",IF(AND('Enrollment Form'!$AV219=\"No\",ISERROR(FIND(\"HMO\",VLOOKUP('Enrollment Form'!G219,'Enrollment Form'!H$11:J$1000,3,FALSE),1))=FALSE,COUNTA('Enrollment Form'!$AW219:$AZ219)=4),\"Y\",\"N\"))","v":"-"},{"$f":"IF($B212=\"N\",\"\",IF('Enrollment Form'!$B219=\"Subscriber\",\"-\",IF(COUNTA('Enrollment Form'!$BE219,'Enrollment Form'!$BG219)=2,\"Y\",\"N\")))","v":""},{"$f":"IF($B212=\"N\",\"\",IF(OR('Enrollment Form'!$AU219=\"\",'Enrollment Form'!$AU219=\"No\"),\"-\",IF(AND('Enrollment Form'!$AU219=\"Yes\",COUNTA('Enrollment Form'!$CK219)=1),\"Y\",\"N\")))","v":""},{"$f":"IF(OR('Enrollment Form'!$CK219=\"\",'Enrollment Form'!$CK219=\"No\"),\"-\",IF(COUNTA('Enrollment Form'!$CM219:$CN219)=2,\"Y\",\"N\"))","v":"-"},{"$f":"IF($B212=\"N\",\"\",IF(COUNTIF('Enrollment Form'!$CZ219:$DO219,\"Other\")=COUNTA('Enrollment Form'!$DF219,'Enrollment Form'!$DA219,'Enrollment Form'!$DK219,'Enrollment Form'!$DP219),\"Y\",\"N\"))","v":""},{"$f":"IF($B212=\"N\",\"\",IF(OR('Enrollment Form'!B219<>\"Subscriber\",'Enrollment Form'!C219=\"ROC\",COUNTIF('Enrollment Form'!AS219:AT219,\"Yes\")>=1),\"-\",IF(AND('Enrollment Form'!C219=\"Enroll\",COUNTIF('Enrollment Form'!AS219:AT219,\"No\")=2,'Enrollment Form'!AU219=\"\"),\"N\",\"Y\")))","v":""},{"$f":"IF(OR(B212=\"N\",'Enrollment Form'!B219<>\"Subscriber\",'Enrollment Form'!C219=\"ROC\",'Enrollment Form'!O219<>\"Multiple of Salary\"),\"-\",IF(COUNTA('Enrollment Form'!T219:U219)<2,\"N\",\"Y\"))","v":"-"},{"$f":"IF(B212=\"N\",\"\",IF(OR('Enrollment Form'!C219=\"ROC\",'Enrollment Form'!B219<>\"Subscriber\",'Enrollment Form'!O219=\"Waive\",'Enrollment Form'!O219=\"\"),\"-\",IF('Enrollment Form'!P219=\"\",\"N\",\"Y\")))","v":""},{"$f":"IF($B212=\"N\",\"\",IF(AND('Enrollment Form'!$C219=\"ROC\",'Enrollment Form'!$DS219<>\"\"),\"Y\",IF(AND('Enrollment Form'!$C219=\"ROC\",'Enrollment Form'!$DS219=\"\"),\"N\",IF(AND('Enrollment Form'!$C219=\"Enroll\",'Enrollment Form'!$B219=\"Subscriber\",'Enrollment Form'!$CQ219=\"No\",'Enrollment Form'!$DS219=\"\"),\"N\",IF(AND('Enrollment Form'!$C219=\"Enroll\",'Enrollment Form'!$B219=\"Subscriber\",'Enrollment Form'!$CQ219=\"Yes\"),\"-\",\"Y\")))))","v":""},{"$f":"IF($B212=\"N\",\"\",IF(AND('Enrollment Form'!$C219=\"ROC\",'Enrollment Form'!$DT219<>\"\"),\"Y\",IF(AND('Enrollment Form'!$C219=\"ROC\",'Enrollment Form'!$DT219=\"\"),\"N\",IF(AND('Enrollment Form'!$C219=\"Enroll\",'Enrollment Form'!$B219=\"Subscriber\",'Enrollment Form'!$CQ219=\"No\",'Enrollment Form'!$DT219=\"\"),\"N\",IF(AND('Enrollment Form'!$C219=\"Enroll\",'Enrollment Form'!$B219=\"Subscriber\",'Enrollment Form'!$CQ219=\"Yes\"),\"-\",\"Y\")))))","v":""},{"$f":"IF('Enrollment Form'!AH219=\"\",\"\",IF(ISERROR(SEARCH(\".\",'Enrollment Form'!AH219,SEARCH(\"@\",'Enrollment Form'!AH219))),\"N\",\"Y\"))","v":""},{"$f":"IF(OR($B212=\"N\",'Enrollment Form'!$G219=\"\"),\"\",IF('Enrollment Form'!$B219<>\"Subscriber\",\"-\",IF(COUNTIF('Enrollment Form'!$AS219:$AT219,\"Yes\")=2,\"N\",\"Y\")))","v":""},{"$f":"IF(OR('Enrollment Form'!$CC219=\"\",'Enrollment Form'!$CC219=\"No\"),\"-\",IF(AND('Enrollment Form'!$CC219=\"Yes\",'Enrollment Form'!$CD219=\"\"),\"N\",\"Y\"))","v":"-"},{"$f":"IF(OR('Enrollment Form'!$CE219=\"\",'Enrollment Form'!$CE219=\"No\"),\"-\",IF(AND('Enrollment Form'!$CE219=\"Yes\",'Enrollment Form'!$CF219=\"\"),\"N\",\"Y\"))","v":"-"},{"$f":"IF(OR('Enrollment Form'!$CG219=\"\",'Enrollment Form'!$CG219=\"No\"),\"-\",IF(AND('Enrollment Form'!$CG219=\"Yes\",'Enrollment Form'!$CH219=\"\"),\"N\",\"Y\"))","v":"-"},{"$f":"IF(OR('Enrollment Form'!$CG219=\"\",'Enrollment Form'!$CG219=\"No\"),\"-\",IF(AND('Enrollment Form'!$CG219=\"Yes\",'Enrollment Form'!$CI219=\"\"),\"N\",\"Y\"))","v":"-"},{"$f":"IF('Enrollment Form'!B219<>\"Subscriber\",\"-\",IF(AND('Enrollment Form'!B219=\"Subscriber\",'Enrollment Form'!C219=\"Enroll\",'Enrollment Form'!AA219=\"\"),\"N\",\"Y\"))","v":"-"},{"$f":"IF(OR('Enrollment Form'!B219=\"Subscriber\",'Enrollment Form'!B219=\"\"),\"-\",IF('Enrollment Form'!BI219=\"\",\"N\",\"Y\"))","v":"-"},{"$f":"IF('Enrollment Form'!B219<>\"Subscriber\",\"-\",IF(AND('Enrollment Form'!B219=\"Subscriber\",'Enrollment Form'!G219=\"\"),\"N\",\"Y\"))","v":"-"},{"$f":"IF('Enrollment Form'!A219=\"\",\"\",IF('Enrollment Form'!B219=\"Subscriber\",\"-\",IF(AND('Enrollment Form'!B219<>\"Subscriber\",'Enrollment Form'!G219='Enrollment Form'!H219),\"N\",\"Y\")))","v":""},0]
[220,{"$f":"IF('Enrollment Form'!$A220<>\"\",\"Y\",\"N\")","v":"N"},{"$f":"IF(AND('Enrollment Form'!$B220=\"\",'Enrollment Form'!$C220<>\"\"),\"N\",IF($B213=\"N\",\"\",\"Y\"))","v":""},{"$f":"IF(OR($B213=\"N\",'Enrollment Form'!G220=\"\"),\"\",IF('Enrollment Form'!$B220<>\"Subscriber\",\"\",IF('Enrollment Form'!$G220='Enrollment Form'!$H220,\"Y\",\"N\")))","v":""},{"$f":"IF($B213=\"N\",\"\",IF(AND(COUNTIFS('Enrollment Form'!$H$11:$H$1000,'Enrollment Form'!$H220,'Enrollment Form'!$B$11:$B$1000,'Enrollment Form'!$B220)>1,'Enrollment Form'!$H220<>\"\"),\"N\",\"Y\"))","v":""},{"$f":"IF($B213=\"N\",\"\",IF(LEN('Enrollment Form'!$Y220)=0,\"\",IF(LEN('Enrollment Form'!$Y220)<>5,\"N\",\"Y\")))","v":""},{"$f":"IF($B213=\"N\",\"\",IF(LEN('Enrollment Form'!$AD220=0),\"\",IF(LEN('Enrollment Form'!$AD220)<>5,\"N\",\"Y\")))","v":""},{"$f":"IF($B213=\"N\",\"\",IF(LEN('Enrollment Form'!$BL220=0),\"\",IF(LEN('Enrollment Form'!$BL220)<>5,\"N\",\"Y\")))","v":""},{"$f":"IF($B213=\"N\",\"\",IF(LEN('Enrollment Form'!$AE220)=0,\"\",IF(LEN('Enrollment Form'!$AE220)<>10,\"N\",\"Y\")))","v":""},{"$f":"IF($B213=\"N\",\"\",IF(LEN('Enrollment Form'!$AF220)=0,\"\",IF(LEN('Enrollment Form'!$AF220)<>10,\"N\",\"Y\")))","v":""},{"$f":"IF('Enrollment Form'!$O220<>\"Graded\",\"-\",IF(AND('Enrollment Form'!$O220=\"Graded\",'Enrollment Form'!$AO220<>\"\"),\"Y\",\"N\"))","v":"-"},{"$f":"IF($B213=\"N\",\"\",IF(OR('Enrollment Form'!$B220<>\"Subscriber\",'Enrollment Form'!$C220=\"ROC\"),\"-\",IF(AND('Enrollment Form'!$B220=\"Subscriber\",'Enrollment Form'!$C220=\"Enroll\",'Enrollment Form'!$AJ220<>\"\"),\"Y\",\"N\")))","v":""},{"$f":"IF($B213=\"N\",\"\",IF(OR('Enrollment Form'!$B220<>\"Subscriber\",'Enrollment Form'!$C220=\"ROC\"),\"-\",IF(AND('Enrollment Form'!$B220=\"Subscriber\",'Enrollment Form'!$C220=\"Enroll\",'Enrollment Form'!$AK220<>\"\"),\"Y\",\"N\")))","v":""},{"$f":"IF($B213=\"N\",\"\",IF(OR('Enrollment Form'!$B220<>\"Subscriber\",'Enrollment Form'!$C220=\"ROC\"),\"-\",IF(AND('Enrollment Form'!$B220=\"Subscriber\",'Enrollment Form'!$C220=\"Enroll\",'Enrollment Form'!$AL220<>\"\"),\"Y\",\"N\")))","v":""},{"$f":"IF($B213=\"N\",\"\",IF(OR('Enrollment Form'!$B220<>\"Subscriber\",'Enrollment Form'!$C220=\"ROC\"),\"-\",IF(AND('Enrollment Form'!$B220=\"Subscriber\",'Enrollment Form'!$C220=\"Enroll\",'Enrollment Form'!$AM220<>\"\"),\"Y\",\"N\")))","v":""},{"$f":"IF($B213=\"N\",\"\",IF(OR('Enrollment Form'!$B220<>\"Subscriber\",'Enrollment Form'!$C220=\"ROC\"),\"-\",IF(AND('Enrollment Form'!$B220=\"Subscriber\",'Enrollment Form'!$C220=\"Enroll\",'Enrollment Form'!$AN220<>\"\"),\"Y\",\"N\")))","v":""},{"$f":"IF($B213=\"N\",\"\",IF(OR('Enrollment Form'!$B220<>\"Subscriber\",'Enrollment Form'!$C220=\"ROC\"),\"-\",IF(AND('Enrollment Form'!$B220=\"Subscriber\",'Enrollment Form'!$C220=\"Enroll\",'Enrollment Form'!$AP220<>\"\"),\"Y\",\"N\")))","v":""},{"$f":"IF($B213=\"N\",\"\",IF($Q213=\"-\",\"-\",IF(AND($Q213=\"Y\",'Enrollment Form'!$AP220=\"No\"),\"-\",IF(AND($Q213=\"Y\",'Enrollment Form'!$AP220=\"Yes\",'Enrollment Form'!$AQ220<>\"\"),\"Y\",\"N\"))))","v":""},{"$f":"IF($B213=\"N\",\"\",IF(OR('Enrollment Form'!$B220<>\"Subscriber\",'Enrollment Form'!$C220=\"ROC\"),\"-\",IF(AND('Enrollment Form'!$B220=\"Subscriber\",'Enrollment Form'!$C220=\"Enroll\",'Enrollment Form'!$CO220<>\"\"),\"Y\",\"N\")))","v":""},{"$f":"IF($B213=\"N\",\"\",IF($S213=\"-\",\"-\",IF(AND($S213=\"Y\",'Enrollment Form'!$CO220=\"No\"),\"-\",IF(AND($S213=\"Y\",'Enrollment Form'!$CO220=\"Yes\",'Enrollment Form'!$CP220<>\"\"),\"Y\",\"N\"))))","v":""},{"$f":"IF(OR('Enrollment Form'!$AV220=\"Yes\",'Enrollment Form'!$AV220=\"\"),\"-\",IF(AND('Enrollment Form'!$AV220=\"No\",ISERROR(FIND(\"HMO\",VLOOKUP('Enrollment Form'!G220,'Enrollment Form'!H$11:J$1000,3,FALSE),1))=FALSE,COUNTA('Enrollment Form'!$AW220:$AZ220)=4),\"Y\",\"N\"))","v":"-"},{"$f":"IF($B213=\"N\",\"\",IF('Enrollment Form'!$B220=\"Subscriber\",\"-\",IF(COUNTA('Enrollment Form'!$BE220,'Enrollment Form'!$BG220)=2,\"Y\",\"N\")))","v":""},{"$f":"IF($B213=\"N\",\"\",IF(OR('Enrollment Form'!$AU220=\"\",'Enrollment Form'!$AU220=\"No\"),\"-\",IF(AND('Enrollment Form'!$AU220=\"Yes\",COUNTA('Enrollment Form'!$CK220)=1),\"Y\",\"N\")))","v":""},{"$f":"IF(OR('Enrollment Form'!$CK220=\"\",'Enrollment Form'!$CK220=\"No\"),\"-\",IF(COUNTA('Enrollment Form'!$CM220:$CN220)=2,\"Y\",\"N\"))","v":"-"},{"$f":"IF($B213=\"N\",\"\",IF(COUNTIF('Enrollment Form'!$CZ220:$DO220,\"Other\")=COUNTA('Enrollment Form'!$DF220,'Enrollment Form'!$DA220,'Enrollment Form'!$DK220,'Enrollment Form'!$DP220),\"Y\",\"N\"))","v":""},{"$f":"IF($B213=\"N\",\"\",IF(OR('Enrollment Form'!B220<>\"Subscriber\",'Enrollment Form'!C220=\"ROC\",COUNTIF('Enrollment Form'!AS220:AT220,\"Yes\")>=1),\"-\",IF(AND('Enrollment Form'!C220=\"Enroll\",COUNTIF('Enrollment Form'!AS220:AT220,\"No\")=2,'Enrollment Form'!AU220=\"\"),\"N\",\"Y\")))","v":""},{"$f":"IF(OR(B213=\"N\",'Enrollment Form'!B220<>\"Subscriber\",'Enrollment Form'!C220=\"ROC\",'Enrollment Form'!O220<>\"Multiple of Salary\"),\"-\",IF(COUNTA('Enrollment Form'!T220:U220)<2,\"N\",\"Y\"))","v":"-"},{"$f":"IF(B213=\"N\",\"\",IF(OR('Enrollment Form'!C220=\"ROC\",'Enrollment Form'!B220<>\"Subscriber\",'Enrollment Form'!O220=\"Waive\",'Enrollment Form'!O220=\"\"),\"-\",IF('Enrollment Form'!P220=\"\",\"N\",\"Y\")))","v":""},{"$f":"IF($B213=\"N\",\"\",IF(AND('Enrollment Form'!$C220=\"ROC\",'Enrollment Form'!$DS220<>\"\"),\"Y\",IF(AND('Enrollment Form'!$C220=\"ROC\",'Enrollment Form'!$DS220=\"\"),\"N\",IF(AND('Enrollment Form'!$C220=\"Enroll\",'Enrollment Form'!$B220=\"Subscriber\",'Enrollment Form'!$CQ220=\"No\",'Enrollment Form'!$DS220=\"\"),\"N\",IF(AND('Enrollment Form'!$C220=\"Enroll\",'Enrollment Form'!$B220=\"Subscriber\",'Enrollment Form'!$CQ220=\"Yes\"),\"-\",\"Y\")))))","v":""},{"$f":"IF($B213=\"N\",\"\",IF(AND('Enrollment Form'!$C220=\"ROC\",'Enrollment Form'!$DT220<>\"\"),\"Y\",IF(AND('Enrollment Form'!$C220=\"ROC\",'Enrollment Form'!$DT220=\"\"),\"N\",IF(AND('Enrollment Form'!$C220=\"Enroll\",'Enrollment Form'!$B220=\"Subscriber\",'Enrollment Form'!$CQ220=\"No\",'Enrollment Form'!$DT220=\"\"),\"N\",IF(AND('Enrollment Form'!$C220=\"Enroll\",'Enrollment Form'!$B220=\"Subscriber\",'Enrollment Form'!$CQ220=\"Yes\"),\"-\",\"Y\")))))","v":""},{"$f":"IF('Enrollment Form'!AH220=\"\",\"\",IF(ISERROR(SEARCH(\".\",'Enrollment Form'!AH220,SEARCH(\"@\",'Enrollment Form'!AH220))),\"N\",\"Y\"))","v":""},{"$f":"IF(OR($B213=\"N\",'Enrollment Form'!$G220=\"\"),\"\",IF('Enrollment Form'!$B220<>\"Subscriber\",\"-\",IF(COUNTIF('Enrollment Form'!$AS220:$AT220,\"Yes\")=2,\"N\",\"Y\")))","v":""},{"$f":"IF(OR('Enrollment Form'!$CC220=\"\",'Enrollment Form'!$CC220=\"No\"),\"-\",IF(AND('Enrollment Form'!$CC220=\"Yes\",'Enrollment Form'!$CD220=\"\"),\"N\",\"Y\"))","v":"-"},{"$f":"IF(OR('Enrollment Form'!$CE220=\"\",'Enrollment Form'!$CE220=\"No\"),\"-\",IF(AND('Enrollment Form'!$CE220=\"Yes\",'Enrollment Form'!$CF220=\"\"),\"N\",\"Y\"))","v":"-"},{"$f":"IF(OR('Enrollment Form'!$CG220=\"\",'Enrollment Form'!$CG220=\"No\"),\"-\",IF(AND('Enrollment Form'!$CG220=\"Yes\",'Enrollment Form'!$CH220=\"\"),\"N\",\"Y\"))","v":"-"},{"$f":"IF(OR('Enrollment Form'!$CG220=\"\",'Enrollment Form'!$CG220=\"No\"),\"-\",IF(AND('Enrollment Form'!$CG220=\"Yes\",'Enrollment Form'!$CI220=\"\"),\"N\",\"Y\"))","v":"-"},{"$f":"IF('Enrollment Form'!B220<>\"Subscriber\",\"-\",IF(AND('Enrollment Form'!B220=\"Subscriber\",'Enrollment Form'!C220=\"Enroll\",'Enrollment Form'!AA220=\"\"),\"N\",\"Y\"))","v":"-"},{"$f":"IF(OR('Enrollment Form'!B220=\"Subscriber\",'Enrollment Form'!B220=\"\"),\"-\",IF('Enrollment Form'!BI220=\"\",\"N\",\"Y\"))","v":"-"},{"$f":"IF('Enrollment Form'!B220<>\"Subscriber\",\"-\",IF(AND('Enrollment Form'!B220=\"Subscriber\",'Enrollment Form'!G220=\"\"),\"N\",\"Y\"))","v":"-"},{"$f":"IF('Enrollment Form'!A220=\"\",\"\",IF('Enrollment Form'!B220=\"Subscriber\",\"-\",IF(AND('Enrollment Form'!B220<>\"Subscriber\",'Enrollment Form'!G220='Enrollment Form'!H220),\"N\",\"Y\")))","v":""},0]
[221,{"$f":"IF('Enrollment Form'!$A221<>\"\",\"Y\",\"N\")","v":"N"},{"$f":"IF(AND('Enrollment Form'!$B221=\"\",'Enrollment Form'!$C221<>\"\"),\"N\",IF($B214=\"N\",\"\",\"Y\"))","v":""},{"$f":"IF(OR($B214=\"N\",'Enrollment Form'!G221=\"\"),\"\",IF('Enrollment Form'!$B221<>\"Subscriber\",\"\",IF('Enrollment Form'!$G221='Enrollment Form'!$H221,\"Y\",\"N\")))","v":""},{"$f":"IF($B214=\"N\",\"\",IF(AND(COUNTIFS('Enrollment Form'!$H$11:$H$1000,'Enrollment Form'!$H221,'Enrollment Form'!$B$11:$B$1000,'Enrollment Form'!$B221)>1,'Enrollment Form'!$H221<>\"\"),\"N\",\"Y\"))","v":""},{"$f":"IF($B214=\"N\",\"\",IF(LEN('Enrollment Form'!$Y221)=0,\"\",IF(LEN('Enrollment Form'!$Y221)<>5,\"N\",\"Y\")))","v":""},{"$f":"IF($B214=\"N\",\"\",IF(LEN('Enrollment Form'!$AD221=0),\"\",IF(LEN('Enrollment Form'!$AD221)<>5,\"N\",\"Y\")))","v":""},{"$f":"IF($B214=\"N\",\"\",IF(LEN('Enrollment Form'!$BL221=0),\"\",IF(LEN('Enrollment Form'!$BL221)<>5,\"N\",\"Y\")))","v":""},{"$f":"IF($B214=\"N\",\"\",IF(LEN('Enrollment Form'!$AE221)=0,\"\",IF(LEN('Enrollment Form'!$AE221)<>10,\"N\",\"Y\")))","v":""},{"$f":"IF($B214=\"N\",\"\",IF(LEN('Enrollment Form'!$AF221)=0,\"\",IF(LEN('Enrollment Form'!$AF221)<>10,\"N\",\"Y\")))","v":""},{"$f":"IF('Enrollment Form'!$O221<>\"Graded\",\"-\",IF(AND('Enrollment Form'!$O221=\"Graded\",'Enrollment Form'!$AO221<>\"\"),\"Y\",\"N\"))","v":"-"},{"$f":"IF($B214=\"N\",\"\",IF(OR('Enrollment Form'!$B221<>\"Subscriber\",'Enrollment Form'!$C221=\"ROC\"),\"-\",IF(AND('Enrollment Form'!$B221=\"Subscriber\",'Enrollment Form'!$C221=\"Enroll\",'Enrollment Form'!$AJ221<>\"\"),\"Y\",\"N\")))","v":""},{"$f":"IF($B214=\"N\",\"\",IF(OR('Enrollment Form'!$B221<>\"Subscriber\",'Enrollment Form'!$C221=\"ROC\"),\"-\",IF(AND('Enrollment Form'!$B221=\"Subscriber\",'Enrollment Form'!$C221=\"Enroll\",'Enrollment Form'!$AK221<>\"\"),\"Y\",\"N\")))","v":""},{"$f":"IF($B214=\"N\",\"\",IF(OR('Enrollment Form'!$B221<>\"Subscriber\",'Enrollment Form'!$C221=\"ROC\"),\"-\",IF(AND('Enrollment Form'!$B221=\"Subscriber\",'Enrollment Form'!$C221=\"Enroll\",'Enrollment Form'!$AL221<>\"\"),\"Y\",\"N\")))","v":""},{"$f":"IF($B214=\"N\",\"\",IF(OR('Enrollment Form'!$B221<>\"Subscriber\",'Enrollment Form'!$C221=\"ROC\"),\"-\",IF(AND('Enrollment Form'!$B221=\"Subscriber\",'Enrollment Form'!$C221=\"Enroll\",'Enrollment Form'!$AM221<>\"\"),\"Y\",\"N\")))","v":""},{"$f":"IF($B214=\"N\",\"\",IF(OR('Enrollment Form'!$B221<>\"Subscriber\",'Enrollment Form'!$C221=\"ROC\"),\"-\",IF(AND('Enrollment Form'!$B221=\"Subscriber\",'Enrollment Form'!$C221=\"Enroll\",'Enrollment Form'!$AN221<>\"\"),\"Y\",\"N\")))","v":""},{"$f":"IF($B214=\"N\",\"\",IF(OR('Enrollment Form'!$B221<>\"Subscriber\",'Enrollment Form'!$C221=\"ROC\"),\"-\",IF(AND('Enrollment Form'!$B221=\"Subscriber\",'Enrollment Form'!$C221=\"Enroll\",'Enrollment Form'!$AP221<>\"\"),\"Y\",\"N\")))","v":""},{"$f":"IF($B214=\"N\",\"\",IF($Q214=\"-\",\"-\",IF(AND($Q214=\"Y\",'Enrollment Form'!$AP221=\"No\"),\"-\",IF(AND($Q214=\"Y\",'Enrollment Form'!$AP221=\"Yes\",'Enrollment Form'!$AQ221<>\"\"),\"Y\",\"N\"))))","v":""},{"$f":"IF($B214=\"N\",\"\",IF(OR('Enrollment Form'!$B221<>\"Subscriber\",'Enrollment Form'!$C221=\"ROC\"),\"-\",IF(AND('Enrollment Form'!$B221=\"Subscriber\",'Enrollment Form'!$C221=\"Enroll\",'Enrollment Form'!$CO221<>\"\"),\"Y\",\"N\")))","v":""},{"$f":"IF($B214=\"N\",\"\",IF($S214=\"-\",\"-\",IF(AND($S214=\"Y\",'Enrollment Form'!$CO221=\"No\"),\"-\",IF(AND($S214=\"Y\",'Enrollment Form'!$CO221=\"Yes\",'Enrollment Form'!$CP221<>\"\"),\"Y\",\"N\"))))","v":""},{"$f":"IF(OR('Enrollment Form'!$AV221=\"Yes\",'Enrollment Form'!$AV221=\"\"),\"-\",IF(AND('Enrollment Form'!$AV221=\"No\",ISERROR(FIND(\"HMO\",VLOOKUP('Enrollment Form'!G221,'Enrollment Form'!H$11:J$1000,3,FALSE),1))=FALSE,COUNTA('Enrollment Form'!$AW221:$AZ221)=4),\"Y\",\"N\"))","v":"-"},{"$f":"IF($B214=\"N\",\"\",IF('Enrollment Form'!$B221=\"Subscriber\",\"-\",IF(COUNTA('Enrollment Form'!$BE221,'Enrollment Form'!$BG221)=2,\"Y\",\"N\")))","v":""},{"$f":"IF($B214=\"N\",\"\",IF(OR('Enrollment Form'!$AU221=\"\",'Enrollment Form'!$AU221=\"No\"),\"-\",IF(AND('Enrollment Form'!$AU221=\"Yes\",COUNTA('Enrollment Form'!$CK221)=1),\"Y\",\"N\")))","v":""},{"$f":"IF(OR('Enrollment Form'!$CK221=\"\",'Enrollment Form'!$CK221=\"No\"),\"-\",IF(COUNTA('Enrollment Form'!$CM221:$CN221)=2,\"Y\",\"N\"))","v":"-"},{"$f":"IF($B214=\"N\",\"\",IF(COUNTIF('Enrollment Form'!$CZ221:$DO221,\"Other\")=COUNTA('Enrollment Form'!$DF221,'Enrollment Form'!$DA221,'Enrollment Form'!$DK221,'Enrollment Form'!$DP221),\"Y\",\"N\"))","v":""},{"$f":"IF($B214=\"N\",\"\",IF(OR('Enrollment Form'!B221<>\"Subscriber\",'Enrollment Form'!C221=\"ROC\",COUNTIF('Enrollment Form'!AS221:AT221,\"Yes\")>=1),\"-\",IF(AND('Enrollment Form'!C221=\"Enroll\",COUNTIF('Enrollment Form'!AS221:AT221,\"No\")=2,'Enrollment Form'!AU221=\"\"),\"N\",\"Y\")))","v":""},{"$f":"IF(OR(B214=\"N\",'Enrollment Form'!B221<>\"Subscriber\",'Enrollment Form'!C221=\"ROC\",'Enrollment Form'!O221<>\"Multiple of Salary\"),\"-\",IF(COUNTA('Enrollment Form'!T221:U221)<2,\"N\",\"Y\"))","v":"-"},{"$f":"IF(B214=\"N\",\"\",IF(OR('Enrollment Form'!C221=\"ROC\",'Enrollment Form'!B221<>\"Subscriber\",'Enrollment Form'!O221=\"Waive\",'Enrollment Form'!O221=\"\"),\"-\",IF('Enrollment Form'!P221=\"\",\"N\",\"Y\")))","v":""},{"$f":"IF($B214=\"N\",\"\",IF(AND('Enrollment Form'!$C221=\"ROC\",'Enrollment Form'!$DS221<>\"\"),\"Y\",IF(AND('Enrollment Form'!$C221=\"ROC\",'Enrollment Form'!$DS221=\"\"),\"N\",IF(AND('Enrollment Form'!$C221=\"Enroll\",'Enrollment Form'!$B221=\"Subscriber\",'Enrollment Form'!$CQ221=\"No\",'Enrollment Form'!$DS221=\"\"),\"N\",IF(AND('Enrollment Form'!$C221=\"Enroll\",'Enrollment Form'!$B221=\"Subscriber\",'Enrollment Form'!$CQ221=\"Yes\"),\"-\",\"Y\")))))","v":""},{"$f":"IF($B214=\"N\",\"\",IF(AND('Enrollment Form'!$C221=\"ROC\",'Enrollment Form'!$DT221<>\"\"),\"Y\",IF(AND('Enrollment Form'!$C221=\"ROC\",'Enrollment Form'!$DT221=\"\"),\"N\",IF(AND('Enrollment Form'!$C221=\"Enroll\",'Enrollment Form'!$B221=\"Subscriber\",'Enrollment Form'!$CQ221=\"No\",'Enrollment Form'!$DT221=\"\"),\"N\",IF(AND('Enrollment Form'!$C221=\"Enroll\",'Enrollment Form'!$B221=\"Subscriber\",'Enrollment Form'!$CQ221=\"Yes\"),\"-\",\"Y\")))))","v":""},{"$f":"IF('Enrollment Form'!AH221=\"\",\"\",IF(ISERROR(SEARCH(\".\",'Enrollment Form'!AH221,SEARCH(\"@\",'Enrollment Form'!AH221))),\"N\",\"Y\"))","v":""},{"$f":"IF(OR($B214=\"N\",'Enrollment Form'!$G221=\"\"),\"\",IF('Enrollment Form'!$B221<>\"Subscriber\",\"-\",IF(COUNTIF('Enrollment Form'!$AS221:$AT221,\"Yes\")=2,\"N\",\"Y\")))","v":""},{"$f":"IF(OR('Enrollment Form'!$CC221=\"\",'Enrollment Form'!$CC221=\"No\"),\"-\",IF(AND('Enrollment Form'!$CC221=\"Yes\",'Enrollment Form'!$CD221=\"\"),\"N\",\"Y\"))","v":"-"},{"$f":"IF(OR('Enrollment Form'!$CE221=\"\",'Enrollment Form'!$CE221=\"No\"),\"-\",IF(AND('Enrollment Form'!$CE221=\"Yes\",'Enrollment Form'!$CF221=\"\"),\"N\",\"Y\"))","v":"-"},{"$f":"IF(OR('Enrollment Form'!$CG221=\"\",'Enrollment Form'!$CG221=\"No\"),\"-\",IF(AND('Enrollment Form'!$CG221=\"Yes\",'Enrollment Form'!$CH221=\"\"),\"N\",\"Y\"))","v":"-"},{"$f":"IF(OR('Enrollment Form'!$CG221=\"\",'Enrollment Form'!$CG221=\"No\"),\"-\",IF(AND('Enrollment Form'!$CG221=\"Yes\",'Enrollment Form'!$CI221=\"\"),\"N\",\"Y\"))","v":"-"},{"$f":"IF('Enrollment Form'!B221<>\"Subscriber\",\"-\",IF(AND('Enrollment Form'!B221=\"Subscriber\",'Enrollment Form'!C221=\"Enroll\",'Enrollment Form'!AA221=\"\"),\"N\",\"Y\"))","v":"-"},{"$f":"IF(OR('Enrollment Form'!B221=\"Subscriber\",'Enrollment Form'!B221=\"\"),\"-\",IF('Enrollment Form'!BI221=\"\",\"N\",\"Y\"))","v":"-"},{"$f":"IF('Enrollment Form'!B221<>\"Subscriber\",\"-\",IF(AND('Enrollment Form'!B221=\"Subscriber\",'Enrollment Form'!G221=\"\"),\"N\",\"Y\"))","v":"-"},{"$f":"IF('Enrollment Form'!A221=\"\",\"\",IF('Enrollment Form'!B221=\"Subscriber\",\"-\",IF(AND('Enrollment Form'!B221<>\"Subscriber\",'Enrollment Form'!G221='Enrollment Form'!H221),\"N\",\"Y\")))","v":""},0]
[222,{"$f":"IF('Enrollment Form'!$A222<>\"\",\"Y\",\"N\")","v":"N"},{"$f":"IF(AND('Enrollment Form'!$B222=\"\",'Enrollment Form'!$C222<>\"\"),\"N\",IF($B215=\"N\",\"\",\"Y\"))","v":""},{"$f":"IF(OR($B215=\"N\",'Enrollment Form'!G222=\"\"),\"\",IF('Enrollment Form'!$B222<>\"Subscriber\",\"\",IF('Enrollment Form'!$G222='Enrollment Form'!$H222,\"Y\",\"N\")))","v":""},{"$f":"IF($B215=\"N\",\"\",IF(AND(COUNTIFS('Enrollment Form'!$H$11:$H$1000,'Enrollment Form'!$H222,'Enrollment Form'!$B$11:$B$1000,'Enrollment Form'!$B222)>1,'Enrollment Form'!$H222<>\"\"),\"N\",\"Y\"))","v":""},{"$f":"IF($B215=\"N\",\"\",IF(LEN('Enrollment Form'!$Y222)=0,\"\",IF(LEN('Enrollment Form'!$Y222)<>5,\"N\",\"Y\")))","v":""},{"$f":"IF($B215=\"N\",\"\",IF(LEN('Enrollment Form'!$AD222=0),\"\",IF(LEN('Enrollment Form'!$AD222)<>5,\"N\",\"Y\")))","v":""},{"$f":"IF($B215=\"N\",\"\",IF(LEN('Enrollment Form'!$BL222=0),\"\",IF(LEN('Enrollment Form'!$BL222)<>5,\"N\",\"Y\")))","v":""},{"$f":"IF($B215=\"N\",\"\",IF(LEN('Enrollment Form'!$AE222)=0,\"\",IF(LEN('Enrollment Form'!$AE222)<>10,\"N\",\"Y\")))","v":""},{"$f":"IF($B215=\"N\",\"\",IF(LEN('Enrollment Form'!$AF222)=0,\"\",IF(LEN('Enrollment Form'!$AF222)<>10,\"N\",\"Y\")))","v":""},{"$f":"IF('Enrollment Form'!$O222<>\"Graded\",\"-\",IF(AND('Enrollment Form'!$O222=\"Graded\",'Enrollment Form'!$AO222<>\"\"),\"Y\",\"N\"))","v":"-"},{"$f":"IF($B215=\"N\",\"\",IF(OR('Enrollment Form'!$B222<>\"Subscriber\",'Enrollment Form'!$C222=\"ROC\"),\"-\",IF(AND('Enrollment Form'!$B222=\"Subscriber\",'Enrollment Form'!$C222=\"Enroll\",'Enrollment Form'!$AJ222<>\"\"),\"Y\",\"N\")))","v":""},{"$f":"IF($B215=\"N\",\"\",IF(OR('Enrollment Form'!$B222<>\"Subscriber\",'Enrollment Form'!$C222=\"ROC\"),\"-\",IF(AND('Enrollment Form'!$B222=\"Subscriber\",'Enrollment Form'!$C222=\"Enroll\",'Enrollment Form'!$AK222<>\"\"),\"Y\",\"N\")))","v":""},{"$f":"IF($B215=\"N\",\"\",IF(OR('Enrollment Form'!$B222<>\"Subscriber\",'Enrollment Form'!$C222=\"ROC\"),\"-\",IF(AND('Enrollment Form'!$B222=\"Subscriber\",'Enrollment Form'!$C222=\"Enroll\",'Enrollment Form'!$AL222<>\"\"),\"Y\",\"N\")))","v":""},{"$f":"IF($B215=\"N\",\"\",IF(OR('Enrollment Form'!$B222<>\"Subscriber\",'Enrollment Form'!$C222=\"ROC\"),\"-\",IF(AND('Enrollment Form'!$B222=\"Subscriber\",'Enrollment Form'!$C222=\"Enroll\",'Enrollment Form'!$AM222<>\"\"),\"Y\",\"N\")))","v":""},{"$f":"IF($B215=\"N\",\"\",IF(OR('Enrollment Form'!$B222<>\"Subscriber\",'Enrollment Form'!$C222=\"ROC\"),\"-\",IF(AND('Enrollment Form'!$B222=\"Subscriber\",'Enrollment Form'!$C222=\"Enroll\",'Enrollment Form'!$AN222<>\"\"),\"Y\",\"N\")))","v":""},{"$f":"IF($B215=\"N\",\"\",IF(OR('Enrollment Form'!$B222<>\"Subscriber\",'Enrollment Form'!$C222=\"ROC\"),\"-\",IF(AND('Enrollment Form'!$B222=\"Subscriber\",'Enrollment Form'!$C222=\"Enroll\",'Enrollment Form'!$AP222<>\"\"),\"Y\",\"N\")))","v":""},{"$f":"IF($B215=\"N\",\"\",IF($Q215=\"-\",\"-\",IF(AND($Q215=\"Y\",'Enrollment Form'!$AP222=\"No\"),\"-\",IF(AND($Q215=\"Y\",'Enrollment Form'!$AP222=\"Yes\",'Enrollment Form'!$AQ222<>\"\"),\"Y\",\"N\"))))","v":""},{"$f":"IF($B215=\"N\",\"\",IF(OR('Enrollment Form'!$B222<>\"Subscriber\",'Enrollment Form'!$C222=\"ROC\"),\"-\",IF(AND('Enrollment Form'!$B222=\"Subscriber\",'Enrollment Form'!$C222=\"Enroll\",'Enrollment Form'!$CO222<>\"\"),\"Y\",\"N\")))","v":""},{"$f":"IF($B215=\"N\",\"\",IF($S215=\"-\",\"-\",IF(AND($S215=\"Y\",'Enrollment Form'!$CO222=\"No\"),\"-\",IF(AND($S215=\"Y\",'Enrollment Form'!$CO222=\"Yes\",'Enrollment Form'!$CP222<>\"\"),\"Y\",\"N\"))))","v":""},{"$f":"IF(OR('Enrollment Form'!$AV222=\"Yes\",'Enrollment Form'!$AV222=\"\"),\"-\",IF(AND('Enrollment Form'!$AV222=\"No\",ISERROR(FIND(\"HMO\",VLOOKUP('Enrollment Form'!G222,'Enrollment Form'!H$11:J$1000,3,FALSE),1))=FALSE,COUNTA('Enrollment Form'!$AW222:$AZ222)=4),\"Y\",\"N\"))","v":"-"},{"$f":"IF($B215=\"N\",\"\",IF('Enrollment Form'!$B222=\"Subscriber\",\"-\",IF(COUNTA('Enrollment Form'!$BE222,'Enrollment Form'!$BG222)=2,\"Y\",\"N\")))","v":""},{"$f":"IF($B215=\"N\",\"\",IF(OR('Enrollment Form'!$AU222=\"\",'Enrollment Form'!$AU222=\"No\"),\"-\",IF(AND('Enrollment Form'!$AU222=\"Yes\",COUNTA('Enrollment Form'!$CK222)=1),\"Y\",\"N\")))","v":""},{"$f":"IF(OR('Enrollment Form'!$CK222=\"\",'Enrollment Form'!$CK222=\"No\"),\"-\",IF(COUNTA('Enrollment Form'!$CM222:$CN222)=2,\"Y\",\"N\"))","v":"-"},{"$f":"IF($B215=\"N\",\"\",IF(COUNTIF('Enrollment Form'!$CZ222:$DO222,\"Other\")=COUNTA('Enrollment Form'!$DF222,'Enrollment Form'!$DA222,'Enrollment Form'!$DK222,'Enrollment Form'!$DP222),\"Y\",\"N\"))","v":""},{"$f":"IF($B215=\"N\",\"\",IF(OR('Enrollment Form'!B222<>\"Subscriber\",'Enrollment Form'!C222=\"ROC\",COUNTIF('Enrollment Form'!AS222:AT222,\"Yes\")>=1),\"-\",IF(AND('Enrollment Form'!C222=\"Enroll\",COUNTIF('Enrollment Form'!AS222:AT222,\"No\")=2,'Enrollment Form'!AU222=\"\"),\"N\",\"Y\")))","v":""},{"$f":"IF(OR(B215=\"N\",'Enrollment Form'!B222<>\"Subscriber\",'Enrollment Form'!C222=\"ROC\",'Enrollment Form'!O222<>\"Multiple of Salary\"),\"-\",IF(COUNTA('Enrollment Form'!T222:U222)<2,\"N\",\"Y\"))","v":"-"},{"$f":"IF(B215=\"N\",\"\",IF(OR('Enrollment Form'!C222=\"ROC\",'Enrollment Form'!B222<>\"Subscriber\",'Enrollment Form'!O222=\"Waive\",'Enrollment Form'!O222=\"\"),\"-\",IF('Enrollment Form'!P222=\"\",\"N\",\"Y\")))","v":""},{"$f":"IF($B215=\"N\",\"\",IF(AND('Enrollment Form'!$C222=\"ROC\",'Enrollment Form'!$DS222<>\"\"),\"Y\",IF(AND('Enrollment Form'!$C222=\"ROC\",'Enrollment Form'!$DS222=\"\"),\"N\",IF(AND('Enrollment Form'!$C222=\"Enroll\",'Enrollment Form'!$B222=\"Subscriber\",'Enrollment Form'!$CQ222=\"No\",'Enrollment Form'!$DS222=\"\"),\"N\",IF(AND('Enrollment Form'!$C222=\"Enroll\",'Enrollment Form'!$B222=\"Subscriber\",'Enrollment Form'!$CQ222=\"Yes\"),\"-\",\"Y\")))))","v":""},{"$f":"IF($B215=\"N\",\"\",IF(AND('Enrollment Form'!$C222=\"ROC\",'Enrollment Form'!$DT222<>\"\"),\"Y\",IF(AND('Enrollment Form'!$C222=\"ROC\",'Enrollment Form'!$DT222=\"\"),\"N\",IF(AND('Enrollment Form'!$C222=\"Enroll\",'Enrollment Form'!$B222=\"Subscriber\",'Enrollment Form'!$CQ222=\"No\",'Enrollment Form'!$DT222=\"\"),\"N\",IF(AND('Enrollment Form'!$C222=\"Enroll\",'Enrollment Form'!$B222=\"Subscriber\",'Enrollment Form'!$CQ222=\"Yes\"),\"-\",\"Y\")))))","v":""},{"$f":"IF('Enrollment Form'!AH222=\"\",\"\",IF(ISERROR(SEARCH(\".\",'Enrollment Form'!AH222,SEARCH(\"@\",'Enrollment Form'!AH222))),\"N\",\"Y\"))","v":""},{"$f":"IF(OR($B215=\"N\",'Enrollment Form'!$G222=\"\"),\"\",IF('Enrollment Form'!$B222<>\"Subscriber\",\"-\",IF(COUNTIF('Enrollment Form'!$AS222:$AT222,\"Yes\")=2,\"N\",\"Y\")))","v":""},{"$f":"IF(OR('Enrollment Form'!$CC222=\"\",'Enrollment Form'!$CC222=\"No\"),\"-\",IF(AND('Enrollment Form'!$CC222=\"Yes\",'Enrollment Form'!$CD222=\"\"),\"N\",\"Y\"))","v":"-"},{"$f":"IF(OR('Enrollment Form'!$CE222=\"\",'Enrollment Form'!$CE222=\"No\"),\"-\",IF(AND('Enrollment Form'!$CE222=\"Yes\",'Enrollment Form'!$CF222=\"\"),\"N\",\"Y\"))","v":"-"},{"$f":"IF(OR('Enrollment Form'!$CG222=\"\",'Enrollment Form'!$CG222=\"No\"),\"-\",IF(AND('Enrollment Form'!$CG222=\"Yes\",'Enrollment Form'!$CH222=\"\"),\"N\",\"Y\"))","v":"-"},{"$f":"IF(OR('Enrollment Form'!$CG222=\"\",'Enrollment Form'!$CG222=\"No\"),\"-\",IF(AND('Enrollment Form'!$CG222=\"Yes\",'Enrollment Form'!$CI222=\"\"),\"N\",\"Y\"))","v":"-"},{"$f":"IF('Enrollment Form'!B222<>\"Subscriber\",\"-\",IF(AND('Enrollment Form'!B222=\"Subscriber\",'Enrollment Form'!C222=\"Enroll\",'Enrollment Form'!AA222=\"\"),\"N\",\"Y\"))","v":"-"},{"$f":"IF(OR('Enrollment Form'!B222=\"Subscriber\",'Enrollment Form'!B222=\"\"),\"-\",IF('Enrollment Form'!BI222=\"\",\"N\",\"Y\"))","v":"-"},{"$f":"IF('Enrollment Form'!B222<>\"Subscriber\",\"-\",IF(AND('Enrollment Form'!B222=\"Subscriber\",'Enrollment Form'!G222=\"\"),\"N\",\"Y\"))","v":"-"},{"$f":"IF('Enrollment Form'!A222=\"\",\"\",IF('Enrollment Form'!B222=\"Subscriber\",\"-\",IF(AND('Enrollment Form'!B222<>\"Subscriber\",'Enrollment Form'!G222='Enrollment Form'!H222),\"N\",\"Y\")))","v":""},0]
[223,{"$f":"IF('Enrollment Form'!$A223<>\"\",\"Y\",\"N\")","v":"N"},{"$f":"IF(AND('Enrollment Form'!$B223=\"\",'Enrollment Form'!$C223<>\"\"),\"N\",IF($B216=\"N\",\"\",\"Y\"))","v":""},{"$f":"IF(OR($B216=\"N\",'Enrollment Form'!G223=\"\"),\"\",IF('Enrollment Form'!$B223<>\"Subscriber\",\"\",IF('Enrollment Form'!$G223='Enrollment Form'!$H223,\"Y\",\"N\")))","v":""},{"$f":"IF($B216=\"N\",\"\",IF(AND(COUNTIFS('Enrollment Form'!$H$11:$H$1000,'Enrollment Form'!$H223,'Enrollment Form'!$B$11:$B$1000,'Enrollment Form'!$B223)>1,'Enrollment Form'!$H223<>\"\"),\"N\",\"Y\"))","v":""},{"$f":"IF($B216=\"N\",\"\",IF(LEN('Enrollment Form'!$Y223)=0,\"\",IF(LEN('Enrollment Form'!$Y223)<>5,\"N\",\"Y\")))","v":""},{"$f":"IF($B216=\"N\",\"\",IF(LEN('Enrollment Form'!$AD223=0),\"\",IF(LEN('Enrollment Form'!$AD223)<>5,\"N\",\"Y\")))","v":""},{"$f":"IF($B216=\"N\",\"\",IF(LEN('Enrollment Form'!$BL223=0),\"\",IF(LEN('Enrollment Form'!$BL223)<>5,\"N\",\"Y\")))","v":""},{"$f":"IF($B216=\"N\",\"\",IF(LEN('Enrollment Form'!$AE223)=0,\"\",IF(LEN('Enrollment Form'!$AE223)<>10,\"N\",\"Y\")))","v":""},{"$f":"IF($B216=\"N\",\"\",IF(LEN('Enrollment Form'!$AF223)=0,\"\",IF(LEN('Enrollment Form'!$AF223)<>10,\"N\",\"Y\")))","v":""},{"$f":"IF('Enrollment Form'!$O223<>\"Graded\",\"-\",IF(AND('Enrollment Form'!$O223=\"Graded\",'Enrollment Form'!$AO223<>\"\"),\"Y\",\"N\"))","v":"-"},{"$f":"IF($B216=\"N\",\"\",IF(OR('Enrollment Form'!$B223<>\"Subscriber\",'Enrollment Form'!$C223=\"ROC\"),\"-\",IF(AND('Enrollment Form'!$B223=\"Subscriber\",'Enrollment Form'!$C223=\"Enroll\",'Enrollment Form'!$AJ223<>\"\"),\"Y\",\"N\")))","v":""},{"$f":"IF($B216=\"N\",\"\",IF(OR('Enrollment Form'!$B223<>\"Subscriber\",'Enrollment Form'!$C223=\"ROC\"),\"-\",IF(AND('Enrollment Form'!$B223=\"Subscriber\",'Enrollment Form'!$C223=\"Enroll\",'Enrollment Form'!$AK223<>\"\"),\"Y\",\"N\")))","v":""},{"$f":"IF($B216=\"N\",\"\",IF(OR('Enrollment Form'!$B223<>\"Subscriber\",'Enrollment Form'!$C223=\"ROC\"),\"-\",IF(AND('Enrollment Form'!$B223=\"Subscriber\",'Enrollment Form'!$C223=\"Enroll\",'Enrollment Form'!$AL223<>\"\"),\"Y\",\"N\")))","v":""},{"$f":"IF($B216=\"N\",\"\",IF(OR('Enrollment Form'!$B223<>\"Subscriber\",'Enrollment Form'!$C223=\"ROC\"),\"-\",IF(AND('Enrollment Form'!$B223=\"Subscriber\",'Enrollment Form'!$C223=\"Enroll\",'Enrollment Form'!$AM223<>\"\"),\"Y\",\"N\")))","v":""},{"$f":"IF($B216=\"N\",\"\",IF(OR('Enrollment Form'!$B223<>\"Subscriber\",'Enrollment Form'!$C223=\"ROC\"),\"-\",IF(AND('Enrollment Form'!$B223=\"Subscriber\",'Enrollment Form'!$C223=\"Enroll\",'Enrollment Form'!$AN223<>\"\"),\"Y\",\"N\")))","v":""},{"$f":"IF($B216=\"N\",\"\",IF(OR('Enrollment Form'!$B223<>\"Subscriber\",'Enrollment Form'!$C223=\"ROC\"),\"-\",IF(AND('Enrollment Form'!$B223=\"Subscriber\",'Enrollment Form'!$C223=\"Enroll\",'Enrollment Form'!$AP223<>\"\"),\"Y\",\"N\")))","v":""},{"$f":"IF($B216=\"N\",\"\",IF($Q216=\"-\",\"-\",IF(AND($Q216=\"Y\",'Enrollment Form'!$AP223=\"No\"),\"-\",IF(AND($Q216=\"Y\",'Enrollment Form'!$AP223=\"Yes\",'Enrollment Form'!$AQ223<>\"\"),\"Y\",\"N\"))))","v":""},{"$f":"IF($B216=\"N\",\"\",IF(OR('Enrollment Form'!$B223<>\"Subscriber\",'Enrollment Form'!$C223=\"ROC\"),\"-\",IF(AND('Enrollment Form'!$B223=\"Subscriber\",'Enrollment Form'!$C223=\"Enroll\",'Enrollment Form'!$CO223<>\"\"),\"Y\",\"N\")))","v":""},{"$f":"IF($B216=\"N\",\"\",IF($S216=\"-\",\"-\",IF(AND($S216=\"Y\",'Enrollment Form'!$CO223=\"No\"),\"-\",IF(AND($S216=\"Y\",'Enrollment Form'!$CO223=\"Yes\",'Enrollment Form'!$CP223<>\"\"),\"Y\",\"N\"))))","v":""},{"$f":"IF(OR('Enrollment Form'!$AV223=\"Yes\",'Enrollment Form'!$AV223=\"\"),\"-\",IF(AND('Enrollment Form'!$AV223=\"No\",ISERROR(FIND(\"HMO\",VLOOKUP('Enrollment Form'!G223,'Enrollment Form'!H$11:J$1000,3,FALSE),1))=FALSE,COUNTA('Enrollment Form'!$AW223:$AZ223)=4),\"Y\",\"N\"))","v":"-"},{"$f":"IF($B216=\"N\",\"\",IF('Enrollment Form'!$B223=\"Subscriber\",\"-\",IF(COUNTA('Enrollment Form'!$BE223,'Enrollment Form'!$BG223)=2,\"Y\",\"N\")))","v":""},{"$f":"IF($B216=\"N\",\"\",IF(OR('Enrollment Form'!$AU223=\"\",'Enrollment Form'!$AU223=\"No\"),\"-\",IF(AND('Enrollment Form'!$AU223=\"Yes\",COUNTA('Enrollment Form'!$CK223)=1),\"Y\",\"N\")))","v":""},{"$f":"IF(OR('Enrollment Form'!$CK223=\"\",'Enrollment Form'!$CK223=\"No\"),\"-\",IF(COUNTA('Enrollment Form'!$CM223:$CN223)=2,\"Y\",\"N\"))","v":"-"},{"$f":"IF($B216=\"N\",\"\",IF(COUNTIF('Enrollment Form'!$CZ223:$DO223,\"Other\")=COUNTA('Enrollment Form'!$DF223,'Enrollment Form'!$DA223,'Enrollment Form'!$DK223,'Enrollment Form'!$DP223),\"Y\",\"N\"))","v":""},{"$f":"IF($B216=\"N\",\"\",IF(OR('Enrollment Form'!B223<>\"Subscriber\",'Enrollment Form'!C223=\"ROC\",COUNTIF('Enrollment Form'!AS223:AT223,\"Yes\")>=1),\"-\",IF(AND('Enrollment Form'!C223=\"Enroll\",COUNTIF('Enrollment Form'!AS223:AT223,\"No\")=2,'Enrollment Form'!AU223=\"\"),\"N\",\"Y\")))","v":""},{"$f":"IF(OR(B216=\"N\",'Enrollment Form'!B223<>\"Subscriber\",'Enrollment Form'!C223=\"ROC\",'Enrollment Form'!O223<>\"Multiple of Salary\"),\"-\",IF(COUNTA('Enrollment Form'!T223:U223)<2,\"N\",\"Y\"))","v":"-"},{"$f":"IF(B216=\"N\",\"\",IF(OR('Enrollment Form'!C223=\"ROC\",'Enrollment Form'!B223<>\"Subscriber\",'Enrollment Form'!O223=\"Waive\",'Enrollment Form'!O223=\"\"),\"-\",IF('Enrollment Form'!P223=\"\",\"N\",\"Y\")))","v":""},{"$f":"IF($B216=\"N\",\"\",IF(AND('Enrollment Form'!$C223=\"ROC\",'Enrollment Form'!$DS223<>\"\"),\"Y\",IF(AND('Enrollment Form'!$C223=\"ROC\",'Enrollment Form'!$DS223=\"\"),\"N\",IF(AND('Enrollment Form'!$C223=\"Enroll\",'Enrollment Form'!$B223=\"Subscriber\",'Enrollment Form'!$CQ223=\"No\",'Enrollment Form'!$DS223=\"\"),\"N\",IF(AND('Enrollment Form'!$C223=\"Enroll\",'Enrollment Form'!$B223=\"Subscriber\",'Enrollment Form'!$CQ223=\"Yes\"),\"-\",\"Y\")))))","v":""},{"$f":"IF($B216=\"N\",\"\",IF(AND('Enrollment Form'!$C223=\"ROC\",'Enrollment Form'!$DT223<>\"\"),\"Y\",IF(AND('Enrollment Form'!$C223=\"ROC\",'Enrollment Form'!$DT223=\"\"),\"N\",IF(AND('Enrollment Form'!$C223=\"Enroll\",'Enrollment Form'!$B223=\"Subscriber\",'Enrollment Form'!$CQ223=\"No\",'Enrollment Form'!$DT223=\"\"),\"N\",IF(AND('Enrollment Form'!$C223=\"Enroll\",'Enrollment Form'!$B223=\"Subscriber\",'Enrollment Form'!$CQ223=\"Yes\"),\"-\",\"Y\")))))","v":""},{"$f":"IF('Enrollment Form'!AH223=\"\",\"\",IF(ISERROR(SEARCH(\".\",'Enrollment Form'!AH223,SEARCH(\"@\",'Enrollment Form'!AH223))),\"N\",\"Y\"))","v":""},{"$f":"IF(OR($B216=\"N\",'Enrollment Form'!$G223=\"\"),\"\",IF('Enrollment Form'!$B223<>\"Subscriber\",\"-\",IF(COUNTIF('Enrollment Form'!$AS223:$AT223,\"Yes\")=2,\"N\",\"Y\")))","v":""},{"$f":"IF(OR('Enrollment Form'!$CC223=\"\",'Enrollment Form'!$CC223=\"No\"),\"-\",IF(AND('Enrollment Form'!$CC223=\"Yes\",'Enrollment Form'!$CD223=\"\"),\"N\",\"Y\"))","v":"-"},{"$f":"IF(OR('Enrollment Form'!$CE223=\"\",'Enrollment Form'!$CE223=\"No\"),\"-\",IF(AND('Enrollment Form'!$CE223=\"Yes\",'Enrollment Form'!$CF223=\"\"),\"N\",\"Y\"))","v":"-"},{"$f":"IF(OR('Enrollment Form'!$CG223=\"\",'Enrollment Form'!$CG223=\"No\"),\"-\",IF(AND('Enrollment Form'!$CG223=\"Yes\",'Enrollment Form'!$CH223=\"\"),\"N\",\"Y\"))","v":"-"},{"$f":"IF(OR('Enrollment Form'!$CG223=\"\",'Enrollment Form'!$CG223=\"No\"),\"-\",IF(AND('Enrollment Form'!$CG223=\"Yes\",'Enrollment Form'!$CI223=\"\"),\"N\",\"Y\"))","v":"-"},{"$f":"IF('Enrollment Form'!B223<>\"Subscriber\",\"-\",IF(AND('Enrollment Form'!B223=\"Subscriber\",'Enrollment Form'!C223=\"Enroll\",'Enrollment Form'!AA223=\"\"),\"N\",\"Y\"))","v":"-"},{"$f":"IF(OR('Enrollment Form'!B223=\"Subscriber\",'Enrollment Form'!B223=\"\"),\"-\",IF('Enrollment Form'!BI223=\"\",\"N\",\"Y\"))","v":"-"},{"$f":"IF('Enrollment Form'!B223<>\"Subscriber\",\"-\",IF(AND('Enrollment Form'!B223=\"Subscriber\",'Enrollment Form'!G223=\"\"),\"N\",\"Y\"))","v":"-"},{"$f":"IF('Enrollment Form'!A223=\"\",\"\",IF('Enrollment Form'!B223=\"Subscriber\",\"-\",IF(AND('Enrollment Form'!B223<>\"Subscriber\",'Enrollment Form'!G223='Enrollment Form'!H223),\"N\",\"Y\")))","v":""},0]
[224,{"$f":"IF('Enrollment Form'!$A224<>\"\",\"Y\",\"N\")","v":"N"},{"$f":"IF(AND('Enrollment Form'!$B224=\"\",'Enrollment Form'!$C224<>\"\"),\"N\",IF($B217=\"N\",\"\",\"Y\"))","v":""},{"$f":"IF(OR($B217=\"N\",'Enrollment Form'!G224=\"\"),\"\",IF('Enrollment Form'!$B224<>\"Subscriber\",\"\",IF('Enrollment Form'!$G224='Enrollment Form'!$H224,\"Y\",\"N\")))","v":""},{"$f":"IF($B217=\"N\",\"\",IF(AND(COUNTIFS('Enrollment Form'!$H$11:$H$1000,'Enrollment Form'!$H224,'Enrollment Form'!$B$11:$B$1000,'Enrollment Form'!$B224)>1,'Enrollment Form'!$H224<>\"\"),\"N\",\"Y\"))","v":""},{"$f":"IF($B217=\"N\",\"\",IF(LEN('Enrollment Form'!$Y224)=0,\"\",IF(LEN('Enrollment Form'!$Y224)<>5,\"N\",\"Y\")))","v":""},{"$f":"IF($B217=\"N\",\"\",IF(LEN('Enrollment Form'!$AD224=0),\"\",IF(LEN('Enrollment Form'!$AD224)<>5,\"N\",\"Y\")))","v":""},{"$f":"IF($B217=\"N\",\"\",IF(LEN('Enrollment Form'!$BL224=0),\"\",IF(LEN('Enrollment Form'!$BL224)<>5,\"N\",\"Y\")))","v":""},{"$f":"IF($B217=\"N\",\"\",IF(LEN('Enrollment Form'!$AE224)=0,\"\",IF(LEN('Enrollment Form'!$AE224)<>10,\"N\",\"Y\")))","v":""},{"$f":"IF($B217=\"N\",\"\",IF(LEN('Enrollment Form'!$AF224)=0,\"\",IF(LEN('Enrollment Form'!$AF224)<>10,\"N\",\"Y\")))","v":""},{"$f":"IF('Enrollment Form'!$O224<>\"Graded\",\"-\",IF(AND('Enrollment Form'!$O224=\"Graded\",'Enrollment Form'!$AO224<>\"\"),\"Y\",\"N\"))","v":"-"},{"$f":"IF($B217=\"N\",\"\",IF(OR('Enrollment Form'!$B224<>\"Subscriber\",'Enrollment Form'!$C224=\"ROC\"),\"-\",IF(AND('Enrollment Form'!$B224=\"Subscriber\",'Enrollment Form'!$C224=\"Enroll\",'Enrollment Form'!$AJ224<>\"\"),\"Y\",\"N\")))","v":""},{"$f":"IF($B217=\"N\",\"\",IF(OR('Enrollment Form'!$B224<>\"Subscriber\",'Enrollment Form'!$C224=\"ROC\"),\"-\",IF(AND('Enrollment Form'!$B224=\"Subscriber\",'Enrollment Form'!$C224=\"Enroll\",'Enrollment Form'!$AK224<>\"\"),\"Y\",\"N\")))","v":""},{"$f":"IF($B217=\"N\",\"\",IF(OR('Enrollment Form'!$B224<>\"Subscriber\",'Enrollment Form'!$C224=\"ROC\"),\"-\",IF(AND('Enrollment Form'!$B224=\"Subscriber\",'Enrollment Form'!$C224=\"Enroll\",'Enrollment Form'!$AL224<>\"\"),\"Y\",\"N\")))","v":""},{"$f":"IF($B217=\"N\",\"\",IF(OR('Enrollment Form'!$B224<>\"Subscriber\",'Enrollment Form'!$C224=\"ROC\"),\"-\",IF(AND('Enrollment Form'!$B224=\"Subscriber\",'Enrollment Form'!$C224=\"Enroll\",'Enrollment Form'!$AM224<>\"\"),\"Y\",\"N\")))","v":""},{"$f":"IF($B217=\"N\",\"\",IF(OR('Enrollment Form'!$B224<>\"Subscriber\",'Enrollment Form'!$C224=\"ROC\"),\"-\",IF(AND('Enrollment Form'!$B224=\"Subscriber\",'Enrollment Form'!$C224=\"Enroll\",'Enrollment Form'!$AN224<>\"\"),\"Y\",\"N\")))","v":""},{"$f":"IF($B217=\"N\",\"\",IF(OR('Enrollment Form'!$B224<>\"Subscriber\",'Enrollment Form'!$C224=\"ROC\"),\"-\",IF(AND('Enrollment Form'!$B224=\"Subscriber\",'Enrollment Form'!$C224=\"Enroll\",'Enrollment Form'!$AP224<>\"\"),\"Y\",\"N\")))","v":""},{"$f":"IF($B217=\"N\",\"\",IF($Q217=\"-\",\"-\",IF(AND($Q217=\"Y\",'Enrollment Form'!$AP224=\"No\"),\"-\",IF(AND($Q217=\"Y\",'Enrollment Form'!$AP224=\"Yes\",'Enrollment Form'!$AQ224<>\"\"),\"Y\",\"N\"))))","v":""},{"$f":"IF($B217=\"N\",\"\",IF(OR('Enrollment Form'!$B224<>\"Subscriber\",'Enrollment Form'!$C224=\"ROC\"),\"-\",IF(AND('Enrollment Form'!$B224=\"Subscriber\",'Enrollment Form'!$C224=\"Enroll\",'Enrollment Form'!$CO224<>\"\"),\"Y\",\"N\")))","v":""},{"$f":"IF($B217=\"N\",\"\",IF($S217=\"-\",\"-\",IF(AND($S217=\"Y\",'Enrollment Form'!$CO224=\"No\"),\"-\",IF(AND($S217=\"Y\",'Enrollment Form'!$CO224=\"Yes\",'Enrollment Form'!$CP224<>\"\"),\"Y\",\"N\"))))","v":""},{"$f":"IF(OR('Enrollment Form'!$AV224=\"Yes\",'Enrollment Form'!$AV224=\"\"),\"-\",IF(AND('Enrollment Form'!$AV224=\"No\",ISERROR(FIND(\"HMO\",VLOOKUP('Enrollment Form'!G224,'Enrollment Form'!H$11:J$1000,3,FALSE),1))=FALSE,COUNTA('Enrollment Form'!$AW224:$AZ224)=4),\"Y\",\"N\"))","v":"-"},{"$f":"IF($B217=\"N\",\"\",IF('Enrollment Form'!$B224=\"Subscriber\",\"-\",IF(COUNTA('Enrollment Form'!$BE224,'Enrollment Form'!$BG224)=2,\"Y\",\"N\")))","v":""},{"$f":"IF($B217=\"N\",\"\",IF(OR('Enrollment Form'!$AU224=\"\",'Enrollment Form'!$AU224=\"No\"),\"-\",IF(AND('Enrollment Form'!$AU224=\"Yes\",COUNTA('Enrollment Form'!$CK224)=1),\"Y\",\"N\")))","v":""},{"$f":"IF(OR('Enrollment Form'!$CK224=\"\",'Enrollment Form'!$CK224=\"No\"),\"-\",IF(COUNTA('Enrollment Form'!$CM224:$CN224)=2,\"Y\",\"N\"))","v":"-"},{"$f":"IF($B217=\"N\",\"\",IF(COUNTIF('Enrollment Form'!$CZ224:$DO224,\"Other\")=COUNTA('Enrollment Form'!$DF224,'Enrollment Form'!$DA224,'Enrollment Form'!$DK224,'Enrollment Form'!$DP224),\"Y\",\"N\"))","v":""},{"$f":"IF($B217=\"N\",\"\",IF(OR('Enrollment Form'!B224<>\"Subscriber\",'Enrollment Form'!C224=\"ROC\",COUNTIF('Enrollment Form'!AS224:AT224,\"Yes\")>=1),\"-\",IF(AND('Enrollment Form'!C224=\"Enroll\",COUNTIF('Enrollment Form'!AS224:AT224,\"No\")=2,'Enrollment Form'!AU224=\"\"),\"N\",\"Y\")))","v":""},{"$f":"IF(OR(B217=\"N\",'Enrollment Form'!B224<>\"Subscriber\",'Enrollment Form'!C224=\"ROC\",'Enrollment Form'!O224<>\"Multiple of Salary\"),\"-\",IF(COUNTA('Enrollment Form'!T224:U224)<2,\"N\",\"Y\"))","v":"-"},{"$f":"IF(B217=\"N\",\"\",IF(OR('Enrollment Form'!C224=\"ROC\",'Enrollment Form'!B224<>\"Subscriber\",'Enrollment Form'!O224=\"Waive\",'Enrollment Form'!O224=\"\"),\"-\",IF('Enrollment Form'!P224=\"\",\"N\",\"Y\")))","v":""},{"$f":"IF($B217=\"N\",\"\",IF(AND('Enrollment Form'!$C224=\"ROC\",'Enrollment Form'!$DS224<>\"\"),\"Y\",IF(AND('Enrollment Form'!$C224=\"ROC\",'Enrollment Form'!$DS224=\"\"),\"N\",IF(AND('Enrollment Form'!$C224=\"Enroll\",'Enrollment Form'!$B224=\"Subscriber\",'Enrollment Form'!$CQ224=\"No\",'Enrollment Form'!$DS224=\"\"),\"N\",IF(AND('Enrollment Form'!$C224=\"Enroll\",'Enrollment Form'!$B224=\"Subscriber\",'Enrollment Form'!$CQ224=\"Yes\"),\"-\",\"Y\")))))","v":""},{"$f":"IF($B217=\"N\",\"\",IF(AND('Enrollment Form'!$C224=\"ROC\",'Enrollment Form'!$DT224<>\"\"),\"Y\",IF(AND('Enrollment Form'!$C224=\"ROC\",'Enrollment Form'!$DT224=\"\"),\"N\",IF(AND('Enrollment Form'!$C224=\"Enroll\",'Enrollment Form'!$B224=\"Subscriber\",'Enrollment Form'!$CQ224=\"No\",'Enrollment Form'!$DT224=\"\"),\"N\",IF(AND('Enrollment Form'!$C224=\"Enroll\",'Enrollment Form'!$B224=\"Subscriber\",'Enrollment Form'!$CQ224=\"Yes\"),\"-\",\"Y\")))))","v":""},{"$f":"IF('Enrollment Form'!AH224=\"\",\"\",IF(ISERROR(SEARCH(\".\",'Enrollment Form'!AH224,SEARCH(\"@\",'Enrollment Form'!AH224))),\"N\",\"Y\"))","v":""},{"$f":"IF(OR($B217=\"N\",'Enrollment Form'!$G224=\"\"),\"\",IF('Enrollment Form'!$B224<>\"Subscriber\",\"-\",IF(COUNTIF('Enrollment Form'!$AS224:$AT224,\"Yes\")=2,\"N\",\"Y\")))","v":""},{"$f":"IF(OR('Enrollment Form'!$CC224=\"\",'Enrollment Form'!$CC224=\"No\"),\"-\",IF(AND('Enrollment Form'!$CC224=\"Yes\",'Enrollment Form'!$CD224=\"\"),\"N\",\"Y\"))","v":"-"},{"$f":"IF(OR('Enrollment Form'!$CE224=\"\",'Enrollment Form'!$CE224=\"No\"),\"-\",IF(AND('Enrollment Form'!$CE224=\"Yes\",'Enrollment Form'!$CF224=\"\"),\"N\",\"Y\"))","v":"-"},{"$f":"IF(OR('Enrollment Form'!$CG224=\"\",'Enrollment Form'!$CG224=\"No\"),\"-\",IF(AND('Enrollment Form'!$CG224=\"Yes\",'Enrollment Form'!$CH224=\"\"),\"N\",\"Y\"))","v":"-"},{"$f":"IF(OR('Enrollment Form'!$CG224=\"\",'Enrollment Form'!$CG224=\"No\"),\"-\",IF(AND('Enrollment Form'!$CG224=\"Yes\",'Enrollment Form'!$CI224=\"\"),\"N\",\"Y\"))","v":"-"},{"$f":"IF('Enrollment Form'!B224<>\"Subscriber\",\"-\",IF(AND('Enrollment Form'!B224=\"Subscriber\",'Enrollment Form'!C224=\"Enroll\",'Enrollment Form'!AA224=\"\"),\"N\",\"Y\"))","v":"-"},{"$f":"IF(OR('Enrollment Form'!B224=\"Subscriber\",'Enrollment Form'!B224=\"\"),\"-\",IF('Enrollment Form'!BI224=\"\",\"N\",\"Y\"))","v":"-"},{"$f":"IF('Enrollment Form'!B224<>\"Subscriber\",\"-\",IF(AND('Enrollment Form'!B224=\"Subscriber\",'Enrollment Form'!G224=\"\"),\"N\",\"Y\"))","v":"-"},{"$f":"IF('Enrollment Form'!A224=\"\",\"\",IF('Enrollment Form'!B224=\"Subscriber\",\"-\",IF(AND('Enrollment Form'!B224<>\"Subscriber\",'Enrollment Form'!G224='Enrollment Form'!H224),\"N\",\"Y\")))","v":""},0]
[225,{"$f":"IF('Enrollment Form'!$A225<>\"\",\"Y\",\"N\")","v":"N"},{"$f":"IF(AND('Enrollment Form'!$B225=\"\",'Enrollment Form'!$C225<>\"\"),\"N\",IF($B218=\"N\",\"\",\"Y\"))","v":""},{"$f":"IF(OR($B218=\"N\",'Enrollment Form'!G225=\"\"),\"\",IF('Enrollment Form'!$B225<>\"Subscriber\",\"\",IF('Enrollment Form'!$G225='Enrollment Form'!$H225,\"Y\",\"N\")))","v":""},{"$f":"IF($B218=\"N\",\"\",IF(AND(COUNTIFS('Enrollment Form'!$H$11:$H$1000,'Enrollment Form'!$H225,'Enrollment Form'!$B$11:$B$1000,'Enrollment Form'!$B225)>1,'Enrollment Form'!$H225<>\"\"),\"N\",\"Y\"))","v":""},{"$f":"IF($B218=\"N\",\"\",IF(LEN('Enrollment Form'!$Y225)=0,\"\",IF(LEN('Enrollment Form'!$Y225)<>5,\"N\",\"Y\")))","v":""},{"$f":"IF($B218=\"N\",\"\",IF(LEN('Enrollment Form'!$AD225=0),\"\",IF(LEN('Enrollment Form'!$AD225)<>5,\"N\",\"Y\")))","v":""},{"$f":"IF($B218=\"N\",\"\",IF(LEN('Enrollment Form'!$BL225=0),\"\",IF(LEN('Enrollment Form'!$BL225)<>5,\"N\",\"Y\")))","v":""},{"$f":"IF($B218=\"N\",\"\",IF(LEN('Enrollment Form'!$AE225)=0,\"\",IF(LEN('Enrollment Form'!$AE225)<>10,\"N\",\"Y\")))","v":""},{"$f":"IF($B218=\"N\",\"\",IF(LEN('Enrollment Form'!$AF225)=0,\"\",IF(LEN('Enrollment Form'!$AF225)<>10,\"N\",\"Y\")))","v":""},{"$f":"IF('Enrollment Form'!$O225<>\"Graded\",\"-\",IF(AND('Enrollment Form'!$O225=\"Graded\",'Enrollment Form'!$AO225<>\"\"),\"Y\",\"N\"))","v":"-"},{"$f":"IF($B218=\"N\",\"\",IF(OR('Enrollment Form'!$B225<>\"Subscriber\",'Enrollment Form'!$C225=\"ROC\"),\"-\",IF(AND('Enrollment Form'!$B225=\"Subscriber\",'Enrollment Form'!$C225=\"Enroll\",'Enrollment Form'!$AJ225<>\"\"),\"Y\",\"N\")))","v":""},{"$f":"IF($B218=\"N\",\"\",IF(OR('Enrollment Form'!$B225<>\"Subscriber\",'Enrollment Form'!$C225=\"ROC\"),\"-\",IF(AND('Enrollment Form'!$B225=\"Subscriber\",'Enrollment Form'!$C225=\"Enroll\",'Enrollment Form'!$AK225<>\"\"),\"Y\",\"N\")))","v":""},{"$f":"IF($B218=\"N\",\"\",IF(OR('Enrollment Form'!$B225<>\"Subscriber\",'Enrollment Form'!$C225=\"ROC\"),\"-\",IF(AND('Enrollment Form'!$B225=\"Subscriber\",'Enrollment Form'!$C225=\"Enroll\",'Enrollment Form'!$AL225<>\"\"),\"Y\",\"N\")))","v":""},{"$f":"IF($B218=\"N\",\"\",IF(OR('Enrollment Form'!$B225<>\"Subscriber\",'Enrollment Form'!$C225=\"ROC\"),\"-\",IF(AND('Enrollment Form'!$B225=\"Subscriber\",'Enrollment Form'!$C225=\"Enroll\",'Enrollment Form'!$AM225<>\"\"),\"Y\",\"N\")))","v":""},{"$f":"IF($B218=\"N\",\"\",IF(OR('Enrollment Form'!$B225<>\"Subscriber\",'Enrollment Form'!$C225=\"ROC\"),\"-\",IF(AND('Enrollment Form'!$B225=\"Subscriber\",'Enrollment Form'!$C225=\"Enroll\",'Enrollment Form'!$AN225<>\"\"),\"Y\",\"N\")))","v":""},{"$f":"IF($B218=\"N\",\"\",IF(OR('Enrollment Form'!$B225<>\"Subscriber\",'Enrollment Form'!$C225=\"ROC\"),\"-\",IF(AND('Enrollment Form'!$B225=\"Subscriber\",'Enrollment Form'!$C225=\"Enroll\",'Enrollment Form'!$AP225<>\"\"),\"Y\",\"N\")))","v":""},{"$f":"IF($B218=\"N\",\"\",IF($Q218=\"-\",\"-\",IF(AND($Q218=\"Y\",'Enrollment Form'!$AP225=\"No\"),\"-\",IF(AND($Q218=\"Y\",'Enrollment Form'!$AP225=\"Yes\",'Enrollment Form'!$AQ225<>\"\"),\"Y\",\"N\"))))","v":""},{"$f":"IF($B218=\"N\",\"\",IF(OR('Enrollment Form'!$B225<>\"Subscriber\",'Enrollment Form'!$C225=\"ROC\"),\"-\",IF(AND('Enrollment Form'!$B225=\"Subscriber\",'Enrollment Form'!$C225=\"Enroll\",'Enrollment Form'!$CO225<>\"\"),\"Y\",\"N\")))","v":""},{"$f":"IF($B218=\"N\",\"\",IF($S218=\"-\",\"-\",IF(AND($S218=\"Y\",'Enrollment Form'!$CO225=\"No\"),\"-\",IF(AND($S218=\"Y\",'Enrollment Form'!$CO225=\"Yes\",'Enrollment Form'!$CP225<>\"\"),\"Y\",\"N\"))))","v":""},{"$f":"IF(OR('Enrollment Form'!$AV225=\"Yes\",'Enrollment Form'!$AV225=\"\"),\"-\",IF(AND('Enrollment Form'!$AV225=\"No\",ISERROR(FIND(\"HMO\",VLOOKUP('Enrollment Form'!G225,'Enrollment Form'!H$11:J$1000,3,FALSE),1))=FALSE,COUNTA('Enrollment Form'!$AW225:$AZ225)=4),\"Y\",\"N\"))","v":"-"},{"$f":"IF($B218=\"N\",\"\",IF('Enrollment Form'!$B225=\"Subscriber\",\"-\",IF(COUNTA('Enrollment Form'!$BE225,'Enrollment Form'!$BG225)=2,\"Y\",\"N\")))","v":""},{"$f":"IF($B218=\"N\",\"\",IF(OR('Enrollment Form'!$AU225=\"\",'Enrollment Form'!$AU225=\"No\"),\"-\",IF(AND('Enrollment Form'!$AU225=\"Yes\",COUNTA('Enrollment Form'!$CK225)=1),\"Y\",\"N\")))","v":""},{"$f":"IF(OR('Enrollment Form'!$CK225=\"\",'Enrollment Form'!$CK225=\"No\"),\"-\",IF(COUNTA('Enrollment Form'!$CM225:$CN225)=2,\"Y\",\"N\"))","v":"-"},{"$f":"IF($B218=\"N\",\"\",IF(COUNTIF('Enrollment Form'!$CZ225:$DO225,\"Other\")=COUNTA('Enrollment Form'!$DF225,'Enrollment Form'!$DA225,'Enrollment Form'!$DK225,'Enrollment Form'!$DP225),\"Y\",\"N\"))","v":""},{"$f":"IF($B218=\"N\",\"\",IF(OR('Enrollment Form'!B225<>\"Subscriber\",'Enrollment Form'!C225=\"ROC\",COUNTIF('Enrollment Form'!AS225:AT225,\"Yes\")>=1),\"-\",IF(AND('Enrollment Form'!C225=\"Enroll\",COUNTIF('Enrollment Form'!AS225:AT225,\"No\")=2,'Enrollment Form'!AU225=\"\"),\"N\",\"Y\")))","v":""},{"$f":"IF(OR(B218=\"N\",'Enrollment Form'!B225<>\"Subscriber\",'Enrollment Form'!C225=\"ROC\",'Enrollment Form'!O225<>\"Multiple of Salary\"),\"-\",IF(COUNTA('Enrollment Form'!T225:U225)<2,\"N\",\"Y\"))","v":"-"},{"$f":"IF(B218=\"N\",\"\",IF(OR('Enrollment Form'!C225=\"ROC\",'Enrollment Form'!B225<>\"Subscriber\",'Enrollment Form'!O225=\"Waive\",'Enrollment Form'!O225=\"\"),\"-\",IF('Enrollment Form'!P225=\"\",\"N\",\"Y\")))","v":""},{"$f":"IF($B218=\"N\",\"\",IF(AND('Enrollment Form'!$C225=\"ROC\",'Enrollment Form'!$DS225<>\"\"),\"Y\",IF(AND('Enrollment Form'!$C225=\"ROC\",'Enrollment Form'!$DS225=\"\"),\"N\",IF(AND('Enrollment Form'!$C225=\"Enroll\",'Enrollment Form'!$B225=\"Subscriber\",'Enrollment Form'!$CQ225=\"No\",'Enrollment Form'!$DS225=\"\"),\"N\",IF(AND('Enrollment Form'!$C225=\"Enroll\",'Enrollment Form'!$B225=\"Subscriber\",'Enrollment Form'!$CQ225=\"Yes\"),\"-\",\"Y\")))))","v":""},{"$f":"IF($B218=\"N\",\"\",IF(AND('Enrollment Form'!$C225=\"ROC\",'Enrollment Form'!$DT225<>\"\"),\"Y\",IF(AND('Enrollment Form'!$C225=\"ROC\",'Enrollment Form'!$DT225=\"\"),\"N\",IF(AND('Enrollment Form'!$C225=\"Enroll\",'Enrollment Form'!$B225=\"Subscriber\",'Enrollment Form'!$CQ225=\"No\",'Enrollment Form'!$DT225=\"\"),\"N\",IF(AND('Enrollment Form'!$C225=\"Enroll\",'Enrollment Form'!$B225=\"Subscriber\",'Enrollment Form'!$CQ225=\"Yes\"),\"-\",\"Y\")))))","v":""},{"$f":"IF('Enrollment Form'!AH225=\"\",\"\",IF(ISERROR(SEARCH(\".\",'Enrollment Form'!AH225,SEARCH(\"@\",'Enrollment Form'!AH225))),\"N\",\"Y\"))","v":""},{"$f":"IF(OR($B218=\"N\",'Enrollment Form'!$G225=\"\"),\"\",IF('Enrollment Form'!$B225<>\"Subscriber\",\"-\",IF(COUNTIF('Enrollment Form'!$AS225:$AT225,\"Yes\")=2,\"N\",\"Y\")))","v":""},{"$f":"IF(OR('Enrollment Form'!$CC225=\"\",'Enrollment Form'!$CC225=\"No\"),\"-\",IF(AND('Enrollment Form'!$CC225=\"Yes\",'Enrollment Form'!$CD225=\"\"),\"N\",\"Y\"))","v":"-"},{"$f":"IF(OR('Enrollment Form'!$CE225=\"\",'Enrollment Form'!$CE225=\"No\"),\"-\",IF(AND('Enrollment Form'!$CE225=\"Yes\",'Enrollment Form'!$CF225=\"\"),\"N\",\"Y\"))","v":"-"},{"$f":"IF(OR('Enrollment Form'!$CG225=\"\",'Enrollment Form'!$CG225=\"No\"),\"-\",IF(AND('Enrollment Form'!$CG225=\"Yes\",'Enrollment Form'!$CH225=\"\"),\"N\",\"Y\"))","v":"-"},{"$f":"IF(OR('Enrollment Form'!$CG225=\"\",'Enrollment Form'!$CG225=\"No\"),\"-\",IF(AND('Enrollment Form'!$CG225=\"Yes\",'Enrollment Form'!$CI225=\"\"),\"N\",\"Y\"))","v":"-"},{"$f":"IF('Enrollment Form'!B225<>\"Subscriber\",\"-\",IF(AND('Enrollment Form'!B225=\"Subscriber\",'Enrollment Form'!C225=\"Enroll\",'Enrollment Form'!AA225=\"\"),\"N\",\"Y\"))","v":"-"},{"$f":"IF(OR('Enrollment Form'!B225=\"Subscriber\",'Enrollment Form'!B225=\"\"),\"-\",IF('Enrollment Form'!BI225=\"\",\"N\",\"Y\"))","v":"-"},{"$f":"IF('Enrollment Form'!B225<>\"Subscriber\",\"-\",IF(AND('Enrollment Form'!B225=\"Subscriber\",'Enrollment Form'!G225=\"\"),\"N\",\"Y\"))","v":"-"},{"$f":"IF('Enrollment Form'!A225=\"\",\"\",IF('Enrollment Form'!B225=\"Subscriber\",\"-\",IF(AND('Enrollment Form'!B225<>\"Subscriber\",'Enrollment Form'!G225='Enrollment Form'!H225),\"N\",\"Y\")))","v":""},0]
[226,{"$f":"IF('Enrollment Form'!$A226<>\"\",\"Y\",\"N\")","v":"N"},{"$f":"IF(AND('Enrollment Form'!$B226=\"\",'Enrollment Form'!$C226<>\"\"),\"N\",IF($B219=\"N\",\"\",\"Y\"))","v":""},{"$f":"IF(OR($B219=\"N\",'Enrollment Form'!G226=\"\"),\"\",IF('Enrollment Form'!$B226<>\"Subscriber\",\"\",IF('Enrollment Form'!$G226='Enrollment Form'!$H226,\"Y\",\"N\")))","v":""},{"$f":"IF($B219=\"N\",\"\",IF(AND(COUNTIFS('Enrollment Form'!$H$11:$H$1000,'Enrollment Form'!$H226,'Enrollment Form'!$B$11:$B$1000,'Enrollment Form'!$B226)>1,'Enrollment Form'!$H226<>\"\"),\"N\",\"Y\"))","v":""},{"$f":"IF($B219=\"N\",\"\",IF(LEN('Enrollment Form'!$Y226)=0,\"\",IF(LEN('Enrollment Form'!$Y226)<>5,\"N\",\"Y\")))","v":""},{"$f":"IF($B219=\"N\",\"\",IF(LEN('Enrollment Form'!$AD226=0),\"\",IF(LEN('Enrollment Form'!$AD226)<>5,\"N\",\"Y\")))","v":""},{"$f":"IF($B219=\"N\",\"\",IF(LEN('Enrollment Form'!$BL226=0),\"\",IF(LEN('Enrollment Form'!$BL226)<>5,\"N\",\"Y\")))","v":""},{"$f":"IF($B219=\"N\",\"\",IF(LEN('Enrollment Form'!$AE226)=0,\"\",IF(LEN('Enrollment Form'!$AE226)<>10,\"N\",\"Y\")))","v":""},{"$f":"IF($B219=\"N\",\"\",IF(LEN('Enrollment Form'!$AF226)=0,\"\",IF(LEN('Enrollment Form'!$AF226)<>10,\"N\",\"Y\")))","v":""},{"$f":"IF('Enrollment Form'!$O226<>\"Graded\",\"-\",IF(AND('Enrollment Form'!$O226=\"Graded\",'Enrollment Form'!$AO226<>\"\"),\"Y\",\"N\"))","v":"-"},{"$f":"IF($B219=\"N\",\"\",IF(OR('Enrollment Form'!$B226<>\"Subscriber\",'Enrollment Form'!$C226=\"ROC\"),\"-\",IF(AND('Enrollment Form'!$B226=\"Subscriber\",'Enrollment Form'!$C226=\"Enroll\",'Enrollment Form'!$AJ226<>\"\"),\"Y\",\"N\")))","v":""},{"$f":"IF($B219=\"N\",\"\",IF(OR('Enrollment Form'!$B226<>\"Subscriber\",'Enrollment Form'!$C226=\"ROC\"),\"-\",IF(AND('Enrollment Form'!$B226=\"Subscriber\",'Enrollment Form'!$C226=\"Enroll\",'Enrollment Form'!$AK226<>\"\"),\"Y\",\"N\")))","v":""},{"$f":"IF($B219=\"N\",\"\",IF(OR('Enrollment Form'!$B226<>\"Subscriber\",'Enrollment Form'!$C226=\"ROC\"),\"-\",IF(AND('Enrollment Form'!$B226=\"Subscriber\",'Enrollment Form'!$C226=\"Enroll\",'Enrollment Form'!$AL226<>\"\"),\"Y\",\"N\")))","v":""},{"$f":"IF($B219=\"N\",\"\",IF(OR('Enrollment Form'!$B226<>\"Subscriber\",'Enrollment Form'!$C226=\"ROC\"),\"-\",IF(AND('Enrollment Form'!$B226=\"Subscriber\",'Enrollment Form'!$C226=\"Enroll\",'Enrollment Form'!$AM226<>\"\"),\"Y\",\"N\")))","v":""},{"$f":"IF($B219=\"N\",\"\",IF(OR('Enrollment Form'!$B226<>\"Subscriber\",'Enrollment Form'!$C226=\"ROC\"),\"-\",IF(AND('Enrollment Form'!$B226=\"Subscriber\",'Enrollment Form'!$C226=\"Enroll\",'Enrollment Form'!$AN226<>\"\"),\"Y\",\"N\")))","v":""},{"$f":"IF($B219=\"N\",\"\",IF(OR('Enrollment Form'!$B226<>\"Subscriber\",'Enrollment Form'!$C226=\"ROC\"),\"-\",IF(AND('Enrollment Form'!$B226=\"Subscriber\",'Enrollment Form'!$C226=\"Enroll\",'Enrollment Form'!$AP226<>\"\"),\"Y\",\"N\")))","v":""},{"$f":"IF($B219=\"N\",\"\",IF($Q219=\"-\",\"-\",IF(AND($Q219=\"Y\",'Enrollment Form'!$AP226=\"No\"),\"-\",IF(AND($Q219=\"Y\",'Enrollment Form'!$AP226=\"Yes\",'Enrollment Form'!$AQ226<>\"\"),\"Y\",\"N\"))))","v":""},{"$f":"IF($B219=\"N\",\"\",IF(OR('Enrollment Form'!$B226<>\"Subscriber\",'Enrollment Form'!$C226=\"ROC\"),\"-\",IF(AND('Enrollment Form'!$B226=\"Subscriber\",'Enrollment Form'!$C226=\"Enroll\",'Enrollment Form'!$CO226<>\"\"),\"Y\",\"N\")))","v":""},{"$f":"IF($B219=\"N\",\"\",IF($S219=\"-\",\"-\",IF(AND($S219=\"Y\",'Enrollment Form'!$CO226=\"No\"),\"-\",IF(AND($S219=\"Y\",'Enrollment Form'!$CO226=\"Yes\",'Enrollment Form'!$CP226<>\"\"),\"Y\",\"N\"))))","v":""},{"$f":"IF(OR('Enrollment Form'!$AV226=\"Yes\",'Enrollment Form'!$AV226=\"\"),\"-\",IF(AND('Enrollment Form'!$AV226=\"No\",ISERROR(FIND(\"HMO\",VLOOKUP('Enrollment Form'!G226,'Enrollment Form'!H$11:J$1000,3,FALSE),1))=FALSE,COUNTA('Enrollment Form'!$AW226:$AZ226)=4),\"Y\",\"N\"))","v":"-"},{"$f":"IF($B219=\"N\",\"\",IF('Enrollment Form'!$B226=\"Subscriber\",\"-\",IF(COUNTA('Enrollment Form'!$BE226,'Enrollment Form'!$BG226)=2,\"Y\",\"N\")))","v":""},{"$f":"IF($B219=\"N\",\"\",IF(OR('Enrollment Form'!$AU226=\"\",'Enrollment Form'!$AU226=\"No\"),\"-\",IF(AND('Enrollment Form'!$AU226=\"Yes\",COUNTA('Enrollment Form'!$CK226)=1),\"Y\",\"N\")))","v":""},{"$f":"IF(OR('Enrollment Form'!$CK226=\"\",'Enrollment Form'!$CK226=\"No\"),\"-\",IF(COUNTA('Enrollment Form'!$CM226:$CN226)=2,\"Y\",\"N\"))","v":"-"},{"$f":"IF($B219=\"N\",\"\",IF(COUNTIF('Enrollment Form'!$CZ226:$DO226,\"Other\")=COUNTA('Enrollment Form'!$DF226,'Enrollment Form'!$DA226,'Enrollment Form'!$DK226,'Enrollment Form'!$DP226),\"Y\",\"N\"))","v":""},{"$f":"IF($B219=\"N\",\"\",IF(OR('Enrollment Form'!B226<>\"Subscriber\",'Enrollment Form'!C226=\"ROC\",COUNTIF('Enrollment Form'!AS226:AT226,\"Yes\")>=1),\"-\",IF(AND('Enrollment Form'!C226=\"Enroll\",COUNTIF('Enrollment Form'!AS226:AT226,\"No\")=2,'Enrollment Form'!AU226=\"\"),\"N\",\"Y\")))","v":""},{"$f":"IF(OR(B219=\"N\",'Enrollment Form'!B226<>\"Subscriber\",'Enrollment Form'!C226=\"ROC\",'Enrollment Form'!O226<>\"Multiple of Salary\"),\"-\",IF(COUNTA('Enrollment Form'!T226:U226)<2,\"N\",\"Y\"))","v":"-"},{"$f":"IF(B219=\"N\",\"\",IF(OR('Enrollment Form'!C226=\"ROC\",'Enrollment Form'!B226<>\"Subscriber\",'Enrollment Form'!O226=\"Waive\",'Enrollment Form'!O226=\"\"),\"-\",IF('Enrollment Form'!P226=\"\",\"N\",\"Y\")))","v":""},{"$f":"IF($B219=\"N\",\"\",IF(AND('Enrollment Form'!$C226=\"ROC\",'Enrollment Form'!$DS226<>\"\"),\"Y\",IF(AND('Enrollment Form'!$C226=\"ROC\",'Enrollment Form'!$DS226=\"\"),\"N\",IF(AND('Enrollment Form'!$C226=\"Enroll\",'Enrollment Form'!$B226=\"Subscriber\",'Enrollment Form'!$CQ226=\"No\",'Enrollment Form'!$DS226=\"\"),\"N\",IF(AND('Enrollment Form'!$C226=\"Enroll\",'Enrollment Form'!$B226=\"Subscriber\",'Enrollment Form'!$CQ226=\"Yes\"),\"-\",\"Y\")))))","v":""},{"$f":"IF($B219=\"N\",\"\",IF(AND('Enrollment Form'!$C226=\"ROC\",'Enrollment Form'!$DT226<>\"\"),\"Y\",IF(AND('Enrollment Form'!$C226=\"ROC\",'Enrollment Form'!$DT226=\"\"),\"N\",IF(AND('Enrollment Form'!$C226=\"Enroll\",'Enrollment Form'!$B226=\"Subscriber\",'Enrollment Form'!$CQ226=\"No\",'Enrollment Form'!$DT226=\"\"),\"N\",IF(AND('Enrollment Form'!$C226=\"Enroll\",'Enrollment Form'!$B226=\"Subscriber\",'Enrollment Form'!$CQ226=\"Yes\"),\"-\",\"Y\")))))","v":""},{"$f":"IF('Enrollment Form'!AH226=\"\",\"\",IF(ISERROR(SEARCH(\".\",'Enrollment Form'!AH226,SEARCH(\"@\",'Enrollment Form'!AH226))),\"N\",\"Y\"))","v":""},{"$f":"IF(OR($B219=\"N\",'Enrollment Form'!$G226=\"\"),\"\",IF('Enrollment Form'!$B226<>\"Subscriber\",\"-\",IF(COUNTIF('Enrollment Form'!$AS226:$AT226,\"Yes\")=2,\"N\",\"Y\")))","v":""},{"$f":"IF(OR('Enrollment Form'!$CC226=\"\",'Enrollment Form'!$CC226=\"No\"),\"-\",IF(AND('Enrollment Form'!$CC226=\"Yes\",'Enrollment Form'!$CD226=\"\"),\"N\",\"Y\"))","v":"-"},{"$f":"IF(OR('Enrollment Form'!$CE226=\"\",'Enrollment Form'!$CE226=\"No\"),\"-\",IF(AND('Enrollment Form'!$CE226=\"Yes\",'Enrollment Form'!$CF226=\"\"),\"N\",\"Y\"))","v":"-"},{"$f":"IF(OR('Enrollment Form'!$CG226=\"\",'Enrollment Form'!$CG226=\"No\"),\"-\",IF(AND('Enrollment Form'!$CG226=\"Yes\",'Enrollment Form'!$CH226=\"\"),\"N\",\"Y\"))","v":"-"},{"$f":"IF(OR('Enrollment Form'!$CG226=\"\",'Enrollment Form'!$CG226=\"No\"),\"-\",IF(AND('Enrollment Form'!$CG226=\"Yes\",'Enrollment Form'!$CI226=\"\"),\"N\",\"Y\"))","v":"-"},{"$f":"IF('Enrollment Form'!B226<>\"Subscriber\",\"-\",IF(AND('Enrollment Form'!B226=\"Subscriber\",'Enrollment Form'!C226=\"Enroll\",'Enrollment Form'!AA226=\"\"),\"N\",\"Y\"))","v":"-"},{"$f":"IF(OR('Enrollment Form'!B226=\"Subscriber\",'Enrollment Form'!B226=\"\"),\"-\",IF('Enrollment Form'!BI226=\"\",\"N\",\"Y\"))","v":"-"},{"$f":"IF('Enrollment Form'!B226<>\"Subscriber\",\"-\",IF(AND('Enrollment Form'!B226=\"Subscriber\",'Enrollment Form'!G226=\"\"),\"N\",\"Y\"))","v":"-"},{"$f":"IF('Enrollment Form'!A226=\"\",\"\",IF('Enrollment Form'!B226=\"Subscriber\",\"-\",IF(AND('Enrollment Form'!B226<>\"Subscriber\",'Enrollment Form'!G226='Enrollment Form'!H226),\"N\",\"Y\")))","v":""},0]
[227,{"$f":"IF('Enrollment Form'!$A227<>\"\",\"Y\",\"N\")","v":"N"},{"$f":"IF(AND('Enrollment Form'!$B227=\"\",'Enrollment Form'!$C227<>\"\"),\"N\",IF($B220=\"N\",\"\",\"Y\"))","v":""},{"$f":"IF(OR($B220=\"N\",'Enrollment Form'!G227=\"\"),\"\",IF('Enrollment Form'!$B227<>\"Subscriber\",\"\",IF('Enrollment Form'!$G227='Enrollment Form'!$H227,\"Y\",\"N\")))","v":""},{"$f":"IF($B220=\"N\",\"\",IF(AND(COUNTIFS('Enrollment Form'!$H$11:$H$1000,'Enrollment Form'!$H227,'Enrollment Form'!$B$11:$B$1000,'Enrollment Form'!$B227)>1,'Enrollment Form'!$H227<>\"\"),\"N\",\"Y\"))","v":""},{"$f":"IF($B220=\"N\",\"\",IF(LEN('Enrollment Form'!$Y227)=0,\"\",IF(LEN('Enrollment Form'!$Y227)<>5,\"N\",\"Y\")))","v":""},{"$f":"IF($B220=\"N\",\"\",IF(LEN('Enrollment Form'!$AD227=0),\"\",IF(LEN('Enrollment Form'!$AD227)<>5,\"N\",\"Y\")))","v":""},{"$f":"IF($B220=\"N\",\"\",IF(LEN('Enrollment Form'!$BL227=0),\"\",IF(LEN('Enrollment Form'!$BL227)<>5,\"N\",\"Y\")))","v":""},{"$f":"IF($B220=\"N\",\"\",IF(LEN('Enrollment Form'!$AE227)=0,\"\",IF(LEN('Enrollment Form'!$AE227)<>10,\"N\",\"Y\")))","v":""},{"$f":"IF($B220=\"N\",\"\",IF(LEN('Enrollment Form'!$AF227)=0,\"\",IF(LEN('Enrollment Form'!$AF227)<>10,\"N\",\"Y\")))","v":""},{"$f":"IF('Enrollment Form'!$O227<>\"Graded\",\"-\",IF(AND('Enrollment Form'!$O227=\"Graded\",'Enrollment Form'!$AO227<>\"\"),\"Y\",\"N\"))","v":"-"},{"$f":"IF($B220=\"N\",\"\",IF(OR('Enrollment Form'!$B227<>\"Subscriber\",'Enrollment Form'!$C227=\"ROC\"),\"-\",IF(AND('Enrollment Form'!$B227=\"Subscriber\",'Enrollment Form'!$C227=\"Enroll\",'Enrollment Form'!$AJ227<>\"\"),\"Y\",\"N\")))","v":""},{"$f":"IF($B220=\"N\",\"\",IF(OR('Enrollment Form'!$B227<>\"Subscriber\",'Enrollment Form'!$C227=\"ROC\"),\"-\",IF(AND('Enrollment Form'!$B227=\"Subscriber\",'Enrollment Form'!$C227=\"Enroll\",'Enrollment Form'!$AK227<>\"\"),\"Y\",\"N\")))","v":""},{"$f":"IF($B220=\"N\",\"\",IF(OR('Enrollment Form'!$B227<>\"Subscriber\",'Enrollment Form'!$C227=\"ROC\"),\"-\",IF(AND('Enrollment Form'!$B227=\"Subscriber\",'Enrollment Form'!$C227=\"Enroll\",'Enrollment Form'!$AL227<>\"\"),\"Y\",\"N\")))","v":""},{"$f":"IF($B220=\"N\",\"\",IF(OR('Enrollment Form'!$B227<>\"Subscriber\",'Enrollment Form'!$C227=\"ROC\"),\"-\",IF(AND('Enrollment Form'!$B227=\"Subscriber\",'Enrollment Form'!$C227=\"Enroll\",'Enrollment Form'!$AM227<>\"\"),\"Y\",\"N\")))","v":""},{"$f":"IF($B220=\"N\",\"\",IF(OR('Enrollment Form'!$B227<>\"Subscriber\",'Enrollment Form'!$C227=\"ROC\"),\"-\",IF(AND('Enrollment Form'!$B227=\"Subscriber\",'Enrollment Form'!$C227=\"Enroll\",'Enrollment Form'!$AN227<>\"\"),\"Y\",\"N\")))","v":""},{"$f":"IF($B220=\"N\",\"\",IF(OR('Enrollment Form'!$B227<>\"Subscriber\",'Enrollment Form'!$C227=\"ROC\"),\"-\",IF(AND('Enrollment Form'!$B227=\"Subscriber\",'Enrollment Form'!$C227=\"Enroll\",'Enrollment Form'!$AP227<>\"\"),\"Y\",\"N\")))","v":""},{"$f":"IF($B220=\"N\",\"\",IF($Q220=\"-\",\"-\",IF(AND($Q220=\"Y\",'Enrollment Form'!$AP227=\"No\"),\"-\",IF(AND($Q220=\"Y\",'Enrollment Form'!$AP227=\"Yes\",'Enrollment Form'!$AQ227<>\"\"),\"Y\",\"N\"))))","v":""},{"$f":"IF($B220=\"N\",\"\",IF(OR('Enrollment Form'!$B227<>\"Subscriber\",'Enrollment Form'!$C227=\"ROC\"),\"-\",IF(AND('Enrollment Form'!$B227=\"Subscriber\",'Enrollment Form'!$C227=\"Enroll\",'Enrollment Form'!$CO227<>\"\"),\"Y\",\"N\")))","v":""},{"$f":"IF($B220=\"N\",\"\",IF($S220=\"-\",\"-\",IF(AND($S220=\"Y\",'Enrollment Form'!$CO227=\"No\"),\"-\",IF(AND($S220=\"Y\",'Enrollment Form'!$CO227=\"Yes\",'Enrollment Form'!$CP227<>\"\"),\"Y\",\"N\"))))","v":""},{"$f":"IF(OR('Enrollment Form'!$AV227=\"Yes\",'Enrollment Form'!$AV227=\"\"),\"-\",IF(AND('Enrollment Form'!$AV227=\"No\",ISERROR(FIND(\"HMO\",VLOOKUP('Enrollment Form'!G227,'Enrollment Form'!H$11:J$1000,3,FALSE),1))=FALSE,COUNTA('Enrollment Form'!$AW227:$AZ227)=4),\"Y\",\"N\"))","v":"-"},{"$f":"IF($B220=\"N\",\"\",IF('Enrollment Form'!$B227=\"Subscriber\",\"-\",IF(COUNTA('Enrollment Form'!$BE227,'Enrollment Form'!$BG227)=2,\"Y\",\"N\")))","v":""},{"$f":"IF($B220=\"N\",\"\",IF(OR('Enrollment Form'!$AU227=\"\",'Enrollment Form'!$AU227=\"No\"),\"-\",IF(AND('Enrollment Form'!$AU227=\"Yes\",COUNTA('Enrollment Form'!$CK227)=1),\"Y\",\"N\")))","v":""},{"$f":"IF(OR('Enrollment Form'!$CK227=\"\",'Enrollment Form'!$CK227=\"No\"),\"-\",IF(COUNTA('Enrollment Form'!$CM227:$CN227)=2,\"Y\",\"N\"))","v":"-"},{"$f":"IF($B220=\"N\",\"\",IF(COUNTIF('Enrollment Form'!$CZ227:$DO227,\"Other\")=COUNTA('Enrollment Form'!$DF227,'Enrollment Form'!$DA227,'Enrollment Form'!$DK227,'Enrollment Form'!$DP227),\"Y\",\"N\"))","v":""},{"$f":"IF($B220=\"N\",\"\",IF(OR('Enrollment Form'!B227<>\"Subscriber\",'Enrollment Form'!C227=\"ROC\",COUNTIF('Enrollment Form'!AS227:AT227,\"Yes\")>=1),\"-\",IF(AND('Enrollment Form'!C227=\"Enroll\",COUNTIF('Enrollment Form'!AS227:AT227,\"No\")=2,'Enrollment Form'!AU227=\"\"),\"N\",\"Y\")))","v":""},{"$f":"IF(OR(B220=\"N\",'Enrollment Form'!B227<>\"Subscriber\",'Enrollment Form'!C227=\"ROC\",'Enrollment Form'!O227<>\"Multiple of Salary\"),\"-\",IF(COUNTA('Enrollment Form'!T227:U227)<2,\"N\",\"Y\"))","v":"-"},{"$f":"IF(B220=\"N\",\"\",IF(OR('Enrollment Form'!C227=\"ROC\",'Enrollment Form'!B227<>\"Subscriber\",'Enrollment Form'!O227=\"Waive\",'Enrollment Form'!O227=\"\"),\"-\",IF('Enrollment Form'!P227=\"\",\"N\",\"Y\")))","v":""},{"$f":"IF($B220=\"N\",\"\",IF(AND('Enrollment Form'!$C227=\"ROC\",'Enrollment Form'!$DS227<>\"\"),\"Y\",IF(AND('Enrollment Form'!$C227=\"ROC\",'Enrollment Form'!$DS227=\"\"),\"N\",IF(AND('Enrollment Form'!$C227=\"Enroll\",'Enrollment Form'!$B227=\"Subscriber\",'Enrollment Form'!$CQ227=\"No\",'Enrollment Form'!$DS227=\"\"),\"N\",IF(AND('Enrollment Form'!$C227=\"Enroll\",'Enrollment Form'!$B227=\"Subscriber\",'Enrollment Form'!$CQ227=\"Yes\"),\"-\",\"Y\")))))","v":""},{"$f":"IF($B220=\"N\",\"\",IF(AND('Enrollment Form'!$C227=\"ROC\",'Enrollment Form'!$DT227<>\"\"),\"Y\",IF(AND('Enrollment Form'!$C227=\"ROC\",'Enrollment Form'!$DT227=\"\"),\"N\",IF(AND('Enrollment Form'!$C227=\"Enroll\",'Enrollment Form'!$B227=\"Subscriber\",'Enrollment Form'!$CQ227=\"No\",'Enrollment Form'!$DT227=\"\"),\"N\",IF(AND('Enrollment Form'!$C227=\"Enroll\",'Enrollment Form'!$B227=\"Subscriber\",'Enrollment Form'!$CQ227=\"Yes\"),\"-\",\"Y\")))))","v":""},{"$f":"IF('Enrollment Form'!AH227=\"\",\"\",IF(ISERROR(SEARCH(\".\",'Enrollment Form'!AH227,SEARCH(\"@\",'Enrollment Form'!AH227))),\"N\",\"Y\"))","v":""},{"$f":"IF(OR($B220=\"N\",'Enrollment Form'!$G227=\"\"),\"\",IF('Enrollment Form'!$B227<>\"Subscriber\",\"-\",IF(COUNTIF('Enrollment Form'!$AS227:$AT227,\"Yes\")=2,\"N\",\"Y\")))","v":""},{"$f":"IF(OR('Enrollment Form'!$CC227=\"\",'Enrollment Form'!$CC227=\"No\"),\"-\",IF(AND('Enrollment Form'!$CC227=\"Yes\",'Enrollment Form'!$CD227=\"\"),\"N\",\"Y\"))","v":"-"},{"$f":"IF(OR('Enrollment Form'!$CE227=\"\",'Enrollment Form'!$CE227=\"No\"),\"-\",IF(AND('Enrollment Form'!$CE227=\"Yes\",'Enrollment Form'!$CF227=\"\"),\"N\",\"Y\"))","v":"-"},{"$f":"IF(OR('Enrollment Form'!$CG227=\"\",'Enrollment Form'!$CG227=\"No\"),\"-\",IF(AND('Enrollment Form'!$CG227=\"Yes\",'Enrollment Form'!$CH227=\"\"),\"N\",\"Y\"))","v":"-"},{"$f":"IF(OR('Enrollment Form'!$CG227=\"\",'Enrollment Form'!$CG227=\"No\"),\"-\",IF(AND('Enrollment Form'!$CG227=\"Yes\",'Enrollment Form'!$CI227=\"\"),\"N\",\"Y\"))","v":"-"},{"$f":"IF('Enrollment Form'!B227<>\"Subscriber\",\"-\",IF(AND('Enrollment Form'!B227=\"Subscriber\",'Enrollment Form'!C227=\"Enroll\",'Enrollment Form'!AA227=\"\"),\"N\",\"Y\"))","v":"-"},{"$f":"IF(OR('Enrollment Form'!B227=\"Subscriber\",'Enrollment Form'!B227=\"\"),\"-\",IF('Enrollment Form'!BI227=\"\",\"N\",\"Y\"))","v":"-"},{"$f":"IF('Enrollment Form'!B227<>\"Subscriber\",\"-\",IF(AND('Enrollment Form'!B227=\"Subscriber\",'Enrollment Form'!G227=\"\"),\"N\",\"Y\"))","v":"-"},{"$f":"IF('Enrollment Form'!A227=\"\",\"\",IF('Enrollment Form'!B227=\"Subscriber\",\"-\",IF(AND('Enrollment Form'!B227<>\"Subscriber\",'Enrollment Form'!G227='Enrollment Form'!H227),\"N\",\"Y\")))","v":""},0]
[228,{"$f":"IF('Enrollment Form'!$A228<>\"\",\"Y\",\"N\")","v":"N"},{"$f":"IF(AND('Enrollment Form'!$B228=\"\",'Enrollment Form'!$C228<>\"\"),\"N\",IF($B221=\"N\",\"\",\"Y\"))","v":""},{"$f":"IF(OR($B221=\"N\",'Enrollment Form'!G228=\"\"),\"\",IF('Enrollment Form'!$B228<>\"Subscriber\",\"\",IF('Enrollment Form'!$G228='Enrollment Form'!$H228,\"Y\",\"N\")))","v":""},{"$f":"IF($B221=\"N\",\"\",IF(AND(COUNTIFS('Enrollment Form'!$H$11:$H$1000,'Enrollment Form'!$H228,'Enrollment Form'!$B$11:$B$1000,'Enrollment Form'!$B228)>1,'Enrollment Form'!$H228<>\"\"),\"N\",\"Y\"))","v":""},{"$f":"IF($B221=\"N\",\"\",IF(LEN('Enrollment Form'!$Y228)=0,\"\",IF(LEN('Enrollment Form'!$Y228)<>5,\"N\",\"Y\")))","v":""},{"$f":"IF($B221=\"N\",\"\",IF(LEN('Enrollment Form'!$AD228=0),\"\",IF(LEN('Enrollment Form'!$AD228)<>5,\"N\",\"Y\")))","v":""},{"$f":"IF($B221=\"N\",\"\",IF(LEN('Enrollment Form'!$BL228=0),\"\",IF(LEN('Enrollment Form'!$BL228)<>5,\"N\",\"Y\")))","v":""},{"$f":"IF($B221=\"N\",\"\",IF(LEN('Enrollment Form'!$AE228)=0,\"\",IF(LEN('Enrollment Form'!$AE228)<>10,\"N\",\"Y\")))","v":""},{"$f":"IF($B221=\"N\",\"\",IF(LEN('Enrollment Form'!$AF228)=0,\"\",IF(LEN('Enrollment Form'!$AF228)<>10,\"N\",\"Y\")))","v":""},{"$f":"IF('Enrollment Form'!$O228<>\"Graded\",\"-\",IF(AND('Enrollment Form'!$O228=\"Graded\",'Enrollment Form'!$AO228<>\"\"),\"Y\",\"N\"))","v":"-"},{"$f":"IF($B221=\"N\",\"\",IF(OR('Enrollment Form'!$B228<>\"Subscriber\",'Enrollment Form'!$C228=\"ROC\"),\"-\",IF(AND('Enrollment Form'!$B228=\"Subscriber\",'Enrollment Form'!$C228=\"Enroll\",'Enrollment Form'!$AJ228<>\"\"),\"Y\",\"N\")))","v":""},{"$f":"IF($B221=\"N\",\"\",IF(OR('Enrollment Form'!$B228<>\"Subscriber\",'Enrollment Form'!$C228=\"ROC\"),\"-\",IF(AND('Enrollment Form'!$B228=\"Subscriber\",'Enrollment Form'!$C228=\"Enroll\",'Enrollment Form'!$AK228<>\"\"),\"Y\",\"N\")))","v":""},{"$f":"IF($B221=\"N\",\"\",IF(OR('Enrollment Form'!$B228<>\"Subscriber\",'Enrollment Form'!$C228=\"ROC\"),\"-\",IF(AND('Enrollment Form'!$B228=\"Subscriber\",'Enrollment Form'!$C228=\"Enroll\",'Enrollment Form'!$AL228<>\"\"),\"Y\",\"N\")))","v":""},{"$f":"IF($B221=\"N\",\"\",IF(OR('Enrollment Form'!$B228<>\"Subscriber\",'Enrollment Form'!$C228=\"ROC\"),\"-\",IF(AND('Enrollment Form'!$B228=\"Subscriber\",'Enrollment Form'!$C228=\"Enroll\",'Enrollment Form'!$AM228<>\"\"),\"Y\",\"N\")))","v":""},{"$f":"IF($B221=\"N\",\"\",IF(OR('Enrollment Form'!$B228<>\"Subscriber\",'Enrollment Form'!$C228=\"ROC\"),\"-\",IF(AND('Enrollment Form'!$B228=\"Subscriber\",'Enrollment Form'!$C228=\"Enroll\",'Enrollment Form'!$AN228<>\"\"),\"Y\",\"N\")))","v":""},{"$f":"IF($B221=\"N\",\"\",IF(OR('Enrollment Form'!$B228<>\"Subscriber\",'Enrollment Form'!$C228=\"ROC\"),\"-\",IF(AND('Enrollment Form'!$B228=\"Subscriber\",'Enrollment Form'!$C228=\"Enroll\",'Enrollment Form'!$AP228<>\"\"),\"Y\",\"N\")))","v":""},{"$f":"IF($B221=\"N\",\"\",IF($Q221=\"-\",\"-\",IF(AND($Q221=\"Y\",'Enrollment Form'!$AP228=\"No\"),\"-\",IF(AND($Q221=\"Y\",'Enrollment Form'!$AP228=\"Yes\",'Enrollment Form'!$AQ228<>\"\"),\"Y\",\"N\"))))","v":""},{"$f":"IF($B221=\"N\",\"\",IF(OR('Enrollment Form'!$B228<>\"Subscriber\",'Enrollment Form'!$C228=\"ROC\"),\"-\",IF(AND('Enrollment Form'!$B228=\"Subscriber\",'Enrollment Form'!$C228=\"Enroll\",'Enrollment Form'!$CO228<>\"\"),\"Y\",\"N\")))","v":""},{"$f":"IF($B221=\"N\",\"\",IF($S221=\"-\",\"-\",IF(AND($S221=\"Y\",'Enrollment Form'!$CO228=\"No\"),\"-\",IF(AND($S221=\"Y\",'Enrollment Form'!$CO228=\"Yes\",'Enrollment Form'!$CP228<>\"\"),\"Y\",\"N\"))))","v":""},{"$f":"IF(OR('Enrollment Form'!$AV228=\"Yes\",'Enrollment Form'!$AV228=\"\"),\"-\",IF(AND('Enrollment Form'!$AV228=\"No\",ISERROR(FIND(\"HMO\",VLOOKUP('Enrollment Form'!G228,'Enrollment Form'!H$11:J$1000,3,FALSE),1))=FALSE,COUNTA('Enrollment Form'!$AW228:$AZ228)=4),\"Y\",\"N\"))","v":"-"},{"$f":"IF($B221=\"N\",\"\",IF('Enrollment Form'!$B228=\"Subscriber\",\"-\",IF(COUNTA('Enrollment Form'!$BE228,'Enrollment Form'!$BG228)=2,\"Y\",\"N\")))","v":""},{"$f":"IF($B221=\"N\",\"\",IF(OR('Enrollment Form'!$AU228=\"\",'Enrollment Form'!$AU228=\"No\"),\"-\",IF(AND('Enrollment Form'!$AU228=\"Yes\",COUNTA('Enrollment Form'!$CK228)=1),\"Y\",\"N\")))","v":""},{"$f":"IF(OR('Enrollment Form'!$CK228=\"\",'Enrollment Form'!$CK228=\"No\"),\"-\",IF(COUNTA('Enrollment Form'!$CM228:$CN228)=2,\"Y\",\"N\"))","v":"-"},{"$f":"IF($B221=\"N\",\"\",IF(COUNTIF('Enrollment Form'!$CZ228:$DO228,\"Other\")=COUNTA('Enrollment Form'!$DF228,'Enrollment Form'!$DA228,'Enrollment Form'!$DK228,'Enrollment Form'!$DP228),\"Y\",\"N\"))","v":""},{"$f":"IF($B221=\"N\",\"\",IF(OR('Enrollment Form'!B228<>\"Subscriber\",'Enrollment Form'!C228=\"ROC\",COUNTIF('Enrollment Form'!AS228:AT228,\"Yes\")>=1),\"-\",IF(AND('Enrollment Form'!C228=\"Enroll\",COUNTIF('Enrollment Form'!AS228:AT228,\"No\")=2,'Enrollment Form'!AU228=\"\"),\"N\",\"Y\")))","v":""},{"$f":"IF(OR(B221=\"N\",'Enrollment Form'!B228<>\"Subscriber\",'Enrollment Form'!C228=\"ROC\",'Enrollment Form'!O228<>\"Multiple of Salary\"),\"-\",IF(COUNTA('Enrollment Form'!T228:U228)<2,\"N\",\"Y\"))","v":"-"},{"$f":"IF(B221=\"N\",\"\",IF(OR('Enrollment Form'!C228=\"ROC\",'Enrollment Form'!B228<>\"Subscriber\",'Enrollment Form'!O228=\"Waive\",'Enrollment Form'!O228=\"\"),\"-\",IF('Enrollment Form'!P228=\"\",\"N\",\"Y\")))","v":""},{"$f":"IF($B221=\"N\",\"\",IF(AND('Enrollment Form'!$C228=\"ROC\",'Enrollment Form'!$DS228<>\"\"),\"Y\",IF(AND('Enrollment Form'!$C228=\"ROC\",'Enrollment Form'!$DS228=\"\"),\"N\",IF(AND('Enrollment Form'!$C228=\"Enroll\",'Enrollment Form'!$B228=\"Subscriber\",'Enrollment Form'!$CQ228=\"No\",'Enrollment Form'!$DS228=\"\"),\"N\",IF(AND('Enrollment Form'!$C228=\"Enroll\",'Enrollment Form'!$B228=\"Subscriber\",'Enrollment Form'!$CQ228=\"Yes\"),\"-\",\"Y\")))))","v":""},{"$f":"IF($B221=\"N\",\"\",IF(AND('Enrollment Form'!$C228=\"ROC\",'Enrollment Form'!$DT228<>\"\"),\"Y\",IF(AND('Enrollment Form'!$C228=\"ROC\",'Enrollment Form'!$DT228=\"\"),\"N\",IF(AND('Enrollment Form'!$C228=\"Enroll\",'Enrollment Form'!$B228=\"Subscriber\",'Enrollment Form'!$CQ228=\"No\",'Enrollment Form'!$DT228=\"\"),\"N\",IF(AND('Enrollment Form'!$C228=\"Enroll\",'Enrollment Form'!$B228=\"Subscriber\",'Enrollment Form'!$CQ228=\"Yes\"),\"-\",\"Y\")))))","v":""},{"$f":"IF('Enrollment Form'!AH228=\"\",\"\",IF(ISERROR(SEARCH(\".\",'Enrollment Form'!AH228,SEARCH(\"@\",'Enrollment Form'!AH228))),\"N\",\"Y\"))","v":""},{"$f":"IF(OR($B221=\"N\",'Enrollment Form'!$G228=\"\"),\"\",IF('Enrollment Form'!$B228<>\"Subscriber\",\"-\",IF(COUNTIF('Enrollment Form'!$AS228:$AT228,\"Yes\")=2,\"N\",\"Y\")))","v":""},{"$f":"IF(OR('Enrollment Form'!$CC228=\"\",'Enrollment Form'!$CC228=\"No\"),\"-\",IF(AND('Enrollment Form'!$CC228=\"Yes\",'Enrollment Form'!$CD228=\"\"),\"N\",\"Y\"))","v":"-"},{"$f":"IF(OR('Enrollment Form'!$CE228=\"\",'Enrollment Form'!$CE228=\"No\"),\"-\",IF(AND('Enrollment Form'!$CE228=\"Yes\",'Enrollment Form'!$CF228=\"\"),\"N\",\"Y\"))","v":"-"},{"$f":"IF(OR('Enrollment Form'!$CG228=\"\",'Enrollment Form'!$CG228=\"No\"),\"-\",IF(AND('Enrollment Form'!$CG228=\"Yes\",'Enrollment Form'!$CH228=\"\"),\"N\",\"Y\"))","v":"-"},{"$f":"IF(OR('Enrollment Form'!$CG228=\"\",'Enrollment Form'!$CG228=\"No\"),\"-\",IF(AND('Enrollment Form'!$CG228=\"Yes\",'Enrollment Form'!$CI228=\"\"),\"N\",\"Y\"))","v":"-"},{"$f":"IF('Enrollment Form'!B228<>\"Subscriber\",\"-\",IF(AND('Enrollment Form'!B228=\"Subscriber\",'Enrollment Form'!C228=\"Enroll\",'Enrollment Form'!AA228=\"\"),\"N\",\"Y\"))","v":"-"},{"$f":"IF(OR('Enrollment Form'!B228=\"Subscriber\",'Enrollment Form'!B228=\"\"),\"-\",IF('Enrollment Form'!BI228=\"\",\"N\",\"Y\"))","v":"-"},{"$f":"IF('Enrollment Form'!B228<>\"Subscriber\",\"-\",IF(AND('Enrollment Form'!B228=\"Subscriber\",'Enrollment Form'!G228=\"\"),\"N\",\"Y\"))","v":"-"},{"$f":"IF('Enrollment Form'!A228=\"\",\"\",IF('Enrollment Form'!B228=\"Subscriber\",\"-\",IF(AND('Enrollment Form'!B228<>\"Subscriber\",'Enrollment Form'!G228='Enrollment Form'!H228),\"N\",\"Y\")))","v":""},0]
[229,{"$f":"IF('Enrollment Form'!$A229<>\"\",\"Y\",\"N\")","v":"N"},{"$f":"IF(AND('Enrollment Form'!$B229=\"\",'Enrollment Form'!$C229<>\"\"),\"N\",IF($B222=\"N\",\"\",\"Y\"))","v":""},{"$f":"IF(OR($B222=\"N\",'Enrollment Form'!G229=\"\"),\"\",IF('Enrollment Form'!$B229<>\"Subscriber\",\"\",IF('Enrollment Form'!$G229='Enrollment Form'!$H229,\"Y\",\"N\")))","v":""},{"$f":"IF($B222=\"N\",\"\",IF(AND(COUNTIFS('Enrollment Form'!$H$11:$H$1000,'Enrollment Form'!$H229,'Enrollment Form'!$B$11:$B$1000,'Enrollment Form'!$B229)>1,'Enrollment Form'!$H229<>\"\"),\"N\",\"Y\"))","v":""},{"$f":"IF($B222=\"N\",\"\",IF(LEN('Enrollment Form'!$Y229)=0,\"\",IF(LEN('Enrollment Form'!$Y229)<>5,\"N\",\"Y\")))","v":""},{"$f":"IF($B222=\"N\",\"\",IF(LEN('Enrollment Form'!$AD229=0),\"\",IF(LEN('Enrollment Form'!$AD229)<>5,\"N\",\"Y\")))","v":""},{"$f":"IF($B222=\"N\",\"\",IF(LEN('Enrollment Form'!$BL229=0),\"\",IF(LEN('Enrollment Form'!$BL229)<>5,\"N\",\"Y\")))","v":""},{"$f":"IF($B222=\"N\",\"\",IF(LEN('Enrollment Form'!$AE229)=0,\"\",IF(LEN('Enrollment Form'!$AE229)<>10,\"N\",\"Y\")))","v":""},{"$f":"IF($B222=\"N\",\"\",IF(LEN('Enrollment Form'!$AF229)=0,\"\",IF(LEN('Enrollment Form'!$AF229)<>10,\"N\",\"Y\")))","v":""},{"$f":"IF('Enrollment Form'!$O229<>\"Graded\",\"-\",IF(AND('Enrollment Form'!$O229=\"Graded\",'Enrollment Form'!$AO229<>\"\"),\"Y\",\"N\"))","v":"-"},{"$f":"IF($B222=\"N\",\"\",IF(OR('Enrollment Form'!$B229<>\"Subscriber\",'Enrollment Form'!$C229=\"ROC\"),\"-\",IF(AND('Enrollment Form'!$B229=\"Subscriber\",'Enrollment Form'!$C229=\"Enroll\",'Enrollment Form'!$AJ229<>\"\"),\"Y\",\"N\")))","v":""},{"$f":"IF($B222=\"N\",\"\",IF(OR('Enrollment Form'!$B229<>\"Subscriber\",'Enrollment Form'!$C229=\"ROC\"),\"-\",IF(AND('Enrollment Form'!$B229=\"Subscriber\",'Enrollment Form'!$C229=\"Enroll\",'Enrollment Form'!$AK229<>\"\"),\"Y\",\"N\")))","v":""},{"$f":"IF($B222=\"N\",\"\",IF(OR('Enrollment Form'!$B229<>\"Subscriber\",'Enrollment Form'!$C229=\"ROC\"),\"-\",IF(AND('Enrollment Form'!$B229=\"Subscriber\",'Enrollment Form'!$C229=\"Enroll\",'Enrollment Form'!$AL229<>\"\"),\"Y\",\"N\")))","v":""},{"$f":"IF($B222=\"N\",\"\",IF(OR('Enrollment Form'!$B229<>\"Subscriber\",'Enrollment Form'!$C229=\"ROC\"),\"-\",IF(AND('Enrollment Form'!$B229=\"Subscriber\",'Enrollment Form'!$C229=\"Enroll\",'Enrollment Form'!$AM229<>\"\"),\"Y\",\"N\")))","v":""},{"$f":"IF($B222=\"N\",\"\",IF(OR('Enrollment Form'!$B229<>\"Subscriber\",'Enrollment Form'!$C229=\"ROC\"),\"-\",IF(AND('Enrollment Form'!$B229=\"Subscriber\",'Enrollment Form'!$C229=\"Enroll\",'Enrollment Form'!$AN229<>\"\"),\"Y\",\"N\")))","v":""},{"$f":"IF($B222=\"N\",\"\",IF(OR('Enrollment Form'!$B229<>\"Subscriber\",'Enrollment Form'!$C229=\"ROC\"),\"-\",IF(AND('Enrollment Form'!$B229=\"Subscriber\",'Enrollment Form'!$C229=\"Enroll\",'Enrollment Form'!$AP229<>\"\"),\"Y\",\"N\")))","v":""},{"$f":"IF($B222=\"N\",\"\",IF($Q222=\"-\",\"-\",IF(AND($Q222=\"Y\",'Enrollment Form'!$AP229=\"No\"),\"-\",IF(AND($Q222=\"Y\",'Enrollment Form'!$AP229=\"Yes\",'Enrollment Form'!$AQ229<>\"\"),\"Y\",\"N\"))))","v":""},{"$f":"IF($B222=\"N\",\"\",IF(OR('Enrollment Form'!$B229<>\"Subscriber\",'Enrollment Form'!$C229=\"ROC\"),\"-\",IF(AND('Enrollment Form'!$B229=\"Subscriber\",'Enrollment Form'!$C229=\"Enroll\",'Enrollment Form'!$CO229<>\"\"),\"Y\",\"N\")))","v":""},{"$f":"IF($B222=\"N\",\"\",IF($S222=\"-\",\"-\",IF(AND($S222=\"Y\",'Enrollment Form'!$CO229=\"No\"),\"-\",IF(AND($S222=\"Y\",'Enrollment Form'!$CO229=\"Yes\",'Enrollment Form'!$CP229<>\"\"),\"Y\",\"N\"))))","v":""},{"$f":"IF(OR('Enrollment Form'!$AV229=\"Yes\",'Enrollment Form'!$AV229=\"\"),\"-\",IF(AND('Enrollment Form'!$AV229=\"No\",ISERROR(FIND(\"HMO\",VLOOKUP('Enrollment Form'!G229,'Enrollment Form'!H$11:J$1000,3,FALSE),1))=FALSE,COUNTA('Enrollment Form'!$AW229:$AZ229)=4),\"Y\",\"N\"))","v":"-"},{"$f":"IF($B222=\"N\",\"\",IF('Enrollment Form'!$B229=\"Subscriber\",\"-\",IF(COUNTA('Enrollment Form'!$BE229,'Enrollment Form'!$BG229)=2,\"Y\",\"N\")))","v":""},{"$f":"IF($B222=\"N\",\"\",IF(OR('Enrollment Form'!$AU229=\"\",'Enrollment Form'!$AU229=\"No\"),\"-\",IF(AND('Enrollment Form'!$AU229=\"Yes\",COUNTA('Enrollment Form'!$CK229)=1),\"Y\",\"N\")))","v":""},{"$f":"IF(OR('Enrollment Form'!$CK229=\"\",'Enrollment Form'!$CK229=\"No\"),\"-\",IF(COUNTA('Enrollment Form'!$CM229:$CN229)=2,\"Y\",\"N\"))","v":"-"},{"$f":"IF($B222=\"N\",\"\",IF(COUNTIF('Enrollment Form'!$CZ229:$DO229,\"Other\")=COUNTA('Enrollment Form'!$DF229,'Enrollment Form'!$DA229,'Enrollment Form'!$DK229,'Enrollment Form'!$DP229),\"Y\",\"N\"))","v":""},{"$f":"IF($B222=\"N\",\"\",IF(OR('Enrollment Form'!B229<>\"Subscriber\",'Enrollment Form'!C229=\"ROC\",COUNTIF('Enrollment Form'!AS229:AT229,\"Yes\")>=1),\"-\",IF(AND('Enrollment Form'!C229=\"Enroll\",COUNTIF('Enrollment Form'!AS229:AT229,\"No\")=2,'Enrollment Form'!AU229=\"\"),\"N\",\"Y\")))","v":""},{"$f":"IF(OR(B222=\"N\",'Enrollment Form'!B229<>\"Subscriber\",'Enrollment Form'!C229=\"ROC\",'Enrollment Form'!O229<>\"Multiple of Salary\"),\"-\",IF(COUNTA('Enrollment Form'!T229:U229)<2,\"N\",\"Y\"))","v":"-"},{"$f":"IF(B222=\"N\",\"\",IF(OR('Enrollment Form'!C229=\"ROC\",'Enrollment Form'!B229<>\"Subscriber\",'Enrollment Form'!O229=\"Waive\",'Enrollment Form'!O229=\"\"),\"-\",IF('Enrollment Form'!P229=\"\",\"N\",\"Y\")))","v":""},{"$f":"IF($B222=\"N\",\"\",IF(AND('Enrollment Form'!$C229=\"ROC\",'Enrollment Form'!$DS229<>\"\"),\"Y\",IF(AND('Enrollment Form'!$C229=\"ROC\",'Enrollment Form'!$DS229=\"\"),\"N\",IF(AND('Enrollment Form'!$C229=\"Enroll\",'Enrollment Form'!$B229=\"Subscriber\",'Enrollment Form'!$CQ229=\"No\",'Enrollment Form'!$DS229=\"\"),\"N\",IF(AND('Enrollment Form'!$C229=\"Enroll\",'Enrollment Form'!$B229=\"Subscriber\",'Enrollment Form'!$CQ229=\"Yes\"),\"-\",\"Y\")))))","v":""},{"$f":"IF($B222=\"N\",\"\",IF(AND('Enrollment Form'!$C229=\"ROC\",'Enrollment Form'!$DT229<>\"\"),\"Y\",IF(AND('Enrollment Form'!$C229=\"ROC\",'Enrollment Form'!$DT229=\"\"),\"N\",IF(AND('Enrollment Form'!$C229=\"Enroll\",'Enrollment Form'!$B229=\"Subscriber\",'Enrollment Form'!$CQ229=\"No\",'Enrollment Form'!$DT229=\"\"),\"N\",IF(AND('Enrollment Form'!$C229=\"Enroll\",'Enrollment Form'!$B229=\"Subscriber\",'Enrollment Form'!$CQ229=\"Yes\"),\"-\",\"Y\")))))","v":""},{"$f":"IF('Enrollment Form'!AH229=\"\",\"\",IF(ISERROR(SEARCH(\".\",'Enrollment Form'!AH229,SEARCH(\"@\",'Enrollment Form'!AH229))),\"N\",\"Y\"))","v":""},{"$f":"IF(OR($B222=\"N\",'Enrollment Form'!$G229=\"\"),\"\",IF('Enrollment Form'!$B229<>\"Subscriber\",\"-\",IF(COUNTIF('Enrollment Form'!$AS229:$AT229,\"Yes\")=2,\"N\",\"Y\")))","v":""},{"$f":"IF(OR('Enrollment Form'!$CC229=\"\",'Enrollment Form'!$CC229=\"No\"),\"-\",IF(AND('Enrollment Form'!$CC229=\"Yes\",'Enrollment Form'!$CD229=\"\"),\"N\",\"Y\"))","v":"-"},{"$f":"IF(OR('Enrollment Form'!$CE229=\"\",'Enrollment Form'!$CE229=\"No\"),\"-\",IF(AND('Enrollment Form'!$CE229=\"Yes\",'Enrollment Form'!$CF229=\"\"),\"N\",\"Y\"))","v":"-"},{"$f":"IF(OR('Enrollment Form'!$CG229=\"\",'Enrollment Form'!$CG229=\"No\"),\"-\",IF(AND('Enrollment Form'!$CG229=\"Yes\",'Enrollment Form'!$CH229=\"\"),\"N\",\"Y\"))","v":"-"},{"$f":"IF(OR('Enrollment Form'!$CG229=\"\",'Enrollment Form'!$CG229=\"No\"),\"-\",IF(AND('Enrollment Form'!$CG229=\"Yes\",'Enrollment Form'!$CI229=\"\"),\"N\",\"Y\"))","v":"-"},{"$f":"IF('Enrollment Form'!B229<>\"Subscriber\",\"-\",IF(AND('Enrollment Form'!B229=\"Subscriber\",'Enrollment Form'!C229=\"Enroll\",'Enrollment Form'!AA229=\"\"),\"N\",\"Y\"))","v":"-"},{"$f":"IF(OR('Enrollment Form'!B229=\"Subscriber\",'Enrollment Form'!B229=\"\"),\"-\",IF('Enrollment Form'!BI229=\"\",\"N\",\"Y\"))","v":"-"},{"$f":"IF('Enrollment Form'!B229<>\"Subscriber\",\"-\",IF(AND('Enrollment Form'!B229=\"Subscriber\",'Enrollment Form'!G229=\"\"),\"N\",\"Y\"))","v":"-"},{"$f":"IF('Enrollment Form'!A229=\"\",\"\",IF('Enrollment Form'!B229=\"Subscriber\",\"-\",IF(AND('Enrollment Form'!B229<>\"Subscriber\",'Enrollment Form'!G229='Enrollment Form'!H229),\"N\",\"Y\")))","v":""},0]
[230,{"$f":"IF('Enrollment Form'!$A230<>\"\",\"Y\",\"N\")","v":"N"},{"$f":"IF(AND('Enrollment Form'!$B230=\"\",'Enrollment Form'!$C230<>\"\"),\"N\",IF($B223=\"N\",\"\",\"Y\"))","v":""},{"$f":"IF(OR($B223=\"N\",'Enrollment Form'!G230=\"\"),\"\",IF('Enrollment Form'!$B230<>\"Subscriber\",\"\",IF('Enrollment Form'!$G230='Enrollment Form'!$H230,\"Y\",\"N\")))","v":""},{"$f":"IF($B223=\"N\",\"\",IF(AND(COUNTIFS('Enrollment Form'!$H$11:$H$1000,'Enrollment Form'!$H230,'Enrollment Form'!$B$11:$B$1000,'Enrollment Form'!$B230)>1,'Enrollment Form'!$H230<>\"\"),\"N\",\"Y\"))","v":""},{"$f":"IF($B223=\"N\",\"\",IF(LEN('Enrollment Form'!$Y230)=0,\"\",IF(LEN('Enrollment Form'!$Y230)<>5,\"N\",\"Y\")))","v":""},{"$f":"IF($B223=\"N\",\"\",IF(LEN('Enrollment Form'!$AD230=0),\"\",IF(LEN('Enrollment Form'!$AD230)<>5,\"N\",\"Y\")))","v":""},{"$f":"IF($B223=\"N\",\"\",IF(LEN('Enrollment Form'!$BL230=0),\"\",IF(LEN('Enrollment Form'!$BL230)<>5,\"N\",\"Y\")))","v":""},{"$f":"IF($B223=\"N\",\"\",IF(LEN('Enrollment Form'!$AE230)=0,\"\",IF(LEN('Enrollment Form'!$AE230)<>10,\"N\",\"Y\")))","v":""},{"$f":"IF($B223=\"N\",\"\",IF(LEN('Enrollment Form'!$AF230)=0,\"\",IF(LEN('Enrollment Form'!$AF230)<>10,\"N\",\"Y\")))","v":""},{"$f":"IF('Enrollment Form'!$O230<>\"Graded\",\"-\",IF(AND('Enrollment Form'!$O230=\"Graded\",'Enrollment Form'!$AO230<>\"\"),\"Y\",\"N\"))","v":"-"},{"$f":"IF($B223=\"N\",\"\",IF(OR('Enrollment Form'!$B230<>\"Subscriber\",'Enrollment Form'!$C230=\"ROC\"),\"-\",IF(AND('Enrollment Form'!$B230=\"Subscriber\",'Enrollment Form'!$C230=\"Enroll\",'Enrollment Form'!$AJ230<>\"\"),\"Y\",\"N\")))","v":""},{"$f":"IF($B223=\"N\",\"\",IF(OR('Enrollment Form'!$B230<>\"Subscriber\",'Enrollment Form'!$C230=\"ROC\"),\"-\",IF(AND('Enrollment Form'!$B230=\"Subscriber\",'Enrollment Form'!$C230=\"Enroll\",'Enrollment Form'!$AK230<>\"\"),\"Y\",\"N\")))","v":""},{"$f":"IF($B223=\"N\",\"\",IF(OR('Enrollment Form'!$B230<>\"Subscriber\",'Enrollment Form'!$C230=\"ROC\"),\"-\",IF(AND('Enrollment Form'!$B230=\"Subscriber\",'Enrollment Form'!$C230=\"Enroll\",'Enrollment Form'!$AL230<>\"\"),\"Y\",\"N\")))","v":""},{"$f":"IF($B223=\"N\",\"\",IF(OR('Enrollment Form'!$B230<>\"Subscriber\",'Enrollment Form'!$C230=\"ROC\"),\"-\",IF(AND('Enrollment Form'!$B230=\"Subscriber\",'Enrollment Form'!$C230=\"Enroll\",'Enrollment Form'!$AM230<>\"\"),\"Y\",\"N\")))","v":""},{"$f":"IF($B223=\"N\",\"\",IF(OR('Enrollment Form'!$B230<>\"Subscriber\",'Enrollment Form'!$C230=\"ROC\"),\"-\",IF(AND('Enrollment Form'!$B230=\"Subscriber\",'Enrollment Form'!$C230=\"Enroll\",'Enrollment Form'!$AN230<>\"\"),\"Y\",\"N\")))","v":""},{"$f":"IF($B223=\"N\",\"\",IF(OR('Enrollment Form'!$B230<>\"Subscriber\",'Enrollment Form'!$C230=\"ROC\"),\"-\",IF(AND('Enrollment Form'!$B230=\"Subscriber\",'Enrollment Form'!$C230=\"Enroll\",'Enrollment Form'!$AP230<>\"\"),\"Y\",\"N\")))","v":""},{"$f":"IF($B223=\"N\",\"\",IF($Q223=\"-\",\"-\",IF(AND($Q223=\"Y\",'Enrollment Form'!$AP230=\"No\"),\"-\",IF(AND($Q223=\"Y\",'Enrollment Form'!$AP230=\"Yes\",'Enrollment Form'!$AQ230<>\"\"),\"Y\",\"N\"))))","v":""},{"$f":"IF($B223=\"N\",\"\",IF(OR('Enrollment Form'!$B230<>\"Subscriber\",'Enrollment Form'!$C230=\"ROC\"),\"-\",IF(AND('Enrollment Form'!$B230=\"Subscriber\",'Enrollment Form'!$C230=\"Enroll\",'Enrollment Form'!$CO230<>\"\"),\"Y\",\"N\")))","v":""},{"$f":"IF($B223=\"N\",\"\",IF($S223=\"-\",\"-\",IF(AND($S223=\"Y\",'Enrollment Form'!$CO230=\"No\"),\"-\",IF(AND($S223=\"Y\",'Enrollment Form'!$CO230=\"Yes\",'Enrollment Form'!$CP230<>\"\"),\"Y\",\"N\"))))","v":""},{"$f":"IF(OR('Enrollment Form'!$AV230=\"Yes\",'Enrollment Form'!$AV230=\"\"),\"-\",IF(AND('Enrollment Form'!$AV230=\"No\",ISERROR(FIND(\"HMO\",VLOOKUP('Enrollment Form'!G230,'Enrollment Form'!H$11:J$1000,3,FALSE),1))=FALSE,COUNTA('Enrollment Form'!$AW230:$AZ230)=4),\"Y\",\"N\"))","v":"-"},{"$f":"IF($B223=\"N\",\"\",IF('Enrollment Form'!$B230=\"Subscriber\",\"-\",IF(COUNTA('Enrollment Form'!$BE230,'Enrollment Form'!$BG230)=2,\"Y\",\"N\")))","v":""},{"$f":"IF($B223=\"N\",\"\",IF(OR('Enrollment Form'!$AU230=\"\",'Enrollment Form'!$AU230=\"No\"),\"-\",IF(AND('Enrollment Form'!$AU230=\"Yes\",COUNTA('Enrollment Form'!$CK230)=1),\"Y\",\"N\")))","v":""},{"$f":"IF(OR('Enrollment Form'!$CK230=\"\",'Enrollment Form'!$CK230=\"No\"),\"-\",IF(COUNTA('Enrollment Form'!$CM230:$CN230)=2,\"Y\",\"N\"))","v":"-"},{"$f":"IF($B223=\"N\",\"\",IF(COUNTIF('Enrollment Form'!$CZ230:$DO230,\"Other\")=COUNTA('Enrollment Form'!$DF230,'Enrollment Form'!$DA230,'Enrollment Form'!$DK230,'Enrollment Form'!$DP230),\"Y\",\"N\"))","v":""},{"$f":"IF($B223=\"N\",\"\",IF(OR('Enrollment Form'!B230<>\"Subscriber\",'Enrollment Form'!C230=\"ROC\",COUNTIF('Enrollment Form'!AS230:AT230,\"Yes\")>=1),\"-\",IF(AND('Enrollment Form'!C230=\"Enroll\",COUNTIF('Enrollment Form'!AS230:AT230,\"No\")=2,'Enrollment Form'!AU230=\"\"),\"N\",\"Y\")))","v":""},{"$f":"IF(OR(B223=\"N\",'Enrollment Form'!B230<>\"Subscriber\",'Enrollment Form'!C230=\"ROC\",'Enrollment Form'!O230<>\"Multiple of Salary\"),\"-\",IF(COUNTA('Enrollment Form'!T230:U230)<2,\"N\",\"Y\"))","v":"-"},{"$f":"IF(B223=\"N\",\"\",IF(OR('Enrollment Form'!C230=\"ROC\",'Enrollment Form'!B230<>\"Subscriber\",'Enrollment Form'!O230=\"Waive\",'Enrollment Form'!O230=\"\"),\"-\",IF('Enrollment Form'!P230=\"\",\"N\",\"Y\")))","v":""},{"$f":"IF($B223=\"N\",\"\",IF(AND('Enrollment Form'!$C230=\"ROC\",'Enrollment Form'!$DS230<>\"\"),\"Y\",IF(AND('Enrollment Form'!$C230=\"ROC\",'Enrollment Form'!$DS230=\"\"),\"N\",IF(AND('Enrollment Form'!$C230=\"Enroll\",'Enrollment Form'!$B230=\"Subscriber\",'Enrollment Form'!$CQ230=\"No\",'Enrollment Form'!$DS230=\"\"),\"N\",IF(AND('Enrollment Form'!$C230=\"Enroll\",'Enrollment Form'!$B230=\"Subscriber\",'Enrollment Form'!$CQ230=\"Yes\"),\"-\",\"Y\")))))","v":""},{"$f":"IF($B223=\"N\",\"\",IF(AND('Enrollment Form'!$C230=\"ROC\",'Enrollment Form'!$DT230<>\"\"),\"Y\",IF(AND('Enrollment Form'!$C230=\"ROC\",'Enrollment Form'!$DT230=\"\"),\"N\",IF(AND('Enrollment Form'!$C230=\"Enroll\",'Enrollment Form'!$B230=\"Subscriber\",'Enrollment Form'!$CQ230=\"No\",'Enrollment Form'!$DT230=\"\"),\"N\",IF(AND('Enrollment Form'!$C230=\"Enroll\",'Enrollment Form'!$B230=\"Subscriber\",'Enrollment Form'!$CQ230=\"Yes\"),\"-\",\"Y\")))))","v":""},{"$f":"IF('Enrollment Form'!AH230=\"\",\"\",IF(ISERROR(SEARCH(\".\",'Enrollment Form'!AH230,SEARCH(\"@\",'Enrollment Form'!AH230))),\"N\",\"Y\"))","v":""},{"$f":"IF(OR($B223=\"N\",'Enrollment Form'!$G230=\"\"),\"\",IF('Enrollment Form'!$B230<>\"Subscriber\",\"-\",IF(COUNTIF('Enrollment Form'!$AS230:$AT230,\"Yes\")=2,\"N\",\"Y\")))","v":""},{"$f":"IF(OR('Enrollment Form'!$CC230=\"\",'Enrollment Form'!$CC230=\"No\"),\"-\",IF(AND('Enrollment Form'!$CC230=\"Yes\",'Enrollment Form'!$CD230=\"\"),\"N\",\"Y\"))","v":"-"},{"$f":"IF(OR('Enrollment Form'!$CE230=\"\",'Enrollment Form'!$CE230=\"No\"),\"-\",IF(AND('Enrollment Form'!$CE230=\"Yes\",'Enrollment Form'!$CF230=\"\"),\"N\",\"Y\"))","v":"-"},{"$f":"IF(OR('Enrollment Form'!$CG230=\"\",'Enrollment Form'!$CG230=\"No\"),\"-\",IF(AND('Enrollment Form'!$CG230=\"Yes\",'Enrollment Form'!$CH230=\"\"),\"N\",\"Y\"))","v":"-"},{"$f":"IF(OR('Enrollment Form'!$CG230=\"\",'Enrollment Form'!$CG230=\"No\"),\"-\",IF(AND('Enrollment Form'!$CG230=\"Yes\",'Enrollment Form'!$CI230=\"\"),\"N\",\"Y\"))","v":"-"},{"$f":"IF('Enrollment Form'!B230<>\"Subscriber\",\"-\",IF(AND('Enrollment Form'!B230=\"Subscriber\",'Enrollment Form'!C230=\"Enroll\",'Enrollment Form'!AA230=\"\"),\"N\",\"Y\"))","v":"-"},{"$f":"IF(OR('Enrollment Form'!B230=\"Subscriber\",'Enrollment Form'!B230=\"\"),\"-\",IF('Enrollment Form'!BI230=\"\",\"N\",\"Y\"))","v":"-"},{"$f":"IF('Enrollment Form'!B230<>\"Subscriber\",\"-\",IF(AND('Enrollment Form'!B230=\"Subscriber\",'Enrollment Form'!G230=\"\"),\"N\",\"Y\"))","v":"-"},{"$f":"IF('Enrollment Form'!A230=\"\",\"\",IF('Enrollment Form'!B230=\"Subscriber\",\"-\",IF(AND('Enrollment Form'!B230<>\"Subscriber\",'Enrollment Form'!G230='Enrollment Form'!H230),\"N\",\"Y\")))","v":""},0]
[231,{"$f":"IF('Enrollment Form'!$A231<>\"\",\"Y\",\"N\")","v":"N"},{"$f":"IF(AND('Enrollment Form'!$B231=\"\",'Enrollment Form'!$C231<>\"\"),\"N\",IF($B224=\"N\",\"\",\"Y\"))","v":""},{"$f":"IF(OR($B224=\"N\",'Enrollment Form'!G231=\"\"),\"\",IF('Enrollment Form'!$B231<>\"Subscriber\",\"\",IF('Enrollment Form'!$G231='Enrollment Form'!$H231,\"Y\",\"N\")))","v":""},{"$f":"IF($B224=\"N\",\"\",IF(AND(COUNTIFS('Enrollment Form'!$H$11:$H$1000,'Enrollment Form'!$H231,'Enrollment Form'!$B$11:$B$1000,'Enrollment Form'!$B231)>1,'Enrollment Form'!$H231<>\"\"),\"N\",\"Y\"))","v":""},{"$f":"IF($B224=\"N\",\"\",IF(LEN('Enrollment Form'!$Y231)=0,\"\",IF(LEN('Enrollment Form'!$Y231)<>5,\"N\",\"Y\")))","v":""},{"$f":"IF($B224=\"N\",\"\",IF(LEN('Enrollment Form'!$AD231=0),\"\",IF(LEN('Enrollment Form'!$AD231)<>5,\"N\",\"Y\")))","v":""},{"$f":"IF($B224=\"N\",\"\",IF(LEN('Enrollment Form'!$BL231=0),\"\",IF(LEN('Enrollment Form'!$BL231)<>5,\"N\",\"Y\")))","v":""},{"$f":"IF($B224=\"N\",\"\",IF(LEN('Enrollment Form'!$AE231)=0,\"\",IF(LEN('Enrollment Form'!$AE231)<>10,\"N\",\"Y\")))","v":""},{"$f":"IF($B224=\"N\",\"\",IF(LEN('Enrollment Form'!$AF231)=0,\"\",IF(LEN('Enrollment Form'!$AF231)<>10,\"N\",\"Y\")))","v":""},{"$f":"IF('Enrollment Form'!$O231<>\"Graded\",\"-\",IF(AND('Enrollment Form'!$O231=\"Graded\",'Enrollment Form'!$AO231<>\"\"),\"Y\",\"N\"))","v":"-"},{"$f":"IF($B224=\"N\",\"\",IF(OR('Enrollment Form'!$B231<>\"Subscriber\",'Enrollment Form'!$C231=\"ROC\"),\"-\",IF(AND('Enrollment Form'!$B231=\"Subscriber\",'Enrollment Form'!$C231=\"Enroll\",'Enrollment Form'!$AJ231<>\"\"),\"Y\",\"N\")))","v":""},{"$f":"IF($B224=\"N\",\"\",IF(OR('Enrollment Form'!$B231<>\"Subscriber\",'Enrollment Form'!$C231=\"ROC\"),\"-\",IF(AND('Enrollment Form'!$B231=\"Subscriber\",'Enrollment Form'!$C231=\"Enroll\",'Enrollment Form'!$AK231<>\"\"),\"Y\",\"N\")))","v":""},{"$f":"IF($B224=\"N\",\"\",IF(OR('Enrollment Form'!$B231<>\"Subscriber\",'Enrollment Form'!$C231=\"ROC\"),\"-\",IF(AND('Enrollment Form'!$B231=\"Subscriber\",'Enrollment Form'!$C231=\"Enroll\",'Enrollment Form'!$AL231<>\"\"),\"Y\",\"N\")))","v":""},{"$f":"IF($B224=\"N\",\"\",IF(OR('Enrollment Form'!$B231<>\"Subscriber\",'Enrollment Form'!$C231=\"ROC\"),\"-\",IF(AND('Enrollment Form'!$B231=\"Subscriber\",'Enrollment Form'!$C231=\"Enroll\",'Enrollment Form'!$AM231<>\"\"),\"Y\",\"N\")))","v":""},{"$f":"IF($B224=\"N\",\"\",IF(OR('Enrollment Form'!$B231<>\"Subscriber\",'Enrollment Form'!$C231=\"ROC\"),\"-\",IF(AND('Enrollment Form'!$B231=\"Subscriber\",'Enrollment Form'!$C231=\"Enroll\",'Enrollment Form'!$AN231<>\"\"),\"Y\",\"N\")))","v":""},{"$f":"IF($B224=\"N\",\"\",IF(OR('Enrollment Form'!$B231<>\"Subscriber\",'Enrollment Form'!$C231=\"ROC\"),\"-\",IF(AND('Enrollment Form'!$B231=\"Subscriber\",'Enrollment Form'!$C231=\"Enroll\",'Enrollment Form'!$AP231<>\"\"),\"Y\",\"N\")))","v":""},{"$f":"IF($B224=\"N\",\"\",IF($Q224=\"-\",\"-\",IF(AND($Q224=\"Y\",'Enrollment Form'!$AP231=\"No\"),\"-\",IF(AND($Q224=\"Y\",'Enrollment Form'!$AP231=\"Yes\",'Enrollment Form'!$AQ231<>\"\"),\"Y\",\"N\"))))","v":""},{"$f":"IF($B224=\"N\",\"\",IF(OR('Enrollment Form'!$B231<>\"Subscriber\",'Enrollment Form'!$C231=\"ROC\"),\"-\",IF(AND('Enrollment Form'!$B231=\"Subscriber\",'Enrollment Form'!$C231=\"Enroll\",'Enrollment Form'!$CO231<>\"\"),\"Y\",\"N\")))","v":""},{"$f":"IF($B224=\"N\",\"\",IF($S224=\"-\",\"-\",IF(AND($S224=\"Y\",'Enrollment Form'!$CO231=\"No\"),\"-\",IF(AND($S224=\"Y\",'Enrollment Form'!$CO231=\"Yes\",'Enrollment Form'!$CP231<>\"\"),\"Y\",\"N\"))))","v":""},{"$f":"IF(OR('Enrollment Form'!$AV231=\"Yes\",'Enrollment Form'!$AV231=\"\"),\"-\",IF(AND('Enrollment Form'!$AV231=\"No\",ISERROR(FIND(\"HMO\",VLOOKUP('Enrollment Form'!G231,'Enrollment Form'!H$11:J$1000,3,FALSE),1))=FALSE,COUNTA('Enrollment Form'!$AW231:$AZ231)=4),\"Y\",\"N\"))","v":"-"},{"$f":"IF($B224=\"N\",\"\",IF('Enrollment Form'!$B231=\"Subscriber\",\"-\",IF(COUNTA('Enrollment Form'!$BE231,'Enrollment Form'!$BG231)=2,\"Y\",\"N\")))","v":""},{"$f":"IF($B224=\"N\",\"\",IF(OR('Enrollment Form'!$AU231=\"\",'Enrollment Form'!$AU231=\"No\"),\"-\",IF(AND('Enrollment Form'!$AU231=\"Yes\",COUNTA('Enrollment Form'!$CK231)=1),\"Y\",\"N\")))","v":""},{"$f":"IF(OR('Enrollment Form'!$CK231=\"\",'Enrollment Form'!$CK231=\"No\"),\"-\",IF(COUNTA('Enrollment Form'!$CM231:$CN231)=2,\"Y\",\"N\"))","v":"-"},{"$f":"IF($B224=\"N\",\"\",IF(COUNTIF('Enrollment Form'!$CZ231:$DO231,\"Other\")=COUNTA('Enrollment Form'!$DF231,'Enrollment Form'!$DA231,'Enrollment Form'!$DK231,'Enrollment Form'!$DP231),\"Y\",\"N\"))","v":""},{"$f":"IF($B224=\"N\",\"\",IF(OR('Enrollment Form'!B231<>\"Subscriber\",'Enrollment Form'!C231=\"ROC\",COUNTIF('Enrollment Form'!AS231:AT231,\"Yes\")>=1),\"-\",IF(AND('Enrollment Form'!C231=\"Enroll\",COUNTIF('Enrollment Form'!AS231:AT231,\"No\")=2,'Enrollment Form'!AU231=\"\"),\"N\",\"Y\")))","v":""},{"$f":"IF(OR(B224=\"N\",'Enrollment Form'!B231<>\"Subscriber\",'Enrollment Form'!C231=\"ROC\",'Enrollment Form'!O231<>\"Multiple of Salary\"),\"-\",IF(COUNTA('Enrollment Form'!T231:U231)<2,\"N\",\"Y\"))","v":"-"},{"$f":"IF(B224=\"N\",\"\",IF(OR('Enrollment Form'!C231=\"ROC\",'Enrollment Form'!B231<>\"Subscriber\",'Enrollment Form'!O231=\"Waive\",'Enrollment Form'!O231=\"\"),\"-\",IF('Enrollment Form'!P231=\"\",\"N\",\"Y\")))","v":""},{"$f":"IF($B224=\"N\",\"\",IF(AND('Enrollment Form'!$C231=\"ROC\",'Enrollment Form'!$DS231<>\"\"),\"Y\",IF(AND('Enrollment Form'!$C231=\"ROC\",'Enrollment Form'!$DS231=\"\"),\"N\",IF(AND('Enrollment Form'!$C231=\"Enroll\",'Enrollment Form'!$B231=\"Subscriber\",'Enrollment Form'!$CQ231=\"No\",'Enrollment Form'!$DS231=\"\"),\"N\",IF(AND('Enrollment Form'!$C231=\"Enroll\",'Enrollment Form'!$B231=\"Subscriber\",'Enrollment Form'!$CQ231=\"Yes\"),\"-\",\"Y\")))))","v":""},{"$f":"IF($B224=\"N\",\"\",IF(AND('Enrollment Form'!$C231=\"ROC\",'Enrollment Form'!$DT231<>\"\"),\"Y\",IF(AND('Enrollment Form'!$C231=\"ROC\",'Enrollment Form'!$DT231=\"\"),\"N\",IF(AND('Enrollment Form'!$C231=\"Enroll\",'Enrollment Form'!$B231=\"Subscriber\",'Enrollment Form'!$CQ231=\"No\",'Enrollment Form'!$DT231=\"\"),\"N\",IF(AND('Enrollment Form'!$C231=\"Enroll\",'Enrollment Form'!$B231=\"Subscriber\",'Enrollment Form'!$CQ231=\"Yes\"),\"-\",\"Y\")))))","v":""},{"$f":"IF('Enrollment Form'!AH231=\"\",\"\",IF(ISERROR(SEARCH(\".\",'Enrollment Form'!AH231,SEARCH(\"@\",'Enrollment Form'!AH231))),\"N\",\"Y\"))","v":""},{"$f":"IF(OR($B224=\"N\",'Enrollment Form'!$G231=\"\"),\"\",IF('Enrollment Form'!$B231<>\"Subscriber\",\"-\",IF(COUNTIF('Enrollment Form'!$AS231:$AT231,\"Yes\")=2,\"N\",\"Y\")))","v":""},{"$f":"IF(OR('Enrollment Form'!$CC231=\"\",'Enrollment Form'!$CC231=\"No\"),\"-\",IF(AND('Enrollment Form'!$CC231=\"Yes\",'Enrollment Form'!$CD231=\"\"),\"N\",\"Y\"))","v":"-"},{"$f":"IF(OR('Enrollment Form'!$CE231=\"\",'Enrollment Form'!$CE231=\"No\"),\"-\",IF(AND('Enrollment Form'!$CE231=\"Yes\",'Enrollment Form'!$CF231=\"\"),\"N\",\"Y\"))","v":"-"},{"$f":"IF(OR('Enrollment Form'!$CG231=\"\",'Enrollment Form'!$CG231=\"No\"),\"-\",IF(AND('Enrollment Form'!$CG231=\"Yes\",'Enrollment Form'!$CH231=\"\"),\"N\",\"Y\"))","v":"-"},{"$f":"IF(OR('Enrollment Form'!$CG231=\"\",'Enrollment Form'!$CG231=\"No\"),\"-\",IF(AND('Enrollment Form'!$CG231=\"Yes\",'Enrollment Form'!$CI231=\"\"),\"N\",\"Y\"))","v":"-"},{"$f":"IF('Enrollment Form'!B231<>\"Subscriber\",\"-\",IF(AND('Enrollment Form'!B231=\"Subscriber\",'Enrollment Form'!C231=\"Enroll\",'Enrollment Form'!AA231=\"\"),\"N\",\"Y\"))","v":"-"},{"$f":"IF(OR('Enrollment Form'!B231=\"Subscriber\",'Enrollment Form'!B231=\"\"),\"-\",IF('Enrollment Form'!BI231=\"\",\"N\",\"Y\"))","v":"-"},{"$f":"IF('Enrollment Form'!B231<>\"Subscriber\",\"-\",IF(AND('Enrollment Form'!B231=\"Subscriber\",'Enrollment Form'!G231=\"\"),\"N\",\"Y\"))","v":"-"},{"$f":"IF('Enrollment Form'!A231=\"\",\"\",IF('Enrollment Form'!B231=\"Subscriber\",\"-\",IF(AND('Enrollment Form'!B231<>\"Subscriber\",'Enrollment Form'!G231='Enrollment Form'!H231),\"N\",\"Y\")))","v":""},0]
[232,{"$f":"IF('Enrollment Form'!$A232<>\"\",\"Y\",\"N\")","v":"N"},{"$f":"IF(AND('Enrollment Form'!$B232=\"\",'Enrollment Form'!$C232<>\"\"),\"N\",IF($B225=\"N\",\"\",\"Y\"))","v":""},{"$f":"IF(OR($B225=\"N\",'Enrollment Form'!G232=\"\"),\"\",IF('Enrollment Form'!$B232<>\"Subscriber\",\"\",IF('Enrollment Form'!$G232='Enrollment Form'!$H232,\"Y\",\"N\")))","v":""},{"$f":"IF($B225=\"N\",\"\",IF(AND(COUNTIFS('Enrollment Form'!$H$11:$H$1000,'Enrollment Form'!$H232,'Enrollment Form'!$B$11:$B$1000,'Enrollment Form'!$B232)>1,'Enrollment Form'!$H232<>\"\"),\"N\",\"Y\"))","v":""},{"$f":"IF($B225=\"N\",\"\",IF(LEN('Enrollment Form'!$Y232)=0,\"\",IF(LEN('Enrollment Form'!$Y232)<>5,\"N\",\"Y\")))","v":""},{"$f":"IF($B225=\"N\",\"\",IF(LEN('Enrollment Form'!$AD232=0),\"\",IF(LEN('Enrollment Form'!$AD232)<>5,\"N\",\"Y\")))","v":""},{"$f":"IF($B225=\"N\",\"\",IF(LEN('Enrollment Form'!$BL232=0),\"\",IF(LEN('Enrollment Form'!$BL232)<>5,\"N\",\"Y\")))","v":""},{"$f":"IF($B225=\"N\",\"\",IF(LEN('Enrollment Form'!$AE232)=0,\"\",IF(LEN('Enrollment Form'!$AE232)<>10,\"N\",\"Y\")))","v":""},{"$f":"IF($B225=\"N\",\"\",IF(LEN('Enrollment Form'!$AF232)=0,\"\",IF(LEN('Enrollment Form'!$AF232)<>10,\"N\",\"Y\")))","v":""},{"$f":"IF('Enrollment Form'!$O232<>\"Graded\",\"-\",IF(AND('Enrollment Form'!$O232=\"Graded\",'Enrollment Form'!$AO232<>\"\"),\"Y\",\"N\"))","v":"-"},{"$f":"IF($B225=\"N\",\"\",IF(OR('Enrollment Form'!$B232<>\"Subscriber\",'Enrollment Form'!$C232=\"ROC\"),\"-\",IF(AND('Enrollment Form'!$B232=\"Subscriber\",'Enrollment Form'!$C232=\"Enroll\",'Enrollment Form'!$AJ232<>\"\"),\"Y\",\"N\")))","v":""},{"$f":"IF($B225=\"N\",\"\",IF(OR('Enrollment Form'!$B232<>\"Subscriber\",'Enrollment Form'!$C232=\"ROC\"),\"-\",IF(AND('Enrollment Form'!$B232=\"Subscriber\",'Enrollment Form'!$C232=\"Enroll\",'Enrollment Form'!$AK232<>\"\"),\"Y\",\"N\")))","v":""},{"$f":"IF($B225=\"N\",\"\",IF(OR('Enrollment Form'!$B232<>\"Subscriber\",'Enrollment Form'!$C232=\"ROC\"),\"-\",IF(AND('Enrollment Form'!$B232=\"Subscriber\",'Enrollment Form'!$C232=\"Enroll\",'Enrollment Form'!$AL232<>\"\"),\"Y\",\"N\")))","v":""},{"$f":"IF($B225=\"N\",\"\",IF(OR('Enrollment Form'!$B232<>\"Subscriber\",'Enrollment Form'!$C232=\"ROC\"),\"-\",IF(AND('Enrollment Form'!$B232=\"Subscriber\",'Enrollment Form'!$C232=\"Enroll\",'Enrollment Form'!$AM232<>\"\"),\"Y\",\"N\")))","v":""},{"$f":"IF($B225=\"N\",\"\",IF(OR('Enrollment Form'!$B232<>\"Subscriber\",'Enrollment Form'!$C232=\"ROC\"),\"-\",IF(AND('Enrollment Form'!$B232=\"Subscriber\",'Enrollment Form'!$C232=\"Enroll\",'Enrollment Form'!$AN232<>\"\"),\"Y\",\"N\")))","v":""},{"$f":"IF($B225=\"N\",\"\",IF(OR('Enrollment Form'!$B232<>\"Subscriber\",'Enrollment Form'!$C232=\"ROC\"),\"-\",IF(AND('Enrollment Form'!$B232=\"Subscriber\",'Enrollment Form'!$C232=\"Enroll\",'Enrollment Form'!$AP232<>\"\"),\"Y\",\"N\")))","v":""},{"$f":"IF($B225=\"N\",\"\",IF($Q225=\"-\",\"-\",IF(AND($Q225=\"Y\",'Enrollment Form'!$AP232=\"No\"),\"-\",IF(AND($Q225=\"Y\",'Enrollment Form'!$AP232=\"Yes\",'Enrollment Form'!$AQ232<>\"\"),\"Y\",\"N\"))))","v":""},{"$f":"IF($B225=\"N\",\"\",IF(OR('Enrollment Form'!$B232<>\"Subscriber\",'Enrollment Form'!$C232=\"ROC\"),\"-\",IF(AND('Enrollment Form'!$B232=\"Subscriber\",'Enrollment Form'!$C232=\"Enroll\",'Enrollment Form'!$CO232<>\"\"),\"Y\",\"N\")))","v":""},{"$f":"IF($B225=\"N\",\"\",IF($S225=\"-\",\"-\",IF(AND($S225=\"Y\",'Enrollment Form'!$CO232=\"No\"),\"-\",IF(AND($S225=\"Y\",'Enrollment Form'!$CO232=\"Yes\",'Enrollment Form'!$CP232<>\"\"),\"Y\",\"N\"))))","v":""},{"$f":"IF(OR('Enrollment Form'!$AV232=\"Yes\",'Enrollment Form'!$AV232=\"\"),\"-\",IF(AND('Enrollment Form'!$AV232=\"No\",ISERROR(FIND(\"HMO\",VLOOKUP('Enrollment Form'!G232,'Enrollment Form'!H$11:J$1000,3,FALSE),1))=FALSE,COUNTA('Enrollment Form'!$AW232:$AZ232)=4),\"Y\",\"N\"))","v":"-"},{"$f":"IF($B225=\"N\",\"\",IF('Enrollment Form'!$B232=\"Subscriber\",\"-\",IF(COUNTA('Enrollment Form'!$BE232,'Enrollment Form'!$BG232)=2,\"Y\",\"N\")))","v":""},{"$f":"IF($B225=\"N\",\"\",IF(OR('Enrollment Form'!$AU232=\"\",'Enrollment Form'!$AU232=\"No\"),\"-\",IF(AND('Enrollment Form'!$AU232=\"Yes\",COUNTA('Enrollment Form'!$CK232)=1),\"Y\",\"N\")))","v":""},{"$f":"IF(OR('Enrollment Form'!$CK232=\"\",'Enrollment Form'!$CK232=\"No\"),\"-\",IF(COUNTA('Enrollment Form'!$CM232:$CN232)=2,\"Y\",\"N\"))","v":"-"},{"$f":"IF($B225=\"N\",\"\",IF(COUNTIF('Enrollment Form'!$CZ232:$DO232,\"Other\")=COUNTA('Enrollment Form'!$DF232,'Enrollment Form'!$DA232,'Enrollment Form'!$DK232,'Enrollment Form'!$DP232),\"Y\",\"N\"))","v":""},{"$f":"IF($B225=\"N\",\"\",IF(OR('Enrollment Form'!B232<>\"Subscriber\",'Enrollment Form'!C232=\"ROC\",COUNTIF('Enrollment Form'!AS232:AT232,\"Yes\")>=1),\"-\",IF(AND('Enrollment Form'!C232=\"Enroll\",COUNTIF('Enrollment Form'!AS232:AT232,\"No\")=2,'Enrollment Form'!AU232=\"\"),\"N\",\"Y\")))","v":""},{"$f":"IF(OR(B225=\"N\",'Enrollment Form'!B232<>\"Subscriber\",'Enrollment Form'!C232=\"ROC\",'Enrollment Form'!O232<>\"Multiple of Salary\"),\"-\",IF(COUNTA('Enrollment Form'!T232:U232)<2,\"N\",\"Y\"))","v":"-"},{"$f":"IF(B225=\"N\",\"\",IF(OR('Enrollment Form'!C232=\"ROC\",'Enrollment Form'!B232<>\"Subscriber\",'Enrollment Form'!O232=\"Waive\",'Enrollment Form'!O232=\"\"),\"-\",IF('Enrollment Form'!P232=\"\",\"N\",\"Y\")))","v":""},{"$f":"IF($B225=\"N\",\"\",IF(AND('Enrollment Form'!$C232=\"ROC\",'Enrollment Form'!$DS232<>\"\"),\"Y\",IF(AND('Enrollment Form'!$C232=\"ROC\",'Enrollment Form'!$DS232=\"\"),\"N\",IF(AND('Enrollment Form'!$C232=\"Enroll\",'Enrollment Form'!$B232=\"Subscriber\",'Enrollment Form'!$CQ232=\"No\",'Enrollment Form'!$DS232=\"\"),\"N\",IF(AND('Enrollment Form'!$C232=\"Enroll\",'Enrollment Form'!$B232=\"Subscriber\",'Enrollment Form'!$CQ232=\"Yes\"),\"-\",\"Y\")))))","v":""},{"$f":"IF($B225=\"N\",\"\",IF(AND('Enrollment Form'!$C232=\"ROC\",'Enrollment Form'!$DT232<>\"\"),\"Y\",IF(AND('Enrollment Form'!$C232=\"ROC\",'Enrollment Form'!$DT232=\"\"),\"N\",IF(AND('Enrollment Form'!$C232=\"Enroll\",'Enrollment Form'!$B232=\"Subscriber\",'Enrollment Form'!$CQ232=\"No\",'Enrollment Form'!$DT232=\"\"),\"N\",IF(AND('Enrollment Form'!$C232=\"Enroll\",'Enrollment Form'!$B232=\"Subscriber\",'Enrollment Form'!$CQ232=\"Yes\"),\"-\",\"Y\")))))","v":""},{"$f":"IF('Enrollment Form'!AH232=\"\",\"\",IF(ISERROR(SEARCH(\".\",'Enrollment Form'!AH232,SEARCH(\"@\",'Enrollment Form'!AH232))),\"N\",\"Y\"))","v":""},{"$f":"IF(OR($B225=\"N\",'Enrollment Form'!$G232=\"\"),\"\",IF('Enrollment Form'!$B232<>\"Subscriber\",\"-\",IF(COUNTIF('Enrollment Form'!$AS232:$AT232,\"Yes\")=2,\"N\",\"Y\")))","v":""},{"$f":"IF(OR('Enrollment Form'!$CC232=\"\",'Enrollment Form'!$CC232=\"No\"),\"-\",IF(AND('Enrollment Form'!$CC232=\"Yes\",'Enrollment Form'!$CD232=\"\"),\"N\",\"Y\"))","v":"-"},{"$f":"IF(OR('Enrollment Form'!$CE232=\"\",'Enrollment Form'!$CE232=\"No\"),\"-\",IF(AND('Enrollment Form'!$CE232=\"Yes\",'Enrollment Form'!$CF232=\"\"),\"N\",\"Y\"))","v":"-"},{"$f":"IF(OR('Enrollment Form'!$CG232=\"\",'Enrollment Form'!$CG232=\"No\"),\"-\",IF(AND('Enrollment Form'!$CG232=\"Yes\",'Enrollment Form'!$CH232=\"\"),\"N\",\"Y\"))","v":"-"},{"$f":"IF(OR('Enrollment Form'!$CG232=\"\",'Enrollment Form'!$CG232=\"No\"),\"-\",IF(AND('Enrollment Form'!$CG232=\"Yes\",'Enrollment Form'!$CI232=\"\"),\"N\",\"Y\"))","v":"-"},{"$f":"IF('Enrollment Form'!B232<>\"Subscriber\",\"-\",IF(AND('Enrollment Form'!B232=\"Subscriber\",'Enrollment Form'!C232=\"Enroll\",'Enrollment Form'!AA232=\"\"),\"N\",\"Y\"))","v":"-"},{"$f":"IF(OR('Enrollment Form'!B232=\"Subscriber\",'Enrollment Form'!B232=\"\"),\"-\",IF('Enrollment Form'!BI232=\"\",\"N\",\"Y\"))","v":"-"},{"$f":"IF('Enrollment Form'!B232<>\"Subscriber\",\"-\",IF(AND('Enrollment Form'!B232=\"Subscriber\",'Enrollment Form'!G232=\"\"),\"N\",\"Y\"))","v":"-"},{"$f":"IF('Enrollment Form'!A232=\"\",\"\",IF('Enrollment Form'!B232=\"Subscriber\",\"-\",IF(AND('Enrollment Form'!B232<>\"Subscriber\",'Enrollment Form'!G232='Enrollment Form'!H232),\"N\",\"Y\")))","v":""},0]
[233,{"$f":"IF('Enrollment Form'!$A233<>\"\",\"Y\",\"N\")","v":"N"},{"$f":"IF(AND('Enrollment Form'!$B233=\"\",'Enrollment Form'!$C233<>\"\"),\"N\",IF($B226=\"N\",\"\",\"Y\"))","v":""},{"$f":"IF(OR($B226=\"N\",'Enrollment Form'!G233=\"\"),\"\",IF('Enrollment Form'!$B233<>\"Subscriber\",\"\",IF('Enrollment Form'!$G233='Enrollment Form'!$H233,\"Y\",\"N\")))","v":""},{"$f":"IF($B226=\"N\",\"\",IF(AND(COUNTIFS('Enrollment Form'!$H$11:$H$1000,'Enrollment Form'!$H233,'Enrollment Form'!$B$11:$B$1000,'Enrollment Form'!$B233)>1,'Enrollment Form'!$H233<>\"\"),\"N\",\"Y\"))","v":""},{"$f":"IF($B226=\"N\",\"\",IF(LEN('Enrollment Form'!$Y233)=0,\"\",IF(LEN('Enrollment Form'!$Y233)<>5,\"N\",\"Y\")))","v":""},{"$f":"IF($B226=\"N\",\"\",IF(LEN('Enrollment Form'!$AD233=0),\"\",IF(LEN('Enrollment Form'!$AD233)<>5,\"N\",\"Y\")))","v":""},{"$f":"IF($B226=\"N\",\"\",IF(LEN('Enrollment Form'!$BL233=0),\"\",IF(LEN('Enrollment Form'!$BL233)<>5,\"N\",\"Y\")))","v":""},{"$f":"IF($B226=\"N\",\"\",IF(LEN('Enrollment Form'!$AE233)=0,\"\",IF(LEN('Enrollment Form'!$AE233)<>10,\"N\",\"Y\")))","v":""},{"$f":"IF($B226=\"N\",\"\",IF(LEN('Enrollment Form'!$AF233)=0,\"\",IF(LEN('Enrollment Form'!$AF233)<>10,\"N\",\"Y\")))","v":""},{"$f":"IF('Enrollment Form'!$O233<>\"Graded\",\"-\",IF(AND('Enrollment Form'!$O233=\"Graded\",'Enrollment Form'!$AO233<>\"\"),\"Y\",\"N\"))","v":"-"},{"$f":"IF($B226=\"N\",\"\",IF(OR('Enrollment Form'!$B233<>\"Subscriber\",'Enrollment Form'!$C233=\"ROC\"),\"-\",IF(AND('Enrollment Form'!$B233=\"Subscriber\",'Enrollment Form'!$C233=\"Enroll\",'Enrollment Form'!$AJ233<>\"\"),\"Y\",\"N\")))","v":""},{"$f":"IF($B226=\"N\",\"\",IF(OR('Enrollment Form'!$B233<>\"Subscriber\",'Enrollment Form'!$C233=\"ROC\"),\"-\",IF(AND('Enrollment Form'!$B233=\"Subscriber\",'Enrollment Form'!$C233=\"Enroll\",'Enrollment Form'!$AK233<>\"\"),\"Y\",\"N\")))","v":""},{"$f":"IF($B226=\"N\",\"\",IF(OR('Enrollment Form'!$B233<>\"Subscriber\",'Enrollment Form'!$C233=\"ROC\"),\"-\",IF(AND('Enrollment Form'!$B233=\"Subscriber\",'Enrollment Form'!$C233=\"Enroll\",'Enrollment Form'!$AL233<>\"\"),\"Y\",\"N\")))","v":""},{"$f":"IF($B226=\"N\",\"\",IF(OR('Enrollment Form'!$B233<>\"Subscriber\",'Enrollment Form'!$C233=\"ROC\"),\"-\",IF(AND('Enrollment Form'!$B233=\"Subscriber\",'Enrollment Form'!$C233=\"Enroll\",'Enrollment Form'!$AM233<>\"\"),\"Y\",\"N\")))","v":""},{"$f":"IF($B226=\"N\",\"\",IF(OR('Enrollment Form'!$B233<>\"Subscriber\",'Enrollment Form'!$C233=\"ROC\"),\"-\",IF(AND('Enrollment Form'!$B233=\"Subscriber\",'Enrollment Form'!$C233=\"Enroll\",'Enrollment Form'!$AN233<>\"\"),\"Y\",\"N\")))","v":""},{"$f":"IF($B226=\"N\",\"\",IF(OR('Enrollment Form'!$B233<>\"Subscriber\",'Enrollment Form'!$C233=\"ROC\"),\"-\",IF(AND('Enrollment Form'!$B233=\"Subscriber\",'Enrollment Form'!$C233=\"Enroll\",'Enrollment Form'!$AP233<>\"\"),\"Y\",\"N\")))","v":""},{"$f":"IF($B226=\"N\",\"\",IF($Q226=\"-\",\"-\",IF(AND($Q226=\"Y\",'Enrollment Form'!$AP233=\"No\"),\"-\",IF(AND($Q226=\"Y\",'Enrollment Form'!$AP233=\"Yes\",'Enrollment Form'!$AQ233<>\"\"),\"Y\",\"N\"))))","v":""},{"$f":"IF($B226=\"N\",\"\",IF(OR('Enrollment Form'!$B233<>\"Subscriber\",'Enrollment Form'!$C233=\"ROC\"),\"-\",IF(AND('Enrollment Form'!$B233=\"Subscriber\",'Enrollment Form'!$C233=\"Enroll\",'Enrollment Form'!$CO233<>\"\"),\"Y\",\"N\")))","v":""},{"$f":"IF($B226=\"N\",\"\",IF($S226=\"-\",\"-\",IF(AND($S226=\"Y\",'Enrollment Form'!$CO233=\"No\"),\"-\",IF(AND($S226=\"Y\",'Enrollment Form'!$CO233=\"Yes\",'Enrollment Form'!$CP233<>\"\"),\"Y\",\"N\"))))","v":""},{"$f":"IF(OR('Enrollment Form'!$AV233=\"Yes\",'Enrollment Form'!$AV233=\"\"),\"-\",IF(AND('Enrollment Form'!$AV233=\"No\",ISERROR(FIND(\"HMO\",VLOOKUP('Enrollment Form'!G233,'Enrollment Form'!H$11:J$1000,3,FALSE),1))=FALSE,COUNTA('Enrollment Form'!$AW233:$AZ233)=4),\"Y\",\"N\"))","v":"-"},{"$f":"IF($B226=\"N\",\"\",IF('Enrollment Form'!$B233=\"Subscriber\",\"-\",IF(COUNTA('Enrollment Form'!$BE233,'Enrollment Form'!$BG233)=2,\"Y\",\"N\")))","v":""},{"$f":"IF($B226=\"N\",\"\",IF(OR('Enrollment Form'!$AU233=\"\",'Enrollment Form'!$AU233=\"No\"),\"-\",IF(AND('Enrollment Form'!$AU233=\"Yes\",COUNTA('Enrollment Form'!$CK233)=1),\"Y\",\"N\")))","v":""},{"$f":"IF(OR('Enrollment Form'!$CK233=\"\",'Enrollment Form'!$CK233=\"No\"),\"-\",IF(COUNTA('Enrollment Form'!$CM233:$CN233)=2,\"Y\",\"N\"))","v":"-"},{"$f":"IF($B226=\"N\",\"\",IF(COUNTIF('Enrollment Form'!$CZ233:$DO233,\"Other\")=COUNTA('Enrollment Form'!$DF233,'Enrollment Form'!$DA233,'Enrollment Form'!$DK233,'Enrollment Form'!$DP233),\"Y\",\"N\"))","v":""},{"$f":"IF($B226=\"N\",\"\",IF(OR('Enrollment Form'!B233<>\"Subscriber\",'Enrollment Form'!C233=\"ROC\",COUNTIF('Enrollment Form'!AS233:AT233,\"Yes\")>=1),\"-\",IF(AND('Enrollment Form'!C233=\"Enroll\",COUNTIF('Enrollment Form'!AS233:AT233,\"No\")=2,'Enrollment Form'!AU233=\"\"),\"N\",\"Y\")))","v":""},{"$f":"IF(OR(B226=\"N\",'Enrollment Form'!B233<>\"Subscriber\",'Enrollment Form'!C233=\"ROC\",'Enrollment Form'!O233<>\"Multiple of Salary\"),\"-\",IF(COUNTA('Enrollment Form'!T233:U233)<2,\"N\",\"Y\"))","v":"-"},{"$f":"IF(B226=\"N\",\"\",IF(OR('Enrollment Form'!C233=\"ROC\",'Enrollment Form'!B233<>\"Subscriber\",'Enrollment Form'!O233=\"Waive\",'Enrollment Form'!O233=\"\"),\"-\",IF('Enrollment Form'!P233=\"\",\"N\",\"Y\")))","v":""},{"$f":"IF($B226=\"N\",\"\",IF(AND('Enrollment Form'!$C233=\"ROC\",'Enrollment Form'!$DS233<>\"\"),\"Y\",IF(AND('Enrollment Form'!$C233=\"ROC\",'Enrollment Form'!$DS233=\"\"),\"N\",IF(AND('Enrollment Form'!$C233=\"Enroll\",'Enrollment Form'!$B233=\"Subscriber\",'Enrollment Form'!$CQ233=\"No\",'Enrollment Form'!$DS233=\"\"),\"N\",IF(AND('Enrollment Form'!$C233=\"Enroll\",'Enrollment Form'!$B233=\"Subscriber\",'Enrollment Form'!$CQ233=\"Yes\"),\"-\",\"Y\")))))","v":""},{"$f":"IF($B226=\"N\",\"\",IF(AND('Enrollment Form'!$C233=\"ROC\",'Enrollment Form'!$DT233<>\"\"),\"Y\",IF(AND('Enrollment Form'!$C233=\"ROC\",'Enrollment Form'!$DT233=\"\"),\"N\",IF(AND('Enrollment Form'!$C233=\"Enroll\",'Enrollment Form'!$B233=\"Subscriber\",'Enrollment Form'!$CQ233=\"No\",'Enrollment Form'!$DT233=\"\"),\"N\",IF(AND('Enrollment Form'!$C233=\"Enroll\",'Enrollment Form'!$B233=\"Subscriber\",'Enrollment Form'!$CQ233=\"Yes\"),\"-\",\"Y\")))))","v":""},{"$f":"IF('Enrollment Form'!AH233=\"\",\"\",IF(ISERROR(SEARCH(\".\",'Enrollment Form'!AH233,SEARCH(\"@\",'Enrollment Form'!AH233))),\"N\",\"Y\"))","v":""},{"$f":"IF(OR($B226=\"N\",'Enrollment Form'!$G233=\"\"),\"\",IF('Enrollment Form'!$B233<>\"Subscriber\",\"-\",IF(COUNTIF('Enrollment Form'!$AS233:$AT233,\"Yes\")=2,\"N\",\"Y\")))","v":""},{"$f":"IF(OR('Enrollment Form'!$CC233=\"\",'Enrollment Form'!$CC233=\"No\"),\"-\",IF(AND('Enrollment Form'!$CC233=\"Yes\",'Enrollment Form'!$CD233=\"\"),\"N\",\"Y\"))","v":"-"},{"$f":"IF(OR('Enrollment Form'!$CE233=\"\",'Enrollment Form'!$CE233=\"No\"),\"-\",IF(AND('Enrollment Form'!$CE233=\"Yes\",'Enrollment Form'!$CF233=\"\"),\"N\",\"Y\"))","v":"-"},{"$f":"IF(OR('Enrollment Form'!$CG233=\"\",'Enrollment Form'!$CG233=\"No\"),\"-\",IF(AND('Enrollment Form'!$CG233=\"Yes\",'Enrollment Form'!$CH233=\"\"),\"N\",\"Y\"))","v":"-"},{"$f":"IF(OR('Enrollment Form'!$CG233=\"\",'Enrollment Form'!$CG233=\"No\"),\"-\",IF(AND('Enrollment Form'!$CG233=\"Yes\",'Enrollment Form'!$CI233=\"\"),\"N\",\"Y\"))","v":"-"},{"$f":"IF('Enrollment Form'!B233<>\"Subscriber\",\"-\",IF(AND('Enrollment Form'!B233=\"Subscriber\",'Enrollment Form'!C233=\"Enroll\",'Enrollment Form'!AA233=\"\"),\"N\",\"Y\"))","v":"-"},{"$f":"IF(OR('Enrollment Form'!B233=\"Subscriber\",'Enrollment Form'!B233=\"\"),\"-\",IF('Enrollment Form'!BI233=\"\",\"N\",\"Y\"))","v":"-"},{"$f":"IF('Enrollment Form'!B233<>\"Subscriber\",\"-\",IF(AND('Enrollment Form'!B233=\"Subscriber\",'Enrollment Form'!G233=\"\"),\"N\",\"Y\"))","v":"-"},{"$f":"IF('Enrollment Form'!A233=\"\",\"\",IF('Enrollment Form'!B233=\"Subscriber\",\"-\",IF(AND('Enrollment Form'!B233<>\"Subscriber\",'Enrollment Form'!G233='Enrollment Form'!H233),\"N\",\"Y\")))","v":""},0]
[234,{"$f":"IF('Enrollment Form'!$A234<>\"\",\"Y\",\"N\")","v":"N"},{"$f":"IF(AND('Enrollment Form'!$B234=\"\",'Enrollment Form'!$C234<>\"\"),\"N\",IF($B227=\"N\",\"\",\"Y\"))","v":""},{"$f":"IF(OR($B227=\"N\",'Enrollment Form'!G234=\"\"),\"\",IF('Enrollment Form'!$B234<>\"Subscriber\",\"\",IF('Enrollment Form'!$G234='Enrollment Form'!$H234,\"Y\",\"N\")))","v":""},{"$f":"IF($B227=\"N\",\"\",IF(AND(COUNTIFS('Enrollment Form'!$H$11:$H$1000,'Enrollment Form'!$H234,'Enrollment Form'!$B$11:$B$1000,'Enrollment Form'!$B234)>1,'Enrollment Form'!$H234<>\"\"),\"N\",\"Y\"))","v":""},{"$f":"IF($B227=\"N\",\"\",IF(LEN('Enrollment Form'!$Y234)=0,\"\",IF(LEN('Enrollment Form'!$Y234)<>5,\"N\",\"Y\")))","v":""},{"$f":"IF($B227=\"N\",\"\",IF(LEN('Enrollment Form'!$AD234=0),\"\",IF(LEN('Enrollment Form'!$AD234)<>5,\"N\",\"Y\")))","v":""},{"$f":"IF($B227=\"N\",\"\",IF(LEN('Enrollment Form'!$BL234=0),\"\",IF(LEN('Enrollment Form'!$BL234)<>5,\"N\",\"Y\")))","v":""},{"$f":"IF($B227=\"N\",\"\",IF(LEN('Enrollment Form'!$AE234)=0,\"\",IF(LEN('Enrollment Form'!$AE234)<>10,\"N\",\"Y\")))","v":""},{"$f":"IF($B227=\"N\",\"\",IF(LEN('Enrollment Form'!$AF234)=0,\"\",IF(LEN('Enrollment Form'!$AF234)<>10,\"N\",\"Y\")))","v":""},{"$f":"IF('Enrollment Form'!$O234<>\"Graded\",\"-\",IF(AND('Enrollment Form'!$O234=\"Graded\",'Enrollment Form'!$AO234<>\"\"),\"Y\",\"N\"))","v":"-"},{"$f":"IF($B227=\"N\",\"\",IF(OR('Enrollment Form'!$B234<>\"Subscriber\",'Enrollment Form'!$C234=\"ROC\"),\"-\",IF(AND('Enrollment Form'!$B234=\"Subscriber\",'Enrollment Form'!$C234=\"Enroll\",'Enrollment Form'!$AJ234<>\"\"),\"Y\",\"N\")))","v":""},{"$f":"IF($B227=\"N\",\"\",IF(OR('Enrollment Form'!$B234<>\"Subscriber\",'Enrollment Form'!$C234=\"ROC\"),\"-\",IF(AND('Enrollment Form'!$B234=\"Subscriber\",'Enrollment Form'!$C234=\"Enroll\",'Enrollment Form'!$AK234<>\"\"),\"Y\",\"N\")))","v":""},{"$f":"IF($B227=\"N\",\"\",IF(OR('Enrollment Form'!$B234<>\"Subscriber\",'Enrollment Form'!$C234=\"ROC\"),\"-\",IF(AND('Enrollment Form'!$B234=\"Subscriber\",'Enrollment Form'!$C234=\"Enroll\",'Enrollment Form'!$AL234<>\"\"),\"Y\",\"N\")))","v":""},{"$f":"IF($B227=\"N\",\"\",IF(OR('Enrollment Form'!$B234<>\"Subscriber\",'Enrollment Form'!$C234=\"ROC\"),\"-\",IF(AND('Enrollment Form'!$B234=\"Subscriber\",'Enrollment Form'!$C234=\"Enroll\",'Enrollment Form'!$AM234<>\"\"),\"Y\",\"N\")))","v":""},{"$f":"IF($B227=\"N\",\"\",IF(OR('Enrollment Form'!$B234<>\"Subscriber\",'Enrollment Form'!$C234=\"ROC\"),\"-\",IF(AND('Enrollment Form'!$B234=\"Subscriber\",'Enrollment Form'!$C234=\"Enroll\",'Enrollment Form'!$AN234<>\"\"),\"Y\",\"N\")))","v":""},{"$f":"IF($B227=\"N\",\"\",IF(OR('Enrollment Form'!$B234<>\"Subscriber\",'Enrollment Form'!$C234=\"ROC\"),\"-\",IF(AND('Enrollment Form'!$B234=\"Subscriber\",'Enrollment Form'!$C234=\"Enroll\",'Enrollment Form'!$AP234<>\"\"),\"Y\",\"N\")))","v":""},{"$f":"IF($B227=\"N\",\"\",IF($Q227=\"-\",\"-\",IF(AND($Q227=\"Y\",'Enrollment Form'!$AP234=\"No\"),\"-\",IF(AND($Q227=\"Y\",'Enrollment Form'!$AP234=\"Yes\",'Enrollment Form'!$AQ234<>\"\"),\"Y\",\"N\"))))","v":""},{"$f":"IF($B227=\"N\",\"\",IF(OR('Enrollment Form'!$B234<>\"Subscriber\",'Enrollment Form'!$C234=\"ROC\"),\"-\",IF(AND('Enrollment Form'!$B234=\"Subscriber\",'Enrollment Form'!$C234=\"Enroll\",'Enrollment Form'!$CO234<>\"\"),\"Y\",\"N\")))","v":""},{"$f":"IF($B227=\"N\",\"\",IF($S227=\"-\",\"-\",IF(AND($S227=\"Y\",'Enrollment Form'!$CO234=\"No\"),\"-\",IF(AND($S227=\"Y\",'Enrollment Form'!$CO234=\"Yes\",'Enrollment Form'!$CP234<>\"\"),\"Y\",\"N\"))))","v":""},{"$f":"IF(OR('Enrollment Form'!$AV234=\"Yes\",'Enrollment Form'!$AV234=\"\"),\"-\",IF(AND('Enrollment Form'!$AV234=\"No\",ISERROR(FIND(\"HMO\",VLOOKUP('Enrollment Form'!G234,'Enrollment Form'!H$11:J$1000,3,FALSE),1))=FALSE,COUNTA('Enrollment Form'!$AW234:$AZ234)=4),\"Y\",\"N\"))","v":"-"},{"$f":"IF($B227=\"N\",\"\",IF('Enrollment Form'!$B234=\"Subscriber\",\"-\",IF(COUNTA('Enrollment Form'!$BE234,'Enrollment Form'!$BG234)=2,\"Y\",\"N\")))","v":""},{"$f":"IF($B227=\"N\",\"\",IF(OR('Enrollment Form'!$AU234=\"\",'Enrollment Form'!$AU234=\"No\"),\"-\",IF(AND('Enrollment Form'!$AU234=\"Yes\",COUNTA('Enrollment Form'!$CK234)=1),\"Y\",\"N\")))","v":""},{"$f":"IF(OR('Enrollment Form'!$CK234=\"\",'Enrollment Form'!$CK234=\"No\"),\"-\",IF(COUNTA('Enrollment Form'!$CM234:$CN234)=2,\"Y\",\"N\"))","v":"-"},{"$f":"IF($B227=\"N\",\"\",IF(COUNTIF('Enrollment Form'!$CZ234:$DO234,\"Other\")=COUNTA('Enrollment Form'!$DF234,'Enrollment Form'!$DA234,'Enrollment Form'!$DK234,'Enrollment Form'!$DP234),\"Y\",\"N\"))","v":""},{"$f":"IF($B227=\"N\",\"\",IF(OR('Enrollment Form'!B234<>\"Subscriber\",'Enrollment Form'!C234=\"ROC\",COUNTIF('Enrollment Form'!AS234:AT234,\"Yes\")>=1),\"-\",IF(AND('Enrollment Form'!C234=\"Enroll\",COUNTIF('Enrollment Form'!AS234:AT234,\"No\")=2,'Enrollment Form'!AU234=\"\"),\"N\",\"Y\")))","v":""},{"$f":"IF(OR(B227=\"N\",'Enrollment Form'!B234<>\"Subscriber\",'Enrollment Form'!C234=\"ROC\",'Enrollment Form'!O234<>\"Multiple of Salary\"),\"-\",IF(COUNTA('Enrollment Form'!T234:U234)<2,\"N\",\"Y\"))","v":"-"},{"$f":"IF(B227=\"N\",\"\",IF(OR('Enrollment Form'!C234=\"ROC\",'Enrollment Form'!B234<>\"Subscriber\",'Enrollment Form'!O234=\"Waive\",'Enrollment Form'!O234=\"\"),\"-\",IF('Enrollment Form'!P234=\"\",\"N\",\"Y\")))","v":""},{"$f":"IF($B227=\"N\",\"\",IF(AND('Enrollment Form'!$C234=\"ROC\",'Enrollment Form'!$DS234<>\"\"),\"Y\",IF(AND('Enrollment Form'!$C234=\"ROC\",'Enrollment Form'!$DS234=\"\"),\"N\",IF(AND('Enrollment Form'!$C234=\"Enroll\",'Enrollment Form'!$B234=\"Subscriber\",'Enrollment Form'!$CQ234=\"No\",'Enrollment Form'!$DS234=\"\"),\"N\",IF(AND('Enrollment Form'!$C234=\"Enroll\",'Enrollment Form'!$B234=\"Subscriber\",'Enrollment Form'!$CQ234=\"Yes\"),\"-\",\"Y\")))))","v":""},{"$f":"IF($B227=\"N\",\"\",IF(AND('Enrollment Form'!$C234=\"ROC\",'Enrollment Form'!$DT234<>\"\"),\"Y\",IF(AND('Enrollment Form'!$C234=\"ROC\",'Enrollment Form'!$DT234=\"\"),\"N\",IF(AND('Enrollment Form'!$C234=\"Enroll\",'Enrollment Form'!$B234=\"Subscriber\",'Enrollment Form'!$CQ234=\"No\",'Enrollment Form'!$DT234=\"\"),\"N\",IF(AND('Enrollment Form'!$C234=\"Enroll\",'Enrollment Form'!$B234=\"Subscriber\",'Enrollment Form'!$CQ234=\"Yes\"),\"-\",\"Y\")))))","v":""},{"$f":"IF('Enrollment Form'!AH234=\"\",\"\",IF(ISERROR(SEARCH(\".\",'Enrollment Form'!AH234,SEARCH(\"@\",'Enrollment Form'!AH234))),\"N\",\"Y\"))","v":""},{"$f":"IF(OR($B227=\"N\",'Enrollment Form'!$G234=\"\"),\"\",IF('Enrollment Form'!$B234<>\"Subscriber\",\"-\",IF(COUNTIF('Enrollment Form'!$AS234:$AT234,\"Yes\")=2,\"N\",\"Y\")))","v":""},{"$f":"IF(OR('Enrollment Form'!$CC234=\"\",'Enrollment Form'!$CC234=\"No\"),\"-\",IF(AND('Enrollment Form'!$CC234=\"Yes\",'Enrollment Form'!$CD234=\"\"),\"N\",\"Y\"))","v":"-"},{"$f":"IF(OR('Enrollment Form'!$CE234=\"\",'Enrollment Form'!$CE234=\"No\"),\"-\",IF(AND('Enrollment Form'!$CE234=\"Yes\",'Enrollment Form'!$CF234=\"\"),\"N\",\"Y\"))","v":"-"},{"$f":"IF(OR('Enrollment Form'!$CG234=\"\",'Enrollment Form'!$CG234=\"No\"),\"-\",IF(AND('Enrollment Form'!$CG234=\"Yes\",'Enrollment Form'!$CH234=\"\"),\"N\",\"Y\"))","v":"-"},{"$f":"IF(OR('Enrollment Form'!$CG234=\"\",'Enrollment Form'!$CG234=\"No\"),\"-\",IF(AND('Enrollment Form'!$CG234=\"Yes\",'Enrollment Form'!$CI234=\"\"),\"N\",\"Y\"))","v":"-"},{"$f":"IF('Enrollment Form'!B234<>\"Subscriber\",\"-\",IF(AND('Enrollment Form'!B234=\"Subscriber\",'Enrollment Form'!C234=\"Enroll\",'Enrollment Form'!AA234=\"\"),\"N\",\"Y\"))","v":"-"},{"$f":"IF(OR('Enrollment Form'!B234=\"Subscriber\",'Enrollment Form'!B234=\"\"),\"-\",IF('Enrollment Form'!BI234=\"\",\"N\",\"Y\"))","v":"-"},{"$f":"IF('Enrollment Form'!B234<>\"Subscriber\",\"-\",IF(AND('Enrollment Form'!B234=\"Subscriber\",'Enrollment Form'!G234=\"\"),\"N\",\"Y\"))","v":"-"},{"$f":"IF('Enrollment Form'!A234=\"\",\"\",IF('Enrollment Form'!B234=\"Subscriber\",\"-\",IF(AND('Enrollment Form'!B234<>\"Subscriber\",'Enrollment Form'!G234='Enrollment Form'!H234),\"N\",\"Y\")))","v":""},0]
[235,{"$f":"IF('Enrollment Form'!$A235<>\"\",\"Y\",\"N\")","v":"N"},{"$f":"IF(AND('Enrollment Form'!$B235=\"\",'Enrollment Form'!$C235<>\"\"),\"N\",IF($B228=\"N\",\"\",\"Y\"))","v":""},{"$f":"IF(OR($B228=\"N\",'Enrollment Form'!G235=\"\"),\"\",IF('Enrollment Form'!$B235<>\"Subscriber\",\"\",IF('Enrollment Form'!$G235='Enrollment Form'!$H235,\"Y\",\"N\")))","v":""},{"$f":"IF($B228=\"N\",\"\",IF(AND(COUNTIFS('Enrollment Form'!$H$11:$H$1000,'Enrollment Form'!$H235,'Enrollment Form'!$B$11:$B$1000,'Enrollment Form'!$B235)>1,'Enrollment Form'!$H235<>\"\"),\"N\",\"Y\"))","v":""},{"$f":"IF($B228=\"N\",\"\",IF(LEN('Enrollment Form'!$Y235)=0,\"\",IF(LEN('Enrollment Form'!$Y235)<>5,\"N\",\"Y\")))","v":""},{"$f":"IF($B228=\"N\",\"\",IF(LEN('Enrollment Form'!$AD235=0),\"\",IF(LEN('Enrollment Form'!$AD235)<>5,\"N\",\"Y\")))","v":""},{"$f":"IF($B228=\"N\",\"\",IF(LEN('Enrollment Form'!$BL235=0),\"\",IF(LEN('Enrollment Form'!$BL235)<>5,\"N\",\"Y\")))","v":""},{"$f":"IF($B228=\"N\",\"\",IF(LEN('Enrollment Form'!$AE235)=0,\"\",IF(LEN('Enrollment Form'!$AE235)<>10,\"N\",\"Y\")))","v":""},{"$f":"IF($B228=\"N\",\"\",IF(LEN('Enrollment Form'!$AF235)=0,\"\",IF(LEN('Enrollment Form'!$AF235)<>10,\"N\",\"Y\")))","v":""},{"$f":"IF('Enrollment Form'!$O235<>\"Graded\",\"-\",IF(AND('Enrollment Form'!$O235=\"Graded\",'Enrollment Form'!$AO235<>\"\"),\"Y\",\"N\"))","v":"-"},{"$f":"IF($B228=\"N\",\"\",IF(OR('Enrollment Form'!$B235<>\"Subscriber\",'Enrollment Form'!$C235=\"ROC\"),\"-\",IF(AND('Enrollment Form'!$B235=\"Subscriber\",'Enrollment Form'!$C235=\"Enroll\",'Enrollment Form'!$AJ235<>\"\"),\"Y\",\"N\")))","v":""},{"$f":"IF($B228=\"N\",\"\",IF(OR('Enrollment Form'!$B235<>\"Subscriber\",'Enrollment Form'!$C235=\"ROC\"),\"-\",IF(AND('Enrollment Form'!$B235=\"Subscriber\",'Enrollment Form'!$C235=\"Enroll\",'Enrollment Form'!$AK235<>\"\"),\"Y\",\"N\")))","v":""},{"$f":"IF($B228=\"N\",\"\",IF(OR('Enrollment Form'!$B235<>\"Subscriber\",'Enrollment Form'!$C235=\"ROC\"),\"-\",IF(AND('Enrollment Form'!$B235=\"Subscriber\",'Enrollment Form'!$C235=\"Enroll\",'Enrollment Form'!$AL235<>\"\"),\"Y\",\"N\")))","v":""},{"$f":"IF($B228=\"N\",\"\",IF(OR('Enrollment Form'!$B235<>\"Subscriber\",'Enrollment Form'!$C235=\"ROC\"),\"-\",IF(AND('Enrollment Form'!$B235=\"Subscriber\",'Enrollment Form'!$C235=\"Enroll\",'Enrollment Form'!$AM235<>\"\"),\"Y\",\"N\")))","v":""},{"$f":"IF($B228=\"N\",\"\",IF(OR('Enrollment Form'!$B235<>\"Subscriber\",'Enrollment Form'!$C235=\"ROC\"),\"-\",IF(AND('Enrollment Form'!$B235=\"Subscriber\",'Enrollment Form'!$C235=\"Enroll\",'Enrollment Form'!$AN235<>\"\"),\"Y\",\"N\")))","v":""},{"$f":"IF($B228=\"N\",\"\",IF(OR('Enrollment Form'!$B235<>\"Subscriber\",'Enrollment Form'!$C235=\"ROC\"),\"-\",IF(AND('Enrollment Form'!$B235=\"Subscriber\",'Enrollment Form'!$C235=\"Enroll\",'Enrollment Form'!$AP235<>\"\"),\"Y\",\"N\")))","v":""},{"$f":"IF($B228=\"N\",\"\",IF($Q228=\"-\",\"-\",IF(AND($Q228=\"Y\",'Enrollment Form'!$AP235=\"No\"),\"-\",IF(AND($Q228=\"Y\",'Enrollment Form'!$AP235=\"Yes\",'Enrollment Form'!$AQ235<>\"\"),\"Y\",\"N\"))))","v":""},{"$f":"IF($B228=\"N\",\"\",IF(OR('Enrollment Form'!$B235<>\"Subscriber\",'Enrollment Form'!$C235=\"ROC\"),\"-\",IF(AND('Enrollment Form'!$B235=\"Subscriber\",'Enrollment Form'!$C235=\"Enroll\",'Enrollment Form'!$CO235<>\"\"),\"Y\",\"N\")))","v":""},{"$f":"IF($B228=\"N\",\"\",IF($S228=\"-\",\"-\",IF(AND($S228=\"Y\",'Enrollment Form'!$CO235=\"No\"),\"-\",IF(AND($S228=\"Y\",'Enrollment Form'!$CO235=\"Yes\",'Enrollment Form'!$CP235<>\"\"),\"Y\",\"N\"))))","v":""},{"$f":"IF(OR('Enrollment Form'!$AV235=\"Yes\",'Enrollment Form'!$AV235=\"\"),\"-\",IF(AND('Enrollment Form'!$AV235=\"No\",ISERROR(FIND(\"HMO\",VLOOKUP('Enrollment Form'!G235,'Enrollment Form'!H$11:J$1000,3,FALSE),1))=FALSE,COUNTA('Enrollment Form'!$AW235:$AZ235)=4),\"Y\",\"N\"))","v":"-"},{"$f":"IF($B228=\"N\",\"\",IF('Enrollment Form'!$B235=\"Subscriber\",\"-\",IF(COUNTA('Enrollment Form'!$BE235,'Enrollment Form'!$BG235)=2,\"Y\",\"N\")))","v":""},{"$f":"IF($B228=\"N\",\"\",IF(OR('Enrollment Form'!$AU235=\"\",'Enrollment Form'!$AU235=\"No\"),\"-\",IF(AND('Enrollment Form'!$AU235=\"Yes\",COUNTA('Enrollment Form'!$CK235)=1),\"Y\",\"N\")))","v":""},{"$f":"IF(OR('Enrollment Form'!$CK235=\"\",'Enrollment Form'!$CK235=\"No\"),\"-\",IF(COUNTA('Enrollment Form'!$CM235:$CN235)=2,\"Y\",\"N\"))","v":"-"},{"$f":"IF($B228=\"N\",\"\",IF(COUNTIF('Enrollment Form'!$CZ235:$DO235,\"Other\")=COUNTA('Enrollment Form'!$DF235,'Enrollment Form'!$DA235,'Enrollment Form'!$DK235,'Enrollment Form'!$DP235),\"Y\",\"N\"))","v":""},{"$f":"IF($B228=\"N\",\"\",IF(OR('Enrollment Form'!B235<>\"Subscriber\",'Enrollment Form'!C235=\"ROC\",COUNTIF('Enrollment Form'!AS235:AT235,\"Yes\")>=1),\"-\",IF(AND('Enrollment Form'!C235=\"Enroll\",COUNTIF('Enrollment Form'!AS235:AT235,\"No\")=2,'Enrollment Form'!AU235=\"\"),\"N\",\"Y\")))","v":""},{"$f":"IF(OR(B228=\"N\",'Enrollment Form'!B235<>\"Subscriber\",'Enrollment Form'!C235=\"ROC\",'Enrollment Form'!O235<>\"Multiple of Salary\"),\"-\",IF(COUNTA('Enrollment Form'!T235:U235)<2,\"N\",\"Y\"))","v":"-"},{"$f":"IF(B228=\"N\",\"\",IF(OR('Enrollment Form'!C235=\"ROC\",'Enrollment Form'!B235<>\"Subscriber\",'Enrollment Form'!O235=\"Waive\",'Enrollment Form'!O235=\"\"),\"-\",IF('Enrollment Form'!P235=\"\",\"N\",\"Y\")))","v":""},{"$f":"IF($B228=\"N\",\"\",IF(AND('Enrollment Form'!$C235=\"ROC\",'Enrollment Form'!$DS235<>\"\"),\"Y\",IF(AND('Enrollment Form'!$C235=\"ROC\",'Enrollment Form'!$DS235=\"\"),\"N\",IF(AND('Enrollment Form'!$C235=\"Enroll\",'Enrollment Form'!$B235=\"Subscriber\",'Enrollment Form'!$CQ235=\"No\",'Enrollment Form'!$DS235=\"\"),\"N\",IF(AND('Enrollment Form'!$C235=\"Enroll\",'Enrollment Form'!$B235=\"Subscriber\",'Enrollment Form'!$CQ235=\"Yes\"),\"-\",\"Y\")))))","v":""},{"$f":"IF($B228=\"N\",\"\",IF(AND('Enrollment Form'!$C235=\"ROC\",'Enrollment Form'!$DT235<>\"\"),\"Y\",IF(AND('Enrollment Form'!$C235=\"ROC\",'Enrollment Form'!$DT235=\"\"),\"N\",IF(AND('Enrollment Form'!$C235=\"Enroll\",'Enrollment Form'!$B235=\"Subscriber\",'Enrollment Form'!$CQ235=\"No\",'Enrollment Form'!$DT235=\"\"),\"N\",IF(AND('Enrollment Form'!$C235=\"Enroll\",'Enrollment Form'!$B235=\"Subscriber\",'Enrollment Form'!$CQ235=\"Yes\"),\"-\",\"Y\")))))","v":""},{"$f":"IF('Enrollment Form'!AH235=\"\",\"\",IF(ISERROR(SEARCH(\".\",'Enrollment Form'!AH235,SEARCH(\"@\",'Enrollment Form'!AH235))),\"N\",\"Y\"))","v":""},{"$f":"IF(OR($B228=\"N\",'Enrollment Form'!$G235=\"\"),\"\",IF('Enrollment Form'!$B235<>\"Subscriber\",\"-\",IF(COUNTIF('Enrollment Form'!$AS235:$AT235,\"Yes\")=2,\"N\",\"Y\")))","v":""},{"$f":"IF(OR('Enrollment Form'!$CC235=\"\",'Enrollment Form'!$CC235=\"No\"),\"-\",IF(AND('Enrollment Form'!$CC235=\"Yes\",'Enrollment Form'!$CD235=\"\"),\"N\",\"Y\"))","v":"-"},{"$f":"IF(OR('Enrollment Form'!$CE235=\"\",'Enrollment Form'!$CE235=\"No\"),\"-\",IF(AND('Enrollment Form'!$CE235=\"Yes\",'Enrollment Form'!$CF235=\"\"),\"N\",\"Y\"))","v":"-"},{"$f":"IF(OR('Enrollment Form'!$CG235=\"\",'Enrollment Form'!$CG235=\"No\"),\"-\",IF(AND('Enrollment Form'!$CG235=\"Yes\",'Enrollment Form'!$CH235=\"\"),\"N\",\"Y\"))","v":"-"},{"$f":"IF(OR('Enrollment Form'!$CG235=\"\",'Enrollment Form'!$CG235=\"No\"),\"-\",IF(AND('Enrollment Form'!$CG235=\"Yes\",'Enrollment Form'!$CI235=\"\"),\"N\",\"Y\"))","v":"-"},{"$f":"IF('Enrollment Form'!B235<>\"Subscriber\",\"-\",IF(AND('Enrollment Form'!B235=\"Subscriber\",'Enrollment Form'!C235=\"Enroll\",'Enrollment Form'!AA235=\"\"),\"N\",\"Y\"))","v":"-"},{"$f":"IF(OR('Enrollment Form'!B235=\"Subscriber\",'Enrollment Form'!B235=\"\"),\"-\",IF('Enrollment Form'!BI235=\"\",\"N\",\"Y\"))","v":"-"},{"$f":"IF('Enrollment Form'!B235<>\"Subscriber\",\"-\",IF(AND('Enrollment Form'!B235=\"Subscriber\",'Enrollment Form'!G235=\"\"),\"N\",\"Y\"))","v":"-"},{"$f":"IF('Enrollment Form'!A235=\"\",\"\",IF('Enrollment Form'!B235=\"Subscriber\",\"-\",IF(AND('Enrollment Form'!B235<>\"Subscriber\",'Enrollment Form'!G235='Enrollment Form'!H235),\"N\",\"Y\")))","v":""},0]
[236,{"$f":"IF('Enrollment Form'!$A236<>\"\",\"Y\",\"N\")","v":"N"},{"$f":"IF(AND('Enrollment Form'!$B236=\"\",'Enrollment Form'!$C236<>\"\"),\"N\",IF($B229=\"N\",\"\",\"Y\"))","v":""},{"$f":"IF(OR($B229=\"N\",'Enrollment Form'!G236=\"\"),\"\",IF('Enrollment Form'!$B236<>\"Subscriber\",\"\",IF('Enrollment Form'!$G236='Enrollment Form'!$H236,\"Y\",\"N\")))","v":""},{"$f":"IF($B229=\"N\",\"\",IF(AND(COUNTIFS('Enrollment Form'!$H$11:$H$1000,'Enrollment Form'!$H236,'Enrollment Form'!$B$11:$B$1000,'Enrollment Form'!$B236)>1,'Enrollment Form'!$H236<>\"\"),\"N\",\"Y\"))","v":""},{"$f":"IF($B229=\"N\",\"\",IF(LEN('Enrollment Form'!$Y236)=0,\"\",IF(LEN('Enrollment Form'!$Y236)<>5,\"N\",\"Y\")))","v":""},{"$f":"IF($B229=\"N\",\"\",IF(LEN('Enrollment Form'!$AD236=0),\"\",IF(LEN('Enrollment Form'!$AD236)<>5,\"N\",\"Y\")))","v":""},{"$f":"IF($B229=\"N\",\"\",IF(LEN('Enrollment Form'!$BL236=0),\"\",IF(LEN('Enrollment Form'!$BL236)<>5,\"N\",\"Y\")))","v":""},{"$f":"IF($B229=\"N\",\"\",IF(LEN('Enrollment Form'!$AE236)=0,\"\",IF(LEN('Enrollment Form'!$AE236)<>10,\"N\",\"Y\")))","v":""},{"$f":"IF($B229=\"N\",\"\",IF(LEN('Enrollment Form'!$AF236)=0,\"\",IF(LEN('Enrollment Form'!$AF236)<>10,\"N\",\"Y\")))","v":""},{"$f":"IF('Enrollment Form'!$O236<>\"Graded\",\"-\",IF(AND('Enrollment Form'!$O236=\"Graded\",'Enrollment Form'!$AO236<>\"\"),\"Y\",\"N\"))","v":"-"},{"$f":"IF($B229=\"N\",\"\",IF(OR('Enrollment Form'!$B236<>\"Subscriber\",'Enrollment Form'!$C236=\"ROC\"),\"-\",IF(AND('Enrollment Form'!$B236=\"Subscriber\",'Enrollment Form'!$C236=\"Enroll\",'Enrollment Form'!$AJ236<>\"\"),\"Y\",\"N\")))","v":""},{"$f":"IF($B229=\"N\",\"\",IF(OR('Enrollment Form'!$B236<>\"Subscriber\",'Enrollment Form'!$C236=\"ROC\"),\"-\",IF(AND('Enrollment Form'!$B236=\"Subscriber\",'Enrollment Form'!$C236=\"Enroll\",'Enrollment Form'!$AK236<>\"\"),\"Y\",\"N\")))","v":""},{"$f":"IF($B229=\"N\",\"\",IF(OR('Enrollment Form'!$B236<>\"Subscriber\",'Enrollment Form'!$C236=\"ROC\"),\"-\",IF(AND('Enrollment Form'!$B236=\"Subscriber\",'Enrollment Form'!$C236=\"Enroll\",'Enrollment Form'!$AL236<>\"\"),\"Y\",\"N\")))","v":""},{"$f":"IF($B229=\"N\",\"\",IF(OR('Enrollment Form'!$B236<>\"Subscriber\",'Enrollment Form'!$C236=\"ROC\"),\"-\",IF(AND('Enrollment Form'!$B236=\"Subscriber\",'Enrollment Form'!$C236=\"Enroll\",'Enrollment Form'!$AM236<>\"\"),\"Y\",\"N\")))","v":""},{"$f":"IF($B229=\"N\",\"\",IF(OR('Enrollment Form'!$B236<>\"Subscriber\",'Enrollment Form'!$C236=\"ROC\"),\"-\",IF(AND('Enrollment Form'!$B236=\"Subscriber\",'Enrollment Form'!$C236=\"Enroll\",'Enrollment Form'!$AN236<>\"\"),\"Y\",\"N\")))","v":""},{"$f":"IF($B229=\"N\",\"\",IF(OR('Enrollment Form'!$B236<>\"Subscriber\",'Enrollment Form'!$C236=\"ROC\"),\"-\",IF(AND('Enrollment Form'!$B236=\"Subscriber\",'Enrollment Form'!$C236=\"Enroll\",'Enrollment Form'!$AP236<>\"\"),\"Y\",\"N\")))","v":""},{"$f":"IF($B229=\"N\",\"\",IF($Q229=\"-\",\"-\",IF(AND($Q229=\"Y\",'Enrollment Form'!$AP236=\"No\"),\"-\",IF(AND($Q229=\"Y\",'Enrollment Form'!$AP236=\"Yes\",'Enrollment Form'!$AQ236<>\"\"),\"Y\",\"N\"))))","v":""},{"$f":"IF($B229=\"N\",\"\",IF(OR('Enrollment Form'!$B236<>\"Subscriber\",'Enrollment Form'!$C236=\"ROC\"),\"-\",IF(AND('Enrollment Form'!$B236=\"Subscriber\",'Enrollment Form'!$C236=\"Enroll\",'Enrollment Form'!$CO236<>\"\"),\"Y\",\"N\")))","v":""},{"$f":"IF($B229=\"N\",\"\",IF($S229=\"-\",\"-\",IF(AND($S229=\"Y\",'Enrollment Form'!$CO236=\"No\"),\"-\",IF(AND($S229=\"Y\",'Enrollment Form'!$CO236=\"Yes\",'Enrollment Form'!$CP236<>\"\"),\"Y\",\"N\"))))","v":""},{"$f":"IF(OR('Enrollment Form'!$AV236=\"Yes\",'Enrollment Form'!$AV236=\"\"),\"-\",IF(AND('Enrollment Form'!$AV236=\"No\",ISERROR(FIND(\"HMO\",VLOOKUP('Enrollment Form'!G236,'Enrollment Form'!H$11:J$1000,3,FALSE),1))=FALSE,COUNTA('Enrollment Form'!$AW236:$AZ236)=4),\"Y\",\"N\"))","v":"-"},{"$f":"IF($B229=\"N\",\"\",IF('Enrollment Form'!$B236=\"Subscriber\",\"-\",IF(COUNTA('Enrollment Form'!$BE236,'Enrollment Form'!$BG236)=2,\"Y\",\"N\")))","v":""},{"$f":"IF($B229=\"N\",\"\",IF(OR('Enrollment Form'!$AU236=\"\",'Enrollment Form'!$AU236=\"No\"),\"-\",IF(AND('Enrollment Form'!$AU236=\"Yes\",COUNTA('Enrollment Form'!$CK236)=1),\"Y\",\"N\")))","v":""},{"$f":"IF(OR('Enrollment Form'!$CK236=\"\",'Enrollment Form'!$CK236=\"No\"),\"-\",IF(COUNTA('Enrollment Form'!$CM236:$CN236)=2,\"Y\",\"N\"))","v":"-"},{"$f":"IF($B229=\"N\",\"\",IF(COUNTIF('Enrollment Form'!$CZ236:$DO236,\"Other\")=COUNTA('Enrollment Form'!$DF236,'Enrollment Form'!$DA236,'Enrollment Form'!$DK236,'Enrollment Form'!$DP236),\"Y\",\"N\"))","v":""},{"$f":"IF($B229=\"N\",\"\",IF(OR('Enrollment Form'!B236<>\"Subscriber\",'Enrollment Form'!C236=\"ROC\",COUNTIF('Enrollment Form'!AS236:AT236,\"Yes\")>=1),\"-\",IF(AND('Enrollment Form'!C236=\"Enroll\",COUNTIF('Enrollment Form'!AS236:AT236,\"No\")=2,'Enrollment Form'!AU236=\"\"),\"N\",\"Y\")))","v":""},{"$f":"IF(OR(B229=\"N\",'Enrollment Form'!B236<>\"Subscriber\",'Enrollment Form'!C236=\"ROC\",'Enrollment Form'!O236<>\"Multiple of Salary\"),\"-\",IF(COUNTA('Enrollment Form'!T236:U236)<2,\"N\",\"Y\"))","v":"-"},{"$f":"IF(B229=\"N\",\"\",IF(OR('Enrollment Form'!C236=\"ROC\",'Enrollment Form'!B236<>\"Subscriber\",'Enrollment Form'!O236=\"Waive\",'Enrollment Form'!O236=\"\"),\"-\",IF('Enrollment Form'!P236=\"\",\"N\",\"Y\")))","v":""},{"$f":"IF($B229=\"N\",\"\",IF(AND('Enrollment Form'!$C236=\"ROC\",'Enrollment Form'!$DS236<>\"\"),\"Y\",IF(AND('Enrollment Form'!$C236=\"ROC\",'Enrollment Form'!$DS236=\"\"),\"N\",IF(AND('Enrollment Form'!$C236=\"Enroll\",'Enrollment Form'!$B236=\"Subscriber\",'Enrollment Form'!$CQ236=\"No\",'Enrollment Form'!$DS236=\"\"),\"N\",IF(AND('Enrollment Form'!$C236=\"Enroll\",'Enrollment Form'!$B236=\"Subscriber\",'Enrollment Form'!$CQ236=\"Yes\"),\"-\",\"Y\")))))","v":""},{"$f":"IF($B229=\"N\",\"\",IF(AND('Enrollment Form'!$C236=\"ROC\",'Enrollment Form'!$DT236<>\"\"),\"Y\",IF(AND('Enrollment Form'!$C236=\"ROC\",'Enrollment Form'!$DT236=\"\"),\"N\",IF(AND('Enrollment Form'!$C236=\"Enroll\",'Enrollment Form'!$B236=\"Subscriber\",'Enrollment Form'!$CQ236=\"No\",'Enrollment Form'!$DT236=\"\"),\"N\",IF(AND('Enrollment Form'!$C236=\"Enroll\",'Enrollment Form'!$B236=\"Subscriber\",'Enrollment Form'!$CQ236=\"Yes\"),\"-\",\"Y\")))))","v":""},{"$f":"IF('Enrollment Form'!AH236=\"\",\"\",IF(ISERROR(SEARCH(\".\",'Enrollment Form'!AH236,SEARCH(\"@\",'Enrollment Form'!AH236))),\"N\",\"Y\"))","v":""},{"$f":"IF(OR($B229=\"N\",'Enrollment Form'!$G236=\"\"),\"\",IF('Enrollment Form'!$B236<>\"Subscriber\",\"-\",IF(COUNTIF('Enrollment Form'!$AS236:$AT236,\"Yes\")=2,\"N\",\"Y\")))","v":""},{"$f":"IF(OR('Enrollment Form'!$CC236=\"\",'Enrollment Form'!$CC236=\"No\"),\"-\",IF(AND('Enrollment Form'!$CC236=\"Yes\",'Enrollment Form'!$CD236=\"\"),\"N\",\"Y\"))","v":"-"},{"$f":"IF(OR('Enrollment Form'!$CE236=\"\",'Enrollment Form'!$CE236=\"No\"),\"-\",IF(AND('Enrollment Form'!$CE236=\"Yes\",'Enrollment Form'!$CF236=\"\"),\"N\",\"Y\"))","v":"-"},{"$f":"IF(OR('Enrollment Form'!$CG236=\"\",'Enrollment Form'!$CG236=\"No\"),\"-\",IF(AND('Enrollment Form'!$CG236=\"Yes\",'Enrollment Form'!$CH236=\"\"),\"N\",\"Y\"))","v":"-"},{"$f":"IF(OR('Enrollment Form'!$CG236=\"\",'Enrollment Form'!$CG236=\"No\"),\"-\",IF(AND('Enrollment Form'!$CG236=\"Yes\",'Enrollment Form'!$CI236=\"\"),\"N\",\"Y\"))","v":"-"},{"$f":"IF('Enrollment Form'!B236<>\"Subscriber\",\"-\",IF(AND('Enrollment Form'!B236=\"Subscriber\",'Enrollment Form'!C236=\"Enroll\",'Enrollment Form'!AA236=\"\"),\"N\",\"Y\"))","v":"-"},{"$f":"IF(OR('Enrollment Form'!B236=\"Subscriber\",'Enrollment Form'!B236=\"\"),\"-\",IF('Enrollment Form'!BI236=\"\",\"N\",\"Y\"))","v":"-"},{"$f":"IF('Enrollment Form'!B236<>\"Subscriber\",\"-\",IF(AND('Enrollment Form'!B236=\"Subscriber\",'Enrollment Form'!G236=\"\"),\"N\",\"Y\"))","v":"-"},{"$f":"IF('Enrollment Form'!A236=\"\",\"\",IF('Enrollment Form'!B236=\"Subscriber\",\"-\",IF(AND('Enrollment Form'!B236<>\"Subscriber\",'Enrollment Form'!G236='Enrollment Form'!H236),\"N\",\"Y\")))","v":""},0]
[237,{"$f":"IF('Enrollment Form'!$A237<>\"\",\"Y\",\"N\")","v":"N"},{"$f":"IF(AND('Enrollment Form'!$B237=\"\",'Enrollment Form'!$C237<>\"\"),\"N\",IF($B230=\"N\",\"\",\"Y\"))","v":""},{"$f":"IF(OR($B230=\"N\",'Enrollment Form'!G237=\"\"),\"\",IF('Enrollment Form'!$B237<>\"Subscriber\",\"\",IF('Enrollment Form'!$G237='Enrollment Form'!$H237,\"Y\",\"N\")))","v":""},{"$f":"IF($B230=\"N\",\"\",IF(AND(COUNTIFS('Enrollment Form'!$H$11:$H$1000,'Enrollment Form'!$H237,'Enrollment Form'!$B$11:$B$1000,'Enrollment Form'!$B237)>1,'Enrollment Form'!$H237<>\"\"),\"N\",\"Y\"))","v":""},{"$f":"IF($B230=\"N\",\"\",IF(LEN('Enrollment Form'!$Y237)=0,\"\",IF(LEN('Enrollment Form'!$Y237)<>5,\"N\",\"Y\")))","v":""},{"$f":"IF($B230=\"N\",\"\",IF(LEN('Enrollment Form'!$AD237=0),\"\",IF(LEN('Enrollment Form'!$AD237)<>5,\"N\",\"Y\")))","v":""},{"$f":"IF($B230=\"N\",\"\",IF(LEN('Enrollment Form'!$BL237=0),\"\",IF(LEN('Enrollment Form'!$BL237)<>5,\"N\",\"Y\")))","v":""},{"$f":"IF($B230=\"N\",\"\",IF(LEN('Enrollment Form'!$AE237)=0,\"\",IF(LEN('Enrollment Form'!$AE237)<>10,\"N\",\"Y\")))","v":""},{"$f":"IF($B230=\"N\",\"\",IF(LEN('Enrollment Form'!$AF237)=0,\"\",IF(LEN('Enrollment Form'!$AF237)<>10,\"N\",\"Y\")))","v":""},{"$f":"IF('Enrollment Form'!$O237<>\"Graded\",\"-\",IF(AND('Enrollment Form'!$O237=\"Graded\",'Enrollment Form'!$AO237<>\"\"),\"Y\",\"N\"))","v":"-"},{"$f":"IF($B230=\"N\",\"\",IF(OR('Enrollment Form'!$B237<>\"Subscriber\",'Enrollment Form'!$C237=\"ROC\"),\"-\",IF(AND('Enrollment Form'!$B237=\"Subscriber\",'Enrollment Form'!$C237=\"Enroll\",'Enrollment Form'!$AJ237<>\"\"),\"Y\",\"N\")))","v":""},{"$f":"IF($B230=\"N\",\"\",IF(OR('Enrollment Form'!$B237<>\"Subscriber\",'Enrollment Form'!$C237=\"ROC\"),\"-\",IF(AND('Enrollment Form'!$B237=\"Subscriber\",'Enrollment Form'!$C237=\"Enroll\",'Enrollment Form'!$AK237<>\"\"),\"Y\",\"N\")))","v":""},{"$f":"IF($B230=\"N\",\"\",IF(OR('Enrollment Form'!$B237<>\"Subscriber\",'Enrollment Form'!$C237=\"ROC\"),\"-\",IF(AND('Enrollment Form'!$B237=\"Subscriber\",'Enrollment Form'!$C237=\"Enroll\",'Enrollment Form'!$AL237<>\"\"),\"Y\",\"N\")))","v":""},{"$f":"IF($B230=\"N\",\"\",IF(OR('Enrollment Form'!$B237<>\"Subscriber\",'Enrollment Form'!$C237=\"ROC\"),\"-\",IF(AND('Enrollment Form'!$B237=\"Subscriber\",'Enrollment Form'!$C237=\"Enroll\",'Enrollment Form'!$AM237<>\"\"),\"Y\",\"N\")))","v":""},{"$f":"IF($B230=\"N\",\"\",IF(OR('Enrollment Form'!$B237<>\"Subscriber\",'Enrollment Form'!$C237=\"ROC\"),\"-\",IF(AND('Enrollment Form'!$B237=\"Subscriber\",'Enrollment Form'!$C237=\"Enroll\",'Enrollment Form'!$AN237<>\"\"),\"Y\",\"N\")))","v":""},{"$f":"IF($B230=\"N\",\"\",IF(OR('Enrollment Form'!$B237<>\"Subscriber\",'Enrollment Form'!$C237=\"ROC\"),\"-\",IF(AND('Enrollment Form'!$B237=\"Subscriber\",'Enrollment Form'!$C237=\"Enroll\",'Enrollment Form'!$AP237<>\"\"),\"Y\",\"N\")))","v":""},{"$f":"IF($B230=\"N\",\"\",IF($Q230=\"-\",\"-\",IF(AND($Q230=\"Y\",'Enrollment Form'!$AP237=\"No\"),\"-\",IF(AND($Q230=\"Y\",'Enrollment Form'!$AP237=\"Yes\",'Enrollment Form'!$AQ237<>\"\"),\"Y\",\"N\"))))","v":""},{"$f":"IF($B230=\"N\",\"\",IF(OR('Enrollment Form'!$B237<>\"Subscriber\",'Enrollment Form'!$C237=\"ROC\"),\"-\",IF(AND('Enrollment Form'!$B237=\"Subscriber\",'Enrollment Form'!$C237=\"Enroll\",'Enrollment Form'!$CO237<>\"\"),\"Y\",\"N\")))","v":""},{"$f":"IF($B230=\"N\",\"\",IF($S230=\"-\",\"-\",IF(AND($S230=\"Y\",'Enrollment Form'!$CO237=\"No\"),\"-\",IF(AND($S230=\"Y\",'Enrollment Form'!$CO237=\"Yes\",'Enrollment Form'!$CP237<>\"\"),\"Y\",\"N\"))))","v":""},{"$f":"IF(OR('Enrollment Form'!$AV237=\"Yes\",'Enrollment Form'!$AV237=\"\"),\"-\",IF(AND('Enrollment Form'!$AV237=\"No\",ISERROR(FIND(\"HMO\",VLOOKUP('Enrollment Form'!G237,'Enrollment Form'!H$11:J$1000,3,FALSE),1))=FALSE,COUNTA('Enrollment Form'!$AW237:$AZ237)=4),\"Y\",\"N\"))","v":"-"},{"$f":"IF($B230=\"N\",\"\",IF('Enrollment Form'!$B237=\"Subscriber\",\"-\",IF(COUNTA('Enrollment Form'!$BE237,'Enrollment Form'!$BG237)=2,\"Y\",\"N\")))","v":""},{"$f":"IF($B230=\"N\",\"\",IF(OR('Enrollment Form'!$AU237=\"\",'Enrollment Form'!$AU237=\"No\"),\"-\",IF(AND('Enrollment Form'!$AU237=\"Yes\",COUNTA('Enrollment Form'!$CK237)=1),\"Y\",\"N\")))","v":""},{"$f":"IF(OR('Enrollment Form'!$CK237=\"\",'Enrollment Form'!$CK237=\"No\"),\"-\",IF(COUNTA('Enrollment Form'!$CM237:$CN237)=2,\"Y\",\"N\"))","v":"-"},{"$f":"IF($B230=\"N\",\"\",IF(COUNTIF('Enrollment Form'!$CZ237:$DO237,\"Other\")=COUNTA('Enrollment Form'!$DF237,'Enrollment Form'!$DA237,'Enrollment Form'!$DK237,'Enrollment Form'!$DP237),\"Y\",\"N\"))","v":""},{"$f":"IF($B230=\"N\",\"\",IF(OR('Enrollment Form'!B237<>\"Subscriber\",'Enrollment Form'!C237=\"ROC\",COUNTIF('Enrollment Form'!AS237:AT237,\"Yes\")>=1),\"-\",IF(AND('Enrollment Form'!C237=\"Enroll\",COUNTIF('Enrollment Form'!AS237:AT237,\"No\")=2,'Enrollment Form'!AU237=\"\"),\"N\",\"Y\")))","v":""},{"$f":"IF(OR(B230=\"N\",'Enrollment Form'!B237<>\"Subscriber\",'Enrollment Form'!C237=\"ROC\",'Enrollment Form'!O237<>\"Multiple of Salary\"),\"-\",IF(COUNTA('Enrollment Form'!T237:U237)<2,\"N\",\"Y\"))","v":"-"},{"$f":"IF(B230=\"N\",\"\",IF(OR('Enrollment Form'!C237=\"ROC\",'Enrollment Form'!B237<>\"Subscriber\",'Enrollment Form'!O237=\"Waive\",'Enrollment Form'!O237=\"\"),\"-\",IF('Enrollment Form'!P237=\"\",\"N\",\"Y\")))","v":""},{"$f":"IF($B230=\"N\",\"\",IF(AND('Enrollment Form'!$C237=\"ROC\",'Enrollment Form'!$DS237<>\"\"),\"Y\",IF(AND('Enrollment Form'!$C237=\"ROC\",'Enrollment Form'!$DS237=\"\"),\"N\",IF(AND('Enrollment Form'!$C237=\"Enroll\",'Enrollment Form'!$B237=\"Subscriber\",'Enrollment Form'!$CQ237=\"No\",'Enrollment Form'!$DS237=\"\"),\"N\",IF(AND('Enrollment Form'!$C237=\"Enroll\",'Enrollment Form'!$B237=\"Subscriber\",'Enrollment Form'!$CQ237=\"Yes\"),\"-\",\"Y\")))))","v":""},{"$f":"IF($B230=\"N\",\"\",IF(AND('Enrollment Form'!$C237=\"ROC\",'Enrollment Form'!$DT237<>\"\"),\"Y\",IF(AND('Enrollment Form'!$C237=\"ROC\",'Enrollment Form'!$DT237=\"\"),\"N\",IF(AND('Enrollment Form'!$C237=\"Enroll\",'Enrollment Form'!$B237=\"Subscriber\",'Enrollment Form'!$CQ237=\"No\",'Enrollment Form'!$DT237=\"\"),\"N\",IF(AND('Enrollment Form'!$C237=\"Enroll\",'Enrollment Form'!$B237=\"Subscriber\",'Enrollment Form'!$CQ237=\"Yes\"),\"-\",\"Y\")))))","v":""},{"$f":"IF('Enrollment Form'!AH237=\"\",\"\",IF(ISERROR(SEARCH(\".\",'Enrollment Form'!AH237,SEARCH(\"@\",'Enrollment Form'!AH237))),\"N\",\"Y\"))","v":""},{"$f":"IF(OR($B230=\"N\",'Enrollment Form'!$G237=\"\"),\"\",IF('Enrollment Form'!$B237<>\"Subscriber\",\"-\",IF(COUNTIF('Enrollment Form'!$AS237:$AT237,\"Yes\")=2,\"N\",\"Y\")))","v":""},{"$f":"IF(OR('Enrollment Form'!$CC237=\"\",'Enrollment Form'!$CC237=\"No\"),\"-\",IF(AND('Enrollment Form'!$CC237=\"Yes\",'Enrollment Form'!$CD237=\"\"),\"N\",\"Y\"))","v":"-"},{"$f":"IF(OR('Enrollment Form'!$CE237=\"\",'Enrollment Form'!$CE237=\"No\"),\"-\",IF(AND('Enrollment Form'!$CE237=\"Yes\",'Enrollment Form'!$CF237=\"\"),\"N\",\"Y\"))","v":"-"},{"$f":"IF(OR('Enrollment Form'!$CG237=\"\",'Enrollment Form'!$CG237=\"No\"),\"-\",IF(AND('Enrollment Form'!$CG237=\"Yes\",'Enrollment Form'!$CH237=\"\"),\"N\",\"Y\"))","v":"-"},{"$f":"IF(OR('Enrollment Form'!$CG237=\"\",'Enrollment Form'!$CG237=\"No\"),\"-\",IF(AND('Enrollment Form'!$CG237=\"Yes\",'Enrollment Form'!$CI237=\"\"),\"N\",\"Y\"))","v":"-"},{"$f":"IF('Enrollment Form'!B237<>\"Subscriber\",\"-\",IF(AND('Enrollment Form'!B237=\"Subscriber\",'Enrollment Form'!C237=\"Enroll\",'Enrollment Form'!AA237=\"\"),\"N\",\"Y\"))","v":"-"},{"$f":"IF(OR('Enrollment Form'!B237=\"Subscriber\",'Enrollment Form'!B237=\"\"),\"-\",IF('Enrollment Form'!BI237=\"\",\"N\",\"Y\"))","v":"-"},{"$f":"IF('Enrollment Form'!B237<>\"Subscriber\",\"-\",IF(AND('Enrollment Form'!B237=\"Subscriber\",'Enrollment Form'!G237=\"\"),\"N\",\"Y\"))","v":"-"},{"$f":"IF('Enrollment Form'!A237=\"\",\"\",IF('Enrollment Form'!B237=\"Subscriber\",\"-\",IF(AND('Enrollment Form'!B237<>\"Subscriber\",'Enrollment Form'!G237='Enrollment Form'!H237),\"N\",\"Y\")))","v":""},0]
[238,{"$f":"IF('Enrollment Form'!$A238<>\"\",\"Y\",\"N\")","v":"N"},{"$f":"IF(AND('Enrollment Form'!$B238=\"\",'Enrollment Form'!$C238<>\"\"),\"N\",IF($B231=\"N\",\"\",\"Y\"))","v":""},{"$f":"IF(OR($B231=\"N\",'Enrollment Form'!G238=\"\"),\"\",IF('Enrollment Form'!$B238<>\"Subscriber\",\"\",IF('Enrollment Form'!$G238='Enrollment Form'!$H238,\"Y\",\"N\")))","v":""},{"$f":"IF($B231=\"N\",\"\",IF(AND(COUNTIFS('Enrollment Form'!$H$11:$H$1000,'Enrollment Form'!$H238,'Enrollment Form'!$B$11:$B$1000,'Enrollment Form'!$B238)>1,'Enrollment Form'!$H238<>\"\"),\"N\",\"Y\"))","v":""},{"$f":"IF($B231=\"N\",\"\",IF(LEN('Enrollment Form'!$Y238)=0,\"\",IF(LEN('Enrollment Form'!$Y238)<>5,\"N\",\"Y\")))","v":""},{"$f":"IF($B231=\"N\",\"\",IF(LEN('Enrollment Form'!$AD238=0),\"\",IF(LEN('Enrollment Form'!$AD238)<>5,\"N\",\"Y\")))","v":""},{"$f":"IF($B231=\"N\",\"\",IF(LEN('Enrollment Form'!$BL238=0),\"\",IF(LEN('Enrollment Form'!$BL238)<>5,\"N\",\"Y\")))","v":""},{"$f":"IF($B231=\"N\",\"\",IF(LEN('Enrollment Form'!$AE238)=0,\"\",IF(LEN('Enrollment Form'!$AE238)<>10,\"N\",\"Y\")))","v":""},{"$f":"IF($B231=\"N\",\"\",IF(LEN('Enrollment Form'!$AF238)=0,\"\",IF(LEN('Enrollment Form'!$AF238)<>10,\"N\",\"Y\")))","v":""},{"$f":"IF('Enrollment Form'!$O238<>\"Graded\",\"-\",IF(AND('Enrollment Form'!$O238=\"Graded\",'Enrollment Form'!$AO238<>\"\"),\"Y\",\"N\"))","v":"-"},{"$f":"IF($B231=\"N\",\"\",IF(OR('Enrollment Form'!$B238<>\"Subscriber\",'Enrollment Form'!$C238=\"ROC\"),\"-\",IF(AND('Enrollment Form'!$B238=\"Subscriber\",'Enrollment Form'!$C238=\"Enroll\",'Enrollment Form'!$AJ238<>\"\"),\"Y\",\"N\")))","v":""},{"$f":"IF($B231=\"N\",\"\",IF(OR('Enrollment Form'!$B238<>\"Subscriber\",'Enrollment Form'!$C238=\"ROC\"),\"-\",IF(AND('Enrollment Form'!$B238=\"Subscriber\",'Enrollment Form'!$C238=\"Enroll\",'Enrollment Form'!$AK238<>\"\"),\"Y\",\"N\")))","v":""},{"$f":"IF($B231=\"N\",\"\",IF(OR('Enrollment Form'!$B238<>\"Subscriber\",'Enrollment Form'!$C238=\"ROC\"),\"-\",IF(AND('Enrollment Form'!$B238=\"Subscriber\",'Enrollment Form'!$C238=\"Enroll\",'Enrollment Form'!$AL238<>\"\"),\"Y\",\"N\")))","v":""},{"$f":"IF($B231=\"N\",\"\",IF(OR('Enrollment Form'!$B238<>\"Subscriber\",'Enrollment Form'!$C238=\"ROC\"),\"-\",IF(AND('Enrollment Form'!$B238=\"Subscriber\",'Enrollment Form'!$C238=\"Enroll\",'Enrollment Form'!$AM238<>\"\"),\"Y\",\"N\")))","v":""},{"$f":"IF($B231=\"N\",\"\",IF(OR('Enrollment Form'!$B238<>\"Subscriber\",'Enrollment Form'!$C238=\"ROC\"),\"-\",IF(AND('Enrollment Form'!$B238=\"Subscriber\",'Enrollment Form'!$C238=\"Enroll\",'Enrollment Form'!$AN238<>\"\"),\"Y\",\"N\")))","v":""},{"$f":"IF($B231=\"N\",\"\",IF(OR('Enrollment Form'!$B238<>\"Subscriber\",'Enrollment Form'!$C238=\"ROC\"),\"-\",IF(AND('Enrollment Form'!$B238=\"Subscriber\",'Enrollment Form'!$C238=\"Enroll\",'Enrollment Form'!$AP238<>\"\"),\"Y\",\"N\")))","v":""},{"$f":"IF($B231=\"N\",\"\",IF($Q231=\"-\",\"-\",IF(AND($Q231=\"Y\",'Enrollment Form'!$AP238=\"No\"),\"-\",IF(AND($Q231=\"Y\",'Enrollment Form'!$AP238=\"Yes\",'Enrollment Form'!$AQ238<>\"\"),\"Y\",\"N\"))))","v":""},{"$f":"IF($B231=\"N\",\"\",IF(OR('Enrollment Form'!$B238<>\"Subscriber\",'Enrollment Form'!$C238=\"ROC\"),\"-\",IF(AND('Enrollment Form'!$B238=\"Subscriber\",'Enrollment Form'!$C238=\"Enroll\",'Enrollment Form'!$CO238<>\"\"),\"Y\",\"N\")))","v":""},{"$f":"IF($B231=\"N\",\"\",IF($S231=\"-\",\"-\",IF(AND($S231=\"Y\",'Enrollment Form'!$CO238=\"No\"),\"-\",IF(AND($S231=\"Y\",'Enrollment Form'!$CO238=\"Yes\",'Enrollment Form'!$CP238<>\"\"),\"Y\",\"N\"))))","v":""},{"$f":"IF(OR('Enrollment Form'!$AV238=\"Yes\",'Enrollment Form'!$AV238=\"\"),\"-\",IF(AND('Enrollment Form'!$AV238=\"No\",ISERROR(FIND(\"HMO\",VLOOKUP('Enrollment Form'!G238,'Enrollment Form'!H$11:J$1000,3,FALSE),1))=FALSE,COUNTA('Enrollment Form'!$AW238:$AZ238)=4),\"Y\",\"N\"))","v":"-"},{"$f":"IF($B231=\"N\",\"\",IF('Enrollment Form'!$B238=\"Subscriber\",\"-\",IF(COUNTA('Enrollment Form'!$BE238,'Enrollment Form'!$BG238)=2,\"Y\",\"N\")))","v":""},{"$f":"IF($B231=\"N\",\"\",IF(OR('Enrollment Form'!$AU238=\"\",'Enrollment Form'!$AU238=\"No\"),\"-\",IF(AND('Enrollment Form'!$AU238=\"Yes\",COUNTA('Enrollment Form'!$CK238)=1),\"Y\",\"N\")))","v":""},{"$f":"IF(OR('Enrollment Form'!$CK238=\"\",'Enrollment Form'!$CK238=\"No\"),\"-\",IF(COUNTA('Enrollment Form'!$CM238:$CN238)=2,\"Y\",\"N\"))","v":"-"},{"$f":"IF($B231=\"N\",\"\",IF(COUNTIF('Enrollment Form'!$CZ238:$DO238,\"Other\")=COUNTA('Enrollment Form'!$DF238,'Enrollment Form'!$DA238,'Enrollment Form'!$DK238,'Enrollment Form'!$DP238),\"Y\",\"N\"))","v":""},{"$f":"IF($B231=\"N\",\"\",IF(OR('Enrollment Form'!B238<>\"Subscriber\",'Enrollment Form'!C238=\"ROC\",COUNTIF('Enrollment Form'!AS238:AT238,\"Yes\")>=1),\"-\",IF(AND('Enrollment Form'!C238=\"Enroll\",COUNTIF('Enrollment Form'!AS238:AT238,\"No\")=2,'Enrollment Form'!AU238=\"\"),\"N\",\"Y\")))","v":""},{"$f":"IF(OR(B231=\"N\",'Enrollment Form'!B238<>\"Subscriber\",'Enrollment Form'!C238=\"ROC\",'Enrollment Form'!O238<>\"Multiple of Salary\"),\"-\",IF(COUNTA('Enrollment Form'!T238:U238)<2,\"N\",\"Y\"))","v":"-"},{"$f":"IF(B231=\"N\",\"\",IF(OR('Enrollment Form'!C238=\"ROC\",'Enrollment Form'!B238<>\"Subscriber\",'Enrollment Form'!O238=\"Waive\",'Enrollment Form'!O238=\"\"),\"-\",IF('Enrollment Form'!P238=\"\",\"N\",\"Y\")))","v":""},{"$f":"IF($B231=\"N\",\"\",IF(AND('Enrollment Form'!$C238=\"ROC\",'Enrollment Form'!$DS238<>\"\"),\"Y\",IF(AND('Enrollment Form'!$C238=\"ROC\",'Enrollment Form'!$DS238=\"\"),\"N\",IF(AND('Enrollment Form'!$C238=\"Enroll\",'Enrollment Form'!$B238=\"Subscriber\",'Enrollment Form'!$CQ238=\"No\",'Enrollment Form'!$DS238=\"\"),\"N\",IF(AND('Enrollment Form'!$C238=\"Enroll\",'Enrollment Form'!$B238=\"Subscriber\",'Enrollment Form'!$CQ238=\"Yes\"),\"-\",\"Y\")))))","v":""},{"$f":"IF($B231=\"N\",\"\",IF(AND('Enrollment Form'!$C238=\"ROC\",'Enrollment Form'!$DT238<>\"\"),\"Y\",IF(AND('Enrollment Form'!$C238=\"ROC\",'Enrollment Form'!$DT238=\"\"),\"N\",IF(AND('Enrollment Form'!$C238=\"Enroll\",'Enrollment Form'!$B238=\"Subscriber\",'Enrollment Form'!$CQ238=\"No\",'Enrollment Form'!$DT238=\"\"),\"N\",IF(AND('Enrollment Form'!$C238=\"Enroll\",'Enrollment Form'!$B238=\"Subscriber\",'Enrollment Form'!$CQ238=\"Yes\"),\"-\",\"Y\")))))","v":""},{"$f":"IF('Enrollment Form'!AH238=\"\",\"\",IF(ISERROR(SEARCH(\".\",'Enrollment Form'!AH238,SEARCH(\"@\",'Enrollment Form'!AH238))),\"N\",\"Y\"))","v":""},{"$f":"IF(OR($B231=\"N\",'Enrollment Form'!$G238=\"\"),\"\",IF('Enrollment Form'!$B238<>\"Subscriber\",\"-\",IF(COUNTIF('Enrollment Form'!$AS238:$AT238,\"Yes\")=2,\"N\",\"Y\")))","v":""},{"$f":"IF(OR('Enrollment Form'!$CC238=\"\",'Enrollment Form'!$CC238=\"No\"),\"-\",IF(AND('Enrollment Form'!$CC238=\"Yes\",'Enrollment Form'!$CD238=\"\"),\"N\",\"Y\"))","v":"-"},{"$f":"IF(OR('Enrollment Form'!$CE238=\"\",'Enrollment Form'!$CE238=\"No\"),\"-\",IF(AND('Enrollment Form'!$CE238=\"Yes\",'Enrollment Form'!$CF238=\"\"),\"N\",\"Y\"))","v":"-"},{"$f":"IF(OR('Enrollment Form'!$CG238=\"\",'Enrollment Form'!$CG238=\"No\"),\"-\",IF(AND('Enrollment Form'!$CG238=\"Yes\",'Enrollment Form'!$CH238=\"\"),\"N\",\"Y\"))","v":"-"},{"$f":"IF(OR('Enrollment Form'!$CG238=\"\",'Enrollment Form'!$CG238=\"No\"),\"-\",IF(AND('Enrollment Form'!$CG238=\"Yes\",'Enrollment Form'!$CI238=\"\"),\"N\",\"Y\"))","v":"-"},{"$f":"IF('Enrollment Form'!B238<>\"Subscriber\",\"-\",IF(AND('Enrollment Form'!B238=\"Subscriber\",'Enrollment Form'!C238=\"Enroll\",'Enrollment Form'!AA238=\"\"),\"N\",\"Y\"))","v":"-"},{"$f":"IF(OR('Enrollment Form'!B238=\"Subscriber\",'Enrollment Form'!B238=\"\"),\"-\",IF('Enrollment Form'!BI238=\"\",\"N\",\"Y\"))","v":"-"},{"$f":"IF('Enrollment Form'!B238<>\"Subscriber\",\"-\",IF(AND('Enrollment Form'!B238=\"Subscriber\",'Enrollment Form'!G238=\"\"),\"N\",\"Y\"))","v":"-"},{"$f":"IF('Enrollment Form'!A238=\"\",\"\",IF('Enrollment Form'!B238=\"Subscriber\",\"-\",IF(AND('Enrollment Form'!B238<>\"Subscriber\",'Enrollment Form'!G238='Enrollment Form'!H238),\"N\",\"Y\")))","v":""},0]
[239,{"$f":"IF('Enrollment Form'!$A239<>\"\",\"Y\",\"N\")","v":"N"},{"$f":"IF(AND('Enrollment Form'!$B239=\"\",'Enrollment Form'!$C239<>\"\"),\"N\",IF($B232=\"N\",\"\",\"Y\"))","v":""},{"$f":"IF(OR($B232=\"N\",'Enrollment Form'!G239=\"\"),\"\",IF('Enrollment Form'!$B239<>\"Subscriber\",\"\",IF('Enrollment Form'!$G239='Enrollment Form'!$H239,\"Y\",\"N\")))","v":""},{"$f":"IF($B232=\"N\",\"\",IF(AND(COUNTIFS('Enrollment Form'!$H$11:$H$1000,'Enrollment Form'!$H239,'Enrollment Form'!$B$11:$B$1000,'Enrollment Form'!$B239)>1,'Enrollment Form'!$H239<>\"\"),\"N\",\"Y\"))","v":""},{"$f":"IF($B232=\"N\",\"\",IF(LEN('Enrollment Form'!$Y239)=0,\"\",IF(LEN('Enrollment Form'!$Y239)<>5,\"N\",\"Y\")))","v":""},{"$f":"IF($B232=\"N\",\"\",IF(LEN('Enrollment Form'!$AD239=0),\"\",IF(LEN('Enrollment Form'!$AD239)<>5,\"N\",\"Y\")))","v":""},{"$f":"IF($B232=\"N\",\"\",IF(LEN('Enrollment Form'!$BL239=0),\"\",IF(LEN('Enrollment Form'!$BL239)<>5,\"N\",\"Y\")))","v":""},{"$f":"IF($B232=\"N\",\"\",IF(LEN('Enrollment Form'!$AE239)=0,\"\",IF(LEN('Enrollment Form'!$AE239)<>10,\"N\",\"Y\")))","v":""},{"$f":"IF($B232=\"N\",\"\",IF(LEN('Enrollment Form'!$AF239)=0,\"\",IF(LEN('Enrollment Form'!$AF239)<>10,\"N\",\"Y\")))","v":""},{"$f":"IF('Enrollment Form'!$O239<>\"Graded\",\"-\",IF(AND('Enrollment Form'!$O239=\"Graded\",'Enrollment Form'!$AO239<>\"\"),\"Y\",\"N\"))","v":"-"},{"$f":"IF($B232=\"N\",\"\",IF(OR('Enrollment Form'!$B239<>\"Subscriber\",'Enrollment Form'!$C239=\"ROC\"),\"-\",IF(AND('Enrollment Form'!$B239=\"Subscriber\",'Enrollment Form'!$C239=\"Enroll\",'Enrollment Form'!$AJ239<>\"\"),\"Y\",\"N\")))","v":""},{"$f":"IF($B232=\"N\",\"\",IF(OR('Enrollment Form'!$B239<>\"Subscriber\",'Enrollment Form'!$C239=\"ROC\"),\"-\",IF(AND('Enrollment Form'!$B239=\"Subscriber\",'Enrollment Form'!$C239=\"Enroll\",'Enrollment Form'!$AK239<>\"\"),\"Y\",\"N\")))","v":""},{"$f":"IF($B232=\"N\",\"\",IF(OR('Enrollment Form'!$B239<>\"Subscriber\",'Enrollment Form'!$C239=\"ROC\"),\"-\",IF(AND('Enrollment Form'!$B239=\"Subscriber\",'Enrollment Form'!$C239=\"Enroll\",'Enrollment Form'!$AL239<>\"\"),\"Y\",\"N\")))","v":""},{"$f":"IF($B232=\"N\",\"\",IF(OR('Enrollment Form'!$B239<>\"Subscriber\",'Enrollment Form'!$C239=\"ROC\"),\"-\",IF(AND('Enrollment Form'!$B239=\"Subscriber\",'Enrollment Form'!$C239=\"Enroll\",'Enrollment Form'!$AM239<>\"\"),\"Y\",\"N\")))","v":""},{"$f":"IF($B232=\"N\",\"\",IF(OR('Enrollment Form'!$B239<>\"Subscriber\",'Enrollment Form'!$C239=\"ROC\"),\"-\",IF(AND('Enrollment Form'!$B239=\"Subscriber\",'Enrollment Form'!$C239=\"Enroll\",'Enrollment Form'!$AN239<>\"\"),\"Y\",\"N\")))","v":""},{"$f":"IF($B232=\"N\",\"\",IF(OR('Enrollment Form'!$B239<>\"Subscriber\",'Enrollment Form'!$C239=\"ROC\"),\"-\",IF(AND('Enrollment Form'!$B239=\"Subscriber\",'Enrollment Form'!$C239=\"Enroll\",'Enrollment Form'!$AP239<>\"\"),\"Y\",\"N\")))","v":""},{"$f":"IF($B232=\"N\",\"\",IF($Q232=\"-\",\"-\",IF(AND($Q232=\"Y\",'Enrollment Form'!$AP239=\"No\"),\"-\",IF(AND($Q232=\"Y\",'Enrollment Form'!$AP239=\"Yes\",'Enrollment Form'!$AQ239<>\"\"),\"Y\",\"N\"))))","v":""},{"$f":"IF($B232=\"N\",\"\",IF(OR('Enrollment Form'!$B239<>\"Subscriber\",'Enrollment Form'!$C239=\"ROC\"),\"-\",IF(AND('Enrollment Form'!$B239=\"Subscriber\",'Enrollment Form'!$C239=\"Enroll\",'Enrollment Form'!$CO239<>\"\"),\"Y\",\"N\")))","v":""},{"$f":"IF($B232=\"N\",\"\",IF($S232=\"-\",\"-\",IF(AND($S232=\"Y\",'Enrollment Form'!$CO239=\"No\"),\"-\",IF(AND($S232=\"Y\",'Enrollment Form'!$CO239=\"Yes\",'Enrollment Form'!$CP239<>\"\"),\"Y\",\"N\"))))","v":""},{"$f":"IF(OR('Enrollment Form'!$AV239=\"Yes\",'Enrollment Form'!$AV239=\"\"),\"-\",IF(AND('Enrollment Form'!$AV239=\"No\",ISERROR(FIND(\"HMO\",VLOOKUP('Enrollment Form'!G239,'Enrollment Form'!H$11:J$1000,3,FALSE),1))=FALSE,COUNTA('Enrollment Form'!$AW239:$AZ239)=4),\"Y\",\"N\"))","v":"-"},{"$f":"IF($B232=\"N\",\"\",IF('Enrollment Form'!$B239=\"Subscriber\",\"-\",IF(COUNTA('Enrollment Form'!$BE239,'Enrollment Form'!$BG239)=2,\"Y\",\"N\")))","v":""},{"$f":"IF($B232=\"N\",\"\",IF(OR('Enrollment Form'!$AU239=\"\",'Enrollment Form'!$AU239=\"No\"),\"-\",IF(AND('Enrollment Form'!$AU239=\"Yes\",COUNTA('Enrollment Form'!$CK239)=1),\"Y\",\"N\")))","v":""},{"$f":"IF(OR('Enrollment Form'!$CK239=\"\",'Enrollment Form'!$CK239=\"No\"),\"-\",IF(COUNTA('Enrollment Form'!$CM239:$CN239)=2,\"Y\",\"N\"))","v":"-"},{"$f":"IF($B232=\"N\",\"\",IF(COUNTIF('Enrollment Form'!$CZ239:$DO239,\"Other\")=COUNTA('Enrollment Form'!$DF239,'Enrollment Form'!$DA239,'Enrollment Form'!$DK239,'Enrollment Form'!$DP239),\"Y\",\"N\"))","v":""},{"$f":"IF($B232=\"N\",\"\",IF(OR('Enrollment Form'!B239<>\"Subscriber\",'Enrollment Form'!C239=\"ROC\",COUNTIF('Enrollment Form'!AS239:AT239,\"Yes\")>=1),\"-\",IF(AND('Enrollment Form'!C239=\"Enroll\",COUNTIF('Enrollment Form'!AS239:AT239,\"No\")=2,'Enrollment Form'!AU239=\"\"),\"N\",\"Y\")))","v":""},{"$f":"IF(OR(B232=\"N\",'Enrollment Form'!B239<>\"Subscriber\",'Enrollment Form'!C239=\"ROC\",'Enrollment Form'!O239<>\"Multiple of Salary\"),\"-\",IF(COUNTA('Enrollment Form'!T239:U239)<2,\"N\",\"Y\"))","v":"-"},{"$f":"IF(B232=\"N\",\"\",IF(OR('Enrollment Form'!C239=\"ROC\",'Enrollment Form'!B239<>\"Subscriber\",'Enrollment Form'!O239=\"Waive\",'Enrollment Form'!O239=\"\"),\"-\",IF('Enrollment Form'!P239=\"\",\"N\",\"Y\")))","v":""},{"$f":"IF($B232=\"N\",\"\",IF(AND('Enrollment Form'!$C239=\"ROC\",'Enrollment Form'!$DS239<>\"\"),\"Y\",IF(AND('Enrollment Form'!$C239=\"ROC\",'Enrollment Form'!$DS239=\"\"),\"N\",IF(AND('Enrollment Form'!$C239=\"Enroll\",'Enrollment Form'!$B239=\"Subscriber\",'Enrollment Form'!$CQ239=\"No\",'Enrollment Form'!$DS239=\"\"),\"N\",IF(AND('Enrollment Form'!$C239=\"Enroll\",'Enrollment Form'!$B239=\"Subscriber\",'Enrollment Form'!$CQ239=\"Yes\"),\"-\",\"Y\")))))","v":""},{"$f":"IF($B232=\"N\",\"\",IF(AND('Enrollment Form'!$C239=\"ROC\",'Enrollment Form'!$DT239<>\"\"),\"Y\",IF(AND('Enrollment Form'!$C239=\"ROC\",'Enrollment Form'!$DT239=\"\"),\"N\",IF(AND('Enrollment Form'!$C239=\"Enroll\",'Enrollment Form'!$B239=\"Subscriber\",'Enrollment Form'!$CQ239=\"No\",'Enrollment Form'!$DT239=\"\"),\"N\",IF(AND('Enrollment Form'!$C239=\"Enroll\",'Enrollment Form'!$B239=\"Subscriber\",'Enrollment Form'!$CQ239=\"Yes\"),\"-\",\"Y\")))))","v":""},{"$f":"IF('Enrollment Form'!AH239=\"\",\"\",IF(ISERROR(SEARCH(\".\",'Enrollment Form'!AH239,SEARCH(\"@\",'Enrollment Form'!AH239))),\"N\",\"Y\"))","v":""},{"$f":"IF(OR($B232=\"N\",'Enrollment Form'!$G239=\"\"),\"\",IF('Enrollment Form'!$B239<>\"Subscriber\",\"-\",IF(COUNTIF('Enrollment Form'!$AS239:$AT239,\"Yes\")=2,\"N\",\"Y\")))","v":""},{"$f":"IF(OR('Enrollment Form'!$CC239=\"\",'Enrollment Form'!$CC239=\"No\"),\"-\",IF(AND('Enrollment Form'!$CC239=\"Yes\",'Enrollment Form'!$CD239=\"\"),\"N\",\"Y\"))","v":"-"},{"$f":"IF(OR('Enrollment Form'!$CE239=\"\",'Enrollment Form'!$CE239=\"No\"),\"-\",IF(AND('Enrollment Form'!$CE239=\"Yes\",'Enrollment Form'!$CF239=\"\"),\"N\",\"Y\"))","v":"-"},{"$f":"IF(OR('Enrollment Form'!$CG239=\"\",'Enrollment Form'!$CG239=\"No\"),\"-\",IF(AND('Enrollment Form'!$CG239=\"Yes\",'Enrollment Form'!$CH239=\"\"),\"N\",\"Y\"))","v":"-"},{"$f":"IF(OR('Enrollment Form'!$CG239=\"\",'Enrollment Form'!$CG239=\"No\"),\"-\",IF(AND('Enrollment Form'!$CG239=\"Yes\",'Enrollment Form'!$CI239=\"\"),\"N\",\"Y\"))","v":"-"},{"$f":"IF('Enrollment Form'!B239<>\"Subscriber\",\"-\",IF(AND('Enrollment Form'!B239=\"Subscriber\",'Enrollment Form'!C239=\"Enroll\",'Enrollment Form'!AA239=\"\"),\"N\",\"Y\"))","v":"-"},{"$f":"IF(OR('Enrollment Form'!B239=\"Subscriber\",'Enrollment Form'!B239=\"\"),\"-\",IF('Enrollment Form'!BI239=\"\",\"N\",\"Y\"))","v":"-"},{"$f":"IF('Enrollment Form'!B239<>\"Subscriber\",\"-\",IF(AND('Enrollment Form'!B239=\"Subscriber\",'Enrollment Form'!G239=\"\"),\"N\",\"Y\"))","v":"-"},{"$f":"IF('Enrollment Form'!A239=\"\",\"\",IF('Enrollment Form'!B239=\"Subscriber\",\"-\",IF(AND('Enrollment Form'!B239<>\"Subscriber\",'Enrollment Form'!G239='Enrollment Form'!H239),\"N\",\"Y\")))","v":""},0]
[240,{"$f":"IF('Enrollment Form'!$A240<>\"\",\"Y\",\"N\")","v":"N"},{"$f":"IF(AND('Enrollment Form'!$B240=\"\",'Enrollment Form'!$C240<>\"\"),\"N\",IF($B233=\"N\",\"\",\"Y\"))","v":""},{"$f":"IF(OR($B233=\"N\",'Enrollment Form'!G240=\"\"),\"\",IF('Enrollment Form'!$B240<>\"Subscriber\",\"\",IF('Enrollment Form'!$G240='Enrollment Form'!$H240,\"Y\",\"N\")))","v":""},{"$f":"IF($B233=\"N\",\"\",IF(AND(COUNTIFS('Enrollment Form'!$H$11:$H$1000,'Enrollment Form'!$H240,'Enrollment Form'!$B$11:$B$1000,'Enrollment Form'!$B240)>1,'Enrollment Form'!$H240<>\"\"),\"N\",\"Y\"))","v":""},{"$f":"IF($B233=\"N\",\"\",IF(LEN('Enrollment Form'!$Y240)=0,\"\",IF(LEN('Enrollment Form'!$Y240)<>5,\"N\",\"Y\")))","v":""},{"$f":"IF($B233=\"N\",\"\",IF(LEN('Enrollment Form'!$AD240=0),\"\",IF(LEN('Enrollment Form'!$AD240)<>5,\"N\",\"Y\")))","v":""},{"$f":"IF($B233=\"N\",\"\",IF(LEN('Enrollment Form'!$BL240=0),\"\",IF(LEN('Enrollment Form'!$BL240)<>5,\"N\",\"Y\")))","v":""},{"$f":"IF($B233=\"N\",\"\",IF(LEN('Enrollment Form'!$AE240)=0,\"\",IF(LEN('Enrollment Form'!$AE240)<>10,\"N\",\"Y\")))","v":""},{"$f":"IF($B233=\"N\",\"\",IF(LEN('Enrollment Form'!$AF240)=0,\"\",IF(LEN('Enrollment Form'!$AF240)<>10,\"N\",\"Y\")))","v":""},{"$f":"IF('Enrollment Form'!$O240<>\"Graded\",\"-\",IF(AND('Enrollment Form'!$O240=\"Graded\",'Enrollment Form'!$AO240<>\"\"),\"Y\",\"N\"))","v":"-"},{"$f":"IF($B233=\"N\",\"\",IF(OR('Enrollment Form'!$B240<>\"Subscriber\",'Enrollment Form'!$C240=\"ROC\"),\"-\",IF(AND('Enrollment Form'!$B240=\"Subscriber\",'Enrollment Form'!$C240=\"Enroll\",'Enrollment Form'!$AJ240<>\"\"),\"Y\",\"N\")))","v":""},{"$f":"IF($B233=\"N\",\"\",IF(OR('Enrollment Form'!$B240<>\"Subscriber\",'Enrollment Form'!$C240=\"ROC\"),\"-\",IF(AND('Enrollment Form'!$B240=\"Subscriber\",'Enrollment Form'!$C240=\"Enroll\",'Enrollment Form'!$AK240<>\"\"),\"Y\",\"N\")))","v":""},{"$f":"IF($B233=\"N\",\"\",IF(OR('Enrollment Form'!$B240<>\"Subscriber\",'Enrollment Form'!$C240=\"ROC\"),\"-\",IF(AND('Enrollment Form'!$B240=\"Subscriber\",'Enrollment Form'!$C240=\"Enroll\",'Enrollment Form'!$AL240<>\"\"),\"Y\",\"N\")))","v":""},{"$f":"IF($B233=\"N\",\"\",IF(OR('Enrollment Form'!$B240<>\"Subscriber\",'Enrollment Form'!$C240=\"ROC\"),\"-\",IF(AND('Enrollment Form'!$B240=\"Subscriber\",'Enrollment Form'!$C240=\"Enroll\",'Enrollment Form'!$AM240<>\"\"),\"Y\",\"N\")))","v":""},{"$f":"IF($B233=\"N\",\"\",IF(OR('Enrollment Form'!$B240<>\"Subscriber\",'Enrollment Form'!$C240=\"ROC\"),\"-\",IF(AND('Enrollment Form'!$B240=\"Subscriber\",'Enrollment Form'!$C240=\"Enroll\",'Enrollment Form'!$AN240<>\"\"),\"Y\",\"N\")))","v":""},{"$f":"IF($B233=\"N\",\"\",IF(OR('Enrollment Form'!$B240<>\"Subscriber\",'Enrollment Form'!$C240=\"ROC\"),\"-\",IF(AND('Enrollment Form'!$B240=\"Subscriber\",'Enrollment Form'!$C240=\"Enroll\",'Enrollment Form'!$AP240<>\"\"),\"Y\",\"N\")))","v":""},{"$f":"IF($B233=\"N\",\"\",IF($Q233=\"-\",\"-\",IF(AND($Q233=\"Y\",'Enrollment Form'!$AP240=\"No\"),\"-\",IF(AND($Q233=\"Y\",'Enrollment Form'!$AP240=\"Yes\",'Enrollment Form'!$AQ240<>\"\"),\"Y\",\"N\"))))","v":""},{"$f":"IF($B233=\"N\",\"\",IF(OR('Enrollment Form'!$B240<>\"Subscriber\",'Enrollment Form'!$C240=\"ROC\"),\"-\",IF(AND('Enrollment Form'!$B240=\"Subscriber\",'Enrollment Form'!$C240=\"Enroll\",'Enrollment Form'!$CO240<>\"\"),\"Y\",\"N\")))","v":""},{"$f":"IF($B233=\"N\",\"\",IF($S233=\"-\",\"-\",IF(AND($S233=\"Y\",'Enrollment Form'!$CO240=\"No\"),\"-\",IF(AND($S233=\"Y\",'Enrollment Form'!$CO240=\"Yes\",'Enrollment Form'!$CP240<>\"\"),\"Y\",\"N\"))))","v":""},{"$f":"IF(OR('Enrollment Form'!$AV240=\"Yes\",'Enrollment Form'!$AV240=\"\"),\"-\",IF(AND('Enrollment Form'!$AV240=\"No\",ISERROR(FIND(\"HMO\",VLOOKUP('Enrollment Form'!G240,'Enrollment Form'!H$11:J$1000,3,FALSE),1))=FALSE,COUNTA('Enrollment Form'!$AW240:$AZ240)=4),\"Y\",\"N\"))","v":"-"},{"$f":"IF($B233=\"N\",\"\",IF('Enrollment Form'!$B240=\"Subscriber\",\"-\",IF(COUNTA('Enrollment Form'!$BE240,'Enrollment Form'!$BG240)=2,\"Y\",\"N\")))","v":""},{"$f":"IF($B233=\"N\",\"\",IF(OR('Enrollment Form'!$AU240=\"\",'Enrollment Form'!$AU240=\"No\"),\"-\",IF(AND('Enrollment Form'!$AU240=\"Yes\",COUNTA('Enrollment Form'!$CK240)=1),\"Y\",\"N\")))","v":""},{"$f":"IF(OR('Enrollment Form'!$CK240=\"\",'Enrollment Form'!$CK240=\"No\"),\"-\",IF(COUNTA('Enrollment Form'!$CM240:$CN240)=2,\"Y\",\"N\"))","v":"-"},{"$f":"IF($B233=\"N\",\"\",IF(COUNTIF('Enrollment Form'!$CZ240:$DO240,\"Other\")=COUNTA('Enrollment Form'!$DF240,'Enrollment Form'!$DA240,'Enrollment Form'!$DK240,'Enrollment Form'!$DP240),\"Y\",\"N\"))","v":""},{"$f":"IF($B233=\"N\",\"\",IF(OR('Enrollment Form'!B240<>\"Subscriber\",'Enrollment Form'!C240=\"ROC\",COUNTIF('Enrollment Form'!AS240:AT240,\"Yes\")>=1),\"-\",IF(AND('Enrollment Form'!C240=\"Enroll\",COUNTIF('Enrollment Form'!AS240:AT240,\"No\")=2,'Enrollment Form'!AU240=\"\"),\"N\",\"Y\")))","v":""},{"$f":"IF(OR(B233=\"N\",'Enrollment Form'!B240<>\"Subscriber\",'Enrollment Form'!C240=\"ROC\",'Enrollment Form'!O240<>\"Multiple of Salary\"),\"-\",IF(COUNTA('Enrollment Form'!T240:U240)<2,\"N\",\"Y\"))","v":"-"},{"$f":"IF(B233=\"N\",\"\",IF(OR('Enrollment Form'!C240=\"ROC\",'Enrollment Form'!B240<>\"Subscriber\",'Enrollment Form'!O240=\"Waive\",'Enrollment Form'!O240=\"\"),\"-\",IF('Enrollment Form'!P240=\"\",\"N\",\"Y\")))","v":""},{"$f":"IF($B233=\"N\",\"\",IF(AND('Enrollment Form'!$C240=\"ROC\",'Enrollment Form'!$DS240<>\"\"),\"Y\",IF(AND('Enrollment Form'!$C240=\"ROC\",'Enrollment Form'!$DS240=\"\"),\"N\",IF(AND('Enrollment Form'!$C240=\"Enroll\",'Enrollment Form'!$B240=\"Subscriber\",'Enrollment Form'!$CQ240=\"No\",'Enrollment Form'!$DS240=\"\"),\"N\",IF(AND('Enrollment Form'!$C240=\"Enroll\",'Enrollment Form'!$B240=\"Subscriber\",'Enrollment Form'!$CQ240=\"Yes\"),\"-\",\"Y\")))))","v":""},{"$f":"IF($B233=\"N\",\"\",IF(AND('Enrollment Form'!$C240=\"ROC\",'Enrollment Form'!$DT240<>\"\"),\"Y\",IF(AND('Enrollment Form'!$C240=\"ROC\",'Enrollment Form'!$DT240=\"\"),\"N\",IF(AND('Enrollment Form'!$C240=\"Enroll\",'Enrollment Form'!$B240=\"Subscriber\",'Enrollment Form'!$CQ240=\"No\",'Enrollment Form'!$DT240=\"\"),\"N\",IF(AND('Enrollment Form'!$C240=\"Enroll\",'Enrollment Form'!$B240=\"Subscriber\",'Enrollment Form'!$CQ240=\"Yes\"),\"-\",\"Y\")))))","v":""},{"$f":"IF('Enrollment Form'!AH240=\"\",\"\",IF(ISERROR(SEARCH(\".\",'Enrollment Form'!AH240,SEARCH(\"@\",'Enrollment Form'!AH240))),\"N\",\"Y\"))","v":""},{"$f":"IF(OR($B233=\"N\",'Enrollment Form'!$G240=\"\"),\"\",IF('Enrollment Form'!$B240<>\"Subscriber\",\"-\",IF(COUNTIF('Enrollment Form'!$AS240:$AT240,\"Yes\")=2,\"N\",\"Y\")))","v":""},{"$f":"IF(OR('Enrollment Form'!$CC240=\"\",'Enrollment Form'!$CC240=\"No\"),\"-\",IF(AND('Enrollment Form'!$CC240=\"Yes\",'Enrollment Form'!$CD240=\"\"),\"N\",\"Y\"))","v":"-"},{"$f":"IF(OR('Enrollment Form'!$CE240=\"\",'Enrollment Form'!$CE240=\"No\"),\"-\",IF(AND('Enrollment Form'!$CE240=\"Yes\",'Enrollment Form'!$CF240=\"\"),\"N\",\"Y\"))","v":"-"},{"$f":"IF(OR('Enrollment Form'!$CG240=\"\",'Enrollment Form'!$CG240=\"No\"),\"-\",IF(AND('Enrollment Form'!$CG240=\"Yes\",'Enrollment Form'!$CH240=\"\"),\"N\",\"Y\"))","v":"-"},{"$f":"IF(OR('Enrollment Form'!$CG240=\"\",'Enrollment Form'!$CG240=\"No\"),\"-\",IF(AND('Enrollment Form'!$CG240=\"Yes\",'Enrollment Form'!$CI240=\"\"),\"N\",\"Y\"))","v":"-"},{"$f":"IF('Enrollment Form'!B240<>\"Subscriber\",\"-\",IF(AND('Enrollment Form'!B240=\"Subscriber\",'Enrollment Form'!C240=\"Enroll\",'Enrollment Form'!AA240=\"\"),\"N\",\"Y\"))","v":"-"},{"$f":"IF(OR('Enrollment Form'!B240=\"Subscriber\",'Enrollment Form'!B240=\"\"),\"-\",IF('Enrollment Form'!BI240=\"\",\"N\",\"Y\"))","v":"-"},{"$f":"IF('Enrollment Form'!B240<>\"Subscriber\",\"-\",IF(AND('Enrollment Form'!B240=\"Subscriber\",'Enrollment Form'!G240=\"\"),\"N\",\"Y\"))","v":"-"},{"$f":"IF('Enrollment Form'!A240=\"\",\"\",IF('Enrollment Form'!B240=\"Subscriber\",\"-\",IF(AND('Enrollment Form'!B240<>\"Subscriber\",'Enrollment Form'!G240='Enrollment Form'!H240),\"N\",\"Y\")))","v":""},0]
[241,{"$f":"IF('Enrollment Form'!$A241<>\"\",\"Y\",\"N\")","v":"N"},{"$f":"IF(AND('Enrollment Form'!$B241=\"\",'Enrollment Form'!$C241<>\"\"),\"N\",IF($B234=\"N\",\"\",\"Y\"))","v":""},{"$f":"IF(OR($B234=\"N\",'Enrollment Form'!G241=\"\"),\"\",IF('Enrollment Form'!$B241<>\"Subscriber\",\"\",IF('Enrollment Form'!$G241='Enrollment Form'!$H241,\"Y\",\"N\")))","v":""},{"$f":"IF($B234=\"N\",\"\",IF(AND(COUNTIFS('Enrollment Form'!$H$11:$H$1000,'Enrollment Form'!$H241,'Enrollment Form'!$B$11:$B$1000,'Enrollment Form'!$B241)>1,'Enrollment Form'!$H241<>\"\"),\"N\",\"Y\"))","v":""},{"$f":"IF($B234=\"N\",\"\",IF(LEN('Enrollment Form'!$Y241)=0,\"\",IF(LEN('Enrollment Form'!$Y241)<>5,\"N\",\"Y\")))","v":""},{"$f":"IF($B234=\"N\",\"\",IF(LEN('Enrollment Form'!$AD241=0),\"\",IF(LEN('Enrollment Form'!$AD241)<>5,\"N\",\"Y\")))","v":""},{"$f":"IF($B234=\"N\",\"\",IF(LEN('Enrollment Form'!$BL241=0),\"\",IF(LEN('Enrollment Form'!$BL241)<>5,\"N\",\"Y\")))","v":""},{"$f":"IF($B234=\"N\",\"\",IF(LEN('Enrollment Form'!$AE241)=0,\"\",IF(LEN('Enrollment Form'!$AE241)<>10,\"N\",\"Y\")))","v":""},{"$f":"IF($B234=\"N\",\"\",IF(LEN('Enrollment Form'!$AF241)=0,\"\",IF(LEN('Enrollment Form'!$AF241)<>10,\"N\",\"Y\")))","v":""},{"$f":"IF('Enrollment Form'!$O241<>\"Graded\",\"-\",IF(AND('Enrollment Form'!$O241=\"Graded\",'Enrollment Form'!$AO241<>\"\"),\"Y\",\"N\"))","v":"-"},{"$f":"IF($B234=\"N\",\"\",IF(OR('Enrollment Form'!$B241<>\"Subscriber\",'Enrollment Form'!$C241=\"ROC\"),\"-\",IF(AND('Enrollment Form'!$B241=\"Subscriber\",'Enrollment Form'!$C241=\"Enroll\",'Enrollment Form'!$AJ241<>\"\"),\"Y\",\"N\")))","v":""},{"$f":"IF($B234=\"N\",\"\",IF(OR('Enrollment Form'!$B241<>\"Subscriber\",'Enrollment Form'!$C241=\"ROC\"),\"-\",IF(AND('Enrollment Form'!$B241=\"Subscriber\",'Enrollment Form'!$C241=\"Enroll\",'Enrollment Form'!$AK241<>\"\"),\"Y\",\"N\")))","v":""},{"$f":"IF($B234=\"N\",\"\",IF(OR('Enrollment Form'!$B241<>\"Subscriber\",'Enrollment Form'!$C241=\"ROC\"),\"-\",IF(AND('Enrollment Form'!$B241=\"Subscriber\",'Enrollment Form'!$C241=\"Enroll\",'Enrollment Form'!$AL241<>\"\"),\"Y\",\"N\")))","v":""},{"$f":"IF($B234=\"N\",\"\",IF(OR('Enrollment Form'!$B241<>\"Subscriber\",'Enrollment Form'!$C241=\"ROC\"),\"-\",IF(AND('Enrollment Form'!$B241=\"Subscriber\",'Enrollment Form'!$C241=\"Enroll\",'Enrollment Form'!$AM241<>\"\"),\"Y\",\"N\")))","v":""},{"$f":"IF($B234=\"N\",\"\",IF(OR('Enrollment Form'!$B241<>\"Subscriber\",'Enrollment Form'!$C241=\"ROC\"),\"-\",IF(AND('Enrollment Form'!$B241=\"Subscriber\",'Enrollment Form'!$C241=\"Enroll\",'Enrollment Form'!$AN241<>\"\"),\"Y\",\"N\")))","v":""},{"$f":"IF($B234=\"N\",\"\",IF(OR('Enrollment Form'!$B241<>\"Subscriber\",'Enrollment Form'!$C241=\"ROC\"),\"-\",IF(AND('Enrollment Form'!$B241=\"Subscriber\",'Enrollment Form'!$C241=\"Enroll\",'Enrollment Form'!$AP241<>\"\"),\"Y\",\"N\")))","v":""},{"$f":"IF($B234=\"N\",\"\",IF($Q234=\"-\",\"-\",IF(AND($Q234=\"Y\",'Enrollment Form'!$AP241=\"No\"),\"-\",IF(AND($Q234=\"Y\",'Enrollment Form'!$AP241=\"Yes\",'Enrollment Form'!$AQ241<>\"\"),\"Y\",\"N\"))))","v":""},{"$f":"IF($B234=\"N\",\"\",IF(OR('Enrollment Form'!$B241<>\"Subscriber\",'Enrollment Form'!$C241=\"ROC\"),\"-\",IF(AND('Enrollment Form'!$B241=\"Subscriber\",'Enrollment Form'!$C241=\"Enroll\",'Enrollment Form'!$CO241<>\"\"),\"Y\",\"N\")))","v":""},{"$f":"IF($B234=\"N\",\"\",IF($S234=\"-\",\"-\",IF(AND($S234=\"Y\",'Enrollment Form'!$CO241=\"No\"),\"-\",IF(AND($S234=\"Y\",'Enrollment Form'!$CO241=\"Yes\",'Enrollment Form'!$CP241<>\"\"),\"Y\",\"N\"))))","v":""},{"$f":"IF(OR('Enrollment Form'!$AV241=\"Yes\",'Enrollment Form'!$AV241=\"\"),\"-\",IF(AND('Enrollment Form'!$AV241=\"No\",ISERROR(FIND(\"HMO\",VLOOKUP('Enrollment Form'!G241,'Enrollment Form'!H$11:J$1000,3,FALSE),1))=FALSE,COUNTA('Enrollment Form'!$AW241:$AZ241)=4),\"Y\",\"N\"))","v":"-"},{"$f":"IF($B234=\"N\",\"\",IF('Enrollment Form'!$B241=\"Subscriber\",\"-\",IF(COUNTA('Enrollment Form'!$BE241,'Enrollment Form'!$BG241)=2,\"Y\",\"N\")))","v":""},{"$f":"IF($B234=\"N\",\"\",IF(OR('Enrollment Form'!$AU241=\"\",'Enrollment Form'!$AU241=\"No\"),\"-\",IF(AND('Enrollment Form'!$AU241=\"Yes\",COUNTA('Enrollment Form'!$CK241)=1),\"Y\",\"N\")))","v":""},{"$f":"IF(OR('Enrollment Form'!$CK241=\"\",'Enrollment Form'!$CK241=\"No\"),\"-\",IF(COUNTA('Enrollment Form'!$CM241:$CN241)=2,\"Y\",\"N\"))","v":"-"},{"$f":"IF($B234=\"N\",\"\",IF(COUNTIF('Enrollment Form'!$CZ241:$DO241,\"Other\")=COUNTA('Enrollment Form'!$DF241,'Enrollment Form'!$DA241,'Enrollment Form'!$DK241,'Enrollment Form'!$DP241),\"Y\",\"N\"))","v":""},{"$f":"IF($B234=\"N\",\"\",IF(OR('Enrollment Form'!B241<>\"Subscriber\",'Enrollment Form'!C241=\"ROC\",COUNTIF('Enrollment Form'!AS241:AT241,\"Yes\")>=1),\"-\",IF(AND('Enrollment Form'!C241=\"Enroll\",COUNTIF('Enrollment Form'!AS241:AT241,\"No\")=2,'Enrollment Form'!AU241=\"\"),\"N\",\"Y\")))","v":""},{"$f":"IF(OR(B234=\"N\",'Enrollment Form'!B241<>\"Subscriber\",'Enrollment Form'!C241=\"ROC\",'Enrollment Form'!O241<>\"Multiple of Salary\"),\"-\",IF(COUNTA('Enrollment Form'!T241:U241)<2,\"N\",\"Y\"))","v":"-"},{"$f":"IF(B234=\"N\",\"\",IF(OR('Enrollment Form'!C241=\"ROC\",'Enrollment Form'!B241<>\"Subscriber\",'Enrollment Form'!O241=\"Waive\",'Enrollment Form'!O241=\"\"),\"-\",IF('Enrollment Form'!P241=\"\",\"N\",\"Y\")))","v":""},{"$f":"IF($B234=\"N\",\"\",IF(AND('Enrollment Form'!$C241=\"ROC\",'Enrollment Form'!$DS241<>\"\"),\"Y\",IF(AND('Enrollment Form'!$C241=\"ROC\",'Enrollment Form'!$DS241=\"\"),\"N\",IF(AND('Enrollment Form'!$C241=\"Enroll\",'Enrollment Form'!$B241=\"Subscriber\",'Enrollment Form'!$CQ241=\"No\",'Enrollment Form'!$DS241=\"\"),\"N\",IF(AND('Enrollment Form'!$C241=\"Enroll\",'Enrollment Form'!$B241=\"Subscriber\",'Enrollment Form'!$CQ241=\"Yes\"),\"-\",\"Y\")))))","v":""},{"$f":"IF($B234=\"N\",\"\",IF(AND('Enrollment Form'!$C241=\"ROC\",'Enrollment Form'!$DT241<>\"\"),\"Y\",IF(AND('Enrollment Form'!$C241=\"ROC\",'Enrollment Form'!$DT241=\"\"),\"N\",IF(AND('Enrollment Form'!$C241=\"Enroll\",'Enrollment Form'!$B241=\"Subscriber\",'Enrollment Form'!$CQ241=\"No\",'Enrollment Form'!$DT241=\"\"),\"N\",IF(AND('Enrollment Form'!$C241=\"Enroll\",'Enrollment Form'!$B241=\"Subscriber\",'Enrollment Form'!$CQ241=\"Yes\"),\"-\",\"Y\")))))","v":""},{"$f":"IF('Enrollment Form'!AH241=\"\",\"\",IF(ISERROR(SEARCH(\".\",'Enrollment Form'!AH241,SEARCH(\"@\",'Enrollment Form'!AH241))),\"N\",\"Y\"))","v":""},{"$f":"IF(OR($B234=\"N\",'Enrollment Form'!$G241=\"\"),\"\",IF('Enrollment Form'!$B241<>\"Subscriber\",\"-\",IF(COUNTIF('Enrollment Form'!$AS241:$AT241,\"Yes\")=2,\"N\",\"Y\")))","v":""},{"$f":"IF(OR('Enrollment Form'!$CC241=\"\",'Enrollment Form'!$CC241=\"No\"),\"-\",IF(AND('Enrollment Form'!$CC241=\"Yes\",'Enrollment Form'!$CD241=\"\"),\"N\",\"Y\"))","v":"-"},{"$f":"IF(OR('Enrollment Form'!$CE241=\"\",'Enrollment Form'!$CE241=\"No\"),\"-\",IF(AND('Enrollment Form'!$CE241=\"Yes\",'Enrollment Form'!$CF241=\"\"),\"N\",\"Y\"))","v":"-"},{"$f":"IF(OR('Enrollment Form'!$CG241=\"\",'Enrollment Form'!$CG241=\"No\"),\"-\",IF(AND('Enrollment Form'!$CG241=\"Yes\",'Enrollment Form'!$CH241=\"\"),\"N\",\"Y\"))","v":"-"},{"$f":"IF(OR('Enrollment Form'!$CG241=\"\",'Enrollment Form'!$CG241=\"No\"),\"-\",IF(AND('Enrollment Form'!$CG241=\"Yes\",'Enrollment Form'!$CI241=\"\"),\"N\",\"Y\"))","v":"-"},{"$f":"IF('Enrollment Form'!B241<>\"Subscriber\",\"-\",IF(AND('Enrollment Form'!B241=\"Subscriber\",'Enrollment Form'!C241=\"Enroll\",'Enrollment Form'!AA241=\"\"),\"N\",\"Y\"))","v":"-"},{"$f":"IF(OR('Enrollment Form'!B241=\"Subscriber\",'Enrollment Form'!B241=\"\"),\"-\",IF('Enrollment Form'!BI241=\"\",\"N\",\"Y\"))","v":"-"},{"$f":"IF('Enrollment Form'!B241<>\"Subscriber\",\"-\",IF(AND('Enrollment Form'!B241=\"Subscriber\",'Enrollment Form'!G241=\"\"),\"N\",\"Y\"))","v":"-"},{"$f":"IF('Enrollment Form'!A241=\"\",\"\",IF('Enrollment Form'!B241=\"Subscriber\",\"-\",IF(AND('Enrollment Form'!B241<>\"Subscriber\",'Enrollment Form'!G241='Enrollment Form'!H241),\"N\",\"Y\")))","v":""},0]
[242,{"$f":"IF('Enrollment Form'!$A242<>\"\",\"Y\",\"N\")","v":"N"},{"$f":"IF(AND('Enrollment Form'!$B242=\"\",'Enrollment Form'!$C242<>\"\"),\"N\",IF($B235=\"N\",\"\",\"Y\"))","v":""},{"$f":"IF(OR($B235=\"N\",'Enrollment Form'!G242=\"\"),\"\",IF('Enrollment Form'!$B242<>\"Subscriber\",\"\",IF('Enrollment Form'!$G242='Enrollment Form'!$H242,\"Y\",\"N\")))","v":""},{"$f":"IF($B235=\"N\",\"\",IF(AND(COUNTIFS('Enrollment Form'!$H$11:$H$1000,'Enrollment Form'!$H242,'Enrollment Form'!$B$11:$B$1000,'Enrollment Form'!$B242)>1,'Enrollment Form'!$H242<>\"\"),\"N\",\"Y\"))","v":""},{"$f":"IF($B235=\"N\",\"\",IF(LEN('Enrollment Form'!$Y242)=0,\"\",IF(LEN('Enrollment Form'!$Y242)<>5,\"N\",\"Y\")))","v":""},{"$f":"IF($B235=\"N\",\"\",IF(LEN('Enrollment Form'!$AD242=0),\"\",IF(LEN('Enrollment Form'!$AD242)<>5,\"N\",\"Y\")))","v":""},{"$f":"IF($B235=\"N\",\"\",IF(LEN('Enrollment Form'!$BL242=0),\"\",IF(LEN('Enrollment Form'!$BL242)<>5,\"N\",\"Y\")))","v":""},{"$f":"IF($B235=\"N\",\"\",IF(LEN('Enrollment Form'!$AE242)=0,\"\",IF(LEN('Enrollment Form'!$AE242)<>10,\"N\",\"Y\")))","v":""},{"$f":"IF($B235=\"N\",\"\",IF(LEN('Enrollment Form'!$AF242)=0,\"\",IF(LEN('Enrollment Form'!$AF242)<>10,\"N\",\"Y\")))","v":""},{"$f":"IF('Enrollment Form'!$O242<>\"Graded\",\"-\",IF(AND('Enrollment Form'!$O242=\"Graded\",'Enrollment Form'!$AO242<>\"\"),\"Y\",\"N\"))","v":"-"},{"$f":"IF($B235=\"N\",\"\",IF(OR('Enrollment Form'!$B242<>\"Subscriber\",'Enrollment Form'!$C242=\"ROC\"),\"-\",IF(AND('Enrollment Form'!$B242=\"Subscriber\",'Enrollment Form'!$C242=\"Enroll\",'Enrollment Form'!$AJ242<>\"\"),\"Y\",\"N\")))","v":""},{"$f":"IF($B235=\"N\",\"\",IF(OR('Enrollment Form'!$B242<>\"Subscriber\",'Enrollment Form'!$C242=\"ROC\"),\"-\",IF(AND('Enrollment Form'!$B242=\"Subscriber\",'Enrollment Form'!$C242=\"Enroll\",'Enrollment Form'!$AK242<>\"\"),\"Y\",\"N\")))","v":""},{"$f":"IF($B235=\"N\",\"\",IF(OR('Enrollment Form'!$B242<>\"Subscriber\",'Enrollment Form'!$C242=\"ROC\"),\"-\",IF(AND('Enrollment Form'!$B242=\"Subscriber\",'Enrollment Form'!$C242=\"Enroll\",'Enrollment Form'!$AL242<>\"\"),\"Y\",\"N\")))","v":""},{"$f":"IF($B235=\"N\",\"\",IF(OR('Enrollment Form'!$B242<>\"Subscriber\",'Enrollment Form'!$C242=\"ROC\"),\"-\",IF(AND('Enrollment Form'!$B242=\"Subscriber\",'Enrollment Form'!$C242=\"Enroll\",'Enrollment Form'!$AM242<>\"\"),\"Y\",\"N\")))","v":""},{"$f":"IF($B235=\"N\",\"\",IF(OR('Enrollment Form'!$B242<>\"Subscriber\",'Enrollment Form'!$C242=\"ROC\"),\"-\",IF(AND('Enrollment Form'!$B242=\"Subscriber\",'Enrollment Form'!$C242=\"Enroll\",'Enrollment Form'!$AN242<>\"\"),\"Y\",\"N\")))","v":""},{"$f":"IF($B235=\"N\",\"\",IF(OR('Enrollment Form'!$B242<>\"Subscriber\",'Enrollment Form'!$C242=\"ROC\"),\"-\",IF(AND('Enrollment Form'!$B242=\"Subscriber\",'Enrollment Form'!$C242=\"Enroll\",'Enrollment Form'!$AP242<>\"\"),\"Y\",\"N\")))","v":""},{"$f":"IF($B235=\"N\",\"\",IF($Q235=\"-\",\"-\",IF(AND($Q235=\"Y\",'Enrollment Form'!$AP242=\"No\"),\"-\",IF(AND($Q235=\"Y\",'Enrollment Form'!$AP242=\"Yes\",'Enrollment Form'!$AQ242<>\"\"),\"Y\",\"N\"))))","v":""},{"$f":"IF($B235=\"N\",\"\",IF(OR('Enrollment Form'!$B242<>\"Subscriber\",'Enrollment Form'!$C242=\"ROC\"),\"-\",IF(AND('Enrollment Form'!$B242=\"Subscriber\",'Enrollment Form'!$C242=\"Enroll\",'Enrollment Form'!$CO242<>\"\"),\"Y\",\"N\")))","v":""},{"$f":"IF($B235=\"N\",\"\",IF($S235=\"-\",\"-\",IF(AND($S235=\"Y\",'Enrollment Form'!$CO242=\"No\"),\"-\",IF(AND($S235=\"Y\",'Enrollment Form'!$CO242=\"Yes\",'Enrollment Form'!$CP242<>\"\"),\"Y\",\"N\"))))","v":""},{"$f":"IF(OR('Enrollment Form'!$AV242=\"Yes\",'Enrollment Form'!$AV242=\"\"),\"-\",IF(AND('Enrollment Form'!$AV242=\"No\",ISERROR(FIND(\"HMO\",VLOOKUP('Enrollment Form'!G242,'Enrollment Form'!H$11:J$1000,3,FALSE),1))=FALSE,COUNTA('Enrollment Form'!$AW242:$AZ242)=4),\"Y\",\"N\"))","v":"-"},{"$f":"IF($B235=\"N\",\"\",IF('Enrollment Form'!$B242=\"Subscriber\",\"-\",IF(COUNTA('Enrollment Form'!$BE242,'Enrollment Form'!$BG242)=2,\"Y\",\"N\")))","v":""},{"$f":"IF($B235=\"N\",\"\",IF(OR('Enrollment Form'!$AU242=\"\",'Enrollment Form'!$AU242=\"No\"),\"-\",IF(AND('Enrollment Form'!$AU242=\"Yes\",COUNTA('Enrollment Form'!$CK242)=1),\"Y\",\"N\")))","v":""},{"$f":"IF(OR('Enrollment Form'!$CK242=\"\",'Enrollment Form'!$CK242=\"No\"),\"-\",IF(COUNTA('Enrollment Form'!$CM242:$CN242)=2,\"Y\",\"N\"))","v":"-"},{"$f":"IF($B235=\"N\",\"\",IF(COUNTIF('Enrollment Form'!$CZ242:$DO242,\"Other\")=COUNTA('Enrollment Form'!$DF242,'Enrollment Form'!$DA242,'Enrollment Form'!$DK242,'Enrollment Form'!$DP242),\"Y\",\"N\"))","v":""},{"$f":"IF($B235=\"N\",\"\",IF(OR('Enrollment Form'!B242<>\"Subscriber\",'Enrollment Form'!C242=\"ROC\",COUNTIF('Enrollment Form'!AS242:AT242,\"Yes\")>=1),\"-\",IF(AND('Enrollment Form'!C242=\"Enroll\",COUNTIF('Enrollment Form'!AS242:AT242,\"No\")=2,'Enrollment Form'!AU242=\"\"),\"N\",\"Y\")))","v":""},{"$f":"IF(OR(B235=\"N\",'Enrollment Form'!B242<>\"Subscriber\",'Enrollment Form'!C242=\"ROC\",'Enrollment Form'!O242<>\"Multiple of Salary\"),\"-\",IF(COUNTA('Enrollment Form'!T242:U242)<2,\"N\",\"Y\"))","v":"-"},{"$f":"IF(B235=\"N\",\"\",IF(OR('Enrollment Form'!C242=\"ROC\",'Enrollment Form'!B242<>\"Subscriber\",'Enrollment Form'!O242=\"Waive\",'Enrollment Form'!O242=\"\"),\"-\",IF('Enrollment Form'!P242=\"\",\"N\",\"Y\")))","v":""},{"$f":"IF($B235=\"N\",\"\",IF(AND('Enrollment Form'!$C242=\"ROC\",'Enrollment Form'!$DS242<>\"\"),\"Y\",IF(AND('Enrollment Form'!$C242=\"ROC\",'Enrollment Form'!$DS242=\"\"),\"N\",IF(AND('Enrollment Form'!$C242=\"Enroll\",'Enrollment Form'!$B242=\"Subscriber\",'Enrollment Form'!$CQ242=\"No\",'Enrollment Form'!$DS242=\"\"),\"N\",IF(AND('Enrollment Form'!$C242=\"Enroll\",'Enrollment Form'!$B242=\"Subscriber\",'Enrollment Form'!$CQ242=\"Yes\"),\"-\",\"Y\")))))","v":""},{"$f":"IF($B235=\"N\",\"\",IF(AND('Enrollment Form'!$C242=\"ROC\",'Enrollment Form'!$DT242<>\"\"),\"Y\",IF(AND('Enrollment Form'!$C242=\"ROC\",'Enrollment Form'!$DT242=\"\"),\"N\",IF(AND('Enrollment Form'!$C242=\"Enroll\",'Enrollment Form'!$B242=\"Subscriber\",'Enrollment Form'!$CQ242=\"No\",'Enrollment Form'!$DT242=\"\"),\"N\",IF(AND('Enrollment Form'!$C242=\"Enroll\",'Enrollment Form'!$B242=\"Subscriber\",'Enrollment Form'!$CQ242=\"Yes\"),\"-\",\"Y\")))))","v":""},{"$f":"IF('Enrollment Form'!AH242=\"\",\"\",IF(ISERROR(SEARCH(\".\",'Enrollment Form'!AH242,SEARCH(\"@\",'Enrollment Form'!AH242))),\"N\",\"Y\"))","v":""},{"$f":"IF(OR($B235=\"N\",'Enrollment Form'!$G242=\"\"),\"\",IF('Enrollment Form'!$B242<>\"Subscriber\",\"-\",IF(COUNTIF('Enrollment Form'!$AS242:$AT242,\"Yes\")=2,\"N\",\"Y\")))","v":""},{"$f":"IF(OR('Enrollment Form'!$CC242=\"\",'Enrollment Form'!$CC242=\"No\"),\"-\",IF(AND('Enrollment Form'!$CC242=\"Yes\",'Enrollment Form'!$CD242=\"\"),\"N\",\"Y\"))","v":"-"},{"$f":"IF(OR('Enrollment Form'!$CE242=\"\",'Enrollment Form'!$CE242=\"No\"),\"-\",IF(AND('Enrollment Form'!$CE242=\"Yes\",'Enrollment Form'!$CF242=\"\"),\"N\",\"Y\"))","v":"-"},{"$f":"IF(OR('Enrollment Form'!$CG242=\"\",'Enrollment Form'!$CG242=\"No\"),\"-\",IF(AND('Enrollment Form'!$CG242=\"Yes\",'Enrollment Form'!$CH242=\"\"),\"N\",\"Y\"))","v":"-"},{"$f":"IF(OR('Enrollment Form'!$CG242=\"\",'Enrollment Form'!$CG242=\"No\"),\"-\",IF(AND('Enrollment Form'!$CG242=\"Yes\",'Enrollment Form'!$CI242=\"\"),\"N\",\"Y\"))","v":"-"},{"$f":"IF('Enrollment Form'!B242<>\"Subscriber\",\"-\",IF(AND('Enrollment Form'!B242=\"Subscriber\",'Enrollment Form'!C242=\"Enroll\",'Enrollment Form'!AA242=\"\"),\"N\",\"Y\"))","v":"-"},{"$f":"IF(OR('Enrollment Form'!B242=\"Subscriber\",'Enrollment Form'!B242=\"\"),\"-\",IF('Enrollment Form'!BI242=\"\",\"N\",\"Y\"))","v":"-"},{"$f":"IF('Enrollment Form'!B242<>\"Subscriber\",\"-\",IF(AND('Enrollment Form'!B242=\"Subscriber\",'Enrollment Form'!G242=\"\"),\"N\",\"Y\"))","v":"-"},{"$f":"IF('Enrollment Form'!A242=\"\",\"\",IF('Enrollment Form'!B242=\"Subscriber\",\"-\",IF(AND('Enrollment Form'!B242<>\"Subscriber\",'Enrollment Form'!G242='Enrollment Form'!H242),\"N\",\"Y\")))","v":""},0]
[243,{"$f":"IF('Enrollment Form'!$A243<>\"\",\"Y\",\"N\")","v":"N"},{"$f":"IF(AND('Enrollment Form'!$B243=\"\",'Enrollment Form'!$C243<>\"\"),\"N\",IF($B236=\"N\",\"\",\"Y\"))","v":""},{"$f":"IF(OR($B236=\"N\",'Enrollment Form'!G243=\"\"),\"\",IF('Enrollment Form'!$B243<>\"Subscriber\",\"\",IF('Enrollment Form'!$G243='Enrollment Form'!$H243,\"Y\",\"N\")))","v":""},{"$f":"IF($B236=\"N\",\"\",IF(AND(COUNTIFS('Enrollment Form'!$H$11:$H$1000,'Enrollment Form'!$H243,'Enrollment Form'!$B$11:$B$1000,'Enrollment Form'!$B243)>1,'Enrollment Form'!$H243<>\"\"),\"N\",\"Y\"))","v":""},{"$f":"IF($B236=\"N\",\"\",IF(LEN('Enrollment Form'!$Y243)=0,\"\",IF(LEN('Enrollment Form'!$Y243)<>5,\"N\",\"Y\")))","v":""},{"$f":"IF($B236=\"N\",\"\",IF(LEN('Enrollment Form'!$AD243=0),\"\",IF(LEN('Enrollment Form'!$AD243)<>5,\"N\",\"Y\")))","v":""},{"$f":"IF($B236=\"N\",\"\",IF(LEN('Enrollment Form'!$BL243=0),\"\",IF(LEN('Enrollment Form'!$BL243)<>5,\"N\",\"Y\")))","v":""},{"$f":"IF($B236=\"N\",\"\",IF(LEN('Enrollment Form'!$AE243)=0,\"\",IF(LEN('Enrollment Form'!$AE243)<>10,\"N\",\"Y\")))","v":""},{"$f":"IF($B236=\"N\",\"\",IF(LEN('Enrollment Form'!$AF243)=0,\"\",IF(LEN('Enrollment Form'!$AF243)<>10,\"N\",\"Y\")))","v":""},{"$f":"IF('Enrollment Form'!$O243<>\"Graded\",\"-\",IF(AND('Enrollment Form'!$O243=\"Graded\",'Enrollment Form'!$AO243<>\"\"),\"Y\",\"N\"))","v":"-"},{"$f":"IF($B236=\"N\",\"\",IF(OR('Enrollment Form'!$B243<>\"Subscriber\",'Enrollment Form'!$C243=\"ROC\"),\"-\",IF(AND('Enrollment Form'!$B243=\"Subscriber\",'Enrollment Form'!$C243=\"Enroll\",'Enrollment Form'!$AJ243<>\"\"),\"Y\",\"N\")))","v":""},{"$f":"IF($B236=\"N\",\"\",IF(OR('Enrollment Form'!$B243<>\"Subscriber\",'Enrollment Form'!$C243=\"ROC\"),\"-\",IF(AND('Enrollment Form'!$B243=\"Subscriber\",'Enrollment Form'!$C243=\"Enroll\",'Enrollment Form'!$AK243<>\"\"),\"Y\",\"N\")))","v":""},{"$f":"IF($B236=\"N\",\"\",IF(OR('Enrollment Form'!$B243<>\"Subscriber\",'Enrollment Form'!$C243=\"ROC\"),\"-\",IF(AND('Enrollment Form'!$B243=\"Subscriber\",'Enrollment Form'!$C243=\"Enroll\",'Enrollment Form'!$AL243<>\"\"),\"Y\",\"N\")))","v":""},{"$f":"IF($B236=\"N\",\"\",IF(OR('Enrollment Form'!$B243<>\"Subscriber\",'Enrollment Form'!$C243=\"ROC\"),\"-\",IF(AND('Enrollment Form'!$B243=\"Subscriber\",'Enrollment Form'!$C243=\"Enroll\",'Enrollment Form'!$AM243<>\"\"),\"Y\",\"N\")))","v":""},{"$f":"IF($B236=\"N\",\"\",IF(OR('Enrollment Form'!$B243<>\"Subscriber\",'Enrollment Form'!$C243=\"ROC\"),\"-\",IF(AND('Enrollment Form'!$B243=\"Subscriber\",'Enrollment Form'!$C243=\"Enroll\",'Enrollment Form'!$AN243<>\"\"),\"Y\",\"N\")))","v":""},{"$f":"IF($B236=\"N\",\"\",IF(OR('Enrollment Form'!$B243<>\"Subscriber\",'Enrollment Form'!$C243=\"ROC\"),\"-\",IF(AND('Enrollment Form'!$B243=\"Subscriber\",'Enrollment Form'!$C243=\"Enroll\",'Enrollment Form'!$AP243<>\"\"),\"Y\",\"N\")))","v":""},{"$f":"IF($B236=\"N\",\"\",IF($Q236=\"-\",\"-\",IF(AND($Q236=\"Y\",'Enrollment Form'!$AP243=\"No\"),\"-\",IF(AND($Q236=\"Y\",'Enrollment Form'!$AP243=\"Yes\",'Enrollment Form'!$AQ243<>\"\"),\"Y\",\"N\"))))","v":""},{"$f":"IF($B236=\"N\",\"\",IF(OR('Enrollment Form'!$B243<>\"Subscriber\",'Enrollment Form'!$C243=\"ROC\"),\"-\",IF(AND('Enrollment Form'!$B243=\"Subscriber\",'Enrollment Form'!$C243=\"Enroll\",'Enrollment Form'!$CO243<>\"\"),\"Y\",\"N\")))","v":""},{"$f":"IF($B236=\"N\",\"\",IF($S236=\"-\",\"-\",IF(AND($S236=\"Y\",'Enrollment Form'!$CO243=\"No\"),\"-\",IF(AND($S236=\"Y\",'Enrollment Form'!$CO243=\"Yes\",'Enrollment Form'!$CP243<>\"\"),\"Y\",\"N\"))))","v":""},{"$f":"IF(OR('Enrollment Form'!$AV243=\"Yes\",'Enrollment Form'!$AV243=\"\"),\"-\",IF(AND('Enrollment Form'!$AV243=\"No\",ISERROR(FIND(\"HMO\",VLOOKUP('Enrollment Form'!G243,'Enrollment Form'!H$11:J$1000,3,FALSE),1))=FALSE,COUNTA('Enrollment Form'!$AW243:$AZ243)=4),\"Y\",\"N\"))","v":"-"},{"$f":"IF($B236=\"N\",\"\",IF('Enrollment Form'!$B243=\"Subscriber\",\"-\",IF(COUNTA('Enrollment Form'!$BE243,'Enrollment Form'!$BG243)=2,\"Y\",\"N\")))","v":""},{"$f":"IF($B236=\"N\",\"\",IF(OR('Enrollment Form'!$AU243=\"\",'Enrollment Form'!$AU243=\"No\"),\"-\",IF(AND('Enrollment Form'!$AU243=\"Yes\",COUNTA('Enrollment Form'!$CK243)=1),\"Y\",\"N\")))","v":""},{"$f":"IF(OR('Enrollment Form'!$CK243=\"\",'Enrollment Form'!$CK243=\"No\"),\"-\",IF(COUNTA('Enrollment Form'!$CM243:$CN243)=2,\"Y\",\"N\"))","v":"-"},{"$f":"IF($B236=\"N\",\"\",IF(COUNTIF('Enrollment Form'!$CZ243:$DO243,\"Other\")=COUNTA('Enrollment Form'!$DF243,'Enrollment Form'!$DA243,'Enrollment Form'!$DK243,'Enrollment Form'!$DP243),\"Y\",\"N\"))","v":""},{"$f":"IF($B236=\"N\",\"\",IF(OR('Enrollment Form'!B243<>\"Subscriber\",'Enrollment Form'!C243=\"ROC\",COUNTIF('Enrollment Form'!AS243:AT243,\"Yes\")>=1),\"-\",IF(AND('Enrollment Form'!C243=\"Enroll\",COUNTIF('Enrollment Form'!AS243:AT243,\"No\")=2,'Enrollment Form'!AU243=\"\"),\"N\",\"Y\")))","v":""},{"$f":"IF(OR(B236=\"N\",'Enrollment Form'!B243<>\"Subscriber\",'Enrollment Form'!C243=\"ROC\",'Enrollment Form'!O243<>\"Multiple of Salary\"),\"-\",IF(COUNTA('Enrollment Form'!T243:U243)<2,\"N\",\"Y\"))","v":"-"},{"$f":"IF(B236=\"N\",\"\",IF(OR('Enrollment Form'!C243=\"ROC\",'Enrollment Form'!B243<>\"Subscriber\",'Enrollment Form'!O243=\"Waive\",'Enrollment Form'!O243=\"\"),\"-\",IF('Enrollment Form'!P243=\"\",\"N\",\"Y\")))","v":""},{"$f":"IF($B236=\"N\",\"\",IF(AND('Enrollment Form'!$C243=\"ROC\",'Enrollment Form'!$DS243<>\"\"),\"Y\",IF(AND('Enrollment Form'!$C243=\"ROC\",'Enrollment Form'!$DS243=\"\"),\"N\",IF(AND('Enrollment Form'!$C243=\"Enroll\",'Enrollment Form'!$B243=\"Subscriber\",'Enrollment Form'!$CQ243=\"No\",'Enrollment Form'!$DS243=\"\"),\"N\",IF(AND('Enrollment Form'!$C243=\"Enroll\",'Enrollment Form'!$B243=\"Subscriber\",'Enrollment Form'!$CQ243=\"Yes\"),\"-\",\"Y\")))))","v":""},{"$f":"IF($B236=\"N\",\"\",IF(AND('Enrollment Form'!$C243=\"ROC\",'Enrollment Form'!$DT243<>\"\"),\"Y\",IF(AND('Enrollment Form'!$C243=\"ROC\",'Enrollment Form'!$DT243=\"\"),\"N\",IF(AND('Enrollment Form'!$C243=\"Enroll\",'Enrollment Form'!$B243=\"Subscriber\",'Enrollment Form'!$CQ243=\"No\",'Enrollment Form'!$DT243=\"\"),\"N\",IF(AND('Enrollment Form'!$C243=\"Enroll\",'Enrollment Form'!$B243=\"Subscriber\",'Enrollment Form'!$CQ243=\"Yes\"),\"-\",\"Y\")))))","v":""},{"$f":"IF('Enrollment Form'!AH243=\"\",\"\",IF(ISERROR(SEARCH(\".\",'Enrollment Form'!AH243,SEARCH(\"@\",'Enrollment Form'!AH243))),\"N\",\"Y\"))","v":""},{"$f":"IF(OR($B236=\"N\",'Enrollment Form'!$G243=\"\"),\"\",IF('Enrollment Form'!$B243<>\"Subscriber\",\"-\",IF(COUNTIF('Enrollment Form'!$AS243:$AT243,\"Yes\")=2,\"N\",\"Y\")))","v":""},{"$f":"IF(OR('Enrollment Form'!$CC243=\"\",'Enrollment Form'!$CC243=\"No\"),\"-\",IF(AND('Enrollment Form'!$CC243=\"Yes\",'Enrollment Form'!$CD243=\"\"),\"N\",\"Y\"))","v":"-"},{"$f":"IF(OR('Enrollment Form'!$CE243=\"\",'Enrollment Form'!$CE243=\"No\"),\"-\",IF(AND('Enrollment Form'!$CE243=\"Yes\",'Enrollment Form'!$CF243=\"\"),\"N\",\"Y\"))","v":"-"},{"$f":"IF(OR('Enrollment Form'!$CG243=\"\",'Enrollment Form'!$CG243=\"No\"),\"-\",IF(AND('Enrollment Form'!$CG243=\"Yes\",'Enrollment Form'!$CH243=\"\"),\"N\",\"Y\"))","v":"-"},{"$f":"IF(OR('Enrollment Form'!$CG243=\"\",'Enrollment Form'!$CG243=\"No\"),\"-\",IF(AND('Enrollment Form'!$CG243=\"Yes\",'Enrollment Form'!$CI243=\"\"),\"N\",\"Y\"))","v":"-"},{"$f":"IF('Enrollment Form'!B243<>\"Subscriber\",\"-\",IF(AND('Enrollment Form'!B243=\"Subscriber\",'Enrollment Form'!C243=\"Enroll\",'Enrollment Form'!AA243=\"\"),\"N\",\"Y\"))","v":"-"},{"$f":"IF(OR('Enrollment Form'!B243=\"Subscriber\",'Enrollment Form'!B243=\"\"),\"-\",IF('Enrollment Form'!BI243=\"\",\"N\",\"Y\"))","v":"-"},{"$f":"IF('Enrollment Form'!B243<>\"Subscriber\",\"-\",IF(AND('Enrollment Form'!B243=\"Subscriber\",'Enrollment Form'!G243=\"\"),\"N\",\"Y\"))","v":"-"},{"$f":"IF('Enrollment Form'!A243=\"\",\"\",IF('Enrollment Form'!B243=\"Subscriber\",\"-\",IF(AND('Enrollment Form'!B243<>\"Subscriber\",'Enrollment Form'!G243='Enrollment Form'!H243),\"N\",\"Y\")))","v":""},0]
[244,{"$f":"IF('Enrollment Form'!$A244<>\"\",\"Y\",\"N\")","v":"N"},{"$f":"IF(AND('Enrollment Form'!$B244=\"\",'Enrollment Form'!$C244<>\"\"),\"N\",IF($B237=\"N\",\"\",\"Y\"))","v":""},{"$f":"IF(OR($B237=\"N\",'Enrollment Form'!G244=\"\"),\"\",IF('Enrollment Form'!$B244<>\"Subscriber\",\"\",IF('Enrollment Form'!$G244='Enrollment Form'!$H244,\"Y\",\"N\")))","v":""},{"$f":"IF($B237=\"N\",\"\",IF(AND(COUNTIFS('Enrollment Form'!$H$11:$H$1000,'Enrollment Form'!$H244,'Enrollment Form'!$B$11:$B$1000,'Enrollment Form'!$B244)>1,'Enrollment Form'!$H244<>\"\"),\"N\",\"Y\"))","v":""},{"$f":"IF($B237=\"N\",\"\",IF(LEN('Enrollment Form'!$Y244)=0,\"\",IF(LEN('Enrollment Form'!$Y244)<>5,\"N\",\"Y\")))","v":""},{"$f":"IF($B237=\"N\",\"\",IF(LEN('Enrollment Form'!$AD244=0),\"\",IF(LEN('Enrollment Form'!$AD244)<>5,\"N\",\"Y\")))","v":""},{"$f":"IF($B237=\"N\",\"\",IF(LEN('Enrollment Form'!$BL244=0),\"\",IF(LEN('Enrollment Form'!$BL244)<>5,\"N\",\"Y\")))","v":""},{"$f":"IF($B237=\"N\",\"\",IF(LEN('Enrollment Form'!$AE244)=0,\"\",IF(LEN('Enrollment Form'!$AE244)<>10,\"N\",\"Y\")))","v":""},{"$f":"IF($B237=\"N\",\"\",IF(LEN('Enrollment Form'!$AF244)=0,\"\",IF(LEN('Enrollment Form'!$AF244)<>10,\"N\",\"Y\")))","v":""},{"$f":"IF('Enrollment Form'!$O244<>\"Graded\",\"-\",IF(AND('Enrollment Form'!$O244=\"Graded\",'Enrollment Form'!$AO244<>\"\"),\"Y\",\"N\"))","v":"-"},{"$f":"IF($B237=\"N\",\"\",IF(OR('Enrollment Form'!$B244<>\"Subscriber\",'Enrollment Form'!$C244=\"ROC\"),\"-\",IF(AND('Enrollment Form'!$B244=\"Subscriber\",'Enrollment Form'!$C244=\"Enroll\",'Enrollment Form'!$AJ244<>\"\"),\"Y\",\"N\")))","v":""},{"$f":"IF($B237=\"N\",\"\",IF(OR('Enrollment Form'!$B244<>\"Subscriber\",'Enrollment Form'!$C244=\"ROC\"),\"-\",IF(AND('Enrollment Form'!$B244=\"Subscriber\",'Enrollment Form'!$C244=\"Enroll\",'Enrollment Form'!$AK244<>\"\"),\"Y\",\"N\")))","v":""},{"$f":"IF($B237=\"N\",\"\",IF(OR('Enrollment Form'!$B244<>\"Subscriber\",'Enrollment Form'!$C244=\"ROC\"),\"-\",IF(AND('Enrollment Form'!$B244=\"Subscriber\",'Enrollment Form'!$C244=\"Enroll\",'Enrollment Form'!$AL244<>\"\"),\"Y\",\"N\")))","v":""},{"$f":"IF($B237=\"N\",\"\",IF(OR('Enrollment Form'!$B244<>\"Subscriber\",'Enrollment Form'!$C244=\"ROC\"),\"-\",IF(AND('Enrollment Form'!$B244=\"Subscriber\",'Enrollment Form'!$C244=\"Enroll\",'Enrollment Form'!$AM244<>\"\"),\"Y\",\"N\")))","v":""},{"$f":"IF($B237=\"N\",\"\",IF(OR('Enrollment Form'!$B244<>\"Subscriber\",'Enrollment Form'!$C244=\"ROC\"),\"-\",IF(AND('Enrollment Form'!$B244=\"Subscriber\",'Enrollment Form'!$C244=\"Enroll\",'Enrollment Form'!$AN244<>\"\"),\"Y\",\"N\")))","v":""},{"$f":"IF($B237=\"N\",\"\",IF(OR('Enrollment Form'!$B244<>\"Subscriber\",'Enrollment Form'!$C244=\"ROC\"),\"-\",IF(AND('Enrollment Form'!$B244=\"Subscriber\",'Enrollment Form'!$C244=\"Enroll\",'Enrollment Form'!$AP244<>\"\"),\"Y\",\"N\")))","v":""},{"$f":"IF($B237=\"N\",\"\",IF($Q237=\"-\",\"-\",IF(AND($Q237=\"Y\",'Enrollment Form'!$AP244=\"No\"),\"-\",IF(AND($Q237=\"Y\",'Enrollment Form'!$AP244=\"Yes\",'Enrollment Form'!$AQ244<>\"\"),\"Y\",\"N\"))))","v":""},{"$f":"IF($B237=\"N\",\"\",IF(OR('Enrollment Form'!$B244<>\"Subscriber\",'Enrollment Form'!$C244=\"ROC\"),\"-\",IF(AND('Enrollment Form'!$B244=\"Subscriber\",'Enrollment Form'!$C244=\"Enroll\",'Enrollment Form'!$CO244<>\"\"),\"Y\",\"N\")))","v":""},{"$f":"IF($B237=\"N\",\"\",IF($S237=\"-\",\"-\",IF(AND($S237=\"Y\",'Enrollment Form'!$CO244=\"No\"),\"-\",IF(AND($S237=\"Y\",'Enrollment Form'!$CO244=\"Yes\",'Enrollment Form'!$CP244<>\"\"),\"Y\",\"N\"))))","v":""},{"$f":"IF(OR('Enrollment Form'!$AV244=\"Yes\",'Enrollment Form'!$AV244=\"\"),\"-\",IF(AND('Enrollment Form'!$AV244=\"No\",ISERROR(FIND(\"HMO\",VLOOKUP('Enrollment Form'!G244,'Enrollment Form'!H$11:J$1000,3,FALSE),1))=FALSE,COUNTA('Enrollment Form'!$AW244:$AZ244)=4),\"Y\",\"N\"))","v":"-"},{"$f":"IF($B237=\"N\",\"\",IF('Enrollment Form'!$B244=\"Subscriber\",\"-\",IF(COUNTA('Enrollment Form'!$BE244,'Enrollment Form'!$BG244)=2,\"Y\",\"N\")))","v":""},{"$f":"IF($B237=\"N\",\"\",IF(OR('Enrollment Form'!$AU244=\"\",'Enrollment Form'!$AU244=\"No\"),\"-\",IF(AND('Enrollment Form'!$AU244=\"Yes\",COUNTA('Enrollment Form'!$CK244)=1),\"Y\",\"N\")))","v":""},{"$f":"IF(OR('Enrollment Form'!$CK244=\"\",'Enrollment Form'!$CK244=\"No\"),\"-\",IF(COUNTA('Enrollment Form'!$CM244:$CN244)=2,\"Y\",\"N\"))","v":"-"},{"$f":"IF($B237=\"N\",\"\",IF(COUNTIF('Enrollment Form'!$CZ244:$DO244,\"Other\")=COUNTA('Enrollment Form'!$DF244,'Enrollment Form'!$DA244,'Enrollment Form'!$DK244,'Enrollment Form'!$DP244),\"Y\",\"N\"))","v":""},{"$f":"IF($B237=\"N\",\"\",IF(OR('Enrollment Form'!B244<>\"Subscriber\",'Enrollment Form'!C244=\"ROC\",COUNTIF('Enrollment Form'!AS244:AT244,\"Yes\")>=1),\"-\",IF(AND('Enrollment Form'!C244=\"Enroll\",COUNTIF('Enrollment Form'!AS244:AT244,\"No\")=2,'Enrollment Form'!AU244=\"\"),\"N\",\"Y\")))","v":""},{"$f":"IF(OR(B237=\"N\",'Enrollment Form'!B244<>\"Subscriber\",'Enrollment Form'!C244=\"ROC\",'Enrollment Form'!O244<>\"Multiple of Salary\"),\"-\",IF(COUNTA('Enrollment Form'!T244:U244)<2,\"N\",\"Y\"))","v":"-"},{"$f":"IF(B237=\"N\",\"\",IF(OR('Enrollment Form'!C244=\"ROC\",'Enrollment Form'!B244<>\"Subscriber\",'Enrollment Form'!O244=\"Waive\",'Enrollment Form'!O244=\"\"),\"-\",IF('Enrollment Form'!P244=\"\",\"N\",\"Y\")))","v":""},{"$f":"IF($B237=\"N\",\"\",IF(AND('Enrollment Form'!$C244=\"ROC\",'Enrollment Form'!$DS244<>\"\"),\"Y\",IF(AND('Enrollment Form'!$C244=\"ROC\",'Enrollment Form'!$DS244=\"\"),\"N\",IF(AND('Enrollment Form'!$C244=\"Enroll\",'Enrollment Form'!$B244=\"Subscriber\",'Enrollment Form'!$CQ244=\"No\",'Enrollment Form'!$DS244=\"\"),\"N\",IF(AND('Enrollment Form'!$C244=\"Enroll\",'Enrollment Form'!$B244=\"Subscriber\",'Enrollment Form'!$CQ244=\"Yes\"),\"-\",\"Y\")))))","v":""},{"$f":"IF($B237=\"N\",\"\",IF(AND('Enrollment Form'!$C244=\"ROC\",'Enrollment Form'!$DT244<>\"\"),\"Y\",IF(AND('Enrollment Form'!$C244=\"ROC\",'Enrollment Form'!$DT244=\"\"),\"N\",IF(AND('Enrollment Form'!$C244=\"Enroll\",'Enrollment Form'!$B244=\"Subscriber\",'Enrollment Form'!$CQ244=\"No\",'Enrollment Form'!$DT244=\"\"),\"N\",IF(AND('Enrollment Form'!$C244=\"Enroll\",'Enrollment Form'!$B244=\"Subscriber\",'Enrollment Form'!$CQ244=\"Yes\"),\"-\",\"Y\")))))","v":""},{"$f":"IF('Enrollment Form'!AH244=\"\",\"\",IF(ISERROR(SEARCH(\".\",'Enrollment Form'!AH244,SEARCH(\"@\",'Enrollment Form'!AH244))),\"N\",\"Y\"))","v":""},{"$f":"IF(OR($B237=\"N\",'Enrollment Form'!$G244=\"\"),\"\",IF('Enrollment Form'!$B244<>\"Subscriber\",\"-\",IF(COUNTIF('Enrollment Form'!$AS244:$AT244,\"Yes\")=2,\"N\",\"Y\")))","v":""},{"$f":"IF(OR('Enrollment Form'!$CC244=\"\",'Enrollment Form'!$CC244=\"No\"),\"-\",IF(AND('Enrollment Form'!$CC244=\"Yes\",'Enrollment Form'!$CD244=\"\"),\"N\",\"Y\"))","v":"-"},{"$f":"IF(OR('Enrollment Form'!$CE244=\"\",'Enrollment Form'!$CE244=\"No\"),\"-\",IF(AND('Enrollment Form'!$CE244=\"Yes\",'Enrollment Form'!$CF244=\"\"),\"N\",\"Y\"))","v":"-"},{"$f":"IF(OR('Enrollment Form'!$CG244=\"\",'Enrollment Form'!$CG244=\"No\"),\"-\",IF(AND('Enrollment Form'!$CG244=\"Yes\",'Enrollment Form'!$CH244=\"\"),\"N\",\"Y\"))","v":"-"},{"$f":"IF(OR('Enrollment Form'!$CG244=\"\",'Enrollment Form'!$CG244=\"No\"),\"-\",IF(AND('Enrollment Form'!$CG244=\"Yes\",'Enrollment Form'!$CI244=\"\"),\"N\",\"Y\"))","v":"-"},{"$f":"IF('Enrollment Form'!B244<>\"Subscriber\",\"-\",IF(AND('Enrollment Form'!B244=\"Subscriber\",'Enrollment Form'!C244=\"Enroll\",'Enrollment Form'!AA244=\"\"),\"N\",\"Y\"))","v":"-"},{"$f":"IF(OR('Enrollment Form'!B244=\"Subscriber\",'Enrollment Form'!B244=\"\"),\"-\",IF('Enrollment Form'!BI244=\"\",\"N\",\"Y\"))","v":"-"},{"$f":"IF('Enrollment Form'!B244<>\"Subscriber\",\"-\",IF(AND('Enrollment Form'!B244=\"Subscriber\",'Enrollment Form'!G244=\"\"),\"N\",\"Y\"))","v":"-"},{"$f":"IF('Enrollment Form'!A244=\"\",\"\",IF('Enrollment Form'!B244=\"Subscriber\",\"-\",IF(AND('Enrollment Form'!B244<>\"Subscriber\",'Enrollment Form'!G244='Enrollment Form'!H244),\"N\",\"Y\")))","v":""},0]
[245,{"$f":"IF('Enrollment Form'!$A245<>\"\",\"Y\",\"N\")","v":"N"},{"$f":"IF(AND('Enrollment Form'!$B245=\"\",'Enrollment Form'!$C245<>\"\"),\"N\",IF($B238=\"N\",\"\",\"Y\"))","v":""},{"$f":"IF(OR($B238=\"N\",'Enrollment Form'!G245=\"\"),\"\",IF('Enrollment Form'!$B245<>\"Subscriber\",\"\",IF('Enrollment Form'!$G245='Enrollment Form'!$H245,\"Y\",\"N\")))","v":""},{"$f":"IF($B238=\"N\",\"\",IF(AND(COUNTIFS('Enrollment Form'!$H$11:$H$1000,'Enrollment Form'!$H245,'Enrollment Form'!$B$11:$B$1000,'Enrollment Form'!$B245)>1,'Enrollment Form'!$H245<>\"\"),\"N\",\"Y\"))","v":""},{"$f":"IF($B238=\"N\",\"\",IF(LEN('Enrollment Form'!$Y245)=0,\"\",IF(LEN('Enrollment Form'!$Y245)<>5,\"N\",\"Y\")))","v":""},{"$f":"IF($B238=\"N\",\"\",IF(LEN('Enrollment Form'!$AD245=0),\"\",IF(LEN('Enrollment Form'!$AD245)<>5,\"N\",\"Y\")))","v":""},{"$f":"IF($B238=\"N\",\"\",IF(LEN('Enrollment Form'!$BL245=0),\"\",IF(LEN('Enrollment Form'!$BL245)<>5,\"N\",\"Y\")))","v":""},{"$f":"IF($B238=\"N\",\"\",IF(LEN('Enrollment Form'!$AE245)=0,\"\",IF(LEN('Enrollment Form'!$AE245)<>10,\"N\",\"Y\")))","v":""},{"$f":"IF($B238=\"N\",\"\",IF(LEN('Enrollment Form'!$AF245)=0,\"\",IF(LEN('Enrollment Form'!$AF245)<>10,\"N\",\"Y\")))","v":""},{"$f":"IF('Enrollment Form'!$O245<>\"Graded\",\"-\",IF(AND('Enrollment Form'!$O245=\"Graded\",'Enrollment Form'!$AO245<>\"\"),\"Y\",\"N\"))","v":"-"},{"$f":"IF($B238=\"N\",\"\",IF(OR('Enrollment Form'!$B245<>\"Subscriber\",'Enrollment Form'!$C245=\"ROC\"),\"-\",IF(AND('Enrollment Form'!$B245=\"Subscriber\",'Enrollment Form'!$C245=\"Enroll\",'Enrollment Form'!$AJ245<>\"\"),\"Y\",\"N\")))","v":""},{"$f":"IF($B238=\"N\",\"\",IF(OR('Enrollment Form'!$B245<>\"Subscriber\",'Enrollment Form'!$C245=\"ROC\"),\"-\",IF(AND('Enrollment Form'!$B245=\"Subscriber\",'Enrollment Form'!$C245=\"Enroll\",'Enrollment Form'!$AK245<>\"\"),\"Y\",\"N\")))","v":""},{"$f":"IF($B238=\"N\",\"\",IF(OR('Enrollment Form'!$B245<>\"Subscriber\",'Enrollment Form'!$C245=\"ROC\"),\"-\",IF(AND('Enrollment Form'!$B245=\"Subscriber\",'Enrollment Form'!$C245=\"Enroll\",'Enrollment Form'!$AL245<>\"\"),\"Y\",\"N\")))","v":""},{"$f":"IF($B238=\"N\",\"\",IF(OR('Enrollment Form'!$B245<>\"Subscriber\",'Enrollment Form'!$C245=\"ROC\"),\"-\",IF(AND('Enrollment Form'!$B245=\"Subscriber\",'Enrollment Form'!$C245=\"Enroll\",'Enrollment Form'!$AM245<>\"\"),\"Y\",\"N\")))","v":""},{"$f":"IF($B238=\"N\",\"\",IF(OR('Enrollment Form'!$B245<>\"Subscriber\",'Enrollment Form'!$C245=\"ROC\"),\"-\",IF(AND('Enrollment Form'!$B245=\"Subscriber\",'Enrollment Form'!$C245=\"Enroll\",'Enrollment Form'!$AN245<>\"\"),\"Y\",\"N\")))","v":""},{"$f":"IF($B238=\"N\",\"\",IF(OR('Enrollment Form'!$B245<>\"Subscriber\",'Enrollment Form'!$C245=\"ROC\"),\"-\",IF(AND('Enrollment Form'!$B245=\"Subscriber\",'Enrollment Form'!$C245=\"Enroll\",'Enrollment Form'!$AP245<>\"\"),\"Y\",\"N\")))","v":""},{"$f":"IF($B238=\"N\",\"\",IF($Q238=\"-\",\"-\",IF(AND($Q238=\"Y\",'Enrollment Form'!$AP245=\"No\"),\"-\",IF(AND($Q238=\"Y\",'Enrollment Form'!$AP245=\"Yes\",'Enrollment Form'!$AQ245<>\"\"),\"Y\",\"N\"))))","v":""},{"$f":"IF($B238=\"N\",\"\",IF(OR('Enrollment Form'!$B245<>\"Subscriber\",'Enrollment Form'!$C245=\"ROC\"),\"-\",IF(AND('Enrollment Form'!$B245=\"Subscriber\",'Enrollment Form'!$C245=\"Enroll\",'Enrollment Form'!$CO245<>\"\"),\"Y\",\"N\")))","v":""},{"$f":"IF($B238=\"N\",\"\",IF($S238=\"-\",\"-\",IF(AND($S238=\"Y\",'Enrollment Form'!$CO245=\"No\"),\"-\",IF(AND($S238=\"Y\",'Enrollment Form'!$CO245=\"Yes\",'Enrollment Form'!$CP245<>\"\"),\"Y\",\"N\"))))","v":""},{"$f":"IF(OR('Enrollment Form'!$AV245=\"Yes\",'Enrollment Form'!$AV245=\"\"),\"-\",IF(AND('Enrollment Form'!$AV245=\"No\",ISERROR(FIND(\"HMO\",VLOOKUP('Enrollment Form'!G245,'Enrollment Form'!H$11:J$1000,3,FALSE),1))=FALSE,COUNTA('Enrollment Form'!$AW245:$AZ245)=4),\"Y\",\"N\"))","v":"-"},{"$f":"IF($B238=\"N\",\"\",IF('Enrollment Form'!$B245=\"Subscriber\",\"-\",IF(COUNTA('Enrollment Form'!$BE245,'Enrollment Form'!$BG245)=2,\"Y\",\"N\")))","v":""},{"$f":"IF($B238=\"N\",\"\",IF(OR('Enrollment Form'!$AU245=\"\",'Enrollment Form'!$AU245=\"No\"),\"-\",IF(AND('Enrollment Form'!$AU245=\"Yes\",COUNTA('Enrollment Form'!$CK245)=1),\"Y\",\"N\")))","v":""},{"$f":"IF(OR('Enrollment Form'!$CK245=\"\",'Enrollment Form'!$CK245=\"No\"),\"-\",IF(COUNTA('Enrollment Form'!$CM245:$CN245)=2,\"Y\",\"N\"))","v":"-"},{"$f":"IF($B238=\"N\",\"\",IF(COUNTIF('Enrollment Form'!$CZ245:$DO245,\"Other\")=COUNTA('Enrollment Form'!$DF245,'Enrollment Form'!$DA245,'Enrollment Form'!$DK245,'Enrollment Form'!$DP245),\"Y\",\"N\"))","v":""},{"$f":"IF($B238=\"N\",\"\",IF(OR('Enrollment Form'!B245<>\"Subscriber\",'Enrollment Form'!C245=\"ROC\",COUNTIF('Enrollment Form'!AS245:AT245,\"Yes\")>=1),\"-\",IF(AND('Enrollment Form'!C245=\"Enroll\",COUNTIF('Enrollment Form'!AS245:AT245,\"No\")=2,'Enrollment Form'!AU245=\"\"),\"N\",\"Y\")))","v":""},{"$f":"IF(OR(B238=\"N\",'Enrollment Form'!B245<>\"Subscriber\",'Enrollment Form'!C245=\"ROC\",'Enrollment Form'!O245<>\"Multiple of Salary\"),\"-\",IF(COUNTA('Enrollment Form'!T245:U245)<2,\"N\",\"Y\"))","v":"-"},{"$f":"IF(B238=\"N\",\"\",IF(OR('Enrollment Form'!C245=\"ROC\",'Enrollment Form'!B245<>\"Subscriber\",'Enrollment Form'!O245=\"Waive\",'Enrollment Form'!O245=\"\"),\"-\",IF('Enrollment Form'!P245=\"\",\"N\",\"Y\")))","v":""},{"$f":"IF($B238=\"N\",\"\",IF(AND('Enrollment Form'!$C245=\"ROC\",'Enrollment Form'!$DS245<>\"\"),\"Y\",IF(AND('Enrollment Form'!$C245=\"ROC\",'Enrollment Form'!$DS245=\"\"),\"N\",IF(AND('Enrollment Form'!$C245=\"Enroll\",'Enrollment Form'!$B245=\"Subscriber\",'Enrollment Form'!$CQ245=\"No\",'Enrollment Form'!$DS245=\"\"),\"N\",IF(AND('Enrollment Form'!$C245=\"Enroll\",'Enrollment Form'!$B245=\"Subscriber\",'Enrollment Form'!$CQ245=\"Yes\"),\"-\",\"Y\")))))","v":""},{"$f":"IF($B238=\"N\",\"\",IF(AND('Enrollment Form'!$C245=\"ROC\",'Enrollment Form'!$DT245<>\"\"),\"Y\",IF(AND('Enrollment Form'!$C245=\"ROC\",'Enrollment Form'!$DT245=\"\"),\"N\",IF(AND('Enrollment Form'!$C245=\"Enroll\",'Enrollment Form'!$B245=\"Subscriber\",'Enrollment Form'!$CQ245=\"No\",'Enrollment Form'!$DT245=\"\"),\"N\",IF(AND('Enrollment Form'!$C245=\"Enroll\",'Enrollment Form'!$B245=\"Subscriber\",'Enrollment Form'!$CQ245=\"Yes\"),\"-\",\"Y\")))))","v":""},{"$f":"IF('Enrollment Form'!AH245=\"\",\"\",IF(ISERROR(SEARCH(\".\",'Enrollment Form'!AH245,SEARCH(\"@\",'Enrollment Form'!AH245))),\"N\",\"Y\"))","v":""},{"$f":"IF(OR($B238=\"N\",'Enrollment Form'!$G245=\"\"),\"\",IF('Enrollment Form'!$B245<>\"Subscriber\",\"-\",IF(COUNTIF('Enrollment Form'!$AS245:$AT245,\"Yes\")=2,\"N\",\"Y\")))","v":""},{"$f":"IF(OR('Enrollment Form'!$CC245=\"\",'Enrollment Form'!$CC245=\"No\"),\"-\",IF(AND('Enrollment Form'!$CC245=\"Yes\",'Enrollment Form'!$CD245=\"\"),\"N\",\"Y\"))","v":"-"},{"$f":"IF(OR('Enrollment Form'!$CE245=\"\",'Enrollment Form'!$CE245=\"No\"),\"-\",IF(AND('Enrollment Form'!$CE245=\"Yes\",'Enrollment Form'!$CF245=\"\"),\"N\",\"Y\"))","v":"-"},{"$f":"IF(OR('Enrollment Form'!$CG245=\"\",'Enrollment Form'!$CG245=\"No\"),\"-\",IF(AND('Enrollment Form'!$CG245=\"Yes\",'Enrollment Form'!$CH245=\"\"),\"N\",\"Y\"))","v":"-"},{"$f":"IF(OR('Enrollment Form'!$CG245=\"\",'Enrollment Form'!$CG245=\"No\"),\"-\",IF(AND('Enrollment Form'!$CG245=\"Yes\",'Enrollment Form'!$CI245=\"\"),\"N\",\"Y\"))","v":"-"},{"$f":"IF('Enrollment Form'!B245<>\"Subscriber\",\"-\",IF(AND('Enrollment Form'!B245=\"Subscriber\",'Enrollment Form'!C245=\"Enroll\",'Enrollment Form'!AA245=\"\"),\"N\",\"Y\"))","v":"-"},{"$f":"IF(OR('Enrollment Form'!B245=\"Subscriber\",'Enrollment Form'!B245=\"\"),\"-\",IF('Enrollment Form'!BI245=\"\",\"N\",\"Y\"))","v":"-"},{"$f":"IF('Enrollment Form'!B245<>\"Subscriber\",\"-\",IF(AND('Enrollment Form'!B245=\"Subscriber\",'Enrollment Form'!G245=\"\"),\"N\",\"Y\"))","v":"-"},{"$f":"IF('Enrollment Form'!A245=\"\",\"\",IF('Enrollment Form'!B245=\"Subscriber\",\"-\",IF(AND('Enrollment Form'!B245<>\"Subscriber\",'Enrollment Form'!G245='Enrollment Form'!H245),\"N\",\"Y\")))","v":""},0]
[246,{"$f":"IF('Enrollment Form'!$A246<>\"\",\"Y\",\"N\")","v":"N"},{"$f":"IF(AND('Enrollment Form'!$B246=\"\",'Enrollment Form'!$C246<>\"\"),\"N\",IF($B239=\"N\",\"\",\"Y\"))","v":""},{"$f":"IF(OR($B239=\"N\",'Enrollment Form'!G246=\"\"),\"\",IF('Enrollment Form'!$B246<>\"Subscriber\",\"\",IF('Enrollment Form'!$G246='Enrollment Form'!$H246,\"Y\",\"N\")))","v":""},{"$f":"IF($B239=\"N\",\"\",IF(AND(COUNTIFS('Enrollment Form'!$H$11:$H$1000,'Enrollment Form'!$H246,'Enrollment Form'!$B$11:$B$1000,'Enrollment Form'!$B246)>1,'Enrollment Form'!$H246<>\"\"),\"N\",\"Y\"))","v":""},{"$f":"IF($B239=\"N\",\"\",IF(LEN('Enrollment Form'!$Y246)=0,\"\",IF(LEN('Enrollment Form'!$Y246)<>5,\"N\",\"Y\")))","v":""},{"$f":"IF($B239=\"N\",\"\",IF(LEN('Enrollment Form'!$AD246=0),\"\",IF(LEN('Enrollment Form'!$AD246)<>5,\"N\",\"Y\")))","v":""},{"$f":"IF($B239=\"N\",\"\",IF(LEN('Enrollment Form'!$BL246=0),\"\",IF(LEN('Enrollment Form'!$BL246)<>5,\"N\",\"Y\")))","v":""},{"$f":"IF($B239=\"N\",\"\",IF(LEN('Enrollment Form'!$AE246)=0,\"\",IF(LEN('Enrollment Form'!$AE246)<>10,\"N\",\"Y\")))","v":""},{"$f":"IF($B239=\"N\",\"\",IF(LEN('Enrollment Form'!$AF246)=0,\"\",IF(LEN('Enrollment Form'!$AF246)<>10,\"N\",\"Y\")))","v":""},{"$f":"IF('Enrollment Form'!$O246<>\"Graded\",\"-\",IF(AND('Enrollment Form'!$O246=\"Graded\",'Enrollment Form'!$AO246<>\"\"),\"Y\",\"N\"))","v":"-"},{"$f":"IF($B239=\"N\",\"\",IF(OR('Enrollment Form'!$B246<>\"Subscriber\",'Enrollment Form'!$C246=\"ROC\"),\"-\",IF(AND('Enrollment Form'!$B246=\"Subscriber\",'Enrollment Form'!$C246=\"Enroll\",'Enrollment Form'!$AJ246<>\"\"),\"Y\",\"N\")))","v":""},{"$f":"IF($B239=\"N\",\"\",IF(OR('Enrollment Form'!$B246<>\"Subscriber\",'Enrollment Form'!$C246=\"ROC\"),\"-\",IF(AND('Enrollment Form'!$B246=\"Subscriber\",'Enrollment Form'!$C246=\"Enroll\",'Enrollment Form'!$AK246<>\"\"),\"Y\",\"N\")))","v":""},{"$f":"IF($B239=\"N\",\"\",IF(OR('Enrollment Form'!$B246<>\"Subscriber\",'Enrollment Form'!$C246=\"ROC\"),\"-\",IF(AND('Enrollment Form'!$B246=\"Subscriber\",'Enrollment Form'!$C246=\"Enroll\",'Enrollment Form'!$AL246<>\"\"),\"Y\",\"N\")))","v":""},{"$f":"IF($B239=\"N\",\"\",IF(OR('Enrollment Form'!$B246<>\"Subscriber\",'Enrollment Form'!$C246=\"ROC\"),\"-\",IF(AND('Enrollment Form'!$B246=\"Subscriber\",'Enrollment Form'!$C246=\"Enroll\",'Enrollment Form'!$AM246<>\"\"),\"Y\",\"N\")))","v":""},{"$f":"IF($B239=\"N\",\"\",IF(OR('Enrollment Form'!$B246<>\"Subscriber\",'Enrollment Form'!$C246=\"ROC\"),\"-\",IF(AND('Enrollment Form'!$B246=\"Subscriber\",'Enrollment Form'!$C246=\"Enroll\",'Enrollment Form'!$AN246<>\"\"),\"Y\",\"N\")))","v":""},{"$f":"IF($B239=\"N\",\"\",IF(OR('Enrollment Form'!$B246<>\"Subscriber\",'Enrollment Form'!$C246=\"ROC\"),\"-\",IF(AND('Enrollment Form'!$B246=\"Subscriber\",'Enrollment Form'!$C246=\"Enroll\",'Enrollment Form'!$AP246<>\"\"),\"Y\",\"N\")))","v":""},{"$f":"IF($B239=\"N\",\"\",IF($Q239=\"-\",\"-\",IF(AND($Q239=\"Y\",'Enrollment Form'!$AP246=\"No\"),\"-\",IF(AND($Q239=\"Y\",'Enrollment Form'!$AP246=\"Yes\",'Enrollment Form'!$AQ246<>\"\"),\"Y\",\"N\"))))","v":""},{"$f":"IF($B239=\"N\",\"\",IF(OR('Enrollment Form'!$B246<>\"Subscriber\",'Enrollment Form'!$C246=\"ROC\"),\"-\",IF(AND('Enrollment Form'!$B246=\"Subscriber\",'Enrollment Form'!$C246=\"Enroll\",'Enrollment Form'!$CO246<>\"\"),\"Y\",\"N\")))","v":""},{"$f":"IF($B239=\"N\",\"\",IF($S239=\"-\",\"-\",IF(AND($S239=\"Y\",'Enrollment Form'!$CO246=\"No\"),\"-\",IF(AND($S239=\"Y\",'Enrollment Form'!$CO246=\"Yes\",'Enrollment Form'!$CP246<>\"\"),\"Y\",\"N\"))))","v":""},{"$f":"IF(OR('Enrollment Form'!$AV246=\"Yes\",'Enrollment Form'!$AV246=\"\"),\"-\",IF(AND('Enrollment Form'!$AV246=\"No\",ISERROR(FIND(\"HMO\",VLOOKUP('Enrollment Form'!G246,'Enrollment Form'!H$11:J$1000,3,FALSE),1))=FALSE,COUNTA('Enrollment Form'!$AW246:$AZ246)=4),\"Y\",\"N\"))","v":"-"},{"$f":"IF($B239=\"N\",\"\",IF('Enrollment Form'!$B246=\"Subscriber\",\"-\",IF(COUNTA('Enrollment Form'!$BE246,'Enrollment Form'!$BG246)=2,\"Y\",\"N\")))","v":""},{"$f":"IF($B239=\"N\",\"\",IF(OR('Enrollment Form'!$AU246=\"\",'Enrollment Form'!$AU246=\"No\"),\"-\",IF(AND('Enrollment Form'!$AU246=\"Yes\",COUNTA('Enrollment Form'!$CK246)=1),\"Y\",\"N\")))","v":""},{"$f":"IF(OR('Enrollment Form'!$CK246=\"\",'Enrollment Form'!$CK246=\"No\"),\"-\",IF(COUNTA('Enrollment Form'!$CM246:$CN246)=2,\"Y\",\"N\"))","v":"-"},{"$f":"IF($B239=\"N\",\"\",IF(COUNTIF('Enrollment Form'!$CZ246:$DO246,\"Other\")=COUNTA('Enrollment Form'!$DF246,'Enrollment Form'!$DA246,'Enrollment Form'!$DK246,'Enrollment Form'!$DP246),\"Y\",\"N\"))","v":""},{"$f":"IF($B239=\"N\",\"\",IF(OR('Enrollment Form'!B246<>\"Subscriber\",'Enrollment Form'!C246=\"ROC\",COUNTIF('Enrollment Form'!AS246:AT246,\"Yes\")>=1),\"-\",IF(AND('Enrollment Form'!C246=\"Enroll\",COUNTIF('Enrollment Form'!AS246:AT246,\"No\")=2,'Enrollment Form'!AU246=\"\"),\"N\",\"Y\")))","v":""},{"$f":"IF(OR(B239=\"N\",'Enrollment Form'!B246<>\"Subscriber\",'Enrollment Form'!C246=\"ROC\",'Enrollment Form'!O246<>\"Multiple of Salary\"),\"-\",IF(COUNTA('Enrollment Form'!T246:U246)<2,\"N\",\"Y\"))","v":"-"},{"$f":"IF(B239=\"N\",\"\",IF(OR('Enrollment Form'!C246=\"ROC\",'Enrollment Form'!B246<>\"Subscriber\",'Enrollment Form'!O246=\"Waive\",'Enrollment Form'!O246=\"\"),\"-\",IF('Enrollment Form'!P246=\"\",\"N\",\"Y\")))","v":""},{"$f":"IF($B239=\"N\",\"\",IF(AND('Enrollment Form'!$C246=\"ROC\",'Enrollment Form'!$DS246<>\"\"),\"Y\",IF(AND('Enrollment Form'!$C246=\"ROC\",'Enrollment Form'!$DS246=\"\"),\"N\",IF(AND('Enrollment Form'!$C246=\"Enroll\",'Enrollment Form'!$B246=\"Subscriber\",'Enrollment Form'!$CQ246=\"No\",'Enrollment Form'!$DS246=\"\"),\"N\",IF(AND('Enrollment Form'!$C246=\"Enroll\",'Enrollment Form'!$B246=\"Subscriber\",'Enrollment Form'!$CQ246=\"Yes\"),\"-\",\"Y\")))))","v":""},{"$f":"IF($B239=\"N\",\"\",IF(AND('Enrollment Form'!$C246=\"ROC\",'Enrollment Form'!$DT246<>\"\"),\"Y\",IF(AND('Enrollment Form'!$C246=\"ROC\",'Enrollment Form'!$DT246=\"\"),\"N\",IF(AND('Enrollment Form'!$C246=\"Enroll\",'Enrollment Form'!$B246=\"Subscriber\",'Enrollment Form'!$CQ246=\"No\",'Enrollment Form'!$DT246=\"\"),\"N\",IF(AND('Enrollment Form'!$C246=\"Enroll\",'Enrollment Form'!$B246=\"Subscriber\",'Enrollment Form'!$CQ246=\"Yes\"),\"-\",\"Y\")))))","v":""},{"$f":"IF('Enrollment Form'!AH246=\"\",\"\",IF(ISERROR(SEARCH(\".\",'Enrollment Form'!AH246,SEARCH(\"@\",'Enrollment Form'!AH246))),\"N\",\"Y\"))","v":""},{"$f":"IF(OR($B239=\"N\",'Enrollment Form'!$G246=\"\"),\"\",IF('Enrollment Form'!$B246<>\"Subscriber\",\"-\",IF(COUNTIF('Enrollment Form'!$AS246:$AT246,\"Yes\")=2,\"N\",\"Y\")))","v":""},{"$f":"IF(OR('Enrollment Form'!$CC246=\"\",'Enrollment Form'!$CC246=\"No\"),\"-\",IF(AND('Enrollment Form'!$CC246=\"Yes\",'Enrollment Form'!$CD246=\"\"),\"N\",\"Y\"))","v":"-"},{"$f":"IF(OR('Enrollment Form'!$CE246=\"\",'Enrollment Form'!$CE246=\"No\"),\"-\",IF(AND('Enrollment Form'!$CE246=\"Yes\",'Enrollment Form'!$CF246=\"\"),\"N\",\"Y\"))","v":"-"},{"$f":"IF(OR('Enrollment Form'!$CG246=\"\",'Enrollment Form'!$CG246=\"No\"),\"-\",IF(AND('Enrollment Form'!$CG246=\"Yes\",'Enrollment Form'!$CH246=\"\"),\"N\",\"Y\"))","v":"-"},{"$f":"IF(OR('Enrollment Form'!$CG246=\"\",'Enrollment Form'!$CG246=\"No\"),\"-\",IF(AND('Enrollment Form'!$CG246=\"Yes\",'Enrollment Form'!$CI246=\"\"),\"N\",\"Y\"))","v":"-"},{"$f":"IF('Enrollment Form'!B246<>\"Subscriber\",\"-\",IF(AND('Enrollment Form'!B246=\"Subscriber\",'Enrollment Form'!C246=\"Enroll\",'Enrollment Form'!AA246=\"\"),\"N\",\"Y\"))","v":"-"},{"$f":"IF(OR('Enrollment Form'!B246=\"Subscriber\",'Enrollment Form'!B246=\"\"),\"-\",IF('Enrollment Form'!BI246=\"\",\"N\",\"Y\"))","v":"-"},{"$f":"IF('Enrollment Form'!B246<>\"Subscriber\",\"-\",IF(AND('Enrollment Form'!B246=\"Subscriber\",'Enrollment Form'!G246=\"\"),\"N\",\"Y\"))","v":"-"},{"$f":"IF('Enrollment Form'!A246=\"\",\"\",IF('Enrollment Form'!B246=\"Subscriber\",\"-\",IF(AND('Enrollment Form'!B246<>\"Subscriber\",'Enrollment Form'!G246='Enrollment Form'!H246),\"N\",\"Y\")))","v":""},0]
[247,{"$f":"IF('Enrollment Form'!$A247<>\"\",\"Y\",\"N\")","v":"N"},{"$f":"IF(AND('Enrollment Form'!$B247=\"\",'Enrollment Form'!$C247<>\"\"),\"N\",IF($B240=\"N\",\"\",\"Y\"))","v":""},{"$f":"IF(OR($B240=\"N\",'Enrollment Form'!G247=\"\"),\"\",IF('Enrollment Form'!$B247<>\"Subscriber\",\"\",IF('Enrollment Form'!$G247='Enrollment Form'!$H247,\"Y\",\"N\")))","v":""},{"$f":"IF($B240=\"N\",\"\",IF(AND(COUNTIFS('Enrollment Form'!$H$11:$H$1000,'Enrollment Form'!$H247,'Enrollment Form'!$B$11:$B$1000,'Enrollment Form'!$B247)>1,'Enrollment Form'!$H247<>\"\"),\"N\",\"Y\"))","v":""},{"$f":"IF($B240=\"N\",\"\",IF(LEN('Enrollment Form'!$Y247)=0,\"\",IF(LEN('Enrollment Form'!$Y247)<>5,\"N\",\"Y\")))","v":""},{"$f":"IF($B240=\"N\",\"\",IF(LEN('Enrollment Form'!$AD247=0),\"\",IF(LEN('Enrollment Form'!$AD247)<>5,\"N\",\"Y\")))","v":""},{"$f":"IF($B240=\"N\",\"\",IF(LEN('Enrollment Form'!$BL247=0),\"\",IF(LEN('Enrollment Form'!$BL247)<>5,\"N\",\"Y\")))","v":""},{"$f":"IF($B240=\"N\",\"\",IF(LEN('Enrollment Form'!$AE247)=0,\"\",IF(LEN('Enrollment Form'!$AE247)<>10,\"N\",\"Y\")))","v":""},{"$f":"IF($B240=\"N\",\"\",IF(LEN('Enrollment Form'!$AF247)=0,\"\",IF(LEN('Enrollment Form'!$AF247)<>10,\"N\",\"Y\")))","v":""},{"$f":"IF('Enrollment Form'!$O247<>\"Graded\",\"-\",IF(AND('Enrollment Form'!$O247=\"Graded\",'Enrollment Form'!$AO247<>\"\"),\"Y\",\"N\"))","v":"-"},{"$f":"IF($B240=\"N\",\"\",IF(OR('Enrollment Form'!$B247<>\"Subscriber\",'Enrollment Form'!$C247=\"ROC\"),\"-\",IF(AND('Enrollment Form'!$B247=\"Subscriber\",'Enrollment Form'!$C247=\"Enroll\",'Enrollment Form'!$AJ247<>\"\"),\"Y\",\"N\")))","v":""},{"$f":"IF($B240=\"N\",\"\",IF(OR('Enrollment Form'!$B247<>\"Subscriber\",'Enrollment Form'!$C247=\"ROC\"),\"-\",IF(AND('Enrollment Form'!$B247=\"Subscriber\",'Enrollment Form'!$C247=\"Enroll\",'Enrollment Form'!$AK247<>\"\"),\"Y\",\"N\")))","v":""},{"$f":"IF($B240=\"N\",\"\",IF(OR('Enrollment Form'!$B247<>\"Subscriber\",'Enrollment Form'!$C247=\"ROC\"),\"-\",IF(AND('Enrollment Form'!$B247=\"Subscriber\",'Enrollment Form'!$C247=\"Enroll\",'Enrollment Form'!$AL247<>\"\"),\"Y\",\"N\")))","v":""},{"$f":"IF($B240=\"N\",\"\",IF(OR('Enrollment Form'!$B247<>\"Subscriber\",'Enrollment Form'!$C247=\"ROC\"),\"-\",IF(AND('Enrollment Form'!$B247=\"Subscriber\",'Enrollment Form'!$C247=\"Enroll\",'Enrollment Form'!$AM247<>\"\"),\"Y\",\"N\")))","v":""},{"$f":"IF($B240=\"N\",\"\",IF(OR('Enrollment Form'!$B247<>\"Subscriber\",'Enrollment Form'!$C247=\"ROC\"),\"-\",IF(AND('Enrollment Form'!$B247=\"Subscriber\",'Enrollment Form'!$C247=\"Enroll\",'Enrollment Form'!$AN247<>\"\"),\"Y\",\"N\")))","v":""},{"$f":"IF($B240=\"N\",\"\",IF(OR('Enrollment Form'!$B247<>\"Subscriber\",'Enrollment Form'!$C247=\"ROC\"),\"-\",IF(AND('Enrollment Form'!$B247=\"Subscriber\",'Enrollment Form'!$C247=\"Enroll\",'Enrollment Form'!$AP247<>\"\"),\"Y\",\"N\")))","v":""},{"$f":"IF($B240=\"N\",\"\",IF($Q240=\"-\",\"-\",IF(AND($Q240=\"Y\",'Enrollment Form'!$AP247=\"No\"),\"-\",IF(AND($Q240=\"Y\",'Enrollment Form'!$AP247=\"Yes\",'Enrollment Form'!$AQ247<>\"\"),\"Y\",\"N\"))))","v":""},{"$f":"IF($B240=\"N\",\"\",IF(OR('Enrollment Form'!$B247<>\"Subscriber\",'Enrollment Form'!$C247=\"ROC\"),\"-\",IF(AND('Enrollment Form'!$B247=\"Subscriber\",'Enrollment Form'!$C247=\"Enroll\",'Enrollment Form'!$CO247<>\"\"),\"Y\",\"N\")))","v":""},{"$f":"IF($B240=\"N\",\"\",IF($S240=\"-\",\"-\",IF(AND($S240=\"Y\",'Enrollment Form'!$CO247=\"No\"),\"-\",IF(AND($S240=\"Y\",'Enrollment Form'!$CO247=\"Yes\",'Enrollment Form'!$CP247<>\"\"),\"Y\",\"N\"))))","v":""},{"$f":"IF(OR('Enrollment Form'!$AV247=\"Yes\",'Enrollment Form'!$AV247=\"\"),\"-\",IF(AND('Enrollment Form'!$AV247=\"No\",ISERROR(FIND(\"HMO\",VLOOKUP('Enrollment Form'!G247,'Enrollment Form'!H$11:J$1000,3,FALSE),1))=FALSE,COUNTA('Enrollment Form'!$AW247:$AZ247)=4),\"Y\",\"N\"))","v":"-"},{"$f":"IF($B240=\"N\",\"\",IF('Enrollment Form'!$B247=\"Subscriber\",\"-\",IF(COUNTA('Enrollment Form'!$BE247,'Enrollment Form'!$BG247)=2,\"Y\",\"N\")))","v":""},{"$f":"IF($B240=\"N\",\"\",IF(OR('Enrollment Form'!$AU247=\"\",'Enrollment Form'!$AU247=\"No\"),\"-\",IF(AND('Enrollment Form'!$AU247=\"Yes\",COUNTA('Enrollment Form'!$CK247)=1),\"Y\",\"N\")))","v":""},{"$f":"IF(OR('Enrollment Form'!$CK247=\"\",'Enrollment Form'!$CK247=\"No\"),\"-\",IF(COUNTA('Enrollment Form'!$CM247:$CN247)=2,\"Y\",\"N\"))","v":"-"},{"$f":"IF($B240=\"N\",\"\",IF(COUNTIF('Enrollment Form'!$CZ247:$DO247,\"Other\")=COUNTA('Enrollment Form'!$DF247,'Enrollment Form'!$DA247,'Enrollment Form'!$DK247,'Enrollment Form'!$DP247),\"Y\",\"N\"))","v":""},{"$f":"IF($B240=\"N\",\"\",IF(OR('Enrollment Form'!B247<>\"Subscriber\",'Enrollment Form'!C247=\"ROC\",COUNTIF('Enrollment Form'!AS247:AT247,\"Yes\")>=1),\"-\",IF(AND('Enrollment Form'!C247=\"Enroll\",COUNTIF('Enrollment Form'!AS247:AT247,\"No\")=2,'Enrollment Form'!AU247=\"\"),\"N\",\"Y\")))","v":""},{"$f":"IF(OR(B240=\"N\",'Enrollment Form'!B247<>\"Subscriber\",'Enrollment Form'!C247=\"ROC\",'Enrollment Form'!O247<>\"Multiple of Salary\"),\"-\",IF(COUNTA('Enrollment Form'!T247:U247)<2,\"N\",\"Y\"))","v":"-"},{"$f":"IF(B240=\"N\",\"\",IF(OR('Enrollment Form'!C247=\"ROC\",'Enrollment Form'!B247<>\"Subscriber\",'Enrollment Form'!O247=\"Waive\",'Enrollment Form'!O247=\"\"),\"-\",IF('Enrollment Form'!P247=\"\",\"N\",\"Y\")))","v":""},{"$f":"IF($B240=\"N\",\"\",IF(AND('Enrollment Form'!$C247=\"ROC\",'Enrollment Form'!$DS247<>\"\"),\"Y\",IF(AND('Enrollment Form'!$C247=\"ROC\",'Enrollment Form'!$DS247=\"\"),\"N\",IF(AND('Enrollment Form'!$C247=\"Enroll\",'Enrollment Form'!$B247=\"Subscriber\",'Enrollment Form'!$CQ247=\"No\",'Enrollment Form'!$DS247=\"\"),\"N\",IF(AND('Enrollment Form'!$C247=\"Enroll\",'Enrollment Form'!$B247=\"Subscriber\",'Enrollment Form'!$CQ247=\"Yes\"),\"-\",\"Y\")))))","v":""},{"$f":"IF($B240=\"N\",\"\",IF(AND('Enrollment Form'!$C247=\"ROC\",'Enrollment Form'!$DT247<>\"\"),\"Y\",IF(AND('Enrollment Form'!$C247=\"ROC\",'Enrollment Form'!$DT247=\"\"),\"N\",IF(AND('Enrollment Form'!$C247=\"Enroll\",'Enrollment Form'!$B247=\"Subscriber\",'Enrollment Form'!$CQ247=\"No\",'Enrollment Form'!$DT247=\"\"),\"N\",IF(AND('Enrollment Form'!$C247=\"Enroll\",'Enrollment Form'!$B247=\"Subscriber\",'Enrollment Form'!$CQ247=\"Yes\"),\"-\",\"Y\")))))","v":""},{"$f":"IF('Enrollment Form'!AH247=\"\",\"\",IF(ISERROR(SEARCH(\".\",'Enrollment Form'!AH247,SEARCH(\"@\",'Enrollment Form'!AH247))),\"N\",\"Y\"))","v":""},{"$f":"IF(OR($B240=\"N\",'Enrollment Form'!$G247=\"\"),\"\",IF('Enrollment Form'!$B247<>\"Subscriber\",\"-\",IF(COUNTIF('Enrollment Form'!$AS247:$AT247,\"Yes\")=2,\"N\",\"Y\")))","v":""},{"$f":"IF(OR('Enrollment Form'!$CC247=\"\",'Enrollment Form'!$CC247=\"No\"),\"-\",IF(AND('Enrollment Form'!$CC247=\"Yes\",'Enrollment Form'!$CD247=\"\"),\"N\",\"Y\"))","v":"-"},{"$f":"IF(OR('Enrollment Form'!$CE247=\"\",'Enrollment Form'!$CE247=\"No\"),\"-\",IF(AND('Enrollment Form'!$CE247=\"Yes\",'Enrollment Form'!$CF247=\"\"),\"N\",\"Y\"))","v":"-"},{"$f":"IF(OR('Enrollment Form'!$CG247=\"\",'Enrollment Form'!$CG247=\"No\"),\"-\",IF(AND('Enrollment Form'!$CG247=\"Yes\",'Enrollment Form'!$CH247=\"\"),\"N\",\"Y\"))","v":"-"},{"$f":"IF(OR('Enrollment Form'!$CG247=\"\",'Enrollment Form'!$CG247=\"No\"),\"-\",IF(AND('Enrollment Form'!$CG247=\"Yes\",'Enrollment Form'!$CI247=\"\"),\"N\",\"Y\"))","v":"-"},{"$f":"IF('Enrollment Form'!B247<>\"Subscriber\",\"-\",IF(AND('Enrollment Form'!B247=\"Subscriber\",'Enrollment Form'!C247=\"Enroll\",'Enrollment Form'!AA247=\"\"),\"N\",\"Y\"))","v":"-"},{"$f":"IF(OR('Enrollment Form'!B247=\"Subscriber\",'Enrollment Form'!B247=\"\"),\"-\",IF('Enrollment Form'!BI247=\"\",\"N\",\"Y\"))","v":"-"},{"$f":"IF('Enrollment Form'!B247<>\"Subscriber\",\"-\",IF(AND('Enrollment Form'!B247=\"Subscriber\",'Enrollment Form'!G247=\"\"),\"N\",\"Y\"))","v":"-"},{"$f":"IF('Enrollment Form'!A247=\"\",\"\",IF('Enrollment Form'!B247=\"Subscriber\",\"-\",IF(AND('Enrollment Form'!B247<>\"Subscriber\",'Enrollment Form'!G247='Enrollment Form'!H247),\"N\",\"Y\")))","v":""},0]
[248,{"$f":"IF('Enrollment Form'!$A248<>\"\",\"Y\",\"N\")","v":"N"},{"$f":"IF(AND('Enrollment Form'!$B248=\"\",'Enrollment Form'!$C248<>\"\"),\"N\",IF($B241=\"N\",\"\",\"Y\"))","v":""},{"$f":"IF(OR($B241=\"N\",'Enrollment Form'!G248=\"\"),\"\",IF('Enrollment Form'!$B248<>\"Subscriber\",\"\",IF('Enrollment Form'!$G248='Enrollment Form'!$H248,\"Y\",\"N\")))","v":""},{"$f":"IF($B241=\"N\",\"\",IF(AND(COUNTIFS('Enrollment Form'!$H$11:$H$1000,'Enrollment Form'!$H248,'Enrollment Form'!$B$11:$B$1000,'Enrollment Form'!$B248)>1,'Enrollment Form'!$H248<>\"\"),\"N\",\"Y\"))","v":""},{"$f":"IF($B241=\"N\",\"\",IF(LEN('Enrollment Form'!$Y248)=0,\"\",IF(LEN('Enrollment Form'!$Y248)<>5,\"N\",\"Y\")))","v":""},{"$f":"IF($B241=\"N\",\"\",IF(LEN('Enrollment Form'!$AD248=0),\"\",IF(LEN('Enrollment Form'!$AD248)<>5,\"N\",\"Y\")))","v":""},{"$f":"IF($B241=\"N\",\"\",IF(LEN('Enrollment Form'!$BL248=0),\"\",IF(LEN('Enrollment Form'!$BL248)<>5,\"N\",\"Y\")))","v":""},{"$f":"IF($B241=\"N\",\"\",IF(LEN('Enrollment Form'!$AE248)=0,\"\",IF(LEN('Enrollment Form'!$AE248)<>10,\"N\",\"Y\")))","v":""},{"$f":"IF($B241=\"N\",\"\",IF(LEN('Enrollment Form'!$AF248)=0,\"\",IF(LEN('Enrollment Form'!$AF248)<>10,\"N\",\"Y\")))","v":""},{"$f":"IF('Enrollment Form'!$O248<>\"Graded\",\"-\",IF(AND('Enrollment Form'!$O248=\"Graded\",'Enrollment Form'!$AO248<>\"\"),\"Y\",\"N\"))","v":"-"},{"$f":"IF($B241=\"N\",\"\",IF(OR('Enrollment Form'!$B248<>\"Subscriber\",'Enrollment Form'!$C248=\"ROC\"),\"-\",IF(AND('Enrollment Form'!$B248=\"Subscriber\",'Enrollment Form'!$C248=\"Enroll\",'Enrollment Form'!$AJ248<>\"\"),\"Y\",\"N\")))","v":""},{"$f":"IF($B241=\"N\",\"\",IF(OR('Enrollment Form'!$B248<>\"Subscriber\",'Enrollment Form'!$C248=\"ROC\"),\"-\",IF(AND('Enrollment Form'!$B248=\"Subscriber\",'Enrollment Form'!$C248=\"Enroll\",'Enrollment Form'!$AK248<>\"\"),\"Y\",\"N\")))","v":""},{"$f":"IF($B241=\"N\",\"\",IF(OR('Enrollment Form'!$B248<>\"Subscriber\",'Enrollment Form'!$C248=\"ROC\"),\"-\",IF(AND('Enrollment Form'!$B248=\"Subscriber\",'Enrollment Form'!$C248=\"Enroll\",'Enrollment Form'!$AL248<>\"\"),\"Y\",\"N\")))","v":""},{"$f":"IF($B241=\"N\",\"\",IF(OR('Enrollment Form'!$B248<>\"Subscriber\",'Enrollment Form'!$C248=\"ROC\"),\"-\",IF(AND('Enrollment Form'!$B248=\"Subscriber\",'Enrollment Form'!$C248=\"Enroll\",'Enrollment Form'!$AM248<>\"\"),\"Y\",\"N\")))","v":""},{"$f":"IF($B241=\"N\",\"\",IF(OR('Enrollment Form'!$B248<>\"Subscriber\",'Enrollment Form'!$C248=\"ROC\"),\"-\",IF(AND('Enrollment Form'!$B248=\"Subscriber\",'Enrollment Form'!$C248=\"Enroll\",'Enrollment Form'!$AN248<>\"\"),\"Y\",\"N\")))","v":""},{"$f":"IF($B241=\"N\",\"\",IF(OR('Enrollment Form'!$B248<>\"Subscriber\",'Enrollment Form'!$C248=\"ROC\"),\"-\",IF(AND('Enrollment Form'!$B248=\"Subscriber\",'Enrollment Form'!$C248=\"Enroll\",'Enrollment Form'!$AP248<>\"\"),\"Y\",\"N\")))","v":""},{"$f":"IF($B241=\"N\",\"\",IF($Q241=\"-\",\"-\",IF(AND($Q241=\"Y\",'Enrollment Form'!$AP248=\"No\"),\"-\",IF(AND($Q241=\"Y\",'Enrollment Form'!$AP248=\"Yes\",'Enrollment Form'!$AQ248<>\"\"),\"Y\",\"N\"))))","v":""},{"$f":"IF($B241=\"N\",\"\",IF(OR('Enrollment Form'!$B248<>\"Subscriber\",'Enrollment Form'!$C248=\"ROC\"),\"-\",IF(AND('Enrollment Form'!$B248=\"Subscriber\",'Enrollment Form'!$C248=\"Enroll\",'Enrollment Form'!$CO248<>\"\"),\"Y\",\"N\")))","v":""},{"$f":"IF($B241=\"N\",\"\",IF($S241=\"-\",\"-\",IF(AND($S241=\"Y\",'Enrollment Form'!$CO248=\"No\"),\"-\",IF(AND($S241=\"Y\",'Enrollment Form'!$CO248=\"Yes\",'Enrollment Form'!$CP248<>\"\"),\"Y\",\"N\"))))","v":""},{"$f":"IF(OR('Enrollment Form'!$AV248=\"Yes\",'Enrollment Form'!$AV248=\"\"),\"-\",IF(AND('Enrollment Form'!$AV248=\"No\",ISERROR(FIND(\"HMO\",VLOOKUP('Enrollment Form'!G248,'Enrollment Form'!H$11:J$1000,3,FALSE),1))=FALSE,COUNTA('Enrollment Form'!$AW248:$AZ248)=4),\"Y\",\"N\"))","v":"-"},{"$f":"IF($B241=\"N\",\"\",IF('Enrollment Form'!$B248=\"Subscriber\",\"-\",IF(COUNTA('Enrollment Form'!$BE248,'Enrollment Form'!$BG248)=2,\"Y\",\"N\")))","v":""},{"$f":"IF($B241=\"N\",\"\",IF(OR('Enrollment Form'!$AU248=\"\",'Enrollment Form'!$AU248=\"No\"),\"-\",IF(AND('Enrollment Form'!$AU248=\"Yes\",COUNTA('Enrollment Form'!$CK248)=1),\"Y\",\"N\")))","v":""},{"$f":"IF(OR('Enrollment Form'!$CK248=\"\",'Enrollment Form'!$CK248=\"No\"),\"-\",IF(COUNTA('Enrollment Form'!$CM248:$CN248)=2,\"Y\",\"N\"))","v":"-"},{"$f":"IF($B241=\"N\",\"\",IF(COUNTIF('Enrollment Form'!$CZ248:$DO248,\"Other\")=COUNTA('Enrollment Form'!$DF248,'Enrollment Form'!$DA248,'Enrollment Form'!$DK248,'Enrollment Form'!$DP248),\"Y\",\"N\"))","v":""},{"$f":"IF($B241=\"N\",\"\",IF(OR('Enrollment Form'!B248<>\"Subscriber\",'Enrollment Form'!C248=\"ROC\",COUNTIF('Enrollment Form'!AS248:AT248,\"Yes\")>=1),\"-\",IF(AND('Enrollment Form'!C248=\"Enroll\",COUNTIF('Enrollment Form'!AS248:AT248,\"No\")=2,'Enrollment Form'!AU248=\"\"),\"N\",\"Y\")))","v":""},{"$f":"IF(OR(B241=\"N\",'Enrollment Form'!B248<>\"Subscriber\",'Enrollment Form'!C248=\"ROC\",'Enrollment Form'!O248<>\"Multiple of Salary\"),\"-\",IF(COUNTA('Enrollment Form'!T248:U248)<2,\"N\",\"Y\"))","v":"-"},{"$f":"IF(B241=\"N\",\"\",IF(OR('Enrollment Form'!C248=\"ROC\",'Enrollment Form'!B248<>\"Subscriber\",'Enrollment Form'!O248=\"Waive\",'Enrollment Form'!O248=\"\"),\"-\",IF('Enrollment Form'!P248=\"\",\"N\",\"Y\")))","v":""},{"$f":"IF($B241=\"N\",\"\",IF(AND('Enrollment Form'!$C248=\"ROC\",'Enrollment Form'!$DS248<>\"\"),\"Y\",IF(AND('Enrollment Form'!$C248=\"ROC\",'Enrollment Form'!$DS248=\"\"),\"N\",IF(AND('Enrollment Form'!$C248=\"Enroll\",'Enrollment Form'!$B248=\"Subscriber\",'Enrollment Form'!$CQ248=\"No\",'Enrollment Form'!$DS248=\"\"),\"N\",IF(AND('Enrollment Form'!$C248=\"Enroll\",'Enrollment Form'!$B248=\"Subscriber\",'Enrollment Form'!$CQ248=\"Yes\"),\"-\",\"Y\")))))","v":""},{"$f":"IF($B241=\"N\",\"\",IF(AND('Enrollment Form'!$C248=\"ROC\",'Enrollment Form'!$DT248<>\"\"),\"Y\",IF(AND('Enrollment Form'!$C248=\"ROC\",'Enrollment Form'!$DT248=\"\"),\"N\",IF(AND('Enrollment Form'!$C248=\"Enroll\",'Enrollment Form'!$B248=\"Subscriber\",'Enrollment Form'!$CQ248=\"No\",'Enrollment Form'!$DT248=\"\"),\"N\",IF(AND('Enrollment Form'!$C248=\"Enroll\",'Enrollment Form'!$B248=\"Subscriber\",'Enrollment Form'!$CQ248=\"Yes\"),\"-\",\"Y\")))))","v":""},{"$f":"IF('Enrollment Form'!AH248=\"\",\"\",IF(ISERROR(SEARCH(\".\",'Enrollment Form'!AH248,SEARCH(\"@\",'Enrollment Form'!AH248))),\"N\",\"Y\"))","v":""},{"$f":"IF(OR($B241=\"N\",'Enrollment Form'!$G248=\"\"),\"\",IF('Enrollment Form'!$B248<>\"Subscriber\",\"-\",IF(COUNTIF('Enrollment Form'!$AS248:$AT248,\"Yes\")=2,\"N\",\"Y\")))","v":""},{"$f":"IF(OR('Enrollment Form'!$CC248=\"\",'Enrollment Form'!$CC248=\"No\"),\"-\",IF(AND('Enrollment Form'!$CC248=\"Yes\",'Enrollment Form'!$CD248=\"\"),\"N\",\"Y\"))","v":"-"},{"$f":"IF(OR('Enrollment Form'!$CE248=\"\",'Enrollment Form'!$CE248=\"No\"),\"-\",IF(AND('Enrollment Form'!$CE248=\"Yes\",'Enrollment Form'!$CF248=\"\"),\"N\",\"Y\"))","v":"-"},{"$f":"IF(OR('Enrollment Form'!$CG248=\"\",'Enrollment Form'!$CG248=\"No\"),\"-\",IF(AND('Enrollment Form'!$CG248=\"Yes\",'Enrollment Form'!$CH248=\"\"),\"N\",\"Y\"))","v":"-"},{"$f":"IF(OR('Enrollment Form'!$CG248=\"\",'Enrollment Form'!$CG248=\"No\"),\"-\",IF(AND('Enrollment Form'!$CG248=\"Yes\",'Enrollment Form'!$CI248=\"\"),\"N\",\"Y\"))","v":"-"},{"$f":"IF('Enrollment Form'!B248<>\"Subscriber\",\"-\",IF(AND('Enrollment Form'!B248=\"Subscriber\",'Enrollment Form'!C248=\"Enroll\",'Enrollment Form'!AA248=\"\"),\"N\",\"Y\"))","v":"-"},{"$f":"IF(OR('Enrollment Form'!B248=\"Subscriber\",'Enrollment Form'!B248=\"\"),\"-\",IF('Enrollment Form'!BI248=\"\",\"N\",\"Y\"))","v":"-"},{"$f":"IF('Enrollment Form'!B248<>\"Subscriber\",\"-\",IF(AND('Enrollment Form'!B248=\"Subscriber\",'Enrollment Form'!G248=\"\"),\"N\",\"Y\"))","v":"-"},{"$f":"IF('Enrollment Form'!A248=\"\",\"\",IF('Enrollment Form'!B248=\"Subscriber\",\"-\",IF(AND('Enrollment Form'!B248<>\"Subscriber\",'Enrollment Form'!G248='Enrollment Form'!H248),\"N\",\"Y\")))","v":""},0]
[249,{"$f":"IF('Enrollment Form'!$A249<>\"\",\"Y\",\"N\")","v":"N"},{"$f":"IF(AND('Enrollment Form'!$B249=\"\",'Enrollment Form'!$C249<>\"\"),\"N\",IF($B242=\"N\",\"\",\"Y\"))","v":""},{"$f":"IF(OR($B242=\"N\",'Enrollment Form'!G249=\"\"),\"\",IF('Enrollment Form'!$B249<>\"Subscriber\",\"\",IF('Enrollment Form'!$G249='Enrollment Form'!$H249,\"Y\",\"N\")))","v":""},{"$f":"IF($B242=\"N\",\"\",IF(AND(COUNTIFS('Enrollment Form'!$H$11:$H$1000,'Enrollment Form'!$H249,'Enrollment Form'!$B$11:$B$1000,'Enrollment Form'!$B249)>1,'Enrollment Form'!$H249<>\"\"),\"N\",\"Y\"))","v":""},{"$f":"IF($B242=\"N\",\"\",IF(LEN('Enrollment Form'!$Y249)=0,\"\",IF(LEN('Enrollment Form'!$Y249)<>5,\"N\",\"Y\")))","v":""},{"$f":"IF($B242=\"N\",\"\",IF(LEN('Enrollment Form'!$AD249=0),\"\",IF(LEN('Enrollment Form'!$AD249)<>5,\"N\",\"Y\")))","v":""},{"$f":"IF($B242=\"N\",\"\",IF(LEN('Enrollment Form'!$BL249=0),\"\",IF(LEN('Enrollment Form'!$BL249)<>5,\"N\",\"Y\")))","v":""},{"$f":"IF($B242=\"N\",\"\",IF(LEN('Enrollment Form'!$AE249)=0,\"\",IF(LEN('Enrollment Form'!$AE249)<>10,\"N\",\"Y\")))","v":""},{"$f":"IF($B242=\"N\",\"\",IF(LEN('Enrollment Form'!$AF249)=0,\"\",IF(LEN('Enrollment Form'!$AF249)<>10,\"N\",\"Y\")))","v":""},{"$f":"IF('Enrollment Form'!$O249<>\"Graded\",\"-\",IF(AND('Enrollment Form'!$O249=\"Graded\",'Enrollment Form'!$AO249<>\"\"),\"Y\",\"N\"))","v":"-"},{"$f":"IF($B242=\"N\",\"\",IF(OR('Enrollment Form'!$B249<>\"Subscriber\",'Enrollment Form'!$C249=\"ROC\"),\"-\",IF(AND('Enrollment Form'!$B249=\"Subscriber\",'Enrollment Form'!$C249=\"Enroll\",'Enrollment Form'!$AJ249<>\"\"),\"Y\",\"N\")))","v":""},{"$f":"IF($B242=\"N\",\"\",IF(OR('Enrollment Form'!$B249<>\"Subscriber\",'Enrollment Form'!$C249=\"ROC\"),\"-\",IF(AND('Enrollment Form'!$B249=\"Subscriber\",'Enrollment Form'!$C249=\"Enroll\",'Enrollment Form'!$AK249<>\"\"),\"Y\",\"N\")))","v":""},{"$f":"IF($B242=\"N\",\"\",IF(OR('Enrollment Form'!$B249<>\"Subscriber\",'Enrollment Form'!$C249=\"ROC\"),\"-\",IF(AND('Enrollment Form'!$B249=\"Subscriber\",'Enrollment Form'!$C249=\"Enroll\",'Enrollment Form'!$AL249<>\"\"),\"Y\",\"N\")))","v":""},{"$f":"IF($B242=\"N\",\"\",IF(OR('Enrollment Form'!$B249<>\"Subscriber\",'Enrollment Form'!$C249=\"ROC\"),\"-\",IF(AND('Enrollment Form'!$B249=\"Subscriber\",'Enrollment Form'!$C249=\"Enroll\",'Enrollment Form'!$AM249<>\"\"),\"Y\",\"N\")))","v":""},{"$f":"IF($B242=\"N\",\"\",IF(OR('Enrollment Form'!$B249<>\"Subscriber\",'Enrollment Form'!$C249=\"ROC\"),\"-\",IF(AND('Enrollment Form'!$B249=\"Subscriber\",'Enrollment Form'!$C249=\"Enroll\",'Enrollment Form'!$AN249<>\"\"),\"Y\",\"N\")))","v":""},{"$f":"IF($B242=\"N\",\"\",IF(OR('Enrollment Form'!$B249<>\"Subscriber\",'Enrollment Form'!$C249=\"ROC\"),\"-\",IF(AND('Enrollment Form'!$B249=\"Subscriber\",'Enrollment Form'!$C249=\"Enroll\",'Enrollment Form'!$AP249<>\"\"),\"Y\",\"N\")))","v":""},{"$f":"IF($B242=\"N\",\"\",IF($Q242=\"-\",\"-\",IF(AND($Q242=\"Y\",'Enrollment Form'!$AP249=\"No\"),\"-\",IF(AND($Q242=\"Y\",'Enrollment Form'!$AP249=\"Yes\",'Enrollment Form'!$AQ249<>\"\"),\"Y\",\"N\"))))","v":""},{"$f":"IF($B242=\"N\",\"\",IF(OR('Enrollment Form'!$B249<>\"Subscriber\",'Enrollment Form'!$C249=\"ROC\"),\"-\",IF(AND('Enrollment Form'!$B249=\"Subscriber\",'Enrollment Form'!$C249=\"Enroll\",'Enrollment Form'!$CO249<>\"\"),\"Y\",\"N\")))","v":""},{"$f":"IF($B242=\"N\",\"\",IF($S242=\"-\",\"-\",IF(AND($S242=\"Y\",'Enrollment Form'!$CO249=\"No\"),\"-\",IF(AND($S242=\"Y\",'Enrollment Form'!$CO249=\"Yes\",'Enrollment Form'!$CP249<>\"\"),\"Y\",\"N\"))))","v":""},{"$f":"IF(OR('Enrollment Form'!$AV249=\"Yes\",'Enrollment Form'!$AV249=\"\"),\"-\",IF(AND('Enrollment Form'!$AV249=\"No\",ISERROR(FIND(\"HMO\",VLOOKUP('Enrollment Form'!G249,'Enrollment Form'!H$11:J$1000,3,FALSE),1))=FALSE,COUNTA('Enrollment Form'!$AW249:$AZ249)=4),\"Y\",\"N\"))","v":"-"},{"$f":"IF($B242=\"N\",\"\",IF('Enrollment Form'!$B249=\"Subscriber\",\"-\",IF(COUNTA('Enrollment Form'!$BE249,'Enrollment Form'!$BG249)=2,\"Y\",\"N\")))","v":""},{"$f":"IF($B242=\"N\",\"\",IF(OR('Enrollment Form'!$AU249=\"\",'Enrollment Form'!$AU249=\"No\"),\"-\",IF(AND('Enrollment Form'!$AU249=\"Yes\",COUNTA('Enrollment Form'!$CK249)=1),\"Y\",\"N\")))","v":""},{"$f":"IF(OR('Enrollment Form'!$CK249=\"\",'Enrollment Form'!$CK249=\"No\"),\"-\",IF(COUNTA('Enrollment Form'!$CM249:$CN249)=2,\"Y\",\"N\"))","v":"-"},{"$f":"IF($B242=\"N\",\"\",IF(COUNTIF('Enrollment Form'!$CZ249:$DO249,\"Other\")=COUNTA('Enrollment Form'!$DF249,'Enrollment Form'!$DA249,'Enrollment Form'!$DK249,'Enrollment Form'!$DP249),\"Y\",\"N\"))","v":""},{"$f":"IF($B242=\"N\",\"\",IF(OR('Enrollment Form'!B249<>\"Subscriber\",'Enrollment Form'!C249=\"ROC\",COUNTIF('Enrollment Form'!AS249:AT249,\"Yes\")>=1),\"-\",IF(AND('Enrollment Form'!C249=\"Enroll\",COUNTIF('Enrollment Form'!AS249:AT249,\"No\")=2,'Enrollment Form'!AU249=\"\"),\"N\",\"Y\")))","v":""},{"$f":"IF(OR(B242=\"N\",'Enrollment Form'!B249<>\"Subscriber\",'Enrollment Form'!C249=\"ROC\",'Enrollment Form'!O249<>\"Multiple of Salary\"),\"-\",IF(COUNTA('Enrollment Form'!T249:U249)<2,\"N\",\"Y\"))","v":"-"},{"$f":"IF(B242=\"N\",\"\",IF(OR('Enrollment Form'!C249=\"ROC\",'Enrollment Form'!B249<>\"Subscriber\",'Enrollment Form'!O249=\"Waive\",'Enrollment Form'!O249=\"\"),\"-\",IF('Enrollment Form'!P249=\"\",\"N\",\"Y\")))","v":""},{"$f":"IF($B242=\"N\",\"\",IF(AND('Enrollment Form'!$C249=\"ROC\",'Enrollment Form'!$DS249<>\"\"),\"Y\",IF(AND('Enrollment Form'!$C249=\"ROC\",'Enrollment Form'!$DS249=\"\"),\"N\",IF(AND('Enrollment Form'!$C249=\"Enroll\",'Enrollment Form'!$B249=\"Subscriber\",'Enrollment Form'!$CQ249=\"No\",'Enrollment Form'!$DS249=\"\"),\"N\",IF(AND('Enrollment Form'!$C249=\"Enroll\",'Enrollment Form'!$B249=\"Subscriber\",'Enrollment Form'!$CQ249=\"Yes\"),\"-\",\"Y\")))))","v":""},{"$f":"IF($B242=\"N\",\"\",IF(AND('Enrollment Form'!$C249=\"ROC\",'Enrollment Form'!$DT249<>\"\"),\"Y\",IF(AND('Enrollment Form'!$C249=\"ROC\",'Enrollment Form'!$DT249=\"\"),\"N\",IF(AND('Enrollment Form'!$C249=\"Enroll\",'Enrollment Form'!$B249=\"Subscriber\",'Enrollment Form'!$CQ249=\"No\",'Enrollment Form'!$DT249=\"\"),\"N\",IF(AND('Enrollment Form'!$C249=\"Enroll\",'Enrollment Form'!$B249=\"Subscriber\",'Enrollment Form'!$CQ249=\"Yes\"),\"-\",\"Y\")))))","v":""},{"$f":"IF('Enrollment Form'!AH249=\"\",\"\",IF(ISERROR(SEARCH(\".\",'Enrollment Form'!AH249,SEARCH(\"@\",'Enrollment Form'!AH249))),\"N\",\"Y\"))","v":""},{"$f":"IF(OR($B242=\"N\",'Enrollment Form'!$G249=\"\"),\"\",IF('Enrollment Form'!$B249<>\"Subscriber\",\"-\",IF(COUNTIF('Enrollment Form'!$AS249:$AT249,\"Yes\")=2,\"N\",\"Y\")))","v":""},{"$f":"IF(OR('Enrollment Form'!$CC249=\"\",'Enrollment Form'!$CC249=\"No\"),\"-\",IF(AND('Enrollment Form'!$CC249=\"Yes\",'Enrollment Form'!$CD249=\"\"),\"N\",\"Y\"))","v":"-"},{"$f":"IF(OR('Enrollment Form'!$CE249=\"\",'Enrollment Form'!$CE249=\"No\"),\"-\",IF(AND('Enrollment Form'!$CE249=\"Yes\",'Enrollment Form'!$CF249=\"\"),\"N\",\"Y\"))","v":"-"},{"$f":"IF(OR('Enrollment Form'!$CG249=\"\",'Enrollment Form'!$CG249=\"No\"),\"-\",IF(AND('Enrollment Form'!$CG249=\"Yes\",'Enrollment Form'!$CH249=\"\"),\"N\",\"Y\"))","v":"-"},{"$f":"IF(OR('Enrollment Form'!$CG249=\"\",'Enrollment Form'!$CG249=\"No\"),\"-\",IF(AND('Enrollment Form'!$CG249=\"Yes\",'Enrollment Form'!$CI249=\"\"),\"N\",\"Y\"))","v":"-"},{"$f":"IF('Enrollment Form'!B249<>\"Subscriber\",\"-\",IF(AND('Enrollment Form'!B249=\"Subscriber\",'Enrollment Form'!C249=\"Enroll\",'Enrollment Form'!AA249=\"\"),\"N\",\"Y\"))","v":"-"},{"$f":"IF(OR('Enrollment Form'!B249=\"Subscriber\",'Enrollment Form'!B249=\"\"),\"-\",IF('Enrollment Form'!BI249=\"\",\"N\",\"Y\"))","v":"-"},{"$f":"IF('Enrollment Form'!B249<>\"Subscriber\",\"-\",IF(AND('Enrollment Form'!B249=\"Subscriber\",'Enrollment Form'!G249=\"\"),\"N\",\"Y\"))","v":"-"},{"$f":"IF('Enrollment Form'!A249=\"\",\"\",IF('Enrollment Form'!B249=\"Subscriber\",\"-\",IF(AND('Enrollment Form'!B249<>\"Subscriber\",'Enrollment Form'!G249='Enrollment Form'!H249),\"N\",\"Y\")))","v":""},0]
[250,{"$f":"IF('Enrollment Form'!$A250<>\"\",\"Y\",\"N\")","v":"N"},{"$f":"IF(AND('Enrollment Form'!$B250=\"\",'Enrollment Form'!$C250<>\"\"),\"N\",IF($B243=\"N\",\"\",\"Y\"))","v":""},{"$f":"IF(OR($B243=\"N\",'Enrollment Form'!G250=\"\"),\"\",IF('Enrollment Form'!$B250<>\"Subscriber\",\"\",IF('Enrollment Form'!$G250='Enrollment Form'!$H250,\"Y\",\"N\")))","v":""},{"$f":"IF($B243=\"N\",\"\",IF(AND(COUNTIFS('Enrollment Form'!$H$11:$H$1000,'Enrollment Form'!$H250,'Enrollment Form'!$B$11:$B$1000,'Enrollment Form'!$B250)>1,'Enrollment Form'!$H250<>\"\"),\"N\",\"Y\"))","v":""},{"$f":"IF($B243=\"N\",\"\",IF(LEN('Enrollment Form'!$Y250)=0,\"\",IF(LEN('Enrollment Form'!$Y250)<>5,\"N\",\"Y\")))","v":""},{"$f":"IF($B243=\"N\",\"\",IF(LEN('Enrollment Form'!$AD250=0),\"\",IF(LEN('Enrollment Form'!$AD250)<>5,\"N\",\"Y\")))","v":""},{"$f":"IF($B243=\"N\",\"\",IF(LEN('Enrollment Form'!$BL250=0),\"\",IF(LEN('Enrollment Form'!$BL250)<>5,\"N\",\"Y\")))","v":""},{"$f":"IF($B243=\"N\",\"\",IF(LEN('Enrollment Form'!$AE250)=0,\"\",IF(LEN('Enrollment Form'!$AE250)<>10,\"N\",\"Y\")))","v":""},{"$f":"IF($B243=\"N\",\"\",IF(LEN('Enrollment Form'!$AF250)=0,\"\",IF(LEN('Enrollment Form'!$AF250)<>10,\"N\",\"Y\")))","v":""},{"$f":"IF('Enrollment Form'!$O250<>\"Graded\",\"-\",IF(AND('Enrollment Form'!$O250=\"Graded\",'Enrollment Form'!$AO250<>\"\"),\"Y\",\"N\"))","v":"-"},{"$f":"IF($B243=\"N\",\"\",IF(OR('Enrollment Form'!$B250<>\"Subscriber\",'Enrollment Form'!$C250=\"ROC\"),\"-\",IF(AND('Enrollment Form'!$B250=\"Subscriber\",'Enrollment Form'!$C250=\"Enroll\",'Enrollment Form'!$AJ250<>\"\"),\"Y\",\"N\")))","v":""},{"$f":"IF($B243=\"N\",\"\",IF(OR('Enrollment Form'!$B250<>\"Subscriber\",'Enrollment Form'!$C250=\"ROC\"),\"-\",IF(AND('Enrollment Form'!$B250=\"Subscriber\",'Enrollment Form'!$C250=\"Enroll\",'Enrollment Form'!$AK250<>\"\"),\"Y\",\"N\")))","v":""},{"$f":"IF($B243=\"N\",\"\",IF(OR('Enrollment Form'!$B250<>\"Subscriber\",'Enrollment Form'!$C250=\"ROC\"),\"-\",IF(AND('Enrollment Form'!$B250=\"Subscriber\",'Enrollment Form'!$C250=\"Enroll\",'Enrollment Form'!$AL250<>\"\"),\"Y\",\"N\")))","v":""},{"$f":"IF($B243=\"N\",\"\",IF(OR('Enrollment Form'!$B250<>\"Subscriber\",'Enrollment Form'!$C250=\"ROC\"),\"-\",IF(AND('Enrollment Form'!$B250=\"Subscriber\",'Enrollment Form'!$C250=\"Enroll\",'Enrollment Form'!$AM250<>\"\"),\"Y\",\"N\")))","v":""},{"$f":"IF($B243=\"N\",\"\",IF(OR('Enrollment Form'!$B250<>\"Subscriber\",'Enrollment Form'!$C250=\"ROC\"),\"-\",IF(AND('Enrollment Form'!$B250=\"Subscriber\",'Enrollment Form'!$C250=\"Enroll\",'Enrollment Form'!$AN250<>\"\"),\"Y\",\"N\")))","v":""},{"$f":"IF($B243=\"N\",\"\",IF(OR('Enrollment Form'!$B250<>\"Subscriber\",'Enrollment Form'!$C250=\"ROC\"),\"-\",IF(AND('Enrollment Form'!$B250=\"Subscriber\",'Enrollment Form'!$C250=\"Enroll\",'Enrollment Form'!$AP250<>\"\"),\"Y\",\"N\")))","v":""},{"$f":"IF($B243=\"N\",\"\",IF($Q243=\"-\",\"-\",IF(AND($Q243=\"Y\",'Enrollment Form'!$AP250=\"No\"),\"-\",IF(AND($Q243=\"Y\",'Enrollment Form'!$AP250=\"Yes\",'Enrollment Form'!$AQ250<>\"\"),\"Y\",\"N\"))))","v":""},{"$f":"IF($B243=\"N\",\"\",IF(OR('Enrollment Form'!$B250<>\"Subscriber\",'Enrollment Form'!$C250=\"ROC\"),\"-\",IF(AND('Enrollment Form'!$B250=\"Subscriber\",'Enrollment Form'!$C250=\"Enroll\",'Enrollment Form'!$CO250<>\"\"),\"Y\",\"N\")))","v":""},{"$f":"IF($B243=\"N\",\"\",IF($S243=\"-\",\"-\",IF(AND($S243=\"Y\",'Enrollment Form'!$CO250=\"No\"),\"-\",IF(AND($S243=\"Y\",'Enrollment Form'!$CO250=\"Yes\",'Enrollment Form'!$CP250<>\"\"),\"Y\",\"N\"))))","v":""},{"$f":"IF(OR('Enrollment Form'!$AV250=\"Yes\",'Enrollment Form'!$AV250=\"\"),\"-\",IF(AND('Enrollment Form'!$AV250=\"No\",ISERROR(FIND(\"HMO\",VLOOKUP('Enrollment Form'!G250,'Enrollment Form'!H$11:J$1000,3,FALSE),1))=FALSE,COUNTA('Enrollment Form'!$AW250:$AZ250)=4),\"Y\",\"N\"))","v":"-"},{"$f":"IF($B243=\"N\",\"\",IF('Enrollment Form'!$B250=\"Subscriber\",\"-\",IF(COUNTA('Enrollment Form'!$BE250,'Enrollment Form'!$BG250)=2,\"Y\",\"N\")))","v":""},{"$f":"IF($B243=\"N\",\"\",IF(OR('Enrollment Form'!$AU250=\"\",'Enrollment Form'!$AU250=\"No\"),\"-\",IF(AND('Enrollment Form'!$AU250=\"Yes\",COUNTA('Enrollment Form'!$CK250)=1),\"Y\",\"N\")))","v":""},{"$f":"IF(OR('Enrollment Form'!$CK250=\"\",'Enrollment Form'!$CK250=\"No\"),\"-\",IF(COUNTA('Enrollment Form'!$CM250:$CN250)=2,\"Y\",\"N\"))","v":"-"},{"$f":"IF($B243=\"N\",\"\",IF(COUNTIF('Enrollment Form'!$CZ250:$DO250,\"Other\")=COUNTA('Enrollment Form'!$DF250,'Enrollment Form'!$DA250,'Enrollment Form'!$DK250,'Enrollment Form'!$DP250),\"Y\",\"N\"))","v":""},{"$f":"IF($B243=\"N\",\"\",IF(OR('Enrollment Form'!B250<>\"Subscriber\",'Enrollment Form'!C250=\"ROC\",COUNTIF('Enrollment Form'!AS250:AT250,\"Yes\")>=1),\"-\",IF(AND('Enrollment Form'!C250=\"Enroll\",COUNTIF('Enrollment Form'!AS250:AT250,\"No\")=2,'Enrollment Form'!AU250=\"\"),\"N\",\"Y\")))","v":""},{"$f":"IF(OR(B243=\"N\",'Enrollment Form'!B250<>\"Subscriber\",'Enrollment Form'!C250=\"ROC\",'Enrollment Form'!O250<>\"Multiple of Salary\"),\"-\",IF(COUNTA('Enrollment Form'!T250:U250)<2,\"N\",\"Y\"))","v":"-"},{"$f":"IF(B243=\"N\",\"\",IF(OR('Enrollment Form'!C250=\"ROC\",'Enrollment Form'!B250<>\"Subscriber\",'Enrollment Form'!O250=\"Waive\",'Enrollment Form'!O250=\"\"),\"-\",IF('Enrollment Form'!P250=\"\",\"N\",\"Y\")))","v":""},{"$f":"IF($B243=\"N\",\"\",IF(AND('Enrollment Form'!$C250=\"ROC\",'Enrollment Form'!$DS250<>\"\"),\"Y\",IF(AND('Enrollment Form'!$C250=\"ROC\",'Enrollment Form'!$DS250=\"\"),\"N\",IF(AND('Enrollment Form'!$C250=\"Enroll\",'Enrollment Form'!$B250=\"Subscriber\",'Enrollment Form'!$CQ250=\"No\",'Enrollment Form'!$DS250=\"\"),\"N\",IF(AND('Enrollment Form'!$C250=\"Enroll\",'Enrollment Form'!$B250=\"Subscriber\",'Enrollment Form'!$CQ250=\"Yes\"),\"-\",\"Y\")))))","v":""},{"$f":"IF($B243=\"N\",\"\",IF(AND('Enrollment Form'!$C250=\"ROC\",'Enrollment Form'!$DT250<>\"\"),\"Y\",IF(AND('Enrollment Form'!$C250=\"ROC\",'Enrollment Form'!$DT250=\"\"),\"N\",IF(AND('Enrollment Form'!$C250=\"Enroll\",'Enrollment Form'!$B250=\"Subscriber\",'Enrollment Form'!$CQ250=\"No\",'Enrollment Form'!$DT250=\"\"),\"N\",IF(AND('Enrollment Form'!$C250=\"Enroll\",'Enrollment Form'!$B250=\"Subscriber\",'Enrollment Form'!$CQ250=\"Yes\"),\"-\",\"Y\")))))","v":""},{"$f":"IF('Enrollment Form'!AH250=\"\",\"\",IF(ISERROR(SEARCH(\".\",'Enrollment Form'!AH250,SEARCH(\"@\",'Enrollment Form'!AH250))),\"N\",\"Y\"))","v":""},{"$f":"IF(OR($B243=\"N\",'Enrollment Form'!$G250=\"\"),\"\",IF('Enrollment Form'!$B250<>\"Subscriber\",\"-\",IF(COUNTIF('Enrollment Form'!$AS250:$AT250,\"Yes\")=2,\"N\",\"Y\")))","v":""},{"$f":"IF(OR('Enrollment Form'!$CC250=\"\",'Enrollment Form'!$CC250=\"No\"),\"-\",IF(AND('Enrollment Form'!$CC250=\"Yes\",'Enrollment Form'!$CD250=\"\"),\"N\",\"Y\"))","v":"-"},{"$f":"IF(OR('Enrollment Form'!$CE250=\"\",'Enrollment Form'!$CE250=\"No\"),\"-\",IF(AND('Enrollment Form'!$CE250=\"Yes\",'Enrollment Form'!$CF250=\"\"),\"N\",\"Y\"))","v":"-"},{"$f":"IF(OR('Enrollment Form'!$CG250=\"\",'Enrollment Form'!$CG250=\"No\"),\"-\",IF(AND('Enrollment Form'!$CG250=\"Yes\",'Enrollment Form'!$CH250=\"\"),\"N\",\"Y\"))","v":"-"},{"$f":"IF(OR('Enrollment Form'!$CG250=\"\",'Enrollment Form'!$CG250=\"No\"),\"-\",IF(AND('Enrollment Form'!$CG250=\"Yes\",'Enrollment Form'!$CI250=\"\"),\"N\",\"Y\"))","v":"-"},{"$f":"IF('Enrollment Form'!B250<>\"Subscriber\",\"-\",IF(AND('Enrollment Form'!B250=\"Subscriber\",'Enrollment Form'!C250=\"Enroll\",'Enrollment Form'!AA250=\"\"),\"N\",\"Y\"))","v":"-"},{"$f":"IF(OR('Enrollment Form'!B250=\"Subscriber\",'Enrollment Form'!B250=\"\"),\"-\",IF('Enrollment Form'!BI250=\"\",\"N\",\"Y\"))","v":"-"},{"$f":"IF('Enrollment Form'!B250<>\"Subscriber\",\"-\",IF(AND('Enrollment Form'!B250=\"Subscriber\",'Enrollment Form'!G250=\"\"),\"N\",\"Y\"))","v":"-"},{"$f":"IF('Enrollment Form'!A250=\"\",\"\",IF('Enrollment Form'!B250=\"Subscriber\",\"-\",IF(AND('Enrollment Form'!B250<>\"Subscriber\",'Enrollment Form'!G250='Enrollment Form'!H250),\"N\",\"Y\")))","v":""},0]
[251,{"$f":"IF('Enrollment Form'!$A251<>\"\",\"Y\",\"N\")","v":"N"},{"$f":"IF(AND('Enrollment Form'!$B251=\"\",'Enrollment Form'!$C251<>\"\"),\"N\",IF($B244=\"N\",\"\",\"Y\"))","v":""},{"$f":"IF(OR($B244=\"N\",'Enrollment Form'!G251=\"\"),\"\",IF('Enrollment Form'!$B251<>\"Subscriber\",\"\",IF('Enrollment Form'!$G251='Enrollment Form'!$H251,\"Y\",\"N\")))","v":""},{"$f":"IF($B244=\"N\",\"\",IF(AND(COUNTIFS('Enrollment Form'!$H$11:$H$1000,'Enrollment Form'!$H251,'Enrollment Form'!$B$11:$B$1000,'Enrollment Form'!$B251)>1,'Enrollment Form'!$H251<>\"\"),\"N\",\"Y\"))","v":""},{"$f":"IF($B244=\"N\",\"\",IF(LEN('Enrollment Form'!$Y251)=0,\"\",IF(LEN('Enrollment Form'!$Y251)<>5,\"N\",\"Y\")))","v":""},{"$f":"IF($B244=\"N\",\"\",IF(LEN('Enrollment Form'!$AD251=0),\"\",IF(LEN('Enrollment Form'!$AD251)<>5,\"N\",\"Y\")))","v":""},{"$f":"IF($B244=\"N\",\"\",IF(LEN('Enrollment Form'!$BL251=0),\"\",IF(LEN('Enrollment Form'!$BL251)<>5,\"N\",\"Y\")))","v":""},{"$f":"IF($B244=\"N\",\"\",IF(LEN('Enrollment Form'!$AE251)=0,\"\",IF(LEN('Enrollment Form'!$AE251)<>10,\"N\",\"Y\")))","v":""},{"$f":"IF($B244=\"N\",\"\",IF(LEN('Enrollment Form'!$AF251)=0,\"\",IF(LEN('Enrollment Form'!$AF251)<>10,\"N\",\"Y\")))","v":""},{"$f":"IF('Enrollment Form'!$O251<>\"Graded\",\"-\",IF(AND('Enrollment Form'!$O251=\"Graded\",'Enrollment Form'!$AO251<>\"\"),\"Y\",\"N\"))","v":"-"},{"$f":"IF($B244=\"N\",\"\",IF(OR('Enrollment Form'!$B251<>\"Subscriber\",'Enrollment Form'!$C251=\"ROC\"),\"-\",IF(AND('Enrollment Form'!$B251=\"Subscriber\",'Enrollment Form'!$C251=\"Enroll\",'Enrollment Form'!$AJ251<>\"\"),\"Y\",\"N\")))","v":""},{"$f":"IF($B244=\"N\",\"\",IF(OR('Enrollment Form'!$B251<>\"Subscriber\",'Enrollment Form'!$C251=\"ROC\"),\"-\",IF(AND('Enrollment Form'!$B251=\"Subscriber\",'Enrollment Form'!$C251=\"Enroll\",'Enrollment Form'!$AK251<>\"\"),\"Y\",\"N\")))","v":""},{"$f":"IF($B244=\"N\",\"\",IF(OR('Enrollment Form'!$B251<>\"Subscriber\",'Enrollment Form'!$C251=\"ROC\"),\"-\",IF(AND('Enrollment Form'!$B251=\"Subscriber\",'Enrollment Form'!$C251=\"Enroll\",'Enrollment Form'!$AL251<>\"\"),\"Y\",\"N\")))","v":""},{"$f":"IF($B244=\"N\",\"\",IF(OR('Enrollment Form'!$B251<>\"Subscriber\",'Enrollment Form'!$C251=\"ROC\"),\"-\",IF(AND('Enrollment Form'!$B251=\"Subscriber\",'Enrollment Form'!$C251=\"Enroll\",'Enrollment Form'!$AM251<>\"\"),\"Y\",\"N\")))","v":""},{"$f":"IF($B244=\"N\",\"\",IF(OR('Enrollment Form'!$B251<>\"Subscriber\",'Enrollment Form'!$C251=\"ROC\"),\"-\",IF(AND('Enrollment Form'!$B251=\"Subscriber\",'Enrollment Form'!$C251=\"Enroll\",'Enrollment Form'!$AN251<>\"\"),\"Y\",\"N\")))","v":""},{"$f":"IF($B244=\"N\",\"\",IF(OR('Enrollment Form'!$B251<>\"Subscriber\",'Enrollment Form'!$C251=\"ROC\"),\"-\",IF(AND('Enrollment Form'!$B251=\"Subscriber\",'Enrollment Form'!$C251=\"Enroll\",'Enrollment Form'!$AP251<>\"\"),\"Y\",\"N\")))","v":""},{"$f":"IF($B244=\"N\",\"\",IF($Q244=\"-\",\"-\",IF(AND($Q244=\"Y\",'Enrollment Form'!$AP251=\"No\"),\"-\",IF(AND($Q244=\"Y\",'Enrollment Form'!$AP251=\"Yes\",'Enrollment Form'!$AQ251<>\"\"),\"Y\",\"N\"))))","v":""},{"$f":"IF($B244=\"N\",\"\",IF(OR('Enrollment Form'!$B251<>\"Subscriber\",'Enrollment Form'!$C251=\"ROC\"),\"-\",IF(AND('Enrollment Form'!$B251=\"Subscriber\",'Enrollment Form'!$C251=\"Enroll\",'Enrollment Form'!$CO251<>\"\"),\"Y\",\"N\")))","v":""},{"$f":"IF($B244=\"N\",\"\",IF($S244=\"-\",\"-\",IF(AND($S244=\"Y\",'Enrollment Form'!$CO251=\"No\"),\"-\",IF(AND($S244=\"Y\",'Enrollment Form'!$CO251=\"Yes\",'Enrollment Form'!$CP251<>\"\"),\"Y\",\"N\"))))","v":""},{"$f":"IF(OR('Enrollment Form'!$AV251=\"Yes\",'Enrollment Form'!$AV251=\"\"),\"-\",IF(AND('Enrollment Form'!$AV251=\"No\",ISERROR(FIND(\"HMO\",VLOOKUP('Enrollment Form'!G251,'Enrollment Form'!H$11:J$1000,3,FALSE),1))=FALSE,COUNTA('Enrollment Form'!$AW251:$AZ251)=4),\"Y\",\"N\"))","v":"-"},{"$f":"IF($B244=\"N\",\"\",IF('Enrollment Form'!$B251=\"Subscriber\",\"-\",IF(COUNTA('Enrollment Form'!$BE251,'Enrollment Form'!$BG251)=2,\"Y\",\"N\")))","v":""},{"$f":"IF($B244=\"N\",\"\",IF(OR('Enrollment Form'!$AU251=\"\",'Enrollment Form'!$AU251=\"No\"),\"-\",IF(AND('Enrollment Form'!$AU251=\"Yes\",COUNTA('Enrollment Form'!$CK251)=1),\"Y\",\"N\")))","v":""},{"$f":"IF(OR('Enrollment Form'!$CK251=\"\",'Enrollment Form'!$CK251=\"No\"),\"-\",IF(COUNTA('Enrollment Form'!$CM251:$CN251)=2,\"Y\",\"N\"))","v":"-"},{"$f":"IF($B244=\"N\",\"\",IF(COUNTIF('Enrollment Form'!$CZ251:$DO251,\"Other\")=COUNTA('Enrollment Form'!$DF251,'Enrollment Form'!$DA251,'Enrollment Form'!$DK251,'Enrollment Form'!$DP251),\"Y\",\"N\"))","v":""},{"$f":"IF($B244=\"N\",\"\",IF(OR('Enrollment Form'!B251<>\"Subscriber\",'Enrollment Form'!C251=\"ROC\",COUNTIF('Enrollment Form'!AS251:AT251,\"Yes\")>=1),\"-\",IF(AND('Enrollment Form'!C251=\"Enroll\",COUNTIF('Enrollment Form'!AS251:AT251,\"No\")=2,'Enrollment Form'!AU251=\"\"),\"N\",\"Y\")))","v":""},{"$f":"IF(OR(B244=\"N\",'Enrollment Form'!B251<>\"Subscriber\",'Enrollment Form'!C251=\"ROC\",'Enrollment Form'!O251<>\"Multiple of Salary\"),\"-\",IF(COUNTA('Enrollment Form'!T251:U251)<2,\"N\",\"Y\"))","v":"-"},{"$f":"IF(B244=\"N\",\"\",IF(OR('Enrollment Form'!C251=\"ROC\",'Enrollment Form'!B251<>\"Subscriber\",'Enrollment Form'!O251=\"Waive\",'Enrollment Form'!O251=\"\"),\"-\",IF('Enrollment Form'!P251=\"\",\"N\",\"Y\")))","v":""},{"$f":"IF($B244=\"N\",\"\",IF(AND('Enrollment Form'!$C251=\"ROC\",'Enrollment Form'!$DS251<>\"\"),\"Y\",IF(AND('Enrollment Form'!$C251=\"ROC\",'Enrollment Form'!$DS251=\"\"),\"N\",IF(AND('Enrollment Form'!$C251=\"Enroll\",'Enrollment Form'!$B251=\"Subscriber\",'Enrollment Form'!$CQ251=\"No\",'Enrollment Form'!$DS251=\"\"),\"N\",IF(AND('Enrollment Form'!$C251=\"Enroll\",'Enrollment Form'!$B251=\"Subscriber\",'Enrollment Form'!$CQ251=\"Yes\"),\"-\",\"Y\")))))","v":""},{"$f":"IF($B244=\"N\",\"\",IF(AND('Enrollment Form'!$C251=\"ROC\",'Enrollment Form'!$DT251<>\"\"),\"Y\",IF(AND('Enrollment Form'!$C251=\"ROC\",'Enrollment Form'!$DT251=\"\"),\"N\",IF(AND('Enrollment Form'!$C251=\"Enroll\",'Enrollment Form'!$B251=\"Subscriber\",'Enrollment Form'!$CQ251=\"No\",'Enrollment Form'!$DT251=\"\"),\"N\",IF(AND('Enrollment Form'!$C251=\"Enroll\",'Enrollment Form'!$B251=\"Subscriber\",'Enrollment Form'!$CQ251=\"Yes\"),\"-\",\"Y\")))))","v":""},{"$f":"IF('Enrollment Form'!AH251=\"\",\"\",IF(ISERROR(SEARCH(\".\",'Enrollment Form'!AH251,SEARCH(\"@\",'Enrollment Form'!AH251))),\"N\",\"Y\"))","v":""},{"$f":"IF(OR($B244=\"N\",'Enrollment Form'!$G251=\"\"),\"\",IF('Enrollment Form'!$B251<>\"Subscriber\",\"-\",IF(COUNTIF('Enrollment Form'!$AS251:$AT251,\"Yes\")=2,\"N\",\"Y\")))","v":""},{"$f":"IF(OR('Enrollment Form'!$CC251=\"\",'Enrollment Form'!$CC251=\"No\"),\"-\",IF(AND('Enrollment Form'!$CC251=\"Yes\",'Enrollment Form'!$CD251=\"\"),\"N\",\"Y\"))","v":"-"},{"$f":"IF(OR('Enrollment Form'!$CE251=\"\",'Enrollment Form'!$CE251=\"No\"),\"-\",IF(AND('Enrollment Form'!$CE251=\"Yes\",'Enrollment Form'!$CF251=\"\"),\"N\",\"Y\"))","v":"-"},{"$f":"IF(OR('Enrollment Form'!$CG251=\"\",'Enrollment Form'!$CG251=\"No\"),\"-\",IF(AND('Enrollment Form'!$CG251=\"Yes\",'Enrollment Form'!$CH251=\"\"),\"N\",\"Y\"))","v":"-"},{"$f":"IF(OR('Enrollment Form'!$CG251=\"\",'Enrollment Form'!$CG251=\"No\"),\"-\",IF(AND('Enrollment Form'!$CG251=\"Yes\",'Enrollment Form'!$CI251=\"\"),\"N\",\"Y\"))","v":"-"},{"$f":"IF('Enrollment Form'!B251<>\"Subscriber\",\"-\",IF(AND('Enrollment Form'!B251=\"Subscriber\",'Enrollment Form'!C251=\"Enroll\",'Enrollment Form'!AA251=\"\"),\"N\",\"Y\"))","v":"-"},{"$f":"IF(OR('Enrollment Form'!B251=\"Subscriber\",'Enrollment Form'!B251=\"\"),\"-\",IF('Enrollment Form'!BI251=\"\",\"N\",\"Y\"))","v":"-"},{"$f":"IF('Enrollment Form'!B251<>\"Subscriber\",\"-\",IF(AND('Enrollment Form'!B251=\"Subscriber\",'Enrollment Form'!G251=\"\"),\"N\",\"Y\"))","v":"-"},{"$f":"IF('Enrollment Form'!A251=\"\",\"\",IF('Enrollment Form'!B251=\"Subscriber\",\"-\",IF(AND('Enrollment Form'!B251<>\"Subscriber\",'Enrollment Form'!G251='Enrollment Form'!H251),\"N\",\"Y\")))","v":""},0]
[252,{"$f":"IF('Enrollment Form'!$A252<>\"\",\"Y\",\"N\")","v":"N"},{"$f":"IF(AND('Enrollment Form'!$B252=\"\",'Enrollment Form'!$C252<>\"\"),\"N\",IF($B245=\"N\",\"\",\"Y\"))","v":""},{"$f":"IF(OR($B245=\"N\",'Enrollment Form'!G252=\"\"),\"\",IF('Enrollment Form'!$B252<>\"Subscriber\",\"\",IF('Enrollment Form'!$G252='Enrollment Form'!$H252,\"Y\",\"N\")))","v":""},{"$f":"IF($B245=\"N\",\"\",IF(AND(COUNTIFS('Enrollment Form'!$H$11:$H$1000,'Enrollment Form'!$H252,'Enrollment Form'!$B$11:$B$1000,'Enrollment Form'!$B252)>1,'Enrollment Form'!$H252<>\"\"),\"N\",\"Y\"))","v":""},{"$f":"IF($B245=\"N\",\"\",IF(LEN('Enrollment Form'!$Y252)=0,\"\",IF(LEN('Enrollment Form'!$Y252)<>5,\"N\",\"Y\")))","v":""},{"$f":"IF($B245=\"N\",\"\",IF(LEN('Enrollment Form'!$AD252=0),\"\",IF(LEN('Enrollment Form'!$AD252)<>5,\"N\",\"Y\")))","v":""},{"$f":"IF($B245=\"N\",\"\",IF(LEN('Enrollment Form'!$BL252=0),\"\",IF(LEN('Enrollment Form'!$BL252)<>5,\"N\",\"Y\")))","v":""},{"$f":"IF($B245=\"N\",\"\",IF(LEN('Enrollment Form'!$AE252)=0,\"\",IF(LEN('Enrollment Form'!$AE252)<>10,\"N\",\"Y\")))","v":""},{"$f":"IF($B245=\"N\",\"\",IF(LEN('Enrollment Form'!$AF252)=0,\"\",IF(LEN('Enrollment Form'!$AF252)<>10,\"N\",\"Y\")))","v":""},{"$f":"IF('Enrollment Form'!$O252<>\"Graded\",\"-\",IF(AND('Enrollment Form'!$O252=\"Graded\",'Enrollment Form'!$AO252<>\"\"),\"Y\",\"N\"))","v":"-"},{"$f":"IF($B245=\"N\",\"\",IF(OR('Enrollment Form'!$B252<>\"Subscriber\",'Enrollment Form'!$C252=\"ROC\"),\"-\",IF(AND('Enrollment Form'!$B252=\"Subscriber\",'Enrollment Form'!$C252=\"Enroll\",'Enrollment Form'!$AJ252<>\"\"),\"Y\",\"N\")))","v":""},{"$f":"IF($B245=\"N\",\"\",IF(OR('Enrollment Form'!$B252<>\"Subscriber\",'Enrollment Form'!$C252=\"ROC\"),\"-\",IF(AND('Enrollment Form'!$B252=\"Subscriber\",'Enrollment Form'!$C252=\"Enroll\",'Enrollment Form'!$AK252<>\"\"),\"Y\",\"N\")))","v":""},{"$f":"IF($B245=\"N\",\"\",IF(OR('Enrollment Form'!$B252<>\"Subscriber\",'Enrollment Form'!$C252=\"ROC\"),\"-\",IF(AND('Enrollment Form'!$B252=\"Subscriber\",'Enrollment Form'!$C252=\"Enroll\",'Enrollment Form'!$AL252<>\"\"),\"Y\",\"N\")))","v":""},{"$f":"IF($B245=\"N\",\"\",IF(OR('Enrollment Form'!$B252<>\"Subscriber\",'Enrollment Form'!$C252=\"ROC\"),\"-\",IF(AND('Enrollment Form'!$B252=\"Subscriber\",'Enrollment Form'!$C252=\"Enroll\",'Enrollment Form'!$AM252<>\"\"),\"Y\",\"N\")))","v":""},{"$f":"IF($B245=\"N\",\"\",IF(OR('Enrollment Form'!$B252<>\"Subscriber\",'Enrollment Form'!$C252=\"ROC\"),\"-\",IF(AND('Enrollment Form'!$B252=\"Subscriber\",'Enrollment Form'!$C252=\"Enroll\",'Enrollment Form'!$AN252<>\"\"),\"Y\",\"N\")))","v":""},{"$f":"IF($B245=\"N\",\"\",IF(OR('Enrollment Form'!$B252<>\"Subscriber\",'Enrollment Form'!$C252=\"ROC\"),\"-\",IF(AND('Enrollment Form'!$B252=\"Subscriber\",'Enrollment Form'!$C252=\"Enroll\",'Enrollment Form'!$AP252<>\"\"),\"Y\",\"N\")))","v":""},{"$f":"IF($B245=\"N\",\"\",IF($Q245=\"-\",\"-\",IF(AND($Q245=\"Y\",'Enrollment Form'!$AP252=\"No\"),\"-\",IF(AND($Q245=\"Y\",'Enrollment Form'!$AP252=\"Yes\",'Enrollment Form'!$AQ252<>\"\"),\"Y\",\"N\"))))","v":""},{"$f":"IF($B245=\"N\",\"\",IF(OR('Enrollment Form'!$B252<>\"Subscriber\",'Enrollment Form'!$C252=\"ROC\"),\"-\",IF(AND('Enrollment Form'!$B252=\"Subscriber\",'Enrollment Form'!$C252=\"Enroll\",'Enrollment Form'!$CO252<>\"\"),\"Y\",\"N\")))","v":""},{"$f":"IF($B245=\"N\",\"\",IF($S245=\"-\",\"-\",IF(AND($S245=\"Y\",'Enrollment Form'!$CO252=\"No\"),\"-\",IF(AND($S245=\"Y\",'Enrollment Form'!$CO252=\"Yes\",'Enrollment Form'!$CP252<>\"\"),\"Y\",\"N\"))))","v":""},{"$f":"IF(OR('Enrollment Form'!$AV252=\"Yes\",'Enrollment Form'!$AV252=\"\"),\"-\",IF(AND('Enrollment Form'!$AV252=\"No\",ISERROR(FIND(\"HMO\",VLOOKUP('Enrollment Form'!G252,'Enrollment Form'!H$11:J$1000,3,FALSE),1))=FALSE,COUNTA('Enrollment Form'!$AW252:$AZ252)=4),\"Y\",\"N\"))","v":"-"},{"$f":"IF($B245=\"N\",\"\",IF('Enrollment Form'!$B252=\"Subscriber\",\"-\",IF(COUNTA('Enrollment Form'!$BE252,'Enrollment Form'!$BG252)=2,\"Y\",\"N\")))","v":""},{"$f":"IF($B245=\"N\",\"\",IF(OR('Enrollment Form'!$AU252=\"\",'Enrollment Form'!$AU252=\"No\"),\"-\",IF(AND('Enrollment Form'!$AU252=\"Yes\",COUNTA('Enrollment Form'!$CK252)=1),\"Y\",\"N\")))","v":""},{"$f":"IF(OR('Enrollment Form'!$CK252=\"\",'Enrollment Form'!$CK252=\"No\"),\"-\",IF(COUNTA('Enrollment Form'!$CM252:$CN252)=2,\"Y\",\"N\"))","v":"-"},{"$f":"IF($B245=\"N\",\"\",IF(COUNTIF('Enrollment Form'!$CZ252:$DO252,\"Other\")=COUNTA('Enrollment Form'!$DF252,'Enrollment Form'!$DA252,'Enrollment Form'!$DK252,'Enrollment Form'!$DP252),\"Y\",\"N\"))","v":""},{"$f":"IF($B245=\"N\",\"\",IF(OR('Enrollment Form'!B252<>\"Subscriber\",'Enrollment Form'!C252=\"ROC\",COUNTIF('Enrollment Form'!AS252:AT252,\"Yes\")>=1),\"-\",IF(AND('Enrollment Form'!C252=\"Enroll\",COUNTIF('Enrollment Form'!AS252:AT252,\"No\")=2,'Enrollment Form'!AU252=\"\"),\"N\",\"Y\")))","v":""},{"$f":"IF(OR(B245=\"N\",'Enrollment Form'!B252<>\"Subscriber\",'Enrollment Form'!C252=\"ROC\",'Enrollment Form'!O252<>\"Multiple of Salary\"),\"-\",IF(COUNTA('Enrollment Form'!T252:U252)<2,\"N\",\"Y\"))","v":"-"},{"$f":"IF(B245=\"N\",\"\",IF(OR('Enrollment Form'!C252=\"ROC\",'Enrollment Form'!B252<>\"Subscriber\",'Enrollment Form'!O252=\"Waive\",'Enrollment Form'!O252=\"\"),\"-\",IF('Enrollment Form'!P252=\"\",\"N\",\"Y\")))","v":""},{"$f":"IF($B245=\"N\",\"\",IF(AND('Enrollment Form'!$C252=\"ROC\",'Enrollment Form'!$DS252<>\"\"),\"Y\",IF(AND('Enrollment Form'!$C252=\"ROC\",'Enrollment Form'!$DS252=\"\"),\"N\",IF(AND('Enrollment Form'!$C252=\"Enroll\",'Enrollment Form'!$B252=\"Subscriber\",'Enrollment Form'!$CQ252=\"No\",'Enrollment Form'!$DS252=\"\"),\"N\",IF(AND('Enrollment Form'!$C252=\"Enroll\",'Enrollment Form'!$B252=\"Subscriber\",'Enrollment Form'!$CQ252=\"Yes\"),\"-\",\"Y\")))))","v":""},{"$f":"IF($B245=\"N\",\"\",IF(AND('Enrollment Form'!$C252=\"ROC\",'Enrollment Form'!$DT252<>\"\"),\"Y\",IF(AND('Enrollment Form'!$C252=\"ROC\",'Enrollment Form'!$DT252=\"\"),\"N\",IF(AND('Enrollment Form'!$C252=\"Enroll\",'Enrollment Form'!$B252=\"Subscriber\",'Enrollment Form'!$CQ252=\"No\",'Enrollment Form'!$DT252=\"\"),\"N\",IF(AND('Enrollment Form'!$C252=\"Enroll\",'Enrollment Form'!$B252=\"Subscriber\",'Enrollment Form'!$CQ252=\"Yes\"),\"-\",\"Y\")))))","v":""},{"$f":"IF('Enrollment Form'!AH252=\"\",\"\",IF(ISERROR(SEARCH(\".\",'Enrollment Form'!AH252,SEARCH(\"@\",'Enrollment Form'!AH252))),\"N\",\"Y\"))","v":""},{"$f":"IF(OR($B245=\"N\",'Enrollment Form'!$G252=\"\"),\"\",IF('Enrollment Form'!$B252<>\"Subscriber\",\"-\",IF(COUNTIF('Enrollment Form'!$AS252:$AT252,\"Yes\")=2,\"N\",\"Y\")))","v":""},{"$f":"IF(OR('Enrollment Form'!$CC252=\"\",'Enrollment Form'!$CC252=\"No\"),\"-\",IF(AND('Enrollment Form'!$CC252=\"Yes\",'Enrollment Form'!$CD252=\"\"),\"N\",\"Y\"))","v":"-"},{"$f":"IF(OR('Enrollment Form'!$CE252=\"\",'Enrollment Form'!$CE252=\"No\"),\"-\",IF(AND('Enrollment Form'!$CE252=\"Yes\",'Enrollment Form'!$CF252=\"\"),\"N\",\"Y\"))","v":"-"},{"$f":"IF(OR('Enrollment Form'!$CG252=\"\",'Enrollment Form'!$CG252=\"No\"),\"-\",IF(AND('Enrollment Form'!$CG252=\"Yes\",'Enrollment Form'!$CH252=\"\"),\"N\",\"Y\"))","v":"-"},{"$f":"IF(OR('Enrollment Form'!$CG252=\"\",'Enrollment Form'!$CG252=\"No\"),\"-\",IF(AND('Enrollment Form'!$CG252=\"Yes\",'Enrollment Form'!$CI252=\"\"),\"N\",\"Y\"))","v":"-"},{"$f":"IF('Enrollment Form'!B252<>\"Subscriber\",\"-\",IF(AND('Enrollment Form'!B252=\"Subscriber\",'Enrollment Form'!C252=\"Enroll\",'Enrollment Form'!AA252=\"\"),\"N\",\"Y\"))","v":"-"},{"$f":"IF(OR('Enrollment Form'!B252=\"Subscriber\",'Enrollment Form'!B252=\"\"),\"-\",IF('Enrollment Form'!BI252=\"\",\"N\",\"Y\"))","v":"-"},{"$f":"IF('Enrollment Form'!B252<>\"Subscriber\",\"-\",IF(AND('Enrollment Form'!B252=\"Subscriber\",'Enrollment Form'!G252=\"\"),\"N\",\"Y\"))","v":"-"},{"$f":"IF('Enrollment Form'!A252=\"\",\"\",IF('Enrollment Form'!B252=\"Subscriber\",\"-\",IF(AND('Enrollment Form'!B252<>\"Subscriber\",'Enrollment Form'!G252='Enrollment Form'!H252),\"N\",\"Y\")))","v":""},0]
[253,{"$f":"IF('Enrollment Form'!$A253<>\"\",\"Y\",\"N\")","v":"N"},{"$f":"IF(AND('Enrollment Form'!$B253=\"\",'Enrollment Form'!$C253<>\"\"),\"N\",IF($B246=\"N\",\"\",\"Y\"))","v":""},{"$f":"IF(OR($B246=\"N\",'Enrollment Form'!G253=\"\"),\"\",IF('Enrollment Form'!$B253<>\"Subscriber\",\"\",IF('Enrollment Form'!$G253='Enrollment Form'!$H253,\"Y\",\"N\")))","v":""},{"$f":"IF($B246=\"N\",\"\",IF(AND(COUNTIFS('Enrollment Form'!$H$11:$H$1000,'Enrollment Form'!$H253,'Enrollment Form'!$B$11:$B$1000,'Enrollment Form'!$B253)>1,'Enrollment Form'!$H253<>\"\"),\"N\",\"Y\"))","v":""},{"$f":"IF($B246=\"N\",\"\",IF(LEN('Enrollment Form'!$Y253)=0,\"\",IF(LEN('Enrollment Form'!$Y253)<>5,\"N\",\"Y\")))","v":""},{"$f":"IF($B246=\"N\",\"\",IF(LEN('Enrollment Form'!$AD253=0),\"\",IF(LEN('Enrollment Form'!$AD253)<>5,\"N\",\"Y\")))","v":""},{"$f":"IF($B246=\"N\",\"\",IF(LEN('Enrollment Form'!$BL253=0),\"\",IF(LEN('Enrollment Form'!$BL253)<>5,\"N\",\"Y\")))","v":""},{"$f":"IF($B246=\"N\",\"\",IF(LEN('Enrollment Form'!$AE253)=0,\"\",IF(LEN('Enrollment Form'!$AE253)<>10,\"N\",\"Y\")))","v":""},{"$f":"IF($B246=\"N\",\"\",IF(LEN('Enrollment Form'!$AF253)=0,\"\",IF(LEN('Enrollment Form'!$AF253)<>10,\"N\",\"Y\")))","v":""},{"$f":"IF('Enrollment Form'!$O253<>\"Graded\",\"-\",IF(AND('Enrollment Form'!$O253=\"Graded\",'Enrollment Form'!$AO253<>\"\"),\"Y\",\"N\"))","v":"-"},{"$f":"IF($B246=\"N\",\"\",IF(OR('Enrollment Form'!$B253<>\"Subscriber\",'Enrollment Form'!$C253=\"ROC\"),\"-\",IF(AND('Enrollment Form'!$B253=\"Subscriber\",'Enrollment Form'!$C253=\"Enroll\",'Enrollment Form'!$AJ253<>\"\"),\"Y\",\"N\")))","v":""},{"$f":"IF($B246=\"N\",\"\",IF(OR('Enrollment Form'!$B253<>\"Subscriber\",'Enrollment Form'!$C253=\"ROC\"),\"-\",IF(AND('Enrollment Form'!$B253=\"Subscriber\",'Enrollment Form'!$C253=\"Enroll\",'Enrollment Form'!$AK253<>\"\"),\"Y\",\"N\")))","v":""},{"$f":"IF($B246=\"N\",\"\",IF(OR('Enrollment Form'!$B253<>\"Subscriber\",'Enrollment Form'!$C253=\"ROC\"),\"-\",IF(AND('Enrollment Form'!$B253=\"Subscriber\",'Enrollment Form'!$C253=\"Enroll\",'Enrollment Form'!$AL253<>\"\"),\"Y\",\"N\")))","v":""},{"$f":"IF($B246=\"N\",\"\",IF(OR('Enrollment Form'!$B253<>\"Subscriber\",'Enrollment Form'!$C253=\"ROC\"),\"-\",IF(AND('Enrollment Form'!$B253=\"Subscriber\",'Enrollment Form'!$C253=\"Enroll\",'Enrollment Form'!$AM253<>\"\"),\"Y\",\"N\")))","v":""},{"$f":"IF($B246=\"N\",\"\",IF(OR('Enrollment Form'!$B253<>\"Subscriber\",'Enrollment Form'!$C253=\"ROC\"),\"-\",IF(AND('Enrollment Form'!$B253=\"Subscriber\",'Enrollment Form'!$C253=\"Enroll\",'Enrollment Form'!$AN253<>\"\"),\"Y\",\"N\")))","v":""},{"$f":"IF($B246=\"N\",\"\",IF(OR('Enrollment Form'!$B253<>\"Subscriber\",'Enrollment Form'!$C253=\"ROC\"),\"-\",IF(AND('Enrollment Form'!$B253=\"Subscriber\",'Enrollment Form'!$C253=\"Enroll\",'Enrollment Form'!$AP253<>\"\"),\"Y\",\"N\")))","v":""},{"$f":"IF($B246=\"N\",\"\",IF($Q246=\"-\",\"-\",IF(AND($Q246=\"Y\",'Enrollment Form'!$AP253=\"No\"),\"-\",IF(AND($Q246=\"Y\",'Enrollment Form'!$AP253=\"Yes\",'Enrollment Form'!$AQ253<>\"\"),\"Y\",\"N\"))))","v":""},{"$f":"IF($B246=\"N\",\"\",IF(OR('Enrollment Form'!$B253<>\"Subscriber\",'Enrollment Form'!$C253=\"ROC\"),\"-\",IF(AND('Enrollment Form'!$B253=\"Subscriber\",'Enrollment Form'!$C253=\"Enroll\",'Enrollment Form'!$CO253<>\"\"),\"Y\",\"N\")))","v":""},{"$f":"IF($B246=\"N\",\"\",IF($S246=\"-\",\"-\",IF(AND($S246=\"Y\",'Enrollment Form'!$CO253=\"No\"),\"-\",IF(AND($S246=\"Y\",'Enrollment Form'!$CO253=\"Yes\",'Enrollment Form'!$CP253<>\"\"),\"Y\",\"N\"))))","v":""},{"$f":"IF(OR('Enrollment Form'!$AV253=\"Yes\",'Enrollment Form'!$AV253=\"\"),\"-\",IF(AND('Enrollment Form'!$AV253=\"No\",ISERROR(FIND(\"HMO\",VLOOKUP('Enrollment Form'!G253,'Enrollment Form'!H$11:J$1000,3,FALSE),1))=FALSE,COUNTA('Enrollment Form'!$AW253:$AZ253)=4),\"Y\",\"N\"))","v":"-"},{"$f":"IF($B246=\"N\",\"\",IF('Enrollment Form'!$B253=\"Subscriber\",\"-\",IF(COUNTA('Enrollment Form'!$BE253,'Enrollment Form'!$BG253)=2,\"Y\",\"N\")))","v":""},{"$f":"IF($B246=\"N\",\"\",IF(OR('Enrollment Form'!$AU253=\"\",'Enrollment Form'!$AU253=\"No\"),\"-\",IF(AND('Enrollment Form'!$AU253=\"Yes\",COUNTA('Enrollment Form'!$CK253)=1),\"Y\",\"N\")))","v":""},{"$f":"IF(OR('Enrollment Form'!$CK253=\"\",'Enrollment Form'!$CK253=\"No\"),\"-\",IF(COUNTA('Enrollment Form'!$CM253:$CN253)=2,\"Y\",\"N\"))","v":"-"},{"$f":"IF($B246=\"N\",\"\",IF(COUNTIF('Enrollment Form'!$CZ253:$DO253,\"Other\")=COUNTA('Enrollment Form'!$DF253,'Enrollment Form'!$DA253,'Enrollment Form'!$DK253,'Enrollment Form'!$DP253),\"Y\",\"N\"))","v":""},{"$f":"IF($B246=\"N\",\"\",IF(OR('Enrollment Form'!B253<>\"Subscriber\",'Enrollment Form'!C253=\"ROC\",COUNTIF('Enrollment Form'!AS253:AT253,\"Yes\")>=1),\"-\",IF(AND('Enrollment Form'!C253=\"Enroll\",COUNTIF('Enrollment Form'!AS253:AT253,\"No\")=2,'Enrollment Form'!AU253=\"\"),\"N\",\"Y\")))","v":""},{"$f":"IF(OR(B246=\"N\",'Enrollment Form'!B253<>\"Subscriber\",'Enrollment Form'!C253=\"ROC\",'Enrollment Form'!O253<>\"Multiple of Salary\"),\"-\",IF(COUNTA('Enrollment Form'!T253:U253)<2,\"N\",\"Y\"))","v":"-"},{"$f":"IF(B246=\"N\",\"\",IF(OR('Enrollment Form'!C253=\"ROC\",'Enrollment Form'!B253<>\"Subscriber\",'Enrollment Form'!O253=\"Waive\",'Enrollment Form'!O253=\"\"),\"-\",IF('Enrollment Form'!P253=\"\",\"N\",\"Y\")))","v":""},{"$f":"IF($B246=\"N\",\"\",IF(AND('Enrollment Form'!$C253=\"ROC\",'Enrollment Form'!$DS253<>\"\"),\"Y\",IF(AND('Enrollment Form'!$C253=\"ROC\",'Enrollment Form'!$DS253=\"\"),\"N\",IF(AND('Enrollment Form'!$C253=\"Enroll\",'Enrollment Form'!$B253=\"Subscriber\",'Enrollment Form'!$CQ253=\"No\",'Enrollment Form'!$DS253=\"\"),\"N\",IF(AND('Enrollment Form'!$C253=\"Enroll\",'Enrollment Form'!$B253=\"Subscriber\",'Enrollment Form'!$CQ253=\"Yes\"),\"-\",\"Y\")))))","v":""},{"$f":"IF($B246=\"N\",\"\",IF(AND('Enrollment Form'!$C253=\"ROC\",'Enrollment Form'!$DT253<>\"\"),\"Y\",IF(AND('Enrollment Form'!$C253=\"ROC\",'Enrollment Form'!$DT253=\"\"),\"N\",IF(AND('Enrollment Form'!$C253=\"Enroll\",'Enrollment Form'!$B253=\"Subscriber\",'Enrollment Form'!$CQ253=\"No\",'Enrollment Form'!$DT253=\"\"),\"N\",IF(AND('Enrollment Form'!$C253=\"Enroll\",'Enrollment Form'!$B253=\"Subscriber\",'Enrollment Form'!$CQ253=\"Yes\"),\"-\",\"Y\")))))","v":""},{"$f":"IF('Enrollment Form'!AH253=\"\",\"\",IF(ISERROR(SEARCH(\".\",'Enrollment Form'!AH253,SEARCH(\"@\",'Enrollment Form'!AH253))),\"N\",\"Y\"))","v":""},{"$f":"IF(OR($B246=\"N\",'Enrollment Form'!$G253=\"\"),\"\",IF('Enrollment Form'!$B253<>\"Subscriber\",\"-\",IF(COUNTIF('Enrollment Form'!$AS253:$AT253,\"Yes\")=2,\"N\",\"Y\")))","v":""},{"$f":"IF(OR('Enrollment Form'!$CC253=\"\",'Enrollment Form'!$CC253=\"No\"),\"-\",IF(AND('Enrollment Form'!$CC253=\"Yes\",'Enrollment Form'!$CD253=\"\"),\"N\",\"Y\"))","v":"-"},{"$f":"IF(OR('Enrollment Form'!$CE253=\"\",'Enrollment Form'!$CE253=\"No\"),\"-\",IF(AND('Enrollment Form'!$CE253=\"Yes\",'Enrollment Form'!$CF253=\"\"),\"N\",\"Y\"))","v":"-"},{"$f":"IF(OR('Enrollment Form'!$CG253=\"\",'Enrollment Form'!$CG253=\"No\"),\"-\",IF(AND('Enrollment Form'!$CG253=\"Yes\",'Enrollment Form'!$CH253=\"\"),\"N\",\"Y\"))","v":"-"},{"$f":"IF(OR('Enrollment Form'!$CG253=\"\",'Enrollment Form'!$CG253=\"No\"),\"-\",IF(AND('Enrollment Form'!$CG253=\"Yes\",'Enrollment Form'!$CI253=\"\"),\"N\",\"Y\"))","v":"-"},{"$f":"IF('Enrollment Form'!B253<>\"Subscriber\",\"-\",IF(AND('Enrollment Form'!B253=\"Subscriber\",'Enrollment Form'!C253=\"Enroll\",'Enrollment Form'!AA253=\"\"),\"N\",\"Y\"))","v":"-"},{"$f":"IF(OR('Enrollment Form'!B253=\"Subscriber\",'Enrollment Form'!B253=\"\"),\"-\",IF('Enrollment Form'!BI253=\"\",\"N\",\"Y\"))","v":"-"},{"$f":"IF('Enrollment Form'!B253<>\"Subscriber\",\"-\",IF(AND('Enrollment Form'!B253=\"Subscriber\",'Enrollment Form'!G253=\"\"),\"N\",\"Y\"))","v":"-"},{"$f":"IF('Enrollment Form'!A253=\"\",\"\",IF('Enrollment Form'!B253=\"Subscriber\",\"-\",IF(AND('Enrollment Form'!B253<>\"Subscriber\",'Enrollment Form'!G253='Enrollment Form'!H253),\"N\",\"Y\")))","v":""},0]
[254,{"$f":"IF('Enrollment Form'!$A254<>\"\",\"Y\",\"N\")","v":"N"},{"$f":"IF(AND('Enrollment Form'!$B254=\"\",'Enrollment Form'!$C254<>\"\"),\"N\",IF($B247=\"N\",\"\",\"Y\"))","v":""},{"$f":"IF(OR($B247=\"N\",'Enrollment Form'!G254=\"\"),\"\",IF('Enrollment Form'!$B254<>\"Subscriber\",\"\",IF('Enrollment Form'!$G254='Enrollment Form'!$H254,\"Y\",\"N\")))","v":""},{"$f":"IF($B247=\"N\",\"\",IF(AND(COUNTIFS('Enrollment Form'!$H$11:$H$1000,'Enrollment Form'!$H254,'Enrollment Form'!$B$11:$B$1000,'Enrollment Form'!$B254)>1,'Enrollment Form'!$H254<>\"\"),\"N\",\"Y\"))","v":""},{"$f":"IF($B247=\"N\",\"\",IF(LEN('Enrollment Form'!$Y254)=0,\"\",IF(LEN('Enrollment Form'!$Y254)<>5,\"N\",\"Y\")))","v":""},{"$f":"IF($B247=\"N\",\"\",IF(LEN('Enrollment Form'!$AD254=0),\"\",IF(LEN('Enrollment Form'!$AD254)<>5,\"N\",\"Y\")))","v":""},{"$f":"IF($B247=\"N\",\"\",IF(LEN('Enrollment Form'!$BL254=0),\"\",IF(LEN('Enrollment Form'!$BL254)<>5,\"N\",\"Y\")))","v":""},{"$f":"IF($B247=\"N\",\"\",IF(LEN('Enrollment Form'!$AE254)=0,\"\",IF(LEN('Enrollment Form'!$AE254)<>10,\"N\",\"Y\")))","v":""},{"$f":"IF($B247=\"N\",\"\",IF(LEN('Enrollment Form'!$AF254)=0,\"\",IF(LEN('Enrollment Form'!$AF254)<>10,\"N\",\"Y\")))","v":""},{"$f":"IF('Enrollment Form'!$O254<>\"Graded\",\"-\",IF(AND('Enrollment Form'!$O254=\"Graded\",'Enrollment Form'!$AO254<>\"\"),\"Y\",\"N\"))","v":"-"},{"$f":"IF($B247=\"N\",\"\",IF(OR('Enrollment Form'!$B254<>\"Subscriber\",'Enrollment Form'!$C254=\"ROC\"),\"-\",IF(AND('Enrollment Form'!$B254=\"Subscriber\",'Enrollment Form'!$C254=\"Enroll\",'Enrollment Form'!$AJ254<>\"\"),\"Y\",\"N\")))","v":""},{"$f":"IF($B247=\"N\",\"\",IF(OR('Enrollment Form'!$B254<>\"Subscriber\",'Enrollment Form'!$C254=\"ROC\"),\"-\",IF(AND('Enrollment Form'!$B254=\"Subscriber\",'Enrollment Form'!$C254=\"Enroll\",'Enrollment Form'!$AK254<>\"\"),\"Y\",\"N\")))","v":""},{"$f":"IF($B247=\"N\",\"\",IF(OR('Enrollment Form'!$B254<>\"Subscriber\",'Enrollment Form'!$C254=\"ROC\"),\"-\",IF(AND('Enrollment Form'!$B254=\"Subscriber\",'Enrollment Form'!$C254=\"Enroll\",'Enrollment Form'!$AL254<>\"\"),\"Y\",\"N\")))","v":""},{"$f":"IF($B247=\"N\",\"\",IF(OR('Enrollment Form'!$B254<>\"Subscriber\",'Enrollment Form'!$C254=\"ROC\"),\"-\",IF(AND('Enrollment Form'!$B254=\"Subscriber\",'Enrollment Form'!$C254=\"Enroll\",'Enrollment Form'!$AM254<>\"\"),\"Y\",\"N\")))","v":""},{"$f":"IF($B247=\"N\",\"\",IF(OR('Enrollment Form'!$B254<>\"Subscriber\",'Enrollment Form'!$C254=\"ROC\"),\"-\",IF(AND('Enrollment Form'!$B254=\"Subscriber\",'Enrollment Form'!$C254=\"Enroll\",'Enrollment Form'!$AN254<>\"\"),\"Y\",\"N\")))","v":""},{"$f":"IF($B247=\"N\",\"\",IF(OR('Enrollment Form'!$B254<>\"Subscriber\",'Enrollment Form'!$C254=\"ROC\"),\"-\",IF(AND('Enrollment Form'!$B254=\"Subscriber\",'Enrollment Form'!$C254=\"Enroll\",'Enrollment Form'!$AP254<>\"\"),\"Y\",\"N\")))","v":""},{"$f":"IF($B247=\"N\",\"\",IF($Q247=\"-\",\"-\",IF(AND($Q247=\"Y\",'Enrollment Form'!$AP254=\"No\"),\"-\",IF(AND($Q247=\"Y\",'Enrollment Form'!$AP254=\"Yes\",'Enrollment Form'!$AQ254<>\"\"),\"Y\",\"N\"))))","v":""},{"$f":"IF($B247=\"N\",\"\",IF(OR('Enrollment Form'!$B254<>\"Subscriber\",'Enrollment Form'!$C254=\"ROC\"),\"-\",IF(AND('Enrollment Form'!$B254=\"Subscriber\",'Enrollment Form'!$C254=\"Enroll\",'Enrollment Form'!$CO254<>\"\"),\"Y\",\"N\")))","v":""},{"$f":"IF($B247=\"N\",\"\",IF($S247=\"-\",\"-\",IF(AND($S247=\"Y\",'Enrollment Form'!$CO254=\"No\"),\"-\",IF(AND($S247=\"Y\",'Enrollment Form'!$CO254=\"Yes\",'Enrollment Form'!$CP254<>\"\"),\"Y\",\"N\"))))","v":""},{"$f":"IF(OR('Enrollment Form'!$AV254=\"Yes\",'Enrollment Form'!$AV254=\"\"),\"-\",IF(AND('Enrollment Form'!$AV254=\"No\",ISERROR(FIND(\"HMO\",VLOOKUP('Enrollment Form'!G254,'Enrollment Form'!H$11:J$1000,3,FALSE),1))=FALSE,COUNTA('Enrollment Form'!$AW254:$AZ254)=4),\"Y\",\"N\"))","v":"-"},{"$f":"IF($B247=\"N\",\"\",IF('Enrollment Form'!$B254=\"Subscriber\",\"-\",IF(COUNTA('Enrollment Form'!$BE254,'Enrollment Form'!$BG254)=2,\"Y\",\"N\")))","v":""},{"$f":"IF($B247=\"N\",\"\",IF(OR('Enrollment Form'!$AU254=\"\",'Enrollment Form'!$AU254=\"No\"),\"-\",IF(AND('Enrollment Form'!$AU254=\"Yes\",COUNTA('Enrollment Form'!$CK254)=1),\"Y\",\"N\")))","v":""},{"$f":"IF(OR('Enrollment Form'!$CK254=\"\",'Enrollment Form'!$CK254=\"No\"),\"-\",IF(COUNTA('Enrollment Form'!$CM254:$CN254)=2,\"Y\",\"N\"))","v":"-"},{"$f":"IF($B247=\"N\",\"\",IF(COUNTIF('Enrollment Form'!$CZ254:$DO254,\"Other\")=COUNTA('Enrollment Form'!$DF254,'Enrollment Form'!$DA254,'Enrollment Form'!$DK254,'Enrollment Form'!$DP254),\"Y\",\"N\"))","v":""},{"$f":"IF($B247=\"N\",\"\",IF(OR('Enrollment Form'!B254<>\"Subscriber\",'Enrollment Form'!C254=\"ROC\",COUNTIF('Enrollment Form'!AS254:AT254,\"Yes\")>=1),\"-\",IF(AND('Enrollment Form'!C254=\"Enroll\",COUNTIF('Enrollment Form'!AS254:AT254,\"No\")=2,'Enrollment Form'!AU254=\"\"),\"N\",\"Y\")))","v":""},{"$f":"IF(OR(B247=\"N\",'Enrollment Form'!B254<>\"Subscriber\",'Enrollment Form'!C254=\"ROC\",'Enrollment Form'!O254<>\"Multiple of Salary\"),\"-\",IF(COUNTA('Enrollment Form'!T254:U254)<2,\"N\",\"Y\"))","v":"-"},{"$f":"IF(B247=\"N\",\"\",IF(OR('Enrollment Form'!C254=\"ROC\",'Enrollment Form'!B254<>\"Subscriber\",'Enrollment Form'!O254=\"Waive\",'Enrollment Form'!O254=\"\"),\"-\",IF('Enrollment Form'!P254=\"\",\"N\",\"Y\")))","v":""},{"$f":"IF($B247=\"N\",\"\",IF(AND('Enrollment Form'!$C254=\"ROC\",'Enrollment Form'!$DS254<>\"\"),\"Y\",IF(AND('Enrollment Form'!$C254=\"ROC\",'Enrollment Form'!$DS254=\"\"),\"N\",IF(AND('Enrollment Form'!$C254=\"Enroll\",'Enrollment Form'!$B254=\"Subscriber\",'Enrollment Form'!$CQ254=\"No\",'Enrollment Form'!$DS254=\"\"),\"N\",IF(AND('Enrollment Form'!$C254=\"Enroll\",'Enrollment Form'!$B254=\"Subscriber\",'Enrollment Form'!$CQ254=\"Yes\"),\"-\",\"Y\")))))","v":""},{"$f":"IF($B247=\"N\",\"\",IF(AND('Enrollment Form'!$C254=\"ROC\",'Enrollment Form'!$DT254<>\"\"),\"Y\",IF(AND('Enrollment Form'!$C254=\"ROC\",'Enrollment Form'!$DT254=\"\"),\"N\",IF(AND('Enrollment Form'!$C254=\"Enroll\",'Enrollment Form'!$B254=\"Subscriber\",'Enrollment Form'!$CQ254=\"No\",'Enrollment Form'!$DT254=\"\"),\"N\",IF(AND('Enrollment Form'!$C254=\"Enroll\",'Enrollment Form'!$B254=\"Subscriber\",'Enrollment Form'!$CQ254=\"Yes\"),\"-\",\"Y\")))))","v":""},{"$f":"IF('Enrollment Form'!AH254=\"\",\"\",IF(ISERROR(SEARCH(\".\",'Enrollment Form'!AH254,SEARCH(\"@\",'Enrollment Form'!AH254))),\"N\",\"Y\"))","v":""},{"$f":"IF(OR($B247=\"N\",'Enrollment Form'!$G254=\"\"),\"\",IF('Enrollment Form'!$B254<>\"Subscriber\",\"-\",IF(COUNTIF('Enrollment Form'!$AS254:$AT254,\"Yes\")=2,\"N\",\"Y\")))","v":""},{"$f":"IF(OR('Enrollment Form'!$CC254=\"\",'Enrollment Form'!$CC254=\"No\"),\"-\",IF(AND('Enrollment Form'!$CC254=\"Yes\",'Enrollment Form'!$CD254=\"\"),\"N\",\"Y\"))","v":"-"},{"$f":"IF(OR('Enrollment Form'!$CE254=\"\",'Enrollment Form'!$CE254=\"No\"),\"-\",IF(AND('Enrollment Form'!$CE254=\"Yes\",'Enrollment Form'!$CF254=\"\"),\"N\",\"Y\"))","v":"-"},{"$f":"IF(OR('Enrollment Form'!$CG254=\"\",'Enrollment Form'!$CG254=\"No\"),\"-\",IF(AND('Enrollment Form'!$CG254=\"Yes\",'Enrollment Form'!$CH254=\"\"),\"N\",\"Y\"))","v":"-"},{"$f":"IF(OR('Enrollment Form'!$CG254=\"\",'Enrollment Form'!$CG254=\"No\"),\"-\",IF(AND('Enrollment Form'!$CG254=\"Yes\",'Enrollment Form'!$CI254=\"\"),\"N\",\"Y\"))","v":"-"},{"$f":"IF('Enrollment Form'!B254<>\"Subscriber\",\"-\",IF(AND('Enrollment Form'!B254=\"Subscriber\",'Enrollment Form'!C254=\"Enroll\",'Enrollment Form'!AA254=\"\"),\"N\",\"Y\"))","v":"-"},{"$f":"IF(OR('Enrollment Form'!B254=\"Subscriber\",'Enrollment Form'!B254=\"\"),\"-\",IF('Enrollment Form'!BI254=\"\",\"N\",\"Y\"))","v":"-"},{"$f":"IF('Enrollment Form'!B254<>\"Subscriber\",\"-\",IF(AND('Enrollment Form'!B254=\"Subscriber\",'Enrollment Form'!G254=\"\"),\"N\",\"Y\"))","v":"-"},{"$f":"IF('Enrollment Form'!A254=\"\",\"\",IF('Enrollment Form'!B254=\"Subscriber\",\"-\",IF(AND('Enrollment Form'!B254<>\"Subscriber\",'Enrollment Form'!G254='Enrollment Form'!H254),\"N\",\"Y\")))","v":""},0]
[255,{"$f":"IF('Enrollment Form'!$A255<>\"\",\"Y\",\"N\")","v":"N"},{"$f":"IF(AND('Enrollment Form'!$B255=\"\",'Enrollment Form'!$C255<>\"\"),\"N\",IF($B248=\"N\",\"\",\"Y\"))","v":""},{"$f":"IF(OR($B248=\"N\",'Enrollment Form'!G255=\"\"),\"\",IF('Enrollment Form'!$B255<>\"Subscriber\",\"\",IF('Enrollment Form'!$G255='Enrollment Form'!$H255,\"Y\",\"N\")))","v":""},{"$f":"IF($B248=\"N\",\"\",IF(AND(COUNTIFS('Enrollment Form'!$H$11:$H$1000,'Enrollment Form'!$H255,'Enrollment Form'!$B$11:$B$1000,'Enrollment Form'!$B255)>1,'Enrollment Form'!$H255<>\"\"),\"N\",\"Y\"))","v":""},{"$f":"IF($B248=\"N\",\"\",IF(LEN('Enrollment Form'!$Y255)=0,\"\",IF(LEN('Enrollment Form'!$Y255)<>5,\"N\",\"Y\")))","v":""},{"$f":"IF($B248=\"N\",\"\",IF(LEN('Enrollment Form'!$AD255=0),\"\",IF(LEN('Enrollment Form'!$AD255)<>5,\"N\",\"Y\")))","v":""},{"$f":"IF($B248=\"N\",\"\",IF(LEN('Enrollment Form'!$BL255=0),\"\",IF(LEN('Enrollment Form'!$BL255)<>5,\"N\",\"Y\")))","v":""},{"$f":"IF($B248=\"N\",\"\",IF(LEN('Enrollment Form'!$AE255)=0,\"\",IF(LEN('Enrollment Form'!$AE255)<>10,\"N\",\"Y\")))","v":""},{"$f":"IF($B248=\"N\",\"\",IF(LEN('Enrollment Form'!$AF255)=0,\"\",IF(LEN('Enrollment Form'!$AF255)<>10,\"N\",\"Y\")))","v":""},{"$f":"IF('Enrollment Form'!$O255<>\"Graded\",\"-\",IF(AND('Enrollment Form'!$O255=\"Graded\",'Enrollment Form'!$AO255<>\"\"),\"Y\",\"N\"))","v":"-"},{"$f":"IF($B248=\"N\",\"\",IF(OR('Enrollment Form'!$B255<>\"Subscriber\",'Enrollment Form'!$C255=\"ROC\"),\"-\",IF(AND('Enrollment Form'!$B255=\"Subscriber\",'Enrollment Form'!$C255=\"Enroll\",'Enrollment Form'!$AJ255<>\"\"),\"Y\",\"N\")))","v":""},{"$f":"IF($B248=\"N\",\"\",IF(OR('Enrollment Form'!$B255<>\"Subscriber\",'Enrollment Form'!$C255=\"ROC\"),\"-\",IF(AND('Enrollment Form'!$B255=\"Subscriber\",'Enrollment Form'!$C255=\"Enroll\",'Enrollment Form'!$AK255<>\"\"),\"Y\",\"N\")))","v":""},{"$f":"IF($B248=\"N\",\"\",IF(OR('Enrollment Form'!$B255<>\"Subscriber\",'Enrollment Form'!$C255=\"ROC\"),\"-\",IF(AND('Enrollment Form'!$B255=\"Subscriber\",'Enrollment Form'!$C255=\"Enroll\",'Enrollment Form'!$AL255<>\"\"),\"Y\",\"N\")))","v":""},{"$f":"IF($B248=\"N\",\"\",IF(OR('Enrollment Form'!$B255<>\"Subscriber\",'Enrollment Form'!$C255=\"ROC\"),\"-\",IF(AND('Enrollment Form'!$B255=\"Subscriber\",'Enrollment Form'!$C255=\"Enroll\",'Enrollment Form'!$AM255<>\"\"),\"Y\",\"N\")))","v":""},{"$f":"IF($B248=\"N\",\"\",IF(OR('Enrollment Form'!$B255<>\"Subscriber\",'Enrollment Form'!$C255=\"ROC\"),\"-\",IF(AND('Enrollment Form'!$B255=\"Subscriber\",'Enrollment Form'!$C255=\"Enroll\",'Enrollment Form'!$AN255<>\"\"),\"Y\",\"N\")))","v":""},{"$f":"IF($B248=\"N\",\"\",IF(OR('Enrollment Form'!$B255<>\"Subscriber\",'Enrollment Form'!$C255=\"ROC\"),\"-\",IF(AND('Enrollment Form'!$B255=\"Subscriber\",'Enrollment Form'!$C255=\"Enroll\",'Enrollment Form'!$AP255<>\"\"),\"Y\",\"N\")))","v":""},{"$f":"IF($B248=\"N\",\"\",IF($Q248=\"-\",\"-\",IF(AND($Q248=\"Y\",'Enrollment Form'!$AP255=\"No\"),\"-\",IF(AND($Q248=\"Y\",'Enrollment Form'!$AP255=\"Yes\",'Enrollment Form'!$AQ255<>\"\"),\"Y\",\"N\"))))","v":""},{"$f":"IF($B248=\"N\",\"\",IF(OR('Enrollment Form'!$B255<>\"Subscriber\",'Enrollment Form'!$C255=\"ROC\"),\"-\",IF(AND('Enrollment Form'!$B255=\"Subscriber\",'Enrollment Form'!$C255=\"Enroll\",'Enrollment Form'!$CO255<>\"\"),\"Y\",\"N\")))","v":""},{"$f":"IF($B248=\"N\",\"\",IF($S248=\"-\",\"-\",IF(AND($S248=\"Y\",'Enrollment Form'!$CO255=\"No\"),\"-\",IF(AND($S248=\"Y\",'Enrollment Form'!$CO255=\"Yes\",'Enrollment Form'!$CP255<>\"\"),\"Y\",\"N\"))))","v":""},{"$f":"IF(OR('Enrollment Form'!$AV255=\"Yes\",'Enrollment Form'!$AV255=\"\"),\"-\",IF(AND('Enrollment Form'!$AV255=\"No\",ISERROR(FIND(\"HMO\",VLOOKUP('Enrollment Form'!G255,'Enrollment Form'!H$11:J$1000,3,FALSE),1))=FALSE,COUNTA('Enrollment Form'!$AW255:$AZ255)=4),\"Y\",\"N\"))","v":"-"},{"$f":"IF($B248=\"N\",\"\",IF('Enrollment Form'!$B255=\"Subscriber\",\"-\",IF(COUNTA('Enrollment Form'!$BE255,'Enrollment Form'!$BG255)=2,\"Y\",\"N\")))","v":""},{"$f":"IF($B248=\"N\",\"\",IF(OR('Enrollment Form'!$AU255=\"\",'Enrollment Form'!$AU255=\"No\"),\"-\",IF(AND('Enrollment Form'!$AU255=\"Yes\",COUNTA('Enrollment Form'!$CK255)=1),\"Y\",\"N\")))","v":""},{"$f":"IF(OR('Enrollment Form'!$CK255=\"\",'Enrollment Form'!$CK255=\"No\"),\"-\",IF(COUNTA('Enrollment Form'!$CM255:$CN255)=2,\"Y\",\"N\"))","v":"-"},{"$f":"IF($B248=\"N\",\"\",IF(COUNTIF('Enrollment Form'!$CZ255:$DO255,\"Other\")=COUNTA('Enrollment Form'!$DF255,'Enrollment Form'!$DA255,'Enrollment Form'!$DK255,'Enrollment Form'!$DP255),\"Y\",\"N\"))","v":""},{"$f":"IF($B248=\"N\",\"\",IF(OR('Enrollment Form'!B255<>\"Subscriber\",'Enrollment Form'!C255=\"ROC\",COUNTIF('Enrollment Form'!AS255:AT255,\"Yes\")>=1),\"-\",IF(AND('Enrollment Form'!C255=\"Enroll\",COUNTIF('Enrollment Form'!AS255:AT255,\"No\")=2,'Enrollment Form'!AU255=\"\"),\"N\",\"Y\")))","v":""},{"$f":"IF(OR(B248=\"N\",'Enrollment Form'!B255<>\"Subscriber\",'Enrollment Form'!C255=\"ROC\",'Enrollment Form'!O255<>\"Multiple of Salary\"),\"-\",IF(COUNTA('Enrollment Form'!T255:U255)<2,\"N\",\"Y\"))","v":"-"},{"$f":"IF(B248=\"N\",\"\",IF(OR('Enrollment Form'!C255=\"ROC\",'Enrollment Form'!B255<>\"Subscriber\",'Enrollment Form'!O255=\"Waive\",'Enrollment Form'!O255=\"\"),\"-\",IF('Enrollment Form'!P255=\"\",\"N\",\"Y\")))","v":""},{"$f":"IF($B248=\"N\",\"\",IF(AND('Enrollment Form'!$C255=\"ROC\",'Enrollment Form'!$DS255<>\"\"),\"Y\",IF(AND('Enrollment Form'!$C255=\"ROC\",'Enrollment Form'!$DS255=\"\"),\"N\",IF(AND('Enrollment Form'!$C255=\"Enroll\",'Enrollment Form'!$B255=\"Subscriber\",'Enrollment Form'!$CQ255=\"No\",'Enrollment Form'!$DS255=\"\"),\"N\",IF(AND('Enrollment Form'!$C255=\"Enroll\",'Enrollment Form'!$B255=\"Subscriber\",'Enrollment Form'!$CQ255=\"Yes\"),\"-\",\"Y\")))))","v":""},{"$f":"IF($B248=\"N\",\"\",IF(AND('Enrollment Form'!$C255=\"ROC\",'Enrollment Form'!$DT255<>\"\"),\"Y\",IF(AND('Enrollment Form'!$C255=\"ROC\",'Enrollment Form'!$DT255=\"\"),\"N\",IF(AND('Enrollment Form'!$C255=\"Enroll\",'Enrollment Form'!$B255=\"Subscriber\",'Enrollment Form'!$CQ255=\"No\",'Enrollment Form'!$DT255=\"\"),\"N\",IF(AND('Enrollment Form'!$C255=\"Enroll\",'Enrollment Form'!$B255=\"Subscriber\",'Enrollment Form'!$CQ255=\"Yes\"),\"-\",\"Y\")))))","v":""},{"$f":"IF('Enrollment Form'!AH255=\"\",\"\",IF(ISERROR(SEARCH(\".\",'Enrollment Form'!AH255,SEARCH(\"@\",'Enrollment Form'!AH255))),\"N\",\"Y\"))","v":""},{"$f":"IF(OR($B248=\"N\",'Enrollment Form'!$G255=\"\"),\"\",IF('Enrollment Form'!$B255<>\"Subscriber\",\"-\",IF(COUNTIF('Enrollment Form'!$AS255:$AT255,\"Yes\")=2,\"N\",\"Y\")))","v":""},{"$f":"IF(OR('Enrollment Form'!$CC255=\"\",'Enrollment Form'!$CC255=\"No\"),\"-\",IF(AND('Enrollment Form'!$CC255=\"Yes\",'Enrollment Form'!$CD255=\"\"),\"N\",\"Y\"))","v":"-"},{"$f":"IF(OR('Enrollment Form'!$CE255=\"\",'Enrollment Form'!$CE255=\"No\"),\"-\",IF(AND('Enrollment Form'!$CE255=\"Yes\",'Enrollment Form'!$CF255=\"\"),\"N\",\"Y\"))","v":"-"},{"$f":"IF(OR('Enrollment Form'!$CG255=\"\",'Enrollment Form'!$CG255=\"No\"),\"-\",IF(AND('Enrollment Form'!$CG255=\"Yes\",'Enrollment Form'!$CH255=\"\"),\"N\",\"Y\"))","v":"-"},{"$f":"IF(OR('Enrollment Form'!$CG255=\"\",'Enrollment Form'!$CG255=\"No\"),\"-\",IF(AND('Enrollment Form'!$CG255=\"Yes\",'Enrollment Form'!$CI255=\"\"),\"N\",\"Y\"))","v":"-"},{"$f":"IF('Enrollment Form'!B255<>\"Subscriber\",\"-\",IF(AND('Enrollment Form'!B255=\"Subscriber\",'Enrollment Form'!C255=\"Enroll\",'Enrollment Form'!AA255=\"\"),\"N\",\"Y\"))","v":"-"},{"$f":"IF(OR('Enrollment Form'!B255=\"Subscriber\",'Enrollment Form'!B255=\"\"),\"-\",IF('Enrollment Form'!BI255=\"\",\"N\",\"Y\"))","v":"-"},{"$f":"IF('Enrollment Form'!B255<>\"Subscriber\",\"-\",IF(AND('Enrollment Form'!B255=\"Subscriber\",'Enrollment Form'!G255=\"\"),\"N\",\"Y\"))","v":"-"},{"$f":"IF('Enrollment Form'!A255=\"\",\"\",IF('Enrollment Form'!B255=\"Subscriber\",\"-\",IF(AND('Enrollment Form'!B255<>\"Subscriber\",'Enrollment Form'!G255='Enrollment Form'!H255),\"N\",\"Y\")))","v":""},0]
[256,{"$f":"IF('Enrollment Form'!$A256<>\"\",\"Y\",\"N\")","v":"N"},{"$f":"IF(AND('Enrollment Form'!$B256=\"\",'Enrollment Form'!$C256<>\"\"),\"N\",IF($B249=\"N\",\"\",\"Y\"))","v":""},{"$f":"IF(OR($B249=\"N\",'Enrollment Form'!G256=\"\"),\"\",IF('Enrollment Form'!$B256<>\"Subscriber\",\"\",IF('Enrollment Form'!$G256='Enrollment Form'!$H256,\"Y\",\"N\")))","v":""},{"$f":"IF($B249=\"N\",\"\",IF(AND(COUNTIFS('Enrollment Form'!$H$11:$H$1000,'Enrollment Form'!$H256,'Enrollment Form'!$B$11:$B$1000,'Enrollment Form'!$B256)>1,'Enrollment Form'!$H256<>\"\"),\"N\",\"Y\"))","v":""},{"$f":"IF($B249=\"N\",\"\",IF(LEN('Enrollment Form'!$Y256)=0,\"\",IF(LEN('Enrollment Form'!$Y256)<>5,\"N\",\"Y\")))","v":""},{"$f":"IF($B249=\"N\",\"\",IF(LEN('Enrollment Form'!$AD256=0),\"\",IF(LEN('Enrollment Form'!$AD256)<>5,\"N\",\"Y\")))","v":""},{"$f":"IF($B249=\"N\",\"\",IF(LEN('Enrollment Form'!$BL256=0),\"\",IF(LEN('Enrollment Form'!$BL256)<>5,\"N\",\"Y\")))","v":""},{"$f":"IF($B249=\"N\",\"\",IF(LEN('Enrollment Form'!$AE256)=0,\"\",IF(LEN('Enrollment Form'!$AE256)<>10,\"N\",\"Y\")))","v":""},{"$f":"IF($B249=\"N\",\"\",IF(LEN('Enrollment Form'!$AF256)=0,\"\",IF(LEN('Enrollment Form'!$AF256)<>10,\"N\",\"Y\")))","v":""},{"$f":"IF('Enrollment Form'!$O256<>\"Graded\",\"-\",IF(AND('Enrollment Form'!$O256=\"Graded\",'Enrollment Form'!$AO256<>\"\"),\"Y\",\"N\"))","v":"-"},{"$f":"IF($B249=\"N\",\"\",IF(OR('Enrollment Form'!$B256<>\"Subscriber\",'Enrollment Form'!$C256=\"ROC\"),\"-\",IF(AND('Enrollment Form'!$B256=\"Subscriber\",'Enrollment Form'!$C256=\"Enroll\",'Enrollment Form'!$AJ256<>\"\"),\"Y\",\"N\")))","v":""},{"$f":"IF($B249=\"N\",\"\",IF(OR('Enrollment Form'!$B256<>\"Subscriber\",'Enrollment Form'!$C256=\"ROC\"),\"-\",IF(AND('Enrollment Form'!$B256=\"Subscriber\",'Enrollment Form'!$C256=\"Enroll\",'Enrollment Form'!$AK256<>\"\"),\"Y\",\"N\")))","v":""},{"$f":"IF($B249=\"N\",\"\",IF(OR('Enrollment Form'!$B256<>\"Subscriber\",'Enrollment Form'!$C256=\"ROC\"),\"-\",IF(AND('Enrollment Form'!$B256=\"Subscriber\",'Enrollment Form'!$C256=\"Enroll\",'Enrollment Form'!$AL256<>\"\"),\"Y\",\"N\")))","v":""},{"$f":"IF($B249=\"N\",\"\",IF(OR('Enrollment Form'!$B256<>\"Subscriber\",'Enrollment Form'!$C256=\"ROC\"),\"-\",IF(AND('Enrollment Form'!$B256=\"Subscriber\",'Enrollment Form'!$C256=\"Enroll\",'Enrollment Form'!$AM256<>\"\"),\"Y\",\"N\")))","v":""},{"$f":"IF($B249=\"N\",\"\",IF(OR('Enrollment Form'!$B256<>\"Subscriber\",'Enrollment Form'!$C256=\"ROC\"),\"-\",IF(AND('Enrollment Form'!$B256=\"Subscriber\",'Enrollment Form'!$C256=\"Enroll\",'Enrollment Form'!$AN256<>\"\"),\"Y\",\"N\")))","v":""},{"$f":"IF($B249=\"N\",\"\",IF(OR('Enrollment Form'!$B256<>\"Subscriber\",'Enrollment Form'!$C256=\"ROC\"),\"-\",IF(AND('Enrollment Form'!$B256=\"Subscriber\",'Enrollment Form'!$C256=\"Enroll\",'Enrollment Form'!$AP256<>\"\"),\"Y\",\"N\")))","v":""},{"$f":"IF($B249=\"N\",\"\",IF($Q249=\"-\",\"-\",IF(AND($Q249=\"Y\",'Enrollment Form'!$AP256=\"No\"),\"-\",IF(AND($Q249=\"Y\",'Enrollment Form'!$AP256=\"Yes\",'Enrollment Form'!$AQ256<>\"\"),\"Y\",\"N\"))))","v":""},{"$f":"IF($B249=\"N\",\"\",IF(OR('Enrollment Form'!$B256<>\"Subscriber\",'Enrollment Form'!$C256=\"ROC\"),\"-\",IF(AND('Enrollment Form'!$B256=\"Subscriber\",'Enrollment Form'!$C256=\"Enroll\",'Enrollment Form'!$CO256<>\"\"),\"Y\",\"N\")))","v":""},{"$f":"IF($B249=\"N\",\"\",IF($S249=\"-\",\"-\",IF(AND($S249=\"Y\",'Enrollment Form'!$CO256=\"No\"),\"-\",IF(AND($S249=\"Y\",'Enrollment Form'!$CO256=\"Yes\",'Enrollment Form'!$CP256<>\"\"),\"Y\",\"N\"))))","v":""},{"$f":"IF(OR('Enrollment Form'!$AV256=\"Yes\",'Enrollment Form'!$AV256=\"\"),\"-\",IF(AND('Enrollment Form'!$AV256=\"No\",ISERROR(FIND(\"HMO\",VLOOKUP('Enrollment Form'!G256,'Enrollment Form'!H$11:J$1000,3,FALSE),1))=FALSE,COUNTA('Enrollment Form'!$AW256:$AZ256)=4),\"Y\",\"N\"))","v":"-"},{"$f":"IF($B249=\"N\",\"\",IF('Enrollment Form'!$B256=\"Subscriber\",\"-\",IF(COUNTA('Enrollment Form'!$BE256,'Enrollment Form'!$BG256)=2,\"Y\",\"N\")))","v":""},{"$f":"IF($B249=\"N\",\"\",IF(OR('Enrollment Form'!$AU256=\"\",'Enrollment Form'!$AU256=\"No\"),\"-\",IF(AND('Enrollment Form'!$AU256=\"Yes\",COUNTA('Enrollment Form'!$CK256)=1),\"Y\",\"N\")))","v":""},{"$f":"IF(OR('Enrollment Form'!$CK256=\"\",'Enrollment Form'!$CK256=\"No\"),\"-\",IF(COUNTA('Enrollment Form'!$CM256:$CN256)=2,\"Y\",\"N\"))","v":"-"},{"$f":"IF($B249=\"N\",\"\",IF(COUNTIF('Enrollment Form'!$CZ256:$DO256,\"Other\")=COUNTA('Enrollment Form'!$DF256,'Enrollment Form'!$DA256,'Enrollment Form'!$DK256,'Enrollment Form'!$DP256),\"Y\",\"N\"))","v":""},{"$f":"IF($B249=\"N\",\"\",IF(OR('Enrollment Form'!B256<>\"Subscriber\",'Enrollment Form'!C256=\"ROC\",COUNTIF('Enrollment Form'!AS256:AT256,\"Yes\")>=1),\"-\",IF(AND('Enrollment Form'!C256=\"Enroll\",COUNTIF('Enrollment Form'!AS256:AT256,\"No\")=2,'Enrollment Form'!AU256=\"\"),\"N\",\"Y\")))","v":""},{"$f":"IF(OR(B249=\"N\",'Enrollment Form'!B256<>\"Subscriber\",'Enrollment Form'!C256=\"ROC\",'Enrollment Form'!O256<>\"Multiple of Salary\"),\"-\",IF(COUNTA('Enrollment Form'!T256:U256)<2,\"N\",\"Y\"))","v":"-"},{"$f":"IF(B249=\"N\",\"\",IF(OR('Enrollment Form'!C256=\"ROC\",'Enrollment Form'!B256<>\"Subscriber\",'Enrollment Form'!O256=\"Waive\",'Enrollment Form'!O256=\"\"),\"-\",IF('Enrollment Form'!P256=\"\",\"N\",\"Y\")))","v":""},{"$f":"IF($B249=\"N\",\"\",IF(AND('Enrollment Form'!$C256=\"ROC\",'Enrollment Form'!$DS256<>\"\"),\"Y\",IF(AND('Enrollment Form'!$C256=\"ROC\",'Enrollment Form'!$DS256=\"\"),\"N\",IF(AND('Enrollment Form'!$C256=\"Enroll\",'Enrollment Form'!$B256=\"Subscriber\",'Enrollment Form'!$CQ256=\"No\",'Enrollment Form'!$DS256=\"\"),\"N\",IF(AND('Enrollment Form'!$C256=\"Enroll\",'Enrollment Form'!$B256=\"Subscriber\",'Enrollment Form'!$CQ256=\"Yes\"),\"-\",\"Y\")))))","v":""},{"$f":"IF($B249=\"N\",\"\",IF(AND('Enrollment Form'!$C256=\"ROC\",'Enrollment Form'!$DT256<>\"\"),\"Y\",IF(AND('Enrollment Form'!$C256=\"ROC\",'Enrollment Form'!$DT256=\"\"),\"N\",IF(AND('Enrollment Form'!$C256=\"Enroll\",'Enrollment Form'!$B256=\"Subscriber\",'Enrollment Form'!$CQ256=\"No\",'Enrollment Form'!$DT256=\"\"),\"N\",IF(AND('Enrollment Form'!$C256=\"Enroll\",'Enrollment Form'!$B256=\"Subscriber\",'Enrollment Form'!$CQ256=\"Yes\"),\"-\",\"Y\")))))","v":""},{"$f":"IF('Enrollment Form'!AH256=\"\",\"\",IF(ISERROR(SEARCH(\".\",'Enrollment Form'!AH256,SEARCH(\"@\",'Enrollment Form'!AH256))),\"N\",\"Y\"))","v":""},{"$f":"IF(OR($B249=\"N\",'Enrollment Form'!$G256=\"\"),\"\",IF('Enrollment Form'!$B256<>\"Subscriber\",\"-\",IF(COUNTIF('Enrollment Form'!$AS256:$AT256,\"Yes\")=2,\"N\",\"Y\")))","v":""},{"$f":"IF(OR('Enrollment Form'!$CC256=\"\",'Enrollment Form'!$CC256=\"No\"),\"-\",IF(AND('Enrollment Form'!$CC256=\"Yes\",'Enrollment Form'!$CD256=\"\"),\"N\",\"Y\"))","v":"-"},{"$f":"IF(OR('Enrollment Form'!$CE256=\"\",'Enrollment Form'!$CE256=\"No\"),\"-\",IF(AND('Enrollment Form'!$CE256=\"Yes\",'Enrollment Form'!$CF256=\"\"),\"N\",\"Y\"))","v":"-"},{"$f":"IF(OR('Enrollment Form'!$CG256=\"\",'Enrollment Form'!$CG256=\"No\"),\"-\",IF(AND('Enrollment Form'!$CG256=\"Yes\",'Enrollment Form'!$CH256=\"\"),\"N\",\"Y\"))","v":"-"},{"$f":"IF(OR('Enrollment Form'!$CG256=\"\",'Enrollment Form'!$CG256=\"No\"),\"-\",IF(AND('Enrollment Form'!$CG256=\"Yes\",'Enrollment Form'!$CI256=\"\"),\"N\",\"Y\"))","v":"-"},{"$f":"IF('Enrollment Form'!B256<>\"Subscriber\",\"-\",IF(AND('Enrollment Form'!B256=\"Subscriber\",'Enrollment Form'!C256=\"Enroll\",'Enrollment Form'!AA256=\"\"),\"N\",\"Y\"))","v":"-"},{"$f":"IF(OR('Enrollment Form'!B256=\"Subscriber\",'Enrollment Form'!B256=\"\"),\"-\",IF('Enrollment Form'!BI256=\"\",\"N\",\"Y\"))","v":"-"},{"$f":"IF('Enrollment Form'!B256<>\"Subscriber\",\"-\",IF(AND('Enrollment Form'!B256=\"Subscriber\",'Enrollment Form'!G256=\"\"),\"N\",\"Y\"))","v":"-"},{"$f":"IF('Enrollment Form'!A256=\"\",\"\",IF('Enrollment Form'!B256=\"Subscriber\",\"-\",IF(AND('Enrollment Form'!B256<>\"Subscriber\",'Enrollment Form'!G256='Enrollment Form'!H256),\"N\",\"Y\")))","v":""},0]
[257,{"$f":"IF('Enrollment Form'!$A257<>\"\",\"Y\",\"N\")","v":"N"},{"$f":"IF(AND('Enrollment Form'!$B257=\"\",'Enrollment Form'!$C257<>\"\"),\"N\",IF($B250=\"N\",\"\",\"Y\"))","v":""},{"$f":"IF(OR($B250=\"N\",'Enrollment Form'!G257=\"\"),\"\",IF('Enrollment Form'!$B257<>\"Subscriber\",\"\",IF('Enrollment Form'!$G257='Enrollment Form'!$H257,\"Y\",\"N\")))","v":""},{"$f":"IF($B250=\"N\",\"\",IF(AND(COUNTIFS('Enrollment Form'!$H$11:$H$1000,'Enrollment Form'!$H257,'Enrollment Form'!$B$11:$B$1000,'Enrollment Form'!$B257)>1,'Enrollment Form'!$H257<>\"\"),\"N\",\"Y\"))","v":""},{"$f":"IF($B250=\"N\",\"\",IF(LEN('Enrollment Form'!$Y257)=0,\"\",IF(LEN('Enrollment Form'!$Y257)<>5,\"N\",\"Y\")))","v":""},{"$f":"IF($B250=\"N\",\"\",IF(LEN('Enrollment Form'!$AD257=0),\"\",IF(LEN('Enrollment Form'!$AD257)<>5,\"N\",\"Y\")))","v":""},{"$f":"IF($B250=\"N\",\"\",IF(LEN('Enrollment Form'!$BL257=0),\"\",IF(LEN('Enrollment Form'!$BL257)<>5,\"N\",\"Y\")))","v":""},{"$f":"IF($B250=\"N\",\"\",IF(LEN('Enrollment Form'!$AE257)=0,\"\",IF(LEN('Enrollment Form'!$AE257)<>10,\"N\",\"Y\")))","v":""},{"$f":"IF($B250=\"N\",\"\",IF(LEN('Enrollment Form'!$AF257)=0,\"\",IF(LEN('Enrollment Form'!$AF257)<>10,\"N\",\"Y\")))","v":""},{"$f":"IF('Enrollment Form'!$O257<>\"Graded\",\"-\",IF(AND('Enrollment Form'!$O257=\"Graded\",'Enrollment Form'!$AO257<>\"\"),\"Y\",\"N\"))","v":"-"},{"$f":"IF($B250=\"N\",\"\",IF(OR('Enrollment Form'!$B257<>\"Subscriber\",'Enrollment Form'!$C257=\"ROC\"),\"-\",IF(AND('Enrollment Form'!$B257=\"Subscriber\",'Enrollment Form'!$C257=\"Enroll\",'Enrollment Form'!$AJ257<>\"\"),\"Y\",\"N\")))","v":""},{"$f":"IF($B250=\"N\",\"\",IF(OR('Enrollment Form'!$B257<>\"Subscriber\",'Enrollment Form'!$C257=\"ROC\"),\"-\",IF(AND('Enrollment Form'!$B257=\"Subscriber\",'Enrollment Form'!$C257=\"Enroll\",'Enrollment Form'!$AK257<>\"\"),\"Y\",\"N\")))","v":""},{"$f":"IF($B250=\"N\",\"\",IF(OR('Enrollment Form'!$B257<>\"Subscriber\",'Enrollment Form'!$C257=\"ROC\"),\"-\",IF(AND('Enrollment Form'!$B257=\"Subscriber\",'Enrollment Form'!$C257=\"Enroll\",'Enrollment Form'!$AL257<>\"\"),\"Y\",\"N\")))","v":""},{"$f":"IF($B250=\"N\",\"\",IF(OR('Enrollment Form'!$B257<>\"Subscriber\",'Enrollment Form'!$C257=\"ROC\"),\"-\",IF(AND('Enrollment Form'!$B257=\"Subscriber\",'Enrollment Form'!$C257=\"Enroll\",'Enrollment Form'!$AM257<>\"\"),\"Y\",\"N\")))","v":""},{"$f":"IF($B250=\"N\",\"\",IF(OR('Enrollment Form'!$B257<>\"Subscriber\",'Enrollment Form'!$C257=\"ROC\"),\"-\",IF(AND('Enrollment Form'!$B257=\"Subscriber\",'Enrollment Form'!$C257=\"Enroll\",'Enrollment Form'!$AN257<>\"\"),\"Y\",\"N\")))","v":""},{"$f":"IF($B250=\"N\",\"\",IF(OR('Enrollment Form'!$B257<>\"Subscriber\",'Enrollment Form'!$C257=\"ROC\"),\"-\",IF(AND('Enrollment Form'!$B257=\"Subscriber\",'Enrollment Form'!$C257=\"Enroll\",'Enrollment Form'!$AP257<>\"\"),\"Y\",\"N\")))","v":""},{"$f":"IF($B250=\"N\",\"\",IF($Q250=\"-\",\"-\",IF(AND($Q250=\"Y\",'Enrollment Form'!$AP257=\"No\"),\"-\",IF(AND($Q250=\"Y\",'Enrollment Form'!$AP257=\"Yes\",'Enrollment Form'!$AQ257<>\"\"),\"Y\",\"N\"))))","v":""},{"$f":"IF($B250=\"N\",\"\",IF(OR('Enrollment Form'!$B257<>\"Subscriber\",'Enrollment Form'!$C257=\"ROC\"),\"-\",IF(AND('Enrollment Form'!$B257=\"Subscriber\",'Enrollment Form'!$C257=\"Enroll\",'Enrollment Form'!$CO257<>\"\"),\"Y\",\"N\")))","v":""},{"$f":"IF($B250=\"N\",\"\",IF($S250=\"-\",\"-\",IF(AND($S250=\"Y\",'Enrollment Form'!$CO257=\"No\"),\"-\",IF(AND($S250=\"Y\",'Enrollment Form'!$CO257=\"Yes\",'Enrollment Form'!$CP257<>\"\"),\"Y\",\"N\"))))","v":""},{"$f":"IF(OR('Enrollment Form'!$AV257=\"Yes\",'Enrollment Form'!$AV257=\"\"),\"-\",IF(AND('Enrollment Form'!$AV257=\"No\",ISERROR(FIND(\"HMO\",VLOOKUP('Enrollment Form'!G257,'Enrollment Form'!H$11:J$1000,3,FALSE),1))=FALSE,COUNTA('Enrollment Form'!$AW257:$AZ257)=4),\"Y\",\"N\"))","v":"-"},{"$f":"IF($B250=\"N\",\"\",IF('Enrollment Form'!$B257=\"Subscriber\",\"-\",IF(COUNTA('Enrollment Form'!$BE257,'Enrollment Form'!$BG257)=2,\"Y\",\"N\")))","v":""},{"$f":"IF($B250=\"N\",\"\",IF(OR('Enrollment Form'!$AU257=\"\",'Enrollment Form'!$AU257=\"No\"),\"-\",IF(AND('Enrollment Form'!$AU257=\"Yes\",COUNTA('Enrollment Form'!$CK257)=1),\"Y\",\"N\")))","v":""},{"$f":"IF(OR('Enrollment Form'!$CK257=\"\",'Enrollment Form'!$CK257=\"No\"),\"-\",IF(COUNTA('Enrollment Form'!$CM257:$CN257)=2,\"Y\",\"N\"))","v":"-"},{"$f":"IF($B250=\"N\",\"\",IF(COUNTIF('Enrollment Form'!$CZ257:$DO257,\"Other\")=COUNTA('Enrollment Form'!$DF257,'Enrollment Form'!$DA257,'Enrollment Form'!$DK257,'Enrollment Form'!$DP257),\"Y\",\"N\"))","v":""},{"$f":"IF($B250=\"N\",\"\",IF(OR('Enrollment Form'!B257<>\"Subscriber\",'Enrollment Form'!C257=\"ROC\",COUNTIF('Enrollment Form'!AS257:AT257,\"Yes\")>=1),\"-\",IF(AND('Enrollment Form'!C257=\"Enroll\",COUNTIF('Enrollment Form'!AS257:AT257,\"No\")=2,'Enrollment Form'!AU257=\"\"),\"N\",\"Y\")))","v":""},{"$f":"IF(OR(B250=\"N\",'Enrollment Form'!B257<>\"Subscriber\",'Enrollment Form'!C257=\"ROC\",'Enrollment Form'!O257<>\"Multiple of Salary\"),\"-\",IF(COUNTA('Enrollment Form'!T257:U257)<2,\"N\",\"Y\"))","v":"-"},{"$f":"IF(B250=\"N\",\"\",IF(OR('Enrollment Form'!C257=\"ROC\",'Enrollment Form'!B257<>\"Subscriber\",'Enrollment Form'!O257=\"Waive\",'Enrollment Form'!O257=\"\"),\"-\",IF('Enrollment Form'!P257=\"\",\"N\",\"Y\")))","v":""},{"$f":"IF($B250=\"N\",\"\",IF(AND('Enrollment Form'!$C257=\"ROC\",'Enrollment Form'!$DS257<>\"\"),\"Y\",IF(AND('Enrollment Form'!$C257=\"ROC\",'Enrollment Form'!$DS257=\"\"),\"N\",IF(AND('Enrollment Form'!$C257=\"Enroll\",'Enrollment Form'!$B257=\"Subscriber\",'Enrollment Form'!$CQ257=\"No\",'Enrollment Form'!$DS257=\"\"),\"N\",IF(AND('Enrollment Form'!$C257=\"Enroll\",'Enrollment Form'!$B257=\"Subscriber\",'Enrollment Form'!$CQ257=\"Yes\"),\"-\",\"Y\")))))","v":""},{"$f":"IF($B250=\"N\",\"\",IF(AND('Enrollment Form'!$C257=\"ROC\",'Enrollment Form'!$DT257<>\"\"),\"Y\",IF(AND('Enrollment Form'!$C257=\"ROC\",'Enrollment Form'!$DT257=\"\"),\"N\",IF(AND('Enrollment Form'!$C257=\"Enroll\",'Enrollment Form'!$B257=\"Subscriber\",'Enrollment Form'!$CQ257=\"No\",'Enrollment Form'!$DT257=\"\"),\"N\",IF(AND('Enrollment Form'!$C257=\"Enroll\",'Enrollment Form'!$B257=\"Subscriber\",'Enrollment Form'!$CQ257=\"Yes\"),\"-\",\"Y\")))))","v":""},{"$f":"IF('Enrollment Form'!AH257=\"\",\"\",IF(ISERROR(SEARCH(\".\",'Enrollment Form'!AH257,SEARCH(\"@\",'Enrollment Form'!AH257))),\"N\",\"Y\"))","v":""},{"$f":"IF(OR($B250=\"N\",'Enrollment Form'!$G257=\"\"),\"\",IF('Enrollment Form'!$B257<>\"Subscriber\",\"-\",IF(COUNTIF('Enrollment Form'!$AS257:$AT257,\"Yes\")=2,\"N\",\"Y\")))","v":""},{"$f":"IF(OR('Enrollment Form'!$CC257=\"\",'Enrollment Form'!$CC257=\"No\"),\"-\",IF(AND('Enrollment Form'!$CC257=\"Yes\",'Enrollment Form'!$CD257=\"\"),\"N\",\"Y\"))","v":"-"},{"$f":"IF(OR('Enrollment Form'!$CE257=\"\",'Enrollment Form'!$CE257=\"No\"),\"-\",IF(AND('Enrollment Form'!$CE257=\"Yes\",'Enrollment Form'!$CF257=\"\"),\"N\",\"Y\"))","v":"-"},{"$f":"IF(OR('Enrollment Form'!$CG257=\"\",'Enrollment Form'!$CG257=\"No\"),\"-\",IF(AND('Enrollment Form'!$CG257=\"Yes\",'Enrollment Form'!$CH257=\"\"),\"N\",\"Y\"))","v":"-"},{"$f":"IF(OR('Enrollment Form'!$CG257=\"\",'Enrollment Form'!$CG257=\"No\"),\"-\",IF(AND('Enrollment Form'!$CG257=\"Yes\",'Enrollment Form'!$CI257=\"\"),\"N\",\"Y\"))","v":"-"},{"$f":"IF('Enrollment Form'!B257<>\"Subscriber\",\"-\",IF(AND('Enrollment Form'!B257=\"Subscriber\",'Enrollment Form'!C257=\"Enroll\",'Enrollment Form'!AA257=\"\"),\"N\",\"Y\"))","v":"-"},{"$f":"IF(OR('Enrollment Form'!B257=\"Subscriber\",'Enrollment Form'!B257=\"\"),\"-\",IF('Enrollment Form'!BI257=\"\",\"N\",\"Y\"))","v":"-"},{"$f":"IF('Enrollment Form'!B257<>\"Subscriber\",\"-\",IF(AND('Enrollment Form'!B257=\"Subscriber\",'Enrollment Form'!G257=\"\"),\"N\",\"Y\"))","v":"-"},{"$f":"IF('Enrollment Form'!A257=\"\",\"\",IF('Enrollment Form'!B257=\"Subscriber\",\"-\",IF(AND('Enrollment Form'!B257<>\"Subscriber\",'Enrollment Form'!G257='Enrollment Form'!H257),\"N\",\"Y\")))","v":""},0]
[258,{"$f":"IF('Enrollment Form'!$A258<>\"\",\"Y\",\"N\")","v":"N"},{"$f":"IF(AND('Enrollment Form'!$B258=\"\",'Enrollment Form'!$C258<>\"\"),\"N\",IF($B251=\"N\",\"\",\"Y\"))","v":""},{"$f":"IF(OR($B251=\"N\",'Enrollment Form'!G258=\"\"),\"\",IF('Enrollment Form'!$B258<>\"Subscriber\",\"\",IF('Enrollment Form'!$G258='Enrollment Form'!$H258,\"Y\",\"N\")))","v":""},{"$f":"IF($B251=\"N\",\"\",IF(AND(COUNTIFS('Enrollment Form'!$H$11:$H$1000,'Enrollment Form'!$H258,'Enrollment Form'!$B$11:$B$1000,'Enrollment Form'!$B258)>1,'Enrollment Form'!$H258<>\"\"),\"N\",\"Y\"))","v":""},{"$f":"IF($B251=\"N\",\"\",IF(LEN('Enrollment Form'!$Y258)=0,\"\",IF(LEN('Enrollment Form'!$Y258)<>5,\"N\",\"Y\")))","v":""},{"$f":"IF($B251=\"N\",\"\",IF(LEN('Enrollment Form'!$AD258=0),\"\",IF(LEN('Enrollment Form'!$AD258)<>5,\"N\",\"Y\")))","v":""},{"$f":"IF($B251=\"N\",\"\",IF(LEN('Enrollment Form'!$BL258=0),\"\",IF(LEN('Enrollment Form'!$BL258)<>5,\"N\",\"Y\")))","v":""},{"$f":"IF($B251=\"N\",\"\",IF(LEN('Enrollment Form'!$AE258)=0,\"\",IF(LEN('Enrollment Form'!$AE258)<>10,\"N\",\"Y\")))","v":""},{"$f":"IF($B251=\"N\",\"\",IF(LEN('Enrollment Form'!$AF258)=0,\"\",IF(LEN('Enrollment Form'!$AF258)<>10,\"N\",\"Y\")))","v":""},{"$f":"IF('Enrollment Form'!$O258<>\"Graded\",\"-\",IF(AND('Enrollment Form'!$O258=\"Graded\",'Enrollment Form'!$AO258<>\"\"),\"Y\",\"N\"))","v":"-"},{"$f":"IF($B251=\"N\",\"\",IF(OR('Enrollment Form'!$B258<>\"Subscriber\",'Enrollment Form'!$C258=\"ROC\"),\"-\",IF(AND('Enrollment Form'!$B258=\"Subscriber\",'Enrollment Form'!$C258=\"Enroll\",'Enrollment Form'!$AJ258<>\"\"),\"Y\",\"N\")))","v":""},{"$f":"IF($B251=\"N\",\"\",IF(OR('Enrollment Form'!$B258<>\"Subscriber\",'Enrollment Form'!$C258=\"ROC\"),\"-\",IF(AND('Enrollment Form'!$B258=\"Subscriber\",'Enrollment Form'!$C258=\"Enroll\",'Enrollment Form'!$AK258<>\"\"),\"Y\",\"N\")))","v":""},{"$f":"IF($B251=\"N\",\"\",IF(OR('Enrollment Form'!$B258<>\"Subscriber\",'Enrollment Form'!$C258=\"ROC\"),\"-\",IF(AND('Enrollment Form'!$B258=\"Subscriber\",'Enrollment Form'!$C258=\"Enroll\",'Enrollment Form'!$AL258<>\"\"),\"Y\",\"N\")))","v":""},{"$f":"IF($B251=\"N\",\"\",IF(OR('Enrollment Form'!$B258<>\"Subscriber\",'Enrollment Form'!$C258=\"ROC\"),\"-\",IF(AND('Enrollment Form'!$B258=\"Subscriber\",'Enrollment Form'!$C258=\"Enroll\",'Enrollment Form'!$AM258<>\"\"),\"Y\",\"N\")))","v":""},{"$f":"IF($B251=\"N\",\"\",IF(OR('Enrollment Form'!$B258<>\"Subscriber\",'Enrollment Form'!$C258=\"ROC\"),\"-\",IF(AND('Enrollment Form'!$B258=\"Subscriber\",'Enrollment Form'!$C258=\"Enroll\",'Enrollment Form'!$AN258<>\"\"),\"Y\",\"N\")))","v":""},{"$f":"IF($B251=\"N\",\"\",IF(OR('Enrollment Form'!$B258<>\"Subscriber\",'Enrollment Form'!$C258=\"ROC\"),\"-\",IF(AND('Enrollment Form'!$B258=\"Subscriber\",'Enrollment Form'!$C258=\"Enroll\",'Enrollment Form'!$AP258<>\"\"),\"Y\",\"N\")))","v":""},{"$f":"IF($B251=\"N\",\"\",IF($Q251=\"-\",\"-\",IF(AND($Q251=\"Y\",'Enrollment Form'!$AP258=\"No\"),\"-\",IF(AND($Q251=\"Y\",'Enrollment Form'!$AP258=\"Yes\",'Enrollment Form'!$AQ258<>\"\"),\"Y\",\"N\"))))","v":""},{"$f":"IF($B251=\"N\",\"\",IF(OR('Enrollment Form'!$B258<>\"Subscriber\",'Enrollment Form'!$C258=\"ROC\"),\"-\",IF(AND('Enrollment Form'!$B258=\"Subscriber\",'Enrollment Form'!$C258=\"Enroll\",'Enrollment Form'!$CO258<>\"\"),\"Y\",\"N\")))","v":""},{"$f":"IF($B251=\"N\",\"\",IF($S251=\"-\",\"-\",IF(AND($S251=\"Y\",'Enrollment Form'!$CO258=\"No\"),\"-\",IF(AND($S251=\"Y\",'Enrollment Form'!$CO258=\"Yes\",'Enrollment Form'!$CP258<>\"\"),\"Y\",\"N\"))))","v":""},{"$f":"IF(OR('Enrollment Form'!$AV258=\"Yes\",'Enrollment Form'!$AV258=\"\"),\"-\",IF(AND('Enrollment Form'!$AV258=\"No\",ISERROR(FIND(\"HMO\",VLOOKUP('Enrollment Form'!G258,'Enrollment Form'!H$11:J$1000,3,FALSE),1))=FALSE,COUNTA('Enrollment Form'!$AW258:$AZ258)=4),\"Y\",\"N\"))","v":"-"},{"$f":"IF($B251=\"N\",\"\",IF('Enrollment Form'!$B258=\"Subscriber\",\"-\",IF(COUNTA('Enrollment Form'!$BE258,'Enrollment Form'!$BG258)=2,\"Y\",\"N\")))","v":""},{"$f":"IF($B251=\"N\",\"\",IF(OR('Enrollment Form'!$AU258=\"\",'Enrollment Form'!$AU258=\"No\"),\"-\",IF(AND('Enrollment Form'!$AU258=\"Yes\",COUNTA('Enrollment Form'!$CK258)=1),\"Y\",\"N\")))","v":""},{"$f":"IF(OR('Enrollment Form'!$CK258=\"\",'Enrollment Form'!$CK258=\"No\"),\"-\",IF(COUNTA('Enrollment Form'!$CM258:$CN258)=2,\"Y\",\"N\"))","v":"-"},{"$f":"IF($B251=\"N\",\"\",IF(COUNTIF('Enrollment Form'!$CZ258:$DO258,\"Other\")=COUNTA('Enrollment Form'!$DF258,'Enrollment Form'!$DA258,'Enrollment Form'!$DK258,'Enrollment Form'!$DP258),\"Y\",\"N\"))","v":""},{"$f":"IF($B251=\"N\",\"\",IF(OR('Enrollment Form'!B258<>\"Subscriber\",'Enrollment Form'!C258=\"ROC\",COUNTIF('Enrollment Form'!AS258:AT258,\"Yes\")>=1),\"-\",IF(AND('Enrollment Form'!C258=\"Enroll\",COUNTIF('Enrollment Form'!AS258:AT258,\"No\")=2,'Enrollment Form'!AU258=\"\"),\"N\",\"Y\")))","v":""},{"$f":"IF(OR(B251=\"N\",'Enrollment Form'!B258<>\"Subscriber\",'Enrollment Form'!C258=\"ROC\",'Enrollment Form'!O258<>\"Multiple of Salary\"),\"-\",IF(COUNTA('Enrollment Form'!T258:U258)<2,\"N\",\"Y\"))","v":"-"},{"$f":"IF(B251=\"N\",\"\",IF(OR('Enrollment Form'!C258=\"ROC\",'Enrollment Form'!B258<>\"Subscriber\",'Enrollment Form'!O258=\"Waive\",'Enrollment Form'!O258=\"\"),\"-\",IF('Enrollment Form'!P258=\"\",\"N\",\"Y\")))","v":""},{"$f":"IF($B251=\"N\",\"\",IF(AND('Enrollment Form'!$C258=\"ROC\",'Enrollment Form'!$DS258<>\"\"),\"Y\",IF(AND('Enrollment Form'!$C258=\"ROC\",'Enrollment Form'!$DS258=\"\"),\"N\",IF(AND('Enrollment Form'!$C258=\"Enroll\",'Enrollment Form'!$B258=\"Subscriber\",'Enrollment Form'!$CQ258=\"No\",'Enrollment Form'!$DS258=\"\"),\"N\",IF(AND('Enrollment Form'!$C258=\"Enroll\",'Enrollment Form'!$B258=\"Subscriber\",'Enrollment Form'!$CQ258=\"Yes\"),\"-\",\"Y\")))))","v":""},{"$f":"IF($B251=\"N\",\"\",IF(AND('Enrollment Form'!$C258=\"ROC\",'Enrollment Form'!$DT258<>\"\"),\"Y\",IF(AND('Enrollment Form'!$C258=\"ROC\",'Enrollment Form'!$DT258=\"\"),\"N\",IF(AND('Enrollment Form'!$C258=\"Enroll\",'Enrollment Form'!$B258=\"Subscriber\",'Enrollment Form'!$CQ258=\"No\",'Enrollment Form'!$DT258=\"\"),\"N\",IF(AND('Enrollment Form'!$C258=\"Enroll\",'Enrollment Form'!$B258=\"Subscriber\",'Enrollment Form'!$CQ258=\"Yes\"),\"-\",\"Y\")))))","v":""},{"$f":"IF('Enrollment Form'!AH258=\"\",\"\",IF(ISERROR(SEARCH(\".\",'Enrollment Form'!AH258,SEARCH(\"@\",'Enrollment Form'!AH258))),\"N\",\"Y\"))","v":""},{"$f":"IF(OR($B251=\"N\",'Enrollment Form'!$G258=\"\"),\"\",IF('Enrollment Form'!$B258<>\"Subscriber\",\"-\",IF(COUNTIF('Enrollment Form'!$AS258:$AT258,\"Yes\")=2,\"N\",\"Y\")))","v":""},{"$f":"IF(OR('Enrollment Form'!$CC258=\"\",'Enrollment Form'!$CC258=\"No\"),\"-\",IF(AND('Enrollment Form'!$CC258=\"Yes\",'Enrollment Form'!$CD258=\"\"),\"N\",\"Y\"))","v":"-"},{"$f":"IF(OR('Enrollment Form'!$CE258=\"\",'Enrollment Form'!$CE258=\"No\"),\"-\",IF(AND('Enrollment Form'!$CE258=\"Yes\",'Enrollment Form'!$CF258=\"\"),\"N\",\"Y\"))","v":"-"},{"$f":"IF(OR('Enrollment Form'!$CG258=\"\",'Enrollment Form'!$CG258=\"No\"),\"-\",IF(AND('Enrollment Form'!$CG258=\"Yes\",'Enrollment Form'!$CH258=\"\"),\"N\",\"Y\"))","v":"-"},{"$f":"IF(OR('Enrollment Form'!$CG258=\"\",'Enrollment Form'!$CG258=\"No\"),\"-\",IF(AND('Enrollment Form'!$CG258=\"Yes\",'Enrollment Form'!$CI258=\"\"),\"N\",\"Y\"))","v":"-"},{"$f":"IF('Enrollment Form'!B258<>\"Subscriber\",\"-\",IF(AND('Enrollment Form'!B258=\"Subscriber\",'Enrollment Form'!C258=\"Enroll\",'Enrollment Form'!AA258=\"\"),\"N\",\"Y\"))","v":"-"},{"$f":"IF(OR('Enrollment Form'!B258=\"Subscriber\",'Enrollment Form'!B258=\"\"),\"-\",IF('Enrollment Form'!BI258=\"\",\"N\",\"Y\"))","v":"-"},{"$f":"IF('Enrollment Form'!B258<>\"Subscriber\",\"-\",IF(AND('Enrollment Form'!B258=\"Subscriber\",'Enrollment Form'!G258=\"\"),\"N\",\"Y\"))","v":"-"},{"$f":"IF('Enrollment Form'!A258=\"\",\"\",IF('Enrollment Form'!B258=\"Subscriber\",\"-\",IF(AND('Enrollment Form'!B258<>\"Subscriber\",'Enrollment Form'!G258='Enrollment Form'!H258),\"N\",\"Y\")))","v":""},0]
[259,{"$f":"IF('Enrollment Form'!$A259<>\"\",\"Y\",\"N\")","v":"N"},{"$f":"IF(AND('Enrollment Form'!$B259=\"\",'Enrollment Form'!$C259<>\"\"),\"N\",IF($B252=\"N\",\"\",\"Y\"))","v":""},{"$f":"IF(OR($B252=\"N\",'Enrollment Form'!G259=\"\"),\"\",IF('Enrollment Form'!$B259<>\"Subscriber\",\"\",IF('Enrollment Form'!$G259='Enrollment Form'!$H259,\"Y\",\"N\")))","v":""},{"$f":"IF($B252=\"N\",\"\",IF(AND(COUNTIFS('Enrollment Form'!$H$11:$H$1000,'Enrollment Form'!$H259,'Enrollment Form'!$B$11:$B$1000,'Enrollment Form'!$B259)>1,'Enrollment Form'!$H259<>\"\"),\"N\",\"Y\"))","v":""},{"$f":"IF($B252=\"N\",\"\",IF(LEN('Enrollment Form'!$Y259)=0,\"\",IF(LEN('Enrollment Form'!$Y259)<>5,\"N\",\"Y\")))","v":""},{"$f":"IF($B252=\"N\",\"\",IF(LEN('Enrollment Form'!$AD259=0),\"\",IF(LEN('Enrollment Form'!$AD259)<>5,\"N\",\"Y\")))","v":""},{"$f":"IF($B252=\"N\",\"\",IF(LEN('Enrollment Form'!$BL259=0),\"\",IF(LEN('Enrollment Form'!$BL259)<>5,\"N\",\"Y\")))","v":""},{"$f":"IF($B252=\"N\",\"\",IF(LEN('Enrollment Form'!$AE259)=0,\"\",IF(LEN('Enrollment Form'!$AE259)<>10,\"N\",\"Y\")))","v":""},{"$f":"IF($B252=\"N\",\"\",IF(LEN('Enrollment Form'!$AF259)=0,\"\",IF(LEN('Enrollment Form'!$AF259)<>10,\"N\",\"Y\")))","v":""},{"$f":"IF('Enrollment Form'!$O259<>\"Graded\",\"-\",IF(AND('Enrollment Form'!$O259=\"Graded\",'Enrollment Form'!$AO259<>\"\"),\"Y\",\"N\"))","v":"-"},{"$f":"IF($B252=\"N\",\"\",IF(OR('Enrollment Form'!$B259<>\"Subscriber\",'Enrollment Form'!$C259=\"ROC\"),\"-\",IF(AND('Enrollment Form'!$B259=\"Subscriber\",'Enrollment Form'!$C259=\"Enroll\",'Enrollment Form'!$AJ259<>\"\"),\"Y\",\"N\")))","v":""},{"$f":"IF($B252=\"N\",\"\",IF(OR('Enrollment Form'!$B259<>\"Subscriber\",'Enrollment Form'!$C259=\"ROC\"),\"-\",IF(AND('Enrollment Form'!$B259=\"Subscriber\",'Enrollment Form'!$C259=\"Enroll\",'Enrollment Form'!$AK259<>\"\"),\"Y\",\"N\")))","v":""},{"$f":"IF($B252=\"N\",\"\",IF(OR('Enrollment Form'!$B259<>\"Subscriber\",'Enrollment Form'!$C259=\"ROC\"),\"-\",IF(AND('Enrollment Form'!$B259=\"Subscriber\",'Enrollment Form'!$C259=\"Enroll\",'Enrollment Form'!$AL259<>\"\"),\"Y\",\"N\")))","v":""},{"$f":"IF($B252=\"N\",\"\",IF(OR('Enrollment Form'!$B259<>\"Subscriber\",'Enrollment Form'!$C259=\"ROC\"),\"-\",IF(AND('Enrollment Form'!$B259=\"Subscriber\",'Enrollment Form'!$C259=\"Enroll\",'Enrollment Form'!$AM259<>\"\"),\"Y\",\"N\")))","v":""},{"$f":"IF($B252=\"N\",\"\",IF(OR('Enrollment Form'!$B259<>\"Subscriber\",'Enrollment Form'!$C259=\"ROC\"),\"-\",IF(AND('Enrollment Form'!$B259=\"Subscriber\",'Enrollment Form'!$C259=\"Enroll\",'Enrollment Form'!$AN259<>\"\"),\"Y\",\"N\")))","v":""},{"$f":"IF($B252=\"N\",\"\",IF(OR('Enrollment Form'!$B259<>\"Subscriber\",'Enrollment Form'!$C259=\"ROC\"),\"-\",IF(AND('Enrollment Form'!$B259=\"Subscriber\",'Enrollment Form'!$C259=\"Enroll\",'Enrollment Form'!$AP259<>\"\"),\"Y\",\"N\")))","v":""},{"$f":"IF($B252=\"N\",\"\",IF($Q252=\"-\",\"-\",IF(AND($Q252=\"Y\",'Enrollment Form'!$AP259=\"No\"),\"-\",IF(AND($Q252=\"Y\",'Enrollment Form'!$AP259=\"Yes\",'Enrollment Form'!$AQ259<>\"\"),\"Y\",\"N\"))))","v":""},{"$f":"IF($B252=\"N\",\"\",IF(OR('Enrollment Form'!$B259<>\"Subscriber\",'Enrollment Form'!$C259=\"ROC\"),\"-\",IF(AND('Enrollment Form'!$B259=\"Subscriber\",'Enrollment Form'!$C259=\"Enroll\",'Enrollment Form'!$CO259<>\"\"),\"Y\",\"N\")))","v":""},{"$f":"IF($B252=\"N\",\"\",IF($S252=\"-\",\"-\",IF(AND($S252=\"Y\",'Enrollment Form'!$CO259=\"No\"),\"-\",IF(AND($S252=\"Y\",'Enrollment Form'!$CO259=\"Yes\",'Enrollment Form'!$CP259<>\"\"),\"Y\",\"N\"))))","v":""},{"$f":"IF(OR('Enrollment Form'!$AV259=\"Yes\",'Enrollment Form'!$AV259=\"\"),\"-\",IF(AND('Enrollment Form'!$AV259=\"No\",ISERROR(FIND(\"HMO\",VLOOKUP('Enrollment Form'!G259,'Enrollment Form'!H$11:J$1000,3,FALSE),1))=FALSE,COUNTA('Enrollment Form'!$AW259:$AZ259)=4),\"Y\",\"N\"))","v":"-"},{"$f":"IF($B252=\"N\",\"\",IF('Enrollment Form'!$B259=\"Subscriber\",\"-\",IF(COUNTA('Enrollment Form'!$BE259,'Enrollment Form'!$BG259)=2,\"Y\",\"N\")))","v":""},{"$f":"IF($B252=\"N\",\"\",IF(OR('Enrollment Form'!$AU259=\"\",'Enrollment Form'!$AU259=\"No\"),\"-\",IF(AND('Enrollment Form'!$AU259=\"Yes\",COUNTA('Enrollment Form'!$CK259)=1),\"Y\",\"N\")))","v":""},{"$f":"IF(OR('Enrollment Form'!$CK259=\"\",'Enrollment Form'!$CK259=\"No\"),\"-\",IF(COUNTA('Enrollment Form'!$CM259:$CN259)=2,\"Y\",\"N\"))","v":"-"},{"$f":"IF($B252=\"N\",\"\",IF(COUNTIF('Enrollment Form'!$CZ259:$DO259,\"Other\")=COUNTA('Enrollment Form'!$DF259,'Enrollment Form'!$DA259,'Enrollment Form'!$DK259,'Enrollment Form'!$DP259),\"Y\",\"N\"))","v":""},{"$f":"IF($B252=\"N\",\"\",IF(OR('Enrollment Form'!B259<>\"Subscriber\",'Enrollment Form'!C259=\"ROC\",COUNTIF('Enrollment Form'!AS259:AT259,\"Yes\")>=1),\"-\",IF(AND('Enrollment Form'!C259=\"Enroll\",COUNTIF('Enrollment Form'!AS259:AT259,\"No\")=2,'Enrollment Form'!AU259=\"\"),\"N\",\"Y\")))","v":""},{"$f":"IF(OR(B252=\"N\",'Enrollment Form'!B259<>\"Subscriber\",'Enrollment Form'!C259=\"ROC\",'Enrollment Form'!O259<>\"Multiple of Salary\"),\"-\",IF(COUNTA('Enrollment Form'!T259:U259)<2,\"N\",\"Y\"))","v":"-"},{"$f":"IF(B252=\"N\",\"\",IF(OR('Enrollment Form'!C259=\"ROC\",'Enrollment Form'!B259<>\"Subscriber\",'Enrollment Form'!O259=\"Waive\",'Enrollment Form'!O259=\"\"),\"-\",IF('Enrollment Form'!P259=\"\",\"N\",\"Y\")))","v":""},{"$f":"IF($B252=\"N\",\"\",IF(AND('Enrollment Form'!$C259=\"ROC\",'Enrollment Form'!$DS259<>\"\"),\"Y\",IF(AND('Enrollment Form'!$C259=\"ROC\",'Enrollment Form'!$DS259=\"\"),\"N\",IF(AND('Enrollment Form'!$C259=\"Enroll\",'Enrollment Form'!$B259=\"Subscriber\",'Enrollment Form'!$CQ259=\"No\",'Enrollment Form'!$DS259=\"\"),\"N\",IF(AND('Enrollment Form'!$C259=\"Enroll\",'Enrollment Form'!$B259=\"Subscriber\",'Enrollment Form'!$CQ259=\"Yes\"),\"-\",\"Y\")))))","v":""},{"$f":"IF($B252=\"N\",\"\",IF(AND('Enrollment Form'!$C259=\"ROC\",'Enrollment Form'!$DT259<>\"\"),\"Y\",IF(AND('Enrollment Form'!$C259=\"ROC\",'Enrollment Form'!$DT259=\"\"),\"N\",IF(AND('Enrollment Form'!$C259=\"Enroll\",'Enrollment Form'!$B259=\"Subscriber\",'Enrollment Form'!$CQ259=\"No\",'Enrollment Form'!$DT259=\"\"),\"N\",IF(AND('Enrollment Form'!$C259=\"Enroll\",'Enrollment Form'!$B259=\"Subscriber\",'Enrollment Form'!$CQ259=\"Yes\"),\"-\",\"Y\")))))","v":""},{"$f":"IF('Enrollment Form'!AH259=\"\",\"\",IF(ISERROR(SEARCH(\".\",'Enrollment Form'!AH259,SEARCH(\"@\",'Enrollment Form'!AH259))),\"N\",\"Y\"))","v":""},{"$f":"IF(OR($B252=\"N\",'Enrollment Form'!$G259=\"\"),\"\",IF('Enrollment Form'!$B259<>\"Subscriber\",\"-\",IF(COUNTIF('Enrollment Form'!$AS259:$AT259,\"Yes\")=2,\"N\",\"Y\")))","v":""},{"$f":"IF(OR('Enrollment Form'!$CC259=\"\",'Enrollment Form'!$CC259=\"No\"),\"-\",IF(AND('Enrollment Form'!$CC259=\"Yes\",'Enrollment Form'!$CD259=\"\"),\"N\",\"Y\"))","v":"-"},{"$f":"IF(OR('Enrollment Form'!$CE259=\"\",'Enrollment Form'!$CE259=\"No\"),\"-\",IF(AND('Enrollment Form'!$CE259=\"Yes\",'Enrollment Form'!$CF259=\"\"),\"N\",\"Y\"))","v":"-"},{"$f":"IF(OR('Enrollment Form'!$CG259=\"\",'Enrollment Form'!$CG259=\"No\"),\"-\",IF(AND('Enrollment Form'!$CG259=\"Yes\",'Enrollment Form'!$CH259=\"\"),\"N\",\"Y\"))","v":"-"},{"$f":"IF(OR('Enrollment Form'!$CG259=\"\",'Enrollment Form'!$CG259=\"No\"),\"-\",IF(AND('Enrollment Form'!$CG259=\"Yes\",'Enrollment Form'!$CI259=\"\"),\"N\",\"Y\"))","v":"-"},{"$f":"IF('Enrollment Form'!B259<>\"Subscriber\",\"-\",IF(AND('Enrollment Form'!B259=\"Subscriber\",'Enrollment Form'!C259=\"Enroll\",'Enrollment Form'!AA259=\"\"),\"N\",\"Y\"))","v":"-"},{"$f":"IF(OR('Enrollment Form'!B259=\"Subscriber\",'Enrollment Form'!B259=\"\"),\"-\",IF('Enrollment Form'!BI259=\"\",\"N\",\"Y\"))","v":"-"},{"$f":"IF('Enrollment Form'!B259<>\"Subscriber\",\"-\",IF(AND('Enrollment Form'!B259=\"Subscriber\",'Enrollment Form'!G259=\"\"),\"N\",\"Y\"))","v":"-"},{"$f":"IF('Enrollment Form'!A259=\"\",\"\",IF('Enrollment Form'!B259=\"Subscriber\",\"-\",IF(AND('Enrollment Form'!B259<>\"Subscriber\",'Enrollment Form'!G259='Enrollment Form'!H259),\"N\",\"Y\")))","v":""},0]
[260,{"$f":"IF('Enrollment Form'!$A260<>\"\",\"Y\",\"N\")","v":"N"},{"$f":"IF(AND('Enrollment Form'!$B260=\"\",'Enrollment Form'!$C260<>\"\"),\"N\",IF($B253=\"N\",\"\",\"Y\"))","v":""},{"$f":"IF(OR($B253=\"N\",'Enrollment Form'!G260=\"\"),\"\",IF('Enrollment Form'!$B260<>\"Subscriber\",\"\",IF('Enrollment Form'!$G260='Enrollment Form'!$H260,\"Y\",\"N\")))","v":""},{"$f":"IF($B253=\"N\",\"\",IF(AND(COUNTIFS('Enrollment Form'!$H$11:$H$1000,'Enrollment Form'!$H260,'Enrollment Form'!$B$11:$B$1000,'Enrollment Form'!$B260)>1,'Enrollment Form'!$H260<>\"\"),\"N\",\"Y\"))","v":""},{"$f":"IF($B253=\"N\",\"\",IF(LEN('Enrollment Form'!$Y260)=0,\"\",IF(LEN('Enrollment Form'!$Y260)<>5,\"N\",\"Y\")))","v":""},{"$f":"IF($B253=\"N\",\"\",IF(LEN('Enrollment Form'!$AD260=0),\"\",IF(LEN('Enrollment Form'!$AD260)<>5,\"N\",\"Y\")))","v":""},{"$f":"IF($B253=\"N\",\"\",IF(LEN('Enrollment Form'!$BL260=0),\"\",IF(LEN('Enrollment Form'!$BL260)<>5,\"N\",\"Y\")))","v":""},{"$f":"IF($B253=\"N\",\"\",IF(LEN('Enrollment Form'!$AE260)=0,\"\",IF(LEN('Enrollment Form'!$AE260)<>10,\"N\",\"Y\")))","v":""},{"$f":"IF($B253=\"N\",\"\",IF(LEN('Enrollment Form'!$AF260)=0,\"\",IF(LEN('Enrollment Form'!$AF260)<>10,\"N\",\"Y\")))","v":""},{"$f":"IF('Enrollment Form'!$O260<>\"Graded\",\"-\",IF(AND('Enrollment Form'!$O260=\"Graded\",'Enrollment Form'!$AO260<>\"\"),\"Y\",\"N\"))","v":"-"},{"$f":"IF($B253=\"N\",\"\",IF(OR('Enrollment Form'!$B260<>\"Subscriber\",'Enrollment Form'!$C260=\"ROC\"),\"-\",IF(AND('Enrollment Form'!$B260=\"Subscriber\",'Enrollment Form'!$C260=\"Enroll\",'Enrollment Form'!$AJ260<>\"\"),\"Y\",\"N\")))","v":""},{"$f":"IF($B253=\"N\",\"\",IF(OR('Enrollment Form'!$B260<>\"Subscriber\",'Enrollment Form'!$C260=\"ROC\"),\"-\",IF(AND('Enrollment Form'!$B260=\"Subscriber\",'Enrollment Form'!$C260=\"Enroll\",'Enrollment Form'!$AK260<>\"\"),\"Y\",\"N\")))","v":""},{"$f":"IF($B253=\"N\",\"\",IF(OR('Enrollment Form'!$B260<>\"Subscriber\",'Enrollment Form'!$C260=\"ROC\"),\"-\",IF(AND('Enrollment Form'!$B260=\"Subscriber\",'Enrollment Form'!$C260=\"Enroll\",'Enrollment Form'!$AL260<>\"\"),\"Y\",\"N\")))","v":""},{"$f":"IF($B253=\"N\",\"\",IF(OR('Enrollment Form'!$B260<>\"Subscriber\",'Enrollment Form'!$C260=\"ROC\"),\"-\",IF(AND('Enrollment Form'!$B260=\"Subscriber\",'Enrollment Form'!$C260=\"Enroll\",'Enrollment Form'!$AM260<>\"\"),\"Y\",\"N\")))","v":""},{"$f":"IF($B253=\"N\",\"\",IF(OR('Enrollment Form'!$B260<>\"Subscriber\",'Enrollment Form'!$C260=\"ROC\"),\"-\",IF(AND('Enrollment Form'!$B260=\"Subscriber\",'Enrollment Form'!$C260=\"Enroll\",'Enrollment Form'!$AN260<>\"\"),\"Y\",\"N\")))","v":""},{"$f":"IF($B253=\"N\",\"\",IF(OR('Enrollment Form'!$B260<>\"Subscriber\",'Enrollment Form'!$C260=\"ROC\"),\"-\",IF(AND('Enrollment Form'!$B260=\"Subscriber\",'Enrollment Form'!$C260=\"Enroll\",'Enrollment Form'!$AP260<>\"\"),\"Y\",\"N\")))","v":""},{"$f":"IF($B253=\"N\",\"\",IF($Q253=\"-\",\"-\",IF(AND($Q253=\"Y\",'Enrollment Form'!$AP260=\"No\"),\"-\",IF(AND($Q253=\"Y\",'Enrollment Form'!$AP260=\"Yes\",'Enrollment Form'!$AQ260<>\"\"),\"Y\",\"N\"))))","v":""},{"$f":"IF($B253=\"N\",\"\",IF(OR('Enrollment Form'!$B260<>\"Subscriber\",'Enrollment Form'!$C260=\"ROC\"),\"-\",IF(AND('Enrollment Form'!$B260=\"Subscriber\",'Enrollment Form'!$C260=\"Enroll\",'Enrollment Form'!$CO260<>\"\"),\"Y\",\"N\")))","v":""},{"$f":"IF($B253=\"N\",\"\",IF($S253=\"-\",\"-\",IF(AND($S253=\"Y\",'Enrollment Form'!$CO260=\"No\"),\"-\",IF(AND($S253=\"Y\",'Enrollment Form'!$CO260=\"Yes\",'Enrollment Form'!$CP260<>\"\"),\"Y\",\"N\"))))","v":""},{"$f":"IF(OR('Enrollment Form'!$AV260=\"Yes\",'Enrollment Form'!$AV260=\"\"),\"-\",IF(AND('Enrollment Form'!$AV260=\"No\",ISERROR(FIND(\"HMO\",VLOOKUP('Enrollment Form'!G260,'Enrollment Form'!H$11:J$1000,3,FALSE),1))=FALSE,COUNTA('Enrollment Form'!$AW260:$AZ260)=4),\"Y\",\"N\"))","v":"-"},{"$f":"IF($B253=\"N\",\"\",IF('Enrollment Form'!$B260=\"Subscriber\",\"-\",IF(COUNTA('Enrollment Form'!$BE260,'Enrollment Form'!$BG260)=2,\"Y\",\"N\")))","v":""},{"$f":"IF($B253=\"N\",\"\",IF(OR('Enrollment Form'!$AU260=\"\",'Enrollment Form'!$AU260=\"No\"),\"-\",IF(AND('Enrollment Form'!$AU260=\"Yes\",COUNTA('Enrollment Form'!$CK260)=1),\"Y\",\"N\")))","v":""},{"$f":"IF(OR('Enrollment Form'!$CK260=\"\",'Enrollment Form'!$CK260=\"No\"),\"-\",IF(COUNTA('Enrollment Form'!$CM260:$CN260)=2,\"Y\",\"N\"))","v":"-"},{"$f":"IF($B253=\"N\",\"\",IF(COUNTIF('Enrollment Form'!$CZ260:$DO260,\"Other\")=COUNTA('Enrollment Form'!$DF260,'Enrollment Form'!$DA260,'Enrollment Form'!$DK260,'Enrollment Form'!$DP260),\"Y\",\"N\"))","v":""},{"$f":"IF($B253=\"N\",\"\",IF(OR('Enrollment Form'!B260<>\"Subscriber\",'Enrollment Form'!C260=\"ROC\",COUNTIF('Enrollment Form'!AS260:AT260,\"Yes\")>=1),\"-\",IF(AND('Enrollment Form'!C260=\"Enroll\",COUNTIF('Enrollment Form'!AS260:AT260,\"No\")=2,'Enrollment Form'!AU260=\"\"),\"N\",\"Y\")))","v":""},{"$f":"IF(OR(B253=\"N\",'Enrollment Form'!B260<>\"Subscriber\",'Enrollment Form'!C260=\"ROC\",'Enrollment Form'!O260<>\"Multiple of Salary\"),\"-\",IF(COUNTA('Enrollment Form'!T260:U260)<2,\"N\",\"Y\"))","v":"-"},{"$f":"IF(B253=\"N\",\"\",IF(OR('Enrollment Form'!C260=\"ROC\",'Enrollment Form'!B260<>\"Subscriber\",'Enrollment Form'!O260=\"Waive\",'Enrollment Form'!O260=\"\"),\"-\",IF('Enrollment Form'!P260=\"\",\"N\",\"Y\")))","v":""},{"$f":"IF($B253=\"N\",\"\",IF(AND('Enrollment Form'!$C260=\"ROC\",'Enrollment Form'!$DS260<>\"\"),\"Y\",IF(AND('Enrollment Form'!$C260=\"ROC\",'Enrollment Form'!$DS260=\"\"),\"N\",IF(AND('Enrollment Form'!$C260=\"Enroll\",'Enrollment Form'!$B260=\"Subscriber\",'Enrollment Form'!$CQ260=\"No\",'Enrollment Form'!$DS260=\"\"),\"N\",IF(AND('Enrollment Form'!$C260=\"Enroll\",'Enrollment Form'!$B260=\"Subscriber\",'Enrollment Form'!$CQ260=\"Yes\"),\"-\",\"Y\")))))","v":""},{"$f":"IF($B253=\"N\",\"\",IF(AND('Enrollment Form'!$C260=\"ROC\",'Enrollment Form'!$DT260<>\"\"),\"Y\",IF(AND('Enrollment Form'!$C260=\"ROC\",'Enrollment Form'!$DT260=\"\"),\"N\",IF(AND('Enrollment Form'!$C260=\"Enroll\",'Enrollment Form'!$B260=\"Subscriber\",'Enrollment Form'!$CQ260=\"No\",'Enrollment Form'!$DT260=\"\"),\"N\",IF(AND('Enrollment Form'!$C260=\"Enroll\",'Enrollment Form'!$B260=\"Subscriber\",'Enrollment Form'!$CQ260=\"Yes\"),\"-\",\"Y\")))))","v":""},{"$f":"IF('Enrollment Form'!AH260=\"\",\"\",IF(ISERROR(SEARCH(\".\",'Enrollment Form'!AH260,SEARCH(\"@\",'Enrollment Form'!AH260))),\"N\",\"Y\"))","v":""},{"$f":"IF(OR($B253=\"N\",'Enrollment Form'!$G260=\"\"),\"\",IF('Enrollment Form'!$B260<>\"Subscriber\",\"-\",IF(COUNTIF('Enrollment Form'!$AS260:$AT260,\"Yes\")=2,\"N\",\"Y\")))","v":""},{"$f":"IF(OR('Enrollment Form'!$CC260=\"\",'Enrollment Form'!$CC260=\"No\"),\"-\",IF(AND('Enrollment Form'!$CC260=\"Yes\",'Enrollment Form'!$CD260=\"\"),\"N\",\"Y\"))","v":"-"},{"$f":"IF(OR('Enrollment Form'!$CE260=\"\",'Enrollment Form'!$CE260=\"No\"),\"-\",IF(AND('Enrollment Form'!$CE260=\"Yes\",'Enrollment Form'!$CF260=\"\"),\"N\",\"Y\"))","v":"-"},{"$f":"IF(OR('Enrollment Form'!$CG260=\"\",'Enrollment Form'!$CG260=\"No\"),\"-\",IF(AND('Enrollment Form'!$CG260=\"Yes\",'Enrollment Form'!$CH260=\"\"),\"N\",\"Y\"))","v":"-"},{"$f":"IF(OR('Enrollment Form'!$CG260=\"\",'Enrollment Form'!$CG260=\"No\"),\"-\",IF(AND('Enrollment Form'!$CG260=\"Yes\",'Enrollment Form'!$CI260=\"\"),\"N\",\"Y\"))","v":"-"},{"$f":"IF('Enrollment Form'!B260<>\"Subscriber\",\"-\",IF(AND('Enrollment Form'!B260=\"Subscriber\",'Enrollment Form'!C260=\"Enroll\",'Enrollment Form'!AA260=\"\"),\"N\",\"Y\"))","v":"-"},{"$f":"IF(OR('Enrollment Form'!B260=\"Subscriber\",'Enrollment Form'!B260=\"\"),\"-\",IF('Enrollment Form'!BI260=\"\",\"N\",\"Y\"))","v":"-"},{"$f":"IF('Enrollment Form'!B260<>\"Subscriber\",\"-\",IF(AND('Enrollment Form'!B260=\"Subscriber\",'Enrollment Form'!G260=\"\"),\"N\",\"Y\"))","v":"-"},{"$f":"IF('Enrollment Form'!A260=\"\",\"\",IF('Enrollment Form'!B260=\"Subscriber\",\"-\",IF(AND('Enrollment Form'!B260<>\"Subscriber\",'Enrollment Form'!G260='Enrollment Form'!H260),\"N\",\"Y\")))","v":""},0]
[261,{"$f":"IF('Enrollment Form'!$A261<>\"\",\"Y\",\"N\")","v":"N"},{"$f":"IF(AND('Enrollment Form'!$B261=\"\",'Enrollment Form'!$C261<>\"\"),\"N\",IF($B254=\"N\",\"\",\"Y\"))","v":""},{"$f":"IF(OR($B254=\"N\",'Enrollment Form'!G261=\"\"),\"\",IF('Enrollment Form'!$B261<>\"Subscriber\",\"\",IF('Enrollment Form'!$G261='Enrollment Form'!$H261,\"Y\",\"N\")))","v":""},{"$f":"IF($B254=\"N\",\"\",IF(AND(COUNTIFS('Enrollment Form'!$H$11:$H$1000,'Enrollment Form'!$H261,'Enrollment Form'!$B$11:$B$1000,'Enrollment Form'!$B261)>1,'Enrollment Form'!$H261<>\"\"),\"N\",\"Y\"))","v":""},{"$f":"IF($B254=\"N\",\"\",IF(LEN('Enrollment Form'!$Y261)=0,\"\",IF(LEN('Enrollment Form'!$Y261)<>5,\"N\",\"Y\")))","v":""},{"$f":"IF($B254=\"N\",\"\",IF(LEN('Enrollment Form'!$AD261=0),\"\",IF(LEN('Enrollment Form'!$AD261)<>5,\"N\",\"Y\")))","v":""},{"$f":"IF($B254=\"N\",\"\",IF(LEN('Enrollment Form'!$BL261=0),\"\",IF(LEN('Enrollment Form'!$BL261)<>5,\"N\",\"Y\")))","v":""},{"$f":"IF($B254=\"N\",\"\",IF(LEN('Enrollment Form'!$AE261)=0,\"\",IF(LEN('Enrollment Form'!$AE261)<>10,\"N\",\"Y\")))","v":""},{"$f":"IF($B254=\"N\",\"\",IF(LEN('Enrollment Form'!$AF261)=0,\"\",IF(LEN('Enrollment Form'!$AF261)<>10,\"N\",\"Y\")))","v":""},{"$f":"IF('Enrollment Form'!$O261<>\"Graded\",\"-\",IF(AND('Enrollment Form'!$O261=\"Graded\",'Enrollment Form'!$AO261<>\"\"),\"Y\",\"N\"))","v":"-"},{"$f":"IF($B254=\"N\",\"\",IF(OR('Enrollment Form'!$B261<>\"Subscriber\",'Enrollment Form'!$C261=\"ROC\"),\"-\",IF(AND('Enrollment Form'!$B261=\"Subscriber\",'Enrollment Form'!$C261=\"Enroll\",'Enrollment Form'!$AJ261<>\"\"),\"Y\",\"N\")))","v":""},{"$f":"IF($B254=\"N\",\"\",IF(OR('Enrollment Form'!$B261<>\"Subscriber\",'Enrollment Form'!$C261=\"ROC\"),\"-\",IF(AND('Enrollment Form'!$B261=\"Subscriber\",'Enrollment Form'!$C261=\"Enroll\",'Enrollment Form'!$AK261<>\"\"),\"Y\",\"N\")))","v":""},{"$f":"IF($B254=\"N\",\"\",IF(OR('Enrollment Form'!$B261<>\"Subscriber\",'Enrollment Form'!$C261=\"ROC\"),\"-\",IF(AND('Enrollment Form'!$B261=\"Subscriber\",'Enrollment Form'!$C261=\"Enroll\",'Enrollment Form'!$AL261<>\"\"),\"Y\",\"N\")))","v":""},{"$f":"IF($B254=\"N\",\"\",IF(OR('Enrollment Form'!$B261<>\"Subscriber\",'Enrollment Form'!$C261=\"ROC\"),\"-\",IF(AND('Enrollment Form'!$B261=\"Subscriber\",'Enrollment Form'!$C261=\"Enroll\",'Enrollment Form'!$AM261<>\"\"),\"Y\",\"N\")))","v":""},{"$f":"IF($B254=\"N\",\"\",IF(OR('Enrollment Form'!$B261<>\"Subscriber\",'Enrollment Form'!$C261=\"ROC\"),\"-\",IF(AND('Enrollment Form'!$B261=\"Subscriber\",'Enrollment Form'!$C261=\"Enroll\",'Enrollment Form'!$AN261<>\"\"),\"Y\",\"N\")))","v":""},{"$f":"IF($B254=\"N\",\"\",IF(OR('Enrollment Form'!$B261<>\"Subscriber\",'Enrollment Form'!$C261=\"ROC\"),\"-\",IF(AND('Enrollment Form'!$B261=\"Subscriber\",'Enrollment Form'!$C261=\"Enroll\",'Enrollment Form'!$AP261<>\"\"),\"Y\",\"N\")))","v":""},{"$f":"IF($B254=\"N\",\"\",IF($Q254=\"-\",\"-\",IF(AND($Q254=\"Y\",'Enrollment Form'!$AP261=\"No\"),\"-\",IF(AND($Q254=\"Y\",'Enrollment Form'!$AP261=\"Yes\",'Enrollment Form'!$AQ261<>\"\"),\"Y\",\"N\"))))","v":""},{"$f":"IF($B254=\"N\",\"\",IF(OR('Enrollment Form'!$B261<>\"Subscriber\",'Enrollment Form'!$C261=\"ROC\"),\"-\",IF(AND('Enrollment Form'!$B261=\"Subscriber\",'Enrollment Form'!$C261=\"Enroll\",'Enrollment Form'!$CO261<>\"\"),\"Y\",\"N\")))","v":""},{"$f":"IF($B254=\"N\",\"\",IF($S254=\"-\",\"-\",IF(AND($S254=\"Y\",'Enrollment Form'!$CO261=\"No\"),\"-\",IF(AND($S254=\"Y\",'Enrollment Form'!$CO261=\"Yes\",'Enrollment Form'!$CP261<>\"\"),\"Y\",\"N\"))))","v":""},{"$f":"IF(OR('Enrollment Form'!$AV261=\"Yes\",'Enrollment Form'!$AV261=\"\"),\"-\",IF(AND('Enrollment Form'!$AV261=\"No\",ISERROR(FIND(\"HMO\",VLOOKUP('Enrollment Form'!G261,'Enrollment Form'!H$11:J$1000,3,FALSE),1))=FALSE,COUNTA('Enrollment Form'!$AW261:$AZ261)=4),\"Y\",\"N\"))","v":"-"},{"$f":"IF($B254=\"N\",\"\",IF('Enrollment Form'!$B261=\"Subscriber\",\"-\",IF(COUNTA('Enrollment Form'!$BE261,'Enrollment Form'!$BG261)=2,\"Y\",\"N\")))","v":""},{"$f":"IF($B254=\"N\",\"\",IF(OR('Enrollment Form'!$AU261=\"\",'Enrollment Form'!$AU261=\"No\"),\"-\",IF(AND('Enrollment Form'!$AU261=\"Yes\",COUNTA('Enrollment Form'!$CK261)=1),\"Y\",\"N\")))","v":""},{"$f":"IF(OR('Enrollment Form'!$CK261=\"\",'Enrollment Form'!$CK261=\"No\"),\"-\",IF(COUNTA('Enrollment Form'!$CM261:$CN261)=2,\"Y\",\"N\"))","v":"-"},{"$f":"IF($B254=\"N\",\"\",IF(COUNTIF('Enrollment Form'!$CZ261:$DO261,\"Other\")=COUNTA('Enrollment Form'!$DF261,'Enrollment Form'!$DA261,'Enrollment Form'!$DK261,'Enrollment Form'!$DP261),\"Y\",\"N\"))","v":""},{"$f":"IF($B254=\"N\",\"\",IF(OR('Enrollment Form'!B261<>\"Subscriber\",'Enrollment Form'!C261=\"ROC\",COUNTIF('Enrollment Form'!AS261:AT261,\"Yes\")>=1),\"-\",IF(AND('Enrollment Form'!C261=\"Enroll\",COUNTIF('Enrollment Form'!AS261:AT261,\"No\")=2,'Enrollment Form'!AU261=\"\"),\"N\",\"Y\")))","v":""},{"$f":"IF(OR(B254=\"N\",'Enrollment Form'!B261<>\"Subscriber\",'Enrollment Form'!C261=\"ROC\",'Enrollment Form'!O261<>\"Multiple of Salary\"),\"-\",IF(COUNTA('Enrollment Form'!T261:U261)<2,\"N\",\"Y\"))","v":"-"},{"$f":"IF(B254=\"N\",\"\",IF(OR('Enrollment Form'!C261=\"ROC\",'Enrollment Form'!B261<>\"Subscriber\",'Enrollment Form'!O261=\"Waive\",'Enrollment Form'!O261=\"\"),\"-\",IF('Enrollment Form'!P261=\"\",\"N\",\"Y\")))","v":""},{"$f":"IF($B254=\"N\",\"\",IF(AND('Enrollment Form'!$C261=\"ROC\",'Enrollment Form'!$DS261<>\"\"),\"Y\",IF(AND('Enrollment Form'!$C261=\"ROC\",'Enrollment Form'!$DS261=\"\"),\"N\",IF(AND('Enrollment Form'!$C261=\"Enroll\",'Enrollment Form'!$B261=\"Subscriber\",'Enrollment Form'!$CQ261=\"No\",'Enrollment Form'!$DS261=\"\"),\"N\",IF(AND('Enrollment Form'!$C261=\"Enroll\",'Enrollment Form'!$B261=\"Subscriber\",'Enrollment Form'!$CQ261=\"Yes\"),\"-\",\"Y\")))))","v":""},{"$f":"IF($B254=\"N\",\"\",IF(AND('Enrollment Form'!$C261=\"ROC\",'Enrollment Form'!$DT261<>\"\"),\"Y\",IF(AND('Enrollment Form'!$C261=\"ROC\",'Enrollment Form'!$DT261=\"\"),\"N\",IF(AND('Enrollment Form'!$C261=\"Enroll\",'Enrollment Form'!$B261=\"Subscriber\",'Enrollment Form'!$CQ261=\"No\",'Enrollment Form'!$DT261=\"\"),\"N\",IF(AND('Enrollment Form'!$C261=\"Enroll\",'Enrollment Form'!$B261=\"Subscriber\",'Enrollment Form'!$CQ261=\"Yes\"),\"-\",\"Y\")))))","v":""},{"$f":"IF('Enrollment Form'!AH261=\"\",\"\",IF(ISERROR(SEARCH(\".\",'Enrollment Form'!AH261,SEARCH(\"@\",'Enrollment Form'!AH261))),\"N\",\"Y\"))","v":""},{"$f":"IF(OR($B254=\"N\",'Enrollment Form'!$G261=\"\"),\"\",IF('Enrollment Form'!$B261<>\"Subscriber\",\"-\",IF(COUNTIF('Enrollment Form'!$AS261:$AT261,\"Yes\")=2,\"N\",\"Y\")))","v":""},{"$f":"IF(OR('Enrollment Form'!$CC261=\"\",'Enrollment Form'!$CC261=\"No\"),\"-\",IF(AND('Enrollment Form'!$CC261=\"Yes\",'Enrollment Form'!$CD261=\"\"),\"N\",\"Y\"))","v":"-"},{"$f":"IF(OR('Enrollment Form'!$CE261=\"\",'Enrollment Form'!$CE261=\"No\"),\"-\",IF(AND('Enrollment Form'!$CE261=\"Yes\",'Enrollment Form'!$CF261=\"\"),\"N\",\"Y\"))","v":"-"},{"$f":"IF(OR('Enrollment Form'!$CG261=\"\",'Enrollment Form'!$CG261=\"No\"),\"-\",IF(AND('Enrollment Form'!$CG261=\"Yes\",'Enrollment Form'!$CH261=\"\"),\"N\",\"Y\"))","v":"-"},{"$f":"IF(OR('Enrollment Form'!$CG261=\"\",'Enrollment Form'!$CG261=\"No\"),\"-\",IF(AND('Enrollment Form'!$CG261=\"Yes\",'Enrollment Form'!$CI261=\"\"),\"N\",\"Y\"))","v":"-"},{"$f":"IF('Enrollment Form'!B261<>\"Subscriber\",\"-\",IF(AND('Enrollment Form'!B261=\"Subscriber\",'Enrollment Form'!C261=\"Enroll\",'Enrollment Form'!AA261=\"\"),\"N\",\"Y\"))","v":"-"},{"$f":"IF(OR('Enrollment Form'!B261=\"Subscriber\",'Enrollment Form'!B261=\"\"),\"-\",IF('Enrollment Form'!BI261=\"\",\"N\",\"Y\"))","v":"-"},{"$f":"IF('Enrollment Form'!B261<>\"Subscriber\",\"-\",IF(AND('Enrollment Form'!B261=\"Subscriber\",'Enrollment Form'!G261=\"\"),\"N\",\"Y\"))","v":"-"},{"$f":"IF('Enrollment Form'!A261=\"\",\"\",IF('Enrollment Form'!B261=\"Subscriber\",\"-\",IF(AND('Enrollment Form'!B261<>\"Subscriber\",'Enrollment Form'!G261='Enrollment Form'!H261),\"N\",\"Y\")))","v":""},0]
[262,{"$f":"IF('Enrollment Form'!$A262<>\"\",\"Y\",\"N\")","v":"N"},{"$f":"IF(AND('Enrollment Form'!$B262=\"\",'Enrollment Form'!$C262<>\"\"),\"N\",IF($B255=\"N\",\"\",\"Y\"))","v":""},{"$f":"IF(OR($B255=\"N\",'Enrollment Form'!G262=\"\"),\"\",IF('Enrollment Form'!$B262<>\"Subscriber\",\"\",IF('Enrollment Form'!$G262='Enrollment Form'!$H262,\"Y\",\"N\")))","v":""},{"$f":"IF($B255=\"N\",\"\",IF(AND(COUNTIFS('Enrollment Form'!$H$11:$H$1000,'Enrollment Form'!$H262,'Enrollment Form'!$B$11:$B$1000,'Enrollment Form'!$B262)>1,'Enrollment Form'!$H262<>\"\"),\"N\",\"Y\"))","v":""},{"$f":"IF($B255=\"N\",\"\",IF(LEN('Enrollment Form'!$Y262)=0,\"\",IF(LEN('Enrollment Form'!$Y262)<>5,\"N\",\"Y\")))","v":""},{"$f":"IF($B255=\"N\",\"\",IF(LEN('Enrollment Form'!$AD262=0),\"\",IF(LEN('Enrollment Form'!$AD262)<>5,\"N\",\"Y\")))","v":""},{"$f":"IF($B255=\"N\",\"\",IF(LEN('Enrollment Form'!$BL262=0),\"\",IF(LEN('Enrollment Form'!$BL262)<>5,\"N\",\"Y\")))","v":""},{"$f":"IF($B255=\"N\",\"\",IF(LEN('Enrollment Form'!$AE262)=0,\"\",IF(LEN('Enrollment Form'!$AE262)<>10,\"N\",\"Y\")))","v":""},{"$f":"IF($B255=\"N\",\"\",IF(LEN('Enrollment Form'!$AF262)=0,\"\",IF(LEN('Enrollment Form'!$AF262)<>10,\"N\",\"Y\")))","v":""},{"$f":"IF('Enrollment Form'!$O262<>\"Graded\",\"-\",IF(AND('Enrollment Form'!$O262=\"Graded\",'Enrollment Form'!$AO262<>\"\"),\"Y\",\"N\"))","v":"-"},{"$f":"IF($B255=\"N\",\"\",IF(OR('Enrollment Form'!$B262<>\"Subscriber\",'Enrollment Form'!$C262=\"ROC\"),\"-\",IF(AND('Enrollment Form'!$B262=\"Subscriber\",'Enrollment Form'!$C262=\"Enroll\",'Enrollment Form'!$AJ262<>\"\"),\"Y\",\"N\")))","v":""},{"$f":"IF($B255=\"N\",\"\",IF(OR('Enrollment Form'!$B262<>\"Subscriber\",'Enrollment Form'!$C262=\"ROC\"),\"-\",IF(AND('Enrollment Form'!$B262=\"Subscriber\",'Enrollment Form'!$C262=\"Enroll\",'Enrollment Form'!$AK262<>\"\"),\"Y\",\"N\")))","v":""},{"$f":"IF($B255=\"N\",\"\",IF(OR('Enrollment Form'!$B262<>\"Subscriber\",'Enrollment Form'!$C262=\"ROC\"),\"-\",IF(AND('Enrollment Form'!$B262=\"Subscriber\",'Enrollment Form'!$C262=\"Enroll\",'Enrollment Form'!$AL262<>\"\"),\"Y\",\"N\")))","v":""},{"$f":"IF($B255=\"N\",\"\",IF(OR('Enrollment Form'!$B262<>\"Subscriber\",'Enrollment Form'!$C262=\"ROC\"),\"-\",IF(AND('Enrollment Form'!$B262=\"Subscriber\",'Enrollment Form'!$C262=\"Enroll\",'Enrollment Form'!$AM262<>\"\"),\"Y\",\"N\")))","v":""},{"$f":"IF($B255=\"N\",\"\",IF(OR('Enrollment Form'!$B262<>\"Subscriber\",'Enrollment Form'!$C262=\"ROC\"),\"-\",IF(AND('Enrollment Form'!$B262=\"Subscriber\",'Enrollment Form'!$C262=\"Enroll\",'Enrollment Form'!$AN262<>\"\"),\"Y\",\"N\")))","v":""},{"$f":"IF($B255=\"N\",\"\",IF(OR('Enrollment Form'!$B262<>\"Subscriber\",'Enrollment Form'!$C262=\"ROC\"),\"-\",IF(AND('Enrollment Form'!$B262=\"Subscriber\",'Enrollment Form'!$C262=\"Enroll\",'Enrollment Form'!$AP262<>\"\"),\"Y\",\"N\")))","v":""},{"$f":"IF($B255=\"N\",\"\",IF($Q255=\"-\",\"-\",IF(AND($Q255=\"Y\",'Enrollment Form'!$AP262=\"No\"),\"-\",IF(AND($Q255=\"Y\",'Enrollment Form'!$AP262=\"Yes\",'Enrollment Form'!$AQ262<>\"\"),\"Y\",\"N\"))))","v":""},{"$f":"IF($B255=\"N\",\"\",IF(OR('Enrollment Form'!$B262<>\"Subscriber\",'Enrollment Form'!$C262=\"ROC\"),\"-\",IF(AND('Enrollment Form'!$B262=\"Subscriber\",'Enrollment Form'!$C262=\"Enroll\",'Enrollment Form'!$CO262<>\"\"),\"Y\",\"N\")))","v":""},{"$f":"IF($B255=\"N\",\"\",IF($S255=\"-\",\"-\",IF(AND($S255=\"Y\",'Enrollment Form'!$CO262=\"No\"),\"-\",IF(AND($S255=\"Y\",'Enrollment Form'!$CO262=\"Yes\",'Enrollment Form'!$CP262<>\"\"),\"Y\",\"N\"))))","v":""},{"$f":"IF(OR('Enrollment Form'!$AV262=\"Yes\",'Enrollment Form'!$AV262=\"\"),\"-\",IF(AND('Enrollment Form'!$AV262=\"No\",ISERROR(FIND(\"HMO\",VLOOKUP('Enrollment Form'!G262,'Enrollment Form'!H$11:J$1000,3,FALSE),1))=FALSE,COUNTA('Enrollment Form'!$AW262:$AZ262)=4),\"Y\",\"N\"))","v":"-"},{"$f":"IF($B255=\"N\",\"\",IF('Enrollment Form'!$B262=\"Subscriber\",\"-\",IF(COUNTA('Enrollment Form'!$BE262,'Enrollment Form'!$BG262)=2,\"Y\",\"N\")))","v":""},{"$f":"IF($B255=\"N\",\"\",IF(OR('Enrollment Form'!$AU262=\"\",'Enrollment Form'!$AU262=\"No\"),\"-\",IF(AND('Enrollment Form'!$AU262=\"Yes\",COUNTA('Enrollment Form'!$CK262)=1),\"Y\",\"N\")))","v":""},{"$f":"IF(OR('Enrollment Form'!$CK262=\"\",'Enrollment Form'!$CK262=\"No\"),\"-\",IF(COUNTA('Enrollment Form'!$CM262:$CN262)=2,\"Y\",\"N\"))","v":"-"},{"$f":"IF($B255=\"N\",\"\",IF(COUNTIF('Enrollment Form'!$CZ262:$DO262,\"Other\")=COUNTA('Enrollment Form'!$DF262,'Enrollment Form'!$DA262,'Enrollment Form'!$DK262,'Enrollment Form'!$DP262),\"Y\",\"N\"))","v":""},{"$f":"IF($B255=\"N\",\"\",IF(OR('Enrollment Form'!B262<>\"Subscriber\",'Enrollment Form'!C262=\"ROC\",COUNTIF('Enrollment Form'!AS262:AT262,\"Yes\")>=1),\"-\",IF(AND('Enrollment Form'!C262=\"Enroll\",COUNTIF('Enrollment Form'!AS262:AT262,\"No\")=2,'Enrollment Form'!AU262=\"\"),\"N\",\"Y\")))","v":""},{"$f":"IF(OR(B255=\"N\",'Enrollment Form'!B262<>\"Subscriber\",'Enrollment Form'!C262=\"ROC\",'Enrollment Form'!O262<>\"Multiple of Salary\"),\"-\",IF(COUNTA('Enrollment Form'!T262:U262)<2,\"N\",\"Y\"))","v":"-"},{"$f":"IF(B255=\"N\",\"\",IF(OR('Enrollment Form'!C262=\"ROC\",'Enrollment Form'!B262<>\"Subscriber\",'Enrollment Form'!O262=\"Waive\",'Enrollment Form'!O262=\"\"),\"-\",IF('Enrollment Form'!P262=\"\",\"N\",\"Y\")))","v":""},{"$f":"IF($B255=\"N\",\"\",IF(AND('Enrollment Form'!$C262=\"ROC\",'Enrollment Form'!$DS262<>\"\"),\"Y\",IF(AND('Enrollment Form'!$C262=\"ROC\",'Enrollment Form'!$DS262=\"\"),\"N\",IF(AND('Enrollment Form'!$C262=\"Enroll\",'Enrollment Form'!$B262=\"Subscriber\",'Enrollment Form'!$CQ262=\"No\",'Enrollment Form'!$DS262=\"\"),\"N\",IF(AND('Enrollment Form'!$C262=\"Enroll\",'Enrollment Form'!$B262=\"Subscriber\",'Enrollment Form'!$CQ262=\"Yes\"),\"-\",\"Y\")))))","v":""},{"$f":"IF($B255=\"N\",\"\",IF(AND('Enrollment Form'!$C262=\"ROC\",'Enrollment Form'!$DT262<>\"\"),\"Y\",IF(AND('Enrollment Form'!$C262=\"ROC\",'Enrollment Form'!$DT262=\"\"),\"N\",IF(AND('Enrollment Form'!$C262=\"Enroll\",'Enrollment Form'!$B262=\"Subscriber\",'Enrollment Form'!$CQ262=\"No\",'Enrollment Form'!$DT262=\"\"),\"N\",IF(AND('Enrollment Form'!$C262=\"Enroll\",'Enrollment Form'!$B262=\"Subscriber\",'Enrollment Form'!$CQ262=\"Yes\"),\"-\",\"Y\")))))","v":""},{"$f":"IF('Enrollment Form'!AH262=\"\",\"\",IF(ISERROR(SEARCH(\".\",'Enrollment Form'!AH262,SEARCH(\"@\",'Enrollment Form'!AH262))),\"N\",\"Y\"))","v":""},{"$f":"IF(OR($B255=\"N\",'Enrollment Form'!$G262=\"\"),\"\",IF('Enrollment Form'!$B262<>\"Subscriber\",\"-\",IF(COUNTIF('Enrollment Form'!$AS262:$AT262,\"Yes\")=2,\"N\",\"Y\")))","v":""},{"$f":"IF(OR('Enrollment Form'!$CC262=\"\",'Enrollment Form'!$CC262=\"No\"),\"-\",IF(AND('Enrollment Form'!$CC262=\"Yes\",'Enrollment Form'!$CD262=\"\"),\"N\",\"Y\"))","v":"-"},{"$f":"IF(OR('Enrollment Form'!$CE262=\"\",'Enrollment Form'!$CE262=\"No\"),\"-\",IF(AND('Enrollment Form'!$CE262=\"Yes\",'Enrollment Form'!$CF262=\"\"),\"N\",\"Y\"))","v":"-"},{"$f":"IF(OR('Enrollment Form'!$CG262=\"\",'Enrollment Form'!$CG262=\"No\"),\"-\",IF(AND('Enrollment Form'!$CG262=\"Yes\",'Enrollment Form'!$CH262=\"\"),\"N\",\"Y\"))","v":"-"},{"$f":"IF(OR('Enrollment Form'!$CG262=\"\",'Enrollment Form'!$CG262=\"No\"),\"-\",IF(AND('Enrollment Form'!$CG262=\"Yes\",'Enrollment Form'!$CI262=\"\"),\"N\",\"Y\"))","v":"-"},{"$f":"IF('Enrollment Form'!B262<>\"Subscriber\",\"-\",IF(AND('Enrollment Form'!B262=\"Subscriber\",'Enrollment Form'!C262=\"Enroll\",'Enrollment Form'!AA262=\"\"),\"N\",\"Y\"))","v":"-"},{"$f":"IF(OR('Enrollment Form'!B262=\"Subscriber\",'Enrollment Form'!B262=\"\"),\"-\",IF('Enrollment Form'!BI262=\"\",\"N\",\"Y\"))","v":"-"},{"$f":"IF('Enrollment Form'!B262<>\"Subscriber\",\"-\",IF(AND('Enrollment Form'!B262=\"Subscriber\",'Enrollment Form'!G262=\"\"),\"N\",\"Y\"))","v":"-"},{"$f":"IF('Enrollment Form'!A262=\"\",\"\",IF('Enrollment Form'!B262=\"Subscriber\",\"-\",IF(AND('Enrollment Form'!B262<>\"Subscriber\",'Enrollment Form'!G262='Enrollment Form'!H262),\"N\",\"Y\")))","v":""},0]
[263,{"$f":"IF('Enrollment Form'!$A263<>\"\",\"Y\",\"N\")","v":"N"},{"$f":"IF(AND('Enrollment Form'!$B263=\"\",'Enrollment Form'!$C263<>\"\"),\"N\",IF($B256=\"N\",\"\",\"Y\"))","v":""},{"$f":"IF(OR($B256=\"N\",'Enrollment Form'!G263=\"\"),\"\",IF('Enrollment Form'!$B263<>\"Subscriber\",\"\",IF('Enrollment Form'!$G263='Enrollment Form'!$H263,\"Y\",\"N\")))","v":""},{"$f":"IF($B256=\"N\",\"\",IF(AND(COUNTIFS('Enrollment Form'!$H$11:$H$1000,'Enrollment Form'!$H263,'Enrollment Form'!$B$11:$B$1000,'Enrollment Form'!$B263)>1,'Enrollment Form'!$H263<>\"\"),\"N\",\"Y\"))","v":""},{"$f":"IF($B256=\"N\",\"\",IF(LEN('Enrollment Form'!$Y263)=0,\"\",IF(LEN('Enrollment Form'!$Y263)<>5,\"N\",\"Y\")))","v":""},{"$f":"IF($B256=\"N\",\"\",IF(LEN('Enrollment Form'!$AD263=0),\"\",IF(LEN('Enrollment Form'!$AD263)<>5,\"N\",\"Y\")))","v":""},{"$f":"IF($B256=\"N\",\"\",IF(LEN('Enrollment Form'!$BL263=0),\"\",IF(LEN('Enrollment Form'!$BL263)<>5,\"N\",\"Y\")))","v":""},{"$f":"IF($B256=\"N\",\"\",IF(LEN('Enrollment Form'!$AE263)=0,\"\",IF(LEN('Enrollment Form'!$AE263)<>10,\"N\",\"Y\")))","v":""},{"$f":"IF($B256=\"N\",\"\",IF(LEN('Enrollment Form'!$AF263)=0,\"\",IF(LEN('Enrollment Form'!$AF263)<>10,\"N\",\"Y\")))","v":""},{"$f":"IF('Enrollment Form'!$O263<>\"Graded\",\"-\",IF(AND('Enrollment Form'!$O263=\"Graded\",'Enrollment Form'!$AO263<>\"\"),\"Y\",\"N\"))","v":"-"},{"$f":"IF($B256=\"N\",\"\",IF(OR('Enrollment Form'!$B263<>\"Subscriber\",'Enrollment Form'!$C263=\"ROC\"),\"-\",IF(AND('Enrollment Form'!$B263=\"Subscriber\",'Enrollment Form'!$C263=\"Enroll\",'Enrollment Form'!$AJ263<>\"\"),\"Y\",\"N\")))","v":""},{"$f":"IF($B256=\"N\",\"\",IF(OR('Enrollment Form'!$B263<>\"Subscriber\",'Enrollment Form'!$C263=\"ROC\"),\"-\",IF(AND('Enrollment Form'!$B263=\"Subscriber\",'Enrollment Form'!$C263=\"Enroll\",'Enrollment Form'!$AK263<>\"\"),\"Y\",\"N\")))","v":""},{"$f":"IF($B256=\"N\",\"\",IF(OR('Enrollment Form'!$B263<>\"Subscriber\",'Enrollment Form'!$C263=\"ROC\"),\"-\",IF(AND('Enrollment Form'!$B263=\"Subscriber\",'Enrollment Form'!$C263=\"Enroll\",'Enrollment Form'!$AL263<>\"\"),\"Y\",\"N\")))","v":""},{"$f":"IF($B256=\"N\",\"\",IF(OR('Enrollment Form'!$B263<>\"Subscriber\",'Enrollment Form'!$C263=\"ROC\"),\"-\",IF(AND('Enrollment Form'!$B263=\"Subscriber\",'Enrollment Form'!$C263=\"Enroll\",'Enrollment Form'!$AM263<>\"\"),\"Y\",\"N\")))","v":""},{"$f":"IF($B256=\"N\",\"\",IF(OR('Enrollment Form'!$B263<>\"Subscriber\",'Enrollment Form'!$C263=\"ROC\"),\"-\",IF(AND('Enrollment Form'!$B263=\"Subscriber\",'Enrollment Form'!$C263=\"Enroll\",'Enrollment Form'!$AN263<>\"\"),\"Y\",\"N\")))","v":""},{"$f":"IF($B256=\"N\",\"\",IF(OR('Enrollment Form'!$B263<>\"Subscriber\",'Enrollment Form'!$C263=\"ROC\"),\"-\",IF(AND('Enrollment Form'!$B263=\"Subscriber\",'Enrollment Form'!$C263=\"Enroll\",'Enrollment Form'!$AP263<>\"\"),\"Y\",\"N\")))","v":""},{"$f":"IF($B256=\"N\",\"\",IF($Q256=\"-\",\"-\",IF(AND($Q256=\"Y\",'Enrollment Form'!$AP263=\"No\"),\"-\",IF(AND($Q256=\"Y\",'Enrollment Form'!$AP263=\"Yes\",'Enrollment Form'!$AQ263<>\"\"),\"Y\",\"N\"))))","v":""},{"$f":"IF($B256=\"N\",\"\",IF(OR('Enrollment Form'!$B263<>\"Subscriber\",'Enrollment Form'!$C263=\"ROC\"),\"-\",IF(AND('Enrollment Form'!$B263=\"Subscriber\",'Enrollment Form'!$C263=\"Enroll\",'Enrollment Form'!$CO263<>\"\"),\"Y\",\"N\")))","v":""},{"$f":"IF($B256=\"N\",\"\",IF($S256=\"-\",\"-\",IF(AND($S256=\"Y\",'Enrollment Form'!$CO263=\"No\"),\"-\",IF(AND($S256=\"Y\",'Enrollment Form'!$CO263=\"Yes\",'Enrollment Form'!$CP263<>\"\"),\"Y\",\"N\"))))","v":""},{"$f":"IF(OR('Enrollment Form'!$AV263=\"Yes\",'Enrollment Form'!$AV263=\"\"),\"-\",IF(AND('Enrollment Form'!$AV263=\"No\",ISERROR(FIND(\"HMO\",VLOOKUP('Enrollment Form'!G263,'Enrollment Form'!H$11:J$1000,3,FALSE),1))=FALSE,COUNTA('Enrollment Form'!$AW263:$AZ263)=4),\"Y\",\"N\"))","v":"-"},{"$f":"IF($B256=\"N\",\"\",IF('Enrollment Form'!$B263=\"Subscriber\",\"-\",IF(COUNTA('Enrollment Form'!$BE263,'Enrollment Form'!$BG263)=2,\"Y\",\"N\")))","v":""},{"$f":"IF($B256=\"N\",\"\",IF(OR('Enrollment Form'!$AU263=\"\",'Enrollment Form'!$AU263=\"No\"),\"-\",IF(AND('Enrollment Form'!$AU263=\"Yes\",COUNTA('Enrollment Form'!$CK263)=1),\"Y\",\"N\")))","v":""},{"$f":"IF(OR('Enrollment Form'!$CK263=\"\",'Enrollment Form'!$CK263=\"No\"),\"-\",IF(COUNTA('Enrollment Form'!$CM263:$CN263)=2,\"Y\",\"N\"))","v":"-"},{"$f":"IF($B256=\"N\",\"\",IF(COUNTIF('Enrollment Form'!$CZ263:$DO263,\"Other\")=COUNTA('Enrollment Form'!$DF263,'Enrollment Form'!$DA263,'Enrollment Form'!$DK263,'Enrollment Form'!$DP263),\"Y\",\"N\"))","v":""},{"$f":"IF($B256=\"N\",\"\",IF(OR('Enrollment Form'!B263<>\"Subscriber\",'Enrollment Form'!C263=\"ROC\",COUNTIF('Enrollment Form'!AS263:AT263,\"Yes\")>=1),\"-\",IF(AND('Enrollment Form'!C263=\"Enroll\",COUNTIF('Enrollment Form'!AS263:AT263,\"No\")=2,'Enrollment Form'!AU263=\"\"),\"N\",\"Y\")))","v":""},{"$f":"IF(OR(B256=\"N\",'Enrollment Form'!B263<>\"Subscriber\",'Enrollment Form'!C263=\"ROC\",'Enrollment Form'!O263<>\"Multiple of Salary\"),\"-\",IF(COUNTA('Enrollment Form'!T263:U263)<2,\"N\",\"Y\"))","v":"-"},{"$f":"IF(B256=\"N\",\"\",IF(OR('Enrollment Form'!C263=\"ROC\",'Enrollment Form'!B263<>\"Subscriber\",'Enrollment Form'!O263=\"Waive\",'Enrollment Form'!O263=\"\"),\"-\",IF('Enrollment Form'!P263=\"\",\"N\",\"Y\")))","v":""},{"$f":"IF($B256=\"N\",\"\",IF(AND('Enrollment Form'!$C263=\"ROC\",'Enrollment Form'!$DS263<>\"\"),\"Y\",IF(AND('Enrollment Form'!$C263=\"ROC\",'Enrollment Form'!$DS263=\"\"),\"N\",IF(AND('Enrollment Form'!$C263=\"Enroll\",'Enrollment Form'!$B263=\"Subscriber\",'Enrollment Form'!$CQ263=\"No\",'Enrollment Form'!$DS263=\"\"),\"N\",IF(AND('Enrollment Form'!$C263=\"Enroll\",'Enrollment Form'!$B263=\"Subscriber\",'Enrollment Form'!$CQ263=\"Yes\"),\"-\",\"Y\")))))","v":""},{"$f":"IF($B256=\"N\",\"\",IF(AND('Enrollment Form'!$C263=\"ROC\",'Enrollment Form'!$DT263<>\"\"),\"Y\",IF(AND('Enrollment Form'!$C263=\"ROC\",'Enrollment Form'!$DT263=\"\"),\"N\",IF(AND('Enrollment Form'!$C263=\"Enroll\",'Enrollment Form'!$B263=\"Subscriber\",'Enrollment Form'!$CQ263=\"No\",'Enrollment Form'!$DT263=\"\"),\"N\",IF(AND('Enrollment Form'!$C263=\"Enroll\",'Enrollment Form'!$B263=\"Subscriber\",'Enrollment Form'!$CQ263=\"Yes\"),\"-\",\"Y\")))))","v":""},{"$f":"IF('Enrollment Form'!AH263=\"\",\"\",IF(ISERROR(SEARCH(\".\",'Enrollment Form'!AH263,SEARCH(\"@\",'Enrollment Form'!AH263))),\"N\",\"Y\"))","v":""},{"$f":"IF(OR($B256=\"N\",'Enrollment Form'!$G263=\"\"),\"\",IF('Enrollment Form'!$B263<>\"Subscriber\",\"-\",IF(COUNTIF('Enrollment Form'!$AS263:$AT263,\"Yes\")=2,\"N\",\"Y\")))","v":""},{"$f":"IF(OR('Enrollment Form'!$CC263=\"\",'Enrollment Form'!$CC263=\"No\"),\"-\",IF(AND('Enrollment Form'!$CC263=\"Yes\",'Enrollment Form'!$CD263=\"\"),\"N\",\"Y\"))","v":"-"},{"$f":"IF(OR('Enrollment Form'!$CE263=\"\",'Enrollment Form'!$CE263=\"No\"),\"-\",IF(AND('Enrollment Form'!$CE263=\"Yes\",'Enrollment Form'!$CF263=\"\"),\"N\",\"Y\"))","v":"-"},{"$f":"IF(OR('Enrollment Form'!$CG263=\"\",'Enrollment Form'!$CG263=\"No\"),\"-\",IF(AND('Enrollment Form'!$CG263=\"Yes\",'Enrollment Form'!$CH263=\"\"),\"N\",\"Y\"))","v":"-"},{"$f":"IF(OR('Enrollment Form'!$CG263=\"\",'Enrollment Form'!$CG263=\"No\"),\"-\",IF(AND('Enrollment Form'!$CG263=\"Yes\",'Enrollment Form'!$CI263=\"\"),\"N\",\"Y\"))","v":"-"},{"$f":"IF('Enrollment Form'!B263<>\"Subscriber\",\"-\",IF(AND('Enrollment Form'!B263=\"Subscriber\",'Enrollment Form'!C263=\"Enroll\",'Enrollment Form'!AA263=\"\"),\"N\",\"Y\"))","v":"-"},{"$f":"IF(OR('Enrollment Form'!B263=\"Subscriber\",'Enrollment Form'!B263=\"\"),\"-\",IF('Enrollment Form'!BI263=\"\",\"N\",\"Y\"))","v":"-"},{"$f":"IF('Enrollment Form'!B263<>\"Subscriber\",\"-\",IF(AND('Enrollment Form'!B263=\"Subscriber\",'Enrollment Form'!G263=\"\"),\"N\",\"Y\"))","v":"-"},{"$f":"IF('Enrollment Form'!A263=\"\",\"\",IF('Enrollment Form'!B263=\"Subscriber\",\"-\",IF(AND('Enrollment Form'!B263<>\"Subscriber\",'Enrollment Form'!G263='Enrollment Form'!H263),\"N\",\"Y\")))","v":""},0]
[264,{"$f":"IF('Enrollment Form'!$A264<>\"\",\"Y\",\"N\")","v":"N"},{"$f":"IF(AND('Enrollment Form'!$B264=\"\",'Enrollment Form'!$C264<>\"\"),\"N\",IF($B257=\"N\",\"\",\"Y\"))","v":""},{"$f":"IF(OR($B257=\"N\",'Enrollment Form'!G264=\"\"),\"\",IF('Enrollment Form'!$B264<>\"Subscriber\",\"\",IF('Enrollment Form'!$G264='Enrollment Form'!$H264,\"Y\",\"N\")))","v":""},{"$f":"IF($B257=\"N\",\"\",IF(AND(COUNTIFS('Enrollment Form'!$H$11:$H$1000,'Enrollment Form'!$H264,'Enrollment Form'!$B$11:$B$1000,'Enrollment Form'!$B264)>1,'Enrollment Form'!$H264<>\"\"),\"N\",\"Y\"))","v":""},{"$f":"IF($B257=\"N\",\"\",IF(LEN('Enrollment Form'!$Y264)=0,\"\",IF(LEN('Enrollment Form'!$Y264)<>5,\"N\",\"Y\")))","v":""},{"$f":"IF($B257=\"N\",\"\",IF(LEN('Enrollment Form'!$AD264=0),\"\",IF(LEN('Enrollment Form'!$AD264)<>5,\"N\",\"Y\")))","v":""},{"$f":"IF($B257=\"N\",\"\",IF(LEN('Enrollment Form'!$BL264=0),\"\",IF(LEN('Enrollment Form'!$BL264)<>5,\"N\",\"Y\")))","v":""},{"$f":"IF($B257=\"N\",\"\",IF(LEN('Enrollment Form'!$AE264)=0,\"\",IF(LEN('Enrollment Form'!$AE264)<>10,\"N\",\"Y\")))","v":""},{"$f":"IF($B257=\"N\",\"\",IF(LEN('Enrollment Form'!$AF264)=0,\"\",IF(LEN('Enrollment Form'!$AF264)<>10,\"N\",\"Y\")))","v":""},{"$f":"IF('Enrollment Form'!$O264<>\"Graded\",\"-\",IF(AND('Enrollment Form'!$O264=\"Graded\",'Enrollment Form'!$AO264<>\"\"),\"Y\",\"N\"))","v":"-"},{"$f":"IF($B257=\"N\",\"\",IF(OR('Enrollment Form'!$B264<>\"Subscriber\",'Enrollment Form'!$C264=\"ROC\"),\"-\",IF(AND('Enrollment Form'!$B264=\"Subscriber\",'Enrollment Form'!$C264=\"Enroll\",'Enrollment Form'!$AJ264<>\"\"),\"Y\",\"N\")))","v":""},{"$f":"IF($B257=\"N\",\"\",IF(OR('Enrollment Form'!$B264<>\"Subscriber\",'Enrollment Form'!$C264=\"ROC\"),\"-\",IF(AND('Enrollment Form'!$B264=\"Subscriber\",'Enrollment Form'!$C264=\"Enroll\",'Enrollment Form'!$AK264<>\"\"),\"Y\",\"N\")))","v":""},{"$f":"IF($B257=\"N\",\"\",IF(OR('Enrollment Form'!$B264<>\"Subscriber\",'Enrollment Form'!$C264=\"ROC\"),\"-\",IF(AND('Enrollment Form'!$B264=\"Subscriber\",'Enrollment Form'!$C264=\"Enroll\",'Enrollment Form'!$AL264<>\"\"),\"Y\",\"N\")))","v":""},{"$f":"IF($B257=\"N\",\"\",IF(OR('Enrollment Form'!$B264<>\"Subscriber\",'Enrollment Form'!$C264=\"ROC\"),\"-\",IF(AND('Enrollment Form'!$B264=\"Subscriber\",'Enrollment Form'!$C264=\"Enroll\",'Enrollment Form'!$AM264<>\"\"),\"Y\",\"N\")))","v":""},{"$f":"IF($B257=\"N\",\"\",IF(OR('Enrollment Form'!$B264<>\"Subscriber\",'Enrollment Form'!$C264=\"ROC\"),\"-\",IF(AND('Enrollment Form'!$B264=\"Subscriber\",'Enrollment Form'!$C264=\"Enroll\",'Enrollment Form'!$AN264<>\"\"),\"Y\",\"N\")))","v":""},{"$f":"IF($B257=\"N\",\"\",IF(OR('Enrollment Form'!$B264<>\"Subscriber\",'Enrollment Form'!$C264=\"ROC\"),\"-\",IF(AND('Enrollment Form'!$B264=\"Subscriber\",'Enrollment Form'!$C264=\"Enroll\",'Enrollment Form'!$AP264<>\"\"),\"Y\",\"N\")))","v":""},{"$f":"IF($B257=\"N\",\"\",IF($Q257=\"-\",\"-\",IF(AND($Q257=\"Y\",'Enrollment Form'!$AP264=\"No\"),\"-\",IF(AND($Q257=\"Y\",'Enrollment Form'!$AP264=\"Yes\",'Enrollment Form'!$AQ264<>\"\"),\"Y\",\"N\"))))","v":""},{"$f":"IF($B257=\"N\",\"\",IF(OR('Enrollment Form'!$B264<>\"Subscriber\",'Enrollment Form'!$C264=\"ROC\"),\"-\",IF(AND('Enrollment Form'!$B264=\"Subscriber\",'Enrollment Form'!$C264=\"Enroll\",'Enrollment Form'!$CO264<>\"\"),\"Y\",\"N\")))","v":""},{"$f":"IF($B257=\"N\",\"\",IF($S257=\"-\",\"-\",IF(AND($S257=\"Y\",'Enrollment Form'!$CO264=\"No\"),\"-\",IF(AND($S257=\"Y\",'Enrollment Form'!$CO264=\"Yes\",'Enrollment Form'!$CP264<>\"\"),\"Y\",\"N\"))))","v":""},{"$f":"IF(OR('Enrollment Form'!$AV264=\"Yes\",'Enrollment Form'!$AV264=\"\"),\"-\",IF(AND('Enrollment Form'!$AV264=\"No\",ISERROR(FIND(\"HMO\",VLOOKUP('Enrollment Form'!G264,'Enrollment Form'!H$11:J$1000,3,FALSE),1))=FALSE,COUNTA('Enrollment Form'!$AW264:$AZ264)=4),\"Y\",\"N\"))","v":"-"},{"$f":"IF($B257=\"N\",\"\",IF('Enrollment Form'!$B264=\"Subscriber\",\"-\",IF(COUNTA('Enrollment Form'!$BE264,'Enrollment Form'!$BG264)=2,\"Y\",\"N\")))","v":""},{"$f":"IF($B257=\"N\",\"\",IF(OR('Enrollment Form'!$AU264=\"\",'Enrollment Form'!$AU264=\"No\"),\"-\",IF(AND('Enrollment Form'!$AU264=\"Yes\",COUNTA('Enrollment Form'!$CK264)=1),\"Y\",\"N\")))","v":""},{"$f":"IF(OR('Enrollment Form'!$CK264=\"\",'Enrollment Form'!$CK264=\"No\"),\"-\",IF(COUNTA('Enrollment Form'!$CM264:$CN264)=2,\"Y\",\"N\"))","v":"-"},{"$f":"IF($B257=\"N\",\"\",IF(COUNTIF('Enrollment Form'!$CZ264:$DO264,\"Other\")=COUNTA('Enrollment Form'!$DF264,'Enrollment Form'!$DA264,'Enrollment Form'!$DK264,'Enrollment Form'!$DP264),\"Y\",\"N\"))","v":""},{"$f":"IF($B257=\"N\",\"\",IF(OR('Enrollment Form'!B264<>\"Subscriber\",'Enrollment Form'!C264=\"ROC\",COUNTIF('Enrollment Form'!AS264:AT264,\"Yes\")>=1),\"-\",IF(AND('Enrollment Form'!C264=\"Enroll\",COUNTIF('Enrollment Form'!AS264:AT264,\"No\")=2,'Enrollment Form'!AU264=\"\"),\"N\",\"Y\")))","v":""},{"$f":"IF(OR(B257=\"N\",'Enrollment Form'!B264<>\"Subscriber\",'Enrollment Form'!C264=\"ROC\",'Enrollment Form'!O264<>\"Multiple of Salary\"),\"-\",IF(COUNTA('Enrollment Form'!T264:U264)<2,\"N\",\"Y\"))","v":"-"},{"$f":"IF(B257=\"N\",\"\",IF(OR('Enrollment Form'!C264=\"ROC\",'Enrollment Form'!B264<>\"Subscriber\",'Enrollment Form'!O264=\"Waive\",'Enrollment Form'!O264=\"\"),\"-\",IF('Enrollment Form'!P264=\"\",\"N\",\"Y\")))","v":""},{"$f":"IF($B257=\"N\",\"\",IF(AND('Enrollment Form'!$C264=\"ROC\",'Enrollment Form'!$DS264<>\"\"),\"Y\",IF(AND('Enrollment Form'!$C264=\"ROC\",'Enrollment Form'!$DS264=\"\"),\"N\",IF(AND('Enrollment Form'!$C264=\"Enroll\",'Enrollment Form'!$B264=\"Subscriber\",'Enrollment Form'!$CQ264=\"No\",'Enrollment Form'!$DS264=\"\"),\"N\",IF(AND('Enrollment Form'!$C264=\"Enroll\",'Enrollment Form'!$B264=\"Subscriber\",'Enrollment Form'!$CQ264=\"Yes\"),\"-\",\"Y\")))))","v":""},{"$f":"IF($B257=\"N\",\"\",IF(AND('Enrollment Form'!$C264=\"ROC\",'Enrollment Form'!$DT264<>\"\"),\"Y\",IF(AND('Enrollment Form'!$C264=\"ROC\",'Enrollment Form'!$DT264=\"\"),\"N\",IF(AND('Enrollment Form'!$C264=\"Enroll\",'Enrollment Form'!$B264=\"Subscriber\",'Enrollment Form'!$CQ264=\"No\",'Enrollment Form'!$DT264=\"\"),\"N\",IF(AND('Enrollment Form'!$C264=\"Enroll\",'Enrollment Form'!$B264=\"Subscriber\",'Enrollment Form'!$CQ264=\"Yes\"),\"-\",\"Y\")))))","v":""},{"$f":"IF('Enrollment Form'!AH264=\"\",\"\",IF(ISERROR(SEARCH(\".\",'Enrollment Form'!AH264,SEARCH(\"@\",'Enrollment Form'!AH264))),\"N\",\"Y\"))","v":""},{"$f":"IF(OR($B257=\"N\",'Enrollment Form'!$G264=\"\"),\"\",IF('Enrollment Form'!$B264<>\"Subscriber\",\"-\",IF(COUNTIF('Enrollment Form'!$AS264:$AT264,\"Yes\")=2,\"N\",\"Y\")))","v":""},{"$f":"IF(OR('Enrollment Form'!$CC264=\"\",'Enrollment Form'!$CC264=\"No\"),\"-\",IF(AND('Enrollment Form'!$CC264=\"Yes\",'Enrollment Form'!$CD264=\"\"),\"N\",\"Y\"))","v":"-"},{"$f":"IF(OR('Enrollment Form'!$CE264=\"\",'Enrollment Form'!$CE264=\"No\"),\"-\",IF(AND('Enrollment Form'!$CE264=\"Yes\",'Enrollment Form'!$CF264=\"\"),\"N\",\"Y\"))","v":"-"},{"$f":"IF(OR('Enrollment Form'!$CG264=\"\",'Enrollment Form'!$CG264=\"No\"),\"-\",IF(AND('Enrollment Form'!$CG264=\"Yes\",'Enrollment Form'!$CH264=\"\"),\"N\",\"Y\"))","v":"-"},{"$f":"IF(OR('Enrollment Form'!$CG264=\"\",'Enrollment Form'!$CG264=\"No\"),\"-\",IF(AND('Enrollment Form'!$CG264=\"Yes\",'Enrollment Form'!$CI264=\"\"),\"N\",\"Y\"))","v":"-"},{"$f":"IF('Enrollment Form'!B264<>\"Subscriber\",\"-\",IF(AND('Enrollment Form'!B264=\"Subscriber\",'Enrollment Form'!C264=\"Enroll\",'Enrollment Form'!AA264=\"\"),\"N\",\"Y\"))","v":"-"},{"$f":"IF(OR('Enrollment Form'!B264=\"Subscriber\",'Enrollment Form'!B264=\"\"),\"-\",IF('Enrollment Form'!BI264=\"\",\"N\",\"Y\"))","v":"-"},{"$f":"IF('Enrollment Form'!B264<>\"Subscriber\",\"-\",IF(AND('Enrollment Form'!B264=\"Subscriber\",'Enrollment Form'!G264=\"\"),\"N\",\"Y\"))","v":"-"},{"$f":"IF('Enrollment Form'!A264=\"\",\"\",IF('Enrollment Form'!B264=\"Subscriber\",\"-\",IF(AND('Enrollment Form'!B264<>\"Subscriber\",'Enrollment Form'!G264='Enrollment Form'!H264),\"N\",\"Y\")))","v":""},0]
[265,{"$f":"IF('Enrollment Form'!$A265<>\"\",\"Y\",\"N\")","v":"N"},{"$f":"IF(AND('Enrollment Form'!$B265=\"\",'Enrollment Form'!$C265<>\"\"),\"N\",IF($B258=\"N\",\"\",\"Y\"))","v":""},{"$f":"IF(OR($B258=\"N\",'Enrollment Form'!G265=\"\"),\"\",IF('Enrollment Form'!$B265<>\"Subscriber\",\"\",IF('Enrollment Form'!$G265='Enrollment Form'!$H265,\"Y\",\"N\")))","v":""},{"$f":"IF($B258=\"N\",\"\",IF(AND(COUNTIFS('Enrollment Form'!$H$11:$H$1000,'Enrollment Form'!$H265,'Enrollment Form'!$B$11:$B$1000,'Enrollment Form'!$B265)>1,'Enrollment Form'!$H265<>\"\"),\"N\",\"Y\"))","v":""},{"$f":"IF($B258=\"N\",\"\",IF(LEN('Enrollment Form'!$Y265)=0,\"\",IF(LEN('Enrollment Form'!$Y265)<>5,\"N\",\"Y\")))","v":""},{"$f":"IF($B258=\"N\",\"\",IF(LEN('Enrollment Form'!$AD265=0),\"\",IF(LEN('Enrollment Form'!$AD265)<>5,\"N\",\"Y\")))","v":""},{"$f":"IF($B258=\"N\",\"\",IF(LEN('Enrollment Form'!$BL265=0),\"\",IF(LEN('Enrollment Form'!$BL265)<>5,\"N\",\"Y\")))","v":""},{"$f":"IF($B258=\"N\",\"\",IF(LEN('Enrollment Form'!$AE265)=0,\"\",IF(LEN('Enrollment Form'!$AE265)<>10,\"N\",\"Y\")))","v":""},{"$f":"IF($B258=\"N\",\"\",IF(LEN('Enrollment Form'!$AF265)=0,\"\",IF(LEN('Enrollment Form'!$AF265)<>10,\"N\",\"Y\")))","v":""},{"$f":"IF('Enrollment Form'!$O265<>\"Graded\",\"-\",IF(AND('Enrollment Form'!$O265=\"Graded\",'Enrollment Form'!$AO265<>\"\"),\"Y\",\"N\"))","v":"-"},{"$f":"IF($B258=\"N\",\"\",IF(OR('Enrollment Form'!$B265<>\"Subscriber\",'Enrollment Form'!$C265=\"ROC\"),\"-\",IF(AND('Enrollment Form'!$B265=\"Subscriber\",'Enrollment Form'!$C265=\"Enroll\",'Enrollment Form'!$AJ265<>\"\"),\"Y\",\"N\")))","v":""},{"$f":"IF($B258=\"N\",\"\",IF(OR('Enrollment Form'!$B265<>\"Subscriber\",'Enrollment Form'!$C265=\"ROC\"),\"-\",IF(AND('Enrollment Form'!$B265=\"Subscriber\",'Enrollment Form'!$C265=\"Enroll\",'Enrollment Form'!$AK265<>\"\"),\"Y\",\"N\")))","v":""},{"$f":"IF($B258=\"N\",\"\",IF(OR('Enrollment Form'!$B265<>\"Subscriber\",'Enrollment Form'!$C265=\"ROC\"),\"-\",IF(AND('Enrollment Form'!$B265=\"Subscriber\",'Enrollment Form'!$C265=\"Enroll\",'Enrollment Form'!$AL265<>\"\"),\"Y\",\"N\")))","v":""},{"$f":"IF($B258=\"N\",\"\",IF(OR('Enrollment Form'!$B265<>\"Subscriber\",'Enrollment Form'!$C265=\"ROC\"),\"-\",IF(AND('Enrollment Form'!$B265=\"Subscriber\",'Enrollment Form'!$C265=\"Enroll\",'Enrollment Form'!$AM265<>\"\"),\"Y\",\"N\")))","v":""},{"$f":"IF($B258=\"N\",\"\",IF(OR('Enrollment Form'!$B265<>\"Subscriber\",'Enrollment Form'!$C265=\"ROC\"),\"-\",IF(AND('Enrollment Form'!$B265=\"Subscriber\",'Enrollment Form'!$C265=\"Enroll\",'Enrollment Form'!$AN265<>\"\"),\"Y\",\"N\")))","v":""},{"$f":"IF($B258=\"N\",\"\",IF(OR('Enrollment Form'!$B265<>\"Subscriber\",'Enrollment Form'!$C265=\"ROC\"),\"-\",IF(AND('Enrollment Form'!$B265=\"Subscriber\",'Enrollment Form'!$C265=\"Enroll\",'Enrollment Form'!$AP265<>\"\"),\"Y\",\"N\")))","v":""},{"$f":"IF($B258=\"N\",\"\",IF($Q258=\"-\",\"-\",IF(AND($Q258=\"Y\",'Enrollment Form'!$AP265=\"No\"),\"-\",IF(AND($Q258=\"Y\",'Enrollment Form'!$AP265=\"Yes\",'Enrollment Form'!$AQ265<>\"\"),\"Y\",\"N\"))))","v":""},{"$f":"IF($B258=\"N\",\"\",IF(OR('Enrollment Form'!$B265<>\"Subscriber\",'Enrollment Form'!$C265=\"ROC\"),\"-\",IF(AND('Enrollment Form'!$B265=\"Subscriber\",'Enrollment Form'!$C265=\"Enroll\",'Enrollment Form'!$CO265<>\"\"),\"Y\",\"N\")))","v":""},{"$f":"IF($B258=\"N\",\"\",IF($S258=\"-\",\"-\",IF(AND($S258=\"Y\",'Enrollment Form'!$CO265=\"No\"),\"-\",IF(AND($S258=\"Y\",'Enrollment Form'!$CO265=\"Yes\",'Enrollment Form'!$CP265<>\"\"),\"Y\",\"N\"))))","v":""},{"$f":"IF(OR('Enrollment Form'!$AV265=\"Yes\",'Enrollment Form'!$AV265=\"\"),\"-\",IF(AND('Enrollment Form'!$AV265=\"No\",ISERROR(FIND(\"HMO\",VLOOKUP('Enrollment Form'!G265,'Enrollment Form'!H$11:J$1000,3,FALSE),1))=FALSE,COUNTA('Enrollment Form'!$AW265:$AZ265)=4),\"Y\",\"N\"))","v":"-"},{"$f":"IF($B258=\"N\",\"\",IF('Enrollment Form'!$B265=\"Subscriber\",\"-\",IF(COUNTA('Enrollment Form'!$BE265,'Enrollment Form'!$BG265)=2,\"Y\",\"N\")))","v":""},{"$f":"IF($B258=\"N\",\"\",IF(OR('Enrollment Form'!$AU265=\"\",'Enrollment Form'!$AU265=\"No\"),\"-\",IF(AND('Enrollment Form'!$AU265=\"Yes\",COUNTA('Enrollment Form'!$CK265)=1),\"Y\",\"N\")))","v":""},{"$f":"IF(OR('Enrollment Form'!$CK265=\"\",'Enrollment Form'!$CK265=\"No\"),\"-\",IF(COUNTA('Enrollment Form'!$CM265:$CN265)=2,\"Y\",\"N\"))","v":"-"},{"$f":"IF($B258=\"N\",\"\",IF(COUNTIF('Enrollment Form'!$CZ265:$DO265,\"Other\")=COUNTA('Enrollment Form'!$DF265,'Enrollment Form'!$DA265,'Enrollment Form'!$DK265,'Enrollment Form'!$DP265),\"Y\",\"N\"))","v":""},{"$f":"IF($B258=\"N\",\"\",IF(OR('Enrollment Form'!B265<>\"Subscriber\",'Enrollment Form'!C265=\"ROC\",COUNTIF('Enrollment Form'!AS265:AT265,\"Yes\")>=1),\"-\",IF(AND('Enrollment Form'!C265=\"Enroll\",COUNTIF('Enrollment Form'!AS265:AT265,\"No\")=2,'Enrollment Form'!AU265=\"\"),\"N\",\"Y\")))","v":""},{"$f":"IF(OR(B258=\"N\",'Enrollment Form'!B265<>\"Subscriber\",'Enrollment Form'!C265=\"ROC\",'Enrollment Form'!O265<>\"Multiple of Salary\"),\"-\",IF(COUNTA('Enrollment Form'!T265:U265)<2,\"N\",\"Y\"))","v":"-"},{"$f":"IF(B258=\"N\",\"\",IF(OR('Enrollment Form'!C265=\"ROC\",'Enrollment Form'!B265<>\"Subscriber\",'Enrollment Form'!O265=\"Waive\",'Enrollment Form'!O265=\"\"),\"-\",IF('Enrollment Form'!P265=\"\",\"N\",\"Y\")))","v":""},{"$f":"IF($B258=\"N\",\"\",IF(AND('Enrollment Form'!$C265=\"ROC\",'Enrollment Form'!$DS265<>\"\"),\"Y\",IF(AND('Enrollment Form'!$C265=\"ROC\",'Enrollment Form'!$DS265=\"\"),\"N\",IF(AND('Enrollment Form'!$C265=\"Enroll\",'Enrollment Form'!$B265=\"Subscriber\",'Enrollment Form'!$CQ265=\"No\",'Enrollment Form'!$DS265=\"\"),\"N\",IF(AND('Enrollment Form'!$C265=\"Enroll\",'Enrollment Form'!$B265=\"Subscriber\",'Enrollment Form'!$CQ265=\"Yes\"),\"-\",\"Y\")))))","v":""},{"$f":"IF($B258=\"N\",\"\",IF(AND('Enrollment Form'!$C265=\"ROC\",'Enrollment Form'!$DT265<>\"\"),\"Y\",IF(AND('Enrollment Form'!$C265=\"ROC\",'Enrollment Form'!$DT265=\"\"),\"N\",IF(AND('Enrollment Form'!$C265=\"Enroll\",'Enrollment Form'!$B265=\"Subscriber\",'Enrollment Form'!$CQ265=\"No\",'Enrollment Form'!$DT265=\"\"),\"N\",IF(AND('Enrollment Form'!$C265=\"Enroll\",'Enrollment Form'!$B265=\"Subscriber\",'Enrollment Form'!$CQ265=\"Yes\"),\"-\",\"Y\")))))","v":""},{"$f":"IF('Enrollment Form'!AH265=\"\",\"\",IF(ISERROR(SEARCH(\".\",'Enrollment Form'!AH265,SEARCH(\"@\",'Enrollment Form'!AH265))),\"N\",\"Y\"))","v":""},{"$f":"IF(OR($B258=\"N\",'Enrollment Form'!$G265=\"\"),\"\",IF('Enrollment Form'!$B265<>\"Subscriber\",\"-\",IF(COUNTIF('Enrollment Form'!$AS265:$AT265,\"Yes\")=2,\"N\",\"Y\")))","v":""},{"$f":"IF(OR('Enrollment Form'!$CC265=\"\",'Enrollment Form'!$CC265=\"No\"),\"-\",IF(AND('Enrollment Form'!$CC265=\"Yes\",'Enrollment Form'!$CD265=\"\"),\"N\",\"Y\"))","v":"-"},{"$f":"IF(OR('Enrollment Form'!$CE265=\"\",'Enrollment Form'!$CE265=\"No\"),\"-\",IF(AND('Enrollment Form'!$CE265=\"Yes\",'Enrollment Form'!$CF265=\"\"),\"N\",\"Y\"))","v":"-"},{"$f":"IF(OR('Enrollment Form'!$CG265=\"\",'Enrollment Form'!$CG265=\"No\"),\"-\",IF(AND('Enrollment Form'!$CG265=\"Yes\",'Enrollment Form'!$CH265=\"\"),\"N\",\"Y\"))","v":"-"},{"$f":"IF(OR('Enrollment Form'!$CG265=\"\",'Enrollment Form'!$CG265=\"No\"),\"-\",IF(AND('Enrollment Form'!$CG265=\"Yes\",'Enrollment Form'!$CI265=\"\"),\"N\",\"Y\"))","v":"-"},{"$f":"IF('Enrollment Form'!B265<>\"Subscriber\",\"-\",IF(AND('Enrollment Form'!B265=\"Subscriber\",'Enrollment Form'!C265=\"Enroll\",'Enrollment Form'!AA265=\"\"),\"N\",\"Y\"))","v":"-"},{"$f":"IF(OR('Enrollment Form'!B265=\"Subscriber\",'Enrollment Form'!B265=\"\"),\"-\",IF('Enrollment Form'!BI265=\"\",\"N\",\"Y\"))","v":"-"},{"$f":"IF('Enrollment Form'!B265<>\"Subscriber\",\"-\",IF(AND('Enrollment Form'!B265=\"Subscriber\",'Enrollment Form'!G265=\"\"),\"N\",\"Y\"))","v":"-"},{"$f":"IF('Enrollment Form'!A265=\"\",\"\",IF('Enrollment Form'!B265=\"Subscriber\",\"-\",IF(AND('Enrollment Form'!B265<>\"Subscriber\",'Enrollment Form'!G265='Enrollment Form'!H265),\"N\",\"Y\")))","v":""},0]
[266,{"$f":"IF('Enrollment Form'!$A266<>\"\",\"Y\",\"N\")","v":"N"},{"$f":"IF(AND('Enrollment Form'!$B266=\"\",'Enrollment Form'!$C266<>\"\"),\"N\",IF($B259=\"N\",\"\",\"Y\"))","v":""},{"$f":"IF(OR($B259=\"N\",'Enrollment Form'!G266=\"\"),\"\",IF('Enrollment Form'!$B266<>\"Subscriber\",\"\",IF('Enrollment Form'!$G266='Enrollment Form'!$H266,\"Y\",\"N\")))","v":""},{"$f":"IF($B259=\"N\",\"\",IF(AND(COUNTIFS('Enrollment Form'!$H$11:$H$1000,'Enrollment Form'!$H266,'Enrollment Form'!$B$11:$B$1000,'Enrollment Form'!$B266)>1,'Enrollment Form'!$H266<>\"\"),\"N\",\"Y\"))","v":""},{"$f":"IF($B259=\"N\",\"\",IF(LEN('Enrollment Form'!$Y266)=0,\"\",IF(LEN('Enrollment Form'!$Y266)<>5,\"N\",\"Y\")))","v":""},{"$f":"IF($B259=\"N\",\"\",IF(LEN('Enrollment Form'!$AD266=0),\"\",IF(LEN('Enrollment Form'!$AD266)<>5,\"N\",\"Y\")))","v":""},{"$f":"IF($B259=\"N\",\"\",IF(LEN('Enrollment Form'!$BL266=0),\"\",IF(LEN('Enrollment Form'!$BL266)<>5,\"N\",\"Y\")))","v":""},{"$f":"IF($B259=\"N\",\"\",IF(LEN('Enrollment Form'!$AE266)=0,\"\",IF(LEN('Enrollment Form'!$AE266)<>10,\"N\",\"Y\")))","v":""},{"$f":"IF($B259=\"N\",\"\",IF(LEN('Enrollment Form'!$AF266)=0,\"\",IF(LEN('Enrollment Form'!$AF266)<>10,\"N\",\"Y\")))","v":""},{"$f":"IF('Enrollment Form'!$O266<>\"Graded\",\"-\",IF(AND('Enrollment Form'!$O266=\"Graded\",'Enrollment Form'!$AO266<>\"\"),\"Y\",\"N\"))","v":"-"},{"$f":"IF($B259=\"N\",\"\",IF(OR('Enrollment Form'!$B266<>\"Subscriber\",'Enrollment Form'!$C266=\"ROC\"),\"-\",IF(AND('Enrollment Form'!$B266=\"Subscriber\",'Enrollment Form'!$C266=\"Enroll\",'Enrollment Form'!$AJ266<>\"\"),\"Y\",\"N\")))","v":""},{"$f":"IF($B259=\"N\",\"\",IF(OR('Enrollment Form'!$B266<>\"Subscriber\",'Enrollment Form'!$C266=\"ROC\"),\"-\",IF(AND('Enrollment Form'!$B266=\"Subscriber\",'Enrollment Form'!$C266=\"Enroll\",'Enrollment Form'!$AK266<>\"\"),\"Y\",\"N\")))","v":""},{"$f":"IF($B259=\"N\",\"\",IF(OR('Enrollment Form'!$B266<>\"Subscriber\",'Enrollment Form'!$C266=\"ROC\"),\"-\",IF(AND('Enrollment Form'!$B266=\"Subscriber\",'Enrollment Form'!$C266=\"Enroll\",'Enrollment Form'!$AL266<>\"\"),\"Y\",\"N\")))","v":""},{"$f":"IF($B259=\"N\",\"\",IF(OR('Enrollment Form'!$B266<>\"Subscriber\",'Enrollment Form'!$C266=\"ROC\"),\"-\",IF(AND('Enrollment Form'!$B266=\"Subscriber\",'Enrollment Form'!$C266=\"Enroll\",'Enrollment Form'!$AM266<>\"\"),\"Y\",\"N\")))","v":""},{"$f":"IF($B259=\"N\",\"\",IF(OR('Enrollment Form'!$B266<>\"Subscriber\",'Enrollment Form'!$C266=\"ROC\"),\"-\",IF(AND('Enrollment Form'!$B266=\"Subscriber\",'Enrollment Form'!$C266=\"Enroll\",'Enrollment Form'!$AN266<>\"\"),\"Y\",\"N\")))","v":""},{"$f":"IF($B259=\"N\",\"\",IF(OR('Enrollment Form'!$B266<>\"Subscriber\",'Enrollment Form'!$C266=\"ROC\"),\"-\",IF(AND('Enrollment Form'!$B266=\"Subscriber\",'Enrollment Form'!$C266=\"Enroll\",'Enrollment Form'!$AP266<>\"\"),\"Y\",\"N\")))","v":""},{"$f":"IF($B259=\"N\",\"\",IF($Q259=\"-\",\"-\",IF(AND($Q259=\"Y\",'Enrollment Form'!$AP266=\"No\"),\"-\",IF(AND($Q259=\"Y\",'Enrollment Form'!$AP266=\"Yes\",'Enrollment Form'!$AQ266<>\"\"),\"Y\",\"N\"))))","v":""},{"$f":"IF($B259=\"N\",\"\",IF(OR('Enrollment Form'!$B266<>\"Subscriber\",'Enrollment Form'!$C266=\"ROC\"),\"-\",IF(AND('Enrollment Form'!$B266=\"Subscriber\",'Enrollment Form'!$C266=\"Enroll\",'Enrollment Form'!$CO266<>\"\"),\"Y\",\"N\")))","v":""},{"$f":"IF($B259=\"N\",\"\",IF($S259=\"-\",\"-\",IF(AND($S259=\"Y\",'Enrollment Form'!$CO266=\"No\"),\"-\",IF(AND($S259=\"Y\",'Enrollment Form'!$CO266=\"Yes\",'Enrollment Form'!$CP266<>\"\"),\"Y\",\"N\"))))","v":""},{"$f":"IF(OR('Enrollment Form'!$AV266=\"Yes\",'Enrollment Form'!$AV266=\"\"),\"-\",IF(AND('Enrollment Form'!$AV266=\"No\",ISERROR(FIND(\"HMO\",VLOOKUP('Enrollment Form'!G266,'Enrollment Form'!H$11:J$1000,3,FALSE),1))=FALSE,COUNTA('Enrollment Form'!$AW266:$AZ266)=4),\"Y\",\"N\"))","v":"-"},{"$f":"IF($B259=\"N\",\"\",IF('Enrollment Form'!$B266=\"Subscriber\",\"-\",IF(COUNTA('Enrollment Form'!$BE266,'Enrollment Form'!$BG266)=2,\"Y\",\"N\")))","v":""},{"$f":"IF($B259=\"N\",\"\",IF(OR('Enrollment Form'!$AU266=\"\",'Enrollment Form'!$AU266=\"No\"),\"-\",IF(AND('Enrollment Form'!$AU266=\"Yes\",COUNTA('Enrollment Form'!$CK266)=1),\"Y\",\"N\")))","v":""},{"$f":"IF(OR('Enrollment Form'!$CK266=\"\",'Enrollment Form'!$CK266=\"No\"),\"-\",IF(COUNTA('Enrollment Form'!$CM266:$CN266)=2,\"Y\",\"N\"))","v":"-"},{"$f":"IF($B259=\"N\",\"\",IF(COUNTIF('Enrollment Form'!$CZ266:$DO266,\"Other\")=COUNTA('Enrollment Form'!$DF266,'Enrollment Form'!$DA266,'Enrollment Form'!$DK266,'Enrollment Form'!$DP266),\"Y\",\"N\"))","v":""},{"$f":"IF($B259=\"N\",\"\",IF(OR('Enrollment Form'!B266<>\"Subscriber\",'Enrollment Form'!C266=\"ROC\",COUNTIF('Enrollment Form'!AS266:AT266,\"Yes\")>=1),\"-\",IF(AND('Enrollment Form'!C266=\"Enroll\",COUNTIF('Enrollment Form'!AS266:AT266,\"No\")=2,'Enrollment Form'!AU266=\"\"),\"N\",\"Y\")))","v":""},{"$f":"IF(OR(B259=\"N\",'Enrollment Form'!B266<>\"Subscriber\",'Enrollment Form'!C266=\"ROC\",'Enrollment Form'!O266<>\"Multiple of Salary\"),\"-\",IF(COUNTA('Enrollment Form'!T266:U266)<2,\"N\",\"Y\"))","v":"-"},{"$f":"IF(B259=\"N\",\"\",IF(OR('Enrollment Form'!C266=\"ROC\",'Enrollment Form'!B266<>\"Subscriber\",'Enrollment Form'!O266=\"Waive\",'Enrollment Form'!O266=\"\"),\"-\",IF('Enrollment Form'!P266=\"\",\"N\",\"Y\")))","v":""},{"$f":"IF($B259=\"N\",\"\",IF(AND('Enrollment Form'!$C266=\"ROC\",'Enrollment Form'!$DS266<>\"\"),\"Y\",IF(AND('Enrollment Form'!$C266=\"ROC\",'Enrollment Form'!$DS266=\"\"),\"N\",IF(AND('Enrollment Form'!$C266=\"Enroll\",'Enrollment Form'!$B266=\"Subscriber\",'Enrollment Form'!$CQ266=\"No\",'Enrollment Form'!$DS266=\"\"),\"N\",IF(AND('Enrollment Form'!$C266=\"Enroll\",'Enrollment Form'!$B266=\"Subscriber\",'Enrollment Form'!$CQ266=\"Yes\"),\"-\",\"Y\")))))","v":""},{"$f":"IF($B259=\"N\",\"\",IF(AND('Enrollment Form'!$C266=\"ROC\",'Enrollment Form'!$DT266<>\"\"),\"Y\",IF(AND('Enrollment Form'!$C266=\"ROC\",'Enrollment Form'!$DT266=\"\"),\"N\",IF(AND('Enrollment Form'!$C266=\"Enroll\",'Enrollment Form'!$B266=\"Subscriber\",'Enrollment Form'!$CQ266=\"No\",'Enrollment Form'!$DT266=\"\"),\"N\",IF(AND('Enrollment Form'!$C266=\"Enroll\",'Enrollment Form'!$B266=\"Subscriber\",'Enrollment Form'!$CQ266=\"Yes\"),\"-\",\"Y\")))))","v":""},{"$f":"IF('Enrollment Form'!AH266=\"\",\"\",IF(ISERROR(SEARCH(\".\",'Enrollment Form'!AH266,SEARCH(\"@\",'Enrollment Form'!AH266))),\"N\",\"Y\"))","v":""},{"$f":"IF(OR($B259=\"N\",'Enrollment Form'!$G266=\"\"),\"\",IF('Enrollment Form'!$B266<>\"Subscriber\",\"-\",IF(COUNTIF('Enrollment Form'!$AS266:$AT266,\"Yes\")=2,\"N\",\"Y\")))","v":""},{"$f":"IF(OR('Enrollment Form'!$CC266=\"\",'Enrollment Form'!$CC266=\"No\"),\"-\",IF(AND('Enrollment Form'!$CC266=\"Yes\",'Enrollment Form'!$CD266=\"\"),\"N\",\"Y\"))","v":"-"},{"$f":"IF(OR('Enrollment Form'!$CE266=\"\",'Enrollment Form'!$CE266=\"No\"),\"-\",IF(AND('Enrollment Form'!$CE266=\"Yes\",'Enrollment Form'!$CF266=\"\"),\"N\",\"Y\"))","v":"-"},{"$f":"IF(OR('Enrollment Form'!$CG266=\"\",'Enrollment Form'!$CG266=\"No\"),\"-\",IF(AND('Enrollment Form'!$CG266=\"Yes\",'Enrollment Form'!$CH266=\"\"),\"N\",\"Y\"))","v":"-"},{"$f":"IF(OR('Enrollment Form'!$CG266=\"\",'Enrollment Form'!$CG266=\"No\"),\"-\",IF(AND('Enrollment Form'!$CG266=\"Yes\",'Enrollment Form'!$CI266=\"\"),\"N\",\"Y\"))","v":"-"},{"$f":"IF('Enrollment Form'!B266<>\"Subscriber\",\"-\",IF(AND('Enrollment Form'!B266=\"Subscriber\",'Enrollment Form'!C266=\"Enroll\",'Enrollment Form'!AA266=\"\"),\"N\",\"Y\"))","v":"-"},{"$f":"IF(OR('Enrollment Form'!B266=\"Subscriber\",'Enrollment Form'!B266=\"\"),\"-\",IF('Enrollment Form'!BI266=\"\",\"N\",\"Y\"))","v":"-"},{"$f":"IF('Enrollment Form'!B266<>\"Subscriber\",\"-\",IF(AND('Enrollment Form'!B266=\"Subscriber\",'Enrollment Form'!G266=\"\"),\"N\",\"Y\"))","v":"-"},{"$f":"IF('Enrollment Form'!A266=\"\",\"\",IF('Enrollment Form'!B266=\"Subscriber\",\"-\",IF(AND('Enrollment Form'!B266<>\"Subscriber\",'Enrollment Form'!G266='Enrollment Form'!H266),\"N\",\"Y\")))","v":""},0]
[267,{"$f":"IF('Enrollment Form'!$A267<>\"\",\"Y\",\"N\")","v":"N"},{"$f":"IF(AND('Enrollment Form'!$B267=\"\",'Enrollment Form'!$C267<>\"\"),\"N\",IF($B260=\"N\",\"\",\"Y\"))","v":""},{"$f":"IF(OR($B260=\"N\",'Enrollment Form'!G267=\"\"),\"\",IF('Enrollment Form'!$B267<>\"Subscriber\",\"\",IF('Enrollment Form'!$G267='Enrollment Form'!$H267,\"Y\",\"N\")))","v":""},{"$f":"IF($B260=\"N\",\"\",IF(AND(COUNTIFS('Enrollment Form'!$H$11:$H$1000,'Enrollment Form'!$H267,'Enrollment Form'!$B$11:$B$1000,'Enrollment Form'!$B267)>1,'Enrollment Form'!$H267<>\"\"),\"N\",\"Y\"))","v":""},{"$f":"IF($B260=\"N\",\"\",IF(LEN('Enrollment Form'!$Y267)=0,\"\",IF(LEN('Enrollment Form'!$Y267)<>5,\"N\",\"Y\")))","v":""},{"$f":"IF($B260=\"N\",\"\",IF(LEN('Enrollment Form'!$AD267=0),\"\",IF(LEN('Enrollment Form'!$AD267)<>5,\"N\",\"Y\")))","v":""},{"$f":"IF($B260=\"N\",\"\",IF(LEN('Enrollment Form'!$BL267=0),\"\",IF(LEN('Enrollment Form'!$BL267)<>5,\"N\",\"Y\")))","v":""},{"$f":"IF($B260=\"N\",\"\",IF(LEN('Enrollment Form'!$AE267)=0,\"\",IF(LEN('Enrollment Form'!$AE267)<>10,\"N\",\"Y\")))","v":""},{"$f":"IF($B260=\"N\",\"\",IF(LEN('Enrollment Form'!$AF267)=0,\"\",IF(LEN('Enrollment Form'!$AF267)<>10,\"N\",\"Y\")))","v":""},{"$f":"IF('Enrollment Form'!$O267<>\"Graded\",\"-\",IF(AND('Enrollment Form'!$O267=\"Graded\",'Enrollment Form'!$AO267<>\"\"),\"Y\",\"N\"))","v":"-"},{"$f":"IF($B260=\"N\",\"\",IF(OR('Enrollment Form'!$B267<>\"Subscriber\",'Enrollment Form'!$C267=\"ROC\"),\"-\",IF(AND('Enrollment Form'!$B267=\"Subscriber\",'Enrollment Form'!$C267=\"Enroll\",'Enrollment Form'!$AJ267<>\"\"),\"Y\",\"N\")))","v":""},{"$f":"IF($B260=\"N\",\"\",IF(OR('Enrollment Form'!$B267<>\"Subscriber\",'Enrollment Form'!$C267=\"ROC\"),\"-\",IF(AND('Enrollment Form'!$B267=\"Subscriber\",'Enrollment Form'!$C267=\"Enroll\",'Enrollment Form'!$AK267<>\"\"),\"Y\",\"N\")))","v":""},{"$f":"IF($B260=\"N\",\"\",IF(OR('Enrollment Form'!$B267<>\"Subscriber\",'Enrollment Form'!$C267=\"ROC\"),\"-\",IF(AND('Enrollment Form'!$B267=\"Subscriber\",'Enrollment Form'!$C267=\"Enroll\",'Enrollment Form'!$AL267<>\"\"),\"Y\",\"N\")))","v":""},{"$f":"IF($B260=\"N\",\"\",IF(OR('Enrollment Form'!$B267<>\"Subscriber\",'Enrollment Form'!$C267=\"ROC\"),\"-\",IF(AND('Enrollment Form'!$B267=\"Subscriber\",'Enrollment Form'!$C267=\"Enroll\",'Enrollment Form'!$AM267<>\"\"),\"Y\",\"N\")))","v":""},{"$f":"IF($B260=\"N\",\"\",IF(OR('Enrollment Form'!$B267<>\"Subscriber\",'Enrollment Form'!$C267=\"ROC\"),\"-\",IF(AND('Enrollment Form'!$B267=\"Subscriber\",'Enrollment Form'!$C267=\"Enroll\",'Enrollment Form'!$AN267<>\"\"),\"Y\",\"N\")))","v":""},{"$f":"IF($B260=\"N\",\"\",IF(OR('Enrollment Form'!$B267<>\"Subscriber\",'Enrollment Form'!$C267=\"ROC\"),\"-\",IF(AND('Enrollment Form'!$B267=\"Subscriber\",'Enrollment Form'!$C267=\"Enroll\",'Enrollment Form'!$AP267<>\"\"),\"Y\",\"N\")))","v":""},{"$f":"IF($B260=\"N\",\"\",IF($Q260=\"-\",\"-\",IF(AND($Q260=\"Y\",'Enrollment Form'!$AP267=\"No\"),\"-\",IF(AND($Q260=\"Y\",'Enrollment Form'!$AP267=\"Yes\",'Enrollment Form'!$AQ267<>\"\"),\"Y\",\"N\"))))","v":""},{"$f":"IF($B260=\"N\",\"\",IF(OR('Enrollment Form'!$B267<>\"Subscriber\",'Enrollment Form'!$C267=\"ROC\"),\"-\",IF(AND('Enrollment Form'!$B267=\"Subscriber\",'Enrollment Form'!$C267=\"Enroll\",'Enrollment Form'!$CO267<>\"\"),\"Y\",\"N\")))","v":""},{"$f":"IF($B260=\"N\",\"\",IF($S260=\"-\",\"-\",IF(AND($S260=\"Y\",'Enrollment Form'!$CO267=\"No\"),\"-\",IF(AND($S260=\"Y\",'Enrollment Form'!$CO267=\"Yes\",'Enrollment Form'!$CP267<>\"\"),\"Y\",\"N\"))))","v":""},{"$f":"IF(OR('Enrollment Form'!$AV267=\"Yes\",'Enrollment Form'!$AV267=\"\"),\"-\",IF(AND('Enrollment Form'!$AV267=\"No\",ISERROR(FIND(\"HMO\",VLOOKUP('Enrollment Form'!G267,'Enrollment Form'!H$11:J$1000,3,FALSE),1))=FALSE,COUNTA('Enrollment Form'!$AW267:$AZ267)=4),\"Y\",\"N\"))","v":"-"},{"$f":"IF($B260=\"N\",\"\",IF('Enrollment Form'!$B267=\"Subscriber\",\"-\",IF(COUNTA('Enrollment Form'!$BE267,'Enrollment Form'!$BG267)=2,\"Y\",\"N\")))","v":""},{"$f":"IF($B260=\"N\",\"\",IF(OR('Enrollment Form'!$AU267=\"\",'Enrollment Form'!$AU267=\"No\"),\"-\",IF(AND('Enrollment Form'!$AU267=\"Yes\",COUNTA('Enrollment Form'!$CK267)=1),\"Y\",\"N\")))","v":""},{"$f":"IF(OR('Enrollment Form'!$CK267=\"\",'Enrollment Form'!$CK267=\"No\"),\"-\",IF(COUNTA('Enrollment Form'!$CM267:$CN267)=2,\"Y\",\"N\"))","v":"-"},{"$f":"IF($B260=\"N\",\"\",IF(COUNTIF('Enrollment Form'!$CZ267:$DO267,\"Other\")=COUNTA('Enrollment Form'!$DF267,'Enrollment Form'!$DA267,'Enrollment Form'!$DK267,'Enrollment Form'!$DP267),\"Y\",\"N\"))","v":""},{"$f":"IF($B260=\"N\",\"\",IF(OR('Enrollment Form'!B267<>\"Subscriber\",'Enrollment Form'!C267=\"ROC\",COUNTIF('Enrollment Form'!AS267:AT267,\"Yes\")>=1),\"-\",IF(AND('Enrollment Form'!C267=\"Enroll\",COUNTIF('Enrollment Form'!AS267:AT267,\"No\")=2,'Enrollment Form'!AU267=\"\"),\"N\",\"Y\")))","v":""},{"$f":"IF(OR(B260=\"N\",'Enrollment Form'!B267<>\"Subscriber\",'Enrollment Form'!C267=\"ROC\",'Enrollment Form'!O267<>\"Multiple of Salary\"),\"-\",IF(COUNTA('Enrollment Form'!T267:U267)<2,\"N\",\"Y\"))","v":"-"},{"$f":"IF(B260=\"N\",\"\",IF(OR('Enrollment Form'!C267=\"ROC\",'Enrollment Form'!B267<>\"Subscriber\",'Enrollment Form'!O267=\"Waive\",'Enrollment Form'!O267=\"\"),\"-\",IF('Enrollment Form'!P267=\"\",\"N\",\"Y\")))","v":""},{"$f":"IF($B260=\"N\",\"\",IF(AND('Enrollment Form'!$C267=\"ROC\",'Enrollment Form'!$DS267<>\"\"),\"Y\",IF(AND('Enrollment Form'!$C267=\"ROC\",'Enrollment Form'!$DS267=\"\"),\"N\",IF(AND('Enrollment Form'!$C267=\"Enroll\",'Enrollment Form'!$B267=\"Subscriber\",'Enrollment Form'!$CQ267=\"No\",'Enrollment Form'!$DS267=\"\"),\"N\",IF(AND('Enrollment Form'!$C267=\"Enroll\",'Enrollment Form'!$B267=\"Subscriber\",'Enrollment Form'!$CQ267=\"Yes\"),\"-\",\"Y\")))))","v":""},{"$f":"IF($B260=\"N\",\"\",IF(AND('Enrollment Form'!$C267=\"ROC\",'Enrollment Form'!$DT267<>\"\"),\"Y\",IF(AND('Enrollment Form'!$C267=\"ROC\",'Enrollment Form'!$DT267=\"\"),\"N\",IF(AND('Enrollment Form'!$C267=\"Enroll\",'Enrollment Form'!$B267=\"Subscriber\",'Enrollment Form'!$CQ267=\"No\",'Enrollment Form'!$DT267=\"\"),\"N\",IF(AND('Enrollment Form'!$C267=\"Enroll\",'Enrollment Form'!$B267=\"Subscriber\",'Enrollment Form'!$CQ267=\"Yes\"),\"-\",\"Y\")))))","v":""},{"$f":"IF('Enrollment Form'!AH267=\"\",\"\",IF(ISERROR(SEARCH(\".\",'Enrollment Form'!AH267,SEARCH(\"@\",'Enrollment Form'!AH267))),\"N\",\"Y\"))","v":""},{"$f":"IF(OR($B260=\"N\",'Enrollment Form'!$G267=\"\"),\"\",IF('Enrollment Form'!$B267<>\"Subscriber\",\"-\",IF(COUNTIF('Enrollment Form'!$AS267:$AT267,\"Yes\")=2,\"N\",\"Y\")))","v":""},{"$f":"IF(OR('Enrollment Form'!$CC267=\"\",'Enrollment Form'!$CC267=\"No\"),\"-\",IF(AND('Enrollment Form'!$CC267=\"Yes\",'Enrollment Form'!$CD267=\"\"),\"N\",\"Y\"))","v":"-"},{"$f":"IF(OR('Enrollment Form'!$CE267=\"\",'Enrollment Form'!$CE267=\"No\"),\"-\",IF(AND('Enrollment Form'!$CE267=\"Yes\",'Enrollment Form'!$CF267=\"\"),\"N\",\"Y\"))","v":"-"},{"$f":"IF(OR('Enrollment Form'!$CG267=\"\",'Enrollment Form'!$CG267=\"No\"),\"-\",IF(AND('Enrollment Form'!$CG267=\"Yes\",'Enrollment Form'!$CH267=\"\"),\"N\",\"Y\"))","v":"-"},{"$f":"IF(OR('Enrollment Form'!$CG267=\"\",'Enrollment Form'!$CG267=\"No\"),\"-\",IF(AND('Enrollment Form'!$CG267=\"Yes\",'Enrollment Form'!$CI267=\"\"),\"N\",\"Y\"))","v":"-"},{"$f":"IF('Enrollment Form'!B267<>\"Subscriber\",\"-\",IF(AND('Enrollment Form'!B267=\"Subscriber\",'Enrollment Form'!C267=\"Enroll\",'Enrollment Form'!AA267=\"\"),\"N\",\"Y\"))","v":"-"},{"$f":"IF(OR('Enrollment Form'!B267=\"Subscriber\",'Enrollment Form'!B267=\"\"),\"-\",IF('Enrollment Form'!BI267=\"\",\"N\",\"Y\"))","v":"-"},{"$f":"IF('Enrollment Form'!B267<>\"Subscriber\",\"-\",IF(AND('Enrollment Form'!B267=\"Subscriber\",'Enrollment Form'!G267=\"\"),\"N\",\"Y\"))","v":"-"},{"$f":"IF('Enrollment Form'!A267=\"\",\"\",IF('Enrollment Form'!B267=\"Subscriber\",\"-\",IF(AND('Enrollment Form'!B267<>\"Subscriber\",'Enrollment Form'!G267='Enrollment Form'!H267),\"N\",\"Y\")))","v":""},{"$f":"COUNTIF(C260:AN260,\"N\")","v":0}]
[268,{"$f":"IF('Enrollment Form'!$A268<>\"\",\"Y\",\"N\")","v":"N"},{"$f":"IF(AND('Enrollment Form'!$B268=\"\",'Enrollment Form'!$C268<>\"\"),\"N\",IF($B261=\"N\",\"\",\"Y\"))","v":""},{"$f":"IF(OR($B261=\"N\",'Enrollment Form'!G268=\"\"),\"\",IF('Enrollment Form'!$B268<>\"Subscriber\",\"\",IF('Enrollment Form'!$G268='Enrollment Form'!$H268,\"Y\",\"N\")))","v":""},{"$f":"IF($B261=\"N\",\"\",IF(AND(COUNTIFS('Enrollment Form'!$H$11:$H$1000,'Enrollment Form'!$H268,'Enrollment Form'!$B$11:$B$1000,'Enrollment Form'!$B268)>1,'Enrollment Form'!$H268<>\"\"),\"N\",\"Y\"))","v":""},{"$f":"IF($B261=\"N\",\"\",IF(LEN('Enrollment Form'!$Y268)=0,\"\",IF(LEN('Enrollment Form'!$Y268)<>5,\"N\",\"Y\")))","v":""},{"$f":"IF($B261=\"N\",\"\",IF(LEN('Enrollment Form'!$AD268=0),\"\",IF(LEN('Enrollment Form'!$AD268)<>5,\"N\",\"Y\")))","v":""},{"$f":"IF($B261=\"N\",\"\",IF(LEN('Enrollment Form'!$BL268=0),\"\",IF(LEN('Enrollment Form'!$BL268)<>5,\"N\",\"Y\")))","v":""},{"$f":"IF($B261=\"N\",\"\",IF(LEN('Enrollment Form'!$AE268)=0,\"\",IF(LEN('Enrollment Form'!$AE268)<>10,\"N\",\"Y\")))","v":""},{"$f":"IF($B261=\"N\",\"\",IF(LEN('Enrollment Form'!$AF268)=0,\"\",IF(LEN('Enrollment Form'!$AF268)<>10,\"N\",\"Y\")))","v":""},{"$f":"IF('Enrollment Form'!$O268<>\"Graded\",\"-\",IF(AND('Enrollment Form'!$O268=\"Graded\",'Enrollment Form'!$AO268<>\"\"),\"Y\",\"N\"))","v":"-"},{"$f":"IF($B261=\"N\",\"\",IF(OR('Enrollment Form'!$B268<>\"Subscriber\",'Enrollment Form'!$C268=\"ROC\"),\"-\",IF(AND('Enrollment Form'!$B268=\"Subscriber\",'Enrollment Form'!$C268=\"Enroll\",'Enrollment Form'!$AJ268<>\"\"),\"Y\",\"N\")))","v":""},{"$f":"IF($B261=\"N\",\"\",IF(OR('Enrollment Form'!$B268<>\"Subscriber\",'Enrollment Form'!$C268=\"ROC\"),\"-\",IF(AND('Enrollment Form'!$B268=\"Subscriber\",'Enrollment Form'!$C268=\"Enroll\",'Enrollment Form'!$AK268<>\"\"),\"Y\",\"N\")))","v":""},{"$f":"IF($B261=\"N\",\"\",IF(OR('Enrollment Form'!$B268<>\"Subscriber\",'Enrollment Form'!$C268=\"ROC\"),\"-\",IF(AND('Enrollment Form'!$B268=\"Subscriber\",'Enrollment Form'!$C268=\"Enroll\",'Enrollment Form'!$AL268<>\"\"),\"Y\",\"N\")))","v":""},{"$f":"IF($B261=\"N\",\"\",IF(OR('Enrollment Form'!$B268<>\"Subscriber\",'Enrollment Form'!$C268=\"ROC\"),\"-\",IF(AND('Enrollment Form'!$B268=\"Subscriber\",'Enrollment Form'!$C268=\"Enroll\",'Enrollment Form'!$AM268<>\"\"),\"Y\",\"N\")))","v":""},{"$f":"IF($B261=\"N\",\"\",IF(OR('Enrollment Form'!$B268<>\"Subscriber\",'Enrollment Form'!$C268=\"ROC\"),\"-\",IF(AND('Enrollment Form'!$B268=\"Subscriber\",'Enrollment Form'!$C268=\"Enroll\",'Enrollment Form'!$AN268<>\"\"),\"Y\",\"N\")))","v":""},{"$f":"IF($B261=\"N\",\"\",IF(OR('Enrollment Form'!$B268<>\"Subscriber\",'Enrollment Form'!$C268=\"ROC\"),\"-\",IF(AND('Enrollment Form'!$B268=\"Subscriber\",'Enrollment Form'!$C268=\"Enroll\",'Enrollment Form'!$AP268<>\"\"),\"Y\",\"N\")))","v":""},{"$f":"IF($B261=\"N\",\"\",IF($Q261=\"-\",\"-\",IF(AND($Q261=\"Y\",'Enrollment Form'!$AP268=\"No\"),\"-\",IF(AND($Q261=\"Y\",'Enrollment Form'!$AP268=\"Yes\",'Enrollment Form'!$AQ268<>\"\"),\"Y\",\"N\"))))","v":""},{"$f":"IF($B261=\"N\",\"\",IF(OR('Enrollment Form'!$B268<>\"Subscriber\",'Enrollment Form'!$C268=\"ROC\"),\"-\",IF(AND('Enrollment Form'!$B268=\"Subscriber\",'Enrollment Form'!$C268=\"Enroll\",'Enrollment Form'!$CO268<>\"\"),\"Y\",\"N\")))","v":""},{"$f":"IF($B261=\"N\",\"\",IF($S261=\"-\",\"-\",IF(AND($S261=\"Y\",'Enrollment Form'!$CO268=\"No\"),\"-\",IF(AND($S261=\"Y\",'Enrollment Form'!$CO268=\"Yes\",'Enrollment Form'!$CP268<>\"\"),\"Y\",\"N\"))))","v":""},{"$f":"IF(OR('Enrollment Form'!$AV268=\"Yes\",'Enrollment Form'!$AV268=\"\"),\"-\",IF(AND('Enrollment Form'!$AV268=\"No\",ISERROR(FIND(\"HMO\",VLOOKUP('Enrollment Form'!G268,'Enrollment Form'!H$11:J$1000,3,FALSE),1))=FALSE,COUNTA('Enrollment Form'!$AW268:$AZ268)=4),\"Y\",\"N\"))","v":"-"},{"$f":"IF($B261=\"N\",\"\",IF('Enrollment Form'!$B268=\"Subscriber\",\"-\",IF(COUNTA('Enrollment Form'!$BE268,'Enrollment Form'!$BG268)=2,\"Y\",\"N\")))","v":""},{"$f":"IF($B261=\"N\",\"\",IF(OR('Enrollment Form'!$AU268=\"\",'Enrollment Form'!$AU268=\"No\"),\"-\",IF(AND('Enrollment Form'!$AU268=\"Yes\",COUNTA('Enrollment Form'!$CK268)=1),\"Y\",\"N\")))","v":""},{"$f":"IF(OR('Enrollment Form'!$CK268=\"\",'Enrollment Form'!$CK268=\"No\"),\"-\",IF(COUNTA('Enrollment Form'!$CM268:$CN268)=2,\"Y\",\"N\"))","v":"-"},{"$f":"IF($B261=\"N\",\"\",IF(COUNTIF('Enrollment Form'!$CZ268:$DO268,\"Other\")=COUNTA('Enrollment Form'!$DF268,'Enrollment Form'!$DA268,'Enrollment Form'!$DK268,'Enrollment Form'!$DP268),\"Y\",\"N\"))","v":""},{"$f":"IF($B261=\"N\",\"\",IF(OR('Enrollment Form'!B268<>\"Subscriber\",'Enrollment Form'!C268=\"ROC\",COUNTIF('Enrollment Form'!AS268:AT268,\"Yes\")>=1),\"-\",IF(AND('Enrollment Form'!C268=\"Enroll\",COUNTIF('Enrollment Form'!AS268:AT268,\"No\")=2,'Enrollment Form'!AU268=\"\"),\"N\",\"Y\")))","v":""},{"$f":"IF(OR(B261=\"N\",'Enrollment Form'!B268<>\"Subscriber\",'Enrollment Form'!C268=\"ROC\",'Enrollment Form'!O268<>\"Multiple of Salary\"),\"-\",IF(COUNTA('Enrollment Form'!T268:U268)<2,\"N\",\"Y\"))","v":"-"},{"$f":"IF(B261=\"N\",\"\",IF(OR('Enrollment Form'!C268=\"ROC\",'Enrollment Form'!B268<>\"Subscriber\",'Enrollment Form'!O268=\"Waive\",'Enrollment Form'!O268=\"\"),\"-\",IF('Enrollment Form'!P268=\"\",\"N\",\"Y\")))","v":""},{"$f":"IF($B261=\"N\",\"\",IF(AND('Enrollment Form'!$C268=\"ROC\",'Enrollment Form'!$DS268<>\"\"),\"Y\",IF(AND('Enrollment Form'!$C268=\"ROC\",'Enrollment Form'!$DS268=\"\"),\"N\",IF(AND('Enrollment Form'!$C268=\"Enroll\",'Enrollment Form'!$B268=\"Subscriber\",'Enrollment Form'!$CQ268=\"No\",'Enrollment Form'!$DS268=\"\"),\"N\",IF(AND('Enrollment Form'!$C268=\"Enroll\",'Enrollment Form'!$B268=\"Subscriber\",'Enrollment Form'!$CQ268=\"Yes\"),\"-\",\"Y\")))))","v":""},{"$f":"IF($B261=\"N\",\"\",IF(AND('Enrollment Form'!$C268=\"ROC\",'Enrollment Form'!$DT268<>\"\"),\"Y\",IF(AND('Enrollment Form'!$C268=\"ROC\",'Enrollment Form'!$DT268=\"\"),\"N\",IF(AND('Enrollment Form'!$C268=\"Enroll\",'Enrollment Form'!$B268=\"Subscriber\",'Enrollment Form'!$CQ268=\"No\",'Enrollment Form'!$DT268=\"\"),\"N\",IF(AND('Enrollment Form'!$C268=\"Enroll\",'Enrollment Form'!$B268=\"Subscriber\",'Enrollment Form'!$CQ268=\"Yes\"),\"-\",\"Y\")))))","v":""},{"$f":"IF('Enrollment Form'!AH268=\"\",\"\",IF(ISERROR(SEARCH(\".\",'Enrollment Form'!AH268,SEARCH(\"@\",'Enrollment Form'!AH268))),\"N\",\"Y\"))","v":""},{"$f":"IF(OR($B261=\"N\",'Enrollment Form'!$G268=\"\"),\"\",IF('Enrollment Form'!$B268<>\"Subscriber\",\"-\",IF(COUNTIF('Enrollment Form'!$AS268:$AT268,\"Yes\")=2,\"N\",\"Y\")))","v":""},{"$f":"IF(OR('Enrollment Form'!$CC268=\"\",'Enrollment Form'!$CC268=\"No\"),\"-\",IF(AND('Enrollment Form'!$CC268=\"Yes\",'Enrollment Form'!$CD268=\"\"),\"N\",\"Y\"))","v":"-"},{"$f":"IF(OR('Enrollment Form'!$CE268=\"\",'Enrollment Form'!$CE268=\"No\"),\"-\",IF(AND('Enrollment Form'!$CE268=\"Yes\",'Enrollment Form'!$CF268=\"\"),\"N\",\"Y\"))","v":"-"},{"$f":"IF(OR('Enrollment Form'!$CG268=\"\",'Enrollment Form'!$CG268=\"No\"),\"-\",IF(AND('Enrollment Form'!$CG268=\"Yes\",'Enrollment Form'!$CH268=\"\"),\"N\",\"Y\"))","v":"-"},{"$f":"IF(OR('Enrollment Form'!$CG268=\"\",'Enrollment Form'!$CG268=\"No\"),\"-\",IF(AND('Enrollment Form'!$CG268=\"Yes\",'Enrollment Form'!$CI268=\"\"),\"N\",\"Y\"))","v":"-"},{"$f":"IF('Enrollment Form'!B268<>\"Subscriber\",\"-\",IF(AND('Enrollment Form'!B268=\"Subscriber\",'Enrollment Form'!C268=\"Enroll\",'Enrollment Form'!AA268=\"\"),\"N\",\"Y\"))","v":"-"},{"$f":"IF(OR('Enrollment Form'!B268=\"Subscriber\",'Enrollment Form'!B268=\"\"),\"-\",IF('Enrollment Form'!BI268=\"\",\"N\",\"Y\"))","v":"-"},{"$f":"IF('Enrollment Form'!B268<>\"Subscriber\",\"-\",IF(AND('Enrollment Form'!B268=\"Subscriber\",'Enrollment Form'!G268=\"\"),\"N\",\"Y\"))","v":"-"},{"$f":"IF('Enrollment Form'!A268=\"\",\"\",IF('Enrollment Form'!B268=\"Subscriber\",\"-\",IF(AND('Enrollment Form'!B268<>\"Subscriber\",'Enrollment Form'!G268='Enrollment Form'!H268),\"N\",\"Y\")))","v":""},0]
[{"$f":"1+A261","v":269},{"$f":"IF('Enrollment Form'!$A269<>\"\",\"Y\",\"N\")","v":"N"},{"$f":"IF(AND('Enrollment Form'!$B269=\"\",'Enrollment Form'!$C269<>\"\"),\"N\",IF($B262=\"N\",\"\",\"Y\"))","v":""},{"$f":"IF(OR($B262=\"N\",'Enrollment Form'!G269=\"\"),\"\",IF('Enrollment Form'!$B269<>\"Subscriber\",\"\",IF('Enrollment Form'!$G269='Enrollment Form'!$H269,\"Y\",\"N\")))","v":""},{"$f":"IF($B262=\"N\",\"\",IF(AND(COUNTIFS('Enrollment Form'!$H$11:$H$1000,'Enrollment Form'!$H269,'Enrollment Form'!$B$11:$B$1000,'Enrollment Form'!$B269)>1,'Enrollment Form'!$H269<>\"\"),\"N\",\"Y\"))","v":""},{"$f":"IF($B262=\"N\",\"\",IF(LEN('Enrollment Form'!$Y269)=0,\"\",IF(LEN('Enrollment Form'!$Y269)<>5,\"N\",\"Y\")))","v":""},{"$f":"IF($B262=\"N\",\"\",IF(LEN('Enrollment Form'!$AD269=0),\"\",IF(LEN('Enrollment Form'!$AD269)<>5,\"N\",\"Y\")))","v":""},{"$f":"IF($B262=\"N\",\"\",IF(LEN('Enrollment Form'!$BL269=0),\"\",IF(LEN('Enrollment Form'!$BL269)<>5,\"N\",\"Y\")))","v":""},{"$f":"IF($B262=\"N\",\"\",IF(LEN('Enrollment Form'!$AE269)=0,\"\",IF(LEN('Enrollment Form'!$AE269)<>10,\"N\",\"Y\")))","v":""},{"$f":"IF($B262=\"N\",\"\",IF(LEN('Enrollment Form'!$AF269)=0,\"\",IF(LEN('Enrollment Form'!$AF269)<>10,\"N\",\"Y\")))","v":""},{"$f":"IF('Enrollment Form'!$O269<>\"Graded\",\"-\",IF(AND('Enrollment Form'!$O269=\"Graded\",'Enrollment Form'!$AO269<>\"\"),\"Y\",\"N\"))","v":"-"},{"$f":"IF($B262=\"N\",\"\",IF(OR('Enrollment Form'!$B269<>\"Subscriber\",'Enrollment Form'!$C269=\"ROC\"),\"-\",IF(AND('Enrollment Form'!$B269=\"Subscriber\",'Enrollment Form'!$C269=\"Enroll\",'Enrollment Form'!$AJ269<>\"\"),\"Y\",\"N\")))","v":""},{"$f":"IF($B262=\"N\",\"\",IF(OR('Enrollment Form'!$B269<>\"Subscriber\",'Enrollment Form'!$C269=\"ROC\"),\"-\",IF(AND('Enrollment Form'!$B269=\"Subscriber\",'Enrollment Form'!$C269=\"Enroll\",'Enrollment Form'!$AK269<>\"\"),\"Y\",\"N\")))","v":""},{"$f":"IF($B262=\"N\",\"\",IF(OR('Enrollment Form'!$B269<>\"Subscriber\",'Enrollment Form'!$C269=\"ROC\"),\"-\",IF(AND('Enrollment Form'!$B269=\"Subscriber\",'Enrollment Form'!$C269=\"Enroll\",'Enrollment Form'!$AL269<>\"\"),\"Y\",\"N\")))","v":""},{"$f":"IF($B262=\"N\",\"\",IF(OR('Enrollment Form'!$B269<>\"Subscriber\",'Enrollment Form'!$C269=\"ROC\"),\"-\",IF(AND('Enrollment Form'!$B269=\"Subscriber\",'Enrollment Form'!$C269=\"Enroll\",'Enrollment Form'!$AM269<>\"\"),\"Y\",\"N\")))","v":""},{"$f":"IF($B262=\"N\",\"\",IF(OR('Enrollment Form'!$B269<>\"Subscriber\",'Enrollment Form'!$C269=\"ROC\"),\"-\",IF(AND('Enrollment Form'!$B269=\"Subscriber\",'Enrollment Form'!$C269=\"Enroll\",'Enrollment Form'!$AN269<>\"\"),\"Y\",\"N\")))","v":""},{"$f":"IF($B262=\"N\",\"\",IF(OR('Enrollment Form'!$B269<>\"Subscriber\",'Enrollment Form'!$C269=\"ROC\"),\"-\",IF(AND('Enrollment Form'!$B269=\"Subscriber\",'Enrollment Form'!$C269=\"Enroll\",'Enrollment Form'!$AP269<>\"\"),\"Y\",\"N\")))","v":""},{"$f":"IF($B262=\"N\",\"\",IF($Q262=\"-\",\"-\",IF(AND($Q262=\"Y\",'Enrollment Form'!$AP269=\"No\"),\"-\",IF(AND($Q262=\"Y\",'Enrollment Form'!$AP269=\"Yes\",'Enrollment Form'!$AQ269<>\"\"),\"Y\",\"N\"))))","v":""},{"$f":"IF($B262=\"N\",\"\",IF(OR('Enrollment Form'!$B269<>\"Subscriber\",'Enrollment Form'!$C269=\"ROC\"),\"-\",IF(AND('Enrollment Form'!$B269=\"Subscriber\",'Enrollment Form'!$C269=\"Enroll\",'Enrollment Form'!$CO269<>\"\"),\"Y\",\"N\")))","v":""},{"$f":"IF($B262=\"N\",\"\",IF($S262=\"-\",\"-\",IF(AND($S262=\"Y\",'Enrollment Form'!$CO269=\"No\"),\"-\",IF(AND($S262=\"Y\",'Enrollment Form'!$CO269=\"Yes\",'Enrollment Form'!$CP269<>\"\"),\"Y\",\"N\"))))","v":""},{"$f":"IF(OR('Enrollment Form'!$AV269=\"Yes\",'Enrollment Form'!$AV269=\"\"),\"-\",IF(AND('Enrollment Form'!$AV269=\"No\",ISERROR(FIND(\"HMO\",VLOOKUP('Enrollment Form'!G269,'Enrollment Form'!H$11:J$1000,3,FALSE),1))=FALSE,COUNTA('Enrollment Form'!$AW269:$AZ269)=4),\"Y\",\"N\"))","v":"-"},{"$f":"IF($B262=\"N\",\"\",IF('Enrollment Form'!$B269=\"Subscriber\",\"-\",IF(COUNTA('Enrollment Form'!$BE269,'Enrollment Form'!$BG269)=2,\"Y\",\"N\")))","v":""},{"$f":"IF($B262=\"N\",\"\",IF(OR('Enrollment Form'!$AU269=\"\",'Enrollment Form'!$AU269=\"No\"),\"-\",IF(AND('Enrollment Form'!$AU269=\"Yes\",COUNTA('Enrollment Form'!$CK269)=1),\"Y\",\"N\")))","v":""},{"$f":"IF(OR('Enrollment Form'!$CK269=\"\",'Enrollment Form'!$CK269=\"No\"),\"-\",IF(COUNTA('Enrollment Form'!$CM269:$CN269)=2,\"Y\",\"N\"))","v":"-"},{"$f":"IF($B262=\"N\",\"\",IF(COUNTIF('Enrollment Form'!$CZ269:$DO269,\"Other\")=COUNTA('Enrollment Form'!$DF269,'Enrollment Form'!$DA269,'Enrollment Form'!$DK269,'Enrollment Form'!$DP269),\"Y\",\"N\"))","v":""},{"$f":"IF($B262=\"N\",\"\",IF(OR('Enrollment Form'!B269<>\"Subscriber\",'Enrollment Form'!C269=\"ROC\",COUNTIF('Enrollment Form'!AS269:AT269,\"Yes\")>=1),\"-\",IF(AND('Enrollment Form'!C269=\"Enroll\",COUNTIF('Enrollment Form'!AS269:AT269,\"No\")=2,'Enrollment Form'!AU269=\"\"),\"N\",\"Y\")))","v":""},{"$f":"IF(OR(B262=\"N\",'Enrollment Form'!B269<>\"Subscriber\",'Enrollment Form'!C269=\"ROC\",'Enrollment Form'!O269<>\"Multiple of Salary\"),\"-\",IF(COUNTA('Enrollment Form'!T269:U269)<2,\"N\",\"Y\"))","v":"-"},{"$f":"IF(B262=\"N\",\"\",IF(OR('Enrollment Form'!C269=\"ROC\",'Enrollment Form'!B269<>\"Subscriber\",'Enrollment Form'!O269=\"Waive\",'Enrollment Form'!O269=\"\"),\"-\",IF('Enrollment Form'!P269=\"\",\"N\",\"Y\")))","v":""},{"$f":"IF($B262=\"N\",\"\",IF(AND('Enrollment Form'!$C269=\"ROC\",'Enrollment Form'!$DS269<>\"\"),\"Y\",IF(AND('Enrollment Form'!$C269=\"ROC\",'Enrollment Form'!$DS269=\"\"),\"N\",IF(AND('Enrollment Form'!$C269=\"Enroll\",'Enrollment Form'!$B269=\"Subscriber\",'Enrollment Form'!$CQ269=\"No\",'Enrollment Form'!$DS269=\"\"),\"N\",IF(AND('Enrollment Form'!$C269=\"Enroll\",'Enrollment Form'!$B269=\"Subscriber\",'Enrollment Form'!$CQ269=\"Yes\"),\"-\",\"Y\")))))","v":""},{"$f":"IF($B262=\"N\",\"\",IF(AND('Enrollment Form'!$C269=\"ROC\",'Enrollment Form'!$DT269<>\"\"),\"Y\",IF(AND('Enrollment Form'!$C269=\"ROC\",'Enrollment Form'!$DT269=\"\"),\"N\",IF(AND('Enrollment Form'!$C269=\"Enroll\",'Enrollment Form'!$B269=\"Subscriber\",'Enrollment Form'!$CQ269=\"No\",'Enrollment Form'!$DT269=\"\"),\"N\",IF(AND('Enrollment Form'!$C269=\"Enroll\",'Enrollment Form'!$B269=\"Subscriber\",'Enrollment Form'!$CQ269=\"Yes\"),\"-\",\"Y\")))))","v":""},{"$f":"IF('Enrollment Form'!AH269=\"\",\"\",IF(ISERROR(SEARCH(\".\",'Enrollment Form'!AH269,SEARCH(\"@\",'Enrollment Form'!AH269))),\"N\",\"Y\"))","v":""},{"$f":"IF(OR($B262=\"N\",'Enrollment Form'!$G269=\"\"),\"\",IF('Enrollment Form'!$B269<>\"Subscriber\",\"-\",IF(COUNTIF('Enrollment Form'!$AS269:$AT269,\"Yes\")=2,\"N\",\"Y\")))","v":""},{"$f":"IF(OR('Enrollment Form'!$CC269=\"\",'Enrollment Form'!$CC269=\"No\"),\"-\",IF(AND('Enrollment Form'!$CC269=\"Yes\",'Enrollment Form'!$CD269=\"\"),\"N\",\"Y\"))","v":"-"},{"$f":"IF(OR('Enrollment Form'!$CE269=\"\",'Enrollment Form'!$CE269=\"No\"),\"-\",IF(AND('Enrollment Form'!$CE269=\"Yes\",'Enrollment Form'!$CF269=\"\"),\"N\",\"Y\"))","v":"-"},{"$f":"IF(OR('Enrollment Form'!$CG269=\"\",'Enrollment Form'!$CG269=\"No\"),\"-\",IF(AND('Enrollment Form'!$CG269=\"Yes\",'Enrollment Form'!$CH269=\"\"),\"N\",\"Y\"))","v":"-"},{"$f":"IF(OR('Enrollment Form'!$CG269=\"\",'Enrollment Form'!$CG269=\"No\"),\"-\",IF(AND('Enrollment Form'!$CG269=\"Yes\",'Enrollment Form'!$CI269=\"\"),\"N\",\"Y\"))","v":"-"},{"$f":"IF('Enrollment Form'!B269<>\"Subscriber\",\"-\",IF(AND('Enrollment Form'!B269=\"Subscriber\",'Enrollment Form'!C269=\"Enroll\",'Enrollment Form'!AA269=\"\"),\"N\",\"Y\"))","v":"-"},{"$f":"IF(OR('Enrollment Form'!B269=\"Subscriber\",'Enrollment Form'!B269=\"\"),\"-\",IF('Enrollment Form'!BI269=\"\",\"N\",\"Y\"))","v":"-"},{"$f":"IF('Enrollment Form'!B269<>\"Subscriber\",\"-\",IF(AND('Enrollment Form'!B269=\"Subscriber\",'Enrollment Form'!G269=\"\"),\"N\",\"Y\"))","v":"-"},{"$f":"IF('Enrollment Form'!A269=\"\",\"\",IF('Enrollment Form'!B269=\"Subscriber\",\"-\",IF(AND('Enrollment Form'!B269<>\"Subscriber\",'Enrollment Form'!G269='Enrollment Form'!H269),\"N\",\"Y\")))","v":""},0]
[270,{"$f":"IF('Enrollment Form'!$A270<>\"\",\"Y\",\"N\")","v":"N"},{"$f":"IF(AND('Enrollment Form'!$B270=\"\",'Enrollment Form'!$C270<>\"\"),\"N\",IF($B263=\"N\",\"\",\"Y\"))","v":""},{"$f":"IF(OR($B263=\"N\",'Enrollment Form'!G270=\"\"),\"\",IF('Enrollment Form'!$B270<>\"Subscriber\",\"\",IF('Enrollment Form'!$G270='Enrollment Form'!$H270,\"Y\",\"N\")))","v":""},{"$f":"IF($B263=\"N\",\"\",IF(AND(COUNTIFS('Enrollment Form'!$H$11:$H$1000,'Enrollment Form'!$H270,'Enrollment Form'!$B$11:$B$1000,'Enrollment Form'!$B270)>1,'Enrollment Form'!$H270<>\"\"),\"N\",\"Y\"))","v":""},{"$f":"IF($B263=\"N\",\"\",IF(LEN('Enrollment Form'!$Y270)=0,\"\",IF(LEN('Enrollment Form'!$Y270)<>5,\"N\",\"Y\")))","v":""},{"$f":"IF($B263=\"N\",\"\",IF(LEN('Enrollment Form'!$AD270=0),\"\",IF(LEN('Enrollment Form'!$AD270)<>5,\"N\",\"Y\")))","v":""},{"$f":"IF($B263=\"N\",\"\",IF(LEN('Enrollment Form'!$BL270=0),\"\",IF(LEN('Enrollment Form'!$BL270)<>5,\"N\",\"Y\")))","v":""},{"$f":"IF($B263=\"N\",\"\",IF(LEN('Enrollment Form'!$AE270)=0,\"\",IF(LEN('Enrollment Form'!$AE270)<>10,\"N\",\"Y\")))","v":""},{"$f":"IF($B263=\"N\",\"\",IF(LEN('Enrollment Form'!$AF270)=0,\"\",IF(LEN('Enrollment Form'!$AF270)<>10,\"N\",\"Y\")))","v":""},{"$f":"IF('Enrollment Form'!$O270<>\"Graded\",\"-\",IF(AND('Enrollment Form'!$O270=\"Graded\",'Enrollment Form'!$AO270<>\"\"),\"Y\",\"N\"))","v":"-"},{"$f":"IF($B263=\"N\",\"\",IF(OR('Enrollment Form'!$B270<>\"Subscriber\",'Enrollment Form'!$C270=\"ROC\"),\"-\",IF(AND('Enrollment Form'!$B270=\"Subscriber\",'Enrollment Form'!$C270=\"Enroll\",'Enrollment Form'!$AJ270<>\"\"),\"Y\",\"N\")))","v":""},{"$f":"IF($B263=\"N\",\"\",IF(OR('Enrollment Form'!$B270<>\"Subscriber\",'Enrollment Form'!$C270=\"ROC\"),\"-\",IF(AND('Enrollment Form'!$B270=\"Subscriber\",'Enrollment Form'!$C270=\"Enroll\",'Enrollment Form'!$AK270<>\"\"),\"Y\",\"N\")))","v":""},{"$f":"IF($B263=\"N\",\"\",IF(OR('Enrollment Form'!$B270<>\"Subscriber\",'Enrollment Form'!$C270=\"ROC\"),\"-\",IF(AND('Enrollment Form'!$B270=\"Subscriber\",'Enrollment Form'!$C270=\"Enroll\",'Enrollment Form'!$AL270<>\"\"),\"Y\",\"N\")))","v":""},{"$f":"IF($B263=\"N\",\"\",IF(OR('Enrollment Form'!$B270<>\"Subscriber\",'Enrollment Form'!$C270=\"ROC\"),\"-\",IF(AND('Enrollment Form'!$B270=\"Subscriber\",'Enrollment Form'!$C270=\"Enroll\",'Enrollment Form'!$AM270<>\"\"),\"Y\",\"N\")))","v":""},{"$f":"IF($B263=\"N\",\"\",IF(OR('Enrollment Form'!$B270<>\"Subscriber\",'Enrollment Form'!$C270=\"ROC\"),\"-\",IF(AND('Enrollment Form'!$B270=\"Subscriber\",'Enrollment Form'!$C270=\"Enroll\",'Enrollment Form'!$AN270<>\"\"),\"Y\",\"N\")))","v":""},{"$f":"IF($B263=\"N\",\"\",IF(OR('Enrollment Form'!$B270<>\"Subscriber\",'Enrollment Form'!$C270=\"ROC\"),\"-\",IF(AND('Enrollment Form'!$B270=\"Subscriber\",'Enrollment Form'!$C270=\"Enroll\",'Enrollment Form'!$AP270<>\"\"),\"Y\",\"N\")))","v":""},{"$f":"IF($B263=\"N\",\"\",IF($Q263=\"-\",\"-\",IF(AND($Q263=\"Y\",'Enrollment Form'!$AP270=\"No\"),\"-\",IF(AND($Q263=\"Y\",'Enrollment Form'!$AP270=\"Yes\",'Enrollment Form'!$AQ270<>\"\"),\"Y\",\"N\"))))","v":""},{"$f":"IF($B263=\"N\",\"\",IF(OR('Enrollment Form'!$B270<>\"Subscriber\",'Enrollment Form'!$C270=\"ROC\"),\"-\",IF(AND('Enrollment Form'!$B270=\"Subscriber\",'Enrollment Form'!$C270=\"Enroll\",'Enrollment Form'!$CO270<>\"\"),\"Y\",\"N\")))","v":""},{"$f":"IF($B263=\"N\",\"\",IF($S263=\"-\",\"-\",IF(AND($S263=\"Y\",'Enrollment Form'!$CO270=\"No\"),\"-\",IF(AND($S263=\"Y\",'Enrollment Form'!$CO270=\"Yes\",'Enrollment Form'!$CP270<>\"\"),\"Y\",\"N\"))))","v":""},{"$f":"IF(OR('Enrollment Form'!$AV270=\"Yes\",'Enrollment Form'!$AV270=\"\"),\"-\",IF(AND('Enrollment Form'!$AV270=\"No\",ISERROR(FIND(\"HMO\",VLOOKUP('Enrollment Form'!G270,'Enrollment Form'!H$11:J$1000,3,FALSE),1))=FALSE,COUNTA('Enrollment Form'!$AW270:$AZ270)=4),\"Y\",\"N\"))","v":"-"},{"$f":"IF($B263=\"N\",\"\",IF('Enrollment Form'!$B270=\"Subscriber\",\"-\",IF(COUNTA('Enrollment Form'!$BE270,'Enrollment Form'!$BG270)=2,\"Y\",\"N\")))","v":""},{"$f":"IF($B263=\"N\",\"\",IF(OR('Enrollment Form'!$AU270=\"\",'Enrollment Form'!$AU270=\"No\"),\"-\",IF(AND('Enrollment Form'!$AU270=\"Yes\",COUNTA('Enrollment Form'!$CK270)=1),\"Y\",\"N\")))","v":""},{"$f":"IF(OR('Enrollment Form'!$CK270=\"\",'Enrollment Form'!$CK270=\"No\"),\"-\",IF(COUNTA('Enrollment Form'!$CM270:$CN270)=2,\"Y\",\"N\"))","v":"-"},{"$f":"IF($B263=\"N\",\"\",IF(COUNTIF('Enrollment Form'!$CZ270:$DO270,\"Other\")=COUNTA('Enrollment Form'!$DF270,'Enrollment Form'!$DA270,'Enrollment Form'!$DK270,'Enrollment Form'!$DP270),\"Y\",\"N\"))","v":""},{"$f":"IF($B263=\"N\",\"\",IF(OR('Enrollment Form'!B270<>\"Subscriber\",'Enrollment Form'!C270=\"ROC\",COUNTIF('Enrollment Form'!AS270:AT270,\"Yes\")>=1),\"-\",IF(AND('Enrollment Form'!C270=\"Enroll\",COUNTIF('Enrollment Form'!AS270:AT270,\"No\")=2,'Enrollment Form'!AU270=\"\"),\"N\",\"Y\")))","v":""},{"$f":"IF(OR(B263=\"N\",'Enrollment Form'!B270<>\"Subscriber\",'Enrollment Form'!C270=\"ROC\",'Enrollment Form'!O270<>\"Multiple of Salary\"),\"-\",IF(COUNTA('Enrollment Form'!T270:U270)<2,\"N\",\"Y\"))","v":"-"},{"$f":"IF(B263=\"N\",\"\",IF(OR('Enrollment Form'!C270=\"ROC\",'Enrollment Form'!B270<>\"Subscriber\",'Enrollment Form'!O270=\"Waive\",'Enrollment Form'!O270=\"\"),\"-\",IF('Enrollment Form'!P270=\"\",\"N\",\"Y\")))","v":""},{"$f":"IF($B263=\"N\",\"\",IF(AND('Enrollment Form'!$C270=\"ROC\",'Enrollment Form'!$DS270<>\"\"),\"Y\",IF(AND('Enrollment Form'!$C270=\"ROC\",'Enrollment Form'!$DS270=\"\"),\"N\",IF(AND('Enrollment Form'!$C270=\"Enroll\",'Enrollment Form'!$B270=\"Subscriber\",'Enrollment Form'!$CQ270=\"No\",'Enrollment Form'!$DS270=\"\"),\"N\",IF(AND('Enrollment Form'!$C270=\"Enroll\",'Enrollment Form'!$B270=\"Subscriber\",'Enrollment Form'!$CQ270=\"Yes\"),\"-\",\"Y\")))))","v":""},{"$f":"IF($B263=\"N\",\"\",IF(AND('Enrollment Form'!$C270=\"ROC\",'Enrollment Form'!$DT270<>\"\"),\"Y\",IF(AND('Enrollment Form'!$C270=\"ROC\",'Enrollment Form'!$DT270=\"\"),\"N\",IF(AND('Enrollment Form'!$C270=\"Enroll\",'Enrollment Form'!$B270=\"Subscriber\",'Enrollment Form'!$CQ270=\"No\",'Enrollment Form'!$DT270=\"\"),\"N\",IF(AND('Enrollment Form'!$C270=\"Enroll\",'Enrollment Form'!$B270=\"Subscriber\",'Enrollment Form'!$CQ270=\"Yes\"),\"-\",\"Y\")))))","v":""},{"$f":"IF('Enrollment Form'!AH270=\"\",\"\",IF(ISERROR(SEARCH(\".\",'Enrollment Form'!AH270,SEARCH(\"@\",'Enrollment Form'!AH270))),\"N\",\"Y\"))","v":""},{"$f":"IF(OR($B263=\"N\",'Enrollment Form'!$G270=\"\"),\"\",IF('Enrollment Form'!$B270<>\"Subscriber\",\"-\",IF(COUNTIF('Enrollment Form'!$AS270:$AT270,\"Yes\")=2,\"N\",\"Y\")))","v":""},{"$f":"IF(OR('Enrollment Form'!$CC270=\"\",'Enrollment Form'!$CC270=\"No\"),\"-\",IF(AND('Enrollment Form'!$CC270=\"Yes\",'Enrollment Form'!$CD270=\"\"),\"N\",\"Y\"))","v":"-"},{"$f":"IF(OR('Enrollment Form'!$CE270=\"\",'Enrollment Form'!$CE270=\"No\"),\"-\",IF(AND('Enrollment Form'!$CE270=\"Yes\",'Enrollment Form'!$CF270=\"\"),\"N\",\"Y\"))","v":"-"},{"$f":"IF(OR('Enrollment Form'!$CG270=\"\",'Enrollment Form'!$CG270=\"No\"),\"-\",IF(AND('Enrollment Form'!$CG270=\"Yes\",'Enrollment Form'!$CH270=\"\"),\"N\",\"Y\"))","v":"-"},{"$f":"IF(OR('Enrollment Form'!$CG270=\"\",'Enrollment Form'!$CG270=\"No\"),\"-\",IF(AND('Enrollment Form'!$CG270=\"Yes\",'Enrollment Form'!$CI270=\"\"),\"N\",\"Y\"))","v":"-"},{"$f":"IF('Enrollment Form'!B270<>\"Subscriber\",\"-\",IF(AND('Enrollment Form'!B270=\"Subscriber\",'Enrollment Form'!C270=\"Enroll\",'Enrollment Form'!AA270=\"\"),\"N\",\"Y\"))","v":"-"},{"$f":"IF(OR('Enrollment Form'!B270=\"Subscriber\",'Enrollment Form'!B270=\"\"),\"-\",IF('Enrollment Form'!BI270=\"\",\"N\",\"Y\"))","v":"-"},{"$f":"IF('Enrollment Form'!B270<>\"Subscriber\",\"-\",IF(AND('Enrollment Form'!B270=\"Subscriber\",'Enrollment Form'!G270=\"\"),\"N\",\"Y\"))","v":"-"},{"$f":"IF('Enrollment Form'!A270=\"\",\"\",IF('Enrollment Form'!B270=\"Subscriber\",\"-\",IF(AND('Enrollment Form'!B270<>\"Subscriber\",'Enrollment Form'!G270='Enrollment Form'!H270),\"N\",\"Y\")))","v":""},0]
[271,{"$f":"IF('Enrollment Form'!$A271<>\"\",\"Y\",\"N\")","v":"N"},{"$f":"IF(AND('Enrollment Form'!$B271=\"\",'Enrollment Form'!$C271<>\"\"),\"N\",IF($B264=\"N\",\"\",\"Y\"))","v":""},{"$f":"IF(OR($B264=\"N\",'Enrollment Form'!G271=\"\"),\"\",IF('Enrollment Form'!$B271<>\"Subscriber\",\"\",IF('Enrollment Form'!$G271='Enrollment Form'!$H271,\"Y\",\"N\")))","v":""},{"$f":"IF($B264=\"N\",\"\",IF(AND(COUNTIFS('Enrollment Form'!$H$11:$H$1000,'Enrollment Form'!$H271,'Enrollment Form'!$B$11:$B$1000,'Enrollment Form'!$B271)>1,'Enrollment Form'!$H271<>\"\"),\"N\",\"Y\"))","v":""},{"$f":"IF($B264=\"N\",\"\",IF(LEN('Enrollment Form'!$Y271)=0,\"\",IF(LEN('Enrollment Form'!$Y271)<>5,\"N\",\"Y\")))","v":""},{"$f":"IF($B264=\"N\",\"\",IF(LEN('Enrollment Form'!$AD271=0),\"\",IF(LEN('Enrollment Form'!$AD271)<>5,\"N\",\"Y\")))","v":""},{"$f":"IF($B264=\"N\",\"\",IF(LEN('Enrollment Form'!$BL271=0),\"\",IF(LEN('Enrollment Form'!$BL271)<>5,\"N\",\"Y\")))","v":""},{"$f":"IF($B264=\"N\",\"\",IF(LEN('Enrollment Form'!$AE271)=0,\"\",IF(LEN('Enrollment Form'!$AE271)<>10,\"N\",\"Y\")))","v":""},{"$f":"IF($B264=\"N\",\"\",IF(LEN('Enrollment Form'!$AF271)=0,\"\",IF(LEN('Enrollment Form'!$AF271)<>10,\"N\",\"Y\")))","v":""},{"$f":"IF('Enrollment Form'!$O271<>\"Graded\",\"-\",IF(AND('Enrollment Form'!$O271=\"Graded\",'Enrollment Form'!$AO271<>\"\"),\"Y\",\"N\"))","v":"-"},{"$f":"IF($B264=\"N\",\"\",IF(OR('Enrollment Form'!$B271<>\"Subscriber\",'Enrollment Form'!$C271=\"ROC\"),\"-\",IF(AND('Enrollment Form'!$B271=\"Subscriber\",'Enrollment Form'!$C271=\"Enroll\",'Enrollment Form'!$AJ271<>\"\"),\"Y\",\"N\")))","v":""},{"$f":"IF($B264=\"N\",\"\",IF(OR('Enrollment Form'!$B271<>\"Subscriber\",'Enrollment Form'!$C271=\"ROC\"),\"-\",IF(AND('Enrollment Form'!$B271=\"Subscriber\",'Enrollment Form'!$C271=\"Enroll\",'Enrollment Form'!$AK271<>\"\"),\"Y\",\"N\")))","v":""},{"$f":"IF($B264=\"N\",\"\",IF(OR('Enrollment Form'!$B271<>\"Subscriber\",'Enrollment Form'!$C271=\"ROC\"),\"-\",IF(AND('Enrollment Form'!$B271=\"Subscriber\",'Enrollment Form'!$C271=\"Enroll\",'Enrollment Form'!$AL271<>\"\"),\"Y\",\"N\")))","v":""},{"$f":"IF($B264=\"N\",\"\",IF(OR('Enrollment Form'!$B271<>\"Subscriber\",'Enrollment Form'!$C271=\"ROC\"),\"-\",IF(AND('Enrollment Form'!$B271=\"Subscriber\",'Enrollment Form'!$C271=\"Enroll\",'Enrollment Form'!$AM271<>\"\"),\"Y\",\"N\")))","v":""},{"$f":"IF($B264=\"N\",\"\",IF(OR('Enrollment Form'!$B271<>\"Subscriber\",'Enrollment Form'!$C271=\"ROC\"),\"-\",IF(AND('Enrollment Form'!$B271=\"Subscriber\",'Enrollment Form'!$C271=\"Enroll\",'Enrollment Form'!$AN271<>\"\"),\"Y\",\"N\")))","v":""},{"$f":"IF($B264=\"N\",\"\",IF(OR('Enrollment Form'!$B271<>\"Subscriber\",'Enrollment Form'!$C271=\"ROC\"),\"-\",IF(AND('Enrollment Form'!$B271=\"Subscriber\",'Enrollment Form'!$C271=\"Enroll\",'Enrollment Form'!$AP271<>\"\"),\"Y\",\"N\")))","v":""},{"$f":"IF($B264=\"N\",\"\",IF($Q264=\"-\",\"-\",IF(AND($Q264=\"Y\",'Enrollment Form'!$AP271=\"No\"),\"-\",IF(AND($Q264=\"Y\",'Enrollment Form'!$AP271=\"Yes\",'Enrollment Form'!$AQ271<>\"\"),\"Y\",\"N\"))))","v":""},{"$f":"IF($B264=\"N\",\"\",IF(OR('Enrollment Form'!$B271<>\"Subscriber\",'Enrollment Form'!$C271=\"ROC\"),\"-\",IF(AND('Enrollment Form'!$B271=\"Subscriber\",'Enrollment Form'!$C271=\"Enroll\",'Enrollment Form'!$CO271<>\"\"),\"Y\",\"N\")))","v":""},{"$f":"IF($B264=\"N\",\"\",IF($S264=\"-\",\"-\",IF(AND($S264=\"Y\",'Enrollment Form'!$CO271=\"No\"),\"-\",IF(AND($S264=\"Y\",'Enrollment Form'!$CO271=\"Yes\",'Enrollment Form'!$CP271<>\"\"),\"Y\",\"N\"))))","v":""},{"$f":"IF(OR('Enrollment Form'!$AV271=\"Yes\",'Enrollment Form'!$AV271=\"\"),\"-\",IF(AND('Enrollment Form'!$AV271=\"No\",ISERROR(FIND(\"HMO\",VLOOKUP('Enrollment Form'!G271,'Enrollment Form'!H$11:J$1000,3,FALSE),1))=FALSE,COUNTA('Enrollment Form'!$AW271:$AZ271)=4),\"Y\",\"N\"))","v":"-"},{"$f":"IF($B264=\"N\",\"\",IF('Enrollment Form'!$B271=\"Subscriber\",\"-\",IF(COUNTA('Enrollment Form'!$BE271,'Enrollment Form'!$BG271)=2,\"Y\",\"N\")))","v":""},{"$f":"IF($B264=\"N\",\"\",IF(OR('Enrollment Form'!$AU271=\"\",'Enrollment Form'!$AU271=\"No\"),\"-\",IF(AND('Enrollment Form'!$AU271=\"Yes\",COUNTA('Enrollment Form'!$CK271)=1),\"Y\",\"N\")))","v":""},{"$f":"IF(OR('Enrollment Form'!$CK271=\"\",'Enrollment Form'!$CK271=\"No\"),\"-\",IF(COUNTA('Enrollment Form'!$CM271:$CN271)=2,\"Y\",\"N\"))","v":"-"},{"$f":"IF($B264=\"N\",\"\",IF(COUNTIF('Enrollment Form'!$CZ271:$DO271,\"Other\")=COUNTA('Enrollment Form'!$DF271,'Enrollment Form'!$DA271,'Enrollment Form'!$DK271,'Enrollment Form'!$DP271),\"Y\",\"N\"))","v":""},{"$f":"IF($B264=\"N\",\"\",IF(OR('Enrollment Form'!B271<>\"Subscriber\",'Enrollment Form'!C271=\"ROC\",COUNTIF('Enrollment Form'!AS271:AT271,\"Yes\")>=1),\"-\",IF(AND('Enrollment Form'!C271=\"Enroll\",COUNTIF('Enrollment Form'!AS271:AT271,\"No\")=2,'Enrollment Form'!AU271=\"\"),\"N\",\"Y\")))","v":""},{"$f":"IF(OR(B264=\"N\",'Enrollment Form'!B271<>\"Subscriber\",'Enrollment Form'!C271=\"ROC\",'Enrollment Form'!O271<>\"Multiple of Salary\"),\"-\",IF(COUNTA('Enrollment Form'!T271:U271)<2,\"N\",\"Y\"))","v":"-"},{"$f":"IF(B264=\"N\",\"\",IF(OR('Enrollment Form'!C271=\"ROC\",'Enrollment Form'!B271<>\"Subscriber\",'Enrollment Form'!O271=\"Waive\",'Enrollment Form'!O271=\"\"),\"-\",IF('Enrollment Form'!P271=\"\",\"N\",\"Y\")))","v":""},{"$f":"IF($B264=\"N\",\"\",IF(AND('Enrollment Form'!$C271=\"ROC\",'Enrollment Form'!$DS271<>\"\"),\"Y\",IF(AND('Enrollment Form'!$C271=\"ROC\",'Enrollment Form'!$DS271=\"\"),\"N\",IF(AND('Enrollment Form'!$C271=\"Enroll\",'Enrollment Form'!$B271=\"Subscriber\",'Enrollment Form'!$CQ271=\"No\",'Enrollment Form'!$DS271=\"\"),\"N\",IF(AND('Enrollment Form'!$C271=\"Enroll\",'Enrollment Form'!$B271=\"Subscriber\",'Enrollment Form'!$CQ271=\"Yes\"),\"-\",\"Y\")))))","v":""},{"$f":"IF($B264=\"N\",\"\",IF(AND('Enrollment Form'!$C271=\"ROC\",'Enrollment Form'!$DT271<>\"\"),\"Y\",IF(AND('Enrollment Form'!$C271=\"ROC\",'Enrollment Form'!$DT271=\"\"),\"N\",IF(AND('Enrollment Form'!$C271=\"Enroll\",'Enrollment Form'!$B271=\"Subscriber\",'Enrollment Form'!$CQ271=\"No\",'Enrollment Form'!$DT271=\"\"),\"N\",IF(AND('Enrollment Form'!$C271=\"Enroll\",'Enrollment Form'!$B271=\"Subscriber\",'Enrollment Form'!$CQ271=\"Yes\"),\"-\",\"Y\")))))","v":""},{"$f":"IF('Enrollment Form'!AH271=\"\",\"\",IF(ISERROR(SEARCH(\".\",'Enrollment Form'!AH271,SEARCH(\"@\",'Enrollment Form'!AH271))),\"N\",\"Y\"))","v":""},{"$f":"IF(OR($B264=\"N\",'Enrollment Form'!$G271=\"\"),\"\",IF('Enrollment Form'!$B271<>\"Subscriber\",\"-\",IF(COUNTIF('Enrollment Form'!$AS271:$AT271,\"Yes\")=2,\"N\",\"Y\")))","v":""},{"$f":"IF(OR('Enrollment Form'!$CC271=\"\",'Enrollment Form'!$CC271=\"No\"),\"-\",IF(AND('Enrollment Form'!$CC271=\"Yes\",'Enrollment Form'!$CD271=\"\"),\"N\",\"Y\"))","v":"-"},{"$f":"IF(OR('Enrollment Form'!$CE271=\"\",'Enrollment Form'!$CE271=\"No\"),\"-\",IF(AND('Enrollment Form'!$CE271=\"Yes\",'Enrollment Form'!$CF271=\"\"),\"N\",\"Y\"))","v":"-"},{"$f":"IF(OR('Enrollment Form'!$CG271=\"\",'Enrollment Form'!$CG271=\"No\"),\"-\",IF(AND('Enrollment Form'!$CG271=\"Yes\",'Enrollment Form'!$CH271=\"\"),\"N\",\"Y\"))","v":"-"},{"$f":"IF(OR('Enrollment Form'!$CG271=\"\",'Enrollment Form'!$CG271=\"No\"),\"-\",IF(AND('Enrollment Form'!$CG271=\"Yes\",'Enrollment Form'!$CI271=\"\"),\"N\",\"Y\"))","v":"-"},{"$f":"IF('Enrollment Form'!B271<>\"Subscriber\",\"-\",IF(AND('Enrollment Form'!B271=\"Subscriber\",'Enrollment Form'!C271=\"Enroll\",'Enrollment Form'!AA271=\"\"),\"N\",\"Y\"))","v":"-"},{"$f":"IF(OR('Enrollment Form'!B271=\"Subscriber\",'Enrollment Form'!B271=\"\"),\"-\",IF('Enrollment Form'!BI271=\"\",\"N\",\"Y\"))","v":"-"},{"$f":"IF('Enrollment Form'!B271<>\"Subscriber\",\"-\",IF(AND('Enrollment Form'!B271=\"Subscriber\",'Enrollment Form'!G271=\"\"),\"N\",\"Y\"))","v":"-"},{"$f":"IF('Enrollment Form'!A271=\"\",\"\",IF('Enrollment Form'!B271=\"Subscriber\",\"-\",IF(AND('Enrollment Form'!B271<>\"Subscriber\",'Enrollment Form'!G271='Enrollment Form'!H271),\"N\",\"Y\")))","v":""},0]
[272,{"$f":"IF('Enrollment Form'!$A272<>\"\",\"Y\",\"N\")","v":"N"},{"$f":"IF(AND('Enrollment Form'!$B272=\"\",'Enrollment Form'!$C272<>\"\"),\"N\",IF($B265=\"N\",\"\",\"Y\"))","v":""},{"$f":"IF(OR($B265=\"N\",'Enrollment Form'!G272=\"\"),\"\",IF('Enrollment Form'!$B272<>\"Subscriber\",\"\",IF('Enrollment Form'!$G272='Enrollment Form'!$H272,\"Y\",\"N\")))","v":""},{"$f":"IF($B265=\"N\",\"\",IF(AND(COUNTIFS('Enrollment Form'!$H$11:$H$1000,'Enrollment Form'!$H272,'Enrollment Form'!$B$11:$B$1000,'Enrollment Form'!$B272)>1,'Enrollment Form'!$H272<>\"\"),\"N\",\"Y\"))","v":""},{"$f":"IF($B265=\"N\",\"\",IF(LEN('Enrollment Form'!$Y272)=0,\"\",IF(LEN('Enrollment Form'!$Y272)<>5,\"N\",\"Y\")))","v":""},{"$f":"IF($B265=\"N\",\"\",IF(LEN('Enrollment Form'!$AD272=0),\"\",IF(LEN('Enrollment Form'!$AD272)<>5,\"N\",\"Y\")))","v":""},{"$f":"IF($B265=\"N\",\"\",IF(LEN('Enrollment Form'!$BL272=0),\"\",IF(LEN('Enrollment Form'!$BL272)<>5,\"N\",\"Y\")))","v":""},{"$f":"IF($B265=\"N\",\"\",IF(LEN('Enrollment Form'!$AE272)=0,\"\",IF(LEN('Enrollment Form'!$AE272)<>10,\"N\",\"Y\")))","v":""},{"$f":"IF($B265=\"N\",\"\",IF(LEN('Enrollment Form'!$AF272)=0,\"\",IF(LEN('Enrollment Form'!$AF272)<>10,\"N\",\"Y\")))","v":""},{"$f":"IF('Enrollment Form'!$O272<>\"Graded\",\"-\",IF(AND('Enrollment Form'!$O272=\"Graded\",'Enrollment Form'!$AO272<>\"\"),\"Y\",\"N\"))","v":"-"},{"$f":"IF($B265=\"N\",\"\",IF(OR('Enrollment Form'!$B272<>\"Subscriber\",'Enrollment Form'!$C272=\"ROC\"),\"-\",IF(AND('Enrollment Form'!$B272=\"Subscriber\",'Enrollment Form'!$C272=\"Enroll\",'Enrollment Form'!$AJ272<>\"\"),\"Y\",\"N\")))","v":""},{"$f":"IF($B265=\"N\",\"\",IF(OR('Enrollment Form'!$B272<>\"Subscriber\",'Enrollment Form'!$C272=\"ROC\"),\"-\",IF(AND('Enrollment Form'!$B272=\"Subscriber\",'Enrollment Form'!$C272=\"Enroll\",'Enrollment Form'!$AK272<>\"\"),\"Y\",\"N\")))","v":""},{"$f":"IF($B265=\"N\",\"\",IF(OR('Enrollment Form'!$B272<>\"Subscriber\",'Enrollment Form'!$C272=\"ROC\"),\"-\",IF(AND('Enrollment Form'!$B272=\"Subscriber\",'Enrollment Form'!$C272=\"Enroll\",'Enrollment Form'!$AL272<>\"\"),\"Y\",\"N\")))","v":""},{"$f":"IF($B265=\"N\",\"\",IF(OR('Enrollment Form'!$B272<>\"Subscriber\",'Enrollment Form'!$C272=\"ROC\"),\"-\",IF(AND('Enrollment Form'!$B272=\"Subscriber\",'Enrollment Form'!$C272=\"Enroll\",'Enrollment Form'!$AM272<>\"\"),\"Y\",\"N\")))","v":""},{"$f":"IF($B265=\"N\",\"\",IF(OR('Enrollment Form'!$B272<>\"Subscriber\",'Enrollment Form'!$C272=\"ROC\"),\"-\",IF(AND('Enrollment Form'!$B272=\"Subscriber\",'Enrollment Form'!$C272=\"Enroll\",'Enrollment Form'!$AN272<>\"\"),\"Y\",\"N\")))","v":""},{"$f":"IF($B265=\"N\",\"\",IF(OR('Enrollment Form'!$B272<>\"Subscriber\",'Enrollment Form'!$C272=\"ROC\"),\"-\",IF(AND('Enrollment Form'!$B272=\"Subscriber\",'Enrollment Form'!$C272=\"Enroll\",'Enrollment Form'!$AP272<>\"\"),\"Y\",\"N\")))","v":""},{"$f":"IF($B265=\"N\",\"\",IF($Q265=\"-\",\"-\",IF(AND($Q265=\"Y\",'Enrollment Form'!$AP272=\"No\"),\"-\",IF(AND($Q265=\"Y\",'Enrollment Form'!$AP272=\"Yes\",'Enrollment Form'!$AQ272<>\"\"),\"Y\",\"N\"))))","v":""},{"$f":"IF($B265=\"N\",\"\",IF(OR('Enrollment Form'!$B272<>\"Subscriber\",'Enrollment Form'!$C272=\"ROC\"),\"-\",IF(AND('Enrollment Form'!$B272=\"Subscriber\",'Enrollment Form'!$C272=\"Enroll\",'Enrollment Form'!$CO272<>\"\"),\"Y\",\"N\")))","v":""},{"$f":"IF($B265=\"N\",\"\",IF($S265=\"-\",\"-\",IF(AND($S265=\"Y\",'Enrollment Form'!$CO272=\"No\"),\"-\",IF(AND($S265=\"Y\",'Enrollment Form'!$CO272=\"Yes\",'Enrollment Form'!$CP272<>\"\"),\"Y\",\"N\"))))","v":""},{"$f":"IF(OR('Enrollment Form'!$AV272=\"Yes\",'Enrollment Form'!$AV272=\"\"),\"-\",IF(AND('Enrollment Form'!$AV272=\"No\",ISERROR(FIND(\"HMO\",VLOOKUP('Enrollment Form'!G272,'Enrollment Form'!H$11:J$1000,3,FALSE),1))=FALSE,COUNTA('Enrollment Form'!$AW272:$AZ272)=4),\"Y\",\"N\"))","v":"-"},{"$f":"IF($B265=\"N\",\"\",IF('Enrollment Form'!$B272=\"Subscriber\",\"-\",IF(COUNTA('Enrollment Form'!$BE272,'Enrollment Form'!$BG272)=2,\"Y\",\"N\")))","v":""},{"$f":"IF($B265=\"N\",\"\",IF(OR('Enrollment Form'!$AU272=\"\",'Enrollment Form'!$AU272=\"No\"),\"-\",IF(AND('Enrollment Form'!$AU272=\"Yes\",COUNTA('Enrollment Form'!$CK272)=1),\"Y\",\"N\")))","v":""},{"$f":"IF(OR('Enrollment Form'!$CK272=\"\",'Enrollment Form'!$CK272=\"No\"),\"-\",IF(COUNTA('Enrollment Form'!$CM272:$CN272)=2,\"Y\",\"N\"))","v":"-"},{"$f":"IF($B265=\"N\",\"\",IF(COUNTIF('Enrollment Form'!$CZ272:$DO272,\"Other\")=COUNTA('Enrollment Form'!$DF272,'Enrollment Form'!$DA272,'Enrollment Form'!$DK272,'Enrollment Form'!$DP272),\"Y\",\"N\"))","v":""},{"$f":"IF($B265=\"N\",\"\",IF(OR('Enrollment Form'!B272<>\"Subscriber\",'Enrollment Form'!C272=\"ROC\",COUNTIF('Enrollment Form'!AS272:AT272,\"Yes\")>=1),\"-\",IF(AND('Enrollment Form'!C272=\"Enroll\",COUNTIF('Enrollment Form'!AS272:AT272,\"No\")=2,'Enrollment Form'!AU272=\"\"),\"N\",\"Y\")))","v":""},{"$f":"IF(OR(B265=\"N\",'Enrollment Form'!B272<>\"Subscriber\",'Enrollment Form'!C272=\"ROC\",'Enrollment Form'!O272<>\"Multiple of Salary\"),\"-\",IF(COUNTA('Enrollment Form'!T272:U272)<2,\"N\",\"Y\"))","v":"-"},{"$f":"IF(B265=\"N\",\"\",IF(OR('Enrollment Form'!C272=\"ROC\",'Enrollment Form'!B272<>\"Subscriber\",'Enrollment Form'!O272=\"Waive\",'Enrollment Form'!O272=\"\"),\"-\",IF('Enrollment Form'!P272=\"\",\"N\",\"Y\")))","v":""},{"$f":"IF($B265=\"N\",\"\",IF(AND('Enrollment Form'!$C272=\"ROC\",'Enrollment Form'!$DS272<>\"\"),\"Y\",IF(AND('Enrollment Form'!$C272=\"ROC\",'Enrollment Form'!$DS272=\"\"),\"N\",IF(AND('Enrollment Form'!$C272=\"Enroll\",'Enrollment Form'!$B272=\"Subscriber\",'Enrollment Form'!$CQ272=\"No\",'Enrollment Form'!$DS272=\"\"),\"N\",IF(AND('Enrollment Form'!$C272=\"Enroll\",'Enrollment Form'!$B272=\"Subscriber\",'Enrollment Form'!$CQ272=\"Yes\"),\"-\",\"Y\")))))","v":""},{"$f":"IF($B265=\"N\",\"\",IF(AND('Enrollment Form'!$C272=\"ROC\",'Enrollment Form'!$DT272<>\"\"),\"Y\",IF(AND('Enrollment Form'!$C272=\"ROC\",'Enrollment Form'!$DT272=\"\"),\"N\",IF(AND('Enrollment Form'!$C272=\"Enroll\",'Enrollment Form'!$B272=\"Subscriber\",'Enrollment Form'!$CQ272=\"No\",'Enrollment Form'!$DT272=\"\"),\"N\",IF(AND('Enrollment Form'!$C272=\"Enroll\",'Enrollment Form'!$B272=\"Subscriber\",'Enrollment Form'!$CQ272=\"Yes\"),\"-\",\"Y\")))))","v":""},{"$f":"IF('Enrollment Form'!AH272=\"\",\"\",IF(ISERROR(SEARCH(\".\",'Enrollment Form'!AH272,SEARCH(\"@\",'Enrollment Form'!AH272))),\"N\",\"Y\"))","v":""},{"$f":"IF(OR($B265=\"N\",'Enrollment Form'!$G272=\"\"),\"\",IF('Enrollment Form'!$B272<>\"Subscriber\",\"-\",IF(COUNTIF('Enrollment Form'!$AS272:$AT272,\"Yes\")=2,\"N\",\"Y\")))","v":""},{"$f":"IF(OR('Enrollment Form'!$CC272=\"\",'Enrollment Form'!$CC272=\"No\"),\"-\",IF(AND('Enrollment Form'!$CC272=\"Yes\",'Enrollment Form'!$CD272=\"\"),\"N\",\"Y\"))","v":"-"},{"$f":"IF(OR('Enrollment Form'!$CE272=\"\",'Enrollment Form'!$CE272=\"No\"),\"-\",IF(AND('Enrollment Form'!$CE272=\"Yes\",'Enrollment Form'!$CF272=\"\"),\"N\",\"Y\"))","v":"-"},{"$f":"IF(OR('Enrollment Form'!$CG272=\"\",'Enrollment Form'!$CG272=\"No\"),\"-\",IF(AND('Enrollment Form'!$CG272=\"Yes\",'Enrollment Form'!$CH272=\"\"),\"N\",\"Y\"))","v":"-"},{"$f":"IF(OR('Enrollment Form'!$CG272=\"\",'Enrollment Form'!$CG272=\"No\"),\"-\",IF(AND('Enrollment Form'!$CG272=\"Yes\",'Enrollment Form'!$CI272=\"\"),\"N\",\"Y\"))","v":"-"},{"$f":"IF('Enrollment Form'!B272<>\"Subscriber\",\"-\",IF(AND('Enrollment Form'!B272=\"Subscriber\",'Enrollment Form'!C272=\"Enroll\",'Enrollment Form'!AA272=\"\"),\"N\",\"Y\"))","v":"-"},{"$f":"IF(OR('Enrollment Form'!B272=\"Subscriber\",'Enrollment Form'!B272=\"\"),\"-\",IF('Enrollment Form'!BI272=\"\",\"N\",\"Y\"))","v":"-"},{"$f":"IF('Enrollment Form'!B272<>\"Subscriber\",\"-\",IF(AND('Enrollment Form'!B272=\"Subscriber\",'Enrollment Form'!G272=\"\"),\"N\",\"Y\"))","v":"-"},{"$f":"IF('Enrollment Form'!A272=\"\",\"\",IF('Enrollment Form'!B272=\"Subscriber\",\"-\",IF(AND('Enrollment Form'!B272<>\"Subscriber\",'Enrollment Form'!G272='Enrollment Form'!H272),\"N\",\"Y\")))","v":""},0]
[273,{"$f":"IF('Enrollment Form'!$A273<>\"\",\"Y\",\"N\")","v":"N"},{"$f":"IF(AND('Enrollment Form'!$B273=\"\",'Enrollment Form'!$C273<>\"\"),\"N\",IF($B266=\"N\",\"\",\"Y\"))","v":""},{"$f":"IF(OR($B266=\"N\",'Enrollment Form'!G273=\"\"),\"\",IF('Enrollment Form'!$B273<>\"Subscriber\",\"\",IF('Enrollment Form'!$G273='Enrollment Form'!$H273,\"Y\",\"N\")))","v":""},{"$f":"IF($B266=\"N\",\"\",IF(AND(COUNTIFS('Enrollment Form'!$H$11:$H$1000,'Enrollment Form'!$H273,'Enrollment Form'!$B$11:$B$1000,'Enrollment Form'!$B273)>1,'Enrollment Form'!$H273<>\"\"),\"N\",\"Y\"))","v":""},{"$f":"IF($B266=\"N\",\"\",IF(LEN('Enrollment Form'!$Y273)=0,\"\",IF(LEN('Enrollment Form'!$Y273)<>5,\"N\",\"Y\")))","v":""},{"$f":"IF($B266=\"N\",\"\",IF(LEN('Enrollment Form'!$AD273=0),\"\",IF(LEN('Enrollment Form'!$AD273)<>5,\"N\",\"Y\")))","v":""},{"$f":"IF($B266=\"N\",\"\",IF(LEN('Enrollment Form'!$BL273=0),\"\",IF(LEN('Enrollment Form'!$BL273)<>5,\"N\",\"Y\")))","v":""},{"$f":"IF($B266=\"N\",\"\",IF(LEN('Enrollment Form'!$AE273)=0,\"\",IF(LEN('Enrollment Form'!$AE273)<>10,\"N\",\"Y\")))","v":""},{"$f":"IF($B266=\"N\",\"\",IF(LEN('Enrollment Form'!$AF273)=0,\"\",IF(LEN('Enrollment Form'!$AF273)<>10,\"N\",\"Y\")))","v":""},{"$f":"IF('Enrollment Form'!$O273<>\"Graded\",\"-\",IF(AND('Enrollment Form'!$O273=\"Graded\",'Enrollment Form'!$AO273<>\"\"),\"Y\",\"N\"))","v":"-"},{"$f":"IF($B266=\"N\",\"\",IF(OR('Enrollment Form'!$B273<>\"Subscriber\",'Enrollment Form'!$C273=\"ROC\"),\"-\",IF(AND('Enrollment Form'!$B273=\"Subscriber\",'Enrollment Form'!$C273=\"Enroll\",'Enrollment Form'!$AJ273<>\"\"),\"Y\",\"N\")))","v":""},{"$f":"IF($B266=\"N\",\"\",IF(OR('Enrollment Form'!$B273<>\"Subscriber\",'Enrollment Form'!$C273=\"ROC\"),\"-\",IF(AND('Enrollment Form'!$B273=\"Subscriber\",'Enrollment Form'!$C273=\"Enroll\",'Enrollment Form'!$AK273<>\"\"),\"Y\",\"N\")))","v":""},{"$f":"IF($B266=\"N\",\"\",IF(OR('Enrollment Form'!$B273<>\"Subscriber\",'Enrollment Form'!$C273=\"ROC\"),\"-\",IF(AND('Enrollment Form'!$B273=\"Subscriber\",'Enrollment Form'!$C273=\"Enroll\",'Enrollment Form'!$AL273<>\"\"),\"Y\",\"N\")))","v":""},{"$f":"IF($B266=\"N\",\"\",IF(OR('Enrollment Form'!$B273<>\"Subscriber\",'Enrollment Form'!$C273=\"ROC\"),\"-\",IF(AND('Enrollment Form'!$B273=\"Subscriber\",'Enrollment Form'!$C273=\"Enroll\",'Enrollment Form'!$AM273<>\"\"),\"Y\",\"N\")))","v":""},{"$f":"IF($B266=\"N\",\"\",IF(OR('Enrollment Form'!$B273<>\"Subscriber\",'Enrollment Form'!$C273=\"ROC\"),\"-\",IF(AND('Enrollment Form'!$B273=\"Subscriber\",'Enrollment Form'!$C273=\"Enroll\",'Enrollment Form'!$AN273<>\"\"),\"Y\",\"N\")))","v":""},{"$f":"IF($B266=\"N\",\"\",IF(OR('Enrollment Form'!$B273<>\"Subscriber\",'Enrollment Form'!$C273=\"ROC\"),\"-\",IF(AND('Enrollment Form'!$B273=\"Subscriber\",'Enrollment Form'!$C273=\"Enroll\",'Enrollment Form'!$AP273<>\"\"),\"Y\",\"N\")))","v":""},{"$f":"IF($B266=\"N\",\"\",IF($Q266=\"-\",\"-\",IF(AND($Q266=\"Y\",'Enrollment Form'!$AP273=\"No\"),\"-\",IF(AND($Q266=\"Y\",'Enrollment Form'!$AP273=\"Yes\",'Enrollment Form'!$AQ273<>\"\"),\"Y\",\"N\"))))","v":""},{"$f":"IF($B266=\"N\",\"\",IF(OR('Enrollment Form'!$B273<>\"Subscriber\",'Enrollment Form'!$C273=\"ROC\"),\"-\",IF(AND('Enrollment Form'!$B273=\"Subscriber\",'Enrollment Form'!$C273=\"Enroll\",'Enrollment Form'!$CO273<>\"\"),\"Y\",\"N\")))","v":""},{"$f":"IF($B266=\"N\",\"\",IF($S266=\"-\",\"-\",IF(AND($S266=\"Y\",'Enrollment Form'!$CO273=\"No\"),\"-\",IF(AND($S266=\"Y\",'Enrollment Form'!$CO273=\"Yes\",'Enrollment Form'!$CP273<>\"\"),\"Y\",\"N\"))))","v":""},{"$f":"IF(OR('Enrollment Form'!$AV273=\"Yes\",'Enrollment Form'!$AV273=\"\"),\"-\",IF(AND('Enrollment Form'!$AV273=\"No\",ISERROR(FIND(\"HMO\",VLOOKUP('Enrollment Form'!G273,'Enrollment Form'!H$11:J$1000,3,FALSE),1))=FALSE,COUNTA('Enrollment Form'!$AW273:$AZ273)=4),\"Y\",\"N\"))","v":"-"},{"$f":"IF($B266=\"N\",\"\",IF('Enrollment Form'!$B273=\"Subscriber\",\"-\",IF(COUNTA('Enrollment Form'!$BE273,'Enrollment Form'!$BG273)=2,\"Y\",\"N\")))","v":""},{"$f":"IF($B266=\"N\",\"\",IF(OR('Enrollment Form'!$AU273=\"\",'Enrollment Form'!$AU273=\"No\"),\"-\",IF(AND('Enrollment Form'!$AU273=\"Yes\",COUNTA('Enrollment Form'!$CK273)=1),\"Y\",\"N\")))","v":""},{"$f":"IF(OR('Enrollment Form'!$CK273=\"\",'Enrollment Form'!$CK273=\"No\"),\"-\",IF(COUNTA('Enrollment Form'!$CM273:$CN273)=2,\"Y\",\"N\"))","v":"-"},{"$f":"IF($B266=\"N\",\"\",IF(COUNTIF('Enrollment Form'!$CZ273:$DO273,\"Other\")=COUNTA('Enrollment Form'!$DF273,'Enrollment Form'!$DA273,'Enrollment Form'!$DK273,'Enrollment Form'!$DP273),\"Y\",\"N\"))","v":""},{"$f":"IF($B266=\"N\",\"\",IF(OR('Enrollment Form'!B273<>\"Subscriber\",'Enrollment Form'!C273=\"ROC\",COUNTIF('Enrollment Form'!AS273:AT273,\"Yes\")>=1),\"-\",IF(AND('Enrollment Form'!C273=\"Enroll\",COUNTIF('Enrollment Form'!AS273:AT273,\"No\")=2,'Enrollment Form'!AU273=\"\"),\"N\",\"Y\")))","v":""},{"$f":"IF(OR(B266=\"N\",'Enrollment Form'!B273<>\"Subscriber\",'Enrollment Form'!C273=\"ROC\",'Enrollment Form'!O273<>\"Multiple of Salary\"),\"-\",IF(COUNTA('Enrollment Form'!T273:U273)<2,\"N\",\"Y\"))","v":"-"},{"$f":"IF(B266=\"N\",\"\",IF(OR('Enrollment Form'!C273=\"ROC\",'Enrollment Form'!B273<>\"Subscriber\",'Enrollment Form'!O273=\"Waive\",'Enrollment Form'!O273=\"\"),\"-\",IF('Enrollment Form'!P273=\"\",\"N\",\"Y\")))","v":""},{"$f":"IF($B266=\"N\",\"\",IF(AND('Enrollment Form'!$C273=\"ROC\",'Enrollment Form'!$DS273<>\"\"),\"Y\",IF(AND('Enrollment Form'!$C273=\"ROC\",'Enrollment Form'!$DS273=\"\"),\"N\",IF(AND('Enrollment Form'!$C273=\"Enroll\",'Enrollment Form'!$B273=\"Subscriber\",'Enrollment Form'!$CQ273=\"No\",'Enrollment Form'!$DS273=\"\"),\"N\",IF(AND('Enrollment Form'!$C273=\"Enroll\",'Enrollment Form'!$B273=\"Subscriber\",'Enrollment Form'!$CQ273=\"Yes\"),\"-\",\"Y\")))))","v":""},{"$f":"IF($B266=\"N\",\"\",IF(AND('Enrollment Form'!$C273=\"ROC\",'Enrollment Form'!$DT273<>\"\"),\"Y\",IF(AND('Enrollment Form'!$C273=\"ROC\",'Enrollment Form'!$DT273=\"\"),\"N\",IF(AND('Enrollment Form'!$C273=\"Enroll\",'Enrollment Form'!$B273=\"Subscriber\",'Enrollment Form'!$CQ273=\"No\",'Enrollment Form'!$DT273=\"\"),\"N\",IF(AND('Enrollment Form'!$C273=\"Enroll\",'Enrollment Form'!$B273=\"Subscriber\",'Enrollment Form'!$CQ273=\"Yes\"),\"-\",\"Y\")))))","v":""},{"$f":"IF('Enrollment Form'!AH273=\"\",\"\",IF(ISERROR(SEARCH(\".\",'Enrollment Form'!AH273,SEARCH(\"@\",'Enrollment Form'!AH273))),\"N\",\"Y\"))","v":""},{"$f":"IF(OR($B266=\"N\",'Enrollment Form'!$G273=\"\"),\"\",IF('Enrollment Form'!$B273<>\"Subscriber\",\"-\",IF(COUNTIF('Enrollment Form'!$AS273:$AT273,\"Yes\")=2,\"N\",\"Y\")))","v":""},{"$f":"IF(OR('Enrollment Form'!$CC273=\"\",'Enrollment Form'!$CC273=\"No\"),\"-\",IF(AND('Enrollment Form'!$CC273=\"Yes\",'Enrollment Form'!$CD273=\"\"),\"N\",\"Y\"))","v":"-"},{"$f":"IF(OR('Enrollment Form'!$CE273=\"\",'Enrollment Form'!$CE273=\"No\"),\"-\",IF(AND('Enrollment Form'!$CE273=\"Yes\",'Enrollment Form'!$CF273=\"\"),\"N\",\"Y\"))","v":"-"},{"$f":"IF(OR('Enrollment Form'!$CG273=\"\",'Enrollment Form'!$CG273=\"No\"),\"-\",IF(AND('Enrollment Form'!$CG273=\"Yes\",'Enrollment Form'!$CH273=\"\"),\"N\",\"Y\"))","v":"-"},{"$f":"IF(OR('Enrollment Form'!$CG273=\"\",'Enrollment Form'!$CG273=\"No\"),\"-\",IF(AND('Enrollment Form'!$CG273=\"Yes\",'Enrollment Form'!$CI273=\"\"),\"N\",\"Y\"))","v":"-"},{"$f":"IF('Enrollment Form'!B273<>\"Subscriber\",\"-\",IF(AND('Enrollment Form'!B273=\"Subscriber\",'Enrollment Form'!C273=\"Enroll\",'Enrollment Form'!AA273=\"\"),\"N\",\"Y\"))","v":"-"},{"$f":"IF(OR('Enrollment Form'!B273=\"Subscriber\",'Enrollment Form'!B273=\"\"),\"-\",IF('Enrollment Form'!BI273=\"\",\"N\",\"Y\"))","v":"-"},{"$f":"IF('Enrollment Form'!B273<>\"Subscriber\",\"-\",IF(AND('Enrollment Form'!B273=\"Subscriber\",'Enrollment Form'!G273=\"\"),\"N\",\"Y\"))","v":"-"},{"$f":"IF('Enrollment Form'!A273=\"\",\"\",IF('Enrollment Form'!B273=\"Subscriber\",\"-\",IF(AND('Enrollment Form'!B273<>\"Subscriber\",'Enrollment Form'!G273='Enrollment Form'!H273),\"N\",\"Y\")))","v":""},0]
[274,{"$f":"IF('Enrollment Form'!$A274<>\"\",\"Y\",\"N\")","v":"N"},{"$f":"IF(AND('Enrollment Form'!$B274=\"\",'Enrollment Form'!$C274<>\"\"),\"N\",IF($B267=\"N\",\"\",\"Y\"))","v":""},{"$f":"IF(OR($B267=\"N\",'Enrollment Form'!G274=\"\"),\"\",IF('Enrollment Form'!$B274<>\"Subscriber\",\"\",IF('Enrollment Form'!$G274='Enrollment Form'!$H274,\"Y\",\"N\")))","v":""},{"$f":"IF($B267=\"N\",\"\",IF(AND(COUNTIFS('Enrollment Form'!$H$11:$H$1000,'Enrollment Form'!$H274,'Enrollment Form'!$B$11:$B$1000,'Enrollment Form'!$B274)>1,'Enrollment Form'!$H274<>\"\"),\"N\",\"Y\"))","v":""},{"$f":"IF($B267=\"N\",\"\",IF(LEN('Enrollment Form'!$Y274)=0,\"\",IF(LEN('Enrollment Form'!$Y274)<>5,\"N\",\"Y\")))","v":""},{"$f":"IF($B267=\"N\",\"\",IF(LEN('Enrollment Form'!$AD274=0),\"\",IF(LEN('Enrollment Form'!$AD274)<>5,\"N\",\"Y\")))","v":""},{"$f":"IF($B267=\"N\",\"\",IF(LEN('Enrollment Form'!$BL274=0),\"\",IF(LEN('Enrollment Form'!$BL274)<>5,\"N\",\"Y\")))","v":""},{"$f":"IF($B267=\"N\",\"\",IF(LEN('Enrollment Form'!$AE274)=0,\"\",IF(LEN('Enrollment Form'!$AE274)<>10,\"N\",\"Y\")))","v":""},{"$f":"IF($B267=\"N\",\"\",IF(LEN('Enrollment Form'!$AF274)=0,\"\",IF(LEN('Enrollment Form'!$AF274)<>10,\"N\",\"Y\")))","v":""},{"$f":"IF('Enrollment Form'!$O274<>\"Graded\",\"-\",IF(AND('Enrollment Form'!$O274=\"Graded\",'Enrollment Form'!$AO274<>\"\"),\"Y\",\"N\"))","v":"-"},{"$f":"IF($B267=\"N\",\"\",IF(OR('Enrollment Form'!$B274<>\"Subscriber\",'Enrollment Form'!$C274=\"ROC\"),\"-\",IF(AND('Enrollment Form'!$B274=\"Subscriber\",'Enrollment Form'!$C274=\"Enroll\",'Enrollment Form'!$AJ274<>\"\"),\"Y\",\"N\")))","v":""},{"$f":"IF($B267=\"N\",\"\",IF(OR('Enrollment Form'!$B274<>\"Subscriber\",'Enrollment Form'!$C274=\"ROC\"),\"-\",IF(AND('Enrollment Form'!$B274=\"Subscriber\",'Enrollment Form'!$C274=\"Enroll\",'Enrollment Form'!$AK274<>\"\"),\"Y\",\"N\")))","v":""},{"$f":"IF($B267=\"N\",\"\",IF(OR('Enrollment Form'!$B274<>\"Subscriber\",'Enrollment Form'!$C274=\"ROC\"),\"-\",IF(AND('Enrollment Form'!$B274=\"Subscriber\",'Enrollment Form'!$C274=\"Enroll\",'Enrollment Form'!$AL274<>\"\"),\"Y\",\"N\")))","v":""},{"$f":"IF($B267=\"N\",\"\",IF(OR('Enrollment Form'!$B274<>\"Subscriber\",'Enrollment Form'!$C274=\"ROC\"),\"-\",IF(AND('Enrollment Form'!$B274=\"Subscriber\",'Enrollment Form'!$C274=\"Enroll\",'Enrollment Form'!$AM274<>\"\"),\"Y\",\"N\")))","v":""},{"$f":"IF($B267=\"N\",\"\",IF(OR('Enrollment Form'!$B274<>\"Subscriber\",'Enrollment Form'!$C274=\"ROC\"),\"-\",IF(AND('Enrollment Form'!$B274=\"Subscriber\",'Enrollment Form'!$C274=\"Enroll\",'Enrollment Form'!$AN274<>\"\"),\"Y\",\"N\")))","v":""},{"$f":"IF($B267=\"N\",\"\",IF(OR('Enrollment Form'!$B274<>\"Subscriber\",'Enrollment Form'!$C274=\"ROC\"),\"-\",IF(AND('Enrollment Form'!$B274=\"Subscriber\",'Enrollment Form'!$C274=\"Enroll\",'Enrollment Form'!$AP274<>\"\"),\"Y\",\"N\")))","v":""},{"$f":"IF($B267=\"N\",\"\",IF($Q267=\"-\",\"-\",IF(AND($Q267=\"Y\",'Enrollment Form'!$AP274=\"No\"),\"-\",IF(AND($Q267=\"Y\",'Enrollment Form'!$AP274=\"Yes\",'Enrollment Form'!$AQ274<>\"\"),\"Y\",\"N\"))))","v":""},{"$f":"IF($B267=\"N\",\"\",IF(OR('Enrollment Form'!$B274<>\"Subscriber\",'Enrollment Form'!$C274=\"ROC\"),\"-\",IF(AND('Enrollment Form'!$B274=\"Subscriber\",'Enrollment Form'!$C274=\"Enroll\",'Enrollment Form'!$CO274<>\"\"),\"Y\",\"N\")))","v":""},{"$f":"IF($B267=\"N\",\"\",IF($S267=\"-\",\"-\",IF(AND($S267=\"Y\",'Enrollment Form'!$CO274=\"No\"),\"-\",IF(AND($S267=\"Y\",'Enrollment Form'!$CO274=\"Yes\",'Enrollment Form'!$CP274<>\"\"),\"Y\",\"N\"))))","v":""},{"$f":"IF(OR('Enrollment Form'!$AV274=\"Yes\",'Enrollment Form'!$AV274=\"\"),\"-\",IF(AND('Enrollment Form'!$AV274=\"No\",ISERROR(FIND(\"HMO\",VLOOKUP('Enrollment Form'!G274,'Enrollment Form'!H$11:J$1000,3,FALSE),1))=FALSE,COUNTA('Enrollment Form'!$AW274:$AZ274)=4),\"Y\",\"N\"))","v":"-"},{"$f":"IF($B267=\"N\",\"\",IF('Enrollment Form'!$B274=\"Subscriber\",\"-\",IF(COUNTA('Enrollment Form'!$BE274,'Enrollment Form'!$BG274)=2,\"Y\",\"N\")))","v":""},{"$f":"IF($B267=\"N\",\"\",IF(OR('Enrollment Form'!$AU274=\"\",'Enrollment Form'!$AU274=\"No\"),\"-\",IF(AND('Enrollment Form'!$AU274=\"Yes\",COUNTA('Enrollment Form'!$CK274)=1),\"Y\",\"N\")))","v":""},{"$f":"IF(OR('Enrollment Form'!$CK274=\"\",'Enrollment Form'!$CK274=\"No\"),\"-\",IF(COUNTA('Enrollment Form'!$CM274:$CN274)=2,\"Y\",\"N\"))","v":"-"},{"$f":"IF($B267=\"N\",\"\",IF(COUNTIF('Enrollment Form'!$CZ274:$DO274,\"Other\")=COUNTA('Enrollment Form'!$DF274,'Enrollment Form'!$DA274,'Enrollment Form'!$DK274,'Enrollment Form'!$DP274),\"Y\",\"N\"))","v":""},{"$f":"IF($B267=\"N\",\"\",IF(OR('Enrollment Form'!B274<>\"Subscriber\",'Enrollment Form'!C274=\"ROC\",COUNTIF('Enrollment Form'!AS274:AT274,\"Yes\")>=1),\"-\",IF(AND('Enrollment Form'!C274=\"Enroll\",COUNTIF('Enrollment Form'!AS274:AT274,\"No\")=2,'Enrollment Form'!AU274=\"\"),\"N\",\"Y\")))","v":""},{"$f":"IF(OR(B267=\"N\",'Enrollment Form'!B274<>\"Subscriber\",'Enrollment Form'!C274=\"ROC\",'Enrollment Form'!O274<>\"Multiple of Salary\"),\"-\",IF(COUNTA('Enrollment Form'!T274:U274)<2,\"N\",\"Y\"))","v":"-"},{"$f":"IF(B267=\"N\",\"\",IF(OR('Enrollment Form'!C274=\"ROC\",'Enrollment Form'!B274<>\"Subscriber\",'Enrollment Form'!O274=\"Waive\",'Enrollment Form'!O274=\"\"),\"-\",IF('Enrollment Form'!P274=\"\",\"N\",\"Y\")))","v":""},{"$f":"IF($B267=\"N\",\"\",IF(AND('Enrollment Form'!$C274=\"ROC\",'Enrollment Form'!$DS274<>\"\"),\"Y\",IF(AND('Enrollment Form'!$C274=\"ROC\",'Enrollment Form'!$DS274=\"\"),\"N\",IF(AND('Enrollment Form'!$C274=\"Enroll\",'Enrollment Form'!$B274=\"Subscriber\",'Enrollment Form'!$CQ274=\"No\",'Enrollment Form'!$DS274=\"\"),\"N\",IF(AND('Enrollment Form'!$C274=\"Enroll\",'Enrollment Form'!$B274=\"Subscriber\",'Enrollment Form'!$CQ274=\"Yes\"),\"-\",\"Y\")))))","v":""},{"$f":"IF($B267=\"N\",\"\",IF(AND('Enrollment Form'!$C274=\"ROC\",'Enrollment Form'!$DT274<>\"\"),\"Y\",IF(AND('Enrollment Form'!$C274=\"ROC\",'Enrollment Form'!$DT274=\"\"),\"N\",IF(AND('Enrollment Form'!$C274=\"Enroll\",'Enrollment Form'!$B274=\"Subscriber\",'Enrollment Form'!$CQ274=\"No\",'Enrollment Form'!$DT274=\"\"),\"N\",IF(AND('Enrollment Form'!$C274=\"Enroll\",'Enrollment Form'!$B274=\"Subscriber\",'Enrollment Form'!$CQ274=\"Yes\"),\"-\",\"Y\")))))","v":""},{"$f":"IF('Enrollment Form'!AH274=\"\",\"\",IF(ISERROR(SEARCH(\".\",'Enrollment Form'!AH274,SEARCH(\"@\",'Enrollment Form'!AH274))),\"N\",\"Y\"))","v":""},{"$f":"IF(OR($B267=\"N\",'Enrollment Form'!$G274=\"\"),\"\",IF('Enrollment Form'!$B274<>\"Subscriber\",\"-\",IF(COUNTIF('Enrollment Form'!$AS274:$AT274,\"Yes\")=2,\"N\",\"Y\")))","v":""},{"$f":"IF(OR('Enrollment Form'!$CC274=\"\",'Enrollment Form'!$CC274=\"No\"),\"-\",IF(AND('Enrollment Form'!$CC274=\"Yes\",'Enrollment Form'!$CD274=\"\"),\"N\",\"Y\"))","v":"-"},{"$f":"IF(OR('Enrollment Form'!$CE274=\"\",'Enrollment Form'!$CE274=\"No\"),\"-\",IF(AND('Enrollment Form'!$CE274=\"Yes\",'Enrollment Form'!$CF274=\"\"),\"N\",\"Y\"))","v":"-"},{"$f":"IF(OR('Enrollment Form'!$CG274=\"\",'Enrollment Form'!$CG274=\"No\"),\"-\",IF(AND('Enrollment Form'!$CG274=\"Yes\",'Enrollment Form'!$CH274=\"\"),\"N\",\"Y\"))","v":"-"},{"$f":"IF(OR('Enrollment Form'!$CG274=\"\",'Enrollment Form'!$CG274=\"No\"),\"-\",IF(AND('Enrollment Form'!$CG274=\"Yes\",'Enrollment Form'!$CI274=\"\"),\"N\",\"Y\"))","v":"-"},{"$f":"IF('Enrollment Form'!B274<>\"Subscriber\",\"-\",IF(AND('Enrollment Form'!B274=\"Subscriber\",'Enrollment Form'!C274=\"Enroll\",'Enrollment Form'!AA274=\"\"),\"N\",\"Y\"))","v":"-"},{"$f":"IF(OR('Enrollment Form'!B274=\"Subscriber\",'Enrollment Form'!B274=\"\"),\"-\",IF('Enrollment Form'!BI274=\"\",\"N\",\"Y\"))","v":"-"},{"$f":"IF('Enrollment Form'!B274<>\"Subscriber\",\"-\",IF(AND('Enrollment Form'!B274=\"Subscriber\",'Enrollment Form'!G274=\"\"),\"N\",\"Y\"))","v":"-"},{"$f":"IF('Enrollment Form'!A274=\"\",\"\",IF('Enrollment Form'!B274=\"Subscriber\",\"-\",IF(AND('Enrollment Form'!B274<>\"Subscriber\",'Enrollment Form'!G274='Enrollment Form'!H274),\"N\",\"Y\")))","v":""},0]
[275,{"$f":"IF('Enrollment Form'!$A275<>\"\",\"Y\",\"N\")","v":"N"},{"$f":"IF(AND('Enrollment Form'!$B275=\"\",'Enrollment Form'!$C275<>\"\"),\"N\",IF($B268=\"N\",\"\",\"Y\"))","v":""},{"$f":"IF(OR($B268=\"N\",'Enrollment Form'!G275=\"\"),\"\",IF('Enrollment Form'!$B275<>\"Subscriber\",\"\",IF('Enrollment Form'!$G275='Enrollment Form'!$H275,\"Y\",\"N\")))","v":""},{"$f":"IF($B268=\"N\",\"\",IF(AND(COUNTIFS('Enrollment Form'!$H$11:$H$1000,'Enrollment Form'!$H275,'Enrollment Form'!$B$11:$B$1000,'Enrollment Form'!$B275)>1,'Enrollment Form'!$H275<>\"\"),\"N\",\"Y\"))","v":""},{"$f":"IF($B268=\"N\",\"\",IF(LEN('Enrollment Form'!$Y275)=0,\"\",IF(LEN('Enrollment Form'!$Y275)<>5,\"N\",\"Y\")))","v":""},{"$f":"IF($B268=\"N\",\"\",IF(LEN('Enrollment Form'!$AD275=0),\"\",IF(LEN('Enrollment Form'!$AD275)<>5,\"N\",\"Y\")))","v":""},{"$f":"IF($B268=\"N\",\"\",IF(LEN('Enrollment Form'!$BL275=0),\"\",IF(LEN('Enrollment Form'!$BL275)<>5,\"N\",\"Y\")))","v":""},{"$f":"IF($B268=\"N\",\"\",IF(LEN('Enrollment Form'!$AE275)=0,\"\",IF(LEN('Enrollment Form'!$AE275)<>10,\"N\",\"Y\")))","v":""},{"$f":"IF($B268=\"N\",\"\",IF(LEN('Enrollment Form'!$AF275)=0,\"\",IF(LEN('Enrollment Form'!$AF275)<>10,\"N\",\"Y\")))","v":""},{"$f":"IF('Enrollment Form'!$O275<>\"Graded\",\"-\",IF(AND('Enrollment Form'!$O275=\"Graded\",'Enrollment Form'!$AO275<>\"\"),\"Y\",\"N\"))","v":"-"},{"$f":"IF($B268=\"N\",\"\",IF(OR('Enrollment Form'!$B275<>\"Subscriber\",'Enrollment Form'!$C275=\"ROC\"),\"-\",IF(AND('Enrollment Form'!$B275=\"Subscriber\",'Enrollment Form'!$C275=\"Enroll\",'Enrollment Form'!$AJ275<>\"\"),\"Y\",\"N\")))","v":""},{"$f":"IF($B268=\"N\",\"\",IF(OR('Enrollment Form'!$B275<>\"Subscriber\",'Enrollment Form'!$C275=\"ROC\"),\"-\",IF(AND('Enrollment Form'!$B275=\"Subscriber\",'Enrollment Form'!$C275=\"Enroll\",'Enrollment Form'!$AK275<>\"\"),\"Y\",\"N\")))","v":""},{"$f":"IF($B268=\"N\",\"\",IF(OR('Enrollment Form'!$B275<>\"Subscriber\",'Enrollment Form'!$C275=\"ROC\"),\"-\",IF(AND('Enrollment Form'!$B275=\"Subscriber\",'Enrollment Form'!$C275=\"Enroll\",'Enrollment Form'!$AL275<>\"\"),\"Y\",\"N\")))","v":""},{"$f":"IF($B268=\"N\",\"\",IF(OR('Enrollment Form'!$B275<>\"Subscriber\",'Enrollment Form'!$C275=\"ROC\"),\"-\",IF(AND('Enrollment Form'!$B275=\"Subscriber\",'Enrollment Form'!$C275=\"Enroll\",'Enrollment Form'!$AM275<>\"\"),\"Y\",\"N\")))","v":""},{"$f":"IF($B268=\"N\",\"\",IF(OR('Enrollment Form'!$B275<>\"Subscriber\",'Enrollment Form'!$C275=\"ROC\"),\"-\",IF(AND('Enrollment Form'!$B275=\"Subscriber\",'Enrollment Form'!$C275=\"Enroll\",'Enrollment Form'!$AN275<>\"\"),\"Y\",\"N\")))","v":""},{"$f":"IF($B268=\"N\",\"\",IF(OR('Enrollment Form'!$B275<>\"Subscriber\",'Enrollment Form'!$C275=\"ROC\"),\"-\",IF(AND('Enrollment Form'!$B275=\"Subscriber\",'Enrollment Form'!$C275=\"Enroll\",'Enrollment Form'!$AP275<>\"\"),\"Y\",\"N\")))","v":""},{"$f":"IF($B268=\"N\",\"\",IF($Q268=\"-\",\"-\",IF(AND($Q268=\"Y\",'Enrollment Form'!$AP275=\"No\"),\"-\",IF(AND($Q268=\"Y\",'Enrollment Form'!$AP275=\"Yes\",'Enrollment Form'!$AQ275<>\"\"),\"Y\",\"N\"))))","v":""},{"$f":"IF($B268=\"N\",\"\",IF(OR('Enrollment Form'!$B275<>\"Subscriber\",'Enrollment Form'!$C275=\"ROC\"),\"-\",IF(AND('Enrollment Form'!$B275=\"Subscriber\",'Enrollment Form'!$C275=\"Enroll\",'Enrollment Form'!$CO275<>\"\"),\"Y\",\"N\")))","v":""},{"$f":"IF($B268=\"N\",\"\",IF($S268=\"-\",\"-\",IF(AND($S268=\"Y\",'Enrollment Form'!$CO275=\"No\"),\"-\",IF(AND($S268=\"Y\",'Enrollment Form'!$CO275=\"Yes\",'Enrollment Form'!$CP275<>\"\"),\"Y\",\"N\"))))","v":""},{"$f":"IF(OR('Enrollment Form'!$AV275=\"Yes\",'Enrollment Form'!$AV275=\"\"),\"-\",IF(AND('Enrollment Form'!$AV275=\"No\",ISERROR(FIND(\"HMO\",VLOOKUP('Enrollment Form'!G275,'Enrollment Form'!H$11:J$1000,3,FALSE),1))=FALSE,COUNTA('Enrollment Form'!$AW275:$AZ275)=4),\"Y\",\"N\"))","v":"-"},{"$f":"IF($B268=\"N\",\"\",IF('Enrollment Form'!$B275=\"Subscriber\",\"-\",IF(COUNTA('Enrollment Form'!$BE275,'Enrollment Form'!$BG275)=2,\"Y\",\"N\")))","v":""},{"$f":"IF($B268=\"N\",\"\",IF(OR('Enrollment Form'!$AU275=\"\",'Enrollment Form'!$AU275=\"No\"),\"-\",IF(AND('Enrollment Form'!$AU275=\"Yes\",COUNTA('Enrollment Form'!$CK275)=1),\"Y\",\"N\")))","v":""},{"$f":"IF(OR('Enrollment Form'!$CK275=\"\",'Enrollment Form'!$CK275=\"No\"),\"-\",IF(COUNTA('Enrollment Form'!$CM275:$CN275)=2,\"Y\",\"N\"))","v":"-"},{"$f":"IF($B268=\"N\",\"\",IF(COUNTIF('Enrollment Form'!$CZ275:$DO275,\"Other\")=COUNTA('Enrollment Form'!$DF275,'Enrollment Form'!$DA275,'Enrollment Form'!$DK275,'Enrollment Form'!$DP275),\"Y\",\"N\"))","v":""},{"$f":"IF($B268=\"N\",\"\",IF(OR('Enrollment Form'!B275<>\"Subscriber\",'Enrollment Form'!C275=\"ROC\",COUNTIF('Enrollment Form'!AS275:AT275,\"Yes\")>=1),\"-\",IF(AND('Enrollment Form'!C275=\"Enroll\",COUNTIF('Enrollment Form'!AS275:AT275,\"No\")=2,'Enrollment Form'!AU275=\"\"),\"N\",\"Y\")))","v":""},{"$f":"IF(OR(B268=\"N\",'Enrollment Form'!B275<>\"Subscriber\",'Enrollment Form'!C275=\"ROC\",'Enrollment Form'!O275<>\"Multiple of Salary\"),\"-\",IF(COUNTA('Enrollment Form'!T275:U275)<2,\"N\",\"Y\"))","v":"-"},{"$f":"IF(B268=\"N\",\"\",IF(OR('Enrollment Form'!C275=\"ROC\",'Enrollment Form'!B275<>\"Subscriber\",'Enrollment Form'!O275=\"Waive\",'Enrollment Form'!O275=\"\"),\"-\",IF('Enrollment Form'!P275=\"\",\"N\",\"Y\")))","v":""},{"$f":"IF($B268=\"N\",\"\",IF(AND('Enrollment Form'!$C275=\"ROC\",'Enrollment Form'!$DS275<>\"\"),\"Y\",IF(AND('Enrollment Form'!$C275=\"ROC\",'Enrollment Form'!$DS275=\"\"),\"N\",IF(AND('Enrollment Form'!$C275=\"Enroll\",'Enrollment Form'!$B275=\"Subscriber\",'Enrollment Form'!$CQ275=\"No\",'Enrollment Form'!$DS275=\"\"),\"N\",IF(AND('Enrollment Form'!$C275=\"Enroll\",'Enrollment Form'!$B275=\"Subscriber\",'Enrollment Form'!$CQ275=\"Yes\"),\"-\",\"Y\")))))","v":""},{"$f":"IF($B268=\"N\",\"\",IF(AND('Enrollment Form'!$C275=\"ROC\",'Enrollment Form'!$DT275<>\"\"),\"Y\",IF(AND('Enrollment Form'!$C275=\"ROC\",'Enrollment Form'!$DT275=\"\"),\"N\",IF(AND('Enrollment Form'!$C275=\"Enroll\",'Enrollment Form'!$B275=\"Subscriber\",'Enrollment Form'!$CQ275=\"No\",'Enrollment Form'!$DT275=\"\"),\"N\",IF(AND('Enrollment Form'!$C275=\"Enroll\",'Enrollment Form'!$B275=\"Subscriber\",'Enrollment Form'!$CQ275=\"Yes\"),\"-\",\"Y\")))))","v":""},{"$f":"IF('Enrollment Form'!AH275=\"\",\"\",IF(ISERROR(SEARCH(\".\",'Enrollment Form'!AH275,SEARCH(\"@\",'Enrollment Form'!AH275))),\"N\",\"Y\"))","v":""},{"$f":"IF(OR($B268=\"N\",'Enrollment Form'!$G275=\"\"),\"\",IF('Enrollment Form'!$B275<>\"Subscriber\",\"-\",IF(COUNTIF('Enrollment Form'!$AS275:$AT275,\"Yes\")=2,\"N\",\"Y\")))","v":""},{"$f":"IF(OR('Enrollment Form'!$CC275=\"\",'Enrollment Form'!$CC275=\"No\"),\"-\",IF(AND('Enrollment Form'!$CC275=\"Yes\",'Enrollment Form'!$CD275=\"\"),\"N\",\"Y\"))","v":"-"},{"$f":"IF(OR('Enrollment Form'!$CE275=\"\",'Enrollment Form'!$CE275=\"No\"),\"-\",IF(AND('Enrollment Form'!$CE275=\"Yes\",'Enrollment Form'!$CF275=\"\"),\"N\",\"Y\"))","v":"-"},{"$f":"IF(OR('Enrollment Form'!$CG275=\"\",'Enrollment Form'!$CG275=\"No\"),\"-\",IF(AND('Enrollment Form'!$CG275=\"Yes\",'Enrollment Form'!$CH275=\"\"),\"N\",\"Y\"))","v":"-"},{"$f":"IF(OR('Enrollment Form'!$CG275=\"\",'Enrollment Form'!$CG275=\"No\"),\"-\",IF(AND('Enrollment Form'!$CG275=\"Yes\",'Enrollment Form'!$CI275=\"\"),\"N\",\"Y\"))","v":"-"},{"$f":"IF('Enrollment Form'!B275<>\"Subscriber\",\"-\",IF(AND('Enrollment Form'!B275=\"Subscriber\",'Enrollment Form'!C275=\"Enroll\",'Enrollment Form'!AA275=\"\"),\"N\",\"Y\"))","v":"-"},{"$f":"IF(OR('Enrollment Form'!B275=\"Subscriber\",'Enrollment Form'!B275=\"\"),\"-\",IF('Enrollment Form'!BI275=\"\",\"N\",\"Y\"))","v":"-"},{"$f":"IF('Enrollment Form'!B275<>\"Subscriber\",\"-\",IF(AND('Enrollment Form'!B275=\"Subscriber\",'Enrollment Form'!G275=\"\"),\"N\",\"Y\"))","v":"-"},{"$f":"IF('Enrollment Form'!A275=\"\",\"\",IF('Enrollment Form'!B275=\"Subscriber\",\"-\",IF(AND('Enrollment Form'!B275<>\"Subscriber\",'Enrollment Form'!G275='Enrollment Form'!H275),\"N\",\"Y\")))","v":""},0]
[276,{"$f":"IF('Enrollment Form'!$A276<>\"\",\"Y\",\"N\")","v":"N"},{"$f":"IF(AND('Enrollment Form'!$B276=\"\",'Enrollment Form'!$C276<>\"\"),\"N\",IF($B269=\"N\",\"\",\"Y\"))","v":""},{"$f":"IF(OR($B269=\"N\",'Enrollment Form'!G276=\"\"),\"\",IF('Enrollment Form'!$B276<>\"Subscriber\",\"\",IF('Enrollment Form'!$G276='Enrollment Form'!$H276,\"Y\",\"N\")))","v":""},{"$f":"IF($B269=\"N\",\"\",IF(AND(COUNTIFS('Enrollment Form'!$H$11:$H$1000,'Enrollment Form'!$H276,'Enrollment Form'!$B$11:$B$1000,'Enrollment Form'!$B276)>1,'Enrollment Form'!$H276<>\"\"),\"N\",\"Y\"))","v":""},{"$f":"IF($B269=\"N\",\"\",IF(LEN('Enrollment Form'!$Y276)=0,\"\",IF(LEN('Enrollment Form'!$Y276)<>5,\"N\",\"Y\")))","v":""},{"$f":"IF($B269=\"N\",\"\",IF(LEN('Enrollment Form'!$AD276=0),\"\",IF(LEN('Enrollment Form'!$AD276)<>5,\"N\",\"Y\")))","v":""},{"$f":"IF($B269=\"N\",\"\",IF(LEN('Enrollment Form'!$BL276=0),\"\",IF(LEN('Enrollment Form'!$BL276)<>5,\"N\",\"Y\")))","v":""},{"$f":"IF($B269=\"N\",\"\",IF(LEN('Enrollment Form'!$AE276)=0,\"\",IF(LEN('Enrollment Form'!$AE276)<>10,\"N\",\"Y\")))","v":""},{"$f":"IF($B269=\"N\",\"\",IF(LEN('Enrollment Form'!$AF276)=0,\"\",IF(LEN('Enrollment Form'!$AF276)<>10,\"N\",\"Y\")))","v":""},{"$f":"IF('Enrollment Form'!$O276<>\"Graded\",\"-\",IF(AND('Enrollment Form'!$O276=\"Graded\",'Enrollment Form'!$AO276<>\"\"),\"Y\",\"N\"))","v":"-"},{"$f":"IF($B269=\"N\",\"\",IF(OR('Enrollment Form'!$B276<>\"Subscriber\",'Enrollment Form'!$C276=\"ROC\"),\"-\",IF(AND('Enrollment Form'!$B276=\"Subscriber\",'Enrollment Form'!$C276=\"Enroll\",'Enrollment Form'!$AJ276<>\"\"),\"Y\",\"N\")))","v":""},{"$f":"IF($B269=\"N\",\"\",IF(OR('Enrollment Form'!$B276<>\"Subscriber\",'Enrollment Form'!$C276=\"ROC\"),\"-\",IF(AND('Enrollment Form'!$B276=\"Subscriber\",'Enrollment Form'!$C276=\"Enroll\",'Enrollment Form'!$AK276<>\"\"),\"Y\",\"N\")))","v":""},{"$f":"IF($B269=\"N\",\"\",IF(OR('Enrollment Form'!$B276<>\"Subscriber\",'Enrollment Form'!$C276=\"ROC\"),\"-\",IF(AND('Enrollment Form'!$B276=\"Subscriber\",'Enrollment Form'!$C276=\"Enroll\",'Enrollment Form'!$AL276<>\"\"),\"Y\",\"N\")))","v":""},{"$f":"IF($B269=\"N\",\"\",IF(OR('Enrollment Form'!$B276<>\"Subscriber\",'Enrollment Form'!$C276=\"ROC\"),\"-\",IF(AND('Enrollment Form'!$B276=\"Subscriber\",'Enrollment Form'!$C276=\"Enroll\",'Enrollment Form'!$AM276<>\"\"),\"Y\",\"N\")))","v":""},{"$f":"IF($B269=\"N\",\"\",IF(OR('Enrollment Form'!$B276<>\"Subscriber\",'Enrollment Form'!$C276=\"ROC\"),\"-\",IF(AND('Enrollment Form'!$B276=\"Subscriber\",'Enrollment Form'!$C276=\"Enroll\",'Enrollment Form'!$AN276<>\"\"),\"Y\",\"N\")))","v":""},{"$f":"IF($B269=\"N\",\"\",IF(OR('Enrollment Form'!$B276<>\"Subscriber\",'Enrollment Form'!$C276=\"ROC\"),\"-\",IF(AND('Enrollment Form'!$B276=\"Subscriber\",'Enrollment Form'!$C276=\"Enroll\",'Enrollment Form'!$AP276<>\"\"),\"Y\",\"N\")))","v":""},{"$f":"IF($B269=\"N\",\"\",IF($Q269=\"-\",\"-\",IF(AND($Q269=\"Y\",'Enrollment Form'!$AP276=\"No\"),\"-\",IF(AND($Q269=\"Y\",'Enrollment Form'!$AP276=\"Yes\",'Enrollment Form'!$AQ276<>\"\"),\"Y\",\"N\"))))","v":""},{"$f":"IF($B269=\"N\",\"\",IF(OR('Enrollment Form'!$B276<>\"Subscriber\",'Enrollment Form'!$C276=\"ROC\"),\"-\",IF(AND('Enrollment Form'!$B276=\"Subscriber\",'Enrollment Form'!$C276=\"Enroll\",'Enrollment Form'!$CO276<>\"\"),\"Y\",\"N\")))","v":""},{"$f":"IF($B269=\"N\",\"\",IF($S269=\"-\",\"-\",IF(AND($S269=\"Y\",'Enrollment Form'!$CO276=\"No\"),\"-\",IF(AND($S269=\"Y\",'Enrollment Form'!$CO276=\"Yes\",'Enrollment Form'!$CP276<>\"\"),\"Y\",\"N\"))))","v":""},{"$f":"IF(OR('Enrollment Form'!$AV276=\"Yes\",'Enrollment Form'!$AV276=\"\"),\"-\",IF(AND('Enrollment Form'!$AV276=\"No\",ISERROR(FIND(\"HMO\",VLOOKUP('Enrollment Form'!G276,'Enrollment Form'!H$11:J$1000,3,FALSE),1))=FALSE,COUNTA('Enrollment Form'!$AW276:$AZ276)=4),\"Y\",\"N\"))","v":"-"},{"$f":"IF($B269=\"N\",\"\",IF('Enrollment Form'!$B276=\"Subscriber\",\"-\",IF(COUNTA('Enrollment Form'!$BE276,'Enrollment Form'!$BG276)=2,\"Y\",\"N\")))","v":""},{"$f":"IF($B269=\"N\",\"\",IF(OR('Enrollment Form'!$AU276=\"\",'Enrollment Form'!$AU276=\"No\"),\"-\",IF(AND('Enrollment Form'!$AU276=\"Yes\",COUNTA('Enrollment Form'!$CK276)=1),\"Y\",\"N\")))","v":""},{"$f":"IF(OR('Enrollment Form'!$CK276=\"\",'Enrollment Form'!$CK276=\"No\"),\"-\",IF(COUNTA('Enrollment Form'!$CM276:$CN276)=2,\"Y\",\"N\"))","v":"-"},{"$f":"IF($B269=\"N\",\"\",IF(COUNTIF('Enrollment Form'!$CZ276:$DO276,\"Other\")=COUNTA('Enrollment Form'!$DF276,'Enrollment Form'!$DA276,'Enrollment Form'!$DK276,'Enrollment Form'!$DP276),\"Y\",\"N\"))","v":""},{"$f":"IF($B269=\"N\",\"\",IF(OR('Enrollment Form'!B276<>\"Subscriber\",'Enrollment Form'!C276=\"ROC\",COUNTIF('Enrollment Form'!AS276:AT276,\"Yes\")>=1),\"-\",IF(AND('Enrollment Form'!C276=\"Enroll\",COUNTIF('Enrollment Form'!AS276:AT276,\"No\")=2,'Enrollment Form'!AU276=\"\"),\"N\",\"Y\")))","v":""},{"$f":"IF(OR(B269=\"N\",'Enrollment Form'!B276<>\"Subscriber\",'Enrollment Form'!C276=\"ROC\",'Enrollment Form'!O276<>\"Multiple of Salary\"),\"-\",IF(COUNTA('Enrollment Form'!T276:U276)<2,\"N\",\"Y\"))","v":"-"},{"$f":"IF(B269=\"N\",\"\",IF(OR('Enrollment Form'!C276=\"ROC\",'Enrollment Form'!B276<>\"Subscriber\",'Enrollment Form'!O276=\"Waive\",'Enrollment Form'!O276=\"\"),\"-\",IF('Enrollment Form'!P276=\"\",\"N\",\"Y\")))","v":""},{"$f":"IF($B269=\"N\",\"\",IF(AND('Enrollment Form'!$C276=\"ROC\",'Enrollment Form'!$DS276<>\"\"),\"Y\",IF(AND('Enrollment Form'!$C276=\"ROC\",'Enrollment Form'!$DS276=\"\"),\"N\",IF(AND('Enrollment Form'!$C276=\"Enroll\",'Enrollment Form'!$B276=\"Subscriber\",'Enrollment Form'!$CQ276=\"No\",'Enrollment Form'!$DS276=\"\"),\"N\",IF(AND('Enrollment Form'!$C276=\"Enroll\",'Enrollment Form'!$B276=\"Subscriber\",'Enrollment Form'!$CQ276=\"Yes\"),\"-\",\"Y\")))))","v":""},{"$f":"IF($B269=\"N\",\"\",IF(AND('Enrollment Form'!$C276=\"ROC\",'Enrollment Form'!$DT276<>\"\"),\"Y\",IF(AND('Enrollment Form'!$C276=\"ROC\",'Enrollment Form'!$DT276=\"\"),\"N\",IF(AND('Enrollment Form'!$C276=\"Enroll\",'Enrollment Form'!$B276=\"Subscriber\",'Enrollment Form'!$CQ276=\"No\",'Enrollment Form'!$DT276=\"\"),\"N\",IF(AND('Enrollment Form'!$C276=\"Enroll\",'Enrollment Form'!$B276=\"Subscriber\",'Enrollment Form'!$CQ276=\"Yes\"),\"-\",\"Y\")))))","v":""},{"$f":"IF('Enrollment Form'!AH276=\"\",\"\",IF(ISERROR(SEARCH(\".\",'Enrollment Form'!AH276,SEARCH(\"@\",'Enrollment Form'!AH276))),\"N\",\"Y\"))","v":""},{"$f":"IF(OR($B269=\"N\",'Enrollment Form'!$G276=\"\"),\"\",IF('Enrollment Form'!$B276<>\"Subscriber\",\"-\",IF(COUNTIF('Enrollment Form'!$AS276:$AT276,\"Yes\")=2,\"N\",\"Y\")))","v":""},{"$f":"IF(OR('Enrollment Form'!$CC276=\"\",'Enrollment Form'!$CC276=\"No\"),\"-\",IF(AND('Enrollment Form'!$CC276=\"Yes\",'Enrollment Form'!$CD276=\"\"),\"N\",\"Y\"))","v":"-"},{"$f":"IF(OR('Enrollment Form'!$CE276=\"\",'Enrollment Form'!$CE276=\"No\"),\"-\",IF(AND('Enrollment Form'!$CE276=\"Yes\",'Enrollment Form'!$CF276=\"\"),\"N\",\"Y\"))","v":"-"},{"$f":"IF(OR('Enrollment Form'!$CG276=\"\",'Enrollment Form'!$CG276=\"No\"),\"-\",IF(AND('Enrollment Form'!$CG276=\"Yes\",'Enrollment Form'!$CH276=\"\"),\"N\",\"Y\"))","v":"-"},{"$f":"IF(OR('Enrollment Form'!$CG276=\"\",'Enrollment Form'!$CG276=\"No\"),\"-\",IF(AND('Enrollment Form'!$CG276=\"Yes\",'Enrollment Form'!$CI276=\"\"),\"N\",\"Y\"))","v":"-"},{"$f":"IF('Enrollment Form'!B276<>\"Subscriber\",\"-\",IF(AND('Enrollment Form'!B276=\"Subscriber\",'Enrollment Form'!C276=\"Enroll\",'Enrollment Form'!AA276=\"\"),\"N\",\"Y\"))","v":"-"},{"$f":"IF(OR('Enrollment Form'!B276=\"Subscriber\",'Enrollment Form'!B276=\"\"),\"-\",IF('Enrollment Form'!BI276=\"\",\"N\",\"Y\"))","v":"-"},{"$f":"IF('Enrollment Form'!B276<>\"Subscriber\",\"-\",IF(AND('Enrollment Form'!B276=\"Subscriber\",'Enrollment Form'!G276=\"\"),\"N\",\"Y\"))","v":"-"},{"$f":"IF('Enrollment Form'!A276=\"\",\"\",IF('Enrollment Form'!B276=\"Subscriber\",\"-\",IF(AND('Enrollment Form'!B276<>\"Subscriber\",'Enrollment Form'!G276='Enrollment Form'!H276),\"N\",\"Y\")))","v":""},0]
[277,{"$f":"IF('Enrollment Form'!$A277<>\"\",\"Y\",\"N\")","v":"N"},{"$f":"IF(AND('Enrollment Form'!$B277=\"\",'Enrollment Form'!$C277<>\"\"),\"N\",IF($B270=\"N\",\"\",\"Y\"))","v":""},{"$f":"IF(OR($B270=\"N\",'Enrollment Form'!G277=\"\"),\"\",IF('Enrollment Form'!$B277<>\"Subscriber\",\"\",IF('Enrollment Form'!$G277='Enrollment Form'!$H277,\"Y\",\"N\")))","v":""},{"$f":"IF($B270=\"N\",\"\",IF(AND(COUNTIFS('Enrollment Form'!$H$11:$H$1000,'Enrollment Form'!$H277,'Enrollment Form'!$B$11:$B$1000,'Enrollment Form'!$B277)>1,'Enrollment Form'!$H277<>\"\"),\"N\",\"Y\"))","v":""},{"$f":"IF($B270=\"N\",\"\",IF(LEN('Enrollment Form'!$Y277)=0,\"\",IF(LEN('Enrollment Form'!$Y277)<>5,\"N\",\"Y\")))","v":""},{"$f":"IF($B270=\"N\",\"\",IF(LEN('Enrollment Form'!$AD277=0),\"\",IF(LEN('Enrollment Form'!$AD277)<>5,\"N\",\"Y\")))","v":""},{"$f":"IF($B270=\"N\",\"\",IF(LEN('Enrollment Form'!$BL277=0),\"\",IF(LEN('Enrollment Form'!$BL277)<>5,\"N\",\"Y\")))","v":""},{"$f":"IF($B270=\"N\",\"\",IF(LEN('Enrollment Form'!$AE277)=0,\"\",IF(LEN('Enrollment Form'!$AE277)<>10,\"N\",\"Y\")))","v":""},{"$f":"IF($B270=\"N\",\"\",IF(LEN('Enrollment Form'!$AF277)=0,\"\",IF(LEN('Enrollment Form'!$AF277)<>10,\"N\",\"Y\")))","v":""},{"$f":"IF('Enrollment Form'!$O277<>\"Graded\",\"-\",IF(AND('Enrollment Form'!$O277=\"Graded\",'Enrollment Form'!$AO277<>\"\"),\"Y\",\"N\"))","v":"-"},{"$f":"IF($B270=\"N\",\"\",IF(OR('Enrollment Form'!$B277<>\"Subscriber\",'Enrollment Form'!$C277=\"ROC\"),\"-\",IF(AND('Enrollment Form'!$B277=\"Subscriber\",'Enrollment Form'!$C277=\"Enroll\",'Enrollment Form'!$AJ277<>\"\"),\"Y\",\"N\")))","v":""},{"$f":"IF($B270=\"N\",\"\",IF(OR('Enrollment Form'!$B277<>\"Subscriber\",'Enrollment Form'!$C277=\"ROC\"),\"-\",IF(AND('Enrollment Form'!$B277=\"Subscriber\",'Enrollment Form'!$C277=\"Enroll\",'Enrollment Form'!$AK277<>\"\"),\"Y\",\"N\")))","v":""},{"$f":"IF($B270=\"N\",\"\",IF(OR('Enrollment Form'!$B277<>\"Subscriber\",'Enrollment Form'!$C277=\"ROC\"),\"-\",IF(AND('Enrollment Form'!$B277=\"Subscriber\",'Enrollment Form'!$C277=\"Enroll\",'Enrollment Form'!$AL277<>\"\"),\"Y\",\"N\")))","v":""},{"$f":"IF($B270=\"N\",\"\",IF(OR('Enrollment Form'!$B277<>\"Subscriber\",'Enrollment Form'!$C277=\"ROC\"),\"-\",IF(AND('Enrollment Form'!$B277=\"Subscriber\",'Enrollment Form'!$C277=\"Enroll\",'Enrollment Form'!$AM277<>\"\"),\"Y\",\"N\")))","v":""},{"$f":"IF($B270=\"N\",\"\",IF(OR('Enrollment Form'!$B277<>\"Subscriber\",'Enrollment Form'!$C277=\"ROC\"),\"-\",IF(AND('Enrollment Form'!$B277=\"Subscriber\",'Enrollment Form'!$C277=\"Enroll\",'Enrollment Form'!$AN277<>\"\"),\"Y\",\"N\")))","v":""},{"$f":"IF($B270=\"N\",\"\",IF(OR('Enrollment Form'!$B277<>\"Subscriber\",'Enrollment Form'!$C277=\"ROC\"),\"-\",IF(AND('Enrollment Form'!$B277=\"Subscriber\",'Enrollment Form'!$C277=\"Enroll\",'Enrollment Form'!$AP277<>\"\"),\"Y\",\"N\")))","v":""},{"$f":"IF($B270=\"N\",\"\",IF($Q270=\"-\",\"-\",IF(AND($Q270=\"Y\",'Enrollment Form'!$AP277=\"No\"),\"-\",IF(AND($Q270=\"Y\",'Enrollment Form'!$AP277=\"Yes\",'Enrollment Form'!$AQ277<>\"\"),\"Y\",\"N\"))))","v":""},{"$f":"IF($B270=\"N\",\"\",IF(OR('Enrollment Form'!$B277<>\"Subscriber\",'Enrollment Form'!$C277=\"ROC\"),\"-\",IF(AND('Enrollment Form'!$B277=\"Subscriber\",'Enrollment Form'!$C277=\"Enroll\",'Enrollment Form'!$CO277<>\"\"),\"Y\",\"N\")))","v":""},{"$f":"IF($B270=\"N\",\"\",IF($S270=\"-\",\"-\",IF(AND($S270=\"Y\",'Enrollment Form'!$CO277=\"No\"),\"-\",IF(AND($S270=\"Y\",'Enrollment Form'!$CO277=\"Yes\",'Enrollment Form'!$CP277<>\"\"),\"Y\",\"N\"))))","v":""},{"$f":"IF(OR('Enrollment Form'!$AV277=\"Yes\",'Enrollment Form'!$AV277=\"\"),\"-\",IF(AND('Enrollment Form'!$AV277=\"No\",ISERROR(FIND(\"HMO\",VLOOKUP('Enrollment Form'!G277,'Enrollment Form'!H$11:J$1000,3,FALSE),1))=FALSE,COUNTA('Enrollment Form'!$AW277:$AZ277)=4),\"Y\",\"N\"))","v":"-"},{"$f":"IF($B270=\"N\",\"\",IF('Enrollment Form'!$B277=\"Subscriber\",\"-\",IF(COUNTA('Enrollment Form'!$BE277,'Enrollment Form'!$BG277)=2,\"Y\",\"N\")))","v":""},{"$f":"IF($B270=\"N\",\"\",IF(OR('Enrollment Form'!$AU277=\"\",'Enrollment Form'!$AU277=\"No\"),\"-\",IF(AND('Enrollment Form'!$AU277=\"Yes\",COUNTA('Enrollment Form'!$CK277)=1),\"Y\",\"N\")))","v":""},{"$f":"IF(OR('Enrollment Form'!$CK277=\"\",'Enrollment Form'!$CK277=\"No\"),\"-\",IF(COUNTA('Enrollment Form'!$CM277:$CN277)=2,\"Y\",\"N\"))","v":"-"},{"$f":"IF($B270=\"N\",\"\",IF(COUNTIF('Enrollment Form'!$CZ277:$DO277,\"Other\")=COUNTA('Enrollment Form'!$DF277,'Enrollment Form'!$DA277,'Enrollment Form'!$DK277,'Enrollment Form'!$DP277),\"Y\",\"N\"))","v":""},{"$f":"IF($B270=\"N\",\"\",IF(OR('Enrollment Form'!B277<>\"Subscriber\",'Enrollment Form'!C277=\"ROC\",COUNTIF('Enrollment Form'!AS277:AT277,\"Yes\")>=1),\"-\",IF(AND('Enrollment Form'!C277=\"Enroll\",COUNTIF('Enrollment Form'!AS277:AT277,\"No\")=2,'Enrollment Form'!AU277=\"\"),\"N\",\"Y\")))","v":""},{"$f":"IF(OR(B270=\"N\",'Enrollment Form'!B277<>\"Subscriber\",'Enrollment Form'!C277=\"ROC\",'Enrollment Form'!O277<>\"Multiple of Salary\"),\"-\",IF(COUNTA('Enrollment Form'!T277:U277)<2,\"N\",\"Y\"))","v":"-"},{"$f":"IF(B270=\"N\",\"\",IF(OR('Enrollment Form'!C277=\"ROC\",'Enrollment Form'!B277<>\"Subscriber\",'Enrollment Form'!O277=\"Waive\",'Enrollment Form'!O277=\"\"),\"-\",IF('Enrollment Form'!P277=\"\",\"N\",\"Y\")))","v":""},{"$f":"IF($B270=\"N\",\"\",IF(AND('Enrollment Form'!$C277=\"ROC\",'Enrollment Form'!$DS277<>\"\"),\"Y\",IF(AND('Enrollment Form'!$C277=\"ROC\",'Enrollment Form'!$DS277=\"\"),\"N\",IF(AND('Enrollment Form'!$C277=\"Enroll\",'Enrollment Form'!$B277=\"Subscriber\",'Enrollment Form'!$CQ277=\"No\",'Enrollment Form'!$DS277=\"\"),\"N\",IF(AND('Enrollment Form'!$C277=\"Enroll\",'Enrollment Form'!$B277=\"Subscriber\",'Enrollment Form'!$CQ277=\"Yes\"),\"-\",\"Y\")))))","v":""},{"$f":"IF($B270=\"N\",\"\",IF(AND('Enrollment Form'!$C277=\"ROC\",'Enrollment Form'!$DT277<>\"\"),\"Y\",IF(AND('Enrollment Form'!$C277=\"ROC\",'Enrollment Form'!$DT277=\"\"),\"N\",IF(AND('Enrollment Form'!$C277=\"Enroll\",'Enrollment Form'!$B277=\"Subscriber\",'Enrollment Form'!$CQ277=\"No\",'Enrollment Form'!$DT277=\"\"),\"N\",IF(AND('Enrollment Form'!$C277=\"Enroll\",'Enrollment Form'!$B277=\"Subscriber\",'Enrollment Form'!$CQ277=\"Yes\"),\"-\",\"Y\")))))","v":""},{"$f":"IF('Enrollment Form'!AH277=\"\",\"\",IF(ISERROR(SEARCH(\".\",'Enrollment Form'!AH277,SEARCH(\"@\",'Enrollment Form'!AH277))),\"N\",\"Y\"))","v":""},{"$f":"IF(OR($B270=\"N\",'Enrollment Form'!$G277=\"\"),\"\",IF('Enrollment Form'!$B277<>\"Subscriber\",\"-\",IF(COUNTIF('Enrollment Form'!$AS277:$AT277,\"Yes\")=2,\"N\",\"Y\")))","v":""},{"$f":"IF(OR('Enrollment Form'!$CC277=\"\",'Enrollment Form'!$CC277=\"No\"),\"-\",IF(AND('Enrollment Form'!$CC277=\"Yes\",'Enrollment Form'!$CD277=\"\"),\"N\",\"Y\"))","v":"-"},{"$f":"IF(OR('Enrollment Form'!$CE277=\"\",'Enrollment Form'!$CE277=\"No\"),\"-\",IF(AND('Enrollment Form'!$CE277=\"Yes\",'Enrollment Form'!$CF277=\"\"),\"N\",\"Y\"))","v":"-"},{"$f":"IF(OR('Enrollment Form'!$CG277=\"\",'Enrollment Form'!$CG277=\"No\"),\"-\",IF(AND('Enrollment Form'!$CG277=\"Yes\",'Enrollment Form'!$CH277=\"\"),\"N\",\"Y\"))","v":"-"},{"$f":"IF(OR('Enrollment Form'!$CG277=\"\",'Enrollment Form'!$CG277=\"No\"),\"-\",IF(AND('Enrollment Form'!$CG277=\"Yes\",'Enrollment Form'!$CI277=\"\"),\"N\",\"Y\"))","v":"-"},{"$f":"IF('Enrollment Form'!B277<>\"Subscriber\",\"-\",IF(AND('Enrollment Form'!B277=\"Subscriber\",'Enrollment Form'!C277=\"Enroll\",'Enrollment Form'!AA277=\"\"),\"N\",\"Y\"))","v":"-"},{"$f":"IF(OR('Enrollment Form'!B277=\"Subscriber\",'Enrollment Form'!B277=\"\"),\"-\",IF('Enrollment Form'!BI277=\"\",\"N\",\"Y\"))","v":"-"},{"$f":"IF('Enrollment Form'!B277<>\"Subscriber\",\"-\",IF(AND('Enrollment Form'!B277=\"Subscriber\",'Enrollment Form'!G277=\"\"),\"N\",\"Y\"))","v":"-"},{"$f":"IF('Enrollment Form'!A277=\"\",\"\",IF('Enrollment Form'!B277=\"Subscriber\",\"-\",IF(AND('Enrollment Form'!B277<>\"Subscriber\",'Enrollment Form'!G277='Enrollment Form'!H277),\"N\",\"Y\")))","v":""},0]
[278,{"$f":"IF('Enrollment Form'!$A278<>\"\",\"Y\",\"N\")","v":"N"},{"$f":"IF(AND('Enrollment Form'!$B278=\"\",'Enrollment Form'!$C278<>\"\"),\"N\",IF($B271=\"N\",\"\",\"Y\"))","v":""},{"$f":"IF(OR($B271=\"N\",'Enrollment Form'!G278=\"\"),\"\",IF('Enrollment Form'!$B278<>\"Subscriber\",\"\",IF('Enrollment Form'!$G278='Enrollment Form'!$H278,\"Y\",\"N\")))","v":""},{"$f":"IF($B271=\"N\",\"\",IF(AND(COUNTIFS('Enrollment Form'!$H$11:$H$1000,'Enrollment Form'!$H278,'Enrollment Form'!$B$11:$B$1000,'Enrollment Form'!$B278)>1,'Enrollment Form'!$H278<>\"\"),\"N\",\"Y\"))","v":""},{"$f":"IF($B271=\"N\",\"\",IF(LEN('Enrollment Form'!$Y278)=0,\"\",IF(LEN('Enrollment Form'!$Y278)<>5,\"N\",\"Y\")))","v":""},{"$f":"IF($B271=\"N\",\"\",IF(LEN('Enrollment Form'!$AD278=0),\"\",IF(LEN('Enrollment Form'!$AD278)<>5,\"N\",\"Y\")))","v":""},{"$f":"IF($B271=\"N\",\"\",IF(LEN('Enrollment Form'!$BL278=0),\"\",IF(LEN('Enrollment Form'!$BL278)<>5,\"N\",\"Y\")))","v":""},{"$f":"IF($B271=\"N\",\"\",IF(LEN('Enrollment Form'!$AE278)=0,\"\",IF(LEN('Enrollment Form'!$AE278)<>10,\"N\",\"Y\")))","v":""},{"$f":"IF($B271=\"N\",\"\",IF(LEN('Enrollment Form'!$AF278)=0,\"\",IF(LEN('Enrollment Form'!$AF278)<>10,\"N\",\"Y\")))","v":""},{"$f":"IF('Enrollment Form'!$O278<>\"Graded\",\"-\",IF(AND('Enrollment Form'!$O278=\"Graded\",'Enrollment Form'!$AO278<>\"\"),\"Y\",\"N\"))","v":"-"},{"$f":"IF($B271=\"N\",\"\",IF(OR('Enrollment Form'!$B278<>\"Subscriber\",'Enrollment Form'!$C278=\"ROC\"),\"-\",IF(AND('Enrollment Form'!$B278=\"Subscriber\",'Enrollment Form'!$C278=\"Enroll\",'Enrollment Form'!$AJ278<>\"\"),\"Y\",\"N\")))","v":""},{"$f":"IF($B271=\"N\",\"\",IF(OR('Enrollment Form'!$B278<>\"Subscriber\",'Enrollment Form'!$C278=\"ROC\"),\"-\",IF(AND('Enrollment Form'!$B278=\"Subscriber\",'Enrollment Form'!$C278=\"Enroll\",'Enrollment Form'!$AK278<>\"\"),\"Y\",\"N\")))","v":""},{"$f":"IF($B271=\"N\",\"\",IF(OR('Enrollment Form'!$B278<>\"Subscriber\",'Enrollment Form'!$C278=\"ROC\"),\"-\",IF(AND('Enrollment Form'!$B278=\"Subscriber\",'Enrollment Form'!$C278=\"Enroll\",'Enrollment Form'!$AL278<>\"\"),\"Y\",\"N\")))","v":""},{"$f":"IF($B271=\"N\",\"\",IF(OR('Enrollment Form'!$B278<>\"Subscriber\",'Enrollment Form'!$C278=\"ROC\"),\"-\",IF(AND('Enrollment Form'!$B278=\"Subscriber\",'Enrollment Form'!$C278=\"Enroll\",'Enrollment Form'!$AM278<>\"\"),\"Y\",\"N\")))","v":""},{"$f":"IF($B271=\"N\",\"\",IF(OR('Enrollment Form'!$B278<>\"Subscriber\",'Enrollment Form'!$C278=\"ROC\"),\"-\",IF(AND('Enrollment Form'!$B278=\"Subscriber\",'Enrollment Form'!$C278=\"Enroll\",'Enrollment Form'!$AN278<>\"\"),\"Y\",\"N\")))","v":""},{"$f":"IF($B271=\"N\",\"\",IF(OR('Enrollment Form'!$B278<>\"Subscriber\",'Enrollment Form'!$C278=\"ROC\"),\"-\",IF(AND('Enrollment Form'!$B278=\"Subscriber\",'Enrollment Form'!$C278=\"Enroll\",'Enrollment Form'!$AP278<>\"\"),\"Y\",\"N\")))","v":""},{"$f":"IF($B271=\"N\",\"\",IF($Q271=\"-\",\"-\",IF(AND($Q271=\"Y\",'Enrollment Form'!$AP278=\"No\"),\"-\",IF(AND($Q271=\"Y\",'Enrollment Form'!$AP278=\"Yes\",'Enrollment Form'!$AQ278<>\"\"),\"Y\",\"N\"))))","v":""},{"$f":"IF($B271=\"N\",\"\",IF(OR('Enrollment Form'!$B278<>\"Subscriber\",'Enrollment Form'!$C278=\"ROC\"),\"-\",IF(AND('Enrollment Form'!$B278=\"Subscriber\",'Enrollment Form'!$C278=\"Enroll\",'Enrollment Form'!$CO278<>\"\"),\"Y\",\"N\")))","v":""},{"$f":"IF($B271=\"N\",\"\",IF($S271=\"-\",\"-\",IF(AND($S271=\"Y\",'Enrollment Form'!$CO278=\"No\"),\"-\",IF(AND($S271=\"Y\",'Enrollment Form'!$CO278=\"Yes\",'Enrollment Form'!$CP278<>\"\"),\"Y\",\"N\"))))","v":""},{"$f":"IF(OR('Enrollment Form'!$AV278=\"Yes\",'Enrollment Form'!$AV278=\"\"),\"-\",IF(AND('Enrollment Form'!$AV278=\"No\",ISERROR(FIND(\"HMO\",VLOOKUP('Enrollment Form'!G278,'Enrollment Form'!H$11:J$1000,3,FALSE),1))=FALSE,COUNTA('Enrollment Form'!$AW278:$AZ278)=4),\"Y\",\"N\"))","v":"-"},{"$f":"IF($B271=\"N\",\"\",IF('Enrollment Form'!$B278=\"Subscriber\",\"-\",IF(COUNTA('Enrollment Form'!$BE278,'Enrollment Form'!$BG278)=2,\"Y\",\"N\")))","v":""},{"$f":"IF($B271=\"N\",\"\",IF(OR('Enrollment Form'!$AU278=\"\",'Enrollment Form'!$AU278=\"No\"),\"-\",IF(AND('Enrollment Form'!$AU278=\"Yes\",COUNTA('Enrollment Form'!$CK278)=1),\"Y\",\"N\")))","v":""},{"$f":"IF(OR('Enrollment Form'!$CK278=\"\",'Enrollment Form'!$CK278=\"No\"),\"-\",IF(COUNTA('Enrollment Form'!$CM278:$CN278)=2,\"Y\",\"N\"))","v":"-"},{"$f":"IF($B271=\"N\",\"\",IF(COUNTIF('Enrollment Form'!$CZ278:$DO278,\"Other\")=COUNTA('Enrollment Form'!$DF278,'Enrollment Form'!$DA278,'Enrollment Form'!$DK278,'Enrollment Form'!$DP278),\"Y\",\"N\"))","v":""},{"$f":"IF($B271=\"N\",\"\",IF(OR('Enrollment Form'!B278<>\"Subscriber\",'Enrollment Form'!C278=\"ROC\",COUNTIF('Enrollment Form'!AS278:AT278,\"Yes\")>=1),\"-\",IF(AND('Enrollment Form'!C278=\"Enroll\",COUNTIF('Enrollment Form'!AS278:AT278,\"No\")=2,'Enrollment Form'!AU278=\"\"),\"N\",\"Y\")))","v":""},{"$f":"IF(OR(B271=\"N\",'Enrollment Form'!B278<>\"Subscriber\",'Enrollment Form'!C278=\"ROC\",'Enrollment Form'!O278<>\"Multiple of Salary\"),\"-\",IF(COUNTA('Enrollment Form'!T278:U278)<2,\"N\",\"Y\"))","v":"-"},{"$f":"IF(B271=\"N\",\"\",IF(OR('Enrollment Form'!C278=\"ROC\",'Enrollment Form'!B278<>\"Subscriber\",'Enrollment Form'!O278=\"Waive\",'Enrollment Form'!O278=\"\"),\"-\",IF('Enrollment Form'!P278=\"\",\"N\",\"Y\")))","v":""},{"$f":"IF($B271=\"N\",\"\",IF(AND('Enrollment Form'!$C278=\"ROC\",'Enrollment Form'!$DS278<>\"\"),\"Y\",IF(AND('Enrollment Form'!$C278=\"ROC\",'Enrollment Form'!$DS278=\"\"),\"N\",IF(AND('Enrollment Form'!$C278=\"Enroll\",'Enrollment Form'!$B278=\"Subscriber\",'Enrollment Form'!$CQ278=\"No\",'Enrollment Form'!$DS278=\"\"),\"N\",IF(AND('Enrollment Form'!$C278=\"Enroll\",'Enrollment Form'!$B278=\"Subscriber\",'Enrollment Form'!$CQ278=\"Yes\"),\"-\",\"Y\")))))","v":""},{"$f":"IF($B271=\"N\",\"\",IF(AND('Enrollment Form'!$C278=\"ROC\",'Enrollment Form'!$DT278<>\"\"),\"Y\",IF(AND('Enrollment Form'!$C278=\"ROC\",'Enrollment Form'!$DT278=\"\"),\"N\",IF(AND('Enrollment Form'!$C278=\"Enroll\",'Enrollment Form'!$B278=\"Subscriber\",'Enrollment Form'!$CQ278=\"No\",'Enrollment Form'!$DT278=\"\"),\"N\",IF(AND('Enrollment Form'!$C278=\"Enroll\",'Enrollment Form'!$B278=\"Subscriber\",'Enrollment Form'!$CQ278=\"Yes\"),\"-\",\"Y\")))))","v":""},{"$f":"IF('Enrollment Form'!AH278=\"\",\"\",IF(ISERROR(SEARCH(\".\",'Enrollment Form'!AH278,SEARCH(\"@\",'Enrollment Form'!AH278))),\"N\",\"Y\"))","v":""},{"$f":"IF(OR($B271=\"N\",'Enrollment Form'!$G278=\"\"),\"\",IF('Enrollment Form'!$B278<>\"Subscriber\",\"-\",IF(COUNTIF('Enrollment Form'!$AS278:$AT278,\"Yes\")=2,\"N\",\"Y\")))","v":""},{"$f":"IF(OR('Enrollment Form'!$CC278=\"\",'Enrollment Form'!$CC278=\"No\"),\"-\",IF(AND('Enrollment Form'!$CC278=\"Yes\",'Enrollment Form'!$CD278=\"\"),\"N\",\"Y\"))","v":"-"},{"$f":"IF(OR('Enrollment Form'!$CE278=\"\",'Enrollment Form'!$CE278=\"No\"),\"-\",IF(AND('Enrollment Form'!$CE278=\"Yes\",'Enrollment Form'!$CF278=\"\"),\"N\",\"Y\"))","v":"-"},{"$f":"IF(OR('Enrollment Form'!$CG278=\"\",'Enrollment Form'!$CG278=\"No\"),\"-\",IF(AND('Enrollment Form'!$CG278=\"Yes\",'Enrollment Form'!$CH278=\"\"),\"N\",\"Y\"))","v":"-"},{"$f":"IF(OR('Enrollment Form'!$CG278=\"\",'Enrollment Form'!$CG278=\"No\"),\"-\",IF(AND('Enrollment Form'!$CG278=\"Yes\",'Enrollment Form'!$CI278=\"\"),\"N\",\"Y\"))","v":"-"},{"$f":"IF('Enrollment Form'!B278<>\"Subscriber\",\"-\",IF(AND('Enrollment Form'!B278=\"Subscriber\",'Enrollment Form'!C278=\"Enroll\",'Enrollment Form'!AA278=\"\"),\"N\",\"Y\"))","v":"-"},{"$f":"IF(OR('Enrollment Form'!B278=\"Subscriber\",'Enrollment Form'!B278=\"\"),\"-\",IF('Enrollment Form'!BI278=\"\",\"N\",\"Y\"))","v":"-"},{"$f":"IF('Enrollment Form'!B278<>\"Subscriber\",\"-\",IF(AND('Enrollment Form'!B278=\"Subscriber\",'Enrollment Form'!G278=\"\"),\"N\",\"Y\"))","v":"-"},{"$f":"IF('Enrollment Form'!A278=\"\",\"\",IF('Enrollment Form'!B278=\"Subscriber\",\"-\",IF(AND('Enrollment Form'!B278<>\"Subscriber\",'Enrollment Form'!G278='Enrollment Form'!H278),\"N\",\"Y\")))","v":""},0]
[279,{"$f":"IF('Enrollment Form'!$A279<>\"\",\"Y\",\"N\")","v":"N"},{"$f":"IF(AND('Enrollment Form'!$B279=\"\",'Enrollment Form'!$C279<>\"\"),\"N\",IF($B272=\"N\",\"\",\"Y\"))","v":""},{"$f":"IF(OR($B272=\"N\",'Enrollment Form'!G279=\"\"),\"\",IF('Enrollment Form'!$B279<>\"Subscriber\",\"\",IF('Enrollment Form'!$G279='Enrollment Form'!$H279,\"Y\",\"N\")))","v":""},{"$f":"IF($B272=\"N\",\"\",IF(AND(COUNTIFS('Enrollment Form'!$H$11:$H$1000,'Enrollment Form'!$H279,'Enrollment Form'!$B$11:$B$1000,'Enrollment Form'!$B279)>1,'Enrollment Form'!$H279<>\"\"),\"N\",\"Y\"))","v":""},{"$f":"IF($B272=\"N\",\"\",IF(LEN('Enrollment Form'!$Y279)=0,\"\",IF(LEN('Enrollment Form'!$Y279)<>5,\"N\",\"Y\")))","v":""},{"$f":"IF($B272=\"N\",\"\",IF(LEN('Enrollment Form'!$AD279=0),\"\",IF(LEN('Enrollment Form'!$AD279)<>5,\"N\",\"Y\")))","v":""},{"$f":"IF($B272=\"N\",\"\",IF(LEN('Enrollment Form'!$BL279=0),\"\",IF(LEN('Enrollment Form'!$BL279)<>5,\"N\",\"Y\")))","v":""},{"$f":"IF($B272=\"N\",\"\",IF(LEN('Enrollment Form'!$AE279)=0,\"\",IF(LEN('Enrollment Form'!$AE279)<>10,\"N\",\"Y\")))","v":""},{"$f":"IF($B272=\"N\",\"\",IF(LEN('Enrollment Form'!$AF279)=0,\"\",IF(LEN('Enrollment Form'!$AF279)<>10,\"N\",\"Y\")))","v":""},{"$f":"IF('Enrollment Form'!$O279<>\"Graded\",\"-\",IF(AND('Enrollment Form'!$O279=\"Graded\",'Enrollment Form'!$AO279<>\"\"),\"Y\",\"N\"))","v":"-"},{"$f":"IF($B272=\"N\",\"\",IF(OR('Enrollment Form'!$B279<>\"Subscriber\",'Enrollment Form'!$C279=\"ROC\"),\"-\",IF(AND('Enrollment Form'!$B279=\"Subscriber\",'Enrollment Form'!$C279=\"Enroll\",'Enrollment Form'!$AJ279<>\"\"),\"Y\",\"N\")))","v":""},{"$f":"IF($B272=\"N\",\"\",IF(OR('Enrollment Form'!$B279<>\"Subscriber\",'Enrollment Form'!$C279=\"ROC\"),\"-\",IF(AND('Enrollment Form'!$B279=\"Subscriber\",'Enrollment Form'!$C279=\"Enroll\",'Enrollment Form'!$AK279<>\"\"),\"Y\",\"N\")))","v":""},{"$f":"IF($B272=\"N\",\"\",IF(OR('Enrollment Form'!$B279<>\"Subscriber\",'Enrollment Form'!$C279=\"ROC\"),\"-\",IF(AND('Enrollment Form'!$B279=\"Subscriber\",'Enrollment Form'!$C279=\"Enroll\",'Enrollment Form'!$AL279<>\"\"),\"Y\",\"N\")))","v":""},{"$f":"IF($B272=\"N\",\"\",IF(OR('Enrollment Form'!$B279<>\"Subscriber\",'Enrollment Form'!$C279=\"ROC\"),\"-\",IF(AND('Enrollment Form'!$B279=\"Subscriber\",'Enrollment Form'!$C279=\"Enroll\",'Enrollment Form'!$AM279<>\"\"),\"Y\",\"N\")))","v":""},{"$f":"IF($B272=\"N\",\"\",IF(OR('Enrollment Form'!$B279<>\"Subscriber\",'Enrollment Form'!$C279=\"ROC\"),\"-\",IF(AND('Enrollment Form'!$B279=\"Subscriber\",'Enrollment Form'!$C279=\"Enroll\",'Enrollment Form'!$AN279<>\"\"),\"Y\",\"N\")))","v":""},{"$f":"IF($B272=\"N\",\"\",IF(OR('Enrollment Form'!$B279<>\"Subscriber\",'Enrollment Form'!$C279=\"ROC\"),\"-\",IF(AND('Enrollment Form'!$B279=\"Subscriber\",'Enrollment Form'!$C279=\"Enroll\",'Enrollment Form'!$AP279<>\"\"),\"Y\",\"N\")))","v":""},{"$f":"IF($B272=\"N\",\"\",IF($Q272=\"-\",\"-\",IF(AND($Q272=\"Y\",'Enrollment Form'!$AP279=\"No\"),\"-\",IF(AND($Q272=\"Y\",'Enrollment Form'!$AP279=\"Yes\",'Enrollment Form'!$AQ279<>\"\"),\"Y\",\"N\"))))","v":""},{"$f":"IF($B272=\"N\",\"\",IF(OR('Enrollment Form'!$B279<>\"Subscriber\",'Enrollment Form'!$C279=\"ROC\"),\"-\",IF(AND('Enrollment Form'!$B279=\"Subscriber\",'Enrollment Form'!$C279=\"Enroll\",'Enrollment Form'!$CO279<>\"\"),\"Y\",\"N\")))","v":""},{"$f":"IF($B272=\"N\",\"\",IF($S272=\"-\",\"-\",IF(AND($S272=\"Y\",'Enrollment Form'!$CO279=\"No\"),\"-\",IF(AND($S272=\"Y\",'Enrollment Form'!$CO279=\"Yes\",'Enrollment Form'!$CP279<>\"\"),\"Y\",\"N\"))))","v":""},{"$f":"IF(OR('Enrollment Form'!$AV279=\"Yes\",'Enrollment Form'!$AV279=\"\"),\"-\",IF(AND('Enrollment Form'!$AV279=\"No\",ISERROR(FIND(\"HMO\",VLOOKUP('Enrollment Form'!G279,'Enrollment Form'!H$11:J$1000,3,FALSE),1))=FALSE,COUNTA('Enrollment Form'!$AW279:$AZ279)=4),\"Y\",\"N\"))","v":"-"},{"$f":"IF($B272=\"N\",\"\",IF('Enrollment Form'!$B279=\"Subscriber\",\"-\",IF(COUNTA('Enrollment Form'!$BE279,'Enrollment Form'!$BG279)=2,\"Y\",\"N\")))","v":""},{"$f":"IF($B272=\"N\",\"\",IF(OR('Enrollment Form'!$AU279=\"\",'Enrollment Form'!$AU279=\"No\"),\"-\",IF(AND('Enrollment Form'!$AU279=\"Yes\",COUNTA('Enrollment Form'!$CK279)=1),\"Y\",\"N\")))","v":""},{"$f":"IF(OR('Enrollment Form'!$CK279=\"\",'Enrollment Form'!$CK279=\"No\"),\"-\",IF(COUNTA('Enrollment Form'!$CM279:$CN279)=2,\"Y\",\"N\"))","v":"-"},{"$f":"IF($B272=\"N\",\"\",IF(COUNTIF('Enrollment Form'!$CZ279:$DO279,\"Other\")=COUNTA('Enrollment Form'!$DF279,'Enrollment Form'!$DA279,'Enrollment Form'!$DK279,'Enrollment Form'!$DP279),\"Y\",\"N\"))","v":""},{"$f":"IF($B272=\"N\",\"\",IF(OR('Enrollment Form'!B279<>\"Subscriber\",'Enrollment Form'!C279=\"ROC\",COUNTIF('Enrollment Form'!AS279:AT279,\"Yes\")>=1),\"-\",IF(AND('Enrollment Form'!C279=\"Enroll\",COUNTIF('Enrollment Form'!AS279:AT279,\"No\")=2,'Enrollment Form'!AU279=\"\"),\"N\",\"Y\")))","v":""},{"$f":"IF(OR(B272=\"N\",'Enrollment Form'!B279<>\"Subscriber\",'Enrollment Form'!C279=\"ROC\",'Enrollment Form'!O279<>\"Multiple of Salary\"),\"-\",IF(COUNTA('Enrollment Form'!T279:U279)<2,\"N\",\"Y\"))","v":"-"},{"$f":"IF(B272=\"N\",\"\",IF(OR('Enrollment Form'!C279=\"ROC\",'Enrollment Form'!B279<>\"Subscriber\",'Enrollment Form'!O279=\"Waive\",'Enrollment Form'!O279=\"\"),\"-\",IF('Enrollment Form'!P279=\"\",\"N\",\"Y\")))","v":""},{"$f":"IF($B272=\"N\",\"\",IF(AND('Enrollment Form'!$C279=\"ROC\",'Enrollment Form'!$DS279<>\"\"),\"Y\",IF(AND('Enrollment Form'!$C279=\"ROC\",'Enrollment Form'!$DS279=\"\"),\"N\",IF(AND('Enrollment Form'!$C279=\"Enroll\",'Enrollment Form'!$B279=\"Subscriber\",'Enrollment Form'!$CQ279=\"No\",'Enrollment Form'!$DS279=\"\"),\"N\",IF(AND('Enrollment Form'!$C279=\"Enroll\",'Enrollment Form'!$B279=\"Subscriber\",'Enrollment Form'!$CQ279=\"Yes\"),\"-\",\"Y\")))))","v":""},{"$f":"IF($B272=\"N\",\"\",IF(AND('Enrollment Form'!$C279=\"ROC\",'Enrollment Form'!$DT279<>\"\"),\"Y\",IF(AND('Enrollment Form'!$C279=\"ROC\",'Enrollment Form'!$DT279=\"\"),\"N\",IF(AND('Enrollment Form'!$C279=\"Enroll\",'Enrollment Form'!$B279=\"Subscriber\",'Enrollment Form'!$CQ279=\"No\",'Enrollment Form'!$DT279=\"\"),\"N\",IF(AND('Enrollment Form'!$C279=\"Enroll\",'Enrollment Form'!$B279=\"Subscriber\",'Enrollment Form'!$CQ279=\"Yes\"),\"-\",\"Y\")))))","v":""},{"$f":"IF('Enrollment Form'!AH279=\"\",\"\",IF(ISERROR(SEARCH(\".\",'Enrollment Form'!AH279,SEARCH(\"@\",'Enrollment Form'!AH279))),\"N\",\"Y\"))","v":""},{"$f":"IF(OR($B272=\"N\",'Enrollment Form'!$G279=\"\"),\"\",IF('Enrollment Form'!$B279<>\"Subscriber\",\"-\",IF(COUNTIF('Enrollment Form'!$AS279:$AT279,\"Yes\")=2,\"N\",\"Y\")))","v":""},{"$f":"IF(OR('Enrollment Form'!$CC279=\"\",'Enrollment Form'!$CC279=\"No\"),\"-\",IF(AND('Enrollment Form'!$CC279=\"Yes\",'Enrollment Form'!$CD279=\"\"),\"N\",\"Y\"))","v":"-"},{"$f":"IF(OR('Enrollment Form'!$CE279=\"\",'Enrollment Form'!$CE279=\"No\"),\"-\",IF(AND('Enrollment Form'!$CE279=\"Yes\",'Enrollment Form'!$CF279=\"\"),\"N\",\"Y\"))","v":"-"},{"$f":"IF(OR('Enrollment Form'!$CG279=\"\",'Enrollment Form'!$CG279=\"No\"),\"-\",IF(AND('Enrollment Form'!$CG279=\"Yes\",'Enrollment Form'!$CH279=\"\"),\"N\",\"Y\"))","v":"-"},{"$f":"IF(OR('Enrollment Form'!$CG279=\"\",'Enrollment Form'!$CG279=\"No\"),\"-\",IF(AND('Enrollment Form'!$CG279=\"Yes\",'Enrollment Form'!$CI279=\"\"),\"N\",\"Y\"))","v":"-"},{"$f":"IF('Enrollment Form'!B279<>\"Subscriber\",\"-\",IF(AND('Enrollment Form'!B279=\"Subscriber\",'Enrollment Form'!C279=\"Enroll\",'Enrollment Form'!AA279=\"\"),\"N\",\"Y\"))","v":"-"},{"$f":"IF(OR('Enrollment Form'!B279=\"Subscriber\",'Enrollment Form'!B279=\"\"),\"-\",IF('Enrollment Form'!BI279=\"\",\"N\",\"Y\"))","v":"-"},{"$f":"IF('Enrollment Form'!B279<>\"Subscriber\",\"-\",IF(AND('Enrollment Form'!B279=\"Subscriber\",'Enrollment Form'!G279=\"\"),\"N\",\"Y\"))","v":"-"},{"$f":"IF('Enrollment Form'!A279=\"\",\"\",IF('Enrollment Form'!B279=\"Subscriber\",\"-\",IF(AND('Enrollment Form'!B279<>\"Subscriber\",'Enrollment Form'!G279='Enrollment Form'!H279),\"N\",\"Y\")))","v":""},0]
[280,{"$f":"IF('Enrollment Form'!$A280<>\"\",\"Y\",\"N\")","v":"N"},{"$f":"IF(AND('Enrollment Form'!$B280=\"\",'Enrollment Form'!$C280<>\"\"),\"N\",IF($B273=\"N\",\"\",\"Y\"))","v":""},{"$f":"IF(OR($B273=\"N\",'Enrollment Form'!G280=\"\"),\"\",IF('Enrollment Form'!$B280<>\"Subscriber\",\"\",IF('Enrollment Form'!$G280='Enrollment Form'!$H280,\"Y\",\"N\")))","v":""},{"$f":"IF($B273=\"N\",\"\",IF(AND(COUNTIFS('Enrollment Form'!$H$11:$H$1000,'Enrollment Form'!$H280,'Enrollment Form'!$B$11:$B$1000,'Enrollment Form'!$B280)>1,'Enrollment Form'!$H280<>\"\"),\"N\",\"Y\"))","v":""},{"$f":"IF($B273=\"N\",\"\",IF(LEN('Enrollment Form'!$Y280)=0,\"\",IF(LEN('Enrollment Form'!$Y280)<>5,\"N\",\"Y\")))","v":""},{"$f":"IF($B273=\"N\",\"\",IF(LEN('Enrollment Form'!$AD280=0),\"\",IF(LEN('Enrollment Form'!$AD280)<>5,\"N\",\"Y\")))","v":""},{"$f":"IF($B273=\"N\",\"\",IF(LEN('Enrollment Form'!$BL280=0),\"\",IF(LEN('Enrollment Form'!$BL280)<>5,\"N\",\"Y\")))","v":""},{"$f":"IF($B273=\"N\",\"\",IF(LEN('Enrollment Form'!$AE280)=0,\"\",IF(LEN('Enrollment Form'!$AE280)<>10,\"N\",\"Y\")))","v":""},{"$f":"IF($B273=\"N\",\"\",IF(LEN('Enrollment Form'!$AF280)=0,\"\",IF(LEN('Enrollment Form'!$AF280)<>10,\"N\",\"Y\")))","v":""},{"$f":"IF('Enrollment Form'!$O280<>\"Graded\",\"-\",IF(AND('Enrollment Form'!$O280=\"Graded\",'Enrollment Form'!$AO280<>\"\"),\"Y\",\"N\"))","v":"-"},{"$f":"IF($B273=\"N\",\"\",IF(OR('Enrollment Form'!$B280<>\"Subscriber\",'Enrollment Form'!$C280=\"ROC\"),\"-\",IF(AND('Enrollment Form'!$B280=\"Subscriber\",'Enrollment Form'!$C280=\"Enroll\",'Enrollment Form'!$AJ280<>\"\"),\"Y\",\"N\")))","v":""},{"$f":"IF($B273=\"N\",\"\",IF(OR('Enrollment Form'!$B280<>\"Subscriber\",'Enrollment Form'!$C280=\"ROC\"),\"-\",IF(AND('Enrollment Form'!$B280=\"Subscriber\",'Enrollment Form'!$C280=\"Enroll\",'Enrollment Form'!$AK280<>\"\"),\"Y\",\"N\")))","v":""},{"$f":"IF($B273=\"N\",\"\",IF(OR('Enrollment Form'!$B280<>\"Subscriber\",'Enrollment Form'!$C280=\"ROC\"),\"-\",IF(AND('Enrollment Form'!$B280=\"Subscriber\",'Enrollment Form'!$C280=\"Enroll\",'Enrollment Form'!$AL280<>\"\"),\"Y\",\"N\")))","v":""},{"$f":"IF($B273=\"N\",\"\",IF(OR('Enrollment Form'!$B280<>\"Subscriber\",'Enrollment Form'!$C280=\"ROC\"),\"-\",IF(AND('Enrollment Form'!$B280=\"Subscriber\",'Enrollment Form'!$C280=\"Enroll\",'Enrollment Form'!$AM280<>\"\"),\"Y\",\"N\")))","v":""},{"$f":"IF($B273=\"N\",\"\",IF(OR('Enrollment Form'!$B280<>\"Subscriber\",'Enrollment Form'!$C280=\"ROC\"),\"-\",IF(AND('Enrollment Form'!$B280=\"Subscriber\",'Enrollment Form'!$C280=\"Enroll\",'Enrollment Form'!$AN280<>\"\"),\"Y\",\"N\")))","v":""},{"$f":"IF($B273=\"N\",\"\",IF(OR('Enrollment Form'!$B280<>\"Subscriber\",'Enrollment Form'!$C280=\"ROC\"),\"-\",IF(AND('Enrollment Form'!$B280=\"Subscriber\",'Enrollment Form'!$C280=\"Enroll\",'Enrollment Form'!$AP280<>\"\"),\"Y\",\"N\")))","v":""},{"$f":"IF($B273=\"N\",\"\",IF($Q273=\"-\",\"-\",IF(AND($Q273=\"Y\",'Enrollment Form'!$AP280=\"No\"),\"-\",IF(AND($Q273=\"Y\",'Enrollment Form'!$AP280=\"Yes\",'Enrollment Form'!$AQ280<>\"\"),\"Y\",\"N\"))))","v":""},{"$f":"IF($B273=\"N\",\"\",IF(OR('Enrollment Form'!$B280<>\"Subscriber\",'Enrollment Form'!$C280=\"ROC\"),\"-\",IF(AND('Enrollment Form'!$B280=\"Subscriber\",'Enrollment Form'!$C280=\"Enroll\",'Enrollment Form'!$CO280<>\"\"),\"Y\",\"N\")))","v":""},{"$f":"IF($B273=\"N\",\"\",IF($S273=\"-\",\"-\",IF(AND($S273=\"Y\",'Enrollment Form'!$CO280=\"No\"),\"-\",IF(AND($S273=\"Y\",'Enrollment Form'!$CO280=\"Yes\",'Enrollment Form'!$CP280<>\"\"),\"Y\",\"N\"))))","v":""},{"$f":"IF(OR('Enrollment Form'!$AV280=\"Yes\",'Enrollment Form'!$AV280=\"\"),\"-\",IF(AND('Enrollment Form'!$AV280=\"No\",ISERROR(FIND(\"HMO\",VLOOKUP('Enrollment Form'!G280,'Enrollment Form'!H$11:J$1000,3,FALSE),1))=FALSE,COUNTA('Enrollment Form'!$AW280:$AZ280)=4),\"Y\",\"N\"))","v":"-"},{"$f":"IF($B273=\"N\",\"\",IF('Enrollment Form'!$B280=\"Subscriber\",\"-\",IF(COUNTA('Enrollment Form'!$BE280,'Enrollment Form'!$BG280)=2,\"Y\",\"N\")))","v":""},{"$f":"IF($B273=\"N\",\"\",IF(OR('Enrollment Form'!$AU280=\"\",'Enrollment Form'!$AU280=\"No\"),\"-\",IF(AND('Enrollment Form'!$AU280=\"Yes\",COUNTA('Enrollment Form'!$CK280)=1),\"Y\",\"N\")))","v":""},{"$f":"IF(OR('Enrollment Form'!$CK280=\"\",'Enrollment Form'!$CK280=\"No\"),\"-\",IF(COUNTA('Enrollment Form'!$CM280:$CN280)=2,\"Y\",\"N\"))","v":"-"},{"$f":"IF($B273=\"N\",\"\",IF(COUNTIF('Enrollment Form'!$CZ280:$DO280,\"Other\")=COUNTA('Enrollment Form'!$DF280,'Enrollment Form'!$DA280,'Enrollment Form'!$DK280,'Enrollment Form'!$DP280),\"Y\",\"N\"))","v":""},{"$f":"IF($B273=\"N\",\"\",IF(OR('Enrollment Form'!B280<>\"Subscriber\",'Enrollment Form'!C280=\"ROC\",COUNTIF('Enrollment Form'!AS280:AT280,\"Yes\")>=1),\"-\",IF(AND('Enrollment Form'!C280=\"Enroll\",COUNTIF('Enrollment Form'!AS280:AT280,\"No\")=2,'Enrollment Form'!AU280=\"\"),\"N\",\"Y\")))","v":""},{"$f":"IF(OR(B273=\"N\",'Enrollment Form'!B280<>\"Subscriber\",'Enrollment Form'!C280=\"ROC\",'Enrollment Form'!O280<>\"Multiple of Salary\"),\"-\",IF(COUNTA('Enrollment Form'!T280:U280)<2,\"N\",\"Y\"))","v":"-"},{"$f":"IF(B273=\"N\",\"\",IF(OR('Enrollment Form'!C280=\"ROC\",'Enrollment Form'!B280<>\"Subscriber\",'Enrollment Form'!O280=\"Waive\",'Enrollment Form'!O280=\"\"),\"-\",IF('Enrollment Form'!P280=\"\",\"N\",\"Y\")))","v":""},{"$f":"IF($B273=\"N\",\"\",IF(AND('Enrollment Form'!$C280=\"ROC\",'Enrollment Form'!$DS280<>\"\"),\"Y\",IF(AND('Enrollment Form'!$C280=\"ROC\",'Enrollment Form'!$DS280=\"\"),\"N\",IF(AND('Enrollment Form'!$C280=\"Enroll\",'Enrollment Form'!$B280=\"Subscriber\",'Enrollment Form'!$CQ280=\"No\",'Enrollment Form'!$DS280=\"\"),\"N\",IF(AND('Enrollment Form'!$C280=\"Enroll\",'Enrollment Form'!$B280=\"Subscriber\",'Enrollment Form'!$CQ280=\"Yes\"),\"-\",\"Y\")))))","v":""},{"$f":"IF($B273=\"N\",\"\",IF(AND('Enrollment Form'!$C280=\"ROC\",'Enrollment Form'!$DT280<>\"\"),\"Y\",IF(AND('Enrollment Form'!$C280=\"ROC\",'Enrollment Form'!$DT280=\"\"),\"N\",IF(AND('Enrollment Form'!$C280=\"Enroll\",'Enrollment Form'!$B280=\"Subscriber\",'Enrollment Form'!$CQ280=\"No\",'Enrollment Form'!$DT280=\"\"),\"N\",IF(AND('Enrollment Form'!$C280=\"Enroll\",'Enrollment Form'!$B280=\"Subscriber\",'Enrollment Form'!$CQ280=\"Yes\"),\"-\",\"Y\")))))","v":""},{"$f":"IF('Enrollment Form'!AH280=\"\",\"\",IF(ISERROR(SEARCH(\".\",'Enrollment Form'!AH280,SEARCH(\"@\",'Enrollment Form'!AH280))),\"N\",\"Y\"))","v":""},{"$f":"IF(OR($B273=\"N\",'Enrollment Form'!$G280=\"\"),\"\",IF('Enrollment Form'!$B280<>\"Subscriber\",\"-\",IF(COUNTIF('Enrollment Form'!$AS280:$AT280,\"Yes\")=2,\"N\",\"Y\")))","v":""},{"$f":"IF(OR('Enrollment Form'!$CC280=\"\",'Enrollment Form'!$CC280=\"No\"),\"-\",IF(AND('Enrollment Form'!$CC280=\"Yes\",'Enrollment Form'!$CD280=\"\"),\"N\",\"Y\"))","v":"-"},{"$f":"IF(OR('Enrollment Form'!$CE280=\"\",'Enrollment Form'!$CE280=\"No\"),\"-\",IF(AND('Enrollment Form'!$CE280=\"Yes\",'Enrollment Form'!$CF280=\"\"),\"N\",\"Y\"))","v":"-"},{"$f":"IF(OR('Enrollment Form'!$CG280=\"\",'Enrollment Form'!$CG280=\"No\"),\"-\",IF(AND('Enrollment Form'!$CG280=\"Yes\",'Enrollment Form'!$CH280=\"\"),\"N\",\"Y\"))","v":"-"},{"$f":"IF(OR('Enrollment Form'!$CG280=\"\",'Enrollment Form'!$CG280=\"No\"),\"-\",IF(AND('Enrollment Form'!$CG280=\"Yes\",'Enrollment Form'!$CI280=\"\"),\"N\",\"Y\"))","v":"-"},{"$f":"IF('Enrollment Form'!B280<>\"Subscriber\",\"-\",IF(AND('Enrollment Form'!B280=\"Subscriber\",'Enrollment Form'!C280=\"Enroll\",'Enrollment Form'!AA280=\"\"),\"N\",\"Y\"))","v":"-"},{"$f":"IF(OR('Enrollment Form'!B280=\"Subscriber\",'Enrollment Form'!B280=\"\"),\"-\",IF('Enrollment Form'!BI280=\"\",\"N\",\"Y\"))","v":"-"},{"$f":"IF('Enrollment Form'!B280<>\"Subscriber\",\"-\",IF(AND('Enrollment Form'!B280=\"Subscriber\",'Enrollment Form'!G280=\"\"),\"N\",\"Y\"))","v":"-"},{"$f":"IF('Enrollment Form'!A280=\"\",\"\",IF('Enrollment Form'!B280=\"Subscriber\",\"-\",IF(AND('Enrollment Form'!B280<>\"Subscriber\",'Enrollment Form'!G280='Enrollment Form'!H280),\"N\",\"Y\")))","v":""},0]
[281,{"$f":"IF('Enrollment Form'!$A281<>\"\",\"Y\",\"N\")","v":"N"},{"$f":"IF(AND('Enrollment Form'!$B281=\"\",'Enrollment Form'!$C281<>\"\"),\"N\",IF($B274=\"N\",\"\",\"Y\"))","v":""},{"$f":"IF(OR($B274=\"N\",'Enrollment Form'!G281=\"\"),\"\",IF('Enrollment Form'!$B281<>\"Subscriber\",\"\",IF('Enrollment Form'!$G281='Enrollment Form'!$H281,\"Y\",\"N\")))","v":""},{"$f":"IF($B274=\"N\",\"\",IF(AND(COUNTIFS('Enrollment Form'!$H$11:$H$1000,'Enrollment Form'!$H281,'Enrollment Form'!$B$11:$B$1000,'Enrollment Form'!$B281)>1,'Enrollment Form'!$H281<>\"\"),\"N\",\"Y\"))","v":""},{"$f":"IF($B274=\"N\",\"\",IF(LEN('Enrollment Form'!$Y281)=0,\"\",IF(LEN('Enrollment Form'!$Y281)<>5,\"N\",\"Y\")))","v":""},{"$f":"IF($B274=\"N\",\"\",IF(LEN('Enrollment Form'!$AD281=0),\"\",IF(LEN('Enrollment Form'!$AD281)<>5,\"N\",\"Y\")))","v":""},{"$f":"IF($B274=\"N\",\"\",IF(LEN('Enrollment Form'!$BL281=0),\"\",IF(LEN('Enrollment Form'!$BL281)<>5,\"N\",\"Y\")))","v":""},{"$f":"IF($B274=\"N\",\"\",IF(LEN('Enrollment Form'!$AE281)=0,\"\",IF(LEN('Enrollment Form'!$AE281)<>10,\"N\",\"Y\")))","v":""},{"$f":"IF($B274=\"N\",\"\",IF(LEN('Enrollment Form'!$AF281)=0,\"\",IF(LEN('Enrollment Form'!$AF281)<>10,\"N\",\"Y\")))","v":""},{"$f":"IF('Enrollment Form'!$O281<>\"Graded\",\"-\",IF(AND('Enrollment Form'!$O281=\"Graded\",'Enrollment Form'!$AO281<>\"\"),\"Y\",\"N\"))","v":"-"},{"$f":"IF($B274=\"N\",\"\",IF(OR('Enrollment Form'!$B281<>\"Subscriber\",'Enrollment Form'!$C281=\"ROC\"),\"-\",IF(AND('Enrollment Form'!$B281=\"Subscriber\",'Enrollment Form'!$C281=\"Enroll\",'Enrollment Form'!$AJ281<>\"\"),\"Y\",\"N\")))","v":""},{"$f":"IF($B274=\"N\",\"\",IF(OR('Enrollment Form'!$B281<>\"Subscriber\",'Enrollment Form'!$C281=\"ROC\"),\"-\",IF(AND('Enrollment Form'!$B281=\"Subscriber\",'Enrollment Form'!$C281=\"Enroll\",'Enrollment Form'!$AK281<>\"\"),\"Y\",\"N\")))","v":""},{"$f":"IF($B274=\"N\",\"\",IF(OR('Enrollment Form'!$B281<>\"Subscriber\",'Enrollment Form'!$C281=\"ROC\"),\"-\",IF(AND('Enrollment Form'!$B281=\"Subscriber\",'Enrollment Form'!$C281=\"Enroll\",'Enrollment Form'!$AL281<>\"\"),\"Y\",\"N\")))","v":""},{"$f":"IF($B274=\"N\",\"\",IF(OR('Enrollment Form'!$B281<>\"Subscriber\",'Enrollment Form'!$C281=\"ROC\"),\"-\",IF(AND('Enrollment Form'!$B281=\"Subscriber\",'Enrollment Form'!$C281=\"Enroll\",'Enrollment Form'!$AM281<>\"\"),\"Y\",\"N\")))","v":""},{"$f":"IF($B274=\"N\",\"\",IF(OR('Enrollment Form'!$B281<>\"Subscriber\",'Enrollment Form'!$C281=\"ROC\"),\"-\",IF(AND('Enrollment Form'!$B281=\"Subscriber\",'Enrollment Form'!$C281=\"Enroll\",'Enrollment Form'!$AN281<>\"\"),\"Y\",\"N\")))","v":""},{"$f":"IF($B274=\"N\",\"\",IF(OR('Enrollment Form'!$B281<>\"Subscriber\",'Enrollment Form'!$C281=\"ROC\"),\"-\",IF(AND('Enrollment Form'!$B281=\"Subscriber\",'Enrollment Form'!$C281=\"Enroll\",'Enrollment Form'!$AP281<>\"\"),\"Y\",\"N\")))","v":""},{"$f":"IF($B274=\"N\",\"\",IF($Q274=\"-\",\"-\",IF(AND($Q274=\"Y\",'Enrollment Form'!$AP281=\"No\"),\"-\",IF(AND($Q274=\"Y\",'Enrollment Form'!$AP281=\"Yes\",'Enrollment Form'!$AQ281<>\"\"),\"Y\",\"N\"))))","v":""},{"$f":"IF($B274=\"N\",\"\",IF(OR('Enrollment Form'!$B281<>\"Subscriber\",'Enrollment Form'!$C281=\"ROC\"),\"-\",IF(AND('Enrollment Form'!$B281=\"Subscriber\",'Enrollment Form'!$C281=\"Enroll\",'Enrollment Form'!$CO281<>\"\"),\"Y\",\"N\")))","v":""},{"$f":"IF($B274=\"N\",\"\",IF($S274=\"-\",\"-\",IF(AND($S274=\"Y\",'Enrollment Form'!$CO281=\"No\"),\"-\",IF(AND($S274=\"Y\",'Enrollment Form'!$CO281=\"Yes\",'Enrollment Form'!$CP281<>\"\"),\"Y\",\"N\"))))","v":""},{"$f":"IF(OR('Enrollment Form'!$AV281=\"Yes\",'Enrollment Form'!$AV281=\"\"),\"-\",IF(AND('Enrollment Form'!$AV281=\"No\",ISERROR(FIND(\"HMO\",VLOOKUP('Enrollment Form'!G281,'Enrollment Form'!H$11:J$1000,3,FALSE),1))=FALSE,COUNTA('Enrollment Form'!$AW281:$AZ281)=4),\"Y\",\"N\"))","v":"-"},{"$f":"IF($B274=\"N\",\"\",IF('Enrollment Form'!$B281=\"Subscriber\",\"-\",IF(COUNTA('Enrollment Form'!$BE281,'Enrollment Form'!$BG281)=2,\"Y\",\"N\")))","v":""},{"$f":"IF($B274=\"N\",\"\",IF(OR('Enrollment Form'!$AU281=\"\",'Enrollment Form'!$AU281=\"No\"),\"-\",IF(AND('Enrollment Form'!$AU281=\"Yes\",COUNTA('Enrollment Form'!$CK281)=1),\"Y\",\"N\")))","v":""},{"$f":"IF(OR('Enrollment Form'!$CK281=\"\",'Enrollment Form'!$CK281=\"No\"),\"-\",IF(COUNTA('Enrollment Form'!$CM281:$CN281)=2,\"Y\",\"N\"))","v":"-"},{"$f":"IF($B274=\"N\",\"\",IF(COUNTIF('Enrollment Form'!$CZ281:$DO281,\"Other\")=COUNTA('Enrollment Form'!$DF281,'Enrollment Form'!$DA281,'Enrollment Form'!$DK281,'Enrollment Form'!$DP281),\"Y\",\"N\"))","v":""},{"$f":"IF($B274=\"N\",\"\",IF(OR('Enrollment Form'!B281<>\"Subscriber\",'Enrollment Form'!C281=\"ROC\",COUNTIF('Enrollment Form'!AS281:AT281,\"Yes\")>=1),\"-\",IF(AND('Enrollment Form'!C281=\"Enroll\",COUNTIF('Enrollment Form'!AS281:AT281,\"No\")=2,'Enrollment Form'!AU281=\"\"),\"N\",\"Y\")))","v":""},{"$f":"IF(OR(B274=\"N\",'Enrollment Form'!B281<>\"Subscriber\",'Enrollment Form'!C281=\"ROC\",'Enrollment Form'!O281<>\"Multiple of Salary\"),\"-\",IF(COUNTA('Enrollment Form'!T281:U281)<2,\"N\",\"Y\"))","v":"-"},{"$f":"IF(B274=\"N\",\"\",IF(OR('Enrollment Form'!C281=\"ROC\",'Enrollment Form'!B281<>\"Subscriber\",'Enrollment Form'!O281=\"Waive\",'Enrollment Form'!O281=\"\"),\"-\",IF('Enrollment Form'!P281=\"\",\"N\",\"Y\")))","v":""},{"$f":"IF($B274=\"N\",\"\",IF(AND('Enrollment Form'!$C281=\"ROC\",'Enrollment Form'!$DS281<>\"\"),\"Y\",IF(AND('Enrollment Form'!$C281=\"ROC\",'Enrollment Form'!$DS281=\"\"),\"N\",IF(AND('Enrollment Form'!$C281=\"Enroll\",'Enrollment Form'!$B281=\"Subscriber\",'Enrollment Form'!$CQ281=\"No\",'Enrollment Form'!$DS281=\"\"),\"N\",IF(AND('Enrollment Form'!$C281=\"Enroll\",'Enrollment Form'!$B281=\"Subscriber\",'Enrollment Form'!$CQ281=\"Yes\"),\"-\",\"Y\")))))","v":""},{"$f":"IF($B274=\"N\",\"\",IF(AND('Enrollment Form'!$C281=\"ROC\",'Enrollment Form'!$DT281<>\"\"),\"Y\",IF(AND('Enrollment Form'!$C281=\"ROC\",'Enrollment Form'!$DT281=\"\"),\"N\",IF(AND('Enrollment Form'!$C281=\"Enroll\",'Enrollment Form'!$B281=\"Subscriber\",'Enrollment Form'!$CQ281=\"No\",'Enrollment Form'!$DT281=\"\"),\"N\",IF(AND('Enrollment Form'!$C281=\"Enroll\",'Enrollment Form'!$B281=\"Subscriber\",'Enrollment Form'!$CQ281=\"Yes\"),\"-\",\"Y\")))))","v":""},{"$f":"IF('Enrollment Form'!AH281=\"\",\"\",IF(ISERROR(SEARCH(\".\",'Enrollment Form'!AH281,SEARCH(\"@\",'Enrollment Form'!AH281))),\"N\",\"Y\"))","v":""},{"$f":"IF(OR($B274=\"N\",'Enrollment Form'!$G281=\"\"),\"\",IF('Enrollment Form'!$B281<>\"Subscriber\",\"-\",IF(COUNTIF('Enrollment Form'!$AS281:$AT281,\"Yes\")=2,\"N\",\"Y\")))","v":""},{"$f":"IF(OR('Enrollment Form'!$CC281=\"\",'Enrollment Form'!$CC281=\"No\"),\"-\",IF(AND('Enrollment Form'!$CC281=\"Yes\",'Enrollment Form'!$CD281=\"\"),\"N\",\"Y\"))","v":"-"},{"$f":"IF(OR('Enrollment Form'!$CE281=\"\",'Enrollment Form'!$CE281=\"No\"),\"-\",IF(AND('Enrollment Form'!$CE281=\"Yes\",'Enrollment Form'!$CF281=\"\"),\"N\",\"Y\"))","v":"-"},{"$f":"IF(OR('Enrollment Form'!$CG281=\"\",'Enrollment Form'!$CG281=\"No\"),\"-\",IF(AND('Enrollment Form'!$CG281=\"Yes\",'Enrollment Form'!$CH281=\"\"),\"N\",\"Y\"))","v":"-"},{"$f":"IF(OR('Enrollment Form'!$CG281=\"\",'Enrollment Form'!$CG281=\"No\"),\"-\",IF(AND('Enrollment Form'!$CG281=\"Yes\",'Enrollment Form'!$CI281=\"\"),\"N\",\"Y\"))","v":"-"},{"$f":"IF('Enrollment Form'!B281<>\"Subscriber\",\"-\",IF(AND('Enrollment Form'!B281=\"Subscriber\",'Enrollment Form'!C281=\"Enroll\",'Enrollment Form'!AA281=\"\"),\"N\",\"Y\"))","v":"-"},{"$f":"IF(OR('Enrollment Form'!B281=\"Subscriber\",'Enrollment Form'!B281=\"\"),\"-\",IF('Enrollment Form'!BI281=\"\",\"N\",\"Y\"))","v":"-"},{"$f":"IF('Enrollment Form'!B281<>\"Subscriber\",\"-\",IF(AND('Enrollment Form'!B281=\"Subscriber\",'Enrollment Form'!G281=\"\"),\"N\",\"Y\"))","v":"-"},{"$f":"IF('Enrollment Form'!A281=\"\",\"\",IF('Enrollment Form'!B281=\"Subscriber\",\"-\",IF(AND('Enrollment Form'!B281<>\"Subscriber\",'Enrollment Form'!G281='Enrollment Form'!H281),\"N\",\"Y\")))","v":""},0]
[282,{"$f":"IF('Enrollment Form'!$A282<>\"\",\"Y\",\"N\")","v":"N"},{"$f":"IF(AND('Enrollment Form'!$B282=\"\",'Enrollment Form'!$C282<>\"\"),\"N\",IF($B275=\"N\",\"\",\"Y\"))","v":""},{"$f":"IF(OR($B275=\"N\",'Enrollment Form'!G282=\"\"),\"\",IF('Enrollment Form'!$B282<>\"Subscriber\",\"\",IF('Enrollment Form'!$G282='Enrollment Form'!$H282,\"Y\",\"N\")))","v":""},{"$f":"IF($B275=\"N\",\"\",IF(AND(COUNTIFS('Enrollment Form'!$H$11:$H$1000,'Enrollment Form'!$H282,'Enrollment Form'!$B$11:$B$1000,'Enrollment Form'!$B282)>1,'Enrollment Form'!$H282<>\"\"),\"N\",\"Y\"))","v":""},{"$f":"IF($B275=\"N\",\"\",IF(LEN('Enrollment Form'!$Y282)=0,\"\",IF(LEN('Enrollment Form'!$Y282)<>5,\"N\",\"Y\")))","v":""},{"$f":"IF($B275=\"N\",\"\",IF(LEN('Enrollment Form'!$AD282=0),\"\",IF(LEN('Enrollment Form'!$AD282)<>5,\"N\",\"Y\")))","v":""},{"$f":"IF($B275=\"N\",\"\",IF(LEN('Enrollment Form'!$BL282=0),\"\",IF(LEN('Enrollment Form'!$BL282)<>5,\"N\",\"Y\")))","v":""},{"$f":"IF($B275=\"N\",\"\",IF(LEN('Enrollment Form'!$AE282)=0,\"\",IF(LEN('Enrollment Form'!$AE282)<>10,\"N\",\"Y\")))","v":""},{"$f":"IF($B275=\"N\",\"\",IF(LEN('Enrollment Form'!$AF282)=0,\"\",IF(LEN('Enrollment Form'!$AF282)<>10,\"N\",\"Y\")))","v":""},{"$f":"IF('Enrollment Form'!$O282<>\"Graded\",\"-\",IF(AND('Enrollment Form'!$O282=\"Graded\",'Enrollment Form'!$AO282<>\"\"),\"Y\",\"N\"))","v":"-"},{"$f":"IF($B275=\"N\",\"\",IF(OR('Enrollment Form'!$B282<>\"Subscriber\",'Enrollment Form'!$C282=\"ROC\"),\"-\",IF(AND('Enrollment Form'!$B282=\"Subscriber\",'Enrollment Form'!$C282=\"Enroll\",'Enrollment Form'!$AJ282<>\"\"),\"Y\",\"N\")))","v":""},{"$f":"IF($B275=\"N\",\"\",IF(OR('Enrollment Form'!$B282<>\"Subscriber\",'Enrollment Form'!$C282=\"ROC\"),\"-\",IF(AND('Enrollment Form'!$B282=\"Subscriber\",'Enrollment Form'!$C282=\"Enroll\",'Enrollment Form'!$AK282<>\"\"),\"Y\",\"N\")))","v":""},{"$f":"IF($B275=\"N\",\"\",IF(OR('Enrollment Form'!$B282<>\"Subscriber\",'Enrollment Form'!$C282=\"ROC\"),\"-\",IF(AND('Enrollment Form'!$B282=\"Subscriber\",'Enrollment Form'!$C282=\"Enroll\",'Enrollment Form'!$AL282<>\"\"),\"Y\",\"N\")))","v":""},{"$f":"IF($B275=\"N\",\"\",IF(OR('Enrollment Form'!$B282<>\"Subscriber\",'Enrollment Form'!$C282=\"ROC\"),\"-\",IF(AND('Enrollment Form'!$B282=\"Subscriber\",'Enrollment Form'!$C282=\"Enroll\",'Enrollment Form'!$AM282<>\"\"),\"Y\",\"N\")))","v":""},{"$f":"IF($B275=\"N\",\"\",IF(OR('Enrollment Form'!$B282<>\"Subscriber\",'Enrollment Form'!$C282=\"ROC\"),\"-\",IF(AND('Enrollment Form'!$B282=\"Subscriber\",'Enrollment Form'!$C282=\"Enroll\",'Enrollment Form'!$AN282<>\"\"),\"Y\",\"N\")))","v":""},{"$f":"IF($B275=\"N\",\"\",IF(OR('Enrollment Form'!$B282<>\"Subscriber\",'Enrollment Form'!$C282=\"ROC\"),\"-\",IF(AND('Enrollment Form'!$B282=\"Subscriber\",'Enrollment Form'!$C282=\"Enroll\",'Enrollment Form'!$AP282<>\"\"),\"Y\",\"N\")))","v":""},{"$f":"IF($B275=\"N\",\"\",IF($Q275=\"-\",\"-\",IF(AND($Q275=\"Y\",'Enrollment Form'!$AP282=\"No\"),\"-\",IF(AND($Q275=\"Y\",'Enrollment Form'!$AP282=\"Yes\",'Enrollment Form'!$AQ282<>\"\"),\"Y\",\"N\"))))","v":""},{"$f":"IF($B275=\"N\",\"\",IF(OR('Enrollment Form'!$B282<>\"Subscriber\",'Enrollment Form'!$C282=\"ROC\"),\"-\",IF(AND('Enrollment Form'!$B282=\"Subscriber\",'Enrollment Form'!$C282=\"Enroll\",'Enrollment Form'!$CO282<>\"\"),\"Y\",\"N\")))","v":""},{"$f":"IF($B275=\"N\",\"\",IF($S275=\"-\",\"-\",IF(AND($S275=\"Y\",'Enrollment Form'!$CO282=\"No\"),\"-\",IF(AND($S275=\"Y\",'Enrollment Form'!$CO282=\"Yes\",'Enrollment Form'!$CP282<>\"\"),\"Y\",\"N\"))))","v":""},{"$f":"IF(OR('Enrollment Form'!$AV282=\"Yes\",'Enrollment Form'!$AV282=\"\"),\"-\",IF(AND('Enrollment Form'!$AV282=\"No\",ISERROR(FIND(\"HMO\",VLOOKUP('Enrollment Form'!G282,'Enrollment Form'!H$11:J$1000,3,FALSE),1))=FALSE,COUNTA('Enrollment Form'!$AW282:$AZ282)=4),\"Y\",\"N\"))","v":"-"},{"$f":"IF($B275=\"N\",\"\",IF('Enrollment Form'!$B282=\"Subscriber\",\"-\",IF(COUNTA('Enrollment Form'!$BE282,'Enrollment Form'!$BG282)=2,\"Y\",\"N\")))","v":""},{"$f":"IF($B275=\"N\",\"\",IF(OR('Enrollment Form'!$AU282=\"\",'Enrollment Form'!$AU282=\"No\"),\"-\",IF(AND('Enrollment Form'!$AU282=\"Yes\",COUNTA('Enrollment Form'!$CK282)=1),\"Y\",\"N\")))","v":""},{"$f":"IF(OR('Enrollment Form'!$CK282=\"\",'Enrollment Form'!$CK282=\"No\"),\"-\",IF(COUNTA('Enrollment Form'!$CM282:$CN282)=2,\"Y\",\"N\"))","v":"-"},{"$f":"IF($B275=\"N\",\"\",IF(COUNTIF('Enrollment Form'!$CZ282:$DO282,\"Other\")=COUNTA('Enrollment Form'!$DF282,'Enrollment Form'!$DA282,'Enrollment Form'!$DK282,'Enrollment Form'!$DP282),\"Y\",\"N\"))","v":""},{"$f":"IF($B275=\"N\",\"\",IF(OR('Enrollment Form'!B282<>\"Subscriber\",'Enrollment Form'!C282=\"ROC\",COUNTIF('Enrollment Form'!AS282:AT282,\"Yes\")>=1),\"-\",IF(AND('Enrollment Form'!C282=\"Enroll\",COUNTIF('Enrollment Form'!AS282:AT282,\"No\")=2,'Enrollment Form'!AU282=\"\"),\"N\",\"Y\")))","v":""},{"$f":"IF(OR(B275=\"N\",'Enrollment Form'!B282<>\"Subscriber\",'Enrollment Form'!C282=\"ROC\",'Enrollment Form'!O282<>\"Multiple of Salary\"),\"-\",IF(COUNTA('Enrollment Form'!T282:U282)<2,\"N\",\"Y\"))","v":"-"},{"$f":"IF(B275=\"N\",\"\",IF(OR('Enrollment Form'!C282=\"ROC\",'Enrollment Form'!B282<>\"Subscriber\",'Enrollment Form'!O282=\"Waive\",'Enrollment Form'!O282=\"\"),\"-\",IF('Enrollment Form'!P282=\"\",\"N\",\"Y\")))","v":""},{"$f":"IF($B275=\"N\",\"\",IF(AND('Enrollment Form'!$C282=\"ROC\",'Enrollment Form'!$DS282<>\"\"),\"Y\",IF(AND('Enrollment Form'!$C282=\"ROC\",'Enrollment Form'!$DS282=\"\"),\"N\",IF(AND('Enrollment Form'!$C282=\"Enroll\",'Enrollment Form'!$B282=\"Subscriber\",'Enrollment Form'!$CQ282=\"No\",'Enrollment Form'!$DS282=\"\"),\"N\",IF(AND('Enrollment Form'!$C282=\"Enroll\",'Enrollment Form'!$B282=\"Subscriber\",'Enrollment Form'!$CQ282=\"Yes\"),\"-\",\"Y\")))))","v":""},{"$f":"IF($B275=\"N\",\"\",IF(AND('Enrollment Form'!$C282=\"ROC\",'Enrollment Form'!$DT282<>\"\"),\"Y\",IF(AND('Enrollment Form'!$C282=\"ROC\",'Enrollment Form'!$DT282=\"\"),\"N\",IF(AND('Enrollment Form'!$C282=\"Enroll\",'Enrollment Form'!$B282=\"Subscriber\",'Enrollment Form'!$CQ282=\"No\",'Enrollment Form'!$DT282=\"\"),\"N\",IF(AND('Enrollment Form'!$C282=\"Enroll\",'Enrollment Form'!$B282=\"Subscriber\",'Enrollment Form'!$CQ282=\"Yes\"),\"-\",\"Y\")))))","v":""},{"$f":"IF('Enrollment Form'!AH282=\"\",\"\",IF(ISERROR(SEARCH(\".\",'Enrollment Form'!AH282,SEARCH(\"@\",'Enrollment Form'!AH282))),\"N\",\"Y\"))","v":""},{"$f":"IF(OR($B275=\"N\",'Enrollment Form'!$G282=\"\"),\"\",IF('Enrollment Form'!$B282<>\"Subscriber\",\"-\",IF(COUNTIF('Enrollment Form'!$AS282:$AT282,\"Yes\")=2,\"N\",\"Y\")))","v":""},{"$f":"IF(OR('Enrollment Form'!$CC282=\"\",'Enrollment Form'!$CC282=\"No\"),\"-\",IF(AND('Enrollment Form'!$CC282=\"Yes\",'Enrollment Form'!$CD282=\"\"),\"N\",\"Y\"))","v":"-"},{"$f":"IF(OR('Enrollment Form'!$CE282=\"\",'Enrollment Form'!$CE282=\"No\"),\"-\",IF(AND('Enrollment Form'!$CE282=\"Yes\",'Enrollment Form'!$CF282=\"\"),\"N\",\"Y\"))","v":"-"},{"$f":"IF(OR('Enrollment Form'!$CG282=\"\",'Enrollment Form'!$CG282=\"No\"),\"-\",IF(AND('Enrollment Form'!$CG282=\"Yes\",'Enrollment Form'!$CH282=\"\"),\"N\",\"Y\"))","v":"-"},{"$f":"IF(OR('Enrollment Form'!$CG282=\"\",'Enrollment Form'!$CG282=\"No\"),\"-\",IF(AND('Enrollment Form'!$CG282=\"Yes\",'Enrollment Form'!$CI282=\"\"),\"N\",\"Y\"))","v":"-"},{"$f":"IF('Enrollment Form'!B282<>\"Subscriber\",\"-\",IF(AND('Enrollment Form'!B282=\"Subscriber\",'Enrollment Form'!C282=\"Enroll\",'Enrollment Form'!AA282=\"\"),\"N\",\"Y\"))","v":"-"},{"$f":"IF(OR('Enrollment Form'!B282=\"Subscriber\",'Enrollment Form'!B282=\"\"),\"-\",IF('Enrollment Form'!BI282=\"\",\"N\",\"Y\"))","v":"-"},{"$f":"IF('Enrollment Form'!B282<>\"Subscriber\",\"-\",IF(AND('Enrollment Form'!B282=\"Subscriber\",'Enrollment Form'!G282=\"\"),\"N\",\"Y\"))","v":"-"},{"$f":"IF('Enrollment Form'!A282=\"\",\"\",IF('Enrollment Form'!B282=\"Subscriber\",\"-\",IF(AND('Enrollment Form'!B282<>\"Subscriber\",'Enrollment Form'!G282='Enrollment Form'!H282),\"N\",\"Y\")))","v":""},0]
[283,{"$f":"IF('Enrollment Form'!$A283<>\"\",\"Y\",\"N\")","v":"N"},{"$f":"IF(AND('Enrollment Form'!$B283=\"\",'Enrollment Form'!$C283<>\"\"),\"N\",IF($B276=\"N\",\"\",\"Y\"))","v":""},{"$f":"IF(OR($B276=\"N\",'Enrollment Form'!G283=\"\"),\"\",IF('Enrollment Form'!$B283<>\"Subscriber\",\"\",IF('Enrollment Form'!$G283='Enrollment Form'!$H283,\"Y\",\"N\")))","v":""},{"$f":"IF($B276=\"N\",\"\",IF(AND(COUNTIFS('Enrollment Form'!$H$11:$H$1000,'Enrollment Form'!$H283,'Enrollment Form'!$B$11:$B$1000,'Enrollment Form'!$B283)>1,'Enrollment Form'!$H283<>\"\"),\"N\",\"Y\"))","v":""},{"$f":"IF($B276=\"N\",\"\",IF(LEN('Enrollment Form'!$Y283)=0,\"\",IF(LEN('Enrollment Form'!$Y283)<>5,\"N\",\"Y\")))","v":""},{"$f":"IF($B276=\"N\",\"\",IF(LEN('Enrollment Form'!$AD283=0),\"\",IF(LEN('Enrollment Form'!$AD283)<>5,\"N\",\"Y\")))","v":""},{"$f":"IF($B276=\"N\",\"\",IF(LEN('Enrollment Form'!$BL283=0),\"\",IF(LEN('Enrollment Form'!$BL283)<>5,\"N\",\"Y\")))","v":""},{"$f":"IF($B276=\"N\",\"\",IF(LEN('Enrollment Form'!$AE283)=0,\"\",IF(LEN('Enrollment Form'!$AE283)<>10,\"N\",\"Y\")))","v":""},{"$f":"IF($B276=\"N\",\"\",IF(LEN('Enrollment Form'!$AF283)=0,\"\",IF(LEN('Enrollment Form'!$AF283)<>10,\"N\",\"Y\")))","v":""},{"$f":"IF('Enrollment Form'!$O283<>\"Graded\",\"-\",IF(AND('Enrollment Form'!$O283=\"Graded\",'Enrollment Form'!$AO283<>\"\"),\"Y\",\"N\"))","v":"-"},{"$f":"IF($B276=\"N\",\"\",IF(OR('Enrollment Form'!$B283<>\"Subscriber\",'Enrollment Form'!$C283=\"ROC\"),\"-\",IF(AND('Enrollment Form'!$B283=\"Subscriber\",'Enrollment Form'!$C283=\"Enroll\",'Enrollment Form'!$AJ283<>\"\"),\"Y\",\"N\")))","v":""},{"$f":"IF($B276=\"N\",\"\",IF(OR('Enrollment Form'!$B283<>\"Subscriber\",'Enrollment Form'!$C283=\"ROC\"),\"-\",IF(AND('Enrollment Form'!$B283=\"Subscriber\",'Enrollment Form'!$C283=\"Enroll\",'Enrollment Form'!$AK283<>\"\"),\"Y\",\"N\")))","v":""},{"$f":"IF($B276=\"N\",\"\",IF(OR('Enrollment Form'!$B283<>\"Subscriber\",'Enrollment Form'!$C283=\"ROC\"),\"-\",IF(AND('Enrollment Form'!$B283=\"Subscriber\",'Enrollment Form'!$C283=\"Enroll\",'Enrollment Form'!$AL283<>\"\"),\"Y\",\"N\")))","v":""},{"$f":"IF($B276=\"N\",\"\",IF(OR('Enrollment Form'!$B283<>\"Subscriber\",'Enrollment Form'!$C283=\"ROC\"),\"-\",IF(AND('Enrollment Form'!$B283=\"Subscriber\",'Enrollment Form'!$C283=\"Enroll\",'Enrollment Form'!$AM283<>\"\"),\"Y\",\"N\")))","v":""},{"$f":"IF($B276=\"N\",\"\",IF(OR('Enrollment Form'!$B283<>\"Subscriber\",'Enrollment Form'!$C283=\"ROC\"),\"-\",IF(AND('Enrollment Form'!$B283=\"Subscriber\",'Enrollment Form'!$C283=\"Enroll\",'Enrollment Form'!$AN283<>\"\"),\"Y\",\"N\")))","v":""},{"$f":"IF($B276=\"N\",\"\",IF(OR('Enrollment Form'!$B283<>\"Subscriber\",'Enrollment Form'!$C283=\"ROC\"),\"-\",IF(AND('Enrollment Form'!$B283=\"Subscriber\",'Enrollment Form'!$C283=\"Enroll\",'Enrollment Form'!$AP283<>\"\"),\"Y\",\"N\")))","v":""},{"$f":"IF($B276=\"N\",\"\",IF($Q276=\"-\",\"-\",IF(AND($Q276=\"Y\",'Enrollment Form'!$AP283=\"No\"),\"-\",IF(AND($Q276=\"Y\",'Enrollment Form'!$AP283=\"Yes\",'Enrollment Form'!$AQ283<>\"\"),\"Y\",\"N\"))))","v":""},{"$f":"IF($B276=\"N\",\"\",IF(OR('Enrollment Form'!$B283<>\"Subscriber\",'Enrollment Form'!$C283=\"ROC\"),\"-\",IF(AND('Enrollment Form'!$B283=\"Subscriber\",'Enrollment Form'!$C283=\"Enroll\",'Enrollment Form'!$CO283<>\"\"),\"Y\",\"N\")))","v":""},{"$f":"IF($B276=\"N\",\"\",IF($S276=\"-\",\"-\",IF(AND($S276=\"Y\",'Enrollment Form'!$CO283=\"No\"),\"-\",IF(AND($S276=\"Y\",'Enrollment Form'!$CO283=\"Yes\",'Enrollment Form'!$CP283<>\"\"),\"Y\",\"N\"))))","v":""},{"$f":"IF(OR('Enrollment Form'!$AV283=\"Yes\",'Enrollment Form'!$AV283=\"\"),\"-\",IF(AND('Enrollment Form'!$AV283=\"No\",ISERROR(FIND(\"HMO\",VLOOKUP('Enrollment Form'!G283,'Enrollment Form'!H$11:J$1000,3,FALSE),1))=FALSE,COUNTA('Enrollment Form'!$AW283:$AZ283)=4),\"Y\",\"N\"))","v":"-"},{"$f":"IF($B276=\"N\",\"\",IF('Enrollment Form'!$B283=\"Subscriber\",\"-\",IF(COUNTA('Enrollment Form'!$BE283,'Enrollment Form'!$BG283)=2,\"Y\",\"N\")))","v":""},{"$f":"IF($B276=\"N\",\"\",IF(OR('Enrollment Form'!$AU283=\"\",'Enrollment Form'!$AU283=\"No\"),\"-\",IF(AND('Enrollment Form'!$AU283=\"Yes\",COUNTA('Enrollment Form'!$CK283)=1),\"Y\",\"N\")))","v":""},{"$f":"IF(OR('Enrollment Form'!$CK283=\"\",'Enrollment Form'!$CK283=\"No\"),\"-\",IF(COUNTA('Enrollment Form'!$CM283:$CN283)=2,\"Y\",\"N\"))","v":"-"},{"$f":"IF($B276=\"N\",\"\",IF(COUNTIF('Enrollment Form'!$CZ283:$DO283,\"Other\")=COUNTA('Enrollment Form'!$DF283,'Enrollment Form'!$DA283,'Enrollment Form'!$DK283,'Enrollment Form'!$DP283),\"Y\",\"N\"))","v":""},{"$f":"IF($B276=\"N\",\"\",IF(OR('Enrollment Form'!B283<>\"Subscriber\",'Enrollment Form'!C283=\"ROC\",COUNTIF('Enrollment Form'!AS283:AT283,\"Yes\")>=1),\"-\",IF(AND('Enrollment Form'!C283=\"Enroll\",COUNTIF('Enrollment Form'!AS283:AT283,\"No\")=2,'Enrollment Form'!AU283=\"\"),\"N\",\"Y\")))","v":""},{"$f":"IF(OR(B276=\"N\",'Enrollment Form'!B283<>\"Subscriber\",'Enrollment Form'!C283=\"ROC\",'Enrollment Form'!O283<>\"Multiple of Salary\"),\"-\",IF(COUNTA('Enrollment Form'!T283:U283)<2,\"N\",\"Y\"))","v":"-"},{"$f":"IF(B276=\"N\",\"\",IF(OR('Enrollment Form'!C283=\"ROC\",'Enrollment Form'!B283<>\"Subscriber\",'Enrollment Form'!O283=\"Waive\",'Enrollment Form'!O283=\"\"),\"-\",IF('Enrollment Form'!P283=\"\",\"N\",\"Y\")))","v":""},{"$f":"IF($B276=\"N\",\"\",IF(AND('Enrollment Form'!$C283=\"ROC\",'Enrollment Form'!$DS283<>\"\"),\"Y\",IF(AND('Enrollment Form'!$C283=\"ROC\",'Enrollment Form'!$DS283=\"\"),\"N\",IF(AND('Enrollment Form'!$C283=\"Enroll\",'Enrollment Form'!$B283=\"Subscriber\",'Enrollment Form'!$CQ283=\"No\",'Enrollment Form'!$DS283=\"\"),\"N\",IF(AND('Enrollment Form'!$C283=\"Enroll\",'Enrollment Form'!$B283=\"Subscriber\",'Enrollment Form'!$CQ283=\"Yes\"),\"-\",\"Y\")))))","v":""},{"$f":"IF($B276=\"N\",\"\",IF(AND('Enrollment Form'!$C283=\"ROC\",'Enrollment Form'!$DT283<>\"\"),\"Y\",IF(AND('Enrollment Form'!$C283=\"ROC\",'Enrollment Form'!$DT283=\"\"),\"N\",IF(AND('Enrollment Form'!$C283=\"Enroll\",'Enrollment Form'!$B283=\"Subscriber\",'Enrollment Form'!$CQ283=\"No\",'Enrollment Form'!$DT283=\"\"),\"N\",IF(AND('Enrollment Form'!$C283=\"Enroll\",'Enrollment Form'!$B283=\"Subscriber\",'Enrollment Form'!$CQ283=\"Yes\"),\"-\",\"Y\")))))","v":""},{"$f":"IF('Enrollment Form'!AH283=\"\",\"\",IF(ISERROR(SEARCH(\".\",'Enrollment Form'!AH283,SEARCH(\"@\",'Enrollment Form'!AH283))),\"N\",\"Y\"))","v":""},{"$f":"IF(OR($B276=\"N\",'Enrollment Form'!$G283=\"\"),\"\",IF('Enrollment Form'!$B283<>\"Subscriber\",\"-\",IF(COUNTIF('Enrollment Form'!$AS283:$AT283,\"Yes\")=2,\"N\",\"Y\")))","v":""},{"$f":"IF(OR('Enrollment Form'!$CC283=\"\",'Enrollment Form'!$CC283=\"No\"),\"-\",IF(AND('Enrollment Form'!$CC283=\"Yes\",'Enrollment Form'!$CD283=\"\"),\"N\",\"Y\"))","v":"-"},{"$f":"IF(OR('Enrollment Form'!$CE283=\"\",'Enrollment Form'!$CE283=\"No\"),\"-\",IF(AND('Enrollment Form'!$CE283=\"Yes\",'Enrollment Form'!$CF283=\"\"),\"N\",\"Y\"))","v":"-"},{"$f":"IF(OR('Enrollment Form'!$CG283=\"\",'Enrollment Form'!$CG283=\"No\"),\"-\",IF(AND('Enrollment Form'!$CG283=\"Yes\",'Enrollment Form'!$CH283=\"\"),\"N\",\"Y\"))","v":"-"},{"$f":"IF(OR('Enrollment Form'!$CG283=\"\",'Enrollment Form'!$CG283=\"No\"),\"-\",IF(AND('Enrollment Form'!$CG283=\"Yes\",'Enrollment Form'!$CI283=\"\"),\"N\",\"Y\"))","v":"-"},{"$f":"IF('Enrollment Form'!B283<>\"Subscriber\",\"-\",IF(AND('Enrollment Form'!B283=\"Subscriber\",'Enrollment Form'!C283=\"Enroll\",'Enrollment Form'!AA283=\"\"),\"N\",\"Y\"))","v":"-"},{"$f":"IF(OR('Enrollment Form'!B283=\"Subscriber\",'Enrollment Form'!B283=\"\"),\"-\",IF('Enrollment Form'!BI283=\"\",\"N\",\"Y\"))","v":"-"},{"$f":"IF('Enrollment Form'!B283<>\"Subscriber\",\"-\",IF(AND('Enrollment Form'!B283=\"Subscriber\",'Enrollment Form'!G283=\"\"),\"N\",\"Y\"))","v":"-"},{"$f":"IF('Enrollment Form'!A283=\"\",\"\",IF('Enrollment Form'!B283=\"Subscriber\",\"-\",IF(AND('Enrollment Form'!B283<>\"Subscriber\",'Enrollment Form'!G283='Enrollment Form'!H283),\"N\",\"Y\")))","v":""},0]
[284,{"$f":"IF('Enrollment Form'!$A284<>\"\",\"Y\",\"N\")","v":"N"},{"$f":"IF(AND('Enrollment Form'!$B284=\"\",'Enrollment Form'!$C284<>\"\"),\"N\",IF($B277=\"N\",\"\",\"Y\"))","v":""},{"$f":"IF(OR($B277=\"N\",'Enrollment Form'!G284=\"\"),\"\",IF('Enrollment Form'!$B284<>\"Subscriber\",\"\",IF('Enrollment Form'!$G284='Enrollment Form'!$H284,\"Y\",\"N\")))","v":""},{"$f":"IF($B277=\"N\",\"\",IF(AND(COUNTIFS('Enrollment Form'!$H$11:$H$1000,'Enrollment Form'!$H284,'Enrollment Form'!$B$11:$B$1000,'Enrollment Form'!$B284)>1,'Enrollment Form'!$H284<>\"\"),\"N\",\"Y\"))","v":""},{"$f":"IF($B277=\"N\",\"\",IF(LEN('Enrollment Form'!$Y284)=0,\"\",IF(LEN('Enrollment Form'!$Y284)<>5,\"N\",\"Y\")))","v":""},{"$f":"IF($B277=\"N\",\"\",IF(LEN('Enrollment Form'!$AD284=0),\"\",IF(LEN('Enrollment Form'!$AD284)<>5,\"N\",\"Y\")))","v":""},{"$f":"IF($B277=\"N\",\"\",IF(LEN('Enrollment Form'!$BL284=0),\"\",IF(LEN('Enrollment Form'!$BL284)<>5,\"N\",\"Y\")))","v":""},{"$f":"IF($B277=\"N\",\"\",IF(LEN('Enrollment Form'!$AE284)=0,\"\",IF(LEN('Enrollment Form'!$AE284)<>10,\"N\",\"Y\")))","v":""},{"$f":"IF($B277=\"N\",\"\",IF(LEN('Enrollment Form'!$AF284)=0,\"\",IF(LEN('Enrollment Form'!$AF284)<>10,\"N\",\"Y\")))","v":""},{"$f":"IF('Enrollment Form'!$O284<>\"Graded\",\"-\",IF(AND('Enrollment Form'!$O284=\"Graded\",'Enrollment Form'!$AO284<>\"\"),\"Y\",\"N\"))","v":"-"},{"$f":"IF($B277=\"N\",\"\",IF(OR('Enrollment Form'!$B284<>\"Subscriber\",'Enrollment Form'!$C284=\"ROC\"),\"-\",IF(AND('Enrollment Form'!$B284=\"Subscriber\",'Enrollment Form'!$C284=\"Enroll\",'Enrollment Form'!$AJ284<>\"\"),\"Y\",\"N\")))","v":""},{"$f":"IF($B277=\"N\",\"\",IF(OR('Enrollment Form'!$B284<>\"Subscriber\",'Enrollment Form'!$C284=\"ROC\"),\"-\",IF(AND('Enrollment Form'!$B284=\"Subscriber\",'Enrollment Form'!$C284=\"Enroll\",'Enrollment Form'!$AK284<>\"\"),\"Y\",\"N\")))","v":""},{"$f":"IF($B277=\"N\",\"\",IF(OR('Enrollment Form'!$B284<>\"Subscriber\",'Enrollment Form'!$C284=\"ROC\"),\"-\",IF(AND('Enrollment Form'!$B284=\"Subscriber\",'Enrollment Form'!$C284=\"Enroll\",'Enrollment Form'!$AL284<>\"\"),\"Y\",\"N\")))","v":""},{"$f":"IF($B277=\"N\",\"\",IF(OR('Enrollment Form'!$B284<>\"Subscriber\",'Enrollment Form'!$C284=\"ROC\"),\"-\",IF(AND('Enrollment Form'!$B284=\"Subscriber\",'Enrollment Form'!$C284=\"Enroll\",'Enrollment Form'!$AM284<>\"\"),\"Y\",\"N\")))","v":""},{"$f":"IF($B277=\"N\",\"\",IF(OR('Enrollment Form'!$B284<>\"Subscriber\",'Enrollment Form'!$C284=\"ROC\"),\"-\",IF(AND('Enrollment Form'!$B284=\"Subscriber\",'Enrollment Form'!$C284=\"Enroll\",'Enrollment Form'!$AN284<>\"\"),\"Y\",\"N\")))","v":""},{"$f":"IF($B277=\"N\",\"\",IF(OR('Enrollment Form'!$B284<>\"Subscriber\",'Enrollment Form'!$C284=\"ROC\"),\"-\",IF(AND('Enrollment Form'!$B284=\"Subscriber\",'Enrollment Form'!$C284=\"Enroll\",'Enrollment Form'!$AP284<>\"\"),\"Y\",\"N\")))","v":""},{"$f":"IF($B277=\"N\",\"\",IF($Q277=\"-\",\"-\",IF(AND($Q277=\"Y\",'Enrollment Form'!$AP284=\"No\"),\"-\",IF(AND($Q277=\"Y\",'Enrollment Form'!$AP284=\"Yes\",'Enrollment Form'!$AQ284<>\"\"),\"Y\",\"N\"))))","v":""},{"$f":"IF($B277=\"N\",\"\",IF(OR('Enrollment Form'!$B284<>\"Subscriber\",'Enrollment Form'!$C284=\"ROC\"),\"-\",IF(AND('Enrollment Form'!$B284=\"Subscriber\",'Enrollment Form'!$C284=\"Enroll\",'Enrollment Form'!$CO284<>\"\"),\"Y\",\"N\")))","v":""},{"$f":"IF($B277=\"N\",\"\",IF($S277=\"-\",\"-\",IF(AND($S277=\"Y\",'Enrollment Form'!$CO284=\"No\"),\"-\",IF(AND($S277=\"Y\",'Enrollment Form'!$CO284=\"Yes\",'Enrollment Form'!$CP284<>\"\"),\"Y\",\"N\"))))","v":""},{"$f":"IF(OR('Enrollment Form'!$AV284=\"Yes\",'Enrollment Form'!$AV284=\"\"),\"-\",IF(AND('Enrollment Form'!$AV284=\"No\",ISERROR(FIND(\"HMO\",VLOOKUP('Enrollment Form'!G284,'Enrollment Form'!H$11:J$1000,3,FALSE),1))=FALSE,COUNTA('Enrollment Form'!$AW284:$AZ284)=4),\"Y\",\"N\"))","v":"-"},{"$f":"IF($B277=\"N\",\"\",IF('Enrollment Form'!$B284=\"Subscriber\",\"-\",IF(COUNTA('Enrollment Form'!$BE284,'Enrollment Form'!$BG284)=2,\"Y\",\"N\")))","v":""},{"$f":"IF($B277=\"N\",\"\",IF(OR('Enrollment Form'!$AU284=\"\",'Enrollment Form'!$AU284=\"No\"),\"-\",IF(AND('Enrollment Form'!$AU284=\"Yes\",COUNTA('Enrollment Form'!$CK284)=1),\"Y\",\"N\")))","v":""},{"$f":"IF(OR('Enrollment Form'!$CK284=\"\",'Enrollment Form'!$CK284=\"No\"),\"-\",IF(COUNTA('Enrollment Form'!$CM284:$CN284)=2,\"Y\",\"N\"))","v":"-"},{"$f":"IF($B277=\"N\",\"\",IF(COUNTIF('Enrollment Form'!$CZ284:$DO284,\"Other\")=COUNTA('Enrollment Form'!$DF284,'Enrollment Form'!$DA284,'Enrollment Form'!$DK284,'Enrollment Form'!$DP284),\"Y\",\"N\"))","v":""},{"$f":"IF($B277=\"N\",\"\",IF(OR('Enrollment Form'!B284<>\"Subscriber\",'Enrollment Form'!C284=\"ROC\",COUNTIF('Enrollment Form'!AS284:AT284,\"Yes\")>=1),\"-\",IF(AND('Enrollment Form'!C284=\"Enroll\",COUNTIF('Enrollment Form'!AS284:AT284,\"No\")=2,'Enrollment Form'!AU284=\"\"),\"N\",\"Y\")))","v":""},{"$f":"IF(OR(B277=\"N\",'Enrollment Form'!B284<>\"Subscriber\",'Enrollment Form'!C284=\"ROC\",'Enrollment Form'!O284<>\"Multiple of Salary\"),\"-\",IF(COUNTA('Enrollment Form'!T284:U284)<2,\"N\",\"Y\"))","v":"-"},{"$f":"IF(B277=\"N\",\"\",IF(OR('Enrollment Form'!C284=\"ROC\",'Enrollment Form'!B284<>\"Subscriber\",'Enrollment Form'!O284=\"Waive\",'Enrollment Form'!O284=\"\"),\"-\",IF('Enrollment Form'!P284=\"\",\"N\",\"Y\")))","v":""},{"$f":"IF($B277=\"N\",\"\",IF(AND('Enrollment Form'!$C284=\"ROC\",'Enrollment Form'!$DS284<>\"\"),\"Y\",IF(AND('Enrollment Form'!$C284=\"ROC\",'Enrollment Form'!$DS284=\"\"),\"N\",IF(AND('Enrollment Form'!$C284=\"Enroll\",'Enrollment Form'!$B284=\"Subscriber\",'Enrollment Form'!$CQ284=\"No\",'Enrollment Form'!$DS284=\"\"),\"N\",IF(AND('Enrollment Form'!$C284=\"Enroll\",'Enrollment Form'!$B284=\"Subscriber\",'Enrollment Form'!$CQ284=\"Yes\"),\"-\",\"Y\")))))","v":""},{"$f":"IF($B277=\"N\",\"\",IF(AND('Enrollment Form'!$C284=\"ROC\",'Enrollment Form'!$DT284<>\"\"),\"Y\",IF(AND('Enrollment Form'!$C284=\"ROC\",'Enrollment Form'!$DT284=\"\"),\"N\",IF(AND('Enrollment Form'!$C284=\"Enroll\",'Enrollment Form'!$B284=\"Subscriber\",'Enrollment Form'!$CQ284=\"No\",'Enrollment Form'!$DT284=\"\"),\"N\",IF(AND('Enrollment Form'!$C284=\"Enroll\",'Enrollment Form'!$B284=\"Subscriber\",'Enrollment Form'!$CQ284=\"Yes\"),\"-\",\"Y\")))))","v":""},{"$f":"IF('Enrollment Form'!AH284=\"\",\"\",IF(ISERROR(SEARCH(\".\",'Enrollment Form'!AH284,SEARCH(\"@\",'Enrollment Form'!AH284))),\"N\",\"Y\"))","v":""},{"$f":"IF(OR($B277=\"N\",'Enrollment Form'!$G284=\"\"),\"\",IF('Enrollment Form'!$B284<>\"Subscriber\",\"-\",IF(COUNTIF('Enrollment Form'!$AS284:$AT284,\"Yes\")=2,\"N\",\"Y\")))","v":""},{"$f":"IF(OR('Enrollment Form'!$CC284=\"\",'Enrollment Form'!$CC284=\"No\"),\"-\",IF(AND('Enrollment Form'!$CC284=\"Yes\",'Enrollment Form'!$CD284=\"\"),\"N\",\"Y\"))","v":"-"},{"$f":"IF(OR('Enrollment Form'!$CE284=\"\",'Enrollment Form'!$CE284=\"No\"),\"-\",IF(AND('Enrollment Form'!$CE284=\"Yes\",'Enrollment Form'!$CF284=\"\"),\"N\",\"Y\"))","v":"-"},{"$f":"IF(OR('Enrollment Form'!$CG284=\"\",'Enrollment Form'!$CG284=\"No\"),\"-\",IF(AND('Enrollment Form'!$CG284=\"Yes\",'Enrollment Form'!$CH284=\"\"),\"N\",\"Y\"))","v":"-"},{"$f":"IF(OR('Enrollment Form'!$CG284=\"\",'Enrollment Form'!$CG284=\"No\"),\"-\",IF(AND('Enrollment Form'!$CG284=\"Yes\",'Enrollment Form'!$CI284=\"\"),\"N\",\"Y\"))","v":"-"},{"$f":"IF('Enrollment Form'!B284<>\"Subscriber\",\"-\",IF(AND('Enrollment Form'!B284=\"Subscriber\",'Enrollment Form'!C284=\"Enroll\",'Enrollment Form'!AA284=\"\"),\"N\",\"Y\"))","v":"-"},{"$f":"IF(OR('Enrollment Form'!B284=\"Subscriber\",'Enrollment Form'!B284=\"\"),\"-\",IF('Enrollment Form'!BI284=\"\",\"N\",\"Y\"))","v":"-"},{"$f":"IF('Enrollment Form'!B284<>\"Subscriber\",\"-\",IF(AND('Enrollment Form'!B284=\"Subscriber\",'Enrollment Form'!G284=\"\"),\"N\",\"Y\"))","v":"-"},{"$f":"IF('Enrollment Form'!A284=\"\",\"\",IF('Enrollment Form'!B284=\"Subscriber\",\"-\",IF(AND('Enrollment Form'!B284<>\"Subscriber\",'Enrollment Form'!G284='Enrollment Form'!H284),\"N\",\"Y\")))","v":""},0]
[285,{"$f":"IF('Enrollment Form'!$A285<>\"\",\"Y\",\"N\")","v":"N"},{"$f":"IF(AND('Enrollment Form'!$B285=\"\",'Enrollment Form'!$C285<>\"\"),\"N\",IF($B278=\"N\",\"\",\"Y\"))","v":""},{"$f":"IF(OR($B278=\"N\",'Enrollment Form'!G285=\"\"),\"\",IF('Enrollment Form'!$B285<>\"Subscriber\",\"\",IF('Enrollment Form'!$G285='Enrollment Form'!$H285,\"Y\",\"N\")))","v":""},{"$f":"IF($B278=\"N\",\"\",IF(AND(COUNTIFS('Enrollment Form'!$H$11:$H$1000,'Enrollment Form'!$H285,'Enrollment Form'!$B$11:$B$1000,'Enrollment Form'!$B285)>1,'Enrollment Form'!$H285<>\"\"),\"N\",\"Y\"))","v":""},{"$f":"IF($B278=\"N\",\"\",IF(LEN('Enrollment Form'!$Y285)=0,\"\",IF(LEN('Enrollment Form'!$Y285)<>5,\"N\",\"Y\")))","v":""},{"$f":"IF($B278=\"N\",\"\",IF(LEN('Enrollment Form'!$AD285=0),\"\",IF(LEN('Enrollment Form'!$AD285)<>5,\"N\",\"Y\")))","v":""},{"$f":"IF($B278=\"N\",\"\",IF(LEN('Enrollment Form'!$BL285=0),\"\",IF(LEN('Enrollment Form'!$BL285)<>5,\"N\",\"Y\")))","v":""},{"$f":"IF($B278=\"N\",\"\",IF(LEN('Enrollment Form'!$AE285)=0,\"\",IF(LEN('Enrollment Form'!$AE285)<>10,\"N\",\"Y\")))","v":""},{"$f":"IF($B278=\"N\",\"\",IF(LEN('Enrollment Form'!$AF285)=0,\"\",IF(LEN('Enrollment Form'!$AF285)<>10,\"N\",\"Y\")))","v":""},{"$f":"IF('Enrollment Form'!$O285<>\"Graded\",\"-\",IF(AND('Enrollment Form'!$O285=\"Graded\",'Enrollment Form'!$AO285<>\"\"),\"Y\",\"N\"))","v":"-"},{"$f":"IF($B278=\"N\",\"\",IF(OR('Enrollment Form'!$B285<>\"Subscriber\",'Enrollment Form'!$C285=\"ROC\"),\"-\",IF(AND('Enrollment Form'!$B285=\"Subscriber\",'Enrollment Form'!$C285=\"Enroll\",'Enrollment Form'!$AJ285<>\"\"),\"Y\",\"N\")))","v":""},{"$f":"IF($B278=\"N\",\"\",IF(OR('Enrollment Form'!$B285<>\"Subscriber\",'Enrollment Form'!$C285=\"ROC\"),\"-\",IF(AND('Enrollment Form'!$B285=\"Subscriber\",'Enrollment Form'!$C285=\"Enroll\",'Enrollment Form'!$AK285<>\"\"),\"Y\",\"N\")))","v":""},{"$f":"IF($B278=\"N\",\"\",IF(OR('Enrollment Form'!$B285<>\"Subscriber\",'Enrollment Form'!$C285=\"ROC\"),\"-\",IF(AND('Enrollment Form'!$B285=\"Subscriber\",'Enrollment Form'!$C285=\"Enroll\",'Enrollment Form'!$AL285<>\"\"),\"Y\",\"N\")))","v":""},{"$f":"IF($B278=\"N\",\"\",IF(OR('Enrollment Form'!$B285<>\"Subscriber\",'Enrollment Form'!$C285=\"ROC\"),\"-\",IF(AND('Enrollment Form'!$B285=\"Subscriber\",'Enrollment Form'!$C285=\"Enroll\",'Enrollment Form'!$AM285<>\"\"),\"Y\",\"N\")))","v":""},{"$f":"IF($B278=\"N\",\"\",IF(OR('Enrollment Form'!$B285<>\"Subscriber\",'Enrollment Form'!$C285=\"ROC\"),\"-\",IF(AND('Enrollment Form'!$B285=\"Subscriber\",'Enrollment Form'!$C285=\"Enroll\",'Enrollment Form'!$AN285<>\"\"),\"Y\",\"N\")))","v":""},{"$f":"IF($B278=\"N\",\"\",IF(OR('Enrollment Form'!$B285<>\"Subscriber\",'Enrollment Form'!$C285=\"ROC\"),\"-\",IF(AND('Enrollment Form'!$B285=\"Subscriber\",'Enrollment Form'!$C285=\"Enroll\",'Enrollment Form'!$AP285<>\"\"),\"Y\",\"N\")))","v":""},{"$f":"IF($B278=\"N\",\"\",IF($Q278=\"-\",\"-\",IF(AND($Q278=\"Y\",'Enrollment Form'!$AP285=\"No\"),\"-\",IF(AND($Q278=\"Y\",'Enrollment Form'!$AP285=\"Yes\",'Enrollment Form'!$AQ285<>\"\"),\"Y\",\"N\"))))","v":""},{"$f":"IF($B278=\"N\",\"\",IF(OR('Enrollment Form'!$B285<>\"Subscriber\",'Enrollment Form'!$C285=\"ROC\"),\"-\",IF(AND('Enrollment Form'!$B285=\"Subscriber\",'Enrollment Form'!$C285=\"Enroll\",'Enrollment Form'!$CO285<>\"\"),\"Y\",\"N\")))","v":""},{"$f":"IF($B278=\"N\",\"\",IF($S278=\"-\",\"-\",IF(AND($S278=\"Y\",'Enrollment Form'!$CO285=\"No\"),\"-\",IF(AND($S278=\"Y\",'Enrollment Form'!$CO285=\"Yes\",'Enrollment Form'!$CP285<>\"\"),\"Y\",\"N\"))))","v":""},{"$f":"IF(OR('Enrollment Form'!$AV285=\"Yes\",'Enrollment Form'!$AV285=\"\"),\"-\",IF(AND('Enrollment Form'!$AV285=\"No\",ISERROR(FIND(\"HMO\",VLOOKUP('Enrollment Form'!G285,'Enrollment Form'!H$11:J$1000,3,FALSE),1))=FALSE,COUNTA('Enrollment Form'!$AW285:$AZ285)=4),\"Y\",\"N\"))","v":"-"},{"$f":"IF($B278=\"N\",\"\",IF('Enrollment Form'!$B285=\"Subscriber\",\"-\",IF(COUNTA('Enrollment Form'!$BE285,'Enrollment Form'!$BG285)=2,\"Y\",\"N\")))","v":""},{"$f":"IF($B278=\"N\",\"\",IF(OR('Enrollment Form'!$AU285=\"\",'Enrollment Form'!$AU285=\"No\"),\"-\",IF(AND('Enrollment Form'!$AU285=\"Yes\",COUNTA('Enrollment Form'!$CK285)=1),\"Y\",\"N\")))","v":""},{"$f":"IF(OR('Enrollment Form'!$CK285=\"\",'Enrollment Form'!$CK285=\"No\"),\"-\",IF(COUNTA('Enrollment Form'!$CM285:$CN285)=2,\"Y\",\"N\"))","v":"-"},{"$f":"IF($B278=\"N\",\"\",IF(COUNTIF('Enrollment Form'!$CZ285:$DO285,\"Other\")=COUNTA('Enrollment Form'!$DF285,'Enrollment Form'!$DA285,'Enrollment Form'!$DK285,'Enrollment Form'!$DP285),\"Y\",\"N\"))","v":""},{"$f":"IF($B278=\"N\",\"\",IF(OR('Enrollment Form'!B285<>\"Subscriber\",'Enrollment Form'!C285=\"ROC\",COUNTIF('Enrollment Form'!AS285:AT285,\"Yes\")>=1),\"-\",IF(AND('Enrollment Form'!C285=\"Enroll\",COUNTIF('Enrollment Form'!AS285:AT285,\"No\")=2,'Enrollment Form'!AU285=\"\"),\"N\",\"Y\")))","v":""},{"$f":"IF(OR(B278=\"N\",'Enrollment Form'!B285<>\"Subscriber\",'Enrollment Form'!C285=\"ROC\",'Enrollment Form'!O285<>\"Multiple of Salary\"),\"-\",IF(COUNTA('Enrollment Form'!T285:U285)<2,\"N\",\"Y\"))","v":"-"},{"$f":"IF(B278=\"N\",\"\",IF(OR('Enrollment Form'!C285=\"ROC\",'Enrollment Form'!B285<>\"Subscriber\",'Enrollment Form'!O285=\"Waive\",'Enrollment Form'!O285=\"\"),\"-\",IF('Enrollment Form'!P285=\"\",\"N\",\"Y\")))","v":""},{"$f":"IF($B278=\"N\",\"\",IF(AND('Enrollment Form'!$C285=\"ROC\",'Enrollment Form'!$DS285<>\"\"),\"Y\",IF(AND('Enrollment Form'!$C285=\"ROC\",'Enrollment Form'!$DS285=\"\"),\"N\",IF(AND('Enrollment Form'!$C285=\"Enroll\",'Enrollment Form'!$B285=\"Subscriber\",'Enrollment Form'!$CQ285=\"No\",'Enrollment Form'!$DS285=\"\"),\"N\",IF(AND('Enrollment Form'!$C285=\"Enroll\",'Enrollment Form'!$B285=\"Subscriber\",'Enrollment Form'!$CQ285=\"Yes\"),\"-\",\"Y\")))))","v":""},{"$f":"IF($B278=\"N\",\"\",IF(AND('Enrollment Form'!$C285=\"ROC\",'Enrollment Form'!$DT285<>\"\"),\"Y\",IF(AND('Enrollment Form'!$C285=\"ROC\",'Enrollment Form'!$DT285=\"\"),\"N\",IF(AND('Enrollment Form'!$C285=\"Enroll\",'Enrollment Form'!$B285=\"Subscriber\",'Enrollment Form'!$CQ285=\"No\",'Enrollment Form'!$DT285=\"\"),\"N\",IF(AND('Enrollment Form'!$C285=\"Enroll\",'Enrollment Form'!$B285=\"Subscriber\",'Enrollment Form'!$CQ285=\"Yes\"),\"-\",\"Y\")))))","v":""},{"$f":"IF('Enrollment Form'!AH285=\"\",\"\",IF(ISERROR(SEARCH(\".\",'Enrollment Form'!AH285,SEARCH(\"@\",'Enrollment Form'!AH285))),\"N\",\"Y\"))","v":""},{"$f":"IF(OR($B278=\"N\",'Enrollment Form'!$G285=\"\"),\"\",IF('Enrollment Form'!$B285<>\"Subscriber\",\"-\",IF(COUNTIF('Enrollment Form'!$AS285:$AT285,\"Yes\")=2,\"N\",\"Y\")))","v":""},{"$f":"IF(OR('Enrollment Form'!$CC285=\"\",'Enrollment Form'!$CC285=\"No\"),\"-\",IF(AND('Enrollment Form'!$CC285=\"Yes\",'Enrollment Form'!$CD285=\"\"),\"N\",\"Y\"))","v":"-"},{"$f":"IF(OR('Enrollment Form'!$CE285=\"\",'Enrollment Form'!$CE285=\"No\"),\"-\",IF(AND('Enrollment Form'!$CE285=\"Yes\",'Enrollment Form'!$CF285=\"\"),\"N\",\"Y\"))","v":"-"},{"$f":"IF(OR('Enrollment Form'!$CG285=\"\",'Enrollment Form'!$CG285=\"No\"),\"-\",IF(AND('Enrollment Form'!$CG285=\"Yes\",'Enrollment Form'!$CH285=\"\"),\"N\",\"Y\"))","v":"-"},{"$f":"IF(OR('Enrollment Form'!$CG285=\"\",'Enrollment Form'!$CG285=\"No\"),\"-\",IF(AND('Enrollment Form'!$CG285=\"Yes\",'Enrollment Form'!$CI285=\"\"),\"N\",\"Y\"))","v":"-"},{"$f":"IF('Enrollment Form'!B285<>\"Subscriber\",\"-\",IF(AND('Enrollment Form'!B285=\"Subscriber\",'Enrollment Form'!C285=\"Enroll\",'Enrollment Form'!AA285=\"\"),\"N\",\"Y\"))","v":"-"},{"$f":"IF(OR('Enrollment Form'!B285=\"Subscriber\",'Enrollment Form'!B285=\"\"),\"-\",IF('Enrollment Form'!BI285=\"\",\"N\",\"Y\"))","v":"-"},{"$f":"IF('Enrollment Form'!B285<>\"Subscriber\",\"-\",IF(AND('Enrollment Form'!B285=\"Subscriber\",'Enrollment Form'!G285=\"\"),\"N\",\"Y\"))","v":"-"},{"$f":"IF('Enrollment Form'!A285=\"\",\"\",IF('Enrollment Form'!B285=\"Subscriber\",\"-\",IF(AND('Enrollment Form'!B285<>\"Subscriber\",'Enrollment Form'!G285='Enrollment Form'!H285),\"N\",\"Y\")))","v":""},0]
[286,{"$f":"IF('Enrollment Form'!$A286<>\"\",\"Y\",\"N\")","v":"N"},{"$f":"IF(AND('Enrollment Form'!$B286=\"\",'Enrollment Form'!$C286<>\"\"),\"N\",IF($B279=\"N\",\"\",\"Y\"))","v":""},{"$f":"IF(OR($B279=\"N\",'Enrollment Form'!G286=\"\"),\"\",IF('Enrollment Form'!$B286<>\"Subscriber\",\"\",IF('Enrollment Form'!$G286='Enrollment Form'!$H286,\"Y\",\"N\")))","v":""},{"$f":"IF($B279=\"N\",\"\",IF(AND(COUNTIFS('Enrollment Form'!$H$11:$H$1000,'Enrollment Form'!$H286,'Enrollment Form'!$B$11:$B$1000,'Enrollment Form'!$B286)>1,'Enrollment Form'!$H286<>\"\"),\"N\",\"Y\"))","v":""},{"$f":"IF($B279=\"N\",\"\",IF(LEN('Enrollment Form'!$Y286)=0,\"\",IF(LEN('Enrollment Form'!$Y286)<>5,\"N\",\"Y\")))","v":""},{"$f":"IF($B279=\"N\",\"\",IF(LEN('Enrollment Form'!$AD286=0),\"\",IF(LEN('Enrollment Form'!$AD286)<>5,\"N\",\"Y\")))","v":""},{"$f":"IF($B279=\"N\",\"\",IF(LEN('Enrollment Form'!$BL286=0),\"\",IF(LEN('Enrollment Form'!$BL286)<>5,\"N\",\"Y\")))","v":""},{"$f":"IF($B279=\"N\",\"\",IF(LEN('Enrollment Form'!$AE286)=0,\"\",IF(LEN('Enrollment Form'!$AE286)<>10,\"N\",\"Y\")))","v":""},{"$f":"IF($B279=\"N\",\"\",IF(LEN('Enrollment Form'!$AF286)=0,\"\",IF(LEN('Enrollment Form'!$AF286)<>10,\"N\",\"Y\")))","v":""},{"$f":"IF('Enrollment Form'!$O286<>\"Graded\",\"-\",IF(AND('Enrollment Form'!$O286=\"Graded\",'Enrollment Form'!$AO286<>\"\"),\"Y\",\"N\"))","v":"-"},{"$f":"IF($B279=\"N\",\"\",IF(OR('Enrollment Form'!$B286<>\"Subscriber\",'Enrollment Form'!$C286=\"ROC\"),\"-\",IF(AND('Enrollment Form'!$B286=\"Subscriber\",'Enrollment Form'!$C286=\"Enroll\",'Enrollment Form'!$AJ286<>\"\"),\"Y\",\"N\")))","v":""},{"$f":"IF($B279=\"N\",\"\",IF(OR('Enrollment Form'!$B286<>\"Subscriber\",'Enrollment Form'!$C286=\"ROC\"),\"-\",IF(AND('Enrollment Form'!$B286=\"Subscriber\",'Enrollment Form'!$C286=\"Enroll\",'Enrollment Form'!$AK286<>\"\"),\"Y\",\"N\")))","v":""},{"$f":"IF($B279=\"N\",\"\",IF(OR('Enrollment Form'!$B286<>\"Subscriber\",'Enrollment Form'!$C286=\"ROC\"),\"-\",IF(AND('Enrollment Form'!$B286=\"Subscriber\",'Enrollment Form'!$C286=\"Enroll\",'Enrollment Form'!$AL286<>\"\"),\"Y\",\"N\")))","v":""},{"$f":"IF($B279=\"N\",\"\",IF(OR('Enrollment Form'!$B286<>\"Subscriber\",'Enrollment Form'!$C286=\"ROC\"),\"-\",IF(AND('Enrollment Form'!$B286=\"Subscriber\",'Enrollment Form'!$C286=\"Enroll\",'Enrollment Form'!$AM286<>\"\"),\"Y\",\"N\")))","v":""},{"$f":"IF($B279=\"N\",\"\",IF(OR('Enrollment Form'!$B286<>\"Subscriber\",'Enrollment Form'!$C286=\"ROC\"),\"-\",IF(AND('Enrollment Form'!$B286=\"Subscriber\",'Enrollment Form'!$C286=\"Enroll\",'Enrollment Form'!$AN286<>\"\"),\"Y\",\"N\")))","v":""},{"$f":"IF($B279=\"N\",\"\",IF(OR('Enrollment Form'!$B286<>\"Subscriber\",'Enrollment Form'!$C286=\"ROC\"),\"-\",IF(AND('Enrollment Form'!$B286=\"Subscriber\",'Enrollment Form'!$C286=\"Enroll\",'Enrollment Form'!$AP286<>\"\"),\"Y\",\"N\")))","v":""},{"$f":"IF($B279=\"N\",\"\",IF($Q279=\"-\",\"-\",IF(AND($Q279=\"Y\",'Enrollment Form'!$AP286=\"No\"),\"-\",IF(AND($Q279=\"Y\",'Enrollment Form'!$AP286=\"Yes\",'Enrollment Form'!$AQ286<>\"\"),\"Y\",\"N\"))))","v":""},{"$f":"IF($B279=\"N\",\"\",IF(OR('Enrollment Form'!$B286<>\"Subscriber\",'Enrollment Form'!$C286=\"ROC\"),\"-\",IF(AND('Enrollment Form'!$B286=\"Subscriber\",'Enrollment Form'!$C286=\"Enroll\",'Enrollment Form'!$CO286<>\"\"),\"Y\",\"N\")))","v":""},{"$f":"IF($B279=\"N\",\"\",IF($S279=\"-\",\"-\",IF(AND($S279=\"Y\",'Enrollment Form'!$CO286=\"No\"),\"-\",IF(AND($S279=\"Y\",'Enrollment Form'!$CO286=\"Yes\",'Enrollment Form'!$CP286<>\"\"),\"Y\",\"N\"))))","v":""},{"$f":"IF(OR('Enrollment Form'!$AV286=\"Yes\",'Enrollment Form'!$AV286=\"\"),\"-\",IF(AND('Enrollment Form'!$AV286=\"No\",ISERROR(FIND(\"HMO\",VLOOKUP('Enrollment Form'!G286,'Enrollment Form'!H$11:J$1000,3,FALSE),1))=FALSE,COUNTA('Enrollment Form'!$AW286:$AZ286)=4),\"Y\",\"N\"))","v":"-"},{"$f":"IF($B279=\"N\",\"\",IF('Enrollment Form'!$B286=\"Subscriber\",\"-\",IF(COUNTA('Enrollment Form'!$BE286,'Enrollment Form'!$BG286)=2,\"Y\",\"N\")))","v":""},{"$f":"IF($B279=\"N\",\"\",IF(OR('Enrollment Form'!$AU286=\"\",'Enrollment Form'!$AU286=\"No\"),\"-\",IF(AND('Enrollment Form'!$AU286=\"Yes\",COUNTA('Enrollment Form'!$CK286)=1),\"Y\",\"N\")))","v":""},{"$f":"IF(OR('Enrollment Form'!$CK286=\"\",'Enrollment Form'!$CK286=\"No\"),\"-\",IF(COUNTA('Enrollment Form'!$CM286:$CN286)=2,\"Y\",\"N\"))","v":"-"},{"$f":"IF($B279=\"N\",\"\",IF(COUNTIF('Enrollment Form'!$CZ286:$DO286,\"Other\")=COUNTA('Enrollment Form'!$DF286,'Enrollment Form'!$DA286,'Enrollment Form'!$DK286,'Enrollment Form'!$DP286),\"Y\",\"N\"))","v":""},{"$f":"IF($B279=\"N\",\"\",IF(OR('Enrollment Form'!B286<>\"Subscriber\",'Enrollment Form'!C286=\"ROC\",COUNTIF('Enrollment Form'!AS286:AT286,\"Yes\")>=1),\"-\",IF(AND('Enrollment Form'!C286=\"Enroll\",COUNTIF('Enrollment Form'!AS286:AT286,\"No\")=2,'Enrollment Form'!AU286=\"\"),\"N\",\"Y\")))","v":""},{"$f":"IF(OR(B279=\"N\",'Enrollment Form'!B286<>\"Subscriber\",'Enrollment Form'!C286=\"ROC\",'Enrollment Form'!O286<>\"Multiple of Salary\"),\"-\",IF(COUNTA('Enrollment Form'!T286:U286)<2,\"N\",\"Y\"))","v":"-"},{"$f":"IF(B279=\"N\",\"\",IF(OR('Enrollment Form'!C286=\"ROC\",'Enrollment Form'!B286<>\"Subscriber\",'Enrollment Form'!O286=\"Waive\",'Enrollment Form'!O286=\"\"),\"-\",IF('Enrollment Form'!P286=\"\",\"N\",\"Y\")))","v":""},{"$f":"IF($B279=\"N\",\"\",IF(AND('Enrollment Form'!$C286=\"ROC\",'Enrollment Form'!$DS286<>\"\"),\"Y\",IF(AND('Enrollment Form'!$C286=\"ROC\",'Enrollment Form'!$DS286=\"\"),\"N\",IF(AND('Enrollment Form'!$C286=\"Enroll\",'Enrollment Form'!$B286=\"Subscriber\",'Enrollment Form'!$CQ286=\"No\",'Enrollment Form'!$DS286=\"\"),\"N\",IF(AND('Enrollment Form'!$C286=\"Enroll\",'Enrollment Form'!$B286=\"Subscriber\",'Enrollment Form'!$CQ286=\"Yes\"),\"-\",\"Y\")))))","v":""},{"$f":"IF($B279=\"N\",\"\",IF(AND('Enrollment Form'!$C286=\"ROC\",'Enrollment Form'!$DT286<>\"\"),\"Y\",IF(AND('Enrollment Form'!$C286=\"ROC\",'Enrollment Form'!$DT286=\"\"),\"N\",IF(AND('Enrollment Form'!$C286=\"Enroll\",'Enrollment Form'!$B286=\"Subscriber\",'Enrollment Form'!$CQ286=\"No\",'Enrollment Form'!$DT286=\"\"),\"N\",IF(AND('Enrollment Form'!$C286=\"Enroll\",'Enrollment Form'!$B286=\"Subscriber\",'Enrollment Form'!$CQ286=\"Yes\"),\"-\",\"Y\")))))","v":""},{"$f":"IF('Enrollment Form'!AH286=\"\",\"\",IF(ISERROR(SEARCH(\".\",'Enrollment Form'!AH286,SEARCH(\"@\",'Enrollment Form'!AH286))),\"N\",\"Y\"))","v":""},{"$f":"IF(OR($B279=\"N\",'Enrollment Form'!$G286=\"\"),\"\",IF('Enrollment Form'!$B286<>\"Subscriber\",\"-\",IF(COUNTIF('Enrollment Form'!$AS286:$AT286,\"Yes\")=2,\"N\",\"Y\")))","v":""},{"$f":"IF(OR('Enrollment Form'!$CC286=\"\",'Enrollment Form'!$CC286=\"No\"),\"-\",IF(AND('Enrollment Form'!$CC286=\"Yes\",'Enrollment Form'!$CD286=\"\"),\"N\",\"Y\"))","v":"-"},{"$f":"IF(OR('Enrollment Form'!$CE286=\"\",'Enrollment Form'!$CE286=\"No\"),\"-\",IF(AND('Enrollment Form'!$CE286=\"Yes\",'Enrollment Form'!$CF286=\"\"),\"N\",\"Y\"))","v":"-"},{"$f":"IF(OR('Enrollment Form'!$CG286=\"\",'Enrollment Form'!$CG286=\"No\"),\"-\",IF(AND('Enrollment Form'!$CG286=\"Yes\",'Enrollment Form'!$CH286=\"\"),\"N\",\"Y\"))","v":"-"},{"$f":"IF(OR('Enrollment Form'!$CG286=\"\",'Enrollment Form'!$CG286=\"No\"),\"-\",IF(AND('Enrollment Form'!$CG286=\"Yes\",'Enrollment Form'!$CI286=\"\"),\"N\",\"Y\"))","v":"-"},{"$f":"IF('Enrollment Form'!B286<>\"Subscriber\",\"-\",IF(AND('Enrollment Form'!B286=\"Subscriber\",'Enrollment Form'!C286=\"Enroll\",'Enrollment Form'!AA286=\"\"),\"N\",\"Y\"))","v":"-"},{"$f":"IF(OR('Enrollment Form'!B286=\"Subscriber\",'Enrollment Form'!B286=\"\"),\"-\",IF('Enrollment Form'!BI286=\"\",\"N\",\"Y\"))","v":"-"},{"$f":"IF('Enrollment Form'!B286<>\"Subscriber\",\"-\",IF(AND('Enrollment Form'!B286=\"Subscriber\",'Enrollment Form'!G286=\"\"),\"N\",\"Y\"))","v":"-"},{"$f":"IF('Enrollment Form'!A286=\"\",\"\",IF('Enrollment Form'!B286=\"Subscriber\",\"-\",IF(AND('Enrollment Form'!B286<>\"Subscriber\",'Enrollment Form'!G286='Enrollment Form'!H286),\"N\",\"Y\")))","v":""},0]
[287,{"$f":"IF('Enrollment Form'!$A287<>\"\",\"Y\",\"N\")","v":"N"},{"$f":"IF(AND('Enrollment Form'!$B287=\"\",'Enrollment Form'!$C287<>\"\"),\"N\",IF($B280=\"N\",\"\",\"Y\"))","v":""},{"$f":"IF(OR($B280=\"N\",'Enrollment Form'!G287=\"\"),\"\",IF('Enrollment Form'!$B287<>\"Subscriber\",\"\",IF('Enrollment Form'!$G287='Enrollment Form'!$H287,\"Y\",\"N\")))","v":""},{"$f":"IF($B280=\"N\",\"\",IF(AND(COUNTIFS('Enrollment Form'!$H$11:$H$1000,'Enrollment Form'!$H287,'Enrollment Form'!$B$11:$B$1000,'Enrollment Form'!$B287)>1,'Enrollment Form'!$H287<>\"\"),\"N\",\"Y\"))","v":""},{"$f":"IF($B280=\"N\",\"\",IF(LEN('Enrollment Form'!$Y287)=0,\"\",IF(LEN('Enrollment Form'!$Y287)<>5,\"N\",\"Y\")))","v":""},{"$f":"IF($B280=\"N\",\"\",IF(LEN('Enrollment Form'!$AD287=0),\"\",IF(LEN('Enrollment Form'!$AD287)<>5,\"N\",\"Y\")))","v":""},{"$f":"IF($B280=\"N\",\"\",IF(LEN('Enrollment Form'!$BL287=0),\"\",IF(LEN('Enrollment Form'!$BL287)<>5,\"N\",\"Y\")))","v":""},{"$f":"IF($B280=\"N\",\"\",IF(LEN('Enrollment Form'!$AE287)=0,\"\",IF(LEN('Enrollment Form'!$AE287)<>10,\"N\",\"Y\")))","v":""},{"$f":"IF($B280=\"N\",\"\",IF(LEN('Enrollment Form'!$AF287)=0,\"\",IF(LEN('Enrollment Form'!$AF287)<>10,\"N\",\"Y\")))","v":""},{"$f":"IF('Enrollment Form'!$O287<>\"Graded\",\"-\",IF(AND('Enrollment Form'!$O287=\"Graded\",'Enrollment Form'!$AO287<>\"\"),\"Y\",\"N\"))","v":"-"},{"$f":"IF($B280=\"N\",\"\",IF(OR('Enrollment Form'!$B287<>\"Subscriber\",'Enrollment Form'!$C287=\"ROC\"),\"-\",IF(AND('Enrollment Form'!$B287=\"Subscriber\",'Enrollment Form'!$C287=\"Enroll\",'Enrollment Form'!$AJ287<>\"\"),\"Y\",\"N\")))","v":""},{"$f":"IF($B280=\"N\",\"\",IF(OR('Enrollment Form'!$B287<>\"Subscriber\",'Enrollment Form'!$C287=\"ROC\"),\"-\",IF(AND('Enrollment Form'!$B287=\"Subscriber\",'Enrollment Form'!$C287=\"Enroll\",'Enrollment Form'!$AK287<>\"\"),\"Y\",\"N\")))","v":""},{"$f":"IF($B280=\"N\",\"\",IF(OR('Enrollment Form'!$B287<>\"Subscriber\",'Enrollment Form'!$C287=\"ROC\"),\"-\",IF(AND('Enrollment Form'!$B287=\"Subscriber\",'Enrollment Form'!$C287=\"Enroll\",'Enrollment Form'!$AL287<>\"\"),\"Y\",\"N\")))","v":""},{"$f":"IF($B280=\"N\",\"\",IF(OR('Enrollment Form'!$B287<>\"Subscriber\",'Enrollment Form'!$C287=\"ROC\"),\"-\",IF(AND('Enrollment Form'!$B287=\"Subscriber\",'Enrollment Form'!$C287=\"Enroll\",'Enrollment Form'!$AM287<>\"\"),\"Y\",\"N\")))","v":""},{"$f":"IF($B280=\"N\",\"\",IF(OR('Enrollment Form'!$B287<>\"Subscriber\",'Enrollment Form'!$C287=\"ROC\"),\"-\",IF(AND('Enrollment Form'!$B287=\"Subscriber\",'Enrollment Form'!$C287=\"Enroll\",'Enrollment Form'!$AN287<>\"\"),\"Y\",\"N\")))","v":""},{"$f":"IF($B280=\"N\",\"\",IF(OR('Enrollment Form'!$B287<>\"Subscriber\",'Enrollment Form'!$C287=\"ROC\"),\"-\",IF(AND('Enrollment Form'!$B287=\"Subscriber\",'Enrollment Form'!$C287=\"Enroll\",'Enrollment Form'!$AP287<>\"\"),\"Y\",\"N\")))","v":""},{"$f":"IF($B280=\"N\",\"\",IF($Q280=\"-\",\"-\",IF(AND($Q280=\"Y\",'Enrollment Form'!$AP287=\"No\"),\"-\",IF(AND($Q280=\"Y\",'Enrollment Form'!$AP287=\"Yes\",'Enrollment Form'!$AQ287<>\"\"),\"Y\",\"N\"))))","v":""},{"$f":"IF($B280=\"N\",\"\",IF(OR('Enrollment Form'!$B287<>\"Subscriber\",'Enrollment Form'!$C287=\"ROC\"),\"-\",IF(AND('Enrollment Form'!$B287=\"Subscriber\",'Enrollment Form'!$C287=\"Enroll\",'Enrollment Form'!$CO287<>\"\"),\"Y\",\"N\")))","v":""},{"$f":"IF($B280=\"N\",\"\",IF($S280=\"-\",\"-\",IF(AND($S280=\"Y\",'Enrollment Form'!$CO287=\"No\"),\"-\",IF(AND($S280=\"Y\",'Enrollment Form'!$CO287=\"Yes\",'Enrollment Form'!$CP287<>\"\"),\"Y\",\"N\"))))","v":""},{"$f":"IF(OR('Enrollment Form'!$AV287=\"Yes\",'Enrollment Form'!$AV287=\"\"),\"-\",IF(AND('Enrollment Form'!$AV287=\"No\",ISERROR(FIND(\"HMO\",VLOOKUP('Enrollment Form'!G287,'Enrollment Form'!H$11:J$1000,3,FALSE),1))=FALSE,COUNTA('Enrollment Form'!$AW287:$AZ287)=4),\"Y\",\"N\"))","v":"-"},{"$f":"IF($B280=\"N\",\"\",IF('Enrollment Form'!$B287=\"Subscriber\",\"-\",IF(COUNTA('Enrollment Form'!$BE287,'Enrollment Form'!$BG287)=2,\"Y\",\"N\")))","v":""},{"$f":"IF($B280=\"N\",\"\",IF(OR('Enrollment Form'!$AU287=\"\",'Enrollment Form'!$AU287=\"No\"),\"-\",IF(AND('Enrollment Form'!$AU287=\"Yes\",COUNTA('Enrollment Form'!$CK287)=1),\"Y\",\"N\")))","v":""},{"$f":"IF(OR('Enrollment Form'!$CK287=\"\",'Enrollment Form'!$CK287=\"No\"),\"-\",IF(COUNTA('Enrollment Form'!$CM287:$CN287)=2,\"Y\",\"N\"))","v":"-"},{"$f":"IF($B280=\"N\",\"\",IF(COUNTIF('Enrollment Form'!$CZ287:$DO287,\"Other\")=COUNTA('Enrollment Form'!$DF287,'Enrollment Form'!$DA287,'Enrollment Form'!$DK287,'Enrollment Form'!$DP287),\"Y\",\"N\"))","v":""},{"$f":"IF($B280=\"N\",\"\",IF(OR('Enrollment Form'!B287<>\"Subscriber\",'Enrollment Form'!C287=\"ROC\",COUNTIF('Enrollment Form'!AS287:AT287,\"Yes\")>=1),\"-\",IF(AND('Enrollment Form'!C287=\"Enroll\",COUNTIF('Enrollment Form'!AS287:AT287,\"No\")=2,'Enrollment Form'!AU287=\"\"),\"N\",\"Y\")))","v":""},{"$f":"IF(OR(B280=\"N\",'Enrollment Form'!B287<>\"Subscriber\",'Enrollment Form'!C287=\"ROC\",'Enrollment Form'!O287<>\"Multiple of Salary\"),\"-\",IF(COUNTA('Enrollment Form'!T287:U287)<2,\"N\",\"Y\"))","v":"-"},{"$f":"IF(B280=\"N\",\"\",IF(OR('Enrollment Form'!C287=\"ROC\",'Enrollment Form'!B287<>\"Subscriber\",'Enrollment Form'!O287=\"Waive\",'Enrollment Form'!O287=\"\"),\"-\",IF('Enrollment Form'!P287=\"\",\"N\",\"Y\")))","v":""},{"$f":"IF($B280=\"N\",\"\",IF(AND('Enrollment Form'!$C287=\"ROC\",'Enrollment Form'!$DS287<>\"\"),\"Y\",IF(AND('Enrollment Form'!$C287=\"ROC\",'Enrollment Form'!$DS287=\"\"),\"N\",IF(AND('Enrollment Form'!$C287=\"Enroll\",'Enrollment Form'!$B287=\"Subscriber\",'Enrollment Form'!$CQ287=\"No\",'Enrollment Form'!$DS287=\"\"),\"N\",IF(AND('Enrollment Form'!$C287=\"Enroll\",'Enrollment Form'!$B287=\"Subscriber\",'Enrollment Form'!$CQ287=\"Yes\"),\"-\",\"Y\")))))","v":""},{"$f":"IF($B280=\"N\",\"\",IF(AND('Enrollment Form'!$C287=\"ROC\",'Enrollment Form'!$DT287<>\"\"),\"Y\",IF(AND('Enrollment Form'!$C287=\"ROC\",'Enrollment Form'!$DT287=\"\"),\"N\",IF(AND('Enrollment Form'!$C287=\"Enroll\",'Enrollment Form'!$B287=\"Subscriber\",'Enrollment Form'!$CQ287=\"No\",'Enrollment Form'!$DT287=\"\"),\"N\",IF(AND('Enrollment Form'!$C287=\"Enroll\",'Enrollment Form'!$B287=\"Subscriber\",'Enrollment Form'!$CQ287=\"Yes\"),\"-\",\"Y\")))))","v":""},{"$f":"IF('Enrollment Form'!AH287=\"\",\"\",IF(ISERROR(SEARCH(\".\",'Enrollment Form'!AH287,SEARCH(\"@\",'Enrollment Form'!AH287))),\"N\",\"Y\"))","v":""},{"$f":"IF(OR($B280=\"N\",'Enrollment Form'!$G287=\"\"),\"\",IF('Enrollment Form'!$B287<>\"Subscriber\",\"-\",IF(COUNTIF('Enrollment Form'!$AS287:$AT287,\"Yes\")=2,\"N\",\"Y\")))","v":""},{"$f":"IF(OR('Enrollment Form'!$CC287=\"\",'Enrollment Form'!$CC287=\"No\"),\"-\",IF(AND('Enrollment Form'!$CC287=\"Yes\",'Enrollment Form'!$CD287=\"\"),\"N\",\"Y\"))","v":"-"},{"$f":"IF(OR('Enrollment Form'!$CE287=\"\",'Enrollment Form'!$CE287=\"No\"),\"-\",IF(AND('Enrollment Form'!$CE287=\"Yes\",'Enrollment Form'!$CF287=\"\"),\"N\",\"Y\"))","v":"-"},{"$f":"IF(OR('Enrollment Form'!$CG287=\"\",'Enrollment Form'!$CG287=\"No\"),\"-\",IF(AND('Enrollment Form'!$CG287=\"Yes\",'Enrollment Form'!$CH287=\"\"),\"N\",\"Y\"))","v":"-"},{"$f":"IF(OR('Enrollment Form'!$CG287=\"\",'Enrollment Form'!$CG287=\"No\"),\"-\",IF(AND('Enrollment Form'!$CG287=\"Yes\",'Enrollment Form'!$CI287=\"\"),\"N\",\"Y\"))","v":"-"},{"$f":"IF('Enrollment Form'!B287<>\"Subscriber\",\"-\",IF(AND('Enrollment Form'!B287=\"Subscriber\",'Enrollment Form'!C287=\"Enroll\",'Enrollment Form'!AA287=\"\"),\"N\",\"Y\"))","v":"-"},{"$f":"IF(OR('Enrollment Form'!B287=\"Subscriber\",'Enrollment Form'!B287=\"\"),\"-\",IF('Enrollment Form'!BI287=\"\",\"N\",\"Y\"))","v":"-"},{"$f":"IF('Enrollment Form'!B287<>\"Subscriber\",\"-\",IF(AND('Enrollment Form'!B287=\"Subscriber\",'Enrollment Form'!G287=\"\"),\"N\",\"Y\"))","v":"-"},{"$f":"IF('Enrollment Form'!A287=\"\",\"\",IF('Enrollment Form'!B287=\"Subscriber\",\"-\",IF(AND('Enrollment Form'!B287<>\"Subscriber\",'Enrollment Form'!G287='Enrollment Form'!H287),\"N\",\"Y\")))","v":""},0]
[288,{"$f":"IF('Enrollment Form'!$A288<>\"\",\"Y\",\"N\")","v":"N"},{"$f":"IF(AND('Enrollment Form'!$B288=\"\",'Enrollment Form'!$C288<>\"\"),\"N\",IF($B281=\"N\",\"\",\"Y\"))","v":""},{"$f":"IF(OR($B281=\"N\",'Enrollment Form'!G288=\"\"),\"\",IF('Enrollment Form'!$B288<>\"Subscriber\",\"\",IF('Enrollment Form'!$G288='Enrollment Form'!$H288,\"Y\",\"N\")))","v":""},{"$f":"IF($B281=\"N\",\"\",IF(AND(COUNTIFS('Enrollment Form'!$H$11:$H$1000,'Enrollment Form'!$H288,'Enrollment Form'!$B$11:$B$1000,'Enrollment Form'!$B288)>1,'Enrollment Form'!$H288<>\"\"),\"N\",\"Y\"))","v":""},{"$f":"IF($B281=\"N\",\"\",IF(LEN('Enrollment Form'!$Y288)=0,\"\",IF(LEN('Enrollment Form'!$Y288)<>5,\"N\",\"Y\")))","v":""},{"$f":"IF($B281=\"N\",\"\",IF(LEN('Enrollment Form'!$AD288=0),\"\",IF(LEN('Enrollment Form'!$AD288)<>5,\"N\",\"Y\")))","v":""},{"$f":"IF($B281=\"N\",\"\",IF(LEN('Enrollment Form'!$BL288=0),\"\",IF(LEN('Enrollment Form'!$BL288)<>5,\"N\",\"Y\")))","v":""},{"$f":"IF($B281=\"N\",\"\",IF(LEN('Enrollment Form'!$AE288)=0,\"\",IF(LEN('Enrollment Form'!$AE288)<>10,\"N\",\"Y\")))","v":""},{"$f":"IF($B281=\"N\",\"\",IF(LEN('Enrollment Form'!$AF288)=0,\"\",IF(LEN('Enrollment Form'!$AF288)<>10,\"N\",\"Y\")))","v":""},{"$f":"IF('Enrollment Form'!$O288<>\"Graded\",\"-\",IF(AND('Enrollment Form'!$O288=\"Graded\",'Enrollment Form'!$AO288<>\"\"),\"Y\",\"N\"))","v":"-"},{"$f":"IF($B281=\"N\",\"\",IF(OR('Enrollment Form'!$B288<>\"Subscriber\",'Enrollment Form'!$C288=\"ROC\"),\"-\",IF(AND('Enrollment Form'!$B288=\"Subscriber\",'Enrollment Form'!$C288=\"Enroll\",'Enrollment Form'!$AJ288<>\"\"),\"Y\",\"N\")))","v":""},{"$f":"IF($B281=\"N\",\"\",IF(OR('Enrollment Form'!$B288<>\"Subscriber\",'Enrollment Form'!$C288=\"ROC\"),\"-\",IF(AND('Enrollment Form'!$B288=\"Subscriber\",'Enrollment Form'!$C288=\"Enroll\",'Enrollment Form'!$AK288<>\"\"),\"Y\",\"N\")))","v":""},{"$f":"IF($B281=\"N\",\"\",IF(OR('Enrollment Form'!$B288<>\"Subscriber\",'Enrollment Form'!$C288=\"ROC\"),\"-\",IF(AND('Enrollment Form'!$B288=\"Subscriber\",'Enrollment Form'!$C288=\"Enroll\",'Enrollment Form'!$AL288<>\"\"),\"Y\",\"N\")))","v":""},{"$f":"IF($B281=\"N\",\"\",IF(OR('Enrollment Form'!$B288<>\"Subscriber\",'Enrollment Form'!$C288=\"ROC\"),\"-\",IF(AND('Enrollment Form'!$B288=\"Subscriber\",'Enrollment Form'!$C288=\"Enroll\",'Enrollment Form'!$AM288<>\"\"),\"Y\",\"N\")))","v":""},{"$f":"IF($B281=\"N\",\"\",IF(OR('Enrollment Form'!$B288<>\"Subscriber\",'Enrollment Form'!$C288=\"ROC\"),\"-\",IF(AND('Enrollment Form'!$B288=\"Subscriber\",'Enrollment Form'!$C288=\"Enroll\",'Enrollment Form'!$AN288<>\"\"),\"Y\",\"N\")))","v":""},{"$f":"IF($B281=\"N\",\"\",IF(OR('Enrollment Form'!$B288<>\"Subscriber\",'Enrollment Form'!$C288=\"ROC\"),\"-\",IF(AND('Enrollment Form'!$B288=\"Subscriber\",'Enrollment Form'!$C288=\"Enroll\",'Enrollment Form'!$AP288<>\"\"),\"Y\",\"N\")))","v":""},{"$f":"IF($B281=\"N\",\"\",IF($Q281=\"-\",\"-\",IF(AND($Q281=\"Y\",'Enrollment Form'!$AP288=\"No\"),\"-\",IF(AND($Q281=\"Y\",'Enrollment Form'!$AP288=\"Yes\",'Enrollment Form'!$AQ288<>\"\"),\"Y\",\"N\"))))","v":""},{"$f":"IF($B281=\"N\",\"\",IF(OR('Enrollment Form'!$B288<>\"Subscriber\",'Enrollment Form'!$C288=\"ROC\"),\"-\",IF(AND('Enrollment Form'!$B288=\"Subscriber\",'Enrollment Form'!$C288=\"Enroll\",'Enrollment Form'!$CO288<>\"\"),\"Y\",\"N\")))","v":""},{"$f":"IF($B281=\"N\",\"\",IF($S281=\"-\",\"-\",IF(AND($S281=\"Y\",'Enrollment Form'!$CO288=\"No\"),\"-\",IF(AND($S281=\"Y\",'Enrollment Form'!$CO288=\"Yes\",'Enrollment Form'!$CP288<>\"\"),\"Y\",\"N\"))))","v":""},{"$f":"IF(OR('Enrollment Form'!$AV288=\"Yes\",'Enrollment Form'!$AV288=\"\"),\"-\",IF(AND('Enrollment Form'!$AV288=\"No\",ISERROR(FIND(\"HMO\",VLOOKUP('Enrollment Form'!G288,'Enrollment Form'!H$11:J$1000,3,FALSE),1))=FALSE,COUNTA('Enrollment Form'!$AW288:$AZ288)=4),\"Y\",\"N\"))","v":"-"},{"$f":"IF($B281=\"N\",\"\",IF('Enrollment Form'!$B288=\"Subscriber\",\"-\",IF(COUNTA('Enrollment Form'!$BE288,'Enrollment Form'!$BG288)=2,\"Y\",\"N\")))","v":""},{"$f":"IF($B281=\"N\",\"\",IF(OR('Enrollment Form'!$AU288=\"\",'Enrollment Form'!$AU288=\"No\"),\"-\",IF(AND('Enrollment Form'!$AU288=\"Yes\",COUNTA('Enrollment Form'!$CK288)=1),\"Y\",\"N\")))","v":""},{"$f":"IF(OR('Enrollment Form'!$CK288=\"\",'Enrollment Form'!$CK288=\"No\"),\"-\",IF(COUNTA('Enrollment Form'!$CM288:$CN288)=2,\"Y\",\"N\"))","v":"-"},{"$f":"IF($B281=\"N\",\"\",IF(COUNTIF('Enrollment Form'!$CZ288:$DO288,\"Other\")=COUNTA('Enrollment Form'!$DF288,'Enrollment Form'!$DA288,'Enrollment Form'!$DK288,'Enrollment Form'!$DP288),\"Y\",\"N\"))","v":""},{"$f":"IF($B281=\"N\",\"\",IF(OR('Enrollment Form'!B288<>\"Subscriber\",'Enrollment Form'!C288=\"ROC\",COUNTIF('Enrollment Form'!AS288:AT288,\"Yes\")>=1),\"-\",IF(AND('Enrollment Form'!C288=\"Enroll\",COUNTIF('Enrollment Form'!AS288:AT288,\"No\")=2,'Enrollment Form'!AU288=\"\"),\"N\",\"Y\")))","v":""},{"$f":"IF(OR(B281=\"N\",'Enrollment Form'!B288<>\"Subscriber\",'Enrollment Form'!C288=\"ROC\",'Enrollment Form'!O288<>\"Multiple of Salary\"),\"-\",IF(COUNTA('Enrollment Form'!T288:U288)<2,\"N\",\"Y\"))","v":"-"},{"$f":"IF(B281=\"N\",\"\",IF(OR('Enrollment Form'!C288=\"ROC\",'Enrollment Form'!B288<>\"Subscriber\",'Enrollment Form'!O288=\"Waive\",'Enrollment Form'!O288=\"\"),\"-\",IF('Enrollment Form'!P288=\"\",\"N\",\"Y\")))","v":""},{"$f":"IF($B281=\"N\",\"\",IF(AND('Enrollment Form'!$C288=\"ROC\",'Enrollment Form'!$DS288<>\"\"),\"Y\",IF(AND('Enrollment Form'!$C288=\"ROC\",'Enrollment Form'!$DS288=\"\"),\"N\",IF(AND('Enrollment Form'!$C288=\"Enroll\",'Enrollment Form'!$B288=\"Subscriber\",'Enrollment Form'!$CQ288=\"No\",'Enrollment Form'!$DS288=\"\"),\"N\",IF(AND('Enrollment Form'!$C288=\"Enroll\",'Enrollment Form'!$B288=\"Subscriber\",'Enrollment Form'!$CQ288=\"Yes\"),\"-\",\"Y\")))))","v":""},{"$f":"IF($B281=\"N\",\"\",IF(AND('Enrollment Form'!$C288=\"ROC\",'Enrollment Form'!$DT288<>\"\"),\"Y\",IF(AND('Enrollment Form'!$C288=\"ROC\",'Enrollment Form'!$DT288=\"\"),\"N\",IF(AND('Enrollment Form'!$C288=\"Enroll\",'Enrollment Form'!$B288=\"Subscriber\",'Enrollment Form'!$CQ288=\"No\",'Enrollment Form'!$DT288=\"\"),\"N\",IF(AND('Enrollment Form'!$C288=\"Enroll\",'Enrollment Form'!$B288=\"Subscriber\",'Enrollment Form'!$CQ288=\"Yes\"),\"-\",\"Y\")))))","v":""},{"$f":"IF('Enrollment Form'!AH288=\"\",\"\",IF(ISERROR(SEARCH(\".\",'Enrollment Form'!AH288,SEARCH(\"@\",'Enrollment Form'!AH288))),\"N\",\"Y\"))","v":""},{"$f":"IF(OR($B281=\"N\",'Enrollment Form'!$G288=\"\"),\"\",IF('Enrollment Form'!$B288<>\"Subscriber\",\"-\",IF(COUNTIF('Enrollment Form'!$AS288:$AT288,\"Yes\")=2,\"N\",\"Y\")))","v":""},{"$f":"IF(OR('Enrollment Form'!$CC288=\"\",'Enrollment Form'!$CC288=\"No\"),\"-\",IF(AND('Enrollment Form'!$CC288=\"Yes\",'Enrollment Form'!$CD288=\"\"),\"N\",\"Y\"))","v":"-"},{"$f":"IF(OR('Enrollment Form'!$CE288=\"\",'Enrollment Form'!$CE288=\"No\"),\"-\",IF(AND('Enrollment Form'!$CE288=\"Yes\",'Enrollment Form'!$CF288=\"\"),\"N\",\"Y\"))","v":"-"},{"$f":"IF(OR('Enrollment Form'!$CG288=\"\",'Enrollment Form'!$CG288=\"No\"),\"-\",IF(AND('Enrollment Form'!$CG288=\"Yes\",'Enrollment Form'!$CH288=\"\"),\"N\",\"Y\"))","v":"-"},{"$f":"IF(OR('Enrollment Form'!$CG288=\"\",'Enrollment Form'!$CG288=\"No\"),\"-\",IF(AND('Enrollment Form'!$CG288=\"Yes\",'Enrollment Form'!$CI288=\"\"),\"N\",\"Y\"))","v":"-"},{"$f":"IF('Enrollment Form'!B288<>\"Subscriber\",\"-\",IF(AND('Enrollment Form'!B288=\"Subscriber\",'Enrollment Form'!C288=\"Enroll\",'Enrollment Form'!AA288=\"\"),\"N\",\"Y\"))","v":"-"},{"$f":"IF(OR('Enrollment Form'!B288=\"Subscriber\",'Enrollment Form'!B288=\"\"),\"-\",IF('Enrollment Form'!BI288=\"\",\"N\",\"Y\"))","v":"-"},{"$f":"IF('Enrollment Form'!B288<>\"Subscriber\",\"-\",IF(AND('Enrollment Form'!B288=\"Subscriber\",'Enrollment Form'!G288=\"\"),\"N\",\"Y\"))","v":"-"},{"$f":"IF('Enrollment Form'!A288=\"\",\"\",IF('Enrollment Form'!B288=\"Subscriber\",\"-\",IF(AND('Enrollment Form'!B288<>\"Subscriber\",'Enrollment Form'!G288='Enrollment Form'!H288),\"N\",\"Y\")))","v":""},0]
[289,{"$f":"IF('Enrollment Form'!$A289<>\"\",\"Y\",\"N\")","v":"N"},{"$f":"IF(AND('Enrollment Form'!$B289=\"\",'Enrollment Form'!$C289<>\"\"),\"N\",IF($B282=\"N\",\"\",\"Y\"))","v":""},{"$f":"IF(OR($B282=\"N\",'Enrollment Form'!G289=\"\"),\"\",IF('Enrollment Form'!$B289<>\"Subscriber\",\"\",IF('Enrollment Form'!$G289='Enrollment Form'!$H289,\"Y\",\"N\")))","v":""},{"$f":"IF($B282=\"N\",\"\",IF(AND(COUNTIFS('Enrollment Form'!$H$11:$H$1000,'Enrollment Form'!$H289,'Enrollment Form'!$B$11:$B$1000,'Enrollment Form'!$B289)>1,'Enrollment Form'!$H289<>\"\"),\"N\",\"Y\"))","v":""},{"$f":"IF($B282=\"N\",\"\",IF(LEN('Enrollment Form'!$Y289)=0,\"\",IF(LEN('Enrollment Form'!$Y289)<>5,\"N\",\"Y\")))","v":""},{"$f":"IF($B282=\"N\",\"\",IF(LEN('Enrollment Form'!$AD289=0),\"\",IF(LEN('Enrollment Form'!$AD289)<>5,\"N\",\"Y\")))","v":""},{"$f":"IF($B282=\"N\",\"\",IF(LEN('Enrollment Form'!$BL289=0),\"\",IF(LEN('Enrollment Form'!$BL289)<>5,\"N\",\"Y\")))","v":""},{"$f":"IF($B282=\"N\",\"\",IF(LEN('Enrollment Form'!$AE289)=0,\"\",IF(LEN('Enrollment Form'!$AE289)<>10,\"N\",\"Y\")))","v":""},{"$f":"IF($B282=\"N\",\"\",IF(LEN('Enrollment Form'!$AF289)=0,\"\",IF(LEN('Enrollment Form'!$AF289)<>10,\"N\",\"Y\")))","v":""},{"$f":"IF('Enrollment Form'!$O289<>\"Graded\",\"-\",IF(AND('Enrollment Form'!$O289=\"Graded\",'Enrollment Form'!$AO289<>\"\"),\"Y\",\"N\"))","v":"-"},{"$f":"IF($B282=\"N\",\"\",IF(OR('Enrollment Form'!$B289<>\"Subscriber\",'Enrollment Form'!$C289=\"ROC\"),\"-\",IF(AND('Enrollment Form'!$B289=\"Subscriber\",'Enrollment Form'!$C289=\"Enroll\",'Enrollment Form'!$AJ289<>\"\"),\"Y\",\"N\")))","v":""},{"$f":"IF($B282=\"N\",\"\",IF(OR('Enrollment Form'!$B289<>\"Subscriber\",'Enrollment Form'!$C289=\"ROC\"),\"-\",IF(AND('Enrollment Form'!$B289=\"Subscriber\",'Enrollment Form'!$C289=\"Enroll\",'Enrollment Form'!$AK289<>\"\"),\"Y\",\"N\")))","v":""},{"$f":"IF($B282=\"N\",\"\",IF(OR('Enrollment Form'!$B289<>\"Subscriber\",'Enrollment Form'!$C289=\"ROC\"),\"-\",IF(AND('Enrollment Form'!$B289=\"Subscriber\",'Enrollment Form'!$C289=\"Enroll\",'Enrollment Form'!$AL289<>\"\"),\"Y\",\"N\")))","v":""},{"$f":"IF($B282=\"N\",\"\",IF(OR('Enrollment Form'!$B289<>\"Subscriber\",'Enrollment Form'!$C289=\"ROC\"),\"-\",IF(AND('Enrollment Form'!$B289=\"Subscriber\",'Enrollment Form'!$C289=\"Enroll\",'Enrollment Form'!$AM289<>\"\"),\"Y\",\"N\")))","v":""},{"$f":"IF($B282=\"N\",\"\",IF(OR('Enrollment Form'!$B289<>\"Subscriber\",'Enrollment Form'!$C289=\"ROC\"),\"-\",IF(AND('Enrollment Form'!$B289=\"Subscriber\",'Enrollment Form'!$C289=\"Enroll\",'Enrollment Form'!$AN289<>\"\"),\"Y\",\"N\")))","v":""},{"$f":"IF($B282=\"N\",\"\",IF(OR('Enrollment Form'!$B289<>\"Subscriber\",'Enrollment Form'!$C289=\"ROC\"),\"-\",IF(AND('Enrollment Form'!$B289=\"Subscriber\",'Enrollment Form'!$C289=\"Enroll\",'Enrollment Form'!$AP289<>\"\"),\"Y\",\"N\")))","v":""},{"$f":"IF($B282=\"N\",\"\",IF($Q282=\"-\",\"-\",IF(AND($Q282=\"Y\",'Enrollment Form'!$AP289=\"No\"),\"-\",IF(AND($Q282=\"Y\",'Enrollment Form'!$AP289=\"Yes\",'Enrollment Form'!$AQ289<>\"\"),\"Y\",\"N\"))))","v":""},{"$f":"IF($B282=\"N\",\"\",IF(OR('Enrollment Form'!$B289<>\"Subscriber\",'Enrollment Form'!$C289=\"ROC\"),\"-\",IF(AND('Enrollment Form'!$B289=\"Subscriber\",'Enrollment Form'!$C289=\"Enroll\",'Enrollment Form'!$CO289<>\"\"),\"Y\",\"N\")))","v":""},{"$f":"IF($B282=\"N\",\"\",IF($S282=\"-\",\"-\",IF(AND($S282=\"Y\",'Enrollment Form'!$CO289=\"No\"),\"-\",IF(AND($S282=\"Y\",'Enrollment Form'!$CO289=\"Yes\",'Enrollment Form'!$CP289<>\"\"),\"Y\",\"N\"))))","v":""},{"$f":"IF(OR('Enrollment Form'!$AV289=\"Yes\",'Enrollment Form'!$AV289=\"\"),\"-\",IF(AND('Enrollment Form'!$AV289=\"No\",ISERROR(FIND(\"HMO\",VLOOKUP('Enrollment Form'!G289,'Enrollment Form'!H$11:J$1000,3,FALSE),1))=FALSE,COUNTA('Enrollment Form'!$AW289:$AZ289)=4),\"Y\",\"N\"))","v":"-"},{"$f":"IF($B282=\"N\",\"\",IF('Enrollment Form'!$B289=\"Subscriber\",\"-\",IF(COUNTA('Enrollment Form'!$BE289,'Enrollment Form'!$BG289)=2,\"Y\",\"N\")))","v":""},{"$f":"IF($B282=\"N\",\"\",IF(OR('Enrollment Form'!$AU289=\"\",'Enrollment Form'!$AU289=\"No\"),\"-\",IF(AND('Enrollment Form'!$AU289=\"Yes\",COUNTA('Enrollment Form'!$CK289)=1),\"Y\",\"N\")))","v":""},{"$f":"IF(OR('Enrollment Form'!$CK289=\"\",'Enrollment Form'!$CK289=\"No\"),\"-\",IF(COUNTA('Enrollment Form'!$CM289:$CN289)=2,\"Y\",\"N\"))","v":"-"},{"$f":"IF($B282=\"N\",\"\",IF(COUNTIF('Enrollment Form'!$CZ289:$DO289,\"Other\")=COUNTA('Enrollment Form'!$DF289,'Enrollment Form'!$DA289,'Enrollment Form'!$DK289,'Enrollment Form'!$DP289),\"Y\",\"N\"))","v":""},{"$f":"IF($B282=\"N\",\"\",IF(OR('Enrollment Form'!B289<>\"Subscriber\",'Enrollment Form'!C289=\"ROC\",COUNTIF('Enrollment Form'!AS289:AT289,\"Yes\")>=1),\"-\",IF(AND('Enrollment Form'!C289=\"Enroll\",COUNTIF('Enrollment Form'!AS289:AT289,\"No\")=2,'Enrollment Form'!AU289=\"\"),\"N\",\"Y\")))","v":""},{"$f":"IF(OR(B282=\"N\",'Enrollment Form'!B289<>\"Subscriber\",'Enrollment Form'!C289=\"ROC\",'Enrollment Form'!O289<>\"Multiple of Salary\"),\"-\",IF(COUNTA('Enrollment Form'!T289:U289)<2,\"N\",\"Y\"))","v":"-"},{"$f":"IF(B282=\"N\",\"\",IF(OR('Enrollment Form'!C289=\"ROC\",'Enrollment Form'!B289<>\"Subscriber\",'Enrollment Form'!O289=\"Waive\",'Enrollment Form'!O289=\"\"),\"-\",IF('Enrollment Form'!P289=\"\",\"N\",\"Y\")))","v":""},{"$f":"IF($B282=\"N\",\"\",IF(AND('Enrollment Form'!$C289=\"ROC\",'Enrollment Form'!$DS289<>\"\"),\"Y\",IF(AND('Enrollment Form'!$C289=\"ROC\",'Enrollment Form'!$DS289=\"\"),\"N\",IF(AND('Enrollment Form'!$C289=\"Enroll\",'Enrollment Form'!$B289=\"Subscriber\",'Enrollment Form'!$CQ289=\"No\",'Enrollment Form'!$DS289=\"\"),\"N\",IF(AND('Enrollment Form'!$C289=\"Enroll\",'Enrollment Form'!$B289=\"Subscriber\",'Enrollment Form'!$CQ289=\"Yes\"),\"-\",\"Y\")))))","v":""},{"$f":"IF($B282=\"N\",\"\",IF(AND('Enrollment Form'!$C289=\"ROC\",'Enrollment Form'!$DT289<>\"\"),\"Y\",IF(AND('Enrollment Form'!$C289=\"ROC\",'Enrollment Form'!$DT289=\"\"),\"N\",IF(AND('Enrollment Form'!$C289=\"Enroll\",'Enrollment Form'!$B289=\"Subscriber\",'Enrollment Form'!$CQ289=\"No\",'Enrollment Form'!$DT289=\"\"),\"N\",IF(AND('Enrollment Form'!$C289=\"Enroll\",'Enrollment Form'!$B289=\"Subscriber\",'Enrollment Form'!$CQ289=\"Yes\"),\"-\",\"Y\")))))","v":""},{"$f":"IF('Enrollment Form'!AH289=\"\",\"\",IF(ISERROR(SEARCH(\".\",'Enrollment Form'!AH289,SEARCH(\"@\",'Enrollment Form'!AH289))),\"N\",\"Y\"))","v":""},{"$f":"IF(OR($B282=\"N\",'Enrollment Form'!$G289=\"\"),\"\",IF('Enrollment Form'!$B289<>\"Subscriber\",\"-\",IF(COUNTIF('Enrollment Form'!$AS289:$AT289,\"Yes\")=2,\"N\",\"Y\")))","v":""},{"$f":"IF(OR('Enrollment Form'!$CC289=\"\",'Enrollment Form'!$CC289=\"No\"),\"-\",IF(AND('Enrollment Form'!$CC289=\"Yes\",'Enrollment Form'!$CD289=\"\"),\"N\",\"Y\"))","v":"-"},{"$f":"IF(OR('Enrollment Form'!$CE289=\"\",'Enrollment Form'!$CE289=\"No\"),\"-\",IF(AND('Enrollment Form'!$CE289=\"Yes\",'Enrollment Form'!$CF289=\"\"),\"N\",\"Y\"))","v":"-"},{"$f":"IF(OR('Enrollment Form'!$CG289=\"\",'Enrollment Form'!$CG289=\"No\"),\"-\",IF(AND('Enrollment Form'!$CG289=\"Yes\",'Enrollment Form'!$CH289=\"\"),\"N\",\"Y\"))","v":"-"},{"$f":"IF(OR('Enrollment Form'!$CG289=\"\",'Enrollment Form'!$CG289=\"No\"),\"-\",IF(AND('Enrollment Form'!$CG289=\"Yes\",'Enrollment Form'!$CI289=\"\"),\"N\",\"Y\"))","v":"-"},{"$f":"IF('Enrollment Form'!B289<>\"Subscriber\",\"-\",IF(AND('Enrollment Form'!B289=\"Subscriber\",'Enrollment Form'!C289=\"Enroll\",'Enrollment Form'!AA289=\"\"),\"N\",\"Y\"))","v":"-"},{"$f":"IF(OR('Enrollment Form'!B289=\"Subscriber\",'Enrollment Form'!B289=\"\"),\"-\",IF('Enrollment Form'!BI289=\"\",\"N\",\"Y\"))","v":"-"},{"$f":"IF('Enrollment Form'!B289<>\"Subscriber\",\"-\",IF(AND('Enrollment Form'!B289=\"Subscriber\",'Enrollment Form'!G289=\"\"),\"N\",\"Y\"))","v":"-"},{"$f":"IF('Enrollment Form'!A289=\"\",\"\",IF('Enrollment Form'!B289=\"Subscriber\",\"-\",IF(AND('Enrollment Form'!B289<>\"Subscriber\",'Enrollment Form'!G289='Enrollment Form'!H289),\"N\",\"Y\")))","v":""},0]
[290,{"$f":"IF('Enrollment Form'!$A290<>\"\",\"Y\",\"N\")","v":"N"},{"$f":"IF(AND('Enrollment Form'!$B290=\"\",'Enrollment Form'!$C290<>\"\"),\"N\",IF($B283=\"N\",\"\",\"Y\"))","v":""},{"$f":"IF(OR($B283=\"N\",'Enrollment Form'!G290=\"\"),\"\",IF('Enrollment Form'!$B290<>\"Subscriber\",\"\",IF('Enrollment Form'!$G290='Enrollment Form'!$H290,\"Y\",\"N\")))","v":""},{"$f":"IF($B283=\"N\",\"\",IF(AND(COUNTIFS('Enrollment Form'!$H$11:$H$1000,'Enrollment Form'!$H290,'Enrollment Form'!$B$11:$B$1000,'Enrollment Form'!$B290)>1,'Enrollment Form'!$H290<>\"\"),\"N\",\"Y\"))","v":""},{"$f":"IF($B283=\"N\",\"\",IF(LEN('Enrollment Form'!$Y290)=0,\"\",IF(LEN('Enrollment Form'!$Y290)<>5,\"N\",\"Y\")))","v":""},{"$f":"IF($B283=\"N\",\"\",IF(LEN('Enrollment Form'!$AD290=0),\"\",IF(LEN('Enrollment Form'!$AD290)<>5,\"N\",\"Y\")))","v":""},{"$f":"IF($B283=\"N\",\"\",IF(LEN('Enrollment Form'!$BL290=0),\"\",IF(LEN('Enrollment Form'!$BL290)<>5,\"N\",\"Y\")))","v":""},{"$f":"IF($B283=\"N\",\"\",IF(LEN('Enrollment Form'!$AE290)=0,\"\",IF(LEN('Enrollment Form'!$AE290)<>10,\"N\",\"Y\")))","v":""},{"$f":"IF($B283=\"N\",\"\",IF(LEN('Enrollment Form'!$AF290)=0,\"\",IF(LEN('Enrollment Form'!$AF290)<>10,\"N\",\"Y\")))","v":""},{"$f":"IF('Enrollment Form'!$O290<>\"Graded\",\"-\",IF(AND('Enrollment Form'!$O290=\"Graded\",'Enrollment Form'!$AO290<>\"\"),\"Y\",\"N\"))","v":"-"},{"$f":"IF($B283=\"N\",\"\",IF(OR('Enrollment Form'!$B290<>\"Subscriber\",'Enrollment Form'!$C290=\"ROC\"),\"-\",IF(AND('Enrollment Form'!$B290=\"Subscriber\",'Enrollment Form'!$C290=\"Enroll\",'Enrollment Form'!$AJ290<>\"\"),\"Y\",\"N\")))","v":""},{"$f":"IF($B283=\"N\",\"\",IF(OR('Enrollment Form'!$B290<>\"Subscriber\",'Enrollment Form'!$C290=\"ROC\"),\"-\",IF(AND('Enrollment Form'!$B290=\"Subscriber\",'Enrollment Form'!$C290=\"Enroll\",'Enrollment Form'!$AK290<>\"\"),\"Y\",\"N\")))","v":""},{"$f":"IF($B283=\"N\",\"\",IF(OR('Enrollment Form'!$B290<>\"Subscriber\",'Enrollment Form'!$C290=\"ROC\"),\"-\",IF(AND('Enrollment Form'!$B290=\"Subscriber\",'Enrollment Form'!$C290=\"Enroll\",'Enrollment Form'!$AL290<>\"\"),\"Y\",\"N\")))","v":""},{"$f":"IF($B283=\"N\",\"\",IF(OR('Enrollment Form'!$B290<>\"Subscriber\",'Enrollment Form'!$C290=\"ROC\"),\"-\",IF(AND('Enrollment Form'!$B290=\"Subscriber\",'Enrollment Form'!$C290=\"Enroll\",'Enrollment Form'!$AM290<>\"\"),\"Y\",\"N\")))","v":""},{"$f":"IF($B283=\"N\",\"\",IF(OR('Enrollment Form'!$B290<>\"Subscriber\",'Enrollment Form'!$C290=\"ROC\"),\"-\",IF(AND('Enrollment Form'!$B290=\"Subscriber\",'Enrollment Form'!$C290=\"Enroll\",'Enrollment Form'!$AN290<>\"\"),\"Y\",\"N\")))","v":""},{"$f":"IF($B283=\"N\",\"\",IF(OR('Enrollment Form'!$B290<>\"Subscriber\",'Enrollment Form'!$C290=\"ROC\"),\"-\",IF(AND('Enrollment Form'!$B290=\"Subscriber\",'Enrollment Form'!$C290=\"Enroll\",'Enrollment Form'!$AP290<>\"\"),\"Y\",\"N\")))","v":""},{"$f":"IF($B283=\"N\",\"\",IF($Q283=\"-\",\"-\",IF(AND($Q283=\"Y\",'Enrollment Form'!$AP290=\"No\"),\"-\",IF(AND($Q283=\"Y\",'Enrollment Form'!$AP290=\"Yes\",'Enrollment Form'!$AQ290<>\"\"),\"Y\",\"N\"))))","v":""},{"$f":"IF($B283=\"N\",\"\",IF(OR('Enrollment Form'!$B290<>\"Subscriber\",'Enrollment Form'!$C290=\"ROC\"),\"-\",IF(AND('Enrollment Form'!$B290=\"Subscriber\",'Enrollment Form'!$C290=\"Enroll\",'Enrollment Form'!$CO290<>\"\"),\"Y\",\"N\")))","v":""},{"$f":"IF($B283=\"N\",\"\",IF($S283=\"-\",\"-\",IF(AND($S283=\"Y\",'Enrollment Form'!$CO290=\"No\"),\"-\",IF(AND($S283=\"Y\",'Enrollment Form'!$CO290=\"Yes\",'Enrollment Form'!$CP290<>\"\"),\"Y\",\"N\"))))","v":""},{"$f":"IF(OR('Enrollment Form'!$AV290=\"Yes\",'Enrollment Form'!$AV290=\"\"),\"-\",IF(AND('Enrollment Form'!$AV290=\"No\",ISERROR(FIND(\"HMO\",VLOOKUP('Enrollment Form'!G290,'Enrollment Form'!H$11:J$1000,3,FALSE),1))=FALSE,COUNTA('Enrollment Form'!$AW290:$AZ290)=4),\"Y\",\"N\"))","v":"-"},{"$f":"IF($B283=\"N\",\"\",IF('Enrollment Form'!$B290=\"Subscriber\",\"-\",IF(COUNTA('Enrollment Form'!$BE290,'Enrollment Form'!$BG290)=2,\"Y\",\"N\")))","v":""},{"$f":"IF($B283=\"N\",\"\",IF(OR('Enrollment Form'!$AU290=\"\",'Enrollment Form'!$AU290=\"No\"),\"-\",IF(AND('Enrollment Form'!$AU290=\"Yes\",COUNTA('Enrollment Form'!$CK290)=1),\"Y\",\"N\")))","v":""},{"$f":"IF(OR('Enrollment Form'!$CK290=\"\",'Enrollment Form'!$CK290=\"No\"),\"-\",IF(COUNTA('Enrollment Form'!$CM290:$CN290)=2,\"Y\",\"N\"))","v":"-"},{"$f":"IF($B283=\"N\",\"\",IF(COUNTIF('Enrollment Form'!$CZ290:$DO290,\"Other\")=COUNTA('Enrollment Form'!$DF290,'Enrollment Form'!$DA290,'Enrollment Form'!$DK290,'Enrollment Form'!$DP290),\"Y\",\"N\"))","v":""},{"$f":"IF($B283=\"N\",\"\",IF(OR('Enrollment Form'!B290<>\"Subscriber\",'Enrollment Form'!C290=\"ROC\",COUNTIF('Enrollment Form'!AS290:AT290,\"Yes\")>=1),\"-\",IF(AND('Enrollment Form'!C290=\"Enroll\",COUNTIF('Enrollment Form'!AS290:AT290,\"No\")=2,'Enrollment Form'!AU290=\"\"),\"N\",\"Y\")))","v":""},{"$f":"IF(OR(B283=\"N\",'Enrollment Form'!B290<>\"Subscriber\",'Enrollment Form'!C290=\"ROC\",'Enrollment Form'!O290<>\"Multiple of Salary\"),\"-\",IF(COUNTA('Enrollment Form'!T290:U290)<2,\"N\",\"Y\"))","v":"-"},{"$f":"IF(B283=\"N\",\"\",IF(OR('Enrollment Form'!C290=\"ROC\",'Enrollment Form'!B290<>\"Subscriber\",'Enrollment Form'!O290=\"Waive\",'Enrollment Form'!O290=\"\"),\"-\",IF('Enrollment Form'!P290=\"\",\"N\",\"Y\")))","v":""},{"$f":"IF($B283=\"N\",\"\",IF(AND('Enrollment Form'!$C290=\"ROC\",'Enrollment Form'!$DS290<>\"\"),\"Y\",IF(AND('Enrollment Form'!$C290=\"ROC\",'Enrollment Form'!$DS290=\"\"),\"N\",IF(AND('Enrollment Form'!$C290=\"Enroll\",'Enrollment Form'!$B290=\"Subscriber\",'Enrollment Form'!$CQ290=\"No\",'Enrollment Form'!$DS290=\"\"),\"N\",IF(AND('Enrollment Form'!$C290=\"Enroll\",'Enrollment Form'!$B290=\"Subscriber\",'Enrollment Form'!$CQ290=\"Yes\"),\"-\",\"Y\")))))","v":""},{"$f":"IF($B283=\"N\",\"\",IF(AND('Enrollment Form'!$C290=\"ROC\",'Enrollment Form'!$DT290<>\"\"),\"Y\",IF(AND('Enrollment Form'!$C290=\"ROC\",'Enrollment Form'!$DT290=\"\"),\"N\",IF(AND('Enrollment Form'!$C290=\"Enroll\",'Enrollment Form'!$B290=\"Subscriber\",'Enrollment Form'!$CQ290=\"No\",'Enrollment Form'!$DT290=\"\"),\"N\",IF(AND('Enrollment Form'!$C290=\"Enroll\",'Enrollment Form'!$B290=\"Subscriber\",'Enrollment Form'!$CQ290=\"Yes\"),\"-\",\"Y\")))))","v":""},{"$f":"IF('Enrollment Form'!AH290=\"\",\"\",IF(ISERROR(SEARCH(\".\",'Enrollment Form'!AH290,SEARCH(\"@\",'Enrollment Form'!AH290))),\"N\",\"Y\"))","v":""},{"$f":"IF(OR($B283=\"N\",'Enrollment Form'!$G290=\"\"),\"\",IF('Enrollment Form'!$B290<>\"Subscriber\",\"-\",IF(COUNTIF('Enrollment Form'!$AS290:$AT290,\"Yes\")=2,\"N\",\"Y\")))","v":""},{"$f":"IF(OR('Enrollment Form'!$CC290=\"\",'Enrollment Form'!$CC290=\"No\"),\"-\",IF(AND('Enrollment Form'!$CC290=\"Yes\",'Enrollment Form'!$CD290=\"\"),\"N\",\"Y\"))","v":"-"},{"$f":"IF(OR('Enrollment Form'!$CE290=\"\",'Enrollment Form'!$CE290=\"No\"),\"-\",IF(AND('Enrollment Form'!$CE290=\"Yes\",'Enrollment Form'!$CF290=\"\"),\"N\",\"Y\"))","v":"-"},{"$f":"IF(OR('Enrollment Form'!$CG290=\"\",'Enrollment Form'!$CG290=\"No\"),\"-\",IF(AND('Enrollment Form'!$CG290=\"Yes\",'Enrollment Form'!$CH290=\"\"),\"N\",\"Y\"))","v":"-"},{"$f":"IF(OR('Enrollment Form'!$CG290=\"\",'Enrollment Form'!$CG290=\"No\"),\"-\",IF(AND('Enrollment Form'!$CG290=\"Yes\",'Enrollment Form'!$CI290=\"\"),\"N\",\"Y\"))","v":"-"},{"$f":"IF('Enrollment Form'!B290<>\"Subscriber\",\"-\",IF(AND('Enrollment Form'!B290=\"Subscriber\",'Enrollment Form'!C290=\"Enroll\",'Enrollment Form'!AA290=\"\"),\"N\",\"Y\"))","v":"-"},{"$f":"IF(OR('Enrollment Form'!B290=\"Subscriber\",'Enrollment Form'!B290=\"\"),\"-\",IF('Enrollment Form'!BI290=\"\",\"N\",\"Y\"))","v":"-"},{"$f":"IF('Enrollment Form'!B290<>\"Subscriber\",\"-\",IF(AND('Enrollment Form'!B290=\"Subscriber\",'Enrollment Form'!G290=\"\"),\"N\",\"Y\"))","v":"-"},{"$f":"IF('Enrollment Form'!A290=\"\",\"\",IF('Enrollment Form'!B290=\"Subscriber\",\"-\",IF(AND('Enrollment Form'!B290<>\"Subscriber\",'Enrollment Form'!G290='Enrollment Form'!H290),\"N\",\"Y\")))","v":""},0]
[291,{"$f":"IF('Enrollment Form'!$A291<>\"\",\"Y\",\"N\")","v":"N"},{"$f":"IF(AND('Enrollment Form'!$B291=\"\",'Enrollment Form'!$C291<>\"\"),\"N\",IF($B284=\"N\",\"\",\"Y\"))","v":""},{"$f":"IF(OR($B284=\"N\",'Enrollment Form'!G291=\"\"),\"\",IF('Enrollment Form'!$B291<>\"Subscriber\",\"\",IF('Enrollment Form'!$G291='Enrollment Form'!$H291,\"Y\",\"N\")))","v":""},{"$f":"IF($B284=\"N\",\"\",IF(AND(COUNTIFS('Enrollment Form'!$H$11:$H$1000,'Enrollment Form'!$H291,'Enrollment Form'!$B$11:$B$1000,'Enrollment Form'!$B291)>1,'Enrollment Form'!$H291<>\"\"),\"N\",\"Y\"))","v":""},{"$f":"IF($B284=\"N\",\"\",IF(LEN('Enrollment Form'!$Y291)=0,\"\",IF(LEN('Enrollment Form'!$Y291)<>5,\"N\",\"Y\")))","v":""},{"$f":"IF($B284=\"N\",\"\",IF(LEN('Enrollment Form'!$AD291=0),\"\",IF(LEN('Enrollment Form'!$AD291)<>5,\"N\",\"Y\")))","v":""},{"$f":"IF($B284=\"N\",\"\",IF(LEN('Enrollment Form'!$BL291=0),\"\",IF(LEN('Enrollment Form'!$BL291)<>5,\"N\",\"Y\")))","v":""},{"$f":"IF($B284=\"N\",\"\",IF(LEN('Enrollment Form'!$AE291)=0,\"\",IF(LEN('Enrollment Form'!$AE291)<>10,\"N\",\"Y\")))","v":""},{"$f":"IF($B284=\"N\",\"\",IF(LEN('Enrollment Form'!$AF291)=0,\"\",IF(LEN('Enrollment Form'!$AF291)<>10,\"N\",\"Y\")))","v":""},{"$f":"IF('Enrollment Form'!$O291<>\"Graded\",\"-\",IF(AND('Enrollment Form'!$O291=\"Graded\",'Enrollment Form'!$AO291<>\"\"),\"Y\",\"N\"))","v":"-"},{"$f":"IF($B284=\"N\",\"\",IF(OR('Enrollment Form'!$B291<>\"Subscriber\",'Enrollment Form'!$C291=\"ROC\"),\"-\",IF(AND('Enrollment Form'!$B291=\"Subscriber\",'Enrollment Form'!$C291=\"Enroll\",'Enrollment Form'!$AJ291<>\"\"),\"Y\",\"N\")))","v":""},{"$f":"IF($B284=\"N\",\"\",IF(OR('Enrollment Form'!$B291<>\"Subscriber\",'Enrollment Form'!$C291=\"ROC\"),\"-\",IF(AND('Enrollment Form'!$B291=\"Subscriber\",'Enrollment Form'!$C291=\"Enroll\",'Enrollment Form'!$AK291<>\"\"),\"Y\",\"N\")))","v":""},{"$f":"IF($B284=\"N\",\"\",IF(OR('Enrollment Form'!$B291<>\"Subscriber\",'Enrollment Form'!$C291=\"ROC\"),\"-\",IF(AND('Enrollment Form'!$B291=\"Subscriber\",'Enrollment Form'!$C291=\"Enroll\",'Enrollment Form'!$AL291<>\"\"),\"Y\",\"N\")))","v":""},{"$f":"IF($B284=\"N\",\"\",IF(OR('Enrollment Form'!$B291<>\"Subscriber\",'Enrollment Form'!$C291=\"ROC\"),\"-\",IF(AND('Enrollment Form'!$B291=\"Subscriber\",'Enrollment Form'!$C291=\"Enroll\",'Enrollment Form'!$AM291<>\"\"),\"Y\",\"N\")))","v":""},{"$f":"IF($B284=\"N\",\"\",IF(OR('Enrollment Form'!$B291<>\"Subscriber\",'Enrollment Form'!$C291=\"ROC\"),\"-\",IF(AND('Enrollment Form'!$B291=\"Subscriber\",'Enrollment Form'!$C291=\"Enroll\",'Enrollment Form'!$AN291<>\"\"),\"Y\",\"N\")))","v":""},{"$f":"IF($B284=\"N\",\"\",IF(OR('Enrollment Form'!$B291<>\"Subscriber\",'Enrollment Form'!$C291=\"ROC\"),\"-\",IF(AND('Enrollment Form'!$B291=\"Subscriber\",'Enrollment Form'!$C291=\"Enroll\",'Enrollment Form'!$AP291<>\"\"),\"Y\",\"N\")))","v":""},{"$f":"IF($B284=\"N\",\"\",IF($Q284=\"-\",\"-\",IF(AND($Q284=\"Y\",'Enrollment Form'!$AP291=\"No\"),\"-\",IF(AND($Q284=\"Y\",'Enrollment Form'!$AP291=\"Yes\",'Enrollment Form'!$AQ291<>\"\"),\"Y\",\"N\"))))","v":""},{"$f":"IF($B284=\"N\",\"\",IF(OR('Enrollment Form'!$B291<>\"Subscriber\",'Enrollment Form'!$C291=\"ROC\"),\"-\",IF(AND('Enrollment Form'!$B291=\"Subscriber\",'Enrollment Form'!$C291=\"Enroll\",'Enrollment Form'!$CO291<>\"\"),\"Y\",\"N\")))","v":""},{"$f":"IF($B284=\"N\",\"\",IF($S284=\"-\",\"-\",IF(AND($S284=\"Y\",'Enrollment Form'!$CO291=\"No\"),\"-\",IF(AND($S284=\"Y\",'Enrollment Form'!$CO291=\"Yes\",'Enrollment Form'!$CP291<>\"\"),\"Y\",\"N\"))))","v":""},{"$f":"IF(OR('Enrollment Form'!$AV291=\"Yes\",'Enrollment Form'!$AV291=\"\"),\"-\",IF(AND('Enrollment Form'!$AV291=\"No\",ISERROR(FIND(\"HMO\",VLOOKUP('Enrollment Form'!G291,'Enrollment Form'!H$11:J$1000,3,FALSE),1))=FALSE,COUNTA('Enrollment Form'!$AW291:$AZ291)=4),\"Y\",\"N\"))","v":"-"},{"$f":"IF($B284=\"N\",\"\",IF('Enrollment Form'!$B291=\"Subscriber\",\"-\",IF(COUNTA('Enrollment Form'!$BE291,'Enrollment Form'!$BG291)=2,\"Y\",\"N\")))","v":""},{"$f":"IF($B284=\"N\",\"\",IF(OR('Enrollment Form'!$AU291=\"\",'Enrollment Form'!$AU291=\"No\"),\"-\",IF(AND('Enrollment Form'!$AU291=\"Yes\",COUNTA('Enrollment Form'!$CK291)=1),\"Y\",\"N\")))","v":""},{"$f":"IF(OR('Enrollment Form'!$CK291=\"\",'Enrollment Form'!$CK291=\"No\"),\"-\",IF(COUNTA('Enrollment Form'!$CM291:$CN291)=2,\"Y\",\"N\"))","v":"-"},{"$f":"IF($B284=\"N\",\"\",IF(COUNTIF('Enrollment Form'!$CZ291:$DO291,\"Other\")=COUNTA('Enrollment Form'!$DF291,'Enrollment Form'!$DA291,'Enrollment Form'!$DK291,'Enrollment Form'!$DP291),\"Y\",\"N\"))","v":""},{"$f":"IF($B284=\"N\",\"\",IF(OR('Enrollment Form'!B291<>\"Subscriber\",'Enrollment Form'!C291=\"ROC\",COUNTIF('Enrollment Form'!AS291:AT291,\"Yes\")>=1),\"-\",IF(AND('Enrollment Form'!C291=\"Enroll\",COUNTIF('Enrollment Form'!AS291:AT291,\"No\")=2,'Enrollment Form'!AU291=\"\"),\"N\",\"Y\")))","v":""},{"$f":"IF(OR(B284=\"N\",'Enrollment Form'!B291<>\"Subscriber\",'Enrollment Form'!C291=\"ROC\",'Enrollment Form'!O291<>\"Multiple of Salary\"),\"-\",IF(COUNTA('Enrollment Form'!T291:U291)<2,\"N\",\"Y\"))","v":"-"},{"$f":"IF(B284=\"N\",\"\",IF(OR('Enrollment Form'!C291=\"ROC\",'Enrollment Form'!B291<>\"Subscriber\",'Enrollment Form'!O291=\"Waive\",'Enrollment Form'!O291=\"\"),\"-\",IF('Enrollment Form'!P291=\"\",\"N\",\"Y\")))","v":""},{"$f":"IF($B284=\"N\",\"\",IF(AND('Enrollment Form'!$C291=\"ROC\",'Enrollment Form'!$DS291<>\"\"),\"Y\",IF(AND('Enrollment Form'!$C291=\"ROC\",'Enrollment Form'!$DS291=\"\"),\"N\",IF(AND('Enrollment Form'!$C291=\"Enroll\",'Enrollment Form'!$B291=\"Subscriber\",'Enrollment Form'!$CQ291=\"No\",'Enrollment Form'!$DS291=\"\"),\"N\",IF(AND('Enrollment Form'!$C291=\"Enroll\",'Enrollment Form'!$B291=\"Subscriber\",'Enrollment Form'!$CQ291=\"Yes\"),\"-\",\"Y\")))))","v":""},{"$f":"IF($B284=\"N\",\"\",IF(AND('Enrollment Form'!$C291=\"ROC\",'Enrollment Form'!$DT291<>\"\"),\"Y\",IF(AND('Enrollment Form'!$C291=\"ROC\",'Enrollment Form'!$DT291=\"\"),\"N\",IF(AND('Enrollment Form'!$C291=\"Enroll\",'Enrollment Form'!$B291=\"Subscriber\",'Enrollment Form'!$CQ291=\"No\",'Enrollment Form'!$DT291=\"\"),\"N\",IF(AND('Enrollment Form'!$C291=\"Enroll\",'Enrollment Form'!$B291=\"Subscriber\",'Enrollment Form'!$CQ291=\"Yes\"),\"-\",\"Y\")))))","v":""},{"$f":"IF('Enrollment Form'!AH291=\"\",\"\",IF(ISERROR(SEARCH(\".\",'Enrollment Form'!AH291,SEARCH(\"@\",'Enrollment Form'!AH291))),\"N\",\"Y\"))","v":""},{"$f":"IF(OR($B284=\"N\",'Enrollment Form'!$G291=\"\"),\"\",IF('Enrollment Form'!$B291<>\"Subscriber\",\"-\",IF(COUNTIF('Enrollment Form'!$AS291:$AT291,\"Yes\")=2,\"N\",\"Y\")))","v":""},{"$f":"IF(OR('Enrollment Form'!$CC291=\"\",'Enrollment Form'!$CC291=\"No\"),\"-\",IF(AND('Enrollment Form'!$CC291=\"Yes\",'Enrollment Form'!$CD291=\"\"),\"N\",\"Y\"))","v":"-"},{"$f":"IF(OR('Enrollment Form'!$CE291=\"\",'Enrollment Form'!$CE291=\"No\"),\"-\",IF(AND('Enrollment Form'!$CE291=\"Yes\",'Enrollment Form'!$CF291=\"\"),\"N\",\"Y\"))","v":"-"},{"$f":"IF(OR('Enrollment Form'!$CG291=\"\",'Enrollment Form'!$CG291=\"No\"),\"-\",IF(AND('Enrollment Form'!$CG291=\"Yes\",'Enrollment Form'!$CH291=\"\"),\"N\",\"Y\"))","v":"-"},{"$f":"IF(OR('Enrollment Form'!$CG291=\"\",'Enrollment Form'!$CG291=\"No\"),\"-\",IF(AND('Enrollment Form'!$CG291=\"Yes\",'Enrollment Form'!$CI291=\"\"),\"N\",\"Y\"))","v":"-"},{"$f":"IF('Enrollment Form'!B291<>\"Subscriber\",\"-\",IF(AND('Enrollment Form'!B291=\"Subscriber\",'Enrollment Form'!C291=\"Enroll\",'Enrollment Form'!AA291=\"\"),\"N\",\"Y\"))","v":"-"},{"$f":"IF(OR('Enrollment Form'!B291=\"Subscriber\",'Enrollment Form'!B291=\"\"),\"-\",IF('Enrollment Form'!BI291=\"\",\"N\",\"Y\"))","v":"-"},{"$f":"IF('Enrollment Form'!B291<>\"Subscriber\",\"-\",IF(AND('Enrollment Form'!B291=\"Subscriber\",'Enrollment Form'!G291=\"\"),\"N\",\"Y\"))","v":"-"},{"$f":"IF('Enrollment Form'!A291=\"\",\"\",IF('Enrollment Form'!B291=\"Subscriber\",\"-\",IF(AND('Enrollment Form'!B291<>\"Subscriber\",'Enrollment Form'!G291='Enrollment Form'!H291),\"N\",\"Y\")))","v":""},0]
[292,{"$f":"IF('Enrollment Form'!$A292<>\"\",\"Y\",\"N\")","v":"N"},{"$f":"IF(AND('Enrollment Form'!$B292=\"\",'Enrollment Form'!$C292<>\"\"),\"N\",IF($B285=\"N\",\"\",\"Y\"))","v":""},{"$f":"IF(OR($B285=\"N\",'Enrollment Form'!G292=\"\"),\"\",IF('Enrollment Form'!$B292<>\"Subscriber\",\"\",IF('Enrollment Form'!$G292='Enrollment Form'!$H292,\"Y\",\"N\")))","v":""},{"$f":"IF($B285=\"N\",\"\",IF(AND(COUNTIFS('Enrollment Form'!$H$11:$H$1000,'Enrollment Form'!$H292,'Enrollment Form'!$B$11:$B$1000,'Enrollment Form'!$B292)>1,'Enrollment Form'!$H292<>\"\"),\"N\",\"Y\"))","v":""},{"$f":"IF($B285=\"N\",\"\",IF(LEN('Enrollment Form'!$Y292)=0,\"\",IF(LEN('Enrollment Form'!$Y292)<>5,\"N\",\"Y\")))","v":""},{"$f":"IF($B285=\"N\",\"\",IF(LEN('Enrollment Form'!$AD292=0),\"\",IF(LEN('Enrollment Form'!$AD292)<>5,\"N\",\"Y\")))","v":""},{"$f":"IF($B285=\"N\",\"\",IF(LEN('Enrollment Form'!$BL292=0),\"\",IF(LEN('Enrollment Form'!$BL292)<>5,\"N\",\"Y\")))","v":""},{"$f":"IF($B285=\"N\",\"\",IF(LEN('Enrollment Form'!$AE292)=0,\"\",IF(LEN('Enrollment Form'!$AE292)<>10,\"N\",\"Y\")))","v":""},{"$f":"IF($B285=\"N\",\"\",IF(LEN('Enrollment Form'!$AF292)=0,\"\",IF(LEN('Enrollment Form'!$AF292)<>10,\"N\",\"Y\")))","v":""},{"$f":"IF('Enrollment Form'!$O292<>\"Graded\",\"-\",IF(AND('Enrollment Form'!$O292=\"Graded\",'Enrollment Form'!$AO292<>\"\"),\"Y\",\"N\"))","v":"-"},{"$f":"IF($B285=\"N\",\"\",IF(OR('Enrollment Form'!$B292<>\"Subscriber\",'Enrollment Form'!$C292=\"ROC\"),\"-\",IF(AND('Enrollment Form'!$B292=\"Subscriber\",'Enrollment Form'!$C292=\"Enroll\",'Enrollment Form'!$AJ292<>\"\"),\"Y\",\"N\")))","v":""},{"$f":"IF($B285=\"N\",\"\",IF(OR('Enrollment Form'!$B292<>\"Subscriber\",'Enrollment Form'!$C292=\"ROC\"),\"-\",IF(AND('Enrollment Form'!$B292=\"Subscriber\",'Enrollment Form'!$C292=\"Enroll\",'Enrollment Form'!$AK292<>\"\"),\"Y\",\"N\")))","v":""},{"$f":"IF($B285=\"N\",\"\",IF(OR('Enrollment Form'!$B292<>\"Subscriber\",'Enrollment Form'!$C292=\"ROC\"),\"-\",IF(AND('Enrollment Form'!$B292=\"Subscriber\",'Enrollment Form'!$C292=\"Enroll\",'Enrollment Form'!$AL292<>\"\"),\"Y\",\"N\")))","v":""},{"$f":"IF($B285=\"N\",\"\",IF(OR('Enrollment Form'!$B292<>\"Subscriber\",'Enrollment Form'!$C292=\"ROC\"),\"-\",IF(AND('Enrollment Form'!$B292=\"Subscriber\",'Enrollment Form'!$C292=\"Enroll\",'Enrollment Form'!$AM292<>\"\"),\"Y\",\"N\")))","v":""},{"$f":"IF($B285=\"N\",\"\",IF(OR('Enrollment Form'!$B292<>\"Subscriber\",'Enrollment Form'!$C292=\"ROC\"),\"-\",IF(AND('Enrollment Form'!$B292=\"Subscriber\",'Enrollment Form'!$C292=\"Enroll\",'Enrollment Form'!$AN292<>\"\"),\"Y\",\"N\")))","v":""},{"$f":"IF($B285=\"N\",\"\",IF(OR('Enrollment Form'!$B292<>\"Subscriber\",'Enrollment Form'!$C292=\"ROC\"),\"-\",IF(AND('Enrollment Form'!$B292=\"Subscriber\",'Enrollment Form'!$C292=\"Enroll\",'Enrollment Form'!$AP292<>\"\"),\"Y\",\"N\")))","v":""},{"$f":"IF($B285=\"N\",\"\",IF($Q285=\"-\",\"-\",IF(AND($Q285=\"Y\",'Enrollment Form'!$AP292=\"No\"),\"-\",IF(AND($Q285=\"Y\",'Enrollment Form'!$AP292=\"Yes\",'Enrollment Form'!$AQ292<>\"\"),\"Y\",\"N\"))))","v":""},{"$f":"IF($B285=\"N\",\"\",IF(OR('Enrollment Form'!$B292<>\"Subscriber\",'Enrollment Form'!$C292=\"ROC\"),\"-\",IF(AND('Enrollment Form'!$B292=\"Subscriber\",'Enrollment Form'!$C292=\"Enroll\",'Enrollment Form'!$CO292<>\"\"),\"Y\",\"N\")))","v":""},{"$f":"IF($B285=\"N\",\"\",IF($S285=\"-\",\"-\",IF(AND($S285=\"Y\",'Enrollment Form'!$CO292=\"No\"),\"-\",IF(AND($S285=\"Y\",'Enrollment Form'!$CO292=\"Yes\",'Enrollment Form'!$CP292<>\"\"),\"Y\",\"N\"))))","v":""},{"$f":"IF(OR('Enrollment Form'!$AV292=\"Yes\",'Enrollment Form'!$AV292=\"\"),\"-\",IF(AND('Enrollment Form'!$AV292=\"No\",ISERROR(FIND(\"HMO\",VLOOKUP('Enrollment Form'!G292,'Enrollment Form'!H$11:J$1000,3,FALSE),1))=FALSE,COUNTA('Enrollment Form'!$AW292:$AZ292)=4),\"Y\",\"N\"))","v":"-"},{"$f":"IF($B285=\"N\",\"\",IF('Enrollment Form'!$B292=\"Subscriber\",\"-\",IF(COUNTA('Enrollment Form'!$BE292,'Enrollment Form'!$BG292)=2,\"Y\",\"N\")))","v":""},{"$f":"IF($B285=\"N\",\"\",IF(OR('Enrollment Form'!$AU292=\"\",'Enrollment Form'!$AU292=\"No\"),\"-\",IF(AND('Enrollment Form'!$AU292=\"Yes\",COUNTA('Enrollment Form'!$CK292)=1),\"Y\",\"N\")))","v":""},{"$f":"IF(OR('Enrollment Form'!$CK292=\"\",'Enrollment Form'!$CK292=\"No\"),\"-\",IF(COUNTA('Enrollment Form'!$CM292:$CN292)=2,\"Y\",\"N\"))","v":"-"},{"$f":"IF($B285=\"N\",\"\",IF(COUNTIF('Enrollment Form'!$CZ292:$DO292,\"Other\")=COUNTA('Enrollment Form'!$DF292,'Enrollment Form'!$DA292,'Enrollment Form'!$DK292,'Enrollment Form'!$DP292),\"Y\",\"N\"))","v":""},{"$f":"IF($B285=\"N\",\"\",IF(OR('Enrollment Form'!B292<>\"Subscriber\",'Enrollment Form'!C292=\"ROC\",COUNTIF('Enrollment Form'!AS292:AT292,\"Yes\")>=1),\"-\",IF(AND('Enrollment Form'!C292=\"Enroll\",COUNTIF('Enrollment Form'!AS292:AT292,\"No\")=2,'Enrollment Form'!AU292=\"\"),\"N\",\"Y\")))","v":""},{"$f":"IF(OR(B285=\"N\",'Enrollment Form'!B292<>\"Subscriber\",'Enrollment Form'!C292=\"ROC\",'Enrollment Form'!O292<>\"Multiple of Salary\"),\"-\",IF(COUNTA('Enrollment Form'!T292:U292)<2,\"N\",\"Y\"))","v":"-"},{"$f":"IF(B285=\"N\",\"\",IF(OR('Enrollment Form'!C292=\"ROC\",'Enrollment Form'!B292<>\"Subscriber\",'Enrollment Form'!O292=\"Waive\",'Enrollment Form'!O292=\"\"),\"-\",IF('Enrollment Form'!P292=\"\",\"N\",\"Y\")))","v":""},{"$f":"IF($B285=\"N\",\"\",IF(AND('Enrollment Form'!$C292=\"ROC\",'Enrollment Form'!$DS292<>\"\"),\"Y\",IF(AND('Enrollment Form'!$C292=\"ROC\",'Enrollment Form'!$DS292=\"\"),\"N\",IF(AND('Enrollment Form'!$C292=\"Enroll\",'Enrollment Form'!$B292=\"Subscriber\",'Enrollment Form'!$CQ292=\"No\",'Enrollment Form'!$DS292=\"\"),\"N\",IF(AND('Enrollment Form'!$C292=\"Enroll\",'Enrollment Form'!$B292=\"Subscriber\",'Enrollment Form'!$CQ292=\"Yes\"),\"-\",\"Y\")))))","v":""},{"$f":"IF($B285=\"N\",\"\",IF(AND('Enrollment Form'!$C292=\"ROC\",'Enrollment Form'!$DT292<>\"\"),\"Y\",IF(AND('Enrollment Form'!$C292=\"ROC\",'Enrollment Form'!$DT292=\"\"),\"N\",IF(AND('Enrollment Form'!$C292=\"Enroll\",'Enrollment Form'!$B292=\"Subscriber\",'Enrollment Form'!$CQ292=\"No\",'Enrollment Form'!$DT292=\"\"),\"N\",IF(AND('Enrollment Form'!$C292=\"Enroll\",'Enrollment Form'!$B292=\"Subscriber\",'Enrollment Form'!$CQ292=\"Yes\"),\"-\",\"Y\")))))","v":""},{"$f":"IF('Enrollment Form'!AH292=\"\",\"\",IF(ISERROR(SEARCH(\".\",'Enrollment Form'!AH292,SEARCH(\"@\",'Enrollment Form'!AH292))),\"N\",\"Y\"))","v":""},{"$f":"IF(OR($B285=\"N\",'Enrollment Form'!$G292=\"\"),\"\",IF('Enrollment Form'!$B292<>\"Subscriber\",\"-\",IF(COUNTIF('Enrollment Form'!$AS292:$AT292,\"Yes\")=2,\"N\",\"Y\")))","v":""},{"$f":"IF(OR('Enrollment Form'!$CC292=\"\",'Enrollment Form'!$CC292=\"No\"),\"-\",IF(AND('Enrollment Form'!$CC292=\"Yes\",'Enrollment Form'!$CD292=\"\"),\"N\",\"Y\"))","v":"-"},{"$f":"IF(OR('Enrollment Form'!$CE292=\"\",'Enrollment Form'!$CE292=\"No\"),\"-\",IF(AND('Enrollment Form'!$CE292=\"Yes\",'Enrollment Form'!$CF292=\"\"),\"N\",\"Y\"))","v":"-"},{"$f":"IF(OR('Enrollment Form'!$CG292=\"\",'Enrollment Form'!$CG292=\"No\"),\"-\",IF(AND('Enrollment Form'!$CG292=\"Yes\",'Enrollment Form'!$CH292=\"\"),\"N\",\"Y\"))","v":"-"},{"$f":"IF(OR('Enrollment Form'!$CG292=\"\",'Enrollment Form'!$CG292=\"No\"),\"-\",IF(AND('Enrollment Form'!$CG292=\"Yes\",'Enrollment Form'!$CI292=\"\"),\"N\",\"Y\"))","v":"-"},{"$f":"IF('Enrollment Form'!B292<>\"Subscriber\",\"-\",IF(AND('Enrollment Form'!B292=\"Subscriber\",'Enrollment Form'!C292=\"Enroll\",'Enrollment Form'!AA292=\"\"),\"N\",\"Y\"))","v":"-"},{"$f":"IF(OR('Enrollment Form'!B292=\"Subscriber\",'Enrollment Form'!B292=\"\"),\"-\",IF('Enrollment Form'!BI292=\"\",\"N\",\"Y\"))","v":"-"},{"$f":"IF('Enrollment Form'!B292<>\"Subscriber\",\"-\",IF(AND('Enrollment Form'!B292=\"Subscriber\",'Enrollment Form'!G292=\"\"),\"N\",\"Y\"))","v":"-"},{"$f":"IF('Enrollment Form'!A292=\"\",\"\",IF('Enrollment Form'!B292=\"Subscriber\",\"-\",IF(AND('Enrollment Form'!B292<>\"Subscriber\",'Enrollment Form'!G292='Enrollment Form'!H292),\"N\",\"Y\")))","v":""},0]
[293,{"$f":"IF('Enrollment Form'!$A293<>\"\",\"Y\",\"N\")","v":"N"},{"$f":"IF(AND('Enrollment Form'!$B293=\"\",'Enrollment Form'!$C293<>\"\"),\"N\",IF($B286=\"N\",\"\",\"Y\"))","v":""},{"$f":"IF(OR($B286=\"N\",'Enrollment Form'!G293=\"\"),\"\",IF('Enrollment Form'!$B293<>\"Subscriber\",\"\",IF('Enrollment Form'!$G293='Enrollment Form'!$H293,\"Y\",\"N\")))","v":""},{"$f":"IF($B286=\"N\",\"\",IF(AND(COUNTIFS('Enrollment Form'!$H$11:$H$1000,'Enrollment Form'!$H293,'Enrollment Form'!$B$11:$B$1000,'Enrollment Form'!$B293)>1,'Enrollment Form'!$H293<>\"\"),\"N\",\"Y\"))","v":""},{"$f":"IF($B286=\"N\",\"\",IF(LEN('Enrollment Form'!$Y293)=0,\"\",IF(LEN('Enrollment Form'!$Y293)<>5,\"N\",\"Y\")))","v":""},{"$f":"IF($B286=\"N\",\"\",IF(LEN('Enrollment Form'!$AD293=0),\"\",IF(LEN('Enrollment Form'!$AD293)<>5,\"N\",\"Y\")))","v":""},{"$f":"IF($B286=\"N\",\"\",IF(LEN('Enrollment Form'!$BL293=0),\"\",IF(LEN('Enrollment Form'!$BL293)<>5,\"N\",\"Y\")))","v":""},{"$f":"IF($B286=\"N\",\"\",IF(LEN('Enrollment Form'!$AE293)=0,\"\",IF(LEN('Enrollment Form'!$AE293)<>10,\"N\",\"Y\")))","v":""},{"$f":"IF($B286=\"N\",\"\",IF(LEN('Enrollment Form'!$AF293)=0,\"\",IF(LEN('Enrollment Form'!$AF293)<>10,\"N\",\"Y\")))","v":""},{"$f":"IF('Enrollment Form'!$O293<>\"Graded\",\"-\",IF(AND('Enrollment Form'!$O293=\"Graded\",'Enrollment Form'!$AO293<>\"\"),\"Y\",\"N\"))","v":"-"},{"$f":"IF($B286=\"N\",\"\",IF(OR('Enrollment Form'!$B293<>\"Subscriber\",'Enrollment Form'!$C293=\"ROC\"),\"-\",IF(AND('Enrollment Form'!$B293=\"Subscriber\",'Enrollment Form'!$C293=\"Enroll\",'Enrollment Form'!$AJ293<>\"\"),\"Y\",\"N\")))","v":""},{"$f":"IF($B286=\"N\",\"\",IF(OR('Enrollment Form'!$B293<>\"Subscriber\",'Enrollment Form'!$C293=\"ROC\"),\"-\",IF(AND('Enrollment Form'!$B293=\"Subscriber\",'Enrollment Form'!$C293=\"Enroll\",'Enrollment Form'!$AK293<>\"\"),\"Y\",\"N\")))","v":""},{"$f":"IF($B286=\"N\",\"\",IF(OR('Enrollment Form'!$B293<>\"Subscriber\",'Enrollment Form'!$C293=\"ROC\"),\"-\",IF(AND('Enrollment Form'!$B293=\"Subscriber\",'Enrollment Form'!$C293=\"Enroll\",'Enrollment Form'!$AL293<>\"\"),\"Y\",\"N\")))","v":""},{"$f":"IF($B286=\"N\",\"\",IF(OR('Enrollment Form'!$B293<>\"Subscriber\",'Enrollment Form'!$C293=\"ROC\"),\"-\",IF(AND('Enrollment Form'!$B293=\"Subscriber\",'Enrollment Form'!$C293=\"Enroll\",'Enrollment Form'!$AM293<>\"\"),\"Y\",\"N\")))","v":""},{"$f":"IF($B286=\"N\",\"\",IF(OR('Enrollment Form'!$B293<>\"Subscriber\",'Enrollment Form'!$C293=\"ROC\"),\"-\",IF(AND('Enrollment Form'!$B293=\"Subscriber\",'Enrollment Form'!$C293=\"Enroll\",'Enrollment Form'!$AN293<>\"\"),\"Y\",\"N\")))","v":""},{"$f":"IF($B286=\"N\",\"\",IF(OR('Enrollment Form'!$B293<>\"Subscriber\",'Enrollment Form'!$C293=\"ROC\"),\"-\",IF(AND('Enrollment Form'!$B293=\"Subscriber\",'Enrollment Form'!$C293=\"Enroll\",'Enrollment Form'!$AP293<>\"\"),\"Y\",\"N\")))","v":""},{"$f":"IF($B286=\"N\",\"\",IF($Q286=\"-\",\"-\",IF(AND($Q286=\"Y\",'Enrollment Form'!$AP293=\"No\"),\"-\",IF(AND($Q286=\"Y\",'Enrollment Form'!$AP293=\"Yes\",'Enrollment Form'!$AQ293<>\"\"),\"Y\",\"N\"))))","v":""},{"$f":"IF($B286=\"N\",\"\",IF(OR('Enrollment Form'!$B293<>\"Subscriber\",'Enrollment Form'!$C293=\"ROC\"),\"-\",IF(AND('Enrollment Form'!$B293=\"Subscriber\",'Enrollment Form'!$C293=\"Enroll\",'Enrollment Form'!$CO293<>\"\"),\"Y\",\"N\")))","v":""},{"$f":"IF($B286=\"N\",\"\",IF($S286=\"-\",\"-\",IF(AND($S286=\"Y\",'Enrollment Form'!$CO293=\"No\"),\"-\",IF(AND($S286=\"Y\",'Enrollment Form'!$CO293=\"Yes\",'Enrollment Form'!$CP293<>\"\"),\"Y\",\"N\"))))","v":""},{"$f":"IF(OR('Enrollment Form'!$AV293=\"Yes\",'Enrollment Form'!$AV293=\"\"),\"-\",IF(AND('Enrollment Form'!$AV293=\"No\",ISERROR(FIND(\"HMO\",VLOOKUP('Enrollment Form'!G293,'Enrollment Form'!H$11:J$1000,3,FALSE),1))=FALSE,COUNTA('Enrollment Form'!$AW293:$AZ293)=4),\"Y\",\"N\"))","v":"-"},{"$f":"IF($B286=\"N\",\"\",IF('Enrollment Form'!$B293=\"Subscriber\",\"-\",IF(COUNTA('Enrollment Form'!$BE293,'Enrollment Form'!$BG293)=2,\"Y\",\"N\")))","v":""},{"$f":"IF($B286=\"N\",\"\",IF(OR('Enrollment Form'!$AU293=\"\",'Enrollment Form'!$AU293=\"No\"),\"-\",IF(AND('Enrollment Form'!$AU293=\"Yes\",COUNTA('Enrollment Form'!$CK293)=1),\"Y\",\"N\")))","v":""},{"$f":"IF(OR('Enrollment Form'!$CK293=\"\",'Enrollment Form'!$CK293=\"No\"),\"-\",IF(COUNTA('Enrollment Form'!$CM293:$CN293)=2,\"Y\",\"N\"))","v":"-"},{"$f":"IF($B286=\"N\",\"\",IF(COUNTIF('Enrollment Form'!$CZ293:$DO293,\"Other\")=COUNTA('Enrollment Form'!$DF293,'Enrollment Form'!$DA293,'Enrollment Form'!$DK293,'Enrollment Form'!$DP293),\"Y\",\"N\"))","v":""},{"$f":"IF($B286=\"N\",\"\",IF(OR('Enrollment Form'!B293<>\"Subscriber\",'Enrollment Form'!C293=\"ROC\",COUNTIF('Enrollment Form'!AS293:AT293,\"Yes\")>=1),\"-\",IF(AND('Enrollment Form'!C293=\"Enroll\",COUNTIF('Enrollment Form'!AS293:AT293,\"No\")=2,'Enrollment Form'!AU293=\"\"),\"N\",\"Y\")))","v":""},{"$f":"IF(OR(B286=\"N\",'Enrollment Form'!B293<>\"Subscriber\",'Enrollment Form'!C293=\"ROC\",'Enrollment Form'!O293<>\"Multiple of Salary\"),\"-\",IF(COUNTA('Enrollment Form'!T293:U293)<2,\"N\",\"Y\"))","v":"-"},{"$f":"IF(B286=\"N\",\"\",IF(OR('Enrollment Form'!C293=\"ROC\",'Enrollment Form'!B293<>\"Subscriber\",'Enrollment Form'!O293=\"Waive\",'Enrollment Form'!O293=\"\"),\"-\",IF('Enrollment Form'!P293=\"\",\"N\",\"Y\")))","v":""},{"$f":"IF($B286=\"N\",\"\",IF(AND('Enrollment Form'!$C293=\"ROC\",'Enrollment Form'!$DS293<>\"\"),\"Y\",IF(AND('Enrollment Form'!$C293=\"ROC\",'Enrollment Form'!$DS293=\"\"),\"N\",IF(AND('Enrollment Form'!$C293=\"Enroll\",'Enrollment Form'!$B293=\"Subscriber\",'Enrollment Form'!$CQ293=\"No\",'Enrollment Form'!$DS293=\"\"),\"N\",IF(AND('Enrollment Form'!$C293=\"Enroll\",'Enrollment Form'!$B293=\"Subscriber\",'Enrollment Form'!$CQ293=\"Yes\"),\"-\",\"Y\")))))","v":""},{"$f":"IF($B286=\"N\",\"\",IF(AND('Enrollment Form'!$C293=\"ROC\",'Enrollment Form'!$DT293<>\"\"),\"Y\",IF(AND('Enrollment Form'!$C293=\"ROC\",'Enrollment Form'!$DT293=\"\"),\"N\",IF(AND('Enrollment Form'!$C293=\"Enroll\",'Enrollment Form'!$B293=\"Subscriber\",'Enrollment Form'!$CQ293=\"No\",'Enrollment Form'!$DT293=\"\"),\"N\",IF(AND('Enrollment Form'!$C293=\"Enroll\",'Enrollment Form'!$B293=\"Subscriber\",'Enrollment Form'!$CQ293=\"Yes\"),\"-\",\"Y\")))))","v":""},{"$f":"IF('Enrollment Form'!AH293=\"\",\"\",IF(ISERROR(SEARCH(\".\",'Enrollment Form'!AH293,SEARCH(\"@\",'Enrollment Form'!AH293))),\"N\",\"Y\"))","v":""},{"$f":"IF(OR($B286=\"N\",'Enrollment Form'!$G293=\"\"),\"\",IF('Enrollment Form'!$B293<>\"Subscriber\",\"-\",IF(COUNTIF('Enrollment Form'!$AS293:$AT293,\"Yes\")=2,\"N\",\"Y\")))","v":""},{"$f":"IF(OR('Enrollment Form'!$CC293=\"\",'Enrollment Form'!$CC293=\"No\"),\"-\",IF(AND('Enrollment Form'!$CC293=\"Yes\",'Enrollment Form'!$CD293=\"\"),\"N\",\"Y\"))","v":"-"},{"$f":"IF(OR('Enrollment Form'!$CE293=\"\",'Enrollment Form'!$CE293=\"No\"),\"-\",IF(AND('Enrollment Form'!$CE293=\"Yes\",'Enrollment Form'!$CF293=\"\"),\"N\",\"Y\"))","v":"-"},{"$f":"IF(OR('Enrollment Form'!$CG293=\"\",'Enrollment Form'!$CG293=\"No\"),\"-\",IF(AND('Enrollment Form'!$CG293=\"Yes\",'Enrollment Form'!$CH293=\"\"),\"N\",\"Y\"))","v":"-"},{"$f":"IF(OR('Enrollment Form'!$CG293=\"\",'Enrollment Form'!$CG293=\"No\"),\"-\",IF(AND('Enrollment Form'!$CG293=\"Yes\",'Enrollment Form'!$CI293=\"\"),\"N\",\"Y\"))","v":"-"},{"$f":"IF('Enrollment Form'!B293<>\"Subscriber\",\"-\",IF(AND('Enrollment Form'!B293=\"Subscriber\",'Enrollment Form'!C293=\"Enroll\",'Enrollment Form'!AA293=\"\"),\"N\",\"Y\"))","v":"-"},{"$f":"IF(OR('Enrollment Form'!B293=\"Subscriber\",'Enrollment Form'!B293=\"\"),\"-\",IF('Enrollment Form'!BI293=\"\",\"N\",\"Y\"))","v":"-"},{"$f":"IF('Enrollment Form'!B293<>\"Subscriber\",\"-\",IF(AND('Enrollment Form'!B293=\"Subscriber\",'Enrollment Form'!G293=\"\"),\"N\",\"Y\"))","v":"-"},{"$f":"IF('Enrollment Form'!A293=\"\",\"\",IF('Enrollment Form'!B293=\"Subscriber\",\"-\",IF(AND('Enrollment Form'!B293<>\"Subscriber\",'Enrollment Form'!G293='Enrollment Form'!H293),\"N\",\"Y\")))","v":""},0]
[294,{"$f":"IF('Enrollment Form'!$A294<>\"\",\"Y\",\"N\")","v":"N"},{"$f":"IF(AND('Enrollment Form'!$B294=\"\",'Enrollment Form'!$C294<>\"\"),\"N\",IF($B287=\"N\",\"\",\"Y\"))","v":""},{"$f":"IF(OR($B287=\"N\",'Enrollment Form'!G294=\"\"),\"\",IF('Enrollment Form'!$B294<>\"Subscriber\",\"\",IF('Enrollment Form'!$G294='Enrollment Form'!$H294,\"Y\",\"N\")))","v":""},{"$f":"IF($B287=\"N\",\"\",IF(AND(COUNTIFS('Enrollment Form'!$H$11:$H$1000,'Enrollment Form'!$H294,'Enrollment Form'!$B$11:$B$1000,'Enrollment Form'!$B294)>1,'Enrollment Form'!$H294<>\"\"),\"N\",\"Y\"))","v":""},{"$f":"IF($B287=\"N\",\"\",IF(LEN('Enrollment Form'!$Y294)=0,\"\",IF(LEN('Enrollment Form'!$Y294)<>5,\"N\",\"Y\")))","v":""},{"$f":"IF($B287=\"N\",\"\",IF(LEN('Enrollment Form'!$AD294=0),\"\",IF(LEN('Enrollment Form'!$AD294)<>5,\"N\",\"Y\")))","v":""},{"$f":"IF($B287=\"N\",\"\",IF(LEN('Enrollment Form'!$BL294=0),\"\",IF(LEN('Enrollment Form'!$BL294)<>5,\"N\",\"Y\")))","v":""},{"$f":"IF($B287=\"N\",\"\",IF(LEN('Enrollment Form'!$AE294)=0,\"\",IF(LEN('Enrollment Form'!$AE294)<>10,\"N\",\"Y\")))","v":""},{"$f":"IF($B287=\"N\",\"\",IF(LEN('Enrollment Form'!$AF294)=0,\"\",IF(LEN('Enrollment Form'!$AF294)<>10,\"N\",\"Y\")))","v":""},{"$f":"IF('Enrollment Form'!$O294<>\"Graded\",\"-\",IF(AND('Enrollment Form'!$O294=\"Graded\",'Enrollment Form'!$AO294<>\"\"),\"Y\",\"N\"))","v":"-"},{"$f":"IF($B287=\"N\",\"\",IF(OR('Enrollment Form'!$B294<>\"Subscriber\",'Enrollment Form'!$C294=\"ROC\"),\"-\",IF(AND('Enrollment Form'!$B294=\"Subscriber\",'Enrollment Form'!$C294=\"Enroll\",'Enrollment Form'!$AJ294<>\"\"),\"Y\",\"N\")))","v":""},{"$f":"IF($B287=\"N\",\"\",IF(OR('Enrollment Form'!$B294<>\"Subscriber\",'Enrollment Form'!$C294=\"ROC\"),\"-\",IF(AND('Enrollment Form'!$B294=\"Subscriber\",'Enrollment Form'!$C294=\"Enroll\",'Enrollment Form'!$AK294<>\"\"),\"Y\",\"N\")))","v":""},{"$f":"IF($B287=\"N\",\"\",IF(OR('Enrollment Form'!$B294<>\"Subscriber\",'Enrollment Form'!$C294=\"ROC\"),\"-\",IF(AND('Enrollment Form'!$B294=\"Subscriber\",'Enrollment Form'!$C294=\"Enroll\",'Enrollment Form'!$AL294<>\"\"),\"Y\",\"N\")))","v":""},{"$f":"IF($B287=\"N\",\"\",IF(OR('Enrollment Form'!$B294<>\"Subscriber\",'Enrollment Form'!$C294=\"ROC\"),\"-\",IF(AND('Enrollment Form'!$B294=\"Subscriber\",'Enrollment Form'!$C294=\"Enroll\",'Enrollment Form'!$AM294<>\"\"),\"Y\",\"N\")))","v":""},{"$f":"IF($B287=\"N\",\"\",IF(OR('Enrollment Form'!$B294<>\"Subscriber\",'Enrollment Form'!$C294=\"ROC\"),\"-\",IF(AND('Enrollment Form'!$B294=\"Subscriber\",'Enrollment Form'!$C294=\"Enroll\",'Enrollment Form'!$AN294<>\"\"),\"Y\",\"N\")))","v":""},{"$f":"IF($B287=\"N\",\"\",IF(OR('Enrollment Form'!$B294<>\"Subscriber\",'Enrollment Form'!$C294=\"ROC\"),\"-\",IF(AND('Enrollment Form'!$B294=\"Subscriber\",'Enrollment Form'!$C294=\"Enroll\",'Enrollment Form'!$AP294<>\"\"),\"Y\",\"N\")))","v":""},{"$f":"IF($B287=\"N\",\"\",IF($Q287=\"-\",\"-\",IF(AND($Q287=\"Y\",'Enrollment Form'!$AP294=\"No\"),\"-\",IF(AND($Q287=\"Y\",'Enrollment Form'!$AP294=\"Yes\",'Enrollment Form'!$AQ294<>\"\"),\"Y\",\"N\"))))","v":""},{"$f":"IF($B287=\"N\",\"\",IF(OR('Enrollment Form'!$B294<>\"Subscriber\",'Enrollment Form'!$C294=\"ROC\"),\"-\",IF(AND('Enrollment Form'!$B294=\"Subscriber\",'Enrollment Form'!$C294=\"Enroll\",'Enrollment Form'!$CO294<>\"\"),\"Y\",\"N\")))","v":""},{"$f":"IF($B287=\"N\",\"\",IF($S287=\"-\",\"-\",IF(AND($S287=\"Y\",'Enrollment Form'!$CO294=\"No\"),\"-\",IF(AND($S287=\"Y\",'Enrollment Form'!$CO294=\"Yes\",'Enrollment Form'!$CP294<>\"\"),\"Y\",\"N\"))))","v":""},{"$f":"IF(OR('Enrollment Form'!$AV294=\"Yes\",'Enrollment Form'!$AV294=\"\"),\"-\",IF(AND('Enrollment Form'!$AV294=\"No\",ISERROR(FIND(\"HMO\",VLOOKUP('Enrollment Form'!G294,'Enrollment Form'!H$11:J$1000,3,FALSE),1))=FALSE,COUNTA('Enrollment Form'!$AW294:$AZ294)=4),\"Y\",\"N\"))","v":"-"},{"$f":"IF($B287=\"N\",\"\",IF('Enrollment Form'!$B294=\"Subscriber\",\"-\",IF(COUNTA('Enrollment Form'!$BE294,'Enrollment Form'!$BG294)=2,\"Y\",\"N\")))","v":""},{"$f":"IF($B287=\"N\",\"\",IF(OR('Enrollment Form'!$AU294=\"\",'Enrollment Form'!$AU294=\"No\"),\"-\",IF(AND('Enrollment Form'!$AU294=\"Yes\",COUNTA('Enrollment Form'!$CK294)=1),\"Y\",\"N\")))","v":""},{"$f":"IF(OR('Enrollment Form'!$CK294=\"\",'Enrollment Form'!$CK294=\"No\"),\"-\",IF(COUNTA('Enrollment Form'!$CM294:$CN294)=2,\"Y\",\"N\"))","v":"-"},{"$f":"IF($B287=\"N\",\"\",IF(COUNTIF('Enrollment Form'!$CZ294:$DO294,\"Other\")=COUNTA('Enrollment Form'!$DF294,'Enrollment Form'!$DA294,'Enrollment Form'!$DK294,'Enrollment Form'!$DP294),\"Y\",\"N\"))","v":""},{"$f":"IF($B287=\"N\",\"\",IF(OR('Enrollment Form'!B294<>\"Subscriber\",'Enrollment Form'!C294=\"ROC\",COUNTIF('Enrollment Form'!AS294:AT294,\"Yes\")>=1),\"-\",IF(AND('Enrollment Form'!C294=\"Enroll\",COUNTIF('Enrollment Form'!AS294:AT294,\"No\")=2,'Enrollment Form'!AU294=\"\"),\"N\",\"Y\")))","v":""},{"$f":"IF(OR(B287=\"N\",'Enrollment Form'!B294<>\"Subscriber\",'Enrollment Form'!C294=\"ROC\",'Enrollment Form'!O294<>\"Multiple of Salary\"),\"-\",IF(COUNTA('Enrollment Form'!T294:U294)<2,\"N\",\"Y\"))","v":"-"},{"$f":"IF(B287=\"N\",\"\",IF(OR('Enrollment Form'!C294=\"ROC\",'Enrollment Form'!B294<>\"Subscriber\",'Enrollment Form'!O294=\"Waive\",'Enrollment Form'!O294=\"\"),\"-\",IF('Enrollment Form'!P294=\"\",\"N\",\"Y\")))","v":""},{"$f":"IF($B287=\"N\",\"\",IF(AND('Enrollment Form'!$C294=\"ROC\",'Enrollment Form'!$DS294<>\"\"),\"Y\",IF(AND('Enrollment Form'!$C294=\"ROC\",'Enrollment Form'!$DS294=\"\"),\"N\",IF(AND('Enrollment Form'!$C294=\"Enroll\",'Enrollment Form'!$B294=\"Subscriber\",'Enrollment Form'!$CQ294=\"No\",'Enrollment Form'!$DS294=\"\"),\"N\",IF(AND('Enrollment Form'!$C294=\"Enroll\",'Enrollment Form'!$B294=\"Subscriber\",'Enrollment Form'!$CQ294=\"Yes\"),\"-\",\"Y\")))))","v":""},{"$f":"IF($B287=\"N\",\"\",IF(AND('Enrollment Form'!$C294=\"ROC\",'Enrollment Form'!$DT294<>\"\"),\"Y\",IF(AND('Enrollment Form'!$C294=\"ROC\",'Enrollment Form'!$DT294=\"\"),\"N\",IF(AND('Enrollment Form'!$C294=\"Enroll\",'Enrollment Form'!$B294=\"Subscriber\",'Enrollment Form'!$CQ294=\"No\",'Enrollment Form'!$DT294=\"\"),\"N\",IF(AND('Enrollment Form'!$C294=\"Enroll\",'Enrollment Form'!$B294=\"Subscriber\",'Enrollment Form'!$CQ294=\"Yes\"),\"-\",\"Y\")))))","v":""},{"$f":"IF('Enrollment Form'!AH294=\"\",\"\",IF(ISERROR(SEARCH(\".\",'Enrollment Form'!AH294,SEARCH(\"@\",'Enrollment Form'!AH294))),\"N\",\"Y\"))","v":""},{"$f":"IF(OR($B287=\"N\",'Enrollment Form'!$G294=\"\"),\"\",IF('Enrollment Form'!$B294<>\"Subscriber\",\"-\",IF(COUNTIF('Enrollment Form'!$AS294:$AT294,\"Yes\")=2,\"N\",\"Y\")))","v":""},{"$f":"IF(OR('Enrollment Form'!$CC294=\"\",'Enrollment Form'!$CC294=\"No\"),\"-\",IF(AND('Enrollment Form'!$CC294=\"Yes\",'Enrollment Form'!$CD294=\"\"),\"N\",\"Y\"))","v":"-"},{"$f":"IF(OR('Enrollment Form'!$CE294=\"\",'Enrollment Form'!$CE294=\"No\"),\"-\",IF(AND('Enrollment Form'!$CE294=\"Yes\",'Enrollment Form'!$CF294=\"\"),\"N\",\"Y\"))","v":"-"},{"$f":"IF(OR('Enrollment Form'!$CG294=\"\",'Enrollment Form'!$CG294=\"No\"),\"-\",IF(AND('Enrollment Form'!$CG294=\"Yes\",'Enrollment Form'!$CH294=\"\"),\"N\",\"Y\"))","v":"-"},{"$f":"IF(OR('Enrollment Form'!$CG294=\"\",'Enrollment Form'!$CG294=\"No\"),\"-\",IF(AND('Enrollment Form'!$CG294=\"Yes\",'Enrollment Form'!$CI294=\"\"),\"N\",\"Y\"))","v":"-"},{"$f":"IF('Enrollment Form'!B294<>\"Subscriber\",\"-\",IF(AND('Enrollment Form'!B294=\"Subscriber\",'Enrollment Form'!C294=\"Enroll\",'Enrollment Form'!AA294=\"\"),\"N\",\"Y\"))","v":"-"},{"$f":"IF(OR('Enrollment Form'!B294=\"Subscriber\",'Enrollment Form'!B294=\"\"),\"-\",IF('Enrollment Form'!BI294=\"\",\"N\",\"Y\"))","v":"-"},{"$f":"IF('Enrollment Form'!B294<>\"Subscriber\",\"-\",IF(AND('Enrollment Form'!B294=\"Subscriber\",'Enrollment Form'!G294=\"\"),\"N\",\"Y\"))","v":"-"},{"$f":"IF('Enrollment Form'!A294=\"\",\"\",IF('Enrollment Form'!B294=\"Subscriber\",\"-\",IF(AND('Enrollment Form'!B294<>\"Subscriber\",'Enrollment Form'!G294='Enrollment Form'!H294),\"N\",\"Y\")))","v":""},0]
[295,{"$f":"IF('Enrollment Form'!$A295<>\"\",\"Y\",\"N\")","v":"N"},{"$f":"IF(AND('Enrollment Form'!$B295=\"\",'Enrollment Form'!$C295<>\"\"),\"N\",IF($B288=\"N\",\"\",\"Y\"))","v":""},{"$f":"IF(OR($B288=\"N\",'Enrollment Form'!G295=\"\"),\"\",IF('Enrollment Form'!$B295<>\"Subscriber\",\"\",IF('Enrollment Form'!$G295='Enrollment Form'!$H295,\"Y\",\"N\")))","v":""},{"$f":"IF($B288=\"N\",\"\",IF(AND(COUNTIFS('Enrollment Form'!$H$11:$H$1000,'Enrollment Form'!$H295,'Enrollment Form'!$B$11:$B$1000,'Enrollment Form'!$B295)>1,'Enrollment Form'!$H295<>\"\"),\"N\",\"Y\"))","v":""},{"$f":"IF($B288=\"N\",\"\",IF(LEN('Enrollment Form'!$Y295)=0,\"\",IF(LEN('Enrollment Form'!$Y295)<>5,\"N\",\"Y\")))","v":""},{"$f":"IF($B288=\"N\",\"\",IF(LEN('Enrollment Form'!$AD295=0),\"\",IF(LEN('Enrollment Form'!$AD295)<>5,\"N\",\"Y\")))","v":""},{"$f":"IF($B288=\"N\",\"\",IF(LEN('Enrollment Form'!$BL295=0),\"\",IF(LEN('Enrollment Form'!$BL295)<>5,\"N\",\"Y\")))","v":""},{"$f":"IF($B288=\"N\",\"\",IF(LEN('Enrollment Form'!$AE295)=0,\"\",IF(LEN('Enrollment Form'!$AE295)<>10,\"N\",\"Y\")))","v":""},{"$f":"IF($B288=\"N\",\"\",IF(LEN('Enrollment Form'!$AF295)=0,\"\",IF(LEN('Enrollment Form'!$AF295)<>10,\"N\",\"Y\")))","v":""},{"$f":"IF('Enrollment Form'!$O295<>\"Graded\",\"-\",IF(AND('Enrollment Form'!$O295=\"Graded\",'Enrollment Form'!$AO295<>\"\"),\"Y\",\"N\"))","v":"-"},{"$f":"IF($B288=\"N\",\"\",IF(OR('Enrollment Form'!$B295<>\"Subscriber\",'Enrollment Form'!$C295=\"ROC\"),\"-\",IF(AND('Enrollment Form'!$B295=\"Subscriber\",'Enrollment Form'!$C295=\"Enroll\",'Enrollment Form'!$AJ295<>\"\"),\"Y\",\"N\")))","v":""},{"$f":"IF($B288=\"N\",\"\",IF(OR('Enrollment Form'!$B295<>\"Subscriber\",'Enrollment Form'!$C295=\"ROC\"),\"-\",IF(AND('Enrollment Form'!$B295=\"Subscriber\",'Enrollment Form'!$C295=\"Enroll\",'Enrollment Form'!$AK295<>\"\"),\"Y\",\"N\")))","v":""},{"$f":"IF($B288=\"N\",\"\",IF(OR('Enrollment Form'!$B295<>\"Subscriber\",'Enrollment Form'!$C295=\"ROC\"),\"-\",IF(AND('Enrollment Form'!$B295=\"Subscriber\",'Enrollment Form'!$C295=\"Enroll\",'Enrollment Form'!$AL295<>\"\"),\"Y\",\"N\")))","v":""},{"$f":"IF($B288=\"N\",\"\",IF(OR('Enrollment Form'!$B295<>\"Subscriber\",'Enrollment Form'!$C295=\"ROC\"),\"-\",IF(AND('Enrollment Form'!$B295=\"Subscriber\",'Enrollment Form'!$C295=\"Enroll\",'Enrollment Form'!$AM295<>\"\"),\"Y\",\"N\")))","v":""},{"$f":"IF($B288=\"N\",\"\",IF(OR('Enrollment Form'!$B295<>\"Subscriber\",'Enrollment Form'!$C295=\"ROC\"),\"-\",IF(AND('Enrollment Form'!$B295=\"Subscriber\",'Enrollment Form'!$C295=\"Enroll\",'Enrollment Form'!$AN295<>\"\"),\"Y\",\"N\")))","v":""},{"$f":"IF($B288=\"N\",\"\",IF(OR('Enrollment Form'!$B295<>\"Subscriber\",'Enrollment Form'!$C295=\"ROC\"),\"-\",IF(AND('Enrollment Form'!$B295=\"Subscriber\",'Enrollment Form'!$C295=\"Enroll\",'Enrollment Form'!$AP295<>\"\"),\"Y\",\"N\")))","v":""},{"$f":"IF($B288=\"N\",\"\",IF($Q288=\"-\",\"-\",IF(AND($Q288=\"Y\",'Enrollment Form'!$AP295=\"No\"),\"-\",IF(AND($Q288=\"Y\",'Enrollment Form'!$AP295=\"Yes\",'Enrollment Form'!$AQ295<>\"\"),\"Y\",\"N\"))))","v":""},{"$f":"IF($B288=\"N\",\"\",IF(OR('Enrollment Form'!$B295<>\"Subscriber\",'Enrollment Form'!$C295=\"ROC\"),\"-\",IF(AND('Enrollment Form'!$B295=\"Subscriber\",'Enrollment Form'!$C295=\"Enroll\",'Enrollment Form'!$CO295<>\"\"),\"Y\",\"N\")))","v":""},{"$f":"IF($B288=\"N\",\"\",IF($S288=\"-\",\"-\",IF(AND($S288=\"Y\",'Enrollment Form'!$CO295=\"No\"),\"-\",IF(AND($S288=\"Y\",'Enrollment Form'!$CO295=\"Yes\",'Enrollment Form'!$CP295<>\"\"),\"Y\",\"N\"))))","v":""},{"$f":"IF(OR('Enrollment Form'!$AV295=\"Yes\",'Enrollment Form'!$AV295=\"\"),\"-\",IF(AND('Enrollment Form'!$AV295=\"No\",ISERROR(FIND(\"HMO\",VLOOKUP('Enrollment Form'!G295,'Enrollment Form'!H$11:J$1000,3,FALSE),1))=FALSE,COUNTA('Enrollment Form'!$AW295:$AZ295)=4),\"Y\",\"N\"))","v":"-"},{"$f":"IF($B288=\"N\",\"\",IF('Enrollment Form'!$B295=\"Subscriber\",\"-\",IF(COUNTA('Enrollment Form'!$BE295,'Enrollment Form'!$BG295)=2,\"Y\",\"N\")))","v":""},{"$f":"IF($B288=\"N\",\"\",IF(OR('Enrollment Form'!$AU295=\"\",'Enrollment Form'!$AU295=\"No\"),\"-\",IF(AND('Enrollment Form'!$AU295=\"Yes\",COUNTA('Enrollment Form'!$CK295)=1),\"Y\",\"N\")))","v":""},{"$f":"IF(OR('Enrollment Form'!$CK295=\"\",'Enrollment Form'!$CK295=\"No\"),\"-\",IF(COUNTA('Enrollment Form'!$CM295:$CN295)=2,\"Y\",\"N\"))","v":"-"},{"$f":"IF($B288=\"N\",\"\",IF(COUNTIF('Enrollment Form'!$CZ295:$DO295,\"Other\")=COUNTA('Enrollment Form'!$DF295,'Enrollment Form'!$DA295,'Enrollment Form'!$DK295,'Enrollment Form'!$DP295),\"Y\",\"N\"))","v":""},{"$f":"IF($B288=\"N\",\"\",IF(OR('Enrollment Form'!B295<>\"Subscriber\",'Enrollment Form'!C295=\"ROC\",COUNTIF('Enrollment Form'!AS295:AT295,\"Yes\")>=1),\"-\",IF(AND('Enrollment Form'!C295=\"Enroll\",COUNTIF('Enrollment Form'!AS295:AT295,\"No\")=2,'Enrollment Form'!AU295=\"\"),\"N\",\"Y\")))","v":""},{"$f":"IF(OR(B288=\"N\",'Enrollment Form'!B295<>\"Subscriber\",'Enrollment Form'!C295=\"ROC\",'Enrollment Form'!O295<>\"Multiple of Salary\"),\"-\",IF(COUNTA('Enrollment Form'!T295:U295)<2,\"N\",\"Y\"))","v":"-"},{"$f":"IF(B288=\"N\",\"\",IF(OR('Enrollment Form'!C295=\"ROC\",'Enrollment Form'!B295<>\"Subscriber\",'Enrollment Form'!O295=\"Waive\",'Enrollment Form'!O295=\"\"),\"-\",IF('Enrollment Form'!P295=\"\",\"N\",\"Y\")))","v":""},{"$f":"IF($B288=\"N\",\"\",IF(AND('Enrollment Form'!$C295=\"ROC\",'Enrollment Form'!$DS295<>\"\"),\"Y\",IF(AND('Enrollment Form'!$C295=\"ROC\",'Enrollment Form'!$DS295=\"\"),\"N\",IF(AND('Enrollment Form'!$C295=\"Enroll\",'Enrollment Form'!$B295=\"Subscriber\",'Enrollment Form'!$CQ295=\"No\",'Enrollment Form'!$DS295=\"\"),\"N\",IF(AND('Enrollment Form'!$C295=\"Enroll\",'Enrollment Form'!$B295=\"Subscriber\",'Enrollment Form'!$CQ295=\"Yes\"),\"-\",\"Y\")))))","v":""},{"$f":"IF($B288=\"N\",\"\",IF(AND('Enrollment Form'!$C295=\"ROC\",'Enrollment Form'!$DT295<>\"\"),\"Y\",IF(AND('Enrollment Form'!$C295=\"ROC\",'Enrollment Form'!$DT295=\"\"),\"N\",IF(AND('Enrollment Form'!$C295=\"Enroll\",'Enrollment Form'!$B295=\"Subscriber\",'Enrollment Form'!$CQ295=\"No\",'Enrollment Form'!$DT295=\"\"),\"N\",IF(AND('Enrollment Form'!$C295=\"Enroll\",'Enrollment Form'!$B295=\"Subscriber\",'Enrollment Form'!$CQ295=\"Yes\"),\"-\",\"Y\")))))","v":""},{"$f":"IF('Enrollment Form'!AH295=\"\",\"\",IF(ISERROR(SEARCH(\".\",'Enrollment Form'!AH295,SEARCH(\"@\",'Enrollment Form'!AH295))),\"N\",\"Y\"))","v":""},{"$f":"IF(OR($B288=\"N\",'Enrollment Form'!$G295=\"\"),\"\",IF('Enrollment Form'!$B295<>\"Subscriber\",\"-\",IF(COUNTIF('Enrollment Form'!$AS295:$AT295,\"Yes\")=2,\"N\",\"Y\")))","v":""},{"$f":"IF(OR('Enrollment Form'!$CC295=\"\",'Enrollment Form'!$CC295=\"No\"),\"-\",IF(AND('Enrollment Form'!$CC295=\"Yes\",'Enrollment Form'!$CD295=\"\"),\"N\",\"Y\"))","v":"-"},{"$f":"IF(OR('Enrollment Form'!$CE295=\"\",'Enrollment Form'!$CE295=\"No\"),\"-\",IF(AND('Enrollment Form'!$CE295=\"Yes\",'Enrollment Form'!$CF295=\"\"),\"N\",\"Y\"))","v":"-"},{"$f":"IF(OR('Enrollment Form'!$CG295=\"\",'Enrollment Form'!$CG295=\"No\"),\"-\",IF(AND('Enrollment Form'!$CG295=\"Yes\",'Enrollment Form'!$CH295=\"\"),\"N\",\"Y\"))","v":"-"},{"$f":"IF(OR('Enrollment Form'!$CG295=\"\",'Enrollment Form'!$CG295=\"No\"),\"-\",IF(AND('Enrollment Form'!$CG295=\"Yes\",'Enrollment Form'!$CI295=\"\"),\"N\",\"Y\"))","v":"-"},{"$f":"IF('Enrollment Form'!B295<>\"Subscriber\",\"-\",IF(AND('Enrollment Form'!B295=\"Subscriber\",'Enrollment Form'!C295=\"Enroll\",'Enrollment Form'!AA295=\"\"),\"N\",\"Y\"))","v":"-"},{"$f":"IF(OR('Enrollment Form'!B295=\"Subscriber\",'Enrollment Form'!B295=\"\"),\"-\",IF('Enrollment Form'!BI295=\"\",\"N\",\"Y\"))","v":"-"},{"$f":"IF('Enrollment Form'!B295<>\"Subscriber\",\"-\",IF(AND('Enrollment Form'!B295=\"Subscriber\",'Enrollment Form'!G295=\"\"),\"N\",\"Y\"))","v":"-"},{"$f":"IF('Enrollment Form'!A295=\"\",\"\",IF('Enrollment Form'!B295=\"Subscriber\",\"-\",IF(AND('Enrollment Form'!B295<>\"Subscriber\",'Enrollment Form'!G295='Enrollment Form'!H295),\"N\",\"Y\")))","v":""},0]
[296,{"$f":"IF('Enrollment Form'!$A296<>\"\",\"Y\",\"N\")","v":"N"},{"$f":"IF(AND('Enrollment Form'!$B296=\"\",'Enrollment Form'!$C296<>\"\"),\"N\",IF($B289=\"N\",\"\",\"Y\"))","v":""},{"$f":"IF(OR($B289=\"N\",'Enrollment Form'!G296=\"\"),\"\",IF('Enrollment Form'!$B296<>\"Subscriber\",\"\",IF('Enrollment Form'!$G296='Enrollment Form'!$H296,\"Y\",\"N\")))","v":""},{"$f":"IF($B289=\"N\",\"\",IF(AND(COUNTIFS('Enrollment Form'!$H$11:$H$1000,'Enrollment Form'!$H296,'Enrollment Form'!$B$11:$B$1000,'Enrollment Form'!$B296)>1,'Enrollment Form'!$H296<>\"\"),\"N\",\"Y\"))","v":""},{"$f":"IF($B289=\"N\",\"\",IF(LEN('Enrollment Form'!$Y296)=0,\"\",IF(LEN('Enrollment Form'!$Y296)<>5,\"N\",\"Y\")))","v":""},{"$f":"IF($B289=\"N\",\"\",IF(LEN('Enrollment Form'!$AD296=0),\"\",IF(LEN('Enrollment Form'!$AD296)<>5,\"N\",\"Y\")))","v":""},{"$f":"IF($B289=\"N\",\"\",IF(LEN('Enrollment Form'!$BL296=0),\"\",IF(LEN('Enrollment Form'!$BL296)<>5,\"N\",\"Y\")))","v":""},{"$f":"IF($B289=\"N\",\"\",IF(LEN('Enrollment Form'!$AE296)=0,\"\",IF(LEN('Enrollment Form'!$AE296)<>10,\"N\",\"Y\")))","v":""},{"$f":"IF($B289=\"N\",\"\",IF(LEN('Enrollment Form'!$AF296)=0,\"\",IF(LEN('Enrollment Form'!$AF296)<>10,\"N\",\"Y\")))","v":""},{"$f":"IF('Enrollment Form'!$O296<>\"Graded\",\"-\",IF(AND('Enrollment Form'!$O296=\"Graded\",'Enrollment Form'!$AO296<>\"\"),\"Y\",\"N\"))","v":"-"},{"$f":"IF($B289=\"N\",\"\",IF(OR('Enrollment Form'!$B296<>\"Subscriber\",'Enrollment Form'!$C296=\"ROC\"),\"-\",IF(AND('Enrollment Form'!$B296=\"Subscriber\",'Enrollment Form'!$C296=\"Enroll\",'Enrollment Form'!$AJ296<>\"\"),\"Y\",\"N\")))","v":""},{"$f":"IF($B289=\"N\",\"\",IF(OR('Enrollment Form'!$B296<>\"Subscriber\",'Enrollment Form'!$C296=\"ROC\"),\"-\",IF(AND('Enrollment Form'!$B296=\"Subscriber\",'Enrollment Form'!$C296=\"Enroll\",'Enrollment Form'!$AK296<>\"\"),\"Y\",\"N\")))","v":""},{"$f":"IF($B289=\"N\",\"\",IF(OR('Enrollment Form'!$B296<>\"Subscriber\",'Enrollment Form'!$C296=\"ROC\"),\"-\",IF(AND('Enrollment Form'!$B296=\"Subscriber\",'Enrollment Form'!$C296=\"Enroll\",'Enrollment Form'!$AL296<>\"\"),\"Y\",\"N\")))","v":""},{"$f":"IF($B289=\"N\",\"\",IF(OR('Enrollment Form'!$B296<>\"Subscriber\",'Enrollment Form'!$C296=\"ROC\"),\"-\",IF(AND('Enrollment Form'!$B296=\"Subscriber\",'Enrollment Form'!$C296=\"Enroll\",'Enrollment Form'!$AM296<>\"\"),\"Y\",\"N\")))","v":""},{"$f":"IF($B289=\"N\",\"\",IF(OR('Enrollment Form'!$B296<>\"Subscriber\",'Enrollment Form'!$C296=\"ROC\"),\"-\",IF(AND('Enrollment Form'!$B296=\"Subscriber\",'Enrollment Form'!$C296=\"Enroll\",'Enrollment Form'!$AN296<>\"\"),\"Y\",\"N\")))","v":""},{"$f":"IF($B289=\"N\",\"\",IF(OR('Enrollment Form'!$B296<>\"Subscriber\",'Enrollment Form'!$C296=\"ROC\"),\"-\",IF(AND('Enrollment Form'!$B296=\"Subscriber\",'Enrollment Form'!$C296=\"Enroll\",'Enrollment Form'!$AP296<>\"\"),\"Y\",\"N\")))","v":""},{"$f":"IF($B289=\"N\",\"\",IF($Q289=\"-\",\"-\",IF(AND($Q289=\"Y\",'Enrollment Form'!$AP296=\"No\"),\"-\",IF(AND($Q289=\"Y\",'Enrollment Form'!$AP296=\"Yes\",'Enrollment Form'!$AQ296<>\"\"),\"Y\",\"N\"))))","v":""},{"$f":"IF($B289=\"N\",\"\",IF(OR('Enrollment Form'!$B296<>\"Subscriber\",'Enrollment Form'!$C296=\"ROC\"),\"-\",IF(AND('Enrollment Form'!$B296=\"Subscriber\",'Enrollment Form'!$C296=\"Enroll\",'Enrollment Form'!$CO296<>\"\"),\"Y\",\"N\")))","v":""},{"$f":"IF($B289=\"N\",\"\",IF($S289=\"-\",\"-\",IF(AND($S289=\"Y\",'Enrollment Form'!$CO296=\"No\"),\"-\",IF(AND($S289=\"Y\",'Enrollment Form'!$CO296=\"Yes\",'Enrollment Form'!$CP296<>\"\"),\"Y\",\"N\"))))","v":""},{"$f":"IF(OR('Enrollment Form'!$AV296=\"Yes\",'Enrollment Form'!$AV296=\"\"),\"-\",IF(AND('Enrollment Form'!$AV296=\"No\",ISERROR(FIND(\"HMO\",VLOOKUP('Enrollment Form'!G296,'Enrollment Form'!H$11:J$1000,3,FALSE),1))=FALSE,COUNTA('Enrollment Form'!$AW296:$AZ296)=4),\"Y\",\"N\"))","v":"-"},{"$f":"IF($B289=\"N\",\"\",IF('Enrollment Form'!$B296=\"Subscriber\",\"-\",IF(COUNTA('Enrollment Form'!$BE296,'Enrollment Form'!$BG296)=2,\"Y\",\"N\")))","v":""},{"$f":"IF($B289=\"N\",\"\",IF(OR('Enrollment Form'!$AU296=\"\",'Enrollment Form'!$AU296=\"No\"),\"-\",IF(AND('Enrollment Form'!$AU296=\"Yes\",COUNTA('Enrollment Form'!$CK296)=1),\"Y\",\"N\")))","v":""},{"$f":"IF(OR('Enrollment Form'!$CK296=\"\",'Enrollment Form'!$CK296=\"No\"),\"-\",IF(COUNTA('Enrollment Form'!$CM296:$CN296)=2,\"Y\",\"N\"))","v":"-"},{"$f":"IF($B289=\"N\",\"\",IF(COUNTIF('Enrollment Form'!$CZ296:$DO296,\"Other\")=COUNTA('Enrollment Form'!$DF296,'Enrollment Form'!$DA296,'Enrollment Form'!$DK296,'Enrollment Form'!$DP296),\"Y\",\"N\"))","v":""},{"$f":"IF($B289=\"N\",\"\",IF(OR('Enrollment Form'!B296<>\"Subscriber\",'Enrollment Form'!C296=\"ROC\",COUNTIF('Enrollment Form'!AS296:AT296,\"Yes\")>=1),\"-\",IF(AND('Enrollment Form'!C296=\"Enroll\",COUNTIF('Enrollment Form'!AS296:AT296,\"No\")=2,'Enrollment Form'!AU296=\"\"),\"N\",\"Y\")))","v":""},{"$f":"IF(OR(B289=\"N\",'Enrollment Form'!B296<>\"Subscriber\",'Enrollment Form'!C296=\"ROC\",'Enrollment Form'!O296<>\"Multiple of Salary\"),\"-\",IF(COUNTA('Enrollment Form'!T296:U296)<2,\"N\",\"Y\"))","v":"-"},{"$f":"IF(B289=\"N\",\"\",IF(OR('Enrollment Form'!C296=\"ROC\",'Enrollment Form'!B296<>\"Subscriber\",'Enrollment Form'!O296=\"Waive\",'Enrollment Form'!O296=\"\"),\"-\",IF('Enrollment Form'!P296=\"\",\"N\",\"Y\")))","v":""},{"$f":"IF($B289=\"N\",\"\",IF(AND('Enrollment Form'!$C296=\"ROC\",'Enrollment Form'!$DS296<>\"\"),\"Y\",IF(AND('Enrollment Form'!$C296=\"ROC\",'Enrollment Form'!$DS296=\"\"),\"N\",IF(AND('Enrollment Form'!$C296=\"Enroll\",'Enrollment Form'!$B296=\"Subscriber\",'Enrollment Form'!$CQ296=\"No\",'Enrollment Form'!$DS296=\"\"),\"N\",IF(AND('Enrollment Form'!$C296=\"Enroll\",'Enrollment Form'!$B296=\"Subscriber\",'Enrollment Form'!$CQ296=\"Yes\"),\"-\",\"Y\")))))","v":""},{"$f":"IF($B289=\"N\",\"\",IF(AND('Enrollment Form'!$C296=\"ROC\",'Enrollment Form'!$DT296<>\"\"),\"Y\",IF(AND('Enrollment Form'!$C296=\"ROC\",'Enrollment Form'!$DT296=\"\"),\"N\",IF(AND('Enrollment Form'!$C296=\"Enroll\",'Enrollment Form'!$B296=\"Subscriber\",'Enrollment Form'!$CQ296=\"No\",'Enrollment Form'!$DT296=\"\"),\"N\",IF(AND('Enrollment Form'!$C296=\"Enroll\",'Enrollment Form'!$B296=\"Subscriber\",'Enrollment Form'!$CQ296=\"Yes\"),\"-\",\"Y\")))))","v":""},{"$f":"IF('Enrollment Form'!AH296=\"\",\"\",IF(ISERROR(SEARCH(\".\",'Enrollment Form'!AH296,SEARCH(\"@\",'Enrollment Form'!AH296))),\"N\",\"Y\"))","v":""},{"$f":"IF(OR($B289=\"N\",'Enrollment Form'!$G296=\"\"),\"\",IF('Enrollment Form'!$B296<>\"Subscriber\",\"-\",IF(COUNTIF('Enrollment Form'!$AS296:$AT296,\"Yes\")=2,\"N\",\"Y\")))","v":""},{"$f":"IF(OR('Enrollment Form'!$CC296=\"\",'Enrollment Form'!$CC296=\"No\"),\"-\",IF(AND('Enrollment Form'!$CC296=\"Yes\",'Enrollment Form'!$CD296=\"\"),\"N\",\"Y\"))","v":"-"},{"$f":"IF(OR('Enrollment Form'!$CE296=\"\",'Enrollment Form'!$CE296=\"No\"),\"-\",IF(AND('Enrollment Form'!$CE296=\"Yes\",'Enrollment Form'!$CF296=\"\"),\"N\",\"Y\"))","v":"-"},{"$f":"IF(OR('Enrollment Form'!$CG296=\"\",'Enrollment Form'!$CG296=\"No\"),\"-\",IF(AND('Enrollment Form'!$CG296=\"Yes\",'Enrollment Form'!$CH296=\"\"),\"N\",\"Y\"))","v":"-"},{"$f":"IF(OR('Enrollment Form'!$CG296=\"\",'Enrollment Form'!$CG296=\"No\"),\"-\",IF(AND('Enrollment Form'!$CG296=\"Yes\",'Enrollment Form'!$CI296=\"\"),\"N\",\"Y\"))","v":"-"},{"$f":"IF('Enrollment Form'!B296<>\"Subscriber\",\"-\",IF(AND('Enrollment Form'!B296=\"Subscriber\",'Enrollment Form'!C296=\"Enroll\",'Enrollment Form'!AA296=\"\"),\"N\",\"Y\"))","v":"-"},{"$f":"IF(OR('Enrollment Form'!B296=\"Subscriber\",'Enrollment Form'!B296=\"\"),\"-\",IF('Enrollment Form'!BI296=\"\",\"N\",\"Y\"))","v":"-"},{"$f":"IF('Enrollment Form'!B296<>\"Subscriber\",\"-\",IF(AND('Enrollment Form'!B296=\"Subscriber\",'Enrollment Form'!G296=\"\"),\"N\",\"Y\"))","v":"-"},{"$f":"IF('Enrollment Form'!A296=\"\",\"\",IF('Enrollment Form'!B296=\"Subscriber\",\"-\",IF(AND('Enrollment Form'!B296<>\"Subscriber\",'Enrollment Form'!G296='Enrollment Form'!H296),\"N\",\"Y\")))","v":""},0]
[297,{"$f":"IF('Enrollment Form'!$A297<>\"\",\"Y\",\"N\")","v":"N"},{"$f":"IF(AND('Enrollment Form'!$B297=\"\",'Enrollment Form'!$C297<>\"\"),\"N\",IF($B290=\"N\",\"\",\"Y\"))","v":""},{"$f":"IF(OR($B290=\"N\",'Enrollment Form'!G297=\"\"),\"\",IF('Enrollment Form'!$B297<>\"Subscriber\",\"\",IF('Enrollment Form'!$G297='Enrollment Form'!$H297,\"Y\",\"N\")))","v":""},{"$f":"IF($B290=\"N\",\"\",IF(AND(COUNTIFS('Enrollment Form'!$H$11:$H$1000,'Enrollment Form'!$H297,'Enrollment Form'!$B$11:$B$1000,'Enrollment Form'!$B297)>1,'Enrollment Form'!$H297<>\"\"),\"N\",\"Y\"))","v":""},{"$f":"IF($B290=\"N\",\"\",IF(LEN('Enrollment Form'!$Y297)=0,\"\",IF(LEN('Enrollment Form'!$Y297)<>5,\"N\",\"Y\")))","v":""},{"$f":"IF($B290=\"N\",\"\",IF(LEN('Enrollment Form'!$AD297=0),\"\",IF(LEN('Enrollment Form'!$AD297)<>5,\"N\",\"Y\")))","v":""},{"$f":"IF($B290=\"N\",\"\",IF(LEN('Enrollment Form'!$BL297=0),\"\",IF(LEN('Enrollment Form'!$BL297)<>5,\"N\",\"Y\")))","v":""},{"$f":"IF($B290=\"N\",\"\",IF(LEN('Enrollment Form'!$AE297)=0,\"\",IF(LEN('Enrollment Form'!$AE297)<>10,\"N\",\"Y\")))","v":""},{"$f":"IF($B290=\"N\",\"\",IF(LEN('Enrollment Form'!$AF297)=0,\"\",IF(LEN('Enrollment Form'!$AF297)<>10,\"N\",\"Y\")))","v":""},{"$f":"IF('Enrollment Form'!$O297<>\"Graded\",\"-\",IF(AND('Enrollment Form'!$O297=\"Graded\",'Enrollment Form'!$AO297<>\"\"),\"Y\",\"N\"))","v":"-"},{"$f":"IF($B290=\"N\",\"\",IF(OR('Enrollment Form'!$B297<>\"Subscriber\",'Enrollment Form'!$C297=\"ROC\"),\"-\",IF(AND('Enrollment Form'!$B297=\"Subscriber\",'Enrollment Form'!$C297=\"Enroll\",'Enrollment Form'!$AJ297<>\"\"),\"Y\",\"N\")))","v":""},{"$f":"IF($B290=\"N\",\"\",IF(OR('Enrollment Form'!$B297<>\"Subscriber\",'Enrollment Form'!$C297=\"ROC\"),\"-\",IF(AND('Enrollment Form'!$B297=\"Subscriber\",'Enrollment Form'!$C297=\"Enroll\",'Enrollment Form'!$AK297<>\"\"),\"Y\",\"N\")))","v":""},{"$f":"IF($B290=\"N\",\"\",IF(OR('Enrollment Form'!$B297<>\"Subscriber\",'Enrollment Form'!$C297=\"ROC\"),\"-\",IF(AND('Enrollment Form'!$B297=\"Subscriber\",'Enrollment Form'!$C297=\"Enroll\",'Enrollment Form'!$AL297<>\"\"),\"Y\",\"N\")))","v":""},{"$f":"IF($B290=\"N\",\"\",IF(OR('Enrollment Form'!$B297<>\"Subscriber\",'Enrollment Form'!$C297=\"ROC\"),\"-\",IF(AND('Enrollment Form'!$B297=\"Subscriber\",'Enrollment Form'!$C297=\"Enroll\",'Enrollment Form'!$AM297<>\"\"),\"Y\",\"N\")))","v":""},{"$f":"IF($B290=\"N\",\"\",IF(OR('Enrollment Form'!$B297<>\"Subscriber\",'Enrollment Form'!$C297=\"ROC\"),\"-\",IF(AND('Enrollment Form'!$B297=\"Subscriber\",'Enrollment Form'!$C297=\"Enroll\",'Enrollment Form'!$AN297<>\"\"),\"Y\",\"N\")))","v":""},{"$f":"IF($B290=\"N\",\"\",IF(OR('Enrollment Form'!$B297<>\"Subscriber\",'Enrollment Form'!$C297=\"ROC\"),\"-\",IF(AND('Enrollment Form'!$B297=\"Subscriber\",'Enrollment Form'!$C297=\"Enroll\",'Enrollment Form'!$AP297<>\"\"),\"Y\",\"N\")))","v":""},{"$f":"IF($B290=\"N\",\"\",IF($Q290=\"-\",\"-\",IF(AND($Q290=\"Y\",'Enrollment Form'!$AP297=\"No\"),\"-\",IF(AND($Q290=\"Y\",'Enrollment Form'!$AP297=\"Yes\",'Enrollment Form'!$AQ297<>\"\"),\"Y\",\"N\"))))","v":""},{"$f":"IF($B290=\"N\",\"\",IF(OR('Enrollment Form'!$B297<>\"Subscriber\",'Enrollment Form'!$C297=\"ROC\"),\"-\",IF(AND('Enrollment Form'!$B297=\"Subscriber\",'Enrollment Form'!$C297=\"Enroll\",'Enrollment Form'!$CO297<>\"\"),\"Y\",\"N\")))","v":""},{"$f":"IF($B290=\"N\",\"\",IF($S290=\"-\",\"-\",IF(AND($S290=\"Y\",'Enrollment Form'!$CO297=\"No\"),\"-\",IF(AND($S290=\"Y\",'Enrollment Form'!$CO297=\"Yes\",'Enrollment Form'!$CP297<>\"\"),\"Y\",\"N\"))))","v":""},{"$f":"IF(OR('Enrollment Form'!$AV297=\"Yes\",'Enrollment Form'!$AV297=\"\"),\"-\",IF(AND('Enrollment Form'!$AV297=\"No\",ISERROR(FIND(\"HMO\",VLOOKUP('Enrollment Form'!G297,'Enrollment Form'!H$11:J$1000,3,FALSE),1))=FALSE,COUNTA('Enrollment Form'!$AW297:$AZ297)=4),\"Y\",\"N\"))","v":"-"},{"$f":"IF($B290=\"N\",\"\",IF('Enrollment Form'!$B297=\"Subscriber\",\"-\",IF(COUNTA('Enrollment Form'!$BE297,'Enrollment Form'!$BG297)=2,\"Y\",\"N\")))","v":""},{"$f":"IF($B290=\"N\",\"\",IF(OR('Enrollment Form'!$AU297=\"\",'Enrollment Form'!$AU297=\"No\"),\"-\",IF(AND('Enrollment Form'!$AU297=\"Yes\",COUNTA('Enrollment Form'!$CK297)=1),\"Y\",\"N\")))","v":""},{"$f":"IF(OR('Enrollment Form'!$CK297=\"\",'Enrollment Form'!$CK297=\"No\"),\"-\",IF(COUNTA('Enrollment Form'!$CM297:$CN297)=2,\"Y\",\"N\"))","v":"-"},{"$f":"IF($B290=\"N\",\"\",IF(COUNTIF('Enrollment Form'!$CZ297:$DO297,\"Other\")=COUNTA('Enrollment Form'!$DF297,'Enrollment Form'!$DA297,'Enrollment Form'!$DK297,'Enrollment Form'!$DP297),\"Y\",\"N\"))","v":""},{"$f":"IF($B290=\"N\",\"\",IF(OR('Enrollment Form'!B297<>\"Subscriber\",'Enrollment Form'!C297=\"ROC\",COUNTIF('Enrollment Form'!AS297:AT297,\"Yes\")>=1),\"-\",IF(AND('Enrollment Form'!C297=\"Enroll\",COUNTIF('Enrollment Form'!AS297:AT297,\"No\")=2,'Enrollment Form'!AU297=\"\"),\"N\",\"Y\")))","v":""},{"$f":"IF(OR(B290=\"N\",'Enrollment Form'!B297<>\"Subscriber\",'Enrollment Form'!C297=\"ROC\",'Enrollment Form'!O297<>\"Multiple of Salary\"),\"-\",IF(COUNTA('Enrollment Form'!T297:U297)<2,\"N\",\"Y\"))","v":"-"},{"$f":"IF(B290=\"N\",\"\",IF(OR('Enrollment Form'!C297=\"ROC\",'Enrollment Form'!B297<>\"Subscriber\",'Enrollment Form'!O297=\"Waive\",'Enrollment Form'!O297=\"\"),\"-\",IF('Enrollment Form'!P297=\"\",\"N\",\"Y\")))","v":""},{"$f":"IF($B290=\"N\",\"\",IF(AND('Enrollment Form'!$C297=\"ROC\",'Enrollment Form'!$DS297<>\"\"),\"Y\",IF(AND('Enrollment Form'!$C297=\"ROC\",'Enrollment Form'!$DS297=\"\"),\"N\",IF(AND('Enrollment Form'!$C297=\"Enroll\",'Enrollment Form'!$B297=\"Subscriber\",'Enrollment Form'!$CQ297=\"No\",'Enrollment Form'!$DS297=\"\"),\"N\",IF(AND('Enrollment Form'!$C297=\"Enroll\",'Enrollment Form'!$B297=\"Subscriber\",'Enrollment Form'!$CQ297=\"Yes\"),\"-\",\"Y\")))))","v":""},{"$f":"IF($B290=\"N\",\"\",IF(AND('Enrollment Form'!$C297=\"ROC\",'Enrollment Form'!$DT297<>\"\"),\"Y\",IF(AND('Enrollment Form'!$C297=\"ROC\",'Enrollment Form'!$DT297=\"\"),\"N\",IF(AND('Enrollment Form'!$C297=\"Enroll\",'Enrollment Form'!$B297=\"Subscriber\",'Enrollment Form'!$CQ297=\"No\",'Enrollment Form'!$DT297=\"\"),\"N\",IF(AND('Enrollment Form'!$C297=\"Enroll\",'Enrollment Form'!$B297=\"Subscriber\",'Enrollment Form'!$CQ297=\"Yes\"),\"-\",\"Y\")))))","v":""},{"$f":"IF('Enrollment Form'!AH297=\"\",\"\",IF(ISERROR(SEARCH(\".\",'Enrollment Form'!AH297,SEARCH(\"@\",'Enrollment Form'!AH297))),\"N\",\"Y\"))","v":""},{"$f":"IF(OR($B290=\"N\",'Enrollment Form'!$G297=\"\"),\"\",IF('Enrollment Form'!$B297<>\"Subscriber\",\"-\",IF(COUNTIF('Enrollment Form'!$AS297:$AT297,\"Yes\")=2,\"N\",\"Y\")))","v":""},{"$f":"IF(OR('Enrollment Form'!$CC297=\"\",'Enrollment Form'!$CC297=\"No\"),\"-\",IF(AND('Enrollment Form'!$CC297=\"Yes\",'Enrollment Form'!$CD297=\"\"),\"N\",\"Y\"))","v":"-"},{"$f":"IF(OR('Enrollment Form'!$CE297=\"\",'Enrollment Form'!$CE297=\"No\"),\"-\",IF(AND('Enrollment Form'!$CE297=\"Yes\",'Enrollment Form'!$CF297=\"\"),\"N\",\"Y\"))","v":"-"},{"$f":"IF(OR('Enrollment Form'!$CG297=\"\",'Enrollment Form'!$CG297=\"No\"),\"-\",IF(AND('Enrollment Form'!$CG297=\"Yes\",'Enrollment Form'!$CH297=\"\"),\"N\",\"Y\"))","v":"-"},{"$f":"IF(OR('Enrollment Form'!$CG297=\"\",'Enrollment Form'!$CG297=\"No\"),\"-\",IF(AND('Enrollment Form'!$CG297=\"Yes\",'Enrollment Form'!$CI297=\"\"),\"N\",\"Y\"))","v":"-"},{"$f":"IF('Enrollment Form'!B297<>\"Subscriber\",\"-\",IF(AND('Enrollment Form'!B297=\"Subscriber\",'Enrollment Form'!C297=\"Enroll\",'Enrollment Form'!AA297=\"\"),\"N\",\"Y\"))","v":"-"},{"$f":"IF(OR('Enrollment Form'!B297=\"Subscriber\",'Enrollment Form'!B297=\"\"),\"-\",IF('Enrollment Form'!BI297=\"\",\"N\",\"Y\"))","v":"-"},{"$f":"IF('Enrollment Form'!B297<>\"Subscriber\",\"-\",IF(AND('Enrollment Form'!B297=\"Subscriber\",'Enrollment Form'!G297=\"\"),\"N\",\"Y\"))","v":"-"},{"$f":"IF('Enrollment Form'!A297=\"\",\"\",IF('Enrollment Form'!B297=\"Subscriber\",\"-\",IF(AND('Enrollment Form'!B297<>\"Subscriber\",'Enrollment Form'!G297='Enrollment Form'!H297),\"N\",\"Y\")))","v":""},0]
[298,{"$f":"IF('Enrollment Form'!$A298<>\"\",\"Y\",\"N\")","v":"N"},{"$f":"IF(AND('Enrollment Form'!$B298=\"\",'Enrollment Form'!$C298<>\"\"),\"N\",IF($B291=\"N\",\"\",\"Y\"))","v":""},{"$f":"IF(OR($B291=\"N\",'Enrollment Form'!G298=\"\"),\"\",IF('Enrollment Form'!$B298<>\"Subscriber\",\"\",IF('Enrollment Form'!$G298='Enrollment Form'!$H298,\"Y\",\"N\")))","v":""},{"$f":"IF($B291=\"N\",\"\",IF(AND(COUNTIFS('Enrollment Form'!$H$11:$H$1000,'Enrollment Form'!$H298,'Enrollment Form'!$B$11:$B$1000,'Enrollment Form'!$B298)>1,'Enrollment Form'!$H298<>\"\"),\"N\",\"Y\"))","v":""},{"$f":"IF($B291=\"N\",\"\",IF(LEN('Enrollment Form'!$Y298)=0,\"\",IF(LEN('Enrollment Form'!$Y298)<>5,\"N\",\"Y\")))","v":""},{"$f":"IF($B291=\"N\",\"\",IF(LEN('Enrollment Form'!$AD298=0),\"\",IF(LEN('Enrollment Form'!$AD298)<>5,\"N\",\"Y\")))","v":""},{"$f":"IF($B291=\"N\",\"\",IF(LEN('Enrollment Form'!$BL298=0),\"\",IF(LEN('Enrollment Form'!$BL298)<>5,\"N\",\"Y\")))","v":""},{"$f":"IF($B291=\"N\",\"\",IF(LEN('Enrollment Form'!$AE298)=0,\"\",IF(LEN('Enrollment Form'!$AE298)<>10,\"N\",\"Y\")))","v":""},{"$f":"IF($B291=\"N\",\"\",IF(LEN('Enrollment Form'!$AF298)=0,\"\",IF(LEN('Enrollment Form'!$AF298)<>10,\"N\",\"Y\")))","v":""},{"$f":"IF('Enrollment Form'!$O298<>\"Graded\",\"-\",IF(AND('Enrollment Form'!$O298=\"Graded\",'Enrollment Form'!$AO298<>\"\"),\"Y\",\"N\"))","v":"-"},{"$f":"IF($B291=\"N\",\"\",IF(OR('Enrollment Form'!$B298<>\"Subscriber\",'Enrollment Form'!$C298=\"ROC\"),\"-\",IF(AND('Enrollment Form'!$B298=\"Subscriber\",'Enrollment Form'!$C298=\"Enroll\",'Enrollment Form'!$AJ298<>\"\"),\"Y\",\"N\")))","v":""},{"$f":"IF($B291=\"N\",\"\",IF(OR('Enrollment Form'!$B298<>\"Subscriber\",'Enrollment Form'!$C298=\"ROC\"),\"-\",IF(AND('Enrollment Form'!$B298=\"Subscriber\",'Enrollment Form'!$C298=\"Enroll\",'Enrollment Form'!$AK298<>\"\"),\"Y\",\"N\")))","v":""},{"$f":"IF($B291=\"N\",\"\",IF(OR('Enrollment Form'!$B298<>\"Subscriber\",'Enrollment Form'!$C298=\"ROC\"),\"-\",IF(AND('Enrollment Form'!$B298=\"Subscriber\",'Enrollment Form'!$C298=\"Enroll\",'Enrollment Form'!$AL298<>\"\"),\"Y\",\"N\")))","v":""},{"$f":"IF($B291=\"N\",\"\",IF(OR('Enrollment Form'!$B298<>\"Subscriber\",'Enrollment Form'!$C298=\"ROC\"),\"-\",IF(AND('Enrollment Form'!$B298=\"Subscriber\",'Enrollment Form'!$C298=\"Enroll\",'Enrollment Form'!$AM298<>\"\"),\"Y\",\"N\")))","v":""},{"$f":"IF($B291=\"N\",\"\",IF(OR('Enrollment Form'!$B298<>\"Subscriber\",'Enrollment Form'!$C298=\"ROC\"),\"-\",IF(AND('Enrollment Form'!$B298=\"Subscriber\",'Enrollment Form'!$C298=\"Enroll\",'Enrollment Form'!$AN298<>\"\"),\"Y\",\"N\")))","v":""},{"$f":"IF($B291=\"N\",\"\",IF(OR('Enrollment Form'!$B298<>\"Subscriber\",'Enrollment Form'!$C298=\"ROC\"),\"-\",IF(AND('Enrollment Form'!$B298=\"Subscriber\",'Enrollment Form'!$C298=\"Enroll\",'Enrollment Form'!$AP298<>\"\"),\"Y\",\"N\")))","v":""},{"$f":"IF($B291=\"N\",\"\",IF($Q291=\"-\",\"-\",IF(AND($Q291=\"Y\",'Enrollment Form'!$AP298=\"No\"),\"-\",IF(AND($Q291=\"Y\",'Enrollment Form'!$AP298=\"Yes\",'Enrollment Form'!$AQ298<>\"\"),\"Y\",\"N\"))))","v":""},{"$f":"IF($B291=\"N\",\"\",IF(OR('Enrollment Form'!$B298<>\"Subscriber\",'Enrollment Form'!$C298=\"ROC\"),\"-\",IF(AND('Enrollment Form'!$B298=\"Subscriber\",'Enrollment Form'!$C298=\"Enroll\",'Enrollment Form'!$CO298<>\"\"),\"Y\",\"N\")))","v":""},{"$f":"IF($B291=\"N\",\"\",IF($S291=\"-\",\"-\",IF(AND($S291=\"Y\",'Enrollment Form'!$CO298=\"No\"),\"-\",IF(AND($S291=\"Y\",'Enrollment Form'!$CO298=\"Yes\",'Enrollment Form'!$CP298<>\"\"),\"Y\",\"N\"))))","v":""},{"$f":"IF(OR('Enrollment Form'!$AV298=\"Yes\",'Enrollment Form'!$AV298=\"\"),\"-\",IF(AND('Enrollment Form'!$AV298=\"No\",ISERROR(FIND(\"HMO\",VLOOKUP('Enrollment Form'!G298,'Enrollment Form'!H$11:J$1000,3,FALSE),1))=FALSE,COUNTA('Enrollment Form'!$AW298:$AZ298)=4),\"Y\",\"N\"))","v":"-"},{"$f":"IF($B291=\"N\",\"\",IF('Enrollment Form'!$B298=\"Subscriber\",\"-\",IF(COUNTA('Enrollment Form'!$BE298,'Enrollment Form'!$BG298)=2,\"Y\",\"N\")))","v":""},{"$f":"IF($B291=\"N\",\"\",IF(OR('Enrollment Form'!$AU298=\"\",'Enrollment Form'!$AU298=\"No\"),\"-\",IF(AND('Enrollment Form'!$AU298=\"Yes\",COUNTA('Enrollment Form'!$CK298)=1),\"Y\",\"N\")))","v":""},{"$f":"IF(OR('Enrollment Form'!$CK298=\"\",'Enrollment Form'!$CK298=\"No\"),\"-\",IF(COUNTA('Enrollment Form'!$CM298:$CN298)=2,\"Y\",\"N\"))","v":"-"},{"$f":"IF($B291=\"N\",\"\",IF(COUNTIF('Enrollment Form'!$CZ298:$DO298,\"Other\")=COUNTA('Enrollment Form'!$DF298,'Enrollment Form'!$DA298,'Enrollment Form'!$DK298,'Enrollment Form'!$DP298),\"Y\",\"N\"))","v":""},{"$f":"IF($B291=\"N\",\"\",IF(OR('Enrollment Form'!B298<>\"Subscriber\",'Enrollment Form'!C298=\"ROC\",COUNTIF('Enrollment Form'!AS298:AT298,\"Yes\")>=1),\"-\",IF(AND('Enrollment Form'!C298=\"Enroll\",COUNTIF('Enrollment Form'!AS298:AT298,\"No\")=2,'Enrollment Form'!AU298=\"\"),\"N\",\"Y\")))","v":""},{"$f":"IF(OR(B291=\"N\",'Enrollment Form'!B298<>\"Subscriber\",'Enrollment Form'!C298=\"ROC\",'Enrollment Form'!O298<>\"Multiple of Salary\"),\"-\",IF(COUNTA('Enrollment Form'!T298:U298)<2,\"N\",\"Y\"))","v":"-"},{"$f":"IF(B291=\"N\",\"\",IF(OR('Enrollment Form'!C298=\"ROC\",'Enrollment Form'!B298<>\"Subscriber\",'Enrollment Form'!O298=\"Waive\",'Enrollment Form'!O298=\"\"),\"-\",IF('Enrollment Form'!P298=\"\",\"N\",\"Y\")))","v":""},{"$f":"IF($B291=\"N\",\"\",IF(AND('Enrollment Form'!$C298=\"ROC\",'Enrollment Form'!$DS298<>\"\"),\"Y\",IF(AND('Enrollment Form'!$C298=\"ROC\",'Enrollment Form'!$DS298=\"\"),\"N\",IF(AND('Enrollment Form'!$C298=\"Enroll\",'Enrollment Form'!$B298=\"Subscriber\",'Enrollment Form'!$CQ298=\"No\",'Enrollment Form'!$DS298=\"\"),\"N\",IF(AND('Enrollment Form'!$C298=\"Enroll\",'Enrollment Form'!$B298=\"Subscriber\",'Enrollment Form'!$CQ298=\"Yes\"),\"-\",\"Y\")))))","v":""},{"$f":"IF($B291=\"N\",\"\",IF(AND('Enrollment Form'!$C298=\"ROC\",'Enrollment Form'!$DT298<>\"\"),\"Y\",IF(AND('Enrollment Form'!$C298=\"ROC\",'Enrollment Form'!$DT298=\"\"),\"N\",IF(AND('Enrollment Form'!$C298=\"Enroll\",'Enrollment Form'!$B298=\"Subscriber\",'Enrollment Form'!$CQ298=\"No\",'Enrollment Form'!$DT298=\"\"),\"N\",IF(AND('Enrollment Form'!$C298=\"Enroll\",'Enrollment Form'!$B298=\"Subscriber\",'Enrollment Form'!$CQ298=\"Yes\"),\"-\",\"Y\")))))","v":""},{"$f":"IF('Enrollment Form'!AH298=\"\",\"\",IF(ISERROR(SEARCH(\".\",'Enrollment Form'!AH298,SEARCH(\"@\",'Enrollment Form'!AH298))),\"N\",\"Y\"))","v":""},{"$f":"IF(OR($B291=\"N\",'Enrollment Form'!$G298=\"\"),\"\",IF('Enrollment Form'!$B298<>\"Subscriber\",\"-\",IF(COUNTIF('Enrollment Form'!$AS298:$AT298,\"Yes\")=2,\"N\",\"Y\")))","v":""},{"$f":"IF(OR('Enrollment Form'!$CC298=\"\",'Enrollment Form'!$CC298=\"No\"),\"-\",IF(AND('Enrollment Form'!$CC298=\"Yes\",'Enrollment Form'!$CD298=\"\"),\"N\",\"Y\"))","v":"-"},{"$f":"IF(OR('Enrollment Form'!$CE298=\"\",'Enrollment Form'!$CE298=\"No\"),\"-\",IF(AND('Enrollment Form'!$CE298=\"Yes\",'Enrollment Form'!$CF298=\"\"),\"N\",\"Y\"))","v":"-"},{"$f":"IF(OR('Enrollment Form'!$CG298=\"\",'Enrollment Form'!$CG298=\"No\"),\"-\",IF(AND('Enrollment Form'!$CG298=\"Yes\",'Enrollment Form'!$CH298=\"\"),\"N\",\"Y\"))","v":"-"},{"$f":"IF(OR('Enrollment Form'!$CG298=\"\",'Enrollment Form'!$CG298=\"No\"),\"-\",IF(AND('Enrollment Form'!$CG298=\"Yes\",'Enrollment Form'!$CI298=\"\"),\"N\",\"Y\"))","v":"-"},{"$f":"IF('Enrollment Form'!B298<>\"Subscriber\",\"-\",IF(AND('Enrollment Form'!B298=\"Subscriber\",'Enrollment Form'!C298=\"Enroll\",'Enrollment Form'!AA298=\"\"),\"N\",\"Y\"))","v":"-"},{"$f":"IF(OR('Enrollment Form'!B298=\"Subscriber\",'Enrollment Form'!B298=\"\"),\"-\",IF('Enrollment Form'!BI298=\"\",\"N\",\"Y\"))","v":"-"},{"$f":"IF('Enrollment Form'!B298<>\"Subscriber\",\"-\",IF(AND('Enrollment Form'!B298=\"Subscriber\",'Enrollment Form'!G298=\"\"),\"N\",\"Y\"))","v":"-"},{"$f":"IF('Enrollment Form'!A298=\"\",\"\",IF('Enrollment Form'!B298=\"Subscriber\",\"-\",IF(AND('Enrollment Form'!B298<>\"Subscriber\",'Enrollment Form'!G298='Enrollment Form'!H298),\"N\",\"Y\")))","v":""},0]
[299,{"$f":"IF('Enrollment Form'!$A299<>\"\",\"Y\",\"N\")","v":"N"},{"$f":"IF(AND('Enrollment Form'!$B299=\"\",'Enrollment Form'!$C299<>\"\"),\"N\",IF($B292=\"N\",\"\",\"Y\"))","v":""},{"$f":"IF(OR($B292=\"N\",'Enrollment Form'!G299=\"\"),\"\",IF('Enrollment Form'!$B299<>\"Subscriber\",\"\",IF('Enrollment Form'!$G299='Enrollment Form'!$H299,\"Y\",\"N\")))","v":""},{"$f":"IF($B292=\"N\",\"\",IF(AND(COUNTIFS('Enrollment Form'!$H$11:$H$1000,'Enrollment Form'!$H299,'Enrollment Form'!$B$11:$B$1000,'Enrollment Form'!$B299)>1,'Enrollment Form'!$H299<>\"\"),\"N\",\"Y\"))","v":""},{"$f":"IF($B292=\"N\",\"\",IF(LEN('Enrollment Form'!$Y299)=0,\"\",IF(LEN('Enrollment Form'!$Y299)<>5,\"N\",\"Y\")))","v":""},{"$f":"IF($B292=\"N\",\"\",IF(LEN('Enrollment Form'!$AD299=0),\"\",IF(LEN('Enrollment Form'!$AD299)<>5,\"N\",\"Y\")))","v":""},{"$f":"IF($B292=\"N\",\"\",IF(LEN('Enrollment Form'!$BL299=0),\"\",IF(LEN('Enrollment Form'!$BL299)<>5,\"N\",\"Y\")))","v":""},{"$f":"IF($B292=\"N\",\"\",IF(LEN('Enrollment Form'!$AE299)=0,\"\",IF(LEN('Enrollment Form'!$AE299)<>10,\"N\",\"Y\")))","v":""},{"$f":"IF($B292=\"N\",\"\",IF(LEN('Enrollment Form'!$AF299)=0,\"\",IF(LEN('Enrollment Form'!$AF299)<>10,\"N\",\"Y\")))","v":""},{"$f":"IF('Enrollment Form'!$O299<>\"Graded\",\"-\",IF(AND('Enrollment Form'!$O299=\"Graded\",'Enrollment Form'!$AO299<>\"\"),\"Y\",\"N\"))","v":"-"},{"$f":"IF($B292=\"N\",\"\",IF(OR('Enrollment Form'!$B299<>\"Subscriber\",'Enrollment Form'!$C299=\"ROC\"),\"-\",IF(AND('Enrollment Form'!$B299=\"Subscriber\",'Enrollment Form'!$C299=\"Enroll\",'Enrollment Form'!$AJ299<>\"\"),\"Y\",\"N\")))","v":""},{"$f":"IF($B292=\"N\",\"\",IF(OR('Enrollment Form'!$B299<>\"Subscriber\",'Enrollment Form'!$C299=\"ROC\"),\"-\",IF(AND('Enrollment Form'!$B299=\"Subscriber\",'Enrollment Form'!$C299=\"Enroll\",'Enrollment Form'!$AK299<>\"\"),\"Y\",\"N\")))","v":""},{"$f":"IF($B292=\"N\",\"\",IF(OR('Enrollment Form'!$B299<>\"Subscriber\",'Enrollment Form'!$C299=\"ROC\"),\"-\",IF(AND('Enrollment Form'!$B299=\"Subscriber\",'Enrollment Form'!$C299=\"Enroll\",'Enrollment Form'!$AL299<>\"\"),\"Y\",\"N\")))","v":""},{"$f":"IF($B292=\"N\",\"\",IF(OR('Enrollment Form'!$B299<>\"Subscriber\",'Enrollment Form'!$C299=\"ROC\"),\"-\",IF(AND('Enrollment Form'!$B299=\"Subscriber\",'Enrollment Form'!$C299=\"Enroll\",'Enrollment Form'!$AM299<>\"\"),\"Y\",\"N\")))","v":""},{"$f":"IF($B292=\"N\",\"\",IF(OR('Enrollment Form'!$B299<>\"Subscriber\",'Enrollment Form'!$C299=\"ROC\"),\"-\",IF(AND('Enrollment Form'!$B299=\"Subscriber\",'Enrollment Form'!$C299=\"Enroll\",'Enrollment Form'!$AN299<>\"\"),\"Y\",\"N\")))","v":""},{"$f":"IF($B292=\"N\",\"\",IF(OR('Enrollment Form'!$B299<>\"Subscriber\",'Enrollment Form'!$C299=\"ROC\"),\"-\",IF(AND('Enrollment Form'!$B299=\"Subscriber\",'Enrollment Form'!$C299=\"Enroll\",'Enrollment Form'!$AP299<>\"\"),\"Y\",\"N\")))","v":""},{"$f":"IF($B292=\"N\",\"\",IF($Q292=\"-\",\"-\",IF(AND($Q292=\"Y\",'Enrollment Form'!$AP299=\"No\"),\"-\",IF(AND($Q292=\"Y\",'Enrollment Form'!$AP299=\"Yes\",'Enrollment Form'!$AQ299<>\"\"),\"Y\",\"N\"))))","v":""},{"$f":"IF($B292=\"N\",\"\",IF(OR('Enrollment Form'!$B299<>\"Subscriber\",'Enrollment Form'!$C299=\"ROC\"),\"-\",IF(AND('Enrollment Form'!$B299=\"Subscriber\",'Enrollment Form'!$C299=\"Enroll\",'Enrollment Form'!$CO299<>\"\"),\"Y\",\"N\")))","v":""},{"$f":"IF($B292=\"N\",\"\",IF($S292=\"-\",\"-\",IF(AND($S292=\"Y\",'Enrollment Form'!$CO299=\"No\"),\"-\",IF(AND($S292=\"Y\",'Enrollment Form'!$CO299=\"Yes\",'Enrollment Form'!$CP299<>\"\"),\"Y\",\"N\"))))","v":""},{"$f":"IF(OR('Enrollment Form'!$AV299=\"Yes\",'Enrollment Form'!$AV299=\"\"),\"-\",IF(AND('Enrollment Form'!$AV299=\"No\",ISERROR(FIND(\"HMO\",VLOOKUP('Enrollment Form'!G299,'Enrollment Form'!H$11:J$1000,3,FALSE),1))=FALSE,COUNTA('Enrollment Form'!$AW299:$AZ299)=4),\"Y\",\"N\"))","v":"-"},{"$f":"IF($B292=\"N\",\"\",IF('Enrollment Form'!$B299=\"Subscriber\",\"-\",IF(COUNTA('Enrollment Form'!$BE299,'Enrollment Form'!$BG299)=2,\"Y\",\"N\")))","v":""},{"$f":"IF($B292=\"N\",\"\",IF(OR('Enrollment Form'!$AU299=\"\",'Enrollment Form'!$AU299=\"No\"),\"-\",IF(AND('Enrollment Form'!$AU299=\"Yes\",COUNTA('Enrollment Form'!$CK299)=1),\"Y\",\"N\")))","v":""},{"$f":"IF(OR('Enrollment Form'!$CK299=\"\",'Enrollment Form'!$CK299=\"No\"),\"-\",IF(COUNTA('Enrollment Form'!$CM299:$CN299)=2,\"Y\",\"N\"))","v":"-"},{"$f":"IF($B292=\"N\",\"\",IF(COUNTIF('Enrollment Form'!$CZ299:$DO299,\"Other\")=COUNTA('Enrollment Form'!$DF299,'Enrollment Form'!$DA299,'Enrollment Form'!$DK299,'Enrollment Form'!$DP299),\"Y\",\"N\"))","v":""},{"$f":"IF($B292=\"N\",\"\",IF(OR('Enrollment Form'!B299<>\"Subscriber\",'Enrollment Form'!C299=\"ROC\",COUNTIF('Enrollment Form'!AS299:AT299,\"Yes\")>=1),\"-\",IF(AND('Enrollment Form'!C299=\"Enroll\",COUNTIF('Enrollment Form'!AS299:AT299,\"No\")=2,'Enrollment Form'!AU299=\"\"),\"N\",\"Y\")))","v":""},{"$f":"IF(OR(B292=\"N\",'Enrollment Form'!B299<>\"Subscriber\",'Enrollment Form'!C299=\"ROC\",'Enrollment Form'!O299<>\"Multiple of Salary\"),\"-\",IF(COUNTA('Enrollment Form'!T299:U299)<2,\"N\",\"Y\"))","v":"-"},{"$f":"IF(B292=\"N\",\"\",IF(OR('Enrollment Form'!C299=\"ROC\",'Enrollment Form'!B299<>\"Subscriber\",'Enrollment Form'!O299=\"Waive\",'Enrollment Form'!O299=\"\"),\"-\",IF('Enrollment Form'!P299=\"\",\"N\",\"Y\")))","v":""},{"$f":"IF($B292=\"N\",\"\",IF(AND('Enrollment Form'!$C299=\"ROC\",'Enrollment Form'!$DS299<>\"\"),\"Y\",IF(AND('Enrollment Form'!$C299=\"ROC\",'Enrollment Form'!$DS299=\"\"),\"N\",IF(AND('Enrollment Form'!$C299=\"Enroll\",'Enrollment Form'!$B299=\"Subscriber\",'Enrollment Form'!$CQ299=\"No\",'Enrollment Form'!$DS299=\"\"),\"N\",IF(AND('Enrollment Form'!$C299=\"Enroll\",'Enrollment Form'!$B299=\"Subscriber\",'Enrollment Form'!$CQ299=\"Yes\"),\"-\",\"Y\")))))","v":""},{"$f":"IF($B292=\"N\",\"\",IF(AND('Enrollment Form'!$C299=\"ROC\",'Enrollment Form'!$DT299<>\"\"),\"Y\",IF(AND('Enrollment Form'!$C299=\"ROC\",'Enrollment Form'!$DT299=\"\"),\"N\",IF(AND('Enrollment Form'!$C299=\"Enroll\",'Enrollment Form'!$B299=\"Subscriber\",'Enrollment Form'!$CQ299=\"No\",'Enrollment Form'!$DT299=\"\"),\"N\",IF(AND('Enrollment Form'!$C299=\"Enroll\",'Enrollment Form'!$B299=\"Subscriber\",'Enrollment Form'!$CQ299=\"Yes\"),\"-\",\"Y\")))))","v":""},{"$f":"IF('Enrollment Form'!AH299=\"\",\"\",IF(ISERROR(SEARCH(\".\",'Enrollment Form'!AH299,SEARCH(\"@\",'Enrollment Form'!AH299))),\"N\",\"Y\"))","v":""},{"$f":"IF(OR($B292=\"N\",'Enrollment Form'!$G299=\"\"),\"\",IF('Enrollment Form'!$B299<>\"Subscriber\",\"-\",IF(COUNTIF('Enrollment Form'!$AS299:$AT299,\"Yes\")=2,\"N\",\"Y\")))","v":""},{"$f":"IF(OR('Enrollment Form'!$CC299=\"\",'Enrollment Form'!$CC299=\"No\"),\"-\",IF(AND('Enrollment Form'!$CC299=\"Yes\",'Enrollment Form'!$CD299=\"\"),\"N\",\"Y\"))","v":"-"},{"$f":"IF(OR('Enrollment Form'!$CE299=\"\",'Enrollment Form'!$CE299=\"No\"),\"-\",IF(AND('Enrollment Form'!$CE299=\"Yes\",'Enrollment Form'!$CF299=\"\"),\"N\",\"Y\"))","v":"-"},{"$f":"IF(OR('Enrollment Form'!$CG299=\"\",'Enrollment Form'!$CG299=\"No\"),\"-\",IF(AND('Enrollment Form'!$CG299=\"Yes\",'Enrollment Form'!$CH299=\"\"),\"N\",\"Y\"))","v":"-"},{"$f":"IF(OR('Enrollment Form'!$CG299=\"\",'Enrollment Form'!$CG299=\"No\"),\"-\",IF(AND('Enrollment Form'!$CG299=\"Yes\",'Enrollment Form'!$CI299=\"\"),\"N\",\"Y\"))","v":"-"},{"$f":"IF('Enrollment Form'!B299<>\"Subscriber\",\"-\",IF(AND('Enrollment Form'!B299=\"Subscriber\",'Enrollment Form'!C299=\"Enroll\",'Enrollment Form'!AA299=\"\"),\"N\",\"Y\"))","v":"-"},{"$f":"IF(OR('Enrollment Form'!B299=\"Subscriber\",'Enrollment Form'!B299=\"\"),\"-\",IF('Enrollment Form'!BI299=\"\",\"N\",\"Y\"))","v":"-"},{"$f":"IF('Enrollment Form'!B299<>\"Subscriber\",\"-\",IF(AND('Enrollment Form'!B299=\"Subscriber\",'Enrollment Form'!G299=\"\"),\"N\",\"Y\"))","v":"-"},{"$f":"IF('Enrollment Form'!A299=\"\",\"\",IF('Enrollment Form'!B299=\"Subscriber\",\"-\",IF(AND('Enrollment Form'!B299<>\"Subscriber\",'Enrollment Form'!G299='Enrollment Form'!H299),\"N\",\"Y\")))","v":""},0]
[300,{"$f":"IF('Enrollment Form'!$A300<>\"\",\"Y\",\"N\")","v":"N"},{"$f":"IF(AND('Enrollment Form'!$B300=\"\",'Enrollment Form'!$C300<>\"\"),\"N\",IF($B293=\"N\",\"\",\"Y\"))","v":""},{"$f":"IF(OR($B293=\"N\",'Enrollment Form'!G300=\"\"),\"\",IF('Enrollment Form'!$B300<>\"Subscriber\",\"\",IF('Enrollment Form'!$G300='Enrollment Form'!$H300,\"Y\",\"N\")))","v":""},{"$f":"IF($B293=\"N\",\"\",IF(AND(COUNTIFS('Enrollment Form'!$H$11:$H$1000,'Enrollment Form'!$H300,'Enrollment Form'!$B$11:$B$1000,'Enrollment Form'!$B300)>1,'Enrollment Form'!$H300<>\"\"),\"N\",\"Y\"))","v":""},{"$f":"IF($B293=\"N\",\"\",IF(LEN('Enrollment Form'!$Y300)=0,\"\",IF(LEN('Enrollment Form'!$Y300)<>5,\"N\",\"Y\")))","v":""},{"$f":"IF($B293=\"N\",\"\",IF(LEN('Enrollment Form'!$AD300=0),\"\",IF(LEN('Enrollment Form'!$AD300)<>5,\"N\",\"Y\")))","v":""},{"$f":"IF($B293=\"N\",\"\",IF(LEN('Enrollment Form'!$BL300=0),\"\",IF(LEN('Enrollment Form'!$BL300)<>5,\"N\",\"Y\")))","v":""},{"$f":"IF($B293=\"N\",\"\",IF(LEN('Enrollment Form'!$AE300)=0,\"\",IF(LEN('Enrollment Form'!$AE300)<>10,\"N\",\"Y\")))","v":""},{"$f":"IF($B293=\"N\",\"\",IF(LEN('Enrollment Form'!$AF300)=0,\"\",IF(LEN('Enrollment Form'!$AF300)<>10,\"N\",\"Y\")))","v":""},{"$f":"IF('Enrollment Form'!$O300<>\"Graded\",\"-\",IF(AND('Enrollment Form'!$O300=\"Graded\",'Enrollment Form'!$AO300<>\"\"),\"Y\",\"N\"))","v":"-"},{"$f":"IF($B293=\"N\",\"\",IF(OR('Enrollment Form'!$B300<>\"Subscriber\",'Enrollment Form'!$C300=\"ROC\"),\"-\",IF(AND('Enrollment Form'!$B300=\"Subscriber\",'Enrollment Form'!$C300=\"Enroll\",'Enrollment Form'!$AJ300<>\"\"),\"Y\",\"N\")))","v":""},{"$f":"IF($B293=\"N\",\"\",IF(OR('Enrollment Form'!$B300<>\"Subscriber\",'Enrollment Form'!$C300=\"ROC\"),\"-\",IF(AND('Enrollment Form'!$B300=\"Subscriber\",'Enrollment Form'!$C300=\"Enroll\",'Enrollment Form'!$AK300<>\"\"),\"Y\",\"N\")))","v":""},{"$f":"IF($B293=\"N\",\"\",IF(OR('Enrollment Form'!$B300<>\"Subscriber\",'Enrollment Form'!$C300=\"ROC\"),\"-\",IF(AND('Enrollment Form'!$B300=\"Subscriber\",'Enrollment Form'!$C300=\"Enroll\",'Enrollment Form'!$AL300<>\"\"),\"Y\",\"N\")))","v":""},{"$f":"IF($B293=\"N\",\"\",IF(OR('Enrollment Form'!$B300<>\"Subscriber\",'Enrollment Form'!$C300=\"ROC\"),\"-\",IF(AND('Enrollment Form'!$B300=\"Subscriber\",'Enrollment Form'!$C300=\"Enroll\",'Enrollment Form'!$AM300<>\"\"),\"Y\",\"N\")))","v":""},{"$f":"IF($B293=\"N\",\"\",IF(OR('Enrollment Form'!$B300<>\"Subscriber\",'Enrollment Form'!$C300=\"ROC\"),\"-\",IF(AND('Enrollment Form'!$B300=\"Subscriber\",'Enrollment Form'!$C300=\"Enroll\",'Enrollment Form'!$AN300<>\"\"),\"Y\",\"N\")))","v":""},{"$f":"IF($B293=\"N\",\"\",IF(OR('Enrollment Form'!$B300<>\"Subscriber\",'Enrollment Form'!$C300=\"ROC\"),\"-\",IF(AND('Enrollment Form'!$B300=\"Subscriber\",'Enrollment Form'!$C300=\"Enroll\",'Enrollment Form'!$AP300<>\"\"),\"Y\",\"N\")))","v":""},{"$f":"IF($B293=\"N\",\"\",IF($Q293=\"-\",\"-\",IF(AND($Q293=\"Y\",'Enrollment Form'!$AP300=\"No\"),\"-\",IF(AND($Q293=\"Y\",'Enrollment Form'!$AP300=\"Yes\",'Enrollment Form'!$AQ300<>\"\"),\"Y\",\"N\"))))","v":""},{"$f":"IF($B293=\"N\",\"\",IF(OR('Enrollment Form'!$B300<>\"Subscriber\",'Enrollment Form'!$C300=\"ROC\"),\"-\",IF(AND('Enrollment Form'!$B300=\"Subscriber\",'Enrollment Form'!$C300=\"Enroll\",'Enrollment Form'!$CO300<>\"\"),\"Y\",\"N\")))","v":""},{"$f":"IF($B293=\"N\",\"\",IF($S293=\"-\",\"-\",IF(AND($S293=\"Y\",'Enrollment Form'!$CO300=\"No\"),\"-\",IF(AND($S293=\"Y\",'Enrollment Form'!$CO300=\"Yes\",'Enrollment Form'!$CP300<>\"\"),\"Y\",\"N\"))))","v":""},{"$f":"IF(OR('Enrollment Form'!$AV300=\"Yes\",'Enrollment Form'!$AV300=\"\"),\"-\",IF(AND('Enrollment Form'!$AV300=\"No\",ISERROR(FIND(\"HMO\",VLOOKUP('Enrollment Form'!G300,'Enrollment Form'!H$11:J$1000,3,FALSE),1))=FALSE,COUNTA('Enrollment Form'!$AW300:$AZ300)=4),\"Y\",\"N\"))","v":"-"},{"$f":"IF($B293=\"N\",\"\",IF('Enrollment Form'!$B300=\"Subscriber\",\"-\",IF(COUNTA('Enrollment Form'!$BE300,'Enrollment Form'!$BG300)=2,\"Y\",\"N\")))","v":""},{"$f":"IF($B293=\"N\",\"\",IF(OR('Enrollment Form'!$AU300=\"\",'Enrollment Form'!$AU300=\"No\"),\"-\",IF(AND('Enrollment Form'!$AU300=\"Yes\",COUNTA('Enrollment Form'!$CK300)=1),\"Y\",\"N\")))","v":""},{"$f":"IF(OR('Enrollment Form'!$CK300=\"\",'Enrollment Form'!$CK300=\"No\"),\"-\",IF(COUNTA('Enrollment Form'!$CM300:$CN300)=2,\"Y\",\"N\"))","v":"-"},{"$f":"IF($B293=\"N\",\"\",IF(COUNTIF('Enrollment Form'!$CZ300:$DO300,\"Other\")=COUNTA('Enrollment Form'!$DF300,'Enrollment Form'!$DA300,'Enrollment Form'!$DK300,'Enrollment Form'!$DP300),\"Y\",\"N\"))","v":""},{"$f":"IF($B293=\"N\",\"\",IF(OR('Enrollment Form'!B300<>\"Subscriber\",'Enrollment Form'!C300=\"ROC\",COUNTIF('Enrollment Form'!AS300:AT300,\"Yes\")>=1),\"-\",IF(AND('Enrollment Form'!C300=\"Enroll\",COUNTIF('Enrollment Form'!AS300:AT300,\"No\")=2,'Enrollment Form'!AU300=\"\"),\"N\",\"Y\")))","v":""},{"$f":"IF(OR(B293=\"N\",'Enrollment Form'!B300<>\"Subscriber\",'Enrollment Form'!C300=\"ROC\",'Enrollment Form'!O300<>\"Multiple of Salary\"),\"-\",IF(COUNTA('Enrollment Form'!T300:U300)<2,\"N\",\"Y\"))","v":"-"},{"$f":"IF(B293=\"N\",\"\",IF(OR('Enrollment Form'!C300=\"ROC\",'Enrollment Form'!B300<>\"Subscriber\",'Enrollment Form'!O300=\"Waive\",'Enrollment Form'!O300=\"\"),\"-\",IF('Enrollment Form'!P300=\"\",\"N\",\"Y\")))","v":""},{"$f":"IF($B293=\"N\",\"\",IF(AND('Enrollment Form'!$C300=\"ROC\",'Enrollment Form'!$DS300<>\"\"),\"Y\",IF(AND('Enrollment Form'!$C300=\"ROC\",'Enrollment Form'!$DS300=\"\"),\"N\",IF(AND('Enrollment Form'!$C300=\"Enroll\",'Enrollment Form'!$B300=\"Subscriber\",'Enrollment Form'!$CQ300=\"No\",'Enrollment Form'!$DS300=\"\"),\"N\",IF(AND('Enrollment Form'!$C300=\"Enroll\",'Enrollment Form'!$B300=\"Subscriber\",'Enrollment Form'!$CQ300=\"Yes\"),\"-\",\"Y\")))))","v":""},{"$f":"IF($B293=\"N\",\"\",IF(AND('Enrollment Form'!$C300=\"ROC\",'Enrollment Form'!$DT300<>\"\"),\"Y\",IF(AND('Enrollment Form'!$C300=\"ROC\",'Enrollment Form'!$DT300=\"\"),\"N\",IF(AND('Enrollment Form'!$C300=\"Enroll\",'Enrollment Form'!$B300=\"Subscriber\",'Enrollment Form'!$CQ300=\"No\",'Enrollment Form'!$DT300=\"\"),\"N\",IF(AND('Enrollment Form'!$C300=\"Enroll\",'Enrollment Form'!$B300=\"Subscriber\",'Enrollment Form'!$CQ300=\"Yes\"),\"-\",\"Y\")))))","v":""},{"$f":"IF('Enrollment Form'!AH300=\"\",\"\",IF(ISERROR(SEARCH(\".\",'Enrollment Form'!AH300,SEARCH(\"@\",'Enrollment Form'!AH300))),\"N\",\"Y\"))","v":""},{"$f":"IF(OR($B293=\"N\",'Enrollment Form'!$G300=\"\"),\"\",IF('Enrollment Form'!$B300<>\"Subscriber\",\"-\",IF(COUNTIF('Enrollment Form'!$AS300:$AT300,\"Yes\")=2,\"N\",\"Y\")))","v":""},{"$f":"IF(OR('Enrollment Form'!$CC300=\"\",'Enrollment Form'!$CC300=\"No\"),\"-\",IF(AND('Enrollment Form'!$CC300=\"Yes\",'Enrollment Form'!$CD300=\"\"),\"N\",\"Y\"))","v":"-"},{"$f":"IF(OR('Enrollment Form'!$CE300=\"\",'Enrollment Form'!$CE300=\"No\"),\"-\",IF(AND('Enrollment Form'!$CE300=\"Yes\",'Enrollment Form'!$CF300=\"\"),\"N\",\"Y\"))","v":"-"},{"$f":"IF(OR('Enrollment Form'!$CG300=\"\",'Enrollment Form'!$CG300=\"No\"),\"-\",IF(AND('Enrollment Form'!$CG300=\"Yes\",'Enrollment Form'!$CH300=\"\"),\"N\",\"Y\"))","v":"-"},{"$f":"IF(OR('Enrollment Form'!$CG300=\"\",'Enrollment Form'!$CG300=\"No\"),\"-\",IF(AND('Enrollment Form'!$CG300=\"Yes\",'Enrollment Form'!$CI300=\"\"),\"N\",\"Y\"))","v":"-"},{"$f":"IF('Enrollment Form'!B300<>\"Subscriber\",\"-\",IF(AND('Enrollment Form'!B300=\"Subscriber\",'Enrollment Form'!C300=\"Enroll\",'Enrollment Form'!AA300=\"\"),\"N\",\"Y\"))","v":"-"},{"$f":"IF(OR('Enrollment Form'!B300=\"Subscriber\",'Enrollment Form'!B300=\"\"),\"-\",IF('Enrollment Form'!BI300=\"\",\"N\",\"Y\"))","v":"-"},{"$f":"IF('Enrollment Form'!B300<>\"Subscriber\",\"-\",IF(AND('Enrollment Form'!B300=\"Subscriber\",'Enrollment Form'!G300=\"\"),\"N\",\"Y\"))","v":"-"},{"$f":"IF('Enrollment Form'!A300=\"\",\"\",IF('Enrollment Form'!B300=\"Subscriber\",\"-\",IF(AND('Enrollment Form'!B300<>\"Subscriber\",'Enrollment Form'!G300='Enrollment Form'!H300),\"N\",\"Y\")))","v":""},0]
[301,{"$f":"IF('Enrollment Form'!$A301<>\"\",\"Y\",\"N\")","v":"N"},{"$f":"IF(AND('Enrollment Form'!$B301=\"\",'Enrollment Form'!$C301<>\"\"),\"N\",IF($B294=\"N\",\"\",\"Y\"))","v":""},{"$f":"IF(OR($B294=\"N\",'Enrollment Form'!G301=\"\"),\"\",IF('Enrollment Form'!$B301<>\"Subscriber\",\"\",IF('Enrollment Form'!$G301='Enrollment Form'!$H301,\"Y\",\"N\")))","v":""},{"$f":"IF($B294=\"N\",\"\",IF(AND(COUNTIFS('Enrollment Form'!$H$11:$H$1000,'Enrollment Form'!$H301,'Enrollment Form'!$B$11:$B$1000,'Enrollment Form'!$B301)>1,'Enrollment Form'!$H301<>\"\"),\"N\",\"Y\"))","v":""},{"$f":"IF($B294=\"N\",\"\",IF(LEN('Enrollment Form'!$Y301)=0,\"\",IF(LEN('Enrollment Form'!$Y301)<>5,\"N\",\"Y\")))","v":""},{"$f":"IF($B294=\"N\",\"\",IF(LEN('Enrollment Form'!$AD301=0),\"\",IF(LEN('Enrollment Form'!$AD301)<>5,\"N\",\"Y\")))","v":""},{"$f":"IF($B294=\"N\",\"\",IF(LEN('Enrollment Form'!$BL301=0),\"\",IF(LEN('Enrollment Form'!$BL301)<>5,\"N\",\"Y\")))","v":""},{"$f":"IF($B294=\"N\",\"\",IF(LEN('Enrollment Form'!$AE301)=0,\"\",IF(LEN('Enrollment Form'!$AE301)<>10,\"N\",\"Y\")))","v":""},{"$f":"IF($B294=\"N\",\"\",IF(LEN('Enrollment Form'!$AF301)=0,\"\",IF(LEN('Enrollment Form'!$AF301)<>10,\"N\",\"Y\")))","v":""},{"$f":"IF('Enrollment Form'!$O301<>\"Graded\",\"-\",IF(AND('Enrollment Form'!$O301=\"Graded\",'Enrollment Form'!$AO301<>\"\"),\"Y\",\"N\"))","v":"-"},{"$f":"IF($B294=\"N\",\"\",IF(OR('Enrollment Form'!$B301<>\"Subscriber\",'Enrollment Form'!$C301=\"ROC\"),\"-\",IF(AND('Enrollment Form'!$B301=\"Subscriber\",'Enrollment Form'!$C301=\"Enroll\",'Enrollment Form'!$AJ301<>\"\"),\"Y\",\"N\")))","v":""},{"$f":"IF($B294=\"N\",\"\",IF(OR('Enrollment Form'!$B301<>\"Subscriber\",'Enrollment Form'!$C301=\"ROC\"),\"-\",IF(AND('Enrollment Form'!$B301=\"Subscriber\",'Enrollment Form'!$C301=\"Enroll\",'Enrollment Form'!$AK301<>\"\"),\"Y\",\"N\")))","v":""},{"$f":"IF($B294=\"N\",\"\",IF(OR('Enrollment Form'!$B301<>\"Subscriber\",'Enrollment Form'!$C301=\"ROC\"),\"-\",IF(AND('Enrollment Form'!$B301=\"Subscriber\",'Enrollment Form'!$C301=\"Enroll\",'Enrollment Form'!$AL301<>\"\"),\"Y\",\"N\")))","v":""},{"$f":"IF($B294=\"N\",\"\",IF(OR('Enrollment Form'!$B301<>\"Subscriber\",'Enrollment Form'!$C301=\"ROC\"),\"-\",IF(AND('Enrollment Form'!$B301=\"Subscriber\",'Enrollment Form'!$C301=\"Enroll\",'Enrollment Form'!$AM301<>\"\"),\"Y\",\"N\")))","v":""},{"$f":"IF($B294=\"N\",\"\",IF(OR('Enrollment Form'!$B301<>\"Subscriber\",'Enrollment Form'!$C301=\"ROC\"),\"-\",IF(AND('Enrollment Form'!$B301=\"Subscriber\",'Enrollment Form'!$C301=\"Enroll\",'Enrollment Form'!$AN301<>\"\"),\"Y\",\"N\")))","v":""},{"$f":"IF($B294=\"N\",\"\",IF(OR('Enrollment Form'!$B301<>\"Subscriber\",'Enrollment Form'!$C301=\"ROC\"),\"-\",IF(AND('Enrollment Form'!$B301=\"Subscriber\",'Enrollment Form'!$C301=\"Enroll\",'Enrollment Form'!$AP301<>\"\"),\"Y\",\"N\")))","v":""},{"$f":"IF($B294=\"N\",\"\",IF($Q294=\"-\",\"-\",IF(AND($Q294=\"Y\",'Enrollment Form'!$AP301=\"No\"),\"-\",IF(AND($Q294=\"Y\",'Enrollment Form'!$AP301=\"Yes\",'Enrollment Form'!$AQ301<>\"\"),\"Y\",\"N\"))))","v":""},{"$f":"IF($B294=\"N\",\"\",IF(OR('Enrollment Form'!$B301<>\"Subscriber\",'Enrollment Form'!$C301=\"ROC\"),\"-\",IF(AND('Enrollment Form'!$B301=\"Subscriber\",'Enrollment Form'!$C301=\"Enroll\",'Enrollment Form'!$CO301<>\"\"),\"Y\",\"N\")))","v":""},{"$f":"IF($B294=\"N\",\"\",IF($S294=\"-\",\"-\",IF(AND($S294=\"Y\",'Enrollment Form'!$CO301=\"No\"),\"-\",IF(AND($S294=\"Y\",'Enrollment Form'!$CO301=\"Yes\",'Enrollment Form'!$CP301<>\"\"),\"Y\",\"N\"))))","v":""},{"$f":"IF(OR('Enrollment Form'!$AV301=\"Yes\",'Enrollment Form'!$AV301=\"\"),\"-\",IF(AND('Enrollment Form'!$AV301=\"No\",ISERROR(FIND(\"HMO\",VLOOKUP('Enrollment Form'!G301,'Enrollment Form'!H$11:J$1000,3,FALSE),1))=FALSE,COUNTA('Enrollment Form'!$AW301:$AZ301)=4),\"Y\",\"N\"))","v":"-"},{"$f":"IF($B294=\"N\",\"\",IF('Enrollment Form'!$B301=\"Subscriber\",\"-\",IF(COUNTA('Enrollment Form'!$BE301,'Enrollment Form'!$BG301)=2,\"Y\",\"N\")))","v":""},{"$f":"IF($B294=\"N\",\"\",IF(OR('Enrollment Form'!$AU301=\"\",'Enrollment Form'!$AU301=\"No\"),\"-\",IF(AND('Enrollment Form'!$AU301=\"Yes\",COUNTA('Enrollment Form'!$CK301)=1),\"Y\",\"N\")))","v":""},{"$f":"IF(OR('Enrollment Form'!$CK301=\"\",'Enrollment Form'!$CK301=\"No\"),\"-\",IF(COUNTA('Enrollment Form'!$CM301:$CN301)=2,\"Y\",\"N\"))","v":"-"},{"$f":"IF($B294=\"N\",\"\",IF(COUNTIF('Enrollment Form'!$CZ301:$DO301,\"Other\")=COUNTA('Enrollment Form'!$DF301,'Enrollment Form'!$DA301,'Enrollment Form'!$DK301,'Enrollment Form'!$DP301),\"Y\",\"N\"))","v":""},{"$f":"IF($B294=\"N\",\"\",IF(OR('Enrollment Form'!B301<>\"Subscriber\",'Enrollment Form'!C301=\"ROC\",COUNTIF('Enrollment Form'!AS301:AT301,\"Yes\")>=1),\"-\",IF(AND('Enrollment Form'!C301=\"Enroll\",COUNTIF('Enrollment Form'!AS301:AT301,\"No\")=2,'Enrollment Form'!AU301=\"\"),\"N\",\"Y\")))","v":""},{"$f":"IF(OR(B294=\"N\",'Enrollment Form'!B301<>\"Subscriber\",'Enrollment Form'!C301=\"ROC\",'Enrollment Form'!O301<>\"Multiple of Salary\"),\"-\",IF(COUNTA('Enrollment Form'!T301:U301)<2,\"N\",\"Y\"))","v":"-"},{"$f":"IF(B294=\"N\",\"\",IF(OR('Enrollment Form'!C301=\"ROC\",'Enrollment Form'!B301<>\"Subscriber\",'Enrollment Form'!O301=\"Waive\",'Enrollment Form'!O301=\"\"),\"-\",IF('Enrollment Form'!P301=\"\",\"N\",\"Y\")))","v":""},{"$f":"IF($B294=\"N\",\"\",IF(AND('Enrollment Form'!$C301=\"ROC\",'Enrollment Form'!$DS301<>\"\"),\"Y\",IF(AND('Enrollment Form'!$C301=\"ROC\",'Enrollment Form'!$DS301=\"\"),\"N\",IF(AND('Enrollment Form'!$C301=\"Enroll\",'Enrollment Form'!$B301=\"Subscriber\",'Enrollment Form'!$CQ301=\"No\",'Enrollment Form'!$DS301=\"\"),\"N\",IF(AND('Enrollment Form'!$C301=\"Enroll\",'Enrollment Form'!$B301=\"Subscriber\",'Enrollment Form'!$CQ301=\"Yes\"),\"-\",\"Y\")))))","v":""},{"$f":"IF($B294=\"N\",\"\",IF(AND('Enrollment Form'!$C301=\"ROC\",'Enrollment Form'!$DT301<>\"\"),\"Y\",IF(AND('Enrollment Form'!$C301=\"ROC\",'Enrollment Form'!$DT301=\"\"),\"N\",IF(AND('Enrollment Form'!$C301=\"Enroll\",'Enrollment Form'!$B301=\"Subscriber\",'Enrollment Form'!$CQ301=\"No\",'Enrollment Form'!$DT301=\"\"),\"N\",IF(AND('Enrollment Form'!$C301=\"Enroll\",'Enrollment Form'!$B301=\"Subscriber\",'Enrollment Form'!$CQ301=\"Yes\"),\"-\",\"Y\")))))","v":""},{"$f":"IF('Enrollment Form'!AH301=\"\",\"\",IF(ISERROR(SEARCH(\".\",'Enrollment Form'!AH301,SEARCH(\"@\",'Enrollment Form'!AH301))),\"N\",\"Y\"))","v":""},{"$f":"IF(OR($B294=\"N\",'Enrollment Form'!$G301=\"\"),\"\",IF('Enrollment Form'!$B301<>\"Subscriber\",\"-\",IF(COUNTIF('Enrollment Form'!$AS301:$AT301,\"Yes\")=2,\"N\",\"Y\")))","v":""},{"$f":"IF(OR('Enrollment Form'!$CC301=\"\",'Enrollment Form'!$CC301=\"No\"),\"-\",IF(AND('Enrollment Form'!$CC301=\"Yes\",'Enrollment Form'!$CD301=\"\"),\"N\",\"Y\"))","v":"-"},{"$f":"IF(OR('Enrollment Form'!$CE301=\"\",'Enrollment Form'!$CE301=\"No\"),\"-\",IF(AND('Enrollment Form'!$CE301=\"Yes\",'Enrollment Form'!$CF301=\"\"),\"N\",\"Y\"))","v":"-"},{"$f":"IF(OR('Enrollment Form'!$CG301=\"\",'Enrollment Form'!$CG301=\"No\"),\"-\",IF(AND('Enrollment Form'!$CG301=\"Yes\",'Enrollment Form'!$CH301=\"\"),\"N\",\"Y\"))","v":"-"},{"$f":"IF(OR('Enrollment Form'!$CG301=\"\",'Enrollment Form'!$CG301=\"No\"),\"-\",IF(AND('Enrollment Form'!$CG301=\"Yes\",'Enrollment Form'!$CI301=\"\"),\"N\",\"Y\"))","v":"-"},{"$f":"IF('Enrollment Form'!B301<>\"Subscriber\",\"-\",IF(AND('Enrollment Form'!B301=\"Subscriber\",'Enrollment Form'!C301=\"Enroll\",'Enrollment Form'!AA301=\"\"),\"N\",\"Y\"))","v":"-"},{"$f":"IF(OR('Enrollment Form'!B301=\"Subscriber\",'Enrollment Form'!B301=\"\"),\"-\",IF('Enrollment Form'!BI301=\"\",\"N\",\"Y\"))","v":"-"},{"$f":"IF('Enrollment Form'!B301<>\"Subscriber\",\"-\",IF(AND('Enrollment Form'!B301=\"Subscriber\",'Enrollment Form'!G301=\"\"),\"N\",\"Y\"))","v":"-"},{"$f":"IF('Enrollment Form'!A301=\"\",\"\",IF('Enrollment Form'!B301=\"Subscriber\",\"-\",IF(AND('Enrollment Form'!B301<>\"Subscriber\",'Enrollment Form'!G301='Enrollment Form'!H301),\"N\",\"Y\")))","v":""},0]
[302,{"$f":"IF('Enrollment Form'!$A302<>\"\",\"Y\",\"N\")","v":"N"},{"$f":"IF(AND('Enrollment Form'!$B302=\"\",'Enrollment Form'!$C302<>\"\"),\"N\",IF($B295=\"N\",\"\",\"Y\"))","v":""},{"$f":"IF(OR($B295=\"N\",'Enrollment Form'!G302=\"\"),\"\",IF('Enrollment Form'!$B302<>\"Subscriber\",\"\",IF('Enrollment Form'!$G302='Enrollment Form'!$H302,\"Y\",\"N\")))","v":""},{"$f":"IF($B295=\"N\",\"\",IF(AND(COUNTIFS('Enrollment Form'!$H$11:$H$1000,'Enrollment Form'!$H302,'Enrollment Form'!$B$11:$B$1000,'Enrollment Form'!$B302)>1,'Enrollment Form'!$H302<>\"\"),\"N\",\"Y\"))","v":""},{"$f":"IF($B295=\"N\",\"\",IF(LEN('Enrollment Form'!$Y302)=0,\"\",IF(LEN('Enrollment Form'!$Y302)<>5,\"N\",\"Y\")))","v":""},{"$f":"IF($B295=\"N\",\"\",IF(LEN('Enrollment Form'!$AD302=0),\"\",IF(LEN('Enrollment Form'!$AD302)<>5,\"N\",\"Y\")))","v":""},{"$f":"IF($B295=\"N\",\"\",IF(LEN('Enrollment Form'!$BL302=0),\"\",IF(LEN('Enrollment Form'!$BL302)<>5,\"N\",\"Y\")))","v":""},{"$f":"IF($B295=\"N\",\"\",IF(LEN('Enrollment Form'!$AE302)=0,\"\",IF(LEN('Enrollment Form'!$AE302)<>10,\"N\",\"Y\")))","v":""},{"$f":"IF($B295=\"N\",\"\",IF(LEN('Enrollment Form'!$AF302)=0,\"\",IF(LEN('Enrollment Form'!$AF302)<>10,\"N\",\"Y\")))","v":""},{"$f":"IF('Enrollment Form'!$O302<>\"Graded\",\"-\",IF(AND('Enrollment Form'!$O302=\"Graded\",'Enrollment Form'!$AO302<>\"\"),\"Y\",\"N\"))","v":"-"},{"$f":"IF($B295=\"N\",\"\",IF(OR('Enrollment Form'!$B302<>\"Subscriber\",'Enrollment Form'!$C302=\"ROC\"),\"-\",IF(AND('Enrollment Form'!$B302=\"Subscriber\",'Enrollment Form'!$C302=\"Enroll\",'Enrollment Form'!$AJ302<>\"\"),\"Y\",\"N\")))","v":""},{"$f":"IF($B295=\"N\",\"\",IF(OR('Enrollment Form'!$B302<>\"Subscriber\",'Enrollment Form'!$C302=\"ROC\"),\"-\",IF(AND('Enrollment Form'!$B302=\"Subscriber\",'Enrollment Form'!$C302=\"Enroll\",'Enrollment Form'!$AK302<>\"\"),\"Y\",\"N\")))","v":""},{"$f":"IF($B295=\"N\",\"\",IF(OR('Enrollment Form'!$B302<>\"Subscriber\",'Enrollment Form'!$C302=\"ROC\"),\"-\",IF(AND('Enrollment Form'!$B302=\"Subscriber\",'Enrollment Form'!$C302=\"Enroll\",'Enrollment Form'!$AL302<>\"\"),\"Y\",\"N\")))","v":""},{"$f":"IF($B295=\"N\",\"\",IF(OR('Enrollment Form'!$B302<>\"Subscriber\",'Enrollment Form'!$C302=\"ROC\"),\"-\",IF(AND('Enrollment Form'!$B302=\"Subscriber\",'Enrollment Form'!$C302=\"Enroll\",'Enrollment Form'!$AM302<>\"\"),\"Y\",\"N\")))","v":""},{"$f":"IF($B295=\"N\",\"\",IF(OR('Enrollment Form'!$B302<>\"Subscriber\",'Enrollment Form'!$C302=\"ROC\"),\"-\",IF(AND('Enrollment Form'!$B302=\"Subscriber\",'Enrollment Form'!$C302=\"Enroll\",'Enrollment Form'!$AN302<>\"\"),\"Y\",\"N\")))","v":""},{"$f":"IF($B295=\"N\",\"\",IF(OR('Enrollment Form'!$B302<>\"Subscriber\",'Enrollment Form'!$C302=\"ROC\"),\"-\",IF(AND('Enrollment Form'!$B302=\"Subscriber\",'Enrollment Form'!$C302=\"Enroll\",'Enrollment Form'!$AP302<>\"\"),\"Y\",\"N\")))","v":""},{"$f":"IF($B295=\"N\",\"\",IF($Q295=\"-\",\"-\",IF(AND($Q295=\"Y\",'Enrollment Form'!$AP302=\"No\"),\"-\",IF(AND($Q295=\"Y\",'Enrollment Form'!$AP302=\"Yes\",'Enrollment Form'!$AQ302<>\"\"),\"Y\",\"N\"))))","v":""},{"$f":"IF($B295=\"N\",\"\",IF(OR('Enrollment Form'!$B302<>\"Subscriber\",'Enrollment Form'!$C302=\"ROC\"),\"-\",IF(AND('Enrollment Form'!$B302=\"Subscriber\",'Enrollment Form'!$C302=\"Enroll\",'Enrollment Form'!$CO302<>\"\"),\"Y\",\"N\")))","v":""},{"$f":"IF($B295=\"N\",\"\",IF($S295=\"-\",\"-\",IF(AND($S295=\"Y\",'Enrollment Form'!$CO302=\"No\"),\"-\",IF(AND($S295=\"Y\",'Enrollment Form'!$CO302=\"Yes\",'Enrollment Form'!$CP302<>\"\"),\"Y\",\"N\"))))","v":""},{"$f":"IF(OR('Enrollment Form'!$AV302=\"Yes\",'Enrollment Form'!$AV302=\"\"),\"-\",IF(AND('Enrollment Form'!$AV302=\"No\",ISERROR(FIND(\"HMO\",VLOOKUP('Enrollment Form'!G302,'Enrollment Form'!H$11:J$1000,3,FALSE),1))=FALSE,COUNTA('Enrollment Form'!$AW302:$AZ302)=4),\"Y\",\"N\"))","v":"-"},{"$f":"IF($B295=\"N\",\"\",IF('Enrollment Form'!$B302=\"Subscriber\",\"-\",IF(COUNTA('Enrollment Form'!$BE302,'Enrollment Form'!$BG302)=2,\"Y\",\"N\")))","v":""},{"$f":"IF($B295=\"N\",\"\",IF(OR('Enrollment Form'!$AU302=\"\",'Enrollment Form'!$AU302=\"No\"),\"-\",IF(AND('Enrollment Form'!$AU302=\"Yes\",COUNTA('Enrollment Form'!$CK302)=1),\"Y\",\"N\")))","v":""},{"$f":"IF(OR('Enrollment Form'!$CK302=\"\",'Enrollment Form'!$CK302=\"No\"),\"-\",IF(COUNTA('Enrollment Form'!$CM302:$CN302)=2,\"Y\",\"N\"))","v":"-"},{"$f":"IF($B295=\"N\",\"\",IF(COUNTIF('Enrollment Form'!$CZ302:$DO302,\"Other\")=COUNTA('Enrollment Form'!$DF302,'Enrollment Form'!$DA302,'Enrollment Form'!$DK302,'Enrollment Form'!$DP302),\"Y\",\"N\"))","v":""},{"$f":"IF($B295=\"N\",\"\",IF(OR('Enrollment Form'!B302<>\"Subscriber\",'Enrollment Form'!C302=\"ROC\",COUNTIF('Enrollment Form'!AS302:AT302,\"Yes\")>=1),\"-\",IF(AND('Enrollment Form'!C302=\"Enroll\",COUNTIF('Enrollment Form'!AS302:AT302,\"No\")=2,'Enrollment Form'!AU302=\"\"),\"N\",\"Y\")))","v":""},{"$f":"IF(OR(B295=\"N\",'Enrollment Form'!B302<>\"Subscriber\",'Enrollment Form'!C302=\"ROC\",'Enrollment Form'!O302<>\"Multiple of Salary\"),\"-\",IF(COUNTA('Enrollment Form'!T302:U302)<2,\"N\",\"Y\"))","v":"-"},{"$f":"IF(B295=\"N\",\"\",IF(OR('Enrollment Form'!C302=\"ROC\",'Enrollment Form'!B302<>\"Subscriber\",'Enrollment Form'!O302=\"Waive\",'Enrollment Form'!O302=\"\"),\"-\",IF('Enrollment Form'!P302=\"\",\"N\",\"Y\")))","v":""},{"$f":"IF($B295=\"N\",\"\",IF(AND('Enrollment Form'!$C302=\"ROC\",'Enrollment Form'!$DS302<>\"\"),\"Y\",IF(AND('Enrollment Form'!$C302=\"ROC\",'Enrollment Form'!$DS302=\"\"),\"N\",IF(AND('Enrollment Form'!$C302=\"Enroll\",'Enrollment Form'!$B302=\"Subscriber\",'Enrollment Form'!$CQ302=\"No\",'Enrollment Form'!$DS302=\"\"),\"N\",IF(AND('Enrollment Form'!$C302=\"Enroll\",'Enrollment Form'!$B302=\"Subscriber\",'Enrollment Form'!$CQ302=\"Yes\"),\"-\",\"Y\")))))","v":""},{"$f":"IF($B295=\"N\",\"\",IF(AND('Enrollment Form'!$C302=\"ROC\",'Enrollment Form'!$DT302<>\"\"),\"Y\",IF(AND('Enrollment Form'!$C302=\"ROC\",'Enrollment Form'!$DT302=\"\"),\"N\",IF(AND('Enrollment Form'!$C302=\"Enroll\",'Enrollment Form'!$B302=\"Subscriber\",'Enrollment Form'!$CQ302=\"No\",'Enrollment Form'!$DT302=\"\"),\"N\",IF(AND('Enrollment Form'!$C302=\"Enroll\",'Enrollment Form'!$B302=\"Subscriber\",'Enrollment Form'!$CQ302=\"Yes\"),\"-\",\"Y\")))))","v":""},{"$f":"IF('Enrollment Form'!AH302=\"\",\"\",IF(ISERROR(SEARCH(\".\",'Enrollment Form'!AH302,SEARCH(\"@\",'Enrollment Form'!AH302))),\"N\",\"Y\"))","v":""},{"$f":"IF(OR($B295=\"N\",'Enrollment Form'!$G302=\"\"),\"\",IF('Enrollment Form'!$B302<>\"Subscriber\",\"-\",IF(COUNTIF('Enrollment Form'!$AS302:$AT302,\"Yes\")=2,\"N\",\"Y\")))","v":""},{"$f":"IF(OR('Enrollment Form'!$CC302=\"\",'Enrollment Form'!$CC302=\"No\"),\"-\",IF(AND('Enrollment Form'!$CC302=\"Yes\",'Enrollment Form'!$CD302=\"\"),\"N\",\"Y\"))","v":"-"},{"$f":"IF(OR('Enrollment Form'!$CE302=\"\",'Enrollment Form'!$CE302=\"No\"),\"-\",IF(AND('Enrollment Form'!$CE302=\"Yes\",'Enrollment Form'!$CF302=\"\"),\"N\",\"Y\"))","v":"-"},{"$f":"IF(OR('Enrollment Form'!$CG302=\"\",'Enrollment Form'!$CG302=\"No\"),\"-\",IF(AND('Enrollment Form'!$CG302=\"Yes\",'Enrollment Form'!$CH302=\"\"),\"N\",\"Y\"))","v":"-"},{"$f":"IF(OR('Enrollment Form'!$CG302=\"\",'Enrollment Form'!$CG302=\"No\"),\"-\",IF(AND('Enrollment Form'!$CG302=\"Yes\",'Enrollment Form'!$CI302=\"\"),\"N\",\"Y\"))","v":"-"},{"$f":"IF('Enrollment Form'!B302<>\"Subscriber\",\"-\",IF(AND('Enrollment Form'!B302=\"Subscriber\",'Enrollment Form'!C302=\"Enroll\",'Enrollment Form'!AA302=\"\"),\"N\",\"Y\"))","v":"-"},{"$f":"IF(OR('Enrollment Form'!B302=\"Subscriber\",'Enrollment Form'!B302=\"\"),\"-\",IF('Enrollment Form'!BI302=\"\",\"N\",\"Y\"))","v":"-"},{"$f":"IF('Enrollment Form'!B302<>\"Subscriber\",\"-\",IF(AND('Enrollment Form'!B302=\"Subscriber\",'Enrollment Form'!G302=\"\"),\"N\",\"Y\"))","v":"-"},{"$f":"IF('Enrollment Form'!A302=\"\",\"\",IF('Enrollment Form'!B302=\"Subscriber\",\"-\",IF(AND('Enrollment Form'!B302<>\"Subscriber\",'Enrollment Form'!G302='Enrollment Form'!H302),\"N\",\"Y\")))","v":""},0]
[303,{"$f":"IF('Enrollment Form'!$A303<>\"\",\"Y\",\"N\")","v":"N"},{"$f":"IF(AND('Enrollment Form'!$B303=\"\",'Enrollment Form'!$C303<>\"\"),\"N\",IF($B296=\"N\",\"\",\"Y\"))","v":""},{"$f":"IF(OR($B296=\"N\",'Enrollment Form'!G303=\"\"),\"\",IF('Enrollment Form'!$B303<>\"Subscriber\",\"\",IF('Enrollment Form'!$G303='Enrollment Form'!$H303,\"Y\",\"N\")))","v":""},{"$f":"IF($B296=\"N\",\"\",IF(AND(COUNTIFS('Enrollment Form'!$H$11:$H$1000,'Enrollment Form'!$H303,'Enrollment Form'!$B$11:$B$1000,'Enrollment Form'!$B303)>1,'Enrollment Form'!$H303<>\"\"),\"N\",\"Y\"))","v":""},{"$f":"IF($B296=\"N\",\"\",IF(LEN('Enrollment Form'!$Y303)=0,\"\",IF(LEN('Enrollment Form'!$Y303)<>5,\"N\",\"Y\")))","v":""},{"$f":"IF($B296=\"N\",\"\",IF(LEN('Enrollment Form'!$AD303=0),\"\",IF(LEN('Enrollment Form'!$AD303)<>5,\"N\",\"Y\")))","v":""},{"$f":"IF($B296=\"N\",\"\",IF(LEN('Enrollment Form'!$BL303=0),\"\",IF(LEN('Enrollment Form'!$BL303)<>5,\"N\",\"Y\")))","v":""},{"$f":"IF($B296=\"N\",\"\",IF(LEN('Enrollment Form'!$AE303)=0,\"\",IF(LEN('Enrollment Form'!$AE303)<>10,\"N\",\"Y\")))","v":""},{"$f":"IF($B296=\"N\",\"\",IF(LEN('Enrollment Form'!$AF303)=0,\"\",IF(LEN('Enrollment Form'!$AF303)<>10,\"N\",\"Y\")))","v":""},{"$f":"IF('Enrollment Form'!$O303<>\"Graded\",\"-\",IF(AND('Enrollment Form'!$O303=\"Graded\",'Enrollment Form'!$AO303<>\"\"),\"Y\",\"N\"))","v":"-"},{"$f":"IF($B296=\"N\",\"\",IF(OR('Enrollment Form'!$B303<>\"Subscriber\",'Enrollment Form'!$C303=\"ROC\"),\"-\",IF(AND('Enrollment Form'!$B303=\"Subscriber\",'Enrollment Form'!$C303=\"Enroll\",'Enrollment Form'!$AJ303<>\"\"),\"Y\",\"N\")))","v":""},{"$f":"IF($B296=\"N\",\"\",IF(OR('Enrollment Form'!$B303<>\"Subscriber\",'Enrollment Form'!$C303=\"ROC\"),\"-\",IF(AND('Enrollment Form'!$B303=\"Subscriber\",'Enrollment Form'!$C303=\"Enroll\",'Enrollment Form'!$AK303<>\"\"),\"Y\",\"N\")))","v":""},{"$f":"IF($B296=\"N\",\"\",IF(OR('Enrollment Form'!$B303<>\"Subscriber\",'Enrollment Form'!$C303=\"ROC\"),\"-\",IF(AND('Enrollment Form'!$B303=\"Subscriber\",'Enrollment Form'!$C303=\"Enroll\",'Enrollment Form'!$AL303<>\"\"),\"Y\",\"N\")))","v":""},{"$f":"IF($B296=\"N\",\"\",IF(OR('Enrollment Form'!$B303<>\"Subscriber\",'Enrollment Form'!$C303=\"ROC\"),\"-\",IF(AND('Enrollment Form'!$B303=\"Subscriber\",'Enrollment Form'!$C303=\"Enroll\",'Enrollment Form'!$AM303<>\"\"),\"Y\",\"N\")))","v":""},{"$f":"IF($B296=\"N\",\"\",IF(OR('Enrollment Form'!$B303<>\"Subscriber\",'Enrollment Form'!$C303=\"ROC\"),\"-\",IF(AND('Enrollment Form'!$B303=\"Subscriber\",'Enrollment Form'!$C303=\"Enroll\",'Enrollment Form'!$AN303<>\"\"),\"Y\",\"N\")))","v":""},{"$f":"IF($B296=\"N\",\"\",IF(OR('Enrollment Form'!$B303<>\"Subscriber\",'Enrollment Form'!$C303=\"ROC\"),\"-\",IF(AND('Enrollment Form'!$B303=\"Subscriber\",'Enrollment Form'!$C303=\"Enroll\",'Enrollment Form'!$AP303<>\"\"),\"Y\",\"N\")))","v":""},{"$f":"IF($B296=\"N\",\"\",IF($Q296=\"-\",\"-\",IF(AND($Q296=\"Y\",'Enrollment Form'!$AP303=\"No\"),\"-\",IF(AND($Q296=\"Y\",'Enrollment Form'!$AP303=\"Yes\",'Enrollment Form'!$AQ303<>\"\"),\"Y\",\"N\"))))","v":""},{"$f":"IF($B296=\"N\",\"\",IF(OR('Enrollment Form'!$B303<>\"Subscriber\",'Enrollment Form'!$C303=\"ROC\"),\"-\",IF(AND('Enrollment Form'!$B303=\"Subscriber\",'Enrollment Form'!$C303=\"Enroll\",'Enrollment Form'!$CO303<>\"\"),\"Y\",\"N\")))","v":""},{"$f":"IF($B296=\"N\",\"\",IF($S296=\"-\",\"-\",IF(AND($S296=\"Y\",'Enrollment Form'!$CO303=\"No\"),\"-\",IF(AND($S296=\"Y\",'Enrollment Form'!$CO303=\"Yes\",'Enrollment Form'!$CP303<>\"\"),\"Y\",\"N\"))))","v":""},{"$f":"IF(OR('Enrollment Form'!$AV303=\"Yes\",'Enrollment Form'!$AV303=\"\"),\"-\",IF(AND('Enrollment Form'!$AV303=\"No\",ISERROR(FIND(\"HMO\",VLOOKUP('Enrollment Form'!G303,'Enrollment Form'!H$11:J$1000,3,FALSE),1))=FALSE,COUNTA('Enrollment Form'!$AW303:$AZ303)=4),\"Y\",\"N\"))","v":"-"},{"$f":"IF($B296=\"N\",\"\",IF('Enrollment Form'!$B303=\"Subscriber\",\"-\",IF(COUNTA('Enrollment Form'!$BE303,'Enrollment Form'!$BG303)=2,\"Y\",\"N\")))","v":""},{"$f":"IF($B296=\"N\",\"\",IF(OR('Enrollment Form'!$AU303=\"\",'Enrollment Form'!$AU303=\"No\"),\"-\",IF(AND('Enrollment Form'!$AU303=\"Yes\",COUNTA('Enrollment Form'!$CK303)=1),\"Y\",\"N\")))","v":""},{"$f":"IF(OR('Enrollment Form'!$CK303=\"\",'Enrollment Form'!$CK303=\"No\"),\"-\",IF(COUNTA('Enrollment Form'!$CM303:$CN303)=2,\"Y\",\"N\"))","v":"-"},{"$f":"IF($B296=\"N\",\"\",IF(COUNTIF('Enrollment Form'!$CZ303:$DO303,\"Other\")=COUNTA('Enrollment Form'!$DF303,'Enrollment Form'!$DA303,'Enrollment Form'!$DK303,'Enrollment Form'!$DP303),\"Y\",\"N\"))","v":""},{"$f":"IF($B296=\"N\",\"\",IF(OR('Enrollment Form'!B303<>\"Subscriber\",'Enrollment Form'!C303=\"ROC\",COUNTIF('Enrollment Form'!AS303:AT303,\"Yes\")>=1),\"-\",IF(AND('Enrollment Form'!C303=\"Enroll\",COUNTIF('Enrollment Form'!AS303:AT303,\"No\")=2,'Enrollment Form'!AU303=\"\"),\"N\",\"Y\")))","v":""},{"$f":"IF(OR(B296=\"N\",'Enrollment Form'!B303<>\"Subscriber\",'Enrollment Form'!C303=\"ROC\",'Enrollment Form'!O303<>\"Multiple of Salary\"),\"-\",IF(COUNTA('Enrollment Form'!T303:U303)<2,\"N\",\"Y\"))","v":"-"},{"$f":"IF(B296=\"N\",\"\",IF(OR('Enrollment Form'!C303=\"ROC\",'Enrollment Form'!B303<>\"Subscriber\",'Enrollment Form'!O303=\"Waive\",'Enrollment Form'!O303=\"\"),\"-\",IF('Enrollment Form'!P303=\"\",\"N\",\"Y\")))","v":""},{"$f":"IF($B296=\"N\",\"\",IF(AND('Enrollment Form'!$C303=\"ROC\",'Enrollment Form'!$DS303<>\"\"),\"Y\",IF(AND('Enrollment Form'!$C303=\"ROC\",'Enrollment Form'!$DS303=\"\"),\"N\",IF(AND('Enrollment Form'!$C303=\"Enroll\",'Enrollment Form'!$B303=\"Subscriber\",'Enrollment Form'!$CQ303=\"No\",'Enrollment Form'!$DS303=\"\"),\"N\",IF(AND('Enrollment Form'!$C303=\"Enroll\",'Enrollment Form'!$B303=\"Subscriber\",'Enrollment Form'!$CQ303=\"Yes\"),\"-\",\"Y\")))))","v":""},{"$f":"IF($B296=\"N\",\"\",IF(AND('Enrollment Form'!$C303=\"ROC\",'Enrollment Form'!$DT303<>\"\"),\"Y\",IF(AND('Enrollment Form'!$C303=\"ROC\",'Enrollment Form'!$DT303=\"\"),\"N\",IF(AND('Enrollment Form'!$C303=\"Enroll\",'Enrollment Form'!$B303=\"Subscriber\",'Enrollment Form'!$CQ303=\"No\",'Enrollment Form'!$DT303=\"\"),\"N\",IF(AND('Enrollment Form'!$C303=\"Enroll\",'Enrollment Form'!$B303=\"Subscriber\",'Enrollment Form'!$CQ303=\"Yes\"),\"-\",\"Y\")))))","v":""},{"$f":"IF('Enrollment Form'!AH303=\"\",\"\",IF(ISERROR(SEARCH(\".\",'Enrollment Form'!AH303,SEARCH(\"@\",'Enrollment Form'!AH303))),\"N\",\"Y\"))","v":""},{"$f":"IF(OR($B296=\"N\",'Enrollment Form'!$G303=\"\"),\"\",IF('Enrollment Form'!$B303<>\"Subscriber\",\"-\",IF(COUNTIF('Enrollment Form'!$AS303:$AT303,\"Yes\")=2,\"N\",\"Y\")))","v":""},{"$f":"IF(OR('Enrollment Form'!$CC303=\"\",'Enrollment Form'!$CC303=\"No\"),\"-\",IF(AND('Enrollment Form'!$CC303=\"Yes\",'Enrollment Form'!$CD303=\"\"),\"N\",\"Y\"))","v":"-"},{"$f":"IF(OR('Enrollment Form'!$CE303=\"\",'Enrollment Form'!$CE303=\"No\"),\"-\",IF(AND('Enrollment Form'!$CE303=\"Yes\",'Enrollment Form'!$CF303=\"\"),\"N\",\"Y\"))","v":"-"},{"$f":"IF(OR('Enrollment Form'!$CG303=\"\",'Enrollment Form'!$CG303=\"No\"),\"-\",IF(AND('Enrollment Form'!$CG303=\"Yes\",'Enrollment Form'!$CH303=\"\"),\"N\",\"Y\"))","v":"-"},{"$f":"IF(OR('Enrollment Form'!$CG303=\"\",'Enrollment Form'!$CG303=\"No\"),\"-\",IF(AND('Enrollment Form'!$CG303=\"Yes\",'Enrollment Form'!$CI303=\"\"),\"N\",\"Y\"))","v":"-"},{"$f":"IF('Enrollment Form'!B303<>\"Subscriber\",\"-\",IF(AND('Enrollment Form'!B303=\"Subscriber\",'Enrollment Form'!C303=\"Enroll\",'Enrollment Form'!AA303=\"\"),\"N\",\"Y\"))","v":"-"},{"$f":"IF(OR('Enrollment Form'!B303=\"Subscriber\",'Enrollment Form'!B303=\"\"),\"-\",IF('Enrollment Form'!BI303=\"\",\"N\",\"Y\"))","v":"-"},{"$f":"IF('Enrollment Form'!B303<>\"Subscriber\",\"-\",IF(AND('Enrollment Form'!B303=\"Subscriber\",'Enrollment Form'!G303=\"\"),\"N\",\"Y\"))","v":"-"},{"$f":"IF('Enrollment Form'!A303=\"\",\"\",IF('Enrollment Form'!B303=\"Subscriber\",\"-\",IF(AND('Enrollment Form'!B303<>\"Subscriber\",'Enrollment Form'!G303='Enrollment Form'!H303),\"N\",\"Y\")))","v":""},0]
[304,{"$f":"IF('Enrollment Form'!$A304<>\"\",\"Y\",\"N\")","v":"N"},{"$f":"IF(AND('Enrollment Form'!$B304=\"\",'Enrollment Form'!$C304<>\"\"),\"N\",IF($B297=\"N\",\"\",\"Y\"))","v":""},{"$f":"IF(OR($B297=\"N\",'Enrollment Form'!G304=\"\"),\"\",IF('Enrollment Form'!$B304<>\"Subscriber\",\"\",IF('Enrollment Form'!$G304='Enrollment Form'!$H304,\"Y\",\"N\")))","v":""},{"$f":"IF($B297=\"N\",\"\",IF(AND(COUNTIFS('Enrollment Form'!$H$11:$H$1000,'Enrollment Form'!$H304,'Enrollment Form'!$B$11:$B$1000,'Enrollment Form'!$B304)>1,'Enrollment Form'!$H304<>\"\"),\"N\",\"Y\"))","v":""},{"$f":"IF($B297=\"N\",\"\",IF(LEN('Enrollment Form'!$Y304)=0,\"\",IF(LEN('Enrollment Form'!$Y304)<>5,\"N\",\"Y\")))","v":""},{"$f":"IF($B297=\"N\",\"\",IF(LEN('Enrollment Form'!$AD304=0),\"\",IF(LEN('Enrollment Form'!$AD304)<>5,\"N\",\"Y\")))","v":""},{"$f":"IF($B297=\"N\",\"\",IF(LEN('Enrollment Form'!$BL304=0),\"\",IF(LEN('Enrollment Form'!$BL304)<>5,\"N\",\"Y\")))","v":""},{"$f":"IF($B297=\"N\",\"\",IF(LEN('Enrollment Form'!$AE304)=0,\"\",IF(LEN('Enrollment Form'!$AE304)<>10,\"N\",\"Y\")))","v":""},{"$f":"IF($B297=\"N\",\"\",IF(LEN('Enrollment Form'!$AF304)=0,\"\",IF(LEN('Enrollment Form'!$AF304)<>10,\"N\",\"Y\")))","v":""},{"$f":"IF('Enrollment Form'!$O304<>\"Graded\",\"-\",IF(AND('Enrollment Form'!$O304=\"Graded\",'Enrollment Form'!$AO304<>\"\"),\"Y\",\"N\"))","v":"-"},{"$f":"IF($B297=\"N\",\"\",IF(OR('Enrollment Form'!$B304<>\"Subscriber\",'Enrollment Form'!$C304=\"ROC\"),\"-\",IF(AND('Enrollment Form'!$B304=\"Subscriber\",'Enrollment Form'!$C304=\"Enroll\",'Enrollment Form'!$AJ304<>\"\"),\"Y\",\"N\")))","v":""},{"$f":"IF($B297=\"N\",\"\",IF(OR('Enrollment Form'!$B304<>\"Subscriber\",'Enrollment Form'!$C304=\"ROC\"),\"-\",IF(AND('Enrollment Form'!$B304=\"Subscriber\",'Enrollment Form'!$C304=\"Enroll\",'Enrollment Form'!$AK304<>\"\"),\"Y\",\"N\")))","v":""},{"$f":"IF($B297=\"N\",\"\",IF(OR('Enrollment Form'!$B304<>\"Subscriber\",'Enrollment Form'!$C304=\"ROC\"),\"-\",IF(AND('Enrollment Form'!$B304=\"Subscriber\",'Enrollment Form'!$C304=\"Enroll\",'Enrollment Form'!$AL304<>\"\"),\"Y\",\"N\")))","v":""},{"$f":"IF($B297=\"N\",\"\",IF(OR('Enrollment Form'!$B304<>\"Subscriber\",'Enrollment Form'!$C304=\"ROC\"),\"-\",IF(AND('Enrollment Form'!$B304=\"Subscriber\",'Enrollment Form'!$C304=\"Enroll\",'Enrollment Form'!$AM304<>\"\"),\"Y\",\"N\")))","v":""},{"$f":"IF($B297=\"N\",\"\",IF(OR('Enrollment Form'!$B304<>\"Subscriber\",'Enrollment Form'!$C304=\"ROC\"),\"-\",IF(AND('Enrollment Form'!$B304=\"Subscriber\",'Enrollment Form'!$C304=\"Enroll\",'Enrollment Form'!$AN304<>\"\"),\"Y\",\"N\")))","v":""},{"$f":"IF($B297=\"N\",\"\",IF(OR('Enrollment Form'!$B304<>\"Subscriber\",'Enrollment Form'!$C304=\"ROC\"),\"-\",IF(AND('Enrollment Form'!$B304=\"Subscriber\",'Enrollment Form'!$C304=\"Enroll\",'Enrollment Form'!$AP304<>\"\"),\"Y\",\"N\")))","v":""},{"$f":"IF($B297=\"N\",\"\",IF($Q297=\"-\",\"-\",IF(AND($Q297=\"Y\",'Enrollment Form'!$AP304=\"No\"),\"-\",IF(AND($Q297=\"Y\",'Enrollment Form'!$AP304=\"Yes\",'Enrollment Form'!$AQ304<>\"\"),\"Y\",\"N\"))))","v":""},{"$f":"IF($B297=\"N\",\"\",IF(OR('Enrollment Form'!$B304<>\"Subscriber\",'Enrollment Form'!$C304=\"ROC\"),\"-\",IF(AND('Enrollment Form'!$B304=\"Subscriber\",'Enrollment Form'!$C304=\"Enroll\",'Enrollment Form'!$CO304<>\"\"),\"Y\",\"N\")))","v":""},{"$f":"IF($B297=\"N\",\"\",IF($S297=\"-\",\"-\",IF(AND($S297=\"Y\",'Enrollment Form'!$CO304=\"No\"),\"-\",IF(AND($S297=\"Y\",'Enrollment Form'!$CO304=\"Yes\",'Enrollment Form'!$CP304<>\"\"),\"Y\",\"N\"))))","v":""},{"$f":"IF(OR('Enrollment Form'!$AV304=\"Yes\",'Enrollment Form'!$AV304=\"\"),\"-\",IF(AND('Enrollment Form'!$AV304=\"No\",ISERROR(FIND(\"HMO\",VLOOKUP('Enrollment Form'!G304,'Enrollment Form'!H$11:J$1000,3,FALSE),1))=FALSE,COUNTA('Enrollment Form'!$AW304:$AZ304)=4),\"Y\",\"N\"))","v":"-"},{"$f":"IF($B297=\"N\",\"\",IF('Enrollment Form'!$B304=\"Subscriber\",\"-\",IF(COUNTA('Enrollment Form'!$BE304,'Enrollment Form'!$BG304)=2,\"Y\",\"N\")))","v":""},{"$f":"IF($B297=\"N\",\"\",IF(OR('Enrollment Form'!$AU304=\"\",'Enrollment Form'!$AU304=\"No\"),\"-\",IF(AND('Enrollment Form'!$AU304=\"Yes\",COUNTA('Enrollment Form'!$CK304)=1),\"Y\",\"N\")))","v":""},{"$f":"IF(OR('Enrollment Form'!$CK304=\"\",'Enrollment Form'!$CK304=\"No\"),\"-\",IF(COUNTA('Enrollment Form'!$CM304:$CN304)=2,\"Y\",\"N\"))","v":"-"},{"$f":"IF($B297=\"N\",\"\",IF(COUNTIF('Enrollment Form'!$CZ304:$DO304,\"Other\")=COUNTA('Enrollment Form'!$DF304,'Enrollment Form'!$DA304,'Enrollment Form'!$DK304,'Enrollment Form'!$DP304),\"Y\",\"N\"))","v":""},{"$f":"IF($B297=\"N\",\"\",IF(OR('Enrollment Form'!B304<>\"Subscriber\",'Enrollment Form'!C304=\"ROC\",COUNTIF('Enrollment Form'!AS304:AT304,\"Yes\")>=1),\"-\",IF(AND('Enrollment Form'!C304=\"Enroll\",COUNTIF('Enrollment Form'!AS304:AT304,\"No\")=2,'Enrollment Form'!AU304=\"\"),\"N\",\"Y\")))","v":""},{"$f":"IF(OR(B297=\"N\",'Enrollment Form'!B304<>\"Subscriber\",'Enrollment Form'!C304=\"ROC\",'Enrollment Form'!O304<>\"Multiple of Salary\"),\"-\",IF(COUNTA('Enrollment Form'!T304:U304)<2,\"N\",\"Y\"))","v":"-"},{"$f":"IF(B297=\"N\",\"\",IF(OR('Enrollment Form'!C304=\"ROC\",'Enrollment Form'!B304<>\"Subscriber\",'Enrollment Form'!O304=\"Waive\",'Enrollment Form'!O304=\"\"),\"-\",IF('Enrollment Form'!P304=\"\",\"N\",\"Y\")))","v":""},{"$f":"IF($B297=\"N\",\"\",IF(AND('Enrollment Form'!$C304=\"ROC\",'Enrollment Form'!$DS304<>\"\"),\"Y\",IF(AND('Enrollment Form'!$C304=\"ROC\",'Enrollment Form'!$DS304=\"\"),\"N\",IF(AND('Enrollment Form'!$C304=\"Enroll\",'Enrollment Form'!$B304=\"Subscriber\",'Enrollment Form'!$CQ304=\"No\",'Enrollment Form'!$DS304=\"\"),\"N\",IF(AND('Enrollment Form'!$C304=\"Enroll\",'Enrollment Form'!$B304=\"Subscriber\",'Enrollment Form'!$CQ304=\"Yes\"),\"-\",\"Y\")))))","v":""},{"$f":"IF($B297=\"N\",\"\",IF(AND('Enrollment Form'!$C304=\"ROC\",'Enrollment Form'!$DT304<>\"\"),\"Y\",IF(AND('Enrollment Form'!$C304=\"ROC\",'Enrollment Form'!$DT304=\"\"),\"N\",IF(AND('Enrollment Form'!$C304=\"Enroll\",'Enrollment Form'!$B304=\"Subscriber\",'Enrollment Form'!$CQ304=\"No\",'Enrollment Form'!$DT304=\"\"),\"N\",IF(AND('Enrollment Form'!$C304=\"Enroll\",'Enrollment Form'!$B304=\"Subscriber\",'Enrollment Form'!$CQ304=\"Yes\"),\"-\",\"Y\")))))","v":""},{"$f":"IF('Enrollment Form'!AH304=\"\",\"\",IF(ISERROR(SEARCH(\".\",'Enrollment Form'!AH304,SEARCH(\"@\",'Enrollment Form'!AH304))),\"N\",\"Y\"))","v":""},{"$f":"IF(OR($B297=\"N\",'Enrollment Form'!$G304=\"\"),\"\",IF('Enrollment Form'!$B304<>\"Subscriber\",\"-\",IF(COUNTIF('Enrollment Form'!$AS304:$AT304,\"Yes\")=2,\"N\",\"Y\")))","v":""},{"$f":"IF(OR('Enrollment Form'!$CC304=\"\",'Enrollment Form'!$CC304=\"No\"),\"-\",IF(AND('Enrollment Form'!$CC304=\"Yes\",'Enrollment Form'!$CD304=\"\"),\"N\",\"Y\"))","v":"-"},{"$f":"IF(OR('Enrollment Form'!$CE304=\"\",'Enrollment Form'!$CE304=\"No\"),\"-\",IF(AND('Enrollment Form'!$CE304=\"Yes\",'Enrollment Form'!$CF304=\"\"),\"N\",\"Y\"))","v":"-"},{"$f":"IF(OR('Enrollment Form'!$CG304=\"\",'Enrollment Form'!$CG304=\"No\"),\"-\",IF(AND('Enrollment Form'!$CG304=\"Yes\",'Enrollment Form'!$CH304=\"\"),\"N\",\"Y\"))","v":"-"},{"$f":"IF(OR('Enrollment Form'!$CG304=\"\",'Enrollment Form'!$CG304=\"No\"),\"-\",IF(AND('Enrollment Form'!$CG304=\"Yes\",'Enrollment Form'!$CI304=\"\"),\"N\",\"Y\"))","v":"-"},{"$f":"IF('Enrollment Form'!B304<>\"Subscriber\",\"-\",IF(AND('Enrollment Form'!B304=\"Subscriber\",'Enrollment Form'!C304=\"Enroll\",'Enrollment Form'!AA304=\"\"),\"N\",\"Y\"))","v":"-"},{"$f":"IF(OR('Enrollment Form'!B304=\"Subscriber\",'Enrollment Form'!B304=\"\"),\"-\",IF('Enrollment Form'!BI304=\"\",\"N\",\"Y\"))","v":"-"},{"$f":"IF('Enrollment Form'!B304<>\"Subscriber\",\"-\",IF(AND('Enrollment Form'!B304=\"Subscriber\",'Enrollment Form'!G304=\"\"),\"N\",\"Y\"))","v":"-"},{"$f":"IF('Enrollment Form'!A304=\"\",\"\",IF('Enrollment Form'!B304=\"Subscriber\",\"-\",IF(AND('Enrollment Form'!B304<>\"Subscriber\",'Enrollment Form'!G304='Enrollment Form'!H304),\"N\",\"Y\")))","v":""},0]
[305,{"$f":"IF('Enrollment Form'!$A305<>\"\",\"Y\",\"N\")","v":"N"},{"$f":"IF(AND('Enrollment Form'!$B305=\"\",'Enrollment Form'!$C305<>\"\"),\"N\",IF($B298=\"N\",\"\",\"Y\"))","v":""},{"$f":"IF(OR($B298=\"N\",'Enrollment Form'!G305=\"\"),\"\",IF('Enrollment Form'!$B305<>\"Subscriber\",\"\",IF('Enrollment Form'!$G305='Enrollment Form'!$H305,\"Y\",\"N\")))","v":""},{"$f":"IF($B298=\"N\",\"\",IF(AND(COUNTIFS('Enrollment Form'!$H$11:$H$1000,'Enrollment Form'!$H305,'Enrollment Form'!$B$11:$B$1000,'Enrollment Form'!$B305)>1,'Enrollment Form'!$H305<>\"\"),\"N\",\"Y\"))","v":""},{"$f":"IF($B298=\"N\",\"\",IF(LEN('Enrollment Form'!$Y305)=0,\"\",IF(LEN('Enrollment Form'!$Y305)<>5,\"N\",\"Y\")))","v":""},{"$f":"IF($B298=\"N\",\"\",IF(LEN('Enrollment Form'!$AD305=0),\"\",IF(LEN('Enrollment Form'!$AD305)<>5,\"N\",\"Y\")))","v":""},{"$f":"IF($B298=\"N\",\"\",IF(LEN('Enrollment Form'!$BL305=0),\"\",IF(LEN('Enrollment Form'!$BL305)<>5,\"N\",\"Y\")))","v":""},{"$f":"IF($B298=\"N\",\"\",IF(LEN('Enrollment Form'!$AE305)=0,\"\",IF(LEN('Enrollment Form'!$AE305)<>10,\"N\",\"Y\")))","v":""},{"$f":"IF($B298=\"N\",\"\",IF(LEN('Enrollment Form'!$AF305)=0,\"\",IF(LEN('Enrollment Form'!$AF305)<>10,\"N\",\"Y\")))","v":""},{"$f":"IF('Enrollment Form'!$O305<>\"Graded\",\"-\",IF(AND('Enrollment Form'!$O305=\"Graded\",'Enrollment Form'!$AO305<>\"\"),\"Y\",\"N\"))","v":"-"},{"$f":"IF($B298=\"N\",\"\",IF(OR('Enrollment Form'!$B305<>\"Subscriber\",'Enrollment Form'!$C305=\"ROC\"),\"-\",IF(AND('Enrollment Form'!$B305=\"Subscriber\",'Enrollment Form'!$C305=\"Enroll\",'Enrollment Form'!$AJ305<>\"\"),\"Y\",\"N\")))","v":""},{"$f":"IF($B298=\"N\",\"\",IF(OR('Enrollment Form'!$B305<>\"Subscriber\",'Enrollment Form'!$C305=\"ROC\"),\"-\",IF(AND('Enrollment Form'!$B305=\"Subscriber\",'Enrollment Form'!$C305=\"Enroll\",'Enrollment Form'!$AK305<>\"\"),\"Y\",\"N\")))","v":""},{"$f":"IF($B298=\"N\",\"\",IF(OR('Enrollment Form'!$B305<>\"Subscriber\",'Enrollment Form'!$C305=\"ROC\"),\"-\",IF(AND('Enrollment Form'!$B305=\"Subscriber\",'Enrollment Form'!$C305=\"Enroll\",'Enrollment Form'!$AL305<>\"\"),\"Y\",\"N\")))","v":""},{"$f":"IF($B298=\"N\",\"\",IF(OR('Enrollment Form'!$B305<>\"Subscriber\",'Enrollment Form'!$C305=\"ROC\"),\"-\",IF(AND('Enrollment Form'!$B305=\"Subscriber\",'Enrollment Form'!$C305=\"Enroll\",'Enrollment Form'!$AM305<>\"\"),\"Y\",\"N\")))","v":""},{"$f":"IF($B298=\"N\",\"\",IF(OR('Enrollment Form'!$B305<>\"Subscriber\",'Enrollment Form'!$C305=\"ROC\"),\"-\",IF(AND('Enrollment Form'!$B305=\"Subscriber\",'Enrollment Form'!$C305=\"Enroll\",'Enrollment Form'!$AN305<>\"\"),\"Y\",\"N\")))","v":""},{"$f":"IF($B298=\"N\",\"\",IF(OR('Enrollment Form'!$B305<>\"Subscriber\",'Enrollment Form'!$C305=\"ROC\"),\"-\",IF(AND('Enrollment Form'!$B305=\"Subscriber\",'Enrollment Form'!$C305=\"Enroll\",'Enrollment Form'!$AP305<>\"\"),\"Y\",\"N\")))","v":""},{"$f":"IF($B298=\"N\",\"\",IF($Q298=\"-\",\"-\",IF(AND($Q298=\"Y\",'Enrollment Form'!$AP305=\"No\"),\"-\",IF(AND($Q298=\"Y\",'Enrollment Form'!$AP305=\"Yes\",'Enrollment Form'!$AQ305<>\"\"),\"Y\",\"N\"))))","v":""},{"$f":"IF($B298=\"N\",\"\",IF(OR('Enrollment Form'!$B305<>\"Subscriber\",'Enrollment Form'!$C305=\"ROC\"),\"-\",IF(AND('Enrollment Form'!$B305=\"Subscriber\",'Enrollment Form'!$C305=\"Enroll\",'Enrollment Form'!$CO305<>\"\"),\"Y\",\"N\")))","v":""},{"$f":"IF($B298=\"N\",\"\",IF($S298=\"-\",\"-\",IF(AND($S298=\"Y\",'Enrollment Form'!$CO305=\"No\"),\"-\",IF(AND($S298=\"Y\",'Enrollment Form'!$CO305=\"Yes\",'Enrollment Form'!$CP305<>\"\"),\"Y\",\"N\"))))","v":""},{"$f":"IF(OR('Enrollment Form'!$AV305=\"Yes\",'Enrollment Form'!$AV305=\"\"),\"-\",IF(AND('Enrollment Form'!$AV305=\"No\",ISERROR(FIND(\"HMO\",VLOOKUP('Enrollment Form'!G305,'Enrollment Form'!H$11:J$1000,3,FALSE),1))=FALSE,COUNTA('Enrollment Form'!$AW305:$AZ305)=4),\"Y\",\"N\"))","v":"-"},{"$f":"IF($B298=\"N\",\"\",IF('Enrollment Form'!$B305=\"Subscriber\",\"-\",IF(COUNTA('Enrollment Form'!$BE305,'Enrollment Form'!$BG305)=2,\"Y\",\"N\")))","v":""},{"$f":"IF($B298=\"N\",\"\",IF(OR('Enrollment Form'!$AU305=\"\",'Enrollment Form'!$AU305=\"No\"),\"-\",IF(AND('Enrollment Form'!$AU305=\"Yes\",COUNTA('Enrollment Form'!$CK305)=1),\"Y\",\"N\")))","v":""},{"$f":"IF(OR('Enrollment Form'!$CK305=\"\",'Enrollment Form'!$CK305=\"No\"),\"-\",IF(COUNTA('Enrollment Form'!$CM305:$CN305)=2,\"Y\",\"N\"))","v":"-"},{"$f":"IF($B298=\"N\",\"\",IF(COUNTIF('Enrollment Form'!$CZ305:$DO305,\"Other\")=COUNTA('Enrollment Form'!$DF305,'Enrollment Form'!$DA305,'Enrollment Form'!$DK305,'Enrollment Form'!$DP305),\"Y\",\"N\"))","v":""},{"$f":"IF($B298=\"N\",\"\",IF(OR('Enrollment Form'!B305<>\"Subscriber\",'Enrollment Form'!C305=\"ROC\",COUNTIF('Enrollment Form'!AS305:AT305,\"Yes\")>=1),\"-\",IF(AND('Enrollment Form'!C305=\"Enroll\",COUNTIF('Enrollment Form'!AS305:AT305,\"No\")=2,'Enrollment Form'!AU305=\"\"),\"N\",\"Y\")))","v":""},{"$f":"IF(OR(B298=\"N\",'Enrollment Form'!B305<>\"Subscriber\",'Enrollment Form'!C305=\"ROC\",'Enrollment Form'!O305<>\"Multiple of Salary\"),\"-\",IF(COUNTA('Enrollment Form'!T305:U305)<2,\"N\",\"Y\"))","v":"-"},{"$f":"IF(B298=\"N\",\"\",IF(OR('Enrollment Form'!C305=\"ROC\",'Enrollment Form'!B305<>\"Subscriber\",'Enrollment Form'!O305=\"Waive\",'Enrollment Form'!O305=\"\"),\"-\",IF('Enrollment Form'!P305=\"\",\"N\",\"Y\")))","v":""},{"$f":"IF($B298=\"N\",\"\",IF(AND('Enrollment Form'!$C305=\"ROC\",'Enrollment Form'!$DS305<>\"\"),\"Y\",IF(AND('Enrollment Form'!$C305=\"ROC\",'Enrollment Form'!$DS305=\"\"),\"N\",IF(AND('Enrollment Form'!$C305=\"Enroll\",'Enrollment Form'!$B305=\"Subscriber\",'Enrollment Form'!$CQ305=\"No\",'Enrollment Form'!$DS305=\"\"),\"N\",IF(AND('Enrollment Form'!$C305=\"Enroll\",'Enrollment Form'!$B305=\"Subscriber\",'Enrollment Form'!$CQ305=\"Yes\"),\"-\",\"Y\")))))","v":""},{"$f":"IF($B298=\"N\",\"\",IF(AND('Enrollment Form'!$C305=\"ROC\",'Enrollment Form'!$DT305<>\"\"),\"Y\",IF(AND('Enrollment Form'!$C305=\"ROC\",'Enrollment Form'!$DT305=\"\"),\"N\",IF(AND('Enrollment Form'!$C305=\"Enroll\",'Enrollment Form'!$B305=\"Subscriber\",'Enrollment Form'!$CQ305=\"No\",'Enrollment Form'!$DT305=\"\"),\"N\",IF(AND('Enrollment Form'!$C305=\"Enroll\",'Enrollment Form'!$B305=\"Subscriber\",'Enrollment Form'!$CQ305=\"Yes\"),\"-\",\"Y\")))))","v":""},{"$f":"IF('Enrollment Form'!AH305=\"\",\"\",IF(ISERROR(SEARCH(\".\",'Enrollment Form'!AH305,SEARCH(\"@\",'Enrollment Form'!AH305))),\"N\",\"Y\"))","v":""},{"$f":"IF(OR($B298=\"N\",'Enrollment Form'!$G305=\"\"),\"\",IF('Enrollment Form'!$B305<>\"Subscriber\",\"-\",IF(COUNTIF('Enrollment Form'!$AS305:$AT305,\"Yes\")=2,\"N\",\"Y\")))","v":""},{"$f":"IF(OR('Enrollment Form'!$CC305=\"\",'Enrollment Form'!$CC305=\"No\"),\"-\",IF(AND('Enrollment Form'!$CC305=\"Yes\",'Enrollment Form'!$CD305=\"\"),\"N\",\"Y\"))","v":"-"},{"$f":"IF(OR('Enrollment Form'!$CE305=\"\",'Enrollment Form'!$CE305=\"No\"),\"-\",IF(AND('Enrollment Form'!$CE305=\"Yes\",'Enrollment Form'!$CF305=\"\"),\"N\",\"Y\"))","v":"-"},{"$f":"IF(OR('Enrollment Form'!$CG305=\"\",'Enrollment Form'!$CG305=\"No\"),\"-\",IF(AND('Enrollment Form'!$CG305=\"Yes\",'Enrollment Form'!$CH305=\"\"),\"N\",\"Y\"))","v":"-"},{"$f":"IF(OR('Enrollment Form'!$CG305=\"\",'Enrollment Form'!$CG305=\"No\"),\"-\",IF(AND('Enrollment Form'!$CG305=\"Yes\",'Enrollment Form'!$CI305=\"\"),\"N\",\"Y\"))","v":"-"},{"$f":"IF('Enrollment Form'!B305<>\"Subscriber\",\"-\",IF(AND('Enrollment Form'!B305=\"Subscriber\",'Enrollment Form'!C305=\"Enroll\",'Enrollment Form'!AA305=\"\"),\"N\",\"Y\"))","v":"-"},{"$f":"IF(OR('Enrollment Form'!B305=\"Subscriber\",'Enrollment Form'!B305=\"\"),\"-\",IF('Enrollment Form'!BI305=\"\",\"N\",\"Y\"))","v":"-"},{"$f":"IF('Enrollment Form'!B305<>\"Subscriber\",\"-\",IF(AND('Enrollment Form'!B305=\"Subscriber\",'Enrollment Form'!G305=\"\"),\"N\",\"Y\"))","v":"-"},{"$f":"IF('Enrollment Form'!A305=\"\",\"\",IF('Enrollment Form'!B305=\"Subscriber\",\"-\",IF(AND('Enrollment Form'!B305<>\"Subscriber\",'Enrollment Form'!G305='Enrollment Form'!H305),\"N\",\"Y\")))","v":""},0]
[306,{"$f":"IF('Enrollment Form'!$A306<>\"\",\"Y\",\"N\")","v":"N"},{"$f":"IF(AND('Enrollment Form'!$B306=\"\",'Enrollment Form'!$C306<>\"\"),\"N\",IF($B299=\"N\",\"\",\"Y\"))","v":""},{"$f":"IF(OR($B299=\"N\",'Enrollment Form'!G306=\"\"),\"\",IF('Enrollment Form'!$B306<>\"Subscriber\",\"\",IF('Enrollment Form'!$G306='Enrollment Form'!$H306,\"Y\",\"N\")))","v":""},{"$f":"IF($B299=\"N\",\"\",IF(AND(COUNTIFS('Enrollment Form'!$H$11:$H$1000,'Enrollment Form'!$H306,'Enrollment Form'!$B$11:$B$1000,'Enrollment Form'!$B306)>1,'Enrollment Form'!$H306<>\"\"),\"N\",\"Y\"))","v":""},{"$f":"IF($B299=\"N\",\"\",IF(LEN('Enrollment Form'!$Y306)=0,\"\",IF(LEN('Enrollment Form'!$Y306)<>5,\"N\",\"Y\")))","v":""},{"$f":"IF($B299=\"N\",\"\",IF(LEN('Enrollment Form'!$AD306=0),\"\",IF(LEN('Enrollment Form'!$AD306)<>5,\"N\",\"Y\")))","v":""},{"$f":"IF($B299=\"N\",\"\",IF(LEN('Enrollment Form'!$BL306=0),\"\",IF(LEN('Enrollment Form'!$BL306)<>5,\"N\",\"Y\")))","v":""},{"$f":"IF($B299=\"N\",\"\",IF(LEN('Enrollment Form'!$AE306)=0,\"\",IF(LEN('Enrollment Form'!$AE306)<>10,\"N\",\"Y\")))","v":""},{"$f":"IF($B299=\"N\",\"\",IF(LEN('Enrollment Form'!$AF306)=0,\"\",IF(LEN('Enrollment Form'!$AF306)<>10,\"N\",\"Y\")))","v":""},{"$f":"IF('Enrollment Form'!$O306<>\"Graded\",\"-\",IF(AND('Enrollment Form'!$O306=\"Graded\",'Enrollment Form'!$AO306<>\"\"),\"Y\",\"N\"))","v":"-"},{"$f":"IF($B299=\"N\",\"\",IF(OR('Enrollment Form'!$B306<>\"Subscriber\",'Enrollment Form'!$C306=\"ROC\"),\"-\",IF(AND('Enrollment Form'!$B306=\"Subscriber\",'Enrollment Form'!$C306=\"Enroll\",'Enrollment Form'!$AJ306<>\"\"),\"Y\",\"N\")))","v":""},{"$f":"IF($B299=\"N\",\"\",IF(OR('Enrollment Form'!$B306<>\"Subscriber\",'Enrollment Form'!$C306=\"ROC\"),\"-\",IF(AND('Enrollment Form'!$B306=\"Subscriber\",'Enrollment Form'!$C306=\"Enroll\",'Enrollment Form'!$AK306<>\"\"),\"Y\",\"N\")))","v":""},{"$f":"IF($B299=\"N\",\"\",IF(OR('Enrollment Form'!$B306<>\"Subscriber\",'Enrollment Form'!$C306=\"ROC\"),\"-\",IF(AND('Enrollment Form'!$B306=\"Subscriber\",'Enrollment Form'!$C306=\"Enroll\",'Enrollment Form'!$AL306<>\"\"),\"Y\",\"N\")))","v":""},{"$f":"IF($B299=\"N\",\"\",IF(OR('Enrollment Form'!$B306<>\"Subscriber\",'Enrollment Form'!$C306=\"ROC\"),\"-\",IF(AND('Enrollment Form'!$B306=\"Subscriber\",'Enrollment Form'!$C306=\"Enroll\",'Enrollment Form'!$AM306<>\"\"),\"Y\",\"N\")))","v":""},{"$f":"IF($B299=\"N\",\"\",IF(OR('Enrollment Form'!$B306<>\"Subscriber\",'Enrollment Form'!$C306=\"ROC\"),\"-\",IF(AND('Enrollment Form'!$B306=\"Subscriber\",'Enrollment Form'!$C306=\"Enroll\",'Enrollment Form'!$AN306<>\"\"),\"Y\",\"N\")))","v":""},{"$f":"IF($B299=\"N\",\"\",IF(OR('Enrollment Form'!$B306<>\"Subscriber\",'Enrollment Form'!$C306=\"ROC\"),\"-\",IF(AND('Enrollment Form'!$B306=\"Subscriber\",'Enrollment Form'!$C306=\"Enroll\",'Enrollment Form'!$AP306<>\"\"),\"Y\",\"N\")))","v":""},{"$f":"IF($B299=\"N\",\"\",IF($Q299=\"-\",\"-\",IF(AND($Q299=\"Y\",'Enrollment Form'!$AP306=\"No\"),\"-\",IF(AND($Q299=\"Y\",'Enrollment Form'!$AP306=\"Yes\",'Enrollment Form'!$AQ306<>\"\"),\"Y\",\"N\"))))","v":""},{"$f":"IF($B299=\"N\",\"\",IF(OR('Enrollment Form'!$B306<>\"Subscriber\",'Enrollment Form'!$C306=\"ROC\"),\"-\",IF(AND('Enrollment Form'!$B306=\"Subscriber\",'Enrollment Form'!$C306=\"Enroll\",'Enrollment Form'!$CO306<>\"\"),\"Y\",\"N\")))","v":""},{"$f":"IF($B299=\"N\",\"\",IF($S299=\"-\",\"-\",IF(AND($S299=\"Y\",'Enrollment Form'!$CO306=\"No\"),\"-\",IF(AND($S299=\"Y\",'Enrollment Form'!$CO306=\"Yes\",'Enrollment Form'!$CP306<>\"\"),\"Y\",\"N\"))))","v":""},{"$f":"IF(OR('Enrollment Form'!$AV306=\"Yes\",'Enrollment Form'!$AV306=\"\"),\"-\",IF(AND('Enrollment Form'!$AV306=\"No\",ISERROR(FIND(\"HMO\",VLOOKUP('Enrollment Form'!G306,'Enrollment Form'!H$11:J$1000,3,FALSE),1))=FALSE,COUNTA('Enrollment Form'!$AW306:$AZ306)=4),\"Y\",\"N\"))","v":"-"},{"$f":"IF($B299=\"N\",\"\",IF('Enrollment Form'!$B306=\"Subscriber\",\"-\",IF(COUNTA('Enrollment Form'!$BE306,'Enrollment Form'!$BG306)=2,\"Y\",\"N\")))","v":""},{"$f":"IF($B299=\"N\",\"\",IF(OR('Enrollment Form'!$AU306=\"\",'Enrollment Form'!$AU306=\"No\"),\"-\",IF(AND('Enrollment Form'!$AU306=\"Yes\",COUNTA('Enrollment Form'!$CK306)=1),\"Y\",\"N\")))","v":""},{"$f":"IF(OR('Enrollment Form'!$CK306=\"\",'Enrollment Form'!$CK306=\"No\"),\"-\",IF(COUNTA('Enrollment Form'!$CM306:$CN306)=2,\"Y\",\"N\"))","v":"-"},{"$f":"IF($B299=\"N\",\"\",IF(COUNTIF('Enrollment Form'!$CZ306:$DO306,\"Other\")=COUNTA('Enrollment Form'!$DF306,'Enrollment Form'!$DA306,'Enrollment Form'!$DK306,'Enrollment Form'!$DP306),\"Y\",\"N\"))","v":""},{"$f":"IF($B299=\"N\",\"\",IF(OR('Enrollment Form'!B306<>\"Subscriber\",'Enrollment Form'!C306=\"ROC\",COUNTIF('Enrollment Form'!AS306:AT306,\"Yes\")>=1),\"-\",IF(AND('Enrollment Form'!C306=\"Enroll\",COUNTIF('Enrollment Form'!AS306:AT306,\"No\")=2,'Enrollment Form'!AU306=\"\"),\"N\",\"Y\")))","v":""},{"$f":"IF(OR(B299=\"N\",'Enrollment Form'!B306<>\"Subscriber\",'Enrollment Form'!C306=\"ROC\",'Enrollment Form'!O306<>\"Multiple of Salary\"),\"-\",IF(COUNTA('Enrollment Form'!T306:U306)<2,\"N\",\"Y\"))","v":"-"},{"$f":"IF(B299=\"N\",\"\",IF(OR('Enrollment Form'!C306=\"ROC\",'Enrollment Form'!B306<>\"Subscriber\",'Enrollment Form'!O306=\"Waive\",'Enrollment Form'!O306=\"\"),\"-\",IF('Enrollment Form'!P306=\"\",\"N\",\"Y\")))","v":""},{"$f":"IF($B299=\"N\",\"\",IF(AND('Enrollment Form'!$C306=\"ROC\",'Enrollment Form'!$DS306<>\"\"),\"Y\",IF(AND('Enrollment Form'!$C306=\"ROC\",'Enrollment Form'!$DS306=\"\"),\"N\",IF(AND('Enrollment Form'!$C306=\"Enroll\",'Enrollment Form'!$B306=\"Subscriber\",'Enrollment Form'!$CQ306=\"No\",'Enrollment Form'!$DS306=\"\"),\"N\",IF(AND('Enrollment Form'!$C306=\"Enroll\",'Enrollment Form'!$B306=\"Subscriber\",'Enrollment Form'!$CQ306=\"Yes\"),\"-\",\"Y\")))))","v":""},{"$f":"IF($B299=\"N\",\"\",IF(AND('Enrollment Form'!$C306=\"ROC\",'Enrollment Form'!$DT306<>\"\"),\"Y\",IF(AND('Enrollment Form'!$C306=\"ROC\",'Enrollment Form'!$DT306=\"\"),\"N\",IF(AND('Enrollment Form'!$C306=\"Enroll\",'Enrollment Form'!$B306=\"Subscriber\",'Enrollment Form'!$CQ306=\"No\",'Enrollment Form'!$DT306=\"\"),\"N\",IF(AND('Enrollment Form'!$C306=\"Enroll\",'Enrollment Form'!$B306=\"Subscriber\",'Enrollment Form'!$CQ306=\"Yes\"),\"-\",\"Y\")))))","v":""},{"$f":"IF('Enrollment Form'!AH306=\"\",\"\",IF(ISERROR(SEARCH(\".\",'Enrollment Form'!AH306,SEARCH(\"@\",'Enrollment Form'!AH306))),\"N\",\"Y\"))","v":""},{"$f":"IF(OR($B299=\"N\",'Enrollment Form'!$G306=\"\"),\"\",IF('Enrollment Form'!$B306<>\"Subscriber\",\"-\",IF(COUNTIF('Enrollment Form'!$AS306:$AT306,\"Yes\")=2,\"N\",\"Y\")))","v":""},{"$f":"IF(OR('Enrollment Form'!$CC306=\"\",'Enrollment Form'!$CC306=\"No\"),\"-\",IF(AND('Enrollment Form'!$CC306=\"Yes\",'Enrollment Form'!$CD306=\"\"),\"N\",\"Y\"))","v":"-"},{"$f":"IF(OR('Enrollment Form'!$CE306=\"\",'Enrollment Form'!$CE306=\"No\"),\"-\",IF(AND('Enrollment Form'!$CE306=\"Yes\",'Enrollment Form'!$CF306=\"\"),\"N\",\"Y\"))","v":"-"},{"$f":"IF(OR('Enrollment Form'!$CG306=\"\",'Enrollment Form'!$CG306=\"No\"),\"-\",IF(AND('Enrollment Form'!$CG306=\"Yes\",'Enrollment Form'!$CH306=\"\"),\"N\",\"Y\"))","v":"-"},{"$f":"IF(OR('Enrollment Form'!$CG306=\"\",'Enrollment Form'!$CG306=\"No\"),\"-\",IF(AND('Enrollment Form'!$CG306=\"Yes\",'Enrollment Form'!$CI306=\"\"),\"N\",\"Y\"))","v":"-"},{"$f":"IF('Enrollment Form'!B306<>\"Subscriber\",\"-\",IF(AND('Enrollment Form'!B306=\"Subscriber\",'Enrollment Form'!C306=\"Enroll\",'Enrollment Form'!AA306=\"\"),\"N\",\"Y\"))","v":"-"},{"$f":"IF(OR('Enrollment Form'!B306=\"Subscriber\",'Enrollment Form'!B306=\"\"),\"-\",IF('Enrollment Form'!BI306=\"\",\"N\",\"Y\"))","v":"-"},{"$f":"IF('Enrollment Form'!B306<>\"Subscriber\",\"-\",IF(AND('Enrollment Form'!B306=\"Subscriber\",'Enrollment Form'!G306=\"\"),\"N\",\"Y\"))","v":"-"},{"$f":"IF('Enrollment Form'!A306=\"\",\"\",IF('Enrollment Form'!B306=\"Subscriber\",\"-\",IF(AND('Enrollment Form'!B306<>\"Subscriber\",'Enrollment Form'!G306='Enrollment Form'!H306),\"N\",\"Y\")))","v":""},0]
[307,{"$f":"IF('Enrollment Form'!$A307<>\"\",\"Y\",\"N\")","v":"N"},{"$f":"IF(AND('Enrollment Form'!$B307=\"\",'Enrollment Form'!$C307<>\"\"),\"N\",IF($B300=\"N\",\"\",\"Y\"))","v":""},{"$f":"IF(OR($B300=\"N\",'Enrollment Form'!G307=\"\"),\"\",IF('Enrollment Form'!$B307<>\"Subscriber\",\"\",IF('Enrollment Form'!$G307='Enrollment Form'!$H307,\"Y\",\"N\")))","v":""},{"$f":"IF($B300=\"N\",\"\",IF(AND(COUNTIFS('Enrollment Form'!$H$11:$H$1000,'Enrollment Form'!$H307,'Enrollment Form'!$B$11:$B$1000,'Enrollment Form'!$B307)>1,'Enrollment Form'!$H307<>\"\"),\"N\",\"Y\"))","v":""},{"$f":"IF($B300=\"N\",\"\",IF(LEN('Enrollment Form'!$Y307)=0,\"\",IF(LEN('Enrollment Form'!$Y307)<>5,\"N\",\"Y\")))","v":""},{"$f":"IF($B300=\"N\",\"\",IF(LEN('Enrollment Form'!$AD307=0),\"\",IF(LEN('Enrollment Form'!$AD307)<>5,\"N\",\"Y\")))","v":""},{"$f":"IF($B300=\"N\",\"\",IF(LEN('Enrollment Form'!$BL307=0),\"\",IF(LEN('Enrollment Form'!$BL307)<>5,\"N\",\"Y\")))","v":""},{"$f":"IF($B300=\"N\",\"\",IF(LEN('Enrollment Form'!$AE307)=0,\"\",IF(LEN('Enrollment Form'!$AE307)<>10,\"N\",\"Y\")))","v":""},{"$f":"IF($B300=\"N\",\"\",IF(LEN('Enrollment Form'!$AF307)=0,\"\",IF(LEN('Enrollment Form'!$AF307)<>10,\"N\",\"Y\")))","v":""},{"$f":"IF('Enrollment Form'!$O307<>\"Graded\",\"-\",IF(AND('Enrollment Form'!$O307=\"Graded\",'Enrollment Form'!$AO307<>\"\"),\"Y\",\"N\"))","v":"-"},{"$f":"IF($B300=\"N\",\"\",IF(OR('Enrollment Form'!$B307<>\"Subscriber\",'Enrollment Form'!$C307=\"ROC\"),\"-\",IF(AND('Enrollment Form'!$B307=\"Subscriber\",'Enrollment Form'!$C307=\"Enroll\",'Enrollment Form'!$AJ307<>\"\"),\"Y\",\"N\")))","v":""},{"$f":"IF($B300=\"N\",\"\",IF(OR('Enrollment Form'!$B307<>\"Subscriber\",'Enrollment Form'!$C307=\"ROC\"),\"-\",IF(AND('Enrollment Form'!$B307=\"Subscriber\",'Enrollment Form'!$C307=\"Enroll\",'Enrollment Form'!$AK307<>\"\"),\"Y\",\"N\")))","v":""},{"$f":"IF($B300=\"N\",\"\",IF(OR('Enrollment Form'!$B307<>\"Subscriber\",'Enrollment Form'!$C307=\"ROC\"),\"-\",IF(AND('Enrollment Form'!$B307=\"Subscriber\",'Enrollment Form'!$C307=\"Enroll\",'Enrollment Form'!$AL307<>\"\"),\"Y\",\"N\")))","v":""},{"$f":"IF($B300=\"N\",\"\",IF(OR('Enrollment Form'!$B307<>\"Subscriber\",'Enrollment Form'!$C307=\"ROC\"),\"-\",IF(AND('Enrollment Form'!$B307=\"Subscriber\",'Enrollment Form'!$C307=\"Enroll\",'Enrollment Form'!$AM307<>\"\"),\"Y\",\"N\")))","v":""},{"$f":"IF($B300=\"N\",\"\",IF(OR('Enrollment Form'!$B307<>\"Subscriber\",'Enrollment Form'!$C307=\"ROC\"),\"-\",IF(AND('Enrollment Form'!$B307=\"Subscriber\",'Enrollment Form'!$C307=\"Enroll\",'Enrollment Form'!$AN307<>\"\"),\"Y\",\"N\")))","v":""},{"$f":"IF($B300=\"N\",\"\",IF(OR('Enrollment Form'!$B307<>\"Subscriber\",'Enrollment Form'!$C307=\"ROC\"),\"-\",IF(AND('Enrollment Form'!$B307=\"Subscriber\",'Enrollment Form'!$C307=\"Enroll\",'Enrollment Form'!$AP307<>\"\"),\"Y\",\"N\")))","v":""},{"$f":"IF($B300=\"N\",\"\",IF($Q300=\"-\",\"-\",IF(AND($Q300=\"Y\",'Enrollment Form'!$AP307=\"No\"),\"-\",IF(AND($Q300=\"Y\",'Enrollment Form'!$AP307=\"Yes\",'Enrollment Form'!$AQ307<>\"\"),\"Y\",\"N\"))))","v":""},{"$f":"IF($B300=\"N\",\"\",IF(OR('Enrollment Form'!$B307<>\"Subscriber\",'Enrollment Form'!$C307=\"ROC\"),\"-\",IF(AND('Enrollment Form'!$B307=\"Subscriber\",'Enrollment Form'!$C307=\"Enroll\",'Enrollment Form'!$CO307<>\"\"),\"Y\",\"N\")))","v":""},{"$f":"IF($B300=\"N\",\"\",IF($S300=\"-\",\"-\",IF(AND($S300=\"Y\",'Enrollment Form'!$CO307=\"No\"),\"-\",IF(AND($S300=\"Y\",'Enrollment Form'!$CO307=\"Yes\",'Enrollment Form'!$CP307<>\"\"),\"Y\",\"N\"))))","v":""},{"$f":"IF(OR('Enrollment Form'!$AV307=\"Yes\",'Enrollment Form'!$AV307=\"\"),\"-\",IF(AND('Enrollment Form'!$AV307=\"No\",ISERROR(FIND(\"HMO\",VLOOKUP('Enrollment Form'!G307,'Enrollment Form'!H$11:J$1000,3,FALSE),1))=FALSE,COUNTA('Enrollment Form'!$AW307:$AZ307)=4),\"Y\",\"N\"))","v":"-"},{"$f":"IF($B300=\"N\",\"\",IF('Enrollment Form'!$B307=\"Subscriber\",\"-\",IF(COUNTA('Enrollment Form'!$BE307,'Enrollment Form'!$BG307)=2,\"Y\",\"N\")))","v":""},{"$f":"IF($B300=\"N\",\"\",IF(OR('Enrollment Form'!$AU307=\"\",'Enrollment Form'!$AU307=\"No\"),\"-\",IF(AND('Enrollment Form'!$AU307=\"Yes\",COUNTA('Enrollment Form'!$CK307)=1),\"Y\",\"N\")))","v":""},{"$f":"IF(OR('Enrollment Form'!$CK307=\"\",'Enrollment Form'!$CK307=\"No\"),\"-\",IF(COUNTA('Enrollment Form'!$CM307:$CN307)=2,\"Y\",\"N\"))","v":"-"},{"$f":"IF($B300=\"N\",\"\",IF(COUNTIF('Enrollment Form'!$CZ307:$DO307,\"Other\")=COUNTA('Enrollment Form'!$DF307,'Enrollment Form'!$DA307,'Enrollment Form'!$DK307,'Enrollment Form'!$DP307),\"Y\",\"N\"))","v":""},{"$f":"IF($B300=\"N\",\"\",IF(OR('Enrollment Form'!B307<>\"Subscriber\",'Enrollment Form'!C307=\"ROC\",COUNTIF('Enrollment Form'!AS307:AT307,\"Yes\")>=1),\"-\",IF(AND('Enrollment Form'!C307=\"Enroll\",COUNTIF('Enrollment Form'!AS307:AT307,\"No\")=2,'Enrollment Form'!AU307=\"\"),\"N\",\"Y\")))","v":""},{"$f":"IF(OR(B300=\"N\",'Enrollment Form'!B307<>\"Subscriber\",'Enrollment Form'!C307=\"ROC\",'Enrollment Form'!O307<>\"Multiple of Salary\"),\"-\",IF(COUNTA('Enrollment Form'!T307:U307)<2,\"N\",\"Y\"))","v":"-"},{"$f":"IF(B300=\"N\",\"\",IF(OR('Enrollment Form'!C307=\"ROC\",'Enrollment Form'!B307<>\"Subscriber\",'Enrollment Form'!O307=\"Waive\",'Enrollment Form'!O307=\"\"),\"-\",IF('Enrollment Form'!P307=\"\",\"N\",\"Y\")))","v":""},{"$f":"IF($B300=\"N\",\"\",IF(AND('Enrollment Form'!$C307=\"ROC\",'Enrollment Form'!$DS307<>\"\"),\"Y\",IF(AND('Enrollment Form'!$C307=\"ROC\",'Enrollment Form'!$DS307=\"\"),\"N\",IF(AND('Enrollment Form'!$C307=\"Enroll\",'Enrollment Form'!$B307=\"Subscriber\",'Enrollment Form'!$CQ307=\"No\",'Enrollment Form'!$DS307=\"\"),\"N\",IF(AND('Enrollment Form'!$C307=\"Enroll\",'Enrollment Form'!$B307=\"Subscriber\",'Enrollment Form'!$CQ307=\"Yes\"),\"-\",\"Y\")))))","v":""},{"$f":"IF($B300=\"N\",\"\",IF(AND('Enrollment Form'!$C307=\"ROC\",'Enrollment Form'!$DT307<>\"\"),\"Y\",IF(AND('Enrollment Form'!$C307=\"ROC\",'Enrollment Form'!$DT307=\"\"),\"N\",IF(AND('Enrollment Form'!$C307=\"Enroll\",'Enrollment Form'!$B307=\"Subscriber\",'Enrollment Form'!$CQ307=\"No\",'Enrollment Form'!$DT307=\"\"),\"N\",IF(AND('Enrollment Form'!$C307=\"Enroll\",'Enrollment Form'!$B307=\"Subscriber\",'Enrollment Form'!$CQ307=\"Yes\"),\"-\",\"Y\")))))","v":""},{"$f":"IF('Enrollment Form'!AH307=\"\",\"\",IF(ISERROR(SEARCH(\".\",'Enrollment Form'!AH307,SEARCH(\"@\",'Enrollment Form'!AH307))),\"N\",\"Y\"))","v":""},{"$f":"IF(OR($B300=\"N\",'Enrollment Form'!$G307=\"\"),\"\",IF('Enrollment Form'!$B307<>\"Subscriber\",\"-\",IF(COUNTIF('Enrollment Form'!$AS307:$AT307,\"Yes\")=2,\"N\",\"Y\")))","v":""},{"$f":"IF(OR('Enrollment Form'!$CC307=\"\",'Enrollment Form'!$CC307=\"No\"),\"-\",IF(AND('Enrollment Form'!$CC307=\"Yes\",'Enrollment Form'!$CD307=\"\"),\"N\",\"Y\"))","v":"-"},{"$f":"IF(OR('Enrollment Form'!$CE307=\"\",'Enrollment Form'!$CE307=\"No\"),\"-\",IF(AND('Enrollment Form'!$CE307=\"Yes\",'Enrollment Form'!$CF307=\"\"),\"N\",\"Y\"))","v":"-"},{"$f":"IF(OR('Enrollment Form'!$CG307=\"\",'Enrollment Form'!$CG307=\"No\"),\"-\",IF(AND('Enrollment Form'!$CG307=\"Yes\",'Enrollment Form'!$CH307=\"\"),\"N\",\"Y\"))","v":"-"},{"$f":"IF(OR('Enrollment Form'!$CG307=\"\",'Enrollment Form'!$CG307=\"No\"),\"-\",IF(AND('Enrollment Form'!$CG307=\"Yes\",'Enrollment Form'!$CI307=\"\"),\"N\",\"Y\"))","v":"-"},{"$f":"IF('Enrollment Form'!B307<>\"Subscriber\",\"-\",IF(AND('Enrollment Form'!B307=\"Subscriber\",'Enrollment Form'!C307=\"Enroll\",'Enrollment Form'!AA307=\"\"),\"N\",\"Y\"))","v":"-"},{"$f":"IF(OR('Enrollment Form'!B307=\"Subscriber\",'Enrollment Form'!B307=\"\"),\"-\",IF('Enrollment Form'!BI307=\"\",\"N\",\"Y\"))","v":"-"},{"$f":"IF('Enrollment Form'!B307<>\"Subscriber\",\"-\",IF(AND('Enrollment Form'!B307=\"Subscriber\",'Enrollment Form'!G307=\"\"),\"N\",\"Y\"))","v":"-"},{"$f":"IF('Enrollment Form'!A307=\"\",\"\",IF('Enrollment Form'!B307=\"Subscriber\",\"-\",IF(AND('Enrollment Form'!B307<>\"Subscriber\",'Enrollment Form'!G307='Enrollment Form'!H307),\"N\",\"Y\")))","v":""},0]
[308,{"$f":"IF('Enrollment Form'!$A308<>\"\",\"Y\",\"N\")","v":"N"},{"$f":"IF(AND('Enrollment Form'!$B308=\"\",'Enrollment Form'!$C308<>\"\"),\"N\",IF($B301=\"N\",\"\",\"Y\"))","v":""},{"$f":"IF(OR($B301=\"N\",'Enrollment Form'!G308=\"\"),\"\",IF('Enrollment Form'!$B308<>\"Subscriber\",\"\",IF('Enrollment Form'!$G308='Enrollment Form'!$H308,\"Y\",\"N\")))","v":""},{"$f":"IF($B301=\"N\",\"\",IF(AND(COUNTIFS('Enrollment Form'!$H$11:$H$1000,'Enrollment Form'!$H308,'Enrollment Form'!$B$11:$B$1000,'Enrollment Form'!$B308)>1,'Enrollment Form'!$H308<>\"\"),\"N\",\"Y\"))","v":""},{"$f":"IF($B301=\"N\",\"\",IF(LEN('Enrollment Form'!$Y308)=0,\"\",IF(LEN('Enrollment Form'!$Y308)<>5,\"N\",\"Y\")))","v":""},{"$f":"IF($B301=\"N\",\"\",IF(LEN('Enrollment Form'!$AD308=0),\"\",IF(LEN('Enrollment Form'!$AD308)<>5,\"N\",\"Y\")))","v":""},{"$f":"IF($B301=\"N\",\"\",IF(LEN('Enrollment Form'!$BL308=0),\"\",IF(LEN('Enrollment Form'!$BL308)<>5,\"N\",\"Y\")))","v":""},{"$f":"IF($B301=\"N\",\"\",IF(LEN('Enrollment Form'!$AE308)=0,\"\",IF(LEN('Enrollment Form'!$AE308)<>10,\"N\",\"Y\")))","v":""},{"$f":"IF($B301=\"N\",\"\",IF(LEN('Enrollment Form'!$AF308)=0,\"\",IF(LEN('Enrollment Form'!$AF308)<>10,\"N\",\"Y\")))","v":""},{"$f":"IF('Enrollment Form'!$O308<>\"Graded\",\"-\",IF(AND('Enrollment Form'!$O308=\"Graded\",'Enrollment Form'!$AO308<>\"\"),\"Y\",\"N\"))","v":"-"},{"$f":"IF($B301=\"N\",\"\",IF(OR('Enrollment Form'!$B308<>\"Subscriber\",'Enrollment Form'!$C308=\"ROC\"),\"-\",IF(AND('Enrollment Form'!$B308=\"Subscriber\",'Enrollment Form'!$C308=\"Enroll\",'Enrollment Form'!$AJ308<>\"\"),\"Y\",\"N\")))","v":""},{"$f":"IF($B301=\"N\",\"\",IF(OR('Enrollment Form'!$B308<>\"Subscriber\",'Enrollment Form'!$C308=\"ROC\"),\"-\",IF(AND('Enrollment Form'!$B308=\"Subscriber\",'Enrollment Form'!$C308=\"Enroll\",'Enrollment Form'!$AK308<>\"\"),\"Y\",\"N\")))","v":""},{"$f":"IF($B301=\"N\",\"\",IF(OR('Enrollment Form'!$B308<>\"Subscriber\",'Enrollment Form'!$C308=\"ROC\"),\"-\",IF(AND('Enrollment Form'!$B308=\"Subscriber\",'Enrollment Form'!$C308=\"Enroll\",'Enrollment Form'!$AL308<>\"\"),\"Y\",\"N\")))","v":""},{"$f":"IF($B301=\"N\",\"\",IF(OR('Enrollment Form'!$B308<>\"Subscriber\",'Enrollment Form'!$C308=\"ROC\"),\"-\",IF(AND('Enrollment Form'!$B308=\"Subscriber\",'Enrollment Form'!$C308=\"Enroll\",'Enrollment Form'!$AM308<>\"\"),\"Y\",\"N\")))","v":""},{"$f":"IF($B301=\"N\",\"\",IF(OR('Enrollment Form'!$B308<>\"Subscriber\",'Enrollment Form'!$C308=\"ROC\"),\"-\",IF(AND('Enrollment Form'!$B308=\"Subscriber\",'Enrollment Form'!$C308=\"Enroll\",'Enrollment Form'!$AN308<>\"\"),\"Y\",\"N\")))","v":""},{"$f":"IF($B301=\"N\",\"\",IF(OR('Enrollment Form'!$B308<>\"Subscriber\",'Enrollment Form'!$C308=\"ROC\"),\"-\",IF(AND('Enrollment Form'!$B308=\"Subscriber\",'Enrollment Form'!$C308=\"Enroll\",'Enrollment Form'!$AP308<>\"\"),\"Y\",\"N\")))","v":""},{"$f":"IF($B301=\"N\",\"\",IF($Q301=\"-\",\"-\",IF(AND($Q301=\"Y\",'Enrollment Form'!$AP308=\"No\"),\"-\",IF(AND($Q301=\"Y\",'Enrollment Form'!$AP308=\"Yes\",'Enrollment Form'!$AQ308<>\"\"),\"Y\",\"N\"))))","v":""},{"$f":"IF($B301=\"N\",\"\",IF(OR('Enrollment Form'!$B308<>\"Subscriber\",'Enrollment Form'!$C308=\"ROC\"),\"-\",IF(AND('Enrollment Form'!$B308=\"Subscriber\",'Enrollment Form'!$C308=\"Enroll\",'Enrollment Form'!$CO308<>\"\"),\"Y\",\"N\")))","v":""},{"$f":"IF($B301=\"N\",\"\",IF($S301=\"-\",\"-\",IF(AND($S301=\"Y\",'Enrollment Form'!$CO308=\"No\"),\"-\",IF(AND($S301=\"Y\",'Enrollment Form'!$CO308=\"Yes\",'Enrollment Form'!$CP308<>\"\"),\"Y\",\"N\"))))","v":""},{"$f":"IF(OR('Enrollment Form'!$AV308=\"Yes\",'Enrollment Form'!$AV308=\"\"),\"-\",IF(AND('Enrollment Form'!$AV308=\"No\",ISERROR(FIND(\"HMO\",VLOOKUP('Enrollment Form'!G308,'Enrollment Form'!H$11:J$1000,3,FALSE),1))=FALSE,COUNTA('Enrollment Form'!$AW308:$AZ308)=4),\"Y\",\"N\"))","v":"-"},{"$f":"IF($B301=\"N\",\"\",IF('Enrollment Form'!$B308=\"Subscriber\",\"-\",IF(COUNTA('Enrollment Form'!$BE308,'Enrollment Form'!$BG308)=2,\"Y\",\"N\")))","v":""},{"$f":"IF($B301=\"N\",\"\",IF(OR('Enrollment Form'!$AU308=\"\",'Enrollment Form'!$AU308=\"No\"),\"-\",IF(AND('Enrollment Form'!$AU308=\"Yes\",COUNTA('Enrollment Form'!$CK308)=1),\"Y\",\"N\")))","v":""},{"$f":"IF(OR('Enrollment Form'!$CK308=\"\",'Enrollment Form'!$CK308=\"No\"),\"-\",IF(COUNTA('Enrollment Form'!$CM308:$CN308)=2,\"Y\",\"N\"))","v":"-"},{"$f":"IF($B301=\"N\",\"\",IF(COUNTIF('Enrollment Form'!$CZ308:$DO308,\"Other\")=COUNTA('Enrollment Form'!$DF308,'Enrollment Form'!$DA308,'Enrollment Form'!$DK308,'Enrollment Form'!$DP308),\"Y\",\"N\"))","v":""},{"$f":"IF($B301=\"N\",\"\",IF(OR('Enrollment Form'!B308<>\"Subscriber\",'Enrollment Form'!C308=\"ROC\",COUNTIF('Enrollment Form'!AS308:AT308,\"Yes\")>=1),\"-\",IF(AND('Enrollment Form'!C308=\"Enroll\",COUNTIF('Enrollment Form'!AS308:AT308,\"No\")=2,'Enrollment Form'!AU308=\"\"),\"N\",\"Y\")))","v":""},{"$f":"IF(OR(B301=\"N\",'Enrollment Form'!B308<>\"Subscriber\",'Enrollment Form'!C308=\"ROC\",'Enrollment Form'!O308<>\"Multiple of Salary\"),\"-\",IF(COUNTA('Enrollment Form'!T308:U308)<2,\"N\",\"Y\"))","v":"-"},{"$f":"IF(B301=\"N\",\"\",IF(OR('Enrollment Form'!C308=\"ROC\",'Enrollment Form'!B308<>\"Subscriber\",'Enrollment Form'!O308=\"Waive\",'Enrollment Form'!O308=\"\"),\"-\",IF('Enrollment Form'!P308=\"\",\"N\",\"Y\")))","v":""},{"$f":"IF($B301=\"N\",\"\",IF(AND('Enrollment Form'!$C308=\"ROC\",'Enrollment Form'!$DS308<>\"\"),\"Y\",IF(AND('Enrollment Form'!$C308=\"ROC\",'Enrollment Form'!$DS308=\"\"),\"N\",IF(AND('Enrollment Form'!$C308=\"Enroll\",'Enrollment Form'!$B308=\"Subscriber\",'Enrollment Form'!$CQ308=\"No\",'Enrollment Form'!$DS308=\"\"),\"N\",IF(AND('Enrollment Form'!$C308=\"Enroll\",'Enrollment Form'!$B308=\"Subscriber\",'Enrollment Form'!$CQ308=\"Yes\"),\"-\",\"Y\")))))","v":""},{"$f":"IF($B301=\"N\",\"\",IF(AND('Enrollment Form'!$C308=\"ROC\",'Enrollment Form'!$DT308<>\"\"),\"Y\",IF(AND('Enrollment Form'!$C308=\"ROC\",'Enrollment Form'!$DT308=\"\"),\"N\",IF(AND('Enrollment Form'!$C308=\"Enroll\",'Enrollment Form'!$B308=\"Subscriber\",'Enrollment Form'!$CQ308=\"No\",'Enrollment Form'!$DT308=\"\"),\"N\",IF(AND('Enrollment Form'!$C308=\"Enroll\",'Enrollment Form'!$B308=\"Subscriber\",'Enrollment Form'!$CQ308=\"Yes\"),\"-\",\"Y\")))))","v":""},{"$f":"IF('Enrollment Form'!AH308=\"\",\"\",IF(ISERROR(SEARCH(\".\",'Enrollment Form'!AH308,SEARCH(\"@\",'Enrollment Form'!AH308))),\"N\",\"Y\"))","v":""},{"$f":"IF(OR($B301=\"N\",'Enrollment Form'!$G308=\"\"),\"\",IF('Enrollment Form'!$B308<>\"Subscriber\",\"-\",IF(COUNTIF('Enrollment Form'!$AS308:$AT308,\"Yes\")=2,\"N\",\"Y\")))","v":""},{"$f":"IF(OR('Enrollment Form'!$CC308=\"\",'Enrollment Form'!$CC308=\"No\"),\"-\",IF(AND('Enrollment Form'!$CC308=\"Yes\",'Enrollment Form'!$CD308=\"\"),\"N\",\"Y\"))","v":"-"},{"$f":"IF(OR('Enrollment Form'!$CE308=\"\",'Enrollment Form'!$CE308=\"No\"),\"-\",IF(AND('Enrollment Form'!$CE308=\"Yes\",'Enrollment Form'!$CF308=\"\"),\"N\",\"Y\"))","v":"-"},{"$f":"IF(OR('Enrollment Form'!$CG308=\"\",'Enrollment Form'!$CG308=\"No\"),\"-\",IF(AND('Enrollment Form'!$CG308=\"Yes\",'Enrollment Form'!$CH308=\"\"),\"N\",\"Y\"))","v":"-"},{"$f":"IF(OR('Enrollment Form'!$CG308=\"\",'Enrollment Form'!$CG308=\"No\"),\"-\",IF(AND('Enrollment Form'!$CG308=\"Yes\",'Enrollment Form'!$CI308=\"\"),\"N\",\"Y\"))","v":"-"},{"$f":"IF('Enrollment Form'!B308<>\"Subscriber\",\"-\",IF(AND('Enrollment Form'!B308=\"Subscriber\",'Enrollment Form'!C308=\"Enroll\",'Enrollment Form'!AA308=\"\"),\"N\",\"Y\"))","v":"-"},{"$f":"IF(OR('Enrollment Form'!B308=\"Subscriber\",'Enrollment Form'!B308=\"\"),\"-\",IF('Enrollment Form'!BI308=\"\",\"N\",\"Y\"))","v":"-"},{"$f":"IF('Enrollment Form'!B308<>\"Subscriber\",\"-\",IF(AND('Enrollment Form'!B308=\"Subscriber\",'Enrollment Form'!G308=\"\"),\"N\",\"Y\"))","v":"-"},{"$f":"IF('Enrollment Form'!A308=\"\",\"\",IF('Enrollment Form'!B308=\"Subscriber\",\"-\",IF(AND('Enrollment Form'!B308<>\"Subscriber\",'Enrollment Form'!G308='Enrollment Form'!H308),\"N\",\"Y\")))","v":""},0]
[309,{"$f":"IF('Enrollment Form'!$A309<>\"\",\"Y\",\"N\")","v":"N"},{"$f":"IF(AND('Enrollment Form'!$B309=\"\",'Enrollment Form'!$C309<>\"\"),\"N\",IF($B302=\"N\",\"\",\"Y\"))","v":""},{"$f":"IF(OR($B302=\"N\",'Enrollment Form'!G309=\"\"),\"\",IF('Enrollment Form'!$B309<>\"Subscriber\",\"\",IF('Enrollment Form'!$G309='Enrollment Form'!$H309,\"Y\",\"N\")))","v":""},{"$f":"IF($B302=\"N\",\"\",IF(AND(COUNTIFS('Enrollment Form'!$H$11:$H$1000,'Enrollment Form'!$H309,'Enrollment Form'!$B$11:$B$1000,'Enrollment Form'!$B309)>1,'Enrollment Form'!$H309<>\"\"),\"N\",\"Y\"))","v":""},{"$f":"IF($B302=\"N\",\"\",IF(LEN('Enrollment Form'!$Y309)=0,\"\",IF(LEN('Enrollment Form'!$Y309)<>5,\"N\",\"Y\")))","v":""},{"$f":"IF($B302=\"N\",\"\",IF(LEN('Enrollment Form'!$AD309=0),\"\",IF(LEN('Enrollment Form'!$AD309)<>5,\"N\",\"Y\")))","v":""},{"$f":"IF($B302=\"N\",\"\",IF(LEN('Enrollment Form'!$BL309=0),\"\",IF(LEN('Enrollment Form'!$BL309)<>5,\"N\",\"Y\")))","v":""},{"$f":"IF($B302=\"N\",\"\",IF(LEN('Enrollment Form'!$AE309)=0,\"\",IF(LEN('Enrollment Form'!$AE309)<>10,\"N\",\"Y\")))","v":""},{"$f":"IF($B302=\"N\",\"\",IF(LEN('Enrollment Form'!$AF309)=0,\"\",IF(LEN('Enrollment Form'!$AF309)<>10,\"N\",\"Y\")))","v":""},{"$f":"IF('Enrollment Form'!$O309<>\"Graded\",\"-\",IF(AND('Enrollment Form'!$O309=\"Graded\",'Enrollment Form'!$AO309<>\"\"),\"Y\",\"N\"))","v":"-"},{"$f":"IF($B302=\"N\",\"\",IF(OR('Enrollment Form'!$B309<>\"Subscriber\",'Enrollment Form'!$C309=\"ROC\"),\"-\",IF(AND('Enrollment Form'!$B309=\"Subscriber\",'Enrollment Form'!$C309=\"Enroll\",'Enrollment Form'!$AJ309<>\"\"),\"Y\",\"N\")))","v":""},{"$f":"IF($B302=\"N\",\"\",IF(OR('Enrollment Form'!$B309<>\"Subscriber\",'Enrollment Form'!$C309=\"ROC\"),\"-\",IF(AND('Enrollment Form'!$B309=\"Subscriber\",'Enrollment Form'!$C309=\"Enroll\",'Enrollment Form'!$AK309<>\"\"),\"Y\",\"N\")))","v":""},{"$f":"IF($B302=\"N\",\"\",IF(OR('Enrollment Form'!$B309<>\"Subscriber\",'Enrollment Form'!$C309=\"ROC\"),\"-\",IF(AND('Enrollment Form'!$B309=\"Subscriber\",'Enrollment Form'!$C309=\"Enroll\",'Enrollment Form'!$AL309<>\"\"),\"Y\",\"N\")))","v":""},{"$f":"IF($B302=\"N\",\"\",IF(OR('Enrollment Form'!$B309<>\"Subscriber\",'Enrollment Form'!$C309=\"ROC\"),\"-\",IF(AND('Enrollment Form'!$B309=\"Subscriber\",'Enrollment Form'!$C309=\"Enroll\",'Enrollment Form'!$AM309<>\"\"),\"Y\",\"N\")))","v":""},{"$f":"IF($B302=\"N\",\"\",IF(OR('Enrollment Form'!$B309<>\"Subscriber\",'Enrollment Form'!$C309=\"ROC\"),\"-\",IF(AND('Enrollment Form'!$B309=\"Subscriber\",'Enrollment Form'!$C309=\"Enroll\",'Enrollment Form'!$AN309<>\"\"),\"Y\",\"N\")))","v":""},{"$f":"IF($B302=\"N\",\"\",IF(OR('Enrollment Form'!$B309<>\"Subscriber\",'Enrollment Form'!$C309=\"ROC\"),\"-\",IF(AND('Enrollment Form'!$B309=\"Subscriber\",'Enrollment Form'!$C309=\"Enroll\",'Enrollment Form'!$AP309<>\"\"),\"Y\",\"N\")))","v":""},{"$f":"IF($B302=\"N\",\"\",IF($Q302=\"-\",\"-\",IF(AND($Q302=\"Y\",'Enrollment Form'!$AP309=\"No\"),\"-\",IF(AND($Q302=\"Y\",'Enrollment Form'!$AP309=\"Yes\",'Enrollment Form'!$AQ309<>\"\"),\"Y\",\"N\"))))","v":""},{"$f":"IF($B302=\"N\",\"\",IF(OR('Enrollment Form'!$B309<>\"Subscriber\",'Enrollment Form'!$C309=\"ROC\"),\"-\",IF(AND('Enrollment Form'!$B309=\"Subscriber\",'Enrollment Form'!$C309=\"Enroll\",'Enrollment Form'!$CO309<>\"\"),\"Y\",\"N\")))","v":""},{"$f":"IF($B302=\"N\",\"\",IF($S302=\"-\",\"-\",IF(AND($S302=\"Y\",'Enrollment Form'!$CO309=\"No\"),\"-\",IF(AND($S302=\"Y\",'Enrollment Form'!$CO309=\"Yes\",'Enrollment Form'!$CP309<>\"\"),\"Y\",\"N\"))))","v":""},{"$f":"IF(OR('Enrollment Form'!$AV309=\"Yes\",'Enrollment Form'!$AV309=\"\"),\"-\",IF(AND('Enrollment Form'!$AV309=\"No\",ISERROR(FIND(\"HMO\",VLOOKUP('Enrollment Form'!G309,'Enrollment Form'!H$11:J$1000,3,FALSE),1))=FALSE,COUNTA('Enrollment Form'!$AW309:$AZ309)=4),\"Y\",\"N\"))","v":"-"},{"$f":"IF($B302=\"N\",\"\",IF('Enrollment Form'!$B309=\"Subscriber\",\"-\",IF(COUNTA('Enrollment Form'!$BE309,'Enrollment Form'!$BG309)=2,\"Y\",\"N\")))","v":""},{"$f":"IF($B302=\"N\",\"\",IF(OR('Enrollment Form'!$AU309=\"\",'Enrollment Form'!$AU309=\"No\"),\"-\",IF(AND('Enrollment Form'!$AU309=\"Yes\",COUNTA('Enrollment Form'!$CK309)=1),\"Y\",\"N\")))","v":""},{"$f":"IF(OR('Enrollment Form'!$CK309=\"\",'Enrollment Form'!$CK309=\"No\"),\"-\",IF(COUNTA('Enrollment Form'!$CM309:$CN309)=2,\"Y\",\"N\"))","v":"-"},{"$f":"IF($B302=\"N\",\"\",IF(COUNTIF('Enrollment Form'!$CZ309:$DO309,\"Other\")=COUNTA('Enrollment Form'!$DF309,'Enrollment Form'!$DA309,'Enrollment Form'!$DK309,'Enrollment Form'!$DP309),\"Y\",\"N\"))","v":""},{"$f":"IF($B302=\"N\",\"\",IF(OR('Enrollment Form'!B309<>\"Subscriber\",'Enrollment Form'!C309=\"ROC\",COUNTIF('Enrollment Form'!AS309:AT309,\"Yes\")>=1),\"-\",IF(AND('Enrollment Form'!C309=\"Enroll\",COUNTIF('Enrollment Form'!AS309:AT309,\"No\")=2,'Enrollment Form'!AU309=\"\"),\"N\",\"Y\")))","v":""},{"$f":"IF(OR(B302=\"N\",'Enrollment Form'!B309<>\"Subscriber\",'Enrollment Form'!C309=\"ROC\",'Enrollment Form'!O309<>\"Multiple of Salary\"),\"-\",IF(COUNTA('Enrollment Form'!T309:U309)<2,\"N\",\"Y\"))","v":"-"},{"$f":"IF(B302=\"N\",\"\",IF(OR('Enrollment Form'!C309=\"ROC\",'Enrollment Form'!B309<>\"Subscriber\",'Enrollment Form'!O309=\"Waive\",'Enrollment Form'!O309=\"\"),\"-\",IF('Enrollment Form'!P309=\"\",\"N\",\"Y\")))","v":""},{"$f":"IF($B302=\"N\",\"\",IF(AND('Enrollment Form'!$C309=\"ROC\",'Enrollment Form'!$DS309<>\"\"),\"Y\",IF(AND('Enrollment Form'!$C309=\"ROC\",'Enrollment Form'!$DS309=\"\"),\"N\",IF(AND('Enrollment Form'!$C309=\"Enroll\",'Enrollment Form'!$B309=\"Subscriber\",'Enrollment Form'!$CQ309=\"No\",'Enrollment Form'!$DS309=\"\"),\"N\",IF(AND('Enrollment Form'!$C309=\"Enroll\",'Enrollment Form'!$B309=\"Subscriber\",'Enrollment Form'!$CQ309=\"Yes\"),\"-\",\"Y\")))))","v":""},{"$f":"IF($B302=\"N\",\"\",IF(AND('Enrollment Form'!$C309=\"ROC\",'Enrollment Form'!$DT309<>\"\"),\"Y\",IF(AND('Enrollment Form'!$C309=\"ROC\",'Enrollment Form'!$DT309=\"\"),\"N\",IF(AND('Enrollment Form'!$C309=\"Enroll\",'Enrollment Form'!$B309=\"Subscriber\",'Enrollment Form'!$CQ309=\"No\",'Enrollment Form'!$DT309=\"\"),\"N\",IF(AND('Enrollment Form'!$C309=\"Enroll\",'Enrollment Form'!$B309=\"Subscriber\",'Enrollment Form'!$CQ309=\"Yes\"),\"-\",\"Y\")))))","v":""},{"$f":"IF('Enrollment Form'!AH309=\"\",\"\",IF(ISERROR(SEARCH(\".\",'Enrollment Form'!AH309,SEARCH(\"@\",'Enrollment Form'!AH309))),\"N\",\"Y\"))","v":""},{"$f":"IF(OR($B302=\"N\",'Enrollment Form'!$G309=\"\"),\"\",IF('Enrollment Form'!$B309<>\"Subscriber\",\"-\",IF(COUNTIF('Enrollment Form'!$AS309:$AT309,\"Yes\")=2,\"N\",\"Y\")))","v":""},{"$f":"IF(OR('Enrollment Form'!$CC309=\"\",'Enrollment Form'!$CC309=\"No\"),\"-\",IF(AND('Enrollment Form'!$CC309=\"Yes\",'Enrollment Form'!$CD309=\"\"),\"N\",\"Y\"))","v":"-"},{"$f":"IF(OR('Enrollment Form'!$CE309=\"\",'Enrollment Form'!$CE309=\"No\"),\"-\",IF(AND('Enrollment Form'!$CE309=\"Yes\",'Enrollment Form'!$CF309=\"\"),\"N\",\"Y\"))","v":"-"},{"$f":"IF(OR('Enrollment Form'!$CG309=\"\",'Enrollment Form'!$CG309=\"No\"),\"-\",IF(AND('Enrollment Form'!$CG309=\"Yes\",'Enrollment Form'!$CH309=\"\"),\"N\",\"Y\"))","v":"-"},{"$f":"IF(OR('Enrollment Form'!$CG309=\"\",'Enrollment Form'!$CG309=\"No\"),\"-\",IF(AND('Enrollment Form'!$CG309=\"Yes\",'Enrollment Form'!$CI309=\"\"),\"N\",\"Y\"))","v":"-"},{"$f":"IF('Enrollment Form'!B309<>\"Subscriber\",\"-\",IF(AND('Enrollment Form'!B309=\"Subscriber\",'Enrollment Form'!C309=\"Enroll\",'Enrollment Form'!AA309=\"\"),\"N\",\"Y\"))","v":"-"},{"$f":"IF(OR('Enrollment Form'!B309=\"Subscriber\",'Enrollment Form'!B309=\"\"),\"-\",IF('Enrollment Form'!BI309=\"\",\"N\",\"Y\"))","v":"-"},{"$f":"IF('Enrollment Form'!B309<>\"Subscriber\",\"-\",IF(AND('Enrollment Form'!B309=\"Subscriber\",'Enrollment Form'!G309=\"\"),\"N\",\"Y\"))","v":"-"},{"$f":"IF('Enrollment Form'!A309=\"\",\"\",IF('Enrollment Form'!B309=\"Subscriber\",\"-\",IF(AND('Enrollment Form'!B309<>\"Subscriber\",'Enrollment Form'!G309='Enrollment Form'!H309),\"N\",\"Y\")))","v":""},0]
[310,{"$f":"IF('Enrollment Form'!$A310<>\"\",\"Y\",\"N\")","v":"N"},{"$f":"IF(AND('Enrollment Form'!$B310=\"\",'Enrollment Form'!$C310<>\"\"),\"N\",IF($B303=\"N\",\"\",\"Y\"))","v":""},{"$f":"IF(OR($B303=\"N\",'Enrollment Form'!G310=\"\"),\"\",IF('Enrollment Form'!$B310<>\"Subscriber\",\"\",IF('Enrollment Form'!$G310='Enrollment Form'!$H310,\"Y\",\"N\")))","v":""},{"$f":"IF($B303=\"N\",\"\",IF(AND(COUNTIFS('Enrollment Form'!$H$11:$H$1000,'Enrollment Form'!$H310,'Enrollment Form'!$B$11:$B$1000,'Enrollment Form'!$B310)>1,'Enrollment Form'!$H310<>\"\"),\"N\",\"Y\"))","v":""},{"$f":"IF($B303=\"N\",\"\",IF(LEN('Enrollment Form'!$Y310)=0,\"\",IF(LEN('Enrollment Form'!$Y310)<>5,\"N\",\"Y\")))","v":""},{"$f":"IF($B303=\"N\",\"\",IF(LEN('Enrollment Form'!$AD310=0),\"\",IF(LEN('Enrollment Form'!$AD310)<>5,\"N\",\"Y\")))","v":""},{"$f":"IF($B303=\"N\",\"\",IF(LEN('Enrollment Form'!$BL310=0),\"\",IF(LEN('Enrollment Form'!$BL310)<>5,\"N\",\"Y\")))","v":""},{"$f":"IF($B303=\"N\",\"\",IF(LEN('Enrollment Form'!$AE310)=0,\"\",IF(LEN('Enrollment Form'!$AE310)<>10,\"N\",\"Y\")))","v":""},{"$f":"IF($B303=\"N\",\"\",IF(LEN('Enrollment Form'!$AF310)=0,\"\",IF(LEN('Enrollment Form'!$AF310)<>10,\"N\",\"Y\")))","v":""},{"$f":"IF('Enrollment Form'!$O310<>\"Graded\",\"-\",IF(AND('Enrollment Form'!$O310=\"Graded\",'Enrollment Form'!$AO310<>\"\"),\"Y\",\"N\"))","v":"-"},{"$f":"IF($B303=\"N\",\"\",IF(OR('Enrollment Form'!$B310<>\"Subscriber\",'Enrollment Form'!$C310=\"ROC\"),\"-\",IF(AND('Enrollment Form'!$B310=\"Subscriber\",'Enrollment Form'!$C310=\"Enroll\",'Enrollment Form'!$AJ310<>\"\"),\"Y\",\"N\")))","v":""},{"$f":"IF($B303=\"N\",\"\",IF(OR('Enrollment Form'!$B310<>\"Subscriber\",'Enrollment Form'!$C310=\"ROC\"),\"-\",IF(AND('Enrollment Form'!$B310=\"Subscriber\",'Enrollment Form'!$C310=\"Enroll\",'Enrollment Form'!$AK310<>\"\"),\"Y\",\"N\")))","v":""},{"$f":"IF($B303=\"N\",\"\",IF(OR('Enrollment Form'!$B310<>\"Subscriber\",'Enrollment Form'!$C310=\"ROC\"),\"-\",IF(AND('Enrollment Form'!$B310=\"Subscriber\",'Enrollment Form'!$C310=\"Enroll\",'Enrollment Form'!$AL310<>\"\"),\"Y\",\"N\")))","v":""},{"$f":"IF($B303=\"N\",\"\",IF(OR('Enrollment Form'!$B310<>\"Subscriber\",'Enrollment Form'!$C310=\"ROC\"),\"-\",IF(AND('Enrollment Form'!$B310=\"Subscriber\",'Enrollment Form'!$C310=\"Enroll\",'Enrollment Form'!$AM310<>\"\"),\"Y\",\"N\")))","v":""},{"$f":"IF($B303=\"N\",\"\",IF(OR('Enrollment Form'!$B310<>\"Subscriber\",'Enrollment Form'!$C310=\"ROC\"),\"-\",IF(AND('Enrollment Form'!$B310=\"Subscriber\",'Enrollment Form'!$C310=\"Enroll\",'Enrollment Form'!$AN310<>\"\"),\"Y\",\"N\")))","v":""},{"$f":"IF($B303=\"N\",\"\",IF(OR('Enrollment Form'!$B310<>\"Subscriber\",'Enrollment Form'!$C310=\"ROC\"),\"-\",IF(AND('Enrollment Form'!$B310=\"Subscriber\",'Enrollment Form'!$C310=\"Enroll\",'Enrollment Form'!$AP310<>\"\"),\"Y\",\"N\")))","v":""},{"$f":"IF($B303=\"N\",\"\",IF($Q303=\"-\",\"-\",IF(AND($Q303=\"Y\",'Enrollment Form'!$AP310=\"No\"),\"-\",IF(AND($Q303=\"Y\",'Enrollment Form'!$AP310=\"Yes\",'Enrollment Form'!$AQ310<>\"\"),\"Y\",\"N\"))))","v":""},{"$f":"IF($B303=\"N\",\"\",IF(OR('Enrollment Form'!$B310<>\"Subscriber\",'Enrollment Form'!$C310=\"ROC\"),\"-\",IF(AND('Enrollment Form'!$B310=\"Subscriber\",'Enrollment Form'!$C310=\"Enroll\",'Enrollment Form'!$CO310<>\"\"),\"Y\",\"N\")))","v":""},{"$f":"IF($B303=\"N\",\"\",IF($S303=\"-\",\"-\",IF(AND($S303=\"Y\",'Enrollment Form'!$CO310=\"No\"),\"-\",IF(AND($S303=\"Y\",'Enrollment Form'!$CO310=\"Yes\",'Enrollment Form'!$CP310<>\"\"),\"Y\",\"N\"))))","v":""},{"$f":"IF(OR('Enrollment Form'!$AV310=\"Yes\",'Enrollment Form'!$AV310=\"\"),\"-\",IF(AND('Enrollment Form'!$AV310=\"No\",ISERROR(FIND(\"HMO\",VLOOKUP('Enrollment Form'!G310,'Enrollment Form'!H$11:J$1000,3,FALSE),1))=FALSE,COUNTA('Enrollment Form'!$AW310:$AZ310)=4),\"Y\",\"N\"))","v":"-"},{"$f":"IF($B303=\"N\",\"\",IF('Enrollment Form'!$B310=\"Subscriber\",\"-\",IF(COUNTA('Enrollment Form'!$BE310,'Enrollment Form'!$BG310)=2,\"Y\",\"N\")))","v":""},{"$f":"IF($B303=\"N\",\"\",IF(OR('Enrollment Form'!$AU310=\"\",'Enrollment Form'!$AU310=\"No\"),\"-\",IF(AND('Enrollment Form'!$AU310=\"Yes\",COUNTA('Enrollment Form'!$CK310)=1),\"Y\",\"N\")))","v":""},{"$f":"IF(OR('Enrollment Form'!$CK310=\"\",'Enrollment Form'!$CK310=\"No\"),\"-\",IF(COUNTA('Enrollment Form'!$CM310:$CN310)=2,\"Y\",\"N\"))","v":"-"},{"$f":"IF($B303=\"N\",\"\",IF(COUNTIF('Enrollment Form'!$CZ310:$DO310,\"Other\")=COUNTA('Enrollment Form'!$DF310,'Enrollment Form'!$DA310,'Enrollment Form'!$DK310,'Enrollment Form'!$DP310),\"Y\",\"N\"))","v":""},{"$f":"IF($B303=\"N\",\"\",IF(OR('Enrollment Form'!B310<>\"Subscriber\",'Enrollment Form'!C310=\"ROC\",COUNTIF('Enrollment Form'!AS310:AT310,\"Yes\")>=1),\"-\",IF(AND('Enrollment Form'!C310=\"Enroll\",COUNTIF('Enrollment Form'!AS310:AT310,\"No\")=2,'Enrollment Form'!AU310=\"\"),\"N\",\"Y\")))","v":""},{"$f":"IF(OR(B303=\"N\",'Enrollment Form'!B310<>\"Subscriber\",'Enrollment Form'!C310=\"ROC\",'Enrollment Form'!O310<>\"Multiple of Salary\"),\"-\",IF(COUNTA('Enrollment Form'!T310:U310)<2,\"N\",\"Y\"))","v":"-"},{"$f":"IF(B303=\"N\",\"\",IF(OR('Enrollment Form'!C310=\"ROC\",'Enrollment Form'!B310<>\"Subscriber\",'Enrollment Form'!O310=\"Waive\",'Enrollment Form'!O310=\"\"),\"-\",IF('Enrollment Form'!P310=\"\",\"N\",\"Y\")))","v":""},{"$f":"IF($B303=\"N\",\"\",IF(AND('Enrollment Form'!$C310=\"ROC\",'Enrollment Form'!$DS310<>\"\"),\"Y\",IF(AND('Enrollment Form'!$C310=\"ROC\",'Enrollment Form'!$DS310=\"\"),\"N\",IF(AND('Enrollment Form'!$C310=\"Enroll\",'Enrollment Form'!$B310=\"Subscriber\",'Enrollment Form'!$CQ310=\"No\",'Enrollment Form'!$DS310=\"\"),\"N\",IF(AND('Enrollment Form'!$C310=\"Enroll\",'Enrollment Form'!$B310=\"Subscriber\",'Enrollment Form'!$CQ310=\"Yes\"),\"-\",\"Y\")))))","v":""},{"$f":"IF($B303=\"N\",\"\",IF(AND('Enrollment Form'!$C310=\"ROC\",'Enrollment Form'!$DT310<>\"\"),\"Y\",IF(AND('Enrollment Form'!$C310=\"ROC\",'Enrollment Form'!$DT310=\"\"),\"N\",IF(AND('Enrollment Form'!$C310=\"Enroll\",'Enrollment Form'!$B310=\"Subscriber\",'Enrollment Form'!$CQ310=\"No\",'Enrollment Form'!$DT310=\"\"),\"N\",IF(AND('Enrollment Form'!$C310=\"Enroll\",'Enrollment Form'!$B310=\"Subscriber\",'Enrollment Form'!$CQ310=\"Yes\"),\"-\",\"Y\")))))","v":""},{"$f":"IF('Enrollment Form'!AH310=\"\",\"\",IF(ISERROR(SEARCH(\".\",'Enrollment Form'!AH310,SEARCH(\"@\",'Enrollment Form'!AH310))),\"N\",\"Y\"))","v":""},{"$f":"IF(OR($B303=\"N\",'Enrollment Form'!$G310=\"\"),\"\",IF('Enrollment Form'!$B310<>\"Subscriber\",\"-\",IF(COUNTIF('Enrollment Form'!$AS310:$AT310,\"Yes\")=2,\"N\",\"Y\")))","v":""},{"$f":"IF(OR('Enrollment Form'!$CC310=\"\",'Enrollment Form'!$CC310=\"No\"),\"-\",IF(AND('Enrollment Form'!$CC310=\"Yes\",'Enrollment Form'!$CD310=\"\"),\"N\",\"Y\"))","v":"-"},{"$f":"IF(OR('Enrollment Form'!$CE310=\"\",'Enrollment Form'!$CE310=\"No\"),\"-\",IF(AND('Enrollment Form'!$CE310=\"Yes\",'Enrollment Form'!$CF310=\"\"),\"N\",\"Y\"))","v":"-"},{"$f":"IF(OR('Enrollment Form'!$CG310=\"\",'Enrollment Form'!$CG310=\"No\"),\"-\",IF(AND('Enrollment Form'!$CG310=\"Yes\",'Enrollment Form'!$CH310=\"\"),\"N\",\"Y\"))","v":"-"},{"$f":"IF(OR('Enrollment Form'!$CG310=\"\",'Enrollment Form'!$CG310=\"No\"),\"-\",IF(AND('Enrollment Form'!$CG310=\"Yes\",'Enrollment Form'!$CI310=\"\"),\"N\",\"Y\"))","v":"-"},{"$f":"IF('Enrollment Form'!B310<>\"Subscriber\",\"-\",IF(AND('Enrollment Form'!B310=\"Subscriber\",'Enrollment Form'!C310=\"Enroll\",'Enrollment Form'!AA310=\"\"),\"N\",\"Y\"))","v":"-"},{"$f":"IF(OR('Enrollment Form'!B310=\"Subscriber\",'Enrollment Form'!B310=\"\"),\"-\",IF('Enrollment Form'!BI310=\"\",\"N\",\"Y\"))","v":"-"},{"$f":"IF('Enrollment Form'!B310<>\"Subscriber\",\"-\",IF(AND('Enrollment Form'!B310=\"Subscriber\",'Enrollment Form'!G310=\"\"),\"N\",\"Y\"))","v":"-"},{"$f":"IF('Enrollment Form'!A310=\"\",\"\",IF('Enrollment Form'!B310=\"Subscriber\",\"-\",IF(AND('Enrollment Form'!B310<>\"Subscriber\",'Enrollment Form'!G310='Enrollment Form'!H310),\"N\",\"Y\")))","v":""},0]
[311,{"$f":"IF('Enrollment Form'!$A311<>\"\",\"Y\",\"N\")","v":"N"},{"$f":"IF(AND('Enrollment Form'!$B311=\"\",'Enrollment Form'!$C311<>\"\"),\"N\",IF($B304=\"N\",\"\",\"Y\"))","v":""},{"$f":"IF(OR($B304=\"N\",'Enrollment Form'!G311=\"\"),\"\",IF('Enrollment Form'!$B311<>\"Subscriber\",\"\",IF('Enrollment Form'!$G311='Enrollment Form'!$H311,\"Y\",\"N\")))","v":""},{"$f":"IF($B304=\"N\",\"\",IF(AND(COUNTIFS('Enrollment Form'!$H$11:$H$1000,'Enrollment Form'!$H311,'Enrollment Form'!$B$11:$B$1000,'Enrollment Form'!$B311)>1,'Enrollment Form'!$H311<>\"\"),\"N\",\"Y\"))","v":""},{"$f":"IF($B304=\"N\",\"\",IF(LEN('Enrollment Form'!$Y311)=0,\"\",IF(LEN('Enrollment Form'!$Y311)<>5,\"N\",\"Y\")))","v":""},{"$f":"IF($B304=\"N\",\"\",IF(LEN('Enrollment Form'!$AD311=0),\"\",IF(LEN('Enrollment Form'!$AD311)<>5,\"N\",\"Y\")))","v":""},{"$f":"IF($B304=\"N\",\"\",IF(LEN('Enrollment Form'!$BL311=0),\"\",IF(LEN('Enrollment Form'!$BL311)<>5,\"N\",\"Y\")))","v":""},{"$f":"IF($B304=\"N\",\"\",IF(LEN('Enrollment Form'!$AE311)=0,\"\",IF(LEN('Enrollment Form'!$AE311)<>10,\"N\",\"Y\")))","v":""},{"$f":"IF($B304=\"N\",\"\",IF(LEN('Enrollment Form'!$AF311)=0,\"\",IF(LEN('Enrollment Form'!$AF311)<>10,\"N\",\"Y\")))","v":""},{"$f":"IF('Enrollment Form'!$O311<>\"Graded\",\"-\",IF(AND('Enrollment Form'!$O311=\"Graded\",'Enrollment Form'!$AO311<>\"\"),\"Y\",\"N\"))","v":"-"},{"$f":"IF($B304=\"N\",\"\",IF(OR('Enrollment Form'!$B311<>\"Subscriber\",'Enrollment Form'!$C311=\"ROC\"),\"-\",IF(AND('Enrollment Form'!$B311=\"Subscriber\",'Enrollment Form'!$C311=\"Enroll\",'Enrollment Form'!$AJ311<>\"\"),\"Y\",\"N\")))","v":""},{"$f":"IF($B304=\"N\",\"\",IF(OR('Enrollment Form'!$B311<>\"Subscriber\",'Enrollment Form'!$C311=\"ROC\"),\"-\",IF(AND('Enrollment Form'!$B311=\"Subscriber\",'Enrollment Form'!$C311=\"Enroll\",'Enrollment Form'!$AK311<>\"\"),\"Y\",\"N\")))","v":""},{"$f":"IF($B304=\"N\",\"\",IF(OR('Enrollment Form'!$B311<>\"Subscriber\",'Enrollment Form'!$C311=\"ROC\"),\"-\",IF(AND('Enrollment Form'!$B311=\"Subscriber\",'Enrollment Form'!$C311=\"Enroll\",'Enrollment Form'!$AL311<>\"\"),\"Y\",\"N\")))","v":""},{"$f":"IF($B304=\"N\",\"\",IF(OR('Enrollment Form'!$B311<>\"Subscriber\",'Enrollment Form'!$C311=\"ROC\"),\"-\",IF(AND('Enrollment Form'!$B311=\"Subscriber\",'Enrollment Form'!$C311=\"Enroll\",'Enrollment Form'!$AM311<>\"\"),\"Y\",\"N\")))","v":""},{"$f":"IF($B304=\"N\",\"\",IF(OR('Enrollment Form'!$B311<>\"Subscriber\",'Enrollment Form'!$C311=\"ROC\"),\"-\",IF(AND('Enrollment Form'!$B311=\"Subscriber\",'Enrollment Form'!$C311=\"Enroll\",'Enrollment Form'!$AN311<>\"\"),\"Y\",\"N\")))","v":""},{"$f":"IF($B304=\"N\",\"\",IF(OR('Enrollment Form'!$B311<>\"Subscriber\",'Enrollment Form'!$C311=\"ROC\"),\"-\",IF(AND('Enrollment Form'!$B311=\"Subscriber\",'Enrollment Form'!$C311=\"Enroll\",'Enrollment Form'!$AP311<>\"\"),\"Y\",\"N\")))","v":""},{"$f":"IF($B304=\"N\",\"\",IF($Q304=\"-\",\"-\",IF(AND($Q304=\"Y\",'Enrollment Form'!$AP311=\"No\"),\"-\",IF(AND($Q304=\"Y\",'Enrollment Form'!$AP311=\"Yes\",'Enrollment Form'!$AQ311<>\"\"),\"Y\",\"N\"))))","v":""},{"$f":"IF($B304=\"N\",\"\",IF(OR('Enrollment Form'!$B311<>\"Subscriber\",'Enrollment Form'!$C311=\"ROC\"),\"-\",IF(AND('Enrollment Form'!$B311=\"Subscriber\",'Enrollment Form'!$C311=\"Enroll\",'Enrollment Form'!$CO311<>\"\"),\"Y\",\"N\")))","v":""},{"$f":"IF($B304=\"N\",\"\",IF($S304=\"-\",\"-\",IF(AND($S304=\"Y\",'Enrollment Form'!$CO311=\"No\"),\"-\",IF(AND($S304=\"Y\",'Enrollment Form'!$CO311=\"Yes\",'Enrollment Form'!$CP311<>\"\"),\"Y\",\"N\"))))","v":""},{"$f":"IF(OR('Enrollment Form'!$AV311=\"Yes\",'Enrollment Form'!$AV311=\"\"),\"-\",IF(AND('Enrollment Form'!$AV311=\"No\",ISERROR(FIND(\"HMO\",VLOOKUP('Enrollment Form'!G311,'Enrollment Form'!H$11:J$1000,3,FALSE),1))=FALSE,COUNTA('Enrollment Form'!$AW311:$AZ311)=4),\"Y\",\"N\"))","v":"-"},{"$f":"IF($B304=\"N\",\"\",IF('Enrollment Form'!$B311=\"Subscriber\",\"-\",IF(COUNTA('Enrollment Form'!$BE311,'Enrollment Form'!$BG311)=2,\"Y\",\"N\")))","v":""},{"$f":"IF($B304=\"N\",\"\",IF(OR('Enrollment Form'!$AU311=\"\",'Enrollment Form'!$AU311=\"No\"),\"-\",IF(AND('Enrollment Form'!$AU311=\"Yes\",COUNTA('Enrollment Form'!$CK311)=1),\"Y\",\"N\")))","v":""},{"$f":"IF(OR('Enrollment Form'!$CK311=\"\",'Enrollment Form'!$CK311=\"No\"),\"-\",IF(COUNTA('Enrollment Form'!$CM311:$CN311)=2,\"Y\",\"N\"))","v":"-"},{"$f":"IF($B304=\"N\",\"\",IF(COUNTIF('Enrollment Form'!$CZ311:$DO311,\"Other\")=COUNTA('Enrollment Form'!$DF311,'Enrollment Form'!$DA311,'Enrollment Form'!$DK311,'Enrollment Form'!$DP311),\"Y\",\"N\"))","v":""},{"$f":"IF($B304=\"N\",\"\",IF(OR('Enrollment Form'!B311<>\"Subscriber\",'Enrollment Form'!C311=\"ROC\",COUNTIF('Enrollment Form'!AS311:AT311,\"Yes\")>=1),\"-\",IF(AND('Enrollment Form'!C311=\"Enroll\",COUNTIF('Enrollment Form'!AS311:AT311,\"No\")=2,'Enrollment Form'!AU311=\"\"),\"N\",\"Y\")))","v":""},{"$f":"IF(OR(B304=\"N\",'Enrollment Form'!B311<>\"Subscriber\",'Enrollment Form'!C311=\"ROC\",'Enrollment Form'!O311<>\"Multiple of Salary\"),\"-\",IF(COUNTA('Enrollment Form'!T311:U311)<2,\"N\",\"Y\"))","v":"-"},{"$f":"IF(B304=\"N\",\"\",IF(OR('Enrollment Form'!C311=\"ROC\",'Enrollment Form'!B311<>\"Subscriber\",'Enrollment Form'!O311=\"Waive\",'Enrollment Form'!O311=\"\"),\"-\",IF('Enrollment Form'!P311=\"\",\"N\",\"Y\")))","v":""},{"$f":"IF($B304=\"N\",\"\",IF(AND('Enrollment Form'!$C311=\"ROC\",'Enrollment Form'!$DS311<>\"\"),\"Y\",IF(AND('Enrollment Form'!$C311=\"ROC\",'Enrollment Form'!$DS311=\"\"),\"N\",IF(AND('Enrollment Form'!$C311=\"Enroll\",'Enrollment Form'!$B311=\"Subscriber\",'Enrollment Form'!$CQ311=\"No\",'Enrollment Form'!$DS311=\"\"),\"N\",IF(AND('Enrollment Form'!$C311=\"Enroll\",'Enrollment Form'!$B311=\"Subscriber\",'Enrollment Form'!$CQ311=\"Yes\"),\"-\",\"Y\")))))","v":""},{"$f":"IF($B304=\"N\",\"\",IF(AND('Enrollment Form'!$C311=\"ROC\",'Enrollment Form'!$DT311<>\"\"),\"Y\",IF(AND('Enrollment Form'!$C311=\"ROC\",'Enrollment Form'!$DT311=\"\"),\"N\",IF(AND('Enrollment Form'!$C311=\"Enroll\",'Enrollment Form'!$B311=\"Subscriber\",'Enrollment Form'!$CQ311=\"No\",'Enrollment Form'!$DT311=\"\"),\"N\",IF(AND('Enrollment Form'!$C311=\"Enroll\",'Enrollment Form'!$B311=\"Subscriber\",'Enrollment Form'!$CQ311=\"Yes\"),\"-\",\"Y\")))))","v":""},{"$f":"IF('Enrollment Form'!AH311=\"\",\"\",IF(ISERROR(SEARCH(\".\",'Enrollment Form'!AH311,SEARCH(\"@\",'Enrollment Form'!AH311))),\"N\",\"Y\"))","v":""},{"$f":"IF(OR($B304=\"N\",'Enrollment Form'!$G311=\"\"),\"\",IF('Enrollment Form'!$B311<>\"Subscriber\",\"-\",IF(COUNTIF('Enrollment Form'!$AS311:$AT311,\"Yes\")=2,\"N\",\"Y\")))","v":""},{"$f":"IF(OR('Enrollment Form'!$CC311=\"\",'Enrollment Form'!$CC311=\"No\"),\"-\",IF(AND('Enrollment Form'!$CC311=\"Yes\",'Enrollment Form'!$CD311=\"\"),\"N\",\"Y\"))","v":"-"},{"$f":"IF(OR('Enrollment Form'!$CE311=\"\",'Enrollment Form'!$CE311=\"No\"),\"-\",IF(AND('Enrollment Form'!$CE311=\"Yes\",'Enrollment Form'!$CF311=\"\"),\"N\",\"Y\"))","v":"-"},{"$f":"IF(OR('Enrollment Form'!$CG311=\"\",'Enrollment Form'!$CG311=\"No\"),\"-\",IF(AND('Enrollment Form'!$CG311=\"Yes\",'Enrollment Form'!$CH311=\"\"),\"N\",\"Y\"))","v":"-"},{"$f":"IF(OR('Enrollment Form'!$CG311=\"\",'Enrollment Form'!$CG311=\"No\"),\"-\",IF(AND('Enrollment Form'!$CG311=\"Yes\",'Enrollment Form'!$CI311=\"\"),\"N\",\"Y\"))","v":"-"},{"$f":"IF('Enrollment Form'!B311<>\"Subscriber\",\"-\",IF(AND('Enrollment Form'!B311=\"Subscriber\",'Enrollment Form'!C311=\"Enroll\",'Enrollment Form'!AA311=\"\"),\"N\",\"Y\"))","v":"-"},{"$f":"IF(OR('Enrollment Form'!B311=\"Subscriber\",'Enrollment Form'!B311=\"\"),\"-\",IF('Enrollment Form'!BI311=\"\",\"N\",\"Y\"))","v":"-"},{"$f":"IF('Enrollment Form'!B311<>\"Subscriber\",\"-\",IF(AND('Enrollment Form'!B311=\"Subscriber\",'Enrollment Form'!G311=\"\"),\"N\",\"Y\"))","v":"-"},{"$f":"IF('Enrollment Form'!A311=\"\",\"\",IF('Enrollment Form'!B311=\"Subscriber\",\"-\",IF(AND('Enrollment Form'!B311<>\"Subscriber\",'Enrollment Form'!G311='Enrollment Form'!H311),\"N\",\"Y\")))","v":""},0]
[312,{"$f":"IF('Enrollment Form'!$A312<>\"\",\"Y\",\"N\")","v":"N"},{"$f":"IF(AND('Enrollment Form'!$B312=\"\",'Enrollment Form'!$C312<>\"\"),\"N\",IF($B305=\"N\",\"\",\"Y\"))","v":""},{"$f":"IF(OR($B305=\"N\",'Enrollment Form'!G312=\"\"),\"\",IF('Enrollment Form'!$B312<>\"Subscriber\",\"\",IF('Enrollment Form'!$G312='Enrollment Form'!$H312,\"Y\",\"N\")))","v":""},{"$f":"IF($B305=\"N\",\"\",IF(AND(COUNTIFS('Enrollment Form'!$H$11:$H$1000,'Enrollment Form'!$H312,'Enrollment Form'!$B$11:$B$1000,'Enrollment Form'!$B312)>1,'Enrollment Form'!$H312<>\"\"),\"N\",\"Y\"))","v":""},{"$f":"IF($B305=\"N\",\"\",IF(LEN('Enrollment Form'!$Y312)=0,\"\",IF(LEN('Enrollment Form'!$Y312)<>5,\"N\",\"Y\")))","v":""},{"$f":"IF($B305=\"N\",\"\",IF(LEN('Enrollment Form'!$AD312=0),\"\",IF(LEN('Enrollment Form'!$AD312)<>5,\"N\",\"Y\")))","v":""},{"$f":"IF($B305=\"N\",\"\",IF(LEN('Enrollment Form'!$BL312=0),\"\",IF(LEN('Enrollment Form'!$BL312)<>5,\"N\",\"Y\")))","v":""},{"$f":"IF($B305=\"N\",\"\",IF(LEN('Enrollment Form'!$AE312)=0,\"\",IF(LEN('Enrollment Form'!$AE312)<>10,\"N\",\"Y\")))","v":""},{"$f":"IF($B305=\"N\",\"\",IF(LEN('Enrollment Form'!$AF312)=0,\"\",IF(LEN('Enrollment Form'!$AF312)<>10,\"N\",\"Y\")))","v":""},{"$f":"IF('Enrollment Form'!$O312<>\"Graded\",\"-\",IF(AND('Enrollment Form'!$O312=\"Graded\",'Enrollment Form'!$AO312<>\"\"),\"Y\",\"N\"))","v":"-"},{"$f":"IF($B305=\"N\",\"\",IF(OR('Enrollment Form'!$B312<>\"Subscriber\",'Enrollment Form'!$C312=\"ROC\"),\"-\",IF(AND('Enrollment Form'!$B312=\"Subscriber\",'Enrollment Form'!$C312=\"Enroll\",'Enrollment Form'!$AJ312<>\"\"),\"Y\",\"N\")))","v":""},{"$f":"IF($B305=\"N\",\"\",IF(OR('Enrollment Form'!$B312<>\"Subscriber\",'Enrollment Form'!$C312=\"ROC\"),\"-\",IF(AND('Enrollment Form'!$B312=\"Subscriber\",'Enrollment Form'!$C312=\"Enroll\",'Enrollment Form'!$AK312<>\"\"),\"Y\",\"N\")))","v":""},{"$f":"IF($B305=\"N\",\"\",IF(OR('Enrollment Form'!$B312<>\"Subscriber\",'Enrollment Form'!$C312=\"ROC\"),\"-\",IF(AND('Enrollment Form'!$B312=\"Subscriber\",'Enrollment Form'!$C312=\"Enroll\",'Enrollment Form'!$AL312<>\"\"),\"Y\",\"N\")))","v":""},{"$f":"IF($B305=\"N\",\"\",IF(OR('Enrollment Form'!$B312<>\"Subscriber\",'Enrollment Form'!$C312=\"ROC\"),\"-\",IF(AND('Enrollment Form'!$B312=\"Subscriber\",'Enrollment Form'!$C312=\"Enroll\",'Enrollment Form'!$AM312<>\"\"),\"Y\",\"N\")))","v":""},{"$f":"IF($B305=\"N\",\"\",IF(OR('Enrollment Form'!$B312<>\"Subscriber\",'Enrollment Form'!$C312=\"ROC\"),\"-\",IF(AND('Enrollment Form'!$B312=\"Subscriber\",'Enrollment Form'!$C312=\"Enroll\",'Enrollment Form'!$AN312<>\"\"),\"Y\",\"N\")))","v":""},{"$f":"IF($B305=\"N\",\"\",IF(OR('Enrollment Form'!$B312<>\"Subscriber\",'Enrollment Form'!$C312=\"ROC\"),\"-\",IF(AND('Enrollment Form'!$B312=\"Subscriber\",'Enrollment Form'!$C312=\"Enroll\",'Enrollment Form'!$AP312<>\"\"),\"Y\",\"N\")))","v":""},{"$f":"IF($B305=\"N\",\"\",IF($Q305=\"-\",\"-\",IF(AND($Q305=\"Y\",'Enrollment Form'!$AP312=\"No\"),\"-\",IF(AND($Q305=\"Y\",'Enrollment Form'!$AP312=\"Yes\",'Enrollment Form'!$AQ312<>\"\"),\"Y\",\"N\"))))","v":""},{"$f":"IF($B305=\"N\",\"\",IF(OR('Enrollment Form'!$B312<>\"Subscriber\",'Enrollment Form'!$C312=\"ROC\"),\"-\",IF(AND('Enrollment Form'!$B312=\"Subscriber\",'Enrollment Form'!$C312=\"Enroll\",'Enrollment Form'!$CO312<>\"\"),\"Y\",\"N\")))","v":""},{"$f":"IF($B305=\"N\",\"\",IF($S305=\"-\",\"-\",IF(AND($S305=\"Y\",'Enrollment Form'!$CO312=\"No\"),\"-\",IF(AND($S305=\"Y\",'Enrollment Form'!$CO312=\"Yes\",'Enrollment Form'!$CP312<>\"\"),\"Y\",\"N\"))))","v":""},{"$f":"IF(OR('Enrollment Form'!$AV312=\"Yes\",'Enrollment Form'!$AV312=\"\"),\"-\",IF(AND('Enrollment Form'!$AV312=\"No\",ISERROR(FIND(\"HMO\",VLOOKUP('Enrollment Form'!G312,'Enrollment Form'!H$11:J$1000,3,FALSE),1))=FALSE,COUNTA('Enrollment Form'!$AW312:$AZ312)=4),\"Y\",\"N\"))","v":"-"},{"$f":"IF($B305=\"N\",\"\",IF('Enrollment Form'!$B312=\"Subscriber\",\"-\",IF(COUNTA('Enrollment Form'!$BE312,'Enrollment Form'!$BG312)=2,\"Y\",\"N\")))","v":""},{"$f":"IF($B305=\"N\",\"\",IF(OR('Enrollment Form'!$AU312=\"\",'Enrollment Form'!$AU312=\"No\"),\"-\",IF(AND('Enrollment Form'!$AU312=\"Yes\",COUNTA('Enrollment Form'!$CK312)=1),\"Y\",\"N\")))","v":""},{"$f":"IF(OR('Enrollment Form'!$CK312=\"\",'Enrollment Form'!$CK312=\"No\"),\"-\",IF(COUNTA('Enrollment Form'!$CM312:$CN312)=2,\"Y\",\"N\"))","v":"-"},{"$f":"IF($B305=\"N\",\"\",IF(COUNTIF('Enrollment Form'!$CZ312:$DO312,\"Other\")=COUNTA('Enrollment Form'!$DF312,'Enrollment Form'!$DA312,'Enrollment Form'!$DK312,'Enrollment Form'!$DP312),\"Y\",\"N\"))","v":""},{"$f":"IF($B305=\"N\",\"\",IF(OR('Enrollment Form'!B312<>\"Subscriber\",'Enrollment Form'!C312=\"ROC\",COUNTIF('Enrollment Form'!AS312:AT312,\"Yes\")>=1),\"-\",IF(AND('Enrollment Form'!C312=\"Enroll\",COUNTIF('Enrollment Form'!AS312:AT312,\"No\")=2,'Enrollment Form'!AU312=\"\"),\"N\",\"Y\")))","v":""},{"$f":"IF(OR(B305=\"N\",'Enrollment Form'!B312<>\"Subscriber\",'Enrollment Form'!C312=\"ROC\",'Enrollment Form'!O312<>\"Multiple of Salary\"),\"-\",IF(COUNTA('Enrollment Form'!T312:U312)<2,\"N\",\"Y\"))","v":"-"},{"$f":"IF(B305=\"N\",\"\",IF(OR('Enrollment Form'!C312=\"ROC\",'Enrollment Form'!B312<>\"Subscriber\",'Enrollment Form'!O312=\"Waive\",'Enrollment Form'!O312=\"\"),\"-\",IF('Enrollment Form'!P312=\"\",\"N\",\"Y\")))","v":""},{"$f":"IF($B305=\"N\",\"\",IF(AND('Enrollment Form'!$C312=\"ROC\",'Enrollment Form'!$DS312<>\"\"),\"Y\",IF(AND('Enrollment Form'!$C312=\"ROC\",'Enrollment Form'!$DS312=\"\"),\"N\",IF(AND('Enrollment Form'!$C312=\"Enroll\",'Enrollment Form'!$B312=\"Subscriber\",'Enrollment Form'!$CQ312=\"No\",'Enrollment Form'!$DS312=\"\"),\"N\",IF(AND('Enrollment Form'!$C312=\"Enroll\",'Enrollment Form'!$B312=\"Subscriber\",'Enrollment Form'!$CQ312=\"Yes\"),\"-\",\"Y\")))))","v":""},{"$f":"IF($B305=\"N\",\"\",IF(AND('Enrollment Form'!$C312=\"ROC\",'Enrollment Form'!$DT312<>\"\"),\"Y\",IF(AND('Enrollment Form'!$C312=\"ROC\",'Enrollment Form'!$DT312=\"\"),\"N\",IF(AND('Enrollment Form'!$C312=\"Enroll\",'Enrollment Form'!$B312=\"Subscriber\",'Enrollment Form'!$CQ312=\"No\",'Enrollment Form'!$DT312=\"\"),\"N\",IF(AND('Enrollment Form'!$C312=\"Enroll\",'Enrollment Form'!$B312=\"Subscriber\",'Enrollment Form'!$CQ312=\"Yes\"),\"-\",\"Y\")))))","v":""},{"$f":"IF('Enrollment Form'!AH312=\"\",\"\",IF(ISERROR(SEARCH(\".\",'Enrollment Form'!AH312,SEARCH(\"@\",'Enrollment Form'!AH312))),\"N\",\"Y\"))","v":""},{"$f":"IF(OR($B305=\"N\",'Enrollment Form'!$G312=\"\"),\"\",IF('Enrollment Form'!$B312<>\"Subscriber\",\"-\",IF(COUNTIF('Enrollment Form'!$AS312:$AT312,\"Yes\")=2,\"N\",\"Y\")))","v":""},{"$f":"IF(OR('Enrollment Form'!$CC312=\"\",'Enrollment Form'!$CC312=\"No\"),\"-\",IF(AND('Enrollment Form'!$CC312=\"Yes\",'Enrollment Form'!$CD312=\"\"),\"N\",\"Y\"))","v":"-"},{"$f":"IF(OR('Enrollment Form'!$CE312=\"\",'Enrollment Form'!$CE312=\"No\"),\"-\",IF(AND('Enrollment Form'!$CE312=\"Yes\",'Enrollment Form'!$CF312=\"\"),\"N\",\"Y\"))","v":"-"},{"$f":"IF(OR('Enrollment Form'!$CG312=\"\",'Enrollment Form'!$CG312=\"No\"),\"-\",IF(AND('Enrollment Form'!$CG312=\"Yes\",'Enrollment Form'!$CH312=\"\"),\"N\",\"Y\"))","v":"-"},{"$f":"IF(OR('Enrollment Form'!$CG312=\"\",'Enrollment Form'!$CG312=\"No\"),\"-\",IF(AND('Enrollment Form'!$CG312=\"Yes\",'Enrollment Form'!$CI312=\"\"),\"N\",\"Y\"))","v":"-"},{"$f":"IF('Enrollment Form'!B312<>\"Subscriber\",\"-\",IF(AND('Enrollment Form'!B312=\"Subscriber\",'Enrollment Form'!C312=\"Enroll\",'Enrollment Form'!AA312=\"\"),\"N\",\"Y\"))","v":"-"},{"$f":"IF(OR('Enrollment Form'!B312=\"Subscriber\",'Enrollment Form'!B312=\"\"),\"-\",IF('Enrollment Form'!BI312=\"\",\"N\",\"Y\"))","v":"-"},{"$f":"IF('Enrollment Form'!B312<>\"Subscriber\",\"-\",IF(AND('Enrollment Form'!B312=\"Subscriber\",'Enrollment Form'!G312=\"\"),\"N\",\"Y\"))","v":"-"},{"$f":"IF('Enrollment Form'!A312=\"\",\"\",IF('Enrollment Form'!B312=\"Subscriber\",\"-\",IF(AND('Enrollment Form'!B312<>\"Subscriber\",'Enrollment Form'!G312='Enrollment Form'!H312),\"N\",\"Y\")))","v":""},0]
[313,{"$f":"IF('Enrollment Form'!$A313<>\"\",\"Y\",\"N\")","v":"N"},{"$f":"IF(AND('Enrollment Form'!$B313=\"\",'Enrollment Form'!$C313<>\"\"),\"N\",IF($B306=\"N\",\"\",\"Y\"))","v":""},{"$f":"IF(OR($B306=\"N\",'Enrollment Form'!G313=\"\"),\"\",IF('Enrollment Form'!$B313<>\"Subscriber\",\"\",IF('Enrollment Form'!$G313='Enrollment Form'!$H313,\"Y\",\"N\")))","v":""},{"$f":"IF($B306=\"N\",\"\",IF(AND(COUNTIFS('Enrollment Form'!$H$11:$H$1000,'Enrollment Form'!$H313,'Enrollment Form'!$B$11:$B$1000,'Enrollment Form'!$B313)>1,'Enrollment Form'!$H313<>\"\"),\"N\",\"Y\"))","v":""},{"$f":"IF($B306=\"N\",\"\",IF(LEN('Enrollment Form'!$Y313)=0,\"\",IF(LEN('Enrollment Form'!$Y313)<>5,\"N\",\"Y\")))","v":""},{"$f":"IF($B306=\"N\",\"\",IF(LEN('Enrollment Form'!$AD313=0),\"\",IF(LEN('Enrollment Form'!$AD313)<>5,\"N\",\"Y\")))","v":""},{"$f":"IF($B306=\"N\",\"\",IF(LEN('Enrollment Form'!$BL313=0),\"\",IF(LEN('Enrollment Form'!$BL313)<>5,\"N\",\"Y\")))","v":""},{"$f":"IF($B306=\"N\",\"\",IF(LEN('Enrollment Form'!$AE313)=0,\"\",IF(LEN('Enrollment Form'!$AE313)<>10,\"N\",\"Y\")))","v":""},{"$f":"IF($B306=\"N\",\"\",IF(LEN('Enrollment Form'!$AF313)=0,\"\",IF(LEN('Enrollment Form'!$AF313)<>10,\"N\",\"Y\")))","v":""},{"$f":"IF('Enrollment Form'!$O313<>\"Graded\",\"-\",IF(AND('Enrollment Form'!$O313=\"Graded\",'Enrollment Form'!$AO313<>\"\"),\"Y\",\"N\"))","v":"-"},{"$f":"IF($B306=\"N\",\"\",IF(OR('Enrollment Form'!$B313<>\"Subscriber\",'Enrollment Form'!$C313=\"ROC\"),\"-\",IF(AND('Enrollment Form'!$B313=\"Subscriber\",'Enrollment Form'!$C313=\"Enroll\",'Enrollment Form'!$AJ313<>\"\"),\"Y\",\"N\")))","v":""},{"$f":"IF($B306=\"N\",\"\",IF(OR('Enrollment Form'!$B313<>\"Subscriber\",'Enrollment Form'!$C313=\"ROC\"),\"-\",IF(AND('Enrollment Form'!$B313=\"Subscriber\",'Enrollment Form'!$C313=\"Enroll\",'Enrollment Form'!$AK313<>\"\"),\"Y\",\"N\")))","v":""},{"$f":"IF($B306=\"N\",\"\",IF(OR('Enrollment Form'!$B313<>\"Subscriber\",'Enrollment Form'!$C313=\"ROC\"),\"-\",IF(AND('Enrollment Form'!$B313=\"Subscriber\",'Enrollment Form'!$C313=\"Enroll\",'Enrollment Form'!$AL313<>\"\"),\"Y\",\"N\")))","v":""},{"$f":"IF($B306=\"N\",\"\",IF(OR('Enrollment Form'!$B313<>\"Subscriber\",'Enrollment Form'!$C313=\"ROC\"),\"-\",IF(AND('Enrollment Form'!$B313=\"Subscriber\",'Enrollment Form'!$C313=\"Enroll\",'Enrollment Form'!$AM313<>\"\"),\"Y\",\"N\")))","v":""},{"$f":"IF($B306=\"N\",\"\",IF(OR('Enrollment Form'!$B313<>\"Subscriber\",'Enrollment Form'!$C313=\"ROC\"),\"-\",IF(AND('Enrollment Form'!$B313=\"Subscriber\",'Enrollment Form'!$C313=\"Enroll\",'Enrollment Form'!$AN313<>\"\"),\"Y\",\"N\")))","v":""},{"$f":"IF($B306=\"N\",\"\",IF(OR('Enrollment Form'!$B313<>\"Subscriber\",'Enrollment Form'!$C313=\"ROC\"),\"-\",IF(AND('Enrollment Form'!$B313=\"Subscriber\",'Enrollment Form'!$C313=\"Enroll\",'Enrollment Form'!$AP313<>\"\"),\"Y\",\"N\")))","v":""},{"$f":"IF($B306=\"N\",\"\",IF($Q306=\"-\",\"-\",IF(AND($Q306=\"Y\",'Enrollment Form'!$AP313=\"No\"),\"-\",IF(AND($Q306=\"Y\",'Enrollment Form'!$AP313=\"Yes\",'Enrollment Form'!$AQ313<>\"\"),\"Y\",\"N\"))))","v":""},{"$f":"IF($B306=\"N\",\"\",IF(OR('Enrollment Form'!$B313<>\"Subscriber\",'Enrollment Form'!$C313=\"ROC\"),\"-\",IF(AND('Enrollment Form'!$B313=\"Subscriber\",'Enrollment Form'!$C313=\"Enroll\",'Enrollment Form'!$CO313<>\"\"),\"Y\",\"N\")))","v":""},{"$f":"IF($B306=\"N\",\"\",IF($S306=\"-\",\"-\",IF(AND($S306=\"Y\",'Enrollment Form'!$CO313=\"No\"),\"-\",IF(AND($S306=\"Y\",'Enrollment Form'!$CO313=\"Yes\",'Enrollment Form'!$CP313<>\"\"),\"Y\",\"N\"))))","v":""},{"$f":"IF(OR('Enrollment Form'!$AV313=\"Yes\",'Enrollment Form'!$AV313=\"\"),\"-\",IF(AND('Enrollment Form'!$AV313=\"No\",ISERROR(FIND(\"HMO\",VLOOKUP('Enrollment Form'!G313,'Enrollment Form'!H$11:J$1000,3,FALSE),1))=FALSE,COUNTA('Enrollment Form'!$AW313:$AZ313)=4),\"Y\",\"N\"))","v":"-"},{"$f":"IF($B306=\"N\",\"\",IF('Enrollment Form'!$B313=\"Subscriber\",\"-\",IF(COUNTA('Enrollment Form'!$BE313,'Enrollment Form'!$BG313)=2,\"Y\",\"N\")))","v":""},{"$f":"IF($B306=\"N\",\"\",IF(OR('Enrollment Form'!$AU313=\"\",'Enrollment Form'!$AU313=\"No\"),\"-\",IF(AND('Enrollment Form'!$AU313=\"Yes\",COUNTA('Enrollment Form'!$CK313)=1),\"Y\",\"N\")))","v":""},{"$f":"IF(OR('Enrollment Form'!$CK313=\"\",'Enrollment Form'!$CK313=\"No\"),\"-\",IF(COUNTA('Enrollment Form'!$CM313:$CN313)=2,\"Y\",\"N\"))","v":"-"},{"$f":"IF($B306=\"N\",\"\",IF(COUNTIF('Enrollment Form'!$CZ313:$DO313,\"Other\")=COUNTA('Enrollment Form'!$DF313,'Enrollment Form'!$DA313,'Enrollment Form'!$DK313,'Enrollment Form'!$DP313),\"Y\",\"N\"))","v":""},{"$f":"IF($B306=\"N\",\"\",IF(OR('Enrollment Form'!B313<>\"Subscriber\",'Enrollment Form'!C313=\"ROC\",COUNTIF('Enrollment Form'!AS313:AT313,\"Yes\")>=1),\"-\",IF(AND('Enrollment Form'!C313=\"Enroll\",COUNTIF('Enrollment Form'!AS313:AT313,\"No\")=2,'Enrollment Form'!AU313=\"\"),\"N\",\"Y\")))","v":""},{"$f":"IF(OR(B306=\"N\",'Enrollment Form'!B313<>\"Subscriber\",'Enrollment Form'!C313=\"ROC\",'Enrollment Form'!O313<>\"Multiple of Salary\"),\"-\",IF(COUNTA('Enrollment Form'!T313:U313)<2,\"N\",\"Y\"))","v":"-"},{"$f":"IF(B306=\"N\",\"\",IF(OR('Enrollment Form'!C313=\"ROC\",'Enrollment Form'!B313<>\"Subscriber\",'Enrollment Form'!O313=\"Waive\",'Enrollment Form'!O313=\"\"),\"-\",IF('Enrollment Form'!P313=\"\",\"N\",\"Y\")))","v":""},{"$f":"IF($B306=\"N\",\"\",IF(AND('Enrollment Form'!$C313=\"ROC\",'Enrollment Form'!$DS313<>\"\"),\"Y\",IF(AND('Enrollment Form'!$C313=\"ROC\",'Enrollment Form'!$DS313=\"\"),\"N\",IF(AND('Enrollment Form'!$C313=\"Enroll\",'Enrollment Form'!$B313=\"Subscriber\",'Enrollment Form'!$CQ313=\"No\",'Enrollment Form'!$DS313=\"\"),\"N\",IF(AND('Enrollment Form'!$C313=\"Enroll\",'Enrollment Form'!$B313=\"Subscriber\",'Enrollment Form'!$CQ313=\"Yes\"),\"-\",\"Y\")))))","v":""},{"$f":"IF($B306=\"N\",\"\",IF(AND('Enrollment Form'!$C313=\"ROC\",'Enrollment Form'!$DT313<>\"\"),\"Y\",IF(AND('Enrollment Form'!$C313=\"ROC\",'Enrollment Form'!$DT313=\"\"),\"N\",IF(AND('Enrollment Form'!$C313=\"Enroll\",'Enrollment Form'!$B313=\"Subscriber\",'Enrollment Form'!$CQ313=\"No\",'Enrollment Form'!$DT313=\"\"),\"N\",IF(AND('Enrollment Form'!$C313=\"Enroll\",'Enrollment Form'!$B313=\"Subscriber\",'Enrollment Form'!$CQ313=\"Yes\"),\"-\",\"Y\")))))","v":""},{"$f":"IF('Enrollment Form'!AH313=\"\",\"\",IF(ISERROR(SEARCH(\".\",'Enrollment Form'!AH313,SEARCH(\"@\",'Enrollment Form'!AH313))),\"N\",\"Y\"))","v":""},{"$f":"IF(OR($B306=\"N\",'Enrollment Form'!$G313=\"\"),\"\",IF('Enrollment Form'!$B313<>\"Subscriber\",\"-\",IF(COUNTIF('Enrollment Form'!$AS313:$AT313,\"Yes\")=2,\"N\",\"Y\")))","v":""},{"$f":"IF(OR('Enrollment Form'!$CC313=\"\",'Enrollment Form'!$CC313=\"No\"),\"-\",IF(AND('Enrollment Form'!$CC313=\"Yes\",'Enrollment Form'!$CD313=\"\"),\"N\",\"Y\"))","v":"-"},{"$f":"IF(OR('Enrollment Form'!$CE313=\"\",'Enrollment Form'!$CE313=\"No\"),\"-\",IF(AND('Enrollment Form'!$CE313=\"Yes\",'Enrollment Form'!$CF313=\"\"),\"N\",\"Y\"))","v":"-"},{"$f":"IF(OR('Enrollment Form'!$CG313=\"\",'Enrollment Form'!$CG313=\"No\"),\"-\",IF(AND('Enrollment Form'!$CG313=\"Yes\",'Enrollment Form'!$CH313=\"\"),\"N\",\"Y\"))","v":"-"},{"$f":"IF(OR('Enrollment Form'!$CG313=\"\",'Enrollment Form'!$CG313=\"No\"),\"-\",IF(AND('Enrollment Form'!$CG313=\"Yes\",'Enrollment Form'!$CI313=\"\"),\"N\",\"Y\"))","v":"-"},{"$f":"IF('Enrollment Form'!B313<>\"Subscriber\",\"-\",IF(AND('Enrollment Form'!B313=\"Subscriber\",'Enrollment Form'!C313=\"Enroll\",'Enrollment Form'!AA313=\"\"),\"N\",\"Y\"))","v":"-"},{"$f":"IF(OR('Enrollment Form'!B313=\"Subscriber\",'Enrollment Form'!B313=\"\"),\"-\",IF('Enrollment Form'!BI313=\"\",\"N\",\"Y\"))","v":"-"},{"$f":"IF('Enrollment Form'!B313<>\"Subscriber\",\"-\",IF(AND('Enrollment Form'!B313=\"Subscriber\",'Enrollment Form'!G313=\"\"),\"N\",\"Y\"))","v":"-"},{"$f":"IF('Enrollment Form'!A313=\"\",\"\",IF('Enrollment Form'!B313=\"Subscriber\",\"-\",IF(AND('Enrollment Form'!B313<>\"Subscriber\",'Enrollment Form'!G313='Enrollment Form'!H313),\"N\",\"Y\")))","v":""},0]
[314,{"$f":"IF('Enrollment Form'!$A314<>\"\",\"Y\",\"N\")","v":"N"},{"$f":"IF(AND('Enrollment Form'!$B314=\"\",'Enrollment Form'!$C314<>\"\"),\"N\",IF($B307=\"N\",\"\",\"Y\"))","v":""},{"$f":"IF(OR($B307=\"N\",'Enrollment Form'!G314=\"\"),\"\",IF('Enrollment Form'!$B314<>\"Subscriber\",\"\",IF('Enrollment Form'!$G314='Enrollment Form'!$H314,\"Y\",\"N\")))","v":""},{"$f":"IF($B307=\"N\",\"\",IF(AND(COUNTIFS('Enrollment Form'!$H$11:$H$1000,'Enrollment Form'!$H314,'Enrollment Form'!$B$11:$B$1000,'Enrollment Form'!$B314)>1,'Enrollment Form'!$H314<>\"\"),\"N\",\"Y\"))","v":""},{"$f":"IF($B307=\"N\",\"\",IF(LEN('Enrollment Form'!$Y314)=0,\"\",IF(LEN('Enrollment Form'!$Y314)<>5,\"N\",\"Y\")))","v":""},{"$f":"IF($B307=\"N\",\"\",IF(LEN('Enrollment Form'!$AD314=0),\"\",IF(LEN('Enrollment Form'!$AD314)<>5,\"N\",\"Y\")))","v":""},{"$f":"IF($B307=\"N\",\"\",IF(LEN('Enrollment Form'!$BL314=0),\"\",IF(LEN('Enrollment Form'!$BL314)<>5,\"N\",\"Y\")))","v":""},{"$f":"IF($B307=\"N\",\"\",IF(LEN('Enrollment Form'!$AE314)=0,\"\",IF(LEN('Enrollment Form'!$AE314)<>10,\"N\",\"Y\")))","v":""},{"$f":"IF($B307=\"N\",\"\",IF(LEN('Enrollment Form'!$AF314)=0,\"\",IF(LEN('Enrollment Form'!$AF314)<>10,\"N\",\"Y\")))","v":""},{"$f":"IF('Enrollment Form'!$O314<>\"Graded\",\"-\",IF(AND('Enrollment Form'!$O314=\"Graded\",'Enrollment Form'!$AO314<>\"\"),\"Y\",\"N\"))","v":"-"},{"$f":"IF($B307=\"N\",\"\",IF(OR('Enrollment Form'!$B314<>\"Subscriber\",'Enrollment Form'!$C314=\"ROC\"),\"-\",IF(AND('Enrollment Form'!$B314=\"Subscriber\",'Enrollment Form'!$C314=\"Enroll\",'Enrollment Form'!$AJ314<>\"\"),\"Y\",\"N\")))","v":""},{"$f":"IF($B307=\"N\",\"\",IF(OR('Enrollment Form'!$B314<>\"Subscriber\",'Enrollment Form'!$C314=\"ROC\"),\"-\",IF(AND('Enrollment Form'!$B314=\"Subscriber\",'Enrollment Form'!$C314=\"Enroll\",'Enrollment Form'!$AK314<>\"\"),\"Y\",\"N\")))","v":""},{"$f":"IF($B307=\"N\",\"\",IF(OR('Enrollment Form'!$B314<>\"Subscriber\",'Enrollment Form'!$C314=\"ROC\"),\"-\",IF(AND('Enrollment Form'!$B314=\"Subscriber\",'Enrollment Form'!$C314=\"Enroll\",'Enrollment Form'!$AL314<>\"\"),\"Y\",\"N\")))","v":""},{"$f":"IF($B307=\"N\",\"\",IF(OR('Enrollment Form'!$B314<>\"Subscriber\",'Enrollment Form'!$C314=\"ROC\"),\"-\",IF(AND('Enrollment Form'!$B314=\"Subscriber\",'Enrollment Form'!$C314=\"Enroll\",'Enrollment Form'!$AM314<>\"\"),\"Y\",\"N\")))","v":""},{"$f":"IF($B307=\"N\",\"\",IF(OR('Enrollment Form'!$B314<>\"Subscriber\",'Enrollment Form'!$C314=\"ROC\"),\"-\",IF(AND('Enrollment Form'!$B314=\"Subscriber\",'Enrollment Form'!$C314=\"Enroll\",'Enrollment Form'!$AN314<>\"\"),\"Y\",\"N\")))","v":""},{"$f":"IF($B307=\"N\",\"\",IF(OR('Enrollment Form'!$B314<>\"Subscriber\",'Enrollment Form'!$C314=\"ROC\"),\"-\",IF(AND('Enrollment Form'!$B314=\"Subscriber\",'Enrollment Form'!$C314=\"Enroll\",'Enrollment Form'!$AP314<>\"\"),\"Y\",\"N\")))","v":""},{"$f":"IF($B307=\"N\",\"\",IF($Q307=\"-\",\"-\",IF(AND($Q307=\"Y\",'Enrollment Form'!$AP314=\"No\"),\"-\",IF(AND($Q307=\"Y\",'Enrollment Form'!$AP314=\"Yes\",'Enrollment Form'!$AQ314<>\"\"),\"Y\",\"N\"))))","v":""},{"$f":"IF($B307=\"N\",\"\",IF(OR('Enrollment Form'!$B314<>\"Subscriber\",'Enrollment Form'!$C314=\"ROC\"),\"-\",IF(AND('Enrollment Form'!$B314=\"Subscriber\",'Enrollment Form'!$C314=\"Enroll\",'Enrollment Form'!$CO314<>\"\"),\"Y\",\"N\")))","v":""},{"$f":"IF($B307=\"N\",\"\",IF($S307=\"-\",\"-\",IF(AND($S307=\"Y\",'Enrollment Form'!$CO314=\"No\"),\"-\",IF(AND($S307=\"Y\",'Enrollment Form'!$CO314=\"Yes\",'Enrollment Form'!$CP314<>\"\"),\"Y\",\"N\"))))","v":""},{"$f":"IF(OR('Enrollment Form'!$AV314=\"Yes\",'Enrollment Form'!$AV314=\"\"),\"-\",IF(AND('Enrollment Form'!$AV314=\"No\",ISERROR(FIND(\"HMO\",VLOOKUP('Enrollment Form'!G314,'Enrollment Form'!H$11:J$1000,3,FALSE),1))=FALSE,COUNTA('Enrollment Form'!$AW314:$AZ314)=4),\"Y\",\"N\"))","v":"-"},{"$f":"IF($B307=\"N\",\"\",IF('Enrollment Form'!$B314=\"Subscriber\",\"-\",IF(COUNTA('Enrollment Form'!$BE314,'Enrollment Form'!$BG314)=2,\"Y\",\"N\")))","v":""},{"$f":"IF($B307=\"N\",\"\",IF(OR('Enrollment Form'!$AU314=\"\",'Enrollment Form'!$AU314=\"No\"),\"-\",IF(AND('Enrollment Form'!$AU314=\"Yes\",COUNTA('Enrollment Form'!$CK314)=1),\"Y\",\"N\")))","v":""},{"$f":"IF(OR('Enrollment Form'!$CK314=\"\",'Enrollment Form'!$CK314=\"No\"),\"-\",IF(COUNTA('Enrollment Form'!$CM314:$CN314)=2,\"Y\",\"N\"))","v":"-"},{"$f":"IF($B307=\"N\",\"\",IF(COUNTIF('Enrollment Form'!$CZ314:$DO314,\"Other\")=COUNTA('Enrollment Form'!$DF314,'Enrollment Form'!$DA314,'Enrollment Form'!$DK314,'Enrollment Form'!$DP314),\"Y\",\"N\"))","v":""},{"$f":"IF($B307=\"N\",\"\",IF(OR('Enrollment Form'!B314<>\"Subscriber\",'Enrollment Form'!C314=\"ROC\",COUNTIF('Enrollment Form'!AS314:AT314,\"Yes\")>=1),\"-\",IF(AND('Enrollment Form'!C314=\"Enroll\",COUNTIF('Enrollment Form'!AS314:AT314,\"No\")=2,'Enrollment Form'!AU314=\"\"),\"N\",\"Y\")))","v":""},{"$f":"IF(OR(B307=\"N\",'Enrollment Form'!B314<>\"Subscriber\",'Enrollment Form'!C314=\"ROC\",'Enrollment Form'!O314<>\"Multiple of Salary\"),\"-\",IF(COUNTA('Enrollment Form'!T314:U314)<2,\"N\",\"Y\"))","v":"-"},{"$f":"IF(B307=\"N\",\"\",IF(OR('Enrollment Form'!C314=\"ROC\",'Enrollment Form'!B314<>\"Subscriber\",'Enrollment Form'!O314=\"Waive\",'Enrollment Form'!O314=\"\"),\"-\",IF('Enrollment Form'!P314=\"\",\"N\",\"Y\")))","v":""},{"$f":"IF($B307=\"N\",\"\",IF(AND('Enrollment Form'!$C314=\"ROC\",'Enrollment Form'!$DS314<>\"\"),\"Y\",IF(AND('Enrollment Form'!$C314=\"ROC\",'Enrollment Form'!$DS314=\"\"),\"N\",IF(AND('Enrollment Form'!$C314=\"Enroll\",'Enrollment Form'!$B314=\"Subscriber\",'Enrollment Form'!$CQ314=\"No\",'Enrollment Form'!$DS314=\"\"),\"N\",IF(AND('Enrollment Form'!$C314=\"Enroll\",'Enrollment Form'!$B314=\"Subscriber\",'Enrollment Form'!$CQ314=\"Yes\"),\"-\",\"Y\")))))","v":""},{"$f":"IF($B307=\"N\",\"\",IF(AND('Enrollment Form'!$C314=\"ROC\",'Enrollment Form'!$DT314<>\"\"),\"Y\",IF(AND('Enrollment Form'!$C314=\"ROC\",'Enrollment Form'!$DT314=\"\"),\"N\",IF(AND('Enrollment Form'!$C314=\"Enroll\",'Enrollment Form'!$B314=\"Subscriber\",'Enrollment Form'!$CQ314=\"No\",'Enrollment Form'!$DT314=\"\"),\"N\",IF(AND('Enrollment Form'!$C314=\"Enroll\",'Enrollment Form'!$B314=\"Subscriber\",'Enrollment Form'!$CQ314=\"Yes\"),\"-\",\"Y\")))))","v":""},{"$f":"IF('Enrollment Form'!AH314=\"\",\"\",IF(ISERROR(SEARCH(\".\",'Enrollment Form'!AH314,SEARCH(\"@\",'Enrollment Form'!AH314))),\"N\",\"Y\"))","v":""},{"$f":"IF(OR($B307=\"N\",'Enrollment Form'!$G314=\"\"),\"\",IF('Enrollment Form'!$B314<>\"Subscriber\",\"-\",IF(COUNTIF('Enrollment Form'!$AS314:$AT314,\"Yes\")=2,\"N\",\"Y\")))","v":""},{"$f":"IF(OR('Enrollment Form'!$CC314=\"\",'Enrollment Form'!$CC314=\"No\"),\"-\",IF(AND('Enrollment Form'!$CC314=\"Yes\",'Enrollment Form'!$CD314=\"\"),\"N\",\"Y\"))","v":"-"},{"$f":"IF(OR('Enrollment Form'!$CE314=\"\",'Enrollment Form'!$CE314=\"No\"),\"-\",IF(AND('Enrollment Form'!$CE314=\"Yes\",'Enrollment Form'!$CF314=\"\"),\"N\",\"Y\"))","v":"-"},{"$f":"IF(OR('Enrollment Form'!$CG314=\"\",'Enrollment Form'!$CG314=\"No\"),\"-\",IF(AND('Enrollment Form'!$CG314=\"Yes\",'Enrollment Form'!$CH314=\"\"),\"N\",\"Y\"))","v":"-"},{"$f":"IF(OR('Enrollment Form'!$CG314=\"\",'Enrollment Form'!$CG314=\"No\"),\"-\",IF(AND('Enrollment Form'!$CG314=\"Yes\",'Enrollment Form'!$CI314=\"\"),\"N\",\"Y\"))","v":"-"},{"$f":"IF('Enrollment Form'!B314<>\"Subscriber\",\"-\",IF(AND('Enrollment Form'!B314=\"Subscriber\",'Enrollment Form'!C314=\"Enroll\",'Enrollment Form'!AA314=\"\"),\"N\",\"Y\"))","v":"-"},{"$f":"IF(OR('Enrollment Form'!B314=\"Subscriber\",'Enrollment Form'!B314=\"\"),\"-\",IF('Enrollment Form'!BI314=\"\",\"N\",\"Y\"))","v":"-"},{"$f":"IF('Enrollment Form'!B314<>\"Subscriber\",\"-\",IF(AND('Enrollment Form'!B314=\"Subscriber\",'Enrollment Form'!G314=\"\"),\"N\",\"Y\"))","v":"-"},{"$f":"IF('Enrollment Form'!A314=\"\",\"\",IF('Enrollment Form'!B314=\"Subscriber\",\"-\",IF(AND('Enrollment Form'!B314<>\"Subscriber\",'Enrollment Form'!G314='Enrollment Form'!H314),\"N\",\"Y\")))","v":""},0]
[315,{"$f":"IF('Enrollment Form'!$A315<>\"\",\"Y\",\"N\")","v":"N"},{"$f":"IF(AND('Enrollment Form'!$B315=\"\",'Enrollment Form'!$C315<>\"\"),\"N\",IF($B308=\"N\",\"\",\"Y\"))","v":""},{"$f":"IF(OR($B308=\"N\",'Enrollment Form'!G315=\"\"),\"\",IF('Enrollment Form'!$B315<>\"Subscriber\",\"\",IF('Enrollment Form'!$G315='Enrollment Form'!$H315,\"Y\",\"N\")))","v":""},{"$f":"IF($B308=\"N\",\"\",IF(AND(COUNTIFS('Enrollment Form'!$H$11:$H$1000,'Enrollment Form'!$H315,'Enrollment Form'!$B$11:$B$1000,'Enrollment Form'!$B315)>1,'Enrollment Form'!$H315<>\"\"),\"N\",\"Y\"))","v":""},{"$f":"IF($B308=\"N\",\"\",IF(LEN('Enrollment Form'!$Y315)=0,\"\",IF(LEN('Enrollment Form'!$Y315)<>5,\"N\",\"Y\")))","v":""},{"$f":"IF($B308=\"N\",\"\",IF(LEN('Enrollment Form'!$AD315=0),\"\",IF(LEN('Enrollment Form'!$AD315)<>5,\"N\",\"Y\")))","v":""},{"$f":"IF($B308=\"N\",\"\",IF(LEN('Enrollment Form'!$BL315=0),\"\",IF(LEN('Enrollment Form'!$BL315)<>5,\"N\",\"Y\")))","v":""},{"$f":"IF($B308=\"N\",\"\",IF(LEN('Enrollment Form'!$AE315)=0,\"\",IF(LEN('Enrollment Form'!$AE315)<>10,\"N\",\"Y\")))","v":""},{"$f":"IF($B308=\"N\",\"\",IF(LEN('Enrollment Form'!$AF315)=0,\"\",IF(LEN('Enrollment Form'!$AF315)<>10,\"N\",\"Y\")))","v":""},{"$f":"IF('Enrollment Form'!$O315<>\"Graded\",\"-\",IF(AND('Enrollment Form'!$O315=\"Graded\",'Enrollment Form'!$AO315<>\"\"),\"Y\",\"N\"))","v":"-"},{"$f":"IF($B308=\"N\",\"\",IF(OR('Enrollment Form'!$B315<>\"Subscriber\",'Enrollment Form'!$C315=\"ROC\"),\"-\",IF(AND('Enrollment Form'!$B315=\"Subscriber\",'Enrollment Form'!$C315=\"Enroll\",'Enrollment Form'!$AJ315<>\"\"),\"Y\",\"N\")))","v":""},{"$f":"IF($B308=\"N\",\"\",IF(OR('Enrollment Form'!$B315<>\"Subscriber\",'Enrollment Form'!$C315=\"ROC\"),\"-\",IF(AND('Enrollment Form'!$B315=\"Subscriber\",'Enrollment Form'!$C315=\"Enroll\",'Enrollment Form'!$AK315<>\"\"),\"Y\",\"N\")))","v":""},{"$f":"IF($B308=\"N\",\"\",IF(OR('Enrollment Form'!$B315<>\"Subscriber\",'Enrollment Form'!$C315=\"ROC\"),\"-\",IF(AND('Enrollment Form'!$B315=\"Subscriber\",'Enrollment Form'!$C315=\"Enroll\",'Enrollment Form'!$AL315<>\"\"),\"Y\",\"N\")))","v":""},{"$f":"IF($B308=\"N\",\"\",IF(OR('Enrollment Form'!$B315<>\"Subscriber\",'Enrollment Form'!$C315=\"ROC\"),\"-\",IF(AND('Enrollment Form'!$B315=\"Subscriber\",'Enrollment Form'!$C315=\"Enroll\",'Enrollment Form'!$AM315<>\"\"),\"Y\",\"N\")))","v":""},{"$f":"IF($B308=\"N\",\"\",IF(OR('Enrollment Form'!$B315<>\"Subscriber\",'Enrollment Form'!$C315=\"ROC\"),\"-\",IF(AND('Enrollment Form'!$B315=\"Subscriber\",'Enrollment Form'!$C315=\"Enroll\",'Enrollment Form'!$AN315<>\"\"),\"Y\",\"N\")))","v":""},{"$f":"IF($B308=\"N\",\"\",IF(OR('Enrollment Form'!$B315<>\"Subscriber\",'Enrollment Form'!$C315=\"ROC\"),\"-\",IF(AND('Enrollment Form'!$B315=\"Subscriber\",'Enrollment Form'!$C315=\"Enroll\",'Enrollment Form'!$AP315<>\"\"),\"Y\",\"N\")))","v":""},{"$f":"IF($B308=\"N\",\"\",IF($Q308=\"-\",\"-\",IF(AND($Q308=\"Y\",'Enrollment Form'!$AP315=\"No\"),\"-\",IF(AND($Q308=\"Y\",'Enrollment Form'!$AP315=\"Yes\",'Enrollment Form'!$AQ315<>\"\"),\"Y\",\"N\"))))","v":""},{"$f":"IF($B308=\"N\",\"\",IF(OR('Enrollment Form'!$B315<>\"Subscriber\",'Enrollment Form'!$C315=\"ROC\"),\"-\",IF(AND('Enrollment Form'!$B315=\"Subscriber\",'Enrollment Form'!$C315=\"Enroll\",'Enrollment Form'!$CO315<>\"\"),\"Y\",\"N\")))","v":""},{"$f":"IF($B308=\"N\",\"\",IF($S308=\"-\",\"-\",IF(AND($S308=\"Y\",'Enrollment Form'!$CO315=\"No\"),\"-\",IF(AND($S308=\"Y\",'Enrollment Form'!$CO315=\"Yes\",'Enrollment Form'!$CP315<>\"\"),\"Y\",\"N\"))))","v":""},{"$f":"IF(OR('Enrollment Form'!$AV315=\"Yes\",'Enrollment Form'!$AV315=\"\"),\"-\",IF(AND('Enrollment Form'!$AV315=\"No\",ISERROR(FIND(\"HMO\",VLOOKUP('Enrollment Form'!G315,'Enrollment Form'!H$11:J$1000,3,FALSE),1))=FALSE,COUNTA('Enrollment Form'!$AW315:$AZ315)=4),\"Y\",\"N\"))","v":"-"},{"$f":"IF($B308=\"N\",\"\",IF('Enrollment Form'!$B315=\"Subscriber\",\"-\",IF(COUNTA('Enrollment Form'!$BE315,'Enrollment Form'!$BG315)=2,\"Y\",\"N\")))","v":""},{"$f":"IF($B308=\"N\",\"\",IF(OR('Enrollment Form'!$AU315=\"\",'Enrollment Form'!$AU315=\"No\"),\"-\",IF(AND('Enrollment Form'!$AU315=\"Yes\",COUNTA('Enrollment Form'!$CK315)=1),\"Y\",\"N\")))","v":""},{"$f":"IF(OR('Enrollment Form'!$CK315=\"\",'Enrollment Form'!$CK315=\"No\"),\"-\",IF(COUNTA('Enrollment Form'!$CM315:$CN315)=2,\"Y\",\"N\"))","v":"-"},{"$f":"IF($B308=\"N\",\"\",IF(COUNTIF('Enrollment Form'!$CZ315:$DO315,\"Other\")=COUNTA('Enrollment Form'!$DF315,'Enrollment Form'!$DA315,'Enrollment Form'!$DK315,'Enrollment Form'!$DP315),\"Y\",\"N\"))","v":""},{"$f":"IF($B308=\"N\",\"\",IF(OR('Enrollment Form'!B315<>\"Subscriber\",'Enrollment Form'!C315=\"ROC\",COUNTIF('Enrollment Form'!AS315:AT315,\"Yes\")>=1),\"-\",IF(AND('Enrollment Form'!C315=\"Enroll\",COUNTIF('Enrollment Form'!AS315:AT315,\"No\")=2,'Enrollment Form'!AU315=\"\"),\"N\",\"Y\")))","v":""},{"$f":"IF(OR(B308=\"N\",'Enrollment Form'!B315<>\"Subscriber\",'Enrollment Form'!C315=\"ROC\",'Enrollment Form'!O315<>\"Multiple of Salary\"),\"-\",IF(COUNTA('Enrollment Form'!T315:U315)<2,\"N\",\"Y\"))","v":"-"},{"$f":"IF(B308=\"N\",\"\",IF(OR('Enrollment Form'!C315=\"ROC\",'Enrollment Form'!B315<>\"Subscriber\",'Enrollment Form'!O315=\"Waive\",'Enrollment Form'!O315=\"\"),\"-\",IF('Enrollment Form'!P315=\"\",\"N\",\"Y\")))","v":""},{"$f":"IF($B308=\"N\",\"\",IF(AND('Enrollment Form'!$C315=\"ROC\",'Enrollment Form'!$DS315<>\"\"),\"Y\",IF(AND('Enrollment Form'!$C315=\"ROC\",'Enrollment Form'!$DS315=\"\"),\"N\",IF(AND('Enrollment Form'!$C315=\"Enroll\",'Enrollment Form'!$B315=\"Subscriber\",'Enrollment Form'!$CQ315=\"No\",'Enrollment Form'!$DS315=\"\"),\"N\",IF(AND('Enrollment Form'!$C315=\"Enroll\",'Enrollment Form'!$B315=\"Subscriber\",'Enrollment Form'!$CQ315=\"Yes\"),\"-\",\"Y\")))))","v":""},{"$f":"IF($B308=\"N\",\"\",IF(AND('Enrollment Form'!$C315=\"ROC\",'Enrollment Form'!$DT315<>\"\"),\"Y\",IF(AND('Enrollment Form'!$C315=\"ROC\",'Enrollment Form'!$DT315=\"\"),\"N\",IF(AND('Enrollment Form'!$C315=\"Enroll\",'Enrollment Form'!$B315=\"Subscriber\",'Enrollment Form'!$CQ315=\"No\",'Enrollment Form'!$DT315=\"\"),\"N\",IF(AND('Enrollment Form'!$C315=\"Enroll\",'Enrollment Form'!$B315=\"Subscriber\",'Enrollment Form'!$CQ315=\"Yes\"),\"-\",\"Y\")))))","v":""},{"$f":"IF('Enrollment Form'!AH315=\"\",\"\",IF(ISERROR(SEARCH(\".\",'Enrollment Form'!AH315,SEARCH(\"@\",'Enrollment Form'!AH315))),\"N\",\"Y\"))","v":""},{"$f":"IF(OR($B308=\"N\",'Enrollment Form'!$G315=\"\"),\"\",IF('Enrollment Form'!$B315<>\"Subscriber\",\"-\",IF(COUNTIF('Enrollment Form'!$AS315:$AT315,\"Yes\")=2,\"N\",\"Y\")))","v":""},{"$f":"IF(OR('Enrollment Form'!$CC315=\"\",'Enrollment Form'!$CC315=\"No\"),\"-\",IF(AND('Enrollment Form'!$CC315=\"Yes\",'Enrollment Form'!$CD315=\"\"),\"N\",\"Y\"))","v":"-"},{"$f":"IF(OR('Enrollment Form'!$CE315=\"\",'Enrollment Form'!$CE315=\"No\"),\"-\",IF(AND('Enrollment Form'!$CE315=\"Yes\",'Enrollment Form'!$CF315=\"\"),\"N\",\"Y\"))","v":"-"},{"$f":"IF(OR('Enrollment Form'!$CG315=\"\",'Enrollment Form'!$CG315=\"No\"),\"-\",IF(AND('Enrollment Form'!$CG315=\"Yes\",'Enrollment Form'!$CH315=\"\"),\"N\",\"Y\"))","v":"-"},{"$f":"IF(OR('Enrollment Form'!$CG315=\"\",'Enrollment Form'!$CG315=\"No\"),\"-\",IF(AND('Enrollment Form'!$CG315=\"Yes\",'Enrollment Form'!$CI315=\"\"),\"N\",\"Y\"))","v":"-"},{"$f":"IF('Enrollment Form'!B315<>\"Subscriber\",\"-\",IF(AND('Enrollment Form'!B315=\"Subscriber\",'Enrollment Form'!C315=\"Enroll\",'Enrollment Form'!AA315=\"\"),\"N\",\"Y\"))","v":"-"},{"$f":"IF(OR('Enrollment Form'!B315=\"Subscriber\",'Enrollment Form'!B315=\"\"),\"-\",IF('Enrollment Form'!BI315=\"\",\"N\",\"Y\"))","v":"-"},{"$f":"IF('Enrollment Form'!B315<>\"Subscriber\",\"-\",IF(AND('Enrollment Form'!B315=\"Subscriber\",'Enrollment Form'!G315=\"\"),\"N\",\"Y\"))","v":"-"},{"$f":"IF('Enrollment Form'!A315=\"\",\"\",IF('Enrollment Form'!B315=\"Subscriber\",\"-\",IF(AND('Enrollment Form'!B315<>\"Subscriber\",'Enrollment Form'!G315='Enrollment Form'!H315),\"N\",\"Y\")))","v":""},0]
[316,{"$f":"IF('Enrollment Form'!$A316<>\"\",\"Y\",\"N\")","v":"N"},{"$f":"IF(AND('Enrollment Form'!$B316=\"\",'Enrollment Form'!$C316<>\"\"),\"N\",IF($B309=\"N\",\"\",\"Y\"))","v":""},{"$f":"IF(OR($B309=\"N\",'Enrollment Form'!G316=\"\"),\"\",IF('Enrollment Form'!$B316<>\"Subscriber\",\"\",IF('Enrollment Form'!$G316='Enrollment Form'!$H316,\"Y\",\"N\")))","v":""},{"$f":"IF($B309=\"N\",\"\",IF(AND(COUNTIFS('Enrollment Form'!$H$11:$H$1000,'Enrollment Form'!$H316,'Enrollment Form'!$B$11:$B$1000,'Enrollment Form'!$B316)>1,'Enrollment Form'!$H316<>\"\"),\"N\",\"Y\"))","v":""},{"$f":"IF($B309=\"N\",\"\",IF(LEN('Enrollment Form'!$Y316)=0,\"\",IF(LEN('Enrollment Form'!$Y316)<>5,\"N\",\"Y\")))","v":""},{"$f":"IF($B309=\"N\",\"\",IF(LEN('Enrollment Form'!$AD316=0),\"\",IF(LEN('Enrollment Form'!$AD316)<>5,\"N\",\"Y\")))","v":""},{"$f":"IF($B309=\"N\",\"\",IF(LEN('Enrollment Form'!$BL316=0),\"\",IF(LEN('Enrollment Form'!$BL316)<>5,\"N\",\"Y\")))","v":""},{"$f":"IF($B309=\"N\",\"\",IF(LEN('Enrollment Form'!$AE316)=0,\"\",IF(LEN('Enrollment Form'!$AE316)<>10,\"N\",\"Y\")))","v":""},{"$f":"IF($B309=\"N\",\"\",IF(LEN('Enrollment Form'!$AF316)=0,\"\",IF(LEN('Enrollment Form'!$AF316)<>10,\"N\",\"Y\")))","v":""},{"$f":"IF('Enrollment Form'!$O316<>\"Graded\",\"-\",IF(AND('Enrollment Form'!$O316=\"Graded\",'Enrollment Form'!$AO316<>\"\"),\"Y\",\"N\"))","v":"-"},{"$f":"IF($B309=\"N\",\"\",IF(OR('Enrollment Form'!$B316<>\"Subscriber\",'Enrollment Form'!$C316=\"ROC\"),\"-\",IF(AND('Enrollment Form'!$B316=\"Subscriber\",'Enrollment Form'!$C316=\"Enroll\",'Enrollment Form'!$AJ316<>\"\"),\"Y\",\"N\")))","v":""},{"$f":"IF($B309=\"N\",\"\",IF(OR('Enrollment Form'!$B316<>\"Subscriber\",'Enrollment Form'!$C316=\"ROC\"),\"-\",IF(AND('Enrollment Form'!$B316=\"Subscriber\",'Enrollment Form'!$C316=\"Enroll\",'Enrollment Form'!$AK316<>\"\"),\"Y\",\"N\")))","v":""},{"$f":"IF($B309=\"N\",\"\",IF(OR('Enrollment Form'!$B316<>\"Subscriber\",'Enrollment Form'!$C316=\"ROC\"),\"-\",IF(AND('Enrollment Form'!$B316=\"Subscriber\",'Enrollment Form'!$C316=\"Enroll\",'Enrollment Form'!$AL316<>\"\"),\"Y\",\"N\")))","v":""},{"$f":"IF($B309=\"N\",\"\",IF(OR('Enrollment Form'!$B316<>\"Subscriber\",'Enrollment Form'!$C316=\"ROC\"),\"-\",IF(AND('Enrollment Form'!$B316=\"Subscriber\",'Enrollment Form'!$C316=\"Enroll\",'Enrollment Form'!$AM316<>\"\"),\"Y\",\"N\")))","v":""},{"$f":"IF($B309=\"N\",\"\",IF(OR('Enrollment Form'!$B316<>\"Subscriber\",'Enrollment Form'!$C316=\"ROC\"),\"-\",IF(AND('Enrollment Form'!$B316=\"Subscriber\",'Enrollment Form'!$C316=\"Enroll\",'Enrollment Form'!$AN316<>\"\"),\"Y\",\"N\")))","v":""},{"$f":"IF($B309=\"N\",\"\",IF(OR('Enrollment Form'!$B316<>\"Subscriber\",'Enrollment Form'!$C316=\"ROC\"),\"-\",IF(AND('Enrollment Form'!$B316=\"Subscriber\",'Enrollment Form'!$C316=\"Enroll\",'Enrollment Form'!$AP316<>\"\"),\"Y\",\"N\")))","v":""},{"$f":"IF($B309=\"N\",\"\",IF($Q309=\"-\",\"-\",IF(AND($Q309=\"Y\",'Enrollment Form'!$AP316=\"No\"),\"-\",IF(AND($Q309=\"Y\",'Enrollment Form'!$AP316=\"Yes\",'Enrollment Form'!$AQ316<>\"\"),\"Y\",\"N\"))))","v":""},{"$f":"IF($B309=\"N\",\"\",IF(OR('Enrollment Form'!$B316<>\"Subscriber\",'Enrollment Form'!$C316=\"ROC\"),\"-\",IF(AND('Enrollment Form'!$B316=\"Subscriber\",'Enrollment Form'!$C316=\"Enroll\",'Enrollment Form'!$CO316<>\"\"),\"Y\",\"N\")))","v":""},{"$f":"IF($B309=\"N\",\"\",IF($S309=\"-\",\"-\",IF(AND($S309=\"Y\",'Enrollment Form'!$CO316=\"No\"),\"-\",IF(AND($S309=\"Y\",'Enrollment Form'!$CO316=\"Yes\",'Enrollment Form'!$CP316<>\"\"),\"Y\",\"N\"))))","v":""},{"$f":"IF(OR('Enrollment Form'!$AV316=\"Yes\",'Enrollment Form'!$AV316=\"\"),\"-\",IF(AND('Enrollment Form'!$AV316=\"No\",ISERROR(FIND(\"HMO\",VLOOKUP('Enrollment Form'!G316,'Enrollment Form'!H$11:J$1000,3,FALSE),1))=FALSE,COUNTA('Enrollment Form'!$AW316:$AZ316)=4),\"Y\",\"N\"))","v":"-"},{"$f":"IF($B309=\"N\",\"\",IF('Enrollment Form'!$B316=\"Subscriber\",\"-\",IF(COUNTA('Enrollment Form'!$BE316,'Enrollment Form'!$BG316)=2,\"Y\",\"N\")))","v":""},{"$f":"IF($B309=\"N\",\"\",IF(OR('Enrollment Form'!$AU316=\"\",'Enrollment Form'!$AU316=\"No\"),\"-\",IF(AND('Enrollment Form'!$AU316=\"Yes\",COUNTA('Enrollment Form'!$CK316)=1),\"Y\",\"N\")))","v":""},{"$f":"IF(OR('Enrollment Form'!$CK316=\"\",'Enrollment Form'!$CK316=\"No\"),\"-\",IF(COUNTA('Enrollment Form'!$CM316:$CN316)=2,\"Y\",\"N\"))","v":"-"},{"$f":"IF($B309=\"N\",\"\",IF(COUNTIF('Enrollment Form'!$CZ316:$DO316,\"Other\")=COUNTA('Enrollment Form'!$DF316,'Enrollment Form'!$DA316,'Enrollment Form'!$DK316,'Enrollment Form'!$DP316),\"Y\",\"N\"))","v":""},{"$f":"IF($B309=\"N\",\"\",IF(OR('Enrollment Form'!B316<>\"Subscriber\",'Enrollment Form'!C316=\"ROC\",COUNTIF('Enrollment Form'!AS316:AT316,\"Yes\")>=1),\"-\",IF(AND('Enrollment Form'!C316=\"Enroll\",COUNTIF('Enrollment Form'!AS316:AT316,\"No\")=2,'Enrollment Form'!AU316=\"\"),\"N\",\"Y\")))","v":""},{"$f":"IF(OR(B309=\"N\",'Enrollment Form'!B316<>\"Subscriber\",'Enrollment Form'!C316=\"ROC\",'Enrollment Form'!O316<>\"Multiple of Salary\"),\"-\",IF(COUNTA('Enrollment Form'!T316:U316)<2,\"N\",\"Y\"))","v":"-"},{"$f":"IF(B309=\"N\",\"\",IF(OR('Enrollment Form'!C316=\"ROC\",'Enrollment Form'!B316<>\"Subscriber\",'Enrollment Form'!O316=\"Waive\",'Enrollment Form'!O316=\"\"),\"-\",IF('Enrollment Form'!P316=\"\",\"N\",\"Y\")))","v":""},{"$f":"IF($B309=\"N\",\"\",IF(AND('Enrollment Form'!$C316=\"ROC\",'Enrollment Form'!$DS316<>\"\"),\"Y\",IF(AND('Enrollment Form'!$C316=\"ROC\",'Enrollment Form'!$DS316=\"\"),\"N\",IF(AND('Enrollment Form'!$C316=\"Enroll\",'Enrollment Form'!$B316=\"Subscriber\",'Enrollment Form'!$CQ316=\"No\",'Enrollment Form'!$DS316=\"\"),\"N\",IF(AND('Enrollment Form'!$C316=\"Enroll\",'Enrollment Form'!$B316=\"Subscriber\",'Enrollment Form'!$CQ316=\"Yes\"),\"-\",\"Y\")))))","v":""},{"$f":"IF($B309=\"N\",\"\",IF(AND('Enrollment Form'!$C316=\"ROC\",'Enrollment Form'!$DT316<>\"\"),\"Y\",IF(AND('Enrollment Form'!$C316=\"ROC\",'Enrollment Form'!$DT316=\"\"),\"N\",IF(AND('Enrollment Form'!$C316=\"Enroll\",'Enrollment Form'!$B316=\"Subscriber\",'Enrollment Form'!$CQ316=\"No\",'Enrollment Form'!$DT316=\"\"),\"N\",IF(AND('Enrollment Form'!$C316=\"Enroll\",'Enrollment Form'!$B316=\"Subscriber\",'Enrollment Form'!$CQ316=\"Yes\"),\"-\",\"Y\")))))","v":""},{"$f":"IF('Enrollment Form'!AH316=\"\",\"\",IF(ISERROR(SEARCH(\".\",'Enrollment Form'!AH316,SEARCH(\"@\",'Enrollment Form'!AH316))),\"N\",\"Y\"))","v":""},{"$f":"IF(OR($B309=\"N\",'Enrollment Form'!$G316=\"\"),\"\",IF('Enrollment Form'!$B316<>\"Subscriber\",\"-\",IF(COUNTIF('Enrollment Form'!$AS316:$AT316,\"Yes\")=2,\"N\",\"Y\")))","v":""},{"$f":"IF(OR('Enrollment Form'!$CC316=\"\",'Enrollment Form'!$CC316=\"No\"),\"-\",IF(AND('Enrollment Form'!$CC316=\"Yes\",'Enrollment Form'!$CD316=\"\"),\"N\",\"Y\"))","v":"-"},{"$f":"IF(OR('Enrollment Form'!$CE316=\"\",'Enrollment Form'!$CE316=\"No\"),\"-\",IF(AND('Enrollment Form'!$CE316=\"Yes\",'Enrollment Form'!$CF316=\"\"),\"N\",\"Y\"))","v":"-"},{"$f":"IF(OR('Enrollment Form'!$CG316=\"\",'Enrollment Form'!$CG316=\"No\"),\"-\",IF(AND('Enrollment Form'!$CG316=\"Yes\",'Enrollment Form'!$CH316=\"\"),\"N\",\"Y\"))","v":"-"},{"$f":"IF(OR('Enrollment Form'!$CG316=\"\",'Enrollment Form'!$CG316=\"No\"),\"-\",IF(AND('Enrollment Form'!$CG316=\"Yes\",'Enrollment Form'!$CI316=\"\"),\"N\",\"Y\"))","v":"-"},{"$f":"IF('Enrollment Form'!B316<>\"Subscriber\",\"-\",IF(AND('Enrollment Form'!B316=\"Subscriber\",'Enrollment Form'!C316=\"Enroll\",'Enrollment Form'!AA316=\"\"),\"N\",\"Y\"))","v":"-"},{"$f":"IF(OR('Enrollment Form'!B316=\"Subscriber\",'Enrollment Form'!B316=\"\"),\"-\",IF('Enrollment Form'!BI316=\"\",\"N\",\"Y\"))","v":"-"},{"$f":"IF('Enrollment Form'!B316<>\"Subscriber\",\"-\",IF(AND('Enrollment Form'!B316=\"Subscriber\",'Enrollment Form'!G316=\"\"),\"N\",\"Y\"))","v":"-"},{"$f":"IF('Enrollment Form'!A316=\"\",\"\",IF('Enrollment Form'!B316=\"Subscriber\",\"-\",IF(AND('Enrollment Form'!B316<>\"Subscriber\",'Enrollment Form'!G316='Enrollment Form'!H316),\"N\",\"Y\")))","v":""},0]
[317,{"$f":"IF('Enrollment Form'!$A317<>\"\",\"Y\",\"N\")","v":"N"},{"$f":"IF(AND('Enrollment Form'!$B317=\"\",'Enrollment Form'!$C317<>\"\"),\"N\",IF($B310=\"N\",\"\",\"Y\"))","v":""},{"$f":"IF(OR($B310=\"N\",'Enrollment Form'!G317=\"\"),\"\",IF('Enrollment Form'!$B317<>\"Subscriber\",\"\",IF('Enrollment Form'!$G317='Enrollment Form'!$H317,\"Y\",\"N\")))","v":""},{"$f":"IF($B310=\"N\",\"\",IF(AND(COUNTIFS('Enrollment Form'!$H$11:$H$1000,'Enrollment Form'!$H317,'Enrollment Form'!$B$11:$B$1000,'Enrollment Form'!$B317)>1,'Enrollment Form'!$H317<>\"\"),\"N\",\"Y\"))","v":""},{"$f":"IF($B310=\"N\",\"\",IF(LEN('Enrollment Form'!$Y317)=0,\"\",IF(LEN('Enrollment Form'!$Y317)<>5,\"N\",\"Y\")))","v":""},{"$f":"IF($B310=\"N\",\"\",IF(LEN('Enrollment Form'!$AD317=0),\"\",IF(LEN('Enrollment Form'!$AD317)<>5,\"N\",\"Y\")))","v":""},{"$f":"IF($B310=\"N\",\"\",IF(LEN('Enrollment Form'!$BL317=0),\"\",IF(LEN('Enrollment Form'!$BL317)<>5,\"N\",\"Y\")))","v":""},{"$f":"IF($B310=\"N\",\"\",IF(LEN('Enrollment Form'!$AE317)=0,\"\",IF(LEN('Enrollment Form'!$AE317)<>10,\"N\",\"Y\")))","v":""},{"$f":"IF($B310=\"N\",\"\",IF(LEN('Enrollment Form'!$AF317)=0,\"\",IF(LEN('Enrollment Form'!$AF317)<>10,\"N\",\"Y\")))","v":""},{"$f":"IF('Enrollment Form'!$O317<>\"Graded\",\"-\",IF(AND('Enrollment Form'!$O317=\"Graded\",'Enrollment Form'!$AO317<>\"\"),\"Y\",\"N\"))","v":"-"},{"$f":"IF($B310=\"N\",\"\",IF(OR('Enrollment Form'!$B317<>\"Subscriber\",'Enrollment Form'!$C317=\"ROC\"),\"-\",IF(AND('Enrollment Form'!$B317=\"Subscriber\",'Enrollment Form'!$C317=\"Enroll\",'Enrollment Form'!$AJ317<>\"\"),\"Y\",\"N\")))","v":""},{"$f":"IF($B310=\"N\",\"\",IF(OR('Enrollment Form'!$B317<>\"Subscriber\",'Enrollment Form'!$C317=\"ROC\"),\"-\",IF(AND('Enrollment Form'!$B317=\"Subscriber\",'Enrollment Form'!$C317=\"Enroll\",'Enrollment Form'!$AK317<>\"\"),\"Y\",\"N\")))","v":""},{"$f":"IF($B310=\"N\",\"\",IF(OR('Enrollment Form'!$B317<>\"Subscriber\",'Enrollment Form'!$C317=\"ROC\"),\"-\",IF(AND('Enrollment Form'!$B317=\"Subscriber\",'Enrollment Form'!$C317=\"Enroll\",'Enrollment Form'!$AL317<>\"\"),\"Y\",\"N\")))","v":""},{"$f":"IF($B310=\"N\",\"\",IF(OR('Enrollment Form'!$B317<>\"Subscriber\",'Enrollment Form'!$C317=\"ROC\"),\"-\",IF(AND('Enrollment Form'!$B317=\"Subscriber\",'Enrollment Form'!$C317=\"Enroll\",'Enrollment Form'!$AM317<>\"\"),\"Y\",\"N\")))","v":""},{"$f":"IF($B310=\"N\",\"\",IF(OR('Enrollment Form'!$B317<>\"Subscriber\",'Enrollment Form'!$C317=\"ROC\"),\"-\",IF(AND('Enrollment Form'!$B317=\"Subscriber\",'Enrollment Form'!$C317=\"Enroll\",'Enrollment Form'!$AN317<>\"\"),\"Y\",\"N\")))","v":""},{"$f":"IF($B310=\"N\",\"\",IF(OR('Enrollment Form'!$B317<>\"Subscriber\",'Enrollment Form'!$C317=\"ROC\"),\"-\",IF(AND('Enrollment Form'!$B317=\"Subscriber\",'Enrollment Form'!$C317=\"Enroll\",'Enrollment Form'!$AP317<>\"\"),\"Y\",\"N\")))","v":""},{"$f":"IF($B310=\"N\",\"\",IF($Q310=\"-\",\"-\",IF(AND($Q310=\"Y\",'Enrollment Form'!$AP317=\"No\"),\"-\",IF(AND($Q310=\"Y\",'Enrollment Form'!$AP317=\"Yes\",'Enrollment Form'!$AQ317<>\"\"),\"Y\",\"N\"))))","v":""},{"$f":"IF($B310=\"N\",\"\",IF(OR('Enrollment Form'!$B317<>\"Subscriber\",'Enrollment Form'!$C317=\"ROC\"),\"-\",IF(AND('Enrollment Form'!$B317=\"Subscriber\",'Enrollment Form'!$C317=\"Enroll\",'Enrollment Form'!$CO317<>\"\"),\"Y\",\"N\")))","v":""},{"$f":"IF($B310=\"N\",\"\",IF($S310=\"-\",\"-\",IF(AND($S310=\"Y\",'Enrollment Form'!$CO317=\"No\"),\"-\",IF(AND($S310=\"Y\",'Enrollment Form'!$CO317=\"Yes\",'Enrollment Form'!$CP317<>\"\"),\"Y\",\"N\"))))","v":""},{"$f":"IF(OR('Enrollment Form'!$AV317=\"Yes\",'Enrollment Form'!$AV317=\"\"),\"-\",IF(AND('Enrollment Form'!$AV317=\"No\",ISERROR(FIND(\"HMO\",VLOOKUP('Enrollment Form'!G317,'Enrollment Form'!H$11:J$1000,3,FALSE),1))=FALSE,COUNTA('Enrollment Form'!$AW317:$AZ317)=4),\"Y\",\"N\"))","v":"-"},{"$f":"IF($B310=\"N\",\"\",IF('Enrollment Form'!$B317=\"Subscriber\",\"-\",IF(COUNTA('Enrollment Form'!$BE317,'Enrollment Form'!$BG317)=2,\"Y\",\"N\")))","v":""},{"$f":"IF($B310=\"N\",\"\",IF(OR('Enrollment Form'!$AU317=\"\",'Enrollment Form'!$AU317=\"No\"),\"-\",IF(AND('Enrollment Form'!$AU317=\"Yes\",COUNTA('Enrollment Form'!$CK317)=1),\"Y\",\"N\")))","v":""},{"$f":"IF(OR('Enrollment Form'!$CK317=\"\",'Enrollment Form'!$CK317=\"No\"),\"-\",IF(COUNTA('Enrollment Form'!$CM317:$CN317)=2,\"Y\",\"N\"))","v":"-"},{"$f":"IF($B310=\"N\",\"\",IF(COUNTIF('Enrollment Form'!$CZ317:$DO317,\"Other\")=COUNTA('Enrollment Form'!$DF317,'Enrollment Form'!$DA317,'Enrollment Form'!$DK317,'Enrollment Form'!$DP317),\"Y\",\"N\"))","v":""},{"$f":"IF($B310=\"N\",\"\",IF(OR('Enrollment Form'!B317<>\"Subscriber\",'Enrollment Form'!C317=\"ROC\",COUNTIF('Enrollment Form'!AS317:AT317,\"Yes\")>=1),\"-\",IF(AND('Enrollment Form'!C317=\"Enroll\",COUNTIF('Enrollment Form'!AS317:AT317,\"No\")=2,'Enrollment Form'!AU317=\"\"),\"N\",\"Y\")))","v":""},{"$f":"IF(OR(B310=\"N\",'Enrollment Form'!B317<>\"Subscriber\",'Enrollment Form'!C317=\"ROC\",'Enrollment Form'!O317<>\"Multiple of Salary\"),\"-\",IF(COUNTA('Enrollment Form'!T317:U317)<2,\"N\",\"Y\"))","v":"-"},{"$f":"IF(B310=\"N\",\"\",IF(OR('Enrollment Form'!C317=\"ROC\",'Enrollment Form'!B317<>\"Subscriber\",'Enrollment Form'!O317=\"Waive\",'Enrollment Form'!O317=\"\"),\"-\",IF('Enrollment Form'!P317=\"\",\"N\",\"Y\")))","v":""},{"$f":"IF($B310=\"N\",\"\",IF(AND('Enrollment Form'!$C317=\"ROC\",'Enrollment Form'!$DS317<>\"\"),\"Y\",IF(AND('Enrollment Form'!$C317=\"ROC\",'Enrollment Form'!$DS317=\"\"),\"N\",IF(AND('Enrollment Form'!$C317=\"Enroll\",'Enrollment Form'!$B317=\"Subscriber\",'Enrollment Form'!$CQ317=\"No\",'Enrollment Form'!$DS317=\"\"),\"N\",IF(AND('Enrollment Form'!$C317=\"Enroll\",'Enrollment Form'!$B317=\"Subscriber\",'Enrollment Form'!$CQ317=\"Yes\"),\"-\",\"Y\")))))","v":""},{"$f":"IF($B310=\"N\",\"\",IF(AND('Enrollment Form'!$C317=\"ROC\",'Enrollment Form'!$DT317<>\"\"),\"Y\",IF(AND('Enrollment Form'!$C317=\"ROC\",'Enrollment Form'!$DT317=\"\"),\"N\",IF(AND('Enrollment Form'!$C317=\"Enroll\",'Enrollment Form'!$B317=\"Subscriber\",'Enrollment Form'!$CQ317=\"No\",'Enrollment Form'!$DT317=\"\"),\"N\",IF(AND('Enrollment Form'!$C317=\"Enroll\",'Enrollment Form'!$B317=\"Subscriber\",'Enrollment Form'!$CQ317=\"Yes\"),\"-\",\"Y\")))))","v":""},{"$f":"IF('Enrollment Form'!AH317=\"\",\"\",IF(ISERROR(SEARCH(\".\",'Enrollment Form'!AH317,SEARCH(\"@\",'Enrollment Form'!AH317))),\"N\",\"Y\"))","v":""},{"$f":"IF(OR($B310=\"N\",'Enrollment Form'!$G317=\"\"),\"\",IF('Enrollment Form'!$B317<>\"Subscriber\",\"-\",IF(COUNTIF('Enrollment Form'!$AS317:$AT317,\"Yes\")=2,\"N\",\"Y\")))","v":""},{"$f":"IF(OR('Enrollment Form'!$CC317=\"\",'Enrollment Form'!$CC317=\"No\"),\"-\",IF(AND('Enrollment Form'!$CC317=\"Yes\",'Enrollment Form'!$CD317=\"\"),\"N\",\"Y\"))","v":"-"},{"$f":"IF(OR('Enrollment Form'!$CE317=\"\",'Enrollment Form'!$CE317=\"No\"),\"-\",IF(AND('Enrollment Form'!$CE317=\"Yes\",'Enrollment Form'!$CF317=\"\"),\"N\",\"Y\"))","v":"-"},{"$f":"IF(OR('Enrollment Form'!$CG317=\"\",'Enrollment Form'!$CG317=\"No\"),\"-\",IF(AND('Enrollment Form'!$CG317=\"Yes\",'Enrollment Form'!$CH317=\"\"),\"N\",\"Y\"))","v":"-"},{"$f":"IF(OR('Enrollment Form'!$CG317=\"\",'Enrollment Form'!$CG317=\"No\"),\"-\",IF(AND('Enrollment Form'!$CG317=\"Yes\",'Enrollment Form'!$CI317=\"\"),\"N\",\"Y\"))","v":"-"},{"$f":"IF('Enrollment Form'!B317<>\"Subscriber\",\"-\",IF(AND('Enrollment Form'!B317=\"Subscriber\",'Enrollment Form'!C317=\"Enroll\",'Enrollment Form'!AA317=\"\"),\"N\",\"Y\"))","v":"-"},{"$f":"IF(OR('Enrollment Form'!B317=\"Subscriber\",'Enrollment Form'!B317=\"\"),\"-\",IF('Enrollment Form'!BI317=\"\",\"N\",\"Y\"))","v":"-"},{"$f":"IF('Enrollment Form'!B317<>\"Subscriber\",\"-\",IF(AND('Enrollment Form'!B317=\"Subscriber\",'Enrollment Form'!G317=\"\"),\"N\",\"Y\"))","v":"-"},{"$f":"IF('Enrollment Form'!A317=\"\",\"\",IF('Enrollment Form'!B317=\"Subscriber\",\"-\",IF(AND('Enrollment Form'!B317<>\"Subscriber\",'Enrollment Form'!G317='Enrollment Form'!H317),\"N\",\"Y\")))","v":""},0]
[318,{"$f":"IF('Enrollment Form'!$A318<>\"\",\"Y\",\"N\")","v":"N"},{"$f":"IF(AND('Enrollment Form'!$B318=\"\",'Enrollment Form'!$C318<>\"\"),\"N\",IF($B311=\"N\",\"\",\"Y\"))","v":""},{"$f":"IF(OR($B311=\"N\",'Enrollment Form'!G318=\"\"),\"\",IF('Enrollment Form'!$B318<>\"Subscriber\",\"\",IF('Enrollment Form'!$G318='Enrollment Form'!$H318,\"Y\",\"N\")))","v":""},{"$f":"IF($B311=\"N\",\"\",IF(AND(COUNTIFS('Enrollment Form'!$H$11:$H$1000,'Enrollment Form'!$H318,'Enrollment Form'!$B$11:$B$1000,'Enrollment Form'!$B318)>1,'Enrollment Form'!$H318<>\"\"),\"N\",\"Y\"))","v":""},{"$f":"IF($B311=\"N\",\"\",IF(LEN('Enrollment Form'!$Y318)=0,\"\",IF(LEN('Enrollment Form'!$Y318)<>5,\"N\",\"Y\")))","v":""},{"$f":"IF($B311=\"N\",\"\",IF(LEN('Enrollment Form'!$AD318=0),\"\",IF(LEN('Enrollment Form'!$AD318)<>5,\"N\",\"Y\")))","v":""},{"$f":"IF($B311=\"N\",\"\",IF(LEN('Enrollment Form'!$BL318=0),\"\",IF(LEN('Enrollment Form'!$BL318)<>5,\"N\",\"Y\")))","v":""},{"$f":"IF($B311=\"N\",\"\",IF(LEN('Enrollment Form'!$AE318)=0,\"\",IF(LEN('Enrollment Form'!$AE318)<>10,\"N\",\"Y\")))","v":""},{"$f":"IF($B311=\"N\",\"\",IF(LEN('Enrollment Form'!$AF318)=0,\"\",IF(LEN('Enrollment Form'!$AF318)<>10,\"N\",\"Y\")))","v":""},{"$f":"IF('Enrollment Form'!$O318<>\"Graded\",\"-\",IF(AND('Enrollment Form'!$O318=\"Graded\",'Enrollment Form'!$AO318<>\"\"),\"Y\",\"N\"))","v":"-"},{"$f":"IF($B311=\"N\",\"\",IF(OR('Enrollment Form'!$B318<>\"Subscriber\",'Enrollment Form'!$C318=\"ROC\"),\"-\",IF(AND('Enrollment Form'!$B318=\"Subscriber\",'Enrollment Form'!$C318=\"Enroll\",'Enrollment Form'!$AJ318<>\"\"),\"Y\",\"N\")))","v":""},{"$f":"IF($B311=\"N\",\"\",IF(OR('Enrollment Form'!$B318<>\"Subscriber\",'Enrollment Form'!$C318=\"ROC\"),\"-\",IF(AND('Enrollment Form'!$B318=\"Subscriber\",'Enrollment Form'!$C318=\"Enroll\",'Enrollment Form'!$AK318<>\"\"),\"Y\",\"N\")))","v":""},{"$f":"IF($B311=\"N\",\"\",IF(OR('Enrollment Form'!$B318<>\"Subscriber\",'Enrollment Form'!$C318=\"ROC\"),\"-\",IF(AND('Enrollment Form'!$B318=\"Subscriber\",'Enrollment Form'!$C318=\"Enroll\",'Enrollment Form'!$AL318<>\"\"),\"Y\",\"N\")))","v":""},{"$f":"IF($B311=\"N\",\"\",IF(OR('Enrollment Form'!$B318<>\"Subscriber\",'Enrollment Form'!$C318=\"ROC\"),\"-\",IF(AND('Enrollment Form'!$B318=\"Subscriber\",'Enrollment Form'!$C318=\"Enroll\",'Enrollment Form'!$AM318<>\"\"),\"Y\",\"N\")))","v":""},{"$f":"IF($B311=\"N\",\"\",IF(OR('Enrollment Form'!$B318<>\"Subscriber\",'Enrollment Form'!$C318=\"ROC\"),\"-\",IF(AND('Enrollment Form'!$B318=\"Subscriber\",'Enrollment Form'!$C318=\"Enroll\",'Enrollment Form'!$AN318<>\"\"),\"Y\",\"N\")))","v":""},{"$f":"IF($B311=\"N\",\"\",IF(OR('Enrollment Form'!$B318<>\"Subscriber\",'Enrollment Form'!$C318=\"ROC\"),\"-\",IF(AND('Enrollment Form'!$B318=\"Subscriber\",'Enrollment Form'!$C318=\"Enroll\",'Enrollment Form'!$AP318<>\"\"),\"Y\",\"N\")))","v":""},{"$f":"IF($B311=\"N\",\"\",IF($Q311=\"-\",\"-\",IF(AND($Q311=\"Y\",'Enrollment Form'!$AP318=\"No\"),\"-\",IF(AND($Q311=\"Y\",'Enrollment Form'!$AP318=\"Yes\",'Enrollment Form'!$AQ318<>\"\"),\"Y\",\"N\"))))","v":""},{"$f":"IF($B311=\"N\",\"\",IF(OR('Enrollment Form'!$B318<>\"Subscriber\",'Enrollment Form'!$C318=\"ROC\"),\"-\",IF(AND('Enrollment Form'!$B318=\"Subscriber\",'Enrollment Form'!$C318=\"Enroll\",'Enrollment Form'!$CO318<>\"\"),\"Y\",\"N\")))","v":""},{"$f":"IF($B311=\"N\",\"\",IF($S311=\"-\",\"-\",IF(AND($S311=\"Y\",'Enrollment Form'!$CO318=\"No\"),\"-\",IF(AND($S311=\"Y\",'Enrollment Form'!$CO318=\"Yes\",'Enrollment Form'!$CP318<>\"\"),\"Y\",\"N\"))))","v":""},{"$f":"IF(OR('Enrollment Form'!$AV318=\"Yes\",'Enrollment Form'!$AV318=\"\"),\"-\",IF(AND('Enrollment Form'!$AV318=\"No\",ISERROR(FIND(\"HMO\",VLOOKUP('Enrollment Form'!G318,'Enrollment Form'!H$11:J$1000,3,FALSE),1))=FALSE,COUNTA('Enrollment Form'!$AW318:$AZ318)=4),\"Y\",\"N\"))","v":"-"},{"$f":"IF($B311=\"N\",\"\",IF('Enrollment Form'!$B318=\"Subscriber\",\"-\",IF(COUNTA('Enrollment Form'!$BE318,'Enrollment Form'!$BG318)=2,\"Y\",\"N\")))","v":""},{"$f":"IF($B311=\"N\",\"\",IF(OR('Enrollment Form'!$AU318=\"\",'Enrollment Form'!$AU318=\"No\"),\"-\",IF(AND('Enrollment Form'!$AU318=\"Yes\",COUNTA('Enrollment Form'!$CK318)=1),\"Y\",\"N\")))","v":""},{"$f":"IF(OR('Enrollment Form'!$CK318=\"\",'Enrollment Form'!$CK318=\"No\"),\"-\",IF(COUNTA('Enrollment Form'!$CM318:$CN318)=2,\"Y\",\"N\"))","v":"-"},{"$f":"IF($B311=\"N\",\"\",IF(COUNTIF('Enrollment Form'!$CZ318:$DO318,\"Other\")=COUNTA('Enrollment Form'!$DF318,'Enrollment Form'!$DA318,'Enrollment Form'!$DK318,'Enrollment Form'!$DP318),\"Y\",\"N\"))","v":""},{"$f":"IF($B311=\"N\",\"\",IF(OR('Enrollment Form'!B318<>\"Subscriber\",'Enrollment Form'!C318=\"ROC\",COUNTIF('Enrollment Form'!AS318:AT318,\"Yes\")>=1),\"-\",IF(AND('Enrollment Form'!C318=\"Enroll\",COUNTIF('Enrollment Form'!AS318:AT318,\"No\")=2,'Enrollment Form'!AU318=\"\"),\"N\",\"Y\")))","v":""},{"$f":"IF(OR(B311=\"N\",'Enrollment Form'!B318<>\"Subscriber\",'Enrollment Form'!C318=\"ROC\",'Enrollment Form'!O318<>\"Multiple of Salary\"),\"-\",IF(COUNTA('Enrollment Form'!T318:U318)<2,\"N\",\"Y\"))","v":"-"},{"$f":"IF(B311=\"N\",\"\",IF(OR('Enrollment Form'!C318=\"ROC\",'Enrollment Form'!B318<>\"Subscriber\",'Enrollment Form'!O318=\"Waive\",'Enrollment Form'!O318=\"\"),\"-\",IF('Enrollment Form'!P318=\"\",\"N\",\"Y\")))","v":""},{"$f":"IF($B311=\"N\",\"\",IF(AND('Enrollment Form'!$C318=\"ROC\",'Enrollment Form'!$DS318<>\"\"),\"Y\",IF(AND('Enrollment Form'!$C318=\"ROC\",'Enrollment Form'!$DS318=\"\"),\"N\",IF(AND('Enrollment Form'!$C318=\"Enroll\",'Enrollment Form'!$B318=\"Subscriber\",'Enrollment Form'!$CQ318=\"No\",'Enrollment Form'!$DS318=\"\"),\"N\",IF(AND('Enrollment Form'!$C318=\"Enroll\",'Enrollment Form'!$B318=\"Subscriber\",'Enrollment Form'!$CQ318=\"Yes\"),\"-\",\"Y\")))))","v":""},{"$f":"IF($B311=\"N\",\"\",IF(AND('Enrollment Form'!$C318=\"ROC\",'Enrollment Form'!$DT318<>\"\"),\"Y\",IF(AND('Enrollment Form'!$C318=\"ROC\",'Enrollment Form'!$DT318=\"\"),\"N\",IF(AND('Enrollment Form'!$C318=\"Enroll\",'Enrollment Form'!$B318=\"Subscriber\",'Enrollment Form'!$CQ318=\"No\",'Enrollment Form'!$DT318=\"\"),\"N\",IF(AND('Enrollment Form'!$C318=\"Enroll\",'Enrollment Form'!$B318=\"Subscriber\",'Enrollment Form'!$CQ318=\"Yes\"),\"-\",\"Y\")))))","v":""},{"$f":"IF('Enrollment Form'!AH318=\"\",\"\",IF(ISERROR(SEARCH(\".\",'Enrollment Form'!AH318,SEARCH(\"@\",'Enrollment Form'!AH318))),\"N\",\"Y\"))","v":""},{"$f":"IF(OR($B311=\"N\",'Enrollment Form'!$G318=\"\"),\"\",IF('Enrollment Form'!$B318<>\"Subscriber\",\"-\",IF(COUNTIF('Enrollment Form'!$AS318:$AT318,\"Yes\")=2,\"N\",\"Y\")))","v":""},{"$f":"IF(OR('Enrollment Form'!$CC318=\"\",'Enrollment Form'!$CC318=\"No\"),\"-\",IF(AND('Enrollment Form'!$CC318=\"Yes\",'Enrollment Form'!$CD318=\"\"),\"N\",\"Y\"))","v":"-"},{"$f":"IF(OR('Enrollment Form'!$CE318=\"\",'Enrollment Form'!$CE318=\"No\"),\"-\",IF(AND('Enrollment Form'!$CE318=\"Yes\",'Enrollment Form'!$CF318=\"\"),\"N\",\"Y\"))","v":"-"},{"$f":"IF(OR('Enrollment Form'!$CG318=\"\",'Enrollment Form'!$CG318=\"No\"),\"-\",IF(AND('Enrollment Form'!$CG318=\"Yes\",'Enrollment Form'!$CH318=\"\"),\"N\",\"Y\"))","v":"-"},{"$f":"IF(OR('Enrollment Form'!$CG318=\"\",'Enrollment Form'!$CG318=\"No\"),\"-\",IF(AND('Enrollment Form'!$CG318=\"Yes\",'Enrollment Form'!$CI318=\"\"),\"N\",\"Y\"))","v":"-"},{"$f":"IF('Enrollment Form'!B318<>\"Subscriber\",\"-\",IF(AND('Enrollment Form'!B318=\"Subscriber\",'Enrollment Form'!C318=\"Enroll\",'Enrollment Form'!AA318=\"\"),\"N\",\"Y\"))","v":"-"},{"$f":"IF(OR('Enrollment Form'!B318=\"Subscriber\",'Enrollment Form'!B318=\"\"),\"-\",IF('Enrollment Form'!BI318=\"\",\"N\",\"Y\"))","v":"-"},{"$f":"IF('Enrollment Form'!B318<>\"Subscriber\",\"-\",IF(AND('Enrollment Form'!B318=\"Subscriber\",'Enrollment Form'!G318=\"\"),\"N\",\"Y\"))","v":"-"},{"$f":"IF('Enrollment Form'!A318=\"\",\"\",IF('Enrollment Form'!B318=\"Subscriber\",\"-\",IF(AND('Enrollment Form'!B318<>\"Subscriber\",'Enrollment Form'!G318='Enrollment Form'!H318),\"N\",\"Y\")))","v":""},0]
[319,{"$f":"IF('Enrollment Form'!$A319<>\"\",\"Y\",\"N\")","v":"N"},{"$f":"IF(AND('Enrollment Form'!$B319=\"\",'Enrollment Form'!$C319<>\"\"),\"N\",IF($B312=\"N\",\"\",\"Y\"))","v":""},{"$f":"IF(OR($B312=\"N\",'Enrollment Form'!G319=\"\"),\"\",IF('Enrollment Form'!$B319<>\"Subscriber\",\"\",IF('Enrollment Form'!$G319='Enrollment Form'!$H319,\"Y\",\"N\")))","v":""},{"$f":"IF($B312=\"N\",\"\",IF(AND(COUNTIFS('Enrollment Form'!$H$11:$H$1000,'Enrollment Form'!$H319,'Enrollment Form'!$B$11:$B$1000,'Enrollment Form'!$B319)>1,'Enrollment Form'!$H319<>\"\"),\"N\",\"Y\"))","v":""},{"$f":"IF($B312=\"N\",\"\",IF(LEN('Enrollment Form'!$Y319)=0,\"\",IF(LEN('Enrollment Form'!$Y319)<>5,\"N\",\"Y\")))","v":""},{"$f":"IF($B312=\"N\",\"\",IF(LEN('Enrollment Form'!$AD319=0),\"\",IF(LEN('Enrollment Form'!$AD319)<>5,\"N\",\"Y\")))","v":""},{"$f":"IF($B312=\"N\",\"\",IF(LEN('Enrollment Form'!$BL319=0),\"\",IF(LEN('Enrollment Form'!$BL319)<>5,\"N\",\"Y\")))","v":""},{"$f":"IF($B312=\"N\",\"\",IF(LEN('Enrollment Form'!$AE319)=0,\"\",IF(LEN('Enrollment Form'!$AE319)<>10,\"N\",\"Y\")))","v":""},{"$f":"IF($B312=\"N\",\"\",IF(LEN('Enrollment Form'!$AF319)=0,\"\",IF(LEN('Enrollment Form'!$AF319)<>10,\"N\",\"Y\")))","v":""},{"$f":"IF('Enrollment Form'!$O319<>\"Graded\",\"-\",IF(AND('Enrollment Form'!$O319=\"Graded\",'Enrollment Form'!$AO319<>\"\"),\"Y\",\"N\"))","v":"-"},{"$f":"IF($B312=\"N\",\"\",IF(OR('Enrollment Form'!$B319<>\"Subscriber\",'Enrollment Form'!$C319=\"ROC\"),\"-\",IF(AND('Enrollment Form'!$B319=\"Subscriber\",'Enrollment Form'!$C319=\"Enroll\",'Enrollment Form'!$AJ319<>\"\"),\"Y\",\"N\")))","v":""},{"$f":"IF($B312=\"N\",\"\",IF(OR('Enrollment Form'!$B319<>\"Subscriber\",'Enrollment Form'!$C319=\"ROC\"),\"-\",IF(AND('Enrollment Form'!$B319=\"Subscriber\",'Enrollment Form'!$C319=\"Enroll\",'Enrollment Form'!$AK319<>\"\"),\"Y\",\"N\")))","v":""},{"$f":"IF($B312=\"N\",\"\",IF(OR('Enrollment Form'!$B319<>\"Subscriber\",'Enrollment Form'!$C319=\"ROC\"),\"-\",IF(AND('Enrollment Form'!$B319=\"Subscriber\",'Enrollment Form'!$C319=\"Enroll\",'Enrollment Form'!$AL319<>\"\"),\"Y\",\"N\")))","v":""},{"$f":"IF($B312=\"N\",\"\",IF(OR('Enrollment Form'!$B319<>\"Subscriber\",'Enrollment Form'!$C319=\"ROC\"),\"-\",IF(AND('Enrollment Form'!$B319=\"Subscriber\",'Enrollment Form'!$C319=\"Enroll\",'Enrollment Form'!$AM319<>\"\"),\"Y\",\"N\")))","v":""},{"$f":"IF($B312=\"N\",\"\",IF(OR('Enrollment Form'!$B319<>\"Subscriber\",'Enrollment Form'!$C319=\"ROC\"),\"-\",IF(AND('Enrollment Form'!$B319=\"Subscriber\",'Enrollment Form'!$C319=\"Enroll\",'Enrollment Form'!$AN319<>\"\"),\"Y\",\"N\")))","v":""},{"$f":"IF($B312=\"N\",\"\",IF(OR('Enrollment Form'!$B319<>\"Subscriber\",'Enrollment Form'!$C319=\"ROC\"),\"-\",IF(AND('Enrollment Form'!$B319=\"Subscriber\",'Enrollment Form'!$C319=\"Enroll\",'Enrollment Form'!$AP319<>\"\"),\"Y\",\"N\")))","v":""},{"$f":"IF($B312=\"N\",\"\",IF($Q312=\"-\",\"-\",IF(AND($Q312=\"Y\",'Enrollment Form'!$AP319=\"No\"),\"-\",IF(AND($Q312=\"Y\",'Enrollment Form'!$AP319=\"Yes\",'Enrollment Form'!$AQ319<>\"\"),\"Y\",\"N\"))))","v":""},{"$f":"IF($B312=\"N\",\"\",IF(OR('Enrollment Form'!$B319<>\"Subscriber\",'Enrollment Form'!$C319=\"ROC\"),\"-\",IF(AND('Enrollment Form'!$B319=\"Subscriber\",'Enrollment Form'!$C319=\"Enroll\",'Enrollment Form'!$CO319<>\"\"),\"Y\",\"N\")))","v":""},{"$f":"IF($B312=\"N\",\"\",IF($S312=\"-\",\"-\",IF(AND($S312=\"Y\",'Enrollment Form'!$CO319=\"No\"),\"-\",IF(AND($S312=\"Y\",'Enrollment Form'!$CO319=\"Yes\",'Enrollment Form'!$CP319<>\"\"),\"Y\",\"N\"))))","v":""},{"$f":"IF(OR('Enrollment Form'!$AV319=\"Yes\",'Enrollment Form'!$AV319=\"\"),\"-\",IF(AND('Enrollment Form'!$AV319=\"No\",ISERROR(FIND(\"HMO\",VLOOKUP('Enrollment Form'!G319,'Enrollment Form'!H$11:J$1000,3,FALSE),1))=FALSE,COUNTA('Enrollment Form'!$AW319:$AZ319)=4),\"Y\",\"N\"))","v":"-"},{"$f":"IF($B312=\"N\",\"\",IF('Enrollment Form'!$B319=\"Subscriber\",\"-\",IF(COUNTA('Enrollment Form'!$BE319,'Enrollment Form'!$BG319)=2,\"Y\",\"N\")))","v":""},{"$f":"IF($B312=\"N\",\"\",IF(OR('Enrollment Form'!$AU319=\"\",'Enrollment Form'!$AU319=\"No\"),\"-\",IF(AND('Enrollment Form'!$AU319=\"Yes\",COUNTA('Enrollment Form'!$CK319)=1),\"Y\",\"N\")))","v":""},{"$f":"IF(OR('Enrollment Form'!$CK319=\"\",'Enrollment Form'!$CK319=\"No\"),\"-\",IF(COUNTA('Enrollment Form'!$CM319:$CN319)=2,\"Y\",\"N\"))","v":"-"},{"$f":"IF($B312=\"N\",\"\",IF(COUNTIF('Enrollment Form'!$CZ319:$DO319,\"Other\")=COUNTA('Enrollment Form'!$DF319,'Enrollment Form'!$DA319,'Enrollment Form'!$DK319,'Enrollment Form'!$DP319),\"Y\",\"N\"))","v":""},{"$f":"IF($B312=\"N\",\"\",IF(OR('Enrollment Form'!B319<>\"Subscriber\",'Enrollment Form'!C319=\"ROC\",COUNTIF('Enrollment Form'!AS319:AT319,\"Yes\")>=1),\"-\",IF(AND('Enrollment Form'!C319=\"Enroll\",COUNTIF('Enrollment Form'!AS319:AT319,\"No\")=2,'Enrollment Form'!AU319=\"\"),\"N\",\"Y\")))","v":""},{"$f":"IF(OR(B312=\"N\",'Enrollment Form'!B319<>\"Subscriber\",'Enrollment Form'!C319=\"ROC\",'Enrollment Form'!O319<>\"Multiple of Salary\"),\"-\",IF(COUNTA('Enrollment Form'!T319:U319)<2,\"N\",\"Y\"))","v":"-"},{"$f":"IF(B312=\"N\",\"\",IF(OR('Enrollment Form'!C319=\"ROC\",'Enrollment Form'!B319<>\"Subscriber\",'Enrollment Form'!O319=\"Waive\",'Enrollment Form'!O319=\"\"),\"-\",IF('Enrollment Form'!P319=\"\",\"N\",\"Y\")))","v":""},{"$f":"IF($B312=\"N\",\"\",IF(AND('Enrollment Form'!$C319=\"ROC\",'Enrollment Form'!$DS319<>\"\"),\"Y\",IF(AND('Enrollment Form'!$C319=\"ROC\",'Enrollment Form'!$DS319=\"\"),\"N\",IF(AND('Enrollment Form'!$C319=\"Enroll\",'Enrollment Form'!$B319=\"Subscriber\",'Enrollment Form'!$CQ319=\"No\",'Enrollment Form'!$DS319=\"\"),\"N\",IF(AND('Enrollment Form'!$C319=\"Enroll\",'Enrollment Form'!$B319=\"Subscriber\",'Enrollment Form'!$CQ319=\"Yes\"),\"-\",\"Y\")))))","v":""},{"$f":"IF($B312=\"N\",\"\",IF(AND('Enrollment Form'!$C319=\"ROC\",'Enrollment Form'!$DT319<>\"\"),\"Y\",IF(AND('Enrollment Form'!$C319=\"ROC\",'Enrollment Form'!$DT319=\"\"),\"N\",IF(AND('Enrollment Form'!$C319=\"Enroll\",'Enrollment Form'!$B319=\"Subscriber\",'Enrollment Form'!$CQ319=\"No\",'Enrollment Form'!$DT319=\"\"),\"N\",IF(AND('Enrollment Form'!$C319=\"Enroll\",'Enrollment Form'!$B319=\"Subscriber\",'Enrollment Form'!$CQ319=\"Yes\"),\"-\",\"Y\")))))","v":""},{"$f":"IF('Enrollment Form'!AH319=\"\",\"\",IF(ISERROR(SEARCH(\".\",'Enrollment Form'!AH319,SEARCH(\"@\",'Enrollment Form'!AH319))),\"N\",\"Y\"))","v":""},{"$f":"IF(OR($B312=\"N\",'Enrollment Form'!$G319=\"\"),\"\",IF('Enrollment Form'!$B319<>\"Subscriber\",\"-\",IF(COUNTIF('Enrollment Form'!$AS319:$AT319,\"Yes\")=2,\"N\",\"Y\")))","v":""},{"$f":"IF(OR('Enrollment Form'!$CC319=\"\",'Enrollment Form'!$CC319=\"No\"),\"-\",IF(AND('Enrollment Form'!$CC319=\"Yes\",'Enrollment Form'!$CD319=\"\"),\"N\",\"Y\"))","v":"-"},{"$f":"IF(OR('Enrollment Form'!$CE319=\"\",'Enrollment Form'!$CE319=\"No\"),\"-\",IF(AND('Enrollment Form'!$CE319=\"Yes\",'Enrollment Form'!$CF319=\"\"),\"N\",\"Y\"))","v":"-"},{"$f":"IF(OR('Enrollment Form'!$CG319=\"\",'Enrollment Form'!$CG319=\"No\"),\"-\",IF(AND('Enrollment Form'!$CG319=\"Yes\",'Enrollment Form'!$CH319=\"\"),\"N\",\"Y\"))","v":"-"},{"$f":"IF(OR('Enrollment Form'!$CG319=\"\",'Enrollment Form'!$CG319=\"No\"),\"-\",IF(AND('Enrollment Form'!$CG319=\"Yes\",'Enrollment Form'!$CI319=\"\"),\"N\",\"Y\"))","v":"-"},{"$f":"IF('Enrollment Form'!B319<>\"Subscriber\",\"-\",IF(AND('Enrollment Form'!B319=\"Subscriber\",'Enrollment Form'!C319=\"Enroll\",'Enrollment Form'!AA319=\"\"),\"N\",\"Y\"))","v":"-"},{"$f":"IF(OR('Enrollment Form'!B319=\"Subscriber\",'Enrollment Form'!B319=\"\"),\"-\",IF('Enrollment Form'!BI319=\"\",\"N\",\"Y\"))","v":"-"},{"$f":"IF('Enrollment Form'!B319<>\"Subscriber\",\"-\",IF(AND('Enrollment Form'!B319=\"Subscriber\",'Enrollment Form'!G319=\"\"),\"N\",\"Y\"))","v":"-"},{"$f":"IF('Enrollment Form'!A319=\"\",\"\",IF('Enrollment Form'!B319=\"Subscriber\",\"-\",IF(AND('Enrollment Form'!B319<>\"Subscriber\",'Enrollment Form'!G319='Enrollment Form'!H319),\"N\",\"Y\")))","v":""},0]
[320,{"$f":"IF('Enrollment Form'!$A320<>\"\",\"Y\",\"N\")","v":"N"},{"$f":"IF(AND('Enrollment Form'!$B320=\"\",'Enrollment Form'!$C320<>\"\"),\"N\",IF($B313=\"N\",\"\",\"Y\"))","v":""},{"$f":"IF(OR($B313=\"N\",'Enrollment Form'!G320=\"\"),\"\",IF('Enrollment Form'!$B320<>\"Subscriber\",\"\",IF('Enrollment Form'!$G320='Enrollment Form'!$H320,\"Y\",\"N\")))","v":""},{"$f":"IF($B313=\"N\",\"\",IF(AND(COUNTIFS('Enrollment Form'!$H$11:$H$1000,'Enrollment Form'!$H320,'Enrollment Form'!$B$11:$B$1000,'Enrollment Form'!$B320)>1,'Enrollment Form'!$H320<>\"\"),\"N\",\"Y\"))","v":""},{"$f":"IF($B313=\"N\",\"\",IF(LEN('Enrollment Form'!$Y320)=0,\"\",IF(LEN('Enrollment Form'!$Y320)<>5,\"N\",\"Y\")))","v":""},{"$f":"IF($B313=\"N\",\"\",IF(LEN('Enrollment Form'!$AD320=0),\"\",IF(LEN('Enrollment Form'!$AD320)<>5,\"N\",\"Y\")))","v":""},{"$f":"IF($B313=\"N\",\"\",IF(LEN('Enrollment Form'!$BL320=0),\"\",IF(LEN('Enrollment Form'!$BL320)<>5,\"N\",\"Y\")))","v":""},{"$f":"IF($B313=\"N\",\"\",IF(LEN('Enrollment Form'!$AE320)=0,\"\",IF(LEN('Enrollment Form'!$AE320)<>10,\"N\",\"Y\")))","v":""},{"$f":"IF($B313=\"N\",\"\",IF(LEN('Enrollment Form'!$AF320)=0,\"\",IF(LEN('Enrollment Form'!$AF320)<>10,\"N\",\"Y\")))","v":""},{"$f":"IF('Enrollment Form'!$O320<>\"Graded\",\"-\",IF(AND('Enrollment Form'!$O320=\"Graded\",'Enrollment Form'!$AO320<>\"\"),\"Y\",\"N\"))","v":"-"},{"$f":"IF($B313=\"N\",\"\",IF(OR('Enrollment Form'!$B320<>\"Subscriber\",'Enrollment Form'!$C320=\"ROC\"),\"-\",IF(AND('Enrollment Form'!$B320=\"Subscriber\",'Enrollment Form'!$C320=\"Enroll\",'Enrollment Form'!$AJ320<>\"\"),\"Y\",\"N\")))","v":""},{"$f":"IF($B313=\"N\",\"\",IF(OR('Enrollment Form'!$B320<>\"Subscriber\",'Enrollment Form'!$C320=\"ROC\"),\"-\",IF(AND('Enrollment Form'!$B320=\"Subscriber\",'Enrollment Form'!$C320=\"Enroll\",'Enrollment Form'!$AK320<>\"\"),\"Y\",\"N\")))","v":""},{"$f":"IF($B313=\"N\",\"\",IF(OR('Enrollment Form'!$B320<>\"Subscriber\",'Enrollment Form'!$C320=\"ROC\"),\"-\",IF(AND('Enrollment Form'!$B320=\"Subscriber\",'Enrollment Form'!$C320=\"Enroll\",'Enrollment Form'!$AL320<>\"\"),\"Y\",\"N\")))","v":""},{"$f":"IF($B313=\"N\",\"\",IF(OR('Enrollment Form'!$B320<>\"Subscriber\",'Enrollment Form'!$C320=\"ROC\"),\"-\",IF(AND('Enrollment Form'!$B320=\"Subscriber\",'Enrollment Form'!$C320=\"Enroll\",'Enrollment Form'!$AM320<>\"\"),\"Y\",\"N\")))","v":""},{"$f":"IF($B313=\"N\",\"\",IF(OR('Enrollment Form'!$B320<>\"Subscriber\",'Enrollment Form'!$C320=\"ROC\"),\"-\",IF(AND('Enrollment Form'!$B320=\"Subscriber\",'Enrollment Form'!$C320=\"Enroll\",'Enrollment Form'!$AN320<>\"\"),\"Y\",\"N\")))","v":""},{"$f":"IF($B313=\"N\",\"\",IF(OR('Enrollment Form'!$B320<>\"Subscriber\",'Enrollment Form'!$C320=\"ROC\"),\"-\",IF(AND('Enrollment Form'!$B320=\"Subscriber\",'Enrollment Form'!$C320=\"Enroll\",'Enrollment Form'!$AP320<>\"\"),\"Y\",\"N\")))","v":""},{"$f":"IF($B313=\"N\",\"\",IF($Q313=\"-\",\"-\",IF(AND($Q313=\"Y\",'Enrollment Form'!$AP320=\"No\"),\"-\",IF(AND($Q313=\"Y\",'Enrollment Form'!$AP320=\"Yes\",'Enrollment Form'!$AQ320<>\"\"),\"Y\",\"N\"))))","v":""},{"$f":"IF($B313=\"N\",\"\",IF(OR('Enrollment Form'!$B320<>\"Subscriber\",'Enrollment Form'!$C320=\"ROC\"),\"-\",IF(AND('Enrollment Form'!$B320=\"Subscriber\",'Enrollment Form'!$C320=\"Enroll\",'Enrollment Form'!$CO320<>\"\"),\"Y\",\"N\")))","v":""},{"$f":"IF($B313=\"N\",\"\",IF($S313=\"-\",\"-\",IF(AND($S313=\"Y\",'Enrollment Form'!$CO320=\"No\"),\"-\",IF(AND($S313=\"Y\",'Enrollment Form'!$CO320=\"Yes\",'Enrollment Form'!$CP320<>\"\"),\"Y\",\"N\"))))","v":""},{"$f":"IF(OR('Enrollment Form'!$AV320=\"Yes\",'Enrollment Form'!$AV320=\"\"),\"-\",IF(AND('Enrollment Form'!$AV320=\"No\",ISERROR(FIND(\"HMO\",VLOOKUP('Enrollment Form'!G320,'Enrollment Form'!H$11:J$1000,3,FALSE),1))=FALSE,COUNTA('Enrollment Form'!$AW320:$AZ320)=4),\"Y\",\"N\"))","v":"-"},{"$f":"IF($B313=\"N\",\"\",IF('Enrollment Form'!$B320=\"Subscriber\",\"-\",IF(COUNTA('Enrollment Form'!$BE320,'Enrollment Form'!$BG320)=2,\"Y\",\"N\")))","v":""},{"$f":"IF($B313=\"N\",\"\",IF(OR('Enrollment Form'!$AU320=\"\",'Enrollment Form'!$AU320=\"No\"),\"-\",IF(AND('Enrollment Form'!$AU320=\"Yes\",COUNTA('Enrollment Form'!$CK320)=1),\"Y\",\"N\")))","v":""},{"$f":"IF(OR('Enrollment Form'!$CK320=\"\",'Enrollment Form'!$CK320=\"No\"),\"-\",IF(COUNTA('Enrollment Form'!$CM320:$CN320)=2,\"Y\",\"N\"))","v":"-"},{"$f":"IF($B313=\"N\",\"\",IF(COUNTIF('Enrollment Form'!$CZ320:$DO320,\"Other\")=COUNTA('Enrollment Form'!$DF320,'Enrollment Form'!$DA320,'Enrollment Form'!$DK320,'Enrollment Form'!$DP320),\"Y\",\"N\"))","v":""},{"$f":"IF($B313=\"N\",\"\",IF(OR('Enrollment Form'!B320<>\"Subscriber\",'Enrollment Form'!C320=\"ROC\",COUNTIF('Enrollment Form'!AS320:AT320,\"Yes\")>=1),\"-\",IF(AND('Enrollment Form'!C320=\"Enroll\",COUNTIF('Enrollment Form'!AS320:AT320,\"No\")=2,'Enrollment Form'!AU320=\"\"),\"N\",\"Y\")))","v":""},{"$f":"IF(OR(B313=\"N\",'Enrollment Form'!B320<>\"Subscriber\",'Enrollment Form'!C320=\"ROC\",'Enrollment Form'!O320<>\"Multiple of Salary\"),\"-\",IF(COUNTA('Enrollment Form'!T320:U320)<2,\"N\",\"Y\"))","v":"-"},{"$f":"IF(B313=\"N\",\"\",IF(OR('Enrollment Form'!C320=\"ROC\",'Enrollment Form'!B320<>\"Subscriber\",'Enrollment Form'!O320=\"Waive\",'Enrollment Form'!O320=\"\"),\"-\",IF('Enrollment Form'!P320=\"\",\"N\",\"Y\")))","v":""},{"$f":"IF($B313=\"N\",\"\",IF(AND('Enrollment Form'!$C320=\"ROC\",'Enrollment Form'!$DS320<>\"\"),\"Y\",IF(AND('Enrollment Form'!$C320=\"ROC\",'Enrollment Form'!$DS320=\"\"),\"N\",IF(AND('Enrollment Form'!$C320=\"Enroll\",'Enrollment Form'!$B320=\"Subscriber\",'Enrollment Form'!$CQ320=\"No\",'Enrollment Form'!$DS320=\"\"),\"N\",IF(AND('Enrollment Form'!$C320=\"Enroll\",'Enrollment Form'!$B320=\"Subscriber\",'Enrollment Form'!$CQ320=\"Yes\"),\"-\",\"Y\")))))","v":""},{"$f":"IF($B313=\"N\",\"\",IF(AND('Enrollment Form'!$C320=\"ROC\",'Enrollment Form'!$DT320<>\"\"),\"Y\",IF(AND('Enrollment Form'!$C320=\"ROC\",'Enrollment Form'!$DT320=\"\"),\"N\",IF(AND('Enrollment Form'!$C320=\"Enroll\",'Enrollment Form'!$B320=\"Subscriber\",'Enrollment Form'!$CQ320=\"No\",'Enrollment Form'!$DT320=\"\"),\"N\",IF(AND('Enrollment Form'!$C320=\"Enroll\",'Enrollment Form'!$B320=\"Subscriber\",'Enrollment Form'!$CQ320=\"Yes\"),\"-\",\"Y\")))))","v":""},{"$f":"IF('Enrollment Form'!AH320=\"\",\"\",IF(ISERROR(SEARCH(\".\",'Enrollment Form'!AH320,SEARCH(\"@\",'Enrollment Form'!AH320))),\"N\",\"Y\"))","v":""},{"$f":"IF(OR($B313=\"N\",'Enrollment Form'!$G320=\"\"),\"\",IF('Enrollment Form'!$B320<>\"Subscriber\",\"-\",IF(COUNTIF('Enrollment Form'!$AS320:$AT320,\"Yes\")=2,\"N\",\"Y\")))","v":""},{"$f":"IF(OR('Enrollment Form'!$CC320=\"\",'Enrollment Form'!$CC320=\"No\"),\"-\",IF(AND('Enrollment Form'!$CC320=\"Yes\",'Enrollment Form'!$CD320=\"\"),\"N\",\"Y\"))","v":"-"},{"$f":"IF(OR('Enrollment Form'!$CE320=\"\",'Enrollment Form'!$CE320=\"No\"),\"-\",IF(AND('Enrollment Form'!$CE320=\"Yes\",'Enrollment Form'!$CF320=\"\"),\"N\",\"Y\"))","v":"-"},{"$f":"IF(OR('Enrollment Form'!$CG320=\"\",'Enrollment Form'!$CG320=\"No\"),\"-\",IF(AND('Enrollment Form'!$CG320=\"Yes\",'Enrollment Form'!$CH320=\"\"),\"N\",\"Y\"))","v":"-"},{"$f":"IF(OR('Enrollment Form'!$CG320=\"\",'Enrollment Form'!$CG320=\"No\"),\"-\",IF(AND('Enrollment Form'!$CG320=\"Yes\",'Enrollment Form'!$CI320=\"\"),\"N\",\"Y\"))","v":"-"},{"$f":"IF('Enrollment Form'!B320<>\"Subscriber\",\"-\",IF(AND('Enrollment Form'!B320=\"Subscriber\",'Enrollment Form'!C320=\"Enroll\",'Enrollment Form'!AA320=\"\"),\"N\",\"Y\"))","v":"-"},{"$f":"IF(OR('Enrollment Form'!B320=\"Subscriber\",'Enrollment Form'!B320=\"\"),\"-\",IF('Enrollment Form'!BI320=\"\",\"N\",\"Y\"))","v":"-"},{"$f":"IF('Enrollment Form'!B320<>\"Subscriber\",\"-\",IF(AND('Enrollment Form'!B320=\"Subscriber\",'Enrollment Form'!G320=\"\"),\"N\",\"Y\"))","v":"-"},{"$f":"IF('Enrollment Form'!A320=\"\",\"\",IF('Enrollment Form'!B320=\"Subscriber\",\"-\",IF(AND('Enrollment Form'!B320<>\"Subscriber\",'Enrollment Form'!G320='Enrollment Form'!H320),\"N\",\"Y\")))","v":""},0]
[321,{"$f":"IF('Enrollment Form'!$A321<>\"\",\"Y\",\"N\")","v":"N"},{"$f":"IF(AND('Enrollment Form'!$B321=\"\",'Enrollment Form'!$C321<>\"\"),\"N\",IF($B314=\"N\",\"\",\"Y\"))","v":""},{"$f":"IF(OR($B314=\"N\",'Enrollment Form'!G321=\"\"),\"\",IF('Enrollment Form'!$B321<>\"Subscriber\",\"\",IF('Enrollment Form'!$G321='Enrollment Form'!$H321,\"Y\",\"N\")))","v":""},{"$f":"IF($B314=\"N\",\"\",IF(AND(COUNTIFS('Enrollment Form'!$H$11:$H$1000,'Enrollment Form'!$H321,'Enrollment Form'!$B$11:$B$1000,'Enrollment Form'!$B321)>1,'Enrollment Form'!$H321<>\"\"),\"N\",\"Y\"))","v":""},{"$f":"IF($B314=\"N\",\"\",IF(LEN('Enrollment Form'!$Y321)=0,\"\",IF(LEN('Enrollment Form'!$Y321)<>5,\"N\",\"Y\")))","v":""},{"$f":"IF($B314=\"N\",\"\",IF(LEN('Enrollment Form'!$AD321=0),\"\",IF(LEN('Enrollment Form'!$AD321)<>5,\"N\",\"Y\")))","v":""},{"$f":"IF($B314=\"N\",\"\",IF(LEN('Enrollment Form'!$BL321=0),\"\",IF(LEN('Enrollment Form'!$BL321)<>5,\"N\",\"Y\")))","v":""},{"$f":"IF($B314=\"N\",\"\",IF(LEN('Enrollment Form'!$AE321)=0,\"\",IF(LEN('Enrollment Form'!$AE321)<>10,\"N\",\"Y\")))","v":""},{"$f":"IF($B314=\"N\",\"\",IF(LEN('Enrollment Form'!$AF321)=0,\"\",IF(LEN('Enrollment Form'!$AF321)<>10,\"N\",\"Y\")))","v":""},{"$f":"IF('Enrollment Form'!$O321<>\"Graded\",\"-\",IF(AND('Enrollment Form'!$O321=\"Graded\",'Enrollment Form'!$AO321<>\"\"),\"Y\",\"N\"))","v":"-"},{"$f":"IF($B314=\"N\",\"\",IF(OR('Enrollment Form'!$B321<>\"Subscriber\",'Enrollment Form'!$C321=\"ROC\"),\"-\",IF(AND('Enrollment Form'!$B321=\"Subscriber\",'Enrollment Form'!$C321=\"Enroll\",'Enrollment Form'!$AJ321<>\"\"),\"Y\",\"N\")))","v":""},{"$f":"IF($B314=\"N\",\"\",IF(OR('Enrollment Form'!$B321<>\"Subscriber\",'Enrollment Form'!$C321=\"ROC\"),\"-\",IF(AND('Enrollment Form'!$B321=\"Subscriber\",'Enrollment Form'!$C321=\"Enroll\",'Enrollment Form'!$AK321<>\"\"),\"Y\",\"N\")))","v":""},{"$f":"IF($B314=\"N\",\"\",IF(OR('Enrollment Form'!$B321<>\"Subscriber\",'Enrollment Form'!$C321=\"ROC\"),\"-\",IF(AND('Enrollment Form'!$B321=\"Subscriber\",'Enrollment Form'!$C321=\"Enroll\",'Enrollment Form'!$AL321<>\"\"),\"Y\",\"N\")))","v":""},{"$f":"IF($B314=\"N\",\"\",IF(OR('Enrollment Form'!$B321<>\"Subscriber\",'Enrollment Form'!$C321=\"ROC\"),\"-\",IF(AND('Enrollment Form'!$B321=\"Subscriber\",'Enrollment Form'!$C321=\"Enroll\",'Enrollment Form'!$AM321<>\"\"),\"Y\",\"N\")))","v":""},{"$f":"IF($B314=\"N\",\"\",IF(OR('Enrollment Form'!$B321<>\"Subscriber\",'Enrollment Form'!$C321=\"ROC\"),\"-\",IF(AND('Enrollment Form'!$B321=\"Subscriber\",'Enrollment Form'!$C321=\"Enroll\",'Enrollment Form'!$AN321<>\"\"),\"Y\",\"N\")))","v":""},{"$f":"IF($B314=\"N\",\"\",IF(OR('Enrollment Form'!$B321<>\"Subscriber\",'Enrollment Form'!$C321=\"ROC\"),\"-\",IF(AND('Enrollment Form'!$B321=\"Subscriber\",'Enrollment Form'!$C321=\"Enroll\",'Enrollment Form'!$AP321<>\"\"),\"Y\",\"N\")))","v":""},{"$f":"IF($B314=\"N\",\"\",IF($Q314=\"-\",\"-\",IF(AND($Q314=\"Y\",'Enrollment Form'!$AP321=\"No\"),\"-\",IF(AND($Q314=\"Y\",'Enrollment Form'!$AP321=\"Yes\",'Enrollment Form'!$AQ321<>\"\"),\"Y\",\"N\"))))","v":""},{"$f":"IF($B314=\"N\",\"\",IF(OR('Enrollment Form'!$B321<>\"Subscriber\",'Enrollment Form'!$C321=\"ROC\"),\"-\",IF(AND('Enrollment Form'!$B321=\"Subscriber\",'Enrollment Form'!$C321=\"Enroll\",'Enrollment Form'!$CO321<>\"\"),\"Y\",\"N\")))","v":""},{"$f":"IF($B314=\"N\",\"\",IF($S314=\"-\",\"-\",IF(AND($S314=\"Y\",'Enrollment Form'!$CO321=\"No\"),\"-\",IF(AND($S314=\"Y\",'Enrollment Form'!$CO321=\"Yes\",'Enrollment Form'!$CP321<>\"\"),\"Y\",\"N\"))))","v":""},{"$f":"IF(OR('Enrollment Form'!$AV321=\"Yes\",'Enrollment Form'!$AV321=\"\"),\"-\",IF(AND('Enrollment Form'!$AV321=\"No\",ISERROR(FIND(\"HMO\",VLOOKUP('Enrollment Form'!G321,'Enrollment Form'!H$11:J$1000,3,FALSE),1))=FALSE,COUNTA('Enrollment Form'!$AW321:$AZ321)=4),\"Y\",\"N\"))","v":"-"},{"$f":"IF($B314=\"N\",\"\",IF('Enrollment Form'!$B321=\"Subscriber\",\"-\",IF(COUNTA('Enrollment Form'!$BE321,'Enrollment Form'!$BG321)=2,\"Y\",\"N\")))","v":""},{"$f":"IF($B314=\"N\",\"\",IF(OR('Enrollment Form'!$AU321=\"\",'Enrollment Form'!$AU321=\"No\"),\"-\",IF(AND('Enrollment Form'!$AU321=\"Yes\",COUNTA('Enrollment Form'!$CK321)=1),\"Y\",\"N\")))","v":""},{"$f":"IF(OR('Enrollment Form'!$CK321=\"\",'Enrollment Form'!$CK321=\"No\"),\"-\",IF(COUNTA('Enrollment Form'!$CM321:$CN321)=2,\"Y\",\"N\"))","v":"-"},{"$f":"IF($B314=\"N\",\"\",IF(COUNTIF('Enrollment Form'!$CZ321:$DO321,\"Other\")=COUNTA('Enrollment Form'!$DF321,'Enrollment Form'!$DA321,'Enrollment Form'!$DK321,'Enrollment Form'!$DP321),\"Y\",\"N\"))","v":""},{"$f":"IF($B314=\"N\",\"\",IF(OR('Enrollment Form'!B321<>\"Subscriber\",'Enrollment Form'!C321=\"ROC\",COUNTIF('Enrollment Form'!AS321:AT321,\"Yes\")>=1),\"-\",IF(AND('Enrollment Form'!C321=\"Enroll\",COUNTIF('Enrollment Form'!AS321:AT321,\"No\")=2,'Enrollment Form'!AU321=\"\"),\"N\",\"Y\")))","v":""},{"$f":"IF(OR(B314=\"N\",'Enrollment Form'!B321<>\"Subscriber\",'Enrollment Form'!C321=\"ROC\",'Enrollment Form'!O321<>\"Multiple of Salary\"),\"-\",IF(COUNTA('Enrollment Form'!T321:U321)<2,\"N\",\"Y\"))","v":"-"},{"$f":"IF(B314=\"N\",\"\",IF(OR('Enrollment Form'!C321=\"ROC\",'Enrollment Form'!B321<>\"Subscriber\",'Enrollment Form'!O321=\"Waive\",'Enrollment Form'!O321=\"\"),\"-\",IF('Enrollment Form'!P321=\"\",\"N\",\"Y\")))","v":""},{"$f":"IF($B314=\"N\",\"\",IF(AND('Enrollment Form'!$C321=\"ROC\",'Enrollment Form'!$DS321<>\"\"),\"Y\",IF(AND('Enrollment Form'!$C321=\"ROC\",'Enrollment Form'!$DS321=\"\"),\"N\",IF(AND('Enrollment Form'!$C321=\"Enroll\",'Enrollment Form'!$B321=\"Subscriber\",'Enrollment Form'!$CQ321=\"No\",'Enrollment Form'!$DS321=\"\"),\"N\",IF(AND('Enrollment Form'!$C321=\"Enroll\",'Enrollment Form'!$B321=\"Subscriber\",'Enrollment Form'!$CQ321=\"Yes\"),\"-\",\"Y\")))))","v":""},{"$f":"IF($B314=\"N\",\"\",IF(AND('Enrollment Form'!$C321=\"ROC\",'Enrollment Form'!$DT321<>\"\"),\"Y\",IF(AND('Enrollment Form'!$C321=\"ROC\",'Enrollment Form'!$DT321=\"\"),\"N\",IF(AND('Enrollment Form'!$C321=\"Enroll\",'Enrollment Form'!$B321=\"Subscriber\",'Enrollment Form'!$CQ321=\"No\",'Enrollment Form'!$DT321=\"\"),\"N\",IF(AND('Enrollment Form'!$C321=\"Enroll\",'Enrollment Form'!$B321=\"Subscriber\",'Enrollment Form'!$CQ321=\"Yes\"),\"-\",\"Y\")))))","v":""},{"$f":"IF('Enrollment Form'!AH321=\"\",\"\",IF(ISERROR(SEARCH(\".\",'Enrollment Form'!AH321,SEARCH(\"@\",'Enrollment Form'!AH321))),\"N\",\"Y\"))","v":""},{"$f":"IF(OR($B314=\"N\",'Enrollment Form'!$G321=\"\"),\"\",IF('Enrollment Form'!$B321<>\"Subscriber\",\"-\",IF(COUNTIF('Enrollment Form'!$AS321:$AT321,\"Yes\")=2,\"N\",\"Y\")))","v":""},{"$f":"IF(OR('Enrollment Form'!$CC321=\"\",'Enrollment Form'!$CC321=\"No\"),\"-\",IF(AND('Enrollment Form'!$CC321=\"Yes\",'Enrollment Form'!$CD321=\"\"),\"N\",\"Y\"))","v":"-"},{"$f":"IF(OR('Enrollment Form'!$CE321=\"\",'Enrollment Form'!$CE321=\"No\"),\"-\",IF(AND('Enrollment Form'!$CE321=\"Yes\",'Enrollment Form'!$CF321=\"\"),\"N\",\"Y\"))","v":"-"},{"$f":"IF(OR('Enrollment Form'!$CG321=\"\",'Enrollment Form'!$CG321=\"No\"),\"-\",IF(AND('Enrollment Form'!$CG321=\"Yes\",'Enrollment Form'!$CH321=\"\"),\"N\",\"Y\"))","v":"-"},{"$f":"IF(OR('Enrollment Form'!$CG321=\"\",'Enrollment Form'!$CG321=\"No\"),\"-\",IF(AND('Enrollment Form'!$CG321=\"Yes\",'Enrollment Form'!$CI321=\"\"),\"N\",\"Y\"))","v":"-"},{"$f":"IF('Enrollment Form'!B321<>\"Subscriber\",\"-\",IF(AND('Enrollment Form'!B321=\"Subscriber\",'Enrollment Form'!C321=\"Enroll\",'Enrollment Form'!AA321=\"\"),\"N\",\"Y\"))","v":"-"},{"$f":"IF(OR('Enrollment Form'!B321=\"Subscriber\",'Enrollment Form'!B321=\"\"),\"-\",IF('Enrollment Form'!BI321=\"\",\"N\",\"Y\"))","v":"-"},{"$f":"IF('Enrollment Form'!B321<>\"Subscriber\",\"-\",IF(AND('Enrollment Form'!B321=\"Subscriber\",'Enrollment Form'!G321=\"\"),\"N\",\"Y\"))","v":"-"},{"$f":"IF('Enrollment Form'!A321=\"\",\"\",IF('Enrollment Form'!B321=\"Subscriber\",\"-\",IF(AND('Enrollment Form'!B321<>\"Subscriber\",'Enrollment Form'!G321='Enrollment Form'!H321),\"N\",\"Y\")))","v":""},0]
[322,{"$f":"IF('Enrollment Form'!$A322<>\"\",\"Y\",\"N\")","v":"N"},{"$f":"IF(AND('Enrollment Form'!$B322=\"\",'Enrollment Form'!$C322<>\"\"),\"N\",IF($B315=\"N\",\"\",\"Y\"))","v":""},{"$f":"IF(OR($B315=\"N\",'Enrollment Form'!G322=\"\"),\"\",IF('Enrollment Form'!$B322<>\"Subscriber\",\"\",IF('Enrollment Form'!$G322='Enrollment Form'!$H322,\"Y\",\"N\")))","v":""},{"$f":"IF($B315=\"N\",\"\",IF(AND(COUNTIFS('Enrollment Form'!$H$11:$H$1000,'Enrollment Form'!$H322,'Enrollment Form'!$B$11:$B$1000,'Enrollment Form'!$B322)>1,'Enrollment Form'!$H322<>\"\"),\"N\",\"Y\"))","v":""},{"$f":"IF($B315=\"N\",\"\",IF(LEN('Enrollment Form'!$Y322)=0,\"\",IF(LEN('Enrollment Form'!$Y322)<>5,\"N\",\"Y\")))","v":""},{"$f":"IF($B315=\"N\",\"\",IF(LEN('Enrollment Form'!$AD322=0),\"\",IF(LEN('Enrollment Form'!$AD322)<>5,\"N\",\"Y\")))","v":""},{"$f":"IF($B315=\"N\",\"\",IF(LEN('Enrollment Form'!$BL322=0),\"\",IF(LEN('Enrollment Form'!$BL322)<>5,\"N\",\"Y\")))","v":""},{"$f":"IF($B315=\"N\",\"\",IF(LEN('Enrollment Form'!$AE322)=0,\"\",IF(LEN('Enrollment Form'!$AE322)<>10,\"N\",\"Y\")))","v":""},{"$f":"IF($B315=\"N\",\"\",IF(LEN('Enrollment Form'!$AF322)=0,\"\",IF(LEN('Enrollment Form'!$AF322)<>10,\"N\",\"Y\")))","v":""},{"$f":"IF('Enrollment Form'!$O322<>\"Graded\",\"-\",IF(AND('Enrollment Form'!$O322=\"Graded\",'Enrollment Form'!$AO322<>\"\"),\"Y\",\"N\"))","v":"-"},{"$f":"IF($B315=\"N\",\"\",IF(OR('Enrollment Form'!$B322<>\"Subscriber\",'Enrollment Form'!$C322=\"ROC\"),\"-\",IF(AND('Enrollment Form'!$B322=\"Subscriber\",'Enrollment Form'!$C322=\"Enroll\",'Enrollment Form'!$AJ322<>\"\"),\"Y\",\"N\")))","v":""},{"$f":"IF($B315=\"N\",\"\",IF(OR('Enrollment Form'!$B322<>\"Subscriber\",'Enrollment Form'!$C322=\"ROC\"),\"-\",IF(AND('Enrollment Form'!$B322=\"Subscriber\",'Enrollment Form'!$C322=\"Enroll\",'Enrollment Form'!$AK322<>\"\"),\"Y\",\"N\")))","v":""},{"$f":"IF($B315=\"N\",\"\",IF(OR('Enrollment Form'!$B322<>\"Subscriber\",'Enrollment Form'!$C322=\"ROC\"),\"-\",IF(AND('Enrollment Form'!$B322=\"Subscriber\",'Enrollment Form'!$C322=\"Enroll\",'Enrollment Form'!$AL322<>\"\"),\"Y\",\"N\")))","v":""},{"$f":"IF($B315=\"N\",\"\",IF(OR('Enrollment Form'!$B322<>\"Subscriber\",'Enrollment Form'!$C322=\"ROC\"),\"-\",IF(AND('Enrollment Form'!$B322=\"Subscriber\",'Enrollment Form'!$C322=\"Enroll\",'Enrollment Form'!$AM322<>\"\"),\"Y\",\"N\")))","v":""},{"$f":"IF($B315=\"N\",\"\",IF(OR('Enrollment Form'!$B322<>\"Subscriber\",'Enrollment Form'!$C322=\"ROC\"),\"-\",IF(AND('Enrollment Form'!$B322=\"Subscriber\",'Enrollment Form'!$C322=\"Enroll\",'Enrollment Form'!$AN322<>\"\"),\"Y\",\"N\")))","v":""},{"$f":"IF($B315=\"N\",\"\",IF(OR('Enrollment Form'!$B322<>\"Subscriber\",'Enrollment Form'!$C322=\"ROC\"),\"-\",IF(AND('Enrollment Form'!$B322=\"Subscriber\",'Enrollment Form'!$C322=\"Enroll\",'Enrollment Form'!$AP322<>\"\"),\"Y\",\"N\")))","v":""},{"$f":"IF($B315=\"N\",\"\",IF($Q315=\"-\",\"-\",IF(AND($Q315=\"Y\",'Enrollment Form'!$AP322=\"No\"),\"-\",IF(AND($Q315=\"Y\",'Enrollment Form'!$AP322=\"Yes\",'Enrollment Form'!$AQ322<>\"\"),\"Y\",\"N\"))))","v":""},{"$f":"IF($B315=\"N\",\"\",IF(OR('Enrollment Form'!$B322<>\"Subscriber\",'Enrollment Form'!$C322=\"ROC\"),\"-\",IF(AND('Enrollment Form'!$B322=\"Subscriber\",'Enrollment Form'!$C322=\"Enroll\",'Enrollment Form'!$CO322<>\"\"),\"Y\",\"N\")))","v":""},{"$f":"IF($B315=\"N\",\"\",IF($S315=\"-\",\"-\",IF(AND($S315=\"Y\",'Enrollment Form'!$CO322=\"No\"),\"-\",IF(AND($S315=\"Y\",'Enrollment Form'!$CO322=\"Yes\",'Enrollment Form'!$CP322<>\"\"),\"Y\",\"N\"))))","v":""},{"$f":"IF(OR('Enrollment Form'!$AV322=\"Yes\",'Enrollment Form'!$AV322=\"\"),\"-\",IF(AND('Enrollment Form'!$AV322=\"No\",ISERROR(FIND(\"HMO\",VLOOKUP('Enrollment Form'!G322,'Enrollment Form'!H$11:J$1000,3,FALSE),1))=FALSE,COUNTA('Enrollment Form'!$AW322:$AZ322)=4),\"Y\",\"N\"))","v":"-"},{"$f":"IF($B315=\"N\",\"\",IF('Enrollment Form'!$B322=\"Subscriber\",\"-\",IF(COUNTA('Enrollment Form'!$BE322,'Enrollment Form'!$BG322)=2,\"Y\",\"N\")))","v":""},{"$f":"IF($B315=\"N\",\"\",IF(OR('Enrollment Form'!$AU322=\"\",'Enrollment Form'!$AU322=\"No\"),\"-\",IF(AND('Enrollment Form'!$AU322=\"Yes\",COUNTA('Enrollment Form'!$CK322)=1),\"Y\",\"N\")))","v":""},{"$f":"IF(OR('Enrollment Form'!$CK322=\"\",'Enrollment Form'!$CK322=\"No\"),\"-\",IF(COUNTA('Enrollment Form'!$CM322:$CN322)=2,\"Y\",\"N\"))","v":"-"},{"$f":"IF($B315=\"N\",\"\",IF(COUNTIF('Enrollment Form'!$CZ322:$DO322,\"Other\")=COUNTA('Enrollment Form'!$DF322,'Enrollment Form'!$DA322,'Enrollment Form'!$DK322,'Enrollment Form'!$DP322),\"Y\",\"N\"))","v":""},{"$f":"IF($B315=\"N\",\"\",IF(OR('Enrollment Form'!B322<>\"Subscriber\",'Enrollment Form'!C322=\"ROC\",COUNTIF('Enrollment Form'!AS322:AT322,\"Yes\")>=1),\"-\",IF(AND('Enrollment Form'!C322=\"Enroll\",COUNTIF('Enrollment Form'!AS322:AT322,\"No\")=2,'Enrollment Form'!AU322=\"\"),\"N\",\"Y\")))","v":""},{"$f":"IF(OR(B315=\"N\",'Enrollment Form'!B322<>\"Subscriber\",'Enrollment Form'!C322=\"ROC\",'Enrollment Form'!O322<>\"Multiple of Salary\"),\"-\",IF(COUNTA('Enrollment Form'!T322:U322)<2,\"N\",\"Y\"))","v":"-"},{"$f":"IF(B315=\"N\",\"\",IF(OR('Enrollment Form'!C322=\"ROC\",'Enrollment Form'!B322<>\"Subscriber\",'Enrollment Form'!O322=\"Waive\",'Enrollment Form'!O322=\"\"),\"-\",IF('Enrollment Form'!P322=\"\",\"N\",\"Y\")))","v":""},{"$f":"IF($B315=\"N\",\"\",IF(AND('Enrollment Form'!$C322=\"ROC\",'Enrollment Form'!$DS322<>\"\"),\"Y\",IF(AND('Enrollment Form'!$C322=\"ROC\",'Enrollment Form'!$DS322=\"\"),\"N\",IF(AND('Enrollment Form'!$C322=\"Enroll\",'Enrollment Form'!$B322=\"Subscriber\",'Enrollment Form'!$CQ322=\"No\",'Enrollment Form'!$DS322=\"\"),\"N\",IF(AND('Enrollment Form'!$C322=\"Enroll\",'Enrollment Form'!$B322=\"Subscriber\",'Enrollment Form'!$CQ322=\"Yes\"),\"-\",\"Y\")))))","v":""},{"$f":"IF($B315=\"N\",\"\",IF(AND('Enrollment Form'!$C322=\"ROC\",'Enrollment Form'!$DT322<>\"\"),\"Y\",IF(AND('Enrollment Form'!$C322=\"ROC\",'Enrollment Form'!$DT322=\"\"),\"N\",IF(AND('Enrollment Form'!$C322=\"Enroll\",'Enrollment Form'!$B322=\"Subscriber\",'Enrollment Form'!$CQ322=\"No\",'Enrollment Form'!$DT322=\"\"),\"N\",IF(AND('Enrollment Form'!$C322=\"Enroll\",'Enrollment Form'!$B322=\"Subscriber\",'Enrollment Form'!$CQ322=\"Yes\"),\"-\",\"Y\")))))","v":""},{"$f":"IF('Enrollment Form'!AH322=\"\",\"\",IF(ISERROR(SEARCH(\".\",'Enrollment Form'!AH322,SEARCH(\"@\",'Enrollment Form'!AH322))),\"N\",\"Y\"))","v":""},{"$f":"IF(OR($B315=\"N\",'Enrollment Form'!$G322=\"\"),\"\",IF('Enrollment Form'!$B322<>\"Subscriber\",\"-\",IF(COUNTIF('Enrollment Form'!$AS322:$AT322,\"Yes\")=2,\"N\",\"Y\")))","v":""},{"$f":"IF(OR('Enrollment Form'!$CC322=\"\",'Enrollment Form'!$CC322=\"No\"),\"-\",IF(AND('Enrollment Form'!$CC322=\"Yes\",'Enrollment Form'!$CD322=\"\"),\"N\",\"Y\"))","v":"-"},{"$f":"IF(OR('Enrollment Form'!$CE322=\"\",'Enrollment Form'!$CE322=\"No\"),\"-\",IF(AND('Enrollment Form'!$CE322=\"Yes\",'Enrollment Form'!$CF322=\"\"),\"N\",\"Y\"))","v":"-"},{"$f":"IF(OR('Enrollment Form'!$CG322=\"\",'Enrollment Form'!$CG322=\"No\"),\"-\",IF(AND('Enrollment Form'!$CG322=\"Yes\",'Enrollment Form'!$CH322=\"\"),\"N\",\"Y\"))","v":"-"},{"$f":"IF(OR('Enrollment Form'!$CG322=\"\",'Enrollment Form'!$CG322=\"No\"),\"-\",IF(AND('Enrollment Form'!$CG322=\"Yes\",'Enrollment Form'!$CI322=\"\"),\"N\",\"Y\"))","v":"-"},{"$f":"IF('Enrollment Form'!B322<>\"Subscriber\",\"-\",IF(AND('Enrollment Form'!B322=\"Subscriber\",'Enrollment Form'!C322=\"Enroll\",'Enrollment Form'!AA322=\"\"),\"N\",\"Y\"))","v":"-"},{"$f":"IF(OR('Enrollment Form'!B322=\"Subscriber\",'Enrollment Form'!B322=\"\"),\"-\",IF('Enrollment Form'!BI322=\"\",\"N\",\"Y\"))","v":"-"},{"$f":"IF('Enrollment Form'!B322<>\"Subscriber\",\"-\",IF(AND('Enrollment Form'!B322=\"Subscriber\",'Enrollment Form'!G322=\"\"),\"N\",\"Y\"))","v":"-"},{"$f":"IF('Enrollment Form'!A322=\"\",\"\",IF('Enrollment Form'!B322=\"Subscriber\",\"-\",IF(AND('Enrollment Form'!B322<>\"Subscriber\",'Enrollment Form'!G322='Enrollment Form'!H322),\"N\",\"Y\")))","v":""},0]
[323,{"$f":"IF('Enrollment Form'!$A323<>\"\",\"Y\",\"N\")","v":"N"},{"$f":"IF(AND('Enrollment Form'!$B323=\"\",'Enrollment Form'!$C323<>\"\"),\"N\",IF($B316=\"N\",\"\",\"Y\"))","v":""},{"$f":"IF(OR($B316=\"N\",'Enrollment Form'!G323=\"\"),\"\",IF('Enrollment Form'!$B323<>\"Subscriber\",\"\",IF('Enrollment Form'!$G323='Enrollment Form'!$H323,\"Y\",\"N\")))","v":""},{"$f":"IF($B316=\"N\",\"\",IF(AND(COUNTIFS('Enrollment Form'!$H$11:$H$1000,'Enrollment Form'!$H323,'Enrollment Form'!$B$11:$B$1000,'Enrollment Form'!$B323)>1,'Enrollment Form'!$H323<>\"\"),\"N\",\"Y\"))","v":""},{"$f":"IF($B316=\"N\",\"\",IF(LEN('Enrollment Form'!$Y323)=0,\"\",IF(LEN('Enrollment Form'!$Y323)<>5,\"N\",\"Y\")))","v":""},{"$f":"IF($B316=\"N\",\"\",IF(LEN('Enrollment Form'!$AD323=0),\"\",IF(LEN('Enrollment Form'!$AD323)<>5,\"N\",\"Y\")))","v":""},{"$f":"IF($B316=\"N\",\"\",IF(LEN('Enrollment Form'!$BL323=0),\"\",IF(LEN('Enrollment Form'!$BL323)<>5,\"N\",\"Y\")))","v":""},{"$f":"IF($B316=\"N\",\"\",IF(LEN('Enrollment Form'!$AE323)=0,\"\",IF(LEN('Enrollment Form'!$AE323)<>10,\"N\",\"Y\")))","v":""},{"$f":"IF($B316=\"N\",\"\",IF(LEN('Enrollment Form'!$AF323)=0,\"\",IF(LEN('Enrollment Form'!$AF323)<>10,\"N\",\"Y\")))","v":""},{"$f":"IF('Enrollment Form'!$O323<>\"Graded\",\"-\",IF(AND('Enrollment Form'!$O323=\"Graded\",'Enrollment Form'!$AO323<>\"\"),\"Y\",\"N\"))","v":"-"},{"$f":"IF($B316=\"N\",\"\",IF(OR('Enrollment Form'!$B323<>\"Subscriber\",'Enrollment Form'!$C323=\"ROC\"),\"-\",IF(AND('Enrollment Form'!$B323=\"Subscriber\",'Enrollment Form'!$C323=\"Enroll\",'Enrollment Form'!$AJ323<>\"\"),\"Y\",\"N\")))","v":""},{"$f":"IF($B316=\"N\",\"\",IF(OR('Enrollment Form'!$B323<>\"Subscriber\",'Enrollment Form'!$C323=\"ROC\"),\"-\",IF(AND('Enrollment Form'!$B323=\"Subscriber\",'Enrollment Form'!$C323=\"Enroll\",'Enrollment Form'!$AK323<>\"\"),\"Y\",\"N\")))","v":""},{"$f":"IF($B316=\"N\",\"\",IF(OR('Enrollment Form'!$B323<>\"Subscriber\",'Enrollment Form'!$C323=\"ROC\"),\"-\",IF(AND('Enrollment Form'!$B323=\"Subscriber\",'Enrollment Form'!$C323=\"Enroll\",'Enrollment Form'!$AL323<>\"\"),\"Y\",\"N\")))","v":""},{"$f":"IF($B316=\"N\",\"\",IF(OR('Enrollment Form'!$B323<>\"Subscriber\",'Enrollment Form'!$C323=\"ROC\"),\"-\",IF(AND('Enrollment Form'!$B323=\"Subscriber\",'Enrollment Form'!$C323=\"Enroll\",'Enrollment Form'!$AM323<>\"\"),\"Y\",\"N\")))","v":""},{"$f":"IF($B316=\"N\",\"\",IF(OR('Enrollment Form'!$B323<>\"Subscriber\",'Enrollment Form'!$C323=\"ROC\"),\"-\",IF(AND('Enrollment Form'!$B323=\"Subscriber\",'Enrollment Form'!$C323=\"Enroll\",'Enrollment Form'!$AN323<>\"\"),\"Y\",\"N\")))","v":""},{"$f":"IF($B316=\"N\",\"\",IF(OR('Enrollment Form'!$B323<>\"Subscriber\",'Enrollment Form'!$C323=\"ROC\"),\"-\",IF(AND('Enrollment Form'!$B323=\"Subscriber\",'Enrollment Form'!$C323=\"Enroll\",'Enrollment Form'!$AP323<>\"\"),\"Y\",\"N\")))","v":""},{"$f":"IF($B316=\"N\",\"\",IF($Q316=\"-\",\"-\",IF(AND($Q316=\"Y\",'Enrollment Form'!$AP323=\"No\"),\"-\",IF(AND($Q316=\"Y\",'Enrollment Form'!$AP323=\"Yes\",'Enrollment Form'!$AQ323<>\"\"),\"Y\",\"N\"))))","v":""},{"$f":"IF($B316=\"N\",\"\",IF(OR('Enrollment Form'!$B323<>\"Subscriber\",'Enrollment Form'!$C323=\"ROC\"),\"-\",IF(AND('Enrollment Form'!$B323=\"Subscriber\",'Enrollment Form'!$C323=\"Enroll\",'Enrollment Form'!$CO323<>\"\"),\"Y\",\"N\")))","v":""},{"$f":"IF($B316=\"N\",\"\",IF($S316=\"-\",\"-\",IF(AND($S316=\"Y\",'Enrollment Form'!$CO323=\"No\"),\"-\",IF(AND($S316=\"Y\",'Enrollment Form'!$CO323=\"Yes\",'Enrollment Form'!$CP323<>\"\"),\"Y\",\"N\"))))","v":""},{"$f":"IF(OR('Enrollment Form'!$AV323=\"Yes\",'Enrollment Form'!$AV323=\"\"),\"-\",IF(AND('Enrollment Form'!$AV323=\"No\",ISERROR(FIND(\"HMO\",VLOOKUP('Enrollment Form'!G323,'Enrollment Form'!H$11:J$1000,3,FALSE),1))=FALSE,COUNTA('Enrollment Form'!$AW323:$AZ323)=4),\"Y\",\"N\"))","v":"-"},{"$f":"IF($B316=\"N\",\"\",IF('Enrollment Form'!$B323=\"Subscriber\",\"-\",IF(COUNTA('Enrollment Form'!$BE323,'Enrollment Form'!$BG323)=2,\"Y\",\"N\")))","v":""},{"$f":"IF($B316=\"N\",\"\",IF(OR('Enrollment Form'!$AU323=\"\",'Enrollment Form'!$AU323=\"No\"),\"-\",IF(AND('Enrollment Form'!$AU323=\"Yes\",COUNTA('Enrollment Form'!$CK323)=1),\"Y\",\"N\")))","v":""},{"$f":"IF(OR('Enrollment Form'!$CK323=\"\",'Enrollment Form'!$CK323=\"No\"),\"-\",IF(COUNTA('Enrollment Form'!$CM323:$CN323)=2,\"Y\",\"N\"))","v":"-"},{"$f":"IF($B316=\"N\",\"\",IF(COUNTIF('Enrollment Form'!$CZ323:$DO323,\"Other\")=COUNTA('Enrollment Form'!$DF323,'Enrollment Form'!$DA323,'Enrollment Form'!$DK323,'Enrollment Form'!$DP323),\"Y\",\"N\"))","v":""},{"$f":"IF($B316=\"N\",\"\",IF(OR('Enrollment Form'!B323<>\"Subscriber\",'Enrollment Form'!C323=\"ROC\",COUNTIF('Enrollment Form'!AS323:AT323,\"Yes\")>=1),\"-\",IF(AND('Enrollment Form'!C323=\"Enroll\",COUNTIF('Enrollment Form'!AS323:AT323,\"No\")=2,'Enrollment Form'!AU323=\"\"),\"N\",\"Y\")))","v":""},{"$f":"IF(OR(B316=\"N\",'Enrollment Form'!B323<>\"Subscriber\",'Enrollment Form'!C323=\"ROC\",'Enrollment Form'!O323<>\"Multiple of Salary\"),\"-\",IF(COUNTA('Enrollment Form'!T323:U323)<2,\"N\",\"Y\"))","v":"-"},{"$f":"IF(B316=\"N\",\"\",IF(OR('Enrollment Form'!C323=\"ROC\",'Enrollment Form'!B323<>\"Subscriber\",'Enrollment Form'!O323=\"Waive\",'Enrollment Form'!O323=\"\"),\"-\",IF('Enrollment Form'!P323=\"\",\"N\",\"Y\")))","v":""},{"$f":"IF($B316=\"N\",\"\",IF(AND('Enrollment Form'!$C323=\"ROC\",'Enrollment Form'!$DS323<>\"\"),\"Y\",IF(AND('Enrollment Form'!$C323=\"ROC\",'Enrollment Form'!$DS323=\"\"),\"N\",IF(AND('Enrollment Form'!$C323=\"Enroll\",'Enrollment Form'!$B323=\"Subscriber\",'Enrollment Form'!$CQ323=\"No\",'Enrollment Form'!$DS323=\"\"),\"N\",IF(AND('Enrollment Form'!$C323=\"Enroll\",'Enrollment Form'!$B323=\"Subscriber\",'Enrollment Form'!$CQ323=\"Yes\"),\"-\",\"Y\")))))","v":""},{"$f":"IF($B316=\"N\",\"\",IF(AND('Enrollment Form'!$C323=\"ROC\",'Enrollment Form'!$DT323<>\"\"),\"Y\",IF(AND('Enrollment Form'!$C323=\"ROC\",'Enrollment Form'!$DT323=\"\"),\"N\",IF(AND('Enrollment Form'!$C323=\"Enroll\",'Enrollment Form'!$B323=\"Subscriber\",'Enrollment Form'!$CQ323=\"No\",'Enrollment Form'!$DT323=\"\"),\"N\",IF(AND('Enrollment Form'!$C323=\"Enroll\",'Enrollment Form'!$B323=\"Subscriber\",'Enrollment Form'!$CQ323=\"Yes\"),\"-\",\"Y\")))))","v":""},{"$f":"IF('Enrollment Form'!AH323=\"\",\"\",IF(ISERROR(SEARCH(\".\",'Enrollment Form'!AH323,SEARCH(\"@\",'Enrollment Form'!AH323))),\"N\",\"Y\"))","v":""},{"$f":"IF(OR($B316=\"N\",'Enrollment Form'!$G323=\"\"),\"\",IF('Enrollment Form'!$B323<>\"Subscriber\",\"-\",IF(COUNTIF('Enrollment Form'!$AS323:$AT323,\"Yes\")=2,\"N\",\"Y\")))","v":""},{"$f":"IF(OR('Enrollment Form'!$CC323=\"\",'Enrollment Form'!$CC323=\"No\"),\"-\",IF(AND('Enrollment Form'!$CC323=\"Yes\",'Enrollment Form'!$CD323=\"\"),\"N\",\"Y\"))","v":"-"},{"$f":"IF(OR('Enrollment Form'!$CE323=\"\",'Enrollment Form'!$CE323=\"No\"),\"-\",IF(AND('Enrollment Form'!$CE323=\"Yes\",'Enrollment Form'!$CF323=\"\"),\"N\",\"Y\"))","v":"-"},{"$f":"IF(OR('Enrollment Form'!$CG323=\"\",'Enrollment Form'!$CG323=\"No\"),\"-\",IF(AND('Enrollment Form'!$CG323=\"Yes\",'Enrollment Form'!$CH323=\"\"),\"N\",\"Y\"))","v":"-"},{"$f":"IF(OR('Enrollment Form'!$CG323=\"\",'Enrollment Form'!$CG323=\"No\"),\"-\",IF(AND('Enrollment Form'!$CG323=\"Yes\",'Enrollment Form'!$CI323=\"\"),\"N\",\"Y\"))","v":"-"},{"$f":"IF('Enrollment Form'!B323<>\"Subscriber\",\"-\",IF(AND('Enrollment Form'!B323=\"Subscriber\",'Enrollment Form'!C323=\"Enroll\",'Enrollment Form'!AA323=\"\"),\"N\",\"Y\"))","v":"-"},{"$f":"IF(OR('Enrollment Form'!B323=\"Subscriber\",'Enrollment Form'!B323=\"\"),\"-\",IF('Enrollment Form'!BI323=\"\",\"N\",\"Y\"))","v":"-"},{"$f":"IF('Enrollment Form'!B323<>\"Subscriber\",\"-\",IF(AND('Enrollment Form'!B323=\"Subscriber\",'Enrollment Form'!G323=\"\"),\"N\",\"Y\"))","v":"-"},{"$f":"IF('Enrollment Form'!A323=\"\",\"\",IF('Enrollment Form'!B323=\"Subscriber\",\"-\",IF(AND('Enrollment Form'!B323<>\"Subscriber\",'Enrollment Form'!G323='Enrollment Form'!H323),\"N\",\"Y\")))","v":""},0]
[324,{"$f":"IF('Enrollment Form'!$A324<>\"\",\"Y\",\"N\")","v":"N"},{"$f":"IF(AND('Enrollment Form'!$B324=\"\",'Enrollment Form'!$C324<>\"\"),\"N\",IF($B317=\"N\",\"\",\"Y\"))","v":""},{"$f":"IF(OR($B317=\"N\",'Enrollment Form'!G324=\"\"),\"\",IF('Enrollment Form'!$B324<>\"Subscriber\",\"\",IF('Enrollment Form'!$G324='Enrollment Form'!$H324,\"Y\",\"N\")))","v":""},{"$f":"IF($B317=\"N\",\"\",IF(AND(COUNTIFS('Enrollment Form'!$H$11:$H$1000,'Enrollment Form'!$H324,'Enrollment Form'!$B$11:$B$1000,'Enrollment Form'!$B324)>1,'Enrollment Form'!$H324<>\"\"),\"N\",\"Y\"))","v":""},{"$f":"IF($B317=\"N\",\"\",IF(LEN('Enrollment Form'!$Y324)=0,\"\",IF(LEN('Enrollment Form'!$Y324)<>5,\"N\",\"Y\")))","v":""},{"$f":"IF($B317=\"N\",\"\",IF(LEN('Enrollment Form'!$AD324=0),\"\",IF(LEN('Enrollment Form'!$AD324)<>5,\"N\",\"Y\")))","v":""},{"$f":"IF($B317=\"N\",\"\",IF(LEN('Enrollment Form'!$BL324=0),\"\",IF(LEN('Enrollment Form'!$BL324)<>5,\"N\",\"Y\")))","v":""},{"$f":"IF($B317=\"N\",\"\",IF(LEN('Enrollment Form'!$AE324)=0,\"\",IF(LEN('Enrollment Form'!$AE324)<>10,\"N\",\"Y\")))","v":""},{"$f":"IF($B317=\"N\",\"\",IF(LEN('Enrollment Form'!$AF324)=0,\"\",IF(LEN('Enrollment Form'!$AF324)<>10,\"N\",\"Y\")))","v":""},{"$f":"IF('Enrollment Form'!$O324<>\"Graded\",\"-\",IF(AND('Enrollment Form'!$O324=\"Graded\",'Enrollment Form'!$AO324<>\"\"),\"Y\",\"N\"))","v":"-"},{"$f":"IF($B317=\"N\",\"\",IF(OR('Enrollment Form'!$B324<>\"Subscriber\",'Enrollment Form'!$C324=\"ROC\"),\"-\",IF(AND('Enrollment Form'!$B324=\"Subscriber\",'Enrollment Form'!$C324=\"Enroll\",'Enrollment Form'!$AJ324<>\"\"),\"Y\",\"N\")))","v":""},{"$f":"IF($B317=\"N\",\"\",IF(OR('Enrollment Form'!$B324<>\"Subscriber\",'Enrollment Form'!$C324=\"ROC\"),\"-\",IF(AND('Enrollment Form'!$B324=\"Subscriber\",'Enrollment Form'!$C324=\"Enroll\",'Enrollment Form'!$AK324<>\"\"),\"Y\",\"N\")))","v":""},{"$f":"IF($B317=\"N\",\"\",IF(OR('Enrollment Form'!$B324<>\"Subscriber\",'Enrollment Form'!$C324=\"ROC\"),\"-\",IF(AND('Enrollment Form'!$B324=\"Subscriber\",'Enrollment Form'!$C324=\"Enroll\",'Enrollment Form'!$AL324<>\"\"),\"Y\",\"N\")))","v":""},{"$f":"IF($B317=\"N\",\"\",IF(OR('Enrollment Form'!$B324<>\"Subscriber\",'Enrollment Form'!$C324=\"ROC\"),\"-\",IF(AND('Enrollment Form'!$B324=\"Subscriber\",'Enrollment Form'!$C324=\"Enroll\",'Enrollment Form'!$AM324<>\"\"),\"Y\",\"N\")))","v":""},{"$f":"IF($B317=\"N\",\"\",IF(OR('Enrollment Form'!$B324<>\"Subscriber\",'Enrollment Form'!$C324=\"ROC\"),\"-\",IF(AND('Enrollment Form'!$B324=\"Subscriber\",'Enrollment Form'!$C324=\"Enroll\",'Enrollment Form'!$AN324<>\"\"),\"Y\",\"N\")))","v":""},{"$f":"IF($B317=\"N\",\"\",IF(OR('Enrollment Form'!$B324<>\"Subscriber\",'Enrollment Form'!$C324=\"ROC\"),\"-\",IF(AND('Enrollment Form'!$B324=\"Subscriber\",'Enrollment Form'!$C324=\"Enroll\",'Enrollment Form'!$AP324<>\"\"),\"Y\",\"N\")))","v":""},{"$f":"IF($B317=\"N\",\"\",IF($Q317=\"-\",\"-\",IF(AND($Q317=\"Y\",'Enrollment Form'!$AP324=\"No\"),\"-\",IF(AND($Q317=\"Y\",'Enrollment Form'!$AP324=\"Yes\",'Enrollment Form'!$AQ324<>\"\"),\"Y\",\"N\"))))","v":""},{"$f":"IF($B317=\"N\",\"\",IF(OR('Enrollment Form'!$B324<>\"Subscriber\",'Enrollment Form'!$C324=\"ROC\"),\"-\",IF(AND('Enrollment Form'!$B324=\"Subscriber\",'Enrollment Form'!$C324=\"Enroll\",'Enrollment Form'!$CO324<>\"\"),\"Y\",\"N\")))","v":""},{"$f":"IF($B317=\"N\",\"\",IF($S317=\"-\",\"-\",IF(AND($S317=\"Y\",'Enrollment Form'!$CO324=\"No\"),\"-\",IF(AND($S317=\"Y\",'Enrollment Form'!$CO324=\"Yes\",'Enrollment Form'!$CP324<>\"\"),\"Y\",\"N\"))))","v":""},{"$f":"IF(OR('Enrollment Form'!$AV324=\"Yes\",'Enrollment Form'!$AV324=\"\"),\"-\",IF(AND('Enrollment Form'!$AV324=\"No\",ISERROR(FIND(\"HMO\",VLOOKUP('Enrollment Form'!G324,'Enrollment Form'!H$11:J$1000,3,FALSE),1))=FALSE,COUNTA('Enrollment Form'!$AW324:$AZ324)=4),\"Y\",\"N\"))","v":"-"},{"$f":"IF($B317=\"N\",\"\",IF('Enrollment Form'!$B324=\"Subscriber\",\"-\",IF(COUNTA('Enrollment Form'!$BE324,'Enrollment Form'!$BG324)=2,\"Y\",\"N\")))","v":""},{"$f":"IF($B317=\"N\",\"\",IF(OR('Enrollment Form'!$AU324=\"\",'Enrollment Form'!$AU324=\"No\"),\"-\",IF(AND('Enrollment Form'!$AU324=\"Yes\",COUNTA('Enrollment Form'!$CK324)=1),\"Y\",\"N\")))","v":""},{"$f":"IF(OR('Enrollment Form'!$CK324=\"\",'Enrollment Form'!$CK324=\"No\"),\"-\",IF(COUNTA('Enrollment Form'!$CM324:$CN324)=2,\"Y\",\"N\"))","v":"-"},{"$f":"IF($B317=\"N\",\"\",IF(COUNTIF('Enrollment Form'!$CZ324:$DO324,\"Other\")=COUNTA('Enrollment Form'!$DF324,'Enrollment Form'!$DA324,'Enrollment Form'!$DK324,'Enrollment Form'!$DP324),\"Y\",\"N\"))","v":""},{"$f":"IF($B317=\"N\",\"\",IF(OR('Enrollment Form'!B324<>\"Subscriber\",'Enrollment Form'!C324=\"ROC\",COUNTIF('Enrollment Form'!AS324:AT324,\"Yes\")>=1),\"-\",IF(AND('Enrollment Form'!C324=\"Enroll\",COUNTIF('Enrollment Form'!AS324:AT324,\"No\")=2,'Enrollment Form'!AU324=\"\"),\"N\",\"Y\")))","v":""},{"$f":"IF(OR(B317=\"N\",'Enrollment Form'!B324<>\"Subscriber\",'Enrollment Form'!C324=\"ROC\",'Enrollment Form'!O324<>\"Multiple of Salary\"),\"-\",IF(COUNTA('Enrollment Form'!T324:U324)<2,\"N\",\"Y\"))","v":"-"},{"$f":"IF(B317=\"N\",\"\",IF(OR('Enrollment Form'!C324=\"ROC\",'Enrollment Form'!B324<>\"Subscriber\",'Enrollment Form'!O324=\"Waive\",'Enrollment Form'!O324=\"\"),\"-\",IF('Enrollment Form'!P324=\"\",\"N\",\"Y\")))","v":""},{"$f":"IF($B317=\"N\",\"\",IF(AND('Enrollment Form'!$C324=\"ROC\",'Enrollment Form'!$DS324<>\"\"),\"Y\",IF(AND('Enrollment Form'!$C324=\"ROC\",'Enrollment Form'!$DS324=\"\"),\"N\",IF(AND('Enrollment Form'!$C324=\"Enroll\",'Enrollment Form'!$B324=\"Subscriber\",'Enrollment Form'!$CQ324=\"No\",'Enrollment Form'!$DS324=\"\"),\"N\",IF(AND('Enrollment Form'!$C324=\"Enroll\",'Enrollment Form'!$B324=\"Subscriber\",'Enrollment Form'!$CQ324=\"Yes\"),\"-\",\"Y\")))))","v":""},{"$f":"IF($B317=\"N\",\"\",IF(AND('Enrollment Form'!$C324=\"ROC\",'Enrollment Form'!$DT324<>\"\"),\"Y\",IF(AND('Enrollment Form'!$C324=\"ROC\",'Enrollment Form'!$DT324=\"\"),\"N\",IF(AND('Enrollment Form'!$C324=\"Enroll\",'Enrollment Form'!$B324=\"Subscriber\",'Enrollment Form'!$CQ324=\"No\",'Enrollment Form'!$DT324=\"\"),\"N\",IF(AND('Enrollment Form'!$C324=\"Enroll\",'Enrollment Form'!$B324=\"Subscriber\",'Enrollment Form'!$CQ324=\"Yes\"),\"-\",\"Y\")))))","v":""},{"$f":"IF('Enrollment Form'!AH324=\"\",\"\",IF(ISERROR(SEARCH(\".\",'Enrollment Form'!AH324,SEARCH(\"@\",'Enrollment Form'!AH324))),\"N\",\"Y\"))","v":""},{"$f":"IF(OR($B317=\"N\",'Enrollment Form'!$G324=\"\"),\"\",IF('Enrollment Form'!$B324<>\"Subscriber\",\"-\",IF(COUNTIF('Enrollment Form'!$AS324:$AT324,\"Yes\")=2,\"N\",\"Y\")))","v":""},{"$f":"IF(OR('Enrollment Form'!$CC324=\"\",'Enrollment Form'!$CC324=\"No\"),\"-\",IF(AND('Enrollment Form'!$CC324=\"Yes\",'Enrollment Form'!$CD324=\"\"),\"N\",\"Y\"))","v":"-"},{"$f":"IF(OR('Enrollment Form'!$CE324=\"\",'Enrollment Form'!$CE324=\"No\"),\"-\",IF(AND('Enrollment Form'!$CE324=\"Yes\",'Enrollment Form'!$CF324=\"\"),\"N\",\"Y\"))","v":"-"},{"$f":"IF(OR('Enrollment Form'!$CG324=\"\",'Enrollment Form'!$CG324=\"No\"),\"-\",IF(AND('Enrollment Form'!$CG324=\"Yes\",'Enrollment Form'!$CH324=\"\"),\"N\",\"Y\"))","v":"-"},{"$f":"IF(OR('Enrollment Form'!$CG324=\"\",'Enrollment Form'!$CG324=\"No\"),\"-\",IF(AND('Enrollment Form'!$CG324=\"Yes\",'Enrollment Form'!$CI324=\"\"),\"N\",\"Y\"))","v":"-"},{"$f":"IF('Enrollment Form'!B324<>\"Subscriber\",\"-\",IF(AND('Enrollment Form'!B324=\"Subscriber\",'Enrollment Form'!C324=\"Enroll\",'Enrollment Form'!AA324=\"\"),\"N\",\"Y\"))","v":"-"},{"$f":"IF(OR('Enrollment Form'!B324=\"Subscriber\",'Enrollment Form'!B324=\"\"),\"-\",IF('Enrollment Form'!BI324=\"\",\"N\",\"Y\"))","v":"-"},{"$f":"IF('Enrollment Form'!B324<>\"Subscriber\",\"-\",IF(AND('Enrollment Form'!B324=\"Subscriber\",'Enrollment Form'!G324=\"\"),\"N\",\"Y\"))","v":"-"},{"$f":"IF('Enrollment Form'!A324=\"\",\"\",IF('Enrollment Form'!B324=\"Subscriber\",\"-\",IF(AND('Enrollment Form'!B324<>\"Subscriber\",'Enrollment Form'!G324='Enrollment Form'!H324),\"N\",\"Y\")))","v":""},0]
[325,{"$f":"IF('Enrollment Form'!$A325<>\"\",\"Y\",\"N\")","v":"N"},{"$f":"IF(AND('Enrollment Form'!$B325=\"\",'Enrollment Form'!$C325<>\"\"),\"N\",IF($B318=\"N\",\"\",\"Y\"))","v":""},{"$f":"IF(OR($B318=\"N\",'Enrollment Form'!G325=\"\"),\"\",IF('Enrollment Form'!$B325<>\"Subscriber\",\"\",IF('Enrollment Form'!$G325='Enrollment Form'!$H325,\"Y\",\"N\")))","v":""},{"$f":"IF($B318=\"N\",\"\",IF(AND(COUNTIFS('Enrollment Form'!$H$11:$H$1000,'Enrollment Form'!$H325,'Enrollment Form'!$B$11:$B$1000,'Enrollment Form'!$B325)>1,'Enrollment Form'!$H325<>\"\"),\"N\",\"Y\"))","v":""},{"$f":"IF($B318=\"N\",\"\",IF(LEN('Enrollment Form'!$Y325)=0,\"\",IF(LEN('Enrollment Form'!$Y325)<>5,\"N\",\"Y\")))","v":""},{"$f":"IF($B318=\"N\",\"\",IF(LEN('Enrollment Form'!$AD325=0),\"\",IF(LEN('Enrollment Form'!$AD325)<>5,\"N\",\"Y\")))","v":""},{"$f":"IF($B318=\"N\",\"\",IF(LEN('Enrollment Form'!$BL325=0),\"\",IF(LEN('Enrollment Form'!$BL325)<>5,\"N\",\"Y\")))","v":""},{"$f":"IF($B318=\"N\",\"\",IF(LEN('Enrollment Form'!$AE325)=0,\"\",IF(LEN('Enrollment Form'!$AE325)<>10,\"N\",\"Y\")))","v":""},{"$f":"IF($B318=\"N\",\"\",IF(LEN('Enrollment Form'!$AF325)=0,\"\",IF(LEN('Enrollment Form'!$AF325)<>10,\"N\",\"Y\")))","v":""},{"$f":"IF('Enrollment Form'!$O325<>\"Graded\",\"-\",IF(AND('Enrollment Form'!$O325=\"Graded\",'Enrollment Form'!$AO325<>\"\"),\"Y\",\"N\"))","v":"-"},{"$f":"IF($B318=\"N\",\"\",IF(OR('Enrollment Form'!$B325<>\"Subscriber\",'Enrollment Form'!$C325=\"ROC\"),\"-\",IF(AND('Enrollment Form'!$B325=\"Subscriber\",'Enrollment Form'!$C325=\"Enroll\",'Enrollment Form'!$AJ325<>\"\"),\"Y\",\"N\")))","v":""},{"$f":"IF($B318=\"N\",\"\",IF(OR('Enrollment Form'!$B325<>\"Subscriber\",'Enrollment Form'!$C325=\"ROC\"),\"-\",IF(AND('Enrollment Form'!$B325=\"Subscriber\",'Enrollment Form'!$C325=\"Enroll\",'Enrollment Form'!$AK325<>\"\"),\"Y\",\"N\")))","v":""},{"$f":"IF($B318=\"N\",\"\",IF(OR('Enrollment Form'!$B325<>\"Subscriber\",'Enrollment Form'!$C325=\"ROC\"),\"-\",IF(AND('Enrollment Form'!$B325=\"Subscriber\",'Enrollment Form'!$C325=\"Enroll\",'Enrollment Form'!$AL325<>\"\"),\"Y\",\"N\")))","v":""},{"$f":"IF($B318=\"N\",\"\",IF(OR('Enrollment Form'!$B325<>\"Subscriber\",'Enrollment Form'!$C325=\"ROC\"),\"-\",IF(AND('Enrollment Form'!$B325=\"Subscriber\",'Enrollment Form'!$C325=\"Enroll\",'Enrollment Form'!$AM325<>\"\"),\"Y\",\"N\")))","v":""},{"$f":"IF($B318=\"N\",\"\",IF(OR('Enrollment Form'!$B325<>\"Subscriber\",'Enrollment Form'!$C325=\"ROC\"),\"-\",IF(AND('Enrollment Form'!$B325=\"Subscriber\",'Enrollment Form'!$C325=\"Enroll\",'Enrollment Form'!$AN325<>\"\"),\"Y\",\"N\")))","v":""},{"$f":"IF($B318=\"N\",\"\",IF(OR('Enrollment Form'!$B325<>\"Subscriber\",'Enrollment Form'!$C325=\"ROC\"),\"-\",IF(AND('Enrollment Form'!$B325=\"Subscriber\",'Enrollment Form'!$C325=\"Enroll\",'Enrollment Form'!$AP325<>\"\"),\"Y\",\"N\")))","v":""},{"$f":"IF($B318=\"N\",\"\",IF($Q318=\"-\",\"-\",IF(AND($Q318=\"Y\",'Enrollment Form'!$AP325=\"No\"),\"-\",IF(AND($Q318=\"Y\",'Enrollment Form'!$AP325=\"Yes\",'Enrollment Form'!$AQ325<>\"\"),\"Y\",\"N\"))))","v":""},{"$f":"IF($B318=\"N\",\"\",IF(OR('Enrollment Form'!$B325<>\"Subscriber\",'Enrollment Form'!$C325=\"ROC\"),\"-\",IF(AND('Enrollment Form'!$B325=\"Subscriber\",'Enrollment Form'!$C325=\"Enroll\",'Enrollment Form'!$CO325<>\"\"),\"Y\",\"N\")))","v":""},{"$f":"IF($B318=\"N\",\"\",IF($S318=\"-\",\"-\",IF(AND($S318=\"Y\",'Enrollment Form'!$CO325=\"No\"),\"-\",IF(AND($S318=\"Y\",'Enrollment Form'!$CO325=\"Yes\",'Enrollment Form'!$CP325<>\"\"),\"Y\",\"N\"))))","v":""},{"$f":"IF(OR('Enrollment Form'!$AV325=\"Yes\",'Enrollment Form'!$AV325=\"\"),\"-\",IF(AND('Enrollment Form'!$AV325=\"No\",ISERROR(FIND(\"HMO\",VLOOKUP('Enrollment Form'!G325,'Enrollment Form'!H$11:J$1000,3,FALSE),1))=FALSE,COUNTA('Enrollment Form'!$AW325:$AZ325)=4),\"Y\",\"N\"))","v":"-"},{"$f":"IF($B318=\"N\",\"\",IF('Enrollment Form'!$B325=\"Subscriber\",\"-\",IF(COUNTA('Enrollment Form'!$BE325,'Enrollment Form'!$BG325)=2,\"Y\",\"N\")))","v":""},{"$f":"IF($B318=\"N\",\"\",IF(OR('Enrollment Form'!$AU325=\"\",'Enrollment Form'!$AU325=\"No\"),\"-\",IF(AND('Enrollment Form'!$AU325=\"Yes\",COUNTA('Enrollment Form'!$CK325)=1),\"Y\",\"N\")))","v":""},{"$f":"IF(OR('Enrollment Form'!$CK325=\"\",'Enrollment Form'!$CK325=\"No\"),\"-\",IF(COUNTA('Enrollment Form'!$CM325:$CN325)=2,\"Y\",\"N\"))","v":"-"},{"$f":"IF($B318=\"N\",\"\",IF(COUNTIF('Enrollment Form'!$CZ325:$DO325,\"Other\")=COUNTA('Enrollment Form'!$DF325,'Enrollment Form'!$DA325,'Enrollment Form'!$DK325,'Enrollment Form'!$DP325),\"Y\",\"N\"))","v":""},{"$f":"IF($B318=\"N\",\"\",IF(OR('Enrollment Form'!B325<>\"Subscriber\",'Enrollment Form'!C325=\"ROC\",COUNTIF('Enrollment Form'!AS325:AT325,\"Yes\")>=1),\"-\",IF(AND('Enrollment Form'!C325=\"Enroll\",COUNTIF('Enrollment Form'!AS325:AT325,\"No\")=2,'Enrollment Form'!AU325=\"\"),\"N\",\"Y\")))","v":""},{"$f":"IF(OR(B318=\"N\",'Enrollment Form'!B325<>\"Subscriber\",'Enrollment Form'!C325=\"ROC\",'Enrollment Form'!O325<>\"Multiple of Salary\"),\"-\",IF(COUNTA('Enrollment Form'!T325:U325)<2,\"N\",\"Y\"))","v":"-"},{"$f":"IF(B318=\"N\",\"\",IF(OR('Enrollment Form'!C325=\"ROC\",'Enrollment Form'!B325<>\"Subscriber\",'Enrollment Form'!O325=\"Waive\",'Enrollment Form'!O325=\"\"),\"-\",IF('Enrollment Form'!P325=\"\",\"N\",\"Y\")))","v":""},{"$f":"IF($B318=\"N\",\"\",IF(AND('Enrollment Form'!$C325=\"ROC\",'Enrollment Form'!$DS325<>\"\"),\"Y\",IF(AND('Enrollment Form'!$C325=\"ROC\",'Enrollment Form'!$DS325=\"\"),\"N\",IF(AND('Enrollment Form'!$C325=\"Enroll\",'Enrollment Form'!$B325=\"Subscriber\",'Enrollment Form'!$CQ325=\"No\",'Enrollment Form'!$DS325=\"\"),\"N\",IF(AND('Enrollment Form'!$C325=\"Enroll\",'Enrollment Form'!$B325=\"Subscriber\",'Enrollment Form'!$CQ325=\"Yes\"),\"-\",\"Y\")))))","v":""},{"$f":"IF($B318=\"N\",\"\",IF(AND('Enrollment Form'!$C325=\"ROC\",'Enrollment Form'!$DT325<>\"\"),\"Y\",IF(AND('Enrollment Form'!$C325=\"ROC\",'Enrollment Form'!$DT325=\"\"),\"N\",IF(AND('Enrollment Form'!$C325=\"Enroll\",'Enrollment Form'!$B325=\"Subscriber\",'Enrollment Form'!$CQ325=\"No\",'Enrollment Form'!$DT325=\"\"),\"N\",IF(AND('Enrollment Form'!$C325=\"Enroll\",'Enrollment Form'!$B325=\"Subscriber\",'Enrollment Form'!$CQ325=\"Yes\"),\"-\",\"Y\")))))","v":""},{"$f":"IF('Enrollment Form'!AH325=\"\",\"\",IF(ISERROR(SEARCH(\".\",'Enrollment Form'!AH325,SEARCH(\"@\",'Enrollment Form'!AH325))),\"N\",\"Y\"))","v":""},{"$f":"IF(OR($B318=\"N\",'Enrollment Form'!$G325=\"\"),\"\",IF('Enrollment Form'!$B325<>\"Subscriber\",\"-\",IF(COUNTIF('Enrollment Form'!$AS325:$AT325,\"Yes\")=2,\"N\",\"Y\")))","v":""},{"$f":"IF(OR('Enrollment Form'!$CC325=\"\",'Enrollment Form'!$CC325=\"No\"),\"-\",IF(AND('Enrollment Form'!$CC325=\"Yes\",'Enrollment Form'!$CD325=\"\"),\"N\",\"Y\"))","v":"-"},{"$f":"IF(OR('Enrollment Form'!$CE325=\"\",'Enrollment Form'!$CE325=\"No\"),\"-\",IF(AND('Enrollment Form'!$CE325=\"Yes\",'Enrollment Form'!$CF325=\"\"),\"N\",\"Y\"))","v":"-"},{"$f":"IF(OR('Enrollment Form'!$CG325=\"\",'Enrollment Form'!$CG325=\"No\"),\"-\",IF(AND('Enrollment Form'!$CG325=\"Yes\",'Enrollment Form'!$CH325=\"\"),\"N\",\"Y\"))","v":"-"},{"$f":"IF(OR('Enrollment Form'!$CG325=\"\",'Enrollment Form'!$CG325=\"No\"),\"-\",IF(AND('Enrollment Form'!$CG325=\"Yes\",'Enrollment Form'!$CI325=\"\"),\"N\",\"Y\"))","v":"-"},{"$f":"IF('Enrollment Form'!B325<>\"Subscriber\",\"-\",IF(AND('Enrollment Form'!B325=\"Subscriber\",'Enrollment Form'!C325=\"Enroll\",'Enrollment Form'!AA325=\"\"),\"N\",\"Y\"))","v":"-"},{"$f":"IF(OR('Enrollment Form'!B325=\"Subscriber\",'Enrollment Form'!B325=\"\"),\"-\",IF('Enrollment Form'!BI325=\"\",\"N\",\"Y\"))","v":"-"},{"$f":"IF('Enrollment Form'!B325<>\"Subscriber\",\"-\",IF(AND('Enrollment Form'!B325=\"Subscriber\",'Enrollment Form'!G325=\"\"),\"N\",\"Y\"))","v":"-"},{"$f":"IF('Enrollment Form'!A325=\"\",\"\",IF('Enrollment Form'!B325=\"Subscriber\",\"-\",IF(AND('Enrollment Form'!B325<>\"Subscriber\",'Enrollment Form'!G325='Enrollment Form'!H325),\"N\",\"Y\")))","v":""},0]
[326,{"$f":"IF('Enrollment Form'!$A326<>\"\",\"Y\",\"N\")","v":"N"},{"$f":"IF(AND('Enrollment Form'!$B326=\"\",'Enrollment Form'!$C326<>\"\"),\"N\",IF($B319=\"N\",\"\",\"Y\"))","v":""},{"$f":"IF(OR($B319=\"N\",'Enrollment Form'!G326=\"\"),\"\",IF('Enrollment Form'!$B326<>\"Subscriber\",\"\",IF('Enrollment Form'!$G326='Enrollment Form'!$H326,\"Y\",\"N\")))","v":""},{"$f":"IF($B319=\"N\",\"\",IF(AND(COUNTIFS('Enrollment Form'!$H$11:$H$1000,'Enrollment Form'!$H326,'Enrollment Form'!$B$11:$B$1000,'Enrollment Form'!$B326)>1,'Enrollment Form'!$H326<>\"\"),\"N\",\"Y\"))","v":""},{"$f":"IF($B319=\"N\",\"\",IF(LEN('Enrollment Form'!$Y326)=0,\"\",IF(LEN('Enrollment Form'!$Y326)<>5,\"N\",\"Y\")))","v":""},{"$f":"IF($B319=\"N\",\"\",IF(LEN('Enrollment Form'!$AD326=0),\"\",IF(LEN('Enrollment Form'!$AD326)<>5,\"N\",\"Y\")))","v":""},{"$f":"IF($B319=\"N\",\"\",IF(LEN('Enrollment Form'!$BL326=0),\"\",IF(LEN('Enrollment Form'!$BL326)<>5,\"N\",\"Y\")))","v":""},{"$f":"IF($B319=\"N\",\"\",IF(LEN('Enrollment Form'!$AE326)=0,\"\",IF(LEN('Enrollment Form'!$AE326)<>10,\"N\",\"Y\")))","v":""},{"$f":"IF($B319=\"N\",\"\",IF(LEN('Enrollment Form'!$AF326)=0,\"\",IF(LEN('Enrollment Form'!$AF326)<>10,\"N\",\"Y\")))","v":""},{"$f":"IF('Enrollment Form'!$O326<>\"Graded\",\"-\",IF(AND('Enrollment Form'!$O326=\"Graded\",'Enrollment Form'!$AO326<>\"\"),\"Y\",\"N\"))","v":"-"},{"$f":"IF($B319=\"N\",\"\",IF(OR('Enrollment Form'!$B326<>\"Subscriber\",'Enrollment Form'!$C326=\"ROC\"),\"-\",IF(AND('Enrollment Form'!$B326=\"Subscriber\",'Enrollment Form'!$C326=\"Enroll\",'Enrollment Form'!$AJ326<>\"\"),\"Y\",\"N\")))","v":""},{"$f":"IF($B319=\"N\",\"\",IF(OR('Enrollment Form'!$B326<>\"Subscriber\",'Enrollment Form'!$C326=\"ROC\"),\"-\",IF(AND('Enrollment Form'!$B326=\"Subscriber\",'Enrollment Form'!$C326=\"Enroll\",'Enrollment Form'!$AK326<>\"\"),\"Y\",\"N\")))","v":""},{"$f":"IF($B319=\"N\",\"\",IF(OR('Enrollment Form'!$B326<>\"Subscriber\",'Enrollment Form'!$C326=\"ROC\"),\"-\",IF(AND('Enrollment Form'!$B326=\"Subscriber\",'Enrollment Form'!$C326=\"Enroll\",'Enrollment Form'!$AL326<>\"\"),\"Y\",\"N\")))","v":""},{"$f":"IF($B319=\"N\",\"\",IF(OR('Enrollment Form'!$B326<>\"Subscriber\",'Enrollment Form'!$C326=\"ROC\"),\"-\",IF(AND('Enrollment Form'!$B326=\"Subscriber\",'Enrollment Form'!$C326=\"Enroll\",'Enrollment Form'!$AM326<>\"\"),\"Y\",\"N\")))","v":""},{"$f":"IF($B319=\"N\",\"\",IF(OR('Enrollment Form'!$B326<>\"Subscriber\",'Enrollment Form'!$C326=\"ROC\"),\"-\",IF(AND('Enrollment Form'!$B326=\"Subscriber\",'Enrollment Form'!$C326=\"Enroll\",'Enrollment Form'!$AN326<>\"\"),\"Y\",\"N\")))","v":""},{"$f":"IF($B319=\"N\",\"\",IF(OR('Enrollment Form'!$B326<>\"Subscriber\",'Enrollment Form'!$C326=\"ROC\"),\"-\",IF(AND('Enrollment Form'!$B326=\"Subscriber\",'Enrollment Form'!$C326=\"Enroll\",'Enrollment Form'!$AP326<>\"\"),\"Y\",\"N\")))","v":""},{"$f":"IF($B319=\"N\",\"\",IF($Q319=\"-\",\"-\",IF(AND($Q319=\"Y\",'Enrollment Form'!$AP326=\"No\"),\"-\",IF(AND($Q319=\"Y\",'Enrollment Form'!$AP326=\"Yes\",'Enrollment Form'!$AQ326<>\"\"),\"Y\",\"N\"))))","v":""},{"$f":"IF($B319=\"N\",\"\",IF(OR('Enrollment Form'!$B326<>\"Subscriber\",'Enrollment Form'!$C326=\"ROC\"),\"-\",IF(AND('Enrollment Form'!$B326=\"Subscriber\",'Enrollment Form'!$C326=\"Enroll\",'Enrollment Form'!$CO326<>\"\"),\"Y\",\"N\")))","v":""},{"$f":"IF($B319=\"N\",\"\",IF($S319=\"-\",\"-\",IF(AND($S319=\"Y\",'Enrollment Form'!$CO326=\"No\"),\"-\",IF(AND($S319=\"Y\",'Enrollment Form'!$CO326=\"Yes\",'Enrollment Form'!$CP326<>\"\"),\"Y\",\"N\"))))","v":""},{"$f":"IF(OR('Enrollment Form'!$AV326=\"Yes\",'Enrollment Form'!$AV326=\"\"),\"-\",IF(AND('Enrollment Form'!$AV326=\"No\",ISERROR(FIND(\"HMO\",VLOOKUP('Enrollment Form'!G326,'Enrollment Form'!H$11:J$1000,3,FALSE),1))=FALSE,COUNTA('Enrollment Form'!$AW326:$AZ326)=4),\"Y\",\"N\"))","v":"-"},{"$f":"IF($B319=\"N\",\"\",IF('Enrollment Form'!$B326=\"Subscriber\",\"-\",IF(COUNTA('Enrollment Form'!$BE326,'Enrollment Form'!$BG326)=2,\"Y\",\"N\")))","v":""},{"$f":"IF($B319=\"N\",\"\",IF(OR('Enrollment Form'!$AU326=\"\",'Enrollment Form'!$AU326=\"No\"),\"-\",IF(AND('Enrollment Form'!$AU326=\"Yes\",COUNTA('Enrollment Form'!$CK326)=1),\"Y\",\"N\")))","v":""},{"$f":"IF(OR('Enrollment Form'!$CK326=\"\",'Enrollment Form'!$CK326=\"No\"),\"-\",IF(COUNTA('Enrollment Form'!$CM326:$CN326)=2,\"Y\",\"N\"))","v":"-"},{"$f":"IF($B319=\"N\",\"\",IF(COUNTIF('Enrollment Form'!$CZ326:$DO326,\"Other\")=COUNTA('Enrollment Form'!$DF326,'Enrollment Form'!$DA326,'Enrollment Form'!$DK326,'Enrollment Form'!$DP326),\"Y\",\"N\"))","v":""},{"$f":"IF($B319=\"N\",\"\",IF(OR('Enrollment Form'!B326<>\"Subscriber\",'Enrollment Form'!C326=\"ROC\",COUNTIF('Enrollment Form'!AS326:AT326,\"Yes\")>=1),\"-\",IF(AND('Enrollment Form'!C326=\"Enroll\",COUNTIF('Enrollment Form'!AS326:AT326,\"No\")=2,'Enrollment Form'!AU326=\"\"),\"N\",\"Y\")))","v":""},{"$f":"IF(OR(B319=\"N\",'Enrollment Form'!B326<>\"Subscriber\",'Enrollment Form'!C326=\"ROC\",'Enrollment Form'!O326<>\"Multiple of Salary\"),\"-\",IF(COUNTA('Enrollment Form'!T326:U326)<2,\"N\",\"Y\"))","v":"-"},{"$f":"IF(B319=\"N\",\"\",IF(OR('Enrollment Form'!C326=\"ROC\",'Enrollment Form'!B326<>\"Subscriber\",'Enrollment Form'!O326=\"Waive\",'Enrollment Form'!O326=\"\"),\"-\",IF('Enrollment Form'!P326=\"\",\"N\",\"Y\")))","v":""},{"$f":"IF($B319=\"N\",\"\",IF(AND('Enrollment Form'!$C326=\"ROC\",'Enrollment Form'!$DS326<>\"\"),\"Y\",IF(AND('Enrollment Form'!$C326=\"ROC\",'Enrollment Form'!$DS326=\"\"),\"N\",IF(AND('Enrollment Form'!$C326=\"Enroll\",'Enrollment Form'!$B326=\"Subscriber\",'Enrollment Form'!$CQ326=\"No\",'Enrollment Form'!$DS326=\"\"),\"N\",IF(AND('Enrollment Form'!$C326=\"Enroll\",'Enrollment Form'!$B326=\"Subscriber\",'Enrollment Form'!$CQ326=\"Yes\"),\"-\",\"Y\")))))","v":""},{"$f":"IF($B319=\"N\",\"\",IF(AND('Enrollment Form'!$C326=\"ROC\",'Enrollment Form'!$DT326<>\"\"),\"Y\",IF(AND('Enrollment Form'!$C326=\"ROC\",'Enrollment Form'!$DT326=\"\"),\"N\",IF(AND('Enrollment Form'!$C326=\"Enroll\",'Enrollment Form'!$B326=\"Subscriber\",'Enrollment Form'!$CQ326=\"No\",'Enrollment Form'!$DT326=\"\"),\"N\",IF(AND('Enrollment Form'!$C326=\"Enroll\",'Enrollment Form'!$B326=\"Subscriber\",'Enrollment Form'!$CQ326=\"Yes\"),\"-\",\"Y\")))))","v":""},{"$f":"IF('Enrollment Form'!AH326=\"\",\"\",IF(ISERROR(SEARCH(\".\",'Enrollment Form'!AH326,SEARCH(\"@\",'Enrollment Form'!AH326))),\"N\",\"Y\"))","v":""},{"$f":"IF(OR($B319=\"N\",'Enrollment Form'!$G326=\"\"),\"\",IF('Enrollment Form'!$B326<>\"Subscriber\",\"-\",IF(COUNTIF('Enrollment Form'!$AS326:$AT326,\"Yes\")=2,\"N\",\"Y\")))","v":""},{"$f":"IF(OR('Enrollment Form'!$CC326=\"\",'Enrollment Form'!$CC326=\"No\"),\"-\",IF(AND('Enrollment Form'!$CC326=\"Yes\",'Enrollment Form'!$CD326=\"\"),\"N\",\"Y\"))","v":"-"},{"$f":"IF(OR('Enrollment Form'!$CE326=\"\",'Enrollment Form'!$CE326=\"No\"),\"-\",IF(AND('Enrollment Form'!$CE326=\"Yes\",'Enrollment Form'!$CF326=\"\"),\"N\",\"Y\"))","v":"-"},{"$f":"IF(OR('Enrollment Form'!$CG326=\"\",'Enrollment Form'!$CG326=\"No\"),\"-\",IF(AND('Enrollment Form'!$CG326=\"Yes\",'Enrollment Form'!$CH326=\"\"),\"N\",\"Y\"))","v":"-"},{"$f":"IF(OR('Enrollment Form'!$CG326=\"\",'Enrollment Form'!$CG326=\"No\"),\"-\",IF(AND('Enrollment Form'!$CG326=\"Yes\",'Enrollment Form'!$CI326=\"\"),\"N\",\"Y\"))","v":"-"},{"$f":"IF('Enrollment Form'!B326<>\"Subscriber\",\"-\",IF(AND('Enrollment Form'!B326=\"Subscriber\",'Enrollment Form'!C326=\"Enroll\",'Enrollment Form'!AA326=\"\"),\"N\",\"Y\"))","v":"-"},{"$f":"IF(OR('Enrollment Form'!B326=\"Subscriber\",'Enrollment Form'!B326=\"\"),\"-\",IF('Enrollment Form'!BI326=\"\",\"N\",\"Y\"))","v":"-"},{"$f":"IF('Enrollment Form'!B326<>\"Subscriber\",\"-\",IF(AND('Enrollment Form'!B326=\"Subscriber\",'Enrollment Form'!G326=\"\"),\"N\",\"Y\"))","v":"-"},{"$f":"IF('Enrollment Form'!A326=\"\",\"\",IF('Enrollment Form'!B326=\"Subscriber\",\"-\",IF(AND('Enrollment Form'!B326<>\"Subscriber\",'Enrollment Form'!G326='Enrollment Form'!H326),\"N\",\"Y\")))","v":""},0]
[327,{"$f":"IF('Enrollment Form'!$A327<>\"\",\"Y\",\"N\")","v":"N"},{"$f":"IF(AND('Enrollment Form'!$B327=\"\",'Enrollment Form'!$C327<>\"\"),\"N\",IF($B320=\"N\",\"\",\"Y\"))","v":""},{"$f":"IF(OR($B320=\"N\",'Enrollment Form'!G327=\"\"),\"\",IF('Enrollment Form'!$B327<>\"Subscriber\",\"\",IF('Enrollment Form'!$G327='Enrollment Form'!$H327,\"Y\",\"N\")))","v":""},{"$f":"IF($B320=\"N\",\"\",IF(AND(COUNTIFS('Enrollment Form'!$H$11:$H$1000,'Enrollment Form'!$H327,'Enrollment Form'!$B$11:$B$1000,'Enrollment Form'!$B327)>1,'Enrollment Form'!$H327<>\"\"),\"N\",\"Y\"))","v":""},{"$f":"IF($B320=\"N\",\"\",IF(LEN('Enrollment Form'!$Y327)=0,\"\",IF(LEN('Enrollment Form'!$Y327)<>5,\"N\",\"Y\")))","v":""},{"$f":"IF($B320=\"N\",\"\",IF(LEN('Enrollment Form'!$AD327=0),\"\",IF(LEN('Enrollment Form'!$AD327)<>5,\"N\",\"Y\")))","v":""},{"$f":"IF($B320=\"N\",\"\",IF(LEN('Enrollment Form'!$BL327=0),\"\",IF(LEN('Enrollment Form'!$BL327)<>5,\"N\",\"Y\")))","v":""},{"$f":"IF($B320=\"N\",\"\",IF(LEN('Enrollment Form'!$AE327)=0,\"\",IF(LEN('Enrollment Form'!$AE327)<>10,\"N\",\"Y\")))","v":""},{"$f":"IF($B320=\"N\",\"\",IF(LEN('Enrollment Form'!$AF327)=0,\"\",IF(LEN('Enrollment Form'!$AF327)<>10,\"N\",\"Y\")))","v":""},{"$f":"IF('Enrollment Form'!$O327<>\"Graded\",\"-\",IF(AND('Enrollment Form'!$O327=\"Graded\",'Enrollment Form'!$AO327<>\"\"),\"Y\",\"N\"))","v":"-"},{"$f":"IF($B320=\"N\",\"\",IF(OR('Enrollment Form'!$B327<>\"Subscriber\",'Enrollment Form'!$C327=\"ROC\"),\"-\",IF(AND('Enrollment Form'!$B327=\"Subscriber\",'Enrollment Form'!$C327=\"Enroll\",'Enrollment Form'!$AJ327<>\"\"),\"Y\",\"N\")))","v":""},{"$f":"IF($B320=\"N\",\"\",IF(OR('Enrollment Form'!$B327<>\"Subscriber\",'Enrollment Form'!$C327=\"ROC\"),\"-\",IF(AND('Enrollment Form'!$B327=\"Subscriber\",'Enrollment Form'!$C327=\"Enroll\",'Enrollment Form'!$AK327<>\"\"),\"Y\",\"N\")))","v":""},{"$f":"IF($B320=\"N\",\"\",IF(OR('Enrollment Form'!$B327<>\"Subscriber\",'Enrollment Form'!$C327=\"ROC\"),\"-\",IF(AND('Enrollment Form'!$B327=\"Subscriber\",'Enrollment Form'!$C327=\"Enroll\",'Enrollment Form'!$AL327<>\"\"),\"Y\",\"N\")))","v":""},{"$f":"IF($B320=\"N\",\"\",IF(OR('Enrollment Form'!$B327<>\"Subscriber\",'Enrollment Form'!$C327=\"ROC\"),\"-\",IF(AND('Enrollment Form'!$B327=\"Subscriber\",'Enrollment Form'!$C327=\"Enroll\",'Enrollment Form'!$AM327<>\"\"),\"Y\",\"N\")))","v":""},{"$f":"IF($B320=\"N\",\"\",IF(OR('Enrollment Form'!$B327<>\"Subscriber\",'Enrollment Form'!$C327=\"ROC\"),\"-\",IF(AND('Enrollment Form'!$B327=\"Subscriber\",'Enrollment Form'!$C327=\"Enroll\",'Enrollment Form'!$AN327<>\"\"),\"Y\",\"N\")))","v":""},{"$f":"IF($B320=\"N\",\"\",IF(OR('Enrollment Form'!$B327<>\"Subscriber\",'Enrollment Form'!$C327=\"ROC\"),\"-\",IF(AND('Enrollment Form'!$B327=\"Subscriber\",'Enrollment Form'!$C327=\"Enroll\",'Enrollment Form'!$AP327<>\"\"),\"Y\",\"N\")))","v":""},{"$f":"IF($B320=\"N\",\"\",IF($Q320=\"-\",\"-\",IF(AND($Q320=\"Y\",'Enrollment Form'!$AP327=\"No\"),\"-\",IF(AND($Q320=\"Y\",'Enrollment Form'!$AP327=\"Yes\",'Enrollment Form'!$AQ327<>\"\"),\"Y\",\"N\"))))","v":""},{"$f":"IF($B320=\"N\",\"\",IF(OR('Enrollment Form'!$B327<>\"Subscriber\",'Enrollment Form'!$C327=\"ROC\"),\"-\",IF(AND('Enrollment Form'!$B327=\"Subscriber\",'Enrollment Form'!$C327=\"Enroll\",'Enrollment Form'!$CO327<>\"\"),\"Y\",\"N\")))","v":""},{"$f":"IF($B320=\"N\",\"\",IF($S320=\"-\",\"-\",IF(AND($S320=\"Y\",'Enrollment Form'!$CO327=\"No\"),\"-\",IF(AND($S320=\"Y\",'Enrollment Form'!$CO327=\"Yes\",'Enrollment Form'!$CP327<>\"\"),\"Y\",\"N\"))))","v":""},{"$f":"IF(OR('Enrollment Form'!$AV327=\"Yes\",'Enrollment Form'!$AV327=\"\"),\"-\",IF(AND('Enrollment Form'!$AV327=\"No\",ISERROR(FIND(\"HMO\",VLOOKUP('Enrollment Form'!G327,'Enrollment Form'!H$11:J$1000,3,FALSE),1))=FALSE,COUNTA('Enrollment Form'!$AW327:$AZ327)=4),\"Y\",\"N\"))","v":"-"},{"$f":"IF($B320=\"N\",\"\",IF('Enrollment Form'!$B327=\"Subscriber\",\"-\",IF(COUNTA('Enrollment Form'!$BE327,'Enrollment Form'!$BG327)=2,\"Y\",\"N\")))","v":""},{"$f":"IF($B320=\"N\",\"\",IF(OR('Enrollment Form'!$AU327=\"\",'Enrollment Form'!$AU327=\"No\"),\"-\",IF(AND('Enrollment Form'!$AU327=\"Yes\",COUNTA('Enrollment Form'!$CK327)=1),\"Y\",\"N\")))","v":""},{"$f":"IF(OR('Enrollment Form'!$CK327=\"\",'Enrollment Form'!$CK327=\"No\"),\"-\",IF(COUNTA('Enrollment Form'!$CM327:$CN327)=2,\"Y\",\"N\"))","v":"-"},{"$f":"IF($B320=\"N\",\"\",IF(COUNTIF('Enrollment Form'!$CZ327:$DO327,\"Other\")=COUNTA('Enrollment Form'!$DF327,'Enrollment Form'!$DA327,'Enrollment Form'!$DK327,'Enrollment Form'!$DP327),\"Y\",\"N\"))","v":""},{"$f":"IF($B320=\"N\",\"\",IF(OR('Enrollment Form'!B327<>\"Subscriber\",'Enrollment Form'!C327=\"ROC\",COUNTIF('Enrollment Form'!AS327:AT327,\"Yes\")>=1),\"-\",IF(AND('Enrollment Form'!C327=\"Enroll\",COUNTIF('Enrollment Form'!AS327:AT327,\"No\")=2,'Enrollment Form'!AU327=\"\"),\"N\",\"Y\")))","v":""},{"$f":"IF(OR(B320=\"N\",'Enrollment Form'!B327<>\"Subscriber\",'Enrollment Form'!C327=\"ROC\",'Enrollment Form'!O327<>\"Multiple of Salary\"),\"-\",IF(COUNTA('Enrollment Form'!T327:U327)<2,\"N\",\"Y\"))","v":"-"},{"$f":"IF(B320=\"N\",\"\",IF(OR('Enrollment Form'!C327=\"ROC\",'Enrollment Form'!B327<>\"Subscriber\",'Enrollment Form'!O327=\"Waive\",'Enrollment Form'!O327=\"\"),\"-\",IF('Enrollment Form'!P327=\"\",\"N\",\"Y\")))","v":""},{"$f":"IF($B320=\"N\",\"\",IF(AND('Enrollment Form'!$C327=\"ROC\",'Enrollment Form'!$DS327<>\"\"),\"Y\",IF(AND('Enrollment Form'!$C327=\"ROC\",'Enrollment Form'!$DS327=\"\"),\"N\",IF(AND('Enrollment Form'!$C327=\"Enroll\",'Enrollment Form'!$B327=\"Subscriber\",'Enrollment Form'!$CQ327=\"No\",'Enrollment Form'!$DS327=\"\"),\"N\",IF(AND('Enrollment Form'!$C327=\"Enroll\",'Enrollment Form'!$B327=\"Subscriber\",'Enrollment Form'!$CQ327=\"Yes\"),\"-\",\"Y\")))))","v":""},{"$f":"IF($B320=\"N\",\"\",IF(AND('Enrollment Form'!$C327=\"ROC\",'Enrollment Form'!$DT327<>\"\"),\"Y\",IF(AND('Enrollment Form'!$C327=\"ROC\",'Enrollment Form'!$DT327=\"\"),\"N\",IF(AND('Enrollment Form'!$C327=\"Enroll\",'Enrollment Form'!$B327=\"Subscriber\",'Enrollment Form'!$CQ327=\"No\",'Enrollment Form'!$DT327=\"\"),\"N\",IF(AND('Enrollment Form'!$C327=\"Enroll\",'Enrollment Form'!$B327=\"Subscriber\",'Enrollment Form'!$CQ327=\"Yes\"),\"-\",\"Y\")))))","v":""},{"$f":"IF('Enrollment Form'!AH327=\"\",\"\",IF(ISERROR(SEARCH(\".\",'Enrollment Form'!AH327,SEARCH(\"@\",'Enrollment Form'!AH327))),\"N\",\"Y\"))","v":""},{"$f":"IF(OR($B320=\"N\",'Enrollment Form'!$G327=\"\"),\"\",IF('Enrollment Form'!$B327<>\"Subscriber\",\"-\",IF(COUNTIF('Enrollment Form'!$AS327:$AT327,\"Yes\")=2,\"N\",\"Y\")))","v":""},{"$f":"IF(OR('Enrollment Form'!$CC327=\"\",'Enrollment Form'!$CC327=\"No\"),\"-\",IF(AND('Enrollment Form'!$CC327=\"Yes\",'Enrollment Form'!$CD327=\"\"),\"N\",\"Y\"))","v":"-"},{"$f":"IF(OR('Enrollment Form'!$CE327=\"\",'Enrollment Form'!$CE327=\"No\"),\"-\",IF(AND('Enrollment Form'!$CE327=\"Yes\",'Enrollment Form'!$CF327=\"\"),\"N\",\"Y\"))","v":"-"},{"$f":"IF(OR('Enrollment Form'!$CG327=\"\",'Enrollment Form'!$CG327=\"No\"),\"-\",IF(AND('Enrollment Form'!$CG327=\"Yes\",'Enrollment Form'!$CH327=\"\"),\"N\",\"Y\"))","v":"-"},{"$f":"IF(OR('Enrollment Form'!$CG327=\"\",'Enrollment Form'!$CG327=\"No\"),\"-\",IF(AND('Enrollment Form'!$CG327=\"Yes\",'Enrollment Form'!$CI327=\"\"),\"N\",\"Y\"))","v":"-"},{"$f":"IF('Enrollment Form'!B327<>\"Subscriber\",\"-\",IF(AND('Enrollment Form'!B327=\"Subscriber\",'Enrollment Form'!C327=\"Enroll\",'Enrollment Form'!AA327=\"\"),\"N\",\"Y\"))","v":"-"},{"$f":"IF(OR('Enrollment Form'!B327=\"Subscriber\",'Enrollment Form'!B327=\"\"),\"-\",IF('Enrollment Form'!BI327=\"\",\"N\",\"Y\"))","v":"-"},{"$f":"IF('Enrollment Form'!B327<>\"Subscriber\",\"-\",IF(AND('Enrollment Form'!B327=\"Subscriber\",'Enrollment Form'!G327=\"\"),\"N\",\"Y\"))","v":"-"},{"$f":"IF('Enrollment Form'!A327=\"\",\"\",IF('Enrollment Form'!B327=\"Subscriber\",\"-\",IF(AND('Enrollment Form'!B327<>\"Subscriber\",'Enrollment Form'!G327='Enrollment Form'!H327),\"N\",\"Y\")))","v":""},0]
[328,{"$f":"IF('Enrollment Form'!$A328<>\"\",\"Y\",\"N\")","v":"N"},{"$f":"IF(AND('Enrollment Form'!$B328=\"\",'Enrollment Form'!$C328<>\"\"),\"N\",IF($B321=\"N\",\"\",\"Y\"))","v":""},{"$f":"IF(OR($B321=\"N\",'Enrollment Form'!G328=\"\"),\"\",IF('Enrollment Form'!$B328<>\"Subscriber\",\"\",IF('Enrollment Form'!$G328='Enrollment Form'!$H328,\"Y\",\"N\")))","v":""},{"$f":"IF($B321=\"N\",\"\",IF(AND(COUNTIFS('Enrollment Form'!$H$11:$H$1000,'Enrollment Form'!$H328,'Enrollment Form'!$B$11:$B$1000,'Enrollment Form'!$B328)>1,'Enrollment Form'!$H328<>\"\"),\"N\",\"Y\"))","v":""},{"$f":"IF($B321=\"N\",\"\",IF(LEN('Enrollment Form'!$Y328)=0,\"\",IF(LEN('Enrollment Form'!$Y328)<>5,\"N\",\"Y\")))","v":""},{"$f":"IF($B321=\"N\",\"\",IF(LEN('Enrollment Form'!$AD328=0),\"\",IF(LEN('Enrollment Form'!$AD328)<>5,\"N\",\"Y\")))","v":""},{"$f":"IF($B321=\"N\",\"\",IF(LEN('Enrollment Form'!$BL328=0),\"\",IF(LEN('Enrollment Form'!$BL328)<>5,\"N\",\"Y\")))","v":""},{"$f":"IF($B321=\"N\",\"\",IF(LEN('Enrollment Form'!$AE328)=0,\"\",IF(LEN('Enrollment Form'!$AE328)<>10,\"N\",\"Y\")))","v":""},{"$f":"IF($B321=\"N\",\"\",IF(LEN('Enrollment Form'!$AF328)=0,\"\",IF(LEN('Enrollment Form'!$AF328)<>10,\"N\",\"Y\")))","v":""},{"$f":"IF('Enrollment Form'!$O328<>\"Graded\",\"-\",IF(AND('Enrollment Form'!$O328=\"Graded\",'Enrollment Form'!$AO328<>\"\"),\"Y\",\"N\"))","v":"-"},{"$f":"IF($B321=\"N\",\"\",IF(OR('Enrollment Form'!$B328<>\"Subscriber\",'Enrollment Form'!$C328=\"ROC\"),\"-\",IF(AND('Enrollment Form'!$B328=\"Subscriber\",'Enrollment Form'!$C328=\"Enroll\",'Enrollment Form'!$AJ328<>\"\"),\"Y\",\"N\")))","v":""},{"$f":"IF($B321=\"N\",\"\",IF(OR('Enrollment Form'!$B328<>\"Subscriber\",'Enrollment Form'!$C328=\"ROC\"),\"-\",IF(AND('Enrollment Form'!$B328=\"Subscriber\",'Enrollment Form'!$C328=\"Enroll\",'Enrollment Form'!$AK328<>\"\"),\"Y\",\"N\")))","v":""},{"$f":"IF($B321=\"N\",\"\",IF(OR('Enrollment Form'!$B328<>\"Subscriber\",'Enrollment Form'!$C328=\"ROC\"),\"-\",IF(AND('Enrollment Form'!$B328=\"Subscriber\",'Enrollment Form'!$C328=\"Enroll\",'Enrollment Form'!$AL328<>\"\"),\"Y\",\"N\")))","v":""},{"$f":"IF($B321=\"N\",\"\",IF(OR('Enrollment Form'!$B328<>\"Subscriber\",'Enrollment Form'!$C328=\"ROC\"),\"-\",IF(AND('Enrollment Form'!$B328=\"Subscriber\",'Enrollment Form'!$C328=\"Enroll\",'Enrollment Form'!$AM328<>\"\"),\"Y\",\"N\")))","v":""},{"$f":"IF($B321=\"N\",\"\",IF(OR('Enrollment Form'!$B328<>\"Subscriber\",'Enrollment Form'!$C328=\"ROC\"),\"-\",IF(AND('Enrollment Form'!$B328=\"Subscriber\",'Enrollment Form'!$C328=\"Enroll\",'Enrollment Form'!$AN328<>\"\"),\"Y\",\"N\")))","v":""},{"$f":"IF($B321=\"N\",\"\",IF(OR('Enrollment Form'!$B328<>\"Subscriber\",'Enrollment Form'!$C328=\"ROC\"),\"-\",IF(AND('Enrollment Form'!$B328=\"Subscriber\",'Enrollment Form'!$C328=\"Enroll\",'Enrollment Form'!$AP328<>\"\"),\"Y\",\"N\")))","v":""},{"$f":"IF($B321=\"N\",\"\",IF($Q321=\"-\",\"-\",IF(AND($Q321=\"Y\",'Enrollment Form'!$AP328=\"No\"),\"-\",IF(AND($Q321=\"Y\",'Enrollment Form'!$AP328=\"Yes\",'Enrollment Form'!$AQ328<>\"\"),\"Y\",\"N\"))))","v":""},{"$f":"IF($B321=\"N\",\"\",IF(OR('Enrollment Form'!$B328<>\"Subscriber\",'Enrollment Form'!$C328=\"ROC\"),\"-\",IF(AND('Enrollment Form'!$B328=\"Subscriber\",'Enrollment Form'!$C328=\"Enroll\",'Enrollment Form'!$CO328<>\"\"),\"Y\",\"N\")))","v":""},{"$f":"IF($B321=\"N\",\"\",IF($S321=\"-\",\"-\",IF(AND($S321=\"Y\",'Enrollment Form'!$CO328=\"No\"),\"-\",IF(AND($S321=\"Y\",'Enrollment Form'!$CO328=\"Yes\",'Enrollment Form'!$CP328<>\"\"),\"Y\",\"N\"))))","v":""},{"$f":"IF(OR('Enrollment Form'!$AV328=\"Yes\",'Enrollment Form'!$AV328=\"\"),\"-\",IF(AND('Enrollment Form'!$AV328=\"No\",ISERROR(FIND(\"HMO\",VLOOKUP('Enrollment Form'!G328,'Enrollment Form'!H$11:J$1000,3,FALSE),1))=FALSE,COUNTA('Enrollment Form'!$AW328:$AZ328)=4),\"Y\",\"N\"))","v":"-"},{"$f":"IF($B321=\"N\",\"\",IF('Enrollment Form'!$B328=\"Subscriber\",\"-\",IF(COUNTA('Enrollment Form'!$BE328,'Enrollment Form'!$BG328)=2,\"Y\",\"N\")))","v":""},{"$f":"IF($B321=\"N\",\"\",IF(OR('Enrollment Form'!$AU328=\"\",'Enrollment Form'!$AU328=\"No\"),\"-\",IF(AND('Enrollment Form'!$AU328=\"Yes\",COUNTA('Enrollment Form'!$CK328)=1),\"Y\",\"N\")))","v":""},{"$f":"IF(OR('Enrollment Form'!$CK328=\"\",'Enrollment Form'!$CK328=\"No\"),\"-\",IF(COUNTA('Enrollment Form'!$CM328:$CN328)=2,\"Y\",\"N\"))","v":"-"},{"$f":"IF($B321=\"N\",\"\",IF(COUNTIF('Enrollment Form'!$CZ328:$DO328,\"Other\")=COUNTA('Enrollment Form'!$DF328,'Enrollment Form'!$DA328,'Enrollment Form'!$DK328,'Enrollment Form'!$DP328),\"Y\",\"N\"))","v":""},{"$f":"IF($B321=\"N\",\"\",IF(OR('Enrollment Form'!B328<>\"Subscriber\",'Enrollment Form'!C328=\"ROC\",COUNTIF('Enrollment Form'!AS328:AT328,\"Yes\")>=1),\"-\",IF(AND('Enrollment Form'!C328=\"Enroll\",COUNTIF('Enrollment Form'!AS328:AT328,\"No\")=2,'Enrollment Form'!AU328=\"\"),\"N\",\"Y\")))","v":""},{"$f":"IF(OR(B321=\"N\",'Enrollment Form'!B328<>\"Subscriber\",'Enrollment Form'!C328=\"ROC\",'Enrollment Form'!O328<>\"Multiple of Salary\"),\"-\",IF(COUNTA('Enrollment Form'!T328:U328)<2,\"N\",\"Y\"))","v":"-"},{"$f":"IF(B321=\"N\",\"\",IF(OR('Enrollment Form'!C328=\"ROC\",'Enrollment Form'!B328<>\"Subscriber\",'Enrollment Form'!O328=\"Waive\",'Enrollment Form'!O328=\"\"),\"-\",IF('Enrollment Form'!P328=\"\",\"N\",\"Y\")))","v":""},{"$f":"IF($B321=\"N\",\"\",IF(AND('Enrollment Form'!$C328=\"ROC\",'Enrollment Form'!$DS328<>\"\"),\"Y\",IF(AND('Enrollment Form'!$C328=\"ROC\",'Enrollment Form'!$DS328=\"\"),\"N\",IF(AND('Enrollment Form'!$C328=\"Enroll\",'Enrollment Form'!$B328=\"Subscriber\",'Enrollment Form'!$CQ328=\"No\",'Enrollment Form'!$DS328=\"\"),\"N\",IF(AND('Enrollment Form'!$C328=\"Enroll\",'Enrollment Form'!$B328=\"Subscriber\",'Enrollment Form'!$CQ328=\"Yes\"),\"-\",\"Y\")))))","v":""},{"$f":"IF($B321=\"N\",\"\",IF(AND('Enrollment Form'!$C328=\"ROC\",'Enrollment Form'!$DT328<>\"\"),\"Y\",IF(AND('Enrollment Form'!$C328=\"ROC\",'Enrollment Form'!$DT328=\"\"),\"N\",IF(AND('Enrollment Form'!$C328=\"Enroll\",'Enrollment Form'!$B328=\"Subscriber\",'Enrollment Form'!$CQ328=\"No\",'Enrollment Form'!$DT328=\"\"),\"N\",IF(AND('Enrollment Form'!$C328=\"Enroll\",'Enrollment Form'!$B328=\"Subscriber\",'Enrollment Form'!$CQ328=\"Yes\"),\"-\",\"Y\")))))","v":""},{"$f":"IF('Enrollment Form'!AH328=\"\",\"\",IF(ISERROR(SEARCH(\".\",'Enrollment Form'!AH328,SEARCH(\"@\",'Enrollment Form'!AH328))),\"N\",\"Y\"))","v":""},{"$f":"IF(OR($B321=\"N\",'Enrollment Form'!$G328=\"\"),\"\",IF('Enrollment Form'!$B328<>\"Subscriber\",\"-\",IF(COUNTIF('Enrollment Form'!$AS328:$AT328,\"Yes\")=2,\"N\",\"Y\")))","v":""},{"$f":"IF(OR('Enrollment Form'!$CC328=\"\",'Enrollment Form'!$CC328=\"No\"),\"-\",IF(AND('Enrollment Form'!$CC328=\"Yes\",'Enrollment Form'!$CD328=\"\"),\"N\",\"Y\"))","v":"-"},{"$f":"IF(OR('Enrollment Form'!$CE328=\"\",'Enrollment Form'!$CE328=\"No\"),\"-\",IF(AND('Enrollment Form'!$CE328=\"Yes\",'Enrollment Form'!$CF328=\"\"),\"N\",\"Y\"))","v":"-"},{"$f":"IF(OR('Enrollment Form'!$CG328=\"\",'Enrollment Form'!$CG328=\"No\"),\"-\",IF(AND('Enrollment Form'!$CG328=\"Yes\",'Enrollment Form'!$CH328=\"\"),\"N\",\"Y\"))","v":"-"},{"$f":"IF(OR('Enrollment Form'!$CG328=\"\",'Enrollment Form'!$CG328=\"No\"),\"-\",IF(AND('Enrollment Form'!$CG328=\"Yes\",'Enrollment Form'!$CI328=\"\"),\"N\",\"Y\"))","v":"-"},{"$f":"IF('Enrollment Form'!B328<>\"Subscriber\",\"-\",IF(AND('Enrollment Form'!B328=\"Subscriber\",'Enrollment Form'!C328=\"Enroll\",'Enrollment Form'!AA328=\"\"),\"N\",\"Y\"))","v":"-"},{"$f":"IF(OR('Enrollment Form'!B328=\"Subscriber\",'Enrollment Form'!B328=\"\"),\"-\",IF('Enrollment Form'!BI328=\"\",\"N\",\"Y\"))","v":"-"},{"$f":"IF('Enrollment Form'!B328<>\"Subscriber\",\"-\",IF(AND('Enrollment Form'!B328=\"Subscriber\",'Enrollment Form'!G328=\"\"),\"N\",\"Y\"))","v":"-"},{"$f":"IF('Enrollment Form'!A328=\"\",\"\",IF('Enrollment Form'!B328=\"Subscriber\",\"-\",IF(AND('Enrollment Form'!B328<>\"Subscriber\",'Enrollment Form'!G328='Enrollment Form'!H328),\"N\",\"Y\")))","v":""},0]
[329,{"$f":"IF('Enrollment Form'!$A329<>\"\",\"Y\",\"N\")","v":"N"},{"$f":"IF(AND('Enrollment Form'!$B329=\"\",'Enrollment Form'!$C329<>\"\"),\"N\",IF($B322=\"N\",\"\",\"Y\"))","v":""},{"$f":"IF(OR($B322=\"N\",'Enrollment Form'!G329=\"\"),\"\",IF('Enrollment Form'!$B329<>\"Subscriber\",\"\",IF('Enrollment Form'!$G329='Enrollment Form'!$H329,\"Y\",\"N\")))","v":""},{"$f":"IF($B322=\"N\",\"\",IF(AND(COUNTIFS('Enrollment Form'!$H$11:$H$1000,'Enrollment Form'!$H329,'Enrollment Form'!$B$11:$B$1000,'Enrollment Form'!$B329)>1,'Enrollment Form'!$H329<>\"\"),\"N\",\"Y\"))","v":""},{"$f":"IF($B322=\"N\",\"\",IF(LEN('Enrollment Form'!$Y329)=0,\"\",IF(LEN('Enrollment Form'!$Y329)<>5,\"N\",\"Y\")))","v":""},{"$f":"IF($B322=\"N\",\"\",IF(LEN('Enrollment Form'!$AD329=0),\"\",IF(LEN('Enrollment Form'!$AD329)<>5,\"N\",\"Y\")))","v":""},{"$f":"IF($B322=\"N\",\"\",IF(LEN('Enrollment Form'!$BL329=0),\"\",IF(LEN('Enrollment Form'!$BL329)<>5,\"N\",\"Y\")))","v":""},{"$f":"IF($B322=\"N\",\"\",IF(LEN('Enrollment Form'!$AE329)=0,\"\",IF(LEN('Enrollment Form'!$AE329)<>10,\"N\",\"Y\")))","v":""},{"$f":"IF($B322=\"N\",\"\",IF(LEN('Enrollment Form'!$AF329)=0,\"\",IF(LEN('Enrollment Form'!$AF329)<>10,\"N\",\"Y\")))","v":""},{"$f":"IF('Enrollment Form'!$O329<>\"Graded\",\"-\",IF(AND('Enrollment Form'!$O329=\"Graded\",'Enrollment Form'!$AO329<>\"\"),\"Y\",\"N\"))","v":"-"},{"$f":"IF($B322=\"N\",\"\",IF(OR('Enrollment Form'!$B329<>\"Subscriber\",'Enrollment Form'!$C329=\"ROC\"),\"-\",IF(AND('Enrollment Form'!$B329=\"Subscriber\",'Enrollment Form'!$C329=\"Enroll\",'Enrollment Form'!$AJ329<>\"\"),\"Y\",\"N\")))","v":""},{"$f":"IF($B322=\"N\",\"\",IF(OR('Enrollment Form'!$B329<>\"Subscriber\",'Enrollment Form'!$C329=\"ROC\"),\"-\",IF(AND('Enrollment Form'!$B329=\"Subscriber\",'Enrollment Form'!$C329=\"Enroll\",'Enrollment Form'!$AK329<>\"\"),\"Y\",\"N\")))","v":""},{"$f":"IF($B322=\"N\",\"\",IF(OR('Enrollment Form'!$B329<>\"Subscriber\",'Enrollment Form'!$C329=\"ROC\"),\"-\",IF(AND('Enrollment Form'!$B329=\"Subscriber\",'Enrollment Form'!$C329=\"Enroll\",'Enrollment Form'!$AL329<>\"\"),\"Y\",\"N\")))","v":""},{"$f":"IF($B322=\"N\",\"\",IF(OR('Enrollment Form'!$B329<>\"Subscriber\",'Enrollment Form'!$C329=\"ROC\"),\"-\",IF(AND('Enrollment Form'!$B329=\"Subscriber\",'Enrollment Form'!$C329=\"Enroll\",'Enrollment Form'!$AM329<>\"\"),\"Y\",\"N\")))","v":""},{"$f":"IF($B322=\"N\",\"\",IF(OR('Enrollment Form'!$B329<>\"Subscriber\",'Enrollment Form'!$C329=\"ROC\"),\"-\",IF(AND('Enrollment Form'!$B329=\"Subscriber\",'Enrollment Form'!$C329=\"Enroll\",'Enrollment Form'!$AN329<>\"\"),\"Y\",\"N\")))","v":""},{"$f":"IF($B322=\"N\",\"\",IF(OR('Enrollment Form'!$B329<>\"Subscriber\",'Enrollment Form'!$C329=\"ROC\"),\"-\",IF(AND('Enrollment Form'!$B329=\"Subscriber\",'Enrollment Form'!$C329=\"Enroll\",'Enrollment Form'!$AP329<>\"\"),\"Y\",\"N\")))","v":""},{"$f":"IF($B322=\"N\",\"\",IF($Q322=\"-\",\"-\",IF(AND($Q322=\"Y\",'Enrollment Form'!$AP329=\"No\"),\"-\",IF(AND($Q322=\"Y\",'Enrollment Form'!$AP329=\"Yes\",'Enrollment Form'!$AQ329<>\"\"),\"Y\",\"N\"))))","v":""},{"$f":"IF($B322=\"N\",\"\",IF(OR('Enrollment Form'!$B329<>\"Subscriber\",'Enrollment Form'!$C329=\"ROC\"),\"-\",IF(AND('Enrollment Form'!$B329=\"Subscriber\",'Enrollment Form'!$C329=\"Enroll\",'Enrollment Form'!$CO329<>\"\"),\"Y\",\"N\")))","v":""},{"$f":"IF($B322=\"N\",\"\",IF($S322=\"-\",\"-\",IF(AND($S322=\"Y\",'Enrollment Form'!$CO329=\"No\"),\"-\",IF(AND($S322=\"Y\",'Enrollment Form'!$CO329=\"Yes\",'Enrollment Form'!$CP329<>\"\"),\"Y\",\"N\"))))","v":""},{"$f":"IF(OR('Enrollment Form'!$AV329=\"Yes\",'Enrollment Form'!$AV329=\"\"),\"-\",IF(AND('Enrollment Form'!$AV329=\"No\",ISERROR(FIND(\"HMO\",VLOOKUP('Enrollment Form'!G329,'Enrollment Form'!H$11:J$1000,3,FALSE),1))=FALSE,COUNTA('Enrollment Form'!$AW329:$AZ329)=4),\"Y\",\"N\"))","v":"-"},{"$f":"IF($B322=\"N\",\"\",IF('Enrollment Form'!$B329=\"Subscriber\",\"-\",IF(COUNTA('Enrollment Form'!$BE329,'Enrollment Form'!$BG329)=2,\"Y\",\"N\")))","v":""},{"$f":"IF($B322=\"N\",\"\",IF(OR('Enrollment Form'!$AU329=\"\",'Enrollment Form'!$AU329=\"No\"),\"-\",IF(AND('Enrollment Form'!$AU329=\"Yes\",COUNTA('Enrollment Form'!$CK329)=1),\"Y\",\"N\")))","v":""},{"$f":"IF(OR('Enrollment Form'!$CK329=\"\",'Enrollment Form'!$CK329=\"No\"),\"-\",IF(COUNTA('Enrollment Form'!$CM329:$CN329)=2,\"Y\",\"N\"))","v":"-"},{"$f":"IF($B322=\"N\",\"\",IF(COUNTIF('Enrollment Form'!$CZ329:$DO329,\"Other\")=COUNTA('Enrollment Form'!$DF329,'Enrollment Form'!$DA329,'Enrollment Form'!$DK329,'Enrollment Form'!$DP329),\"Y\",\"N\"))","v":""},{"$f":"IF($B322=\"N\",\"\",IF(OR('Enrollment Form'!B329<>\"Subscriber\",'Enrollment Form'!C329=\"ROC\",COUNTIF('Enrollment Form'!AS329:AT329,\"Yes\")>=1),\"-\",IF(AND('Enrollment Form'!C329=\"Enroll\",COUNTIF('Enrollment Form'!AS329:AT329,\"No\")=2,'Enrollment Form'!AU329=\"\"),\"N\",\"Y\")))","v":""},{"$f":"IF(OR(B322=\"N\",'Enrollment Form'!B329<>\"Subscriber\",'Enrollment Form'!C329=\"ROC\",'Enrollment Form'!O329<>\"Multiple of Salary\"),\"-\",IF(COUNTA('Enrollment Form'!T329:U329)<2,\"N\",\"Y\"))","v":"-"},{"$f":"IF(B322=\"N\",\"\",IF(OR('Enrollment Form'!C329=\"ROC\",'Enrollment Form'!B329<>\"Subscriber\",'Enrollment Form'!O329=\"Waive\",'Enrollment Form'!O329=\"\"),\"-\",IF('Enrollment Form'!P329=\"\",\"N\",\"Y\")))","v":""},{"$f":"IF($B322=\"N\",\"\",IF(AND('Enrollment Form'!$C329=\"ROC\",'Enrollment Form'!$DS329<>\"\"),\"Y\",IF(AND('Enrollment Form'!$C329=\"ROC\",'Enrollment Form'!$DS329=\"\"),\"N\",IF(AND('Enrollment Form'!$C329=\"Enroll\",'Enrollment Form'!$B329=\"Subscriber\",'Enrollment Form'!$CQ329=\"No\",'Enrollment Form'!$DS329=\"\"),\"N\",IF(AND('Enrollment Form'!$C329=\"Enroll\",'Enrollment Form'!$B329=\"Subscriber\",'Enrollment Form'!$CQ329=\"Yes\"),\"-\",\"Y\")))))","v":""},{"$f":"IF($B322=\"N\",\"\",IF(AND('Enrollment Form'!$C329=\"ROC\",'Enrollment Form'!$DT329<>\"\"),\"Y\",IF(AND('Enrollment Form'!$C329=\"ROC\",'Enrollment Form'!$DT329=\"\"),\"N\",IF(AND('Enrollment Form'!$C329=\"Enroll\",'Enrollment Form'!$B329=\"Subscriber\",'Enrollment Form'!$CQ329=\"No\",'Enrollment Form'!$DT329=\"\"),\"N\",IF(AND('Enrollment Form'!$C329=\"Enroll\",'Enrollment Form'!$B329=\"Subscriber\",'Enrollment Form'!$CQ329=\"Yes\"),\"-\",\"Y\")))))","v":""},{"$f":"IF('Enrollment Form'!AH329=\"\",\"\",IF(ISERROR(SEARCH(\".\",'Enrollment Form'!AH329,SEARCH(\"@\",'Enrollment Form'!AH329))),\"N\",\"Y\"))","v":""},{"$f":"IF(OR($B322=\"N\",'Enrollment Form'!$G329=\"\"),\"\",IF('Enrollment Form'!$B329<>\"Subscriber\",\"-\",IF(COUNTIF('Enrollment Form'!$AS329:$AT329,\"Yes\")=2,\"N\",\"Y\")))","v":""},{"$f":"IF(OR('Enrollment Form'!$CC329=\"\",'Enrollment Form'!$CC329=\"No\"),\"-\",IF(AND('Enrollment Form'!$CC329=\"Yes\",'Enrollment Form'!$CD329=\"\"),\"N\",\"Y\"))","v":"-"},{"$f":"IF(OR('Enrollment Form'!$CE329=\"\",'Enrollment Form'!$CE329=\"No\"),\"-\",IF(AND('Enrollment Form'!$CE329=\"Yes\",'Enrollment Form'!$CF329=\"\"),\"N\",\"Y\"))","v":"-"},{"$f":"IF(OR('Enrollment Form'!$CG329=\"\",'Enrollment Form'!$CG329=\"No\"),\"-\",IF(AND('Enrollment Form'!$CG329=\"Yes\",'Enrollment Form'!$CH329=\"\"),\"N\",\"Y\"))","v":"-"},{"$f":"IF(OR('Enrollment Form'!$CG329=\"\",'Enrollment Form'!$CG329=\"No\"),\"-\",IF(AND('Enrollment Form'!$CG329=\"Yes\",'Enrollment Form'!$CI329=\"\"),\"N\",\"Y\"))","v":"-"},{"$f":"IF('Enrollment Form'!B329<>\"Subscriber\",\"-\",IF(AND('Enrollment Form'!B329=\"Subscriber\",'Enrollment Form'!C329=\"Enroll\",'Enrollment Form'!AA329=\"\"),\"N\",\"Y\"))","v":"-"},{"$f":"IF(OR('Enrollment Form'!B329=\"Subscriber\",'Enrollment Form'!B329=\"\"),\"-\",IF('Enrollment Form'!BI329=\"\",\"N\",\"Y\"))","v":"-"},{"$f":"IF('Enrollment Form'!B329<>\"Subscriber\",\"-\",IF(AND('Enrollment Form'!B329=\"Subscriber\",'Enrollment Form'!G329=\"\"),\"N\",\"Y\"))","v":"-"},{"$f":"IF('Enrollment Form'!A329=\"\",\"\",IF('Enrollment Form'!B329=\"Subscriber\",\"-\",IF(AND('Enrollment Form'!B329<>\"Subscriber\",'Enrollment Form'!G329='Enrollment Form'!H329),\"N\",\"Y\")))","v":""},0]
[330,{"$f":"IF('Enrollment Form'!$A330<>\"\",\"Y\",\"N\")","v":"N"},{"$f":"IF(AND('Enrollment Form'!$B330=\"\",'Enrollment Form'!$C330<>\"\"),\"N\",IF($B323=\"N\",\"\",\"Y\"))","v":""},{"$f":"IF(OR($B323=\"N\",'Enrollment Form'!G330=\"\"),\"\",IF('Enrollment Form'!$B330<>\"Subscriber\",\"\",IF('Enrollment Form'!$G330='Enrollment Form'!$H330,\"Y\",\"N\")))","v":""},{"$f":"IF($B323=\"N\",\"\",IF(AND(COUNTIFS('Enrollment Form'!$H$11:$H$1000,'Enrollment Form'!$H330,'Enrollment Form'!$B$11:$B$1000,'Enrollment Form'!$B330)>1,'Enrollment Form'!$H330<>\"\"),\"N\",\"Y\"))","v":""},{"$f":"IF($B323=\"N\",\"\",IF(LEN('Enrollment Form'!$Y330)=0,\"\",IF(LEN('Enrollment Form'!$Y330)<>5,\"N\",\"Y\")))","v":""},{"$f":"IF($B323=\"N\",\"\",IF(LEN('Enrollment Form'!$AD330=0),\"\",IF(LEN('Enrollment Form'!$AD330)<>5,\"N\",\"Y\")))","v":""},{"$f":"IF($B323=\"N\",\"\",IF(LEN('Enrollment Form'!$BL330=0),\"\",IF(LEN('Enrollment Form'!$BL330)<>5,\"N\",\"Y\")))","v":""},{"$f":"IF($B323=\"N\",\"\",IF(LEN('Enrollment Form'!$AE330)=0,\"\",IF(LEN('Enrollment Form'!$AE330)<>10,\"N\",\"Y\")))","v":""},{"$f":"IF($B323=\"N\",\"\",IF(LEN('Enrollment Form'!$AF330)=0,\"\",IF(LEN('Enrollment Form'!$AF330)<>10,\"N\",\"Y\")))","v":""},{"$f":"IF('Enrollment Form'!$O330<>\"Graded\",\"-\",IF(AND('Enrollment Form'!$O330=\"Graded\",'Enrollment Form'!$AO330<>\"\"),\"Y\",\"N\"))","v":"-"},{"$f":"IF($B323=\"N\",\"\",IF(OR('Enrollment Form'!$B330<>\"Subscriber\",'Enrollment Form'!$C330=\"ROC\"),\"-\",IF(AND('Enrollment Form'!$B330=\"Subscriber\",'Enrollment Form'!$C330=\"Enroll\",'Enrollment Form'!$AJ330<>\"\"),\"Y\",\"N\")))","v":""},{"$f":"IF($B323=\"N\",\"\",IF(OR('Enrollment Form'!$B330<>\"Subscriber\",'Enrollment Form'!$C330=\"ROC\"),\"-\",IF(AND('Enrollment Form'!$B330=\"Subscriber\",'Enrollment Form'!$C330=\"Enroll\",'Enrollment Form'!$AK330<>\"\"),\"Y\",\"N\")))","v":""},{"$f":"IF($B323=\"N\",\"\",IF(OR('Enrollment Form'!$B330<>\"Subscriber\",'Enrollment Form'!$C330=\"ROC\"),\"-\",IF(AND('Enrollment Form'!$B330=\"Subscriber\",'Enrollment Form'!$C330=\"Enroll\",'Enrollment Form'!$AL330<>\"\"),\"Y\",\"N\")))","v":""},{"$f":"IF($B323=\"N\",\"\",IF(OR('Enrollment Form'!$B330<>\"Subscriber\",'Enrollment Form'!$C330=\"ROC\"),\"-\",IF(AND('Enrollment Form'!$B330=\"Subscriber\",'Enrollment Form'!$C330=\"Enroll\",'Enrollment Form'!$AM330<>\"\"),\"Y\",\"N\")))","v":""},{"$f":"IF($B323=\"N\",\"\",IF(OR('Enrollment Form'!$B330<>\"Subscriber\",'Enrollment Form'!$C330=\"ROC\"),\"-\",IF(AND('Enrollment Form'!$B330=\"Subscriber\",'Enrollment Form'!$C330=\"Enroll\",'Enrollment Form'!$AN330<>\"\"),\"Y\",\"N\")))","v":""},{"$f":"IF($B323=\"N\",\"\",IF(OR('Enrollment Form'!$B330<>\"Subscriber\",'Enrollment Form'!$C330=\"ROC\"),\"-\",IF(AND('Enrollment Form'!$B330=\"Subscriber\",'Enrollment Form'!$C330=\"Enroll\",'Enrollment Form'!$AP330<>\"\"),\"Y\",\"N\")))","v":""},{"$f":"IF($B323=\"N\",\"\",IF($Q323=\"-\",\"-\",IF(AND($Q323=\"Y\",'Enrollment Form'!$AP330=\"No\"),\"-\",IF(AND($Q323=\"Y\",'Enrollment Form'!$AP330=\"Yes\",'Enrollment Form'!$AQ330<>\"\"),\"Y\",\"N\"))))","v":""},{"$f":"IF($B323=\"N\",\"\",IF(OR('Enrollment Form'!$B330<>\"Subscriber\",'Enrollment Form'!$C330=\"ROC\"),\"-\",IF(AND('Enrollment Form'!$B330=\"Subscriber\",'Enrollment Form'!$C330=\"Enroll\",'Enrollment Form'!$CO330<>\"\"),\"Y\",\"N\")))","v":""},{"$f":"IF($B323=\"N\",\"\",IF($S323=\"-\",\"-\",IF(AND($S323=\"Y\",'Enrollment Form'!$CO330=\"No\"),\"-\",IF(AND($S323=\"Y\",'Enrollment Form'!$CO330=\"Yes\",'Enrollment Form'!$CP330<>\"\"),\"Y\",\"N\"))))","v":""},{"$f":"IF(OR('Enrollment Form'!$AV330=\"Yes\",'Enrollment Form'!$AV330=\"\"),\"-\",IF(AND('Enrollment Form'!$AV330=\"No\",ISERROR(FIND(\"HMO\",VLOOKUP('Enrollment Form'!G330,'Enrollment Form'!H$11:J$1000,3,FALSE),1))=FALSE,COUNTA('Enrollment Form'!$AW330:$AZ330)=4),\"Y\",\"N\"))","v":"-"},{"$f":"IF($B323=\"N\",\"\",IF('Enrollment Form'!$B330=\"Subscriber\",\"-\",IF(COUNTA('Enrollment Form'!$BE330,'Enrollment Form'!$BG330)=2,\"Y\",\"N\")))","v":""},{"$f":"IF($B323=\"N\",\"\",IF(OR('Enrollment Form'!$AU330=\"\",'Enrollment Form'!$AU330=\"No\"),\"-\",IF(AND('Enrollment Form'!$AU330=\"Yes\",COUNTA('Enrollment Form'!$CK330)=1),\"Y\",\"N\")))","v":""},{"$f":"IF(OR('Enrollment Form'!$CK330=\"\",'Enrollment Form'!$CK330=\"No\"),\"-\",IF(COUNTA('Enrollment Form'!$CM330:$CN330)=2,\"Y\",\"N\"))","v":"-"},{"$f":"IF($B323=\"N\",\"\",IF(COUNTIF('Enrollment Form'!$CZ330:$DO330,\"Other\")=COUNTA('Enrollment Form'!$DF330,'Enrollment Form'!$DA330,'Enrollment Form'!$DK330,'Enrollment Form'!$DP330),\"Y\",\"N\"))","v":""},{"$f":"IF($B323=\"N\",\"\",IF(OR('Enrollment Form'!B330<>\"Subscriber\",'Enrollment Form'!C330=\"ROC\",COUNTIF('Enrollment Form'!AS330:AT330,\"Yes\")>=1),\"-\",IF(AND('Enrollment Form'!C330=\"Enroll\",COUNTIF('Enrollment Form'!AS330:AT330,\"No\")=2,'Enrollment Form'!AU330=\"\"),\"N\",\"Y\")))","v":""},{"$f":"IF(OR(B323=\"N\",'Enrollment Form'!B330<>\"Subscriber\",'Enrollment Form'!C330=\"ROC\",'Enrollment Form'!O330<>\"Multiple of Salary\"),\"-\",IF(COUNTA('Enrollment Form'!T330:U330)<2,\"N\",\"Y\"))","v":"-"},{"$f":"IF(B323=\"N\",\"\",IF(OR('Enrollment Form'!C330=\"ROC\",'Enrollment Form'!B330<>\"Subscriber\",'Enrollment Form'!O330=\"Waive\",'Enrollment Form'!O330=\"\"),\"-\",IF('Enrollment Form'!P330=\"\",\"N\",\"Y\")))","v":""},{"$f":"IF($B323=\"N\",\"\",IF(AND('Enrollment Form'!$C330=\"ROC\",'Enrollment Form'!$DS330<>\"\"),\"Y\",IF(AND('Enrollment Form'!$C330=\"ROC\",'Enrollment Form'!$DS330=\"\"),\"N\",IF(AND('Enrollment Form'!$C330=\"Enroll\",'Enrollment Form'!$B330=\"Subscriber\",'Enrollment Form'!$CQ330=\"No\",'Enrollment Form'!$DS330=\"\"),\"N\",IF(AND('Enrollment Form'!$C330=\"Enroll\",'Enrollment Form'!$B330=\"Subscriber\",'Enrollment Form'!$CQ330=\"Yes\"),\"-\",\"Y\")))))","v":""},{"$f":"IF($B323=\"N\",\"\",IF(AND('Enrollment Form'!$C330=\"ROC\",'Enrollment Form'!$DT330<>\"\"),\"Y\",IF(AND('Enrollment Form'!$C330=\"ROC\",'Enrollment Form'!$DT330=\"\"),\"N\",IF(AND('Enrollment Form'!$C330=\"Enroll\",'Enrollment Form'!$B330=\"Subscriber\",'Enrollment Form'!$CQ330=\"No\",'Enrollment Form'!$DT330=\"\"),\"N\",IF(AND('Enrollment Form'!$C330=\"Enroll\",'Enrollment Form'!$B330=\"Subscriber\",'Enrollment Form'!$CQ330=\"Yes\"),\"-\",\"Y\")))))","v":""},{"$f":"IF('Enrollment Form'!AH330=\"\",\"\",IF(ISERROR(SEARCH(\".\",'Enrollment Form'!AH330,SEARCH(\"@\",'Enrollment Form'!AH330))),\"N\",\"Y\"))","v":""},{"$f":"IF(OR($B323=\"N\",'Enrollment Form'!$G330=\"\"),\"\",IF('Enrollment Form'!$B330<>\"Subscriber\",\"-\",IF(COUNTIF('Enrollment Form'!$AS330:$AT330,\"Yes\")=2,\"N\",\"Y\")))","v":""},{"$f":"IF(OR('Enrollment Form'!$CC330=\"\",'Enrollment Form'!$CC330=\"No\"),\"-\",IF(AND('Enrollment Form'!$CC330=\"Yes\",'Enrollment Form'!$CD330=\"\"),\"N\",\"Y\"))","v":"-"},{"$f":"IF(OR('Enrollment Form'!$CE330=\"\",'Enrollment Form'!$CE330=\"No\"),\"-\",IF(AND('Enrollment Form'!$CE330=\"Yes\",'Enrollment Form'!$CF330=\"\"),\"N\",\"Y\"))","v":"-"},{"$f":"IF(OR('Enrollment Form'!$CG330=\"\",'Enrollment Form'!$CG330=\"No\"),\"-\",IF(AND('Enrollment Form'!$CG330=\"Yes\",'Enrollment Form'!$CH330=\"\"),\"N\",\"Y\"))","v":"-"},{"$f":"IF(OR('Enrollment Form'!$CG330=\"\",'Enrollment Form'!$CG330=\"No\"),\"-\",IF(AND('Enrollment Form'!$CG330=\"Yes\",'Enrollment Form'!$CI330=\"\"),\"N\",\"Y\"))","v":"-"},{"$f":"IF('Enrollment Form'!B330<>\"Subscriber\",\"-\",IF(AND('Enrollment Form'!B330=\"Subscriber\",'Enrollment Form'!C330=\"Enroll\",'Enrollment Form'!AA330=\"\"),\"N\",\"Y\"))","v":"-"},{"$f":"IF(OR('Enrollment Form'!B330=\"Subscriber\",'Enrollment Form'!B330=\"\"),\"-\",IF('Enrollment Form'!BI330=\"\",\"N\",\"Y\"))","v":"-"},{"$f":"IF('Enrollment Form'!B330<>\"Subscriber\",\"-\",IF(AND('Enrollment Form'!B330=\"Subscriber\",'Enrollment Form'!G330=\"\"),\"N\",\"Y\"))","v":"-"},{"$f":"IF('Enrollment Form'!A330=\"\",\"\",IF('Enrollment Form'!B330=\"Subscriber\",\"-\",IF(AND('Enrollment Form'!B330<>\"Subscriber\",'Enrollment Form'!G330='Enrollment Form'!H330),\"N\",\"Y\")))","v":""},0]
[331,{"$f":"IF('Enrollment Form'!$A331<>\"\",\"Y\",\"N\")","v":"N"},{"$f":"IF(AND('Enrollment Form'!$B331=\"\",'Enrollment Form'!$C331<>\"\"),\"N\",IF($B324=\"N\",\"\",\"Y\"))","v":""},{"$f":"IF(OR($B324=\"N\",'Enrollment Form'!G331=\"\"),\"\",IF('Enrollment Form'!$B331<>\"Subscriber\",\"\",IF('Enrollment Form'!$G331='Enrollment Form'!$H331,\"Y\",\"N\")))","v":""},{"$f":"IF($B324=\"N\",\"\",IF(AND(COUNTIFS('Enrollment Form'!$H$11:$H$1000,'Enrollment Form'!$H331,'Enrollment Form'!$B$11:$B$1000,'Enrollment Form'!$B331)>1,'Enrollment Form'!$H331<>\"\"),\"N\",\"Y\"))","v":""},{"$f":"IF($B324=\"N\",\"\",IF(LEN('Enrollment Form'!$Y331)=0,\"\",IF(LEN('Enrollment Form'!$Y331)<>5,\"N\",\"Y\")))","v":""},{"$f":"IF($B324=\"N\",\"\",IF(LEN('Enrollment Form'!$AD331=0),\"\",IF(LEN('Enrollment Form'!$AD331)<>5,\"N\",\"Y\")))","v":""},{"$f":"IF($B324=\"N\",\"\",IF(LEN('Enrollment Form'!$BL331=0),\"\",IF(LEN('Enrollment Form'!$BL331)<>5,\"N\",\"Y\")))","v":""},{"$f":"IF($B324=\"N\",\"\",IF(LEN('Enrollment Form'!$AE331)=0,\"\",IF(LEN('Enrollment Form'!$AE331)<>10,\"N\",\"Y\")))","v":""},{"$f":"IF($B324=\"N\",\"\",IF(LEN('Enrollment Form'!$AF331)=0,\"\",IF(LEN('Enrollment Form'!$AF331)<>10,\"N\",\"Y\")))","v":""},{"$f":"IF('Enrollment Form'!$O331<>\"Graded\",\"-\",IF(AND('Enrollment Form'!$O331=\"Graded\",'Enrollment Form'!$AO331<>\"\"),\"Y\",\"N\"))","v":"-"},{"$f":"IF($B324=\"N\",\"\",IF(OR('Enrollment Form'!$B331<>\"Subscriber\",'Enrollment Form'!$C331=\"ROC\"),\"-\",IF(AND('Enrollment Form'!$B331=\"Subscriber\",'Enrollment Form'!$C331=\"Enroll\",'Enrollment Form'!$AJ331<>\"\"),\"Y\",\"N\")))","v":""},{"$f":"IF($B324=\"N\",\"\",IF(OR('Enrollment Form'!$B331<>\"Subscriber\",'Enrollment Form'!$C331=\"ROC\"),\"-\",IF(AND('Enrollment Form'!$B331=\"Subscriber\",'Enrollment Form'!$C331=\"Enroll\",'Enrollment Form'!$AK331<>\"\"),\"Y\",\"N\")))","v":""},{"$f":"IF($B324=\"N\",\"\",IF(OR('Enrollment Form'!$B331<>\"Subscriber\",'Enrollment Form'!$C331=\"ROC\"),\"-\",IF(AND('Enrollment Form'!$B331=\"Subscriber\",'Enrollment Form'!$C331=\"Enroll\",'Enrollment Form'!$AL331<>\"\"),\"Y\",\"N\")))","v":""},{"$f":"IF($B324=\"N\",\"\",IF(OR('Enrollment Form'!$B331<>\"Subscriber\",'Enrollment Form'!$C331=\"ROC\"),\"-\",IF(AND('Enrollment Form'!$B331=\"Subscriber\",'Enrollment Form'!$C331=\"Enroll\",'Enrollment Form'!$AM331<>\"\"),\"Y\",\"N\")))","v":""},{"$f":"IF($B324=\"N\",\"\",IF(OR('Enrollment Form'!$B331<>\"Subscriber\",'Enrollment Form'!$C331=\"ROC\"),\"-\",IF(AND('Enrollment Form'!$B331=\"Subscriber\",'Enrollment Form'!$C331=\"Enroll\",'Enrollment Form'!$AN331<>\"\"),\"Y\",\"N\")))","v":""},{"$f":"IF($B324=\"N\",\"\",IF(OR('Enrollment Form'!$B331<>\"Subscriber\",'Enrollment Form'!$C331=\"ROC\"),\"-\",IF(AND('Enrollment Form'!$B331=\"Subscriber\",'Enrollment Form'!$C331=\"Enroll\",'Enrollment Form'!$AP331<>\"\"),\"Y\",\"N\")))","v":""},{"$f":"IF($B324=\"N\",\"\",IF($Q324=\"-\",\"-\",IF(AND($Q324=\"Y\",'Enrollment Form'!$AP331=\"No\"),\"-\",IF(AND($Q324=\"Y\",'Enrollment Form'!$AP331=\"Yes\",'Enrollment Form'!$AQ331<>\"\"),\"Y\",\"N\"))))","v":""},{"$f":"IF($B324=\"N\",\"\",IF(OR('Enrollment Form'!$B331<>\"Subscriber\",'Enrollment Form'!$C331=\"ROC\"),\"-\",IF(AND('Enrollment Form'!$B331=\"Subscriber\",'Enrollment Form'!$C331=\"Enroll\",'Enrollment Form'!$CO331<>\"\"),\"Y\",\"N\")))","v":""},{"$f":"IF($B324=\"N\",\"\",IF($S324=\"-\",\"-\",IF(AND($S324=\"Y\",'Enrollment Form'!$CO331=\"No\"),\"-\",IF(AND($S324=\"Y\",'Enrollment Form'!$CO331=\"Yes\",'Enrollment Form'!$CP331<>\"\"),\"Y\",\"N\"))))","v":""},{"$f":"IF(OR('Enrollment Form'!$AV331=\"Yes\",'Enrollment Form'!$AV331=\"\"),\"-\",IF(AND('Enrollment Form'!$AV331=\"No\",ISERROR(FIND(\"HMO\",VLOOKUP('Enrollment Form'!G331,'Enrollment Form'!H$11:J$1000,3,FALSE),1))=FALSE,COUNTA('Enrollment Form'!$AW331:$AZ331)=4),\"Y\",\"N\"))","v":"-"},{"$f":"IF($B324=\"N\",\"\",IF('Enrollment Form'!$B331=\"Subscriber\",\"-\",IF(COUNTA('Enrollment Form'!$BE331,'Enrollment Form'!$BG331)=2,\"Y\",\"N\")))","v":""},{"$f":"IF($B324=\"N\",\"\",IF(OR('Enrollment Form'!$AU331=\"\",'Enrollment Form'!$AU331=\"No\"),\"-\",IF(AND('Enrollment Form'!$AU331=\"Yes\",COUNTA('Enrollment Form'!$CK331)=1),\"Y\",\"N\")))","v":""},{"$f":"IF(OR('Enrollment Form'!$CK331=\"\",'Enrollment Form'!$CK331=\"No\"),\"-\",IF(COUNTA('Enrollment Form'!$CM331:$CN331)=2,\"Y\",\"N\"))","v":"-"},{"$f":"IF($B324=\"N\",\"\",IF(COUNTIF('Enrollment Form'!$CZ331:$DO331,\"Other\")=COUNTA('Enrollment Form'!$DF331,'Enrollment Form'!$DA331,'Enrollment Form'!$DK331,'Enrollment Form'!$DP331),\"Y\",\"N\"))","v":""},{"$f":"IF($B324=\"N\",\"\",IF(OR('Enrollment Form'!B331<>\"Subscriber\",'Enrollment Form'!C331=\"ROC\",COUNTIF('Enrollment Form'!AS331:AT331,\"Yes\")>=1),\"-\",IF(AND('Enrollment Form'!C331=\"Enroll\",COUNTIF('Enrollment Form'!AS331:AT331,\"No\")=2,'Enrollment Form'!AU331=\"\"),\"N\",\"Y\")))","v":""},{"$f":"IF(OR(B324=\"N\",'Enrollment Form'!B331<>\"Subscriber\",'Enrollment Form'!C331=\"ROC\",'Enrollment Form'!O331<>\"Multiple of Salary\"),\"-\",IF(COUNTA('Enrollment Form'!T331:U331)<2,\"N\",\"Y\"))","v":"-"},{"$f":"IF(B324=\"N\",\"\",IF(OR('Enrollment Form'!C331=\"ROC\",'Enrollment Form'!B331<>\"Subscriber\",'Enrollment Form'!O331=\"Waive\",'Enrollment Form'!O331=\"\"),\"-\",IF('Enrollment Form'!P331=\"\",\"N\",\"Y\")))","v":""},{"$f":"IF($B324=\"N\",\"\",IF(AND('Enrollment Form'!$C331=\"ROC\",'Enrollment Form'!$DS331<>\"\"),\"Y\",IF(AND('Enrollment Form'!$C331=\"ROC\",'Enrollment Form'!$DS331=\"\"),\"N\",IF(AND('Enrollment Form'!$C331=\"Enroll\",'Enrollment Form'!$B331=\"Subscriber\",'Enrollment Form'!$CQ331=\"No\",'Enrollment Form'!$DS331=\"\"),\"N\",IF(AND('Enrollment Form'!$C331=\"Enroll\",'Enrollment Form'!$B331=\"Subscriber\",'Enrollment Form'!$CQ331=\"Yes\"),\"-\",\"Y\")))))","v":""},{"$f":"IF($B324=\"N\",\"\",IF(AND('Enrollment Form'!$C331=\"ROC\",'Enrollment Form'!$DT331<>\"\"),\"Y\",IF(AND('Enrollment Form'!$C331=\"ROC\",'Enrollment Form'!$DT331=\"\"),\"N\",IF(AND('Enrollment Form'!$C331=\"Enroll\",'Enrollment Form'!$B331=\"Subscriber\",'Enrollment Form'!$CQ331=\"No\",'Enrollment Form'!$DT331=\"\"),\"N\",IF(AND('Enrollment Form'!$C331=\"Enroll\",'Enrollment Form'!$B331=\"Subscriber\",'Enrollment Form'!$CQ331=\"Yes\"),\"-\",\"Y\")))))","v":""},{"$f":"IF('Enrollment Form'!AH331=\"\",\"\",IF(ISERROR(SEARCH(\".\",'Enrollment Form'!AH331,SEARCH(\"@\",'Enrollment Form'!AH331))),\"N\",\"Y\"))","v":""},{"$f":"IF(OR($B324=\"N\",'Enrollment Form'!$G331=\"\"),\"\",IF('Enrollment Form'!$B331<>\"Subscriber\",\"-\",IF(COUNTIF('Enrollment Form'!$AS331:$AT331,\"Yes\")=2,\"N\",\"Y\")))","v":""},{"$f":"IF(OR('Enrollment Form'!$CC331=\"\",'Enrollment Form'!$CC331=\"No\"),\"-\",IF(AND('Enrollment Form'!$CC331=\"Yes\",'Enrollment Form'!$CD331=\"\"),\"N\",\"Y\"))","v":"-"},{"$f":"IF(OR('Enrollment Form'!$CE331=\"\",'Enrollment Form'!$CE331=\"No\"),\"-\",IF(AND('Enrollment Form'!$CE331=\"Yes\",'Enrollment Form'!$CF331=\"\"),\"N\",\"Y\"))","v":"-"},{"$f":"IF(OR('Enrollment Form'!$CG331=\"\",'Enrollment Form'!$CG331=\"No\"),\"-\",IF(AND('Enrollment Form'!$CG331=\"Yes\",'Enrollment Form'!$CH331=\"\"),\"N\",\"Y\"))","v":"-"},{"$f":"IF(OR('Enrollment Form'!$CG331=\"\",'Enrollment Form'!$CG331=\"No\"),\"-\",IF(AND('Enrollment Form'!$CG331=\"Yes\",'Enrollment Form'!$CI331=\"\"),\"N\",\"Y\"))","v":"-"},{"$f":"IF('Enrollment Form'!B331<>\"Subscriber\",\"-\",IF(AND('Enrollment Form'!B331=\"Subscriber\",'Enrollment Form'!C331=\"Enroll\",'Enrollment Form'!AA331=\"\"),\"N\",\"Y\"))","v":"-"},{"$f":"IF(OR('Enrollment Form'!B331=\"Subscriber\",'Enrollment Form'!B331=\"\"),\"-\",IF('Enrollment Form'!BI331=\"\",\"N\",\"Y\"))","v":"-"},{"$f":"IF('Enrollment Form'!B331<>\"Subscriber\",\"-\",IF(AND('Enrollment Form'!B331=\"Subscriber\",'Enrollment Form'!G331=\"\"),\"N\",\"Y\"))","v":"-"},{"$f":"IF('Enrollment Form'!A331=\"\",\"\",IF('Enrollment Form'!B331=\"Subscriber\",\"-\",IF(AND('Enrollment Form'!B331<>\"Subscriber\",'Enrollment Form'!G331='Enrollment Form'!H331),\"N\",\"Y\")))","v":""},{"$f":"COUNTIF(C324:AN324,\"N\")","v":0}]
[332,{"$f":"IF('Enrollment Form'!$A332<>\"\",\"Y\",\"N\")","v":"N"},{"$f":"IF(AND('Enrollment Form'!$B332=\"\",'Enrollment Form'!$C332<>\"\"),\"N\",IF($B325=\"N\",\"\",\"Y\"))","v":""},{"$f":"IF(OR($B325=\"N\",'Enrollment Form'!G332=\"\"),\"\",IF('Enrollment Form'!$B332<>\"Subscriber\",\"\",IF('Enrollment Form'!$G332='Enrollment Form'!$H332,\"Y\",\"N\")))","v":""},{"$f":"IF($B325=\"N\",\"\",IF(AND(COUNTIFS('Enrollment Form'!$H$11:$H$1000,'Enrollment Form'!$H332,'Enrollment Form'!$B$11:$B$1000,'Enrollment Form'!$B332)>1,'Enrollment Form'!$H332<>\"\"),\"N\",\"Y\"))","v":""},{"$f":"IF($B325=\"N\",\"\",IF(LEN('Enrollment Form'!$Y332)=0,\"\",IF(LEN('Enrollment Form'!$Y332)<>5,\"N\",\"Y\")))","v":""},{"$f":"IF($B325=\"N\",\"\",IF(LEN('Enrollment Form'!$AD332=0),\"\",IF(LEN('Enrollment Form'!$AD332)<>5,\"N\",\"Y\")))","v":""},{"$f":"IF($B325=\"N\",\"\",IF(LEN('Enrollment Form'!$BL332=0),\"\",IF(LEN('Enrollment Form'!$BL332)<>5,\"N\",\"Y\")))","v":""},{"$f":"IF($B325=\"N\",\"\",IF(LEN('Enrollment Form'!$AE332)=0,\"\",IF(LEN('Enrollment Form'!$AE332)<>10,\"N\",\"Y\")))","v":""},{"$f":"IF($B325=\"N\",\"\",IF(LEN('Enrollment Form'!$AF332)=0,\"\",IF(LEN('Enrollment Form'!$AF332)<>10,\"N\",\"Y\")))","v":""},{"$f":"IF('Enrollment Form'!$O332<>\"Graded\",\"-\",IF(AND('Enrollment Form'!$O332=\"Graded\",'Enrollment Form'!$AO332<>\"\"),\"Y\",\"N\"))","v":"-"},{"$f":"IF($B325=\"N\",\"\",IF(OR('Enrollment Form'!$B332<>\"Subscriber\",'Enrollment Form'!$C332=\"ROC\"),\"-\",IF(AND('Enrollment Form'!$B332=\"Subscriber\",'Enrollment Form'!$C332=\"Enroll\",'Enrollment Form'!$AJ332<>\"\"),\"Y\",\"N\")))","v":""},{"$f":"IF($B325=\"N\",\"\",IF(OR('Enrollment Form'!$B332<>\"Subscriber\",'Enrollment Form'!$C332=\"ROC\"),\"-\",IF(AND('Enrollment Form'!$B332=\"Subscriber\",'Enrollment Form'!$C332=\"Enroll\",'Enrollment Form'!$AK332<>\"\"),\"Y\",\"N\")))","v":""},{"$f":"IF($B325=\"N\",\"\",IF(OR('Enrollment Form'!$B332<>\"Subscriber\",'Enrollment Form'!$C332=\"ROC\"),\"-\",IF(AND('Enrollment Form'!$B332=\"Subscriber\",'Enrollment Form'!$C332=\"Enroll\",'Enrollment Form'!$AL332<>\"\"),\"Y\",\"N\")))","v":""},{"$f":"IF($B325=\"N\",\"\",IF(OR('Enrollment Form'!$B332<>\"Subscriber\",'Enrollment Form'!$C332=\"ROC\"),\"-\",IF(AND('Enrollment Form'!$B332=\"Subscriber\",'Enrollment Form'!$C332=\"Enroll\",'Enrollment Form'!$AM332<>\"\"),\"Y\",\"N\")))","v":""},{"$f":"IF($B325=\"N\",\"\",IF(OR('Enrollment Form'!$B332<>\"Subscriber\",'Enrollment Form'!$C332=\"ROC\"),\"-\",IF(AND('Enrollment Form'!$B332=\"Subscriber\",'Enrollment Form'!$C332=\"Enroll\",'Enrollment Form'!$AN332<>\"\"),\"Y\",\"N\")))","v":""},{"$f":"IF($B325=\"N\",\"\",IF(OR('Enrollment Form'!$B332<>\"Subscriber\",'Enrollment Form'!$C332=\"ROC\"),\"-\",IF(AND('Enrollment Form'!$B332=\"Subscriber\",'Enrollment Form'!$C332=\"Enroll\",'Enrollment Form'!$AP332<>\"\"),\"Y\",\"N\")))","v":""},{"$f":"IF($B325=\"N\",\"\",IF($Q325=\"-\",\"-\",IF(AND($Q325=\"Y\",'Enrollment Form'!$AP332=\"No\"),\"-\",IF(AND($Q325=\"Y\",'Enrollment Form'!$AP332=\"Yes\",'Enrollment Form'!$AQ332<>\"\"),\"Y\",\"N\"))))","v":""},{"$f":"IF($B325=\"N\",\"\",IF(OR('Enrollment Form'!$B332<>\"Subscriber\",'Enrollment Form'!$C332=\"ROC\"),\"-\",IF(AND('Enrollment Form'!$B332=\"Subscriber\",'Enrollment Form'!$C332=\"Enroll\",'Enrollment Form'!$CO332<>\"\"),\"Y\",\"N\")))","v":""},{"$f":"IF($B325=\"N\",\"\",IF($S325=\"-\",\"-\",IF(AND($S325=\"Y\",'Enrollment Form'!$CO332=\"No\"),\"-\",IF(AND($S325=\"Y\",'Enrollment Form'!$CO332=\"Yes\",'Enrollment Form'!$CP332<>\"\"),\"Y\",\"N\"))))","v":""},{"$f":"IF(OR('Enrollment Form'!$AV332=\"Yes\",'Enrollment Form'!$AV332=\"\"),\"-\",IF(AND('Enrollment Form'!$AV332=\"No\",ISERROR(FIND(\"HMO\",VLOOKUP('Enrollment Form'!G332,'Enrollment Form'!H$11:J$1000,3,FALSE),1))=FALSE,COUNTA('Enrollment Form'!$AW332:$AZ332)=4),\"Y\",\"N\"))","v":"-"},{"$f":"IF($B325=\"N\",\"\",IF('Enrollment Form'!$B332=\"Subscriber\",\"-\",IF(COUNTA('Enrollment Form'!$BE332,'Enrollment Form'!$BG332)=2,\"Y\",\"N\")))","v":""},{"$f":"IF($B325=\"N\",\"\",IF(OR('Enrollment Form'!$AU332=\"\",'Enrollment Form'!$AU332=\"No\"),\"-\",IF(AND('Enrollment Form'!$AU332=\"Yes\",COUNTA('Enrollment Form'!$CK332)=1),\"Y\",\"N\")))","v":""},{"$f":"IF(OR('Enrollment Form'!$CK332=\"\",'Enrollment Form'!$CK332=\"No\"),\"-\",IF(COUNTA('Enrollment Form'!$CM332:$CN332)=2,\"Y\",\"N\"))","v":"-"},{"$f":"IF($B325=\"N\",\"\",IF(COUNTIF('Enrollment Form'!$CZ332:$DO332,\"Other\")=COUNTA('Enrollment Form'!$DF332,'Enrollment Form'!$DA332,'Enrollment Form'!$DK332,'Enrollment Form'!$DP332),\"Y\",\"N\"))","v":""},{"$f":"IF($B325=\"N\",\"\",IF(OR('Enrollment Form'!B332<>\"Subscriber\",'Enrollment Form'!C332=\"ROC\",COUNTIF('Enrollment Form'!AS332:AT332,\"Yes\")>=1),\"-\",IF(AND('Enrollment Form'!C332=\"Enroll\",COUNTIF('Enrollment Form'!AS332:AT332,\"No\")=2,'Enrollment Form'!AU332=\"\"),\"N\",\"Y\")))","v":""},{"$f":"IF(OR(B325=\"N\",'Enrollment Form'!B332<>\"Subscriber\",'Enrollment Form'!C332=\"ROC\",'Enrollment Form'!O332<>\"Multiple of Salary\"),\"-\",IF(COUNTA('Enrollment Form'!T332:U332)<2,\"N\",\"Y\"))","v":"-"},{"$f":"IF(B325=\"N\",\"\",IF(OR('Enrollment Form'!C332=\"ROC\",'Enrollment Form'!B332<>\"Subscriber\",'Enrollment Form'!O332=\"Waive\",'Enrollment Form'!O332=\"\"),\"-\",IF('Enrollment Form'!P332=\"\",\"N\",\"Y\")))","v":""},{"$f":"IF($B325=\"N\",\"\",IF(AND('Enrollment Form'!$C332=\"ROC\",'Enrollment Form'!$DS332<>\"\"),\"Y\",IF(AND('Enrollment Form'!$C332=\"ROC\",'Enrollment Form'!$DS332=\"\"),\"N\",IF(AND('Enrollment Form'!$C332=\"Enroll\",'Enrollment Form'!$B332=\"Subscriber\",'Enrollment Form'!$CQ332=\"No\",'Enrollment Form'!$DS332=\"\"),\"N\",IF(AND('Enrollment Form'!$C332=\"Enroll\",'Enrollment Form'!$B332=\"Subscriber\",'Enrollment Form'!$CQ332=\"Yes\"),\"-\",\"Y\")))))","v":""},{"$f":"IF($B325=\"N\",\"\",IF(AND('Enrollment Form'!$C332=\"ROC\",'Enrollment Form'!$DT332<>\"\"),\"Y\",IF(AND('Enrollment Form'!$C332=\"ROC\",'Enrollment Form'!$DT332=\"\"),\"N\",IF(AND('Enrollment Form'!$C332=\"Enroll\",'Enrollment Form'!$B332=\"Subscriber\",'Enrollment Form'!$CQ332=\"No\",'Enrollment Form'!$DT332=\"\"),\"N\",IF(AND('Enrollment Form'!$C332=\"Enroll\",'Enrollment Form'!$B332=\"Subscriber\",'Enrollment Form'!$CQ332=\"Yes\"),\"-\",\"Y\")))))","v":""},{"$f":"IF('Enrollment Form'!AH332=\"\",\"\",IF(ISERROR(SEARCH(\".\",'Enrollment Form'!AH332,SEARCH(\"@\",'Enrollment Form'!AH332))),\"N\",\"Y\"))","v":""},{"$f":"IF(OR($B325=\"N\",'Enrollment Form'!$G332=\"\"),\"\",IF('Enrollment Form'!$B332<>\"Subscriber\",\"-\",IF(COUNTIF('Enrollment Form'!$AS332:$AT332,\"Yes\")=2,\"N\",\"Y\")))","v":""},{"$f":"IF(OR('Enrollment Form'!$CC332=\"\",'Enrollment Form'!$CC332=\"No\"),\"-\",IF(AND('Enrollment Form'!$CC332=\"Yes\",'Enrollment Form'!$CD332=\"\"),\"N\",\"Y\"))","v":"-"},{"$f":"IF(OR('Enrollment Form'!$CE332=\"\",'Enrollment Form'!$CE332=\"No\"),\"-\",IF(AND('Enrollment Form'!$CE332=\"Yes\",'Enrollment Form'!$CF332=\"\"),\"N\",\"Y\"))","v":"-"},{"$f":"IF(OR('Enrollment Form'!$CG332=\"\",'Enrollment Form'!$CG332=\"No\"),\"-\",IF(AND('Enrollment Form'!$CG332=\"Yes\",'Enrollment Form'!$CH332=\"\"),\"N\",\"Y\"))","v":"-"},{"$f":"IF(OR('Enrollment Form'!$CG332=\"\",'Enrollment Form'!$CG332=\"No\"),\"-\",IF(AND('Enrollment Form'!$CG332=\"Yes\",'Enrollment Form'!$CI332=\"\"),\"N\",\"Y\"))","v":"-"},{"$f":"IF('Enrollment Form'!B332<>\"Subscriber\",\"-\",IF(AND('Enrollment Form'!B332=\"Subscriber\",'Enrollment Form'!C332=\"Enroll\",'Enrollment Form'!AA332=\"\"),\"N\",\"Y\"))","v":"-"},{"$f":"IF(OR('Enrollment Form'!B332=\"Subscriber\",'Enrollment Form'!B332=\"\"),\"-\",IF('Enrollment Form'!BI332=\"\",\"N\",\"Y\"))","v":"-"},{"$f":"IF('Enrollment Form'!B332<>\"Subscriber\",\"-\",IF(AND('Enrollment Form'!B332=\"Subscriber\",'Enrollment Form'!G332=\"\"),\"N\",\"Y\"))","v":"-"},{"$f":"IF('Enrollment Form'!A332=\"\",\"\",IF('Enrollment Form'!B332=\"Subscriber\",\"-\",IF(AND('Enrollment Form'!B332<>\"Subscriber\",'Enrollment Form'!G332='Enrollment Form'!H332),\"N\",\"Y\")))","v":""},0]
[{"$f":"1+A325","v":333},{"$f":"IF('Enrollment Form'!$A333<>\"\",\"Y\",\"N\")","v":"N"},{"$f":"IF(AND('Enrollment Form'!$B333=\"\",'Enrollment Form'!$C333<>\"\"),\"N\",IF($B326=\"N\",\"\",\"Y\"))","v":""},{"$f":"IF(OR($B326=\"N\",'Enrollment Form'!G333=\"\"),\"\",IF('Enrollment Form'!$B333<>\"Subscriber\",\"\",IF('Enrollment Form'!$G333='Enrollment Form'!$H333,\"Y\",\"N\")))","v":""},{"$f":"IF($B326=\"N\",\"\",IF(AND(COUNTIFS('Enrollment Form'!$H$11:$H$1000,'Enrollment Form'!$H333,'Enrollment Form'!$B$11:$B$1000,'Enrollment Form'!$B333)>1,'Enrollment Form'!$H333<>\"\"),\"N\",\"Y\"))","v":""},{"$f":"IF($B326=\"N\",\"\",IF(LEN('Enrollment Form'!$Y333)=0,\"\",IF(LEN('Enrollment Form'!$Y333)<>5,\"N\",\"Y\")))","v":""},{"$f":"IF($B326=\"N\",\"\",IF(LEN('Enrollment Form'!$AD333=0),\"\",IF(LEN('Enrollment Form'!$AD333)<>5,\"N\",\"Y\")))","v":""},{"$f":"IF($B326=\"N\",\"\",IF(LEN('Enrollment Form'!$BL333=0),\"\",IF(LEN('Enrollment Form'!$BL333)<>5,\"N\",\"Y\")))","v":""},{"$f":"IF($B326=\"N\",\"\",IF(LEN('Enrollment Form'!$AE333)=0,\"\",IF(LEN('Enrollment Form'!$AE333)<>10,\"N\",\"Y\")))","v":""},{"$f":"IF($B326=\"N\",\"\",IF(LEN('Enrollment Form'!$AF333)=0,\"\",IF(LEN('Enrollment Form'!$AF333)<>10,\"N\",\"Y\")))","v":""},{"$f":"IF('Enrollment Form'!$O333<>\"Graded\",\"-\",IF(AND('Enrollment Form'!$O333=\"Graded\",'Enrollment Form'!$AO333<>\"\"),\"Y\",\"N\"))","v":"-"},{"$f":"IF($B326=\"N\",\"\",IF(OR('Enrollment Form'!$B333<>\"Subscriber\",'Enrollment Form'!$C333=\"ROC\"),\"-\",IF(AND('Enrollment Form'!$B333=\"Subscriber\",'Enrollment Form'!$C333=\"Enroll\",'Enrollment Form'!$AJ333<>\"\"),\"Y\",\"N\")))","v":""},{"$f":"IF($B326=\"N\",\"\",IF(OR('Enrollment Form'!$B333<>\"Subscriber\",'Enrollment Form'!$C333=\"ROC\"),\"-\",IF(AND('Enrollment Form'!$B333=\"Subscriber\",'Enrollment Form'!$C333=\"Enroll\",'Enrollment Form'!$AK333<>\"\"),\"Y\",\"N\")))","v":""},{"$f":"IF($B326=\"N\",\"\",IF(OR('Enrollment Form'!$B333<>\"Subscriber\",'Enrollment Form'!$C333=\"ROC\"),\"-\",IF(AND('Enrollment Form'!$B333=\"Subscriber\",'Enrollment Form'!$C333=\"Enroll\",'Enrollment Form'!$AL333<>\"\"),\"Y\",\"N\")))","v":""},{"$f":"IF($B326=\"N\",\"\",IF(OR('Enrollment Form'!$B333<>\"Subscriber\",'Enrollment Form'!$C333=\"ROC\"),\"-\",IF(AND('Enrollment Form'!$B333=\"Subscriber\",'Enrollment Form'!$C333=\"Enroll\",'Enrollment Form'!$AM333<>\"\"),\"Y\",\"N\")))","v":""},{"$f":"IF($B326=\"N\",\"\",IF(OR('Enrollment Form'!$B333<>\"Subscriber\",'Enrollment Form'!$C333=\"ROC\"),\"-\",IF(AND('Enrollment Form'!$B333=\"Subscriber\",'Enrollment Form'!$C333=\"Enroll\",'Enrollment Form'!$AN333<>\"\"),\"Y\",\"N\")))","v":""},{"$f":"IF($B326=\"N\",\"\",IF(OR('Enrollment Form'!$B333<>\"Subscriber\",'Enrollment Form'!$C333=\"ROC\"),\"-\",IF(AND('Enrollment Form'!$B333=\"Subscriber\",'Enrollment Form'!$C333=\"Enroll\",'Enrollment Form'!$AP333<>\"\"),\"Y\",\"N\")))","v":""},{"$f":"IF($B326=\"N\",\"\",IF($Q326=\"-\",\"-\",IF(AND($Q326=\"Y\",'Enrollment Form'!$AP333=\"No\"),\"-\",IF(AND($Q326=\"Y\",'Enrollment Form'!$AP333=\"Yes\",'Enrollment Form'!$AQ333<>\"\"),\"Y\",\"N\"))))","v":""},{"$f":"IF($B326=\"N\",\"\",IF(OR('Enrollment Form'!$B333<>\"Subscriber\",'Enrollment Form'!$C333=\"ROC\"),\"-\",IF(AND('Enrollment Form'!$B333=\"Subscriber\",'Enrollment Form'!$C333=\"Enroll\",'Enrollment Form'!$CO333<>\"\"),\"Y\",\"N\")))","v":""},{"$f":"IF($B326=\"N\",\"\",IF($S326=\"-\",\"-\",IF(AND($S326=\"Y\",'Enrollment Form'!$CO333=\"No\"),\"-\",IF(AND($S326=\"Y\",'Enrollment Form'!$CO333=\"Yes\",'Enrollment Form'!$CP333<>\"\"),\"Y\",\"N\"))))","v":""},{"$f":"IF(OR('Enrollment Form'!$AV333=\"Yes\",'Enrollment Form'!$AV333=\"\"),\"-\",IF(AND('Enrollment Form'!$AV333=\"No\",ISERROR(FIND(\"HMO\",VLOOKUP('Enrollment Form'!G333,'Enrollment Form'!H$11:J$1000,3,FALSE),1))=FALSE,COUNTA('Enrollment Form'!$AW333:$AZ333)=4),\"Y\",\"N\"))","v":"-"},{"$f":"IF($B326=\"N\",\"\",IF('Enrollment Form'!$B333=\"Subscriber\",\"-\",IF(COUNTA('Enrollment Form'!$BE333,'Enrollment Form'!$BG333)=2,\"Y\",\"N\")))","v":""},{"$f":"IF($B326=\"N\",\"\",IF(OR('Enrollment Form'!$AU333=\"\",'Enrollment Form'!$AU333=\"No\"),\"-\",IF(AND('Enrollment Form'!$AU333=\"Yes\",COUNTA('Enrollment Form'!$CK333)=1),\"Y\",\"N\")))","v":""},{"$f":"IF(OR('Enrollment Form'!$CK333=\"\",'Enrollment Form'!$CK333=\"No\"),\"-\",IF(COUNTA('Enrollment Form'!$CM333:$CN333)=2,\"Y\",\"N\"))","v":"-"},{"$f":"IF($B326=\"N\",\"\",IF(COUNTIF('Enrollment Form'!$CZ333:$DO333,\"Other\")=COUNTA('Enrollment Form'!$DF333,'Enrollment Form'!$DA333,'Enrollment Form'!$DK333,'Enrollment Form'!$DP333),\"Y\",\"N\"))","v":""},{"$f":"IF($B326=\"N\",\"\",IF(OR('Enrollment Form'!B333<>\"Subscriber\",'Enrollment Form'!C333=\"ROC\",COUNTIF('Enrollment Form'!AS333:AT333,\"Yes\")>=1),\"-\",IF(AND('Enrollment Form'!C333=\"Enroll\",COUNTIF('Enrollment Form'!AS333:AT333,\"No\")=2,'Enrollment Form'!AU333=\"\"),\"N\",\"Y\")))","v":""},{"$f":"IF(OR(B326=\"N\",'Enrollment Form'!B333<>\"Subscriber\",'Enrollment Form'!C333=\"ROC\",'Enrollment Form'!O333<>\"Multiple of Salary\"),\"-\",IF(COUNTA('Enrollment Form'!T333:U333)<2,\"N\",\"Y\"))","v":"-"},{"$f":"IF(B326=\"N\",\"\",IF(OR('Enrollment Form'!C333=\"ROC\",'Enrollment Form'!B333<>\"Subscriber\",'Enrollment Form'!O333=\"Waive\",'Enrollment Form'!O333=\"\"),\"-\",IF('Enrollment Form'!P333=\"\",\"N\",\"Y\")))","v":""},{"$f":"IF($B326=\"N\",\"\",IF(AND('Enrollment Form'!$C333=\"ROC\",'Enrollment Form'!$DS333<>\"\"),\"Y\",IF(AND('Enrollment Form'!$C333=\"ROC\",'Enrollment Form'!$DS333=\"\"),\"N\",IF(AND('Enrollment Form'!$C333=\"Enroll\",'Enrollment Form'!$B333=\"Subscriber\",'Enrollment Form'!$CQ333=\"No\",'Enrollment Form'!$DS333=\"\"),\"N\",IF(AND('Enrollment Form'!$C333=\"Enroll\",'Enrollment Form'!$B333=\"Subscriber\",'Enrollment Form'!$CQ333=\"Yes\"),\"-\",\"Y\")))))","v":""},{"$f":"IF($B326=\"N\",\"\",IF(AND('Enrollment Form'!$C333=\"ROC\",'Enrollment Form'!$DT333<>\"\"),\"Y\",IF(AND('Enrollment Form'!$C333=\"ROC\",'Enrollment Form'!$DT333=\"\"),\"N\",IF(AND('Enrollment Form'!$C333=\"Enroll\",'Enrollment Form'!$B333=\"Subscriber\",'Enrollment Form'!$CQ333=\"No\",'Enrollment Form'!$DT333=\"\"),\"N\",IF(AND('Enrollment Form'!$C333=\"Enroll\",'Enrollment Form'!$B333=\"Subscriber\",'Enrollment Form'!$CQ333=\"Yes\"),\"-\",\"Y\")))))","v":""},{"$f":"IF('Enrollment Form'!AH333=\"\",\"\",IF(ISERROR(SEARCH(\".\",'Enrollment Form'!AH333,SEARCH(\"@\",'Enrollment Form'!AH333))),\"N\",\"Y\"))","v":""},{"$f":"IF(OR($B326=\"N\",'Enrollment Form'!$G333=\"\"),\"\",IF('Enrollment Form'!$B333<>\"Subscriber\",\"-\",IF(COUNTIF('Enrollment Form'!$AS333:$AT333,\"Yes\")=2,\"N\",\"Y\")))","v":""},{"$f":"IF(OR('Enrollment Form'!$CC333=\"\",'Enrollment Form'!$CC333=\"No\"),\"-\",IF(AND('Enrollment Form'!$CC333=\"Yes\",'Enrollment Form'!$CD333=\"\"),\"N\",\"Y\"))","v":"-"},{"$f":"IF(OR('Enrollment Form'!$CE333=\"\",'Enrollment Form'!$CE333=\"No\"),\"-\",IF(AND('Enrollment Form'!$CE333=\"Yes\",'Enrollment Form'!$CF333=\"\"),\"N\",\"Y\"))","v":"-"},{"$f":"IF(OR('Enrollment Form'!$CG333=\"\",'Enrollment Form'!$CG333=\"No\"),\"-\",IF(AND('Enrollment Form'!$CG333=\"Yes\",'Enrollment Form'!$CH333=\"\"),\"N\",\"Y\"))","v":"-"},{"$f":"IF(OR('Enrollment Form'!$CG333=\"\",'Enrollment Form'!$CG333=\"No\"),\"-\",IF(AND('Enrollment Form'!$CG333=\"Yes\",'Enrollment Form'!$CI333=\"\"),\"N\",\"Y\"))","v":"-"},{"$f":"IF('Enrollment Form'!B333<>\"Subscriber\",\"-\",IF(AND('Enrollment Form'!B333=\"Subscriber\",'Enrollment Form'!C333=\"Enroll\",'Enrollment Form'!AA333=\"\"),\"N\",\"Y\"))","v":"-"},{"$f":"IF(OR('Enrollment Form'!B333=\"Subscriber\",'Enrollment Form'!B333=\"\"),\"-\",IF('Enrollment Form'!BI333=\"\",\"N\",\"Y\"))","v":"-"},{"$f":"IF('Enrollment Form'!B333<>\"Subscriber\",\"-\",IF(AND('Enrollment Form'!B333=\"Subscriber\",'Enrollment Form'!G333=\"\"),\"N\",\"Y\"))","v":"-"},{"$f":"IF('Enrollment Form'!A333=\"\",\"\",IF('Enrollment Form'!B333=\"Subscriber\",\"-\",IF(AND('Enrollment Form'!B333<>\"Subscriber\",'Enrollment Form'!G333='Enrollment Form'!H333),\"N\",\"Y\")))","v":""},0]
[334,{"$f":"IF('Enrollment Form'!$A334<>\"\",\"Y\",\"N\")","v":"N"},{"$f":"IF(AND('Enrollment Form'!$B334=\"\",'Enrollment Form'!$C334<>\"\"),\"N\",IF($B327=\"N\",\"\",\"Y\"))","v":""},{"$f":"IF(OR($B327=\"N\",'Enrollment Form'!G334=\"\"),\"\",IF('Enrollment Form'!$B334<>\"Subscriber\",\"\",IF('Enrollment Form'!$G334='Enrollment Form'!$H334,\"Y\",\"N\")))","v":""},{"$f":"IF($B327=\"N\",\"\",IF(AND(COUNTIFS('Enrollment Form'!$H$11:$H$1000,'Enrollment Form'!$H334,'Enrollment Form'!$B$11:$B$1000,'Enrollment Form'!$B334)>1,'Enrollment Form'!$H334<>\"\"),\"N\",\"Y\"))","v":""},{"$f":"IF($B327=\"N\",\"\",IF(LEN('Enrollment Form'!$Y334)=0,\"\",IF(LEN('Enrollment Form'!$Y334)<>5,\"N\",\"Y\")))","v":""},{"$f":"IF($B327=\"N\",\"\",IF(LEN('Enrollment Form'!$AD334=0),\"\",IF(LEN('Enrollment Form'!$AD334)<>5,\"N\",\"Y\")))","v":""},{"$f":"IF($B327=\"N\",\"\",IF(LEN('Enrollment Form'!$BL334=0),\"\",IF(LEN('Enrollment Form'!$BL334)<>5,\"N\",\"Y\")))","v":""},{"$f":"IF($B327=\"N\",\"\",IF(LEN('Enrollment Form'!$AE334)=0,\"\",IF(LEN('Enrollment Form'!$AE334)<>10,\"N\",\"Y\")))","v":""},{"$f":"IF($B327=\"N\",\"\",IF(LEN('Enrollment Form'!$AF334)=0,\"\",IF(LEN('Enrollment Form'!$AF334)<>10,\"N\",\"Y\")))","v":""},{"$f":"IF('Enrollment Form'!$O334<>\"Graded\",\"-\",IF(AND('Enrollment Form'!$O334=\"Graded\",'Enrollment Form'!$AO334<>\"\"),\"Y\",\"N\"))","v":"-"},{"$f":"IF($B327=\"N\",\"\",IF(OR('Enrollment Form'!$B334<>\"Subscriber\",'Enrollment Form'!$C334=\"ROC\"),\"-\",IF(AND('Enrollment Form'!$B334=\"Subscriber\",'Enrollment Form'!$C334=\"Enroll\",'Enrollment Form'!$AJ334<>\"\"),\"Y\",\"N\")))","v":""},{"$f":"IF($B327=\"N\",\"\",IF(OR('Enrollment Form'!$B334<>\"Subscriber\",'Enrollment Form'!$C334=\"ROC\"),\"-\",IF(AND('Enrollment Form'!$B334=\"Subscriber\",'Enrollment Form'!$C334=\"Enroll\",'Enrollment Form'!$AK334<>\"\"),\"Y\",\"N\")))","v":""},{"$f":"IF($B327=\"N\",\"\",IF(OR('Enrollment Form'!$B334<>\"Subscriber\",'Enrollment Form'!$C334=\"ROC\"),\"-\",IF(AND('Enrollment Form'!$B334=\"Subscriber\",'Enrollment Form'!$C334=\"Enroll\",'Enrollment Form'!$AL334<>\"\"),\"Y\",\"N\")))","v":""},{"$f":"IF($B327=\"N\",\"\",IF(OR('Enrollment Form'!$B334<>\"Subscriber\",'Enrollment Form'!$C334=\"ROC\"),\"-\",IF(AND('Enrollment Form'!$B334=\"Subscriber\",'Enrollment Form'!$C334=\"Enroll\",'Enrollment Form'!$AM334<>\"\"),\"Y\",\"N\")))","v":""},{"$f":"IF($B327=\"N\",\"\",IF(OR('Enrollment Form'!$B334<>\"Subscriber\",'Enrollment Form'!$C334=\"ROC\"),\"-\",IF(AND('Enrollment Form'!$B334=\"Subscriber\",'Enrollment Form'!$C334=\"Enroll\",'Enrollment Form'!$AN334<>\"\"),\"Y\",\"N\")))","v":""},{"$f":"IF($B327=\"N\",\"\",IF(OR('Enrollment Form'!$B334<>\"Subscriber\",'Enrollment Form'!$C334=\"ROC\"),\"-\",IF(AND('Enrollment Form'!$B334=\"Subscriber\",'Enrollment Form'!$C334=\"Enroll\",'Enrollment Form'!$AP334<>\"\"),\"Y\",\"N\")))","v":""},{"$f":"IF($B327=\"N\",\"\",IF($Q327=\"-\",\"-\",IF(AND($Q327=\"Y\",'Enrollment Form'!$AP334=\"No\"),\"-\",IF(AND($Q327=\"Y\",'Enrollment Form'!$AP334=\"Yes\",'Enrollment Form'!$AQ334<>\"\"),\"Y\",\"N\"))))","v":""},{"$f":"IF($B327=\"N\",\"\",IF(OR('Enrollment Form'!$B334<>\"Subscriber\",'Enrollment Form'!$C334=\"ROC\"),\"-\",IF(AND('Enrollment Form'!$B334=\"Subscriber\",'Enrollment Form'!$C334=\"Enroll\",'Enrollment Form'!$CO334<>\"\"),\"Y\",\"N\")))","v":""},{"$f":"IF($B327=\"N\",\"\",IF($S327=\"-\",\"-\",IF(AND($S327=\"Y\",'Enrollment Form'!$CO334=\"No\"),\"-\",IF(AND($S327=\"Y\",'Enrollment Form'!$CO334=\"Yes\",'Enrollment Form'!$CP334<>\"\"),\"Y\",\"N\"))))","v":""},{"$f":"IF(OR('Enrollment Form'!$AV334=\"Yes\",'Enrollment Form'!$AV334=\"\"),\"-\",IF(AND('Enrollment Form'!$AV334=\"No\",ISERROR(FIND(\"HMO\",VLOOKUP('Enrollment Form'!G334,'Enrollment Form'!H$11:J$1000,3,FALSE),1))=FALSE,COUNTA('Enrollment Form'!$AW334:$AZ334)=4),\"Y\",\"N\"))","v":"-"},{"$f":"IF($B327=\"N\",\"\",IF('Enrollment Form'!$B334=\"Subscriber\",\"-\",IF(COUNTA('Enrollment Form'!$BE334,'Enrollment Form'!$BG334)=2,\"Y\",\"N\")))","v":""},{"$f":"IF($B327=\"N\",\"\",IF(OR('Enrollment Form'!$AU334=\"\",'Enrollment Form'!$AU334=\"No\"),\"-\",IF(AND('Enrollment Form'!$AU334=\"Yes\",COUNTA('Enrollment Form'!$CK334)=1),\"Y\",\"N\")))","v":""},{"$f":"IF(OR('Enrollment Form'!$CK334=\"\",'Enrollment Form'!$CK334=\"No\"),\"-\",IF(COUNTA('Enrollment Form'!$CM334:$CN334)=2,\"Y\",\"N\"))","v":"-"},{"$f":"IF($B327=\"N\",\"\",IF(COUNTIF('Enrollment Form'!$CZ334:$DO334,\"Other\")=COUNTA('Enrollment Form'!$DF334,'Enrollment Form'!$DA334,'Enrollment Form'!$DK334,'Enrollment Form'!$DP334),\"Y\",\"N\"))","v":""},{"$f":"IF($B327=\"N\",\"\",IF(OR('Enrollment Form'!B334<>\"Subscriber\",'Enrollment Form'!C334=\"ROC\",COUNTIF('Enrollment Form'!AS334:AT334,\"Yes\")>=1),\"-\",IF(AND('Enrollment Form'!C334=\"Enroll\",COUNTIF('Enrollment Form'!AS334:AT334,\"No\")=2,'Enrollment Form'!AU334=\"\"),\"N\",\"Y\")))","v":""},{"$f":"IF(OR(B327=\"N\",'Enrollment Form'!B334<>\"Subscriber\",'Enrollment Form'!C334=\"ROC\",'Enrollment Form'!O334<>\"Multiple of Salary\"),\"-\",IF(COUNTA('Enrollment Form'!T334:U334)<2,\"N\",\"Y\"))","v":"-"},{"$f":"IF(B327=\"N\",\"\",IF(OR('Enrollment Form'!C334=\"ROC\",'Enrollment Form'!B334<>\"Subscriber\",'Enrollment Form'!O334=\"Waive\",'Enrollment Form'!O334=\"\"),\"-\",IF('Enrollment Form'!P334=\"\",\"N\",\"Y\")))","v":""},{"$f":"IF($B327=\"N\",\"\",IF(AND('Enrollment Form'!$C334=\"ROC\",'Enrollment Form'!$DS334<>\"\"),\"Y\",IF(AND('Enrollment Form'!$C334=\"ROC\",'Enrollment Form'!$DS334=\"\"),\"N\",IF(AND('Enrollment Form'!$C334=\"Enroll\",'Enrollment Form'!$B334=\"Subscriber\",'Enrollment Form'!$CQ334=\"No\",'Enrollment Form'!$DS334=\"\"),\"N\",IF(AND('Enrollment Form'!$C334=\"Enroll\",'Enrollment Form'!$B334=\"Subscriber\",'Enrollment Form'!$CQ334=\"Yes\"),\"-\",\"Y\")))))","v":""},{"$f":"IF($B327=\"N\",\"\",IF(AND('Enrollment Form'!$C334=\"ROC\",'Enrollment Form'!$DT334<>\"\"),\"Y\",IF(AND('Enrollment Form'!$C334=\"ROC\",'Enrollment Form'!$DT334=\"\"),\"N\",IF(AND('Enrollment Form'!$C334=\"Enroll\",'Enrollment Form'!$B334=\"Subscriber\",'Enrollment Form'!$CQ334=\"No\",'Enrollment Form'!$DT334=\"\"),\"N\",IF(AND('Enrollment Form'!$C334=\"Enroll\",'Enrollment Form'!$B334=\"Subscriber\",'Enrollment Form'!$CQ334=\"Yes\"),\"-\",\"Y\")))))","v":""},{"$f":"IF('Enrollment Form'!AH334=\"\",\"\",IF(ISERROR(SEARCH(\".\",'Enrollment Form'!AH334,SEARCH(\"@\",'Enrollment Form'!AH334))),\"N\",\"Y\"))","v":""},{"$f":"IF(OR($B327=\"N\",'Enrollment Form'!$G334=\"\"),\"\",IF('Enrollment Form'!$B334<>\"Subscriber\",\"-\",IF(COUNTIF('Enrollment Form'!$AS334:$AT334,\"Yes\")=2,\"N\",\"Y\")))","v":""},{"$f":"IF(OR('Enrollment Form'!$CC334=\"\",'Enrollment Form'!$CC334=\"No\"),\"-\",IF(AND('Enrollment Form'!$CC334=\"Yes\",'Enrollment Form'!$CD334=\"\"),\"N\",\"Y\"))","v":"-"},{"$f":"IF(OR('Enrollment Form'!$CE334=\"\",'Enrollment Form'!$CE334=\"No\"),\"-\",IF(AND('Enrollment Form'!$CE334=\"Yes\",'Enrollment Form'!$CF334=\"\"),\"N\",\"Y\"))","v":"-"},{"$f":"IF(OR('Enrollment Form'!$CG334=\"\",'Enrollment Form'!$CG334=\"No\"),\"-\",IF(AND('Enrollment Form'!$CG334=\"Yes\",'Enrollment Form'!$CH334=\"\"),\"N\",\"Y\"))","v":"-"},{"$f":"IF(OR('Enrollment Form'!$CG334=\"\",'Enrollment Form'!$CG334=\"No\"),\"-\",IF(AND('Enrollment Form'!$CG334=\"Yes\",'Enrollment Form'!$CI334=\"\"),\"N\",\"Y\"))","v":"-"},{"$f":"IF('Enrollment Form'!B334<>\"Subscriber\",\"-\",IF(AND('Enrollment Form'!B334=\"Subscriber\",'Enrollment Form'!C334=\"Enroll\",'Enrollment Form'!AA334=\"\"),\"N\",\"Y\"))","v":"-"},{"$f":"IF(OR('Enrollment Form'!B334=\"Subscriber\",'Enrollment Form'!B334=\"\"),\"-\",IF('Enrollment Form'!BI334=\"\",\"N\",\"Y\"))","v":"-"},{"$f":"IF('Enrollment Form'!B334<>\"Subscriber\",\"-\",IF(AND('Enrollment Form'!B334=\"Subscriber\",'Enrollment Form'!G334=\"\"),\"N\",\"Y\"))","v":"-"},{"$f":"IF('Enrollment Form'!A334=\"\",\"\",IF('Enrollment Form'!B334=\"Subscriber\",\"-\",IF(AND('Enrollment Form'!B334<>\"Subscriber\",'Enrollment Form'!G334='Enrollment Form'!H334),\"N\",\"Y\")))","v":""},0]
[335,{"$f":"IF('Enrollment Form'!$A335<>\"\",\"Y\",\"N\")","v":"N"},{"$f":"IF(AND('Enrollment Form'!$B335=\"\",'Enrollment Form'!$C335<>\"\"),\"N\",IF($B328=\"N\",\"\",\"Y\"))","v":""},{"$f":"IF(OR($B328=\"N\",'Enrollment Form'!G335=\"\"),\"\",IF('Enrollment Form'!$B335<>\"Subscriber\",\"\",IF('Enrollment Form'!$G335='Enrollment Form'!$H335,\"Y\",\"N\")))","v":""},{"$f":"IF($B328=\"N\",\"\",IF(AND(COUNTIFS('Enrollment Form'!$H$11:$H$1000,'Enrollment Form'!$H335,'Enrollment Form'!$B$11:$B$1000,'Enrollment Form'!$B335)>1,'Enrollment Form'!$H335<>\"\"),\"N\",\"Y\"))","v":""},{"$f":"IF($B328=\"N\",\"\",IF(LEN('Enrollment Form'!$Y335)=0,\"\",IF(LEN('Enrollment Form'!$Y335)<>5,\"N\",\"Y\")))","v":""},{"$f":"IF($B328=\"N\",\"\",IF(LEN('Enrollment Form'!$AD335=0),\"\",IF(LEN('Enrollment Form'!$AD335)<>5,\"N\",\"Y\")))","v":""},{"$f":"IF($B328=\"N\",\"\",IF(LEN('Enrollment Form'!$BL335=0),\"\",IF(LEN('Enrollment Form'!$BL335)<>5,\"N\",\"Y\")))","v":""},{"$f":"IF($B328=\"N\",\"\",IF(LEN('Enrollment Form'!$AE335)=0,\"\",IF(LEN('Enrollment Form'!$AE335)<>10,\"N\",\"Y\")))","v":""},{"$f":"IF($B328=\"N\",\"\",IF(LEN('Enrollment Form'!$AF335)=0,\"\",IF(LEN('Enrollment Form'!$AF335)<>10,\"N\",\"Y\")))","v":""},{"$f":"IF('Enrollment Form'!$O335<>\"Graded\",\"-\",IF(AND('Enrollment Form'!$O335=\"Graded\",'Enrollment Form'!$AO335<>\"\"),\"Y\",\"N\"))","v":"-"},{"$f":"IF($B328=\"N\",\"\",IF(OR('Enrollment Form'!$B335<>\"Subscriber\",'Enrollment Form'!$C335=\"ROC\"),\"-\",IF(AND('Enrollment Form'!$B335=\"Subscriber\",'Enrollment Form'!$C335=\"Enroll\",'Enrollment Form'!$AJ335<>\"\"),\"Y\",\"N\")))","v":""},{"$f":"IF($B328=\"N\",\"\",IF(OR('Enrollment Form'!$B335<>\"Subscriber\",'Enrollment Form'!$C335=\"ROC\"),\"-\",IF(AND('Enrollment Form'!$B335=\"Subscriber\",'Enrollment Form'!$C335=\"Enroll\",'Enrollment Form'!$AK335<>\"\"),\"Y\",\"N\")))","v":""},{"$f":"IF($B328=\"N\",\"\",IF(OR('Enrollment Form'!$B335<>\"Subscriber\",'Enrollment Form'!$C335=\"ROC\"),\"-\",IF(AND('Enrollment Form'!$B335=\"Subscriber\",'Enrollment Form'!$C335=\"Enroll\",'Enrollment Form'!$AL335<>\"\"),\"Y\",\"N\")))","v":""},{"$f":"IF($B328=\"N\",\"\",IF(OR('Enrollment Form'!$B335<>\"Subscriber\",'Enrollment Form'!$C335=\"ROC\"),\"-\",IF(AND('Enrollment Form'!$B335=\"Subscriber\",'Enrollment Form'!$C335=\"Enroll\",'Enrollment Form'!$AM335<>\"\"),\"Y\",\"N\")))","v":""},{"$f":"IF($B328=\"N\",\"\",IF(OR('Enrollment Form'!$B335<>\"Subscriber\",'Enrollment Form'!$C335=\"ROC\"),\"-\",IF(AND('Enrollment Form'!$B335=\"Subscriber\",'Enrollment Form'!$C335=\"Enroll\",'Enrollment Form'!$AN335<>\"\"),\"Y\",\"N\")))","v":""},{"$f":"IF($B328=\"N\",\"\",IF(OR('Enrollment Form'!$B335<>\"Subscriber\",'Enrollment Form'!$C335=\"ROC\"),\"-\",IF(AND('Enrollment Form'!$B335=\"Subscriber\",'Enrollment Form'!$C335=\"Enroll\",'Enrollment Form'!$AP335<>\"\"),\"Y\",\"N\")))","v":""},{"$f":"IF($B328=\"N\",\"\",IF($Q328=\"-\",\"-\",IF(AND($Q328=\"Y\",'Enrollment Form'!$AP335=\"No\"),\"-\",IF(AND($Q328=\"Y\",'Enrollment Form'!$AP335=\"Yes\",'Enrollment Form'!$AQ335<>\"\"),\"Y\",\"N\"))))","v":""},{"$f":"IF($B328=\"N\",\"\",IF(OR('Enrollment Form'!$B335<>\"Subscriber\",'Enrollment Form'!$C335=\"ROC\"),\"-\",IF(AND('Enrollment Form'!$B335=\"Subscriber\",'Enrollment Form'!$C335=\"Enroll\",'Enrollment Form'!$CO335<>\"\"),\"Y\",\"N\")))","v":""},{"$f":"IF($B328=\"N\",\"\",IF($S328=\"-\",\"-\",IF(AND($S328=\"Y\",'Enrollment Form'!$CO335=\"No\"),\"-\",IF(AND($S328=\"Y\",'Enrollment Form'!$CO335=\"Yes\",'Enrollment Form'!$CP335<>\"\"),\"Y\",\"N\"))))","v":""},{"$f":"IF(OR('Enrollment Form'!$AV335=\"Yes\",'Enrollment Form'!$AV335=\"\"),\"-\",IF(AND('Enrollment Form'!$AV335=\"No\",ISERROR(FIND(\"HMO\",VLOOKUP('Enrollment Form'!G335,'Enrollment Form'!H$11:J$1000,3,FALSE),1))=FALSE,COUNTA('Enrollment Form'!$AW335:$AZ335)=4),\"Y\",\"N\"))","v":"-"},{"$f":"IF($B328=\"N\",\"\",IF('Enrollment Form'!$B335=\"Subscriber\",\"-\",IF(COUNTA('Enrollment Form'!$BE335,'Enrollment Form'!$BG335)=2,\"Y\",\"N\")))","v":""},{"$f":"IF($B328=\"N\",\"\",IF(OR('Enrollment Form'!$AU335=\"\",'Enrollment Form'!$AU335=\"No\"),\"-\",IF(AND('Enrollment Form'!$AU335=\"Yes\",COUNTA('Enrollment Form'!$CK335)=1),\"Y\",\"N\")))","v":""},{"$f":"IF(OR('Enrollment Form'!$CK335=\"\",'Enrollment Form'!$CK335=\"No\"),\"-\",IF(COUNTA('Enrollment Form'!$CM335:$CN335)=2,\"Y\",\"N\"))","v":"-"},{"$f":"IF($B328=\"N\",\"\",IF(COUNTIF('Enrollment Form'!$CZ335:$DO335,\"Other\")=COUNTA('Enrollment Form'!$DF335,'Enrollment Form'!$DA335,'Enrollment Form'!$DK335,'Enrollment Form'!$DP335),\"Y\",\"N\"))","v":""},{"$f":"IF($B328=\"N\",\"\",IF(OR('Enrollment Form'!B335<>\"Subscriber\",'Enrollment Form'!C335=\"ROC\",COUNTIF('Enrollment Form'!AS335:AT335,\"Yes\")>=1),\"-\",IF(AND('Enrollment Form'!C335=\"Enroll\",COUNTIF('Enrollment Form'!AS335:AT335,\"No\")=2,'Enrollment Form'!AU335=\"\"),\"N\",\"Y\")))","v":""},{"$f":"IF(OR(B328=\"N\",'Enrollment Form'!B335<>\"Subscriber\",'Enrollment Form'!C335=\"ROC\",'Enrollment Form'!O335<>\"Multiple of Salary\"),\"-\",IF(COUNTA('Enrollment Form'!T335:U335)<2,\"N\",\"Y\"))","v":"-"},{"$f":"IF(B328=\"N\",\"\",IF(OR('Enrollment Form'!C335=\"ROC\",'Enrollment Form'!B335<>\"Subscriber\",'Enrollment Form'!O335=\"Waive\",'Enrollment Form'!O335=\"\"),\"-\",IF('Enrollment Form'!P335=\"\",\"N\",\"Y\")))","v":""},{"$f":"IF($B328=\"N\",\"\",IF(AND('Enrollment Form'!$C335=\"ROC\",'Enrollment Form'!$DS335<>\"\"),\"Y\",IF(AND('Enrollment Form'!$C335=\"ROC\",'Enrollment Form'!$DS335=\"\"),\"N\",IF(AND('Enrollment Form'!$C335=\"Enroll\",'Enrollment Form'!$B335=\"Subscriber\",'Enrollment Form'!$CQ335=\"No\",'Enrollment Form'!$DS335=\"\"),\"N\",IF(AND('Enrollment Form'!$C335=\"Enroll\",'Enrollment Form'!$B335=\"Subscriber\",'Enrollment Form'!$CQ335=\"Yes\"),\"-\",\"Y\")))))","v":""},{"$f":"IF($B328=\"N\",\"\",IF(AND('Enrollment Form'!$C335=\"ROC\",'Enrollment Form'!$DT335<>\"\"),\"Y\",IF(AND('Enrollment Form'!$C335=\"ROC\",'Enrollment Form'!$DT335=\"\"),\"N\",IF(AND('Enrollment Form'!$C335=\"Enroll\",'Enrollment Form'!$B335=\"Subscriber\",'Enrollment Form'!$CQ335=\"No\",'Enrollment Form'!$DT335=\"\"),\"N\",IF(AND('Enrollment Form'!$C335=\"Enroll\",'Enrollment Form'!$B335=\"Subscriber\",'Enrollment Form'!$CQ335=\"Yes\"),\"-\",\"Y\")))))","v":""},{"$f":"IF('Enrollment Form'!AH335=\"\",\"\",IF(ISERROR(SEARCH(\".\",'Enrollment Form'!AH335,SEARCH(\"@\",'Enrollment Form'!AH335))),\"N\",\"Y\"))","v":""},{"$f":"IF(OR($B328=\"N\",'Enrollment Form'!$G335=\"\"),\"\",IF('Enrollment Form'!$B335<>\"Subscriber\",\"-\",IF(COUNTIF('Enrollment Form'!$AS335:$AT335,\"Yes\")=2,\"N\",\"Y\")))","v":""},{"$f":"IF(OR('Enrollment Form'!$CC335=\"\",'Enrollment Form'!$CC335=\"No\"),\"-\",IF(AND('Enrollment Form'!$CC335=\"Yes\",'Enrollment Form'!$CD335=\"\"),\"N\",\"Y\"))","v":"-"},{"$f":"IF(OR('Enrollment Form'!$CE335=\"\",'Enrollment Form'!$CE335=\"No\"),\"-\",IF(AND('Enrollment Form'!$CE335=\"Yes\",'Enrollment Form'!$CF335=\"\"),\"N\",\"Y\"))","v":"-"},{"$f":"IF(OR('Enrollment Form'!$CG335=\"\",'Enrollment Form'!$CG335=\"No\"),\"-\",IF(AND('Enrollment Form'!$CG335=\"Yes\",'Enrollment Form'!$CH335=\"\"),\"N\",\"Y\"))","v":"-"},{"$f":"IF(OR('Enrollment Form'!$CG335=\"\",'Enrollment Form'!$CG335=\"No\"),\"-\",IF(AND('Enrollment Form'!$CG335=\"Yes\",'Enrollment Form'!$CI335=\"\"),\"N\",\"Y\"))","v":"-"},{"$f":"IF('Enrollment Form'!B335<>\"Subscriber\",\"-\",IF(AND('Enrollment Form'!B335=\"Subscriber\",'Enrollment Form'!C335=\"Enroll\",'Enrollment Form'!AA335=\"\"),\"N\",\"Y\"))","v":"-"},{"$f":"IF(OR('Enrollment Form'!B335=\"Subscriber\",'Enrollment Form'!B335=\"\"),\"-\",IF('Enrollment Form'!BI335=\"\",\"N\",\"Y\"))","v":"-"},{"$f":"IF('Enrollment Form'!B335<>\"Subscriber\",\"-\",IF(AND('Enrollment Form'!B335=\"Subscriber\",'Enrollment Form'!G335=\"\"),\"N\",\"Y\"))","v":"-"},{"$f":"IF('Enrollment Form'!A335=\"\",\"\",IF('Enrollment Form'!B335=\"Subscriber\",\"-\",IF(AND('Enrollment Form'!B335<>\"Subscriber\",'Enrollment Form'!G335='Enrollment Form'!H335),\"N\",\"Y\")))","v":""},0]
[336,{"$f":"IF('Enrollment Form'!$A336<>\"\",\"Y\",\"N\")","v":"N"},{"$f":"IF(AND('Enrollment Form'!$B336=\"\",'Enrollment Form'!$C336<>\"\"),\"N\",IF($B329=\"N\",\"\",\"Y\"))","v":""},{"$f":"IF(OR($B329=\"N\",'Enrollment Form'!G336=\"\"),\"\",IF('Enrollment Form'!$B336<>\"Subscriber\",\"\",IF('Enrollment Form'!$G336='Enrollment Form'!$H336,\"Y\",\"N\")))","v":""},{"$f":"IF($B329=\"N\",\"\",IF(AND(COUNTIFS('Enrollment Form'!$H$11:$H$1000,'Enrollment Form'!$H336,'Enrollment Form'!$B$11:$B$1000,'Enrollment Form'!$B336)>1,'Enrollment Form'!$H336<>\"\"),\"N\",\"Y\"))","v":""},{"$f":"IF($B329=\"N\",\"\",IF(LEN('Enrollment Form'!$Y336)=0,\"\",IF(LEN('Enrollment Form'!$Y336)<>5,\"N\",\"Y\")))","v":""},{"$f":"IF($B329=\"N\",\"\",IF(LEN('Enrollment Form'!$AD336=0),\"\",IF(LEN('Enrollment Form'!$AD336)<>5,\"N\",\"Y\")))","v":""},{"$f":"IF($B329=\"N\",\"\",IF(LEN('Enrollment Form'!$BL336=0),\"\",IF(LEN('Enrollment Form'!$BL336)<>5,\"N\",\"Y\")))","v":""},{"$f":"IF($B329=\"N\",\"\",IF(LEN('Enrollment Form'!$AE336)=0,\"\",IF(LEN('Enrollment Form'!$AE336)<>10,\"N\",\"Y\")))","v":""},{"$f":"IF($B329=\"N\",\"\",IF(LEN('Enrollment Form'!$AF336)=0,\"\",IF(LEN('Enrollment Form'!$AF336)<>10,\"N\",\"Y\")))","v":""},{"$f":"IF('Enrollment Form'!$O336<>\"Graded\",\"-\",IF(AND('Enrollment Form'!$O336=\"Graded\",'Enrollment Form'!$AO336<>\"\"),\"Y\",\"N\"))","v":"-"},{"$f":"IF($B329=\"N\",\"\",IF(OR('Enrollment Form'!$B336<>\"Subscriber\",'Enrollment Form'!$C336=\"ROC\"),\"-\",IF(AND('Enrollment Form'!$B336=\"Subscriber\",'Enrollment Form'!$C336=\"Enroll\",'Enrollment Form'!$AJ336<>\"\"),\"Y\",\"N\")))","v":""},{"$f":"IF($B329=\"N\",\"\",IF(OR('Enrollment Form'!$B336<>\"Subscriber\",'Enrollment Form'!$C336=\"ROC\"),\"-\",IF(AND('Enrollment Form'!$B336=\"Subscriber\",'Enrollment Form'!$C336=\"Enroll\",'Enrollment Form'!$AK336<>\"\"),\"Y\",\"N\")))","v":""},{"$f":"IF($B329=\"N\",\"\",IF(OR('Enrollment Form'!$B336<>\"Subscriber\",'Enrollment Form'!$C336=\"ROC\"),\"-\",IF(AND('Enrollment Form'!$B336=\"Subscriber\",'Enrollment Form'!$C336=\"Enroll\",'Enrollment Form'!$AL336<>\"\"),\"Y\",\"N\")))","v":""},{"$f":"IF($B329=\"N\",\"\",IF(OR('Enrollment Form'!$B336<>\"Subscriber\",'Enrollment Form'!$C336=\"ROC\"),\"-\",IF(AND('Enrollment Form'!$B336=\"Subscriber\",'Enrollment Form'!$C336=\"Enroll\",'Enrollment Form'!$AM336<>\"\"),\"Y\",\"N\")))","v":""},{"$f":"IF($B329=\"N\",\"\",IF(OR('Enrollment Form'!$B336<>\"Subscriber\",'Enrollment Form'!$C336=\"ROC\"),\"-\",IF(AND('Enrollment Form'!$B336=\"Subscriber\",'Enrollment Form'!$C336=\"Enroll\",'Enrollment Form'!$AN336<>\"\"),\"Y\",\"N\")))","v":""},{"$f":"IF($B329=\"N\",\"\",IF(OR('Enrollment Form'!$B336<>\"Subscriber\",'Enrollment Form'!$C336=\"ROC\"),\"-\",IF(AND('Enrollment Form'!$B336=\"Subscriber\",'Enrollment Form'!$C336=\"Enroll\",'Enrollment Form'!$AP336<>\"\"),\"Y\",\"N\")))","v":""},{"$f":"IF($B329=\"N\",\"\",IF($Q329=\"-\",\"-\",IF(AND($Q329=\"Y\",'Enrollment Form'!$AP336=\"No\"),\"-\",IF(AND($Q329=\"Y\",'Enrollment Form'!$AP336=\"Yes\",'Enrollment Form'!$AQ336<>\"\"),\"Y\",\"N\"))))","v":""},{"$f":"IF($B329=\"N\",\"\",IF(OR('Enrollment Form'!$B336<>\"Subscriber\",'Enrollment Form'!$C336=\"ROC\"),\"-\",IF(AND('Enrollment Form'!$B336=\"Subscriber\",'Enrollment Form'!$C336=\"Enroll\",'Enrollment Form'!$CO336<>\"\"),\"Y\",\"N\")))","v":""},{"$f":"IF($B329=\"N\",\"\",IF($S329=\"-\",\"-\",IF(AND($S329=\"Y\",'Enrollment Form'!$CO336=\"No\"),\"-\",IF(AND($S329=\"Y\",'Enrollment Form'!$CO336=\"Yes\",'Enrollment Form'!$CP336<>\"\"),\"Y\",\"N\"))))","v":""},{"$f":"IF(OR('Enrollment Form'!$AV336=\"Yes\",'Enrollment Form'!$AV336=\"\"),\"-\",IF(AND('Enrollment Form'!$AV336=\"No\",ISERROR(FIND(\"HMO\",VLOOKUP('Enrollment Form'!G336,'Enrollment Form'!H$11:J$1000,3,FALSE),1))=FALSE,COUNTA('Enrollment Form'!$AW336:$AZ336)=4),\"Y\",\"N\"))","v":"-"},{"$f":"IF($B329=\"N\",\"\",IF('Enrollment Form'!$B336=\"Subscriber\",\"-\",IF(COUNTA('Enrollment Form'!$BE336,'Enrollment Form'!$BG336)=2,\"Y\",\"N\")))","v":""},{"$f":"IF($B329=\"N\",\"\",IF(OR('Enrollment Form'!$AU336=\"\",'Enrollment Form'!$AU336=\"No\"),\"-\",IF(AND('Enrollment Form'!$AU336=\"Yes\",COUNTA('Enrollment Form'!$CK336)=1),\"Y\",\"N\")))","v":""},{"$f":"IF(OR('Enrollment Form'!$CK336=\"\",'Enrollment Form'!$CK336=\"No\"),\"-\",IF(COUNTA('Enrollment Form'!$CM336:$CN336)=2,\"Y\",\"N\"))","v":"-"},{"$f":"IF($B329=\"N\",\"\",IF(COUNTIF('Enrollment Form'!$CZ336:$DO336,\"Other\")=COUNTA('Enrollment Form'!$DF336,'Enrollment Form'!$DA336,'Enrollment Form'!$DK336,'Enrollment Form'!$DP336),\"Y\",\"N\"))","v":""},{"$f":"IF($B329=\"N\",\"\",IF(OR('Enrollment Form'!B336<>\"Subscriber\",'Enrollment Form'!C336=\"ROC\",COUNTIF('Enrollment Form'!AS336:AT336,\"Yes\")>=1),\"-\",IF(AND('Enrollment Form'!C336=\"Enroll\",COUNTIF('Enrollment Form'!AS336:AT336,\"No\")=2,'Enrollment Form'!AU336=\"\"),\"N\",\"Y\")))","v":""},{"$f":"IF(OR(B329=\"N\",'Enrollment Form'!B336<>\"Subscriber\",'Enrollment Form'!C336=\"ROC\",'Enrollment Form'!O336<>\"Multiple of Salary\"),\"-\",IF(COUNTA('Enrollment Form'!T336:U336)<2,\"N\",\"Y\"))","v":"-"},{"$f":"IF(B329=\"N\",\"\",IF(OR('Enrollment Form'!C336=\"ROC\",'Enrollment Form'!B336<>\"Subscriber\",'Enrollment Form'!O336=\"Waive\",'Enrollment Form'!O336=\"\"),\"-\",IF('Enrollment Form'!P336=\"\",\"N\",\"Y\")))","v":""},{"$f":"IF($B329=\"N\",\"\",IF(AND('Enrollment Form'!$C336=\"ROC\",'Enrollment Form'!$DS336<>\"\"),\"Y\",IF(AND('Enrollment Form'!$C336=\"ROC\",'Enrollment Form'!$DS336=\"\"),\"N\",IF(AND('Enrollment Form'!$C336=\"Enroll\",'Enrollment Form'!$B336=\"Subscriber\",'Enrollment Form'!$CQ336=\"No\",'Enrollment Form'!$DS336=\"\"),\"N\",IF(AND('Enrollment Form'!$C336=\"Enroll\",'Enrollment Form'!$B336=\"Subscriber\",'Enrollment Form'!$CQ336=\"Yes\"),\"-\",\"Y\")))))","v":""},{"$f":"IF($B329=\"N\",\"\",IF(AND('Enrollment Form'!$C336=\"ROC\",'Enrollment Form'!$DT336<>\"\"),\"Y\",IF(AND('Enrollment Form'!$C336=\"ROC\",'Enrollment Form'!$DT336=\"\"),\"N\",IF(AND('Enrollment Form'!$C336=\"Enroll\",'Enrollment Form'!$B336=\"Subscriber\",'Enrollment Form'!$CQ336=\"No\",'Enrollment Form'!$DT336=\"\"),\"N\",IF(AND('Enrollment Form'!$C336=\"Enroll\",'Enrollment Form'!$B336=\"Subscriber\",'Enrollment Form'!$CQ336=\"Yes\"),\"-\",\"Y\")))))","v":""},{"$f":"IF('Enrollment Form'!AH336=\"\",\"\",IF(ISERROR(SEARCH(\".\",'Enrollment Form'!AH336,SEARCH(\"@\",'Enrollment Form'!AH336))),\"N\",\"Y\"))","v":""},{"$f":"IF(OR($B329=\"N\",'Enrollment Form'!$G336=\"\"),\"\",IF('Enrollment Form'!$B336<>\"Subscriber\",\"-\",IF(COUNTIF('Enrollment Form'!$AS336:$AT336,\"Yes\")=2,\"N\",\"Y\")))","v":""},{"$f":"IF(OR('Enrollment Form'!$CC336=\"\",'Enrollment Form'!$CC336=\"No\"),\"-\",IF(AND('Enrollment Form'!$CC336=\"Yes\",'Enrollment Form'!$CD336=\"\"),\"N\",\"Y\"))","v":"-"},{"$f":"IF(OR('Enrollment Form'!$CE336=\"\",'Enrollment Form'!$CE336=\"No\"),\"-\",IF(AND('Enrollment Form'!$CE336=\"Yes\",'Enrollment Form'!$CF336=\"\"),\"N\",\"Y\"))","v":"-"},{"$f":"IF(OR('Enrollment Form'!$CG336=\"\",'Enrollment Form'!$CG336=\"No\"),\"-\",IF(AND('Enrollment Form'!$CG336=\"Yes\",'Enrollment Form'!$CH336=\"\"),\"N\",\"Y\"))","v":"-"},{"$f":"IF(OR('Enrollment Form'!$CG336=\"\",'Enrollment Form'!$CG336=\"No\"),\"-\",IF(AND('Enrollment Form'!$CG336=\"Yes\",'Enrollment Form'!$CI336=\"\"),\"N\",\"Y\"))","v":"-"},{"$f":"IF('Enrollment Form'!B336<>\"Subscriber\",\"-\",IF(AND('Enrollment Form'!B336=\"Subscriber\",'Enrollment Form'!C336=\"Enroll\",'Enrollment Form'!AA336=\"\"),\"N\",\"Y\"))","v":"-"},{"$f":"IF(OR('Enrollment Form'!B336=\"Subscriber\",'Enrollment Form'!B336=\"\"),\"-\",IF('Enrollment Form'!BI336=\"\",\"N\",\"Y\"))","v":"-"},{"$f":"IF('Enrollment Form'!B336<>\"Subscriber\",\"-\",IF(AND('Enrollment Form'!B336=\"Subscriber\",'Enrollment Form'!G336=\"\"),\"N\",\"Y\"))","v":"-"},{"$f":"IF('Enrollment Form'!A336=\"\",\"\",IF('Enrollment Form'!B336=\"Subscriber\",\"-\",IF(AND('Enrollment Form'!B336<>\"Subscriber\",'Enrollment Form'!G336='Enrollment Form'!H336),\"N\",\"Y\")))","v":""},0]
[337,{"$f":"IF('Enrollment Form'!$A337<>\"\",\"Y\",\"N\")","v":"N"},{"$f":"IF(AND('Enrollment Form'!$B337=\"\",'Enrollment Form'!$C337<>\"\"),\"N\",IF($B330=\"N\",\"\",\"Y\"))","v":""},{"$f":"IF(OR($B330=\"N\",'Enrollment Form'!G337=\"\"),\"\",IF('Enrollment Form'!$B337<>\"Subscriber\",\"\",IF('Enrollment Form'!$G337='Enrollment Form'!$H337,\"Y\",\"N\")))","v":""},{"$f":"IF($B330=\"N\",\"\",IF(AND(COUNTIFS('Enrollment Form'!$H$11:$H$1000,'Enrollment Form'!$H337,'Enrollment Form'!$B$11:$B$1000,'Enrollment Form'!$B337)>1,'Enrollment Form'!$H337<>\"\"),\"N\",\"Y\"))","v":""},{"$f":"IF($B330=\"N\",\"\",IF(LEN('Enrollment Form'!$Y337)=0,\"\",IF(LEN('Enrollment Form'!$Y337)<>5,\"N\",\"Y\")))","v":""},{"$f":"IF($B330=\"N\",\"\",IF(LEN('Enrollment Form'!$AD337=0),\"\",IF(LEN('Enrollment Form'!$AD337)<>5,\"N\",\"Y\")))","v":""},{"$f":"IF($B330=\"N\",\"\",IF(LEN('Enrollment Form'!$BL337=0),\"\",IF(LEN('Enrollment Form'!$BL337)<>5,\"N\",\"Y\")))","v":""},{"$f":"IF($B330=\"N\",\"\",IF(LEN('Enrollment Form'!$AE337)=0,\"\",IF(LEN('Enrollment Form'!$AE337)<>10,\"N\",\"Y\")))","v":""},{"$f":"IF($B330=\"N\",\"\",IF(LEN('Enrollment Form'!$AF337)=0,\"\",IF(LEN('Enrollment Form'!$AF337)<>10,\"N\",\"Y\")))","v":""},{"$f":"IF('Enrollment Form'!$O337<>\"Graded\",\"-\",IF(AND('Enrollment Form'!$O337=\"Graded\",'Enrollment Form'!$AO337<>\"\"),\"Y\",\"N\"))","v":"-"},{"$f":"IF($B330=\"N\",\"\",IF(OR('Enrollment Form'!$B337<>\"Subscriber\",'Enrollment Form'!$C337=\"ROC\"),\"-\",IF(AND('Enrollment Form'!$B337=\"Subscriber\",'Enrollment Form'!$C337=\"Enroll\",'Enrollment Form'!$AJ337<>\"\"),\"Y\",\"N\")))","v":""},{"$f":"IF($B330=\"N\",\"\",IF(OR('Enrollment Form'!$B337<>\"Subscriber\",'Enrollment Form'!$C337=\"ROC\"),\"-\",IF(AND('Enrollment Form'!$B337=\"Subscriber\",'Enrollment Form'!$C337=\"Enroll\",'Enrollment Form'!$AK337<>\"\"),\"Y\",\"N\")))","v":""},{"$f":"IF($B330=\"N\",\"\",IF(OR('Enrollment Form'!$B337<>\"Subscriber\",'Enrollment Form'!$C337=\"ROC\"),\"-\",IF(AND('Enrollment Form'!$B337=\"Subscriber\",'Enrollment Form'!$C337=\"Enroll\",'Enrollment Form'!$AL337<>\"\"),\"Y\",\"N\")))","v":""},{"$f":"IF($B330=\"N\",\"\",IF(OR('Enrollment Form'!$B337<>\"Subscriber\",'Enrollment Form'!$C337=\"ROC\"),\"-\",IF(AND('Enrollment Form'!$B337=\"Subscriber\",'Enrollment Form'!$C337=\"Enroll\",'Enrollment Form'!$AM337<>\"\"),\"Y\",\"N\")))","v":""},{"$f":"IF($B330=\"N\",\"\",IF(OR('Enrollment Form'!$B337<>\"Subscriber\",'Enrollment Form'!$C337=\"ROC\"),\"-\",IF(AND('Enrollment Form'!$B337=\"Subscriber\",'Enrollment Form'!$C337=\"Enroll\",'Enrollment Form'!$AN337<>\"\"),\"Y\",\"N\")))","v":""},{"$f":"IF($B330=\"N\",\"\",IF(OR('Enrollment Form'!$B337<>\"Subscriber\",'Enrollment Form'!$C337=\"ROC\"),\"-\",IF(AND('Enrollment Form'!$B337=\"Subscriber\",'Enrollment Form'!$C337=\"Enroll\",'Enrollment Form'!$AP337<>\"\"),\"Y\",\"N\")))","v":""},{"$f":"IF($B330=\"N\",\"\",IF($Q330=\"-\",\"-\",IF(AND($Q330=\"Y\",'Enrollment Form'!$AP337=\"No\"),\"-\",IF(AND($Q330=\"Y\",'Enrollment Form'!$AP337=\"Yes\",'Enrollment Form'!$AQ337<>\"\"),\"Y\",\"N\"))))","v":""},{"$f":"IF($B330=\"N\",\"\",IF(OR('Enrollment Form'!$B337<>\"Subscriber\",'Enrollment Form'!$C337=\"ROC\"),\"-\",IF(AND('Enrollment Form'!$B337=\"Subscriber\",'Enrollment Form'!$C337=\"Enroll\",'Enrollment Form'!$CO337<>\"\"),\"Y\",\"N\")))","v":""},{"$f":"IF($B330=\"N\",\"\",IF($S330=\"-\",\"-\",IF(AND($S330=\"Y\",'Enrollment Form'!$CO337=\"No\"),\"-\",IF(AND($S330=\"Y\",'Enrollment Form'!$CO337=\"Yes\",'Enrollment Form'!$CP337<>\"\"),\"Y\",\"N\"))))","v":""},{"$f":"IF(OR('Enrollment Form'!$AV337=\"Yes\",'Enrollment Form'!$AV337=\"\"),\"-\",IF(AND('Enrollment Form'!$AV337=\"No\",ISERROR(FIND(\"HMO\",VLOOKUP('Enrollment Form'!G337,'Enrollment Form'!H$11:J$1000,3,FALSE),1))=FALSE,COUNTA('Enrollment Form'!$AW337:$AZ337)=4),\"Y\",\"N\"))","v":"-"},{"$f":"IF($B330=\"N\",\"\",IF('Enrollment Form'!$B337=\"Subscriber\",\"-\",IF(COUNTA('Enrollment Form'!$BE337,'Enrollment Form'!$BG337)=2,\"Y\",\"N\")))","v":""},{"$f":"IF($B330=\"N\",\"\",IF(OR('Enrollment Form'!$AU337=\"\",'Enrollment Form'!$AU337=\"No\"),\"-\",IF(AND('Enrollment Form'!$AU337=\"Yes\",COUNTA('Enrollment Form'!$CK337)=1),\"Y\",\"N\")))","v":""},{"$f":"IF(OR('Enrollment Form'!$CK337=\"\",'Enrollment Form'!$CK337=\"No\"),\"-\",IF(COUNTA('Enrollment Form'!$CM337:$CN337)=2,\"Y\",\"N\"))","v":"-"},{"$f":"IF($B330=\"N\",\"\",IF(COUNTIF('Enrollment Form'!$CZ337:$DO337,\"Other\")=COUNTA('Enrollment Form'!$DF337,'Enrollment Form'!$DA337,'Enrollment Form'!$DK337,'Enrollment Form'!$DP337),\"Y\",\"N\"))","v":""},{"$f":"IF($B330=\"N\",\"\",IF(OR('Enrollment Form'!B337<>\"Subscriber\",'Enrollment Form'!C337=\"ROC\",COUNTIF('Enrollment Form'!AS337:AT337,\"Yes\")>=1),\"-\",IF(AND('Enrollment Form'!C337=\"Enroll\",COUNTIF('Enrollment Form'!AS337:AT337,\"No\")=2,'Enrollment Form'!AU337=\"\"),\"N\",\"Y\")))","v":""},{"$f":"IF(OR(B330=\"N\",'Enrollment Form'!B337<>\"Subscriber\",'Enrollment Form'!C337=\"ROC\",'Enrollment Form'!O337<>\"Multiple of Salary\"),\"-\",IF(COUNTA('Enrollment Form'!T337:U337)<2,\"N\",\"Y\"))","v":"-"},{"$f":"IF(B330=\"N\",\"\",IF(OR('Enrollment Form'!C337=\"ROC\",'Enrollment Form'!B337<>\"Subscriber\",'Enrollment Form'!O337=\"Waive\",'Enrollment Form'!O337=\"\"),\"-\",IF('Enrollment Form'!P337=\"\",\"N\",\"Y\")))","v":""},{"$f":"IF($B330=\"N\",\"\",IF(AND('Enrollment Form'!$C337=\"ROC\",'Enrollment Form'!$DS337<>\"\"),\"Y\",IF(AND('Enrollment Form'!$C337=\"ROC\",'Enrollment Form'!$DS337=\"\"),\"N\",IF(AND('Enrollment Form'!$C337=\"Enroll\",'Enrollment Form'!$B337=\"Subscriber\",'Enrollment Form'!$CQ337=\"No\",'Enrollment Form'!$DS337=\"\"),\"N\",IF(AND('Enrollment Form'!$C337=\"Enroll\",'Enrollment Form'!$B337=\"Subscriber\",'Enrollment Form'!$CQ337=\"Yes\"),\"-\",\"Y\")))))","v":""},{"$f":"IF($B330=\"N\",\"\",IF(AND('Enrollment Form'!$C337=\"ROC\",'Enrollment Form'!$DT337<>\"\"),\"Y\",IF(AND('Enrollment Form'!$C337=\"ROC\",'Enrollment Form'!$DT337=\"\"),\"N\",IF(AND('Enrollment Form'!$C337=\"Enroll\",'Enrollment Form'!$B337=\"Subscriber\",'Enrollment Form'!$CQ337=\"No\",'Enrollment Form'!$DT337=\"\"),\"N\",IF(AND('Enrollment Form'!$C337=\"Enroll\",'Enrollment Form'!$B337=\"Subscriber\",'Enrollment Form'!$CQ337=\"Yes\"),\"-\",\"Y\")))))","v":""},{"$f":"IF('Enrollment Form'!AH337=\"\",\"\",IF(ISERROR(SEARCH(\".\",'Enrollment Form'!AH337,SEARCH(\"@\",'Enrollment Form'!AH337))),\"N\",\"Y\"))","v":""},{"$f":"IF(OR($B330=\"N\",'Enrollment Form'!$G337=\"\"),\"\",IF('Enrollment Form'!$B337<>\"Subscriber\",\"-\",IF(COUNTIF('Enrollment Form'!$AS337:$AT337,\"Yes\")=2,\"N\",\"Y\")))","v":""},{"$f":"IF(OR('Enrollment Form'!$CC337=\"\",'Enrollment Form'!$CC337=\"No\"),\"-\",IF(AND('Enrollment Form'!$CC337=\"Yes\",'Enrollment Form'!$CD337=\"\"),\"N\",\"Y\"))","v":"-"},{"$f":"IF(OR('Enrollment Form'!$CE337=\"\",'Enrollment Form'!$CE337=\"No\"),\"-\",IF(AND('Enrollment Form'!$CE337=\"Yes\",'Enrollment Form'!$CF337=\"\"),\"N\",\"Y\"))","v":"-"},{"$f":"IF(OR('Enrollment Form'!$CG337=\"\",'Enrollment Form'!$CG337=\"No\"),\"-\",IF(AND('Enrollment Form'!$CG337=\"Yes\",'Enrollment Form'!$CH337=\"\"),\"N\",\"Y\"))","v":"-"},{"$f":"IF(OR('Enrollment Form'!$CG337=\"\",'Enrollment Form'!$CG337=\"No\"),\"-\",IF(AND('Enrollment Form'!$CG337=\"Yes\",'Enrollment Form'!$CI337=\"\"),\"N\",\"Y\"))","v":"-"},{"$f":"IF('Enrollment Form'!B337<>\"Subscriber\",\"-\",IF(AND('Enrollment Form'!B337=\"Subscriber\",'Enrollment Form'!C337=\"Enroll\",'Enrollment Form'!AA337=\"\"),\"N\",\"Y\"))","v":"-"},{"$f":"IF(OR('Enrollment Form'!B337=\"Subscriber\",'Enrollment Form'!B337=\"\"),\"-\",IF('Enrollment Form'!BI337=\"\",\"N\",\"Y\"))","v":"-"},{"$f":"IF('Enrollment Form'!B337<>\"Subscriber\",\"-\",IF(AND('Enrollment Form'!B337=\"Subscriber\",'Enrollment Form'!G337=\"\"),\"N\",\"Y\"))","v":"-"},{"$f":"IF('Enrollment Form'!A337=\"\",\"\",IF('Enrollment Form'!B337=\"Subscriber\",\"-\",IF(AND('Enrollment Form'!B337<>\"Subscriber\",'Enrollment Form'!G337='Enrollment Form'!H337),\"N\",\"Y\")))","v":""},0]
[338,{"$f":"IF('Enrollment Form'!$A338<>\"\",\"Y\",\"N\")","v":"N"},{"$f":"IF(AND('Enrollment Form'!$B338=\"\",'Enrollment Form'!$C338<>\"\"),\"N\",IF($B331=\"N\",\"\",\"Y\"))","v":""},{"$f":"IF(OR($B331=\"N\",'Enrollment Form'!G338=\"\"),\"\",IF('Enrollment Form'!$B338<>\"Subscriber\",\"\",IF('Enrollment Form'!$G338='Enrollment Form'!$H338,\"Y\",\"N\")))","v":""},{"$f":"IF($B331=\"N\",\"\",IF(AND(COUNTIFS('Enrollment Form'!$H$11:$H$1000,'Enrollment Form'!$H338,'Enrollment Form'!$B$11:$B$1000,'Enrollment Form'!$B338)>1,'Enrollment Form'!$H338<>\"\"),\"N\",\"Y\"))","v":""},{"$f":"IF($B331=\"N\",\"\",IF(LEN('Enrollment Form'!$Y338)=0,\"\",IF(LEN('Enrollment Form'!$Y338)<>5,\"N\",\"Y\")))","v":""},{"$f":"IF($B331=\"N\",\"\",IF(LEN('Enrollment Form'!$AD338=0),\"\",IF(LEN('Enrollment Form'!$AD338)<>5,\"N\",\"Y\")))","v":""},{"$f":"IF($B331=\"N\",\"\",IF(LEN('Enrollment Form'!$BL338=0),\"\",IF(LEN('Enrollment Form'!$BL338)<>5,\"N\",\"Y\")))","v":""},{"$f":"IF($B331=\"N\",\"\",IF(LEN('Enrollment Form'!$AE338)=0,\"\",IF(LEN('Enrollment Form'!$AE338)<>10,\"N\",\"Y\")))","v":""},{"$f":"IF($B331=\"N\",\"\",IF(LEN('Enrollment Form'!$AF338)=0,\"\",IF(LEN('Enrollment Form'!$AF338)<>10,\"N\",\"Y\")))","v":""},{"$f":"IF('Enrollment Form'!$O338<>\"Graded\",\"-\",IF(AND('Enrollment Form'!$O338=\"Graded\",'Enrollment Form'!$AO338<>\"\"),\"Y\",\"N\"))","v":"-"},{"$f":"IF($B331=\"N\",\"\",IF(OR('Enrollment Form'!$B338<>\"Subscriber\",'Enrollment Form'!$C338=\"ROC\"),\"-\",IF(AND('Enrollment Form'!$B338=\"Subscriber\",'Enrollment Form'!$C338=\"Enroll\",'Enrollment Form'!$AJ338<>\"\"),\"Y\",\"N\")))","v":""},{"$f":"IF($B331=\"N\",\"\",IF(OR('Enrollment Form'!$B338<>\"Subscriber\",'Enrollment Form'!$C338=\"ROC\"),\"-\",IF(AND('Enrollment Form'!$B338=\"Subscriber\",'Enrollment Form'!$C338=\"Enroll\",'Enrollment Form'!$AK338<>\"\"),\"Y\",\"N\")))","v":""},{"$f":"IF($B331=\"N\",\"\",IF(OR('Enrollment Form'!$B338<>\"Subscriber\",'Enrollment Form'!$C338=\"ROC\"),\"-\",IF(AND('Enrollment Form'!$B338=\"Subscriber\",'Enrollment Form'!$C338=\"Enroll\",'Enrollment Form'!$AL338<>\"\"),\"Y\",\"N\")))","v":""},{"$f":"IF($B331=\"N\",\"\",IF(OR('Enrollment Form'!$B338<>\"Subscriber\",'Enrollment Form'!$C338=\"ROC\"),\"-\",IF(AND('Enrollment Form'!$B338=\"Subscriber\",'Enrollment Form'!$C338=\"Enroll\",'Enrollment Form'!$AM338<>\"\"),\"Y\",\"N\")))","v":""},{"$f":"IF($B331=\"N\",\"\",IF(OR('Enrollment Form'!$B338<>\"Subscriber\",'Enrollment Form'!$C338=\"ROC\"),\"-\",IF(AND('Enrollment Form'!$B338=\"Subscriber\",'Enrollment Form'!$C338=\"Enroll\",'Enrollment Form'!$AN338<>\"\"),\"Y\",\"N\")))","v":""},{"$f":"IF($B331=\"N\",\"\",IF(OR('Enrollment Form'!$B338<>\"Subscriber\",'Enrollment Form'!$C338=\"ROC\"),\"-\",IF(AND('Enrollment Form'!$B338=\"Subscriber\",'Enrollment Form'!$C338=\"Enroll\",'Enrollment Form'!$AP338<>\"\"),\"Y\",\"N\")))","v":""},{"$f":"IF($B331=\"N\",\"\",IF($Q331=\"-\",\"-\",IF(AND($Q331=\"Y\",'Enrollment Form'!$AP338=\"No\"),\"-\",IF(AND($Q331=\"Y\",'Enrollment Form'!$AP338=\"Yes\",'Enrollment Form'!$AQ338<>\"\"),\"Y\",\"N\"))))","v":""},{"$f":"IF($B331=\"N\",\"\",IF(OR('Enrollment Form'!$B338<>\"Subscriber\",'Enrollment Form'!$C338=\"ROC\"),\"-\",IF(AND('Enrollment Form'!$B338=\"Subscriber\",'Enrollment Form'!$C338=\"Enroll\",'Enrollment Form'!$CO338<>\"\"),\"Y\",\"N\")))","v":""},{"$f":"IF($B331=\"N\",\"\",IF($S331=\"-\",\"-\",IF(AND($S331=\"Y\",'Enrollment Form'!$CO338=\"No\"),\"-\",IF(AND($S331=\"Y\",'Enrollment Form'!$CO338=\"Yes\",'Enrollment Form'!$CP338<>\"\"),\"Y\",\"N\"))))","v":""},{"$f":"IF(OR('Enrollment Form'!$AV338=\"Yes\",'Enrollment Form'!$AV338=\"\"),\"-\",IF(AND('Enrollment Form'!$AV338=\"No\",ISERROR(FIND(\"HMO\",VLOOKUP('Enrollment Form'!G338,'Enrollment Form'!H$11:J$1000,3,FALSE),1))=FALSE,COUNTA('Enrollment Form'!$AW338:$AZ338)=4),\"Y\",\"N\"))","v":"-"},{"$f":"IF($B331=\"N\",\"\",IF('Enrollment Form'!$B338=\"Subscriber\",\"-\",IF(COUNTA('Enrollment Form'!$BE338,'Enrollment Form'!$BG338)=2,\"Y\",\"N\")))","v":""},{"$f":"IF($B331=\"N\",\"\",IF(OR('Enrollment Form'!$AU338=\"\",'Enrollment Form'!$AU338=\"No\"),\"-\",IF(AND('Enrollment Form'!$AU338=\"Yes\",COUNTA('Enrollment Form'!$CK338)=1),\"Y\",\"N\")))","v":""},{"$f":"IF(OR('Enrollment Form'!$CK338=\"\",'Enrollment Form'!$CK338=\"No\"),\"-\",IF(COUNTA('Enrollment Form'!$CM338:$CN338)=2,\"Y\",\"N\"))","v":"-"},{"$f":"IF($B331=\"N\",\"\",IF(COUNTIF('Enrollment Form'!$CZ338:$DO338,\"Other\")=COUNTA('Enrollment Form'!$DF338,'Enrollment Form'!$DA338,'Enrollment Form'!$DK338,'Enrollment Form'!$DP338),\"Y\",\"N\"))","v":""},{"$f":"IF($B331=\"N\",\"\",IF(OR('Enrollment Form'!B338<>\"Subscriber\",'Enrollment Form'!C338=\"ROC\",COUNTIF('Enrollment Form'!AS338:AT338,\"Yes\")>=1),\"-\",IF(AND('Enrollment Form'!C338=\"Enroll\",COUNTIF('Enrollment Form'!AS338:AT338,\"No\")=2,'Enrollment Form'!AU338=\"\"),\"N\",\"Y\")))","v":""},{"$f":"IF(OR(B331=\"N\",'Enrollment Form'!B338<>\"Subscriber\",'Enrollment Form'!C338=\"ROC\",'Enrollment Form'!O338<>\"Multiple of Salary\"),\"-\",IF(COUNTA('Enrollment Form'!T338:U338)<2,\"N\",\"Y\"))","v":"-"},{"$f":"IF(B331=\"N\",\"\",IF(OR('Enrollment Form'!C338=\"ROC\",'Enrollment Form'!B338<>\"Subscriber\",'Enrollment Form'!O338=\"Waive\",'Enrollment Form'!O338=\"\"),\"-\",IF('Enrollment Form'!P338=\"\",\"N\",\"Y\")))","v":""},{"$f":"IF($B331=\"N\",\"\",IF(AND('Enrollment Form'!$C338=\"ROC\",'Enrollment Form'!$DS338<>\"\"),\"Y\",IF(AND('Enrollment Form'!$C338=\"ROC\",'Enrollment Form'!$DS338=\"\"),\"N\",IF(AND('Enrollment Form'!$C338=\"Enroll\",'Enrollment Form'!$B338=\"Subscriber\",'Enrollment Form'!$CQ338=\"No\",'Enrollment Form'!$DS338=\"\"),\"N\",IF(AND('Enrollment Form'!$C338=\"Enroll\",'Enrollment Form'!$B338=\"Subscriber\",'Enrollment Form'!$CQ338=\"Yes\"),\"-\",\"Y\")))))","v":""},{"$f":"IF($B331=\"N\",\"\",IF(AND('Enrollment Form'!$C338=\"ROC\",'Enrollment Form'!$DT338<>\"\"),\"Y\",IF(AND('Enrollment Form'!$C338=\"ROC\",'Enrollment Form'!$DT338=\"\"),\"N\",IF(AND('Enrollment Form'!$C338=\"Enroll\",'Enrollment Form'!$B338=\"Subscriber\",'Enrollment Form'!$CQ338=\"No\",'Enrollment Form'!$DT338=\"\"),\"N\",IF(AND('Enrollment Form'!$C338=\"Enroll\",'Enrollment Form'!$B338=\"Subscriber\",'Enrollment Form'!$CQ338=\"Yes\"),\"-\",\"Y\")))))","v":""},{"$f":"IF('Enrollment Form'!AH338=\"\",\"\",IF(ISERROR(SEARCH(\".\",'Enrollment Form'!AH338,SEARCH(\"@\",'Enrollment Form'!AH338))),\"N\",\"Y\"))","v":""},{"$f":"IF(OR($B331=\"N\",'Enrollment Form'!$G338=\"\"),\"\",IF('Enrollment Form'!$B338<>\"Subscriber\",\"-\",IF(COUNTIF('Enrollment Form'!$AS338:$AT338,\"Yes\")=2,\"N\",\"Y\")))","v":""},{"$f":"IF(OR('Enrollment Form'!$CC338=\"\",'Enrollment Form'!$CC338=\"No\"),\"-\",IF(AND('Enrollment Form'!$CC338=\"Yes\",'Enrollment Form'!$CD338=\"\"),\"N\",\"Y\"))","v":"-"},{"$f":"IF(OR('Enrollment Form'!$CE338=\"\",'Enrollment Form'!$CE338=\"No\"),\"-\",IF(AND('Enrollment Form'!$CE338=\"Yes\",'Enrollment Form'!$CF338=\"\"),\"N\",\"Y\"))","v":"-"},{"$f":"IF(OR('Enrollment Form'!$CG338=\"\",'Enrollment Form'!$CG338=\"No\"),\"-\",IF(AND('Enrollment Form'!$CG338=\"Yes\",'Enrollment Form'!$CH338=\"\"),\"N\",\"Y\"))","v":"-"},{"$f":"IF(OR('Enrollment Form'!$CG338=\"\",'Enrollment Form'!$CG338=\"No\"),\"-\",IF(AND('Enrollment Form'!$CG338=\"Yes\",'Enrollment Form'!$CI338=\"\"),\"N\",\"Y\"))","v":"-"},{"$f":"IF('Enrollment Form'!B338<>\"Subscriber\",\"-\",IF(AND('Enrollment Form'!B338=\"Subscriber\",'Enrollment Form'!C338=\"Enroll\",'Enrollment Form'!AA338=\"\"),\"N\",\"Y\"))","v":"-"},{"$f":"IF(OR('Enrollment Form'!B338=\"Subscriber\",'Enrollment Form'!B338=\"\"),\"-\",IF('Enrollment Form'!BI338=\"\",\"N\",\"Y\"))","v":"-"},{"$f":"IF('Enrollment Form'!B338<>\"Subscriber\",\"-\",IF(AND('Enrollment Form'!B338=\"Subscriber\",'Enrollment Form'!G338=\"\"),\"N\",\"Y\"))","v":"-"},{"$f":"IF('Enrollment Form'!A338=\"\",\"\",IF('Enrollment Form'!B338=\"Subscriber\",\"-\",IF(AND('Enrollment Form'!B338<>\"Subscriber\",'Enrollment Form'!G338='Enrollment Form'!H338),\"N\",\"Y\")))","v":""},0]
[339,{"$f":"IF('Enrollment Form'!$A339<>\"\",\"Y\",\"N\")","v":"N"},{"$f":"IF(AND('Enrollment Form'!$B339=\"\",'Enrollment Form'!$C339<>\"\"),\"N\",IF($B332=\"N\",\"\",\"Y\"))","v":""},{"$f":"IF(OR($B332=\"N\",'Enrollment Form'!G339=\"\"),\"\",IF('Enrollment Form'!$B339<>\"Subscriber\",\"\",IF('Enrollment Form'!$G339='Enrollment Form'!$H339,\"Y\",\"N\")))","v":""},{"$f":"IF($B332=\"N\",\"\",IF(AND(COUNTIFS('Enrollment Form'!$H$11:$H$1000,'Enrollment Form'!$H339,'Enrollment Form'!$B$11:$B$1000,'Enrollment Form'!$B339)>1,'Enrollment Form'!$H339<>\"\"),\"N\",\"Y\"))","v":""},{"$f":"IF($B332=\"N\",\"\",IF(LEN('Enrollment Form'!$Y339)=0,\"\",IF(LEN('Enrollment Form'!$Y339)<>5,\"N\",\"Y\")))","v":""},{"$f":"IF($B332=\"N\",\"\",IF(LEN('Enrollment Form'!$AD339=0),\"\",IF(LEN('Enrollment Form'!$AD339)<>5,\"N\",\"Y\")))","v":""},{"$f":"IF($B332=\"N\",\"\",IF(LEN('Enrollment Form'!$BL339=0),\"\",IF(LEN('Enrollment Form'!$BL339)<>5,\"N\",\"Y\")))","v":""},{"$f":"IF($B332=\"N\",\"\",IF(LEN('Enrollment Form'!$AE339)=0,\"\",IF(LEN('Enrollment Form'!$AE339)<>10,\"N\",\"Y\")))","v":""},{"$f":"IF($B332=\"N\",\"\",IF(LEN('Enrollment Form'!$AF339)=0,\"\",IF(LEN('Enrollment Form'!$AF339)<>10,\"N\",\"Y\")))","v":""},{"$f":"IF('Enrollment Form'!$O339<>\"Graded\",\"-\",IF(AND('Enrollment Form'!$O339=\"Graded\",'Enrollment Form'!$AO339<>\"\"),\"Y\",\"N\"))","v":"-"},{"$f":"IF($B332=\"N\",\"\",IF(OR('Enrollment Form'!$B339<>\"Subscriber\",'Enrollment Form'!$C339=\"ROC\"),\"-\",IF(AND('Enrollment Form'!$B339=\"Subscriber\",'Enrollment Form'!$C339=\"Enroll\",'Enrollment Form'!$AJ339<>\"\"),\"Y\",\"N\")))","v":""},{"$f":"IF($B332=\"N\",\"\",IF(OR('Enrollment Form'!$B339<>\"Subscriber\",'Enrollment Form'!$C339=\"ROC\"),\"-\",IF(AND('Enrollment Form'!$B339=\"Subscriber\",'Enrollment Form'!$C339=\"Enroll\",'Enrollment Form'!$AK339<>\"\"),\"Y\",\"N\")))","v":""},{"$f":"IF($B332=\"N\",\"\",IF(OR('Enrollment Form'!$B339<>\"Subscriber\",'Enrollment Form'!$C339=\"ROC\"),\"-\",IF(AND('Enrollment Form'!$B339=\"Subscriber\",'Enrollment Form'!$C339=\"Enroll\",'Enrollment Form'!$AL339<>\"\"),\"Y\",\"N\")))","v":""},{"$f":"IF($B332=\"N\",\"\",IF(OR('Enrollment Form'!$B339<>\"Subscriber\",'Enrollment Form'!$C339=\"ROC\"),\"-\",IF(AND('Enrollment Form'!$B339=\"Subscriber\",'Enrollment Form'!$C339=\"Enroll\",'Enrollment Form'!$AM339<>\"\"),\"Y\",\"N\")))","v":""},{"$f":"IF($B332=\"N\",\"\",IF(OR('Enrollment Form'!$B339<>\"Subscriber\",'Enrollment Form'!$C339=\"ROC\"),\"-\",IF(AND('Enrollment Form'!$B339=\"Subscriber\",'Enrollment Form'!$C339=\"Enroll\",'Enrollment Form'!$AN339<>\"\"),\"Y\",\"N\")))","v":""},{"$f":"IF($B332=\"N\",\"\",IF(OR('Enrollment Form'!$B339<>\"Subscriber\",'Enrollment Form'!$C339=\"ROC\"),\"-\",IF(AND('Enrollment Form'!$B339=\"Subscriber\",'Enrollment Form'!$C339=\"Enroll\",'Enrollment Form'!$AP339<>\"\"),\"Y\",\"N\")))","v":""},{"$f":"IF($B332=\"N\",\"\",IF($Q332=\"-\",\"-\",IF(AND($Q332=\"Y\",'Enrollment Form'!$AP339=\"No\"),\"-\",IF(AND($Q332=\"Y\",'Enrollment Form'!$AP339=\"Yes\",'Enrollment Form'!$AQ339<>\"\"),\"Y\",\"N\"))))","v":""},{"$f":"IF($B332=\"N\",\"\",IF(OR('Enrollment Form'!$B339<>\"Subscriber\",'Enrollment Form'!$C339=\"ROC\"),\"-\",IF(AND('Enrollment Form'!$B339=\"Subscriber\",'Enrollment Form'!$C339=\"Enroll\",'Enrollment Form'!$CO339<>\"\"),\"Y\",\"N\")))","v":""},{"$f":"IF($B332=\"N\",\"\",IF($S332=\"-\",\"-\",IF(AND($S332=\"Y\",'Enrollment Form'!$CO339=\"No\"),\"-\",IF(AND($S332=\"Y\",'Enrollment Form'!$CO339=\"Yes\",'Enrollment Form'!$CP339<>\"\"),\"Y\",\"N\"))))","v":""},{"$f":"IF(OR('Enrollment Form'!$AV339=\"Yes\",'Enrollment Form'!$AV339=\"\"),\"-\",IF(AND('Enrollment Form'!$AV339=\"No\",ISERROR(FIND(\"HMO\",VLOOKUP('Enrollment Form'!G339,'Enrollment Form'!H$11:J$1000,3,FALSE),1))=FALSE,COUNTA('Enrollment Form'!$AW339:$AZ339)=4),\"Y\",\"N\"))","v":"-"},{"$f":"IF($B332=\"N\",\"\",IF('Enrollment Form'!$B339=\"Subscriber\",\"-\",IF(COUNTA('Enrollment Form'!$BE339,'Enrollment Form'!$BG339)=2,\"Y\",\"N\")))","v":""},{"$f":"IF($B332=\"N\",\"\",IF(OR('Enrollment Form'!$AU339=\"\",'Enrollment Form'!$AU339=\"No\"),\"-\",IF(AND('Enrollment Form'!$AU339=\"Yes\",COUNTA('Enrollment Form'!$CK339)=1),\"Y\",\"N\")))","v":""},{"$f":"IF(OR('Enrollment Form'!$CK339=\"\",'Enrollment Form'!$CK339=\"No\"),\"-\",IF(COUNTA('Enrollment Form'!$CM339:$CN339)=2,\"Y\",\"N\"))","v":"-"},{"$f":"IF($B332=\"N\",\"\",IF(COUNTIF('Enrollment Form'!$CZ339:$DO339,\"Other\")=COUNTA('Enrollment Form'!$DF339,'Enrollment Form'!$DA339,'Enrollment Form'!$DK339,'Enrollment Form'!$DP339),\"Y\",\"N\"))","v":""},{"$f":"IF($B332=\"N\",\"\",IF(OR('Enrollment Form'!B339<>\"Subscriber\",'Enrollment Form'!C339=\"ROC\",COUNTIF('Enrollment Form'!AS339:AT339,\"Yes\")>=1),\"-\",IF(AND('Enrollment Form'!C339=\"Enroll\",COUNTIF('Enrollment Form'!AS339:AT339,\"No\")=2,'Enrollment Form'!AU339=\"\"),\"N\",\"Y\")))","v":""},{"$f":"IF(OR(B332=\"N\",'Enrollment Form'!B339<>\"Subscriber\",'Enrollment Form'!C339=\"ROC\",'Enrollment Form'!O339<>\"Multiple of Salary\"),\"-\",IF(COUNTA('Enrollment Form'!T339:U339)<2,\"N\",\"Y\"))","v":"-"},{"$f":"IF(B332=\"N\",\"\",IF(OR('Enrollment Form'!C339=\"ROC\",'Enrollment Form'!B339<>\"Subscriber\",'Enrollment Form'!O339=\"Waive\",'Enrollment Form'!O339=\"\"),\"-\",IF('Enrollment Form'!P339=\"\",\"N\",\"Y\")))","v":""},{"$f":"IF($B332=\"N\",\"\",IF(AND('Enrollment Form'!$C339=\"ROC\",'Enrollment Form'!$DS339<>\"\"),\"Y\",IF(AND('Enrollment Form'!$C339=\"ROC\",'Enrollment Form'!$DS339=\"\"),\"N\",IF(AND('Enrollment Form'!$C339=\"Enroll\",'Enrollment Form'!$B339=\"Subscriber\",'Enrollment Form'!$CQ339=\"No\",'Enrollment Form'!$DS339=\"\"),\"N\",IF(AND('Enrollment Form'!$C339=\"Enroll\",'Enrollment Form'!$B339=\"Subscriber\",'Enrollment Form'!$CQ339=\"Yes\"),\"-\",\"Y\")))))","v":""},{"$f":"IF($B332=\"N\",\"\",IF(AND('Enrollment Form'!$C339=\"ROC\",'Enrollment Form'!$DT339<>\"\"),\"Y\",IF(AND('Enrollment Form'!$C339=\"ROC\",'Enrollment Form'!$DT339=\"\"),\"N\",IF(AND('Enrollment Form'!$C339=\"Enroll\",'Enrollment Form'!$B339=\"Subscriber\",'Enrollment Form'!$CQ339=\"No\",'Enrollment Form'!$DT339=\"\"),\"N\",IF(AND('Enrollment Form'!$C339=\"Enroll\",'Enrollment Form'!$B339=\"Subscriber\",'Enrollment Form'!$CQ339=\"Yes\"),\"-\",\"Y\")))))","v":""},{"$f":"IF('Enrollment Form'!AH339=\"\",\"\",IF(ISERROR(SEARCH(\".\",'Enrollment Form'!AH339,SEARCH(\"@\",'Enrollment Form'!AH339))),\"N\",\"Y\"))","v":""},{"$f":"IF(OR($B332=\"N\",'Enrollment Form'!$G339=\"\"),\"\",IF('Enrollment Form'!$B339<>\"Subscriber\",\"-\",IF(COUNTIF('Enrollment Form'!$AS339:$AT339,\"Yes\")=2,\"N\",\"Y\")))","v":""},{"$f":"IF(OR('Enrollment Form'!$CC339=\"\",'Enrollment Form'!$CC339=\"No\"),\"-\",IF(AND('Enrollment Form'!$CC339=\"Yes\",'Enrollment Form'!$CD339=\"\"),\"N\",\"Y\"))","v":"-"},{"$f":"IF(OR('Enrollment Form'!$CE339=\"\",'Enrollment Form'!$CE339=\"No\"),\"-\",IF(AND('Enrollment Form'!$CE339=\"Yes\",'Enrollment Form'!$CF339=\"\"),\"N\",\"Y\"))","v":"-"},{"$f":"IF(OR('Enrollment Form'!$CG339=\"\",'Enrollment Form'!$CG339=\"No\"),\"-\",IF(AND('Enrollment Form'!$CG339=\"Yes\",'Enrollment Form'!$CH339=\"\"),\"N\",\"Y\"))","v":"-"},{"$f":"IF(OR('Enrollment Form'!$CG339=\"\",'Enrollment Form'!$CG339=\"No\"),\"-\",IF(AND('Enrollment Form'!$CG339=\"Yes\",'Enrollment Form'!$CI339=\"\"),\"N\",\"Y\"))","v":"-"},{"$f":"IF('Enrollment Form'!B339<>\"Subscriber\",\"-\",IF(AND('Enrollment Form'!B339=\"Subscriber\",'Enrollment Form'!C339=\"Enroll\",'Enrollment Form'!AA339=\"\"),\"N\",\"Y\"))","v":"-"},{"$f":"IF(OR('Enrollment Form'!B339=\"Subscriber\",'Enrollment Form'!B339=\"\"),\"-\",IF('Enrollment Form'!BI339=\"\",\"N\",\"Y\"))","v":"-"},{"$f":"IF('Enrollment Form'!B339<>\"Subscriber\",\"-\",IF(AND('Enrollment Form'!B339=\"Subscriber\",'Enrollment Form'!G339=\"\"),\"N\",\"Y\"))","v":"-"},{"$f":"IF('Enrollment Form'!A339=\"\",\"\",IF('Enrollment Form'!B339=\"Subscriber\",\"-\",IF(AND('Enrollment Form'!B339<>\"Subscriber\",'Enrollment Form'!G339='Enrollment Form'!H339),\"N\",\"Y\")))","v":""},0]
[340,{"$f":"IF('Enrollment Form'!$A340<>\"\",\"Y\",\"N\")","v":"N"},{"$f":"IF(AND('Enrollment Form'!$B340=\"\",'Enrollment Form'!$C340<>\"\"),\"N\",IF($B333=\"N\",\"\",\"Y\"))","v":""},{"$f":"IF(OR($B333=\"N\",'Enrollment Form'!G340=\"\"),\"\",IF('Enrollment Form'!$B340<>\"Subscriber\",\"\",IF('Enrollment Form'!$G340='Enrollment Form'!$H340,\"Y\",\"N\")))","v":""},{"$f":"IF($B333=\"N\",\"\",IF(AND(COUNTIFS('Enrollment Form'!$H$11:$H$1000,'Enrollment Form'!$H340,'Enrollment Form'!$B$11:$B$1000,'Enrollment Form'!$B340)>1,'Enrollment Form'!$H340<>\"\"),\"N\",\"Y\"))","v":""},{"$f":"IF($B333=\"N\",\"\",IF(LEN('Enrollment Form'!$Y340)=0,\"\",IF(LEN('Enrollment Form'!$Y340)<>5,\"N\",\"Y\")))","v":""},{"$f":"IF($B333=\"N\",\"\",IF(LEN('Enrollment Form'!$AD340=0),\"\",IF(LEN('Enrollment Form'!$AD340)<>5,\"N\",\"Y\")))","v":""},{"$f":"IF($B333=\"N\",\"\",IF(LEN('Enrollment Form'!$BL340=0),\"\",IF(LEN('Enrollment Form'!$BL340)<>5,\"N\",\"Y\")))","v":""},{"$f":"IF($B333=\"N\",\"\",IF(LEN('Enrollment Form'!$AE340)=0,\"\",IF(LEN('Enrollment Form'!$AE340)<>10,\"N\",\"Y\")))","v":""},{"$f":"IF($B333=\"N\",\"\",IF(LEN('Enrollment Form'!$AF340)=0,\"\",IF(LEN('Enrollment Form'!$AF340)<>10,\"N\",\"Y\")))","v":""},{"$f":"IF('Enrollment Form'!$O340<>\"Graded\",\"-\",IF(AND('Enrollment Form'!$O340=\"Graded\",'Enrollment Form'!$AO340<>\"\"),\"Y\",\"N\"))","v":"-"},{"$f":"IF($B333=\"N\",\"\",IF(OR('Enrollment Form'!$B340<>\"Subscriber\",'Enrollment Form'!$C340=\"ROC\"),\"-\",IF(AND('Enrollment Form'!$B340=\"Subscriber\",'Enrollment Form'!$C340=\"Enroll\",'Enrollment Form'!$AJ340<>\"\"),\"Y\",\"N\")))","v":""},{"$f":"IF($B333=\"N\",\"\",IF(OR('Enrollment Form'!$B340<>\"Subscriber\",'Enrollment Form'!$C340=\"ROC\"),\"-\",IF(AND('Enrollment Form'!$B340=\"Subscriber\",'Enrollment Form'!$C340=\"Enroll\",'Enrollment Form'!$AK340<>\"\"),\"Y\",\"N\")))","v":""},{"$f":"IF($B333=\"N\",\"\",IF(OR('Enrollment Form'!$B340<>\"Subscriber\",'Enrollment Form'!$C340=\"ROC\"),\"-\",IF(AND('Enrollment Form'!$B340=\"Subscriber\",'Enrollment Form'!$C340=\"Enroll\",'Enrollment Form'!$AL340<>\"\"),\"Y\",\"N\")))","v":""},{"$f":"IF($B333=\"N\",\"\",IF(OR('Enrollment Form'!$B340<>\"Subscriber\",'Enrollment Form'!$C340=\"ROC\"),\"-\",IF(AND('Enrollment Form'!$B340=\"Subscriber\",'Enrollment Form'!$C340=\"Enroll\",'Enrollment Form'!$AM340<>\"\"),\"Y\",\"N\")))","v":""},{"$f":"IF($B333=\"N\",\"\",IF(OR('Enrollment Form'!$B340<>\"Subscriber\",'Enrollment Form'!$C340=\"ROC\"),\"-\",IF(AND('Enrollment Form'!$B340=\"Subscriber\",'Enrollment Form'!$C340=\"Enroll\",'Enrollment Form'!$AN340<>\"\"),\"Y\",\"N\")))","v":""},{"$f":"IF($B333=\"N\",\"\",IF(OR('Enrollment Form'!$B340<>\"Subscriber\",'Enrollment Form'!$C340=\"ROC\"),\"-\",IF(AND('Enrollment Form'!$B340=\"Subscriber\",'Enrollment Form'!$C340=\"Enroll\",'Enrollment Form'!$AP340<>\"\"),\"Y\",\"N\")))","v":""},{"$f":"IF($B333=\"N\",\"\",IF($Q333=\"-\",\"-\",IF(AND($Q333=\"Y\",'Enrollment Form'!$AP340=\"No\"),\"-\",IF(AND($Q333=\"Y\",'Enrollment Form'!$AP340=\"Yes\",'Enrollment Form'!$AQ340<>\"\"),\"Y\",\"N\"))))","v":""},{"$f":"IF($B333=\"N\",\"\",IF(OR('Enrollment Form'!$B340<>\"Subscriber\",'Enrollment Form'!$C340=\"ROC\"),\"-\",IF(AND('Enrollment Form'!$B340=\"Subscriber\",'Enrollment Form'!$C340=\"Enroll\",'Enrollment Form'!$CO340<>\"\"),\"Y\",\"N\")))","v":""},{"$f":"IF($B333=\"N\",\"\",IF($S333=\"-\",\"-\",IF(AND($S333=\"Y\",'Enrollment Form'!$CO340=\"No\"),\"-\",IF(AND($S333=\"Y\",'Enrollment Form'!$CO340=\"Yes\",'Enrollment Form'!$CP340<>\"\"),\"Y\",\"N\"))))","v":""},{"$f":"IF(OR('Enrollment Form'!$AV340=\"Yes\",'Enrollment Form'!$AV340=\"\"),\"-\",IF(AND('Enrollment Form'!$AV340=\"No\",ISERROR(FIND(\"HMO\",VLOOKUP('Enrollment Form'!G340,'Enrollment Form'!H$11:J$1000,3,FALSE),1))=FALSE,COUNTA('Enrollment Form'!$AW340:$AZ340)=4),\"Y\",\"N\"))","v":"-"},{"$f":"IF($B333=\"N\",\"\",IF('Enrollment Form'!$B340=\"Subscriber\",\"-\",IF(COUNTA('Enrollment Form'!$BE340,'Enrollment Form'!$BG340)=2,\"Y\",\"N\")))","v":""},{"$f":"IF($B333=\"N\",\"\",IF(OR('Enrollment Form'!$AU340=\"\",'Enrollment Form'!$AU340=\"No\"),\"-\",IF(AND('Enrollment Form'!$AU340=\"Yes\",COUNTA('Enrollment Form'!$CK340)=1),\"Y\",\"N\")))","v":""},{"$f":"IF(OR('Enrollment Form'!$CK340=\"\",'Enrollment Form'!$CK340=\"No\"),\"-\",IF(COUNTA('Enrollment Form'!$CM340:$CN340)=2,\"Y\",\"N\"))","v":"-"},{"$f":"IF($B333=\"N\",\"\",IF(COUNTIF('Enrollment Form'!$CZ340:$DO340,\"Other\")=COUNTA('Enrollment Form'!$DF340,'Enrollment Form'!$DA340,'Enrollment Form'!$DK340,'Enrollment Form'!$DP340),\"Y\",\"N\"))","v":""},{"$f":"IF($B333=\"N\",\"\",IF(OR('Enrollment Form'!B340<>\"Subscriber\",'Enrollment Form'!C340=\"ROC\",COUNTIF('Enrollment Form'!AS340:AT340,\"Yes\")>=1),\"-\",IF(AND('Enrollment Form'!C340=\"Enroll\",COUNTIF('Enrollment Form'!AS340:AT340,\"No\")=2,'Enrollment Form'!AU340=\"\"),\"N\",\"Y\")))","v":""},{"$f":"IF(OR(B333=\"N\",'Enrollment Form'!B340<>\"Subscriber\",'Enrollment Form'!C340=\"ROC\",'Enrollment Form'!O340<>\"Multiple of Salary\"),\"-\",IF(COUNTA('Enrollment Form'!T340:U340)<2,\"N\",\"Y\"))","v":"-"},{"$f":"IF(B333=\"N\",\"\",IF(OR('Enrollment Form'!C340=\"ROC\",'Enrollment Form'!B340<>\"Subscriber\",'Enrollment Form'!O340=\"Waive\",'Enrollment Form'!O340=\"\"),\"-\",IF('Enrollment Form'!P340=\"\",\"N\",\"Y\")))","v":""},{"$f":"IF($B333=\"N\",\"\",IF(AND('Enrollment Form'!$C340=\"ROC\",'Enrollment Form'!$DS340<>\"\"),\"Y\",IF(AND('Enrollment Form'!$C340=\"ROC\",'Enrollment Form'!$DS340=\"\"),\"N\",IF(AND('Enrollment Form'!$C340=\"Enroll\",'Enrollment Form'!$B340=\"Subscriber\",'Enrollment Form'!$CQ340=\"No\",'Enrollment Form'!$DS340=\"\"),\"N\",IF(AND('Enrollment Form'!$C340=\"Enroll\",'Enrollment Form'!$B340=\"Subscriber\",'Enrollment Form'!$CQ340=\"Yes\"),\"-\",\"Y\")))))","v":""},{"$f":"IF($B333=\"N\",\"\",IF(AND('Enrollment Form'!$C340=\"ROC\",'Enrollment Form'!$DT340<>\"\"),\"Y\",IF(AND('Enrollment Form'!$C340=\"ROC\",'Enrollment Form'!$DT340=\"\"),\"N\",IF(AND('Enrollment Form'!$C340=\"Enroll\",'Enrollment Form'!$B340=\"Subscriber\",'Enrollment Form'!$CQ340=\"No\",'Enrollment Form'!$DT340=\"\"),\"N\",IF(AND('Enrollment Form'!$C340=\"Enroll\",'Enrollment Form'!$B340=\"Subscriber\",'Enrollment Form'!$CQ340=\"Yes\"),\"-\",\"Y\")))))","v":""},{"$f":"IF('Enrollment Form'!AH340=\"\",\"\",IF(ISERROR(SEARCH(\".\",'Enrollment Form'!AH340,SEARCH(\"@\",'Enrollment Form'!AH340))),\"N\",\"Y\"))","v":""},{"$f":"IF(OR($B333=\"N\",'Enrollment Form'!$G340=\"\"),\"\",IF('Enrollment Form'!$B340<>\"Subscriber\",\"-\",IF(COUNTIF('Enrollment Form'!$AS340:$AT340,\"Yes\")=2,\"N\",\"Y\")))","v":""},{"$f":"IF(OR('Enrollment Form'!$CC340=\"\",'Enrollment Form'!$CC340=\"No\"),\"-\",IF(AND('Enrollment Form'!$CC340=\"Yes\",'Enrollment Form'!$CD340=\"\"),\"N\",\"Y\"))","v":"-"},{"$f":"IF(OR('Enrollment Form'!$CE340=\"\",'Enrollment Form'!$CE340=\"No\"),\"-\",IF(AND('Enrollment Form'!$CE340=\"Yes\",'Enrollment Form'!$CF340=\"\"),\"N\",\"Y\"))","v":"-"},{"$f":"IF(OR('Enrollment Form'!$CG340=\"\",'Enrollment Form'!$CG340=\"No\"),\"-\",IF(AND('Enrollment Form'!$CG340=\"Yes\",'Enrollment Form'!$CH340=\"\"),\"N\",\"Y\"))","v":"-"},{"$f":"IF(OR('Enrollment Form'!$CG340=\"\",'Enrollment Form'!$CG340=\"No\"),\"-\",IF(AND('Enrollment Form'!$CG340=\"Yes\",'Enrollment Form'!$CI340=\"\"),\"N\",\"Y\"))","v":"-"},{"$f":"IF('Enrollment Form'!B340<>\"Subscriber\",\"-\",IF(AND('Enrollment Form'!B340=\"Subscriber\",'Enrollment Form'!C340=\"Enroll\",'Enrollment Form'!AA340=\"\"),\"N\",\"Y\"))","v":"-"},{"$f":"IF(OR('Enrollment Form'!B340=\"Subscriber\",'Enrollment Form'!B340=\"\"),\"-\",IF('Enrollment Form'!BI340=\"\",\"N\",\"Y\"))","v":"-"},{"$f":"IF('Enrollment Form'!B340<>\"Subscriber\",\"-\",IF(AND('Enrollment Form'!B340=\"Subscriber\",'Enrollment Form'!G340=\"\"),\"N\",\"Y\"))","v":"-"},{"$f":"IF('Enrollment Form'!A340=\"\",\"\",IF('Enrollment Form'!B340=\"Subscriber\",\"-\",IF(AND('Enrollment Form'!B340<>\"Subscriber\",'Enrollment Form'!G340='Enrollment Form'!H340),\"N\",\"Y\")))","v":""},0]
[341,{"$f":"IF('Enrollment Form'!$A341<>\"\",\"Y\",\"N\")","v":"N"},{"$f":"IF(AND('Enrollment Form'!$B341=\"\",'Enrollment Form'!$C341<>\"\"),\"N\",IF($B334=\"N\",\"\",\"Y\"))","v":""},{"$f":"IF(OR($B334=\"N\",'Enrollment Form'!G341=\"\"),\"\",IF('Enrollment Form'!$B341<>\"Subscriber\",\"\",IF('Enrollment Form'!$G341='Enrollment Form'!$H341,\"Y\",\"N\")))","v":""},{"$f":"IF($B334=\"N\",\"\",IF(AND(COUNTIFS('Enrollment Form'!$H$11:$H$1000,'Enrollment Form'!$H341,'Enrollment Form'!$B$11:$B$1000,'Enrollment Form'!$B341)>1,'Enrollment Form'!$H341<>\"\"),\"N\",\"Y\"))","v":""},{"$f":"IF($B334=\"N\",\"\",IF(LEN('Enrollment Form'!$Y341)=0,\"\",IF(LEN('Enrollment Form'!$Y341)<>5,\"N\",\"Y\")))","v":""},{"$f":"IF($B334=\"N\",\"\",IF(LEN('Enrollment Form'!$AD341=0),\"\",IF(LEN('Enrollment Form'!$AD341)<>5,\"N\",\"Y\")))","v":""},{"$f":"IF($B334=\"N\",\"\",IF(LEN('Enrollment Form'!$BL341=0),\"\",IF(LEN('Enrollment Form'!$BL341)<>5,\"N\",\"Y\")))","v":""},{"$f":"IF($B334=\"N\",\"\",IF(LEN('Enrollment Form'!$AE341)=0,\"\",IF(LEN('Enrollment Form'!$AE341)<>10,\"N\",\"Y\")))","v":""},{"$f":"IF($B334=\"N\",\"\",IF(LEN('Enrollment Form'!$AF341)=0,\"\",IF(LEN('Enrollment Form'!$AF341)<>10,\"N\",\"Y\")))","v":""},{"$f":"IF('Enrollment Form'!$O341<>\"Graded\",\"-\",IF(AND('Enrollment Form'!$O341=\"Graded\",'Enrollment Form'!$AO341<>\"\"),\"Y\",\"N\"))","v":"-"},{"$f":"IF($B334=\"N\",\"\",IF(OR('Enrollment Form'!$B341<>\"Subscriber\",'Enrollment Form'!$C341=\"ROC\"),\"-\",IF(AND('Enrollment Form'!$B341=\"Subscriber\",'Enrollment Form'!$C341=\"Enroll\",'Enrollment Form'!$AJ341<>\"\"),\"Y\",\"N\")))","v":""},{"$f":"IF($B334=\"N\",\"\",IF(OR('Enrollment Form'!$B341<>\"Subscriber\",'Enrollment Form'!$C341=\"ROC\"),\"-\",IF(AND('Enrollment Form'!$B341=\"Subscriber\",'Enrollment Form'!$C341=\"Enroll\",'Enrollment Form'!$AK341<>\"\"),\"Y\",\"N\")))","v":""},{"$f":"IF($B334=\"N\",\"\",IF(OR('Enrollment Form'!$B341<>\"Subscriber\",'Enrollment Form'!$C341=\"ROC\"),\"-\",IF(AND('Enrollment Form'!$B341=\"Subscriber\",'Enrollment Form'!$C341=\"Enroll\",'Enrollment Form'!$AL341<>\"\"),\"Y\",\"N\")))","v":""},{"$f":"IF($B334=\"N\",\"\",IF(OR('Enrollment Form'!$B341<>\"Subscriber\",'Enrollment Form'!$C341=\"ROC\"),\"-\",IF(AND('Enrollment Form'!$B341=\"Subscriber\",'Enrollment Form'!$C341=\"Enroll\",'Enrollment Form'!$AM341<>\"\"),\"Y\",\"N\")))","v":""},{"$f":"IF($B334=\"N\",\"\",IF(OR('Enrollment Form'!$B341<>\"Subscriber\",'Enrollment Form'!$C341=\"ROC\"),\"-\",IF(AND('Enrollment Form'!$B341=\"Subscriber\",'Enrollment Form'!$C341=\"Enroll\",'Enrollment Form'!$AN341<>\"\"),\"Y\",\"N\")))","v":""},{"$f":"IF($B334=\"N\",\"\",IF(OR('Enrollment Form'!$B341<>\"Subscriber\",'Enrollment Form'!$C341=\"ROC\"),\"-\",IF(AND('Enrollment Form'!$B341=\"Subscriber\",'Enrollment Form'!$C341=\"Enroll\",'Enrollment Form'!$AP341<>\"\"),\"Y\",\"N\")))","v":""},{"$f":"IF($B334=\"N\",\"\",IF($Q334=\"-\",\"-\",IF(AND($Q334=\"Y\",'Enrollment Form'!$AP341=\"No\"),\"-\",IF(AND($Q334=\"Y\",'Enrollment Form'!$AP341=\"Yes\",'Enrollment Form'!$AQ341<>\"\"),\"Y\",\"N\"))))","v":""},{"$f":"IF($B334=\"N\",\"\",IF(OR('Enrollment Form'!$B341<>\"Subscriber\",'Enrollment Form'!$C341=\"ROC\"),\"-\",IF(AND('Enrollment Form'!$B341=\"Subscriber\",'Enrollment Form'!$C341=\"Enroll\",'Enrollment Form'!$CO341<>\"\"),\"Y\",\"N\")))","v":""},{"$f":"IF($B334=\"N\",\"\",IF($S334=\"-\",\"-\",IF(AND($S334=\"Y\",'Enrollment Form'!$CO341=\"No\"),\"-\",IF(AND($S334=\"Y\",'Enrollment Form'!$CO341=\"Yes\",'Enrollment Form'!$CP341<>\"\"),\"Y\",\"N\"))))","v":""},{"$f":"IF(OR('Enrollment Form'!$AV341=\"Yes\",'Enrollment Form'!$AV341=\"\"),\"-\",IF(AND('Enrollment Form'!$AV341=\"No\",ISERROR(FIND(\"HMO\",VLOOKUP('Enrollment Form'!G341,'Enrollment Form'!H$11:J$1000,3,FALSE),1))=FALSE,COUNTA('Enrollment Form'!$AW341:$AZ341)=4),\"Y\",\"N\"))","v":"-"},{"$f":"IF($B334=\"N\",\"\",IF('Enrollment Form'!$B341=\"Subscriber\",\"-\",IF(COUNTA('Enrollment Form'!$BE341,'Enrollment Form'!$BG341)=2,\"Y\",\"N\")))","v":""},{"$f":"IF($B334=\"N\",\"\",IF(OR('Enrollment Form'!$AU341=\"\",'Enrollment Form'!$AU341=\"No\"),\"-\",IF(AND('Enrollment Form'!$AU341=\"Yes\",COUNTA('Enrollment Form'!$CK341)=1),\"Y\",\"N\")))","v":""},{"$f":"IF(OR('Enrollment Form'!$CK341=\"\",'Enrollment Form'!$CK341=\"No\"),\"-\",IF(COUNTA('Enrollment Form'!$CM341:$CN341)=2,\"Y\",\"N\"))","v":"-"},{"$f":"IF($B334=\"N\",\"\",IF(COUNTIF('Enrollment Form'!$CZ341:$DO341,\"Other\")=COUNTA('Enrollment Form'!$DF341,'Enrollment Form'!$DA341,'Enrollment Form'!$DK341,'Enrollment Form'!$DP341),\"Y\",\"N\"))","v":""},{"$f":"IF($B334=\"N\",\"\",IF(OR('Enrollment Form'!B341<>\"Subscriber\",'Enrollment Form'!C341=\"ROC\",COUNTIF('Enrollment Form'!AS341:AT341,\"Yes\")>=1),\"-\",IF(AND('Enrollment Form'!C341=\"Enroll\",COUNTIF('Enrollment Form'!AS341:AT341,\"No\")=2,'Enrollment Form'!AU341=\"\"),\"N\",\"Y\")))","v":""},{"$f":"IF(OR(B334=\"N\",'Enrollment Form'!B341<>\"Subscriber\",'Enrollment Form'!C341=\"ROC\",'Enrollment Form'!O341<>\"Multiple of Salary\"),\"-\",IF(COUNTA('Enrollment Form'!T341:U341)<2,\"N\",\"Y\"))","v":"-"},{"$f":"IF(B334=\"N\",\"\",IF(OR('Enrollment Form'!C341=\"ROC\",'Enrollment Form'!B341<>\"Subscriber\",'Enrollment Form'!O341=\"Waive\",'Enrollment Form'!O341=\"\"),\"-\",IF('Enrollment Form'!P341=\"\",\"N\",\"Y\")))","v":""},{"$f":"IF($B334=\"N\",\"\",IF(AND('Enrollment Form'!$C341=\"ROC\",'Enrollment Form'!$DS341<>\"\"),\"Y\",IF(AND('Enrollment Form'!$C341=\"ROC\",'Enrollment Form'!$DS341=\"\"),\"N\",IF(AND('Enrollment Form'!$C341=\"Enroll\",'Enrollment Form'!$B341=\"Subscriber\",'Enrollment Form'!$CQ341=\"No\",'Enrollment Form'!$DS341=\"\"),\"N\",IF(AND('Enrollment Form'!$C341=\"Enroll\",'Enrollment Form'!$B341=\"Subscriber\",'Enrollment Form'!$CQ341=\"Yes\"),\"-\",\"Y\")))))","v":""},{"$f":"IF($B334=\"N\",\"\",IF(AND('Enrollment Form'!$C341=\"ROC\",'Enrollment Form'!$DT341<>\"\"),\"Y\",IF(AND('Enrollment Form'!$C341=\"ROC\",'Enrollment Form'!$DT341=\"\"),\"N\",IF(AND('Enrollment Form'!$C341=\"Enroll\",'Enrollment Form'!$B341=\"Subscriber\",'Enrollment Form'!$CQ341=\"No\",'Enrollment Form'!$DT341=\"\"),\"N\",IF(AND('Enrollment Form'!$C341=\"Enroll\",'Enrollment Form'!$B341=\"Subscriber\",'Enrollment Form'!$CQ341=\"Yes\"),\"-\",\"Y\")))))","v":""},{"$f":"IF('Enrollment Form'!AH341=\"\",\"\",IF(ISERROR(SEARCH(\".\",'Enrollment Form'!AH341,SEARCH(\"@\",'Enrollment Form'!AH341))),\"N\",\"Y\"))","v":""},{"$f":"IF(OR($B334=\"N\",'Enrollment Form'!$G341=\"\"),\"\",IF('Enrollment Form'!$B341<>\"Subscriber\",\"-\",IF(COUNTIF('Enrollment Form'!$AS341:$AT341,\"Yes\")=2,\"N\",\"Y\")))","v":""},{"$f":"IF(OR('Enrollment Form'!$CC341=\"\",'Enrollment Form'!$CC341=\"No\"),\"-\",IF(AND('Enrollment Form'!$CC341=\"Yes\",'Enrollment Form'!$CD341=\"\"),\"N\",\"Y\"))","v":"-"},{"$f":"IF(OR('Enrollment Form'!$CE341=\"\",'Enrollment Form'!$CE341=\"No\"),\"-\",IF(AND('Enrollment Form'!$CE341=\"Yes\",'Enrollment Form'!$CF341=\"\"),\"N\",\"Y\"))","v":"-"},{"$f":"IF(OR('Enrollment Form'!$CG341=\"\",'Enrollment Form'!$CG341=\"No\"),\"-\",IF(AND('Enrollment Form'!$CG341=\"Yes\",'Enrollment Form'!$CH341=\"\"),\"N\",\"Y\"))","v":"-"},{"$f":"IF(OR('Enrollment Form'!$CG341=\"\",'Enrollment Form'!$CG341=\"No\"),\"-\",IF(AND('Enrollment Form'!$CG341=\"Yes\",'Enrollment Form'!$CI341=\"\"),\"N\",\"Y\"))","v":"-"},{"$f":"IF('Enrollment Form'!B341<>\"Subscriber\",\"-\",IF(AND('Enrollment Form'!B341=\"Subscriber\",'Enrollment Form'!C341=\"Enroll\",'Enrollment Form'!AA341=\"\"),\"N\",\"Y\"))","v":"-"},{"$f":"IF(OR('Enrollment Form'!B341=\"Subscriber\",'Enrollment Form'!B341=\"\"),\"-\",IF('Enrollment Form'!BI341=\"\",\"N\",\"Y\"))","v":"-"},{"$f":"IF('Enrollment Form'!B341<>\"Subscriber\",\"-\",IF(AND('Enrollment Form'!B341=\"Subscriber\",'Enrollment Form'!G341=\"\"),\"N\",\"Y\"))","v":"-"},{"$f":"IF('Enrollment Form'!A341=\"\",\"\",IF('Enrollment Form'!B341=\"Subscriber\",\"-\",IF(AND('Enrollment Form'!B341<>\"Subscriber\",'Enrollment Form'!G341='Enrollment Form'!H341),\"N\",\"Y\")))","v":""},0]
[342,{"$f":"IF('Enrollment Form'!$A342<>\"\",\"Y\",\"N\")","v":"N"},{"$f":"IF(AND('Enrollment Form'!$B342=\"\",'Enrollment Form'!$C342<>\"\"),\"N\",IF($B335=\"N\",\"\",\"Y\"))","v":""},{"$f":"IF(OR($B335=\"N\",'Enrollment Form'!G342=\"\"),\"\",IF('Enrollment Form'!$B342<>\"Subscriber\",\"\",IF('Enrollment Form'!$G342='Enrollment Form'!$H342,\"Y\",\"N\")))","v":""},{"$f":"IF($B335=\"N\",\"\",IF(AND(COUNTIFS('Enrollment Form'!$H$11:$H$1000,'Enrollment Form'!$H342,'Enrollment Form'!$B$11:$B$1000,'Enrollment Form'!$B342)>1,'Enrollment Form'!$H342<>\"\"),\"N\",\"Y\"))","v":""},{"$f":"IF($B335=\"N\",\"\",IF(LEN('Enrollment Form'!$Y342)=0,\"\",IF(LEN('Enrollment Form'!$Y342)<>5,\"N\",\"Y\")))","v":""},{"$f":"IF($B335=\"N\",\"\",IF(LEN('Enrollment Form'!$AD342=0),\"\",IF(LEN('Enrollment Form'!$AD342)<>5,\"N\",\"Y\")))","v":""},{"$f":"IF($B335=\"N\",\"\",IF(LEN('Enrollment Form'!$BL342=0),\"\",IF(LEN('Enrollment Form'!$BL342)<>5,\"N\",\"Y\")))","v":""},{"$f":"IF($B335=\"N\",\"\",IF(LEN('Enrollment Form'!$AE342)=0,\"\",IF(LEN('Enrollment Form'!$AE342)<>10,\"N\",\"Y\")))","v":""},{"$f":"IF($B335=\"N\",\"\",IF(LEN('Enrollment Form'!$AF342)=0,\"\",IF(LEN('Enrollment Form'!$AF342)<>10,\"N\",\"Y\")))","v":""},{"$f":"IF('Enrollment Form'!$O342<>\"Graded\",\"-\",IF(AND('Enrollment Form'!$O342=\"Graded\",'Enrollment Form'!$AO342<>\"\"),\"Y\",\"N\"))","v":"-"},{"$f":"IF($B335=\"N\",\"\",IF(OR('Enrollment Form'!$B342<>\"Subscriber\",'Enrollment Form'!$C342=\"ROC\"),\"-\",IF(AND('Enrollment Form'!$B342=\"Subscriber\",'Enrollment Form'!$C342=\"Enroll\",'Enrollment Form'!$AJ342<>\"\"),\"Y\",\"N\")))","v":""},{"$f":"IF($B335=\"N\",\"\",IF(OR('Enrollment Form'!$B342<>\"Subscriber\",'Enrollment Form'!$C342=\"ROC\"),\"-\",IF(AND('Enrollment Form'!$B342=\"Subscriber\",'Enrollment Form'!$C342=\"Enroll\",'Enrollment Form'!$AK342<>\"\"),\"Y\",\"N\")))","v":""},{"$f":"IF($B335=\"N\",\"\",IF(OR('Enrollment Form'!$B342<>\"Subscriber\",'Enrollment Form'!$C342=\"ROC\"),\"-\",IF(AND('Enrollment Form'!$B342=\"Subscriber\",'Enrollment Form'!$C342=\"Enroll\",'Enrollment Form'!$AL342<>\"\"),\"Y\",\"N\")))","v":""},{"$f":"IF($B335=\"N\",\"\",IF(OR('Enrollment Form'!$B342<>\"Subscriber\",'Enrollment Form'!$C342=\"ROC\"),\"-\",IF(AND('Enrollment Form'!$B342=\"Subscriber\",'Enrollment Form'!$C342=\"Enroll\",'Enrollment Form'!$AM342<>\"\"),\"Y\",\"N\")))","v":""},{"$f":"IF($B335=\"N\",\"\",IF(OR('Enrollment Form'!$B342<>\"Subscriber\",'Enrollment Form'!$C342=\"ROC\"),\"-\",IF(AND('Enrollment Form'!$B342=\"Subscriber\",'Enrollment Form'!$C342=\"Enroll\",'Enrollment Form'!$AN342<>\"\"),\"Y\",\"N\")))","v":""},{"$f":"IF($B335=\"N\",\"\",IF(OR('Enrollment Form'!$B342<>\"Subscriber\",'Enrollment Form'!$C342=\"ROC\"),\"-\",IF(AND('Enrollment Form'!$B342=\"Subscriber\",'Enrollment Form'!$C342=\"Enroll\",'Enrollment Form'!$AP342<>\"\"),\"Y\",\"N\")))","v":""},{"$f":"IF($B335=\"N\",\"\",IF($Q335=\"-\",\"-\",IF(AND($Q335=\"Y\",'Enrollment Form'!$AP342=\"No\"),\"-\",IF(AND($Q335=\"Y\",'Enrollment Form'!$AP342=\"Yes\",'Enrollment Form'!$AQ342<>\"\"),\"Y\",\"N\"))))","v":""},{"$f":"IF($B335=\"N\",\"\",IF(OR('Enrollment Form'!$B342<>\"Subscriber\",'Enrollment Form'!$C342=\"ROC\"),\"-\",IF(AND('Enrollment Form'!$B342=\"Subscriber\",'Enrollment Form'!$C342=\"Enroll\",'Enrollment Form'!$CO342<>\"\"),\"Y\",\"N\")))","v":""},{"$f":"IF($B335=\"N\",\"\",IF($S335=\"-\",\"-\",IF(AND($S335=\"Y\",'Enrollment Form'!$CO342=\"No\"),\"-\",IF(AND($S335=\"Y\",'Enrollment Form'!$CO342=\"Yes\",'Enrollment Form'!$CP342<>\"\"),\"Y\",\"N\"))))","v":""},{"$f":"IF(OR('Enrollment Form'!$AV342=\"Yes\",'Enrollment Form'!$AV342=\"\"),\"-\",IF(AND('Enrollment Form'!$AV342=\"No\",ISERROR(FIND(\"HMO\",VLOOKUP('Enrollment Form'!G342,'Enrollment Form'!H$11:J$1000,3,FALSE),1))=FALSE,COUNTA('Enrollment Form'!$AW342:$AZ342)=4),\"Y\",\"N\"))","v":"-"},{"$f":"IF($B335=\"N\",\"\",IF('Enrollment Form'!$B342=\"Subscriber\",\"-\",IF(COUNTA('Enrollment Form'!$BE342,'Enrollment Form'!$BG342)=2,\"Y\",\"N\")))","v":""},{"$f":"IF($B335=\"N\",\"\",IF(OR('Enrollment Form'!$AU342=\"\",'Enrollment Form'!$AU342=\"No\"),\"-\",IF(AND('Enrollment Form'!$AU342=\"Yes\",COUNTA('Enrollment Form'!$CK342)=1),\"Y\",\"N\")))","v":""},{"$f":"IF(OR('Enrollment Form'!$CK342=\"\",'Enrollment Form'!$CK342=\"No\"),\"-\",IF(COUNTA('Enrollment Form'!$CM342:$CN342)=2,\"Y\",\"N\"))","v":"-"},{"$f":"IF($B335=\"N\",\"\",IF(COUNTIF('Enrollment Form'!$CZ342:$DO342,\"Other\")=COUNTA('Enrollment Form'!$DF342,'Enrollment Form'!$DA342,'Enrollment Form'!$DK342,'Enrollment Form'!$DP342),\"Y\",\"N\"))","v":""},{"$f":"IF($B335=\"N\",\"\",IF(OR('Enrollment Form'!B342<>\"Subscriber\",'Enrollment Form'!C342=\"ROC\",COUNTIF('Enrollment Form'!AS342:AT342,\"Yes\")>=1),\"-\",IF(AND('Enrollment Form'!C342=\"Enroll\",COUNTIF('Enrollment Form'!AS342:AT342,\"No\")=2,'Enrollment Form'!AU342=\"\"),\"N\",\"Y\")))","v":""},{"$f":"IF(OR(B335=\"N\",'Enrollment Form'!B342<>\"Subscriber\",'Enrollment Form'!C342=\"ROC\",'Enrollment Form'!O342<>\"Multiple of Salary\"),\"-\",IF(COUNTA('Enrollment Form'!T342:U342)<2,\"N\",\"Y\"))","v":"-"},{"$f":"IF(B335=\"N\",\"\",IF(OR('Enrollment Form'!C342=\"ROC\",'Enrollment Form'!B342<>\"Subscriber\",'Enrollment Form'!O342=\"Waive\",'Enrollment Form'!O342=\"\"),\"-\",IF('Enrollment Form'!P342=\"\",\"N\",\"Y\")))","v":""},{"$f":"IF($B335=\"N\",\"\",IF(AND('Enrollment Form'!$C342=\"ROC\",'Enrollment Form'!$DS342<>\"\"),\"Y\",IF(AND('Enrollment Form'!$C342=\"ROC\",'Enrollment Form'!$DS342=\"\"),\"N\",IF(AND('Enrollment Form'!$C342=\"Enroll\",'Enrollment Form'!$B342=\"Subscriber\",'Enrollment Form'!$CQ342=\"No\",'Enrollment Form'!$DS342=\"\"),\"N\",IF(AND('Enrollment Form'!$C342=\"Enroll\",'Enrollment Form'!$B342=\"Subscriber\",'Enrollment Form'!$CQ342=\"Yes\"),\"-\",\"Y\")))))","v":""},{"$f":"IF($B335=\"N\",\"\",IF(AND('Enrollment Form'!$C342=\"ROC\",'Enrollment Form'!$DT342<>\"\"),\"Y\",IF(AND('Enrollment Form'!$C342=\"ROC\",'Enrollment Form'!$DT342=\"\"),\"N\",IF(AND('Enrollment Form'!$C342=\"Enroll\",'Enrollment Form'!$B342=\"Subscriber\",'Enrollment Form'!$CQ342=\"No\",'Enrollment Form'!$DT342=\"\"),\"N\",IF(AND('Enrollment Form'!$C342=\"Enroll\",'Enrollment Form'!$B342=\"Subscriber\",'Enrollment Form'!$CQ342=\"Yes\"),\"-\",\"Y\")))))","v":""},{"$f":"IF('Enrollment Form'!AH342=\"\",\"\",IF(ISERROR(SEARCH(\".\",'Enrollment Form'!AH342,SEARCH(\"@\",'Enrollment Form'!AH342))),\"N\",\"Y\"))","v":""},{"$f":"IF(OR($B335=\"N\",'Enrollment Form'!$G342=\"\"),\"\",IF('Enrollment Form'!$B342<>\"Subscriber\",\"-\",IF(COUNTIF('Enrollment Form'!$AS342:$AT342,\"Yes\")=2,\"N\",\"Y\")))","v":""},{"$f":"IF(OR('Enrollment Form'!$CC342=\"\",'Enrollment Form'!$CC342=\"No\"),\"-\",IF(AND('Enrollment Form'!$CC342=\"Yes\",'Enrollment Form'!$CD342=\"\"),\"N\",\"Y\"))","v":"-"},{"$f":"IF(OR('Enrollment Form'!$CE342=\"\",'Enrollment Form'!$CE342=\"No\"),\"-\",IF(AND('Enrollment Form'!$CE342=\"Yes\",'Enrollment Form'!$CF342=\"\"),\"N\",\"Y\"))","v":"-"},{"$f":"IF(OR('Enrollment Form'!$CG342=\"\",'Enrollment Form'!$CG342=\"No\"),\"-\",IF(AND('Enrollment Form'!$CG342=\"Yes\",'Enrollment Form'!$CH342=\"\"),\"N\",\"Y\"))","v":"-"},{"$f":"IF(OR('Enrollment Form'!$CG342=\"\",'Enrollment Form'!$CG342=\"No\"),\"-\",IF(AND('Enrollment Form'!$CG342=\"Yes\",'Enrollment Form'!$CI342=\"\"),\"N\",\"Y\"))","v":"-"},{"$f":"IF('Enrollment Form'!B342<>\"Subscriber\",\"-\",IF(AND('Enrollment Form'!B342=\"Subscriber\",'Enrollment Form'!C342=\"Enroll\",'Enrollment Form'!AA342=\"\"),\"N\",\"Y\"))","v":"-"},{"$f":"IF(OR('Enrollment Form'!B342=\"Subscriber\",'Enrollment Form'!B342=\"\"),\"-\",IF('Enrollment Form'!BI342=\"\",\"N\",\"Y\"))","v":"-"},{"$f":"IF('Enrollment Form'!B342<>\"Subscriber\",\"-\",IF(AND('Enrollment Form'!B342=\"Subscriber\",'Enrollment Form'!G342=\"\"),\"N\",\"Y\"))","v":"-"},{"$f":"IF('Enrollment Form'!A342=\"\",\"\",IF('Enrollment Form'!B342=\"Subscriber\",\"-\",IF(AND('Enrollment Form'!B342<>\"Subscriber\",'Enrollment Form'!G342='Enrollment Form'!H342),\"N\",\"Y\")))","v":""},0]
[343,{"$f":"IF('Enrollment Form'!$A343<>\"\",\"Y\",\"N\")","v":"N"},{"$f":"IF(AND('Enrollment Form'!$B343=\"\",'Enrollment Form'!$C343<>\"\"),\"N\",IF($B336=\"N\",\"\",\"Y\"))","v":""},{"$f":"IF(OR($B336=\"N\",'Enrollment Form'!G343=\"\"),\"\",IF('Enrollment Form'!$B343<>\"Subscriber\",\"\",IF('Enrollment Form'!$G343='Enrollment Form'!$H343,\"Y\",\"N\")))","v":""},{"$f":"IF($B336=\"N\",\"\",IF(AND(COUNTIFS('Enrollment Form'!$H$11:$H$1000,'Enrollment Form'!$H343,'Enrollment Form'!$B$11:$B$1000,'Enrollment Form'!$B343)>1,'Enrollment Form'!$H343<>\"\"),\"N\",\"Y\"))","v":""},{"$f":"IF($B336=\"N\",\"\",IF(LEN('Enrollment Form'!$Y343)=0,\"\",IF(LEN('Enrollment Form'!$Y343)<>5,\"N\",\"Y\")))","v":""},{"$f":"IF($B336=\"N\",\"\",IF(LEN('Enrollment Form'!$AD343=0),\"\",IF(LEN('Enrollment Form'!$AD343)<>5,\"N\",\"Y\")))","v":""},{"$f":"IF($B336=\"N\",\"\",IF(LEN('Enrollment Form'!$BL343=0),\"\",IF(LEN('Enrollment Form'!$BL343)<>5,\"N\",\"Y\")))","v":""},{"$f":"IF($B336=\"N\",\"\",IF(LEN('Enrollment Form'!$AE343)=0,\"\",IF(LEN('Enrollment Form'!$AE343)<>10,\"N\",\"Y\")))","v":""},{"$f":"IF($B336=\"N\",\"\",IF(LEN('Enrollment Form'!$AF343)=0,\"\",IF(LEN('Enrollment Form'!$AF343)<>10,\"N\",\"Y\")))","v":""},{"$f":"IF('Enrollment Form'!$O343<>\"Graded\",\"-\",IF(AND('Enrollment Form'!$O343=\"Graded\",'Enrollment Form'!$AO343<>\"\"),\"Y\",\"N\"))","v":"-"},{"$f":"IF($B336=\"N\",\"\",IF(OR('Enrollment Form'!$B343<>\"Subscriber\",'Enrollment Form'!$C343=\"ROC\"),\"-\",IF(AND('Enrollment Form'!$B343=\"Subscriber\",'Enrollment Form'!$C343=\"Enroll\",'Enrollment Form'!$AJ343<>\"\"),\"Y\",\"N\")))","v":""},{"$f":"IF($B336=\"N\",\"\",IF(OR('Enrollment Form'!$B343<>\"Subscriber\",'Enrollment Form'!$C343=\"ROC\"),\"-\",IF(AND('Enrollment Form'!$B343=\"Subscriber\",'Enrollment Form'!$C343=\"Enroll\",'Enrollment Form'!$AK343<>\"\"),\"Y\",\"N\")))","v":""},{"$f":"IF($B336=\"N\",\"\",IF(OR('Enrollment Form'!$B343<>\"Subscriber\",'Enrollment Form'!$C343=\"ROC\"),\"-\",IF(AND('Enrollment Form'!$B343=\"Subscriber\",'Enrollment Form'!$C343=\"Enroll\",'Enrollment Form'!$AL343<>\"\"),\"Y\",\"N\")))","v":""},{"$f":"IF($B336=\"N\",\"\",IF(OR('Enrollment Form'!$B343<>\"Subscriber\",'Enrollment Form'!$C343=\"ROC\"),\"-\",IF(AND('Enrollment Form'!$B343=\"Subscriber\",'Enrollment Form'!$C343=\"Enroll\",'Enrollment Form'!$AM343<>\"\"),\"Y\",\"N\")))","v":""},{"$f":"IF($B336=\"N\",\"\",IF(OR('Enrollment Form'!$B343<>\"Subscriber\",'Enrollment Form'!$C343=\"ROC\"),\"-\",IF(AND('Enrollment Form'!$B343=\"Subscriber\",'Enrollment Form'!$C343=\"Enroll\",'Enrollment Form'!$AN343<>\"\"),\"Y\",\"N\")))","v":""},{"$f":"IF($B336=\"N\",\"\",IF(OR('Enrollment Form'!$B343<>\"Subscriber\",'Enrollment Form'!$C343=\"ROC\"),\"-\",IF(AND('Enrollment Form'!$B343=\"Subscriber\",'Enrollment Form'!$C343=\"Enroll\",'Enrollment Form'!$AP343<>\"\"),\"Y\",\"N\")))","v":""},{"$f":"IF($B336=\"N\",\"\",IF($Q336=\"-\",\"-\",IF(AND($Q336=\"Y\",'Enrollment Form'!$AP343=\"No\"),\"-\",IF(AND($Q336=\"Y\",'Enrollment Form'!$AP343=\"Yes\",'Enrollment Form'!$AQ343<>\"\"),\"Y\",\"N\"))))","v":""},{"$f":"IF($B336=\"N\",\"\",IF(OR('Enrollment Form'!$B343<>\"Subscriber\",'Enrollment Form'!$C343=\"ROC\"),\"-\",IF(AND('Enrollment Form'!$B343=\"Subscriber\",'Enrollment Form'!$C343=\"Enroll\",'Enrollment Form'!$CO343<>\"\"),\"Y\",\"N\")))","v":""},{"$f":"IF($B336=\"N\",\"\",IF($S336=\"-\",\"-\",IF(AND($S336=\"Y\",'Enrollment Form'!$CO343=\"No\"),\"-\",IF(AND($S336=\"Y\",'Enrollment Form'!$CO343=\"Yes\",'Enrollment Form'!$CP343<>\"\"),\"Y\",\"N\"))))","v":""},{"$f":"IF(OR('Enrollment Form'!$AV343=\"Yes\",'Enrollment Form'!$AV343=\"\"),\"-\",IF(AND('Enrollment Form'!$AV343=\"No\",ISERROR(FIND(\"HMO\",VLOOKUP('Enrollment Form'!G343,'Enrollment Form'!H$11:J$1000,3,FALSE),1))=FALSE,COUNTA('Enrollment Form'!$AW343:$AZ343)=4),\"Y\",\"N\"))","v":"-"},{"$f":"IF($B336=\"N\",\"\",IF('Enrollment Form'!$B343=\"Subscriber\",\"-\",IF(COUNTA('Enrollment Form'!$BE343,'Enrollment Form'!$BG343)=2,\"Y\",\"N\")))","v":""},{"$f":"IF($B336=\"N\",\"\",IF(OR('Enrollment Form'!$AU343=\"\",'Enrollment Form'!$AU343=\"No\"),\"-\",IF(AND('Enrollment Form'!$AU343=\"Yes\",COUNTA('Enrollment Form'!$CK343)=1),\"Y\",\"N\")))","v":""},{"$f":"IF(OR('Enrollment Form'!$CK343=\"\",'Enrollment Form'!$CK343=\"No\"),\"-\",IF(COUNTA('Enrollment Form'!$CM343:$CN343)=2,\"Y\",\"N\"))","v":"-"},{"$f":"IF($B336=\"N\",\"\",IF(COUNTIF('Enrollment Form'!$CZ343:$DO343,\"Other\")=COUNTA('Enrollment Form'!$DF343,'Enrollment Form'!$DA343,'Enrollment Form'!$DK343,'Enrollment Form'!$DP343),\"Y\",\"N\"))","v":""},{"$f":"IF($B336=\"N\",\"\",IF(OR('Enrollment Form'!B343<>\"Subscriber\",'Enrollment Form'!C343=\"ROC\",COUNTIF('Enrollment Form'!AS343:AT343,\"Yes\")>=1),\"-\",IF(AND('Enrollment Form'!C343=\"Enroll\",COUNTIF('Enrollment Form'!AS343:AT343,\"No\")=2,'Enrollment Form'!AU343=\"\"),\"N\",\"Y\")))","v":""},{"$f":"IF(OR(B336=\"N\",'Enrollment Form'!B343<>\"Subscriber\",'Enrollment Form'!C343=\"ROC\",'Enrollment Form'!O343<>\"Multiple of Salary\"),\"-\",IF(COUNTA('Enrollment Form'!T343:U343)<2,\"N\",\"Y\"))","v":"-"},{"$f":"IF(B336=\"N\",\"\",IF(OR('Enrollment Form'!C343=\"ROC\",'Enrollment Form'!B343<>\"Subscriber\",'Enrollment Form'!O343=\"Waive\",'Enrollment Form'!O343=\"\"),\"-\",IF('Enrollment Form'!P343=\"\",\"N\",\"Y\")))","v":""},{"$f":"IF($B336=\"N\",\"\",IF(AND('Enrollment Form'!$C343=\"ROC\",'Enrollment Form'!$DS343<>\"\"),\"Y\",IF(AND('Enrollment Form'!$C343=\"ROC\",'Enrollment Form'!$DS343=\"\"),\"N\",IF(AND('Enrollment Form'!$C343=\"Enroll\",'Enrollment Form'!$B343=\"Subscriber\",'Enrollment Form'!$CQ343=\"No\",'Enrollment Form'!$DS343=\"\"),\"N\",IF(AND('Enrollment Form'!$C343=\"Enroll\",'Enrollment Form'!$B343=\"Subscriber\",'Enrollment Form'!$CQ343=\"Yes\"),\"-\",\"Y\")))))","v":""},{"$f":"IF($B336=\"N\",\"\",IF(AND('Enrollment Form'!$C343=\"ROC\",'Enrollment Form'!$DT343<>\"\"),\"Y\",IF(AND('Enrollment Form'!$C343=\"ROC\",'Enrollment Form'!$DT343=\"\"),\"N\",IF(AND('Enrollment Form'!$C343=\"Enroll\",'Enrollment Form'!$B343=\"Subscriber\",'Enrollment Form'!$CQ343=\"No\",'Enrollment Form'!$DT343=\"\"),\"N\",IF(AND('Enrollment Form'!$C343=\"Enroll\",'Enrollment Form'!$B343=\"Subscriber\",'Enrollment Form'!$CQ343=\"Yes\"),\"-\",\"Y\")))))","v":""},{"$f":"IF('Enrollment Form'!AH343=\"\",\"\",IF(ISERROR(SEARCH(\".\",'Enrollment Form'!AH343,SEARCH(\"@\",'Enrollment Form'!AH343))),\"N\",\"Y\"))","v":""},{"$f":"IF(OR($B336=\"N\",'Enrollment Form'!$G343=\"\"),\"\",IF('Enrollment Form'!$B343<>\"Subscriber\",\"-\",IF(COUNTIF('Enrollment Form'!$AS343:$AT343,\"Yes\")=2,\"N\",\"Y\")))","v":""},{"$f":"IF(OR('Enrollment Form'!$CC343=\"\",'Enrollment Form'!$CC343=\"No\"),\"-\",IF(AND('Enrollment Form'!$CC343=\"Yes\",'Enrollment Form'!$CD343=\"\"),\"N\",\"Y\"))","v":"-"},{"$f":"IF(OR('Enrollment Form'!$CE343=\"\",'Enrollment Form'!$CE343=\"No\"),\"-\",IF(AND('Enrollment Form'!$CE343=\"Yes\",'Enrollment Form'!$CF343=\"\"),\"N\",\"Y\"))","v":"-"},{"$f":"IF(OR('Enrollment Form'!$CG343=\"\",'Enrollment Form'!$CG343=\"No\"),\"-\",IF(AND('Enrollment Form'!$CG343=\"Yes\",'Enrollment Form'!$CH343=\"\"),\"N\",\"Y\"))","v":"-"},{"$f":"IF(OR('Enrollment Form'!$CG343=\"\",'Enrollment Form'!$CG343=\"No\"),\"-\",IF(AND('Enrollment Form'!$CG343=\"Yes\",'Enrollment Form'!$CI343=\"\"),\"N\",\"Y\"))","v":"-"},{"$f":"IF('Enrollment Form'!B343<>\"Subscriber\",\"-\",IF(AND('Enrollment Form'!B343=\"Subscriber\",'Enrollment Form'!C343=\"Enroll\",'Enrollment Form'!AA343=\"\"),\"N\",\"Y\"))","v":"-"},{"$f":"IF(OR('Enrollment Form'!B343=\"Subscriber\",'Enrollment Form'!B343=\"\"),\"-\",IF('Enrollment Form'!BI343=\"\",\"N\",\"Y\"))","v":"-"},{"$f":"IF('Enrollment Form'!B343<>\"Subscriber\",\"-\",IF(AND('Enrollment Form'!B343=\"Subscriber\",'Enrollment Form'!G343=\"\"),\"N\",\"Y\"))","v":"-"},{"$f":"IF('Enrollment Form'!A343=\"\",\"\",IF('Enrollment Form'!B343=\"Subscriber\",\"-\",IF(AND('Enrollment Form'!B343<>\"Subscriber\",'Enrollment Form'!G343='Enrollment Form'!H343),\"N\",\"Y\")))","v":""},0]
[344,{"$f":"IF('Enrollment Form'!$A344<>\"\",\"Y\",\"N\")","v":"N"},{"$f":"IF(AND('Enrollment Form'!$B344=\"\",'Enrollment Form'!$C344<>\"\"),\"N\",IF($B337=\"N\",\"\",\"Y\"))","v":""},{"$f":"IF(OR($B337=\"N\",'Enrollment Form'!G344=\"\"),\"\",IF('Enrollment Form'!$B344<>\"Subscriber\",\"\",IF('Enrollment Form'!$G344='Enrollment Form'!$H344,\"Y\",\"N\")))","v":""},{"$f":"IF($B337=\"N\",\"\",IF(AND(COUNTIFS('Enrollment Form'!$H$11:$H$1000,'Enrollment Form'!$H344,'Enrollment Form'!$B$11:$B$1000,'Enrollment Form'!$B344)>1,'Enrollment Form'!$H344<>\"\"),\"N\",\"Y\"))","v":""},{"$f":"IF($B337=\"N\",\"\",IF(LEN('Enrollment Form'!$Y344)=0,\"\",IF(LEN('Enrollment Form'!$Y344)<>5,\"N\",\"Y\")))","v":""},{"$f":"IF($B337=\"N\",\"\",IF(LEN('Enrollment Form'!$AD344=0),\"\",IF(LEN('Enrollment Form'!$AD344)<>5,\"N\",\"Y\")))","v":""},{"$f":"IF($B337=\"N\",\"\",IF(LEN('Enrollment Form'!$BL344=0),\"\",IF(LEN('Enrollment Form'!$BL344)<>5,\"N\",\"Y\")))","v":""},{"$f":"IF($B337=\"N\",\"\",IF(LEN('Enrollment Form'!$AE344)=0,\"\",IF(LEN('Enrollment Form'!$AE344)<>10,\"N\",\"Y\")))","v":""},{"$f":"IF($B337=\"N\",\"\",IF(LEN('Enrollment Form'!$AF344)=0,\"\",IF(LEN('Enrollment Form'!$AF344)<>10,\"N\",\"Y\")))","v":""},{"$f":"IF('Enrollment Form'!$O344<>\"Graded\",\"-\",IF(AND('Enrollment Form'!$O344=\"Graded\",'Enrollment Form'!$AO344<>\"\"),\"Y\",\"N\"))","v":"-"},{"$f":"IF($B337=\"N\",\"\",IF(OR('Enrollment Form'!$B344<>\"Subscriber\",'Enrollment Form'!$C344=\"ROC\"),\"-\",IF(AND('Enrollment Form'!$B344=\"Subscriber\",'Enrollment Form'!$C344=\"Enroll\",'Enrollment Form'!$AJ344<>\"\"),\"Y\",\"N\")))","v":""},{"$f":"IF($B337=\"N\",\"\",IF(OR('Enrollment Form'!$B344<>\"Subscriber\",'Enrollment Form'!$C344=\"ROC\"),\"-\",IF(AND('Enrollment Form'!$B344=\"Subscriber\",'Enrollment Form'!$C344=\"Enroll\",'Enrollment Form'!$AK344<>\"\"),\"Y\",\"N\")))","v":""},{"$f":"IF($B337=\"N\",\"\",IF(OR('Enrollment Form'!$B344<>\"Subscriber\",'Enrollment Form'!$C344=\"ROC\"),\"-\",IF(AND('Enrollment Form'!$B344=\"Subscriber\",'Enrollment Form'!$C344=\"Enroll\",'Enrollment Form'!$AL344<>\"\"),\"Y\",\"N\")))","v":""},{"$f":"IF($B337=\"N\",\"\",IF(OR('Enrollment Form'!$B344<>\"Subscriber\",'Enrollment Form'!$C344=\"ROC\"),\"-\",IF(AND('Enrollment Form'!$B344=\"Subscriber\",'Enrollment Form'!$C344=\"Enroll\",'Enrollment Form'!$AM344<>\"\"),\"Y\",\"N\")))","v":""},{"$f":"IF($B337=\"N\",\"\",IF(OR('Enrollment Form'!$B344<>\"Subscriber\",'Enrollment Form'!$C344=\"ROC\"),\"-\",IF(AND('Enrollment Form'!$B344=\"Subscriber\",'Enrollment Form'!$C344=\"Enroll\",'Enrollment Form'!$AN344<>\"\"),\"Y\",\"N\")))","v":""},{"$f":"IF($B337=\"N\",\"\",IF(OR('Enrollment Form'!$B344<>\"Subscriber\",'Enrollment Form'!$C344=\"ROC\"),\"-\",IF(AND('Enrollment Form'!$B344=\"Subscriber\",'Enrollment Form'!$C344=\"Enroll\",'Enrollment Form'!$AP344<>\"\"),\"Y\",\"N\")))","v":""},{"$f":"IF($B337=\"N\",\"\",IF($Q337=\"-\",\"-\",IF(AND($Q337=\"Y\",'Enrollment Form'!$AP344=\"No\"),\"-\",IF(AND($Q337=\"Y\",'Enrollment Form'!$AP344=\"Yes\",'Enrollment Form'!$AQ344<>\"\"),\"Y\",\"N\"))))","v":""},{"$f":"IF($B337=\"N\",\"\",IF(OR('Enrollment Form'!$B344<>\"Subscriber\",'Enrollment Form'!$C344=\"ROC\"),\"-\",IF(AND('Enrollment Form'!$B344=\"Subscriber\",'Enrollment Form'!$C344=\"Enroll\",'Enrollment Form'!$CO344<>\"\"),\"Y\",\"N\")))","v":""},{"$f":"IF($B337=\"N\",\"\",IF($S337=\"-\",\"-\",IF(AND($S337=\"Y\",'Enrollment Form'!$CO344=\"No\"),\"-\",IF(AND($S337=\"Y\",'Enrollment Form'!$CO344=\"Yes\",'Enrollment Form'!$CP344<>\"\"),\"Y\",\"N\"))))","v":""},{"$f":"IF(OR('Enrollment Form'!$AV344=\"Yes\",'Enrollment Form'!$AV344=\"\"),\"-\",IF(AND('Enrollment Form'!$AV344=\"No\",ISERROR(FIND(\"HMO\",VLOOKUP('Enrollment Form'!G344,'Enrollment Form'!H$11:J$1000,3,FALSE),1))=FALSE,COUNTA('Enrollment Form'!$AW344:$AZ344)=4),\"Y\",\"N\"))","v":"-"},{"$f":"IF($B337=\"N\",\"\",IF('Enrollment Form'!$B344=\"Subscriber\",\"-\",IF(COUNTA('Enrollment Form'!$BE344,'Enrollment Form'!$BG344)=2,\"Y\",\"N\")))","v":""},{"$f":"IF($B337=\"N\",\"\",IF(OR('Enrollment Form'!$AU344=\"\",'Enrollment Form'!$AU344=\"No\"),\"-\",IF(AND('Enrollment Form'!$AU344=\"Yes\",COUNTA('Enrollment Form'!$CK344)=1),\"Y\",\"N\")))","v":""},{"$f":"IF(OR('Enrollment Form'!$CK344=\"\",'Enrollment Form'!$CK344=\"No\"),\"-\",IF(COUNTA('Enrollment Form'!$CM344:$CN344)=2,\"Y\",\"N\"))","v":"-"},{"$f":"IF($B337=\"N\",\"\",IF(COUNTIF('Enrollment Form'!$CZ344:$DO344,\"Other\")=COUNTA('Enrollment Form'!$DF344,'Enrollment Form'!$DA344,'Enrollment Form'!$DK344,'Enrollment Form'!$DP344),\"Y\",\"N\"))","v":""},{"$f":"IF($B337=\"N\",\"\",IF(OR('Enrollment Form'!B344<>\"Subscriber\",'Enrollment Form'!C344=\"ROC\",COUNTIF('Enrollment Form'!AS344:AT344,\"Yes\")>=1),\"-\",IF(AND('Enrollment Form'!C344=\"Enroll\",COUNTIF('Enrollment Form'!AS344:AT344,\"No\")=2,'Enrollment Form'!AU344=\"\"),\"N\",\"Y\")))","v":""},{"$f":"IF(OR(B337=\"N\",'Enrollment Form'!B344<>\"Subscriber\",'Enrollment Form'!C344=\"ROC\",'Enrollment Form'!O344<>\"Multiple of Salary\"),\"-\",IF(COUNTA('Enrollment Form'!T344:U344)<2,\"N\",\"Y\"))","v":"-"},{"$f":"IF(B337=\"N\",\"\",IF(OR('Enrollment Form'!C344=\"ROC\",'Enrollment Form'!B344<>\"Subscriber\",'Enrollment Form'!O344=\"Waive\",'Enrollment Form'!O344=\"\"),\"-\",IF('Enrollment Form'!P344=\"\",\"N\",\"Y\")))","v":""},{"$f":"IF($B337=\"N\",\"\",IF(AND('Enrollment Form'!$C344=\"ROC\",'Enrollment Form'!$DS344<>\"\"),\"Y\",IF(AND('Enrollment Form'!$C344=\"ROC\",'Enrollment Form'!$DS344=\"\"),\"N\",IF(AND('Enrollment Form'!$C344=\"Enroll\",'Enrollment Form'!$B344=\"Subscriber\",'Enrollment Form'!$CQ344=\"No\",'Enrollment Form'!$DS344=\"\"),\"N\",IF(AND('Enrollment Form'!$C344=\"Enroll\",'Enrollment Form'!$B344=\"Subscriber\",'Enrollment Form'!$CQ344=\"Yes\"),\"-\",\"Y\")))))","v":""},{"$f":"IF($B337=\"N\",\"\",IF(AND('Enrollment Form'!$C344=\"ROC\",'Enrollment Form'!$DT344<>\"\"),\"Y\",IF(AND('Enrollment Form'!$C344=\"ROC\",'Enrollment Form'!$DT344=\"\"),\"N\",IF(AND('Enrollment Form'!$C344=\"Enroll\",'Enrollment Form'!$B344=\"Subscriber\",'Enrollment Form'!$CQ344=\"No\",'Enrollment Form'!$DT344=\"\"),\"N\",IF(AND('Enrollment Form'!$C344=\"Enroll\",'Enrollment Form'!$B344=\"Subscriber\",'Enrollment Form'!$CQ344=\"Yes\"),\"-\",\"Y\")))))","v":""},{"$f":"IF('Enrollment Form'!AH344=\"\",\"\",IF(ISERROR(SEARCH(\".\",'Enrollment Form'!AH344,SEARCH(\"@\",'Enrollment Form'!AH344))),\"N\",\"Y\"))","v":""},{"$f":"IF(OR($B337=\"N\",'Enrollment Form'!$G344=\"\"),\"\",IF('Enrollment Form'!$B344<>\"Subscriber\",\"-\",IF(COUNTIF('Enrollment Form'!$AS344:$AT344,\"Yes\")=2,\"N\",\"Y\")))","v":""},{"$f":"IF(OR('Enrollment Form'!$CC344=\"\",'Enrollment Form'!$CC344=\"No\"),\"-\",IF(AND('Enrollment Form'!$CC344=\"Yes\",'Enrollment Form'!$CD344=\"\"),\"N\",\"Y\"))","v":"-"},{"$f":"IF(OR('Enrollment Form'!$CE344=\"\",'Enrollment Form'!$CE344=\"No\"),\"-\",IF(AND('Enrollment Form'!$CE344=\"Yes\",'Enrollment Form'!$CF344=\"\"),\"N\",\"Y\"))","v":"-"},{"$f":"IF(OR('Enrollment Form'!$CG344=\"\",'Enrollment Form'!$CG344=\"No\"),\"-\",IF(AND('Enrollment Form'!$CG344=\"Yes\",'Enrollment Form'!$CH344=\"\"),\"N\",\"Y\"))","v":"-"},{"$f":"IF(OR('Enrollment Form'!$CG344=\"\",'Enrollment Form'!$CG344=\"No\"),\"-\",IF(AND('Enrollment Form'!$CG344=\"Yes\",'Enrollment Form'!$CI344=\"\"),\"N\",\"Y\"))","v":"-"},{"$f":"IF('Enrollment Form'!B344<>\"Subscriber\",\"-\",IF(AND('Enrollment Form'!B344=\"Subscriber\",'Enrollment Form'!C344=\"Enroll\",'Enrollment Form'!AA344=\"\"),\"N\",\"Y\"))","v":"-"},{"$f":"IF(OR('Enrollment Form'!B344=\"Subscriber\",'Enrollment Form'!B344=\"\"),\"-\",IF('Enrollment Form'!BI344=\"\",\"N\",\"Y\"))","v":"-"},{"$f":"IF('Enrollment Form'!B344<>\"Subscriber\",\"-\",IF(AND('Enrollment Form'!B344=\"Subscriber\",'Enrollment Form'!G344=\"\"),\"N\",\"Y\"))","v":"-"},{"$f":"IF('Enrollment Form'!A344=\"\",\"\",IF('Enrollment Form'!B344=\"Subscriber\",\"-\",IF(AND('Enrollment Form'!B344<>\"Subscriber\",'Enrollment Form'!G344='Enrollment Form'!H344),\"N\",\"Y\")))","v":""},0]
[345,{"$f":"IF('Enrollment Form'!$A345<>\"\",\"Y\",\"N\")","v":"N"},{"$f":"IF(AND('Enrollment Form'!$B345=\"\",'Enrollment Form'!$C345<>\"\"),\"N\",IF($B338=\"N\",\"\",\"Y\"))","v":""},{"$f":"IF(OR($B338=\"N\",'Enrollment Form'!G345=\"\"),\"\",IF('Enrollment Form'!$B345<>\"Subscriber\",\"\",IF('Enrollment Form'!$G345='Enrollment Form'!$H345,\"Y\",\"N\")))","v":""},{"$f":"IF($B338=\"N\",\"\",IF(AND(COUNTIFS('Enrollment Form'!$H$11:$H$1000,'Enrollment Form'!$H345,'Enrollment Form'!$B$11:$B$1000,'Enrollment Form'!$B345)>1,'Enrollment Form'!$H345<>\"\"),\"N\",\"Y\"))","v":""},{"$f":"IF($B338=\"N\",\"\",IF(LEN('Enrollment Form'!$Y345)=0,\"\",IF(LEN('Enrollment Form'!$Y345)<>5,\"N\",\"Y\")))","v":""},{"$f":"IF($B338=\"N\",\"\",IF(LEN('Enrollment Form'!$AD345=0),\"\",IF(LEN('Enrollment Form'!$AD345)<>5,\"N\",\"Y\")))","v":""},{"$f":"IF($B338=\"N\",\"\",IF(LEN('Enrollment Form'!$BL345=0),\"\",IF(LEN('Enrollment Form'!$BL345)<>5,\"N\",\"Y\")))","v":""},{"$f":"IF($B338=\"N\",\"\",IF(LEN('Enrollment Form'!$AE345)=0,\"\",IF(LEN('Enrollment Form'!$AE345)<>10,\"N\",\"Y\")))","v":""},{"$f":"IF($B338=\"N\",\"\",IF(LEN('Enrollment Form'!$AF345)=0,\"\",IF(LEN('Enrollment Form'!$AF345)<>10,\"N\",\"Y\")))","v":""},{"$f":"IF('Enrollment Form'!$O345<>\"Graded\",\"-\",IF(AND('Enrollment Form'!$O345=\"Graded\",'Enrollment Form'!$AO345<>\"\"),\"Y\",\"N\"))","v":"-"},{"$f":"IF($B338=\"N\",\"\",IF(OR('Enrollment Form'!$B345<>\"Subscriber\",'Enrollment Form'!$C345=\"ROC\"),\"-\",IF(AND('Enrollment Form'!$B345=\"Subscriber\",'Enrollment Form'!$C345=\"Enroll\",'Enrollment Form'!$AJ345<>\"\"),\"Y\",\"N\")))","v":""},{"$f":"IF($B338=\"N\",\"\",IF(OR('Enrollment Form'!$B345<>\"Subscriber\",'Enrollment Form'!$C345=\"ROC\"),\"-\",IF(AND('Enrollment Form'!$B345=\"Subscriber\",'Enrollment Form'!$C345=\"Enroll\",'Enrollment Form'!$AK345<>\"\"),\"Y\",\"N\")))","v":""},{"$f":"IF($B338=\"N\",\"\",IF(OR('Enrollment Form'!$B345<>\"Subscriber\",'Enrollment Form'!$C345=\"ROC\"),\"-\",IF(AND('Enrollment Form'!$B345=\"Subscriber\",'Enrollment Form'!$C345=\"Enroll\",'Enrollment Form'!$AL345<>\"\"),\"Y\",\"N\")))","v":""},{"$f":"IF($B338=\"N\",\"\",IF(OR('Enrollment Form'!$B345<>\"Subscriber\",'Enrollment Form'!$C345=\"ROC\"),\"-\",IF(AND('Enrollment Form'!$B345=\"Subscriber\",'Enrollment Form'!$C345=\"Enroll\",'Enrollment Form'!$AM345<>\"\"),\"Y\",\"N\")))","v":""},{"$f":"IF($B338=\"N\",\"\",IF(OR('Enrollment Form'!$B345<>\"Subscriber\",'Enrollment Form'!$C345=\"ROC\"),\"-\",IF(AND('Enrollment Form'!$B345=\"Subscriber\",'Enrollment Form'!$C345=\"Enroll\",'Enrollment Form'!$AN345<>\"\"),\"Y\",\"N\")))","v":""},{"$f":"IF($B338=\"N\",\"\",IF(OR('Enrollment Form'!$B345<>\"Subscriber\",'Enrollment Form'!$C345=\"ROC\"),\"-\",IF(AND('Enrollment Form'!$B345=\"Subscriber\",'Enrollment Form'!$C345=\"Enroll\",'Enrollment Form'!$AP345<>\"\"),\"Y\",\"N\")))","v":""},{"$f":"IF($B338=\"N\",\"\",IF($Q338=\"-\",\"-\",IF(AND($Q338=\"Y\",'Enrollment Form'!$AP345=\"No\"),\"-\",IF(AND($Q338=\"Y\",'Enrollment Form'!$AP345=\"Yes\",'Enrollment Form'!$AQ345<>\"\"),\"Y\",\"N\"))))","v":""},{"$f":"IF($B338=\"N\",\"\",IF(OR('Enrollment Form'!$B345<>\"Subscriber\",'Enrollment Form'!$C345=\"ROC\"),\"-\",IF(AND('Enrollment Form'!$B345=\"Subscriber\",'Enrollment Form'!$C345=\"Enroll\",'Enrollment Form'!$CO345<>\"\"),\"Y\",\"N\")))","v":""},{"$f":"IF($B338=\"N\",\"\",IF($S338=\"-\",\"-\",IF(AND($S338=\"Y\",'Enrollment Form'!$CO345=\"No\"),\"-\",IF(AND($S338=\"Y\",'Enrollment Form'!$CO345=\"Yes\",'Enrollment Form'!$CP345<>\"\"),\"Y\",\"N\"))))","v":""},{"$f":"IF(OR('Enrollment Form'!$AV345=\"Yes\",'Enrollment Form'!$AV345=\"\"),\"-\",IF(AND('Enrollment Form'!$AV345=\"No\",ISERROR(FIND(\"HMO\",VLOOKUP('Enrollment Form'!G345,'Enrollment Form'!H$11:J$1000,3,FALSE),1))=FALSE,COUNTA('Enrollment Form'!$AW345:$AZ345)=4),\"Y\",\"N\"))","v":"-"},{"$f":"IF($B338=\"N\",\"\",IF('Enrollment Form'!$B345=\"Subscriber\",\"-\",IF(COUNTA('Enrollment Form'!$BE345,'Enrollment Form'!$BG345)=2,\"Y\",\"N\")))","v":""},{"$f":"IF($B338=\"N\",\"\",IF(OR('Enrollment Form'!$AU345=\"\",'Enrollment Form'!$AU345=\"No\"),\"-\",IF(AND('Enrollment Form'!$AU345=\"Yes\",COUNTA('Enrollment Form'!$CK345)=1),\"Y\",\"N\")))","v":""},{"$f":"IF(OR('Enrollment Form'!$CK345=\"\",'Enrollment Form'!$CK345=\"No\"),\"-\",IF(COUNTA('Enrollment Form'!$CM345:$CN345)=2,\"Y\",\"N\"))","v":"-"},{"$f":"IF($B338=\"N\",\"\",IF(COUNTIF('Enrollment Form'!$CZ345:$DO345,\"Other\")=COUNTA('Enrollment Form'!$DF345,'Enrollment Form'!$DA345,'Enrollment Form'!$DK345,'Enrollment Form'!$DP345),\"Y\",\"N\"))","v":""},{"$f":"IF($B338=\"N\",\"\",IF(OR('Enrollment Form'!B345<>\"Subscriber\",'Enrollment Form'!C345=\"ROC\",COUNTIF('Enrollment Form'!AS345:AT345,\"Yes\")>=1),\"-\",IF(AND('Enrollment Form'!C345=\"Enroll\",COUNTIF('Enrollment Form'!AS345:AT345,\"No\")=2,'Enrollment Form'!AU345=\"\"),\"N\",\"Y\")))","v":""},{"$f":"IF(OR(B338=\"N\",'Enrollment Form'!B345<>\"Subscriber\",'Enrollment Form'!C345=\"ROC\",'Enrollment Form'!O345<>\"Multiple of Salary\"),\"-\",IF(COUNTA('Enrollment Form'!T345:U345)<2,\"N\",\"Y\"))","v":"-"},{"$f":"IF(B338=\"N\",\"\",IF(OR('Enrollment Form'!C345=\"ROC\",'Enrollment Form'!B345<>\"Subscriber\",'Enrollment Form'!O345=\"Waive\",'Enrollment Form'!O345=\"\"),\"-\",IF('Enrollment Form'!P345=\"\",\"N\",\"Y\")))","v":""},{"$f":"IF($B338=\"N\",\"\",IF(AND('Enrollment Form'!$C345=\"ROC\",'Enrollment Form'!$DS345<>\"\"),\"Y\",IF(AND('Enrollment Form'!$C345=\"ROC\",'Enrollment Form'!$DS345=\"\"),\"N\",IF(AND('Enrollment Form'!$C345=\"Enroll\",'Enrollment Form'!$B345=\"Subscriber\",'Enrollment Form'!$CQ345=\"No\",'Enrollment Form'!$DS345=\"\"),\"N\",IF(AND('Enrollment Form'!$C345=\"Enroll\",'Enrollment Form'!$B345=\"Subscriber\",'Enrollment Form'!$CQ345=\"Yes\"),\"-\",\"Y\")))))","v":""},{"$f":"IF($B338=\"N\",\"\",IF(AND('Enrollment Form'!$C345=\"ROC\",'Enrollment Form'!$DT345<>\"\"),\"Y\",IF(AND('Enrollment Form'!$C345=\"ROC\",'Enrollment Form'!$DT345=\"\"),\"N\",IF(AND('Enrollment Form'!$C345=\"Enroll\",'Enrollment Form'!$B345=\"Subscriber\",'Enrollment Form'!$CQ345=\"No\",'Enrollment Form'!$DT345=\"\"),\"N\",IF(AND('Enrollment Form'!$C345=\"Enroll\",'Enrollment Form'!$B345=\"Subscriber\",'Enrollment Form'!$CQ345=\"Yes\"),\"-\",\"Y\")))))","v":""},{"$f":"IF('Enrollment Form'!AH345=\"\",\"\",IF(ISERROR(SEARCH(\".\",'Enrollment Form'!AH345,SEARCH(\"@\",'Enrollment Form'!AH345))),\"N\",\"Y\"))","v":""},{"$f":"IF(OR($B338=\"N\",'Enrollment Form'!$G345=\"\"),\"\",IF('Enrollment Form'!$B345<>\"Subscriber\",\"-\",IF(COUNTIF('Enrollment Form'!$AS345:$AT345,\"Yes\")=2,\"N\",\"Y\")))","v":""},{"$f":"IF(OR('Enrollment Form'!$CC345=\"\",'Enrollment Form'!$CC345=\"No\"),\"-\",IF(AND('Enrollment Form'!$CC345=\"Yes\",'Enrollment Form'!$CD345=\"\"),\"N\",\"Y\"))","v":"-"},{"$f":"IF(OR('Enrollment Form'!$CE345=\"\",'Enrollment Form'!$CE345=\"No\"),\"-\",IF(AND('Enrollment Form'!$CE345=\"Yes\",'Enrollment Form'!$CF345=\"\"),\"N\",\"Y\"))","v":"-"},{"$f":"IF(OR('Enrollment Form'!$CG345=\"\",'Enrollment Form'!$CG345=\"No\"),\"-\",IF(AND('Enrollment Form'!$CG345=\"Yes\",'Enrollment Form'!$CH345=\"\"),\"N\",\"Y\"))","v":"-"},{"$f":"IF(OR('Enrollment Form'!$CG345=\"\",'Enrollment Form'!$CG345=\"No\"),\"-\",IF(AND('Enrollment Form'!$CG345=\"Yes\",'Enrollment Form'!$CI345=\"\"),\"N\",\"Y\"))","v":"-"},{"$f":"IF('Enrollment Form'!B345<>\"Subscriber\",\"-\",IF(AND('Enrollment Form'!B345=\"Subscriber\",'Enrollment Form'!C345=\"Enroll\",'Enrollment Form'!AA345=\"\"),\"N\",\"Y\"))","v":"-"},{"$f":"IF(OR('Enrollment Form'!B345=\"Subscriber\",'Enrollment Form'!B345=\"\"),\"-\",IF('Enrollment Form'!BI345=\"\",\"N\",\"Y\"))","v":"-"},{"$f":"IF('Enrollment Form'!B345<>\"Subscriber\",\"-\",IF(AND('Enrollment Form'!B345=\"Subscriber\",'Enrollment Form'!G345=\"\"),\"N\",\"Y\"))","v":"-"},{"$f":"IF('Enrollment Form'!A345=\"\",\"\",IF('Enrollment Form'!B345=\"Subscriber\",\"-\",IF(AND('Enrollment Form'!B345<>\"Subscriber\",'Enrollment Form'!G345='Enrollment Form'!H345),\"N\",\"Y\")))","v":""},0]
[346,{"$f":"IF('Enrollment Form'!$A346<>\"\",\"Y\",\"N\")","v":"N"},{"$f":"IF(AND('Enrollment Form'!$B346=\"\",'Enrollment Form'!$C346<>\"\"),\"N\",IF($B339=\"N\",\"\",\"Y\"))","v":""},{"$f":"IF(OR($B339=\"N\",'Enrollment Form'!G346=\"\"),\"\",IF('Enrollment Form'!$B346<>\"Subscriber\",\"\",IF('Enrollment Form'!$G346='Enrollment Form'!$H346,\"Y\",\"N\")))","v":""},{"$f":"IF($B339=\"N\",\"\",IF(AND(COUNTIFS('Enrollment Form'!$H$11:$H$1000,'Enrollment Form'!$H346,'Enrollment Form'!$B$11:$B$1000,'Enrollment Form'!$B346)>1,'Enrollment Form'!$H346<>\"\"),\"N\",\"Y\"))","v":""},{"$f":"IF($B339=\"N\",\"\",IF(LEN('Enrollment Form'!$Y346)=0,\"\",IF(LEN('Enrollment Form'!$Y346)<>5,\"N\",\"Y\")))","v":""},{"$f":"IF($B339=\"N\",\"\",IF(LEN('Enrollment Form'!$AD346=0),\"\",IF(LEN('Enrollment Form'!$AD346)<>5,\"N\",\"Y\")))","v":""},{"$f":"IF($B339=\"N\",\"\",IF(LEN('Enrollment Form'!$BL346=0),\"\",IF(LEN('Enrollment Form'!$BL346)<>5,\"N\",\"Y\")))","v":""},{"$f":"IF($B339=\"N\",\"\",IF(LEN('Enrollment Form'!$AE346)=0,\"\",IF(LEN('Enrollment Form'!$AE346)<>10,\"N\",\"Y\")))","v":""},{"$f":"IF($B339=\"N\",\"\",IF(LEN('Enrollment Form'!$AF346)=0,\"\",IF(LEN('Enrollment Form'!$AF346)<>10,\"N\",\"Y\")))","v":""},{"$f":"IF('Enrollment Form'!$O346<>\"Graded\",\"-\",IF(AND('Enrollment Form'!$O346=\"Graded\",'Enrollment Form'!$AO346<>\"\"),\"Y\",\"N\"))","v":"-"},{"$f":"IF($B339=\"N\",\"\",IF(OR('Enrollment Form'!$B346<>\"Subscriber\",'Enrollment Form'!$C346=\"ROC\"),\"-\",IF(AND('Enrollment Form'!$B346=\"Subscriber\",'Enrollment Form'!$C346=\"Enroll\",'Enrollment Form'!$AJ346<>\"\"),\"Y\",\"N\")))","v":""},{"$f":"IF($B339=\"N\",\"\",IF(OR('Enrollment Form'!$B346<>\"Subscriber\",'Enrollment Form'!$C346=\"ROC\"),\"-\",IF(AND('Enrollment Form'!$B346=\"Subscriber\",'Enrollment Form'!$C346=\"Enroll\",'Enrollment Form'!$AK346<>\"\"),\"Y\",\"N\")))","v":""},{"$f":"IF($B339=\"N\",\"\",IF(OR('Enrollment Form'!$B346<>\"Subscriber\",'Enrollment Form'!$C346=\"ROC\"),\"-\",IF(AND('Enrollment Form'!$B346=\"Subscriber\",'Enrollment Form'!$C346=\"Enroll\",'Enrollment Form'!$AL346<>\"\"),\"Y\",\"N\")))","v":""},{"$f":"IF($B339=\"N\",\"\",IF(OR('Enrollment Form'!$B346<>\"Subscriber\",'Enrollment Form'!$C346=\"ROC\"),\"-\",IF(AND('Enrollment Form'!$B346=\"Subscriber\",'Enrollment Form'!$C346=\"Enroll\",'Enrollment Form'!$AM346<>\"\"),\"Y\",\"N\")))","v":""},{"$f":"IF($B339=\"N\",\"\",IF(OR('Enrollment Form'!$B346<>\"Subscriber\",'Enrollment Form'!$C346=\"ROC\"),\"-\",IF(AND('Enrollment Form'!$B346=\"Subscriber\",'Enrollment Form'!$C346=\"Enroll\",'Enrollment Form'!$AN346<>\"\"),\"Y\",\"N\")))","v":""},{"$f":"IF($B339=\"N\",\"\",IF(OR('Enrollment Form'!$B346<>\"Subscriber\",'Enrollment Form'!$C346=\"ROC\"),\"-\",IF(AND('Enrollment Form'!$B346=\"Subscriber\",'Enrollment Form'!$C346=\"Enroll\",'Enrollment Form'!$AP346<>\"\"),\"Y\",\"N\")))","v":""},{"$f":"IF($B339=\"N\",\"\",IF($Q339=\"-\",\"-\",IF(AND($Q339=\"Y\",'Enrollment Form'!$AP346=\"No\"),\"-\",IF(AND($Q339=\"Y\",'Enrollment Form'!$AP346=\"Yes\",'Enrollment Form'!$AQ346<>\"\"),\"Y\",\"N\"))))","v":""},{"$f":"IF($B339=\"N\",\"\",IF(OR('Enrollment Form'!$B346<>\"Subscriber\",'Enrollment Form'!$C346=\"ROC\"),\"-\",IF(AND('Enrollment Form'!$B346=\"Subscriber\",'Enrollment Form'!$C346=\"Enroll\",'Enrollment Form'!$CO346<>\"\"),\"Y\",\"N\")))","v":""},{"$f":"IF($B339=\"N\",\"\",IF($S339=\"-\",\"-\",IF(AND($S339=\"Y\",'Enrollment Form'!$CO346=\"No\"),\"-\",IF(AND($S339=\"Y\",'Enrollment Form'!$CO346=\"Yes\",'Enrollment Form'!$CP346<>\"\"),\"Y\",\"N\"))))","v":""},{"$f":"IF(OR('Enrollment Form'!$AV346=\"Yes\",'Enrollment Form'!$AV346=\"\"),\"-\",IF(AND('Enrollment Form'!$AV346=\"No\",ISERROR(FIND(\"HMO\",VLOOKUP('Enrollment Form'!G346,'Enrollment Form'!H$11:J$1000,3,FALSE),1))=FALSE,COUNTA('Enrollment Form'!$AW346:$AZ346)=4),\"Y\",\"N\"))","v":"-"},{"$f":"IF($B339=\"N\",\"\",IF('Enrollment Form'!$B346=\"Subscriber\",\"-\",IF(COUNTA('Enrollment Form'!$BE346,'Enrollment Form'!$BG346)=2,\"Y\",\"N\")))","v":""},{"$f":"IF($B339=\"N\",\"\",IF(OR('Enrollment Form'!$AU346=\"\",'Enrollment Form'!$AU346=\"No\"),\"-\",IF(AND('Enrollment Form'!$AU346=\"Yes\",COUNTA('Enrollment Form'!$CK346)=1),\"Y\",\"N\")))","v":""},{"$f":"IF(OR('Enrollment Form'!$CK346=\"\",'Enrollment Form'!$CK346=\"No\"),\"-\",IF(COUNTA('Enrollment Form'!$CM346:$CN346)=2,\"Y\",\"N\"))","v":"-"},{"$f":"IF($B339=\"N\",\"\",IF(COUNTIF('Enrollment Form'!$CZ346:$DO346,\"Other\")=COUNTA('Enrollment Form'!$DF346,'Enrollment Form'!$DA346,'Enrollment Form'!$DK346,'Enrollment Form'!$DP346),\"Y\",\"N\"))","v":""},{"$f":"IF($B339=\"N\",\"\",IF(OR('Enrollment Form'!B346<>\"Subscriber\",'Enrollment Form'!C346=\"ROC\",COUNTIF('Enrollment Form'!AS346:AT346,\"Yes\")>=1),\"-\",IF(AND('Enrollment Form'!C346=\"Enroll\",COUNTIF('Enrollment Form'!AS346:AT346,\"No\")=2,'Enrollment Form'!AU346=\"\"),\"N\",\"Y\")))","v":""},{"$f":"IF(OR(B339=\"N\",'Enrollment Form'!B346<>\"Subscriber\",'Enrollment Form'!C346=\"ROC\",'Enrollment Form'!O346<>\"Multiple of Salary\"),\"-\",IF(COUNTA('Enrollment Form'!T346:U346)<2,\"N\",\"Y\"))","v":"-"},{"$f":"IF(B339=\"N\",\"\",IF(OR('Enrollment Form'!C346=\"ROC\",'Enrollment Form'!B346<>\"Subscriber\",'Enrollment Form'!O346=\"Waive\",'Enrollment Form'!O346=\"\"),\"-\",IF('Enrollment Form'!P346=\"\",\"N\",\"Y\")))","v":""},{"$f":"IF($B339=\"N\",\"\",IF(AND('Enrollment Form'!$C346=\"ROC\",'Enrollment Form'!$DS346<>\"\"),\"Y\",IF(AND('Enrollment Form'!$C346=\"ROC\",'Enrollment Form'!$DS346=\"\"),\"N\",IF(AND('Enrollment Form'!$C346=\"Enroll\",'Enrollment Form'!$B346=\"Subscriber\",'Enrollment Form'!$CQ346=\"No\",'Enrollment Form'!$DS346=\"\"),\"N\",IF(AND('Enrollment Form'!$C346=\"Enroll\",'Enrollment Form'!$B346=\"Subscriber\",'Enrollment Form'!$CQ346=\"Yes\"),\"-\",\"Y\")))))","v":""},{"$f":"IF($B339=\"N\",\"\",IF(AND('Enrollment Form'!$C346=\"ROC\",'Enrollment Form'!$DT346<>\"\"),\"Y\",IF(AND('Enrollment Form'!$C346=\"ROC\",'Enrollment Form'!$DT346=\"\"),\"N\",IF(AND('Enrollment Form'!$C346=\"Enroll\",'Enrollment Form'!$B346=\"Subscriber\",'Enrollment Form'!$CQ346=\"No\",'Enrollment Form'!$DT346=\"\"),\"N\",IF(AND('Enrollment Form'!$C346=\"Enroll\",'Enrollment Form'!$B346=\"Subscriber\",'Enrollment Form'!$CQ346=\"Yes\"),\"-\",\"Y\")))))","v":""},{"$f":"IF('Enrollment Form'!AH346=\"\",\"\",IF(ISERROR(SEARCH(\".\",'Enrollment Form'!AH346,SEARCH(\"@\",'Enrollment Form'!AH346))),\"N\",\"Y\"))","v":""},{"$f":"IF(OR($B339=\"N\",'Enrollment Form'!$G346=\"\"),\"\",IF('Enrollment Form'!$B346<>\"Subscriber\",\"-\",IF(COUNTIF('Enrollment Form'!$AS346:$AT346,\"Yes\")=2,\"N\",\"Y\")))","v":""},{"$f":"IF(OR('Enrollment Form'!$CC346=\"\",'Enrollment Form'!$CC346=\"No\"),\"-\",IF(AND('Enrollment Form'!$CC346=\"Yes\",'Enrollment Form'!$CD346=\"\"),\"N\",\"Y\"))","v":"-"},{"$f":"IF(OR('Enrollment Form'!$CE346=\"\",'Enrollment Form'!$CE346=\"No\"),\"-\",IF(AND('Enrollment Form'!$CE346=\"Yes\",'Enrollment Form'!$CF346=\"\"),\"N\",\"Y\"))","v":"-"},{"$f":"IF(OR('Enrollment Form'!$CG346=\"\",'Enrollment Form'!$CG346=\"No\"),\"-\",IF(AND('Enrollment Form'!$CG346=\"Yes\",'Enrollment Form'!$CH346=\"\"),\"N\",\"Y\"))","v":"-"},{"$f":"IF(OR('Enrollment Form'!$CG346=\"\",'Enrollment Form'!$CG346=\"No\"),\"-\",IF(AND('Enrollment Form'!$CG346=\"Yes\",'Enrollment Form'!$CI346=\"\"),\"N\",\"Y\"))","v":"-"},{"$f":"IF('Enrollment Form'!B346<>\"Subscriber\",\"-\",IF(AND('Enrollment Form'!B346=\"Subscriber\",'Enrollment Form'!C346=\"Enroll\",'Enrollment Form'!AA346=\"\"),\"N\",\"Y\"))","v":"-"},{"$f":"IF(OR('Enrollment Form'!B346=\"Subscriber\",'Enrollment Form'!B346=\"\"),\"-\",IF('Enrollment Form'!BI346=\"\",\"N\",\"Y\"))","v":"-"},{"$f":"IF('Enrollment Form'!B346<>\"Subscriber\",\"-\",IF(AND('Enrollment Form'!B346=\"Subscriber\",'Enrollment Form'!G346=\"\"),\"N\",\"Y\"))","v":"-"},{"$f":"IF('Enrollment Form'!A346=\"\",\"\",IF('Enrollment Form'!B346=\"Subscriber\",\"-\",IF(AND('Enrollment Form'!B346<>\"Subscriber\",'Enrollment Form'!G346='Enrollment Form'!H346),\"N\",\"Y\")))","v":""},0]
[347,{"$f":"IF('Enrollment Form'!$A347<>\"\",\"Y\",\"N\")","v":"N"},{"$f":"IF(AND('Enrollment Form'!$B347=\"\",'Enrollment Form'!$C347<>\"\"),\"N\",IF($B340=\"N\",\"\",\"Y\"))","v":""},{"$f":"IF(OR($B340=\"N\",'Enrollment Form'!G347=\"\"),\"\",IF('Enrollment Form'!$B347<>\"Subscriber\",\"\",IF('Enrollment Form'!$G347='Enrollment Form'!$H347,\"Y\",\"N\")))","v":""},{"$f":"IF($B340=\"N\",\"\",IF(AND(COUNTIFS('Enrollment Form'!$H$11:$H$1000,'Enrollment Form'!$H347,'Enrollment Form'!$B$11:$B$1000,'Enrollment Form'!$B347)>1,'Enrollment Form'!$H347<>\"\"),\"N\",\"Y\"))","v":""},{"$f":"IF($B340=\"N\",\"\",IF(LEN('Enrollment Form'!$Y347)=0,\"\",IF(LEN('Enrollment Form'!$Y347)<>5,\"N\",\"Y\")))","v":""},{"$f":"IF($B340=\"N\",\"\",IF(LEN('Enrollment Form'!$AD347=0),\"\",IF(LEN('Enrollment Form'!$AD347)<>5,\"N\",\"Y\")))","v":""},{"$f":"IF($B340=\"N\",\"\",IF(LEN('Enrollment Form'!$BL347=0),\"\",IF(LEN('Enrollment Form'!$BL347)<>5,\"N\",\"Y\")))","v":""},{"$f":"IF($B340=\"N\",\"\",IF(LEN('Enrollment Form'!$AE347)=0,\"\",IF(LEN('Enrollment Form'!$AE347)<>10,\"N\",\"Y\")))","v":""},{"$f":"IF($B340=\"N\",\"\",IF(LEN('Enrollment Form'!$AF347)=0,\"\",IF(LEN('Enrollment Form'!$AF347)<>10,\"N\",\"Y\")))","v":""},{"$f":"IF('Enrollment Form'!$O347<>\"Graded\",\"-\",IF(AND('Enrollment Form'!$O347=\"Graded\",'Enrollment Form'!$AO347<>\"\"),\"Y\",\"N\"))","v":"-"},{"$f":"IF($B340=\"N\",\"\",IF(OR('Enrollment Form'!$B347<>\"Subscriber\",'Enrollment Form'!$C347=\"ROC\"),\"-\",IF(AND('Enrollment Form'!$B347=\"Subscriber\",'Enrollment Form'!$C347=\"Enroll\",'Enrollment Form'!$AJ347<>\"\"),\"Y\",\"N\")))","v":""},{"$f":"IF($B340=\"N\",\"\",IF(OR('Enrollment Form'!$B347<>\"Subscriber\",'Enrollment Form'!$C347=\"ROC\"),\"-\",IF(AND('Enrollment Form'!$B347=\"Subscriber\",'Enrollment Form'!$C347=\"Enroll\",'Enrollment Form'!$AK347<>\"\"),\"Y\",\"N\")))","v":""},{"$f":"IF($B340=\"N\",\"\",IF(OR('Enrollment Form'!$B347<>\"Subscriber\",'Enrollment Form'!$C347=\"ROC\"),\"-\",IF(AND('Enrollment Form'!$B347=\"Subscriber\",'Enrollment Form'!$C347=\"Enroll\",'Enrollment Form'!$AL347<>\"\"),\"Y\",\"N\")))","v":""},{"$f":"IF($B340=\"N\",\"\",IF(OR('Enrollment Form'!$B347<>\"Subscriber\",'Enrollment Form'!$C347=\"ROC\"),\"-\",IF(AND('Enrollment Form'!$B347=\"Subscriber\",'Enrollment Form'!$C347=\"Enroll\",'Enrollment Form'!$AM347<>\"\"),\"Y\",\"N\")))","v":""},{"$f":"IF($B340=\"N\",\"\",IF(OR('Enrollment Form'!$B347<>\"Subscriber\",'Enrollment Form'!$C347=\"ROC\"),\"-\",IF(AND('Enrollment Form'!$B347=\"Subscriber\",'Enrollment Form'!$C347=\"Enroll\",'Enrollment Form'!$AN347<>\"\"),\"Y\",\"N\")))","v":""},{"$f":"IF($B340=\"N\",\"\",IF(OR('Enrollment Form'!$B347<>\"Subscriber\",'Enrollment Form'!$C347=\"ROC\"),\"-\",IF(AND('Enrollment Form'!$B347=\"Subscriber\",'Enrollment Form'!$C347=\"Enroll\",'Enrollment Form'!$AP347<>\"\"),\"Y\",\"N\")))","v":""},{"$f":"IF($B340=\"N\",\"\",IF($Q340=\"-\",\"-\",IF(AND($Q340=\"Y\",'Enrollment Form'!$AP347=\"No\"),\"-\",IF(AND($Q340=\"Y\",'Enrollment Form'!$AP347=\"Yes\",'Enrollment Form'!$AQ347<>\"\"),\"Y\",\"N\"))))","v":""},{"$f":"IF($B340=\"N\",\"\",IF(OR('Enrollment Form'!$B347<>\"Subscriber\",'Enrollment Form'!$C347=\"ROC\"),\"-\",IF(AND('Enrollment Form'!$B347=\"Subscriber\",'Enrollment Form'!$C347=\"Enroll\",'Enrollment Form'!$CO347<>\"\"),\"Y\",\"N\")))","v":""},{"$f":"IF($B340=\"N\",\"\",IF($S340=\"-\",\"-\",IF(AND($S340=\"Y\",'Enrollment Form'!$CO347=\"No\"),\"-\",IF(AND($S340=\"Y\",'Enrollment Form'!$CO347=\"Yes\",'Enrollment Form'!$CP347<>\"\"),\"Y\",\"N\"))))","v":""},{"$f":"IF(OR('Enrollment Form'!$AV347=\"Yes\",'Enrollment Form'!$AV347=\"\"),\"-\",IF(AND('Enrollment Form'!$AV347=\"No\",ISERROR(FIND(\"HMO\",VLOOKUP('Enrollment Form'!G347,'Enrollment Form'!H$11:J$1000,3,FALSE),1))=FALSE,COUNTA('Enrollment Form'!$AW347:$AZ347)=4),\"Y\",\"N\"))","v":"-"},{"$f":"IF($B340=\"N\",\"\",IF('Enrollment Form'!$B347=\"Subscriber\",\"-\",IF(COUNTA('Enrollment Form'!$BE347,'Enrollment Form'!$BG347)=2,\"Y\",\"N\")))","v":""},{"$f":"IF($B340=\"N\",\"\",IF(OR('Enrollment Form'!$AU347=\"\",'Enrollment Form'!$AU347=\"No\"),\"-\",IF(AND('Enrollment Form'!$AU347=\"Yes\",COUNTA('Enrollment Form'!$CK347)=1),\"Y\",\"N\")))","v":""},{"$f":"IF(OR('Enrollment Form'!$CK347=\"\",'Enrollment Form'!$CK347=\"No\"),\"-\",IF(COUNTA('Enrollment Form'!$CM347:$CN347)=2,\"Y\",\"N\"))","v":"-"},{"$f":"IF($B340=\"N\",\"\",IF(COUNTIF('Enrollment Form'!$CZ347:$DO347,\"Other\")=COUNTA('Enrollment Form'!$DF347,'Enrollment Form'!$DA347,'Enrollment Form'!$DK347,'Enrollment Form'!$DP347),\"Y\",\"N\"))","v":""},{"$f":"IF($B340=\"N\",\"\",IF(OR('Enrollment Form'!B347<>\"Subscriber\",'Enrollment Form'!C347=\"ROC\",COUNTIF('Enrollment Form'!AS347:AT347,\"Yes\")>=1),\"-\",IF(AND('Enrollment Form'!C347=\"Enroll\",COUNTIF('Enrollment Form'!AS347:AT347,\"No\")=2,'Enrollment Form'!AU347=\"\"),\"N\",\"Y\")))","v":""},{"$f":"IF(OR(B340=\"N\",'Enrollment Form'!B347<>\"Subscriber\",'Enrollment Form'!C347=\"ROC\",'Enrollment Form'!O347<>\"Multiple of Salary\"),\"-\",IF(COUNTA('Enrollment Form'!T347:U347)<2,\"N\",\"Y\"))","v":"-"},{"$f":"IF(B340=\"N\",\"\",IF(OR('Enrollment Form'!C347=\"ROC\",'Enrollment Form'!B347<>\"Subscriber\",'Enrollment Form'!O347=\"Waive\",'Enrollment Form'!O347=\"\"),\"-\",IF('Enrollment Form'!P347=\"\",\"N\",\"Y\")))","v":""},{"$f":"IF($B340=\"N\",\"\",IF(AND('Enrollment Form'!$C347=\"ROC\",'Enrollment Form'!$DS347<>\"\"),\"Y\",IF(AND('Enrollment Form'!$C347=\"ROC\",'Enrollment Form'!$DS347=\"\"),\"N\",IF(AND('Enrollment Form'!$C347=\"Enroll\",'Enrollment Form'!$B347=\"Subscriber\",'Enrollment Form'!$CQ347=\"No\",'Enrollment Form'!$DS347=\"\"),\"N\",IF(AND('Enrollment Form'!$C347=\"Enroll\",'Enrollment Form'!$B347=\"Subscriber\",'Enrollment Form'!$CQ347=\"Yes\"),\"-\",\"Y\")))))","v":""},{"$f":"IF($B340=\"N\",\"\",IF(AND('Enrollment Form'!$C347=\"ROC\",'Enrollment Form'!$DT347<>\"\"),\"Y\",IF(AND('Enrollment Form'!$C347=\"ROC\",'Enrollment Form'!$DT347=\"\"),\"N\",IF(AND('Enrollment Form'!$C347=\"Enroll\",'Enrollment Form'!$B347=\"Subscriber\",'Enrollment Form'!$CQ347=\"No\",'Enrollment Form'!$DT347=\"\"),\"N\",IF(AND('Enrollment Form'!$C347=\"Enroll\",'Enrollment Form'!$B347=\"Subscriber\",'Enrollment Form'!$CQ347=\"Yes\"),\"-\",\"Y\")))))","v":""},{"$f":"IF('Enrollment Form'!AH347=\"\",\"\",IF(ISERROR(SEARCH(\".\",'Enrollment Form'!AH347,SEARCH(\"@\",'Enrollment Form'!AH347))),\"N\",\"Y\"))","v":""},{"$f":"IF(OR($B340=\"N\",'Enrollment Form'!$G347=\"\"),\"\",IF('Enrollment Form'!$B347<>\"Subscriber\",\"-\",IF(COUNTIF('Enrollment Form'!$AS347:$AT347,\"Yes\")=2,\"N\",\"Y\")))","v":""},{"$f":"IF(OR('Enrollment Form'!$CC347=\"\",'Enrollment Form'!$CC347=\"No\"),\"-\",IF(AND('Enrollment Form'!$CC347=\"Yes\",'Enrollment Form'!$CD347=\"\"),\"N\",\"Y\"))","v":"-"},{"$f":"IF(OR('Enrollment Form'!$CE347=\"\",'Enrollment Form'!$CE347=\"No\"),\"-\",IF(AND('Enrollment Form'!$CE347=\"Yes\",'Enrollment Form'!$CF347=\"\"),\"N\",\"Y\"))","v":"-"},{"$f":"IF(OR('Enrollment Form'!$CG347=\"\",'Enrollment Form'!$CG347=\"No\"),\"-\",IF(AND('Enrollment Form'!$CG347=\"Yes\",'Enrollment Form'!$CH347=\"\"),\"N\",\"Y\"))","v":"-"},{"$f":"IF(OR('Enrollment Form'!$CG347=\"\",'Enrollment Form'!$CG347=\"No\"),\"-\",IF(AND('Enrollment Form'!$CG347=\"Yes\",'Enrollment Form'!$CI347=\"\"),\"N\",\"Y\"))","v":"-"},{"$f":"IF('Enrollment Form'!B347<>\"Subscriber\",\"-\",IF(AND('Enrollment Form'!B347=\"Subscriber\",'Enrollment Form'!C347=\"Enroll\",'Enrollment Form'!AA347=\"\"),\"N\",\"Y\"))","v":"-"},{"$f":"IF(OR('Enrollment Form'!B347=\"Subscriber\",'Enrollment Form'!B347=\"\"),\"-\",IF('Enrollment Form'!BI347=\"\",\"N\",\"Y\"))","v":"-"},{"$f":"IF('Enrollment Form'!B347<>\"Subscriber\",\"-\",IF(AND('Enrollment Form'!B347=\"Subscriber\",'Enrollment Form'!G347=\"\"),\"N\",\"Y\"))","v":"-"},{"$f":"IF('Enrollment Form'!A347=\"\",\"\",IF('Enrollment Form'!B347=\"Subscriber\",\"-\",IF(AND('Enrollment Form'!B347<>\"Subscriber\",'Enrollment Form'!G347='Enrollment Form'!H347),\"N\",\"Y\")))","v":""},0]
[348,{"$f":"IF('Enrollment Form'!$A348<>\"\",\"Y\",\"N\")","v":"N"},{"$f":"IF(AND('Enrollment Form'!$B348=\"\",'Enrollment Form'!$C348<>\"\"),\"N\",IF($B341=\"N\",\"\",\"Y\"))","v":""},{"$f":"IF(OR($B341=\"N\",'Enrollment Form'!G348=\"\"),\"\",IF('Enrollment Form'!$B348<>\"Subscriber\",\"\",IF('Enrollment Form'!$G348='Enrollment Form'!$H348,\"Y\",\"N\")))","v":""},{"$f":"IF($B341=\"N\",\"\",IF(AND(COUNTIFS('Enrollment Form'!$H$11:$H$1000,'Enrollment Form'!$H348,'Enrollment Form'!$B$11:$B$1000,'Enrollment Form'!$B348)>1,'Enrollment Form'!$H348<>\"\"),\"N\",\"Y\"))","v":""},{"$f":"IF($B341=\"N\",\"\",IF(LEN('Enrollment Form'!$Y348)=0,\"\",IF(LEN('Enrollment Form'!$Y348)<>5,\"N\",\"Y\")))","v":""},{"$f":"IF($B341=\"N\",\"\",IF(LEN('Enrollment Form'!$AD348=0),\"\",IF(LEN('Enrollment Form'!$AD348)<>5,\"N\",\"Y\")))","v":""},{"$f":"IF($B341=\"N\",\"\",IF(LEN('Enrollment Form'!$BL348=0),\"\",IF(LEN('Enrollment Form'!$BL348)<>5,\"N\",\"Y\")))","v":""},{"$f":"IF($B341=\"N\",\"\",IF(LEN('Enrollment Form'!$AE348)=0,\"\",IF(LEN('Enrollment Form'!$AE348)<>10,\"N\",\"Y\")))","v":""},{"$f":"IF($B341=\"N\",\"\",IF(LEN('Enrollment Form'!$AF348)=0,\"\",IF(LEN('Enrollment Form'!$AF348)<>10,\"N\",\"Y\")))","v":""},{"$f":"IF('Enrollment Form'!$O348<>\"Graded\",\"-\",IF(AND('Enrollment Form'!$O348=\"Graded\",'Enrollment Form'!$AO348<>\"\"),\"Y\",\"N\"))","v":"-"},{"$f":"IF($B341=\"N\",\"\",IF(OR('Enrollment Form'!$B348<>\"Subscriber\",'Enrollment Form'!$C348=\"ROC\"),\"-\",IF(AND('Enrollment Form'!$B348=\"Subscriber\",'Enrollment Form'!$C348=\"Enroll\",'Enrollment Form'!$AJ348<>\"\"),\"Y\",\"N\")))","v":""},{"$f":"IF($B341=\"N\",\"\",IF(OR('Enrollment Form'!$B348<>\"Subscriber\",'Enrollment Form'!$C348=\"ROC\"),\"-\",IF(AND('Enrollment Form'!$B348=\"Subscriber\",'Enrollment Form'!$C348=\"Enroll\",'Enrollment Form'!$AK348<>\"\"),\"Y\",\"N\")))","v":""},{"$f":"IF($B341=\"N\",\"\",IF(OR('Enrollment Form'!$B348<>\"Subscriber\",'Enrollment Form'!$C348=\"ROC\"),\"-\",IF(AND('Enrollment Form'!$B348=\"Subscriber\",'Enrollment Form'!$C348=\"Enroll\",'Enrollment Form'!$AL348<>\"\"),\"Y\",\"N\")))","v":""},{"$f":"IF($B341=\"N\",\"\",IF(OR('Enrollment Form'!$B348<>\"Subscriber\",'Enrollment Form'!$C348=\"ROC\"),\"-\",IF(AND('Enrollment Form'!$B348=\"Subscriber\",'Enrollment Form'!$C348=\"Enroll\",'Enrollment Form'!$AM348<>\"\"),\"Y\",\"N\")))","v":""},{"$f":"IF($B341=\"N\",\"\",IF(OR('Enrollment Form'!$B348<>\"Subscriber\",'Enrollment Form'!$C348=\"ROC\"),\"-\",IF(AND('Enrollment Form'!$B348=\"Subscriber\",'Enrollment Form'!$C348=\"Enroll\",'Enrollment Form'!$AN348<>\"\"),\"Y\",\"N\")))","v":""},{"$f":"IF($B341=\"N\",\"\",IF(OR('Enrollment Form'!$B348<>\"Subscriber\",'Enrollment Form'!$C348=\"ROC\"),\"-\",IF(AND('Enrollment Form'!$B348=\"Subscriber\",'Enrollment Form'!$C348=\"Enroll\",'Enrollment Form'!$AP348<>\"\"),\"Y\",\"N\")))","v":""},{"$f":"IF($B341=\"N\",\"\",IF($Q341=\"-\",\"-\",IF(AND($Q341=\"Y\",'Enrollment Form'!$AP348=\"No\"),\"-\",IF(AND($Q341=\"Y\",'Enrollment Form'!$AP348=\"Yes\",'Enrollment Form'!$AQ348<>\"\"),\"Y\",\"N\"))))","v":""},{"$f":"IF($B341=\"N\",\"\",IF(OR('Enrollment Form'!$B348<>\"Subscriber\",'Enrollment Form'!$C348=\"ROC\"),\"-\",IF(AND('Enrollment Form'!$B348=\"Subscriber\",'Enrollment Form'!$C348=\"Enroll\",'Enrollment Form'!$CO348<>\"\"),\"Y\",\"N\")))","v":""},{"$f":"IF($B341=\"N\",\"\",IF($S341=\"-\",\"-\",IF(AND($S341=\"Y\",'Enrollment Form'!$CO348=\"No\"),\"-\",IF(AND($S341=\"Y\",'Enrollment Form'!$CO348=\"Yes\",'Enrollment Form'!$CP348<>\"\"),\"Y\",\"N\"))))","v":""},{"$f":"IF(OR('Enrollment Form'!$AV348=\"Yes\",'Enrollment Form'!$AV348=\"\"),\"-\",IF(AND('Enrollment Form'!$AV348=\"No\",ISERROR(FIND(\"HMO\",VLOOKUP('Enrollment Form'!G348,'Enrollment Form'!H$11:J$1000,3,FALSE),1))=FALSE,COUNTA('Enrollment Form'!$AW348:$AZ348)=4),\"Y\",\"N\"))","v":"-"},{"$f":"IF($B341=\"N\",\"\",IF('Enrollment Form'!$B348=\"Subscriber\",\"-\",IF(COUNTA('Enrollment Form'!$BE348,'Enrollment Form'!$BG348)=2,\"Y\",\"N\")))","v":""},{"$f":"IF($B341=\"N\",\"\",IF(OR('Enrollment Form'!$AU348=\"\",'Enrollment Form'!$AU348=\"No\"),\"-\",IF(AND('Enrollment Form'!$AU348=\"Yes\",COUNTA('Enrollment Form'!$CK348)=1),\"Y\",\"N\")))","v":""},{"$f":"IF(OR('Enrollment Form'!$CK348=\"\",'Enrollment Form'!$CK348=\"No\"),\"-\",IF(COUNTA('Enrollment Form'!$CM348:$CN348)=2,\"Y\",\"N\"))","v":"-"},{"$f":"IF($B341=\"N\",\"\",IF(COUNTIF('Enrollment Form'!$CZ348:$DO348,\"Other\")=COUNTA('Enrollment Form'!$DF348,'Enrollment Form'!$DA348,'Enrollment Form'!$DK348,'Enrollment Form'!$DP348),\"Y\",\"N\"))","v":""},{"$f":"IF($B341=\"N\",\"\",IF(OR('Enrollment Form'!B348<>\"Subscriber\",'Enrollment Form'!C348=\"ROC\",COUNTIF('Enrollment Form'!AS348:AT348,\"Yes\")>=1),\"-\",IF(AND('Enrollment Form'!C348=\"Enroll\",COUNTIF('Enrollment Form'!AS348:AT348,\"No\")=2,'Enrollment Form'!AU348=\"\"),\"N\",\"Y\")))","v":""},{"$f":"IF(OR(B341=\"N\",'Enrollment Form'!B348<>\"Subscriber\",'Enrollment Form'!C348=\"ROC\",'Enrollment Form'!O348<>\"Multiple of Salary\"),\"-\",IF(COUNTA('Enrollment Form'!T348:U348)<2,\"N\",\"Y\"))","v":"-"},{"$f":"IF(B341=\"N\",\"\",IF(OR('Enrollment Form'!C348=\"ROC\",'Enrollment Form'!B348<>\"Subscriber\",'Enrollment Form'!O348=\"Waive\",'Enrollment Form'!O348=\"\"),\"-\",IF('Enrollment Form'!P348=\"\",\"N\",\"Y\")))","v":""},{"$f":"IF($B341=\"N\",\"\",IF(AND('Enrollment Form'!$C348=\"ROC\",'Enrollment Form'!$DS348<>\"\"),\"Y\",IF(AND('Enrollment Form'!$C348=\"ROC\",'Enrollment Form'!$DS348=\"\"),\"N\",IF(AND('Enrollment Form'!$C348=\"Enroll\",'Enrollment Form'!$B348=\"Subscriber\",'Enrollment Form'!$CQ348=\"No\",'Enrollment Form'!$DS348=\"\"),\"N\",IF(AND('Enrollment Form'!$C348=\"Enroll\",'Enrollment Form'!$B348=\"Subscriber\",'Enrollment Form'!$CQ348=\"Yes\"),\"-\",\"Y\")))))","v":""},{"$f":"IF($B341=\"N\",\"\",IF(AND('Enrollment Form'!$C348=\"ROC\",'Enrollment Form'!$DT348<>\"\"),\"Y\",IF(AND('Enrollment Form'!$C348=\"ROC\",'Enrollment Form'!$DT348=\"\"),\"N\",IF(AND('Enrollment Form'!$C348=\"Enroll\",'Enrollment Form'!$B348=\"Subscriber\",'Enrollment Form'!$CQ348=\"No\",'Enrollment Form'!$DT348=\"\"),\"N\",IF(AND('Enrollment Form'!$C348=\"Enroll\",'Enrollment Form'!$B348=\"Subscriber\",'Enrollment Form'!$CQ348=\"Yes\"),\"-\",\"Y\")))))","v":""},{"$f":"IF('Enrollment Form'!AH348=\"\",\"\",IF(ISERROR(SEARCH(\".\",'Enrollment Form'!AH348,SEARCH(\"@\",'Enrollment Form'!AH348))),\"N\",\"Y\"))","v":""},{"$f":"IF(OR($B341=\"N\",'Enrollment Form'!$G348=\"\"),\"\",IF('Enrollment Form'!$B348<>\"Subscriber\",\"-\",IF(COUNTIF('Enrollment Form'!$AS348:$AT348,\"Yes\")=2,\"N\",\"Y\")))","v":""},{"$f":"IF(OR('Enrollment Form'!$CC348=\"\",'Enrollment Form'!$CC348=\"No\"),\"-\",IF(AND('Enrollment Form'!$CC348=\"Yes\",'Enrollment Form'!$CD348=\"\"),\"N\",\"Y\"))","v":"-"},{"$f":"IF(OR('Enrollment Form'!$CE348=\"\",'Enrollment Form'!$CE348=\"No\"),\"-\",IF(AND('Enrollment Form'!$CE348=\"Yes\",'Enrollment Form'!$CF348=\"\"),\"N\",\"Y\"))","v":"-"},{"$f":"IF(OR('Enrollment Form'!$CG348=\"\",'Enrollment Form'!$CG348=\"No\"),\"-\",IF(AND('Enrollment Form'!$CG348=\"Yes\",'Enrollment Form'!$CH348=\"\"),\"N\",\"Y\"))","v":"-"},{"$f":"IF(OR('Enrollment Form'!$CG348=\"\",'Enrollment Form'!$CG348=\"No\"),\"-\",IF(AND('Enrollment Form'!$CG348=\"Yes\",'Enrollment Form'!$CI348=\"\"),\"N\",\"Y\"))","v":"-"},{"$f":"IF('Enrollment Form'!B348<>\"Subscriber\",\"-\",IF(AND('Enrollment Form'!B348=\"Subscriber\",'Enrollment Form'!C348=\"Enroll\",'Enrollment Form'!AA348=\"\"),\"N\",\"Y\"))","v":"-"},{"$f":"IF(OR('Enrollment Form'!B348=\"Subscriber\",'Enrollment Form'!B348=\"\"),\"-\",IF('Enrollment Form'!BI348=\"\",\"N\",\"Y\"))","v":"-"},{"$f":"IF('Enrollment Form'!B348<>\"Subscriber\",\"-\",IF(AND('Enrollment Form'!B348=\"Subscriber\",'Enrollment Form'!G348=\"\"),\"N\",\"Y\"))","v":"-"},{"$f":"IF('Enrollment Form'!A348=\"\",\"\",IF('Enrollment Form'!B348=\"Subscriber\",\"-\",IF(AND('Enrollment Form'!B348<>\"Subscriber\",'Enrollment Form'!G348='Enrollment Form'!H348),\"N\",\"Y\")))","v":""},0]
[349,{"$f":"IF('Enrollment Form'!$A349<>\"\",\"Y\",\"N\")","v":"N"},{"$f":"IF(AND('Enrollment Form'!$B349=\"\",'Enrollment Form'!$C349<>\"\"),\"N\",IF($B342=\"N\",\"\",\"Y\"))","v":""},{"$f":"IF(OR($B342=\"N\",'Enrollment Form'!G349=\"\"),\"\",IF('Enrollment Form'!$B349<>\"Subscriber\",\"\",IF('Enrollment Form'!$G349='Enrollment Form'!$H349,\"Y\",\"N\")))","v":""},{"$f":"IF($B342=\"N\",\"\",IF(AND(COUNTIFS('Enrollment Form'!$H$11:$H$1000,'Enrollment Form'!$H349,'Enrollment Form'!$B$11:$B$1000,'Enrollment Form'!$B349)>1,'Enrollment Form'!$H349<>\"\"),\"N\",\"Y\"))","v":""},{"$f":"IF($B342=\"N\",\"\",IF(LEN('Enrollment Form'!$Y349)=0,\"\",IF(LEN('Enrollment Form'!$Y349)<>5,\"N\",\"Y\")))","v":""},{"$f":"IF($B342=\"N\",\"\",IF(LEN('Enrollment Form'!$AD349=0),\"\",IF(LEN('Enrollment Form'!$AD349)<>5,\"N\",\"Y\")))","v":""},{"$f":"IF($B342=\"N\",\"\",IF(LEN('Enrollment Form'!$BL349=0),\"\",IF(LEN('Enrollment Form'!$BL349)<>5,\"N\",\"Y\")))","v":""},{"$f":"IF($B342=\"N\",\"\",IF(LEN('Enrollment Form'!$AE349)=0,\"\",IF(LEN('Enrollment Form'!$AE349)<>10,\"N\",\"Y\")))","v":""},{"$f":"IF($B342=\"N\",\"\",IF(LEN('Enrollment Form'!$AF349)=0,\"\",IF(LEN('Enrollment Form'!$AF349)<>10,\"N\",\"Y\")))","v":""},{"$f":"IF('Enrollment Form'!$O349<>\"Graded\",\"-\",IF(AND('Enrollment Form'!$O349=\"Graded\",'Enrollment Form'!$AO349<>\"\"),\"Y\",\"N\"))","v":"-"},{"$f":"IF($B342=\"N\",\"\",IF(OR('Enrollment Form'!$B349<>\"Subscriber\",'Enrollment Form'!$C349=\"ROC\"),\"-\",IF(AND('Enrollment Form'!$B349=\"Subscriber\",'Enrollment Form'!$C349=\"Enroll\",'Enrollment Form'!$AJ349<>\"\"),\"Y\",\"N\")))","v":""},{"$f":"IF($B342=\"N\",\"\",IF(OR('Enrollment Form'!$B349<>\"Subscriber\",'Enrollment Form'!$C349=\"ROC\"),\"-\",IF(AND('Enrollment Form'!$B349=\"Subscriber\",'Enrollment Form'!$C349=\"Enroll\",'Enrollment Form'!$AK349<>\"\"),\"Y\",\"N\")))","v":""},{"$f":"IF($B342=\"N\",\"\",IF(OR('Enrollment Form'!$B349<>\"Subscriber\",'Enrollment Form'!$C349=\"ROC\"),\"-\",IF(AND('Enrollment Form'!$B349=\"Subscriber\",'Enrollment Form'!$C349=\"Enroll\",'Enrollment Form'!$AL349<>\"\"),\"Y\",\"N\")))","v":""},{"$f":"IF($B342=\"N\",\"\",IF(OR('Enrollment Form'!$B349<>\"Subscriber\",'Enrollment Form'!$C349=\"ROC\"),\"-\",IF(AND('Enrollment Form'!$B349=\"Subscriber\",'Enrollment Form'!$C349=\"Enroll\",'Enrollment Form'!$AM349<>\"\"),\"Y\",\"N\")))","v":""},{"$f":"IF($B342=\"N\",\"\",IF(OR('Enrollment Form'!$B349<>\"Subscriber\",'Enrollment Form'!$C349=\"ROC\"),\"-\",IF(AND('Enrollment Form'!$B349=\"Subscriber\",'Enrollment Form'!$C349=\"Enroll\",'Enrollment Form'!$AN349<>\"\"),\"Y\",\"N\")))","v":""},{"$f":"IF($B342=\"N\",\"\",IF(OR('Enrollment Form'!$B349<>\"Subscriber\",'Enrollment Form'!$C349=\"ROC\"),\"-\",IF(AND('Enrollment Form'!$B349=\"Subscriber\",'Enrollment Form'!$C349=\"Enroll\",'Enrollment Form'!$AP349<>\"\"),\"Y\",\"N\")))","v":""},{"$f":"IF($B342=\"N\",\"\",IF($Q342=\"-\",\"-\",IF(AND($Q342=\"Y\",'Enrollment Form'!$AP349=\"No\"),\"-\",IF(AND($Q342=\"Y\",'Enrollment Form'!$AP349=\"Yes\",'Enrollment Form'!$AQ349<>\"\"),\"Y\",\"N\"))))","v":""},{"$f":"IF($B342=\"N\",\"\",IF(OR('Enrollment Form'!$B349<>\"Subscriber\",'Enrollment Form'!$C349=\"ROC\"),\"-\",IF(AND('Enrollment Form'!$B349=\"Subscriber\",'Enrollment Form'!$C349=\"Enroll\",'Enrollment Form'!$CO349<>\"\"),\"Y\",\"N\")))","v":""},{"$f":"IF($B342=\"N\",\"\",IF($S342=\"-\",\"-\",IF(AND($S342=\"Y\",'Enrollment Form'!$CO349=\"No\"),\"-\",IF(AND($S342=\"Y\",'Enrollment Form'!$CO349=\"Yes\",'Enrollment Form'!$CP349<>\"\"),\"Y\",\"N\"))))","v":""},{"$f":"IF(OR('Enrollment Form'!$AV349=\"Yes\",'Enrollment Form'!$AV349=\"\"),\"-\",IF(AND('Enrollment Form'!$AV349=\"No\",ISERROR(FIND(\"HMO\",VLOOKUP('Enrollment Form'!G349,'Enrollment Form'!H$11:J$1000,3,FALSE),1))=FALSE,COUNTA('Enrollment Form'!$AW349:$AZ349)=4),\"Y\",\"N\"))","v":"-"},{"$f":"IF($B342=\"N\",\"\",IF('Enrollment Form'!$B349=\"Subscriber\",\"-\",IF(COUNTA('Enrollment Form'!$BE349,'Enrollment Form'!$BG349)=2,\"Y\",\"N\")))","v":""},{"$f":"IF($B342=\"N\",\"\",IF(OR('Enrollment Form'!$AU349=\"\",'Enrollment Form'!$AU349=\"No\"),\"-\",IF(AND('Enrollment Form'!$AU349=\"Yes\",COUNTA('Enrollment Form'!$CK349)=1),\"Y\",\"N\")))","v":""},{"$f":"IF(OR('Enrollment Form'!$CK349=\"\",'Enrollment Form'!$CK349=\"No\"),\"-\",IF(COUNTA('Enrollment Form'!$CM349:$CN349)=2,\"Y\",\"N\"))","v":"-"},{"$f":"IF($B342=\"N\",\"\",IF(COUNTIF('Enrollment Form'!$CZ349:$DO349,\"Other\")=COUNTA('Enrollment Form'!$DF349,'Enrollment Form'!$DA349,'Enrollment Form'!$DK349,'Enrollment Form'!$DP349),\"Y\",\"N\"))","v":""},{"$f":"IF($B342=\"N\",\"\",IF(OR('Enrollment Form'!B349<>\"Subscriber\",'Enrollment Form'!C349=\"ROC\",COUNTIF('Enrollment Form'!AS349:AT349,\"Yes\")>=1),\"-\",IF(AND('Enrollment Form'!C349=\"Enroll\",COUNTIF('Enrollment Form'!AS349:AT349,\"No\")=2,'Enrollment Form'!AU349=\"\"),\"N\",\"Y\")))","v":""},{"$f":"IF(OR(B342=\"N\",'Enrollment Form'!B349<>\"Subscriber\",'Enrollment Form'!C349=\"ROC\",'Enrollment Form'!O349<>\"Multiple of Salary\"),\"-\",IF(COUNTA('Enrollment Form'!T349:U349)<2,\"N\",\"Y\"))","v":"-"},{"$f":"IF(B342=\"N\",\"\",IF(OR('Enrollment Form'!C349=\"ROC\",'Enrollment Form'!B349<>\"Subscriber\",'Enrollment Form'!O349=\"Waive\",'Enrollment Form'!O349=\"\"),\"-\",IF('Enrollment Form'!P349=\"\",\"N\",\"Y\")))","v":""},{"$f":"IF($B342=\"N\",\"\",IF(AND('Enrollment Form'!$C349=\"ROC\",'Enrollment Form'!$DS349<>\"\"),\"Y\",IF(AND('Enrollment Form'!$C349=\"ROC\",'Enrollment Form'!$DS349=\"\"),\"N\",IF(AND('Enrollment Form'!$C349=\"Enroll\",'Enrollment Form'!$B349=\"Subscriber\",'Enrollment Form'!$CQ349=\"No\",'Enrollment Form'!$DS349=\"\"),\"N\",IF(AND('Enrollment Form'!$C349=\"Enroll\",'Enrollment Form'!$B349=\"Subscriber\",'Enrollment Form'!$CQ349=\"Yes\"),\"-\",\"Y\")))))","v":""},{"$f":"IF($B342=\"N\",\"\",IF(AND('Enrollment Form'!$C349=\"ROC\",'Enrollment Form'!$DT349<>\"\"),\"Y\",IF(AND('Enrollment Form'!$C349=\"ROC\",'Enrollment Form'!$DT349=\"\"),\"N\",IF(AND('Enrollment Form'!$C349=\"Enroll\",'Enrollment Form'!$B349=\"Subscriber\",'Enrollment Form'!$CQ349=\"No\",'Enrollment Form'!$DT349=\"\"),\"N\",IF(AND('Enrollment Form'!$C349=\"Enroll\",'Enrollment Form'!$B349=\"Subscriber\",'Enrollment Form'!$CQ349=\"Yes\"),\"-\",\"Y\")))))","v":""},{"$f":"IF('Enrollment Form'!AH349=\"\",\"\",IF(ISERROR(SEARCH(\".\",'Enrollment Form'!AH349,SEARCH(\"@\",'Enrollment Form'!AH349))),\"N\",\"Y\"))","v":""},{"$f":"IF(OR($B342=\"N\",'Enrollment Form'!$G349=\"\"),\"\",IF('Enrollment Form'!$B349<>\"Subscriber\",\"-\",IF(COUNTIF('Enrollment Form'!$AS349:$AT349,\"Yes\")=2,\"N\",\"Y\")))","v":""},{"$f":"IF(OR('Enrollment Form'!$CC349=\"\",'Enrollment Form'!$CC349=\"No\"),\"-\",IF(AND('Enrollment Form'!$CC349=\"Yes\",'Enrollment Form'!$CD349=\"\"),\"N\",\"Y\"))","v":"-"},{"$f":"IF(OR('Enrollment Form'!$CE349=\"\",'Enrollment Form'!$CE349=\"No\"),\"-\",IF(AND('Enrollment Form'!$CE349=\"Yes\",'Enrollment Form'!$CF349=\"\"),\"N\",\"Y\"))","v":"-"},{"$f":"IF(OR('Enrollment Form'!$CG349=\"\",'Enrollment Form'!$CG349=\"No\"),\"-\",IF(AND('Enrollment Form'!$CG349=\"Yes\",'Enrollment Form'!$CH349=\"\"),\"N\",\"Y\"))","v":"-"},{"$f":"IF(OR('Enrollment Form'!$CG349=\"\",'Enrollment Form'!$CG349=\"No\"),\"-\",IF(AND('Enrollment Form'!$CG349=\"Yes\",'Enrollment Form'!$CI349=\"\"),\"N\",\"Y\"))","v":"-"},{"$f":"IF('Enrollment Form'!B349<>\"Subscriber\",\"-\",IF(AND('Enrollment Form'!B349=\"Subscriber\",'Enrollment Form'!C349=\"Enroll\",'Enrollment Form'!AA349=\"\"),\"N\",\"Y\"))","v":"-"},{"$f":"IF(OR('Enrollment Form'!B349=\"Subscriber\",'Enrollment Form'!B349=\"\"),\"-\",IF('Enrollment Form'!BI349=\"\",\"N\",\"Y\"))","v":"-"},{"$f":"IF('Enrollment Form'!B349<>\"Subscriber\",\"-\",IF(AND('Enrollment Form'!B349=\"Subscriber\",'Enrollment Form'!G349=\"\"),\"N\",\"Y\"))","v":"-"},{"$f":"IF('Enrollment Form'!A349=\"\",\"\",IF('Enrollment Form'!B349=\"Subscriber\",\"-\",IF(AND('Enrollment Form'!B349<>\"Subscriber\",'Enrollment Form'!G349='Enrollment Form'!H349),\"N\",\"Y\")))","v":""},0]
[350,{"$f":"IF('Enrollment Form'!$A350<>\"\",\"Y\",\"N\")","v":"N"},{"$f":"IF(AND('Enrollment Form'!$B350=\"\",'Enrollment Form'!$C350<>\"\"),\"N\",IF($B343=\"N\",\"\",\"Y\"))","v":""},{"$f":"IF(OR($B343=\"N\",'Enrollment Form'!G350=\"\"),\"\",IF('Enrollment Form'!$B350<>\"Subscriber\",\"\",IF('Enrollment Form'!$G350='Enrollment Form'!$H350,\"Y\",\"N\")))","v":""},{"$f":"IF($B343=\"N\",\"\",IF(AND(COUNTIFS('Enrollment Form'!$H$11:$H$1000,'Enrollment Form'!$H350,'Enrollment Form'!$B$11:$B$1000,'Enrollment Form'!$B350)>1,'Enrollment Form'!$H350<>\"\"),\"N\",\"Y\"))","v":""},{"$f":"IF($B343=\"N\",\"\",IF(LEN('Enrollment Form'!$Y350)=0,\"\",IF(LEN('Enrollment Form'!$Y350)<>5,\"N\",\"Y\")))","v":""},{"$f":"IF($B343=\"N\",\"\",IF(LEN('Enrollment Form'!$AD350=0),\"\",IF(LEN('Enrollment Form'!$AD350)<>5,\"N\",\"Y\")))","v":""},{"$f":"IF($B343=\"N\",\"\",IF(LEN('Enrollment Form'!$BL350=0),\"\",IF(LEN('Enrollment Form'!$BL350)<>5,\"N\",\"Y\")))","v":""},{"$f":"IF($B343=\"N\",\"\",IF(LEN('Enrollment Form'!$AE350)=0,\"\",IF(LEN('Enrollment Form'!$AE350)<>10,\"N\",\"Y\")))","v":""},{"$f":"IF($B343=\"N\",\"\",IF(LEN('Enrollment Form'!$AF350)=0,\"\",IF(LEN('Enrollment Form'!$AF350)<>10,\"N\",\"Y\")))","v":""},{"$f":"IF('Enrollment Form'!$O350<>\"Graded\",\"-\",IF(AND('Enrollment Form'!$O350=\"Graded\",'Enrollment Form'!$AO350<>\"\"),\"Y\",\"N\"))","v":"-"},{"$f":"IF($B343=\"N\",\"\",IF(OR('Enrollment Form'!$B350<>\"Subscriber\",'Enrollment Form'!$C350=\"ROC\"),\"-\",IF(AND('Enrollment Form'!$B350=\"Subscriber\",'Enrollment Form'!$C350=\"Enroll\",'Enrollment Form'!$AJ350<>\"\"),\"Y\",\"N\")))","v":""},{"$f":"IF($B343=\"N\",\"\",IF(OR('Enrollment Form'!$B350<>\"Subscriber\",'Enrollment Form'!$C350=\"ROC\"),\"-\",IF(AND('Enrollment Form'!$B350=\"Subscriber\",'Enrollment Form'!$C350=\"Enroll\",'Enrollment Form'!$AK350<>\"\"),\"Y\",\"N\")))","v":""},{"$f":"IF($B343=\"N\",\"\",IF(OR('Enrollment Form'!$B350<>\"Subscriber\",'Enrollment Form'!$C350=\"ROC\"),\"-\",IF(AND('Enrollment Form'!$B350=\"Subscriber\",'Enrollment Form'!$C350=\"Enroll\",'Enrollment Form'!$AL350<>\"\"),\"Y\",\"N\")))","v":""},{"$f":"IF($B343=\"N\",\"\",IF(OR('Enrollment Form'!$B350<>\"Subscriber\",'Enrollment Form'!$C350=\"ROC\"),\"-\",IF(AND('Enrollment Form'!$B350=\"Subscriber\",'Enrollment Form'!$C350=\"Enroll\",'Enrollment Form'!$AM350<>\"\"),\"Y\",\"N\")))","v":""},{"$f":"IF($B343=\"N\",\"\",IF(OR('Enrollment Form'!$B350<>\"Subscriber\",'Enrollment Form'!$C350=\"ROC\"),\"-\",IF(AND('Enrollment Form'!$B350=\"Subscriber\",'Enrollment Form'!$C350=\"Enroll\",'Enrollment Form'!$AN350<>\"\"),\"Y\",\"N\")))","v":""},{"$f":"IF($B343=\"N\",\"\",IF(OR('Enrollment Form'!$B350<>\"Subscriber\",'Enrollment Form'!$C350=\"ROC\"),\"-\",IF(AND('Enrollment Form'!$B350=\"Subscriber\",'Enrollment Form'!$C350=\"Enroll\",'Enrollment Form'!$AP350<>\"\"),\"Y\",\"N\")))","v":""},{"$f":"IF($B343=\"N\",\"\",IF($Q343=\"-\",\"-\",IF(AND($Q343=\"Y\",'Enrollment Form'!$AP350=\"No\"),\"-\",IF(AND($Q343=\"Y\",'Enrollment Form'!$AP350=\"Yes\",'Enrollment Form'!$AQ350<>\"\"),\"Y\",\"N\"))))","v":""},{"$f":"IF($B343=\"N\",\"\",IF(OR('Enrollment Form'!$B350<>\"Subscriber\",'Enrollment Form'!$C350=\"ROC\"),\"-\",IF(AND('Enrollment Form'!$B350=\"Subscriber\",'Enrollment Form'!$C350=\"Enroll\",'Enrollment Form'!$CO350<>\"\"),\"Y\",\"N\")))","v":""},{"$f":"IF($B343=\"N\",\"\",IF($S343=\"-\",\"-\",IF(AND($S343=\"Y\",'Enrollment Form'!$CO350=\"No\"),\"-\",IF(AND($S343=\"Y\",'Enrollment Form'!$CO350=\"Yes\",'Enrollment Form'!$CP350<>\"\"),\"Y\",\"N\"))))","v":""},{"$f":"IF(OR('Enrollment Form'!$AV350=\"Yes\",'Enrollment Form'!$AV350=\"\"),\"-\",IF(AND('Enrollment Form'!$AV350=\"No\",ISERROR(FIND(\"HMO\",VLOOKUP('Enrollment Form'!G350,'Enrollment Form'!H$11:J$1000,3,FALSE),1))=FALSE,COUNTA('Enrollment Form'!$AW350:$AZ350)=4),\"Y\",\"N\"))","v":"-"},{"$f":"IF($B343=\"N\",\"\",IF('Enrollment Form'!$B350=\"Subscriber\",\"-\",IF(COUNTA('Enrollment Form'!$BE350,'Enrollment Form'!$BG350)=2,\"Y\",\"N\")))","v":""},{"$f":"IF($B343=\"N\",\"\",IF(OR('Enrollment Form'!$AU350=\"\",'Enrollment Form'!$AU350=\"No\"),\"-\",IF(AND('Enrollment Form'!$AU350=\"Yes\",COUNTA('Enrollment Form'!$CK350)=1),\"Y\",\"N\")))","v":""},{"$f":"IF(OR('Enrollment Form'!$CK350=\"\",'Enrollment Form'!$CK350=\"No\"),\"-\",IF(COUNTA('Enrollment Form'!$CM350:$CN350)=2,\"Y\",\"N\"))","v":"-"},{"$f":"IF($B343=\"N\",\"\",IF(COUNTIF('Enrollment Form'!$CZ350:$DO350,\"Other\")=COUNTA('Enrollment Form'!$DF350,'Enrollment Form'!$DA350,'Enrollment Form'!$DK350,'Enrollment Form'!$DP350),\"Y\",\"N\"))","v":""},{"$f":"IF($B343=\"N\",\"\",IF(OR('Enrollment Form'!B350<>\"Subscriber\",'Enrollment Form'!C350=\"ROC\",COUNTIF('Enrollment Form'!AS350:AT350,\"Yes\")>=1),\"-\",IF(AND('Enrollment Form'!C350=\"Enroll\",COUNTIF('Enrollment Form'!AS350:AT350,\"No\")=2,'Enrollment Form'!AU350=\"\"),\"N\",\"Y\")))","v":""},{"$f":"IF(OR(B343=\"N\",'Enrollment Form'!B350<>\"Subscriber\",'Enrollment Form'!C350=\"ROC\",'Enrollment Form'!O350<>\"Multiple of Salary\"),\"-\",IF(COUNTA('Enrollment Form'!T350:U350)<2,\"N\",\"Y\"))","v":"-"},{"$f":"IF(B343=\"N\",\"\",IF(OR('Enrollment Form'!C350=\"ROC\",'Enrollment Form'!B350<>\"Subscriber\",'Enrollment Form'!O350=\"Waive\",'Enrollment Form'!O350=\"\"),\"-\",IF('Enrollment Form'!P350=\"\",\"N\",\"Y\")))","v":""},{"$f":"IF($B343=\"N\",\"\",IF(AND('Enrollment Form'!$C350=\"ROC\",'Enrollment Form'!$DS350<>\"\"),\"Y\",IF(AND('Enrollment Form'!$C350=\"ROC\",'Enrollment Form'!$DS350=\"\"),\"N\",IF(AND('Enrollment Form'!$C350=\"Enroll\",'Enrollment Form'!$B350=\"Subscriber\",'Enrollment Form'!$CQ350=\"No\",'Enrollment Form'!$DS350=\"\"),\"N\",IF(AND('Enrollment Form'!$C350=\"Enroll\",'Enrollment Form'!$B350=\"Subscriber\",'Enrollment Form'!$CQ350=\"Yes\"),\"-\",\"Y\")))))","v":""},{"$f":"IF($B343=\"N\",\"\",IF(AND('Enrollment Form'!$C350=\"ROC\",'Enrollment Form'!$DT350<>\"\"),\"Y\",IF(AND('Enrollment Form'!$C350=\"ROC\",'Enrollment Form'!$DT350=\"\"),\"N\",IF(AND('Enrollment Form'!$C350=\"Enroll\",'Enrollment Form'!$B350=\"Subscriber\",'Enrollment Form'!$CQ350=\"No\",'Enrollment Form'!$DT350=\"\"),\"N\",IF(AND('Enrollment Form'!$C350=\"Enroll\",'Enrollment Form'!$B350=\"Subscriber\",'Enrollment Form'!$CQ350=\"Yes\"),\"-\",\"Y\")))))","v":""},{"$f":"IF('Enrollment Form'!AH350=\"\",\"\",IF(ISERROR(SEARCH(\".\",'Enrollment Form'!AH350,SEARCH(\"@\",'Enrollment Form'!AH350))),\"N\",\"Y\"))","v":""},{"$f":"IF(OR($B343=\"N\",'Enrollment Form'!$G350=\"\"),\"\",IF('Enrollment Form'!$B350<>\"Subscriber\",\"-\",IF(COUNTIF('Enrollment Form'!$AS350:$AT350,\"Yes\")=2,\"N\",\"Y\")))","v":""},{"$f":"IF(OR('Enrollment Form'!$CC350=\"\",'Enrollment Form'!$CC350=\"No\"),\"-\",IF(AND('Enrollment Form'!$CC350=\"Yes\",'Enrollment Form'!$CD350=\"\"),\"N\",\"Y\"))","v":"-"},{"$f":"IF(OR('Enrollment Form'!$CE350=\"\",'Enrollment Form'!$CE350=\"No\"),\"-\",IF(AND('Enrollment Form'!$CE350=\"Yes\",'Enrollment Form'!$CF350=\"\"),\"N\",\"Y\"))","v":"-"},{"$f":"IF(OR('Enrollment Form'!$CG350=\"\",'Enrollment Form'!$CG350=\"No\"),\"-\",IF(AND('Enrollment Form'!$CG350=\"Yes\",'Enrollment Form'!$CH350=\"\"),\"N\",\"Y\"))","v":"-"},{"$f":"IF(OR('Enrollment Form'!$CG350=\"\",'Enrollment Form'!$CG350=\"No\"),\"-\",IF(AND('Enrollment Form'!$CG350=\"Yes\",'Enrollment Form'!$CI350=\"\"),\"N\",\"Y\"))","v":"-"},{"$f":"IF('Enrollment Form'!B350<>\"Subscriber\",\"-\",IF(AND('Enrollment Form'!B350=\"Subscriber\",'Enrollment Form'!C350=\"Enroll\",'Enrollment Form'!AA350=\"\"),\"N\",\"Y\"))","v":"-"},{"$f":"IF(OR('Enrollment Form'!B350=\"Subscriber\",'Enrollment Form'!B350=\"\"),\"-\",IF('Enrollment Form'!BI350=\"\",\"N\",\"Y\"))","v":"-"},{"$f":"IF('Enrollment Form'!B350<>\"Subscriber\",\"-\",IF(AND('Enrollment Form'!B350=\"Subscriber\",'Enrollment Form'!G350=\"\"),\"N\",\"Y\"))","v":"-"},{"$f":"IF('Enrollment Form'!A350=\"\",\"\",IF('Enrollment Form'!B350=\"Subscriber\",\"-\",IF(AND('Enrollment Form'!B350<>\"Subscriber\",'Enrollment Form'!G350='Enrollment Form'!H350),\"N\",\"Y\")))","v":""},0]
[351,{"$f":"IF('Enrollment Form'!$A351<>\"\",\"Y\",\"N\")","v":"N"},{"$f":"IF(AND('Enrollment Form'!$B351=\"\",'Enrollment Form'!$C351<>\"\"),\"N\",IF($B344=\"N\",\"\",\"Y\"))","v":""},{"$f":"IF(OR($B344=\"N\",'Enrollment Form'!G351=\"\"),\"\",IF('Enrollment Form'!$B351<>\"Subscriber\",\"\",IF('Enrollment Form'!$G351='Enrollment Form'!$H351,\"Y\",\"N\")))","v":""},{"$f":"IF($B344=\"N\",\"\",IF(AND(COUNTIFS('Enrollment Form'!$H$11:$H$1000,'Enrollment Form'!$H351,'Enrollment Form'!$B$11:$B$1000,'Enrollment Form'!$B351)>1,'Enrollment Form'!$H351<>\"\"),\"N\",\"Y\"))","v":""},{"$f":"IF($B344=\"N\",\"\",IF(LEN('Enrollment Form'!$Y351)=0,\"\",IF(LEN('Enrollment Form'!$Y351)<>5,\"N\",\"Y\")))","v":""},{"$f":"IF($B344=\"N\",\"\",IF(LEN('Enrollment Form'!$AD351=0),\"\",IF(LEN('Enrollment Form'!$AD351)<>5,\"N\",\"Y\")))","v":""},{"$f":"IF($B344=\"N\",\"\",IF(LEN('Enrollment Form'!$BL351=0),\"\",IF(LEN('Enrollment Form'!$BL351)<>5,\"N\",\"Y\")))","v":""},{"$f":"IF($B344=\"N\",\"\",IF(LEN('Enrollment Form'!$AE351)=0,\"\",IF(LEN('Enrollment Form'!$AE351)<>10,\"N\",\"Y\")))","v":""},{"$f":"IF($B344=\"N\",\"\",IF(LEN('Enrollment Form'!$AF351)=0,\"\",IF(LEN('Enrollment Form'!$AF351)<>10,\"N\",\"Y\")))","v":""},{"$f":"IF('Enrollment Form'!$O351<>\"Graded\",\"-\",IF(AND('Enrollment Form'!$O351=\"Graded\",'Enrollment Form'!$AO351<>\"\"),\"Y\",\"N\"))","v":"-"},{"$f":"IF($B344=\"N\",\"\",IF(OR('Enrollment Form'!$B351<>\"Subscriber\",'Enrollment Form'!$C351=\"ROC\"),\"-\",IF(AND('Enrollment Form'!$B351=\"Subscriber\",'Enrollment Form'!$C351=\"Enroll\",'Enrollment Form'!$AJ351<>\"\"),\"Y\",\"N\")))","v":""},{"$f":"IF($B344=\"N\",\"\",IF(OR('Enrollment Form'!$B351<>\"Subscriber\",'Enrollment Form'!$C351=\"ROC\"),\"-\",IF(AND('Enrollment Form'!$B351=\"Subscriber\",'Enrollment Form'!$C351=\"Enroll\",'Enrollment Form'!$AK351<>\"\"),\"Y\",\"N\")))","v":""},{"$f":"IF($B344=\"N\",\"\",IF(OR('Enrollment Form'!$B351<>\"Subscriber\",'Enrollment Form'!$C351=\"ROC\"),\"-\",IF(AND('Enrollment Form'!$B351=\"Subscriber\",'Enrollment Form'!$C351=\"Enroll\",'Enrollment Form'!$AL351<>\"\"),\"Y\",\"N\")))","v":""},{"$f":"IF($B344=\"N\",\"\",IF(OR('Enrollment Form'!$B351<>\"Subscriber\",'Enrollment Form'!$C351=\"ROC\"),\"-\",IF(AND('Enrollment Form'!$B351=\"Subscriber\",'Enrollment Form'!$C351=\"Enroll\",'Enrollment Form'!$AM351<>\"\"),\"Y\",\"N\")))","v":""},{"$f":"IF($B344=\"N\",\"\",IF(OR('Enrollment Form'!$B351<>\"Subscriber\",'Enrollment Form'!$C351=\"ROC\"),\"-\",IF(AND('Enrollment Form'!$B351=\"Subscriber\",'Enrollment Form'!$C351=\"Enroll\",'Enrollment Form'!$AN351<>\"\"),\"Y\",\"N\")))","v":""},{"$f":"IF($B344=\"N\",\"\",IF(OR('Enrollment Form'!$B351<>\"Subscriber\",'Enrollment Form'!$C351=\"ROC\"),\"-\",IF(AND('Enrollment Form'!$B351=\"Subscriber\",'Enrollment Form'!$C351=\"Enroll\",'Enrollment Form'!$AP351<>\"\"),\"Y\",\"N\")))","v":""},{"$f":"IF($B344=\"N\",\"\",IF($Q344=\"-\",\"-\",IF(AND($Q344=\"Y\",'Enrollment Form'!$AP351=\"No\"),\"-\",IF(AND($Q344=\"Y\",'Enrollment Form'!$AP351=\"Yes\",'Enrollment Form'!$AQ351<>\"\"),\"Y\",\"N\"))))","v":""},{"$f":"IF($B344=\"N\",\"\",IF(OR('Enrollment Form'!$B351<>\"Subscriber\",'Enrollment Form'!$C351=\"ROC\"),\"-\",IF(AND('Enrollment Form'!$B351=\"Subscriber\",'Enrollment Form'!$C351=\"Enroll\",'Enrollment Form'!$CO351<>\"\"),\"Y\",\"N\")))","v":""},{"$f":"IF($B344=\"N\",\"\",IF($S344=\"-\",\"-\",IF(AND($S344=\"Y\",'Enrollment Form'!$CO351=\"No\"),\"-\",IF(AND($S344=\"Y\",'Enrollment Form'!$CO351=\"Yes\",'Enrollment Form'!$CP351<>\"\"),\"Y\",\"N\"))))","v":""},{"$f":"IF(OR('Enrollment Form'!$AV351=\"Yes\",'Enrollment Form'!$AV351=\"\"),\"-\",IF(AND('Enrollment Form'!$AV351=\"No\",ISERROR(FIND(\"HMO\",VLOOKUP('Enrollment Form'!G351,'Enrollment Form'!H$11:J$1000,3,FALSE),1))=FALSE,COUNTA('Enrollment Form'!$AW351:$AZ351)=4),\"Y\",\"N\"))","v":"-"},{"$f":"IF($B344=\"N\",\"\",IF('Enrollment Form'!$B351=\"Subscriber\",\"-\",IF(COUNTA('Enrollment Form'!$BE351,'Enrollment Form'!$BG351)=2,\"Y\",\"N\")))","v":""},{"$f":"IF($B344=\"N\",\"\",IF(OR('Enrollment Form'!$AU351=\"\",'Enrollment Form'!$AU351=\"No\"),\"-\",IF(AND('Enrollment Form'!$AU351=\"Yes\",COUNTA('Enrollment Form'!$CK351)=1),\"Y\",\"N\")))","v":""},{"$f":"IF(OR('Enrollment Form'!$CK351=\"\",'Enrollment Form'!$CK351=\"No\"),\"-\",IF(COUNTA('Enrollment Form'!$CM351:$CN351)=2,\"Y\",\"N\"))","v":"-"},{"$f":"IF($B344=\"N\",\"\",IF(COUNTIF('Enrollment Form'!$CZ351:$DO351,\"Other\")=COUNTA('Enrollment Form'!$DF351,'Enrollment Form'!$DA351,'Enrollment Form'!$DK351,'Enrollment Form'!$DP351),\"Y\",\"N\"))","v":""},{"$f":"IF($B344=\"N\",\"\",IF(OR('Enrollment Form'!B351<>\"Subscriber\",'Enrollment Form'!C351=\"ROC\",COUNTIF('Enrollment Form'!AS351:AT351,\"Yes\")>=1),\"-\",IF(AND('Enrollment Form'!C351=\"Enroll\",COUNTIF('Enrollment Form'!AS351:AT351,\"No\")=2,'Enrollment Form'!AU351=\"\"),\"N\",\"Y\")))","v":""},{"$f":"IF(OR(B344=\"N\",'Enrollment Form'!B351<>\"Subscriber\",'Enrollment Form'!C351=\"ROC\",'Enrollment Form'!O351<>\"Multiple of Salary\"),\"-\",IF(COUNTA('Enrollment Form'!T351:U351)<2,\"N\",\"Y\"))","v":"-"},{"$f":"IF(B344=\"N\",\"\",IF(OR('Enrollment Form'!C351=\"ROC\",'Enrollment Form'!B351<>\"Subscriber\",'Enrollment Form'!O351=\"Waive\",'Enrollment Form'!O351=\"\"),\"-\",IF('Enrollment Form'!P351=\"\",\"N\",\"Y\")))","v":""},{"$f":"IF($B344=\"N\",\"\",IF(AND('Enrollment Form'!$C351=\"ROC\",'Enrollment Form'!$DS351<>\"\"),\"Y\",IF(AND('Enrollment Form'!$C351=\"ROC\",'Enrollment Form'!$DS351=\"\"),\"N\",IF(AND('Enrollment Form'!$C351=\"Enroll\",'Enrollment Form'!$B351=\"Subscriber\",'Enrollment Form'!$CQ351=\"No\",'Enrollment Form'!$DS351=\"\"),\"N\",IF(AND('Enrollment Form'!$C351=\"Enroll\",'Enrollment Form'!$B351=\"Subscriber\",'Enrollment Form'!$CQ351=\"Yes\"),\"-\",\"Y\")))))","v":""},{"$f":"IF($B344=\"N\",\"\",IF(AND('Enrollment Form'!$C351=\"ROC\",'Enrollment Form'!$DT351<>\"\"),\"Y\",IF(AND('Enrollment Form'!$C351=\"ROC\",'Enrollment Form'!$DT351=\"\"),\"N\",IF(AND('Enrollment Form'!$C351=\"Enroll\",'Enrollment Form'!$B351=\"Subscriber\",'Enrollment Form'!$CQ351=\"No\",'Enrollment Form'!$DT351=\"\"),\"N\",IF(AND('Enrollment Form'!$C351=\"Enroll\",'Enrollment Form'!$B351=\"Subscriber\",'Enrollment Form'!$CQ351=\"Yes\"),\"-\",\"Y\")))))","v":""},{"$f":"IF('Enrollment Form'!AH351=\"\",\"\",IF(ISERROR(SEARCH(\".\",'Enrollment Form'!AH351,SEARCH(\"@\",'Enrollment Form'!AH351))),\"N\",\"Y\"))","v":""},{"$f":"IF(OR($B344=\"N\",'Enrollment Form'!$G351=\"\"),\"\",IF('Enrollment Form'!$B351<>\"Subscriber\",\"-\",IF(COUNTIF('Enrollment Form'!$AS351:$AT351,\"Yes\")=2,\"N\",\"Y\")))","v":""},{"$f":"IF(OR('Enrollment Form'!$CC351=\"\",'Enrollment Form'!$CC351=\"No\"),\"-\",IF(AND('Enrollment Form'!$CC351=\"Yes\",'Enrollment Form'!$CD351=\"\"),\"N\",\"Y\"))","v":"-"},{"$f":"IF(OR('Enrollment Form'!$CE351=\"\",'Enrollment Form'!$CE351=\"No\"),\"-\",IF(AND('Enrollment Form'!$CE351=\"Yes\",'Enrollment Form'!$CF351=\"\"),\"N\",\"Y\"))","v":"-"},{"$f":"IF(OR('Enrollment Form'!$CG351=\"\",'Enrollment Form'!$CG351=\"No\"),\"-\",IF(AND('Enrollment Form'!$CG351=\"Yes\",'Enrollment Form'!$CH351=\"\"),\"N\",\"Y\"))","v":"-"},{"$f":"IF(OR('Enrollment Form'!$CG351=\"\",'Enrollment Form'!$CG351=\"No\"),\"-\",IF(AND('Enrollment Form'!$CG351=\"Yes\",'Enrollment Form'!$CI351=\"\"),\"N\",\"Y\"))","v":"-"},{"$f":"IF('Enrollment Form'!B351<>\"Subscriber\",\"-\",IF(AND('Enrollment Form'!B351=\"Subscriber\",'Enrollment Form'!C351=\"Enroll\",'Enrollment Form'!AA351=\"\"),\"N\",\"Y\"))","v":"-"},{"$f":"IF(OR('Enrollment Form'!B351=\"Subscriber\",'Enrollment Form'!B351=\"\"),\"-\",IF('Enrollment Form'!BI351=\"\",\"N\",\"Y\"))","v":"-"},{"$f":"IF('Enrollment Form'!B351<>\"Subscriber\",\"-\",IF(AND('Enrollment Form'!B351=\"Subscriber\",'Enrollment Form'!G351=\"\"),\"N\",\"Y\"))","v":"-"},{"$f":"IF('Enrollment Form'!A351=\"\",\"\",IF('Enrollment Form'!B351=\"Subscriber\",\"-\",IF(AND('Enrollment Form'!B351<>\"Subscriber\",'Enrollment Form'!G351='Enrollment Form'!H351),\"N\",\"Y\")))","v":""},0]
[352,{"$f":"IF('Enrollment Form'!$A352<>\"\",\"Y\",\"N\")","v":"N"},{"$f":"IF(AND('Enrollment Form'!$B352=\"\",'Enrollment Form'!$C352<>\"\"),\"N\",IF($B345=\"N\",\"\",\"Y\"))","v":""},{"$f":"IF(OR($B345=\"N\",'Enrollment Form'!G352=\"\"),\"\",IF('Enrollment Form'!$B352<>\"Subscriber\",\"\",IF('Enrollment Form'!$G352='Enrollment Form'!$H352,\"Y\",\"N\")))","v":""},{"$f":"IF($B345=\"N\",\"\",IF(AND(COUNTIFS('Enrollment Form'!$H$11:$H$1000,'Enrollment Form'!$H352,'Enrollment Form'!$B$11:$B$1000,'Enrollment Form'!$B352)>1,'Enrollment Form'!$H352<>\"\"),\"N\",\"Y\"))","v":""},{"$f":"IF($B345=\"N\",\"\",IF(LEN('Enrollment Form'!$Y352)=0,\"\",IF(LEN('Enrollment Form'!$Y352)<>5,\"N\",\"Y\")))","v":""},{"$f":"IF($B345=\"N\",\"\",IF(LEN('Enrollment Form'!$AD352=0),\"\",IF(LEN('Enrollment Form'!$AD352)<>5,\"N\",\"Y\")))","v":""},{"$f":"IF($B345=\"N\",\"\",IF(LEN('Enrollment Form'!$BL352=0),\"\",IF(LEN('Enrollment Form'!$BL352)<>5,\"N\",\"Y\")))","v":""},{"$f":"IF($B345=\"N\",\"\",IF(LEN('Enrollment Form'!$AE352)=0,\"\",IF(LEN('Enrollment Form'!$AE352)<>10,\"N\",\"Y\")))","v":""},{"$f":"IF($B345=\"N\",\"\",IF(LEN('Enrollment Form'!$AF352)=0,\"\",IF(LEN('Enrollment Form'!$AF352)<>10,\"N\",\"Y\")))","v":""},{"$f":"IF('Enrollment Form'!$O352<>\"Graded\",\"-\",IF(AND('Enrollment Form'!$O352=\"Graded\",'Enrollment Form'!$AO352<>\"\"),\"Y\",\"N\"))","v":"-"},{"$f":"IF($B345=\"N\",\"\",IF(OR('Enrollment Form'!$B352<>\"Subscriber\",'Enrollment Form'!$C352=\"ROC\"),\"-\",IF(AND('Enrollment Form'!$B352=\"Subscriber\",'Enrollment Form'!$C352=\"Enroll\",'Enrollment Form'!$AJ352<>\"\"),\"Y\",\"N\")))","v":""},{"$f":"IF($B345=\"N\",\"\",IF(OR('Enrollment Form'!$B352<>\"Subscriber\",'Enrollment Form'!$C352=\"ROC\"),\"-\",IF(AND('Enrollment Form'!$B352=\"Subscriber\",'Enrollment Form'!$C352=\"Enroll\",'Enrollment Form'!$AK352<>\"\"),\"Y\",\"N\")))","v":""},{"$f":"IF($B345=\"N\",\"\",IF(OR('Enrollment Form'!$B352<>\"Subscriber\",'Enrollment Form'!$C352=\"ROC\"),\"-\",IF(AND('Enrollment Form'!$B352=\"Subscriber\",'Enrollment Form'!$C352=\"Enroll\",'Enrollment Form'!$AL352<>\"\"),\"Y\",\"N\")))","v":""},{"$f":"IF($B345=\"N\",\"\",IF(OR('Enrollment Form'!$B352<>\"Subscriber\",'Enrollment Form'!$C352=\"ROC\"),\"-\",IF(AND('Enrollment Form'!$B352=\"Subscriber\",'Enrollment Form'!$C352=\"Enroll\",'Enrollment Form'!$AM352<>\"\"),\"Y\",\"N\")))","v":""},{"$f":"IF($B345=\"N\",\"\",IF(OR('Enrollment Form'!$B352<>\"Subscriber\",'Enrollment Form'!$C352=\"ROC\"),\"-\",IF(AND('Enrollment Form'!$B352=\"Subscriber\",'Enrollment Form'!$C352=\"Enroll\",'Enrollment Form'!$AN352<>\"\"),\"Y\",\"N\")))","v":""},{"$f":"IF($B345=\"N\",\"\",IF(OR('Enrollment Form'!$B352<>\"Subscriber\",'Enrollment Form'!$C352=\"ROC\"),\"-\",IF(AND('Enrollment Form'!$B352=\"Subscriber\",'Enrollment Form'!$C352=\"Enroll\",'Enrollment Form'!$AP352<>\"\"),\"Y\",\"N\")))","v":""},{"$f":"IF($B345=\"N\",\"\",IF($Q345=\"-\",\"-\",IF(AND($Q345=\"Y\",'Enrollment Form'!$AP352=\"No\"),\"-\",IF(AND($Q345=\"Y\",'Enrollment Form'!$AP352=\"Yes\",'Enrollment Form'!$AQ352<>\"\"),\"Y\",\"N\"))))","v":""},{"$f":"IF($B345=\"N\",\"\",IF(OR('Enrollment Form'!$B352<>\"Subscriber\",'Enrollment Form'!$C352=\"ROC\"),\"-\",IF(AND('Enrollment Form'!$B352=\"Subscriber\",'Enrollment Form'!$C352=\"Enroll\",'Enrollment Form'!$CO352<>\"\"),\"Y\",\"N\")))","v":""},{"$f":"IF($B345=\"N\",\"\",IF($S345=\"-\",\"-\",IF(AND($S345=\"Y\",'Enrollment Form'!$CO352=\"No\"),\"-\",IF(AND($S345=\"Y\",'Enrollment Form'!$CO352=\"Yes\",'Enrollment Form'!$CP352<>\"\"),\"Y\",\"N\"))))","v":""},{"$f":"IF(OR('Enrollment Form'!$AV352=\"Yes\",'Enrollment Form'!$AV352=\"\"),\"-\",IF(AND('Enrollment Form'!$AV352=\"No\",ISERROR(FIND(\"HMO\",VLOOKUP('Enrollment Form'!G352,'Enrollment Form'!H$11:J$1000,3,FALSE),1))=FALSE,COUNTA('Enrollment Form'!$AW352:$AZ352)=4),\"Y\",\"N\"))","v":"-"},{"$f":"IF($B345=\"N\",\"\",IF('Enrollment Form'!$B352=\"Subscriber\",\"-\",IF(COUNTA('Enrollment Form'!$BE352,'Enrollment Form'!$BG352)=2,\"Y\",\"N\")))","v":""},{"$f":"IF($B345=\"N\",\"\",IF(OR('Enrollment Form'!$AU352=\"\",'Enrollment Form'!$AU352=\"No\"),\"-\",IF(AND('Enrollment Form'!$AU352=\"Yes\",COUNTA('Enrollment Form'!$CK352)=1),\"Y\",\"N\")))","v":""},{"$f":"IF(OR('Enrollment Form'!$CK352=\"\",'Enrollment Form'!$CK352=\"No\"),\"-\",IF(COUNTA('Enrollment Form'!$CM352:$CN352)=2,\"Y\",\"N\"))","v":"-"},{"$f":"IF($B345=\"N\",\"\",IF(COUNTIF('Enrollment Form'!$CZ352:$DO352,\"Other\")=COUNTA('Enrollment Form'!$DF352,'Enrollment Form'!$DA352,'Enrollment Form'!$DK352,'Enrollment Form'!$DP352),\"Y\",\"N\"))","v":""},{"$f":"IF($B345=\"N\",\"\",IF(OR('Enrollment Form'!B352<>\"Subscriber\",'Enrollment Form'!C352=\"ROC\",COUNTIF('Enrollment Form'!AS352:AT352,\"Yes\")>=1),\"-\",IF(AND('Enrollment Form'!C352=\"Enroll\",COUNTIF('Enrollment Form'!AS352:AT352,\"No\")=2,'Enrollment Form'!AU352=\"\"),\"N\",\"Y\")))","v":""},{"$f":"IF(OR(B345=\"N\",'Enrollment Form'!B352<>\"Subscriber\",'Enrollment Form'!C352=\"ROC\",'Enrollment Form'!O352<>\"Multiple of Salary\"),\"-\",IF(COUNTA('Enrollment Form'!T352:U352)<2,\"N\",\"Y\"))","v":"-"},{"$f":"IF(B345=\"N\",\"\",IF(OR('Enrollment Form'!C352=\"ROC\",'Enrollment Form'!B352<>\"Subscriber\",'Enrollment Form'!O352=\"Waive\",'Enrollment Form'!O352=\"\"),\"-\",IF('Enrollment Form'!P352=\"\",\"N\",\"Y\")))","v":""},{"$f":"IF($B345=\"N\",\"\",IF(AND('Enrollment Form'!$C352=\"ROC\",'Enrollment Form'!$DS352<>\"\"),\"Y\",IF(AND('Enrollment Form'!$C352=\"ROC\",'Enrollment Form'!$DS352=\"\"),\"N\",IF(AND('Enrollment Form'!$C352=\"Enroll\",'Enrollment Form'!$B352=\"Subscriber\",'Enrollment Form'!$CQ352=\"No\",'Enrollment Form'!$DS352=\"\"),\"N\",IF(AND('Enrollment Form'!$C352=\"Enroll\",'Enrollment Form'!$B352=\"Subscriber\",'Enrollment Form'!$CQ352=\"Yes\"),\"-\",\"Y\")))))","v":""},{"$f":"IF($B345=\"N\",\"\",IF(AND('Enrollment Form'!$C352=\"ROC\",'Enrollment Form'!$DT352<>\"\"),\"Y\",IF(AND('Enrollment Form'!$C352=\"ROC\",'Enrollment Form'!$DT352=\"\"),\"N\",IF(AND('Enrollment Form'!$C352=\"Enroll\",'Enrollment Form'!$B352=\"Subscriber\",'Enrollment Form'!$CQ352=\"No\",'Enrollment Form'!$DT352=\"\"),\"N\",IF(AND('Enrollment Form'!$C352=\"Enroll\",'Enrollment Form'!$B352=\"Subscriber\",'Enrollment Form'!$CQ352=\"Yes\"),\"-\",\"Y\")))))","v":""},{"$f":"IF('Enrollment Form'!AH352=\"\",\"\",IF(ISERROR(SEARCH(\".\",'Enrollment Form'!AH352,SEARCH(\"@\",'Enrollment Form'!AH352))),\"N\",\"Y\"))","v":""},{"$f":"IF(OR($B345=\"N\",'Enrollment Form'!$G352=\"\"),\"\",IF('Enrollment Form'!$B352<>\"Subscriber\",\"-\",IF(COUNTIF('Enrollment Form'!$AS352:$AT352,\"Yes\")=2,\"N\",\"Y\")))","v":""},{"$f":"IF(OR('Enrollment Form'!$CC352=\"\",'Enrollment Form'!$CC352=\"No\"),\"-\",IF(AND('Enrollment Form'!$CC352=\"Yes\",'Enrollment Form'!$CD352=\"\"),\"N\",\"Y\"))","v":"-"},{"$f":"IF(OR('Enrollment Form'!$CE352=\"\",'Enrollment Form'!$CE352=\"No\"),\"-\",IF(AND('Enrollment Form'!$CE352=\"Yes\",'Enrollment Form'!$CF352=\"\"),\"N\",\"Y\"))","v":"-"},{"$f":"IF(OR('Enrollment Form'!$CG352=\"\",'Enrollment Form'!$CG352=\"No\"),\"-\",IF(AND('Enrollment Form'!$CG352=\"Yes\",'Enrollment Form'!$CH352=\"\"),\"N\",\"Y\"))","v":"-"},{"$f":"IF(OR('Enrollment Form'!$CG352=\"\",'Enrollment Form'!$CG352=\"No\"),\"-\",IF(AND('Enrollment Form'!$CG352=\"Yes\",'Enrollment Form'!$CI352=\"\"),\"N\",\"Y\"))","v":"-"},{"$f":"IF('Enrollment Form'!B352<>\"Subscriber\",\"-\",IF(AND('Enrollment Form'!B352=\"Subscriber\",'Enrollment Form'!C352=\"Enroll\",'Enrollment Form'!AA352=\"\"),\"N\",\"Y\"))","v":"-"},{"$f":"IF(OR('Enrollment Form'!B352=\"Subscriber\",'Enrollment Form'!B352=\"\"),\"-\",IF('Enrollment Form'!BI352=\"\",\"N\",\"Y\"))","v":"-"},{"$f":"IF('Enrollment Form'!B352<>\"Subscriber\",\"-\",IF(AND('Enrollment Form'!B352=\"Subscriber\",'Enrollment Form'!G352=\"\"),\"N\",\"Y\"))","v":"-"},{"$f":"IF('Enrollment Form'!A352=\"\",\"\",IF('Enrollment Form'!B352=\"Subscriber\",\"-\",IF(AND('Enrollment Form'!B352<>\"Subscriber\",'Enrollment Form'!G352='Enrollment Form'!H352),\"N\",\"Y\")))","v":""},0]
[353,{"$f":"IF('Enrollment Form'!$A353<>\"\",\"Y\",\"N\")","v":"N"},{"$f":"IF(AND('Enrollment Form'!$B353=\"\",'Enrollment Form'!$C353<>\"\"),\"N\",IF($B346=\"N\",\"\",\"Y\"))","v":""},{"$f":"IF(OR($B346=\"N\",'Enrollment Form'!G353=\"\"),\"\",IF('Enrollment Form'!$B353<>\"Subscriber\",\"\",IF('Enrollment Form'!$G353='Enrollment Form'!$H353,\"Y\",\"N\")))","v":""},{"$f":"IF($B346=\"N\",\"\",IF(AND(COUNTIFS('Enrollment Form'!$H$11:$H$1000,'Enrollment Form'!$H353,'Enrollment Form'!$B$11:$B$1000,'Enrollment Form'!$B353)>1,'Enrollment Form'!$H353<>\"\"),\"N\",\"Y\"))","v":""},{"$f":"IF($B346=\"N\",\"\",IF(LEN('Enrollment Form'!$Y353)=0,\"\",IF(LEN('Enrollment Form'!$Y353)<>5,\"N\",\"Y\")))","v":""},{"$f":"IF($B346=\"N\",\"\",IF(LEN('Enrollment Form'!$AD353=0),\"\",IF(LEN('Enrollment Form'!$AD353)<>5,\"N\",\"Y\")))","v":""},{"$f":"IF($B346=\"N\",\"\",IF(LEN('Enrollment Form'!$BL353=0),\"\",IF(LEN('Enrollment Form'!$BL353)<>5,\"N\",\"Y\")))","v":""},{"$f":"IF($B346=\"N\",\"\",IF(LEN('Enrollment Form'!$AE353)=0,\"\",IF(LEN('Enrollment Form'!$AE353)<>10,\"N\",\"Y\")))","v":""},{"$f":"IF($B346=\"N\",\"\",IF(LEN('Enrollment Form'!$AF353)=0,\"\",IF(LEN('Enrollment Form'!$AF353)<>10,\"N\",\"Y\")))","v":""},{"$f":"IF('Enrollment Form'!$O353<>\"Graded\",\"-\",IF(AND('Enrollment Form'!$O353=\"Graded\",'Enrollment Form'!$AO353<>\"\"),\"Y\",\"N\"))","v":"-"},{"$f":"IF($B346=\"N\",\"\",IF(OR('Enrollment Form'!$B353<>\"Subscriber\",'Enrollment Form'!$C353=\"ROC\"),\"-\",IF(AND('Enrollment Form'!$B353=\"Subscriber\",'Enrollment Form'!$C353=\"Enroll\",'Enrollment Form'!$AJ353<>\"\"),\"Y\",\"N\")))","v":""},{"$f":"IF($B346=\"N\",\"\",IF(OR('Enrollment Form'!$B353<>\"Subscriber\",'Enrollment Form'!$C353=\"ROC\"),\"-\",IF(AND('Enrollment Form'!$B353=\"Subscriber\",'Enrollment Form'!$C353=\"Enroll\",'Enrollment Form'!$AK353<>\"\"),\"Y\",\"N\")))","v":""},{"$f":"IF($B346=\"N\",\"\",IF(OR('Enrollment Form'!$B353<>\"Subscriber\",'Enrollment Form'!$C353=\"ROC\"),\"-\",IF(AND('Enrollment Form'!$B353=\"Subscriber\",'Enrollment Form'!$C353=\"Enroll\",'Enrollment Form'!$AL353<>\"\"),\"Y\",\"N\")))","v":""},{"$f":"IF($B346=\"N\",\"\",IF(OR('Enrollment Form'!$B353<>\"Subscriber\",'Enrollment Form'!$C353=\"ROC\"),\"-\",IF(AND('Enrollment Form'!$B353=\"Subscriber\",'Enrollment Form'!$C353=\"Enroll\",'Enrollment Form'!$AM353<>\"\"),\"Y\",\"N\")))","v":""},{"$f":"IF($B346=\"N\",\"\",IF(OR('Enrollment Form'!$B353<>\"Subscriber\",'Enrollment Form'!$C353=\"ROC\"),\"-\",IF(AND('Enrollment Form'!$B353=\"Subscriber\",'Enrollment Form'!$C353=\"Enroll\",'Enrollment Form'!$AN353<>\"\"),\"Y\",\"N\")))","v":""},{"$f":"IF($B346=\"N\",\"\",IF(OR('Enrollment Form'!$B353<>\"Subscriber\",'Enrollment Form'!$C353=\"ROC\"),\"-\",IF(AND('Enrollment Form'!$B353=\"Subscriber\",'Enrollment Form'!$C353=\"Enroll\",'Enrollment Form'!$AP353<>\"\"),\"Y\",\"N\")))","v":""},{"$f":"IF($B346=\"N\",\"\",IF($Q346=\"-\",\"-\",IF(AND($Q346=\"Y\",'Enrollment Form'!$AP353=\"No\"),\"-\",IF(AND($Q346=\"Y\",'Enrollment Form'!$AP353=\"Yes\",'Enrollment Form'!$AQ353<>\"\"),\"Y\",\"N\"))))","v":""},{"$f":"IF($B346=\"N\",\"\",IF(OR('Enrollment Form'!$B353<>\"Subscriber\",'Enrollment Form'!$C353=\"ROC\"),\"-\",IF(AND('Enrollment Form'!$B353=\"Subscriber\",'Enrollment Form'!$C353=\"Enroll\",'Enrollment Form'!$CO353<>\"\"),\"Y\",\"N\")))","v":""},{"$f":"IF($B346=\"N\",\"\",IF($S346=\"-\",\"-\",IF(AND($S346=\"Y\",'Enrollment Form'!$CO353=\"No\"),\"-\",IF(AND($S346=\"Y\",'Enrollment Form'!$CO353=\"Yes\",'Enrollment Form'!$CP353<>\"\"),\"Y\",\"N\"))))","v":""},{"$f":"IF(OR('Enrollment Form'!$AV353=\"Yes\",'Enrollment Form'!$AV353=\"\"),\"-\",IF(AND('Enrollment Form'!$AV353=\"No\",ISERROR(FIND(\"HMO\",VLOOKUP('Enrollment Form'!G353,'Enrollment Form'!H$11:J$1000,3,FALSE),1))=FALSE,COUNTA('Enrollment Form'!$AW353:$AZ353)=4),\"Y\",\"N\"))","v":"-"},{"$f":"IF($B346=\"N\",\"\",IF('Enrollment Form'!$B353=\"Subscriber\",\"-\",IF(COUNTA('Enrollment Form'!$BE353,'Enrollment Form'!$BG353)=2,\"Y\",\"N\")))","v":""},{"$f":"IF($B346=\"N\",\"\",IF(OR('Enrollment Form'!$AU353=\"\",'Enrollment Form'!$AU353=\"No\"),\"-\",IF(AND('Enrollment Form'!$AU353=\"Yes\",COUNTA('Enrollment Form'!$CK353)=1),\"Y\",\"N\")))","v":""},{"$f":"IF(OR('Enrollment Form'!$CK353=\"\",'Enrollment Form'!$CK353=\"No\"),\"-\",IF(COUNTA('Enrollment Form'!$CM353:$CN353)=2,\"Y\",\"N\"))","v":"-"},{"$f":"IF($B346=\"N\",\"\",IF(COUNTIF('Enrollment Form'!$CZ353:$DO353,\"Other\")=COUNTA('Enrollment Form'!$DF353,'Enrollment Form'!$DA353,'Enrollment Form'!$DK353,'Enrollment Form'!$DP353),\"Y\",\"N\"))","v":""},{"$f":"IF($B346=\"N\",\"\",IF(OR('Enrollment Form'!B353<>\"Subscriber\",'Enrollment Form'!C353=\"ROC\",COUNTIF('Enrollment Form'!AS353:AT353,\"Yes\")>=1),\"-\",IF(AND('Enrollment Form'!C353=\"Enroll\",COUNTIF('Enrollment Form'!AS353:AT353,\"No\")=2,'Enrollment Form'!AU353=\"\"),\"N\",\"Y\")))","v":""},{"$f":"IF(OR(B346=\"N\",'Enrollment Form'!B353<>\"Subscriber\",'Enrollment Form'!C353=\"ROC\",'Enrollment Form'!O353<>\"Multiple of Salary\"),\"-\",IF(COUNTA('Enrollment Form'!T353:U353)<2,\"N\",\"Y\"))","v":"-"},{"$f":"IF(B346=\"N\",\"\",IF(OR('Enrollment Form'!C353=\"ROC\",'Enrollment Form'!B353<>\"Subscriber\",'Enrollment Form'!O353=\"Waive\",'Enrollment Form'!O353=\"\"),\"-\",IF('Enrollment Form'!P353=\"\",\"N\",\"Y\")))","v":""},{"$f":"IF($B346=\"N\",\"\",IF(AND('Enrollment Form'!$C353=\"ROC\",'Enrollment Form'!$DS353<>\"\"),\"Y\",IF(AND('Enrollment Form'!$C353=\"ROC\",'Enrollment Form'!$DS353=\"\"),\"N\",IF(AND('Enrollment Form'!$C353=\"Enroll\",'Enrollment Form'!$B353=\"Subscriber\",'Enrollment Form'!$CQ353=\"No\",'Enrollment Form'!$DS353=\"\"),\"N\",IF(AND('Enrollment Form'!$C353=\"Enroll\",'Enrollment Form'!$B353=\"Subscriber\",'Enrollment Form'!$CQ353=\"Yes\"),\"-\",\"Y\")))))","v":""},{"$f":"IF($B346=\"N\",\"\",IF(AND('Enrollment Form'!$C353=\"ROC\",'Enrollment Form'!$DT353<>\"\"),\"Y\",IF(AND('Enrollment Form'!$C353=\"ROC\",'Enrollment Form'!$DT353=\"\"),\"N\",IF(AND('Enrollment Form'!$C353=\"Enroll\",'Enrollment Form'!$B353=\"Subscriber\",'Enrollment Form'!$CQ353=\"No\",'Enrollment Form'!$DT353=\"\"),\"N\",IF(AND('Enrollment Form'!$C353=\"Enroll\",'Enrollment Form'!$B353=\"Subscriber\",'Enrollment Form'!$CQ353=\"Yes\"),\"-\",\"Y\")))))","v":""},{"$f":"IF('Enrollment Form'!AH353=\"\",\"\",IF(ISERROR(SEARCH(\".\",'Enrollment Form'!AH353,SEARCH(\"@\",'Enrollment Form'!AH353))),\"N\",\"Y\"))","v":""},{"$f":"IF(OR($B346=\"N\",'Enrollment Form'!$G353=\"\"),\"\",IF('Enrollment Form'!$B353<>\"Subscriber\",\"-\",IF(COUNTIF('Enrollment Form'!$AS353:$AT353,\"Yes\")=2,\"N\",\"Y\")))","v":""},{"$f":"IF(OR('Enrollment Form'!$CC353=\"\",'Enrollment Form'!$CC353=\"No\"),\"-\",IF(AND('Enrollment Form'!$CC353=\"Yes\",'Enrollment Form'!$CD353=\"\"),\"N\",\"Y\"))","v":"-"},{"$f":"IF(OR('Enrollment Form'!$CE353=\"\",'Enrollment Form'!$CE353=\"No\"),\"-\",IF(AND('Enrollment Form'!$CE353=\"Yes\",'Enrollment Form'!$CF353=\"\"),\"N\",\"Y\"))","v":"-"},{"$f":"IF(OR('Enrollment Form'!$CG353=\"\",'Enrollment Form'!$CG353=\"No\"),\"-\",IF(AND('Enrollment Form'!$CG353=\"Yes\",'Enrollment Form'!$CH353=\"\"),\"N\",\"Y\"))","v":"-"},{"$f":"IF(OR('Enrollment Form'!$CG353=\"\",'Enrollment Form'!$CG353=\"No\"),\"-\",IF(AND('Enrollment Form'!$CG353=\"Yes\",'Enrollment Form'!$CI353=\"\"),\"N\",\"Y\"))","v":"-"},{"$f":"IF('Enrollment Form'!B353<>\"Subscriber\",\"-\",IF(AND('Enrollment Form'!B353=\"Subscriber\",'Enrollment Form'!C353=\"Enroll\",'Enrollment Form'!AA353=\"\"),\"N\",\"Y\"))","v":"-"},{"$f":"IF(OR('Enrollment Form'!B353=\"Subscriber\",'Enrollment Form'!B353=\"\"),\"-\",IF('Enrollment Form'!BI353=\"\",\"N\",\"Y\"))","v":"-"},{"$f":"IF('Enrollment Form'!B353<>\"Subscriber\",\"-\",IF(AND('Enrollment Form'!B353=\"Subscriber\",'Enrollment Form'!G353=\"\"),\"N\",\"Y\"))","v":"-"},{"$f":"IF('Enrollment Form'!A353=\"\",\"\",IF('Enrollment Form'!B353=\"Subscriber\",\"-\",IF(AND('Enrollment Form'!B353<>\"Subscriber\",'Enrollment Form'!G353='Enrollment Form'!H353),\"N\",\"Y\")))","v":""},0]
[354,{"$f":"IF('Enrollment Form'!$A354<>\"\",\"Y\",\"N\")","v":"N"},{"$f":"IF(AND('Enrollment Form'!$B354=\"\",'Enrollment Form'!$C354<>\"\"),\"N\",IF($B347=\"N\",\"\",\"Y\"))","v":""},{"$f":"IF(OR($B347=\"N\",'Enrollment Form'!G354=\"\"),\"\",IF('Enrollment Form'!$B354<>\"Subscriber\",\"\",IF('Enrollment Form'!$G354='Enrollment Form'!$H354,\"Y\",\"N\")))","v":""},{"$f":"IF($B347=\"N\",\"\",IF(AND(COUNTIFS('Enrollment Form'!$H$11:$H$1000,'Enrollment Form'!$H354,'Enrollment Form'!$B$11:$B$1000,'Enrollment Form'!$B354)>1,'Enrollment Form'!$H354<>\"\"),\"N\",\"Y\"))","v":""},{"$f":"IF($B347=\"N\",\"\",IF(LEN('Enrollment Form'!$Y354)=0,\"\",IF(LEN('Enrollment Form'!$Y354)<>5,\"N\",\"Y\")))","v":""},{"$f":"IF($B347=\"N\",\"\",IF(LEN('Enrollment Form'!$AD354=0),\"\",IF(LEN('Enrollment Form'!$AD354)<>5,\"N\",\"Y\")))","v":""},{"$f":"IF($B347=\"N\",\"\",IF(LEN('Enrollment Form'!$BL354=0),\"\",IF(LEN('Enrollment Form'!$BL354)<>5,\"N\",\"Y\")))","v":""},{"$f":"IF($B347=\"N\",\"\",IF(LEN('Enrollment Form'!$AE354)=0,\"\",IF(LEN('Enrollment Form'!$AE354)<>10,\"N\",\"Y\")))","v":""},{"$f":"IF($B347=\"N\",\"\",IF(LEN('Enrollment Form'!$AF354)=0,\"\",IF(LEN('Enrollment Form'!$AF354)<>10,\"N\",\"Y\")))","v":""},{"$f":"IF('Enrollment Form'!$O354<>\"Graded\",\"-\",IF(AND('Enrollment Form'!$O354=\"Graded\",'Enrollment Form'!$AO354<>\"\"),\"Y\",\"N\"))","v":"-"},{"$f":"IF($B347=\"N\",\"\",IF(OR('Enrollment Form'!$B354<>\"Subscriber\",'Enrollment Form'!$C354=\"ROC\"),\"-\",IF(AND('Enrollment Form'!$B354=\"Subscriber\",'Enrollment Form'!$C354=\"Enroll\",'Enrollment Form'!$AJ354<>\"\"),\"Y\",\"N\")))","v":""},{"$f":"IF($B347=\"N\",\"\",IF(OR('Enrollment Form'!$B354<>\"Subscriber\",'Enrollment Form'!$C354=\"ROC\"),\"-\",IF(AND('Enrollment Form'!$B354=\"Subscriber\",'Enrollment Form'!$C354=\"Enroll\",'Enrollment Form'!$AK354<>\"\"),\"Y\",\"N\")))","v":""},{"$f":"IF($B347=\"N\",\"\",IF(OR('Enrollment Form'!$B354<>\"Subscriber\",'Enrollment Form'!$C354=\"ROC\"),\"-\",IF(AND('Enrollment Form'!$B354=\"Subscriber\",'Enrollment Form'!$C354=\"Enroll\",'Enrollment Form'!$AL354<>\"\"),\"Y\",\"N\")))","v":""},{"$f":"IF($B347=\"N\",\"\",IF(OR('Enrollment Form'!$B354<>\"Subscriber\",'Enrollment Form'!$C354=\"ROC\"),\"-\",IF(AND('Enrollment Form'!$B354=\"Subscriber\",'Enrollment Form'!$C354=\"Enroll\",'Enrollment Form'!$AM354<>\"\"),\"Y\",\"N\")))","v":""},{"$f":"IF($B347=\"N\",\"\",IF(OR('Enrollment Form'!$B354<>\"Subscriber\",'Enrollment Form'!$C354=\"ROC\"),\"-\",IF(AND('Enrollment Form'!$B354=\"Subscriber\",'Enrollment Form'!$C354=\"Enroll\",'Enrollment Form'!$AN354<>\"\"),\"Y\",\"N\")))","v":""},{"$f":"IF($B347=\"N\",\"\",IF(OR('Enrollment Form'!$B354<>\"Subscriber\",'Enrollment Form'!$C354=\"ROC\"),\"-\",IF(AND('Enrollment Form'!$B354=\"Subscriber\",'Enrollment Form'!$C354=\"Enroll\",'Enrollment Form'!$AP354<>\"\"),\"Y\",\"N\")))","v":""},{"$f":"IF($B347=\"N\",\"\",IF($Q347=\"-\",\"-\",IF(AND($Q347=\"Y\",'Enrollment Form'!$AP354=\"No\"),\"-\",IF(AND($Q347=\"Y\",'Enrollment Form'!$AP354=\"Yes\",'Enrollment Form'!$AQ354<>\"\"),\"Y\",\"N\"))))","v":""},{"$f":"IF($B347=\"N\",\"\",IF(OR('Enrollment Form'!$B354<>\"Subscriber\",'Enrollment Form'!$C354=\"ROC\"),\"-\",IF(AND('Enrollment Form'!$B354=\"Subscriber\",'Enrollment Form'!$C354=\"Enroll\",'Enrollment Form'!$CO354<>\"\"),\"Y\",\"N\")))","v":""},{"$f":"IF($B347=\"N\",\"\",IF($S347=\"-\",\"-\",IF(AND($S347=\"Y\",'Enrollment Form'!$CO354=\"No\"),\"-\",IF(AND($S347=\"Y\",'Enrollment Form'!$CO354=\"Yes\",'Enrollment Form'!$CP354<>\"\"),\"Y\",\"N\"))))","v":""},{"$f":"IF(OR('Enrollment Form'!$AV354=\"Yes\",'Enrollment Form'!$AV354=\"\"),\"-\",IF(AND('Enrollment Form'!$AV354=\"No\",ISERROR(FIND(\"HMO\",VLOOKUP('Enrollment Form'!G354,'Enrollment Form'!H$11:J$1000,3,FALSE),1))=FALSE,COUNTA('Enrollment Form'!$AW354:$AZ354)=4),\"Y\",\"N\"))","v":"-"},{"$f":"IF($B347=\"N\",\"\",IF('Enrollment Form'!$B354=\"Subscriber\",\"-\",IF(COUNTA('Enrollment Form'!$BE354,'Enrollment Form'!$BG354)=2,\"Y\",\"N\")))","v":""},{"$f":"IF($B347=\"N\",\"\",IF(OR('Enrollment Form'!$AU354=\"\",'Enrollment Form'!$AU354=\"No\"),\"-\",IF(AND('Enrollment Form'!$AU354=\"Yes\",COUNTA('Enrollment Form'!$CK354)=1),\"Y\",\"N\")))","v":""},{"$f":"IF(OR('Enrollment Form'!$CK354=\"\",'Enrollment Form'!$CK354=\"No\"),\"-\",IF(COUNTA('Enrollment Form'!$CM354:$CN354)=2,\"Y\",\"N\"))","v":"-"},{"$f":"IF($B347=\"N\",\"\",IF(COUNTIF('Enrollment Form'!$CZ354:$DO354,\"Other\")=COUNTA('Enrollment Form'!$DF354,'Enrollment Form'!$DA354,'Enrollment Form'!$DK354,'Enrollment Form'!$DP354),\"Y\",\"N\"))","v":""},{"$f":"IF($B347=\"N\",\"\",IF(OR('Enrollment Form'!B354<>\"Subscriber\",'Enrollment Form'!C354=\"ROC\",COUNTIF('Enrollment Form'!AS354:AT354,\"Yes\")>=1),\"-\",IF(AND('Enrollment Form'!C354=\"Enroll\",COUNTIF('Enrollment Form'!AS354:AT354,\"No\")=2,'Enrollment Form'!AU354=\"\"),\"N\",\"Y\")))","v":""},{"$f":"IF(OR(B347=\"N\",'Enrollment Form'!B354<>\"Subscriber\",'Enrollment Form'!C354=\"ROC\",'Enrollment Form'!O354<>\"Multiple of Salary\"),\"-\",IF(COUNTA('Enrollment Form'!T354:U354)<2,\"N\",\"Y\"))","v":"-"},{"$f":"IF(B347=\"N\",\"\",IF(OR('Enrollment Form'!C354=\"ROC\",'Enrollment Form'!B354<>\"Subscriber\",'Enrollment Form'!O354=\"Waive\",'Enrollment Form'!O354=\"\"),\"-\",IF('Enrollment Form'!P354=\"\",\"N\",\"Y\")))","v":""},{"$f":"IF($B347=\"N\",\"\",IF(AND('Enrollment Form'!$C354=\"ROC\",'Enrollment Form'!$DS354<>\"\"),\"Y\",IF(AND('Enrollment Form'!$C354=\"ROC\",'Enrollment Form'!$DS354=\"\"),\"N\",IF(AND('Enrollment Form'!$C354=\"Enroll\",'Enrollment Form'!$B354=\"Subscriber\",'Enrollment Form'!$CQ354=\"No\",'Enrollment Form'!$DS354=\"\"),\"N\",IF(AND('Enrollment Form'!$C354=\"Enroll\",'Enrollment Form'!$B354=\"Subscriber\",'Enrollment Form'!$CQ354=\"Yes\"),\"-\",\"Y\")))))","v":""},{"$f":"IF($B347=\"N\",\"\",IF(AND('Enrollment Form'!$C354=\"ROC\",'Enrollment Form'!$DT354<>\"\"),\"Y\",IF(AND('Enrollment Form'!$C354=\"ROC\",'Enrollment Form'!$DT354=\"\"),\"N\",IF(AND('Enrollment Form'!$C354=\"Enroll\",'Enrollment Form'!$B354=\"Subscriber\",'Enrollment Form'!$CQ354=\"No\",'Enrollment Form'!$DT354=\"\"),\"N\",IF(AND('Enrollment Form'!$C354=\"Enroll\",'Enrollment Form'!$B354=\"Subscriber\",'Enrollment Form'!$CQ354=\"Yes\"),\"-\",\"Y\")))))","v":""},{"$f":"IF('Enrollment Form'!AH354=\"\",\"\",IF(ISERROR(SEARCH(\".\",'Enrollment Form'!AH354,SEARCH(\"@\",'Enrollment Form'!AH354))),\"N\",\"Y\"))","v":""},{"$f":"IF(OR($B347=\"N\",'Enrollment Form'!$G354=\"\"),\"\",IF('Enrollment Form'!$B354<>\"Subscriber\",\"-\",IF(COUNTIF('Enrollment Form'!$AS354:$AT354,\"Yes\")=2,\"N\",\"Y\")))","v":""},{"$f":"IF(OR('Enrollment Form'!$CC354=\"\",'Enrollment Form'!$CC354=\"No\"),\"-\",IF(AND('Enrollment Form'!$CC354=\"Yes\",'Enrollment Form'!$CD354=\"\"),\"N\",\"Y\"))","v":"-"},{"$f":"IF(OR('Enrollment Form'!$CE354=\"\",'Enrollment Form'!$CE354=\"No\"),\"-\",IF(AND('Enrollment Form'!$CE354=\"Yes\",'Enrollment Form'!$CF354=\"\"),\"N\",\"Y\"))","v":"-"},{"$f":"IF(OR('Enrollment Form'!$CG354=\"\",'Enrollment Form'!$CG354=\"No\"),\"-\",IF(AND('Enrollment Form'!$CG354=\"Yes\",'Enrollment Form'!$CH354=\"\"),\"N\",\"Y\"))","v":"-"},{"$f":"IF(OR('Enrollment Form'!$CG354=\"\",'Enrollment Form'!$CG354=\"No\"),\"-\",IF(AND('Enrollment Form'!$CG354=\"Yes\",'Enrollment Form'!$CI354=\"\"),\"N\",\"Y\"))","v":"-"},{"$f":"IF('Enrollment Form'!B354<>\"Subscriber\",\"-\",IF(AND('Enrollment Form'!B354=\"Subscriber\",'Enrollment Form'!C354=\"Enroll\",'Enrollment Form'!AA354=\"\"),\"N\",\"Y\"))","v":"-"},{"$f":"IF(OR('Enrollment Form'!B354=\"Subscriber\",'Enrollment Form'!B354=\"\"),\"-\",IF('Enrollment Form'!BI354=\"\",\"N\",\"Y\"))","v":"-"},{"$f":"IF('Enrollment Form'!B354<>\"Subscriber\",\"-\",IF(AND('Enrollment Form'!B354=\"Subscriber\",'Enrollment Form'!G354=\"\"),\"N\",\"Y\"))","v":"-"},{"$f":"IF('Enrollment Form'!A354=\"\",\"\",IF('Enrollment Form'!B354=\"Subscriber\",\"-\",IF(AND('Enrollment Form'!B354<>\"Subscriber\",'Enrollment Form'!G354='Enrollment Form'!H354),\"N\",\"Y\")))","v":""},0]
[355,{"$f":"IF('Enrollment Form'!$A355<>\"\",\"Y\",\"N\")","v":"N"},{"$f":"IF(AND('Enrollment Form'!$B355=\"\",'Enrollment Form'!$C355<>\"\"),\"N\",IF($B348=\"N\",\"\",\"Y\"))","v":""},{"$f":"IF(OR($B348=\"N\",'Enrollment Form'!G355=\"\"),\"\",IF('Enrollment Form'!$B355<>\"Subscriber\",\"\",IF('Enrollment Form'!$G355='Enrollment Form'!$H355,\"Y\",\"N\")))","v":""},{"$f":"IF($B348=\"N\",\"\",IF(AND(COUNTIFS('Enrollment Form'!$H$11:$H$1000,'Enrollment Form'!$H355,'Enrollment Form'!$B$11:$B$1000,'Enrollment Form'!$B355)>1,'Enrollment Form'!$H355<>\"\"),\"N\",\"Y\"))","v":""},{"$f":"IF($B348=\"N\",\"\",IF(LEN('Enrollment Form'!$Y355)=0,\"\",IF(LEN('Enrollment Form'!$Y355)<>5,\"N\",\"Y\")))","v":""},{"$f":"IF($B348=\"N\",\"\",IF(LEN('Enrollment Form'!$AD355=0),\"\",IF(LEN('Enrollment Form'!$AD355)<>5,\"N\",\"Y\")))","v":""},{"$f":"IF($B348=\"N\",\"\",IF(LEN('Enrollment Form'!$BL355=0),\"\",IF(LEN('Enrollment Form'!$BL355)<>5,\"N\",\"Y\")))","v":""},{"$f":"IF($B348=\"N\",\"\",IF(LEN('Enrollment Form'!$AE355)=0,\"\",IF(LEN('Enrollment Form'!$AE355)<>10,\"N\",\"Y\")))","v":""},{"$f":"IF($B348=\"N\",\"\",IF(LEN('Enrollment Form'!$AF355)=0,\"\",IF(LEN('Enrollment Form'!$AF355)<>10,\"N\",\"Y\")))","v":""},{"$f":"IF('Enrollment Form'!$O355<>\"Graded\",\"-\",IF(AND('Enrollment Form'!$O355=\"Graded\",'Enrollment Form'!$AO355<>\"\"),\"Y\",\"N\"))","v":"-"},{"$f":"IF($B348=\"N\",\"\",IF(OR('Enrollment Form'!$B355<>\"Subscriber\",'Enrollment Form'!$C355=\"ROC\"),\"-\",IF(AND('Enrollment Form'!$B355=\"Subscriber\",'Enrollment Form'!$C355=\"Enroll\",'Enrollment Form'!$AJ355<>\"\"),\"Y\",\"N\")))","v":""},{"$f":"IF($B348=\"N\",\"\",IF(OR('Enrollment Form'!$B355<>\"Subscriber\",'Enrollment Form'!$C355=\"ROC\"),\"-\",IF(AND('Enrollment Form'!$B355=\"Subscriber\",'Enrollment Form'!$C355=\"Enroll\",'Enrollment Form'!$AK355<>\"\"),\"Y\",\"N\")))","v":""},{"$f":"IF($B348=\"N\",\"\",IF(OR('Enrollment Form'!$B355<>\"Subscriber\",'Enrollment Form'!$C355=\"ROC\"),\"-\",IF(AND('Enrollment Form'!$B355=\"Subscriber\",'Enrollment Form'!$C355=\"Enroll\",'Enrollment Form'!$AL355<>\"\"),\"Y\",\"N\")))","v":""},{"$f":"IF($B348=\"N\",\"\",IF(OR('Enrollment Form'!$B355<>\"Subscriber\",'Enrollment Form'!$C355=\"ROC\"),\"-\",IF(AND('Enrollment Form'!$B355=\"Subscriber\",'Enrollment Form'!$C355=\"Enroll\",'Enrollment Form'!$AM355<>\"\"),\"Y\",\"N\")))","v":""},{"$f":"IF($B348=\"N\",\"\",IF(OR('Enrollment Form'!$B355<>\"Subscriber\",'Enrollment Form'!$C355=\"ROC\"),\"-\",IF(AND('Enrollment Form'!$B355=\"Subscriber\",'Enrollment Form'!$C355=\"Enroll\",'Enrollment Form'!$AN355<>\"\"),\"Y\",\"N\")))","v":""},{"$f":"IF($B348=\"N\",\"\",IF(OR('Enrollment Form'!$B355<>\"Subscriber\",'Enrollment Form'!$C355=\"ROC\"),\"-\",IF(AND('Enrollment Form'!$B355=\"Subscriber\",'Enrollment Form'!$C355=\"Enroll\",'Enrollment Form'!$AP355<>\"\"),\"Y\",\"N\")))","v":""},{"$f":"IF($B348=\"N\",\"\",IF($Q348=\"-\",\"-\",IF(AND($Q348=\"Y\",'Enrollment Form'!$AP355=\"No\"),\"-\",IF(AND($Q348=\"Y\",'Enrollment Form'!$AP355=\"Yes\",'Enrollment Form'!$AQ355<>\"\"),\"Y\",\"N\"))))","v":""},{"$f":"IF($B348=\"N\",\"\",IF(OR('Enrollment Form'!$B355<>\"Subscriber\",'Enrollment Form'!$C355=\"ROC\"),\"-\",IF(AND('Enrollment Form'!$B355=\"Subscriber\",'Enrollment Form'!$C355=\"Enroll\",'Enrollment Form'!$CO355<>\"\"),\"Y\",\"N\")))","v":""},{"$f":"IF($B348=\"N\",\"\",IF($S348=\"-\",\"-\",IF(AND($S348=\"Y\",'Enrollment Form'!$CO355=\"No\"),\"-\",IF(AND($S348=\"Y\",'Enrollment Form'!$CO355=\"Yes\",'Enrollment Form'!$CP355<>\"\"),\"Y\",\"N\"))))","v":""},{"$f":"IF(OR('Enrollment Form'!$AV355=\"Yes\",'Enrollment Form'!$AV355=\"\"),\"-\",IF(AND('Enrollment Form'!$AV355=\"No\",ISERROR(FIND(\"HMO\",VLOOKUP('Enrollment Form'!G355,'Enrollment Form'!H$11:J$1000,3,FALSE),1))=FALSE,COUNTA('Enrollment Form'!$AW355:$AZ355)=4),\"Y\",\"N\"))","v":"-"},{"$f":"IF($B348=\"N\",\"\",IF('Enrollment Form'!$B355=\"Subscriber\",\"-\",IF(COUNTA('Enrollment Form'!$BE355,'Enrollment Form'!$BG355)=2,\"Y\",\"N\")))","v":""},{"$f":"IF($B348=\"N\",\"\",IF(OR('Enrollment Form'!$AU355=\"\",'Enrollment Form'!$AU355=\"No\"),\"-\",IF(AND('Enrollment Form'!$AU355=\"Yes\",COUNTA('Enrollment Form'!$CK355)=1),\"Y\",\"N\")))","v":""},{"$f":"IF(OR('Enrollment Form'!$CK355=\"\",'Enrollment Form'!$CK355=\"No\"),\"-\",IF(COUNTA('Enrollment Form'!$CM355:$CN355)=2,\"Y\",\"N\"))","v":"-"},{"$f":"IF($B348=\"N\",\"\",IF(COUNTIF('Enrollment Form'!$CZ355:$DO355,\"Other\")=COUNTA('Enrollment Form'!$DF355,'Enrollment Form'!$DA355,'Enrollment Form'!$DK355,'Enrollment Form'!$DP355),\"Y\",\"N\"))","v":""},{"$f":"IF($B348=\"N\",\"\",IF(OR('Enrollment Form'!B355<>\"Subscriber\",'Enrollment Form'!C355=\"ROC\",COUNTIF('Enrollment Form'!AS355:AT355,\"Yes\")>=1),\"-\",IF(AND('Enrollment Form'!C355=\"Enroll\",COUNTIF('Enrollment Form'!AS355:AT355,\"No\")=2,'Enrollment Form'!AU355=\"\"),\"N\",\"Y\")))","v":""},{"$f":"IF(OR(B348=\"N\",'Enrollment Form'!B355<>\"Subscriber\",'Enrollment Form'!C355=\"ROC\",'Enrollment Form'!O355<>\"Multiple of Salary\"),\"-\",IF(COUNTA('Enrollment Form'!T355:U355)<2,\"N\",\"Y\"))","v":"-"},{"$f":"IF(B348=\"N\",\"\",IF(OR('Enrollment Form'!C355=\"ROC\",'Enrollment Form'!B355<>\"Subscriber\",'Enrollment Form'!O355=\"Waive\",'Enrollment Form'!O355=\"\"),\"-\",IF('Enrollment Form'!P355=\"\",\"N\",\"Y\")))","v":""},{"$f":"IF($B348=\"N\",\"\",IF(AND('Enrollment Form'!$C355=\"ROC\",'Enrollment Form'!$DS355<>\"\"),\"Y\",IF(AND('Enrollment Form'!$C355=\"ROC\",'Enrollment Form'!$DS355=\"\"),\"N\",IF(AND('Enrollment Form'!$C355=\"Enroll\",'Enrollment Form'!$B355=\"Subscriber\",'Enrollment Form'!$CQ355=\"No\",'Enrollment Form'!$DS355=\"\"),\"N\",IF(AND('Enrollment Form'!$C355=\"Enroll\",'Enrollment Form'!$B355=\"Subscriber\",'Enrollment Form'!$CQ355=\"Yes\"),\"-\",\"Y\")))))","v":""},{"$f":"IF($B348=\"N\",\"\",IF(AND('Enrollment Form'!$C355=\"ROC\",'Enrollment Form'!$DT355<>\"\"),\"Y\",IF(AND('Enrollment Form'!$C355=\"ROC\",'Enrollment Form'!$DT355=\"\"),\"N\",IF(AND('Enrollment Form'!$C355=\"Enroll\",'Enrollment Form'!$B355=\"Subscriber\",'Enrollment Form'!$CQ355=\"No\",'Enrollment Form'!$DT355=\"\"),\"N\",IF(AND('Enrollment Form'!$C355=\"Enroll\",'Enrollment Form'!$B355=\"Subscriber\",'Enrollment Form'!$CQ355=\"Yes\"),\"-\",\"Y\")))))","v":""},{"$f":"IF('Enrollment Form'!AH355=\"\",\"\",IF(ISERROR(SEARCH(\".\",'Enrollment Form'!AH355,SEARCH(\"@\",'Enrollment Form'!AH355))),\"N\",\"Y\"))","v":""},{"$f":"IF(OR($B348=\"N\",'Enrollment Form'!$G355=\"\"),\"\",IF('Enrollment Form'!$B355<>\"Subscriber\",\"-\",IF(COUNTIF('Enrollment Form'!$AS355:$AT355,\"Yes\")=2,\"N\",\"Y\")))","v":""},{"$f":"IF(OR('Enrollment Form'!$CC355=\"\",'Enrollment Form'!$CC355=\"No\"),\"-\",IF(AND('Enrollment Form'!$CC355=\"Yes\",'Enrollment Form'!$CD355=\"\"),\"N\",\"Y\"))","v":"-"},{"$f":"IF(OR('Enrollment Form'!$CE355=\"\",'Enrollment Form'!$CE355=\"No\"),\"-\",IF(AND('Enrollment Form'!$CE355=\"Yes\",'Enrollment Form'!$CF355=\"\"),\"N\",\"Y\"))","v":"-"},{"$f":"IF(OR('Enrollment Form'!$CG355=\"\",'Enrollment Form'!$CG355=\"No\"),\"-\",IF(AND('Enrollment Form'!$CG355=\"Yes\",'Enrollment Form'!$CH355=\"\"),\"N\",\"Y\"))","v":"-"},{"$f":"IF(OR('Enrollment Form'!$CG355=\"\",'Enrollment Form'!$CG355=\"No\"),\"-\",IF(AND('Enrollment Form'!$CG355=\"Yes\",'Enrollment Form'!$CI355=\"\"),\"N\",\"Y\"))","v":"-"},{"$f":"IF('Enrollment Form'!B355<>\"Subscriber\",\"-\",IF(AND('Enrollment Form'!B355=\"Subscriber\",'Enrollment Form'!C355=\"Enroll\",'Enrollment Form'!AA355=\"\"),\"N\",\"Y\"))","v":"-"},{"$f":"IF(OR('Enrollment Form'!B355=\"Subscriber\",'Enrollment Form'!B355=\"\"),\"-\",IF('Enrollment Form'!BI355=\"\",\"N\",\"Y\"))","v":"-"},{"$f":"IF('Enrollment Form'!B355<>\"Subscriber\",\"-\",IF(AND('Enrollment Form'!B355=\"Subscriber\",'Enrollment Form'!G355=\"\"),\"N\",\"Y\"))","v":"-"},{"$f":"IF('Enrollment Form'!A355=\"\",\"\",IF('Enrollment Form'!B355=\"Subscriber\",\"-\",IF(AND('Enrollment Form'!B355<>\"Subscriber\",'Enrollment Form'!G355='Enrollment Form'!H355),\"N\",\"Y\")))","v":""},0]
[356,{"$f":"IF('Enrollment Form'!$A356<>\"\",\"Y\",\"N\")","v":"N"},{"$f":"IF(AND('Enrollment Form'!$B356=\"\",'Enrollment Form'!$C356<>\"\"),\"N\",IF($B349=\"N\",\"\",\"Y\"))","v":""},{"$f":"IF(OR($B349=\"N\",'Enrollment Form'!G356=\"\"),\"\",IF('Enrollment Form'!$B356<>\"Subscriber\",\"\",IF('Enrollment Form'!$G356='Enrollment Form'!$H356,\"Y\",\"N\")))","v":""},{"$f":"IF($B349=\"N\",\"\",IF(AND(COUNTIFS('Enrollment Form'!$H$11:$H$1000,'Enrollment Form'!$H356,'Enrollment Form'!$B$11:$B$1000,'Enrollment Form'!$B356)>1,'Enrollment Form'!$H356<>\"\"),\"N\",\"Y\"))","v":""},{"$f":"IF($B349=\"N\",\"\",IF(LEN('Enrollment Form'!$Y356)=0,\"\",IF(LEN('Enrollment Form'!$Y356)<>5,\"N\",\"Y\")))","v":""},{"$f":"IF($B349=\"N\",\"\",IF(LEN('Enrollment Form'!$AD356=0),\"\",IF(LEN('Enrollment Form'!$AD356)<>5,\"N\",\"Y\")))","v":""},{"$f":"IF($B349=\"N\",\"\",IF(LEN('Enrollment Form'!$BL356=0),\"\",IF(LEN('Enrollment Form'!$BL356)<>5,\"N\",\"Y\")))","v":""},{"$f":"IF($B349=\"N\",\"\",IF(LEN('Enrollment Form'!$AE356)=0,\"\",IF(LEN('Enrollment Form'!$AE356)<>10,\"N\",\"Y\")))","v":""},{"$f":"IF($B349=\"N\",\"\",IF(LEN('Enrollment Form'!$AF356)=0,\"\",IF(LEN('Enrollment Form'!$AF356)<>10,\"N\",\"Y\")))","v":""},{"$f":"IF('Enrollment Form'!$O356<>\"Graded\",\"-\",IF(AND('Enrollment Form'!$O356=\"Graded\",'Enrollment Form'!$AO356<>\"\"),\"Y\",\"N\"))","v":"-"},{"$f":"IF($B349=\"N\",\"\",IF(OR('Enrollment Form'!$B356<>\"Subscriber\",'Enrollment Form'!$C356=\"ROC\"),\"-\",IF(AND('Enrollment Form'!$B356=\"Subscriber\",'Enrollment Form'!$C356=\"Enroll\",'Enrollment Form'!$AJ356<>\"\"),\"Y\",\"N\")))","v":""},{"$f":"IF($B349=\"N\",\"\",IF(OR('Enrollment Form'!$B356<>\"Subscriber\",'Enrollment Form'!$C356=\"ROC\"),\"-\",IF(AND('Enrollment Form'!$B356=\"Subscriber\",'Enrollment Form'!$C356=\"Enroll\",'Enrollment Form'!$AK356<>\"\"),\"Y\",\"N\")))","v":""},{"$f":"IF($B349=\"N\",\"\",IF(OR('Enrollment Form'!$B356<>\"Subscriber\",'Enrollment Form'!$C356=\"ROC\"),\"-\",IF(AND('Enrollment Form'!$B356=\"Subscriber\",'Enrollment Form'!$C356=\"Enroll\",'Enrollment Form'!$AL356<>\"\"),\"Y\",\"N\")))","v":""},{"$f":"IF($B349=\"N\",\"\",IF(OR('Enrollment Form'!$B356<>\"Subscriber\",'Enrollment Form'!$C356=\"ROC\"),\"-\",IF(AND('Enrollment Form'!$B356=\"Subscriber\",'Enrollment Form'!$C356=\"Enroll\",'Enrollment Form'!$AM356<>\"\"),\"Y\",\"N\")))","v":""},{"$f":"IF($B349=\"N\",\"\",IF(OR('Enrollment Form'!$B356<>\"Subscriber\",'Enrollment Form'!$C356=\"ROC\"),\"-\",IF(AND('Enrollment Form'!$B356=\"Subscriber\",'Enrollment Form'!$C356=\"Enroll\",'Enrollment Form'!$AN356<>\"\"),\"Y\",\"N\")))","v":""},{"$f":"IF($B349=\"N\",\"\",IF(OR('Enrollment Form'!$B356<>\"Subscriber\",'Enrollment Form'!$C356=\"ROC\"),\"-\",IF(AND('Enrollment Form'!$B356=\"Subscriber\",'Enrollment Form'!$C356=\"Enroll\",'Enrollment Form'!$AP356<>\"\"),\"Y\",\"N\")))","v":""},{"$f":"IF($B349=\"N\",\"\",IF($Q349=\"-\",\"-\",IF(AND($Q349=\"Y\",'Enrollment Form'!$AP356=\"No\"),\"-\",IF(AND($Q349=\"Y\",'Enrollment Form'!$AP356=\"Yes\",'Enrollment Form'!$AQ356<>\"\"),\"Y\",\"N\"))))","v":""},{"$f":"IF($B349=\"N\",\"\",IF(OR('Enrollment Form'!$B356<>\"Subscriber\",'Enrollment Form'!$C356=\"ROC\"),\"-\",IF(AND('Enrollment Form'!$B356=\"Subscriber\",'Enrollment Form'!$C356=\"Enroll\",'Enrollment Form'!$CO356<>\"\"),\"Y\",\"N\")))","v":""},{"$f":"IF($B349=\"N\",\"\",IF($S349=\"-\",\"-\",IF(AND($S349=\"Y\",'Enrollment Form'!$CO356=\"No\"),\"-\",IF(AND($S349=\"Y\",'Enrollment Form'!$CO356=\"Yes\",'Enrollment Form'!$CP356<>\"\"),\"Y\",\"N\"))))","v":""},{"$f":"IF(OR('Enrollment Form'!$AV356=\"Yes\",'Enrollment Form'!$AV356=\"\"),\"-\",IF(AND('Enrollment Form'!$AV356=\"No\",ISERROR(FIND(\"HMO\",VLOOKUP('Enrollment Form'!G356,'Enrollment Form'!H$11:J$1000,3,FALSE),1))=FALSE,COUNTA('Enrollment Form'!$AW356:$AZ356)=4),\"Y\",\"N\"))","v":"-"},{"$f":"IF($B349=\"N\",\"\",IF('Enrollment Form'!$B356=\"Subscriber\",\"-\",IF(COUNTA('Enrollment Form'!$BE356,'Enrollment Form'!$BG356)=2,\"Y\",\"N\")))","v":""},{"$f":"IF($B349=\"N\",\"\",IF(OR('Enrollment Form'!$AU356=\"\",'Enrollment Form'!$AU356=\"No\"),\"-\",IF(AND('Enrollment Form'!$AU356=\"Yes\",COUNTA('Enrollment Form'!$CK356)=1),\"Y\",\"N\")))","v":""},{"$f":"IF(OR('Enrollment Form'!$CK356=\"\",'Enrollment Form'!$CK356=\"No\"),\"-\",IF(COUNTA('Enrollment Form'!$CM356:$CN356)=2,\"Y\",\"N\"))","v":"-"},{"$f":"IF($B349=\"N\",\"\",IF(COUNTIF('Enrollment Form'!$CZ356:$DO356,\"Other\")=COUNTA('Enrollment Form'!$DF356,'Enrollment Form'!$DA356,'Enrollment Form'!$DK356,'Enrollment Form'!$DP356),\"Y\",\"N\"))","v":""},{"$f":"IF($B349=\"N\",\"\",IF(OR('Enrollment Form'!B356<>\"Subscriber\",'Enrollment Form'!C356=\"ROC\",COUNTIF('Enrollment Form'!AS356:AT356,\"Yes\")>=1),\"-\",IF(AND('Enrollment Form'!C356=\"Enroll\",COUNTIF('Enrollment Form'!AS356:AT356,\"No\")=2,'Enrollment Form'!AU356=\"\"),\"N\",\"Y\")))","v":""},{"$f":"IF(OR(B349=\"N\",'Enrollment Form'!B356<>\"Subscriber\",'Enrollment Form'!C356=\"ROC\",'Enrollment Form'!O356<>\"Multiple of Salary\"),\"-\",IF(COUNTA('Enrollment Form'!T356:U356)<2,\"N\",\"Y\"))","v":"-"},{"$f":"IF(B349=\"N\",\"\",IF(OR('Enrollment Form'!C356=\"ROC\",'Enrollment Form'!B356<>\"Subscriber\",'Enrollment Form'!O356=\"Waive\",'Enrollment Form'!O356=\"\"),\"-\",IF('Enrollment Form'!P356=\"\",\"N\",\"Y\")))","v":""},{"$f":"IF($B349=\"N\",\"\",IF(AND('Enrollment Form'!$C356=\"ROC\",'Enrollment Form'!$DS356<>\"\"),\"Y\",IF(AND('Enrollment Form'!$C356=\"ROC\",'Enrollment Form'!$DS356=\"\"),\"N\",IF(AND('Enrollment Form'!$C356=\"Enroll\",'Enrollment Form'!$B356=\"Subscriber\",'Enrollment Form'!$CQ356=\"No\",'Enrollment Form'!$DS356=\"\"),\"N\",IF(AND('Enrollment Form'!$C356=\"Enroll\",'Enrollment Form'!$B356=\"Subscriber\",'Enrollment Form'!$CQ356=\"Yes\"),\"-\",\"Y\")))))","v":""},{"$f":"IF($B349=\"N\",\"\",IF(AND('Enrollment Form'!$C356=\"ROC\",'Enrollment Form'!$DT356<>\"\"),\"Y\",IF(AND('Enrollment Form'!$C356=\"ROC\",'Enrollment Form'!$DT356=\"\"),\"N\",IF(AND('Enrollment Form'!$C356=\"Enroll\",'Enrollment Form'!$B356=\"Subscriber\",'Enrollment Form'!$CQ356=\"No\",'Enrollment Form'!$DT356=\"\"),\"N\",IF(AND('Enrollment Form'!$C356=\"Enroll\",'Enrollment Form'!$B356=\"Subscriber\",'Enrollment Form'!$CQ356=\"Yes\"),\"-\",\"Y\")))))","v":""},{"$f":"IF('Enrollment Form'!AH356=\"\",\"\",IF(ISERROR(SEARCH(\".\",'Enrollment Form'!AH356,SEARCH(\"@\",'Enrollment Form'!AH356))),\"N\",\"Y\"))","v":""},{"$f":"IF(OR($B349=\"N\",'Enrollment Form'!$G356=\"\"),\"\",IF('Enrollment Form'!$B356<>\"Subscriber\",\"-\",IF(COUNTIF('Enrollment Form'!$AS356:$AT356,\"Yes\")=2,\"N\",\"Y\")))","v":""},{"$f":"IF(OR('Enrollment Form'!$CC356=\"\",'Enrollment Form'!$CC356=\"No\"),\"-\",IF(AND('Enrollment Form'!$CC356=\"Yes\",'Enrollment Form'!$CD356=\"\"),\"N\",\"Y\"))","v":"-"},{"$f":"IF(OR('Enrollment Form'!$CE356=\"\",'Enrollment Form'!$CE356=\"No\"),\"-\",IF(AND('Enrollment Form'!$CE356=\"Yes\",'Enrollment Form'!$CF356=\"\"),\"N\",\"Y\"))","v":"-"},{"$f":"IF(OR('Enrollment Form'!$CG356=\"\",'Enrollment Form'!$CG356=\"No\"),\"-\",IF(AND('Enrollment Form'!$CG356=\"Yes\",'Enrollment Form'!$CH356=\"\"),\"N\",\"Y\"))","v":"-"},{"$f":"IF(OR('Enrollment Form'!$CG356=\"\",'Enrollment Form'!$CG356=\"No\"),\"-\",IF(AND('Enrollment Form'!$CG356=\"Yes\",'Enrollment Form'!$CI356=\"\"),\"N\",\"Y\"))","v":"-"},{"$f":"IF('Enrollment Form'!B356<>\"Subscriber\",\"-\",IF(AND('Enrollment Form'!B356=\"Subscriber\",'Enrollment Form'!C356=\"Enroll\",'Enrollment Form'!AA356=\"\"),\"N\",\"Y\"))","v":"-"},{"$f":"IF(OR('Enrollment Form'!B356=\"Subscriber\",'Enrollment Form'!B356=\"\"),\"-\",IF('Enrollment Form'!BI356=\"\",\"N\",\"Y\"))","v":"-"},{"$f":"IF('Enrollment Form'!B356<>\"Subscriber\",\"-\",IF(AND('Enrollment Form'!B356=\"Subscriber\",'Enrollment Form'!G356=\"\"),\"N\",\"Y\"))","v":"-"},{"$f":"IF('Enrollment Form'!A356=\"\",\"\",IF('Enrollment Form'!B356=\"Subscriber\",\"-\",IF(AND('Enrollment Form'!B356<>\"Subscriber\",'Enrollment Form'!G356='Enrollment Form'!H356),\"N\",\"Y\")))","v":""},0]
[357,{"$f":"IF('Enrollment Form'!$A357<>\"\",\"Y\",\"N\")","v":"N"},{"$f":"IF(AND('Enrollment Form'!$B357=\"\",'Enrollment Form'!$C357<>\"\"),\"N\",IF($B350=\"N\",\"\",\"Y\"))","v":""},{"$f":"IF(OR($B350=\"N\",'Enrollment Form'!G357=\"\"),\"\",IF('Enrollment Form'!$B357<>\"Subscriber\",\"\",IF('Enrollment Form'!$G357='Enrollment Form'!$H357,\"Y\",\"N\")))","v":""},{"$f":"IF($B350=\"N\",\"\",IF(AND(COUNTIFS('Enrollment Form'!$H$11:$H$1000,'Enrollment Form'!$H357,'Enrollment Form'!$B$11:$B$1000,'Enrollment Form'!$B357)>1,'Enrollment Form'!$H357<>\"\"),\"N\",\"Y\"))","v":""},{"$f":"IF($B350=\"N\",\"\",IF(LEN('Enrollment Form'!$Y357)=0,\"\",IF(LEN('Enrollment Form'!$Y357)<>5,\"N\",\"Y\")))","v":""},{"$f":"IF($B350=\"N\",\"\",IF(LEN('Enrollment Form'!$AD357=0),\"\",IF(LEN('Enrollment Form'!$AD357)<>5,\"N\",\"Y\")))","v":""},{"$f":"IF($B350=\"N\",\"\",IF(LEN('Enrollment Form'!$BL357=0),\"\",IF(LEN('Enrollment Form'!$BL357)<>5,\"N\",\"Y\")))","v":""},{"$f":"IF($B350=\"N\",\"\",IF(LEN('Enrollment Form'!$AE357)=0,\"\",IF(LEN('Enrollment Form'!$AE357)<>10,\"N\",\"Y\")))","v":""},{"$f":"IF($B350=\"N\",\"\",IF(LEN('Enrollment Form'!$AF357)=0,\"\",IF(LEN('Enrollment Form'!$AF357)<>10,\"N\",\"Y\")))","v":""},{"$f":"IF('Enrollment Form'!$O357<>\"Graded\",\"-\",IF(AND('Enrollment Form'!$O357=\"Graded\",'Enrollment Form'!$AO357<>\"\"),\"Y\",\"N\"))","v":"-"},{"$f":"IF($B350=\"N\",\"\",IF(OR('Enrollment Form'!$B357<>\"Subscriber\",'Enrollment Form'!$C357=\"ROC\"),\"-\",IF(AND('Enrollment Form'!$B357=\"Subscriber\",'Enrollment Form'!$C357=\"Enroll\",'Enrollment Form'!$AJ357<>\"\"),\"Y\",\"N\")))","v":""},{"$f":"IF($B350=\"N\",\"\",IF(OR('Enrollment Form'!$B357<>\"Subscriber\",'Enrollment Form'!$C357=\"ROC\"),\"-\",IF(AND('Enrollment Form'!$B357=\"Subscriber\",'Enrollment Form'!$C357=\"Enroll\",'Enrollment Form'!$AK357<>\"\"),\"Y\",\"N\")))","v":""},{"$f":"IF($B350=\"N\",\"\",IF(OR('Enrollment Form'!$B357<>\"Subscriber\",'Enrollment Form'!$C357=\"ROC\"),\"-\",IF(AND('Enrollment Form'!$B357=\"Subscriber\",'Enrollment Form'!$C357=\"Enroll\",'Enrollment Form'!$AL357<>\"\"),\"Y\",\"N\")))","v":""},{"$f":"IF($B350=\"N\",\"\",IF(OR('Enrollment Form'!$B357<>\"Subscriber\",'Enrollment Form'!$C357=\"ROC\"),\"-\",IF(AND('Enrollment Form'!$B357=\"Subscriber\",'Enrollment Form'!$C357=\"Enroll\",'Enrollment Form'!$AM357<>\"\"),\"Y\",\"N\")))","v":""},{"$f":"IF($B350=\"N\",\"\",IF(OR('Enrollment Form'!$B357<>\"Subscriber\",'Enrollment Form'!$C357=\"ROC\"),\"-\",IF(AND('Enrollment Form'!$B357=\"Subscriber\",'Enrollment Form'!$C357=\"Enroll\",'Enrollment Form'!$AN357<>\"\"),\"Y\",\"N\")))","v":""},{"$f":"IF($B350=\"N\",\"\",IF(OR('Enrollment Form'!$B357<>\"Subscriber\",'Enrollment Form'!$C357=\"ROC\"),\"-\",IF(AND('Enrollment Form'!$B357=\"Subscriber\",'Enrollment Form'!$C357=\"Enroll\",'Enrollment Form'!$AP357<>\"\"),\"Y\",\"N\")))","v":""},{"$f":"IF($B350=\"N\",\"\",IF($Q350=\"-\",\"-\",IF(AND($Q350=\"Y\",'Enrollment Form'!$AP357=\"No\"),\"-\",IF(AND($Q350=\"Y\",'Enrollment Form'!$AP357=\"Yes\",'Enrollment Form'!$AQ357<>\"\"),\"Y\",\"N\"))))","v":""},{"$f":"IF($B350=\"N\",\"\",IF(OR('Enrollment Form'!$B357<>\"Subscriber\",'Enrollment Form'!$C357=\"ROC\"),\"-\",IF(AND('Enrollment Form'!$B357=\"Subscriber\",'Enrollment Form'!$C357=\"Enroll\",'Enrollment Form'!$CO357<>\"\"),\"Y\",\"N\")))","v":""},{"$f":"IF($B350=\"N\",\"\",IF($S350=\"-\",\"-\",IF(AND($S350=\"Y\",'Enrollment Form'!$CO357=\"No\"),\"-\",IF(AND($S350=\"Y\",'Enrollment Form'!$CO357=\"Yes\",'Enrollment Form'!$CP357<>\"\"),\"Y\",\"N\"))))","v":""},{"$f":"IF(OR('Enrollment Form'!$AV357=\"Yes\",'Enrollment Form'!$AV357=\"\"),\"-\",IF(AND('Enrollment Form'!$AV357=\"No\",ISERROR(FIND(\"HMO\",VLOOKUP('Enrollment Form'!G357,'Enrollment Form'!H$11:J$1000,3,FALSE),1))=FALSE,COUNTA('Enrollment Form'!$AW357:$AZ357)=4),\"Y\",\"N\"))","v":"-"},{"$f":"IF($B350=\"N\",\"\",IF('Enrollment Form'!$B357=\"Subscriber\",\"-\",IF(COUNTA('Enrollment Form'!$BE357,'Enrollment Form'!$BG357)=2,\"Y\",\"N\")))","v":""},{"$f":"IF($B350=\"N\",\"\",IF(OR('Enrollment Form'!$AU357=\"\",'Enrollment Form'!$AU357=\"No\"),\"-\",IF(AND('Enrollment Form'!$AU357=\"Yes\",COUNTA('Enrollment Form'!$CK357)=1),\"Y\",\"N\")))","v":""},{"$f":"IF(OR('Enrollment Form'!$CK357=\"\",'Enrollment Form'!$CK357=\"No\"),\"-\",IF(COUNTA('Enrollment Form'!$CM357:$CN357)=2,\"Y\",\"N\"))","v":"-"},{"$f":"IF($B350=\"N\",\"\",IF(COUNTIF('Enrollment Form'!$CZ357:$DO357,\"Other\")=COUNTA('Enrollment Form'!$DF357,'Enrollment Form'!$DA357,'Enrollment Form'!$DK357,'Enrollment Form'!$DP357),\"Y\",\"N\"))","v":""},{"$f":"IF($B350=\"N\",\"\",IF(OR('Enrollment Form'!B357<>\"Subscriber\",'Enrollment Form'!C357=\"ROC\",COUNTIF('Enrollment Form'!AS357:AT357,\"Yes\")>=1),\"-\",IF(AND('Enrollment Form'!C357=\"Enroll\",COUNTIF('Enrollment Form'!AS357:AT357,\"No\")=2,'Enrollment Form'!AU357=\"\"),\"N\",\"Y\")))","v":""},{"$f":"IF(OR(B350=\"N\",'Enrollment Form'!B357<>\"Subscriber\",'Enrollment Form'!C357=\"ROC\",'Enrollment Form'!O357<>\"Multiple of Salary\"),\"-\",IF(COUNTA('Enrollment Form'!T357:U357)<2,\"N\",\"Y\"))","v":"-"},{"$f":"IF(B350=\"N\",\"\",IF(OR('Enrollment Form'!C357=\"ROC\",'Enrollment Form'!B357<>\"Subscriber\",'Enrollment Form'!O357=\"Waive\",'Enrollment Form'!O357=\"\"),\"-\",IF('Enrollment Form'!P357=\"\",\"N\",\"Y\")))","v":""},{"$f":"IF($B350=\"N\",\"\",IF(AND('Enrollment Form'!$C357=\"ROC\",'Enrollment Form'!$DS357<>\"\"),\"Y\",IF(AND('Enrollment Form'!$C357=\"ROC\",'Enrollment Form'!$DS357=\"\"),\"N\",IF(AND('Enrollment Form'!$C357=\"Enroll\",'Enrollment Form'!$B357=\"Subscriber\",'Enrollment Form'!$CQ357=\"No\",'Enrollment Form'!$DS357=\"\"),\"N\",IF(AND('Enrollment Form'!$C357=\"Enroll\",'Enrollment Form'!$B357=\"Subscriber\",'Enrollment Form'!$CQ357=\"Yes\"),\"-\",\"Y\")))))","v":""},{"$f":"IF($B350=\"N\",\"\",IF(AND('Enrollment Form'!$C357=\"ROC\",'Enrollment Form'!$DT357<>\"\"),\"Y\",IF(AND('Enrollment Form'!$C357=\"ROC\",'Enrollment Form'!$DT357=\"\"),\"N\",IF(AND('Enrollment Form'!$C357=\"Enroll\",'Enrollment Form'!$B357=\"Subscriber\",'Enrollment Form'!$CQ357=\"No\",'Enrollment Form'!$DT357=\"\"),\"N\",IF(AND('Enrollment Form'!$C357=\"Enroll\",'Enrollment Form'!$B357=\"Subscriber\",'Enrollment Form'!$CQ357=\"Yes\"),\"-\",\"Y\")))))","v":""},{"$f":"IF('Enrollment Form'!AH357=\"\",\"\",IF(ISERROR(SEARCH(\".\",'Enrollment Form'!AH357,SEARCH(\"@\",'Enrollment Form'!AH357))),\"N\",\"Y\"))","v":""},{"$f":"IF(OR($B350=\"N\",'Enrollment Form'!$G357=\"\"),\"\",IF('Enrollment Form'!$B357<>\"Subscriber\",\"-\",IF(COUNTIF('Enrollment Form'!$AS357:$AT357,\"Yes\")=2,\"N\",\"Y\")))","v":""},{"$f":"IF(OR('Enrollment Form'!$CC357=\"\",'Enrollment Form'!$CC357=\"No\"),\"-\",IF(AND('Enrollment Form'!$CC357=\"Yes\",'Enrollment Form'!$CD357=\"\"),\"N\",\"Y\"))","v":"-"},{"$f":"IF(OR('Enrollment Form'!$CE357=\"\",'Enrollment Form'!$CE357=\"No\"),\"-\",IF(AND('Enrollment Form'!$CE357=\"Yes\",'Enrollment Form'!$CF357=\"\"),\"N\",\"Y\"))","v":"-"},{"$f":"IF(OR('Enrollment Form'!$CG357=\"\",'Enrollment Form'!$CG357=\"No\"),\"-\",IF(AND('Enrollment Form'!$CG357=\"Yes\",'Enrollment Form'!$CH357=\"\"),\"N\",\"Y\"))","v":"-"},{"$f":"IF(OR('Enrollment Form'!$CG357=\"\",'Enrollment Form'!$CG357=\"No\"),\"-\",IF(AND('Enrollment Form'!$CG357=\"Yes\",'Enrollment Form'!$CI357=\"\"),\"N\",\"Y\"))","v":"-"},{"$f":"IF('Enrollment Form'!B357<>\"Subscriber\",\"-\",IF(AND('Enrollment Form'!B357=\"Subscriber\",'Enrollment Form'!C357=\"Enroll\",'Enrollment Form'!AA357=\"\"),\"N\",\"Y\"))","v":"-"},{"$f":"IF(OR('Enrollment Form'!B357=\"Subscriber\",'Enrollment Form'!B357=\"\"),\"-\",IF('Enrollment Form'!BI357=\"\",\"N\",\"Y\"))","v":"-"},{"$f":"IF('Enrollment Form'!B357<>\"Subscriber\",\"-\",IF(AND('Enrollment Form'!B357=\"Subscriber\",'Enrollment Form'!G357=\"\"),\"N\",\"Y\"))","v":"-"},{"$f":"IF('Enrollment Form'!A357=\"\",\"\",IF('Enrollment Form'!B357=\"Subscriber\",\"-\",IF(AND('Enrollment Form'!B357<>\"Subscriber\",'Enrollment Form'!G357='Enrollment Form'!H357),\"N\",\"Y\")))","v":""},0]
[358,{"$f":"IF('Enrollment Form'!$A358<>\"\",\"Y\",\"N\")","v":"N"},{"$f":"IF(AND('Enrollment Form'!$B358=\"\",'Enrollment Form'!$C358<>\"\"),\"N\",IF($B351=\"N\",\"\",\"Y\"))","v":""},{"$f":"IF(OR($B351=\"N\",'Enrollment Form'!G358=\"\"),\"\",IF('Enrollment Form'!$B358<>\"Subscriber\",\"\",IF('Enrollment Form'!$G358='Enrollment Form'!$H358,\"Y\",\"N\")))","v":""},{"$f":"IF($B351=\"N\",\"\",IF(AND(COUNTIFS('Enrollment Form'!$H$11:$H$1000,'Enrollment Form'!$H358,'Enrollment Form'!$B$11:$B$1000,'Enrollment Form'!$B358)>1,'Enrollment Form'!$H358<>\"\"),\"N\",\"Y\"))","v":""},{"$f":"IF($B351=\"N\",\"\",IF(LEN('Enrollment Form'!$Y358)=0,\"\",IF(LEN('Enrollment Form'!$Y358)<>5,\"N\",\"Y\")))","v":""},{"$f":"IF($B351=\"N\",\"\",IF(LEN('Enrollment Form'!$AD358=0),\"\",IF(LEN('Enrollment Form'!$AD358)<>5,\"N\",\"Y\")))","v":""},{"$f":"IF($B351=\"N\",\"\",IF(LEN('Enrollment Form'!$BL358=0),\"\",IF(LEN('Enrollment Form'!$BL358)<>5,\"N\",\"Y\")))","v":""},{"$f":"IF($B351=\"N\",\"\",IF(LEN('Enrollment Form'!$AE358)=0,\"\",IF(LEN('Enrollment Form'!$AE358)<>10,\"N\",\"Y\")))","v":""},{"$f":"IF($B351=\"N\",\"\",IF(LEN('Enrollment Form'!$AF358)=0,\"\",IF(LEN('Enrollment Form'!$AF358)<>10,\"N\",\"Y\")))","v":""},{"$f":"IF('Enrollment Form'!$O358<>\"Graded\",\"-\",IF(AND('Enrollment Form'!$O358=\"Graded\",'Enrollment Form'!$AO358<>\"\"),\"Y\",\"N\"))","v":"-"},{"$f":"IF($B351=\"N\",\"\",IF(OR('Enrollment Form'!$B358<>\"Subscriber\",'Enrollment Form'!$C358=\"ROC\"),\"-\",IF(AND('Enrollment Form'!$B358=\"Subscriber\",'Enrollment Form'!$C358=\"Enroll\",'Enrollment Form'!$AJ358<>\"\"),\"Y\",\"N\")))","v":""},{"$f":"IF($B351=\"N\",\"\",IF(OR('Enrollment Form'!$B358<>\"Subscriber\",'Enrollment Form'!$C358=\"ROC\"),\"-\",IF(AND('Enrollment Form'!$B358=\"Subscriber\",'Enrollment Form'!$C358=\"Enroll\",'Enrollment Form'!$AK358<>\"\"),\"Y\",\"N\")))","v":""},{"$f":"IF($B351=\"N\",\"\",IF(OR('Enrollment Form'!$B358<>\"Subscriber\",'Enrollment Form'!$C358=\"ROC\"),\"-\",IF(AND('Enrollment Form'!$B358=\"Subscriber\",'Enrollment Form'!$C358=\"Enroll\",'Enrollment Form'!$AL358<>\"\"),\"Y\",\"N\")))","v":""},{"$f":"IF($B351=\"N\",\"\",IF(OR('Enrollment Form'!$B358<>\"Subscriber\",'Enrollment Form'!$C358=\"ROC\"),\"-\",IF(AND('Enrollment Form'!$B358=\"Subscriber\",'Enrollment Form'!$C358=\"Enroll\",'Enrollment Form'!$AM358<>\"\"),\"Y\",\"N\")))","v":""},{"$f":"IF($B351=\"N\",\"\",IF(OR('Enrollment Form'!$B358<>\"Subscriber\",'Enrollment Form'!$C358=\"ROC\"),\"-\",IF(AND('Enrollment Form'!$B358=\"Subscriber\",'Enrollment Form'!$C358=\"Enroll\",'Enrollment Form'!$AN358<>\"\"),\"Y\",\"N\")))","v":""},{"$f":"IF($B351=\"N\",\"\",IF(OR('Enrollment Form'!$B358<>\"Subscriber\",'Enrollment Form'!$C358=\"ROC\"),\"-\",IF(AND('Enrollment Form'!$B358=\"Subscriber\",'Enrollment Form'!$C358=\"Enroll\",'Enrollment Form'!$AP358<>\"\"),\"Y\",\"N\")))","v":""},{"$f":"IF($B351=\"N\",\"\",IF($Q351=\"-\",\"-\",IF(AND($Q351=\"Y\",'Enrollment Form'!$AP358=\"No\"),\"-\",IF(AND($Q351=\"Y\",'Enrollment Form'!$AP358=\"Yes\",'Enrollment Form'!$AQ358<>\"\"),\"Y\",\"N\"))))","v":""},{"$f":"IF($B351=\"N\",\"\",IF(OR('Enrollment Form'!$B358<>\"Subscriber\",'Enrollment Form'!$C358=\"ROC\"),\"-\",IF(AND('Enrollment Form'!$B358=\"Subscriber\",'Enrollment Form'!$C358=\"Enroll\",'Enrollment Form'!$CO358<>\"\"),\"Y\",\"N\")))","v":""},{"$f":"IF($B351=\"N\",\"\",IF($S351=\"-\",\"-\",IF(AND($S351=\"Y\",'Enrollment Form'!$CO358=\"No\"),\"-\",IF(AND($S351=\"Y\",'Enrollment Form'!$CO358=\"Yes\",'Enrollment Form'!$CP358<>\"\"),\"Y\",\"N\"))))","v":""},{"$f":"IF(OR('Enrollment Form'!$AV358=\"Yes\",'Enrollment Form'!$AV358=\"\"),\"-\",IF(AND('Enrollment Form'!$AV358=\"No\",ISERROR(FIND(\"HMO\",VLOOKUP('Enrollment Form'!G358,'Enrollment Form'!H$11:J$1000,3,FALSE),1))=FALSE,COUNTA('Enrollment Form'!$AW358:$AZ358)=4),\"Y\",\"N\"))","v":"-"},{"$f":"IF($B351=\"N\",\"\",IF('Enrollment Form'!$B358=\"Subscriber\",\"-\",IF(COUNTA('Enrollment Form'!$BE358,'Enrollment Form'!$BG358)=2,\"Y\",\"N\")))","v":""},{"$f":"IF($B351=\"N\",\"\",IF(OR('Enrollment Form'!$AU358=\"\",'Enrollment Form'!$AU358=\"No\"),\"-\",IF(AND('Enrollment Form'!$AU358=\"Yes\",COUNTA('Enrollment Form'!$CK358)=1),\"Y\",\"N\")))","v":""},{"$f":"IF(OR('Enrollment Form'!$CK358=\"\",'Enrollment Form'!$CK358=\"No\"),\"-\",IF(COUNTA('Enrollment Form'!$CM358:$CN358)=2,\"Y\",\"N\"))","v":"-"},{"$f":"IF($B351=\"N\",\"\",IF(COUNTIF('Enrollment Form'!$CZ358:$DO358,\"Other\")=COUNTA('Enrollment Form'!$DF358,'Enrollment Form'!$DA358,'Enrollment Form'!$DK358,'Enrollment Form'!$DP358),\"Y\",\"N\"))","v":""},{"$f":"IF($B351=\"N\",\"\",IF(OR('Enrollment Form'!B358<>\"Subscriber\",'Enrollment Form'!C358=\"ROC\",COUNTIF('Enrollment Form'!AS358:AT358,\"Yes\")>=1),\"-\",IF(AND('Enrollment Form'!C358=\"Enroll\",COUNTIF('Enrollment Form'!AS358:AT358,\"No\")=2,'Enrollment Form'!AU358=\"\"),\"N\",\"Y\")))","v":""},{"$f":"IF(OR(B351=\"N\",'Enrollment Form'!B358<>\"Subscriber\",'Enrollment Form'!C358=\"ROC\",'Enrollment Form'!O358<>\"Multiple of Salary\"),\"-\",IF(COUNTA('Enrollment Form'!T358:U358)<2,\"N\",\"Y\"))","v":"-"},{"$f":"IF(B351=\"N\",\"\",IF(OR('Enrollment Form'!C358=\"ROC\",'Enrollment Form'!B358<>\"Subscriber\",'Enrollment Form'!O358=\"Waive\",'Enrollment Form'!O358=\"\"),\"-\",IF('Enrollment Form'!P358=\"\",\"N\",\"Y\")))","v":""},{"$f":"IF($B351=\"N\",\"\",IF(AND('Enrollment Form'!$C358=\"ROC\",'Enrollment Form'!$DS358<>\"\"),\"Y\",IF(AND('Enrollment Form'!$C358=\"ROC\",'Enrollment Form'!$DS358=\"\"),\"N\",IF(AND('Enrollment Form'!$C358=\"Enroll\",'Enrollment Form'!$B358=\"Subscriber\",'Enrollment Form'!$CQ358=\"No\",'Enrollment Form'!$DS358=\"\"),\"N\",IF(AND('Enrollment Form'!$C358=\"Enroll\",'Enrollment Form'!$B358=\"Subscriber\",'Enrollment Form'!$CQ358=\"Yes\"),\"-\",\"Y\")))))","v":""},{"$f":"IF($B351=\"N\",\"\",IF(AND('Enrollment Form'!$C358=\"ROC\",'Enrollment Form'!$DT358<>\"\"),\"Y\",IF(AND('Enrollment Form'!$C358=\"ROC\",'Enrollment Form'!$DT358=\"\"),\"N\",IF(AND('Enrollment Form'!$C358=\"Enroll\",'Enrollment Form'!$B358=\"Subscriber\",'Enrollment Form'!$CQ358=\"No\",'Enrollment Form'!$DT358=\"\"),\"N\",IF(AND('Enrollment Form'!$C358=\"Enroll\",'Enrollment Form'!$B358=\"Subscriber\",'Enrollment Form'!$CQ358=\"Yes\"),\"-\",\"Y\")))))","v":""},{"$f":"IF('Enrollment Form'!AH358=\"\",\"\",IF(ISERROR(SEARCH(\".\",'Enrollment Form'!AH358,SEARCH(\"@\",'Enrollment Form'!AH358))),\"N\",\"Y\"))","v":""},{"$f":"IF(OR($B351=\"N\",'Enrollment Form'!$G358=\"\"),\"\",IF('Enrollment Form'!$B358<>\"Subscriber\",\"-\",IF(COUNTIF('Enrollment Form'!$AS358:$AT358,\"Yes\")=2,\"N\",\"Y\")))","v":""},{"$f":"IF(OR('Enrollment Form'!$CC358=\"\",'Enrollment Form'!$CC358=\"No\"),\"-\",IF(AND('Enrollment Form'!$CC358=\"Yes\",'Enrollment Form'!$CD358=\"\"),\"N\",\"Y\"))","v":"-"},{"$f":"IF(OR('Enrollment Form'!$CE358=\"\",'Enrollment Form'!$CE358=\"No\"),\"-\",IF(AND('Enrollment Form'!$CE358=\"Yes\",'Enrollment Form'!$CF358=\"\"),\"N\",\"Y\"))","v":"-"},{"$f":"IF(OR('Enrollment Form'!$CG358=\"\",'Enrollment Form'!$CG358=\"No\"),\"-\",IF(AND('Enrollment Form'!$CG358=\"Yes\",'Enrollment Form'!$CH358=\"\"),\"N\",\"Y\"))","v":"-"},{"$f":"IF(OR('Enrollment Form'!$CG358=\"\",'Enrollment Form'!$CG358=\"No\"),\"-\",IF(AND('Enrollment Form'!$CG358=\"Yes\",'Enrollment Form'!$CI358=\"\"),\"N\",\"Y\"))","v":"-"},{"$f":"IF('Enrollment Form'!B358<>\"Subscriber\",\"-\",IF(AND('Enrollment Form'!B358=\"Subscriber\",'Enrollment Form'!C358=\"Enroll\",'Enrollment Form'!AA358=\"\"),\"N\",\"Y\"))","v":"-"},{"$f":"IF(OR('Enrollment Form'!B358=\"Subscriber\",'Enrollment Form'!B358=\"\"),\"-\",IF('Enrollment Form'!BI358=\"\",\"N\",\"Y\"))","v":"-"},{"$f":"IF('Enrollment Form'!B358<>\"Subscriber\",\"-\",IF(AND('Enrollment Form'!B358=\"Subscriber\",'Enrollment Form'!G358=\"\"),\"N\",\"Y\"))","v":"-"},{"$f":"IF('Enrollment Form'!A358=\"\",\"\",IF('Enrollment Form'!B358=\"Subscriber\",\"-\",IF(AND('Enrollment Form'!B358<>\"Subscriber\",'Enrollment Form'!G358='Enrollment Form'!H358),\"N\",\"Y\")))","v":""},0]
[359,{"$f":"IF('Enrollment Form'!$A359<>\"\",\"Y\",\"N\")","v":"N"},{"$f":"IF(AND('Enrollment Form'!$B359=\"\",'Enrollment Form'!$C359<>\"\"),\"N\",IF($B352=\"N\",\"\",\"Y\"))","v":""},{"$f":"IF(OR($B352=\"N\",'Enrollment Form'!G359=\"\"),\"\",IF('Enrollment Form'!$B359<>\"Subscriber\",\"\",IF('Enrollment Form'!$G359='Enrollment Form'!$H359,\"Y\",\"N\")))","v":""},{"$f":"IF($B352=\"N\",\"\",IF(AND(COUNTIFS('Enrollment Form'!$H$11:$H$1000,'Enrollment Form'!$H359,'Enrollment Form'!$B$11:$B$1000,'Enrollment Form'!$B359)>1,'Enrollment Form'!$H359<>\"\"),\"N\",\"Y\"))","v":""},{"$f":"IF($B352=\"N\",\"\",IF(LEN('Enrollment Form'!$Y359)=0,\"\",IF(LEN('Enrollment Form'!$Y359)<>5,\"N\",\"Y\")))","v":""},{"$f":"IF($B352=\"N\",\"\",IF(LEN('Enrollment Form'!$AD359=0),\"\",IF(LEN('Enrollment Form'!$AD359)<>5,\"N\",\"Y\")))","v":""},{"$f":"IF($B352=\"N\",\"\",IF(LEN('Enrollment Form'!$BL359=0),\"\",IF(LEN('Enrollment Form'!$BL359)<>5,\"N\",\"Y\")))","v":""},{"$f":"IF($B352=\"N\",\"\",IF(LEN('Enrollment Form'!$AE359)=0,\"\",IF(LEN('Enrollment Form'!$AE359)<>10,\"N\",\"Y\")))","v":""},{"$f":"IF($B352=\"N\",\"\",IF(LEN('Enrollment Form'!$AF359)=0,\"\",IF(LEN('Enrollment Form'!$AF359)<>10,\"N\",\"Y\")))","v":""},{"$f":"IF('Enrollment Form'!$O359<>\"Graded\",\"-\",IF(AND('Enrollment Form'!$O359=\"Graded\",'Enrollment Form'!$AO359<>\"\"),\"Y\",\"N\"))","v":"-"},{"$f":"IF($B352=\"N\",\"\",IF(OR('Enrollment Form'!$B359<>\"Subscriber\",'Enrollment Form'!$C359=\"ROC\"),\"-\",IF(AND('Enrollment Form'!$B359=\"Subscriber\",'Enrollment Form'!$C359=\"Enroll\",'Enrollment Form'!$AJ359<>\"\"),\"Y\",\"N\")))","v":""},{"$f":"IF($B352=\"N\",\"\",IF(OR('Enrollment Form'!$B359<>\"Subscriber\",'Enrollment Form'!$C359=\"ROC\"),\"-\",IF(AND('Enrollment Form'!$B359=\"Subscriber\",'Enrollment Form'!$C359=\"Enroll\",'Enrollment Form'!$AK359<>\"\"),\"Y\",\"N\")))","v":""},{"$f":"IF($B352=\"N\",\"\",IF(OR('Enrollment Form'!$B359<>\"Subscriber\",'Enrollment Form'!$C359=\"ROC\"),\"-\",IF(AND('Enrollment Form'!$B359=\"Subscriber\",'Enrollment Form'!$C359=\"Enroll\",'Enrollment Form'!$AL359<>\"\"),\"Y\",\"N\")))","v":""},{"$f":"IF($B352=\"N\",\"\",IF(OR('Enrollment Form'!$B359<>\"Subscriber\",'Enrollment Form'!$C359=\"ROC\"),\"-\",IF(AND('Enrollment Form'!$B359=\"Subscriber\",'Enrollment Form'!$C359=\"Enroll\",'Enrollment Form'!$AM359<>\"\"),\"Y\",\"N\")))","v":""},{"$f":"IF($B352=\"N\",\"\",IF(OR('Enrollment Form'!$B359<>\"Subscriber\",'Enrollment Form'!$C359=\"ROC\"),\"-\",IF(AND('Enrollment Form'!$B359=\"Subscriber\",'Enrollment Form'!$C359=\"Enroll\",'Enrollment Form'!$AN359<>\"\"),\"Y\",\"N\")))","v":""},{"$f":"IF($B352=\"N\",\"\",IF(OR('Enrollment Form'!$B359<>\"Subscriber\",'Enrollment Form'!$C359=\"ROC\"),\"-\",IF(AND('Enrollment Form'!$B359=\"Subscriber\",'Enrollment Form'!$C359=\"Enroll\",'Enrollment Form'!$AP359<>\"\"),\"Y\",\"N\")))","v":""},{"$f":"IF($B352=\"N\",\"\",IF($Q352=\"-\",\"-\",IF(AND($Q352=\"Y\",'Enrollment Form'!$AP359=\"No\"),\"-\",IF(AND($Q352=\"Y\",'Enrollment Form'!$AP359=\"Yes\",'Enrollment Form'!$AQ359<>\"\"),\"Y\",\"N\"))))","v":""},{"$f":"IF($B352=\"N\",\"\",IF(OR('Enrollment Form'!$B359<>\"Subscriber\",'Enrollment Form'!$C359=\"ROC\"),\"-\",IF(AND('Enrollment Form'!$B359=\"Subscriber\",'Enrollment Form'!$C359=\"Enroll\",'Enrollment Form'!$CO359<>\"\"),\"Y\",\"N\")))","v":""},{"$f":"IF($B352=\"N\",\"\",IF($S352=\"-\",\"-\",IF(AND($S352=\"Y\",'Enrollment Form'!$CO359=\"No\"),\"-\",IF(AND($S352=\"Y\",'Enrollment Form'!$CO359=\"Yes\",'Enrollment Form'!$CP359<>\"\"),\"Y\",\"N\"))))","v":""},{"$f":"IF(OR('Enrollment Form'!$AV359=\"Yes\",'Enrollment Form'!$AV359=\"\"),\"-\",IF(AND('Enrollment Form'!$AV359=\"No\",ISERROR(FIND(\"HMO\",VLOOKUP('Enrollment Form'!G359,'Enrollment Form'!H$11:J$1000,3,FALSE),1))=FALSE,COUNTA('Enrollment Form'!$AW359:$AZ359)=4),\"Y\",\"N\"))","v":"-"},{"$f":"IF($B352=\"N\",\"\",IF('Enrollment Form'!$B359=\"Subscriber\",\"-\",IF(COUNTA('Enrollment Form'!$BE359,'Enrollment Form'!$BG359)=2,\"Y\",\"N\")))","v":""},{"$f":"IF($B352=\"N\",\"\",IF(OR('Enrollment Form'!$AU359=\"\",'Enrollment Form'!$AU359=\"No\"),\"-\",IF(AND('Enrollment Form'!$AU359=\"Yes\",COUNTA('Enrollment Form'!$CK359)=1),\"Y\",\"N\")))","v":""},{"$f":"IF(OR('Enrollment Form'!$CK359=\"\",'Enrollment Form'!$CK359=\"No\"),\"-\",IF(COUNTA('Enrollment Form'!$CM359:$CN359)=2,\"Y\",\"N\"))","v":"-"},{"$f":"IF($B352=\"N\",\"\",IF(COUNTIF('Enrollment Form'!$CZ359:$DO359,\"Other\")=COUNTA('Enrollment Form'!$DF359,'Enrollment Form'!$DA359,'Enrollment Form'!$DK359,'Enrollment Form'!$DP359),\"Y\",\"N\"))","v":""},{"$f":"IF($B352=\"N\",\"\",IF(OR('Enrollment Form'!B359<>\"Subscriber\",'Enrollment Form'!C359=\"ROC\",COUNTIF('Enrollment Form'!AS359:AT359,\"Yes\")>=1),\"-\",IF(AND('Enrollment Form'!C359=\"Enroll\",COUNTIF('Enrollment Form'!AS359:AT359,\"No\")=2,'Enrollment Form'!AU359=\"\"),\"N\",\"Y\")))","v":""},{"$f":"IF(OR(B352=\"N\",'Enrollment Form'!B359<>\"Subscriber\",'Enrollment Form'!C359=\"ROC\",'Enrollment Form'!O359<>\"Multiple of Salary\"),\"-\",IF(COUNTA('Enrollment Form'!T359:U359)<2,\"N\",\"Y\"))","v":"-"},{"$f":"IF(B352=\"N\",\"\",IF(OR('Enrollment Form'!C359=\"ROC\",'Enrollment Form'!B359<>\"Subscriber\",'Enrollment Form'!O359=\"Waive\",'Enrollment Form'!O359=\"\"),\"-\",IF('Enrollment Form'!P359=\"\",\"N\",\"Y\")))","v":""},{"$f":"IF($B352=\"N\",\"\",IF(AND('Enrollment Form'!$C359=\"ROC\",'Enrollment Form'!$DS359<>\"\"),\"Y\",IF(AND('Enrollment Form'!$C359=\"ROC\",'Enrollment Form'!$DS359=\"\"),\"N\",IF(AND('Enrollment Form'!$C359=\"Enroll\",'Enrollment Form'!$B359=\"Subscriber\",'Enrollment Form'!$CQ359=\"No\",'Enrollment Form'!$DS359=\"\"),\"N\",IF(AND('Enrollment Form'!$C359=\"Enroll\",'Enrollment Form'!$B359=\"Subscriber\",'Enrollment Form'!$CQ359=\"Yes\"),\"-\",\"Y\")))))","v":""},{"$f":"IF($B352=\"N\",\"\",IF(AND('Enrollment Form'!$C359=\"ROC\",'Enrollment Form'!$DT359<>\"\"),\"Y\",IF(AND('Enrollment Form'!$C359=\"ROC\",'Enrollment Form'!$DT359=\"\"),\"N\",IF(AND('Enrollment Form'!$C359=\"Enroll\",'Enrollment Form'!$B359=\"Subscriber\",'Enrollment Form'!$CQ359=\"No\",'Enrollment Form'!$DT359=\"\"),\"N\",IF(AND('Enrollment Form'!$C359=\"Enroll\",'Enrollment Form'!$B359=\"Subscriber\",'Enrollment Form'!$CQ359=\"Yes\"),\"-\",\"Y\")))))","v":""},{"$f":"IF('Enrollment Form'!AH359=\"\",\"\",IF(ISERROR(SEARCH(\".\",'Enrollment Form'!AH359,SEARCH(\"@\",'Enrollment Form'!AH359))),\"N\",\"Y\"))","v":""},{"$f":"IF(OR($B352=\"N\",'Enrollment Form'!$G359=\"\"),\"\",IF('Enrollment Form'!$B359<>\"Subscriber\",\"-\",IF(COUNTIF('Enrollment Form'!$AS359:$AT359,\"Yes\")=2,\"N\",\"Y\")))","v":""},{"$f":"IF(OR('Enrollment Form'!$CC359=\"\",'Enrollment Form'!$CC359=\"No\"),\"-\",IF(AND('Enrollment Form'!$CC359=\"Yes\",'Enrollment Form'!$CD359=\"\"),\"N\",\"Y\"))","v":"-"},{"$f":"IF(OR('Enrollment Form'!$CE359=\"\",'Enrollment Form'!$CE359=\"No\"),\"-\",IF(AND('Enrollment Form'!$CE359=\"Yes\",'Enrollment Form'!$CF359=\"\"),\"N\",\"Y\"))","v":"-"},{"$f":"IF(OR('Enrollment Form'!$CG359=\"\",'Enrollment Form'!$CG359=\"No\"),\"-\",IF(AND('Enrollment Form'!$CG359=\"Yes\",'Enrollment Form'!$CH359=\"\"),\"N\",\"Y\"))","v":"-"},{"$f":"IF(OR('Enrollment Form'!$CG359=\"\",'Enrollment Form'!$CG359=\"No\"),\"-\",IF(AND('Enrollment Form'!$CG359=\"Yes\",'Enrollment Form'!$CI359=\"\"),\"N\",\"Y\"))","v":"-"},{"$f":"IF('Enrollment Form'!B359<>\"Subscriber\",\"-\",IF(AND('Enrollment Form'!B359=\"Subscriber\",'Enrollment Form'!C359=\"Enroll\",'Enrollment Form'!AA359=\"\"),\"N\",\"Y\"))","v":"-"},{"$f":"IF(OR('Enrollment Form'!B359=\"Subscriber\",'Enrollment Form'!B359=\"\"),\"-\",IF('Enrollment Form'!BI359=\"\",\"N\",\"Y\"))","v":"-"},{"$f":"IF('Enrollment Form'!B359<>\"Subscriber\",\"-\",IF(AND('Enrollment Form'!B359=\"Subscriber\",'Enrollment Form'!G359=\"\"),\"N\",\"Y\"))","v":"-"},{"$f":"IF('Enrollment Form'!A359=\"\",\"\",IF('Enrollment Form'!B359=\"Subscriber\",\"-\",IF(AND('Enrollment Form'!B359<>\"Subscriber\",'Enrollment Form'!G359='Enrollment Form'!H359),\"N\",\"Y\")))","v":""},0]
[360,{"$f":"IF('Enrollment Form'!$A360<>\"\",\"Y\",\"N\")","v":"N"},{"$f":"IF(AND('Enrollment Form'!$B360=\"\",'Enrollment Form'!$C360<>\"\"),\"N\",IF($B353=\"N\",\"\",\"Y\"))","v":""},{"$f":"IF(OR($B353=\"N\",'Enrollment Form'!G360=\"\"),\"\",IF('Enrollment Form'!$B360<>\"Subscriber\",\"\",IF('Enrollment Form'!$G360='Enrollment Form'!$H360,\"Y\",\"N\")))","v":""},{"$f":"IF($B353=\"N\",\"\",IF(AND(COUNTIFS('Enrollment Form'!$H$11:$H$1000,'Enrollment Form'!$H360,'Enrollment Form'!$B$11:$B$1000,'Enrollment Form'!$B360)>1,'Enrollment Form'!$H360<>\"\"),\"N\",\"Y\"))","v":""},{"$f":"IF($B353=\"N\",\"\",IF(LEN('Enrollment Form'!$Y360)=0,\"\",IF(LEN('Enrollment Form'!$Y360)<>5,\"N\",\"Y\")))","v":""},{"$f":"IF($B353=\"N\",\"\",IF(LEN('Enrollment Form'!$AD360=0),\"\",IF(LEN('Enrollment Form'!$AD360)<>5,\"N\",\"Y\")))","v":""},{"$f":"IF($B353=\"N\",\"\",IF(LEN('Enrollment Form'!$BL360=0),\"\",IF(LEN('Enrollment Form'!$BL360)<>5,\"N\",\"Y\")))","v":""},{"$f":"IF($B353=\"N\",\"\",IF(LEN('Enrollment Form'!$AE360)=0,\"\",IF(LEN('Enrollment Form'!$AE360)<>10,\"N\",\"Y\")))","v":""},{"$f":"IF($B353=\"N\",\"\",IF(LEN('Enrollment Form'!$AF360)=0,\"\",IF(LEN('Enrollment Form'!$AF360)<>10,\"N\",\"Y\")))","v":""},{"$f":"IF('Enrollment Form'!$O360<>\"Graded\",\"-\",IF(AND('Enrollment Form'!$O360=\"Graded\",'Enrollment Form'!$AO360<>\"\"),\"Y\",\"N\"))","v":"-"},{"$f":"IF($B353=\"N\",\"\",IF(OR('Enrollment Form'!$B360<>\"Subscriber\",'Enrollment Form'!$C360=\"ROC\"),\"-\",IF(AND('Enrollment Form'!$B360=\"Subscriber\",'Enrollment Form'!$C360=\"Enroll\",'Enrollment Form'!$AJ360<>\"\"),\"Y\",\"N\")))","v":""},{"$f":"IF($B353=\"N\",\"\",IF(OR('Enrollment Form'!$B360<>\"Subscriber\",'Enrollment Form'!$C360=\"ROC\"),\"-\",IF(AND('Enrollment Form'!$B360=\"Subscriber\",'Enrollment Form'!$C360=\"Enroll\",'Enrollment Form'!$AK360<>\"\"),\"Y\",\"N\")))","v":""},{"$f":"IF($B353=\"N\",\"\",IF(OR('Enrollment Form'!$B360<>\"Subscriber\",'Enrollment Form'!$C360=\"ROC\"),\"-\",IF(AND('Enrollment Form'!$B360=\"Subscriber\",'Enrollment Form'!$C360=\"Enroll\",'Enrollment Form'!$AL360<>\"\"),\"Y\",\"N\")))","v":""},{"$f":"IF($B353=\"N\",\"\",IF(OR('Enrollment Form'!$B360<>\"Subscriber\",'Enrollment Form'!$C360=\"ROC\"),\"-\",IF(AND('Enrollment Form'!$B360=\"Subscriber\",'Enrollment Form'!$C360=\"Enroll\",'Enrollment Form'!$AM360<>\"\"),\"Y\",\"N\")))","v":""},{"$f":"IF($B353=\"N\",\"\",IF(OR('Enrollment Form'!$B360<>\"Subscriber\",'Enrollment Form'!$C360=\"ROC\"),\"-\",IF(AND('Enrollment Form'!$B360=\"Subscriber\",'Enrollment Form'!$C360=\"Enroll\",'Enrollment Form'!$AN360<>\"\"),\"Y\",\"N\")))","v":""},{"$f":"IF($B353=\"N\",\"\",IF(OR('Enrollment Form'!$B360<>\"Subscriber\",'Enrollment Form'!$C360=\"ROC\"),\"-\",IF(AND('Enrollment Form'!$B360=\"Subscriber\",'Enrollment Form'!$C360=\"Enroll\",'Enrollment Form'!$AP360<>\"\"),\"Y\",\"N\")))","v":""},{"$f":"IF($B353=\"N\",\"\",IF($Q353=\"-\",\"-\",IF(AND($Q353=\"Y\",'Enrollment Form'!$AP360=\"No\"),\"-\",IF(AND($Q353=\"Y\",'Enrollment Form'!$AP360=\"Yes\",'Enrollment Form'!$AQ360<>\"\"),\"Y\",\"N\"))))","v":""},{"$f":"IF($B353=\"N\",\"\",IF(OR('Enrollment Form'!$B360<>\"Subscriber\",'Enrollment Form'!$C360=\"ROC\"),\"-\",IF(AND('Enrollment Form'!$B360=\"Subscriber\",'Enrollment Form'!$C360=\"Enroll\",'Enrollment Form'!$CO360<>\"\"),\"Y\",\"N\")))","v":""},{"$f":"IF($B353=\"N\",\"\",IF($S353=\"-\",\"-\",IF(AND($S353=\"Y\",'Enrollment Form'!$CO360=\"No\"),\"-\",IF(AND($S353=\"Y\",'Enrollment Form'!$CO360=\"Yes\",'Enrollment Form'!$CP360<>\"\"),\"Y\",\"N\"))))","v":""},{"$f":"IF(OR('Enrollment Form'!$AV360=\"Yes\",'Enrollment Form'!$AV360=\"\"),\"-\",IF(AND('Enrollment Form'!$AV360=\"No\",ISERROR(FIND(\"HMO\",VLOOKUP('Enrollment Form'!G360,'Enrollment Form'!H$11:J$1000,3,FALSE),1))=FALSE,COUNTA('Enrollment Form'!$AW360:$AZ360)=4),\"Y\",\"N\"))","v":"-"},{"$f":"IF($B353=\"N\",\"\",IF('Enrollment Form'!$B360=\"Subscriber\",\"-\",IF(COUNTA('Enrollment Form'!$BE360,'Enrollment Form'!$BG360)=2,\"Y\",\"N\")))","v":""},{"$f":"IF($B353=\"N\",\"\",IF(OR('Enrollment Form'!$AU360=\"\",'Enrollment Form'!$AU360=\"No\"),\"-\",IF(AND('Enrollment Form'!$AU360=\"Yes\",COUNTA('Enrollment Form'!$CK360)=1),\"Y\",\"N\")))","v":""},{"$f":"IF(OR('Enrollment Form'!$CK360=\"\",'Enrollment Form'!$CK360=\"No\"),\"-\",IF(COUNTA('Enrollment Form'!$CM360:$CN360)=2,\"Y\",\"N\"))","v":"-"},{"$f":"IF($B353=\"N\",\"\",IF(COUNTIF('Enrollment Form'!$CZ360:$DO360,\"Other\")=COUNTA('Enrollment Form'!$DF360,'Enrollment Form'!$DA360,'Enrollment Form'!$DK360,'Enrollment Form'!$DP360),\"Y\",\"N\"))","v":""},{"$f":"IF($B353=\"N\",\"\",IF(OR('Enrollment Form'!B360<>\"Subscriber\",'Enrollment Form'!C360=\"ROC\",COUNTIF('Enrollment Form'!AS360:AT360,\"Yes\")>=1),\"-\",IF(AND('Enrollment Form'!C360=\"Enroll\",COUNTIF('Enrollment Form'!AS360:AT360,\"No\")=2,'Enrollment Form'!AU360=\"\"),\"N\",\"Y\")))","v":""},{"$f":"IF(OR(B353=\"N\",'Enrollment Form'!B360<>\"Subscriber\",'Enrollment Form'!C360=\"ROC\",'Enrollment Form'!O360<>\"Multiple of Salary\"),\"-\",IF(COUNTA('Enrollment Form'!T360:U360)<2,\"N\",\"Y\"))","v":"-"},{"$f":"IF(B353=\"N\",\"\",IF(OR('Enrollment Form'!C360=\"ROC\",'Enrollment Form'!B360<>\"Subscriber\",'Enrollment Form'!O360=\"Waive\",'Enrollment Form'!O360=\"\"),\"-\",IF('Enrollment Form'!P360=\"\",\"N\",\"Y\")))","v":""},{"$f":"IF($B353=\"N\",\"\",IF(AND('Enrollment Form'!$C360=\"ROC\",'Enrollment Form'!$DS360<>\"\"),\"Y\",IF(AND('Enrollment Form'!$C360=\"ROC\",'Enrollment Form'!$DS360=\"\"),\"N\",IF(AND('Enrollment Form'!$C360=\"Enroll\",'Enrollment Form'!$B360=\"Subscriber\",'Enrollment Form'!$CQ360=\"No\",'Enrollment Form'!$DS360=\"\"),\"N\",IF(AND('Enrollment Form'!$C360=\"Enroll\",'Enrollment Form'!$B360=\"Subscriber\",'Enrollment Form'!$CQ360=\"Yes\"),\"-\",\"Y\")))))","v":""},{"$f":"IF($B353=\"N\",\"\",IF(AND('Enrollment Form'!$C360=\"ROC\",'Enrollment Form'!$DT360<>\"\"),\"Y\",IF(AND('Enrollment Form'!$C360=\"ROC\",'Enrollment Form'!$DT360=\"\"),\"N\",IF(AND('Enrollment Form'!$C360=\"Enroll\",'Enrollment Form'!$B360=\"Subscriber\",'Enrollment Form'!$CQ360=\"No\",'Enrollment Form'!$DT360=\"\"),\"N\",IF(AND('Enrollment Form'!$C360=\"Enroll\",'Enrollment Form'!$B360=\"Subscriber\",'Enrollment Form'!$CQ360=\"Yes\"),\"-\",\"Y\")))))","v":""},{"$f":"IF('Enrollment Form'!AH360=\"\",\"\",IF(ISERROR(SEARCH(\".\",'Enrollment Form'!AH360,SEARCH(\"@\",'Enrollment Form'!AH360))),\"N\",\"Y\"))","v":""},{"$f":"IF(OR($B353=\"N\",'Enrollment Form'!$G360=\"\"),\"\",IF('Enrollment Form'!$B360<>\"Subscriber\",\"-\",IF(COUNTIF('Enrollment Form'!$AS360:$AT360,\"Yes\")=2,\"N\",\"Y\")))","v":""},{"$f":"IF(OR('Enrollment Form'!$CC360=\"\",'Enrollment Form'!$CC360=\"No\"),\"-\",IF(AND('Enrollment Form'!$CC360=\"Yes\",'Enrollment Form'!$CD360=\"\"),\"N\",\"Y\"))","v":"-"},{"$f":"IF(OR('Enrollment Form'!$CE360=\"\",'Enrollment Form'!$CE360=\"No\"),\"-\",IF(AND('Enrollment Form'!$CE360=\"Yes\",'Enrollment Form'!$CF360=\"\"),\"N\",\"Y\"))","v":"-"},{"$f":"IF(OR('Enrollment Form'!$CG360=\"\",'Enrollment Form'!$CG360=\"No\"),\"-\",IF(AND('Enrollment Form'!$CG360=\"Yes\",'Enrollment Form'!$CH360=\"\"),\"N\",\"Y\"))","v":"-"},{"$f":"IF(OR('Enrollment Form'!$CG360=\"\",'Enrollment Form'!$CG360=\"No\"),\"-\",IF(AND('Enrollment Form'!$CG360=\"Yes\",'Enrollment Form'!$CI360=\"\"),\"N\",\"Y\"))","v":"-"},{"$f":"IF('Enrollment Form'!B360<>\"Subscriber\",\"-\",IF(AND('Enrollment Form'!B360=\"Subscriber\",'Enrollment Form'!C360=\"Enroll\",'Enrollment Form'!AA360=\"\"),\"N\",\"Y\"))","v":"-"},{"$f":"IF(OR('Enrollment Form'!B360=\"Subscriber\",'Enrollment Form'!B360=\"\"),\"-\",IF('Enrollment Form'!BI360=\"\",\"N\",\"Y\"))","v":"-"},{"$f":"IF('Enrollment Form'!B360<>\"Subscriber\",\"-\",IF(AND('Enrollment Form'!B360=\"Subscriber\",'Enrollment Form'!G360=\"\"),\"N\",\"Y\"))","v":"-"},{"$f":"IF('Enrollment Form'!A360=\"\",\"\",IF('Enrollment Form'!B360=\"Subscriber\",\"-\",IF(AND('Enrollment Form'!B360<>\"Subscriber\",'Enrollment Form'!G360='Enrollment Form'!H360),\"N\",\"Y\")))","v":""},0]
[361,{"$f":"IF('Enrollment Form'!$A361<>\"\",\"Y\",\"N\")","v":"N"},{"$f":"IF(AND('Enrollment Form'!$B361=\"\",'Enrollment Form'!$C361<>\"\"),\"N\",IF($B354=\"N\",\"\",\"Y\"))","v":""},{"$f":"IF(OR($B354=\"N\",'Enrollment Form'!G361=\"\"),\"\",IF('Enrollment Form'!$B361<>\"Subscriber\",\"\",IF('Enrollment Form'!$G361='Enrollment Form'!$H361,\"Y\",\"N\")))","v":""},{"$f":"IF($B354=\"N\",\"\",IF(AND(COUNTIFS('Enrollment Form'!$H$11:$H$1000,'Enrollment Form'!$H361,'Enrollment Form'!$B$11:$B$1000,'Enrollment Form'!$B361)>1,'Enrollment Form'!$H361<>\"\"),\"N\",\"Y\"))","v":""},{"$f":"IF($B354=\"N\",\"\",IF(LEN('Enrollment Form'!$Y361)=0,\"\",IF(LEN('Enrollment Form'!$Y361)<>5,\"N\",\"Y\")))","v":""},{"$f":"IF($B354=\"N\",\"\",IF(LEN('Enrollment Form'!$AD361=0),\"\",IF(LEN('Enrollment Form'!$AD361)<>5,\"N\",\"Y\")))","v":""},{"$f":"IF($B354=\"N\",\"\",IF(LEN('Enrollment Form'!$BL361=0),\"\",IF(LEN('Enrollment Form'!$BL361)<>5,\"N\",\"Y\")))","v":""},{"$f":"IF($B354=\"N\",\"\",IF(LEN('Enrollment Form'!$AE361)=0,\"\",IF(LEN('Enrollment Form'!$AE361)<>10,\"N\",\"Y\")))","v":""},{"$f":"IF($B354=\"N\",\"\",IF(LEN('Enrollment Form'!$AF361)=0,\"\",IF(LEN('Enrollment Form'!$AF361)<>10,\"N\",\"Y\")))","v":""},{"$f":"IF('Enrollment Form'!$O361<>\"Graded\",\"-\",IF(AND('Enrollment Form'!$O361=\"Graded\",'Enrollment Form'!$AO361<>\"\"),\"Y\",\"N\"))","v":"-"},{"$f":"IF($B354=\"N\",\"\",IF(OR('Enrollment Form'!$B361<>\"Subscriber\",'Enrollment Form'!$C361=\"ROC\"),\"-\",IF(AND('Enrollment Form'!$B361=\"Subscriber\",'Enrollment Form'!$C361=\"Enroll\",'Enrollment Form'!$AJ361<>\"\"),\"Y\",\"N\")))","v":""},{"$f":"IF($B354=\"N\",\"\",IF(OR('Enrollment Form'!$B361<>\"Subscriber\",'Enrollment Form'!$C361=\"ROC\"),\"-\",IF(AND('Enrollment Form'!$B361=\"Subscriber\",'Enrollment Form'!$C361=\"Enroll\",'Enrollment Form'!$AK361<>\"\"),\"Y\",\"N\")))","v":""},{"$f":"IF($B354=\"N\",\"\",IF(OR('Enrollment Form'!$B361<>\"Subscriber\",'Enrollment Form'!$C361=\"ROC\"),\"-\",IF(AND('Enrollment Form'!$B361=\"Subscriber\",'Enrollment Form'!$C361=\"Enroll\",'Enrollment Form'!$AL361<>\"\"),\"Y\",\"N\")))","v":""},{"$f":"IF($B354=\"N\",\"\",IF(OR('Enrollment Form'!$B361<>\"Subscriber\",'Enrollment Form'!$C361=\"ROC\"),\"-\",IF(AND('Enrollment Form'!$B361=\"Subscriber\",'Enrollment Form'!$C361=\"Enroll\",'Enrollment Form'!$AM361<>\"\"),\"Y\",\"N\")))","v":""},{"$f":"IF($B354=\"N\",\"\",IF(OR('Enrollment Form'!$B361<>\"Subscriber\",'Enrollment Form'!$C361=\"ROC\"),\"-\",IF(AND('Enrollment Form'!$B361=\"Subscriber\",'Enrollment Form'!$C361=\"Enroll\",'Enrollment Form'!$AN361<>\"\"),\"Y\",\"N\")))","v":""},{"$f":"IF($B354=\"N\",\"\",IF(OR('Enrollment Form'!$B361<>\"Subscriber\",'Enrollment Form'!$C361=\"ROC\"),\"-\",IF(AND('Enrollment Form'!$B361=\"Subscriber\",'Enrollment Form'!$C361=\"Enroll\",'Enrollment Form'!$AP361<>\"\"),\"Y\",\"N\")))","v":""},{"$f":"IF($B354=\"N\",\"\",IF($Q354=\"-\",\"-\",IF(AND($Q354=\"Y\",'Enrollment Form'!$AP361=\"No\"),\"-\",IF(AND($Q354=\"Y\",'Enrollment Form'!$AP361=\"Yes\",'Enrollment Form'!$AQ361<>\"\"),\"Y\",\"N\"))))","v":""},{"$f":"IF($B354=\"N\",\"\",IF(OR('Enrollment Form'!$B361<>\"Subscriber\",'Enrollment Form'!$C361=\"ROC\"),\"-\",IF(AND('Enrollment Form'!$B361=\"Subscriber\",'Enrollment Form'!$C361=\"Enroll\",'Enrollment Form'!$CO361<>\"\"),\"Y\",\"N\")))","v":""},{"$f":"IF($B354=\"N\",\"\",IF($S354=\"-\",\"-\",IF(AND($S354=\"Y\",'Enrollment Form'!$CO361=\"No\"),\"-\",IF(AND($S354=\"Y\",'Enrollment Form'!$CO361=\"Yes\",'Enrollment Form'!$CP361<>\"\"),\"Y\",\"N\"))))","v":""},{"$f":"IF(OR('Enrollment Form'!$AV361=\"Yes\",'Enrollment Form'!$AV361=\"\"),\"-\",IF(AND('Enrollment Form'!$AV361=\"No\",ISERROR(FIND(\"HMO\",VLOOKUP('Enrollment Form'!G361,'Enrollment Form'!H$11:J$1000,3,FALSE),1))=FALSE,COUNTA('Enrollment Form'!$AW361:$AZ361)=4),\"Y\",\"N\"))","v":"-"},{"$f":"IF($B354=\"N\",\"\",IF('Enrollment Form'!$B361=\"Subscriber\",\"-\",IF(COUNTA('Enrollment Form'!$BE361,'Enrollment Form'!$BG361)=2,\"Y\",\"N\")))","v":""},{"$f":"IF($B354=\"N\",\"\",IF(OR('Enrollment Form'!$AU361=\"\",'Enrollment Form'!$AU361=\"No\"),\"-\",IF(AND('Enrollment Form'!$AU361=\"Yes\",COUNTA('Enrollment Form'!$CK361)=1),\"Y\",\"N\")))","v":""},{"$f":"IF(OR('Enrollment Form'!$CK361=\"\",'Enrollment Form'!$CK361=\"No\"),\"-\",IF(COUNTA('Enrollment Form'!$CM361:$CN361)=2,\"Y\",\"N\"))","v":"-"},{"$f":"IF($B354=\"N\",\"\",IF(COUNTIF('Enrollment Form'!$CZ361:$DO361,\"Other\")=COUNTA('Enrollment Form'!$DF361,'Enrollment Form'!$DA361,'Enrollment Form'!$DK361,'Enrollment Form'!$DP361),\"Y\",\"N\"))","v":""},{"$f":"IF($B354=\"N\",\"\",IF(OR('Enrollment Form'!B361<>\"Subscriber\",'Enrollment Form'!C361=\"ROC\",COUNTIF('Enrollment Form'!AS361:AT361,\"Yes\")>=1),\"-\",IF(AND('Enrollment Form'!C361=\"Enroll\",COUNTIF('Enrollment Form'!AS361:AT361,\"No\")=2,'Enrollment Form'!AU361=\"\"),\"N\",\"Y\")))","v":""},{"$f":"IF(OR(B354=\"N\",'Enrollment Form'!B361<>\"Subscriber\",'Enrollment Form'!C361=\"ROC\",'Enrollment Form'!O361<>\"Multiple of Salary\"),\"-\",IF(COUNTA('Enrollment Form'!T361:U361)<2,\"N\",\"Y\"))","v":"-"},{"$f":"IF(B354=\"N\",\"\",IF(OR('Enrollment Form'!C361=\"ROC\",'Enrollment Form'!B361<>\"Subscriber\",'Enrollment Form'!O361=\"Waive\",'Enrollment Form'!O361=\"\"),\"-\",IF('Enrollment Form'!P361=\"\",\"N\",\"Y\")))","v":""},{"$f":"IF($B354=\"N\",\"\",IF(AND('Enrollment Form'!$C361=\"ROC\",'Enrollment Form'!$DS361<>\"\"),\"Y\",IF(AND('Enrollment Form'!$C361=\"ROC\",'Enrollment Form'!$DS361=\"\"),\"N\",IF(AND('Enrollment Form'!$C361=\"Enroll\",'Enrollment Form'!$B361=\"Subscriber\",'Enrollment Form'!$CQ361=\"No\",'Enrollment Form'!$DS361=\"\"),\"N\",IF(AND('Enrollment Form'!$C361=\"Enroll\",'Enrollment Form'!$B361=\"Subscriber\",'Enrollment Form'!$CQ361=\"Yes\"),\"-\",\"Y\")))))","v":""},{"$f":"IF($B354=\"N\",\"\",IF(AND('Enrollment Form'!$C361=\"ROC\",'Enrollment Form'!$DT361<>\"\"),\"Y\",IF(AND('Enrollment Form'!$C361=\"ROC\",'Enrollment Form'!$DT361=\"\"),\"N\",IF(AND('Enrollment Form'!$C361=\"Enroll\",'Enrollment Form'!$B361=\"Subscriber\",'Enrollment Form'!$CQ361=\"No\",'Enrollment Form'!$DT361=\"\"),\"N\",IF(AND('Enrollment Form'!$C361=\"Enroll\",'Enrollment Form'!$B361=\"Subscriber\",'Enrollment Form'!$CQ361=\"Yes\"),\"-\",\"Y\")))))","v":""},{"$f":"IF('Enrollment Form'!AH361=\"\",\"\",IF(ISERROR(SEARCH(\".\",'Enrollment Form'!AH361,SEARCH(\"@\",'Enrollment Form'!AH361))),\"N\",\"Y\"))","v":""},{"$f":"IF(OR($B354=\"N\",'Enrollment Form'!$G361=\"\"),\"\",IF('Enrollment Form'!$B361<>\"Subscriber\",\"-\",IF(COUNTIF('Enrollment Form'!$AS361:$AT361,\"Yes\")=2,\"N\",\"Y\")))","v":""},{"$f":"IF(OR('Enrollment Form'!$CC361=\"\",'Enrollment Form'!$CC361=\"No\"),\"-\",IF(AND('Enrollment Form'!$CC361=\"Yes\",'Enrollment Form'!$CD361=\"\"),\"N\",\"Y\"))","v":"-"},{"$f":"IF(OR('Enrollment Form'!$CE361=\"\",'Enrollment Form'!$CE361=\"No\"),\"-\",IF(AND('Enrollment Form'!$CE361=\"Yes\",'Enrollment Form'!$CF361=\"\"),\"N\",\"Y\"))","v":"-"},{"$f":"IF(OR('Enrollment Form'!$CG361=\"\",'Enrollment Form'!$CG361=\"No\"),\"-\",IF(AND('Enrollment Form'!$CG361=\"Yes\",'Enrollment Form'!$CH361=\"\"),\"N\",\"Y\"))","v":"-"},{"$f":"IF(OR('Enrollment Form'!$CG361=\"\",'Enrollment Form'!$CG361=\"No\"),\"-\",IF(AND('Enrollment Form'!$CG361=\"Yes\",'Enrollment Form'!$CI361=\"\"),\"N\",\"Y\"))","v":"-"},{"$f":"IF('Enrollment Form'!B361<>\"Subscriber\",\"-\",IF(AND('Enrollment Form'!B361=\"Subscriber\",'Enrollment Form'!C361=\"Enroll\",'Enrollment Form'!AA361=\"\"),\"N\",\"Y\"))","v":"-"},{"$f":"IF(OR('Enrollment Form'!B361=\"Subscriber\",'Enrollment Form'!B361=\"\"),\"-\",IF('Enrollment Form'!BI361=\"\",\"N\",\"Y\"))","v":"-"},{"$f":"IF('Enrollment Form'!B361<>\"Subscriber\",\"-\",IF(AND('Enrollment Form'!B361=\"Subscriber\",'Enrollment Form'!G361=\"\"),\"N\",\"Y\"))","v":"-"},{"$f":"IF('Enrollment Form'!A361=\"\",\"\",IF('Enrollment Form'!B361=\"Subscriber\",\"-\",IF(AND('Enrollment Form'!B361<>\"Subscriber\",'Enrollment Form'!G361='Enrollment Form'!H361),\"N\",\"Y\")))","v":""},0]
[362,{"$f":"IF('Enrollment Form'!$A362<>\"\",\"Y\",\"N\")","v":"N"},{"$f":"IF(AND('Enrollment Form'!$B362=\"\",'Enrollment Form'!$C362<>\"\"),\"N\",IF($B355=\"N\",\"\",\"Y\"))","v":""},{"$f":"IF(OR($B355=\"N\",'Enrollment Form'!G362=\"\"),\"\",IF('Enrollment Form'!$B362<>\"Subscriber\",\"\",IF('Enrollment Form'!$G362='Enrollment Form'!$H362,\"Y\",\"N\")))","v":""},{"$f":"IF($B355=\"N\",\"\",IF(AND(COUNTIFS('Enrollment Form'!$H$11:$H$1000,'Enrollment Form'!$H362,'Enrollment Form'!$B$11:$B$1000,'Enrollment Form'!$B362)>1,'Enrollment Form'!$H362<>\"\"),\"N\",\"Y\"))","v":""},{"$f":"IF($B355=\"N\",\"\",IF(LEN('Enrollment Form'!$Y362)=0,\"\",IF(LEN('Enrollment Form'!$Y362)<>5,\"N\",\"Y\")))","v":""},{"$f":"IF($B355=\"N\",\"\",IF(LEN('Enrollment Form'!$AD362=0),\"\",IF(LEN('Enrollment Form'!$AD362)<>5,\"N\",\"Y\")))","v":""},{"$f":"IF($B355=\"N\",\"\",IF(LEN('Enrollment Form'!$BL362=0),\"\",IF(LEN('Enrollment Form'!$BL362)<>5,\"N\",\"Y\")))","v":""},{"$f":"IF($B355=\"N\",\"\",IF(LEN('Enrollment Form'!$AE362)=0,\"\",IF(LEN('Enrollment Form'!$AE362)<>10,\"N\",\"Y\")))","v":""},{"$f":"IF($B355=\"N\",\"\",IF(LEN('Enrollment Form'!$AF362)=0,\"\",IF(LEN('Enrollment Form'!$AF362)<>10,\"N\",\"Y\")))","v":""},{"$f":"IF('Enrollment Form'!$O362<>\"Graded\",\"-\",IF(AND('Enrollment Form'!$O362=\"Graded\",'Enrollment Form'!$AO362<>\"\"),\"Y\",\"N\"))","v":"-"},{"$f":"IF($B355=\"N\",\"\",IF(OR('Enrollment Form'!$B362<>\"Subscriber\",'Enrollment Form'!$C362=\"ROC\"),\"-\",IF(AND('Enrollment Form'!$B362=\"Subscriber\",'Enrollment Form'!$C362=\"Enroll\",'Enrollment Form'!$AJ362<>\"\"),\"Y\",\"N\")))","v":""},{"$f":"IF($B355=\"N\",\"\",IF(OR('Enrollment Form'!$B362<>\"Subscriber\",'Enrollment Form'!$C362=\"ROC\"),\"-\",IF(AND('Enrollment Form'!$B362=\"Subscriber\",'Enrollment Form'!$C362=\"Enroll\",'Enrollment Form'!$AK362<>\"\"),\"Y\",\"N\")))","v":""},{"$f":"IF($B355=\"N\",\"\",IF(OR('Enrollment Form'!$B362<>\"Subscriber\",'Enrollment Form'!$C362=\"ROC\"),\"-\",IF(AND('Enrollment Form'!$B362=\"Subscriber\",'Enrollment Form'!$C362=\"Enroll\",'Enrollment Form'!$AL362<>\"\"),\"Y\",\"N\")))","v":""},{"$f":"IF($B355=\"N\",\"\",IF(OR('Enrollment Form'!$B362<>\"Subscriber\",'Enrollment Form'!$C362=\"ROC\"),\"-\",IF(AND('Enrollment Form'!$B362=\"Subscriber\",'Enrollment Form'!$C362=\"Enroll\",'Enrollment Form'!$AM362<>\"\"),\"Y\",\"N\")))","v":""},{"$f":"IF($B355=\"N\",\"\",IF(OR('Enrollment Form'!$B362<>\"Subscriber\",'Enrollment Form'!$C362=\"ROC\"),\"-\",IF(AND('Enrollment Form'!$B362=\"Subscriber\",'Enrollment Form'!$C362=\"Enroll\",'Enrollment Form'!$AN362<>\"\"),\"Y\",\"N\")))","v":""},{"$f":"IF($B355=\"N\",\"\",IF(OR('Enrollment Form'!$B362<>\"Subscriber\",'Enrollment Form'!$C362=\"ROC\"),\"-\",IF(AND('Enrollment Form'!$B362=\"Subscriber\",'Enrollment Form'!$C362=\"Enroll\",'Enrollment Form'!$AP362<>\"\"),\"Y\",\"N\")))","v":""},{"$f":"IF($B355=\"N\",\"\",IF($Q355=\"-\",\"-\",IF(AND($Q355=\"Y\",'Enrollment Form'!$AP362=\"No\"),\"-\",IF(AND($Q355=\"Y\",'Enrollment Form'!$AP362=\"Yes\",'Enrollment Form'!$AQ362<>\"\"),\"Y\",\"N\"))))","v":""},{"$f":"IF($B355=\"N\",\"\",IF(OR('Enrollment Form'!$B362<>\"Subscriber\",'Enrollment Form'!$C362=\"ROC\"),\"-\",IF(AND('Enrollment Form'!$B362=\"Subscriber\",'Enrollment Form'!$C362=\"Enroll\",'Enrollment Form'!$CO362<>\"\"),\"Y\",\"N\")))","v":""},{"$f":"IF($B355=\"N\",\"\",IF($S355=\"-\",\"-\",IF(AND($S355=\"Y\",'Enrollment Form'!$CO362=\"No\"),\"-\",IF(AND($S355=\"Y\",'Enrollment Form'!$CO362=\"Yes\",'Enrollment Form'!$CP362<>\"\"),\"Y\",\"N\"))))","v":""},{"$f":"IF(OR('Enrollment Form'!$AV362=\"Yes\",'Enrollment Form'!$AV362=\"\"),\"-\",IF(AND('Enrollment Form'!$AV362=\"No\",ISERROR(FIND(\"HMO\",VLOOKUP('Enrollment Form'!G362,'Enrollment Form'!H$11:J$1000,3,FALSE),1))=FALSE,COUNTA('Enrollment Form'!$AW362:$AZ362)=4),\"Y\",\"N\"))","v":"-"},{"$f":"IF($B355=\"N\",\"\",IF('Enrollment Form'!$B362=\"Subscriber\",\"-\",IF(COUNTA('Enrollment Form'!$BE362,'Enrollment Form'!$BG362)=2,\"Y\",\"N\")))","v":""},{"$f":"IF($B355=\"N\",\"\",IF(OR('Enrollment Form'!$AU362=\"\",'Enrollment Form'!$AU362=\"No\"),\"-\",IF(AND('Enrollment Form'!$AU362=\"Yes\",COUNTA('Enrollment Form'!$CK362)=1),\"Y\",\"N\")))","v":""},{"$f":"IF(OR('Enrollment Form'!$CK362=\"\",'Enrollment Form'!$CK362=\"No\"),\"-\",IF(COUNTA('Enrollment Form'!$CM362:$CN362)=2,\"Y\",\"N\"))","v":"-"},{"$f":"IF($B355=\"N\",\"\",IF(COUNTIF('Enrollment Form'!$CZ362:$DO362,\"Other\")=COUNTA('Enrollment Form'!$DF362,'Enrollment Form'!$DA362,'Enrollment Form'!$DK362,'Enrollment Form'!$DP362),\"Y\",\"N\"))","v":""},{"$f":"IF($B355=\"N\",\"\",IF(OR('Enrollment Form'!B362<>\"Subscriber\",'Enrollment Form'!C362=\"ROC\",COUNTIF('Enrollment Form'!AS362:AT362,\"Yes\")>=1),\"-\",IF(AND('Enrollment Form'!C362=\"Enroll\",COUNTIF('Enrollment Form'!AS362:AT362,\"No\")=2,'Enrollment Form'!AU362=\"\"),\"N\",\"Y\")))","v":""},{"$f":"IF(OR(B355=\"N\",'Enrollment Form'!B362<>\"Subscriber\",'Enrollment Form'!C362=\"ROC\",'Enrollment Form'!O362<>\"Multiple of Salary\"),\"-\",IF(COUNTA('Enrollment Form'!T362:U362)<2,\"N\",\"Y\"))","v":"-"},{"$f":"IF(B355=\"N\",\"\",IF(OR('Enrollment Form'!C362=\"ROC\",'Enrollment Form'!B362<>\"Subscriber\",'Enrollment Form'!O362=\"Waive\",'Enrollment Form'!O362=\"\"),\"-\",IF('Enrollment Form'!P362=\"\",\"N\",\"Y\")))","v":""},{"$f":"IF($B355=\"N\",\"\",IF(AND('Enrollment Form'!$C362=\"ROC\",'Enrollment Form'!$DS362<>\"\"),\"Y\",IF(AND('Enrollment Form'!$C362=\"ROC\",'Enrollment Form'!$DS362=\"\"),\"N\",IF(AND('Enrollment Form'!$C362=\"Enroll\",'Enrollment Form'!$B362=\"Subscriber\",'Enrollment Form'!$CQ362=\"No\",'Enrollment Form'!$DS362=\"\"),\"N\",IF(AND('Enrollment Form'!$C362=\"Enroll\",'Enrollment Form'!$B362=\"Subscriber\",'Enrollment Form'!$CQ362=\"Yes\"),\"-\",\"Y\")))))","v":""},{"$f":"IF($B355=\"N\",\"\",IF(AND('Enrollment Form'!$C362=\"ROC\",'Enrollment Form'!$DT362<>\"\"),\"Y\",IF(AND('Enrollment Form'!$C362=\"ROC\",'Enrollment Form'!$DT362=\"\"),\"N\",IF(AND('Enrollment Form'!$C362=\"Enroll\",'Enrollment Form'!$B362=\"Subscriber\",'Enrollment Form'!$CQ362=\"No\",'Enrollment Form'!$DT362=\"\"),\"N\",IF(AND('Enrollment Form'!$C362=\"Enroll\",'Enrollment Form'!$B362=\"Subscriber\",'Enrollment Form'!$CQ362=\"Yes\"),\"-\",\"Y\")))))","v":""},{"$f":"IF('Enrollment Form'!AH362=\"\",\"\",IF(ISERROR(SEARCH(\".\",'Enrollment Form'!AH362,SEARCH(\"@\",'Enrollment Form'!AH362))),\"N\",\"Y\"))","v":""},{"$f":"IF(OR($B355=\"N\",'Enrollment Form'!$G362=\"\"),\"\",IF('Enrollment Form'!$B362<>\"Subscriber\",\"-\",IF(COUNTIF('Enrollment Form'!$AS362:$AT362,\"Yes\")=2,\"N\",\"Y\")))","v":""},{"$f":"IF(OR('Enrollment Form'!$CC362=\"\",'Enrollment Form'!$CC362=\"No\"),\"-\",IF(AND('Enrollment Form'!$CC362=\"Yes\",'Enrollment Form'!$CD362=\"\"),\"N\",\"Y\"))","v":"-"},{"$f":"IF(OR('Enrollment Form'!$CE362=\"\",'Enrollment Form'!$CE362=\"No\"),\"-\",IF(AND('Enrollment Form'!$CE362=\"Yes\",'Enrollment Form'!$CF362=\"\"),\"N\",\"Y\"))","v":"-"},{"$f":"IF(OR('Enrollment Form'!$CG362=\"\",'Enrollment Form'!$CG362=\"No\"),\"-\",IF(AND('Enrollment Form'!$CG362=\"Yes\",'Enrollment Form'!$CH362=\"\"),\"N\",\"Y\"))","v":"-"},{"$f":"IF(OR('Enrollment Form'!$CG362=\"\",'Enrollment Form'!$CG362=\"No\"),\"-\",IF(AND('Enrollment Form'!$CG362=\"Yes\",'Enrollment Form'!$CI362=\"\"),\"N\",\"Y\"))","v":"-"},{"$f":"IF('Enrollment Form'!B362<>\"Subscriber\",\"-\",IF(AND('Enrollment Form'!B362=\"Subscriber\",'Enrollment Form'!C362=\"Enroll\",'Enrollment Form'!AA362=\"\"),\"N\",\"Y\"))","v":"-"},{"$f":"IF(OR('Enrollment Form'!B362=\"Subscriber\",'Enrollment Form'!B362=\"\"),\"-\",IF('Enrollment Form'!BI362=\"\",\"N\",\"Y\"))","v":"-"},{"$f":"IF('Enrollment Form'!B362<>\"Subscriber\",\"-\",IF(AND('Enrollment Form'!B362=\"Subscriber\",'Enrollment Form'!G362=\"\"),\"N\",\"Y\"))","v":"-"},{"$f":"IF('Enrollment Form'!A362=\"\",\"\",IF('Enrollment Form'!B362=\"Subscriber\",\"-\",IF(AND('Enrollment Form'!B362<>\"Subscriber\",'Enrollment Form'!G362='Enrollment Form'!H362),\"N\",\"Y\")))","v":""},0]
[363,{"$f":"IF('Enrollment Form'!$A363<>\"\",\"Y\",\"N\")","v":"N"},{"$f":"IF(AND('Enrollment Form'!$B363=\"\",'Enrollment Form'!$C363<>\"\"),\"N\",IF($B356=\"N\",\"\",\"Y\"))","v":""},{"$f":"IF(OR($B356=\"N\",'Enrollment Form'!G363=\"\"),\"\",IF('Enrollment Form'!$B363<>\"Subscriber\",\"\",IF('Enrollment Form'!$G363='Enrollment Form'!$H363,\"Y\",\"N\")))","v":""},{"$f":"IF($B356=\"N\",\"\",IF(AND(COUNTIFS('Enrollment Form'!$H$11:$H$1000,'Enrollment Form'!$H363,'Enrollment Form'!$B$11:$B$1000,'Enrollment Form'!$B363)>1,'Enrollment Form'!$H363<>\"\"),\"N\",\"Y\"))","v":""},{"$f":"IF($B356=\"N\",\"\",IF(LEN('Enrollment Form'!$Y363)=0,\"\",IF(LEN('Enrollment Form'!$Y363)<>5,\"N\",\"Y\")))","v":""},{"$f":"IF($B356=\"N\",\"\",IF(LEN('Enrollment Form'!$AD363=0),\"\",IF(LEN('Enrollment Form'!$AD363)<>5,\"N\",\"Y\")))","v":""},{"$f":"IF($B356=\"N\",\"\",IF(LEN('Enrollment Form'!$BL363=0),\"\",IF(LEN('Enrollment Form'!$BL363)<>5,\"N\",\"Y\")))","v":""},{"$f":"IF($B356=\"N\",\"\",IF(LEN('Enrollment Form'!$AE363)=0,\"\",IF(LEN('Enrollment Form'!$AE363)<>10,\"N\",\"Y\")))","v":""},{"$f":"IF($B356=\"N\",\"\",IF(LEN('Enrollment Form'!$AF363)=0,\"\",IF(LEN('Enrollment Form'!$AF363)<>10,\"N\",\"Y\")))","v":""},{"$f":"IF('Enrollment Form'!$O363<>\"Graded\",\"-\",IF(AND('Enrollment Form'!$O363=\"Graded\",'Enrollment Form'!$AO363<>\"\"),\"Y\",\"N\"))","v":"-"},{"$f":"IF($B356=\"N\",\"\",IF(OR('Enrollment Form'!$B363<>\"Subscriber\",'Enrollment Form'!$C363=\"ROC\"),\"-\",IF(AND('Enrollment Form'!$B363=\"Subscriber\",'Enrollment Form'!$C363=\"Enroll\",'Enrollment Form'!$AJ363<>\"\"),\"Y\",\"N\")))","v":""},{"$f":"IF($B356=\"N\",\"\",IF(OR('Enrollment Form'!$B363<>\"Subscriber\",'Enrollment Form'!$C363=\"ROC\"),\"-\",IF(AND('Enrollment Form'!$B363=\"Subscriber\",'Enrollment Form'!$C363=\"Enroll\",'Enrollment Form'!$AK363<>\"\"),\"Y\",\"N\")))","v":""},{"$f":"IF($B356=\"N\",\"\",IF(OR('Enrollment Form'!$B363<>\"Subscriber\",'Enrollment Form'!$C363=\"ROC\"),\"-\",IF(AND('Enrollment Form'!$B363=\"Subscriber\",'Enrollment Form'!$C363=\"Enroll\",'Enrollment Form'!$AL363<>\"\"),\"Y\",\"N\")))","v":""},{"$f":"IF($B356=\"N\",\"\",IF(OR('Enrollment Form'!$B363<>\"Subscriber\",'Enrollment Form'!$C363=\"ROC\"),\"-\",IF(AND('Enrollment Form'!$B363=\"Subscriber\",'Enrollment Form'!$C363=\"Enroll\",'Enrollment Form'!$AM363<>\"\"),\"Y\",\"N\")))","v":""},{"$f":"IF($B356=\"N\",\"\",IF(OR('Enrollment Form'!$B363<>\"Subscriber\",'Enrollment Form'!$C363=\"ROC\"),\"-\",IF(AND('Enrollment Form'!$B363=\"Subscriber\",'Enrollment Form'!$C363=\"Enroll\",'Enrollment Form'!$AN363<>\"\"),\"Y\",\"N\")))","v":""},{"$f":"IF($B356=\"N\",\"\",IF(OR('Enrollment Form'!$B363<>\"Subscriber\",'Enrollment Form'!$C363=\"ROC\"),\"-\",IF(AND('Enrollment Form'!$B363=\"Subscriber\",'Enrollment Form'!$C363=\"Enroll\",'Enrollment Form'!$AP363<>\"\"),\"Y\",\"N\")))","v":""},{"$f":"IF($B356=\"N\",\"\",IF($Q356=\"-\",\"-\",IF(AND($Q356=\"Y\",'Enrollment Form'!$AP363=\"No\"),\"-\",IF(AND($Q356=\"Y\",'Enrollment Form'!$AP363=\"Yes\",'Enrollment Form'!$AQ363<>\"\"),\"Y\",\"N\"))))","v":""},{"$f":"IF($B356=\"N\",\"\",IF(OR('Enrollment Form'!$B363<>\"Subscriber\",'Enrollment Form'!$C363=\"ROC\"),\"-\",IF(AND('Enrollment Form'!$B363=\"Subscriber\",'Enrollment Form'!$C363=\"Enroll\",'Enrollment Form'!$CO363<>\"\"),\"Y\",\"N\")))","v":""},{"$f":"IF($B356=\"N\",\"\",IF($S356=\"-\",\"-\",IF(AND($S356=\"Y\",'Enrollment Form'!$CO363=\"No\"),\"-\",IF(AND($S356=\"Y\",'Enrollment Form'!$CO363=\"Yes\",'Enrollment Form'!$CP363<>\"\"),\"Y\",\"N\"))))","v":""},{"$f":"IF(OR('Enrollment Form'!$AV363=\"Yes\",'Enrollment Form'!$AV363=\"\"),\"-\",IF(AND('Enrollment Form'!$AV363=\"No\",ISERROR(FIND(\"HMO\",VLOOKUP('Enrollment Form'!G363,'Enrollment Form'!H$11:J$1000,3,FALSE),1))=FALSE,COUNTA('Enrollment Form'!$AW363:$AZ363)=4),\"Y\",\"N\"))","v":"-"},{"$f":"IF($B356=\"N\",\"\",IF('Enrollment Form'!$B363=\"Subscriber\",\"-\",IF(COUNTA('Enrollment Form'!$BE363,'Enrollment Form'!$BG363)=2,\"Y\",\"N\")))","v":""},{"$f":"IF($B356=\"N\",\"\",IF(OR('Enrollment Form'!$AU363=\"\",'Enrollment Form'!$AU363=\"No\"),\"-\",IF(AND('Enrollment Form'!$AU363=\"Yes\",COUNTA('Enrollment Form'!$CK363)=1),\"Y\",\"N\")))","v":""},{"$f":"IF(OR('Enrollment Form'!$CK363=\"\",'Enrollment Form'!$CK363=\"No\"),\"-\",IF(COUNTA('Enrollment Form'!$CM363:$CN363)=2,\"Y\",\"N\"))","v":"-"},{"$f":"IF($B356=\"N\",\"\",IF(COUNTIF('Enrollment Form'!$CZ363:$DO363,\"Other\")=COUNTA('Enrollment Form'!$DF363,'Enrollment Form'!$DA363,'Enrollment Form'!$DK363,'Enrollment Form'!$DP363),\"Y\",\"N\"))","v":""},{"$f":"IF($B356=\"N\",\"\",IF(OR('Enrollment Form'!B363<>\"Subscriber\",'Enrollment Form'!C363=\"ROC\",COUNTIF('Enrollment Form'!AS363:AT363,\"Yes\")>=1),\"-\",IF(AND('Enrollment Form'!C363=\"Enroll\",COUNTIF('Enrollment Form'!AS363:AT363,\"No\")=2,'Enrollment Form'!AU363=\"\"),\"N\",\"Y\")))","v":""},{"$f":"IF(OR(B356=\"N\",'Enrollment Form'!B363<>\"Subscriber\",'Enrollment Form'!C363=\"ROC\",'Enrollment Form'!O363<>\"Multiple of Salary\"),\"-\",IF(COUNTA('Enrollment Form'!T363:U363)<2,\"N\",\"Y\"))","v":"-"},{"$f":"IF(B356=\"N\",\"\",IF(OR('Enrollment Form'!C363=\"ROC\",'Enrollment Form'!B363<>\"Subscriber\",'Enrollment Form'!O363=\"Waive\",'Enrollment Form'!O363=\"\"),\"-\",IF('Enrollment Form'!P363=\"\",\"N\",\"Y\")))","v":""},{"$f":"IF($B356=\"N\",\"\",IF(AND('Enrollment Form'!$C363=\"ROC\",'Enrollment Form'!$DS363<>\"\"),\"Y\",IF(AND('Enrollment Form'!$C363=\"ROC\",'Enrollment Form'!$DS363=\"\"),\"N\",IF(AND('Enrollment Form'!$C363=\"Enroll\",'Enrollment Form'!$B363=\"Subscriber\",'Enrollment Form'!$CQ363=\"No\",'Enrollment Form'!$DS363=\"\"),\"N\",IF(AND('Enrollment Form'!$C363=\"Enroll\",'Enrollment Form'!$B363=\"Subscriber\",'Enrollment Form'!$CQ363=\"Yes\"),\"-\",\"Y\")))))","v":""},{"$f":"IF($B356=\"N\",\"\",IF(AND('Enrollment Form'!$C363=\"ROC\",'Enrollment Form'!$DT363<>\"\"),\"Y\",IF(AND('Enrollment Form'!$C363=\"ROC\",'Enrollment Form'!$DT363=\"\"),\"N\",IF(AND('Enrollment Form'!$C363=\"Enroll\",'Enrollment Form'!$B363=\"Subscriber\",'Enrollment Form'!$CQ363=\"No\",'Enrollment Form'!$DT363=\"\"),\"N\",IF(AND('Enrollment Form'!$C363=\"Enroll\",'Enrollment Form'!$B363=\"Subscriber\",'Enrollment Form'!$CQ363=\"Yes\"),\"-\",\"Y\")))))","v":""},{"$f":"IF('Enrollment Form'!AH363=\"\",\"\",IF(ISERROR(SEARCH(\".\",'Enrollment Form'!AH363,SEARCH(\"@\",'Enrollment Form'!AH363))),\"N\",\"Y\"))","v":""},{"$f":"IF(OR($B356=\"N\",'Enrollment Form'!$G363=\"\"),\"\",IF('Enrollment Form'!$B363<>\"Subscriber\",\"-\",IF(COUNTIF('Enrollment Form'!$AS363:$AT363,\"Yes\")=2,\"N\",\"Y\")))","v":""},{"$f":"IF(OR('Enrollment Form'!$CC363=\"\",'Enrollment Form'!$CC363=\"No\"),\"-\",IF(AND('Enrollment Form'!$CC363=\"Yes\",'Enrollment Form'!$CD363=\"\"),\"N\",\"Y\"))","v":"-"},{"$f":"IF(OR('Enrollment Form'!$CE363=\"\",'Enrollment Form'!$CE363=\"No\"),\"-\",IF(AND('Enrollment Form'!$CE363=\"Yes\",'Enrollment Form'!$CF363=\"\"),\"N\",\"Y\"))","v":"-"},{"$f":"IF(OR('Enrollment Form'!$CG363=\"\",'Enrollment Form'!$CG363=\"No\"),\"-\",IF(AND('Enrollment Form'!$CG363=\"Yes\",'Enrollment Form'!$CH363=\"\"),\"N\",\"Y\"))","v":"-"},{"$f":"IF(OR('Enrollment Form'!$CG363=\"\",'Enrollment Form'!$CG363=\"No\"),\"-\",IF(AND('Enrollment Form'!$CG363=\"Yes\",'Enrollment Form'!$CI363=\"\"),\"N\",\"Y\"))","v":"-"},{"$f":"IF('Enrollment Form'!B363<>\"Subscriber\",\"-\",IF(AND('Enrollment Form'!B363=\"Subscriber\",'Enrollment Form'!C363=\"Enroll\",'Enrollment Form'!AA363=\"\"),\"N\",\"Y\"))","v":"-"},{"$f":"IF(OR('Enrollment Form'!B363=\"Subscriber\",'Enrollment Form'!B363=\"\"),\"-\",IF('Enrollment Form'!BI363=\"\",\"N\",\"Y\"))","v":"-"},{"$f":"IF('Enrollment Form'!B363<>\"Subscriber\",\"-\",IF(AND('Enrollment Form'!B363=\"Subscriber\",'Enrollment Form'!G363=\"\"),\"N\",\"Y\"))","v":"-"},{"$f":"IF('Enrollment Form'!A363=\"\",\"\",IF('Enrollment Form'!B363=\"Subscriber\",\"-\",IF(AND('Enrollment Form'!B363<>\"Subscriber\",'Enrollment Form'!G363='Enrollment Form'!H363),\"N\",\"Y\")))","v":""},0]
[364,{"$f":"IF('Enrollment Form'!$A364<>\"\",\"Y\",\"N\")","v":"N"},{"$f":"IF(AND('Enrollment Form'!$B364=\"\",'Enrollment Form'!$C364<>\"\"),\"N\",IF($B357=\"N\",\"\",\"Y\"))","v":""},{"$f":"IF(OR($B357=\"N\",'Enrollment Form'!G364=\"\"),\"\",IF('Enrollment Form'!$B364<>\"Subscriber\",\"\",IF('Enrollment Form'!$G364='Enrollment Form'!$H364,\"Y\",\"N\")))","v":""},{"$f":"IF($B357=\"N\",\"\",IF(AND(COUNTIFS('Enrollment Form'!$H$11:$H$1000,'Enrollment Form'!$H364,'Enrollment Form'!$B$11:$B$1000,'Enrollment Form'!$B364)>1,'Enrollment Form'!$H364<>\"\"),\"N\",\"Y\"))","v":""},{"$f":"IF($B357=\"N\",\"\",IF(LEN('Enrollment Form'!$Y364)=0,\"\",IF(LEN('Enrollment Form'!$Y364)<>5,\"N\",\"Y\")))","v":""},{"$f":"IF($B357=\"N\",\"\",IF(LEN('Enrollment Form'!$AD364=0),\"\",IF(LEN('Enrollment Form'!$AD364)<>5,\"N\",\"Y\")))","v":""},{"$f":"IF($B357=\"N\",\"\",IF(LEN('Enrollment Form'!$BL364=0),\"\",IF(LEN('Enrollment Form'!$BL364)<>5,\"N\",\"Y\")))","v":""},{"$f":"IF($B357=\"N\",\"\",IF(LEN('Enrollment Form'!$AE364)=0,\"\",IF(LEN('Enrollment Form'!$AE364)<>10,\"N\",\"Y\")))","v":""},{"$f":"IF($B357=\"N\",\"\",IF(LEN('Enrollment Form'!$AF364)=0,\"\",IF(LEN('Enrollment Form'!$AF364)<>10,\"N\",\"Y\")))","v":""},{"$f":"IF('Enrollment Form'!$O364<>\"Graded\",\"-\",IF(AND('Enrollment Form'!$O364=\"Graded\",'Enrollment Form'!$AO364<>\"\"),\"Y\",\"N\"))","v":"-"},{"$f":"IF($B357=\"N\",\"\",IF(OR('Enrollment Form'!$B364<>\"Subscriber\",'Enrollment Form'!$C364=\"ROC\"),\"-\",IF(AND('Enrollment Form'!$B364=\"Subscriber\",'Enrollment Form'!$C364=\"Enroll\",'Enrollment Form'!$AJ364<>\"\"),\"Y\",\"N\")))","v":""},{"$f":"IF($B357=\"N\",\"\",IF(OR('Enrollment Form'!$B364<>\"Subscriber\",'Enrollment Form'!$C364=\"ROC\"),\"-\",IF(AND('Enrollment Form'!$B364=\"Subscriber\",'Enrollment Form'!$C364=\"Enroll\",'Enrollment Form'!$AK364<>\"\"),\"Y\",\"N\")))","v":""},{"$f":"IF($B357=\"N\",\"\",IF(OR('Enrollment Form'!$B364<>\"Subscriber\",'Enrollment Form'!$C364=\"ROC\"),\"-\",IF(AND('Enrollment Form'!$B364=\"Subscriber\",'Enrollment Form'!$C364=\"Enroll\",'Enrollment Form'!$AL364<>\"\"),\"Y\",\"N\")))","v":""},{"$f":"IF($B357=\"N\",\"\",IF(OR('Enrollment Form'!$B364<>\"Subscriber\",'Enrollment Form'!$C364=\"ROC\"),\"-\",IF(AND('Enrollment Form'!$B364=\"Subscriber\",'Enrollment Form'!$C364=\"Enroll\",'Enrollment Form'!$AM364<>\"\"),\"Y\",\"N\")))","v":""},{"$f":"IF($B357=\"N\",\"\",IF(OR('Enrollment Form'!$B364<>\"Subscriber\",'Enrollment Form'!$C364=\"ROC\"),\"-\",IF(AND('Enrollment Form'!$B364=\"Subscriber\",'Enrollment Form'!$C364=\"Enroll\",'Enrollment Form'!$AN364<>\"\"),\"Y\",\"N\")))","v":""},{"$f":"IF($B357=\"N\",\"\",IF(OR('Enrollment Form'!$B364<>\"Subscriber\",'Enrollment Form'!$C364=\"ROC\"),\"-\",IF(AND('Enrollment Form'!$B364=\"Subscriber\",'Enrollment Form'!$C364=\"Enroll\",'Enrollment Form'!$AP364<>\"\"),\"Y\",\"N\")))","v":""},{"$f":"IF($B357=\"N\",\"\",IF($Q357=\"-\",\"-\",IF(AND($Q357=\"Y\",'Enrollment Form'!$AP364=\"No\"),\"-\",IF(AND($Q357=\"Y\",'Enrollment Form'!$AP364=\"Yes\",'Enrollment Form'!$AQ364<>\"\"),\"Y\",\"N\"))))","v":""},{"$f":"IF($B357=\"N\",\"\",IF(OR('Enrollment Form'!$B364<>\"Subscriber\",'Enrollment Form'!$C364=\"ROC\"),\"-\",IF(AND('Enrollment Form'!$B364=\"Subscriber\",'Enrollment Form'!$C364=\"Enroll\",'Enrollment Form'!$CO364<>\"\"),\"Y\",\"N\")))","v":""},{"$f":"IF($B357=\"N\",\"\",IF($S357=\"-\",\"-\",IF(AND($S357=\"Y\",'Enrollment Form'!$CO364=\"No\"),\"-\",IF(AND($S357=\"Y\",'Enrollment Form'!$CO364=\"Yes\",'Enrollment Form'!$CP364<>\"\"),\"Y\",\"N\"))))","v":""},{"$f":"IF(OR('Enrollment Form'!$AV364=\"Yes\",'Enrollment Form'!$AV364=\"\"),\"-\",IF(AND('Enrollment Form'!$AV364=\"No\",ISERROR(FIND(\"HMO\",VLOOKUP('Enrollment Form'!G364,'Enrollment Form'!H$11:J$1000,3,FALSE),1))=FALSE,COUNTA('Enrollment Form'!$AW364:$AZ364)=4),\"Y\",\"N\"))","v":"-"},{"$f":"IF($B357=\"N\",\"\",IF('Enrollment Form'!$B364=\"Subscriber\",\"-\",IF(COUNTA('Enrollment Form'!$BE364,'Enrollment Form'!$BG364)=2,\"Y\",\"N\")))","v":""},{"$f":"IF($B357=\"N\",\"\",IF(OR('Enrollment Form'!$AU364=\"\",'Enrollment Form'!$AU364=\"No\"),\"-\",IF(AND('Enrollment Form'!$AU364=\"Yes\",COUNTA('Enrollment Form'!$CK364)=1),\"Y\",\"N\")))","v":""},{"$f":"IF(OR('Enrollment Form'!$CK364=\"\",'Enrollment Form'!$CK364=\"No\"),\"-\",IF(COUNTA('Enrollment Form'!$CM364:$CN364)=2,\"Y\",\"N\"))","v":"-"},{"$f":"IF($B357=\"N\",\"\",IF(COUNTIF('Enrollment Form'!$CZ364:$DO364,\"Other\")=COUNTA('Enrollment Form'!$DF364,'Enrollment Form'!$DA364,'Enrollment Form'!$DK364,'Enrollment Form'!$DP364),\"Y\",\"N\"))","v":""},{"$f":"IF($B357=\"N\",\"\",IF(OR('Enrollment Form'!B364<>\"Subscriber\",'Enrollment Form'!C364=\"ROC\",COUNTIF('Enrollment Form'!AS364:AT364,\"Yes\")>=1),\"-\",IF(AND('Enrollment Form'!C364=\"Enroll\",COUNTIF('Enrollment Form'!AS364:AT364,\"No\")=2,'Enrollment Form'!AU364=\"\"),\"N\",\"Y\")))","v":""},{"$f":"IF(OR(B357=\"N\",'Enrollment Form'!B364<>\"Subscriber\",'Enrollment Form'!C364=\"ROC\",'Enrollment Form'!O364<>\"Multiple of Salary\"),\"-\",IF(COUNTA('Enrollment Form'!T364:U364)<2,\"N\",\"Y\"))","v":"-"},{"$f":"IF(B357=\"N\",\"\",IF(OR('Enrollment Form'!C364=\"ROC\",'Enrollment Form'!B364<>\"Subscriber\",'Enrollment Form'!O364=\"Waive\",'Enrollment Form'!O364=\"\"),\"-\",IF('Enrollment Form'!P364=\"\",\"N\",\"Y\")))","v":""},{"$f":"IF($B357=\"N\",\"\",IF(AND('Enrollment Form'!$C364=\"ROC\",'Enrollment Form'!$DS364<>\"\"),\"Y\",IF(AND('Enrollment Form'!$C364=\"ROC\",'Enrollment Form'!$DS364=\"\"),\"N\",IF(AND('Enrollment Form'!$C364=\"Enroll\",'Enrollment Form'!$B364=\"Subscriber\",'Enrollment Form'!$CQ364=\"No\",'Enrollment Form'!$DS364=\"\"),\"N\",IF(AND('Enrollment Form'!$C364=\"Enroll\",'Enrollment Form'!$B364=\"Subscriber\",'Enrollment Form'!$CQ364=\"Yes\"),\"-\",\"Y\")))))","v":""},{"$f":"IF($B357=\"N\",\"\",IF(AND('Enrollment Form'!$C364=\"ROC\",'Enrollment Form'!$DT364<>\"\"),\"Y\",IF(AND('Enrollment Form'!$C364=\"ROC\",'Enrollment Form'!$DT364=\"\"),\"N\",IF(AND('Enrollment Form'!$C364=\"Enroll\",'Enrollment Form'!$B364=\"Subscriber\",'Enrollment Form'!$CQ364=\"No\",'Enrollment Form'!$DT364=\"\"),\"N\",IF(AND('Enrollment Form'!$C364=\"Enroll\",'Enrollment Form'!$B364=\"Subscriber\",'Enrollment Form'!$CQ364=\"Yes\"),\"-\",\"Y\")))))","v":""},{"$f":"IF('Enrollment Form'!AH364=\"\",\"\",IF(ISERROR(SEARCH(\".\",'Enrollment Form'!AH364,SEARCH(\"@\",'Enrollment Form'!AH364))),\"N\",\"Y\"))","v":""},{"$f":"IF(OR($B357=\"N\",'Enrollment Form'!$G364=\"\"),\"\",IF('Enrollment Form'!$B364<>\"Subscriber\",\"-\",IF(COUNTIF('Enrollment Form'!$AS364:$AT364,\"Yes\")=2,\"N\",\"Y\")))","v":""},{"$f":"IF(OR('Enrollment Form'!$CC364=\"\",'Enrollment Form'!$CC364=\"No\"),\"-\",IF(AND('Enrollment Form'!$CC364=\"Yes\",'Enrollment Form'!$CD364=\"\"),\"N\",\"Y\"))","v":"-"},{"$f":"IF(OR('Enrollment Form'!$CE364=\"\",'Enrollment Form'!$CE364=\"No\"),\"-\",IF(AND('Enrollment Form'!$CE364=\"Yes\",'Enrollment Form'!$CF364=\"\"),\"N\",\"Y\"))","v":"-"},{"$f":"IF(OR('Enrollment Form'!$CG364=\"\",'Enrollment Form'!$CG364=\"No\"),\"-\",IF(AND('Enrollment Form'!$CG364=\"Yes\",'Enrollment Form'!$CH364=\"\"),\"N\",\"Y\"))","v":"-"},{"$f":"IF(OR('Enrollment Form'!$CG364=\"\",'Enrollment Form'!$CG364=\"No\"),\"-\",IF(AND('Enrollment Form'!$CG364=\"Yes\",'Enrollment Form'!$CI364=\"\"),\"N\",\"Y\"))","v":"-"},{"$f":"IF('Enrollment Form'!B364<>\"Subscriber\",\"-\",IF(AND('Enrollment Form'!B364=\"Subscriber\",'Enrollment Form'!C364=\"Enroll\",'Enrollment Form'!AA364=\"\"),\"N\",\"Y\"))","v":"-"},{"$f":"IF(OR('Enrollment Form'!B364=\"Subscriber\",'Enrollment Form'!B364=\"\"),\"-\",IF('Enrollment Form'!BI364=\"\",\"N\",\"Y\"))","v":"-"},{"$f":"IF('Enrollment Form'!B364<>\"Subscriber\",\"-\",IF(AND('Enrollment Form'!B364=\"Subscriber\",'Enrollment Form'!G364=\"\"),\"N\",\"Y\"))","v":"-"},{"$f":"IF('Enrollment Form'!A364=\"\",\"\",IF('Enrollment Form'!B364=\"Subscriber\",\"-\",IF(AND('Enrollment Form'!B364<>\"Subscriber\",'Enrollment Form'!G364='Enrollment Form'!H364),\"N\",\"Y\")))","v":""},0]
[365,{"$f":"IF('Enrollment Form'!$A365<>\"\",\"Y\",\"N\")","v":"N"},{"$f":"IF(AND('Enrollment Form'!$B365=\"\",'Enrollment Form'!$C365<>\"\"),\"N\",IF($B358=\"N\",\"\",\"Y\"))","v":""},{"$f":"IF(OR($B358=\"N\",'Enrollment Form'!G365=\"\"),\"\",IF('Enrollment Form'!$B365<>\"Subscriber\",\"\",IF('Enrollment Form'!$G365='Enrollment Form'!$H365,\"Y\",\"N\")))","v":""},{"$f":"IF($B358=\"N\",\"\",IF(AND(COUNTIFS('Enrollment Form'!$H$11:$H$1000,'Enrollment Form'!$H365,'Enrollment Form'!$B$11:$B$1000,'Enrollment Form'!$B365)>1,'Enrollment Form'!$H365<>\"\"),\"N\",\"Y\"))","v":""},{"$f":"IF($B358=\"N\",\"\",IF(LEN('Enrollment Form'!$Y365)=0,\"\",IF(LEN('Enrollment Form'!$Y365)<>5,\"N\",\"Y\")))","v":""},{"$f":"IF($B358=\"N\",\"\",IF(LEN('Enrollment Form'!$AD365=0),\"\",IF(LEN('Enrollment Form'!$AD365)<>5,\"N\",\"Y\")))","v":""},{"$f":"IF($B358=\"N\",\"\",IF(LEN('Enrollment Form'!$BL365=0),\"\",IF(LEN('Enrollment Form'!$BL365)<>5,\"N\",\"Y\")))","v":""},{"$f":"IF($B358=\"N\",\"\",IF(LEN('Enrollment Form'!$AE365)=0,\"\",IF(LEN('Enrollment Form'!$AE365)<>10,\"N\",\"Y\")))","v":""},{"$f":"IF($B358=\"N\",\"\",IF(LEN('Enrollment Form'!$AF365)=0,\"\",IF(LEN('Enrollment Form'!$AF365)<>10,\"N\",\"Y\")))","v":""},{"$f":"IF('Enrollment Form'!$O365<>\"Graded\",\"-\",IF(AND('Enrollment Form'!$O365=\"Graded\",'Enrollment Form'!$AO365<>\"\"),\"Y\",\"N\"))","v":"-"},{"$f":"IF($B358=\"N\",\"\",IF(OR('Enrollment Form'!$B365<>\"Subscriber\",'Enrollment Form'!$C365=\"ROC\"),\"-\",IF(AND('Enrollment Form'!$B365=\"Subscriber\",'Enrollment Form'!$C365=\"Enroll\",'Enrollment Form'!$AJ365<>\"\"),\"Y\",\"N\")))","v":""},{"$f":"IF($B358=\"N\",\"\",IF(OR('Enrollment Form'!$B365<>\"Subscriber\",'Enrollment Form'!$C365=\"ROC\"),\"-\",IF(AND('Enrollment Form'!$B365=\"Subscriber\",'Enrollment Form'!$C365=\"Enroll\",'Enrollment Form'!$AK365<>\"\"),\"Y\",\"N\")))","v":""},{"$f":"IF($B358=\"N\",\"\",IF(OR('Enrollment Form'!$B365<>\"Subscriber\",'Enrollment Form'!$C365=\"ROC\"),\"-\",IF(AND('Enrollment Form'!$B365=\"Subscriber\",'Enrollment Form'!$C365=\"Enroll\",'Enrollment Form'!$AL365<>\"\"),\"Y\",\"N\")))","v":""},{"$f":"IF($B358=\"N\",\"\",IF(OR('Enrollment Form'!$B365<>\"Subscriber\",'Enrollment Form'!$C365=\"ROC\"),\"-\",IF(AND('Enrollment Form'!$B365=\"Subscriber\",'Enrollment Form'!$C365=\"Enroll\",'Enrollment Form'!$AM365<>\"\"),\"Y\",\"N\")))","v":""},{"$f":"IF($B358=\"N\",\"\",IF(OR('Enrollment Form'!$B365<>\"Subscriber\",'Enrollment Form'!$C365=\"ROC\"),\"-\",IF(AND('Enrollment Form'!$B365=\"Subscriber\",'Enrollment Form'!$C365=\"Enroll\",'Enrollment Form'!$AN365<>\"\"),\"Y\",\"N\")))","v":""},{"$f":"IF($B358=\"N\",\"\",IF(OR('Enrollment Form'!$B365<>\"Subscriber\",'Enrollment Form'!$C365=\"ROC\"),\"-\",IF(AND('Enrollment Form'!$B365=\"Subscriber\",'Enrollment Form'!$C365=\"Enroll\",'Enrollment Form'!$AP365<>\"\"),\"Y\",\"N\")))","v":""},{"$f":"IF($B358=\"N\",\"\",IF($Q358=\"-\",\"-\",IF(AND($Q358=\"Y\",'Enrollment Form'!$AP365=\"No\"),\"-\",IF(AND($Q358=\"Y\",'Enrollment Form'!$AP365=\"Yes\",'Enrollment Form'!$AQ365<>\"\"),\"Y\",\"N\"))))","v":""},{"$f":"IF($B358=\"N\",\"\",IF(OR('Enrollment Form'!$B365<>\"Subscriber\",'Enrollment Form'!$C365=\"ROC\"),\"-\",IF(AND('Enrollment Form'!$B365=\"Subscriber\",'Enrollment Form'!$C365=\"Enroll\",'Enrollment Form'!$CO365<>\"\"),\"Y\",\"N\")))","v":""},{"$f":"IF($B358=\"N\",\"\",IF($S358=\"-\",\"-\",IF(AND($S358=\"Y\",'Enrollment Form'!$CO365=\"No\"),\"-\",IF(AND($S358=\"Y\",'Enrollment Form'!$CO365=\"Yes\",'Enrollment Form'!$CP365<>\"\"),\"Y\",\"N\"))))","v":""},{"$f":"IF(OR('Enrollment Form'!$AV365=\"Yes\",'Enrollment Form'!$AV365=\"\"),\"-\",IF(AND('Enrollment Form'!$AV365=\"No\",ISERROR(FIND(\"HMO\",VLOOKUP('Enrollment Form'!G365,'Enrollment Form'!H$11:J$1000,3,FALSE),1))=FALSE,COUNTA('Enrollment Form'!$AW365:$AZ365)=4),\"Y\",\"N\"))","v":"-"},{"$f":"IF($B358=\"N\",\"\",IF('Enrollment Form'!$B365=\"Subscriber\",\"-\",IF(COUNTA('Enrollment Form'!$BE365,'Enrollment Form'!$BG365)=2,\"Y\",\"N\")))","v":""},{"$f":"IF($B358=\"N\",\"\",IF(OR('Enrollment Form'!$AU365=\"\",'Enrollment Form'!$AU365=\"No\"),\"-\",IF(AND('Enrollment Form'!$AU365=\"Yes\",COUNTA('Enrollment Form'!$CK365)=1),\"Y\",\"N\")))","v":""},{"$f":"IF(OR('Enrollment Form'!$CK365=\"\",'Enrollment Form'!$CK365=\"No\"),\"-\",IF(COUNTA('Enrollment Form'!$CM365:$CN365)=2,\"Y\",\"N\"))","v":"-"},{"$f":"IF($B358=\"N\",\"\",IF(COUNTIF('Enrollment Form'!$CZ365:$DO365,\"Other\")=COUNTA('Enrollment Form'!$DF365,'Enrollment Form'!$DA365,'Enrollment Form'!$DK365,'Enrollment Form'!$DP365),\"Y\",\"N\"))","v":""},{"$f":"IF($B358=\"N\",\"\",IF(OR('Enrollment Form'!B365<>\"Subscriber\",'Enrollment Form'!C365=\"ROC\",COUNTIF('Enrollment Form'!AS365:AT365,\"Yes\")>=1),\"-\",IF(AND('Enrollment Form'!C365=\"Enroll\",COUNTIF('Enrollment Form'!AS365:AT365,\"No\")=2,'Enrollment Form'!AU365=\"\"),\"N\",\"Y\")))","v":""},{"$f":"IF(OR(B358=\"N\",'Enrollment Form'!B365<>\"Subscriber\",'Enrollment Form'!C365=\"ROC\",'Enrollment Form'!O365<>\"Multiple of Salary\"),\"-\",IF(COUNTA('Enrollment Form'!T365:U365)<2,\"N\",\"Y\"))","v":"-"},{"$f":"IF(B358=\"N\",\"\",IF(OR('Enrollment Form'!C365=\"ROC\",'Enrollment Form'!B365<>\"Subscriber\",'Enrollment Form'!O365=\"Waive\",'Enrollment Form'!O365=\"\"),\"-\",IF('Enrollment Form'!P365=\"\",\"N\",\"Y\")))","v":""},{"$f":"IF($B358=\"N\",\"\",IF(AND('Enrollment Form'!$C365=\"ROC\",'Enrollment Form'!$DS365<>\"\"),\"Y\",IF(AND('Enrollment Form'!$C365=\"ROC\",'Enrollment Form'!$DS365=\"\"),\"N\",IF(AND('Enrollment Form'!$C365=\"Enroll\",'Enrollment Form'!$B365=\"Subscriber\",'Enrollment Form'!$CQ365=\"No\",'Enrollment Form'!$DS365=\"\"),\"N\",IF(AND('Enrollment Form'!$C365=\"Enroll\",'Enrollment Form'!$B365=\"Subscriber\",'Enrollment Form'!$CQ365=\"Yes\"),\"-\",\"Y\")))))","v":""},{"$f":"IF($B358=\"N\",\"\",IF(AND('Enrollment Form'!$C365=\"ROC\",'Enrollment Form'!$DT365<>\"\"),\"Y\",IF(AND('Enrollment Form'!$C365=\"ROC\",'Enrollment Form'!$DT365=\"\"),\"N\",IF(AND('Enrollment Form'!$C365=\"Enroll\",'Enrollment Form'!$B365=\"Subscriber\",'Enrollment Form'!$CQ365=\"No\",'Enrollment Form'!$DT365=\"\"),\"N\",IF(AND('Enrollment Form'!$C365=\"Enroll\",'Enrollment Form'!$B365=\"Subscriber\",'Enrollment Form'!$CQ365=\"Yes\"),\"-\",\"Y\")))))","v":""},{"$f":"IF('Enrollment Form'!AH365=\"\",\"\",IF(ISERROR(SEARCH(\".\",'Enrollment Form'!AH365,SEARCH(\"@\",'Enrollment Form'!AH365))),\"N\",\"Y\"))","v":""},{"$f":"IF(OR($B358=\"N\",'Enrollment Form'!$G365=\"\"),\"\",IF('Enrollment Form'!$B365<>\"Subscriber\",\"-\",IF(COUNTIF('Enrollment Form'!$AS365:$AT365,\"Yes\")=2,\"N\",\"Y\")))","v":""},{"$f":"IF(OR('Enrollment Form'!$CC365=\"\",'Enrollment Form'!$CC365=\"No\"),\"-\",IF(AND('Enrollment Form'!$CC365=\"Yes\",'Enrollment Form'!$CD365=\"\"),\"N\",\"Y\"))","v":"-"},{"$f":"IF(OR('Enrollment Form'!$CE365=\"\",'Enrollment Form'!$CE365=\"No\"),\"-\",IF(AND('Enrollment Form'!$CE365=\"Yes\",'Enrollment Form'!$CF365=\"\"),\"N\",\"Y\"))","v":"-"},{"$f":"IF(OR('Enrollment Form'!$CG365=\"\",'Enrollment Form'!$CG365=\"No\"),\"-\",IF(AND('Enrollment Form'!$CG365=\"Yes\",'Enrollment Form'!$CH365=\"\"),\"N\",\"Y\"))","v":"-"},{"$f":"IF(OR('Enrollment Form'!$CG365=\"\",'Enrollment Form'!$CG365=\"No\"),\"-\",IF(AND('Enrollment Form'!$CG365=\"Yes\",'Enrollment Form'!$CI365=\"\"),\"N\",\"Y\"))","v":"-"},{"$f":"IF('Enrollment Form'!B365<>\"Subscriber\",\"-\",IF(AND('Enrollment Form'!B365=\"Subscriber\",'Enrollment Form'!C365=\"Enroll\",'Enrollment Form'!AA365=\"\"),\"N\",\"Y\"))","v":"-"},{"$f":"IF(OR('Enrollment Form'!B365=\"Subscriber\",'Enrollment Form'!B365=\"\"),\"-\",IF('Enrollment Form'!BI365=\"\",\"N\",\"Y\"))","v":"-"},{"$f":"IF('Enrollment Form'!B365<>\"Subscriber\",\"-\",IF(AND('Enrollment Form'!B365=\"Subscriber\",'Enrollment Form'!G365=\"\"),\"N\",\"Y\"))","v":"-"},{"$f":"IF('Enrollment Form'!A365=\"\",\"\",IF('Enrollment Form'!B365=\"Subscriber\",\"-\",IF(AND('Enrollment Form'!B365<>\"Subscriber\",'Enrollment Form'!G365='Enrollment Form'!H365),\"N\",\"Y\")))","v":""},0]
[366,{"$f":"IF('Enrollment Form'!$A366<>\"\",\"Y\",\"N\")","v":"N"},{"$f":"IF(AND('Enrollment Form'!$B366=\"\",'Enrollment Form'!$C366<>\"\"),\"N\",IF($B359=\"N\",\"\",\"Y\"))","v":""},{"$f":"IF(OR($B359=\"N\",'Enrollment Form'!G366=\"\"),\"\",IF('Enrollment Form'!$B366<>\"Subscriber\",\"\",IF('Enrollment Form'!$G366='Enrollment Form'!$H366,\"Y\",\"N\")))","v":""},{"$f":"IF($B359=\"N\",\"\",IF(AND(COUNTIFS('Enrollment Form'!$H$11:$H$1000,'Enrollment Form'!$H366,'Enrollment Form'!$B$11:$B$1000,'Enrollment Form'!$B366)>1,'Enrollment Form'!$H366<>\"\"),\"N\",\"Y\"))","v":""},{"$f":"IF($B359=\"N\",\"\",IF(LEN('Enrollment Form'!$Y366)=0,\"\",IF(LEN('Enrollment Form'!$Y366)<>5,\"N\",\"Y\")))","v":""},{"$f":"IF($B359=\"N\",\"\",IF(LEN('Enrollment Form'!$AD366=0),\"\",IF(LEN('Enrollment Form'!$AD366)<>5,\"N\",\"Y\")))","v":""},{"$f":"IF($B359=\"N\",\"\",IF(LEN('Enrollment Form'!$BL366=0),\"\",IF(LEN('Enrollment Form'!$BL366)<>5,\"N\",\"Y\")))","v":""},{"$f":"IF($B359=\"N\",\"\",IF(LEN('Enrollment Form'!$AE366)=0,\"\",IF(LEN('Enrollment Form'!$AE366)<>10,\"N\",\"Y\")))","v":""},{"$f":"IF($B359=\"N\",\"\",IF(LEN('Enrollment Form'!$AF366)=0,\"\",IF(LEN('Enrollment Form'!$AF366)<>10,\"N\",\"Y\")))","v":""},{"$f":"IF('Enrollment Form'!$O366<>\"Graded\",\"-\",IF(AND('Enrollment Form'!$O366=\"Graded\",'Enrollment Form'!$AO366<>\"\"),\"Y\",\"N\"))","v":"-"},{"$f":"IF($B359=\"N\",\"\",IF(OR('Enrollment Form'!$B366<>\"Subscriber\",'Enrollment Form'!$C366=\"ROC\"),\"-\",IF(AND('Enrollment Form'!$B366=\"Subscriber\",'Enrollment Form'!$C366=\"Enroll\",'Enrollment Form'!$AJ366<>\"\"),\"Y\",\"N\")))","v":""},{"$f":"IF($B359=\"N\",\"\",IF(OR('Enrollment Form'!$B366<>\"Subscriber\",'Enrollment Form'!$C366=\"ROC\"),\"-\",IF(AND('Enrollment Form'!$B366=\"Subscriber\",'Enrollment Form'!$C366=\"Enroll\",'Enrollment Form'!$AK366<>\"\"),\"Y\",\"N\")))","v":""},{"$f":"IF($B359=\"N\",\"\",IF(OR('Enrollment Form'!$B366<>\"Subscriber\",'Enrollment Form'!$C366=\"ROC\"),\"-\",IF(AND('Enrollment Form'!$B366=\"Subscriber\",'Enrollment Form'!$C366=\"Enroll\",'Enrollment Form'!$AL366<>\"\"),\"Y\",\"N\")))","v":""},{"$f":"IF($B359=\"N\",\"\",IF(OR('Enrollment Form'!$B366<>\"Subscriber\",'Enrollment Form'!$C366=\"ROC\"),\"-\",IF(AND('Enrollment Form'!$B366=\"Subscriber\",'Enrollment Form'!$C366=\"Enroll\",'Enrollment Form'!$AM366<>\"\"),\"Y\",\"N\")))","v":""},{"$f":"IF($B359=\"N\",\"\",IF(OR('Enrollment Form'!$B366<>\"Subscriber\",'Enrollment Form'!$C366=\"ROC\"),\"-\",IF(AND('Enrollment Form'!$B366=\"Subscriber\",'Enrollment Form'!$C366=\"Enroll\",'Enrollment Form'!$AN366<>\"\"),\"Y\",\"N\")))","v":""},{"$f":"IF($B359=\"N\",\"\",IF(OR('Enrollment Form'!$B366<>\"Subscriber\",'Enrollment Form'!$C366=\"ROC\"),\"-\",IF(AND('Enrollment Form'!$B366=\"Subscriber\",'Enrollment Form'!$C366=\"Enroll\",'Enrollment Form'!$AP366<>\"\"),\"Y\",\"N\")))","v":""},{"$f":"IF($B359=\"N\",\"\",IF($Q359=\"-\",\"-\",IF(AND($Q359=\"Y\",'Enrollment Form'!$AP366=\"No\"),\"-\",IF(AND($Q359=\"Y\",'Enrollment Form'!$AP366=\"Yes\",'Enrollment Form'!$AQ366<>\"\"),\"Y\",\"N\"))))","v":""},{"$f":"IF($B359=\"N\",\"\",IF(OR('Enrollment Form'!$B366<>\"Subscriber\",'Enrollment Form'!$C366=\"ROC\"),\"-\",IF(AND('Enrollment Form'!$B366=\"Subscriber\",'Enrollment Form'!$C366=\"Enroll\",'Enrollment Form'!$CO366<>\"\"),\"Y\",\"N\")))","v":""},{"$f":"IF($B359=\"N\",\"\",IF($S359=\"-\",\"-\",IF(AND($S359=\"Y\",'Enrollment Form'!$CO366=\"No\"),\"-\",IF(AND($S359=\"Y\",'Enrollment Form'!$CO366=\"Yes\",'Enrollment Form'!$CP366<>\"\"),\"Y\",\"N\"))))","v":""},{"$f":"IF(OR('Enrollment Form'!$AV366=\"Yes\",'Enrollment Form'!$AV366=\"\"),\"-\",IF(AND('Enrollment Form'!$AV366=\"No\",ISERROR(FIND(\"HMO\",VLOOKUP('Enrollment Form'!G366,'Enrollment Form'!H$11:J$1000,3,FALSE),1))=FALSE,COUNTA('Enrollment Form'!$AW366:$AZ366)=4),\"Y\",\"N\"))","v":"-"},{"$f":"IF($B359=\"N\",\"\",IF('Enrollment Form'!$B366=\"Subscriber\",\"-\",IF(COUNTA('Enrollment Form'!$BE366,'Enrollment Form'!$BG366)=2,\"Y\",\"N\")))","v":""},{"$f":"IF($B359=\"N\",\"\",IF(OR('Enrollment Form'!$AU366=\"\",'Enrollment Form'!$AU366=\"No\"),\"-\",IF(AND('Enrollment Form'!$AU366=\"Yes\",COUNTA('Enrollment Form'!$CK366)=1),\"Y\",\"N\")))","v":""},{"$f":"IF(OR('Enrollment Form'!$CK366=\"\",'Enrollment Form'!$CK366=\"No\"),\"-\",IF(COUNTA('Enrollment Form'!$CM366:$CN366)=2,\"Y\",\"N\"))","v":"-"},{"$f":"IF($B359=\"N\",\"\",IF(COUNTIF('Enrollment Form'!$CZ366:$DO366,\"Other\")=COUNTA('Enrollment Form'!$DF366,'Enrollment Form'!$DA366,'Enrollment Form'!$DK366,'Enrollment Form'!$DP366),\"Y\",\"N\"))","v":""},{"$f":"IF($B359=\"N\",\"\",IF(OR('Enrollment Form'!B366<>\"Subscriber\",'Enrollment Form'!C366=\"ROC\",COUNTIF('Enrollment Form'!AS366:AT366,\"Yes\")>=1),\"-\",IF(AND('Enrollment Form'!C366=\"Enroll\",COUNTIF('Enrollment Form'!AS366:AT366,\"No\")=2,'Enrollment Form'!AU366=\"\"),\"N\",\"Y\")))","v":""},{"$f":"IF(OR(B359=\"N\",'Enrollment Form'!B366<>\"Subscriber\",'Enrollment Form'!C366=\"ROC\",'Enrollment Form'!O366<>\"Multiple of Salary\"),\"-\",IF(COUNTA('Enrollment Form'!T366:U366)<2,\"N\",\"Y\"))","v":"-"},{"$f":"IF(B359=\"N\",\"\",IF(OR('Enrollment Form'!C366=\"ROC\",'Enrollment Form'!B366<>\"Subscriber\",'Enrollment Form'!O366=\"Waive\",'Enrollment Form'!O366=\"\"),\"-\",IF('Enrollment Form'!P366=\"\",\"N\",\"Y\")))","v":""},{"$f":"IF($B359=\"N\",\"\",IF(AND('Enrollment Form'!$C366=\"ROC\",'Enrollment Form'!$DS366<>\"\"),\"Y\",IF(AND('Enrollment Form'!$C366=\"ROC\",'Enrollment Form'!$DS366=\"\"),\"N\",IF(AND('Enrollment Form'!$C366=\"Enroll\",'Enrollment Form'!$B366=\"Subscriber\",'Enrollment Form'!$CQ366=\"No\",'Enrollment Form'!$DS366=\"\"),\"N\",IF(AND('Enrollment Form'!$C366=\"Enroll\",'Enrollment Form'!$B366=\"Subscriber\",'Enrollment Form'!$CQ366=\"Yes\"),\"-\",\"Y\")))))","v":""},{"$f":"IF($B359=\"N\",\"\",IF(AND('Enrollment Form'!$C366=\"ROC\",'Enrollment Form'!$DT366<>\"\"),\"Y\",IF(AND('Enrollment Form'!$C366=\"ROC\",'Enrollment Form'!$DT366=\"\"),\"N\",IF(AND('Enrollment Form'!$C366=\"Enroll\",'Enrollment Form'!$B366=\"Subscriber\",'Enrollment Form'!$CQ366=\"No\",'Enrollment Form'!$DT366=\"\"),\"N\",IF(AND('Enrollment Form'!$C366=\"Enroll\",'Enrollment Form'!$B366=\"Subscriber\",'Enrollment Form'!$CQ366=\"Yes\"),\"-\",\"Y\")))))","v":""},{"$f":"IF('Enrollment Form'!AH366=\"\",\"\",IF(ISERROR(SEARCH(\".\",'Enrollment Form'!AH366,SEARCH(\"@\",'Enrollment Form'!AH366))),\"N\",\"Y\"))","v":""},{"$f":"IF(OR($B359=\"N\",'Enrollment Form'!$G366=\"\"),\"\",IF('Enrollment Form'!$B366<>\"Subscriber\",\"-\",IF(COUNTIF('Enrollment Form'!$AS366:$AT366,\"Yes\")=2,\"N\",\"Y\")))","v":""},{"$f":"IF(OR('Enrollment Form'!$CC366=\"\",'Enrollment Form'!$CC366=\"No\"),\"-\",IF(AND('Enrollment Form'!$CC366=\"Yes\",'Enrollment Form'!$CD366=\"\"),\"N\",\"Y\"))","v":"-"},{"$f":"IF(OR('Enrollment Form'!$CE366=\"\",'Enrollment Form'!$CE366=\"No\"),\"-\",IF(AND('Enrollment Form'!$CE366=\"Yes\",'Enrollment Form'!$CF366=\"\"),\"N\",\"Y\"))","v":"-"},{"$f":"IF(OR('Enrollment Form'!$CG366=\"\",'Enrollment Form'!$CG366=\"No\"),\"-\",IF(AND('Enrollment Form'!$CG366=\"Yes\",'Enrollment Form'!$CH366=\"\"),\"N\",\"Y\"))","v":"-"},{"$f":"IF(OR('Enrollment Form'!$CG366=\"\",'Enrollment Form'!$CG366=\"No\"),\"-\",IF(AND('Enrollment Form'!$CG366=\"Yes\",'Enrollment Form'!$CI366=\"\"),\"N\",\"Y\"))","v":"-"},{"$f":"IF('Enrollment Form'!B366<>\"Subscriber\",\"-\",IF(AND('Enrollment Form'!B366=\"Subscriber\",'Enrollment Form'!C366=\"Enroll\",'Enrollment Form'!AA366=\"\"),\"N\",\"Y\"))","v":"-"},{"$f":"IF(OR('Enrollment Form'!B366=\"Subscriber\",'Enrollment Form'!B366=\"\"),\"-\",IF('Enrollment Form'!BI366=\"\",\"N\",\"Y\"))","v":"-"},{"$f":"IF('Enrollment Form'!B366<>\"Subscriber\",\"-\",IF(AND('Enrollment Form'!B366=\"Subscriber\",'Enrollment Form'!G366=\"\"),\"N\",\"Y\"))","v":"-"},{"$f":"IF('Enrollment Form'!A366=\"\",\"\",IF('Enrollment Form'!B366=\"Subscriber\",\"-\",IF(AND('Enrollment Form'!B366<>\"Subscriber\",'Enrollment Form'!G366='Enrollment Form'!H366),\"N\",\"Y\")))","v":""},0]
[367,{"$f":"IF('Enrollment Form'!$A367<>\"\",\"Y\",\"N\")","v":"N"},{"$f":"IF(AND('Enrollment Form'!$B367=\"\",'Enrollment Form'!$C367<>\"\"),\"N\",IF($B360=\"N\",\"\",\"Y\"))","v":""},{"$f":"IF(OR($B360=\"N\",'Enrollment Form'!G367=\"\"),\"\",IF('Enrollment Form'!$B367<>\"Subscriber\",\"\",IF('Enrollment Form'!$G367='Enrollment Form'!$H367,\"Y\",\"N\")))","v":""},{"$f":"IF($B360=\"N\",\"\",IF(AND(COUNTIFS('Enrollment Form'!$H$11:$H$1000,'Enrollment Form'!$H367,'Enrollment Form'!$B$11:$B$1000,'Enrollment Form'!$B367)>1,'Enrollment Form'!$H367<>\"\"),\"N\",\"Y\"))","v":""},{"$f":"IF($B360=\"N\",\"\",IF(LEN('Enrollment Form'!$Y367)=0,\"\",IF(LEN('Enrollment Form'!$Y367)<>5,\"N\",\"Y\")))","v":""},{"$f":"IF($B360=\"N\",\"\",IF(LEN('Enrollment Form'!$AD367=0),\"\",IF(LEN('Enrollment Form'!$AD367)<>5,\"N\",\"Y\")))","v":""},{"$f":"IF($B360=\"N\",\"\",IF(LEN('Enrollment Form'!$BL367=0),\"\",IF(LEN('Enrollment Form'!$BL367)<>5,\"N\",\"Y\")))","v":""},{"$f":"IF($B360=\"N\",\"\",IF(LEN('Enrollment Form'!$AE367)=0,\"\",IF(LEN('Enrollment Form'!$AE367)<>10,\"N\",\"Y\")))","v":""},{"$f":"IF($B360=\"N\",\"\",IF(LEN('Enrollment Form'!$AF367)=0,\"\",IF(LEN('Enrollment Form'!$AF367)<>10,\"N\",\"Y\")))","v":""},{"$f":"IF('Enrollment Form'!$O367<>\"Graded\",\"-\",IF(AND('Enrollment Form'!$O367=\"Graded\",'Enrollment Form'!$AO367<>\"\"),\"Y\",\"N\"))","v":"-"},{"$f":"IF($B360=\"N\",\"\",IF(OR('Enrollment Form'!$B367<>\"Subscriber\",'Enrollment Form'!$C367=\"ROC\"),\"-\",IF(AND('Enrollment Form'!$B367=\"Subscriber\",'Enrollment Form'!$C367=\"Enroll\",'Enrollment Form'!$AJ367<>\"\"),\"Y\",\"N\")))","v":""},{"$f":"IF($B360=\"N\",\"\",IF(OR('Enrollment Form'!$B367<>\"Subscriber\",'Enrollment Form'!$C367=\"ROC\"),\"-\",IF(AND('Enrollment Form'!$B367=\"Subscriber\",'Enrollment Form'!$C367=\"Enroll\",'Enrollment Form'!$AK367<>\"\"),\"Y\",\"N\")))","v":""},{"$f":"IF($B360=\"N\",\"\",IF(OR('Enrollment Form'!$B367<>\"Subscriber\",'Enrollment Form'!$C367=\"ROC\"),\"-\",IF(AND('Enrollment Form'!$B367=\"Subscriber\",'Enrollment Form'!$C367=\"Enroll\",'Enrollment Form'!$AL367<>\"\"),\"Y\",\"N\")))","v":""},{"$f":"IF($B360=\"N\",\"\",IF(OR('Enrollment Form'!$B367<>\"Subscriber\",'Enrollment Form'!$C367=\"ROC\"),\"-\",IF(AND('Enrollment Form'!$B367=\"Subscriber\",'Enrollment Form'!$C367=\"Enroll\",'Enrollment Form'!$AM367<>\"\"),\"Y\",\"N\")))","v":""},{"$f":"IF($B360=\"N\",\"\",IF(OR('Enrollment Form'!$B367<>\"Subscriber\",'Enrollment Form'!$C367=\"ROC\"),\"-\",IF(AND('Enrollment Form'!$B367=\"Subscriber\",'Enrollment Form'!$C367=\"Enroll\",'Enrollment Form'!$AN367<>\"\"),\"Y\",\"N\")))","v":""},{"$f":"IF($B360=\"N\",\"\",IF(OR('Enrollment Form'!$B367<>\"Subscriber\",'Enrollment Form'!$C367=\"ROC\"),\"-\",IF(AND('Enrollment Form'!$B367=\"Subscriber\",'Enrollment Form'!$C367=\"Enroll\",'Enrollment Form'!$AP367<>\"\"),\"Y\",\"N\")))","v":""},{"$f":"IF($B360=\"N\",\"\",IF($Q360=\"-\",\"-\",IF(AND($Q360=\"Y\",'Enrollment Form'!$AP367=\"No\"),\"-\",IF(AND($Q360=\"Y\",'Enrollment Form'!$AP367=\"Yes\",'Enrollment Form'!$AQ367<>\"\"),\"Y\",\"N\"))))","v":""},{"$f":"IF($B360=\"N\",\"\",IF(OR('Enrollment Form'!$B367<>\"Subscriber\",'Enrollment Form'!$C367=\"ROC\"),\"-\",IF(AND('Enrollment Form'!$B367=\"Subscriber\",'Enrollment Form'!$C367=\"Enroll\",'Enrollment Form'!$CO367<>\"\"),\"Y\",\"N\")))","v":""},{"$f":"IF($B360=\"N\",\"\",IF($S360=\"-\",\"-\",IF(AND($S360=\"Y\",'Enrollment Form'!$CO367=\"No\"),\"-\",IF(AND($S360=\"Y\",'Enrollment Form'!$CO367=\"Yes\",'Enrollment Form'!$CP367<>\"\"),\"Y\",\"N\"))))","v":""},{"$f":"IF(OR('Enrollment Form'!$AV367=\"Yes\",'Enrollment Form'!$AV367=\"\"),\"-\",IF(AND('Enrollment Form'!$AV367=\"No\",ISERROR(FIND(\"HMO\",VLOOKUP('Enrollment Form'!G367,'Enrollment Form'!H$11:J$1000,3,FALSE),1))=FALSE,COUNTA('Enrollment Form'!$AW367:$AZ367)=4),\"Y\",\"N\"))","v":"-"},{"$f":"IF($B360=\"N\",\"\",IF('Enrollment Form'!$B367=\"Subscriber\",\"-\",IF(COUNTA('Enrollment Form'!$BE367,'Enrollment Form'!$BG367)=2,\"Y\",\"N\")))","v":""},{"$f":"IF($B360=\"N\",\"\",IF(OR('Enrollment Form'!$AU367=\"\",'Enrollment Form'!$AU367=\"No\"),\"-\",IF(AND('Enrollment Form'!$AU367=\"Yes\",COUNTA('Enrollment Form'!$CK367)=1),\"Y\",\"N\")))","v":""},{"$f":"IF(OR('Enrollment Form'!$CK367=\"\",'Enrollment Form'!$CK367=\"No\"),\"-\",IF(COUNTA('Enrollment Form'!$CM367:$CN367)=2,\"Y\",\"N\"))","v":"-"},{"$f":"IF($B360=\"N\",\"\",IF(COUNTIF('Enrollment Form'!$CZ367:$DO367,\"Other\")=COUNTA('Enrollment Form'!$DF367,'Enrollment Form'!$DA367,'Enrollment Form'!$DK367,'Enrollment Form'!$DP367),\"Y\",\"N\"))","v":""},{"$f":"IF($B360=\"N\",\"\",IF(OR('Enrollment Form'!B367<>\"Subscriber\",'Enrollment Form'!C367=\"ROC\",COUNTIF('Enrollment Form'!AS367:AT367,\"Yes\")>=1),\"-\",IF(AND('Enrollment Form'!C367=\"Enroll\",COUNTIF('Enrollment Form'!AS367:AT367,\"No\")=2,'Enrollment Form'!AU367=\"\"),\"N\",\"Y\")))","v":""},{"$f":"IF(OR(B360=\"N\",'Enrollment Form'!B367<>\"Subscriber\",'Enrollment Form'!C367=\"ROC\",'Enrollment Form'!O367<>\"Multiple of Salary\"),\"-\",IF(COUNTA('Enrollment Form'!T367:U367)<2,\"N\",\"Y\"))","v":"-"},{"$f":"IF(B360=\"N\",\"\",IF(OR('Enrollment Form'!C367=\"ROC\",'Enrollment Form'!B367<>\"Subscriber\",'Enrollment Form'!O367=\"Waive\",'Enrollment Form'!O367=\"\"),\"-\",IF('Enrollment Form'!P367=\"\",\"N\",\"Y\")))","v":""},{"$f":"IF($B360=\"N\",\"\",IF(AND('Enrollment Form'!$C367=\"ROC\",'Enrollment Form'!$DS367<>\"\"),\"Y\",IF(AND('Enrollment Form'!$C367=\"ROC\",'Enrollment Form'!$DS367=\"\"),\"N\",IF(AND('Enrollment Form'!$C367=\"Enroll\",'Enrollment Form'!$B367=\"Subscriber\",'Enrollment Form'!$CQ367=\"No\",'Enrollment Form'!$DS367=\"\"),\"N\",IF(AND('Enrollment Form'!$C367=\"Enroll\",'Enrollment Form'!$B367=\"Subscriber\",'Enrollment Form'!$CQ367=\"Yes\"),\"-\",\"Y\")))))","v":""},{"$f":"IF($B360=\"N\",\"\",IF(AND('Enrollment Form'!$C367=\"ROC\",'Enrollment Form'!$DT367<>\"\"),\"Y\",IF(AND('Enrollment Form'!$C367=\"ROC\",'Enrollment Form'!$DT367=\"\"),\"N\",IF(AND('Enrollment Form'!$C367=\"Enroll\",'Enrollment Form'!$B367=\"Subscriber\",'Enrollment Form'!$CQ367=\"No\",'Enrollment Form'!$DT367=\"\"),\"N\",IF(AND('Enrollment Form'!$C367=\"Enroll\",'Enrollment Form'!$B367=\"Subscriber\",'Enrollment Form'!$CQ367=\"Yes\"),\"-\",\"Y\")))))","v":""},{"$f":"IF('Enrollment Form'!AH367=\"\",\"\",IF(ISERROR(SEARCH(\".\",'Enrollment Form'!AH367,SEARCH(\"@\",'Enrollment Form'!AH367))),\"N\",\"Y\"))","v":""},{"$f":"IF(OR($B360=\"N\",'Enrollment Form'!$G367=\"\"),\"\",IF('Enrollment Form'!$B367<>\"Subscriber\",\"-\",IF(COUNTIF('Enrollment Form'!$AS367:$AT367,\"Yes\")=2,\"N\",\"Y\")))","v":""},{"$f":"IF(OR('Enrollment Form'!$CC367=\"\",'Enrollment Form'!$CC367=\"No\"),\"-\",IF(AND('Enrollment Form'!$CC367=\"Yes\",'Enrollment Form'!$CD367=\"\"),\"N\",\"Y\"))","v":"-"},{"$f":"IF(OR('Enrollment Form'!$CE367=\"\",'Enrollment Form'!$CE367=\"No\"),\"-\",IF(AND('Enrollment Form'!$CE367=\"Yes\",'Enrollment Form'!$CF367=\"\"),\"N\",\"Y\"))","v":"-"},{"$f":"IF(OR('Enrollment Form'!$CG367=\"\",'Enrollment Form'!$CG367=\"No\"),\"-\",IF(AND('Enrollment Form'!$CG367=\"Yes\",'Enrollment Form'!$CH367=\"\"),\"N\",\"Y\"))","v":"-"},{"$f":"IF(OR('Enrollment Form'!$CG367=\"\",'Enrollment Form'!$CG367=\"No\"),\"-\",IF(AND('Enrollment Form'!$CG367=\"Yes\",'Enrollment Form'!$CI367=\"\"),\"N\",\"Y\"))","v":"-"},{"$f":"IF('Enrollment Form'!B367<>\"Subscriber\",\"-\",IF(AND('Enrollment Form'!B367=\"Subscriber\",'Enrollment Form'!C367=\"Enroll\",'Enrollment Form'!AA367=\"\"),\"N\",\"Y\"))","v":"-"},{"$f":"IF(OR('Enrollment Form'!B367=\"Subscriber\",'Enrollment Form'!B367=\"\"),\"-\",IF('Enrollment Form'!BI367=\"\",\"N\",\"Y\"))","v":"-"},{"$f":"IF('Enrollment Form'!B367<>\"Subscriber\",\"-\",IF(AND('Enrollment Form'!B367=\"Subscriber\",'Enrollment Form'!G367=\"\"),\"N\",\"Y\"))","v":"-"},{"$f":"IF('Enrollment Form'!A367=\"\",\"\",IF('Enrollment Form'!B367=\"Subscriber\",\"-\",IF(AND('Enrollment Form'!B367<>\"Subscriber\",'Enrollment Form'!G367='Enrollment Form'!H367),\"N\",\"Y\")))","v":""},0]
[368,{"$f":"IF('Enrollment Form'!$A368<>\"\",\"Y\",\"N\")","v":"N"},{"$f":"IF(AND('Enrollment Form'!$B368=\"\",'Enrollment Form'!$C368<>\"\"),\"N\",IF($B361=\"N\",\"\",\"Y\"))","v":""},{"$f":"IF(OR($B361=\"N\",'Enrollment Form'!G368=\"\"),\"\",IF('Enrollment Form'!$B368<>\"Subscriber\",\"\",IF('Enrollment Form'!$G368='Enrollment Form'!$H368,\"Y\",\"N\")))","v":""},{"$f":"IF($B361=\"N\",\"\",IF(AND(COUNTIFS('Enrollment Form'!$H$11:$H$1000,'Enrollment Form'!$H368,'Enrollment Form'!$B$11:$B$1000,'Enrollment Form'!$B368)>1,'Enrollment Form'!$H368<>\"\"),\"N\",\"Y\"))","v":""},{"$f":"IF($B361=\"N\",\"\",IF(LEN('Enrollment Form'!$Y368)=0,\"\",IF(LEN('Enrollment Form'!$Y368)<>5,\"N\",\"Y\")))","v":""},{"$f":"IF($B361=\"N\",\"\",IF(LEN('Enrollment Form'!$AD368=0),\"\",IF(LEN('Enrollment Form'!$AD368)<>5,\"N\",\"Y\")))","v":""},{"$f":"IF($B361=\"N\",\"\",IF(LEN('Enrollment Form'!$BL368=0),\"\",IF(LEN('Enrollment Form'!$BL368)<>5,\"N\",\"Y\")))","v":""},{"$f":"IF($B361=\"N\",\"\",IF(LEN('Enrollment Form'!$AE368)=0,\"\",IF(LEN('Enrollment Form'!$AE368)<>10,\"N\",\"Y\")))","v":""},{"$f":"IF($B361=\"N\",\"\",IF(LEN('Enrollment Form'!$AF368)=0,\"\",IF(LEN('Enrollment Form'!$AF368)<>10,\"N\",\"Y\")))","v":""},{"$f":"IF('Enrollment Form'!$O368<>\"Graded\",\"-\",IF(AND('Enrollment Form'!$O368=\"Graded\",'Enrollment Form'!$AO368<>\"\"),\"Y\",\"N\"))","v":"-"},{"$f":"IF($B361=\"N\",\"\",IF(OR('Enrollment Form'!$B368<>\"Subscriber\",'Enrollment Form'!$C368=\"ROC\"),\"-\",IF(AND('Enrollment Form'!$B368=\"Subscriber\",'Enrollment Form'!$C368=\"Enroll\",'Enrollment Form'!$AJ368<>\"\"),\"Y\",\"N\")))","v":""},{"$f":"IF($B361=\"N\",\"\",IF(OR('Enrollment Form'!$B368<>\"Subscriber\",'Enrollment Form'!$C368=\"ROC\"),\"-\",IF(AND('Enrollment Form'!$B368=\"Subscriber\",'Enrollment Form'!$C368=\"Enroll\",'Enrollment Form'!$AK368<>\"\"),\"Y\",\"N\")))","v":""},{"$f":"IF($B361=\"N\",\"\",IF(OR('Enrollment Form'!$B368<>\"Subscriber\",'Enrollment Form'!$C368=\"ROC\"),\"-\",IF(AND('Enrollment Form'!$B368=\"Subscriber\",'Enrollment Form'!$C368=\"Enroll\",'Enrollment Form'!$AL368<>\"\"),\"Y\",\"N\")))","v":""},{"$f":"IF($B361=\"N\",\"\",IF(OR('Enrollment Form'!$B368<>\"Subscriber\",'Enrollment Form'!$C368=\"ROC\"),\"-\",IF(AND('Enrollment Form'!$B368=\"Subscriber\",'Enrollment Form'!$C368=\"Enroll\",'Enrollment Form'!$AM368<>\"\"),\"Y\",\"N\")))","v":""},{"$f":"IF($B361=\"N\",\"\",IF(OR('Enrollment Form'!$B368<>\"Subscriber\",'Enrollment Form'!$C368=\"ROC\"),\"-\",IF(AND('Enrollment Form'!$B368=\"Subscriber\",'Enrollment Form'!$C368=\"Enroll\",'Enrollment Form'!$AN368<>\"\"),\"Y\",\"N\")))","v":""},{"$f":"IF($B361=\"N\",\"\",IF(OR('Enrollment Form'!$B368<>\"Subscriber\",'Enrollment Form'!$C368=\"ROC\"),\"-\",IF(AND('Enrollment Form'!$B368=\"Subscriber\",'Enrollment Form'!$C368=\"Enroll\",'Enrollment Form'!$AP368<>\"\"),\"Y\",\"N\")))","v":""},{"$f":"IF($B361=\"N\",\"\",IF($Q361=\"-\",\"-\",IF(AND($Q361=\"Y\",'Enrollment Form'!$AP368=\"No\"),\"-\",IF(AND($Q361=\"Y\",'Enrollment Form'!$AP368=\"Yes\",'Enrollment Form'!$AQ368<>\"\"),\"Y\",\"N\"))))","v":""},{"$f":"IF($B361=\"N\",\"\",IF(OR('Enrollment Form'!$B368<>\"Subscriber\",'Enrollment Form'!$C368=\"ROC\"),\"-\",IF(AND('Enrollment Form'!$B368=\"Subscriber\",'Enrollment Form'!$C368=\"Enroll\",'Enrollment Form'!$CO368<>\"\"),\"Y\",\"N\")))","v":""},{"$f":"IF($B361=\"N\",\"\",IF($S361=\"-\",\"-\",IF(AND($S361=\"Y\",'Enrollment Form'!$CO368=\"No\"),\"-\",IF(AND($S361=\"Y\",'Enrollment Form'!$CO368=\"Yes\",'Enrollment Form'!$CP368<>\"\"),\"Y\",\"N\"))))","v":""},{"$f":"IF(OR('Enrollment Form'!$AV368=\"Yes\",'Enrollment Form'!$AV368=\"\"),\"-\",IF(AND('Enrollment Form'!$AV368=\"No\",ISERROR(FIND(\"HMO\",VLOOKUP('Enrollment Form'!G368,'Enrollment Form'!H$11:J$1000,3,FALSE),1))=FALSE,COUNTA('Enrollment Form'!$AW368:$AZ368)=4),\"Y\",\"N\"))","v":"-"},{"$f":"IF($B361=\"N\",\"\",IF('Enrollment Form'!$B368=\"Subscriber\",\"-\",IF(COUNTA('Enrollment Form'!$BE368,'Enrollment Form'!$BG368)=2,\"Y\",\"N\")))","v":""},{"$f":"IF($B361=\"N\",\"\",IF(OR('Enrollment Form'!$AU368=\"\",'Enrollment Form'!$AU368=\"No\"),\"-\",IF(AND('Enrollment Form'!$AU368=\"Yes\",COUNTA('Enrollment Form'!$CK368)=1),\"Y\",\"N\")))","v":""},{"$f":"IF(OR('Enrollment Form'!$CK368=\"\",'Enrollment Form'!$CK368=\"No\"),\"-\",IF(COUNTA('Enrollment Form'!$CM368:$CN368)=2,\"Y\",\"N\"))","v":"-"},{"$f":"IF($B361=\"N\",\"\",IF(COUNTIF('Enrollment Form'!$CZ368:$DO368,\"Other\")=COUNTA('Enrollment Form'!$DF368,'Enrollment Form'!$DA368,'Enrollment Form'!$DK368,'Enrollment Form'!$DP368),\"Y\",\"N\"))","v":""},{"$f":"IF($B361=\"N\",\"\",IF(OR('Enrollment Form'!B368<>\"Subscriber\",'Enrollment Form'!C368=\"ROC\",COUNTIF('Enrollment Form'!AS368:AT368,\"Yes\")>=1),\"-\",IF(AND('Enrollment Form'!C368=\"Enroll\",COUNTIF('Enrollment Form'!AS368:AT368,\"No\")=2,'Enrollment Form'!AU368=\"\"),\"N\",\"Y\")))","v":""},{"$f":"IF(OR(B361=\"N\",'Enrollment Form'!B368<>\"Subscriber\",'Enrollment Form'!C368=\"ROC\",'Enrollment Form'!O368<>\"Multiple of Salary\"),\"-\",IF(COUNTA('Enrollment Form'!T368:U368)<2,\"N\",\"Y\"))","v":"-"},{"$f":"IF(B361=\"N\",\"\",IF(OR('Enrollment Form'!C368=\"ROC\",'Enrollment Form'!B368<>\"Subscriber\",'Enrollment Form'!O368=\"Waive\",'Enrollment Form'!O368=\"\"),\"-\",IF('Enrollment Form'!P368=\"\",\"N\",\"Y\")))","v":""},{"$f":"IF($B361=\"N\",\"\",IF(AND('Enrollment Form'!$C368=\"ROC\",'Enrollment Form'!$DS368<>\"\"),\"Y\",IF(AND('Enrollment Form'!$C368=\"ROC\",'Enrollment Form'!$DS368=\"\"),\"N\",IF(AND('Enrollment Form'!$C368=\"Enroll\",'Enrollment Form'!$B368=\"Subscriber\",'Enrollment Form'!$CQ368=\"No\",'Enrollment Form'!$DS368=\"\"),\"N\",IF(AND('Enrollment Form'!$C368=\"Enroll\",'Enrollment Form'!$B368=\"Subscriber\",'Enrollment Form'!$CQ368=\"Yes\"),\"-\",\"Y\")))))","v":""},{"$f":"IF($B361=\"N\",\"\",IF(AND('Enrollment Form'!$C368=\"ROC\",'Enrollment Form'!$DT368<>\"\"),\"Y\",IF(AND('Enrollment Form'!$C368=\"ROC\",'Enrollment Form'!$DT368=\"\"),\"N\",IF(AND('Enrollment Form'!$C368=\"Enroll\",'Enrollment Form'!$B368=\"Subscriber\",'Enrollment Form'!$CQ368=\"No\",'Enrollment Form'!$DT368=\"\"),\"N\",IF(AND('Enrollment Form'!$C368=\"Enroll\",'Enrollment Form'!$B368=\"Subscriber\",'Enrollment Form'!$CQ368=\"Yes\"),\"-\",\"Y\")))))","v":""},{"$f":"IF('Enrollment Form'!AH368=\"\",\"\",IF(ISERROR(SEARCH(\".\",'Enrollment Form'!AH368,SEARCH(\"@\",'Enrollment Form'!AH368))),\"N\",\"Y\"))","v":""},{"$f":"IF(OR($B361=\"N\",'Enrollment Form'!$G368=\"\"),\"\",IF('Enrollment Form'!$B368<>\"Subscriber\",\"-\",IF(COUNTIF('Enrollment Form'!$AS368:$AT368,\"Yes\")=2,\"N\",\"Y\")))","v":""},{"$f":"IF(OR('Enrollment Form'!$CC368=\"\",'Enrollment Form'!$CC368=\"No\"),\"-\",IF(AND('Enrollment Form'!$CC368=\"Yes\",'Enrollment Form'!$CD368=\"\"),\"N\",\"Y\"))","v":"-"},{"$f":"IF(OR('Enrollment Form'!$CE368=\"\",'Enrollment Form'!$CE368=\"No\"),\"-\",IF(AND('Enrollment Form'!$CE368=\"Yes\",'Enrollment Form'!$CF368=\"\"),\"N\",\"Y\"))","v":"-"},{"$f":"IF(OR('Enrollment Form'!$CG368=\"\",'Enrollment Form'!$CG368=\"No\"),\"-\",IF(AND('Enrollment Form'!$CG368=\"Yes\",'Enrollment Form'!$CH368=\"\"),\"N\",\"Y\"))","v":"-"},{"$f":"IF(OR('Enrollment Form'!$CG368=\"\",'Enrollment Form'!$CG368=\"No\"),\"-\",IF(AND('Enrollment Form'!$CG368=\"Yes\",'Enrollment Form'!$CI368=\"\"),\"N\",\"Y\"))","v":"-"},{"$f":"IF('Enrollment Form'!B368<>\"Subscriber\",\"-\",IF(AND('Enrollment Form'!B368=\"Subscriber\",'Enrollment Form'!C368=\"Enroll\",'Enrollment Form'!AA368=\"\"),\"N\",\"Y\"))","v":"-"},{"$f":"IF(OR('Enrollment Form'!B368=\"Subscriber\",'Enrollment Form'!B368=\"\"),\"-\",IF('Enrollment Form'!BI368=\"\",\"N\",\"Y\"))","v":"-"},{"$f":"IF('Enrollment Form'!B368<>\"Subscriber\",\"-\",IF(AND('Enrollment Form'!B368=\"Subscriber\",'Enrollment Form'!G368=\"\"),\"N\",\"Y\"))","v":"-"},{"$f":"IF('Enrollment Form'!A368=\"\",\"\",IF('Enrollment Form'!B368=\"Subscriber\",\"-\",IF(AND('Enrollment Form'!B368<>\"Subscriber\",'Enrollment Form'!G368='Enrollment Form'!H368),\"N\",\"Y\")))","v":""},0]
[369,{"$f":"IF('Enrollment Form'!$A369<>\"\",\"Y\",\"N\")","v":"N"},{"$f":"IF(AND('Enrollment Form'!$B369=\"\",'Enrollment Form'!$C369<>\"\"),\"N\",IF($B362=\"N\",\"\",\"Y\"))","v":""},{"$f":"IF(OR($B362=\"N\",'Enrollment Form'!G369=\"\"),\"\",IF('Enrollment Form'!$B369<>\"Subscriber\",\"\",IF('Enrollment Form'!$G369='Enrollment Form'!$H369,\"Y\",\"N\")))","v":""},{"$f":"IF($B362=\"N\",\"\",IF(AND(COUNTIFS('Enrollment Form'!$H$11:$H$1000,'Enrollment Form'!$H369,'Enrollment Form'!$B$11:$B$1000,'Enrollment Form'!$B369)>1,'Enrollment Form'!$H369<>\"\"),\"N\",\"Y\"))","v":""},{"$f":"IF($B362=\"N\",\"\",IF(LEN('Enrollment Form'!$Y369)=0,\"\",IF(LEN('Enrollment Form'!$Y369)<>5,\"N\",\"Y\")))","v":""},{"$f":"IF($B362=\"N\",\"\",IF(LEN('Enrollment Form'!$AD369=0),\"\",IF(LEN('Enrollment Form'!$AD369)<>5,\"N\",\"Y\")))","v":""},{"$f":"IF($B362=\"N\",\"\",IF(LEN('Enrollment Form'!$BL369=0),\"\",IF(LEN('Enrollment Form'!$BL369)<>5,\"N\",\"Y\")))","v":""},{"$f":"IF($B362=\"N\",\"\",IF(LEN('Enrollment Form'!$AE369)=0,\"\",IF(LEN('Enrollment Form'!$AE369)<>10,\"N\",\"Y\")))","v":""},{"$f":"IF($B362=\"N\",\"\",IF(LEN('Enrollment Form'!$AF369)=0,\"\",IF(LEN('Enrollment Form'!$AF369)<>10,\"N\",\"Y\")))","v":""},{"$f":"IF('Enrollment Form'!$O369<>\"Graded\",\"-\",IF(AND('Enrollment Form'!$O369=\"Graded\",'Enrollment Form'!$AO369<>\"\"),\"Y\",\"N\"))","v":"-"},{"$f":"IF($B362=\"N\",\"\",IF(OR('Enrollment Form'!$B369<>\"Subscriber\",'Enrollment Form'!$C369=\"ROC\"),\"-\",IF(AND('Enrollment Form'!$B369=\"Subscriber\",'Enrollment Form'!$C369=\"Enroll\",'Enrollment Form'!$AJ369<>\"\"),\"Y\",\"N\")))","v":""},{"$f":"IF($B362=\"N\",\"\",IF(OR('Enrollment Form'!$B369<>\"Subscriber\",'Enrollment Form'!$C369=\"ROC\"),\"-\",IF(AND('Enrollment Form'!$B369=\"Subscriber\",'Enrollment Form'!$C369=\"Enroll\",'Enrollment Form'!$AK369<>\"\"),\"Y\",\"N\")))","v":""},{"$f":"IF($B362=\"N\",\"\",IF(OR('Enrollment Form'!$B369<>\"Subscriber\",'Enrollment Form'!$C369=\"ROC\"),\"-\",IF(AND('Enrollment Form'!$B369=\"Subscriber\",'Enrollment Form'!$C369=\"Enroll\",'Enrollment Form'!$AL369<>\"\"),\"Y\",\"N\")))","v":""},{"$f":"IF($B362=\"N\",\"\",IF(OR('Enrollment Form'!$B369<>\"Subscriber\",'Enrollment Form'!$C369=\"ROC\"),\"-\",IF(AND('Enrollment Form'!$B369=\"Subscriber\",'Enrollment Form'!$C369=\"Enroll\",'Enrollment Form'!$AM369<>\"\"),\"Y\",\"N\")))","v":""},{"$f":"IF($B362=\"N\",\"\",IF(OR('Enrollment Form'!$B369<>\"Subscriber\",'Enrollment Form'!$C369=\"ROC\"),\"-\",IF(AND('Enrollment Form'!$B369=\"Subscriber\",'Enrollment Form'!$C369=\"Enroll\",'Enrollment Form'!$AN369<>\"\"),\"Y\",\"N\")))","v":""},{"$f":"IF($B362=\"N\",\"\",IF(OR('Enrollment Form'!$B369<>\"Subscriber\",'Enrollment Form'!$C369=\"ROC\"),\"-\",IF(AND('Enrollment Form'!$B369=\"Subscriber\",'Enrollment Form'!$C369=\"Enroll\",'Enrollment Form'!$AP369<>\"\"),\"Y\",\"N\")))","v":""},{"$f":"IF($B362=\"N\",\"\",IF($Q362=\"-\",\"-\",IF(AND($Q362=\"Y\",'Enrollment Form'!$AP369=\"No\"),\"-\",IF(AND($Q362=\"Y\",'Enrollment Form'!$AP369=\"Yes\",'Enrollment Form'!$AQ369<>\"\"),\"Y\",\"N\"))))","v":""},{"$f":"IF($B362=\"N\",\"\",IF(OR('Enrollment Form'!$B369<>\"Subscriber\",'Enrollment Form'!$C369=\"ROC\"),\"-\",IF(AND('Enrollment Form'!$B369=\"Subscriber\",'Enrollment Form'!$C369=\"Enroll\",'Enrollment Form'!$CO369<>\"\"),\"Y\",\"N\")))","v":""},{"$f":"IF($B362=\"N\",\"\",IF($S362=\"-\",\"-\",IF(AND($S362=\"Y\",'Enrollment Form'!$CO369=\"No\"),\"-\",IF(AND($S362=\"Y\",'Enrollment Form'!$CO369=\"Yes\",'Enrollment Form'!$CP369<>\"\"),\"Y\",\"N\"))))","v":""},{"$f":"IF(OR('Enrollment Form'!$AV369=\"Yes\",'Enrollment Form'!$AV369=\"\"),\"-\",IF(AND('Enrollment Form'!$AV369=\"No\",ISERROR(FIND(\"HMO\",VLOOKUP('Enrollment Form'!G369,'Enrollment Form'!H$11:J$1000,3,FALSE),1))=FALSE,COUNTA('Enrollment Form'!$AW369:$AZ369)=4),\"Y\",\"N\"))","v":"-"},{"$f":"IF($B362=\"N\",\"\",IF('Enrollment Form'!$B369=\"Subscriber\",\"-\",IF(COUNTA('Enrollment Form'!$BE369,'Enrollment Form'!$BG369)=2,\"Y\",\"N\")))","v":""},{"$f":"IF($B362=\"N\",\"\",IF(OR('Enrollment Form'!$AU369=\"\",'Enrollment Form'!$AU369=\"No\"),\"-\",IF(AND('Enrollment Form'!$AU369=\"Yes\",COUNTA('Enrollment Form'!$CK369)=1),\"Y\",\"N\")))","v":""},{"$f":"IF(OR('Enrollment Form'!$CK369=\"\",'Enrollment Form'!$CK369=\"No\"),\"-\",IF(COUNTA('Enrollment Form'!$CM369:$CN369)=2,\"Y\",\"N\"))","v":"-"},{"$f":"IF($B362=\"N\",\"\",IF(COUNTIF('Enrollment Form'!$CZ369:$DO369,\"Other\")=COUNTA('Enrollment Form'!$DF369,'Enrollment Form'!$DA369,'Enrollment Form'!$DK369,'Enrollment Form'!$DP369),\"Y\",\"N\"))","v":""},{"$f":"IF($B362=\"N\",\"\",IF(OR('Enrollment Form'!B369<>\"Subscriber\",'Enrollment Form'!C369=\"ROC\",COUNTIF('Enrollment Form'!AS369:AT369,\"Yes\")>=1),\"-\",IF(AND('Enrollment Form'!C369=\"Enroll\",COUNTIF('Enrollment Form'!AS369:AT369,\"No\")=2,'Enrollment Form'!AU369=\"\"),\"N\",\"Y\")))","v":""},{"$f":"IF(OR(B362=\"N\",'Enrollment Form'!B369<>\"Subscriber\",'Enrollment Form'!C369=\"ROC\",'Enrollment Form'!O369<>\"Multiple of Salary\"),\"-\",IF(COUNTA('Enrollment Form'!T369:U369)<2,\"N\",\"Y\"))","v":"-"},{"$f":"IF(B362=\"N\",\"\",IF(OR('Enrollment Form'!C369=\"ROC\",'Enrollment Form'!B369<>\"Subscriber\",'Enrollment Form'!O369=\"Waive\",'Enrollment Form'!O369=\"\"),\"-\",IF('Enrollment Form'!P369=\"\",\"N\",\"Y\")))","v":""},{"$f":"IF($B362=\"N\",\"\",IF(AND('Enrollment Form'!$C369=\"ROC\",'Enrollment Form'!$DS369<>\"\"),\"Y\",IF(AND('Enrollment Form'!$C369=\"ROC\",'Enrollment Form'!$DS369=\"\"),\"N\",IF(AND('Enrollment Form'!$C369=\"Enroll\",'Enrollment Form'!$B369=\"Subscriber\",'Enrollment Form'!$CQ369=\"No\",'Enrollment Form'!$DS369=\"\"),\"N\",IF(AND('Enrollment Form'!$C369=\"Enroll\",'Enrollment Form'!$B369=\"Subscriber\",'Enrollment Form'!$CQ369=\"Yes\"),\"-\",\"Y\")))))","v":""},{"$f":"IF($B362=\"N\",\"\",IF(AND('Enrollment Form'!$C369=\"ROC\",'Enrollment Form'!$DT369<>\"\"),\"Y\",IF(AND('Enrollment Form'!$C369=\"ROC\",'Enrollment Form'!$DT369=\"\"),\"N\",IF(AND('Enrollment Form'!$C369=\"Enroll\",'Enrollment Form'!$B369=\"Subscriber\",'Enrollment Form'!$CQ369=\"No\",'Enrollment Form'!$DT369=\"\"),\"N\",IF(AND('Enrollment Form'!$C369=\"Enroll\",'Enrollment Form'!$B369=\"Subscriber\",'Enrollment Form'!$CQ369=\"Yes\"),\"-\",\"Y\")))))","v":""},{"$f":"IF('Enrollment Form'!AH369=\"\",\"\",IF(ISERROR(SEARCH(\".\",'Enrollment Form'!AH369,SEARCH(\"@\",'Enrollment Form'!AH369))),\"N\",\"Y\"))","v":""},{"$f":"IF(OR($B362=\"N\",'Enrollment Form'!$G369=\"\"),\"\",IF('Enrollment Form'!$B369<>\"Subscriber\",\"-\",IF(COUNTIF('Enrollment Form'!$AS369:$AT369,\"Yes\")=2,\"N\",\"Y\")))","v":""},{"$f":"IF(OR('Enrollment Form'!$CC369=\"\",'Enrollment Form'!$CC369=\"No\"),\"-\",IF(AND('Enrollment Form'!$CC369=\"Yes\",'Enrollment Form'!$CD369=\"\"),\"N\",\"Y\"))","v":"-"},{"$f":"IF(OR('Enrollment Form'!$CE369=\"\",'Enrollment Form'!$CE369=\"No\"),\"-\",IF(AND('Enrollment Form'!$CE369=\"Yes\",'Enrollment Form'!$CF369=\"\"),\"N\",\"Y\"))","v":"-"},{"$f":"IF(OR('Enrollment Form'!$CG369=\"\",'Enrollment Form'!$CG369=\"No\"),\"-\",IF(AND('Enrollment Form'!$CG369=\"Yes\",'Enrollment Form'!$CH369=\"\"),\"N\",\"Y\"))","v":"-"},{"$f":"IF(OR('Enrollment Form'!$CG369=\"\",'Enrollment Form'!$CG369=\"No\"),\"-\",IF(AND('Enrollment Form'!$CG369=\"Yes\",'Enrollment Form'!$CI369=\"\"),\"N\",\"Y\"))","v":"-"},{"$f":"IF('Enrollment Form'!B369<>\"Subscriber\",\"-\",IF(AND('Enrollment Form'!B369=\"Subscriber\",'Enrollment Form'!C369=\"Enroll\",'Enrollment Form'!AA369=\"\"),\"N\",\"Y\"))","v":"-"},{"$f":"IF(OR('Enrollment Form'!B369=\"Subscriber\",'Enrollment Form'!B369=\"\"),\"-\",IF('Enrollment Form'!BI369=\"\",\"N\",\"Y\"))","v":"-"},{"$f":"IF('Enrollment Form'!B369<>\"Subscriber\",\"-\",IF(AND('Enrollment Form'!B369=\"Subscriber\",'Enrollment Form'!G369=\"\"),\"N\",\"Y\"))","v":"-"},{"$f":"IF('Enrollment Form'!A369=\"\",\"\",IF('Enrollment Form'!B369=\"Subscriber\",\"-\",IF(AND('Enrollment Form'!B369<>\"Subscriber\",'Enrollment Form'!G369='Enrollment Form'!H369),\"N\",\"Y\")))","v":""},0]
[370,{"$f":"IF('Enrollment Form'!$A370<>\"\",\"Y\",\"N\")","v":"N"},{"$f":"IF(AND('Enrollment Form'!$B370=\"\",'Enrollment Form'!$C370<>\"\"),\"N\",IF($B363=\"N\",\"\",\"Y\"))","v":""},{"$f":"IF(OR($B363=\"N\",'Enrollment Form'!G370=\"\"),\"\",IF('Enrollment Form'!$B370<>\"Subscriber\",\"\",IF('Enrollment Form'!$G370='Enrollment Form'!$H370,\"Y\",\"N\")))","v":""},{"$f":"IF($B363=\"N\",\"\",IF(AND(COUNTIFS('Enrollment Form'!$H$11:$H$1000,'Enrollment Form'!$H370,'Enrollment Form'!$B$11:$B$1000,'Enrollment Form'!$B370)>1,'Enrollment Form'!$H370<>\"\"),\"N\",\"Y\"))","v":""},{"$f":"IF($B363=\"N\",\"\",IF(LEN('Enrollment Form'!$Y370)=0,\"\",IF(LEN('Enrollment Form'!$Y370)<>5,\"N\",\"Y\")))","v":""},{"$f":"IF($B363=\"N\",\"\",IF(LEN('Enrollment Form'!$AD370=0),\"\",IF(LEN('Enrollment Form'!$AD370)<>5,\"N\",\"Y\")))","v":""},{"$f":"IF($B363=\"N\",\"\",IF(LEN('Enrollment Form'!$BL370=0),\"\",IF(LEN('Enrollment Form'!$BL370)<>5,\"N\",\"Y\")))","v":""},{"$f":"IF($B363=\"N\",\"\",IF(LEN('Enrollment Form'!$AE370)=0,\"\",IF(LEN('Enrollment Form'!$AE370)<>10,\"N\",\"Y\")))","v":""},{"$f":"IF($B363=\"N\",\"\",IF(LEN('Enrollment Form'!$AF370)=0,\"\",IF(LEN('Enrollment Form'!$AF370)<>10,\"N\",\"Y\")))","v":""},{"$f":"IF('Enrollment Form'!$O370<>\"Graded\",\"-\",IF(AND('Enrollment Form'!$O370=\"Graded\",'Enrollment Form'!$AO370<>\"\"),\"Y\",\"N\"))","v":"-"},{"$f":"IF($B363=\"N\",\"\",IF(OR('Enrollment Form'!$B370<>\"Subscriber\",'Enrollment Form'!$C370=\"ROC\"),\"-\",IF(AND('Enrollment Form'!$B370=\"Subscriber\",'Enrollment Form'!$C370=\"Enroll\",'Enrollment Form'!$AJ370<>\"\"),\"Y\",\"N\")))","v":""},{"$f":"IF($B363=\"N\",\"\",IF(OR('Enrollment Form'!$B370<>\"Subscriber\",'Enrollment Form'!$C370=\"ROC\"),\"-\",IF(AND('Enrollment Form'!$B370=\"Subscriber\",'Enrollment Form'!$C370=\"Enroll\",'Enrollment Form'!$AK370<>\"\"),\"Y\",\"N\")))","v":""},{"$f":"IF($B363=\"N\",\"\",IF(OR('Enrollment Form'!$B370<>\"Subscriber\",'Enrollment Form'!$C370=\"ROC\"),\"-\",IF(AND('Enrollment Form'!$B370=\"Subscriber\",'Enrollment Form'!$C370=\"Enroll\",'Enrollment Form'!$AL370<>\"\"),\"Y\",\"N\")))","v":""},{"$f":"IF($B363=\"N\",\"\",IF(OR('Enrollment Form'!$B370<>\"Subscriber\",'Enrollment Form'!$C370=\"ROC\"),\"-\",IF(AND('Enrollment Form'!$B370=\"Subscriber\",'Enrollment Form'!$C370=\"Enroll\",'Enrollment Form'!$AM370<>\"\"),\"Y\",\"N\")))","v":""},{"$f":"IF($B363=\"N\",\"\",IF(OR('Enrollment Form'!$B370<>\"Subscriber\",'Enrollment Form'!$C370=\"ROC\"),\"-\",IF(AND('Enrollment Form'!$B370=\"Subscriber\",'Enrollment Form'!$C370=\"Enroll\",'Enrollment Form'!$AN370<>\"\"),\"Y\",\"N\")))","v":""},{"$f":"IF($B363=\"N\",\"\",IF(OR('Enrollment Form'!$B370<>\"Subscriber\",'Enrollment Form'!$C370=\"ROC\"),\"-\",IF(AND('Enrollment Form'!$B370=\"Subscriber\",'Enrollment Form'!$C370=\"Enroll\",'Enrollment Form'!$AP370<>\"\"),\"Y\",\"N\")))","v":""},{"$f":"IF($B363=\"N\",\"\",IF($Q363=\"-\",\"-\",IF(AND($Q363=\"Y\",'Enrollment Form'!$AP370=\"No\"),\"-\",IF(AND($Q363=\"Y\",'Enrollment Form'!$AP370=\"Yes\",'Enrollment Form'!$AQ370<>\"\"),\"Y\",\"N\"))))","v":""},{"$f":"IF($B363=\"N\",\"\",IF(OR('Enrollment Form'!$B370<>\"Subscriber\",'Enrollment Form'!$C370=\"ROC\"),\"-\",IF(AND('Enrollment Form'!$B370=\"Subscriber\",'Enrollment Form'!$C370=\"Enroll\",'Enrollment Form'!$CO370<>\"\"),\"Y\",\"N\")))","v":""},{"$f":"IF($B363=\"N\",\"\",IF($S363=\"-\",\"-\",IF(AND($S363=\"Y\",'Enrollment Form'!$CO370=\"No\"),\"-\",IF(AND($S363=\"Y\",'Enrollment Form'!$CO370=\"Yes\",'Enrollment Form'!$CP370<>\"\"),\"Y\",\"N\"))))","v":""},{"$f":"IF(OR('Enrollment Form'!$AV370=\"Yes\",'Enrollment Form'!$AV370=\"\"),\"-\",IF(AND('Enrollment Form'!$AV370=\"No\",ISERROR(FIND(\"HMO\",VLOOKUP('Enrollment Form'!G370,'Enrollment Form'!H$11:J$1000,3,FALSE),1))=FALSE,COUNTA('Enrollment Form'!$AW370:$AZ370)=4),\"Y\",\"N\"))","v":"-"},{"$f":"IF($B363=\"N\",\"\",IF('Enrollment Form'!$B370=\"Subscriber\",\"-\",IF(COUNTA('Enrollment Form'!$BE370,'Enrollment Form'!$BG370)=2,\"Y\",\"N\")))","v":""},{"$f":"IF($B363=\"N\",\"\",IF(OR('Enrollment Form'!$AU370=\"\",'Enrollment Form'!$AU370=\"No\"),\"-\",IF(AND('Enrollment Form'!$AU370=\"Yes\",COUNTA('Enrollment Form'!$CK370)=1),\"Y\",\"N\")))","v":""},{"$f":"IF(OR('Enrollment Form'!$CK370=\"\",'Enrollment Form'!$CK370=\"No\"),\"-\",IF(COUNTA('Enrollment Form'!$CM370:$CN370)=2,\"Y\",\"N\"))","v":"-"},{"$f":"IF($B363=\"N\",\"\",IF(COUNTIF('Enrollment Form'!$CZ370:$DO370,\"Other\")=COUNTA('Enrollment Form'!$DF370,'Enrollment Form'!$DA370,'Enrollment Form'!$DK370,'Enrollment Form'!$DP370),\"Y\",\"N\"))","v":""},{"$f":"IF($B363=\"N\",\"\",IF(OR('Enrollment Form'!B370<>\"Subscriber\",'Enrollment Form'!C370=\"ROC\",COUNTIF('Enrollment Form'!AS370:AT370,\"Yes\")>=1),\"-\",IF(AND('Enrollment Form'!C370=\"Enroll\",COUNTIF('Enrollment Form'!AS370:AT370,\"No\")=2,'Enrollment Form'!AU370=\"\"),\"N\",\"Y\")))","v":""},{"$f":"IF(OR(B363=\"N\",'Enrollment Form'!B370<>\"Subscriber\",'Enrollment Form'!C370=\"ROC\",'Enrollment Form'!O370<>\"Multiple of Salary\"),\"-\",IF(COUNTA('Enrollment Form'!T370:U370)<2,\"N\",\"Y\"))","v":"-"},{"$f":"IF(B363=\"N\",\"\",IF(OR('Enrollment Form'!C370=\"ROC\",'Enrollment Form'!B370<>\"Subscriber\",'Enrollment Form'!O370=\"Waive\",'Enrollment Form'!O370=\"\"),\"-\",IF('Enrollment Form'!P370=\"\",\"N\",\"Y\")))","v":""},{"$f":"IF($B363=\"N\",\"\",IF(AND('Enrollment Form'!$C370=\"ROC\",'Enrollment Form'!$DS370<>\"\"),\"Y\",IF(AND('Enrollment Form'!$C370=\"ROC\",'Enrollment Form'!$DS370=\"\"),\"N\",IF(AND('Enrollment Form'!$C370=\"Enroll\",'Enrollment Form'!$B370=\"Subscriber\",'Enrollment Form'!$CQ370=\"No\",'Enrollment Form'!$DS370=\"\"),\"N\",IF(AND('Enrollment Form'!$C370=\"Enroll\",'Enrollment Form'!$B370=\"Subscriber\",'Enrollment Form'!$CQ370=\"Yes\"),\"-\",\"Y\")))))","v":""},{"$f":"IF($B363=\"N\",\"\",IF(AND('Enrollment Form'!$C370=\"ROC\",'Enrollment Form'!$DT370<>\"\"),\"Y\",IF(AND('Enrollment Form'!$C370=\"ROC\",'Enrollment Form'!$DT370=\"\"),\"N\",IF(AND('Enrollment Form'!$C370=\"Enroll\",'Enrollment Form'!$B370=\"Subscriber\",'Enrollment Form'!$CQ370=\"No\",'Enrollment Form'!$DT370=\"\"),\"N\",IF(AND('Enrollment Form'!$C370=\"Enroll\",'Enrollment Form'!$B370=\"Subscriber\",'Enrollment Form'!$CQ370=\"Yes\"),\"-\",\"Y\")))))","v":""},{"$f":"IF('Enrollment Form'!AH370=\"\",\"\",IF(ISERROR(SEARCH(\".\",'Enrollment Form'!AH370,SEARCH(\"@\",'Enrollment Form'!AH370))),\"N\",\"Y\"))","v":""},{"$f":"IF(OR($B363=\"N\",'Enrollment Form'!$G370=\"\"),\"\",IF('Enrollment Form'!$B370<>\"Subscriber\",\"-\",IF(COUNTIF('Enrollment Form'!$AS370:$AT370,\"Yes\")=2,\"N\",\"Y\")))","v":""},{"$f":"IF(OR('Enrollment Form'!$CC370=\"\",'Enrollment Form'!$CC370=\"No\"),\"-\",IF(AND('Enrollment Form'!$CC370=\"Yes\",'Enrollment Form'!$CD370=\"\"),\"N\",\"Y\"))","v":"-"},{"$f":"IF(OR('Enrollment Form'!$CE370=\"\",'Enrollment Form'!$CE370=\"No\"),\"-\",IF(AND('Enrollment Form'!$CE370=\"Yes\",'Enrollment Form'!$CF370=\"\"),\"N\",\"Y\"))","v":"-"},{"$f":"IF(OR('Enrollment Form'!$CG370=\"\",'Enrollment Form'!$CG370=\"No\"),\"-\",IF(AND('Enrollment Form'!$CG370=\"Yes\",'Enrollment Form'!$CH370=\"\"),\"N\",\"Y\"))","v":"-"},{"$f":"IF(OR('Enrollment Form'!$CG370=\"\",'Enrollment Form'!$CG370=\"No\"),\"-\",IF(AND('Enrollment Form'!$CG370=\"Yes\",'Enrollment Form'!$CI370=\"\"),\"N\",\"Y\"))","v":"-"},{"$f":"IF('Enrollment Form'!B370<>\"Subscriber\",\"-\",IF(AND('Enrollment Form'!B370=\"Subscriber\",'Enrollment Form'!C370=\"Enroll\",'Enrollment Form'!AA370=\"\"),\"N\",\"Y\"))","v":"-"},{"$f":"IF(OR('Enrollment Form'!B370=\"Subscriber\",'Enrollment Form'!B370=\"\"),\"-\",IF('Enrollment Form'!BI370=\"\",\"N\",\"Y\"))","v":"-"},{"$f":"IF('Enrollment Form'!B370<>\"Subscriber\",\"-\",IF(AND('Enrollment Form'!B370=\"Subscriber\",'Enrollment Form'!G370=\"\"),\"N\",\"Y\"))","v":"-"},{"$f":"IF('Enrollment Form'!A370=\"\",\"\",IF('Enrollment Form'!B370=\"Subscriber\",\"-\",IF(AND('Enrollment Form'!B370<>\"Subscriber\",'Enrollment Form'!G370='Enrollment Form'!H370),\"N\",\"Y\")))","v":""},0]
[371,{"$f":"IF('Enrollment Form'!$A371<>\"\",\"Y\",\"N\")","v":"N"},{"$f":"IF(AND('Enrollment Form'!$B371=\"\",'Enrollment Form'!$C371<>\"\"),\"N\",IF($B364=\"N\",\"\",\"Y\"))","v":""},{"$f":"IF(OR($B364=\"N\",'Enrollment Form'!G371=\"\"),\"\",IF('Enrollment Form'!$B371<>\"Subscriber\",\"\",IF('Enrollment Form'!$G371='Enrollment Form'!$H371,\"Y\",\"N\")))","v":""},{"$f":"IF($B364=\"N\",\"\",IF(AND(COUNTIFS('Enrollment Form'!$H$11:$H$1000,'Enrollment Form'!$H371,'Enrollment Form'!$B$11:$B$1000,'Enrollment Form'!$B371)>1,'Enrollment Form'!$H371<>\"\"),\"N\",\"Y\"))","v":""},{"$f":"IF($B364=\"N\",\"\",IF(LEN('Enrollment Form'!$Y371)=0,\"\",IF(LEN('Enrollment Form'!$Y371)<>5,\"N\",\"Y\")))","v":""},{"$f":"IF($B364=\"N\",\"\",IF(LEN('Enrollment Form'!$AD371=0),\"\",IF(LEN('Enrollment Form'!$AD371)<>5,\"N\",\"Y\")))","v":""},{"$f":"IF($B364=\"N\",\"\",IF(LEN('Enrollment Form'!$BL371=0),\"\",IF(LEN('Enrollment Form'!$BL371)<>5,\"N\",\"Y\")))","v":""},{"$f":"IF($B364=\"N\",\"\",IF(LEN('Enrollment Form'!$AE371)=0,\"\",IF(LEN('Enrollment Form'!$AE371)<>10,\"N\",\"Y\")))","v":""},{"$f":"IF($B364=\"N\",\"\",IF(LEN('Enrollment Form'!$AF371)=0,\"\",IF(LEN('Enrollment Form'!$AF371)<>10,\"N\",\"Y\")))","v":""},{"$f":"IF('Enrollment Form'!$O371<>\"Graded\",\"-\",IF(AND('Enrollment Form'!$O371=\"Graded\",'Enrollment Form'!$AO371<>\"\"),\"Y\",\"N\"))","v":"-"},{"$f":"IF($B364=\"N\",\"\",IF(OR('Enrollment Form'!$B371<>\"Subscriber\",'Enrollment Form'!$C371=\"ROC\"),\"-\",IF(AND('Enrollment Form'!$B371=\"Subscriber\",'Enrollment Form'!$C371=\"Enroll\",'Enrollment Form'!$AJ371<>\"\"),\"Y\",\"N\")))","v":""},{"$f":"IF($B364=\"N\",\"\",IF(OR('Enrollment Form'!$B371<>\"Subscriber\",'Enrollment Form'!$C371=\"ROC\"),\"-\",IF(AND('Enrollment Form'!$B371=\"Subscriber\",'Enrollment Form'!$C371=\"Enroll\",'Enrollment Form'!$AK371<>\"\"),\"Y\",\"N\")))","v":""},{"$f":"IF($B364=\"N\",\"\",IF(OR('Enrollment Form'!$B371<>\"Subscriber\",'Enrollment Form'!$C371=\"ROC\"),\"-\",IF(AND('Enrollment Form'!$B371=\"Subscriber\",'Enrollment Form'!$C371=\"Enroll\",'Enrollment Form'!$AL371<>\"\"),\"Y\",\"N\")))","v":""},{"$f":"IF($B364=\"N\",\"\",IF(OR('Enrollment Form'!$B371<>\"Subscriber\",'Enrollment Form'!$C371=\"ROC\"),\"-\",IF(AND('Enrollment Form'!$B371=\"Subscriber\",'Enrollment Form'!$C371=\"Enroll\",'Enrollment Form'!$AM371<>\"\"),\"Y\",\"N\")))","v":""},{"$f":"IF($B364=\"N\",\"\",IF(OR('Enrollment Form'!$B371<>\"Subscriber\",'Enrollment Form'!$C371=\"ROC\"),\"-\",IF(AND('Enrollment Form'!$B371=\"Subscriber\",'Enrollment Form'!$C371=\"Enroll\",'Enrollment Form'!$AN371<>\"\"),\"Y\",\"N\")))","v":""},{"$f":"IF($B364=\"N\",\"\",IF(OR('Enrollment Form'!$B371<>\"Subscriber\",'Enrollment Form'!$C371=\"ROC\"),\"-\",IF(AND('Enrollment Form'!$B371=\"Subscriber\",'Enrollment Form'!$C371=\"Enroll\",'Enrollment Form'!$AP371<>\"\"),\"Y\",\"N\")))","v":""},{"$f":"IF($B364=\"N\",\"\",IF($Q364=\"-\",\"-\",IF(AND($Q364=\"Y\",'Enrollment Form'!$AP371=\"No\"),\"-\",IF(AND($Q364=\"Y\",'Enrollment Form'!$AP371=\"Yes\",'Enrollment Form'!$AQ371<>\"\"),\"Y\",\"N\"))))","v":""},{"$f":"IF($B364=\"N\",\"\",IF(OR('Enrollment Form'!$B371<>\"Subscriber\",'Enrollment Form'!$C371=\"ROC\"),\"-\",IF(AND('Enrollment Form'!$B371=\"Subscriber\",'Enrollment Form'!$C371=\"Enroll\",'Enrollment Form'!$CO371<>\"\"),\"Y\",\"N\")))","v":""},{"$f":"IF($B364=\"N\",\"\",IF($S364=\"-\",\"-\",IF(AND($S364=\"Y\",'Enrollment Form'!$CO371=\"No\"),\"-\",IF(AND($S364=\"Y\",'Enrollment Form'!$CO371=\"Yes\",'Enrollment Form'!$CP371<>\"\"),\"Y\",\"N\"))))","v":""},{"$f":"IF(OR('Enrollment Form'!$AV371=\"Yes\",'Enrollment Form'!$AV371=\"\"),\"-\",IF(AND('Enrollment Form'!$AV371=\"No\",ISERROR(FIND(\"HMO\",VLOOKUP('Enrollment Form'!G371,'Enrollment Form'!H$11:J$1000,3,FALSE),1))=FALSE,COUNTA('Enrollment Form'!$AW371:$AZ371)=4),\"Y\",\"N\"))","v":"-"},{"$f":"IF($B364=\"N\",\"\",IF('Enrollment Form'!$B371=\"Subscriber\",\"-\",IF(COUNTA('Enrollment Form'!$BE371,'Enrollment Form'!$BG371)=2,\"Y\",\"N\")))","v":""},{"$f":"IF($B364=\"N\",\"\",IF(OR('Enrollment Form'!$AU371=\"\",'Enrollment Form'!$AU371=\"No\"),\"-\",IF(AND('Enrollment Form'!$AU371=\"Yes\",COUNTA('Enrollment Form'!$CK371)=1),\"Y\",\"N\")))","v":""},{"$f":"IF(OR('Enrollment Form'!$CK371=\"\",'Enrollment Form'!$CK371=\"No\"),\"-\",IF(COUNTA('Enrollment Form'!$CM371:$CN371)=2,\"Y\",\"N\"))","v":"-"},{"$f":"IF($B364=\"N\",\"\",IF(COUNTIF('Enrollment Form'!$CZ371:$DO371,\"Other\")=COUNTA('Enrollment Form'!$DF371,'Enrollment Form'!$DA371,'Enrollment Form'!$DK371,'Enrollment Form'!$DP371),\"Y\",\"N\"))","v":""},{"$f":"IF($B364=\"N\",\"\",IF(OR('Enrollment Form'!B371<>\"Subscriber\",'Enrollment Form'!C371=\"ROC\",COUNTIF('Enrollment Form'!AS371:AT371,\"Yes\")>=1),\"-\",IF(AND('Enrollment Form'!C371=\"Enroll\",COUNTIF('Enrollment Form'!AS371:AT371,\"No\")=2,'Enrollment Form'!AU371=\"\"),\"N\",\"Y\")))","v":""},{"$f":"IF(OR(B364=\"N\",'Enrollment Form'!B371<>\"Subscriber\",'Enrollment Form'!C371=\"ROC\",'Enrollment Form'!O371<>\"Multiple of Salary\"),\"-\",IF(COUNTA('Enrollment Form'!T371:U371)<2,\"N\",\"Y\"))","v":"-"},{"$f":"IF(B364=\"N\",\"\",IF(OR('Enrollment Form'!C371=\"ROC\",'Enrollment Form'!B371<>\"Subscriber\",'Enrollment Form'!O371=\"Waive\",'Enrollment Form'!O371=\"\"),\"-\",IF('Enrollment Form'!P371=\"\",\"N\",\"Y\")))","v":""},{"$f":"IF($B364=\"N\",\"\",IF(AND('Enrollment Form'!$C371=\"ROC\",'Enrollment Form'!$DS371<>\"\"),\"Y\",IF(AND('Enrollment Form'!$C371=\"ROC\",'Enrollment Form'!$DS371=\"\"),\"N\",IF(AND('Enrollment Form'!$C371=\"Enroll\",'Enrollment Form'!$B371=\"Subscriber\",'Enrollment Form'!$CQ371=\"No\",'Enrollment Form'!$DS371=\"\"),\"N\",IF(AND('Enrollment Form'!$C371=\"Enroll\",'Enrollment Form'!$B371=\"Subscriber\",'Enrollment Form'!$CQ371=\"Yes\"),\"-\",\"Y\")))))","v":""},{"$f":"IF($B364=\"N\",\"\",IF(AND('Enrollment Form'!$C371=\"ROC\",'Enrollment Form'!$DT371<>\"\"),\"Y\",IF(AND('Enrollment Form'!$C371=\"ROC\",'Enrollment Form'!$DT371=\"\"),\"N\",IF(AND('Enrollment Form'!$C371=\"Enroll\",'Enrollment Form'!$B371=\"Subscriber\",'Enrollment Form'!$CQ371=\"No\",'Enrollment Form'!$DT371=\"\"),\"N\",IF(AND('Enrollment Form'!$C371=\"Enroll\",'Enrollment Form'!$B371=\"Subscriber\",'Enrollment Form'!$CQ371=\"Yes\"),\"-\",\"Y\")))))","v":""},{"$f":"IF('Enrollment Form'!AH371=\"\",\"\",IF(ISERROR(SEARCH(\".\",'Enrollment Form'!AH371,SEARCH(\"@\",'Enrollment Form'!AH371))),\"N\",\"Y\"))","v":""},{"$f":"IF(OR($B364=\"N\",'Enrollment Form'!$G371=\"\"),\"\",IF('Enrollment Form'!$B371<>\"Subscriber\",\"-\",IF(COUNTIF('Enrollment Form'!$AS371:$AT371,\"Yes\")=2,\"N\",\"Y\")))","v":""},{"$f":"IF(OR('Enrollment Form'!$CC371=\"\",'Enrollment Form'!$CC371=\"No\"),\"-\",IF(AND('Enrollment Form'!$CC371=\"Yes\",'Enrollment Form'!$CD371=\"\"),\"N\",\"Y\"))","v":"-"},{"$f":"IF(OR('Enrollment Form'!$CE371=\"\",'Enrollment Form'!$CE371=\"No\"),\"-\",IF(AND('Enrollment Form'!$CE371=\"Yes\",'Enrollment Form'!$CF371=\"\"),\"N\",\"Y\"))","v":"-"},{"$f":"IF(OR('Enrollment Form'!$CG371=\"\",'Enrollment Form'!$CG371=\"No\"),\"-\",IF(AND('Enrollment Form'!$CG371=\"Yes\",'Enrollment Form'!$CH371=\"\"),\"N\",\"Y\"))","v":"-"},{"$f":"IF(OR('Enrollment Form'!$CG371=\"\",'Enrollment Form'!$CG371=\"No\"),\"-\",IF(AND('Enrollment Form'!$CG371=\"Yes\",'Enrollment Form'!$CI371=\"\"),\"N\",\"Y\"))","v":"-"},{"$f":"IF('Enrollment Form'!B371<>\"Subscriber\",\"-\",IF(AND('Enrollment Form'!B371=\"Subscriber\",'Enrollment Form'!C371=\"Enroll\",'Enrollment Form'!AA371=\"\"),\"N\",\"Y\"))","v":"-"},{"$f":"IF(OR('Enrollment Form'!B371=\"Subscriber\",'Enrollment Form'!B371=\"\"),\"-\",IF('Enrollment Form'!BI371=\"\",\"N\",\"Y\"))","v":"-"},{"$f":"IF('Enrollment Form'!B371<>\"Subscriber\",\"-\",IF(AND('Enrollment Form'!B371=\"Subscriber\",'Enrollment Form'!G371=\"\"),\"N\",\"Y\"))","v":"-"},{"$f":"IF('Enrollment Form'!A371=\"\",\"\",IF('Enrollment Form'!B371=\"Subscriber\",\"-\",IF(AND('Enrollment Form'!B371<>\"Subscriber\",'Enrollment Form'!G371='Enrollment Form'!H371),\"N\",\"Y\")))","v":""},0]
[372,{"$f":"IF('Enrollment Form'!$A372<>\"\",\"Y\",\"N\")","v":"N"},{"$f":"IF(AND('Enrollment Form'!$B372=\"\",'Enrollment Form'!$C372<>\"\"),\"N\",IF($B365=\"N\",\"\",\"Y\"))","v":""},{"$f":"IF(OR($B365=\"N\",'Enrollment Form'!G372=\"\"),\"\",IF('Enrollment Form'!$B372<>\"Subscriber\",\"\",IF('Enrollment Form'!$G372='Enrollment Form'!$H372,\"Y\",\"N\")))","v":""},{"$f":"IF($B365=\"N\",\"\",IF(AND(COUNTIFS('Enrollment Form'!$H$11:$H$1000,'Enrollment Form'!$H372,'Enrollment Form'!$B$11:$B$1000,'Enrollment Form'!$B372)>1,'Enrollment Form'!$H372<>\"\"),\"N\",\"Y\"))","v":""},{"$f":"IF($B365=\"N\",\"\",IF(LEN('Enrollment Form'!$Y372)=0,\"\",IF(LEN('Enrollment Form'!$Y372)<>5,\"N\",\"Y\")))","v":""},{"$f":"IF($B365=\"N\",\"\",IF(LEN('Enrollment Form'!$AD372=0),\"\",IF(LEN('Enrollment Form'!$AD372)<>5,\"N\",\"Y\")))","v":""},{"$f":"IF($B365=\"N\",\"\",IF(LEN('Enrollment Form'!$BL372=0),\"\",IF(LEN('Enrollment Form'!$BL372)<>5,\"N\",\"Y\")))","v":""},{"$f":"IF($B365=\"N\",\"\",IF(LEN('Enrollment Form'!$AE372)=0,\"\",IF(LEN('Enrollment Form'!$AE372)<>10,\"N\",\"Y\")))","v":""},{"$f":"IF($B365=\"N\",\"\",IF(LEN('Enrollment Form'!$AF372)=0,\"\",IF(LEN('Enrollment Form'!$AF372)<>10,\"N\",\"Y\")))","v":""},{"$f":"IF('Enrollment Form'!$O372<>\"Graded\",\"-\",IF(AND('Enrollment Form'!$O372=\"Graded\",'Enrollment Form'!$AO372<>\"\"),\"Y\",\"N\"))","v":"-"},{"$f":"IF($B365=\"N\",\"\",IF(OR('Enrollment Form'!$B372<>\"Subscriber\",'Enrollment Form'!$C372=\"ROC\"),\"-\",IF(AND('Enrollment Form'!$B372=\"Subscriber\",'Enrollment Form'!$C372=\"Enroll\",'Enrollment Form'!$AJ372<>\"\"),\"Y\",\"N\")))","v":""},{"$f":"IF($B365=\"N\",\"\",IF(OR('Enrollment Form'!$B372<>\"Subscriber\",'Enrollment Form'!$C372=\"ROC\"),\"-\",IF(AND('Enrollment Form'!$B372=\"Subscriber\",'Enrollment Form'!$C372=\"Enroll\",'Enrollment Form'!$AK372<>\"\"),\"Y\",\"N\")))","v":""},{"$f":"IF($B365=\"N\",\"\",IF(OR('Enrollment Form'!$B372<>\"Subscriber\",'Enrollment Form'!$C372=\"ROC\"),\"-\",IF(AND('Enrollment Form'!$B372=\"Subscriber\",'Enrollment Form'!$C372=\"Enroll\",'Enrollment Form'!$AL372<>\"\"),\"Y\",\"N\")))","v":""},{"$f":"IF($B365=\"N\",\"\",IF(OR('Enrollment Form'!$B372<>\"Subscriber\",'Enrollment Form'!$C372=\"ROC\"),\"-\",IF(AND('Enrollment Form'!$B372=\"Subscriber\",'Enrollment Form'!$C372=\"Enroll\",'Enrollment Form'!$AM372<>\"\"),\"Y\",\"N\")))","v":""},{"$f":"IF($B365=\"N\",\"\",IF(OR('Enrollment Form'!$B372<>\"Subscriber\",'Enrollment Form'!$C372=\"ROC\"),\"-\",IF(AND('Enrollment Form'!$B372=\"Subscriber\",'Enrollment Form'!$C372=\"Enroll\",'Enrollment Form'!$AN372<>\"\"),\"Y\",\"N\")))","v":""},{"$f":"IF($B365=\"N\",\"\",IF(OR('Enrollment Form'!$B372<>\"Subscriber\",'Enrollment Form'!$C372=\"ROC\"),\"-\",IF(AND('Enrollment Form'!$B372=\"Subscriber\",'Enrollment Form'!$C372=\"Enroll\",'Enrollment Form'!$AP372<>\"\"),\"Y\",\"N\")))","v":""},{"$f":"IF($B365=\"N\",\"\",IF($Q365=\"-\",\"-\",IF(AND($Q365=\"Y\",'Enrollment Form'!$AP372=\"No\"),\"-\",IF(AND($Q365=\"Y\",'Enrollment Form'!$AP372=\"Yes\",'Enrollment Form'!$AQ372<>\"\"),\"Y\",\"N\"))))","v":""},{"$f":"IF($B365=\"N\",\"\",IF(OR('Enrollment Form'!$B372<>\"Subscriber\",'Enrollment Form'!$C372=\"ROC\"),\"-\",IF(AND('Enrollment Form'!$B372=\"Subscriber\",'Enrollment Form'!$C372=\"Enroll\",'Enrollment Form'!$CO372<>\"\"),\"Y\",\"N\")))","v":""},{"$f":"IF($B365=\"N\",\"\",IF($S365=\"-\",\"-\",IF(AND($S365=\"Y\",'Enrollment Form'!$CO372=\"No\"),\"-\",IF(AND($S365=\"Y\",'Enrollment Form'!$CO372=\"Yes\",'Enrollment Form'!$CP372<>\"\"),\"Y\",\"N\"))))","v":""},{"$f":"IF(OR('Enrollment Form'!$AV372=\"Yes\",'Enrollment Form'!$AV372=\"\"),\"-\",IF(AND('Enrollment Form'!$AV372=\"No\",ISERROR(FIND(\"HMO\",VLOOKUP('Enrollment Form'!G372,'Enrollment Form'!H$11:J$1000,3,FALSE),1))=FALSE,COUNTA('Enrollment Form'!$AW372:$AZ372)=4),\"Y\",\"N\"))","v":"-"},{"$f":"IF($B365=\"N\",\"\",IF('Enrollment Form'!$B372=\"Subscriber\",\"-\",IF(COUNTA('Enrollment Form'!$BE372,'Enrollment Form'!$BG372)=2,\"Y\",\"N\")))","v":""},{"$f":"IF($B365=\"N\",\"\",IF(OR('Enrollment Form'!$AU372=\"\",'Enrollment Form'!$AU372=\"No\"),\"-\",IF(AND('Enrollment Form'!$AU372=\"Yes\",COUNTA('Enrollment Form'!$CK372)=1),\"Y\",\"N\")))","v":""},{"$f":"IF(OR('Enrollment Form'!$CK372=\"\",'Enrollment Form'!$CK372=\"No\"),\"-\",IF(COUNTA('Enrollment Form'!$CM372:$CN372)=2,\"Y\",\"N\"))","v":"-"},{"$f":"IF($B365=\"N\",\"\",IF(COUNTIF('Enrollment Form'!$CZ372:$DO372,\"Other\")=COUNTA('Enrollment Form'!$DF372,'Enrollment Form'!$DA372,'Enrollment Form'!$DK372,'Enrollment Form'!$DP372),\"Y\",\"N\"))","v":""},{"$f":"IF($B365=\"N\",\"\",IF(OR('Enrollment Form'!B372<>\"Subscriber\",'Enrollment Form'!C372=\"ROC\",COUNTIF('Enrollment Form'!AS372:AT372,\"Yes\")>=1),\"-\",IF(AND('Enrollment Form'!C372=\"Enroll\",COUNTIF('Enrollment Form'!AS372:AT372,\"No\")=2,'Enrollment Form'!AU372=\"\"),\"N\",\"Y\")))","v":""},{"$f":"IF(OR(B365=\"N\",'Enrollment Form'!B372<>\"Subscriber\",'Enrollment Form'!C372=\"ROC\",'Enrollment Form'!O372<>\"Multiple of Salary\"),\"-\",IF(COUNTA('Enrollment Form'!T372:U372)<2,\"N\",\"Y\"))","v":"-"},{"$f":"IF(B365=\"N\",\"\",IF(OR('Enrollment Form'!C372=\"ROC\",'Enrollment Form'!B372<>\"Subscriber\",'Enrollment Form'!O372=\"Waive\",'Enrollment Form'!O372=\"\"),\"-\",IF('Enrollment Form'!P372=\"\",\"N\",\"Y\")))","v":""},{"$f":"IF($B365=\"N\",\"\",IF(AND('Enrollment Form'!$C372=\"ROC\",'Enrollment Form'!$DS372<>\"\"),\"Y\",IF(AND('Enrollment Form'!$C372=\"ROC\",'Enrollment Form'!$DS372=\"\"),\"N\",IF(AND('Enrollment Form'!$C372=\"Enroll\",'Enrollment Form'!$B372=\"Subscriber\",'Enrollment Form'!$CQ372=\"No\",'Enrollment Form'!$DS372=\"\"),\"N\",IF(AND('Enrollment Form'!$C372=\"Enroll\",'Enrollment Form'!$B372=\"Subscriber\",'Enrollment Form'!$CQ372=\"Yes\"),\"-\",\"Y\")))))","v":""},{"$f":"IF($B365=\"N\",\"\",IF(AND('Enrollment Form'!$C372=\"ROC\",'Enrollment Form'!$DT372<>\"\"),\"Y\",IF(AND('Enrollment Form'!$C372=\"ROC\",'Enrollment Form'!$DT372=\"\"),\"N\",IF(AND('Enrollment Form'!$C372=\"Enroll\",'Enrollment Form'!$B372=\"Subscriber\",'Enrollment Form'!$CQ372=\"No\",'Enrollment Form'!$DT372=\"\"),\"N\",IF(AND('Enrollment Form'!$C372=\"Enroll\",'Enrollment Form'!$B372=\"Subscriber\",'Enrollment Form'!$CQ372=\"Yes\"),\"-\",\"Y\")))))","v":""},{"$f":"IF('Enrollment Form'!AH372=\"\",\"\",IF(ISERROR(SEARCH(\".\",'Enrollment Form'!AH372,SEARCH(\"@\",'Enrollment Form'!AH372))),\"N\",\"Y\"))","v":""},{"$f":"IF(OR($B365=\"N\",'Enrollment Form'!$G372=\"\"),\"\",IF('Enrollment Form'!$B372<>\"Subscriber\",\"-\",IF(COUNTIF('Enrollment Form'!$AS372:$AT372,\"Yes\")=2,\"N\",\"Y\")))","v":""},{"$f":"IF(OR('Enrollment Form'!$CC372=\"\",'Enrollment Form'!$CC372=\"No\"),\"-\",IF(AND('Enrollment Form'!$CC372=\"Yes\",'Enrollment Form'!$CD372=\"\"),\"N\",\"Y\"))","v":"-"},{"$f":"IF(OR('Enrollment Form'!$CE372=\"\",'Enrollment Form'!$CE372=\"No\"),\"-\",IF(AND('Enrollment Form'!$CE372=\"Yes\",'Enrollment Form'!$CF372=\"\"),\"N\",\"Y\"))","v":"-"},{"$f":"IF(OR('Enrollment Form'!$CG372=\"\",'Enrollment Form'!$CG372=\"No\"),\"-\",IF(AND('Enrollment Form'!$CG372=\"Yes\",'Enrollment Form'!$CH372=\"\"),\"N\",\"Y\"))","v":"-"},{"$f":"IF(OR('Enrollment Form'!$CG372=\"\",'Enrollment Form'!$CG372=\"No\"),\"-\",IF(AND('Enrollment Form'!$CG372=\"Yes\",'Enrollment Form'!$CI372=\"\"),\"N\",\"Y\"))","v":"-"},{"$f":"IF('Enrollment Form'!B372<>\"Subscriber\",\"-\",IF(AND('Enrollment Form'!B372=\"Subscriber\",'Enrollment Form'!C372=\"Enroll\",'Enrollment Form'!AA372=\"\"),\"N\",\"Y\"))","v":"-"},{"$f":"IF(OR('Enrollment Form'!B372=\"Subscriber\",'Enrollment Form'!B372=\"\"),\"-\",IF('Enrollment Form'!BI372=\"\",\"N\",\"Y\"))","v":"-"},{"$f":"IF('Enrollment Form'!B372<>\"Subscriber\",\"-\",IF(AND('Enrollment Form'!B372=\"Subscriber\",'Enrollment Form'!G372=\"\"),\"N\",\"Y\"))","v":"-"},{"$f":"IF('Enrollment Form'!A372=\"\",\"\",IF('Enrollment Form'!B372=\"Subscriber\",\"-\",IF(AND('Enrollment Form'!B372<>\"Subscriber\",'Enrollment Form'!G372='Enrollment Form'!H372),\"N\",\"Y\")))","v":""},0]
[373,{"$f":"IF('Enrollment Form'!$A373<>\"\",\"Y\",\"N\")","v":"N"},{"$f":"IF(AND('Enrollment Form'!$B373=\"\",'Enrollment Form'!$C373<>\"\"),\"N\",IF($B366=\"N\",\"\",\"Y\"))","v":""},{"$f":"IF(OR($B366=\"N\",'Enrollment Form'!G373=\"\"),\"\",IF('Enrollment Form'!$B373<>\"Subscriber\",\"\",IF('Enrollment Form'!$G373='Enrollment Form'!$H373,\"Y\",\"N\")))","v":""},{"$f":"IF($B366=\"N\",\"\",IF(AND(COUNTIFS('Enrollment Form'!$H$11:$H$1000,'Enrollment Form'!$H373,'Enrollment Form'!$B$11:$B$1000,'Enrollment Form'!$B373)>1,'Enrollment Form'!$H373<>\"\"),\"N\",\"Y\"))","v":""},{"$f":"IF($B366=\"N\",\"\",IF(LEN('Enrollment Form'!$Y373)=0,\"\",IF(LEN('Enrollment Form'!$Y373)<>5,\"N\",\"Y\")))","v":""},{"$f":"IF($B366=\"N\",\"\",IF(LEN('Enrollment Form'!$AD373=0),\"\",IF(LEN('Enrollment Form'!$AD373)<>5,\"N\",\"Y\")))","v":""},{"$f":"IF($B366=\"N\",\"\",IF(LEN('Enrollment Form'!$BL373=0),\"\",IF(LEN('Enrollment Form'!$BL373)<>5,\"N\",\"Y\")))","v":""},{"$f":"IF($B366=\"N\",\"\",IF(LEN('Enrollment Form'!$AE373)=0,\"\",IF(LEN('Enrollment Form'!$AE373)<>10,\"N\",\"Y\")))","v":""},{"$f":"IF($B366=\"N\",\"\",IF(LEN('Enrollment Form'!$AF373)=0,\"\",IF(LEN('Enrollment Form'!$AF373)<>10,\"N\",\"Y\")))","v":""},{"$f":"IF('Enrollment Form'!$O373<>\"Graded\",\"-\",IF(AND('Enrollment Form'!$O373=\"Graded\",'Enrollment Form'!$AO373<>\"\"),\"Y\",\"N\"))","v":"-"},{"$f":"IF($B366=\"N\",\"\",IF(OR('Enrollment Form'!$B373<>\"Subscriber\",'Enrollment Form'!$C373=\"ROC\"),\"-\",IF(AND('Enrollment Form'!$B373=\"Subscriber\",'Enrollment Form'!$C373=\"Enroll\",'Enrollment Form'!$AJ373<>\"\"),\"Y\",\"N\")))","v":""},{"$f":"IF($B366=\"N\",\"\",IF(OR('Enrollment Form'!$B373<>\"Subscriber\",'Enrollment Form'!$C373=\"ROC\"),\"-\",IF(AND('Enrollment Form'!$B373=\"Subscriber\",'Enrollment Form'!$C373=\"Enroll\",'Enrollment Form'!$AK373<>\"\"),\"Y\",\"N\")))","v":""},{"$f":"IF($B366=\"N\",\"\",IF(OR('Enrollment Form'!$B373<>\"Subscriber\",'Enrollment Form'!$C373=\"ROC\"),\"-\",IF(AND('Enrollment Form'!$B373=\"Subscriber\",'Enrollment Form'!$C373=\"Enroll\",'Enrollment Form'!$AL373<>\"\"),\"Y\",\"N\")))","v":""},{"$f":"IF($B366=\"N\",\"\",IF(OR('Enrollment Form'!$B373<>\"Subscriber\",'Enrollment Form'!$C373=\"ROC\"),\"-\",IF(AND('Enrollment Form'!$B373=\"Subscriber\",'Enrollment Form'!$C373=\"Enroll\",'Enrollment Form'!$AM373<>\"\"),\"Y\",\"N\")))","v":""},{"$f":"IF($B366=\"N\",\"\",IF(OR('Enrollment Form'!$B373<>\"Subscriber\",'Enrollment Form'!$C373=\"ROC\"),\"-\",IF(AND('Enrollment Form'!$B373=\"Subscriber\",'Enrollment Form'!$C373=\"Enroll\",'Enrollment Form'!$AN373<>\"\"),\"Y\",\"N\")))","v":""},{"$f":"IF($B366=\"N\",\"\",IF(OR('Enrollment Form'!$B373<>\"Subscriber\",'Enrollment Form'!$C373=\"ROC\"),\"-\",IF(AND('Enrollment Form'!$B373=\"Subscriber\",'Enrollment Form'!$C373=\"Enroll\",'Enrollment Form'!$AP373<>\"\"),\"Y\",\"N\")))","v":""},{"$f":"IF($B366=\"N\",\"\",IF($Q366=\"-\",\"-\",IF(AND($Q366=\"Y\",'Enrollment Form'!$AP373=\"No\"),\"-\",IF(AND($Q366=\"Y\",'Enrollment Form'!$AP373=\"Yes\",'Enrollment Form'!$AQ373<>\"\"),\"Y\",\"N\"))))","v":""},{"$f":"IF($B366=\"N\",\"\",IF(OR('Enrollment Form'!$B373<>\"Subscriber\",'Enrollment Form'!$C373=\"ROC\"),\"-\",IF(AND('Enrollment Form'!$B373=\"Subscriber\",'Enrollment Form'!$C373=\"Enroll\",'Enrollment Form'!$CO373<>\"\"),\"Y\",\"N\")))","v":""},{"$f":"IF($B366=\"N\",\"\",IF($S366=\"-\",\"-\",IF(AND($S366=\"Y\",'Enrollment Form'!$CO373=\"No\"),\"-\",IF(AND($S366=\"Y\",'Enrollment Form'!$CO373=\"Yes\",'Enrollment Form'!$CP373<>\"\"),\"Y\",\"N\"))))","v":""},{"$f":"IF(OR('Enrollment Form'!$AV373=\"Yes\",'Enrollment Form'!$AV373=\"\"),\"-\",IF(AND('Enrollment Form'!$AV373=\"No\",ISERROR(FIND(\"HMO\",VLOOKUP('Enrollment Form'!G373,'Enrollment Form'!H$11:J$1000,3,FALSE),1))=FALSE,COUNTA('Enrollment Form'!$AW373:$AZ373)=4),\"Y\",\"N\"))","v":"-"},{"$f":"IF($B366=\"N\",\"\",IF('Enrollment Form'!$B373=\"Subscriber\",\"-\",IF(COUNTA('Enrollment Form'!$BE373,'Enrollment Form'!$BG373)=2,\"Y\",\"N\")))","v":""},{"$f":"IF($B366=\"N\",\"\",IF(OR('Enrollment Form'!$AU373=\"\",'Enrollment Form'!$AU373=\"No\"),\"-\",IF(AND('Enrollment Form'!$AU373=\"Yes\",COUNTA('Enrollment Form'!$CK373)=1),\"Y\",\"N\")))","v":""},{"$f":"IF(OR('Enrollment Form'!$CK373=\"\",'Enrollment Form'!$CK373=\"No\"),\"-\",IF(COUNTA('Enrollment Form'!$CM373:$CN373)=2,\"Y\",\"N\"))","v":"-"},{"$f":"IF($B366=\"N\",\"\",IF(COUNTIF('Enrollment Form'!$CZ373:$DO373,\"Other\")=COUNTA('Enrollment Form'!$DF373,'Enrollment Form'!$DA373,'Enrollment Form'!$DK373,'Enrollment Form'!$DP373),\"Y\",\"N\"))","v":""},{"$f":"IF($B366=\"N\",\"\",IF(OR('Enrollment Form'!B373<>\"Subscriber\",'Enrollment Form'!C373=\"ROC\",COUNTIF('Enrollment Form'!AS373:AT373,\"Yes\")>=1),\"-\",IF(AND('Enrollment Form'!C373=\"Enroll\",COUNTIF('Enrollment Form'!AS373:AT373,\"No\")=2,'Enrollment Form'!AU373=\"\"),\"N\",\"Y\")))","v":""},{"$f":"IF(OR(B366=\"N\",'Enrollment Form'!B373<>\"Subscriber\",'Enrollment Form'!C373=\"ROC\",'Enrollment Form'!O373<>\"Multiple of Salary\"),\"-\",IF(COUNTA('Enrollment Form'!T373:U373)<2,\"N\",\"Y\"))","v":"-"},{"$f":"IF(B366=\"N\",\"\",IF(OR('Enrollment Form'!C373=\"ROC\",'Enrollment Form'!B373<>\"Subscriber\",'Enrollment Form'!O373=\"Waive\",'Enrollment Form'!O373=\"\"),\"-\",IF('Enrollment Form'!P373=\"\",\"N\",\"Y\")))","v":""},{"$f":"IF($B366=\"N\",\"\",IF(AND('Enrollment Form'!$C373=\"ROC\",'Enrollment Form'!$DS373<>\"\"),\"Y\",IF(AND('Enrollment Form'!$C373=\"ROC\",'Enrollment Form'!$DS373=\"\"),\"N\",IF(AND('Enrollment Form'!$C373=\"Enroll\",'Enrollment Form'!$B373=\"Subscriber\",'Enrollment Form'!$CQ373=\"No\",'Enrollment Form'!$DS373=\"\"),\"N\",IF(AND('Enrollment Form'!$C373=\"Enroll\",'Enrollment Form'!$B373=\"Subscriber\",'Enrollment Form'!$CQ373=\"Yes\"),\"-\",\"Y\")))))","v":""},{"$f":"IF($B366=\"N\",\"\",IF(AND('Enrollment Form'!$C373=\"ROC\",'Enrollment Form'!$DT373<>\"\"),\"Y\",IF(AND('Enrollment Form'!$C373=\"ROC\",'Enrollment Form'!$DT373=\"\"),\"N\",IF(AND('Enrollment Form'!$C373=\"Enroll\",'Enrollment Form'!$B373=\"Subscriber\",'Enrollment Form'!$CQ373=\"No\",'Enrollment Form'!$DT373=\"\"),\"N\",IF(AND('Enrollment Form'!$C373=\"Enroll\",'Enrollment Form'!$B373=\"Subscriber\",'Enrollment Form'!$CQ373=\"Yes\"),\"-\",\"Y\")))))","v":""},{"$f":"IF('Enrollment Form'!AH373=\"\",\"\",IF(ISERROR(SEARCH(\".\",'Enrollment Form'!AH373,SEARCH(\"@\",'Enrollment Form'!AH373))),\"N\",\"Y\"))","v":""},{"$f":"IF(OR($B366=\"N\",'Enrollment Form'!$G373=\"\"),\"\",IF('Enrollment Form'!$B373<>\"Subscriber\",\"-\",IF(COUNTIF('Enrollment Form'!$AS373:$AT373,\"Yes\")=2,\"N\",\"Y\")))","v":""},{"$f":"IF(OR('Enrollment Form'!$CC373=\"\",'Enrollment Form'!$CC373=\"No\"),\"-\",IF(AND('Enrollment Form'!$CC373=\"Yes\",'Enrollment Form'!$CD373=\"\"),\"N\",\"Y\"))","v":"-"},{"$f":"IF(OR('Enrollment Form'!$CE373=\"\",'Enrollment Form'!$CE373=\"No\"),\"-\",IF(AND('Enrollment Form'!$CE373=\"Yes\",'Enrollment Form'!$CF373=\"\"),\"N\",\"Y\"))","v":"-"},{"$f":"IF(OR('Enrollment Form'!$CG373=\"\",'Enrollment Form'!$CG373=\"No\"),\"-\",IF(AND('Enrollment Form'!$CG373=\"Yes\",'Enrollment Form'!$CH373=\"\"),\"N\",\"Y\"))","v":"-"},{"$f":"IF(OR('Enrollment Form'!$CG373=\"\",'Enrollment Form'!$CG373=\"No\"),\"-\",IF(AND('Enrollment Form'!$CG373=\"Yes\",'Enrollment Form'!$CI373=\"\"),\"N\",\"Y\"))","v":"-"},{"$f":"IF('Enrollment Form'!B373<>\"Subscriber\",\"-\",IF(AND('Enrollment Form'!B373=\"Subscriber\",'Enrollment Form'!C373=\"Enroll\",'Enrollment Form'!AA373=\"\"),\"N\",\"Y\"))","v":"-"},{"$f":"IF(OR('Enrollment Form'!B373=\"Subscriber\",'Enrollment Form'!B373=\"\"),\"-\",IF('Enrollment Form'!BI373=\"\",\"N\",\"Y\"))","v":"-"},{"$f":"IF('Enrollment Form'!B373<>\"Subscriber\",\"-\",IF(AND('Enrollment Form'!B373=\"Subscriber\",'Enrollment Form'!G373=\"\"),\"N\",\"Y\"))","v":"-"},{"$f":"IF('Enrollment Form'!A373=\"\",\"\",IF('Enrollment Form'!B373=\"Subscriber\",\"-\",IF(AND('Enrollment Form'!B373<>\"Subscriber\",'Enrollment Form'!G373='Enrollment Form'!H373),\"N\",\"Y\")))","v":""},0]
[374,{"$f":"IF('Enrollment Form'!$A374<>\"\",\"Y\",\"N\")","v":"N"},{"$f":"IF(AND('Enrollment Form'!$B374=\"\",'Enrollment Form'!$C374<>\"\"),\"N\",IF($B367=\"N\",\"\",\"Y\"))","v":""},{"$f":"IF(OR($B367=\"N\",'Enrollment Form'!G374=\"\"),\"\",IF('Enrollment Form'!$B374<>\"Subscriber\",\"\",IF('Enrollment Form'!$G374='Enrollment Form'!$H374,\"Y\",\"N\")))","v":""},{"$f":"IF($B367=\"N\",\"\",IF(AND(COUNTIFS('Enrollment Form'!$H$11:$H$1000,'Enrollment Form'!$H374,'Enrollment Form'!$B$11:$B$1000,'Enrollment Form'!$B374)>1,'Enrollment Form'!$H374<>\"\"),\"N\",\"Y\"))","v":""},{"$f":"IF($B367=\"N\",\"\",IF(LEN('Enrollment Form'!$Y374)=0,\"\",IF(LEN('Enrollment Form'!$Y374)<>5,\"N\",\"Y\")))","v":""},{"$f":"IF($B367=\"N\",\"\",IF(LEN('Enrollment Form'!$AD374=0),\"\",IF(LEN('Enrollment Form'!$AD374)<>5,\"N\",\"Y\")))","v":""},{"$f":"IF($B367=\"N\",\"\",IF(LEN('Enrollment Form'!$BL374=0),\"\",IF(LEN('Enrollment Form'!$BL374)<>5,\"N\",\"Y\")))","v":""},{"$f":"IF($B367=\"N\",\"\",IF(LEN('Enrollment Form'!$AE374)=0,\"\",IF(LEN('Enrollment Form'!$AE374)<>10,\"N\",\"Y\")))","v":""},{"$f":"IF($B367=\"N\",\"\",IF(LEN('Enrollment Form'!$AF374)=0,\"\",IF(LEN('Enrollment Form'!$AF374)<>10,\"N\",\"Y\")))","v":""},{"$f":"IF('Enrollment Form'!$O374<>\"Graded\",\"-\",IF(AND('Enrollment Form'!$O374=\"Graded\",'Enrollment Form'!$AO374<>\"\"),\"Y\",\"N\"))","v":"-"},{"$f":"IF($B367=\"N\",\"\",IF(OR('Enrollment Form'!$B374<>\"Subscriber\",'Enrollment Form'!$C374=\"ROC\"),\"-\",IF(AND('Enrollment Form'!$B374=\"Subscriber\",'Enrollment Form'!$C374=\"Enroll\",'Enrollment Form'!$AJ374<>\"\"),\"Y\",\"N\")))","v":""},{"$f":"IF($B367=\"N\",\"\",IF(OR('Enrollment Form'!$B374<>\"Subscriber\",'Enrollment Form'!$C374=\"ROC\"),\"-\",IF(AND('Enrollment Form'!$B374=\"Subscriber\",'Enrollment Form'!$C374=\"Enroll\",'Enrollment Form'!$AK374<>\"\"),\"Y\",\"N\")))","v":""},{"$f":"IF($B367=\"N\",\"\",IF(OR('Enrollment Form'!$B374<>\"Subscriber\",'Enrollment Form'!$C374=\"ROC\"),\"-\",IF(AND('Enrollment Form'!$B374=\"Subscriber\",'Enrollment Form'!$C374=\"Enroll\",'Enrollment Form'!$AL374<>\"\"),\"Y\",\"N\")))","v":""},{"$f":"IF($B367=\"N\",\"\",IF(OR('Enrollment Form'!$B374<>\"Subscriber\",'Enrollment Form'!$C374=\"ROC\"),\"-\",IF(AND('Enrollment Form'!$B374=\"Subscriber\",'Enrollment Form'!$C374=\"Enroll\",'Enrollment Form'!$AM374<>\"\"),\"Y\",\"N\")))","v":""},{"$f":"IF($B367=\"N\",\"\",IF(OR('Enrollment Form'!$B374<>\"Subscriber\",'Enrollment Form'!$C374=\"ROC\"),\"-\",IF(AND('Enrollment Form'!$B374=\"Subscriber\",'Enrollment Form'!$C374=\"Enroll\",'Enrollment Form'!$AN374<>\"\"),\"Y\",\"N\")))","v":""},{"$f":"IF($B367=\"N\",\"\",IF(OR('Enrollment Form'!$B374<>\"Subscriber\",'Enrollment Form'!$C374=\"ROC\"),\"-\",IF(AND('Enrollment Form'!$B374=\"Subscriber\",'Enrollment Form'!$C374=\"Enroll\",'Enrollment Form'!$AP374<>\"\"),\"Y\",\"N\")))","v":""},{"$f":"IF($B367=\"N\",\"\",IF($Q367=\"-\",\"-\",IF(AND($Q367=\"Y\",'Enrollment Form'!$AP374=\"No\"),\"-\",IF(AND($Q367=\"Y\",'Enrollment Form'!$AP374=\"Yes\",'Enrollment Form'!$AQ374<>\"\"),\"Y\",\"N\"))))","v":""},{"$f":"IF($B367=\"N\",\"\",IF(OR('Enrollment Form'!$B374<>\"Subscriber\",'Enrollment Form'!$C374=\"ROC\"),\"-\",IF(AND('Enrollment Form'!$B374=\"Subscriber\",'Enrollment Form'!$C374=\"Enroll\",'Enrollment Form'!$CO374<>\"\"),\"Y\",\"N\")))","v":""},{"$f":"IF($B367=\"N\",\"\",IF($S367=\"-\",\"-\",IF(AND($S367=\"Y\",'Enrollment Form'!$CO374=\"No\"),\"-\",IF(AND($S367=\"Y\",'Enrollment Form'!$CO374=\"Yes\",'Enrollment Form'!$CP374<>\"\"),\"Y\",\"N\"))))","v":""},{"$f":"IF(OR('Enrollment Form'!$AV374=\"Yes\",'Enrollment Form'!$AV374=\"\"),\"-\",IF(AND('Enrollment Form'!$AV374=\"No\",ISERROR(FIND(\"HMO\",VLOOKUP('Enrollment Form'!G374,'Enrollment Form'!H$11:J$1000,3,FALSE),1))=FALSE,COUNTA('Enrollment Form'!$AW374:$AZ374)=4),\"Y\",\"N\"))","v":"-"},{"$f":"IF($B367=\"N\",\"\",IF('Enrollment Form'!$B374=\"Subscriber\",\"-\",IF(COUNTA('Enrollment Form'!$BE374,'Enrollment Form'!$BG374)=2,\"Y\",\"N\")))","v":""},{"$f":"IF($B367=\"N\",\"\",IF(OR('Enrollment Form'!$AU374=\"\",'Enrollment Form'!$AU374=\"No\"),\"-\",IF(AND('Enrollment Form'!$AU374=\"Yes\",COUNTA('Enrollment Form'!$CK374)=1),\"Y\",\"N\")))","v":""},{"$f":"IF(OR('Enrollment Form'!$CK374=\"\",'Enrollment Form'!$CK374=\"No\"),\"-\",IF(COUNTA('Enrollment Form'!$CM374:$CN374)=2,\"Y\",\"N\"))","v":"-"},{"$f":"IF($B367=\"N\",\"\",IF(COUNTIF('Enrollment Form'!$CZ374:$DO374,\"Other\")=COUNTA('Enrollment Form'!$DF374,'Enrollment Form'!$DA374,'Enrollment Form'!$DK374,'Enrollment Form'!$DP374),\"Y\",\"N\"))","v":""},{"$f":"IF($B367=\"N\",\"\",IF(OR('Enrollment Form'!B374<>\"Subscriber\",'Enrollment Form'!C374=\"ROC\",COUNTIF('Enrollment Form'!AS374:AT374,\"Yes\")>=1),\"-\",IF(AND('Enrollment Form'!C374=\"Enroll\",COUNTIF('Enrollment Form'!AS374:AT374,\"No\")=2,'Enrollment Form'!AU374=\"\"),\"N\",\"Y\")))","v":""},{"$f":"IF(OR(B367=\"N\",'Enrollment Form'!B374<>\"Subscriber\",'Enrollment Form'!C374=\"ROC\",'Enrollment Form'!O374<>\"Multiple of Salary\"),\"-\",IF(COUNTA('Enrollment Form'!T374:U374)<2,\"N\",\"Y\"))","v":"-"},{"$f":"IF(B367=\"N\",\"\",IF(OR('Enrollment Form'!C374=\"ROC\",'Enrollment Form'!B374<>\"Subscriber\",'Enrollment Form'!O374=\"Waive\",'Enrollment Form'!O374=\"\"),\"-\",IF('Enrollment Form'!P374=\"\",\"N\",\"Y\")))","v":""},{"$f":"IF($B367=\"N\",\"\",IF(AND('Enrollment Form'!$C374=\"ROC\",'Enrollment Form'!$DS374<>\"\"),\"Y\",IF(AND('Enrollment Form'!$C374=\"ROC\",'Enrollment Form'!$DS374=\"\"),\"N\",IF(AND('Enrollment Form'!$C374=\"Enroll\",'Enrollment Form'!$B374=\"Subscriber\",'Enrollment Form'!$CQ374=\"No\",'Enrollment Form'!$DS374=\"\"),\"N\",IF(AND('Enrollment Form'!$C374=\"Enroll\",'Enrollment Form'!$B374=\"Subscriber\",'Enrollment Form'!$CQ374=\"Yes\"),\"-\",\"Y\")))))","v":""},{"$f":"IF($B367=\"N\",\"\",IF(AND('Enrollment Form'!$C374=\"ROC\",'Enrollment Form'!$DT374<>\"\"),\"Y\",IF(AND('Enrollment Form'!$C374=\"ROC\",'Enrollment Form'!$DT374=\"\"),\"N\",IF(AND('Enrollment Form'!$C374=\"Enroll\",'Enrollment Form'!$B374=\"Subscriber\",'Enrollment Form'!$CQ374=\"No\",'Enrollment Form'!$DT374=\"\"),\"N\",IF(AND('Enrollment Form'!$C374=\"Enroll\",'Enrollment Form'!$B374=\"Subscriber\",'Enrollment Form'!$CQ374=\"Yes\"),\"-\",\"Y\")))))","v":""},{"$f":"IF('Enrollment Form'!AH374=\"\",\"\",IF(ISERROR(SEARCH(\".\",'Enrollment Form'!AH374,SEARCH(\"@\",'Enrollment Form'!AH374))),\"N\",\"Y\"))","v":""},{"$f":"IF(OR($B367=\"N\",'Enrollment Form'!$G374=\"\"),\"\",IF('Enrollment Form'!$B374<>\"Subscriber\",\"-\",IF(COUNTIF('Enrollment Form'!$AS374:$AT374,\"Yes\")=2,\"N\",\"Y\")))","v":""},{"$f":"IF(OR('Enrollment Form'!$CC374=\"\",'Enrollment Form'!$CC374=\"No\"),\"-\",IF(AND('Enrollment Form'!$CC374=\"Yes\",'Enrollment Form'!$CD374=\"\"),\"N\",\"Y\"))","v":"-"},{"$f":"IF(OR('Enrollment Form'!$CE374=\"\",'Enrollment Form'!$CE374=\"No\"),\"-\",IF(AND('Enrollment Form'!$CE374=\"Yes\",'Enrollment Form'!$CF374=\"\"),\"N\",\"Y\"))","v":"-"},{"$f":"IF(OR('Enrollment Form'!$CG374=\"\",'Enrollment Form'!$CG374=\"No\"),\"-\",IF(AND('Enrollment Form'!$CG374=\"Yes\",'Enrollment Form'!$CH374=\"\"),\"N\",\"Y\"))","v":"-"},{"$f":"IF(OR('Enrollment Form'!$CG374=\"\",'Enrollment Form'!$CG374=\"No\"),\"-\",IF(AND('Enrollment Form'!$CG374=\"Yes\",'Enrollment Form'!$CI374=\"\"),\"N\",\"Y\"))","v":"-"},{"$f":"IF('Enrollment Form'!B374<>\"Subscriber\",\"-\",IF(AND('Enrollment Form'!B374=\"Subscriber\",'Enrollment Form'!C374=\"Enroll\",'Enrollment Form'!AA374=\"\"),\"N\",\"Y\"))","v":"-"},{"$f":"IF(OR('Enrollment Form'!B374=\"Subscriber\",'Enrollment Form'!B374=\"\"),\"-\",IF('Enrollment Form'!BI374=\"\",\"N\",\"Y\"))","v":"-"},{"$f":"IF('Enrollment Form'!B374<>\"Subscriber\",\"-\",IF(AND('Enrollment Form'!B374=\"Subscriber\",'Enrollment Form'!G374=\"\"),\"N\",\"Y\"))","v":"-"},{"$f":"IF('Enrollment Form'!A374=\"\",\"\",IF('Enrollment Form'!B374=\"Subscriber\",\"-\",IF(AND('Enrollment Form'!B374<>\"Subscriber\",'Enrollment Form'!G374='Enrollment Form'!H374),\"N\",\"Y\")))","v":""},0]
[375,{"$f":"IF('Enrollment Form'!$A375<>\"\",\"Y\",\"N\")","v":"N"},{"$f":"IF(AND('Enrollment Form'!$B375=\"\",'Enrollment Form'!$C375<>\"\"),\"N\",IF($B368=\"N\",\"\",\"Y\"))","v":""},{"$f":"IF(OR($B368=\"N\",'Enrollment Form'!G375=\"\"),\"\",IF('Enrollment Form'!$B375<>\"Subscriber\",\"\",IF('Enrollment Form'!$G375='Enrollment Form'!$H375,\"Y\",\"N\")))","v":""},{"$f":"IF($B368=\"N\",\"\",IF(AND(COUNTIFS('Enrollment Form'!$H$11:$H$1000,'Enrollment Form'!$H375,'Enrollment Form'!$B$11:$B$1000,'Enrollment Form'!$B375)>1,'Enrollment Form'!$H375<>\"\"),\"N\",\"Y\"))","v":""},{"$f":"IF($B368=\"N\",\"\",IF(LEN('Enrollment Form'!$Y375)=0,\"\",IF(LEN('Enrollment Form'!$Y375)<>5,\"N\",\"Y\")))","v":""},{"$f":"IF($B368=\"N\",\"\",IF(LEN('Enrollment Form'!$AD375=0),\"\",IF(LEN('Enrollment Form'!$AD375)<>5,\"N\",\"Y\")))","v":""},{"$f":"IF($B368=\"N\",\"\",IF(LEN('Enrollment Form'!$BL375=0),\"\",IF(LEN('Enrollment Form'!$BL375)<>5,\"N\",\"Y\")))","v":""},{"$f":"IF($B368=\"N\",\"\",IF(LEN('Enrollment Form'!$AE375)=0,\"\",IF(LEN('Enrollment Form'!$AE375)<>10,\"N\",\"Y\")))","v":""},{"$f":"IF($B368=\"N\",\"\",IF(LEN('Enrollment Form'!$AF375)=0,\"\",IF(LEN('Enrollment Form'!$AF375)<>10,\"N\",\"Y\")))","v":""},{"$f":"IF('Enrollment Form'!$O375<>\"Graded\",\"-\",IF(AND('Enrollment Form'!$O375=\"Graded\",'Enrollment Form'!$AO375<>\"\"),\"Y\",\"N\"))","v":"-"},{"$f":"IF($B368=\"N\",\"\",IF(OR('Enrollment Form'!$B375<>\"Subscriber\",'Enrollment Form'!$C375=\"ROC\"),\"-\",IF(AND('Enrollment Form'!$B375=\"Subscriber\",'Enrollment Form'!$C375=\"Enroll\",'Enrollment Form'!$AJ375<>\"\"),\"Y\",\"N\")))","v":""},{"$f":"IF($B368=\"N\",\"\",IF(OR('Enrollment Form'!$B375<>\"Subscriber\",'Enrollment Form'!$C375=\"ROC\"),\"-\",IF(AND('Enrollment Form'!$B375=\"Subscriber\",'Enrollment Form'!$C375=\"Enroll\",'Enrollment Form'!$AK375<>\"\"),\"Y\",\"N\")))","v":""},{"$f":"IF($B368=\"N\",\"\",IF(OR('Enrollment Form'!$B375<>\"Subscriber\",'Enrollment Form'!$C375=\"ROC\"),\"-\",IF(AND('Enrollment Form'!$B375=\"Subscriber\",'Enrollment Form'!$C375=\"Enroll\",'Enrollment Form'!$AL375<>\"\"),\"Y\",\"N\")))","v":""},{"$f":"IF($B368=\"N\",\"\",IF(OR('Enrollment Form'!$B375<>\"Subscriber\",'Enrollment Form'!$C375=\"ROC\"),\"-\",IF(AND('Enrollment Form'!$B375=\"Subscriber\",'Enrollment Form'!$C375=\"Enroll\",'Enrollment Form'!$AM375<>\"\"),\"Y\",\"N\")))","v":""},{"$f":"IF($B368=\"N\",\"\",IF(OR('Enrollment Form'!$B375<>\"Subscriber\",'Enrollment Form'!$C375=\"ROC\"),\"-\",IF(AND('Enrollment Form'!$B375=\"Subscriber\",'Enrollment Form'!$C375=\"Enroll\",'Enrollment Form'!$AN375<>\"\"),\"Y\",\"N\")))","v":""},{"$f":"IF($B368=\"N\",\"\",IF(OR('Enrollment Form'!$B375<>\"Subscriber\",'Enrollment Form'!$C375=\"ROC\"),\"-\",IF(AND('Enrollment Form'!$B375=\"Subscriber\",'Enrollment Form'!$C375=\"Enroll\",'Enrollment Form'!$AP375<>\"\"),\"Y\",\"N\")))","v":""},{"$f":"IF($B368=\"N\",\"\",IF($Q368=\"-\",\"-\",IF(AND($Q368=\"Y\",'Enrollment Form'!$AP375=\"No\"),\"-\",IF(AND($Q368=\"Y\",'Enrollment Form'!$AP375=\"Yes\",'Enrollment Form'!$AQ375<>\"\"),\"Y\",\"N\"))))","v":""},{"$f":"IF($B368=\"N\",\"\",IF(OR('Enrollment Form'!$B375<>\"Subscriber\",'Enrollment Form'!$C375=\"ROC\"),\"-\",IF(AND('Enrollment Form'!$B375=\"Subscriber\",'Enrollment Form'!$C375=\"Enroll\",'Enrollment Form'!$CO375<>\"\"),\"Y\",\"N\")))","v":""},{"$f":"IF($B368=\"N\",\"\",IF($S368=\"-\",\"-\",IF(AND($S368=\"Y\",'Enrollment Form'!$CO375=\"No\"),\"-\",IF(AND($S368=\"Y\",'Enrollment Form'!$CO375=\"Yes\",'Enrollment Form'!$CP375<>\"\"),\"Y\",\"N\"))))","v":""},{"$f":"IF(OR('Enrollment Form'!$AV375=\"Yes\",'Enrollment Form'!$AV375=\"\"),\"-\",IF(AND('Enrollment Form'!$AV375=\"No\",ISERROR(FIND(\"HMO\",VLOOKUP('Enrollment Form'!G375,'Enrollment Form'!H$11:J$1000,3,FALSE),1))=FALSE,COUNTA('Enrollment Form'!$AW375:$AZ375)=4),\"Y\",\"N\"))","v":"-"},{"$f":"IF($B368=\"N\",\"\",IF('Enrollment Form'!$B375=\"Subscriber\",\"-\",IF(COUNTA('Enrollment Form'!$BE375,'Enrollment Form'!$BG375)=2,\"Y\",\"N\")))","v":""},{"$f":"IF($B368=\"N\",\"\",IF(OR('Enrollment Form'!$AU375=\"\",'Enrollment Form'!$AU375=\"No\"),\"-\",IF(AND('Enrollment Form'!$AU375=\"Yes\",COUNTA('Enrollment Form'!$CK375)=1),\"Y\",\"N\")))","v":""},{"$f":"IF(OR('Enrollment Form'!$CK375=\"\",'Enrollment Form'!$CK375=\"No\"),\"-\",IF(COUNTA('Enrollment Form'!$CM375:$CN375)=2,\"Y\",\"N\"))","v":"-"},{"$f":"IF($B368=\"N\",\"\",IF(COUNTIF('Enrollment Form'!$CZ375:$DO375,\"Other\")=COUNTA('Enrollment Form'!$DF375,'Enrollment Form'!$DA375,'Enrollment Form'!$DK375,'Enrollment Form'!$DP375),\"Y\",\"N\"))","v":""},{"$f":"IF($B368=\"N\",\"\",IF(OR('Enrollment Form'!B375<>\"Subscriber\",'Enrollment Form'!C375=\"ROC\",COUNTIF('Enrollment Form'!AS375:AT375,\"Yes\")>=1),\"-\",IF(AND('Enrollment Form'!C375=\"Enroll\",COUNTIF('Enrollment Form'!AS375:AT375,\"No\")=2,'Enrollment Form'!AU375=\"\"),\"N\",\"Y\")))","v":""},{"$f":"IF(OR(B368=\"N\",'Enrollment Form'!B375<>\"Subscriber\",'Enrollment Form'!C375=\"ROC\",'Enrollment Form'!O375<>\"Multiple of Salary\"),\"-\",IF(COUNTA('Enrollment Form'!T375:U375)<2,\"N\",\"Y\"))","v":"-"},{"$f":"IF(B368=\"N\",\"\",IF(OR('Enrollment Form'!C375=\"ROC\",'Enrollment Form'!B375<>\"Subscriber\",'Enrollment Form'!O375=\"Waive\",'Enrollment Form'!O375=\"\"),\"-\",IF('Enrollment Form'!P375=\"\",\"N\",\"Y\")))","v":""},{"$f":"IF($B368=\"N\",\"\",IF(AND('Enrollment Form'!$C375=\"ROC\",'Enrollment Form'!$DS375<>\"\"),\"Y\",IF(AND('Enrollment Form'!$C375=\"ROC\",'Enrollment Form'!$DS375=\"\"),\"N\",IF(AND('Enrollment Form'!$C375=\"Enroll\",'Enrollment Form'!$B375=\"Subscriber\",'Enrollment Form'!$CQ375=\"No\",'Enrollment Form'!$DS375=\"\"),\"N\",IF(AND('Enrollment Form'!$C375=\"Enroll\",'Enrollment Form'!$B375=\"Subscriber\",'Enrollment Form'!$CQ375=\"Yes\"),\"-\",\"Y\")))))","v":""},{"$f":"IF($B368=\"N\",\"\",IF(AND('Enrollment Form'!$C375=\"ROC\",'Enrollment Form'!$DT375<>\"\"),\"Y\",IF(AND('Enrollment Form'!$C375=\"ROC\",'Enrollment Form'!$DT375=\"\"),\"N\",IF(AND('Enrollment Form'!$C375=\"Enroll\",'Enrollment Form'!$B375=\"Subscriber\",'Enrollment Form'!$CQ375=\"No\",'Enrollment Form'!$DT375=\"\"),\"N\",IF(AND('Enrollment Form'!$C375=\"Enroll\",'Enrollment Form'!$B375=\"Subscriber\",'Enrollment Form'!$CQ375=\"Yes\"),\"-\",\"Y\")))))","v":""},{"$f":"IF('Enrollment Form'!AH375=\"\",\"\",IF(ISERROR(SEARCH(\".\",'Enrollment Form'!AH375,SEARCH(\"@\",'Enrollment Form'!AH375))),\"N\",\"Y\"))","v":""},{"$f":"IF(OR($B368=\"N\",'Enrollment Form'!$G375=\"\"),\"\",IF('Enrollment Form'!$B375<>\"Subscriber\",\"-\",IF(COUNTIF('Enrollment Form'!$AS375:$AT375,\"Yes\")=2,\"N\",\"Y\")))","v":""},{"$f":"IF(OR('Enrollment Form'!$CC375=\"\",'Enrollment Form'!$CC375=\"No\"),\"-\",IF(AND('Enrollment Form'!$CC375=\"Yes\",'Enrollment Form'!$CD375=\"\"),\"N\",\"Y\"))","v":"-"},{"$f":"IF(OR('Enrollment Form'!$CE375=\"\",'Enrollment Form'!$CE375=\"No\"),\"-\",IF(AND('Enrollment Form'!$CE375=\"Yes\",'Enrollment Form'!$CF375=\"\"),\"N\",\"Y\"))","v":"-"},{"$f":"IF(OR('Enrollment Form'!$CG375=\"\",'Enrollment Form'!$CG375=\"No\"),\"-\",IF(AND('Enrollment Form'!$CG375=\"Yes\",'Enrollment Form'!$CH375=\"\"),\"N\",\"Y\"))","v":"-"},{"$f":"IF(OR('Enrollment Form'!$CG375=\"\",'Enrollment Form'!$CG375=\"No\"),\"-\",IF(AND('Enrollment Form'!$CG375=\"Yes\",'Enrollment Form'!$CI375=\"\"),\"N\",\"Y\"))","v":"-"},{"$f":"IF('Enrollment Form'!B375<>\"Subscriber\",\"-\",IF(AND('Enrollment Form'!B375=\"Subscriber\",'Enrollment Form'!C375=\"Enroll\",'Enrollment Form'!AA375=\"\"),\"N\",\"Y\"))","v":"-"},{"$f":"IF(OR('Enrollment Form'!B375=\"Subscriber\",'Enrollment Form'!B375=\"\"),\"-\",IF('Enrollment Form'!BI375=\"\",\"N\",\"Y\"))","v":"-"},{"$f":"IF('Enrollment Form'!B375<>\"Subscriber\",\"-\",IF(AND('Enrollment Form'!B375=\"Subscriber\",'Enrollment Form'!G375=\"\"),\"N\",\"Y\"))","v":"-"},{"$f":"IF('Enrollment Form'!A375=\"\",\"\",IF('Enrollment Form'!B375=\"Subscriber\",\"-\",IF(AND('Enrollment Form'!B375<>\"Subscriber\",'Enrollment Form'!G375='Enrollment Form'!H375),\"N\",\"Y\")))","v":""},0]
[376,{"$f":"IF('Enrollment Form'!$A376<>\"\",\"Y\",\"N\")","v":"N"},{"$f":"IF(AND('Enrollment Form'!$B376=\"\",'Enrollment Form'!$C376<>\"\"),\"N\",IF($B369=\"N\",\"\",\"Y\"))","v":""},{"$f":"IF(OR($B369=\"N\",'Enrollment Form'!G376=\"\"),\"\",IF('Enrollment Form'!$B376<>\"Subscriber\",\"\",IF('Enrollment Form'!$G376='Enrollment Form'!$H376,\"Y\",\"N\")))","v":""},{"$f":"IF($B369=\"N\",\"\",IF(AND(COUNTIFS('Enrollment Form'!$H$11:$H$1000,'Enrollment Form'!$H376,'Enrollment Form'!$B$11:$B$1000,'Enrollment Form'!$B376)>1,'Enrollment Form'!$H376<>\"\"),\"N\",\"Y\"))","v":""},{"$f":"IF($B369=\"N\",\"\",IF(LEN('Enrollment Form'!$Y376)=0,\"\",IF(LEN('Enrollment Form'!$Y376)<>5,\"N\",\"Y\")))","v":""},{"$f":"IF($B369=\"N\",\"\",IF(LEN('Enrollment Form'!$AD376=0),\"\",IF(LEN('Enrollment Form'!$AD376)<>5,\"N\",\"Y\")))","v":""},{"$f":"IF($B369=\"N\",\"\",IF(LEN('Enrollment Form'!$BL376=0),\"\",IF(LEN('Enrollment Form'!$BL376)<>5,\"N\",\"Y\")))","v":""},{"$f":"IF($B369=\"N\",\"\",IF(LEN('Enrollment Form'!$AE376)=0,\"\",IF(LEN('Enrollment Form'!$AE376)<>10,\"N\",\"Y\")))","v":""},{"$f":"IF($B369=\"N\",\"\",IF(LEN('Enrollment Form'!$AF376)=0,\"\",IF(LEN('Enrollment Form'!$AF376)<>10,\"N\",\"Y\")))","v":""},{"$f":"IF('Enrollment Form'!$O376<>\"Graded\",\"-\",IF(AND('Enrollment Form'!$O376=\"Graded\",'Enrollment Form'!$AO376<>\"\"),\"Y\",\"N\"))","v":"-"},{"$f":"IF($B369=\"N\",\"\",IF(OR('Enrollment Form'!$B376<>\"Subscriber\",'Enrollment Form'!$C376=\"ROC\"),\"-\",IF(AND('Enrollment Form'!$B376=\"Subscriber\",'Enrollment Form'!$C376=\"Enroll\",'Enrollment Form'!$AJ376<>\"\"),\"Y\",\"N\")))","v":""},{"$f":"IF($B369=\"N\",\"\",IF(OR('Enrollment Form'!$B376<>\"Subscriber\",'Enrollment Form'!$C376=\"ROC\"),\"-\",IF(AND('Enrollment Form'!$B376=\"Subscriber\",'Enrollment Form'!$C376=\"Enroll\",'Enrollment Form'!$AK376<>\"\"),\"Y\",\"N\")))","v":""},{"$f":"IF($B369=\"N\",\"\",IF(OR('Enrollment Form'!$B376<>\"Subscriber\",'Enrollment Form'!$C376=\"ROC\"),\"-\",IF(AND('Enrollment Form'!$B376=\"Subscriber\",'Enrollment Form'!$C376=\"Enroll\",'Enrollment Form'!$AL376<>\"\"),\"Y\",\"N\")))","v":""},{"$f":"IF($B369=\"N\",\"\",IF(OR('Enrollment Form'!$B376<>\"Subscriber\",'Enrollment Form'!$C376=\"ROC\"),\"-\",IF(AND('Enrollment Form'!$B376=\"Subscriber\",'Enrollment Form'!$C376=\"Enroll\",'Enrollment Form'!$AM376<>\"\"),\"Y\",\"N\")))","v":""},{"$f":"IF($B369=\"N\",\"\",IF(OR('Enrollment Form'!$B376<>\"Subscriber\",'Enrollment Form'!$C376=\"ROC\"),\"-\",IF(AND('Enrollment Form'!$B376=\"Subscriber\",'Enrollment Form'!$C376=\"Enroll\",'Enrollment Form'!$AN376<>\"\"),\"Y\",\"N\")))","v":""},{"$f":"IF($B369=\"N\",\"\",IF(OR('Enrollment Form'!$B376<>\"Subscriber\",'Enrollment Form'!$C376=\"ROC\"),\"-\",IF(AND('Enrollment Form'!$B376=\"Subscriber\",'Enrollment Form'!$C376=\"Enroll\",'Enrollment Form'!$AP376<>\"\"),\"Y\",\"N\")))","v":""},{"$f":"IF($B369=\"N\",\"\",IF($Q369=\"-\",\"-\",IF(AND($Q369=\"Y\",'Enrollment Form'!$AP376=\"No\"),\"-\",IF(AND($Q369=\"Y\",'Enrollment Form'!$AP376=\"Yes\",'Enrollment Form'!$AQ376<>\"\"),\"Y\",\"N\"))))","v":""},{"$f":"IF($B369=\"N\",\"\",IF(OR('Enrollment Form'!$B376<>\"Subscriber\",'Enrollment Form'!$C376=\"ROC\"),\"-\",IF(AND('Enrollment Form'!$B376=\"Subscriber\",'Enrollment Form'!$C376=\"Enroll\",'Enrollment Form'!$CO376<>\"\"),\"Y\",\"N\")))","v":""},{"$f":"IF($B369=\"N\",\"\",IF($S369=\"-\",\"-\",IF(AND($S369=\"Y\",'Enrollment Form'!$CO376=\"No\"),\"-\",IF(AND($S369=\"Y\",'Enrollment Form'!$CO376=\"Yes\",'Enrollment Form'!$CP376<>\"\"),\"Y\",\"N\"))))","v":""},{"$f":"IF(OR('Enrollment Form'!$AV376=\"Yes\",'Enrollment Form'!$AV376=\"\"),\"-\",IF(AND('Enrollment Form'!$AV376=\"No\",ISERROR(FIND(\"HMO\",VLOOKUP('Enrollment Form'!G376,'Enrollment Form'!H$11:J$1000,3,FALSE),1))=FALSE,COUNTA('Enrollment Form'!$AW376:$AZ376)=4),\"Y\",\"N\"))","v":"-"},{"$f":"IF($B369=\"N\",\"\",IF('Enrollment Form'!$B376=\"Subscriber\",\"-\",IF(COUNTA('Enrollment Form'!$BE376,'Enrollment Form'!$BG376)=2,\"Y\",\"N\")))","v":""},{"$f":"IF($B369=\"N\",\"\",IF(OR('Enrollment Form'!$AU376=\"\",'Enrollment Form'!$AU376=\"No\"),\"-\",IF(AND('Enrollment Form'!$AU376=\"Yes\",COUNTA('Enrollment Form'!$CK376)=1),\"Y\",\"N\")))","v":""},{"$f":"IF(OR('Enrollment Form'!$CK376=\"\",'Enrollment Form'!$CK376=\"No\"),\"-\",IF(COUNTA('Enrollment Form'!$CM376:$CN376)=2,\"Y\",\"N\"))","v":"-"},{"$f":"IF($B369=\"N\",\"\",IF(COUNTIF('Enrollment Form'!$CZ376:$DO376,\"Other\")=COUNTA('Enrollment Form'!$DF376,'Enrollment Form'!$DA376,'Enrollment Form'!$DK376,'Enrollment Form'!$DP376),\"Y\",\"N\"))","v":""},{"$f":"IF($B369=\"N\",\"\",IF(OR('Enrollment Form'!B376<>\"Subscriber\",'Enrollment Form'!C376=\"ROC\",COUNTIF('Enrollment Form'!AS376:AT376,\"Yes\")>=1),\"-\",IF(AND('Enrollment Form'!C376=\"Enroll\",COUNTIF('Enrollment Form'!AS376:AT376,\"No\")=2,'Enrollment Form'!AU376=\"\"),\"N\",\"Y\")))","v":""},{"$f":"IF(OR(B369=\"N\",'Enrollment Form'!B376<>\"Subscriber\",'Enrollment Form'!C376=\"ROC\",'Enrollment Form'!O376<>\"Multiple of Salary\"),\"-\",IF(COUNTA('Enrollment Form'!T376:U376)<2,\"N\",\"Y\"))","v":"-"},{"$f":"IF(B369=\"N\",\"\",IF(OR('Enrollment Form'!C376=\"ROC\",'Enrollment Form'!B376<>\"Subscriber\",'Enrollment Form'!O376=\"Waive\",'Enrollment Form'!O376=\"\"),\"-\",IF('Enrollment Form'!P376=\"\",\"N\",\"Y\")))","v":""},{"$f":"IF($B369=\"N\",\"\",IF(AND('Enrollment Form'!$C376=\"ROC\",'Enrollment Form'!$DS376<>\"\"),\"Y\",IF(AND('Enrollment Form'!$C376=\"ROC\",'Enrollment Form'!$DS376=\"\"),\"N\",IF(AND('Enrollment Form'!$C376=\"Enroll\",'Enrollment Form'!$B376=\"Subscriber\",'Enrollment Form'!$CQ376=\"No\",'Enrollment Form'!$DS376=\"\"),\"N\",IF(AND('Enrollment Form'!$C376=\"Enroll\",'Enrollment Form'!$B376=\"Subscriber\",'Enrollment Form'!$CQ376=\"Yes\"),\"-\",\"Y\")))))","v":""},{"$f":"IF($B369=\"N\",\"\",IF(AND('Enrollment Form'!$C376=\"ROC\",'Enrollment Form'!$DT376<>\"\"),\"Y\",IF(AND('Enrollment Form'!$C376=\"ROC\",'Enrollment Form'!$DT376=\"\"),\"N\",IF(AND('Enrollment Form'!$C376=\"Enroll\",'Enrollment Form'!$B376=\"Subscriber\",'Enrollment Form'!$CQ376=\"No\",'Enrollment Form'!$DT376=\"\"),\"N\",IF(AND('Enrollment Form'!$C376=\"Enroll\",'Enrollment Form'!$B376=\"Subscriber\",'Enrollment Form'!$CQ376=\"Yes\"),\"-\",\"Y\")))))","v":""},{"$f":"IF('Enrollment Form'!AH376=\"\",\"\",IF(ISERROR(SEARCH(\".\",'Enrollment Form'!AH376,SEARCH(\"@\",'Enrollment Form'!AH376))),\"N\",\"Y\"))","v":""},{"$f":"IF(OR($B369=\"N\",'Enrollment Form'!$G376=\"\"),\"\",IF('Enrollment Form'!$B376<>\"Subscriber\",\"-\",IF(COUNTIF('Enrollment Form'!$AS376:$AT376,\"Yes\")=2,\"N\",\"Y\")))","v":""},{"$f":"IF(OR('Enrollment Form'!$CC376=\"\",'Enrollment Form'!$CC376=\"No\"),\"-\",IF(AND('Enrollment Form'!$CC376=\"Yes\",'Enrollment Form'!$CD376=\"\"),\"N\",\"Y\"))","v":"-"},{"$f":"IF(OR('Enrollment Form'!$CE376=\"\",'Enrollment Form'!$CE376=\"No\"),\"-\",IF(AND('Enrollment Form'!$CE376=\"Yes\",'Enrollment Form'!$CF376=\"\"),\"N\",\"Y\"))","v":"-"},{"$f":"IF(OR('Enrollment Form'!$CG376=\"\",'Enrollment Form'!$CG376=\"No\"),\"-\",IF(AND('Enrollment Form'!$CG376=\"Yes\",'Enrollment Form'!$CH376=\"\"),\"N\",\"Y\"))","v":"-"},{"$f":"IF(OR('Enrollment Form'!$CG376=\"\",'Enrollment Form'!$CG376=\"No\"),\"-\",IF(AND('Enrollment Form'!$CG376=\"Yes\",'Enrollment Form'!$CI376=\"\"),\"N\",\"Y\"))","v":"-"},{"$f":"IF('Enrollment Form'!B376<>\"Subscriber\",\"-\",IF(AND('Enrollment Form'!B376=\"Subscriber\",'Enrollment Form'!C376=\"Enroll\",'Enrollment Form'!AA376=\"\"),\"N\",\"Y\"))","v":"-"},{"$f":"IF(OR('Enrollment Form'!B376=\"Subscriber\",'Enrollment Form'!B376=\"\"),\"-\",IF('Enrollment Form'!BI376=\"\",\"N\",\"Y\"))","v":"-"},{"$f":"IF('Enrollment Form'!B376<>\"Subscriber\",\"-\",IF(AND('Enrollment Form'!B376=\"Subscriber\",'Enrollment Form'!G376=\"\"),\"N\",\"Y\"))","v":"-"},{"$f":"IF('Enrollment Form'!A376=\"\",\"\",IF('Enrollment Form'!B376=\"Subscriber\",\"-\",IF(AND('Enrollment Form'!B376<>\"Subscriber\",'Enrollment Form'!G376='Enrollment Form'!H376),\"N\",\"Y\")))","v":""},0]
[377,{"$f":"IF('Enrollment Form'!$A377<>\"\",\"Y\",\"N\")","v":"N"},{"$f":"IF(AND('Enrollment Form'!$B377=\"\",'Enrollment Form'!$C377<>\"\"),\"N\",IF($B370=\"N\",\"\",\"Y\"))","v":""},{"$f":"IF(OR($B370=\"N\",'Enrollment Form'!G377=\"\"),\"\",IF('Enrollment Form'!$B377<>\"Subscriber\",\"\",IF('Enrollment Form'!$G377='Enrollment Form'!$H377,\"Y\",\"N\")))","v":""},{"$f":"IF($B370=\"N\",\"\",IF(AND(COUNTIFS('Enrollment Form'!$H$11:$H$1000,'Enrollment Form'!$H377,'Enrollment Form'!$B$11:$B$1000,'Enrollment Form'!$B377)>1,'Enrollment Form'!$H377<>\"\"),\"N\",\"Y\"))","v":""},{"$f":"IF($B370=\"N\",\"\",IF(LEN('Enrollment Form'!$Y377)=0,\"\",IF(LEN('Enrollment Form'!$Y377)<>5,\"N\",\"Y\")))","v":""},{"$f":"IF($B370=\"N\",\"\",IF(LEN('Enrollment Form'!$AD377=0),\"\",IF(LEN('Enrollment Form'!$AD377)<>5,\"N\",\"Y\")))","v":""},{"$f":"IF($B370=\"N\",\"\",IF(LEN('Enrollment Form'!$BL377=0),\"\",IF(LEN('Enrollment Form'!$BL377)<>5,\"N\",\"Y\")))","v":""},{"$f":"IF($B370=\"N\",\"\",IF(LEN('Enrollment Form'!$AE377)=0,\"\",IF(LEN('Enrollment Form'!$AE377)<>10,\"N\",\"Y\")))","v":""},{"$f":"IF($B370=\"N\",\"\",IF(LEN('Enrollment Form'!$AF377)=0,\"\",IF(LEN('Enrollment Form'!$AF377)<>10,\"N\",\"Y\")))","v":""},{"$f":"IF('Enrollment Form'!$O377<>\"Graded\",\"-\",IF(AND('Enrollment Form'!$O377=\"Graded\",'Enrollment Form'!$AO377<>\"\"),\"Y\",\"N\"))","v":"-"},{"$f":"IF($B370=\"N\",\"\",IF(OR('Enrollment Form'!$B377<>\"Subscriber\",'Enrollment Form'!$C377=\"ROC\"),\"-\",IF(AND('Enrollment Form'!$B377=\"Subscriber\",'Enrollment Form'!$C377=\"Enroll\",'Enrollment Form'!$AJ377<>\"\"),\"Y\",\"N\")))","v":""},{"$f":"IF($B370=\"N\",\"\",IF(OR('Enrollment Form'!$B377<>\"Subscriber\",'Enrollment Form'!$C377=\"ROC\"),\"-\",IF(AND('Enrollment Form'!$B377=\"Subscriber\",'Enrollment Form'!$C377=\"Enroll\",'Enrollment Form'!$AK377<>\"\"),\"Y\",\"N\")))","v":""},{"$f":"IF($B370=\"N\",\"\",IF(OR('Enrollment Form'!$B377<>\"Subscriber\",'Enrollment Form'!$C377=\"ROC\"),\"-\",IF(AND('Enrollment Form'!$B377=\"Subscriber\",'Enrollment Form'!$C377=\"Enroll\",'Enrollment Form'!$AL377<>\"\"),\"Y\",\"N\")))","v":""},{"$f":"IF($B370=\"N\",\"\",IF(OR('Enrollment Form'!$B377<>\"Subscriber\",'Enrollment Form'!$C377=\"ROC\"),\"-\",IF(AND('Enrollment Form'!$B377=\"Subscriber\",'Enrollment Form'!$C377=\"Enroll\",'Enrollment Form'!$AM377<>\"\"),\"Y\",\"N\")))","v":""},{"$f":"IF($B370=\"N\",\"\",IF(OR('Enrollment Form'!$B377<>\"Subscriber\",'Enrollment Form'!$C377=\"ROC\"),\"-\",IF(AND('Enrollment Form'!$B377=\"Subscriber\",'Enrollment Form'!$C377=\"Enroll\",'Enrollment Form'!$AN377<>\"\"),\"Y\",\"N\")))","v":""},{"$f":"IF($B370=\"N\",\"\",IF(OR('Enrollment Form'!$B377<>\"Subscriber\",'Enrollment Form'!$C377=\"ROC\"),\"-\",IF(AND('Enrollment Form'!$B377=\"Subscriber\",'Enrollment Form'!$C377=\"Enroll\",'Enrollment Form'!$AP377<>\"\"),\"Y\",\"N\")))","v":""},{"$f":"IF($B370=\"N\",\"\",IF($Q370=\"-\",\"-\",IF(AND($Q370=\"Y\",'Enrollment Form'!$AP377=\"No\"),\"-\",IF(AND($Q370=\"Y\",'Enrollment Form'!$AP377=\"Yes\",'Enrollment Form'!$AQ377<>\"\"),\"Y\",\"N\"))))","v":""},{"$f":"IF($B370=\"N\",\"\",IF(OR('Enrollment Form'!$B377<>\"Subscriber\",'Enrollment Form'!$C377=\"ROC\"),\"-\",IF(AND('Enrollment Form'!$B377=\"Subscriber\",'Enrollment Form'!$C377=\"Enroll\",'Enrollment Form'!$CO377<>\"\"),\"Y\",\"N\")))","v":""},{"$f":"IF($B370=\"N\",\"\",IF($S370=\"-\",\"-\",IF(AND($S370=\"Y\",'Enrollment Form'!$CO377=\"No\"),\"-\",IF(AND($S370=\"Y\",'Enrollment Form'!$CO377=\"Yes\",'Enrollment Form'!$CP377<>\"\"),\"Y\",\"N\"))))","v":""},{"$f":"IF(OR('Enrollment Form'!$AV377=\"Yes\",'Enrollment Form'!$AV377=\"\"),\"-\",IF(AND('Enrollment Form'!$AV377=\"No\",ISERROR(FIND(\"HMO\",VLOOKUP('Enrollment Form'!G377,'Enrollment Form'!H$11:J$1000,3,FALSE),1))=FALSE,COUNTA('Enrollment Form'!$AW377:$AZ377)=4),\"Y\",\"N\"))","v":"-"},{"$f":"IF($B370=\"N\",\"\",IF('Enrollment Form'!$B377=\"Subscriber\",\"-\",IF(COUNTA('Enrollment Form'!$BE377,'Enrollment Form'!$BG377)=2,\"Y\",\"N\")))","v":""},{"$f":"IF($B370=\"N\",\"\",IF(OR('Enrollment Form'!$AU377=\"\",'Enrollment Form'!$AU377=\"No\"),\"-\",IF(AND('Enrollment Form'!$AU377=\"Yes\",COUNTA('Enrollment Form'!$CK377)=1),\"Y\",\"N\")))","v":""},{"$f":"IF(OR('Enrollment Form'!$CK377=\"\",'Enrollment Form'!$CK377=\"No\"),\"-\",IF(COUNTA('Enrollment Form'!$CM377:$CN377)=2,\"Y\",\"N\"))","v":"-"},{"$f":"IF($B370=\"N\",\"\",IF(COUNTIF('Enrollment Form'!$CZ377:$DO377,\"Other\")=COUNTA('Enrollment Form'!$DF377,'Enrollment Form'!$DA377,'Enrollment Form'!$DK377,'Enrollment Form'!$DP377),\"Y\",\"N\"))","v":""},{"$f":"IF($B370=\"N\",\"\",IF(OR('Enrollment Form'!B377<>\"Subscriber\",'Enrollment Form'!C377=\"ROC\",COUNTIF('Enrollment Form'!AS377:AT377,\"Yes\")>=1),\"-\",IF(AND('Enrollment Form'!C377=\"Enroll\",COUNTIF('Enrollment Form'!AS377:AT377,\"No\")=2,'Enrollment Form'!AU377=\"\"),\"N\",\"Y\")))","v":""},{"$f":"IF(OR(B370=\"N\",'Enrollment Form'!B377<>\"Subscriber\",'Enrollment Form'!C377=\"ROC\",'Enrollment Form'!O377<>\"Multiple of Salary\"),\"-\",IF(COUNTA('Enrollment Form'!T377:U377)<2,\"N\",\"Y\"))","v":"-"},{"$f":"IF(B370=\"N\",\"\",IF(OR('Enrollment Form'!C377=\"ROC\",'Enrollment Form'!B377<>\"Subscriber\",'Enrollment Form'!O377=\"Waive\",'Enrollment Form'!O377=\"\"),\"-\",IF('Enrollment Form'!P377=\"\",\"N\",\"Y\")))","v":""},{"$f":"IF($B370=\"N\",\"\",IF(AND('Enrollment Form'!$C377=\"ROC\",'Enrollment Form'!$DS377<>\"\"),\"Y\",IF(AND('Enrollment Form'!$C377=\"ROC\",'Enrollment Form'!$DS377=\"\"),\"N\",IF(AND('Enrollment Form'!$C377=\"Enroll\",'Enrollment Form'!$B377=\"Subscriber\",'Enrollment Form'!$CQ377=\"No\",'Enrollment Form'!$DS377=\"\"),\"N\",IF(AND('Enrollment Form'!$C377=\"Enroll\",'Enrollment Form'!$B377=\"Subscriber\",'Enrollment Form'!$CQ377=\"Yes\"),\"-\",\"Y\")))))","v":""},{"$f":"IF($B370=\"N\",\"\",IF(AND('Enrollment Form'!$C377=\"ROC\",'Enrollment Form'!$DT377<>\"\"),\"Y\",IF(AND('Enrollment Form'!$C377=\"ROC\",'Enrollment Form'!$DT377=\"\"),\"N\",IF(AND('Enrollment Form'!$C377=\"Enroll\",'Enrollment Form'!$B377=\"Subscriber\",'Enrollment Form'!$CQ377=\"No\",'Enrollment Form'!$DT377=\"\"),\"N\",IF(AND('Enrollment Form'!$C377=\"Enroll\",'Enrollment Form'!$B377=\"Subscriber\",'Enrollment Form'!$CQ377=\"Yes\"),\"-\",\"Y\")))))","v":""},{"$f":"IF('Enrollment Form'!AH377=\"\",\"\",IF(ISERROR(SEARCH(\".\",'Enrollment Form'!AH377,SEARCH(\"@\",'Enrollment Form'!AH377))),\"N\",\"Y\"))","v":""},{"$f":"IF(OR($B370=\"N\",'Enrollment Form'!$G377=\"\"),\"\",IF('Enrollment Form'!$B377<>\"Subscriber\",\"-\",IF(COUNTIF('Enrollment Form'!$AS377:$AT377,\"Yes\")=2,\"N\",\"Y\")))","v":""},{"$f":"IF(OR('Enrollment Form'!$CC377=\"\",'Enrollment Form'!$CC377=\"No\"),\"-\",IF(AND('Enrollment Form'!$CC377=\"Yes\",'Enrollment Form'!$CD377=\"\"),\"N\",\"Y\"))","v":"-"},{"$f":"IF(OR('Enrollment Form'!$CE377=\"\",'Enrollment Form'!$CE377=\"No\"),\"-\",IF(AND('Enrollment Form'!$CE377=\"Yes\",'Enrollment Form'!$CF377=\"\"),\"N\",\"Y\"))","v":"-"},{"$f":"IF(OR('Enrollment Form'!$CG377=\"\",'Enrollment Form'!$CG377=\"No\"),\"-\",IF(AND('Enrollment Form'!$CG377=\"Yes\",'Enrollment Form'!$CH377=\"\"),\"N\",\"Y\"))","v":"-"},{"$f":"IF(OR('Enrollment Form'!$CG377=\"\",'Enrollment Form'!$CG377=\"No\"),\"-\",IF(AND('Enrollment Form'!$CG377=\"Yes\",'Enrollment Form'!$CI377=\"\"),\"N\",\"Y\"))","v":"-"},{"$f":"IF('Enrollment Form'!B377<>\"Subscriber\",\"-\",IF(AND('Enrollment Form'!B377=\"Subscriber\",'Enrollment Form'!C377=\"Enroll\",'Enrollment Form'!AA377=\"\"),\"N\",\"Y\"))","v":"-"},{"$f":"IF(OR('Enrollment Form'!B377=\"Subscriber\",'Enrollment Form'!B377=\"\"),\"-\",IF('Enrollment Form'!BI377=\"\",\"N\",\"Y\"))","v":"-"},{"$f":"IF('Enrollment Form'!B377<>\"Subscriber\",\"-\",IF(AND('Enrollment Form'!B377=\"Subscriber\",'Enrollment Form'!G377=\"\"),\"N\",\"Y\"))","v":"-"},{"$f":"IF('Enrollment Form'!A377=\"\",\"\",IF('Enrollment Form'!B377=\"Subscriber\",\"-\",IF(AND('Enrollment Form'!B377<>\"Subscriber\",'Enrollment Form'!G377='Enrollment Form'!H377),\"N\",\"Y\")))","v":""},0]
[378,{"$f":"IF('Enrollment Form'!$A378<>\"\",\"Y\",\"N\")","v":"N"},{"$f":"IF(AND('Enrollment Form'!$B378=\"\",'Enrollment Form'!$C378<>\"\"),\"N\",IF($B371=\"N\",\"\",\"Y\"))","v":""},{"$f":"IF(OR($B371=\"N\",'Enrollment Form'!G378=\"\"),\"\",IF('Enrollment Form'!$B378<>\"Subscriber\",\"\",IF('Enrollment Form'!$G378='Enrollment Form'!$H378,\"Y\",\"N\")))","v":""},{"$f":"IF($B371=\"N\",\"\",IF(AND(COUNTIFS('Enrollment Form'!$H$11:$H$1000,'Enrollment Form'!$H378,'Enrollment Form'!$B$11:$B$1000,'Enrollment Form'!$B378)>1,'Enrollment Form'!$H378<>\"\"),\"N\",\"Y\"))","v":""},{"$f":"IF($B371=\"N\",\"\",IF(LEN('Enrollment Form'!$Y378)=0,\"\",IF(LEN('Enrollment Form'!$Y378)<>5,\"N\",\"Y\")))","v":""},{"$f":"IF($B371=\"N\",\"\",IF(LEN('Enrollment Form'!$AD378=0),\"\",IF(LEN('Enrollment Form'!$AD378)<>5,\"N\",\"Y\")))","v":""},{"$f":"IF($B371=\"N\",\"\",IF(LEN('Enrollment Form'!$BL378=0),\"\",IF(LEN('Enrollment Form'!$BL378)<>5,\"N\",\"Y\")))","v":""},{"$f":"IF($B371=\"N\",\"\",IF(LEN('Enrollment Form'!$AE378)=0,\"\",IF(LEN('Enrollment Form'!$AE378)<>10,\"N\",\"Y\")))","v":""},{"$f":"IF($B371=\"N\",\"\",IF(LEN('Enrollment Form'!$AF378)=0,\"\",IF(LEN('Enrollment Form'!$AF378)<>10,\"N\",\"Y\")))","v":""},{"$f":"IF('Enrollment Form'!$O378<>\"Graded\",\"-\",IF(AND('Enrollment Form'!$O378=\"Graded\",'Enrollment Form'!$AO378<>\"\"),\"Y\",\"N\"))","v":"-"},{"$f":"IF($B371=\"N\",\"\",IF(OR('Enrollment Form'!$B378<>\"Subscriber\",'Enrollment Form'!$C378=\"ROC\"),\"-\",IF(AND('Enrollment Form'!$B378=\"Subscriber\",'Enrollment Form'!$C378=\"Enroll\",'Enrollment Form'!$AJ378<>\"\"),\"Y\",\"N\")))","v":""},{"$f":"IF($B371=\"N\",\"\",IF(OR('Enrollment Form'!$B378<>\"Subscriber\",'Enrollment Form'!$C378=\"ROC\"),\"-\",IF(AND('Enrollment Form'!$B378=\"Subscriber\",'Enrollment Form'!$C378=\"Enroll\",'Enrollment Form'!$AK378<>\"\"),\"Y\",\"N\")))","v":""},{"$f":"IF($B371=\"N\",\"\",IF(OR('Enrollment Form'!$B378<>\"Subscriber\",'Enrollment Form'!$C378=\"ROC\"),\"-\",IF(AND('Enrollment Form'!$B378=\"Subscriber\",'Enrollment Form'!$C378=\"Enroll\",'Enrollment Form'!$AL378<>\"\"),\"Y\",\"N\")))","v":""},{"$f":"IF($B371=\"N\",\"\",IF(OR('Enrollment Form'!$B378<>\"Subscriber\",'Enrollment Form'!$C378=\"ROC\"),\"-\",IF(AND('Enrollment Form'!$B378=\"Subscriber\",'Enrollment Form'!$C378=\"Enroll\",'Enrollment Form'!$AM378<>\"\"),\"Y\",\"N\")))","v":""},{"$f":"IF($B371=\"N\",\"\",IF(OR('Enrollment Form'!$B378<>\"Subscriber\",'Enrollment Form'!$C378=\"ROC\"),\"-\",IF(AND('Enrollment Form'!$B378=\"Subscriber\",'Enrollment Form'!$C378=\"Enroll\",'Enrollment Form'!$AN378<>\"\"),\"Y\",\"N\")))","v":""},{"$f":"IF($B371=\"N\",\"\",IF(OR('Enrollment Form'!$B378<>\"Subscriber\",'Enrollment Form'!$C378=\"ROC\"),\"-\",IF(AND('Enrollment Form'!$B378=\"Subscriber\",'Enrollment Form'!$C378=\"Enroll\",'Enrollment Form'!$AP378<>\"\"),\"Y\",\"N\")))","v":""},{"$f":"IF($B371=\"N\",\"\",IF($Q371=\"-\",\"-\",IF(AND($Q371=\"Y\",'Enrollment Form'!$AP378=\"No\"),\"-\",IF(AND($Q371=\"Y\",'Enrollment Form'!$AP378=\"Yes\",'Enrollment Form'!$AQ378<>\"\"),\"Y\",\"N\"))))","v":""},{"$f":"IF($B371=\"N\",\"\",IF(OR('Enrollment Form'!$B378<>\"Subscriber\",'Enrollment Form'!$C378=\"ROC\"),\"-\",IF(AND('Enrollment Form'!$B378=\"Subscriber\",'Enrollment Form'!$C378=\"Enroll\",'Enrollment Form'!$CO378<>\"\"),\"Y\",\"N\")))","v":""},{"$f":"IF($B371=\"N\",\"\",IF($S371=\"-\",\"-\",IF(AND($S371=\"Y\",'Enrollment Form'!$CO378=\"No\"),\"-\",IF(AND($S371=\"Y\",'Enrollment Form'!$CO378=\"Yes\",'Enrollment Form'!$CP378<>\"\"),\"Y\",\"N\"))))","v":""},{"$f":"IF(OR('Enrollment Form'!$AV378=\"Yes\",'Enrollment Form'!$AV378=\"\"),\"-\",IF(AND('Enrollment Form'!$AV378=\"No\",ISERROR(FIND(\"HMO\",VLOOKUP('Enrollment Form'!G378,'Enrollment Form'!H$11:J$1000,3,FALSE),1))=FALSE,COUNTA('Enrollment Form'!$AW378:$AZ378)=4),\"Y\",\"N\"))","v":"-"},{"$f":"IF($B371=\"N\",\"\",IF('Enrollment Form'!$B378=\"Subscriber\",\"-\",IF(COUNTA('Enrollment Form'!$BE378,'Enrollment Form'!$BG378)=2,\"Y\",\"N\")))","v":""},{"$f":"IF($B371=\"N\",\"\",IF(OR('Enrollment Form'!$AU378=\"\",'Enrollment Form'!$AU378=\"No\"),\"-\",IF(AND('Enrollment Form'!$AU378=\"Yes\",COUNTA('Enrollment Form'!$CK378)=1),\"Y\",\"N\")))","v":""},{"$f":"IF(OR('Enrollment Form'!$CK378=\"\",'Enrollment Form'!$CK378=\"No\"),\"-\",IF(COUNTA('Enrollment Form'!$CM378:$CN378)=2,\"Y\",\"N\"))","v":"-"},{"$f":"IF($B371=\"N\",\"\",IF(COUNTIF('Enrollment Form'!$CZ378:$DO378,\"Other\")=COUNTA('Enrollment Form'!$DF378,'Enrollment Form'!$DA378,'Enrollment Form'!$DK378,'Enrollment Form'!$DP378),\"Y\",\"N\"))","v":""},{"$f":"IF($B371=\"N\",\"\",IF(OR('Enrollment Form'!B378<>\"Subscriber\",'Enrollment Form'!C378=\"ROC\",COUNTIF('Enrollment Form'!AS378:AT378,\"Yes\")>=1),\"-\",IF(AND('Enrollment Form'!C378=\"Enroll\",COUNTIF('Enrollment Form'!AS378:AT378,\"No\")=2,'Enrollment Form'!AU378=\"\"),\"N\",\"Y\")))","v":""},{"$f":"IF(OR(B371=\"N\",'Enrollment Form'!B378<>\"Subscriber\",'Enrollment Form'!C378=\"ROC\",'Enrollment Form'!O378<>\"Multiple of Salary\"),\"-\",IF(COUNTA('Enrollment Form'!T378:U378)<2,\"N\",\"Y\"))","v":"-"},{"$f":"IF(B371=\"N\",\"\",IF(OR('Enrollment Form'!C378=\"ROC\",'Enrollment Form'!B378<>\"Subscriber\",'Enrollment Form'!O378=\"Waive\",'Enrollment Form'!O378=\"\"),\"-\",IF('Enrollment Form'!P378=\"\",\"N\",\"Y\")))","v":""},{"$f":"IF($B371=\"N\",\"\",IF(AND('Enrollment Form'!$C378=\"ROC\",'Enrollment Form'!$DS378<>\"\"),\"Y\",IF(AND('Enrollment Form'!$C378=\"ROC\",'Enrollment Form'!$DS378=\"\"),\"N\",IF(AND('Enrollment Form'!$C378=\"Enroll\",'Enrollment Form'!$B378=\"Subscriber\",'Enrollment Form'!$CQ378=\"No\",'Enrollment Form'!$DS378=\"\"),\"N\",IF(AND('Enrollment Form'!$C378=\"Enroll\",'Enrollment Form'!$B378=\"Subscriber\",'Enrollment Form'!$CQ378=\"Yes\"),\"-\",\"Y\")))))","v":""},{"$f":"IF($B371=\"N\",\"\",IF(AND('Enrollment Form'!$C378=\"ROC\",'Enrollment Form'!$DT378<>\"\"),\"Y\",IF(AND('Enrollment Form'!$C378=\"ROC\",'Enrollment Form'!$DT378=\"\"),\"N\",IF(AND('Enrollment Form'!$C378=\"Enroll\",'Enrollment Form'!$B378=\"Subscriber\",'Enrollment Form'!$CQ378=\"No\",'Enrollment Form'!$DT378=\"\"),\"N\",IF(AND('Enrollment Form'!$C378=\"Enroll\",'Enrollment Form'!$B378=\"Subscriber\",'Enrollment Form'!$CQ378=\"Yes\"),\"-\",\"Y\")))))","v":""},{"$f":"IF('Enrollment Form'!AH378=\"\",\"\",IF(ISERROR(SEARCH(\".\",'Enrollment Form'!AH378,SEARCH(\"@\",'Enrollment Form'!AH378))),\"N\",\"Y\"))","v":""},{"$f":"IF(OR($B371=\"N\",'Enrollment Form'!$G378=\"\"),\"\",IF('Enrollment Form'!$B378<>\"Subscriber\",\"-\",IF(COUNTIF('Enrollment Form'!$AS378:$AT378,\"Yes\")=2,\"N\",\"Y\")))","v":""},{"$f":"IF(OR('Enrollment Form'!$CC378=\"\",'Enrollment Form'!$CC378=\"No\"),\"-\",IF(AND('Enrollment Form'!$CC378=\"Yes\",'Enrollment Form'!$CD378=\"\"),\"N\",\"Y\"))","v":"-"},{"$f":"IF(OR('Enrollment Form'!$CE378=\"\",'Enrollment Form'!$CE378=\"No\"),\"-\",IF(AND('Enrollment Form'!$CE378=\"Yes\",'Enrollment Form'!$CF378=\"\"),\"N\",\"Y\"))","v":"-"},{"$f":"IF(OR('Enrollment Form'!$CG378=\"\",'Enrollment Form'!$CG378=\"No\"),\"-\",IF(AND('Enrollment Form'!$CG378=\"Yes\",'Enrollment Form'!$CH378=\"\"),\"N\",\"Y\"))","v":"-"},{"$f":"IF(OR('Enrollment Form'!$CG378=\"\",'Enrollment Form'!$CG378=\"No\"),\"-\",IF(AND('Enrollment Form'!$CG378=\"Yes\",'Enrollment Form'!$CI378=\"\"),\"N\",\"Y\"))","v":"-"},{"$f":"IF('Enrollment Form'!B378<>\"Subscriber\",\"-\",IF(AND('Enrollment Form'!B378=\"Subscriber\",'Enrollment Form'!C378=\"Enroll\",'Enrollment Form'!AA378=\"\"),\"N\",\"Y\"))","v":"-"},{"$f":"IF(OR('Enrollment Form'!B378=\"Subscriber\",'Enrollment Form'!B378=\"\"),\"-\",IF('Enrollment Form'!BI378=\"\",\"N\",\"Y\"))","v":"-"},{"$f":"IF('Enrollment Form'!B378<>\"Subscriber\",\"-\",IF(AND('Enrollment Form'!B378=\"Subscriber\",'Enrollment Form'!G378=\"\"),\"N\",\"Y\"))","v":"-"},{"$f":"IF('Enrollment Form'!A378=\"\",\"\",IF('Enrollment Form'!B378=\"Subscriber\",\"-\",IF(AND('Enrollment Form'!B378<>\"Subscriber\",'Enrollment Form'!G378='Enrollment Form'!H378),\"N\",\"Y\")))","v":""},0]
[379,{"$f":"IF('Enrollment Form'!$A379<>\"\",\"Y\",\"N\")","v":"N"},{"$f":"IF(AND('Enrollment Form'!$B379=\"\",'Enrollment Form'!$C379<>\"\"),\"N\",IF($B372=\"N\",\"\",\"Y\"))","v":""},{"$f":"IF(OR($B372=\"N\",'Enrollment Form'!G379=\"\"),\"\",IF('Enrollment Form'!$B379<>\"Subscriber\",\"\",IF('Enrollment Form'!$G379='Enrollment Form'!$H379,\"Y\",\"N\")))","v":""},{"$f":"IF($B372=\"N\",\"\",IF(AND(COUNTIFS('Enrollment Form'!$H$11:$H$1000,'Enrollment Form'!$H379,'Enrollment Form'!$B$11:$B$1000,'Enrollment Form'!$B379)>1,'Enrollment Form'!$H379<>\"\"),\"N\",\"Y\"))","v":""},{"$f":"IF($B372=\"N\",\"\",IF(LEN('Enrollment Form'!$Y379)=0,\"\",IF(LEN('Enrollment Form'!$Y379)<>5,\"N\",\"Y\")))","v":""},{"$f":"IF($B372=\"N\",\"\",IF(LEN('Enrollment Form'!$AD379=0),\"\",IF(LEN('Enrollment Form'!$AD379)<>5,\"N\",\"Y\")))","v":""},{"$f":"IF($B372=\"N\",\"\",IF(LEN('Enrollment Form'!$BL379=0),\"\",IF(LEN('Enrollment Form'!$BL379)<>5,\"N\",\"Y\")))","v":""},{"$f":"IF($B372=\"N\",\"\",IF(LEN('Enrollment Form'!$AE379)=0,\"\",IF(LEN('Enrollment Form'!$AE379)<>10,\"N\",\"Y\")))","v":""},{"$f":"IF($B372=\"N\",\"\",IF(LEN('Enrollment Form'!$AF379)=0,\"\",IF(LEN('Enrollment Form'!$AF379)<>10,\"N\",\"Y\")))","v":""},{"$f":"IF('Enrollment Form'!$O379<>\"Graded\",\"-\",IF(AND('Enrollment Form'!$O379=\"Graded\",'Enrollment Form'!$AO379<>\"\"),\"Y\",\"N\"))","v":"-"},{"$f":"IF($B372=\"N\",\"\",IF(OR('Enrollment Form'!$B379<>\"Subscriber\",'Enrollment Form'!$C379=\"ROC\"),\"-\",IF(AND('Enrollment Form'!$B379=\"Subscriber\",'Enrollment Form'!$C379=\"Enroll\",'Enrollment Form'!$AJ379<>\"\"),\"Y\",\"N\")))","v":""},{"$f":"IF($B372=\"N\",\"\",IF(OR('Enrollment Form'!$B379<>\"Subscriber\",'Enrollment Form'!$C379=\"ROC\"),\"-\",IF(AND('Enrollment Form'!$B379=\"Subscriber\",'Enrollment Form'!$C379=\"Enroll\",'Enrollment Form'!$AK379<>\"\"),\"Y\",\"N\")))","v":""},{"$f":"IF($B372=\"N\",\"\",IF(OR('Enrollment Form'!$B379<>\"Subscriber\",'Enrollment Form'!$C379=\"ROC\"),\"-\",IF(AND('Enrollment Form'!$B379=\"Subscriber\",'Enrollment Form'!$C379=\"Enroll\",'Enrollment Form'!$AL379<>\"\"),\"Y\",\"N\")))","v":""},{"$f":"IF($B372=\"N\",\"\",IF(OR('Enrollment Form'!$B379<>\"Subscriber\",'Enrollment Form'!$C379=\"ROC\"),\"-\",IF(AND('Enrollment Form'!$B379=\"Subscriber\",'Enrollment Form'!$C379=\"Enroll\",'Enrollment Form'!$AM379<>\"\"),\"Y\",\"N\")))","v":""},{"$f":"IF($B372=\"N\",\"\",IF(OR('Enrollment Form'!$B379<>\"Subscriber\",'Enrollment Form'!$C379=\"ROC\"),\"-\",IF(AND('Enrollment Form'!$B379=\"Subscriber\",'Enrollment Form'!$C379=\"Enroll\",'Enrollment Form'!$AN379<>\"\"),\"Y\",\"N\")))","v":""},{"$f":"IF($B372=\"N\",\"\",IF(OR('Enrollment Form'!$B379<>\"Subscriber\",'Enrollment Form'!$C379=\"ROC\"),\"-\",IF(AND('Enrollment Form'!$B379=\"Subscriber\",'Enrollment Form'!$C379=\"Enroll\",'Enrollment Form'!$AP379<>\"\"),\"Y\",\"N\")))","v":""},{"$f":"IF($B372=\"N\",\"\",IF($Q372=\"-\",\"-\",IF(AND($Q372=\"Y\",'Enrollment Form'!$AP379=\"No\"),\"-\",IF(AND($Q372=\"Y\",'Enrollment Form'!$AP379=\"Yes\",'Enrollment Form'!$AQ379<>\"\"),\"Y\",\"N\"))))","v":""},{"$f":"IF($B372=\"N\",\"\",IF(OR('Enrollment Form'!$B379<>\"Subscriber\",'Enrollment Form'!$C379=\"ROC\"),\"-\",IF(AND('Enrollment Form'!$B379=\"Subscriber\",'Enrollment Form'!$C379=\"Enroll\",'Enrollment Form'!$CO379<>\"\"),\"Y\",\"N\")))","v":""},{"$f":"IF($B372=\"N\",\"\",IF($S372=\"-\",\"-\",IF(AND($S372=\"Y\",'Enrollment Form'!$CO379=\"No\"),\"-\",IF(AND($S372=\"Y\",'Enrollment Form'!$CO379=\"Yes\",'Enrollment Form'!$CP379<>\"\"),\"Y\",\"N\"))))","v":""},{"$f":"IF(OR('Enrollment Form'!$AV379=\"Yes\",'Enrollment Form'!$AV379=\"\"),\"-\",IF(AND('Enrollment Form'!$AV379=\"No\",ISERROR(FIND(\"HMO\",VLOOKUP('Enrollment Form'!G379,'Enrollment Form'!H$11:J$1000,3,FALSE),1))=FALSE,COUNTA('Enrollment Form'!$AW379:$AZ379)=4),\"Y\",\"N\"))","v":"-"},{"$f":"IF($B372=\"N\",\"\",IF('Enrollment Form'!$B379=\"Subscriber\",\"-\",IF(COUNTA('Enrollment Form'!$BE379,'Enrollment Form'!$BG379)=2,\"Y\",\"N\")))","v":""},{"$f":"IF($B372=\"N\",\"\",IF(OR('Enrollment Form'!$AU379=\"\",'Enrollment Form'!$AU379=\"No\"),\"-\",IF(AND('Enrollment Form'!$AU379=\"Yes\",COUNTA('Enrollment Form'!$CK379)=1),\"Y\",\"N\")))","v":""},{"$f":"IF(OR('Enrollment Form'!$CK379=\"\",'Enrollment Form'!$CK379=\"No\"),\"-\",IF(COUNTA('Enrollment Form'!$CM379:$CN379)=2,\"Y\",\"N\"))","v":"-"},{"$f":"IF($B372=\"N\",\"\",IF(COUNTIF('Enrollment Form'!$CZ379:$DO379,\"Other\")=COUNTA('Enrollment Form'!$DF379,'Enrollment Form'!$DA379,'Enrollment Form'!$DK379,'Enrollment Form'!$DP379),\"Y\",\"N\"))","v":""},{"$f":"IF($B372=\"N\",\"\",IF(OR('Enrollment Form'!B379<>\"Subscriber\",'Enrollment Form'!C379=\"ROC\",COUNTIF('Enrollment Form'!AS379:AT379,\"Yes\")>=1),\"-\",IF(AND('Enrollment Form'!C379=\"Enroll\",COUNTIF('Enrollment Form'!AS379:AT379,\"No\")=2,'Enrollment Form'!AU379=\"\"),\"N\",\"Y\")))","v":""},{"$f":"IF(OR(B372=\"N\",'Enrollment Form'!B379<>\"Subscriber\",'Enrollment Form'!C379=\"ROC\",'Enrollment Form'!O379<>\"Multiple of Salary\"),\"-\",IF(COUNTA('Enrollment Form'!T379:U379)<2,\"N\",\"Y\"))","v":"-"},{"$f":"IF(B372=\"N\",\"\",IF(OR('Enrollment Form'!C379=\"ROC\",'Enrollment Form'!B379<>\"Subscriber\",'Enrollment Form'!O379=\"Waive\",'Enrollment Form'!O379=\"\"),\"-\",IF('Enrollment Form'!P379=\"\",\"N\",\"Y\")))","v":""},{"$f":"IF($B372=\"N\",\"\",IF(AND('Enrollment Form'!$C379=\"ROC\",'Enrollment Form'!$DS379<>\"\"),\"Y\",IF(AND('Enrollment Form'!$C379=\"ROC\",'Enrollment Form'!$DS379=\"\"),\"N\",IF(AND('Enrollment Form'!$C379=\"Enroll\",'Enrollment Form'!$B379=\"Subscriber\",'Enrollment Form'!$CQ379=\"No\",'Enrollment Form'!$DS379=\"\"),\"N\",IF(AND('Enrollment Form'!$C379=\"Enroll\",'Enrollment Form'!$B379=\"Subscriber\",'Enrollment Form'!$CQ379=\"Yes\"),\"-\",\"Y\")))))","v":""},{"$f":"IF($B372=\"N\",\"\",IF(AND('Enrollment Form'!$C379=\"ROC\",'Enrollment Form'!$DT379<>\"\"),\"Y\",IF(AND('Enrollment Form'!$C379=\"ROC\",'Enrollment Form'!$DT379=\"\"),\"N\",IF(AND('Enrollment Form'!$C379=\"Enroll\",'Enrollment Form'!$B379=\"Subscriber\",'Enrollment Form'!$CQ379=\"No\",'Enrollment Form'!$DT379=\"\"),\"N\",IF(AND('Enrollment Form'!$C379=\"Enroll\",'Enrollment Form'!$B379=\"Subscriber\",'Enrollment Form'!$CQ379=\"Yes\"),\"-\",\"Y\")))))","v":""},{"$f":"IF('Enrollment Form'!AH379=\"\",\"\",IF(ISERROR(SEARCH(\".\",'Enrollment Form'!AH379,SEARCH(\"@\",'Enrollment Form'!AH379))),\"N\",\"Y\"))","v":""},{"$f":"IF(OR($B372=\"N\",'Enrollment Form'!$G379=\"\"),\"\",IF('Enrollment Form'!$B379<>\"Subscriber\",\"-\",IF(COUNTIF('Enrollment Form'!$AS379:$AT379,\"Yes\")=2,\"N\",\"Y\")))","v":""},{"$f":"IF(OR('Enrollment Form'!$CC379=\"\",'Enrollment Form'!$CC379=\"No\"),\"-\",IF(AND('Enrollment Form'!$CC379=\"Yes\",'Enrollment Form'!$CD379=\"\"),\"N\",\"Y\"))","v":"-"},{"$f":"IF(OR('Enrollment Form'!$CE379=\"\",'Enrollment Form'!$CE379=\"No\"),\"-\",IF(AND('Enrollment Form'!$CE379=\"Yes\",'Enrollment Form'!$CF379=\"\"),\"N\",\"Y\"))","v":"-"},{"$f":"IF(OR('Enrollment Form'!$CG379=\"\",'Enrollment Form'!$CG379=\"No\"),\"-\",IF(AND('Enrollment Form'!$CG379=\"Yes\",'Enrollment Form'!$CH379=\"\"),\"N\",\"Y\"))","v":"-"},{"$f":"IF(OR('Enrollment Form'!$CG379=\"\",'Enrollment Form'!$CG379=\"No\"),\"-\",IF(AND('Enrollment Form'!$CG379=\"Yes\",'Enrollment Form'!$CI379=\"\"),\"N\",\"Y\"))","v":"-"},{"$f":"IF('Enrollment Form'!B379<>\"Subscriber\",\"-\",IF(AND('Enrollment Form'!B379=\"Subscriber\",'Enrollment Form'!C379=\"Enroll\",'Enrollment Form'!AA379=\"\"),\"N\",\"Y\"))","v":"-"},{"$f":"IF(OR('Enrollment Form'!B379=\"Subscriber\",'Enrollment Form'!B379=\"\"),\"-\",IF('Enrollment Form'!BI379=\"\",\"N\",\"Y\"))","v":"-"},{"$f":"IF('Enrollment Form'!B379<>\"Subscriber\",\"-\",IF(AND('Enrollment Form'!B379=\"Subscriber\",'Enrollment Form'!G379=\"\"),\"N\",\"Y\"))","v":"-"},{"$f":"IF('Enrollment Form'!A379=\"\",\"\",IF('Enrollment Form'!B379=\"Subscriber\",\"-\",IF(AND('Enrollment Form'!B379<>\"Subscriber\",'Enrollment Form'!G379='Enrollment Form'!H379),\"N\",\"Y\")))","v":""},0]
[380,{"$f":"IF('Enrollment Form'!$A380<>\"\",\"Y\",\"N\")","v":"N"},{"$f":"IF(AND('Enrollment Form'!$B380=\"\",'Enrollment Form'!$C380<>\"\"),\"N\",IF($B373=\"N\",\"\",\"Y\"))","v":""},{"$f":"IF(OR($B373=\"N\",'Enrollment Form'!G380=\"\"),\"\",IF('Enrollment Form'!$B380<>\"Subscriber\",\"\",IF('Enrollment Form'!$G380='Enrollment Form'!$H380,\"Y\",\"N\")))","v":""},{"$f":"IF($B373=\"N\",\"\",IF(AND(COUNTIFS('Enrollment Form'!$H$11:$H$1000,'Enrollment Form'!$H380,'Enrollment Form'!$B$11:$B$1000,'Enrollment Form'!$B380)>1,'Enrollment Form'!$H380<>\"\"),\"N\",\"Y\"))","v":""},{"$f":"IF($B373=\"N\",\"\",IF(LEN('Enrollment Form'!$Y380)=0,\"\",IF(LEN('Enrollment Form'!$Y380)<>5,\"N\",\"Y\")))","v":""},{"$f":"IF($B373=\"N\",\"\",IF(LEN('Enrollment Form'!$AD380=0),\"\",IF(LEN('Enrollment Form'!$AD380)<>5,\"N\",\"Y\")))","v":""},{"$f":"IF($B373=\"N\",\"\",IF(LEN('Enrollment Form'!$BL380=0),\"\",IF(LEN('Enrollment Form'!$BL380)<>5,\"N\",\"Y\")))","v":""},{"$f":"IF($B373=\"N\",\"\",IF(LEN('Enrollment Form'!$AE380)=0,\"\",IF(LEN('Enrollment Form'!$AE380)<>10,\"N\",\"Y\")))","v":""},{"$f":"IF($B373=\"N\",\"\",IF(LEN('Enrollment Form'!$AF380)=0,\"\",IF(LEN('Enrollment Form'!$AF380)<>10,\"N\",\"Y\")))","v":""},{"$f":"IF('Enrollment Form'!$O380<>\"Graded\",\"-\",IF(AND('Enrollment Form'!$O380=\"Graded\",'Enrollment Form'!$AO380<>\"\"),\"Y\",\"N\"))","v":"-"},{"$f":"IF($B373=\"N\",\"\",IF(OR('Enrollment Form'!$B380<>\"Subscriber\",'Enrollment Form'!$C380=\"ROC\"),\"-\",IF(AND('Enrollment Form'!$B380=\"Subscriber\",'Enrollment Form'!$C380=\"Enroll\",'Enrollment Form'!$AJ380<>\"\"),\"Y\",\"N\")))","v":""},{"$f":"IF($B373=\"N\",\"\",IF(OR('Enrollment Form'!$B380<>\"Subscriber\",'Enrollment Form'!$C380=\"ROC\"),\"-\",IF(AND('Enrollment Form'!$B380=\"Subscriber\",'Enrollment Form'!$C380=\"Enroll\",'Enrollment Form'!$AK380<>\"\"),\"Y\",\"N\")))","v":""},{"$f":"IF($B373=\"N\",\"\",IF(OR('Enrollment Form'!$B380<>\"Subscriber\",'Enrollment Form'!$C380=\"ROC\"),\"-\",IF(AND('Enrollment Form'!$B380=\"Subscriber\",'Enrollment Form'!$C380=\"Enroll\",'Enrollment Form'!$AL380<>\"\"),\"Y\",\"N\")))","v":""},{"$f":"IF($B373=\"N\",\"\",IF(OR('Enrollment Form'!$B380<>\"Subscriber\",'Enrollment Form'!$C380=\"ROC\"),\"-\",IF(AND('Enrollment Form'!$B380=\"Subscriber\",'Enrollment Form'!$C380=\"Enroll\",'Enrollment Form'!$AM380<>\"\"),\"Y\",\"N\")))","v":""},{"$f":"IF($B373=\"N\",\"\",IF(OR('Enrollment Form'!$B380<>\"Subscriber\",'Enrollment Form'!$C380=\"ROC\"),\"-\",IF(AND('Enrollment Form'!$B380=\"Subscriber\",'Enrollment Form'!$C380=\"Enroll\",'Enrollment Form'!$AN380<>\"\"),\"Y\",\"N\")))","v":""},{"$f":"IF($B373=\"N\",\"\",IF(OR('Enrollment Form'!$B380<>\"Subscriber\",'Enrollment Form'!$C380=\"ROC\"),\"-\",IF(AND('Enrollment Form'!$B380=\"Subscriber\",'Enrollment Form'!$C380=\"Enroll\",'Enrollment Form'!$AP380<>\"\"),\"Y\",\"N\")))","v":""},{"$f":"IF($B373=\"N\",\"\",IF($Q373=\"-\",\"-\",IF(AND($Q373=\"Y\",'Enrollment Form'!$AP380=\"No\"),\"-\",IF(AND($Q373=\"Y\",'Enrollment Form'!$AP380=\"Yes\",'Enrollment Form'!$AQ380<>\"\"),\"Y\",\"N\"))))","v":""},{"$f":"IF($B373=\"N\",\"\",IF(OR('Enrollment Form'!$B380<>\"Subscriber\",'Enrollment Form'!$C380=\"ROC\"),\"-\",IF(AND('Enrollment Form'!$B380=\"Subscriber\",'Enrollment Form'!$C380=\"Enroll\",'Enrollment Form'!$CO380<>\"\"),\"Y\",\"N\")))","v":""},{"$f":"IF($B373=\"N\",\"\",IF($S373=\"-\",\"-\",IF(AND($S373=\"Y\",'Enrollment Form'!$CO380=\"No\"),\"-\",IF(AND($S373=\"Y\",'Enrollment Form'!$CO380=\"Yes\",'Enrollment Form'!$CP380<>\"\"),\"Y\",\"N\"))))","v":""},{"$f":"IF(OR('Enrollment Form'!$AV380=\"Yes\",'Enrollment Form'!$AV380=\"\"),\"-\",IF(AND('Enrollment Form'!$AV380=\"No\",ISERROR(FIND(\"HMO\",VLOOKUP('Enrollment Form'!G380,'Enrollment Form'!H$11:J$1000,3,FALSE),1))=FALSE,COUNTA('Enrollment Form'!$AW380:$AZ380)=4),\"Y\",\"N\"))","v":"-"},{"$f":"IF($B373=\"N\",\"\",IF('Enrollment Form'!$B380=\"Subscriber\",\"-\",IF(COUNTA('Enrollment Form'!$BE380,'Enrollment Form'!$BG380)=2,\"Y\",\"N\")))","v":""},{"$f":"IF($B373=\"N\",\"\",IF(OR('Enrollment Form'!$AU380=\"\",'Enrollment Form'!$AU380=\"No\"),\"-\",IF(AND('Enrollment Form'!$AU380=\"Yes\",COUNTA('Enrollment Form'!$CK380)=1),\"Y\",\"N\")))","v":""},{"$f":"IF(OR('Enrollment Form'!$CK380=\"\",'Enrollment Form'!$CK380=\"No\"),\"-\",IF(COUNTA('Enrollment Form'!$CM380:$CN380)=2,\"Y\",\"N\"))","v":"-"},{"$f":"IF($B373=\"N\",\"\",IF(COUNTIF('Enrollment Form'!$CZ380:$DO380,\"Other\")=COUNTA('Enrollment Form'!$DF380,'Enrollment Form'!$DA380,'Enrollment Form'!$DK380,'Enrollment Form'!$DP380),\"Y\",\"N\"))","v":""},{"$f":"IF($B373=\"N\",\"\",IF(OR('Enrollment Form'!B380<>\"Subscriber\",'Enrollment Form'!C380=\"ROC\",COUNTIF('Enrollment Form'!AS380:AT380,\"Yes\")>=1),\"-\",IF(AND('Enrollment Form'!C380=\"Enroll\",COUNTIF('Enrollment Form'!AS380:AT380,\"No\")=2,'Enrollment Form'!AU380=\"\"),\"N\",\"Y\")))","v":""},{"$f":"IF(OR(B373=\"N\",'Enrollment Form'!B380<>\"Subscriber\",'Enrollment Form'!C380=\"ROC\",'Enrollment Form'!O380<>\"Multiple of Salary\"),\"-\",IF(COUNTA('Enrollment Form'!T380:U380)<2,\"N\",\"Y\"))","v":"-"},{"$f":"IF(B373=\"N\",\"\",IF(OR('Enrollment Form'!C380=\"ROC\",'Enrollment Form'!B380<>\"Subscriber\",'Enrollment Form'!O380=\"Waive\",'Enrollment Form'!O380=\"\"),\"-\",IF('Enrollment Form'!P380=\"\",\"N\",\"Y\")))","v":""},{"$f":"IF($B373=\"N\",\"\",IF(AND('Enrollment Form'!$C380=\"ROC\",'Enrollment Form'!$DS380<>\"\"),\"Y\",IF(AND('Enrollment Form'!$C380=\"ROC\",'Enrollment Form'!$DS380=\"\"),\"N\",IF(AND('Enrollment Form'!$C380=\"Enroll\",'Enrollment Form'!$B380=\"Subscriber\",'Enrollment Form'!$CQ380=\"No\",'Enrollment Form'!$DS380=\"\"),\"N\",IF(AND('Enrollment Form'!$C380=\"Enroll\",'Enrollment Form'!$B380=\"Subscriber\",'Enrollment Form'!$CQ380=\"Yes\"),\"-\",\"Y\")))))","v":""},{"$f":"IF($B373=\"N\",\"\",IF(AND('Enrollment Form'!$C380=\"ROC\",'Enrollment Form'!$DT380<>\"\"),\"Y\",IF(AND('Enrollment Form'!$C380=\"ROC\",'Enrollment Form'!$DT380=\"\"),\"N\",IF(AND('Enrollment Form'!$C380=\"Enroll\",'Enrollment Form'!$B380=\"Subscriber\",'Enrollment Form'!$CQ380=\"No\",'Enrollment Form'!$DT380=\"\"),\"N\",IF(AND('Enrollment Form'!$C380=\"Enroll\",'Enrollment Form'!$B380=\"Subscriber\",'Enrollment Form'!$CQ380=\"Yes\"),\"-\",\"Y\")))))","v":""},{"$f":"IF('Enrollment Form'!AH380=\"\",\"\",IF(ISERROR(SEARCH(\".\",'Enrollment Form'!AH380,SEARCH(\"@\",'Enrollment Form'!AH380))),\"N\",\"Y\"))","v":""},{"$f":"IF(OR($B373=\"N\",'Enrollment Form'!$G380=\"\"),\"\",IF('Enrollment Form'!$B380<>\"Subscriber\",\"-\",IF(COUNTIF('Enrollment Form'!$AS380:$AT380,\"Yes\")=2,\"N\",\"Y\")))","v":""},{"$f":"IF(OR('Enrollment Form'!$CC380=\"\",'Enrollment Form'!$CC380=\"No\"),\"-\",IF(AND('Enrollment Form'!$CC380=\"Yes\",'Enrollment Form'!$CD380=\"\"),\"N\",\"Y\"))","v":"-"},{"$f":"IF(OR('Enrollment Form'!$CE380=\"\",'Enrollment Form'!$CE380=\"No\"),\"-\",IF(AND('Enrollment Form'!$CE380=\"Yes\",'Enrollment Form'!$CF380=\"\"),\"N\",\"Y\"))","v":"-"},{"$f":"IF(OR('Enrollment Form'!$CG380=\"\",'Enrollment Form'!$CG380=\"No\"),\"-\",IF(AND('Enrollment Form'!$CG380=\"Yes\",'Enrollment Form'!$CH380=\"\"),\"N\",\"Y\"))","v":"-"},{"$f":"IF(OR('Enrollment Form'!$CG380=\"\",'Enrollment Form'!$CG380=\"No\"),\"-\",IF(AND('Enrollment Form'!$CG380=\"Yes\",'Enrollment Form'!$CI380=\"\"),\"N\",\"Y\"))","v":"-"},{"$f":"IF('Enrollment Form'!B380<>\"Subscriber\",\"-\",IF(AND('Enrollment Form'!B380=\"Subscriber\",'Enrollment Form'!C380=\"Enroll\",'Enrollment Form'!AA380=\"\"),\"N\",\"Y\"))","v":"-"},{"$f":"IF(OR('Enrollment Form'!B380=\"Subscriber\",'Enrollment Form'!B380=\"\"),\"-\",IF('Enrollment Form'!BI380=\"\",\"N\",\"Y\"))","v":"-"},{"$f":"IF('Enrollment Form'!B380<>\"Subscriber\",\"-\",IF(AND('Enrollment Form'!B380=\"Subscriber\",'Enrollment Form'!G380=\"\"),\"N\",\"Y\"))","v":"-"},{"$f":"IF('Enrollment Form'!A380=\"\",\"\",IF('Enrollment Form'!B380=\"Subscriber\",\"-\",IF(AND('Enrollment Form'!B380<>\"Subscriber\",'Enrollment Form'!G380='Enrollment Form'!H380),\"N\",\"Y\")))","v":""},0]
[381,{"$f":"IF('Enrollment Form'!$A381<>\"\",\"Y\",\"N\")","v":"N"},{"$f":"IF(AND('Enrollment Form'!$B381=\"\",'Enrollment Form'!$C381<>\"\"),\"N\",IF($B374=\"N\",\"\",\"Y\"))","v":""},{"$f":"IF(OR($B374=\"N\",'Enrollment Form'!G381=\"\"),\"\",IF('Enrollment Form'!$B381<>\"Subscriber\",\"\",IF('Enrollment Form'!$G381='Enrollment Form'!$H381,\"Y\",\"N\")))","v":""},{"$f":"IF($B374=\"N\",\"\",IF(AND(COUNTIFS('Enrollment Form'!$H$11:$H$1000,'Enrollment Form'!$H381,'Enrollment Form'!$B$11:$B$1000,'Enrollment Form'!$B381)>1,'Enrollment Form'!$H381<>\"\"),\"N\",\"Y\"))","v":""},{"$f":"IF($B374=\"N\",\"\",IF(LEN('Enrollment Form'!$Y381)=0,\"\",IF(LEN('Enrollment Form'!$Y381)<>5,\"N\",\"Y\")))","v":""},{"$f":"IF($B374=\"N\",\"\",IF(LEN('Enrollment Form'!$AD381=0),\"\",IF(LEN('Enrollment Form'!$AD381)<>5,\"N\",\"Y\")))","v":""},{"$f":"IF($B374=\"N\",\"\",IF(LEN('Enrollment Form'!$BL381=0),\"\",IF(LEN('Enrollment Form'!$BL381)<>5,\"N\",\"Y\")))","v":""},{"$f":"IF($B374=\"N\",\"\",IF(LEN('Enrollment Form'!$AE381)=0,\"\",IF(LEN('Enrollment Form'!$AE381)<>10,\"N\",\"Y\")))","v":""},{"$f":"IF($B374=\"N\",\"\",IF(LEN('Enrollment Form'!$AF381)=0,\"\",IF(LEN('Enrollment Form'!$AF381)<>10,\"N\",\"Y\")))","v":""},{"$f":"IF('Enrollment Form'!$O381<>\"Graded\",\"-\",IF(AND('Enrollment Form'!$O381=\"Graded\",'Enrollment Form'!$AO381<>\"\"),\"Y\",\"N\"))","v":"-"},{"$f":"IF($B374=\"N\",\"\",IF(OR('Enrollment Form'!$B381<>\"Subscriber\",'Enrollment Form'!$C381=\"ROC\"),\"-\",IF(AND('Enrollment Form'!$B381=\"Subscriber\",'Enrollment Form'!$C381=\"Enroll\",'Enrollment Form'!$AJ381<>\"\"),\"Y\",\"N\")))","v":""},{"$f":"IF($B374=\"N\",\"\",IF(OR('Enrollment Form'!$B381<>\"Subscriber\",'Enrollment Form'!$C381=\"ROC\"),\"-\",IF(AND('Enrollment Form'!$B381=\"Subscriber\",'Enrollment Form'!$C381=\"Enroll\",'Enrollment Form'!$AK381<>\"\"),\"Y\",\"N\")))","v":""},{"$f":"IF($B374=\"N\",\"\",IF(OR('Enrollment Form'!$B381<>\"Subscriber\",'Enrollment Form'!$C381=\"ROC\"),\"-\",IF(AND('Enrollment Form'!$B381=\"Subscriber\",'Enrollment Form'!$C381=\"Enroll\",'Enrollment Form'!$AL381<>\"\"),\"Y\",\"N\")))","v":""},{"$f":"IF($B374=\"N\",\"\",IF(OR('Enrollment Form'!$B381<>\"Subscriber\",'Enrollment Form'!$C381=\"ROC\"),\"-\",IF(AND('Enrollment Form'!$B381=\"Subscriber\",'Enrollment Form'!$C381=\"Enroll\",'Enrollment Form'!$AM381<>\"\"),\"Y\",\"N\")))","v":""},{"$f":"IF($B374=\"N\",\"\",IF(OR('Enrollment Form'!$B381<>\"Subscriber\",'Enrollment Form'!$C381=\"ROC\"),\"-\",IF(AND('Enrollment Form'!$B381=\"Subscriber\",'Enrollment Form'!$C381=\"Enroll\",'Enrollment Form'!$AN381<>\"\"),\"Y\",\"N\")))","v":""},{"$f":"IF($B374=\"N\",\"\",IF(OR('Enrollment Form'!$B381<>\"Subscriber\",'Enrollment Form'!$C381=\"ROC\"),\"-\",IF(AND('Enrollment Form'!$B381=\"Subscriber\",'Enrollment Form'!$C381=\"Enroll\",'Enrollment Form'!$AP381<>\"\"),\"Y\",\"N\")))","v":""},{"$f":"IF($B374=\"N\",\"\",IF($Q374=\"-\",\"-\",IF(AND($Q374=\"Y\",'Enrollment Form'!$AP381=\"No\"),\"-\",IF(AND($Q374=\"Y\",'Enrollment Form'!$AP381=\"Yes\",'Enrollment Form'!$AQ381<>\"\"),\"Y\",\"N\"))))","v":""},{"$f":"IF($B374=\"N\",\"\",IF(OR('Enrollment Form'!$B381<>\"Subscriber\",'Enrollment Form'!$C381=\"ROC\"),\"-\",IF(AND('Enrollment Form'!$B381=\"Subscriber\",'Enrollment Form'!$C381=\"Enroll\",'Enrollment Form'!$CO381<>\"\"),\"Y\",\"N\")))","v":""},{"$f":"IF($B374=\"N\",\"\",IF($S374=\"-\",\"-\",IF(AND($S374=\"Y\",'Enrollment Form'!$CO381=\"No\"),\"-\",IF(AND($S374=\"Y\",'Enrollment Form'!$CO381=\"Yes\",'Enrollment Form'!$CP381<>\"\"),\"Y\",\"N\"))))","v":""},{"$f":"IF(OR('Enrollment Form'!$AV381=\"Yes\",'Enrollment Form'!$AV381=\"\"),\"-\",IF(AND('Enrollment Form'!$AV381=\"No\",ISERROR(FIND(\"HMO\",VLOOKUP('Enrollment Form'!G381,'Enrollment Form'!H$11:J$1000,3,FALSE),1))=FALSE,COUNTA('Enrollment Form'!$AW381:$AZ381)=4),\"Y\",\"N\"))","v":"-"},{"$f":"IF($B374=\"N\",\"\",IF('Enrollment Form'!$B381=\"Subscriber\",\"-\",IF(COUNTA('Enrollment Form'!$BE381,'Enrollment Form'!$BG381)=2,\"Y\",\"N\")))","v":""},{"$f":"IF($B374=\"N\",\"\",IF(OR('Enrollment Form'!$AU381=\"\",'Enrollment Form'!$AU381=\"No\"),\"-\",IF(AND('Enrollment Form'!$AU381=\"Yes\",COUNTA('Enrollment Form'!$CK381)=1),\"Y\",\"N\")))","v":""},{"$f":"IF(OR('Enrollment Form'!$CK381=\"\",'Enrollment Form'!$CK381=\"No\"),\"-\",IF(COUNTA('Enrollment Form'!$CM381:$CN381)=2,\"Y\",\"N\"))","v":"-"},{"$f":"IF($B374=\"N\",\"\",IF(COUNTIF('Enrollment Form'!$CZ381:$DO381,\"Other\")=COUNTA('Enrollment Form'!$DF381,'Enrollment Form'!$DA381,'Enrollment Form'!$DK381,'Enrollment Form'!$DP381),\"Y\",\"N\"))","v":""},{"$f":"IF($B374=\"N\",\"\",IF(OR('Enrollment Form'!B381<>\"Subscriber\",'Enrollment Form'!C381=\"ROC\",COUNTIF('Enrollment Form'!AS381:AT381,\"Yes\")>=1),\"-\",IF(AND('Enrollment Form'!C381=\"Enroll\",COUNTIF('Enrollment Form'!AS381:AT381,\"No\")=2,'Enrollment Form'!AU381=\"\"),\"N\",\"Y\")))","v":""},{"$f":"IF(OR(B374=\"N\",'Enrollment Form'!B381<>\"Subscriber\",'Enrollment Form'!C381=\"ROC\",'Enrollment Form'!O381<>\"Multiple of Salary\"),\"-\",IF(COUNTA('Enrollment Form'!T381:U381)<2,\"N\",\"Y\"))","v":"-"},{"$f":"IF(B374=\"N\",\"\",IF(OR('Enrollment Form'!C381=\"ROC\",'Enrollment Form'!B381<>\"Subscriber\",'Enrollment Form'!O381=\"Waive\",'Enrollment Form'!O381=\"\"),\"-\",IF('Enrollment Form'!P381=\"\",\"N\",\"Y\")))","v":""},{"$f":"IF($B374=\"N\",\"\",IF(AND('Enrollment Form'!$C381=\"ROC\",'Enrollment Form'!$DS381<>\"\"),\"Y\",IF(AND('Enrollment Form'!$C381=\"ROC\",'Enrollment Form'!$DS381=\"\"),\"N\",IF(AND('Enrollment Form'!$C381=\"Enroll\",'Enrollment Form'!$B381=\"Subscriber\",'Enrollment Form'!$CQ381=\"No\",'Enrollment Form'!$DS381=\"\"),\"N\",IF(AND('Enrollment Form'!$C381=\"Enroll\",'Enrollment Form'!$B381=\"Subscriber\",'Enrollment Form'!$CQ381=\"Yes\"),\"-\",\"Y\")))))","v":""},{"$f":"IF($B374=\"N\",\"\",IF(AND('Enrollment Form'!$C381=\"ROC\",'Enrollment Form'!$DT381<>\"\"),\"Y\",IF(AND('Enrollment Form'!$C381=\"ROC\",'Enrollment Form'!$DT381=\"\"),\"N\",IF(AND('Enrollment Form'!$C381=\"Enroll\",'Enrollment Form'!$B381=\"Subscriber\",'Enrollment Form'!$CQ381=\"No\",'Enrollment Form'!$DT381=\"\"),\"N\",IF(AND('Enrollment Form'!$C381=\"Enroll\",'Enrollment Form'!$B381=\"Subscriber\",'Enrollment Form'!$CQ381=\"Yes\"),\"-\",\"Y\")))))","v":""},{"$f":"IF('Enrollment Form'!AH381=\"\",\"\",IF(ISERROR(SEARCH(\".\",'Enrollment Form'!AH381,SEARCH(\"@\",'Enrollment Form'!AH381))),\"N\",\"Y\"))","v":""},{"$f":"IF(OR($B374=\"N\",'Enrollment Form'!$G381=\"\"),\"\",IF('Enrollment Form'!$B381<>\"Subscriber\",\"-\",IF(COUNTIF('Enrollment Form'!$AS381:$AT381,\"Yes\")=2,\"N\",\"Y\")))","v":""},{"$f":"IF(OR('Enrollment Form'!$CC381=\"\",'Enrollment Form'!$CC381=\"No\"),\"-\",IF(AND('Enrollment Form'!$CC381=\"Yes\",'Enrollment Form'!$CD381=\"\"),\"N\",\"Y\"))","v":"-"},{"$f":"IF(OR('Enrollment Form'!$CE381=\"\",'Enrollment Form'!$CE381=\"No\"),\"-\",IF(AND('Enrollment Form'!$CE381=\"Yes\",'Enrollment Form'!$CF381=\"\"),\"N\",\"Y\"))","v":"-"},{"$f":"IF(OR('Enrollment Form'!$CG381=\"\",'Enrollment Form'!$CG381=\"No\"),\"-\",IF(AND('Enrollment Form'!$CG381=\"Yes\",'Enrollment Form'!$CH381=\"\"),\"N\",\"Y\"))","v":"-"},{"$f":"IF(OR('Enrollment Form'!$CG381=\"\",'Enrollment Form'!$CG381=\"No\"),\"-\",IF(AND('Enrollment Form'!$CG381=\"Yes\",'Enrollment Form'!$CI381=\"\"),\"N\",\"Y\"))","v":"-"},{"$f":"IF('Enrollment Form'!B381<>\"Subscriber\",\"-\",IF(AND('Enrollment Form'!B381=\"Subscriber\",'Enrollment Form'!C381=\"Enroll\",'Enrollment Form'!AA381=\"\"),\"N\",\"Y\"))","v":"-"},{"$f":"IF(OR('Enrollment Form'!B381=\"Subscriber\",'Enrollment Form'!B381=\"\"),\"-\",IF('Enrollment Form'!BI381=\"\",\"N\",\"Y\"))","v":"-"},{"$f":"IF('Enrollment Form'!B381<>\"Subscriber\",\"-\",IF(AND('Enrollment Form'!B381=\"Subscriber\",'Enrollment Form'!G381=\"\"),\"N\",\"Y\"))","v":"-"},{"$f":"IF('Enrollment Form'!A381=\"\",\"\",IF('Enrollment Form'!B381=\"Subscriber\",\"-\",IF(AND('Enrollment Form'!B381<>\"Subscriber\",'Enrollment Form'!G381='Enrollment Form'!H381),\"N\",\"Y\")))","v":""},0]
[382,{"$f":"IF('Enrollment Form'!$A382<>\"\",\"Y\",\"N\")","v":"N"},{"$f":"IF(AND('Enrollment Form'!$B382=\"\",'Enrollment Form'!$C382<>\"\"),\"N\",IF($B375=\"N\",\"\",\"Y\"))","v":""},{"$f":"IF(OR($B375=\"N\",'Enrollment Form'!G382=\"\"),\"\",IF('Enrollment Form'!$B382<>\"Subscriber\",\"\",IF('Enrollment Form'!$G382='Enrollment Form'!$H382,\"Y\",\"N\")))","v":""},{"$f":"IF($B375=\"N\",\"\",IF(AND(COUNTIFS('Enrollment Form'!$H$11:$H$1000,'Enrollment Form'!$H382,'Enrollment Form'!$B$11:$B$1000,'Enrollment Form'!$B382)>1,'Enrollment Form'!$H382<>\"\"),\"N\",\"Y\"))","v":""},{"$f":"IF($B375=\"N\",\"\",IF(LEN('Enrollment Form'!$Y382)=0,\"\",IF(LEN('Enrollment Form'!$Y382)<>5,\"N\",\"Y\")))","v":""},{"$f":"IF($B375=\"N\",\"\",IF(LEN('Enrollment Form'!$AD382=0),\"\",IF(LEN('Enrollment Form'!$AD382)<>5,\"N\",\"Y\")))","v":""},{"$f":"IF($B375=\"N\",\"\",IF(LEN('Enrollment Form'!$BL382=0),\"\",IF(LEN('Enrollment Form'!$BL382)<>5,\"N\",\"Y\")))","v":""},{"$f":"IF($B375=\"N\",\"\",IF(LEN('Enrollment Form'!$AE382)=0,\"\",IF(LEN('Enrollment Form'!$AE382)<>10,\"N\",\"Y\")))","v":""},{"$f":"IF($B375=\"N\",\"\",IF(LEN('Enrollment Form'!$AF382)=0,\"\",IF(LEN('Enrollment Form'!$AF382)<>10,\"N\",\"Y\")))","v":""},{"$f":"IF('Enrollment Form'!$O382<>\"Graded\",\"-\",IF(AND('Enrollment Form'!$O382=\"Graded\",'Enrollment Form'!$AO382<>\"\"),\"Y\",\"N\"))","v":"-"},{"$f":"IF($B375=\"N\",\"\",IF(OR('Enrollment Form'!$B382<>\"Subscriber\",'Enrollment Form'!$C382=\"ROC\"),\"-\",IF(AND('Enrollment Form'!$B382=\"Subscriber\",'Enrollment Form'!$C382=\"Enroll\",'Enrollment Form'!$AJ382<>\"\"),\"Y\",\"N\")))","v":""},{"$f":"IF($B375=\"N\",\"\",IF(OR('Enrollment Form'!$B382<>\"Subscriber\",'Enrollment Form'!$C382=\"ROC\"),\"-\",IF(AND('Enrollment Form'!$B382=\"Subscriber\",'Enrollment Form'!$C382=\"Enroll\",'Enrollment Form'!$AK382<>\"\"),\"Y\",\"N\")))","v":""},{"$f":"IF($B375=\"N\",\"\",IF(OR('Enrollment Form'!$B382<>\"Subscriber\",'Enrollment Form'!$C382=\"ROC\"),\"-\",IF(AND('Enrollment Form'!$B382=\"Subscriber\",'Enrollment Form'!$C382=\"Enroll\",'Enrollment Form'!$AL382<>\"\"),\"Y\",\"N\")))","v":""},{"$f":"IF($B375=\"N\",\"\",IF(OR('Enrollment Form'!$B382<>\"Subscriber\",'Enrollment Form'!$C382=\"ROC\"),\"-\",IF(AND('Enrollment Form'!$B382=\"Subscriber\",'Enrollment Form'!$C382=\"Enroll\",'Enrollment Form'!$AM382<>\"\"),\"Y\",\"N\")))","v":""},{"$f":"IF($B375=\"N\",\"\",IF(OR('Enrollment Form'!$B382<>\"Subscriber\",'Enrollment Form'!$C382=\"ROC\"),\"-\",IF(AND('Enrollment Form'!$B382=\"Subscriber\",'Enrollment Form'!$C382=\"Enroll\",'Enrollment Form'!$AN382<>\"\"),\"Y\",\"N\")))","v":""},{"$f":"IF($B375=\"N\",\"\",IF(OR('Enrollment Form'!$B382<>\"Subscriber\",'Enrollment Form'!$C382=\"ROC\"),\"-\",IF(AND('Enrollment Form'!$B382=\"Subscriber\",'Enrollment Form'!$C382=\"Enroll\",'Enrollment Form'!$AP382<>\"\"),\"Y\",\"N\")))","v":""},{"$f":"IF($B375=\"N\",\"\",IF($Q375=\"-\",\"-\",IF(AND($Q375=\"Y\",'Enrollment Form'!$AP382=\"No\"),\"-\",IF(AND($Q375=\"Y\",'Enrollment Form'!$AP382=\"Yes\",'Enrollment Form'!$AQ382<>\"\"),\"Y\",\"N\"))))","v":""},{"$f":"IF($B375=\"N\",\"\",IF(OR('Enrollment Form'!$B382<>\"Subscriber\",'Enrollment Form'!$C382=\"ROC\"),\"-\",IF(AND('Enrollment Form'!$B382=\"Subscriber\",'Enrollment Form'!$C382=\"Enroll\",'Enrollment Form'!$CO382<>\"\"),\"Y\",\"N\")))","v":""},{"$f":"IF($B375=\"N\",\"\",IF($S375=\"-\",\"-\",IF(AND($S375=\"Y\",'Enrollment Form'!$CO382=\"No\"),\"-\",IF(AND($S375=\"Y\",'Enrollment Form'!$CO382=\"Yes\",'Enrollment Form'!$CP382<>\"\"),\"Y\",\"N\"))))","v":""},{"$f":"IF(OR('Enrollment Form'!$AV382=\"Yes\",'Enrollment Form'!$AV382=\"\"),\"-\",IF(AND('Enrollment Form'!$AV382=\"No\",ISERROR(FIND(\"HMO\",VLOOKUP('Enrollment Form'!G382,'Enrollment Form'!H$11:J$1000,3,FALSE),1))=FALSE,COUNTA('Enrollment Form'!$AW382:$AZ382)=4),\"Y\",\"N\"))","v":"-"},{"$f":"IF($B375=\"N\",\"\",IF('Enrollment Form'!$B382=\"Subscriber\",\"-\",IF(COUNTA('Enrollment Form'!$BE382,'Enrollment Form'!$BG382)=2,\"Y\",\"N\")))","v":""},{"$f":"IF($B375=\"N\",\"\",IF(OR('Enrollment Form'!$AU382=\"\",'Enrollment Form'!$AU382=\"No\"),\"-\",IF(AND('Enrollment Form'!$AU382=\"Yes\",COUNTA('Enrollment Form'!$CK382)=1),\"Y\",\"N\")))","v":""},{"$f":"IF(OR('Enrollment Form'!$CK382=\"\",'Enrollment Form'!$CK382=\"No\"),\"-\",IF(COUNTA('Enrollment Form'!$CM382:$CN382)=2,\"Y\",\"N\"))","v":"-"},{"$f":"IF($B375=\"N\",\"\",IF(COUNTIF('Enrollment Form'!$CZ382:$DO382,\"Other\")=COUNTA('Enrollment Form'!$DF382,'Enrollment Form'!$DA382,'Enrollment Form'!$DK382,'Enrollment Form'!$DP382),\"Y\",\"N\"))","v":""},{"$f":"IF($B375=\"N\",\"\",IF(OR('Enrollment Form'!B382<>\"Subscriber\",'Enrollment Form'!C382=\"ROC\",COUNTIF('Enrollment Form'!AS382:AT382,\"Yes\")>=1),\"-\",IF(AND('Enrollment Form'!C382=\"Enroll\",COUNTIF('Enrollment Form'!AS382:AT382,\"No\")=2,'Enrollment Form'!AU382=\"\"),\"N\",\"Y\")))","v":""},{"$f":"IF(OR(B375=\"N\",'Enrollment Form'!B382<>\"Subscriber\",'Enrollment Form'!C382=\"ROC\",'Enrollment Form'!O382<>\"Multiple of Salary\"),\"-\",IF(COUNTA('Enrollment Form'!T382:U382)<2,\"N\",\"Y\"))","v":"-"},{"$f":"IF(B375=\"N\",\"\",IF(OR('Enrollment Form'!C382=\"ROC\",'Enrollment Form'!B382<>\"Subscriber\",'Enrollment Form'!O382=\"Waive\",'Enrollment Form'!O382=\"\"),\"-\",IF('Enrollment Form'!P382=\"\",\"N\",\"Y\")))","v":""},{"$f":"IF($B375=\"N\",\"\",IF(AND('Enrollment Form'!$C382=\"ROC\",'Enrollment Form'!$DS382<>\"\"),\"Y\",IF(AND('Enrollment Form'!$C382=\"ROC\",'Enrollment Form'!$DS382=\"\"),\"N\",IF(AND('Enrollment Form'!$C382=\"Enroll\",'Enrollment Form'!$B382=\"Subscriber\",'Enrollment Form'!$CQ382=\"No\",'Enrollment Form'!$DS382=\"\"),\"N\",IF(AND('Enrollment Form'!$C382=\"Enroll\",'Enrollment Form'!$B382=\"Subscriber\",'Enrollment Form'!$CQ382=\"Yes\"),\"-\",\"Y\")))))","v":""},{"$f":"IF($B375=\"N\",\"\",IF(AND('Enrollment Form'!$C382=\"ROC\",'Enrollment Form'!$DT382<>\"\"),\"Y\",IF(AND('Enrollment Form'!$C382=\"ROC\",'Enrollment Form'!$DT382=\"\"),\"N\",IF(AND('Enrollment Form'!$C382=\"Enroll\",'Enrollment Form'!$B382=\"Subscriber\",'Enrollment Form'!$CQ382=\"No\",'Enrollment Form'!$DT382=\"\"),\"N\",IF(AND('Enrollment Form'!$C382=\"Enroll\",'Enrollment Form'!$B382=\"Subscriber\",'Enrollment Form'!$CQ382=\"Yes\"),\"-\",\"Y\")))))","v":""},{"$f":"IF('Enrollment Form'!AH382=\"\",\"\",IF(ISERROR(SEARCH(\".\",'Enrollment Form'!AH382,SEARCH(\"@\",'Enrollment Form'!AH382))),\"N\",\"Y\"))","v":""},{"$f":"IF(OR($B375=\"N\",'Enrollment Form'!$G382=\"\"),\"\",IF('Enrollment Form'!$B382<>\"Subscriber\",\"-\",IF(COUNTIF('Enrollment Form'!$AS382:$AT382,\"Yes\")=2,\"N\",\"Y\")))","v":""},{"$f":"IF(OR('Enrollment Form'!$CC382=\"\",'Enrollment Form'!$CC382=\"No\"),\"-\",IF(AND('Enrollment Form'!$CC382=\"Yes\",'Enrollment Form'!$CD382=\"\"),\"N\",\"Y\"))","v":"-"},{"$f":"IF(OR('Enrollment Form'!$CE382=\"\",'Enrollment Form'!$CE382=\"No\"),\"-\",IF(AND('Enrollment Form'!$CE382=\"Yes\",'Enrollment Form'!$CF382=\"\"),\"N\",\"Y\"))","v":"-"},{"$f":"IF(OR('Enrollment Form'!$CG382=\"\",'Enrollment Form'!$CG382=\"No\"),\"-\",IF(AND('Enrollment Form'!$CG382=\"Yes\",'Enrollment Form'!$CH382=\"\"),\"N\",\"Y\"))","v":"-"},{"$f":"IF(OR('Enrollment Form'!$CG382=\"\",'Enrollment Form'!$CG382=\"No\"),\"-\",IF(AND('Enrollment Form'!$CG382=\"Yes\",'Enrollment Form'!$CI382=\"\"),\"N\",\"Y\"))","v":"-"},{"$f":"IF('Enrollment Form'!B382<>\"Subscriber\",\"-\",IF(AND('Enrollment Form'!B382=\"Subscriber\",'Enrollment Form'!C382=\"Enroll\",'Enrollment Form'!AA382=\"\"),\"N\",\"Y\"))","v":"-"},{"$f":"IF(OR('Enrollment Form'!B382=\"Subscriber\",'Enrollment Form'!B382=\"\"),\"-\",IF('Enrollment Form'!BI382=\"\",\"N\",\"Y\"))","v":"-"},{"$f":"IF('Enrollment Form'!B382<>\"Subscriber\",\"-\",IF(AND('Enrollment Form'!B382=\"Subscriber\",'Enrollment Form'!G382=\"\"),\"N\",\"Y\"))","v":"-"},{"$f":"IF('Enrollment Form'!A382=\"\",\"\",IF('Enrollment Form'!B382=\"Subscriber\",\"-\",IF(AND('Enrollment Form'!B382<>\"Subscriber\",'Enrollment Form'!G382='Enrollment Form'!H382),\"N\",\"Y\")))","v":""},0]
[383,{"$f":"IF('Enrollment Form'!$A383<>\"\",\"Y\",\"N\")","v":"N"},{"$f":"IF(AND('Enrollment Form'!$B383=\"\",'Enrollment Form'!$C383<>\"\"),\"N\",IF($B376=\"N\",\"\",\"Y\"))","v":""},{"$f":"IF(OR($B376=\"N\",'Enrollment Form'!G383=\"\"),\"\",IF('Enrollment Form'!$B383<>\"Subscriber\",\"\",IF('Enrollment Form'!$G383='Enrollment Form'!$H383,\"Y\",\"N\")))","v":""},{"$f":"IF($B376=\"N\",\"\",IF(AND(COUNTIFS('Enrollment Form'!$H$11:$H$1000,'Enrollment Form'!$H383,'Enrollment Form'!$B$11:$B$1000,'Enrollment Form'!$B383)>1,'Enrollment Form'!$H383<>\"\"),\"N\",\"Y\"))","v":""},{"$f":"IF($B376=\"N\",\"\",IF(LEN('Enrollment Form'!$Y383)=0,\"\",IF(LEN('Enrollment Form'!$Y383)<>5,\"N\",\"Y\")))","v":""},{"$f":"IF($B376=\"N\",\"\",IF(LEN('Enrollment Form'!$AD383=0),\"\",IF(LEN('Enrollment Form'!$AD383)<>5,\"N\",\"Y\")))","v":""},{"$f":"IF($B376=\"N\",\"\",IF(LEN('Enrollment Form'!$BL383=0),\"\",IF(LEN('Enrollment Form'!$BL383)<>5,\"N\",\"Y\")))","v":""},{"$f":"IF($B376=\"N\",\"\",IF(LEN('Enrollment Form'!$AE383)=0,\"\",IF(LEN('Enrollment Form'!$AE383)<>10,\"N\",\"Y\")))","v":""},{"$f":"IF($B376=\"N\",\"\",IF(LEN('Enrollment Form'!$AF383)=0,\"\",IF(LEN('Enrollment Form'!$AF383)<>10,\"N\",\"Y\")))","v":""},{"$f":"IF('Enrollment Form'!$O383<>\"Graded\",\"-\",IF(AND('Enrollment Form'!$O383=\"Graded\",'Enrollment Form'!$AO383<>\"\"),\"Y\",\"N\"))","v":"-"},{"$f":"IF($B376=\"N\",\"\",IF(OR('Enrollment Form'!$B383<>\"Subscriber\",'Enrollment Form'!$C383=\"ROC\"),\"-\",IF(AND('Enrollment Form'!$B383=\"Subscriber\",'Enrollment Form'!$C383=\"Enroll\",'Enrollment Form'!$AJ383<>\"\"),\"Y\",\"N\")))","v":""},{"$f":"IF($B376=\"N\",\"\",IF(OR('Enrollment Form'!$B383<>\"Subscriber\",'Enrollment Form'!$C383=\"ROC\"),\"-\",IF(AND('Enrollment Form'!$B383=\"Subscriber\",'Enrollment Form'!$C383=\"Enroll\",'Enrollment Form'!$AK383<>\"\"),\"Y\",\"N\")))","v":""},{"$f":"IF($B376=\"N\",\"\",IF(OR('Enrollment Form'!$B383<>\"Subscriber\",'Enrollment Form'!$C383=\"ROC\"),\"-\",IF(AND('Enrollment Form'!$B383=\"Subscriber\",'Enrollment Form'!$C383=\"Enroll\",'Enrollment Form'!$AL383<>\"\"),\"Y\",\"N\")))","v":""},{"$f":"IF($B376=\"N\",\"\",IF(OR('Enrollment Form'!$B383<>\"Subscriber\",'Enrollment Form'!$C383=\"ROC\"),\"-\",IF(AND('Enrollment Form'!$B383=\"Subscriber\",'Enrollment Form'!$C383=\"Enroll\",'Enrollment Form'!$AM383<>\"\"),\"Y\",\"N\")))","v":""},{"$f":"IF($B376=\"N\",\"\",IF(OR('Enrollment Form'!$B383<>\"Subscriber\",'Enrollment Form'!$C383=\"ROC\"),\"-\",IF(AND('Enrollment Form'!$B383=\"Subscriber\",'Enrollment Form'!$C383=\"Enroll\",'Enrollment Form'!$AN383<>\"\"),\"Y\",\"N\")))","v":""},{"$f":"IF($B376=\"N\",\"\",IF(OR('Enrollment Form'!$B383<>\"Subscriber\",'Enrollment Form'!$C383=\"ROC\"),\"-\",IF(AND('Enrollment Form'!$B383=\"Subscriber\",'Enrollment Form'!$C383=\"Enroll\",'Enrollment Form'!$AP383<>\"\"),\"Y\",\"N\")))","v":""},{"$f":"IF($B376=\"N\",\"\",IF($Q376=\"-\",\"-\",IF(AND($Q376=\"Y\",'Enrollment Form'!$AP383=\"No\"),\"-\",IF(AND($Q376=\"Y\",'Enrollment Form'!$AP383=\"Yes\",'Enrollment Form'!$AQ383<>\"\"),\"Y\",\"N\"))))","v":""},{"$f":"IF($B376=\"N\",\"\",IF(OR('Enrollment Form'!$B383<>\"Subscriber\",'Enrollment Form'!$C383=\"ROC\"),\"-\",IF(AND('Enrollment Form'!$B383=\"Subscriber\",'Enrollment Form'!$C383=\"Enroll\",'Enrollment Form'!$CO383<>\"\"),\"Y\",\"N\")))","v":""},{"$f":"IF($B376=\"N\",\"\",IF($S376=\"-\",\"-\",IF(AND($S376=\"Y\",'Enrollment Form'!$CO383=\"No\"),\"-\",IF(AND($S376=\"Y\",'Enrollment Form'!$CO383=\"Yes\",'Enrollment Form'!$CP383<>\"\"),\"Y\",\"N\"))))","v":""},{"$f":"IF(OR('Enrollment Form'!$AV383=\"Yes\",'Enrollment Form'!$AV383=\"\"),\"-\",IF(AND('Enrollment Form'!$AV383=\"No\",ISERROR(FIND(\"HMO\",VLOOKUP('Enrollment Form'!G383,'Enrollment Form'!H$11:J$1000,3,FALSE),1))=FALSE,COUNTA('Enrollment Form'!$AW383:$AZ383)=4),\"Y\",\"N\"))","v":"-"},{"$f":"IF($B376=\"N\",\"\",IF('Enrollment Form'!$B383=\"Subscriber\",\"-\",IF(COUNTA('Enrollment Form'!$BE383,'Enrollment Form'!$BG383)=2,\"Y\",\"N\")))","v":""},{"$f":"IF($B376=\"N\",\"\",IF(OR('Enrollment Form'!$AU383=\"\",'Enrollment Form'!$AU383=\"No\"),\"-\",IF(AND('Enrollment Form'!$AU383=\"Yes\",COUNTA('Enrollment Form'!$CK383)=1),\"Y\",\"N\")))","v":""},{"$f":"IF(OR('Enrollment Form'!$CK383=\"\",'Enrollment Form'!$CK383=\"No\"),\"-\",IF(COUNTA('Enrollment Form'!$CM383:$CN383)=2,\"Y\",\"N\"))","v":"-"},{"$f":"IF($B376=\"N\",\"\",IF(COUNTIF('Enrollment Form'!$CZ383:$DO383,\"Other\")=COUNTA('Enrollment Form'!$DF383,'Enrollment Form'!$DA383,'Enrollment Form'!$DK383,'Enrollment Form'!$DP383),\"Y\",\"N\"))","v":""},{"$f":"IF($B376=\"N\",\"\",IF(OR('Enrollment Form'!B383<>\"Subscriber\",'Enrollment Form'!C383=\"ROC\",COUNTIF('Enrollment Form'!AS383:AT383,\"Yes\")>=1),\"-\",IF(AND('Enrollment Form'!C383=\"Enroll\",COUNTIF('Enrollment Form'!AS383:AT383,\"No\")=2,'Enrollment Form'!AU383=\"\"),\"N\",\"Y\")))","v":""},{"$f":"IF(OR(B376=\"N\",'Enrollment Form'!B383<>\"Subscriber\",'Enrollment Form'!C383=\"ROC\",'Enrollment Form'!O383<>\"Multiple of Salary\"),\"-\",IF(COUNTA('Enrollment Form'!T383:U383)<2,\"N\",\"Y\"))","v":"-"},{"$f":"IF(B376=\"N\",\"\",IF(OR('Enrollment Form'!C383=\"ROC\",'Enrollment Form'!B383<>\"Subscriber\",'Enrollment Form'!O383=\"Waive\",'Enrollment Form'!O383=\"\"),\"-\",IF('Enrollment Form'!P383=\"\",\"N\",\"Y\")))","v":""},{"$f":"IF($B376=\"N\",\"\",IF(AND('Enrollment Form'!$C383=\"ROC\",'Enrollment Form'!$DS383<>\"\"),\"Y\",IF(AND('Enrollment Form'!$C383=\"ROC\",'Enrollment Form'!$DS383=\"\"),\"N\",IF(AND('Enrollment Form'!$C383=\"Enroll\",'Enrollment Form'!$B383=\"Subscriber\",'Enrollment Form'!$CQ383=\"No\",'Enrollment Form'!$DS383=\"\"),\"N\",IF(AND('Enrollment Form'!$C383=\"Enroll\",'Enrollment Form'!$B383=\"Subscriber\",'Enrollment Form'!$CQ383=\"Yes\"),\"-\",\"Y\")))))","v":""},{"$f":"IF($B376=\"N\",\"\",IF(AND('Enrollment Form'!$C383=\"ROC\",'Enrollment Form'!$DT383<>\"\"),\"Y\",IF(AND('Enrollment Form'!$C383=\"ROC\",'Enrollment Form'!$DT383=\"\"),\"N\",IF(AND('Enrollment Form'!$C383=\"Enroll\",'Enrollment Form'!$B383=\"Subscriber\",'Enrollment Form'!$CQ383=\"No\",'Enrollment Form'!$DT383=\"\"),\"N\",IF(AND('Enrollment Form'!$C383=\"Enroll\",'Enrollment Form'!$B383=\"Subscriber\",'Enrollment Form'!$CQ383=\"Yes\"),\"-\",\"Y\")))))","v":""},{"$f":"IF('Enrollment Form'!AH383=\"\",\"\",IF(ISERROR(SEARCH(\".\",'Enrollment Form'!AH383,SEARCH(\"@\",'Enrollment Form'!AH383))),\"N\",\"Y\"))","v":""},{"$f":"IF(OR($B376=\"N\",'Enrollment Form'!$G383=\"\"),\"\",IF('Enrollment Form'!$B383<>\"Subscriber\",\"-\",IF(COUNTIF('Enrollment Form'!$AS383:$AT383,\"Yes\")=2,\"N\",\"Y\")))","v":""},{"$f":"IF(OR('Enrollment Form'!$CC383=\"\",'Enrollment Form'!$CC383=\"No\"),\"-\",IF(AND('Enrollment Form'!$CC383=\"Yes\",'Enrollment Form'!$CD383=\"\"),\"N\",\"Y\"))","v":"-"},{"$f":"IF(OR('Enrollment Form'!$CE383=\"\",'Enrollment Form'!$CE383=\"No\"),\"-\",IF(AND('Enrollment Form'!$CE383=\"Yes\",'Enrollment Form'!$CF383=\"\"),\"N\",\"Y\"))","v":"-"},{"$f":"IF(OR('Enrollment Form'!$CG383=\"\",'Enrollment Form'!$CG383=\"No\"),\"-\",IF(AND('Enrollment Form'!$CG383=\"Yes\",'Enrollment Form'!$CH383=\"\"),\"N\",\"Y\"))","v":"-"},{"$f":"IF(OR('Enrollment Form'!$CG383=\"\",'Enrollment Form'!$CG383=\"No\"),\"-\",IF(AND('Enrollment Form'!$CG383=\"Yes\",'Enrollment Form'!$CI383=\"\"),\"N\",\"Y\"))","v":"-"},{"$f":"IF('Enrollment Form'!B383<>\"Subscriber\",\"-\",IF(AND('Enrollment Form'!B383=\"Subscriber\",'Enrollment Form'!C383=\"Enroll\",'Enrollment Form'!AA383=\"\"),\"N\",\"Y\"))","v":"-"},{"$f":"IF(OR('Enrollment Form'!B383=\"Subscriber\",'Enrollment Form'!B383=\"\"),\"-\",IF('Enrollment Form'!BI383=\"\",\"N\",\"Y\"))","v":"-"},{"$f":"IF('Enrollment Form'!B383<>\"Subscriber\",\"-\",IF(AND('Enrollment Form'!B383=\"Subscriber\",'Enrollment Form'!G383=\"\"),\"N\",\"Y\"))","v":"-"},{"$f":"IF('Enrollment Form'!A383=\"\",\"\",IF('Enrollment Form'!B383=\"Subscriber\",\"-\",IF(AND('Enrollment Form'!B383<>\"Subscriber\",'Enrollment Form'!G383='Enrollment Form'!H383),\"N\",\"Y\")))","v":""},0]
[384,{"$f":"IF('Enrollment Form'!$A384<>\"\",\"Y\",\"N\")","v":"N"},{"$f":"IF(AND('Enrollment Form'!$B384=\"\",'Enrollment Form'!$C384<>\"\"),\"N\",IF($B377=\"N\",\"\",\"Y\"))","v":""},{"$f":"IF(OR($B377=\"N\",'Enrollment Form'!G384=\"\"),\"\",IF('Enrollment Form'!$B384<>\"Subscriber\",\"\",IF('Enrollment Form'!$G384='Enrollment Form'!$H384,\"Y\",\"N\")))","v":""},{"$f":"IF($B377=\"N\",\"\",IF(AND(COUNTIFS('Enrollment Form'!$H$11:$H$1000,'Enrollment Form'!$H384,'Enrollment Form'!$B$11:$B$1000,'Enrollment Form'!$B384)>1,'Enrollment Form'!$H384<>\"\"),\"N\",\"Y\"))","v":""},{"$f":"IF($B377=\"N\",\"\",IF(LEN('Enrollment Form'!$Y384)=0,\"\",IF(LEN('Enrollment Form'!$Y384)<>5,\"N\",\"Y\")))","v":""},{"$f":"IF($B377=\"N\",\"\",IF(LEN('Enrollment Form'!$AD384=0),\"\",IF(LEN('Enrollment Form'!$AD384)<>5,\"N\",\"Y\")))","v":""},{"$f":"IF($B377=\"N\",\"\",IF(LEN('Enrollment Form'!$BL384=0),\"\",IF(LEN('Enrollment Form'!$BL384)<>5,\"N\",\"Y\")))","v":""},{"$f":"IF($B377=\"N\",\"\",IF(LEN('Enrollment Form'!$AE384)=0,\"\",IF(LEN('Enrollment Form'!$AE384)<>10,\"N\",\"Y\")))","v":""},{"$f":"IF($B377=\"N\",\"\",IF(LEN('Enrollment Form'!$AF384)=0,\"\",IF(LEN('Enrollment Form'!$AF384)<>10,\"N\",\"Y\")))","v":""},{"$f":"IF('Enrollment Form'!$O384<>\"Graded\",\"-\",IF(AND('Enrollment Form'!$O384=\"Graded\",'Enrollment Form'!$AO384<>\"\"),\"Y\",\"N\"))","v":"-"},{"$f":"IF($B377=\"N\",\"\",IF(OR('Enrollment Form'!$B384<>\"Subscriber\",'Enrollment Form'!$C384=\"ROC\"),\"-\",IF(AND('Enrollment Form'!$B384=\"Subscriber\",'Enrollment Form'!$C384=\"Enroll\",'Enrollment Form'!$AJ384<>\"\"),\"Y\",\"N\")))","v":""},{"$f":"IF($B377=\"N\",\"\",IF(OR('Enrollment Form'!$B384<>\"Subscriber\",'Enrollment Form'!$C384=\"ROC\"),\"-\",IF(AND('Enrollment Form'!$B384=\"Subscriber\",'Enrollment Form'!$C384=\"Enroll\",'Enrollment Form'!$AK384<>\"\"),\"Y\",\"N\")))","v":""},{"$f":"IF($B377=\"N\",\"\",IF(OR('Enrollment Form'!$B384<>\"Subscriber\",'Enrollment Form'!$C384=\"ROC\"),\"-\",IF(AND('Enrollment Form'!$B384=\"Subscriber\",'Enrollment Form'!$C384=\"Enroll\",'Enrollment Form'!$AL384<>\"\"),\"Y\",\"N\")))","v":""},{"$f":"IF($B377=\"N\",\"\",IF(OR('Enrollment Form'!$B384<>\"Subscriber\",'Enrollment Form'!$C384=\"ROC\"),\"-\",IF(AND('Enrollment Form'!$B384=\"Subscriber\",'Enrollment Form'!$C384=\"Enroll\",'Enrollment Form'!$AM384<>\"\"),\"Y\",\"N\")))","v":""},{"$f":"IF($B377=\"N\",\"\",IF(OR('Enrollment Form'!$B384<>\"Subscriber\",'Enrollment Form'!$C384=\"ROC\"),\"-\",IF(AND('Enrollment Form'!$B384=\"Subscriber\",'Enrollment Form'!$C384=\"Enroll\",'Enrollment Form'!$AN384<>\"\"),\"Y\",\"N\")))","v":""},{"$f":"IF($B377=\"N\",\"\",IF(OR('Enrollment Form'!$B384<>\"Subscriber\",'Enrollment Form'!$C384=\"ROC\"),\"-\",IF(AND('Enrollment Form'!$B384=\"Subscriber\",'Enrollment Form'!$C384=\"Enroll\",'Enrollment Form'!$AP384<>\"\"),\"Y\",\"N\")))","v":""},{"$f":"IF($B377=\"N\",\"\",IF($Q377=\"-\",\"-\",IF(AND($Q377=\"Y\",'Enrollment Form'!$AP384=\"No\"),\"-\",IF(AND($Q377=\"Y\",'Enrollment Form'!$AP384=\"Yes\",'Enrollment Form'!$AQ384<>\"\"),\"Y\",\"N\"))))","v":""},{"$f":"IF($B377=\"N\",\"\",IF(OR('Enrollment Form'!$B384<>\"Subscriber\",'Enrollment Form'!$C384=\"ROC\"),\"-\",IF(AND('Enrollment Form'!$B384=\"Subscriber\",'Enrollment Form'!$C384=\"Enroll\",'Enrollment Form'!$CO384<>\"\"),\"Y\",\"N\")))","v":""},{"$f":"IF($B377=\"N\",\"\",IF($S377=\"-\",\"-\",IF(AND($S377=\"Y\",'Enrollment Form'!$CO384=\"No\"),\"-\",IF(AND($S377=\"Y\",'Enrollment Form'!$CO384=\"Yes\",'Enrollment Form'!$CP384<>\"\"),\"Y\",\"N\"))))","v":""},{"$f":"IF(OR('Enrollment Form'!$AV384=\"Yes\",'Enrollment Form'!$AV384=\"\"),\"-\",IF(AND('Enrollment Form'!$AV384=\"No\",ISERROR(FIND(\"HMO\",VLOOKUP('Enrollment Form'!G384,'Enrollment Form'!H$11:J$1000,3,FALSE),1))=FALSE,COUNTA('Enrollment Form'!$AW384:$AZ384)=4),\"Y\",\"N\"))","v":"-"},{"$f":"IF($B377=\"N\",\"\",IF('Enrollment Form'!$B384=\"Subscriber\",\"-\",IF(COUNTA('Enrollment Form'!$BE384,'Enrollment Form'!$BG384)=2,\"Y\",\"N\")))","v":""},{"$f":"IF($B377=\"N\",\"\",IF(OR('Enrollment Form'!$AU384=\"\",'Enrollment Form'!$AU384=\"No\"),\"-\",IF(AND('Enrollment Form'!$AU384=\"Yes\",COUNTA('Enrollment Form'!$CK384)=1),\"Y\",\"N\")))","v":""},{"$f":"IF(OR('Enrollment Form'!$CK384=\"\",'Enrollment Form'!$CK384=\"No\"),\"-\",IF(COUNTA('Enrollment Form'!$CM384:$CN384)=2,\"Y\",\"N\"))","v":"-"},{"$f":"IF($B377=\"N\",\"\",IF(COUNTIF('Enrollment Form'!$CZ384:$DO384,\"Other\")=COUNTA('Enrollment Form'!$DF384,'Enrollment Form'!$DA384,'Enrollment Form'!$DK384,'Enrollment Form'!$DP384),\"Y\",\"N\"))","v":""},{"$f":"IF($B377=\"N\",\"\",IF(OR('Enrollment Form'!B384<>\"Subscriber\",'Enrollment Form'!C384=\"ROC\",COUNTIF('Enrollment Form'!AS384:AT384,\"Yes\")>=1),\"-\",IF(AND('Enrollment Form'!C384=\"Enroll\",COUNTIF('Enrollment Form'!AS384:AT384,\"No\")=2,'Enrollment Form'!AU384=\"\"),\"N\",\"Y\")))","v":""},{"$f":"IF(OR(B377=\"N\",'Enrollment Form'!B384<>\"Subscriber\",'Enrollment Form'!C384=\"ROC\",'Enrollment Form'!O384<>\"Multiple of Salary\"),\"-\",IF(COUNTA('Enrollment Form'!T384:U384)<2,\"N\",\"Y\"))","v":"-"},{"$f":"IF(B377=\"N\",\"\",IF(OR('Enrollment Form'!C384=\"ROC\",'Enrollment Form'!B384<>\"Subscriber\",'Enrollment Form'!O384=\"Waive\",'Enrollment Form'!O384=\"\"),\"-\",IF('Enrollment Form'!P384=\"\",\"N\",\"Y\")))","v":""},{"$f":"IF($B377=\"N\",\"\",IF(AND('Enrollment Form'!$C384=\"ROC\",'Enrollment Form'!$DS384<>\"\"),\"Y\",IF(AND('Enrollment Form'!$C384=\"ROC\",'Enrollment Form'!$DS384=\"\"),\"N\",IF(AND('Enrollment Form'!$C384=\"Enroll\",'Enrollment Form'!$B384=\"Subscriber\",'Enrollment Form'!$CQ384=\"No\",'Enrollment Form'!$DS384=\"\"),\"N\",IF(AND('Enrollment Form'!$C384=\"Enroll\",'Enrollment Form'!$B384=\"Subscriber\",'Enrollment Form'!$CQ384=\"Yes\"),\"-\",\"Y\")))))","v":""},{"$f":"IF($B377=\"N\",\"\",IF(AND('Enrollment Form'!$C384=\"ROC\",'Enrollment Form'!$DT384<>\"\"),\"Y\",IF(AND('Enrollment Form'!$C384=\"ROC\",'Enrollment Form'!$DT384=\"\"),\"N\",IF(AND('Enrollment Form'!$C384=\"Enroll\",'Enrollment Form'!$B384=\"Subscriber\",'Enrollment Form'!$CQ384=\"No\",'Enrollment Form'!$DT384=\"\"),\"N\",IF(AND('Enrollment Form'!$C384=\"Enroll\",'Enrollment Form'!$B384=\"Subscriber\",'Enrollment Form'!$CQ384=\"Yes\"),\"-\",\"Y\")))))","v":""},{"$f":"IF('Enrollment Form'!AH384=\"\",\"\",IF(ISERROR(SEARCH(\".\",'Enrollment Form'!AH384,SEARCH(\"@\",'Enrollment Form'!AH384))),\"N\",\"Y\"))","v":""},{"$f":"IF(OR($B377=\"N\",'Enrollment Form'!$G384=\"\"),\"\",IF('Enrollment Form'!$B384<>\"Subscriber\",\"-\",IF(COUNTIF('Enrollment Form'!$AS384:$AT384,\"Yes\")=2,\"N\",\"Y\")))","v":""},{"$f":"IF(OR('Enrollment Form'!$CC384=\"\",'Enrollment Form'!$CC384=\"No\"),\"-\",IF(AND('Enrollment Form'!$CC384=\"Yes\",'Enrollment Form'!$CD384=\"\"),\"N\",\"Y\"))","v":"-"},{"$f":"IF(OR('Enrollment Form'!$CE384=\"\",'Enrollment Form'!$CE384=\"No\"),\"-\",IF(AND('Enrollment Form'!$CE384=\"Yes\",'Enrollment Form'!$CF384=\"\"),\"N\",\"Y\"))","v":"-"},{"$f":"IF(OR('Enrollment Form'!$CG384=\"\",'Enrollment Form'!$CG384=\"No\"),\"-\",IF(AND('Enrollment Form'!$CG384=\"Yes\",'Enrollment Form'!$CH384=\"\"),\"N\",\"Y\"))","v":"-"},{"$f":"IF(OR('Enrollment Form'!$CG384=\"\",'Enrollment Form'!$CG384=\"No\"),\"-\",IF(AND('Enrollment Form'!$CG384=\"Yes\",'Enrollment Form'!$CI384=\"\"),\"N\",\"Y\"))","v":"-"},{"$f":"IF('Enrollment Form'!B384<>\"Subscriber\",\"-\",IF(AND('Enrollment Form'!B384=\"Subscriber\",'Enrollment Form'!C384=\"Enroll\",'Enrollment Form'!AA384=\"\"),\"N\",\"Y\"))","v":"-"},{"$f":"IF(OR('Enrollment Form'!B384=\"Subscriber\",'Enrollment Form'!B384=\"\"),\"-\",IF('Enrollment Form'!BI384=\"\",\"N\",\"Y\"))","v":"-"},{"$f":"IF('Enrollment Form'!B384<>\"Subscriber\",\"-\",IF(AND('Enrollment Form'!B384=\"Subscriber\",'Enrollment Form'!G384=\"\"),\"N\",\"Y\"))","v":"-"},{"$f":"IF('Enrollment Form'!A384=\"\",\"\",IF('Enrollment Form'!B384=\"Subscriber\",\"-\",IF(AND('Enrollment Form'!B384<>\"Subscriber\",'Enrollment Form'!G384='Enrollment Form'!H384),\"N\",\"Y\")))","v":""},0]
[385,{"$f":"IF('Enrollment Form'!$A385<>\"\",\"Y\",\"N\")","v":"N"},{"$f":"IF(AND('Enrollment Form'!$B385=\"\",'Enrollment Form'!$C385<>\"\"),\"N\",IF($B378=\"N\",\"\",\"Y\"))","v":""},{"$f":"IF(OR($B378=\"N\",'Enrollment Form'!G385=\"\"),\"\",IF('Enrollment Form'!$B385<>\"Subscriber\",\"\",IF('Enrollment Form'!$G385='Enrollment Form'!$H385,\"Y\",\"N\")))","v":""},{"$f":"IF($B378=\"N\",\"\",IF(AND(COUNTIFS('Enrollment Form'!$H$11:$H$1000,'Enrollment Form'!$H385,'Enrollment Form'!$B$11:$B$1000,'Enrollment Form'!$B385)>1,'Enrollment Form'!$H385<>\"\"),\"N\",\"Y\"))","v":""},{"$f":"IF($B378=\"N\",\"\",IF(LEN('Enrollment Form'!$Y385)=0,\"\",IF(LEN('Enrollment Form'!$Y385)<>5,\"N\",\"Y\")))","v":""},{"$f":"IF($B378=\"N\",\"\",IF(LEN('Enrollment Form'!$AD385=0),\"\",IF(LEN('Enrollment Form'!$AD385)<>5,\"N\",\"Y\")))","v":""},{"$f":"IF($B378=\"N\",\"\",IF(LEN('Enrollment Form'!$BL385=0),\"\",IF(LEN('Enrollment Form'!$BL385)<>5,\"N\",\"Y\")))","v":""},{"$f":"IF($B378=\"N\",\"\",IF(LEN('Enrollment Form'!$AE385)=0,\"\",IF(LEN('Enrollment Form'!$AE385)<>10,\"N\",\"Y\")))","v":""},{"$f":"IF($B378=\"N\",\"\",IF(LEN('Enrollment Form'!$AF385)=0,\"\",IF(LEN('Enrollment Form'!$AF385)<>10,\"N\",\"Y\")))","v":""},{"$f":"IF('Enrollment Form'!$O385<>\"Graded\",\"-\",IF(AND('Enrollment Form'!$O385=\"Graded\",'Enrollment Form'!$AO385<>\"\"),\"Y\",\"N\"))","v":"-"},{"$f":"IF($B378=\"N\",\"\",IF(OR('Enrollment Form'!$B385<>\"Subscriber\",'Enrollment Form'!$C385=\"ROC\"),\"-\",IF(AND('Enrollment Form'!$B385=\"Subscriber\",'Enrollment Form'!$C385=\"Enroll\",'Enrollment Form'!$AJ385<>\"\"),\"Y\",\"N\")))","v":""},{"$f":"IF($B378=\"N\",\"\",IF(OR('Enrollment Form'!$B385<>\"Subscriber\",'Enrollment Form'!$C385=\"ROC\"),\"-\",IF(AND('Enrollment Form'!$B385=\"Subscriber\",'Enrollment Form'!$C385=\"Enroll\",'Enrollment Form'!$AK385<>\"\"),\"Y\",\"N\")))","v":""},{"$f":"IF($B378=\"N\",\"\",IF(OR('Enrollment Form'!$B385<>\"Subscriber\",'Enrollment Form'!$C385=\"ROC\"),\"-\",IF(AND('Enrollment Form'!$B385=\"Subscriber\",'Enrollment Form'!$C385=\"Enroll\",'Enrollment Form'!$AL385<>\"\"),\"Y\",\"N\")))","v":""},{"$f":"IF($B378=\"N\",\"\",IF(OR('Enrollment Form'!$B385<>\"Subscriber\",'Enrollment Form'!$C385=\"ROC\"),\"-\",IF(AND('Enrollment Form'!$B385=\"Subscriber\",'Enrollment Form'!$C385=\"Enroll\",'Enrollment Form'!$AM385<>\"\"),\"Y\",\"N\")))","v":""},{"$f":"IF($B378=\"N\",\"\",IF(OR('Enrollment Form'!$B385<>\"Subscriber\",'Enrollment Form'!$C385=\"ROC\"),\"-\",IF(AND('Enrollment Form'!$B385=\"Subscriber\",'Enrollment Form'!$C385=\"Enroll\",'Enrollment Form'!$AN385<>\"\"),\"Y\",\"N\")))","v":""},{"$f":"IF($B378=\"N\",\"\",IF(OR('Enrollment Form'!$B385<>\"Subscriber\",'Enrollment Form'!$C385=\"ROC\"),\"-\",IF(AND('Enrollment Form'!$B385=\"Subscriber\",'Enrollment Form'!$C385=\"Enroll\",'Enrollment Form'!$AP385<>\"\"),\"Y\",\"N\")))","v":""},{"$f":"IF($B378=\"N\",\"\",IF($Q378=\"-\",\"-\",IF(AND($Q378=\"Y\",'Enrollment Form'!$AP385=\"No\"),\"-\",IF(AND($Q378=\"Y\",'Enrollment Form'!$AP385=\"Yes\",'Enrollment Form'!$AQ385<>\"\"),\"Y\",\"N\"))))","v":""},{"$f":"IF($B378=\"N\",\"\",IF(OR('Enrollment Form'!$B385<>\"Subscriber\",'Enrollment Form'!$C385=\"ROC\"),\"-\",IF(AND('Enrollment Form'!$B385=\"Subscriber\",'Enrollment Form'!$C385=\"Enroll\",'Enrollment Form'!$CO385<>\"\"),\"Y\",\"N\")))","v":""},{"$f":"IF($B378=\"N\",\"\",IF($S378=\"-\",\"-\",IF(AND($S378=\"Y\",'Enrollment Form'!$CO385=\"No\"),\"-\",IF(AND($S378=\"Y\",'Enrollment Form'!$CO385=\"Yes\",'Enrollment Form'!$CP385<>\"\"),\"Y\",\"N\"))))","v":""},{"$f":"IF(OR('Enrollment Form'!$AV385=\"Yes\",'Enrollment Form'!$AV385=\"\"),\"-\",IF(AND('Enrollment Form'!$AV385=\"No\",ISERROR(FIND(\"HMO\",VLOOKUP('Enrollment Form'!G385,'Enrollment Form'!H$11:J$1000,3,FALSE),1))=FALSE,COUNTA('Enrollment Form'!$AW385:$AZ385)=4),\"Y\",\"N\"))","v":"-"},{"$f":"IF($B378=\"N\",\"\",IF('Enrollment Form'!$B385=\"Subscriber\",\"-\",IF(COUNTA('Enrollment Form'!$BE385,'Enrollment Form'!$BG385)=2,\"Y\",\"N\")))","v":""},{"$f":"IF($B378=\"N\",\"\",IF(OR('Enrollment Form'!$AU385=\"\",'Enrollment Form'!$AU385=\"No\"),\"-\",IF(AND('Enrollment Form'!$AU385=\"Yes\",COUNTA('Enrollment Form'!$CK385)=1),\"Y\",\"N\")))","v":""},{"$f":"IF(OR('Enrollment Form'!$CK385=\"\",'Enrollment Form'!$CK385=\"No\"),\"-\",IF(COUNTA('Enrollment Form'!$CM385:$CN385)=2,\"Y\",\"N\"))","v":"-"},{"$f":"IF($B378=\"N\",\"\",IF(COUNTIF('Enrollment Form'!$CZ385:$DO385,\"Other\")=COUNTA('Enrollment Form'!$DF385,'Enrollment Form'!$DA385,'Enrollment Form'!$DK385,'Enrollment Form'!$DP385),\"Y\",\"N\"))","v":""},{"$f":"IF($B378=\"N\",\"\",IF(OR('Enrollment Form'!B385<>\"Subscriber\",'Enrollment Form'!C385=\"ROC\",COUNTIF('Enrollment Form'!AS385:AT385,\"Yes\")>=1),\"-\",IF(AND('Enrollment Form'!C385=\"Enroll\",COUNTIF('Enrollment Form'!AS385:AT385,\"No\")=2,'Enrollment Form'!AU385=\"\"),\"N\",\"Y\")))","v":""},{"$f":"IF(OR(B378=\"N\",'Enrollment Form'!B385<>\"Subscriber\",'Enrollment Form'!C385=\"ROC\",'Enrollment Form'!O385<>\"Multiple of Salary\"),\"-\",IF(COUNTA('Enrollment Form'!T385:U385)<2,\"N\",\"Y\"))","v":"-"},{"$f":"IF(B378=\"N\",\"\",IF(OR('Enrollment Form'!C385=\"ROC\",'Enrollment Form'!B385<>\"Subscriber\",'Enrollment Form'!O385=\"Waive\",'Enrollment Form'!O385=\"\"),\"-\",IF('Enrollment Form'!P385=\"\",\"N\",\"Y\")))","v":""},{"$f":"IF($B378=\"N\",\"\",IF(AND('Enrollment Form'!$C385=\"ROC\",'Enrollment Form'!$DS385<>\"\"),\"Y\",IF(AND('Enrollment Form'!$C385=\"ROC\",'Enrollment Form'!$DS385=\"\"),\"N\",IF(AND('Enrollment Form'!$C385=\"Enroll\",'Enrollment Form'!$B385=\"Subscriber\",'Enrollment Form'!$CQ385=\"No\",'Enrollment Form'!$DS385=\"\"),\"N\",IF(AND('Enrollment Form'!$C385=\"Enroll\",'Enrollment Form'!$B385=\"Subscriber\",'Enrollment Form'!$CQ385=\"Yes\"),\"-\",\"Y\")))))","v":""},{"$f":"IF($B378=\"N\",\"\",IF(AND('Enrollment Form'!$C385=\"ROC\",'Enrollment Form'!$DT385<>\"\"),\"Y\",IF(AND('Enrollment Form'!$C385=\"ROC\",'Enrollment Form'!$DT385=\"\"),\"N\",IF(AND('Enrollment Form'!$C385=\"Enroll\",'Enrollment Form'!$B385=\"Subscriber\",'Enrollment Form'!$CQ385=\"No\",'Enrollment Form'!$DT385=\"\"),\"N\",IF(AND('Enrollment Form'!$C385=\"Enroll\",'Enrollment Form'!$B385=\"Subscriber\",'Enrollment Form'!$CQ385=\"Yes\"),\"-\",\"Y\")))))","v":""},{"$f":"IF('Enrollment Form'!AH385=\"\",\"\",IF(ISERROR(SEARCH(\".\",'Enrollment Form'!AH385,SEARCH(\"@\",'Enrollment Form'!AH385))),\"N\",\"Y\"))","v":""},{"$f":"IF(OR($B378=\"N\",'Enrollment Form'!$G385=\"\"),\"\",IF('Enrollment Form'!$B385<>\"Subscriber\",\"-\",IF(COUNTIF('Enrollment Form'!$AS385:$AT385,\"Yes\")=2,\"N\",\"Y\")))","v":""},{"$f":"IF(OR('Enrollment Form'!$CC385=\"\",'Enrollment Form'!$CC385=\"No\"),\"-\",IF(AND('Enrollment Form'!$CC385=\"Yes\",'Enrollment Form'!$CD385=\"\"),\"N\",\"Y\"))","v":"-"},{"$f":"IF(OR('Enrollment Form'!$CE385=\"\",'Enrollment Form'!$CE385=\"No\"),\"-\",IF(AND('Enrollment Form'!$CE385=\"Yes\",'Enrollment Form'!$CF385=\"\"),\"N\",\"Y\"))","v":"-"},{"$f":"IF(OR('Enrollment Form'!$CG385=\"\",'Enrollment Form'!$CG385=\"No\"),\"-\",IF(AND('Enrollment Form'!$CG385=\"Yes\",'Enrollment Form'!$CH385=\"\"),\"N\",\"Y\"))","v":"-"},{"$f":"IF(OR('Enrollment Form'!$CG385=\"\",'Enrollment Form'!$CG385=\"No\"),\"-\",IF(AND('Enrollment Form'!$CG385=\"Yes\",'Enrollment Form'!$CI385=\"\"),\"N\",\"Y\"))","v":"-"},{"$f":"IF('Enrollment Form'!B385<>\"Subscriber\",\"-\",IF(AND('Enrollment Form'!B385=\"Subscriber\",'Enrollment Form'!C385=\"Enroll\",'Enrollment Form'!AA385=\"\"),\"N\",\"Y\"))","v":"-"},{"$f":"IF(OR('Enrollment Form'!B385=\"Subscriber\",'Enrollment Form'!B385=\"\"),\"-\",IF('Enrollment Form'!BI385=\"\",\"N\",\"Y\"))","v":"-"},{"$f":"IF('Enrollment Form'!B385<>\"Subscriber\",\"-\",IF(AND('Enrollment Form'!B385=\"Subscriber\",'Enrollment Form'!G385=\"\"),\"N\",\"Y\"))","v":"-"},{"$f":"IF('Enrollment Form'!A385=\"\",\"\",IF('Enrollment Form'!B385=\"Subscriber\",\"-\",IF(AND('Enrollment Form'!B385<>\"Subscriber\",'Enrollment Form'!G385='Enrollment Form'!H385),\"N\",\"Y\")))","v":""},0]
[386,{"$f":"IF('Enrollment Form'!$A386<>\"\",\"Y\",\"N\")","v":"N"},{"$f":"IF(AND('Enrollment Form'!$B386=\"\",'Enrollment Form'!$C386<>\"\"),\"N\",IF($B379=\"N\",\"\",\"Y\"))","v":""},{"$f":"IF(OR($B379=\"N\",'Enrollment Form'!G386=\"\"),\"\",IF('Enrollment Form'!$B386<>\"Subscriber\",\"\",IF('Enrollment Form'!$G386='Enrollment Form'!$H386,\"Y\",\"N\")))","v":""},{"$f":"IF($B379=\"N\",\"\",IF(AND(COUNTIFS('Enrollment Form'!$H$11:$H$1000,'Enrollment Form'!$H386,'Enrollment Form'!$B$11:$B$1000,'Enrollment Form'!$B386)>1,'Enrollment Form'!$H386<>\"\"),\"N\",\"Y\"))","v":""},{"$f":"IF($B379=\"N\",\"\",IF(LEN('Enrollment Form'!$Y386)=0,\"\",IF(LEN('Enrollment Form'!$Y386)<>5,\"N\",\"Y\")))","v":""},{"$f":"IF($B379=\"N\",\"\",IF(LEN('Enrollment Form'!$AD386=0),\"\",IF(LEN('Enrollment Form'!$AD386)<>5,\"N\",\"Y\")))","v":""},{"$f":"IF($B379=\"N\",\"\",IF(LEN('Enrollment Form'!$BL386=0),\"\",IF(LEN('Enrollment Form'!$BL386)<>5,\"N\",\"Y\")))","v":""},{"$f":"IF($B379=\"N\",\"\",IF(LEN('Enrollment Form'!$AE386)=0,\"\",IF(LEN('Enrollment Form'!$AE386)<>10,\"N\",\"Y\")))","v":""},{"$f":"IF($B379=\"N\",\"\",IF(LEN('Enrollment Form'!$AF386)=0,\"\",IF(LEN('Enrollment Form'!$AF386)<>10,\"N\",\"Y\")))","v":""},{"$f":"IF('Enrollment Form'!$O386<>\"Graded\",\"-\",IF(AND('Enrollment Form'!$O386=\"Graded\",'Enrollment Form'!$AO386<>\"\"),\"Y\",\"N\"))","v":"-"},{"$f":"IF($B379=\"N\",\"\",IF(OR('Enrollment Form'!$B386<>\"Subscriber\",'Enrollment Form'!$C386=\"ROC\"),\"-\",IF(AND('Enrollment Form'!$B386=\"Subscriber\",'Enrollment Form'!$C386=\"Enroll\",'Enrollment Form'!$AJ386<>\"\"),\"Y\",\"N\")))","v":""},{"$f":"IF($B379=\"N\",\"\",IF(OR('Enrollment Form'!$B386<>\"Subscriber\",'Enrollment Form'!$C386=\"ROC\"),\"-\",IF(AND('Enrollment Form'!$B386=\"Subscriber\",'Enrollment Form'!$C386=\"Enroll\",'Enrollment Form'!$AK386<>\"\"),\"Y\",\"N\")))","v":""},{"$f":"IF($B379=\"N\",\"\",IF(OR('Enrollment Form'!$B386<>\"Subscriber\",'Enrollment Form'!$C386=\"ROC\"),\"-\",IF(AND('Enrollment Form'!$B386=\"Subscriber\",'Enrollment Form'!$C386=\"Enroll\",'Enrollment Form'!$AL386<>\"\"),\"Y\",\"N\")))","v":""},{"$f":"IF($B379=\"N\",\"\",IF(OR('Enrollment Form'!$B386<>\"Subscriber\",'Enrollment Form'!$C386=\"ROC\"),\"-\",IF(AND('Enrollment Form'!$B386=\"Subscriber\",'Enrollment Form'!$C386=\"Enroll\",'Enrollment Form'!$AM386<>\"\"),\"Y\",\"N\")))","v":""},{"$f":"IF($B379=\"N\",\"\",IF(OR('Enrollment Form'!$B386<>\"Subscriber\",'Enrollment Form'!$C386=\"ROC\"),\"-\",IF(AND('Enrollment Form'!$B386=\"Subscriber\",'Enrollment Form'!$C386=\"Enroll\",'Enrollment Form'!$AN386<>\"\"),\"Y\",\"N\")))","v":""},{"$f":"IF($B379=\"N\",\"\",IF(OR('Enrollment Form'!$B386<>\"Subscriber\",'Enrollment Form'!$C386=\"ROC\"),\"-\",IF(AND('Enrollment Form'!$B386=\"Subscriber\",'Enrollment Form'!$C386=\"Enroll\",'Enrollment Form'!$AP386<>\"\"),\"Y\",\"N\")))","v":""},{"$f":"IF($B379=\"N\",\"\",IF($Q379=\"-\",\"-\",IF(AND($Q379=\"Y\",'Enrollment Form'!$AP386=\"No\"),\"-\",IF(AND($Q379=\"Y\",'Enrollment Form'!$AP386=\"Yes\",'Enrollment Form'!$AQ386<>\"\"),\"Y\",\"N\"))))","v":""},{"$f":"IF($B379=\"N\",\"\",IF(OR('Enrollment Form'!$B386<>\"Subscriber\",'Enrollment Form'!$C386=\"ROC\"),\"-\",IF(AND('Enrollment Form'!$B386=\"Subscriber\",'Enrollment Form'!$C386=\"Enroll\",'Enrollment Form'!$CO386<>\"\"),\"Y\",\"N\")))","v":""},{"$f":"IF($B379=\"N\",\"\",IF($S379=\"-\",\"-\",IF(AND($S379=\"Y\",'Enrollment Form'!$CO386=\"No\"),\"-\",IF(AND($S379=\"Y\",'Enrollment Form'!$CO386=\"Yes\",'Enrollment Form'!$CP386<>\"\"),\"Y\",\"N\"))))","v":""},{"$f":"IF(OR('Enrollment Form'!$AV386=\"Yes\",'Enrollment Form'!$AV386=\"\"),\"-\",IF(AND('Enrollment Form'!$AV386=\"No\",ISERROR(FIND(\"HMO\",VLOOKUP('Enrollment Form'!G386,'Enrollment Form'!H$11:J$1000,3,FALSE),1))=FALSE,COUNTA('Enrollment Form'!$AW386:$AZ386)=4),\"Y\",\"N\"))","v":"-"},{"$f":"IF($B379=\"N\",\"\",IF('Enrollment Form'!$B386=\"Subscriber\",\"-\",IF(COUNTA('Enrollment Form'!$BE386,'Enrollment Form'!$BG386)=2,\"Y\",\"N\")))","v":""},{"$f":"IF($B379=\"N\",\"\",IF(OR('Enrollment Form'!$AU386=\"\",'Enrollment Form'!$AU386=\"No\"),\"-\",IF(AND('Enrollment Form'!$AU386=\"Yes\",COUNTA('Enrollment Form'!$CK386)=1),\"Y\",\"N\")))","v":""},{"$f":"IF(OR('Enrollment Form'!$CK386=\"\",'Enrollment Form'!$CK386=\"No\"),\"-\",IF(COUNTA('Enrollment Form'!$CM386:$CN386)=2,\"Y\",\"N\"))","v":"-"},{"$f":"IF($B379=\"N\",\"\",IF(COUNTIF('Enrollment Form'!$CZ386:$DO386,\"Other\")=COUNTA('Enrollment Form'!$DF386,'Enrollment Form'!$DA386,'Enrollment Form'!$DK386,'Enrollment Form'!$DP386),\"Y\",\"N\"))","v":""},{"$f":"IF($B379=\"N\",\"\",IF(OR('Enrollment Form'!B386<>\"Subscriber\",'Enrollment Form'!C386=\"ROC\",COUNTIF('Enrollment Form'!AS386:AT386,\"Yes\")>=1),\"-\",IF(AND('Enrollment Form'!C386=\"Enroll\",COUNTIF('Enrollment Form'!AS386:AT386,\"No\")=2,'Enrollment Form'!AU386=\"\"),\"N\",\"Y\")))","v":""},{"$f":"IF(OR(B379=\"N\",'Enrollment Form'!B386<>\"Subscriber\",'Enrollment Form'!C386=\"ROC\",'Enrollment Form'!O386<>\"Multiple of Salary\"),\"-\",IF(COUNTA('Enrollment Form'!T386:U386)<2,\"N\",\"Y\"))","v":"-"},{"$f":"IF(B379=\"N\",\"\",IF(OR('Enrollment Form'!C386=\"ROC\",'Enrollment Form'!B386<>\"Subscriber\",'Enrollment Form'!O386=\"Waive\",'Enrollment Form'!O386=\"\"),\"-\",IF('Enrollment Form'!P386=\"\",\"N\",\"Y\")))","v":""},{"$f":"IF($B379=\"N\",\"\",IF(AND('Enrollment Form'!$C386=\"ROC\",'Enrollment Form'!$DS386<>\"\"),\"Y\",IF(AND('Enrollment Form'!$C386=\"ROC\",'Enrollment Form'!$DS386=\"\"),\"N\",IF(AND('Enrollment Form'!$C386=\"Enroll\",'Enrollment Form'!$B386=\"Subscriber\",'Enrollment Form'!$CQ386=\"No\",'Enrollment Form'!$DS386=\"\"),\"N\",IF(AND('Enrollment Form'!$C386=\"Enroll\",'Enrollment Form'!$B386=\"Subscriber\",'Enrollment Form'!$CQ386=\"Yes\"),\"-\",\"Y\")))))","v":""},{"$f":"IF($B379=\"N\",\"\",IF(AND('Enrollment Form'!$C386=\"ROC\",'Enrollment Form'!$DT386<>\"\"),\"Y\",IF(AND('Enrollment Form'!$C386=\"ROC\",'Enrollment Form'!$DT386=\"\"),\"N\",IF(AND('Enrollment Form'!$C386=\"Enroll\",'Enrollment Form'!$B386=\"Subscriber\",'Enrollment Form'!$CQ386=\"No\",'Enrollment Form'!$DT386=\"\"),\"N\",IF(AND('Enrollment Form'!$C386=\"Enroll\",'Enrollment Form'!$B386=\"Subscriber\",'Enrollment Form'!$CQ386=\"Yes\"),\"-\",\"Y\")))))","v":""},{"$f":"IF('Enrollment Form'!AH386=\"\",\"\",IF(ISERROR(SEARCH(\".\",'Enrollment Form'!AH386,SEARCH(\"@\",'Enrollment Form'!AH386))),\"N\",\"Y\"))","v":""},{"$f":"IF(OR($B379=\"N\",'Enrollment Form'!$G386=\"\"),\"\",IF('Enrollment Form'!$B386<>\"Subscriber\",\"-\",IF(COUNTIF('Enrollment Form'!$AS386:$AT386,\"Yes\")=2,\"N\",\"Y\")))","v":""},{"$f":"IF(OR('Enrollment Form'!$CC386=\"\",'Enrollment Form'!$CC386=\"No\"),\"-\",IF(AND('Enrollment Form'!$CC386=\"Yes\",'Enrollment Form'!$CD386=\"\"),\"N\",\"Y\"))","v":"-"},{"$f":"IF(OR('Enrollment Form'!$CE386=\"\",'Enrollment Form'!$CE386=\"No\"),\"-\",IF(AND('Enrollment Form'!$CE386=\"Yes\",'Enrollment Form'!$CF386=\"\"),\"N\",\"Y\"))","v":"-"},{"$f":"IF(OR('Enrollment Form'!$CG386=\"\",'Enrollment Form'!$CG386=\"No\"),\"-\",IF(AND('Enrollment Form'!$CG386=\"Yes\",'Enrollment Form'!$CH386=\"\"),\"N\",\"Y\"))","v":"-"},{"$f":"IF(OR('Enrollment Form'!$CG386=\"\",'Enrollment Form'!$CG386=\"No\"),\"-\",IF(AND('Enrollment Form'!$CG386=\"Yes\",'Enrollment Form'!$CI386=\"\"),\"N\",\"Y\"))","v":"-"},{"$f":"IF('Enrollment Form'!B386<>\"Subscriber\",\"-\",IF(AND('Enrollment Form'!B386=\"Subscriber\",'Enrollment Form'!C386=\"Enroll\",'Enrollment Form'!AA386=\"\"),\"N\",\"Y\"))","v":"-"},{"$f":"IF(OR('Enrollment Form'!B386=\"Subscriber\",'Enrollment Form'!B386=\"\"),\"-\",IF('Enrollment Form'!BI386=\"\",\"N\",\"Y\"))","v":"-"},{"$f":"IF('Enrollment Form'!B386<>\"Subscriber\",\"-\",IF(AND('Enrollment Form'!B386=\"Subscriber\",'Enrollment Form'!G386=\"\"),\"N\",\"Y\"))","v":"-"},{"$f":"IF('Enrollment Form'!A386=\"\",\"\",IF('Enrollment Form'!B386=\"Subscriber\",\"-\",IF(AND('Enrollment Form'!B386<>\"Subscriber\",'Enrollment Form'!G386='Enrollment Form'!H386),\"N\",\"Y\")))","v":""},0]
[387,{"$f":"IF('Enrollment Form'!$A387<>\"\",\"Y\",\"N\")","v":"N"},{"$f":"IF(AND('Enrollment Form'!$B387=\"\",'Enrollment Form'!$C387<>\"\"),\"N\",IF($B380=\"N\",\"\",\"Y\"))","v":""},{"$f":"IF(OR($B380=\"N\",'Enrollment Form'!G387=\"\"),\"\",IF('Enrollment Form'!$B387<>\"Subscriber\",\"\",IF('Enrollment Form'!$G387='Enrollment Form'!$H387,\"Y\",\"N\")))","v":""},{"$f":"IF($B380=\"N\",\"\",IF(AND(COUNTIFS('Enrollment Form'!$H$11:$H$1000,'Enrollment Form'!$H387,'Enrollment Form'!$B$11:$B$1000,'Enrollment Form'!$B387)>1,'Enrollment Form'!$H387<>\"\"),\"N\",\"Y\"))","v":""},{"$f":"IF($B380=\"N\",\"\",IF(LEN('Enrollment Form'!$Y387)=0,\"\",IF(LEN('Enrollment Form'!$Y387)<>5,\"N\",\"Y\")))","v":""},{"$f":"IF($B380=\"N\",\"\",IF(LEN('Enrollment Form'!$AD387=0),\"\",IF(LEN('Enrollment Form'!$AD387)<>5,\"N\",\"Y\")))","v":""},{"$f":"IF($B380=\"N\",\"\",IF(LEN('Enrollment Form'!$BL387=0),\"\",IF(LEN('Enrollment Form'!$BL387)<>5,\"N\",\"Y\")))","v":""},{"$f":"IF($B380=\"N\",\"\",IF(LEN('Enrollment Form'!$AE387)=0,\"\",IF(LEN('Enrollment Form'!$AE387)<>10,\"N\",\"Y\")))","v":""},{"$f":"IF($B380=\"N\",\"\",IF(LEN('Enrollment Form'!$AF387)=0,\"\",IF(LEN('Enrollment Form'!$AF387)<>10,\"N\",\"Y\")))","v":""},{"$f":"IF('Enrollment Form'!$O387<>\"Graded\",\"-\",IF(AND('Enrollment Form'!$O387=\"Graded\",'Enrollment Form'!$AO387<>\"\"),\"Y\",\"N\"))","v":"-"},{"$f":"IF($B380=\"N\",\"\",IF(OR('Enrollment Form'!$B387<>\"Subscriber\",'Enrollment Form'!$C387=\"ROC\"),\"-\",IF(AND('Enrollment Form'!$B387=\"Subscriber\",'Enrollment Form'!$C387=\"Enroll\",'Enrollment Form'!$AJ387<>\"\"),\"Y\",\"N\")))","v":""},{"$f":"IF($B380=\"N\",\"\",IF(OR('Enrollment Form'!$B387<>\"Subscriber\",'Enrollment Form'!$C387=\"ROC\"),\"-\",IF(AND('Enrollment Form'!$B387=\"Subscriber\",'Enrollment Form'!$C387=\"Enroll\",'Enrollment Form'!$AK387<>\"\"),\"Y\",\"N\")))","v":""},{"$f":"IF($B380=\"N\",\"\",IF(OR('Enrollment Form'!$B387<>\"Subscriber\",'Enrollment Form'!$C387=\"ROC\"),\"-\",IF(AND('Enrollment Form'!$B387=\"Subscriber\",'Enrollment Form'!$C387=\"Enroll\",'Enrollment Form'!$AL387<>\"\"),\"Y\",\"N\")))","v":""},{"$f":"IF($B380=\"N\",\"\",IF(OR('Enrollment Form'!$B387<>\"Subscriber\",'Enrollment Form'!$C387=\"ROC\"),\"-\",IF(AND('Enrollment Form'!$B387=\"Subscriber\",'Enrollment Form'!$C387=\"Enroll\",'Enrollment Form'!$AM387<>\"\"),\"Y\",\"N\")))","v":""},{"$f":"IF($B380=\"N\",\"\",IF(OR('Enrollment Form'!$B387<>\"Subscriber\",'Enrollment Form'!$C387=\"ROC\"),\"-\",IF(AND('Enrollment Form'!$B387=\"Subscriber\",'Enrollment Form'!$C387=\"Enroll\",'Enrollment Form'!$AN387<>\"\"),\"Y\",\"N\")))","v":""},{"$f":"IF($B380=\"N\",\"\",IF(OR('Enrollment Form'!$B387<>\"Subscriber\",'Enrollment Form'!$C387=\"ROC\"),\"-\",IF(AND('Enrollment Form'!$B387=\"Subscriber\",'Enrollment Form'!$C387=\"Enroll\",'Enrollment Form'!$AP387<>\"\"),\"Y\",\"N\")))","v":""},{"$f":"IF($B380=\"N\",\"\",IF($Q380=\"-\",\"-\",IF(AND($Q380=\"Y\",'Enrollment Form'!$AP387=\"No\"),\"-\",IF(AND($Q380=\"Y\",'Enrollment Form'!$AP387=\"Yes\",'Enrollment Form'!$AQ387<>\"\"),\"Y\",\"N\"))))","v":""},{"$f":"IF($B380=\"N\",\"\",IF(OR('Enrollment Form'!$B387<>\"Subscriber\",'Enrollment Form'!$C387=\"ROC\"),\"-\",IF(AND('Enrollment Form'!$B387=\"Subscriber\",'Enrollment Form'!$C387=\"Enroll\",'Enrollment Form'!$CO387<>\"\"),\"Y\",\"N\")))","v":""},{"$f":"IF($B380=\"N\",\"\",IF($S380=\"-\",\"-\",IF(AND($S380=\"Y\",'Enrollment Form'!$CO387=\"No\"),\"-\",IF(AND($S380=\"Y\",'Enrollment Form'!$CO387=\"Yes\",'Enrollment Form'!$CP387<>\"\"),\"Y\",\"N\"))))","v":""},{"$f":"IF(OR('Enrollment Form'!$AV387=\"Yes\",'Enrollment Form'!$AV387=\"\"),\"-\",IF(AND('Enrollment Form'!$AV387=\"No\",ISERROR(FIND(\"HMO\",VLOOKUP('Enrollment Form'!G387,'Enrollment Form'!H$11:J$1000,3,FALSE),1))=FALSE,COUNTA('Enrollment Form'!$AW387:$AZ387)=4),\"Y\",\"N\"))","v":"-"},{"$f":"IF($B380=\"N\",\"\",IF('Enrollment Form'!$B387=\"Subscriber\",\"-\",IF(COUNTA('Enrollment Form'!$BE387,'Enrollment Form'!$BG387)=2,\"Y\",\"N\")))","v":""},{"$f":"IF($B380=\"N\",\"\",IF(OR('Enrollment Form'!$AU387=\"\",'Enrollment Form'!$AU387=\"No\"),\"-\",IF(AND('Enrollment Form'!$AU387=\"Yes\",COUNTA('Enrollment Form'!$CK387)=1),\"Y\",\"N\")))","v":""},{"$f":"IF(OR('Enrollment Form'!$CK387=\"\",'Enrollment Form'!$CK387=\"No\"),\"-\",IF(COUNTA('Enrollment Form'!$CM387:$CN387)=2,\"Y\",\"N\"))","v":"-"},{"$f":"IF($B380=\"N\",\"\",IF(COUNTIF('Enrollment Form'!$CZ387:$DO387,\"Other\")=COUNTA('Enrollment Form'!$DF387,'Enrollment Form'!$DA387,'Enrollment Form'!$DK387,'Enrollment Form'!$DP387),\"Y\",\"N\"))","v":""},{"$f":"IF($B380=\"N\",\"\",IF(OR('Enrollment Form'!B387<>\"Subscriber\",'Enrollment Form'!C387=\"ROC\",COUNTIF('Enrollment Form'!AS387:AT387,\"Yes\")>=1),\"-\",IF(AND('Enrollment Form'!C387=\"Enroll\",COUNTIF('Enrollment Form'!AS387:AT387,\"No\")=2,'Enrollment Form'!AU387=\"\"),\"N\",\"Y\")))","v":""},{"$f":"IF(OR(B380=\"N\",'Enrollment Form'!B387<>\"Subscriber\",'Enrollment Form'!C387=\"ROC\",'Enrollment Form'!O387<>\"Multiple of Salary\"),\"-\",IF(COUNTA('Enrollment Form'!T387:U387)<2,\"N\",\"Y\"))","v":"-"},{"$f":"IF(B380=\"N\",\"\",IF(OR('Enrollment Form'!C387=\"ROC\",'Enrollment Form'!B387<>\"Subscriber\",'Enrollment Form'!O387=\"Waive\",'Enrollment Form'!O387=\"\"),\"-\",IF('Enrollment Form'!P387=\"\",\"N\",\"Y\")))","v":""},{"$f":"IF($B380=\"N\",\"\",IF(AND('Enrollment Form'!$C387=\"ROC\",'Enrollment Form'!$DS387<>\"\"),\"Y\",IF(AND('Enrollment Form'!$C387=\"ROC\",'Enrollment Form'!$DS387=\"\"),\"N\",IF(AND('Enrollment Form'!$C387=\"Enroll\",'Enrollment Form'!$B387=\"Subscriber\",'Enrollment Form'!$CQ387=\"No\",'Enrollment Form'!$DS387=\"\"),\"N\",IF(AND('Enrollment Form'!$C387=\"Enroll\",'Enrollment Form'!$B387=\"Subscriber\",'Enrollment Form'!$CQ387=\"Yes\"),\"-\",\"Y\")))))","v":""},{"$f":"IF($B380=\"N\",\"\",IF(AND('Enrollment Form'!$C387=\"ROC\",'Enrollment Form'!$DT387<>\"\"),\"Y\",IF(AND('Enrollment Form'!$C387=\"ROC\",'Enrollment Form'!$DT387=\"\"),\"N\",IF(AND('Enrollment Form'!$C387=\"Enroll\",'Enrollment Form'!$B387=\"Subscriber\",'Enrollment Form'!$CQ387=\"No\",'Enrollment Form'!$DT387=\"\"),\"N\",IF(AND('Enrollment Form'!$C387=\"Enroll\",'Enrollment Form'!$B387=\"Subscriber\",'Enrollment Form'!$CQ387=\"Yes\"),\"-\",\"Y\")))))","v":""},{"$f":"IF('Enrollment Form'!AH387=\"\",\"\",IF(ISERROR(SEARCH(\".\",'Enrollment Form'!AH387,SEARCH(\"@\",'Enrollment Form'!AH387))),\"N\",\"Y\"))","v":""},{"$f":"IF(OR($B380=\"N\",'Enrollment Form'!$G387=\"\"),\"\",IF('Enrollment Form'!$B387<>\"Subscriber\",\"-\",IF(COUNTIF('Enrollment Form'!$AS387:$AT387,\"Yes\")=2,\"N\",\"Y\")))","v":""},{"$f":"IF(OR('Enrollment Form'!$CC387=\"\",'Enrollment Form'!$CC387=\"No\"),\"-\",IF(AND('Enrollment Form'!$CC387=\"Yes\",'Enrollment Form'!$CD387=\"\"),\"N\",\"Y\"))","v":"-"},{"$f":"IF(OR('Enrollment Form'!$CE387=\"\",'Enrollment Form'!$CE387=\"No\"),\"-\",IF(AND('Enrollment Form'!$CE387=\"Yes\",'Enrollment Form'!$CF387=\"\"),\"N\",\"Y\"))","v":"-"},{"$f":"IF(OR('Enrollment Form'!$CG387=\"\",'Enrollment Form'!$CG387=\"No\"),\"-\",IF(AND('Enrollment Form'!$CG387=\"Yes\",'Enrollment Form'!$CH387=\"\"),\"N\",\"Y\"))","v":"-"},{"$f":"IF(OR('Enrollment Form'!$CG387=\"\",'Enrollment Form'!$CG387=\"No\"),\"-\",IF(AND('Enrollment Form'!$CG387=\"Yes\",'Enrollment Form'!$CI387=\"\"),\"N\",\"Y\"))","v":"-"},{"$f":"IF('Enrollment Form'!B387<>\"Subscriber\",\"-\",IF(AND('Enrollment Form'!B387=\"Subscriber\",'Enrollment Form'!C387=\"Enroll\",'Enrollment Form'!AA387=\"\"),\"N\",\"Y\"))","v":"-"},{"$f":"IF(OR('Enrollment Form'!B387=\"Subscriber\",'Enrollment Form'!B387=\"\"),\"-\",IF('Enrollment Form'!BI387=\"\",\"N\",\"Y\"))","v":"-"},{"$f":"IF('Enrollment Form'!B387<>\"Subscriber\",\"-\",IF(AND('Enrollment Form'!B387=\"Subscriber\",'Enrollment Form'!G387=\"\"),\"N\",\"Y\"))","v":"-"},{"$f":"IF('Enrollment Form'!A387=\"\",\"\",IF('Enrollment Form'!B387=\"Subscriber\",\"-\",IF(AND('Enrollment Form'!B387<>\"Subscriber\",'Enrollment Form'!G387='Enrollment Form'!H387),\"N\",\"Y\")))","v":""},0]
[388,{"$f":"IF('Enrollment Form'!$A388<>\"\",\"Y\",\"N\")","v":"N"},{"$f":"IF(AND('Enrollment Form'!$B388=\"\",'Enrollment Form'!$C388<>\"\"),\"N\",IF($B381=\"N\",\"\",\"Y\"))","v":""},{"$f":"IF(OR($B381=\"N\",'Enrollment Form'!G388=\"\"),\"\",IF('Enrollment Form'!$B388<>\"Subscriber\",\"\",IF('Enrollment Form'!$G388='Enrollment Form'!$H388,\"Y\",\"N\")))","v":""},{"$f":"IF($B381=\"N\",\"\",IF(AND(COUNTIFS('Enrollment Form'!$H$11:$H$1000,'Enrollment Form'!$H388,'Enrollment Form'!$B$11:$B$1000,'Enrollment Form'!$B388)>1,'Enrollment Form'!$H388<>\"\"),\"N\",\"Y\"))","v":""},{"$f":"IF($B381=\"N\",\"\",IF(LEN('Enrollment Form'!$Y388)=0,\"\",IF(LEN('Enrollment Form'!$Y388)<>5,\"N\",\"Y\")))","v":""},{"$f":"IF($B381=\"N\",\"\",IF(LEN('Enrollment Form'!$AD388=0),\"\",IF(LEN('Enrollment Form'!$AD388)<>5,\"N\",\"Y\")))","v":""},{"$f":"IF($B381=\"N\",\"\",IF(LEN('Enrollment Form'!$BL388=0),\"\",IF(LEN('Enrollment Form'!$BL388)<>5,\"N\",\"Y\")))","v":""},{"$f":"IF($B381=\"N\",\"\",IF(LEN('Enrollment Form'!$AE388)=0,\"\",IF(LEN('Enrollment Form'!$AE388)<>10,\"N\",\"Y\")))","v":""},{"$f":"IF($B381=\"N\",\"\",IF(LEN('Enrollment Form'!$AF388)=0,\"\",IF(LEN('Enrollment Form'!$AF388)<>10,\"N\",\"Y\")))","v":""},{"$f":"IF('Enrollment Form'!$O388<>\"Graded\",\"-\",IF(AND('Enrollment Form'!$O388=\"Graded\",'Enrollment Form'!$AO388<>\"\"),\"Y\",\"N\"))","v":"-"},{"$f":"IF($B381=\"N\",\"\",IF(OR('Enrollment Form'!$B388<>\"Subscriber\",'Enrollment Form'!$C388=\"ROC\"),\"-\",IF(AND('Enrollment Form'!$B388=\"Subscriber\",'Enrollment Form'!$C388=\"Enroll\",'Enrollment Form'!$AJ388<>\"\"),\"Y\",\"N\")))","v":""},{"$f":"IF($B381=\"N\",\"\",IF(OR('Enrollment Form'!$B388<>\"Subscriber\",'Enrollment Form'!$C388=\"ROC\"),\"-\",IF(AND('Enrollment Form'!$B388=\"Subscriber\",'Enrollment Form'!$C388=\"Enroll\",'Enrollment Form'!$AK388<>\"\"),\"Y\",\"N\")))","v":""},{"$f":"IF($B381=\"N\",\"\",IF(OR('Enrollment Form'!$B388<>\"Subscriber\",'Enrollment Form'!$C388=\"ROC\"),\"-\",IF(AND('Enrollment Form'!$B388=\"Subscriber\",'Enrollment Form'!$C388=\"Enroll\",'Enrollment Form'!$AL388<>\"\"),\"Y\",\"N\")))","v":""},{"$f":"IF($B381=\"N\",\"\",IF(OR('Enrollment Form'!$B388<>\"Subscriber\",'Enrollment Form'!$C388=\"ROC\"),\"-\",IF(AND('Enrollment Form'!$B388=\"Subscriber\",'Enrollment Form'!$C388=\"Enroll\",'Enrollment Form'!$AM388<>\"\"),\"Y\",\"N\")))","v":""},{"$f":"IF($B381=\"N\",\"\",IF(OR('Enrollment Form'!$B388<>\"Subscriber\",'Enrollment Form'!$C388=\"ROC\"),\"-\",IF(AND('Enrollment Form'!$B388=\"Subscriber\",'Enrollment Form'!$C388=\"Enroll\",'Enrollment Form'!$AN388<>\"\"),\"Y\",\"N\")))","v":""},{"$f":"IF($B381=\"N\",\"\",IF(OR('Enrollment Form'!$B388<>\"Subscriber\",'Enrollment Form'!$C388=\"ROC\"),\"-\",IF(AND('Enrollment Form'!$B388=\"Subscriber\",'Enrollment Form'!$C388=\"Enroll\",'Enrollment Form'!$AP388<>\"\"),\"Y\",\"N\")))","v":""},{"$f":"IF($B381=\"N\",\"\",IF($Q381=\"-\",\"-\",IF(AND($Q381=\"Y\",'Enrollment Form'!$AP388=\"No\"),\"-\",IF(AND($Q381=\"Y\",'Enrollment Form'!$AP388=\"Yes\",'Enrollment Form'!$AQ388<>\"\"),\"Y\",\"N\"))))","v":""},{"$f":"IF($B381=\"N\",\"\",IF(OR('Enrollment Form'!$B388<>\"Subscriber\",'Enrollment Form'!$C388=\"ROC\"),\"-\",IF(AND('Enrollment Form'!$B388=\"Subscriber\",'Enrollment Form'!$C388=\"Enroll\",'Enrollment Form'!$CO388<>\"\"),\"Y\",\"N\")))","v":""},{"$f":"IF($B381=\"N\",\"\",IF($S381=\"-\",\"-\",IF(AND($S381=\"Y\",'Enrollment Form'!$CO388=\"No\"),\"-\",IF(AND($S381=\"Y\",'Enrollment Form'!$CO388=\"Yes\",'Enrollment Form'!$CP388<>\"\"),\"Y\",\"N\"))))","v":""},{"$f":"IF(OR('Enrollment Form'!$AV388=\"Yes\",'Enrollment Form'!$AV388=\"\"),\"-\",IF(AND('Enrollment Form'!$AV388=\"No\",ISERROR(FIND(\"HMO\",VLOOKUP('Enrollment Form'!G388,'Enrollment Form'!H$11:J$1000,3,FALSE),1))=FALSE,COUNTA('Enrollment Form'!$AW388:$AZ388)=4),\"Y\",\"N\"))","v":"-"},{"$f":"IF($B381=\"N\",\"\",IF('Enrollment Form'!$B388=\"Subscriber\",\"-\",IF(COUNTA('Enrollment Form'!$BE388,'Enrollment Form'!$BG388)=2,\"Y\",\"N\")))","v":""},{"$f":"IF($B381=\"N\",\"\",IF(OR('Enrollment Form'!$AU388=\"\",'Enrollment Form'!$AU388=\"No\"),\"-\",IF(AND('Enrollment Form'!$AU388=\"Yes\",COUNTA('Enrollment Form'!$CK388)=1),\"Y\",\"N\")))","v":""},{"$f":"IF(OR('Enrollment Form'!$CK388=\"\",'Enrollment Form'!$CK388=\"No\"),\"-\",IF(COUNTA('Enrollment Form'!$CM388:$CN388)=2,\"Y\",\"N\"))","v":"-"},{"$f":"IF($B381=\"N\",\"\",IF(COUNTIF('Enrollment Form'!$CZ388:$DO388,\"Other\")=COUNTA('Enrollment Form'!$DF388,'Enrollment Form'!$DA388,'Enrollment Form'!$DK388,'Enrollment Form'!$DP388),\"Y\",\"N\"))","v":""},{"$f":"IF($B381=\"N\",\"\",IF(OR('Enrollment Form'!B388<>\"Subscriber\",'Enrollment Form'!C388=\"ROC\",COUNTIF('Enrollment Form'!AS388:AT388,\"Yes\")>=1),\"-\",IF(AND('Enrollment Form'!C388=\"Enroll\",COUNTIF('Enrollment Form'!AS388:AT388,\"No\")=2,'Enrollment Form'!AU388=\"\"),\"N\",\"Y\")))","v":""},{"$f":"IF(OR(B381=\"N\",'Enrollment Form'!B388<>\"Subscriber\",'Enrollment Form'!C388=\"ROC\",'Enrollment Form'!O388<>\"Multiple of Salary\"),\"-\",IF(COUNTA('Enrollment Form'!T388:U388)<2,\"N\",\"Y\"))","v":"-"},{"$f":"IF(B381=\"N\",\"\",IF(OR('Enrollment Form'!C388=\"ROC\",'Enrollment Form'!B388<>\"Subscriber\",'Enrollment Form'!O388=\"Waive\",'Enrollment Form'!O388=\"\"),\"-\",IF('Enrollment Form'!P388=\"\",\"N\",\"Y\")))","v":""},{"$f":"IF($B381=\"N\",\"\",IF(AND('Enrollment Form'!$C388=\"ROC\",'Enrollment Form'!$DS388<>\"\"),\"Y\",IF(AND('Enrollment Form'!$C388=\"ROC\",'Enrollment Form'!$DS388=\"\"),\"N\",IF(AND('Enrollment Form'!$C388=\"Enroll\",'Enrollment Form'!$B388=\"Subscriber\",'Enrollment Form'!$CQ388=\"No\",'Enrollment Form'!$DS388=\"\"),\"N\",IF(AND('Enrollment Form'!$C388=\"Enroll\",'Enrollment Form'!$B388=\"Subscriber\",'Enrollment Form'!$CQ388=\"Yes\"),\"-\",\"Y\")))))","v":""},{"$f":"IF($B381=\"N\",\"\",IF(AND('Enrollment Form'!$C388=\"ROC\",'Enrollment Form'!$DT388<>\"\"),\"Y\",IF(AND('Enrollment Form'!$C388=\"ROC\",'Enrollment Form'!$DT388=\"\"),\"N\",IF(AND('Enrollment Form'!$C388=\"Enroll\",'Enrollment Form'!$B388=\"Subscriber\",'Enrollment Form'!$CQ388=\"No\",'Enrollment Form'!$DT388=\"\"),\"N\",IF(AND('Enrollment Form'!$C388=\"Enroll\",'Enrollment Form'!$B388=\"Subscriber\",'Enrollment Form'!$CQ388=\"Yes\"),\"-\",\"Y\")))))","v":""},{"$f":"IF('Enrollment Form'!AH388=\"\",\"\",IF(ISERROR(SEARCH(\".\",'Enrollment Form'!AH388,SEARCH(\"@\",'Enrollment Form'!AH388))),\"N\",\"Y\"))","v":""},{"$f":"IF(OR($B381=\"N\",'Enrollment Form'!$G388=\"\"),\"\",IF('Enrollment Form'!$B388<>\"Subscriber\",\"-\",IF(COUNTIF('Enrollment Form'!$AS388:$AT388,\"Yes\")=2,\"N\",\"Y\")))","v":""},{"$f":"IF(OR('Enrollment Form'!$CC388=\"\",'Enrollment Form'!$CC388=\"No\"),\"-\",IF(AND('Enrollment Form'!$CC388=\"Yes\",'Enrollment Form'!$CD388=\"\"),\"N\",\"Y\"))","v":"-"},{"$f":"IF(OR('Enrollment Form'!$CE388=\"\",'Enrollment Form'!$CE388=\"No\"),\"-\",IF(AND('Enrollment Form'!$CE388=\"Yes\",'Enrollment Form'!$CF388=\"\"),\"N\",\"Y\"))","v":"-"},{"$f":"IF(OR('Enrollment Form'!$CG388=\"\",'Enrollment Form'!$CG388=\"No\"),\"-\",IF(AND('Enrollment Form'!$CG388=\"Yes\",'Enrollment Form'!$CH388=\"\"),\"N\",\"Y\"))","v":"-"},{"$f":"IF(OR('Enrollment Form'!$CG388=\"\",'Enrollment Form'!$CG388=\"No\"),\"-\",IF(AND('Enrollment Form'!$CG388=\"Yes\",'Enrollment Form'!$CI388=\"\"),\"N\",\"Y\"))","v":"-"},{"$f":"IF('Enrollment Form'!B388<>\"Subscriber\",\"-\",IF(AND('Enrollment Form'!B388=\"Subscriber\",'Enrollment Form'!C388=\"Enroll\",'Enrollment Form'!AA388=\"\"),\"N\",\"Y\"))","v":"-"},{"$f":"IF(OR('Enrollment Form'!B388=\"Subscriber\",'Enrollment Form'!B388=\"\"),\"-\",IF('Enrollment Form'!BI388=\"\",\"N\",\"Y\"))","v":"-"},{"$f":"IF('Enrollment Form'!B388<>\"Subscriber\",\"-\",IF(AND('Enrollment Form'!B388=\"Subscriber\",'Enrollment Form'!G388=\"\"),\"N\",\"Y\"))","v":"-"},{"$f":"IF('Enrollment Form'!A388=\"\",\"\",IF('Enrollment Form'!B388=\"Subscriber\",\"-\",IF(AND('Enrollment Form'!B388<>\"Subscriber\",'Enrollment Form'!G388='Enrollment Form'!H388),\"N\",\"Y\")))","v":""},0]
[389,{"$f":"IF('Enrollment Form'!$A389<>\"\",\"Y\",\"N\")","v":"N"},{"$f":"IF(AND('Enrollment Form'!$B389=\"\",'Enrollment Form'!$C389<>\"\"),\"N\",IF($B382=\"N\",\"\",\"Y\"))","v":""},{"$f":"IF(OR($B382=\"N\",'Enrollment Form'!G389=\"\"),\"\",IF('Enrollment Form'!$B389<>\"Subscriber\",\"\",IF('Enrollment Form'!$G389='Enrollment Form'!$H389,\"Y\",\"N\")))","v":""},{"$f":"IF($B382=\"N\",\"\",IF(AND(COUNTIFS('Enrollment Form'!$H$11:$H$1000,'Enrollment Form'!$H389,'Enrollment Form'!$B$11:$B$1000,'Enrollment Form'!$B389)>1,'Enrollment Form'!$H389<>\"\"),\"N\",\"Y\"))","v":""},{"$f":"IF($B382=\"N\",\"\",IF(LEN('Enrollment Form'!$Y389)=0,\"\",IF(LEN('Enrollment Form'!$Y389)<>5,\"N\",\"Y\")))","v":""},{"$f":"IF($B382=\"N\",\"\",IF(LEN('Enrollment Form'!$AD389=0),\"\",IF(LEN('Enrollment Form'!$AD389)<>5,\"N\",\"Y\")))","v":""},{"$f":"IF($B382=\"N\",\"\",IF(LEN('Enrollment Form'!$BL389=0),\"\",IF(LEN('Enrollment Form'!$BL389)<>5,\"N\",\"Y\")))","v":""},{"$f":"IF($B382=\"N\",\"\",IF(LEN('Enrollment Form'!$AE389)=0,\"\",IF(LEN('Enrollment Form'!$AE389)<>10,\"N\",\"Y\")))","v":""},{"$f":"IF($B382=\"N\",\"\",IF(LEN('Enrollment Form'!$AF389)=0,\"\",IF(LEN('Enrollment Form'!$AF389)<>10,\"N\",\"Y\")))","v":""},{"$f":"IF('Enrollment Form'!$O389<>\"Graded\",\"-\",IF(AND('Enrollment Form'!$O389=\"Graded\",'Enrollment Form'!$AO389<>\"\"),\"Y\",\"N\"))","v":"-"},{"$f":"IF($B382=\"N\",\"\",IF(OR('Enrollment Form'!$B389<>\"Subscriber\",'Enrollment Form'!$C389=\"ROC\"),\"-\",IF(AND('Enrollment Form'!$B389=\"Subscriber\",'Enrollment Form'!$C389=\"Enroll\",'Enrollment Form'!$AJ389<>\"\"),\"Y\",\"N\")))","v":""},{"$f":"IF($B382=\"N\",\"\",IF(OR('Enrollment Form'!$B389<>\"Subscriber\",'Enrollment Form'!$C389=\"ROC\"),\"-\",IF(AND('Enrollment Form'!$B389=\"Subscriber\",'Enrollment Form'!$C389=\"Enroll\",'Enrollment Form'!$AK389<>\"\"),\"Y\",\"N\")))","v":""},{"$f":"IF($B382=\"N\",\"\",IF(OR('Enrollment Form'!$B389<>\"Subscriber\",'Enrollment Form'!$C389=\"ROC\"),\"-\",IF(AND('Enrollment Form'!$B389=\"Subscriber\",'Enrollment Form'!$C389=\"Enroll\",'Enrollment Form'!$AL389<>\"\"),\"Y\",\"N\")))","v":""},{"$f":"IF($B382=\"N\",\"\",IF(OR('Enrollment Form'!$B389<>\"Subscriber\",'Enrollment Form'!$C389=\"ROC\"),\"-\",IF(AND('Enrollment Form'!$B389=\"Subscriber\",'Enrollment Form'!$C389=\"Enroll\",'Enrollment Form'!$AM389<>\"\"),\"Y\",\"N\")))","v":""},{"$f":"IF($B382=\"N\",\"\",IF(OR('Enrollment Form'!$B389<>\"Subscriber\",'Enrollment Form'!$C389=\"ROC\"),\"-\",IF(AND('Enrollment Form'!$B389=\"Subscriber\",'Enrollment Form'!$C389=\"Enroll\",'Enrollment Form'!$AN389<>\"\"),\"Y\",\"N\")))","v":""},{"$f":"IF($B382=\"N\",\"\",IF(OR('Enrollment Form'!$B389<>\"Subscriber\",'Enrollment Form'!$C389=\"ROC\"),\"-\",IF(AND('Enrollment Form'!$B389=\"Subscriber\",'Enrollment Form'!$C389=\"Enroll\",'Enrollment Form'!$AP389<>\"\"),\"Y\",\"N\")))","v":""},{"$f":"IF($B382=\"N\",\"\",IF($Q382=\"-\",\"-\",IF(AND($Q382=\"Y\",'Enrollment Form'!$AP389=\"No\"),\"-\",IF(AND($Q382=\"Y\",'Enrollment Form'!$AP389=\"Yes\",'Enrollment Form'!$AQ389<>\"\"),\"Y\",\"N\"))))","v":""},{"$f":"IF($B382=\"N\",\"\",IF(OR('Enrollment Form'!$B389<>\"Subscriber\",'Enrollment Form'!$C389=\"ROC\"),\"-\",IF(AND('Enrollment Form'!$B389=\"Subscriber\",'Enrollment Form'!$C389=\"Enroll\",'Enrollment Form'!$CO389<>\"\"),\"Y\",\"N\")))","v":""},{"$f":"IF($B382=\"N\",\"\",IF($S382=\"-\",\"-\",IF(AND($S382=\"Y\",'Enrollment Form'!$CO389=\"No\"),\"-\",IF(AND($S382=\"Y\",'Enrollment Form'!$CO389=\"Yes\",'Enrollment Form'!$CP389<>\"\"),\"Y\",\"N\"))))","v":""},{"$f":"IF(OR('Enrollment Form'!$AV389=\"Yes\",'Enrollment Form'!$AV389=\"\"),\"-\",IF(AND('Enrollment Form'!$AV389=\"No\",ISERROR(FIND(\"HMO\",VLOOKUP('Enrollment Form'!G389,'Enrollment Form'!H$11:J$1000,3,FALSE),1))=FALSE,COUNTA('Enrollment Form'!$AW389:$AZ389)=4),\"Y\",\"N\"))","v":"-"},{"$f":"IF($B382=\"N\",\"\",IF('Enrollment Form'!$B389=\"Subscriber\",\"-\",IF(COUNTA('Enrollment Form'!$BE389,'Enrollment Form'!$BG389)=2,\"Y\",\"N\")))","v":""},{"$f":"IF($B382=\"N\",\"\",IF(OR('Enrollment Form'!$AU389=\"\",'Enrollment Form'!$AU389=\"No\"),\"-\",IF(AND('Enrollment Form'!$AU389=\"Yes\",COUNTA('Enrollment Form'!$CK389)=1),\"Y\",\"N\")))","v":""},{"$f":"IF(OR('Enrollment Form'!$CK389=\"\",'Enrollment Form'!$CK389=\"No\"),\"-\",IF(COUNTA('Enrollment Form'!$CM389:$CN389)=2,\"Y\",\"N\"))","v":"-"},{"$f":"IF($B382=\"N\",\"\",IF(COUNTIF('Enrollment Form'!$CZ389:$DO389,\"Other\")=COUNTA('Enrollment Form'!$DF389,'Enrollment Form'!$DA389,'Enrollment Form'!$DK389,'Enrollment Form'!$DP389),\"Y\",\"N\"))","v":""},{"$f":"IF($B382=\"N\",\"\",IF(OR('Enrollment Form'!B389<>\"Subscriber\",'Enrollment Form'!C389=\"ROC\",COUNTIF('Enrollment Form'!AS389:AT389,\"Yes\")>=1),\"-\",IF(AND('Enrollment Form'!C389=\"Enroll\",COUNTIF('Enrollment Form'!AS389:AT389,\"No\")=2,'Enrollment Form'!AU389=\"\"),\"N\",\"Y\")))","v":""},{"$f":"IF(OR(B382=\"N\",'Enrollment Form'!B389<>\"Subscriber\",'Enrollment Form'!C389=\"ROC\",'Enrollment Form'!O389<>\"Multiple of Salary\"),\"-\",IF(COUNTA('Enrollment Form'!T389:U389)<2,\"N\",\"Y\"))","v":"-"},{"$f":"IF(B382=\"N\",\"\",IF(OR('Enrollment Form'!C389=\"ROC\",'Enrollment Form'!B389<>\"Subscriber\",'Enrollment Form'!O389=\"Waive\",'Enrollment Form'!O389=\"\"),\"-\",IF('Enrollment Form'!P389=\"\",\"N\",\"Y\")))","v":""},{"$f":"IF($B382=\"N\",\"\",IF(AND('Enrollment Form'!$C389=\"ROC\",'Enrollment Form'!$DS389<>\"\"),\"Y\",IF(AND('Enrollment Form'!$C389=\"ROC\",'Enrollment Form'!$DS389=\"\"),\"N\",IF(AND('Enrollment Form'!$C389=\"Enroll\",'Enrollment Form'!$B389=\"Subscriber\",'Enrollment Form'!$CQ389=\"No\",'Enrollment Form'!$DS389=\"\"),\"N\",IF(AND('Enrollment Form'!$C389=\"Enroll\",'Enrollment Form'!$B389=\"Subscriber\",'Enrollment Form'!$CQ389=\"Yes\"),\"-\",\"Y\")))))","v":""},{"$f":"IF($B382=\"N\",\"\",IF(AND('Enrollment Form'!$C389=\"ROC\",'Enrollment Form'!$DT389<>\"\"),\"Y\",IF(AND('Enrollment Form'!$C389=\"ROC\",'Enrollment Form'!$DT389=\"\"),\"N\",IF(AND('Enrollment Form'!$C389=\"Enroll\",'Enrollment Form'!$B389=\"Subscriber\",'Enrollment Form'!$CQ389=\"No\",'Enrollment Form'!$DT389=\"\"),\"N\",IF(AND('Enrollment Form'!$C389=\"Enroll\",'Enrollment Form'!$B389=\"Subscriber\",'Enrollment Form'!$CQ389=\"Yes\"),\"-\",\"Y\")))))","v":""},{"$f":"IF('Enrollment Form'!AH389=\"\",\"\",IF(ISERROR(SEARCH(\".\",'Enrollment Form'!AH389,SEARCH(\"@\",'Enrollment Form'!AH389))),\"N\",\"Y\"))","v":""},{"$f":"IF(OR($B382=\"N\",'Enrollment Form'!$G389=\"\"),\"\",IF('Enrollment Form'!$B389<>\"Subscriber\",\"-\",IF(COUNTIF('Enrollment Form'!$AS389:$AT389,\"Yes\")=2,\"N\",\"Y\")))","v":""},{"$f":"IF(OR('Enrollment Form'!$CC389=\"\",'Enrollment Form'!$CC389=\"No\"),\"-\",IF(AND('Enrollment Form'!$CC389=\"Yes\",'Enrollment Form'!$CD389=\"\"),\"N\",\"Y\"))","v":"-"},{"$f":"IF(OR('Enrollment Form'!$CE389=\"\",'Enrollment Form'!$CE389=\"No\"),\"-\",IF(AND('Enrollment Form'!$CE389=\"Yes\",'Enrollment Form'!$CF389=\"\"),\"N\",\"Y\"))","v":"-"},{"$f":"IF(OR('Enrollment Form'!$CG389=\"\",'Enrollment Form'!$CG389=\"No\"),\"-\",IF(AND('Enrollment Form'!$CG389=\"Yes\",'Enrollment Form'!$CH389=\"\"),\"N\",\"Y\"))","v":"-"},{"$f":"IF(OR('Enrollment Form'!$CG389=\"\",'Enrollment Form'!$CG389=\"No\"),\"-\",IF(AND('Enrollment Form'!$CG389=\"Yes\",'Enrollment Form'!$CI389=\"\"),\"N\",\"Y\"))","v":"-"},{"$f":"IF('Enrollment Form'!B389<>\"Subscriber\",\"-\",IF(AND('Enrollment Form'!B389=\"Subscriber\",'Enrollment Form'!C389=\"Enroll\",'Enrollment Form'!AA389=\"\"),\"N\",\"Y\"))","v":"-"},{"$f":"IF(OR('Enrollment Form'!B389=\"Subscriber\",'Enrollment Form'!B389=\"\"),\"-\",IF('Enrollment Form'!BI389=\"\",\"N\",\"Y\"))","v":"-"},{"$f":"IF('Enrollment Form'!B389<>\"Subscriber\",\"-\",IF(AND('Enrollment Form'!B389=\"Subscriber\",'Enrollment Form'!G389=\"\"),\"N\",\"Y\"))","v":"-"},{"$f":"IF('Enrollment Form'!A389=\"\",\"\",IF('Enrollment Form'!B389=\"Subscriber\",\"-\",IF(AND('Enrollment Form'!B389<>\"Subscriber\",'Enrollment Form'!G389='Enrollment Form'!H389),\"N\",\"Y\")))","v":""},0]
[390,{"$f":"IF('Enrollment Form'!$A390<>\"\",\"Y\",\"N\")","v":"N"},{"$f":"IF(AND('Enrollment Form'!$B390=\"\",'Enrollment Form'!$C390<>\"\"),\"N\",IF($B383=\"N\",\"\",\"Y\"))","v":""},{"$f":"IF(OR($B383=\"N\",'Enrollment Form'!G390=\"\"),\"\",IF('Enrollment Form'!$B390<>\"Subscriber\",\"\",IF('Enrollment Form'!$G390='Enrollment Form'!$H390,\"Y\",\"N\")))","v":""},{"$f":"IF($B383=\"N\",\"\",IF(AND(COUNTIFS('Enrollment Form'!$H$11:$H$1000,'Enrollment Form'!$H390,'Enrollment Form'!$B$11:$B$1000,'Enrollment Form'!$B390)>1,'Enrollment Form'!$H390<>\"\"),\"N\",\"Y\"))","v":""},{"$f":"IF($B383=\"N\",\"\",IF(LEN('Enrollment Form'!$Y390)=0,\"\",IF(LEN('Enrollment Form'!$Y390)<>5,\"N\",\"Y\")))","v":""},{"$f":"IF($B383=\"N\",\"\",IF(LEN('Enrollment Form'!$AD390=0),\"\",IF(LEN('Enrollment Form'!$AD390)<>5,\"N\",\"Y\")))","v":""},{"$f":"IF($B383=\"N\",\"\",IF(LEN('Enrollment Form'!$BL390=0),\"\",IF(LEN('Enrollment Form'!$BL390)<>5,\"N\",\"Y\")))","v":""},{"$f":"IF($B383=\"N\",\"\",IF(LEN('Enrollment Form'!$AE390)=0,\"\",IF(LEN('Enrollment Form'!$AE390)<>10,\"N\",\"Y\")))","v":""},{"$f":"IF($B383=\"N\",\"\",IF(LEN('Enrollment Form'!$AF390)=0,\"\",IF(LEN('Enrollment Form'!$AF390)<>10,\"N\",\"Y\")))","v":""},{"$f":"IF('Enrollment Form'!$O390<>\"Graded\",\"-\",IF(AND('Enrollment Form'!$O390=\"Graded\",'Enrollment Form'!$AO390<>\"\"),\"Y\",\"N\"))","v":"-"},{"$f":"IF($B383=\"N\",\"\",IF(OR('Enrollment Form'!$B390<>\"Subscriber\",'Enrollment Form'!$C390=\"ROC\"),\"-\",IF(AND('Enrollment Form'!$B390=\"Subscriber\",'Enrollment Form'!$C390=\"Enroll\",'Enrollment Form'!$AJ390<>\"\"),\"Y\",\"N\")))","v":""},{"$f":"IF($B383=\"N\",\"\",IF(OR('Enrollment Form'!$B390<>\"Subscriber\",'Enrollment Form'!$C390=\"ROC\"),\"-\",IF(AND('Enrollment Form'!$B390=\"Subscriber\",'Enrollment Form'!$C390=\"Enroll\",'Enrollment Form'!$AK390<>\"\"),\"Y\",\"N\")))","v":""},{"$f":"IF($B383=\"N\",\"\",IF(OR('Enrollment Form'!$B390<>\"Subscriber\",'Enrollment Form'!$C390=\"ROC\"),\"-\",IF(AND('Enrollment Form'!$B390=\"Subscriber\",'Enrollment Form'!$C390=\"Enroll\",'Enrollment Form'!$AL390<>\"\"),\"Y\",\"N\")))","v":""},{"$f":"IF($B383=\"N\",\"\",IF(OR('Enrollment Form'!$B390<>\"Subscriber\",'Enrollment Form'!$C390=\"ROC\"),\"-\",IF(AND('Enrollment Form'!$B390=\"Subscriber\",'Enrollment Form'!$C390=\"Enroll\",'Enrollment Form'!$AM390<>\"\"),\"Y\",\"N\")))","v":""},{"$f":"IF($B383=\"N\",\"\",IF(OR('Enrollment Form'!$B390<>\"Subscriber\",'Enrollment Form'!$C390=\"ROC\"),\"-\",IF(AND('Enrollment Form'!$B390=\"Subscriber\",'Enrollment Form'!$C390=\"Enroll\",'Enrollment Form'!$AN390<>\"\"),\"Y\",\"N\")))","v":""},{"$f":"IF($B383=\"N\",\"\",IF(OR('Enrollment Form'!$B390<>\"Subscriber\",'Enrollment Form'!$C390=\"ROC\"),\"-\",IF(AND('Enrollment Form'!$B390=\"Subscriber\",'Enrollment Form'!$C390=\"Enroll\",'Enrollment Form'!$AP390<>\"\"),\"Y\",\"N\")))","v":""},{"$f":"IF($B383=\"N\",\"\",IF($Q383=\"-\",\"-\",IF(AND($Q383=\"Y\",'Enrollment Form'!$AP390=\"No\"),\"-\",IF(AND($Q383=\"Y\",'Enrollment Form'!$AP390=\"Yes\",'Enrollment Form'!$AQ390<>\"\"),\"Y\",\"N\"))))","v":""},{"$f":"IF($B383=\"N\",\"\",IF(OR('Enrollment Form'!$B390<>\"Subscriber\",'Enrollment Form'!$C390=\"ROC\"),\"-\",IF(AND('Enrollment Form'!$B390=\"Subscriber\",'Enrollment Form'!$C390=\"Enroll\",'Enrollment Form'!$CO390<>\"\"),\"Y\",\"N\")))","v":""},{"$f":"IF($B383=\"N\",\"\",IF($S383=\"-\",\"-\",IF(AND($S383=\"Y\",'Enrollment Form'!$CO390=\"No\"),\"-\",IF(AND($S383=\"Y\",'Enrollment Form'!$CO390=\"Yes\",'Enrollment Form'!$CP390<>\"\"),\"Y\",\"N\"))))","v":""},{"$f":"IF(OR('Enrollment Form'!$AV390=\"Yes\",'Enrollment Form'!$AV390=\"\"),\"-\",IF(AND('Enrollment Form'!$AV390=\"No\",ISERROR(FIND(\"HMO\",VLOOKUP('Enrollment Form'!G390,'Enrollment Form'!H$11:J$1000,3,FALSE),1))=FALSE,COUNTA('Enrollment Form'!$AW390:$AZ390)=4),\"Y\",\"N\"))","v":"-"},{"$f":"IF($B383=\"N\",\"\",IF('Enrollment Form'!$B390=\"Subscriber\",\"-\",IF(COUNTA('Enrollment Form'!$BE390,'Enrollment Form'!$BG390)=2,\"Y\",\"N\")))","v":""},{"$f":"IF($B383=\"N\",\"\",IF(OR('Enrollment Form'!$AU390=\"\",'Enrollment Form'!$AU390=\"No\"),\"-\",IF(AND('Enrollment Form'!$AU390=\"Yes\",COUNTA('Enrollment Form'!$CK390)=1),\"Y\",\"N\")))","v":""},{"$f":"IF(OR('Enrollment Form'!$CK390=\"\",'Enrollment Form'!$CK390=\"No\"),\"-\",IF(COUNTA('Enrollment Form'!$CM390:$CN390)=2,\"Y\",\"N\"))","v":"-"},{"$f":"IF($B383=\"N\",\"\",IF(COUNTIF('Enrollment Form'!$CZ390:$DO390,\"Other\")=COUNTA('Enrollment Form'!$DF390,'Enrollment Form'!$DA390,'Enrollment Form'!$DK390,'Enrollment Form'!$DP390),\"Y\",\"N\"))","v":""},{"$f":"IF($B383=\"N\",\"\",IF(OR('Enrollment Form'!B390<>\"Subscriber\",'Enrollment Form'!C390=\"ROC\",COUNTIF('Enrollment Form'!AS390:AT390,\"Yes\")>=1),\"-\",IF(AND('Enrollment Form'!C390=\"Enroll\",COUNTIF('Enrollment Form'!AS390:AT390,\"No\")=2,'Enrollment Form'!AU390=\"\"),\"N\",\"Y\")))","v":""},{"$f":"IF(OR(B383=\"N\",'Enrollment Form'!B390<>\"Subscriber\",'Enrollment Form'!C390=\"ROC\",'Enrollment Form'!O390<>\"Multiple of Salary\"),\"-\",IF(COUNTA('Enrollment Form'!T390:U390)<2,\"N\",\"Y\"))","v":"-"},{"$f":"IF(B383=\"N\",\"\",IF(OR('Enrollment Form'!C390=\"ROC\",'Enrollment Form'!B390<>\"Subscriber\",'Enrollment Form'!O390=\"Waive\",'Enrollment Form'!O390=\"\"),\"-\",IF('Enrollment Form'!P390=\"\",\"N\",\"Y\")))","v":""},{"$f":"IF($B383=\"N\",\"\",IF(AND('Enrollment Form'!$C390=\"ROC\",'Enrollment Form'!$DS390<>\"\"),\"Y\",IF(AND('Enrollment Form'!$C390=\"ROC\",'Enrollment Form'!$DS390=\"\"),\"N\",IF(AND('Enrollment Form'!$C390=\"Enroll\",'Enrollment Form'!$B390=\"Subscriber\",'Enrollment Form'!$CQ390=\"No\",'Enrollment Form'!$DS390=\"\"),\"N\",IF(AND('Enrollment Form'!$C390=\"Enroll\",'Enrollment Form'!$B390=\"Subscriber\",'Enrollment Form'!$CQ390=\"Yes\"),\"-\",\"Y\")))))","v":""},{"$f":"IF($B383=\"N\",\"\",IF(AND('Enrollment Form'!$C390=\"ROC\",'Enrollment Form'!$DT390<>\"\"),\"Y\",IF(AND('Enrollment Form'!$C390=\"ROC\",'Enrollment Form'!$DT390=\"\"),\"N\",IF(AND('Enrollment Form'!$C390=\"Enroll\",'Enrollment Form'!$B390=\"Subscriber\",'Enrollment Form'!$CQ390=\"No\",'Enrollment Form'!$DT390=\"\"),\"N\",IF(AND('Enrollment Form'!$C390=\"Enroll\",'Enrollment Form'!$B390=\"Subscriber\",'Enrollment Form'!$CQ390=\"Yes\"),\"-\",\"Y\")))))","v":""},{"$f":"IF('Enrollment Form'!AH390=\"\",\"\",IF(ISERROR(SEARCH(\".\",'Enrollment Form'!AH390,SEARCH(\"@\",'Enrollment Form'!AH390))),\"N\",\"Y\"))","v":""},{"$f":"IF(OR($B383=\"N\",'Enrollment Form'!$G390=\"\"),\"\",IF('Enrollment Form'!$B390<>\"Subscriber\",\"-\",IF(COUNTIF('Enrollment Form'!$AS390:$AT390,\"Yes\")=2,\"N\",\"Y\")))","v":""},{"$f":"IF(OR('Enrollment Form'!$CC390=\"\",'Enrollment Form'!$CC390=\"No\"),\"-\",IF(AND('Enrollment Form'!$CC390=\"Yes\",'Enrollment Form'!$CD390=\"\"),\"N\",\"Y\"))","v":"-"},{"$f":"IF(OR('Enrollment Form'!$CE390=\"\",'Enrollment Form'!$CE390=\"No\"),\"-\",IF(AND('Enrollment Form'!$CE390=\"Yes\",'Enrollment Form'!$CF390=\"\"),\"N\",\"Y\"))","v":"-"},{"$f":"IF(OR('Enrollment Form'!$CG390=\"\",'Enrollment Form'!$CG390=\"No\"),\"-\",IF(AND('Enrollment Form'!$CG390=\"Yes\",'Enrollment Form'!$CH390=\"\"),\"N\",\"Y\"))","v":"-"},{"$f":"IF(OR('Enrollment Form'!$CG390=\"\",'Enrollment Form'!$CG390=\"No\"),\"-\",IF(AND('Enrollment Form'!$CG390=\"Yes\",'Enrollment Form'!$CI390=\"\"),\"N\",\"Y\"))","v":"-"},{"$f":"IF('Enrollment Form'!B390<>\"Subscriber\",\"-\",IF(AND('Enrollment Form'!B390=\"Subscriber\",'Enrollment Form'!C390=\"Enroll\",'Enrollment Form'!AA390=\"\"),\"N\",\"Y\"))","v":"-"},{"$f":"IF(OR('Enrollment Form'!B390=\"Subscriber\",'Enrollment Form'!B390=\"\"),\"-\",IF('Enrollment Form'!BI390=\"\",\"N\",\"Y\"))","v":"-"},{"$f":"IF('Enrollment Form'!B390<>\"Subscriber\",\"-\",IF(AND('Enrollment Form'!B390=\"Subscriber\",'Enrollment Form'!G390=\"\"),\"N\",\"Y\"))","v":"-"},{"$f":"IF('Enrollment Form'!A390=\"\",\"\",IF('Enrollment Form'!B390=\"Subscriber\",\"-\",IF(AND('Enrollment Form'!B390<>\"Subscriber\",'Enrollment Form'!G390='Enrollment Form'!H390),\"N\",\"Y\")))","v":""},0]
[391,{"$f":"IF('Enrollment Form'!$A391<>\"\",\"Y\",\"N\")","v":"N"},{"$f":"IF(AND('Enrollment Form'!$B391=\"\",'Enrollment Form'!$C391<>\"\"),\"N\",IF($B384=\"N\",\"\",\"Y\"))","v":""},{"$f":"IF(OR($B384=\"N\",'Enrollment Form'!G391=\"\"),\"\",IF('Enrollment Form'!$B391<>\"Subscriber\",\"\",IF('Enrollment Form'!$G391='Enrollment Form'!$H391,\"Y\",\"N\")))","v":""},{"$f":"IF($B384=\"N\",\"\",IF(AND(COUNTIFS('Enrollment Form'!$H$11:$H$1000,'Enrollment Form'!$H391,'Enrollment Form'!$B$11:$B$1000,'Enrollment Form'!$B391)>1,'Enrollment Form'!$H391<>\"\"),\"N\",\"Y\"))","v":""},{"$f":"IF($B384=\"N\",\"\",IF(LEN('Enrollment Form'!$Y391)=0,\"\",IF(LEN('Enrollment Form'!$Y391)<>5,\"N\",\"Y\")))","v":""},{"$f":"IF($B384=\"N\",\"\",IF(LEN('Enrollment Form'!$AD391=0),\"\",IF(LEN('Enrollment Form'!$AD391)<>5,\"N\",\"Y\")))","v":""},{"$f":"IF($B384=\"N\",\"\",IF(LEN('Enrollment Form'!$BL391=0),\"\",IF(LEN('Enrollment Form'!$BL391)<>5,\"N\",\"Y\")))","v":""},{"$f":"IF($B384=\"N\",\"\",IF(LEN('Enrollment Form'!$AE391)=0,\"\",IF(LEN('Enrollment Form'!$AE391)<>10,\"N\",\"Y\")))","v":""},{"$f":"IF($B384=\"N\",\"\",IF(LEN('Enrollment Form'!$AF391)=0,\"\",IF(LEN('Enrollment Form'!$AF391)<>10,\"N\",\"Y\")))","v":""},{"$f":"IF('Enrollment Form'!$O391<>\"Graded\",\"-\",IF(AND('Enrollment Form'!$O391=\"Graded\",'Enrollment Form'!$AO391<>\"\"),\"Y\",\"N\"))","v":"-"},{"$f":"IF($B384=\"N\",\"\",IF(OR('Enrollment Form'!$B391<>\"Subscriber\",'Enrollment Form'!$C391=\"ROC\"),\"-\",IF(AND('Enrollment Form'!$B391=\"Subscriber\",'Enrollment Form'!$C391=\"Enroll\",'Enrollment Form'!$AJ391<>\"\"),\"Y\",\"N\")))","v":""},{"$f":"IF($B384=\"N\",\"\",IF(OR('Enrollment Form'!$B391<>\"Subscriber\",'Enrollment Form'!$C391=\"ROC\"),\"-\",IF(AND('Enrollment Form'!$B391=\"Subscriber\",'Enrollment Form'!$C391=\"Enroll\",'Enrollment Form'!$AK391<>\"\"),\"Y\",\"N\")))","v":""},{"$f":"IF($B384=\"N\",\"\",IF(OR('Enrollment Form'!$B391<>\"Subscriber\",'Enrollment Form'!$C391=\"ROC\"),\"-\",IF(AND('Enrollment Form'!$B391=\"Subscriber\",'Enrollment Form'!$C391=\"Enroll\",'Enrollment Form'!$AL391<>\"\"),\"Y\",\"N\")))","v":""},{"$f":"IF($B384=\"N\",\"\",IF(OR('Enrollment Form'!$B391<>\"Subscriber\",'Enrollment Form'!$C391=\"ROC\"),\"-\",IF(AND('Enrollment Form'!$B391=\"Subscriber\",'Enrollment Form'!$C391=\"Enroll\",'Enrollment Form'!$AM391<>\"\"),\"Y\",\"N\")))","v":""},{"$f":"IF($B384=\"N\",\"\",IF(OR('Enrollment Form'!$B391<>\"Subscriber\",'Enrollment Form'!$C391=\"ROC\"),\"-\",IF(AND('Enrollment Form'!$B391=\"Subscriber\",'Enrollment Form'!$C391=\"Enroll\",'Enrollment Form'!$AN391<>\"\"),\"Y\",\"N\")))","v":""},{"$f":"IF($B384=\"N\",\"\",IF(OR('Enrollment Form'!$B391<>\"Subscriber\",'Enrollment Form'!$C391=\"ROC\"),\"-\",IF(AND('Enrollment Form'!$B391=\"Subscriber\",'Enrollment Form'!$C391=\"Enroll\",'Enrollment Form'!$AP391<>\"\"),\"Y\",\"N\")))","v":""},{"$f":"IF($B384=\"N\",\"\",IF($Q384=\"-\",\"-\",IF(AND($Q384=\"Y\",'Enrollment Form'!$AP391=\"No\"),\"-\",IF(AND($Q384=\"Y\",'Enrollment Form'!$AP391=\"Yes\",'Enrollment Form'!$AQ391<>\"\"),\"Y\",\"N\"))))","v":""},{"$f":"IF($B384=\"N\",\"\",IF(OR('Enrollment Form'!$B391<>\"Subscriber\",'Enrollment Form'!$C391=\"ROC\"),\"-\",IF(AND('Enrollment Form'!$B391=\"Subscriber\",'Enrollment Form'!$C391=\"Enroll\",'Enrollment Form'!$CO391<>\"\"),\"Y\",\"N\")))","v":""},{"$f":"IF($B384=\"N\",\"\",IF($S384=\"-\",\"-\",IF(AND($S384=\"Y\",'Enrollment Form'!$CO391=\"No\"),\"-\",IF(AND($S384=\"Y\",'Enrollment Form'!$CO391=\"Yes\",'Enrollment Form'!$CP391<>\"\"),\"Y\",\"N\"))))","v":""},{"$f":"IF(OR('Enrollment Form'!$AV391=\"Yes\",'Enrollment Form'!$AV391=\"\"),\"-\",IF(AND('Enrollment Form'!$AV391=\"No\",ISERROR(FIND(\"HMO\",VLOOKUP('Enrollment Form'!G391,'Enrollment Form'!H$11:J$1000,3,FALSE),1))=FALSE,COUNTA('Enrollment Form'!$AW391:$AZ391)=4),\"Y\",\"N\"))","v":"-"},{"$f":"IF($B384=\"N\",\"\",IF('Enrollment Form'!$B391=\"Subscriber\",\"-\",IF(COUNTA('Enrollment Form'!$BE391,'Enrollment Form'!$BG391)=2,\"Y\",\"N\")))","v":""},{"$f":"IF($B384=\"N\",\"\",IF(OR('Enrollment Form'!$AU391=\"\",'Enrollment Form'!$AU391=\"No\"),\"-\",IF(AND('Enrollment Form'!$AU391=\"Yes\",COUNTA('Enrollment Form'!$CK391)=1),\"Y\",\"N\")))","v":""},{"$f":"IF(OR('Enrollment Form'!$CK391=\"\",'Enrollment Form'!$CK391=\"No\"),\"-\",IF(COUNTA('Enrollment Form'!$CM391:$CN391)=2,\"Y\",\"N\"))","v":"-"},{"$f":"IF($B384=\"N\",\"\",IF(COUNTIF('Enrollment Form'!$CZ391:$DO391,\"Other\")=COUNTA('Enrollment Form'!$DF391,'Enrollment Form'!$DA391,'Enrollment Form'!$DK391,'Enrollment Form'!$DP391),\"Y\",\"N\"))","v":""},{"$f":"IF($B384=\"N\",\"\",IF(OR('Enrollment Form'!B391<>\"Subscriber\",'Enrollment Form'!C391=\"ROC\",COUNTIF('Enrollment Form'!AS391:AT391,\"Yes\")>=1),\"-\",IF(AND('Enrollment Form'!C391=\"Enroll\",COUNTIF('Enrollment Form'!AS391:AT391,\"No\")=2,'Enrollment Form'!AU391=\"\"),\"N\",\"Y\")))","v":""},{"$f":"IF(OR(B384=\"N\",'Enrollment Form'!B391<>\"Subscriber\",'Enrollment Form'!C391=\"ROC\",'Enrollment Form'!O391<>\"Multiple of Salary\"),\"-\",IF(COUNTA('Enrollment Form'!T391:U391)<2,\"N\",\"Y\"))","v":"-"},{"$f":"IF(B384=\"N\",\"\",IF(OR('Enrollment Form'!C391=\"ROC\",'Enrollment Form'!B391<>\"Subscriber\",'Enrollment Form'!O391=\"Waive\",'Enrollment Form'!O391=\"\"),\"-\",IF('Enrollment Form'!P391=\"\",\"N\",\"Y\")))","v":""},{"$f":"IF($B384=\"N\",\"\",IF(AND('Enrollment Form'!$C391=\"ROC\",'Enrollment Form'!$DS391<>\"\"),\"Y\",IF(AND('Enrollment Form'!$C391=\"ROC\",'Enrollment Form'!$DS391=\"\"),\"N\",IF(AND('Enrollment Form'!$C391=\"Enroll\",'Enrollment Form'!$B391=\"Subscriber\",'Enrollment Form'!$CQ391=\"No\",'Enrollment Form'!$DS391=\"\"),\"N\",IF(AND('Enrollment Form'!$C391=\"Enroll\",'Enrollment Form'!$B391=\"Subscriber\",'Enrollment Form'!$CQ391=\"Yes\"),\"-\",\"Y\")))))","v":""},{"$f":"IF($B384=\"N\",\"\",IF(AND('Enrollment Form'!$C391=\"ROC\",'Enrollment Form'!$DT391<>\"\"),\"Y\",IF(AND('Enrollment Form'!$C391=\"ROC\",'Enrollment Form'!$DT391=\"\"),\"N\",IF(AND('Enrollment Form'!$C391=\"Enroll\",'Enrollment Form'!$B391=\"Subscriber\",'Enrollment Form'!$CQ391=\"No\",'Enrollment Form'!$DT391=\"\"),\"N\",IF(AND('Enrollment Form'!$C391=\"Enroll\",'Enrollment Form'!$B391=\"Subscriber\",'Enrollment Form'!$CQ391=\"Yes\"),\"-\",\"Y\")))))","v":""},{"$f":"IF('Enrollment Form'!AH391=\"\",\"\",IF(ISERROR(SEARCH(\".\",'Enrollment Form'!AH391,SEARCH(\"@\",'Enrollment Form'!AH391))),\"N\",\"Y\"))","v":""},{"$f":"IF(OR($B384=\"N\",'Enrollment Form'!$G391=\"\"),\"\",IF('Enrollment Form'!$B391<>\"Subscriber\",\"-\",IF(COUNTIF('Enrollment Form'!$AS391:$AT391,\"Yes\")=2,\"N\",\"Y\")))","v":""},{"$f":"IF(OR('Enrollment Form'!$CC391=\"\",'Enrollment Form'!$CC391=\"No\"),\"-\",IF(AND('Enrollment Form'!$CC391=\"Yes\",'Enrollment Form'!$CD391=\"\"),\"N\",\"Y\"))","v":"-"},{"$f":"IF(OR('Enrollment Form'!$CE391=\"\",'Enrollment Form'!$CE391=\"No\"),\"-\",IF(AND('Enrollment Form'!$CE391=\"Yes\",'Enrollment Form'!$CF391=\"\"),\"N\",\"Y\"))","v":"-"},{"$f":"IF(OR('Enrollment Form'!$CG391=\"\",'Enrollment Form'!$CG391=\"No\"),\"-\",IF(AND('Enrollment Form'!$CG391=\"Yes\",'Enrollment Form'!$CH391=\"\"),\"N\",\"Y\"))","v":"-"},{"$f":"IF(OR('Enrollment Form'!$CG391=\"\",'Enrollment Form'!$CG391=\"No\"),\"-\",IF(AND('Enrollment Form'!$CG391=\"Yes\",'Enrollment Form'!$CI391=\"\"),\"N\",\"Y\"))","v":"-"},{"$f":"IF('Enrollment Form'!B391<>\"Subscriber\",\"-\",IF(AND('Enrollment Form'!B391=\"Subscriber\",'Enrollment Form'!C391=\"Enroll\",'Enrollment Form'!AA391=\"\"),\"N\",\"Y\"))","v":"-"},{"$f":"IF(OR('Enrollment Form'!B391=\"Subscriber\",'Enrollment Form'!B391=\"\"),\"-\",IF('Enrollment Form'!BI391=\"\",\"N\",\"Y\"))","v":"-"},{"$f":"IF('Enrollment Form'!B391<>\"Subscriber\",\"-\",IF(AND('Enrollment Form'!B391=\"Subscriber\",'Enrollment Form'!G391=\"\"),\"N\",\"Y\"))","v":"-"},{"$f":"IF('Enrollment Form'!A391=\"\",\"\",IF('Enrollment Form'!B391=\"Subscriber\",\"-\",IF(AND('Enrollment Form'!B391<>\"Subscriber\",'Enrollment Form'!G391='Enrollment Form'!H391),\"N\",\"Y\")))","v":""},0]
[392,{"$f":"IF('Enrollment Form'!$A392<>\"\",\"Y\",\"N\")","v":"N"},{"$f":"IF(AND('Enrollment Form'!$B392=\"\",'Enrollment Form'!$C392<>\"\"),\"N\",IF($B385=\"N\",\"\",\"Y\"))","v":""},{"$f":"IF(OR($B385=\"N\",'Enrollment Form'!G392=\"\"),\"\",IF('Enrollment Form'!$B392<>\"Subscriber\",\"\",IF('Enrollment Form'!$G392='Enrollment Form'!$H392,\"Y\",\"N\")))","v":""},{"$f":"IF($B385=\"N\",\"\",IF(AND(COUNTIFS('Enrollment Form'!$H$11:$H$1000,'Enrollment Form'!$H392,'Enrollment Form'!$B$11:$B$1000,'Enrollment Form'!$B392)>1,'Enrollment Form'!$H392<>\"\"),\"N\",\"Y\"))","v":""},{"$f":"IF($B385=\"N\",\"\",IF(LEN('Enrollment Form'!$Y392)=0,\"\",IF(LEN('Enrollment Form'!$Y392)<>5,\"N\",\"Y\")))","v":""},{"$f":"IF($B385=\"N\",\"\",IF(LEN('Enrollment Form'!$AD392=0),\"\",IF(LEN('Enrollment Form'!$AD392)<>5,\"N\",\"Y\")))","v":""},{"$f":"IF($B385=\"N\",\"\",IF(LEN('Enrollment Form'!$BL392=0),\"\",IF(LEN('Enrollment Form'!$BL392)<>5,\"N\",\"Y\")))","v":""},{"$f":"IF($B385=\"N\",\"\",IF(LEN('Enrollment Form'!$AE392)=0,\"\",IF(LEN('Enrollment Form'!$AE392)<>10,\"N\",\"Y\")))","v":""},{"$f":"IF($B385=\"N\",\"\",IF(LEN('Enrollment Form'!$AF392)=0,\"\",IF(LEN('Enrollment Form'!$AF392)<>10,\"N\",\"Y\")))","v":""},{"$f":"IF('Enrollment Form'!$O392<>\"Graded\",\"-\",IF(AND('Enrollment Form'!$O392=\"Graded\",'Enrollment Form'!$AO392<>\"\"),\"Y\",\"N\"))","v":"-"},{"$f":"IF($B385=\"N\",\"\",IF(OR('Enrollment Form'!$B392<>\"Subscriber\",'Enrollment Form'!$C392=\"ROC\"),\"-\",IF(AND('Enrollment Form'!$B392=\"Subscriber\",'Enrollment Form'!$C392=\"Enroll\",'Enrollment Form'!$AJ392<>\"\"),\"Y\",\"N\")))","v":""},{"$f":"IF($B385=\"N\",\"\",IF(OR('Enrollment Form'!$B392<>\"Subscriber\",'Enrollment Form'!$C392=\"ROC\"),\"-\",IF(AND('Enrollment Form'!$B392=\"Subscriber\",'Enrollment Form'!$C392=\"Enroll\",'Enrollment Form'!$AK392<>\"\"),\"Y\",\"N\")))","v":""},{"$f":"IF($B385=\"N\",\"\",IF(OR('Enrollment Form'!$B392<>\"Subscriber\",'Enrollment Form'!$C392=\"ROC\"),\"-\",IF(AND('Enrollment Form'!$B392=\"Subscriber\",'Enrollment Form'!$C392=\"Enroll\",'Enrollment Form'!$AL392<>\"\"),\"Y\",\"N\")))","v":""},{"$f":"IF($B385=\"N\",\"\",IF(OR('Enrollment Form'!$B392<>\"Subscriber\",'Enrollment Form'!$C392=\"ROC\"),\"-\",IF(AND('Enrollment Form'!$B392=\"Subscriber\",'Enrollment Form'!$C392=\"Enroll\",'Enrollment Form'!$AM392<>\"\"),\"Y\",\"N\")))","v":""},{"$f":"IF($B385=\"N\",\"\",IF(OR('Enrollment Form'!$B392<>\"Subscriber\",'Enrollment Form'!$C392=\"ROC\"),\"-\",IF(AND('Enrollment Form'!$B392=\"Subscriber\",'Enrollment Form'!$C392=\"Enroll\",'Enrollment Form'!$AN392<>\"\"),\"Y\",\"N\")))","v":""},{"$f":"IF($B385=\"N\",\"\",IF(OR('Enrollment Form'!$B392<>\"Subscriber\",'Enrollment Form'!$C392=\"ROC\"),\"-\",IF(AND('Enrollment Form'!$B392=\"Subscriber\",'Enrollment Form'!$C392=\"Enroll\",'Enrollment Form'!$AP392<>\"\"),\"Y\",\"N\")))","v":""},{"$f":"IF($B385=\"N\",\"\",IF($Q385=\"-\",\"-\",IF(AND($Q385=\"Y\",'Enrollment Form'!$AP392=\"No\"),\"-\",IF(AND($Q385=\"Y\",'Enrollment Form'!$AP392=\"Yes\",'Enrollment Form'!$AQ392<>\"\"),\"Y\",\"N\"))))","v":""},{"$f":"IF($B385=\"N\",\"\",IF(OR('Enrollment Form'!$B392<>\"Subscriber\",'Enrollment Form'!$C392=\"ROC\"),\"-\",IF(AND('Enrollment Form'!$B392=\"Subscriber\",'Enrollment Form'!$C392=\"Enroll\",'Enrollment Form'!$CO392<>\"\"),\"Y\",\"N\")))","v":""},{"$f":"IF($B385=\"N\",\"\",IF($S385=\"-\",\"-\",IF(AND($S385=\"Y\",'Enrollment Form'!$CO392=\"No\"),\"-\",IF(AND($S385=\"Y\",'Enrollment Form'!$CO392=\"Yes\",'Enrollment Form'!$CP392<>\"\"),\"Y\",\"N\"))))","v":""},{"$f":"IF(OR('Enrollment Form'!$AV392=\"Yes\",'Enrollment Form'!$AV392=\"\"),\"-\",IF(AND('Enrollment Form'!$AV392=\"No\",ISERROR(FIND(\"HMO\",VLOOKUP('Enrollment Form'!G392,'Enrollment Form'!H$11:J$1000,3,FALSE),1))=FALSE,COUNTA('Enrollment Form'!$AW392:$AZ392)=4),\"Y\",\"N\"))","v":"-"},{"$f":"IF($B385=\"N\",\"\",IF('Enrollment Form'!$B392=\"Subscriber\",\"-\",IF(COUNTA('Enrollment Form'!$BE392,'Enrollment Form'!$BG392)=2,\"Y\",\"N\")))","v":""},{"$f":"IF($B385=\"N\",\"\",IF(OR('Enrollment Form'!$AU392=\"\",'Enrollment Form'!$AU392=\"No\"),\"-\",IF(AND('Enrollment Form'!$AU392=\"Yes\",COUNTA('Enrollment Form'!$CK392)=1),\"Y\",\"N\")))","v":""},{"$f":"IF(OR('Enrollment Form'!$CK392=\"\",'Enrollment Form'!$CK392=\"No\"),\"-\",IF(COUNTA('Enrollment Form'!$CM392:$CN392)=2,\"Y\",\"N\"))","v":"-"},{"$f":"IF($B385=\"N\",\"\",IF(COUNTIF('Enrollment Form'!$CZ392:$DO392,\"Other\")=COUNTA('Enrollment Form'!$DF392,'Enrollment Form'!$DA392,'Enrollment Form'!$DK392,'Enrollment Form'!$DP392),\"Y\",\"N\"))","v":""},{"$f":"IF($B385=\"N\",\"\",IF(OR('Enrollment Form'!B392<>\"Subscriber\",'Enrollment Form'!C392=\"ROC\",COUNTIF('Enrollment Form'!AS392:AT392,\"Yes\")>=1),\"-\",IF(AND('Enrollment Form'!C392=\"Enroll\",COUNTIF('Enrollment Form'!AS392:AT392,\"No\")=2,'Enrollment Form'!AU392=\"\"),\"N\",\"Y\")))","v":""},{"$f":"IF(OR(B385=\"N\",'Enrollment Form'!B392<>\"Subscriber\",'Enrollment Form'!C392=\"ROC\",'Enrollment Form'!O392<>\"Multiple of Salary\"),\"-\",IF(COUNTA('Enrollment Form'!T392:U392)<2,\"N\",\"Y\"))","v":"-"},{"$f":"IF(B385=\"N\",\"\",IF(OR('Enrollment Form'!C392=\"ROC\",'Enrollment Form'!B392<>\"Subscriber\",'Enrollment Form'!O392=\"Waive\",'Enrollment Form'!O392=\"\"),\"-\",IF('Enrollment Form'!P392=\"\",\"N\",\"Y\")))","v":""},{"$f":"IF($B385=\"N\",\"\",IF(AND('Enrollment Form'!$C392=\"ROC\",'Enrollment Form'!$DS392<>\"\"),\"Y\",IF(AND('Enrollment Form'!$C392=\"ROC\",'Enrollment Form'!$DS392=\"\"),\"N\",IF(AND('Enrollment Form'!$C392=\"Enroll\",'Enrollment Form'!$B392=\"Subscriber\",'Enrollment Form'!$CQ392=\"No\",'Enrollment Form'!$DS392=\"\"),\"N\",IF(AND('Enrollment Form'!$C392=\"Enroll\",'Enrollment Form'!$B392=\"Subscriber\",'Enrollment Form'!$CQ392=\"Yes\"),\"-\",\"Y\")))))","v":""},{"$f":"IF($B385=\"N\",\"\",IF(AND('Enrollment Form'!$C392=\"ROC\",'Enrollment Form'!$DT392<>\"\"),\"Y\",IF(AND('Enrollment Form'!$C392=\"ROC\",'Enrollment Form'!$DT392=\"\"),\"N\",IF(AND('Enrollment Form'!$C392=\"Enroll\",'Enrollment Form'!$B392=\"Subscriber\",'Enrollment Form'!$CQ392=\"No\",'Enrollment Form'!$DT392=\"\"),\"N\",IF(AND('Enrollment Form'!$C392=\"Enroll\",'Enrollment Form'!$B392=\"Subscriber\",'Enrollment Form'!$CQ392=\"Yes\"),\"-\",\"Y\")))))","v":""},{"$f":"IF('Enrollment Form'!AH392=\"\",\"\",IF(ISERROR(SEARCH(\".\",'Enrollment Form'!AH392,SEARCH(\"@\",'Enrollment Form'!AH392))),\"N\",\"Y\"))","v":""},{"$f":"IF(OR($B385=\"N\",'Enrollment Form'!$G392=\"\"),\"\",IF('Enrollment Form'!$B392<>\"Subscriber\",\"-\",IF(COUNTIF('Enrollment Form'!$AS392:$AT392,\"Yes\")=2,\"N\",\"Y\")))","v":""},{"$f":"IF(OR('Enrollment Form'!$CC392=\"\",'Enrollment Form'!$CC392=\"No\"),\"-\",IF(AND('Enrollment Form'!$CC392=\"Yes\",'Enrollment Form'!$CD392=\"\"),\"N\",\"Y\"))","v":"-"},{"$f":"IF(OR('Enrollment Form'!$CE392=\"\",'Enrollment Form'!$CE392=\"No\"),\"-\",IF(AND('Enrollment Form'!$CE392=\"Yes\",'Enrollment Form'!$CF392=\"\"),\"N\",\"Y\"))","v":"-"},{"$f":"IF(OR('Enrollment Form'!$CG392=\"\",'Enrollment Form'!$CG392=\"No\"),\"-\",IF(AND('Enrollment Form'!$CG392=\"Yes\",'Enrollment Form'!$CH392=\"\"),\"N\",\"Y\"))","v":"-"},{"$f":"IF(OR('Enrollment Form'!$CG392=\"\",'Enrollment Form'!$CG392=\"No\"),\"-\",IF(AND('Enrollment Form'!$CG392=\"Yes\",'Enrollment Form'!$CI392=\"\"),\"N\",\"Y\"))","v":"-"},{"$f":"IF('Enrollment Form'!B392<>\"Subscriber\",\"-\",IF(AND('Enrollment Form'!B392=\"Subscriber\",'Enrollment Form'!C392=\"Enroll\",'Enrollment Form'!AA392=\"\"),\"N\",\"Y\"))","v":"-"},{"$f":"IF(OR('Enrollment Form'!B392=\"Subscriber\",'Enrollment Form'!B392=\"\"),\"-\",IF('Enrollment Form'!BI392=\"\",\"N\",\"Y\"))","v":"-"},{"$f":"IF('Enrollment Form'!B392<>\"Subscriber\",\"-\",IF(AND('Enrollment Form'!B392=\"Subscriber\",'Enrollment Form'!G392=\"\"),\"N\",\"Y\"))","v":"-"},{"$f":"IF('Enrollment Form'!A392=\"\",\"\",IF('Enrollment Form'!B392=\"Subscriber\",\"-\",IF(AND('Enrollment Form'!B392<>\"Subscriber\",'Enrollment Form'!G392='Enrollment Form'!H392),\"N\",\"Y\")))","v":""},0]
[393,{"$f":"IF('Enrollment Form'!$A393<>\"\",\"Y\",\"N\")","v":"N"},{"$f":"IF(AND('Enrollment Form'!$B393=\"\",'Enrollment Form'!$C393<>\"\"),\"N\",IF($B386=\"N\",\"\",\"Y\"))","v":""},{"$f":"IF(OR($B386=\"N\",'Enrollment Form'!G393=\"\"),\"\",IF('Enrollment Form'!$B393<>\"Subscriber\",\"\",IF('Enrollment Form'!$G393='Enrollment Form'!$H393,\"Y\",\"N\")))","v":""},{"$f":"IF($B386=\"N\",\"\",IF(AND(COUNTIFS('Enrollment Form'!$H$11:$H$1000,'Enrollment Form'!$H393,'Enrollment Form'!$B$11:$B$1000,'Enrollment Form'!$B393)>1,'Enrollment Form'!$H393<>\"\"),\"N\",\"Y\"))","v":""},{"$f":"IF($B386=\"N\",\"\",IF(LEN('Enrollment Form'!$Y393)=0,\"\",IF(LEN('Enrollment Form'!$Y393)<>5,\"N\",\"Y\")))","v":""},{"$f":"IF($B386=\"N\",\"\",IF(LEN('Enrollment Form'!$AD393=0),\"\",IF(LEN('Enrollment Form'!$AD393)<>5,\"N\",\"Y\")))","v":""},{"$f":"IF($B386=\"N\",\"\",IF(LEN('Enrollment Form'!$BL393=0),\"\",IF(LEN('Enrollment Form'!$BL393)<>5,\"N\",\"Y\")))","v":""},{"$f":"IF($B386=\"N\",\"\",IF(LEN('Enrollment Form'!$AE393)=0,\"\",IF(LEN('Enrollment Form'!$AE393)<>10,\"N\",\"Y\")))","v":""},{"$f":"IF($B386=\"N\",\"\",IF(LEN('Enrollment Form'!$AF393)=0,\"\",IF(LEN('Enrollment Form'!$AF393)<>10,\"N\",\"Y\")))","v":""},{"$f":"IF('Enrollment Form'!$O393<>\"Graded\",\"-\",IF(AND('Enrollment Form'!$O393=\"Graded\",'Enrollment Form'!$AO393<>\"\"),\"Y\",\"N\"))","v":"-"},{"$f":"IF($B386=\"N\",\"\",IF(OR('Enrollment Form'!$B393<>\"Subscriber\",'Enrollment Form'!$C393=\"ROC\"),\"-\",IF(AND('Enrollment Form'!$B393=\"Subscriber\",'Enrollment Form'!$C393=\"Enroll\",'Enrollment Form'!$AJ393<>\"\"),\"Y\",\"N\")))","v":""},{"$f":"IF($B386=\"N\",\"\",IF(OR('Enrollment Form'!$B393<>\"Subscriber\",'Enrollment Form'!$C393=\"ROC\"),\"-\",IF(AND('Enrollment Form'!$B393=\"Subscriber\",'Enrollment Form'!$C393=\"Enroll\",'Enrollment Form'!$AK393<>\"\"),\"Y\",\"N\")))","v":""},{"$f":"IF($B386=\"N\",\"\",IF(OR('Enrollment Form'!$B393<>\"Subscriber\",'Enrollment Form'!$C393=\"ROC\"),\"-\",IF(AND('Enrollment Form'!$B393=\"Subscriber\",'Enrollment Form'!$C393=\"Enroll\",'Enrollment Form'!$AL393<>\"\"),\"Y\",\"N\")))","v":""},{"$f":"IF($B386=\"N\",\"\",IF(OR('Enrollment Form'!$B393<>\"Subscriber\",'Enrollment Form'!$C393=\"ROC\"),\"-\",IF(AND('Enrollment Form'!$B393=\"Subscriber\",'Enrollment Form'!$C393=\"Enroll\",'Enrollment Form'!$AM393<>\"\"),\"Y\",\"N\")))","v":""},{"$f":"IF($B386=\"N\",\"\",IF(OR('Enrollment Form'!$B393<>\"Subscriber\",'Enrollment Form'!$C393=\"ROC\"),\"-\",IF(AND('Enrollment Form'!$B393=\"Subscriber\",'Enrollment Form'!$C393=\"Enroll\",'Enrollment Form'!$AN393<>\"\"),\"Y\",\"N\")))","v":""},{"$f":"IF($B386=\"N\",\"\",IF(OR('Enrollment Form'!$B393<>\"Subscriber\",'Enrollment Form'!$C393=\"ROC\"),\"-\",IF(AND('Enrollment Form'!$B393=\"Subscriber\",'Enrollment Form'!$C393=\"Enroll\",'Enrollment Form'!$AP393<>\"\"),\"Y\",\"N\")))","v":""},{"$f":"IF($B386=\"N\",\"\",IF($Q386=\"-\",\"-\",IF(AND($Q386=\"Y\",'Enrollment Form'!$AP393=\"No\"),\"-\",IF(AND($Q386=\"Y\",'Enrollment Form'!$AP393=\"Yes\",'Enrollment Form'!$AQ393<>\"\"),\"Y\",\"N\"))))","v":""},{"$f":"IF($B386=\"N\",\"\",IF(OR('Enrollment Form'!$B393<>\"Subscriber\",'Enrollment Form'!$C393=\"ROC\"),\"-\",IF(AND('Enrollment Form'!$B393=\"Subscriber\",'Enrollment Form'!$C393=\"Enroll\",'Enrollment Form'!$CO393<>\"\"),\"Y\",\"N\")))","v":""},{"$f":"IF($B386=\"N\",\"\",IF($S386=\"-\",\"-\",IF(AND($S386=\"Y\",'Enrollment Form'!$CO393=\"No\"),\"-\",IF(AND($S386=\"Y\",'Enrollment Form'!$CO393=\"Yes\",'Enrollment Form'!$CP393<>\"\"),\"Y\",\"N\"))))","v":""},{"$f":"IF(OR('Enrollment Form'!$AV393=\"Yes\",'Enrollment Form'!$AV393=\"\"),\"-\",IF(AND('Enrollment Form'!$AV393=\"No\",ISERROR(FIND(\"HMO\",VLOOKUP('Enrollment Form'!G393,'Enrollment Form'!H$11:J$1000,3,FALSE),1))=FALSE,COUNTA('Enrollment Form'!$AW393:$AZ393)=4),\"Y\",\"N\"))","v":"-"},{"$f":"IF($B386=\"N\",\"\",IF('Enrollment Form'!$B393=\"Subscriber\",\"-\",IF(COUNTA('Enrollment Form'!$BE393,'Enrollment Form'!$BG393)=2,\"Y\",\"N\")))","v":""},{"$f":"IF($B386=\"N\",\"\",IF(OR('Enrollment Form'!$AU393=\"\",'Enrollment Form'!$AU393=\"No\"),\"-\",IF(AND('Enrollment Form'!$AU393=\"Yes\",COUNTA('Enrollment Form'!$CK393)=1),\"Y\",\"N\")))","v":""},{"$f":"IF(OR('Enrollment Form'!$CK393=\"\",'Enrollment Form'!$CK393=\"No\"),\"-\",IF(COUNTA('Enrollment Form'!$CM393:$CN393)=2,\"Y\",\"N\"))","v":"-"},{"$f":"IF($B386=\"N\",\"\",IF(COUNTIF('Enrollment Form'!$CZ393:$DO393,\"Other\")=COUNTA('Enrollment Form'!$DF393,'Enrollment Form'!$DA393,'Enrollment Form'!$DK393,'Enrollment Form'!$DP393),\"Y\",\"N\"))","v":""},{"$f":"IF($B386=\"N\",\"\",IF(OR('Enrollment Form'!B393<>\"Subscriber\",'Enrollment Form'!C393=\"ROC\",COUNTIF('Enrollment Form'!AS393:AT393,\"Yes\")>=1),\"-\",IF(AND('Enrollment Form'!C393=\"Enroll\",COUNTIF('Enrollment Form'!AS393:AT393,\"No\")=2,'Enrollment Form'!AU393=\"\"),\"N\",\"Y\")))","v":""},{"$f":"IF(OR(B386=\"N\",'Enrollment Form'!B393<>\"Subscriber\",'Enrollment Form'!C393=\"ROC\",'Enrollment Form'!O393<>\"Multiple of Salary\"),\"-\",IF(COUNTA('Enrollment Form'!T393:U393)<2,\"N\",\"Y\"))","v":"-"},{"$f":"IF(B386=\"N\",\"\",IF(OR('Enrollment Form'!C393=\"ROC\",'Enrollment Form'!B393<>\"Subscriber\",'Enrollment Form'!O393=\"Waive\",'Enrollment Form'!O393=\"\"),\"-\",IF('Enrollment Form'!P393=\"\",\"N\",\"Y\")))","v":""},{"$f":"IF($B386=\"N\",\"\",IF(AND('Enrollment Form'!$C393=\"ROC\",'Enrollment Form'!$DS393<>\"\"),\"Y\",IF(AND('Enrollment Form'!$C393=\"ROC\",'Enrollment Form'!$DS393=\"\"),\"N\",IF(AND('Enrollment Form'!$C393=\"Enroll\",'Enrollment Form'!$B393=\"Subscriber\",'Enrollment Form'!$CQ393=\"No\",'Enrollment Form'!$DS393=\"\"),\"N\",IF(AND('Enrollment Form'!$C393=\"Enroll\",'Enrollment Form'!$B393=\"Subscriber\",'Enrollment Form'!$CQ393=\"Yes\"),\"-\",\"Y\")))))","v":""},{"$f":"IF($B386=\"N\",\"\",IF(AND('Enrollment Form'!$C393=\"ROC\",'Enrollment Form'!$DT393<>\"\"),\"Y\",IF(AND('Enrollment Form'!$C393=\"ROC\",'Enrollment Form'!$DT393=\"\"),\"N\",IF(AND('Enrollment Form'!$C393=\"Enroll\",'Enrollment Form'!$B393=\"Subscriber\",'Enrollment Form'!$CQ393=\"No\",'Enrollment Form'!$DT393=\"\"),\"N\",IF(AND('Enrollment Form'!$C393=\"Enroll\",'Enrollment Form'!$B393=\"Subscriber\",'Enrollment Form'!$CQ393=\"Yes\"),\"-\",\"Y\")))))","v":""},{"$f":"IF('Enrollment Form'!AH393=\"\",\"\",IF(ISERROR(SEARCH(\".\",'Enrollment Form'!AH393,SEARCH(\"@\",'Enrollment Form'!AH393))),\"N\",\"Y\"))","v":""},{"$f":"IF(OR($B386=\"N\",'Enrollment Form'!$G393=\"\"),\"\",IF('Enrollment Form'!$B393<>\"Subscriber\",\"-\",IF(COUNTIF('Enrollment Form'!$AS393:$AT393,\"Yes\")=2,\"N\",\"Y\")))","v":""},{"$f":"IF(OR('Enrollment Form'!$CC393=\"\",'Enrollment Form'!$CC393=\"No\"),\"-\",IF(AND('Enrollment Form'!$CC393=\"Yes\",'Enrollment Form'!$CD393=\"\"),\"N\",\"Y\"))","v":"-"},{"$f":"IF(OR('Enrollment Form'!$CE393=\"\",'Enrollment Form'!$CE393=\"No\"),\"-\",IF(AND('Enrollment Form'!$CE393=\"Yes\",'Enrollment Form'!$CF393=\"\"),\"N\",\"Y\"))","v":"-"},{"$f":"IF(OR('Enrollment Form'!$CG393=\"\",'Enrollment Form'!$CG393=\"No\"),\"-\",IF(AND('Enrollment Form'!$CG393=\"Yes\",'Enrollment Form'!$CH393=\"\"),\"N\",\"Y\"))","v":"-"},{"$f":"IF(OR('Enrollment Form'!$CG393=\"\",'Enrollment Form'!$CG393=\"No\"),\"-\",IF(AND('Enrollment Form'!$CG393=\"Yes\",'Enrollment Form'!$CI393=\"\"),\"N\",\"Y\"))","v":"-"},{"$f":"IF('Enrollment Form'!B393<>\"Subscriber\",\"-\",IF(AND('Enrollment Form'!B393=\"Subscriber\",'Enrollment Form'!C393=\"Enroll\",'Enrollment Form'!AA393=\"\"),\"N\",\"Y\"))","v":"-"},{"$f":"IF(OR('Enrollment Form'!B393=\"Subscriber\",'Enrollment Form'!B393=\"\"),\"-\",IF('Enrollment Form'!BI393=\"\",\"N\",\"Y\"))","v":"-"},{"$f":"IF('Enrollment Form'!B393<>\"Subscriber\",\"-\",IF(AND('Enrollment Form'!B393=\"Subscriber\",'Enrollment Form'!G393=\"\"),\"N\",\"Y\"))","v":"-"},{"$f":"IF('Enrollment Form'!A393=\"\",\"\",IF('Enrollment Form'!B393=\"Subscriber\",\"-\",IF(AND('Enrollment Form'!B393<>\"Subscriber\",'Enrollment Form'!G393='Enrollment Form'!H393),\"N\",\"Y\")))","v":""},0]
[394,{"$f":"IF('Enrollment Form'!$A394<>\"\",\"Y\",\"N\")","v":"N"},{"$f":"IF(AND('Enrollment Form'!$B394=\"\",'Enrollment Form'!$C394<>\"\"),\"N\",IF($B387=\"N\",\"\",\"Y\"))","v":""},{"$f":"IF(OR($B387=\"N\",'Enrollment Form'!G394=\"\"),\"\",IF('Enrollment Form'!$B394<>\"Subscriber\",\"\",IF('Enrollment Form'!$G394='Enrollment Form'!$H394,\"Y\",\"N\")))","v":""},{"$f":"IF($B387=\"N\",\"\",IF(AND(COUNTIFS('Enrollment Form'!$H$11:$H$1000,'Enrollment Form'!$H394,'Enrollment Form'!$B$11:$B$1000,'Enrollment Form'!$B394)>1,'Enrollment Form'!$H394<>\"\"),\"N\",\"Y\"))","v":""},{"$f":"IF($B387=\"N\",\"\",IF(LEN('Enrollment Form'!$Y394)=0,\"\",IF(LEN('Enrollment Form'!$Y394)<>5,\"N\",\"Y\")))","v":""},{"$f":"IF($B387=\"N\",\"\",IF(LEN('Enrollment Form'!$AD394=0),\"\",IF(LEN('Enrollment Form'!$AD394)<>5,\"N\",\"Y\")))","v":""},{"$f":"IF($B387=\"N\",\"\",IF(LEN('Enrollment Form'!$BL394=0),\"\",IF(LEN('Enrollment Form'!$BL394)<>5,\"N\",\"Y\")))","v":""},{"$f":"IF($B387=\"N\",\"\",IF(LEN('Enrollment Form'!$AE394)=0,\"\",IF(LEN('Enrollment Form'!$AE394)<>10,\"N\",\"Y\")))","v":""},{"$f":"IF($B387=\"N\",\"\",IF(LEN('Enrollment Form'!$AF394)=0,\"\",IF(LEN('Enrollment Form'!$AF394)<>10,\"N\",\"Y\")))","v":""},{"$f":"IF('Enrollment Form'!$O394<>\"Graded\",\"-\",IF(AND('Enrollment Form'!$O394=\"Graded\",'Enrollment Form'!$AO394<>\"\"),\"Y\",\"N\"))","v":"-"},{"$f":"IF($B387=\"N\",\"\",IF(OR('Enrollment Form'!$B394<>\"Subscriber\",'Enrollment Form'!$C394=\"ROC\"),\"-\",IF(AND('Enrollment Form'!$B394=\"Subscriber\",'Enrollment Form'!$C394=\"Enroll\",'Enrollment Form'!$AJ394<>\"\"),\"Y\",\"N\")))","v":""},{"$f":"IF($B387=\"N\",\"\",IF(OR('Enrollment Form'!$B394<>\"Subscriber\",'Enrollment Form'!$C394=\"ROC\"),\"-\",IF(AND('Enrollment Form'!$B394=\"Subscriber\",'Enrollment Form'!$C394=\"Enroll\",'Enrollment Form'!$AK394<>\"\"),\"Y\",\"N\")))","v":""},{"$f":"IF($B387=\"N\",\"\",IF(OR('Enrollment Form'!$B394<>\"Subscriber\",'Enrollment Form'!$C394=\"ROC\"),\"-\",IF(AND('Enrollment Form'!$B394=\"Subscriber\",'Enrollment Form'!$C394=\"Enroll\",'Enrollment Form'!$AL394<>\"\"),\"Y\",\"N\")))","v":""},{"$f":"IF($B387=\"N\",\"\",IF(OR('Enrollment Form'!$B394<>\"Subscriber\",'Enrollment Form'!$C394=\"ROC\"),\"-\",IF(AND('Enrollment Form'!$B394=\"Subscriber\",'Enrollment Form'!$C394=\"Enroll\",'Enrollment Form'!$AM394<>\"\"),\"Y\",\"N\")))","v":""},{"$f":"IF($B387=\"N\",\"\",IF(OR('Enrollment Form'!$B394<>\"Subscriber\",'Enrollment Form'!$C394=\"ROC\"),\"-\",IF(AND('Enrollment Form'!$B394=\"Subscriber\",'Enrollment Form'!$C394=\"Enroll\",'Enrollment Form'!$AN394<>\"\"),\"Y\",\"N\")))","v":""},{"$f":"IF($B387=\"N\",\"\",IF(OR('Enrollment Form'!$B394<>\"Subscriber\",'Enrollment Form'!$C394=\"ROC\"),\"-\",IF(AND('Enrollment Form'!$B394=\"Subscriber\",'Enrollment Form'!$C394=\"Enroll\",'Enrollment Form'!$AP394<>\"\"),\"Y\",\"N\")))","v":""},{"$f":"IF($B387=\"N\",\"\",IF($Q387=\"-\",\"-\",IF(AND($Q387=\"Y\",'Enrollment Form'!$AP394=\"No\"),\"-\",IF(AND($Q387=\"Y\",'Enrollment Form'!$AP394=\"Yes\",'Enrollment Form'!$AQ394<>\"\"),\"Y\",\"N\"))))","v":""},{"$f":"IF($B387=\"N\",\"\",IF(OR('Enrollment Form'!$B394<>\"Subscriber\",'Enrollment Form'!$C394=\"ROC\"),\"-\",IF(AND('Enrollment Form'!$B394=\"Subscriber\",'Enrollment Form'!$C394=\"Enroll\",'Enrollment Form'!$CO394<>\"\"),\"Y\",\"N\")))","v":""},{"$f":"IF($B387=\"N\",\"\",IF($S387=\"-\",\"-\",IF(AND($S387=\"Y\",'Enrollment Form'!$CO394=\"No\"),\"-\",IF(AND($S387=\"Y\",'Enrollment Form'!$CO394=\"Yes\",'Enrollment Form'!$CP394<>\"\"),\"Y\",\"N\"))))","v":""},{"$f":"IF(OR('Enrollment Form'!$AV394=\"Yes\",'Enrollment Form'!$AV394=\"\"),\"-\",IF(AND('Enrollment Form'!$AV394=\"No\",ISERROR(FIND(\"HMO\",VLOOKUP('Enrollment Form'!G394,'Enrollment Form'!H$11:J$1000,3,FALSE),1))=FALSE,COUNTA('Enrollment Form'!$AW394:$AZ394)=4),\"Y\",\"N\"))","v":"-"},{"$f":"IF($B387=\"N\",\"\",IF('Enrollment Form'!$B394=\"Subscriber\",\"-\",IF(COUNTA('Enrollment Form'!$BE394,'Enrollment Form'!$BG394)=2,\"Y\",\"N\")))","v":""},{"$f":"IF($B387=\"N\",\"\",IF(OR('Enrollment Form'!$AU394=\"\",'Enrollment Form'!$AU394=\"No\"),\"-\",IF(AND('Enrollment Form'!$AU394=\"Yes\",COUNTA('Enrollment Form'!$CK394)=1),\"Y\",\"N\")))","v":""},{"$f":"IF(OR('Enrollment Form'!$CK394=\"\",'Enrollment Form'!$CK394=\"No\"),\"-\",IF(COUNTA('Enrollment Form'!$CM394:$CN394)=2,\"Y\",\"N\"))","v":"-"},{"$f":"IF($B387=\"N\",\"\",IF(COUNTIF('Enrollment Form'!$CZ394:$DO394,\"Other\")=COUNTA('Enrollment Form'!$DF394,'Enrollment Form'!$DA394,'Enrollment Form'!$DK394,'Enrollment Form'!$DP394),\"Y\",\"N\"))","v":""},{"$f":"IF($B387=\"N\",\"\",IF(OR('Enrollment Form'!B394<>\"Subscriber\",'Enrollment Form'!C394=\"ROC\",COUNTIF('Enrollment Form'!AS394:AT394,\"Yes\")>=1),\"-\",IF(AND('Enrollment Form'!C394=\"Enroll\",COUNTIF('Enrollment Form'!AS394:AT394,\"No\")=2,'Enrollment Form'!AU394=\"\"),\"N\",\"Y\")))","v":""},{"$f":"IF(OR(B387=\"N\",'Enrollment Form'!B394<>\"Subscriber\",'Enrollment Form'!C394=\"ROC\",'Enrollment Form'!O394<>\"Multiple of Salary\"),\"-\",IF(COUNTA('Enrollment Form'!T394:U394)<2,\"N\",\"Y\"))","v":"-"},{"$f":"IF(B387=\"N\",\"\",IF(OR('Enrollment Form'!C394=\"ROC\",'Enrollment Form'!B394<>\"Subscriber\",'Enrollment Form'!O394=\"Waive\",'Enrollment Form'!O394=\"\"),\"-\",IF('Enrollment Form'!P394=\"\",\"N\",\"Y\")))","v":""},{"$f":"IF($B387=\"N\",\"\",IF(AND('Enrollment Form'!$C394=\"ROC\",'Enrollment Form'!$DS394<>\"\"),\"Y\",IF(AND('Enrollment Form'!$C394=\"ROC\",'Enrollment Form'!$DS394=\"\"),\"N\",IF(AND('Enrollment Form'!$C394=\"Enroll\",'Enrollment Form'!$B394=\"Subscriber\",'Enrollment Form'!$CQ394=\"No\",'Enrollment Form'!$DS394=\"\"),\"N\",IF(AND('Enrollment Form'!$C394=\"Enroll\",'Enrollment Form'!$B394=\"Subscriber\",'Enrollment Form'!$CQ394=\"Yes\"),\"-\",\"Y\")))))","v":""},{"$f":"IF($B387=\"N\",\"\",IF(AND('Enrollment Form'!$C394=\"ROC\",'Enrollment Form'!$DT394<>\"\"),\"Y\",IF(AND('Enrollment Form'!$C394=\"ROC\",'Enrollment Form'!$DT394=\"\"),\"N\",IF(AND('Enrollment Form'!$C394=\"Enroll\",'Enrollment Form'!$B394=\"Subscriber\",'Enrollment Form'!$CQ394=\"No\",'Enrollment Form'!$DT394=\"\"),\"N\",IF(AND('Enrollment Form'!$C394=\"Enroll\",'Enrollment Form'!$B394=\"Subscriber\",'Enrollment Form'!$CQ394=\"Yes\"),\"-\",\"Y\")))))","v":""},{"$f":"IF('Enrollment Form'!AH394=\"\",\"\",IF(ISERROR(SEARCH(\".\",'Enrollment Form'!AH394,SEARCH(\"@\",'Enrollment Form'!AH394))),\"N\",\"Y\"))","v":""},{"$f":"IF(OR($B387=\"N\",'Enrollment Form'!$G394=\"\"),\"\",IF('Enrollment Form'!$B394<>\"Subscriber\",\"-\",IF(COUNTIF('Enrollment Form'!$AS394:$AT394,\"Yes\")=2,\"N\",\"Y\")))","v":""},{"$f":"IF(OR('Enrollment Form'!$CC394=\"\",'Enrollment Form'!$CC394=\"No\"),\"-\",IF(AND('Enrollment Form'!$CC394=\"Yes\",'Enrollment Form'!$CD394=\"\"),\"N\",\"Y\"))","v":"-"},{"$f":"IF(OR('Enrollment Form'!$CE394=\"\",'Enrollment Form'!$CE394=\"No\"),\"-\",IF(AND('Enrollment Form'!$CE394=\"Yes\",'Enrollment Form'!$CF394=\"\"),\"N\",\"Y\"))","v":"-"},{"$f":"IF(OR('Enrollment Form'!$CG394=\"\",'Enrollment Form'!$CG394=\"No\"),\"-\",IF(AND('Enrollment Form'!$CG394=\"Yes\",'Enrollment Form'!$CH394=\"\"),\"N\",\"Y\"))","v":"-"},{"$f":"IF(OR('Enrollment Form'!$CG394=\"\",'Enrollment Form'!$CG394=\"No\"),\"-\",IF(AND('Enrollment Form'!$CG394=\"Yes\",'Enrollment Form'!$CI394=\"\"),\"N\",\"Y\"))","v":"-"},{"$f":"IF('Enrollment Form'!B394<>\"Subscriber\",\"-\",IF(AND('Enrollment Form'!B394=\"Subscriber\",'Enrollment Form'!C394=\"Enroll\",'Enrollment Form'!AA394=\"\"),\"N\",\"Y\"))","v":"-"},{"$f":"IF(OR('Enrollment Form'!B394=\"Subscriber\",'Enrollment Form'!B394=\"\"),\"-\",IF('Enrollment Form'!BI394=\"\",\"N\",\"Y\"))","v":"-"},{"$f":"IF('Enrollment Form'!B394<>\"Subscriber\",\"-\",IF(AND('Enrollment Form'!B394=\"Subscriber\",'Enrollment Form'!G394=\"\"),\"N\",\"Y\"))","v":"-"},{"$f":"IF('Enrollment Form'!A394=\"\",\"\",IF('Enrollment Form'!B394=\"Subscriber\",\"-\",IF(AND('Enrollment Form'!B394<>\"Subscriber\",'Enrollment Form'!G394='Enrollment Form'!H394),\"N\",\"Y\")))","v":""},0]
[395,{"$f":"IF('Enrollment Form'!$A395<>\"\",\"Y\",\"N\")","v":"N"},{"$f":"IF(AND('Enrollment Form'!$B395=\"\",'Enrollment Form'!$C395<>\"\"),\"N\",IF($B388=\"N\",\"\",\"Y\"))","v":""},{"$f":"IF(OR($B388=\"N\",'Enrollment Form'!G395=\"\"),\"\",IF('Enrollment Form'!$B395<>\"Subscriber\",\"\",IF('Enrollment Form'!$G395='Enrollment Form'!$H395,\"Y\",\"N\")))","v":""},{"$f":"IF($B388=\"N\",\"\",IF(AND(COUNTIFS('Enrollment Form'!$H$11:$H$1000,'Enrollment Form'!$H395,'Enrollment Form'!$B$11:$B$1000,'Enrollment Form'!$B395)>1,'Enrollment Form'!$H395<>\"\"),\"N\",\"Y\"))","v":""},{"$f":"IF($B388=\"N\",\"\",IF(LEN('Enrollment Form'!$Y395)=0,\"\",IF(LEN('Enrollment Form'!$Y395)<>5,\"N\",\"Y\")))","v":""},{"$f":"IF($B388=\"N\",\"\",IF(LEN('Enrollment Form'!$AD395=0),\"\",IF(LEN('Enrollment Form'!$AD395)<>5,\"N\",\"Y\")))","v":""},{"$f":"IF($B388=\"N\",\"\",IF(LEN('Enrollment Form'!$BL395=0),\"\",IF(LEN('Enrollment Form'!$BL395)<>5,\"N\",\"Y\")))","v":""},{"$f":"IF($B388=\"N\",\"\",IF(LEN('Enrollment Form'!$AE395)=0,\"\",IF(LEN('Enrollment Form'!$AE395)<>10,\"N\",\"Y\")))","v":""},{"$f":"IF($B388=\"N\",\"\",IF(LEN('Enrollment Form'!$AF395)=0,\"\",IF(LEN('Enrollment Form'!$AF395)<>10,\"N\",\"Y\")))","v":""},{"$f":"IF('Enrollment Form'!$O395<>\"Graded\",\"-\",IF(AND('Enrollment Form'!$O395=\"Graded\",'Enrollment Form'!$AO395<>\"\"),\"Y\",\"N\"))","v":"-"},{"$f":"IF($B388=\"N\",\"\",IF(OR('Enrollment Form'!$B395<>\"Subscriber\",'Enrollment Form'!$C395=\"ROC\"),\"-\",IF(AND('Enrollment Form'!$B395=\"Subscriber\",'Enrollment Form'!$C395=\"Enroll\",'Enrollment Form'!$AJ395<>\"\"),\"Y\",\"N\")))","v":""},{"$f":"IF($B388=\"N\",\"\",IF(OR('Enrollment Form'!$B395<>\"Subscriber\",'Enrollment Form'!$C395=\"ROC\"),\"-\",IF(AND('Enrollment Form'!$B395=\"Subscriber\",'Enrollment Form'!$C395=\"Enroll\",'Enrollment Form'!$AK395<>\"\"),\"Y\",\"N\")))","v":""},{"$f":"IF($B388=\"N\",\"\",IF(OR('Enrollment Form'!$B395<>\"Subscriber\",'Enrollment Form'!$C395=\"ROC\"),\"-\",IF(AND('Enrollment Form'!$B395=\"Subscriber\",'Enrollment Form'!$C395=\"Enroll\",'Enrollment Form'!$AL395<>\"\"),\"Y\",\"N\")))","v":""},{"$f":"IF($B388=\"N\",\"\",IF(OR('Enrollment Form'!$B395<>\"Subscriber\",'Enrollment Form'!$C395=\"ROC\"),\"-\",IF(AND('Enrollment Form'!$B395=\"Subscriber\",'Enrollment Form'!$C395=\"Enroll\",'Enrollment Form'!$AM395<>\"\"),\"Y\",\"N\")))","v":""},{"$f":"IF($B388=\"N\",\"\",IF(OR('Enrollment Form'!$B395<>\"Subscriber\",'Enrollment Form'!$C395=\"ROC\"),\"-\",IF(AND('Enrollment Form'!$B395=\"Subscriber\",'Enrollment Form'!$C395=\"Enroll\",'Enrollment Form'!$AN395<>\"\"),\"Y\",\"N\")))","v":""},{"$f":"IF($B388=\"N\",\"\",IF(OR('Enrollment Form'!$B395<>\"Subscriber\",'Enrollment Form'!$C395=\"ROC\"),\"-\",IF(AND('Enrollment Form'!$B395=\"Subscriber\",'Enrollment Form'!$C395=\"Enroll\",'Enrollment Form'!$AP395<>\"\"),\"Y\",\"N\")))","v":""},{"$f":"IF($B388=\"N\",\"\",IF($Q388=\"-\",\"-\",IF(AND($Q388=\"Y\",'Enrollment Form'!$AP395=\"No\"),\"-\",IF(AND($Q388=\"Y\",'Enrollment Form'!$AP395=\"Yes\",'Enrollment Form'!$AQ395<>\"\"),\"Y\",\"N\"))))","v":""},{"$f":"IF($B388=\"N\",\"\",IF(OR('Enrollment Form'!$B395<>\"Subscriber\",'Enrollment Form'!$C395=\"ROC\"),\"-\",IF(AND('Enrollment Form'!$B395=\"Subscriber\",'Enrollment Form'!$C395=\"Enroll\",'Enrollment Form'!$CO395<>\"\"),\"Y\",\"N\")))","v":""},{"$f":"IF($B388=\"N\",\"\",IF($S388=\"-\",\"-\",IF(AND($S388=\"Y\",'Enrollment Form'!$CO395=\"No\"),\"-\",IF(AND($S388=\"Y\",'Enrollment Form'!$CO395=\"Yes\",'Enrollment Form'!$CP395<>\"\"),\"Y\",\"N\"))))","v":""},{"$f":"IF(OR('Enrollment Form'!$AV395=\"Yes\",'Enrollment Form'!$AV395=\"\"),\"-\",IF(AND('Enrollment Form'!$AV395=\"No\",ISERROR(FIND(\"HMO\",VLOOKUP('Enrollment Form'!G395,'Enrollment Form'!H$11:J$1000,3,FALSE),1))=FALSE,COUNTA('Enrollment Form'!$AW395:$AZ395)=4),\"Y\",\"N\"))","v":"-"},{"$f":"IF($B388=\"N\",\"\",IF('Enrollment Form'!$B395=\"Subscriber\",\"-\",IF(COUNTA('Enrollment Form'!$BE395,'Enrollment Form'!$BG395)=2,\"Y\",\"N\")))","v":""},{"$f":"IF($B388=\"N\",\"\",IF(OR('Enrollment Form'!$AU395=\"\",'Enrollment Form'!$AU395=\"No\"),\"-\",IF(AND('Enrollment Form'!$AU395=\"Yes\",COUNTA('Enrollment Form'!$CK395)=1),\"Y\",\"N\")))","v":""},{"$f":"IF(OR('Enrollment Form'!$CK395=\"\",'Enrollment Form'!$CK395=\"No\"),\"-\",IF(COUNTA('Enrollment Form'!$CM395:$CN395)=2,\"Y\",\"N\"))","v":"-"},{"$f":"IF($B388=\"N\",\"\",IF(COUNTIF('Enrollment Form'!$CZ395:$DO395,\"Other\")=COUNTA('Enrollment Form'!$DF395,'Enrollment Form'!$DA395,'Enrollment Form'!$DK395,'Enrollment Form'!$DP395),\"Y\",\"N\"))","v":""},{"$f":"IF($B388=\"N\",\"\",IF(OR('Enrollment Form'!B395<>\"Subscriber\",'Enrollment Form'!C395=\"ROC\",COUNTIF('Enrollment Form'!AS395:AT395,\"Yes\")>=1),\"-\",IF(AND('Enrollment Form'!C395=\"Enroll\",COUNTIF('Enrollment Form'!AS395:AT395,\"No\")=2,'Enrollment Form'!AU395=\"\"),\"N\",\"Y\")))","v":""},{"$f":"IF(OR(B388=\"N\",'Enrollment Form'!B395<>\"Subscriber\",'Enrollment Form'!C395=\"ROC\",'Enrollment Form'!O395<>\"Multiple of Salary\"),\"-\",IF(COUNTA('Enrollment Form'!T395:U395)<2,\"N\",\"Y\"))","v":"-"},{"$f":"IF(B388=\"N\",\"\",IF(OR('Enrollment Form'!C395=\"ROC\",'Enrollment Form'!B395<>\"Subscriber\",'Enrollment Form'!O395=\"Waive\",'Enrollment Form'!O395=\"\"),\"-\",IF('Enrollment Form'!P395=\"\",\"N\",\"Y\")))","v":""},{"$f":"IF($B388=\"N\",\"\",IF(AND('Enrollment Form'!$C395=\"ROC\",'Enrollment Form'!$DS395<>\"\"),\"Y\",IF(AND('Enrollment Form'!$C395=\"ROC\",'Enrollment Form'!$DS395=\"\"),\"N\",IF(AND('Enrollment Form'!$C395=\"Enroll\",'Enrollment Form'!$B395=\"Subscriber\",'Enrollment Form'!$CQ395=\"No\",'Enrollment Form'!$DS395=\"\"),\"N\",IF(AND('Enrollment Form'!$C395=\"Enroll\",'Enrollment Form'!$B395=\"Subscriber\",'Enrollment Form'!$CQ395=\"Yes\"),\"-\",\"Y\")))))","v":""},{"$f":"IF($B388=\"N\",\"\",IF(AND('Enrollment Form'!$C395=\"ROC\",'Enrollment Form'!$DT395<>\"\"),\"Y\",IF(AND('Enrollment Form'!$C395=\"ROC\",'Enrollment Form'!$DT395=\"\"),\"N\",IF(AND('Enrollment Form'!$C395=\"Enroll\",'Enrollment Form'!$B395=\"Subscriber\",'Enrollment Form'!$CQ395=\"No\",'Enrollment Form'!$DT395=\"\"),\"N\",IF(AND('Enrollment Form'!$C395=\"Enroll\",'Enrollment Form'!$B395=\"Subscriber\",'Enrollment Form'!$CQ395=\"Yes\"),\"-\",\"Y\")))))","v":""},{"$f":"IF('Enrollment Form'!AH395=\"\",\"\",IF(ISERROR(SEARCH(\".\",'Enrollment Form'!AH395,SEARCH(\"@\",'Enrollment Form'!AH395))),\"N\",\"Y\"))","v":""},{"$f":"IF(OR($B388=\"N\",'Enrollment Form'!$G395=\"\"),\"\",IF('Enrollment Form'!$B395<>\"Subscriber\",\"-\",IF(COUNTIF('Enrollment Form'!$AS395:$AT395,\"Yes\")=2,\"N\",\"Y\")))","v":""},{"$f":"IF(OR('Enrollment Form'!$CC395=\"\",'Enrollment Form'!$CC395=\"No\"),\"-\",IF(AND('Enrollment Form'!$CC395=\"Yes\",'Enrollment Form'!$CD395=\"\"),\"N\",\"Y\"))","v":"-"},{"$f":"IF(OR('Enrollment Form'!$CE395=\"\",'Enrollment Form'!$CE395=\"No\"),\"-\",IF(AND('Enrollment Form'!$CE395=\"Yes\",'Enrollment Form'!$CF395=\"\"),\"N\",\"Y\"))","v":"-"},{"$f":"IF(OR('Enrollment Form'!$CG395=\"\",'Enrollment Form'!$CG395=\"No\"),\"-\",IF(AND('Enrollment Form'!$CG395=\"Yes\",'Enrollment Form'!$CH395=\"\"),\"N\",\"Y\"))","v":"-"},{"$f":"IF(OR('Enrollment Form'!$CG395=\"\",'Enrollment Form'!$CG395=\"No\"),\"-\",IF(AND('Enrollment Form'!$CG395=\"Yes\",'Enrollment Form'!$CI395=\"\"),\"N\",\"Y\"))","v":"-"},{"$f":"IF('Enrollment Form'!B395<>\"Subscriber\",\"-\",IF(AND('Enrollment Form'!B395=\"Subscriber\",'Enrollment Form'!C395=\"Enroll\",'Enrollment Form'!AA395=\"\"),\"N\",\"Y\"))","v":"-"},{"$f":"IF(OR('Enrollment Form'!B395=\"Subscriber\",'Enrollment Form'!B395=\"\"),\"-\",IF('Enrollment Form'!BI395=\"\",\"N\",\"Y\"))","v":"-"},{"$f":"IF('Enrollment Form'!B395<>\"Subscriber\",\"-\",IF(AND('Enrollment Form'!B395=\"Subscriber\",'Enrollment Form'!G395=\"\"),\"N\",\"Y\"))","v":"-"},{"$f":"IF('Enrollment Form'!A395=\"\",\"\",IF('Enrollment Form'!B395=\"Subscriber\",\"-\",IF(AND('Enrollment Form'!B395<>\"Subscriber\",'Enrollment Form'!G395='Enrollment Form'!H395),\"N\",\"Y\")))","v":""},{"$f":"COUNTIF(C388:AN388,\"N\")","v":0}]
[396,{"$f":"IF('Enrollment Form'!$A396<>\"\",\"Y\",\"N\")","v":"N"},{"$f":"IF(AND('Enrollment Form'!$B396=\"\",'Enrollment Form'!$C396<>\"\"),\"N\",IF($B389=\"N\",\"\",\"Y\"))","v":""},{"$f":"IF(OR($B389=\"N\",'Enrollment Form'!G396=\"\"),\"\",IF('Enrollment Form'!$B396<>\"Subscriber\",\"\",IF('Enrollment Form'!$G396='Enrollment Form'!$H396,\"Y\",\"N\")))","v":""},{"$f":"IF($B389=\"N\",\"\",IF(AND(COUNTIFS('Enrollment Form'!$H$11:$H$1000,'Enrollment Form'!$H396,'Enrollment Form'!$B$11:$B$1000,'Enrollment Form'!$B396)>1,'Enrollment Form'!$H396<>\"\"),\"N\",\"Y\"))","v":""},{"$f":"IF($B389=\"N\",\"\",IF(LEN('Enrollment Form'!$Y396)=0,\"\",IF(LEN('Enrollment Form'!$Y396)<>5,\"N\",\"Y\")))","v":""},{"$f":"IF($B389=\"N\",\"\",IF(LEN('Enrollment Form'!$AD396=0),\"\",IF(LEN('Enrollment Form'!$AD396)<>5,\"N\",\"Y\")))","v":""},{"$f":"IF($B389=\"N\",\"\",IF(LEN('Enrollment Form'!$BL396=0),\"\",IF(LEN('Enrollment Form'!$BL396)<>5,\"N\",\"Y\")))","v":""},{"$f":"IF($B389=\"N\",\"\",IF(LEN('Enrollment Form'!$AE396)=0,\"\",IF(LEN('Enrollment Form'!$AE396)<>10,\"N\",\"Y\")))","v":""},{"$f":"IF($B389=\"N\",\"\",IF(LEN('Enrollment Form'!$AF396)=0,\"\",IF(LEN('Enrollment Form'!$AF396)<>10,\"N\",\"Y\")))","v":""},{"$f":"IF('Enrollment Form'!$O396<>\"Graded\",\"-\",IF(AND('Enrollment Form'!$O396=\"Graded\",'Enrollment Form'!$AO396<>\"\"),\"Y\",\"N\"))","v":"-"},{"$f":"IF($B389=\"N\",\"\",IF(OR('Enrollment Form'!$B396<>\"Subscriber\",'Enrollment Form'!$C396=\"ROC\"),\"-\",IF(AND('Enrollment Form'!$B396=\"Subscriber\",'Enrollment Form'!$C396=\"Enroll\",'Enrollment Form'!$AJ396<>\"\"),\"Y\",\"N\")))","v":""},{"$f":"IF($B389=\"N\",\"\",IF(OR('Enrollment Form'!$B396<>\"Subscriber\",'Enrollment Form'!$C396=\"ROC\"),\"-\",IF(AND('Enrollment Form'!$B396=\"Subscriber\",'Enrollment Form'!$C396=\"Enroll\",'Enrollment Form'!$AK396<>\"\"),\"Y\",\"N\")))","v":""},{"$f":"IF($B389=\"N\",\"\",IF(OR('Enrollment Form'!$B396<>\"Subscriber\",'Enrollment Form'!$C396=\"ROC\"),\"-\",IF(AND('Enrollment Form'!$B396=\"Subscriber\",'Enrollment Form'!$C396=\"Enroll\",'Enrollment Form'!$AL396<>\"\"),\"Y\",\"N\")))","v":""},{"$f":"IF($B389=\"N\",\"\",IF(OR('Enrollment Form'!$B396<>\"Subscriber\",'Enrollment Form'!$C396=\"ROC\"),\"-\",IF(AND('Enrollment Form'!$B396=\"Subscriber\",'Enrollment Form'!$C396=\"Enroll\",'Enrollment Form'!$AM396<>\"\"),\"Y\",\"N\")))","v":""},{"$f":"IF($B389=\"N\",\"\",IF(OR('Enrollment Form'!$B396<>\"Subscriber\",'Enrollment Form'!$C396=\"ROC\"),\"-\",IF(AND('Enrollment Form'!$B396=\"Subscriber\",'Enrollment Form'!$C396=\"Enroll\",'Enrollment Form'!$AN396<>\"\"),\"Y\",\"N\")))","v":""},{"$f":"IF($B389=\"N\",\"\",IF(OR('Enrollment Form'!$B396<>\"Subscriber\",'Enrollment Form'!$C396=\"ROC\"),\"-\",IF(AND('Enrollment Form'!$B396=\"Subscriber\",'Enrollment Form'!$C396=\"Enroll\",'Enrollment Form'!$AP396<>\"\"),\"Y\",\"N\")))","v":""},{"$f":"IF($B389=\"N\",\"\",IF($Q389=\"-\",\"-\",IF(AND($Q389=\"Y\",'Enrollment Form'!$AP396=\"No\"),\"-\",IF(AND($Q389=\"Y\",'Enrollment Form'!$AP396=\"Yes\",'Enrollment Form'!$AQ396<>\"\"),\"Y\",\"N\"))))","v":""},{"$f":"IF($B389=\"N\",\"\",IF(OR('Enrollment Form'!$B396<>\"Subscriber\",'Enrollment Form'!$C396=\"ROC\"),\"-\",IF(AND('Enrollment Form'!$B396=\"Subscriber\",'Enrollment Form'!$C396=\"Enroll\",'Enrollment Form'!$CO396<>\"\"),\"Y\",\"N\")))","v":""},{"$f":"IF($B389=\"N\",\"\",IF($S389=\"-\",\"-\",IF(AND($S389=\"Y\",'Enrollment Form'!$CO396=\"No\"),\"-\",IF(AND($S389=\"Y\",'Enrollment Form'!$CO396=\"Yes\",'Enrollment Form'!$CP396<>\"\"),\"Y\",\"N\"))))","v":""},{"$f":"IF(OR('Enrollment Form'!$AV396=\"Yes\",'Enrollment Form'!$AV396=\"\"),\"-\",IF(AND('Enrollment Form'!$AV396=\"No\",ISERROR(FIND(\"HMO\",VLOOKUP('Enrollment Form'!G396,'Enrollment Form'!H$11:J$1000,3,FALSE),1))=FALSE,COUNTA('Enrollment Form'!$AW396:$AZ396)=4),\"Y\",\"N\"))","v":"-"},{"$f":"IF($B389=\"N\",\"\",IF('Enrollment Form'!$B396=\"Subscriber\",\"-\",IF(COUNTA('Enrollment Form'!$BE396,'Enrollment Form'!$BG396)=2,\"Y\",\"N\")))","v":""},{"$f":"IF($B389=\"N\",\"\",IF(OR('Enrollment Form'!$AU396=\"\",'Enrollment Form'!$AU396=\"No\"),\"-\",IF(AND('Enrollment Form'!$AU396=\"Yes\",COUNTA('Enrollment Form'!$CK396)=1),\"Y\",\"N\")))","v":""},{"$f":"IF(OR('Enrollment Form'!$CK396=\"\",'Enrollment Form'!$CK396=\"No\"),\"-\",IF(COUNTA('Enrollment Form'!$CM396:$CN396)=2,\"Y\",\"N\"))","v":"-"},{"$f":"IF($B389=\"N\",\"\",IF(COUNTIF('Enrollment Form'!$CZ396:$DO396,\"Other\")=COUNTA('Enrollment Form'!$DF396,'Enrollment Form'!$DA396,'Enrollment Form'!$DK396,'Enrollment Form'!$DP396),\"Y\",\"N\"))","v":""},{"$f":"IF($B389=\"N\",\"\",IF(OR('Enrollment Form'!B396<>\"Subscriber\",'Enrollment Form'!C396=\"ROC\",COUNTIF('Enrollment Form'!AS396:AT396,\"Yes\")>=1),\"-\",IF(AND('Enrollment Form'!C396=\"Enroll\",COUNTIF('Enrollment Form'!AS396:AT396,\"No\")=2,'Enrollment Form'!AU396=\"\"),\"N\",\"Y\")))","v":""},{"$f":"IF(OR(B389=\"N\",'Enrollment Form'!B396<>\"Subscriber\",'Enrollment Form'!C396=\"ROC\",'Enrollment Form'!O396<>\"Multiple of Salary\"),\"-\",IF(COUNTA('Enrollment Form'!T396:U396)<2,\"N\",\"Y\"))","v":"-"},{"$f":"IF(B389=\"N\",\"\",IF(OR('Enrollment Form'!C396=\"ROC\",'Enrollment Form'!B396<>\"Subscriber\",'Enrollment Form'!O396=\"Waive\",'Enrollment Form'!O396=\"\"),\"-\",IF('Enrollment Form'!P396=\"\",\"N\",\"Y\")))","v":""},{"$f":"IF($B389=\"N\",\"\",IF(AND('Enrollment Form'!$C396=\"ROC\",'Enrollment Form'!$DS396<>\"\"),\"Y\",IF(AND('Enrollment Form'!$C396=\"ROC\",'Enrollment Form'!$DS396=\"\"),\"N\",IF(AND('Enrollment Form'!$C396=\"Enroll\",'Enrollment Form'!$B396=\"Subscriber\",'Enrollment Form'!$CQ396=\"No\",'Enrollment Form'!$DS396=\"\"),\"N\",IF(AND('Enrollment Form'!$C396=\"Enroll\",'Enrollment Form'!$B396=\"Subscriber\",'Enrollment Form'!$CQ396=\"Yes\"),\"-\",\"Y\")))))","v":""},{"$f":"IF($B389=\"N\",\"\",IF(AND('Enrollment Form'!$C396=\"ROC\",'Enrollment Form'!$DT396<>\"\"),\"Y\",IF(AND('Enrollment Form'!$C396=\"ROC\",'Enrollment Form'!$DT396=\"\"),\"N\",IF(AND('Enrollment Form'!$C396=\"Enroll\",'Enrollment Form'!$B396=\"Subscriber\",'Enrollment Form'!$CQ396=\"No\",'Enrollment Form'!$DT396=\"\"),\"N\",IF(AND('Enrollment Form'!$C396=\"Enroll\",'Enrollment Form'!$B396=\"Subscriber\",'Enrollment Form'!$CQ396=\"Yes\"),\"-\",\"Y\")))))","v":""},{"$f":"IF('Enrollment Form'!AH396=\"\",\"\",IF(ISERROR(SEARCH(\".\",'Enrollment Form'!AH396,SEARCH(\"@\",'Enrollment Form'!AH396))),\"N\",\"Y\"))","v":""},{"$f":"IF(OR($B389=\"N\",'Enrollment Form'!$G396=\"\"),\"\",IF('Enrollment Form'!$B396<>\"Subscriber\",\"-\",IF(COUNTIF('Enrollment Form'!$AS396:$AT396,\"Yes\")=2,\"N\",\"Y\")))","v":""},{"$f":"IF(OR('Enrollment Form'!$CC396=\"\",'Enrollment Form'!$CC396=\"No\"),\"-\",IF(AND('Enrollment Form'!$CC396=\"Yes\",'Enrollment Form'!$CD396=\"\"),\"N\",\"Y\"))","v":"-"},{"$f":"IF(OR('Enrollment Form'!$CE396=\"\",'Enrollment Form'!$CE396=\"No\"),\"-\",IF(AND('Enrollment Form'!$CE396=\"Yes\",'Enrollment Form'!$CF396=\"\"),\"N\",\"Y\"))","v":"-"},{"$f":"IF(OR('Enrollment Form'!$CG396=\"\",'Enrollment Form'!$CG396=\"No\"),\"-\",IF(AND('Enrollment Form'!$CG396=\"Yes\",'Enrollment Form'!$CH396=\"\"),\"N\",\"Y\"))","v":"-"},{"$f":"IF(OR('Enrollment Form'!$CG396=\"\",'Enrollment Form'!$CG396=\"No\"),\"-\",IF(AND('Enrollment Form'!$CG396=\"Yes\",'Enrollment Form'!$CI396=\"\"),\"N\",\"Y\"))","v":"-"},{"$f":"IF('Enrollment Form'!B396<>\"Subscriber\",\"-\",IF(AND('Enrollment Form'!B396=\"Subscriber\",'Enrollment Form'!C396=\"Enroll\",'Enrollment Form'!AA396=\"\"),\"N\",\"Y\"))","v":"-"},{"$f":"IF(OR('Enrollment Form'!B396=\"Subscriber\",'Enrollment Form'!B396=\"\"),\"-\",IF('Enrollment Form'!BI396=\"\",\"N\",\"Y\"))","v":"-"},{"$f":"IF('Enrollment Form'!B396<>\"Subscriber\",\"-\",IF(AND('Enrollment Form'!B396=\"Subscriber\",'Enrollment Form'!G396=\"\"),\"N\",\"Y\"))","v":"-"},{"$f":"IF('Enrollment Form'!A396=\"\",\"\",IF('Enrollment Form'!B396=\"Subscriber\",\"-\",IF(AND('Enrollment Form'!B396<>\"Subscriber\",'Enrollment Form'!G396='Enrollment Form'!H396),\"N\",\"Y\")))","v":""},0]
[{"$f":"1+A389","v":397},{"$f":"IF('Enrollment Form'!$A397<>\"\",\"Y\",\"N\")","v":"N"},{"$f":"IF(AND('Enrollment Form'!$B397=\"\",'Enrollment Form'!$C397<>\"\"),\"N\",IF($B390=\"N\",\"\",\"Y\"))","v":""},{"$f":"IF(OR($B390=\"N\",'Enrollment Form'!G397=\"\"),\"\",IF('Enrollment Form'!$B397<>\"Subscriber\",\"\",IF('Enrollment Form'!$G397='Enrollment Form'!$H397,\"Y\",\"N\")))","v":""},{"$f":"IF($B390=\"N\",\"\",IF(AND(COUNTIFS('Enrollment Form'!$H$11:$H$1000,'Enrollment Form'!$H397,'Enrollment Form'!$B$11:$B$1000,'Enrollment Form'!$B397)>1,'Enrollment Form'!$H397<>\"\"),\"N\",\"Y\"))","v":""},{"$f":"IF($B390=\"N\",\"\",IF(LEN('Enrollment Form'!$Y397)=0,\"\",IF(LEN('Enrollment Form'!$Y397)<>5,\"N\",\"Y\")))","v":""},{"$f":"IF($B390=\"N\",\"\",IF(LEN('Enrollment Form'!$AD397=0),\"\",IF(LEN('Enrollment Form'!$AD397)<>5,\"N\",\"Y\")))","v":""},{"$f":"IF($B390=\"N\",\"\",IF(LEN('Enrollment Form'!$BL397=0),\"\",IF(LEN('Enrollment Form'!$BL397)<>5,\"N\",\"Y\")))","v":""},{"$f":"IF($B390=\"N\",\"\",IF(LEN('Enrollment Form'!$AE397)=0,\"\",IF(LEN('Enrollment Form'!$AE397)<>10,\"N\",\"Y\")))","v":""},{"$f":"IF($B390=\"N\",\"\",IF(LEN('Enrollment Form'!$AF397)=0,\"\",IF(LEN('Enrollment Form'!$AF397)<>10,\"N\",\"Y\")))","v":""},{"$f":"IF('Enrollment Form'!$O397<>\"Graded\",\"-\",IF(AND('Enrollment Form'!$O397=\"Graded\",'Enrollment Form'!$AO397<>\"\"),\"Y\",\"N\"))","v":"-"},{"$f":"IF($B390=\"N\",\"\",IF(OR('Enrollment Form'!$B397<>\"Subscriber\",'Enrollment Form'!$C397=\"ROC\"),\"-\",IF(AND('Enrollment Form'!$B397=\"Subscriber\",'Enrollment Form'!$C397=\"Enroll\",'Enrollment Form'!$AJ397<>\"\"),\"Y\",\"N\")))","v":""},{"$f":"IF($B390=\"N\",\"\",IF(OR('Enrollment Form'!$B397<>\"Subscriber\",'Enrollment Form'!$C397=\"ROC\"),\"-\",IF(AND('Enrollment Form'!$B397=\"Subscriber\",'Enrollment Form'!$C397=\"Enroll\",'Enrollment Form'!$AK397<>\"\"),\"Y\",\"N\")))","v":""},{"$f":"IF($B390=\"N\",\"\",IF(OR('Enrollment Form'!$B397<>\"Subscriber\",'Enrollment Form'!$C397=\"ROC\"),\"-\",IF(AND('Enrollment Form'!$B397=\"Subscriber\",'Enrollment Form'!$C397=\"Enroll\",'Enrollment Form'!$AL397<>\"\"),\"Y\",\"N\")))","v":""},{"$f":"IF($B390=\"N\",\"\",IF(OR('Enrollment Form'!$B397<>\"Subscriber\",'Enrollment Form'!$C397=\"ROC\"),\"-\",IF(AND('Enrollment Form'!$B397=\"Subscriber\",'Enrollment Form'!$C397=\"Enroll\",'Enrollment Form'!$AM397<>\"\"),\"Y\",\"N\")))","v":""},{"$f":"IF($B390=\"N\",\"\",IF(OR('Enrollment Form'!$B397<>\"Subscriber\",'Enrollment Form'!$C397=\"ROC\"),\"-\",IF(AND('Enrollment Form'!$B397=\"Subscriber\",'Enrollment Form'!$C397=\"Enroll\",'Enrollment Form'!$AN397<>\"\"),\"Y\",\"N\")))","v":""},{"$f":"IF($B390=\"N\",\"\",IF(OR('Enrollment Form'!$B397<>\"Subscriber\",'Enrollment Form'!$C397=\"ROC\"),\"-\",IF(AND('Enrollment Form'!$B397=\"Subscriber\",'Enrollment Form'!$C397=\"Enroll\",'Enrollment Form'!$AP397<>\"\"),\"Y\",\"N\")))","v":""},{"$f":"IF($B390=\"N\",\"\",IF($Q390=\"-\",\"-\",IF(AND($Q390=\"Y\",'Enrollment Form'!$AP397=\"No\"),\"-\",IF(AND($Q390=\"Y\",'Enrollment Form'!$AP397=\"Yes\",'Enrollment Form'!$AQ397<>\"\"),\"Y\",\"N\"))))","v":""},{"$f":"IF($B390=\"N\",\"\",IF(OR('Enrollment Form'!$B397<>\"Subscriber\",'Enrollment Form'!$C397=\"ROC\"),\"-\",IF(AND('Enrollment Form'!$B397=\"Subscriber\",'Enrollment Form'!$C397=\"Enroll\",'Enrollment Form'!$CO397<>\"\"),\"Y\",\"N\")))","v":""},{"$f":"IF($B390=\"N\",\"\",IF($S390=\"-\",\"-\",IF(AND($S390=\"Y\",'Enrollment Form'!$CO397=\"No\"),\"-\",IF(AND($S390=\"Y\",'Enrollment Form'!$CO397=\"Yes\",'Enrollment Form'!$CP397<>\"\"),\"Y\",\"N\"))))","v":""},{"$f":"IF(OR('Enrollment Form'!$AV397=\"Yes\",'Enrollment Form'!$AV397=\"\"),\"-\",IF(AND('Enrollment Form'!$AV397=\"No\",ISERROR(FIND(\"HMO\",VLOOKUP('Enrollment Form'!G397,'Enrollment Form'!H$11:J$1000,3,FALSE),1))=FALSE,COUNTA('Enrollment Form'!$AW397:$AZ397)=4),\"Y\",\"N\"))","v":"-"},{"$f":"IF($B390=\"N\",\"\",IF('Enrollment Form'!$B397=\"Subscriber\",\"-\",IF(COUNTA('Enrollment Form'!$BE397,'Enrollment Form'!$BG397)=2,\"Y\",\"N\")))","v":""},{"$f":"IF($B390=\"N\",\"\",IF(OR('Enrollment Form'!$AU397=\"\",'Enrollment Form'!$AU397=\"No\"),\"-\",IF(AND('Enrollment Form'!$AU397=\"Yes\",COUNTA('Enrollment Form'!$CK397)=1),\"Y\",\"N\")))","v":""},{"$f":"IF(OR('Enrollment Form'!$CK397=\"\",'Enrollment Form'!$CK397=\"No\"),\"-\",IF(COUNTA('Enrollment Form'!$CM397:$CN397)=2,\"Y\",\"N\"))","v":"-"},{"$f":"IF($B390=\"N\",\"\",IF(COUNTIF('Enrollment Form'!$CZ397:$DO397,\"Other\")=COUNTA('Enrollment Form'!$DF397,'Enrollment Form'!$DA397,'Enrollment Form'!$DK397,'Enrollment Form'!$DP397),\"Y\",\"N\"))","v":""},{"$f":"IF($B390=\"N\",\"\",IF(OR('Enrollment Form'!B397<>\"Subscriber\",'Enrollment Form'!C397=\"ROC\",COUNTIF('Enrollment Form'!AS397:AT397,\"Yes\")>=1),\"-\",IF(AND('Enrollment Form'!C397=\"Enroll\",COUNTIF('Enrollment Form'!AS397:AT397,\"No\")=2,'Enrollment Form'!AU397=\"\"),\"N\",\"Y\")))","v":""},{"$f":"IF(OR(B390=\"N\",'Enrollment Form'!B397<>\"Subscriber\",'Enrollment Form'!C397=\"ROC\",'Enrollment Form'!O397<>\"Multiple of Salary\"),\"-\",IF(COUNTA('Enrollment Form'!T397:U397)<2,\"N\",\"Y\"))","v":"-"},{"$f":"IF(B390=\"N\",\"\",IF(OR('Enrollment Form'!C397=\"ROC\",'Enrollment Form'!B397<>\"Subscriber\",'Enrollment Form'!O397=\"Waive\",'Enrollment Form'!O397=\"\"),\"-\",IF('Enrollment Form'!P397=\"\",\"N\",\"Y\")))","v":""},{"$f":"IF($B390=\"N\",\"\",IF(AND('Enrollment Form'!$C397=\"ROC\",'Enrollment Form'!$DS397<>\"\"),\"Y\",IF(AND('Enrollment Form'!$C397=\"ROC\",'Enrollment Form'!$DS397=\"\"),\"N\",IF(AND('Enrollment Form'!$C397=\"Enroll\",'Enrollment Form'!$B397=\"Subscriber\",'Enrollment Form'!$CQ397=\"No\",'Enrollment Form'!$DS397=\"\"),\"N\",IF(AND('Enrollment Form'!$C397=\"Enroll\",'Enrollment Form'!$B397=\"Subscriber\",'Enrollment Form'!$CQ397=\"Yes\"),\"-\",\"Y\")))))","v":""},{"$f":"IF($B390=\"N\",\"\",IF(AND('Enrollment Form'!$C397=\"ROC\",'Enrollment Form'!$DT397<>\"\"),\"Y\",IF(AND('Enrollment Form'!$C397=\"ROC\",'Enrollment Form'!$DT397=\"\"),\"N\",IF(AND('Enrollment Form'!$C397=\"Enroll\",'Enrollment Form'!$B397=\"Subscriber\",'Enrollment Form'!$CQ397=\"No\",'Enrollment Form'!$DT397=\"\"),\"N\",IF(AND('Enrollment Form'!$C397=\"Enroll\",'Enrollment Form'!$B397=\"Subscriber\",'Enrollment Form'!$CQ397=\"Yes\"),\"-\",\"Y\")))))","v":""},{"$f":"IF('Enrollment Form'!AH397=\"\",\"\",IF(ISERROR(SEARCH(\".\",'Enrollment Form'!AH397,SEARCH(\"@\",'Enrollment Form'!AH397))),\"N\",\"Y\"))","v":""},{"$f":"IF(OR($B390=\"N\",'Enrollment Form'!$G397=\"\"),\"\",IF('Enrollment Form'!$B397<>\"Subscriber\",\"-\",IF(COUNTIF('Enrollment Form'!$AS397:$AT397,\"Yes\")=2,\"N\",\"Y\")))","v":""},{"$f":"IF(OR('Enrollment Form'!$CC397=\"\",'Enrollment Form'!$CC397=\"No\"),\"-\",IF(AND('Enrollment Form'!$CC397=\"Yes\",'Enrollment Form'!$CD397=\"\"),\"N\",\"Y\"))","v":"-"},{"$f":"IF(OR('Enrollment Form'!$CE397=\"\",'Enrollment Form'!$CE397=\"No\"),\"-\",IF(AND('Enrollment Form'!$CE397=\"Yes\",'Enrollment Form'!$CF397=\"\"),\"N\",\"Y\"))","v":"-"},{"$f":"IF(OR('Enrollment Form'!$CG397=\"\",'Enrollment Form'!$CG397=\"No\"),\"-\",IF(AND('Enrollment Form'!$CG397=\"Yes\",'Enrollment Form'!$CH397=\"\"),\"N\",\"Y\"))","v":"-"},{"$f":"IF(OR('Enrollment Form'!$CG397=\"\",'Enrollment Form'!$CG397=\"No\"),\"-\",IF(AND('Enrollment Form'!$CG397=\"Yes\",'Enrollment Form'!$CI397=\"\"),\"N\",\"Y\"))","v":"-"},{"$f":"IF('Enrollment Form'!B397<>\"Subscriber\",\"-\",IF(AND('Enrollment Form'!B397=\"Subscriber\",'Enrollment Form'!C397=\"Enroll\",'Enrollment Form'!AA397=\"\"),\"N\",\"Y\"))","v":"-"},{"$f":"IF(OR('Enrollment Form'!B397=\"Subscriber\",'Enrollment Form'!B397=\"\"),\"-\",IF('Enrollment Form'!BI397=\"\",\"N\",\"Y\"))","v":"-"},{"$f":"IF('Enrollment Form'!B397<>\"Subscriber\",\"-\",IF(AND('Enrollment Form'!B397=\"Subscriber\",'Enrollment Form'!G397=\"\"),\"N\",\"Y\"))","v":"-"},{"$f":"IF('Enrollment Form'!A397=\"\",\"\",IF('Enrollment Form'!B397=\"Subscriber\",\"-\",IF(AND('Enrollment Form'!B397<>\"Subscriber\",'Enrollment Form'!G397='Enrollment Form'!H397),\"N\",\"Y\")))","v":""},0]
[398,{"$f":"IF('Enrollment Form'!$A398<>\"\",\"Y\",\"N\")","v":"N"},{"$f":"IF(AND('Enrollment Form'!$B398=\"\",'Enrollment Form'!$C398<>\"\"),\"N\",IF($B391=\"N\",\"\",\"Y\"))","v":""},{"$f":"IF(OR($B391=\"N\",'Enrollment Form'!G398=\"\"),\"\",IF('Enrollment Form'!$B398<>\"Subscriber\",\"\",IF('Enrollment Form'!$G398='Enrollment Form'!$H398,\"Y\",\"N\")))","v":""},{"$f":"IF($B391=\"N\",\"\",IF(AND(COUNTIFS('Enrollment Form'!$H$11:$H$1000,'Enrollment Form'!$H398,'Enrollment Form'!$B$11:$B$1000,'Enrollment Form'!$B398)>1,'Enrollment Form'!$H398<>\"\"),\"N\",\"Y\"))","v":""},{"$f":"IF($B391=\"N\",\"\",IF(LEN('Enrollment Form'!$Y398)=0,\"\",IF(LEN('Enrollment Form'!$Y398)<>5,\"N\",\"Y\")))","v":""},{"$f":"IF($B391=\"N\",\"\",IF(LEN('Enrollment Form'!$AD398=0),\"\",IF(LEN('Enrollment Form'!$AD398)<>5,\"N\",\"Y\")))","v":""},{"$f":"IF($B391=\"N\",\"\",IF(LEN('Enrollment Form'!$BL398=0),\"\",IF(LEN('Enrollment Form'!$BL398)<>5,\"N\",\"Y\")))","v":""},{"$f":"IF($B391=\"N\",\"\",IF(LEN('Enrollment Form'!$AE398)=0,\"\",IF(LEN('Enrollment Form'!$AE398)<>10,\"N\",\"Y\")))","v":""},{"$f":"IF($B391=\"N\",\"\",IF(LEN('Enrollment Form'!$AF398)=0,\"\",IF(LEN('Enrollment Form'!$AF398)<>10,\"N\",\"Y\")))","v":""},{"$f":"IF('Enrollment Form'!$O398<>\"Graded\",\"-\",IF(AND('Enrollment Form'!$O398=\"Graded\",'Enrollment Form'!$AO398<>\"\"),\"Y\",\"N\"))","v":"-"},{"$f":"IF($B391=\"N\",\"\",IF(OR('Enrollment Form'!$B398<>\"Subscriber\",'Enrollment Form'!$C398=\"ROC\"),\"-\",IF(AND('Enrollment Form'!$B398=\"Subscriber\",'Enrollment Form'!$C398=\"Enroll\",'Enrollment Form'!$AJ398<>\"\"),\"Y\",\"N\")))","v":""},{"$f":"IF($B391=\"N\",\"\",IF(OR('Enrollment Form'!$B398<>\"Subscriber\",'Enrollment Form'!$C398=\"ROC\"),\"-\",IF(AND('Enrollment Form'!$B398=\"Subscriber\",'Enrollment Form'!$C398=\"Enroll\",'Enrollment Form'!$AK398<>\"\"),\"Y\",\"N\")))","v":""},{"$f":"IF($B391=\"N\",\"\",IF(OR('Enrollment Form'!$B398<>\"Subscriber\",'Enrollment Form'!$C398=\"ROC\"),\"-\",IF(AND('Enrollment Form'!$B398=\"Subscriber\",'Enrollment Form'!$C398=\"Enroll\",'Enrollment Form'!$AL398<>\"\"),\"Y\",\"N\")))","v":""},{"$f":"IF($B391=\"N\",\"\",IF(OR('Enrollment Form'!$B398<>\"Subscriber\",'Enrollment Form'!$C398=\"ROC\"),\"-\",IF(AND('Enrollment Form'!$B398=\"Subscriber\",'Enrollment Form'!$C398=\"Enroll\",'Enrollment Form'!$AM398<>\"\"),\"Y\",\"N\")))","v":""},{"$f":"IF($B391=\"N\",\"\",IF(OR('Enrollment Form'!$B398<>\"Subscriber\",'Enrollment Form'!$C398=\"ROC\"),\"-\",IF(AND('Enrollment Form'!$B398=\"Subscriber\",'Enrollment Form'!$C398=\"Enroll\",'Enrollment Form'!$AN398<>\"\"),\"Y\",\"N\")))","v":""},{"$f":"IF($B391=\"N\",\"\",IF(OR('Enrollment Form'!$B398<>\"Subscriber\",'Enrollment Form'!$C398=\"ROC\"),\"-\",IF(AND('Enrollment Form'!$B398=\"Subscriber\",'Enrollment Form'!$C398=\"Enroll\",'Enrollment Form'!$AP398<>\"\"),\"Y\",\"N\")))","v":""},{"$f":"IF($B391=\"N\",\"\",IF($Q391=\"-\",\"-\",IF(AND($Q391=\"Y\",'Enrollment Form'!$AP398=\"No\"),\"-\",IF(AND($Q391=\"Y\",'Enrollment Form'!$AP398=\"Yes\",'Enrollment Form'!$AQ398<>\"\"),\"Y\",\"N\"))))","v":""},{"$f":"IF($B391=\"N\",\"\",IF(OR('Enrollment Form'!$B398<>\"Subscriber\",'Enrollment Form'!$C398=\"ROC\"),\"-\",IF(AND('Enrollment Form'!$B398=\"Subscriber\",'Enrollment Form'!$C398=\"Enroll\",'Enrollment Form'!$CO398<>\"\"),\"Y\",\"N\")))","v":""},{"$f":"IF($B391=\"N\",\"\",IF($S391=\"-\",\"-\",IF(AND($S391=\"Y\",'Enrollment Form'!$CO398=\"No\"),\"-\",IF(AND($S391=\"Y\",'Enrollment Form'!$CO398=\"Yes\",'Enrollment Form'!$CP398<>\"\"),\"Y\",\"N\"))))","v":""},{"$f":"IF(OR('Enrollment Form'!$AV398=\"Yes\",'Enrollment Form'!$AV398=\"\"),\"-\",IF(AND('Enrollment Form'!$AV398=\"No\",ISERROR(FIND(\"HMO\",VLOOKUP('Enrollment Form'!G398,'Enrollment Form'!H$11:J$1000,3,FALSE),1))=FALSE,COUNTA('Enrollment Form'!$AW398:$AZ398)=4),\"Y\",\"N\"))","v":"-"},{"$f":"IF($B391=\"N\",\"\",IF('Enrollment Form'!$B398=\"Subscriber\",\"-\",IF(COUNTA('Enrollment Form'!$BE398,'Enrollment Form'!$BG398)=2,\"Y\",\"N\")))","v":""},{"$f":"IF($B391=\"N\",\"\",IF(OR('Enrollment Form'!$AU398=\"\",'Enrollment Form'!$AU398=\"No\"),\"-\",IF(AND('Enrollment Form'!$AU398=\"Yes\",COUNTA('Enrollment Form'!$CK398)=1),\"Y\",\"N\")))","v":""},{"$f":"IF(OR('Enrollment Form'!$CK398=\"\",'Enrollment Form'!$CK398=\"No\"),\"-\",IF(COUNTA('Enrollment Form'!$CM398:$CN398)=2,\"Y\",\"N\"))","v":"-"},{"$f":"IF($B391=\"N\",\"\",IF(COUNTIF('Enrollment Form'!$CZ398:$DO398,\"Other\")=COUNTA('Enrollment Form'!$DF398,'Enrollment Form'!$DA398,'Enrollment Form'!$DK398,'Enrollment Form'!$DP398),\"Y\",\"N\"))","v":""},{"$f":"IF($B391=\"N\",\"\",IF(OR('Enrollment Form'!B398<>\"Subscriber\",'Enrollment Form'!C398=\"ROC\",COUNTIF('Enrollment Form'!AS398:AT398,\"Yes\")>=1),\"-\",IF(AND('Enrollment Form'!C398=\"Enroll\",COUNTIF('Enrollment Form'!AS398:AT398,\"No\")=2,'Enrollment Form'!AU398=\"\"),\"N\",\"Y\")))","v":""},{"$f":"IF(OR(B391=\"N\",'Enrollment Form'!B398<>\"Subscriber\",'Enrollment Form'!C398=\"ROC\",'Enrollment Form'!O398<>\"Multiple of Salary\"),\"-\",IF(COUNTA('Enrollment Form'!T398:U398)<2,\"N\",\"Y\"))","v":"-"},{"$f":"IF(B391=\"N\",\"\",IF(OR('Enrollment Form'!C398=\"ROC\",'Enrollment Form'!B398<>\"Subscriber\",'Enrollment Form'!O398=\"Waive\",'Enrollment Form'!O398=\"\"),\"-\",IF('Enrollment Form'!P398=\"\",\"N\",\"Y\")))","v":""},{"$f":"IF($B391=\"N\",\"\",IF(AND('Enrollment Form'!$C398=\"ROC\",'Enrollment Form'!$DS398<>\"\"),\"Y\",IF(AND('Enrollment Form'!$C398=\"ROC\",'Enrollment Form'!$DS398=\"\"),\"N\",IF(AND('Enrollment Form'!$C398=\"Enroll\",'Enrollment Form'!$B398=\"Subscriber\",'Enrollment Form'!$CQ398=\"No\",'Enrollment Form'!$DS398=\"\"),\"N\",IF(AND('Enrollment Form'!$C398=\"Enroll\",'Enrollment Form'!$B398=\"Subscriber\",'Enrollment Form'!$CQ398=\"Yes\"),\"-\",\"Y\")))))","v":""},{"$f":"IF($B391=\"N\",\"\",IF(AND('Enrollment Form'!$C398=\"ROC\",'Enrollment Form'!$DT398<>\"\"),\"Y\",IF(AND('Enrollment Form'!$C398=\"ROC\",'Enrollment Form'!$DT398=\"\"),\"N\",IF(AND('Enrollment Form'!$C398=\"Enroll\",'Enrollment Form'!$B398=\"Subscriber\",'Enrollment Form'!$CQ398=\"No\",'Enrollment Form'!$DT398=\"\"),\"N\",IF(AND('Enrollment Form'!$C398=\"Enroll\",'Enrollment Form'!$B398=\"Subscriber\",'Enrollment Form'!$CQ398=\"Yes\"),\"-\",\"Y\")))))","v":""},{"$f":"IF('Enrollment Form'!AH398=\"\",\"\",IF(ISERROR(SEARCH(\".\",'Enrollment Form'!AH398,SEARCH(\"@\",'Enrollment Form'!AH398))),\"N\",\"Y\"))","v":""},{"$f":"IF(OR($B391=\"N\",'Enrollment Form'!$G398=\"\"),\"\",IF('Enrollment Form'!$B398<>\"Subscriber\",\"-\",IF(COUNTIF('Enrollment Form'!$AS398:$AT398,\"Yes\")=2,\"N\",\"Y\")))","v":""},{"$f":"IF(OR('Enrollment Form'!$CC398=\"\",'Enrollment Form'!$CC398=\"No\"),\"-\",IF(AND('Enrollment Form'!$CC398=\"Yes\",'Enrollment Form'!$CD398=\"\"),\"N\",\"Y\"))","v":"-"},{"$f":"IF(OR('Enrollment Form'!$CE398=\"\",'Enrollment Form'!$CE398=\"No\"),\"-\",IF(AND('Enrollment Form'!$CE398=\"Yes\",'Enrollment Form'!$CF398=\"\"),\"N\",\"Y\"))","v":"-"},{"$f":"IF(OR('Enrollment Form'!$CG398=\"\",'Enrollment Form'!$CG398=\"No\"),\"-\",IF(AND('Enrollment Form'!$CG398=\"Yes\",'Enrollment Form'!$CH398=\"\"),\"N\",\"Y\"))","v":"-"},{"$f":"IF(OR('Enrollment Form'!$CG398=\"\",'Enrollment Form'!$CG398=\"No\"),\"-\",IF(AND('Enrollment Form'!$CG398=\"Yes\",'Enrollment Form'!$CI398=\"\"),\"N\",\"Y\"))","v":"-"},{"$f":"IF('Enrollment Form'!B398<>\"Subscriber\",\"-\",IF(AND('Enrollment Form'!B398=\"Subscriber\",'Enrollment Form'!C398=\"Enroll\",'Enrollment Form'!AA398=\"\"),\"N\",\"Y\"))","v":"-"},{"$f":"IF(OR('Enrollment Form'!B398=\"Subscriber\",'Enrollment Form'!B398=\"\"),\"-\",IF('Enrollment Form'!BI398=\"\",\"N\",\"Y\"))","v":"-"},{"$f":"IF('Enrollment Form'!B398<>\"Subscriber\",\"-\",IF(AND('Enrollment Form'!B398=\"Subscriber\",'Enrollment Form'!G398=\"\"),\"N\",\"Y\"))","v":"-"},{"$f":"IF('Enrollment Form'!A398=\"\",\"\",IF('Enrollment Form'!B398=\"Subscriber\",\"-\",IF(AND('Enrollment Form'!B398<>\"Subscriber\",'Enrollment Form'!G398='Enrollment Form'!H398),\"N\",\"Y\")))","v":""},0]
[399,{"$f":"IF('Enrollment Form'!$A399<>\"\",\"Y\",\"N\")","v":"N"},{"$f":"IF(AND('Enrollment Form'!$B399=\"\",'Enrollment Form'!$C399<>\"\"),\"N\",IF($B392=\"N\",\"\",\"Y\"))","v":""},{"$f":"IF(OR($B392=\"N\",'Enrollment Form'!G399=\"\"),\"\",IF('Enrollment Form'!$B399<>\"Subscriber\",\"\",IF('Enrollment Form'!$G399='Enrollment Form'!$H399,\"Y\",\"N\")))","v":""},{"$f":"IF($B392=\"N\",\"\",IF(AND(COUNTIFS('Enrollment Form'!$H$11:$H$1000,'Enrollment Form'!$H399,'Enrollment Form'!$B$11:$B$1000,'Enrollment Form'!$B399)>1,'Enrollment Form'!$H399<>\"\"),\"N\",\"Y\"))","v":""},{"$f":"IF($B392=\"N\",\"\",IF(LEN('Enrollment Form'!$Y399)=0,\"\",IF(LEN('Enrollment Form'!$Y399)<>5,\"N\",\"Y\")))","v":""},{"$f":"IF($B392=\"N\",\"\",IF(LEN('Enrollment Form'!$AD399=0),\"\",IF(LEN('Enrollment Form'!$AD399)<>5,\"N\",\"Y\")))","v":""},{"$f":"IF($B392=\"N\",\"\",IF(LEN('Enrollment Form'!$BL399=0),\"\",IF(LEN('Enrollment Form'!$BL399)<>5,\"N\",\"Y\")))","v":""},{"$f":"IF($B392=\"N\",\"\",IF(LEN('Enrollment Form'!$AE399)=0,\"\",IF(LEN('Enrollment Form'!$AE399)<>10,\"N\",\"Y\")))","v":""},{"$f":"IF($B392=\"N\",\"\",IF(LEN('Enrollment Form'!$AF399)=0,\"\",IF(LEN('Enrollment Form'!$AF399)<>10,\"N\",\"Y\")))","v":""},{"$f":"IF('Enrollment Form'!$O399<>\"Graded\",\"-\",IF(AND('Enrollment Form'!$O399=\"Graded\",'Enrollment Form'!$AO399<>\"\"),\"Y\",\"N\"))","v":"-"},{"$f":"IF($B392=\"N\",\"\",IF(OR('Enrollment Form'!$B399<>\"Subscriber\",'Enrollment Form'!$C399=\"ROC\"),\"-\",IF(AND('Enrollment Form'!$B399=\"Subscriber\",'Enrollment Form'!$C399=\"Enroll\",'Enrollment Form'!$AJ399<>\"\"),\"Y\",\"N\")))","v":""},{"$f":"IF($B392=\"N\",\"\",IF(OR('Enrollment Form'!$B399<>\"Subscriber\",'Enrollment Form'!$C399=\"ROC\"),\"-\",IF(AND('Enrollment Form'!$B399=\"Subscriber\",'Enrollment Form'!$C399=\"Enroll\",'Enrollment Form'!$AK399<>\"\"),\"Y\",\"N\")))","v":""},{"$f":"IF($B392=\"N\",\"\",IF(OR('Enrollment Form'!$B399<>\"Subscriber\",'Enrollment Form'!$C399=\"ROC\"),\"-\",IF(AND('Enrollment Form'!$B399=\"Subscriber\",'Enrollment Form'!$C399=\"Enroll\",'Enrollment Form'!$AL399<>\"\"),\"Y\",\"N\")))","v":""},{"$f":"IF($B392=\"N\",\"\",IF(OR('Enrollment Form'!$B399<>\"Subscriber\",'Enrollment Form'!$C399=\"ROC\"),\"-\",IF(AND('Enrollment Form'!$B399=\"Subscriber\",'Enrollment Form'!$C399=\"Enroll\",'Enrollment Form'!$AM399<>\"\"),\"Y\",\"N\")))","v":""},{"$f":"IF($B392=\"N\",\"\",IF(OR('Enrollment Form'!$B399<>\"Subscriber\",'Enrollment Form'!$C399=\"ROC\"),\"-\",IF(AND('Enrollment Form'!$B399=\"Subscriber\",'Enrollment Form'!$C399=\"Enroll\",'Enrollment Form'!$AN399<>\"\"),\"Y\",\"N\")))","v":""},{"$f":"IF($B392=\"N\",\"\",IF(OR('Enrollment Form'!$B399<>\"Subscriber\",'Enrollment Form'!$C399=\"ROC\"),\"-\",IF(AND('Enrollment Form'!$B399=\"Subscriber\",'Enrollment Form'!$C399=\"Enroll\",'Enrollment Form'!$AP399<>\"\"),\"Y\",\"N\")))","v":""},{"$f":"IF($B392=\"N\",\"\",IF($Q392=\"-\",\"-\",IF(AND($Q392=\"Y\",'Enrollment Form'!$AP399=\"No\"),\"-\",IF(AND($Q392=\"Y\",'Enrollment Form'!$AP399=\"Yes\",'Enrollment Form'!$AQ399<>\"\"),\"Y\",\"N\"))))","v":""},{"$f":"IF($B392=\"N\",\"\",IF(OR('Enrollment Form'!$B399<>\"Subscriber\",'Enrollment Form'!$C399=\"ROC\"),\"-\",IF(AND('Enrollment Form'!$B399=\"Subscriber\",'Enrollment Form'!$C399=\"Enroll\",'Enrollment Form'!$CO399<>\"\"),\"Y\",\"N\")))","v":""},{"$f":"IF($B392=\"N\",\"\",IF($S392=\"-\",\"-\",IF(AND($S392=\"Y\",'Enrollment Form'!$CO399=\"No\"),\"-\",IF(AND($S392=\"Y\",'Enrollment Form'!$CO399=\"Yes\",'Enrollment Form'!$CP399<>\"\"),\"Y\",\"N\"))))","v":""},{"$f":"IF(OR('Enrollment Form'!$AV399=\"Yes\",'Enrollment Form'!$AV399=\"\"),\"-\",IF(AND('Enrollment Form'!$AV399=\"No\",ISERROR(FIND(\"HMO\",VLOOKUP('Enrollment Form'!G399,'Enrollment Form'!H$11:J$1000,3,FALSE),1))=FALSE,COUNTA('Enrollment Form'!$AW399:$AZ399)=4),\"Y\",\"N\"))","v":"-"},{"$f":"IF($B392=\"N\",\"\",IF('Enrollment Form'!$B399=\"Subscriber\",\"-\",IF(COUNTA('Enrollment Form'!$BE399,'Enrollment Form'!$BG399)=2,\"Y\",\"N\")))","v":""},{"$f":"IF($B392=\"N\",\"\",IF(OR('Enrollment Form'!$AU399=\"\",'Enrollment Form'!$AU399=\"No\"),\"-\",IF(AND('Enrollment Form'!$AU399=\"Yes\",COUNTA('Enrollment Form'!$CK399)=1),\"Y\",\"N\")))","v":""},{"$f":"IF(OR('Enrollment Form'!$CK399=\"\",'Enrollment Form'!$CK399=\"No\"),\"-\",IF(COUNTA('Enrollment Form'!$CM399:$CN399)=2,\"Y\",\"N\"))","v":"-"},{"$f":"IF($B392=\"N\",\"\",IF(COUNTIF('Enrollment Form'!$CZ399:$DO399,\"Other\")=COUNTA('Enrollment Form'!$DF399,'Enrollment Form'!$DA399,'Enrollment Form'!$DK399,'Enrollment Form'!$DP399),\"Y\",\"N\"))","v":""},{"$f":"IF($B392=\"N\",\"\",IF(OR('Enrollment Form'!B399<>\"Subscriber\",'Enrollment Form'!C399=\"ROC\",COUNTIF('Enrollment Form'!AS399:AT399,\"Yes\")>=1),\"-\",IF(AND('Enrollment Form'!C399=\"Enroll\",COUNTIF('Enrollment Form'!AS399:AT399,\"No\")=2,'Enrollment Form'!AU399=\"\"),\"N\",\"Y\")))","v":""},{"$f":"IF(OR(B392=\"N\",'Enrollment Form'!B399<>\"Subscriber\",'Enrollment Form'!C399=\"ROC\",'Enrollment Form'!O399<>\"Multiple of Salary\"),\"-\",IF(COUNTA('Enrollment Form'!T399:U399)<2,\"N\",\"Y\"))","v":"-"},{"$f":"IF(B392=\"N\",\"\",IF(OR('Enrollment Form'!C399=\"ROC\",'Enrollment Form'!B399<>\"Subscriber\",'Enrollment Form'!O399=\"Waive\",'Enrollment Form'!O399=\"\"),\"-\",IF('Enrollment Form'!P399=\"\",\"N\",\"Y\")))","v":""},{"$f":"IF($B392=\"N\",\"\",IF(AND('Enrollment Form'!$C399=\"ROC\",'Enrollment Form'!$DS399<>\"\"),\"Y\",IF(AND('Enrollment Form'!$C399=\"ROC\",'Enrollment Form'!$DS399=\"\"),\"N\",IF(AND('Enrollment Form'!$C399=\"Enroll\",'Enrollment Form'!$B399=\"Subscriber\",'Enrollment Form'!$CQ399=\"No\",'Enrollment Form'!$DS399=\"\"),\"N\",IF(AND('Enrollment Form'!$C399=\"Enroll\",'Enrollment Form'!$B399=\"Subscriber\",'Enrollment Form'!$CQ399=\"Yes\"),\"-\",\"Y\")))))","v":""},{"$f":"IF($B392=\"N\",\"\",IF(AND('Enrollment Form'!$C399=\"ROC\",'Enrollment Form'!$DT399<>\"\"),\"Y\",IF(AND('Enrollment Form'!$C399=\"ROC\",'Enrollment Form'!$DT399=\"\"),\"N\",IF(AND('Enrollment Form'!$C399=\"Enroll\",'Enrollment Form'!$B399=\"Subscriber\",'Enrollment Form'!$CQ399=\"No\",'Enrollment Form'!$DT399=\"\"),\"N\",IF(AND('Enrollment Form'!$C399=\"Enroll\",'Enrollment Form'!$B399=\"Subscriber\",'Enrollment Form'!$CQ399=\"Yes\"),\"-\",\"Y\")))))","v":""},{"$f":"IF('Enrollment Form'!AH399=\"\",\"\",IF(ISERROR(SEARCH(\".\",'Enrollment Form'!AH399,SEARCH(\"@\",'Enrollment Form'!AH399))),\"N\",\"Y\"))","v":""},{"$f":"IF(OR($B392=\"N\",'Enrollment Form'!$G399=\"\"),\"\",IF('Enrollment Form'!$B399<>\"Subscriber\",\"-\",IF(COUNTIF('Enrollment Form'!$AS399:$AT399,\"Yes\")=2,\"N\",\"Y\")))","v":""},{"$f":"IF(OR('Enrollment Form'!$CC399=\"\",'Enrollment Form'!$CC399=\"No\"),\"-\",IF(AND('Enrollment Form'!$CC399=\"Yes\",'Enrollment Form'!$CD399=\"\"),\"N\",\"Y\"))","v":"-"},{"$f":"IF(OR('Enrollment Form'!$CE399=\"\",'Enrollment Form'!$CE399=\"No\"),\"-\",IF(AND('Enrollment Form'!$CE399=\"Yes\",'Enrollment Form'!$CF399=\"\"),\"N\",\"Y\"))","v":"-"},{"$f":"IF(OR('Enrollment Form'!$CG399=\"\",'Enrollment Form'!$CG399=\"No\"),\"-\",IF(AND('Enrollment Form'!$CG399=\"Yes\",'Enrollment Form'!$CH399=\"\"),\"N\",\"Y\"))","v":"-"},{"$f":"IF(OR('Enrollment Form'!$CG399=\"\",'Enrollment Form'!$CG399=\"No\"),\"-\",IF(AND('Enrollment Form'!$CG399=\"Yes\",'Enrollment Form'!$CI399=\"\"),\"N\",\"Y\"))","v":"-"},{"$f":"IF('Enrollment Form'!B399<>\"Subscriber\",\"-\",IF(AND('Enrollment Form'!B399=\"Subscriber\",'Enrollment Form'!C399=\"Enroll\",'Enrollment Form'!AA399=\"\"),\"N\",\"Y\"))","v":"-"},{"$f":"IF(OR('Enrollment Form'!B399=\"Subscriber\",'Enrollment Form'!B399=\"\"),\"-\",IF('Enrollment Form'!BI399=\"\",\"N\",\"Y\"))","v":"-"},{"$f":"IF('Enrollment Form'!B399<>\"Subscriber\",\"-\",IF(AND('Enrollment Form'!B399=\"Subscriber\",'Enrollment Form'!G399=\"\"),\"N\",\"Y\"))","v":"-"},{"$f":"IF('Enrollment Form'!A399=\"\",\"\",IF('Enrollment Form'!B399=\"Subscriber\",\"-\",IF(AND('Enrollment Form'!B399<>\"Subscriber\",'Enrollment Form'!G399='Enrollment Form'!H399),\"N\",\"Y\")))","v":""},0]
[400,{"$f":"IF('Enrollment Form'!$A400<>\"\",\"Y\",\"N\")","v":"N"},{"$f":"IF(AND('Enrollment Form'!$B400=\"\",'Enrollment Form'!$C400<>\"\"),\"N\",IF($B393=\"N\",\"\",\"Y\"))","v":""},{"$f":"IF(OR($B393=\"N\",'Enrollment Form'!G400=\"\"),\"\",IF('Enrollment Form'!$B400<>\"Subscriber\",\"\",IF('Enrollment Form'!$G400='Enrollment Form'!$H400,\"Y\",\"N\")))","v":""},{"$f":"IF($B393=\"N\",\"\",IF(AND(COUNTIFS('Enrollment Form'!$H$11:$H$1000,'Enrollment Form'!$H400,'Enrollment Form'!$B$11:$B$1000,'Enrollment Form'!$B400)>1,'Enrollment Form'!$H400<>\"\"),\"N\",\"Y\"))","v":""},{"$f":"IF($B393=\"N\",\"\",IF(LEN('Enrollment Form'!$Y400)=0,\"\",IF(LEN('Enrollment Form'!$Y400)<>5,\"N\",\"Y\")))","v":""},{"$f":"IF($B393=\"N\",\"\",IF(LEN('Enrollment Form'!$AD400=0),\"\",IF(LEN('Enrollment Form'!$AD400)<>5,\"N\",\"Y\")))","v":""},{"$f":"IF($B393=\"N\",\"\",IF(LEN('Enrollment Form'!$BL400=0),\"\",IF(LEN('Enrollment Form'!$BL400)<>5,\"N\",\"Y\")))","v":""},{"$f":"IF($B393=\"N\",\"\",IF(LEN('Enrollment Form'!$AE400)=0,\"\",IF(LEN('Enrollment Form'!$AE400)<>10,\"N\",\"Y\")))","v":""},{"$f":"IF($B393=\"N\",\"\",IF(LEN('Enrollment Form'!$AF400)=0,\"\",IF(LEN('Enrollment Form'!$AF400)<>10,\"N\",\"Y\")))","v":""},{"$f":"IF('Enrollment Form'!$O400<>\"Graded\",\"-\",IF(AND('Enrollment Form'!$O400=\"Graded\",'Enrollment Form'!$AO400<>\"\"),\"Y\",\"N\"))","v":"-"},{"$f":"IF($B393=\"N\",\"\",IF(OR('Enrollment Form'!$B400<>\"Subscriber\",'Enrollment Form'!$C400=\"ROC\"),\"-\",IF(AND('Enrollment Form'!$B400=\"Subscriber\",'Enrollment Form'!$C400=\"Enroll\",'Enrollment Form'!$AJ400<>\"\"),\"Y\",\"N\")))","v":""},{"$f":"IF($B393=\"N\",\"\",IF(OR('Enrollment Form'!$B400<>\"Subscriber\",'Enrollment Form'!$C400=\"ROC\"),\"-\",IF(AND('Enrollment Form'!$B400=\"Subscriber\",'Enrollment Form'!$C400=\"Enroll\",'Enrollment Form'!$AK400<>\"\"),\"Y\",\"N\")))","v":""},{"$f":"IF($B393=\"N\",\"\",IF(OR('Enrollment Form'!$B400<>\"Subscriber\",'Enrollment Form'!$C400=\"ROC\"),\"-\",IF(AND('Enrollment Form'!$B400=\"Subscriber\",'Enrollment Form'!$C400=\"Enroll\",'Enrollment Form'!$AL400<>\"\"),\"Y\",\"N\")))","v":""},{"$f":"IF($B393=\"N\",\"\",IF(OR('Enrollment Form'!$B400<>\"Subscriber\",'Enrollment Form'!$C400=\"ROC\"),\"-\",IF(AND('Enrollment Form'!$B400=\"Subscriber\",'Enrollment Form'!$C400=\"Enroll\",'Enrollment Form'!$AM400<>\"\"),\"Y\",\"N\")))","v":""},{"$f":"IF($B393=\"N\",\"\",IF(OR('Enrollment Form'!$B400<>\"Subscriber\",'Enrollment Form'!$C400=\"ROC\"),\"-\",IF(AND('Enrollment Form'!$B400=\"Subscriber\",'Enrollment Form'!$C400=\"Enroll\",'Enrollment Form'!$AN400<>\"\"),\"Y\",\"N\")))","v":""},{"$f":"IF($B393=\"N\",\"\",IF(OR('Enrollment Form'!$B400<>\"Subscriber\",'Enrollment Form'!$C400=\"ROC\"),\"-\",IF(AND('Enrollment Form'!$B400=\"Subscriber\",'Enrollment Form'!$C400=\"Enroll\",'Enrollment Form'!$AP400<>\"\"),\"Y\",\"N\")))","v":""},{"$f":"IF($B393=\"N\",\"\",IF($Q393=\"-\",\"-\",IF(AND($Q393=\"Y\",'Enrollment Form'!$AP400=\"No\"),\"-\",IF(AND($Q393=\"Y\",'Enrollment Form'!$AP400=\"Yes\",'Enrollment Form'!$AQ400<>\"\"),\"Y\",\"N\"))))","v":""},{"$f":"IF($B393=\"N\",\"\",IF(OR('Enrollment Form'!$B400<>\"Subscriber\",'Enrollment Form'!$C400=\"ROC\"),\"-\",IF(AND('Enrollment Form'!$B400=\"Subscriber\",'Enrollment Form'!$C400=\"Enroll\",'Enrollment Form'!$CO400<>\"\"),\"Y\",\"N\")))","v":""},{"$f":"IF($B393=\"N\",\"\",IF($S393=\"-\",\"-\",IF(AND($S393=\"Y\",'Enrollment Form'!$CO400=\"No\"),\"-\",IF(AND($S393=\"Y\",'Enrollment Form'!$CO400=\"Yes\",'Enrollment Form'!$CP400<>\"\"),\"Y\",\"N\"))))","v":""},{"$f":"IF(OR('Enrollment Form'!$AV400=\"Yes\",'Enrollment Form'!$AV400=\"\"),\"-\",IF(AND('Enrollment Form'!$AV400=\"No\",ISERROR(FIND(\"HMO\",VLOOKUP('Enrollment Form'!G400,'Enrollment Form'!H$11:J$1000,3,FALSE),1))=FALSE,COUNTA('Enrollment Form'!$AW400:$AZ400)=4),\"Y\",\"N\"))","v":"-"},{"$f":"IF($B393=\"N\",\"\",IF('Enrollment Form'!$B400=\"Subscriber\",\"-\",IF(COUNTA('Enrollment Form'!$BE400,'Enrollment Form'!$BG400)=2,\"Y\",\"N\")))","v":""},{"$f":"IF($B393=\"N\",\"\",IF(OR('Enrollment Form'!$AU400=\"\",'Enrollment Form'!$AU400=\"No\"),\"-\",IF(AND('Enrollment Form'!$AU400=\"Yes\",COUNTA('Enrollment Form'!$CK400)=1),\"Y\",\"N\")))","v":""},{"$f":"IF(OR('Enrollment Form'!$CK400=\"\",'Enrollment Form'!$CK400=\"No\"),\"-\",IF(COUNTA('Enrollment Form'!$CM400:$CN400)=2,\"Y\",\"N\"))","v":"-"},{"$f":"IF($B393=\"N\",\"\",IF(COUNTIF('Enrollment Form'!$CZ400:$DO400,\"Other\")=COUNTA('Enrollment Form'!$DF400,'Enrollment Form'!$DA400,'Enrollment Form'!$DK400,'Enrollment Form'!$DP400),\"Y\",\"N\"))","v":""},{"$f":"IF($B393=\"N\",\"\",IF(OR('Enrollment Form'!B400<>\"Subscriber\",'Enrollment Form'!C400=\"ROC\",COUNTIF('Enrollment Form'!AS400:AT400,\"Yes\")>=1),\"-\",IF(AND('Enrollment Form'!C400=\"Enroll\",COUNTIF('Enrollment Form'!AS400:AT400,\"No\")=2,'Enrollment Form'!AU400=\"\"),\"N\",\"Y\")))","v":""},{"$f":"IF(OR(B393=\"N\",'Enrollment Form'!B400<>\"Subscriber\",'Enrollment Form'!C400=\"ROC\",'Enrollment Form'!O400<>\"Multiple of Salary\"),\"-\",IF(COUNTA('Enrollment Form'!T400:U400)<2,\"N\",\"Y\"))","v":"-"},{"$f":"IF(B393=\"N\",\"\",IF(OR('Enrollment Form'!C400=\"ROC\",'Enrollment Form'!B400<>\"Subscriber\",'Enrollment Form'!O400=\"Waive\",'Enrollment Form'!O400=\"\"),\"-\",IF('Enrollment Form'!P400=\"\",\"N\",\"Y\")))","v":""},{"$f":"IF($B393=\"N\",\"\",IF(AND('Enrollment Form'!$C400=\"ROC\",'Enrollment Form'!$DS400<>\"\"),\"Y\",IF(AND('Enrollment Form'!$C400=\"ROC\",'Enrollment Form'!$DS400=\"\"),\"N\",IF(AND('Enrollment Form'!$C400=\"Enroll\",'Enrollment Form'!$B400=\"Subscriber\",'Enrollment Form'!$CQ400=\"No\",'Enrollment Form'!$DS400=\"\"),\"N\",IF(AND('Enrollment Form'!$C400=\"Enroll\",'Enrollment Form'!$B400=\"Subscriber\",'Enrollment Form'!$CQ400=\"Yes\"),\"-\",\"Y\")))))","v":""},{"$f":"IF($B393=\"N\",\"\",IF(AND('Enrollment Form'!$C400=\"ROC\",'Enrollment Form'!$DT400<>\"\"),\"Y\",IF(AND('Enrollment Form'!$C400=\"ROC\",'Enrollment Form'!$DT400=\"\"),\"N\",IF(AND('Enrollment Form'!$C400=\"Enroll\",'Enrollment Form'!$B400=\"Subscriber\",'Enrollment Form'!$CQ400=\"No\",'Enrollment Form'!$DT400=\"\"),\"N\",IF(AND('Enrollment Form'!$C400=\"Enroll\",'Enrollment Form'!$B400=\"Subscriber\",'Enrollment Form'!$CQ400=\"Yes\"),\"-\",\"Y\")))))","v":""},{"$f":"IF('Enrollment Form'!AH400=\"\",\"\",IF(ISERROR(SEARCH(\".\",'Enrollment Form'!AH400,SEARCH(\"@\",'Enrollment Form'!AH400))),\"N\",\"Y\"))","v":""},{"$f":"IF(OR($B393=\"N\",'Enrollment Form'!$G400=\"\"),\"\",IF('Enrollment Form'!$B400<>\"Subscriber\",\"-\",IF(COUNTIF('Enrollment Form'!$AS400:$AT400,\"Yes\")=2,\"N\",\"Y\")))","v":""},{"$f":"IF(OR('Enrollment Form'!$CC400=\"\",'Enrollment Form'!$CC400=\"No\"),\"-\",IF(AND('Enrollment Form'!$CC400=\"Yes\",'Enrollment Form'!$CD400=\"\"),\"N\",\"Y\"))","v":"-"},{"$f":"IF(OR('Enrollment Form'!$CE400=\"\",'Enrollment Form'!$CE400=\"No\"),\"-\",IF(AND('Enrollment Form'!$CE400=\"Yes\",'Enrollment Form'!$CF400=\"\"),\"N\",\"Y\"))","v":"-"},{"$f":"IF(OR('Enrollment Form'!$CG400=\"\",'Enrollment Form'!$CG400=\"No\"),\"-\",IF(AND('Enrollment Form'!$CG400=\"Yes\",'Enrollment Form'!$CH400=\"\"),\"N\",\"Y\"))","v":"-"},{"$f":"IF(OR('Enrollment Form'!$CG400=\"\",'Enrollment Form'!$CG400=\"No\"),\"-\",IF(AND('Enrollment Form'!$CG400=\"Yes\",'Enrollment Form'!$CI400=\"\"),\"N\",\"Y\"))","v":"-"},{"$f":"IF('Enrollment Form'!B400<>\"Subscriber\",\"-\",IF(AND('Enrollment Form'!B400=\"Subscriber\",'Enrollment Form'!C400=\"Enroll\",'Enrollment Form'!AA400=\"\"),\"N\",\"Y\"))","v":"-"},{"$f":"IF(OR('Enrollment Form'!B400=\"Subscriber\",'Enrollment Form'!B400=\"\"),\"-\",IF('Enrollment Form'!BI400=\"\",\"N\",\"Y\"))","v":"-"},{"$f":"IF('Enrollment Form'!B400<>\"Subscriber\",\"-\",IF(AND('Enrollment Form'!B400=\"Subscriber\",'Enrollment Form'!G400=\"\"),\"N\",\"Y\"))","v":"-"},{"$f":"IF('Enrollment Form'!A400=\"\",\"\",IF('Enrollment Form'!B400=\"Subscriber\",\"-\",IF(AND('Enrollment Form'!B400<>\"Subscriber\",'Enrollment Form'!G400='Enrollment Form'!H400),\"N\",\"Y\")))","v":""},0]
[401,{"$f":"IF('Enrollment Form'!$A401<>\"\",\"Y\",\"N\")","v":"N"},{"$f":"IF(AND('Enrollment Form'!$B401=\"\",'Enrollment Form'!$C401<>\"\"),\"N\",IF($B394=\"N\",\"\",\"Y\"))","v":""},{"$f":"IF(OR($B394=\"N\",'Enrollment Form'!G401=\"\"),\"\",IF('Enrollment Form'!$B401<>\"Subscriber\",\"\",IF('Enrollment Form'!$G401='Enrollment Form'!$H401,\"Y\",\"N\")))","v":""},{"$f":"IF($B394=\"N\",\"\",IF(AND(COUNTIFS('Enrollment Form'!$H$11:$H$1000,'Enrollment Form'!$H401,'Enrollment Form'!$B$11:$B$1000,'Enrollment Form'!$B401)>1,'Enrollment Form'!$H401<>\"\"),\"N\",\"Y\"))","v":""},{"$f":"IF($B394=\"N\",\"\",IF(LEN('Enrollment Form'!$Y401)=0,\"\",IF(LEN('Enrollment Form'!$Y401)<>5,\"N\",\"Y\")))","v":""},{"$f":"IF($B394=\"N\",\"\",IF(LEN('Enrollment Form'!$AD401=0),\"\",IF(LEN('Enrollment Form'!$AD401)<>5,\"N\",\"Y\")))","v":""},{"$f":"IF($B394=\"N\",\"\",IF(LEN('Enrollment Form'!$BL401=0),\"\",IF(LEN('Enrollment Form'!$BL401)<>5,\"N\",\"Y\")))","v":""},{"$f":"IF($B394=\"N\",\"\",IF(LEN('Enrollment Form'!$AE401)=0,\"\",IF(LEN('Enrollment Form'!$AE401)<>10,\"N\",\"Y\")))","v":""},{"$f":"IF($B394=\"N\",\"\",IF(LEN('Enrollment Form'!$AF401)=0,\"\",IF(LEN('Enrollment Form'!$AF401)<>10,\"N\",\"Y\")))","v":""},{"$f":"IF('Enrollment Form'!$O401<>\"Graded\",\"-\",IF(AND('Enrollment Form'!$O401=\"Graded\",'Enrollment Form'!$AO401<>\"\"),\"Y\",\"N\"))","v":"-"},{"$f":"IF($B394=\"N\",\"\",IF(OR('Enrollment Form'!$B401<>\"Subscriber\",'Enrollment Form'!$C401=\"ROC\"),\"-\",IF(AND('Enrollment Form'!$B401=\"Subscriber\",'Enrollment Form'!$C401=\"Enroll\",'Enrollment Form'!$AJ401<>\"\"),\"Y\",\"N\")))","v":""},{"$f":"IF($B394=\"N\",\"\",IF(OR('Enrollment Form'!$B401<>\"Subscriber\",'Enrollment Form'!$C401=\"ROC\"),\"-\",IF(AND('Enrollment Form'!$B401=\"Subscriber\",'Enrollment Form'!$C401=\"Enroll\",'Enrollment Form'!$AK401<>\"\"),\"Y\",\"N\")))","v":""},{"$f":"IF($B394=\"N\",\"\",IF(OR('Enrollment Form'!$B401<>\"Subscriber\",'Enrollment Form'!$C401=\"ROC\"),\"-\",IF(AND('Enrollment Form'!$B401=\"Subscriber\",'Enrollment Form'!$C401=\"Enroll\",'Enrollment Form'!$AL401<>\"\"),\"Y\",\"N\")))","v":""},{"$f":"IF($B394=\"N\",\"\",IF(OR('Enrollment Form'!$B401<>\"Subscriber\",'Enrollment Form'!$C401=\"ROC\"),\"-\",IF(AND('Enrollment Form'!$B401=\"Subscriber\",'Enrollment Form'!$C401=\"Enroll\",'Enrollment Form'!$AM401<>\"\"),\"Y\",\"N\")))","v":""},{"$f":"IF($B394=\"N\",\"\",IF(OR('Enrollment Form'!$B401<>\"Subscriber\",'Enrollment Form'!$C401=\"ROC\"),\"-\",IF(AND('Enrollment Form'!$B401=\"Subscriber\",'Enrollment Form'!$C401=\"Enroll\",'Enrollment Form'!$AN401<>\"\"),\"Y\",\"N\")))","v":""},{"$f":"IF($B394=\"N\",\"\",IF(OR('Enrollment Form'!$B401<>\"Subscriber\",'Enrollment Form'!$C401=\"ROC\"),\"-\",IF(AND('Enrollment Form'!$B401=\"Subscriber\",'Enrollment Form'!$C401=\"Enroll\",'Enrollment Form'!$AP401<>\"\"),\"Y\",\"N\")))","v":""},{"$f":"IF($B394=\"N\",\"\",IF($Q394=\"-\",\"-\",IF(AND($Q394=\"Y\",'Enrollment Form'!$AP401=\"No\"),\"-\",IF(AND($Q394=\"Y\",'Enrollment Form'!$AP401=\"Yes\",'Enrollment Form'!$AQ401<>\"\"),\"Y\",\"N\"))))","v":""},{"$f":"IF($B394=\"N\",\"\",IF(OR('Enrollment Form'!$B401<>\"Subscriber\",'Enrollment Form'!$C401=\"ROC\"),\"-\",IF(AND('Enrollment Form'!$B401=\"Subscriber\",'Enrollment Form'!$C401=\"Enroll\",'Enrollment Form'!$CO401<>\"\"),\"Y\",\"N\")))","v":""},{"$f":"IF($B394=\"N\",\"\",IF($S394=\"-\",\"-\",IF(AND($S394=\"Y\",'Enrollment Form'!$CO401=\"No\"),\"-\",IF(AND($S394=\"Y\",'Enrollment Form'!$CO401=\"Yes\",'Enrollment Form'!$CP401<>\"\"),\"Y\",\"N\"))))","v":""},{"$f":"IF(OR('Enrollment Form'!$AV401=\"Yes\",'Enrollment Form'!$AV401=\"\"),\"-\",IF(AND('Enrollment Form'!$AV401=\"No\",ISERROR(FIND(\"HMO\",VLOOKUP('Enrollment Form'!G401,'Enrollment Form'!H$11:J$1000,3,FALSE),1))=FALSE,COUNTA('Enrollment Form'!$AW401:$AZ401)=4),\"Y\",\"N\"))","v":"-"},{"$f":"IF($B394=\"N\",\"\",IF('Enrollment Form'!$B401=\"Subscriber\",\"-\",IF(COUNTA('Enrollment Form'!$BE401,'Enrollment Form'!$BG401)=2,\"Y\",\"N\")))","v":""},{"$f":"IF($B394=\"N\",\"\",IF(OR('Enrollment Form'!$AU401=\"\",'Enrollment Form'!$AU401=\"No\"),\"-\",IF(AND('Enrollment Form'!$AU401=\"Yes\",COUNTA('Enrollment Form'!$CK401)=1),\"Y\",\"N\")))","v":""},{"$f":"IF(OR('Enrollment Form'!$CK401=\"\",'Enrollment Form'!$CK401=\"No\"),\"-\",IF(COUNTA('Enrollment Form'!$CM401:$CN401)=2,\"Y\",\"N\"))","v":"-"},{"$f":"IF($B394=\"N\",\"\",IF(COUNTIF('Enrollment Form'!$CZ401:$DO401,\"Other\")=COUNTA('Enrollment Form'!$DF401,'Enrollment Form'!$DA401,'Enrollment Form'!$DK401,'Enrollment Form'!$DP401),\"Y\",\"N\"))","v":""},{"$f":"IF($B394=\"N\",\"\",IF(OR('Enrollment Form'!B401<>\"Subscriber\",'Enrollment Form'!C401=\"ROC\",COUNTIF('Enrollment Form'!AS401:AT401,\"Yes\")>=1),\"-\",IF(AND('Enrollment Form'!C401=\"Enroll\",COUNTIF('Enrollment Form'!AS401:AT401,\"No\")=2,'Enrollment Form'!AU401=\"\"),\"N\",\"Y\")))","v":""},{"$f":"IF(OR(B394=\"N\",'Enrollment Form'!B401<>\"Subscriber\",'Enrollment Form'!C401=\"ROC\",'Enrollment Form'!O401<>\"Multiple of Salary\"),\"-\",IF(COUNTA('Enrollment Form'!T401:U401)<2,\"N\",\"Y\"))","v":"-"},{"$f":"IF(B394=\"N\",\"\",IF(OR('Enrollment Form'!C401=\"ROC\",'Enrollment Form'!B401<>\"Subscriber\",'Enrollment Form'!O401=\"Waive\",'Enrollment Form'!O401=\"\"),\"-\",IF('Enrollment Form'!P401=\"\",\"N\",\"Y\")))","v":""},{"$f":"IF($B394=\"N\",\"\",IF(AND('Enrollment Form'!$C401=\"ROC\",'Enrollment Form'!$DS401<>\"\"),\"Y\",IF(AND('Enrollment Form'!$C401=\"ROC\",'Enrollment Form'!$DS401=\"\"),\"N\",IF(AND('Enrollment Form'!$C401=\"Enroll\",'Enrollment Form'!$B401=\"Subscriber\",'Enrollment Form'!$CQ401=\"No\",'Enrollment Form'!$DS401=\"\"),\"N\",IF(AND('Enrollment Form'!$C401=\"Enroll\",'Enrollment Form'!$B401=\"Subscriber\",'Enrollment Form'!$CQ401=\"Yes\"),\"-\",\"Y\")))))","v":""},{"$f":"IF($B394=\"N\",\"\",IF(AND('Enrollment Form'!$C401=\"ROC\",'Enrollment Form'!$DT401<>\"\"),\"Y\",IF(AND('Enrollment Form'!$C401=\"ROC\",'Enrollment Form'!$DT401=\"\"),\"N\",IF(AND('Enrollment Form'!$C401=\"Enroll\",'Enrollment Form'!$B401=\"Subscriber\",'Enrollment Form'!$CQ401=\"No\",'Enrollment Form'!$DT401=\"\"),\"N\",IF(AND('Enrollment Form'!$C401=\"Enroll\",'Enrollment Form'!$B401=\"Subscriber\",'Enrollment Form'!$CQ401=\"Yes\"),\"-\",\"Y\")))))","v":""},{"$f":"IF('Enrollment Form'!AH401=\"\",\"\",IF(ISERROR(SEARCH(\".\",'Enrollment Form'!AH401,SEARCH(\"@\",'Enrollment Form'!AH401))),\"N\",\"Y\"))","v":""},{"$f":"IF(OR($B394=\"N\",'Enrollment Form'!$G401=\"\"),\"\",IF('Enrollment Form'!$B401<>\"Subscriber\",\"-\",IF(COUNTIF('Enrollment Form'!$AS401:$AT401,\"Yes\")=2,\"N\",\"Y\")))","v":""},{"$f":"IF(OR('Enrollment Form'!$CC401=\"\",'Enrollment Form'!$CC401=\"No\"),\"-\",IF(AND('Enrollment Form'!$CC401=\"Yes\",'Enrollment Form'!$CD401=\"\"),\"N\",\"Y\"))","v":"-"},{"$f":"IF(OR('Enrollment Form'!$CE401=\"\",'Enrollment Form'!$CE401=\"No\"),\"-\",IF(AND('Enrollment Form'!$CE401=\"Yes\",'Enrollment Form'!$CF401=\"\"),\"N\",\"Y\"))","v":"-"},{"$f":"IF(OR('Enrollment Form'!$CG401=\"\",'Enrollment Form'!$CG401=\"No\"),\"-\",IF(AND('Enrollment Form'!$CG401=\"Yes\",'Enrollment Form'!$CH401=\"\"),\"N\",\"Y\"))","v":"-"},{"$f":"IF(OR('Enrollment Form'!$CG401=\"\",'Enrollment Form'!$CG401=\"No\"),\"-\",IF(AND('Enrollment Form'!$CG401=\"Yes\",'Enrollment Form'!$CI401=\"\"),\"N\",\"Y\"))","v":"-"},{"$f":"IF('Enrollment Form'!B401<>\"Subscriber\",\"-\",IF(AND('Enrollment Form'!B401=\"Subscriber\",'Enrollment Form'!C401=\"Enroll\",'Enrollment Form'!AA401=\"\"),\"N\",\"Y\"))","v":"-"},{"$f":"IF(OR('Enrollment Form'!B401=\"Subscriber\",'Enrollment Form'!B401=\"\"),\"-\",IF('Enrollment Form'!BI401=\"\",\"N\",\"Y\"))","v":"-"},{"$f":"IF('Enrollment Form'!B401<>\"Subscriber\",\"-\",IF(AND('Enrollment Form'!B401=\"Subscriber\",'Enrollment Form'!G401=\"\"),\"N\",\"Y\"))","v":"-"},{"$f":"IF('Enrollment Form'!A401=\"\",\"\",IF('Enrollment Form'!B401=\"Subscriber\",\"-\",IF(AND('Enrollment Form'!B401<>\"Subscriber\",'Enrollment Form'!G401='Enrollment Form'!H401),\"N\",\"Y\")))","v":""},0]
[402,{"$f":"IF('Enrollment Form'!$A402<>\"\",\"Y\",\"N\")","v":"N"},{"$f":"IF(AND('Enrollment Form'!$B402=\"\",'Enrollment Form'!$C402<>\"\"),\"N\",IF($B395=\"N\",\"\",\"Y\"))","v":""},{"$f":"IF(OR($B395=\"N\",'Enrollment Form'!G402=\"\"),\"\",IF('Enrollment Form'!$B402<>\"Subscriber\",\"\",IF('Enrollment Form'!$G402='Enrollment Form'!$H402,\"Y\",\"N\")))","v":""},{"$f":"IF($B395=\"N\",\"\",IF(AND(COUNTIFS('Enrollment Form'!$H$11:$H$1000,'Enrollment Form'!$H402,'Enrollment Form'!$B$11:$B$1000,'Enrollment Form'!$B402)>1,'Enrollment Form'!$H402<>\"\"),\"N\",\"Y\"))","v":""},{"$f":"IF($B395=\"N\",\"\",IF(LEN('Enrollment Form'!$Y402)=0,\"\",IF(LEN('Enrollment Form'!$Y402)<>5,\"N\",\"Y\")))","v":""},{"$f":"IF($B395=\"N\",\"\",IF(LEN('Enrollment Form'!$AD402=0),\"\",IF(LEN('Enrollment Form'!$AD402)<>5,\"N\",\"Y\")))","v":""},{"$f":"IF($B395=\"N\",\"\",IF(LEN('Enrollment Form'!$BL402=0),\"\",IF(LEN('Enrollment Form'!$BL402)<>5,\"N\",\"Y\")))","v":""},{"$f":"IF($B395=\"N\",\"\",IF(LEN('Enrollment Form'!$AE402)=0,\"\",IF(LEN('Enrollment Form'!$AE402)<>10,\"N\",\"Y\")))","v":""},{"$f":"IF($B395=\"N\",\"\",IF(LEN('Enrollment Form'!$AF402)=0,\"\",IF(LEN('Enrollment Form'!$AF402)<>10,\"N\",\"Y\")))","v":""},{"$f":"IF('Enrollment Form'!$O402<>\"Graded\",\"-\",IF(AND('Enrollment Form'!$O402=\"Graded\",'Enrollment Form'!$AO402<>\"\"),\"Y\",\"N\"))","v":"-"},{"$f":"IF($B395=\"N\",\"\",IF(OR('Enrollment Form'!$B402<>\"Subscriber\",'Enrollment Form'!$C402=\"ROC\"),\"-\",IF(AND('Enrollment Form'!$B402=\"Subscriber\",'Enrollment Form'!$C402=\"Enroll\",'Enrollment Form'!$AJ402<>\"\"),\"Y\",\"N\")))","v":""},{"$f":"IF($B395=\"N\",\"\",IF(OR('Enrollment Form'!$B402<>\"Subscriber\",'Enrollment Form'!$C402=\"ROC\"),\"-\",IF(AND('Enrollment Form'!$B402=\"Subscriber\",'Enrollment Form'!$C402=\"Enroll\",'Enrollment Form'!$AK402<>\"\"),\"Y\",\"N\")))","v":""},{"$f":"IF($B395=\"N\",\"\",IF(OR('Enrollment Form'!$B402<>\"Subscriber\",'Enrollment Form'!$C402=\"ROC\"),\"-\",IF(AND('Enrollment Form'!$B402=\"Subscriber\",'Enrollment Form'!$C402=\"Enroll\",'Enrollment Form'!$AL402<>\"\"),\"Y\",\"N\")))","v":""},{"$f":"IF($B395=\"N\",\"\",IF(OR('Enrollment Form'!$B402<>\"Subscriber\",'Enrollment Form'!$C402=\"ROC\"),\"-\",IF(AND('Enrollment Form'!$B402=\"Subscriber\",'Enrollment Form'!$C402=\"Enroll\",'Enrollment Form'!$AM402<>\"\"),\"Y\",\"N\")))","v":""},{"$f":"IF($B395=\"N\",\"\",IF(OR('Enrollment Form'!$B402<>\"Subscriber\",'Enrollment Form'!$C402=\"ROC\"),\"-\",IF(AND('Enrollment Form'!$B402=\"Subscriber\",'Enrollment Form'!$C402=\"Enroll\",'Enrollment Form'!$AN402<>\"\"),\"Y\",\"N\")))","v":""},{"$f":"IF($B395=\"N\",\"\",IF(OR('Enrollment Form'!$B402<>\"Subscriber\",'Enrollment Form'!$C402=\"ROC\"),\"-\",IF(AND('Enrollment Form'!$B402=\"Subscriber\",'Enrollment Form'!$C402=\"Enroll\",'Enrollment Form'!$AP402<>\"\"),\"Y\",\"N\")))","v":""},{"$f":"IF($B395=\"N\",\"\",IF($Q395=\"-\",\"-\",IF(AND($Q395=\"Y\",'Enrollment Form'!$AP402=\"No\"),\"-\",IF(AND($Q395=\"Y\",'Enrollment Form'!$AP402=\"Yes\",'Enrollment Form'!$AQ402<>\"\"),\"Y\",\"N\"))))","v":""},{"$f":"IF($B395=\"N\",\"\",IF(OR('Enrollment Form'!$B402<>\"Subscriber\",'Enrollment Form'!$C402=\"ROC\"),\"-\",IF(AND('Enrollment Form'!$B402=\"Subscriber\",'Enrollment Form'!$C402=\"Enroll\",'Enrollment Form'!$CO402<>\"\"),\"Y\",\"N\")))","v":""},{"$f":"IF($B395=\"N\",\"\",IF($S395=\"-\",\"-\",IF(AND($S395=\"Y\",'Enrollment Form'!$CO402=\"No\"),\"-\",IF(AND($S395=\"Y\",'Enrollment Form'!$CO402=\"Yes\",'Enrollment Form'!$CP402<>\"\"),\"Y\",\"N\"))))","v":""},{"$f":"IF(OR('Enrollment Form'!$AV402=\"Yes\",'Enrollment Form'!$AV402=\"\"),\"-\",IF(AND('Enrollment Form'!$AV402=\"No\",ISERROR(FIND(\"HMO\",VLOOKUP('Enrollment Form'!G402,'Enrollment Form'!H$11:J$1000,3,FALSE),1))=FALSE,COUNTA('Enrollment Form'!$AW402:$AZ402)=4),\"Y\",\"N\"))","v":"-"},{"$f":"IF($B395=\"N\",\"\",IF('Enrollment Form'!$B402=\"Subscriber\",\"-\",IF(COUNTA('Enrollment Form'!$BE402,'Enrollment Form'!$BG402)=2,\"Y\",\"N\")))","v":""},{"$f":"IF($B395=\"N\",\"\",IF(OR('Enrollment Form'!$AU402=\"\",'Enrollment Form'!$AU402=\"No\"),\"-\",IF(AND('Enrollment Form'!$AU402=\"Yes\",COUNTA('Enrollment Form'!$CK402)=1),\"Y\",\"N\")))","v":""},{"$f":"IF(OR('Enrollment Form'!$CK402=\"\",'Enrollment Form'!$CK402=\"No\"),\"-\",IF(COUNTA('Enrollment Form'!$CM402:$CN402)=2,\"Y\",\"N\"))","v":"-"},{"$f":"IF($B395=\"N\",\"\",IF(COUNTIF('Enrollment Form'!$CZ402:$DO402,\"Other\")=COUNTA('Enrollment Form'!$DF402,'Enrollment Form'!$DA402,'Enrollment Form'!$DK402,'Enrollment Form'!$DP402),\"Y\",\"N\"))","v":""},{"$f":"IF($B395=\"N\",\"\",IF(OR('Enrollment Form'!B402<>\"Subscriber\",'Enrollment Form'!C402=\"ROC\",COUNTIF('Enrollment Form'!AS402:AT402,\"Yes\")>=1),\"-\",IF(AND('Enrollment Form'!C402=\"Enroll\",COUNTIF('Enrollment Form'!AS402:AT402,\"No\")=2,'Enrollment Form'!AU402=\"\"),\"N\",\"Y\")))","v":""},{"$f":"IF(OR(B395=\"N\",'Enrollment Form'!B402<>\"Subscriber\",'Enrollment Form'!C402=\"ROC\",'Enrollment Form'!O402<>\"Multiple of Salary\"),\"-\",IF(COUNTA('Enrollment Form'!T402:U402)<2,\"N\",\"Y\"))","v":"-"},{"$f":"IF(B395=\"N\",\"\",IF(OR('Enrollment Form'!C402=\"ROC\",'Enrollment Form'!B402<>\"Subscriber\",'Enrollment Form'!O402=\"Waive\",'Enrollment Form'!O402=\"\"),\"-\",IF('Enrollment Form'!P402=\"\",\"N\",\"Y\")))","v":""},{"$f":"IF($B395=\"N\",\"\",IF(AND('Enrollment Form'!$C402=\"ROC\",'Enrollment Form'!$DS402<>\"\"),\"Y\",IF(AND('Enrollment Form'!$C402=\"ROC\",'Enrollment Form'!$DS402=\"\"),\"N\",IF(AND('Enrollment Form'!$C402=\"Enroll\",'Enrollment Form'!$B402=\"Subscriber\",'Enrollment Form'!$CQ402=\"No\",'Enrollment Form'!$DS402=\"\"),\"N\",IF(AND('Enrollment Form'!$C402=\"Enroll\",'Enrollment Form'!$B402=\"Subscriber\",'Enrollment Form'!$CQ402=\"Yes\"),\"-\",\"Y\")))))","v":""},{"$f":"IF($B395=\"N\",\"\",IF(AND('Enrollment Form'!$C402=\"ROC\",'Enrollment Form'!$DT402<>\"\"),\"Y\",IF(AND('Enrollment Form'!$C402=\"ROC\",'Enrollment Form'!$DT402=\"\"),\"N\",IF(AND('Enrollment Form'!$C402=\"Enroll\",'Enrollment Form'!$B402=\"Subscriber\",'Enrollment Form'!$CQ402=\"No\",'Enrollment Form'!$DT402=\"\"),\"N\",IF(AND('Enrollment Form'!$C402=\"Enroll\",'Enrollment Form'!$B402=\"Subscriber\",'Enrollment Form'!$CQ402=\"Yes\"),\"-\",\"Y\")))))","v":""},{"$f":"IF('Enrollment Form'!AH402=\"\",\"\",IF(ISERROR(SEARCH(\".\",'Enrollment Form'!AH402,SEARCH(\"@\",'Enrollment Form'!AH402))),\"N\",\"Y\"))","v":""},{"$f":"IF(OR($B395=\"N\",'Enrollment Form'!$G402=\"\"),\"\",IF('Enrollment Form'!$B402<>\"Subscriber\",\"-\",IF(COUNTIF('Enrollment Form'!$AS402:$AT402,\"Yes\")=2,\"N\",\"Y\")))","v":""},{"$f":"IF(OR('Enrollment Form'!$CC402=\"\",'Enrollment Form'!$CC402=\"No\"),\"-\",IF(AND('Enrollment Form'!$CC402=\"Yes\",'Enrollment Form'!$CD402=\"\"),\"N\",\"Y\"))","v":"-"},{"$f":"IF(OR('Enrollment Form'!$CE402=\"\",'Enrollment Form'!$CE402=\"No\"),\"-\",IF(AND('Enrollment Form'!$CE402=\"Yes\",'Enrollment Form'!$CF402=\"\"),\"N\",\"Y\"))","v":"-"},{"$f":"IF(OR('Enrollment Form'!$CG402=\"\",'Enrollment Form'!$CG402=\"No\"),\"-\",IF(AND('Enrollment Form'!$CG402=\"Yes\",'Enrollment Form'!$CH402=\"\"),\"N\",\"Y\"))","v":"-"},{"$f":"IF(OR('Enrollment Form'!$CG402=\"\",'Enrollment Form'!$CG402=\"No\"),\"-\",IF(AND('Enrollment Form'!$CG402=\"Yes\",'Enrollment Form'!$CI402=\"\"),\"N\",\"Y\"))","v":"-"},{"$f":"IF('Enrollment Form'!B402<>\"Subscriber\",\"-\",IF(AND('Enrollment Form'!B402=\"Subscriber\",'Enrollment Form'!C402=\"Enroll\",'Enrollment Form'!AA402=\"\"),\"N\",\"Y\"))","v":"-"},{"$f":"IF(OR('Enrollment Form'!B402=\"Subscriber\",'Enrollment Form'!B402=\"\"),\"-\",IF('Enrollment Form'!BI402=\"\",\"N\",\"Y\"))","v":"-"},{"$f":"IF('Enrollment Form'!B402<>\"Subscriber\",\"-\",IF(AND('Enrollment Form'!B402=\"Subscriber\",'Enrollment Form'!G402=\"\"),\"N\",\"Y\"))","v":"-"},{"$f":"IF('Enrollment Form'!A402=\"\",\"\",IF('Enrollment Form'!B402=\"Subscriber\",\"-\",IF(AND('Enrollment Form'!B402<>\"Subscriber\",'Enrollment Form'!G402='Enrollment Form'!H402),\"N\",\"Y\")))","v":""},0]
[403,{"$f":"IF('Enrollment Form'!$A403<>\"\",\"Y\",\"N\")","v":"N"},{"$f":"IF(AND('Enrollment Form'!$B403=\"\",'Enrollment Form'!$C403<>\"\"),\"N\",IF($B396=\"N\",\"\",\"Y\"))","v":""},{"$f":"IF(OR($B396=\"N\",'Enrollment Form'!G403=\"\"),\"\",IF('Enrollment Form'!$B403<>\"Subscriber\",\"\",IF('Enrollment Form'!$G403='Enrollment Form'!$H403,\"Y\",\"N\")))","v":""},{"$f":"IF($B396=\"N\",\"\",IF(AND(COUNTIFS('Enrollment Form'!$H$11:$H$1000,'Enrollment Form'!$H403,'Enrollment Form'!$B$11:$B$1000,'Enrollment Form'!$B403)>1,'Enrollment Form'!$H403<>\"\"),\"N\",\"Y\"))","v":""},{"$f":"IF($B396=\"N\",\"\",IF(LEN('Enrollment Form'!$Y403)=0,\"\",IF(LEN('Enrollment Form'!$Y403)<>5,\"N\",\"Y\")))","v":""},{"$f":"IF($B396=\"N\",\"\",IF(LEN('Enrollment Form'!$AD403=0),\"\",IF(LEN('Enrollment Form'!$AD403)<>5,\"N\",\"Y\")))","v":""},{"$f":"IF($B396=\"N\",\"\",IF(LEN('Enrollment Form'!$BL403=0),\"\",IF(LEN('Enrollment Form'!$BL403)<>5,\"N\",\"Y\")))","v":""},{"$f":"IF($B396=\"N\",\"\",IF(LEN('Enrollment Form'!$AE403)=0,\"\",IF(LEN('Enrollment Form'!$AE403)<>10,\"N\",\"Y\")))","v":""},{"$f":"IF($B396=\"N\",\"\",IF(LEN('Enrollment Form'!$AF403)=0,\"\",IF(LEN('Enrollment Form'!$AF403)<>10,\"N\",\"Y\")))","v":""},{"$f":"IF('Enrollment Form'!$O403<>\"Graded\",\"-\",IF(AND('Enrollment Form'!$O403=\"Graded\",'Enrollment Form'!$AO403<>\"\"),\"Y\",\"N\"))","v":"-"},{"$f":"IF($B396=\"N\",\"\",IF(OR('Enrollment Form'!$B403<>\"Subscriber\",'Enrollment Form'!$C403=\"ROC\"),\"-\",IF(AND('Enrollment Form'!$B403=\"Subscriber\",'Enrollment Form'!$C403=\"Enroll\",'Enrollment Form'!$AJ403<>\"\"),\"Y\",\"N\")))","v":""},{"$f":"IF($B396=\"N\",\"\",IF(OR('Enrollment Form'!$B403<>\"Subscriber\",'Enrollment Form'!$C403=\"ROC\"),\"-\",IF(AND('Enrollment Form'!$B403=\"Subscriber\",'Enrollment Form'!$C403=\"Enroll\",'Enrollment Form'!$AK403<>\"\"),\"Y\",\"N\")))","v":""},{"$f":"IF($B396=\"N\",\"\",IF(OR('Enrollment Form'!$B403<>\"Subscriber\",'Enrollment Form'!$C403=\"ROC\"),\"-\",IF(AND('Enrollment Form'!$B403=\"Subscriber\",'Enrollment Form'!$C403=\"Enroll\",'Enrollment Form'!$AL403<>\"\"),\"Y\",\"N\")))","v":""},{"$f":"IF($B396=\"N\",\"\",IF(OR('Enrollment Form'!$B403<>\"Subscriber\",'Enrollment Form'!$C403=\"ROC\"),\"-\",IF(AND('Enrollment Form'!$B403=\"Subscriber\",'Enrollment Form'!$C403=\"Enroll\",'Enrollment Form'!$AM403<>\"\"),\"Y\",\"N\")))","v":""},{"$f":"IF($B396=\"N\",\"\",IF(OR('Enrollment Form'!$B403<>\"Subscriber\",'Enrollment Form'!$C403=\"ROC\"),\"-\",IF(AND('Enrollment Form'!$B403=\"Subscriber\",'Enrollment Form'!$C403=\"Enroll\",'Enrollment Form'!$AN403<>\"\"),\"Y\",\"N\")))","v":""},{"$f":"IF($B396=\"N\",\"\",IF(OR('Enrollment Form'!$B403<>\"Subscriber\",'Enrollment Form'!$C403=\"ROC\"),\"-\",IF(AND('Enrollment Form'!$B403=\"Subscriber\",'Enrollment Form'!$C403=\"Enroll\",'Enrollment Form'!$AP403<>\"\"),\"Y\",\"N\")))","v":""},{"$f":"IF($B396=\"N\",\"\",IF($Q396=\"-\",\"-\",IF(AND($Q396=\"Y\",'Enrollment Form'!$AP403=\"No\"),\"-\",IF(AND($Q396=\"Y\",'Enrollment Form'!$AP403=\"Yes\",'Enrollment Form'!$AQ403<>\"\"),\"Y\",\"N\"))))","v":""},{"$f":"IF($B396=\"N\",\"\",IF(OR('Enrollment Form'!$B403<>\"Subscriber\",'Enrollment Form'!$C403=\"ROC\"),\"-\",IF(AND('Enrollment Form'!$B403=\"Subscriber\",'Enrollment Form'!$C403=\"Enroll\",'Enrollment Form'!$CO403<>\"\"),\"Y\",\"N\")))","v":""},{"$f":"IF($B396=\"N\",\"\",IF($S396=\"-\",\"-\",IF(AND($S396=\"Y\",'Enrollment Form'!$CO403=\"No\"),\"-\",IF(AND($S396=\"Y\",'Enrollment Form'!$CO403=\"Yes\",'Enrollment Form'!$CP403<>\"\"),\"Y\",\"N\"))))","v":""},{"$f":"IF(OR('Enrollment Form'!$AV403=\"Yes\",'Enrollment Form'!$AV403=\"\"),\"-\",IF(AND('Enrollment Form'!$AV403=\"No\",ISERROR(FIND(\"HMO\",VLOOKUP('Enrollment Form'!G403,'Enrollment Form'!H$11:J$1000,3,FALSE),1))=FALSE,COUNTA('Enrollment Form'!$AW403:$AZ403)=4),\"Y\",\"N\"))","v":"-"},{"$f":"IF($B396=\"N\",\"\",IF('Enrollment Form'!$B403=\"Subscriber\",\"-\",IF(COUNTA('Enrollment Form'!$BE403,'Enrollment Form'!$BG403)=2,\"Y\",\"N\")))","v":""},{"$f":"IF($B396=\"N\",\"\",IF(OR('Enrollment Form'!$AU403=\"\",'Enrollment Form'!$AU403=\"No\"),\"-\",IF(AND('Enrollment Form'!$AU403=\"Yes\",COUNTA('Enrollment Form'!$CK403)=1),\"Y\",\"N\")))","v":""},{"$f":"IF(OR('Enrollment Form'!$CK403=\"\",'Enrollment Form'!$CK403=\"No\"),\"-\",IF(COUNTA('Enrollment Form'!$CM403:$CN403)=2,\"Y\",\"N\"))","v":"-"},{"$f":"IF($B396=\"N\",\"\",IF(COUNTIF('Enrollment Form'!$CZ403:$DO403,\"Other\")=COUNTA('Enrollment Form'!$DF403,'Enrollment Form'!$DA403,'Enrollment Form'!$DK403,'Enrollment Form'!$DP403),\"Y\",\"N\"))","v":""},{"$f":"IF($B396=\"N\",\"\",IF(OR('Enrollment Form'!B403<>\"Subscriber\",'Enrollment Form'!C403=\"ROC\",COUNTIF('Enrollment Form'!AS403:AT403,\"Yes\")>=1),\"-\",IF(AND('Enrollment Form'!C403=\"Enroll\",COUNTIF('Enrollment Form'!AS403:AT403,\"No\")=2,'Enrollment Form'!AU403=\"\"),\"N\",\"Y\")))","v":""},{"$f":"IF(OR(B396=\"N\",'Enrollment Form'!B403<>\"Subscriber\",'Enrollment Form'!C403=\"ROC\",'Enrollment Form'!O403<>\"Multiple of Salary\"),\"-\",IF(COUNTA('Enrollment Form'!T403:U403)<2,\"N\",\"Y\"))","v":"-"},{"$f":"IF(B396=\"N\",\"\",IF(OR('Enrollment Form'!C403=\"ROC\",'Enrollment Form'!B403<>\"Subscriber\",'Enrollment Form'!O403=\"Waive\",'Enrollment Form'!O403=\"\"),\"-\",IF('Enrollment Form'!P403=\"\",\"N\",\"Y\")))","v":""},{"$f":"IF($B396=\"N\",\"\",IF(AND('Enrollment Form'!$C403=\"ROC\",'Enrollment Form'!$DS403<>\"\"),\"Y\",IF(AND('Enrollment Form'!$C403=\"ROC\",'Enrollment Form'!$DS403=\"\"),\"N\",IF(AND('Enrollment Form'!$C403=\"Enroll\",'Enrollment Form'!$B403=\"Subscriber\",'Enrollment Form'!$CQ403=\"No\",'Enrollment Form'!$DS403=\"\"),\"N\",IF(AND('Enrollment Form'!$C403=\"Enroll\",'Enrollment Form'!$B403=\"Subscriber\",'Enrollment Form'!$CQ403=\"Yes\"),\"-\",\"Y\")))))","v":""},{"$f":"IF($B396=\"N\",\"\",IF(AND('Enrollment Form'!$C403=\"ROC\",'Enrollment Form'!$DT403<>\"\"),\"Y\",IF(AND('Enrollment Form'!$C403=\"ROC\",'Enrollment Form'!$DT403=\"\"),\"N\",IF(AND('Enrollment Form'!$C403=\"Enroll\",'Enrollment Form'!$B403=\"Subscriber\",'Enrollment Form'!$CQ403=\"No\",'Enrollment Form'!$DT403=\"\"),\"N\",IF(AND('Enrollment Form'!$C403=\"Enroll\",'Enrollment Form'!$B403=\"Subscriber\",'Enrollment Form'!$CQ403=\"Yes\"),\"-\",\"Y\")))))","v":""},{"$f":"IF('Enrollment Form'!AH403=\"\",\"\",IF(ISERROR(SEARCH(\".\",'Enrollment Form'!AH403,SEARCH(\"@\",'Enrollment Form'!AH403))),\"N\",\"Y\"))","v":""},{"$f":"IF(OR($B396=\"N\",'Enrollment Form'!$G403=\"\"),\"\",IF('Enrollment Form'!$B403<>\"Subscriber\",\"-\",IF(COUNTIF('Enrollment Form'!$AS403:$AT403,\"Yes\")=2,\"N\",\"Y\")))","v":""},{"$f":"IF(OR('Enrollment Form'!$CC403=\"\",'Enrollment Form'!$CC403=\"No\"),\"-\",IF(AND('Enrollment Form'!$CC403=\"Yes\",'Enrollment Form'!$CD403=\"\"),\"N\",\"Y\"))","v":"-"},{"$f":"IF(OR('Enrollment Form'!$CE403=\"\",'Enrollment Form'!$CE403=\"No\"),\"-\",IF(AND('Enrollment Form'!$CE403=\"Yes\",'Enrollment Form'!$CF403=\"\"),\"N\",\"Y\"))","v":"-"},{"$f":"IF(OR('Enrollment Form'!$CG403=\"\",'Enrollment Form'!$CG403=\"No\"),\"-\",IF(AND('Enrollment Form'!$CG403=\"Yes\",'Enrollment Form'!$CH403=\"\"),\"N\",\"Y\"))","v":"-"},{"$f":"IF(OR('Enrollment Form'!$CG403=\"\",'Enrollment Form'!$CG403=\"No\"),\"-\",IF(AND('Enrollment Form'!$CG403=\"Yes\",'Enrollment Form'!$CI403=\"\"),\"N\",\"Y\"))","v":"-"},{"$f":"IF('Enrollment Form'!B403<>\"Subscriber\",\"-\",IF(AND('Enrollment Form'!B403=\"Subscriber\",'Enrollment Form'!C403=\"Enroll\",'Enrollment Form'!AA403=\"\"),\"N\",\"Y\"))","v":"-"},{"$f":"IF(OR('Enrollment Form'!B403=\"Subscriber\",'Enrollment Form'!B403=\"\"),\"-\",IF('Enrollment Form'!BI403=\"\",\"N\",\"Y\"))","v":"-"},{"$f":"IF('Enrollment Form'!B403<>\"Subscriber\",\"-\",IF(AND('Enrollment Form'!B403=\"Subscriber\",'Enrollment Form'!G403=\"\"),\"N\",\"Y\"))","v":"-"},{"$f":"IF('Enrollment Form'!A403=\"\",\"\",IF('Enrollment Form'!B403=\"Subscriber\",\"-\",IF(AND('Enrollment Form'!B403<>\"Subscriber\",'Enrollment Form'!G403='Enrollment Form'!H403),\"N\",\"Y\")))","v":""},0]
[404,{"$f":"IF('Enrollment Form'!$A404<>\"\",\"Y\",\"N\")","v":"N"},{"$f":"IF(AND('Enrollment Form'!$B404=\"\",'Enrollment Form'!$C404<>\"\"),\"N\",IF($B397=\"N\",\"\",\"Y\"))","v":""},{"$f":"IF(OR($B397=\"N\",'Enrollment Form'!G404=\"\"),\"\",IF('Enrollment Form'!$B404<>\"Subscriber\",\"\",IF('Enrollment Form'!$G404='Enrollment Form'!$H404,\"Y\",\"N\")))","v":""},{"$f":"IF($B397=\"N\",\"\",IF(AND(COUNTIFS('Enrollment Form'!$H$11:$H$1000,'Enrollment Form'!$H404,'Enrollment Form'!$B$11:$B$1000,'Enrollment Form'!$B404)>1,'Enrollment Form'!$H404<>\"\"),\"N\",\"Y\"))","v":""},{"$f":"IF($B397=\"N\",\"\",IF(LEN('Enrollment Form'!$Y404)=0,\"\",IF(LEN('Enrollment Form'!$Y404)<>5,\"N\",\"Y\")))","v":""},{"$f":"IF($B397=\"N\",\"\",IF(LEN('Enrollment Form'!$AD404=0),\"\",IF(LEN('Enrollment Form'!$AD404)<>5,\"N\",\"Y\")))","v":""},{"$f":"IF($B397=\"N\",\"\",IF(LEN('Enrollment Form'!$BL404=0),\"\",IF(LEN('Enrollment Form'!$BL404)<>5,\"N\",\"Y\")))","v":""},{"$f":"IF($B397=\"N\",\"\",IF(LEN('Enrollment Form'!$AE404)=0,\"\",IF(LEN('Enrollment Form'!$AE404)<>10,\"N\",\"Y\")))","v":""},{"$f":"IF($B397=\"N\",\"\",IF(LEN('Enrollment Form'!$AF404)=0,\"\",IF(LEN('Enrollment Form'!$AF404)<>10,\"N\",\"Y\")))","v":""},{"$f":"IF('Enrollment Form'!$O404<>\"Graded\",\"-\",IF(AND('Enrollment Form'!$O404=\"Graded\",'Enrollment Form'!$AO404<>\"\"),\"Y\",\"N\"))","v":"-"},{"$f":"IF($B397=\"N\",\"\",IF(OR('Enrollment Form'!$B404<>\"Subscriber\",'Enrollment Form'!$C404=\"ROC\"),\"-\",IF(AND('Enrollment Form'!$B404=\"Subscriber\",'Enrollment Form'!$C404=\"Enroll\",'Enrollment Form'!$AJ404<>\"\"),\"Y\",\"N\")))","v":""},{"$f":"IF($B397=\"N\",\"\",IF(OR('Enrollment Form'!$B404<>\"Subscriber\",'Enrollment Form'!$C404=\"ROC\"),\"-\",IF(AND('Enrollment Form'!$B404=\"Subscriber\",'Enrollment Form'!$C404=\"Enroll\",'Enrollment Form'!$AK404<>\"\"),\"Y\",\"N\")))","v":""},{"$f":"IF($B397=\"N\",\"\",IF(OR('Enrollment Form'!$B404<>\"Subscriber\",'Enrollment Form'!$C404=\"ROC\"),\"-\",IF(AND('Enrollment Form'!$B404=\"Subscriber\",'Enrollment Form'!$C404=\"Enroll\",'Enrollment Form'!$AL404<>\"\"),\"Y\",\"N\")))","v":""},{"$f":"IF($B397=\"N\",\"\",IF(OR('Enrollment Form'!$B404<>\"Subscriber\",'Enrollment Form'!$C404=\"ROC\"),\"-\",IF(AND('Enrollment Form'!$B404=\"Subscriber\",'Enrollment Form'!$C404=\"Enroll\",'Enrollment Form'!$AM404<>\"\"),\"Y\",\"N\")))","v":""},{"$f":"IF($B397=\"N\",\"\",IF(OR('Enrollment Form'!$B404<>\"Subscriber\",'Enrollment Form'!$C404=\"ROC\"),\"-\",IF(AND('Enrollment Form'!$B404=\"Subscriber\",'Enrollment Form'!$C404=\"Enroll\",'Enrollment Form'!$AN404<>\"\"),\"Y\",\"N\")))","v":""},{"$f":"IF($B397=\"N\",\"\",IF(OR('Enrollment Form'!$B404<>\"Subscriber\",'Enrollment Form'!$C404=\"ROC\"),\"-\",IF(AND('Enrollment Form'!$B404=\"Subscriber\",'Enrollment Form'!$C404=\"Enroll\",'Enrollment Form'!$AP404<>\"\"),\"Y\",\"N\")))","v":""},{"$f":"IF($B397=\"N\",\"\",IF($Q397=\"-\",\"-\",IF(AND($Q397=\"Y\",'Enrollment Form'!$AP404=\"No\"),\"-\",IF(AND($Q397=\"Y\",'Enrollment Form'!$AP404=\"Yes\",'Enrollment Form'!$AQ404<>\"\"),\"Y\",\"N\"))))","v":""},{"$f":"IF($B397=\"N\",\"\",IF(OR('Enrollment Form'!$B404<>\"Subscriber\",'Enrollment Form'!$C404=\"ROC\"),\"-\",IF(AND('Enrollment Form'!$B404=\"Subscriber\",'Enrollment Form'!$C404=\"Enroll\",'Enrollment Form'!$CO404<>\"\"),\"Y\",\"N\")))","v":""},{"$f":"IF($B397=\"N\",\"\",IF($S397=\"-\",\"-\",IF(AND($S397=\"Y\",'Enrollment Form'!$CO404=\"No\"),\"-\",IF(AND($S397=\"Y\",'Enrollment Form'!$CO404=\"Yes\",'Enrollment Form'!$CP404<>\"\"),\"Y\",\"N\"))))","v":""},{"$f":"IF(OR('Enrollment Form'!$AV404=\"Yes\",'Enrollment Form'!$AV404=\"\"),\"-\",IF(AND('Enrollment Form'!$AV404=\"No\",ISERROR(FIND(\"HMO\",VLOOKUP('Enrollment Form'!G404,'Enrollment Form'!H$11:J$1000,3,FALSE),1))=FALSE,COUNTA('Enrollment Form'!$AW404:$AZ404)=4),\"Y\",\"N\"))","v":"-"},{"$f":"IF($B397=\"N\",\"\",IF('Enrollment Form'!$B404=\"Subscriber\",\"-\",IF(COUNTA('Enrollment Form'!$BE404,'Enrollment Form'!$BG404)=2,\"Y\",\"N\")))","v":""},{"$f":"IF($B397=\"N\",\"\",IF(OR('Enrollment Form'!$AU404=\"\",'Enrollment Form'!$AU404=\"No\"),\"-\",IF(AND('Enrollment Form'!$AU404=\"Yes\",COUNTA('Enrollment Form'!$CK404)=1),\"Y\",\"N\")))","v":""},{"$f":"IF(OR('Enrollment Form'!$CK404=\"\",'Enrollment Form'!$CK404=\"No\"),\"-\",IF(COUNTA('Enrollment Form'!$CM404:$CN404)=2,\"Y\",\"N\"))","v":"-"},{"$f":"IF($B397=\"N\",\"\",IF(COUNTIF('Enrollment Form'!$CZ404:$DO404,\"Other\")=COUNTA('Enrollment Form'!$DF404,'Enrollment Form'!$DA404,'Enrollment Form'!$DK404,'Enrollment Form'!$DP404),\"Y\",\"N\"))","v":""},{"$f":"IF($B397=\"N\",\"\",IF(OR('Enrollment Form'!B404<>\"Subscriber\",'Enrollment Form'!C404=\"ROC\",COUNTIF('Enrollment Form'!AS404:AT404,\"Yes\")>=1),\"-\",IF(AND('Enrollment Form'!C404=\"Enroll\",COUNTIF('Enrollment Form'!AS404:AT404,\"No\")=2,'Enrollment Form'!AU404=\"\"),\"N\",\"Y\")))","v":""},{"$f":"IF(OR(B397=\"N\",'Enrollment Form'!B404<>\"Subscriber\",'Enrollment Form'!C404=\"ROC\",'Enrollment Form'!O404<>\"Multiple of Salary\"),\"-\",IF(COUNTA('Enrollment Form'!T404:U404)<2,\"N\",\"Y\"))","v":"-"},{"$f":"IF(B397=\"N\",\"\",IF(OR('Enrollment Form'!C404=\"ROC\",'Enrollment Form'!B404<>\"Subscriber\",'Enrollment Form'!O404=\"Waive\",'Enrollment Form'!O404=\"\"),\"-\",IF('Enrollment Form'!P404=\"\",\"N\",\"Y\")))","v":""},{"$f":"IF($B397=\"N\",\"\",IF(AND('Enrollment Form'!$C404=\"ROC\",'Enrollment Form'!$DS404<>\"\"),\"Y\",IF(AND('Enrollment Form'!$C404=\"ROC\",'Enrollment Form'!$DS404=\"\"),\"N\",IF(AND('Enrollment Form'!$C404=\"Enroll\",'Enrollment Form'!$B404=\"Subscriber\",'Enrollment Form'!$CQ404=\"No\",'Enrollment Form'!$DS404=\"\"),\"N\",IF(AND('Enrollment Form'!$C404=\"Enroll\",'Enrollment Form'!$B404=\"Subscriber\",'Enrollment Form'!$CQ404=\"Yes\"),\"-\",\"Y\")))))","v":""},{"$f":"IF($B397=\"N\",\"\",IF(AND('Enrollment Form'!$C404=\"ROC\",'Enrollment Form'!$DT404<>\"\"),\"Y\",IF(AND('Enrollment Form'!$C404=\"ROC\",'Enrollment Form'!$DT404=\"\"),\"N\",IF(AND('Enrollment Form'!$C404=\"Enroll\",'Enrollment Form'!$B404=\"Subscriber\",'Enrollment Form'!$CQ404=\"No\",'Enrollment Form'!$DT404=\"\"),\"N\",IF(AND('Enrollment Form'!$C404=\"Enroll\",'Enrollment Form'!$B404=\"Subscriber\",'Enrollment Form'!$CQ404=\"Yes\"),\"-\",\"Y\")))))","v":""},{"$f":"IF('Enrollment Form'!AH404=\"\",\"\",IF(ISERROR(SEARCH(\".\",'Enrollment Form'!AH404,SEARCH(\"@\",'Enrollment Form'!AH404))),\"N\",\"Y\"))","v":""},{"$f":"IF(OR($B397=\"N\",'Enrollment Form'!$G404=\"\"),\"\",IF('Enrollment Form'!$B404<>\"Subscriber\",\"-\",IF(COUNTIF('Enrollment Form'!$AS404:$AT404,\"Yes\")=2,\"N\",\"Y\")))","v":""},{"$f":"IF(OR('Enrollment Form'!$CC404=\"\",'Enrollment Form'!$CC404=\"No\"),\"-\",IF(AND('Enrollment Form'!$CC404=\"Yes\",'Enrollment Form'!$CD404=\"\"),\"N\",\"Y\"))","v":"-"},{"$f":"IF(OR('Enrollment Form'!$CE404=\"\",'Enrollment Form'!$CE404=\"No\"),\"-\",IF(AND('Enrollment Form'!$CE404=\"Yes\",'Enrollment Form'!$CF404=\"\"),\"N\",\"Y\"))","v":"-"},{"$f":"IF(OR('Enrollment Form'!$CG404=\"\",'Enrollment Form'!$CG404=\"No\"),\"-\",IF(AND('Enrollment Form'!$CG404=\"Yes\",'Enrollment Form'!$CH404=\"\"),\"N\",\"Y\"))","v":"-"},{"$f":"IF(OR('Enrollment Form'!$CG404=\"\",'Enrollment Form'!$CG404=\"No\"),\"-\",IF(AND('Enrollment Form'!$CG404=\"Yes\",'Enrollment Form'!$CI404=\"\"),\"N\",\"Y\"))","v":"-"},{"$f":"IF('Enrollment Form'!B404<>\"Subscriber\",\"-\",IF(AND('Enrollment Form'!B404=\"Subscriber\",'Enrollment Form'!C404=\"Enroll\",'Enrollment Form'!AA404=\"\"),\"N\",\"Y\"))","v":"-"},{"$f":"IF(OR('Enrollment Form'!B404=\"Subscriber\",'Enrollment Form'!B404=\"\"),\"-\",IF('Enrollment Form'!BI404=\"\",\"N\",\"Y\"))","v":"-"},{"$f":"IF('Enrollment Form'!B404<>\"Subscriber\",\"-\",IF(AND('Enrollment Form'!B404=\"Subscriber\",'Enrollment Form'!G404=\"\"),\"N\",\"Y\"))","v":"-"},{"$f":"IF('Enrollment Form'!A404=\"\",\"\",IF('Enrollment Form'!B404=\"Subscriber\",\"-\",IF(AND('Enrollment Form'!B404<>\"Subscriber\",'Enrollment Form'!G404='Enrollment Form'!H404),\"N\",\"Y\")))","v":""},0]
[405,{"$f":"IF('Enrollment Form'!$A405<>\"\",\"Y\",\"N\")","v":"N"},{"$f":"IF(AND('Enrollment Form'!$B405=\"\",'Enrollment Form'!$C405<>\"\"),\"N\",IF($B398=\"N\",\"\",\"Y\"))","v":""},{"$f":"IF(OR($B398=\"N\",'Enrollment Form'!G405=\"\"),\"\",IF('Enrollment Form'!$B405<>\"Subscriber\",\"\",IF('Enrollment Form'!$G405='Enrollment Form'!$H405,\"Y\",\"N\")))","v":""},{"$f":"IF($B398=\"N\",\"\",IF(AND(COUNTIFS('Enrollment Form'!$H$11:$H$1000,'Enrollment Form'!$H405,'Enrollment Form'!$B$11:$B$1000,'Enrollment Form'!$B405)>1,'Enrollment Form'!$H405<>\"\"),\"N\",\"Y\"))","v":""},{"$f":"IF($B398=\"N\",\"\",IF(LEN('Enrollment Form'!$Y405)=0,\"\",IF(LEN('Enrollment Form'!$Y405)<>5,\"N\",\"Y\")))","v":""},{"$f":"IF($B398=\"N\",\"\",IF(LEN('Enrollment Form'!$AD405=0),\"\",IF(LEN('Enrollment Form'!$AD405)<>5,\"N\",\"Y\")))","v":""},{"$f":"IF($B398=\"N\",\"\",IF(LEN('Enrollment Form'!$BL405=0),\"\",IF(LEN('Enrollment Form'!$BL405)<>5,\"N\",\"Y\")))","v":""},{"$f":"IF($B398=\"N\",\"\",IF(LEN('Enrollment Form'!$AE405)=0,\"\",IF(LEN('Enrollment Form'!$AE405)<>10,\"N\",\"Y\")))","v":""},{"$f":"IF($B398=\"N\",\"\",IF(LEN('Enrollment Form'!$AF405)=0,\"\",IF(LEN('Enrollment Form'!$AF405)<>10,\"N\",\"Y\")))","v":""},{"$f":"IF('Enrollment Form'!$O405<>\"Graded\",\"-\",IF(AND('Enrollment Form'!$O405=\"Graded\",'Enrollment Form'!$AO405<>\"\"),\"Y\",\"N\"))","v":"-"},{"$f":"IF($B398=\"N\",\"\",IF(OR('Enrollment Form'!$B405<>\"Subscriber\",'Enrollment Form'!$C405=\"ROC\"),\"-\",IF(AND('Enrollment Form'!$B405=\"Subscriber\",'Enrollment Form'!$C405=\"Enroll\",'Enrollment Form'!$AJ405<>\"\"),\"Y\",\"N\")))","v":""},{"$f":"IF($B398=\"N\",\"\",IF(OR('Enrollment Form'!$B405<>\"Subscriber\",'Enrollment Form'!$C405=\"ROC\"),\"-\",IF(AND('Enrollment Form'!$B405=\"Subscriber\",'Enrollment Form'!$C405=\"Enroll\",'Enrollment Form'!$AK405<>\"\"),\"Y\",\"N\")))","v":""},{"$f":"IF($B398=\"N\",\"\",IF(OR('Enrollment Form'!$B405<>\"Subscriber\",'Enrollment Form'!$C405=\"ROC\"),\"-\",IF(AND('Enrollment Form'!$B405=\"Subscriber\",'Enrollment Form'!$C405=\"Enroll\",'Enrollment Form'!$AL405<>\"\"),\"Y\",\"N\")))","v":""},{"$f":"IF($B398=\"N\",\"\",IF(OR('Enrollment Form'!$B405<>\"Subscriber\",'Enrollment Form'!$C405=\"ROC\"),\"-\",IF(AND('Enrollment Form'!$B405=\"Subscriber\",'Enrollment Form'!$C405=\"Enroll\",'Enrollment Form'!$AM405<>\"\"),\"Y\",\"N\")))","v":""},{"$f":"IF($B398=\"N\",\"\",IF(OR('Enrollment Form'!$B405<>\"Subscriber\",'Enrollment Form'!$C405=\"ROC\"),\"-\",IF(AND('Enrollment Form'!$B405=\"Subscriber\",'Enrollment Form'!$C405=\"Enroll\",'Enrollment Form'!$AN405<>\"\"),\"Y\",\"N\")))","v":""},{"$f":"IF($B398=\"N\",\"\",IF(OR('Enrollment Form'!$B405<>\"Subscriber\",'Enrollment Form'!$C405=\"ROC\"),\"-\",IF(AND('Enrollment Form'!$B405=\"Subscriber\",'Enrollment Form'!$C405=\"Enroll\",'Enrollment Form'!$AP405<>\"\"),\"Y\",\"N\")))","v":""},{"$f":"IF($B398=\"N\",\"\",IF($Q398=\"-\",\"-\",IF(AND($Q398=\"Y\",'Enrollment Form'!$AP405=\"No\"),\"-\",IF(AND($Q398=\"Y\",'Enrollment Form'!$AP405=\"Yes\",'Enrollment Form'!$AQ405<>\"\"),\"Y\",\"N\"))))","v":""},{"$f":"IF($B398=\"N\",\"\",IF(OR('Enrollment Form'!$B405<>\"Subscriber\",'Enrollment Form'!$C405=\"ROC\"),\"-\",IF(AND('Enrollment Form'!$B405=\"Subscriber\",'Enrollment Form'!$C405=\"Enroll\",'Enrollment Form'!$CO405<>\"\"),\"Y\",\"N\")))","v":""},{"$f":"IF($B398=\"N\",\"\",IF($S398=\"-\",\"-\",IF(AND($S398=\"Y\",'Enrollment Form'!$CO405=\"No\"),\"-\",IF(AND($S398=\"Y\",'Enrollment Form'!$CO405=\"Yes\",'Enrollment Form'!$CP405<>\"\"),\"Y\",\"N\"))))","v":""},{"$f":"IF(OR('Enrollment Form'!$AV405=\"Yes\",'Enrollment Form'!$AV405=\"\"),\"-\",IF(AND('Enrollment Form'!$AV405=\"No\",ISERROR(FIND(\"HMO\",VLOOKUP('Enrollment Form'!G405,'Enrollment Form'!H$11:J$1000,3,FALSE),1))=FALSE,COUNTA('Enrollment Form'!$AW405:$AZ405)=4),\"Y\",\"N\"))","v":"-"},{"$f":"IF($B398=\"N\",\"\",IF('Enrollment Form'!$B405=\"Subscriber\",\"-\",IF(COUNTA('Enrollment Form'!$BE405,'Enrollment Form'!$BG405)=2,\"Y\",\"N\")))","v":""},{"$f":"IF($B398=\"N\",\"\",IF(OR('Enrollment Form'!$AU405=\"\",'Enrollment Form'!$AU405=\"No\"),\"-\",IF(AND('Enrollment Form'!$AU405=\"Yes\",COUNTA('Enrollment Form'!$CK405)=1),\"Y\",\"N\")))","v":""},{"$f":"IF(OR('Enrollment Form'!$CK405=\"\",'Enrollment Form'!$CK405=\"No\"),\"-\",IF(COUNTA('Enrollment Form'!$CM405:$CN405)=2,\"Y\",\"N\"))","v":"-"},{"$f":"IF($B398=\"N\",\"\",IF(COUNTIF('Enrollment Form'!$CZ405:$DO405,\"Other\")=COUNTA('Enrollment Form'!$DF405,'Enrollment Form'!$DA405,'Enrollment Form'!$DK405,'Enrollment Form'!$DP405),\"Y\",\"N\"))","v":""},{"$f":"IF($B398=\"N\",\"\",IF(OR('Enrollment Form'!B405<>\"Subscriber\",'Enrollment Form'!C405=\"ROC\",COUNTIF('Enrollment Form'!AS405:AT405,\"Yes\")>=1),\"-\",IF(AND('Enrollment Form'!C405=\"Enroll\",COUNTIF('Enrollment Form'!AS405:AT405,\"No\")=2,'Enrollment Form'!AU405=\"\"),\"N\",\"Y\")))","v":""},{"$f":"IF(OR(B398=\"N\",'Enrollment Form'!B405<>\"Subscriber\",'Enrollment Form'!C405=\"ROC\",'Enrollment Form'!O405<>\"Multiple of Salary\"),\"-\",IF(COUNTA('Enrollment Form'!T405:U405)<2,\"N\",\"Y\"))","v":"-"},{"$f":"IF(B398=\"N\",\"\",IF(OR('Enrollment Form'!C405=\"ROC\",'Enrollment Form'!B405<>\"Subscriber\",'Enrollment Form'!O405=\"Waive\",'Enrollment Form'!O405=\"\"),\"-\",IF('Enrollment Form'!P405=\"\",\"N\",\"Y\")))","v":""},{"$f":"IF($B398=\"N\",\"\",IF(AND('Enrollment Form'!$C405=\"ROC\",'Enrollment Form'!$DS405<>\"\"),\"Y\",IF(AND('Enrollment Form'!$C405=\"ROC\",'Enrollment Form'!$DS405=\"\"),\"N\",IF(AND('Enrollment Form'!$C405=\"Enroll\",'Enrollment Form'!$B405=\"Subscriber\",'Enrollment Form'!$CQ405=\"No\",'Enrollment Form'!$DS405=\"\"),\"N\",IF(AND('Enrollment Form'!$C405=\"Enroll\",'Enrollment Form'!$B405=\"Subscriber\",'Enrollment Form'!$CQ405=\"Yes\"),\"-\",\"Y\")))))","v":""},{"$f":"IF($B398=\"N\",\"\",IF(AND('Enrollment Form'!$C405=\"ROC\",'Enrollment Form'!$DT405<>\"\"),\"Y\",IF(AND('Enrollment Form'!$C405=\"ROC\",'Enrollment Form'!$DT405=\"\"),\"N\",IF(AND('Enrollment Form'!$C405=\"Enroll\",'Enrollment Form'!$B405=\"Subscriber\",'Enrollment Form'!$CQ405=\"No\",'Enrollment Form'!$DT405=\"\"),\"N\",IF(AND('Enrollment Form'!$C405=\"Enroll\",'Enrollment Form'!$B405=\"Subscriber\",'Enrollment Form'!$CQ405=\"Yes\"),\"-\",\"Y\")))))","v":""},{"$f":"IF('Enrollment Form'!AH405=\"\",\"\",IF(ISERROR(SEARCH(\".\",'Enrollment Form'!AH405,SEARCH(\"@\",'Enrollment Form'!AH405))),\"N\",\"Y\"))","v":""},{"$f":"IF(OR($B398=\"N\",'Enrollment Form'!$G405=\"\"),\"\",IF('Enrollment Form'!$B405<>\"Subscriber\",\"-\",IF(COUNTIF('Enrollment Form'!$AS405:$AT405,\"Yes\")=2,\"N\",\"Y\")))","v":""},{"$f":"IF(OR('Enrollment Form'!$CC405=\"\",'Enrollment Form'!$CC405=\"No\"),\"-\",IF(AND('Enrollment Form'!$CC405=\"Yes\",'Enrollment Form'!$CD405=\"\"),\"N\",\"Y\"))","v":"-"},{"$f":"IF(OR('Enrollment Form'!$CE405=\"\",'Enrollment Form'!$CE405=\"No\"),\"-\",IF(AND('Enrollment Form'!$CE405=\"Yes\",'Enrollment Form'!$CF405=\"\"),\"N\",\"Y\"))","v":"-"},{"$f":"IF(OR('Enrollment Form'!$CG405=\"\",'Enrollment Form'!$CG405=\"No\"),\"-\",IF(AND('Enrollment Form'!$CG405=\"Yes\",'Enrollment Form'!$CH405=\"\"),\"N\",\"Y\"))","v":"-"},{"$f":"IF(OR('Enrollment Form'!$CG405=\"\",'Enrollment Form'!$CG405=\"No\"),\"-\",IF(AND('Enrollment Form'!$CG405=\"Yes\",'Enrollment Form'!$CI405=\"\"),\"N\",\"Y\"))","v":"-"},{"$f":"IF('Enrollment Form'!B405<>\"Subscriber\",\"-\",IF(AND('Enrollment Form'!B405=\"Subscriber\",'Enrollment Form'!C405=\"Enroll\",'Enrollment Form'!AA405=\"\"),\"N\",\"Y\"))","v":"-"},{"$f":"IF(OR('Enrollment Form'!B405=\"Subscriber\",'Enrollment Form'!B405=\"\"),\"-\",IF('Enrollment Form'!BI405=\"\",\"N\",\"Y\"))","v":"-"},{"$f":"IF('Enrollment Form'!B405<>\"Subscriber\",\"-\",IF(AND('Enrollment Form'!B405=\"Subscriber\",'Enrollment Form'!G405=\"\"),\"N\",\"Y\"))","v":"-"},{"$f":"IF('Enrollment Form'!A405=\"\",\"\",IF('Enrollment Form'!B405=\"Subscriber\",\"-\",IF(AND('Enrollment Form'!B405<>\"Subscriber\",'Enrollment Form'!G405='Enrollment Form'!H405),\"N\",\"Y\")))","v":""},0]
[406,{"$f":"IF('Enrollment Form'!$A406<>\"\",\"Y\",\"N\")","v":"N"},{"$f":"IF(AND('Enrollment Form'!$B406=\"\",'Enrollment Form'!$C406<>\"\"),\"N\",IF($B399=\"N\",\"\",\"Y\"))","v":""},{"$f":"IF(OR($B399=\"N\",'Enrollment Form'!G406=\"\"),\"\",IF('Enrollment Form'!$B406<>\"Subscriber\",\"\",IF('Enrollment Form'!$G406='Enrollment Form'!$H406,\"Y\",\"N\")))","v":""},{"$f":"IF($B399=\"N\",\"\",IF(AND(COUNTIFS('Enrollment Form'!$H$11:$H$1000,'Enrollment Form'!$H406,'Enrollment Form'!$B$11:$B$1000,'Enrollment Form'!$B406)>1,'Enrollment Form'!$H406<>\"\"),\"N\",\"Y\"))","v":""},{"$f":"IF($B399=\"N\",\"\",IF(LEN('Enrollment Form'!$Y406)=0,\"\",IF(LEN('Enrollment Form'!$Y406)<>5,\"N\",\"Y\")))","v":""},{"$f":"IF($B399=\"N\",\"\",IF(LEN('Enrollment Form'!$AD406=0),\"\",IF(LEN('Enrollment Form'!$AD406)<>5,\"N\",\"Y\")))","v":""},{"$f":"IF($B399=\"N\",\"\",IF(LEN('Enrollment Form'!$BL406=0),\"\",IF(LEN('Enrollment Form'!$BL406)<>5,\"N\",\"Y\")))","v":""},{"$f":"IF($B399=\"N\",\"\",IF(LEN('Enrollment Form'!$AE406)=0,\"\",IF(LEN('Enrollment Form'!$AE406)<>10,\"N\",\"Y\")))","v":""},{"$f":"IF($B399=\"N\",\"\",IF(LEN('Enrollment Form'!$AF406)=0,\"\",IF(LEN('Enrollment Form'!$AF406)<>10,\"N\",\"Y\")))","v":""},{"$f":"IF('Enrollment Form'!$O406<>\"Graded\",\"-\",IF(AND('Enrollment Form'!$O406=\"Graded\",'Enrollment Form'!$AO406<>\"\"),\"Y\",\"N\"))","v":"-"},{"$f":"IF($B399=\"N\",\"\",IF(OR('Enrollment Form'!$B406<>\"Subscriber\",'Enrollment Form'!$C406=\"ROC\"),\"-\",IF(AND('Enrollment Form'!$B406=\"Subscriber\",'Enrollment Form'!$C406=\"Enroll\",'Enrollment Form'!$AJ406<>\"\"),\"Y\",\"N\")))","v":""},{"$f":"IF($B399=\"N\",\"\",IF(OR('Enrollment Form'!$B406<>\"Subscriber\",'Enrollment Form'!$C406=\"ROC\"),\"-\",IF(AND('Enrollment Form'!$B406=\"Subscriber\",'Enrollment Form'!$C406=\"Enroll\",'Enrollment Form'!$AK406<>\"\"),\"Y\",\"N\")))","v":""},{"$f":"IF($B399=\"N\",\"\",IF(OR('Enrollment Form'!$B406<>\"Subscriber\",'Enrollment Form'!$C406=\"ROC\"),\"-\",IF(AND('Enrollment Form'!$B406=\"Subscriber\",'Enrollment Form'!$C406=\"Enroll\",'Enrollment Form'!$AL406<>\"\"),\"Y\",\"N\")))","v":""},{"$f":"IF($B399=\"N\",\"\",IF(OR('Enrollment Form'!$B406<>\"Subscriber\",'Enrollment Form'!$C406=\"ROC\"),\"-\",IF(AND('Enrollment Form'!$B406=\"Subscriber\",'Enrollment Form'!$C406=\"Enroll\",'Enrollment Form'!$AM406<>\"\"),\"Y\",\"N\")))","v":""},{"$f":"IF($B399=\"N\",\"\",IF(OR('Enrollment Form'!$B406<>\"Subscriber\",'Enrollment Form'!$C406=\"ROC\"),\"-\",IF(AND('Enrollment Form'!$B406=\"Subscriber\",'Enrollment Form'!$C406=\"Enroll\",'Enrollment Form'!$AN406<>\"\"),\"Y\",\"N\")))","v":""},{"$f":"IF($B399=\"N\",\"\",IF(OR('Enrollment Form'!$B406<>\"Subscriber\",'Enrollment Form'!$C406=\"ROC\"),\"-\",IF(AND('Enrollment Form'!$B406=\"Subscriber\",'Enrollment Form'!$C406=\"Enroll\",'Enrollment Form'!$AP406<>\"\"),\"Y\",\"N\")))","v":""},{"$f":"IF($B399=\"N\",\"\",IF($Q399=\"-\",\"-\",IF(AND($Q399=\"Y\",'Enrollment Form'!$AP406=\"No\"),\"-\",IF(AND($Q399=\"Y\",'Enrollment Form'!$AP406=\"Yes\",'Enrollment Form'!$AQ406<>\"\"),\"Y\",\"N\"))))","v":""},{"$f":"IF($B399=\"N\",\"\",IF(OR('Enrollment Form'!$B406<>\"Subscriber\",'Enrollment Form'!$C406=\"ROC\"),\"-\",IF(AND('Enrollment Form'!$B406=\"Subscriber\",'Enrollment Form'!$C406=\"Enroll\",'Enrollment Form'!$CO406<>\"\"),\"Y\",\"N\")))","v":""},{"$f":"IF($B399=\"N\",\"\",IF($S399=\"-\",\"-\",IF(AND($S399=\"Y\",'Enrollment Form'!$CO406=\"No\"),\"-\",IF(AND($S399=\"Y\",'Enrollment Form'!$CO406=\"Yes\",'Enrollment Form'!$CP406<>\"\"),\"Y\",\"N\"))))","v":""},{"$f":"IF(OR('Enrollment Form'!$AV406=\"Yes\",'Enrollment Form'!$AV406=\"\"),\"-\",IF(AND('Enrollment Form'!$AV406=\"No\",ISERROR(FIND(\"HMO\",VLOOKUP('Enrollment Form'!G406,'Enrollment Form'!H$11:J$1000,3,FALSE),1))=FALSE,COUNTA('Enrollment Form'!$AW406:$AZ406)=4),\"Y\",\"N\"))","v":"-"},{"$f":"IF($B399=\"N\",\"\",IF('Enrollment Form'!$B406=\"Subscriber\",\"-\",IF(COUNTA('Enrollment Form'!$BE406,'Enrollment Form'!$BG406)=2,\"Y\",\"N\")))","v":""},{"$f":"IF($B399=\"N\",\"\",IF(OR('Enrollment Form'!$AU406=\"\",'Enrollment Form'!$AU406=\"No\"),\"-\",IF(AND('Enrollment Form'!$AU406=\"Yes\",COUNTA('Enrollment Form'!$CK406)=1),\"Y\",\"N\")))","v":""},{"$f":"IF(OR('Enrollment Form'!$CK406=\"\",'Enrollment Form'!$CK406=\"No\"),\"-\",IF(COUNTA('Enrollment Form'!$CM406:$CN406)=2,\"Y\",\"N\"))","v":"-"},{"$f":"IF($B399=\"N\",\"\",IF(COUNTIF('Enrollment Form'!$CZ406:$DO406,\"Other\")=COUNTA('Enrollment Form'!$DF406,'Enrollment Form'!$DA406,'Enrollment Form'!$DK406,'Enrollment Form'!$DP406),\"Y\",\"N\"))","v":""},{"$f":"IF($B399=\"N\",\"\",IF(OR('Enrollment Form'!B406<>\"Subscriber\",'Enrollment Form'!C406=\"ROC\",COUNTIF('Enrollment Form'!AS406:AT406,\"Yes\")>=1),\"-\",IF(AND('Enrollment Form'!C406=\"Enroll\",COUNTIF('Enrollment Form'!AS406:AT406,\"No\")=2,'Enrollment Form'!AU406=\"\"),\"N\",\"Y\")))","v":""},{"$f":"IF(OR(B399=\"N\",'Enrollment Form'!B406<>\"Subscriber\",'Enrollment Form'!C406=\"ROC\",'Enrollment Form'!O406<>\"Multiple of Salary\"),\"-\",IF(COUNTA('Enrollment Form'!T406:U406)<2,\"N\",\"Y\"))","v":"-"},{"$f":"IF(B399=\"N\",\"\",IF(OR('Enrollment Form'!C406=\"ROC\",'Enrollment Form'!B406<>\"Subscriber\",'Enrollment Form'!O406=\"Waive\",'Enrollment Form'!O406=\"\"),\"-\",IF('Enrollment Form'!P406=\"\",\"N\",\"Y\")))","v":""},{"$f":"IF($B399=\"N\",\"\",IF(AND('Enrollment Form'!$C406=\"ROC\",'Enrollment Form'!$DS406<>\"\"),\"Y\",IF(AND('Enrollment Form'!$C406=\"ROC\",'Enrollment Form'!$DS406=\"\"),\"N\",IF(AND('Enrollment Form'!$C406=\"Enroll\",'Enrollment Form'!$B406=\"Subscriber\",'Enrollment Form'!$CQ406=\"No\",'Enrollment Form'!$DS406=\"\"),\"N\",IF(AND('Enrollment Form'!$C406=\"Enroll\",'Enrollment Form'!$B406=\"Subscriber\",'Enrollment Form'!$CQ406=\"Yes\"),\"-\",\"Y\")))))","v":""},{"$f":"IF($B399=\"N\",\"\",IF(AND('Enrollment Form'!$C406=\"ROC\",'Enrollment Form'!$DT406<>\"\"),\"Y\",IF(AND('Enrollment Form'!$C406=\"ROC\",'Enrollment Form'!$DT406=\"\"),\"N\",IF(AND('Enrollment Form'!$C406=\"Enroll\",'Enrollment Form'!$B406=\"Subscriber\",'Enrollment Form'!$CQ406=\"No\",'Enrollment Form'!$DT406=\"\"),\"N\",IF(AND('Enrollment Form'!$C406=\"Enroll\",'Enrollment Form'!$B406=\"Subscriber\",'Enrollment Form'!$CQ406=\"Yes\"),\"-\",\"Y\")))))","v":""},{"$f":"IF('Enrollment Form'!AH406=\"\",\"\",IF(ISERROR(SEARCH(\".\",'Enrollment Form'!AH406,SEARCH(\"@\",'Enrollment Form'!AH406))),\"N\",\"Y\"))","v":""},{"$f":"IF(OR($B399=\"N\",'Enrollment Form'!$G406=\"\"),\"\",IF('Enrollment Form'!$B406<>\"Subscriber\",\"-\",IF(COUNTIF('Enrollment Form'!$AS406:$AT406,\"Yes\")=2,\"N\",\"Y\")))","v":""},{"$f":"IF(OR('Enrollment Form'!$CC406=\"\",'Enrollment Form'!$CC406=\"No\"),\"-\",IF(AND('Enrollment Form'!$CC406=\"Yes\",'Enrollment Form'!$CD406=\"\"),\"N\",\"Y\"))","v":"-"},{"$f":"IF(OR('Enrollment Form'!$CE406=\"\",'Enrollment Form'!$CE406=\"No\"),\"-\",IF(AND('Enrollment Form'!$CE406=\"Yes\",'Enrollment Form'!$CF406=\"\"),\"N\",\"Y\"))","v":"-"},{"$f":"IF(OR('Enrollment Form'!$CG406=\"\",'Enrollment Form'!$CG406=\"No\"),\"-\",IF(AND('Enrollment Form'!$CG406=\"Yes\",'Enrollment Form'!$CH406=\"\"),\"N\",\"Y\"))","v":"-"},{"$f":"IF(OR('Enrollment Form'!$CG406=\"\",'Enrollment Form'!$CG406=\"No\"),\"-\",IF(AND('Enrollment Form'!$CG406=\"Yes\",'Enrollment Form'!$CI406=\"\"),\"N\",\"Y\"))","v":"-"},{"$f":"IF('Enrollment Form'!B406<>\"Subscriber\",\"-\",IF(AND('Enrollment Form'!B406=\"Subscriber\",'Enrollment Form'!C406=\"Enroll\",'Enrollment Form'!AA406=\"\"),\"N\",\"Y\"))","v":"-"},{"$f":"IF(OR('Enrollment Form'!B406=\"Subscriber\",'Enrollment Form'!B406=\"\"),\"-\",IF('Enrollment Form'!BI406=\"\",\"N\",\"Y\"))","v":"-"},{"$f":"IF('Enrollment Form'!B406<>\"Subscriber\",\"-\",IF(AND('Enrollment Form'!B406=\"Subscriber\",'Enrollment Form'!G406=\"\"),\"N\",\"Y\"))","v":"-"},{"$f":"IF('Enrollment Form'!A406=\"\",\"\",IF('Enrollment Form'!B406=\"Subscriber\",\"-\",IF(AND('Enrollment Form'!B406<>\"Subscriber\",'Enrollment Form'!G406='Enrollment Form'!H406),\"N\",\"Y\")))","v":""},0]
[407,{"$f":"IF('Enrollment Form'!$A407<>\"\",\"Y\",\"N\")","v":"N"},{"$f":"IF(AND('Enrollment Form'!$B407=\"\",'Enrollment Form'!$C407<>\"\"),\"N\",IF($B400=\"N\",\"\",\"Y\"))","v":""},{"$f":"IF(OR($B400=\"N\",'Enrollment Form'!G407=\"\"),\"\",IF('Enrollment Form'!$B407<>\"Subscriber\",\"\",IF('Enrollment Form'!$G407='Enrollment Form'!$H407,\"Y\",\"N\")))","v":""},{"$f":"IF($B400=\"N\",\"\",IF(AND(COUNTIFS('Enrollment Form'!$H$11:$H$1000,'Enrollment Form'!$H407,'Enrollment Form'!$B$11:$B$1000,'Enrollment Form'!$B407)>1,'Enrollment Form'!$H407<>\"\"),\"N\",\"Y\"))","v":""},{"$f":"IF($B400=\"N\",\"\",IF(LEN('Enrollment Form'!$Y407)=0,\"\",IF(LEN('Enrollment Form'!$Y407)<>5,\"N\",\"Y\")))","v":""},{"$f":"IF($B400=\"N\",\"\",IF(LEN('Enrollment Form'!$AD407=0),\"\",IF(LEN('Enrollment Form'!$AD407)<>5,\"N\",\"Y\")))","v":""},{"$f":"IF($B400=\"N\",\"\",IF(LEN('Enrollment Form'!$BL407=0),\"\",IF(LEN('Enrollment Form'!$BL407)<>5,\"N\",\"Y\")))","v":""},{"$f":"IF($B400=\"N\",\"\",IF(LEN('Enrollment Form'!$AE407)=0,\"\",IF(LEN('Enrollment Form'!$AE407)<>10,\"N\",\"Y\")))","v":""},{"$f":"IF($B400=\"N\",\"\",IF(LEN('Enrollment Form'!$AF407)=0,\"\",IF(LEN('Enrollment Form'!$AF407)<>10,\"N\",\"Y\")))","v":""},{"$f":"IF('Enrollment Form'!$O407<>\"Graded\",\"-\",IF(AND('Enrollment Form'!$O407=\"Graded\",'Enrollment Form'!$AO407<>\"\"),\"Y\",\"N\"))","v":"-"},{"$f":"IF($B400=\"N\",\"\",IF(OR('Enrollment Form'!$B407<>\"Subscriber\",'Enrollment Form'!$C407=\"ROC\"),\"-\",IF(AND('Enrollment Form'!$B407=\"Subscriber\",'Enrollment Form'!$C407=\"Enroll\",'Enrollment Form'!$AJ407<>\"\"),\"Y\",\"N\")))","v":""},{"$f":"IF($B400=\"N\",\"\",IF(OR('Enrollment Form'!$B407<>\"Subscriber\",'Enrollment Form'!$C407=\"ROC\"),\"-\",IF(AND('Enrollment Form'!$B407=\"Subscriber\",'Enrollment Form'!$C407=\"Enroll\",'Enrollment Form'!$AK407<>\"\"),\"Y\",\"N\")))","v":""},{"$f":"IF($B400=\"N\",\"\",IF(OR('Enrollment Form'!$B407<>\"Subscriber\",'Enrollment Form'!$C407=\"ROC\"),\"-\",IF(AND('Enrollment Form'!$B407=\"Subscriber\",'Enrollment Form'!$C407=\"Enroll\",'Enrollment Form'!$AL407<>\"\"),\"Y\",\"N\")))","v":""},{"$f":"IF($B400=\"N\",\"\",IF(OR('Enrollment Form'!$B407<>\"Subscriber\",'Enrollment Form'!$C407=\"ROC\"),\"-\",IF(AND('Enrollment Form'!$B407=\"Subscriber\",'Enrollment Form'!$C407=\"Enroll\",'Enrollment Form'!$AM407<>\"\"),\"Y\",\"N\")))","v":""},{"$f":"IF($B400=\"N\",\"\",IF(OR('Enrollment Form'!$B407<>\"Subscriber\",'Enrollment Form'!$C407=\"ROC\"),\"-\",IF(AND('Enrollment Form'!$B407=\"Subscriber\",'Enrollment Form'!$C407=\"Enroll\",'Enrollment Form'!$AN407<>\"\"),\"Y\",\"N\")))","v":""},{"$f":"IF($B400=\"N\",\"\",IF(OR('Enrollment Form'!$B407<>\"Subscriber\",'Enrollment Form'!$C407=\"ROC\"),\"-\",IF(AND('Enrollment Form'!$B407=\"Subscriber\",'Enrollment Form'!$C407=\"Enroll\",'Enrollment Form'!$AP407<>\"\"),\"Y\",\"N\")))","v":""},{"$f":"IF($B400=\"N\",\"\",IF($Q400=\"-\",\"-\",IF(AND($Q400=\"Y\",'Enrollment Form'!$AP407=\"No\"),\"-\",IF(AND($Q400=\"Y\",'Enrollment Form'!$AP407=\"Yes\",'Enrollment Form'!$AQ407<>\"\"),\"Y\",\"N\"))))","v":""},{"$f":"IF($B400=\"N\",\"\",IF(OR('Enrollment Form'!$B407<>\"Subscriber\",'Enrollment Form'!$C407=\"ROC\"),\"-\",IF(AND('Enrollment Form'!$B407=\"Subscriber\",'Enrollment Form'!$C407=\"Enroll\",'Enrollment Form'!$CO407<>\"\"),\"Y\",\"N\")))","v":""},{"$f":"IF($B400=\"N\",\"\",IF($S400=\"-\",\"-\",IF(AND($S400=\"Y\",'Enrollment Form'!$CO407=\"No\"),\"-\",IF(AND($S400=\"Y\",'Enrollment Form'!$CO407=\"Yes\",'Enrollment Form'!$CP407<>\"\"),\"Y\",\"N\"))))","v":""},{"$f":"IF(OR('Enrollment Form'!$AV407=\"Yes\",'Enrollment Form'!$AV407=\"\"),\"-\",IF(AND('Enrollment Form'!$AV407=\"No\",ISERROR(FIND(\"HMO\",VLOOKUP('Enrollment Form'!G407,'Enrollment Form'!H$11:J$1000,3,FALSE),1))=FALSE,COUNTA('Enrollment Form'!$AW407:$AZ407)=4),\"Y\",\"N\"))","v":"-"},{"$f":"IF($B400=\"N\",\"\",IF('Enrollment Form'!$B407=\"Subscriber\",\"-\",IF(COUNTA('Enrollment Form'!$BE407,'Enrollment Form'!$BG407)=2,\"Y\",\"N\")))","v":""},{"$f":"IF($B400=\"N\",\"\",IF(OR('Enrollment Form'!$AU407=\"\",'Enrollment Form'!$AU407=\"No\"),\"-\",IF(AND('Enrollment Form'!$AU407=\"Yes\",COUNTA('Enrollment Form'!$CK407)=1),\"Y\",\"N\")))","v":""},{"$f":"IF(OR('Enrollment Form'!$CK407=\"\",'Enrollment Form'!$CK407=\"No\"),\"-\",IF(COUNTA('Enrollment Form'!$CM407:$CN407)=2,\"Y\",\"N\"))","v":"-"},{"$f":"IF($B400=\"N\",\"\",IF(COUNTIF('Enrollment Form'!$CZ407:$DO407,\"Other\")=COUNTA('Enrollment Form'!$DF407,'Enrollment Form'!$DA407,'Enrollment Form'!$DK407,'Enrollment Form'!$DP407),\"Y\",\"N\"))","v":""},{"$f":"IF($B400=\"N\",\"\",IF(OR('Enrollment Form'!B407<>\"Subscriber\",'Enrollment Form'!C407=\"ROC\",COUNTIF('Enrollment Form'!AS407:AT407,\"Yes\")>=1),\"-\",IF(AND('Enrollment Form'!C407=\"Enroll\",COUNTIF('Enrollment Form'!AS407:AT407,\"No\")=2,'Enrollment Form'!AU407=\"\"),\"N\",\"Y\")))","v":""},{"$f":"IF(OR(B400=\"N\",'Enrollment Form'!B407<>\"Subscriber\",'Enrollment Form'!C407=\"ROC\",'Enrollment Form'!O407<>\"Multiple of Salary\"),\"-\",IF(COUNTA('Enrollment Form'!T407:U407)<2,\"N\",\"Y\"))","v":"-"},{"$f":"IF(B400=\"N\",\"\",IF(OR('Enrollment Form'!C407=\"ROC\",'Enrollment Form'!B407<>\"Subscriber\",'Enrollment Form'!O407=\"Waive\",'Enrollment Form'!O407=\"\"),\"-\",IF('Enrollment Form'!P407=\"\",\"N\",\"Y\")))","v":""},{"$f":"IF($B400=\"N\",\"\",IF(AND('Enrollment Form'!$C407=\"ROC\",'Enrollment Form'!$DS407<>\"\"),\"Y\",IF(AND('Enrollment Form'!$C407=\"ROC\",'Enrollment Form'!$DS407=\"\"),\"N\",IF(AND('Enrollment Form'!$C407=\"Enroll\",'Enrollment Form'!$B407=\"Subscriber\",'Enrollment Form'!$CQ407=\"No\",'Enrollment Form'!$DS407=\"\"),\"N\",IF(AND('Enrollment Form'!$C407=\"Enroll\",'Enrollment Form'!$B407=\"Subscriber\",'Enrollment Form'!$CQ407=\"Yes\"),\"-\",\"Y\")))))","v":""},{"$f":"IF($B400=\"N\",\"\",IF(AND('Enrollment Form'!$C407=\"ROC\",'Enrollment Form'!$DT407<>\"\"),\"Y\",IF(AND('Enrollment Form'!$C407=\"ROC\",'Enrollment Form'!$DT407=\"\"),\"N\",IF(AND('Enrollment Form'!$C407=\"Enroll\",'Enrollment Form'!$B407=\"Subscriber\",'Enrollment Form'!$CQ407=\"No\",'Enrollment Form'!$DT407=\"\"),\"N\",IF(AND('Enrollment Form'!$C407=\"Enroll\",'Enrollment Form'!$B407=\"Subscriber\",'Enrollment Form'!$CQ407=\"Yes\"),\"-\",\"Y\")))))","v":""},{"$f":"IF('Enrollment Form'!AH407=\"\",\"\",IF(ISERROR(SEARCH(\".\",'Enrollment Form'!AH407,SEARCH(\"@\",'Enrollment Form'!AH407))),\"N\",\"Y\"))","v":""},{"$f":"IF(OR($B400=\"N\",'Enrollment Form'!$G407=\"\"),\"\",IF('Enrollment Form'!$B407<>\"Subscriber\",\"-\",IF(COUNTIF('Enrollment Form'!$AS407:$AT407,\"Yes\")=2,\"N\",\"Y\")))","v":""},{"$f":"IF(OR('Enrollment Form'!$CC407=\"\",'Enrollment Form'!$CC407=\"No\"),\"-\",IF(AND('Enrollment Form'!$CC407=\"Yes\",'Enrollment Form'!$CD407=\"\"),\"N\",\"Y\"))","v":"-"},{"$f":"IF(OR('Enrollment Form'!$CE407=\"\",'Enrollment Form'!$CE407=\"No\"),\"-\",IF(AND('Enrollment Form'!$CE407=\"Yes\",'Enrollment Form'!$CF407=\"\"),\"N\",\"Y\"))","v":"-"},{"$f":"IF(OR('Enrollment Form'!$CG407=\"\",'Enrollment Form'!$CG407=\"No\"),\"-\",IF(AND('Enrollment Form'!$CG407=\"Yes\",'Enrollment Form'!$CH407=\"\"),\"N\",\"Y\"))","v":"-"},{"$f":"IF(OR('Enrollment Form'!$CG407=\"\",'Enrollment Form'!$CG407=\"No\"),\"-\",IF(AND('Enrollment Form'!$CG407=\"Yes\",'Enrollment Form'!$CI407=\"\"),\"N\",\"Y\"))","v":"-"},{"$f":"IF('Enrollment Form'!B407<>\"Subscriber\",\"-\",IF(AND('Enrollment Form'!B407=\"Subscriber\",'Enrollment Form'!C407=\"Enroll\",'Enrollment Form'!AA407=\"\"),\"N\",\"Y\"))","v":"-"},{"$f":"IF(OR('Enrollment Form'!B407=\"Subscriber\",'Enrollment Form'!B407=\"\"),\"-\",IF('Enrollment Form'!BI407=\"\",\"N\",\"Y\"))","v":"-"},{"$f":"IF('Enrollment Form'!B407<>\"Subscriber\",\"-\",IF(AND('Enrollment Form'!B407=\"Subscriber\",'Enrollment Form'!G407=\"\"),\"N\",\"Y\"))","v":"-"},{"$f":"IF('Enrollment Form'!A407=\"\",\"\",IF('Enrollment Form'!B407=\"Subscriber\",\"-\",IF(AND('Enrollment Form'!B407<>\"Subscriber\",'Enrollment Form'!G407='Enrollment Form'!H407),\"N\",\"Y\")))","v":""},0]
[408,{"$f":"IF('Enrollment Form'!$A408<>\"\",\"Y\",\"N\")","v":"N"},{"$f":"IF(AND('Enrollment Form'!$B408=\"\",'Enrollment Form'!$C408<>\"\"),\"N\",IF($B401=\"N\",\"\",\"Y\"))","v":""},{"$f":"IF(OR($B401=\"N\",'Enrollment Form'!G408=\"\"),\"\",IF('Enrollment Form'!$B408<>\"Subscriber\",\"\",IF('Enrollment Form'!$G408='Enrollment Form'!$H408,\"Y\",\"N\")))","v":""},{"$f":"IF($B401=\"N\",\"\",IF(AND(COUNTIFS('Enrollment Form'!$H$11:$H$1000,'Enrollment Form'!$H408,'Enrollment Form'!$B$11:$B$1000,'Enrollment Form'!$B408)>1,'Enrollment Form'!$H408<>\"\"),\"N\",\"Y\"))","v":""},{"$f":"IF($B401=\"N\",\"\",IF(LEN('Enrollment Form'!$Y408)=0,\"\",IF(LEN('Enrollment Form'!$Y408)<>5,\"N\",\"Y\")))","v":""},{"$f":"IF($B401=\"N\",\"\",IF(LEN('Enrollment Form'!$AD408=0),\"\",IF(LEN('Enrollment Form'!$AD408)<>5,\"N\",\"Y\")))","v":""},{"$f":"IF($B401=\"N\",\"\",IF(LEN('Enrollment Form'!$BL408=0),\"\",IF(LEN('Enrollment Form'!$BL408)<>5,\"N\",\"Y\")))","v":""},{"$f":"IF($B401=\"N\",\"\",IF(LEN('Enrollment Form'!$AE408)=0,\"\",IF(LEN('Enrollment Form'!$AE408)<>10,\"N\",\"Y\")))","v":""},{"$f":"IF($B401=\"N\",\"\",IF(LEN('Enrollment Form'!$AF408)=0,\"\",IF(LEN('Enrollment Form'!$AF408)<>10,\"N\",\"Y\")))","v":""},{"$f":"IF('Enrollment Form'!$O408<>\"Graded\",\"-\",IF(AND('Enrollment Form'!$O408=\"Graded\",'Enrollment Form'!$AO408<>\"\"),\"Y\",\"N\"))","v":"-"},{"$f":"IF($B401=\"N\",\"\",IF(OR('Enrollment Form'!$B408<>\"Subscriber\",'Enrollment Form'!$C408=\"ROC\"),\"-\",IF(AND('Enrollment Form'!$B408=\"Subscriber\",'Enrollment Form'!$C408=\"Enroll\",'Enrollment Form'!$AJ408<>\"\"),\"Y\",\"N\")))","v":""},{"$f":"IF($B401=\"N\",\"\",IF(OR('Enrollment Form'!$B408<>\"Subscriber\",'Enrollment Form'!$C408=\"ROC\"),\"-\",IF(AND('Enrollment Form'!$B408=\"Subscriber\",'Enrollment Form'!$C408=\"Enroll\",'Enrollment Form'!$AK408<>\"\"),\"Y\",\"N\")))","v":""},{"$f":"IF($B401=\"N\",\"\",IF(OR('Enrollment Form'!$B408<>\"Subscriber\",'Enrollment Form'!$C408=\"ROC\"),\"-\",IF(AND('Enrollment Form'!$B408=\"Subscriber\",'Enrollment Form'!$C408=\"Enroll\",'Enrollment Form'!$AL408<>\"\"),\"Y\",\"N\")))","v":""},{"$f":"IF($B401=\"N\",\"\",IF(OR('Enrollment Form'!$B408<>\"Subscriber\",'Enrollment Form'!$C408=\"ROC\"),\"-\",IF(AND('Enrollment Form'!$B408=\"Subscriber\",'Enrollment Form'!$C408=\"Enroll\",'Enrollment Form'!$AM408<>\"\"),\"Y\",\"N\")))","v":""},{"$f":"IF($B401=\"N\",\"\",IF(OR('Enrollment Form'!$B408<>\"Subscriber\",'Enrollment Form'!$C408=\"ROC\"),\"-\",IF(AND('Enrollment Form'!$B408=\"Subscriber\",'Enrollment Form'!$C408=\"Enroll\",'Enrollment Form'!$AN408<>\"\"),\"Y\",\"N\")))","v":""},{"$f":"IF($B401=\"N\",\"\",IF(OR('Enrollment Form'!$B408<>\"Subscriber\",'Enrollment Form'!$C408=\"ROC\"),\"-\",IF(AND('Enrollment Form'!$B408=\"Subscriber\",'Enrollment Form'!$C408=\"Enroll\",'Enrollment Form'!$AP408<>\"\"),\"Y\",\"N\")))","v":""},{"$f":"IF($B401=\"N\",\"\",IF($Q401=\"-\",\"-\",IF(AND($Q401=\"Y\",'Enrollment Form'!$AP408=\"No\"),\"-\",IF(AND($Q401=\"Y\",'Enrollment Form'!$AP408=\"Yes\",'Enrollment Form'!$AQ408<>\"\"),\"Y\",\"N\"))))","v":""},{"$f":"IF($B401=\"N\",\"\",IF(OR('Enrollment Form'!$B408<>\"Subscriber\",'Enrollment Form'!$C408=\"ROC\"),\"-\",IF(AND('Enrollment Form'!$B408=\"Subscriber\",'Enrollment Form'!$C408=\"Enroll\",'Enrollment Form'!$CO408<>\"\"),\"Y\",\"N\")))","v":""},{"$f":"IF($B401=\"N\",\"\",IF($S401=\"-\",\"-\",IF(AND($S401=\"Y\",'Enrollment Form'!$CO408=\"No\"),\"-\",IF(AND($S401=\"Y\",'Enrollment Form'!$CO408=\"Yes\",'Enrollment Form'!$CP408<>\"\"),\"Y\",\"N\"))))","v":""},{"$f":"IF(OR('Enrollment Form'!$AV408=\"Yes\",'Enrollment Form'!$AV408=\"\"),\"-\",IF(AND('Enrollment Form'!$AV408=\"No\",ISERROR(FIND(\"HMO\",VLOOKUP('Enrollment Form'!G408,'Enrollment Form'!H$11:J$1000,3,FALSE),1))=FALSE,COUNTA('Enrollment Form'!$AW408:$AZ408)=4),\"Y\",\"N\"))","v":"-"},{"$f":"IF($B401=\"N\",\"\",IF('Enrollment Form'!$B408=\"Subscriber\",\"-\",IF(COUNTA('Enrollment Form'!$BE408,'Enrollment Form'!$BG408)=2,\"Y\",\"N\")))","v":""},{"$f":"IF($B401=\"N\",\"\",IF(OR('Enrollment Form'!$AU408=\"\",'Enrollment Form'!$AU408=\"No\"),\"-\",IF(AND('Enrollment Form'!$AU408=\"Yes\",COUNTA('Enrollment Form'!$CK408)=1),\"Y\",\"N\")))","v":""},{"$f":"IF(OR('Enrollment Form'!$CK408=\"\",'Enrollment Form'!$CK408=\"No\"),\"-\",IF(COUNTA('Enrollment Form'!$CM408:$CN408)=2,\"Y\",\"N\"))","v":"-"},{"$f":"IF($B401=\"N\",\"\",IF(COUNTIF('Enrollment Form'!$CZ408:$DO408,\"Other\")=COUNTA('Enrollment Form'!$DF408,'Enrollment Form'!$DA408,'Enrollment Form'!$DK408,'Enrollment Form'!$DP408),\"Y\",\"N\"))","v":""},{"$f":"IF($B401=\"N\",\"\",IF(OR('Enrollment Form'!B408<>\"Subscriber\",'Enrollment Form'!C408=\"ROC\",COUNTIF('Enrollment Form'!AS408:AT408,\"Yes\")>=1),\"-\",IF(AND('Enrollment Form'!C408=\"Enroll\",COUNTIF('Enrollment Form'!AS408:AT408,\"No\")=2,'Enrollment Form'!AU408=\"\"),\"N\",\"Y\")))","v":""},{"$f":"IF(OR(B401=\"N\",'Enrollment Form'!B408<>\"Subscriber\",'Enrollment Form'!C408=\"ROC\",'Enrollment Form'!O408<>\"Multiple of Salary\"),\"-\",IF(COUNTA('Enrollment Form'!T408:U408)<2,\"N\",\"Y\"))","v":"-"},{"$f":"IF(B401=\"N\",\"\",IF(OR('Enrollment Form'!C408=\"ROC\",'Enrollment Form'!B408<>\"Subscriber\",'Enrollment Form'!O408=\"Waive\",'Enrollment Form'!O408=\"\"),\"-\",IF('Enrollment Form'!P408=\"\",\"N\",\"Y\")))","v":""},{"$f":"IF($B401=\"N\",\"\",IF(AND('Enrollment Form'!$C408=\"ROC\",'Enrollment Form'!$DS408<>\"\"),\"Y\",IF(AND('Enrollment Form'!$C408=\"ROC\",'Enrollment Form'!$DS408=\"\"),\"N\",IF(AND('Enrollment Form'!$C408=\"Enroll\",'Enrollment Form'!$B408=\"Subscriber\",'Enrollment Form'!$CQ408=\"No\",'Enrollment Form'!$DS408=\"\"),\"N\",IF(AND('Enrollment Form'!$C408=\"Enroll\",'Enrollment Form'!$B408=\"Subscriber\",'Enrollment Form'!$CQ408=\"Yes\"),\"-\",\"Y\")))))","v":""},{"$f":"IF($B401=\"N\",\"\",IF(AND('Enrollment Form'!$C408=\"ROC\",'Enrollment Form'!$DT408<>\"\"),\"Y\",IF(AND('Enrollment Form'!$C408=\"ROC\",'Enrollment Form'!$DT408=\"\"),\"N\",IF(AND('Enrollment Form'!$C408=\"Enroll\",'Enrollment Form'!$B408=\"Subscriber\",'Enrollment Form'!$CQ408=\"No\",'Enrollment Form'!$DT408=\"\"),\"N\",IF(AND('Enrollment Form'!$C408=\"Enroll\",'Enrollment Form'!$B408=\"Subscriber\",'Enrollment Form'!$CQ408=\"Yes\"),\"-\",\"Y\")))))","v":""},{"$f":"IF('Enrollment Form'!AH408=\"\",\"\",IF(ISERROR(SEARCH(\".\",'Enrollment Form'!AH408,SEARCH(\"@\",'Enrollment Form'!AH408))),\"N\",\"Y\"))","v":""},{"$f":"IF(OR($B401=\"N\",'Enrollment Form'!$G408=\"\"),\"\",IF('Enrollment Form'!$B408<>\"Subscriber\",\"-\",IF(COUNTIF('Enrollment Form'!$AS408:$AT408,\"Yes\")=2,\"N\",\"Y\")))","v":""},{"$f":"IF(OR('Enrollment Form'!$CC408=\"\",'Enrollment Form'!$CC408=\"No\"),\"-\",IF(AND('Enrollment Form'!$CC408=\"Yes\",'Enrollment Form'!$CD408=\"\"),\"N\",\"Y\"))","v":"-"},{"$f":"IF(OR('Enrollment Form'!$CE408=\"\",'Enrollment Form'!$CE408=\"No\"),\"-\",IF(AND('Enrollment Form'!$CE408=\"Yes\",'Enrollment Form'!$CF408=\"\"),\"N\",\"Y\"))","v":"-"},{"$f":"IF(OR('Enrollment Form'!$CG408=\"\",'Enrollment Form'!$CG408=\"No\"),\"-\",IF(AND('Enrollment Form'!$CG408=\"Yes\",'Enrollment Form'!$CH408=\"\"),\"N\",\"Y\"))","v":"-"},{"$f":"IF(OR('Enrollment Form'!$CG408=\"\",'Enrollment Form'!$CG408=\"No\"),\"-\",IF(AND('Enrollment Form'!$CG408=\"Yes\",'Enrollment Form'!$CI408=\"\"),\"N\",\"Y\"))","v":"-"},{"$f":"IF('Enrollment Form'!B408<>\"Subscriber\",\"-\",IF(AND('Enrollment Form'!B408=\"Subscriber\",'Enrollment Form'!C408=\"Enroll\",'Enrollment Form'!AA408=\"\"),\"N\",\"Y\"))","v":"-"},{"$f":"IF(OR('Enrollment Form'!B408=\"Subscriber\",'Enrollment Form'!B408=\"\"),\"-\",IF('Enrollment Form'!BI408=\"\",\"N\",\"Y\"))","v":"-"},{"$f":"IF('Enrollment Form'!B408<>\"Subscriber\",\"-\",IF(AND('Enrollment Form'!B408=\"Subscriber\",'Enrollment Form'!G408=\"\"),\"N\",\"Y\"))","v":"-"},{"$f":"IF('Enrollment Form'!A408=\"\",\"\",IF('Enrollment Form'!B408=\"Subscriber\",\"-\",IF(AND('Enrollment Form'!B408<>\"Subscriber\",'Enrollment Form'!G408='Enrollment Form'!H408),\"N\",\"Y\")))","v":""},0]
[409,{"$f":"IF('Enrollment Form'!$A409<>\"\",\"Y\",\"N\")","v":"N"},{"$f":"IF(AND('Enrollment Form'!$B409=\"\",'Enrollment Form'!$C409<>\"\"),\"N\",IF($B402=\"N\",\"\",\"Y\"))","v":""},{"$f":"IF(OR($B402=\"N\",'Enrollment Form'!G409=\"\"),\"\",IF('Enrollment Form'!$B409<>\"Subscriber\",\"\",IF('Enrollment Form'!$G409='Enrollment Form'!$H409,\"Y\",\"N\")))","v":""},{"$f":"IF($B402=\"N\",\"\",IF(AND(COUNTIFS('Enrollment Form'!$H$11:$H$1000,'Enrollment Form'!$H409,'Enrollment Form'!$B$11:$B$1000,'Enrollment Form'!$B409)>1,'Enrollment Form'!$H409<>\"\"),\"N\",\"Y\"))","v":""},{"$f":"IF($B402=\"N\",\"\",IF(LEN('Enrollment Form'!$Y409)=0,\"\",IF(LEN('Enrollment Form'!$Y409)<>5,\"N\",\"Y\")))","v":""},{"$f":"IF($B402=\"N\",\"\",IF(LEN('Enrollment Form'!$AD409=0),\"\",IF(LEN('Enrollment Form'!$AD409)<>5,\"N\",\"Y\")))","v":""},{"$f":"IF($B402=\"N\",\"\",IF(LEN('Enrollment Form'!$BL409=0),\"\",IF(LEN('Enrollment Form'!$BL409)<>5,\"N\",\"Y\")))","v":""},{"$f":"IF($B402=\"N\",\"\",IF(LEN('Enrollment Form'!$AE409)=0,\"\",IF(LEN('Enrollment Form'!$AE409)<>10,\"N\",\"Y\")))","v":""},{"$f":"IF($B402=\"N\",\"\",IF(LEN('Enrollment Form'!$AF409)=0,\"\",IF(LEN('Enrollment Form'!$AF409)<>10,\"N\",\"Y\")))","v":""},{"$f":"IF('Enrollment Form'!$O409<>\"Graded\",\"-\",IF(AND('Enrollment Form'!$O409=\"Graded\",'Enrollment Form'!$AO409<>\"\"),\"Y\",\"N\"))","v":"-"},{"$f":"IF($B402=\"N\",\"\",IF(OR('Enrollment Form'!$B409<>\"Subscriber\",'Enrollment Form'!$C409=\"ROC\"),\"-\",IF(AND('Enrollment Form'!$B409=\"Subscriber\",'Enrollment Form'!$C409=\"Enroll\",'Enrollment Form'!$AJ409<>\"\"),\"Y\",\"N\")))","v":""},{"$f":"IF($B402=\"N\",\"\",IF(OR('Enrollment Form'!$B409<>\"Subscriber\",'Enrollment Form'!$C409=\"ROC\"),\"-\",IF(AND('Enrollment Form'!$B409=\"Subscriber\",'Enrollment Form'!$C409=\"Enroll\",'Enrollment Form'!$AK409<>\"\"),\"Y\",\"N\")))","v":""},{"$f":"IF($B402=\"N\",\"\",IF(OR('Enrollment Form'!$B409<>\"Subscriber\",'Enrollment Form'!$C409=\"ROC\"),\"-\",IF(AND('Enrollment Form'!$B409=\"Subscriber\",'Enrollment Form'!$C409=\"Enroll\",'Enrollment Form'!$AL409<>\"\"),\"Y\",\"N\")))","v":""},{"$f":"IF($B402=\"N\",\"\",IF(OR('Enrollment Form'!$B409<>\"Subscriber\",'Enrollment Form'!$C409=\"ROC\"),\"-\",IF(AND('Enrollment Form'!$B409=\"Subscriber\",'Enrollment Form'!$C409=\"Enroll\",'Enrollment Form'!$AM409<>\"\"),\"Y\",\"N\")))","v":""},{"$f":"IF($B402=\"N\",\"\",IF(OR('Enrollment Form'!$B409<>\"Subscriber\",'Enrollment Form'!$C409=\"ROC\"),\"-\",IF(AND('Enrollment Form'!$B409=\"Subscriber\",'Enrollment Form'!$C409=\"Enroll\",'Enrollment Form'!$AN409<>\"\"),\"Y\",\"N\")))","v":""},{"$f":"IF($B402=\"N\",\"\",IF(OR('Enrollment Form'!$B409<>\"Subscriber\",'Enrollment Form'!$C409=\"ROC\"),\"-\",IF(AND('Enrollment Form'!$B409=\"Subscriber\",'Enrollment Form'!$C409=\"Enroll\",'Enrollment Form'!$AP409<>\"\"),\"Y\",\"N\")))","v":""},{"$f":"IF($B402=\"N\",\"\",IF($Q402=\"-\",\"-\",IF(AND($Q402=\"Y\",'Enrollment Form'!$AP409=\"No\"),\"-\",IF(AND($Q402=\"Y\",'Enrollment Form'!$AP409=\"Yes\",'Enrollment Form'!$AQ409<>\"\"),\"Y\",\"N\"))))","v":""},{"$f":"IF($B402=\"N\",\"\",IF(OR('Enrollment Form'!$B409<>\"Subscriber\",'Enrollment Form'!$C409=\"ROC\"),\"-\",IF(AND('Enrollment Form'!$B409=\"Subscriber\",'Enrollment Form'!$C409=\"Enroll\",'Enrollment Form'!$CO409<>\"\"),\"Y\",\"N\")))","v":""},{"$f":"IF($B402=\"N\",\"\",IF($S402=\"-\",\"-\",IF(AND($S402=\"Y\",'Enrollment Form'!$CO409=\"No\"),\"-\",IF(AND($S402=\"Y\",'Enrollment Form'!$CO409=\"Yes\",'Enrollment Form'!$CP409<>\"\"),\"Y\",\"N\"))))","v":""},{"$f":"IF(OR('Enrollment Form'!$AV409=\"Yes\",'Enrollment Form'!$AV409=\"\"),\"-\",IF(AND('Enrollment Form'!$AV409=\"No\",ISERROR(FIND(\"HMO\",VLOOKUP('Enrollment Form'!G409,'Enrollment Form'!H$11:J$1000,3,FALSE),1))=FALSE,COUNTA('Enrollment Form'!$AW409:$AZ409)=4),\"Y\",\"N\"))","v":"-"},{"$f":"IF($B402=\"N\",\"\",IF('Enrollment Form'!$B409=\"Subscriber\",\"-\",IF(COUNTA('Enrollment Form'!$BE409,'Enrollment Form'!$BG409)=2,\"Y\",\"N\")))","v":""},{"$f":"IF($B402=\"N\",\"\",IF(OR('Enrollment Form'!$AU409=\"\",'Enrollment Form'!$AU409=\"No\"),\"-\",IF(AND('Enrollment Form'!$AU409=\"Yes\",COUNTA('Enrollment Form'!$CK409)=1),\"Y\",\"N\")))","v":""},{"$f":"IF(OR('Enrollment Form'!$CK409=\"\",'Enrollment Form'!$CK409=\"No\"),\"-\",IF(COUNTA('Enrollment Form'!$CM409:$CN409)=2,\"Y\",\"N\"))","v":"-"},{"$f":"IF($B402=\"N\",\"\",IF(COUNTIF('Enrollment Form'!$CZ409:$DO409,\"Other\")=COUNTA('Enrollment Form'!$DF409,'Enrollment Form'!$DA409,'Enrollment Form'!$DK409,'Enrollment Form'!$DP409),\"Y\",\"N\"))","v":""},{"$f":"IF($B402=\"N\",\"\",IF(OR('Enrollment Form'!B409<>\"Subscriber\",'Enrollment Form'!C409=\"ROC\",COUNTIF('Enrollment Form'!AS409:AT409,\"Yes\")>=1),\"-\",IF(AND('Enrollment Form'!C409=\"Enroll\",COUNTIF('Enrollment Form'!AS409:AT409,\"No\")=2,'Enrollment Form'!AU409=\"\"),\"N\",\"Y\")))","v":""},{"$f":"IF(OR(B402=\"N\",'Enrollment Form'!B409<>\"Subscriber\",'Enrollment Form'!C409=\"ROC\",'Enrollment Form'!O409<>\"Multiple of Salary\"),\"-\",IF(COUNTA('Enrollment Form'!T409:U409)<2,\"N\",\"Y\"))","v":"-"},{"$f":"IF(B402=\"N\",\"\",IF(OR('Enrollment Form'!C409=\"ROC\",'Enrollment Form'!B409<>\"Subscriber\",'Enrollment Form'!O409=\"Waive\",'Enrollment Form'!O409=\"\"),\"-\",IF('Enrollment Form'!P409=\"\",\"N\",\"Y\")))","v":""},{"$f":"IF($B402=\"N\",\"\",IF(AND('Enrollment Form'!$C409=\"ROC\",'Enrollment Form'!$DS409<>\"\"),\"Y\",IF(AND('Enrollment Form'!$C409=\"ROC\",'Enrollment Form'!$DS409=\"\"),\"N\",IF(AND('Enrollment Form'!$C409=\"Enroll\",'Enrollment Form'!$B409=\"Subscriber\",'Enrollment Form'!$CQ409=\"No\",'Enrollment Form'!$DS409=\"\"),\"N\",IF(AND('Enrollment Form'!$C409=\"Enroll\",'Enrollment Form'!$B409=\"Subscriber\",'Enrollment Form'!$CQ409=\"Yes\"),\"-\",\"Y\")))))","v":""},{"$f":"IF($B402=\"N\",\"\",IF(AND('Enrollment Form'!$C409=\"ROC\",'Enrollment Form'!$DT409<>\"\"),\"Y\",IF(AND('Enrollment Form'!$C409=\"ROC\",'Enrollment Form'!$DT409=\"\"),\"N\",IF(AND('Enrollment Form'!$C409=\"Enroll\",'Enrollment Form'!$B409=\"Subscriber\",'Enrollment Form'!$CQ409=\"No\",'Enrollment Form'!$DT409=\"\"),\"N\",IF(AND('Enrollment Form'!$C409=\"Enroll\",'Enrollment Form'!$B409=\"Subscriber\",'Enrollment Form'!$CQ409=\"Yes\"),\"-\",\"Y\")))))","v":""},{"$f":"IF('Enrollment Form'!AH409=\"\",\"\",IF(ISERROR(SEARCH(\".\",'Enrollment Form'!AH409,SEARCH(\"@\",'Enrollment Form'!AH409))),\"N\",\"Y\"))","v":""},{"$f":"IF(OR($B402=\"N\",'Enrollment Form'!$G409=\"\"),\"\",IF('Enrollment Form'!$B409<>\"Subscriber\",\"-\",IF(COUNTIF('Enrollment Form'!$AS409:$AT409,\"Yes\")=2,\"N\",\"Y\")))","v":""},{"$f":"IF(OR('Enrollment Form'!$CC409=\"\",'Enrollment Form'!$CC409=\"No\"),\"-\",IF(AND('Enrollment Form'!$CC409=\"Yes\",'Enrollment Form'!$CD409=\"\"),\"N\",\"Y\"))","v":"-"},{"$f":"IF(OR('Enrollment Form'!$CE409=\"\",'Enrollment Form'!$CE409=\"No\"),\"-\",IF(AND('Enrollment Form'!$CE409=\"Yes\",'Enrollment Form'!$CF409=\"\"),\"N\",\"Y\"))","v":"-"},{"$f":"IF(OR('Enrollment Form'!$CG409=\"\",'Enrollment Form'!$CG409=\"No\"),\"-\",IF(AND('Enrollment Form'!$CG409=\"Yes\",'Enrollment Form'!$CH409=\"\"),\"N\",\"Y\"))","v":"-"},{"$f":"IF(OR('Enrollment Form'!$CG409=\"\",'Enrollment Form'!$CG409=\"No\"),\"-\",IF(AND('Enrollment Form'!$CG409=\"Yes\",'Enrollment Form'!$CI409=\"\"),\"N\",\"Y\"))","v":"-"},{"$f":"IF('Enrollment Form'!B409<>\"Subscriber\",\"-\",IF(AND('Enrollment Form'!B409=\"Subscriber\",'Enrollment Form'!C409=\"Enroll\",'Enrollment Form'!AA409=\"\"),\"N\",\"Y\"))","v":"-"},{"$f":"IF(OR('Enrollment Form'!B409=\"Subscriber\",'Enrollment Form'!B409=\"\"),\"-\",IF('Enrollment Form'!BI409=\"\",\"N\",\"Y\"))","v":"-"},{"$f":"IF('Enrollment Form'!B409<>\"Subscriber\",\"-\",IF(AND('Enrollment Form'!B409=\"Subscriber\",'Enrollment Form'!G409=\"\"),\"N\",\"Y\"))","v":"-"},{"$f":"IF('Enrollment Form'!A409=\"\",\"\",IF('Enrollment Form'!B409=\"Subscriber\",\"-\",IF(AND('Enrollment Form'!B409<>\"Subscriber\",'Enrollment Form'!G409='Enrollment Form'!H409),\"N\",\"Y\")))","v":""},0]
[410,{"$f":"IF('Enrollment Form'!$A410<>\"\",\"Y\",\"N\")","v":"N"},{"$f":"IF(AND('Enrollment Form'!$B410=\"\",'Enrollment Form'!$C410<>\"\"),\"N\",IF($B403=\"N\",\"\",\"Y\"))","v":""},{"$f":"IF(OR($B403=\"N\",'Enrollment Form'!G410=\"\"),\"\",IF('Enrollment Form'!$B410<>\"Subscriber\",\"\",IF('Enrollment Form'!$G410='Enrollment Form'!$H410,\"Y\",\"N\")))","v":""},{"$f":"IF($B403=\"N\",\"\",IF(AND(COUNTIFS('Enrollment Form'!$H$11:$H$1000,'Enrollment Form'!$H410,'Enrollment Form'!$B$11:$B$1000,'Enrollment Form'!$B410)>1,'Enrollment Form'!$H410<>\"\"),\"N\",\"Y\"))","v":""},{"$f":"IF($B403=\"N\",\"\",IF(LEN('Enrollment Form'!$Y410)=0,\"\",IF(LEN('Enrollment Form'!$Y410)<>5,\"N\",\"Y\")))","v":""},{"$f":"IF($B403=\"N\",\"\",IF(LEN('Enrollment Form'!$AD410=0),\"\",IF(LEN('Enrollment Form'!$AD410)<>5,\"N\",\"Y\")))","v":""},{"$f":"IF($B403=\"N\",\"\",IF(LEN('Enrollment Form'!$BL410=0),\"\",IF(LEN('Enrollment Form'!$BL410)<>5,\"N\",\"Y\")))","v":""},{"$f":"IF($B403=\"N\",\"\",IF(LEN('Enrollment Form'!$AE410)=0,\"\",IF(LEN('Enrollment Form'!$AE410)<>10,\"N\",\"Y\")))","v":""},{"$f":"IF($B403=\"N\",\"\",IF(LEN('Enrollment Form'!$AF410)=0,\"\",IF(LEN('Enrollment Form'!$AF410)<>10,\"N\",\"Y\")))","v":""},{"$f":"IF('Enrollment Form'!$O410<>\"Graded\",\"-\",IF(AND('Enrollment Form'!$O410=\"Graded\",'Enrollment Form'!$AO410<>\"\"),\"Y\",\"N\"))","v":"-"},{"$f":"IF($B403=\"N\",\"\",IF(OR('Enrollment Form'!$B410<>\"Subscriber\",'Enrollment Form'!$C410=\"ROC\"),\"-\",IF(AND('Enrollment Form'!$B410=\"Subscriber\",'Enrollment Form'!$C410=\"Enroll\",'Enrollment Form'!$AJ410<>\"\"),\"Y\",\"N\")))","v":""},{"$f":"IF($B403=\"N\",\"\",IF(OR('Enrollment Form'!$B410<>\"Subscriber\",'Enrollment Form'!$C410=\"ROC\"),\"-\",IF(AND('Enrollment Form'!$B410=\"Subscriber\",'Enrollment Form'!$C410=\"Enroll\",'Enrollment Form'!$AK410<>\"\"),\"Y\",\"N\")))","v":""},{"$f":"IF($B403=\"N\",\"\",IF(OR('Enrollment Form'!$B410<>\"Subscriber\",'Enrollment Form'!$C410=\"ROC\"),\"-\",IF(AND('Enrollment Form'!$B410=\"Subscriber\",'Enrollment Form'!$C410=\"Enroll\",'Enrollment Form'!$AL410<>\"\"),\"Y\",\"N\")))","v":""},{"$f":"IF($B403=\"N\",\"\",IF(OR('Enrollment Form'!$B410<>\"Subscriber\",'Enrollment Form'!$C410=\"ROC\"),\"-\",IF(AND('Enrollment Form'!$B410=\"Subscriber\",'Enrollment Form'!$C410=\"Enroll\",'Enrollment Form'!$AM410<>\"\"),\"Y\",\"N\")))","v":""},{"$f":"IF($B403=\"N\",\"\",IF(OR('Enrollment Form'!$B410<>\"Subscriber\",'Enrollment Form'!$C410=\"ROC\"),\"-\",IF(AND('Enrollment Form'!$B410=\"Subscriber\",'Enrollment Form'!$C410=\"Enroll\",'Enrollment Form'!$AN410<>\"\"),\"Y\",\"N\")))","v":""},{"$f":"IF($B403=\"N\",\"\",IF(OR('Enrollment Form'!$B410<>\"Subscriber\",'Enrollment Form'!$C410=\"ROC\"),\"-\",IF(AND('Enrollment Form'!$B410=\"Subscriber\",'Enrollment Form'!$C410=\"Enroll\",'Enrollment Form'!$AP410<>\"\"),\"Y\",\"N\")))","v":""},{"$f":"IF($B403=\"N\",\"\",IF($Q403=\"-\",\"-\",IF(AND($Q403=\"Y\",'Enrollment Form'!$AP410=\"No\"),\"-\",IF(AND($Q403=\"Y\",'Enrollment Form'!$AP410=\"Yes\",'Enrollment Form'!$AQ410<>\"\"),\"Y\",\"N\"))))","v":""},{"$f":"IF($B403=\"N\",\"\",IF(OR('Enrollment Form'!$B410<>\"Subscriber\",'Enrollment Form'!$C410=\"ROC\"),\"-\",IF(AND('Enrollment Form'!$B410=\"Subscriber\",'Enrollment Form'!$C410=\"Enroll\",'Enrollment Form'!$CO410<>\"\"),\"Y\",\"N\")))","v":""},{"$f":"IF($B403=\"N\",\"\",IF($S403=\"-\",\"-\",IF(AND($S403=\"Y\",'Enrollment Form'!$CO410=\"No\"),\"-\",IF(AND($S403=\"Y\",'Enrollment Form'!$CO410=\"Yes\",'Enrollment Form'!$CP410<>\"\"),\"Y\",\"N\"))))","v":""},{"$f":"IF(OR('Enrollment Form'!$AV410=\"Yes\",'Enrollment Form'!$AV410=\"\"),\"-\",IF(AND('Enrollment Form'!$AV410=\"No\",ISERROR(FIND(\"HMO\",VLOOKUP('Enrollment Form'!G410,'Enrollment Form'!H$11:J$1000,3,FALSE),1))=FALSE,COUNTA('Enrollment Form'!$AW410:$AZ410)=4),\"Y\",\"N\"))","v":"-"},{"$f":"IF($B403=\"N\",\"\",IF('Enrollment Form'!$B410=\"Subscriber\",\"-\",IF(COUNTA('Enrollment Form'!$BE410,'Enrollment Form'!$BG410)=2,\"Y\",\"N\")))","v":""},{"$f":"IF($B403=\"N\",\"\",IF(OR('Enrollment Form'!$AU410=\"\",'Enrollment Form'!$AU410=\"No\"),\"-\",IF(AND('Enrollment Form'!$AU410=\"Yes\",COUNTA('Enrollment Form'!$CK410)=1),\"Y\",\"N\")))","v":""},{"$f":"IF(OR('Enrollment Form'!$CK410=\"\",'Enrollment Form'!$CK410=\"No\"),\"-\",IF(COUNTA('Enrollment Form'!$CM410:$CN410)=2,\"Y\",\"N\"))","v":"-"},{"$f":"IF($B403=\"N\",\"\",IF(COUNTIF('Enrollment Form'!$CZ410:$DO410,\"Other\")=COUNTA('Enrollment Form'!$DF410,'Enrollment Form'!$DA410,'Enrollment Form'!$DK410,'Enrollment Form'!$DP410),\"Y\",\"N\"))","v":""},{"$f":"IF($B403=\"N\",\"\",IF(OR('Enrollment Form'!B410<>\"Subscriber\",'Enrollment Form'!C410=\"ROC\",COUNTIF('Enrollment Form'!AS410:AT410,\"Yes\")>=1),\"-\",IF(AND('Enrollment Form'!C410=\"Enroll\",COUNTIF('Enrollment Form'!AS410:AT410,\"No\")=2,'Enrollment Form'!AU410=\"\"),\"N\",\"Y\")))","v":""},{"$f":"IF(OR(B403=\"N\",'Enrollment Form'!B410<>\"Subscriber\",'Enrollment Form'!C410=\"ROC\",'Enrollment Form'!O410<>\"Multiple of Salary\"),\"-\",IF(COUNTA('Enrollment Form'!T410:U410)<2,\"N\",\"Y\"))","v":"-"},{"$f":"IF(B403=\"N\",\"\",IF(OR('Enrollment Form'!C410=\"ROC\",'Enrollment Form'!B410<>\"Subscriber\",'Enrollment Form'!O410=\"Waive\",'Enrollment Form'!O410=\"\"),\"-\",IF('Enrollment Form'!P410=\"\",\"N\",\"Y\")))","v":""},{"$f":"IF($B403=\"N\",\"\",IF(AND('Enrollment Form'!$C410=\"ROC\",'Enrollment Form'!$DS410<>\"\"),\"Y\",IF(AND('Enrollment Form'!$C410=\"ROC\",'Enrollment Form'!$DS410=\"\"),\"N\",IF(AND('Enrollment Form'!$C410=\"Enroll\",'Enrollment Form'!$B410=\"Subscriber\",'Enrollment Form'!$CQ410=\"No\",'Enrollment Form'!$DS410=\"\"),\"N\",IF(AND('Enrollment Form'!$C410=\"Enroll\",'Enrollment Form'!$B410=\"Subscriber\",'Enrollment Form'!$CQ410=\"Yes\"),\"-\",\"Y\")))))","v":""},{"$f":"IF($B403=\"N\",\"\",IF(AND('Enrollment Form'!$C410=\"ROC\",'Enrollment Form'!$DT410<>\"\"),\"Y\",IF(AND('Enrollment Form'!$C410=\"ROC\",'Enrollment Form'!$DT410=\"\"),\"N\",IF(AND('Enrollment Form'!$C410=\"Enroll\",'Enrollment Form'!$B410=\"Subscriber\",'Enrollment Form'!$CQ410=\"No\",'Enrollment Form'!$DT410=\"\"),\"N\",IF(AND('Enrollment Form'!$C410=\"Enroll\",'Enrollment Form'!$B410=\"Subscriber\",'Enrollment Form'!$CQ410=\"Yes\"),\"-\",\"Y\")))))","v":""},{"$f":"IF('Enrollment Form'!AH410=\"\",\"\",IF(ISERROR(SEARCH(\".\",'Enrollment Form'!AH410,SEARCH(\"@\",'Enrollment Form'!AH410))),\"N\",\"Y\"))","v":""},{"$f":"IF(OR($B403=\"N\",'Enrollment Form'!$G410=\"\"),\"\",IF('Enrollment Form'!$B410<>\"Subscriber\",\"-\",IF(COUNTIF('Enrollment Form'!$AS410:$AT410,\"Yes\")=2,\"N\",\"Y\")))","v":""},{"$f":"IF(OR('Enrollment Form'!$CC410=\"\",'Enrollment Form'!$CC410=\"No\"),\"-\",IF(AND('Enrollment Form'!$CC410=\"Yes\",'Enrollment Form'!$CD410=\"\"),\"N\",\"Y\"))","v":"-"},{"$f":"IF(OR('Enrollment Form'!$CE410=\"\",'Enrollment Form'!$CE410=\"No\"),\"-\",IF(AND('Enrollment Form'!$CE410=\"Yes\",'Enrollment Form'!$CF410=\"\"),\"N\",\"Y\"))","v":"-"},{"$f":"IF(OR('Enrollment Form'!$CG410=\"\",'Enrollment Form'!$CG410=\"No\"),\"-\",IF(AND('Enrollment Form'!$CG410=\"Yes\",'Enrollment Form'!$CH410=\"\"),\"N\",\"Y\"))","v":"-"},{"$f":"IF(OR('Enrollment Form'!$CG410=\"\",'Enrollment Form'!$CG410=\"No\"),\"-\",IF(AND('Enrollment Form'!$CG410=\"Yes\",'Enrollment Form'!$CI410=\"\"),\"N\",\"Y\"))","v":"-"},{"$f":"IF('Enrollment Form'!B410<>\"Subscriber\",\"-\",IF(AND('Enrollment Form'!B410=\"Subscriber\",'Enrollment Form'!C410=\"Enroll\",'Enrollment Form'!AA410=\"\"),\"N\",\"Y\"))","v":"-"},{"$f":"IF(OR('Enrollment Form'!B410=\"Subscriber\",'Enrollment Form'!B410=\"\"),\"-\",IF('Enrollment Form'!BI410=\"\",\"N\",\"Y\"))","v":"-"},{"$f":"IF('Enrollment Form'!B410<>\"Subscriber\",\"-\",IF(AND('Enrollment Form'!B410=\"Subscriber\",'Enrollment Form'!G410=\"\"),\"N\",\"Y\"))","v":"-"},{"$f":"IF('Enrollment Form'!A410=\"\",\"\",IF('Enrollment Form'!B410=\"Subscriber\",\"-\",IF(AND('Enrollment Form'!B410<>\"Subscriber\",'Enrollment Form'!G410='Enrollment Form'!H410),\"N\",\"Y\")))","v":""},0]
[411,{"$f":"IF('Enrollment Form'!$A411<>\"\",\"Y\",\"N\")","v":"N"},{"$f":"IF(AND('Enrollment Form'!$B411=\"\",'Enrollment Form'!$C411<>\"\"),\"N\",IF($B404=\"N\",\"\",\"Y\"))","v":""},{"$f":"IF(OR($B404=\"N\",'Enrollment Form'!G411=\"\"),\"\",IF('Enrollment Form'!$B411<>\"Subscriber\",\"\",IF('Enrollment Form'!$G411='Enrollment Form'!$H411,\"Y\",\"N\")))","v":""},{"$f":"IF($B404=\"N\",\"\",IF(AND(COUNTIFS('Enrollment Form'!$H$11:$H$1000,'Enrollment Form'!$H411,'Enrollment Form'!$B$11:$B$1000,'Enrollment Form'!$B411)>1,'Enrollment Form'!$H411<>\"\"),\"N\",\"Y\"))","v":""},{"$f":"IF($B404=\"N\",\"\",IF(LEN('Enrollment Form'!$Y411)=0,\"\",IF(LEN('Enrollment Form'!$Y411)<>5,\"N\",\"Y\")))","v":""},{"$f":"IF($B404=\"N\",\"\",IF(LEN('Enrollment Form'!$AD411=0),\"\",IF(LEN('Enrollment Form'!$AD411)<>5,\"N\",\"Y\")))","v":""},{"$f":"IF($B404=\"N\",\"\",IF(LEN('Enrollment Form'!$BL411=0),\"\",IF(LEN('Enrollment Form'!$BL411)<>5,\"N\",\"Y\")))","v":""},{"$f":"IF($B404=\"N\",\"\",IF(LEN('Enrollment Form'!$AE411)=0,\"\",IF(LEN('Enrollment Form'!$AE411)<>10,\"N\",\"Y\")))","v":""},{"$f":"IF($B404=\"N\",\"\",IF(LEN('Enrollment Form'!$AF411)=0,\"\",IF(LEN('Enrollment Form'!$AF411)<>10,\"N\",\"Y\")))","v":""},{"$f":"IF('Enrollment Form'!$O411<>\"Graded\",\"-\",IF(AND('Enrollment Form'!$O411=\"Graded\",'Enrollment Form'!$AO411<>\"\"),\"Y\",\"N\"))","v":"-"},{"$f":"IF($B404=\"N\",\"\",IF(OR('Enrollment Form'!$B411<>\"Subscriber\",'Enrollment Form'!$C411=\"ROC\"),\"-\",IF(AND('Enrollment Form'!$B411=\"Subscriber\",'Enrollment Form'!$C411=\"Enroll\",'Enrollment Form'!$AJ411<>\"\"),\"Y\",\"N\")))","v":""},{"$f":"IF($B404=\"N\",\"\",IF(OR('Enrollment Form'!$B411<>\"Subscriber\",'Enrollment Form'!$C411=\"ROC\"),\"-\",IF(AND('Enrollment Form'!$B411=\"Subscriber\",'Enrollment Form'!$C411=\"Enroll\",'Enrollment Form'!$AK411<>\"\"),\"Y\",\"N\")))","v":""},{"$f":"IF($B404=\"N\",\"\",IF(OR('Enrollment Form'!$B411<>\"Subscriber\",'Enrollment Form'!$C411=\"ROC\"),\"-\",IF(AND('Enrollment Form'!$B411=\"Subscriber\",'Enrollment Form'!$C411=\"Enroll\",'Enrollment Form'!$AL411<>\"\"),\"Y\",\"N\")))","v":""},{"$f":"IF($B404=\"N\",\"\",IF(OR('Enrollment Form'!$B411<>\"Subscriber\",'Enrollment Form'!$C411=\"ROC\"),\"-\",IF(AND('Enrollment Form'!$B411=\"Subscriber\",'Enrollment Form'!$C411=\"Enroll\",'Enrollment Form'!$AM411<>\"\"),\"Y\",\"N\")))","v":""},{"$f":"IF($B404=\"N\",\"\",IF(OR('Enrollment Form'!$B411<>\"Subscriber\",'Enrollment Form'!$C411=\"ROC\"),\"-\",IF(AND('Enrollment Form'!$B411=\"Subscriber\",'Enrollment Form'!$C411=\"Enroll\",'Enrollment Form'!$AN411<>\"\"),\"Y\",\"N\")))","v":""},{"$f":"IF($B404=\"N\",\"\",IF(OR('Enrollment Form'!$B411<>\"Subscriber\",'Enrollment Form'!$C411=\"ROC\"),\"-\",IF(AND('Enrollment Form'!$B411=\"Subscriber\",'Enrollment Form'!$C411=\"Enroll\",'Enrollment Form'!$AP411<>\"\"),\"Y\",\"N\")))","v":""},{"$f":"IF($B404=\"N\",\"\",IF($Q404=\"-\",\"-\",IF(AND($Q404=\"Y\",'Enrollment Form'!$AP411=\"No\"),\"-\",IF(AND($Q404=\"Y\",'Enrollment Form'!$AP411=\"Yes\",'Enrollment Form'!$AQ411<>\"\"),\"Y\",\"N\"))))","v":""},{"$f":"IF($B404=\"N\",\"\",IF(OR('Enrollment Form'!$B411<>\"Subscriber\",'Enrollment Form'!$C411=\"ROC\"),\"-\",IF(AND('Enrollment Form'!$B411=\"Subscriber\",'Enrollment Form'!$C411=\"Enroll\",'Enrollment Form'!$CO411<>\"\"),\"Y\",\"N\")))","v":""},{"$f":"IF($B404=\"N\",\"\",IF($S404=\"-\",\"-\",IF(AND($S404=\"Y\",'Enrollment Form'!$CO411=\"No\"),\"-\",IF(AND($S404=\"Y\",'Enrollment Form'!$CO411=\"Yes\",'Enrollment Form'!$CP411<>\"\"),\"Y\",\"N\"))))","v":""},{"$f":"IF(OR('Enrollment Form'!$AV411=\"Yes\",'Enrollment Form'!$AV411=\"\"),\"-\",IF(AND('Enrollment Form'!$AV411=\"No\",ISERROR(FIND(\"HMO\",VLOOKUP('Enrollment Form'!G411,'Enrollment Form'!H$11:J$1000,3,FALSE),1))=FALSE,COUNTA('Enrollment Form'!$AW411:$AZ411)=4),\"Y\",\"N\"))","v":"-"},{"$f":"IF($B404=\"N\",\"\",IF('Enrollment Form'!$B411=\"Subscriber\",\"-\",IF(COUNTA('Enrollment Form'!$BE411,'Enrollment Form'!$BG411)=2,\"Y\",\"N\")))","v":""},{"$f":"IF($B404=\"N\",\"\",IF(OR('Enrollment Form'!$AU411=\"\",'Enrollment Form'!$AU411=\"No\"),\"-\",IF(AND('Enrollment Form'!$AU411=\"Yes\",COUNTA('Enrollment Form'!$CK411)=1),\"Y\",\"N\")))","v":""},{"$f":"IF(OR('Enrollment Form'!$CK411=\"\",'Enrollment Form'!$CK411=\"No\"),\"-\",IF(COUNTA('Enrollment Form'!$CM411:$CN411)=2,\"Y\",\"N\"))","v":"-"},{"$f":"IF($B404=\"N\",\"\",IF(COUNTIF('Enrollment Form'!$CZ411:$DO411,\"Other\")=COUNTA('Enrollment Form'!$DF411,'Enrollment Form'!$DA411,'Enrollment Form'!$DK411,'Enrollment Form'!$DP411),\"Y\",\"N\"))","v":""},{"$f":"IF($B404=\"N\",\"\",IF(OR('Enrollment Form'!B411<>\"Subscriber\",'Enrollment Form'!C411=\"ROC\",COUNTIF('Enrollment Form'!AS411:AT411,\"Yes\")>=1),\"-\",IF(AND('Enrollment Form'!C411=\"Enroll\",COUNTIF('Enrollment Form'!AS411:AT411,\"No\")=2,'Enrollment Form'!AU411=\"\"),\"N\",\"Y\")))","v":""},{"$f":"IF(OR(B404=\"N\",'Enrollment Form'!B411<>\"Subscriber\",'Enrollment Form'!C411=\"ROC\",'Enrollment Form'!O411<>\"Multiple of Salary\"),\"-\",IF(COUNTA('Enrollment Form'!T411:U411)<2,\"N\",\"Y\"))","v":"-"},{"$f":"IF(B404=\"N\",\"\",IF(OR('Enrollment Form'!C411=\"ROC\",'Enrollment Form'!B411<>\"Subscriber\",'Enrollment Form'!O411=\"Waive\",'Enrollment Form'!O411=\"\"),\"-\",IF('Enrollment Form'!P411=\"\",\"N\",\"Y\")))","v":""},{"$f":"IF($B404=\"N\",\"\",IF(AND('Enrollment Form'!$C411=\"ROC\",'Enrollment Form'!$DS411<>\"\"),\"Y\",IF(AND('Enrollment Form'!$C411=\"ROC\",'Enrollment Form'!$DS411=\"\"),\"N\",IF(AND('Enrollment Form'!$C411=\"Enroll\",'Enrollment Form'!$B411=\"Subscriber\",'Enrollment Form'!$CQ411=\"No\",'Enrollment Form'!$DS411=\"\"),\"N\",IF(AND('Enrollment Form'!$C411=\"Enroll\",'Enrollment Form'!$B411=\"Subscriber\",'Enrollment Form'!$CQ411=\"Yes\"),\"-\",\"Y\")))))","v":""},{"$f":"IF($B404=\"N\",\"\",IF(AND('Enrollment Form'!$C411=\"ROC\",'Enrollment Form'!$DT411<>\"\"),\"Y\",IF(AND('Enrollment Form'!$C411=\"ROC\",'Enrollment Form'!$DT411=\"\"),\"N\",IF(AND('Enrollment Form'!$C411=\"Enroll\",'Enrollment Form'!$B411=\"Subscriber\",'Enrollment Form'!$CQ411=\"No\",'Enrollment Form'!$DT411=\"\"),\"N\",IF(AND('Enrollment Form'!$C411=\"Enroll\",'Enrollment Form'!$B411=\"Subscriber\",'Enrollment Form'!$CQ411=\"Yes\"),\"-\",\"Y\")))))","v":""},{"$f":"IF('Enrollment Form'!AH411=\"\",\"\",IF(ISERROR(SEARCH(\".\",'Enrollment Form'!AH411,SEARCH(\"@\",'Enrollment Form'!AH411))),\"N\",\"Y\"))","v":""},{"$f":"IF(OR($B404=\"N\",'Enrollment Form'!$G411=\"\"),\"\",IF('Enrollment Form'!$B411<>\"Subscriber\",\"-\",IF(COUNTIF('Enrollment Form'!$AS411:$AT411,\"Yes\")=2,\"N\",\"Y\")))","v":""},{"$f":"IF(OR('Enrollment Form'!$CC411=\"\",'Enrollment Form'!$CC411=\"No\"),\"-\",IF(AND('Enrollment Form'!$CC411=\"Yes\",'Enrollment Form'!$CD411=\"\"),\"N\",\"Y\"))","v":"-"},{"$f":"IF(OR('Enrollment Form'!$CE411=\"\",'Enrollment Form'!$CE411=\"No\"),\"-\",IF(AND('Enrollment Form'!$CE411=\"Yes\",'Enrollment Form'!$CF411=\"\"),\"N\",\"Y\"))","v":"-"},{"$f":"IF(OR('Enrollment Form'!$CG411=\"\",'Enrollment Form'!$CG411=\"No\"),\"-\",IF(AND('Enrollment Form'!$CG411=\"Yes\",'Enrollment Form'!$CH411=\"\"),\"N\",\"Y\"))","v":"-"},{"$f":"IF(OR('Enrollment Form'!$CG411=\"\",'Enrollment Form'!$CG411=\"No\"),\"-\",IF(AND('Enrollment Form'!$CG411=\"Yes\",'Enrollment Form'!$CI411=\"\"),\"N\",\"Y\"))","v":"-"},{"$f":"IF('Enrollment Form'!B411<>\"Subscriber\",\"-\",IF(AND('Enrollment Form'!B411=\"Subscriber\",'Enrollment Form'!C411=\"Enroll\",'Enrollment Form'!AA411=\"\"),\"N\",\"Y\"))","v":"-"},{"$f":"IF(OR('Enrollment Form'!B411=\"Subscriber\",'Enrollment Form'!B411=\"\"),\"-\",IF('Enrollment Form'!BI411=\"\",\"N\",\"Y\"))","v":"-"},{"$f":"IF('Enrollment Form'!B411<>\"Subscriber\",\"-\",IF(AND('Enrollment Form'!B411=\"Subscriber\",'Enrollment Form'!G411=\"\"),\"N\",\"Y\"))","v":"-"},{"$f":"IF('Enrollment Form'!A411=\"\",\"\",IF('Enrollment Form'!B411=\"Subscriber\",\"-\",IF(AND('Enrollment Form'!B411<>\"Subscriber\",'Enrollment Form'!G411='Enrollment Form'!H411),\"N\",\"Y\")))","v":""},0]
[412,{"$f":"IF('Enrollment Form'!$A412<>\"\",\"Y\",\"N\")","v":"N"},{"$f":"IF(AND('Enrollment Form'!$B412=\"\",'Enrollment Form'!$C412<>\"\"),\"N\",IF($B405=\"N\",\"\",\"Y\"))","v":""},{"$f":"IF(OR($B405=\"N\",'Enrollment Form'!G412=\"\"),\"\",IF('Enrollment Form'!$B412<>\"Subscriber\",\"\",IF('Enrollment Form'!$G412='Enrollment Form'!$H412,\"Y\",\"N\")))","v":""},{"$f":"IF($B405=\"N\",\"\",IF(AND(COUNTIFS('Enrollment Form'!$H$11:$H$1000,'Enrollment Form'!$H412,'Enrollment Form'!$B$11:$B$1000,'Enrollment Form'!$B412)>1,'Enrollment Form'!$H412<>\"\"),\"N\",\"Y\"))","v":""},{"$f":"IF($B405=\"N\",\"\",IF(LEN('Enrollment Form'!$Y412)=0,\"\",IF(LEN('Enrollment Form'!$Y412)<>5,\"N\",\"Y\")))","v":""},{"$f":"IF($B405=\"N\",\"\",IF(LEN('Enrollment Form'!$AD412=0),\"\",IF(LEN('Enrollment Form'!$AD412)<>5,\"N\",\"Y\")))","v":""},{"$f":"IF($B405=\"N\",\"\",IF(LEN('Enrollment Form'!$BL412=0),\"\",IF(LEN('Enrollment Form'!$BL412)<>5,\"N\",\"Y\")))","v":""},{"$f":"IF($B405=\"N\",\"\",IF(LEN('Enrollment Form'!$AE412)=0,\"\",IF(LEN('Enrollment Form'!$AE412)<>10,\"N\",\"Y\")))","v":""},{"$f":"IF($B405=\"N\",\"\",IF(LEN('Enrollment Form'!$AF412)=0,\"\",IF(LEN('Enrollment Form'!$AF412)<>10,\"N\",\"Y\")))","v":""},{"$f":"IF('Enrollment Form'!$O412<>\"Graded\",\"-\",IF(AND('Enrollment Form'!$O412=\"Graded\",'Enrollment Form'!$AO412<>\"\"),\"Y\",\"N\"))","v":"-"},{"$f":"IF($B405=\"N\",\"\",IF(OR('Enrollment Form'!$B412<>\"Subscriber\",'Enrollment Form'!$C412=\"ROC\"),\"-\",IF(AND('Enrollment Form'!$B412=\"Subscriber\",'Enrollment Form'!$C412=\"Enroll\",'Enrollment Form'!$AJ412<>\"\"),\"Y\",\"N\")))","v":""},{"$f":"IF($B405=\"N\",\"\",IF(OR('Enrollment Form'!$B412<>\"Subscriber\",'Enrollment Form'!$C412=\"ROC\"),\"-\",IF(AND('Enrollment Form'!$B412=\"Subscriber\",'Enrollment Form'!$C412=\"Enroll\",'Enrollment Form'!$AK412<>\"\"),\"Y\",\"N\")))","v":""},{"$f":"IF($B405=\"N\",\"\",IF(OR('Enrollment Form'!$B412<>\"Subscriber\",'Enrollment Form'!$C412=\"ROC\"),\"-\",IF(AND('Enrollment Form'!$B412=\"Subscriber\",'Enrollment Form'!$C412=\"Enroll\",'Enrollment Form'!$AL412<>\"\"),\"Y\",\"N\")))","v":""},{"$f":"IF($B405=\"N\",\"\",IF(OR('Enrollment Form'!$B412<>\"Subscriber\",'Enrollment Form'!$C412=\"ROC\"),\"-\",IF(AND('Enrollment Form'!$B412=\"Subscriber\",'Enrollment Form'!$C412=\"Enroll\",'Enrollment Form'!$AM412<>\"\"),\"Y\",\"N\")))","v":""},{"$f":"IF($B405=\"N\",\"\",IF(OR('Enrollment Form'!$B412<>\"Subscriber\",'Enrollment Form'!$C412=\"ROC\"),\"-\",IF(AND('Enrollment Form'!$B412=\"Subscriber\",'Enrollment Form'!$C412=\"Enroll\",'Enrollment Form'!$AN412<>\"\"),\"Y\",\"N\")))","v":""},{"$f":"IF($B405=\"N\",\"\",IF(OR('Enrollment Form'!$B412<>\"Subscriber\",'Enrollment Form'!$C412=\"ROC\"),\"-\",IF(AND('Enrollment Form'!$B412=\"Subscriber\",'Enrollment Form'!$C412=\"Enroll\",'Enrollment Form'!$AP412<>\"\"),\"Y\",\"N\")))","v":""},{"$f":"IF($B405=\"N\",\"\",IF($Q405=\"-\",\"-\",IF(AND($Q405=\"Y\",'Enrollment Form'!$AP412=\"No\"),\"-\",IF(AND($Q405=\"Y\",'Enrollment Form'!$AP412=\"Yes\",'Enrollment Form'!$AQ412<>\"\"),\"Y\",\"N\"))))","v":""},{"$f":"IF($B405=\"N\",\"\",IF(OR('Enrollment Form'!$B412<>\"Subscriber\",'Enrollment Form'!$C412=\"ROC\"),\"-\",IF(AND('Enrollment Form'!$B412=\"Subscriber\",'Enrollment Form'!$C412=\"Enroll\",'Enrollment Form'!$CO412<>\"\"),\"Y\",\"N\")))","v":""},{"$f":"IF($B405=\"N\",\"\",IF($S405=\"-\",\"-\",IF(AND($S405=\"Y\",'Enrollment Form'!$CO412=\"No\"),\"-\",IF(AND($S405=\"Y\",'Enrollment Form'!$CO412=\"Yes\",'Enrollment Form'!$CP412<>\"\"),\"Y\",\"N\"))))","v":""},{"$f":"IF(OR('Enrollment Form'!$AV412=\"Yes\",'Enrollment Form'!$AV412=\"\"),\"-\",IF(AND('Enrollment Form'!$AV412=\"No\",ISERROR(FIND(\"HMO\",VLOOKUP('Enrollment Form'!G412,'Enrollment Form'!H$11:J$1000,3,FALSE),1))=FALSE,COUNTA('Enrollment Form'!$AW412:$AZ412)=4),\"Y\",\"N\"))","v":"-"},{"$f":"IF($B405=\"N\",\"\",IF('Enrollment Form'!$B412=\"Subscriber\",\"-\",IF(COUNTA('Enrollment Form'!$BE412,'Enrollment Form'!$BG412)=2,\"Y\",\"N\")))","v":""},{"$f":"IF($B405=\"N\",\"\",IF(OR('Enrollment Form'!$AU412=\"\",'Enrollment Form'!$AU412=\"No\"),\"-\",IF(AND('Enrollment Form'!$AU412=\"Yes\",COUNTA('Enrollment Form'!$CK412)=1),\"Y\",\"N\")))","v":""},{"$f":"IF(OR('Enrollment Form'!$CK412=\"\",'Enrollment Form'!$CK412=\"No\"),\"-\",IF(COUNTA('Enrollment Form'!$CM412:$CN412)=2,\"Y\",\"N\"))","v":"-"},{"$f":"IF($B405=\"N\",\"\",IF(COUNTIF('Enrollment Form'!$CZ412:$DO412,\"Other\")=COUNTA('Enrollment Form'!$DF412,'Enrollment Form'!$DA412,'Enrollment Form'!$DK412,'Enrollment Form'!$DP412),\"Y\",\"N\"))","v":""},{"$f":"IF($B405=\"N\",\"\",IF(OR('Enrollment Form'!B412<>\"Subscriber\",'Enrollment Form'!C412=\"ROC\",COUNTIF('Enrollment Form'!AS412:AT412,\"Yes\")>=1),\"-\",IF(AND('Enrollment Form'!C412=\"Enroll\",COUNTIF('Enrollment Form'!AS412:AT412,\"No\")=2,'Enrollment Form'!AU412=\"\"),\"N\",\"Y\")))","v":""},{"$f":"IF(OR(B405=\"N\",'Enrollment Form'!B412<>\"Subscriber\",'Enrollment Form'!C412=\"ROC\",'Enrollment Form'!O412<>\"Multiple of Salary\"),\"-\",IF(COUNTA('Enrollment Form'!T412:U412)<2,\"N\",\"Y\"))","v":"-"},{"$f":"IF(B405=\"N\",\"\",IF(OR('Enrollment Form'!C412=\"ROC\",'Enrollment Form'!B412<>\"Subscriber\",'Enrollment Form'!O412=\"Waive\",'Enrollment Form'!O412=\"\"),\"-\",IF('Enrollment Form'!P412=\"\",\"N\",\"Y\")))","v":""},{"$f":"IF($B405=\"N\",\"\",IF(AND('Enrollment Form'!$C412=\"ROC\",'Enrollment Form'!$DS412<>\"\"),\"Y\",IF(AND('Enrollment Form'!$C412=\"ROC\",'Enrollment Form'!$DS412=\"\"),\"N\",IF(AND('Enrollment Form'!$C412=\"Enroll\",'Enrollment Form'!$B412=\"Subscriber\",'Enrollment Form'!$CQ412=\"No\",'Enrollment Form'!$DS412=\"\"),\"N\",IF(AND('Enrollment Form'!$C412=\"Enroll\",'Enrollment Form'!$B412=\"Subscriber\",'Enrollment Form'!$CQ412=\"Yes\"),\"-\",\"Y\")))))","v":""},{"$f":"IF($B405=\"N\",\"\",IF(AND('Enrollment Form'!$C412=\"ROC\",'Enrollment Form'!$DT412<>\"\"),\"Y\",IF(AND('Enrollment Form'!$C412=\"ROC\",'Enrollment Form'!$DT412=\"\"),\"N\",IF(AND('Enrollment Form'!$C412=\"Enroll\",'Enrollment Form'!$B412=\"Subscriber\",'Enrollment Form'!$CQ412=\"No\",'Enrollment Form'!$DT412=\"\"),\"N\",IF(AND('Enrollment Form'!$C412=\"Enroll\",'Enrollment Form'!$B412=\"Subscriber\",'Enrollment Form'!$CQ412=\"Yes\"),\"-\",\"Y\")))))","v":""},{"$f":"IF('Enrollment Form'!AH412=\"\",\"\",IF(ISERROR(SEARCH(\".\",'Enrollment Form'!AH412,SEARCH(\"@\",'Enrollment Form'!AH412))),\"N\",\"Y\"))","v":""},{"$f":"IF(OR($B405=\"N\",'Enrollment Form'!$G412=\"\"),\"\",IF('Enrollment Form'!$B412<>\"Subscriber\",\"-\",IF(COUNTIF('Enrollment Form'!$AS412:$AT412,\"Yes\")=2,\"N\",\"Y\")))","v":""},{"$f":"IF(OR('Enrollment Form'!$CC412=\"\",'Enrollment Form'!$CC412=\"No\"),\"-\",IF(AND('Enrollment Form'!$CC412=\"Yes\",'Enrollment Form'!$CD412=\"\"),\"N\",\"Y\"))","v":"-"},{"$f":"IF(OR('Enrollment Form'!$CE412=\"\",'Enrollment Form'!$CE412=\"No\"),\"-\",IF(AND('Enrollment Form'!$CE412=\"Yes\",'Enrollment Form'!$CF412=\"\"),\"N\",\"Y\"))","v":"-"},{"$f":"IF(OR('Enrollment Form'!$CG412=\"\",'Enrollment Form'!$CG412=\"No\"),\"-\",IF(AND('Enrollment Form'!$CG412=\"Yes\",'Enrollment Form'!$CH412=\"\"),\"N\",\"Y\"))","v":"-"},{"$f":"IF(OR('Enrollment Form'!$CG412=\"\",'Enrollment Form'!$CG412=\"No\"),\"-\",IF(AND('Enrollment Form'!$CG412=\"Yes\",'Enrollment Form'!$CI412=\"\"),\"N\",\"Y\"))","v":"-"},{"$f":"IF('Enrollment Form'!B412<>\"Subscriber\",\"-\",IF(AND('Enrollment Form'!B412=\"Subscriber\",'Enrollment Form'!C412=\"Enroll\",'Enrollment Form'!AA412=\"\"),\"N\",\"Y\"))","v":"-"},{"$f":"IF(OR('Enrollment Form'!B412=\"Subscriber\",'Enrollment Form'!B412=\"\"),\"-\",IF('Enrollment Form'!BI412=\"\",\"N\",\"Y\"))","v":"-"},{"$f":"IF('Enrollment Form'!B412<>\"Subscriber\",\"-\",IF(AND('Enrollment Form'!B412=\"Subscriber\",'Enrollment Form'!G412=\"\"),\"N\",\"Y\"))","v":"-"},{"$f":"IF('Enrollment Form'!A412=\"\",\"\",IF('Enrollment Form'!B412=\"Subscriber\",\"-\",IF(AND('Enrollment Form'!B412<>\"Subscriber\",'Enrollment Form'!G412='Enrollment Form'!H412),\"N\",\"Y\")))","v":""},0]
[413,{"$f":"IF('Enrollment Form'!$A413<>\"\",\"Y\",\"N\")","v":"N"},{"$f":"IF(AND('Enrollment Form'!$B413=\"\",'Enrollment Form'!$C413<>\"\"),\"N\",IF($B406=\"N\",\"\",\"Y\"))","v":""},{"$f":"IF(OR($B406=\"N\",'Enrollment Form'!G413=\"\"),\"\",IF('Enrollment Form'!$B413<>\"Subscriber\",\"\",IF('Enrollment Form'!$G413='Enrollment Form'!$H413,\"Y\",\"N\")))","v":""},{"$f":"IF($B406=\"N\",\"\",IF(AND(COUNTIFS('Enrollment Form'!$H$11:$H$1000,'Enrollment Form'!$H413,'Enrollment Form'!$B$11:$B$1000,'Enrollment Form'!$B413)>1,'Enrollment Form'!$H413<>\"\"),\"N\",\"Y\"))","v":""},{"$f":"IF($B406=\"N\",\"\",IF(LEN('Enrollment Form'!$Y413)=0,\"\",IF(LEN('Enrollment Form'!$Y413)<>5,\"N\",\"Y\")))","v":""},{"$f":"IF($B406=\"N\",\"\",IF(LEN('Enrollment Form'!$AD413=0),\"\",IF(LEN('Enrollment Form'!$AD413)<>5,\"N\",\"Y\")))","v":""},{"$f":"IF($B406=\"N\",\"\",IF(LEN('Enrollment Form'!$BL413=0),\"\",IF(LEN('Enrollment Form'!$BL413)<>5,\"N\",\"Y\")))","v":""},{"$f":"IF($B406=\"N\",\"\",IF(LEN('Enrollment Form'!$AE413)=0,\"\",IF(LEN('Enrollment Form'!$AE413)<>10,\"N\",\"Y\")))","v":""},{"$f":"IF($B406=\"N\",\"\",IF(LEN('Enrollment Form'!$AF413)=0,\"\",IF(LEN('Enrollment Form'!$AF413)<>10,\"N\",\"Y\")))","v":""},{"$f":"IF('Enrollment Form'!$O413<>\"Graded\",\"-\",IF(AND('Enrollment Form'!$O413=\"Graded\",'Enrollment Form'!$AO413<>\"\"),\"Y\",\"N\"))","v":"-"},{"$f":"IF($B406=\"N\",\"\",IF(OR('Enrollment Form'!$B413<>\"Subscriber\",'Enrollment Form'!$C413=\"ROC\"),\"-\",IF(AND('Enrollment Form'!$B413=\"Subscriber\",'Enrollment Form'!$C413=\"Enroll\",'Enrollment Form'!$AJ413<>\"\"),\"Y\",\"N\")))","v":""},{"$f":"IF($B406=\"N\",\"\",IF(OR('Enrollment Form'!$B413<>\"Subscriber\",'Enrollment Form'!$C413=\"ROC\"),\"-\",IF(AND('Enrollment Form'!$B413=\"Subscriber\",'Enrollment Form'!$C413=\"Enroll\",'Enrollment Form'!$AK413<>\"\"),\"Y\",\"N\")))","v":""},{"$f":"IF($B406=\"N\",\"\",IF(OR('Enrollment Form'!$B413<>\"Subscriber\",'Enrollment Form'!$C413=\"ROC\"),\"-\",IF(AND('Enrollment Form'!$B413=\"Subscriber\",'Enrollment Form'!$C413=\"Enroll\",'Enrollment Form'!$AL413<>\"\"),\"Y\",\"N\")))","v":""},{"$f":"IF($B406=\"N\",\"\",IF(OR('Enrollment Form'!$B413<>\"Subscriber\",'Enrollment Form'!$C413=\"ROC\"),\"-\",IF(AND('Enrollment Form'!$B413=\"Subscriber\",'Enrollment Form'!$C413=\"Enroll\",'Enrollment Form'!$AM413<>\"\"),\"Y\",\"N\")))","v":""},{"$f":"IF($B406=\"N\",\"\",IF(OR('Enrollment Form'!$B413<>\"Subscriber\",'Enrollment Form'!$C413=\"ROC\"),\"-\",IF(AND('Enrollment Form'!$B413=\"Subscriber\",'Enrollment Form'!$C413=\"Enroll\",'Enrollment Form'!$AN413<>\"\"),\"Y\",\"N\")))","v":""},{"$f":"IF($B406=\"N\",\"\",IF(OR('Enrollment Form'!$B413<>\"Subscriber\",'Enrollment Form'!$C413=\"ROC\"),\"-\",IF(AND('Enrollment Form'!$B413=\"Subscriber\",'Enrollment Form'!$C413=\"Enroll\",'Enrollment Form'!$AP413<>\"\"),\"Y\",\"N\")))","v":""},{"$f":"IF($B406=\"N\",\"\",IF($Q406=\"-\",\"-\",IF(AND($Q406=\"Y\",'Enrollment Form'!$AP413=\"No\"),\"-\",IF(AND($Q406=\"Y\",'Enrollment Form'!$AP413=\"Yes\",'Enrollment Form'!$AQ413<>\"\"),\"Y\",\"N\"))))","v":""},{"$f":"IF($B406=\"N\",\"\",IF(OR('Enrollment Form'!$B413<>\"Subscriber\",'Enrollment Form'!$C413=\"ROC\"),\"-\",IF(AND('Enrollment Form'!$B413=\"Subscriber\",'Enrollment Form'!$C413=\"Enroll\",'Enrollment Form'!$CO413<>\"\"),\"Y\",\"N\")))","v":""},{"$f":"IF($B406=\"N\",\"\",IF($S406=\"-\",\"-\",IF(AND($S406=\"Y\",'Enrollment Form'!$CO413=\"No\"),\"-\",IF(AND($S406=\"Y\",'Enrollment Form'!$CO413=\"Yes\",'Enrollment Form'!$CP413<>\"\"),\"Y\",\"N\"))))","v":""},{"$f":"IF(OR('Enrollment Form'!$AV413=\"Yes\",'Enrollment Form'!$AV413=\"\"),\"-\",IF(AND('Enrollment Form'!$AV413=\"No\",ISERROR(FIND(\"HMO\",VLOOKUP('Enrollment Form'!G413,'Enrollment Form'!H$11:J$1000,3,FALSE),1))=FALSE,COUNTA('Enrollment Form'!$AW413:$AZ413)=4),\"Y\",\"N\"))","v":"-"},{"$f":"IF($B406=\"N\",\"\",IF('Enrollment Form'!$B413=\"Subscriber\",\"-\",IF(COUNTA('Enrollment Form'!$BE413,'Enrollment Form'!$BG413)=2,\"Y\",\"N\")))","v":""},{"$f":"IF($B406=\"N\",\"\",IF(OR('Enrollment Form'!$AU413=\"\",'Enrollment Form'!$AU413=\"No\"),\"-\",IF(AND('Enrollment Form'!$AU413=\"Yes\",COUNTA('Enrollment Form'!$CK413)=1),\"Y\",\"N\")))","v":""},{"$f":"IF(OR('Enrollment Form'!$CK413=\"\",'Enrollment Form'!$CK413=\"No\"),\"-\",IF(COUNTA('Enrollment Form'!$CM413:$CN413)=2,\"Y\",\"N\"))","v":"-"},{"$f":"IF($B406=\"N\",\"\",IF(COUNTIF('Enrollment Form'!$CZ413:$DO413,\"Other\")=COUNTA('Enrollment Form'!$DF413,'Enrollment Form'!$DA413,'Enrollment Form'!$DK413,'Enrollment Form'!$DP413),\"Y\",\"N\"))","v":""},{"$f":"IF($B406=\"N\",\"\",IF(OR('Enrollment Form'!B413<>\"Subscriber\",'Enrollment Form'!C413=\"ROC\",COUNTIF('Enrollment Form'!AS413:AT413,\"Yes\")>=1),\"-\",IF(AND('Enrollment Form'!C413=\"Enroll\",COUNTIF('Enrollment Form'!AS413:AT413,\"No\")=2,'Enrollment Form'!AU413=\"\"),\"N\",\"Y\")))","v":""},{"$f":"IF(OR(B406=\"N\",'Enrollment Form'!B413<>\"Subscriber\",'Enrollment Form'!C413=\"ROC\",'Enrollment Form'!O413<>\"Multiple of Salary\"),\"-\",IF(COUNTA('Enrollment Form'!T413:U413)<2,\"N\",\"Y\"))","v":"-"},{"$f":"IF(B406=\"N\",\"\",IF(OR('Enrollment Form'!C413=\"ROC\",'Enrollment Form'!B413<>\"Subscriber\",'Enrollment Form'!O413=\"Waive\",'Enrollment Form'!O413=\"\"),\"-\",IF('Enrollment Form'!P413=\"\",\"N\",\"Y\")))","v":""},{"$f":"IF($B406=\"N\",\"\",IF(AND('Enrollment Form'!$C413=\"ROC\",'Enrollment Form'!$DS413<>\"\"),\"Y\",IF(AND('Enrollment Form'!$C413=\"ROC\",'Enrollment Form'!$DS413=\"\"),\"N\",IF(AND('Enrollment Form'!$C413=\"Enroll\",'Enrollment Form'!$B413=\"Subscriber\",'Enrollment Form'!$CQ413=\"No\",'Enrollment Form'!$DS413=\"\"),\"N\",IF(AND('Enrollment Form'!$C413=\"Enroll\",'Enrollment Form'!$B413=\"Subscriber\",'Enrollment Form'!$CQ413=\"Yes\"),\"-\",\"Y\")))))","v":""},{"$f":"IF($B406=\"N\",\"\",IF(AND('Enrollment Form'!$C413=\"ROC\",'Enrollment Form'!$DT413<>\"\"),\"Y\",IF(AND('Enrollment Form'!$C413=\"ROC\",'Enrollment Form'!$DT413=\"\"),\"N\",IF(AND('Enrollment Form'!$C413=\"Enroll\",'Enrollment Form'!$B413=\"Subscriber\",'Enrollment Form'!$CQ413=\"No\",'Enrollment Form'!$DT413=\"\"),\"N\",IF(AND('Enrollment Form'!$C413=\"Enroll\",'Enrollment Form'!$B413=\"Subscriber\",'Enrollment Form'!$CQ413=\"Yes\"),\"-\",\"Y\")))))","v":""},{"$f":"IF('Enrollment Form'!AH413=\"\",\"\",IF(ISERROR(SEARCH(\".\",'Enrollment Form'!AH413,SEARCH(\"@\",'Enrollment Form'!AH413))),\"N\",\"Y\"))","v":""},{"$f":"IF(OR($B406=\"N\",'Enrollment Form'!$G413=\"\"),\"\",IF('Enrollment Form'!$B413<>\"Subscriber\",\"-\",IF(COUNTIF('Enrollment Form'!$AS413:$AT413,\"Yes\")=2,\"N\",\"Y\")))","v":""},{"$f":"IF(OR('Enrollment Form'!$CC413=\"\",'Enrollment Form'!$CC413=\"No\"),\"-\",IF(AND('Enrollment Form'!$CC413=\"Yes\",'Enrollment Form'!$CD413=\"\"),\"N\",\"Y\"))","v":"-"},{"$f":"IF(OR('Enrollment Form'!$CE413=\"\",'Enrollment Form'!$CE413=\"No\"),\"-\",IF(AND('Enrollment Form'!$CE413=\"Yes\",'Enrollment Form'!$CF413=\"\"),\"N\",\"Y\"))","v":"-"},{"$f":"IF(OR('Enrollment Form'!$CG413=\"\",'Enrollment Form'!$CG413=\"No\"),\"-\",IF(AND('Enrollment Form'!$CG413=\"Yes\",'Enrollment Form'!$CH413=\"\"),\"N\",\"Y\"))","v":"-"},{"$f":"IF(OR('Enrollment Form'!$CG413=\"\",'Enrollment Form'!$CG413=\"No\"),\"-\",IF(AND('Enrollment Form'!$CG413=\"Yes\",'Enrollment Form'!$CI413=\"\"),\"N\",\"Y\"))","v":"-"},{"$f":"IF('Enrollment Form'!B413<>\"Subscriber\",\"-\",IF(AND('Enrollment Form'!B413=\"Subscriber\",'Enrollment Form'!C413=\"Enroll\",'Enrollment Form'!AA413=\"\"),\"N\",\"Y\"))","v":"-"},{"$f":"IF(OR('Enrollment Form'!B413=\"Subscriber\",'Enrollment Form'!B413=\"\"),\"-\",IF('Enrollment Form'!BI413=\"\",\"N\",\"Y\"))","v":"-"},{"$f":"IF('Enrollment Form'!B413<>\"Subscriber\",\"-\",IF(AND('Enrollment Form'!B413=\"Subscriber\",'Enrollment Form'!G413=\"\"),\"N\",\"Y\"))","v":"-"},{"$f":"IF('Enrollment Form'!A413=\"\",\"\",IF('Enrollment Form'!B413=\"Subscriber\",\"-\",IF(AND('Enrollment Form'!B413<>\"Subscriber\",'Enrollment Form'!G413='Enrollment Form'!H413),\"N\",\"Y\")))","v":""},0]
[414,{"$f":"IF('Enrollment Form'!$A414<>\"\",\"Y\",\"N\")","v":"N"},{"$f":"IF(AND('Enrollment Form'!$B414=\"\",'Enrollment Form'!$C414<>\"\"),\"N\",IF($B407=\"N\",\"\",\"Y\"))","v":""},{"$f":"IF(OR($B407=\"N\",'Enrollment Form'!G414=\"\"),\"\",IF('Enrollment Form'!$B414<>\"Subscriber\",\"\",IF('Enrollment Form'!$G414='Enrollment Form'!$H414,\"Y\",\"N\")))","v":""},{"$f":"IF($B407=\"N\",\"\",IF(AND(COUNTIFS('Enrollment Form'!$H$11:$H$1000,'Enrollment Form'!$H414,'Enrollment Form'!$B$11:$B$1000,'Enrollment Form'!$B414)>1,'Enrollment Form'!$H414<>\"\"),\"N\",\"Y\"))","v":""},{"$f":"IF($B407=\"N\",\"\",IF(LEN('Enrollment Form'!$Y414)=0,\"\",IF(LEN('Enrollment Form'!$Y414)<>5,\"N\",\"Y\")))","v":""},{"$f":"IF($B407=\"N\",\"\",IF(LEN('Enrollment Form'!$AD414=0),\"\",IF(LEN('Enrollment Form'!$AD414)<>5,\"N\",\"Y\")))","v":""},{"$f":"IF($B407=\"N\",\"\",IF(LEN('Enrollment Form'!$BL414=0),\"\",IF(LEN('Enrollment Form'!$BL414)<>5,\"N\",\"Y\")))","v":""},{"$f":"IF($B407=\"N\",\"\",IF(LEN('Enrollment Form'!$AE414)=0,\"\",IF(LEN('Enrollment Form'!$AE414)<>10,\"N\",\"Y\")))","v":""},{"$f":"IF($B407=\"N\",\"\",IF(LEN('Enrollment Form'!$AF414)=0,\"\",IF(LEN('Enrollment Form'!$AF414)<>10,\"N\",\"Y\")))","v":""},{"$f":"IF('Enrollment Form'!$O414<>\"Graded\",\"-\",IF(AND('Enrollment Form'!$O414=\"Graded\",'Enrollment Form'!$AO414<>\"\"),\"Y\",\"N\"))","v":"-"},{"$f":"IF($B407=\"N\",\"\",IF(OR('Enrollment Form'!$B414<>\"Subscriber\",'Enrollment Form'!$C414=\"ROC\"),\"-\",IF(AND('Enrollment Form'!$B414=\"Subscriber\",'Enrollment Form'!$C414=\"Enroll\",'Enrollment Form'!$AJ414<>\"\"),\"Y\",\"N\")))","v":""},{"$f":"IF($B407=\"N\",\"\",IF(OR('Enrollment Form'!$B414<>\"Subscriber\",'Enrollment Form'!$C414=\"ROC\"),\"-\",IF(AND('Enrollment Form'!$B414=\"Subscriber\",'Enrollment Form'!$C414=\"Enroll\",'Enrollment Form'!$AK414<>\"\"),\"Y\",\"N\")))","v":""},{"$f":"IF($B407=\"N\",\"\",IF(OR('Enrollment Form'!$B414<>\"Subscriber\",'Enrollment Form'!$C414=\"ROC\"),\"-\",IF(AND('Enrollment Form'!$B414=\"Subscriber\",'Enrollment Form'!$C414=\"Enroll\",'Enrollment Form'!$AL414<>\"\"),\"Y\",\"N\")))","v":""},{"$f":"IF($B407=\"N\",\"\",IF(OR('Enrollment Form'!$B414<>\"Subscriber\",'Enrollment Form'!$C414=\"ROC\"),\"-\",IF(AND('Enrollment Form'!$B414=\"Subscriber\",'Enrollment Form'!$C414=\"Enroll\",'Enrollment Form'!$AM414<>\"\"),\"Y\",\"N\")))","v":""},{"$f":"IF($B407=\"N\",\"\",IF(OR('Enrollment Form'!$B414<>\"Subscriber\",'Enrollment Form'!$C414=\"ROC\"),\"-\",IF(AND('Enrollment Form'!$B414=\"Subscriber\",'Enrollment Form'!$C414=\"Enroll\",'Enrollment Form'!$AN414<>\"\"),\"Y\",\"N\")))","v":""},{"$f":"IF($B407=\"N\",\"\",IF(OR('Enrollment Form'!$B414<>\"Subscriber\",'Enrollment Form'!$C414=\"ROC\"),\"-\",IF(AND('Enrollment Form'!$B414=\"Subscriber\",'Enrollment Form'!$C414=\"Enroll\",'Enrollment Form'!$AP414<>\"\"),\"Y\",\"N\")))","v":""},{"$f":"IF($B407=\"N\",\"\",IF($Q407=\"-\",\"-\",IF(AND($Q407=\"Y\",'Enrollment Form'!$AP414=\"No\"),\"-\",IF(AND($Q407=\"Y\",'Enrollment Form'!$AP414=\"Yes\",'Enrollment Form'!$AQ414<>\"\"),\"Y\",\"N\"))))","v":""},{"$f":"IF($B407=\"N\",\"\",IF(OR('Enrollment Form'!$B414<>\"Subscriber\",'Enrollment Form'!$C414=\"ROC\"),\"-\",IF(AND('Enrollment Form'!$B414=\"Subscriber\",'Enrollment Form'!$C414=\"Enroll\",'Enrollment Form'!$CO414<>\"\"),\"Y\",\"N\")))","v":""},{"$f":"IF($B407=\"N\",\"\",IF($S407=\"-\",\"-\",IF(AND($S407=\"Y\",'Enrollment Form'!$CO414=\"No\"),\"-\",IF(AND($S407=\"Y\",'Enrollment Form'!$CO414=\"Yes\",'Enrollment Form'!$CP414<>\"\"),\"Y\",\"N\"))))","v":""},{"$f":"IF(OR('Enrollment Form'!$AV414=\"Yes\",'Enrollment Form'!$AV414=\"\"),\"-\",IF(AND('Enrollment Form'!$AV414=\"No\",ISERROR(FIND(\"HMO\",VLOOKUP('Enrollment Form'!G414,'Enrollment Form'!H$11:J$1000,3,FALSE),1))=FALSE,COUNTA('Enrollment Form'!$AW414:$AZ414)=4),\"Y\",\"N\"))","v":"-"},{"$f":"IF($B407=\"N\",\"\",IF('Enrollment Form'!$B414=\"Subscriber\",\"-\",IF(COUNTA('Enrollment Form'!$BE414,'Enrollment Form'!$BG414)=2,\"Y\",\"N\")))","v":""},{"$f":"IF($B407=\"N\",\"\",IF(OR('Enrollment Form'!$AU414=\"\",'Enrollment Form'!$AU414=\"No\"),\"-\",IF(AND('Enrollment Form'!$AU414=\"Yes\",COUNTA('Enrollment Form'!$CK414)=1),\"Y\",\"N\")))","v":""},{"$f":"IF(OR('Enrollment Form'!$CK414=\"\",'Enrollment Form'!$CK414=\"No\"),\"-\",IF(COUNTA('Enrollment Form'!$CM414:$CN414)=2,\"Y\",\"N\"))","v":"-"},{"$f":"IF($B407=\"N\",\"\",IF(COUNTIF('Enrollment Form'!$CZ414:$DO414,\"Other\")=COUNTA('Enrollment Form'!$DF414,'Enrollment Form'!$DA414,'Enrollment Form'!$DK414,'Enrollment Form'!$DP414),\"Y\",\"N\"))","v":""},{"$f":"IF($B407=\"N\",\"\",IF(OR('Enrollment Form'!B414<>\"Subscriber\",'Enrollment Form'!C414=\"ROC\",COUNTIF('Enrollment Form'!AS414:AT414,\"Yes\")>=1),\"-\",IF(AND('Enrollment Form'!C414=\"Enroll\",COUNTIF('Enrollment Form'!AS414:AT414,\"No\")=2,'Enrollment Form'!AU414=\"\"),\"N\",\"Y\")))","v":""},{"$f":"IF(OR(B407=\"N\",'Enrollment Form'!B414<>\"Subscriber\",'Enrollment Form'!C414=\"ROC\",'Enrollment Form'!O414<>\"Multiple of Salary\"),\"-\",IF(COUNTA('Enrollment Form'!T414:U414)<2,\"N\",\"Y\"))","v":"-"},{"$f":"IF(B407=\"N\",\"\",IF(OR('Enrollment Form'!C414=\"ROC\",'Enrollment Form'!B414<>\"Subscriber\",'Enrollment Form'!O414=\"Waive\",'Enrollment Form'!O414=\"\"),\"-\",IF('Enrollment Form'!P414=\"\",\"N\",\"Y\")))","v":""},{"$f":"IF($B407=\"N\",\"\",IF(AND('Enrollment Form'!$C414=\"ROC\",'Enrollment Form'!$DS414<>\"\"),\"Y\",IF(AND('Enrollment Form'!$C414=\"ROC\",'Enrollment Form'!$DS414=\"\"),\"N\",IF(AND('Enrollment Form'!$C414=\"Enroll\",'Enrollment Form'!$B414=\"Subscriber\",'Enrollment Form'!$CQ414=\"No\",'Enrollment Form'!$DS414=\"\"),\"N\",IF(AND('Enrollment Form'!$C414=\"Enroll\",'Enrollment Form'!$B414=\"Subscriber\",'Enrollment Form'!$CQ414=\"Yes\"),\"-\",\"Y\")))))","v":""},{"$f":"IF($B407=\"N\",\"\",IF(AND('Enrollment Form'!$C414=\"ROC\",'Enrollment Form'!$DT414<>\"\"),\"Y\",IF(AND('Enrollment Form'!$C414=\"ROC\",'Enrollment Form'!$DT414=\"\"),\"N\",IF(AND('Enrollment Form'!$C414=\"Enroll\",'Enrollment Form'!$B414=\"Subscriber\",'Enrollment Form'!$CQ414=\"No\",'Enrollment Form'!$DT414=\"\"),\"N\",IF(AND('Enrollment Form'!$C414=\"Enroll\",'Enrollment Form'!$B414=\"Subscriber\",'Enrollment Form'!$CQ414=\"Yes\"),\"-\",\"Y\")))))","v":""},{"$f":"IF('Enrollment Form'!AH414=\"\",\"\",IF(ISERROR(SEARCH(\".\",'Enrollment Form'!AH414,SEARCH(\"@\",'Enrollment Form'!AH414))),\"N\",\"Y\"))","v":""},{"$f":"IF(OR($B407=\"N\",'Enrollment Form'!$G414=\"\"),\"\",IF('Enrollment Form'!$B414<>\"Subscriber\",\"-\",IF(COUNTIF('Enrollment Form'!$AS414:$AT414,\"Yes\")=2,\"N\",\"Y\")))","v":""},{"$f":"IF(OR('Enrollment Form'!$CC414=\"\",'Enrollment Form'!$CC414=\"No\"),\"-\",IF(AND('Enrollment Form'!$CC414=\"Yes\",'Enrollment Form'!$CD414=\"\"),\"N\",\"Y\"))","v":"-"},{"$f":"IF(OR('Enrollment Form'!$CE414=\"\",'Enrollment Form'!$CE414=\"No\"),\"-\",IF(AND('Enrollment Form'!$CE414=\"Yes\",'Enrollment Form'!$CF414=\"\"),\"N\",\"Y\"))","v":"-"},{"$f":"IF(OR('Enrollment Form'!$CG414=\"\",'Enrollment Form'!$CG414=\"No\"),\"-\",IF(AND('Enrollment Form'!$CG414=\"Yes\",'Enrollment Form'!$CH414=\"\"),\"N\",\"Y\"))","v":"-"},{"$f":"IF(OR('Enrollment Form'!$CG414=\"\",'Enrollment Form'!$CG414=\"No\"),\"-\",IF(AND('Enrollment Form'!$CG414=\"Yes\",'Enrollment Form'!$CI414=\"\"),\"N\",\"Y\"))","v":"-"},{"$f":"IF('Enrollment Form'!B414<>\"Subscriber\",\"-\",IF(AND('Enrollment Form'!B414=\"Subscriber\",'Enrollment Form'!C414=\"Enroll\",'Enrollment Form'!AA414=\"\"),\"N\",\"Y\"))","v":"-"},{"$f":"IF(OR('Enrollment Form'!B414=\"Subscriber\",'Enrollment Form'!B414=\"\"),\"-\",IF('Enrollment Form'!BI414=\"\",\"N\",\"Y\"))","v":"-"},{"$f":"IF('Enrollment Form'!B414<>\"Subscriber\",\"-\",IF(AND('Enrollment Form'!B414=\"Subscriber\",'Enrollment Form'!G414=\"\"),\"N\",\"Y\"))","v":"-"},{"$f":"IF('Enrollment Form'!A414=\"\",\"\",IF('Enrollment Form'!B414=\"Subscriber\",\"-\",IF(AND('Enrollment Form'!B414<>\"Subscriber\",'Enrollment Form'!G414='Enrollment Form'!H414),\"N\",\"Y\")))","v":""},0]
[415,{"$f":"IF('Enrollment Form'!$A415<>\"\",\"Y\",\"N\")","v":"N"},{"$f":"IF(AND('Enrollment Form'!$B415=\"\",'Enrollment Form'!$C415<>\"\"),\"N\",IF($B408=\"N\",\"\",\"Y\"))","v":""},{"$f":"IF(OR($B408=\"N\",'Enrollment Form'!G415=\"\"),\"\",IF('Enrollment Form'!$B415<>\"Subscriber\",\"\",IF('Enrollment Form'!$G415='Enrollment Form'!$H415,\"Y\",\"N\")))","v":""},{"$f":"IF($B408=\"N\",\"\",IF(AND(COUNTIFS('Enrollment Form'!$H$11:$H$1000,'Enrollment Form'!$H415,'Enrollment Form'!$B$11:$B$1000,'Enrollment Form'!$B415)>1,'Enrollment Form'!$H415<>\"\"),\"N\",\"Y\"))","v":""},{"$f":"IF($B408=\"N\",\"\",IF(LEN('Enrollment Form'!$Y415)=0,\"\",IF(LEN('Enrollment Form'!$Y415)<>5,\"N\",\"Y\")))","v":""},{"$f":"IF($B408=\"N\",\"\",IF(LEN('Enrollment Form'!$AD415=0),\"\",IF(LEN('Enrollment Form'!$AD415)<>5,\"N\",\"Y\")))","v":""},{"$f":"IF($B408=\"N\",\"\",IF(LEN('Enrollment Form'!$BL415=0),\"\",IF(LEN('Enrollment Form'!$BL415)<>5,\"N\",\"Y\")))","v":""},{"$f":"IF($B408=\"N\",\"\",IF(LEN('Enrollment Form'!$AE415)=0,\"\",IF(LEN('Enrollment Form'!$AE415)<>10,\"N\",\"Y\")))","v":""},{"$f":"IF($B408=\"N\",\"\",IF(LEN('Enrollment Form'!$AF415)=0,\"\",IF(LEN('Enrollment Form'!$AF415)<>10,\"N\",\"Y\")))","v":""},{"$f":"IF('Enrollment Form'!$O415<>\"Graded\",\"-\",IF(AND('Enrollment Form'!$O415=\"Graded\",'Enrollment Form'!$AO415<>\"\"),\"Y\",\"N\"))","v":"-"},{"$f":"IF($B408=\"N\",\"\",IF(OR('Enrollment Form'!$B415<>\"Subscriber\",'Enrollment Form'!$C415=\"ROC\"),\"-\",IF(AND('Enrollment Form'!$B415=\"Subscriber\",'Enrollment Form'!$C415=\"Enroll\",'Enrollment Form'!$AJ415<>\"\"),\"Y\",\"N\")))","v":""},{"$f":"IF($B408=\"N\",\"\",IF(OR('Enrollment Form'!$B415<>\"Subscriber\",'Enrollment Form'!$C415=\"ROC\"),\"-\",IF(AND('Enrollment Form'!$B415=\"Subscriber\",'Enrollment Form'!$C415=\"Enroll\",'Enrollment Form'!$AK415<>\"\"),\"Y\",\"N\")))","v":""},{"$f":"IF($B408=\"N\",\"\",IF(OR('Enrollment Form'!$B415<>\"Subscriber\",'Enrollment Form'!$C415=\"ROC\"),\"-\",IF(AND('Enrollment Form'!$B415=\"Subscriber\",'Enrollment Form'!$C415=\"Enroll\",'Enrollment Form'!$AL415<>\"\"),\"Y\",\"N\")))","v":""},{"$f":"IF($B408=\"N\",\"\",IF(OR('Enrollment Form'!$B415<>\"Subscriber\",'Enrollment Form'!$C415=\"ROC\"),\"-\",IF(AND('Enrollment Form'!$B415=\"Subscriber\",'Enrollment Form'!$C415=\"Enroll\",'Enrollment Form'!$AM415<>\"\"),\"Y\",\"N\")))","v":""},{"$f":"IF($B408=\"N\",\"\",IF(OR('Enrollment Form'!$B415<>\"Subscriber\",'Enrollment Form'!$C415=\"ROC\"),\"-\",IF(AND('Enrollment Form'!$B415=\"Subscriber\",'Enrollment Form'!$C415=\"Enroll\",'Enrollment Form'!$AN415<>\"\"),\"Y\",\"N\")))","v":""},{"$f":"IF($B408=\"N\",\"\",IF(OR('Enrollment Form'!$B415<>\"Subscriber\",'Enrollment Form'!$C415=\"ROC\"),\"-\",IF(AND('Enrollment Form'!$B415=\"Subscriber\",'Enrollment Form'!$C415=\"Enroll\",'Enrollment Form'!$AP415<>\"\"),\"Y\",\"N\")))","v":""},{"$f":"IF($B408=\"N\",\"\",IF($Q408=\"-\",\"-\",IF(AND($Q408=\"Y\",'Enrollment Form'!$AP415=\"No\"),\"-\",IF(AND($Q408=\"Y\",'Enrollment Form'!$AP415=\"Yes\",'Enrollment Form'!$AQ415<>\"\"),\"Y\",\"N\"))))","v":""},{"$f":"IF($B408=\"N\",\"\",IF(OR('Enrollment Form'!$B415<>\"Subscriber\",'Enrollment Form'!$C415=\"ROC\"),\"-\",IF(AND('Enrollment Form'!$B415=\"Subscriber\",'Enrollment Form'!$C415=\"Enroll\",'Enrollment Form'!$CO415<>\"\"),\"Y\",\"N\")))","v":""},{"$f":"IF($B408=\"N\",\"\",IF($S408=\"-\",\"-\",IF(AND($S408=\"Y\",'Enrollment Form'!$CO415=\"No\"),\"-\",IF(AND($S408=\"Y\",'Enrollment Form'!$CO415=\"Yes\",'Enrollment Form'!$CP415<>\"\"),\"Y\",\"N\"))))","v":""},{"$f":"IF(OR('Enrollment Form'!$AV415=\"Yes\",'Enrollment Form'!$AV415=\"\"),\"-\",IF(AND('Enrollment Form'!$AV415=\"No\",ISERROR(FIND(\"HMO\",VLOOKUP('Enrollment Form'!G415,'Enrollment Form'!H$11:J$1000,3,FALSE),1))=FALSE,COUNTA('Enrollment Form'!$AW415:$AZ415)=4),\"Y\",\"N\"))","v":"-"},{"$f":"IF($B408=\"N\",\"\",IF('Enrollment Form'!$B415=\"Subscriber\",\"-\",IF(COUNTA('Enrollment Form'!$BE415,'Enrollment Form'!$BG415)=2,\"Y\",\"N\")))","v":""},{"$f":"IF($B408=\"N\",\"\",IF(OR('Enrollment Form'!$AU415=\"\",'Enrollment Form'!$AU415=\"No\"),\"-\",IF(AND('Enrollment Form'!$AU415=\"Yes\",COUNTA('Enrollment Form'!$CK415)=1),\"Y\",\"N\")))","v":""},{"$f":"IF(OR('Enrollment Form'!$CK415=\"\",'Enrollment Form'!$CK415=\"No\"),\"-\",IF(COUNTA('Enrollment Form'!$CM415:$CN415)=2,\"Y\",\"N\"))","v":"-"},{"$f":"IF($B408=\"N\",\"\",IF(COUNTIF('Enrollment Form'!$CZ415:$DO415,\"Other\")=COUNTA('Enrollment Form'!$DF415,'Enrollment Form'!$DA415,'Enrollment Form'!$DK415,'Enrollment Form'!$DP415),\"Y\",\"N\"))","v":""},{"$f":"IF($B408=\"N\",\"\",IF(OR('Enrollment Form'!B415<>\"Subscriber\",'Enrollment Form'!C415=\"ROC\",COUNTIF('Enrollment Form'!AS415:AT415,\"Yes\")>=1),\"-\",IF(AND('Enrollment Form'!C415=\"Enroll\",COUNTIF('Enrollment Form'!AS415:AT415,\"No\")=2,'Enrollment Form'!AU415=\"\"),\"N\",\"Y\")))","v":""},{"$f":"IF(OR(B408=\"N\",'Enrollment Form'!B415<>\"Subscriber\",'Enrollment Form'!C415=\"ROC\",'Enrollment Form'!O415<>\"Multiple of Salary\"),\"-\",IF(COUNTA('Enrollment Form'!T415:U415)<2,\"N\",\"Y\"))","v":"-"},{"$f":"IF(B408=\"N\",\"\",IF(OR('Enrollment Form'!C415=\"ROC\",'Enrollment Form'!B415<>\"Subscriber\",'Enrollment Form'!O415=\"Waive\",'Enrollment Form'!O415=\"\"),\"-\",IF('Enrollment Form'!P415=\"\",\"N\",\"Y\")))","v":""},{"$f":"IF($B408=\"N\",\"\",IF(AND('Enrollment Form'!$C415=\"ROC\",'Enrollment Form'!$DS415<>\"\"),\"Y\",IF(AND('Enrollment Form'!$C415=\"ROC\",'Enrollment Form'!$DS415=\"\"),\"N\",IF(AND('Enrollment Form'!$C415=\"Enroll\",'Enrollment Form'!$B415=\"Subscriber\",'Enrollment Form'!$CQ415=\"No\",'Enrollment Form'!$DS415=\"\"),\"N\",IF(AND('Enrollment Form'!$C415=\"Enroll\",'Enrollment Form'!$B415=\"Subscriber\",'Enrollment Form'!$CQ415=\"Yes\"),\"-\",\"Y\")))))","v":""},{"$f":"IF($B408=\"N\",\"\",IF(AND('Enrollment Form'!$C415=\"ROC\",'Enrollment Form'!$DT415<>\"\"),\"Y\",IF(AND('Enrollment Form'!$C415=\"ROC\",'Enrollment Form'!$DT415=\"\"),\"N\",IF(AND('Enrollment Form'!$C415=\"Enroll\",'Enrollment Form'!$B415=\"Subscriber\",'Enrollment Form'!$CQ415=\"No\",'Enrollment Form'!$DT415=\"\"),\"N\",IF(AND('Enrollment Form'!$C415=\"Enroll\",'Enrollment Form'!$B415=\"Subscriber\",'Enrollment Form'!$CQ415=\"Yes\"),\"-\",\"Y\")))))","v":""},{"$f":"IF('Enrollment Form'!AH415=\"\",\"\",IF(ISERROR(SEARCH(\".\",'Enrollment Form'!AH415,SEARCH(\"@\",'Enrollment Form'!AH415))),\"N\",\"Y\"))","v":""},{"$f":"IF(OR($B408=\"N\",'Enrollment Form'!$G415=\"\"),\"\",IF('Enrollment Form'!$B415<>\"Subscriber\",\"-\",IF(COUNTIF('Enrollment Form'!$AS415:$AT415,\"Yes\")=2,\"N\",\"Y\")))","v":""},{"$f":"IF(OR('Enrollment Form'!$CC415=\"\",'Enrollment Form'!$CC415=\"No\"),\"-\",IF(AND('Enrollment Form'!$CC415=\"Yes\",'Enrollment Form'!$CD415=\"\"),\"N\",\"Y\"))","v":"-"},{"$f":"IF(OR('Enrollment Form'!$CE415=\"\",'Enrollment Form'!$CE415=\"No\"),\"-\",IF(AND('Enrollment Form'!$CE415=\"Yes\",'Enrollment Form'!$CF415=\"\"),\"N\",\"Y\"))","v":"-"},{"$f":"IF(OR('Enrollment Form'!$CG415=\"\",'Enrollment Form'!$CG415=\"No\"),\"-\",IF(AND('Enrollment Form'!$CG415=\"Yes\",'Enrollment Form'!$CH415=\"\"),\"N\",\"Y\"))","v":"-"},{"$f":"IF(OR('Enrollment Form'!$CG415=\"\",'Enrollment Form'!$CG415=\"No\"),\"-\",IF(AND('Enrollment Form'!$CG415=\"Yes\",'Enrollment Form'!$CI415=\"\"),\"N\",\"Y\"))","v":"-"},{"$f":"IF('Enrollment Form'!B415<>\"Subscriber\",\"-\",IF(AND('Enrollment Form'!B415=\"Subscriber\",'Enrollment Form'!C415=\"Enroll\",'Enrollment Form'!AA415=\"\"),\"N\",\"Y\"))","v":"-"},{"$f":"IF(OR('Enrollment Form'!B415=\"Subscriber\",'Enrollment Form'!B415=\"\"),\"-\",IF('Enrollment Form'!BI415=\"\",\"N\",\"Y\"))","v":"-"},{"$f":"IF('Enrollment Form'!B415<>\"Subscriber\",\"-\",IF(AND('Enrollment Form'!B415=\"Subscriber\",'Enrollment Form'!G415=\"\"),\"N\",\"Y\"))","v":"-"},{"$f":"IF('Enrollment Form'!A415=\"\",\"\",IF('Enrollment Form'!B415=\"Subscriber\",\"-\",IF(AND('Enrollment Form'!B415<>\"Subscriber\",'Enrollment Form'!G415='Enrollment Form'!H415),\"N\",\"Y\")))","v":""},0]
[416,{"$f":"IF('Enrollment Form'!$A416<>\"\",\"Y\",\"N\")","v":"N"},{"$f":"IF(AND('Enrollment Form'!$B416=\"\",'Enrollment Form'!$C416<>\"\"),\"N\",IF($B409=\"N\",\"\",\"Y\"))","v":""},{"$f":"IF(OR($B409=\"N\",'Enrollment Form'!G416=\"\"),\"\",IF('Enrollment Form'!$B416<>\"Subscriber\",\"\",IF('Enrollment Form'!$G416='Enrollment Form'!$H416,\"Y\",\"N\")))","v":""},{"$f":"IF($B409=\"N\",\"\",IF(AND(COUNTIFS('Enrollment Form'!$H$11:$H$1000,'Enrollment Form'!$H416,'Enrollment Form'!$B$11:$B$1000,'Enrollment Form'!$B416)>1,'Enrollment Form'!$H416<>\"\"),\"N\",\"Y\"))","v":""},{"$f":"IF($B409=\"N\",\"\",IF(LEN('Enrollment Form'!$Y416)=0,\"\",IF(LEN('Enrollment Form'!$Y416)<>5,\"N\",\"Y\")))","v":""},{"$f":"IF($B409=\"N\",\"\",IF(LEN('Enrollment Form'!$AD416=0),\"\",IF(LEN('Enrollment Form'!$AD416)<>5,\"N\",\"Y\")))","v":""},{"$f":"IF($B409=\"N\",\"\",IF(LEN('Enrollment Form'!$BL416=0),\"\",IF(LEN('Enrollment Form'!$BL416)<>5,\"N\",\"Y\")))","v":""},{"$f":"IF($B409=\"N\",\"\",IF(LEN('Enrollment Form'!$AE416)=0,\"\",IF(LEN('Enrollment Form'!$AE416)<>10,\"N\",\"Y\")))","v":""},{"$f":"IF($B409=\"N\",\"\",IF(LEN('Enrollment Form'!$AF416)=0,\"\",IF(LEN('Enrollment Form'!$AF416)<>10,\"N\",\"Y\")))","v":""},{"$f":"IF('Enrollment Form'!$O416<>\"Graded\",\"-\",IF(AND('Enrollment Form'!$O416=\"Graded\",'Enrollment Form'!$AO416<>\"\"),\"Y\",\"N\"))","v":"-"},{"$f":"IF($B409=\"N\",\"\",IF(OR('Enrollment Form'!$B416<>\"Subscriber\",'Enrollment Form'!$C416=\"ROC\"),\"-\",IF(AND('Enrollment Form'!$B416=\"Subscriber\",'Enrollment Form'!$C416=\"Enroll\",'Enrollment Form'!$AJ416<>\"\"),\"Y\",\"N\")))","v":""},{"$f":"IF($B409=\"N\",\"\",IF(OR('Enrollment Form'!$B416<>\"Subscriber\",'Enrollment Form'!$C416=\"ROC\"),\"-\",IF(AND('Enrollment Form'!$B416=\"Subscriber\",'Enrollment Form'!$C416=\"Enroll\",'Enrollment Form'!$AK416<>\"\"),\"Y\",\"N\")))","v":""},{"$f":"IF($B409=\"N\",\"\",IF(OR('Enrollment Form'!$B416<>\"Subscriber\",'Enrollment Form'!$C416=\"ROC\"),\"-\",IF(AND('Enrollment Form'!$B416=\"Subscriber\",'Enrollment Form'!$C416=\"Enroll\",'Enrollment Form'!$AL416<>\"\"),\"Y\",\"N\")))","v":""},{"$f":"IF($B409=\"N\",\"\",IF(OR('Enrollment Form'!$B416<>\"Subscriber\",'Enrollment Form'!$C416=\"ROC\"),\"-\",IF(AND('Enrollment Form'!$B416=\"Subscriber\",'Enrollment Form'!$C416=\"Enroll\",'Enrollment Form'!$AM416<>\"\"),\"Y\",\"N\")))","v":""},{"$f":"IF($B409=\"N\",\"\",IF(OR('Enrollment Form'!$B416<>\"Subscriber\",'Enrollment Form'!$C416=\"ROC\"),\"-\",IF(AND('Enrollment Form'!$B416=\"Subscriber\",'Enrollment Form'!$C416=\"Enroll\",'Enrollment Form'!$AN416<>\"\"),\"Y\",\"N\")))","v":""},{"$f":"IF($B409=\"N\",\"\",IF(OR('Enrollment Form'!$B416<>\"Subscriber\",'Enrollment Form'!$C416=\"ROC\"),\"-\",IF(AND('Enrollment Form'!$B416=\"Subscriber\",'Enrollment Form'!$C416=\"Enroll\",'Enrollment Form'!$AP416<>\"\"),\"Y\",\"N\")))","v":""},{"$f":"IF($B409=\"N\",\"\",IF($Q409=\"-\",\"-\",IF(AND($Q409=\"Y\",'Enrollment Form'!$AP416=\"No\"),\"-\",IF(AND($Q409=\"Y\",'Enrollment Form'!$AP416=\"Yes\",'Enrollment Form'!$AQ416<>\"\"),\"Y\",\"N\"))))","v":""},{"$f":"IF($B409=\"N\",\"\",IF(OR('Enrollment Form'!$B416<>\"Subscriber\",'Enrollment Form'!$C416=\"ROC\"),\"-\",IF(AND('Enrollment Form'!$B416=\"Subscriber\",'Enrollment Form'!$C416=\"Enroll\",'Enrollment Form'!$CO416<>\"\"),\"Y\",\"N\")))","v":""},{"$f":"IF($B409=\"N\",\"\",IF($S409=\"-\",\"-\",IF(AND($S409=\"Y\",'Enrollment Form'!$CO416=\"No\"),\"-\",IF(AND($S409=\"Y\",'Enrollment Form'!$CO416=\"Yes\",'Enrollment Form'!$CP416<>\"\"),\"Y\",\"N\"))))","v":""},{"$f":"IF(OR('Enrollment Form'!$AV416=\"Yes\",'Enrollment Form'!$AV416=\"\"),\"-\",IF(AND('Enrollment Form'!$AV416=\"No\",ISERROR(FIND(\"HMO\",VLOOKUP('Enrollment Form'!G416,'Enrollment Form'!H$11:J$1000,3,FALSE),1))=FALSE,COUNTA('Enrollment Form'!$AW416:$AZ416)=4),\"Y\",\"N\"))","v":"-"},{"$f":"IF($B409=\"N\",\"\",IF('Enrollment Form'!$B416=\"Subscriber\",\"-\",IF(COUNTA('Enrollment Form'!$BE416,'Enrollment Form'!$BG416)=2,\"Y\",\"N\")))","v":""},{"$f":"IF($B409=\"N\",\"\",IF(OR('Enrollment Form'!$AU416=\"\",'Enrollment Form'!$AU416=\"No\"),\"-\",IF(AND('Enrollment Form'!$AU416=\"Yes\",COUNTA('Enrollment Form'!$CK416)=1),\"Y\",\"N\")))","v":""},{"$f":"IF(OR('Enrollment Form'!$CK416=\"\",'Enrollment Form'!$CK416=\"No\"),\"-\",IF(COUNTA('Enrollment Form'!$CM416:$CN416)=2,\"Y\",\"N\"))","v":"-"},{"$f":"IF($B409=\"N\",\"\",IF(COUNTIF('Enrollment Form'!$CZ416:$DO416,\"Other\")=COUNTA('Enrollment Form'!$DF416,'Enrollment Form'!$DA416,'Enrollment Form'!$DK416,'Enrollment Form'!$DP416),\"Y\",\"N\"))","v":""},{"$f":"IF($B409=\"N\",\"\",IF(OR('Enrollment Form'!B416<>\"Subscriber\",'Enrollment Form'!C416=\"ROC\",COUNTIF('Enrollment Form'!AS416:AT416,\"Yes\")>=1),\"-\",IF(AND('Enrollment Form'!C416=\"Enroll\",COUNTIF('Enrollment Form'!AS416:AT416,\"No\")=2,'Enrollment Form'!AU416=\"\"),\"N\",\"Y\")))","v":""},{"$f":"IF(OR(B409=\"N\",'Enrollment Form'!B416<>\"Subscriber\",'Enrollment Form'!C416=\"ROC\",'Enrollment Form'!O416<>\"Multiple of Salary\"),\"-\",IF(COUNTA('Enrollment Form'!T416:U416)<2,\"N\",\"Y\"))","v":"-"},{"$f":"IF(B409=\"N\",\"\",IF(OR('Enrollment Form'!C416=\"ROC\",'Enrollment Form'!B416<>\"Subscriber\",'Enrollment Form'!O416=\"Waive\",'Enrollment Form'!O416=\"\"),\"-\",IF('Enrollment Form'!P416=\"\",\"N\",\"Y\")))","v":""},{"$f":"IF($B409=\"N\",\"\",IF(AND('Enrollment Form'!$C416=\"ROC\",'Enrollment Form'!$DS416<>\"\"),\"Y\",IF(AND('Enrollment Form'!$C416=\"ROC\",'Enrollment Form'!$DS416=\"\"),\"N\",IF(AND('Enrollment Form'!$C416=\"Enroll\",'Enrollment Form'!$B416=\"Subscriber\",'Enrollment Form'!$CQ416=\"No\",'Enrollment Form'!$DS416=\"\"),\"N\",IF(AND('Enrollment Form'!$C416=\"Enroll\",'Enrollment Form'!$B416=\"Subscriber\",'Enrollment Form'!$CQ416=\"Yes\"),\"-\",\"Y\")))))","v":""},{"$f":"IF($B409=\"N\",\"\",IF(AND('Enrollment Form'!$C416=\"ROC\",'Enrollment Form'!$DT416<>\"\"),\"Y\",IF(AND('Enrollment Form'!$C416=\"ROC\",'Enrollment Form'!$DT416=\"\"),\"N\",IF(AND('Enrollment Form'!$C416=\"Enroll\",'Enrollment Form'!$B416=\"Subscriber\",'Enrollment Form'!$CQ416=\"No\",'Enrollment Form'!$DT416=\"\"),\"N\",IF(AND('Enrollment Form'!$C416=\"Enroll\",'Enrollment Form'!$B416=\"Subscriber\",'Enrollment Form'!$CQ416=\"Yes\"),\"-\",\"Y\")))))","v":""},{"$f":"IF('Enrollment Form'!AH416=\"\",\"\",IF(ISERROR(SEARCH(\".\",'Enrollment Form'!AH416,SEARCH(\"@\",'Enrollment Form'!AH416))),\"N\",\"Y\"))","v":""},{"$f":"IF(OR($B409=\"N\",'Enrollment Form'!$G416=\"\"),\"\",IF('Enrollment Form'!$B416<>\"Subscriber\",\"-\",IF(COUNTIF('Enrollment Form'!$AS416:$AT416,\"Yes\")=2,\"N\",\"Y\")))","v":""},{"$f":"IF(OR('Enrollment Form'!$CC416=\"\",'Enrollment Form'!$CC416=\"No\"),\"-\",IF(AND('Enrollment Form'!$CC416=\"Yes\",'Enrollment Form'!$CD416=\"\"),\"N\",\"Y\"))","v":"-"},{"$f":"IF(OR('Enrollment Form'!$CE416=\"\",'Enrollment Form'!$CE416=\"No\"),\"-\",IF(AND('Enrollment Form'!$CE416=\"Yes\",'Enrollment Form'!$CF416=\"\"),\"N\",\"Y\"))","v":"-"},{"$f":"IF(OR('Enrollment Form'!$CG416=\"\",'Enrollment Form'!$CG416=\"No\"),\"-\",IF(AND('Enrollment Form'!$CG416=\"Yes\",'Enrollment Form'!$CH416=\"\"),\"N\",\"Y\"))","v":"-"},{"$f":"IF(OR('Enrollment Form'!$CG416=\"\",'Enrollment Form'!$CG416=\"No\"),\"-\",IF(AND('Enrollment Form'!$CG416=\"Yes\",'Enrollment Form'!$CI416=\"\"),\"N\",\"Y\"))","v":"-"},{"$f":"IF('Enrollment Form'!B416<>\"Subscriber\",\"-\",IF(AND('Enrollment Form'!B416=\"Subscriber\",'Enrollment Form'!C416=\"Enroll\",'Enrollment Form'!AA416=\"\"),\"N\",\"Y\"))","v":"-"},{"$f":"IF(OR('Enrollment Form'!B416=\"Subscriber\",'Enrollment Form'!B416=\"\"),\"-\",IF('Enrollment Form'!BI416=\"\",\"N\",\"Y\"))","v":"-"},{"$f":"IF('Enrollment Form'!B416<>\"Subscriber\",\"-\",IF(AND('Enrollment Form'!B416=\"Subscriber\",'Enrollment Form'!G416=\"\"),\"N\",\"Y\"))","v":"-"},{"$f":"IF('Enrollment Form'!A416=\"\",\"\",IF('Enrollment Form'!B416=\"Subscriber\",\"-\",IF(AND('Enrollment Form'!B416<>\"Subscriber\",'Enrollment Form'!G416='Enrollment Form'!H416),\"N\",\"Y\")))","v":""},0]
[417,{"$f":"IF('Enrollment Form'!$A417<>\"\",\"Y\",\"N\")","v":"N"},{"$f":"IF(AND('Enrollment Form'!$B417=\"\",'Enrollment Form'!$C417<>\"\"),\"N\",IF($B410=\"N\",\"\",\"Y\"))","v":""},{"$f":"IF(OR($B410=\"N\",'Enrollment Form'!G417=\"\"),\"\",IF('Enrollment Form'!$B417<>\"Subscriber\",\"\",IF('Enrollment Form'!$G417='Enrollment Form'!$H417,\"Y\",\"N\")))","v":""},{"$f":"IF($B410=\"N\",\"\",IF(AND(COUNTIFS('Enrollment Form'!$H$11:$H$1000,'Enrollment Form'!$H417,'Enrollment Form'!$B$11:$B$1000,'Enrollment Form'!$B417)>1,'Enrollment Form'!$H417<>\"\"),\"N\",\"Y\"))","v":""},{"$f":"IF($B410=\"N\",\"\",IF(LEN('Enrollment Form'!$Y417)=0,\"\",IF(LEN('Enrollment Form'!$Y417)<>5,\"N\",\"Y\")))","v":""},{"$f":"IF($B410=\"N\",\"\",IF(LEN('Enrollment Form'!$AD417=0),\"\",IF(LEN('Enrollment Form'!$AD417)<>5,\"N\",\"Y\")))","v":""},{"$f":"IF($B410=\"N\",\"\",IF(LEN('Enrollment Form'!$BL417=0),\"\",IF(LEN('Enrollment Form'!$BL417)<>5,\"N\",\"Y\")))","v":""},{"$f":"IF($B410=\"N\",\"\",IF(LEN('Enrollment Form'!$AE417)=0,\"\",IF(LEN('Enrollment Form'!$AE417)<>10,\"N\",\"Y\")))","v":""},{"$f":"IF($B410=\"N\",\"\",IF(LEN('Enrollment Form'!$AF417)=0,\"\",IF(LEN('Enrollment Form'!$AF417)<>10,\"N\",\"Y\")))","v":""},{"$f":"IF('Enrollment Form'!$O417<>\"Graded\",\"-\",IF(AND('Enrollment Form'!$O417=\"Graded\",'Enrollment Form'!$AO417<>\"\"),\"Y\",\"N\"))","v":"-"},{"$f":"IF($B410=\"N\",\"\",IF(OR('Enrollment Form'!$B417<>\"Subscriber\",'Enrollment Form'!$C417=\"ROC\"),\"-\",IF(AND('Enrollment Form'!$B417=\"Subscriber\",'Enrollment Form'!$C417=\"Enroll\",'Enrollment Form'!$AJ417<>\"\"),\"Y\",\"N\")))","v":""},{"$f":"IF($B410=\"N\",\"\",IF(OR('Enrollment Form'!$B417<>\"Subscriber\",'Enrollment Form'!$C417=\"ROC\"),\"-\",IF(AND('Enrollment Form'!$B417=\"Subscriber\",'Enrollment Form'!$C417=\"Enroll\",'Enrollment Form'!$AK417<>\"\"),\"Y\",\"N\")))","v":""},{"$f":"IF($B410=\"N\",\"\",IF(OR('Enrollment Form'!$B417<>\"Subscriber\",'Enrollment Form'!$C417=\"ROC\"),\"-\",IF(AND('Enrollment Form'!$B417=\"Subscriber\",'Enrollment Form'!$C417=\"Enroll\",'Enrollment Form'!$AL417<>\"\"),\"Y\",\"N\")))","v":""},{"$f":"IF($B410=\"N\",\"\",IF(OR('Enrollment Form'!$B417<>\"Subscriber\",'Enrollment Form'!$C417=\"ROC\"),\"-\",IF(AND('Enrollment Form'!$B417=\"Subscriber\",'Enrollment Form'!$C417=\"Enroll\",'Enrollment Form'!$AM417<>\"\"),\"Y\",\"N\")))","v":""},{"$f":"IF($B410=\"N\",\"\",IF(OR('Enrollment Form'!$B417<>\"Subscriber\",'Enrollment Form'!$C417=\"ROC\"),\"-\",IF(AND('Enrollment Form'!$B417=\"Subscriber\",'Enrollment Form'!$C417=\"Enroll\",'Enrollment Form'!$AN417<>\"\"),\"Y\",\"N\")))","v":""},{"$f":"IF($B410=\"N\",\"\",IF(OR('Enrollment Form'!$B417<>\"Subscriber\",'Enrollment Form'!$C417=\"ROC\"),\"-\",IF(AND('Enrollment Form'!$B417=\"Subscriber\",'Enrollment Form'!$C417=\"Enroll\",'Enrollment Form'!$AP417<>\"\"),\"Y\",\"N\")))","v":""},{"$f":"IF($B410=\"N\",\"\",IF($Q410=\"-\",\"-\",IF(AND($Q410=\"Y\",'Enrollment Form'!$AP417=\"No\"),\"-\",IF(AND($Q410=\"Y\",'Enrollment Form'!$AP417=\"Yes\",'Enrollment Form'!$AQ417<>\"\"),\"Y\",\"N\"))))","v":""},{"$f":"IF($B410=\"N\",\"\",IF(OR('Enrollment Form'!$B417<>\"Subscriber\",'Enrollment Form'!$C417=\"ROC\"),\"-\",IF(AND('Enrollment Form'!$B417=\"Subscriber\",'Enrollment Form'!$C417=\"Enroll\",'Enrollment Form'!$CO417<>\"\"),\"Y\",\"N\")))","v":""},{"$f":"IF($B410=\"N\",\"\",IF($S410=\"-\",\"-\",IF(AND($S410=\"Y\",'Enrollment Form'!$CO417=\"No\"),\"-\",IF(AND($S410=\"Y\",'Enrollment Form'!$CO417=\"Yes\",'Enrollment Form'!$CP417<>\"\"),\"Y\",\"N\"))))","v":""},{"$f":"IF(OR('Enrollment Form'!$AV417=\"Yes\",'Enrollment Form'!$AV417=\"\"),\"-\",IF(AND('Enrollment Form'!$AV417=\"No\",ISERROR(FIND(\"HMO\",VLOOKUP('Enrollment Form'!G417,'Enrollment Form'!H$11:J$1000,3,FALSE),1))=FALSE,COUNTA('Enrollment Form'!$AW417:$AZ417)=4),\"Y\",\"N\"))","v":"-"},{"$f":"IF($B410=\"N\",\"\",IF('Enrollment Form'!$B417=\"Subscriber\",\"-\",IF(COUNTA('Enrollment Form'!$BE417,'Enrollment Form'!$BG417)=2,\"Y\",\"N\")))","v":""},{"$f":"IF($B410=\"N\",\"\",IF(OR('Enrollment Form'!$AU417=\"\",'Enrollment Form'!$AU417=\"No\"),\"-\",IF(AND('Enrollment Form'!$AU417=\"Yes\",COUNTA('Enrollment Form'!$CK417)=1),\"Y\",\"N\")))","v":""},{"$f":"IF(OR('Enrollment Form'!$CK417=\"\",'Enrollment Form'!$CK417=\"No\"),\"-\",IF(COUNTA('Enrollment Form'!$CM417:$CN417)=2,\"Y\",\"N\"))","v":"-"},{"$f":"IF($B410=\"N\",\"\",IF(COUNTIF('Enrollment Form'!$CZ417:$DO417,\"Other\")=COUNTA('Enrollment Form'!$DF417,'Enrollment Form'!$DA417,'Enrollment Form'!$DK417,'Enrollment Form'!$DP417),\"Y\",\"N\"))","v":""},{"$f":"IF($B410=\"N\",\"\",IF(OR('Enrollment Form'!B417<>\"Subscriber\",'Enrollment Form'!C417=\"ROC\",COUNTIF('Enrollment Form'!AS417:AT417,\"Yes\")>=1),\"-\",IF(AND('Enrollment Form'!C417=\"Enroll\",COUNTIF('Enrollment Form'!AS417:AT417,\"No\")=2,'Enrollment Form'!AU417=\"\"),\"N\",\"Y\")))","v":""},{"$f":"IF(OR(B410=\"N\",'Enrollment Form'!B417<>\"Subscriber\",'Enrollment Form'!C417=\"ROC\",'Enrollment Form'!O417<>\"Multiple of Salary\"),\"-\",IF(COUNTA('Enrollment Form'!T417:U417)<2,\"N\",\"Y\"))","v":"-"},{"$f":"IF(B410=\"N\",\"\",IF(OR('Enrollment Form'!C417=\"ROC\",'Enrollment Form'!B417<>\"Subscriber\",'Enrollment Form'!O417=\"Waive\",'Enrollment Form'!O417=\"\"),\"-\",IF('Enrollment Form'!P417=\"\",\"N\",\"Y\")))","v":""},{"$f":"IF($B410=\"N\",\"\",IF(AND('Enrollment Form'!$C417=\"ROC\",'Enrollment Form'!$DS417<>\"\"),\"Y\",IF(AND('Enrollment Form'!$C417=\"ROC\",'Enrollment Form'!$DS417=\"\"),\"N\",IF(AND('Enrollment Form'!$C417=\"Enroll\",'Enrollment Form'!$B417=\"Subscriber\",'Enrollment Form'!$CQ417=\"No\",'Enrollment Form'!$DS417=\"\"),\"N\",IF(AND('Enrollment Form'!$C417=\"Enroll\",'Enrollment Form'!$B417=\"Subscriber\",'Enrollment Form'!$CQ417=\"Yes\"),\"-\",\"Y\")))))","v":""},{"$f":"IF($B410=\"N\",\"\",IF(AND('Enrollment Form'!$C417=\"ROC\",'Enrollment Form'!$DT417<>\"\"),\"Y\",IF(AND('Enrollment Form'!$C417=\"ROC\",'Enrollment Form'!$DT417=\"\"),\"N\",IF(AND('Enrollment Form'!$C417=\"Enroll\",'Enrollment Form'!$B417=\"Subscriber\",'Enrollment Form'!$CQ417=\"No\",'Enrollment Form'!$DT417=\"\"),\"N\",IF(AND('Enrollment Form'!$C417=\"Enroll\",'Enrollment Form'!$B417=\"Subscriber\",'Enrollment Form'!$CQ417=\"Yes\"),\"-\",\"Y\")))))","v":""},{"$f":"IF('Enrollment Form'!AH417=\"\",\"\",IF(ISERROR(SEARCH(\".\",'Enrollment Form'!AH417,SEARCH(\"@\",'Enrollment Form'!AH417))),\"N\",\"Y\"))","v":""},{"$f":"IF(OR($B410=\"N\",'Enrollment Form'!$G417=\"\"),\"\",IF('Enrollment Form'!$B417<>\"Subscriber\",\"-\",IF(COUNTIF('Enrollment Form'!$AS417:$AT417,\"Yes\")=2,\"N\",\"Y\")))","v":""},{"$f":"IF(OR('Enrollment Form'!$CC417=\"\",'Enrollment Form'!$CC417=\"No\"),\"-\",IF(AND('Enrollment Form'!$CC417=\"Yes\",'Enrollment Form'!$CD417=\"\"),\"N\",\"Y\"))","v":"-"},{"$f":"IF(OR('Enrollment Form'!$CE417=\"\",'Enrollment Form'!$CE417=\"No\"),\"-\",IF(AND('Enrollment Form'!$CE417=\"Yes\",'Enrollment Form'!$CF417=\"\"),\"N\",\"Y\"))","v":"-"},{"$f":"IF(OR('Enrollment Form'!$CG417=\"\",'Enrollment Form'!$CG417=\"No\"),\"-\",IF(AND('Enrollment Form'!$CG417=\"Yes\",'Enrollment Form'!$CH417=\"\"),\"N\",\"Y\"))","v":"-"},{"$f":"IF(OR('Enrollment Form'!$CG417=\"\",'Enrollment Form'!$CG417=\"No\"),\"-\",IF(AND('Enrollment Form'!$CG417=\"Yes\",'Enrollment Form'!$CI417=\"\"),\"N\",\"Y\"))","v":"-"},{"$f":"IF('Enrollment Form'!B417<>\"Subscriber\",\"-\",IF(AND('Enrollment Form'!B417=\"Subscriber\",'Enrollment Form'!C417=\"Enroll\",'Enrollment Form'!AA417=\"\"),\"N\",\"Y\"))","v":"-"},{"$f":"IF(OR('Enrollment Form'!B417=\"Subscriber\",'Enrollment Form'!B417=\"\"),\"-\",IF('Enrollment Form'!BI417=\"\",\"N\",\"Y\"))","v":"-"},{"$f":"IF('Enrollment Form'!B417<>\"Subscriber\",\"-\",IF(AND('Enrollment Form'!B417=\"Subscriber\",'Enrollment Form'!G417=\"\"),\"N\",\"Y\"))","v":"-"},{"$f":"IF('Enrollment Form'!A417=\"\",\"\",IF('Enrollment Form'!B417=\"Subscriber\",\"-\",IF(AND('Enrollment Form'!B417<>\"Subscriber\",'Enrollment Form'!G417='Enrollment Form'!H417),\"N\",\"Y\")))","v":""},0]
[418,{"$f":"IF('Enrollment Form'!$A418<>\"\",\"Y\",\"N\")","v":"N"},{"$f":"IF(AND('Enrollment Form'!$B418=\"\",'Enrollment Form'!$C418<>\"\"),\"N\",IF($B411=\"N\",\"\",\"Y\"))","v":""},{"$f":"IF(OR($B411=\"N\",'Enrollment Form'!G418=\"\"),\"\",IF('Enrollment Form'!$B418<>\"Subscriber\",\"\",IF('Enrollment Form'!$G418='Enrollment Form'!$H418,\"Y\",\"N\")))","v":""},{"$f":"IF($B411=\"N\",\"\",IF(AND(COUNTIFS('Enrollment Form'!$H$11:$H$1000,'Enrollment Form'!$H418,'Enrollment Form'!$B$11:$B$1000,'Enrollment Form'!$B418)>1,'Enrollment Form'!$H418<>\"\"),\"N\",\"Y\"))","v":""},{"$f":"IF($B411=\"N\",\"\",IF(LEN('Enrollment Form'!$Y418)=0,\"\",IF(LEN('Enrollment Form'!$Y418)<>5,\"N\",\"Y\")))","v":""},{"$f":"IF($B411=\"N\",\"\",IF(LEN('Enrollment Form'!$AD418=0),\"\",IF(LEN('Enrollment Form'!$AD418)<>5,\"N\",\"Y\")))","v":""},{"$f":"IF($B411=\"N\",\"\",IF(LEN('Enrollment Form'!$BL418=0),\"\",IF(LEN('Enrollment Form'!$BL418)<>5,\"N\",\"Y\")))","v":""},{"$f":"IF($B411=\"N\",\"\",IF(LEN('Enrollment Form'!$AE418)=0,\"\",IF(LEN('Enrollment Form'!$AE418)<>10,\"N\",\"Y\")))","v":""},{"$f":"IF($B411=\"N\",\"\",IF(LEN('Enrollment Form'!$AF418)=0,\"\",IF(LEN('Enrollment Form'!$AF418)<>10,\"N\",\"Y\")))","v":""},{"$f":"IF('Enrollment Form'!$O418<>\"Graded\",\"-\",IF(AND('Enrollment Form'!$O418=\"Graded\",'Enrollment Form'!$AO418<>\"\"),\"Y\",\"N\"))","v":"-"},{"$f":"IF($B411=\"N\",\"\",IF(OR('Enrollment Form'!$B418<>\"Subscriber\",'Enrollment Form'!$C418=\"ROC\"),\"-\",IF(AND('Enrollment Form'!$B418=\"Subscriber\",'Enrollment Form'!$C418=\"Enroll\",'Enrollment Form'!$AJ418<>\"\"),\"Y\",\"N\")))","v":""},{"$f":"IF($B411=\"N\",\"\",IF(OR('Enrollment Form'!$B418<>\"Subscriber\",'Enrollment Form'!$C418=\"ROC\"),\"-\",IF(AND('Enrollment Form'!$B418=\"Subscriber\",'Enrollment Form'!$C418=\"Enroll\",'Enrollment Form'!$AK418<>\"\"),\"Y\",\"N\")))","v":""},{"$f":"IF($B411=\"N\",\"\",IF(OR('Enrollment Form'!$B418<>\"Subscriber\",'Enrollment Form'!$C418=\"ROC\"),\"-\",IF(AND('Enrollment Form'!$B418=\"Subscriber\",'Enrollment Form'!$C418=\"Enroll\",'Enrollment Form'!$AL418<>\"\"),\"Y\",\"N\")))","v":""},{"$f":"IF($B411=\"N\",\"\",IF(OR('Enrollment Form'!$B418<>\"Subscriber\",'Enrollment Form'!$C418=\"ROC\"),\"-\",IF(AND('Enrollment Form'!$B418=\"Subscriber\",'Enrollment Form'!$C418=\"Enroll\",'Enrollment Form'!$AM418<>\"\"),\"Y\",\"N\")))","v":""},{"$f":"IF($B411=\"N\",\"\",IF(OR('Enrollment Form'!$B418<>\"Subscriber\",'Enrollment Form'!$C418=\"ROC\"),\"-\",IF(AND('Enrollment Form'!$B418=\"Subscriber\",'Enrollment Form'!$C418=\"Enroll\",'Enrollment Form'!$AN418<>\"\"),\"Y\",\"N\")))","v":""},{"$f":"IF($B411=\"N\",\"\",IF(OR('Enrollment Form'!$B418<>\"Subscriber\",'Enrollment Form'!$C418=\"ROC\"),\"-\",IF(AND('Enrollment Form'!$B418=\"Subscriber\",'Enrollment Form'!$C418=\"Enroll\",'Enrollment Form'!$AP418<>\"\"),\"Y\",\"N\")))","v":""},{"$f":"IF($B411=\"N\",\"\",IF($Q411=\"-\",\"-\",IF(AND($Q411=\"Y\",'Enrollment Form'!$AP418=\"No\"),\"-\",IF(AND($Q411=\"Y\",'Enrollment Form'!$AP418=\"Yes\",'Enrollment Form'!$AQ418<>\"\"),\"Y\",\"N\"))))","v":""},{"$f":"IF($B411=\"N\",\"\",IF(OR('Enrollment Form'!$B418<>\"Subscriber\",'Enrollment Form'!$C418=\"ROC\"),\"-\",IF(AND('Enrollment Form'!$B418=\"Subscriber\",'Enrollment Form'!$C418=\"Enroll\",'Enrollment Form'!$CO418<>\"\"),\"Y\",\"N\")))","v":""},{"$f":"IF($B411=\"N\",\"\",IF($S411=\"-\",\"-\",IF(AND($S411=\"Y\",'Enrollment Form'!$CO418=\"No\"),\"-\",IF(AND($S411=\"Y\",'Enrollment Form'!$CO418=\"Yes\",'Enrollment Form'!$CP418<>\"\"),\"Y\",\"N\"))))","v":""},{"$f":"IF(OR('Enrollment Form'!$AV418=\"Yes\",'Enrollment Form'!$AV418=\"\"),\"-\",IF(AND('Enrollment Form'!$AV418=\"No\",ISERROR(FIND(\"HMO\",VLOOKUP('Enrollment Form'!G418,'Enrollment Form'!H$11:J$1000,3,FALSE),1))=FALSE,COUNTA('Enrollment Form'!$AW418:$AZ418)=4),\"Y\",\"N\"))","v":"-"},{"$f":"IF($B411=\"N\",\"\",IF('Enrollment Form'!$B418=\"Subscriber\",\"-\",IF(COUNTA('Enrollment Form'!$BE418,'Enrollment Form'!$BG418)=2,\"Y\",\"N\")))","v":""},{"$f":"IF($B411=\"N\",\"\",IF(OR('Enrollment Form'!$AU418=\"\",'Enrollment Form'!$AU418=\"No\"),\"-\",IF(AND('Enrollment Form'!$AU418=\"Yes\",COUNTA('Enrollment Form'!$CK418)=1),\"Y\",\"N\")))","v":""},{"$f":"IF(OR('Enrollment Form'!$CK418=\"\",'Enrollment Form'!$CK418=\"No\"),\"-\",IF(COUNTA('Enrollment Form'!$CM418:$CN418)=2,\"Y\",\"N\"))","v":"-"},{"$f":"IF($B411=\"N\",\"\",IF(COUNTIF('Enrollment Form'!$CZ418:$DO418,\"Other\")=COUNTA('Enrollment Form'!$DF418,'Enrollment Form'!$DA418,'Enrollment Form'!$DK418,'Enrollment Form'!$DP418),\"Y\",\"N\"))","v":""},{"$f":"IF($B411=\"N\",\"\",IF(OR('Enrollment Form'!B418<>\"Subscriber\",'Enrollment Form'!C418=\"ROC\",COUNTIF('Enrollment Form'!AS418:AT418,\"Yes\")>=1),\"-\",IF(AND('Enrollment Form'!C418=\"Enroll\",COUNTIF('Enrollment Form'!AS418:AT418,\"No\")=2,'Enrollment Form'!AU418=\"\"),\"N\",\"Y\")))","v":""},{"$f":"IF(OR(B411=\"N\",'Enrollment Form'!B418<>\"Subscriber\",'Enrollment Form'!C418=\"ROC\",'Enrollment Form'!O418<>\"Multiple of Salary\"),\"-\",IF(COUNTA('Enrollment Form'!T418:U418)<2,\"N\",\"Y\"))","v":"-"},{"$f":"IF(B411=\"N\",\"\",IF(OR('Enrollment Form'!C418=\"ROC\",'Enrollment Form'!B418<>\"Subscriber\",'Enrollment Form'!O418=\"Waive\",'Enrollment Form'!O418=\"\"),\"-\",IF('Enrollment Form'!P418=\"\",\"N\",\"Y\")))","v":""},{"$f":"IF($B411=\"N\",\"\",IF(AND('Enrollment Form'!$C418=\"ROC\",'Enrollment Form'!$DS418<>\"\"),\"Y\",IF(AND('Enrollment Form'!$C418=\"ROC\",'Enrollment Form'!$DS418=\"\"),\"N\",IF(AND('Enrollment Form'!$C418=\"Enroll\",'Enrollment Form'!$B418=\"Subscriber\",'Enrollment Form'!$CQ418=\"No\",'Enrollment Form'!$DS418=\"\"),\"N\",IF(AND('Enrollment Form'!$C418=\"Enroll\",'Enrollment Form'!$B418=\"Subscriber\",'Enrollment Form'!$CQ418=\"Yes\"),\"-\",\"Y\")))))","v":""},{"$f":"IF($B411=\"N\",\"\",IF(AND('Enrollment Form'!$C418=\"ROC\",'Enrollment Form'!$DT418<>\"\"),\"Y\",IF(AND('Enrollment Form'!$C418=\"ROC\",'Enrollment Form'!$DT418=\"\"),\"N\",IF(AND('Enrollment Form'!$C418=\"Enroll\",'Enrollment Form'!$B418=\"Subscriber\",'Enrollment Form'!$CQ418=\"No\",'Enrollment Form'!$DT418=\"\"),\"N\",IF(AND('Enrollment Form'!$C418=\"Enroll\",'Enrollment Form'!$B418=\"Subscriber\",'Enrollment Form'!$CQ418=\"Yes\"),\"-\",\"Y\")))))","v":""},{"$f":"IF('Enrollment Form'!AH418=\"\",\"\",IF(ISERROR(SEARCH(\".\",'Enrollment Form'!AH418,SEARCH(\"@\",'Enrollment Form'!AH418))),\"N\",\"Y\"))","v":""},{"$f":"IF(OR($B411=\"N\",'Enrollment Form'!$G418=\"\"),\"\",IF('Enrollment Form'!$B418<>\"Subscriber\",\"-\",IF(COUNTIF('Enrollment Form'!$AS418:$AT418,\"Yes\")=2,\"N\",\"Y\")))","v":""},{"$f":"IF(OR('Enrollment Form'!$CC418=\"\",'Enrollment Form'!$CC418=\"No\"),\"-\",IF(AND('Enrollment Form'!$CC418=\"Yes\",'Enrollment Form'!$CD418=\"\"),\"N\",\"Y\"))","v":"-"},{"$f":"IF(OR('Enrollment Form'!$CE418=\"\",'Enrollment Form'!$CE418=\"No\"),\"-\",IF(AND('Enrollment Form'!$CE418=\"Yes\",'Enrollment Form'!$CF418=\"\"),\"N\",\"Y\"))","v":"-"},{"$f":"IF(OR('Enrollment Form'!$CG418=\"\",'Enrollment Form'!$CG418=\"No\"),\"-\",IF(AND('Enrollment Form'!$CG418=\"Yes\",'Enrollment Form'!$CH418=\"\"),\"N\",\"Y\"))","v":"-"},{"$f":"IF(OR('Enrollment Form'!$CG418=\"\",'Enrollment Form'!$CG418=\"No\"),\"-\",IF(AND('Enrollment Form'!$CG418=\"Yes\",'Enrollment Form'!$CI418=\"\"),\"N\",\"Y\"))","v":"-"},{"$f":"IF('Enrollment Form'!B418<>\"Subscriber\",\"-\",IF(AND('Enrollment Form'!B418=\"Subscriber\",'Enrollment Form'!C418=\"Enroll\",'Enrollment Form'!AA418=\"\"),\"N\",\"Y\"))","v":"-"},{"$f":"IF(OR('Enrollment Form'!B418=\"Subscriber\",'Enrollment Form'!B418=\"\"),\"-\",IF('Enrollment Form'!BI418=\"\",\"N\",\"Y\"))","v":"-"},{"$f":"IF('Enrollment Form'!B418<>\"Subscriber\",\"-\",IF(AND('Enrollment Form'!B418=\"Subscriber\",'Enrollment Form'!G418=\"\"),\"N\",\"Y\"))","v":"-"},{"$f":"IF('Enrollment Form'!A418=\"\",\"\",IF('Enrollment Form'!B418=\"Subscriber\",\"-\",IF(AND('Enrollment Form'!B418<>\"Subscriber\",'Enrollment Form'!G418='Enrollment Form'!H418),\"N\",\"Y\")))","v":""},0]
[419,{"$f":"IF('Enrollment Form'!$A419<>\"\",\"Y\",\"N\")","v":"N"},{"$f":"IF(AND('Enrollment Form'!$B419=\"\",'Enrollment Form'!$C419<>\"\"),\"N\",IF($B412=\"N\",\"\",\"Y\"))","v":""},{"$f":"IF(OR($B412=\"N\",'Enrollment Form'!G419=\"\"),\"\",IF('Enrollment Form'!$B419<>\"Subscriber\",\"\",IF('Enrollment Form'!$G419='Enrollment Form'!$H419,\"Y\",\"N\")))","v":""},{"$f":"IF($B412=\"N\",\"\",IF(AND(COUNTIFS('Enrollment Form'!$H$11:$H$1000,'Enrollment Form'!$H419,'Enrollment Form'!$B$11:$B$1000,'Enrollment Form'!$B419)>1,'Enrollment Form'!$H419<>\"\"),\"N\",\"Y\"))","v":""},{"$f":"IF($B412=\"N\",\"\",IF(LEN('Enrollment Form'!$Y419)=0,\"\",IF(LEN('Enrollment Form'!$Y419)<>5,\"N\",\"Y\")))","v":""},{"$f":"IF($B412=\"N\",\"\",IF(LEN('Enrollment Form'!$AD419=0),\"\",IF(LEN('Enrollment Form'!$AD419)<>5,\"N\",\"Y\")))","v":""},{"$f":"IF($B412=\"N\",\"\",IF(LEN('Enrollment Form'!$BL419=0),\"\",IF(LEN('Enrollment Form'!$BL419)<>5,\"N\",\"Y\")))","v":""},{"$f":"IF($B412=\"N\",\"\",IF(LEN('Enrollment Form'!$AE419)=0,\"\",IF(LEN('Enrollment Form'!$AE419)<>10,\"N\",\"Y\")))","v":""},{"$f":"IF($B412=\"N\",\"\",IF(LEN('Enrollment Form'!$AF419)=0,\"\",IF(LEN('Enrollment Form'!$AF419)<>10,\"N\",\"Y\")))","v":""},{"$f":"IF('Enrollment Form'!$O419<>\"Graded\",\"-\",IF(AND('Enrollment Form'!$O419=\"Graded\",'Enrollment Form'!$AO419<>\"\"),\"Y\",\"N\"))","v":"-"},{"$f":"IF($B412=\"N\",\"\",IF(OR('Enrollment Form'!$B419<>\"Subscriber\",'Enrollment Form'!$C419=\"ROC\"),\"-\",IF(AND('Enrollment Form'!$B419=\"Subscriber\",'Enrollment Form'!$C419=\"Enroll\",'Enrollment Form'!$AJ419<>\"\"),\"Y\",\"N\")))","v":""},{"$f":"IF($B412=\"N\",\"\",IF(OR('Enrollment Form'!$B419<>\"Subscriber\",'Enrollment Form'!$C419=\"ROC\"),\"-\",IF(AND('Enrollment Form'!$B419=\"Subscriber\",'Enrollment Form'!$C419=\"Enroll\",'Enrollment Form'!$AK419<>\"\"),\"Y\",\"N\")))","v":""},{"$f":"IF($B412=\"N\",\"\",IF(OR('Enrollment Form'!$B419<>\"Subscriber\",'Enrollment Form'!$C419=\"ROC\"),\"-\",IF(AND('Enrollment Form'!$B419=\"Subscriber\",'Enrollment Form'!$C419=\"Enroll\",'Enrollment Form'!$AL419<>\"\"),\"Y\",\"N\")))","v":""},{"$f":"IF($B412=\"N\",\"\",IF(OR('Enrollment Form'!$B419<>\"Subscriber\",'Enrollment Form'!$C419=\"ROC\"),\"-\",IF(AND('Enrollment Form'!$B419=\"Subscriber\",'Enrollment Form'!$C419=\"Enroll\",'Enrollment Form'!$AM419<>\"\"),\"Y\",\"N\")))","v":""},{"$f":"IF($B412=\"N\",\"\",IF(OR('Enrollment Form'!$B419<>\"Subscriber\",'Enrollment Form'!$C419=\"ROC\"),\"-\",IF(AND('Enrollment Form'!$B419=\"Subscriber\",'Enrollment Form'!$C419=\"Enroll\",'Enrollment Form'!$AN419<>\"\"),\"Y\",\"N\")))","v":""},{"$f":"IF($B412=\"N\",\"\",IF(OR('Enrollment Form'!$B419<>\"Subscriber\",'Enrollment Form'!$C419=\"ROC\"),\"-\",IF(AND('Enrollment Form'!$B419=\"Subscriber\",'Enrollment Form'!$C419=\"Enroll\",'Enrollment Form'!$AP419<>\"\"),\"Y\",\"N\")))","v":""},{"$f":"IF($B412=\"N\",\"\",IF($Q412=\"-\",\"-\",IF(AND($Q412=\"Y\",'Enrollment Form'!$AP419=\"No\"),\"-\",IF(AND($Q412=\"Y\",'Enrollment Form'!$AP419=\"Yes\",'Enrollment Form'!$AQ419<>\"\"),\"Y\",\"N\"))))","v":""},{"$f":"IF($B412=\"N\",\"\",IF(OR('Enrollment Form'!$B419<>\"Subscriber\",'Enrollment Form'!$C419=\"ROC\"),\"-\",IF(AND('Enrollment Form'!$B419=\"Subscriber\",'Enrollment Form'!$C419=\"Enroll\",'Enrollment Form'!$CO419<>\"\"),\"Y\",\"N\")))","v":""},{"$f":"IF($B412=\"N\",\"\",IF($S412=\"-\",\"-\",IF(AND($S412=\"Y\",'Enrollment Form'!$CO419=\"No\"),\"-\",IF(AND($S412=\"Y\",'Enrollment Form'!$CO419=\"Yes\",'Enrollment Form'!$CP419<>\"\"),\"Y\",\"N\"))))","v":""},{"$f":"IF(OR('Enrollment Form'!$AV419=\"Yes\",'Enrollment Form'!$AV419=\"\"),\"-\",IF(AND('Enrollment Form'!$AV419=\"No\",ISERROR(FIND(\"HMO\",VLOOKUP('Enrollment Form'!G419,'Enrollment Form'!H$11:J$1000,3,FALSE),1))=FALSE,COUNTA('Enrollment Form'!$AW419:$AZ419)=4),\"Y\",\"N\"))","v":"-"},{"$f":"IF($B412=\"N\",\"\",IF('Enrollment Form'!$B419=\"Subscriber\",\"-\",IF(COUNTA('Enrollment Form'!$BE419,'Enrollment Form'!$BG419)=2,\"Y\",\"N\")))","v":""},{"$f":"IF($B412=\"N\",\"\",IF(OR('Enrollment Form'!$AU419=\"\",'Enrollment Form'!$AU419=\"No\"),\"-\",IF(AND('Enrollment Form'!$AU419=\"Yes\",COUNTA('Enrollment Form'!$CK419)=1),\"Y\",\"N\")))","v":""},{"$f":"IF(OR('Enrollment Form'!$CK419=\"\",'Enrollment Form'!$CK419=\"No\"),\"-\",IF(COUNTA('Enrollment Form'!$CM419:$CN419)=2,\"Y\",\"N\"))","v":"-"},{"$f":"IF($B412=\"N\",\"\",IF(COUNTIF('Enrollment Form'!$CZ419:$DO419,\"Other\")=COUNTA('Enrollment Form'!$DF419,'Enrollment Form'!$DA419,'Enrollment Form'!$DK419,'Enrollment Form'!$DP419),\"Y\",\"N\"))","v":""},{"$f":"IF($B412=\"N\",\"\",IF(OR('Enrollment Form'!B419<>\"Subscriber\",'Enrollment Form'!C419=\"ROC\",COUNTIF('Enrollment Form'!AS419:AT419,\"Yes\")>=1),\"-\",IF(AND('Enrollment Form'!C419=\"Enroll\",COUNTIF('Enrollment Form'!AS419:AT419,\"No\")=2,'Enrollment Form'!AU419=\"\"),\"N\",\"Y\")))","v":""},{"$f":"IF(OR(B412=\"N\",'Enrollment Form'!B419<>\"Subscriber\",'Enrollment Form'!C419=\"ROC\",'Enrollment Form'!O419<>\"Multiple of Salary\"),\"-\",IF(COUNTA('Enrollment Form'!T419:U419)<2,\"N\",\"Y\"))","v":"-"},{"$f":"IF(B412=\"N\",\"\",IF(OR('Enrollment Form'!C419=\"ROC\",'Enrollment Form'!B419<>\"Subscriber\",'Enrollment Form'!O419=\"Waive\",'Enrollment Form'!O419=\"\"),\"-\",IF('Enrollment Form'!P419=\"\",\"N\",\"Y\")))","v":""},{"$f":"IF($B412=\"N\",\"\",IF(AND('Enrollment Form'!$C419=\"ROC\",'Enrollment Form'!$DS419<>\"\"),\"Y\",IF(AND('Enrollment Form'!$C419=\"ROC\",'Enrollment Form'!$DS419=\"\"),\"N\",IF(AND('Enrollment Form'!$C419=\"Enroll\",'Enrollment Form'!$B419=\"Subscriber\",'Enrollment Form'!$CQ419=\"No\",'Enrollment Form'!$DS419=\"\"),\"N\",IF(AND('Enrollment Form'!$C419=\"Enroll\",'Enrollment Form'!$B419=\"Subscriber\",'Enrollment Form'!$CQ419=\"Yes\"),\"-\",\"Y\")))))","v":""},{"$f":"IF($B412=\"N\",\"\",IF(AND('Enrollment Form'!$C419=\"ROC\",'Enrollment Form'!$DT419<>\"\"),\"Y\",IF(AND('Enrollment Form'!$C419=\"ROC\",'Enrollment Form'!$DT419=\"\"),\"N\",IF(AND('Enrollment Form'!$C419=\"Enroll\",'Enrollment Form'!$B419=\"Subscriber\",'Enrollment Form'!$CQ419=\"No\",'Enrollment Form'!$DT419=\"\"),\"N\",IF(AND('Enrollment Form'!$C419=\"Enroll\",'Enrollment Form'!$B419=\"Subscriber\",'Enrollment Form'!$CQ419=\"Yes\"),\"-\",\"Y\")))))","v":""},{"$f":"IF('Enrollment Form'!AH419=\"\",\"\",IF(ISERROR(SEARCH(\".\",'Enrollment Form'!AH419,SEARCH(\"@\",'Enrollment Form'!AH419))),\"N\",\"Y\"))","v":""},{"$f":"IF(OR($B412=\"N\",'Enrollment Form'!$G419=\"\"),\"\",IF('Enrollment Form'!$B419<>\"Subscriber\",\"-\",IF(COUNTIF('Enrollment Form'!$AS419:$AT419,\"Yes\")=2,\"N\",\"Y\")))","v":""},{"$f":"IF(OR('Enrollment Form'!$CC419=\"\",'Enrollment Form'!$CC419=\"No\"),\"-\",IF(AND('Enrollment Form'!$CC419=\"Yes\",'Enrollment Form'!$CD419=\"\"),\"N\",\"Y\"))","v":"-"},{"$f":"IF(OR('Enrollment Form'!$CE419=\"\",'Enrollment Form'!$CE419=\"No\"),\"-\",IF(AND('Enrollment Form'!$CE419=\"Yes\",'Enrollment Form'!$CF419=\"\"),\"N\",\"Y\"))","v":"-"},{"$f":"IF(OR('Enrollment Form'!$CG419=\"\",'Enrollment Form'!$CG419=\"No\"),\"-\",IF(AND('Enrollment Form'!$CG419=\"Yes\",'Enrollment Form'!$CH419=\"\"),\"N\",\"Y\"))","v":"-"},{"$f":"IF(OR('Enrollment Form'!$CG419=\"\",'Enrollment Form'!$CG419=\"No\"),\"-\",IF(AND('Enrollment Form'!$CG419=\"Yes\",'Enrollment Form'!$CI419=\"\"),\"N\",\"Y\"))","v":"-"},{"$f":"IF('Enrollment Form'!B419<>\"Subscriber\",\"-\",IF(AND('Enrollment Form'!B419=\"Subscriber\",'Enrollment Form'!C419=\"Enroll\",'Enrollment Form'!AA419=\"\"),\"N\",\"Y\"))","v":"-"},{"$f":"IF(OR('Enrollment Form'!B419=\"Subscriber\",'Enrollment Form'!B419=\"\"),\"-\",IF('Enrollment Form'!BI419=\"\",\"N\",\"Y\"))","v":"-"},{"$f":"IF('Enrollment Form'!B419<>\"Subscriber\",\"-\",IF(AND('Enrollment Form'!B419=\"Subscriber\",'Enrollment Form'!G419=\"\"),\"N\",\"Y\"))","v":"-"},{"$f":"IF('Enrollment Form'!A419=\"\",\"\",IF('Enrollment Form'!B419=\"Subscriber\",\"-\",IF(AND('Enrollment Form'!B419<>\"Subscriber\",'Enrollment Form'!G419='Enrollment Form'!H419),\"N\",\"Y\")))","v":""},0]
[420,{"$f":"IF('Enrollment Form'!$A420<>\"\",\"Y\",\"N\")","v":"N"},{"$f":"IF(AND('Enrollment Form'!$B420=\"\",'Enrollment Form'!$C420<>\"\"),\"N\",IF($B413=\"N\",\"\",\"Y\"))","v":""},{"$f":"IF(OR($B413=\"N\",'Enrollment Form'!G420=\"\"),\"\",IF('Enrollment Form'!$B420<>\"Subscriber\",\"\",IF('Enrollment Form'!$G420='Enrollment Form'!$H420,\"Y\",\"N\")))","v":""},{"$f":"IF($B413=\"N\",\"\",IF(AND(COUNTIFS('Enrollment Form'!$H$11:$H$1000,'Enrollment Form'!$H420,'Enrollment Form'!$B$11:$B$1000,'Enrollment Form'!$B420)>1,'Enrollment Form'!$H420<>\"\"),\"N\",\"Y\"))","v":""},{"$f":"IF($B413=\"N\",\"\",IF(LEN('Enrollment Form'!$Y420)=0,\"\",IF(LEN('Enrollment Form'!$Y420)<>5,\"N\",\"Y\")))","v":""},{"$f":"IF($B413=\"N\",\"\",IF(LEN('Enrollment Form'!$AD420=0),\"\",IF(LEN('Enrollment Form'!$AD420)<>5,\"N\",\"Y\")))","v":""},{"$f":"IF($B413=\"N\",\"\",IF(LEN('Enrollment Form'!$BL420=0),\"\",IF(LEN('Enrollment Form'!$BL420)<>5,\"N\",\"Y\")))","v":""},{"$f":"IF($B413=\"N\",\"\",IF(LEN('Enrollment Form'!$AE420)=0,\"\",IF(LEN('Enrollment Form'!$AE420)<>10,\"N\",\"Y\")))","v":""},{"$f":"IF($B413=\"N\",\"\",IF(LEN('Enrollment Form'!$AF420)=0,\"\",IF(LEN('Enrollment Form'!$AF420)<>10,\"N\",\"Y\")))","v":""},{"$f":"IF('Enrollment Form'!$O420<>\"Graded\",\"-\",IF(AND('Enrollment Form'!$O420=\"Graded\",'Enrollment Form'!$AO420<>\"\"),\"Y\",\"N\"))","v":"-"},{"$f":"IF($B413=\"N\",\"\",IF(OR('Enrollment Form'!$B420<>\"Subscriber\",'Enrollment Form'!$C420=\"ROC\"),\"-\",IF(AND('Enrollment Form'!$B420=\"Subscriber\",'Enrollment Form'!$C420=\"Enroll\",'Enrollment Form'!$AJ420<>\"\"),\"Y\",\"N\")))","v":""},{"$f":"IF($B413=\"N\",\"\",IF(OR('Enrollment Form'!$B420<>\"Subscriber\",'Enrollment Form'!$C420=\"ROC\"),\"-\",IF(AND('Enrollment Form'!$B420=\"Subscriber\",'Enrollment Form'!$C420=\"Enroll\",'Enrollment Form'!$AK420<>\"\"),\"Y\",\"N\")))","v":""},{"$f":"IF($B413=\"N\",\"\",IF(OR('Enrollment Form'!$B420<>\"Subscriber\",'Enrollment Form'!$C420=\"ROC\"),\"-\",IF(AND('Enrollment Form'!$B420=\"Subscriber\",'Enrollment Form'!$C420=\"Enroll\",'Enrollment Form'!$AL420<>\"\"),\"Y\",\"N\")))","v":""},{"$f":"IF($B413=\"N\",\"\",IF(OR('Enrollment Form'!$B420<>\"Subscriber\",'Enrollment Form'!$C420=\"ROC\"),\"-\",IF(AND('Enrollment Form'!$B420=\"Subscriber\",'Enrollment Form'!$C420=\"Enroll\",'Enrollment Form'!$AM420<>\"\"),\"Y\",\"N\")))","v":""},{"$f":"IF($B413=\"N\",\"\",IF(OR('Enrollment Form'!$B420<>\"Subscriber\",'Enrollment Form'!$C420=\"ROC\"),\"-\",IF(AND('Enrollment Form'!$B420=\"Subscriber\",'Enrollment Form'!$C420=\"Enroll\",'Enrollment Form'!$AN420<>\"\"),\"Y\",\"N\")))","v":""},{"$f":"IF($B413=\"N\",\"\",IF(OR('Enrollment Form'!$B420<>\"Subscriber\",'Enrollment Form'!$C420=\"ROC\"),\"-\",IF(AND('Enrollment Form'!$B420=\"Subscriber\",'Enrollment Form'!$C420=\"Enroll\",'Enrollment Form'!$AP420<>\"\"),\"Y\",\"N\")))","v":""},{"$f":"IF($B413=\"N\",\"\",IF($Q413=\"-\",\"-\",IF(AND($Q413=\"Y\",'Enrollment Form'!$AP420=\"No\"),\"-\",IF(AND($Q413=\"Y\",'Enrollment Form'!$AP420=\"Yes\",'Enrollment Form'!$AQ420<>\"\"),\"Y\",\"N\"))))","v":""},{"$f":"IF($B413=\"N\",\"\",IF(OR('Enrollment Form'!$B420<>\"Subscriber\",'Enrollment Form'!$C420=\"ROC\"),\"-\",IF(AND('Enrollment Form'!$B420=\"Subscriber\",'Enrollment Form'!$C420=\"Enroll\",'Enrollment Form'!$CO420<>\"\"),\"Y\",\"N\")))","v":""},{"$f":"IF($B413=\"N\",\"\",IF($S413=\"-\",\"-\",IF(AND($S413=\"Y\",'Enrollment Form'!$CO420=\"No\"),\"-\",IF(AND($S413=\"Y\",'Enrollment Form'!$CO420=\"Yes\",'Enrollment Form'!$CP420<>\"\"),\"Y\",\"N\"))))","v":""},{"$f":"IF(OR('Enrollment Form'!$AV420=\"Yes\",'Enrollment Form'!$AV420=\"\"),\"-\",IF(AND('Enrollment Form'!$AV420=\"No\",ISERROR(FIND(\"HMO\",VLOOKUP('Enrollment Form'!G420,'Enrollment Form'!H$11:J$1000,3,FALSE),1))=FALSE,COUNTA('Enrollment Form'!$AW420:$AZ420)=4),\"Y\",\"N\"))","v":"-"},{"$f":"IF($B413=\"N\",\"\",IF('Enrollment Form'!$B420=\"Subscriber\",\"-\",IF(COUNTA('Enrollment Form'!$BE420,'Enrollment Form'!$BG420)=2,\"Y\",\"N\")))","v":""},{"$f":"IF($B413=\"N\",\"\",IF(OR('Enrollment Form'!$AU420=\"\",'Enrollment Form'!$AU420=\"No\"),\"-\",IF(AND('Enrollment Form'!$AU420=\"Yes\",COUNTA('Enrollment Form'!$CK420)=1),\"Y\",\"N\")))","v":""},{"$f":"IF(OR('Enrollment Form'!$CK420=\"\",'Enrollment Form'!$CK420=\"No\"),\"-\",IF(COUNTA('Enrollment Form'!$CM420:$CN420)=2,\"Y\",\"N\"))","v":"-"},{"$f":"IF($B413=\"N\",\"\",IF(COUNTIF('Enrollment Form'!$CZ420:$DO420,\"Other\")=COUNTA('Enrollment Form'!$DF420,'Enrollment Form'!$DA420,'Enrollment Form'!$DK420,'Enrollment Form'!$DP420),\"Y\",\"N\"))","v":""},{"$f":"IF($B413=\"N\",\"\",IF(OR('Enrollment Form'!B420<>\"Subscriber\",'Enrollment Form'!C420=\"ROC\",COUNTIF('Enrollment Form'!AS420:AT420,\"Yes\")>=1),\"-\",IF(AND('Enrollment Form'!C420=\"Enroll\",COUNTIF('Enrollment Form'!AS420:AT420,\"No\")=2,'Enrollment Form'!AU420=\"\"),\"N\",\"Y\")))","v":""},{"$f":"IF(OR(B413=\"N\",'Enrollment Form'!B420<>\"Subscriber\",'Enrollment Form'!C420=\"ROC\",'Enrollment Form'!O420<>\"Multiple of Salary\"),\"-\",IF(COUNTA('Enrollment Form'!T420:U420)<2,\"N\",\"Y\"))","v":"-"},{"$f":"IF(B413=\"N\",\"\",IF(OR('Enrollment Form'!C420=\"ROC\",'Enrollment Form'!B420<>\"Subscriber\",'Enrollment Form'!O420=\"Waive\",'Enrollment Form'!O420=\"\"),\"-\",IF('Enrollment Form'!P420=\"\",\"N\",\"Y\")))","v":""},{"$f":"IF($B413=\"N\",\"\",IF(AND('Enrollment Form'!$C420=\"ROC\",'Enrollment Form'!$DS420<>\"\"),\"Y\",IF(AND('Enrollment Form'!$C420=\"ROC\",'Enrollment Form'!$DS420=\"\"),\"N\",IF(AND('Enrollment Form'!$C420=\"Enroll\",'Enrollment Form'!$B420=\"Subscriber\",'Enrollment Form'!$CQ420=\"No\",'Enrollment Form'!$DS420=\"\"),\"N\",IF(AND('Enrollment Form'!$C420=\"Enroll\",'Enrollment Form'!$B420=\"Subscriber\",'Enrollment Form'!$CQ420=\"Yes\"),\"-\",\"Y\")))))","v":""},{"$f":"IF($B413=\"N\",\"\",IF(AND('Enrollment Form'!$C420=\"ROC\",'Enrollment Form'!$DT420<>\"\"),\"Y\",IF(AND('Enrollment Form'!$C420=\"ROC\",'Enrollment Form'!$DT420=\"\"),\"N\",IF(AND('Enrollment Form'!$C420=\"Enroll\",'Enrollment Form'!$B420=\"Subscriber\",'Enrollment Form'!$CQ420=\"No\",'Enrollment Form'!$DT420=\"\"),\"N\",IF(AND('Enrollment Form'!$C420=\"Enroll\",'Enrollment Form'!$B420=\"Subscriber\",'Enrollment Form'!$CQ420=\"Yes\"),\"-\",\"Y\")))))","v":""},{"$f":"IF('Enrollment Form'!AH420=\"\",\"\",IF(ISERROR(SEARCH(\".\",'Enrollment Form'!AH420,SEARCH(\"@\",'Enrollment Form'!AH420))),\"N\",\"Y\"))","v":""},{"$f":"IF(OR($B413=\"N\",'Enrollment Form'!$G420=\"\"),\"\",IF('Enrollment Form'!$B420<>\"Subscriber\",\"-\",IF(COUNTIF('Enrollment Form'!$AS420:$AT420,\"Yes\")=2,\"N\",\"Y\")))","v":""},{"$f":"IF(OR('Enrollment Form'!$CC420=\"\",'Enrollment Form'!$CC420=\"No\"),\"-\",IF(AND('Enrollment Form'!$CC420=\"Yes\",'Enrollment Form'!$CD420=\"\"),\"N\",\"Y\"))","v":"-"},{"$f":"IF(OR('Enrollment Form'!$CE420=\"\",'Enrollment Form'!$CE420=\"No\"),\"-\",IF(AND('Enrollment Form'!$CE420=\"Yes\",'Enrollment Form'!$CF420=\"\"),\"N\",\"Y\"))","v":"-"},{"$f":"IF(OR('Enrollment Form'!$CG420=\"\",'Enrollment Form'!$CG420=\"No\"),\"-\",IF(AND('Enrollment Form'!$CG420=\"Yes\",'Enrollment Form'!$CH420=\"\"),\"N\",\"Y\"))","v":"-"},{"$f":"IF(OR('Enrollment Form'!$CG420=\"\",'Enrollment Form'!$CG420=\"No\"),\"-\",IF(AND('Enrollment Form'!$CG420=\"Yes\",'Enrollment Form'!$CI420=\"\"),\"N\",\"Y\"))","v":"-"},{"$f":"IF('Enrollment Form'!B420<>\"Subscriber\",\"-\",IF(AND('Enrollment Form'!B420=\"Subscriber\",'Enrollment Form'!C420=\"Enroll\",'Enrollment Form'!AA420=\"\"),\"N\",\"Y\"))","v":"-"},{"$f":"IF(OR('Enrollment Form'!B420=\"Subscriber\",'Enrollment Form'!B420=\"\"),\"-\",IF('Enrollment Form'!BI420=\"\",\"N\",\"Y\"))","v":"-"},{"$f":"IF('Enrollment Form'!B420<>\"Subscriber\",\"-\",IF(AND('Enrollment Form'!B420=\"Subscriber\",'Enrollment Form'!G420=\"\"),\"N\",\"Y\"))","v":"-"},{"$f":"IF('Enrollment Form'!A420=\"\",\"\",IF('Enrollment Form'!B420=\"Subscriber\",\"-\",IF(AND('Enrollment Form'!B420<>\"Subscriber\",'Enrollment Form'!G420='Enrollment Form'!H420),\"N\",\"Y\")))","v":""},0]
[421,{"$f":"IF('Enrollment Form'!$A421<>\"\",\"Y\",\"N\")","v":"N"},{"$f":"IF(AND('Enrollment Form'!$B421=\"\",'Enrollment Form'!$C421<>\"\"),\"N\",IF($B414=\"N\",\"\",\"Y\"))","v":""},{"$f":"IF(OR($B414=\"N\",'Enrollment Form'!G421=\"\"),\"\",IF('Enrollment Form'!$B421<>\"Subscriber\",\"\",IF('Enrollment Form'!$G421='Enrollment Form'!$H421,\"Y\",\"N\")))","v":""},{"$f":"IF($B414=\"N\",\"\",IF(AND(COUNTIFS('Enrollment Form'!$H$11:$H$1000,'Enrollment Form'!$H421,'Enrollment Form'!$B$11:$B$1000,'Enrollment Form'!$B421)>1,'Enrollment Form'!$H421<>\"\"),\"N\",\"Y\"))","v":""},{"$f":"IF($B414=\"N\",\"\",IF(LEN('Enrollment Form'!$Y421)=0,\"\",IF(LEN('Enrollment Form'!$Y421)<>5,\"N\",\"Y\")))","v":""},{"$f":"IF($B414=\"N\",\"\",IF(LEN('Enrollment Form'!$AD421=0),\"\",IF(LEN('Enrollment Form'!$AD421)<>5,\"N\",\"Y\")))","v":""},{"$f":"IF($B414=\"N\",\"\",IF(LEN('Enrollment Form'!$BL421=0),\"\",IF(LEN('Enrollment Form'!$BL421)<>5,\"N\",\"Y\")))","v":""},{"$f":"IF($B414=\"N\",\"\",IF(LEN('Enrollment Form'!$AE421)=0,\"\",IF(LEN('Enrollment Form'!$AE421)<>10,\"N\",\"Y\")))","v":""},{"$f":"IF($B414=\"N\",\"\",IF(LEN('Enrollment Form'!$AF421)=0,\"\",IF(LEN('Enrollment Form'!$AF421)<>10,\"N\",\"Y\")))","v":""},{"$f":"IF('Enrollment Form'!$O421<>\"Graded\",\"-\",IF(AND('Enrollment Form'!$O421=\"Graded\",'Enrollment Form'!$AO421<>\"\"),\"Y\",\"N\"))","v":"-"},{"$f":"IF($B414=\"N\",\"\",IF(OR('Enrollment Form'!$B421<>\"Subscriber\",'Enrollment Form'!$C421=\"ROC\"),\"-\",IF(AND('Enrollment Form'!$B421=\"Subscriber\",'Enrollment Form'!$C421=\"Enroll\",'Enrollment Form'!$AJ421<>\"\"),\"Y\",\"N\")))","v":""},{"$f":"IF($B414=\"N\",\"\",IF(OR('Enrollment Form'!$B421<>\"Subscriber\",'Enrollment Form'!$C421=\"ROC\"),\"-\",IF(AND('Enrollment Form'!$B421=\"Subscriber\",'Enrollment Form'!$C421=\"Enroll\",'Enrollment Form'!$AK421<>\"\"),\"Y\",\"N\")))","v":""},{"$f":"IF($B414=\"N\",\"\",IF(OR('Enrollment Form'!$B421<>\"Subscriber\",'Enrollment Form'!$C421=\"ROC\"),\"-\",IF(AND('Enrollment Form'!$B421=\"Subscriber\",'Enrollment Form'!$C421=\"Enroll\",'Enrollment Form'!$AL421<>\"\"),\"Y\",\"N\")))","v":""},{"$f":"IF($B414=\"N\",\"\",IF(OR('Enrollment Form'!$B421<>\"Subscriber\",'Enrollment Form'!$C421=\"ROC\"),\"-\",IF(AND('Enrollment Form'!$B421=\"Subscriber\",'Enrollment Form'!$C421=\"Enroll\",'Enrollment Form'!$AM421<>\"\"),\"Y\",\"N\")))","v":""},{"$f":"IF($B414=\"N\",\"\",IF(OR('Enrollment Form'!$B421<>\"Subscriber\",'Enrollment Form'!$C421=\"ROC\"),\"-\",IF(AND('Enrollment Form'!$B421=\"Subscriber\",'Enrollment Form'!$C421=\"Enroll\",'Enrollment Form'!$AN421<>\"\"),\"Y\",\"N\")))","v":""},{"$f":"IF($B414=\"N\",\"\",IF(OR('Enrollment Form'!$B421<>\"Subscriber\",'Enrollment Form'!$C421=\"ROC\"),\"-\",IF(AND('Enrollment Form'!$B421=\"Subscriber\",'Enrollment Form'!$C421=\"Enroll\",'Enrollment Form'!$AP421<>\"\"),\"Y\",\"N\")))","v":""},{"$f":"IF($B414=\"N\",\"\",IF($Q414=\"-\",\"-\",IF(AND($Q414=\"Y\",'Enrollment Form'!$AP421=\"No\"),\"-\",IF(AND($Q414=\"Y\",'Enrollment Form'!$AP421=\"Yes\",'Enrollment Form'!$AQ421<>\"\"),\"Y\",\"N\"))))","v":""},{"$f":"IF($B414=\"N\",\"\",IF(OR('Enrollment Form'!$B421<>\"Subscriber\",'Enrollment Form'!$C421=\"ROC\"),\"-\",IF(AND('Enrollment Form'!$B421=\"Subscriber\",'Enrollment Form'!$C421=\"Enroll\",'Enrollment Form'!$CO421<>\"\"),\"Y\",\"N\")))","v":""},{"$f":"IF($B414=\"N\",\"\",IF($S414=\"-\",\"-\",IF(AND($S414=\"Y\",'Enrollment Form'!$CO421=\"No\"),\"-\",IF(AND($S414=\"Y\",'Enrollment Form'!$CO421=\"Yes\",'Enrollment Form'!$CP421<>\"\"),\"Y\",\"N\"))))","v":""},{"$f":"IF(OR('Enrollment Form'!$AV421=\"Yes\",'Enrollment Form'!$AV421=\"\"),\"-\",IF(AND('Enrollment Form'!$AV421=\"No\",ISERROR(FIND(\"HMO\",VLOOKUP('Enrollment Form'!G421,'Enrollment Form'!H$11:J$1000,3,FALSE),1))=FALSE,COUNTA('Enrollment Form'!$AW421:$AZ421)=4),\"Y\",\"N\"))","v":"-"},{"$f":"IF($B414=\"N\",\"\",IF('Enrollment Form'!$B421=\"Subscriber\",\"-\",IF(COUNTA('Enrollment Form'!$BE421,'Enrollment Form'!$BG421)=2,\"Y\",\"N\")))","v":""},{"$f":"IF($B414=\"N\",\"\",IF(OR('Enrollment Form'!$AU421=\"\",'Enrollment Form'!$AU421=\"No\"),\"-\",IF(AND('Enrollment Form'!$AU421=\"Yes\",COUNTA('Enrollment Form'!$CK421)=1),\"Y\",\"N\")))","v":""},{"$f":"IF(OR('Enrollment Form'!$CK421=\"\",'Enrollment Form'!$CK421=\"No\"),\"-\",IF(COUNTA('Enrollment Form'!$CM421:$CN421)=2,\"Y\",\"N\"))","v":"-"},{"$f":"IF($B414=\"N\",\"\",IF(COUNTIF('Enrollment Form'!$CZ421:$DO421,\"Other\")=COUNTA('Enrollment Form'!$DF421,'Enrollment Form'!$DA421,'Enrollment Form'!$DK421,'Enrollment Form'!$DP421),\"Y\",\"N\"))","v":""},{"$f":"IF($B414=\"N\",\"\",IF(OR('Enrollment Form'!B421<>\"Subscriber\",'Enrollment Form'!C421=\"ROC\",COUNTIF('Enrollment Form'!AS421:AT421,\"Yes\")>=1),\"-\",IF(AND('Enrollment Form'!C421=\"Enroll\",COUNTIF('Enrollment Form'!AS421:AT421,\"No\")=2,'Enrollment Form'!AU421=\"\"),\"N\",\"Y\")))","v":""},{"$f":"IF(OR(B414=\"N\",'Enrollment Form'!B421<>\"Subscriber\",'Enrollment Form'!C421=\"ROC\",'Enrollment Form'!O421<>\"Multiple of Salary\"),\"-\",IF(COUNTA('Enrollment Form'!T421:U421)<2,\"N\",\"Y\"))","v":"-"},{"$f":"IF(B414=\"N\",\"\",IF(OR('Enrollment Form'!C421=\"ROC\",'Enrollment Form'!B421<>\"Subscriber\",'Enrollment Form'!O421=\"Waive\",'Enrollment Form'!O421=\"\"),\"-\",IF('Enrollment Form'!P421=\"\",\"N\",\"Y\")))","v":""},{"$f":"IF($B414=\"N\",\"\",IF(AND('Enrollment Form'!$C421=\"ROC\",'Enrollment Form'!$DS421<>\"\"),\"Y\",IF(AND('Enrollment Form'!$C421=\"ROC\",'Enrollment Form'!$DS421=\"\"),\"N\",IF(AND('Enrollment Form'!$C421=\"Enroll\",'Enrollment Form'!$B421=\"Subscriber\",'Enrollment Form'!$CQ421=\"No\",'Enrollment Form'!$DS421=\"\"),\"N\",IF(AND('Enrollment Form'!$C421=\"Enroll\",'Enrollment Form'!$B421=\"Subscriber\",'Enrollment Form'!$CQ421=\"Yes\"),\"-\",\"Y\")))))","v":""},{"$f":"IF($B414=\"N\",\"\",IF(AND('Enrollment Form'!$C421=\"ROC\",'Enrollment Form'!$DT421<>\"\"),\"Y\",IF(AND('Enrollment Form'!$C421=\"ROC\",'Enrollment Form'!$DT421=\"\"),\"N\",IF(AND('Enrollment Form'!$C421=\"Enroll\",'Enrollment Form'!$B421=\"Subscriber\",'Enrollment Form'!$CQ421=\"No\",'Enrollment Form'!$DT421=\"\"),\"N\",IF(AND('Enrollment Form'!$C421=\"Enroll\",'Enrollment Form'!$B421=\"Subscriber\",'Enrollment Form'!$CQ421=\"Yes\"),\"-\",\"Y\")))))","v":""},{"$f":"IF('Enrollment Form'!AH421=\"\",\"\",IF(ISERROR(SEARCH(\".\",'Enrollment Form'!AH421,SEARCH(\"@\",'Enrollment Form'!AH421))),\"N\",\"Y\"))","v":""},{"$f":"IF(OR($B414=\"N\",'Enrollment Form'!$G421=\"\"),\"\",IF('Enrollment Form'!$B421<>\"Subscriber\",\"-\",IF(COUNTIF('Enrollment Form'!$AS421:$AT421,\"Yes\")=2,\"N\",\"Y\")))","v":""},{"$f":"IF(OR('Enrollment Form'!$CC421=\"\",'Enrollment Form'!$CC421=\"No\"),\"-\",IF(AND('Enrollment Form'!$CC421=\"Yes\",'Enrollment Form'!$CD421=\"\"),\"N\",\"Y\"))","v":"-"},{"$f":"IF(OR('Enrollment Form'!$CE421=\"\",'Enrollment Form'!$CE421=\"No\"),\"-\",IF(AND('Enrollment Form'!$CE421=\"Yes\",'Enrollment Form'!$CF421=\"\"),\"N\",\"Y\"))","v":"-"},{"$f":"IF(OR('Enrollment Form'!$CG421=\"\",'Enrollment Form'!$CG421=\"No\"),\"-\",IF(AND('Enrollment Form'!$CG421=\"Yes\",'Enrollment Form'!$CH421=\"\"),\"N\",\"Y\"))","v":"-"},{"$f":"IF(OR('Enrollment Form'!$CG421=\"\",'Enrollment Form'!$CG421=\"No\"),\"-\",IF(AND('Enrollment Form'!$CG421=\"Yes\",'Enrollment Form'!$CI421=\"\"),\"N\",\"Y\"))","v":"-"},{"$f":"IF('Enrollment Form'!B421<>\"Subscriber\",\"-\",IF(AND('Enrollment Form'!B421=\"Subscriber\",'Enrollment Form'!C421=\"Enroll\",'Enrollment Form'!AA421=\"\"),\"N\",\"Y\"))","v":"-"},{"$f":"IF(OR('Enrollment Form'!B421=\"Subscriber\",'Enrollment Form'!B421=\"\"),\"-\",IF('Enrollment Form'!BI421=\"\",\"N\",\"Y\"))","v":"-"},{"$f":"IF('Enrollment Form'!B421<>\"Subscriber\",\"-\",IF(AND('Enrollment Form'!B421=\"Subscriber\",'Enrollment Form'!G421=\"\"),\"N\",\"Y\"))","v":"-"},{"$f":"IF('Enrollment Form'!A421=\"\",\"\",IF('Enrollment Form'!B421=\"Subscriber\",\"-\",IF(AND('Enrollment Form'!B421<>\"Subscriber\",'Enrollment Form'!G421='Enrollment Form'!H421),\"N\",\"Y\")))","v":""},0]
[422,{"$f":"IF('Enrollment Form'!$A422<>\"\",\"Y\",\"N\")","v":"N"},{"$f":"IF(AND('Enrollment Form'!$B422=\"\",'Enrollment Form'!$C422<>\"\"),\"N\",IF($B415=\"N\",\"\",\"Y\"))","v":""},{"$f":"IF(OR($B415=\"N\",'Enrollment Form'!G422=\"\"),\"\",IF('Enrollment Form'!$B422<>\"Subscriber\",\"\",IF('Enrollment Form'!$G422='Enrollment Form'!$H422,\"Y\",\"N\")))","v":""},{"$f":"IF($B415=\"N\",\"\",IF(AND(COUNTIFS('Enrollment Form'!$H$11:$H$1000,'Enrollment Form'!$H422,'Enrollment Form'!$B$11:$B$1000,'Enrollment Form'!$B422)>1,'Enrollment Form'!$H422<>\"\"),\"N\",\"Y\"))","v":""},{"$f":"IF($B415=\"N\",\"\",IF(LEN('Enrollment Form'!$Y422)=0,\"\",IF(LEN('Enrollment Form'!$Y422)<>5,\"N\",\"Y\")))","v":""},{"$f":"IF($B415=\"N\",\"\",IF(LEN('Enrollment Form'!$AD422=0),\"\",IF(LEN('Enrollment Form'!$AD422)<>5,\"N\",\"Y\")))","v":""},{"$f":"IF($B415=\"N\",\"\",IF(LEN('Enrollment Form'!$BL422=0),\"\",IF(LEN('Enrollment Form'!$BL422)<>5,\"N\",\"Y\")))","v":""},{"$f":"IF($B415=\"N\",\"\",IF(LEN('Enrollment Form'!$AE422)=0,\"\",IF(LEN('Enrollment Form'!$AE422)<>10,\"N\",\"Y\")))","v":""},{"$f":"IF($B415=\"N\",\"\",IF(LEN('Enrollment Form'!$AF422)=0,\"\",IF(LEN('Enrollment Form'!$AF422)<>10,\"N\",\"Y\")))","v":""},{"$f":"IF('Enrollment Form'!$O422<>\"Graded\",\"-\",IF(AND('Enrollment Form'!$O422=\"Graded\",'Enrollment Form'!$AO422<>\"\"),\"Y\",\"N\"))","v":"-"},{"$f":"IF($B415=\"N\",\"\",IF(OR('Enrollment Form'!$B422<>\"Subscriber\",'Enrollment Form'!$C422=\"ROC\"),\"-\",IF(AND('Enrollment Form'!$B422=\"Subscriber\",'Enrollment Form'!$C422=\"Enroll\",'Enrollment Form'!$AJ422<>\"\"),\"Y\",\"N\")))","v":""},{"$f":"IF($B415=\"N\",\"\",IF(OR('Enrollment Form'!$B422<>\"Subscriber\",'Enrollment Form'!$C422=\"ROC\"),\"-\",IF(AND('Enrollment Form'!$B422=\"Subscriber\",'Enrollment Form'!$C422=\"Enroll\",'Enrollment Form'!$AK422<>\"\"),\"Y\",\"N\")))","v":""},{"$f":"IF($B415=\"N\",\"\",IF(OR('Enrollment Form'!$B422<>\"Subscriber\",'Enrollment Form'!$C422=\"ROC\"),\"-\",IF(AND('Enrollment Form'!$B422=\"Subscriber\",'Enrollment Form'!$C422=\"Enroll\",'Enrollment Form'!$AL422<>\"\"),\"Y\",\"N\")))","v":""},{"$f":"IF($B415=\"N\",\"\",IF(OR('Enrollment Form'!$B422<>\"Subscriber\",'Enrollment Form'!$C422=\"ROC\"),\"-\",IF(AND('Enrollment Form'!$B422=\"Subscriber\",'Enrollment Form'!$C422=\"Enroll\",'Enrollment Form'!$AM422<>\"\"),\"Y\",\"N\")))","v":""},{"$f":"IF($B415=\"N\",\"\",IF(OR('Enrollment Form'!$B422<>\"Subscriber\",'Enrollment Form'!$C422=\"ROC\"),\"-\",IF(AND('Enrollment Form'!$B422=\"Subscriber\",'Enrollment Form'!$C422=\"Enroll\",'Enrollment Form'!$AN422<>\"\"),\"Y\",\"N\")))","v":""},{"$f":"IF($B415=\"N\",\"\",IF(OR('Enrollment Form'!$B422<>\"Subscriber\",'Enrollment Form'!$C422=\"ROC\"),\"-\",IF(AND('Enrollment Form'!$B422=\"Subscriber\",'Enrollment Form'!$C422=\"Enroll\",'Enrollment Form'!$AP422<>\"\"),\"Y\",\"N\")))","v":""},{"$f":"IF($B415=\"N\",\"\",IF($Q415=\"-\",\"-\",IF(AND($Q415=\"Y\",'Enrollment Form'!$AP422=\"No\"),\"-\",IF(AND($Q415=\"Y\",'Enrollment Form'!$AP422=\"Yes\",'Enrollment Form'!$AQ422<>\"\"),\"Y\",\"N\"))))","v":""},{"$f":"IF($B415=\"N\",\"\",IF(OR('Enrollment Form'!$B422<>\"Subscriber\",'Enrollment Form'!$C422=\"ROC\"),\"-\",IF(AND('Enrollment Form'!$B422=\"Subscriber\",'Enrollment Form'!$C422=\"Enroll\",'Enrollment Form'!$CO422<>\"\"),\"Y\",\"N\")))","v":""},{"$f":"IF($B415=\"N\",\"\",IF($S415=\"-\",\"-\",IF(AND($S415=\"Y\",'Enrollment Form'!$CO422=\"No\"),\"-\",IF(AND($S415=\"Y\",'Enrollment Form'!$CO422=\"Yes\",'Enrollment Form'!$CP422<>\"\"),\"Y\",\"N\"))))","v":""},{"$f":"IF(OR('Enrollment Form'!$AV422=\"Yes\",'Enrollment Form'!$AV422=\"\"),\"-\",IF(AND('Enrollment Form'!$AV422=\"No\",ISERROR(FIND(\"HMO\",VLOOKUP('Enrollment Form'!G422,'Enrollment Form'!H$11:J$1000,3,FALSE),1))=FALSE,COUNTA('Enrollment Form'!$AW422:$AZ422)=4),\"Y\",\"N\"))","v":"-"},{"$f":"IF($B415=\"N\",\"\",IF('Enrollment Form'!$B422=\"Subscriber\",\"-\",IF(COUNTA('Enrollment Form'!$BE422,'Enrollment Form'!$BG422)=2,\"Y\",\"N\")))","v":""},{"$f":"IF($B415=\"N\",\"\",IF(OR('Enrollment Form'!$AU422=\"\",'Enrollment Form'!$AU422=\"No\"),\"-\",IF(AND('Enrollment Form'!$AU422=\"Yes\",COUNTA('Enrollment Form'!$CK422)=1),\"Y\",\"N\")))","v":""},{"$f":"IF(OR('Enrollment Form'!$CK422=\"\",'Enrollment Form'!$CK422=\"No\"),\"-\",IF(COUNTA('Enrollment Form'!$CM422:$CN422)=2,\"Y\",\"N\"))","v":"-"},{"$f":"IF($B415=\"N\",\"\",IF(COUNTIF('Enrollment Form'!$CZ422:$DO422,\"Other\")=COUNTA('Enrollment Form'!$DF422,'Enrollment Form'!$DA422,'Enrollment Form'!$DK422,'Enrollment Form'!$DP422),\"Y\",\"N\"))","v":""},{"$f":"IF($B415=\"N\",\"\",IF(OR('Enrollment Form'!B422<>\"Subscriber\",'Enrollment Form'!C422=\"ROC\",COUNTIF('Enrollment Form'!AS422:AT422,\"Yes\")>=1),\"-\",IF(AND('Enrollment Form'!C422=\"Enroll\",COUNTIF('Enrollment Form'!AS422:AT422,\"No\")=2,'Enrollment Form'!AU422=\"\"),\"N\",\"Y\")))","v":""},{"$f":"IF(OR(B415=\"N\",'Enrollment Form'!B422<>\"Subscriber\",'Enrollment Form'!C422=\"ROC\",'Enrollment Form'!O422<>\"Multiple of Salary\"),\"-\",IF(COUNTA('Enrollment Form'!T422:U422)<2,\"N\",\"Y\"))","v":"-"},{"$f":"IF(B415=\"N\",\"\",IF(OR('Enrollment Form'!C422=\"ROC\",'Enrollment Form'!B422<>\"Subscriber\",'Enrollment Form'!O422=\"Waive\",'Enrollment Form'!O422=\"\"),\"-\",IF('Enrollment Form'!P422=\"\",\"N\",\"Y\")))","v":""},{"$f":"IF($B415=\"N\",\"\",IF(AND('Enrollment Form'!$C422=\"ROC\",'Enrollment Form'!$DS422<>\"\"),\"Y\",IF(AND('Enrollment Form'!$C422=\"ROC\",'Enrollment Form'!$DS422=\"\"),\"N\",IF(AND('Enrollment Form'!$C422=\"Enroll\",'Enrollment Form'!$B422=\"Subscriber\",'Enrollment Form'!$CQ422=\"No\",'Enrollment Form'!$DS422=\"\"),\"N\",IF(AND('Enrollment Form'!$C422=\"Enroll\",'Enrollment Form'!$B422=\"Subscriber\",'Enrollment Form'!$CQ422=\"Yes\"),\"-\",\"Y\")))))","v":""},{"$f":"IF($B415=\"N\",\"\",IF(AND('Enrollment Form'!$C422=\"ROC\",'Enrollment Form'!$DT422<>\"\"),\"Y\",IF(AND('Enrollment Form'!$C422=\"ROC\",'Enrollment Form'!$DT422=\"\"),\"N\",IF(AND('Enrollment Form'!$C422=\"Enroll\",'Enrollment Form'!$B422=\"Subscriber\",'Enrollment Form'!$CQ422=\"No\",'Enrollment Form'!$DT422=\"\"),\"N\",IF(AND('Enrollment Form'!$C422=\"Enroll\",'Enrollment Form'!$B422=\"Subscriber\",'Enrollment Form'!$CQ422=\"Yes\"),\"-\",\"Y\")))))","v":""},{"$f":"IF('Enrollment Form'!AH422=\"\",\"\",IF(ISERROR(SEARCH(\".\",'Enrollment Form'!AH422,SEARCH(\"@\",'Enrollment Form'!AH422))),\"N\",\"Y\"))","v":""},{"$f":"IF(OR($B415=\"N\",'Enrollment Form'!$G422=\"\"),\"\",IF('Enrollment Form'!$B422<>\"Subscriber\",\"-\",IF(COUNTIF('Enrollment Form'!$AS422:$AT422,\"Yes\")=2,\"N\",\"Y\")))","v":""},{"$f":"IF(OR('Enrollment Form'!$CC422=\"\",'Enrollment Form'!$CC422=\"No\"),\"-\",IF(AND('Enrollment Form'!$CC422=\"Yes\",'Enrollment Form'!$CD422=\"\"),\"N\",\"Y\"))","v":"-"},{"$f":"IF(OR('Enrollment Form'!$CE422=\"\",'Enrollment Form'!$CE422=\"No\"),\"-\",IF(AND('Enrollment Form'!$CE422=\"Yes\",'Enrollment Form'!$CF422=\"\"),\"N\",\"Y\"))","v":"-"},{"$f":"IF(OR('Enrollment Form'!$CG422=\"\",'Enrollment Form'!$CG422=\"No\"),\"-\",IF(AND('Enrollment Form'!$CG422=\"Yes\",'Enrollment Form'!$CH422=\"\"),\"N\",\"Y\"))","v":"-"},{"$f":"IF(OR('Enrollment Form'!$CG422=\"\",'Enrollment Form'!$CG422=\"No\"),\"-\",IF(AND('Enrollment Form'!$CG422=\"Yes\",'Enrollment Form'!$CI422=\"\"),\"N\",\"Y\"))","v":"-"},{"$f":"IF('Enrollment Form'!B422<>\"Subscriber\",\"-\",IF(AND('Enrollment Form'!B422=\"Subscriber\",'Enrollment Form'!C422=\"Enroll\",'Enrollment Form'!AA422=\"\"),\"N\",\"Y\"))","v":"-"},{"$f":"IF(OR('Enrollment Form'!B422=\"Subscriber\",'Enrollment Form'!B422=\"\"),\"-\",IF('Enrollment Form'!BI422=\"\",\"N\",\"Y\"))","v":"-"},{"$f":"IF('Enrollment Form'!B422<>\"Subscriber\",\"-\",IF(AND('Enrollment Form'!B422=\"Subscriber\",'Enrollment Form'!G422=\"\"),\"N\",\"Y\"))","v":"-"},{"$f":"IF('Enrollment Form'!A422=\"\",\"\",IF('Enrollment Form'!B422=\"Subscriber\",\"-\",IF(AND('Enrollment Form'!B422<>\"Subscriber\",'Enrollment Form'!G422='Enrollment Form'!H422),\"N\",\"Y\")))","v":""},0]
[423,{"$f":"IF('Enrollment Form'!$A423<>\"\",\"Y\",\"N\")","v":"N"},{"$f":"IF(AND('Enrollment Form'!$B423=\"\",'Enrollment Form'!$C423<>\"\"),\"N\",IF($B416=\"N\",\"\",\"Y\"))","v":""},{"$f":"IF(OR($B416=\"N\",'Enrollment Form'!G423=\"\"),\"\",IF('Enrollment Form'!$B423<>\"Subscriber\",\"\",IF('Enrollment Form'!$G423='Enrollment Form'!$H423,\"Y\",\"N\")))","v":""},{"$f":"IF($B416=\"N\",\"\",IF(AND(COUNTIFS('Enrollment Form'!$H$11:$H$1000,'Enrollment Form'!$H423,'Enrollment Form'!$B$11:$B$1000,'Enrollment Form'!$B423)>1,'Enrollment Form'!$H423<>\"\"),\"N\",\"Y\"))","v":""},{"$f":"IF($B416=\"N\",\"\",IF(LEN('Enrollment Form'!$Y423)=0,\"\",IF(LEN('Enrollment Form'!$Y423)<>5,\"N\",\"Y\")))","v":""},{"$f":"IF($B416=\"N\",\"\",IF(LEN('Enrollment Form'!$AD423=0),\"\",IF(LEN('Enrollment Form'!$AD423)<>5,\"N\",\"Y\")))","v":""},{"$f":"IF($B416=\"N\",\"\",IF(LEN('Enrollment Form'!$BL423=0),\"\",IF(LEN('Enrollment Form'!$BL423)<>5,\"N\",\"Y\")))","v":""},{"$f":"IF($B416=\"N\",\"\",IF(LEN('Enrollment Form'!$AE423)=0,\"\",IF(LEN('Enrollment Form'!$AE423)<>10,\"N\",\"Y\")))","v":""},{"$f":"IF($B416=\"N\",\"\",IF(LEN('Enrollment Form'!$AF423)=0,\"\",IF(LEN('Enrollment Form'!$AF423)<>10,\"N\",\"Y\")))","v":""},{"$f":"IF('Enrollment Form'!$O423<>\"Graded\",\"-\",IF(AND('Enrollment Form'!$O423=\"Graded\",'Enrollment Form'!$AO423<>\"\"),\"Y\",\"N\"))","v":"-"},{"$f":"IF($B416=\"N\",\"\",IF(OR('Enrollment Form'!$B423<>\"Subscriber\",'Enrollment Form'!$C423=\"ROC\"),\"-\",IF(AND('Enrollment Form'!$B423=\"Subscriber\",'Enrollment Form'!$C423=\"Enroll\",'Enrollment Form'!$AJ423<>\"\"),\"Y\",\"N\")))","v":""},{"$f":"IF($B416=\"N\",\"\",IF(OR('Enrollment Form'!$B423<>\"Subscriber\",'Enrollment Form'!$C423=\"ROC\"),\"-\",IF(AND('Enrollment Form'!$B423=\"Subscriber\",'Enrollment Form'!$C423=\"Enroll\",'Enrollment Form'!$AK423<>\"\"),\"Y\",\"N\")))","v":""},{"$f":"IF($B416=\"N\",\"\",IF(OR('Enrollment Form'!$B423<>\"Subscriber\",'Enrollment Form'!$C423=\"ROC\"),\"-\",IF(AND('Enrollment Form'!$B423=\"Subscriber\",'Enrollment Form'!$C423=\"Enroll\",'Enrollment Form'!$AL423<>\"\"),\"Y\",\"N\")))","v":""},{"$f":"IF($B416=\"N\",\"\",IF(OR('Enrollment Form'!$B423<>\"Subscriber\",'Enrollment Form'!$C423=\"ROC\"),\"-\",IF(AND('Enrollment Form'!$B423=\"Subscriber\",'Enrollment Form'!$C423=\"Enroll\",'Enrollment Form'!$AM423<>\"\"),\"Y\",\"N\")))","v":""},{"$f":"IF($B416=\"N\",\"\",IF(OR('Enrollment Form'!$B423<>\"Subscriber\",'Enrollment Form'!$C423=\"ROC\"),\"-\",IF(AND('Enrollment Form'!$B423=\"Subscriber\",'Enrollment Form'!$C423=\"Enroll\",'Enrollment Form'!$AN423<>\"\"),\"Y\",\"N\")))","v":""},{"$f":"IF($B416=\"N\",\"\",IF(OR('Enrollment Form'!$B423<>\"Subscriber\",'Enrollment Form'!$C423=\"ROC\"),\"-\",IF(AND('Enrollment Form'!$B423=\"Subscriber\",'Enrollment Form'!$C423=\"Enroll\",'Enrollment Form'!$AP423<>\"\"),\"Y\",\"N\")))","v":""},{"$f":"IF($B416=\"N\",\"\",IF($Q416=\"-\",\"-\",IF(AND($Q416=\"Y\",'Enrollment Form'!$AP423=\"No\"),\"-\",IF(AND($Q416=\"Y\",'Enrollment Form'!$AP423=\"Yes\",'Enrollment Form'!$AQ423<>\"\"),\"Y\",\"N\"))))","v":""},{"$f":"IF($B416=\"N\",\"\",IF(OR('Enrollment Form'!$B423<>\"Subscriber\",'Enrollment Form'!$C423=\"ROC\"),\"-\",IF(AND('Enrollment Form'!$B423=\"Subscriber\",'Enrollment Form'!$C423=\"Enroll\",'Enrollment Form'!$CO423<>\"\"),\"Y\",\"N\")))","v":""},{"$f":"IF($B416=\"N\",\"\",IF($S416=\"-\",\"-\",IF(AND($S416=\"Y\",'Enrollment Form'!$CO423=\"No\"),\"-\",IF(AND($S416=\"Y\",'Enrollment Form'!$CO423=\"Yes\",'Enrollment Form'!$CP423<>\"\"),\"Y\",\"N\"))))","v":""},{"$f":"IF(OR('Enrollment Form'!$AV423=\"Yes\",'Enrollment Form'!$AV423=\"\"),\"-\",IF(AND('Enrollment Form'!$AV423=\"No\",ISERROR(FIND(\"HMO\",VLOOKUP('Enrollment Form'!G423,'Enrollment Form'!H$11:J$1000,3,FALSE),1))=FALSE,COUNTA('Enrollment Form'!$AW423:$AZ423)=4),\"Y\",\"N\"))","v":"-"},{"$f":"IF($B416=\"N\",\"\",IF('Enrollment Form'!$B423=\"Subscriber\",\"-\",IF(COUNTA('Enrollment Form'!$BE423,'Enrollment Form'!$BG423)=2,\"Y\",\"N\")))","v":""},{"$f":"IF($B416=\"N\",\"\",IF(OR('Enrollment Form'!$AU423=\"\",'Enrollment Form'!$AU423=\"No\"),\"-\",IF(AND('Enrollment Form'!$AU423=\"Yes\",COUNTA('Enrollment Form'!$CK423)=1),\"Y\",\"N\")))","v":""},{"$f":"IF(OR('Enrollment Form'!$CK423=\"\",'Enrollment Form'!$CK423=\"No\"),\"-\",IF(COUNTA('Enrollment Form'!$CM423:$CN423)=2,\"Y\",\"N\"))","v":"-"},{"$f":"IF($B416=\"N\",\"\",IF(COUNTIF('Enrollment Form'!$CZ423:$DO423,\"Other\")=COUNTA('Enrollment Form'!$DF423,'Enrollment Form'!$DA423,'Enrollment Form'!$DK423,'Enrollment Form'!$DP423),\"Y\",\"N\"))","v":""},{"$f":"IF($B416=\"N\",\"\",IF(OR('Enrollment Form'!B423<>\"Subscriber\",'Enrollment Form'!C423=\"ROC\",COUNTIF('Enrollment Form'!AS423:AT423,\"Yes\")>=1),\"-\",IF(AND('Enrollment Form'!C423=\"Enroll\",COUNTIF('Enrollment Form'!AS423:AT423,\"No\")=2,'Enrollment Form'!AU423=\"\"),\"N\",\"Y\")))","v":""},{"$f":"IF(OR(B416=\"N\",'Enrollment Form'!B423<>\"Subscriber\",'Enrollment Form'!C423=\"ROC\",'Enrollment Form'!O423<>\"Multiple of Salary\"),\"-\",IF(COUNTA('Enrollment Form'!T423:U423)<2,\"N\",\"Y\"))","v":"-"},{"$f":"IF(B416=\"N\",\"\",IF(OR('Enrollment Form'!C423=\"ROC\",'Enrollment Form'!B423<>\"Subscriber\",'Enrollment Form'!O423=\"Waive\",'Enrollment Form'!O423=\"\"),\"-\",IF('Enrollment Form'!P423=\"\",\"N\",\"Y\")))","v":""},{"$f":"IF($B416=\"N\",\"\",IF(AND('Enrollment Form'!$C423=\"ROC\",'Enrollment Form'!$DS423<>\"\"),\"Y\",IF(AND('Enrollment Form'!$C423=\"ROC\",'Enrollment Form'!$DS423=\"\"),\"N\",IF(AND('Enrollment Form'!$C423=\"Enroll\",'Enrollment Form'!$B423=\"Subscriber\",'Enrollment Form'!$CQ423=\"No\",'Enrollment Form'!$DS423=\"\"),\"N\",IF(AND('Enrollment Form'!$C423=\"Enroll\",'Enrollment Form'!$B423=\"Subscriber\",'Enrollment Form'!$CQ423=\"Yes\"),\"-\",\"Y\")))))","v":""},{"$f":"IF($B416=\"N\",\"\",IF(AND('Enrollment Form'!$C423=\"ROC\",'Enrollment Form'!$DT423<>\"\"),\"Y\",IF(AND('Enrollment Form'!$C423=\"ROC\",'Enrollment Form'!$DT423=\"\"),\"N\",IF(AND('Enrollment Form'!$C423=\"Enroll\",'Enrollment Form'!$B423=\"Subscriber\",'Enrollment Form'!$CQ423=\"No\",'Enrollment Form'!$DT423=\"\"),\"N\",IF(AND('Enrollment Form'!$C423=\"Enroll\",'Enrollment Form'!$B423=\"Subscriber\",'Enrollment Form'!$CQ423=\"Yes\"),\"-\",\"Y\")))))","v":""},{"$f":"IF('Enrollment Form'!AH423=\"\",\"\",IF(ISERROR(SEARCH(\".\",'Enrollment Form'!AH423,SEARCH(\"@\",'Enrollment Form'!AH423))),\"N\",\"Y\"))","v":""},{"$f":"IF(OR($B416=\"N\",'Enrollment Form'!$G423=\"\"),\"\",IF('Enrollment Form'!$B423<>\"Subscriber\",\"-\",IF(COUNTIF('Enrollment Form'!$AS423:$AT423,\"Yes\")=2,\"N\",\"Y\")))","v":""},{"$f":"IF(OR('Enrollment Form'!$CC423=\"\",'Enrollment Form'!$CC423=\"No\"),\"-\",IF(AND('Enrollment Form'!$CC423=\"Yes\",'Enrollment Form'!$CD423=\"\"),\"N\",\"Y\"))","v":"-"},{"$f":"IF(OR('Enrollment Form'!$CE423=\"\",'Enrollment Form'!$CE423=\"No\"),\"-\",IF(AND('Enrollment Form'!$CE423=\"Yes\",'Enrollment Form'!$CF423=\"\"),\"N\",\"Y\"))","v":"-"},{"$f":"IF(OR('Enrollment Form'!$CG423=\"\",'Enrollment Form'!$CG423=\"No\"),\"-\",IF(AND('Enrollment Form'!$CG423=\"Yes\",'Enrollment Form'!$CH423=\"\"),\"N\",\"Y\"))","v":"-"},{"$f":"IF(OR('Enrollment Form'!$CG423=\"\",'Enrollment Form'!$CG423=\"No\"),\"-\",IF(AND('Enrollment Form'!$CG423=\"Yes\",'Enrollment Form'!$CI423=\"\"),\"N\",\"Y\"))","v":"-"},{"$f":"IF('Enrollment Form'!B423<>\"Subscriber\",\"-\",IF(AND('Enrollment Form'!B423=\"Subscriber\",'Enrollment Form'!C423=\"Enroll\",'Enrollment Form'!AA423=\"\"),\"N\",\"Y\"))","v":"-"},{"$f":"IF(OR('Enrollment Form'!B423=\"Subscriber\",'Enrollment Form'!B423=\"\"),\"-\",IF('Enrollment Form'!BI423=\"\",\"N\",\"Y\"))","v":"-"},{"$f":"IF('Enrollment Form'!B423<>\"Subscriber\",\"-\",IF(AND('Enrollment Form'!B423=\"Subscriber\",'Enrollment Form'!G423=\"\"),\"N\",\"Y\"))","v":"-"},{"$f":"IF('Enrollment Form'!A423=\"\",\"\",IF('Enrollment Form'!B423=\"Subscriber\",\"-\",IF(AND('Enrollment Form'!B423<>\"Subscriber\",'Enrollment Form'!G423='Enrollment Form'!H423),\"N\",\"Y\")))","v":""},0]
[424,{"$f":"IF('Enrollment Form'!$A424<>\"\",\"Y\",\"N\")","v":"N"},{"$f":"IF(AND('Enrollment Form'!$B424=\"\",'Enrollment Form'!$C424<>\"\"),\"N\",IF($B417=\"N\",\"\",\"Y\"))","v":""},{"$f":"IF(OR($B417=\"N\",'Enrollment Form'!G424=\"\"),\"\",IF('Enrollment Form'!$B424<>\"Subscriber\",\"\",IF('Enrollment Form'!$G424='Enrollment Form'!$H424,\"Y\",\"N\")))","v":""},{"$f":"IF($B417=\"N\",\"\",IF(AND(COUNTIFS('Enrollment Form'!$H$11:$H$1000,'Enrollment Form'!$H424,'Enrollment Form'!$B$11:$B$1000,'Enrollment Form'!$B424)>1,'Enrollment Form'!$H424<>\"\"),\"N\",\"Y\"))","v":""},{"$f":"IF($B417=\"N\",\"\",IF(LEN('Enrollment Form'!$Y424)=0,\"\",IF(LEN('Enrollment Form'!$Y424)<>5,\"N\",\"Y\")))","v":""},{"$f":"IF($B417=\"N\",\"\",IF(LEN('Enrollment Form'!$AD424=0),\"\",IF(LEN('Enrollment Form'!$AD424)<>5,\"N\",\"Y\")))","v":""},{"$f":"IF($B417=\"N\",\"\",IF(LEN('Enrollment Form'!$BL424=0),\"\",IF(LEN('Enrollment Form'!$BL424)<>5,\"N\",\"Y\")))","v":""},{"$f":"IF($B417=\"N\",\"\",IF(LEN('Enrollment Form'!$AE424)=0,\"\",IF(LEN('Enrollment Form'!$AE424)<>10,\"N\",\"Y\")))","v":""},{"$f":"IF($B417=\"N\",\"\",IF(LEN('Enrollment Form'!$AF424)=0,\"\",IF(LEN('Enrollment Form'!$AF424)<>10,\"N\",\"Y\")))","v":""},{"$f":"IF('Enrollment Form'!$O424<>\"Graded\",\"-\",IF(AND('Enrollment Form'!$O424=\"Graded\",'Enrollment Form'!$AO424<>\"\"),\"Y\",\"N\"))","v":"-"},{"$f":"IF($B417=\"N\",\"\",IF(OR('Enrollment Form'!$B424<>\"Subscriber\",'Enrollment Form'!$C424=\"ROC\"),\"-\",IF(AND('Enrollment Form'!$B424=\"Subscriber\",'Enrollment Form'!$C424=\"Enroll\",'Enrollment Form'!$AJ424<>\"\"),\"Y\",\"N\")))","v":""},{"$f":"IF($B417=\"N\",\"\",IF(OR('Enrollment Form'!$B424<>\"Subscriber\",'Enrollment Form'!$C424=\"ROC\"),\"-\",IF(AND('Enrollment Form'!$B424=\"Subscriber\",'Enrollment Form'!$C424=\"Enroll\",'Enrollment Form'!$AK424<>\"\"),\"Y\",\"N\")))","v":""},{"$f":"IF($B417=\"N\",\"\",IF(OR('Enrollment Form'!$B424<>\"Subscriber\",'Enrollment Form'!$C424=\"ROC\"),\"-\",IF(AND('Enrollment Form'!$B424=\"Subscriber\",'Enrollment Form'!$C424=\"Enroll\",'Enrollment Form'!$AL424<>\"\"),\"Y\",\"N\")))","v":""},{"$f":"IF($B417=\"N\",\"\",IF(OR('Enrollment Form'!$B424<>\"Subscriber\",'Enrollment Form'!$C424=\"ROC\"),\"-\",IF(AND('Enrollment Form'!$B424=\"Subscriber\",'Enrollment Form'!$C424=\"Enroll\",'Enrollment Form'!$AM424<>\"\"),\"Y\",\"N\")))","v":""},{"$f":"IF($B417=\"N\",\"\",IF(OR('Enrollment Form'!$B424<>\"Subscriber\",'Enrollment Form'!$C424=\"ROC\"),\"-\",IF(AND('Enrollment Form'!$B424=\"Subscriber\",'Enrollment Form'!$C424=\"Enroll\",'Enrollment Form'!$AN424<>\"\"),\"Y\",\"N\")))","v":""},{"$f":"IF($B417=\"N\",\"\",IF(OR('Enrollment Form'!$B424<>\"Subscriber\",'Enrollment Form'!$C424=\"ROC\"),\"-\",IF(AND('Enrollment Form'!$B424=\"Subscriber\",'Enrollment Form'!$C424=\"Enroll\",'Enrollment Form'!$AP424<>\"\"),\"Y\",\"N\")))","v":""},{"$f":"IF($B417=\"N\",\"\",IF($Q417=\"-\",\"-\",IF(AND($Q417=\"Y\",'Enrollment Form'!$AP424=\"No\"),\"-\",IF(AND($Q417=\"Y\",'Enrollment Form'!$AP424=\"Yes\",'Enrollment Form'!$AQ424<>\"\"),\"Y\",\"N\"))))","v":""},{"$f":"IF($B417=\"N\",\"\",IF(OR('Enrollment Form'!$B424<>\"Subscriber\",'Enrollment Form'!$C424=\"ROC\"),\"-\",IF(AND('Enrollment Form'!$B424=\"Subscriber\",'Enrollment Form'!$C424=\"Enroll\",'Enrollment Form'!$CO424<>\"\"),\"Y\",\"N\")))","v":""},{"$f":"IF($B417=\"N\",\"\",IF($S417=\"-\",\"-\",IF(AND($S417=\"Y\",'Enrollment Form'!$CO424=\"No\"),\"-\",IF(AND($S417=\"Y\",'Enrollment Form'!$CO424=\"Yes\",'Enrollment Form'!$CP424<>\"\"),\"Y\",\"N\"))))","v":""},{"$f":"IF(OR('Enrollment Form'!$AV424=\"Yes\",'Enrollment Form'!$AV424=\"\"),\"-\",IF(AND('Enrollment Form'!$AV424=\"No\",ISERROR(FIND(\"HMO\",VLOOKUP('Enrollment Form'!G424,'Enrollment Form'!H$11:J$1000,3,FALSE),1))=FALSE,COUNTA('Enrollment Form'!$AW424:$AZ424)=4),\"Y\",\"N\"))","v":"-"},{"$f":"IF($B417=\"N\",\"\",IF('Enrollment Form'!$B424=\"Subscriber\",\"-\",IF(COUNTA('Enrollment Form'!$BE424,'Enrollment Form'!$BG424)=2,\"Y\",\"N\")))","v":""},{"$f":"IF($B417=\"N\",\"\",IF(OR('Enrollment Form'!$AU424=\"\",'Enrollment Form'!$AU424=\"No\"),\"-\",IF(AND('Enrollment Form'!$AU424=\"Yes\",COUNTA('Enrollment Form'!$CK424)=1),\"Y\",\"N\")))","v":""},{"$f":"IF(OR('Enrollment Form'!$CK424=\"\",'Enrollment Form'!$CK424=\"No\"),\"-\",IF(COUNTA('Enrollment Form'!$CM424:$CN424)=2,\"Y\",\"N\"))","v":"-"},{"$f":"IF($B417=\"N\",\"\",IF(COUNTIF('Enrollment Form'!$CZ424:$DO424,\"Other\")=COUNTA('Enrollment Form'!$DF424,'Enrollment Form'!$DA424,'Enrollment Form'!$DK424,'Enrollment Form'!$DP424),\"Y\",\"N\"))","v":""},{"$f":"IF($B417=\"N\",\"\",IF(OR('Enrollment Form'!B424<>\"Subscriber\",'Enrollment Form'!C424=\"ROC\",COUNTIF('Enrollment Form'!AS424:AT424,\"Yes\")>=1),\"-\",IF(AND('Enrollment Form'!C424=\"Enroll\",COUNTIF('Enrollment Form'!AS424:AT424,\"No\")=2,'Enrollment Form'!AU424=\"\"),\"N\",\"Y\")))","v":""},{"$f":"IF(OR(B417=\"N\",'Enrollment Form'!B424<>\"Subscriber\",'Enrollment Form'!C424=\"ROC\",'Enrollment Form'!O424<>\"Multiple of Salary\"),\"-\",IF(COUNTA('Enrollment Form'!T424:U424)<2,\"N\",\"Y\"))","v":"-"},{"$f":"IF(B417=\"N\",\"\",IF(OR('Enrollment Form'!C424=\"ROC\",'Enrollment Form'!B424<>\"Subscriber\",'Enrollment Form'!O424=\"Waive\",'Enrollment Form'!O424=\"\"),\"-\",IF('Enrollment Form'!P424=\"\",\"N\",\"Y\")))","v":""},{"$f":"IF($B417=\"N\",\"\",IF(AND('Enrollment Form'!$C424=\"ROC\",'Enrollment Form'!$DS424<>\"\"),\"Y\",IF(AND('Enrollment Form'!$C424=\"ROC\",'Enrollment Form'!$DS424=\"\"),\"N\",IF(AND('Enrollment Form'!$C424=\"Enroll\",'Enrollment Form'!$B424=\"Subscriber\",'Enrollment Form'!$CQ424=\"No\",'Enrollment Form'!$DS424=\"\"),\"N\",IF(AND('Enrollment Form'!$C424=\"Enroll\",'Enrollment Form'!$B424=\"Subscriber\",'Enrollment Form'!$CQ424=\"Yes\"),\"-\",\"Y\")))))","v":""},{"$f":"IF($B417=\"N\",\"\",IF(AND('Enrollment Form'!$C424=\"ROC\",'Enrollment Form'!$DT424<>\"\"),\"Y\",IF(AND('Enrollment Form'!$C424=\"ROC\",'Enrollment Form'!$DT424=\"\"),\"N\",IF(AND('Enrollment Form'!$C424=\"Enroll\",'Enrollment Form'!$B424=\"Subscriber\",'Enrollment Form'!$CQ424=\"No\",'Enrollment Form'!$DT424=\"\"),\"N\",IF(AND('Enrollment Form'!$C424=\"Enroll\",'Enrollment Form'!$B424=\"Subscriber\",'Enrollment Form'!$CQ424=\"Yes\"),\"-\",\"Y\")))))","v":""},{"$f":"IF('Enrollment Form'!AH424=\"\",\"\",IF(ISERROR(SEARCH(\".\",'Enrollment Form'!AH424,SEARCH(\"@\",'Enrollment Form'!AH424))),\"N\",\"Y\"))","v":""},{"$f":"IF(OR($B417=\"N\",'Enrollment Form'!$G424=\"\"),\"\",IF('Enrollment Form'!$B424<>\"Subscriber\",\"-\",IF(COUNTIF('Enrollment Form'!$AS424:$AT424,\"Yes\")=2,\"N\",\"Y\")))","v":""},{"$f":"IF(OR('Enrollment Form'!$CC424=\"\",'Enrollment Form'!$CC424=\"No\"),\"-\",IF(AND('Enrollment Form'!$CC424=\"Yes\",'Enrollment Form'!$CD424=\"\"),\"N\",\"Y\"))","v":"-"},{"$f":"IF(OR('Enrollment Form'!$CE424=\"\",'Enrollment Form'!$CE424=\"No\"),\"-\",IF(AND('Enrollment Form'!$CE424=\"Yes\",'Enrollment Form'!$CF424=\"\"),\"N\",\"Y\"))","v":"-"},{"$f":"IF(OR('Enrollment Form'!$CG424=\"\",'Enrollment Form'!$CG424=\"No\"),\"-\",IF(AND('Enrollment Form'!$CG424=\"Yes\",'Enrollment Form'!$CH424=\"\"),\"N\",\"Y\"))","v":"-"},{"$f":"IF(OR('Enrollment Form'!$CG424=\"\",'Enrollment Form'!$CG424=\"No\"),\"-\",IF(AND('Enrollment Form'!$CG424=\"Yes\",'Enrollment Form'!$CI424=\"\"),\"N\",\"Y\"))","v":"-"},{"$f":"IF('Enrollment Form'!B424<>\"Subscriber\",\"-\",IF(AND('Enrollment Form'!B424=\"Subscriber\",'Enrollment Form'!C424=\"Enroll\",'Enrollment Form'!AA424=\"\"),\"N\",\"Y\"))","v":"-"},{"$f":"IF(OR('Enrollment Form'!B424=\"Subscriber\",'Enrollment Form'!B424=\"\"),\"-\",IF('Enrollment Form'!BI424=\"\",\"N\",\"Y\"))","v":"-"},{"$f":"IF('Enrollment Form'!B424<>\"Subscriber\",\"-\",IF(AND('Enrollment Form'!B424=\"Subscriber\",'Enrollment Form'!G424=\"\"),\"N\",\"Y\"))","v":"-"},{"$f":"IF('Enrollment Form'!A424=\"\",\"\",IF('Enrollment Form'!B424=\"Subscriber\",\"-\",IF(AND('Enrollment Form'!B424<>\"Subscriber\",'Enrollment Form'!G424='Enrollment Form'!H424),\"N\",\"Y\")))","v":""},0]
[425,{"$f":"IF('Enrollment Form'!$A425<>\"\",\"Y\",\"N\")","v":"N"},{"$f":"IF(AND('Enrollment Form'!$B425=\"\",'Enrollment Form'!$C425<>\"\"),\"N\",IF($B418=\"N\",\"\",\"Y\"))","v":""},{"$f":"IF(OR($B418=\"N\",'Enrollment Form'!G425=\"\"),\"\",IF('Enrollment Form'!$B425<>\"Subscriber\",\"\",IF('Enrollment Form'!$G425='Enrollment Form'!$H425,\"Y\",\"N\")))","v":""},{"$f":"IF($B418=\"N\",\"\",IF(AND(COUNTIFS('Enrollment Form'!$H$11:$H$1000,'Enrollment Form'!$H425,'Enrollment Form'!$B$11:$B$1000,'Enrollment Form'!$B425)>1,'Enrollment Form'!$H425<>\"\"),\"N\",\"Y\"))","v":""},{"$f":"IF($B418=\"N\",\"\",IF(LEN('Enrollment Form'!$Y425)=0,\"\",IF(LEN('Enrollment Form'!$Y425)<>5,\"N\",\"Y\")))","v":""},{"$f":"IF($B418=\"N\",\"\",IF(LEN('Enrollment Form'!$AD425=0),\"\",IF(LEN('Enrollment Form'!$AD425)<>5,\"N\",\"Y\")))","v":""},{"$f":"IF($B418=\"N\",\"\",IF(LEN('Enrollment Form'!$BL425=0),\"\",IF(LEN('Enrollment Form'!$BL425)<>5,\"N\",\"Y\")))","v":""},{"$f":"IF($B418=\"N\",\"\",IF(LEN('Enrollment Form'!$AE425)=0,\"\",IF(LEN('Enrollment Form'!$AE425)<>10,\"N\",\"Y\")))","v":""},{"$f":"IF($B418=\"N\",\"\",IF(LEN('Enrollment Form'!$AF425)=0,\"\",IF(LEN('Enrollment Form'!$AF425)<>10,\"N\",\"Y\")))","v":""},{"$f":"IF('Enrollment Form'!$O425<>\"Graded\",\"-\",IF(AND('Enrollment Form'!$O425=\"Graded\",'Enrollment Form'!$AO425<>\"\"),\"Y\",\"N\"))","v":"-"},{"$f":"IF($B418=\"N\",\"\",IF(OR('Enrollment Form'!$B425<>\"Subscriber\",'Enrollment Form'!$C425=\"ROC\"),\"-\",IF(AND('Enrollment Form'!$B425=\"Subscriber\",'Enrollment Form'!$C425=\"Enroll\",'Enrollment Form'!$AJ425<>\"\"),\"Y\",\"N\")))","v":""},{"$f":"IF($B418=\"N\",\"\",IF(OR('Enrollment Form'!$B425<>\"Subscriber\",'Enrollment Form'!$C425=\"ROC\"),\"-\",IF(AND('Enrollment Form'!$B425=\"Subscriber\",'Enrollment Form'!$C425=\"Enroll\",'Enrollment Form'!$AK425<>\"\"),\"Y\",\"N\")))","v":""},{"$f":"IF($B418=\"N\",\"\",IF(OR('Enrollment Form'!$B425<>\"Subscriber\",'Enrollment Form'!$C425=\"ROC\"),\"-\",IF(AND('Enrollment Form'!$B425=\"Subscriber\",'Enrollment Form'!$C425=\"Enroll\",'Enrollment Form'!$AL425<>\"\"),\"Y\",\"N\")))","v":""},{"$f":"IF($B418=\"N\",\"\",IF(OR('Enrollment Form'!$B425<>\"Subscriber\",'Enrollment Form'!$C425=\"ROC\"),\"-\",IF(AND('Enrollment Form'!$B425=\"Subscriber\",'Enrollment Form'!$C425=\"Enroll\",'Enrollment Form'!$AM425<>\"\"),\"Y\",\"N\")))","v":""},{"$f":"IF($B418=\"N\",\"\",IF(OR('Enrollment Form'!$B425<>\"Subscriber\",'Enrollment Form'!$C425=\"ROC\"),\"-\",IF(AND('Enrollment Form'!$B425=\"Subscriber\",'Enrollment Form'!$C425=\"Enroll\",'Enrollment Form'!$AN425<>\"\"),\"Y\",\"N\")))","v":""},{"$f":"IF($B418=\"N\",\"\",IF(OR('Enrollment Form'!$B425<>\"Subscriber\",'Enrollment Form'!$C425=\"ROC\"),\"-\",IF(AND('Enrollment Form'!$B425=\"Subscriber\",'Enrollment Form'!$C425=\"Enroll\",'Enrollment Form'!$AP425<>\"\"),\"Y\",\"N\")))","v":""},{"$f":"IF($B418=\"N\",\"\",IF($Q418=\"-\",\"-\",IF(AND($Q418=\"Y\",'Enrollment Form'!$AP425=\"No\"),\"-\",IF(AND($Q418=\"Y\",'Enrollment Form'!$AP425=\"Yes\",'Enrollment Form'!$AQ425<>\"\"),\"Y\",\"N\"))))","v":""},{"$f":"IF($B418=\"N\",\"\",IF(OR('Enrollment Form'!$B425<>\"Subscriber\",'Enrollment Form'!$C425=\"ROC\"),\"-\",IF(AND('Enrollment Form'!$B425=\"Subscriber\",'Enrollment Form'!$C425=\"Enroll\",'Enrollment Form'!$CO425<>\"\"),\"Y\",\"N\")))","v":""},{"$f":"IF($B418=\"N\",\"\",IF($S418=\"-\",\"-\",IF(AND($S418=\"Y\",'Enrollment Form'!$CO425=\"No\"),\"-\",IF(AND($S418=\"Y\",'Enrollment Form'!$CO425=\"Yes\",'Enrollment Form'!$CP425<>\"\"),\"Y\",\"N\"))))","v":""},{"$f":"IF(OR('Enrollment Form'!$AV425=\"Yes\",'Enrollment Form'!$AV425=\"\"),\"-\",IF(AND('Enrollment Form'!$AV425=\"No\",ISERROR(FIND(\"HMO\",VLOOKUP('Enrollment Form'!G425,'Enrollment Form'!H$11:J$1000,3,FALSE),1))=FALSE,COUNTA('Enrollment Form'!$AW425:$AZ425)=4),\"Y\",\"N\"))","v":"-"},{"$f":"IF($B418=\"N\",\"\",IF('Enrollment Form'!$B425=\"Subscriber\",\"-\",IF(COUNTA('Enrollment Form'!$BE425,'Enrollment Form'!$BG425)=2,\"Y\",\"N\")))","v":""},{"$f":"IF($B418=\"N\",\"\",IF(OR('Enrollment Form'!$AU425=\"\",'Enrollment Form'!$AU425=\"No\"),\"-\",IF(AND('Enrollment Form'!$AU425=\"Yes\",COUNTA('Enrollment Form'!$CK425)=1),\"Y\",\"N\")))","v":""},{"$f":"IF(OR('Enrollment Form'!$CK425=\"\",'Enrollment Form'!$CK425=\"No\"),\"-\",IF(COUNTA('Enrollment Form'!$CM425:$CN425)=2,\"Y\",\"N\"))","v":"-"},{"$f":"IF($B418=\"N\",\"\",IF(COUNTIF('Enrollment Form'!$CZ425:$DO425,\"Other\")=COUNTA('Enrollment Form'!$DF425,'Enrollment Form'!$DA425,'Enrollment Form'!$DK425,'Enrollment Form'!$DP425),\"Y\",\"N\"))","v":""},{"$f":"IF($B418=\"N\",\"\",IF(OR('Enrollment Form'!B425<>\"Subscriber\",'Enrollment Form'!C425=\"ROC\",COUNTIF('Enrollment Form'!AS425:AT425,\"Yes\")>=1),\"-\",IF(AND('Enrollment Form'!C425=\"Enroll\",COUNTIF('Enrollment Form'!AS425:AT425,\"No\")=2,'Enrollment Form'!AU425=\"\"),\"N\",\"Y\")))","v":""},{"$f":"IF(OR(B418=\"N\",'Enrollment Form'!B425<>\"Subscriber\",'Enrollment Form'!C425=\"ROC\",'Enrollment Form'!O425<>\"Multiple of Salary\"),\"-\",IF(COUNTA('Enrollment Form'!T425:U425)<2,\"N\",\"Y\"))","v":"-"},{"$f":"IF(B418=\"N\",\"\",IF(OR('Enrollment Form'!C425=\"ROC\",'Enrollment Form'!B425<>\"Subscriber\",'Enrollment Form'!O425=\"Waive\",'Enrollment Form'!O425=\"\"),\"-\",IF('Enrollment Form'!P425=\"\",\"N\",\"Y\")))","v":""},{"$f":"IF($B418=\"N\",\"\",IF(AND('Enrollment Form'!$C425=\"ROC\",'Enrollment Form'!$DS425<>\"\"),\"Y\",IF(AND('Enrollment Form'!$C425=\"ROC\",'Enrollment Form'!$DS425=\"\"),\"N\",IF(AND('Enrollment Form'!$C425=\"Enroll\",'Enrollment Form'!$B425=\"Subscriber\",'Enrollment Form'!$CQ425=\"No\",'Enrollment Form'!$DS425=\"\"),\"N\",IF(AND('Enrollment Form'!$C425=\"Enroll\",'Enrollment Form'!$B425=\"Subscriber\",'Enrollment Form'!$CQ425=\"Yes\"),\"-\",\"Y\")))))","v":""},{"$f":"IF($B418=\"N\",\"\",IF(AND('Enrollment Form'!$C425=\"ROC\",'Enrollment Form'!$DT425<>\"\"),\"Y\",IF(AND('Enrollment Form'!$C425=\"ROC\",'Enrollment Form'!$DT425=\"\"),\"N\",IF(AND('Enrollment Form'!$C425=\"Enroll\",'Enrollment Form'!$B425=\"Subscriber\",'Enrollment Form'!$CQ425=\"No\",'Enrollment Form'!$DT425=\"\"),\"N\",IF(AND('Enrollment Form'!$C425=\"Enroll\",'Enrollment Form'!$B425=\"Subscriber\",'Enrollment Form'!$CQ425=\"Yes\"),\"-\",\"Y\")))))","v":""},{"$f":"IF('Enrollment Form'!AH425=\"\",\"\",IF(ISERROR(SEARCH(\".\",'Enrollment Form'!AH425,SEARCH(\"@\",'Enrollment Form'!AH425))),\"N\",\"Y\"))","v":""},{"$f":"IF(OR($B418=\"N\",'Enrollment Form'!$G425=\"\"),\"\",IF('Enrollment Form'!$B425<>\"Subscriber\",\"-\",IF(COUNTIF('Enrollment Form'!$AS425:$AT425,\"Yes\")=2,\"N\",\"Y\")))","v":""},{"$f":"IF(OR('Enrollment Form'!$CC425=\"\",'Enrollment Form'!$CC425=\"No\"),\"-\",IF(AND('Enrollment Form'!$CC425=\"Yes\",'Enrollment Form'!$CD425=\"\"),\"N\",\"Y\"))","v":"-"},{"$f":"IF(OR('Enrollment Form'!$CE425=\"\",'Enrollment Form'!$CE425=\"No\"),\"-\",IF(AND('Enrollment Form'!$CE425=\"Yes\",'Enrollment Form'!$CF425=\"\"),\"N\",\"Y\"))","v":"-"},{"$f":"IF(OR('Enrollment Form'!$CG425=\"\",'Enrollment Form'!$CG425=\"No\"),\"-\",IF(AND('Enrollment Form'!$CG425=\"Yes\",'Enrollment Form'!$CH425=\"\"),\"N\",\"Y\"))","v":"-"},{"$f":"IF(OR('Enrollment Form'!$CG425=\"\",'Enrollment Form'!$CG425=\"No\"),\"-\",IF(AND('Enrollment Form'!$CG425=\"Yes\",'Enrollment Form'!$CI425=\"\"),\"N\",\"Y\"))","v":"-"},{"$f":"IF('Enrollment Form'!B425<>\"Subscriber\",\"-\",IF(AND('Enrollment Form'!B425=\"Subscriber\",'Enrollment Form'!C425=\"Enroll\",'Enrollment Form'!AA425=\"\"),\"N\",\"Y\"))","v":"-"},{"$f":"IF(OR('Enrollment Form'!B425=\"Subscriber\",'Enrollment Form'!B425=\"\"),\"-\",IF('Enrollment Form'!BI425=\"\",\"N\",\"Y\"))","v":"-"},{"$f":"IF('Enrollment Form'!B425<>\"Subscriber\",\"-\",IF(AND('Enrollment Form'!B425=\"Subscriber\",'Enrollment Form'!G425=\"\"),\"N\",\"Y\"))","v":"-"},{"$f":"IF('Enrollment Form'!A425=\"\",\"\",IF('Enrollment Form'!B425=\"Subscriber\",\"-\",IF(AND('Enrollment Form'!B425<>\"Subscriber\",'Enrollment Form'!G425='Enrollment Form'!H425),\"N\",\"Y\")))","v":""},0]
[426,{"$f":"IF('Enrollment Form'!$A426<>\"\",\"Y\",\"N\")","v":"N"},{"$f":"IF(AND('Enrollment Form'!$B426=\"\",'Enrollment Form'!$C426<>\"\"),\"N\",IF($B419=\"N\",\"\",\"Y\"))","v":""},{"$f":"IF(OR($B419=\"N\",'Enrollment Form'!G426=\"\"),\"\",IF('Enrollment Form'!$B426<>\"Subscriber\",\"\",IF('Enrollment Form'!$G426='Enrollment Form'!$H426,\"Y\",\"N\")))","v":""},{"$f":"IF($B419=\"N\",\"\",IF(AND(COUNTIFS('Enrollment Form'!$H$11:$H$1000,'Enrollment Form'!$H426,'Enrollment Form'!$B$11:$B$1000,'Enrollment Form'!$B426)>1,'Enrollment Form'!$H426<>\"\"),\"N\",\"Y\"))","v":""},{"$f":"IF($B419=\"N\",\"\",IF(LEN('Enrollment Form'!$Y426)=0,\"\",IF(LEN('Enrollment Form'!$Y426)<>5,\"N\",\"Y\")))","v":""},{"$f":"IF($B419=\"N\",\"\",IF(LEN('Enrollment Form'!$AD426=0),\"\",IF(LEN('Enrollment Form'!$AD426)<>5,\"N\",\"Y\")))","v":""},{"$f":"IF($B419=\"N\",\"\",IF(LEN('Enrollment Form'!$BL426=0),\"\",IF(LEN('Enrollment Form'!$BL426)<>5,\"N\",\"Y\")))","v":""},{"$f":"IF($B419=\"N\",\"\",IF(LEN('Enrollment Form'!$AE426)=0,\"\",IF(LEN('Enrollment Form'!$AE426)<>10,\"N\",\"Y\")))","v":""},{"$f":"IF($B419=\"N\",\"\",IF(LEN('Enrollment Form'!$AF426)=0,\"\",IF(LEN('Enrollment Form'!$AF426)<>10,\"N\",\"Y\")))","v":""},{"$f":"IF('Enrollment Form'!$O426<>\"Graded\",\"-\",IF(AND('Enrollment Form'!$O426=\"Graded\",'Enrollment Form'!$AO426<>\"\"),\"Y\",\"N\"))","v":"-"},{"$f":"IF($B419=\"N\",\"\",IF(OR('Enrollment Form'!$B426<>\"Subscriber\",'Enrollment Form'!$C426=\"ROC\"),\"-\",IF(AND('Enrollment Form'!$B426=\"Subscriber\",'Enrollment Form'!$C426=\"Enroll\",'Enrollment Form'!$AJ426<>\"\"),\"Y\",\"N\")))","v":""},{"$f":"IF($B419=\"N\",\"\",IF(OR('Enrollment Form'!$B426<>\"Subscriber\",'Enrollment Form'!$C426=\"ROC\"),\"-\",IF(AND('Enrollment Form'!$B426=\"Subscriber\",'Enrollment Form'!$C426=\"Enroll\",'Enrollment Form'!$AK426<>\"\"),\"Y\",\"N\")))","v":""},{"$f":"IF($B419=\"N\",\"\",IF(OR('Enrollment Form'!$B426<>\"Subscriber\",'Enrollment Form'!$C426=\"ROC\"),\"-\",IF(AND('Enrollment Form'!$B426=\"Subscriber\",'Enrollment Form'!$C426=\"Enroll\",'Enrollment Form'!$AL426<>\"\"),\"Y\",\"N\")))","v":""},{"$f":"IF($B419=\"N\",\"\",IF(OR('Enrollment Form'!$B426<>\"Subscriber\",'Enrollment Form'!$C426=\"ROC\"),\"-\",IF(AND('Enrollment Form'!$B426=\"Subscriber\",'Enrollment Form'!$C426=\"Enroll\",'Enrollment Form'!$AM426<>\"\"),\"Y\",\"N\")))","v":""},{"$f":"IF($B419=\"N\",\"\",IF(OR('Enrollment Form'!$B426<>\"Subscriber\",'Enrollment Form'!$C426=\"ROC\"),\"-\",IF(AND('Enrollment Form'!$B426=\"Subscriber\",'Enrollment Form'!$C426=\"Enroll\",'Enrollment Form'!$AN426<>\"\"),\"Y\",\"N\")))","v":""},{"$f":"IF($B419=\"N\",\"\",IF(OR('Enrollment Form'!$B426<>\"Subscriber\",'Enrollment Form'!$C426=\"ROC\"),\"-\",IF(AND('Enrollment Form'!$B426=\"Subscriber\",'Enrollment Form'!$C426=\"Enroll\",'Enrollment Form'!$AP426<>\"\"),\"Y\",\"N\")))","v":""},{"$f":"IF($B419=\"N\",\"\",IF($Q419=\"-\",\"-\",IF(AND($Q419=\"Y\",'Enrollment Form'!$AP426=\"No\"),\"-\",IF(AND($Q419=\"Y\",'Enrollment Form'!$AP426=\"Yes\",'Enrollment Form'!$AQ426<>\"\"),\"Y\",\"N\"))))","v":""},{"$f":"IF($B419=\"N\",\"\",IF(OR('Enrollment Form'!$B426<>\"Subscriber\",'Enrollment Form'!$C426=\"ROC\"),\"-\",IF(AND('Enrollment Form'!$B426=\"Subscriber\",'Enrollment Form'!$C426=\"Enroll\",'Enrollment Form'!$CO426<>\"\"),\"Y\",\"N\")))","v":""},{"$f":"IF($B419=\"N\",\"\",IF($S419=\"-\",\"-\",IF(AND($S419=\"Y\",'Enrollment Form'!$CO426=\"No\"),\"-\",IF(AND($S419=\"Y\",'Enrollment Form'!$CO426=\"Yes\",'Enrollment Form'!$CP426<>\"\"),\"Y\",\"N\"))))","v":""},{"$f":"IF(OR('Enrollment Form'!$AV426=\"Yes\",'Enrollment Form'!$AV426=\"\"),\"-\",IF(AND('Enrollment Form'!$AV426=\"No\",ISERROR(FIND(\"HMO\",VLOOKUP('Enrollment Form'!G426,'Enrollment Form'!H$11:J$1000,3,FALSE),1))=FALSE,COUNTA('Enrollment Form'!$AW426:$AZ426)=4),\"Y\",\"N\"))","v":"-"},{"$f":"IF($B419=\"N\",\"\",IF('Enrollment Form'!$B426=\"Subscriber\",\"-\",IF(COUNTA('Enrollment Form'!$BE426,'Enrollment Form'!$BG426)=2,\"Y\",\"N\")))","v":""},{"$f":"IF($B419=\"N\",\"\",IF(OR('Enrollment Form'!$AU426=\"\",'Enrollment Form'!$AU426=\"No\"),\"-\",IF(AND('Enrollment Form'!$AU426=\"Yes\",COUNTA('Enrollment Form'!$CK426)=1),\"Y\",\"N\")))","v":""},{"$f":"IF(OR('Enrollment Form'!$CK426=\"\",'Enrollment Form'!$CK426=\"No\"),\"-\",IF(COUNTA('Enrollment Form'!$CM426:$CN426)=2,\"Y\",\"N\"))","v":"-"},{"$f":"IF($B419=\"N\",\"\",IF(COUNTIF('Enrollment Form'!$CZ426:$DO426,\"Other\")=COUNTA('Enrollment Form'!$DF426,'Enrollment Form'!$DA426,'Enrollment Form'!$DK426,'Enrollment Form'!$DP426),\"Y\",\"N\"))","v":""},{"$f":"IF($B419=\"N\",\"\",IF(OR('Enrollment Form'!B426<>\"Subscriber\",'Enrollment Form'!C426=\"ROC\",COUNTIF('Enrollment Form'!AS426:AT426,\"Yes\")>=1),\"-\",IF(AND('Enrollment Form'!C426=\"Enroll\",COUNTIF('Enrollment Form'!AS426:AT426,\"No\")=2,'Enrollment Form'!AU426=\"\"),\"N\",\"Y\")))","v":""},{"$f":"IF(OR(B419=\"N\",'Enrollment Form'!B426<>\"Subscriber\",'Enrollment Form'!C426=\"ROC\",'Enrollment Form'!O426<>\"Multiple of Salary\"),\"-\",IF(COUNTA('Enrollment Form'!T426:U426)<2,\"N\",\"Y\"))","v":"-"},{"$f":"IF(B419=\"N\",\"\",IF(OR('Enrollment Form'!C426=\"ROC\",'Enrollment Form'!B426<>\"Subscriber\",'Enrollment Form'!O426=\"Waive\",'Enrollment Form'!O426=\"\"),\"-\",IF('Enrollment Form'!P426=\"\",\"N\",\"Y\")))","v":""},{"$f":"IF($B419=\"N\",\"\",IF(AND('Enrollment Form'!$C426=\"ROC\",'Enrollment Form'!$DS426<>\"\"),\"Y\",IF(AND('Enrollment Form'!$C426=\"ROC\",'Enrollment Form'!$DS426=\"\"),\"N\",IF(AND('Enrollment Form'!$C426=\"Enroll\",'Enrollment Form'!$B426=\"Subscriber\",'Enrollment Form'!$CQ426=\"No\",'Enrollment Form'!$DS426=\"\"),\"N\",IF(AND('Enrollment Form'!$C426=\"Enroll\",'Enrollment Form'!$B426=\"Subscriber\",'Enrollment Form'!$CQ426=\"Yes\"),\"-\",\"Y\")))))","v":""},{"$f":"IF($B419=\"N\",\"\",IF(AND('Enrollment Form'!$C426=\"ROC\",'Enrollment Form'!$DT426<>\"\"),\"Y\",IF(AND('Enrollment Form'!$C426=\"ROC\",'Enrollment Form'!$DT426=\"\"),\"N\",IF(AND('Enrollment Form'!$C426=\"Enroll\",'Enrollment Form'!$B426=\"Subscriber\",'Enrollment Form'!$CQ426=\"No\",'Enrollment Form'!$DT426=\"\"),\"N\",IF(AND('Enrollment Form'!$C426=\"Enroll\",'Enrollment Form'!$B426=\"Subscriber\",'Enrollment Form'!$CQ426=\"Yes\"),\"-\",\"Y\")))))","v":""},{"$f":"IF('Enrollment Form'!AH426=\"\",\"\",IF(ISERROR(SEARCH(\".\",'Enrollment Form'!AH426,SEARCH(\"@\",'Enrollment Form'!AH426))),\"N\",\"Y\"))","v":""},{"$f":"IF(OR($B419=\"N\",'Enrollment Form'!$G426=\"\"),\"\",IF('Enrollment Form'!$B426<>\"Subscriber\",\"-\",IF(COUNTIF('Enrollment Form'!$AS426:$AT426,\"Yes\")=2,\"N\",\"Y\")))","v":""},{"$f":"IF(OR('Enrollment Form'!$CC426=\"\",'Enrollment Form'!$CC426=\"No\"),\"-\",IF(AND('Enrollment Form'!$CC426=\"Yes\",'Enrollment Form'!$CD426=\"\"),\"N\",\"Y\"))","v":"-"},{"$f":"IF(OR('Enrollment Form'!$CE426=\"\",'Enrollment Form'!$CE426=\"No\"),\"-\",IF(AND('Enrollment Form'!$CE426=\"Yes\",'Enrollment Form'!$CF426=\"\"),\"N\",\"Y\"))","v":"-"},{"$f":"IF(OR('Enrollment Form'!$CG426=\"\",'Enrollment Form'!$CG426=\"No\"),\"-\",IF(AND('Enrollment Form'!$CG426=\"Yes\",'Enrollment Form'!$CH426=\"\"),\"N\",\"Y\"))","v":"-"},{"$f":"IF(OR('Enrollment Form'!$CG426=\"\",'Enrollment Form'!$CG426=\"No\"),\"-\",IF(AND('Enrollment Form'!$CG426=\"Yes\",'Enrollment Form'!$CI426=\"\"),\"N\",\"Y\"))","v":"-"},{"$f":"IF('Enrollment Form'!B426<>\"Subscriber\",\"-\",IF(AND('Enrollment Form'!B426=\"Subscriber\",'Enrollment Form'!C426=\"Enroll\",'Enrollment Form'!AA426=\"\"),\"N\",\"Y\"))","v":"-"},{"$f":"IF(OR('Enrollment Form'!B426=\"Subscriber\",'Enrollment Form'!B426=\"\"),\"-\",IF('Enrollment Form'!BI426=\"\",\"N\",\"Y\"))","v":"-"},{"$f":"IF('Enrollment Form'!B426<>\"Subscriber\",\"-\",IF(AND('Enrollment Form'!B426=\"Subscriber\",'Enrollment Form'!G426=\"\"),\"N\",\"Y\"))","v":"-"},{"$f":"IF('Enrollment Form'!A426=\"\",\"\",IF('Enrollment Form'!B426=\"Subscriber\",\"-\",IF(AND('Enrollment Form'!B426<>\"Subscriber\",'Enrollment Form'!G426='Enrollment Form'!H426),\"N\",\"Y\")))","v":""},0]
[427,{"$f":"IF('Enrollment Form'!$A427<>\"\",\"Y\",\"N\")","v":"N"},{"$f":"IF(AND('Enrollment Form'!$B427=\"\",'Enrollment Form'!$C427<>\"\"),\"N\",IF($B420=\"N\",\"\",\"Y\"))","v":""},{"$f":"IF(OR($B420=\"N\",'Enrollment Form'!G427=\"\"),\"\",IF('Enrollment Form'!$B427<>\"Subscriber\",\"\",IF('Enrollment Form'!$G427='Enrollment Form'!$H427,\"Y\",\"N\")))","v":""},{"$f":"IF($B420=\"N\",\"\",IF(AND(COUNTIFS('Enrollment Form'!$H$11:$H$1000,'Enrollment Form'!$H427,'Enrollment Form'!$B$11:$B$1000,'Enrollment Form'!$B427)>1,'Enrollment Form'!$H427<>\"\"),\"N\",\"Y\"))","v":""},{"$f":"IF($B420=\"N\",\"\",IF(LEN('Enrollment Form'!$Y427)=0,\"\",IF(LEN('Enrollment Form'!$Y427)<>5,\"N\",\"Y\")))","v":""},{"$f":"IF($B420=\"N\",\"\",IF(LEN('Enrollment Form'!$AD427=0),\"\",IF(LEN('Enrollment Form'!$AD427)<>5,\"N\",\"Y\")))","v":""},{"$f":"IF($B420=\"N\",\"\",IF(LEN('Enrollment Form'!$BL427=0),\"\",IF(LEN('Enrollment Form'!$BL427)<>5,\"N\",\"Y\")))","v":""},{"$f":"IF($B420=\"N\",\"\",IF(LEN('Enrollment Form'!$AE427)=0,\"\",IF(LEN('Enrollment Form'!$AE427)<>10,\"N\",\"Y\")))","v":""},{"$f":"IF($B420=\"N\",\"\",IF(LEN('Enrollment Form'!$AF427)=0,\"\",IF(LEN('Enrollment Form'!$AF427)<>10,\"N\",\"Y\")))","v":""},{"$f":"IF('Enrollment Form'!$O427<>\"Graded\",\"-\",IF(AND('Enrollment Form'!$O427=\"Graded\",'Enrollment Form'!$AO427<>\"\"),\"Y\",\"N\"))","v":"-"},{"$f":"IF($B420=\"N\",\"\",IF(OR('Enrollment Form'!$B427<>\"Subscriber\",'Enrollment Form'!$C427=\"ROC\"),\"-\",IF(AND('Enrollment Form'!$B427=\"Subscriber\",'Enrollment Form'!$C427=\"Enroll\",'Enrollment Form'!$AJ427<>\"\"),\"Y\",\"N\")))","v":""},{"$f":"IF($B420=\"N\",\"\",IF(OR('Enrollment Form'!$B427<>\"Subscriber\",'Enrollment Form'!$C427=\"ROC\"),\"-\",IF(AND('Enrollment Form'!$B427=\"Subscriber\",'Enrollment Form'!$C427=\"Enroll\",'Enrollment Form'!$AK427<>\"\"),\"Y\",\"N\")))","v":""},{"$f":"IF($B420=\"N\",\"\",IF(OR('Enrollment Form'!$B427<>\"Subscriber\",'Enrollment Form'!$C427=\"ROC\"),\"-\",IF(AND('Enrollment Form'!$B427=\"Subscriber\",'Enrollment Form'!$C427=\"Enroll\",'Enrollment Form'!$AL427<>\"\"),\"Y\",\"N\")))","v":""},{"$f":"IF($B420=\"N\",\"\",IF(OR('Enrollment Form'!$B427<>\"Subscriber\",'Enrollment Form'!$C427=\"ROC\"),\"-\",IF(AND('Enrollment Form'!$B427=\"Subscriber\",'Enrollment Form'!$C427=\"Enroll\",'Enrollment Form'!$AM427<>\"\"),\"Y\",\"N\")))","v":""},{"$f":"IF($B420=\"N\",\"\",IF(OR('Enrollment Form'!$B427<>\"Subscriber\",'Enrollment Form'!$C427=\"ROC\"),\"-\",IF(AND('Enrollment Form'!$B427=\"Subscriber\",'Enrollment Form'!$C427=\"Enroll\",'Enrollment Form'!$AN427<>\"\"),\"Y\",\"N\")))","v":""},{"$f":"IF($B420=\"N\",\"\",IF(OR('Enrollment Form'!$B427<>\"Subscriber\",'Enrollment Form'!$C427=\"ROC\"),\"-\",IF(AND('Enrollment Form'!$B427=\"Subscriber\",'Enrollment Form'!$C427=\"Enroll\",'Enrollment Form'!$AP427<>\"\"),\"Y\",\"N\")))","v":""},{"$f":"IF($B420=\"N\",\"\",IF($Q420=\"-\",\"-\",IF(AND($Q420=\"Y\",'Enrollment Form'!$AP427=\"No\"),\"-\",IF(AND($Q420=\"Y\",'Enrollment Form'!$AP427=\"Yes\",'Enrollment Form'!$AQ427<>\"\"),\"Y\",\"N\"))))","v":""},{"$f":"IF($B420=\"N\",\"\",IF(OR('Enrollment Form'!$B427<>\"Subscriber\",'Enrollment Form'!$C427=\"ROC\"),\"-\",IF(AND('Enrollment Form'!$B427=\"Subscriber\",'Enrollment Form'!$C427=\"Enroll\",'Enrollment Form'!$CO427<>\"\"),\"Y\",\"N\")))","v":""},{"$f":"IF($B420=\"N\",\"\",IF($S420=\"-\",\"-\",IF(AND($S420=\"Y\",'Enrollment Form'!$CO427=\"No\"),\"-\",IF(AND($S420=\"Y\",'Enrollment Form'!$CO427=\"Yes\",'Enrollment Form'!$CP427<>\"\"),\"Y\",\"N\"))))","v":""},{"$f":"IF(OR('Enrollment Form'!$AV427=\"Yes\",'Enrollment Form'!$AV427=\"\"),\"-\",IF(AND('Enrollment Form'!$AV427=\"No\",ISERROR(FIND(\"HMO\",VLOOKUP('Enrollment Form'!G427,'Enrollment Form'!H$11:J$1000,3,FALSE),1))=FALSE,COUNTA('Enrollment Form'!$AW427:$AZ427)=4),\"Y\",\"N\"))","v":"-"},{"$f":"IF($B420=\"N\",\"\",IF('Enrollment Form'!$B427=\"Subscriber\",\"-\",IF(COUNTA('Enrollment Form'!$BE427,'Enrollment Form'!$BG427)=2,\"Y\",\"N\")))","v":""},{"$f":"IF($B420=\"N\",\"\",IF(OR('Enrollment Form'!$AU427=\"\",'Enrollment Form'!$AU427=\"No\"),\"-\",IF(AND('Enrollment Form'!$AU427=\"Yes\",COUNTA('Enrollment Form'!$CK427)=1),\"Y\",\"N\")))","v":""},{"$f":"IF(OR('Enrollment Form'!$CK427=\"\",'Enrollment Form'!$CK427=\"No\"),\"-\",IF(COUNTA('Enrollment Form'!$CM427:$CN427)=2,\"Y\",\"N\"))","v":"-"},{"$f":"IF($B420=\"N\",\"\",IF(COUNTIF('Enrollment Form'!$CZ427:$DO427,\"Other\")=COUNTA('Enrollment Form'!$DF427,'Enrollment Form'!$DA427,'Enrollment Form'!$DK427,'Enrollment Form'!$DP427),\"Y\",\"N\"))","v":""},{"$f":"IF($B420=\"N\",\"\",IF(OR('Enrollment Form'!B427<>\"Subscriber\",'Enrollment Form'!C427=\"ROC\",COUNTIF('Enrollment Form'!AS427:AT427,\"Yes\")>=1),\"-\",IF(AND('Enrollment Form'!C427=\"Enroll\",COUNTIF('Enrollment Form'!AS427:AT427,\"No\")=2,'Enrollment Form'!AU427=\"\"),\"N\",\"Y\")))","v":""},{"$f":"IF(OR(B420=\"N\",'Enrollment Form'!B427<>\"Subscriber\",'Enrollment Form'!C427=\"ROC\",'Enrollment Form'!O427<>\"Multiple of Salary\"),\"-\",IF(COUNTA('Enrollment Form'!T427:U427)<2,\"N\",\"Y\"))","v":"-"},{"$f":"IF(B420=\"N\",\"\",IF(OR('Enrollment Form'!C427=\"ROC\",'Enrollment Form'!B427<>\"Subscriber\",'Enrollment Form'!O427=\"Waive\",'Enrollment Form'!O427=\"\"),\"-\",IF('Enrollment Form'!P427=\"\",\"N\",\"Y\")))","v":""},{"$f":"IF($B420=\"N\",\"\",IF(AND('Enrollment Form'!$C427=\"ROC\",'Enrollment Form'!$DS427<>\"\"),\"Y\",IF(AND('Enrollment Form'!$C427=\"ROC\",'Enrollment Form'!$DS427=\"\"),\"N\",IF(AND('Enrollment Form'!$C427=\"Enroll\",'Enrollment Form'!$B427=\"Subscriber\",'Enrollment Form'!$CQ427=\"No\",'Enrollment Form'!$DS427=\"\"),\"N\",IF(AND('Enrollment Form'!$C427=\"Enroll\",'Enrollment Form'!$B427=\"Subscriber\",'Enrollment Form'!$CQ427=\"Yes\"),\"-\",\"Y\")))))","v":""},{"$f":"IF($B420=\"N\",\"\",IF(AND('Enrollment Form'!$C427=\"ROC\",'Enrollment Form'!$DT427<>\"\"),\"Y\",IF(AND('Enrollment Form'!$C427=\"ROC\",'Enrollment Form'!$DT427=\"\"),\"N\",IF(AND('Enrollment Form'!$C427=\"Enroll\",'Enrollment Form'!$B427=\"Subscriber\",'Enrollment Form'!$CQ427=\"No\",'Enrollment Form'!$DT427=\"\"),\"N\",IF(AND('Enrollment Form'!$C427=\"Enroll\",'Enrollment Form'!$B427=\"Subscriber\",'Enrollment Form'!$CQ427=\"Yes\"),\"-\",\"Y\")))))","v":""},{"$f":"IF('Enrollment Form'!AH427=\"\",\"\",IF(ISERROR(SEARCH(\".\",'Enrollment Form'!AH427,SEARCH(\"@\",'Enrollment Form'!AH427))),\"N\",\"Y\"))","v":""},{"$f":"IF(OR($B420=\"N\",'Enrollment Form'!$G427=\"\"),\"\",IF('Enrollment Form'!$B427<>\"Subscriber\",\"-\",IF(COUNTIF('Enrollment Form'!$AS427:$AT427,\"Yes\")=2,\"N\",\"Y\")))","v":""},{"$f":"IF(OR('Enrollment Form'!$CC427=\"\",'Enrollment Form'!$CC427=\"No\"),\"-\",IF(AND('Enrollment Form'!$CC427=\"Yes\",'Enrollment Form'!$CD427=\"\"),\"N\",\"Y\"))","v":"-"},{"$f":"IF(OR('Enrollment Form'!$CE427=\"\",'Enrollment Form'!$CE427=\"No\"),\"-\",IF(AND('Enrollment Form'!$CE427=\"Yes\",'Enrollment Form'!$CF427=\"\"),\"N\",\"Y\"))","v":"-"},{"$f":"IF(OR('Enrollment Form'!$CG427=\"\",'Enrollment Form'!$CG427=\"No\"),\"-\",IF(AND('Enrollment Form'!$CG427=\"Yes\",'Enrollment Form'!$CH427=\"\"),\"N\",\"Y\"))","v":"-"},{"$f":"IF(OR('Enrollment Form'!$CG427=\"\",'Enrollment Form'!$CG427=\"No\"),\"-\",IF(AND('Enrollment Form'!$CG427=\"Yes\",'Enrollment Form'!$CI427=\"\"),\"N\",\"Y\"))","v":"-"},{"$f":"IF('Enrollment Form'!B427<>\"Subscriber\",\"-\",IF(AND('Enrollment Form'!B427=\"Subscriber\",'Enrollment Form'!C427=\"Enroll\",'Enrollment Form'!AA427=\"\"),\"N\",\"Y\"))","v":"-"},{"$f":"IF(OR('Enrollment Form'!B427=\"Subscriber\",'Enrollment Form'!B427=\"\"),\"-\",IF('Enrollment Form'!BI427=\"\",\"N\",\"Y\"))","v":"-"},{"$f":"IF('Enrollment Form'!B427<>\"Subscriber\",\"-\",IF(AND('Enrollment Form'!B427=\"Subscriber\",'Enrollment Form'!G427=\"\"),\"N\",\"Y\"))","v":"-"},{"$f":"IF('Enrollment Form'!A427=\"\",\"\",IF('Enrollment Form'!B427=\"Subscriber\",\"-\",IF(AND('Enrollment Form'!B427<>\"Subscriber\",'Enrollment Form'!G427='Enrollment Form'!H427),\"N\",\"Y\")))","v":""},0]
[428,{"$f":"IF('Enrollment Form'!$A428<>\"\",\"Y\",\"N\")","v":"N"},{"$f":"IF(AND('Enrollment Form'!$B428=\"\",'Enrollment Form'!$C428<>\"\"),\"N\",IF($B421=\"N\",\"\",\"Y\"))","v":""},{"$f":"IF(OR($B421=\"N\",'Enrollment Form'!G428=\"\"),\"\",IF('Enrollment Form'!$B428<>\"Subscriber\",\"\",IF('Enrollment Form'!$G428='Enrollment Form'!$H428,\"Y\",\"N\")))","v":""},{"$f":"IF($B421=\"N\",\"\",IF(AND(COUNTIFS('Enrollment Form'!$H$11:$H$1000,'Enrollment Form'!$H428,'Enrollment Form'!$B$11:$B$1000,'Enrollment Form'!$B428)>1,'Enrollment Form'!$H428<>\"\"),\"N\",\"Y\"))","v":""},{"$f":"IF($B421=\"N\",\"\",IF(LEN('Enrollment Form'!$Y428)=0,\"\",IF(LEN('Enrollment Form'!$Y428)<>5,\"N\",\"Y\")))","v":""},{"$f":"IF($B421=\"N\",\"\",IF(LEN('Enrollment Form'!$AD428=0),\"\",IF(LEN('Enrollment Form'!$AD428)<>5,\"N\",\"Y\")))","v":""},{"$f":"IF($B421=\"N\",\"\",IF(LEN('Enrollment Form'!$BL428=0),\"\",IF(LEN('Enrollment Form'!$BL428)<>5,\"N\",\"Y\")))","v":""},{"$f":"IF($B421=\"N\",\"\",IF(LEN('Enrollment Form'!$AE428)=0,\"\",IF(LEN('Enrollment Form'!$AE428)<>10,\"N\",\"Y\")))","v":""},{"$f":"IF($B421=\"N\",\"\",IF(LEN('Enrollment Form'!$AF428)=0,\"\",IF(LEN('Enrollment Form'!$AF428)<>10,\"N\",\"Y\")))","v":""},{"$f":"IF('Enrollment Form'!$O428<>\"Graded\",\"-\",IF(AND('Enrollment Form'!$O428=\"Graded\",'Enrollment Form'!$AO428<>\"\"),\"Y\",\"N\"))","v":"-"},{"$f":"IF($B421=\"N\",\"\",IF(OR('Enrollment Form'!$B428<>\"Subscriber\",'Enrollment Form'!$C428=\"ROC\"),\"-\",IF(AND('Enrollment Form'!$B428=\"Subscriber\",'Enrollment Form'!$C428=\"Enroll\",'Enrollment Form'!$AJ428<>\"\"),\"Y\",\"N\")))","v":""},{"$f":"IF($B421=\"N\",\"\",IF(OR('Enrollment Form'!$B428<>\"Subscriber\",'Enrollment Form'!$C428=\"ROC\"),\"-\",IF(AND('Enrollment Form'!$B428=\"Subscriber\",'Enrollment Form'!$C428=\"Enroll\",'Enrollment Form'!$AK428<>\"\"),\"Y\",\"N\")))","v":""},{"$f":"IF($B421=\"N\",\"\",IF(OR('Enrollment Form'!$B428<>\"Subscriber\",'Enrollment Form'!$C428=\"ROC\"),\"-\",IF(AND('Enrollment Form'!$B428=\"Subscriber\",'Enrollment Form'!$C428=\"Enroll\",'Enrollment Form'!$AL428<>\"\"),\"Y\",\"N\")))","v":""},{"$f":"IF($B421=\"N\",\"\",IF(OR('Enrollment Form'!$B428<>\"Subscriber\",'Enrollment Form'!$C428=\"ROC\"),\"-\",IF(AND('Enrollment Form'!$B428=\"Subscriber\",'Enrollment Form'!$C428=\"Enroll\",'Enrollment Form'!$AM428<>\"\"),\"Y\",\"N\")))","v":""},{"$f":"IF($B421=\"N\",\"\",IF(OR('Enrollment Form'!$B428<>\"Subscriber\",'Enrollment Form'!$C428=\"ROC\"),\"-\",IF(AND('Enrollment Form'!$B428=\"Subscriber\",'Enrollment Form'!$C428=\"Enroll\",'Enrollment Form'!$AN428<>\"\"),\"Y\",\"N\")))","v":""},{"$f":"IF($B421=\"N\",\"\",IF(OR('Enrollment Form'!$B428<>\"Subscriber\",'Enrollment Form'!$C428=\"ROC\"),\"-\",IF(AND('Enrollment Form'!$B428=\"Subscriber\",'Enrollment Form'!$C428=\"Enroll\",'Enrollment Form'!$AP428<>\"\"),\"Y\",\"N\")))","v":""},{"$f":"IF($B421=\"N\",\"\",IF($Q421=\"-\",\"-\",IF(AND($Q421=\"Y\",'Enrollment Form'!$AP428=\"No\"),\"-\",IF(AND($Q421=\"Y\",'Enrollment Form'!$AP428=\"Yes\",'Enrollment Form'!$AQ428<>\"\"),\"Y\",\"N\"))))","v":""},{"$f":"IF($B421=\"N\",\"\",IF(OR('Enrollment Form'!$B428<>\"Subscriber\",'Enrollment Form'!$C428=\"ROC\"),\"-\",IF(AND('Enrollment Form'!$B428=\"Subscriber\",'Enrollment Form'!$C428=\"Enroll\",'Enrollment Form'!$CO428<>\"\"),\"Y\",\"N\")))","v":""},{"$f":"IF($B421=\"N\",\"\",IF($S421=\"-\",\"-\",IF(AND($S421=\"Y\",'Enrollment Form'!$CO428=\"No\"),\"-\",IF(AND($S421=\"Y\",'Enrollment Form'!$CO428=\"Yes\",'Enrollment Form'!$CP428<>\"\"),\"Y\",\"N\"))))","v":""},{"$f":"IF(OR('Enrollment Form'!$AV428=\"Yes\",'Enrollment Form'!$AV428=\"\"),\"-\",IF(AND('Enrollment Form'!$AV428=\"No\",ISERROR(FIND(\"HMO\",VLOOKUP('Enrollment Form'!G428,'Enrollment Form'!H$11:J$1000,3,FALSE),1))=FALSE,COUNTA('Enrollment Form'!$AW428:$AZ428)=4),\"Y\",\"N\"))","v":"-"},{"$f":"IF($B421=\"N\",\"\",IF('Enrollment Form'!$B428=\"Subscriber\",\"-\",IF(COUNTA('Enrollment Form'!$BE428,'Enrollment Form'!$BG428)=2,\"Y\",\"N\")))","v":""},{"$f":"IF($B421=\"N\",\"\",IF(OR('Enrollment Form'!$AU428=\"\",'Enrollment Form'!$AU428=\"No\"),\"-\",IF(AND('Enrollment Form'!$AU428=\"Yes\",COUNTA('Enrollment Form'!$CK428)=1),\"Y\",\"N\")))","v":""},{"$f":"IF(OR('Enrollment Form'!$CK428=\"\",'Enrollment Form'!$CK428=\"No\"),\"-\",IF(COUNTA('Enrollment Form'!$CM428:$CN428)=2,\"Y\",\"N\"))","v":"-"},{"$f":"IF($B421=\"N\",\"\",IF(COUNTIF('Enrollment Form'!$CZ428:$DO428,\"Other\")=COUNTA('Enrollment Form'!$DF428,'Enrollment Form'!$DA428,'Enrollment Form'!$DK428,'Enrollment Form'!$DP428),\"Y\",\"N\"))","v":""},{"$f":"IF($B421=\"N\",\"\",IF(OR('Enrollment Form'!B428<>\"Subscriber\",'Enrollment Form'!C428=\"ROC\",COUNTIF('Enrollment Form'!AS428:AT428,\"Yes\")>=1),\"-\",IF(AND('Enrollment Form'!C428=\"Enroll\",COUNTIF('Enrollment Form'!AS428:AT428,\"No\")=2,'Enrollment Form'!AU428=\"\"),\"N\",\"Y\")))","v":""},{"$f":"IF(OR(B421=\"N\",'Enrollment Form'!B428<>\"Subscriber\",'Enrollment Form'!C428=\"ROC\",'Enrollment Form'!O428<>\"Multiple of Salary\"),\"-\",IF(COUNTA('Enrollment Form'!T428:U428)<2,\"N\",\"Y\"))","v":"-"},{"$f":"IF(B421=\"N\",\"\",IF(OR('Enrollment Form'!C428=\"ROC\",'Enrollment Form'!B428<>\"Subscriber\",'Enrollment Form'!O428=\"Waive\",'Enrollment Form'!O428=\"\"),\"-\",IF('Enrollment Form'!P428=\"\",\"N\",\"Y\")))","v":""},{"$f":"IF($B421=\"N\",\"\",IF(AND('Enrollment Form'!$C428=\"ROC\",'Enrollment Form'!$DS428<>\"\"),\"Y\",IF(AND('Enrollment Form'!$C428=\"ROC\",'Enrollment Form'!$DS428=\"\"),\"N\",IF(AND('Enrollment Form'!$C428=\"Enroll\",'Enrollment Form'!$B428=\"Subscriber\",'Enrollment Form'!$CQ428=\"No\",'Enrollment Form'!$DS428=\"\"),\"N\",IF(AND('Enrollment Form'!$C428=\"Enroll\",'Enrollment Form'!$B428=\"Subscriber\",'Enrollment Form'!$CQ428=\"Yes\"),\"-\",\"Y\")))))","v":""},{"$f":"IF($B421=\"N\",\"\",IF(AND('Enrollment Form'!$C428=\"ROC\",'Enrollment Form'!$DT428<>\"\"),\"Y\",IF(AND('Enrollment Form'!$C428=\"ROC\",'Enrollment Form'!$DT428=\"\"),\"N\",IF(AND('Enrollment Form'!$C428=\"Enroll\",'Enrollment Form'!$B428=\"Subscriber\",'Enrollment Form'!$CQ428=\"No\",'Enrollment Form'!$DT428=\"\"),\"N\",IF(AND('Enrollment Form'!$C428=\"Enroll\",'Enrollment Form'!$B428=\"Subscriber\",'Enrollment Form'!$CQ428=\"Yes\"),\"-\",\"Y\")))))","v":""},{"$f":"IF('Enrollment Form'!AH428=\"\",\"\",IF(ISERROR(SEARCH(\".\",'Enrollment Form'!AH428,SEARCH(\"@\",'Enrollment Form'!AH428))),\"N\",\"Y\"))","v":""},{"$f":"IF(OR($B421=\"N\",'Enrollment Form'!$G428=\"\"),\"\",IF('Enrollment Form'!$B428<>\"Subscriber\",\"-\",IF(COUNTIF('Enrollment Form'!$AS428:$AT428,\"Yes\")=2,\"N\",\"Y\")))","v":""},{"$f":"IF(OR('Enrollment Form'!$CC428=\"\",'Enrollment Form'!$CC428=\"No\"),\"-\",IF(AND('Enrollment Form'!$CC428=\"Yes\",'Enrollment Form'!$CD428=\"\"),\"N\",\"Y\"))","v":"-"},{"$f":"IF(OR('Enrollment Form'!$CE428=\"\",'Enrollment Form'!$CE428=\"No\"),\"-\",IF(AND('Enrollment Form'!$CE428=\"Yes\",'Enrollment Form'!$CF428=\"\"),\"N\",\"Y\"))","v":"-"},{"$f":"IF(OR('Enrollment Form'!$CG428=\"\",'Enrollment Form'!$CG428=\"No\"),\"-\",IF(AND('Enrollment Form'!$CG428=\"Yes\",'Enrollment Form'!$CH428=\"\"),\"N\",\"Y\"))","v":"-"},{"$f":"IF(OR('Enrollment Form'!$CG428=\"\",'Enrollment Form'!$CG428=\"No\"),\"-\",IF(AND('Enrollment Form'!$CG428=\"Yes\",'Enrollment Form'!$CI428=\"\"),\"N\",\"Y\"))","v":"-"},{"$f":"IF('Enrollment Form'!B428<>\"Subscriber\",\"-\",IF(AND('Enrollment Form'!B428=\"Subscriber\",'Enrollment Form'!C428=\"Enroll\",'Enrollment Form'!AA428=\"\"),\"N\",\"Y\"))","v":"-"},{"$f":"IF(OR('Enrollment Form'!B428=\"Subscriber\",'Enrollment Form'!B428=\"\"),\"-\",IF('Enrollment Form'!BI428=\"\",\"N\",\"Y\"))","v":"-"},{"$f":"IF('Enrollment Form'!B428<>\"Subscriber\",\"-\",IF(AND('Enrollment Form'!B428=\"Subscriber\",'Enrollment Form'!G428=\"\"),\"N\",\"Y\"))","v":"-"},{"$f":"IF('Enrollment Form'!A428=\"\",\"\",IF('Enrollment Form'!B428=\"Subscriber\",\"-\",IF(AND('Enrollment Form'!B428<>\"Subscriber\",'Enrollment Form'!G428='Enrollment Form'!H428),\"N\",\"Y\")))","v":""},0]
[429,{"$f":"IF('Enrollment Form'!$A429<>\"\",\"Y\",\"N\")","v":"N"},{"$f":"IF(AND('Enrollment Form'!$B429=\"\",'Enrollment Form'!$C429<>\"\"),\"N\",IF($B422=\"N\",\"\",\"Y\"))","v":""},{"$f":"IF(OR($B422=\"N\",'Enrollment Form'!G429=\"\"),\"\",IF('Enrollment Form'!$B429<>\"Subscriber\",\"\",IF('Enrollment Form'!$G429='Enrollment Form'!$H429,\"Y\",\"N\")))","v":""},{"$f":"IF($B422=\"N\",\"\",IF(AND(COUNTIFS('Enrollment Form'!$H$11:$H$1000,'Enrollment Form'!$H429,'Enrollment Form'!$B$11:$B$1000,'Enrollment Form'!$B429)>1,'Enrollment Form'!$H429<>\"\"),\"N\",\"Y\"))","v":""},{"$f":"IF($B422=\"N\",\"\",IF(LEN('Enrollment Form'!$Y429)=0,\"\",IF(LEN('Enrollment Form'!$Y429)<>5,\"N\",\"Y\")))","v":""},{"$f":"IF($B422=\"N\",\"\",IF(LEN('Enrollment Form'!$AD429=0),\"\",IF(LEN('Enrollment Form'!$AD429)<>5,\"N\",\"Y\")))","v":""},{"$f":"IF($B422=\"N\",\"\",IF(LEN('Enrollment Form'!$BL429=0),\"\",IF(LEN('Enrollment Form'!$BL429)<>5,\"N\",\"Y\")))","v":""},{"$f":"IF($B422=\"N\",\"\",IF(LEN('Enrollment Form'!$AE429)=0,\"\",IF(LEN('Enrollment Form'!$AE429)<>10,\"N\",\"Y\")))","v":""},{"$f":"IF($B422=\"N\",\"\",IF(LEN('Enrollment Form'!$AF429)=0,\"\",IF(LEN('Enrollment Form'!$AF429)<>10,\"N\",\"Y\")))","v":""},{"$f":"IF('Enrollment Form'!$O429<>\"Graded\",\"-\",IF(AND('Enrollment Form'!$O429=\"Graded\",'Enrollment Form'!$AO429<>\"\"),\"Y\",\"N\"))","v":"-"},{"$f":"IF($B422=\"N\",\"\",IF(OR('Enrollment Form'!$B429<>\"Subscriber\",'Enrollment Form'!$C429=\"ROC\"),\"-\",IF(AND('Enrollment Form'!$B429=\"Subscriber\",'Enrollment Form'!$C429=\"Enroll\",'Enrollment Form'!$AJ429<>\"\"),\"Y\",\"N\")))","v":""},{"$f":"IF($B422=\"N\",\"\",IF(OR('Enrollment Form'!$B429<>\"Subscriber\",'Enrollment Form'!$C429=\"ROC\"),\"-\",IF(AND('Enrollment Form'!$B429=\"Subscriber\",'Enrollment Form'!$C429=\"Enroll\",'Enrollment Form'!$AK429<>\"\"),\"Y\",\"N\")))","v":""},{"$f":"IF($B422=\"N\",\"\",IF(OR('Enrollment Form'!$B429<>\"Subscriber\",'Enrollment Form'!$C429=\"ROC\"),\"-\",IF(AND('Enrollment Form'!$B429=\"Subscriber\",'Enrollment Form'!$C429=\"Enroll\",'Enrollment Form'!$AL429<>\"\"),\"Y\",\"N\")))","v":""},{"$f":"IF($B422=\"N\",\"\",IF(OR('Enrollment Form'!$B429<>\"Subscriber\",'Enrollment Form'!$C429=\"ROC\"),\"-\",IF(AND('Enrollment Form'!$B429=\"Subscriber\",'Enrollment Form'!$C429=\"Enroll\",'Enrollment Form'!$AM429<>\"\"),\"Y\",\"N\")))","v":""},{"$f":"IF($B422=\"N\",\"\",IF(OR('Enrollment Form'!$B429<>\"Subscriber\",'Enrollment Form'!$C429=\"ROC\"),\"-\",IF(AND('Enrollment Form'!$B429=\"Subscriber\",'Enrollment Form'!$C429=\"Enroll\",'Enrollment Form'!$AN429<>\"\"),\"Y\",\"N\")))","v":""},{"$f":"IF($B422=\"N\",\"\",IF(OR('Enrollment Form'!$B429<>\"Subscriber\",'Enrollment Form'!$C429=\"ROC\"),\"-\",IF(AND('Enrollment Form'!$B429=\"Subscriber\",'Enrollment Form'!$C429=\"Enroll\",'Enrollment Form'!$AP429<>\"\"),\"Y\",\"N\")))","v":""},{"$f":"IF($B422=\"N\",\"\",IF($Q422=\"-\",\"-\",IF(AND($Q422=\"Y\",'Enrollment Form'!$AP429=\"No\"),\"-\",IF(AND($Q422=\"Y\",'Enrollment Form'!$AP429=\"Yes\",'Enrollment Form'!$AQ429<>\"\"),\"Y\",\"N\"))))","v":""},{"$f":"IF($B422=\"N\",\"\",IF(OR('Enrollment Form'!$B429<>\"Subscriber\",'Enrollment Form'!$C429=\"ROC\"),\"-\",IF(AND('Enrollment Form'!$B429=\"Subscriber\",'Enrollment Form'!$C429=\"Enroll\",'Enrollment Form'!$CO429<>\"\"),\"Y\",\"N\")))","v":""},{"$f":"IF($B422=\"N\",\"\",IF($S422=\"-\",\"-\",IF(AND($S422=\"Y\",'Enrollment Form'!$CO429=\"No\"),\"-\",IF(AND($S422=\"Y\",'Enrollment Form'!$CO429=\"Yes\",'Enrollment Form'!$CP429<>\"\"),\"Y\",\"N\"))))","v":""},{"$f":"IF(OR('Enrollment Form'!$AV429=\"Yes\",'Enrollment Form'!$AV429=\"\"),\"-\",IF(AND('Enrollment Form'!$AV429=\"No\",ISERROR(FIND(\"HMO\",VLOOKUP('Enrollment Form'!G429,'Enrollment Form'!H$11:J$1000,3,FALSE),1))=FALSE,COUNTA('Enrollment Form'!$AW429:$AZ429)=4),\"Y\",\"N\"))","v":"-"},{"$f":"IF($B422=\"N\",\"\",IF('Enrollment Form'!$B429=\"Subscriber\",\"-\",IF(COUNTA('Enrollment Form'!$BE429,'Enrollment Form'!$BG429)=2,\"Y\",\"N\")))","v":""},{"$f":"IF($B422=\"N\",\"\",IF(OR('Enrollment Form'!$AU429=\"\",'Enrollment Form'!$AU429=\"No\"),\"-\",IF(AND('Enrollment Form'!$AU429=\"Yes\",COUNTA('Enrollment Form'!$CK429)=1),\"Y\",\"N\")))","v":""},{"$f":"IF(OR('Enrollment Form'!$CK429=\"\",'Enrollment Form'!$CK429=\"No\"),\"-\",IF(COUNTA('Enrollment Form'!$CM429:$CN429)=2,\"Y\",\"N\"))","v":"-"},{"$f":"IF($B422=\"N\",\"\",IF(COUNTIF('Enrollment Form'!$CZ429:$DO429,\"Other\")=COUNTA('Enrollment Form'!$DF429,'Enrollment Form'!$DA429,'Enrollment Form'!$DK429,'Enrollment Form'!$DP429),\"Y\",\"N\"))","v":""},{"$f":"IF($B422=\"N\",\"\",IF(OR('Enrollment Form'!B429<>\"Subscriber\",'Enrollment Form'!C429=\"ROC\",COUNTIF('Enrollment Form'!AS429:AT429,\"Yes\")>=1),\"-\",IF(AND('Enrollment Form'!C429=\"Enroll\",COUNTIF('Enrollment Form'!AS429:AT429,\"No\")=2,'Enrollment Form'!AU429=\"\"),\"N\",\"Y\")))","v":""},{"$f":"IF(OR(B422=\"N\",'Enrollment Form'!B429<>\"Subscriber\",'Enrollment Form'!C429=\"ROC\",'Enrollment Form'!O429<>\"Multiple of Salary\"),\"-\",IF(COUNTA('Enrollment Form'!T429:U429)<2,\"N\",\"Y\"))","v":"-"},{"$f":"IF(B422=\"N\",\"\",IF(OR('Enrollment Form'!C429=\"ROC\",'Enrollment Form'!B429<>\"Subscriber\",'Enrollment Form'!O429=\"Waive\",'Enrollment Form'!O429=\"\"),\"-\",IF('Enrollment Form'!P429=\"\",\"N\",\"Y\")))","v":""},{"$f":"IF($B422=\"N\",\"\",IF(AND('Enrollment Form'!$C429=\"ROC\",'Enrollment Form'!$DS429<>\"\"),\"Y\",IF(AND('Enrollment Form'!$C429=\"ROC\",'Enrollment Form'!$DS429=\"\"),\"N\",IF(AND('Enrollment Form'!$C429=\"Enroll\",'Enrollment Form'!$B429=\"Subscriber\",'Enrollment Form'!$CQ429=\"No\",'Enrollment Form'!$DS429=\"\"),\"N\",IF(AND('Enrollment Form'!$C429=\"Enroll\",'Enrollment Form'!$B429=\"Subscriber\",'Enrollment Form'!$CQ429=\"Yes\"),\"-\",\"Y\")))))","v":""},{"$f":"IF($B422=\"N\",\"\",IF(AND('Enrollment Form'!$C429=\"ROC\",'Enrollment Form'!$DT429<>\"\"),\"Y\",IF(AND('Enrollment Form'!$C429=\"ROC\",'Enrollment Form'!$DT429=\"\"),\"N\",IF(AND('Enrollment Form'!$C429=\"Enroll\",'Enrollment Form'!$B429=\"Subscriber\",'Enrollment Form'!$CQ429=\"No\",'Enrollment Form'!$DT429=\"\"),\"N\",IF(AND('Enrollment Form'!$C429=\"Enroll\",'Enrollment Form'!$B429=\"Subscriber\",'Enrollment Form'!$CQ429=\"Yes\"),\"-\",\"Y\")))))","v":""},{"$f":"IF('Enrollment Form'!AH429=\"\",\"\",IF(ISERROR(SEARCH(\".\",'Enrollment Form'!AH429,SEARCH(\"@\",'Enrollment Form'!AH429))),\"N\",\"Y\"))","v":""},{"$f":"IF(OR($B422=\"N\",'Enrollment Form'!$G429=\"\"),\"\",IF('Enrollment Form'!$B429<>\"Subscriber\",\"-\",IF(COUNTIF('Enrollment Form'!$AS429:$AT429,\"Yes\")=2,\"N\",\"Y\")))","v":""},{"$f":"IF(OR('Enrollment Form'!$CC429=\"\",'Enrollment Form'!$CC429=\"No\"),\"-\",IF(AND('Enrollment Form'!$CC429=\"Yes\",'Enrollment Form'!$CD429=\"\"),\"N\",\"Y\"))","v":"-"},{"$f":"IF(OR('Enrollment Form'!$CE429=\"\",'Enrollment Form'!$CE429=\"No\"),\"-\",IF(AND('Enrollment Form'!$CE429=\"Yes\",'Enrollment Form'!$CF429=\"\"),\"N\",\"Y\"))","v":"-"},{"$f":"IF(OR('Enrollment Form'!$CG429=\"\",'Enrollment Form'!$CG429=\"No\"),\"-\",IF(AND('Enrollment Form'!$CG429=\"Yes\",'Enrollment Form'!$CH429=\"\"),\"N\",\"Y\"))","v":"-"},{"$f":"IF(OR('Enrollment Form'!$CG429=\"\",'Enrollment Form'!$CG429=\"No\"),\"-\",IF(AND('Enrollment Form'!$CG429=\"Yes\",'Enrollment Form'!$CI429=\"\"),\"N\",\"Y\"))","v":"-"},{"$f":"IF('Enrollment Form'!B429<>\"Subscriber\",\"-\",IF(AND('Enrollment Form'!B429=\"Subscriber\",'Enrollment Form'!C429=\"Enroll\",'Enrollment Form'!AA429=\"\"),\"N\",\"Y\"))","v":"-"},{"$f":"IF(OR('Enrollment Form'!B429=\"Subscriber\",'Enrollment Form'!B429=\"\"),\"-\",IF('Enrollment Form'!BI429=\"\",\"N\",\"Y\"))","v":"-"},{"$f":"IF('Enrollment Form'!B429<>\"Subscriber\",\"-\",IF(AND('Enrollment Form'!B429=\"Subscriber\",'Enrollment Form'!G429=\"\"),\"N\",\"Y\"))","v":"-"},{"$f":"IF('Enrollment Form'!A429=\"\",\"\",IF('Enrollment Form'!B429=\"Subscriber\",\"-\",IF(AND('Enrollment Form'!B429<>\"Subscriber\",'Enrollment Form'!G429='Enrollment Form'!H429),\"N\",\"Y\")))","v":""},0]
[430,{"$f":"IF('Enrollment Form'!$A430<>\"\",\"Y\",\"N\")","v":"N"},{"$f":"IF(AND('Enrollment Form'!$B430=\"\",'Enrollment Form'!$C430<>\"\"),\"N\",IF($B423=\"N\",\"\",\"Y\"))","v":""},{"$f":"IF(OR($B423=\"N\",'Enrollment Form'!G430=\"\"),\"\",IF('Enrollment Form'!$B430<>\"Subscriber\",\"\",IF('Enrollment Form'!$G430='Enrollment Form'!$H430,\"Y\",\"N\")))","v":""},{"$f":"IF($B423=\"N\",\"\",IF(AND(COUNTIFS('Enrollment Form'!$H$11:$H$1000,'Enrollment Form'!$H430,'Enrollment Form'!$B$11:$B$1000,'Enrollment Form'!$B430)>1,'Enrollment Form'!$H430<>\"\"),\"N\",\"Y\"))","v":""},{"$f":"IF($B423=\"N\",\"\",IF(LEN('Enrollment Form'!$Y430)=0,\"\",IF(LEN('Enrollment Form'!$Y430)<>5,\"N\",\"Y\")))","v":""},{"$f":"IF($B423=\"N\",\"\",IF(LEN('Enrollment Form'!$AD430=0),\"\",IF(LEN('Enrollment Form'!$AD430)<>5,\"N\",\"Y\")))","v":""},{"$f":"IF($B423=\"N\",\"\",IF(LEN('Enrollment Form'!$BL430=0),\"\",IF(LEN('Enrollment Form'!$BL430)<>5,\"N\",\"Y\")))","v":""},{"$f":"IF($B423=\"N\",\"\",IF(LEN('Enrollment Form'!$AE430)=0,\"\",IF(LEN('Enrollment Form'!$AE430)<>10,\"N\",\"Y\")))","v":""},{"$f":"IF($B423=\"N\",\"\",IF(LEN('Enrollment Form'!$AF430)=0,\"\",IF(LEN('Enrollment Form'!$AF430)<>10,\"N\",\"Y\")))","v":""},{"$f":"IF('Enrollment Form'!$O430<>\"Graded\",\"-\",IF(AND('Enrollment Form'!$O430=\"Graded\",'Enrollment Form'!$AO430<>\"\"),\"Y\",\"N\"))","v":"-"},{"$f":"IF($B423=\"N\",\"\",IF(OR('Enrollment Form'!$B430<>\"Subscriber\",'Enrollment Form'!$C430=\"ROC\"),\"-\",IF(AND('Enrollment Form'!$B430=\"Subscriber\",'Enrollment Form'!$C430=\"Enroll\",'Enrollment Form'!$AJ430<>\"\"),\"Y\",\"N\")))","v":""},{"$f":"IF($B423=\"N\",\"\",IF(OR('Enrollment Form'!$B430<>\"Subscriber\",'Enrollment Form'!$C430=\"ROC\"),\"-\",IF(AND('Enrollment Form'!$B430=\"Subscriber\",'Enrollment Form'!$C430=\"Enroll\",'Enrollment Form'!$AK430<>\"\"),\"Y\",\"N\")))","v":""},{"$f":"IF($B423=\"N\",\"\",IF(OR('Enrollment Form'!$B430<>\"Subscriber\",'Enrollment Form'!$C430=\"ROC\"),\"-\",IF(AND('Enrollment Form'!$B430=\"Subscriber\",'Enrollment Form'!$C430=\"Enroll\",'Enrollment Form'!$AL430<>\"\"),\"Y\",\"N\")))","v":""},{"$f":"IF($B423=\"N\",\"\",IF(OR('Enrollment Form'!$B430<>\"Subscriber\",'Enrollment Form'!$C430=\"ROC\"),\"-\",IF(AND('Enrollment Form'!$B430=\"Subscriber\",'Enrollment Form'!$C430=\"Enroll\",'Enrollment Form'!$AM430<>\"\"),\"Y\",\"N\")))","v":""},{"$f":"IF($B423=\"N\",\"\",IF(OR('Enrollment Form'!$B430<>\"Subscriber\",'Enrollment Form'!$C430=\"ROC\"),\"-\",IF(AND('Enrollment Form'!$B430=\"Subscriber\",'Enrollment Form'!$C430=\"Enroll\",'Enrollment Form'!$AN430<>\"\"),\"Y\",\"N\")))","v":""},{"$f":"IF($B423=\"N\",\"\",IF(OR('Enrollment Form'!$B430<>\"Subscriber\",'Enrollment Form'!$C430=\"ROC\"),\"-\",IF(AND('Enrollment Form'!$B430=\"Subscriber\",'Enrollment Form'!$C430=\"Enroll\",'Enrollment Form'!$AP430<>\"\"),\"Y\",\"N\")))","v":""},{"$f":"IF($B423=\"N\",\"\",IF($Q423=\"-\",\"-\",IF(AND($Q423=\"Y\",'Enrollment Form'!$AP430=\"No\"),\"-\",IF(AND($Q423=\"Y\",'Enrollment Form'!$AP430=\"Yes\",'Enrollment Form'!$AQ430<>\"\"),\"Y\",\"N\"))))","v":""},{"$f":"IF($B423=\"N\",\"\",IF(OR('Enrollment Form'!$B430<>\"Subscriber\",'Enrollment Form'!$C430=\"ROC\"),\"-\",IF(AND('Enrollment Form'!$B430=\"Subscriber\",'Enrollment Form'!$C430=\"Enroll\",'Enrollment Form'!$CO430<>\"\"),\"Y\",\"N\")))","v":""},{"$f":"IF($B423=\"N\",\"\",IF($S423=\"-\",\"-\",IF(AND($S423=\"Y\",'Enrollment Form'!$CO430=\"No\"),\"-\",IF(AND($S423=\"Y\",'Enrollment Form'!$CO430=\"Yes\",'Enrollment Form'!$CP430<>\"\"),\"Y\",\"N\"))))","v":""},{"$f":"IF(OR('Enrollment Form'!$AV430=\"Yes\",'Enrollment Form'!$AV430=\"\"),\"-\",IF(AND('Enrollment Form'!$AV430=\"No\",ISERROR(FIND(\"HMO\",VLOOKUP('Enrollment Form'!G430,'Enrollment Form'!H$11:J$1000,3,FALSE),1))=FALSE,COUNTA('Enrollment Form'!$AW430:$AZ430)=4),\"Y\",\"N\"))","v":"-"},{"$f":"IF($B423=\"N\",\"\",IF('Enrollment Form'!$B430=\"Subscriber\",\"-\",IF(COUNTA('Enrollment Form'!$BE430,'Enrollment Form'!$BG430)=2,\"Y\",\"N\")))","v":""},{"$f":"IF($B423=\"N\",\"\",IF(OR('Enrollment Form'!$AU430=\"\",'Enrollment Form'!$AU430=\"No\"),\"-\",IF(AND('Enrollment Form'!$AU430=\"Yes\",COUNTA('Enrollment Form'!$CK430)=1),\"Y\",\"N\")))","v":""},{"$f":"IF(OR('Enrollment Form'!$CK430=\"\",'Enrollment Form'!$CK430=\"No\"),\"-\",IF(COUNTA('Enrollment Form'!$CM430:$CN430)=2,\"Y\",\"N\"))","v":"-"},{"$f":"IF($B423=\"N\",\"\",IF(COUNTIF('Enrollment Form'!$CZ430:$DO430,\"Other\")=COUNTA('Enrollment Form'!$DF430,'Enrollment Form'!$DA430,'Enrollment Form'!$DK430,'Enrollment Form'!$DP430),\"Y\",\"N\"))","v":""},{"$f":"IF($B423=\"N\",\"\",IF(OR('Enrollment Form'!B430<>\"Subscriber\",'Enrollment Form'!C430=\"ROC\",COUNTIF('Enrollment Form'!AS430:AT430,\"Yes\")>=1),\"-\",IF(AND('Enrollment Form'!C430=\"Enroll\",COUNTIF('Enrollment Form'!AS430:AT430,\"No\")=2,'Enrollment Form'!AU430=\"\"),\"N\",\"Y\")))","v":""},{"$f":"IF(OR(B423=\"N\",'Enrollment Form'!B430<>\"Subscriber\",'Enrollment Form'!C430=\"ROC\",'Enrollment Form'!O430<>\"Multiple of Salary\"),\"-\",IF(COUNTA('Enrollment Form'!T430:U430)<2,\"N\",\"Y\"))","v":"-"},{"$f":"IF(B423=\"N\",\"\",IF(OR('Enrollment Form'!C430=\"ROC\",'Enrollment Form'!B430<>\"Subscriber\",'Enrollment Form'!O430=\"Waive\",'Enrollment Form'!O430=\"\"),\"-\",IF('Enrollment Form'!P430=\"\",\"N\",\"Y\")))","v":""},{"$f":"IF($B423=\"N\",\"\",IF(AND('Enrollment Form'!$C430=\"ROC\",'Enrollment Form'!$DS430<>\"\"),\"Y\",IF(AND('Enrollment Form'!$C430=\"ROC\",'Enrollment Form'!$DS430=\"\"),\"N\",IF(AND('Enrollment Form'!$C430=\"Enroll\",'Enrollment Form'!$B430=\"Subscriber\",'Enrollment Form'!$CQ430=\"No\",'Enrollment Form'!$DS430=\"\"),\"N\",IF(AND('Enrollment Form'!$C430=\"Enroll\",'Enrollment Form'!$B430=\"Subscriber\",'Enrollment Form'!$CQ430=\"Yes\"),\"-\",\"Y\")))))","v":""},{"$f":"IF($B423=\"N\",\"\",IF(AND('Enrollment Form'!$C430=\"ROC\",'Enrollment Form'!$DT430<>\"\"),\"Y\",IF(AND('Enrollment Form'!$C430=\"ROC\",'Enrollment Form'!$DT430=\"\"),\"N\",IF(AND('Enrollment Form'!$C430=\"Enroll\",'Enrollment Form'!$B430=\"Subscriber\",'Enrollment Form'!$CQ430=\"No\",'Enrollment Form'!$DT430=\"\"),\"N\",IF(AND('Enrollment Form'!$C430=\"Enroll\",'Enrollment Form'!$B430=\"Subscriber\",'Enrollment Form'!$CQ430=\"Yes\"),\"-\",\"Y\")))))","v":""},{"$f":"IF('Enrollment Form'!AH430=\"\",\"\",IF(ISERROR(SEARCH(\".\",'Enrollment Form'!AH430,SEARCH(\"@\",'Enrollment Form'!AH430))),\"N\",\"Y\"))","v":""},{"$f":"IF(OR($B423=\"N\",'Enrollment Form'!$G430=\"\"),\"\",IF('Enrollment Form'!$B430<>\"Subscriber\",\"-\",IF(COUNTIF('Enrollment Form'!$AS430:$AT430,\"Yes\")=2,\"N\",\"Y\")))","v":""},{"$f":"IF(OR('Enrollment Form'!$CC430=\"\",'Enrollment Form'!$CC430=\"No\"),\"-\",IF(AND('Enrollment Form'!$CC430=\"Yes\",'Enrollment Form'!$CD430=\"\"),\"N\",\"Y\"))","v":"-"},{"$f":"IF(OR('Enrollment Form'!$CE430=\"\",'Enrollment Form'!$CE430=\"No\"),\"-\",IF(AND('Enrollment Form'!$CE430=\"Yes\",'Enrollment Form'!$CF430=\"\"),\"N\",\"Y\"))","v":"-"},{"$f":"IF(OR('Enrollment Form'!$CG430=\"\",'Enrollment Form'!$CG430=\"No\"),\"-\",IF(AND('Enrollment Form'!$CG430=\"Yes\",'Enrollment Form'!$CH430=\"\"),\"N\",\"Y\"))","v":"-"},{"$f":"IF(OR('Enrollment Form'!$CG430=\"\",'Enrollment Form'!$CG430=\"No\"),\"-\",IF(AND('Enrollment Form'!$CG430=\"Yes\",'Enrollment Form'!$CI430=\"\"),\"N\",\"Y\"))","v":"-"},{"$f":"IF('Enrollment Form'!B430<>\"Subscriber\",\"-\",IF(AND('Enrollment Form'!B430=\"Subscriber\",'Enrollment Form'!C430=\"Enroll\",'Enrollment Form'!AA430=\"\"),\"N\",\"Y\"))","v":"-"},{"$f":"IF(OR('Enrollment Form'!B430=\"Subscriber\",'Enrollment Form'!B430=\"\"),\"-\",IF('Enrollment Form'!BI430=\"\",\"N\",\"Y\"))","v":"-"},{"$f":"IF('Enrollment Form'!B430<>\"Subscriber\",\"-\",IF(AND('Enrollment Form'!B430=\"Subscriber\",'Enrollment Form'!G430=\"\"),\"N\",\"Y\"))","v":"-"},{"$f":"IF('Enrollment Form'!A430=\"\",\"\",IF('Enrollment Form'!B430=\"Subscriber\",\"-\",IF(AND('Enrollment Form'!B430<>\"Subscriber\",'Enrollment Form'!G430='Enrollment Form'!H430),\"N\",\"Y\")))","v":""},0]
[431,{"$f":"IF('Enrollment Form'!$A431<>\"\",\"Y\",\"N\")","v":"N"},{"$f":"IF(AND('Enrollment Form'!$B431=\"\",'Enrollment Form'!$C431<>\"\"),\"N\",IF($B424=\"N\",\"\",\"Y\"))","v":""},{"$f":"IF(OR($B424=\"N\",'Enrollment Form'!G431=\"\"),\"\",IF('Enrollment Form'!$B431<>\"Subscriber\",\"\",IF('Enrollment Form'!$G431='Enrollment Form'!$H431,\"Y\",\"N\")))","v":""},{"$f":"IF($B424=\"N\",\"\",IF(AND(COUNTIFS('Enrollment Form'!$H$11:$H$1000,'Enrollment Form'!$H431,'Enrollment Form'!$B$11:$B$1000,'Enrollment Form'!$B431)>1,'Enrollment Form'!$H431<>\"\"),\"N\",\"Y\"))","v":""},{"$f":"IF($B424=\"N\",\"\",IF(LEN('Enrollment Form'!$Y431)=0,\"\",IF(LEN('Enrollment Form'!$Y431)<>5,\"N\",\"Y\")))","v":""},{"$f":"IF($B424=\"N\",\"\",IF(LEN('Enrollment Form'!$AD431=0),\"\",IF(LEN('Enrollment Form'!$AD431)<>5,\"N\",\"Y\")))","v":""},{"$f":"IF($B424=\"N\",\"\",IF(LEN('Enrollment Form'!$BL431=0),\"\",IF(LEN('Enrollment Form'!$BL431)<>5,\"N\",\"Y\")))","v":""},{"$f":"IF($B424=\"N\",\"\",IF(LEN('Enrollment Form'!$AE431)=0,\"\",IF(LEN('Enrollment Form'!$AE431)<>10,\"N\",\"Y\")))","v":""},{"$f":"IF($B424=\"N\",\"\",IF(LEN('Enrollment Form'!$AF431)=0,\"\",IF(LEN('Enrollment Form'!$AF431)<>10,\"N\",\"Y\")))","v":""},{"$f":"IF('Enrollment Form'!$O431<>\"Graded\",\"-\",IF(AND('Enrollment Form'!$O431=\"Graded\",'Enrollment Form'!$AO431<>\"\"),\"Y\",\"N\"))","v":"-"},{"$f":"IF($B424=\"N\",\"\",IF(OR('Enrollment Form'!$B431<>\"Subscriber\",'Enrollment Form'!$C431=\"ROC\"),\"-\",IF(AND('Enrollment Form'!$B431=\"Subscriber\",'Enrollment Form'!$C431=\"Enroll\",'Enrollment Form'!$AJ431<>\"\"),\"Y\",\"N\")))","v":""},{"$f":"IF($B424=\"N\",\"\",IF(OR('Enrollment Form'!$B431<>\"Subscriber\",'Enrollment Form'!$C431=\"ROC\"),\"-\",IF(AND('Enrollment Form'!$B431=\"Subscriber\",'Enrollment Form'!$C431=\"Enroll\",'Enrollment Form'!$AK431<>\"\"),\"Y\",\"N\")))","v":""},{"$f":"IF($B424=\"N\",\"\",IF(OR('Enrollment Form'!$B431<>\"Subscriber\",'Enrollment Form'!$C431=\"ROC\"),\"-\",IF(AND('Enrollment Form'!$B431=\"Subscriber\",'Enrollment Form'!$C431=\"Enroll\",'Enrollment Form'!$AL431<>\"\"),\"Y\",\"N\")))","v":""},{"$f":"IF($B424=\"N\",\"\",IF(OR('Enrollment Form'!$B431<>\"Subscriber\",'Enrollment Form'!$C431=\"ROC\"),\"-\",IF(AND('Enrollment Form'!$B431=\"Subscriber\",'Enrollment Form'!$C431=\"Enroll\",'Enrollment Form'!$AM431<>\"\"),\"Y\",\"N\")))","v":""},{"$f":"IF($B424=\"N\",\"\",IF(OR('Enrollment Form'!$B431<>\"Subscriber\",'Enrollment Form'!$C431=\"ROC\"),\"-\",IF(AND('Enrollment Form'!$B431=\"Subscriber\",'Enrollment Form'!$C431=\"Enroll\",'Enrollment Form'!$AN431<>\"\"),\"Y\",\"N\")))","v":""},{"$f":"IF($B424=\"N\",\"\",IF(OR('Enrollment Form'!$B431<>\"Subscriber\",'Enrollment Form'!$C431=\"ROC\"),\"-\",IF(AND('Enrollment Form'!$B431=\"Subscriber\",'Enrollment Form'!$C431=\"Enroll\",'Enrollment Form'!$AP431<>\"\"),\"Y\",\"N\")))","v":""},{"$f":"IF($B424=\"N\",\"\",IF($Q424=\"-\",\"-\",IF(AND($Q424=\"Y\",'Enrollment Form'!$AP431=\"No\"),\"-\",IF(AND($Q424=\"Y\",'Enrollment Form'!$AP431=\"Yes\",'Enrollment Form'!$AQ431<>\"\"),\"Y\",\"N\"))))","v":""},{"$f":"IF($B424=\"N\",\"\",IF(OR('Enrollment Form'!$B431<>\"Subscriber\",'Enrollment Form'!$C431=\"ROC\"),\"-\",IF(AND('Enrollment Form'!$B431=\"Subscriber\",'Enrollment Form'!$C431=\"Enroll\",'Enrollment Form'!$CO431<>\"\"),\"Y\",\"N\")))","v":""},{"$f":"IF($B424=\"N\",\"\",IF($S424=\"-\",\"-\",IF(AND($S424=\"Y\",'Enrollment Form'!$CO431=\"No\"),\"-\",IF(AND($S424=\"Y\",'Enrollment Form'!$CO431=\"Yes\",'Enrollment Form'!$CP431<>\"\"),\"Y\",\"N\"))))","v":""},{"$f":"IF(OR('Enrollment Form'!$AV431=\"Yes\",'Enrollment Form'!$AV431=\"\"),\"-\",IF(AND('Enrollment Form'!$AV431=\"No\",ISERROR(FIND(\"HMO\",VLOOKUP('Enrollment Form'!G431,'Enrollment Form'!H$11:J$1000,3,FALSE),1))=FALSE,COUNTA('Enrollment Form'!$AW431:$AZ431)=4),\"Y\",\"N\"))","v":"-"},{"$f":"IF($B424=\"N\",\"\",IF('Enrollment Form'!$B431=\"Subscriber\",\"-\",IF(COUNTA('Enrollment Form'!$BE431,'Enrollment Form'!$BG431)=2,\"Y\",\"N\")))","v":""},{"$f":"IF($B424=\"N\",\"\",IF(OR('Enrollment Form'!$AU431=\"\",'Enrollment Form'!$AU431=\"No\"),\"-\",IF(AND('Enrollment Form'!$AU431=\"Yes\",COUNTA('Enrollment Form'!$CK431)=1),\"Y\",\"N\")))","v":""},{"$f":"IF(OR('Enrollment Form'!$CK431=\"\",'Enrollment Form'!$CK431=\"No\"),\"-\",IF(COUNTA('Enrollment Form'!$CM431:$CN431)=2,\"Y\",\"N\"))","v":"-"},{"$f":"IF($B424=\"N\",\"\",IF(COUNTIF('Enrollment Form'!$CZ431:$DO431,\"Other\")=COUNTA('Enrollment Form'!$DF431,'Enrollment Form'!$DA431,'Enrollment Form'!$DK431,'Enrollment Form'!$DP431),\"Y\",\"N\"))","v":""},{"$f":"IF($B424=\"N\",\"\",IF(OR('Enrollment Form'!B431<>\"Subscriber\",'Enrollment Form'!C431=\"ROC\",COUNTIF('Enrollment Form'!AS431:AT431,\"Yes\")>=1),\"-\",IF(AND('Enrollment Form'!C431=\"Enroll\",COUNTIF('Enrollment Form'!AS431:AT431,\"No\")=2,'Enrollment Form'!AU431=\"\"),\"N\",\"Y\")))","v":""},{"$f":"IF(OR(B424=\"N\",'Enrollment Form'!B431<>\"Subscriber\",'Enrollment Form'!C431=\"ROC\",'Enrollment Form'!O431<>\"Multiple of Salary\"),\"-\",IF(COUNTA('Enrollment Form'!T431:U431)<2,\"N\",\"Y\"))","v":"-"},{"$f":"IF(B424=\"N\",\"\",IF(OR('Enrollment Form'!C431=\"ROC\",'Enrollment Form'!B431<>\"Subscriber\",'Enrollment Form'!O431=\"Waive\",'Enrollment Form'!O431=\"\"),\"-\",IF('Enrollment Form'!P431=\"\",\"N\",\"Y\")))","v":""},{"$f":"IF($B424=\"N\",\"\",IF(AND('Enrollment Form'!$C431=\"ROC\",'Enrollment Form'!$DS431<>\"\"),\"Y\",IF(AND('Enrollment Form'!$C431=\"ROC\",'Enrollment Form'!$DS431=\"\"),\"N\",IF(AND('Enrollment Form'!$C431=\"Enroll\",'Enrollment Form'!$B431=\"Subscriber\",'Enrollment Form'!$CQ431=\"No\",'Enrollment Form'!$DS431=\"\"),\"N\",IF(AND('Enrollment Form'!$C431=\"Enroll\",'Enrollment Form'!$B431=\"Subscriber\",'Enrollment Form'!$CQ431=\"Yes\"),\"-\",\"Y\")))))","v":""},{"$f":"IF($B424=\"N\",\"\",IF(AND('Enrollment Form'!$C431=\"ROC\",'Enrollment Form'!$DT431<>\"\"),\"Y\",IF(AND('Enrollment Form'!$C431=\"ROC\",'Enrollment Form'!$DT431=\"\"),\"N\",IF(AND('Enrollment Form'!$C431=\"Enroll\",'Enrollment Form'!$B431=\"Subscriber\",'Enrollment Form'!$CQ431=\"No\",'Enrollment Form'!$DT431=\"\"),\"N\",IF(AND('Enrollment Form'!$C431=\"Enroll\",'Enrollment Form'!$B431=\"Subscriber\",'Enrollment Form'!$CQ431=\"Yes\"),\"-\",\"Y\")))))","v":""},{"$f":"IF('Enrollment Form'!AH431=\"\",\"\",IF(ISERROR(SEARCH(\".\",'Enrollment Form'!AH431,SEARCH(\"@\",'Enrollment Form'!AH431))),\"N\",\"Y\"))","v":""},{"$f":"IF(OR($B424=\"N\",'Enrollment Form'!$G431=\"\"),\"\",IF('Enrollment Form'!$B431<>\"Subscriber\",\"-\",IF(COUNTIF('Enrollment Form'!$AS431:$AT431,\"Yes\")=2,\"N\",\"Y\")))","v":""},{"$f":"IF(OR('Enrollment Form'!$CC431=\"\",'Enrollment Form'!$CC431=\"No\"),\"-\",IF(AND('Enrollment Form'!$CC431=\"Yes\",'Enrollment Form'!$CD431=\"\"),\"N\",\"Y\"))","v":"-"},{"$f":"IF(OR('Enrollment Form'!$CE431=\"\",'Enrollment Form'!$CE431=\"No\"),\"-\",IF(AND('Enrollment Form'!$CE431=\"Yes\",'Enrollment Form'!$CF431=\"\"),\"N\",\"Y\"))","v":"-"},{"$f":"IF(OR('Enrollment Form'!$CG431=\"\",'Enrollment Form'!$CG431=\"No\"),\"-\",IF(AND('Enrollment Form'!$CG431=\"Yes\",'Enrollment Form'!$CH431=\"\"),\"N\",\"Y\"))","v":"-"},{"$f":"IF(OR('Enrollment Form'!$CG431=\"\",'Enrollment Form'!$CG431=\"No\"),\"-\",IF(AND('Enrollment Form'!$CG431=\"Yes\",'Enrollment Form'!$CI431=\"\"),\"N\",\"Y\"))","v":"-"},{"$f":"IF('Enrollment Form'!B431<>\"Subscriber\",\"-\",IF(AND('Enrollment Form'!B431=\"Subscriber\",'Enrollment Form'!C431=\"Enroll\",'Enrollment Form'!AA431=\"\"),\"N\",\"Y\"))","v":"-"},{"$f":"IF(OR('Enrollment Form'!B431=\"Subscriber\",'Enrollment Form'!B431=\"\"),\"-\",IF('Enrollment Form'!BI431=\"\",\"N\",\"Y\"))","v":"-"},{"$f":"IF('Enrollment Form'!B431<>\"Subscriber\",\"-\",IF(AND('Enrollment Form'!B431=\"Subscriber\",'Enrollment Form'!G431=\"\"),\"N\",\"Y\"))","v":"-"},{"$f":"IF('Enrollment Form'!A431=\"\",\"\",IF('Enrollment Form'!B431=\"Subscriber\",\"-\",IF(AND('Enrollment Form'!B431<>\"Subscriber\",'Enrollment Form'!G431='Enrollment Form'!H431),\"N\",\"Y\")))","v":""},0]
[432,{"$f":"IF('Enrollment Form'!$A432<>\"\",\"Y\",\"N\")","v":"N"},{"$f":"IF(AND('Enrollment Form'!$B432=\"\",'Enrollment Form'!$C432<>\"\"),\"N\",IF($B425=\"N\",\"\",\"Y\"))","v":""},{"$f":"IF(OR($B425=\"N\",'Enrollment Form'!G432=\"\"),\"\",IF('Enrollment Form'!$B432<>\"Subscriber\",\"\",IF('Enrollment Form'!$G432='Enrollment Form'!$H432,\"Y\",\"N\")))","v":""},{"$f":"IF($B425=\"N\",\"\",IF(AND(COUNTIFS('Enrollment Form'!$H$11:$H$1000,'Enrollment Form'!$H432,'Enrollment Form'!$B$11:$B$1000,'Enrollment Form'!$B432)>1,'Enrollment Form'!$H432<>\"\"),\"N\",\"Y\"))","v":""},{"$f":"IF($B425=\"N\",\"\",IF(LEN('Enrollment Form'!$Y432)=0,\"\",IF(LEN('Enrollment Form'!$Y432)<>5,\"N\",\"Y\")))","v":""},{"$f":"IF($B425=\"N\",\"\",IF(LEN('Enrollment Form'!$AD432=0),\"\",IF(LEN('Enrollment Form'!$AD432)<>5,\"N\",\"Y\")))","v":""},{"$f":"IF($B425=\"N\",\"\",IF(LEN('Enrollment Form'!$BL432=0),\"\",IF(LEN('Enrollment Form'!$BL432)<>5,\"N\",\"Y\")))","v":""},{"$f":"IF($B425=\"N\",\"\",IF(LEN('Enrollment Form'!$AE432)=0,\"\",IF(LEN('Enrollment Form'!$AE432)<>10,\"N\",\"Y\")))","v":""},{"$f":"IF($B425=\"N\",\"\",IF(LEN('Enrollment Form'!$AF432)=0,\"\",IF(LEN('Enrollment Form'!$AF432)<>10,\"N\",\"Y\")))","v":""},{"$f":"IF('Enrollment Form'!$O432<>\"Graded\",\"-\",IF(AND('Enrollment Form'!$O432=\"Graded\",'Enrollment Form'!$AO432<>\"\"),\"Y\",\"N\"))","v":"-"},{"$f":"IF($B425=\"N\",\"\",IF(OR('Enrollment Form'!$B432<>\"Subscriber\",'Enrollment Form'!$C432=\"ROC\"),\"-\",IF(AND('Enrollment Form'!$B432=\"Subscriber\",'Enrollment Form'!$C432=\"Enroll\",'Enrollment Form'!$AJ432<>\"\"),\"Y\",\"N\")))","v":""},{"$f":"IF($B425=\"N\",\"\",IF(OR('Enrollment Form'!$B432<>\"Subscriber\",'Enrollment Form'!$C432=\"ROC\"),\"-\",IF(AND('Enrollment Form'!$B432=\"Subscriber\",'Enrollment Form'!$C432=\"Enroll\",'Enrollment Form'!$AK432<>\"\"),\"Y\",\"N\")))","v":""},{"$f":"IF($B425=\"N\",\"\",IF(OR('Enrollment Form'!$B432<>\"Subscriber\",'Enrollment Form'!$C432=\"ROC\"),\"-\",IF(AND('Enrollment Form'!$B432=\"Subscriber\",'Enrollment Form'!$C432=\"Enroll\",'Enrollment Form'!$AL432<>\"\"),\"Y\",\"N\")))","v":""},{"$f":"IF($B425=\"N\",\"\",IF(OR('Enrollment Form'!$B432<>\"Subscriber\",'Enrollment Form'!$C432=\"ROC\"),\"-\",IF(AND('Enrollment Form'!$B432=\"Subscriber\",'Enrollment Form'!$C432=\"Enroll\",'Enrollment Form'!$AM432<>\"\"),\"Y\",\"N\")))","v":""},{"$f":"IF($B425=\"N\",\"\",IF(OR('Enrollment Form'!$B432<>\"Subscriber\",'Enrollment Form'!$C432=\"ROC\"),\"-\",IF(AND('Enrollment Form'!$B432=\"Subscriber\",'Enrollment Form'!$C432=\"Enroll\",'Enrollment Form'!$AN432<>\"\"),\"Y\",\"N\")))","v":""},{"$f":"IF($B425=\"N\",\"\",IF(OR('Enrollment Form'!$B432<>\"Subscriber\",'Enrollment Form'!$C432=\"ROC\"),\"-\",IF(AND('Enrollment Form'!$B432=\"Subscriber\",'Enrollment Form'!$C432=\"Enroll\",'Enrollment Form'!$AP432<>\"\"),\"Y\",\"N\")))","v":""},{"$f":"IF($B425=\"N\",\"\",IF($Q425=\"-\",\"-\",IF(AND($Q425=\"Y\",'Enrollment Form'!$AP432=\"No\"),\"-\",IF(AND($Q425=\"Y\",'Enrollment Form'!$AP432=\"Yes\",'Enrollment Form'!$AQ432<>\"\"),\"Y\",\"N\"))))","v":""},{"$f":"IF($B425=\"N\",\"\",IF(OR('Enrollment Form'!$B432<>\"Subscriber\",'Enrollment Form'!$C432=\"ROC\"),\"-\",IF(AND('Enrollment Form'!$B432=\"Subscriber\",'Enrollment Form'!$C432=\"Enroll\",'Enrollment Form'!$CO432<>\"\"),\"Y\",\"N\")))","v":""},{"$f":"IF($B425=\"N\",\"\",IF($S425=\"-\",\"-\",IF(AND($S425=\"Y\",'Enrollment Form'!$CO432=\"No\"),\"-\",IF(AND($S425=\"Y\",'Enrollment Form'!$CO432=\"Yes\",'Enrollment Form'!$CP432<>\"\"),\"Y\",\"N\"))))","v":""},{"$f":"IF(OR('Enrollment Form'!$AV432=\"Yes\",'Enrollment Form'!$AV432=\"\"),\"-\",IF(AND('Enrollment Form'!$AV432=\"No\",ISERROR(FIND(\"HMO\",VLOOKUP('Enrollment Form'!G432,'Enrollment Form'!H$11:J$1000,3,FALSE),1))=FALSE,COUNTA('Enrollment Form'!$AW432:$AZ432)=4),\"Y\",\"N\"))","v":"-"},{"$f":"IF($B425=\"N\",\"\",IF('Enrollment Form'!$B432=\"Subscriber\",\"-\",IF(COUNTA('Enrollment Form'!$BE432,'Enrollment Form'!$BG432)=2,\"Y\",\"N\")))","v":""},{"$f":"IF($B425=\"N\",\"\",IF(OR('Enrollment Form'!$AU432=\"\",'Enrollment Form'!$AU432=\"No\"),\"-\",IF(AND('Enrollment Form'!$AU432=\"Yes\",COUNTA('Enrollment Form'!$CK432)=1),\"Y\",\"N\")))","v":""},{"$f":"IF(OR('Enrollment Form'!$CK432=\"\",'Enrollment Form'!$CK432=\"No\"),\"-\",IF(COUNTA('Enrollment Form'!$CM432:$CN432)=2,\"Y\",\"N\"))","v":"-"},{"$f":"IF($B425=\"N\",\"\",IF(COUNTIF('Enrollment Form'!$CZ432:$DO432,\"Other\")=COUNTA('Enrollment Form'!$DF432,'Enrollment Form'!$DA432,'Enrollment Form'!$DK432,'Enrollment Form'!$DP432),\"Y\",\"N\"))","v":""},{"$f":"IF($B425=\"N\",\"\",IF(OR('Enrollment Form'!B432<>\"Subscriber\",'Enrollment Form'!C432=\"ROC\",COUNTIF('Enrollment Form'!AS432:AT432,\"Yes\")>=1),\"-\",IF(AND('Enrollment Form'!C432=\"Enroll\",COUNTIF('Enrollment Form'!AS432:AT432,\"No\")=2,'Enrollment Form'!AU432=\"\"),\"N\",\"Y\")))","v":""},{"$f":"IF(OR(B425=\"N\",'Enrollment Form'!B432<>\"Subscriber\",'Enrollment Form'!C432=\"ROC\",'Enrollment Form'!O432<>\"Multiple of Salary\"),\"-\",IF(COUNTA('Enrollment Form'!T432:U432)<2,\"N\",\"Y\"))","v":"-"},{"$f":"IF(B425=\"N\",\"\",IF(OR('Enrollment Form'!C432=\"ROC\",'Enrollment Form'!B432<>\"Subscriber\",'Enrollment Form'!O432=\"Waive\",'Enrollment Form'!O432=\"\"),\"-\",IF('Enrollment Form'!P432=\"\",\"N\",\"Y\")))","v":""},{"$f":"IF($B425=\"N\",\"\",IF(AND('Enrollment Form'!$C432=\"ROC\",'Enrollment Form'!$DS432<>\"\"),\"Y\",IF(AND('Enrollment Form'!$C432=\"ROC\",'Enrollment Form'!$DS432=\"\"),\"N\",IF(AND('Enrollment Form'!$C432=\"Enroll\",'Enrollment Form'!$B432=\"Subscriber\",'Enrollment Form'!$CQ432=\"No\",'Enrollment Form'!$DS432=\"\"),\"N\",IF(AND('Enrollment Form'!$C432=\"Enroll\",'Enrollment Form'!$B432=\"Subscriber\",'Enrollment Form'!$CQ432=\"Yes\"),\"-\",\"Y\")))))","v":""},{"$f":"IF($B425=\"N\",\"\",IF(AND('Enrollment Form'!$C432=\"ROC\",'Enrollment Form'!$DT432<>\"\"),\"Y\",IF(AND('Enrollment Form'!$C432=\"ROC\",'Enrollment Form'!$DT432=\"\"),\"N\",IF(AND('Enrollment Form'!$C432=\"Enroll\",'Enrollment Form'!$B432=\"Subscriber\",'Enrollment Form'!$CQ432=\"No\",'Enrollment Form'!$DT432=\"\"),\"N\",IF(AND('Enrollment Form'!$C432=\"Enroll\",'Enrollment Form'!$B432=\"Subscriber\",'Enrollment Form'!$CQ432=\"Yes\"),\"-\",\"Y\")))))","v":""},{"$f":"IF('Enrollment Form'!AH432=\"\",\"\",IF(ISERROR(SEARCH(\".\",'Enrollment Form'!AH432,SEARCH(\"@\",'Enrollment Form'!AH432))),\"N\",\"Y\"))","v":""},{"$f":"IF(OR($B425=\"N\",'Enrollment Form'!$G432=\"\"),\"\",IF('Enrollment Form'!$B432<>\"Subscriber\",\"-\",IF(COUNTIF('Enrollment Form'!$AS432:$AT432,\"Yes\")=2,\"N\",\"Y\")))","v":""},{"$f":"IF(OR('Enrollment Form'!$CC432=\"\",'Enrollment Form'!$CC432=\"No\"),\"-\",IF(AND('Enrollment Form'!$CC432=\"Yes\",'Enrollment Form'!$CD432=\"\"),\"N\",\"Y\"))","v":"-"},{"$f":"IF(OR('Enrollment Form'!$CE432=\"\",'Enrollment Form'!$CE432=\"No\"),\"-\",IF(AND('Enrollment Form'!$CE432=\"Yes\",'Enrollment Form'!$CF432=\"\"),\"N\",\"Y\"))","v":"-"},{"$f":"IF(OR('Enrollment Form'!$CG432=\"\",'Enrollment Form'!$CG432=\"No\"),\"-\",IF(AND('Enrollment Form'!$CG432=\"Yes\",'Enrollment Form'!$CH432=\"\"),\"N\",\"Y\"))","v":"-"},{"$f":"IF(OR('Enrollment Form'!$CG432=\"\",'Enrollment Form'!$CG432=\"No\"),\"-\",IF(AND('Enrollment Form'!$CG432=\"Yes\",'Enrollment Form'!$CI432=\"\"),\"N\",\"Y\"))","v":"-"},{"$f":"IF('Enrollment Form'!B432<>\"Subscriber\",\"-\",IF(AND('Enrollment Form'!B432=\"Subscriber\",'Enrollment Form'!C432=\"Enroll\",'Enrollment Form'!AA432=\"\"),\"N\",\"Y\"))","v":"-"},{"$f":"IF(OR('Enrollment Form'!B432=\"Subscriber\",'Enrollment Form'!B432=\"\"),\"-\",IF('Enrollment Form'!BI432=\"\",\"N\",\"Y\"))","v":"-"},{"$f":"IF('Enrollment Form'!B432<>\"Subscriber\",\"-\",IF(AND('Enrollment Form'!B432=\"Subscriber\",'Enrollment Form'!G432=\"\"),\"N\",\"Y\"))","v":"-"},{"$f":"IF('Enrollment Form'!A432=\"\",\"\",IF('Enrollment Form'!B432=\"Subscriber\",\"-\",IF(AND('Enrollment Form'!B432<>\"Subscriber\",'Enrollment Form'!G432='Enrollment Form'!H432),\"N\",\"Y\")))","v":""},0]
[433,{"$f":"IF('Enrollment Form'!$A433<>\"\",\"Y\",\"N\")","v":"N"},{"$f":"IF(AND('Enrollment Form'!$B433=\"\",'Enrollment Form'!$C433<>\"\"),\"N\",IF($B426=\"N\",\"\",\"Y\"))","v":""},{"$f":"IF(OR($B426=\"N\",'Enrollment Form'!G433=\"\"),\"\",IF('Enrollment Form'!$B433<>\"Subscriber\",\"\",IF('Enrollment Form'!$G433='Enrollment Form'!$H433,\"Y\",\"N\")))","v":""},{"$f":"IF($B426=\"N\",\"\",IF(AND(COUNTIFS('Enrollment Form'!$H$11:$H$1000,'Enrollment Form'!$H433,'Enrollment Form'!$B$11:$B$1000,'Enrollment Form'!$B433)>1,'Enrollment Form'!$H433<>\"\"),\"N\",\"Y\"))","v":""},{"$f":"IF($B426=\"N\",\"\",IF(LEN('Enrollment Form'!$Y433)=0,\"\",IF(LEN('Enrollment Form'!$Y433)<>5,\"N\",\"Y\")))","v":""},{"$f":"IF($B426=\"N\",\"\",IF(LEN('Enrollment Form'!$AD433=0),\"\",IF(LEN('Enrollment Form'!$AD433)<>5,\"N\",\"Y\")))","v":""},{"$f":"IF($B426=\"N\",\"\",IF(LEN('Enrollment Form'!$BL433=0),\"\",IF(LEN('Enrollment Form'!$BL433)<>5,\"N\",\"Y\")))","v":""},{"$f":"IF($B426=\"N\",\"\",IF(LEN('Enrollment Form'!$AE433)=0,\"\",IF(LEN('Enrollment Form'!$AE433)<>10,\"N\",\"Y\")))","v":""},{"$f":"IF($B426=\"N\",\"\",IF(LEN('Enrollment Form'!$AF433)=0,\"\",IF(LEN('Enrollment Form'!$AF433)<>10,\"N\",\"Y\")))","v":""},{"$f":"IF('Enrollment Form'!$O433<>\"Graded\",\"-\",IF(AND('Enrollment Form'!$O433=\"Graded\",'Enrollment Form'!$AO433<>\"\"),\"Y\",\"N\"))","v":"-"},{"$f":"IF($B426=\"N\",\"\",IF(OR('Enrollment Form'!$B433<>\"Subscriber\",'Enrollment Form'!$C433=\"ROC\"),\"-\",IF(AND('Enrollment Form'!$B433=\"Subscriber\",'Enrollment Form'!$C433=\"Enroll\",'Enrollment Form'!$AJ433<>\"\"),\"Y\",\"N\")))","v":""},{"$f":"IF($B426=\"N\",\"\",IF(OR('Enrollment Form'!$B433<>\"Subscriber\",'Enrollment Form'!$C433=\"ROC\"),\"-\",IF(AND('Enrollment Form'!$B433=\"Subscriber\",'Enrollment Form'!$C433=\"Enroll\",'Enrollment Form'!$AK433<>\"\"),\"Y\",\"N\")))","v":""},{"$f":"IF($B426=\"N\",\"\",IF(OR('Enrollment Form'!$B433<>\"Subscriber\",'Enrollment Form'!$C433=\"ROC\"),\"-\",IF(AND('Enrollment Form'!$B433=\"Subscriber\",'Enrollment Form'!$C433=\"Enroll\",'Enrollment Form'!$AL433<>\"\"),\"Y\",\"N\")))","v":""},{"$f":"IF($B426=\"N\",\"\",IF(OR('Enrollment Form'!$B433<>\"Subscriber\",'Enrollment Form'!$C433=\"ROC\"),\"-\",IF(AND('Enrollment Form'!$B433=\"Subscriber\",'Enrollment Form'!$C433=\"Enroll\",'Enrollment Form'!$AM433<>\"\"),\"Y\",\"N\")))","v":""},{"$f":"IF($B426=\"N\",\"\",IF(OR('Enrollment Form'!$B433<>\"Subscriber\",'Enrollment Form'!$C433=\"ROC\"),\"-\",IF(AND('Enrollment Form'!$B433=\"Subscriber\",'Enrollment Form'!$C433=\"Enroll\",'Enrollment Form'!$AN433<>\"\"),\"Y\",\"N\")))","v":""},{"$f":"IF($B426=\"N\",\"\",IF(OR('Enrollment Form'!$B433<>\"Subscriber\",'Enrollment Form'!$C433=\"ROC\"),\"-\",IF(AND('Enrollment Form'!$B433=\"Subscriber\",'Enrollment Form'!$C433=\"Enroll\",'Enrollment Form'!$AP433<>\"\"),\"Y\",\"N\")))","v":""},{"$f":"IF($B426=\"N\",\"\",IF($Q426=\"-\",\"-\",IF(AND($Q426=\"Y\",'Enrollment Form'!$AP433=\"No\"),\"-\",IF(AND($Q426=\"Y\",'Enrollment Form'!$AP433=\"Yes\",'Enrollment Form'!$AQ433<>\"\"),\"Y\",\"N\"))))","v":""},{"$f":"IF($B426=\"N\",\"\",IF(OR('Enrollment Form'!$B433<>\"Subscriber\",'Enrollment Form'!$C433=\"ROC\"),\"-\",IF(AND('Enrollment Form'!$B433=\"Subscriber\",'Enrollment Form'!$C433=\"Enroll\",'Enrollment Form'!$CO433<>\"\"),\"Y\",\"N\")))","v":""},{"$f":"IF($B426=\"N\",\"\",IF($S426=\"-\",\"-\",IF(AND($S426=\"Y\",'Enrollment Form'!$CO433=\"No\"),\"-\",IF(AND($S426=\"Y\",'Enrollment Form'!$CO433=\"Yes\",'Enrollment Form'!$CP433<>\"\"),\"Y\",\"N\"))))","v":""},{"$f":"IF(OR('Enrollment Form'!$AV433=\"Yes\",'Enrollment Form'!$AV433=\"\"),\"-\",IF(AND('Enrollment Form'!$AV433=\"No\",ISERROR(FIND(\"HMO\",VLOOKUP('Enrollment Form'!G433,'Enrollment Form'!H$11:J$1000,3,FALSE),1))=FALSE,COUNTA('Enrollment Form'!$AW433:$AZ433)=4),\"Y\",\"N\"))","v":"-"},{"$f":"IF($B426=\"N\",\"\",IF('Enrollment Form'!$B433=\"Subscriber\",\"-\",IF(COUNTA('Enrollment Form'!$BE433,'Enrollment Form'!$BG433)=2,\"Y\",\"N\")))","v":""},{"$f":"IF($B426=\"N\",\"\",IF(OR('Enrollment Form'!$AU433=\"\",'Enrollment Form'!$AU433=\"No\"),\"-\",IF(AND('Enrollment Form'!$AU433=\"Yes\",COUNTA('Enrollment Form'!$CK433)=1),\"Y\",\"N\")))","v":""},{"$f":"IF(OR('Enrollment Form'!$CK433=\"\",'Enrollment Form'!$CK433=\"No\"),\"-\",IF(COUNTA('Enrollment Form'!$CM433:$CN433)=2,\"Y\",\"N\"))","v":"-"},{"$f":"IF($B426=\"N\",\"\",IF(COUNTIF('Enrollment Form'!$CZ433:$DO433,\"Other\")=COUNTA('Enrollment Form'!$DF433,'Enrollment Form'!$DA433,'Enrollment Form'!$DK433,'Enrollment Form'!$DP433),\"Y\",\"N\"))","v":""},{"$f":"IF($B426=\"N\",\"\",IF(OR('Enrollment Form'!B433<>\"Subscriber\",'Enrollment Form'!C433=\"ROC\",COUNTIF('Enrollment Form'!AS433:AT433,\"Yes\")>=1),\"-\",IF(AND('Enrollment Form'!C433=\"Enroll\",COUNTIF('Enrollment Form'!AS433:AT433,\"No\")=2,'Enrollment Form'!AU433=\"\"),\"N\",\"Y\")))","v":""},{"$f":"IF(OR(B426=\"N\",'Enrollment Form'!B433<>\"Subscriber\",'Enrollment Form'!C433=\"ROC\",'Enrollment Form'!O433<>\"Multiple of Salary\"),\"-\",IF(COUNTA('Enrollment Form'!T433:U433)<2,\"N\",\"Y\"))","v":"-"},{"$f":"IF(B426=\"N\",\"\",IF(OR('Enrollment Form'!C433=\"ROC\",'Enrollment Form'!B433<>\"Subscriber\",'Enrollment Form'!O433=\"Waive\",'Enrollment Form'!O433=\"\"),\"-\",IF('Enrollment Form'!P433=\"\",\"N\",\"Y\")))","v":""},{"$f":"IF($B426=\"N\",\"\",IF(AND('Enrollment Form'!$C433=\"ROC\",'Enrollment Form'!$DS433<>\"\"),\"Y\",IF(AND('Enrollment Form'!$C433=\"ROC\",'Enrollment Form'!$DS433=\"\"),\"N\",IF(AND('Enrollment Form'!$C433=\"Enroll\",'Enrollment Form'!$B433=\"Subscriber\",'Enrollment Form'!$CQ433=\"No\",'Enrollment Form'!$DS433=\"\"),\"N\",IF(AND('Enrollment Form'!$C433=\"Enroll\",'Enrollment Form'!$B433=\"Subscriber\",'Enrollment Form'!$CQ433=\"Yes\"),\"-\",\"Y\")))))","v":""},{"$f":"IF($B426=\"N\",\"\",IF(AND('Enrollment Form'!$C433=\"ROC\",'Enrollment Form'!$DT433<>\"\"),\"Y\",IF(AND('Enrollment Form'!$C433=\"ROC\",'Enrollment Form'!$DT433=\"\"),\"N\",IF(AND('Enrollment Form'!$C433=\"Enroll\",'Enrollment Form'!$B433=\"Subscriber\",'Enrollment Form'!$CQ433=\"No\",'Enrollment Form'!$DT433=\"\"),\"N\",IF(AND('Enrollment Form'!$C433=\"Enroll\",'Enrollment Form'!$B433=\"Subscriber\",'Enrollment Form'!$CQ433=\"Yes\"),\"-\",\"Y\")))))","v":""},{"$f":"IF('Enrollment Form'!AH433=\"\",\"\",IF(ISERROR(SEARCH(\".\",'Enrollment Form'!AH433,SEARCH(\"@\",'Enrollment Form'!AH433))),\"N\",\"Y\"))","v":""},{"$f":"IF(OR($B426=\"N\",'Enrollment Form'!$G433=\"\"),\"\",IF('Enrollment Form'!$B433<>\"Subscriber\",\"-\",IF(COUNTIF('Enrollment Form'!$AS433:$AT433,\"Yes\")=2,\"N\",\"Y\")))","v":""},{"$f":"IF(OR('Enrollment Form'!$CC433=\"\",'Enrollment Form'!$CC433=\"No\"),\"-\",IF(AND('Enrollment Form'!$CC433=\"Yes\",'Enrollment Form'!$CD433=\"\"),\"N\",\"Y\"))","v":"-"},{"$f":"IF(OR('Enrollment Form'!$CE433=\"\",'Enrollment Form'!$CE433=\"No\"),\"-\",IF(AND('Enrollment Form'!$CE433=\"Yes\",'Enrollment Form'!$CF433=\"\"),\"N\",\"Y\"))","v":"-"},{"$f":"IF(OR('Enrollment Form'!$CG433=\"\",'Enrollment Form'!$CG433=\"No\"),\"-\",IF(AND('Enrollment Form'!$CG433=\"Yes\",'Enrollment Form'!$CH433=\"\"),\"N\",\"Y\"))","v":"-"},{"$f":"IF(OR('Enrollment Form'!$CG433=\"\",'Enrollment Form'!$CG433=\"No\"),\"-\",IF(AND('Enrollment Form'!$CG433=\"Yes\",'Enrollment Form'!$CI433=\"\"),\"N\",\"Y\"))","v":"-"},{"$f":"IF('Enrollment Form'!B433<>\"Subscriber\",\"-\",IF(AND('Enrollment Form'!B433=\"Subscriber\",'Enrollment Form'!C433=\"Enroll\",'Enrollment Form'!AA433=\"\"),\"N\",\"Y\"))","v":"-"},{"$f":"IF(OR('Enrollment Form'!B433=\"Subscriber\",'Enrollment Form'!B433=\"\"),\"-\",IF('Enrollment Form'!BI433=\"\",\"N\",\"Y\"))","v":"-"},{"$f":"IF('Enrollment Form'!B433<>\"Subscriber\",\"-\",IF(AND('Enrollment Form'!B433=\"Subscriber\",'Enrollment Form'!G433=\"\"),\"N\",\"Y\"))","v":"-"},{"$f":"IF('Enrollment Form'!A433=\"\",\"\",IF('Enrollment Form'!B433=\"Subscriber\",\"-\",IF(AND('Enrollment Form'!B433<>\"Subscriber\",'Enrollment Form'!G433='Enrollment Form'!H433),\"N\",\"Y\")))","v":""},0]
[434,{"$f":"IF('Enrollment Form'!$A434<>\"\",\"Y\",\"N\")","v":"N"},{"$f":"IF(AND('Enrollment Form'!$B434=\"\",'Enrollment Form'!$C434<>\"\"),\"N\",IF($B427=\"N\",\"\",\"Y\"))","v":""},{"$f":"IF(OR($B427=\"N\",'Enrollment Form'!G434=\"\"),\"\",IF('Enrollment Form'!$B434<>\"Subscriber\",\"\",IF('Enrollment Form'!$G434='Enrollment Form'!$H434,\"Y\",\"N\")))","v":""},{"$f":"IF($B427=\"N\",\"\",IF(AND(COUNTIFS('Enrollment Form'!$H$11:$H$1000,'Enrollment Form'!$H434,'Enrollment Form'!$B$11:$B$1000,'Enrollment Form'!$B434)>1,'Enrollment Form'!$H434<>\"\"),\"N\",\"Y\"))","v":""},{"$f":"IF($B427=\"N\",\"\",IF(LEN('Enrollment Form'!$Y434)=0,\"\",IF(LEN('Enrollment Form'!$Y434)<>5,\"N\",\"Y\")))","v":""},{"$f":"IF($B427=\"N\",\"\",IF(LEN('Enrollment Form'!$AD434=0),\"\",IF(LEN('Enrollment Form'!$AD434)<>5,\"N\",\"Y\")))","v":""},{"$f":"IF($B427=\"N\",\"\",IF(LEN('Enrollment Form'!$BL434=0),\"\",IF(LEN('Enrollment Form'!$BL434)<>5,\"N\",\"Y\")))","v":""},{"$f":"IF($B427=\"N\",\"\",IF(LEN('Enrollment Form'!$AE434)=0,\"\",IF(LEN('Enrollment Form'!$AE434)<>10,\"N\",\"Y\")))","v":""},{"$f":"IF($B427=\"N\",\"\",IF(LEN('Enrollment Form'!$AF434)=0,\"\",IF(LEN('Enrollment Form'!$AF434)<>10,\"N\",\"Y\")))","v":""},{"$f":"IF('Enrollment Form'!$O434<>\"Graded\",\"-\",IF(AND('Enrollment Form'!$O434=\"Graded\",'Enrollment Form'!$AO434<>\"\"),\"Y\",\"N\"))","v":"-"},{"$f":"IF($B427=\"N\",\"\",IF(OR('Enrollment Form'!$B434<>\"Subscriber\",'Enrollment Form'!$C434=\"ROC\"),\"-\",IF(AND('Enrollment Form'!$B434=\"Subscriber\",'Enrollment Form'!$C434=\"Enroll\",'Enrollment Form'!$AJ434<>\"\"),\"Y\",\"N\")))","v":""},{"$f":"IF($B427=\"N\",\"\",IF(OR('Enrollment Form'!$B434<>\"Subscriber\",'Enrollment Form'!$C434=\"ROC\"),\"-\",IF(AND('Enrollment Form'!$B434=\"Subscriber\",'Enrollment Form'!$C434=\"Enroll\",'Enrollment Form'!$AK434<>\"\"),\"Y\",\"N\")))","v":""},{"$f":"IF($B427=\"N\",\"\",IF(OR('Enrollment Form'!$B434<>\"Subscriber\",'Enrollment Form'!$C434=\"ROC\"),\"-\",IF(AND('Enrollment Form'!$B434=\"Subscriber\",'Enrollment Form'!$C434=\"Enroll\",'Enrollment Form'!$AL434<>\"\"),\"Y\",\"N\")))","v":""},{"$f":"IF($B427=\"N\",\"\",IF(OR('Enrollment Form'!$B434<>\"Subscriber\",'Enrollment Form'!$C434=\"ROC\"),\"-\",IF(AND('Enrollment Form'!$B434=\"Subscriber\",'Enrollment Form'!$C434=\"Enroll\",'Enrollment Form'!$AM434<>\"\"),\"Y\",\"N\")))","v":""},{"$f":"IF($B427=\"N\",\"\",IF(OR('Enrollment Form'!$B434<>\"Subscriber\",'Enrollment Form'!$C434=\"ROC\"),\"-\",IF(AND('Enrollment Form'!$B434=\"Subscriber\",'Enrollment Form'!$C434=\"Enroll\",'Enrollment Form'!$AN434<>\"\"),\"Y\",\"N\")))","v":""},{"$f":"IF($B427=\"N\",\"\",IF(OR('Enrollment Form'!$B434<>\"Subscriber\",'Enrollment Form'!$C434=\"ROC\"),\"-\",IF(AND('Enrollment Form'!$B434=\"Subscriber\",'Enrollment Form'!$C434=\"Enroll\",'Enrollment Form'!$AP434<>\"\"),\"Y\",\"N\")))","v":""},{"$f":"IF($B427=\"N\",\"\",IF($Q427=\"-\",\"-\",IF(AND($Q427=\"Y\",'Enrollment Form'!$AP434=\"No\"),\"-\",IF(AND($Q427=\"Y\",'Enrollment Form'!$AP434=\"Yes\",'Enrollment Form'!$AQ434<>\"\"),\"Y\",\"N\"))))","v":""},{"$f":"IF($B427=\"N\",\"\",IF(OR('Enrollment Form'!$B434<>\"Subscriber\",'Enrollment Form'!$C434=\"ROC\"),\"-\",IF(AND('Enrollment Form'!$B434=\"Subscriber\",'Enrollment Form'!$C434=\"Enroll\",'Enrollment Form'!$CO434<>\"\"),\"Y\",\"N\")))","v":""},{"$f":"IF($B427=\"N\",\"\",IF($S427=\"-\",\"-\",IF(AND($S427=\"Y\",'Enrollment Form'!$CO434=\"No\"),\"-\",IF(AND($S427=\"Y\",'Enrollment Form'!$CO434=\"Yes\",'Enrollment Form'!$CP434<>\"\"),\"Y\",\"N\"))))","v":""},{"$f":"IF(OR('Enrollment Form'!$AV434=\"Yes\",'Enrollment Form'!$AV434=\"\"),\"-\",IF(AND('Enrollment Form'!$AV434=\"No\",ISERROR(FIND(\"HMO\",VLOOKUP('Enrollment Form'!G434,'Enrollment Form'!H$11:J$1000,3,FALSE),1))=FALSE,COUNTA('Enrollment Form'!$AW434:$AZ434)=4),\"Y\",\"N\"))","v":"-"},{"$f":"IF($B427=\"N\",\"\",IF('Enrollment Form'!$B434=\"Subscriber\",\"-\",IF(COUNTA('Enrollment Form'!$BE434,'Enrollment Form'!$BG434)=2,\"Y\",\"N\")))","v":""},{"$f":"IF($B427=\"N\",\"\",IF(OR('Enrollment Form'!$AU434=\"\",'Enrollment Form'!$AU434=\"No\"),\"-\",IF(AND('Enrollment Form'!$AU434=\"Yes\",COUNTA('Enrollment Form'!$CK434)=1),\"Y\",\"N\")))","v":""},{"$f":"IF(OR('Enrollment Form'!$CK434=\"\",'Enrollment Form'!$CK434=\"No\"),\"-\",IF(COUNTA('Enrollment Form'!$CM434:$CN434)=2,\"Y\",\"N\"))","v":"-"},{"$f":"IF($B427=\"N\",\"\",IF(COUNTIF('Enrollment Form'!$CZ434:$DO434,\"Other\")=COUNTA('Enrollment Form'!$DF434,'Enrollment Form'!$DA434,'Enrollment Form'!$DK434,'Enrollment Form'!$DP434),\"Y\",\"N\"))","v":""},{"$f":"IF($B427=\"N\",\"\",IF(OR('Enrollment Form'!B434<>\"Subscriber\",'Enrollment Form'!C434=\"ROC\",COUNTIF('Enrollment Form'!AS434:AT434,\"Yes\")>=1),\"-\",IF(AND('Enrollment Form'!C434=\"Enroll\",COUNTIF('Enrollment Form'!AS434:AT434,\"No\")=2,'Enrollment Form'!AU434=\"\"),\"N\",\"Y\")))","v":""},{"$f":"IF(OR(B427=\"N\",'Enrollment Form'!B434<>\"Subscriber\",'Enrollment Form'!C434=\"ROC\",'Enrollment Form'!O434<>\"Multiple of Salary\"),\"-\",IF(COUNTA('Enrollment Form'!T434:U434)<2,\"N\",\"Y\"))","v":"-"},{"$f":"IF(B427=\"N\",\"\",IF(OR('Enrollment Form'!C434=\"ROC\",'Enrollment Form'!B434<>\"Subscriber\",'Enrollment Form'!O434=\"Waive\",'Enrollment Form'!O434=\"\"),\"-\",IF('Enrollment Form'!P434=\"\",\"N\",\"Y\")))","v":""},{"$f":"IF($B427=\"N\",\"\",IF(AND('Enrollment Form'!$C434=\"ROC\",'Enrollment Form'!$DS434<>\"\"),\"Y\",IF(AND('Enrollment Form'!$C434=\"ROC\",'Enrollment Form'!$DS434=\"\"),\"N\",IF(AND('Enrollment Form'!$C434=\"Enroll\",'Enrollment Form'!$B434=\"Subscriber\",'Enrollment Form'!$CQ434=\"No\",'Enrollment Form'!$DS434=\"\"),\"N\",IF(AND('Enrollment Form'!$C434=\"Enroll\",'Enrollment Form'!$B434=\"Subscriber\",'Enrollment Form'!$CQ434=\"Yes\"),\"-\",\"Y\")))))","v":""},{"$f":"IF($B427=\"N\",\"\",IF(AND('Enrollment Form'!$C434=\"ROC\",'Enrollment Form'!$DT434<>\"\"),\"Y\",IF(AND('Enrollment Form'!$C434=\"ROC\",'Enrollment Form'!$DT434=\"\"),\"N\",IF(AND('Enrollment Form'!$C434=\"Enroll\",'Enrollment Form'!$B434=\"Subscriber\",'Enrollment Form'!$CQ434=\"No\",'Enrollment Form'!$DT434=\"\"),\"N\",IF(AND('Enrollment Form'!$C434=\"Enroll\",'Enrollment Form'!$B434=\"Subscriber\",'Enrollment Form'!$CQ434=\"Yes\"),\"-\",\"Y\")))))","v":""},{"$f":"IF('Enrollment Form'!AH434=\"\",\"\",IF(ISERROR(SEARCH(\".\",'Enrollment Form'!AH434,SEARCH(\"@\",'Enrollment Form'!AH434))),\"N\",\"Y\"))","v":""},{"$f":"IF(OR($B427=\"N\",'Enrollment Form'!$G434=\"\"),\"\",IF('Enrollment Form'!$B434<>\"Subscriber\",\"-\",IF(COUNTIF('Enrollment Form'!$AS434:$AT434,\"Yes\")=2,\"N\",\"Y\")))","v":""},{"$f":"IF(OR('Enrollment Form'!$CC434=\"\",'Enrollment Form'!$CC434=\"No\"),\"-\",IF(AND('Enrollment Form'!$CC434=\"Yes\",'Enrollment Form'!$CD434=\"\"),\"N\",\"Y\"))","v":"-"},{"$f":"IF(OR('Enrollment Form'!$CE434=\"\",'Enrollment Form'!$CE434=\"No\"),\"-\",IF(AND('Enrollment Form'!$CE434=\"Yes\",'Enrollment Form'!$CF434=\"\"),\"N\",\"Y\"))","v":"-"},{"$f":"IF(OR('Enrollment Form'!$CG434=\"\",'Enrollment Form'!$CG434=\"No\"),\"-\",IF(AND('Enrollment Form'!$CG434=\"Yes\",'Enrollment Form'!$CH434=\"\"),\"N\",\"Y\"))","v":"-"},{"$f":"IF(OR('Enrollment Form'!$CG434=\"\",'Enrollment Form'!$CG434=\"No\"),\"-\",IF(AND('Enrollment Form'!$CG434=\"Yes\",'Enrollment Form'!$CI434=\"\"),\"N\",\"Y\"))","v":"-"},{"$f":"IF('Enrollment Form'!B434<>\"Subscriber\",\"-\",IF(AND('Enrollment Form'!B434=\"Subscriber\",'Enrollment Form'!C434=\"Enroll\",'Enrollment Form'!AA434=\"\"),\"N\",\"Y\"))","v":"-"},{"$f":"IF(OR('Enrollment Form'!B434=\"Subscriber\",'Enrollment Form'!B434=\"\"),\"-\",IF('Enrollment Form'!BI434=\"\",\"N\",\"Y\"))","v":"-"},{"$f":"IF('Enrollment Form'!B434<>\"Subscriber\",\"-\",IF(AND('Enrollment Form'!B434=\"Subscriber\",'Enrollment Form'!G434=\"\"),\"N\",\"Y\"))","v":"-"},{"$f":"IF('Enrollment Form'!A434=\"\",\"\",IF('Enrollment Form'!B434=\"Subscriber\",\"-\",IF(AND('Enrollment Form'!B434<>\"Subscriber\",'Enrollment Form'!G434='Enrollment Form'!H434),\"N\",\"Y\")))","v":""},0]
[435,{"$f":"IF('Enrollment Form'!$A435<>\"\",\"Y\",\"N\")","v":"N"},{"$f":"IF(AND('Enrollment Form'!$B435=\"\",'Enrollment Form'!$C435<>\"\"),\"N\",IF($B428=\"N\",\"\",\"Y\"))","v":""},{"$f":"IF(OR($B428=\"N\",'Enrollment Form'!G435=\"\"),\"\",IF('Enrollment Form'!$B435<>\"Subscriber\",\"\",IF('Enrollment Form'!$G435='Enrollment Form'!$H435,\"Y\",\"N\")))","v":""},{"$f":"IF($B428=\"N\",\"\",IF(AND(COUNTIFS('Enrollment Form'!$H$11:$H$1000,'Enrollment Form'!$H435,'Enrollment Form'!$B$11:$B$1000,'Enrollment Form'!$B435)>1,'Enrollment Form'!$H435<>\"\"),\"N\",\"Y\"))","v":""},{"$f":"IF($B428=\"N\",\"\",IF(LEN('Enrollment Form'!$Y435)=0,\"\",IF(LEN('Enrollment Form'!$Y435)<>5,\"N\",\"Y\")))","v":""},{"$f":"IF($B428=\"N\",\"\",IF(LEN('Enrollment Form'!$AD435=0),\"\",IF(LEN('Enrollment Form'!$AD435)<>5,\"N\",\"Y\")))","v":""},{"$f":"IF($B428=\"N\",\"\",IF(LEN('Enrollment Form'!$BL435=0),\"\",IF(LEN('Enrollment Form'!$BL435)<>5,\"N\",\"Y\")))","v":""},{"$f":"IF($B428=\"N\",\"\",IF(LEN('Enrollment Form'!$AE435)=0,\"\",IF(LEN('Enrollment Form'!$AE435)<>10,\"N\",\"Y\")))","v":""},{"$f":"IF($B428=\"N\",\"\",IF(LEN('Enrollment Form'!$AF435)=0,\"\",IF(LEN('Enrollment Form'!$AF435)<>10,\"N\",\"Y\")))","v":""},{"$f":"IF('Enrollment Form'!$O435<>\"Graded\",\"-\",IF(AND('Enrollment Form'!$O435=\"Graded\",'Enrollment Form'!$AO435<>\"\"),\"Y\",\"N\"))","v":"-"},{"$f":"IF($B428=\"N\",\"\",IF(OR('Enrollment Form'!$B435<>\"Subscriber\",'Enrollment Form'!$C435=\"ROC\"),\"-\",IF(AND('Enrollment Form'!$B435=\"Subscriber\",'Enrollment Form'!$C435=\"Enroll\",'Enrollment Form'!$AJ435<>\"\"),\"Y\",\"N\")))","v":""},{"$f":"IF($B428=\"N\",\"\",IF(OR('Enrollment Form'!$B435<>\"Subscriber\",'Enrollment Form'!$C435=\"ROC\"),\"-\",IF(AND('Enrollment Form'!$B435=\"Subscriber\",'Enrollment Form'!$C435=\"Enroll\",'Enrollment Form'!$AK435<>\"\"),\"Y\",\"N\")))","v":""},{"$f":"IF($B428=\"N\",\"\",IF(OR('Enrollment Form'!$B435<>\"Subscriber\",'Enrollment Form'!$C435=\"ROC\"),\"-\",IF(AND('Enrollment Form'!$B435=\"Subscriber\",'Enrollment Form'!$C435=\"Enroll\",'Enrollment Form'!$AL435<>\"\"),\"Y\",\"N\")))","v":""},{"$f":"IF($B428=\"N\",\"\",IF(OR('Enrollment Form'!$B435<>\"Subscriber\",'Enrollment Form'!$C435=\"ROC\"),\"-\",IF(AND('Enrollment Form'!$B435=\"Subscriber\",'Enrollment Form'!$C435=\"Enroll\",'Enrollment Form'!$AM435<>\"\"),\"Y\",\"N\")))","v":""},{"$f":"IF($B428=\"N\",\"\",IF(OR('Enrollment Form'!$B435<>\"Subscriber\",'Enrollment Form'!$C435=\"ROC\"),\"-\",IF(AND('Enrollment Form'!$B435=\"Subscriber\",'Enrollment Form'!$C435=\"Enroll\",'Enrollment Form'!$AN435<>\"\"),\"Y\",\"N\")))","v":""},{"$f":"IF($B428=\"N\",\"\",IF(OR('Enrollment Form'!$B435<>\"Subscriber\",'Enrollment Form'!$C435=\"ROC\"),\"-\",IF(AND('Enrollment Form'!$B435=\"Subscriber\",'Enrollment Form'!$C435=\"Enroll\",'Enrollment Form'!$AP435<>\"\"),\"Y\",\"N\")))","v":""},{"$f":"IF($B428=\"N\",\"\",IF($Q428=\"-\",\"-\",IF(AND($Q428=\"Y\",'Enrollment Form'!$AP435=\"No\"),\"-\",IF(AND($Q428=\"Y\",'Enrollment Form'!$AP435=\"Yes\",'Enrollment Form'!$AQ435<>\"\"),\"Y\",\"N\"))))","v":""},{"$f":"IF($B428=\"N\",\"\",IF(OR('Enrollment Form'!$B435<>\"Subscriber\",'Enrollment Form'!$C435=\"ROC\"),\"-\",IF(AND('Enrollment Form'!$B435=\"Subscriber\",'Enrollment Form'!$C435=\"Enroll\",'Enrollment Form'!$CO435<>\"\"),\"Y\",\"N\")))","v":""},{"$f":"IF($B428=\"N\",\"\",IF($S428=\"-\",\"-\",IF(AND($S428=\"Y\",'Enrollment Form'!$CO435=\"No\"),\"-\",IF(AND($S428=\"Y\",'Enrollment Form'!$CO435=\"Yes\",'Enrollment Form'!$CP435<>\"\"),\"Y\",\"N\"))))","v":""},{"$f":"IF(OR('Enrollment Form'!$AV435=\"Yes\",'Enrollment Form'!$AV435=\"\"),\"-\",IF(AND('Enrollment Form'!$AV435=\"No\",ISERROR(FIND(\"HMO\",VLOOKUP('Enrollment Form'!G435,'Enrollment Form'!H$11:J$1000,3,FALSE),1))=FALSE,COUNTA('Enrollment Form'!$AW435:$AZ435)=4),\"Y\",\"N\"))","v":"-"},{"$f":"IF($B428=\"N\",\"\",IF('Enrollment Form'!$B435=\"Subscriber\",\"-\",IF(COUNTA('Enrollment Form'!$BE435,'Enrollment Form'!$BG435)=2,\"Y\",\"N\")))","v":""},{"$f":"IF($B428=\"N\",\"\",IF(OR('Enrollment Form'!$AU435=\"\",'Enrollment Form'!$AU435=\"No\"),\"-\",IF(AND('Enrollment Form'!$AU435=\"Yes\",COUNTA('Enrollment Form'!$CK435)=1),\"Y\",\"N\")))","v":""},{"$f":"IF(OR('Enrollment Form'!$CK435=\"\",'Enrollment Form'!$CK435=\"No\"),\"-\",IF(COUNTA('Enrollment Form'!$CM435:$CN435)=2,\"Y\",\"N\"))","v":"-"},{"$f":"IF($B428=\"N\",\"\",IF(COUNTIF('Enrollment Form'!$CZ435:$DO435,\"Other\")=COUNTA('Enrollment Form'!$DF435,'Enrollment Form'!$DA435,'Enrollment Form'!$DK435,'Enrollment Form'!$DP435),\"Y\",\"N\"))","v":""},{"$f":"IF($B428=\"N\",\"\",IF(OR('Enrollment Form'!B435<>\"Subscriber\",'Enrollment Form'!C435=\"ROC\",COUNTIF('Enrollment Form'!AS435:AT435,\"Yes\")>=1),\"-\",IF(AND('Enrollment Form'!C435=\"Enroll\",COUNTIF('Enrollment Form'!AS435:AT435,\"No\")=2,'Enrollment Form'!AU435=\"\"),\"N\",\"Y\")))","v":""},{"$f":"IF(OR(B428=\"N\",'Enrollment Form'!B435<>\"Subscriber\",'Enrollment Form'!C435=\"ROC\",'Enrollment Form'!O435<>\"Multiple of Salary\"),\"-\",IF(COUNTA('Enrollment Form'!T435:U435)<2,\"N\",\"Y\"))","v":"-"},{"$f":"IF(B428=\"N\",\"\",IF(OR('Enrollment Form'!C435=\"ROC\",'Enrollment Form'!B435<>\"Subscriber\",'Enrollment Form'!O435=\"Waive\",'Enrollment Form'!O435=\"\"),\"-\",IF('Enrollment Form'!P435=\"\",\"N\",\"Y\")))","v":""},{"$f":"IF($B428=\"N\",\"\",IF(AND('Enrollment Form'!$C435=\"ROC\",'Enrollment Form'!$DS435<>\"\"),\"Y\",IF(AND('Enrollment Form'!$C435=\"ROC\",'Enrollment Form'!$DS435=\"\"),\"N\",IF(AND('Enrollment Form'!$C435=\"Enroll\",'Enrollment Form'!$B435=\"Subscriber\",'Enrollment Form'!$CQ435=\"No\",'Enrollment Form'!$DS435=\"\"),\"N\",IF(AND('Enrollment Form'!$C435=\"Enroll\",'Enrollment Form'!$B435=\"Subscriber\",'Enrollment Form'!$CQ435=\"Yes\"),\"-\",\"Y\")))))","v":""},{"$f":"IF($B428=\"N\",\"\",IF(AND('Enrollment Form'!$C435=\"ROC\",'Enrollment Form'!$DT435<>\"\"),\"Y\",IF(AND('Enrollment Form'!$C435=\"ROC\",'Enrollment Form'!$DT435=\"\"),\"N\",IF(AND('Enrollment Form'!$C435=\"Enroll\",'Enrollment Form'!$B435=\"Subscriber\",'Enrollment Form'!$CQ435=\"No\",'Enrollment Form'!$DT435=\"\"),\"N\",IF(AND('Enrollment Form'!$C435=\"Enroll\",'Enrollment Form'!$B435=\"Subscriber\",'Enrollment Form'!$CQ435=\"Yes\"),\"-\",\"Y\")))))","v":""},{"$f":"IF('Enrollment Form'!AH435=\"\",\"\",IF(ISERROR(SEARCH(\".\",'Enrollment Form'!AH435,SEARCH(\"@\",'Enrollment Form'!AH435))),\"N\",\"Y\"))","v":""},{"$f":"IF(OR($B428=\"N\",'Enrollment Form'!$G435=\"\"),\"\",IF('Enrollment Form'!$B435<>\"Subscriber\",\"-\",IF(COUNTIF('Enrollment Form'!$AS435:$AT435,\"Yes\")=2,\"N\",\"Y\")))","v":""},{"$f":"IF(OR('Enrollment Form'!$CC435=\"\",'Enrollment Form'!$CC435=\"No\"),\"-\",IF(AND('Enrollment Form'!$CC435=\"Yes\",'Enrollment Form'!$CD435=\"\"),\"N\",\"Y\"))","v":"-"},{"$f":"IF(OR('Enrollment Form'!$CE435=\"\",'Enrollment Form'!$CE435=\"No\"),\"-\",IF(AND('Enrollment Form'!$CE435=\"Yes\",'Enrollment Form'!$CF435=\"\"),\"N\",\"Y\"))","v":"-"},{"$f":"IF(OR('Enrollment Form'!$CG435=\"\",'Enrollment Form'!$CG435=\"No\"),\"-\",IF(AND('Enrollment Form'!$CG435=\"Yes\",'Enrollment Form'!$CH435=\"\"),\"N\",\"Y\"))","v":"-"},{"$f":"IF(OR('Enrollment Form'!$CG435=\"\",'Enrollment Form'!$CG435=\"No\"),\"-\",IF(AND('Enrollment Form'!$CG435=\"Yes\",'Enrollment Form'!$CI435=\"\"),\"N\",\"Y\"))","v":"-"},{"$f":"IF('Enrollment Form'!B435<>\"Subscriber\",\"-\",IF(AND('Enrollment Form'!B435=\"Subscriber\",'Enrollment Form'!C435=\"Enroll\",'Enrollment Form'!AA435=\"\"),\"N\",\"Y\"))","v":"-"},{"$f":"IF(OR('Enrollment Form'!B435=\"Subscriber\",'Enrollment Form'!B435=\"\"),\"-\",IF('Enrollment Form'!BI435=\"\",\"N\",\"Y\"))","v":"-"},{"$f":"IF('Enrollment Form'!B435<>\"Subscriber\",\"-\",IF(AND('Enrollment Form'!B435=\"Subscriber\",'Enrollment Form'!G435=\"\"),\"N\",\"Y\"))","v":"-"},{"$f":"IF('Enrollment Form'!A435=\"\",\"\",IF('Enrollment Form'!B435=\"Subscriber\",\"-\",IF(AND('Enrollment Form'!B435<>\"Subscriber\",'Enrollment Form'!G435='Enrollment Form'!H435),\"N\",\"Y\")))","v":""},0]
[436,{"$f":"IF('Enrollment Form'!$A436<>\"\",\"Y\",\"N\")","v":"N"},{"$f":"IF(AND('Enrollment Form'!$B436=\"\",'Enrollment Form'!$C436<>\"\"),\"N\",IF($B429=\"N\",\"\",\"Y\"))","v":""},{"$f":"IF(OR($B429=\"N\",'Enrollment Form'!G436=\"\"),\"\",IF('Enrollment Form'!$B436<>\"Subscriber\",\"\",IF('Enrollment Form'!$G436='Enrollment Form'!$H436,\"Y\",\"N\")))","v":""},{"$f":"IF($B429=\"N\",\"\",IF(AND(COUNTIFS('Enrollment Form'!$H$11:$H$1000,'Enrollment Form'!$H436,'Enrollment Form'!$B$11:$B$1000,'Enrollment Form'!$B436)>1,'Enrollment Form'!$H436<>\"\"),\"N\",\"Y\"))","v":""},{"$f":"IF($B429=\"N\",\"\",IF(LEN('Enrollment Form'!$Y436)=0,\"\",IF(LEN('Enrollment Form'!$Y436)<>5,\"N\",\"Y\")))","v":""},{"$f":"IF($B429=\"N\",\"\",IF(LEN('Enrollment Form'!$AD436=0),\"\",IF(LEN('Enrollment Form'!$AD436)<>5,\"N\",\"Y\")))","v":""},{"$f":"IF($B429=\"N\",\"\",IF(LEN('Enrollment Form'!$BL436=0),\"\",IF(LEN('Enrollment Form'!$BL436)<>5,\"N\",\"Y\")))","v":""},{"$f":"IF($B429=\"N\",\"\",IF(LEN('Enrollment Form'!$AE436)=0,\"\",IF(LEN('Enrollment Form'!$AE436)<>10,\"N\",\"Y\")))","v":""},{"$f":"IF($B429=\"N\",\"\",IF(LEN('Enrollment Form'!$AF436)=0,\"\",IF(LEN('Enrollment Form'!$AF436)<>10,\"N\",\"Y\")))","v":""},{"$f":"IF('Enrollment Form'!$O436<>\"Graded\",\"-\",IF(AND('Enrollment Form'!$O436=\"Graded\",'Enrollment Form'!$AO436<>\"\"),\"Y\",\"N\"))","v":"-"},{"$f":"IF($B429=\"N\",\"\",IF(OR('Enrollment Form'!$B436<>\"Subscriber\",'Enrollment Form'!$C436=\"ROC\"),\"-\",IF(AND('Enrollment Form'!$B436=\"Subscriber\",'Enrollment Form'!$C436=\"Enroll\",'Enrollment Form'!$AJ436<>\"\"),\"Y\",\"N\")))","v":""},{"$f":"IF($B429=\"N\",\"\",IF(OR('Enrollment Form'!$B436<>\"Subscriber\",'Enrollment Form'!$C436=\"ROC\"),\"-\",IF(AND('Enrollment Form'!$B436=\"Subscriber\",'Enrollment Form'!$C436=\"Enroll\",'Enrollment Form'!$AK436<>\"\"),\"Y\",\"N\")))","v":""},{"$f":"IF($B429=\"N\",\"\",IF(OR('Enrollment Form'!$B436<>\"Subscriber\",'Enrollment Form'!$C436=\"ROC\"),\"-\",IF(AND('Enrollment Form'!$B436=\"Subscriber\",'Enrollment Form'!$C436=\"Enroll\",'Enrollment Form'!$AL436<>\"\"),\"Y\",\"N\")))","v":""},{"$f":"IF($B429=\"N\",\"\",IF(OR('Enrollment Form'!$B436<>\"Subscriber\",'Enrollment Form'!$C436=\"ROC\"),\"-\",IF(AND('Enrollment Form'!$B436=\"Subscriber\",'Enrollment Form'!$C436=\"Enroll\",'Enrollment Form'!$AM436<>\"\"),\"Y\",\"N\")))","v":""},{"$f":"IF($B429=\"N\",\"\",IF(OR('Enrollment Form'!$B436<>\"Subscriber\",'Enrollment Form'!$C436=\"ROC\"),\"-\",IF(AND('Enrollment Form'!$B436=\"Subscriber\",'Enrollment Form'!$C436=\"Enroll\",'Enrollment Form'!$AN436<>\"\"),\"Y\",\"N\")))","v":""},{"$f":"IF($B429=\"N\",\"\",IF(OR('Enrollment Form'!$B436<>\"Subscriber\",'Enrollment Form'!$C436=\"ROC\"),\"-\",IF(AND('Enrollment Form'!$B436=\"Subscriber\",'Enrollment Form'!$C436=\"Enroll\",'Enrollment Form'!$AP436<>\"\"),\"Y\",\"N\")))","v":""},{"$f":"IF($B429=\"N\",\"\",IF($Q429=\"-\",\"-\",IF(AND($Q429=\"Y\",'Enrollment Form'!$AP436=\"No\"),\"-\",IF(AND($Q429=\"Y\",'Enrollment Form'!$AP436=\"Yes\",'Enrollment Form'!$AQ436<>\"\"),\"Y\",\"N\"))))","v":""},{"$f":"IF($B429=\"N\",\"\",IF(OR('Enrollment Form'!$B436<>\"Subscriber\",'Enrollment Form'!$C436=\"ROC\"),\"-\",IF(AND('Enrollment Form'!$B436=\"Subscriber\",'Enrollment Form'!$C436=\"Enroll\",'Enrollment Form'!$CO436<>\"\"),\"Y\",\"N\")))","v":""},{"$f":"IF($B429=\"N\",\"\",IF($S429=\"-\",\"-\",IF(AND($S429=\"Y\",'Enrollment Form'!$CO436=\"No\"),\"-\",IF(AND($S429=\"Y\",'Enrollment Form'!$CO436=\"Yes\",'Enrollment Form'!$CP436<>\"\"),\"Y\",\"N\"))))","v":""},{"$f":"IF(OR('Enrollment Form'!$AV436=\"Yes\",'Enrollment Form'!$AV436=\"\"),\"-\",IF(AND('Enrollment Form'!$AV436=\"No\",ISERROR(FIND(\"HMO\",VLOOKUP('Enrollment Form'!G436,'Enrollment Form'!H$11:J$1000,3,FALSE),1))=FALSE,COUNTA('Enrollment Form'!$AW436:$AZ436)=4),\"Y\",\"N\"))","v":"-"},{"$f":"IF($B429=\"N\",\"\",IF('Enrollment Form'!$B436=\"Subscriber\",\"-\",IF(COUNTA('Enrollment Form'!$BE436,'Enrollment Form'!$BG436)=2,\"Y\",\"N\")))","v":""},{"$f":"IF($B429=\"N\",\"\",IF(OR('Enrollment Form'!$AU436=\"\",'Enrollment Form'!$AU436=\"No\"),\"-\",IF(AND('Enrollment Form'!$AU436=\"Yes\",COUNTA('Enrollment Form'!$CK436)=1),\"Y\",\"N\")))","v":""},{"$f":"IF(OR('Enrollment Form'!$CK436=\"\",'Enrollment Form'!$CK436=\"No\"),\"-\",IF(COUNTA('Enrollment Form'!$CM436:$CN436)=2,\"Y\",\"N\"))","v":"-"},{"$f":"IF($B429=\"N\",\"\",IF(COUNTIF('Enrollment Form'!$CZ436:$DO436,\"Other\")=COUNTA('Enrollment Form'!$DF436,'Enrollment Form'!$DA436,'Enrollment Form'!$DK436,'Enrollment Form'!$DP436),\"Y\",\"N\"))","v":""},{"$f":"IF($B429=\"N\",\"\",IF(OR('Enrollment Form'!B436<>\"Subscriber\",'Enrollment Form'!C436=\"ROC\",COUNTIF('Enrollment Form'!AS436:AT436,\"Yes\")>=1),\"-\",IF(AND('Enrollment Form'!C436=\"Enroll\",COUNTIF('Enrollment Form'!AS436:AT436,\"No\")=2,'Enrollment Form'!AU436=\"\"),\"N\",\"Y\")))","v":""},{"$f":"IF(OR(B429=\"N\",'Enrollment Form'!B436<>\"Subscriber\",'Enrollment Form'!C436=\"ROC\",'Enrollment Form'!O436<>\"Multiple of Salary\"),\"-\",IF(COUNTA('Enrollment Form'!T436:U436)<2,\"N\",\"Y\"))","v":"-"},{"$f":"IF(B429=\"N\",\"\",IF(OR('Enrollment Form'!C436=\"ROC\",'Enrollment Form'!B436<>\"Subscriber\",'Enrollment Form'!O436=\"Waive\",'Enrollment Form'!O436=\"\"),\"-\",IF('Enrollment Form'!P436=\"\",\"N\",\"Y\")))","v":""},{"$f":"IF($B429=\"N\",\"\",IF(AND('Enrollment Form'!$C436=\"ROC\",'Enrollment Form'!$DS436<>\"\"),\"Y\",IF(AND('Enrollment Form'!$C436=\"ROC\",'Enrollment Form'!$DS436=\"\"),\"N\",IF(AND('Enrollment Form'!$C436=\"Enroll\",'Enrollment Form'!$B436=\"Subscriber\",'Enrollment Form'!$CQ436=\"No\",'Enrollment Form'!$DS436=\"\"),\"N\",IF(AND('Enrollment Form'!$C436=\"Enroll\",'Enrollment Form'!$B436=\"Subscriber\",'Enrollment Form'!$CQ436=\"Yes\"),\"-\",\"Y\")))))","v":""},{"$f":"IF($B429=\"N\",\"\",IF(AND('Enrollment Form'!$C436=\"ROC\",'Enrollment Form'!$DT436<>\"\"),\"Y\",IF(AND('Enrollment Form'!$C436=\"ROC\",'Enrollment Form'!$DT436=\"\"),\"N\",IF(AND('Enrollment Form'!$C436=\"Enroll\",'Enrollment Form'!$B436=\"Subscriber\",'Enrollment Form'!$CQ436=\"No\",'Enrollment Form'!$DT436=\"\"),\"N\",IF(AND('Enrollment Form'!$C436=\"Enroll\",'Enrollment Form'!$B436=\"Subscriber\",'Enrollment Form'!$CQ436=\"Yes\"),\"-\",\"Y\")))))","v":""},{"$f":"IF('Enrollment Form'!AH436=\"\",\"\",IF(ISERROR(SEARCH(\".\",'Enrollment Form'!AH436,SEARCH(\"@\",'Enrollment Form'!AH436))),\"N\",\"Y\"))","v":""},{"$f":"IF(OR($B429=\"N\",'Enrollment Form'!$G436=\"\"),\"\",IF('Enrollment Form'!$B436<>\"Subscriber\",\"-\",IF(COUNTIF('Enrollment Form'!$AS436:$AT436,\"Yes\")=2,\"N\",\"Y\")))","v":""},{"$f":"IF(OR('Enrollment Form'!$CC436=\"\",'Enrollment Form'!$CC436=\"No\"),\"-\",IF(AND('Enrollment Form'!$CC436=\"Yes\",'Enrollment Form'!$CD436=\"\"),\"N\",\"Y\"))","v":"-"},{"$f":"IF(OR('Enrollment Form'!$CE436=\"\",'Enrollment Form'!$CE436=\"No\"),\"-\",IF(AND('Enrollment Form'!$CE436=\"Yes\",'Enrollment Form'!$CF436=\"\"),\"N\",\"Y\"))","v":"-"},{"$f":"IF(OR('Enrollment Form'!$CG436=\"\",'Enrollment Form'!$CG436=\"No\"),\"-\",IF(AND('Enrollment Form'!$CG436=\"Yes\",'Enrollment Form'!$CH436=\"\"),\"N\",\"Y\"))","v":"-"},{"$f":"IF(OR('Enrollment Form'!$CG436=\"\",'Enrollment Form'!$CG436=\"No\"),\"-\",IF(AND('Enrollment Form'!$CG436=\"Yes\",'Enrollment Form'!$CI436=\"\"),\"N\",\"Y\"))","v":"-"},{"$f":"IF('Enrollment Form'!B436<>\"Subscriber\",\"-\",IF(AND('Enrollment Form'!B436=\"Subscriber\",'Enrollment Form'!C436=\"Enroll\",'Enrollment Form'!AA436=\"\"),\"N\",\"Y\"))","v":"-"},{"$f":"IF(OR('Enrollment Form'!B436=\"Subscriber\",'Enrollment Form'!B436=\"\"),\"-\",IF('Enrollment Form'!BI436=\"\",\"N\",\"Y\"))","v":"-"},{"$f":"IF('Enrollment Form'!B436<>\"Subscriber\",\"-\",IF(AND('Enrollment Form'!B436=\"Subscriber\",'Enrollment Form'!G436=\"\"),\"N\",\"Y\"))","v":"-"},{"$f":"IF('Enrollment Form'!A436=\"\",\"\",IF('Enrollment Form'!B436=\"Subscriber\",\"-\",IF(AND('Enrollment Form'!B436<>\"Subscriber\",'Enrollment Form'!G436='Enrollment Form'!H436),\"N\",\"Y\")))","v":""},0]
[437,{"$f":"IF('Enrollment Form'!$A437<>\"\",\"Y\",\"N\")","v":"N"},{"$f":"IF(AND('Enrollment Form'!$B437=\"\",'Enrollment Form'!$C437<>\"\"),\"N\",IF($B430=\"N\",\"\",\"Y\"))","v":""},{"$f":"IF(OR($B430=\"N\",'Enrollment Form'!G437=\"\"),\"\",IF('Enrollment Form'!$B437<>\"Subscriber\",\"\",IF('Enrollment Form'!$G437='Enrollment Form'!$H437,\"Y\",\"N\")))","v":""},{"$f":"IF($B430=\"N\",\"\",IF(AND(COUNTIFS('Enrollment Form'!$H$11:$H$1000,'Enrollment Form'!$H437,'Enrollment Form'!$B$11:$B$1000,'Enrollment Form'!$B437)>1,'Enrollment Form'!$H437<>\"\"),\"N\",\"Y\"))","v":""},{"$f":"IF($B430=\"N\",\"\",IF(LEN('Enrollment Form'!$Y437)=0,\"\",IF(LEN('Enrollment Form'!$Y437)<>5,\"N\",\"Y\")))","v":""},{"$f":"IF($B430=\"N\",\"\",IF(LEN('Enrollment Form'!$AD437=0),\"\",IF(LEN('Enrollment Form'!$AD437)<>5,\"N\",\"Y\")))","v":""},{"$f":"IF($B430=\"N\",\"\",IF(LEN('Enrollment Form'!$BL437=0),\"\",IF(LEN('Enrollment Form'!$BL437)<>5,\"N\",\"Y\")))","v":""},{"$f":"IF($B430=\"N\",\"\",IF(LEN('Enrollment Form'!$AE437)=0,\"\",IF(LEN('Enrollment Form'!$AE437)<>10,\"N\",\"Y\")))","v":""},{"$f":"IF($B430=\"N\",\"\",IF(LEN('Enrollment Form'!$AF437)=0,\"\",IF(LEN('Enrollment Form'!$AF437)<>10,\"N\",\"Y\")))","v":""},{"$f":"IF('Enrollment Form'!$O437<>\"Graded\",\"-\",IF(AND('Enrollment Form'!$O437=\"Graded\",'Enrollment Form'!$AO437<>\"\"),\"Y\",\"N\"))","v":"-"},{"$f":"IF($B430=\"N\",\"\",IF(OR('Enrollment Form'!$B437<>\"Subscriber\",'Enrollment Form'!$C437=\"ROC\"),\"-\",IF(AND('Enrollment Form'!$B437=\"Subscriber\",'Enrollment Form'!$C437=\"Enroll\",'Enrollment Form'!$AJ437<>\"\"),\"Y\",\"N\")))","v":""},{"$f":"IF($B430=\"N\",\"\",IF(OR('Enrollment Form'!$B437<>\"Subscriber\",'Enrollment Form'!$C437=\"ROC\"),\"-\",IF(AND('Enrollment Form'!$B437=\"Subscriber\",'Enrollment Form'!$C437=\"Enroll\",'Enrollment Form'!$AK437<>\"\"),\"Y\",\"N\")))","v":""},{"$f":"IF($B430=\"N\",\"\",IF(OR('Enrollment Form'!$B437<>\"Subscriber\",'Enrollment Form'!$C437=\"ROC\"),\"-\",IF(AND('Enrollment Form'!$B437=\"Subscriber\",'Enrollment Form'!$C437=\"Enroll\",'Enrollment Form'!$AL437<>\"\"),\"Y\",\"N\")))","v":""},{"$f":"IF($B430=\"N\",\"\",IF(OR('Enrollment Form'!$B437<>\"Subscriber\",'Enrollment Form'!$C437=\"ROC\"),\"-\",IF(AND('Enrollment Form'!$B437=\"Subscriber\",'Enrollment Form'!$C437=\"Enroll\",'Enrollment Form'!$AM437<>\"\"),\"Y\",\"N\")))","v":""},{"$f":"IF($B430=\"N\",\"\",IF(OR('Enrollment Form'!$B437<>\"Subscriber\",'Enrollment Form'!$C437=\"ROC\"),\"-\",IF(AND('Enrollment Form'!$B437=\"Subscriber\",'Enrollment Form'!$C437=\"Enroll\",'Enrollment Form'!$AN437<>\"\"),\"Y\",\"N\")))","v":""},{"$f":"IF($B430=\"N\",\"\",IF(OR('Enrollment Form'!$B437<>\"Subscriber\",'Enrollment Form'!$C437=\"ROC\"),\"-\",IF(AND('Enrollment Form'!$B437=\"Subscriber\",'Enrollment Form'!$C437=\"Enroll\",'Enrollment Form'!$AP437<>\"\"),\"Y\",\"N\")))","v":""},{"$f":"IF($B430=\"N\",\"\",IF($Q430=\"-\",\"-\",IF(AND($Q430=\"Y\",'Enrollment Form'!$AP437=\"No\"),\"-\",IF(AND($Q430=\"Y\",'Enrollment Form'!$AP437=\"Yes\",'Enrollment Form'!$AQ437<>\"\"),\"Y\",\"N\"))))","v":""},{"$f":"IF($B430=\"N\",\"\",IF(OR('Enrollment Form'!$B437<>\"Subscriber\",'Enrollment Form'!$C437=\"ROC\"),\"-\",IF(AND('Enrollment Form'!$B437=\"Subscriber\",'Enrollment Form'!$C437=\"Enroll\",'Enrollment Form'!$CO437<>\"\"),\"Y\",\"N\")))","v":""},{"$f":"IF($B430=\"N\",\"\",IF($S430=\"-\",\"-\",IF(AND($S430=\"Y\",'Enrollment Form'!$CO437=\"No\"),\"-\",IF(AND($S430=\"Y\",'Enrollment Form'!$CO437=\"Yes\",'Enrollment Form'!$CP437<>\"\"),\"Y\",\"N\"))))","v":""},{"$f":"IF(OR('Enrollment Form'!$AV437=\"Yes\",'Enrollment Form'!$AV437=\"\"),\"-\",IF(AND('Enrollment Form'!$AV437=\"No\",ISERROR(FIND(\"HMO\",VLOOKUP('Enrollment Form'!G437,'Enrollment Form'!H$11:J$1000,3,FALSE),1))=FALSE,COUNTA('Enrollment Form'!$AW437:$AZ437)=4),\"Y\",\"N\"))","v":"-"},{"$f":"IF($B430=\"N\",\"\",IF('Enrollment Form'!$B437=\"Subscriber\",\"-\",IF(COUNTA('Enrollment Form'!$BE437,'Enrollment Form'!$BG437)=2,\"Y\",\"N\")))","v":""},{"$f":"IF($B430=\"N\",\"\",IF(OR('Enrollment Form'!$AU437=\"\",'Enrollment Form'!$AU437=\"No\"),\"-\",IF(AND('Enrollment Form'!$AU437=\"Yes\",COUNTA('Enrollment Form'!$CK437)=1),\"Y\",\"N\")))","v":""},{"$f":"IF(OR('Enrollment Form'!$CK437=\"\",'Enrollment Form'!$CK437=\"No\"),\"-\",IF(COUNTA('Enrollment Form'!$CM437:$CN437)=2,\"Y\",\"N\"))","v":"-"},{"$f":"IF($B430=\"N\",\"\",IF(COUNTIF('Enrollment Form'!$CZ437:$DO437,\"Other\")=COUNTA('Enrollment Form'!$DF437,'Enrollment Form'!$DA437,'Enrollment Form'!$DK437,'Enrollment Form'!$DP437),\"Y\",\"N\"))","v":""},{"$f":"IF($B430=\"N\",\"\",IF(OR('Enrollment Form'!B437<>\"Subscriber\",'Enrollment Form'!C437=\"ROC\",COUNTIF('Enrollment Form'!AS437:AT437,\"Yes\")>=1),\"-\",IF(AND('Enrollment Form'!C437=\"Enroll\",COUNTIF('Enrollment Form'!AS437:AT437,\"No\")=2,'Enrollment Form'!AU437=\"\"),\"N\",\"Y\")))","v":""},{"$f":"IF(OR(B430=\"N\",'Enrollment Form'!B437<>\"Subscriber\",'Enrollment Form'!C437=\"ROC\",'Enrollment Form'!O437<>\"Multiple of Salary\"),\"-\",IF(COUNTA('Enrollment Form'!T437:U437)<2,\"N\",\"Y\"))","v":"-"},{"$f":"IF(B430=\"N\",\"\",IF(OR('Enrollment Form'!C437=\"ROC\",'Enrollment Form'!B437<>\"Subscriber\",'Enrollment Form'!O437=\"Waive\",'Enrollment Form'!O437=\"\"),\"-\",IF('Enrollment Form'!P437=\"\",\"N\",\"Y\")))","v":""},{"$f":"IF($B430=\"N\",\"\",IF(AND('Enrollment Form'!$C437=\"ROC\",'Enrollment Form'!$DS437<>\"\"),\"Y\",IF(AND('Enrollment Form'!$C437=\"ROC\",'Enrollment Form'!$DS437=\"\"),\"N\",IF(AND('Enrollment Form'!$C437=\"Enroll\",'Enrollment Form'!$B437=\"Subscriber\",'Enrollment Form'!$CQ437=\"No\",'Enrollment Form'!$DS437=\"\"),\"N\",IF(AND('Enrollment Form'!$C437=\"Enroll\",'Enrollment Form'!$B437=\"Subscriber\",'Enrollment Form'!$CQ437=\"Yes\"),\"-\",\"Y\")))))","v":""},{"$f":"IF($B430=\"N\",\"\",IF(AND('Enrollment Form'!$C437=\"ROC\",'Enrollment Form'!$DT437<>\"\"),\"Y\",IF(AND('Enrollment Form'!$C437=\"ROC\",'Enrollment Form'!$DT437=\"\"),\"N\",IF(AND('Enrollment Form'!$C437=\"Enroll\",'Enrollment Form'!$B437=\"Subscriber\",'Enrollment Form'!$CQ437=\"No\",'Enrollment Form'!$DT437=\"\"),\"N\",IF(AND('Enrollment Form'!$C437=\"Enroll\",'Enrollment Form'!$B437=\"Subscriber\",'Enrollment Form'!$CQ437=\"Yes\"),\"-\",\"Y\")))))","v":""},{"$f":"IF('Enrollment Form'!AH437=\"\",\"\",IF(ISERROR(SEARCH(\".\",'Enrollment Form'!AH437,SEARCH(\"@\",'Enrollment Form'!AH437))),\"N\",\"Y\"))","v":""},{"$f":"IF(OR($B430=\"N\",'Enrollment Form'!$G437=\"\"),\"\",IF('Enrollment Form'!$B437<>\"Subscriber\",\"-\",IF(COUNTIF('Enrollment Form'!$AS437:$AT437,\"Yes\")=2,\"N\",\"Y\")))","v":""},{"$f":"IF(OR('Enrollment Form'!$CC437=\"\",'Enrollment Form'!$CC437=\"No\"),\"-\",IF(AND('Enrollment Form'!$CC437=\"Yes\",'Enrollment Form'!$CD437=\"\"),\"N\",\"Y\"))","v":"-"},{"$f":"IF(OR('Enrollment Form'!$CE437=\"\",'Enrollment Form'!$CE437=\"No\"),\"-\",IF(AND('Enrollment Form'!$CE437=\"Yes\",'Enrollment Form'!$CF437=\"\"),\"N\",\"Y\"))","v":"-"},{"$f":"IF(OR('Enrollment Form'!$CG437=\"\",'Enrollment Form'!$CG437=\"No\"),\"-\",IF(AND('Enrollment Form'!$CG437=\"Yes\",'Enrollment Form'!$CH437=\"\"),\"N\",\"Y\"))","v":"-"},{"$f":"IF(OR('Enrollment Form'!$CG437=\"\",'Enrollment Form'!$CG437=\"No\"),\"-\",IF(AND('Enrollment Form'!$CG437=\"Yes\",'Enrollment Form'!$CI437=\"\"),\"N\",\"Y\"))","v":"-"},{"$f":"IF('Enrollment Form'!B437<>\"Subscriber\",\"-\",IF(AND('Enrollment Form'!B437=\"Subscriber\",'Enrollment Form'!C437=\"Enroll\",'Enrollment Form'!AA437=\"\"),\"N\",\"Y\"))","v":"-"},{"$f":"IF(OR('Enrollment Form'!B437=\"Subscriber\",'Enrollment Form'!B437=\"\"),\"-\",IF('Enrollment Form'!BI437=\"\",\"N\",\"Y\"))","v":"-"},{"$f":"IF('Enrollment Form'!B437<>\"Subscriber\",\"-\",IF(AND('Enrollment Form'!B437=\"Subscriber\",'Enrollment Form'!G437=\"\"),\"N\",\"Y\"))","v":"-"},{"$f":"IF('Enrollment Form'!A437=\"\",\"\",IF('Enrollment Form'!B437=\"Subscriber\",\"-\",IF(AND('Enrollment Form'!B437<>\"Subscriber\",'Enrollment Form'!G437='Enrollment Form'!H437),\"N\",\"Y\")))","v":""},0]
[438,{"$f":"IF('Enrollment Form'!$A438<>\"\",\"Y\",\"N\")","v":"N"},{"$f":"IF(AND('Enrollment Form'!$B438=\"\",'Enrollment Form'!$C438<>\"\"),\"N\",IF($B431=\"N\",\"\",\"Y\"))","v":""},{"$f":"IF(OR($B431=\"N\",'Enrollment Form'!G438=\"\"),\"\",IF('Enrollment Form'!$B438<>\"Subscriber\",\"\",IF('Enrollment Form'!$G438='Enrollment Form'!$H438,\"Y\",\"N\")))","v":""},{"$f":"IF($B431=\"N\",\"\",IF(AND(COUNTIFS('Enrollment Form'!$H$11:$H$1000,'Enrollment Form'!$H438,'Enrollment Form'!$B$11:$B$1000,'Enrollment Form'!$B438)>1,'Enrollment Form'!$H438<>\"\"),\"N\",\"Y\"))","v":""},{"$f":"IF($B431=\"N\",\"\",IF(LEN('Enrollment Form'!$Y438)=0,\"\",IF(LEN('Enrollment Form'!$Y438)<>5,\"N\",\"Y\")))","v":""},{"$f":"IF($B431=\"N\",\"\",IF(LEN('Enrollment Form'!$AD438=0),\"\",IF(LEN('Enrollment Form'!$AD438)<>5,\"N\",\"Y\")))","v":""},{"$f":"IF($B431=\"N\",\"\",IF(LEN('Enrollment Form'!$BL438=0),\"\",IF(LEN('Enrollment Form'!$BL438)<>5,\"N\",\"Y\")))","v":""},{"$f":"IF($B431=\"N\",\"\",IF(LEN('Enrollment Form'!$AE438)=0,\"\",IF(LEN('Enrollment Form'!$AE438)<>10,\"N\",\"Y\")))","v":""},{"$f":"IF($B431=\"N\",\"\",IF(LEN('Enrollment Form'!$AF438)=0,\"\",IF(LEN('Enrollment Form'!$AF438)<>10,\"N\",\"Y\")))","v":""},{"$f":"IF('Enrollment Form'!$O438<>\"Graded\",\"-\",IF(AND('Enrollment Form'!$O438=\"Graded\",'Enrollment Form'!$AO438<>\"\"),\"Y\",\"N\"))","v":"-"},{"$f":"IF($B431=\"N\",\"\",IF(OR('Enrollment Form'!$B438<>\"Subscriber\",'Enrollment Form'!$C438=\"ROC\"),\"-\",IF(AND('Enrollment Form'!$B438=\"Subscriber\",'Enrollment Form'!$C438=\"Enroll\",'Enrollment Form'!$AJ438<>\"\"),\"Y\",\"N\")))","v":""},{"$f":"IF($B431=\"N\",\"\",IF(OR('Enrollment Form'!$B438<>\"Subscriber\",'Enrollment Form'!$C438=\"ROC\"),\"-\",IF(AND('Enrollment Form'!$B438=\"Subscriber\",'Enrollment Form'!$C438=\"Enroll\",'Enrollment Form'!$AK438<>\"\"),\"Y\",\"N\")))","v":""},{"$f":"IF($B431=\"N\",\"\",IF(OR('Enrollment Form'!$B438<>\"Subscriber\",'Enrollment Form'!$C438=\"ROC\"),\"-\",IF(AND('Enrollment Form'!$B438=\"Subscriber\",'Enrollment Form'!$C438=\"Enroll\",'Enrollment Form'!$AL438<>\"\"),\"Y\",\"N\")))","v":""},{"$f":"IF($B431=\"N\",\"\",IF(OR('Enrollment Form'!$B438<>\"Subscriber\",'Enrollment Form'!$C438=\"ROC\"),\"-\",IF(AND('Enrollment Form'!$B438=\"Subscriber\",'Enrollment Form'!$C438=\"Enroll\",'Enrollment Form'!$AM438<>\"\"),\"Y\",\"N\")))","v":""},{"$f":"IF($B431=\"N\",\"\",IF(OR('Enrollment Form'!$B438<>\"Subscriber\",'Enrollment Form'!$C438=\"ROC\"),\"-\",IF(AND('Enrollment Form'!$B438=\"Subscriber\",'Enrollment Form'!$C438=\"Enroll\",'Enrollment Form'!$AN438<>\"\"),\"Y\",\"N\")))","v":""},{"$f":"IF($B431=\"N\",\"\",IF(OR('Enrollment Form'!$B438<>\"Subscriber\",'Enrollment Form'!$C438=\"ROC\"),\"-\",IF(AND('Enrollment Form'!$B438=\"Subscriber\",'Enrollment Form'!$C438=\"Enroll\",'Enrollment Form'!$AP438<>\"\"),\"Y\",\"N\")))","v":""},{"$f":"IF($B431=\"N\",\"\",IF($Q431=\"-\",\"-\",IF(AND($Q431=\"Y\",'Enrollment Form'!$AP438=\"No\"),\"-\",IF(AND($Q431=\"Y\",'Enrollment Form'!$AP438=\"Yes\",'Enrollment Form'!$AQ438<>\"\"),\"Y\",\"N\"))))","v":""},{"$f":"IF($B431=\"N\",\"\",IF(OR('Enrollment Form'!$B438<>\"Subscriber\",'Enrollment Form'!$C438=\"ROC\"),\"-\",IF(AND('Enrollment Form'!$B438=\"Subscriber\",'Enrollment Form'!$C438=\"Enroll\",'Enrollment Form'!$CO438<>\"\"),\"Y\",\"N\")))","v":""},{"$f":"IF($B431=\"N\",\"\",IF($S431=\"-\",\"-\",IF(AND($S431=\"Y\",'Enrollment Form'!$CO438=\"No\"),\"-\",IF(AND($S431=\"Y\",'Enrollment Form'!$CO438=\"Yes\",'Enrollment Form'!$CP438<>\"\"),\"Y\",\"N\"))))","v":""},{"$f":"IF(OR('Enrollment Form'!$AV438=\"Yes\",'Enrollment Form'!$AV438=\"\"),\"-\",IF(AND('Enrollment Form'!$AV438=\"No\",ISERROR(FIND(\"HMO\",VLOOKUP('Enrollment Form'!G438,'Enrollment Form'!H$11:J$1000,3,FALSE),1))=FALSE,COUNTA('Enrollment Form'!$AW438:$AZ438)=4),\"Y\",\"N\"))","v":"-"},{"$f":"IF($B431=\"N\",\"\",IF('Enrollment Form'!$B438=\"Subscriber\",\"-\",IF(COUNTA('Enrollment Form'!$BE438,'Enrollment Form'!$BG438)=2,\"Y\",\"N\")))","v":""},{"$f":"IF($B431=\"N\",\"\",IF(OR('Enrollment Form'!$AU438=\"\",'Enrollment Form'!$AU438=\"No\"),\"-\",IF(AND('Enrollment Form'!$AU438=\"Yes\",COUNTA('Enrollment Form'!$CK438)=1),\"Y\",\"N\")))","v":""},{"$f":"IF(OR('Enrollment Form'!$CK438=\"\",'Enrollment Form'!$CK438=\"No\"),\"-\",IF(COUNTA('Enrollment Form'!$CM438:$CN438)=2,\"Y\",\"N\"))","v":"-"},{"$f":"IF($B431=\"N\",\"\",IF(COUNTIF('Enrollment Form'!$CZ438:$DO438,\"Other\")=COUNTA('Enrollment Form'!$DF438,'Enrollment Form'!$DA438,'Enrollment Form'!$DK438,'Enrollment Form'!$DP438),\"Y\",\"N\"))","v":""},{"$f":"IF($B431=\"N\",\"\",IF(OR('Enrollment Form'!B438<>\"Subscriber\",'Enrollment Form'!C438=\"ROC\",COUNTIF('Enrollment Form'!AS438:AT438,\"Yes\")>=1),\"-\",IF(AND('Enrollment Form'!C438=\"Enroll\",COUNTIF('Enrollment Form'!AS438:AT438,\"No\")=2,'Enrollment Form'!AU438=\"\"),\"N\",\"Y\")))","v":""},{"$f":"IF(OR(B431=\"N\",'Enrollment Form'!B438<>\"Subscriber\",'Enrollment Form'!C438=\"ROC\",'Enrollment Form'!O438<>\"Multiple of Salary\"),\"-\",IF(COUNTA('Enrollment Form'!T438:U438)<2,\"N\",\"Y\"))","v":"-"},{"$f":"IF(B431=\"N\",\"\",IF(OR('Enrollment Form'!C438=\"ROC\",'Enrollment Form'!B438<>\"Subscriber\",'Enrollment Form'!O438=\"Waive\",'Enrollment Form'!O438=\"\"),\"-\",IF('Enrollment Form'!P438=\"\",\"N\",\"Y\")))","v":""},{"$f":"IF($B431=\"N\",\"\",IF(AND('Enrollment Form'!$C438=\"ROC\",'Enrollment Form'!$DS438<>\"\"),\"Y\",IF(AND('Enrollment Form'!$C438=\"ROC\",'Enrollment Form'!$DS438=\"\"),\"N\",IF(AND('Enrollment Form'!$C438=\"Enroll\",'Enrollment Form'!$B438=\"Subscriber\",'Enrollment Form'!$CQ438=\"No\",'Enrollment Form'!$DS438=\"\"),\"N\",IF(AND('Enrollment Form'!$C438=\"Enroll\",'Enrollment Form'!$B438=\"Subscriber\",'Enrollment Form'!$CQ438=\"Yes\"),\"-\",\"Y\")))))","v":""},{"$f":"IF($B431=\"N\",\"\",IF(AND('Enrollment Form'!$C438=\"ROC\",'Enrollment Form'!$DT438<>\"\"),\"Y\",IF(AND('Enrollment Form'!$C438=\"ROC\",'Enrollment Form'!$DT438=\"\"),\"N\",IF(AND('Enrollment Form'!$C438=\"Enroll\",'Enrollment Form'!$B438=\"Subscriber\",'Enrollment Form'!$CQ438=\"No\",'Enrollment Form'!$DT438=\"\"),\"N\",IF(AND('Enrollment Form'!$C438=\"Enroll\",'Enrollment Form'!$B438=\"Subscriber\",'Enrollment Form'!$CQ438=\"Yes\"),\"-\",\"Y\")))))","v":""},{"$f":"IF('Enrollment Form'!AH438=\"\",\"\",IF(ISERROR(SEARCH(\".\",'Enrollment Form'!AH438,SEARCH(\"@\",'Enrollment Form'!AH438))),\"N\",\"Y\"))","v":""},{"$f":"IF(OR($B431=\"N\",'Enrollment Form'!$G438=\"\"),\"\",IF('Enrollment Form'!$B438<>\"Subscriber\",\"-\",IF(COUNTIF('Enrollment Form'!$AS438:$AT438,\"Yes\")=2,\"N\",\"Y\")))","v":""},{"$f":"IF(OR('Enrollment Form'!$CC438=\"\",'Enrollment Form'!$CC438=\"No\"),\"-\",IF(AND('Enrollment Form'!$CC438=\"Yes\",'Enrollment Form'!$CD438=\"\"),\"N\",\"Y\"))","v":"-"},{"$f":"IF(OR('Enrollment Form'!$CE438=\"\",'Enrollment Form'!$CE438=\"No\"),\"-\",IF(AND('Enrollment Form'!$CE438=\"Yes\",'Enrollment Form'!$CF438=\"\"),\"N\",\"Y\"))","v":"-"},{"$f":"IF(OR('Enrollment Form'!$CG438=\"\",'Enrollment Form'!$CG438=\"No\"),\"-\",IF(AND('Enrollment Form'!$CG438=\"Yes\",'Enrollment Form'!$CH438=\"\"),\"N\",\"Y\"))","v":"-"},{"$f":"IF(OR('Enrollment Form'!$CG438=\"\",'Enrollment Form'!$CG438=\"No\"),\"-\",IF(AND('Enrollment Form'!$CG438=\"Yes\",'Enrollment Form'!$CI438=\"\"),\"N\",\"Y\"))","v":"-"},{"$f":"IF('Enrollment Form'!B438<>\"Subscriber\",\"-\",IF(AND('Enrollment Form'!B438=\"Subscriber\",'Enrollment Form'!C438=\"Enroll\",'Enrollment Form'!AA438=\"\"),\"N\",\"Y\"))","v":"-"},{"$f":"IF(OR('Enrollment Form'!B438=\"Subscriber\",'Enrollment Form'!B438=\"\"),\"-\",IF('Enrollment Form'!BI438=\"\",\"N\",\"Y\"))","v":"-"},{"$f":"IF('Enrollment Form'!B438<>\"Subscriber\",\"-\",IF(AND('Enrollment Form'!B438=\"Subscriber\",'Enrollment Form'!G438=\"\"),\"N\",\"Y\"))","v":"-"},{"$f":"IF('Enrollment Form'!A438=\"\",\"\",IF('Enrollment Form'!B438=\"Subscriber\",\"-\",IF(AND('Enrollment Form'!B438<>\"Subscriber\",'Enrollment Form'!G438='Enrollment Form'!H438),\"N\",\"Y\")))","v":""},0]
[439,{"$f":"IF('Enrollment Form'!$A439<>\"\",\"Y\",\"N\")","v":"N"},{"$f":"IF(AND('Enrollment Form'!$B439=\"\",'Enrollment Form'!$C439<>\"\"),\"N\",IF($B432=\"N\",\"\",\"Y\"))","v":""},{"$f":"IF(OR($B432=\"N\",'Enrollment Form'!G439=\"\"),\"\",IF('Enrollment Form'!$B439<>\"Subscriber\",\"\",IF('Enrollment Form'!$G439='Enrollment Form'!$H439,\"Y\",\"N\")))","v":""},{"$f":"IF($B432=\"N\",\"\",IF(AND(COUNTIFS('Enrollment Form'!$H$11:$H$1000,'Enrollment Form'!$H439,'Enrollment Form'!$B$11:$B$1000,'Enrollment Form'!$B439)>1,'Enrollment Form'!$H439<>\"\"),\"N\",\"Y\"))","v":""},{"$f":"IF($B432=\"N\",\"\",IF(LEN('Enrollment Form'!$Y439)=0,\"\",IF(LEN('Enrollment Form'!$Y439)<>5,\"N\",\"Y\")))","v":""},{"$f":"IF($B432=\"N\",\"\",IF(LEN('Enrollment Form'!$AD439=0),\"\",IF(LEN('Enrollment Form'!$AD439)<>5,\"N\",\"Y\")))","v":""},{"$f":"IF($B432=\"N\",\"\",IF(LEN('Enrollment Form'!$BL439=0),\"\",IF(LEN('Enrollment Form'!$BL439)<>5,\"N\",\"Y\")))","v":""},{"$f":"IF($B432=\"N\",\"\",IF(LEN('Enrollment Form'!$AE439)=0,\"\",IF(LEN('Enrollment Form'!$AE439)<>10,\"N\",\"Y\")))","v":""},{"$f":"IF($B432=\"N\",\"\",IF(LEN('Enrollment Form'!$AF439)=0,\"\",IF(LEN('Enrollment Form'!$AF439)<>10,\"N\",\"Y\")))","v":""},{"$f":"IF('Enrollment Form'!$O439<>\"Graded\",\"-\",IF(AND('Enrollment Form'!$O439=\"Graded\",'Enrollment Form'!$AO439<>\"\"),\"Y\",\"N\"))","v":"-"},{"$f":"IF($B432=\"N\",\"\",IF(OR('Enrollment Form'!$B439<>\"Subscriber\",'Enrollment Form'!$C439=\"ROC\"),\"-\",IF(AND('Enrollment Form'!$B439=\"Subscriber\",'Enrollment Form'!$C439=\"Enroll\",'Enrollment Form'!$AJ439<>\"\"),\"Y\",\"N\")))","v":""},{"$f":"IF($B432=\"N\",\"\",IF(OR('Enrollment Form'!$B439<>\"Subscriber\",'Enrollment Form'!$C439=\"ROC\"),\"-\",IF(AND('Enrollment Form'!$B439=\"Subscriber\",'Enrollment Form'!$C439=\"Enroll\",'Enrollment Form'!$AK439<>\"\"),\"Y\",\"N\")))","v":""},{"$f":"IF($B432=\"N\",\"\",IF(OR('Enrollment Form'!$B439<>\"Subscriber\",'Enrollment Form'!$C439=\"ROC\"),\"-\",IF(AND('Enrollment Form'!$B439=\"Subscriber\",'Enrollment Form'!$C439=\"Enroll\",'Enrollment Form'!$AL439<>\"\"),\"Y\",\"N\")))","v":""},{"$f":"IF($B432=\"N\",\"\",IF(OR('Enrollment Form'!$B439<>\"Subscriber\",'Enrollment Form'!$C439=\"ROC\"),\"-\",IF(AND('Enrollment Form'!$B439=\"Subscriber\",'Enrollment Form'!$C439=\"Enroll\",'Enrollment Form'!$AM439<>\"\"),\"Y\",\"N\")))","v":""},{"$f":"IF($B432=\"N\",\"\",IF(OR('Enrollment Form'!$B439<>\"Subscriber\",'Enrollment Form'!$C439=\"ROC\"),\"-\",IF(AND('Enrollment Form'!$B439=\"Subscriber\",'Enrollment Form'!$C439=\"Enroll\",'Enrollment Form'!$AN439<>\"\"),\"Y\",\"N\")))","v":""},{"$f":"IF($B432=\"N\",\"\",IF(OR('Enrollment Form'!$B439<>\"Subscriber\",'Enrollment Form'!$C439=\"ROC\"),\"-\",IF(AND('Enrollment Form'!$B439=\"Subscriber\",'Enrollment Form'!$C439=\"Enroll\",'Enrollment Form'!$AP439<>\"\"),\"Y\",\"N\")))","v":""},{"$f":"IF($B432=\"N\",\"\",IF($Q432=\"-\",\"-\",IF(AND($Q432=\"Y\",'Enrollment Form'!$AP439=\"No\"),\"-\",IF(AND($Q432=\"Y\",'Enrollment Form'!$AP439=\"Yes\",'Enrollment Form'!$AQ439<>\"\"),\"Y\",\"N\"))))","v":""},{"$f":"IF($B432=\"N\",\"\",IF(OR('Enrollment Form'!$B439<>\"Subscriber\",'Enrollment Form'!$C439=\"ROC\"),\"-\",IF(AND('Enrollment Form'!$B439=\"Subscriber\",'Enrollment Form'!$C439=\"Enroll\",'Enrollment Form'!$CO439<>\"\"),\"Y\",\"N\")))","v":""},{"$f":"IF($B432=\"N\",\"\",IF($S432=\"-\",\"-\",IF(AND($S432=\"Y\",'Enrollment Form'!$CO439=\"No\"),\"-\",IF(AND($S432=\"Y\",'Enrollment Form'!$CO439=\"Yes\",'Enrollment Form'!$CP439<>\"\"),\"Y\",\"N\"))))","v":""},{"$f":"IF(OR('Enrollment Form'!$AV439=\"Yes\",'Enrollment Form'!$AV439=\"\"),\"-\",IF(AND('Enrollment Form'!$AV439=\"No\",ISERROR(FIND(\"HMO\",VLOOKUP('Enrollment Form'!G439,'Enrollment Form'!H$11:J$1000,3,FALSE),1))=FALSE,COUNTA('Enrollment Form'!$AW439:$AZ439)=4),\"Y\",\"N\"))","v":"-"},{"$f":"IF($B432=\"N\",\"\",IF('Enrollment Form'!$B439=\"Subscriber\",\"-\",IF(COUNTA('Enrollment Form'!$BE439,'Enrollment Form'!$BG439)=2,\"Y\",\"N\")))","v":""},{"$f":"IF($B432=\"N\",\"\",IF(OR('Enrollment Form'!$AU439=\"\",'Enrollment Form'!$AU439=\"No\"),\"-\",IF(AND('Enrollment Form'!$AU439=\"Yes\",COUNTA('Enrollment Form'!$CK439)=1),\"Y\",\"N\")))","v":""},{"$f":"IF(OR('Enrollment Form'!$CK439=\"\",'Enrollment Form'!$CK439=\"No\"),\"-\",IF(COUNTA('Enrollment Form'!$CM439:$CN439)=2,\"Y\",\"N\"))","v":"-"},{"$f":"IF($B432=\"N\",\"\",IF(COUNTIF('Enrollment Form'!$CZ439:$DO439,\"Other\")=COUNTA('Enrollment Form'!$DF439,'Enrollment Form'!$DA439,'Enrollment Form'!$DK439,'Enrollment Form'!$DP439),\"Y\",\"N\"))","v":""},{"$f":"IF($B432=\"N\",\"\",IF(OR('Enrollment Form'!B439<>\"Subscriber\",'Enrollment Form'!C439=\"ROC\",COUNTIF('Enrollment Form'!AS439:AT439,\"Yes\")>=1),\"-\",IF(AND('Enrollment Form'!C439=\"Enroll\",COUNTIF('Enrollment Form'!AS439:AT439,\"No\")=2,'Enrollment Form'!AU439=\"\"),\"N\",\"Y\")))","v":""},{"$f":"IF(OR(B432=\"N\",'Enrollment Form'!B439<>\"Subscriber\",'Enrollment Form'!C439=\"ROC\",'Enrollment Form'!O439<>\"Multiple of Salary\"),\"-\",IF(COUNTA('Enrollment Form'!T439:U439)<2,\"N\",\"Y\"))","v":"-"},{"$f":"IF(B432=\"N\",\"\",IF(OR('Enrollment Form'!C439=\"ROC\",'Enrollment Form'!B439<>\"Subscriber\",'Enrollment Form'!O439=\"Waive\",'Enrollment Form'!O439=\"\"),\"-\",IF('Enrollment Form'!P439=\"\",\"N\",\"Y\")))","v":""},{"$f":"IF($B432=\"N\",\"\",IF(AND('Enrollment Form'!$C439=\"ROC\",'Enrollment Form'!$DS439<>\"\"),\"Y\",IF(AND('Enrollment Form'!$C439=\"ROC\",'Enrollment Form'!$DS439=\"\"),\"N\",IF(AND('Enrollment Form'!$C439=\"Enroll\",'Enrollment Form'!$B439=\"Subscriber\",'Enrollment Form'!$CQ439=\"No\",'Enrollment Form'!$DS439=\"\"),\"N\",IF(AND('Enrollment Form'!$C439=\"Enroll\",'Enrollment Form'!$B439=\"Subscriber\",'Enrollment Form'!$CQ439=\"Yes\"),\"-\",\"Y\")))))","v":""},{"$f":"IF($B432=\"N\",\"\",IF(AND('Enrollment Form'!$C439=\"ROC\",'Enrollment Form'!$DT439<>\"\"),\"Y\",IF(AND('Enrollment Form'!$C439=\"ROC\",'Enrollment Form'!$DT439=\"\"),\"N\",IF(AND('Enrollment Form'!$C439=\"Enroll\",'Enrollment Form'!$B439=\"Subscriber\",'Enrollment Form'!$CQ439=\"No\",'Enrollment Form'!$DT439=\"\"),\"N\",IF(AND('Enrollment Form'!$C439=\"Enroll\",'Enrollment Form'!$B439=\"Subscriber\",'Enrollment Form'!$CQ439=\"Yes\"),\"-\",\"Y\")))))","v":""},{"$f":"IF('Enrollment Form'!AH439=\"\",\"\",IF(ISERROR(SEARCH(\".\",'Enrollment Form'!AH439,SEARCH(\"@\",'Enrollment Form'!AH439))),\"N\",\"Y\"))","v":""},{"$f":"IF(OR($B432=\"N\",'Enrollment Form'!$G439=\"\"),\"\",IF('Enrollment Form'!$B439<>\"Subscriber\",\"-\",IF(COUNTIF('Enrollment Form'!$AS439:$AT439,\"Yes\")=2,\"N\",\"Y\")))","v":""},{"$f":"IF(OR('Enrollment Form'!$CC439=\"\",'Enrollment Form'!$CC439=\"No\"),\"-\",IF(AND('Enrollment Form'!$CC439=\"Yes\",'Enrollment Form'!$CD439=\"\"),\"N\",\"Y\"))","v":"-"},{"$f":"IF(OR('Enrollment Form'!$CE439=\"\",'Enrollment Form'!$CE439=\"No\"),\"-\",IF(AND('Enrollment Form'!$CE439=\"Yes\",'Enrollment Form'!$CF439=\"\"),\"N\",\"Y\"))","v":"-"},{"$f":"IF(OR('Enrollment Form'!$CG439=\"\",'Enrollment Form'!$CG439=\"No\"),\"-\",IF(AND('Enrollment Form'!$CG439=\"Yes\",'Enrollment Form'!$CH439=\"\"),\"N\",\"Y\"))","v":"-"},{"$f":"IF(OR('Enrollment Form'!$CG439=\"\",'Enrollment Form'!$CG439=\"No\"),\"-\",IF(AND('Enrollment Form'!$CG439=\"Yes\",'Enrollment Form'!$CI439=\"\"),\"N\",\"Y\"))","v":"-"},{"$f":"IF('Enrollment Form'!B439<>\"Subscriber\",\"-\",IF(AND('Enrollment Form'!B439=\"Subscriber\",'Enrollment Form'!C439=\"Enroll\",'Enrollment Form'!AA439=\"\"),\"N\",\"Y\"))","v":"-"},{"$f":"IF(OR('Enrollment Form'!B439=\"Subscriber\",'Enrollment Form'!B439=\"\"),\"-\",IF('Enrollment Form'!BI439=\"\",\"N\",\"Y\"))","v":"-"},{"$f":"IF('Enrollment Form'!B439<>\"Subscriber\",\"-\",IF(AND('Enrollment Form'!B439=\"Subscriber\",'Enrollment Form'!G439=\"\"),\"N\",\"Y\"))","v":"-"},{"$f":"IF('Enrollment Form'!A439=\"\",\"\",IF('Enrollment Form'!B439=\"Subscriber\",\"-\",IF(AND('Enrollment Form'!B439<>\"Subscriber\",'Enrollment Form'!G439='Enrollment Form'!H439),\"N\",\"Y\")))","v":""},0]
[440,{"$f":"IF('Enrollment Form'!$A440<>\"\",\"Y\",\"N\")","v":"N"},{"$f":"IF(AND('Enrollment Form'!$B440=\"\",'Enrollment Form'!$C440<>\"\"),\"N\",IF($B433=\"N\",\"\",\"Y\"))","v":""},{"$f":"IF(OR($B433=\"N\",'Enrollment Form'!G440=\"\"),\"\",IF('Enrollment Form'!$B440<>\"Subscriber\",\"\",IF('Enrollment Form'!$G440='Enrollment Form'!$H440,\"Y\",\"N\")))","v":""},{"$f":"IF($B433=\"N\",\"\",IF(AND(COUNTIFS('Enrollment Form'!$H$11:$H$1000,'Enrollment Form'!$H440,'Enrollment Form'!$B$11:$B$1000,'Enrollment Form'!$B440)>1,'Enrollment Form'!$H440<>\"\"),\"N\",\"Y\"))","v":""},{"$f":"IF($B433=\"N\",\"\",IF(LEN('Enrollment Form'!$Y440)=0,\"\",IF(LEN('Enrollment Form'!$Y440)<>5,\"N\",\"Y\")))","v":""},{"$f":"IF($B433=\"N\",\"\",IF(LEN('Enrollment Form'!$AD440=0),\"\",IF(LEN('Enrollment Form'!$AD440)<>5,\"N\",\"Y\")))","v":""},{"$f":"IF($B433=\"N\",\"\",IF(LEN('Enrollment Form'!$BL440=0),\"\",IF(LEN('Enrollment Form'!$BL440)<>5,\"N\",\"Y\")))","v":""},{"$f":"IF($B433=\"N\",\"\",IF(LEN('Enrollment Form'!$AE440)=0,\"\",IF(LEN('Enrollment Form'!$AE440)<>10,\"N\",\"Y\")))","v":""},{"$f":"IF($B433=\"N\",\"\",IF(LEN('Enrollment Form'!$AF440)=0,\"\",IF(LEN('Enrollment Form'!$AF440)<>10,\"N\",\"Y\")))","v":""},{"$f":"IF('Enrollment Form'!$O440<>\"Graded\",\"-\",IF(AND('Enrollment Form'!$O440=\"Graded\",'Enrollment Form'!$AO440<>\"\"),\"Y\",\"N\"))","v":"-"},{"$f":"IF($B433=\"N\",\"\",IF(OR('Enrollment Form'!$B440<>\"Subscriber\",'Enrollment Form'!$C440=\"ROC\"),\"-\",IF(AND('Enrollment Form'!$B440=\"Subscriber\",'Enrollment Form'!$C440=\"Enroll\",'Enrollment Form'!$AJ440<>\"\"),\"Y\",\"N\")))","v":""},{"$f":"IF($B433=\"N\",\"\",IF(OR('Enrollment Form'!$B440<>\"Subscriber\",'Enrollment Form'!$C440=\"ROC\"),\"-\",IF(AND('Enrollment Form'!$B440=\"Subscriber\",'Enrollment Form'!$C440=\"Enroll\",'Enrollment Form'!$AK440<>\"\"),\"Y\",\"N\")))","v":""},{"$f":"IF($B433=\"N\",\"\",IF(OR('Enrollment Form'!$B440<>\"Subscriber\",'Enrollment Form'!$C440=\"ROC\"),\"-\",IF(AND('Enrollment Form'!$B440=\"Subscriber\",'Enrollment Form'!$C440=\"Enroll\",'Enrollment Form'!$AL440<>\"\"),\"Y\",\"N\")))","v":""},{"$f":"IF($B433=\"N\",\"\",IF(OR('Enrollment Form'!$B440<>\"Subscriber\",'Enrollment Form'!$C440=\"ROC\"),\"-\",IF(AND('Enrollment Form'!$B440=\"Subscriber\",'Enrollment Form'!$C440=\"Enroll\",'Enrollment Form'!$AM440<>\"\"),\"Y\",\"N\")))","v":""},{"$f":"IF($B433=\"N\",\"\",IF(OR('Enrollment Form'!$B440<>\"Subscriber\",'Enrollment Form'!$C440=\"ROC\"),\"-\",IF(AND('Enrollment Form'!$B440=\"Subscriber\",'Enrollment Form'!$C440=\"Enroll\",'Enrollment Form'!$AN440<>\"\"),\"Y\",\"N\")))","v":""},{"$f":"IF($B433=\"N\",\"\",IF(OR('Enrollment Form'!$B440<>\"Subscriber\",'Enrollment Form'!$C440=\"ROC\"),\"-\",IF(AND('Enrollment Form'!$B440=\"Subscriber\",'Enrollment Form'!$C440=\"Enroll\",'Enrollment Form'!$AP440<>\"\"),\"Y\",\"N\")))","v":""},{"$f":"IF($B433=\"N\",\"\",IF($Q433=\"-\",\"-\",IF(AND($Q433=\"Y\",'Enrollment Form'!$AP440=\"No\"),\"-\",IF(AND($Q433=\"Y\",'Enrollment Form'!$AP440=\"Yes\",'Enrollment Form'!$AQ440<>\"\"),\"Y\",\"N\"))))","v":""},{"$f":"IF($B433=\"N\",\"\",IF(OR('Enrollment Form'!$B440<>\"Subscriber\",'Enrollment Form'!$C440=\"ROC\"),\"-\",IF(AND('Enrollment Form'!$B440=\"Subscriber\",'Enrollment Form'!$C440=\"Enroll\",'Enrollment Form'!$CO440<>\"\"),\"Y\",\"N\")))","v":""},{"$f":"IF($B433=\"N\",\"\",IF($S433=\"-\",\"-\",IF(AND($S433=\"Y\",'Enrollment Form'!$CO440=\"No\"),\"-\",IF(AND($S433=\"Y\",'Enrollment Form'!$CO440=\"Yes\",'Enrollment Form'!$CP440<>\"\"),\"Y\",\"N\"))))","v":""},{"$f":"IF(OR('Enrollment Form'!$AV440=\"Yes\",'Enrollment Form'!$AV440=\"\"),\"-\",IF(AND('Enrollment Form'!$AV440=\"No\",ISERROR(FIND(\"HMO\",VLOOKUP('Enrollment Form'!G440,'Enrollment Form'!H$11:J$1000,3,FALSE),1))=FALSE,COUNTA('Enrollment Form'!$AW440:$AZ440)=4),\"Y\",\"N\"))","v":"-"},{"$f":"IF($B433=\"N\",\"\",IF('Enrollment Form'!$B440=\"Subscriber\",\"-\",IF(COUNTA('Enrollment Form'!$BE440,'Enrollment Form'!$BG440)=2,\"Y\",\"N\")))","v":""},{"$f":"IF($B433=\"N\",\"\",IF(OR('Enrollment Form'!$AU440=\"\",'Enrollment Form'!$AU440=\"No\"),\"-\",IF(AND('Enrollment Form'!$AU440=\"Yes\",COUNTA('Enrollment Form'!$CK440)=1),\"Y\",\"N\")))","v":""},{"$f":"IF(OR('Enrollment Form'!$CK440=\"\",'Enrollment Form'!$CK440=\"No\"),\"-\",IF(COUNTA('Enrollment Form'!$CM440:$CN440)=2,\"Y\",\"N\"))","v":"-"},{"$f":"IF($B433=\"N\",\"\",IF(COUNTIF('Enrollment Form'!$CZ440:$DO440,\"Other\")=COUNTA('Enrollment Form'!$DF440,'Enrollment Form'!$DA440,'Enrollment Form'!$DK440,'Enrollment Form'!$DP440),\"Y\",\"N\"))","v":""},{"$f":"IF($B433=\"N\",\"\",IF(OR('Enrollment Form'!B440<>\"Subscriber\",'Enrollment Form'!C440=\"ROC\",COUNTIF('Enrollment Form'!AS440:AT440,\"Yes\")>=1),\"-\",IF(AND('Enrollment Form'!C440=\"Enroll\",COUNTIF('Enrollment Form'!AS440:AT440,\"No\")=2,'Enrollment Form'!AU440=\"\"),\"N\",\"Y\")))","v":""},{"$f":"IF(OR(B433=\"N\",'Enrollment Form'!B440<>\"Subscriber\",'Enrollment Form'!C440=\"ROC\",'Enrollment Form'!O440<>\"Multiple of Salary\"),\"-\",IF(COUNTA('Enrollment Form'!T440:U440)<2,\"N\",\"Y\"))","v":"-"},{"$f":"IF(B433=\"N\",\"\",IF(OR('Enrollment Form'!C440=\"ROC\",'Enrollment Form'!B440<>\"Subscriber\",'Enrollment Form'!O440=\"Waive\",'Enrollment Form'!O440=\"\"),\"-\",IF('Enrollment Form'!P440=\"\",\"N\",\"Y\")))","v":""},{"$f":"IF($B433=\"N\",\"\",IF(AND('Enrollment Form'!$C440=\"ROC\",'Enrollment Form'!$DS440<>\"\"),\"Y\",IF(AND('Enrollment Form'!$C440=\"ROC\",'Enrollment Form'!$DS440=\"\"),\"N\",IF(AND('Enrollment Form'!$C440=\"Enroll\",'Enrollment Form'!$B440=\"Subscriber\",'Enrollment Form'!$CQ440=\"No\",'Enrollment Form'!$DS440=\"\"),\"N\",IF(AND('Enrollment Form'!$C440=\"Enroll\",'Enrollment Form'!$B440=\"Subscriber\",'Enrollment Form'!$CQ440=\"Yes\"),\"-\",\"Y\")))))","v":""},{"$f":"IF($B433=\"N\",\"\",IF(AND('Enrollment Form'!$C440=\"ROC\",'Enrollment Form'!$DT440<>\"\"),\"Y\",IF(AND('Enrollment Form'!$C440=\"ROC\",'Enrollment Form'!$DT440=\"\"),\"N\",IF(AND('Enrollment Form'!$C440=\"Enroll\",'Enrollment Form'!$B440=\"Subscriber\",'Enrollment Form'!$CQ440=\"No\",'Enrollment Form'!$DT440=\"\"),\"N\",IF(AND('Enrollment Form'!$C440=\"Enroll\",'Enrollment Form'!$B440=\"Subscriber\",'Enrollment Form'!$CQ440=\"Yes\"),\"-\",\"Y\")))))","v":""},{"$f":"IF('Enrollment Form'!AH440=\"\",\"\",IF(ISERROR(SEARCH(\".\",'Enrollment Form'!AH440,SEARCH(\"@\",'Enrollment Form'!AH440))),\"N\",\"Y\"))","v":""},{"$f":"IF(OR($B433=\"N\",'Enrollment Form'!$G440=\"\"),\"\",IF('Enrollment Form'!$B440<>\"Subscriber\",\"-\",IF(COUNTIF('Enrollment Form'!$AS440:$AT440,\"Yes\")=2,\"N\",\"Y\")))","v":""},{"$f":"IF(OR('Enrollment Form'!$CC440=\"\",'Enrollment Form'!$CC440=\"No\"),\"-\",IF(AND('Enrollment Form'!$CC440=\"Yes\",'Enrollment Form'!$CD440=\"\"),\"N\",\"Y\"))","v":"-"},{"$f":"IF(OR('Enrollment Form'!$CE440=\"\",'Enrollment Form'!$CE440=\"No\"),\"-\",IF(AND('Enrollment Form'!$CE440=\"Yes\",'Enrollment Form'!$CF440=\"\"),\"N\",\"Y\"))","v":"-"},{"$f":"IF(OR('Enrollment Form'!$CG440=\"\",'Enrollment Form'!$CG440=\"No\"),\"-\",IF(AND('Enrollment Form'!$CG440=\"Yes\",'Enrollment Form'!$CH440=\"\"),\"N\",\"Y\"))","v":"-"},{"$f":"IF(OR('Enrollment Form'!$CG440=\"\",'Enrollment Form'!$CG440=\"No\"),\"-\",IF(AND('Enrollment Form'!$CG440=\"Yes\",'Enrollment Form'!$CI440=\"\"),\"N\",\"Y\"))","v":"-"},{"$f":"IF('Enrollment Form'!B440<>\"Subscriber\",\"-\",IF(AND('Enrollment Form'!B440=\"Subscriber\",'Enrollment Form'!C440=\"Enroll\",'Enrollment Form'!AA440=\"\"),\"N\",\"Y\"))","v":"-"},{"$f":"IF(OR('Enrollment Form'!B440=\"Subscriber\",'Enrollment Form'!B440=\"\"),\"-\",IF('Enrollment Form'!BI440=\"\",\"N\",\"Y\"))","v":"-"},{"$f":"IF('Enrollment Form'!B440<>\"Subscriber\",\"-\",IF(AND('Enrollment Form'!B440=\"Subscriber\",'Enrollment Form'!G440=\"\"),\"N\",\"Y\"))","v":"-"},{"$f":"IF('Enrollment Form'!A440=\"\",\"\",IF('Enrollment Form'!B440=\"Subscriber\",\"-\",IF(AND('Enrollment Form'!B440<>\"Subscriber\",'Enrollment Form'!G440='Enrollment Form'!H440),\"N\",\"Y\")))","v":""},0]
[441,{"$f":"IF('Enrollment Form'!$A441<>\"\",\"Y\",\"N\")","v":"N"},{"$f":"IF(AND('Enrollment Form'!$B441=\"\",'Enrollment Form'!$C441<>\"\"),\"N\",IF($B434=\"N\",\"\",\"Y\"))","v":""},{"$f":"IF(OR($B434=\"N\",'Enrollment Form'!G441=\"\"),\"\",IF('Enrollment Form'!$B441<>\"Subscriber\",\"\",IF('Enrollment Form'!$G441='Enrollment Form'!$H441,\"Y\",\"N\")))","v":""},{"$f":"IF($B434=\"N\",\"\",IF(AND(COUNTIFS('Enrollment Form'!$H$11:$H$1000,'Enrollment Form'!$H441,'Enrollment Form'!$B$11:$B$1000,'Enrollment Form'!$B441)>1,'Enrollment Form'!$H441<>\"\"),\"N\",\"Y\"))","v":""},{"$f":"IF($B434=\"N\",\"\",IF(LEN('Enrollment Form'!$Y441)=0,\"\",IF(LEN('Enrollment Form'!$Y441)<>5,\"N\",\"Y\")))","v":""},{"$f":"IF($B434=\"N\",\"\",IF(LEN('Enrollment Form'!$AD441=0),\"\",IF(LEN('Enrollment Form'!$AD441)<>5,\"N\",\"Y\")))","v":""},{"$f":"IF($B434=\"N\",\"\",IF(LEN('Enrollment Form'!$BL441=0),\"\",IF(LEN('Enrollment Form'!$BL441)<>5,\"N\",\"Y\")))","v":""},{"$f":"IF($B434=\"N\",\"\",IF(LEN('Enrollment Form'!$AE441)=0,\"\",IF(LEN('Enrollment Form'!$AE441)<>10,\"N\",\"Y\")))","v":""},{"$f":"IF($B434=\"N\",\"\",IF(LEN('Enrollment Form'!$AF441)=0,\"\",IF(LEN('Enrollment Form'!$AF441)<>10,\"N\",\"Y\")))","v":""},{"$f":"IF('Enrollment Form'!$O441<>\"Graded\",\"-\",IF(AND('Enrollment Form'!$O441=\"Graded\",'Enrollment Form'!$AO441<>\"\"),\"Y\",\"N\"))","v":"-"},{"$f":"IF($B434=\"N\",\"\",IF(OR('Enrollment Form'!$B441<>\"Subscriber\",'Enrollment Form'!$C441=\"ROC\"),\"-\",IF(AND('Enrollment Form'!$B441=\"Subscriber\",'Enrollment Form'!$C441=\"Enroll\",'Enrollment Form'!$AJ441<>\"\"),\"Y\",\"N\")))","v":""},{"$f":"IF($B434=\"N\",\"\",IF(OR('Enrollment Form'!$B441<>\"Subscriber\",'Enrollment Form'!$C441=\"ROC\"),\"-\",IF(AND('Enrollment Form'!$B441=\"Subscriber\",'Enrollment Form'!$C441=\"Enroll\",'Enrollment Form'!$AK441<>\"\"),\"Y\",\"N\")))","v":""},{"$f":"IF($B434=\"N\",\"\",IF(OR('Enrollment Form'!$B441<>\"Subscriber\",'Enrollment Form'!$C441=\"ROC\"),\"-\",IF(AND('Enrollment Form'!$B441=\"Subscriber\",'Enrollment Form'!$C441=\"Enroll\",'Enrollment Form'!$AL441<>\"\"),\"Y\",\"N\")))","v":""},{"$f":"IF($B434=\"N\",\"\",IF(OR('Enrollment Form'!$B441<>\"Subscriber\",'Enrollment Form'!$C441=\"ROC\"),\"-\",IF(AND('Enrollment Form'!$B441=\"Subscriber\",'Enrollment Form'!$C441=\"Enroll\",'Enrollment Form'!$AM441<>\"\"),\"Y\",\"N\")))","v":""},{"$f":"IF($B434=\"N\",\"\",IF(OR('Enrollment Form'!$B441<>\"Subscriber\",'Enrollment Form'!$C441=\"ROC\"),\"-\",IF(AND('Enrollment Form'!$B441=\"Subscriber\",'Enrollment Form'!$C441=\"Enroll\",'Enrollment Form'!$AN441<>\"\"),\"Y\",\"N\")))","v":""},{"$f":"IF($B434=\"N\",\"\",IF(OR('Enrollment Form'!$B441<>\"Subscriber\",'Enrollment Form'!$C441=\"ROC\"),\"-\",IF(AND('Enrollment Form'!$B441=\"Subscriber\",'Enrollment Form'!$C441=\"Enroll\",'Enrollment Form'!$AP441<>\"\"),\"Y\",\"N\")))","v":""},{"$f":"IF($B434=\"N\",\"\",IF($Q434=\"-\",\"-\",IF(AND($Q434=\"Y\",'Enrollment Form'!$AP441=\"No\"),\"-\",IF(AND($Q434=\"Y\",'Enrollment Form'!$AP441=\"Yes\",'Enrollment Form'!$AQ441<>\"\"),\"Y\",\"N\"))))","v":""},{"$f":"IF($B434=\"N\",\"\",IF(OR('Enrollment Form'!$B441<>\"Subscriber\",'Enrollment Form'!$C441=\"ROC\"),\"-\",IF(AND('Enrollment Form'!$B441=\"Subscriber\",'Enrollment Form'!$C441=\"Enroll\",'Enrollment Form'!$CO441<>\"\"),\"Y\",\"N\")))","v":""},{"$f":"IF($B434=\"N\",\"\",IF($S434=\"-\",\"-\",IF(AND($S434=\"Y\",'Enrollment Form'!$CO441=\"No\"),\"-\",IF(AND($S434=\"Y\",'Enrollment Form'!$CO441=\"Yes\",'Enrollment Form'!$CP441<>\"\"),\"Y\",\"N\"))))","v":""},{"$f":"IF(OR('Enrollment Form'!$AV441=\"Yes\",'Enrollment Form'!$AV441=\"\"),\"-\",IF(AND('Enrollment Form'!$AV441=\"No\",ISERROR(FIND(\"HMO\",VLOOKUP('Enrollment Form'!G441,'Enrollment Form'!H$11:J$1000,3,FALSE),1))=FALSE,COUNTA('Enrollment Form'!$AW441:$AZ441)=4),\"Y\",\"N\"))","v":"-"},{"$f":"IF($B434=\"N\",\"\",IF('Enrollment Form'!$B441=\"Subscriber\",\"-\",IF(COUNTA('Enrollment Form'!$BE441,'Enrollment Form'!$BG441)=2,\"Y\",\"N\")))","v":""},{"$f":"IF($B434=\"N\",\"\",IF(OR('Enrollment Form'!$AU441=\"\",'Enrollment Form'!$AU441=\"No\"),\"-\",IF(AND('Enrollment Form'!$AU441=\"Yes\",COUNTA('Enrollment Form'!$CK441)=1),\"Y\",\"N\")))","v":""},{"$f":"IF(OR('Enrollment Form'!$CK441=\"\",'Enrollment Form'!$CK441=\"No\"),\"-\",IF(COUNTA('Enrollment Form'!$CM441:$CN441)=2,\"Y\",\"N\"))","v":"-"},{"$f":"IF($B434=\"N\",\"\",IF(COUNTIF('Enrollment Form'!$CZ441:$DO441,\"Other\")=COUNTA('Enrollment Form'!$DF441,'Enrollment Form'!$DA441,'Enrollment Form'!$DK441,'Enrollment Form'!$DP441),\"Y\",\"N\"))","v":""},{"$f":"IF($B434=\"N\",\"\",IF(OR('Enrollment Form'!B441<>\"Subscriber\",'Enrollment Form'!C441=\"ROC\",COUNTIF('Enrollment Form'!AS441:AT441,\"Yes\")>=1),\"-\",IF(AND('Enrollment Form'!C441=\"Enroll\",COUNTIF('Enrollment Form'!AS441:AT441,\"No\")=2,'Enrollment Form'!AU441=\"\"),\"N\",\"Y\")))","v":""},{"$f":"IF(OR(B434=\"N\",'Enrollment Form'!B441<>\"Subscriber\",'Enrollment Form'!C441=\"ROC\",'Enrollment Form'!O441<>\"Multiple of Salary\"),\"-\",IF(COUNTA('Enrollment Form'!T441:U441)<2,\"N\",\"Y\"))","v":"-"},{"$f":"IF(B434=\"N\",\"\",IF(OR('Enrollment Form'!C441=\"ROC\",'Enrollment Form'!B441<>\"Subscriber\",'Enrollment Form'!O441=\"Waive\",'Enrollment Form'!O441=\"\"),\"-\",IF('Enrollment Form'!P441=\"\",\"N\",\"Y\")))","v":""},{"$f":"IF($B434=\"N\",\"\",IF(AND('Enrollment Form'!$C441=\"ROC\",'Enrollment Form'!$DS441<>\"\"),\"Y\",IF(AND('Enrollment Form'!$C441=\"ROC\",'Enrollment Form'!$DS441=\"\"),\"N\",IF(AND('Enrollment Form'!$C441=\"Enroll\",'Enrollment Form'!$B441=\"Subscriber\",'Enrollment Form'!$CQ441=\"No\",'Enrollment Form'!$DS441=\"\"),\"N\",IF(AND('Enrollment Form'!$C441=\"Enroll\",'Enrollment Form'!$B441=\"Subscriber\",'Enrollment Form'!$CQ441=\"Yes\"),\"-\",\"Y\")))))","v":""},{"$f":"IF($B434=\"N\",\"\",IF(AND('Enrollment Form'!$C441=\"ROC\",'Enrollment Form'!$DT441<>\"\"),\"Y\",IF(AND('Enrollment Form'!$C441=\"ROC\",'Enrollment Form'!$DT441=\"\"),\"N\",IF(AND('Enrollment Form'!$C441=\"Enroll\",'Enrollment Form'!$B441=\"Subscriber\",'Enrollment Form'!$CQ441=\"No\",'Enrollment Form'!$DT441=\"\"),\"N\",IF(AND('Enrollment Form'!$C441=\"Enroll\",'Enrollment Form'!$B441=\"Subscriber\",'Enrollment Form'!$CQ441=\"Yes\"),\"-\",\"Y\")))))","v":""},{"$f":"IF('Enrollment Form'!AH441=\"\",\"\",IF(ISERROR(SEARCH(\".\",'Enrollment Form'!AH441,SEARCH(\"@\",'Enrollment Form'!AH441))),\"N\",\"Y\"))","v":""},{"$f":"IF(OR($B434=\"N\",'Enrollment Form'!$G441=\"\"),\"\",IF('Enrollment Form'!$B441<>\"Subscriber\",\"-\",IF(COUNTIF('Enrollment Form'!$AS441:$AT441,\"Yes\")=2,\"N\",\"Y\")))","v":""},{"$f":"IF(OR('Enrollment Form'!$CC441=\"\",'Enrollment Form'!$CC441=\"No\"),\"-\",IF(AND('Enrollment Form'!$CC441=\"Yes\",'Enrollment Form'!$CD441=\"\"),\"N\",\"Y\"))","v":"-"},{"$f":"IF(OR('Enrollment Form'!$CE441=\"\",'Enrollment Form'!$CE441=\"No\"),\"-\",IF(AND('Enrollment Form'!$CE441=\"Yes\",'Enrollment Form'!$CF441=\"\"),\"N\",\"Y\"))","v":"-"},{"$f":"IF(OR('Enrollment Form'!$CG441=\"\",'Enrollment Form'!$CG441=\"No\"),\"-\",IF(AND('Enrollment Form'!$CG441=\"Yes\",'Enrollment Form'!$CH441=\"\"),\"N\",\"Y\"))","v":"-"},{"$f":"IF(OR('Enrollment Form'!$CG441=\"\",'Enrollment Form'!$CG441=\"No\"),\"-\",IF(AND('Enrollment Form'!$CG441=\"Yes\",'Enrollment Form'!$CI441=\"\"),\"N\",\"Y\"))","v":"-"},{"$f":"IF('Enrollment Form'!B441<>\"Subscriber\",\"-\",IF(AND('Enrollment Form'!B441=\"Subscriber\",'Enrollment Form'!C441=\"Enroll\",'Enrollment Form'!AA441=\"\"),\"N\",\"Y\"))","v":"-"},{"$f":"IF(OR('Enrollment Form'!B441=\"Subscriber\",'Enrollment Form'!B441=\"\"),\"-\",IF('Enrollment Form'!BI441=\"\",\"N\",\"Y\"))","v":"-"},{"$f":"IF('Enrollment Form'!B441<>\"Subscriber\",\"-\",IF(AND('Enrollment Form'!B441=\"Subscriber\",'Enrollment Form'!G441=\"\"),\"N\",\"Y\"))","v":"-"},{"$f":"IF('Enrollment Form'!A441=\"\",\"\",IF('Enrollment Form'!B441=\"Subscriber\",\"-\",IF(AND('Enrollment Form'!B441<>\"Subscriber\",'Enrollment Form'!G441='Enrollment Form'!H441),\"N\",\"Y\")))","v":""},0]
[442,{"$f":"IF('Enrollment Form'!$A442<>\"\",\"Y\",\"N\")","v":"N"},{"$f":"IF(AND('Enrollment Form'!$B442=\"\",'Enrollment Form'!$C442<>\"\"),\"N\",IF($B435=\"N\",\"\",\"Y\"))","v":""},{"$f":"IF(OR($B435=\"N\",'Enrollment Form'!G442=\"\"),\"\",IF('Enrollment Form'!$B442<>\"Subscriber\",\"\",IF('Enrollment Form'!$G442='Enrollment Form'!$H442,\"Y\",\"N\")))","v":""},{"$f":"IF($B435=\"N\",\"\",IF(AND(COUNTIFS('Enrollment Form'!$H$11:$H$1000,'Enrollment Form'!$H442,'Enrollment Form'!$B$11:$B$1000,'Enrollment Form'!$B442)>1,'Enrollment Form'!$H442<>\"\"),\"N\",\"Y\"))","v":""},{"$f":"IF($B435=\"N\",\"\",IF(LEN('Enrollment Form'!$Y442)=0,\"\",IF(LEN('Enrollment Form'!$Y442)<>5,\"N\",\"Y\")))","v":""},{"$f":"IF($B435=\"N\",\"\",IF(LEN('Enrollment Form'!$AD442=0),\"\",IF(LEN('Enrollment Form'!$AD442)<>5,\"N\",\"Y\")))","v":""},{"$f":"IF($B435=\"N\",\"\",IF(LEN('Enrollment Form'!$BL442=0),\"\",IF(LEN('Enrollment Form'!$BL442)<>5,\"N\",\"Y\")))","v":""},{"$f":"IF($B435=\"N\",\"\",IF(LEN('Enrollment Form'!$AE442)=0,\"\",IF(LEN('Enrollment Form'!$AE442)<>10,\"N\",\"Y\")))","v":""},{"$f":"IF($B435=\"N\",\"\",IF(LEN('Enrollment Form'!$AF442)=0,\"\",IF(LEN('Enrollment Form'!$AF442)<>10,\"N\",\"Y\")))","v":""},{"$f":"IF('Enrollment Form'!$O442<>\"Graded\",\"-\",IF(AND('Enrollment Form'!$O442=\"Graded\",'Enrollment Form'!$AO442<>\"\"),\"Y\",\"N\"))","v":"-"},{"$f":"IF($B435=\"N\",\"\",IF(OR('Enrollment Form'!$B442<>\"Subscriber\",'Enrollment Form'!$C442=\"ROC\"),\"-\",IF(AND('Enrollment Form'!$B442=\"Subscriber\",'Enrollment Form'!$C442=\"Enroll\",'Enrollment Form'!$AJ442<>\"\"),\"Y\",\"N\")))","v":""},{"$f":"IF($B435=\"N\",\"\",IF(OR('Enrollment Form'!$B442<>\"Subscriber\",'Enrollment Form'!$C442=\"ROC\"),\"-\",IF(AND('Enrollment Form'!$B442=\"Subscriber\",'Enrollment Form'!$C442=\"Enroll\",'Enrollment Form'!$AK442<>\"\"),\"Y\",\"N\")))","v":""},{"$f":"IF($B435=\"N\",\"\",IF(OR('Enrollment Form'!$B442<>\"Subscriber\",'Enrollment Form'!$C442=\"ROC\"),\"-\",IF(AND('Enrollment Form'!$B442=\"Subscriber\",'Enrollment Form'!$C442=\"Enroll\",'Enrollment Form'!$AL442<>\"\"),\"Y\",\"N\")))","v":""},{"$f":"IF($B435=\"N\",\"\",IF(OR('Enrollment Form'!$B442<>\"Subscriber\",'Enrollment Form'!$C442=\"ROC\"),\"-\",IF(AND('Enrollment Form'!$B442=\"Subscriber\",'Enrollment Form'!$C442=\"Enroll\",'Enrollment Form'!$AM442<>\"\"),\"Y\",\"N\")))","v":""},{"$f":"IF($B435=\"N\",\"\",IF(OR('Enrollment Form'!$B442<>\"Subscriber\",'Enrollment Form'!$C442=\"ROC\"),\"-\",IF(AND('Enrollment Form'!$B442=\"Subscriber\",'Enrollment Form'!$C442=\"Enroll\",'Enrollment Form'!$AN442<>\"\"),\"Y\",\"N\")))","v":""},{"$f":"IF($B435=\"N\",\"\",IF(OR('Enrollment Form'!$B442<>\"Subscriber\",'Enrollment Form'!$C442=\"ROC\"),\"-\",IF(AND('Enrollment Form'!$B442=\"Subscriber\",'Enrollment Form'!$C442=\"Enroll\",'Enrollment Form'!$AP442<>\"\"),\"Y\",\"N\")))","v":""},{"$f":"IF($B435=\"N\",\"\",IF($Q435=\"-\",\"-\",IF(AND($Q435=\"Y\",'Enrollment Form'!$AP442=\"No\"),\"-\",IF(AND($Q435=\"Y\",'Enrollment Form'!$AP442=\"Yes\",'Enrollment Form'!$AQ442<>\"\"),\"Y\",\"N\"))))","v":""},{"$f":"IF($B435=\"N\",\"\",IF(OR('Enrollment Form'!$B442<>\"Subscriber\",'Enrollment Form'!$C442=\"ROC\"),\"-\",IF(AND('Enrollment Form'!$B442=\"Subscriber\",'Enrollment Form'!$C442=\"Enroll\",'Enrollment Form'!$CO442<>\"\"),\"Y\",\"N\")))","v":""},{"$f":"IF($B435=\"N\",\"\",IF($S435=\"-\",\"-\",IF(AND($S435=\"Y\",'Enrollment Form'!$CO442=\"No\"),\"-\",IF(AND($S435=\"Y\",'Enrollment Form'!$CO442=\"Yes\",'Enrollment Form'!$CP442<>\"\"),\"Y\",\"N\"))))","v":""},{"$f":"IF(OR('Enrollment Form'!$AV442=\"Yes\",'Enrollment Form'!$AV442=\"\"),\"-\",IF(AND('Enrollment Form'!$AV442=\"No\",ISERROR(FIND(\"HMO\",VLOOKUP('Enrollment Form'!G442,'Enrollment Form'!H$11:J$1000,3,FALSE),1))=FALSE,COUNTA('Enrollment Form'!$AW442:$AZ442)=4),\"Y\",\"N\"))","v":"-"},{"$f":"IF($B435=\"N\",\"\",IF('Enrollment Form'!$B442=\"Subscriber\",\"-\",IF(COUNTA('Enrollment Form'!$BE442,'Enrollment Form'!$BG442)=2,\"Y\",\"N\")))","v":""},{"$f":"IF($B435=\"N\",\"\",IF(OR('Enrollment Form'!$AU442=\"\",'Enrollment Form'!$AU442=\"No\"),\"-\",IF(AND('Enrollment Form'!$AU442=\"Yes\",COUNTA('Enrollment Form'!$CK442)=1),\"Y\",\"N\")))","v":""},{"$f":"IF(OR('Enrollment Form'!$CK442=\"\",'Enrollment Form'!$CK442=\"No\"),\"-\",IF(COUNTA('Enrollment Form'!$CM442:$CN442)=2,\"Y\",\"N\"))","v":"-"},{"$f":"IF($B435=\"N\",\"\",IF(COUNTIF('Enrollment Form'!$CZ442:$DO442,\"Other\")=COUNTA('Enrollment Form'!$DF442,'Enrollment Form'!$DA442,'Enrollment Form'!$DK442,'Enrollment Form'!$DP442),\"Y\",\"N\"))","v":""},{"$f":"IF($B435=\"N\",\"\",IF(OR('Enrollment Form'!B442<>\"Subscriber\",'Enrollment Form'!C442=\"ROC\",COUNTIF('Enrollment Form'!AS442:AT442,\"Yes\")>=1),\"-\",IF(AND('Enrollment Form'!C442=\"Enroll\",COUNTIF('Enrollment Form'!AS442:AT442,\"No\")=2,'Enrollment Form'!AU442=\"\"),\"N\",\"Y\")))","v":""},{"$f":"IF(OR(B435=\"N\",'Enrollment Form'!B442<>\"Subscriber\",'Enrollment Form'!C442=\"ROC\",'Enrollment Form'!O442<>\"Multiple of Salary\"),\"-\",IF(COUNTA('Enrollment Form'!T442:U442)<2,\"N\",\"Y\"))","v":"-"},{"$f":"IF(B435=\"N\",\"\",IF(OR('Enrollment Form'!C442=\"ROC\",'Enrollment Form'!B442<>\"Subscriber\",'Enrollment Form'!O442=\"Waive\",'Enrollment Form'!O442=\"\"),\"-\",IF('Enrollment Form'!P442=\"\",\"N\",\"Y\")))","v":""},{"$f":"IF($B435=\"N\",\"\",IF(AND('Enrollment Form'!$C442=\"ROC\",'Enrollment Form'!$DS442<>\"\"),\"Y\",IF(AND('Enrollment Form'!$C442=\"ROC\",'Enrollment Form'!$DS442=\"\"),\"N\",IF(AND('Enrollment Form'!$C442=\"Enroll\",'Enrollment Form'!$B442=\"Subscriber\",'Enrollment Form'!$CQ442=\"No\",'Enrollment Form'!$DS442=\"\"),\"N\",IF(AND('Enrollment Form'!$C442=\"Enroll\",'Enrollment Form'!$B442=\"Subscriber\",'Enrollment Form'!$CQ442=\"Yes\"),\"-\",\"Y\")))))","v":""},{"$f":"IF($B435=\"N\",\"\",IF(AND('Enrollment Form'!$C442=\"ROC\",'Enrollment Form'!$DT442<>\"\"),\"Y\",IF(AND('Enrollment Form'!$C442=\"ROC\",'Enrollment Form'!$DT442=\"\"),\"N\",IF(AND('Enrollment Form'!$C442=\"Enroll\",'Enrollment Form'!$B442=\"Subscriber\",'Enrollment Form'!$CQ442=\"No\",'Enrollment Form'!$DT442=\"\"),\"N\",IF(AND('Enrollment Form'!$C442=\"Enroll\",'Enrollment Form'!$B442=\"Subscriber\",'Enrollment Form'!$CQ442=\"Yes\"),\"-\",\"Y\")))))","v":""},{"$f":"IF('Enrollment Form'!AH442=\"\",\"\",IF(ISERROR(SEARCH(\".\",'Enrollment Form'!AH442,SEARCH(\"@\",'Enrollment Form'!AH442))),\"N\",\"Y\"))","v":""},{"$f":"IF(OR($B435=\"N\",'Enrollment Form'!$G442=\"\"),\"\",IF('Enrollment Form'!$B442<>\"Subscriber\",\"-\",IF(COUNTIF('Enrollment Form'!$AS442:$AT442,\"Yes\")=2,\"N\",\"Y\")))","v":""},{"$f":"IF(OR('Enrollment Form'!$CC442=\"\",'Enrollment Form'!$CC442=\"No\"),\"-\",IF(AND('Enrollment Form'!$CC442=\"Yes\",'Enrollment Form'!$CD442=\"\"),\"N\",\"Y\"))","v":"-"},{"$f":"IF(OR('Enrollment Form'!$CE442=\"\",'Enrollment Form'!$CE442=\"No\"),\"-\",IF(AND('Enrollment Form'!$CE442=\"Yes\",'Enrollment Form'!$CF442=\"\"),\"N\",\"Y\"))","v":"-"},{"$f":"IF(OR('Enrollment Form'!$CG442=\"\",'Enrollment Form'!$CG442=\"No\"),\"-\",IF(AND('Enrollment Form'!$CG442=\"Yes\",'Enrollment Form'!$CH442=\"\"),\"N\",\"Y\"))","v":"-"},{"$f":"IF(OR('Enrollment Form'!$CG442=\"\",'Enrollment Form'!$CG442=\"No\"),\"-\",IF(AND('Enrollment Form'!$CG442=\"Yes\",'Enrollment Form'!$CI442=\"\"),\"N\",\"Y\"))","v":"-"},{"$f":"IF('Enrollment Form'!B442<>\"Subscriber\",\"-\",IF(AND('Enrollment Form'!B442=\"Subscriber\",'Enrollment Form'!C442=\"Enroll\",'Enrollment Form'!AA442=\"\"),\"N\",\"Y\"))","v":"-"},{"$f":"IF(OR('Enrollment Form'!B442=\"Subscriber\",'Enrollment Form'!B442=\"\"),\"-\",IF('Enrollment Form'!BI442=\"\",\"N\",\"Y\"))","v":"-"},{"$f":"IF('Enrollment Form'!B442<>\"Subscriber\",\"-\",IF(AND('Enrollment Form'!B442=\"Subscriber\",'Enrollment Form'!G442=\"\"),\"N\",\"Y\"))","v":"-"},{"$f":"IF('Enrollment Form'!A442=\"\",\"\",IF('Enrollment Form'!B442=\"Subscriber\",\"-\",IF(AND('Enrollment Form'!B442<>\"Subscriber\",'Enrollment Form'!G442='Enrollment Form'!H442),\"N\",\"Y\")))","v":""},0]
[443,{"$f":"IF('Enrollment Form'!$A443<>\"\",\"Y\",\"N\")","v":"N"},{"$f":"IF(AND('Enrollment Form'!$B443=\"\",'Enrollment Form'!$C443<>\"\"),\"N\",IF($B436=\"N\",\"\",\"Y\"))","v":""},{"$f":"IF(OR($B436=\"N\",'Enrollment Form'!G443=\"\"),\"\",IF('Enrollment Form'!$B443<>\"Subscriber\",\"\",IF('Enrollment Form'!$G443='Enrollment Form'!$H443,\"Y\",\"N\")))","v":""},{"$f":"IF($B436=\"N\",\"\",IF(AND(COUNTIFS('Enrollment Form'!$H$11:$H$1000,'Enrollment Form'!$H443,'Enrollment Form'!$B$11:$B$1000,'Enrollment Form'!$B443)>1,'Enrollment Form'!$H443<>\"\"),\"N\",\"Y\"))","v":""},{"$f":"IF($B436=\"N\",\"\",IF(LEN('Enrollment Form'!$Y443)=0,\"\",IF(LEN('Enrollment Form'!$Y443)<>5,\"N\",\"Y\")))","v":""},{"$f":"IF($B436=\"N\",\"\",IF(LEN('Enrollment Form'!$AD443=0),\"\",IF(LEN('Enrollment Form'!$AD443)<>5,\"N\",\"Y\")))","v":""},{"$f":"IF($B436=\"N\",\"\",IF(LEN('Enrollment Form'!$BL443=0),\"\",IF(LEN('Enrollment Form'!$BL443)<>5,\"N\",\"Y\")))","v":""},{"$f":"IF($B436=\"N\",\"\",IF(LEN('Enrollment Form'!$AE443)=0,\"\",IF(LEN('Enrollment Form'!$AE443)<>10,\"N\",\"Y\")))","v":""},{"$f":"IF($B436=\"N\",\"\",IF(LEN('Enrollment Form'!$AF443)=0,\"\",IF(LEN('Enrollment Form'!$AF443)<>10,\"N\",\"Y\")))","v":""},{"$f":"IF('Enrollment Form'!$O443<>\"Graded\",\"-\",IF(AND('Enrollment Form'!$O443=\"Graded\",'Enrollment Form'!$AO443<>\"\"),\"Y\",\"N\"))","v":"-"},{"$f":"IF($B436=\"N\",\"\",IF(OR('Enrollment Form'!$B443<>\"Subscriber\",'Enrollment Form'!$C443=\"ROC\"),\"-\",IF(AND('Enrollment Form'!$B443=\"Subscriber\",'Enrollment Form'!$C443=\"Enroll\",'Enrollment Form'!$AJ443<>\"\"),\"Y\",\"N\")))","v":""},{"$f":"IF($B436=\"N\",\"\",IF(OR('Enrollment Form'!$B443<>\"Subscriber\",'Enrollment Form'!$C443=\"ROC\"),\"-\",IF(AND('Enrollment Form'!$B443=\"Subscriber\",'Enrollment Form'!$C443=\"Enroll\",'Enrollment Form'!$AK443<>\"\"),\"Y\",\"N\")))","v":""},{"$f":"IF($B436=\"N\",\"\",IF(OR('Enrollment Form'!$B443<>\"Subscriber\",'Enrollment Form'!$C443=\"ROC\"),\"-\",IF(AND('Enrollment Form'!$B443=\"Subscriber\",'Enrollment Form'!$C443=\"Enroll\",'Enrollment Form'!$AL443<>\"\"),\"Y\",\"N\")))","v":""},{"$f":"IF($B436=\"N\",\"\",IF(OR('Enrollment Form'!$B443<>\"Subscriber\",'Enrollment Form'!$C443=\"ROC\"),\"-\",IF(AND('Enrollment Form'!$B443=\"Subscriber\",'Enrollment Form'!$C443=\"Enroll\",'Enrollment Form'!$AM443<>\"\"),\"Y\",\"N\")))","v":""},{"$f":"IF($B436=\"N\",\"\",IF(OR('Enrollment Form'!$B443<>\"Subscriber\",'Enrollment Form'!$C443=\"ROC\"),\"-\",IF(AND('Enrollment Form'!$B443=\"Subscriber\",'Enrollment Form'!$C443=\"Enroll\",'Enrollment Form'!$AN443<>\"\"),\"Y\",\"N\")))","v":""},{"$f":"IF($B436=\"N\",\"\",IF(OR('Enrollment Form'!$B443<>\"Subscriber\",'Enrollment Form'!$C443=\"ROC\"),\"-\",IF(AND('Enrollment Form'!$B443=\"Subscriber\",'Enrollment Form'!$C443=\"Enroll\",'Enrollment Form'!$AP443<>\"\"),\"Y\",\"N\")))","v":""},{"$f":"IF($B436=\"N\",\"\",IF($Q436=\"-\",\"-\",IF(AND($Q436=\"Y\",'Enrollment Form'!$AP443=\"No\"),\"-\",IF(AND($Q436=\"Y\",'Enrollment Form'!$AP443=\"Yes\",'Enrollment Form'!$AQ443<>\"\"),\"Y\",\"N\"))))","v":""},{"$f":"IF($B436=\"N\",\"\",IF(OR('Enrollment Form'!$B443<>\"Subscriber\",'Enrollment Form'!$C443=\"ROC\"),\"-\",IF(AND('Enrollment Form'!$B443=\"Subscriber\",'Enrollment Form'!$C443=\"Enroll\",'Enrollment Form'!$CO443<>\"\"),\"Y\",\"N\")))","v":""},{"$f":"IF($B436=\"N\",\"\",IF($S436=\"-\",\"-\",IF(AND($S436=\"Y\",'Enrollment Form'!$CO443=\"No\"),\"-\",IF(AND($S436=\"Y\",'Enrollment Form'!$CO443=\"Yes\",'Enrollment Form'!$CP443<>\"\"),\"Y\",\"N\"))))","v":""},{"$f":"IF(OR('Enrollment Form'!$AV443=\"Yes\",'Enrollment Form'!$AV443=\"\"),\"-\",IF(AND('Enrollment Form'!$AV443=\"No\",ISERROR(FIND(\"HMO\",VLOOKUP('Enrollment Form'!G443,'Enrollment Form'!H$11:J$1000,3,FALSE),1))=FALSE,COUNTA('Enrollment Form'!$AW443:$AZ443)=4),\"Y\",\"N\"))","v":"-"},{"$f":"IF($B436=\"N\",\"\",IF('Enrollment Form'!$B443=\"Subscriber\",\"-\",IF(COUNTA('Enrollment Form'!$BE443,'Enrollment Form'!$BG443)=2,\"Y\",\"N\")))","v":""},{"$f":"IF($B436=\"N\",\"\",IF(OR('Enrollment Form'!$AU443=\"\",'Enrollment Form'!$AU443=\"No\"),\"-\",IF(AND('Enrollment Form'!$AU443=\"Yes\",COUNTA('Enrollment Form'!$CK443)=1),\"Y\",\"N\")))","v":""},{"$f":"IF(OR('Enrollment Form'!$CK443=\"\",'Enrollment Form'!$CK443=\"No\"),\"-\",IF(COUNTA('Enrollment Form'!$CM443:$CN443)=2,\"Y\",\"N\"))","v":"-"},{"$f":"IF($B436=\"N\",\"\",IF(COUNTIF('Enrollment Form'!$CZ443:$DO443,\"Other\")=COUNTA('Enrollment Form'!$DF443,'Enrollment Form'!$DA443,'Enrollment Form'!$DK443,'Enrollment Form'!$DP443),\"Y\",\"N\"))","v":""},{"$f":"IF($B436=\"N\",\"\",IF(OR('Enrollment Form'!B443<>\"Subscriber\",'Enrollment Form'!C443=\"ROC\",COUNTIF('Enrollment Form'!AS443:AT443,\"Yes\")>=1),\"-\",IF(AND('Enrollment Form'!C443=\"Enroll\",COUNTIF('Enrollment Form'!AS443:AT443,\"No\")=2,'Enrollment Form'!AU443=\"\"),\"N\",\"Y\")))","v":""},{"$f":"IF(OR(B436=\"N\",'Enrollment Form'!B443<>\"Subscriber\",'Enrollment Form'!C443=\"ROC\",'Enrollment Form'!O443<>\"Multiple of Salary\"),\"-\",IF(COUNTA('Enrollment Form'!T443:U443)<2,\"N\",\"Y\"))","v":"-"},{"$f":"IF(B436=\"N\",\"\",IF(OR('Enrollment Form'!C443=\"ROC\",'Enrollment Form'!B443<>\"Subscriber\",'Enrollment Form'!O443=\"Waive\",'Enrollment Form'!O443=\"\"),\"-\",IF('Enrollment Form'!P443=\"\",\"N\",\"Y\")))","v":""},{"$f":"IF($B436=\"N\",\"\",IF(AND('Enrollment Form'!$C443=\"ROC\",'Enrollment Form'!$DS443<>\"\"),\"Y\",IF(AND('Enrollment Form'!$C443=\"ROC\",'Enrollment Form'!$DS443=\"\"),\"N\",IF(AND('Enrollment Form'!$C443=\"Enroll\",'Enrollment Form'!$B443=\"Subscriber\",'Enrollment Form'!$CQ443=\"No\",'Enrollment Form'!$DS443=\"\"),\"N\",IF(AND('Enrollment Form'!$C443=\"Enroll\",'Enrollment Form'!$B443=\"Subscriber\",'Enrollment Form'!$CQ443=\"Yes\"),\"-\",\"Y\")))))","v":""},{"$f":"IF($B436=\"N\",\"\",IF(AND('Enrollment Form'!$C443=\"ROC\",'Enrollment Form'!$DT443<>\"\"),\"Y\",IF(AND('Enrollment Form'!$C443=\"ROC\",'Enrollment Form'!$DT443=\"\"),\"N\",IF(AND('Enrollment Form'!$C443=\"Enroll\",'Enrollment Form'!$B443=\"Subscriber\",'Enrollment Form'!$CQ443=\"No\",'Enrollment Form'!$DT443=\"\"),\"N\",IF(AND('Enrollment Form'!$C443=\"Enroll\",'Enrollment Form'!$B443=\"Subscriber\",'Enrollment Form'!$CQ443=\"Yes\"),\"-\",\"Y\")))))","v":""},{"$f":"IF('Enrollment Form'!AH443=\"\",\"\",IF(ISERROR(SEARCH(\".\",'Enrollment Form'!AH443,SEARCH(\"@\",'Enrollment Form'!AH443))),\"N\",\"Y\"))","v":""},{"$f":"IF(OR($B436=\"N\",'Enrollment Form'!$G443=\"\"),\"\",IF('Enrollment Form'!$B443<>\"Subscriber\",\"-\",IF(COUNTIF('Enrollment Form'!$AS443:$AT443,\"Yes\")=2,\"N\",\"Y\")))","v":""},{"$f":"IF(OR('Enrollment Form'!$CC443=\"\",'Enrollment Form'!$CC443=\"No\"),\"-\",IF(AND('Enrollment Form'!$CC443=\"Yes\",'Enrollment Form'!$CD443=\"\"),\"N\",\"Y\"))","v":"-"},{"$f":"IF(OR('Enrollment Form'!$CE443=\"\",'Enrollment Form'!$CE443=\"No\"),\"-\",IF(AND('Enrollment Form'!$CE443=\"Yes\",'Enrollment Form'!$CF443=\"\"),\"N\",\"Y\"))","v":"-"},{"$f":"IF(OR('Enrollment Form'!$CG443=\"\",'Enrollment Form'!$CG443=\"No\"),\"-\",IF(AND('Enrollment Form'!$CG443=\"Yes\",'Enrollment Form'!$CH443=\"\"),\"N\",\"Y\"))","v":"-"},{"$f":"IF(OR('Enrollment Form'!$CG443=\"\",'Enrollment Form'!$CG443=\"No\"),\"-\",IF(AND('Enrollment Form'!$CG443=\"Yes\",'Enrollment Form'!$CI443=\"\"),\"N\",\"Y\"))","v":"-"},{"$f":"IF('Enrollment Form'!B443<>\"Subscriber\",\"-\",IF(AND('Enrollment Form'!B443=\"Subscriber\",'Enrollment Form'!C443=\"Enroll\",'Enrollment Form'!AA443=\"\"),\"N\",\"Y\"))","v":"-"},{"$f":"IF(OR('Enrollment Form'!B443=\"Subscriber\",'Enrollment Form'!B443=\"\"),\"-\",IF('Enrollment Form'!BI443=\"\",\"N\",\"Y\"))","v":"-"},{"$f":"IF('Enrollment Form'!B443<>\"Subscriber\",\"-\",IF(AND('Enrollment Form'!B443=\"Subscriber\",'Enrollment Form'!G443=\"\"),\"N\",\"Y\"))","v":"-"},{"$f":"IF('Enrollment Form'!A443=\"\",\"\",IF('Enrollment Form'!B443=\"Subscriber\",\"-\",IF(AND('Enrollment Form'!B443<>\"Subscriber\",'Enrollment Form'!G443='Enrollment Form'!H443),\"N\",\"Y\")))","v":""},0]
[444,{"$f":"IF('Enrollment Form'!$A444<>\"\",\"Y\",\"N\")","v":"N"},{"$f":"IF(AND('Enrollment Form'!$B444=\"\",'Enrollment Form'!$C444<>\"\"),\"N\",IF($B437=\"N\",\"\",\"Y\"))","v":""},{"$f":"IF(OR($B437=\"N\",'Enrollment Form'!G444=\"\"),\"\",IF('Enrollment Form'!$B444<>\"Subscriber\",\"\",IF('Enrollment Form'!$G444='Enrollment Form'!$H444,\"Y\",\"N\")))","v":""},{"$f":"IF($B437=\"N\",\"\",IF(AND(COUNTIFS('Enrollment Form'!$H$11:$H$1000,'Enrollment Form'!$H444,'Enrollment Form'!$B$11:$B$1000,'Enrollment Form'!$B444)>1,'Enrollment Form'!$H444<>\"\"),\"N\",\"Y\"))","v":""},{"$f":"IF($B437=\"N\",\"\",IF(LEN('Enrollment Form'!$Y444)=0,\"\",IF(LEN('Enrollment Form'!$Y444)<>5,\"N\",\"Y\")))","v":""},{"$f":"IF($B437=\"N\",\"\",IF(LEN('Enrollment Form'!$AD444=0),\"\",IF(LEN('Enrollment Form'!$AD444)<>5,\"N\",\"Y\")))","v":""},{"$f":"IF($B437=\"N\",\"\",IF(LEN('Enrollment Form'!$BL444=0),\"\",IF(LEN('Enrollment Form'!$BL444)<>5,\"N\",\"Y\")))","v":""},{"$f":"IF($B437=\"N\",\"\",IF(LEN('Enrollment Form'!$AE444)=0,\"\",IF(LEN('Enrollment Form'!$AE444)<>10,\"N\",\"Y\")))","v":""},{"$f":"IF($B437=\"N\",\"\",IF(LEN('Enrollment Form'!$AF444)=0,\"\",IF(LEN('Enrollment Form'!$AF444)<>10,\"N\",\"Y\")))","v":""},{"$f":"IF('Enrollment Form'!$O444<>\"Graded\",\"-\",IF(AND('Enrollment Form'!$O444=\"Graded\",'Enrollment Form'!$AO444<>\"\"),\"Y\",\"N\"))","v":"-"},{"$f":"IF($B437=\"N\",\"\",IF(OR('Enrollment Form'!$B444<>\"Subscriber\",'Enrollment Form'!$C444=\"ROC\"),\"-\",IF(AND('Enrollment Form'!$B444=\"Subscriber\",'Enrollment Form'!$C444=\"Enroll\",'Enrollment Form'!$AJ444<>\"\"),\"Y\",\"N\")))","v":""},{"$f":"IF($B437=\"N\",\"\",IF(OR('Enrollment Form'!$B444<>\"Subscriber\",'Enrollment Form'!$C444=\"ROC\"),\"-\",IF(AND('Enrollment Form'!$B444=\"Subscriber\",'Enrollment Form'!$C444=\"Enroll\",'Enrollment Form'!$AK444<>\"\"),\"Y\",\"N\")))","v":""},{"$f":"IF($B437=\"N\",\"\",IF(OR('Enrollment Form'!$B444<>\"Subscriber\",'Enrollment Form'!$C444=\"ROC\"),\"-\",IF(AND('Enrollment Form'!$B444=\"Subscriber\",'Enrollment Form'!$C444=\"Enroll\",'Enrollment Form'!$AL444<>\"\"),\"Y\",\"N\")))","v":""},{"$f":"IF($B437=\"N\",\"\",IF(OR('Enrollment Form'!$B444<>\"Subscriber\",'Enrollment Form'!$C444=\"ROC\"),\"-\",IF(AND('Enrollment Form'!$B444=\"Subscriber\",'Enrollment Form'!$C444=\"Enroll\",'Enrollment Form'!$AM444<>\"\"),\"Y\",\"N\")))","v":""},{"$f":"IF($B437=\"N\",\"\",IF(OR('Enrollment Form'!$B444<>\"Subscriber\",'Enrollment Form'!$C444=\"ROC\"),\"-\",IF(AND('Enrollment Form'!$B444=\"Subscriber\",'Enrollment Form'!$C444=\"Enroll\",'Enrollment Form'!$AN444<>\"\"),\"Y\",\"N\")))","v":""},{"$f":"IF($B437=\"N\",\"\",IF(OR('Enrollment Form'!$B444<>\"Subscriber\",'Enrollment Form'!$C444=\"ROC\"),\"-\",IF(AND('Enrollment Form'!$B444=\"Subscriber\",'Enrollment Form'!$C444=\"Enroll\",'Enrollment Form'!$AP444<>\"\"),\"Y\",\"N\")))","v":""},{"$f":"IF($B437=\"N\",\"\",IF($Q437=\"-\",\"-\",IF(AND($Q437=\"Y\",'Enrollment Form'!$AP444=\"No\"),\"-\",IF(AND($Q437=\"Y\",'Enrollment Form'!$AP444=\"Yes\",'Enrollment Form'!$AQ444<>\"\"),\"Y\",\"N\"))))","v":""},{"$f":"IF($B437=\"N\",\"\",IF(OR('Enrollment Form'!$B444<>\"Subscriber\",'Enrollment Form'!$C444=\"ROC\"),\"-\",IF(AND('Enrollment Form'!$B444=\"Subscriber\",'Enrollment Form'!$C444=\"Enroll\",'Enrollment Form'!$CO444<>\"\"),\"Y\",\"N\")))","v":""},{"$f":"IF($B437=\"N\",\"\",IF($S437=\"-\",\"-\",IF(AND($S437=\"Y\",'Enrollment Form'!$CO444=\"No\"),\"-\",IF(AND($S437=\"Y\",'Enrollment Form'!$CO444=\"Yes\",'Enrollment Form'!$CP444<>\"\"),\"Y\",\"N\"))))","v":""},{"$f":"IF(OR('Enrollment Form'!$AV444=\"Yes\",'Enrollment Form'!$AV444=\"\"),\"-\",IF(AND('Enrollment Form'!$AV444=\"No\",ISERROR(FIND(\"HMO\",VLOOKUP('Enrollment Form'!G444,'Enrollment Form'!H$11:J$1000,3,FALSE),1))=FALSE,COUNTA('Enrollment Form'!$AW444:$AZ444)=4),\"Y\",\"N\"))","v":"-"},{"$f":"IF($B437=\"N\",\"\",IF('Enrollment Form'!$B444=\"Subscriber\",\"-\",IF(COUNTA('Enrollment Form'!$BE444,'Enrollment Form'!$BG444)=2,\"Y\",\"N\")))","v":""},{"$f":"IF($B437=\"N\",\"\",IF(OR('Enrollment Form'!$AU444=\"\",'Enrollment Form'!$AU444=\"No\"),\"-\",IF(AND('Enrollment Form'!$AU444=\"Yes\",COUNTA('Enrollment Form'!$CK444)=1),\"Y\",\"N\")))","v":""},{"$f":"IF(OR('Enrollment Form'!$CK444=\"\",'Enrollment Form'!$CK444=\"No\"),\"-\",IF(COUNTA('Enrollment Form'!$CM444:$CN444)=2,\"Y\",\"N\"))","v":"-"},{"$f":"IF($B437=\"N\",\"\",IF(COUNTIF('Enrollment Form'!$CZ444:$DO444,\"Other\")=COUNTA('Enrollment Form'!$DF444,'Enrollment Form'!$DA444,'Enrollment Form'!$DK444,'Enrollment Form'!$DP444),\"Y\",\"N\"))","v":""},{"$f":"IF($B437=\"N\",\"\",IF(OR('Enrollment Form'!B444<>\"Subscriber\",'Enrollment Form'!C444=\"ROC\",COUNTIF('Enrollment Form'!AS444:AT444,\"Yes\")>=1),\"-\",IF(AND('Enrollment Form'!C444=\"Enroll\",COUNTIF('Enrollment Form'!AS444:AT444,\"No\")=2,'Enrollment Form'!AU444=\"\"),\"N\",\"Y\")))","v":""},{"$f":"IF(OR(B437=\"N\",'Enrollment Form'!B444<>\"Subscriber\",'Enrollment Form'!C444=\"ROC\",'Enrollment Form'!O444<>\"Multiple of Salary\"),\"-\",IF(COUNTA('Enrollment Form'!T444:U444)<2,\"N\",\"Y\"))","v":"-"},{"$f":"IF(B437=\"N\",\"\",IF(OR('Enrollment Form'!C444=\"ROC\",'Enrollment Form'!B444<>\"Subscriber\",'Enrollment Form'!O444=\"Waive\",'Enrollment Form'!O444=\"\"),\"-\",IF('Enrollment Form'!P444=\"\",\"N\",\"Y\")))","v":""},{"$f":"IF($B437=\"N\",\"\",IF(AND('Enrollment Form'!$C444=\"ROC\",'Enrollment Form'!$DS444<>\"\"),\"Y\",IF(AND('Enrollment Form'!$C444=\"ROC\",'Enrollment Form'!$DS444=\"\"),\"N\",IF(AND('Enrollment Form'!$C444=\"Enroll\",'Enrollment Form'!$B444=\"Subscriber\",'Enrollment Form'!$CQ444=\"No\",'Enrollment Form'!$DS444=\"\"),\"N\",IF(AND('Enrollment Form'!$C444=\"Enroll\",'Enrollment Form'!$B444=\"Subscriber\",'Enrollment Form'!$CQ444=\"Yes\"),\"-\",\"Y\")))))","v":""},{"$f":"IF($B437=\"N\",\"\",IF(AND('Enrollment Form'!$C444=\"ROC\",'Enrollment Form'!$DT444<>\"\"),\"Y\",IF(AND('Enrollment Form'!$C444=\"ROC\",'Enrollment Form'!$DT444=\"\"),\"N\",IF(AND('Enrollment Form'!$C444=\"Enroll\",'Enrollment Form'!$B444=\"Subscriber\",'Enrollment Form'!$CQ444=\"No\",'Enrollment Form'!$DT444=\"\"),\"N\",IF(AND('Enrollment Form'!$C444=\"Enroll\",'Enrollment Form'!$B444=\"Subscriber\",'Enrollment Form'!$CQ444=\"Yes\"),\"-\",\"Y\")))))","v":""},{"$f":"IF('Enrollment Form'!AH444=\"\",\"\",IF(ISERROR(SEARCH(\".\",'Enrollment Form'!AH444,SEARCH(\"@\",'Enrollment Form'!AH444))),\"N\",\"Y\"))","v":""},{"$f":"IF(OR($B437=\"N\",'Enrollment Form'!$G444=\"\"),\"\",IF('Enrollment Form'!$B444<>\"Subscriber\",\"-\",IF(COUNTIF('Enrollment Form'!$AS444:$AT444,\"Yes\")=2,\"N\",\"Y\")))","v":""},{"$f":"IF(OR('Enrollment Form'!$CC444=\"\",'Enrollment Form'!$CC444=\"No\"),\"-\",IF(AND('Enrollment Form'!$CC444=\"Yes\",'Enrollment Form'!$CD444=\"\"),\"N\",\"Y\"))","v":"-"},{"$f":"IF(OR('Enrollment Form'!$CE444=\"\",'Enrollment Form'!$CE444=\"No\"),\"-\",IF(AND('Enrollment Form'!$CE444=\"Yes\",'Enrollment Form'!$CF444=\"\"),\"N\",\"Y\"))","v":"-"},{"$f":"IF(OR('Enrollment Form'!$CG444=\"\",'Enrollment Form'!$CG444=\"No\"),\"-\",IF(AND('Enrollment Form'!$CG444=\"Yes\",'Enrollment Form'!$CH444=\"\"),\"N\",\"Y\"))","v":"-"},{"$f":"IF(OR('Enrollment Form'!$CG444=\"\",'Enrollment Form'!$CG444=\"No\"),\"-\",IF(AND('Enrollment Form'!$CG444=\"Yes\",'Enrollment Form'!$CI444=\"\"),\"N\",\"Y\"))","v":"-"},{"$f":"IF('Enrollment Form'!B444<>\"Subscriber\",\"-\",IF(AND('Enrollment Form'!B444=\"Subscriber\",'Enrollment Form'!C444=\"Enroll\",'Enrollment Form'!AA444=\"\"),\"N\",\"Y\"))","v":"-"},{"$f":"IF(OR('Enrollment Form'!B444=\"Subscriber\",'Enrollment Form'!B444=\"\"),\"-\",IF('Enrollment Form'!BI444=\"\",\"N\",\"Y\"))","v":"-"},{"$f":"IF('Enrollment Form'!B444<>\"Subscriber\",\"-\",IF(AND('Enrollment Form'!B444=\"Subscriber\",'Enrollment Form'!G444=\"\"),\"N\",\"Y\"))","v":"-"},{"$f":"IF('Enrollment Form'!A444=\"\",\"\",IF('Enrollment Form'!B444=\"Subscriber\",\"-\",IF(AND('Enrollment Form'!B444<>\"Subscriber\",'Enrollment Form'!G444='Enrollment Form'!H444),\"N\",\"Y\")))","v":""},0]
[445,{"$f":"IF('Enrollment Form'!$A445<>\"\",\"Y\",\"N\")","v":"N"},{"$f":"IF(AND('Enrollment Form'!$B445=\"\",'Enrollment Form'!$C445<>\"\"),\"N\",IF($B438=\"N\",\"\",\"Y\"))","v":""},{"$f":"IF(OR($B438=\"N\",'Enrollment Form'!G445=\"\"),\"\",IF('Enrollment Form'!$B445<>\"Subscriber\",\"\",IF('Enrollment Form'!$G445='Enrollment Form'!$H445,\"Y\",\"N\")))","v":""},{"$f":"IF($B438=\"N\",\"\",IF(AND(COUNTIFS('Enrollment Form'!$H$11:$H$1000,'Enrollment Form'!$H445,'Enrollment Form'!$B$11:$B$1000,'Enrollment Form'!$B445)>1,'Enrollment Form'!$H445<>\"\"),\"N\",\"Y\"))","v":""},{"$f":"IF($B438=\"N\",\"\",IF(LEN('Enrollment Form'!$Y445)=0,\"\",IF(LEN('Enrollment Form'!$Y445)<>5,\"N\",\"Y\")))","v":""},{"$f":"IF($B438=\"N\",\"\",IF(LEN('Enrollment Form'!$AD445=0),\"\",IF(LEN('Enrollment Form'!$AD445)<>5,\"N\",\"Y\")))","v":""},{"$f":"IF($B438=\"N\",\"\",IF(LEN('Enrollment Form'!$BL445=0),\"\",IF(LEN('Enrollment Form'!$BL445)<>5,\"N\",\"Y\")))","v":""},{"$f":"IF($B438=\"N\",\"\",IF(LEN('Enrollment Form'!$AE445)=0,\"\",IF(LEN('Enrollment Form'!$AE445)<>10,\"N\",\"Y\")))","v":""},{"$f":"IF($B438=\"N\",\"\",IF(LEN('Enrollment Form'!$AF445)=0,\"\",IF(LEN('Enrollment Form'!$AF445)<>10,\"N\",\"Y\")))","v":""},{"$f":"IF('Enrollment Form'!$O445<>\"Graded\",\"-\",IF(AND('Enrollment Form'!$O445=\"Graded\",'Enrollment Form'!$AO445<>\"\"),\"Y\",\"N\"))","v":"-"},{"$f":"IF($B438=\"N\",\"\",IF(OR('Enrollment Form'!$B445<>\"Subscriber\",'Enrollment Form'!$C445=\"ROC\"),\"-\",IF(AND('Enrollment Form'!$B445=\"Subscriber\",'Enrollment Form'!$C445=\"Enroll\",'Enrollment Form'!$AJ445<>\"\"),\"Y\",\"N\")))","v":""},{"$f":"IF($B438=\"N\",\"\",IF(OR('Enrollment Form'!$B445<>\"Subscriber\",'Enrollment Form'!$C445=\"ROC\"),\"-\",IF(AND('Enrollment Form'!$B445=\"Subscriber\",'Enrollment Form'!$C445=\"Enroll\",'Enrollment Form'!$AK445<>\"\"),\"Y\",\"N\")))","v":""},{"$f":"IF($B438=\"N\",\"\",IF(OR('Enrollment Form'!$B445<>\"Subscriber\",'Enrollment Form'!$C445=\"ROC\"),\"-\",IF(AND('Enrollment Form'!$B445=\"Subscriber\",'Enrollment Form'!$C445=\"Enroll\",'Enrollment Form'!$AL445<>\"\"),\"Y\",\"N\")))","v":""},{"$f":"IF($B438=\"N\",\"\",IF(OR('Enrollment Form'!$B445<>\"Subscriber\",'Enrollment Form'!$C445=\"ROC\"),\"-\",IF(AND('Enrollment Form'!$B445=\"Subscriber\",'Enrollment Form'!$C445=\"Enroll\",'Enrollment Form'!$AM445<>\"\"),\"Y\",\"N\")))","v":""},{"$f":"IF($B438=\"N\",\"\",IF(OR('Enrollment Form'!$B445<>\"Subscriber\",'Enrollment Form'!$C445=\"ROC\"),\"-\",IF(AND('Enrollment Form'!$B445=\"Subscriber\",'Enrollment Form'!$C445=\"Enroll\",'Enrollment Form'!$AN445<>\"\"),\"Y\",\"N\")))","v":""},{"$f":"IF($B438=\"N\",\"\",IF(OR('Enrollment Form'!$B445<>\"Subscriber\",'Enrollment Form'!$C445=\"ROC\"),\"-\",IF(AND('Enrollment Form'!$B445=\"Subscriber\",'Enrollment Form'!$C445=\"Enroll\",'Enrollment Form'!$AP445<>\"\"),\"Y\",\"N\")))","v":""},{"$f":"IF($B438=\"N\",\"\",IF($Q438=\"-\",\"-\",IF(AND($Q438=\"Y\",'Enrollment Form'!$AP445=\"No\"),\"-\",IF(AND($Q438=\"Y\",'Enrollment Form'!$AP445=\"Yes\",'Enrollment Form'!$AQ445<>\"\"),\"Y\",\"N\"))))","v":""},{"$f":"IF($B438=\"N\",\"\",IF(OR('Enrollment Form'!$B445<>\"Subscriber\",'Enrollment Form'!$C445=\"ROC\"),\"-\",IF(AND('Enrollment Form'!$B445=\"Subscriber\",'Enrollment Form'!$C445=\"Enroll\",'Enrollment Form'!$CO445<>\"\"),\"Y\",\"N\")))","v":""},{"$f":"IF($B438=\"N\",\"\",IF($S438=\"-\",\"-\",IF(AND($S438=\"Y\",'Enrollment Form'!$CO445=\"No\"),\"-\",IF(AND($S438=\"Y\",'Enrollment Form'!$CO445=\"Yes\",'Enrollment Form'!$CP445<>\"\"),\"Y\",\"N\"))))","v":""},{"$f":"IF(OR('Enrollment Form'!$AV445=\"Yes\",'Enrollment Form'!$AV445=\"\"),\"-\",IF(AND('Enrollment Form'!$AV445=\"No\",ISERROR(FIND(\"HMO\",VLOOKUP('Enrollment Form'!G445,'Enrollment Form'!H$11:J$1000,3,FALSE),1))=FALSE,COUNTA('Enrollment Form'!$AW445:$AZ445)=4),\"Y\",\"N\"))","v":"-"},{"$f":"IF($B438=\"N\",\"\",IF('Enrollment Form'!$B445=\"Subscriber\",\"-\",IF(COUNTA('Enrollment Form'!$BE445,'Enrollment Form'!$BG445)=2,\"Y\",\"N\")))","v":""},{"$f":"IF($B438=\"N\",\"\",IF(OR('Enrollment Form'!$AU445=\"\",'Enrollment Form'!$AU445=\"No\"),\"-\",IF(AND('Enrollment Form'!$AU445=\"Yes\",COUNTA('Enrollment Form'!$CK445)=1),\"Y\",\"N\")))","v":""},{"$f":"IF(OR('Enrollment Form'!$CK445=\"\",'Enrollment Form'!$CK445=\"No\"),\"-\",IF(COUNTA('Enrollment Form'!$CM445:$CN445)=2,\"Y\",\"N\"))","v":"-"},{"$f":"IF($B438=\"N\",\"\",IF(COUNTIF('Enrollment Form'!$CZ445:$DO445,\"Other\")=COUNTA('Enrollment Form'!$DF445,'Enrollment Form'!$DA445,'Enrollment Form'!$DK445,'Enrollment Form'!$DP445),\"Y\",\"N\"))","v":""},{"$f":"IF($B438=\"N\",\"\",IF(OR('Enrollment Form'!B445<>\"Subscriber\",'Enrollment Form'!C445=\"ROC\",COUNTIF('Enrollment Form'!AS445:AT445,\"Yes\")>=1),\"-\",IF(AND('Enrollment Form'!C445=\"Enroll\",COUNTIF('Enrollment Form'!AS445:AT445,\"No\")=2,'Enrollment Form'!AU445=\"\"),\"N\",\"Y\")))","v":""},{"$f":"IF(OR(B438=\"N\",'Enrollment Form'!B445<>\"Subscriber\",'Enrollment Form'!C445=\"ROC\",'Enrollment Form'!O445<>\"Multiple of Salary\"),\"-\",IF(COUNTA('Enrollment Form'!T445:U445)<2,\"N\",\"Y\"))","v":"-"},{"$f":"IF(B438=\"N\",\"\",IF(OR('Enrollment Form'!C445=\"ROC\",'Enrollment Form'!B445<>\"Subscriber\",'Enrollment Form'!O445=\"Waive\",'Enrollment Form'!O445=\"\"),\"-\",IF('Enrollment Form'!P445=\"\",\"N\",\"Y\")))","v":""},{"$f":"IF($B438=\"N\",\"\",IF(AND('Enrollment Form'!$C445=\"ROC\",'Enrollment Form'!$DS445<>\"\"),\"Y\",IF(AND('Enrollment Form'!$C445=\"ROC\",'Enrollment Form'!$DS445=\"\"),\"N\",IF(AND('Enrollment Form'!$C445=\"Enroll\",'Enrollment Form'!$B445=\"Subscriber\",'Enrollment Form'!$CQ445=\"No\",'Enrollment Form'!$DS445=\"\"),\"N\",IF(AND('Enrollment Form'!$C445=\"Enroll\",'Enrollment Form'!$B445=\"Subscriber\",'Enrollment Form'!$CQ445=\"Yes\"),\"-\",\"Y\")))))","v":""},{"$f":"IF($B438=\"N\",\"\",IF(AND('Enrollment Form'!$C445=\"ROC\",'Enrollment Form'!$DT445<>\"\"),\"Y\",IF(AND('Enrollment Form'!$C445=\"ROC\",'Enrollment Form'!$DT445=\"\"),\"N\",IF(AND('Enrollment Form'!$C445=\"Enroll\",'Enrollment Form'!$B445=\"Subscriber\",'Enrollment Form'!$CQ445=\"No\",'Enrollment Form'!$DT445=\"\"),\"N\",IF(AND('Enrollment Form'!$C445=\"Enroll\",'Enrollment Form'!$B445=\"Subscriber\",'Enrollment Form'!$CQ445=\"Yes\"),\"-\",\"Y\")))))","v":""},{"$f":"IF('Enrollment Form'!AH445=\"\",\"\",IF(ISERROR(SEARCH(\".\",'Enrollment Form'!AH445,SEARCH(\"@\",'Enrollment Form'!AH445))),\"N\",\"Y\"))","v":""},{"$f":"IF(OR($B438=\"N\",'Enrollment Form'!$G445=\"\"),\"\",IF('Enrollment Form'!$B445<>\"Subscriber\",\"-\",IF(COUNTIF('Enrollment Form'!$AS445:$AT445,\"Yes\")=2,\"N\",\"Y\")))","v":""},{"$f":"IF(OR('Enrollment Form'!$CC445=\"\",'Enrollment Form'!$CC445=\"No\"),\"-\",IF(AND('Enrollment Form'!$CC445=\"Yes\",'Enrollment Form'!$CD445=\"\"),\"N\",\"Y\"))","v":"-"},{"$f":"IF(OR('Enrollment Form'!$CE445=\"\",'Enrollment Form'!$CE445=\"No\"),\"-\",IF(AND('Enrollment Form'!$CE445=\"Yes\",'Enrollment Form'!$CF445=\"\"),\"N\",\"Y\"))","v":"-"},{"$f":"IF(OR('Enrollment Form'!$CG445=\"\",'Enrollment Form'!$CG445=\"No\"),\"-\",IF(AND('Enrollment Form'!$CG445=\"Yes\",'Enrollment Form'!$CH445=\"\"),\"N\",\"Y\"))","v":"-"},{"$f":"IF(OR('Enrollment Form'!$CG445=\"\",'Enrollment Form'!$CG445=\"No\"),\"-\",IF(AND('Enrollment Form'!$CG445=\"Yes\",'Enrollment Form'!$CI445=\"\"),\"N\",\"Y\"))","v":"-"},{"$f":"IF('Enrollment Form'!B445<>\"Subscriber\",\"-\",IF(AND('Enrollment Form'!B445=\"Subscriber\",'Enrollment Form'!C445=\"Enroll\",'Enrollment Form'!AA445=\"\"),\"N\",\"Y\"))","v":"-"},{"$f":"IF(OR('Enrollment Form'!B445=\"Subscriber\",'Enrollment Form'!B445=\"\"),\"-\",IF('Enrollment Form'!BI445=\"\",\"N\",\"Y\"))","v":"-"},{"$f":"IF('Enrollment Form'!B445<>\"Subscriber\",\"-\",IF(AND('Enrollment Form'!B445=\"Subscriber\",'Enrollment Form'!G445=\"\"),\"N\",\"Y\"))","v":"-"},{"$f":"IF('Enrollment Form'!A445=\"\",\"\",IF('Enrollment Form'!B445=\"Subscriber\",\"-\",IF(AND('Enrollment Form'!B445<>\"Subscriber\",'Enrollment Form'!G445='Enrollment Form'!H445),\"N\",\"Y\")))","v":""},0]
[446,{"$f":"IF('Enrollment Form'!$A446<>\"\",\"Y\",\"N\")","v":"N"},{"$f":"IF(AND('Enrollment Form'!$B446=\"\",'Enrollment Form'!$C446<>\"\"),\"N\",IF($B439=\"N\",\"\",\"Y\"))","v":""},{"$f":"IF(OR($B439=\"N\",'Enrollment Form'!G446=\"\"),\"\",IF('Enrollment Form'!$B446<>\"Subscriber\",\"\",IF('Enrollment Form'!$G446='Enrollment Form'!$H446,\"Y\",\"N\")))","v":""},{"$f":"IF($B439=\"N\",\"\",IF(AND(COUNTIFS('Enrollment Form'!$H$11:$H$1000,'Enrollment Form'!$H446,'Enrollment Form'!$B$11:$B$1000,'Enrollment Form'!$B446)>1,'Enrollment Form'!$H446<>\"\"),\"N\",\"Y\"))","v":""},{"$f":"IF($B439=\"N\",\"\",IF(LEN('Enrollment Form'!$Y446)=0,\"\",IF(LEN('Enrollment Form'!$Y446)<>5,\"N\",\"Y\")))","v":""},{"$f":"IF($B439=\"N\",\"\",IF(LEN('Enrollment Form'!$AD446=0),\"\",IF(LEN('Enrollment Form'!$AD446)<>5,\"N\",\"Y\")))","v":""},{"$f":"IF($B439=\"N\",\"\",IF(LEN('Enrollment Form'!$BL446=0),\"\",IF(LEN('Enrollment Form'!$BL446)<>5,\"N\",\"Y\")))","v":""},{"$f":"IF($B439=\"N\",\"\",IF(LEN('Enrollment Form'!$AE446)=0,\"\",IF(LEN('Enrollment Form'!$AE446)<>10,\"N\",\"Y\")))","v":""},{"$f":"IF($B439=\"N\",\"\",IF(LEN('Enrollment Form'!$AF446)=0,\"\",IF(LEN('Enrollment Form'!$AF446)<>10,\"N\",\"Y\")))","v":""},{"$f":"IF('Enrollment Form'!$O446<>\"Graded\",\"-\",IF(AND('Enrollment Form'!$O446=\"Graded\",'Enrollment Form'!$AO446<>\"\"),\"Y\",\"N\"))","v":"-"},{"$f":"IF($B439=\"N\",\"\",IF(OR('Enrollment Form'!$B446<>\"Subscriber\",'Enrollment Form'!$C446=\"ROC\"),\"-\",IF(AND('Enrollment Form'!$B446=\"Subscriber\",'Enrollment Form'!$C446=\"Enroll\",'Enrollment Form'!$AJ446<>\"\"),\"Y\",\"N\")))","v":""},{"$f":"IF($B439=\"N\",\"\",IF(OR('Enrollment Form'!$B446<>\"Subscriber\",'Enrollment Form'!$C446=\"ROC\"),\"-\",IF(AND('Enrollment Form'!$B446=\"Subscriber\",'Enrollment Form'!$C446=\"Enroll\",'Enrollment Form'!$AK446<>\"\"),\"Y\",\"N\")))","v":""},{"$f":"IF($B439=\"N\",\"\",IF(OR('Enrollment Form'!$B446<>\"Subscriber\",'Enrollment Form'!$C446=\"ROC\"),\"-\",IF(AND('Enrollment Form'!$B446=\"Subscriber\",'Enrollment Form'!$C446=\"Enroll\",'Enrollment Form'!$AL446<>\"\"),\"Y\",\"N\")))","v":""},{"$f":"IF($B439=\"N\",\"\",IF(OR('Enrollment Form'!$B446<>\"Subscriber\",'Enrollment Form'!$C446=\"ROC\"),\"-\",IF(AND('Enrollment Form'!$B446=\"Subscriber\",'Enrollment Form'!$C446=\"Enroll\",'Enrollment Form'!$AM446<>\"\"),\"Y\",\"N\")))","v":""},{"$f":"IF($B439=\"N\",\"\",IF(OR('Enrollment Form'!$B446<>\"Subscriber\",'Enrollment Form'!$C446=\"ROC\"),\"-\",IF(AND('Enrollment Form'!$B446=\"Subscriber\",'Enrollment Form'!$C446=\"Enroll\",'Enrollment Form'!$AN446<>\"\"),\"Y\",\"N\")))","v":""},{"$f":"IF($B439=\"N\",\"\",IF(OR('Enrollment Form'!$B446<>\"Subscriber\",'Enrollment Form'!$C446=\"ROC\"),\"-\",IF(AND('Enrollment Form'!$B446=\"Subscriber\",'Enrollment Form'!$C446=\"Enroll\",'Enrollment Form'!$AP446<>\"\"),\"Y\",\"N\")))","v":""},{"$f":"IF($B439=\"N\",\"\",IF($Q439=\"-\",\"-\",IF(AND($Q439=\"Y\",'Enrollment Form'!$AP446=\"No\"),\"-\",IF(AND($Q439=\"Y\",'Enrollment Form'!$AP446=\"Yes\",'Enrollment Form'!$AQ446<>\"\"),\"Y\",\"N\"))))","v":""},{"$f":"IF($B439=\"N\",\"\",IF(OR('Enrollment Form'!$B446<>\"Subscriber\",'Enrollment Form'!$C446=\"ROC\"),\"-\",IF(AND('Enrollment Form'!$B446=\"Subscriber\",'Enrollment Form'!$C446=\"Enroll\",'Enrollment Form'!$CO446<>\"\"),\"Y\",\"N\")))","v":""},{"$f":"IF($B439=\"N\",\"\",IF($S439=\"-\",\"-\",IF(AND($S439=\"Y\",'Enrollment Form'!$CO446=\"No\"),\"-\",IF(AND($S439=\"Y\",'Enrollment Form'!$CO446=\"Yes\",'Enrollment Form'!$CP446<>\"\"),\"Y\",\"N\"))))","v":""},{"$f":"IF(OR('Enrollment Form'!$AV446=\"Yes\",'Enrollment Form'!$AV446=\"\"),\"-\",IF(AND('Enrollment Form'!$AV446=\"No\",ISERROR(FIND(\"HMO\",VLOOKUP('Enrollment Form'!G446,'Enrollment Form'!H$11:J$1000,3,FALSE),1))=FALSE,COUNTA('Enrollment Form'!$AW446:$AZ446)=4),\"Y\",\"N\"))","v":"-"},{"$f":"IF($B439=\"N\",\"\",IF('Enrollment Form'!$B446=\"Subscriber\",\"-\",IF(COUNTA('Enrollment Form'!$BE446,'Enrollment Form'!$BG446)=2,\"Y\",\"N\")))","v":""},{"$f":"IF($B439=\"N\",\"\",IF(OR('Enrollment Form'!$AU446=\"\",'Enrollment Form'!$AU446=\"No\"),\"-\",IF(AND('Enrollment Form'!$AU446=\"Yes\",COUNTA('Enrollment Form'!$CK446)=1),\"Y\",\"N\")))","v":""},{"$f":"IF(OR('Enrollment Form'!$CK446=\"\",'Enrollment Form'!$CK446=\"No\"),\"-\",IF(COUNTA('Enrollment Form'!$CM446:$CN446)=2,\"Y\",\"N\"))","v":"-"},{"$f":"IF($B439=\"N\",\"\",IF(COUNTIF('Enrollment Form'!$CZ446:$DO446,\"Other\")=COUNTA('Enrollment Form'!$DF446,'Enrollment Form'!$DA446,'Enrollment Form'!$DK446,'Enrollment Form'!$DP446),\"Y\",\"N\"))","v":""},{"$f":"IF($B439=\"N\",\"\",IF(OR('Enrollment Form'!B446<>\"Subscriber\",'Enrollment Form'!C446=\"ROC\",COUNTIF('Enrollment Form'!AS446:AT446,\"Yes\")>=1),\"-\",IF(AND('Enrollment Form'!C446=\"Enroll\",COUNTIF('Enrollment Form'!AS446:AT446,\"No\")=2,'Enrollment Form'!AU446=\"\"),\"N\",\"Y\")))","v":""},{"$f":"IF(OR(B439=\"N\",'Enrollment Form'!B446<>\"Subscriber\",'Enrollment Form'!C446=\"ROC\",'Enrollment Form'!O446<>\"Multiple of Salary\"),\"-\",IF(COUNTA('Enrollment Form'!T446:U446)<2,\"N\",\"Y\"))","v":"-"},{"$f":"IF(B439=\"N\",\"\",IF(OR('Enrollment Form'!C446=\"ROC\",'Enrollment Form'!B446<>\"Subscriber\",'Enrollment Form'!O446=\"Waive\",'Enrollment Form'!O446=\"\"),\"-\",IF('Enrollment Form'!P446=\"\",\"N\",\"Y\")))","v":""},{"$f":"IF($B439=\"N\",\"\",IF(AND('Enrollment Form'!$C446=\"ROC\",'Enrollment Form'!$DS446<>\"\"),\"Y\",IF(AND('Enrollment Form'!$C446=\"ROC\",'Enrollment Form'!$DS446=\"\"),\"N\",IF(AND('Enrollment Form'!$C446=\"Enroll\",'Enrollment Form'!$B446=\"Subscriber\",'Enrollment Form'!$CQ446=\"No\",'Enrollment Form'!$DS446=\"\"),\"N\",IF(AND('Enrollment Form'!$C446=\"Enroll\",'Enrollment Form'!$B446=\"Subscriber\",'Enrollment Form'!$CQ446=\"Yes\"),\"-\",\"Y\")))))","v":""},{"$f":"IF($B439=\"N\",\"\",IF(AND('Enrollment Form'!$C446=\"ROC\",'Enrollment Form'!$DT446<>\"\"),\"Y\",IF(AND('Enrollment Form'!$C446=\"ROC\",'Enrollment Form'!$DT446=\"\"),\"N\",IF(AND('Enrollment Form'!$C446=\"Enroll\",'Enrollment Form'!$B446=\"Subscriber\",'Enrollment Form'!$CQ446=\"No\",'Enrollment Form'!$DT446=\"\"),\"N\",IF(AND('Enrollment Form'!$C446=\"Enroll\",'Enrollment Form'!$B446=\"Subscriber\",'Enrollment Form'!$CQ446=\"Yes\"),\"-\",\"Y\")))))","v":""},{"$f":"IF('Enrollment Form'!AH446=\"\",\"\",IF(ISERROR(SEARCH(\".\",'Enrollment Form'!AH446,SEARCH(\"@\",'Enrollment Form'!AH446))),\"N\",\"Y\"))","v":""},{"$f":"IF(OR($B439=\"N\",'Enrollment Form'!$G446=\"\"),\"\",IF('Enrollment Form'!$B446<>\"Subscriber\",\"-\",IF(COUNTIF('Enrollment Form'!$AS446:$AT446,\"Yes\")=2,\"N\",\"Y\")))","v":""},{"$f":"IF(OR('Enrollment Form'!$CC446=\"\",'Enrollment Form'!$CC446=\"No\"),\"-\",IF(AND('Enrollment Form'!$CC446=\"Yes\",'Enrollment Form'!$CD446=\"\"),\"N\",\"Y\"))","v":"-"},{"$f":"IF(OR('Enrollment Form'!$CE446=\"\",'Enrollment Form'!$CE446=\"No\"),\"-\",IF(AND('Enrollment Form'!$CE446=\"Yes\",'Enrollment Form'!$CF446=\"\"),\"N\",\"Y\"))","v":"-"},{"$f":"IF(OR('Enrollment Form'!$CG446=\"\",'Enrollment Form'!$CG446=\"No\"),\"-\",IF(AND('Enrollment Form'!$CG446=\"Yes\",'Enrollment Form'!$CH446=\"\"),\"N\",\"Y\"))","v":"-"},{"$f":"IF(OR('Enrollment Form'!$CG446=\"\",'Enrollment Form'!$CG446=\"No\"),\"-\",IF(AND('Enrollment Form'!$CG446=\"Yes\",'Enrollment Form'!$CI446=\"\"),\"N\",\"Y\"))","v":"-"},{"$f":"IF('Enrollment Form'!B446<>\"Subscriber\",\"-\",IF(AND('Enrollment Form'!B446=\"Subscriber\",'Enrollment Form'!C446=\"Enroll\",'Enrollment Form'!AA446=\"\"),\"N\",\"Y\"))","v":"-"},{"$f":"IF(OR('Enrollment Form'!B446=\"Subscriber\",'Enrollment Form'!B446=\"\"),\"-\",IF('Enrollment Form'!BI446=\"\",\"N\",\"Y\"))","v":"-"},{"$f":"IF('Enrollment Form'!B446<>\"Subscriber\",\"-\",IF(AND('Enrollment Form'!B446=\"Subscriber\",'Enrollment Form'!G446=\"\"),\"N\",\"Y\"))","v":"-"},{"$f":"IF('Enrollment Form'!A446=\"\",\"\",IF('Enrollment Form'!B446=\"Subscriber\",\"-\",IF(AND('Enrollment Form'!B446<>\"Subscriber\",'Enrollment Form'!G446='Enrollment Form'!H446),\"N\",\"Y\")))","v":""},0]
[447,{"$f":"IF('Enrollment Form'!$A447<>\"\",\"Y\",\"N\")","v":"N"},{"$f":"IF(AND('Enrollment Form'!$B447=\"\",'Enrollment Form'!$C447<>\"\"),\"N\",IF($B440=\"N\",\"\",\"Y\"))","v":""},{"$f":"IF(OR($B440=\"N\",'Enrollment Form'!G447=\"\"),\"\",IF('Enrollment Form'!$B447<>\"Subscriber\",\"\",IF('Enrollment Form'!$G447='Enrollment Form'!$H447,\"Y\",\"N\")))","v":""},{"$f":"IF($B440=\"N\",\"\",IF(AND(COUNTIFS('Enrollment Form'!$H$11:$H$1000,'Enrollment Form'!$H447,'Enrollment Form'!$B$11:$B$1000,'Enrollment Form'!$B447)>1,'Enrollment Form'!$H447<>\"\"),\"N\",\"Y\"))","v":""},{"$f":"IF($B440=\"N\",\"\",IF(LEN('Enrollment Form'!$Y447)=0,\"\",IF(LEN('Enrollment Form'!$Y447)<>5,\"N\",\"Y\")))","v":""},{"$f":"IF($B440=\"N\",\"\",IF(LEN('Enrollment Form'!$AD447=0),\"\",IF(LEN('Enrollment Form'!$AD447)<>5,\"N\",\"Y\")))","v":""},{"$f":"IF($B440=\"N\",\"\",IF(LEN('Enrollment Form'!$BL447=0),\"\",IF(LEN('Enrollment Form'!$BL447)<>5,\"N\",\"Y\")))","v":""},{"$f":"IF($B440=\"N\",\"\",IF(LEN('Enrollment Form'!$AE447)=0,\"\",IF(LEN('Enrollment Form'!$AE447)<>10,\"N\",\"Y\")))","v":""},{"$f":"IF($B440=\"N\",\"\",IF(LEN('Enrollment Form'!$AF447)=0,\"\",IF(LEN('Enrollment Form'!$AF447)<>10,\"N\",\"Y\")))","v":""},{"$f":"IF('Enrollment Form'!$O447<>\"Graded\",\"-\",IF(AND('Enrollment Form'!$O447=\"Graded\",'Enrollment Form'!$AO447<>\"\"),\"Y\",\"N\"))","v":"-"},{"$f":"IF($B440=\"N\",\"\",IF(OR('Enrollment Form'!$B447<>\"Subscriber\",'Enrollment Form'!$C447=\"ROC\"),\"-\",IF(AND('Enrollment Form'!$B447=\"Subscriber\",'Enrollment Form'!$C447=\"Enroll\",'Enrollment Form'!$AJ447<>\"\"),\"Y\",\"N\")))","v":""},{"$f":"IF($B440=\"N\",\"\",IF(OR('Enrollment Form'!$B447<>\"Subscriber\",'Enrollment Form'!$C447=\"ROC\"),\"-\",IF(AND('Enrollment Form'!$B447=\"Subscriber\",'Enrollment Form'!$C447=\"Enroll\",'Enrollment Form'!$AK447<>\"\"),\"Y\",\"N\")))","v":""},{"$f":"IF($B440=\"N\",\"\",IF(OR('Enrollment Form'!$B447<>\"Subscriber\",'Enrollment Form'!$C447=\"ROC\"),\"-\",IF(AND('Enrollment Form'!$B447=\"Subscriber\",'Enrollment Form'!$C447=\"Enroll\",'Enrollment Form'!$AL447<>\"\"),\"Y\",\"N\")))","v":""},{"$f":"IF($B440=\"N\",\"\",IF(OR('Enrollment Form'!$B447<>\"Subscriber\",'Enrollment Form'!$C447=\"ROC\"),\"-\",IF(AND('Enrollment Form'!$B447=\"Subscriber\",'Enrollment Form'!$C447=\"Enroll\",'Enrollment Form'!$AM447<>\"\"),\"Y\",\"N\")))","v":""},{"$f":"IF($B440=\"N\",\"\",IF(OR('Enrollment Form'!$B447<>\"Subscriber\",'Enrollment Form'!$C447=\"ROC\"),\"-\",IF(AND('Enrollment Form'!$B447=\"Subscriber\",'Enrollment Form'!$C447=\"Enroll\",'Enrollment Form'!$AN447<>\"\"),\"Y\",\"N\")))","v":""},{"$f":"IF($B440=\"N\",\"\",IF(OR('Enrollment Form'!$B447<>\"Subscriber\",'Enrollment Form'!$C447=\"ROC\"),\"-\",IF(AND('Enrollment Form'!$B447=\"Subscriber\",'Enrollment Form'!$C447=\"Enroll\",'Enrollment Form'!$AP447<>\"\"),\"Y\",\"N\")))","v":""},{"$f":"IF($B440=\"N\",\"\",IF($Q440=\"-\",\"-\",IF(AND($Q440=\"Y\",'Enrollment Form'!$AP447=\"No\"),\"-\",IF(AND($Q440=\"Y\",'Enrollment Form'!$AP447=\"Yes\",'Enrollment Form'!$AQ447<>\"\"),\"Y\",\"N\"))))","v":""},{"$f":"IF($B440=\"N\",\"\",IF(OR('Enrollment Form'!$B447<>\"Subscriber\",'Enrollment Form'!$C447=\"ROC\"),\"-\",IF(AND('Enrollment Form'!$B447=\"Subscriber\",'Enrollment Form'!$C447=\"Enroll\",'Enrollment Form'!$CO447<>\"\"),\"Y\",\"N\")))","v":""},{"$f":"IF($B440=\"N\",\"\",IF($S440=\"-\",\"-\",IF(AND($S440=\"Y\",'Enrollment Form'!$CO447=\"No\"),\"-\",IF(AND($S440=\"Y\",'Enrollment Form'!$CO447=\"Yes\",'Enrollment Form'!$CP447<>\"\"),\"Y\",\"N\"))))","v":""},{"$f":"IF(OR('Enrollment Form'!$AV447=\"Yes\",'Enrollment Form'!$AV447=\"\"),\"-\",IF(AND('Enrollment Form'!$AV447=\"No\",ISERROR(FIND(\"HMO\",VLOOKUP('Enrollment Form'!G447,'Enrollment Form'!H$11:J$1000,3,FALSE),1))=FALSE,COUNTA('Enrollment Form'!$AW447:$AZ447)=4),\"Y\",\"N\"))","v":"-"},{"$f":"IF($B440=\"N\",\"\",IF('Enrollment Form'!$B447=\"Subscriber\",\"-\",IF(COUNTA('Enrollment Form'!$BE447,'Enrollment Form'!$BG447)=2,\"Y\",\"N\")))","v":""},{"$f":"IF($B440=\"N\",\"\",IF(OR('Enrollment Form'!$AU447=\"\",'Enrollment Form'!$AU447=\"No\"),\"-\",IF(AND('Enrollment Form'!$AU447=\"Yes\",COUNTA('Enrollment Form'!$CK447)=1),\"Y\",\"N\")))","v":""},{"$f":"IF(OR('Enrollment Form'!$CK447=\"\",'Enrollment Form'!$CK447=\"No\"),\"-\",IF(COUNTA('Enrollment Form'!$CM447:$CN447)=2,\"Y\",\"N\"))","v":"-"},{"$f":"IF($B440=\"N\",\"\",IF(COUNTIF('Enrollment Form'!$CZ447:$DO447,\"Other\")=COUNTA('Enrollment Form'!$DF447,'Enrollment Form'!$DA447,'Enrollment Form'!$DK447,'Enrollment Form'!$DP447),\"Y\",\"N\"))","v":""},{"$f":"IF($B440=\"N\",\"\",IF(OR('Enrollment Form'!B447<>\"Subscriber\",'Enrollment Form'!C447=\"ROC\",COUNTIF('Enrollment Form'!AS447:AT447,\"Yes\")>=1),\"-\",IF(AND('Enrollment Form'!C447=\"Enroll\",COUNTIF('Enrollment Form'!AS447:AT447,\"No\")=2,'Enrollment Form'!AU447=\"\"),\"N\",\"Y\")))","v":""},{"$f":"IF(OR(B440=\"N\",'Enrollment Form'!B447<>\"Subscriber\",'Enrollment Form'!C447=\"ROC\",'Enrollment Form'!O447<>\"Multiple of Salary\"),\"-\",IF(COUNTA('Enrollment Form'!T447:U447)<2,\"N\",\"Y\"))","v":"-"},{"$f":"IF(B440=\"N\",\"\",IF(OR('Enrollment Form'!C447=\"ROC\",'Enrollment Form'!B447<>\"Subscriber\",'Enrollment Form'!O447=\"Waive\",'Enrollment Form'!O447=\"\"),\"-\",IF('Enrollment Form'!P447=\"\",\"N\",\"Y\")))","v":""},{"$f":"IF($B440=\"N\",\"\",IF(AND('Enrollment Form'!$C447=\"ROC\",'Enrollment Form'!$DS447<>\"\"),\"Y\",IF(AND('Enrollment Form'!$C447=\"ROC\",'Enrollment Form'!$DS447=\"\"),\"N\",IF(AND('Enrollment Form'!$C447=\"Enroll\",'Enrollment Form'!$B447=\"Subscriber\",'Enrollment Form'!$CQ447=\"No\",'Enrollment Form'!$DS447=\"\"),\"N\",IF(AND('Enrollment Form'!$C447=\"Enroll\",'Enrollment Form'!$B447=\"Subscriber\",'Enrollment Form'!$CQ447=\"Yes\"),\"-\",\"Y\")))))","v":""},{"$f":"IF($B440=\"N\",\"\",IF(AND('Enrollment Form'!$C447=\"ROC\",'Enrollment Form'!$DT447<>\"\"),\"Y\",IF(AND('Enrollment Form'!$C447=\"ROC\",'Enrollment Form'!$DT447=\"\"),\"N\",IF(AND('Enrollment Form'!$C447=\"Enroll\",'Enrollment Form'!$B447=\"Subscriber\",'Enrollment Form'!$CQ447=\"No\",'Enrollment Form'!$DT447=\"\"),\"N\",IF(AND('Enrollment Form'!$C447=\"Enroll\",'Enrollment Form'!$B447=\"Subscriber\",'Enrollment Form'!$CQ447=\"Yes\"),\"-\",\"Y\")))))","v":""},{"$f":"IF('Enrollment Form'!AH447=\"\",\"\",IF(ISERROR(SEARCH(\".\",'Enrollment Form'!AH447,SEARCH(\"@\",'Enrollment Form'!AH447))),\"N\",\"Y\"))","v":""},{"$f":"IF(OR($B440=\"N\",'Enrollment Form'!$G447=\"\"),\"\",IF('Enrollment Form'!$B447<>\"Subscriber\",\"-\",IF(COUNTIF('Enrollment Form'!$AS447:$AT447,\"Yes\")=2,\"N\",\"Y\")))","v":""},{"$f":"IF(OR('Enrollment Form'!$CC447=\"\",'Enrollment Form'!$CC447=\"No\"),\"-\",IF(AND('Enrollment Form'!$CC447=\"Yes\",'Enrollment Form'!$CD447=\"\"),\"N\",\"Y\"))","v":"-"},{"$f":"IF(OR('Enrollment Form'!$CE447=\"\",'Enrollment Form'!$CE447=\"No\"),\"-\",IF(AND('Enrollment Form'!$CE447=\"Yes\",'Enrollment Form'!$CF447=\"\"),\"N\",\"Y\"))","v":"-"},{"$f":"IF(OR('Enrollment Form'!$CG447=\"\",'Enrollment Form'!$CG447=\"No\"),\"-\",IF(AND('Enrollment Form'!$CG447=\"Yes\",'Enrollment Form'!$CH447=\"\"),\"N\",\"Y\"))","v":"-"},{"$f":"IF(OR('Enrollment Form'!$CG447=\"\",'Enrollment Form'!$CG447=\"No\"),\"-\",IF(AND('Enrollment Form'!$CG447=\"Yes\",'Enrollment Form'!$CI447=\"\"),\"N\",\"Y\"))","v":"-"},{"$f":"IF('Enrollment Form'!B447<>\"Subscriber\",\"-\",IF(AND('Enrollment Form'!B447=\"Subscriber\",'Enrollment Form'!C447=\"Enroll\",'Enrollment Form'!AA447=\"\"),\"N\",\"Y\"))","v":"-"},{"$f":"IF(OR('Enrollment Form'!B447=\"Subscriber\",'Enrollment Form'!B447=\"\"),\"-\",IF('Enrollment Form'!BI447=\"\",\"N\",\"Y\"))","v":"-"},{"$f":"IF('Enrollment Form'!B447<>\"Subscriber\",\"-\",IF(AND('Enrollment Form'!B447=\"Subscriber\",'Enrollment Form'!G447=\"\"),\"N\",\"Y\"))","v":"-"},{"$f":"IF('Enrollment Form'!A447=\"\",\"\",IF('Enrollment Form'!B447=\"Subscriber\",\"-\",IF(AND('Enrollment Form'!B447<>\"Subscriber\",'Enrollment Form'!G447='Enrollment Form'!H447),\"N\",\"Y\")))","v":""},0]
[448,{"$f":"IF('Enrollment Form'!$A448<>\"\",\"Y\",\"N\")","v":"N"},{"$f":"IF(AND('Enrollment Form'!$B448=\"\",'Enrollment Form'!$C448<>\"\"),\"N\",IF($B441=\"N\",\"\",\"Y\"))","v":""},{"$f":"IF(OR($B441=\"N\",'Enrollment Form'!G448=\"\"),\"\",IF('Enrollment Form'!$B448<>\"Subscriber\",\"\",IF('Enrollment Form'!$G448='Enrollment Form'!$H448,\"Y\",\"N\")))","v":""},{"$f":"IF($B441=\"N\",\"\",IF(AND(COUNTIFS('Enrollment Form'!$H$11:$H$1000,'Enrollment Form'!$H448,'Enrollment Form'!$B$11:$B$1000,'Enrollment Form'!$B448)>1,'Enrollment Form'!$H448<>\"\"),\"N\",\"Y\"))","v":""},{"$f":"IF($B441=\"N\",\"\",IF(LEN('Enrollment Form'!$Y448)=0,\"\",IF(LEN('Enrollment Form'!$Y448)<>5,\"N\",\"Y\")))","v":""},{"$f":"IF($B441=\"N\",\"\",IF(LEN('Enrollment Form'!$AD448=0),\"\",IF(LEN('Enrollment Form'!$AD448)<>5,\"N\",\"Y\")))","v":""},{"$f":"IF($B441=\"N\",\"\",IF(LEN('Enrollment Form'!$BL448=0),\"\",IF(LEN('Enrollment Form'!$BL448)<>5,\"N\",\"Y\")))","v":""},{"$f":"IF($B441=\"N\",\"\",IF(LEN('Enrollment Form'!$AE448)=0,\"\",IF(LEN('Enrollment Form'!$AE448)<>10,\"N\",\"Y\")))","v":""},{"$f":"IF($B441=\"N\",\"\",IF(LEN('Enrollment Form'!$AF448)=0,\"\",IF(LEN('Enrollment Form'!$AF448)<>10,\"N\",\"Y\")))","v":""},{"$f":"IF('Enrollment Form'!$O448<>\"Graded\",\"-\",IF(AND('Enrollment Form'!$O448=\"Graded\",'Enrollment Form'!$AO448<>\"\"),\"Y\",\"N\"))","v":"-"},{"$f":"IF($B441=\"N\",\"\",IF(OR('Enrollment Form'!$B448<>\"Subscriber\",'Enrollment Form'!$C448=\"ROC\"),\"-\",IF(AND('Enrollment Form'!$B448=\"Subscriber\",'Enrollment Form'!$C448=\"Enroll\",'Enrollment Form'!$AJ448<>\"\"),\"Y\",\"N\")))","v":""},{"$f":"IF($B441=\"N\",\"\",IF(OR('Enrollment Form'!$B448<>\"Subscriber\",'Enrollment Form'!$C448=\"ROC\"),\"-\",IF(AND('Enrollment Form'!$B448=\"Subscriber\",'Enrollment Form'!$C448=\"Enroll\",'Enrollment Form'!$AK448<>\"\"),\"Y\",\"N\")))","v":""},{"$f":"IF($B441=\"N\",\"\",IF(OR('Enrollment Form'!$B448<>\"Subscriber\",'Enrollment Form'!$C448=\"ROC\"),\"-\",IF(AND('Enrollment Form'!$B448=\"Subscriber\",'Enrollment Form'!$C448=\"Enroll\",'Enrollment Form'!$AL448<>\"\"),\"Y\",\"N\")))","v":""},{"$f":"IF($B441=\"N\",\"\",IF(OR('Enrollment Form'!$B448<>\"Subscriber\",'Enrollment Form'!$C448=\"ROC\"),\"-\",IF(AND('Enrollment Form'!$B448=\"Subscriber\",'Enrollment Form'!$C448=\"Enroll\",'Enrollment Form'!$AM448<>\"\"),\"Y\",\"N\")))","v":""},{"$f":"IF($B441=\"N\",\"\",IF(OR('Enrollment Form'!$B448<>\"Subscriber\",'Enrollment Form'!$C448=\"ROC\"),\"-\",IF(AND('Enrollment Form'!$B448=\"Subscriber\",'Enrollment Form'!$C448=\"Enroll\",'Enrollment Form'!$AN448<>\"\"),\"Y\",\"N\")))","v":""},{"$f":"IF($B441=\"N\",\"\",IF(OR('Enrollment Form'!$B448<>\"Subscriber\",'Enrollment Form'!$C448=\"ROC\"),\"-\",IF(AND('Enrollment Form'!$B448=\"Subscriber\",'Enrollment Form'!$C448=\"Enroll\",'Enrollment Form'!$AP448<>\"\"),\"Y\",\"N\")))","v":""},{"$f":"IF($B441=\"N\",\"\",IF($Q441=\"-\",\"-\",IF(AND($Q441=\"Y\",'Enrollment Form'!$AP448=\"No\"),\"-\",IF(AND($Q441=\"Y\",'Enrollment Form'!$AP448=\"Yes\",'Enrollment Form'!$AQ448<>\"\"),\"Y\",\"N\"))))","v":""},{"$f":"IF($B441=\"N\",\"\",IF(OR('Enrollment Form'!$B448<>\"Subscriber\",'Enrollment Form'!$C448=\"ROC\"),\"-\",IF(AND('Enrollment Form'!$B448=\"Subscriber\",'Enrollment Form'!$C448=\"Enroll\",'Enrollment Form'!$CO448<>\"\"),\"Y\",\"N\")))","v":""},{"$f":"IF($B441=\"N\",\"\",IF($S441=\"-\",\"-\",IF(AND($S441=\"Y\",'Enrollment Form'!$CO448=\"No\"),\"-\",IF(AND($S441=\"Y\",'Enrollment Form'!$CO448=\"Yes\",'Enrollment Form'!$CP448<>\"\"),\"Y\",\"N\"))))","v":""},{"$f":"IF(OR('Enrollment Form'!$AV448=\"Yes\",'Enrollment Form'!$AV448=\"\"),\"-\",IF(AND('Enrollment Form'!$AV448=\"No\",ISERROR(FIND(\"HMO\",VLOOKUP('Enrollment Form'!G448,'Enrollment Form'!H$11:J$1000,3,FALSE),1))=FALSE,COUNTA('Enrollment Form'!$AW448:$AZ448)=4),\"Y\",\"N\"))","v":"-"},{"$f":"IF($B441=\"N\",\"\",IF('Enrollment Form'!$B448=\"Subscriber\",\"-\",IF(COUNTA('Enrollment Form'!$BE448,'Enrollment Form'!$BG448)=2,\"Y\",\"N\")))","v":""},{"$f":"IF($B441=\"N\",\"\",IF(OR('Enrollment Form'!$AU448=\"\",'Enrollment Form'!$AU448=\"No\"),\"-\",IF(AND('Enrollment Form'!$AU448=\"Yes\",COUNTA('Enrollment Form'!$CK448)=1),\"Y\",\"N\")))","v":""},{"$f":"IF(OR('Enrollment Form'!$CK448=\"\",'Enrollment Form'!$CK448=\"No\"),\"-\",IF(COUNTA('Enrollment Form'!$CM448:$CN448)=2,\"Y\",\"N\"))","v":"-"},{"$f":"IF($B441=\"N\",\"\",IF(COUNTIF('Enrollment Form'!$CZ448:$DO448,\"Other\")=COUNTA('Enrollment Form'!$DF448,'Enrollment Form'!$DA448,'Enrollment Form'!$DK448,'Enrollment Form'!$DP448),\"Y\",\"N\"))","v":""},{"$f":"IF($B441=\"N\",\"\",IF(OR('Enrollment Form'!B448<>\"Subscriber\",'Enrollment Form'!C448=\"ROC\",COUNTIF('Enrollment Form'!AS448:AT448,\"Yes\")>=1),\"-\",IF(AND('Enrollment Form'!C448=\"Enroll\",COUNTIF('Enrollment Form'!AS448:AT448,\"No\")=2,'Enrollment Form'!AU448=\"\"),\"N\",\"Y\")))","v":""},{"$f":"IF(OR(B441=\"N\",'Enrollment Form'!B448<>\"Subscriber\",'Enrollment Form'!C448=\"ROC\",'Enrollment Form'!O448<>\"Multiple of Salary\"),\"-\",IF(COUNTA('Enrollment Form'!T448:U448)<2,\"N\",\"Y\"))","v":"-"},{"$f":"IF(B441=\"N\",\"\",IF(OR('Enrollment Form'!C448=\"ROC\",'Enrollment Form'!B448<>\"Subscriber\",'Enrollment Form'!O448=\"Waive\",'Enrollment Form'!O448=\"\"),\"-\",IF('Enrollment Form'!P448=\"\",\"N\",\"Y\")))","v":""},{"$f":"IF($B441=\"N\",\"\",IF(AND('Enrollment Form'!$C448=\"ROC\",'Enrollment Form'!$DS448<>\"\"),\"Y\",IF(AND('Enrollment Form'!$C448=\"ROC\",'Enrollment Form'!$DS448=\"\"),\"N\",IF(AND('Enrollment Form'!$C448=\"Enroll\",'Enrollment Form'!$B448=\"Subscriber\",'Enrollment Form'!$CQ448=\"No\",'Enrollment Form'!$DS448=\"\"),\"N\",IF(AND('Enrollment Form'!$C448=\"Enroll\",'Enrollment Form'!$B448=\"Subscriber\",'Enrollment Form'!$CQ448=\"Yes\"),\"-\",\"Y\")))))","v":""},{"$f":"IF($B441=\"N\",\"\",IF(AND('Enrollment Form'!$C448=\"ROC\",'Enrollment Form'!$DT448<>\"\"),\"Y\",IF(AND('Enrollment Form'!$C448=\"ROC\",'Enrollment Form'!$DT448=\"\"),\"N\",IF(AND('Enrollment Form'!$C448=\"Enroll\",'Enrollment Form'!$B448=\"Subscriber\",'Enrollment Form'!$CQ448=\"No\",'Enrollment Form'!$DT448=\"\"),\"N\",IF(AND('Enrollment Form'!$C448=\"Enroll\",'Enrollment Form'!$B448=\"Subscriber\",'Enrollment Form'!$CQ448=\"Yes\"),\"-\",\"Y\")))))","v":""},{"$f":"IF('Enrollment Form'!AH448=\"\",\"\",IF(ISERROR(SEARCH(\".\",'Enrollment Form'!AH448,SEARCH(\"@\",'Enrollment Form'!AH448))),\"N\",\"Y\"))","v":""},{"$f":"IF(OR($B441=\"N\",'Enrollment Form'!$G448=\"\"),\"\",IF('Enrollment Form'!$B448<>\"Subscriber\",\"-\",IF(COUNTIF('Enrollment Form'!$AS448:$AT448,\"Yes\")=2,\"N\",\"Y\")))","v":""},{"$f":"IF(OR('Enrollment Form'!$CC448=\"\",'Enrollment Form'!$CC448=\"No\"),\"-\",IF(AND('Enrollment Form'!$CC448=\"Yes\",'Enrollment Form'!$CD448=\"\"),\"N\",\"Y\"))","v":"-"},{"$f":"IF(OR('Enrollment Form'!$CE448=\"\",'Enrollment Form'!$CE448=\"No\"),\"-\",IF(AND('Enrollment Form'!$CE448=\"Yes\",'Enrollment Form'!$CF448=\"\"),\"N\",\"Y\"))","v":"-"},{"$f":"IF(OR('Enrollment Form'!$CG448=\"\",'Enrollment Form'!$CG448=\"No\"),\"-\",IF(AND('Enrollment Form'!$CG448=\"Yes\",'Enrollment Form'!$CH448=\"\"),\"N\",\"Y\"))","v":"-"},{"$f":"IF(OR('Enrollment Form'!$CG448=\"\",'Enrollment Form'!$CG448=\"No\"),\"-\",IF(AND('Enrollment Form'!$CG448=\"Yes\",'Enrollment Form'!$CI448=\"\"),\"N\",\"Y\"))","v":"-"},{"$f":"IF('Enrollment Form'!B448<>\"Subscriber\",\"-\",IF(AND('Enrollment Form'!B448=\"Subscriber\",'Enrollment Form'!C448=\"Enroll\",'Enrollment Form'!AA448=\"\"),\"N\",\"Y\"))","v":"-"},{"$f":"IF(OR('Enrollment Form'!B448=\"Subscriber\",'Enrollment Form'!B448=\"\"),\"-\",IF('Enrollment Form'!BI448=\"\",\"N\",\"Y\"))","v":"-"},{"$f":"IF('Enrollment Form'!B448<>\"Subscriber\",\"-\",IF(AND('Enrollment Form'!B448=\"Subscriber\",'Enrollment Form'!G448=\"\"),\"N\",\"Y\"))","v":"-"},{"$f":"IF('Enrollment Form'!A448=\"\",\"\",IF('Enrollment Form'!B448=\"Subscriber\",\"-\",IF(AND('Enrollment Form'!B448<>\"Subscriber\",'Enrollment Form'!G448='Enrollment Form'!H448),\"N\",\"Y\")))","v":""},0]
[449,{"$f":"IF('Enrollment Form'!$A449<>\"\",\"Y\",\"N\")","v":"N"},{"$f":"IF(AND('Enrollment Form'!$B449=\"\",'Enrollment Form'!$C449<>\"\"),\"N\",IF($B442=\"N\",\"\",\"Y\"))","v":""},{"$f":"IF(OR($B442=\"N\",'Enrollment Form'!G449=\"\"),\"\",IF('Enrollment Form'!$B449<>\"Subscriber\",\"\",IF('Enrollment Form'!$G449='Enrollment Form'!$H449,\"Y\",\"N\")))","v":""},{"$f":"IF($B442=\"N\",\"\",IF(AND(COUNTIFS('Enrollment Form'!$H$11:$H$1000,'Enrollment Form'!$H449,'Enrollment Form'!$B$11:$B$1000,'Enrollment Form'!$B449)>1,'Enrollment Form'!$H449<>\"\"),\"N\",\"Y\"))","v":""},{"$f":"IF($B442=\"N\",\"\",IF(LEN('Enrollment Form'!$Y449)=0,\"\",IF(LEN('Enrollment Form'!$Y449)<>5,\"N\",\"Y\")))","v":""},{"$f":"IF($B442=\"N\",\"\",IF(LEN('Enrollment Form'!$AD449=0),\"\",IF(LEN('Enrollment Form'!$AD449)<>5,\"N\",\"Y\")))","v":""},{"$f":"IF($B442=\"N\",\"\",IF(LEN('Enrollment Form'!$BL449=0),\"\",IF(LEN('Enrollment Form'!$BL449)<>5,\"N\",\"Y\")))","v":""},{"$f":"IF($B442=\"N\",\"\",IF(LEN('Enrollment Form'!$AE449)=0,\"\",IF(LEN('Enrollment Form'!$AE449)<>10,\"N\",\"Y\")))","v":""},{"$f":"IF($B442=\"N\",\"\",IF(LEN('Enrollment Form'!$AF449)=0,\"\",IF(LEN('Enrollment Form'!$AF449)<>10,\"N\",\"Y\")))","v":""},{"$f":"IF('Enrollment Form'!$O449<>\"Graded\",\"-\",IF(AND('Enrollment Form'!$O449=\"Graded\",'Enrollment Form'!$AO449<>\"\"),\"Y\",\"N\"))","v":"-"},{"$f":"IF($B442=\"N\",\"\",IF(OR('Enrollment Form'!$B449<>\"Subscriber\",'Enrollment Form'!$C449=\"ROC\"),\"-\",IF(AND('Enrollment Form'!$B449=\"Subscriber\",'Enrollment Form'!$C449=\"Enroll\",'Enrollment Form'!$AJ449<>\"\"),\"Y\",\"N\")))","v":""},{"$f":"IF($B442=\"N\",\"\",IF(OR('Enrollment Form'!$B449<>\"Subscriber\",'Enrollment Form'!$C449=\"ROC\"),\"-\",IF(AND('Enrollment Form'!$B449=\"Subscriber\",'Enrollment Form'!$C449=\"Enroll\",'Enrollment Form'!$AK449<>\"\"),\"Y\",\"N\")))","v":""},{"$f":"IF($B442=\"N\",\"\",IF(OR('Enrollment Form'!$B449<>\"Subscriber\",'Enrollment Form'!$C449=\"ROC\"),\"-\",IF(AND('Enrollment Form'!$B449=\"Subscriber\",'Enrollment Form'!$C449=\"Enroll\",'Enrollment Form'!$AL449<>\"\"),\"Y\",\"N\")))","v":""},{"$f":"IF($B442=\"N\",\"\",IF(OR('Enrollment Form'!$B449<>\"Subscriber\",'Enrollment Form'!$C449=\"ROC\"),\"-\",IF(AND('Enrollment Form'!$B449=\"Subscriber\",'Enrollment Form'!$C449=\"Enroll\",'Enrollment Form'!$AM449<>\"\"),\"Y\",\"N\")))","v":""},{"$f":"IF($B442=\"N\",\"\",IF(OR('Enrollment Form'!$B449<>\"Subscriber\",'Enrollment Form'!$C449=\"ROC\"),\"-\",IF(AND('Enrollment Form'!$B449=\"Subscriber\",'Enrollment Form'!$C449=\"Enroll\",'Enrollment Form'!$AN449<>\"\"),\"Y\",\"N\")))","v":""},{"$f":"IF($B442=\"N\",\"\",IF(OR('Enrollment Form'!$B449<>\"Subscriber\",'Enrollment Form'!$C449=\"ROC\"),\"-\",IF(AND('Enrollment Form'!$B449=\"Subscriber\",'Enrollment Form'!$C449=\"Enroll\",'Enrollment Form'!$AP449<>\"\"),\"Y\",\"N\")))","v":""},{"$f":"IF($B442=\"N\",\"\",IF($Q442=\"-\",\"-\",IF(AND($Q442=\"Y\",'Enrollment Form'!$AP449=\"No\"),\"-\",IF(AND($Q442=\"Y\",'Enrollment Form'!$AP449=\"Yes\",'Enrollment Form'!$AQ449<>\"\"),\"Y\",\"N\"))))","v":""},{"$f":"IF($B442=\"N\",\"\",IF(OR('Enrollment Form'!$B449<>\"Subscriber\",'Enrollment Form'!$C449=\"ROC\"),\"-\",IF(AND('Enrollment Form'!$B449=\"Subscriber\",'Enrollment Form'!$C449=\"Enroll\",'Enrollment Form'!$CO449<>\"\"),\"Y\",\"N\")))","v":""},{"$f":"IF($B442=\"N\",\"\",IF($S442=\"-\",\"-\",IF(AND($S442=\"Y\",'Enrollment Form'!$CO449=\"No\"),\"-\",IF(AND($S442=\"Y\",'Enrollment Form'!$CO449=\"Yes\",'Enrollment Form'!$CP449<>\"\"),\"Y\",\"N\"))))","v":""},{"$f":"IF(OR('Enrollment Form'!$AV449=\"Yes\",'Enrollment Form'!$AV449=\"\"),\"-\",IF(AND('Enrollment Form'!$AV449=\"No\",ISERROR(FIND(\"HMO\",VLOOKUP('Enrollment Form'!G449,'Enrollment Form'!H$11:J$1000,3,FALSE),1))=FALSE,COUNTA('Enrollment Form'!$AW449:$AZ449)=4),\"Y\",\"N\"))","v":"-"},{"$f":"IF($B442=\"N\",\"\",IF('Enrollment Form'!$B449=\"Subscriber\",\"-\",IF(COUNTA('Enrollment Form'!$BE449,'Enrollment Form'!$BG449)=2,\"Y\",\"N\")))","v":""},{"$f":"IF($B442=\"N\",\"\",IF(OR('Enrollment Form'!$AU449=\"\",'Enrollment Form'!$AU449=\"No\"),\"-\",IF(AND('Enrollment Form'!$AU449=\"Yes\",COUNTA('Enrollment Form'!$CK449)=1),\"Y\",\"N\")))","v":""},{"$f":"IF(OR('Enrollment Form'!$CK449=\"\",'Enrollment Form'!$CK449=\"No\"),\"-\",IF(COUNTA('Enrollment Form'!$CM449:$CN449)=2,\"Y\",\"N\"))","v":"-"},{"$f":"IF($B442=\"N\",\"\",IF(COUNTIF('Enrollment Form'!$CZ449:$DO449,\"Other\")=COUNTA('Enrollment Form'!$DF449,'Enrollment Form'!$DA449,'Enrollment Form'!$DK449,'Enrollment Form'!$DP449),\"Y\",\"N\"))","v":""},{"$f":"IF($B442=\"N\",\"\",IF(OR('Enrollment Form'!B449<>\"Subscriber\",'Enrollment Form'!C449=\"ROC\",COUNTIF('Enrollment Form'!AS449:AT449,\"Yes\")>=1),\"-\",IF(AND('Enrollment Form'!C449=\"Enroll\",COUNTIF('Enrollment Form'!AS449:AT449,\"No\")=2,'Enrollment Form'!AU449=\"\"),\"N\",\"Y\")))","v":""},{"$f":"IF(OR(B442=\"N\",'Enrollment Form'!B449<>\"Subscriber\",'Enrollment Form'!C449=\"ROC\",'Enrollment Form'!O449<>\"Multiple of Salary\"),\"-\",IF(COUNTA('Enrollment Form'!T449:U449)<2,\"N\",\"Y\"))","v":"-"},{"$f":"IF(B442=\"N\",\"\",IF(OR('Enrollment Form'!C449=\"ROC\",'Enrollment Form'!B449<>\"Subscriber\",'Enrollment Form'!O449=\"Waive\",'Enrollment Form'!O449=\"\"),\"-\",IF('Enrollment Form'!P449=\"\",\"N\",\"Y\")))","v":""},{"$f":"IF($B442=\"N\",\"\",IF(AND('Enrollment Form'!$C449=\"ROC\",'Enrollment Form'!$DS449<>\"\"),\"Y\",IF(AND('Enrollment Form'!$C449=\"ROC\",'Enrollment Form'!$DS449=\"\"),\"N\",IF(AND('Enrollment Form'!$C449=\"Enroll\",'Enrollment Form'!$B449=\"Subscriber\",'Enrollment Form'!$CQ449=\"No\",'Enrollment Form'!$DS449=\"\"),\"N\",IF(AND('Enrollment Form'!$C449=\"Enroll\",'Enrollment Form'!$B449=\"Subscriber\",'Enrollment Form'!$CQ449=\"Yes\"),\"-\",\"Y\")))))","v":""},{"$f":"IF($B442=\"N\",\"\",IF(AND('Enrollment Form'!$C449=\"ROC\",'Enrollment Form'!$DT449<>\"\"),\"Y\",IF(AND('Enrollment Form'!$C449=\"ROC\",'Enrollment Form'!$DT449=\"\"),\"N\",IF(AND('Enrollment Form'!$C449=\"Enroll\",'Enrollment Form'!$B449=\"Subscriber\",'Enrollment Form'!$CQ449=\"No\",'Enrollment Form'!$DT449=\"\"),\"N\",IF(AND('Enrollment Form'!$C449=\"Enroll\",'Enrollment Form'!$B449=\"Subscriber\",'Enrollment Form'!$CQ449=\"Yes\"),\"-\",\"Y\")))))","v":""},{"$f":"IF('Enrollment Form'!AH449=\"\",\"\",IF(ISERROR(SEARCH(\".\",'Enrollment Form'!AH449,SEARCH(\"@\",'Enrollment Form'!AH449))),\"N\",\"Y\"))","v":""},{"$f":"IF(OR($B442=\"N\",'Enrollment Form'!$G449=\"\"),\"\",IF('Enrollment Form'!$B449<>\"Subscriber\",\"-\",IF(COUNTIF('Enrollment Form'!$AS449:$AT449,\"Yes\")=2,\"N\",\"Y\")))","v":""},{"$f":"IF(OR('Enrollment Form'!$CC449=\"\",'Enrollment Form'!$CC449=\"No\"),\"-\",IF(AND('Enrollment Form'!$CC449=\"Yes\",'Enrollment Form'!$CD449=\"\"),\"N\",\"Y\"))","v":"-"},{"$f":"IF(OR('Enrollment Form'!$CE449=\"\",'Enrollment Form'!$CE449=\"No\"),\"-\",IF(AND('Enrollment Form'!$CE449=\"Yes\",'Enrollment Form'!$CF449=\"\"),\"N\",\"Y\"))","v":"-"},{"$f":"IF(OR('Enrollment Form'!$CG449=\"\",'Enrollment Form'!$CG449=\"No\"),\"-\",IF(AND('Enrollment Form'!$CG449=\"Yes\",'Enrollment Form'!$CH449=\"\"),\"N\",\"Y\"))","v":"-"},{"$f":"IF(OR('Enrollment Form'!$CG449=\"\",'Enrollment Form'!$CG449=\"No\"),\"-\",IF(AND('Enrollment Form'!$CG449=\"Yes\",'Enrollment Form'!$CI449=\"\"),\"N\",\"Y\"))","v":"-"},{"$f":"IF('Enrollment Form'!B449<>\"Subscriber\",\"-\",IF(AND('Enrollment Form'!B449=\"Subscriber\",'Enrollment Form'!C449=\"Enroll\",'Enrollment Form'!AA449=\"\"),\"N\",\"Y\"))","v":"-"},{"$f":"IF(OR('Enrollment Form'!B449=\"Subscriber\",'Enrollment Form'!B449=\"\"),\"-\",IF('Enrollment Form'!BI449=\"\",\"N\",\"Y\"))","v":"-"},{"$f":"IF('Enrollment Form'!B449<>\"Subscriber\",\"-\",IF(AND('Enrollment Form'!B449=\"Subscriber\",'Enrollment Form'!G449=\"\"),\"N\",\"Y\"))","v":"-"},{"$f":"IF('Enrollment Form'!A449=\"\",\"\",IF('Enrollment Form'!B449=\"Subscriber\",\"-\",IF(AND('Enrollment Form'!B449<>\"Subscriber\",'Enrollment Form'!G449='Enrollment Form'!H449),\"N\",\"Y\")))","v":""},0]
[450,{"$f":"IF('Enrollment Form'!$A450<>\"\",\"Y\",\"N\")","v":"N"},{"$f":"IF(AND('Enrollment Form'!$B450=\"\",'Enrollment Form'!$C450<>\"\"),\"N\",IF($B443=\"N\",\"\",\"Y\"))","v":""},{"$f":"IF(OR($B443=\"N\",'Enrollment Form'!G450=\"\"),\"\",IF('Enrollment Form'!$B450<>\"Subscriber\",\"\",IF('Enrollment Form'!$G450='Enrollment Form'!$H450,\"Y\",\"N\")))","v":""},{"$f":"IF($B443=\"N\",\"\",IF(AND(COUNTIFS('Enrollment Form'!$H$11:$H$1000,'Enrollment Form'!$H450,'Enrollment Form'!$B$11:$B$1000,'Enrollment Form'!$B450)>1,'Enrollment Form'!$H450<>\"\"),\"N\",\"Y\"))","v":""},{"$f":"IF($B443=\"N\",\"\",IF(LEN('Enrollment Form'!$Y450)=0,\"\",IF(LEN('Enrollment Form'!$Y450)<>5,\"N\",\"Y\")))","v":""},{"$f":"IF($B443=\"N\",\"\",IF(LEN('Enrollment Form'!$AD450=0),\"\",IF(LEN('Enrollment Form'!$AD450)<>5,\"N\",\"Y\")))","v":""},{"$f":"IF($B443=\"N\",\"\",IF(LEN('Enrollment Form'!$BL450=0),\"\",IF(LEN('Enrollment Form'!$BL450)<>5,\"N\",\"Y\")))","v":""},{"$f":"IF($B443=\"N\",\"\",IF(LEN('Enrollment Form'!$AE450)=0,\"\",IF(LEN('Enrollment Form'!$AE450)<>10,\"N\",\"Y\")))","v":""},{"$f":"IF($B443=\"N\",\"\",IF(LEN('Enrollment Form'!$AF450)=0,\"\",IF(LEN('Enrollment Form'!$AF450)<>10,\"N\",\"Y\")))","v":""},{"$f":"IF('Enrollment Form'!$O450<>\"Graded\",\"-\",IF(AND('Enrollment Form'!$O450=\"Graded\",'Enrollment Form'!$AO450<>\"\"),\"Y\",\"N\"))","v":"-"},{"$f":"IF($B443=\"N\",\"\",IF(OR('Enrollment Form'!$B450<>\"Subscriber\",'Enrollment Form'!$C450=\"ROC\"),\"-\",IF(AND('Enrollment Form'!$B450=\"Subscriber\",'Enrollment Form'!$C450=\"Enroll\",'Enrollment Form'!$AJ450<>\"\"),\"Y\",\"N\")))","v":""},{"$f":"IF($B443=\"N\",\"\",IF(OR('Enrollment Form'!$B450<>\"Subscriber\",'Enrollment Form'!$C450=\"ROC\"),\"-\",IF(AND('Enrollment Form'!$B450=\"Subscriber\",'Enrollment Form'!$C450=\"Enroll\",'Enrollment Form'!$AK450<>\"\"),\"Y\",\"N\")))","v":""},{"$f":"IF($B443=\"N\",\"\",IF(OR('Enrollment Form'!$B450<>\"Subscriber\",'Enrollment Form'!$C450=\"ROC\"),\"-\",IF(AND('Enrollment Form'!$B450=\"Subscriber\",'Enrollment Form'!$C450=\"Enroll\",'Enrollment Form'!$AL450<>\"\"),\"Y\",\"N\")))","v":""},{"$f":"IF($B443=\"N\",\"\",IF(OR('Enrollment Form'!$B450<>\"Subscriber\",'Enrollment Form'!$C450=\"ROC\"),\"-\",IF(AND('Enrollment Form'!$B450=\"Subscriber\",'Enrollment Form'!$C450=\"Enroll\",'Enrollment Form'!$AM450<>\"\"),\"Y\",\"N\")))","v":""},{"$f":"IF($B443=\"N\",\"\",IF(OR('Enrollment Form'!$B450<>\"Subscriber\",'Enrollment Form'!$C450=\"ROC\"),\"-\",IF(AND('Enrollment Form'!$B450=\"Subscriber\",'Enrollment Form'!$C450=\"Enroll\",'Enrollment Form'!$AN450<>\"\"),\"Y\",\"N\")))","v":""},{"$f":"IF($B443=\"N\",\"\",IF(OR('Enrollment Form'!$B450<>\"Subscriber\",'Enrollment Form'!$C450=\"ROC\"),\"-\",IF(AND('Enrollment Form'!$B450=\"Subscriber\",'Enrollment Form'!$C450=\"Enroll\",'Enrollment Form'!$AP450<>\"\"),\"Y\",\"N\")))","v":""},{"$f":"IF($B443=\"N\",\"\",IF($Q443=\"-\",\"-\",IF(AND($Q443=\"Y\",'Enrollment Form'!$AP450=\"No\"),\"-\",IF(AND($Q443=\"Y\",'Enrollment Form'!$AP450=\"Yes\",'Enrollment Form'!$AQ450<>\"\"),\"Y\",\"N\"))))","v":""},{"$f":"IF($B443=\"N\",\"\",IF(OR('Enrollment Form'!$B450<>\"Subscriber\",'Enrollment Form'!$C450=\"ROC\"),\"-\",IF(AND('Enrollment Form'!$B450=\"Subscriber\",'Enrollment Form'!$C450=\"Enroll\",'Enrollment Form'!$CO450<>\"\"),\"Y\",\"N\")))","v":""},{"$f":"IF($B443=\"N\",\"\",IF($S443=\"-\",\"-\",IF(AND($S443=\"Y\",'Enrollment Form'!$CO450=\"No\"),\"-\",IF(AND($S443=\"Y\",'Enrollment Form'!$CO450=\"Yes\",'Enrollment Form'!$CP450<>\"\"),\"Y\",\"N\"))))","v":""},{"$f":"IF(OR('Enrollment Form'!$AV450=\"Yes\",'Enrollment Form'!$AV450=\"\"),\"-\",IF(AND('Enrollment Form'!$AV450=\"No\",ISERROR(FIND(\"HMO\",VLOOKUP('Enrollment Form'!G450,'Enrollment Form'!H$11:J$1000,3,FALSE),1))=FALSE,COUNTA('Enrollment Form'!$AW450:$AZ450)=4),\"Y\",\"N\"))","v":"-"},{"$f":"IF($B443=\"N\",\"\",IF('Enrollment Form'!$B450=\"Subscriber\",\"-\",IF(COUNTA('Enrollment Form'!$BE450,'Enrollment Form'!$BG450)=2,\"Y\",\"N\")))","v":""},{"$f":"IF($B443=\"N\",\"\",IF(OR('Enrollment Form'!$AU450=\"\",'Enrollment Form'!$AU450=\"No\"),\"-\",IF(AND('Enrollment Form'!$AU450=\"Yes\",COUNTA('Enrollment Form'!$CK450)=1),\"Y\",\"N\")))","v":""},{"$f":"IF(OR('Enrollment Form'!$CK450=\"\",'Enrollment Form'!$CK450=\"No\"),\"-\",IF(COUNTA('Enrollment Form'!$CM450:$CN450)=2,\"Y\",\"N\"))","v":"-"},{"$f":"IF($B443=\"N\",\"\",IF(COUNTIF('Enrollment Form'!$CZ450:$DO450,\"Other\")=COUNTA('Enrollment Form'!$DF450,'Enrollment Form'!$DA450,'Enrollment Form'!$DK450,'Enrollment Form'!$DP450),\"Y\",\"N\"))","v":""},{"$f":"IF($B443=\"N\",\"\",IF(OR('Enrollment Form'!B450<>\"Subscriber\",'Enrollment Form'!C450=\"ROC\",COUNTIF('Enrollment Form'!AS450:AT450,\"Yes\")>=1),\"-\",IF(AND('Enrollment Form'!C450=\"Enroll\",COUNTIF('Enrollment Form'!AS450:AT450,\"No\")=2,'Enrollment Form'!AU450=\"\"),\"N\",\"Y\")))","v":""},{"$f":"IF(OR(B443=\"N\",'Enrollment Form'!B450<>\"Subscriber\",'Enrollment Form'!C450=\"ROC\",'Enrollment Form'!O450<>\"Multiple of Salary\"),\"-\",IF(COUNTA('Enrollment Form'!T450:U450)<2,\"N\",\"Y\"))","v":"-"},{"$f":"IF(B443=\"N\",\"\",IF(OR('Enrollment Form'!C450=\"ROC\",'Enrollment Form'!B450<>\"Subscriber\",'Enrollment Form'!O450=\"Waive\",'Enrollment Form'!O450=\"\"),\"-\",IF('Enrollment Form'!P450=\"\",\"N\",\"Y\")))","v":""},{"$f":"IF($B443=\"N\",\"\",IF(AND('Enrollment Form'!$C450=\"ROC\",'Enrollment Form'!$DS450<>\"\"),\"Y\",IF(AND('Enrollment Form'!$C450=\"ROC\",'Enrollment Form'!$DS450=\"\"),\"N\",IF(AND('Enrollment Form'!$C450=\"Enroll\",'Enrollment Form'!$B450=\"Subscriber\",'Enrollment Form'!$CQ450=\"No\",'Enrollment Form'!$DS450=\"\"),\"N\",IF(AND('Enrollment Form'!$C450=\"Enroll\",'Enrollment Form'!$B450=\"Subscriber\",'Enrollment Form'!$CQ450=\"Yes\"),\"-\",\"Y\")))))","v":""},{"$f":"IF($B443=\"N\",\"\",IF(AND('Enrollment Form'!$C450=\"ROC\",'Enrollment Form'!$DT450<>\"\"),\"Y\",IF(AND('Enrollment Form'!$C450=\"ROC\",'Enrollment Form'!$DT450=\"\"),\"N\",IF(AND('Enrollment Form'!$C450=\"Enroll\",'Enrollment Form'!$B450=\"Subscriber\",'Enrollment Form'!$CQ450=\"No\",'Enrollment Form'!$DT450=\"\"),\"N\",IF(AND('Enrollment Form'!$C450=\"Enroll\",'Enrollment Form'!$B450=\"Subscriber\",'Enrollment Form'!$CQ450=\"Yes\"),\"-\",\"Y\")))))","v":""},{"$f":"IF('Enrollment Form'!AH450=\"\",\"\",IF(ISERROR(SEARCH(\".\",'Enrollment Form'!AH450,SEARCH(\"@\",'Enrollment Form'!AH450))),\"N\",\"Y\"))","v":""},{"$f":"IF(OR($B443=\"N\",'Enrollment Form'!$G450=\"\"),\"\",IF('Enrollment Form'!$B450<>\"Subscriber\",\"-\",IF(COUNTIF('Enrollment Form'!$AS450:$AT450,\"Yes\")=2,\"N\",\"Y\")))","v":""},{"$f":"IF(OR('Enrollment Form'!$CC450=\"\",'Enrollment Form'!$CC450=\"No\"),\"-\",IF(AND('Enrollment Form'!$CC450=\"Yes\",'Enrollment Form'!$CD450=\"\"),\"N\",\"Y\"))","v":"-"},{"$f":"IF(OR('Enrollment Form'!$CE450=\"\",'Enrollment Form'!$CE450=\"No\"),\"-\",IF(AND('Enrollment Form'!$CE450=\"Yes\",'Enrollment Form'!$CF450=\"\"),\"N\",\"Y\"))","v":"-"},{"$f":"IF(OR('Enrollment Form'!$CG450=\"\",'Enrollment Form'!$CG450=\"No\"),\"-\",IF(AND('Enrollment Form'!$CG450=\"Yes\",'Enrollment Form'!$CH450=\"\"),\"N\",\"Y\"))","v":"-"},{"$f":"IF(OR('Enrollment Form'!$CG450=\"\",'Enrollment Form'!$CG450=\"No\"),\"-\",IF(AND('Enrollment Form'!$CG450=\"Yes\",'Enrollment Form'!$CI450=\"\"),\"N\",\"Y\"))","v":"-"},{"$f":"IF('Enrollment Form'!B450<>\"Subscriber\",\"-\",IF(AND('Enrollment Form'!B450=\"Subscriber\",'Enrollment Form'!C450=\"Enroll\",'Enrollment Form'!AA450=\"\"),\"N\",\"Y\"))","v":"-"},{"$f":"IF(OR('Enrollment Form'!B450=\"Subscriber\",'Enrollment Form'!B450=\"\"),\"-\",IF('Enrollment Form'!BI450=\"\",\"N\",\"Y\"))","v":"-"},{"$f":"IF('Enrollment Form'!B450<>\"Subscriber\",\"-\",IF(AND('Enrollment Form'!B450=\"Subscriber\",'Enrollment Form'!G450=\"\"),\"N\",\"Y\"))","v":"-"},{"$f":"IF('Enrollment Form'!A450=\"\",\"\",IF('Enrollment Form'!B450=\"Subscriber\",\"-\",IF(AND('Enrollment Form'!B450<>\"Subscriber\",'Enrollment Form'!G450='Enrollment Form'!H450),\"N\",\"Y\")))","v":""},0]
[451,{"$f":"IF('Enrollment Form'!$A451<>\"\",\"Y\",\"N\")","v":"N"},{"$f":"IF(AND('Enrollment Form'!$B451=\"\",'Enrollment Form'!$C451<>\"\"),\"N\",IF($B444=\"N\",\"\",\"Y\"))","v":""},{"$f":"IF(OR($B444=\"N\",'Enrollment Form'!G451=\"\"),\"\",IF('Enrollment Form'!$B451<>\"Subscriber\",\"\",IF('Enrollment Form'!$G451='Enrollment Form'!$H451,\"Y\",\"N\")))","v":""},{"$f":"IF($B444=\"N\",\"\",IF(AND(COUNTIFS('Enrollment Form'!$H$11:$H$1000,'Enrollment Form'!$H451,'Enrollment Form'!$B$11:$B$1000,'Enrollment Form'!$B451)>1,'Enrollment Form'!$H451<>\"\"),\"N\",\"Y\"))","v":""},{"$f":"IF($B444=\"N\",\"\",IF(LEN('Enrollment Form'!$Y451)=0,\"\",IF(LEN('Enrollment Form'!$Y451)<>5,\"N\",\"Y\")))","v":""},{"$f":"IF($B444=\"N\",\"\",IF(LEN('Enrollment Form'!$AD451=0),\"\",IF(LEN('Enrollment Form'!$AD451)<>5,\"N\",\"Y\")))","v":""},{"$f":"IF($B444=\"N\",\"\",IF(LEN('Enrollment Form'!$BL451=0),\"\",IF(LEN('Enrollment Form'!$BL451)<>5,\"N\",\"Y\")))","v":""},{"$f":"IF($B444=\"N\",\"\",IF(LEN('Enrollment Form'!$AE451)=0,\"\",IF(LEN('Enrollment Form'!$AE451)<>10,\"N\",\"Y\")))","v":""},{"$f":"IF($B444=\"N\",\"\",IF(LEN('Enrollment Form'!$AF451)=0,\"\",IF(LEN('Enrollment Form'!$AF451)<>10,\"N\",\"Y\")))","v":""},{"$f":"IF('Enrollment Form'!$O451<>\"Graded\",\"-\",IF(AND('Enrollment Form'!$O451=\"Graded\",'Enrollment Form'!$AO451<>\"\"),\"Y\",\"N\"))","v":"-"},{"$f":"IF($B444=\"N\",\"\",IF(OR('Enrollment Form'!$B451<>\"Subscriber\",'Enrollment Form'!$C451=\"ROC\"),\"-\",IF(AND('Enrollment Form'!$B451=\"Subscriber\",'Enrollment Form'!$C451=\"Enroll\",'Enrollment Form'!$AJ451<>\"\"),\"Y\",\"N\")))","v":""},{"$f":"IF($B444=\"N\",\"\",IF(OR('Enrollment Form'!$B451<>\"Subscriber\",'Enrollment Form'!$C451=\"ROC\"),\"-\",IF(AND('Enrollment Form'!$B451=\"Subscriber\",'Enrollment Form'!$C451=\"Enroll\",'Enrollment Form'!$AK451<>\"\"),\"Y\",\"N\")))","v":""},{"$f":"IF($B444=\"N\",\"\",IF(OR('Enrollment Form'!$B451<>\"Subscriber\",'Enrollment Form'!$C451=\"ROC\"),\"-\",IF(AND('Enrollment Form'!$B451=\"Subscriber\",'Enrollment Form'!$C451=\"Enroll\",'Enrollment Form'!$AL451<>\"\"),\"Y\",\"N\")))","v":""},{"$f":"IF($B444=\"N\",\"\",IF(OR('Enrollment Form'!$B451<>\"Subscriber\",'Enrollment Form'!$C451=\"ROC\"),\"-\",IF(AND('Enrollment Form'!$B451=\"Subscriber\",'Enrollment Form'!$C451=\"Enroll\",'Enrollment Form'!$AM451<>\"\"),\"Y\",\"N\")))","v":""},{"$f":"IF($B444=\"N\",\"\",IF(OR('Enrollment Form'!$B451<>\"Subscriber\",'Enrollment Form'!$C451=\"ROC\"),\"-\",IF(AND('Enrollment Form'!$B451=\"Subscriber\",'Enrollment Form'!$C451=\"Enroll\",'Enrollment Form'!$AN451<>\"\"),\"Y\",\"N\")))","v":""},{"$f":"IF($B444=\"N\",\"\",IF(OR('Enrollment Form'!$B451<>\"Subscriber\",'Enrollment Form'!$C451=\"ROC\"),\"-\",IF(AND('Enrollment Form'!$B451=\"Subscriber\",'Enrollment Form'!$C451=\"Enroll\",'Enrollment Form'!$AP451<>\"\"),\"Y\",\"N\")))","v":""},{"$f":"IF($B444=\"N\",\"\",IF($Q444=\"-\",\"-\",IF(AND($Q444=\"Y\",'Enrollment Form'!$AP451=\"No\"),\"-\",IF(AND($Q444=\"Y\",'Enrollment Form'!$AP451=\"Yes\",'Enrollment Form'!$AQ451<>\"\"),\"Y\",\"N\"))))","v":""},{"$f":"IF($B444=\"N\",\"\",IF(OR('Enrollment Form'!$B451<>\"Subscriber\",'Enrollment Form'!$C451=\"ROC\"),\"-\",IF(AND('Enrollment Form'!$B451=\"Subscriber\",'Enrollment Form'!$C451=\"Enroll\",'Enrollment Form'!$CO451<>\"\"),\"Y\",\"N\")))","v":""},{"$f":"IF($B444=\"N\",\"\",IF($S444=\"-\",\"-\",IF(AND($S444=\"Y\",'Enrollment Form'!$CO451=\"No\"),\"-\",IF(AND($S444=\"Y\",'Enrollment Form'!$CO451=\"Yes\",'Enrollment Form'!$CP451<>\"\"),\"Y\",\"N\"))))","v":""},{"$f":"IF(OR('Enrollment Form'!$AV451=\"Yes\",'Enrollment Form'!$AV451=\"\"),\"-\",IF(AND('Enrollment Form'!$AV451=\"No\",ISERROR(FIND(\"HMO\",VLOOKUP('Enrollment Form'!G451,'Enrollment Form'!H$11:J$1000,3,FALSE),1))=FALSE,COUNTA('Enrollment Form'!$AW451:$AZ451)=4),\"Y\",\"N\"))","v":"-"},{"$f":"IF($B444=\"N\",\"\",IF('Enrollment Form'!$B451=\"Subscriber\",\"-\",IF(COUNTA('Enrollment Form'!$BE451,'Enrollment Form'!$BG451)=2,\"Y\",\"N\")))","v":""},{"$f":"IF($B444=\"N\",\"\",IF(OR('Enrollment Form'!$AU451=\"\",'Enrollment Form'!$AU451=\"No\"),\"-\",IF(AND('Enrollment Form'!$AU451=\"Yes\",COUNTA('Enrollment Form'!$CK451)=1),\"Y\",\"N\")))","v":""},{"$f":"IF(OR('Enrollment Form'!$CK451=\"\",'Enrollment Form'!$CK451=\"No\"),\"-\",IF(COUNTA('Enrollment Form'!$CM451:$CN451)=2,\"Y\",\"N\"))","v":"-"},{"$f":"IF($B444=\"N\",\"\",IF(COUNTIF('Enrollment Form'!$CZ451:$DO451,\"Other\")=COUNTA('Enrollment Form'!$DF451,'Enrollment Form'!$DA451,'Enrollment Form'!$DK451,'Enrollment Form'!$DP451),\"Y\",\"N\"))","v":""},{"$f":"IF($B444=\"N\",\"\",IF(OR('Enrollment Form'!B451<>\"Subscriber\",'Enrollment Form'!C451=\"ROC\",COUNTIF('Enrollment Form'!AS451:AT451,\"Yes\")>=1),\"-\",IF(AND('Enrollment Form'!C451=\"Enroll\",COUNTIF('Enrollment Form'!AS451:AT451,\"No\")=2,'Enrollment Form'!AU451=\"\"),\"N\",\"Y\")))","v":""},{"$f":"IF(OR(B444=\"N\",'Enrollment Form'!B451<>\"Subscriber\",'Enrollment Form'!C451=\"ROC\",'Enrollment Form'!O451<>\"Multiple of Salary\"),\"-\",IF(COUNTA('Enrollment Form'!T451:U451)<2,\"N\",\"Y\"))","v":"-"},{"$f":"IF(B444=\"N\",\"\",IF(OR('Enrollment Form'!C451=\"ROC\",'Enrollment Form'!B451<>\"Subscriber\",'Enrollment Form'!O451=\"Waive\",'Enrollment Form'!O451=\"\"),\"-\",IF('Enrollment Form'!P451=\"\",\"N\",\"Y\")))","v":""},{"$f":"IF($B444=\"N\",\"\",IF(AND('Enrollment Form'!$C451=\"ROC\",'Enrollment Form'!$DS451<>\"\"),\"Y\",IF(AND('Enrollment Form'!$C451=\"ROC\",'Enrollment Form'!$DS451=\"\"),\"N\",IF(AND('Enrollment Form'!$C451=\"Enroll\",'Enrollment Form'!$B451=\"Subscriber\",'Enrollment Form'!$CQ451=\"No\",'Enrollment Form'!$DS451=\"\"),\"N\",IF(AND('Enrollment Form'!$C451=\"Enroll\",'Enrollment Form'!$B451=\"Subscriber\",'Enrollment Form'!$CQ451=\"Yes\"),\"-\",\"Y\")))))","v":""},{"$f":"IF($B444=\"N\",\"\",IF(AND('Enrollment Form'!$C451=\"ROC\",'Enrollment Form'!$DT451<>\"\"),\"Y\",IF(AND('Enrollment Form'!$C451=\"ROC\",'Enrollment Form'!$DT451=\"\"),\"N\",IF(AND('Enrollment Form'!$C451=\"Enroll\",'Enrollment Form'!$B451=\"Subscriber\",'Enrollment Form'!$CQ451=\"No\",'Enrollment Form'!$DT451=\"\"),\"N\",IF(AND('Enrollment Form'!$C451=\"Enroll\",'Enrollment Form'!$B451=\"Subscriber\",'Enrollment Form'!$CQ451=\"Yes\"),\"-\",\"Y\")))))","v":""},{"$f":"IF('Enrollment Form'!AH451=\"\",\"\",IF(ISERROR(SEARCH(\".\",'Enrollment Form'!AH451,SEARCH(\"@\",'Enrollment Form'!AH451))),\"N\",\"Y\"))","v":""},{"$f":"IF(OR($B444=\"N\",'Enrollment Form'!$G451=\"\"),\"\",IF('Enrollment Form'!$B451<>\"Subscriber\",\"-\",IF(COUNTIF('Enrollment Form'!$AS451:$AT451,\"Yes\")=2,\"N\",\"Y\")))","v":""},{"$f":"IF(OR('Enrollment Form'!$CC451=\"\",'Enrollment Form'!$CC451=\"No\"),\"-\",IF(AND('Enrollment Form'!$CC451=\"Yes\",'Enrollment Form'!$CD451=\"\"),\"N\",\"Y\"))","v":"-"},{"$f":"IF(OR('Enrollment Form'!$CE451=\"\",'Enrollment Form'!$CE451=\"No\"),\"-\",IF(AND('Enrollment Form'!$CE451=\"Yes\",'Enrollment Form'!$CF451=\"\"),\"N\",\"Y\"))","v":"-"},{"$f":"IF(OR('Enrollment Form'!$CG451=\"\",'Enrollment Form'!$CG451=\"No\"),\"-\",IF(AND('Enrollment Form'!$CG451=\"Yes\",'Enrollment Form'!$CH451=\"\"),\"N\",\"Y\"))","v":"-"},{"$f":"IF(OR('Enrollment Form'!$CG451=\"\",'Enrollment Form'!$CG451=\"No\"),\"-\",IF(AND('Enrollment Form'!$CG451=\"Yes\",'Enrollment Form'!$CI451=\"\"),\"N\",\"Y\"))","v":"-"},{"$f":"IF('Enrollment Form'!B451<>\"Subscriber\",\"-\",IF(AND('Enrollment Form'!B451=\"Subscriber\",'Enrollment Form'!C451=\"Enroll\",'Enrollment Form'!AA451=\"\"),\"N\",\"Y\"))","v":"-"},{"$f":"IF(OR('Enrollment Form'!B451=\"Subscriber\",'Enrollment Form'!B451=\"\"),\"-\",IF('Enrollment Form'!BI451=\"\",\"N\",\"Y\"))","v":"-"},{"$f":"IF('Enrollment Form'!B451<>\"Subscriber\",\"-\",IF(AND('Enrollment Form'!B451=\"Subscriber\",'Enrollment Form'!G451=\"\"),\"N\",\"Y\"))","v":"-"},{"$f":"IF('Enrollment Form'!A451=\"\",\"\",IF('Enrollment Form'!B451=\"Subscriber\",\"-\",IF(AND('Enrollment Form'!B451<>\"Subscriber\",'Enrollment Form'!G451='Enrollment Form'!H451),\"N\",\"Y\")))","v":""},0]
[452,{"$f":"IF('Enrollment Form'!$A452<>\"\",\"Y\",\"N\")","v":"N"},{"$f":"IF(AND('Enrollment Form'!$B452=\"\",'Enrollment Form'!$C452<>\"\"),\"N\",IF($B445=\"N\",\"\",\"Y\"))","v":""},{"$f":"IF(OR($B445=\"N\",'Enrollment Form'!G452=\"\"),\"\",IF('Enrollment Form'!$B452<>\"Subscriber\",\"\",IF('Enrollment Form'!$G452='Enrollment Form'!$H452,\"Y\",\"N\")))","v":""},{"$f":"IF($B445=\"N\",\"\",IF(AND(COUNTIFS('Enrollment Form'!$H$11:$H$1000,'Enrollment Form'!$H452,'Enrollment Form'!$B$11:$B$1000,'Enrollment Form'!$B452)>1,'Enrollment Form'!$H452<>\"\"),\"N\",\"Y\"))","v":""},{"$f":"IF($B445=\"N\",\"\",IF(LEN('Enrollment Form'!$Y452)=0,\"\",IF(LEN('Enrollment Form'!$Y452)<>5,\"N\",\"Y\")))","v":""},{"$f":"IF($B445=\"N\",\"\",IF(LEN('Enrollment Form'!$AD452=0),\"\",IF(LEN('Enrollment Form'!$AD452)<>5,\"N\",\"Y\")))","v":""},{"$f":"IF($B445=\"N\",\"\",IF(LEN('Enrollment Form'!$BL452=0),\"\",IF(LEN('Enrollment Form'!$BL452)<>5,\"N\",\"Y\")))","v":""},{"$f":"IF($B445=\"N\",\"\",IF(LEN('Enrollment Form'!$AE452)=0,\"\",IF(LEN('Enrollment Form'!$AE452)<>10,\"N\",\"Y\")))","v":""},{"$f":"IF($B445=\"N\",\"\",IF(LEN('Enrollment Form'!$AF452)=0,\"\",IF(LEN('Enrollment Form'!$AF452)<>10,\"N\",\"Y\")))","v":""},{"$f":"IF('Enrollment Form'!$O452<>\"Graded\",\"-\",IF(AND('Enrollment Form'!$O452=\"Graded\",'Enrollment Form'!$AO452<>\"\"),\"Y\",\"N\"))","v":"-"},{"$f":"IF($B445=\"N\",\"\",IF(OR('Enrollment Form'!$B452<>\"Subscriber\",'Enrollment Form'!$C452=\"ROC\"),\"-\",IF(AND('Enrollment Form'!$B452=\"Subscriber\",'Enrollment Form'!$C452=\"Enroll\",'Enrollment Form'!$AJ452<>\"\"),\"Y\",\"N\")))","v":""},{"$f":"IF($B445=\"N\",\"\",IF(OR('Enrollment Form'!$B452<>\"Subscriber\",'Enrollment Form'!$C452=\"ROC\"),\"-\",IF(AND('Enrollment Form'!$B452=\"Subscriber\",'Enrollment Form'!$C452=\"Enroll\",'Enrollment Form'!$AK452<>\"\"),\"Y\",\"N\")))","v":""},{"$f":"IF($B445=\"N\",\"\",IF(OR('Enrollment Form'!$B452<>\"Subscriber\",'Enrollment Form'!$C452=\"ROC\"),\"-\",IF(AND('Enrollment Form'!$B452=\"Subscriber\",'Enrollment Form'!$C452=\"Enroll\",'Enrollment Form'!$AL452<>\"\"),\"Y\",\"N\")))","v":""},{"$f":"IF($B445=\"N\",\"\",IF(OR('Enrollment Form'!$B452<>\"Subscriber\",'Enrollment Form'!$C452=\"ROC\"),\"-\",IF(AND('Enrollment Form'!$B452=\"Subscriber\",'Enrollment Form'!$C452=\"Enroll\",'Enrollment Form'!$AM452<>\"\"),\"Y\",\"N\")))","v":""},{"$f":"IF($B445=\"N\",\"\",IF(OR('Enrollment Form'!$B452<>\"Subscriber\",'Enrollment Form'!$C452=\"ROC\"),\"-\",IF(AND('Enrollment Form'!$B452=\"Subscriber\",'Enrollment Form'!$C452=\"Enroll\",'Enrollment Form'!$AN452<>\"\"),\"Y\",\"N\")))","v":""},{"$f":"IF($B445=\"N\",\"\",IF(OR('Enrollment Form'!$B452<>\"Subscriber\",'Enrollment Form'!$C452=\"ROC\"),\"-\",IF(AND('Enrollment Form'!$B452=\"Subscriber\",'Enrollment Form'!$C452=\"Enroll\",'Enrollment Form'!$AP452<>\"\"),\"Y\",\"N\")))","v":""},{"$f":"IF($B445=\"N\",\"\",IF($Q445=\"-\",\"-\",IF(AND($Q445=\"Y\",'Enrollment Form'!$AP452=\"No\"),\"-\",IF(AND($Q445=\"Y\",'Enrollment Form'!$AP452=\"Yes\",'Enrollment Form'!$AQ452<>\"\"),\"Y\",\"N\"))))","v":""},{"$f":"IF($B445=\"N\",\"\",IF(OR('Enrollment Form'!$B452<>\"Subscriber\",'Enrollment Form'!$C452=\"ROC\"),\"-\",IF(AND('Enrollment Form'!$B452=\"Subscriber\",'Enrollment Form'!$C452=\"Enroll\",'Enrollment Form'!$CO452<>\"\"),\"Y\",\"N\")))","v":""},{"$f":"IF($B445=\"N\",\"\",IF($S445=\"-\",\"-\",IF(AND($S445=\"Y\",'Enrollment Form'!$CO452=\"No\"),\"-\",IF(AND($S445=\"Y\",'Enrollment Form'!$CO452=\"Yes\",'Enrollment Form'!$CP452<>\"\"),\"Y\",\"N\"))))","v":""},{"$f":"IF(OR('Enrollment Form'!$AV452=\"Yes\",'Enrollment Form'!$AV452=\"\"),\"-\",IF(AND('Enrollment Form'!$AV452=\"No\",ISERROR(FIND(\"HMO\",VLOOKUP('Enrollment Form'!G452,'Enrollment Form'!H$11:J$1000,3,FALSE),1))=FALSE,COUNTA('Enrollment Form'!$AW452:$AZ452)=4),\"Y\",\"N\"))","v":"-"},{"$f":"IF($B445=\"N\",\"\",IF('Enrollment Form'!$B452=\"Subscriber\",\"-\",IF(COUNTA('Enrollment Form'!$BE452,'Enrollment Form'!$BG452)=2,\"Y\",\"N\")))","v":""},{"$f":"IF($B445=\"N\",\"\",IF(OR('Enrollment Form'!$AU452=\"\",'Enrollment Form'!$AU452=\"No\"),\"-\",IF(AND('Enrollment Form'!$AU452=\"Yes\",COUNTA('Enrollment Form'!$CK452)=1),\"Y\",\"N\")))","v":""},{"$f":"IF(OR('Enrollment Form'!$CK452=\"\",'Enrollment Form'!$CK452=\"No\"),\"-\",IF(COUNTA('Enrollment Form'!$CM452:$CN452)=2,\"Y\",\"N\"))","v":"-"},{"$f":"IF($B445=\"N\",\"\",IF(COUNTIF('Enrollment Form'!$CZ452:$DO452,\"Other\")=COUNTA('Enrollment Form'!$DF452,'Enrollment Form'!$DA452,'Enrollment Form'!$DK452,'Enrollment Form'!$DP452),\"Y\",\"N\"))","v":""},{"$f":"IF($B445=\"N\",\"\",IF(OR('Enrollment Form'!B452<>\"Subscriber\",'Enrollment Form'!C452=\"ROC\",COUNTIF('Enrollment Form'!AS452:AT452,\"Yes\")>=1),\"-\",IF(AND('Enrollment Form'!C452=\"Enroll\",COUNTIF('Enrollment Form'!AS452:AT452,\"No\")=2,'Enrollment Form'!AU452=\"\"),\"N\",\"Y\")))","v":""},{"$f":"IF(OR(B445=\"N\",'Enrollment Form'!B452<>\"Subscriber\",'Enrollment Form'!C452=\"ROC\",'Enrollment Form'!O452<>\"Multiple of Salary\"),\"-\",IF(COUNTA('Enrollment Form'!T452:U452)<2,\"N\",\"Y\"))","v":"-"},{"$f":"IF(B445=\"N\",\"\",IF(OR('Enrollment Form'!C452=\"ROC\",'Enrollment Form'!B452<>\"Subscriber\",'Enrollment Form'!O452=\"Waive\",'Enrollment Form'!O452=\"\"),\"-\",IF('Enrollment Form'!P452=\"\",\"N\",\"Y\")))","v":""},{"$f":"IF($B445=\"N\",\"\",IF(AND('Enrollment Form'!$C452=\"ROC\",'Enrollment Form'!$DS452<>\"\"),\"Y\",IF(AND('Enrollment Form'!$C452=\"ROC\",'Enrollment Form'!$DS452=\"\"),\"N\",IF(AND('Enrollment Form'!$C452=\"Enroll\",'Enrollment Form'!$B452=\"Subscriber\",'Enrollment Form'!$CQ452=\"No\",'Enrollment Form'!$DS452=\"\"),\"N\",IF(AND('Enrollment Form'!$C452=\"Enroll\",'Enrollment Form'!$B452=\"Subscriber\",'Enrollment Form'!$CQ452=\"Yes\"),\"-\",\"Y\")))))","v":""},{"$f":"IF($B445=\"N\",\"\",IF(AND('Enrollment Form'!$C452=\"ROC\",'Enrollment Form'!$DT452<>\"\"),\"Y\",IF(AND('Enrollment Form'!$C452=\"ROC\",'Enrollment Form'!$DT452=\"\"),\"N\",IF(AND('Enrollment Form'!$C452=\"Enroll\",'Enrollment Form'!$B452=\"Subscriber\",'Enrollment Form'!$CQ452=\"No\",'Enrollment Form'!$DT452=\"\"),\"N\",IF(AND('Enrollment Form'!$C452=\"Enroll\",'Enrollment Form'!$B452=\"Subscriber\",'Enrollment Form'!$CQ452=\"Yes\"),\"-\",\"Y\")))))","v":""},{"$f":"IF('Enrollment Form'!AH452=\"\",\"\",IF(ISERROR(SEARCH(\".\",'Enrollment Form'!AH452,SEARCH(\"@\",'Enrollment Form'!AH452))),\"N\",\"Y\"))","v":""},{"$f":"IF(OR($B445=\"N\",'Enrollment Form'!$G452=\"\"),\"\",IF('Enrollment Form'!$B452<>\"Subscriber\",\"-\",IF(COUNTIF('Enrollment Form'!$AS452:$AT452,\"Yes\")=2,\"N\",\"Y\")))","v":""},{"$f":"IF(OR('Enrollment Form'!$CC452=\"\",'Enrollment Form'!$CC452=\"No\"),\"-\",IF(AND('Enrollment Form'!$CC452=\"Yes\",'Enrollment Form'!$CD452=\"\"),\"N\",\"Y\"))","v":"-"},{"$f":"IF(OR('Enrollment Form'!$CE452=\"\",'Enrollment Form'!$CE452=\"No\"),\"-\",IF(AND('Enrollment Form'!$CE452=\"Yes\",'Enrollment Form'!$CF452=\"\"),\"N\",\"Y\"))","v":"-"},{"$f":"IF(OR('Enrollment Form'!$CG452=\"\",'Enrollment Form'!$CG452=\"No\"),\"-\",IF(AND('Enrollment Form'!$CG452=\"Yes\",'Enrollment Form'!$CH452=\"\"),\"N\",\"Y\"))","v":"-"},{"$f":"IF(OR('Enrollment Form'!$CG452=\"\",'Enrollment Form'!$CG452=\"No\"),\"-\",IF(AND('Enrollment Form'!$CG452=\"Yes\",'Enrollment Form'!$CI452=\"\"),\"N\",\"Y\"))","v":"-"},{"$f":"IF('Enrollment Form'!B452<>\"Subscriber\",\"-\",IF(AND('Enrollment Form'!B452=\"Subscriber\",'Enrollment Form'!C452=\"Enroll\",'Enrollment Form'!AA452=\"\"),\"N\",\"Y\"))","v":"-"},{"$f":"IF(OR('Enrollment Form'!B452=\"Subscriber\",'Enrollment Form'!B452=\"\"),\"-\",IF('Enrollment Form'!BI452=\"\",\"N\",\"Y\"))","v":"-"},{"$f":"IF('Enrollment Form'!B452<>\"Subscriber\",\"-\",IF(AND('Enrollment Form'!B452=\"Subscriber\",'Enrollment Form'!G452=\"\"),\"N\",\"Y\"))","v":"-"},{"$f":"IF('Enrollment Form'!A452=\"\",\"\",IF('Enrollment Form'!B452=\"Subscriber\",\"-\",IF(AND('Enrollment Form'!B452<>\"Subscriber\",'Enrollment Form'!G452='Enrollment Form'!H452),\"N\",\"Y\")))","v":""},0]
[453,{"$f":"IF('Enrollment Form'!$A453<>\"\",\"Y\",\"N\")","v":"N"},{"$f":"IF(AND('Enrollment Form'!$B453=\"\",'Enrollment Form'!$C453<>\"\"),\"N\",IF($B446=\"N\",\"\",\"Y\"))","v":""},{"$f":"IF(OR($B446=\"N\",'Enrollment Form'!G453=\"\"),\"\",IF('Enrollment Form'!$B453<>\"Subscriber\",\"\",IF('Enrollment Form'!$G453='Enrollment Form'!$H453,\"Y\",\"N\")))","v":""},{"$f":"IF($B446=\"N\",\"\",IF(AND(COUNTIFS('Enrollment Form'!$H$11:$H$1000,'Enrollment Form'!$H453,'Enrollment Form'!$B$11:$B$1000,'Enrollment Form'!$B453)>1,'Enrollment Form'!$H453<>\"\"),\"N\",\"Y\"))","v":""},{"$f":"IF($B446=\"N\",\"\",IF(LEN('Enrollment Form'!$Y453)=0,\"\",IF(LEN('Enrollment Form'!$Y453)<>5,\"N\",\"Y\")))","v":""},{"$f":"IF($B446=\"N\",\"\",IF(LEN('Enrollment Form'!$AD453=0),\"\",IF(LEN('Enrollment Form'!$AD453)<>5,\"N\",\"Y\")))","v":""},{"$f":"IF($B446=\"N\",\"\",IF(LEN('Enrollment Form'!$BL453=0),\"\",IF(LEN('Enrollment Form'!$BL453)<>5,\"N\",\"Y\")))","v":""},{"$f":"IF($B446=\"N\",\"\",IF(LEN('Enrollment Form'!$AE453)=0,\"\",IF(LEN('Enrollment Form'!$AE453)<>10,\"N\",\"Y\")))","v":""},{"$f":"IF($B446=\"N\",\"\",IF(LEN('Enrollment Form'!$AF453)=0,\"\",IF(LEN('Enrollment Form'!$AF453)<>10,\"N\",\"Y\")))","v":""},{"$f":"IF('Enrollment Form'!$O453<>\"Graded\",\"-\",IF(AND('Enrollment Form'!$O453=\"Graded\",'Enrollment Form'!$AO453<>\"\"),\"Y\",\"N\"))","v":"-"},{"$f":"IF($B446=\"N\",\"\",IF(OR('Enrollment Form'!$B453<>\"Subscriber\",'Enrollment Form'!$C453=\"ROC\"),\"-\",IF(AND('Enrollment Form'!$B453=\"Subscriber\",'Enrollment Form'!$C453=\"Enroll\",'Enrollment Form'!$AJ453<>\"\"),\"Y\",\"N\")))","v":""},{"$f":"IF($B446=\"N\",\"\",IF(OR('Enrollment Form'!$B453<>\"Subscriber\",'Enrollment Form'!$C453=\"ROC\"),\"-\",IF(AND('Enrollment Form'!$B453=\"Subscriber\",'Enrollment Form'!$C453=\"Enroll\",'Enrollment Form'!$AK453<>\"\"),\"Y\",\"N\")))","v":""},{"$f":"IF($B446=\"N\",\"\",IF(OR('Enrollment Form'!$B453<>\"Subscriber\",'Enrollment Form'!$C453=\"ROC\"),\"-\",IF(AND('Enrollment Form'!$B453=\"Subscriber\",'Enrollment Form'!$C453=\"Enroll\",'Enrollment Form'!$AL453<>\"\"),\"Y\",\"N\")))","v":""},{"$f":"IF($B446=\"N\",\"\",IF(OR('Enrollment Form'!$B453<>\"Subscriber\",'Enrollment Form'!$C453=\"ROC\"),\"-\",IF(AND('Enrollment Form'!$B453=\"Subscriber\",'Enrollment Form'!$C453=\"Enroll\",'Enrollment Form'!$AM453<>\"\"),\"Y\",\"N\")))","v":""},{"$f":"IF($B446=\"N\",\"\",IF(OR('Enrollment Form'!$B453<>\"Subscriber\",'Enrollment Form'!$C453=\"ROC\"),\"-\",IF(AND('Enrollment Form'!$B453=\"Subscriber\",'Enrollment Form'!$C453=\"Enroll\",'Enrollment Form'!$AN453<>\"\"),\"Y\",\"N\")))","v":""},{"$f":"IF($B446=\"N\",\"\",IF(OR('Enrollment Form'!$B453<>\"Subscriber\",'Enrollment Form'!$C453=\"ROC\"),\"-\",IF(AND('Enrollment Form'!$B453=\"Subscriber\",'Enrollment Form'!$C453=\"Enroll\",'Enrollment Form'!$AP453<>\"\"),\"Y\",\"N\")))","v":""},{"$f":"IF($B446=\"N\",\"\",IF($Q446=\"-\",\"-\",IF(AND($Q446=\"Y\",'Enrollment Form'!$AP453=\"No\"),\"-\",IF(AND($Q446=\"Y\",'Enrollment Form'!$AP453=\"Yes\",'Enrollment Form'!$AQ453<>\"\"),\"Y\",\"N\"))))","v":""},{"$f":"IF($B446=\"N\",\"\",IF(OR('Enrollment Form'!$B453<>\"Subscriber\",'Enrollment Form'!$C453=\"ROC\"),\"-\",IF(AND('Enrollment Form'!$B453=\"Subscriber\",'Enrollment Form'!$C453=\"Enroll\",'Enrollment Form'!$CO453<>\"\"),\"Y\",\"N\")))","v":""},{"$f":"IF($B446=\"N\",\"\",IF($S446=\"-\",\"-\",IF(AND($S446=\"Y\",'Enrollment Form'!$CO453=\"No\"),\"-\",IF(AND($S446=\"Y\",'Enrollment Form'!$CO453=\"Yes\",'Enrollment Form'!$CP453<>\"\"),\"Y\",\"N\"))))","v":""},{"$f":"IF(OR('Enrollment Form'!$AV453=\"Yes\",'Enrollment Form'!$AV453=\"\"),\"-\",IF(AND('Enrollment Form'!$AV453=\"No\",ISERROR(FIND(\"HMO\",VLOOKUP('Enrollment Form'!G453,'Enrollment Form'!H$11:J$1000,3,FALSE),1))=FALSE,COUNTA('Enrollment Form'!$AW453:$AZ453)=4),\"Y\",\"N\"))","v":"-"},{"$f":"IF($B446=\"N\",\"\",IF('Enrollment Form'!$B453=\"Subscriber\",\"-\",IF(COUNTA('Enrollment Form'!$BE453,'Enrollment Form'!$BG453)=2,\"Y\",\"N\")))","v":""},{"$f":"IF($B446=\"N\",\"\",IF(OR('Enrollment Form'!$AU453=\"\",'Enrollment Form'!$AU453=\"No\"),\"-\",IF(AND('Enrollment Form'!$AU453=\"Yes\",COUNTA('Enrollment Form'!$CK453)=1),\"Y\",\"N\")))","v":""},{"$f":"IF(OR('Enrollment Form'!$CK453=\"\",'Enrollment Form'!$CK453=\"No\"),\"-\",IF(COUNTA('Enrollment Form'!$CM453:$CN453)=2,\"Y\",\"N\"))","v":"-"},{"$f":"IF($B446=\"N\",\"\",IF(COUNTIF('Enrollment Form'!$CZ453:$DO453,\"Other\")=COUNTA('Enrollment Form'!$DF453,'Enrollment Form'!$DA453,'Enrollment Form'!$DK453,'Enrollment Form'!$DP453),\"Y\",\"N\"))","v":""},{"$f":"IF($B446=\"N\",\"\",IF(OR('Enrollment Form'!B453<>\"Subscriber\",'Enrollment Form'!C453=\"ROC\",COUNTIF('Enrollment Form'!AS453:AT453,\"Yes\")>=1),\"-\",IF(AND('Enrollment Form'!C453=\"Enroll\",COUNTIF('Enrollment Form'!AS453:AT453,\"No\")=2,'Enrollment Form'!AU453=\"\"),\"N\",\"Y\")))","v":""},{"$f":"IF(OR(B446=\"N\",'Enrollment Form'!B453<>\"Subscriber\",'Enrollment Form'!C453=\"ROC\",'Enrollment Form'!O453<>\"Multiple of Salary\"),\"-\",IF(COUNTA('Enrollment Form'!T453:U453)<2,\"N\",\"Y\"))","v":"-"},{"$f":"IF(B446=\"N\",\"\",IF(OR('Enrollment Form'!C453=\"ROC\",'Enrollment Form'!B453<>\"Subscriber\",'Enrollment Form'!O453=\"Waive\",'Enrollment Form'!O453=\"\"),\"-\",IF('Enrollment Form'!P453=\"\",\"N\",\"Y\")))","v":""},{"$f":"IF($B446=\"N\",\"\",IF(AND('Enrollment Form'!$C453=\"ROC\",'Enrollment Form'!$DS453<>\"\"),\"Y\",IF(AND('Enrollment Form'!$C453=\"ROC\",'Enrollment Form'!$DS453=\"\"),\"N\",IF(AND('Enrollment Form'!$C453=\"Enroll\",'Enrollment Form'!$B453=\"Subscriber\",'Enrollment Form'!$CQ453=\"No\",'Enrollment Form'!$DS453=\"\"),\"N\",IF(AND('Enrollment Form'!$C453=\"Enroll\",'Enrollment Form'!$B453=\"Subscriber\",'Enrollment Form'!$CQ453=\"Yes\"),\"-\",\"Y\")))))","v":""},{"$f":"IF($B446=\"N\",\"\",IF(AND('Enrollment Form'!$C453=\"ROC\",'Enrollment Form'!$DT453<>\"\"),\"Y\",IF(AND('Enrollment Form'!$C453=\"ROC\",'Enrollment Form'!$DT453=\"\"),\"N\",IF(AND('Enrollment Form'!$C453=\"Enroll\",'Enrollment Form'!$B453=\"Subscriber\",'Enrollment Form'!$CQ453=\"No\",'Enrollment Form'!$DT453=\"\"),\"N\",IF(AND('Enrollment Form'!$C453=\"Enroll\",'Enrollment Form'!$B453=\"Subscriber\",'Enrollment Form'!$CQ453=\"Yes\"),\"-\",\"Y\")))))","v":""},{"$f":"IF('Enrollment Form'!AH453=\"\",\"\",IF(ISERROR(SEARCH(\".\",'Enrollment Form'!AH453,SEARCH(\"@\",'Enrollment Form'!AH453))),\"N\",\"Y\"))","v":""},{"$f":"IF(OR($B446=\"N\",'Enrollment Form'!$G453=\"\"),\"\",IF('Enrollment Form'!$B453<>\"Subscriber\",\"-\",IF(COUNTIF('Enrollment Form'!$AS453:$AT453,\"Yes\")=2,\"N\",\"Y\")))","v":""},{"$f":"IF(OR('Enrollment Form'!$CC453=\"\",'Enrollment Form'!$CC453=\"No\"),\"-\",IF(AND('Enrollment Form'!$CC453=\"Yes\",'Enrollment Form'!$CD453=\"\"),\"N\",\"Y\"))","v":"-"},{"$f":"IF(OR('Enrollment Form'!$CE453=\"\",'Enrollment Form'!$CE453=\"No\"),\"-\",IF(AND('Enrollment Form'!$CE453=\"Yes\",'Enrollment Form'!$CF453=\"\"),\"N\",\"Y\"))","v":"-"},{"$f":"IF(OR('Enrollment Form'!$CG453=\"\",'Enrollment Form'!$CG453=\"No\"),\"-\",IF(AND('Enrollment Form'!$CG453=\"Yes\",'Enrollment Form'!$CH453=\"\"),\"N\",\"Y\"))","v":"-"},{"$f":"IF(OR('Enrollment Form'!$CG453=\"\",'Enrollment Form'!$CG453=\"No\"),\"-\",IF(AND('Enrollment Form'!$CG453=\"Yes\",'Enrollment Form'!$CI453=\"\"),\"N\",\"Y\"))","v":"-"},{"$f":"IF('Enrollment Form'!B453<>\"Subscriber\",\"-\",IF(AND('Enrollment Form'!B453=\"Subscriber\",'Enrollment Form'!C453=\"Enroll\",'Enrollment Form'!AA453=\"\"),\"N\",\"Y\"))","v":"-"},{"$f":"IF(OR('Enrollment Form'!B453=\"Subscriber\",'Enrollment Form'!B453=\"\"),\"-\",IF('Enrollment Form'!BI453=\"\",\"N\",\"Y\"))","v":"-"},{"$f":"IF('Enrollment Form'!B453<>\"Subscriber\",\"-\",IF(AND('Enrollment Form'!B453=\"Subscriber\",'Enrollment Form'!G453=\"\"),\"N\",\"Y\"))","v":"-"},{"$f":"IF('Enrollment Form'!A453=\"\",\"\",IF('Enrollment Form'!B453=\"Subscriber\",\"-\",IF(AND('Enrollment Form'!B453<>\"Subscriber\",'Enrollment Form'!G453='Enrollment Form'!H453),\"N\",\"Y\")))","v":""},0]
[454,{"$f":"IF('Enrollment Form'!$A454<>\"\",\"Y\",\"N\")","v":"N"},{"$f":"IF(AND('Enrollment Form'!$B454=\"\",'Enrollment Form'!$C454<>\"\"),\"N\",IF($B447=\"N\",\"\",\"Y\"))","v":""},{"$f":"IF(OR($B447=\"N\",'Enrollment Form'!G454=\"\"),\"\",IF('Enrollment Form'!$B454<>\"Subscriber\",\"\",IF('Enrollment Form'!$G454='Enrollment Form'!$H454,\"Y\",\"N\")))","v":""},{"$f":"IF($B447=\"N\",\"\",IF(AND(COUNTIFS('Enrollment Form'!$H$11:$H$1000,'Enrollment Form'!$H454,'Enrollment Form'!$B$11:$B$1000,'Enrollment Form'!$B454)>1,'Enrollment Form'!$H454<>\"\"),\"N\",\"Y\"))","v":""},{"$f":"IF($B447=\"N\",\"\",IF(LEN('Enrollment Form'!$Y454)=0,\"\",IF(LEN('Enrollment Form'!$Y454)<>5,\"N\",\"Y\")))","v":""},{"$f":"IF($B447=\"N\",\"\",IF(LEN('Enrollment Form'!$AD454=0),\"\",IF(LEN('Enrollment Form'!$AD454)<>5,\"N\",\"Y\")))","v":""},{"$f":"IF($B447=\"N\",\"\",IF(LEN('Enrollment Form'!$BL454=0),\"\",IF(LEN('Enrollment Form'!$BL454)<>5,\"N\",\"Y\")))","v":""},{"$f":"IF($B447=\"N\",\"\",IF(LEN('Enrollment Form'!$AE454)=0,\"\",IF(LEN('Enrollment Form'!$AE454)<>10,\"N\",\"Y\")))","v":""},{"$f":"IF($B447=\"N\",\"\",IF(LEN('Enrollment Form'!$AF454)=0,\"\",IF(LEN('Enrollment Form'!$AF454)<>10,\"N\",\"Y\")))","v":""},{"$f":"IF('Enrollment Form'!$O454<>\"Graded\",\"-\",IF(AND('Enrollment Form'!$O454=\"Graded\",'Enrollment Form'!$AO454<>\"\"),\"Y\",\"N\"))","v":"-"},{"$f":"IF($B447=\"N\",\"\",IF(OR('Enrollment Form'!$B454<>\"Subscriber\",'Enrollment Form'!$C454=\"ROC\"),\"-\",IF(AND('Enrollment Form'!$B454=\"Subscriber\",'Enrollment Form'!$C454=\"Enroll\",'Enrollment Form'!$AJ454<>\"\"),\"Y\",\"N\")))","v":""},{"$f":"IF($B447=\"N\",\"\",IF(OR('Enrollment Form'!$B454<>\"Subscriber\",'Enrollment Form'!$C454=\"ROC\"),\"-\",IF(AND('Enrollment Form'!$B454=\"Subscriber\",'Enrollment Form'!$C454=\"Enroll\",'Enrollment Form'!$AK454<>\"\"),\"Y\",\"N\")))","v":""},{"$f":"IF($B447=\"N\",\"\",IF(OR('Enrollment Form'!$B454<>\"Subscriber\",'Enrollment Form'!$C454=\"ROC\"),\"-\",IF(AND('Enrollment Form'!$B454=\"Subscriber\",'Enrollment Form'!$C454=\"Enroll\",'Enrollment Form'!$AL454<>\"\"),\"Y\",\"N\")))","v":""},{"$f":"IF($B447=\"N\",\"\",IF(OR('Enrollment Form'!$B454<>\"Subscriber\",'Enrollment Form'!$C454=\"ROC\"),\"-\",IF(AND('Enrollment Form'!$B454=\"Subscriber\",'Enrollment Form'!$C454=\"Enroll\",'Enrollment Form'!$AM454<>\"\"),\"Y\",\"N\")))","v":""},{"$f":"IF($B447=\"N\",\"\",IF(OR('Enrollment Form'!$B454<>\"Subscriber\",'Enrollment Form'!$C454=\"ROC\"),\"-\",IF(AND('Enrollment Form'!$B454=\"Subscriber\",'Enrollment Form'!$C454=\"Enroll\",'Enrollment Form'!$AN454<>\"\"),\"Y\",\"N\")))","v":""},{"$f":"IF($B447=\"N\",\"\",IF(OR('Enrollment Form'!$B454<>\"Subscriber\",'Enrollment Form'!$C454=\"ROC\"),\"-\",IF(AND('Enrollment Form'!$B454=\"Subscriber\",'Enrollment Form'!$C454=\"Enroll\",'Enrollment Form'!$AP454<>\"\"),\"Y\",\"N\")))","v":""},{"$f":"IF($B447=\"N\",\"\",IF($Q447=\"-\",\"-\",IF(AND($Q447=\"Y\",'Enrollment Form'!$AP454=\"No\"),\"-\",IF(AND($Q447=\"Y\",'Enrollment Form'!$AP454=\"Yes\",'Enrollment Form'!$AQ454<>\"\"),\"Y\",\"N\"))))","v":""},{"$f":"IF($B447=\"N\",\"\",IF(OR('Enrollment Form'!$B454<>\"Subscriber\",'Enrollment Form'!$C454=\"ROC\"),\"-\",IF(AND('Enrollment Form'!$B454=\"Subscriber\",'Enrollment Form'!$C454=\"Enroll\",'Enrollment Form'!$CO454<>\"\"),\"Y\",\"N\")))","v":""},{"$f":"IF($B447=\"N\",\"\",IF($S447=\"-\",\"-\",IF(AND($S447=\"Y\",'Enrollment Form'!$CO454=\"No\"),\"-\",IF(AND($S447=\"Y\",'Enrollment Form'!$CO454=\"Yes\",'Enrollment Form'!$CP454<>\"\"),\"Y\",\"N\"))))","v":""},{"$f":"IF(OR('Enrollment Form'!$AV454=\"Yes\",'Enrollment Form'!$AV454=\"\"),\"-\",IF(AND('Enrollment Form'!$AV454=\"No\",ISERROR(FIND(\"HMO\",VLOOKUP('Enrollment Form'!G454,'Enrollment Form'!H$11:J$1000,3,FALSE),1))=FALSE,COUNTA('Enrollment Form'!$AW454:$AZ454)=4),\"Y\",\"N\"))","v":"-"},{"$f":"IF($B447=\"N\",\"\",IF('Enrollment Form'!$B454=\"Subscriber\",\"-\",IF(COUNTA('Enrollment Form'!$BE454,'Enrollment Form'!$BG454)=2,\"Y\",\"N\")))","v":""},{"$f":"IF($B447=\"N\",\"\",IF(OR('Enrollment Form'!$AU454=\"\",'Enrollment Form'!$AU454=\"No\"),\"-\",IF(AND('Enrollment Form'!$AU454=\"Yes\",COUNTA('Enrollment Form'!$CK454)=1),\"Y\",\"N\")))","v":""},{"$f":"IF(OR('Enrollment Form'!$CK454=\"\",'Enrollment Form'!$CK454=\"No\"),\"-\",IF(COUNTA('Enrollment Form'!$CM454:$CN454)=2,\"Y\",\"N\"))","v":"-"},{"$f":"IF($B447=\"N\",\"\",IF(COUNTIF('Enrollment Form'!$CZ454:$DO454,\"Other\")=COUNTA('Enrollment Form'!$DF454,'Enrollment Form'!$DA454,'Enrollment Form'!$DK454,'Enrollment Form'!$DP454),\"Y\",\"N\"))","v":""},{"$f":"IF($B447=\"N\",\"\",IF(OR('Enrollment Form'!B454<>\"Subscriber\",'Enrollment Form'!C454=\"ROC\",COUNTIF('Enrollment Form'!AS454:AT454,\"Yes\")>=1),\"-\",IF(AND('Enrollment Form'!C454=\"Enroll\",COUNTIF('Enrollment Form'!AS454:AT454,\"No\")=2,'Enrollment Form'!AU454=\"\"),\"N\",\"Y\")))","v":""},{"$f":"IF(OR(B447=\"N\",'Enrollment Form'!B454<>\"Subscriber\",'Enrollment Form'!C454=\"ROC\",'Enrollment Form'!O454<>\"Multiple of Salary\"),\"-\",IF(COUNTA('Enrollment Form'!T454:U454)<2,\"N\",\"Y\"))","v":"-"},{"$f":"IF(B447=\"N\",\"\",IF(OR('Enrollment Form'!C454=\"ROC\",'Enrollment Form'!B454<>\"Subscriber\",'Enrollment Form'!O454=\"Waive\",'Enrollment Form'!O454=\"\"),\"-\",IF('Enrollment Form'!P454=\"\",\"N\",\"Y\")))","v":""},{"$f":"IF($B447=\"N\",\"\",IF(AND('Enrollment Form'!$C454=\"ROC\",'Enrollment Form'!$DS454<>\"\"),\"Y\",IF(AND('Enrollment Form'!$C454=\"ROC\",'Enrollment Form'!$DS454=\"\"),\"N\",IF(AND('Enrollment Form'!$C454=\"Enroll\",'Enrollment Form'!$B454=\"Subscriber\",'Enrollment Form'!$CQ454=\"No\",'Enrollment Form'!$DS454=\"\"),\"N\",IF(AND('Enrollment Form'!$C454=\"Enroll\",'Enrollment Form'!$B454=\"Subscriber\",'Enrollment Form'!$CQ454=\"Yes\"),\"-\",\"Y\")))))","v":""},{"$f":"IF($B447=\"N\",\"\",IF(AND('Enrollment Form'!$C454=\"ROC\",'Enrollment Form'!$DT454<>\"\"),\"Y\",IF(AND('Enrollment Form'!$C454=\"ROC\",'Enrollment Form'!$DT454=\"\"),\"N\",IF(AND('Enrollment Form'!$C454=\"Enroll\",'Enrollment Form'!$B454=\"Subscriber\",'Enrollment Form'!$CQ454=\"No\",'Enrollment Form'!$DT454=\"\"),\"N\",IF(AND('Enrollment Form'!$C454=\"Enroll\",'Enrollment Form'!$B454=\"Subscriber\",'Enrollment Form'!$CQ454=\"Yes\"),\"-\",\"Y\")))))","v":""},{"$f":"IF('Enrollment Form'!AH454=\"\",\"\",IF(ISERROR(SEARCH(\".\",'Enrollment Form'!AH454,SEARCH(\"@\",'Enrollment Form'!AH454))),\"N\",\"Y\"))","v":""},{"$f":"IF(OR($B447=\"N\",'Enrollment Form'!$G454=\"\"),\"\",IF('Enrollment Form'!$B454<>\"Subscriber\",\"-\",IF(COUNTIF('Enrollment Form'!$AS454:$AT454,\"Yes\")=2,\"N\",\"Y\")))","v":""},{"$f":"IF(OR('Enrollment Form'!$CC454=\"\",'Enrollment Form'!$CC454=\"No\"),\"-\",IF(AND('Enrollment Form'!$CC454=\"Yes\",'Enrollment Form'!$CD454=\"\"),\"N\",\"Y\"))","v":"-"},{"$f":"IF(OR('Enrollment Form'!$CE454=\"\",'Enrollment Form'!$CE454=\"No\"),\"-\",IF(AND('Enrollment Form'!$CE454=\"Yes\",'Enrollment Form'!$CF454=\"\"),\"N\",\"Y\"))","v":"-"},{"$f":"IF(OR('Enrollment Form'!$CG454=\"\",'Enrollment Form'!$CG454=\"No\"),\"-\",IF(AND('Enrollment Form'!$CG454=\"Yes\",'Enrollment Form'!$CH454=\"\"),\"N\",\"Y\"))","v":"-"},{"$f":"IF(OR('Enrollment Form'!$CG454=\"\",'Enrollment Form'!$CG454=\"No\"),\"-\",IF(AND('Enrollment Form'!$CG454=\"Yes\",'Enrollment Form'!$CI454=\"\"),\"N\",\"Y\"))","v":"-"},{"$f":"IF('Enrollment Form'!B454<>\"Subscriber\",\"-\",IF(AND('Enrollment Form'!B454=\"Subscriber\",'Enrollment Form'!C454=\"Enroll\",'Enrollment Form'!AA454=\"\"),\"N\",\"Y\"))","v":"-"},{"$f":"IF(OR('Enrollment Form'!B454=\"Subscriber\",'Enrollment Form'!B454=\"\"),\"-\",IF('Enrollment Form'!BI454=\"\",\"N\",\"Y\"))","v":"-"},{"$f":"IF('Enrollment Form'!B454<>\"Subscriber\",\"-\",IF(AND('Enrollment Form'!B454=\"Subscriber\",'Enrollment Form'!G454=\"\"),\"N\",\"Y\"))","v":"-"},{"$f":"IF('Enrollment Form'!A454=\"\",\"\",IF('Enrollment Form'!B454=\"Subscriber\",\"-\",IF(AND('Enrollment Form'!B454<>\"Subscriber\",'Enrollment Form'!G454='Enrollment Form'!H454),\"N\",\"Y\")))","v":""},0]
[455,{"$f":"IF('Enrollment Form'!$A455<>\"\",\"Y\",\"N\")","v":"N"},{"$f":"IF(AND('Enrollment Form'!$B455=\"\",'Enrollment Form'!$C455<>\"\"),\"N\",IF($B448=\"N\",\"\",\"Y\"))","v":""},{"$f":"IF(OR($B448=\"N\",'Enrollment Form'!G455=\"\"),\"\",IF('Enrollment Form'!$B455<>\"Subscriber\",\"\",IF('Enrollment Form'!$G455='Enrollment Form'!$H455,\"Y\",\"N\")))","v":""},{"$f":"IF($B448=\"N\",\"\",IF(AND(COUNTIFS('Enrollment Form'!$H$11:$H$1000,'Enrollment Form'!$H455,'Enrollment Form'!$B$11:$B$1000,'Enrollment Form'!$B455)>1,'Enrollment Form'!$H455<>\"\"),\"N\",\"Y\"))","v":""},{"$f":"IF($B448=\"N\",\"\",IF(LEN('Enrollment Form'!$Y455)=0,\"\",IF(LEN('Enrollment Form'!$Y455)<>5,\"N\",\"Y\")))","v":""},{"$f":"IF($B448=\"N\",\"\",IF(LEN('Enrollment Form'!$AD455=0),\"\",IF(LEN('Enrollment Form'!$AD455)<>5,\"N\",\"Y\")))","v":""},{"$f":"IF($B448=\"N\",\"\",IF(LEN('Enrollment Form'!$BL455=0),\"\",IF(LEN('Enrollment Form'!$BL455)<>5,\"N\",\"Y\")))","v":""},{"$f":"IF($B448=\"N\",\"\",IF(LEN('Enrollment Form'!$AE455)=0,\"\",IF(LEN('Enrollment Form'!$AE455)<>10,\"N\",\"Y\")))","v":""},{"$f":"IF($B448=\"N\",\"\",IF(LEN('Enrollment Form'!$AF455)=0,\"\",IF(LEN('Enrollment Form'!$AF455)<>10,\"N\",\"Y\")))","v":""},{"$f":"IF('Enrollment Form'!$O455<>\"Graded\",\"-\",IF(AND('Enrollment Form'!$O455=\"Graded\",'Enrollment Form'!$AO455<>\"\"),\"Y\",\"N\"))","v":"-"},{"$f":"IF($B448=\"N\",\"\",IF(OR('Enrollment Form'!$B455<>\"Subscriber\",'Enrollment Form'!$C455=\"ROC\"),\"-\",IF(AND('Enrollment Form'!$B455=\"Subscriber\",'Enrollment Form'!$C455=\"Enroll\",'Enrollment Form'!$AJ455<>\"\"),\"Y\",\"N\")))","v":""},{"$f":"IF($B448=\"N\",\"\",IF(OR('Enrollment Form'!$B455<>\"Subscriber\",'Enrollment Form'!$C455=\"ROC\"),\"-\",IF(AND('Enrollment Form'!$B455=\"Subscriber\",'Enrollment Form'!$C455=\"Enroll\",'Enrollment Form'!$AK455<>\"\"),\"Y\",\"N\")))","v":""},{"$f":"IF($B448=\"N\",\"\",IF(OR('Enrollment Form'!$B455<>\"Subscriber\",'Enrollment Form'!$C455=\"ROC\"),\"-\",IF(AND('Enrollment Form'!$B455=\"Subscriber\",'Enrollment Form'!$C455=\"Enroll\",'Enrollment Form'!$AL455<>\"\"),\"Y\",\"N\")))","v":""},{"$f":"IF($B448=\"N\",\"\",IF(OR('Enrollment Form'!$B455<>\"Subscriber\",'Enrollment Form'!$C455=\"ROC\"),\"-\",IF(AND('Enrollment Form'!$B455=\"Subscriber\",'Enrollment Form'!$C455=\"Enroll\",'Enrollment Form'!$AM455<>\"\"),\"Y\",\"N\")))","v":""},{"$f":"IF($B448=\"N\",\"\",IF(OR('Enrollment Form'!$B455<>\"Subscriber\",'Enrollment Form'!$C455=\"ROC\"),\"-\",IF(AND('Enrollment Form'!$B455=\"Subscriber\",'Enrollment Form'!$C455=\"Enroll\",'Enrollment Form'!$AN455<>\"\"),\"Y\",\"N\")))","v":""},{"$f":"IF($B448=\"N\",\"\",IF(OR('Enrollment Form'!$B455<>\"Subscriber\",'Enrollment Form'!$C455=\"ROC\"),\"-\",IF(AND('Enrollment Form'!$B455=\"Subscriber\",'Enrollment Form'!$C455=\"Enroll\",'Enrollment Form'!$AP455<>\"\"),\"Y\",\"N\")))","v":""},{"$f":"IF($B448=\"N\",\"\",IF($Q448=\"-\",\"-\",IF(AND($Q448=\"Y\",'Enrollment Form'!$AP455=\"No\"),\"-\",IF(AND($Q448=\"Y\",'Enrollment Form'!$AP455=\"Yes\",'Enrollment Form'!$AQ455<>\"\"),\"Y\",\"N\"))))","v":""},{"$f":"IF($B448=\"N\",\"\",IF(OR('Enrollment Form'!$B455<>\"Subscriber\",'Enrollment Form'!$C455=\"ROC\"),\"-\",IF(AND('Enrollment Form'!$B455=\"Subscriber\",'Enrollment Form'!$C455=\"Enroll\",'Enrollment Form'!$CO455<>\"\"),\"Y\",\"N\")))","v":""},{"$f":"IF($B448=\"N\",\"\",IF($S448=\"-\",\"-\",IF(AND($S448=\"Y\",'Enrollment Form'!$CO455=\"No\"),\"-\",IF(AND($S448=\"Y\",'Enrollment Form'!$CO455=\"Yes\",'Enrollment Form'!$CP455<>\"\"),\"Y\",\"N\"))))","v":""},{"$f":"IF(OR('Enrollment Form'!$AV455=\"Yes\",'Enrollment Form'!$AV455=\"\"),\"-\",IF(AND('Enrollment Form'!$AV455=\"No\",ISERROR(FIND(\"HMO\",VLOOKUP('Enrollment Form'!G455,'Enrollment Form'!H$11:J$1000,3,FALSE),1))=FALSE,COUNTA('Enrollment Form'!$AW455:$AZ455)=4),\"Y\",\"N\"))","v":"-"},{"$f":"IF($B448=\"N\",\"\",IF('Enrollment Form'!$B455=\"Subscriber\",\"-\",IF(COUNTA('Enrollment Form'!$BE455,'Enrollment Form'!$BG455)=2,\"Y\",\"N\")))","v":""},{"$f":"IF($B448=\"N\",\"\",IF(OR('Enrollment Form'!$AU455=\"\",'Enrollment Form'!$AU455=\"No\"),\"-\",IF(AND('Enrollment Form'!$AU455=\"Yes\",COUNTA('Enrollment Form'!$CK455)=1),\"Y\",\"N\")))","v":""},{"$f":"IF(OR('Enrollment Form'!$CK455=\"\",'Enrollment Form'!$CK455=\"No\"),\"-\",IF(COUNTA('Enrollment Form'!$CM455:$CN455)=2,\"Y\",\"N\"))","v":"-"},{"$f":"IF($B448=\"N\",\"\",IF(COUNTIF('Enrollment Form'!$CZ455:$DO455,\"Other\")=COUNTA('Enrollment Form'!$DF455,'Enrollment Form'!$DA455,'Enrollment Form'!$DK455,'Enrollment Form'!$DP455),\"Y\",\"N\"))","v":""},{"$f":"IF($B448=\"N\",\"\",IF(OR('Enrollment Form'!B455<>\"Subscriber\",'Enrollment Form'!C455=\"ROC\",COUNTIF('Enrollment Form'!AS455:AT455,\"Yes\")>=1),\"-\",IF(AND('Enrollment Form'!C455=\"Enroll\",COUNTIF('Enrollment Form'!AS455:AT455,\"No\")=2,'Enrollment Form'!AU455=\"\"),\"N\",\"Y\")))","v":""},{"$f":"IF(OR(B448=\"N\",'Enrollment Form'!B455<>\"Subscriber\",'Enrollment Form'!C455=\"ROC\",'Enrollment Form'!O455<>\"Multiple of Salary\"),\"-\",IF(COUNTA('Enrollment Form'!T455:U455)<2,\"N\",\"Y\"))","v":"-"},{"$f":"IF(B448=\"N\",\"\",IF(OR('Enrollment Form'!C455=\"ROC\",'Enrollment Form'!B455<>\"Subscriber\",'Enrollment Form'!O455=\"Waive\",'Enrollment Form'!O455=\"\"),\"-\",IF('Enrollment Form'!P455=\"\",\"N\",\"Y\")))","v":""},{"$f":"IF($B448=\"N\",\"\",IF(AND('Enrollment Form'!$C455=\"ROC\",'Enrollment Form'!$DS455<>\"\"),\"Y\",IF(AND('Enrollment Form'!$C455=\"ROC\",'Enrollment Form'!$DS455=\"\"),\"N\",IF(AND('Enrollment Form'!$C455=\"Enroll\",'Enrollment Form'!$B455=\"Subscriber\",'Enrollment Form'!$CQ455=\"No\",'Enrollment Form'!$DS455=\"\"),\"N\",IF(AND('Enrollment Form'!$C455=\"Enroll\",'Enrollment Form'!$B455=\"Subscriber\",'Enrollment Form'!$CQ455=\"Yes\"),\"-\",\"Y\")))))","v":""},{"$f":"IF($B448=\"N\",\"\",IF(AND('Enrollment Form'!$C455=\"ROC\",'Enrollment Form'!$DT455<>\"\"),\"Y\",IF(AND('Enrollment Form'!$C455=\"ROC\",'Enrollment Form'!$DT455=\"\"),\"N\",IF(AND('Enrollment Form'!$C455=\"Enroll\",'Enrollment Form'!$B455=\"Subscriber\",'Enrollment Form'!$CQ455=\"No\",'Enrollment Form'!$DT455=\"\"),\"N\",IF(AND('Enrollment Form'!$C455=\"Enroll\",'Enrollment Form'!$B455=\"Subscriber\",'Enrollment Form'!$CQ455=\"Yes\"),\"-\",\"Y\")))))","v":""},{"$f":"IF('Enrollment Form'!AH455=\"\",\"\",IF(ISERROR(SEARCH(\".\",'Enrollment Form'!AH455,SEARCH(\"@\",'Enrollment Form'!AH455))),\"N\",\"Y\"))","v":""},{"$f":"IF(OR($B448=\"N\",'Enrollment Form'!$G455=\"\"),\"\",IF('Enrollment Form'!$B455<>\"Subscriber\",\"-\",IF(COUNTIF('Enrollment Form'!$AS455:$AT455,\"Yes\")=2,\"N\",\"Y\")))","v":""},{"$f":"IF(OR('Enrollment Form'!$CC455=\"\",'Enrollment Form'!$CC455=\"No\"),\"-\",IF(AND('Enrollment Form'!$CC455=\"Yes\",'Enrollment Form'!$CD455=\"\"),\"N\",\"Y\"))","v":"-"},{"$f":"IF(OR('Enrollment Form'!$CE455=\"\",'Enrollment Form'!$CE455=\"No\"),\"-\",IF(AND('Enrollment Form'!$CE455=\"Yes\",'Enrollment Form'!$CF455=\"\"),\"N\",\"Y\"))","v":"-"},{"$f":"IF(OR('Enrollment Form'!$CG455=\"\",'Enrollment Form'!$CG455=\"No\"),\"-\",IF(AND('Enrollment Form'!$CG455=\"Yes\",'Enrollment Form'!$CH455=\"\"),\"N\",\"Y\"))","v":"-"},{"$f":"IF(OR('Enrollment Form'!$CG455=\"\",'Enrollment Form'!$CG455=\"No\"),\"-\",IF(AND('Enrollment Form'!$CG455=\"Yes\",'Enrollment Form'!$CI455=\"\"),\"N\",\"Y\"))","v":"-"},{"$f":"IF('Enrollment Form'!B455<>\"Subscriber\",\"-\",IF(AND('Enrollment Form'!B455=\"Subscriber\",'Enrollment Form'!C455=\"Enroll\",'Enrollment Form'!AA455=\"\"),\"N\",\"Y\"))","v":"-"},{"$f":"IF(OR('Enrollment Form'!B455=\"Subscriber\",'Enrollment Form'!B455=\"\"),\"-\",IF('Enrollment Form'!BI455=\"\",\"N\",\"Y\"))","v":"-"},{"$f":"IF('Enrollment Form'!B455<>\"Subscriber\",\"-\",IF(AND('Enrollment Form'!B455=\"Subscriber\",'Enrollment Form'!G455=\"\"),\"N\",\"Y\"))","v":"-"},{"$f":"IF('Enrollment Form'!A455=\"\",\"\",IF('Enrollment Form'!B455=\"Subscriber\",\"-\",IF(AND('Enrollment Form'!B455<>\"Subscriber\",'Enrollment Form'!G455='Enrollment Form'!H455),\"N\",\"Y\")))","v":""},0]
[456,{"$f":"IF('Enrollment Form'!$A456<>\"\",\"Y\",\"N\")","v":"N"},{"$f":"IF(AND('Enrollment Form'!$B456=\"\",'Enrollment Form'!$C456<>\"\"),\"N\",IF($B449=\"N\",\"\",\"Y\"))","v":""},{"$f":"IF(OR($B449=\"N\",'Enrollment Form'!G456=\"\"),\"\",IF('Enrollment Form'!$B456<>\"Subscriber\",\"\",IF('Enrollment Form'!$G456='Enrollment Form'!$H456,\"Y\",\"N\")))","v":""},{"$f":"IF($B449=\"N\",\"\",IF(AND(COUNTIFS('Enrollment Form'!$H$11:$H$1000,'Enrollment Form'!$H456,'Enrollment Form'!$B$11:$B$1000,'Enrollment Form'!$B456)>1,'Enrollment Form'!$H456<>\"\"),\"N\",\"Y\"))","v":""},{"$f":"IF($B449=\"N\",\"\",IF(LEN('Enrollment Form'!$Y456)=0,\"\",IF(LEN('Enrollment Form'!$Y456)<>5,\"N\",\"Y\")))","v":""},{"$f":"IF($B449=\"N\",\"\",IF(LEN('Enrollment Form'!$AD456=0),\"\",IF(LEN('Enrollment Form'!$AD456)<>5,\"N\",\"Y\")))","v":""},{"$f":"IF($B449=\"N\",\"\",IF(LEN('Enrollment Form'!$BL456=0),\"\",IF(LEN('Enrollment Form'!$BL456)<>5,\"N\",\"Y\")))","v":""},{"$f":"IF($B449=\"N\",\"\",IF(LEN('Enrollment Form'!$AE456)=0,\"\",IF(LEN('Enrollment Form'!$AE456)<>10,\"N\",\"Y\")))","v":""},{"$f":"IF($B449=\"N\",\"\",IF(LEN('Enrollment Form'!$AF456)=0,\"\",IF(LEN('Enrollment Form'!$AF456)<>10,\"N\",\"Y\")))","v":""},{"$f":"IF('Enrollment Form'!$O456<>\"Graded\",\"-\",IF(AND('Enrollment Form'!$O456=\"Graded\",'Enrollment Form'!$AO456<>\"\"),\"Y\",\"N\"))","v":"-"},{"$f":"IF($B449=\"N\",\"\",IF(OR('Enrollment Form'!$B456<>\"Subscriber\",'Enrollment Form'!$C456=\"ROC\"),\"-\",IF(AND('Enrollment Form'!$B456=\"Subscriber\",'Enrollment Form'!$C456=\"Enroll\",'Enrollment Form'!$AJ456<>\"\"),\"Y\",\"N\")))","v":""},{"$f":"IF($B449=\"N\",\"\",IF(OR('Enrollment Form'!$B456<>\"Subscriber\",'Enrollment Form'!$C456=\"ROC\"),\"-\",IF(AND('Enrollment Form'!$B456=\"Subscriber\",'Enrollment Form'!$C456=\"Enroll\",'Enrollment Form'!$AK456<>\"\"),\"Y\",\"N\")))","v":""},{"$f":"IF($B449=\"N\",\"\",IF(OR('Enrollment Form'!$B456<>\"Subscriber\",'Enrollment Form'!$C456=\"ROC\"),\"-\",IF(AND('Enrollment Form'!$B456=\"Subscriber\",'Enrollment Form'!$C456=\"Enroll\",'Enrollment Form'!$AL456<>\"\"),\"Y\",\"N\")))","v":""},{"$f":"IF($B449=\"N\",\"\",IF(OR('Enrollment Form'!$B456<>\"Subscriber\",'Enrollment Form'!$C456=\"ROC\"),\"-\",IF(AND('Enrollment Form'!$B456=\"Subscriber\",'Enrollment Form'!$C456=\"Enroll\",'Enrollment Form'!$AM456<>\"\"),\"Y\",\"N\")))","v":""},{"$f":"IF($B449=\"N\",\"\",IF(OR('Enrollment Form'!$B456<>\"Subscriber\",'Enrollment Form'!$C456=\"ROC\"),\"-\",IF(AND('Enrollment Form'!$B456=\"Subscriber\",'Enrollment Form'!$C456=\"Enroll\",'Enrollment Form'!$AN456<>\"\"),\"Y\",\"N\")))","v":""},{"$f":"IF($B449=\"N\",\"\",IF(OR('Enrollment Form'!$B456<>\"Subscriber\",'Enrollment Form'!$C456=\"ROC\"),\"-\",IF(AND('Enrollment Form'!$B456=\"Subscriber\",'Enrollment Form'!$C456=\"Enroll\",'Enrollment Form'!$AP456<>\"\"),\"Y\",\"N\")))","v":""},{"$f":"IF($B449=\"N\",\"\",IF($Q449=\"-\",\"-\",IF(AND($Q449=\"Y\",'Enrollment Form'!$AP456=\"No\"),\"-\",IF(AND($Q449=\"Y\",'Enrollment Form'!$AP456=\"Yes\",'Enrollment Form'!$AQ456<>\"\"),\"Y\",\"N\"))))","v":""},{"$f":"IF($B449=\"N\",\"\",IF(OR('Enrollment Form'!$B456<>\"Subscriber\",'Enrollment Form'!$C456=\"ROC\"),\"-\",IF(AND('Enrollment Form'!$B456=\"Subscriber\",'Enrollment Form'!$C456=\"Enroll\",'Enrollment Form'!$CO456<>\"\"),\"Y\",\"N\")))","v":""},{"$f":"IF($B449=\"N\",\"\",IF($S449=\"-\",\"-\",IF(AND($S449=\"Y\",'Enrollment Form'!$CO456=\"No\"),\"-\",IF(AND($S449=\"Y\",'Enrollment Form'!$CO456=\"Yes\",'Enrollment Form'!$CP456<>\"\"),\"Y\",\"N\"))))","v":""},{"$f":"IF(OR('Enrollment Form'!$AV456=\"Yes\",'Enrollment Form'!$AV456=\"\"),\"-\",IF(AND('Enrollment Form'!$AV456=\"No\",ISERROR(FIND(\"HMO\",VLOOKUP('Enrollment Form'!G456,'Enrollment Form'!H$11:J$1000,3,FALSE),1))=FALSE,COUNTA('Enrollment Form'!$AW456:$AZ456)=4),\"Y\",\"N\"))","v":"-"},{"$f":"IF($B449=\"N\",\"\",IF('Enrollment Form'!$B456=\"Subscriber\",\"-\",IF(COUNTA('Enrollment Form'!$BE456,'Enrollment Form'!$BG456)=2,\"Y\",\"N\")))","v":""},{"$f":"IF($B449=\"N\",\"\",IF(OR('Enrollment Form'!$AU456=\"\",'Enrollment Form'!$AU456=\"No\"),\"-\",IF(AND('Enrollment Form'!$AU456=\"Yes\",COUNTA('Enrollment Form'!$CK456)=1),\"Y\",\"N\")))","v":""},{"$f":"IF(OR('Enrollment Form'!$CK456=\"\",'Enrollment Form'!$CK456=\"No\"),\"-\",IF(COUNTA('Enrollment Form'!$CM456:$CN456)=2,\"Y\",\"N\"))","v":"-"},{"$f":"IF($B449=\"N\",\"\",IF(COUNTIF('Enrollment Form'!$CZ456:$DO456,\"Other\")=COUNTA('Enrollment Form'!$DF456,'Enrollment Form'!$DA456,'Enrollment Form'!$DK456,'Enrollment Form'!$DP456),\"Y\",\"N\"))","v":""},{"$f":"IF($B449=\"N\",\"\",IF(OR('Enrollment Form'!B456<>\"Subscriber\",'Enrollment Form'!C456=\"ROC\",COUNTIF('Enrollment Form'!AS456:AT456,\"Yes\")>=1),\"-\",IF(AND('Enrollment Form'!C456=\"Enroll\",COUNTIF('Enrollment Form'!AS456:AT456,\"No\")=2,'Enrollment Form'!AU456=\"\"),\"N\",\"Y\")))","v":""},{"$f":"IF(OR(B449=\"N\",'Enrollment Form'!B456<>\"Subscriber\",'Enrollment Form'!C456=\"ROC\",'Enrollment Form'!O456<>\"Multiple of Salary\"),\"-\",IF(COUNTA('Enrollment Form'!T456:U456)<2,\"N\",\"Y\"))","v":"-"},{"$f":"IF(B449=\"N\",\"\",IF(OR('Enrollment Form'!C456=\"ROC\",'Enrollment Form'!B456<>\"Subscriber\",'Enrollment Form'!O456=\"Waive\",'Enrollment Form'!O456=\"\"),\"-\",IF('Enrollment Form'!P456=\"\",\"N\",\"Y\")))","v":""},{"$f":"IF($B449=\"N\",\"\",IF(AND('Enrollment Form'!$C456=\"ROC\",'Enrollment Form'!$DS456<>\"\"),\"Y\",IF(AND('Enrollment Form'!$C456=\"ROC\",'Enrollment Form'!$DS456=\"\"),\"N\",IF(AND('Enrollment Form'!$C456=\"Enroll\",'Enrollment Form'!$B456=\"Subscriber\",'Enrollment Form'!$CQ456=\"No\",'Enrollment Form'!$DS456=\"\"),\"N\",IF(AND('Enrollment Form'!$C456=\"Enroll\",'Enrollment Form'!$B456=\"Subscriber\",'Enrollment Form'!$CQ456=\"Yes\"),\"-\",\"Y\")))))","v":""},{"$f":"IF($B449=\"N\",\"\",IF(AND('Enrollment Form'!$C456=\"ROC\",'Enrollment Form'!$DT456<>\"\"),\"Y\",IF(AND('Enrollment Form'!$C456=\"ROC\",'Enrollment Form'!$DT456=\"\"),\"N\",IF(AND('Enrollment Form'!$C456=\"Enroll\",'Enrollment Form'!$B456=\"Subscriber\",'Enrollment Form'!$CQ456=\"No\",'Enrollment Form'!$DT456=\"\"),\"N\",IF(AND('Enrollment Form'!$C456=\"Enroll\",'Enrollment Form'!$B456=\"Subscriber\",'Enrollment Form'!$CQ456=\"Yes\"),\"-\",\"Y\")))))","v":""},{"$f":"IF('Enrollment Form'!AH456=\"\",\"\",IF(ISERROR(SEARCH(\".\",'Enrollment Form'!AH456,SEARCH(\"@\",'Enrollment Form'!AH456))),\"N\",\"Y\"))","v":""},{"$f":"IF(OR($B449=\"N\",'Enrollment Form'!$G456=\"\"),\"\",IF('Enrollment Form'!$B456<>\"Subscriber\",\"-\",IF(COUNTIF('Enrollment Form'!$AS456:$AT456,\"Yes\")=2,\"N\",\"Y\")))","v":""},{"$f":"IF(OR('Enrollment Form'!$CC456=\"\",'Enrollment Form'!$CC456=\"No\"),\"-\",IF(AND('Enrollment Form'!$CC456=\"Yes\",'Enrollment Form'!$CD456=\"\"),\"N\",\"Y\"))","v":"-"},{"$f":"IF(OR('Enrollment Form'!$CE456=\"\",'Enrollment Form'!$CE456=\"No\"),\"-\",IF(AND('Enrollment Form'!$CE456=\"Yes\",'Enrollment Form'!$CF456=\"\"),\"N\",\"Y\"))","v":"-"},{"$f":"IF(OR('Enrollment Form'!$CG456=\"\",'Enrollment Form'!$CG456=\"No\"),\"-\",IF(AND('Enrollment Form'!$CG456=\"Yes\",'Enrollment Form'!$CH456=\"\"),\"N\",\"Y\"))","v":"-"},{"$f":"IF(OR('Enrollment Form'!$CG456=\"\",'Enrollment Form'!$CG456=\"No\"),\"-\",IF(AND('Enrollment Form'!$CG456=\"Yes\",'Enrollment Form'!$CI456=\"\"),\"N\",\"Y\"))","v":"-"},{"$f":"IF('Enrollment Form'!B456<>\"Subscriber\",\"-\",IF(AND('Enrollment Form'!B456=\"Subscriber\",'Enrollment Form'!C456=\"Enroll\",'Enrollment Form'!AA456=\"\"),\"N\",\"Y\"))","v":"-"},{"$f":"IF(OR('Enrollment Form'!B456=\"Subscriber\",'Enrollment Form'!B456=\"\"),\"-\",IF('Enrollment Form'!BI456=\"\",\"N\",\"Y\"))","v":"-"},{"$f":"IF('Enrollment Form'!B456<>\"Subscriber\",\"-\",IF(AND('Enrollment Form'!B456=\"Subscriber\",'Enrollment Form'!G456=\"\"),\"N\",\"Y\"))","v":"-"},{"$f":"IF('Enrollment Form'!A456=\"\",\"\",IF('Enrollment Form'!B456=\"Subscriber\",\"-\",IF(AND('Enrollment Form'!B456<>\"Subscriber\",'Enrollment Form'!G456='Enrollment Form'!H456),\"N\",\"Y\")))","v":""},0]
[457,{"$f":"IF('Enrollment Form'!$A457<>\"\",\"Y\",\"N\")","v":"N"},{"$f":"IF(AND('Enrollment Form'!$B457=\"\",'Enrollment Form'!$C457<>\"\"),\"N\",IF($B450=\"N\",\"\",\"Y\"))","v":""},{"$f":"IF(OR($B450=\"N\",'Enrollment Form'!G457=\"\"),\"\",IF('Enrollment Form'!$B457<>\"Subscriber\",\"\",IF('Enrollment Form'!$G457='Enrollment Form'!$H457,\"Y\",\"N\")))","v":""},{"$f":"IF($B450=\"N\",\"\",IF(AND(COUNTIFS('Enrollment Form'!$H$11:$H$1000,'Enrollment Form'!$H457,'Enrollment Form'!$B$11:$B$1000,'Enrollment Form'!$B457)>1,'Enrollment Form'!$H457<>\"\"),\"N\",\"Y\"))","v":""},{"$f":"IF($B450=\"N\",\"\",IF(LEN('Enrollment Form'!$Y457)=0,\"\",IF(LEN('Enrollment Form'!$Y457)<>5,\"N\",\"Y\")))","v":""},{"$f":"IF($B450=\"N\",\"\",IF(LEN('Enrollment Form'!$AD457=0),\"\",IF(LEN('Enrollment Form'!$AD457)<>5,\"N\",\"Y\")))","v":""},{"$f":"IF($B450=\"N\",\"\",IF(LEN('Enrollment Form'!$BL457=0),\"\",IF(LEN('Enrollment Form'!$BL457)<>5,\"N\",\"Y\")))","v":""},{"$f":"IF($B450=\"N\",\"\",IF(LEN('Enrollment Form'!$AE457)=0,\"\",IF(LEN('Enrollment Form'!$AE457)<>10,\"N\",\"Y\")))","v":""},{"$f":"IF($B450=\"N\",\"\",IF(LEN('Enrollment Form'!$AF457)=0,\"\",IF(LEN('Enrollment Form'!$AF457)<>10,\"N\",\"Y\")))","v":""},{"$f":"IF('Enrollment Form'!$O457<>\"Graded\",\"-\",IF(AND('Enrollment Form'!$O457=\"Graded\",'Enrollment Form'!$AO457<>\"\"),\"Y\",\"N\"))","v":"-"},{"$f":"IF($B450=\"N\",\"\",IF(OR('Enrollment Form'!$B457<>\"Subscriber\",'Enrollment Form'!$C457=\"ROC\"),\"-\",IF(AND('Enrollment Form'!$B457=\"Subscriber\",'Enrollment Form'!$C457=\"Enroll\",'Enrollment Form'!$AJ457<>\"\"),\"Y\",\"N\")))","v":""},{"$f":"IF($B450=\"N\",\"\",IF(OR('Enrollment Form'!$B457<>\"Subscriber\",'Enrollment Form'!$C457=\"ROC\"),\"-\",IF(AND('Enrollment Form'!$B457=\"Subscriber\",'Enrollment Form'!$C457=\"Enroll\",'Enrollment Form'!$AK457<>\"\"),\"Y\",\"N\")))","v":""},{"$f":"IF($B450=\"N\",\"\",IF(OR('Enrollment Form'!$B457<>\"Subscriber\",'Enrollment Form'!$C457=\"ROC\"),\"-\",IF(AND('Enrollment Form'!$B457=\"Subscriber\",'Enrollment Form'!$C457=\"Enroll\",'Enrollment Form'!$AL457<>\"\"),\"Y\",\"N\")))","v":""},{"$f":"IF($B450=\"N\",\"\",IF(OR('Enrollment Form'!$B457<>\"Subscriber\",'Enrollment Form'!$C457=\"ROC\"),\"-\",IF(AND('Enrollment Form'!$B457=\"Subscriber\",'Enrollment Form'!$C457=\"Enroll\",'Enrollment Form'!$AM457<>\"\"),\"Y\",\"N\")))","v":""},{"$f":"IF($B450=\"N\",\"\",IF(OR('Enrollment Form'!$B457<>\"Subscriber\",'Enrollment Form'!$C457=\"ROC\"),\"-\",IF(AND('Enrollment Form'!$B457=\"Subscriber\",'Enrollment Form'!$C457=\"Enroll\",'Enrollment Form'!$AN457<>\"\"),\"Y\",\"N\")))","v":""},{"$f":"IF($B450=\"N\",\"\",IF(OR('Enrollment Form'!$B457<>\"Subscriber\",'Enrollment Form'!$C457=\"ROC\"),\"-\",IF(AND('Enrollment Form'!$B457=\"Subscriber\",'Enrollment Form'!$C457=\"Enroll\",'Enrollment Form'!$AP457<>\"\"),\"Y\",\"N\")))","v":""},{"$f":"IF($B450=\"N\",\"\",IF($Q450=\"-\",\"-\",IF(AND($Q450=\"Y\",'Enrollment Form'!$AP457=\"No\"),\"-\",IF(AND($Q450=\"Y\",'Enrollment Form'!$AP457=\"Yes\",'Enrollment Form'!$AQ457<>\"\"),\"Y\",\"N\"))))","v":""},{"$f":"IF($B450=\"N\",\"\",IF(OR('Enrollment Form'!$B457<>\"Subscriber\",'Enrollment Form'!$C457=\"ROC\"),\"-\",IF(AND('Enrollment Form'!$B457=\"Subscriber\",'Enrollment Form'!$C457=\"Enroll\",'Enrollment Form'!$CO457<>\"\"),\"Y\",\"N\")))","v":""},{"$f":"IF($B450=\"N\",\"\",IF($S450=\"-\",\"-\",IF(AND($S450=\"Y\",'Enrollment Form'!$CO457=\"No\"),\"-\",IF(AND($S450=\"Y\",'Enrollment Form'!$CO457=\"Yes\",'Enrollment Form'!$CP457<>\"\"),\"Y\",\"N\"))))","v":""},{"$f":"IF(OR('Enrollment Form'!$AV457=\"Yes\",'Enrollment Form'!$AV457=\"\"),\"-\",IF(AND('Enrollment Form'!$AV457=\"No\",ISERROR(FIND(\"HMO\",VLOOKUP('Enrollment Form'!G457,'Enrollment Form'!H$11:J$1000,3,FALSE),1))=FALSE,COUNTA('Enrollment Form'!$AW457:$AZ457)=4),\"Y\",\"N\"))","v":"-"},{"$f":"IF($B450=\"N\",\"\",IF('Enrollment Form'!$B457=\"Subscriber\",\"-\",IF(COUNTA('Enrollment Form'!$BE457,'Enrollment Form'!$BG457)=2,\"Y\",\"N\")))","v":""},{"$f":"IF($B450=\"N\",\"\",IF(OR('Enrollment Form'!$AU457=\"\",'Enrollment Form'!$AU457=\"No\"),\"-\",IF(AND('Enrollment Form'!$AU457=\"Yes\",COUNTA('Enrollment Form'!$CK457)=1),\"Y\",\"N\")))","v":""},{"$f":"IF(OR('Enrollment Form'!$CK457=\"\",'Enrollment Form'!$CK457=\"No\"),\"-\",IF(COUNTA('Enrollment Form'!$CM457:$CN457)=2,\"Y\",\"N\"))","v":"-"},{"$f":"IF($B450=\"N\",\"\",IF(COUNTIF('Enrollment Form'!$CZ457:$DO457,\"Other\")=COUNTA('Enrollment Form'!$DF457,'Enrollment Form'!$DA457,'Enrollment Form'!$DK457,'Enrollment Form'!$DP457),\"Y\",\"N\"))","v":""},{"$f":"IF($B450=\"N\",\"\",IF(OR('Enrollment Form'!B457<>\"Subscriber\",'Enrollment Form'!C457=\"ROC\",COUNTIF('Enrollment Form'!AS457:AT457,\"Yes\")>=1),\"-\",IF(AND('Enrollment Form'!C457=\"Enroll\",COUNTIF('Enrollment Form'!AS457:AT457,\"No\")=2,'Enrollment Form'!AU457=\"\"),\"N\",\"Y\")))","v":""},{"$f":"IF(OR(B450=\"N\",'Enrollment Form'!B457<>\"Subscriber\",'Enrollment Form'!C457=\"ROC\",'Enrollment Form'!O457<>\"Multiple of Salary\"),\"-\",IF(COUNTA('Enrollment Form'!T457:U457)<2,\"N\",\"Y\"))","v":"-"},{"$f":"IF(B450=\"N\",\"\",IF(OR('Enrollment Form'!C457=\"ROC\",'Enrollment Form'!B457<>\"Subscriber\",'Enrollment Form'!O457=\"Waive\",'Enrollment Form'!O457=\"\"),\"-\",IF('Enrollment Form'!P457=\"\",\"N\",\"Y\")))","v":""},{"$f":"IF($B450=\"N\",\"\",IF(AND('Enrollment Form'!$C457=\"ROC\",'Enrollment Form'!$DS457<>\"\"),\"Y\",IF(AND('Enrollment Form'!$C457=\"ROC\",'Enrollment Form'!$DS457=\"\"),\"N\",IF(AND('Enrollment Form'!$C457=\"Enroll\",'Enrollment Form'!$B457=\"Subscriber\",'Enrollment Form'!$CQ457=\"No\",'Enrollment Form'!$DS457=\"\"),\"N\",IF(AND('Enrollment Form'!$C457=\"Enroll\",'Enrollment Form'!$B457=\"Subscriber\",'Enrollment Form'!$CQ457=\"Yes\"),\"-\",\"Y\")))))","v":""},{"$f":"IF($B450=\"N\",\"\",IF(AND('Enrollment Form'!$C457=\"ROC\",'Enrollment Form'!$DT457<>\"\"),\"Y\",IF(AND('Enrollment Form'!$C457=\"ROC\",'Enrollment Form'!$DT457=\"\"),\"N\",IF(AND('Enrollment Form'!$C457=\"Enroll\",'Enrollment Form'!$B457=\"Subscriber\",'Enrollment Form'!$CQ457=\"No\",'Enrollment Form'!$DT457=\"\"),\"N\",IF(AND('Enrollment Form'!$C457=\"Enroll\",'Enrollment Form'!$B457=\"Subscriber\",'Enrollment Form'!$CQ457=\"Yes\"),\"-\",\"Y\")))))","v":""},{"$f":"IF('Enrollment Form'!AH457=\"\",\"\",IF(ISERROR(SEARCH(\".\",'Enrollment Form'!AH457,SEARCH(\"@\",'Enrollment Form'!AH457))),\"N\",\"Y\"))","v":""},{"$f":"IF(OR($B450=\"N\",'Enrollment Form'!$G457=\"\"),\"\",IF('Enrollment Form'!$B457<>\"Subscriber\",\"-\",IF(COUNTIF('Enrollment Form'!$AS457:$AT457,\"Yes\")=2,\"N\",\"Y\")))","v":""},{"$f":"IF(OR('Enrollment Form'!$CC457=\"\",'Enrollment Form'!$CC457=\"No\"),\"-\",IF(AND('Enrollment Form'!$CC457=\"Yes\",'Enrollment Form'!$CD457=\"\"),\"N\",\"Y\"))","v":"-"},{"$f":"IF(OR('Enrollment Form'!$CE457=\"\",'Enrollment Form'!$CE457=\"No\"),\"-\",IF(AND('Enrollment Form'!$CE457=\"Yes\",'Enrollment Form'!$CF457=\"\"),\"N\",\"Y\"))","v":"-"},{"$f":"IF(OR('Enrollment Form'!$CG457=\"\",'Enrollment Form'!$CG457=\"No\"),\"-\",IF(AND('Enrollment Form'!$CG457=\"Yes\",'Enrollment Form'!$CH457=\"\"),\"N\",\"Y\"))","v":"-"},{"$f":"IF(OR('Enrollment Form'!$CG457=\"\",'Enrollment Form'!$CG457=\"No\"),\"-\",IF(AND('Enrollment Form'!$CG457=\"Yes\",'Enrollment Form'!$CI457=\"\"),\"N\",\"Y\"))","v":"-"},{"$f":"IF('Enrollment Form'!B457<>\"Subscriber\",\"-\",IF(AND('Enrollment Form'!B457=\"Subscriber\",'Enrollment Form'!C457=\"Enroll\",'Enrollment Form'!AA457=\"\"),\"N\",\"Y\"))","v":"-"},{"$f":"IF(OR('Enrollment Form'!B457=\"Subscriber\",'Enrollment Form'!B457=\"\"),\"-\",IF('Enrollment Form'!BI457=\"\",\"N\",\"Y\"))","v":"-"},{"$f":"IF('Enrollment Form'!B457<>\"Subscriber\",\"-\",IF(AND('Enrollment Form'!B457=\"Subscriber\",'Enrollment Form'!G457=\"\"),\"N\",\"Y\"))","v":"-"},{"$f":"IF('Enrollment Form'!A457=\"\",\"\",IF('Enrollment Form'!B457=\"Subscriber\",\"-\",IF(AND('Enrollment Form'!B457<>\"Subscriber\",'Enrollment Form'!G457='Enrollment Form'!H457),\"N\",\"Y\")))","v":""},0]
[458,{"$f":"IF('Enrollment Form'!$A458<>\"\",\"Y\",\"N\")","v":"N"},{"$f":"IF(AND('Enrollment Form'!$B458=\"\",'Enrollment Form'!$C458<>\"\"),\"N\",IF($B451=\"N\",\"\",\"Y\"))","v":""},{"$f":"IF(OR($B451=\"N\",'Enrollment Form'!G458=\"\"),\"\",IF('Enrollment Form'!$B458<>\"Subscriber\",\"\",IF('Enrollment Form'!$G458='Enrollment Form'!$H458,\"Y\",\"N\")))","v":""},{"$f":"IF($B451=\"N\",\"\",IF(AND(COUNTIFS('Enrollment Form'!$H$11:$H$1000,'Enrollment Form'!$H458,'Enrollment Form'!$B$11:$B$1000,'Enrollment Form'!$B458)>1,'Enrollment Form'!$H458<>\"\"),\"N\",\"Y\"))","v":""},{"$f":"IF($B451=\"N\",\"\",IF(LEN('Enrollment Form'!$Y458)=0,\"\",IF(LEN('Enrollment Form'!$Y458)<>5,\"N\",\"Y\")))","v":""},{"$f":"IF($B451=\"N\",\"\",IF(LEN('Enrollment Form'!$AD458=0),\"\",IF(LEN('Enrollment Form'!$AD458)<>5,\"N\",\"Y\")))","v":""},{"$f":"IF($B451=\"N\",\"\",IF(LEN('Enrollment Form'!$BL458=0),\"\",IF(LEN('Enrollment Form'!$BL458)<>5,\"N\",\"Y\")))","v":""},{"$f":"IF($B451=\"N\",\"\",IF(LEN('Enrollment Form'!$AE458)=0,\"\",IF(LEN('Enrollment Form'!$AE458)<>10,\"N\",\"Y\")))","v":""},{"$f":"IF($B451=\"N\",\"\",IF(LEN('Enrollment Form'!$AF458)=0,\"\",IF(LEN('Enrollment Form'!$AF458)<>10,\"N\",\"Y\")))","v":""},{"$f":"IF('Enrollment Form'!$O458<>\"Graded\",\"-\",IF(AND('Enrollment Form'!$O458=\"Graded\",'Enrollment Form'!$AO458<>\"\"),\"Y\",\"N\"))","v":"-"},{"$f":"IF($B451=\"N\",\"\",IF(OR('Enrollment Form'!$B458<>\"Subscriber\",'Enrollment Form'!$C458=\"ROC\"),\"-\",IF(AND('Enrollment Form'!$B458=\"Subscriber\",'Enrollment Form'!$C458=\"Enroll\",'Enrollment Form'!$AJ458<>\"\"),\"Y\",\"N\")))","v":""},{"$f":"IF($B451=\"N\",\"\",IF(OR('Enrollment Form'!$B458<>\"Subscriber\",'Enrollment Form'!$C458=\"ROC\"),\"-\",IF(AND('Enrollment Form'!$B458=\"Subscriber\",'Enrollment Form'!$C458=\"Enroll\",'Enrollment Form'!$AK458<>\"\"),\"Y\",\"N\")))","v":""},{"$f":"IF($B451=\"N\",\"\",IF(OR('Enrollment Form'!$B458<>\"Subscriber\",'Enrollment Form'!$C458=\"ROC\"),\"-\",IF(AND('Enrollment Form'!$B458=\"Subscriber\",'Enrollment Form'!$C458=\"Enroll\",'Enrollment Form'!$AL458<>\"\"),\"Y\",\"N\")))","v":""},{"$f":"IF($B451=\"N\",\"\",IF(OR('Enrollment Form'!$B458<>\"Subscriber\",'Enrollment Form'!$C458=\"ROC\"),\"-\",IF(AND('Enrollment Form'!$B458=\"Subscriber\",'Enrollment Form'!$C458=\"Enroll\",'Enrollment Form'!$AM458<>\"\"),\"Y\",\"N\")))","v":""},{"$f":"IF($B451=\"N\",\"\",IF(OR('Enrollment Form'!$B458<>\"Subscriber\",'Enrollment Form'!$C458=\"ROC\"),\"-\",IF(AND('Enrollment Form'!$B458=\"Subscriber\",'Enrollment Form'!$C458=\"Enroll\",'Enrollment Form'!$AN458<>\"\"),\"Y\",\"N\")))","v":""},{"$f":"IF($B451=\"N\",\"\",IF(OR('Enrollment Form'!$B458<>\"Subscriber\",'Enrollment Form'!$C458=\"ROC\"),\"-\",IF(AND('Enrollment Form'!$B458=\"Subscriber\",'Enrollment Form'!$C458=\"Enroll\",'Enrollment Form'!$AP458<>\"\"),\"Y\",\"N\")))","v":""},{"$f":"IF($B451=\"N\",\"\",IF($Q451=\"-\",\"-\",IF(AND($Q451=\"Y\",'Enrollment Form'!$AP458=\"No\"),\"-\",IF(AND($Q451=\"Y\",'Enrollment Form'!$AP458=\"Yes\",'Enrollment Form'!$AQ458<>\"\"),\"Y\",\"N\"))))","v":""},{"$f":"IF($B451=\"N\",\"\",IF(OR('Enrollment Form'!$B458<>\"Subscriber\",'Enrollment Form'!$C458=\"ROC\"),\"-\",IF(AND('Enrollment Form'!$B458=\"Subscriber\",'Enrollment Form'!$C458=\"Enroll\",'Enrollment Form'!$CO458<>\"\"),\"Y\",\"N\")))","v":""},{"$f":"IF($B451=\"N\",\"\",IF($S451=\"-\",\"-\",IF(AND($S451=\"Y\",'Enrollment Form'!$CO458=\"No\"),\"-\",IF(AND($S451=\"Y\",'Enrollment Form'!$CO458=\"Yes\",'Enrollment Form'!$CP458<>\"\"),\"Y\",\"N\"))))","v":""},{"$f":"IF(OR('Enrollment Form'!$AV458=\"Yes\",'Enrollment Form'!$AV458=\"\"),\"-\",IF(AND('Enrollment Form'!$AV458=\"No\",ISERROR(FIND(\"HMO\",VLOOKUP('Enrollment Form'!G458,'Enrollment Form'!H$11:J$1000,3,FALSE),1))=FALSE,COUNTA('Enrollment Form'!$AW458:$AZ458)=4),\"Y\",\"N\"))","v":"-"},{"$f":"IF($B451=\"N\",\"\",IF('Enrollment Form'!$B458=\"Subscriber\",\"-\",IF(COUNTA('Enrollment Form'!$BE458,'Enrollment Form'!$BG458)=2,\"Y\",\"N\")))","v":""},{"$f":"IF($B451=\"N\",\"\",IF(OR('Enrollment Form'!$AU458=\"\",'Enrollment Form'!$AU458=\"No\"),\"-\",IF(AND('Enrollment Form'!$AU458=\"Yes\",COUNTA('Enrollment Form'!$CK458)=1),\"Y\",\"N\")))","v":""},{"$f":"IF(OR('Enrollment Form'!$CK458=\"\",'Enrollment Form'!$CK458=\"No\"),\"-\",IF(COUNTA('Enrollment Form'!$CM458:$CN458)=2,\"Y\",\"N\"))","v":"-"},{"$f":"IF($B451=\"N\",\"\",IF(COUNTIF('Enrollment Form'!$CZ458:$DO458,\"Other\")=COUNTA('Enrollment Form'!$DF458,'Enrollment Form'!$DA458,'Enrollment Form'!$DK458,'Enrollment Form'!$DP458),\"Y\",\"N\"))","v":""},{"$f":"IF($B451=\"N\",\"\",IF(OR('Enrollment Form'!B458<>\"Subscriber\",'Enrollment Form'!C458=\"ROC\",COUNTIF('Enrollment Form'!AS458:AT458,\"Yes\")>=1),\"-\",IF(AND('Enrollment Form'!C458=\"Enroll\",COUNTIF('Enrollment Form'!AS458:AT458,\"No\")=2,'Enrollment Form'!AU458=\"\"),\"N\",\"Y\")))","v":""},{"$f":"IF(OR(B451=\"N\",'Enrollment Form'!B458<>\"Subscriber\",'Enrollment Form'!C458=\"ROC\",'Enrollment Form'!O458<>\"Multiple of Salary\"),\"-\",IF(COUNTA('Enrollment Form'!T458:U458)<2,\"N\",\"Y\"))","v":"-"},{"$f":"IF(B451=\"N\",\"\",IF(OR('Enrollment Form'!C458=\"ROC\",'Enrollment Form'!B458<>\"Subscriber\",'Enrollment Form'!O458=\"Waive\",'Enrollment Form'!O458=\"\"),\"-\",IF('Enrollment Form'!P458=\"\",\"N\",\"Y\")))","v":""},{"$f":"IF($B451=\"N\",\"\",IF(AND('Enrollment Form'!$C458=\"ROC\",'Enrollment Form'!$DS458<>\"\"),\"Y\",IF(AND('Enrollment Form'!$C458=\"ROC\",'Enrollment Form'!$DS458=\"\"),\"N\",IF(AND('Enrollment Form'!$C458=\"Enroll\",'Enrollment Form'!$B458=\"Subscriber\",'Enrollment Form'!$CQ458=\"No\",'Enrollment Form'!$DS458=\"\"),\"N\",IF(AND('Enrollment Form'!$C458=\"Enroll\",'Enrollment Form'!$B458=\"Subscriber\",'Enrollment Form'!$CQ458=\"Yes\"),\"-\",\"Y\")))))","v":""},{"$f":"IF($B451=\"N\",\"\",IF(AND('Enrollment Form'!$C458=\"ROC\",'Enrollment Form'!$DT458<>\"\"),\"Y\",IF(AND('Enrollment Form'!$C458=\"ROC\",'Enrollment Form'!$DT458=\"\"),\"N\",IF(AND('Enrollment Form'!$C458=\"Enroll\",'Enrollment Form'!$B458=\"Subscriber\",'Enrollment Form'!$CQ458=\"No\",'Enrollment Form'!$DT458=\"\"),\"N\",IF(AND('Enrollment Form'!$C458=\"Enroll\",'Enrollment Form'!$B458=\"Subscriber\",'Enrollment Form'!$CQ458=\"Yes\"),\"-\",\"Y\")))))","v":""},{"$f":"IF('Enrollment Form'!AH458=\"\",\"\",IF(ISERROR(SEARCH(\".\",'Enrollment Form'!AH458,SEARCH(\"@\",'Enrollment Form'!AH458))),\"N\",\"Y\"))","v":""},{"$f":"IF(OR($B451=\"N\",'Enrollment Form'!$G458=\"\"),\"\",IF('Enrollment Form'!$B458<>\"Subscriber\",\"-\",IF(COUNTIF('Enrollment Form'!$AS458:$AT458,\"Yes\")=2,\"N\",\"Y\")))","v":""},{"$f":"IF(OR('Enrollment Form'!$CC458=\"\",'Enrollment Form'!$CC458=\"No\"),\"-\",IF(AND('Enrollment Form'!$CC458=\"Yes\",'Enrollment Form'!$CD458=\"\"),\"N\",\"Y\"))","v":"-"},{"$f":"IF(OR('Enrollment Form'!$CE458=\"\",'Enrollment Form'!$CE458=\"No\"),\"-\",IF(AND('Enrollment Form'!$CE458=\"Yes\",'Enrollment Form'!$CF458=\"\"),\"N\",\"Y\"))","v":"-"},{"$f":"IF(OR('Enrollment Form'!$CG458=\"\",'Enrollment Form'!$CG458=\"No\"),\"-\",IF(AND('Enrollment Form'!$CG458=\"Yes\",'Enrollment Form'!$CH458=\"\"),\"N\",\"Y\"))","v":"-"},{"$f":"IF(OR('Enrollment Form'!$CG458=\"\",'Enrollment Form'!$CG458=\"No\"),\"-\",IF(AND('Enrollment Form'!$CG458=\"Yes\",'Enrollment Form'!$CI458=\"\"),\"N\",\"Y\"))","v":"-"},{"$f":"IF('Enrollment Form'!B458<>\"Subscriber\",\"-\",IF(AND('Enrollment Form'!B458=\"Subscriber\",'Enrollment Form'!C458=\"Enroll\",'Enrollment Form'!AA458=\"\"),\"N\",\"Y\"))","v":"-"},{"$f":"IF(OR('Enrollment Form'!B458=\"Subscriber\",'Enrollment Form'!B458=\"\"),\"-\",IF('Enrollment Form'!BI458=\"\",\"N\",\"Y\"))","v":"-"},{"$f":"IF('Enrollment Form'!B458<>\"Subscriber\",\"-\",IF(AND('Enrollment Form'!B458=\"Subscriber\",'Enrollment Form'!G458=\"\"),\"N\",\"Y\"))","v":"-"},{"$f":"IF('Enrollment Form'!A458=\"\",\"\",IF('Enrollment Form'!B458=\"Subscriber\",\"-\",IF(AND('Enrollment Form'!B458<>\"Subscriber\",'Enrollment Form'!G458='Enrollment Form'!H458),\"N\",\"Y\")))","v":""},0]
[459,{"$f":"IF('Enrollment Form'!$A459<>\"\",\"Y\",\"N\")","v":"N"},{"$f":"IF(AND('Enrollment Form'!$B459=\"\",'Enrollment Form'!$C459<>\"\"),\"N\",IF($B452=\"N\",\"\",\"Y\"))","v":""},{"$f":"IF(OR($B452=\"N\",'Enrollment Form'!G459=\"\"),\"\",IF('Enrollment Form'!$B459<>\"Subscriber\",\"\",IF('Enrollment Form'!$G459='Enrollment Form'!$H459,\"Y\",\"N\")))","v":""},{"$f":"IF($B452=\"N\",\"\",IF(AND(COUNTIFS('Enrollment Form'!$H$11:$H$1000,'Enrollment Form'!$H459,'Enrollment Form'!$B$11:$B$1000,'Enrollment Form'!$B459)>1,'Enrollment Form'!$H459<>\"\"),\"N\",\"Y\"))","v":""},{"$f":"IF($B452=\"N\",\"\",IF(LEN('Enrollment Form'!$Y459)=0,\"\",IF(LEN('Enrollment Form'!$Y459)<>5,\"N\",\"Y\")))","v":""},{"$f":"IF($B452=\"N\",\"\",IF(LEN('Enrollment Form'!$AD459=0),\"\",IF(LEN('Enrollment Form'!$AD459)<>5,\"N\",\"Y\")))","v":""},{"$f":"IF($B452=\"N\",\"\",IF(LEN('Enrollment Form'!$BL459=0),\"\",IF(LEN('Enrollment Form'!$BL459)<>5,\"N\",\"Y\")))","v":""},{"$f":"IF($B452=\"N\",\"\",IF(LEN('Enrollment Form'!$AE459)=0,\"\",IF(LEN('Enrollment Form'!$AE459)<>10,\"N\",\"Y\")))","v":""},{"$f":"IF($B452=\"N\",\"\",IF(LEN('Enrollment Form'!$AF459)=0,\"\",IF(LEN('Enrollment Form'!$AF459)<>10,\"N\",\"Y\")))","v":""},{"$f":"IF('Enrollment Form'!$O459<>\"Graded\",\"-\",IF(AND('Enrollment Form'!$O459=\"Graded\",'Enrollment Form'!$AO459<>\"\"),\"Y\",\"N\"))","v":"-"},{"$f":"IF($B452=\"N\",\"\",IF(OR('Enrollment Form'!$B459<>\"Subscriber\",'Enrollment Form'!$C459=\"ROC\"),\"-\",IF(AND('Enrollment Form'!$B459=\"Subscriber\",'Enrollment Form'!$C459=\"Enroll\",'Enrollment Form'!$AJ459<>\"\"),\"Y\",\"N\")))","v":""},{"$f":"IF($B452=\"N\",\"\",IF(OR('Enrollment Form'!$B459<>\"Subscriber\",'Enrollment Form'!$C459=\"ROC\"),\"-\",IF(AND('Enrollment Form'!$B459=\"Subscriber\",'Enrollment Form'!$C459=\"Enroll\",'Enrollment Form'!$AK459<>\"\"),\"Y\",\"N\")))","v":""},{"$f":"IF($B452=\"N\",\"\",IF(OR('Enrollment Form'!$B459<>\"Subscriber\",'Enrollment Form'!$C459=\"ROC\"),\"-\",IF(AND('Enrollment Form'!$B459=\"Subscriber\",'Enrollment Form'!$C459=\"Enroll\",'Enrollment Form'!$AL459<>\"\"),\"Y\",\"N\")))","v":""},{"$f":"IF($B452=\"N\",\"\",IF(OR('Enrollment Form'!$B459<>\"Subscriber\",'Enrollment Form'!$C459=\"ROC\"),\"-\",IF(AND('Enrollment Form'!$B459=\"Subscriber\",'Enrollment Form'!$C459=\"Enroll\",'Enrollment Form'!$AM459<>\"\"),\"Y\",\"N\")))","v":""},{"$f":"IF($B452=\"N\",\"\",IF(OR('Enrollment Form'!$B459<>\"Subscriber\",'Enrollment Form'!$C459=\"ROC\"),\"-\",IF(AND('Enrollment Form'!$B459=\"Subscriber\",'Enrollment Form'!$C459=\"Enroll\",'Enrollment Form'!$AN459<>\"\"),\"Y\",\"N\")))","v":""},{"$f":"IF($B452=\"N\",\"\",IF(OR('Enrollment Form'!$B459<>\"Subscriber\",'Enrollment Form'!$C459=\"ROC\"),\"-\",IF(AND('Enrollment Form'!$B459=\"Subscriber\",'Enrollment Form'!$C459=\"Enroll\",'Enrollment Form'!$AP459<>\"\"),\"Y\",\"N\")))","v":""},{"$f":"IF($B452=\"N\",\"\",IF($Q452=\"-\",\"-\",IF(AND($Q452=\"Y\",'Enrollment Form'!$AP459=\"No\"),\"-\",IF(AND($Q452=\"Y\",'Enrollment Form'!$AP459=\"Yes\",'Enrollment Form'!$AQ459<>\"\"),\"Y\",\"N\"))))","v":""},{"$f":"IF($B452=\"N\",\"\",IF(OR('Enrollment Form'!$B459<>\"Subscriber\",'Enrollment Form'!$C459=\"ROC\"),\"-\",IF(AND('Enrollment Form'!$B459=\"Subscriber\",'Enrollment Form'!$C459=\"Enroll\",'Enrollment Form'!$CO459<>\"\"),\"Y\",\"N\")))","v":""},{"$f":"IF($B452=\"N\",\"\",IF($S452=\"-\",\"-\",IF(AND($S452=\"Y\",'Enrollment Form'!$CO459=\"No\"),\"-\",IF(AND($S452=\"Y\",'Enrollment Form'!$CO459=\"Yes\",'Enrollment Form'!$CP459<>\"\"),\"Y\",\"N\"))))","v":""},{"$f":"IF(OR('Enrollment Form'!$AV459=\"Yes\",'Enrollment Form'!$AV459=\"\"),\"-\",IF(AND('Enrollment Form'!$AV459=\"No\",ISERROR(FIND(\"HMO\",VLOOKUP('Enrollment Form'!G459,'Enrollment Form'!H$11:J$1000,3,FALSE),1))=FALSE,COUNTA('Enrollment Form'!$AW459:$AZ459)=4),\"Y\",\"N\"))","v":"-"},{"$f":"IF($B452=\"N\",\"\",IF('Enrollment Form'!$B459=\"Subscriber\",\"-\",IF(COUNTA('Enrollment Form'!$BE459,'Enrollment Form'!$BG459)=2,\"Y\",\"N\")))","v":""},{"$f":"IF($B452=\"N\",\"\",IF(OR('Enrollment Form'!$AU459=\"\",'Enrollment Form'!$AU459=\"No\"),\"-\",IF(AND('Enrollment Form'!$AU459=\"Yes\",COUNTA('Enrollment Form'!$CK459)=1),\"Y\",\"N\")))","v":""},{"$f":"IF(OR('Enrollment Form'!$CK459=\"\",'Enrollment Form'!$CK459=\"No\"),\"-\",IF(COUNTA('Enrollment Form'!$CM459:$CN459)=2,\"Y\",\"N\"))","v":"-"},{"$f":"IF($B452=\"N\",\"\",IF(COUNTIF('Enrollment Form'!$CZ459:$DO459,\"Other\")=COUNTA('Enrollment Form'!$DF459,'Enrollment Form'!$DA459,'Enrollment Form'!$DK459,'Enrollment Form'!$DP459),\"Y\",\"N\"))","v":""},{"$f":"IF($B452=\"N\",\"\",IF(OR('Enrollment Form'!B459<>\"Subscriber\",'Enrollment Form'!C459=\"ROC\",COUNTIF('Enrollment Form'!AS459:AT459,\"Yes\")>=1),\"-\",IF(AND('Enrollment Form'!C459=\"Enroll\",COUNTIF('Enrollment Form'!AS459:AT459,\"No\")=2,'Enrollment Form'!AU459=\"\"),\"N\",\"Y\")))","v":""},{"$f":"IF(OR(B452=\"N\",'Enrollment Form'!B459<>\"Subscriber\",'Enrollment Form'!C459=\"ROC\",'Enrollment Form'!O459<>\"Multiple of Salary\"),\"-\",IF(COUNTA('Enrollment Form'!T459:U459)<2,\"N\",\"Y\"))","v":"-"},{"$f":"IF(B452=\"N\",\"\",IF(OR('Enrollment Form'!C459=\"ROC\",'Enrollment Form'!B459<>\"Subscriber\",'Enrollment Form'!O459=\"Waive\",'Enrollment Form'!O459=\"\"),\"-\",IF('Enrollment Form'!P459=\"\",\"N\",\"Y\")))","v":""},{"$f":"IF($B452=\"N\",\"\",IF(AND('Enrollment Form'!$C459=\"ROC\",'Enrollment Form'!$DS459<>\"\"),\"Y\",IF(AND('Enrollment Form'!$C459=\"ROC\",'Enrollment Form'!$DS459=\"\"),\"N\",IF(AND('Enrollment Form'!$C459=\"Enroll\",'Enrollment Form'!$B459=\"Subscriber\",'Enrollment Form'!$CQ459=\"No\",'Enrollment Form'!$DS459=\"\"),\"N\",IF(AND('Enrollment Form'!$C459=\"Enroll\",'Enrollment Form'!$B459=\"Subscriber\",'Enrollment Form'!$CQ459=\"Yes\"),\"-\",\"Y\")))))","v":""},{"$f":"IF($B452=\"N\",\"\",IF(AND('Enrollment Form'!$C459=\"ROC\",'Enrollment Form'!$DT459<>\"\"),\"Y\",IF(AND('Enrollment Form'!$C459=\"ROC\",'Enrollment Form'!$DT459=\"\"),\"N\",IF(AND('Enrollment Form'!$C459=\"Enroll\",'Enrollment Form'!$B459=\"Subscriber\",'Enrollment Form'!$CQ459=\"No\",'Enrollment Form'!$DT459=\"\"),\"N\",IF(AND('Enrollment Form'!$C459=\"Enroll\",'Enrollment Form'!$B459=\"Subscriber\",'Enrollment Form'!$CQ459=\"Yes\"),\"-\",\"Y\")))))","v":""},{"$f":"IF('Enrollment Form'!AH459=\"\",\"\",IF(ISERROR(SEARCH(\".\",'Enrollment Form'!AH459,SEARCH(\"@\",'Enrollment Form'!AH459))),\"N\",\"Y\"))","v":""},{"$f":"IF(OR($B452=\"N\",'Enrollment Form'!$G459=\"\"),\"\",IF('Enrollment Form'!$B459<>\"Subscriber\",\"-\",IF(COUNTIF('Enrollment Form'!$AS459:$AT459,\"Yes\")=2,\"N\",\"Y\")))","v":""},{"$f":"IF(OR('Enrollment Form'!$CC459=\"\",'Enrollment Form'!$CC459=\"No\"),\"-\",IF(AND('Enrollment Form'!$CC459=\"Yes\",'Enrollment Form'!$CD459=\"\"),\"N\",\"Y\"))","v":"-"},{"$f":"IF(OR('Enrollment Form'!$CE459=\"\",'Enrollment Form'!$CE459=\"No\"),\"-\",IF(AND('Enrollment Form'!$CE459=\"Yes\",'Enrollment Form'!$CF459=\"\"),\"N\",\"Y\"))","v":"-"},{"$f":"IF(OR('Enrollment Form'!$CG459=\"\",'Enrollment Form'!$CG459=\"No\"),\"-\",IF(AND('Enrollment Form'!$CG459=\"Yes\",'Enrollment Form'!$CH459=\"\"),\"N\",\"Y\"))","v":"-"},{"$f":"IF(OR('Enrollment Form'!$CG459=\"\",'Enrollment Form'!$CG459=\"No\"),\"-\",IF(AND('Enrollment Form'!$CG459=\"Yes\",'Enrollment Form'!$CI459=\"\"),\"N\",\"Y\"))","v":"-"},{"$f":"IF('Enrollment Form'!B459<>\"Subscriber\",\"-\",IF(AND('Enrollment Form'!B459=\"Subscriber\",'Enrollment Form'!C459=\"Enroll\",'Enrollment Form'!AA459=\"\"),\"N\",\"Y\"))","v":"-"},{"$f":"IF(OR('Enrollment Form'!B459=\"Subscriber\",'Enrollment Form'!B459=\"\"),\"-\",IF('Enrollment Form'!BI459=\"\",\"N\",\"Y\"))","v":"-"},{"$f":"IF('Enrollment Form'!B459<>\"Subscriber\",\"-\",IF(AND('Enrollment Form'!B459=\"Subscriber\",'Enrollment Form'!G459=\"\"),\"N\",\"Y\"))","v":"-"},{"$f":"IF('Enrollment Form'!A459=\"\",\"\",IF('Enrollment Form'!B459=\"Subscriber\",\"-\",IF(AND('Enrollment Form'!B459<>\"Subscriber\",'Enrollment Form'!G459='Enrollment Form'!H459),\"N\",\"Y\")))","v":""},{"$f":"COUNTIF(C452:AN452,\"N\")","v":0}]
[460,{"$f":"IF('Enrollment Form'!$A460<>\"\",\"Y\",\"N\")","v":"N"},{"$f":"IF(AND('Enrollment Form'!$B460=\"\",'Enrollment Form'!$C460<>\"\"),\"N\",IF($B453=\"N\",\"\",\"Y\"))","v":""},{"$f":"IF(OR($B453=\"N\",'Enrollment Form'!G460=\"\"),\"\",IF('Enrollment Form'!$B460<>\"Subscriber\",\"\",IF('Enrollment Form'!$G460='Enrollment Form'!$H460,\"Y\",\"N\")))","v":""},{"$f":"IF($B453=\"N\",\"\",IF(AND(COUNTIFS('Enrollment Form'!$H$11:$H$1000,'Enrollment Form'!$H460,'Enrollment Form'!$B$11:$B$1000,'Enrollment Form'!$B460)>1,'Enrollment Form'!$H460<>\"\"),\"N\",\"Y\"))","v":""},{"$f":"IF($B453=\"N\",\"\",IF(LEN('Enrollment Form'!$Y460)=0,\"\",IF(LEN('Enrollment Form'!$Y460)<>5,\"N\",\"Y\")))","v":""},{"$f":"IF($B453=\"N\",\"\",IF(LEN('Enrollment Form'!$AD460=0),\"\",IF(LEN('Enrollment Form'!$AD460)<>5,\"N\",\"Y\")))","v":""},{"$f":"IF($B453=\"N\",\"\",IF(LEN('Enrollment Form'!$BL460=0),\"\",IF(LEN('Enrollment Form'!$BL460)<>5,\"N\",\"Y\")))","v":""},{"$f":"IF($B453=\"N\",\"\",IF(LEN('Enrollment Form'!$AE460)=0,\"\",IF(LEN('Enrollment Form'!$AE460)<>10,\"N\",\"Y\")))","v":""},{"$f":"IF($B453=\"N\",\"\",IF(LEN('Enrollment Form'!$AF460)=0,\"\",IF(LEN('Enrollment Form'!$AF460)<>10,\"N\",\"Y\")))","v":""},{"$f":"IF('Enrollment Form'!$O460<>\"Graded\",\"-\",IF(AND('Enrollment Form'!$O460=\"Graded\",'Enrollment Form'!$AO460<>\"\"),\"Y\",\"N\"))","v":"-"},{"$f":"IF($B453=\"N\",\"\",IF(OR('Enrollment Form'!$B460<>\"Subscriber\",'Enrollment Form'!$C460=\"ROC\"),\"-\",IF(AND('Enrollment Form'!$B460=\"Subscriber\",'Enrollment Form'!$C460=\"Enroll\",'Enrollment Form'!$AJ460<>\"\"),\"Y\",\"N\")))","v":""},{"$f":"IF($B453=\"N\",\"\",IF(OR('Enrollment Form'!$B460<>\"Subscriber\",'Enrollment Form'!$C460=\"ROC\"),\"-\",IF(AND('Enrollment Form'!$B460=\"Subscriber\",'Enrollment Form'!$C460=\"Enroll\",'Enrollment Form'!$AK460<>\"\"),\"Y\",\"N\")))","v":""},{"$f":"IF($B453=\"N\",\"\",IF(OR('Enrollment Form'!$B460<>\"Subscriber\",'Enrollment Form'!$C460=\"ROC\"),\"-\",IF(AND('Enrollment Form'!$B460=\"Subscriber\",'Enrollment Form'!$C460=\"Enroll\",'Enrollment Form'!$AL460<>\"\"),\"Y\",\"N\")))","v":""},{"$f":"IF($B453=\"N\",\"\",IF(OR('Enrollment Form'!$B460<>\"Subscriber\",'Enrollment Form'!$C460=\"ROC\"),\"-\",IF(AND('Enrollment Form'!$B460=\"Subscriber\",'Enrollment Form'!$C460=\"Enroll\",'Enrollment Form'!$AM460<>\"\"),\"Y\",\"N\")))","v":""},{"$f":"IF($B453=\"N\",\"\",IF(OR('Enrollment Form'!$B460<>\"Subscriber\",'Enrollment Form'!$C460=\"ROC\"),\"-\",IF(AND('Enrollment Form'!$B460=\"Subscriber\",'Enrollment Form'!$C460=\"Enroll\",'Enrollment Form'!$AN460<>\"\"),\"Y\",\"N\")))","v":""},{"$f":"IF($B453=\"N\",\"\",IF(OR('Enrollment Form'!$B460<>\"Subscriber\",'Enrollment Form'!$C460=\"ROC\"),\"-\",IF(AND('Enrollment Form'!$B460=\"Subscriber\",'Enrollment Form'!$C460=\"Enroll\",'Enrollment Form'!$AP460<>\"\"),\"Y\",\"N\")))","v":""},{"$f":"IF($B453=\"N\",\"\",IF($Q453=\"-\",\"-\",IF(AND($Q453=\"Y\",'Enrollment Form'!$AP460=\"No\"),\"-\",IF(AND($Q453=\"Y\",'Enrollment Form'!$AP460=\"Yes\",'Enrollment Form'!$AQ460<>\"\"),\"Y\",\"N\"))))","v":""},{"$f":"IF($B453=\"N\",\"\",IF(OR('Enrollment Form'!$B460<>\"Subscriber\",'Enrollment Form'!$C460=\"ROC\"),\"-\",IF(AND('Enrollment Form'!$B460=\"Subscriber\",'Enrollment Form'!$C460=\"Enroll\",'Enrollment Form'!$CO460<>\"\"),\"Y\",\"N\")))","v":""},{"$f":"IF($B453=\"N\",\"\",IF($S453=\"-\",\"-\",IF(AND($S453=\"Y\",'Enrollment Form'!$CO460=\"No\"),\"-\",IF(AND($S453=\"Y\",'Enrollment Form'!$CO460=\"Yes\",'Enrollment Form'!$CP460<>\"\"),\"Y\",\"N\"))))","v":""},{"$f":"IF(OR('Enrollment Form'!$AV460=\"Yes\",'Enrollment Form'!$AV460=\"\"),\"-\",IF(AND('Enrollment Form'!$AV460=\"No\",ISERROR(FIND(\"HMO\",VLOOKUP('Enrollment Form'!G460,'Enrollment Form'!H$11:J$1000,3,FALSE),1))=FALSE,COUNTA('Enrollment Form'!$AW460:$AZ460)=4),\"Y\",\"N\"))","v":"-"},{"$f":"IF($B453=\"N\",\"\",IF('Enrollment Form'!$B460=\"Subscriber\",\"-\",IF(COUNTA('Enrollment Form'!$BE460,'Enrollment Form'!$BG460)=2,\"Y\",\"N\")))","v":""},{"$f":"IF($B453=\"N\",\"\",IF(OR('Enrollment Form'!$AU460=\"\",'Enrollment Form'!$AU460=\"No\"),\"-\",IF(AND('Enrollment Form'!$AU460=\"Yes\",COUNTA('Enrollment Form'!$CK460)=1),\"Y\",\"N\")))","v":""},{"$f":"IF(OR('Enrollment Form'!$CK460=\"\",'Enrollment Form'!$CK460=\"No\"),\"-\",IF(COUNTA('Enrollment Form'!$CM460:$CN460)=2,\"Y\",\"N\"))","v":"-"},{"$f":"IF($B453=\"N\",\"\",IF(COUNTIF('Enrollment Form'!$CZ460:$DO460,\"Other\")=COUNTA('Enrollment Form'!$DF460,'Enrollment Form'!$DA460,'Enrollment Form'!$DK460,'Enrollment Form'!$DP460),\"Y\",\"N\"))","v":""},{"$f":"IF($B453=\"N\",\"\",IF(OR('Enrollment Form'!B460<>\"Subscriber\",'Enrollment Form'!C460=\"ROC\",COUNTIF('Enrollment Form'!AS460:AT460,\"Yes\")>=1),\"-\",IF(AND('Enrollment Form'!C460=\"Enroll\",COUNTIF('Enrollment Form'!AS460:AT460,\"No\")=2,'Enrollment Form'!AU460=\"\"),\"N\",\"Y\")))","v":""},{"$f":"IF(OR(B453=\"N\",'Enrollment Form'!B460<>\"Subscriber\",'Enrollment Form'!C460=\"ROC\",'Enrollment Form'!O460<>\"Multiple of Salary\"),\"-\",IF(COUNTA('Enrollment Form'!T460:U460)<2,\"N\",\"Y\"))","v":"-"},{"$f":"IF(B453=\"N\",\"\",IF(OR('Enrollment Form'!C460=\"ROC\",'Enrollment Form'!B460<>\"Subscriber\",'Enrollment Form'!O460=\"Waive\",'Enrollment Form'!O460=\"\"),\"-\",IF('Enrollment Form'!P460=\"\",\"N\",\"Y\")))","v":""},{"$f":"IF($B453=\"N\",\"\",IF(AND('Enrollment Form'!$C460=\"ROC\",'Enrollment Form'!$DS460<>\"\"),\"Y\",IF(AND('Enrollment Form'!$C460=\"ROC\",'Enrollment Form'!$DS460=\"\"),\"N\",IF(AND('Enrollment Form'!$C460=\"Enroll\",'Enrollment Form'!$B460=\"Subscriber\",'Enrollment Form'!$CQ460=\"No\",'Enrollment Form'!$DS460=\"\"),\"N\",IF(AND('Enrollment Form'!$C460=\"Enroll\",'Enrollment Form'!$B460=\"Subscriber\",'Enrollment Form'!$CQ460=\"Yes\"),\"-\",\"Y\")))))","v":""},{"$f":"IF($B453=\"N\",\"\",IF(AND('Enrollment Form'!$C460=\"ROC\",'Enrollment Form'!$DT460<>\"\"),\"Y\",IF(AND('Enrollment Form'!$C460=\"ROC\",'Enrollment Form'!$DT460=\"\"),\"N\",IF(AND('Enrollment Form'!$C460=\"Enroll\",'Enrollment Form'!$B460=\"Subscriber\",'Enrollment Form'!$CQ460=\"No\",'Enrollment Form'!$DT460=\"\"),\"N\",IF(AND('Enrollment Form'!$C460=\"Enroll\",'Enrollment Form'!$B460=\"Subscriber\",'Enrollment Form'!$CQ460=\"Yes\"),\"-\",\"Y\")))))","v":""},{"$f":"IF('Enrollment Form'!AH460=\"\",\"\",IF(ISERROR(SEARCH(\".\",'Enrollment Form'!AH460,SEARCH(\"@\",'Enrollment Form'!AH460))),\"N\",\"Y\"))","v":""},{"$f":"IF(OR($B453=\"N\",'Enrollment Form'!$G460=\"\"),\"\",IF('Enrollment Form'!$B460<>\"Subscriber\",\"-\",IF(COUNTIF('Enrollment Form'!$AS460:$AT460,\"Yes\")=2,\"N\",\"Y\")))","v":""},{"$f":"IF(OR('Enrollment Form'!$CC460=\"\",'Enrollment Form'!$CC460=\"No\"),\"-\",IF(AND('Enrollment Form'!$CC460=\"Yes\",'Enrollment Form'!$CD460=\"\"),\"N\",\"Y\"))","v":"-"},{"$f":"IF(OR('Enrollment Form'!$CE460=\"\",'Enrollment Form'!$CE460=\"No\"),\"-\",IF(AND('Enrollment Form'!$CE460=\"Yes\",'Enrollment Form'!$CF460=\"\"),\"N\",\"Y\"))","v":"-"},{"$f":"IF(OR('Enrollment Form'!$CG460=\"\",'Enrollment Form'!$CG460=\"No\"),\"-\",IF(AND('Enrollment Form'!$CG460=\"Yes\",'Enrollment Form'!$CH460=\"\"),\"N\",\"Y\"))","v":"-"},{"$f":"IF(OR('Enrollment Form'!$CG460=\"\",'Enrollment Form'!$CG460=\"No\"),\"-\",IF(AND('Enrollment Form'!$CG460=\"Yes\",'Enrollment Form'!$CI460=\"\"),\"N\",\"Y\"))","v":"-"},{"$f":"IF('Enrollment Form'!B460<>\"Subscriber\",\"-\",IF(AND('Enrollment Form'!B460=\"Subscriber\",'Enrollment Form'!C460=\"Enroll\",'Enrollment Form'!AA460=\"\"),\"N\",\"Y\"))","v":"-"},{"$f":"IF(OR('Enrollment Form'!B460=\"Subscriber\",'Enrollment Form'!B460=\"\"),\"-\",IF('Enrollment Form'!BI460=\"\",\"N\",\"Y\"))","v":"-"},{"$f":"IF('Enrollment Form'!B460<>\"Subscriber\",\"-\",IF(AND('Enrollment Form'!B460=\"Subscriber\",'Enrollment Form'!G460=\"\"),\"N\",\"Y\"))","v":"-"},{"$f":"IF('Enrollment Form'!A460=\"\",\"\",IF('Enrollment Form'!B460=\"Subscriber\",\"-\",IF(AND('Enrollment Form'!B460<>\"Subscriber\",'Enrollment Form'!G460='Enrollment Form'!H460),\"N\",\"Y\")))","v":""},0]
[{"$f":"1+A453","v":461},{"$f":"IF('Enrollment Form'!$A461<>\"\",\"Y\",\"N\")","v":"N"},{"$f":"IF(AND('Enrollment Form'!$B461=\"\",'Enrollment Form'!$C461<>\"\"),\"N\",IF($B454=\"N\",\"\",\"Y\"))","v":""},{"$f":"IF(OR($B454=\"N\",'Enrollment Form'!G461=\"\"),\"\",IF('Enrollment Form'!$B461<>\"Subscriber\",\"\",IF('Enrollment Form'!$G461='Enrollment Form'!$H461,\"Y\",\"N\")))","v":""},{"$f":"IF($B454=\"N\",\"\",IF(AND(COUNTIFS('Enrollment Form'!$H$11:$H$1000,'Enrollment Form'!$H461,'Enrollment Form'!$B$11:$B$1000,'Enrollment Form'!$B461)>1,'Enrollment Form'!$H461<>\"\"),\"N\",\"Y\"))","v":""},{"$f":"IF($B454=\"N\",\"\",IF(LEN('Enrollment Form'!$Y461)=0,\"\",IF(LEN('Enrollment Form'!$Y461)<>5,\"N\",\"Y\")))","v":""},{"$f":"IF($B454=\"N\",\"\",IF(LEN('Enrollment Form'!$AD461=0),\"\",IF(LEN('Enrollment Form'!$AD461)<>5,\"N\",\"Y\")))","v":""},{"$f":"IF($B454=\"N\",\"\",IF(LEN('Enrollment Form'!$BL461=0),\"\",IF(LEN('Enrollment Form'!$BL461)<>5,\"N\",\"Y\")))","v":""},{"$f":"IF($B454=\"N\",\"\",IF(LEN('Enrollment Form'!$AE461)=0,\"\",IF(LEN('Enrollment Form'!$AE461)<>10,\"N\",\"Y\")))","v":""},{"$f":"IF($B454=\"N\",\"\",IF(LEN('Enrollment Form'!$AF461)=0,\"\",IF(LEN('Enrollment Form'!$AF461)<>10,\"N\",\"Y\")))","v":""},{"$f":"IF('Enrollment Form'!$O461<>\"Graded\",\"-\",IF(AND('Enrollment Form'!$O461=\"Graded\",'Enrollment Form'!$AO461<>\"\"),\"Y\",\"N\"))","v":"-"},{"$f":"IF($B454=\"N\",\"\",IF(OR('Enrollment Form'!$B461<>\"Subscriber\",'Enrollment Form'!$C461=\"ROC\"),\"-\",IF(AND('Enrollment Form'!$B461=\"Subscriber\",'Enrollment Form'!$C461=\"Enroll\",'Enrollment Form'!$AJ461<>\"\"),\"Y\",\"N\")))","v":""},{"$f":"IF($B454=\"N\",\"\",IF(OR('Enrollment Form'!$B461<>\"Subscriber\",'Enrollment Form'!$C461=\"ROC\"),\"-\",IF(AND('Enrollment Form'!$B461=\"Subscriber\",'Enrollment Form'!$C461=\"Enroll\",'Enrollment Form'!$AK461<>\"\"),\"Y\",\"N\")))","v":""},{"$f":"IF($B454=\"N\",\"\",IF(OR('Enrollment Form'!$B461<>\"Subscriber\",'Enrollment Form'!$C461=\"ROC\"),\"-\",IF(AND('Enrollment Form'!$B461=\"Subscriber\",'Enrollment Form'!$C461=\"Enroll\",'Enrollment Form'!$AL461<>\"\"),\"Y\",\"N\")))","v":""},{"$f":"IF($B454=\"N\",\"\",IF(OR('Enrollment Form'!$B461<>\"Subscriber\",'Enrollment Form'!$C461=\"ROC\"),\"-\",IF(AND('Enrollment Form'!$B461=\"Subscriber\",'Enrollment Form'!$C461=\"Enroll\",'Enrollment Form'!$AM461<>\"\"),\"Y\",\"N\")))","v":""},{"$f":"IF($B454=\"N\",\"\",IF(OR('Enrollment Form'!$B461<>\"Subscriber\",'Enrollment Form'!$C461=\"ROC\"),\"-\",IF(AND('Enrollment Form'!$B461=\"Subscriber\",'Enrollment Form'!$C461=\"Enroll\",'Enrollment Form'!$AN461<>\"\"),\"Y\",\"N\")))","v":""},{"$f":"IF($B454=\"N\",\"\",IF(OR('Enrollment Form'!$B461<>\"Subscriber\",'Enrollment Form'!$C461=\"ROC\"),\"-\",IF(AND('Enrollment Form'!$B461=\"Subscriber\",'Enrollment Form'!$C461=\"Enroll\",'Enrollment Form'!$AP461<>\"\"),\"Y\",\"N\")))","v":""},{"$f":"IF($B454=\"N\",\"\",IF($Q454=\"-\",\"-\",IF(AND($Q454=\"Y\",'Enrollment Form'!$AP461=\"No\"),\"-\",IF(AND($Q454=\"Y\",'Enrollment Form'!$AP461=\"Yes\",'Enrollment Form'!$AQ461<>\"\"),\"Y\",\"N\"))))","v":""},{"$f":"IF($B454=\"N\",\"\",IF(OR('Enrollment Form'!$B461<>\"Subscriber\",'Enrollment Form'!$C461=\"ROC\"),\"-\",IF(AND('Enrollment Form'!$B461=\"Subscriber\",'Enrollment Form'!$C461=\"Enroll\",'Enrollment Form'!$CO461<>\"\"),\"Y\",\"N\")))","v":""},{"$f":"IF($B454=\"N\",\"\",IF($S454=\"-\",\"-\",IF(AND($S454=\"Y\",'Enrollment Form'!$CO461=\"No\"),\"-\",IF(AND($S454=\"Y\",'Enrollment Form'!$CO461=\"Yes\",'Enrollment Form'!$CP461<>\"\"),\"Y\",\"N\"))))","v":""},{"$f":"IF(OR('Enrollment Form'!$AV461=\"Yes\",'Enrollment Form'!$AV461=\"\"),\"-\",IF(AND('Enrollment Form'!$AV461=\"No\",ISERROR(FIND(\"HMO\",VLOOKUP('Enrollment Form'!G461,'Enrollment Form'!H$11:J$1000,3,FALSE),1))=FALSE,COUNTA('Enrollment Form'!$AW461:$AZ461)=4),\"Y\",\"N\"))","v":"-"},{"$f":"IF($B454=\"N\",\"\",IF('Enrollment Form'!$B461=\"Subscriber\",\"-\",IF(COUNTA('Enrollment Form'!$BE461,'Enrollment Form'!$BG461)=2,\"Y\",\"N\")))","v":""},{"$f":"IF($B454=\"N\",\"\",IF(OR('Enrollment Form'!$AU461=\"\",'Enrollment Form'!$AU461=\"No\"),\"-\",IF(AND('Enrollment Form'!$AU461=\"Yes\",COUNTA('Enrollment Form'!$CK461)=1),\"Y\",\"N\")))","v":""},{"$f":"IF(OR('Enrollment Form'!$CK461=\"\",'Enrollment Form'!$CK461=\"No\"),\"-\",IF(COUNTA('Enrollment Form'!$CM461:$CN461)=2,\"Y\",\"N\"))","v":"-"},{"$f":"IF($B454=\"N\",\"\",IF(COUNTIF('Enrollment Form'!$CZ461:$DO461,\"Other\")=COUNTA('Enrollment Form'!$DF461,'Enrollment Form'!$DA461,'Enrollment Form'!$DK461,'Enrollment Form'!$DP461),\"Y\",\"N\"))","v":""},{"$f":"IF($B454=\"N\",\"\",IF(OR('Enrollment Form'!B461<>\"Subscriber\",'Enrollment Form'!C461=\"ROC\",COUNTIF('Enrollment Form'!AS461:AT461,\"Yes\")>=1),\"-\",IF(AND('Enrollment Form'!C461=\"Enroll\",COUNTIF('Enrollment Form'!AS461:AT461,\"No\")=2,'Enrollment Form'!AU461=\"\"),\"N\",\"Y\")))","v":""},{"$f":"IF(OR(B454=\"N\",'Enrollment Form'!B461<>\"Subscriber\",'Enrollment Form'!C461=\"ROC\",'Enrollment Form'!O461<>\"Multiple of Salary\"),\"-\",IF(COUNTA('Enrollment Form'!T461:U461)<2,\"N\",\"Y\"))","v":"-"},{"$f":"IF(B454=\"N\",\"\",IF(OR('Enrollment Form'!C461=\"ROC\",'Enrollment Form'!B461<>\"Subscriber\",'Enrollment Form'!O461=\"Waive\",'Enrollment Form'!O461=\"\"),\"-\",IF('Enrollment Form'!P461=\"\",\"N\",\"Y\")))","v":""},{"$f":"IF($B454=\"N\",\"\",IF(AND('Enrollment Form'!$C461=\"ROC\",'Enrollment Form'!$DS461<>\"\"),\"Y\",IF(AND('Enrollment Form'!$C461=\"ROC\",'Enrollment Form'!$DS461=\"\"),\"N\",IF(AND('Enrollment Form'!$C461=\"Enroll\",'Enrollment Form'!$B461=\"Subscriber\",'Enrollment Form'!$CQ461=\"No\",'Enrollment Form'!$DS461=\"\"),\"N\",IF(AND('Enrollment Form'!$C461=\"Enroll\",'Enrollment Form'!$B461=\"Subscriber\",'Enrollment Form'!$CQ461=\"Yes\"),\"-\",\"Y\")))))","v":""},{"$f":"IF($B454=\"N\",\"\",IF(AND('Enrollment Form'!$C461=\"ROC\",'Enrollment Form'!$DT461<>\"\"),\"Y\",IF(AND('Enrollment Form'!$C461=\"ROC\",'Enrollment Form'!$DT461=\"\"),\"N\",IF(AND('Enrollment Form'!$C461=\"Enroll\",'Enrollment Form'!$B461=\"Subscriber\",'Enrollment Form'!$CQ461=\"No\",'Enrollment Form'!$DT461=\"\"),\"N\",IF(AND('Enrollment Form'!$C461=\"Enroll\",'Enrollment Form'!$B461=\"Subscriber\",'Enrollment Form'!$CQ461=\"Yes\"),\"-\",\"Y\")))))","v":""},{"$f":"IF('Enrollment Form'!AH461=\"\",\"\",IF(ISERROR(SEARCH(\".\",'Enrollment Form'!AH461,SEARCH(\"@\",'Enrollment Form'!AH461))),\"N\",\"Y\"))","v":""},{"$f":"IF(OR($B454=\"N\",'Enrollment Form'!$G461=\"\"),\"\",IF('Enrollment Form'!$B461<>\"Subscriber\",\"-\",IF(COUNTIF('Enrollment Form'!$AS461:$AT461,\"Yes\")=2,\"N\",\"Y\")))","v":""},{"$f":"IF(OR('Enrollment Form'!$CC461=\"\",'Enrollment Form'!$CC461=\"No\"),\"-\",IF(AND('Enrollment Form'!$CC461=\"Yes\",'Enrollment Form'!$CD461=\"\"),\"N\",\"Y\"))","v":"-"},{"$f":"IF(OR('Enrollment Form'!$CE461=\"\",'Enrollment Form'!$CE461=\"No\"),\"-\",IF(AND('Enrollment Form'!$CE461=\"Yes\",'Enrollment Form'!$CF461=\"\"),\"N\",\"Y\"))","v":"-"},{"$f":"IF(OR('Enrollment Form'!$CG461=\"\",'Enrollment Form'!$CG461=\"No\"),\"-\",IF(AND('Enrollment Form'!$CG461=\"Yes\",'Enrollment Form'!$CH461=\"\"),\"N\",\"Y\"))","v":"-"},{"$f":"IF(OR('Enrollment Form'!$CG461=\"\",'Enrollment Form'!$CG461=\"No\"),\"-\",IF(AND('Enrollment Form'!$CG461=\"Yes\",'Enrollment Form'!$CI461=\"\"),\"N\",\"Y\"))","v":"-"},{"$f":"IF('Enrollment Form'!B461<>\"Subscriber\",\"-\",IF(AND('Enrollment Form'!B461=\"Subscriber\",'Enrollment Form'!C461=\"Enroll\",'Enrollment Form'!AA461=\"\"),\"N\",\"Y\"))","v":"-"},{"$f":"IF(OR('Enrollment Form'!B461=\"Subscriber\",'Enrollment Form'!B461=\"\"),\"-\",IF('Enrollment Form'!BI461=\"\",\"N\",\"Y\"))","v":"-"},{"$f":"IF('Enrollment Form'!B461<>\"Subscriber\",\"-\",IF(AND('Enrollment Form'!B461=\"Subscriber\",'Enrollment Form'!G461=\"\"),\"N\",\"Y\"))","v":"-"},{"$f":"IF('Enrollment Form'!A461=\"\",\"\",IF('Enrollment Form'!B461=\"Subscriber\",\"-\",IF(AND('Enrollment Form'!B461<>\"Subscriber\",'Enrollment Form'!G461='Enrollment Form'!H461),\"N\",\"Y\")))","v":""},0]
[462,{"$f":"IF('Enrollment Form'!$A462<>\"\",\"Y\",\"N\")","v":"N"},{"$f":"IF(AND('Enrollment Form'!$B462=\"\",'Enrollment Form'!$C462<>\"\"),\"N\",IF($B455=\"N\",\"\",\"Y\"))","v":""},{"$f":"IF(OR($B455=\"N\",'Enrollment Form'!G462=\"\"),\"\",IF('Enrollment Form'!$B462<>\"Subscriber\",\"\",IF('Enrollment Form'!$G462='Enrollment Form'!$H462,\"Y\",\"N\")))","v":""},{"$f":"IF($B455=\"N\",\"\",IF(AND(COUNTIFS('Enrollment Form'!$H$11:$H$1000,'Enrollment Form'!$H462,'Enrollment Form'!$B$11:$B$1000,'Enrollment Form'!$B462)>1,'Enrollment Form'!$H462<>\"\"),\"N\",\"Y\"))","v":""},{"$f":"IF($B455=\"N\",\"\",IF(LEN('Enrollment Form'!$Y462)=0,\"\",IF(LEN('Enrollment Form'!$Y462)<>5,\"N\",\"Y\")))","v":""},{"$f":"IF($B455=\"N\",\"\",IF(LEN('Enrollment Form'!$AD462=0),\"\",IF(LEN('Enrollment Form'!$AD462)<>5,\"N\",\"Y\")))","v":""},{"$f":"IF($B455=\"N\",\"\",IF(LEN('Enrollment Form'!$BL462=0),\"\",IF(LEN('Enrollment Form'!$BL462)<>5,\"N\",\"Y\")))","v":""},{"$f":"IF($B455=\"N\",\"\",IF(LEN('Enrollment Form'!$AE462)=0,\"\",IF(LEN('Enrollment Form'!$AE462)<>10,\"N\",\"Y\")))","v":""},{"$f":"IF($B455=\"N\",\"\",IF(LEN('Enrollment Form'!$AF462)=0,\"\",IF(LEN('Enrollment Form'!$AF462)<>10,\"N\",\"Y\")))","v":""},{"$f":"IF('Enrollment Form'!$O462<>\"Graded\",\"-\",IF(AND('Enrollment Form'!$O462=\"Graded\",'Enrollment Form'!$AO462<>\"\"),\"Y\",\"N\"))","v":"-"},{"$f":"IF($B455=\"N\",\"\",IF(OR('Enrollment Form'!$B462<>\"Subscriber\",'Enrollment Form'!$C462=\"ROC\"),\"-\",IF(AND('Enrollment Form'!$B462=\"Subscriber\",'Enrollment Form'!$C462=\"Enroll\",'Enrollment Form'!$AJ462<>\"\"),\"Y\",\"N\")))","v":""},{"$f":"IF($B455=\"N\",\"\",IF(OR('Enrollment Form'!$B462<>\"Subscriber\",'Enrollment Form'!$C462=\"ROC\"),\"-\",IF(AND('Enrollment Form'!$B462=\"Subscriber\",'Enrollment Form'!$C462=\"Enroll\",'Enrollment Form'!$AK462<>\"\"),\"Y\",\"N\")))","v":""},{"$f":"IF($B455=\"N\",\"\",IF(OR('Enrollment Form'!$B462<>\"Subscriber\",'Enrollment Form'!$C462=\"ROC\"),\"-\",IF(AND('Enrollment Form'!$B462=\"Subscriber\",'Enrollment Form'!$C462=\"Enroll\",'Enrollment Form'!$AL462<>\"\"),\"Y\",\"N\")))","v":""},{"$f":"IF($B455=\"N\",\"\",IF(OR('Enrollment Form'!$B462<>\"Subscriber\",'Enrollment Form'!$C462=\"ROC\"),\"-\",IF(AND('Enrollment Form'!$B462=\"Subscriber\",'Enrollment Form'!$C462=\"Enroll\",'Enrollment Form'!$AM462<>\"\"),\"Y\",\"N\")))","v":""},{"$f":"IF($B455=\"N\",\"\",IF(OR('Enrollment Form'!$B462<>\"Subscriber\",'Enrollment Form'!$C462=\"ROC\"),\"-\",IF(AND('Enrollment Form'!$B462=\"Subscriber\",'Enrollment Form'!$C462=\"Enroll\",'Enrollment Form'!$AN462<>\"\"),\"Y\",\"N\")))","v":""},{"$f":"IF($B455=\"N\",\"\",IF(OR('Enrollment Form'!$B462<>\"Subscriber\",'Enrollment Form'!$C462=\"ROC\"),\"-\",IF(AND('Enrollment Form'!$B462=\"Subscriber\",'Enrollment Form'!$C462=\"Enroll\",'Enrollment Form'!$AP462<>\"\"),\"Y\",\"N\")))","v":""},{"$f":"IF($B455=\"N\",\"\",IF($Q455=\"-\",\"-\",IF(AND($Q455=\"Y\",'Enrollment Form'!$AP462=\"No\"),\"-\",IF(AND($Q455=\"Y\",'Enrollment Form'!$AP462=\"Yes\",'Enrollment Form'!$AQ462<>\"\"),\"Y\",\"N\"))))","v":""},{"$f":"IF($B455=\"N\",\"\",IF(OR('Enrollment Form'!$B462<>\"Subscriber\",'Enrollment Form'!$C462=\"ROC\"),\"-\",IF(AND('Enrollment Form'!$B462=\"Subscriber\",'Enrollment Form'!$C462=\"Enroll\",'Enrollment Form'!$CO462<>\"\"),\"Y\",\"N\")))","v":""},{"$f":"IF($B455=\"N\",\"\",IF($S455=\"-\",\"-\",IF(AND($S455=\"Y\",'Enrollment Form'!$CO462=\"No\"),\"-\",IF(AND($S455=\"Y\",'Enrollment Form'!$CO462=\"Yes\",'Enrollment Form'!$CP462<>\"\"),\"Y\",\"N\"))))","v":""},{"$f":"IF(OR('Enrollment Form'!$AV462=\"Yes\",'Enrollment Form'!$AV462=\"\"),\"-\",IF(AND('Enrollment Form'!$AV462=\"No\",ISERROR(FIND(\"HMO\",VLOOKUP('Enrollment Form'!G462,'Enrollment Form'!H$11:J$1000,3,FALSE),1))=FALSE,COUNTA('Enrollment Form'!$AW462:$AZ462)=4),\"Y\",\"N\"))","v":"-"},{"$f":"IF($B455=\"N\",\"\",IF('Enrollment Form'!$B462=\"Subscriber\",\"-\",IF(COUNTA('Enrollment Form'!$BE462,'Enrollment Form'!$BG462)=2,\"Y\",\"N\")))","v":""},{"$f":"IF($B455=\"N\",\"\",IF(OR('Enrollment Form'!$AU462=\"\",'Enrollment Form'!$AU462=\"No\"),\"-\",IF(AND('Enrollment Form'!$AU462=\"Yes\",COUNTA('Enrollment Form'!$CK462)=1),\"Y\",\"N\")))","v":""},{"$f":"IF(OR('Enrollment Form'!$CK462=\"\",'Enrollment Form'!$CK462=\"No\"),\"-\",IF(COUNTA('Enrollment Form'!$CM462:$CN462)=2,\"Y\",\"N\"))","v":"-"},{"$f":"IF($B455=\"N\",\"\",IF(COUNTIF('Enrollment Form'!$CZ462:$DO462,\"Other\")=COUNTA('Enrollment Form'!$DF462,'Enrollment Form'!$DA462,'Enrollment Form'!$DK462,'Enrollment Form'!$DP462),\"Y\",\"N\"))","v":""},{"$f":"IF($B455=\"N\",\"\",IF(OR('Enrollment Form'!B462<>\"Subscriber\",'Enrollment Form'!C462=\"ROC\",COUNTIF('Enrollment Form'!AS462:AT462,\"Yes\")>=1),\"-\",IF(AND('Enrollment Form'!C462=\"Enroll\",COUNTIF('Enrollment Form'!AS462:AT462,\"No\")=2,'Enrollment Form'!AU462=\"\"),\"N\",\"Y\")))","v":""},{"$f":"IF(OR(B455=\"N\",'Enrollment Form'!B462<>\"Subscriber\",'Enrollment Form'!C462=\"ROC\",'Enrollment Form'!O462<>\"Multiple of Salary\"),\"-\",IF(COUNTA('Enrollment Form'!T462:U462)<2,\"N\",\"Y\"))","v":"-"},{"$f":"IF(B455=\"N\",\"\",IF(OR('Enrollment Form'!C462=\"ROC\",'Enrollment Form'!B462<>\"Subscriber\",'Enrollment Form'!O462=\"Waive\",'Enrollment Form'!O462=\"\"),\"-\",IF('Enrollment Form'!P462=\"\",\"N\",\"Y\")))","v":""},{"$f":"IF($B455=\"N\",\"\",IF(AND('Enrollment Form'!$C462=\"ROC\",'Enrollment Form'!$DS462<>\"\"),\"Y\",IF(AND('Enrollment Form'!$C462=\"ROC\",'Enrollment Form'!$DS462=\"\"),\"N\",IF(AND('Enrollment Form'!$C462=\"Enroll\",'Enrollment Form'!$B462=\"Subscriber\",'Enrollment Form'!$CQ462=\"No\",'Enrollment Form'!$DS462=\"\"),\"N\",IF(AND('Enrollment Form'!$C462=\"Enroll\",'Enrollment Form'!$B462=\"Subscriber\",'Enrollment Form'!$CQ462=\"Yes\"),\"-\",\"Y\")))))","v":""},{"$f":"IF($B455=\"N\",\"\",IF(AND('Enrollment Form'!$C462=\"ROC\",'Enrollment Form'!$DT462<>\"\"),\"Y\",IF(AND('Enrollment Form'!$C462=\"ROC\",'Enrollment Form'!$DT462=\"\"),\"N\",IF(AND('Enrollment Form'!$C462=\"Enroll\",'Enrollment Form'!$B462=\"Subscriber\",'Enrollment Form'!$CQ462=\"No\",'Enrollment Form'!$DT462=\"\"),\"N\",IF(AND('Enrollment Form'!$C462=\"Enroll\",'Enrollment Form'!$B462=\"Subscriber\",'Enrollment Form'!$CQ462=\"Yes\"),\"-\",\"Y\")))))","v":""},{"$f":"IF('Enrollment Form'!AH462=\"\",\"\",IF(ISERROR(SEARCH(\".\",'Enrollment Form'!AH462,SEARCH(\"@\",'Enrollment Form'!AH462))),\"N\",\"Y\"))","v":""},{"$f":"IF(OR($B455=\"N\",'Enrollment Form'!$G462=\"\"),\"\",IF('Enrollment Form'!$B462<>\"Subscriber\",\"-\",IF(COUNTIF('Enrollment Form'!$AS462:$AT462,\"Yes\")=2,\"N\",\"Y\")))","v":""},{"$f":"IF(OR('Enrollment Form'!$CC462=\"\",'Enrollment Form'!$CC462=\"No\"),\"-\",IF(AND('Enrollment Form'!$CC462=\"Yes\",'Enrollment Form'!$CD462=\"\"),\"N\",\"Y\"))","v":"-"},{"$f":"IF(OR('Enrollment Form'!$CE462=\"\",'Enrollment Form'!$CE462=\"No\"),\"-\",IF(AND('Enrollment Form'!$CE462=\"Yes\",'Enrollment Form'!$CF462=\"\"),\"N\",\"Y\"))","v":"-"},{"$f":"IF(OR('Enrollment Form'!$CG462=\"\",'Enrollment Form'!$CG462=\"No\"),\"-\",IF(AND('Enrollment Form'!$CG462=\"Yes\",'Enrollment Form'!$CH462=\"\"),\"N\",\"Y\"))","v":"-"},{"$f":"IF(OR('Enrollment Form'!$CG462=\"\",'Enrollment Form'!$CG462=\"No\"),\"-\",IF(AND('Enrollment Form'!$CG462=\"Yes\",'Enrollment Form'!$CI462=\"\"),\"N\",\"Y\"))","v":"-"},{"$f":"IF('Enrollment Form'!B462<>\"Subscriber\",\"-\",IF(AND('Enrollment Form'!B462=\"Subscriber\",'Enrollment Form'!C462=\"Enroll\",'Enrollment Form'!AA462=\"\"),\"N\",\"Y\"))","v":"-"},{"$f":"IF(OR('Enrollment Form'!B462=\"Subscriber\",'Enrollment Form'!B462=\"\"),\"-\",IF('Enrollment Form'!BI462=\"\",\"N\",\"Y\"))","v":"-"},{"$f":"IF('Enrollment Form'!B462<>\"Subscriber\",\"-\",IF(AND('Enrollment Form'!B462=\"Subscriber\",'Enrollment Form'!G462=\"\"),\"N\",\"Y\"))","v":"-"},{"$f":"IF('Enrollment Form'!A462=\"\",\"\",IF('Enrollment Form'!B462=\"Subscriber\",\"-\",IF(AND('Enrollment Form'!B462<>\"Subscriber\",'Enrollment Form'!G462='Enrollment Form'!H462),\"N\",\"Y\")))","v":""},0]
[463,{"$f":"IF('Enrollment Form'!$A463<>\"\",\"Y\",\"N\")","v":"N"},{"$f":"IF(AND('Enrollment Form'!$B463=\"\",'Enrollment Form'!$C463<>\"\"),\"N\",IF($B456=\"N\",\"\",\"Y\"))","v":""},{"$f":"IF(OR($B456=\"N\",'Enrollment Form'!G463=\"\"),\"\",IF('Enrollment Form'!$B463<>\"Subscriber\",\"\",IF('Enrollment Form'!$G463='Enrollment Form'!$H463,\"Y\",\"N\")))","v":""},{"$f":"IF($B456=\"N\",\"\",IF(AND(COUNTIFS('Enrollment Form'!$H$11:$H$1000,'Enrollment Form'!$H463,'Enrollment Form'!$B$11:$B$1000,'Enrollment Form'!$B463)>1,'Enrollment Form'!$H463<>\"\"),\"N\",\"Y\"))","v":""},{"$f":"IF($B456=\"N\",\"\",IF(LEN('Enrollment Form'!$Y463)=0,\"\",IF(LEN('Enrollment Form'!$Y463)<>5,\"N\",\"Y\")))","v":""},{"$f":"IF($B456=\"N\",\"\",IF(LEN('Enrollment Form'!$AD463=0),\"\",IF(LEN('Enrollment Form'!$AD463)<>5,\"N\",\"Y\")))","v":""},{"$f":"IF($B456=\"N\",\"\",IF(LEN('Enrollment Form'!$BL463=0),\"\",IF(LEN('Enrollment Form'!$BL463)<>5,\"N\",\"Y\")))","v":""},{"$f":"IF($B456=\"N\",\"\",IF(LEN('Enrollment Form'!$AE463)=0,\"\",IF(LEN('Enrollment Form'!$AE463)<>10,\"N\",\"Y\")))","v":""},{"$f":"IF($B456=\"N\",\"\",IF(LEN('Enrollment Form'!$AF463)=0,\"\",IF(LEN('Enrollment Form'!$AF463)<>10,\"N\",\"Y\")))","v":""},{"$f":"IF('Enrollment Form'!$O463<>\"Graded\",\"-\",IF(AND('Enrollment Form'!$O463=\"Graded\",'Enrollment Form'!$AO463<>\"\"),\"Y\",\"N\"))","v":"-"},{"$f":"IF($B456=\"N\",\"\",IF(OR('Enrollment Form'!$B463<>\"Subscriber\",'Enrollment Form'!$C463=\"ROC\"),\"-\",IF(AND('Enrollment Form'!$B463=\"Subscriber\",'Enrollment Form'!$C463=\"Enroll\",'Enrollment Form'!$AJ463<>\"\"),\"Y\",\"N\")))","v":""},{"$f":"IF($B456=\"N\",\"\",IF(OR('Enrollment Form'!$B463<>\"Subscriber\",'Enrollment Form'!$C463=\"ROC\"),\"-\",IF(AND('Enrollment Form'!$B463=\"Subscriber\",'Enrollment Form'!$C463=\"Enroll\",'Enrollment Form'!$AK463<>\"\"),\"Y\",\"N\")))","v":""},{"$f":"IF($B456=\"N\",\"\",IF(OR('Enrollment Form'!$B463<>\"Subscriber\",'Enrollment Form'!$C463=\"ROC\"),\"-\",IF(AND('Enrollment Form'!$B463=\"Subscriber\",'Enrollment Form'!$C463=\"Enroll\",'Enrollment Form'!$AL463<>\"\"),\"Y\",\"N\")))","v":""},{"$f":"IF($B456=\"N\",\"\",IF(OR('Enrollment Form'!$B463<>\"Subscriber\",'Enrollment Form'!$C463=\"ROC\"),\"-\",IF(AND('Enrollment Form'!$B463=\"Subscriber\",'Enrollment Form'!$C463=\"Enroll\",'Enrollment Form'!$AM463<>\"\"),\"Y\",\"N\")))","v":""},{"$f":"IF($B456=\"N\",\"\",IF(OR('Enrollment Form'!$B463<>\"Subscriber\",'Enrollment Form'!$C463=\"ROC\"),\"-\",IF(AND('Enrollment Form'!$B463=\"Subscriber\",'Enrollment Form'!$C463=\"Enroll\",'Enrollment Form'!$AN463<>\"\"),\"Y\",\"N\")))","v":""},{"$f":"IF($B456=\"N\",\"\",IF(OR('Enrollment Form'!$B463<>\"Subscriber\",'Enrollment Form'!$C463=\"ROC\"),\"-\",IF(AND('Enrollment Form'!$B463=\"Subscriber\",'Enrollment Form'!$C463=\"Enroll\",'Enrollment Form'!$AP463<>\"\"),\"Y\",\"N\")))","v":""},{"$f":"IF($B456=\"N\",\"\",IF($Q456=\"-\",\"-\",IF(AND($Q456=\"Y\",'Enrollment Form'!$AP463=\"No\"),\"-\",IF(AND($Q456=\"Y\",'Enrollment Form'!$AP463=\"Yes\",'Enrollment Form'!$AQ463<>\"\"),\"Y\",\"N\"))))","v":""},{"$f":"IF($B456=\"N\",\"\",IF(OR('Enrollment Form'!$B463<>\"Subscriber\",'Enrollment Form'!$C463=\"ROC\"),\"-\",IF(AND('Enrollment Form'!$B463=\"Subscriber\",'Enrollment Form'!$C463=\"Enroll\",'Enrollment Form'!$CO463<>\"\"),\"Y\",\"N\")))","v":""},{"$f":"IF($B456=\"N\",\"\",IF($S456=\"-\",\"-\",IF(AND($S456=\"Y\",'Enrollment Form'!$CO463=\"No\"),\"-\",IF(AND($S456=\"Y\",'Enrollment Form'!$CO463=\"Yes\",'Enrollment Form'!$CP463<>\"\"),\"Y\",\"N\"))))","v":""},{"$f":"IF(OR('Enrollment Form'!$AV463=\"Yes\",'Enrollment Form'!$AV463=\"\"),\"-\",IF(AND('Enrollment Form'!$AV463=\"No\",ISERROR(FIND(\"HMO\",VLOOKUP('Enrollment Form'!G463,'Enrollment Form'!H$11:J$1000,3,FALSE),1))=FALSE,COUNTA('Enrollment Form'!$AW463:$AZ463)=4),\"Y\",\"N\"))","v":"-"},{"$f":"IF($B456=\"N\",\"\",IF('Enrollment Form'!$B463=\"Subscriber\",\"-\",IF(COUNTA('Enrollment Form'!$BE463,'Enrollment Form'!$BG463)=2,\"Y\",\"N\")))","v":""},{"$f":"IF($B456=\"N\",\"\",IF(OR('Enrollment Form'!$AU463=\"\",'Enrollment Form'!$AU463=\"No\"),\"-\",IF(AND('Enrollment Form'!$AU463=\"Yes\",COUNTA('Enrollment Form'!$CK463)=1),\"Y\",\"N\")))","v":""},{"$f":"IF(OR('Enrollment Form'!$CK463=\"\",'Enrollment Form'!$CK463=\"No\"),\"-\",IF(COUNTA('Enrollment Form'!$CM463:$CN463)=2,\"Y\",\"N\"))","v":"-"},{"$f":"IF($B456=\"N\",\"\",IF(COUNTIF('Enrollment Form'!$CZ463:$DO463,\"Other\")=COUNTA('Enrollment Form'!$DF463,'Enrollment Form'!$DA463,'Enrollment Form'!$DK463,'Enrollment Form'!$DP463),\"Y\",\"N\"))","v":""},{"$f":"IF($B456=\"N\",\"\",IF(OR('Enrollment Form'!B463<>\"Subscriber\",'Enrollment Form'!C463=\"ROC\",COUNTIF('Enrollment Form'!AS463:AT463,\"Yes\")>=1),\"-\",IF(AND('Enrollment Form'!C463=\"Enroll\",COUNTIF('Enrollment Form'!AS463:AT463,\"No\")=2,'Enrollment Form'!AU463=\"\"),\"N\",\"Y\")))","v":""},{"$f":"IF(OR(B456=\"N\",'Enrollment Form'!B463<>\"Subscriber\",'Enrollment Form'!C463=\"ROC\",'Enrollment Form'!O463<>\"Multiple of Salary\"),\"-\",IF(COUNTA('Enrollment Form'!T463:U463)<2,\"N\",\"Y\"))","v":"-"},{"$f":"IF(B456=\"N\",\"\",IF(OR('Enrollment Form'!C463=\"ROC\",'Enrollment Form'!B463<>\"Subscriber\",'Enrollment Form'!O463=\"Waive\",'Enrollment Form'!O463=\"\"),\"-\",IF('Enrollment Form'!P463=\"\",\"N\",\"Y\")))","v":""},{"$f":"IF($B456=\"N\",\"\",IF(AND('Enrollment Form'!$C463=\"ROC\",'Enrollment Form'!$DS463<>\"\"),\"Y\",IF(AND('Enrollment Form'!$C463=\"ROC\",'Enrollment Form'!$DS463=\"\"),\"N\",IF(AND('Enrollment Form'!$C463=\"Enroll\",'Enrollment Form'!$B463=\"Subscriber\",'Enrollment Form'!$CQ463=\"No\",'Enrollment Form'!$DS463=\"\"),\"N\",IF(AND('Enrollment Form'!$C463=\"Enroll\",'Enrollment Form'!$B463=\"Subscriber\",'Enrollment Form'!$CQ463=\"Yes\"),\"-\",\"Y\")))))","v":""},{"$f":"IF($B456=\"N\",\"\",IF(AND('Enrollment Form'!$C463=\"ROC\",'Enrollment Form'!$DT463<>\"\"),\"Y\",IF(AND('Enrollment Form'!$C463=\"ROC\",'Enrollment Form'!$DT463=\"\"),\"N\",IF(AND('Enrollment Form'!$C463=\"Enroll\",'Enrollment Form'!$B463=\"Subscriber\",'Enrollment Form'!$CQ463=\"No\",'Enrollment Form'!$DT463=\"\"),\"N\",IF(AND('Enrollment Form'!$C463=\"Enroll\",'Enrollment Form'!$B463=\"Subscriber\",'Enrollment Form'!$CQ463=\"Yes\"),\"-\",\"Y\")))))","v":""},{"$f":"IF('Enrollment Form'!AH463=\"\",\"\",IF(ISERROR(SEARCH(\".\",'Enrollment Form'!AH463,SEARCH(\"@\",'Enrollment Form'!AH463))),\"N\",\"Y\"))","v":""},{"$f":"IF(OR($B456=\"N\",'Enrollment Form'!$G463=\"\"),\"\",IF('Enrollment Form'!$B463<>\"Subscriber\",\"-\",IF(COUNTIF('Enrollment Form'!$AS463:$AT463,\"Yes\")=2,\"N\",\"Y\")))","v":""},{"$f":"IF(OR('Enrollment Form'!$CC463=\"\",'Enrollment Form'!$CC463=\"No\"),\"-\",IF(AND('Enrollment Form'!$CC463=\"Yes\",'Enrollment Form'!$CD463=\"\"),\"N\",\"Y\"))","v":"-"},{"$f":"IF(OR('Enrollment Form'!$CE463=\"\",'Enrollment Form'!$CE463=\"No\"),\"-\",IF(AND('Enrollment Form'!$CE463=\"Yes\",'Enrollment Form'!$CF463=\"\"),\"N\",\"Y\"))","v":"-"},{"$f":"IF(OR('Enrollment Form'!$CG463=\"\",'Enrollment Form'!$CG463=\"No\"),\"-\",IF(AND('Enrollment Form'!$CG463=\"Yes\",'Enrollment Form'!$CH463=\"\"),\"N\",\"Y\"))","v":"-"},{"$f":"IF(OR('Enrollment Form'!$CG463=\"\",'Enrollment Form'!$CG463=\"No\"),\"-\",IF(AND('Enrollment Form'!$CG463=\"Yes\",'Enrollment Form'!$CI463=\"\"),\"N\",\"Y\"))","v":"-"},{"$f":"IF('Enrollment Form'!B463<>\"Subscriber\",\"-\",IF(AND('Enrollment Form'!B463=\"Subscriber\",'Enrollment Form'!C463=\"Enroll\",'Enrollment Form'!AA463=\"\"),\"N\",\"Y\"))","v":"-"},{"$f":"IF(OR('Enrollment Form'!B463=\"Subscriber\",'Enrollment Form'!B463=\"\"),\"-\",IF('Enrollment Form'!BI463=\"\",\"N\",\"Y\"))","v":"-"},{"$f":"IF('Enrollment Form'!B463<>\"Subscriber\",\"-\",IF(AND('Enrollment Form'!B463=\"Subscriber\",'Enrollment Form'!G463=\"\"),\"N\",\"Y\"))","v":"-"},{"$f":"IF('Enrollment Form'!A463=\"\",\"\",IF('Enrollment Form'!B463=\"Subscriber\",\"-\",IF(AND('Enrollment Form'!B463<>\"Subscriber\",'Enrollment Form'!G463='Enrollment Form'!H463),\"N\",\"Y\")))","v":""},0]
[464,{"$f":"IF('Enrollment Form'!$A464<>\"\",\"Y\",\"N\")","v":"N"},{"$f":"IF(AND('Enrollment Form'!$B464=\"\",'Enrollment Form'!$C464<>\"\"),\"N\",IF($B457=\"N\",\"\",\"Y\"))","v":""},{"$f":"IF(OR($B457=\"N\",'Enrollment Form'!G464=\"\"),\"\",IF('Enrollment Form'!$B464<>\"Subscriber\",\"\",IF('Enrollment Form'!$G464='Enrollment Form'!$H464,\"Y\",\"N\")))","v":""},{"$f":"IF($B457=\"N\",\"\",IF(AND(COUNTIFS('Enrollment Form'!$H$11:$H$1000,'Enrollment Form'!$H464,'Enrollment Form'!$B$11:$B$1000,'Enrollment Form'!$B464)>1,'Enrollment Form'!$H464<>\"\"),\"N\",\"Y\"))","v":""},{"$f":"IF($B457=\"N\",\"\",IF(LEN('Enrollment Form'!$Y464)=0,\"\",IF(LEN('Enrollment Form'!$Y464)<>5,\"N\",\"Y\")))","v":""},{"$f":"IF($B457=\"N\",\"\",IF(LEN('Enrollment Form'!$AD464=0),\"\",IF(LEN('Enrollment Form'!$AD464)<>5,\"N\",\"Y\")))","v":""},{"$f":"IF($B457=\"N\",\"\",IF(LEN('Enrollment Form'!$BL464=0),\"\",IF(LEN('Enrollment Form'!$BL464)<>5,\"N\",\"Y\")))","v":""},{"$f":"IF($B457=\"N\",\"\",IF(LEN('Enrollment Form'!$AE464)=0,\"\",IF(LEN('Enrollment Form'!$AE464)<>10,\"N\",\"Y\")))","v":""},{"$f":"IF($B457=\"N\",\"\",IF(LEN('Enrollment Form'!$AF464)=0,\"\",IF(LEN('Enrollment Form'!$AF464)<>10,\"N\",\"Y\")))","v":""},{"$f":"IF('Enrollment Form'!$O464<>\"Graded\",\"-\",IF(AND('Enrollment Form'!$O464=\"Graded\",'Enrollment Form'!$AO464<>\"\"),\"Y\",\"N\"))","v":"-"},{"$f":"IF($B457=\"N\",\"\",IF(OR('Enrollment Form'!$B464<>\"Subscriber\",'Enrollment Form'!$C464=\"ROC\"),\"-\",IF(AND('Enrollment Form'!$B464=\"Subscriber\",'Enrollment Form'!$C464=\"Enroll\",'Enrollment Form'!$AJ464<>\"\"),\"Y\",\"N\")))","v":""},{"$f":"IF($B457=\"N\",\"\",IF(OR('Enrollment Form'!$B464<>\"Subscriber\",'Enrollment Form'!$C464=\"ROC\"),\"-\",IF(AND('Enrollment Form'!$B464=\"Subscriber\",'Enrollment Form'!$C464=\"Enroll\",'Enrollment Form'!$AK464<>\"\"),\"Y\",\"N\")))","v":""},{"$f":"IF($B457=\"N\",\"\",IF(OR('Enrollment Form'!$B464<>\"Subscriber\",'Enrollment Form'!$C464=\"ROC\"),\"-\",IF(AND('Enrollment Form'!$B464=\"Subscriber\",'Enrollment Form'!$C464=\"Enroll\",'Enrollment Form'!$AL464<>\"\"),\"Y\",\"N\")))","v":""},{"$f":"IF($B457=\"N\",\"\",IF(OR('Enrollment Form'!$B464<>\"Subscriber\",'Enrollment Form'!$C464=\"ROC\"),\"-\",IF(AND('Enrollment Form'!$B464=\"Subscriber\",'Enrollment Form'!$C464=\"Enroll\",'Enrollment Form'!$AM464<>\"\"),\"Y\",\"N\")))","v":""},{"$f":"IF($B457=\"N\",\"\",IF(OR('Enrollment Form'!$B464<>\"Subscriber\",'Enrollment Form'!$C464=\"ROC\"),\"-\",IF(AND('Enrollment Form'!$B464=\"Subscriber\",'Enrollment Form'!$C464=\"Enroll\",'Enrollment Form'!$AN464<>\"\"),\"Y\",\"N\")))","v":""},{"$f":"IF($B457=\"N\",\"\",IF(OR('Enrollment Form'!$B464<>\"Subscriber\",'Enrollment Form'!$C464=\"ROC\"),\"-\",IF(AND('Enrollment Form'!$B464=\"Subscriber\",'Enrollment Form'!$C464=\"Enroll\",'Enrollment Form'!$AP464<>\"\"),\"Y\",\"N\")))","v":""},{"$f":"IF($B457=\"N\",\"\",IF($Q457=\"-\",\"-\",IF(AND($Q457=\"Y\",'Enrollment Form'!$AP464=\"No\"),\"-\",IF(AND($Q457=\"Y\",'Enrollment Form'!$AP464=\"Yes\",'Enrollment Form'!$AQ464<>\"\"),\"Y\",\"N\"))))","v":""},{"$f":"IF($B457=\"N\",\"\",IF(OR('Enrollment Form'!$B464<>\"Subscriber\",'Enrollment Form'!$C464=\"ROC\"),\"-\",IF(AND('Enrollment Form'!$B464=\"Subscriber\",'Enrollment Form'!$C464=\"Enroll\",'Enrollment Form'!$CO464<>\"\"),\"Y\",\"N\")))","v":""},{"$f":"IF($B457=\"N\",\"\",IF($S457=\"-\",\"-\",IF(AND($S457=\"Y\",'Enrollment Form'!$CO464=\"No\"),\"-\",IF(AND($S457=\"Y\",'Enrollment Form'!$CO464=\"Yes\",'Enrollment Form'!$CP464<>\"\"),\"Y\",\"N\"))))","v":""},{"$f":"IF(OR('Enrollment Form'!$AV464=\"Yes\",'Enrollment Form'!$AV464=\"\"),\"-\",IF(AND('Enrollment Form'!$AV464=\"No\",ISERROR(FIND(\"HMO\",VLOOKUP('Enrollment Form'!G464,'Enrollment Form'!H$11:J$1000,3,FALSE),1))=FALSE,COUNTA('Enrollment Form'!$AW464:$AZ464)=4),\"Y\",\"N\"))","v":"-"},{"$f":"IF($B457=\"N\",\"\",IF('Enrollment Form'!$B464=\"Subscriber\",\"-\",IF(COUNTA('Enrollment Form'!$BE464,'Enrollment Form'!$BG464)=2,\"Y\",\"N\")))","v":""},{"$f":"IF($B457=\"N\",\"\",IF(OR('Enrollment Form'!$AU464=\"\",'Enrollment Form'!$AU464=\"No\"),\"-\",IF(AND('Enrollment Form'!$AU464=\"Yes\",COUNTA('Enrollment Form'!$CK464)=1),\"Y\",\"N\")))","v":""},{"$f":"IF(OR('Enrollment Form'!$CK464=\"\",'Enrollment Form'!$CK464=\"No\"),\"-\",IF(COUNTA('Enrollment Form'!$CM464:$CN464)=2,\"Y\",\"N\"))","v":"-"},{"$f":"IF($B457=\"N\",\"\",IF(COUNTIF('Enrollment Form'!$CZ464:$DO464,\"Other\")=COUNTA('Enrollment Form'!$DF464,'Enrollment Form'!$DA464,'Enrollment Form'!$DK464,'Enrollment Form'!$DP464),\"Y\",\"N\"))","v":""},{"$f":"IF($B457=\"N\",\"\",IF(OR('Enrollment Form'!B464<>\"Subscriber\",'Enrollment Form'!C464=\"ROC\",COUNTIF('Enrollment Form'!AS464:AT464,\"Yes\")>=1),\"-\",IF(AND('Enrollment Form'!C464=\"Enroll\",COUNTIF('Enrollment Form'!AS464:AT464,\"No\")=2,'Enrollment Form'!AU464=\"\"),\"N\",\"Y\")))","v":""},{"$f":"IF(OR(B457=\"N\",'Enrollment Form'!B464<>\"Subscriber\",'Enrollment Form'!C464=\"ROC\",'Enrollment Form'!O464<>\"Multiple of Salary\"),\"-\",IF(COUNTA('Enrollment Form'!T464:U464)<2,\"N\",\"Y\"))","v":"-"},{"$f":"IF(B457=\"N\",\"\",IF(OR('Enrollment Form'!C464=\"ROC\",'Enrollment Form'!B464<>\"Subscriber\",'Enrollment Form'!O464=\"Waive\",'Enrollment Form'!O464=\"\"),\"-\",IF('Enrollment Form'!P464=\"\",\"N\",\"Y\")))","v":""},{"$f":"IF($B457=\"N\",\"\",IF(AND('Enrollment Form'!$C464=\"ROC\",'Enrollment Form'!$DS464<>\"\"),\"Y\",IF(AND('Enrollment Form'!$C464=\"ROC\",'Enrollment Form'!$DS464=\"\"),\"N\",IF(AND('Enrollment Form'!$C464=\"Enroll\",'Enrollment Form'!$B464=\"Subscriber\",'Enrollment Form'!$CQ464=\"No\",'Enrollment Form'!$DS464=\"\"),\"N\",IF(AND('Enrollment Form'!$C464=\"Enroll\",'Enrollment Form'!$B464=\"Subscriber\",'Enrollment Form'!$CQ464=\"Yes\"),\"-\",\"Y\")))))","v":""},{"$f":"IF($B457=\"N\",\"\",IF(AND('Enrollment Form'!$C464=\"ROC\",'Enrollment Form'!$DT464<>\"\"),\"Y\",IF(AND('Enrollment Form'!$C464=\"ROC\",'Enrollment Form'!$DT464=\"\"),\"N\",IF(AND('Enrollment Form'!$C464=\"Enroll\",'Enrollment Form'!$B464=\"Subscriber\",'Enrollment Form'!$CQ464=\"No\",'Enrollment Form'!$DT464=\"\"),\"N\",IF(AND('Enrollment Form'!$C464=\"Enroll\",'Enrollment Form'!$B464=\"Subscriber\",'Enrollment Form'!$CQ464=\"Yes\"),\"-\",\"Y\")))))","v":""},{"$f":"IF('Enrollment Form'!AH464=\"\",\"\",IF(ISERROR(SEARCH(\".\",'Enrollment Form'!AH464,SEARCH(\"@\",'Enrollment Form'!AH464))),\"N\",\"Y\"))","v":""},{"$f":"IF(OR($B457=\"N\",'Enrollment Form'!$G464=\"\"),\"\",IF('Enrollment Form'!$B464<>\"Subscriber\",\"-\",IF(COUNTIF('Enrollment Form'!$AS464:$AT464,\"Yes\")=2,\"N\",\"Y\")))","v":""},{"$f":"IF(OR('Enrollment Form'!$CC464=\"\",'Enrollment Form'!$CC464=\"No\"),\"-\",IF(AND('Enrollment Form'!$CC464=\"Yes\",'Enrollment Form'!$CD464=\"\"),\"N\",\"Y\"))","v":"-"},{"$f":"IF(OR('Enrollment Form'!$CE464=\"\",'Enrollment Form'!$CE464=\"No\"),\"-\",IF(AND('Enrollment Form'!$CE464=\"Yes\",'Enrollment Form'!$CF464=\"\"),\"N\",\"Y\"))","v":"-"},{"$f":"IF(OR('Enrollment Form'!$CG464=\"\",'Enrollment Form'!$CG464=\"No\"),\"-\",IF(AND('Enrollment Form'!$CG464=\"Yes\",'Enrollment Form'!$CH464=\"\"),\"N\",\"Y\"))","v":"-"},{"$f":"IF(OR('Enrollment Form'!$CG464=\"\",'Enrollment Form'!$CG464=\"No\"),\"-\",IF(AND('Enrollment Form'!$CG464=\"Yes\",'Enrollment Form'!$CI464=\"\"),\"N\",\"Y\"))","v":"-"},{"$f":"IF('Enrollment Form'!B464<>\"Subscriber\",\"-\",IF(AND('Enrollment Form'!B464=\"Subscriber\",'Enrollment Form'!C464=\"Enroll\",'Enrollment Form'!AA464=\"\"),\"N\",\"Y\"))","v":"-"},{"$f":"IF(OR('Enrollment Form'!B464=\"Subscriber\",'Enrollment Form'!B464=\"\"),\"-\",IF('Enrollment Form'!BI464=\"\",\"N\",\"Y\"))","v":"-"},{"$f":"IF('Enrollment Form'!B464<>\"Subscriber\",\"-\",IF(AND('Enrollment Form'!B464=\"Subscriber\",'Enrollment Form'!G464=\"\"),\"N\",\"Y\"))","v":"-"},{"$f":"IF('Enrollment Form'!A464=\"\",\"\",IF('Enrollment Form'!B464=\"Subscriber\",\"-\",IF(AND('Enrollment Form'!B464<>\"Subscriber\",'Enrollment Form'!G464='Enrollment Form'!H464),\"N\",\"Y\")))","v":""},0]
[465,{"$f":"IF('Enrollment Form'!$A465<>\"\",\"Y\",\"N\")","v":"N"},{"$f":"IF(AND('Enrollment Form'!$B465=\"\",'Enrollment Form'!$C465<>\"\"),\"N\",IF($B458=\"N\",\"\",\"Y\"))","v":""},{"$f":"IF(OR($B458=\"N\",'Enrollment Form'!G465=\"\"),\"\",IF('Enrollment Form'!$B465<>\"Subscriber\",\"\",IF('Enrollment Form'!$G465='Enrollment Form'!$H465,\"Y\",\"N\")))","v":""},{"$f":"IF($B458=\"N\",\"\",IF(AND(COUNTIFS('Enrollment Form'!$H$11:$H$1000,'Enrollment Form'!$H465,'Enrollment Form'!$B$11:$B$1000,'Enrollment Form'!$B465)>1,'Enrollment Form'!$H465<>\"\"),\"N\",\"Y\"))","v":""},{"$f":"IF($B458=\"N\",\"\",IF(LEN('Enrollment Form'!$Y465)=0,\"\",IF(LEN('Enrollment Form'!$Y465)<>5,\"N\",\"Y\")))","v":""},{"$f":"IF($B458=\"N\",\"\",IF(LEN('Enrollment Form'!$AD465=0),\"\",IF(LEN('Enrollment Form'!$AD465)<>5,\"N\",\"Y\")))","v":""},{"$f":"IF($B458=\"N\",\"\",IF(LEN('Enrollment Form'!$BL465=0),\"\",IF(LEN('Enrollment Form'!$BL465)<>5,\"N\",\"Y\")))","v":""},{"$f":"IF($B458=\"N\",\"\",IF(LEN('Enrollment Form'!$AE465)=0,\"\",IF(LEN('Enrollment Form'!$AE465)<>10,\"N\",\"Y\")))","v":""},{"$f":"IF($B458=\"N\",\"\",IF(LEN('Enrollment Form'!$AF465)=0,\"\",IF(LEN('Enrollment Form'!$AF465)<>10,\"N\",\"Y\")))","v":""},{"$f":"IF('Enrollment Form'!$O465<>\"Graded\",\"-\",IF(AND('Enrollment Form'!$O465=\"Graded\",'Enrollment Form'!$AO465<>\"\"),\"Y\",\"N\"))","v":"-"},{"$f":"IF($B458=\"N\",\"\",IF(OR('Enrollment Form'!$B465<>\"Subscriber\",'Enrollment Form'!$C465=\"ROC\"),\"-\",IF(AND('Enrollment Form'!$B465=\"Subscriber\",'Enrollment Form'!$C465=\"Enroll\",'Enrollment Form'!$AJ465<>\"\"),\"Y\",\"N\")))","v":""},{"$f":"IF($B458=\"N\",\"\",IF(OR('Enrollment Form'!$B465<>\"Subscriber\",'Enrollment Form'!$C465=\"ROC\"),\"-\",IF(AND('Enrollment Form'!$B465=\"Subscriber\",'Enrollment Form'!$C465=\"Enroll\",'Enrollment Form'!$AK465<>\"\"),\"Y\",\"N\")))","v":""},{"$f":"IF($B458=\"N\",\"\",IF(OR('Enrollment Form'!$B465<>\"Subscriber\",'Enrollment Form'!$C465=\"ROC\"),\"-\",IF(AND('Enrollment Form'!$B465=\"Subscriber\",'Enrollment Form'!$C465=\"Enroll\",'Enrollment Form'!$AL465<>\"\"),\"Y\",\"N\")))","v":""},{"$f":"IF($B458=\"N\",\"\",IF(OR('Enrollment Form'!$B465<>\"Subscriber\",'Enrollment Form'!$C465=\"ROC\"),\"-\",IF(AND('Enrollment Form'!$B465=\"Subscriber\",'Enrollment Form'!$C465=\"Enroll\",'Enrollment Form'!$AM465<>\"\"),\"Y\",\"N\")))","v":""},{"$f":"IF($B458=\"N\",\"\",IF(OR('Enrollment Form'!$B465<>\"Subscriber\",'Enrollment Form'!$C465=\"ROC\"),\"-\",IF(AND('Enrollment Form'!$B465=\"Subscriber\",'Enrollment Form'!$C465=\"Enroll\",'Enrollment Form'!$AN465<>\"\"),\"Y\",\"N\")))","v":""},{"$f":"IF($B458=\"N\",\"\",IF(OR('Enrollment Form'!$B465<>\"Subscriber\",'Enrollment Form'!$C465=\"ROC\"),\"-\",IF(AND('Enrollment Form'!$B465=\"Subscriber\",'Enrollment Form'!$C465=\"Enroll\",'Enrollment Form'!$AP465<>\"\"),\"Y\",\"N\")))","v":""},{"$f":"IF($B458=\"N\",\"\",IF($Q458=\"-\",\"-\",IF(AND($Q458=\"Y\",'Enrollment Form'!$AP465=\"No\"),\"-\",IF(AND($Q458=\"Y\",'Enrollment Form'!$AP465=\"Yes\",'Enrollment Form'!$AQ465<>\"\"),\"Y\",\"N\"))))","v":""},{"$f":"IF($B458=\"N\",\"\",IF(OR('Enrollment Form'!$B465<>\"Subscriber\",'Enrollment Form'!$C465=\"ROC\"),\"-\",IF(AND('Enrollment Form'!$B465=\"Subscriber\",'Enrollment Form'!$C465=\"Enroll\",'Enrollment Form'!$CO465<>\"\"),\"Y\",\"N\")))","v":""},{"$f":"IF($B458=\"N\",\"\",IF($S458=\"-\",\"-\",IF(AND($S458=\"Y\",'Enrollment Form'!$CO465=\"No\"),\"-\",IF(AND($S458=\"Y\",'Enrollment Form'!$CO465=\"Yes\",'Enrollment Form'!$CP465<>\"\"),\"Y\",\"N\"))))","v":""},{"$f":"IF(OR('Enrollment Form'!$AV465=\"Yes\",'Enrollment Form'!$AV465=\"\"),\"-\",IF(AND('Enrollment Form'!$AV465=\"No\",ISERROR(FIND(\"HMO\",VLOOKUP('Enrollment Form'!G465,'Enrollment Form'!H$11:J$1000,3,FALSE),1))=FALSE,COUNTA('Enrollment Form'!$AW465:$AZ465)=4),\"Y\",\"N\"))","v":"-"},{"$f":"IF($B458=\"N\",\"\",IF('Enrollment Form'!$B465=\"Subscriber\",\"-\",IF(COUNTA('Enrollment Form'!$BE465,'Enrollment Form'!$BG465)=2,\"Y\",\"N\")))","v":""},{"$f":"IF($B458=\"N\",\"\",IF(OR('Enrollment Form'!$AU465=\"\",'Enrollment Form'!$AU465=\"No\"),\"-\",IF(AND('Enrollment Form'!$AU465=\"Yes\",COUNTA('Enrollment Form'!$CK465)=1),\"Y\",\"N\")))","v":""},{"$f":"IF(OR('Enrollment Form'!$CK465=\"\",'Enrollment Form'!$CK465=\"No\"),\"-\",IF(COUNTA('Enrollment Form'!$CM465:$CN465)=2,\"Y\",\"N\"))","v":"-"},{"$f":"IF($B458=\"N\",\"\",IF(COUNTIF('Enrollment Form'!$CZ465:$DO465,\"Other\")=COUNTA('Enrollment Form'!$DF465,'Enrollment Form'!$DA465,'Enrollment Form'!$DK465,'Enrollment Form'!$DP465),\"Y\",\"N\"))","v":""},{"$f":"IF($B458=\"N\",\"\",IF(OR('Enrollment Form'!B465<>\"Subscriber\",'Enrollment Form'!C465=\"ROC\",COUNTIF('Enrollment Form'!AS465:AT465,\"Yes\")>=1),\"-\",IF(AND('Enrollment Form'!C465=\"Enroll\",COUNTIF('Enrollment Form'!AS465:AT465,\"No\")=2,'Enrollment Form'!AU465=\"\"),\"N\",\"Y\")))","v":""},{"$f":"IF(OR(B458=\"N\",'Enrollment Form'!B465<>\"Subscriber\",'Enrollment Form'!C465=\"ROC\",'Enrollment Form'!O465<>\"Multiple of Salary\"),\"-\",IF(COUNTA('Enrollment Form'!T465:U465)<2,\"N\",\"Y\"))","v":"-"},{"$f":"IF(B458=\"N\",\"\",IF(OR('Enrollment Form'!C465=\"ROC\",'Enrollment Form'!B465<>\"Subscriber\",'Enrollment Form'!O465=\"Waive\",'Enrollment Form'!O465=\"\"),\"-\",IF('Enrollment Form'!P465=\"\",\"N\",\"Y\")))","v":""},{"$f":"IF($B458=\"N\",\"\",IF(AND('Enrollment Form'!$C465=\"ROC\",'Enrollment Form'!$DS465<>\"\"),\"Y\",IF(AND('Enrollment Form'!$C465=\"ROC\",'Enrollment Form'!$DS465=\"\"),\"N\",IF(AND('Enrollment Form'!$C465=\"Enroll\",'Enrollment Form'!$B465=\"Subscriber\",'Enrollment Form'!$CQ465=\"No\",'Enrollment Form'!$DS465=\"\"),\"N\",IF(AND('Enrollment Form'!$C465=\"Enroll\",'Enrollment Form'!$B465=\"Subscriber\",'Enrollment Form'!$CQ465=\"Yes\"),\"-\",\"Y\")))))","v":""},{"$f":"IF($B458=\"N\",\"\",IF(AND('Enrollment Form'!$C465=\"ROC\",'Enrollment Form'!$DT465<>\"\"),\"Y\",IF(AND('Enrollment Form'!$C465=\"ROC\",'Enrollment Form'!$DT465=\"\"),\"N\",IF(AND('Enrollment Form'!$C465=\"Enroll\",'Enrollment Form'!$B465=\"Subscriber\",'Enrollment Form'!$CQ465=\"No\",'Enrollment Form'!$DT465=\"\"),\"N\",IF(AND('Enrollment Form'!$C465=\"Enroll\",'Enrollment Form'!$B465=\"Subscriber\",'Enrollment Form'!$CQ465=\"Yes\"),\"-\",\"Y\")))))","v":""},{"$f":"IF('Enrollment Form'!AH465=\"\",\"\",IF(ISERROR(SEARCH(\".\",'Enrollment Form'!AH465,SEARCH(\"@\",'Enrollment Form'!AH465))),\"N\",\"Y\"))","v":""},{"$f":"IF(OR($B458=\"N\",'Enrollment Form'!$G465=\"\"),\"\",IF('Enrollment Form'!$B465<>\"Subscriber\",\"-\",IF(COUNTIF('Enrollment Form'!$AS465:$AT465,\"Yes\")=2,\"N\",\"Y\")))","v":""},{"$f":"IF(OR('Enrollment Form'!$CC465=\"\",'Enrollment Form'!$CC465=\"No\"),\"-\",IF(AND('Enrollment Form'!$CC465=\"Yes\",'Enrollment Form'!$CD465=\"\"),\"N\",\"Y\"))","v":"-"},{"$f":"IF(OR('Enrollment Form'!$CE465=\"\",'Enrollment Form'!$CE465=\"No\"),\"-\",IF(AND('Enrollment Form'!$CE465=\"Yes\",'Enrollment Form'!$CF465=\"\"),\"N\",\"Y\"))","v":"-"},{"$f":"IF(OR('Enrollment Form'!$CG465=\"\",'Enrollment Form'!$CG465=\"No\"),\"-\",IF(AND('Enrollment Form'!$CG465=\"Yes\",'Enrollment Form'!$CH465=\"\"),\"N\",\"Y\"))","v":"-"},{"$f":"IF(OR('Enrollment Form'!$CG465=\"\",'Enrollment Form'!$CG465=\"No\"),\"-\",IF(AND('Enrollment Form'!$CG465=\"Yes\",'Enrollment Form'!$CI465=\"\"),\"N\",\"Y\"))","v":"-"},{"$f":"IF('Enrollment Form'!B465<>\"Subscriber\",\"-\",IF(AND('Enrollment Form'!B465=\"Subscriber\",'Enrollment Form'!C465=\"Enroll\",'Enrollment Form'!AA465=\"\"),\"N\",\"Y\"))","v":"-"},{"$f":"IF(OR('Enrollment Form'!B465=\"Subscriber\",'Enrollment Form'!B465=\"\"),\"-\",IF('Enrollment Form'!BI465=\"\",\"N\",\"Y\"))","v":"-"},{"$f":"IF('Enrollment Form'!B465<>\"Subscriber\",\"-\",IF(AND('Enrollment Form'!B465=\"Subscriber\",'Enrollment Form'!G465=\"\"),\"N\",\"Y\"))","v":"-"},{"$f":"IF('Enrollment Form'!A465=\"\",\"\",IF('Enrollment Form'!B465=\"Subscriber\",\"-\",IF(AND('Enrollment Form'!B465<>\"Subscriber\",'Enrollment Form'!G465='Enrollment Form'!H465),\"N\",\"Y\")))","v":""},0]
[466,{"$f":"IF('Enrollment Form'!$A466<>\"\",\"Y\",\"N\")","v":"N"},{"$f":"IF(AND('Enrollment Form'!$B466=\"\",'Enrollment Form'!$C466<>\"\"),\"N\",IF($B459=\"N\",\"\",\"Y\"))","v":""},{"$f":"IF(OR($B459=\"N\",'Enrollment Form'!G466=\"\"),\"\",IF('Enrollment Form'!$B466<>\"Subscriber\",\"\",IF('Enrollment Form'!$G466='Enrollment Form'!$H466,\"Y\",\"N\")))","v":""},{"$f":"IF($B459=\"N\",\"\",IF(AND(COUNTIFS('Enrollment Form'!$H$11:$H$1000,'Enrollment Form'!$H466,'Enrollment Form'!$B$11:$B$1000,'Enrollment Form'!$B466)>1,'Enrollment Form'!$H466<>\"\"),\"N\",\"Y\"))","v":""},{"$f":"IF($B459=\"N\",\"\",IF(LEN('Enrollment Form'!$Y466)=0,\"\",IF(LEN('Enrollment Form'!$Y466)<>5,\"N\",\"Y\")))","v":""},{"$f":"IF($B459=\"N\",\"\",IF(LEN('Enrollment Form'!$AD466=0),\"\",IF(LEN('Enrollment Form'!$AD466)<>5,\"N\",\"Y\")))","v":""},{"$f":"IF($B459=\"N\",\"\",IF(LEN('Enrollment Form'!$BL466=0),\"\",IF(LEN('Enrollment Form'!$BL466)<>5,\"N\",\"Y\")))","v":""},{"$f":"IF($B459=\"N\",\"\",IF(LEN('Enrollment Form'!$AE466)=0,\"\",IF(LEN('Enrollment Form'!$AE466)<>10,\"N\",\"Y\")))","v":""},{"$f":"IF($B459=\"N\",\"\",IF(LEN('Enrollment Form'!$AF466)=0,\"\",IF(LEN('Enrollment Form'!$AF466)<>10,\"N\",\"Y\")))","v":""},{"$f":"IF('Enrollment Form'!$O466<>\"Graded\",\"-\",IF(AND('Enrollment Form'!$O466=\"Graded\",'Enrollment Form'!$AO466<>\"\"),\"Y\",\"N\"))","v":"-"},{"$f":"IF($B459=\"N\",\"\",IF(OR('Enrollment Form'!$B466<>\"Subscriber\",'Enrollment Form'!$C466=\"ROC\"),\"-\",IF(AND('Enrollment Form'!$B466=\"Subscriber\",'Enrollment Form'!$C466=\"Enroll\",'Enrollment Form'!$AJ466<>\"\"),\"Y\",\"N\")))","v":""},{"$f":"IF($B459=\"N\",\"\",IF(OR('Enrollment Form'!$B466<>\"Subscriber\",'Enrollment Form'!$C466=\"ROC\"),\"-\",IF(AND('Enrollment Form'!$B466=\"Subscriber\",'Enrollment Form'!$C466=\"Enroll\",'Enrollment Form'!$AK466<>\"\"),\"Y\",\"N\")))","v":""},{"$f":"IF($B459=\"N\",\"\",IF(OR('Enrollment Form'!$B466<>\"Subscriber\",'Enrollment Form'!$C466=\"ROC\"),\"-\",IF(AND('Enrollment Form'!$B466=\"Subscriber\",'Enrollment Form'!$C466=\"Enroll\",'Enrollment Form'!$AL466<>\"\"),\"Y\",\"N\")))","v":""},{"$f":"IF($B459=\"N\",\"\",IF(OR('Enrollment Form'!$B466<>\"Subscriber\",'Enrollment Form'!$C466=\"ROC\"),\"-\",IF(AND('Enrollment Form'!$B466=\"Subscriber\",'Enrollment Form'!$C466=\"Enroll\",'Enrollment Form'!$AM466<>\"\"),\"Y\",\"N\")))","v":""},{"$f":"IF($B459=\"N\",\"\",IF(OR('Enrollment Form'!$B466<>\"Subscriber\",'Enrollment Form'!$C466=\"ROC\"),\"-\",IF(AND('Enrollment Form'!$B466=\"Subscriber\",'Enrollment Form'!$C466=\"Enroll\",'Enrollment Form'!$AN466<>\"\"),\"Y\",\"N\")))","v":""},{"$f":"IF($B459=\"N\",\"\",IF(OR('Enrollment Form'!$B466<>\"Subscriber\",'Enrollment Form'!$C466=\"ROC\"),\"-\",IF(AND('Enrollment Form'!$B466=\"Subscriber\",'Enrollment Form'!$C466=\"Enroll\",'Enrollment Form'!$AP466<>\"\"),\"Y\",\"N\")))","v":""},{"$f":"IF($B459=\"N\",\"\",IF($Q459=\"-\",\"-\",IF(AND($Q459=\"Y\",'Enrollment Form'!$AP466=\"No\"),\"-\",IF(AND($Q459=\"Y\",'Enrollment Form'!$AP466=\"Yes\",'Enrollment Form'!$AQ466<>\"\"),\"Y\",\"N\"))))","v":""},{"$f":"IF($B459=\"N\",\"\",IF(OR('Enrollment Form'!$B466<>\"Subscriber\",'Enrollment Form'!$C466=\"ROC\"),\"-\",IF(AND('Enrollment Form'!$B466=\"Subscriber\",'Enrollment Form'!$C466=\"Enroll\",'Enrollment Form'!$CO466<>\"\"),\"Y\",\"N\")))","v":""},{"$f":"IF($B459=\"N\",\"\",IF($S459=\"-\",\"-\",IF(AND($S459=\"Y\",'Enrollment Form'!$CO466=\"No\"),\"-\",IF(AND($S459=\"Y\",'Enrollment Form'!$CO466=\"Yes\",'Enrollment Form'!$CP466<>\"\"),\"Y\",\"N\"))))","v":""},{"$f":"IF(OR('Enrollment Form'!$AV466=\"Yes\",'Enrollment Form'!$AV466=\"\"),\"-\",IF(AND('Enrollment Form'!$AV466=\"No\",ISERROR(FIND(\"HMO\",VLOOKUP('Enrollment Form'!G466,'Enrollment Form'!H$11:J$1000,3,FALSE),1))=FALSE,COUNTA('Enrollment Form'!$AW466:$AZ466)=4),\"Y\",\"N\"))","v":"-"},{"$f":"IF($B459=\"N\",\"\",IF('Enrollment Form'!$B466=\"Subscriber\",\"-\",IF(COUNTA('Enrollment Form'!$BE466,'Enrollment Form'!$BG466)=2,\"Y\",\"N\")))","v":""},{"$f":"IF($B459=\"N\",\"\",IF(OR('Enrollment Form'!$AU466=\"\",'Enrollment Form'!$AU466=\"No\"),\"-\",IF(AND('Enrollment Form'!$AU466=\"Yes\",COUNTA('Enrollment Form'!$CK466)=1),\"Y\",\"N\")))","v":""},{"$f":"IF(OR('Enrollment Form'!$CK466=\"\",'Enrollment Form'!$CK466=\"No\"),\"-\",IF(COUNTA('Enrollment Form'!$CM466:$CN466)=2,\"Y\",\"N\"))","v":"-"},{"$f":"IF($B459=\"N\",\"\",IF(COUNTIF('Enrollment Form'!$CZ466:$DO466,\"Other\")=COUNTA('Enrollment Form'!$DF466,'Enrollment Form'!$DA466,'Enrollment Form'!$DK466,'Enrollment Form'!$DP466),\"Y\",\"N\"))","v":""},{"$f":"IF($B459=\"N\",\"\",IF(OR('Enrollment Form'!B466<>\"Subscriber\",'Enrollment Form'!C466=\"ROC\",COUNTIF('Enrollment Form'!AS466:AT466,\"Yes\")>=1),\"-\",IF(AND('Enrollment Form'!C466=\"Enroll\",COUNTIF('Enrollment Form'!AS466:AT466,\"No\")=2,'Enrollment Form'!AU466=\"\"),\"N\",\"Y\")))","v":""},{"$f":"IF(OR(B459=\"N\",'Enrollment Form'!B466<>\"Subscriber\",'Enrollment Form'!C466=\"ROC\",'Enrollment Form'!O466<>\"Multiple of Salary\"),\"-\",IF(COUNTA('Enrollment Form'!T466:U466)<2,\"N\",\"Y\"))","v":"-"},{"$f":"IF(B459=\"N\",\"\",IF(OR('Enrollment Form'!C466=\"ROC\",'Enrollment Form'!B466<>\"Subscriber\",'Enrollment Form'!O466=\"Waive\",'Enrollment Form'!O466=\"\"),\"-\",IF('Enrollment Form'!P466=\"\",\"N\",\"Y\")))","v":""},{"$f":"IF($B459=\"N\",\"\",IF(AND('Enrollment Form'!$C466=\"ROC\",'Enrollment Form'!$DS466<>\"\"),\"Y\",IF(AND('Enrollment Form'!$C466=\"ROC\",'Enrollment Form'!$DS466=\"\"),\"N\",IF(AND('Enrollment Form'!$C466=\"Enroll\",'Enrollment Form'!$B466=\"Subscriber\",'Enrollment Form'!$CQ466=\"No\",'Enrollment Form'!$DS466=\"\"),\"N\",IF(AND('Enrollment Form'!$C466=\"Enroll\",'Enrollment Form'!$B466=\"Subscriber\",'Enrollment Form'!$CQ466=\"Yes\"),\"-\",\"Y\")))))","v":""},{"$f":"IF($B459=\"N\",\"\",IF(AND('Enrollment Form'!$C466=\"ROC\",'Enrollment Form'!$DT466<>\"\"),\"Y\",IF(AND('Enrollment Form'!$C466=\"ROC\",'Enrollment Form'!$DT466=\"\"),\"N\",IF(AND('Enrollment Form'!$C466=\"Enroll\",'Enrollment Form'!$B466=\"Subscriber\",'Enrollment Form'!$CQ466=\"No\",'Enrollment Form'!$DT466=\"\"),\"N\",IF(AND('Enrollment Form'!$C466=\"Enroll\",'Enrollment Form'!$B466=\"Subscriber\",'Enrollment Form'!$CQ466=\"Yes\"),\"-\",\"Y\")))))","v":""},{"$f":"IF('Enrollment Form'!AH466=\"\",\"\",IF(ISERROR(SEARCH(\".\",'Enrollment Form'!AH466,SEARCH(\"@\",'Enrollment Form'!AH466))),\"N\",\"Y\"))","v":""},{"$f":"IF(OR($B459=\"N\",'Enrollment Form'!$G466=\"\"),\"\",IF('Enrollment Form'!$B466<>\"Subscriber\",\"-\",IF(COUNTIF('Enrollment Form'!$AS466:$AT466,\"Yes\")=2,\"N\",\"Y\")))","v":""},{"$f":"IF(OR('Enrollment Form'!$CC466=\"\",'Enrollment Form'!$CC466=\"No\"),\"-\",IF(AND('Enrollment Form'!$CC466=\"Yes\",'Enrollment Form'!$CD466=\"\"),\"N\",\"Y\"))","v":"-"},{"$f":"IF(OR('Enrollment Form'!$CE466=\"\",'Enrollment Form'!$CE466=\"No\"),\"-\",IF(AND('Enrollment Form'!$CE466=\"Yes\",'Enrollment Form'!$CF466=\"\"),\"N\",\"Y\"))","v":"-"},{"$f":"IF(OR('Enrollment Form'!$CG466=\"\",'Enrollment Form'!$CG466=\"No\"),\"-\",IF(AND('Enrollment Form'!$CG466=\"Yes\",'Enrollment Form'!$CH466=\"\"),\"N\",\"Y\"))","v":"-"},{"$f":"IF(OR('Enrollment Form'!$CG466=\"\",'Enrollment Form'!$CG466=\"No\"),\"-\",IF(AND('Enrollment Form'!$CG466=\"Yes\",'Enrollment Form'!$CI466=\"\"),\"N\",\"Y\"))","v":"-"},{"$f":"IF('Enrollment Form'!B466<>\"Subscriber\",\"-\",IF(AND('Enrollment Form'!B466=\"Subscriber\",'Enrollment Form'!C466=\"Enroll\",'Enrollment Form'!AA466=\"\"),\"N\",\"Y\"))","v":"-"},{"$f":"IF(OR('Enrollment Form'!B466=\"Subscriber\",'Enrollment Form'!B466=\"\"),\"-\",IF('Enrollment Form'!BI466=\"\",\"N\",\"Y\"))","v":"-"},{"$f":"IF('Enrollment Form'!B466<>\"Subscriber\",\"-\",IF(AND('Enrollment Form'!B466=\"Subscriber\",'Enrollment Form'!G466=\"\"),\"N\",\"Y\"))","v":"-"},{"$f":"IF('Enrollment Form'!A466=\"\",\"\",IF('Enrollment Form'!B466=\"Subscriber\",\"-\",IF(AND('Enrollment Form'!B466<>\"Subscriber\",'Enrollment Form'!G466='Enrollment Form'!H466),\"N\",\"Y\")))","v":""},0]
[467,{"$f":"IF('Enrollment Form'!$A467<>\"\",\"Y\",\"N\")","v":"N"},{"$f":"IF(AND('Enrollment Form'!$B467=\"\",'Enrollment Form'!$C467<>\"\"),\"N\",IF($B460=\"N\",\"\",\"Y\"))","v":""},{"$f":"IF(OR($B460=\"N\",'Enrollment Form'!G467=\"\"),\"\",IF('Enrollment Form'!$B467<>\"Subscriber\",\"\",IF('Enrollment Form'!$G467='Enrollment Form'!$H467,\"Y\",\"N\")))","v":""},{"$f":"IF($B460=\"N\",\"\",IF(AND(COUNTIFS('Enrollment Form'!$H$11:$H$1000,'Enrollment Form'!$H467,'Enrollment Form'!$B$11:$B$1000,'Enrollment Form'!$B467)>1,'Enrollment Form'!$H467<>\"\"),\"N\",\"Y\"))","v":""},{"$f":"IF($B460=\"N\",\"\",IF(LEN('Enrollment Form'!$Y467)=0,\"\",IF(LEN('Enrollment Form'!$Y467)<>5,\"N\",\"Y\")))","v":""},{"$f":"IF($B460=\"N\",\"\",IF(LEN('Enrollment Form'!$AD467=0),\"\",IF(LEN('Enrollment Form'!$AD467)<>5,\"N\",\"Y\")))","v":""},{"$f":"IF($B460=\"N\",\"\",IF(LEN('Enrollment Form'!$BL467=0),\"\",IF(LEN('Enrollment Form'!$BL467)<>5,\"N\",\"Y\")))","v":""},{"$f":"IF($B460=\"N\",\"\",IF(LEN('Enrollment Form'!$AE467)=0,\"\",IF(LEN('Enrollment Form'!$AE467)<>10,\"N\",\"Y\")))","v":""},{"$f":"IF($B460=\"N\",\"\",IF(LEN('Enrollment Form'!$AF467)=0,\"\",IF(LEN('Enrollment Form'!$AF467)<>10,\"N\",\"Y\")))","v":""},{"$f":"IF('Enrollment Form'!$O467<>\"Graded\",\"-\",IF(AND('Enrollment Form'!$O467=\"Graded\",'Enrollment Form'!$AO467<>\"\"),\"Y\",\"N\"))","v":"-"},{"$f":"IF($B460=\"N\",\"\",IF(OR('Enrollment Form'!$B467<>\"Subscriber\",'Enrollment Form'!$C467=\"ROC\"),\"-\",IF(AND('Enrollment Form'!$B467=\"Subscriber\",'Enrollment Form'!$C467=\"Enroll\",'Enrollment Form'!$AJ467<>\"\"),\"Y\",\"N\")))","v":""},{"$f":"IF($B460=\"N\",\"\",IF(OR('Enrollment Form'!$B467<>\"Subscriber\",'Enrollment Form'!$C467=\"ROC\"),\"-\",IF(AND('Enrollment Form'!$B467=\"Subscriber\",'Enrollment Form'!$C467=\"Enroll\",'Enrollment Form'!$AK467<>\"\"),\"Y\",\"N\")))","v":""},{"$f":"IF($B460=\"N\",\"\",IF(OR('Enrollment Form'!$B467<>\"Subscriber\",'Enrollment Form'!$C467=\"ROC\"),\"-\",IF(AND('Enrollment Form'!$B467=\"Subscriber\",'Enrollment Form'!$C467=\"Enroll\",'Enrollment Form'!$AL467<>\"\"),\"Y\",\"N\")))","v":""},{"$f":"IF($B460=\"N\",\"\",IF(OR('Enrollment Form'!$B467<>\"Subscriber\",'Enrollment Form'!$C467=\"ROC\"),\"-\",IF(AND('Enrollment Form'!$B467=\"Subscriber\",'Enrollment Form'!$C467=\"Enroll\",'Enrollment Form'!$AM467<>\"\"),\"Y\",\"N\")))","v":""},{"$f":"IF($B460=\"N\",\"\",IF(OR('Enrollment Form'!$B467<>\"Subscriber\",'Enrollment Form'!$C467=\"ROC\"),\"-\",IF(AND('Enrollment Form'!$B467=\"Subscriber\",'Enrollment Form'!$C467=\"Enroll\",'Enrollment Form'!$AN467<>\"\"),\"Y\",\"N\")))","v":""},{"$f":"IF($B460=\"N\",\"\",IF(OR('Enrollment Form'!$B467<>\"Subscriber\",'Enrollment Form'!$C467=\"ROC\"),\"-\",IF(AND('Enrollment Form'!$B467=\"Subscriber\",'Enrollment Form'!$C467=\"Enroll\",'Enrollment Form'!$AP467<>\"\"),\"Y\",\"N\")))","v":""},{"$f":"IF($B460=\"N\",\"\",IF($Q460=\"-\",\"-\",IF(AND($Q460=\"Y\",'Enrollment Form'!$AP467=\"No\"),\"-\",IF(AND($Q460=\"Y\",'Enrollment Form'!$AP467=\"Yes\",'Enrollment Form'!$AQ467<>\"\"),\"Y\",\"N\"))))","v":""},{"$f":"IF($B460=\"N\",\"\",IF(OR('Enrollment Form'!$B467<>\"Subscriber\",'Enrollment Form'!$C467=\"ROC\"),\"-\",IF(AND('Enrollment Form'!$B467=\"Subscriber\",'Enrollment Form'!$C467=\"Enroll\",'Enrollment Form'!$CO467<>\"\"),\"Y\",\"N\")))","v":""},{"$f":"IF($B460=\"N\",\"\",IF($S460=\"-\",\"-\",IF(AND($S460=\"Y\",'Enrollment Form'!$CO467=\"No\"),\"-\",IF(AND($S460=\"Y\",'Enrollment Form'!$CO467=\"Yes\",'Enrollment Form'!$CP467<>\"\"),\"Y\",\"N\"))))","v":""},{"$f":"IF(OR('Enrollment Form'!$AV467=\"Yes\",'Enrollment Form'!$AV467=\"\"),\"-\",IF(AND('Enrollment Form'!$AV467=\"No\",ISERROR(FIND(\"HMO\",VLOOKUP('Enrollment Form'!G467,'Enrollment Form'!H$11:J$1000,3,FALSE),1))=FALSE,COUNTA('Enrollment Form'!$AW467:$AZ467)=4),\"Y\",\"N\"))","v":"-"},{"$f":"IF($B460=\"N\",\"\",IF('Enrollment Form'!$B467=\"Subscriber\",\"-\",IF(COUNTA('Enrollment Form'!$BE467,'Enrollment Form'!$BG467)=2,\"Y\",\"N\")))","v":""},{"$f":"IF($B460=\"N\",\"\",IF(OR('Enrollment Form'!$AU467=\"\",'Enrollment Form'!$AU467=\"No\"),\"-\",IF(AND('Enrollment Form'!$AU467=\"Yes\",COUNTA('Enrollment Form'!$CK467)=1),\"Y\",\"N\")))","v":""},{"$f":"IF(OR('Enrollment Form'!$CK467=\"\",'Enrollment Form'!$CK467=\"No\"),\"-\",IF(COUNTA('Enrollment Form'!$CM467:$CN467)=2,\"Y\",\"N\"))","v":"-"},{"$f":"IF($B460=\"N\",\"\",IF(COUNTIF('Enrollment Form'!$CZ467:$DO467,\"Other\")=COUNTA('Enrollment Form'!$DF467,'Enrollment Form'!$DA467,'Enrollment Form'!$DK467,'Enrollment Form'!$DP467),\"Y\",\"N\"))","v":""},{"$f":"IF($B460=\"N\",\"\",IF(OR('Enrollment Form'!B467<>\"Subscriber\",'Enrollment Form'!C467=\"ROC\",COUNTIF('Enrollment Form'!AS467:AT467,\"Yes\")>=1),\"-\",IF(AND('Enrollment Form'!C467=\"Enroll\",COUNTIF('Enrollment Form'!AS467:AT467,\"No\")=2,'Enrollment Form'!AU467=\"\"),\"N\",\"Y\")))","v":""},{"$f":"IF(OR(B460=\"N\",'Enrollment Form'!B467<>\"Subscriber\",'Enrollment Form'!C467=\"ROC\",'Enrollment Form'!O467<>\"Multiple of Salary\"),\"-\",IF(COUNTA('Enrollment Form'!T467:U467)<2,\"N\",\"Y\"))","v":"-"},{"$f":"IF(B460=\"N\",\"\",IF(OR('Enrollment Form'!C467=\"ROC\",'Enrollment Form'!B467<>\"Subscriber\",'Enrollment Form'!O467=\"Waive\",'Enrollment Form'!O467=\"\"),\"-\",IF('Enrollment Form'!P467=\"\",\"N\",\"Y\")))","v":""},{"$f":"IF($B460=\"N\",\"\",IF(AND('Enrollment Form'!$C467=\"ROC\",'Enrollment Form'!$DS467<>\"\"),\"Y\",IF(AND('Enrollment Form'!$C467=\"ROC\",'Enrollment Form'!$DS467=\"\"),\"N\",IF(AND('Enrollment Form'!$C467=\"Enroll\",'Enrollment Form'!$B467=\"Subscriber\",'Enrollment Form'!$CQ467=\"No\",'Enrollment Form'!$DS467=\"\"),\"N\",IF(AND('Enrollment Form'!$C467=\"Enroll\",'Enrollment Form'!$B467=\"Subscriber\",'Enrollment Form'!$CQ467=\"Yes\"),\"-\",\"Y\")))))","v":""},{"$f":"IF($B460=\"N\",\"\",IF(AND('Enrollment Form'!$C467=\"ROC\",'Enrollment Form'!$DT467<>\"\"),\"Y\",IF(AND('Enrollment Form'!$C467=\"ROC\",'Enrollment Form'!$DT467=\"\"),\"N\",IF(AND('Enrollment Form'!$C467=\"Enroll\",'Enrollment Form'!$B467=\"Subscriber\",'Enrollment Form'!$CQ467=\"No\",'Enrollment Form'!$DT467=\"\"),\"N\",IF(AND('Enrollment Form'!$C467=\"Enroll\",'Enrollment Form'!$B467=\"Subscriber\",'Enrollment Form'!$CQ467=\"Yes\"),\"-\",\"Y\")))))","v":""},{"$f":"IF('Enrollment Form'!AH467=\"\",\"\",IF(ISERROR(SEARCH(\".\",'Enrollment Form'!AH467,SEARCH(\"@\",'Enrollment Form'!AH467))),\"N\",\"Y\"))","v":""},{"$f":"IF(OR($B460=\"N\",'Enrollment Form'!$G467=\"\"),\"\",IF('Enrollment Form'!$B467<>\"Subscriber\",\"-\",IF(COUNTIF('Enrollment Form'!$AS467:$AT467,\"Yes\")=2,\"N\",\"Y\")))","v":""},{"$f":"IF(OR('Enrollment Form'!$CC467=\"\",'Enrollment Form'!$CC467=\"No\"),\"-\",IF(AND('Enrollment Form'!$CC467=\"Yes\",'Enrollment Form'!$CD467=\"\"),\"N\",\"Y\"))","v":"-"},{"$f":"IF(OR('Enrollment Form'!$CE467=\"\",'Enrollment Form'!$CE467=\"No\"),\"-\",IF(AND('Enrollment Form'!$CE467=\"Yes\",'Enrollment Form'!$CF467=\"\"),\"N\",\"Y\"))","v":"-"},{"$f":"IF(OR('Enrollment Form'!$CG467=\"\",'Enrollment Form'!$CG467=\"No\"),\"-\",IF(AND('Enrollment Form'!$CG467=\"Yes\",'Enrollment Form'!$CH467=\"\"),\"N\",\"Y\"))","v":"-"},{"$f":"IF(OR('Enrollment Form'!$CG467=\"\",'Enrollment Form'!$CG467=\"No\"),\"-\",IF(AND('Enrollment Form'!$CG467=\"Yes\",'Enrollment Form'!$CI467=\"\"),\"N\",\"Y\"))","v":"-"},{"$f":"IF('Enrollment Form'!B467<>\"Subscriber\",\"-\",IF(AND('Enrollment Form'!B467=\"Subscriber\",'Enrollment Form'!C467=\"Enroll\",'Enrollment Form'!AA467=\"\"),\"N\",\"Y\"))","v":"-"},{"$f":"IF(OR('Enrollment Form'!B467=\"Subscriber\",'Enrollment Form'!B467=\"\"),\"-\",IF('Enrollment Form'!BI467=\"\",\"N\",\"Y\"))","v":"-"},{"$f":"IF('Enrollment Form'!B467<>\"Subscriber\",\"-\",IF(AND('Enrollment Form'!B467=\"Subscriber\",'Enrollment Form'!G467=\"\"),\"N\",\"Y\"))","v":"-"},{"$f":"IF('Enrollment Form'!A467=\"\",\"\",IF('Enrollment Form'!B467=\"Subscriber\",\"-\",IF(AND('Enrollment Form'!B467<>\"Subscriber\",'Enrollment Form'!G467='Enrollment Form'!H467),\"N\",\"Y\")))","v":""},0]
[468,{"$f":"IF('Enrollment Form'!$A468<>\"\",\"Y\",\"N\")","v":"N"},{"$f":"IF(AND('Enrollment Form'!$B468=\"\",'Enrollment Form'!$C468<>\"\"),\"N\",IF($B461=\"N\",\"\",\"Y\"))","v":""},{"$f":"IF(OR($B461=\"N\",'Enrollment Form'!G468=\"\"),\"\",IF('Enrollment Form'!$B468<>\"Subscriber\",\"\",IF('Enrollment Form'!$G468='Enrollment Form'!$H468,\"Y\",\"N\")))","v":""},{"$f":"IF($B461=\"N\",\"\",IF(AND(COUNTIFS('Enrollment Form'!$H$11:$H$1000,'Enrollment Form'!$H468,'Enrollment Form'!$B$11:$B$1000,'Enrollment Form'!$B468)>1,'Enrollment Form'!$H468<>\"\"),\"N\",\"Y\"))","v":""},{"$f":"IF($B461=\"N\",\"\",IF(LEN('Enrollment Form'!$Y468)=0,\"\",IF(LEN('Enrollment Form'!$Y468)<>5,\"N\",\"Y\")))","v":""},{"$f":"IF($B461=\"N\",\"\",IF(LEN('Enrollment Form'!$AD468=0),\"\",IF(LEN('Enrollment Form'!$AD468)<>5,\"N\",\"Y\")))","v":""},{"$f":"IF($B461=\"N\",\"\",IF(LEN('Enrollment Form'!$BL468=0),\"\",IF(LEN('Enrollment Form'!$BL468)<>5,\"N\",\"Y\")))","v":""},{"$f":"IF($B461=\"N\",\"\",IF(LEN('Enrollment Form'!$AE468)=0,\"\",IF(LEN('Enrollment Form'!$AE468)<>10,\"N\",\"Y\")))","v":""},{"$f":"IF($B461=\"N\",\"\",IF(LEN('Enrollment Form'!$AF468)=0,\"\",IF(LEN('Enrollment Form'!$AF468)<>10,\"N\",\"Y\")))","v":""},{"$f":"IF('Enrollment Form'!$O468<>\"Graded\",\"-\",IF(AND('Enrollment Form'!$O468=\"Graded\",'Enrollment Form'!$AO468<>\"\"),\"Y\",\"N\"))","v":"-"},{"$f":"IF($B461=\"N\",\"\",IF(OR('Enrollment Form'!$B468<>\"Subscriber\",'Enrollment Form'!$C468=\"ROC\"),\"-\",IF(AND('Enrollment Form'!$B468=\"Subscriber\",'Enrollment Form'!$C468=\"Enroll\",'Enrollment Form'!$AJ468<>\"\"),\"Y\",\"N\")))","v":""},{"$f":"IF($B461=\"N\",\"\",IF(OR('Enrollment Form'!$B468<>\"Subscriber\",'Enrollment Form'!$C468=\"ROC\"),\"-\",IF(AND('Enrollment Form'!$B468=\"Subscriber\",'Enrollment Form'!$C468=\"Enroll\",'Enrollment Form'!$AK468<>\"\"),\"Y\",\"N\")))","v":""},{"$f":"IF($B461=\"N\",\"\",IF(OR('Enrollment Form'!$B468<>\"Subscriber\",'Enrollment Form'!$C468=\"ROC\"),\"-\",IF(AND('Enrollment Form'!$B468=\"Subscriber\",'Enrollment Form'!$C468=\"Enroll\",'Enrollment Form'!$AL468<>\"\"),\"Y\",\"N\")))","v":""},{"$f":"IF($B461=\"N\",\"\",IF(OR('Enrollment Form'!$B468<>\"Subscriber\",'Enrollment Form'!$C468=\"ROC\"),\"-\",IF(AND('Enrollment Form'!$B468=\"Subscriber\",'Enrollment Form'!$C468=\"Enroll\",'Enrollment Form'!$AM468<>\"\"),\"Y\",\"N\")))","v":""},{"$f":"IF($B461=\"N\",\"\",IF(OR('Enrollment Form'!$B468<>\"Subscriber\",'Enrollment Form'!$C468=\"ROC\"),\"-\",IF(AND('Enrollment Form'!$B468=\"Subscriber\",'Enrollment Form'!$C468=\"Enroll\",'Enrollment Form'!$AN468<>\"\"),\"Y\",\"N\")))","v":""},{"$f":"IF($B461=\"N\",\"\",IF(OR('Enrollment Form'!$B468<>\"Subscriber\",'Enrollment Form'!$C468=\"ROC\"),\"-\",IF(AND('Enrollment Form'!$B468=\"Subscriber\",'Enrollment Form'!$C468=\"Enroll\",'Enrollment Form'!$AP468<>\"\"),\"Y\",\"N\")))","v":""},{"$f":"IF($B461=\"N\",\"\",IF($Q461=\"-\",\"-\",IF(AND($Q461=\"Y\",'Enrollment Form'!$AP468=\"No\"),\"-\",IF(AND($Q461=\"Y\",'Enrollment Form'!$AP468=\"Yes\",'Enrollment Form'!$AQ468<>\"\"),\"Y\",\"N\"))))","v":""},{"$f":"IF($B461=\"N\",\"\",IF(OR('Enrollment Form'!$B468<>\"Subscriber\",'Enrollment Form'!$C468=\"ROC\"),\"-\",IF(AND('Enrollment Form'!$B468=\"Subscriber\",'Enrollment Form'!$C468=\"Enroll\",'Enrollment Form'!$CO468<>\"\"),\"Y\",\"N\")))","v":""},{"$f":"IF($B461=\"N\",\"\",IF($S461=\"-\",\"-\",IF(AND($S461=\"Y\",'Enrollment Form'!$CO468=\"No\"),\"-\",IF(AND($S461=\"Y\",'Enrollment Form'!$CO468=\"Yes\",'Enrollment Form'!$CP468<>\"\"),\"Y\",\"N\"))))","v":""},{"$f":"IF(OR('Enrollment Form'!$AV468=\"Yes\",'Enrollment Form'!$AV468=\"\"),\"-\",IF(AND('Enrollment Form'!$AV468=\"No\",ISERROR(FIND(\"HMO\",VLOOKUP('Enrollment Form'!G468,'Enrollment Form'!H$11:J$1000,3,FALSE),1))=FALSE,COUNTA('Enrollment Form'!$AW468:$AZ468)=4),\"Y\",\"N\"))","v":"-"},{"$f":"IF($B461=\"N\",\"\",IF('Enrollment Form'!$B468=\"Subscriber\",\"-\",IF(COUNTA('Enrollment Form'!$BE468,'Enrollment Form'!$BG468)=2,\"Y\",\"N\")))","v":""},{"$f":"IF($B461=\"N\",\"\",IF(OR('Enrollment Form'!$AU468=\"\",'Enrollment Form'!$AU468=\"No\"),\"-\",IF(AND('Enrollment Form'!$AU468=\"Yes\",COUNTA('Enrollment Form'!$CK468)=1),\"Y\",\"N\")))","v":""},{"$f":"IF(OR('Enrollment Form'!$CK468=\"\",'Enrollment Form'!$CK468=\"No\"),\"-\",IF(COUNTA('Enrollment Form'!$CM468:$CN468)=2,\"Y\",\"N\"))","v":"-"},{"$f":"IF($B461=\"N\",\"\",IF(COUNTIF('Enrollment Form'!$CZ468:$DO468,\"Other\")=COUNTA('Enrollment Form'!$DF468,'Enrollment Form'!$DA468,'Enrollment Form'!$DK468,'Enrollment Form'!$DP468),\"Y\",\"N\"))","v":""},{"$f":"IF($B461=\"N\",\"\",IF(OR('Enrollment Form'!B468<>\"Subscriber\",'Enrollment Form'!C468=\"ROC\",COUNTIF('Enrollment Form'!AS468:AT468,\"Yes\")>=1),\"-\",IF(AND('Enrollment Form'!C468=\"Enroll\",COUNTIF('Enrollment Form'!AS468:AT468,\"No\")=2,'Enrollment Form'!AU468=\"\"),\"N\",\"Y\")))","v":""},{"$f":"IF(OR(B461=\"N\",'Enrollment Form'!B468<>\"Subscriber\",'Enrollment Form'!C468=\"ROC\",'Enrollment Form'!O468<>\"Multiple of Salary\"),\"-\",IF(COUNTA('Enrollment Form'!T468:U468)<2,\"N\",\"Y\"))","v":"-"},{"$f":"IF(B461=\"N\",\"\",IF(OR('Enrollment Form'!C468=\"ROC\",'Enrollment Form'!B468<>\"Subscriber\",'Enrollment Form'!O468=\"Waive\",'Enrollment Form'!O468=\"\"),\"-\",IF('Enrollment Form'!P468=\"\",\"N\",\"Y\")))","v":""},{"$f":"IF($B461=\"N\",\"\",IF(AND('Enrollment Form'!$C468=\"ROC\",'Enrollment Form'!$DS468<>\"\"),\"Y\",IF(AND('Enrollment Form'!$C468=\"ROC\",'Enrollment Form'!$DS468=\"\"),\"N\",IF(AND('Enrollment Form'!$C468=\"Enroll\",'Enrollment Form'!$B468=\"Subscriber\",'Enrollment Form'!$CQ468=\"No\",'Enrollment Form'!$DS468=\"\"),\"N\",IF(AND('Enrollment Form'!$C468=\"Enroll\",'Enrollment Form'!$B468=\"Subscriber\",'Enrollment Form'!$CQ468=\"Yes\"),\"-\",\"Y\")))))","v":""},{"$f":"IF($B461=\"N\",\"\",IF(AND('Enrollment Form'!$C468=\"ROC\",'Enrollment Form'!$DT468<>\"\"),\"Y\",IF(AND('Enrollment Form'!$C468=\"ROC\",'Enrollment Form'!$DT468=\"\"),\"N\",IF(AND('Enrollment Form'!$C468=\"Enroll\",'Enrollment Form'!$B468=\"Subscriber\",'Enrollment Form'!$CQ468=\"No\",'Enrollment Form'!$DT468=\"\"),\"N\",IF(AND('Enrollment Form'!$C468=\"Enroll\",'Enrollment Form'!$B468=\"Subscriber\",'Enrollment Form'!$CQ468=\"Yes\"),\"-\",\"Y\")))))","v":""},{"$f":"IF('Enrollment Form'!AH468=\"\",\"\",IF(ISERROR(SEARCH(\".\",'Enrollment Form'!AH468,SEARCH(\"@\",'Enrollment Form'!AH468))),\"N\",\"Y\"))","v":""},{"$f":"IF(OR($B461=\"N\",'Enrollment Form'!$G468=\"\"),\"\",IF('Enrollment Form'!$B468<>\"Subscriber\",\"-\",IF(COUNTIF('Enrollment Form'!$AS468:$AT468,\"Yes\")=2,\"N\",\"Y\")))","v":""},{"$f":"IF(OR('Enrollment Form'!$CC468=\"\",'Enrollment Form'!$CC468=\"No\"),\"-\",IF(AND('Enrollment Form'!$CC468=\"Yes\",'Enrollment Form'!$CD468=\"\"),\"N\",\"Y\"))","v":"-"},{"$f":"IF(OR('Enrollment Form'!$CE468=\"\",'Enrollment Form'!$CE468=\"No\"),\"-\",IF(AND('Enrollment Form'!$CE468=\"Yes\",'Enrollment Form'!$CF468=\"\"),\"N\",\"Y\"))","v":"-"},{"$f":"IF(OR('Enrollment Form'!$CG468=\"\",'Enrollment Form'!$CG468=\"No\"),\"-\",IF(AND('Enrollment Form'!$CG468=\"Yes\",'Enrollment Form'!$CH468=\"\"),\"N\",\"Y\"))","v":"-"},{"$f":"IF(OR('Enrollment Form'!$CG468=\"\",'Enrollment Form'!$CG468=\"No\"),\"-\",IF(AND('Enrollment Form'!$CG468=\"Yes\",'Enrollment Form'!$CI468=\"\"),\"N\",\"Y\"))","v":"-"},{"$f":"IF('Enrollment Form'!B468<>\"Subscriber\",\"-\",IF(AND('Enrollment Form'!B468=\"Subscriber\",'Enrollment Form'!C468=\"Enroll\",'Enrollment Form'!AA468=\"\"),\"N\",\"Y\"))","v":"-"},{"$f":"IF(OR('Enrollment Form'!B468=\"Subscriber\",'Enrollment Form'!B468=\"\"),\"-\",IF('Enrollment Form'!BI468=\"\",\"N\",\"Y\"))","v":"-"},{"$f":"IF('Enrollment Form'!B468<>\"Subscriber\",\"-\",IF(AND('Enrollment Form'!B468=\"Subscriber\",'Enrollment Form'!G468=\"\"),\"N\",\"Y\"))","v":"-"},{"$f":"IF('Enrollment Form'!A468=\"\",\"\",IF('Enrollment Form'!B468=\"Subscriber\",\"-\",IF(AND('Enrollment Form'!B468<>\"Subscriber\",'Enrollment Form'!G468='Enrollment Form'!H468),\"N\",\"Y\")))","v":""},0]
[469,{"$f":"IF('Enrollment Form'!$A469<>\"\",\"Y\",\"N\")","v":"N"},{"$f":"IF(AND('Enrollment Form'!$B469=\"\",'Enrollment Form'!$C469<>\"\"),\"N\",IF($B462=\"N\",\"\",\"Y\"))","v":""},{"$f":"IF(OR($B462=\"N\",'Enrollment Form'!G469=\"\"),\"\",IF('Enrollment Form'!$B469<>\"Subscriber\",\"\",IF('Enrollment Form'!$G469='Enrollment Form'!$H469,\"Y\",\"N\")))","v":""},{"$f":"IF($B462=\"N\",\"\",IF(AND(COUNTIFS('Enrollment Form'!$H$11:$H$1000,'Enrollment Form'!$H469,'Enrollment Form'!$B$11:$B$1000,'Enrollment Form'!$B469)>1,'Enrollment Form'!$H469<>\"\"),\"N\",\"Y\"))","v":""},{"$f":"IF($B462=\"N\",\"\",IF(LEN('Enrollment Form'!$Y469)=0,\"\",IF(LEN('Enrollment Form'!$Y469)<>5,\"N\",\"Y\")))","v":""},{"$f":"IF($B462=\"N\",\"\",IF(LEN('Enrollment Form'!$AD469=0),\"\",IF(LEN('Enrollment Form'!$AD469)<>5,\"N\",\"Y\")))","v":""},{"$f":"IF($B462=\"N\",\"\",IF(LEN('Enrollment Form'!$BL469=0),\"\",IF(LEN('Enrollment Form'!$BL469)<>5,\"N\",\"Y\")))","v":""},{"$f":"IF($B462=\"N\",\"\",IF(LEN('Enrollment Form'!$AE469)=0,\"\",IF(LEN('Enrollment Form'!$AE469)<>10,\"N\",\"Y\")))","v":""},{"$f":"IF($B462=\"N\",\"\",IF(LEN('Enrollment Form'!$AF469)=0,\"\",IF(LEN('Enrollment Form'!$AF469)<>10,\"N\",\"Y\")))","v":""},{"$f":"IF('Enrollment Form'!$O469<>\"Graded\",\"-\",IF(AND('Enrollment Form'!$O469=\"Graded\",'Enrollment Form'!$AO469<>\"\"),\"Y\",\"N\"))","v":"-"},{"$f":"IF($B462=\"N\",\"\",IF(OR('Enrollment Form'!$B469<>\"Subscriber\",'Enrollment Form'!$C469=\"ROC\"),\"-\",IF(AND('Enrollment Form'!$B469=\"Subscriber\",'Enrollment Form'!$C469=\"Enroll\",'Enrollment Form'!$AJ469<>\"\"),\"Y\",\"N\")))","v":""},{"$f":"IF($B462=\"N\",\"\",IF(OR('Enrollment Form'!$B469<>\"Subscriber\",'Enrollment Form'!$C469=\"ROC\"),\"-\",IF(AND('Enrollment Form'!$B469=\"Subscriber\",'Enrollment Form'!$C469=\"Enroll\",'Enrollment Form'!$AK469<>\"\"),\"Y\",\"N\")))","v":""},{"$f":"IF($B462=\"N\",\"\",IF(OR('Enrollment Form'!$B469<>\"Subscriber\",'Enrollment Form'!$C469=\"ROC\"),\"-\",IF(AND('Enrollment Form'!$B469=\"Subscriber\",'Enrollment Form'!$C469=\"Enroll\",'Enrollment Form'!$AL469<>\"\"),\"Y\",\"N\")))","v":""},{"$f":"IF($B462=\"N\",\"\",IF(OR('Enrollment Form'!$B469<>\"Subscriber\",'Enrollment Form'!$C469=\"ROC\"),\"-\",IF(AND('Enrollment Form'!$B469=\"Subscriber\",'Enrollment Form'!$C469=\"Enroll\",'Enrollment Form'!$AM469<>\"\"),\"Y\",\"N\")))","v":""},{"$f":"IF($B462=\"N\",\"\",IF(OR('Enrollment Form'!$B469<>\"Subscriber\",'Enrollment Form'!$C469=\"ROC\"),\"-\",IF(AND('Enrollment Form'!$B469=\"Subscriber\",'Enrollment Form'!$C469=\"Enroll\",'Enrollment Form'!$AN469<>\"\"),\"Y\",\"N\")))","v":""},{"$f":"IF($B462=\"N\",\"\",IF(OR('Enrollment Form'!$B469<>\"Subscriber\",'Enrollment Form'!$C469=\"ROC\"),\"-\",IF(AND('Enrollment Form'!$B469=\"Subscriber\",'Enrollment Form'!$C469=\"Enroll\",'Enrollment Form'!$AP469<>\"\"),\"Y\",\"N\")))","v":""},{"$f":"IF($B462=\"N\",\"\",IF($Q462=\"-\",\"-\",IF(AND($Q462=\"Y\",'Enrollment Form'!$AP469=\"No\"),\"-\",IF(AND($Q462=\"Y\",'Enrollment Form'!$AP469=\"Yes\",'Enrollment Form'!$AQ469<>\"\"),\"Y\",\"N\"))))","v":""},{"$f":"IF($B462=\"N\",\"\",IF(OR('Enrollment Form'!$B469<>\"Subscriber\",'Enrollment Form'!$C469=\"ROC\"),\"-\",IF(AND('Enrollment Form'!$B469=\"Subscriber\",'Enrollment Form'!$C469=\"Enroll\",'Enrollment Form'!$CO469<>\"\"),\"Y\",\"N\")))","v":""},{"$f":"IF($B462=\"N\",\"\",IF($S462=\"-\",\"-\",IF(AND($S462=\"Y\",'Enrollment Form'!$CO469=\"No\"),\"-\",IF(AND($S462=\"Y\",'Enrollment Form'!$CO469=\"Yes\",'Enrollment Form'!$CP469<>\"\"),\"Y\",\"N\"))))","v":""},{"$f":"IF(OR('Enrollment Form'!$AV469=\"Yes\",'Enrollment Form'!$AV469=\"\"),\"-\",IF(AND('Enrollment Form'!$AV469=\"No\",ISERROR(FIND(\"HMO\",VLOOKUP('Enrollment Form'!G469,'Enrollment Form'!H$11:J$1000,3,FALSE),1))=FALSE,COUNTA('Enrollment Form'!$AW469:$AZ469)=4),\"Y\",\"N\"))","v":"-"},{"$f":"IF($B462=\"N\",\"\",IF('Enrollment Form'!$B469=\"Subscriber\",\"-\",IF(COUNTA('Enrollment Form'!$BE469,'Enrollment Form'!$BG469)=2,\"Y\",\"N\")))","v":""},{"$f":"IF($B462=\"N\",\"\",IF(OR('Enrollment Form'!$AU469=\"\",'Enrollment Form'!$AU469=\"No\"),\"-\",IF(AND('Enrollment Form'!$AU469=\"Yes\",COUNTA('Enrollment Form'!$CK469)=1),\"Y\",\"N\")))","v":""},{"$f":"IF(OR('Enrollment Form'!$CK469=\"\",'Enrollment Form'!$CK469=\"No\"),\"-\",IF(COUNTA('Enrollment Form'!$CM469:$CN469)=2,\"Y\",\"N\"))","v":"-"},{"$f":"IF($B462=\"N\",\"\",IF(COUNTIF('Enrollment Form'!$CZ469:$DO469,\"Other\")=COUNTA('Enrollment Form'!$DF469,'Enrollment Form'!$DA469,'Enrollment Form'!$DK469,'Enrollment Form'!$DP469),\"Y\",\"N\"))","v":""},{"$f":"IF($B462=\"N\",\"\",IF(OR('Enrollment Form'!B469<>\"Subscriber\",'Enrollment Form'!C469=\"ROC\",COUNTIF('Enrollment Form'!AS469:AT469,\"Yes\")>=1),\"-\",IF(AND('Enrollment Form'!C469=\"Enroll\",COUNTIF('Enrollment Form'!AS469:AT469,\"No\")=2,'Enrollment Form'!AU469=\"\"),\"N\",\"Y\")))","v":""},{"$f":"IF(OR(B462=\"N\",'Enrollment Form'!B469<>\"Subscriber\",'Enrollment Form'!C469=\"ROC\",'Enrollment Form'!O469<>\"Multiple of Salary\"),\"-\",IF(COUNTA('Enrollment Form'!T469:U469)<2,\"N\",\"Y\"))","v":"-"},{"$f":"IF(B462=\"N\",\"\",IF(OR('Enrollment Form'!C469=\"ROC\",'Enrollment Form'!B469<>\"Subscriber\",'Enrollment Form'!O469=\"Waive\",'Enrollment Form'!O469=\"\"),\"-\",IF('Enrollment Form'!P469=\"\",\"N\",\"Y\")))","v":""},{"$f":"IF($B462=\"N\",\"\",IF(AND('Enrollment Form'!$C469=\"ROC\",'Enrollment Form'!$DS469<>\"\"),\"Y\",IF(AND('Enrollment Form'!$C469=\"ROC\",'Enrollment Form'!$DS469=\"\"),\"N\",IF(AND('Enrollment Form'!$C469=\"Enroll\",'Enrollment Form'!$B469=\"Subscriber\",'Enrollment Form'!$CQ469=\"No\",'Enrollment Form'!$DS469=\"\"),\"N\",IF(AND('Enrollment Form'!$C469=\"Enroll\",'Enrollment Form'!$B469=\"Subscriber\",'Enrollment Form'!$CQ469=\"Yes\"),\"-\",\"Y\")))))","v":""},{"$f":"IF($B462=\"N\",\"\",IF(AND('Enrollment Form'!$C469=\"ROC\",'Enrollment Form'!$DT469<>\"\"),\"Y\",IF(AND('Enrollment Form'!$C469=\"ROC\",'Enrollment Form'!$DT469=\"\"),\"N\",IF(AND('Enrollment Form'!$C469=\"Enroll\",'Enrollment Form'!$B469=\"Subscriber\",'Enrollment Form'!$CQ469=\"No\",'Enrollment Form'!$DT469=\"\"),\"N\",IF(AND('Enrollment Form'!$C469=\"Enroll\",'Enrollment Form'!$B469=\"Subscriber\",'Enrollment Form'!$CQ469=\"Yes\"),\"-\",\"Y\")))))","v":""},{"$f":"IF('Enrollment Form'!AH469=\"\",\"\",IF(ISERROR(SEARCH(\".\",'Enrollment Form'!AH469,SEARCH(\"@\",'Enrollment Form'!AH469))),\"N\",\"Y\"))","v":""},{"$f":"IF(OR($B462=\"N\",'Enrollment Form'!$G469=\"\"),\"\",IF('Enrollment Form'!$B469<>\"Subscriber\",\"-\",IF(COUNTIF('Enrollment Form'!$AS469:$AT469,\"Yes\")=2,\"N\",\"Y\")))","v":""},{"$f":"IF(OR('Enrollment Form'!$CC469=\"\",'Enrollment Form'!$CC469=\"No\"),\"-\",IF(AND('Enrollment Form'!$CC469=\"Yes\",'Enrollment Form'!$CD469=\"\"),\"N\",\"Y\"))","v":"-"},{"$f":"IF(OR('Enrollment Form'!$CE469=\"\",'Enrollment Form'!$CE469=\"No\"),\"-\",IF(AND('Enrollment Form'!$CE469=\"Yes\",'Enrollment Form'!$CF469=\"\"),\"N\",\"Y\"))","v":"-"},{"$f":"IF(OR('Enrollment Form'!$CG469=\"\",'Enrollment Form'!$CG469=\"No\"),\"-\",IF(AND('Enrollment Form'!$CG469=\"Yes\",'Enrollment Form'!$CH469=\"\"),\"N\",\"Y\"))","v":"-"},{"$f":"IF(OR('Enrollment Form'!$CG469=\"\",'Enrollment Form'!$CG469=\"No\"),\"-\",IF(AND('Enrollment Form'!$CG469=\"Yes\",'Enrollment Form'!$CI469=\"\"),\"N\",\"Y\"))","v":"-"},{"$f":"IF('Enrollment Form'!B469<>\"Subscriber\",\"-\",IF(AND('Enrollment Form'!B469=\"Subscriber\",'Enrollment Form'!C469=\"Enroll\",'Enrollment Form'!AA469=\"\"),\"N\",\"Y\"))","v":"-"},{"$f":"IF(OR('Enrollment Form'!B469=\"Subscriber\",'Enrollment Form'!B469=\"\"),\"-\",IF('Enrollment Form'!BI469=\"\",\"N\",\"Y\"))","v":"-"},{"$f":"IF('Enrollment Form'!B469<>\"Subscriber\",\"-\",IF(AND('Enrollment Form'!B469=\"Subscriber\",'Enrollment Form'!G469=\"\"),\"N\",\"Y\"))","v":"-"},{"$f":"IF('Enrollment Form'!A469=\"\",\"\",IF('Enrollment Form'!B469=\"Subscriber\",\"-\",IF(AND('Enrollment Form'!B469<>\"Subscriber\",'Enrollment Form'!G469='Enrollment Form'!H469),\"N\",\"Y\")))","v":""},0]
[470,{"$f":"IF('Enrollment Form'!$A470<>\"\",\"Y\",\"N\")","v":"N"},{"$f":"IF(AND('Enrollment Form'!$B470=\"\",'Enrollment Form'!$C470<>\"\"),\"N\",IF($B463=\"N\",\"\",\"Y\"))","v":""},{"$f":"IF(OR($B463=\"N\",'Enrollment Form'!G470=\"\"),\"\",IF('Enrollment Form'!$B470<>\"Subscriber\",\"\",IF('Enrollment Form'!$G470='Enrollment Form'!$H470,\"Y\",\"N\")))","v":""},{"$f":"IF($B463=\"N\",\"\",IF(AND(COUNTIFS('Enrollment Form'!$H$11:$H$1000,'Enrollment Form'!$H470,'Enrollment Form'!$B$11:$B$1000,'Enrollment Form'!$B470)>1,'Enrollment Form'!$H470<>\"\"),\"N\",\"Y\"))","v":""},{"$f":"IF($B463=\"N\",\"\",IF(LEN('Enrollment Form'!$Y470)=0,\"\",IF(LEN('Enrollment Form'!$Y470)<>5,\"N\",\"Y\")))","v":""},{"$f":"IF($B463=\"N\",\"\",IF(LEN('Enrollment Form'!$AD470=0),\"\",IF(LEN('Enrollment Form'!$AD470)<>5,\"N\",\"Y\")))","v":""},{"$f":"IF($B463=\"N\",\"\",IF(LEN('Enrollment Form'!$BL470=0),\"\",IF(LEN('Enrollment Form'!$BL470)<>5,\"N\",\"Y\")))","v":""},{"$f":"IF($B463=\"N\",\"\",IF(LEN('Enrollment Form'!$AE470)=0,\"\",IF(LEN('Enrollment Form'!$AE470)<>10,\"N\",\"Y\")))","v":""},{"$f":"IF($B463=\"N\",\"\",IF(LEN('Enrollment Form'!$AF470)=0,\"\",IF(LEN('Enrollment Form'!$AF470)<>10,\"N\",\"Y\")))","v":""},{"$f":"IF('Enrollment Form'!$O470<>\"Graded\",\"-\",IF(AND('Enrollment Form'!$O470=\"Graded\",'Enrollment Form'!$AO470<>\"\"),\"Y\",\"N\"))","v":"-"},{"$f":"IF($B463=\"N\",\"\",IF(OR('Enrollment Form'!$B470<>\"Subscriber\",'Enrollment Form'!$C470=\"ROC\"),\"-\",IF(AND('Enrollment Form'!$B470=\"Subscriber\",'Enrollment Form'!$C470=\"Enroll\",'Enrollment Form'!$AJ470<>\"\"),\"Y\",\"N\")))","v":""},{"$f":"IF($B463=\"N\",\"\",IF(OR('Enrollment Form'!$B470<>\"Subscriber\",'Enrollment Form'!$C470=\"ROC\"),\"-\",IF(AND('Enrollment Form'!$B470=\"Subscriber\",'Enrollment Form'!$C470=\"Enroll\",'Enrollment Form'!$AK470<>\"\"),\"Y\",\"N\")))","v":""},{"$f":"IF($B463=\"N\",\"\",IF(OR('Enrollment Form'!$B470<>\"Subscriber\",'Enrollment Form'!$C470=\"ROC\"),\"-\",IF(AND('Enrollment Form'!$B470=\"Subscriber\",'Enrollment Form'!$C470=\"Enroll\",'Enrollment Form'!$AL470<>\"\"),\"Y\",\"N\")))","v":""},{"$f":"IF($B463=\"N\",\"\",IF(OR('Enrollment Form'!$B470<>\"Subscriber\",'Enrollment Form'!$C470=\"ROC\"),\"-\",IF(AND('Enrollment Form'!$B470=\"Subscriber\",'Enrollment Form'!$C470=\"Enroll\",'Enrollment Form'!$AM470<>\"\"),\"Y\",\"N\")))","v":""},{"$f":"IF($B463=\"N\",\"\",IF(OR('Enrollment Form'!$B470<>\"Subscriber\",'Enrollment Form'!$C470=\"ROC\"),\"-\",IF(AND('Enrollment Form'!$B470=\"Subscriber\",'Enrollment Form'!$C470=\"Enroll\",'Enrollment Form'!$AN470<>\"\"),\"Y\",\"N\")))","v":""},{"$f":"IF($B463=\"N\",\"\",IF(OR('Enrollment Form'!$B470<>\"Subscriber\",'Enrollment Form'!$C470=\"ROC\"),\"-\",IF(AND('Enrollment Form'!$B470=\"Subscriber\",'Enrollment Form'!$C470=\"Enroll\",'Enrollment Form'!$AP470<>\"\"),\"Y\",\"N\")))","v":""},{"$f":"IF($B463=\"N\",\"\",IF($Q463=\"-\",\"-\",IF(AND($Q463=\"Y\",'Enrollment Form'!$AP470=\"No\"),\"-\",IF(AND($Q463=\"Y\",'Enrollment Form'!$AP470=\"Yes\",'Enrollment Form'!$AQ470<>\"\"),\"Y\",\"N\"))))","v":""},{"$f":"IF($B463=\"N\",\"\",IF(OR('Enrollment Form'!$B470<>\"Subscriber\",'Enrollment Form'!$C470=\"ROC\"),\"-\",IF(AND('Enrollment Form'!$B470=\"Subscriber\",'Enrollment Form'!$C470=\"Enroll\",'Enrollment Form'!$CO470<>\"\"),\"Y\",\"N\")))","v":""},{"$f":"IF($B463=\"N\",\"\",IF($S463=\"-\",\"-\",IF(AND($S463=\"Y\",'Enrollment Form'!$CO470=\"No\"),\"-\",IF(AND($S463=\"Y\",'Enrollment Form'!$CO470=\"Yes\",'Enrollment Form'!$CP470<>\"\"),\"Y\",\"N\"))))","v":""},{"$f":"IF(OR('Enrollment Form'!$AV470=\"Yes\",'Enrollment Form'!$AV470=\"\"),\"-\",IF(AND('Enrollment Form'!$AV470=\"No\",ISERROR(FIND(\"HMO\",VLOOKUP('Enrollment Form'!G470,'Enrollment Form'!H$11:J$1000,3,FALSE),1))=FALSE,COUNTA('Enrollment Form'!$AW470:$AZ470)=4),\"Y\",\"N\"))","v":"-"},{"$f":"IF($B463=\"N\",\"\",IF('Enrollment Form'!$B470=\"Subscriber\",\"-\",IF(COUNTA('Enrollment Form'!$BE470,'Enrollment Form'!$BG470)=2,\"Y\",\"N\")))","v":""},{"$f":"IF($B463=\"N\",\"\",IF(OR('Enrollment Form'!$AU470=\"\",'Enrollment Form'!$AU470=\"No\"),\"-\",IF(AND('Enrollment Form'!$AU470=\"Yes\",COUNTA('Enrollment Form'!$CK470)=1),\"Y\",\"N\")))","v":""},{"$f":"IF(OR('Enrollment Form'!$CK470=\"\",'Enrollment Form'!$CK470=\"No\"),\"-\",IF(COUNTA('Enrollment Form'!$CM470:$CN470)=2,\"Y\",\"N\"))","v":"-"},{"$f":"IF($B463=\"N\",\"\",IF(COUNTIF('Enrollment Form'!$CZ470:$DO470,\"Other\")=COUNTA('Enrollment Form'!$DF470,'Enrollment Form'!$DA470,'Enrollment Form'!$DK470,'Enrollment Form'!$DP470),\"Y\",\"N\"))","v":""},{"$f":"IF($B463=\"N\",\"\",IF(OR('Enrollment Form'!B470<>\"Subscriber\",'Enrollment Form'!C470=\"ROC\",COUNTIF('Enrollment Form'!AS470:AT470,\"Yes\")>=1),\"-\",IF(AND('Enrollment Form'!C470=\"Enroll\",COUNTIF('Enrollment Form'!AS470:AT470,\"No\")=2,'Enrollment Form'!AU470=\"\"),\"N\",\"Y\")))","v":""},{"$f":"IF(OR(B463=\"N\",'Enrollment Form'!B470<>\"Subscriber\",'Enrollment Form'!C470=\"ROC\",'Enrollment Form'!O470<>\"Multiple of Salary\"),\"-\",IF(COUNTA('Enrollment Form'!T470:U470)<2,\"N\",\"Y\"))","v":"-"},{"$f":"IF(B463=\"N\",\"\",IF(OR('Enrollment Form'!C470=\"ROC\",'Enrollment Form'!B470<>\"Subscriber\",'Enrollment Form'!O470=\"Waive\",'Enrollment Form'!O470=\"\"),\"-\",IF('Enrollment Form'!P470=\"\",\"N\",\"Y\")))","v":""},{"$f":"IF($B463=\"N\",\"\",IF(AND('Enrollment Form'!$C470=\"ROC\",'Enrollment Form'!$DS470<>\"\"),\"Y\",IF(AND('Enrollment Form'!$C470=\"ROC\",'Enrollment Form'!$DS470=\"\"),\"N\",IF(AND('Enrollment Form'!$C470=\"Enroll\",'Enrollment Form'!$B470=\"Subscriber\",'Enrollment Form'!$CQ470=\"No\",'Enrollment Form'!$DS470=\"\"),\"N\",IF(AND('Enrollment Form'!$C470=\"Enroll\",'Enrollment Form'!$B470=\"Subscriber\",'Enrollment Form'!$CQ470=\"Yes\"),\"-\",\"Y\")))))","v":""},{"$f":"IF($B463=\"N\",\"\",IF(AND('Enrollment Form'!$C470=\"ROC\",'Enrollment Form'!$DT470<>\"\"),\"Y\",IF(AND('Enrollment Form'!$C470=\"ROC\",'Enrollment Form'!$DT470=\"\"),\"N\",IF(AND('Enrollment Form'!$C470=\"Enroll\",'Enrollment Form'!$B470=\"Subscriber\",'Enrollment Form'!$CQ470=\"No\",'Enrollment Form'!$DT470=\"\"),\"N\",IF(AND('Enrollment Form'!$C470=\"Enroll\",'Enrollment Form'!$B470=\"Subscriber\",'Enrollment Form'!$CQ470=\"Yes\"),\"-\",\"Y\")))))","v":""},{"$f":"IF('Enrollment Form'!AH470=\"\",\"\",IF(ISERROR(SEARCH(\".\",'Enrollment Form'!AH470,SEARCH(\"@\",'Enrollment Form'!AH470))),\"N\",\"Y\"))","v":""},{"$f":"IF(OR($B463=\"N\",'Enrollment Form'!$G470=\"\"),\"\",IF('Enrollment Form'!$B470<>\"Subscriber\",\"-\",IF(COUNTIF('Enrollment Form'!$AS470:$AT470,\"Yes\")=2,\"N\",\"Y\")))","v":""},{"$f":"IF(OR('Enrollment Form'!$CC470=\"\",'Enrollment Form'!$CC470=\"No\"),\"-\",IF(AND('Enrollment Form'!$CC470=\"Yes\",'Enrollment Form'!$CD470=\"\"),\"N\",\"Y\"))","v":"-"},{"$f":"IF(OR('Enrollment Form'!$CE470=\"\",'Enrollment Form'!$CE470=\"No\"),\"-\",IF(AND('Enrollment Form'!$CE470=\"Yes\",'Enrollment Form'!$CF470=\"\"),\"N\",\"Y\"))","v":"-"},{"$f":"IF(OR('Enrollment Form'!$CG470=\"\",'Enrollment Form'!$CG470=\"No\"),\"-\",IF(AND('Enrollment Form'!$CG470=\"Yes\",'Enrollment Form'!$CH470=\"\"),\"N\",\"Y\"))","v":"-"},{"$f":"IF(OR('Enrollment Form'!$CG470=\"\",'Enrollment Form'!$CG470=\"No\"),\"-\",IF(AND('Enrollment Form'!$CG470=\"Yes\",'Enrollment Form'!$CI470=\"\"),\"N\",\"Y\"))","v":"-"},{"$f":"IF('Enrollment Form'!B470<>\"Subscriber\",\"-\",IF(AND('Enrollment Form'!B470=\"Subscriber\",'Enrollment Form'!C470=\"Enroll\",'Enrollment Form'!AA470=\"\"),\"N\",\"Y\"))","v":"-"},{"$f":"IF(OR('Enrollment Form'!B470=\"Subscriber\",'Enrollment Form'!B470=\"\"),\"-\",IF('Enrollment Form'!BI470=\"\",\"N\",\"Y\"))","v":"-"},{"$f":"IF('Enrollment Form'!B470<>\"Subscriber\",\"-\",IF(AND('Enrollment Form'!B470=\"Subscriber\",'Enrollment Form'!G470=\"\"),\"N\",\"Y\"))","v":"-"},{"$f":"IF('Enrollment Form'!A470=\"\",\"\",IF('Enrollment Form'!B470=\"Subscriber\",\"-\",IF(AND('Enrollment Form'!B470<>\"Subscriber\",'Enrollment Form'!G470='Enrollment Form'!H470),\"N\",\"Y\")))","v":""},0]
[471,{"$f":"IF('Enrollment Form'!$A471<>\"\",\"Y\",\"N\")","v":"N"},{"$f":"IF(AND('Enrollment Form'!$B471=\"\",'Enrollment Form'!$C471<>\"\"),\"N\",IF($B464=\"N\",\"\",\"Y\"))","v":""},{"$f":"IF(OR($B464=\"N\",'Enrollment Form'!G471=\"\"),\"\",IF('Enrollment Form'!$B471<>\"Subscriber\",\"\",IF('Enrollment Form'!$G471='Enrollment Form'!$H471,\"Y\",\"N\")))","v":""},{"$f":"IF($B464=\"N\",\"\",IF(AND(COUNTIFS('Enrollment Form'!$H$11:$H$1000,'Enrollment Form'!$H471,'Enrollment Form'!$B$11:$B$1000,'Enrollment Form'!$B471)>1,'Enrollment Form'!$H471<>\"\"),\"N\",\"Y\"))","v":""},{"$f":"IF($B464=\"N\",\"\",IF(LEN('Enrollment Form'!$Y471)=0,\"\",IF(LEN('Enrollment Form'!$Y471)<>5,\"N\",\"Y\")))","v":""},{"$f":"IF($B464=\"N\",\"\",IF(LEN('Enrollment Form'!$AD471=0),\"\",IF(LEN('Enrollment Form'!$AD471)<>5,\"N\",\"Y\")))","v":""},{"$f":"IF($B464=\"N\",\"\",IF(LEN('Enrollment Form'!$BL471=0),\"\",IF(LEN('Enrollment Form'!$BL471)<>5,\"N\",\"Y\")))","v":""},{"$f":"IF($B464=\"N\",\"\",IF(LEN('Enrollment Form'!$AE471)=0,\"\",IF(LEN('Enrollment Form'!$AE471)<>10,\"N\",\"Y\")))","v":""},{"$f":"IF($B464=\"N\",\"\",IF(LEN('Enrollment Form'!$AF471)=0,\"\",IF(LEN('Enrollment Form'!$AF471)<>10,\"N\",\"Y\")))","v":""},{"$f":"IF('Enrollment Form'!$O471<>\"Graded\",\"-\",IF(AND('Enrollment Form'!$O471=\"Graded\",'Enrollment Form'!$AO471<>\"\"),\"Y\",\"N\"))","v":"-"},{"$f":"IF($B464=\"N\",\"\",IF(OR('Enrollment Form'!$B471<>\"Subscriber\",'Enrollment Form'!$C471=\"ROC\"),\"-\",IF(AND('Enrollment Form'!$B471=\"Subscriber\",'Enrollment Form'!$C471=\"Enroll\",'Enrollment Form'!$AJ471<>\"\"),\"Y\",\"N\")))","v":""},{"$f":"IF($B464=\"N\",\"\",IF(OR('Enrollment Form'!$B471<>\"Subscriber\",'Enrollment Form'!$C471=\"ROC\"),\"-\",IF(AND('Enrollment Form'!$B471=\"Subscriber\",'Enrollment Form'!$C471=\"Enroll\",'Enrollment Form'!$AK471<>\"\"),\"Y\",\"N\")))","v":""},{"$f":"IF($B464=\"N\",\"\",IF(OR('Enrollment Form'!$B471<>\"Subscriber\",'Enrollment Form'!$C471=\"ROC\"),\"-\",IF(AND('Enrollment Form'!$B471=\"Subscriber\",'Enrollment Form'!$C471=\"Enroll\",'Enrollment Form'!$AL471<>\"\"),\"Y\",\"N\")))","v":""},{"$f":"IF($B464=\"N\",\"\",IF(OR('Enrollment Form'!$B471<>\"Subscriber\",'Enrollment Form'!$C471=\"ROC\"),\"-\",IF(AND('Enrollment Form'!$B471=\"Subscriber\",'Enrollment Form'!$C471=\"Enroll\",'Enrollment Form'!$AM471<>\"\"),\"Y\",\"N\")))","v":""},{"$f":"IF($B464=\"N\",\"\",IF(OR('Enrollment Form'!$B471<>\"Subscriber\",'Enrollment Form'!$C471=\"ROC\"),\"-\",IF(AND('Enrollment Form'!$B471=\"Subscriber\",'Enrollment Form'!$C471=\"Enroll\",'Enrollment Form'!$AN471<>\"\"),\"Y\",\"N\")))","v":""},{"$f":"IF($B464=\"N\",\"\",IF(OR('Enrollment Form'!$B471<>\"Subscriber\",'Enrollment Form'!$C471=\"ROC\"),\"-\",IF(AND('Enrollment Form'!$B471=\"Subscriber\",'Enrollment Form'!$C471=\"Enroll\",'Enrollment Form'!$AP471<>\"\"),\"Y\",\"N\")))","v":""},{"$f":"IF($B464=\"N\",\"\",IF($Q464=\"-\",\"-\",IF(AND($Q464=\"Y\",'Enrollment Form'!$AP471=\"No\"),\"-\",IF(AND($Q464=\"Y\",'Enrollment Form'!$AP471=\"Yes\",'Enrollment Form'!$AQ471<>\"\"),\"Y\",\"N\"))))","v":""},{"$f":"IF($B464=\"N\",\"\",IF(OR('Enrollment Form'!$B471<>\"Subscriber\",'Enrollment Form'!$C471=\"ROC\"),\"-\",IF(AND('Enrollment Form'!$B471=\"Subscriber\",'Enrollment Form'!$C471=\"Enroll\",'Enrollment Form'!$CO471<>\"\"),\"Y\",\"N\")))","v":""},{"$f":"IF($B464=\"N\",\"\",IF($S464=\"-\",\"-\",IF(AND($S464=\"Y\",'Enrollment Form'!$CO471=\"No\"),\"-\",IF(AND($S464=\"Y\",'Enrollment Form'!$CO471=\"Yes\",'Enrollment Form'!$CP471<>\"\"),\"Y\",\"N\"))))","v":""},{"$f":"IF(OR('Enrollment Form'!$AV471=\"Yes\",'Enrollment Form'!$AV471=\"\"),\"-\",IF(AND('Enrollment Form'!$AV471=\"No\",ISERROR(FIND(\"HMO\",VLOOKUP('Enrollment Form'!G471,'Enrollment Form'!H$11:J$1000,3,FALSE),1))=FALSE,COUNTA('Enrollment Form'!$AW471:$AZ471)=4),\"Y\",\"N\"))","v":"-"},{"$f":"IF($B464=\"N\",\"\",IF('Enrollment Form'!$B471=\"Subscriber\",\"-\",IF(COUNTA('Enrollment Form'!$BE471,'Enrollment Form'!$BG471)=2,\"Y\",\"N\")))","v":""},{"$f":"IF($B464=\"N\",\"\",IF(OR('Enrollment Form'!$AU471=\"\",'Enrollment Form'!$AU471=\"No\"),\"-\",IF(AND('Enrollment Form'!$AU471=\"Yes\",COUNTA('Enrollment Form'!$CK471)=1),\"Y\",\"N\")))","v":""},{"$f":"IF(OR('Enrollment Form'!$CK471=\"\",'Enrollment Form'!$CK471=\"No\"),\"-\",IF(COUNTA('Enrollment Form'!$CM471:$CN471)=2,\"Y\",\"N\"))","v":"-"},{"$f":"IF($B464=\"N\",\"\",IF(COUNTIF('Enrollment Form'!$CZ471:$DO471,\"Other\")=COUNTA('Enrollment Form'!$DF471,'Enrollment Form'!$DA471,'Enrollment Form'!$DK471,'Enrollment Form'!$DP471),\"Y\",\"N\"))","v":""},{"$f":"IF($B464=\"N\",\"\",IF(OR('Enrollment Form'!B471<>\"Subscriber\",'Enrollment Form'!C471=\"ROC\",COUNTIF('Enrollment Form'!AS471:AT471,\"Yes\")>=1),\"-\",IF(AND('Enrollment Form'!C471=\"Enroll\",COUNTIF('Enrollment Form'!AS471:AT471,\"No\")=2,'Enrollment Form'!AU471=\"\"),\"N\",\"Y\")))","v":""},{"$f":"IF(OR(B464=\"N\",'Enrollment Form'!B471<>\"Subscriber\",'Enrollment Form'!C471=\"ROC\",'Enrollment Form'!O471<>\"Multiple of Salary\"),\"-\",IF(COUNTA('Enrollment Form'!T471:U471)<2,\"N\",\"Y\"))","v":"-"},{"$f":"IF(B464=\"N\",\"\",IF(OR('Enrollment Form'!C471=\"ROC\",'Enrollment Form'!B471<>\"Subscriber\",'Enrollment Form'!O471=\"Waive\",'Enrollment Form'!O471=\"\"),\"-\",IF('Enrollment Form'!P471=\"\",\"N\",\"Y\")))","v":""},{"$f":"IF($B464=\"N\",\"\",IF(AND('Enrollment Form'!$C471=\"ROC\",'Enrollment Form'!$DS471<>\"\"),\"Y\",IF(AND('Enrollment Form'!$C471=\"ROC\",'Enrollment Form'!$DS471=\"\"),\"N\",IF(AND('Enrollment Form'!$C471=\"Enroll\",'Enrollment Form'!$B471=\"Subscriber\",'Enrollment Form'!$CQ471=\"No\",'Enrollment Form'!$DS471=\"\"),\"N\",IF(AND('Enrollment Form'!$C471=\"Enroll\",'Enrollment Form'!$B471=\"Subscriber\",'Enrollment Form'!$CQ471=\"Yes\"),\"-\",\"Y\")))))","v":""},{"$f":"IF($B464=\"N\",\"\",IF(AND('Enrollment Form'!$C471=\"ROC\",'Enrollment Form'!$DT471<>\"\"),\"Y\",IF(AND('Enrollment Form'!$C471=\"ROC\",'Enrollment Form'!$DT471=\"\"),\"N\",IF(AND('Enrollment Form'!$C471=\"Enroll\",'Enrollment Form'!$B471=\"Subscriber\",'Enrollment Form'!$CQ471=\"No\",'Enrollment Form'!$DT471=\"\"),\"N\",IF(AND('Enrollment Form'!$C471=\"Enroll\",'Enrollment Form'!$B471=\"Subscriber\",'Enrollment Form'!$CQ471=\"Yes\"),\"-\",\"Y\")))))","v":""},{"$f":"IF('Enrollment Form'!AH471=\"\",\"\",IF(ISERROR(SEARCH(\".\",'Enrollment Form'!AH471,SEARCH(\"@\",'Enrollment Form'!AH471))),\"N\",\"Y\"))","v":""},{"$f":"IF(OR($B464=\"N\",'Enrollment Form'!$G471=\"\"),\"\",IF('Enrollment Form'!$B471<>\"Subscriber\",\"-\",IF(COUNTIF('Enrollment Form'!$AS471:$AT471,\"Yes\")=2,\"N\",\"Y\")))","v":""},{"$f":"IF(OR('Enrollment Form'!$CC471=\"\",'Enrollment Form'!$CC471=\"No\"),\"-\",IF(AND('Enrollment Form'!$CC471=\"Yes\",'Enrollment Form'!$CD471=\"\"),\"N\",\"Y\"))","v":"-"},{"$f":"IF(OR('Enrollment Form'!$CE471=\"\",'Enrollment Form'!$CE471=\"No\"),\"-\",IF(AND('Enrollment Form'!$CE471=\"Yes\",'Enrollment Form'!$CF471=\"\"),\"N\",\"Y\"))","v":"-"},{"$f":"IF(OR('Enrollment Form'!$CG471=\"\",'Enrollment Form'!$CG471=\"No\"),\"-\",IF(AND('Enrollment Form'!$CG471=\"Yes\",'Enrollment Form'!$CH471=\"\"),\"N\",\"Y\"))","v":"-"},{"$f":"IF(OR('Enrollment Form'!$CG471=\"\",'Enrollment Form'!$CG471=\"No\"),\"-\",IF(AND('Enrollment Form'!$CG471=\"Yes\",'Enrollment Form'!$CI471=\"\"),\"N\",\"Y\"))","v":"-"},{"$f":"IF('Enrollment Form'!B471<>\"Subscriber\",\"-\",IF(AND('Enrollment Form'!B471=\"Subscriber\",'Enrollment Form'!C471=\"Enroll\",'Enrollment Form'!AA471=\"\"),\"N\",\"Y\"))","v":"-"},{"$f":"IF(OR('Enrollment Form'!B471=\"Subscriber\",'Enrollment Form'!B471=\"\"),\"-\",IF('Enrollment Form'!BI471=\"\",\"N\",\"Y\"))","v":"-"},{"$f":"IF('Enrollment Form'!B471<>\"Subscriber\",\"-\",IF(AND('Enrollment Form'!B471=\"Subscriber\",'Enrollment Form'!G471=\"\"),\"N\",\"Y\"))","v":"-"},{"$f":"IF('Enrollment Form'!A471=\"\",\"\",IF('Enrollment Form'!B471=\"Subscriber\",\"-\",IF(AND('Enrollment Form'!B471<>\"Subscriber\",'Enrollment Form'!G471='Enrollment Form'!H471),\"N\",\"Y\")))","v":""},0]
[472,{"$f":"IF('Enrollment Form'!$A472<>\"\",\"Y\",\"N\")","v":"N"},{"$f":"IF(AND('Enrollment Form'!$B472=\"\",'Enrollment Form'!$C472<>\"\"),\"N\",IF($B465=\"N\",\"\",\"Y\"))","v":""},{"$f":"IF(OR($B465=\"N\",'Enrollment Form'!G472=\"\"),\"\",IF('Enrollment Form'!$B472<>\"Subscriber\",\"\",IF('Enrollment Form'!$G472='Enrollment Form'!$H472,\"Y\",\"N\")))","v":""},{"$f":"IF($B465=\"N\",\"\",IF(AND(COUNTIFS('Enrollment Form'!$H$11:$H$1000,'Enrollment Form'!$H472,'Enrollment Form'!$B$11:$B$1000,'Enrollment Form'!$B472)>1,'Enrollment Form'!$H472<>\"\"),\"N\",\"Y\"))","v":""},{"$f":"IF($B465=\"N\",\"\",IF(LEN('Enrollment Form'!$Y472)=0,\"\",IF(LEN('Enrollment Form'!$Y472)<>5,\"N\",\"Y\")))","v":""},{"$f":"IF($B465=\"N\",\"\",IF(LEN('Enrollment Form'!$AD472=0),\"\",IF(LEN('Enrollment Form'!$AD472)<>5,\"N\",\"Y\")))","v":""},{"$f":"IF($B465=\"N\",\"\",IF(LEN('Enrollment Form'!$BL472=0),\"\",IF(LEN('Enrollment Form'!$BL472)<>5,\"N\",\"Y\")))","v":""},{"$f":"IF($B465=\"N\",\"\",IF(LEN('Enrollment Form'!$AE472)=0,\"\",IF(LEN('Enrollment Form'!$AE472)<>10,\"N\",\"Y\")))","v":""},{"$f":"IF($B465=\"N\",\"\",IF(LEN('Enrollment Form'!$AF472)=0,\"\",IF(LEN('Enrollment Form'!$AF472)<>10,\"N\",\"Y\")))","v":""},{"$f":"IF('Enrollment Form'!$O472<>\"Graded\",\"-\",IF(AND('Enrollment Form'!$O472=\"Graded\",'Enrollment Form'!$AO472<>\"\"),\"Y\",\"N\"))","v":"-"},{"$f":"IF($B465=\"N\",\"\",IF(OR('Enrollment Form'!$B472<>\"Subscriber\",'Enrollment Form'!$C472=\"ROC\"),\"-\",IF(AND('Enrollment Form'!$B472=\"Subscriber\",'Enrollment Form'!$C472=\"Enroll\",'Enrollment Form'!$AJ472<>\"\"),\"Y\",\"N\")))","v":""},{"$f":"IF($B465=\"N\",\"\",IF(OR('Enrollment Form'!$B472<>\"Subscriber\",'Enrollment Form'!$C472=\"ROC\"),\"-\",IF(AND('Enrollment Form'!$B472=\"Subscriber\",'Enrollment Form'!$C472=\"Enroll\",'Enrollment Form'!$AK472<>\"\"),\"Y\",\"N\")))","v":""},{"$f":"IF($B465=\"N\",\"\",IF(OR('Enrollment Form'!$B472<>\"Subscriber\",'Enrollment Form'!$C472=\"ROC\"),\"-\",IF(AND('Enrollment Form'!$B472=\"Subscriber\",'Enrollment Form'!$C472=\"Enroll\",'Enrollment Form'!$AL472<>\"\"),\"Y\",\"N\")))","v":""},{"$f":"IF($B465=\"N\",\"\",IF(OR('Enrollment Form'!$B472<>\"Subscriber\",'Enrollment Form'!$C472=\"ROC\"),\"-\",IF(AND('Enrollment Form'!$B472=\"Subscriber\",'Enrollment Form'!$C472=\"Enroll\",'Enrollment Form'!$AM472<>\"\"),\"Y\",\"N\")))","v":""},{"$f":"IF($B465=\"N\",\"\",IF(OR('Enrollment Form'!$B472<>\"Subscriber\",'Enrollment Form'!$C472=\"ROC\"),\"-\",IF(AND('Enrollment Form'!$B472=\"Subscriber\",'Enrollment Form'!$C472=\"Enroll\",'Enrollment Form'!$AN472<>\"\"),\"Y\",\"N\")))","v":""},{"$f":"IF($B465=\"N\",\"\",IF(OR('Enrollment Form'!$B472<>\"Subscriber\",'Enrollment Form'!$C472=\"ROC\"),\"-\",IF(AND('Enrollment Form'!$B472=\"Subscriber\",'Enrollment Form'!$C472=\"Enroll\",'Enrollment Form'!$AP472<>\"\"),\"Y\",\"N\")))","v":""},{"$f":"IF($B465=\"N\",\"\",IF($Q465=\"-\",\"-\",IF(AND($Q465=\"Y\",'Enrollment Form'!$AP472=\"No\"),\"-\",IF(AND($Q465=\"Y\",'Enrollment Form'!$AP472=\"Yes\",'Enrollment Form'!$AQ472<>\"\"),\"Y\",\"N\"))))","v":""},{"$f":"IF($B465=\"N\",\"\",IF(OR('Enrollment Form'!$B472<>\"Subscriber\",'Enrollment Form'!$C472=\"ROC\"),\"-\",IF(AND('Enrollment Form'!$B472=\"Subscriber\",'Enrollment Form'!$C472=\"Enroll\",'Enrollment Form'!$CO472<>\"\"),\"Y\",\"N\")))","v":""},{"$f":"IF($B465=\"N\",\"\",IF($S465=\"-\",\"-\",IF(AND($S465=\"Y\",'Enrollment Form'!$CO472=\"No\"),\"-\",IF(AND($S465=\"Y\",'Enrollment Form'!$CO472=\"Yes\",'Enrollment Form'!$CP472<>\"\"),\"Y\",\"N\"))))","v":""},{"$f":"IF(OR('Enrollment Form'!$AV472=\"Yes\",'Enrollment Form'!$AV472=\"\"),\"-\",IF(AND('Enrollment Form'!$AV472=\"No\",ISERROR(FIND(\"HMO\",VLOOKUP('Enrollment Form'!G472,'Enrollment Form'!H$11:J$1000,3,FALSE),1))=FALSE,COUNTA('Enrollment Form'!$AW472:$AZ472)=4),\"Y\",\"N\"))","v":"-"},{"$f":"IF($B465=\"N\",\"\",IF('Enrollment Form'!$B472=\"Subscriber\",\"-\",IF(COUNTA('Enrollment Form'!$BE472,'Enrollment Form'!$BG472)=2,\"Y\",\"N\")))","v":""},{"$f":"IF($B465=\"N\",\"\",IF(OR('Enrollment Form'!$AU472=\"\",'Enrollment Form'!$AU472=\"No\"),\"-\",IF(AND('Enrollment Form'!$AU472=\"Yes\",COUNTA('Enrollment Form'!$CK472)=1),\"Y\",\"N\")))","v":""},{"$f":"IF(OR('Enrollment Form'!$CK472=\"\",'Enrollment Form'!$CK472=\"No\"),\"-\",IF(COUNTA('Enrollment Form'!$CM472:$CN472)=2,\"Y\",\"N\"))","v":"-"},{"$f":"IF($B465=\"N\",\"\",IF(COUNTIF('Enrollment Form'!$CZ472:$DO472,\"Other\")=COUNTA('Enrollment Form'!$DF472,'Enrollment Form'!$DA472,'Enrollment Form'!$DK472,'Enrollment Form'!$DP472),\"Y\",\"N\"))","v":""},{"$f":"IF($B465=\"N\",\"\",IF(OR('Enrollment Form'!B472<>\"Subscriber\",'Enrollment Form'!C472=\"ROC\",COUNTIF('Enrollment Form'!AS472:AT472,\"Yes\")>=1),\"-\",IF(AND('Enrollment Form'!C472=\"Enroll\",COUNTIF('Enrollment Form'!AS472:AT472,\"No\")=2,'Enrollment Form'!AU472=\"\"),\"N\",\"Y\")))","v":""},{"$f":"IF(OR(B465=\"N\",'Enrollment Form'!B472<>\"Subscriber\",'Enrollment Form'!C472=\"ROC\",'Enrollment Form'!O472<>\"Multiple of Salary\"),\"-\",IF(COUNTA('Enrollment Form'!T472:U472)<2,\"N\",\"Y\"))","v":"-"},{"$f":"IF(B465=\"N\",\"\",IF(OR('Enrollment Form'!C472=\"ROC\",'Enrollment Form'!B472<>\"Subscriber\",'Enrollment Form'!O472=\"Waive\",'Enrollment Form'!O472=\"\"),\"-\",IF('Enrollment Form'!P472=\"\",\"N\",\"Y\")))","v":""},{"$f":"IF($B465=\"N\",\"\",IF(AND('Enrollment Form'!$C472=\"ROC\",'Enrollment Form'!$DS472<>\"\"),\"Y\",IF(AND('Enrollment Form'!$C472=\"ROC\",'Enrollment Form'!$DS472=\"\"),\"N\",IF(AND('Enrollment Form'!$C472=\"Enroll\",'Enrollment Form'!$B472=\"Subscriber\",'Enrollment Form'!$CQ472=\"No\",'Enrollment Form'!$DS472=\"\"),\"N\",IF(AND('Enrollment Form'!$C472=\"Enroll\",'Enrollment Form'!$B472=\"Subscriber\",'Enrollment Form'!$CQ472=\"Yes\"),\"-\",\"Y\")))))","v":""},{"$f":"IF($B465=\"N\",\"\",IF(AND('Enrollment Form'!$C472=\"ROC\",'Enrollment Form'!$DT472<>\"\"),\"Y\",IF(AND('Enrollment Form'!$C472=\"ROC\",'Enrollment Form'!$DT472=\"\"),\"N\",IF(AND('Enrollment Form'!$C472=\"Enroll\",'Enrollment Form'!$B472=\"Subscriber\",'Enrollment Form'!$CQ472=\"No\",'Enrollment Form'!$DT472=\"\"),\"N\",IF(AND('Enrollment Form'!$C472=\"Enroll\",'Enrollment Form'!$B472=\"Subscriber\",'Enrollment Form'!$CQ472=\"Yes\"),\"-\",\"Y\")))))","v":""},{"$f":"IF('Enrollment Form'!AH472=\"\",\"\",IF(ISERROR(SEARCH(\".\",'Enrollment Form'!AH472,SEARCH(\"@\",'Enrollment Form'!AH472))),\"N\",\"Y\"))","v":""},{"$f":"IF(OR($B465=\"N\",'Enrollment Form'!$G472=\"\"),\"\",IF('Enrollment Form'!$B472<>\"Subscriber\",\"-\",IF(COUNTIF('Enrollment Form'!$AS472:$AT472,\"Yes\")=2,\"N\",\"Y\")))","v":""},{"$f":"IF(OR('Enrollment Form'!$CC472=\"\",'Enrollment Form'!$CC472=\"No\"),\"-\",IF(AND('Enrollment Form'!$CC472=\"Yes\",'Enrollment Form'!$CD472=\"\"),\"N\",\"Y\"))","v":"-"},{"$f":"IF(OR('Enrollment Form'!$CE472=\"\",'Enrollment Form'!$CE472=\"No\"),\"-\",IF(AND('Enrollment Form'!$CE472=\"Yes\",'Enrollment Form'!$CF472=\"\"),\"N\",\"Y\"))","v":"-"},{"$f":"IF(OR('Enrollment Form'!$CG472=\"\",'Enrollment Form'!$CG472=\"No\"),\"-\",IF(AND('Enrollment Form'!$CG472=\"Yes\",'Enrollment Form'!$CH472=\"\"),\"N\",\"Y\"))","v":"-"},{"$f":"IF(OR('Enrollment Form'!$CG472=\"\",'Enrollment Form'!$CG472=\"No\"),\"-\",IF(AND('Enrollment Form'!$CG472=\"Yes\",'Enrollment Form'!$CI472=\"\"),\"N\",\"Y\"))","v":"-"},{"$f":"IF('Enrollment Form'!B472<>\"Subscriber\",\"-\",IF(AND('Enrollment Form'!B472=\"Subscriber\",'Enrollment Form'!C472=\"Enroll\",'Enrollment Form'!AA472=\"\"),\"N\",\"Y\"))","v":"-"},{"$f":"IF(OR('Enrollment Form'!B472=\"Subscriber\",'Enrollment Form'!B472=\"\"),\"-\",IF('Enrollment Form'!BI472=\"\",\"N\",\"Y\"))","v":"-"},{"$f":"IF('Enrollment Form'!B472<>\"Subscriber\",\"-\",IF(AND('Enrollment Form'!B472=\"Subscriber\",'Enrollment Form'!G472=\"\"),\"N\",\"Y\"))","v":"-"},{"$f":"IF('Enrollment Form'!A472=\"\",\"\",IF('Enrollment Form'!B472=\"Subscriber\",\"-\",IF(AND('Enrollment Form'!B472<>\"Subscriber\",'Enrollment Form'!G472='Enrollment Form'!H472),\"N\",\"Y\")))","v":""},0]
[473,{"$f":"IF('Enrollment Form'!$A473<>\"\",\"Y\",\"N\")","v":"N"},{"$f":"IF(AND('Enrollment Form'!$B473=\"\",'Enrollment Form'!$C473<>\"\"),\"N\",IF($B466=\"N\",\"\",\"Y\"))","v":""},{"$f":"IF(OR($B466=\"N\",'Enrollment Form'!G473=\"\"),\"\",IF('Enrollment Form'!$B473<>\"Subscriber\",\"\",IF('Enrollment Form'!$G473='Enrollment Form'!$H473,\"Y\",\"N\")))","v":""},{"$f":"IF($B466=\"N\",\"\",IF(AND(COUNTIFS('Enrollment Form'!$H$11:$H$1000,'Enrollment Form'!$H473,'Enrollment Form'!$B$11:$B$1000,'Enrollment Form'!$B473)>1,'Enrollment Form'!$H473<>\"\"),\"N\",\"Y\"))","v":""},{"$f":"IF($B466=\"N\",\"\",IF(LEN('Enrollment Form'!$Y473)=0,\"\",IF(LEN('Enrollment Form'!$Y473)<>5,\"N\",\"Y\")))","v":""},{"$f":"IF($B466=\"N\",\"\",IF(LEN('Enrollment Form'!$AD473=0),\"\",IF(LEN('Enrollment Form'!$AD473)<>5,\"N\",\"Y\")))","v":""},{"$f":"IF($B466=\"N\",\"\",IF(LEN('Enrollment Form'!$BL473=0),\"\",IF(LEN('Enrollment Form'!$BL473)<>5,\"N\",\"Y\")))","v":""},{"$f":"IF($B466=\"N\",\"\",IF(LEN('Enrollment Form'!$AE473)=0,\"\",IF(LEN('Enrollment Form'!$AE473)<>10,\"N\",\"Y\")))","v":""},{"$f":"IF($B466=\"N\",\"\",IF(LEN('Enrollment Form'!$AF473)=0,\"\",IF(LEN('Enrollment Form'!$AF473)<>10,\"N\",\"Y\")))","v":""},{"$f":"IF('Enrollment Form'!$O473<>\"Graded\",\"-\",IF(AND('Enrollment Form'!$O473=\"Graded\",'Enrollment Form'!$AO473<>\"\"),\"Y\",\"N\"))","v":"-"},{"$f":"IF($B466=\"N\",\"\",IF(OR('Enrollment Form'!$B473<>\"Subscriber\",'Enrollment Form'!$C473=\"ROC\"),\"-\",IF(AND('Enrollment Form'!$B473=\"Subscriber\",'Enrollment Form'!$C473=\"Enroll\",'Enrollment Form'!$AJ473<>\"\"),\"Y\",\"N\")))","v":""},{"$f":"IF($B466=\"N\",\"\",IF(OR('Enrollment Form'!$B473<>\"Subscriber\",'Enrollment Form'!$C473=\"ROC\"),\"-\",IF(AND('Enrollment Form'!$B473=\"Subscriber\",'Enrollment Form'!$C473=\"Enroll\",'Enrollment Form'!$AK473<>\"\"),\"Y\",\"N\")))","v":""},{"$f":"IF($B466=\"N\",\"\",IF(OR('Enrollment Form'!$B473<>\"Subscriber\",'Enrollment Form'!$C473=\"ROC\"),\"-\",IF(AND('Enrollment Form'!$B473=\"Subscriber\",'Enrollment Form'!$C473=\"Enroll\",'Enrollment Form'!$AL473<>\"\"),\"Y\",\"N\")))","v":""},{"$f":"IF($B466=\"N\",\"\",IF(OR('Enrollment Form'!$B473<>\"Subscriber\",'Enrollment Form'!$C473=\"ROC\"),\"-\",IF(AND('Enrollment Form'!$B473=\"Subscriber\",'Enrollment Form'!$C473=\"Enroll\",'Enrollment Form'!$AM473<>\"\"),\"Y\",\"N\")))","v":""},{"$f":"IF($B466=\"N\",\"\",IF(OR('Enrollment Form'!$B473<>\"Subscriber\",'Enrollment Form'!$C473=\"ROC\"),\"-\",IF(AND('Enrollment Form'!$B473=\"Subscriber\",'Enrollment Form'!$C473=\"Enroll\",'Enrollment Form'!$AN473<>\"\"),\"Y\",\"N\")))","v":""},{"$f":"IF($B466=\"N\",\"\",IF(OR('Enrollment Form'!$B473<>\"Subscriber\",'Enrollment Form'!$C473=\"ROC\"),\"-\",IF(AND('Enrollment Form'!$B473=\"Subscriber\",'Enrollment Form'!$C473=\"Enroll\",'Enrollment Form'!$AP473<>\"\"),\"Y\",\"N\")))","v":""},{"$f":"IF($B466=\"N\",\"\",IF($Q466=\"-\",\"-\",IF(AND($Q466=\"Y\",'Enrollment Form'!$AP473=\"No\"),\"-\",IF(AND($Q466=\"Y\",'Enrollment Form'!$AP473=\"Yes\",'Enrollment Form'!$AQ473<>\"\"),\"Y\",\"N\"))))","v":""},{"$f":"IF($B466=\"N\",\"\",IF(OR('Enrollment Form'!$B473<>\"Subscriber\",'Enrollment Form'!$C473=\"ROC\"),\"-\",IF(AND('Enrollment Form'!$B473=\"Subscriber\",'Enrollment Form'!$C473=\"Enroll\",'Enrollment Form'!$CO473<>\"\"),\"Y\",\"N\")))","v":""},{"$f":"IF($B466=\"N\",\"\",IF($S466=\"-\",\"-\",IF(AND($S466=\"Y\",'Enrollment Form'!$CO473=\"No\"),\"-\",IF(AND($S466=\"Y\",'Enrollment Form'!$CO473=\"Yes\",'Enrollment Form'!$CP473<>\"\"),\"Y\",\"N\"))))","v":""},{"$f":"IF(OR('Enrollment Form'!$AV473=\"Yes\",'Enrollment Form'!$AV473=\"\"),\"-\",IF(AND('Enrollment Form'!$AV473=\"No\",ISERROR(FIND(\"HMO\",VLOOKUP('Enrollment Form'!G473,'Enrollment Form'!H$11:J$1000,3,FALSE),1))=FALSE,COUNTA('Enrollment Form'!$AW473:$AZ473)=4),\"Y\",\"N\"))","v":"-"},{"$f":"IF($B466=\"N\",\"\",IF('Enrollment Form'!$B473=\"Subscriber\",\"-\",IF(COUNTA('Enrollment Form'!$BE473,'Enrollment Form'!$BG473)=2,\"Y\",\"N\")))","v":""},{"$f":"IF($B466=\"N\",\"\",IF(OR('Enrollment Form'!$AU473=\"\",'Enrollment Form'!$AU473=\"No\"),\"-\",IF(AND('Enrollment Form'!$AU473=\"Yes\",COUNTA('Enrollment Form'!$CK473)=1),\"Y\",\"N\")))","v":""},{"$f":"IF(OR('Enrollment Form'!$CK473=\"\",'Enrollment Form'!$CK473=\"No\"),\"-\",IF(COUNTA('Enrollment Form'!$CM473:$CN473)=2,\"Y\",\"N\"))","v":"-"},{"$f":"IF($B466=\"N\",\"\",IF(COUNTIF('Enrollment Form'!$CZ473:$DO473,\"Other\")=COUNTA('Enrollment Form'!$DF473,'Enrollment Form'!$DA473,'Enrollment Form'!$DK473,'Enrollment Form'!$DP473),\"Y\",\"N\"))","v":""},{"$f":"IF($B466=\"N\",\"\",IF(OR('Enrollment Form'!B473<>\"Subscriber\",'Enrollment Form'!C473=\"ROC\",COUNTIF('Enrollment Form'!AS473:AT473,\"Yes\")>=1),\"-\",IF(AND('Enrollment Form'!C473=\"Enroll\",COUNTIF('Enrollment Form'!AS473:AT473,\"No\")=2,'Enrollment Form'!AU473=\"\"),\"N\",\"Y\")))","v":""},{"$f":"IF(OR(B466=\"N\",'Enrollment Form'!B473<>\"Subscriber\",'Enrollment Form'!C473=\"ROC\",'Enrollment Form'!O473<>\"Multiple of Salary\"),\"-\",IF(COUNTA('Enrollment Form'!T473:U473)<2,\"N\",\"Y\"))","v":"-"},{"$f":"IF(B466=\"N\",\"\",IF(OR('Enrollment Form'!C473=\"ROC\",'Enrollment Form'!B473<>\"Subscriber\",'Enrollment Form'!O473=\"Waive\",'Enrollment Form'!O473=\"\"),\"-\",IF('Enrollment Form'!P473=\"\",\"N\",\"Y\")))","v":""},{"$f":"IF($B466=\"N\",\"\",IF(AND('Enrollment Form'!$C473=\"ROC\",'Enrollment Form'!$DS473<>\"\"),\"Y\",IF(AND('Enrollment Form'!$C473=\"ROC\",'Enrollment Form'!$DS473=\"\"),\"N\",IF(AND('Enrollment Form'!$C473=\"Enroll\",'Enrollment Form'!$B473=\"Subscriber\",'Enrollment Form'!$CQ473=\"No\",'Enrollment Form'!$DS473=\"\"),\"N\",IF(AND('Enrollment Form'!$C473=\"Enroll\",'Enrollment Form'!$B473=\"Subscriber\",'Enrollment Form'!$CQ473=\"Yes\"),\"-\",\"Y\")))))","v":""},{"$f":"IF($B466=\"N\",\"\",IF(AND('Enrollment Form'!$C473=\"ROC\",'Enrollment Form'!$DT473<>\"\"),\"Y\",IF(AND('Enrollment Form'!$C473=\"ROC\",'Enrollment Form'!$DT473=\"\"),\"N\",IF(AND('Enrollment Form'!$C473=\"Enroll\",'Enrollment Form'!$B473=\"Subscriber\",'Enrollment Form'!$CQ473=\"No\",'Enrollment Form'!$DT473=\"\"),\"N\",IF(AND('Enrollment Form'!$C473=\"Enroll\",'Enrollment Form'!$B473=\"Subscriber\",'Enrollment Form'!$CQ473=\"Yes\"),\"-\",\"Y\")))))","v":""},{"$f":"IF('Enrollment Form'!AH473=\"\",\"\",IF(ISERROR(SEARCH(\".\",'Enrollment Form'!AH473,SEARCH(\"@\",'Enrollment Form'!AH473))),\"N\",\"Y\"))","v":""},{"$f":"IF(OR($B466=\"N\",'Enrollment Form'!$G473=\"\"),\"\",IF('Enrollment Form'!$B473<>\"Subscriber\",\"-\",IF(COUNTIF('Enrollment Form'!$AS473:$AT473,\"Yes\")=2,\"N\",\"Y\")))","v":""},{"$f":"IF(OR('Enrollment Form'!$CC473=\"\",'Enrollment Form'!$CC473=\"No\"),\"-\",IF(AND('Enrollment Form'!$CC473=\"Yes\",'Enrollment Form'!$CD473=\"\"),\"N\",\"Y\"))","v":"-"},{"$f":"IF(OR('Enrollment Form'!$CE473=\"\",'Enrollment Form'!$CE473=\"No\"),\"-\",IF(AND('Enrollment Form'!$CE473=\"Yes\",'Enrollment Form'!$CF473=\"\"),\"N\",\"Y\"))","v":"-"},{"$f":"IF(OR('Enrollment Form'!$CG473=\"\",'Enrollment Form'!$CG473=\"No\"),\"-\",IF(AND('Enrollment Form'!$CG473=\"Yes\",'Enrollment Form'!$CH473=\"\"),\"N\",\"Y\"))","v":"-"},{"$f":"IF(OR('Enrollment Form'!$CG473=\"\",'Enrollment Form'!$CG473=\"No\"),\"-\",IF(AND('Enrollment Form'!$CG473=\"Yes\",'Enrollment Form'!$CI473=\"\"),\"N\",\"Y\"))","v":"-"},{"$f":"IF('Enrollment Form'!B473<>\"Subscriber\",\"-\",IF(AND('Enrollment Form'!B473=\"Subscriber\",'Enrollment Form'!C473=\"Enroll\",'Enrollment Form'!AA473=\"\"),\"N\",\"Y\"))","v":"-"},{"$f":"IF(OR('Enrollment Form'!B473=\"Subscriber\",'Enrollment Form'!B473=\"\"),\"-\",IF('Enrollment Form'!BI473=\"\",\"N\",\"Y\"))","v":"-"},{"$f":"IF('Enrollment Form'!B473<>\"Subscriber\",\"-\",IF(AND('Enrollment Form'!B473=\"Subscriber\",'Enrollment Form'!G473=\"\"),\"N\",\"Y\"))","v":"-"},{"$f":"IF('Enrollment Form'!A473=\"\",\"\",IF('Enrollment Form'!B473=\"Subscriber\",\"-\",IF(AND('Enrollment Form'!B473<>\"Subscriber\",'Enrollment Form'!G473='Enrollment Form'!H473),\"N\",\"Y\")))","v":""},0]
[474,{"$f":"IF('Enrollment Form'!$A474<>\"\",\"Y\",\"N\")","v":"N"},{"$f":"IF(AND('Enrollment Form'!$B474=\"\",'Enrollment Form'!$C474<>\"\"),\"N\",IF($B467=\"N\",\"\",\"Y\"))","v":""},{"$f":"IF(OR($B467=\"N\",'Enrollment Form'!G474=\"\"),\"\",IF('Enrollment Form'!$B474<>\"Subscriber\",\"\",IF('Enrollment Form'!$G474='Enrollment Form'!$H474,\"Y\",\"N\")))","v":""},{"$f":"IF($B467=\"N\",\"\",IF(AND(COUNTIFS('Enrollment Form'!$H$11:$H$1000,'Enrollment Form'!$H474,'Enrollment Form'!$B$11:$B$1000,'Enrollment Form'!$B474)>1,'Enrollment Form'!$H474<>\"\"),\"N\",\"Y\"))","v":""},{"$f":"IF($B467=\"N\",\"\",IF(LEN('Enrollment Form'!$Y474)=0,\"\",IF(LEN('Enrollment Form'!$Y474)<>5,\"N\",\"Y\")))","v":""},{"$f":"IF($B467=\"N\",\"\",IF(LEN('Enrollment Form'!$AD474=0),\"\",IF(LEN('Enrollment Form'!$AD474)<>5,\"N\",\"Y\")))","v":""},{"$f":"IF($B467=\"N\",\"\",IF(LEN('Enrollment Form'!$BL474=0),\"\",IF(LEN('Enrollment Form'!$BL474)<>5,\"N\",\"Y\")))","v":""},{"$f":"IF($B467=\"N\",\"\",IF(LEN('Enrollment Form'!$AE474)=0,\"\",IF(LEN('Enrollment Form'!$AE474)<>10,\"N\",\"Y\")))","v":""},{"$f":"IF($B467=\"N\",\"\",IF(LEN('Enrollment Form'!$AF474)=0,\"\",IF(LEN('Enrollment Form'!$AF474)<>10,\"N\",\"Y\")))","v":""},{"$f":"IF('Enrollment Form'!$O474<>\"Graded\",\"-\",IF(AND('Enrollment Form'!$O474=\"Graded\",'Enrollment Form'!$AO474<>\"\"),\"Y\",\"N\"))","v":"-"},{"$f":"IF($B467=\"N\",\"\",IF(OR('Enrollment Form'!$B474<>\"Subscriber\",'Enrollment Form'!$C474=\"ROC\"),\"-\",IF(AND('Enrollment Form'!$B474=\"Subscriber\",'Enrollment Form'!$C474=\"Enroll\",'Enrollment Form'!$AJ474<>\"\"),\"Y\",\"N\")))","v":""},{"$f":"IF($B467=\"N\",\"\",IF(OR('Enrollment Form'!$B474<>\"Subscriber\",'Enrollment Form'!$C474=\"ROC\"),\"-\",IF(AND('Enrollment Form'!$B474=\"Subscriber\",'Enrollment Form'!$C474=\"Enroll\",'Enrollment Form'!$AK474<>\"\"),\"Y\",\"N\")))","v":""},{"$f":"IF($B467=\"N\",\"\",IF(OR('Enrollment Form'!$B474<>\"Subscriber\",'Enrollment Form'!$C474=\"ROC\"),\"-\",IF(AND('Enrollment Form'!$B474=\"Subscriber\",'Enrollment Form'!$C474=\"Enroll\",'Enrollment Form'!$AL474<>\"\"),\"Y\",\"N\")))","v":""},{"$f":"IF($B467=\"N\",\"\",IF(OR('Enrollment Form'!$B474<>\"Subscriber\",'Enrollment Form'!$C474=\"ROC\"),\"-\",IF(AND('Enrollment Form'!$B474=\"Subscriber\",'Enrollment Form'!$C474=\"Enroll\",'Enrollment Form'!$AM474<>\"\"),\"Y\",\"N\")))","v":""},{"$f":"IF($B467=\"N\",\"\",IF(OR('Enrollment Form'!$B474<>\"Subscriber\",'Enrollment Form'!$C474=\"ROC\"),\"-\",IF(AND('Enrollment Form'!$B474=\"Subscriber\",'Enrollment Form'!$C474=\"Enroll\",'Enrollment Form'!$AN474<>\"\"),\"Y\",\"N\")))","v":""},{"$f":"IF($B467=\"N\",\"\",IF(OR('Enrollment Form'!$B474<>\"Subscriber\",'Enrollment Form'!$C474=\"ROC\"),\"-\",IF(AND('Enrollment Form'!$B474=\"Subscriber\",'Enrollment Form'!$C474=\"Enroll\",'Enrollment Form'!$AP474<>\"\"),\"Y\",\"N\")))","v":""},{"$f":"IF($B467=\"N\",\"\",IF($Q467=\"-\",\"-\",IF(AND($Q467=\"Y\",'Enrollment Form'!$AP474=\"No\"),\"-\",IF(AND($Q467=\"Y\",'Enrollment Form'!$AP474=\"Yes\",'Enrollment Form'!$AQ474<>\"\"),\"Y\",\"N\"))))","v":""},{"$f":"IF($B467=\"N\",\"\",IF(OR('Enrollment Form'!$B474<>\"Subscriber\",'Enrollment Form'!$C474=\"ROC\"),\"-\",IF(AND('Enrollment Form'!$B474=\"Subscriber\",'Enrollment Form'!$C474=\"Enroll\",'Enrollment Form'!$CO474<>\"\"),\"Y\",\"N\")))","v":""},{"$f":"IF($B467=\"N\",\"\",IF($S467=\"-\",\"-\",IF(AND($S467=\"Y\",'Enrollment Form'!$CO474=\"No\"),\"-\",IF(AND($S467=\"Y\",'Enrollment Form'!$CO474=\"Yes\",'Enrollment Form'!$CP474<>\"\"),\"Y\",\"N\"))))","v":""},{"$f":"IF(OR('Enrollment Form'!$AV474=\"Yes\",'Enrollment Form'!$AV474=\"\"),\"-\",IF(AND('Enrollment Form'!$AV474=\"No\",ISERROR(FIND(\"HMO\",VLOOKUP('Enrollment Form'!G474,'Enrollment Form'!H$11:J$1000,3,FALSE),1))=FALSE,COUNTA('Enrollment Form'!$AW474:$AZ474)=4),\"Y\",\"N\"))","v":"-"},{"$f":"IF($B467=\"N\",\"\",IF('Enrollment Form'!$B474=\"Subscriber\",\"-\",IF(COUNTA('Enrollment Form'!$BE474,'Enrollment Form'!$BG474)=2,\"Y\",\"N\")))","v":""},{"$f":"IF($B467=\"N\",\"\",IF(OR('Enrollment Form'!$AU474=\"\",'Enrollment Form'!$AU474=\"No\"),\"-\",IF(AND('Enrollment Form'!$AU474=\"Yes\",COUNTA('Enrollment Form'!$CK474)=1),\"Y\",\"N\")))","v":""},{"$f":"IF(OR('Enrollment Form'!$CK474=\"\",'Enrollment Form'!$CK474=\"No\"),\"-\",IF(COUNTA('Enrollment Form'!$CM474:$CN474)=2,\"Y\",\"N\"))","v":"-"},{"$f":"IF($B467=\"N\",\"\",IF(COUNTIF('Enrollment Form'!$CZ474:$DO474,\"Other\")=COUNTA('Enrollment Form'!$DF474,'Enrollment Form'!$DA474,'Enrollment Form'!$DK474,'Enrollment Form'!$DP474),\"Y\",\"N\"))","v":""},{"$f":"IF($B467=\"N\",\"\",IF(OR('Enrollment Form'!B474<>\"Subscriber\",'Enrollment Form'!C474=\"ROC\",COUNTIF('Enrollment Form'!AS474:AT474,\"Yes\")>=1),\"-\",IF(AND('Enrollment Form'!C474=\"Enroll\",COUNTIF('Enrollment Form'!AS474:AT474,\"No\")=2,'Enrollment Form'!AU474=\"\"),\"N\",\"Y\")))","v":""},{"$f":"IF(OR(B467=\"N\",'Enrollment Form'!B474<>\"Subscriber\",'Enrollment Form'!C474=\"ROC\",'Enrollment Form'!O474<>\"Multiple of Salary\"),\"-\",IF(COUNTA('Enrollment Form'!T474:U474)<2,\"N\",\"Y\"))","v":"-"},{"$f":"IF(B467=\"N\",\"\",IF(OR('Enrollment Form'!C474=\"ROC\",'Enrollment Form'!B474<>\"Subscriber\",'Enrollment Form'!O474=\"Waive\",'Enrollment Form'!O474=\"\"),\"-\",IF('Enrollment Form'!P474=\"\",\"N\",\"Y\")))","v":""},{"$f":"IF($B467=\"N\",\"\",IF(AND('Enrollment Form'!$C474=\"ROC\",'Enrollment Form'!$DS474<>\"\"),\"Y\",IF(AND('Enrollment Form'!$C474=\"ROC\",'Enrollment Form'!$DS474=\"\"),\"N\",IF(AND('Enrollment Form'!$C474=\"Enroll\",'Enrollment Form'!$B474=\"Subscriber\",'Enrollment Form'!$CQ474=\"No\",'Enrollment Form'!$DS474=\"\"),\"N\",IF(AND('Enrollment Form'!$C474=\"Enroll\",'Enrollment Form'!$B474=\"Subscriber\",'Enrollment Form'!$CQ474=\"Yes\"),\"-\",\"Y\")))))","v":""},{"$f":"IF($B467=\"N\",\"\",IF(AND('Enrollment Form'!$C474=\"ROC\",'Enrollment Form'!$DT474<>\"\"),\"Y\",IF(AND('Enrollment Form'!$C474=\"ROC\",'Enrollment Form'!$DT474=\"\"),\"N\",IF(AND('Enrollment Form'!$C474=\"Enroll\",'Enrollment Form'!$B474=\"Subscriber\",'Enrollment Form'!$CQ474=\"No\",'Enrollment Form'!$DT474=\"\"),\"N\",IF(AND('Enrollment Form'!$C474=\"Enroll\",'Enrollment Form'!$B474=\"Subscriber\",'Enrollment Form'!$CQ474=\"Yes\"),\"-\",\"Y\")))))","v":""},{"$f":"IF('Enrollment Form'!AH474=\"\",\"\",IF(ISERROR(SEARCH(\".\",'Enrollment Form'!AH474,SEARCH(\"@\",'Enrollment Form'!AH474))),\"N\",\"Y\"))","v":""},{"$f":"IF(OR($B467=\"N\",'Enrollment Form'!$G474=\"\"),\"\",IF('Enrollment Form'!$B474<>\"Subscriber\",\"-\",IF(COUNTIF('Enrollment Form'!$AS474:$AT474,\"Yes\")=2,\"N\",\"Y\")))","v":""},{"$f":"IF(OR('Enrollment Form'!$CC474=\"\",'Enrollment Form'!$CC474=\"No\"),\"-\",IF(AND('Enrollment Form'!$CC474=\"Yes\",'Enrollment Form'!$CD474=\"\"),\"N\",\"Y\"))","v":"-"},{"$f":"IF(OR('Enrollment Form'!$CE474=\"\",'Enrollment Form'!$CE474=\"No\"),\"-\",IF(AND('Enrollment Form'!$CE474=\"Yes\",'Enrollment Form'!$CF474=\"\"),\"N\",\"Y\"))","v":"-"},{"$f":"IF(OR('Enrollment Form'!$CG474=\"\",'Enrollment Form'!$CG474=\"No\"),\"-\",IF(AND('Enrollment Form'!$CG474=\"Yes\",'Enrollment Form'!$CH474=\"\"),\"N\",\"Y\"))","v":"-"},{"$f":"IF(OR('Enrollment Form'!$CG474=\"\",'Enrollment Form'!$CG474=\"No\"),\"-\",IF(AND('Enrollment Form'!$CG474=\"Yes\",'Enrollment Form'!$CI474=\"\"),\"N\",\"Y\"))","v":"-"},{"$f":"IF('Enrollment Form'!B474<>\"Subscriber\",\"-\",IF(AND('Enrollment Form'!B474=\"Subscriber\",'Enrollment Form'!C474=\"Enroll\",'Enrollment Form'!AA474=\"\"),\"N\",\"Y\"))","v":"-"},{"$f":"IF(OR('Enrollment Form'!B474=\"Subscriber\",'Enrollment Form'!B474=\"\"),\"-\",IF('Enrollment Form'!BI474=\"\",\"N\",\"Y\"))","v":"-"},{"$f":"IF('Enrollment Form'!B474<>\"Subscriber\",\"-\",IF(AND('Enrollment Form'!B474=\"Subscriber\",'Enrollment Form'!G474=\"\"),\"N\",\"Y\"))","v":"-"},{"$f":"IF('Enrollment Form'!A474=\"\",\"\",IF('Enrollment Form'!B474=\"Subscriber\",\"-\",IF(AND('Enrollment Form'!B474<>\"Subscriber\",'Enrollment Form'!G474='Enrollment Form'!H474),\"N\",\"Y\")))","v":""},0]
[475,{"$f":"IF('Enrollment Form'!$A475<>\"\",\"Y\",\"N\")","v":"N"},{"$f":"IF(AND('Enrollment Form'!$B475=\"\",'Enrollment Form'!$C475<>\"\"),\"N\",IF($B468=\"N\",\"\",\"Y\"))","v":""},{"$f":"IF(OR($B468=\"N\",'Enrollment Form'!G475=\"\"),\"\",IF('Enrollment Form'!$B475<>\"Subscriber\",\"\",IF('Enrollment Form'!$G475='Enrollment Form'!$H475,\"Y\",\"N\")))","v":""},{"$f":"IF($B468=\"N\",\"\",IF(AND(COUNTIFS('Enrollment Form'!$H$11:$H$1000,'Enrollment Form'!$H475,'Enrollment Form'!$B$11:$B$1000,'Enrollment Form'!$B475)>1,'Enrollment Form'!$H475<>\"\"),\"N\",\"Y\"))","v":""},{"$f":"IF($B468=\"N\",\"\",IF(LEN('Enrollment Form'!$Y475)=0,\"\",IF(LEN('Enrollment Form'!$Y475)<>5,\"N\",\"Y\")))","v":""},{"$f":"IF($B468=\"N\",\"\",IF(LEN('Enrollment Form'!$AD475=0),\"\",IF(LEN('Enrollment Form'!$AD475)<>5,\"N\",\"Y\")))","v":""},{"$f":"IF($B468=\"N\",\"\",IF(LEN('Enrollment Form'!$BL475=0),\"\",IF(LEN('Enrollment Form'!$BL475)<>5,\"N\",\"Y\")))","v":""},{"$f":"IF($B468=\"N\",\"\",IF(LEN('Enrollment Form'!$AE475)=0,\"\",IF(LEN('Enrollment Form'!$AE475)<>10,\"N\",\"Y\")))","v":""},{"$f":"IF($B468=\"N\",\"\",IF(LEN('Enrollment Form'!$AF475)=0,\"\",IF(LEN('Enrollment Form'!$AF475)<>10,\"N\",\"Y\")))","v":""},{"$f":"IF('Enrollment Form'!$O475<>\"Graded\",\"-\",IF(AND('Enrollment Form'!$O475=\"Graded\",'Enrollment Form'!$AO475<>\"\"),\"Y\",\"N\"))","v":"-"},{"$f":"IF($B468=\"N\",\"\",IF(OR('Enrollment Form'!$B475<>\"Subscriber\",'Enrollment Form'!$C475=\"ROC\"),\"-\",IF(AND('Enrollment Form'!$B475=\"Subscriber\",'Enrollment Form'!$C475=\"Enroll\",'Enrollment Form'!$AJ475<>\"\"),\"Y\",\"N\")))","v":""},{"$f":"IF($B468=\"N\",\"\",IF(OR('Enrollment Form'!$B475<>\"Subscriber\",'Enrollment Form'!$C475=\"ROC\"),\"-\",IF(AND('Enrollment Form'!$B475=\"Subscriber\",'Enrollment Form'!$C475=\"Enroll\",'Enrollment Form'!$AK475<>\"\"),\"Y\",\"N\")))","v":""},{"$f":"IF($B468=\"N\",\"\",IF(OR('Enrollment Form'!$B475<>\"Subscriber\",'Enrollment Form'!$C475=\"ROC\"),\"-\",IF(AND('Enrollment Form'!$B475=\"Subscriber\",'Enrollment Form'!$C475=\"Enroll\",'Enrollment Form'!$AL475<>\"\"),\"Y\",\"N\")))","v":""},{"$f":"IF($B468=\"N\",\"\",IF(OR('Enrollment Form'!$B475<>\"Subscriber\",'Enrollment Form'!$C475=\"ROC\"),\"-\",IF(AND('Enrollment Form'!$B475=\"Subscriber\",'Enrollment Form'!$C475=\"Enroll\",'Enrollment Form'!$AM475<>\"\"),\"Y\",\"N\")))","v":""},{"$f":"IF($B468=\"N\",\"\",IF(OR('Enrollment Form'!$B475<>\"Subscriber\",'Enrollment Form'!$C475=\"ROC\"),\"-\",IF(AND('Enrollment Form'!$B475=\"Subscriber\",'Enrollment Form'!$C475=\"Enroll\",'Enrollment Form'!$AN475<>\"\"),\"Y\",\"N\")))","v":""},{"$f":"IF($B468=\"N\",\"\",IF(OR('Enrollment Form'!$B475<>\"Subscriber\",'Enrollment Form'!$C475=\"ROC\"),\"-\",IF(AND('Enrollment Form'!$B475=\"Subscriber\",'Enrollment Form'!$C475=\"Enroll\",'Enrollment Form'!$AP475<>\"\"),\"Y\",\"N\")))","v":""},{"$f":"IF($B468=\"N\",\"\",IF($Q468=\"-\",\"-\",IF(AND($Q468=\"Y\",'Enrollment Form'!$AP475=\"No\"),\"-\",IF(AND($Q468=\"Y\",'Enrollment Form'!$AP475=\"Yes\",'Enrollment Form'!$AQ475<>\"\"),\"Y\",\"N\"))))","v":""},{"$f":"IF($B468=\"N\",\"\",IF(OR('Enrollment Form'!$B475<>\"Subscriber\",'Enrollment Form'!$C475=\"ROC\"),\"-\",IF(AND('Enrollment Form'!$B475=\"Subscriber\",'Enrollment Form'!$C475=\"Enroll\",'Enrollment Form'!$CO475<>\"\"),\"Y\",\"N\")))","v":""},{"$f":"IF($B468=\"N\",\"\",IF($S468=\"-\",\"-\",IF(AND($S468=\"Y\",'Enrollment Form'!$CO475=\"No\"),\"-\",IF(AND($S468=\"Y\",'Enrollment Form'!$CO475=\"Yes\",'Enrollment Form'!$CP475<>\"\"),\"Y\",\"N\"))))","v":""},{"$f":"IF(OR('Enrollment Form'!$AV475=\"Yes\",'Enrollment Form'!$AV475=\"\"),\"-\",IF(AND('Enrollment Form'!$AV475=\"No\",ISERROR(FIND(\"HMO\",VLOOKUP('Enrollment Form'!G475,'Enrollment Form'!H$11:J$1000,3,FALSE),1))=FALSE,COUNTA('Enrollment Form'!$AW475:$AZ475)=4),\"Y\",\"N\"))","v":"-"},{"$f":"IF($B468=\"N\",\"\",IF('Enrollment Form'!$B475=\"Subscriber\",\"-\",IF(COUNTA('Enrollment Form'!$BE475,'Enrollment Form'!$BG475)=2,\"Y\",\"N\")))","v":""},{"$f":"IF($B468=\"N\",\"\",IF(OR('Enrollment Form'!$AU475=\"\",'Enrollment Form'!$AU475=\"No\"),\"-\",IF(AND('Enrollment Form'!$AU475=\"Yes\",COUNTA('Enrollment Form'!$CK475)=1),\"Y\",\"N\")))","v":""},{"$f":"IF(OR('Enrollment Form'!$CK475=\"\",'Enrollment Form'!$CK475=\"No\"),\"-\",IF(COUNTA('Enrollment Form'!$CM475:$CN475)=2,\"Y\",\"N\"))","v":"-"},{"$f":"IF($B468=\"N\",\"\",IF(COUNTIF('Enrollment Form'!$CZ475:$DO475,\"Other\")=COUNTA('Enrollment Form'!$DF475,'Enrollment Form'!$DA475,'Enrollment Form'!$DK475,'Enrollment Form'!$DP475),\"Y\",\"N\"))","v":""},{"$f":"IF($B468=\"N\",\"\",IF(OR('Enrollment Form'!B475<>\"Subscriber\",'Enrollment Form'!C475=\"ROC\",COUNTIF('Enrollment Form'!AS475:AT475,\"Yes\")>=1),\"-\",IF(AND('Enrollment Form'!C475=\"Enroll\",COUNTIF('Enrollment Form'!AS475:AT475,\"No\")=2,'Enrollment Form'!AU475=\"\"),\"N\",\"Y\")))","v":""},{"$f":"IF(OR(B468=\"N\",'Enrollment Form'!B475<>\"Subscriber\",'Enrollment Form'!C475=\"ROC\",'Enrollment Form'!O475<>\"Multiple of Salary\"),\"-\",IF(COUNTA('Enrollment Form'!T475:U475)<2,\"N\",\"Y\"))","v":"-"},{"$f":"IF(B468=\"N\",\"\",IF(OR('Enrollment Form'!C475=\"ROC\",'Enrollment Form'!B475<>\"Subscriber\",'Enrollment Form'!O475=\"Waive\",'Enrollment Form'!O475=\"\"),\"-\",IF('Enrollment Form'!P475=\"\",\"N\",\"Y\")))","v":""},{"$f":"IF($B468=\"N\",\"\",IF(AND('Enrollment Form'!$C475=\"ROC\",'Enrollment Form'!$DS475<>\"\"),\"Y\",IF(AND('Enrollment Form'!$C475=\"ROC\",'Enrollment Form'!$DS475=\"\"),\"N\",IF(AND('Enrollment Form'!$C475=\"Enroll\",'Enrollment Form'!$B475=\"Subscriber\",'Enrollment Form'!$CQ475=\"No\",'Enrollment Form'!$DS475=\"\"),\"N\",IF(AND('Enrollment Form'!$C475=\"Enroll\",'Enrollment Form'!$B475=\"Subscriber\",'Enrollment Form'!$CQ475=\"Yes\"),\"-\",\"Y\")))))","v":""},{"$f":"IF($B468=\"N\",\"\",IF(AND('Enrollment Form'!$C475=\"ROC\",'Enrollment Form'!$DT475<>\"\"),\"Y\",IF(AND('Enrollment Form'!$C475=\"ROC\",'Enrollment Form'!$DT475=\"\"),\"N\",IF(AND('Enrollment Form'!$C475=\"Enroll\",'Enrollment Form'!$B475=\"Subscriber\",'Enrollment Form'!$CQ475=\"No\",'Enrollment Form'!$DT475=\"\"),\"N\",IF(AND('Enrollment Form'!$C475=\"Enroll\",'Enrollment Form'!$B475=\"Subscriber\",'Enrollment Form'!$CQ475=\"Yes\"),\"-\",\"Y\")))))","v":""},{"$f":"IF('Enrollment Form'!AH475=\"\",\"\",IF(ISERROR(SEARCH(\".\",'Enrollment Form'!AH475,SEARCH(\"@\",'Enrollment Form'!AH475))),\"N\",\"Y\"))","v":""},{"$f":"IF(OR($B468=\"N\",'Enrollment Form'!$G475=\"\"),\"\",IF('Enrollment Form'!$B475<>\"Subscriber\",\"-\",IF(COUNTIF('Enrollment Form'!$AS475:$AT475,\"Yes\")=2,\"N\",\"Y\")))","v":""},{"$f":"IF(OR('Enrollment Form'!$CC475=\"\",'Enrollment Form'!$CC475=\"No\"),\"-\",IF(AND('Enrollment Form'!$CC475=\"Yes\",'Enrollment Form'!$CD475=\"\"),\"N\",\"Y\"))","v":"-"},{"$f":"IF(OR('Enrollment Form'!$CE475=\"\",'Enrollment Form'!$CE475=\"No\"),\"-\",IF(AND('Enrollment Form'!$CE475=\"Yes\",'Enrollment Form'!$CF475=\"\"),\"N\",\"Y\"))","v":"-"},{"$f":"IF(OR('Enrollment Form'!$CG475=\"\",'Enrollment Form'!$CG475=\"No\"),\"-\",IF(AND('Enrollment Form'!$CG475=\"Yes\",'Enrollment Form'!$CH475=\"\"),\"N\",\"Y\"))","v":"-"},{"$f":"IF(OR('Enrollment Form'!$CG475=\"\",'Enrollment Form'!$CG475=\"No\"),\"-\",IF(AND('Enrollment Form'!$CG475=\"Yes\",'Enrollment Form'!$CI475=\"\"),\"N\",\"Y\"))","v":"-"},{"$f":"IF('Enrollment Form'!B475<>\"Subscriber\",\"-\",IF(AND('Enrollment Form'!B475=\"Subscriber\",'Enrollment Form'!C475=\"Enroll\",'Enrollment Form'!AA475=\"\"),\"N\",\"Y\"))","v":"-"},{"$f":"IF(OR('Enrollment Form'!B475=\"Subscriber\",'Enrollment Form'!B475=\"\"),\"-\",IF('Enrollment Form'!BI475=\"\",\"N\",\"Y\"))","v":"-"},{"$f":"IF('Enrollment Form'!B475<>\"Subscriber\",\"-\",IF(AND('Enrollment Form'!B475=\"Subscriber\",'Enrollment Form'!G475=\"\"),\"N\",\"Y\"))","v":"-"},{"$f":"IF('Enrollment Form'!A475=\"\",\"\",IF('Enrollment Form'!B475=\"Subscriber\",\"-\",IF(AND('Enrollment Form'!B475<>\"Subscriber\",'Enrollment Form'!G475='Enrollment Form'!H475),\"N\",\"Y\")))","v":""},0]
[476,{"$f":"IF('Enrollment Form'!$A476<>\"\",\"Y\",\"N\")","v":"N"},{"$f":"IF(AND('Enrollment Form'!$B476=\"\",'Enrollment Form'!$C476<>\"\"),\"N\",IF($B469=\"N\",\"\",\"Y\"))","v":""},{"$f":"IF(OR($B469=\"N\",'Enrollment Form'!G476=\"\"),\"\",IF('Enrollment Form'!$B476<>\"Subscriber\",\"\",IF('Enrollment Form'!$G476='Enrollment Form'!$H476,\"Y\",\"N\")))","v":""},{"$f":"IF($B469=\"N\",\"\",IF(AND(COUNTIFS('Enrollment Form'!$H$11:$H$1000,'Enrollment Form'!$H476,'Enrollment Form'!$B$11:$B$1000,'Enrollment Form'!$B476)>1,'Enrollment Form'!$H476<>\"\"),\"N\",\"Y\"))","v":""},{"$f":"IF($B469=\"N\",\"\",IF(LEN('Enrollment Form'!$Y476)=0,\"\",IF(LEN('Enrollment Form'!$Y476)<>5,\"N\",\"Y\")))","v":""},{"$f":"IF($B469=\"N\",\"\",IF(LEN('Enrollment Form'!$AD476=0),\"\",IF(LEN('Enrollment Form'!$AD476)<>5,\"N\",\"Y\")))","v":""},{"$f":"IF($B469=\"N\",\"\",IF(LEN('Enrollment Form'!$BL476=0),\"\",IF(LEN('Enrollment Form'!$BL476)<>5,\"N\",\"Y\")))","v":""},{"$f":"IF($B469=\"N\",\"\",IF(LEN('Enrollment Form'!$AE476)=0,\"\",IF(LEN('Enrollment Form'!$AE476)<>10,\"N\",\"Y\")))","v":""},{"$f":"IF($B469=\"N\",\"\",IF(LEN('Enrollment Form'!$AF476)=0,\"\",IF(LEN('Enrollment Form'!$AF476)<>10,\"N\",\"Y\")))","v":""},{"$f":"IF('Enrollment Form'!$O476<>\"Graded\",\"-\",IF(AND('Enrollment Form'!$O476=\"Graded\",'Enrollment Form'!$AO476<>\"\"),\"Y\",\"N\"))","v":"-"},{"$f":"IF($B469=\"N\",\"\",IF(OR('Enrollment Form'!$B476<>\"Subscriber\",'Enrollment Form'!$C476=\"ROC\"),\"-\",IF(AND('Enrollment Form'!$B476=\"Subscriber\",'Enrollment Form'!$C476=\"Enroll\",'Enrollment Form'!$AJ476<>\"\"),\"Y\",\"N\")))","v":""},{"$f":"IF($B469=\"N\",\"\",IF(OR('Enrollment Form'!$B476<>\"Subscriber\",'Enrollment Form'!$C476=\"ROC\"),\"-\",IF(AND('Enrollment Form'!$B476=\"Subscriber\",'Enrollment Form'!$C476=\"Enroll\",'Enrollment Form'!$AK476<>\"\"),\"Y\",\"N\")))","v":""},{"$f":"IF($B469=\"N\",\"\",IF(OR('Enrollment Form'!$B476<>\"Subscriber\",'Enrollment Form'!$C476=\"ROC\"),\"-\",IF(AND('Enrollment Form'!$B476=\"Subscriber\",'Enrollment Form'!$C476=\"Enroll\",'Enrollment Form'!$AL476<>\"\"),\"Y\",\"N\")))","v":""},{"$f":"IF($B469=\"N\",\"\",IF(OR('Enrollment Form'!$B476<>\"Subscriber\",'Enrollment Form'!$C476=\"ROC\"),\"-\",IF(AND('Enrollment Form'!$B476=\"Subscriber\",'Enrollment Form'!$C476=\"Enroll\",'Enrollment Form'!$AM476<>\"\"),\"Y\",\"N\")))","v":""},{"$f":"IF($B469=\"N\",\"\",IF(OR('Enrollment Form'!$B476<>\"Subscriber\",'Enrollment Form'!$C476=\"ROC\"),\"-\",IF(AND('Enrollment Form'!$B476=\"Subscriber\",'Enrollment Form'!$C476=\"Enroll\",'Enrollment Form'!$AN476<>\"\"),\"Y\",\"N\")))","v":""},{"$f":"IF($B469=\"N\",\"\",IF(OR('Enrollment Form'!$B476<>\"Subscriber\",'Enrollment Form'!$C476=\"ROC\"),\"-\",IF(AND('Enrollment Form'!$B476=\"Subscriber\",'Enrollment Form'!$C476=\"Enroll\",'Enrollment Form'!$AP476<>\"\"),\"Y\",\"N\")))","v":""},{"$f":"IF($B469=\"N\",\"\",IF($Q469=\"-\",\"-\",IF(AND($Q469=\"Y\",'Enrollment Form'!$AP476=\"No\"),\"-\",IF(AND($Q469=\"Y\",'Enrollment Form'!$AP476=\"Yes\",'Enrollment Form'!$AQ476<>\"\"),\"Y\",\"N\"))))","v":""},{"$f":"IF($B469=\"N\",\"\",IF(OR('Enrollment Form'!$B476<>\"Subscriber\",'Enrollment Form'!$C476=\"ROC\"),\"-\",IF(AND('Enrollment Form'!$B476=\"Subscriber\",'Enrollment Form'!$C476=\"Enroll\",'Enrollment Form'!$CO476<>\"\"),\"Y\",\"N\")))","v":""},{"$f":"IF($B469=\"N\",\"\",IF($S469=\"-\",\"-\",IF(AND($S469=\"Y\",'Enrollment Form'!$CO476=\"No\"),\"-\",IF(AND($S469=\"Y\",'Enrollment Form'!$CO476=\"Yes\",'Enrollment Form'!$CP476<>\"\"),\"Y\",\"N\"))))","v":""},{"$f":"IF(OR('Enrollment Form'!$AV476=\"Yes\",'Enrollment Form'!$AV476=\"\"),\"-\",IF(AND('Enrollment Form'!$AV476=\"No\",ISERROR(FIND(\"HMO\",VLOOKUP('Enrollment Form'!G476,'Enrollment Form'!H$11:J$1000,3,FALSE),1))=FALSE,COUNTA('Enrollment Form'!$AW476:$AZ476)=4),\"Y\",\"N\"))","v":"-"},{"$f":"IF($B469=\"N\",\"\",IF('Enrollment Form'!$B476=\"Subscriber\",\"-\",IF(COUNTA('Enrollment Form'!$BE476,'Enrollment Form'!$BG476)=2,\"Y\",\"N\")))","v":""},{"$f":"IF($B469=\"N\",\"\",IF(OR('Enrollment Form'!$AU476=\"\",'Enrollment Form'!$AU476=\"No\"),\"-\",IF(AND('Enrollment Form'!$AU476=\"Yes\",COUNTA('Enrollment Form'!$CK476)=1),\"Y\",\"N\")))","v":""},{"$f":"IF(OR('Enrollment Form'!$CK476=\"\",'Enrollment Form'!$CK476=\"No\"),\"-\",IF(COUNTA('Enrollment Form'!$CM476:$CN476)=2,\"Y\",\"N\"))","v":"-"},{"$f":"IF($B469=\"N\",\"\",IF(COUNTIF('Enrollment Form'!$CZ476:$DO476,\"Other\")=COUNTA('Enrollment Form'!$DF476,'Enrollment Form'!$DA476,'Enrollment Form'!$DK476,'Enrollment Form'!$DP476),\"Y\",\"N\"))","v":""},{"$f":"IF($B469=\"N\",\"\",IF(OR('Enrollment Form'!B476<>\"Subscriber\",'Enrollment Form'!C476=\"ROC\",COUNTIF('Enrollment Form'!AS476:AT476,\"Yes\")>=1),\"-\",IF(AND('Enrollment Form'!C476=\"Enroll\",COUNTIF('Enrollment Form'!AS476:AT476,\"No\")=2,'Enrollment Form'!AU476=\"\"),\"N\",\"Y\")))","v":""},{"$f":"IF(OR(B469=\"N\",'Enrollment Form'!B476<>\"Subscriber\",'Enrollment Form'!C476=\"ROC\",'Enrollment Form'!O476<>\"Multiple of Salary\"),\"-\",IF(COUNTA('Enrollment Form'!T476:U476)<2,\"N\",\"Y\"))","v":"-"},{"$f":"IF(B469=\"N\",\"\",IF(OR('Enrollment Form'!C476=\"ROC\",'Enrollment Form'!B476<>\"Subscriber\",'Enrollment Form'!O476=\"Waive\",'Enrollment Form'!O476=\"\"),\"-\",IF('Enrollment Form'!P476=\"\",\"N\",\"Y\")))","v":""},{"$f":"IF($B469=\"N\",\"\",IF(AND('Enrollment Form'!$C476=\"ROC\",'Enrollment Form'!$DS476<>\"\"),\"Y\",IF(AND('Enrollment Form'!$C476=\"ROC\",'Enrollment Form'!$DS476=\"\"),\"N\",IF(AND('Enrollment Form'!$C476=\"Enroll\",'Enrollment Form'!$B476=\"Subscriber\",'Enrollment Form'!$CQ476=\"No\",'Enrollment Form'!$DS476=\"\"),\"N\",IF(AND('Enrollment Form'!$C476=\"Enroll\",'Enrollment Form'!$B476=\"Subscriber\",'Enrollment Form'!$CQ476=\"Yes\"),\"-\",\"Y\")))))","v":""},{"$f":"IF($B469=\"N\",\"\",IF(AND('Enrollment Form'!$C476=\"ROC\",'Enrollment Form'!$DT476<>\"\"),\"Y\",IF(AND('Enrollment Form'!$C476=\"ROC\",'Enrollment Form'!$DT476=\"\"),\"N\",IF(AND('Enrollment Form'!$C476=\"Enroll\",'Enrollment Form'!$B476=\"Subscriber\",'Enrollment Form'!$CQ476=\"No\",'Enrollment Form'!$DT476=\"\"),\"N\",IF(AND('Enrollment Form'!$C476=\"Enroll\",'Enrollment Form'!$B476=\"Subscriber\",'Enrollment Form'!$CQ476=\"Yes\"),\"-\",\"Y\")))))","v":""},{"$f":"IF('Enrollment Form'!AH476=\"\",\"\",IF(ISERROR(SEARCH(\".\",'Enrollment Form'!AH476,SEARCH(\"@\",'Enrollment Form'!AH476))),\"N\",\"Y\"))","v":""},{"$f":"IF(OR($B469=\"N\",'Enrollment Form'!$G476=\"\"),\"\",IF('Enrollment Form'!$B476<>\"Subscriber\",\"-\",IF(COUNTIF('Enrollment Form'!$AS476:$AT476,\"Yes\")=2,\"N\",\"Y\")))","v":""},{"$f":"IF(OR('Enrollment Form'!$CC476=\"\",'Enrollment Form'!$CC476=\"No\"),\"-\",IF(AND('Enrollment Form'!$CC476=\"Yes\",'Enrollment Form'!$CD476=\"\"),\"N\",\"Y\"))","v":"-"},{"$f":"IF(OR('Enrollment Form'!$CE476=\"\",'Enrollment Form'!$CE476=\"No\"),\"-\",IF(AND('Enrollment Form'!$CE476=\"Yes\",'Enrollment Form'!$CF476=\"\"),\"N\",\"Y\"))","v":"-"},{"$f":"IF(OR('Enrollment Form'!$CG476=\"\",'Enrollment Form'!$CG476=\"No\"),\"-\",IF(AND('Enrollment Form'!$CG476=\"Yes\",'Enrollment Form'!$CH476=\"\"),\"N\",\"Y\"))","v":"-"},{"$f":"IF(OR('Enrollment Form'!$CG476=\"\",'Enrollment Form'!$CG476=\"No\"),\"-\",IF(AND('Enrollment Form'!$CG476=\"Yes\",'Enrollment Form'!$CI476=\"\"),\"N\",\"Y\"))","v":"-"},{"$f":"IF('Enrollment Form'!B476<>\"Subscriber\",\"-\",IF(AND('Enrollment Form'!B476=\"Subscriber\",'Enrollment Form'!C476=\"Enroll\",'Enrollment Form'!AA476=\"\"),\"N\",\"Y\"))","v":"-"},{"$f":"IF(OR('Enrollment Form'!B476=\"Subscriber\",'Enrollment Form'!B476=\"\"),\"-\",IF('Enrollment Form'!BI476=\"\",\"N\",\"Y\"))","v":"-"},{"$f":"IF('Enrollment Form'!B476<>\"Subscriber\",\"-\",IF(AND('Enrollment Form'!B476=\"Subscriber\",'Enrollment Form'!G476=\"\"),\"N\",\"Y\"))","v":"-"},{"$f":"IF('Enrollment Form'!A476=\"\",\"\",IF('Enrollment Form'!B476=\"Subscriber\",\"-\",IF(AND('Enrollment Form'!B476<>\"Subscriber\",'Enrollment Form'!G476='Enrollment Form'!H476),\"N\",\"Y\")))","v":""},0]
[477,{"$f":"IF('Enrollment Form'!$A477<>\"\",\"Y\",\"N\")","v":"N"},{"$f":"IF(AND('Enrollment Form'!$B477=\"\",'Enrollment Form'!$C477<>\"\"),\"N\",IF($B470=\"N\",\"\",\"Y\"))","v":""},{"$f":"IF(OR($B470=\"N\",'Enrollment Form'!G477=\"\"),\"\",IF('Enrollment Form'!$B477<>\"Subscriber\",\"\",IF('Enrollment Form'!$G477='Enrollment Form'!$H477,\"Y\",\"N\")))","v":""},{"$f":"IF($B470=\"N\",\"\",IF(AND(COUNTIFS('Enrollment Form'!$H$11:$H$1000,'Enrollment Form'!$H477,'Enrollment Form'!$B$11:$B$1000,'Enrollment Form'!$B477)>1,'Enrollment Form'!$H477<>\"\"),\"N\",\"Y\"))","v":""},{"$f":"IF($B470=\"N\",\"\",IF(LEN('Enrollment Form'!$Y477)=0,\"\",IF(LEN('Enrollment Form'!$Y477)<>5,\"N\",\"Y\")))","v":""},{"$f":"IF($B470=\"N\",\"\",IF(LEN('Enrollment Form'!$AD477=0),\"\",IF(LEN('Enrollment Form'!$AD477)<>5,\"N\",\"Y\")))","v":""},{"$f":"IF($B470=\"N\",\"\",IF(LEN('Enrollment Form'!$BL477=0),\"\",IF(LEN('Enrollment Form'!$BL477)<>5,\"N\",\"Y\")))","v":""},{"$f":"IF($B470=\"N\",\"\",IF(LEN('Enrollment Form'!$AE477)=0,\"\",IF(LEN('Enrollment Form'!$AE477)<>10,\"N\",\"Y\")))","v":""},{"$f":"IF($B470=\"N\",\"\",IF(LEN('Enrollment Form'!$AF477)=0,\"\",IF(LEN('Enrollment Form'!$AF477)<>10,\"N\",\"Y\")))","v":""},{"$f":"IF('Enrollment Form'!$O477<>\"Graded\",\"-\",IF(AND('Enrollment Form'!$O477=\"Graded\",'Enrollment Form'!$AO477<>\"\"),\"Y\",\"N\"))","v":"-"},{"$f":"IF($B470=\"N\",\"\",IF(OR('Enrollment Form'!$B477<>\"Subscriber\",'Enrollment Form'!$C477=\"ROC\"),\"-\",IF(AND('Enrollment Form'!$B477=\"Subscriber\",'Enrollment Form'!$C477=\"Enroll\",'Enrollment Form'!$AJ477<>\"\"),\"Y\",\"N\")))","v":""},{"$f":"IF($B470=\"N\",\"\",IF(OR('Enrollment Form'!$B477<>\"Subscriber\",'Enrollment Form'!$C477=\"ROC\"),\"-\",IF(AND('Enrollment Form'!$B477=\"Subscriber\",'Enrollment Form'!$C477=\"Enroll\",'Enrollment Form'!$AK477<>\"\"),\"Y\",\"N\")))","v":""},{"$f":"IF($B470=\"N\",\"\",IF(OR('Enrollment Form'!$B477<>\"Subscriber\",'Enrollment Form'!$C477=\"ROC\"),\"-\",IF(AND('Enrollment Form'!$B477=\"Subscriber\",'Enrollment Form'!$C477=\"Enroll\",'Enrollment Form'!$AL477<>\"\"),\"Y\",\"N\")))","v":""},{"$f":"IF($B470=\"N\",\"\",IF(OR('Enrollment Form'!$B477<>\"Subscriber\",'Enrollment Form'!$C477=\"ROC\"),\"-\",IF(AND('Enrollment Form'!$B477=\"Subscriber\",'Enrollment Form'!$C477=\"Enroll\",'Enrollment Form'!$AM477<>\"\"),\"Y\",\"N\")))","v":""},{"$f":"IF($B470=\"N\",\"\",IF(OR('Enrollment Form'!$B477<>\"Subscriber\",'Enrollment Form'!$C477=\"ROC\"),\"-\",IF(AND('Enrollment Form'!$B477=\"Subscriber\",'Enrollment Form'!$C477=\"Enroll\",'Enrollment Form'!$AN477<>\"\"),\"Y\",\"N\")))","v":""},{"$f":"IF($B470=\"N\",\"\",IF(OR('Enrollment Form'!$B477<>\"Subscriber\",'Enrollment Form'!$C477=\"ROC\"),\"-\",IF(AND('Enrollment Form'!$B477=\"Subscriber\",'Enrollment Form'!$C477=\"Enroll\",'Enrollment Form'!$AP477<>\"\"),\"Y\",\"N\")))","v":""},{"$f":"IF($B470=\"N\",\"\",IF($Q470=\"-\",\"-\",IF(AND($Q470=\"Y\",'Enrollment Form'!$AP477=\"No\"),\"-\",IF(AND($Q470=\"Y\",'Enrollment Form'!$AP477=\"Yes\",'Enrollment Form'!$AQ477<>\"\"),\"Y\",\"N\"))))","v":""},{"$f":"IF($B470=\"N\",\"\",IF(OR('Enrollment Form'!$B477<>\"Subscriber\",'Enrollment Form'!$C477=\"ROC\"),\"-\",IF(AND('Enrollment Form'!$B477=\"Subscriber\",'Enrollment Form'!$C477=\"Enroll\",'Enrollment Form'!$CO477<>\"\"),\"Y\",\"N\")))","v":""},{"$f":"IF($B470=\"N\",\"\",IF($S470=\"-\",\"-\",IF(AND($S470=\"Y\",'Enrollment Form'!$CO477=\"No\"),\"-\",IF(AND($S470=\"Y\",'Enrollment Form'!$CO477=\"Yes\",'Enrollment Form'!$CP477<>\"\"),\"Y\",\"N\"))))","v":""},{"$f":"IF(OR('Enrollment Form'!$AV477=\"Yes\",'Enrollment Form'!$AV477=\"\"),\"-\",IF(AND('Enrollment Form'!$AV477=\"No\",ISERROR(FIND(\"HMO\",VLOOKUP('Enrollment Form'!G477,'Enrollment Form'!H$11:J$1000,3,FALSE),1))=FALSE,COUNTA('Enrollment Form'!$AW477:$AZ477)=4),\"Y\",\"N\"))","v":"-"},{"$f":"IF($B470=\"N\",\"\",IF('Enrollment Form'!$B477=\"Subscriber\",\"-\",IF(COUNTA('Enrollment Form'!$BE477,'Enrollment Form'!$BG477)=2,\"Y\",\"N\")))","v":""},{"$f":"IF($B470=\"N\",\"\",IF(OR('Enrollment Form'!$AU477=\"\",'Enrollment Form'!$AU477=\"No\"),\"-\",IF(AND('Enrollment Form'!$AU477=\"Yes\",COUNTA('Enrollment Form'!$CK477)=1),\"Y\",\"N\")))","v":""},{"$f":"IF(OR('Enrollment Form'!$CK477=\"\",'Enrollment Form'!$CK477=\"No\"),\"-\",IF(COUNTA('Enrollment Form'!$CM477:$CN477)=2,\"Y\",\"N\"))","v":"-"},{"$f":"IF($B470=\"N\",\"\",IF(COUNTIF('Enrollment Form'!$CZ477:$DO477,\"Other\")=COUNTA('Enrollment Form'!$DF477,'Enrollment Form'!$DA477,'Enrollment Form'!$DK477,'Enrollment Form'!$DP477),\"Y\",\"N\"))","v":""},{"$f":"IF($B470=\"N\",\"\",IF(OR('Enrollment Form'!B477<>\"Subscriber\",'Enrollment Form'!C477=\"ROC\",COUNTIF('Enrollment Form'!AS477:AT477,\"Yes\")>=1),\"-\",IF(AND('Enrollment Form'!C477=\"Enroll\",COUNTIF('Enrollment Form'!AS477:AT477,\"No\")=2,'Enrollment Form'!AU477=\"\"),\"N\",\"Y\")))","v":""},{"$f":"IF(OR(B470=\"N\",'Enrollment Form'!B477<>\"Subscriber\",'Enrollment Form'!C477=\"ROC\",'Enrollment Form'!O477<>\"Multiple of Salary\"),\"-\",IF(COUNTA('Enrollment Form'!T477:U477)<2,\"N\",\"Y\"))","v":"-"},{"$f":"IF(B470=\"N\",\"\",IF(OR('Enrollment Form'!C477=\"ROC\",'Enrollment Form'!B477<>\"Subscriber\",'Enrollment Form'!O477=\"Waive\",'Enrollment Form'!O477=\"\"),\"-\",IF('Enrollment Form'!P477=\"\",\"N\",\"Y\")))","v":""},{"$f":"IF($B470=\"N\",\"\",IF(AND('Enrollment Form'!$C477=\"ROC\",'Enrollment Form'!$DS477<>\"\"),\"Y\",IF(AND('Enrollment Form'!$C477=\"ROC\",'Enrollment Form'!$DS477=\"\"),\"N\",IF(AND('Enrollment Form'!$C477=\"Enroll\",'Enrollment Form'!$B477=\"Subscriber\",'Enrollment Form'!$CQ477=\"No\",'Enrollment Form'!$DS477=\"\"),\"N\",IF(AND('Enrollment Form'!$C477=\"Enroll\",'Enrollment Form'!$B477=\"Subscriber\",'Enrollment Form'!$CQ477=\"Yes\"),\"-\",\"Y\")))))","v":""},{"$f":"IF($B470=\"N\",\"\",IF(AND('Enrollment Form'!$C477=\"ROC\",'Enrollment Form'!$DT477<>\"\"),\"Y\",IF(AND('Enrollment Form'!$C477=\"ROC\",'Enrollment Form'!$DT477=\"\"),\"N\",IF(AND('Enrollment Form'!$C477=\"Enroll\",'Enrollment Form'!$B477=\"Subscriber\",'Enrollment Form'!$CQ477=\"No\",'Enrollment Form'!$DT477=\"\"),\"N\",IF(AND('Enrollment Form'!$C477=\"Enroll\",'Enrollment Form'!$B477=\"Subscriber\",'Enrollment Form'!$CQ477=\"Yes\"),\"-\",\"Y\")))))","v":""},{"$f":"IF('Enrollment Form'!AH477=\"\",\"\",IF(ISERROR(SEARCH(\".\",'Enrollment Form'!AH477,SEARCH(\"@\",'Enrollment Form'!AH477))),\"N\",\"Y\"))","v":""},{"$f":"IF(OR($B470=\"N\",'Enrollment Form'!$G477=\"\"),\"\",IF('Enrollment Form'!$B477<>\"Subscriber\",\"-\",IF(COUNTIF('Enrollment Form'!$AS477:$AT477,\"Yes\")=2,\"N\",\"Y\")))","v":""},{"$f":"IF(OR('Enrollment Form'!$CC477=\"\",'Enrollment Form'!$CC477=\"No\"),\"-\",IF(AND('Enrollment Form'!$CC477=\"Yes\",'Enrollment Form'!$CD477=\"\"),\"N\",\"Y\"))","v":"-"},{"$f":"IF(OR('Enrollment Form'!$CE477=\"\",'Enrollment Form'!$CE477=\"No\"),\"-\",IF(AND('Enrollment Form'!$CE477=\"Yes\",'Enrollment Form'!$CF477=\"\"),\"N\",\"Y\"))","v":"-"},{"$f":"IF(OR('Enrollment Form'!$CG477=\"\",'Enrollment Form'!$CG477=\"No\"),\"-\",IF(AND('Enrollment Form'!$CG477=\"Yes\",'Enrollment Form'!$CH477=\"\"),\"N\",\"Y\"))","v":"-"},{"$f":"IF(OR('Enrollment Form'!$CG477=\"\",'Enrollment Form'!$CG477=\"No\"),\"-\",IF(AND('Enrollment Form'!$CG477=\"Yes\",'Enrollment Form'!$CI477=\"\"),\"N\",\"Y\"))","v":"-"},{"$f":"IF('Enrollment Form'!B477<>\"Subscriber\",\"-\",IF(AND('Enrollment Form'!B477=\"Subscriber\",'Enrollment Form'!C477=\"Enroll\",'Enrollment Form'!AA477=\"\"),\"N\",\"Y\"))","v":"-"},{"$f":"IF(OR('Enrollment Form'!B477=\"Subscriber\",'Enrollment Form'!B477=\"\"),\"-\",IF('Enrollment Form'!BI477=\"\",\"N\",\"Y\"))","v":"-"},{"$f":"IF('Enrollment Form'!B477<>\"Subscriber\",\"-\",IF(AND('Enrollment Form'!B477=\"Subscriber\",'Enrollment Form'!G477=\"\"),\"N\",\"Y\"))","v":"-"},{"$f":"IF('Enrollment Form'!A477=\"\",\"\",IF('Enrollment Form'!B477=\"Subscriber\",\"-\",IF(AND('Enrollment Form'!B477<>\"Subscriber\",'Enrollment Form'!G477='Enrollment Form'!H477),\"N\",\"Y\")))","v":""},0]
[478,{"$f":"IF('Enrollment Form'!$A478<>\"\",\"Y\",\"N\")","v":"N"},{"$f":"IF(AND('Enrollment Form'!$B478=\"\",'Enrollment Form'!$C478<>\"\"),\"N\",IF($B471=\"N\",\"\",\"Y\"))","v":""},{"$f":"IF(OR($B471=\"N\",'Enrollment Form'!G478=\"\"),\"\",IF('Enrollment Form'!$B478<>\"Subscriber\",\"\",IF('Enrollment Form'!$G478='Enrollment Form'!$H478,\"Y\",\"N\")))","v":""},{"$f":"IF($B471=\"N\",\"\",IF(AND(COUNTIFS('Enrollment Form'!$H$11:$H$1000,'Enrollment Form'!$H478,'Enrollment Form'!$B$11:$B$1000,'Enrollment Form'!$B478)>1,'Enrollment Form'!$H478<>\"\"),\"N\",\"Y\"))","v":""},{"$f":"IF($B471=\"N\",\"\",IF(LEN('Enrollment Form'!$Y478)=0,\"\",IF(LEN('Enrollment Form'!$Y478)<>5,\"N\",\"Y\")))","v":""},{"$f":"IF($B471=\"N\",\"\",IF(LEN('Enrollment Form'!$AD478=0),\"\",IF(LEN('Enrollment Form'!$AD478)<>5,\"N\",\"Y\")))","v":""},{"$f":"IF($B471=\"N\",\"\",IF(LEN('Enrollment Form'!$BL478=0),\"\",IF(LEN('Enrollment Form'!$BL478)<>5,\"N\",\"Y\")))","v":""},{"$f":"IF($B471=\"N\",\"\",IF(LEN('Enrollment Form'!$AE478)=0,\"\",IF(LEN('Enrollment Form'!$AE478)<>10,\"N\",\"Y\")))","v":""},{"$f":"IF($B471=\"N\",\"\",IF(LEN('Enrollment Form'!$AF478)=0,\"\",IF(LEN('Enrollment Form'!$AF478)<>10,\"N\",\"Y\")))","v":""},{"$f":"IF('Enrollment Form'!$O478<>\"Graded\",\"-\",IF(AND('Enrollment Form'!$O478=\"Graded\",'Enrollment Form'!$AO478<>\"\"),\"Y\",\"N\"))","v":"-"},{"$f":"IF($B471=\"N\",\"\",IF(OR('Enrollment Form'!$B478<>\"Subscriber\",'Enrollment Form'!$C478=\"ROC\"),\"-\",IF(AND('Enrollment Form'!$B478=\"Subscriber\",'Enrollment Form'!$C478=\"Enroll\",'Enrollment Form'!$AJ478<>\"\"),\"Y\",\"N\")))","v":""},{"$f":"IF($B471=\"N\",\"\",IF(OR('Enrollment Form'!$B478<>\"Subscriber\",'Enrollment Form'!$C478=\"ROC\"),\"-\",IF(AND('Enrollment Form'!$B478=\"Subscriber\",'Enrollment Form'!$C478=\"Enroll\",'Enrollment Form'!$AK478<>\"\"),\"Y\",\"N\")))","v":""},{"$f":"IF($B471=\"N\",\"\",IF(OR('Enrollment Form'!$B478<>\"Subscriber\",'Enrollment Form'!$C478=\"ROC\"),\"-\",IF(AND('Enrollment Form'!$B478=\"Subscriber\",'Enrollment Form'!$C478=\"Enroll\",'Enrollment Form'!$AL478<>\"\"),\"Y\",\"N\")))","v":""},{"$f":"IF($B471=\"N\",\"\",IF(OR('Enrollment Form'!$B478<>\"Subscriber\",'Enrollment Form'!$C478=\"ROC\"),\"-\",IF(AND('Enrollment Form'!$B478=\"Subscriber\",'Enrollment Form'!$C478=\"Enroll\",'Enrollment Form'!$AM478<>\"\"),\"Y\",\"N\")))","v":""},{"$f":"IF($B471=\"N\",\"\",IF(OR('Enrollment Form'!$B478<>\"Subscriber\",'Enrollment Form'!$C478=\"ROC\"),\"-\",IF(AND('Enrollment Form'!$B478=\"Subscriber\",'Enrollment Form'!$C478=\"Enroll\",'Enrollment Form'!$AN478<>\"\"),\"Y\",\"N\")))","v":""},{"$f":"IF($B471=\"N\",\"\",IF(OR('Enrollment Form'!$B478<>\"Subscriber\",'Enrollment Form'!$C478=\"ROC\"),\"-\",IF(AND('Enrollment Form'!$B478=\"Subscriber\",'Enrollment Form'!$C478=\"Enroll\",'Enrollment Form'!$AP478<>\"\"),\"Y\",\"N\")))","v":""},{"$f":"IF($B471=\"N\",\"\",IF($Q471=\"-\",\"-\",IF(AND($Q471=\"Y\",'Enrollment Form'!$AP478=\"No\"),\"-\",IF(AND($Q471=\"Y\",'Enrollment Form'!$AP478=\"Yes\",'Enrollment Form'!$AQ478<>\"\"),\"Y\",\"N\"))))","v":""},{"$f":"IF($B471=\"N\",\"\",IF(OR('Enrollment Form'!$B478<>\"Subscriber\",'Enrollment Form'!$C478=\"ROC\"),\"-\",IF(AND('Enrollment Form'!$B478=\"Subscriber\",'Enrollment Form'!$C478=\"Enroll\",'Enrollment Form'!$CO478<>\"\"),\"Y\",\"N\")))","v":""},{"$f":"IF($B471=\"N\",\"\",IF($S471=\"-\",\"-\",IF(AND($S471=\"Y\",'Enrollment Form'!$CO478=\"No\"),\"-\",IF(AND($S471=\"Y\",'Enrollment Form'!$CO478=\"Yes\",'Enrollment Form'!$CP478<>\"\"),\"Y\",\"N\"))))","v":""},{"$f":"IF(OR('Enrollment Form'!$AV478=\"Yes\",'Enrollment Form'!$AV478=\"\"),\"-\",IF(AND('Enrollment Form'!$AV478=\"No\",ISERROR(FIND(\"HMO\",VLOOKUP('Enrollment Form'!G478,'Enrollment Form'!H$11:J$1000,3,FALSE),1))=FALSE,COUNTA('Enrollment Form'!$AW478:$AZ478)=4),\"Y\",\"N\"))","v":"-"},{"$f":"IF($B471=\"N\",\"\",IF('Enrollment Form'!$B478=\"Subscriber\",\"-\",IF(COUNTA('Enrollment Form'!$BE478,'Enrollment Form'!$BG478)=2,\"Y\",\"N\")))","v":""},{"$f":"IF($B471=\"N\",\"\",IF(OR('Enrollment Form'!$AU478=\"\",'Enrollment Form'!$AU478=\"No\"),\"-\",IF(AND('Enrollment Form'!$AU478=\"Yes\",COUNTA('Enrollment Form'!$CK478)=1),\"Y\",\"N\")))","v":""},{"$f":"IF(OR('Enrollment Form'!$CK478=\"\",'Enrollment Form'!$CK478=\"No\"),\"-\",IF(COUNTA('Enrollment Form'!$CM478:$CN478)=2,\"Y\",\"N\"))","v":"-"},{"$f":"IF($B471=\"N\",\"\",IF(COUNTIF('Enrollment Form'!$CZ478:$DO478,\"Other\")=COUNTA('Enrollment Form'!$DF478,'Enrollment Form'!$DA478,'Enrollment Form'!$DK478,'Enrollment Form'!$DP478),\"Y\",\"N\"))","v":""},{"$f":"IF($B471=\"N\",\"\",IF(OR('Enrollment Form'!B478<>\"Subscriber\",'Enrollment Form'!C478=\"ROC\",COUNTIF('Enrollment Form'!AS478:AT478,\"Yes\")>=1),\"-\",IF(AND('Enrollment Form'!C478=\"Enroll\",COUNTIF('Enrollment Form'!AS478:AT478,\"No\")=2,'Enrollment Form'!AU478=\"\"),\"N\",\"Y\")))","v":""},{"$f":"IF(OR(B471=\"N\",'Enrollment Form'!B478<>\"Subscriber\",'Enrollment Form'!C478=\"ROC\",'Enrollment Form'!O478<>\"Multiple of Salary\"),\"-\",IF(COUNTA('Enrollment Form'!T478:U478)<2,\"N\",\"Y\"))","v":"-"},{"$f":"IF(B471=\"N\",\"\",IF(OR('Enrollment Form'!C478=\"ROC\",'Enrollment Form'!B478<>\"Subscriber\",'Enrollment Form'!O478=\"Waive\",'Enrollment Form'!O478=\"\"),\"-\",IF('Enrollment Form'!P478=\"\",\"N\",\"Y\")))","v":""},{"$f":"IF($B471=\"N\",\"\",IF(AND('Enrollment Form'!$C478=\"ROC\",'Enrollment Form'!$DS478<>\"\"),\"Y\",IF(AND('Enrollment Form'!$C478=\"ROC\",'Enrollment Form'!$DS478=\"\"),\"N\",IF(AND('Enrollment Form'!$C478=\"Enroll\",'Enrollment Form'!$B478=\"Subscriber\",'Enrollment Form'!$CQ478=\"No\",'Enrollment Form'!$DS478=\"\"),\"N\",IF(AND('Enrollment Form'!$C478=\"Enroll\",'Enrollment Form'!$B478=\"Subscriber\",'Enrollment Form'!$CQ478=\"Yes\"),\"-\",\"Y\")))))","v":""},{"$f":"IF($B471=\"N\",\"\",IF(AND('Enrollment Form'!$C478=\"ROC\",'Enrollment Form'!$DT478<>\"\"),\"Y\",IF(AND('Enrollment Form'!$C478=\"ROC\",'Enrollment Form'!$DT478=\"\"),\"N\",IF(AND('Enrollment Form'!$C478=\"Enroll\",'Enrollment Form'!$B478=\"Subscriber\",'Enrollment Form'!$CQ478=\"No\",'Enrollment Form'!$DT478=\"\"),\"N\",IF(AND('Enrollment Form'!$C478=\"Enroll\",'Enrollment Form'!$B478=\"Subscriber\",'Enrollment Form'!$CQ478=\"Yes\"),\"-\",\"Y\")))))","v":""},{"$f":"IF('Enrollment Form'!AH478=\"\",\"\",IF(ISERROR(SEARCH(\".\",'Enrollment Form'!AH478,SEARCH(\"@\",'Enrollment Form'!AH478))),\"N\",\"Y\"))","v":""},{"$f":"IF(OR($B471=\"N\",'Enrollment Form'!$G478=\"\"),\"\",IF('Enrollment Form'!$B478<>\"Subscriber\",\"-\",IF(COUNTIF('Enrollment Form'!$AS478:$AT478,\"Yes\")=2,\"N\",\"Y\")))","v":""},{"$f":"IF(OR('Enrollment Form'!$CC478=\"\",'Enrollment Form'!$CC478=\"No\"),\"-\",IF(AND('Enrollment Form'!$CC478=\"Yes\",'Enrollment Form'!$CD478=\"\"),\"N\",\"Y\"))","v":"-"},{"$f":"IF(OR('Enrollment Form'!$CE478=\"\",'Enrollment Form'!$CE478=\"No\"),\"-\",IF(AND('Enrollment Form'!$CE478=\"Yes\",'Enrollment Form'!$CF478=\"\"),\"N\",\"Y\"))","v":"-"},{"$f":"IF(OR('Enrollment Form'!$CG478=\"\",'Enrollment Form'!$CG478=\"No\"),\"-\",IF(AND('Enrollment Form'!$CG478=\"Yes\",'Enrollment Form'!$CH478=\"\"),\"N\",\"Y\"))","v":"-"},{"$f":"IF(OR('Enrollment Form'!$CG478=\"\",'Enrollment Form'!$CG478=\"No\"),\"-\",IF(AND('Enrollment Form'!$CG478=\"Yes\",'Enrollment Form'!$CI478=\"\"),\"N\",\"Y\"))","v":"-"},{"$f":"IF('Enrollment Form'!B478<>\"Subscriber\",\"-\",IF(AND('Enrollment Form'!B478=\"Subscriber\",'Enrollment Form'!C478=\"Enroll\",'Enrollment Form'!AA478=\"\"),\"N\",\"Y\"))","v":"-"},{"$f":"IF(OR('Enrollment Form'!B478=\"Subscriber\",'Enrollment Form'!B478=\"\"),\"-\",IF('Enrollment Form'!BI478=\"\",\"N\",\"Y\"))","v":"-"},{"$f":"IF('Enrollment Form'!B478<>\"Subscriber\",\"-\",IF(AND('Enrollment Form'!B478=\"Subscriber\",'Enrollment Form'!G478=\"\"),\"N\",\"Y\"))","v":"-"},{"$f":"IF('Enrollment Form'!A478=\"\",\"\",IF('Enrollment Form'!B478=\"Subscriber\",\"-\",IF(AND('Enrollment Form'!B478<>\"Subscriber\",'Enrollment Form'!G478='Enrollment Form'!H478),\"N\",\"Y\")))","v":""},0]
[479,{"$f":"IF('Enrollment Form'!$A479<>\"\",\"Y\",\"N\")","v":"N"},{"$f":"IF(AND('Enrollment Form'!$B479=\"\",'Enrollment Form'!$C479<>\"\"),\"N\",IF($B472=\"N\",\"\",\"Y\"))","v":""},{"$f":"IF(OR($B472=\"N\",'Enrollment Form'!G479=\"\"),\"\",IF('Enrollment Form'!$B479<>\"Subscriber\",\"\",IF('Enrollment Form'!$G479='Enrollment Form'!$H479,\"Y\",\"N\")))","v":""},{"$f":"IF($B472=\"N\",\"\",IF(AND(COUNTIFS('Enrollment Form'!$H$11:$H$1000,'Enrollment Form'!$H479,'Enrollment Form'!$B$11:$B$1000,'Enrollment Form'!$B479)>1,'Enrollment Form'!$H479<>\"\"),\"N\",\"Y\"))","v":""},{"$f":"IF($B472=\"N\",\"\",IF(LEN('Enrollment Form'!$Y479)=0,\"\",IF(LEN('Enrollment Form'!$Y479)<>5,\"N\",\"Y\")))","v":""},{"$f":"IF($B472=\"N\",\"\",IF(LEN('Enrollment Form'!$AD479=0),\"\",IF(LEN('Enrollment Form'!$AD479)<>5,\"N\",\"Y\")))","v":""},{"$f":"IF($B472=\"N\",\"\",IF(LEN('Enrollment Form'!$BL479=0),\"\",IF(LEN('Enrollment Form'!$BL479)<>5,\"N\",\"Y\")))","v":""},{"$f":"IF($B472=\"N\",\"\",IF(LEN('Enrollment Form'!$AE479)=0,\"\",IF(LEN('Enrollment Form'!$AE479)<>10,\"N\",\"Y\")))","v":""},{"$f":"IF($B472=\"N\",\"\",IF(LEN('Enrollment Form'!$AF479)=0,\"\",IF(LEN('Enrollment Form'!$AF479)<>10,\"N\",\"Y\")))","v":""},{"$f":"IF('Enrollment Form'!$O479<>\"Graded\",\"-\",IF(AND('Enrollment Form'!$O479=\"Graded\",'Enrollment Form'!$AO479<>\"\"),\"Y\",\"N\"))","v":"-"},{"$f":"IF($B472=\"N\",\"\",IF(OR('Enrollment Form'!$B479<>\"Subscriber\",'Enrollment Form'!$C479=\"ROC\"),\"-\",IF(AND('Enrollment Form'!$B479=\"Subscriber\",'Enrollment Form'!$C479=\"Enroll\",'Enrollment Form'!$AJ479<>\"\"),\"Y\",\"N\")))","v":""},{"$f":"IF($B472=\"N\",\"\",IF(OR('Enrollment Form'!$B479<>\"Subscriber\",'Enrollment Form'!$C479=\"ROC\"),\"-\",IF(AND('Enrollment Form'!$B479=\"Subscriber\",'Enrollment Form'!$C479=\"Enroll\",'Enrollment Form'!$AK479<>\"\"),\"Y\",\"N\")))","v":""},{"$f":"IF($B472=\"N\",\"\",IF(OR('Enrollment Form'!$B479<>\"Subscriber\",'Enrollment Form'!$C479=\"ROC\"),\"-\",IF(AND('Enrollment Form'!$B479=\"Subscriber\",'Enrollment Form'!$C479=\"Enroll\",'Enrollment Form'!$AL479<>\"\"),\"Y\",\"N\")))","v":""},{"$f":"IF($B472=\"N\",\"\",IF(OR('Enrollment Form'!$B479<>\"Subscriber\",'Enrollment Form'!$C479=\"ROC\"),\"-\",IF(AND('Enrollment Form'!$B479=\"Subscriber\",'Enrollment Form'!$C479=\"Enroll\",'Enrollment Form'!$AM479<>\"\"),\"Y\",\"N\")))","v":""},{"$f":"IF($B472=\"N\",\"\",IF(OR('Enrollment Form'!$B479<>\"Subscriber\",'Enrollment Form'!$C479=\"ROC\"),\"-\",IF(AND('Enrollment Form'!$B479=\"Subscriber\",'Enrollment Form'!$C479=\"Enroll\",'Enrollment Form'!$AN479<>\"\"),\"Y\",\"N\")))","v":""},{"$f":"IF($B472=\"N\",\"\",IF(OR('Enrollment Form'!$B479<>\"Subscriber\",'Enrollment Form'!$C479=\"ROC\"),\"-\",IF(AND('Enrollment Form'!$B479=\"Subscriber\",'Enrollment Form'!$C479=\"Enroll\",'Enrollment Form'!$AP479<>\"\"),\"Y\",\"N\")))","v":""},{"$f":"IF($B472=\"N\",\"\",IF($Q472=\"-\",\"-\",IF(AND($Q472=\"Y\",'Enrollment Form'!$AP479=\"No\"),\"-\",IF(AND($Q472=\"Y\",'Enrollment Form'!$AP479=\"Yes\",'Enrollment Form'!$AQ479<>\"\"),\"Y\",\"N\"))))","v":""},{"$f":"IF($B472=\"N\",\"\",IF(OR('Enrollment Form'!$B479<>\"Subscriber\",'Enrollment Form'!$C479=\"ROC\"),\"-\",IF(AND('Enrollment Form'!$B479=\"Subscriber\",'Enrollment Form'!$C479=\"Enroll\",'Enrollment Form'!$CO479<>\"\"),\"Y\",\"N\")))","v":""},{"$f":"IF($B472=\"N\",\"\",IF($S472=\"-\",\"-\",IF(AND($S472=\"Y\",'Enrollment Form'!$CO479=\"No\"),\"-\",IF(AND($S472=\"Y\",'Enrollment Form'!$CO479=\"Yes\",'Enrollment Form'!$CP479<>\"\"),\"Y\",\"N\"))))","v":""},{"$f":"IF(OR('Enrollment Form'!$AV479=\"Yes\",'Enrollment Form'!$AV479=\"\"),\"-\",IF(AND('Enrollment Form'!$AV479=\"No\",ISERROR(FIND(\"HMO\",VLOOKUP('Enrollment Form'!G479,'Enrollment Form'!H$11:J$1000,3,FALSE),1))=FALSE,COUNTA('Enrollment Form'!$AW479:$AZ479)=4),\"Y\",\"N\"))","v":"-"},{"$f":"IF($B472=\"N\",\"\",IF('Enrollment Form'!$B479=\"Subscriber\",\"-\",IF(COUNTA('Enrollment Form'!$BE479,'Enrollment Form'!$BG479)=2,\"Y\",\"N\")))","v":""},{"$f":"IF($B472=\"N\",\"\",IF(OR('Enrollment Form'!$AU479=\"\",'Enrollment Form'!$AU479=\"No\"),\"-\",IF(AND('Enrollment Form'!$AU479=\"Yes\",COUNTA('Enrollment Form'!$CK479)=1),\"Y\",\"N\")))","v":""},{"$f":"IF(OR('Enrollment Form'!$CK479=\"\",'Enrollment Form'!$CK479=\"No\"),\"-\",IF(COUNTA('Enrollment Form'!$CM479:$CN479)=2,\"Y\",\"N\"))","v":"-"},{"$f":"IF($B472=\"N\",\"\",IF(COUNTIF('Enrollment Form'!$CZ479:$DO479,\"Other\")=COUNTA('Enrollment Form'!$DF479,'Enrollment Form'!$DA479,'Enrollment Form'!$DK479,'Enrollment Form'!$DP479),\"Y\",\"N\"))","v":""},{"$f":"IF($B472=\"N\",\"\",IF(OR('Enrollment Form'!B479<>\"Subscriber\",'Enrollment Form'!C479=\"ROC\",COUNTIF('Enrollment Form'!AS479:AT479,\"Yes\")>=1),\"-\",IF(AND('Enrollment Form'!C479=\"Enroll\",COUNTIF('Enrollment Form'!AS479:AT479,\"No\")=2,'Enrollment Form'!AU479=\"\"),\"N\",\"Y\")))","v":""},{"$f":"IF(OR(B472=\"N\",'Enrollment Form'!B479<>\"Subscriber\",'Enrollment Form'!C479=\"ROC\",'Enrollment Form'!O479<>\"Multiple of Salary\"),\"-\",IF(COUNTA('Enrollment Form'!T479:U479)<2,\"N\",\"Y\"))","v":"-"},{"$f":"IF(B472=\"N\",\"\",IF(OR('Enrollment Form'!C479=\"ROC\",'Enrollment Form'!B479<>\"Subscriber\",'Enrollment Form'!O479=\"Waive\",'Enrollment Form'!O479=\"\"),\"-\",IF('Enrollment Form'!P479=\"\",\"N\",\"Y\")))","v":""},{"$f":"IF($B472=\"N\",\"\",IF(AND('Enrollment Form'!$C479=\"ROC\",'Enrollment Form'!$DS479<>\"\"),\"Y\",IF(AND('Enrollment Form'!$C479=\"ROC\",'Enrollment Form'!$DS479=\"\"),\"N\",IF(AND('Enrollment Form'!$C479=\"Enroll\",'Enrollment Form'!$B479=\"Subscriber\",'Enrollment Form'!$CQ479=\"No\",'Enrollment Form'!$DS479=\"\"),\"N\",IF(AND('Enrollment Form'!$C479=\"Enroll\",'Enrollment Form'!$B479=\"Subscriber\",'Enrollment Form'!$CQ479=\"Yes\"),\"-\",\"Y\")))))","v":""},{"$f":"IF($B472=\"N\",\"\",IF(AND('Enrollment Form'!$C479=\"ROC\",'Enrollment Form'!$DT479<>\"\"),\"Y\",IF(AND('Enrollment Form'!$C479=\"ROC\",'Enrollment Form'!$DT479=\"\"),\"N\",IF(AND('Enrollment Form'!$C479=\"Enroll\",'Enrollment Form'!$B479=\"Subscriber\",'Enrollment Form'!$CQ479=\"No\",'Enrollment Form'!$DT479=\"\"),\"N\",IF(AND('Enrollment Form'!$C479=\"Enroll\",'Enrollment Form'!$B479=\"Subscriber\",'Enrollment Form'!$CQ479=\"Yes\"),\"-\",\"Y\")))))","v":""},{"$f":"IF('Enrollment Form'!AH479=\"\",\"\",IF(ISERROR(SEARCH(\".\",'Enrollment Form'!AH479,SEARCH(\"@\",'Enrollment Form'!AH479))),\"N\",\"Y\"))","v":""},{"$f":"IF(OR($B472=\"N\",'Enrollment Form'!$G479=\"\"),\"\",IF('Enrollment Form'!$B479<>\"Subscriber\",\"-\",IF(COUNTIF('Enrollment Form'!$AS479:$AT479,\"Yes\")=2,\"N\",\"Y\")))","v":""},{"$f":"IF(OR('Enrollment Form'!$CC479=\"\",'Enrollment Form'!$CC479=\"No\"),\"-\",IF(AND('Enrollment Form'!$CC479=\"Yes\",'Enrollment Form'!$CD479=\"\"),\"N\",\"Y\"))","v":"-"},{"$f":"IF(OR('Enrollment Form'!$CE479=\"\",'Enrollment Form'!$CE479=\"No\"),\"-\",IF(AND('Enrollment Form'!$CE479=\"Yes\",'Enrollment Form'!$CF479=\"\"),\"N\",\"Y\"))","v":"-"},{"$f":"IF(OR('Enrollment Form'!$CG479=\"\",'Enrollment Form'!$CG479=\"No\"),\"-\",IF(AND('Enrollment Form'!$CG479=\"Yes\",'Enrollment Form'!$CH479=\"\"),\"N\",\"Y\"))","v":"-"},{"$f":"IF(OR('Enrollment Form'!$CG479=\"\",'Enrollment Form'!$CG479=\"No\"),\"-\",IF(AND('Enrollment Form'!$CG479=\"Yes\",'Enrollment Form'!$CI479=\"\"),\"N\",\"Y\"))","v":"-"},{"$f":"IF('Enrollment Form'!B479<>\"Subscriber\",\"-\",IF(AND('Enrollment Form'!B479=\"Subscriber\",'Enrollment Form'!C479=\"Enroll\",'Enrollment Form'!AA479=\"\"),\"N\",\"Y\"))","v":"-"},{"$f":"IF(OR('Enrollment Form'!B479=\"Subscriber\",'Enrollment Form'!B479=\"\"),\"-\",IF('Enrollment Form'!BI479=\"\",\"N\",\"Y\"))","v":"-"},{"$f":"IF('Enrollment Form'!B479<>\"Subscriber\",\"-\",IF(AND('Enrollment Form'!B479=\"Subscriber\",'Enrollment Form'!G479=\"\"),\"N\",\"Y\"))","v":"-"},{"$f":"IF('Enrollment Form'!A479=\"\",\"\",IF('Enrollment Form'!B479=\"Subscriber\",\"-\",IF(AND('Enrollment Form'!B479<>\"Subscriber\",'Enrollment Form'!G479='Enrollment Form'!H479),\"N\",\"Y\")))","v":""},0]
[480,{"$f":"IF('Enrollment Form'!$A480<>\"\",\"Y\",\"N\")","v":"N"},{"$f":"IF(AND('Enrollment Form'!$B480=\"\",'Enrollment Form'!$C480<>\"\"),\"N\",IF($B473=\"N\",\"\",\"Y\"))","v":""},{"$f":"IF(OR($B473=\"N\",'Enrollment Form'!G480=\"\"),\"\",IF('Enrollment Form'!$B480<>\"Subscriber\",\"\",IF('Enrollment Form'!$G480='Enrollment Form'!$H480,\"Y\",\"N\")))","v":""},{"$f":"IF($B473=\"N\",\"\",IF(AND(COUNTIFS('Enrollment Form'!$H$11:$H$1000,'Enrollment Form'!$H480,'Enrollment Form'!$B$11:$B$1000,'Enrollment Form'!$B480)>1,'Enrollment Form'!$H480<>\"\"),\"N\",\"Y\"))","v":""},{"$f":"IF($B473=\"N\",\"\",IF(LEN('Enrollment Form'!$Y480)=0,\"\",IF(LEN('Enrollment Form'!$Y480)<>5,\"N\",\"Y\")))","v":""},{"$f":"IF($B473=\"N\",\"\",IF(LEN('Enrollment Form'!$AD480=0),\"\",IF(LEN('Enrollment Form'!$AD480)<>5,\"N\",\"Y\")))","v":""},{"$f":"IF($B473=\"N\",\"\",IF(LEN('Enrollment Form'!$BL480=0),\"\",IF(LEN('Enrollment Form'!$BL480)<>5,\"N\",\"Y\")))","v":""},{"$f":"IF($B473=\"N\",\"\",IF(LEN('Enrollment Form'!$AE480)=0,\"\",IF(LEN('Enrollment Form'!$AE480)<>10,\"N\",\"Y\")))","v":""},{"$f":"IF($B473=\"N\",\"\",IF(LEN('Enrollment Form'!$AF480)=0,\"\",IF(LEN('Enrollment Form'!$AF480)<>10,\"N\",\"Y\")))","v":""},{"$f":"IF('Enrollment Form'!$O480<>\"Graded\",\"-\",IF(AND('Enrollment Form'!$O480=\"Graded\",'Enrollment Form'!$AO480<>\"\"),\"Y\",\"N\"))","v":"-"},{"$f":"IF($B473=\"N\",\"\",IF(OR('Enrollment Form'!$B480<>\"Subscriber\",'Enrollment Form'!$C480=\"ROC\"),\"-\",IF(AND('Enrollment Form'!$B480=\"Subscriber\",'Enrollment Form'!$C480=\"Enroll\",'Enrollment Form'!$AJ480<>\"\"),\"Y\",\"N\")))","v":""},{"$f":"IF($B473=\"N\",\"\",IF(OR('Enrollment Form'!$B480<>\"Subscriber\",'Enrollment Form'!$C480=\"ROC\"),\"-\",IF(AND('Enrollment Form'!$B480=\"Subscriber\",'Enrollment Form'!$C480=\"Enroll\",'Enrollment Form'!$AK480<>\"\"),\"Y\",\"N\")))","v":""},{"$f":"IF($B473=\"N\",\"\",IF(OR('Enrollment Form'!$B480<>\"Subscriber\",'Enrollment Form'!$C480=\"ROC\"),\"-\",IF(AND('Enrollment Form'!$B480=\"Subscriber\",'Enrollment Form'!$C480=\"Enroll\",'Enrollment Form'!$AL480<>\"\"),\"Y\",\"N\")))","v":""},{"$f":"IF($B473=\"N\",\"\",IF(OR('Enrollment Form'!$B480<>\"Subscriber\",'Enrollment Form'!$C480=\"ROC\"),\"-\",IF(AND('Enrollment Form'!$B480=\"Subscriber\",'Enrollment Form'!$C480=\"Enroll\",'Enrollment Form'!$AM480<>\"\"),\"Y\",\"N\")))","v":""},{"$f":"IF($B473=\"N\",\"\",IF(OR('Enrollment Form'!$B480<>\"Subscriber\",'Enrollment Form'!$C480=\"ROC\"),\"-\",IF(AND('Enrollment Form'!$B480=\"Subscriber\",'Enrollment Form'!$C480=\"Enroll\",'Enrollment Form'!$AN480<>\"\"),\"Y\",\"N\")))","v":""},{"$f":"IF($B473=\"N\",\"\",IF(OR('Enrollment Form'!$B480<>\"Subscriber\",'Enrollment Form'!$C480=\"ROC\"),\"-\",IF(AND('Enrollment Form'!$B480=\"Subscriber\",'Enrollment Form'!$C480=\"Enroll\",'Enrollment Form'!$AP480<>\"\"),\"Y\",\"N\")))","v":""},{"$f":"IF($B473=\"N\",\"\",IF($Q473=\"-\",\"-\",IF(AND($Q473=\"Y\",'Enrollment Form'!$AP480=\"No\"),\"-\",IF(AND($Q473=\"Y\",'Enrollment Form'!$AP480=\"Yes\",'Enrollment Form'!$AQ480<>\"\"),\"Y\",\"N\"))))","v":""},{"$f":"IF($B473=\"N\",\"\",IF(OR('Enrollment Form'!$B480<>\"Subscriber\",'Enrollment Form'!$C480=\"ROC\"),\"-\",IF(AND('Enrollment Form'!$B480=\"Subscriber\",'Enrollment Form'!$C480=\"Enroll\",'Enrollment Form'!$CO480<>\"\"),\"Y\",\"N\")))","v":""},{"$f":"IF($B473=\"N\",\"\",IF($S473=\"-\",\"-\",IF(AND($S473=\"Y\",'Enrollment Form'!$CO480=\"No\"),\"-\",IF(AND($S473=\"Y\",'Enrollment Form'!$CO480=\"Yes\",'Enrollment Form'!$CP480<>\"\"),\"Y\",\"N\"))))","v":""},{"$f":"IF(OR('Enrollment Form'!$AV480=\"Yes\",'Enrollment Form'!$AV480=\"\"),\"-\",IF(AND('Enrollment Form'!$AV480=\"No\",ISERROR(FIND(\"HMO\",VLOOKUP('Enrollment Form'!G480,'Enrollment Form'!H$11:J$1000,3,FALSE),1))=FALSE,COUNTA('Enrollment Form'!$AW480:$AZ480)=4),\"Y\",\"N\"))","v":"-"},{"$f":"IF($B473=\"N\",\"\",IF('Enrollment Form'!$B480=\"Subscriber\",\"-\",IF(COUNTA('Enrollment Form'!$BE480,'Enrollment Form'!$BG480)=2,\"Y\",\"N\")))","v":""},{"$f":"IF($B473=\"N\",\"\",IF(OR('Enrollment Form'!$AU480=\"\",'Enrollment Form'!$AU480=\"No\"),\"-\",IF(AND('Enrollment Form'!$AU480=\"Yes\",COUNTA('Enrollment Form'!$CK480)=1),\"Y\",\"N\")))","v":""},{"$f":"IF(OR('Enrollment Form'!$CK480=\"\",'Enrollment Form'!$CK480=\"No\"),\"-\",IF(COUNTA('Enrollment Form'!$CM480:$CN480)=2,\"Y\",\"N\"))","v":"-"},{"$f":"IF($B473=\"N\",\"\",IF(COUNTIF('Enrollment Form'!$CZ480:$DO480,\"Other\")=COUNTA('Enrollment Form'!$DF480,'Enrollment Form'!$DA480,'Enrollment Form'!$DK480,'Enrollment Form'!$DP480),\"Y\",\"N\"))","v":""},{"$f":"IF($B473=\"N\",\"\",IF(OR('Enrollment Form'!B480<>\"Subscriber\",'Enrollment Form'!C480=\"ROC\",COUNTIF('Enrollment Form'!AS480:AT480,\"Yes\")>=1),\"-\",IF(AND('Enrollment Form'!C480=\"Enroll\",COUNTIF('Enrollment Form'!AS480:AT480,\"No\")=2,'Enrollment Form'!AU480=\"\"),\"N\",\"Y\")))","v":""},{"$f":"IF(OR(B473=\"N\",'Enrollment Form'!B480<>\"Subscriber\",'Enrollment Form'!C480=\"ROC\",'Enrollment Form'!O480<>\"Multiple of Salary\"),\"-\",IF(COUNTA('Enrollment Form'!T480:U480)<2,\"N\",\"Y\"))","v":"-"},{"$f":"IF(B473=\"N\",\"\",IF(OR('Enrollment Form'!C480=\"ROC\",'Enrollment Form'!B480<>\"Subscriber\",'Enrollment Form'!O480=\"Waive\",'Enrollment Form'!O480=\"\"),\"-\",IF('Enrollment Form'!P480=\"\",\"N\",\"Y\")))","v":""},{"$f":"IF($B473=\"N\",\"\",IF(AND('Enrollment Form'!$C480=\"ROC\",'Enrollment Form'!$DS480<>\"\"),\"Y\",IF(AND('Enrollment Form'!$C480=\"ROC\",'Enrollment Form'!$DS480=\"\"),\"N\",IF(AND('Enrollment Form'!$C480=\"Enroll\",'Enrollment Form'!$B480=\"Subscriber\",'Enrollment Form'!$CQ480=\"No\",'Enrollment Form'!$DS480=\"\"),\"N\",IF(AND('Enrollment Form'!$C480=\"Enroll\",'Enrollment Form'!$B480=\"Subscriber\",'Enrollment Form'!$CQ480=\"Yes\"),\"-\",\"Y\")))))","v":""},{"$f":"IF($B473=\"N\",\"\",IF(AND('Enrollment Form'!$C480=\"ROC\",'Enrollment Form'!$DT480<>\"\"),\"Y\",IF(AND('Enrollment Form'!$C480=\"ROC\",'Enrollment Form'!$DT480=\"\"),\"N\",IF(AND('Enrollment Form'!$C480=\"Enroll\",'Enrollment Form'!$B480=\"Subscriber\",'Enrollment Form'!$CQ480=\"No\",'Enrollment Form'!$DT480=\"\"),\"N\",IF(AND('Enrollment Form'!$C480=\"Enroll\",'Enrollment Form'!$B480=\"Subscriber\",'Enrollment Form'!$CQ480=\"Yes\"),\"-\",\"Y\")))))","v":""},{"$f":"IF('Enrollment Form'!AH480=\"\",\"\",IF(ISERROR(SEARCH(\".\",'Enrollment Form'!AH480,SEARCH(\"@\",'Enrollment Form'!AH480))),\"N\",\"Y\"))","v":""},{"$f":"IF(OR($B473=\"N\",'Enrollment Form'!$G480=\"\"),\"\",IF('Enrollment Form'!$B480<>\"Subscriber\",\"-\",IF(COUNTIF('Enrollment Form'!$AS480:$AT480,\"Yes\")=2,\"N\",\"Y\")))","v":""},{"$f":"IF(OR('Enrollment Form'!$CC480=\"\",'Enrollment Form'!$CC480=\"No\"),\"-\",IF(AND('Enrollment Form'!$CC480=\"Yes\",'Enrollment Form'!$CD480=\"\"),\"N\",\"Y\"))","v":"-"},{"$f":"IF(OR('Enrollment Form'!$CE480=\"\",'Enrollment Form'!$CE480=\"No\"),\"-\",IF(AND('Enrollment Form'!$CE480=\"Yes\",'Enrollment Form'!$CF480=\"\"),\"N\",\"Y\"))","v":"-"},{"$f":"IF(OR('Enrollment Form'!$CG480=\"\",'Enrollment Form'!$CG480=\"No\"),\"-\",IF(AND('Enrollment Form'!$CG480=\"Yes\",'Enrollment Form'!$CH480=\"\"),\"N\",\"Y\"))","v":"-"},{"$f":"IF(OR('Enrollment Form'!$CG480=\"\",'Enrollment Form'!$CG480=\"No\"),\"-\",IF(AND('Enrollment Form'!$CG480=\"Yes\",'Enrollment Form'!$CI480=\"\"),\"N\",\"Y\"))","v":"-"},{"$f":"IF('Enrollment Form'!B480<>\"Subscriber\",\"-\",IF(AND('Enrollment Form'!B480=\"Subscriber\",'Enrollment Form'!C480=\"Enroll\",'Enrollment Form'!AA480=\"\"),\"N\",\"Y\"))","v":"-"},{"$f":"IF(OR('Enrollment Form'!B480=\"Subscriber\",'Enrollment Form'!B480=\"\"),\"-\",IF('Enrollment Form'!BI480=\"\",\"N\",\"Y\"))","v":"-"},{"$f":"IF('Enrollment Form'!B480<>\"Subscriber\",\"-\",IF(AND('Enrollment Form'!B480=\"Subscriber\",'Enrollment Form'!G480=\"\"),\"N\",\"Y\"))","v":"-"},{"$f":"IF('Enrollment Form'!A480=\"\",\"\",IF('Enrollment Form'!B480=\"Subscriber\",\"-\",IF(AND('Enrollment Form'!B480<>\"Subscriber\",'Enrollment Form'!G480='Enrollment Form'!H480),\"N\",\"Y\")))","v":""},0]
[481,{"$f":"IF('Enrollment Form'!$A481<>\"\",\"Y\",\"N\")","v":"N"},{"$f":"IF(AND('Enrollment Form'!$B481=\"\",'Enrollment Form'!$C481<>\"\"),\"N\",IF($B474=\"N\",\"\",\"Y\"))","v":""},{"$f":"IF(OR($B474=\"N\",'Enrollment Form'!G481=\"\"),\"\",IF('Enrollment Form'!$B481<>\"Subscriber\",\"\",IF('Enrollment Form'!$G481='Enrollment Form'!$H481,\"Y\",\"N\")))","v":""},{"$f":"IF($B474=\"N\",\"\",IF(AND(COUNTIFS('Enrollment Form'!$H$11:$H$1000,'Enrollment Form'!$H481,'Enrollment Form'!$B$11:$B$1000,'Enrollment Form'!$B481)>1,'Enrollment Form'!$H481<>\"\"),\"N\",\"Y\"))","v":""},{"$f":"IF($B474=\"N\",\"\",IF(LEN('Enrollment Form'!$Y481)=0,\"\",IF(LEN('Enrollment Form'!$Y481)<>5,\"N\",\"Y\")))","v":""},{"$f":"IF($B474=\"N\",\"\",IF(LEN('Enrollment Form'!$AD481=0),\"\",IF(LEN('Enrollment Form'!$AD481)<>5,\"N\",\"Y\")))","v":""},{"$f":"IF($B474=\"N\",\"\",IF(LEN('Enrollment Form'!$BL481=0),\"\",IF(LEN('Enrollment Form'!$BL481)<>5,\"N\",\"Y\")))","v":""},{"$f":"IF($B474=\"N\",\"\",IF(LEN('Enrollment Form'!$AE481)=0,\"\",IF(LEN('Enrollment Form'!$AE481)<>10,\"N\",\"Y\")))","v":""},{"$f":"IF($B474=\"N\",\"\",IF(LEN('Enrollment Form'!$AF481)=0,\"\",IF(LEN('Enrollment Form'!$AF481)<>10,\"N\",\"Y\")))","v":""},{"$f":"IF('Enrollment Form'!$O481<>\"Graded\",\"-\",IF(AND('Enrollment Form'!$O481=\"Graded\",'Enrollment Form'!$AO481<>\"\"),\"Y\",\"N\"))","v":"-"},{"$f":"IF($B474=\"N\",\"\",IF(OR('Enrollment Form'!$B481<>\"Subscriber\",'Enrollment Form'!$C481=\"ROC\"),\"-\",IF(AND('Enrollment Form'!$B481=\"Subscriber\",'Enrollment Form'!$C481=\"Enroll\",'Enrollment Form'!$AJ481<>\"\"),\"Y\",\"N\")))","v":""},{"$f":"IF($B474=\"N\",\"\",IF(OR('Enrollment Form'!$B481<>\"Subscriber\",'Enrollment Form'!$C481=\"ROC\"),\"-\",IF(AND('Enrollment Form'!$B481=\"Subscriber\",'Enrollment Form'!$C481=\"Enroll\",'Enrollment Form'!$AK481<>\"\"),\"Y\",\"N\")))","v":""},{"$f":"IF($B474=\"N\",\"\",IF(OR('Enrollment Form'!$B481<>\"Subscriber\",'Enrollment Form'!$C481=\"ROC\"),\"-\",IF(AND('Enrollment Form'!$B481=\"Subscriber\",'Enrollment Form'!$C481=\"Enroll\",'Enrollment Form'!$AL481<>\"\"),\"Y\",\"N\")))","v":""},{"$f":"IF($B474=\"N\",\"\",IF(OR('Enrollment Form'!$B481<>\"Subscriber\",'Enrollment Form'!$C481=\"ROC\"),\"-\",IF(AND('Enrollment Form'!$B481=\"Subscriber\",'Enrollment Form'!$C481=\"Enroll\",'Enrollment Form'!$AM481<>\"\"),\"Y\",\"N\")))","v":""},{"$f":"IF($B474=\"N\",\"\",IF(OR('Enrollment Form'!$B481<>\"Subscriber\",'Enrollment Form'!$C481=\"ROC\"),\"-\",IF(AND('Enrollment Form'!$B481=\"Subscriber\",'Enrollment Form'!$C481=\"Enroll\",'Enrollment Form'!$AN481<>\"\"),\"Y\",\"N\")))","v":""},{"$f":"IF($B474=\"N\",\"\",IF(OR('Enrollment Form'!$B481<>\"Subscriber\",'Enrollment Form'!$C481=\"ROC\"),\"-\",IF(AND('Enrollment Form'!$B481=\"Subscriber\",'Enrollment Form'!$C481=\"Enroll\",'Enrollment Form'!$AP481<>\"\"),\"Y\",\"N\")))","v":""},{"$f":"IF($B474=\"N\",\"\",IF($Q474=\"-\",\"-\",IF(AND($Q474=\"Y\",'Enrollment Form'!$AP481=\"No\"),\"-\",IF(AND($Q474=\"Y\",'Enrollment Form'!$AP481=\"Yes\",'Enrollment Form'!$AQ481<>\"\"),\"Y\",\"N\"))))","v":""},{"$f":"IF($B474=\"N\",\"\",IF(OR('Enrollment Form'!$B481<>\"Subscriber\",'Enrollment Form'!$C481=\"ROC\"),\"-\",IF(AND('Enrollment Form'!$B481=\"Subscriber\",'Enrollment Form'!$C481=\"Enroll\",'Enrollment Form'!$CO481<>\"\"),\"Y\",\"N\")))","v":""},{"$f":"IF($B474=\"N\",\"\",IF($S474=\"-\",\"-\",IF(AND($S474=\"Y\",'Enrollment Form'!$CO481=\"No\"),\"-\",IF(AND($S474=\"Y\",'Enrollment Form'!$CO481=\"Yes\",'Enrollment Form'!$CP481<>\"\"),\"Y\",\"N\"))))","v":""},{"$f":"IF(OR('Enrollment Form'!$AV481=\"Yes\",'Enrollment Form'!$AV481=\"\"),\"-\",IF(AND('Enrollment Form'!$AV481=\"No\",ISERROR(FIND(\"HMO\",VLOOKUP('Enrollment Form'!G481,'Enrollment Form'!H$11:J$1000,3,FALSE),1))=FALSE,COUNTA('Enrollment Form'!$AW481:$AZ481)=4),\"Y\",\"N\"))","v":"-"},{"$f":"IF($B474=\"N\",\"\",IF('Enrollment Form'!$B481=\"Subscriber\",\"-\",IF(COUNTA('Enrollment Form'!$BE481,'Enrollment Form'!$BG481)=2,\"Y\",\"N\")))","v":""},{"$f":"IF($B474=\"N\",\"\",IF(OR('Enrollment Form'!$AU481=\"\",'Enrollment Form'!$AU481=\"No\"),\"-\",IF(AND('Enrollment Form'!$AU481=\"Yes\",COUNTA('Enrollment Form'!$CK481)=1),\"Y\",\"N\")))","v":""},{"$f":"IF(OR('Enrollment Form'!$CK481=\"\",'Enrollment Form'!$CK481=\"No\"),\"-\",IF(COUNTA('Enrollment Form'!$CM481:$CN481)=2,\"Y\",\"N\"))","v":"-"},{"$f":"IF($B474=\"N\",\"\",IF(COUNTIF('Enrollment Form'!$CZ481:$DO481,\"Other\")=COUNTA('Enrollment Form'!$DF481,'Enrollment Form'!$DA481,'Enrollment Form'!$DK481,'Enrollment Form'!$DP481),\"Y\",\"N\"))","v":""},{"$f":"IF($B474=\"N\",\"\",IF(OR('Enrollment Form'!B481<>\"Subscriber\",'Enrollment Form'!C481=\"ROC\",COUNTIF('Enrollment Form'!AS481:AT481,\"Yes\")>=1),\"-\",IF(AND('Enrollment Form'!C481=\"Enroll\",COUNTIF('Enrollment Form'!AS481:AT481,\"No\")=2,'Enrollment Form'!AU481=\"\"),\"N\",\"Y\")))","v":""},{"$f":"IF(OR(B474=\"N\",'Enrollment Form'!B481<>\"Subscriber\",'Enrollment Form'!C481=\"ROC\",'Enrollment Form'!O481<>\"Multiple of Salary\"),\"-\",IF(COUNTA('Enrollment Form'!T481:U481)<2,\"N\",\"Y\"))","v":"-"},{"$f":"IF(B474=\"N\",\"\",IF(OR('Enrollment Form'!C481=\"ROC\",'Enrollment Form'!B481<>\"Subscriber\",'Enrollment Form'!O481=\"Waive\",'Enrollment Form'!O481=\"\"),\"-\",IF('Enrollment Form'!P481=\"\",\"N\",\"Y\")))","v":""},{"$f":"IF($B474=\"N\",\"\",IF(AND('Enrollment Form'!$C481=\"ROC\",'Enrollment Form'!$DS481<>\"\"),\"Y\",IF(AND('Enrollment Form'!$C481=\"ROC\",'Enrollment Form'!$DS481=\"\"),\"N\",IF(AND('Enrollment Form'!$C481=\"Enroll\",'Enrollment Form'!$B481=\"Subscriber\",'Enrollment Form'!$CQ481=\"No\",'Enrollment Form'!$DS481=\"\"),\"N\",IF(AND('Enrollment Form'!$C481=\"Enroll\",'Enrollment Form'!$B481=\"Subscriber\",'Enrollment Form'!$CQ481=\"Yes\"),\"-\",\"Y\")))))","v":""},{"$f":"IF($B474=\"N\",\"\",IF(AND('Enrollment Form'!$C481=\"ROC\",'Enrollment Form'!$DT481<>\"\"),\"Y\",IF(AND('Enrollment Form'!$C481=\"ROC\",'Enrollment Form'!$DT481=\"\"),\"N\",IF(AND('Enrollment Form'!$C481=\"Enroll\",'Enrollment Form'!$B481=\"Subscriber\",'Enrollment Form'!$CQ481=\"No\",'Enrollment Form'!$DT481=\"\"),\"N\",IF(AND('Enrollment Form'!$C481=\"Enroll\",'Enrollment Form'!$B481=\"Subscriber\",'Enrollment Form'!$CQ481=\"Yes\"),\"-\",\"Y\")))))","v":""},{"$f":"IF('Enrollment Form'!AH481=\"\",\"\",IF(ISERROR(SEARCH(\".\",'Enrollment Form'!AH481,SEARCH(\"@\",'Enrollment Form'!AH481))),\"N\",\"Y\"))","v":""},{"$f":"IF(OR($B474=\"N\",'Enrollment Form'!$G481=\"\"),\"\",IF('Enrollment Form'!$B481<>\"Subscriber\",\"-\",IF(COUNTIF('Enrollment Form'!$AS481:$AT481,\"Yes\")=2,\"N\",\"Y\")))","v":""},{"$f":"IF(OR('Enrollment Form'!$CC481=\"\",'Enrollment Form'!$CC481=\"No\"),\"-\",IF(AND('Enrollment Form'!$CC481=\"Yes\",'Enrollment Form'!$CD481=\"\"),\"N\",\"Y\"))","v":"-"},{"$f":"IF(OR('Enrollment Form'!$CE481=\"\",'Enrollment Form'!$CE481=\"No\"),\"-\",IF(AND('Enrollment Form'!$CE481=\"Yes\",'Enrollment Form'!$CF481=\"\"),\"N\",\"Y\"))","v":"-"},{"$f":"IF(OR('Enrollment Form'!$CG481=\"\",'Enrollment Form'!$CG481=\"No\"),\"-\",IF(AND('Enrollment Form'!$CG481=\"Yes\",'Enrollment Form'!$CH481=\"\"),\"N\",\"Y\"))","v":"-"},{"$f":"IF(OR('Enrollment Form'!$CG481=\"\",'Enrollment Form'!$CG481=\"No\"),\"-\",IF(AND('Enrollment Form'!$CG481=\"Yes\",'Enrollment Form'!$CI481=\"\"),\"N\",\"Y\"))","v":"-"},{"$f":"IF('Enrollment Form'!B481<>\"Subscriber\",\"-\",IF(AND('Enrollment Form'!B481=\"Subscriber\",'Enrollment Form'!C481=\"Enroll\",'Enrollment Form'!AA481=\"\"),\"N\",\"Y\"))","v":"-"},{"$f":"IF(OR('Enrollment Form'!B481=\"Subscriber\",'Enrollment Form'!B481=\"\"),\"-\",IF('Enrollment Form'!BI481=\"\",\"N\",\"Y\"))","v":"-"},{"$f":"IF('Enrollment Form'!B481<>\"Subscriber\",\"-\",IF(AND('Enrollment Form'!B481=\"Subscriber\",'Enrollment Form'!G481=\"\"),\"N\",\"Y\"))","v":"-"},{"$f":"IF('Enrollment Form'!A481=\"\",\"\",IF('Enrollment Form'!B481=\"Subscriber\",\"-\",IF(AND('Enrollment Form'!B481<>\"Subscriber\",'Enrollment Form'!G481='Enrollment Form'!H481),\"N\",\"Y\")))","v":""},0]
[482,{"$f":"IF('Enrollment Form'!$A482<>\"\",\"Y\",\"N\")","v":"N"},{"$f":"IF(AND('Enrollment Form'!$B482=\"\",'Enrollment Form'!$C482<>\"\"),\"N\",IF($B475=\"N\",\"\",\"Y\"))","v":""},{"$f":"IF(OR($B475=\"N\",'Enrollment Form'!G482=\"\"),\"\",IF('Enrollment Form'!$B482<>\"Subscriber\",\"\",IF('Enrollment Form'!$G482='Enrollment Form'!$H482,\"Y\",\"N\")))","v":""},{"$f":"IF($B475=\"N\",\"\",IF(AND(COUNTIFS('Enrollment Form'!$H$11:$H$1000,'Enrollment Form'!$H482,'Enrollment Form'!$B$11:$B$1000,'Enrollment Form'!$B482)>1,'Enrollment Form'!$H482<>\"\"),\"N\",\"Y\"))","v":""},{"$f":"IF($B475=\"N\",\"\",IF(LEN('Enrollment Form'!$Y482)=0,\"\",IF(LEN('Enrollment Form'!$Y482)<>5,\"N\",\"Y\")))","v":""},{"$f":"IF($B475=\"N\",\"\",IF(LEN('Enrollment Form'!$AD482=0),\"\",IF(LEN('Enrollment Form'!$AD482)<>5,\"N\",\"Y\")))","v":""},{"$f":"IF($B475=\"N\",\"\",IF(LEN('Enrollment Form'!$BL482=0),\"\",IF(LEN('Enrollment Form'!$BL482)<>5,\"N\",\"Y\")))","v":""},{"$f":"IF($B475=\"N\",\"\",IF(LEN('Enrollment Form'!$AE482)=0,\"\",IF(LEN('Enrollment Form'!$AE482)<>10,\"N\",\"Y\")))","v":""},{"$f":"IF($B475=\"N\",\"\",IF(LEN('Enrollment Form'!$AF482)=0,\"\",IF(LEN('Enrollment Form'!$AF482)<>10,\"N\",\"Y\")))","v":""},{"$f":"IF('Enrollment Form'!$O482<>\"Graded\",\"-\",IF(AND('Enrollment Form'!$O482=\"Graded\",'Enrollment Form'!$AO482<>\"\"),\"Y\",\"N\"))","v":"-"},{"$f":"IF($B475=\"N\",\"\",IF(OR('Enrollment Form'!$B482<>\"Subscriber\",'Enrollment Form'!$C482=\"ROC\"),\"-\",IF(AND('Enrollment Form'!$B482=\"Subscriber\",'Enrollment Form'!$C482=\"Enroll\",'Enrollment Form'!$AJ482<>\"\"),\"Y\",\"N\")))","v":""},{"$f":"IF($B475=\"N\",\"\",IF(OR('Enrollment Form'!$B482<>\"Subscriber\",'Enrollment Form'!$C482=\"ROC\"),\"-\",IF(AND('Enrollment Form'!$B482=\"Subscriber\",'Enrollment Form'!$C482=\"Enroll\",'Enrollment Form'!$AK482<>\"\"),\"Y\",\"N\")))","v":""},{"$f":"IF($B475=\"N\",\"\",IF(OR('Enrollment Form'!$B482<>\"Subscriber\",'Enrollment Form'!$C482=\"ROC\"),\"-\",IF(AND('Enrollment Form'!$B482=\"Subscriber\",'Enrollment Form'!$C482=\"Enroll\",'Enrollment Form'!$AL482<>\"\"),\"Y\",\"N\")))","v":""},{"$f":"IF($B475=\"N\",\"\",IF(OR('Enrollment Form'!$B482<>\"Subscriber\",'Enrollment Form'!$C482=\"ROC\"),\"-\",IF(AND('Enrollment Form'!$B482=\"Subscriber\",'Enrollment Form'!$C482=\"Enroll\",'Enrollment Form'!$AM482<>\"\"),\"Y\",\"N\")))","v":""},{"$f":"IF($B475=\"N\",\"\",IF(OR('Enrollment Form'!$B482<>\"Subscriber\",'Enrollment Form'!$C482=\"ROC\"),\"-\",IF(AND('Enrollment Form'!$B482=\"Subscriber\",'Enrollment Form'!$C482=\"Enroll\",'Enrollment Form'!$AN482<>\"\"),\"Y\",\"N\")))","v":""},{"$f":"IF($B475=\"N\",\"\",IF(OR('Enrollment Form'!$B482<>\"Subscriber\",'Enrollment Form'!$C482=\"ROC\"),\"-\",IF(AND('Enrollment Form'!$B482=\"Subscriber\",'Enrollment Form'!$C482=\"Enroll\",'Enrollment Form'!$AP482<>\"\"),\"Y\",\"N\")))","v":""},{"$f":"IF($B475=\"N\",\"\",IF($Q475=\"-\",\"-\",IF(AND($Q475=\"Y\",'Enrollment Form'!$AP482=\"No\"),\"-\",IF(AND($Q475=\"Y\",'Enrollment Form'!$AP482=\"Yes\",'Enrollment Form'!$AQ482<>\"\"),\"Y\",\"N\"))))","v":""},{"$f":"IF($B475=\"N\",\"\",IF(OR('Enrollment Form'!$B482<>\"Subscriber\",'Enrollment Form'!$C482=\"ROC\"),\"-\",IF(AND('Enrollment Form'!$B482=\"Subscriber\",'Enrollment Form'!$C482=\"Enroll\",'Enrollment Form'!$CO482<>\"\"),\"Y\",\"N\")))","v":""},{"$f":"IF($B475=\"N\",\"\",IF($S475=\"-\",\"-\",IF(AND($S475=\"Y\",'Enrollment Form'!$CO482=\"No\"),\"-\",IF(AND($S475=\"Y\",'Enrollment Form'!$CO482=\"Yes\",'Enrollment Form'!$CP482<>\"\"),\"Y\",\"N\"))))","v":""},{"$f":"IF(OR('Enrollment Form'!$AV482=\"Yes\",'Enrollment Form'!$AV482=\"\"),\"-\",IF(AND('Enrollment Form'!$AV482=\"No\",ISERROR(FIND(\"HMO\",VLOOKUP('Enrollment Form'!G482,'Enrollment Form'!H$11:J$1000,3,FALSE),1))=FALSE,COUNTA('Enrollment Form'!$AW482:$AZ482)=4),\"Y\",\"N\"))","v":"-"},{"$f":"IF($B475=\"N\",\"\",IF('Enrollment Form'!$B482=\"Subscriber\",\"-\",IF(COUNTA('Enrollment Form'!$BE482,'Enrollment Form'!$BG482)=2,\"Y\",\"N\")))","v":""},{"$f":"IF($B475=\"N\",\"\",IF(OR('Enrollment Form'!$AU482=\"\",'Enrollment Form'!$AU482=\"No\"),\"-\",IF(AND('Enrollment Form'!$AU482=\"Yes\",COUNTA('Enrollment Form'!$CK482)=1),\"Y\",\"N\")))","v":""},{"$f":"IF(OR('Enrollment Form'!$CK482=\"\",'Enrollment Form'!$CK482=\"No\"),\"-\",IF(COUNTA('Enrollment Form'!$CM482:$CN482)=2,\"Y\",\"N\"))","v":"-"},{"$f":"IF($B475=\"N\",\"\",IF(COUNTIF('Enrollment Form'!$CZ482:$DO482,\"Other\")=COUNTA('Enrollment Form'!$DF482,'Enrollment Form'!$DA482,'Enrollment Form'!$DK482,'Enrollment Form'!$DP482),\"Y\",\"N\"))","v":""},{"$f":"IF($B475=\"N\",\"\",IF(OR('Enrollment Form'!B482<>\"Subscriber\",'Enrollment Form'!C482=\"ROC\",COUNTIF('Enrollment Form'!AS482:AT482,\"Yes\")>=1),\"-\",IF(AND('Enrollment Form'!C482=\"Enroll\",COUNTIF('Enrollment Form'!AS482:AT482,\"No\")=2,'Enrollment Form'!AU482=\"\"),\"N\",\"Y\")))","v":""},{"$f":"IF(OR(B475=\"N\",'Enrollment Form'!B482<>\"Subscriber\",'Enrollment Form'!C482=\"ROC\",'Enrollment Form'!O482<>\"Multiple of Salary\"),\"-\",IF(COUNTA('Enrollment Form'!T482:U482)<2,\"N\",\"Y\"))","v":"-"},{"$f":"IF(B475=\"N\",\"\",IF(OR('Enrollment Form'!C482=\"ROC\",'Enrollment Form'!B482<>\"Subscriber\",'Enrollment Form'!O482=\"Waive\",'Enrollment Form'!O482=\"\"),\"-\",IF('Enrollment Form'!P482=\"\",\"N\",\"Y\")))","v":""},{"$f":"IF($B475=\"N\",\"\",IF(AND('Enrollment Form'!$C482=\"ROC\",'Enrollment Form'!$DS482<>\"\"),\"Y\",IF(AND('Enrollment Form'!$C482=\"ROC\",'Enrollment Form'!$DS482=\"\"),\"N\",IF(AND('Enrollment Form'!$C482=\"Enroll\",'Enrollment Form'!$B482=\"Subscriber\",'Enrollment Form'!$CQ482=\"No\",'Enrollment Form'!$DS482=\"\"),\"N\",IF(AND('Enrollment Form'!$C482=\"Enroll\",'Enrollment Form'!$B482=\"Subscriber\",'Enrollment Form'!$CQ482=\"Yes\"),\"-\",\"Y\")))))","v":""},{"$f":"IF($B475=\"N\",\"\",IF(AND('Enrollment Form'!$C482=\"ROC\",'Enrollment Form'!$DT482<>\"\"),\"Y\",IF(AND('Enrollment Form'!$C482=\"ROC\",'Enrollment Form'!$DT482=\"\"),\"N\",IF(AND('Enrollment Form'!$C482=\"Enroll\",'Enrollment Form'!$B482=\"Subscriber\",'Enrollment Form'!$CQ482=\"No\",'Enrollment Form'!$DT482=\"\"),\"N\",IF(AND('Enrollment Form'!$C482=\"Enroll\",'Enrollment Form'!$B482=\"Subscriber\",'Enrollment Form'!$CQ482=\"Yes\"),\"-\",\"Y\")))))","v":""},{"$f":"IF('Enrollment Form'!AH482=\"\",\"\",IF(ISERROR(SEARCH(\".\",'Enrollment Form'!AH482,SEARCH(\"@\",'Enrollment Form'!AH482))),\"N\",\"Y\"))","v":""},{"$f":"IF(OR($B475=\"N\",'Enrollment Form'!$G482=\"\"),\"\",IF('Enrollment Form'!$B482<>\"Subscriber\",\"-\",IF(COUNTIF('Enrollment Form'!$AS482:$AT482,\"Yes\")=2,\"N\",\"Y\")))","v":""},{"$f":"IF(OR('Enrollment Form'!$CC482=\"\",'Enrollment Form'!$CC482=\"No\"),\"-\",IF(AND('Enrollment Form'!$CC482=\"Yes\",'Enrollment Form'!$CD482=\"\"),\"N\",\"Y\"))","v":"-"},{"$f":"IF(OR('Enrollment Form'!$CE482=\"\",'Enrollment Form'!$CE482=\"No\"),\"-\",IF(AND('Enrollment Form'!$CE482=\"Yes\",'Enrollment Form'!$CF482=\"\"),\"N\",\"Y\"))","v":"-"},{"$f":"IF(OR('Enrollment Form'!$CG482=\"\",'Enrollment Form'!$CG482=\"No\"),\"-\",IF(AND('Enrollment Form'!$CG482=\"Yes\",'Enrollment Form'!$CH482=\"\"),\"N\",\"Y\"))","v":"-"},{"$f":"IF(OR('Enrollment Form'!$CG482=\"\",'Enrollment Form'!$CG482=\"No\"),\"-\",IF(AND('Enrollment Form'!$CG482=\"Yes\",'Enrollment Form'!$CI482=\"\"),\"N\",\"Y\"))","v":"-"},{"$f":"IF('Enrollment Form'!B482<>\"Subscriber\",\"-\",IF(AND('Enrollment Form'!B482=\"Subscriber\",'Enrollment Form'!C482=\"Enroll\",'Enrollment Form'!AA482=\"\"),\"N\",\"Y\"))","v":"-"},{"$f":"IF(OR('Enrollment Form'!B482=\"Subscriber\",'Enrollment Form'!B482=\"\"),\"-\",IF('Enrollment Form'!BI482=\"\",\"N\",\"Y\"))","v":"-"},{"$f":"IF('Enrollment Form'!B482<>\"Subscriber\",\"-\",IF(AND('Enrollment Form'!B482=\"Subscriber\",'Enrollment Form'!G482=\"\"),\"N\",\"Y\"))","v":"-"},{"$f":"IF('Enrollment Form'!A482=\"\",\"\",IF('Enrollment Form'!B482=\"Subscriber\",\"-\",IF(AND('Enrollment Form'!B482<>\"Subscriber\",'Enrollment Form'!G482='Enrollment Form'!H482),\"N\",\"Y\")))","v":""},0]
[483,{"$f":"IF('Enrollment Form'!$A483<>\"\",\"Y\",\"N\")","v":"N"},{"$f":"IF(AND('Enrollment Form'!$B483=\"\",'Enrollment Form'!$C483<>\"\"),\"N\",IF($B476=\"N\",\"\",\"Y\"))","v":""},{"$f":"IF(OR($B476=\"N\",'Enrollment Form'!G483=\"\"),\"\",IF('Enrollment Form'!$B483<>\"Subscriber\",\"\",IF('Enrollment Form'!$G483='Enrollment Form'!$H483,\"Y\",\"N\")))","v":""},{"$f":"IF($B476=\"N\",\"\",IF(AND(COUNTIFS('Enrollment Form'!$H$11:$H$1000,'Enrollment Form'!$H483,'Enrollment Form'!$B$11:$B$1000,'Enrollment Form'!$B483)>1,'Enrollment Form'!$H483<>\"\"),\"N\",\"Y\"))","v":""},{"$f":"IF($B476=\"N\",\"\",IF(LEN('Enrollment Form'!$Y483)=0,\"\",IF(LEN('Enrollment Form'!$Y483)<>5,\"N\",\"Y\")))","v":""},{"$f":"IF($B476=\"N\",\"\",IF(LEN('Enrollment Form'!$AD483=0),\"\",IF(LEN('Enrollment Form'!$AD483)<>5,\"N\",\"Y\")))","v":""},{"$f":"IF($B476=\"N\",\"\",IF(LEN('Enrollment Form'!$BL483=0),\"\",IF(LEN('Enrollment Form'!$BL483)<>5,\"N\",\"Y\")))","v":""},{"$f":"IF($B476=\"N\",\"\",IF(LEN('Enrollment Form'!$AE483)=0,\"\",IF(LEN('Enrollment Form'!$AE483)<>10,\"N\",\"Y\")))","v":""},{"$f":"IF($B476=\"N\",\"\",IF(LEN('Enrollment Form'!$AF483)=0,\"\",IF(LEN('Enrollment Form'!$AF483)<>10,\"N\",\"Y\")))","v":""},{"$f":"IF('Enrollment Form'!$O483<>\"Graded\",\"-\",IF(AND('Enrollment Form'!$O483=\"Graded\",'Enrollment Form'!$AO483<>\"\"),\"Y\",\"N\"))","v":"-"},{"$f":"IF($B476=\"N\",\"\",IF(OR('Enrollment Form'!$B483<>\"Subscriber\",'Enrollment Form'!$C483=\"ROC\"),\"-\",IF(AND('Enrollment Form'!$B483=\"Subscriber\",'Enrollment Form'!$C483=\"Enroll\",'Enrollment Form'!$AJ483<>\"\"),\"Y\",\"N\")))","v":""},{"$f":"IF($B476=\"N\",\"\",IF(OR('Enrollment Form'!$B483<>\"Subscriber\",'Enrollment Form'!$C483=\"ROC\"),\"-\",IF(AND('Enrollment Form'!$B483=\"Subscriber\",'Enrollment Form'!$C483=\"Enroll\",'Enrollment Form'!$AK483<>\"\"),\"Y\",\"N\")))","v":""},{"$f":"IF($B476=\"N\",\"\",IF(OR('Enrollment Form'!$B483<>\"Subscriber\",'Enrollment Form'!$C483=\"ROC\"),\"-\",IF(AND('Enrollment Form'!$B483=\"Subscriber\",'Enrollment Form'!$C483=\"Enroll\",'Enrollment Form'!$AL483<>\"\"),\"Y\",\"N\")))","v":""},{"$f":"IF($B476=\"N\",\"\",IF(OR('Enrollment Form'!$B483<>\"Subscriber\",'Enrollment Form'!$C483=\"ROC\"),\"-\",IF(AND('Enrollment Form'!$B483=\"Subscriber\",'Enrollment Form'!$C483=\"Enroll\",'Enrollment Form'!$AM483<>\"\"),\"Y\",\"N\")))","v":""},{"$f":"IF($B476=\"N\",\"\",IF(OR('Enrollment Form'!$B483<>\"Subscriber\",'Enrollment Form'!$C483=\"ROC\"),\"-\",IF(AND('Enrollment Form'!$B483=\"Subscriber\",'Enrollment Form'!$C483=\"Enroll\",'Enrollment Form'!$AN483<>\"\"),\"Y\",\"N\")))","v":""},{"$f":"IF($B476=\"N\",\"\",IF(OR('Enrollment Form'!$B483<>\"Subscriber\",'Enrollment Form'!$C483=\"ROC\"),\"-\",IF(AND('Enrollment Form'!$B483=\"Subscriber\",'Enrollment Form'!$C483=\"Enroll\",'Enrollment Form'!$AP483<>\"\"),\"Y\",\"N\")))","v":""},{"$f":"IF($B476=\"N\",\"\",IF($Q476=\"-\",\"-\",IF(AND($Q476=\"Y\",'Enrollment Form'!$AP483=\"No\"),\"-\",IF(AND($Q476=\"Y\",'Enrollment Form'!$AP483=\"Yes\",'Enrollment Form'!$AQ483<>\"\"),\"Y\",\"N\"))))","v":""},{"$f":"IF($B476=\"N\",\"\",IF(OR('Enrollment Form'!$B483<>\"Subscriber\",'Enrollment Form'!$C483=\"ROC\"),\"-\",IF(AND('Enrollment Form'!$B483=\"Subscriber\",'Enrollment Form'!$C483=\"Enroll\",'Enrollment Form'!$CO483<>\"\"),\"Y\",\"N\")))","v":""},{"$f":"IF($B476=\"N\",\"\",IF($S476=\"-\",\"-\",IF(AND($S476=\"Y\",'Enrollment Form'!$CO483=\"No\"),\"-\",IF(AND($S476=\"Y\",'Enrollment Form'!$CO483=\"Yes\",'Enrollment Form'!$CP483<>\"\"),\"Y\",\"N\"))))","v":""},{"$f":"IF(OR('Enrollment Form'!$AV483=\"Yes\",'Enrollment Form'!$AV483=\"\"),\"-\",IF(AND('Enrollment Form'!$AV483=\"No\",ISERROR(FIND(\"HMO\",VLOOKUP('Enrollment Form'!G483,'Enrollment Form'!H$11:J$1000,3,FALSE),1))=FALSE,COUNTA('Enrollment Form'!$AW483:$AZ483)=4),\"Y\",\"N\"))","v":"-"},{"$f":"IF($B476=\"N\",\"\",IF('Enrollment Form'!$B483=\"Subscriber\",\"-\",IF(COUNTA('Enrollment Form'!$BE483,'Enrollment Form'!$BG483)=2,\"Y\",\"N\")))","v":""},{"$f":"IF($B476=\"N\",\"\",IF(OR('Enrollment Form'!$AU483=\"\",'Enrollment Form'!$AU483=\"No\"),\"-\",IF(AND('Enrollment Form'!$AU483=\"Yes\",COUNTA('Enrollment Form'!$CK483)=1),\"Y\",\"N\")))","v":""},{"$f":"IF(OR('Enrollment Form'!$CK483=\"\",'Enrollment Form'!$CK483=\"No\"),\"-\",IF(COUNTA('Enrollment Form'!$CM483:$CN483)=2,\"Y\",\"N\"))","v":"-"},{"$f":"IF($B476=\"N\",\"\",IF(COUNTIF('Enrollment Form'!$CZ483:$DO483,\"Other\")=COUNTA('Enrollment Form'!$DF483,'Enrollment Form'!$DA483,'Enrollment Form'!$DK483,'Enrollment Form'!$DP483),\"Y\",\"N\"))","v":""},{"$f":"IF($B476=\"N\",\"\",IF(OR('Enrollment Form'!B483<>\"Subscriber\",'Enrollment Form'!C483=\"ROC\",COUNTIF('Enrollment Form'!AS483:AT483,\"Yes\")>=1),\"-\",IF(AND('Enrollment Form'!C483=\"Enroll\",COUNTIF('Enrollment Form'!AS483:AT483,\"No\")=2,'Enrollment Form'!AU483=\"\"),\"N\",\"Y\")))","v":""},{"$f":"IF(OR(B476=\"N\",'Enrollment Form'!B483<>\"Subscriber\",'Enrollment Form'!C483=\"ROC\",'Enrollment Form'!O483<>\"Multiple of Salary\"),\"-\",IF(COUNTA('Enrollment Form'!T483:U483)<2,\"N\",\"Y\"))","v":"-"},{"$f":"IF(B476=\"N\",\"\",IF(OR('Enrollment Form'!C483=\"ROC\",'Enrollment Form'!B483<>\"Subscriber\",'Enrollment Form'!O483=\"Waive\",'Enrollment Form'!O483=\"\"),\"-\",IF('Enrollment Form'!P483=\"\",\"N\",\"Y\")))","v":""},{"$f":"IF($B476=\"N\",\"\",IF(AND('Enrollment Form'!$C483=\"ROC\",'Enrollment Form'!$DS483<>\"\"),\"Y\",IF(AND('Enrollment Form'!$C483=\"ROC\",'Enrollment Form'!$DS483=\"\"),\"N\",IF(AND('Enrollment Form'!$C483=\"Enroll\",'Enrollment Form'!$B483=\"Subscriber\",'Enrollment Form'!$CQ483=\"No\",'Enrollment Form'!$DS483=\"\"),\"N\",IF(AND('Enrollment Form'!$C483=\"Enroll\",'Enrollment Form'!$B483=\"Subscriber\",'Enrollment Form'!$CQ483=\"Yes\"),\"-\",\"Y\")))))","v":""},{"$f":"IF($B476=\"N\",\"\",IF(AND('Enrollment Form'!$C483=\"ROC\",'Enrollment Form'!$DT483<>\"\"),\"Y\",IF(AND('Enrollment Form'!$C483=\"ROC\",'Enrollment Form'!$DT483=\"\"),\"N\",IF(AND('Enrollment Form'!$C483=\"Enroll\",'Enrollment Form'!$B483=\"Subscriber\",'Enrollment Form'!$CQ483=\"No\",'Enrollment Form'!$DT483=\"\"),\"N\",IF(AND('Enrollment Form'!$C483=\"Enroll\",'Enrollment Form'!$B483=\"Subscriber\",'Enrollment Form'!$CQ483=\"Yes\"),\"-\",\"Y\")))))","v":""},{"$f":"IF('Enrollment Form'!AH483=\"\",\"\",IF(ISERROR(SEARCH(\".\",'Enrollment Form'!AH483,SEARCH(\"@\",'Enrollment Form'!AH483))),\"N\",\"Y\"))","v":""},{"$f":"IF(OR($B476=\"N\",'Enrollment Form'!$G483=\"\"),\"\",IF('Enrollment Form'!$B483<>\"Subscriber\",\"-\",IF(COUNTIF('Enrollment Form'!$AS483:$AT483,\"Yes\")=2,\"N\",\"Y\")))","v":""},{"$f":"IF(OR('Enrollment Form'!$CC483=\"\",'Enrollment Form'!$CC483=\"No\"),\"-\",IF(AND('Enrollment Form'!$CC483=\"Yes\",'Enrollment Form'!$CD483=\"\"),\"N\",\"Y\"))","v":"-"},{"$f":"IF(OR('Enrollment Form'!$CE483=\"\",'Enrollment Form'!$CE483=\"No\"),\"-\",IF(AND('Enrollment Form'!$CE483=\"Yes\",'Enrollment Form'!$CF483=\"\"),\"N\",\"Y\"))","v":"-"},{"$f":"IF(OR('Enrollment Form'!$CG483=\"\",'Enrollment Form'!$CG483=\"No\"),\"-\",IF(AND('Enrollment Form'!$CG483=\"Yes\",'Enrollment Form'!$CH483=\"\"),\"N\",\"Y\"))","v":"-"},{"$f":"IF(OR('Enrollment Form'!$CG483=\"\",'Enrollment Form'!$CG483=\"No\"),\"-\",IF(AND('Enrollment Form'!$CG483=\"Yes\",'Enrollment Form'!$CI483=\"\"),\"N\",\"Y\"))","v":"-"},{"$f":"IF('Enrollment Form'!B483<>\"Subscriber\",\"-\",IF(AND('Enrollment Form'!B483=\"Subscriber\",'Enrollment Form'!C483=\"Enroll\",'Enrollment Form'!AA483=\"\"),\"N\",\"Y\"))","v":"-"},{"$f":"IF(OR('Enrollment Form'!B483=\"Subscriber\",'Enrollment Form'!B483=\"\"),\"-\",IF('Enrollment Form'!BI483=\"\",\"N\",\"Y\"))","v":"-"},{"$f":"IF('Enrollment Form'!B483<>\"Subscriber\",\"-\",IF(AND('Enrollment Form'!B483=\"Subscriber\",'Enrollment Form'!G483=\"\"),\"N\",\"Y\"))","v":"-"},{"$f":"IF('Enrollment Form'!A483=\"\",\"\",IF('Enrollment Form'!B483=\"Subscriber\",\"-\",IF(AND('Enrollment Form'!B483<>\"Subscriber\",'Enrollment Form'!G483='Enrollment Form'!H483),\"N\",\"Y\")))","v":""},0]
[484,{"$f":"IF('Enrollment Form'!$A484<>\"\",\"Y\",\"N\")","v":"N"},{"$f":"IF(AND('Enrollment Form'!$B484=\"\",'Enrollment Form'!$C484<>\"\"),\"N\",IF($B477=\"N\",\"\",\"Y\"))","v":""},{"$f":"IF(OR($B477=\"N\",'Enrollment Form'!G484=\"\"),\"\",IF('Enrollment Form'!$B484<>\"Subscriber\",\"\",IF('Enrollment Form'!$G484='Enrollment Form'!$H484,\"Y\",\"N\")))","v":""},{"$f":"IF($B477=\"N\",\"\",IF(AND(COUNTIFS('Enrollment Form'!$H$11:$H$1000,'Enrollment Form'!$H484,'Enrollment Form'!$B$11:$B$1000,'Enrollment Form'!$B484)>1,'Enrollment Form'!$H484<>\"\"),\"N\",\"Y\"))","v":""},{"$f":"IF($B477=\"N\",\"\",IF(LEN('Enrollment Form'!$Y484)=0,\"\",IF(LEN('Enrollment Form'!$Y484)<>5,\"N\",\"Y\")))","v":""},{"$f":"IF($B477=\"N\",\"\",IF(LEN('Enrollment Form'!$AD484=0),\"\",IF(LEN('Enrollment Form'!$AD484)<>5,\"N\",\"Y\")))","v":""},{"$f":"IF($B477=\"N\",\"\",IF(LEN('Enrollment Form'!$BL484=0),\"\",IF(LEN('Enrollment Form'!$BL484)<>5,\"N\",\"Y\")))","v":""},{"$f":"IF($B477=\"N\",\"\",IF(LEN('Enrollment Form'!$AE484)=0,\"\",IF(LEN('Enrollment Form'!$AE484)<>10,\"N\",\"Y\")))","v":""},{"$f":"IF($B477=\"N\",\"\",IF(LEN('Enrollment Form'!$AF484)=0,\"\",IF(LEN('Enrollment Form'!$AF484)<>10,\"N\",\"Y\")))","v":""},{"$f":"IF('Enrollment Form'!$O484<>\"Graded\",\"-\",IF(AND('Enrollment Form'!$O484=\"Graded\",'Enrollment Form'!$AO484<>\"\"),\"Y\",\"N\"))","v":"-"},{"$f":"IF($B477=\"N\",\"\",IF(OR('Enrollment Form'!$B484<>\"Subscriber\",'Enrollment Form'!$C484=\"ROC\"),\"-\",IF(AND('Enrollment Form'!$B484=\"Subscriber\",'Enrollment Form'!$C484=\"Enroll\",'Enrollment Form'!$AJ484<>\"\"),\"Y\",\"N\")))","v":""},{"$f":"IF($B477=\"N\",\"\",IF(OR('Enrollment Form'!$B484<>\"Subscriber\",'Enrollment Form'!$C484=\"ROC\"),\"-\",IF(AND('Enrollment Form'!$B484=\"Subscriber\",'Enrollment Form'!$C484=\"Enroll\",'Enrollment Form'!$AK484<>\"\"),\"Y\",\"N\")))","v":""},{"$f":"IF($B477=\"N\",\"\",IF(OR('Enrollment Form'!$B484<>\"Subscriber\",'Enrollment Form'!$C484=\"ROC\"),\"-\",IF(AND('Enrollment Form'!$B484=\"Subscriber\",'Enrollment Form'!$C484=\"Enroll\",'Enrollment Form'!$AL484<>\"\"),\"Y\",\"N\")))","v":""},{"$f":"IF($B477=\"N\",\"\",IF(OR('Enrollment Form'!$B484<>\"Subscriber\",'Enrollment Form'!$C484=\"ROC\"),\"-\",IF(AND('Enrollment Form'!$B484=\"Subscriber\",'Enrollment Form'!$C484=\"Enroll\",'Enrollment Form'!$AM484<>\"\"),\"Y\",\"N\")))","v":""},{"$f":"IF($B477=\"N\",\"\",IF(OR('Enrollment Form'!$B484<>\"Subscriber\",'Enrollment Form'!$C484=\"ROC\"),\"-\",IF(AND('Enrollment Form'!$B484=\"Subscriber\",'Enrollment Form'!$C484=\"Enroll\",'Enrollment Form'!$AN484<>\"\"),\"Y\",\"N\")))","v":""},{"$f":"IF($B477=\"N\",\"\",IF(OR('Enrollment Form'!$B484<>\"Subscriber\",'Enrollment Form'!$C484=\"ROC\"),\"-\",IF(AND('Enrollment Form'!$B484=\"Subscriber\",'Enrollment Form'!$C484=\"Enroll\",'Enrollment Form'!$AP484<>\"\"),\"Y\",\"N\")))","v":""},{"$f":"IF($B477=\"N\",\"\",IF($Q477=\"-\",\"-\",IF(AND($Q477=\"Y\",'Enrollment Form'!$AP484=\"No\"),\"-\",IF(AND($Q477=\"Y\",'Enrollment Form'!$AP484=\"Yes\",'Enrollment Form'!$AQ484<>\"\"),\"Y\",\"N\"))))","v":""},{"$f":"IF($B477=\"N\",\"\",IF(OR('Enrollment Form'!$B484<>\"Subscriber\",'Enrollment Form'!$C484=\"ROC\"),\"-\",IF(AND('Enrollment Form'!$B484=\"Subscriber\",'Enrollment Form'!$C484=\"Enroll\",'Enrollment Form'!$CO484<>\"\"),\"Y\",\"N\")))","v":""},{"$f":"IF($B477=\"N\",\"\",IF($S477=\"-\",\"-\",IF(AND($S477=\"Y\",'Enrollment Form'!$CO484=\"No\"),\"-\",IF(AND($S477=\"Y\",'Enrollment Form'!$CO484=\"Yes\",'Enrollment Form'!$CP484<>\"\"),\"Y\",\"N\"))))","v":""},{"$f":"IF(OR('Enrollment Form'!$AV484=\"Yes\",'Enrollment Form'!$AV484=\"\"),\"-\",IF(AND('Enrollment Form'!$AV484=\"No\",ISERROR(FIND(\"HMO\",VLOOKUP('Enrollment Form'!G484,'Enrollment Form'!H$11:J$1000,3,FALSE),1))=FALSE,COUNTA('Enrollment Form'!$AW484:$AZ484)=4),\"Y\",\"N\"))","v":"-"},{"$f":"IF($B477=\"N\",\"\",IF('Enrollment Form'!$B484=\"Subscriber\",\"-\",IF(COUNTA('Enrollment Form'!$BE484,'Enrollment Form'!$BG484)=2,\"Y\",\"N\")))","v":""},{"$f":"IF($B477=\"N\",\"\",IF(OR('Enrollment Form'!$AU484=\"\",'Enrollment Form'!$AU484=\"No\"),\"-\",IF(AND('Enrollment Form'!$AU484=\"Yes\",COUNTA('Enrollment Form'!$CK484)=1),\"Y\",\"N\")))","v":""},{"$f":"IF(OR('Enrollment Form'!$CK484=\"\",'Enrollment Form'!$CK484=\"No\"),\"-\",IF(COUNTA('Enrollment Form'!$CM484:$CN484)=2,\"Y\",\"N\"))","v":"-"},{"$f":"IF($B477=\"N\",\"\",IF(COUNTIF('Enrollment Form'!$CZ484:$DO484,\"Other\")=COUNTA('Enrollment Form'!$DF484,'Enrollment Form'!$DA484,'Enrollment Form'!$DK484,'Enrollment Form'!$DP484),\"Y\",\"N\"))","v":""},{"$f":"IF($B477=\"N\",\"\",IF(OR('Enrollment Form'!B484<>\"Subscriber\",'Enrollment Form'!C484=\"ROC\",COUNTIF('Enrollment Form'!AS484:AT484,\"Yes\")>=1),\"-\",IF(AND('Enrollment Form'!C484=\"Enroll\",COUNTIF('Enrollment Form'!AS484:AT484,\"No\")=2,'Enrollment Form'!AU484=\"\"),\"N\",\"Y\")))","v":""},{"$f":"IF(OR(B477=\"N\",'Enrollment Form'!B484<>\"Subscriber\",'Enrollment Form'!C484=\"ROC\",'Enrollment Form'!O484<>\"Multiple of Salary\"),\"-\",IF(COUNTA('Enrollment Form'!T484:U484)<2,\"N\",\"Y\"))","v":"-"},{"$f":"IF(B477=\"N\",\"\",IF(OR('Enrollment Form'!C484=\"ROC\",'Enrollment Form'!B484<>\"Subscriber\",'Enrollment Form'!O484=\"Waive\",'Enrollment Form'!O484=\"\"),\"-\",IF('Enrollment Form'!P484=\"\",\"N\",\"Y\")))","v":""},{"$f":"IF($B477=\"N\",\"\",IF(AND('Enrollment Form'!$C484=\"ROC\",'Enrollment Form'!$DS484<>\"\"),\"Y\",IF(AND('Enrollment Form'!$C484=\"ROC\",'Enrollment Form'!$DS484=\"\"),\"N\",IF(AND('Enrollment Form'!$C484=\"Enroll\",'Enrollment Form'!$B484=\"Subscriber\",'Enrollment Form'!$CQ484=\"No\",'Enrollment Form'!$DS484=\"\"),\"N\",IF(AND('Enrollment Form'!$C484=\"Enroll\",'Enrollment Form'!$B484=\"Subscriber\",'Enrollment Form'!$CQ484=\"Yes\"),\"-\",\"Y\")))))","v":""},{"$f":"IF($B477=\"N\",\"\",IF(AND('Enrollment Form'!$C484=\"ROC\",'Enrollment Form'!$DT484<>\"\"),\"Y\",IF(AND('Enrollment Form'!$C484=\"ROC\",'Enrollment Form'!$DT484=\"\"),\"N\",IF(AND('Enrollment Form'!$C484=\"Enroll\",'Enrollment Form'!$B484=\"Subscriber\",'Enrollment Form'!$CQ484=\"No\",'Enrollment Form'!$DT484=\"\"),\"N\",IF(AND('Enrollment Form'!$C484=\"Enroll\",'Enrollment Form'!$B484=\"Subscriber\",'Enrollment Form'!$CQ484=\"Yes\"),\"-\",\"Y\")))))","v":""},{"$f":"IF('Enrollment Form'!AH484=\"\",\"\",IF(ISERROR(SEARCH(\".\",'Enrollment Form'!AH484,SEARCH(\"@\",'Enrollment Form'!AH484))),\"N\",\"Y\"))","v":""},{"$f":"IF(OR($B477=\"N\",'Enrollment Form'!$G484=\"\"),\"\",IF('Enrollment Form'!$B484<>\"Subscriber\",\"-\",IF(COUNTIF('Enrollment Form'!$AS484:$AT484,\"Yes\")=2,\"N\",\"Y\")))","v":""},{"$f":"IF(OR('Enrollment Form'!$CC484=\"\",'Enrollment Form'!$CC484=\"No\"),\"-\",IF(AND('Enrollment Form'!$CC484=\"Yes\",'Enrollment Form'!$CD484=\"\"),\"N\",\"Y\"))","v":"-"},{"$f":"IF(OR('Enrollment Form'!$CE484=\"\",'Enrollment Form'!$CE484=\"No\"),\"-\",IF(AND('Enrollment Form'!$CE484=\"Yes\",'Enrollment Form'!$CF484=\"\"),\"N\",\"Y\"))","v":"-"},{"$f":"IF(OR('Enrollment Form'!$CG484=\"\",'Enrollment Form'!$CG484=\"No\"),\"-\",IF(AND('Enrollment Form'!$CG484=\"Yes\",'Enrollment Form'!$CH484=\"\"),\"N\",\"Y\"))","v":"-"},{"$f":"IF(OR('Enrollment Form'!$CG484=\"\",'Enrollment Form'!$CG484=\"No\"),\"-\",IF(AND('Enrollment Form'!$CG484=\"Yes\",'Enrollment Form'!$CI484=\"\"),\"N\",\"Y\"))","v":"-"},{"$f":"IF('Enrollment Form'!B484<>\"Subscriber\",\"-\",IF(AND('Enrollment Form'!B484=\"Subscriber\",'Enrollment Form'!C484=\"Enroll\",'Enrollment Form'!AA484=\"\"),\"N\",\"Y\"))","v":"-"},{"$f":"IF(OR('Enrollment Form'!B484=\"Subscriber\",'Enrollment Form'!B484=\"\"),\"-\",IF('Enrollment Form'!BI484=\"\",\"N\",\"Y\"))","v":"-"},{"$f":"IF('Enrollment Form'!B484<>\"Subscriber\",\"-\",IF(AND('Enrollment Form'!B484=\"Subscriber\",'Enrollment Form'!G484=\"\"),\"N\",\"Y\"))","v":"-"},{"$f":"IF('Enrollment Form'!A484=\"\",\"\",IF('Enrollment Form'!B484=\"Subscriber\",\"-\",IF(AND('Enrollment Form'!B484<>\"Subscriber\",'Enrollment Form'!G484='Enrollment Form'!H484),\"N\",\"Y\")))","v":""},0]
[485,{"$f":"IF('Enrollment Form'!$A485<>\"\",\"Y\",\"N\")","v":"N"},{"$f":"IF(AND('Enrollment Form'!$B485=\"\",'Enrollment Form'!$C485<>\"\"),\"N\",IF($B478=\"N\",\"\",\"Y\"))","v":""},{"$f":"IF(OR($B478=\"N\",'Enrollment Form'!G485=\"\"),\"\",IF('Enrollment Form'!$B485<>\"Subscriber\",\"\",IF('Enrollment Form'!$G485='Enrollment Form'!$H485,\"Y\",\"N\")))","v":""},{"$f":"IF($B478=\"N\",\"\",IF(AND(COUNTIFS('Enrollment Form'!$H$11:$H$1000,'Enrollment Form'!$H485,'Enrollment Form'!$B$11:$B$1000,'Enrollment Form'!$B485)>1,'Enrollment Form'!$H485<>\"\"),\"N\",\"Y\"))","v":""},{"$f":"IF($B478=\"N\",\"\",IF(LEN('Enrollment Form'!$Y485)=0,\"\",IF(LEN('Enrollment Form'!$Y485)<>5,\"N\",\"Y\")))","v":""},{"$f":"IF($B478=\"N\",\"\",IF(LEN('Enrollment Form'!$AD485=0),\"\",IF(LEN('Enrollment Form'!$AD485)<>5,\"N\",\"Y\")))","v":""},{"$f":"IF($B478=\"N\",\"\",IF(LEN('Enrollment Form'!$BL485=0),\"\",IF(LEN('Enrollment Form'!$BL485)<>5,\"N\",\"Y\")))","v":""},{"$f":"IF($B478=\"N\",\"\",IF(LEN('Enrollment Form'!$AE485)=0,\"\",IF(LEN('Enrollment Form'!$AE485)<>10,\"N\",\"Y\")))","v":""},{"$f":"IF($B478=\"N\",\"\",IF(LEN('Enrollment Form'!$AF485)=0,\"\",IF(LEN('Enrollment Form'!$AF485)<>10,\"N\",\"Y\")))","v":""},{"$f":"IF('Enrollment Form'!$O485<>\"Graded\",\"-\",IF(AND('Enrollment Form'!$O485=\"Graded\",'Enrollment Form'!$AO485<>\"\"),\"Y\",\"N\"))","v":"-"},{"$f":"IF($B478=\"N\",\"\",IF(OR('Enrollment Form'!$B485<>\"Subscriber\",'Enrollment Form'!$C485=\"ROC\"),\"-\",IF(AND('Enrollment Form'!$B485=\"Subscriber\",'Enrollment Form'!$C485=\"Enroll\",'Enrollment Form'!$AJ485<>\"\"),\"Y\",\"N\")))","v":""},{"$f":"IF($B478=\"N\",\"\",IF(OR('Enrollment Form'!$B485<>\"Subscriber\",'Enrollment Form'!$C485=\"ROC\"),\"-\",IF(AND('Enrollment Form'!$B485=\"Subscriber\",'Enrollment Form'!$C485=\"Enroll\",'Enrollment Form'!$AK485<>\"\"),\"Y\",\"N\")))","v":""},{"$f":"IF($B478=\"N\",\"\",IF(OR('Enrollment Form'!$B485<>\"Subscriber\",'Enrollment Form'!$C485=\"ROC\"),\"-\",IF(AND('Enrollment Form'!$B485=\"Subscriber\",'Enrollment Form'!$C485=\"Enroll\",'Enrollment Form'!$AL485<>\"\"),\"Y\",\"N\")))","v":""},{"$f":"IF($B478=\"N\",\"\",IF(OR('Enrollment Form'!$B485<>\"Subscriber\",'Enrollment Form'!$C485=\"ROC\"),\"-\",IF(AND('Enrollment Form'!$B485=\"Subscriber\",'Enrollment Form'!$C485=\"Enroll\",'Enrollment Form'!$AM485<>\"\"),\"Y\",\"N\")))","v":""},{"$f":"IF($B478=\"N\",\"\",IF(OR('Enrollment Form'!$B485<>\"Subscriber\",'Enrollment Form'!$C485=\"ROC\"),\"-\",IF(AND('Enrollment Form'!$B485=\"Subscriber\",'Enrollment Form'!$C485=\"Enroll\",'Enrollment Form'!$AN485<>\"\"),\"Y\",\"N\")))","v":""},{"$f":"IF($B478=\"N\",\"\",IF(OR('Enrollment Form'!$B485<>\"Subscriber\",'Enrollment Form'!$C485=\"ROC\"),\"-\",IF(AND('Enrollment Form'!$B485=\"Subscriber\",'Enrollment Form'!$C485=\"Enroll\",'Enrollment Form'!$AP485<>\"\"),\"Y\",\"N\")))","v":""},{"$f":"IF($B478=\"N\",\"\",IF($Q478=\"-\",\"-\",IF(AND($Q478=\"Y\",'Enrollment Form'!$AP485=\"No\"),\"-\",IF(AND($Q478=\"Y\",'Enrollment Form'!$AP485=\"Yes\",'Enrollment Form'!$AQ485<>\"\"),\"Y\",\"N\"))))","v":""},{"$f":"IF($B478=\"N\",\"\",IF(OR('Enrollment Form'!$B485<>\"Subscriber\",'Enrollment Form'!$C485=\"ROC\"),\"-\",IF(AND('Enrollment Form'!$B485=\"Subscriber\",'Enrollment Form'!$C485=\"Enroll\",'Enrollment Form'!$CO485<>\"\"),\"Y\",\"N\")))","v":""},{"$f":"IF($B478=\"N\",\"\",IF($S478=\"-\",\"-\",IF(AND($S478=\"Y\",'Enrollment Form'!$CO485=\"No\"),\"-\",IF(AND($S478=\"Y\",'Enrollment Form'!$CO485=\"Yes\",'Enrollment Form'!$CP485<>\"\"),\"Y\",\"N\"))))","v":""},{"$f":"IF(OR('Enrollment Form'!$AV485=\"Yes\",'Enrollment Form'!$AV485=\"\"),\"-\",IF(AND('Enrollment Form'!$AV485=\"No\",ISERROR(FIND(\"HMO\",VLOOKUP('Enrollment Form'!G485,'Enrollment Form'!H$11:J$1000,3,FALSE),1))=FALSE,COUNTA('Enrollment Form'!$AW485:$AZ485)=4),\"Y\",\"N\"))","v":"-"},{"$f":"IF($B478=\"N\",\"\",IF('Enrollment Form'!$B485=\"Subscriber\",\"-\",IF(COUNTA('Enrollment Form'!$BE485,'Enrollment Form'!$BG485)=2,\"Y\",\"N\")))","v":""},{"$f":"IF($B478=\"N\",\"\",IF(OR('Enrollment Form'!$AU485=\"\",'Enrollment Form'!$AU485=\"No\"),\"-\",IF(AND('Enrollment Form'!$AU485=\"Yes\",COUNTA('Enrollment Form'!$CK485)=1),\"Y\",\"N\")))","v":""},{"$f":"IF(OR('Enrollment Form'!$CK485=\"\",'Enrollment Form'!$CK485=\"No\"),\"-\",IF(COUNTA('Enrollment Form'!$CM485:$CN485)=2,\"Y\",\"N\"))","v":"-"},{"$f":"IF($B478=\"N\",\"\",IF(COUNTIF('Enrollment Form'!$CZ485:$DO485,\"Other\")=COUNTA('Enrollment Form'!$DF485,'Enrollment Form'!$DA485,'Enrollment Form'!$DK485,'Enrollment Form'!$DP485),\"Y\",\"N\"))","v":""},{"$f":"IF($B478=\"N\",\"\",IF(OR('Enrollment Form'!B485<>\"Subscriber\",'Enrollment Form'!C485=\"ROC\",COUNTIF('Enrollment Form'!AS485:AT485,\"Yes\")>=1),\"-\",IF(AND('Enrollment Form'!C485=\"Enroll\",COUNTIF('Enrollment Form'!AS485:AT485,\"No\")=2,'Enrollment Form'!AU485=\"\"),\"N\",\"Y\")))","v":""},{"$f":"IF(OR(B478=\"N\",'Enrollment Form'!B485<>\"Subscriber\",'Enrollment Form'!C485=\"ROC\",'Enrollment Form'!O485<>\"Multiple of Salary\"),\"-\",IF(COUNTA('Enrollment Form'!T485:U485)<2,\"N\",\"Y\"))","v":"-"},{"$f":"IF(B478=\"N\",\"\",IF(OR('Enrollment Form'!C485=\"ROC\",'Enrollment Form'!B485<>\"Subscriber\",'Enrollment Form'!O485=\"Waive\",'Enrollment Form'!O485=\"\"),\"-\",IF('Enrollment Form'!P485=\"\",\"N\",\"Y\")))","v":""},{"$f":"IF($B478=\"N\",\"\",IF(AND('Enrollment Form'!$C485=\"ROC\",'Enrollment Form'!$DS485<>\"\"),\"Y\",IF(AND('Enrollment Form'!$C485=\"ROC\",'Enrollment Form'!$DS485=\"\"),\"N\",IF(AND('Enrollment Form'!$C485=\"Enroll\",'Enrollment Form'!$B485=\"Subscriber\",'Enrollment Form'!$CQ485=\"No\",'Enrollment Form'!$DS485=\"\"),\"N\",IF(AND('Enrollment Form'!$C485=\"Enroll\",'Enrollment Form'!$B485=\"Subscriber\",'Enrollment Form'!$CQ485=\"Yes\"),\"-\",\"Y\")))))","v":""},{"$f":"IF($B478=\"N\",\"\",IF(AND('Enrollment Form'!$C485=\"ROC\",'Enrollment Form'!$DT485<>\"\"),\"Y\",IF(AND('Enrollment Form'!$C485=\"ROC\",'Enrollment Form'!$DT485=\"\"),\"N\",IF(AND('Enrollment Form'!$C485=\"Enroll\",'Enrollment Form'!$B485=\"Subscriber\",'Enrollment Form'!$CQ485=\"No\",'Enrollment Form'!$DT485=\"\"),\"N\",IF(AND('Enrollment Form'!$C485=\"Enroll\",'Enrollment Form'!$B485=\"Subscriber\",'Enrollment Form'!$CQ485=\"Yes\"),\"-\",\"Y\")))))","v":""},{"$f":"IF('Enrollment Form'!AH485=\"\",\"\",IF(ISERROR(SEARCH(\".\",'Enrollment Form'!AH485,SEARCH(\"@\",'Enrollment Form'!AH485))),\"N\",\"Y\"))","v":""},{"$f":"IF(OR($B478=\"N\",'Enrollment Form'!$G485=\"\"),\"\",IF('Enrollment Form'!$B485<>\"Subscriber\",\"-\",IF(COUNTIF('Enrollment Form'!$AS485:$AT485,\"Yes\")=2,\"N\",\"Y\")))","v":""},{"$f":"IF(OR('Enrollment Form'!$CC485=\"\",'Enrollment Form'!$CC485=\"No\"),\"-\",IF(AND('Enrollment Form'!$CC485=\"Yes\",'Enrollment Form'!$CD485=\"\"),\"N\",\"Y\"))","v":"-"},{"$f":"IF(OR('Enrollment Form'!$CE485=\"\",'Enrollment Form'!$CE485=\"No\"),\"-\",IF(AND('Enrollment Form'!$CE485=\"Yes\",'Enrollment Form'!$CF485=\"\"),\"N\",\"Y\"))","v":"-"},{"$f":"IF(OR('Enrollment Form'!$CG485=\"\",'Enrollment Form'!$CG485=\"No\"),\"-\",IF(AND('Enrollment Form'!$CG485=\"Yes\",'Enrollment Form'!$CH485=\"\"),\"N\",\"Y\"))","v":"-"},{"$f":"IF(OR('Enrollment Form'!$CG485=\"\",'Enrollment Form'!$CG485=\"No\"),\"-\",IF(AND('Enrollment Form'!$CG485=\"Yes\",'Enrollment Form'!$CI485=\"\"),\"N\",\"Y\"))","v":"-"},{"$f":"IF('Enrollment Form'!B485<>\"Subscriber\",\"-\",IF(AND('Enrollment Form'!B485=\"Subscriber\",'Enrollment Form'!C485=\"Enroll\",'Enrollment Form'!AA485=\"\"),\"N\",\"Y\"))","v":"-"},{"$f":"IF(OR('Enrollment Form'!B485=\"Subscriber\",'Enrollment Form'!B485=\"\"),\"-\",IF('Enrollment Form'!BI485=\"\",\"N\",\"Y\"))","v":"-"},{"$f":"IF('Enrollment Form'!B485<>\"Subscriber\",\"-\",IF(AND('Enrollment Form'!B485=\"Subscriber\",'Enrollment Form'!G485=\"\"),\"N\",\"Y\"))","v":"-"},{"$f":"IF('Enrollment Form'!A485=\"\",\"\",IF('Enrollment Form'!B485=\"Subscriber\",\"-\",IF(AND('Enrollment Form'!B485<>\"Subscriber\",'Enrollment Form'!G485='Enrollment Form'!H485),\"N\",\"Y\")))","v":""},0]
[486,{"$f":"IF('Enrollment Form'!$A486<>\"\",\"Y\",\"N\")","v":"N"},{"$f":"IF(AND('Enrollment Form'!$B486=\"\",'Enrollment Form'!$C486<>\"\"),\"N\",IF($B479=\"N\",\"\",\"Y\"))","v":""},{"$f":"IF(OR($B479=\"N\",'Enrollment Form'!G486=\"\"),\"\",IF('Enrollment Form'!$B486<>\"Subscriber\",\"\",IF('Enrollment Form'!$G486='Enrollment Form'!$H486,\"Y\",\"N\")))","v":""},{"$f":"IF($B479=\"N\",\"\",IF(AND(COUNTIFS('Enrollment Form'!$H$11:$H$1000,'Enrollment Form'!$H486,'Enrollment Form'!$B$11:$B$1000,'Enrollment Form'!$B486)>1,'Enrollment Form'!$H486<>\"\"),\"N\",\"Y\"))","v":""},{"$f":"IF($B479=\"N\",\"\",IF(LEN('Enrollment Form'!$Y486)=0,\"\",IF(LEN('Enrollment Form'!$Y486)<>5,\"N\",\"Y\")))","v":""},{"$f":"IF($B479=\"N\",\"\",IF(LEN('Enrollment Form'!$AD486=0),\"\",IF(LEN('Enrollment Form'!$AD486)<>5,\"N\",\"Y\")))","v":""},{"$f":"IF($B479=\"N\",\"\",IF(LEN('Enrollment Form'!$BL486=0),\"\",IF(LEN('Enrollment Form'!$BL486)<>5,\"N\",\"Y\")))","v":""},{"$f":"IF($B479=\"N\",\"\",IF(LEN('Enrollment Form'!$AE486)=0,\"\",IF(LEN('Enrollment Form'!$AE486)<>10,\"N\",\"Y\")))","v":""},{"$f":"IF($B479=\"N\",\"\",IF(LEN('Enrollment Form'!$AF486)=0,\"\",IF(LEN('Enrollment Form'!$AF486)<>10,\"N\",\"Y\")))","v":""},{"$f":"IF('Enrollment Form'!$O486<>\"Graded\",\"-\",IF(AND('Enrollment Form'!$O486=\"Graded\",'Enrollment Form'!$AO486<>\"\"),\"Y\",\"N\"))","v":"-"},{"$f":"IF($B479=\"N\",\"\",IF(OR('Enrollment Form'!$B486<>\"Subscriber\",'Enrollment Form'!$C486=\"ROC\"),\"-\",IF(AND('Enrollment Form'!$B486=\"Subscriber\",'Enrollment Form'!$C486=\"Enroll\",'Enrollment Form'!$AJ486<>\"\"),\"Y\",\"N\")))","v":""},{"$f":"IF($B479=\"N\",\"\",IF(OR('Enrollment Form'!$B486<>\"Subscriber\",'Enrollment Form'!$C486=\"ROC\"),\"-\",IF(AND('Enrollment Form'!$B486=\"Subscriber\",'Enrollment Form'!$C486=\"Enroll\",'Enrollment Form'!$AK486<>\"\"),\"Y\",\"N\")))","v":""},{"$f":"IF($B479=\"N\",\"\",IF(OR('Enrollment Form'!$B486<>\"Subscriber\",'Enrollment Form'!$C486=\"ROC\"),\"-\",IF(AND('Enrollment Form'!$B486=\"Subscriber\",'Enrollment Form'!$C486=\"Enroll\",'Enrollment Form'!$AL486<>\"\"),\"Y\",\"N\")))","v":""},{"$f":"IF($B479=\"N\",\"\",IF(OR('Enrollment Form'!$B486<>\"Subscriber\",'Enrollment Form'!$C486=\"ROC\"),\"-\",IF(AND('Enrollment Form'!$B486=\"Subscriber\",'Enrollment Form'!$C486=\"Enroll\",'Enrollment Form'!$AM486<>\"\"),\"Y\",\"N\")))","v":""},{"$f":"IF($B479=\"N\",\"\",IF(OR('Enrollment Form'!$B486<>\"Subscriber\",'Enrollment Form'!$C486=\"ROC\"),\"-\",IF(AND('Enrollment Form'!$B486=\"Subscriber\",'Enrollment Form'!$C486=\"Enroll\",'Enrollment Form'!$AN486<>\"\"),\"Y\",\"N\")))","v":""},{"$f":"IF($B479=\"N\",\"\",IF(OR('Enrollment Form'!$B486<>\"Subscriber\",'Enrollment Form'!$C486=\"ROC\"),\"-\",IF(AND('Enrollment Form'!$B486=\"Subscriber\",'Enrollment Form'!$C486=\"Enroll\",'Enrollment Form'!$AP486<>\"\"),\"Y\",\"N\")))","v":""},{"$f":"IF($B479=\"N\",\"\",IF($Q479=\"-\",\"-\",IF(AND($Q479=\"Y\",'Enrollment Form'!$AP486=\"No\"),\"-\",IF(AND($Q479=\"Y\",'Enrollment Form'!$AP486=\"Yes\",'Enrollment Form'!$AQ486<>\"\"),\"Y\",\"N\"))))","v":""},{"$f":"IF($B479=\"N\",\"\",IF(OR('Enrollment Form'!$B486<>\"Subscriber\",'Enrollment Form'!$C486=\"ROC\"),\"-\",IF(AND('Enrollment Form'!$B486=\"Subscriber\",'Enrollment Form'!$C486=\"Enroll\",'Enrollment Form'!$CO486<>\"\"),\"Y\",\"N\")))","v":""},{"$f":"IF($B479=\"N\",\"\",IF($S479=\"-\",\"-\",IF(AND($S479=\"Y\",'Enrollment Form'!$CO486=\"No\"),\"-\",IF(AND($S479=\"Y\",'Enrollment Form'!$CO486=\"Yes\",'Enrollment Form'!$CP486<>\"\"),\"Y\",\"N\"))))","v":""},{"$f":"IF(OR('Enrollment Form'!$AV486=\"Yes\",'Enrollment Form'!$AV486=\"\"),\"-\",IF(AND('Enrollment Form'!$AV486=\"No\",ISERROR(FIND(\"HMO\",VLOOKUP('Enrollment Form'!G486,'Enrollment Form'!H$11:J$1000,3,FALSE),1))=FALSE,COUNTA('Enrollment Form'!$AW486:$AZ486)=4),\"Y\",\"N\"))","v":"-"},{"$f":"IF($B479=\"N\",\"\",IF('Enrollment Form'!$B486=\"Subscriber\",\"-\",IF(COUNTA('Enrollment Form'!$BE486,'Enrollment Form'!$BG486)=2,\"Y\",\"N\")))","v":""},{"$f":"IF($B479=\"N\",\"\",IF(OR('Enrollment Form'!$AU486=\"\",'Enrollment Form'!$AU486=\"No\"),\"-\",IF(AND('Enrollment Form'!$AU486=\"Yes\",COUNTA('Enrollment Form'!$CK486)=1),\"Y\",\"N\")))","v":""},{"$f":"IF(OR('Enrollment Form'!$CK486=\"\",'Enrollment Form'!$CK486=\"No\"),\"-\",IF(COUNTA('Enrollment Form'!$CM486:$CN486)=2,\"Y\",\"N\"))","v":"-"},{"$f":"IF($B479=\"N\",\"\",IF(COUNTIF('Enrollment Form'!$CZ486:$DO486,\"Other\")=COUNTA('Enrollment Form'!$DF486,'Enrollment Form'!$DA486,'Enrollment Form'!$DK486,'Enrollment Form'!$DP486),\"Y\",\"N\"))","v":""},{"$f":"IF($B479=\"N\",\"\",IF(OR('Enrollment Form'!B486<>\"Subscriber\",'Enrollment Form'!C486=\"ROC\",COUNTIF('Enrollment Form'!AS486:AT486,\"Yes\")>=1),\"-\",IF(AND('Enrollment Form'!C486=\"Enroll\",COUNTIF('Enrollment Form'!AS486:AT486,\"No\")=2,'Enrollment Form'!AU486=\"\"),\"N\",\"Y\")))","v":""},{"$f":"IF(OR(B479=\"N\",'Enrollment Form'!B486<>\"Subscriber\",'Enrollment Form'!C486=\"ROC\",'Enrollment Form'!O486<>\"Multiple of Salary\"),\"-\",IF(COUNTA('Enrollment Form'!T486:U486)<2,\"N\",\"Y\"))","v":"-"},{"$f":"IF(B479=\"N\",\"\",IF(OR('Enrollment Form'!C486=\"ROC\",'Enrollment Form'!B486<>\"Subscriber\",'Enrollment Form'!O486=\"Waive\",'Enrollment Form'!O486=\"\"),\"-\",IF('Enrollment Form'!P486=\"\",\"N\",\"Y\")))","v":""},{"$f":"IF($B479=\"N\",\"\",IF(AND('Enrollment Form'!$C486=\"ROC\",'Enrollment Form'!$DS486<>\"\"),\"Y\",IF(AND('Enrollment Form'!$C486=\"ROC\",'Enrollment Form'!$DS486=\"\"),\"N\",IF(AND('Enrollment Form'!$C486=\"Enroll\",'Enrollment Form'!$B486=\"Subscriber\",'Enrollment Form'!$CQ486=\"No\",'Enrollment Form'!$DS486=\"\"),\"N\",IF(AND('Enrollment Form'!$C486=\"Enroll\",'Enrollment Form'!$B486=\"Subscriber\",'Enrollment Form'!$CQ486=\"Yes\"),\"-\",\"Y\")))))","v":""},{"$f":"IF($B479=\"N\",\"\",IF(AND('Enrollment Form'!$C486=\"ROC\",'Enrollment Form'!$DT486<>\"\"),\"Y\",IF(AND('Enrollment Form'!$C486=\"ROC\",'Enrollment Form'!$DT486=\"\"),\"N\",IF(AND('Enrollment Form'!$C486=\"Enroll\",'Enrollment Form'!$B486=\"Subscriber\",'Enrollment Form'!$CQ486=\"No\",'Enrollment Form'!$DT486=\"\"),\"N\",IF(AND('Enrollment Form'!$C486=\"Enroll\",'Enrollment Form'!$B486=\"Subscriber\",'Enrollment Form'!$CQ486=\"Yes\"),\"-\",\"Y\")))))","v":""},{"$f":"IF('Enrollment Form'!AH486=\"\",\"\",IF(ISERROR(SEARCH(\".\",'Enrollment Form'!AH486,SEARCH(\"@\",'Enrollment Form'!AH486))),\"N\",\"Y\"))","v":""},{"$f":"IF(OR($B479=\"N\",'Enrollment Form'!$G486=\"\"),\"\",IF('Enrollment Form'!$B486<>\"Subscriber\",\"-\",IF(COUNTIF('Enrollment Form'!$AS486:$AT486,\"Yes\")=2,\"N\",\"Y\")))","v":""},{"$f":"IF(OR('Enrollment Form'!$CC486=\"\",'Enrollment Form'!$CC486=\"No\"),\"-\",IF(AND('Enrollment Form'!$CC486=\"Yes\",'Enrollment Form'!$CD486=\"\"),\"N\",\"Y\"))","v":"-"},{"$f":"IF(OR('Enrollment Form'!$CE486=\"\",'Enrollment Form'!$CE486=\"No\"),\"-\",IF(AND('Enrollment Form'!$CE486=\"Yes\",'Enrollment Form'!$CF486=\"\"),\"N\",\"Y\"))","v":"-"},{"$f":"IF(OR('Enrollment Form'!$CG486=\"\",'Enrollment Form'!$CG486=\"No\"),\"-\",IF(AND('Enrollment Form'!$CG486=\"Yes\",'Enrollment Form'!$CH486=\"\"),\"N\",\"Y\"))","v":"-"},{"$f":"IF(OR('Enrollment Form'!$CG486=\"\",'Enrollment Form'!$CG486=\"No\"),\"-\",IF(AND('Enrollment Form'!$CG486=\"Yes\",'Enrollment Form'!$CI486=\"\"),\"N\",\"Y\"))","v":"-"},{"$f":"IF('Enrollment Form'!B486<>\"Subscriber\",\"-\",IF(AND('Enrollment Form'!B486=\"Subscriber\",'Enrollment Form'!C486=\"Enroll\",'Enrollment Form'!AA486=\"\"),\"N\",\"Y\"))","v":"-"},{"$f":"IF(OR('Enrollment Form'!B486=\"Subscriber\",'Enrollment Form'!B486=\"\"),\"-\",IF('Enrollment Form'!BI486=\"\",\"N\",\"Y\"))","v":"-"},{"$f":"IF('Enrollment Form'!B486<>\"Subscriber\",\"-\",IF(AND('Enrollment Form'!B486=\"Subscriber\",'Enrollment Form'!G486=\"\"),\"N\",\"Y\"))","v":"-"},{"$f":"IF('Enrollment Form'!A486=\"\",\"\",IF('Enrollment Form'!B486=\"Subscriber\",\"-\",IF(AND('Enrollment Form'!B486<>\"Subscriber\",'Enrollment Form'!G486='Enrollment Form'!H486),\"N\",\"Y\")))","v":""},0]
[487,{"$f":"IF('Enrollment Form'!$A487<>\"\",\"Y\",\"N\")","v":"N"},{"$f":"IF(AND('Enrollment Form'!$B487=\"\",'Enrollment Form'!$C487<>\"\"),\"N\",IF($B480=\"N\",\"\",\"Y\"))","v":""},{"$f":"IF(OR($B480=\"N\",'Enrollment Form'!G487=\"\"),\"\",IF('Enrollment Form'!$B487<>\"Subscriber\",\"\",IF('Enrollment Form'!$G487='Enrollment Form'!$H487,\"Y\",\"N\")))","v":""},{"$f":"IF($B480=\"N\",\"\",IF(AND(COUNTIFS('Enrollment Form'!$H$11:$H$1000,'Enrollment Form'!$H487,'Enrollment Form'!$B$11:$B$1000,'Enrollment Form'!$B487)>1,'Enrollment Form'!$H487<>\"\"),\"N\",\"Y\"))","v":""},{"$f":"IF($B480=\"N\",\"\",IF(LEN('Enrollment Form'!$Y487)=0,\"\",IF(LEN('Enrollment Form'!$Y487)<>5,\"N\",\"Y\")))","v":""},{"$f":"IF($B480=\"N\",\"\",IF(LEN('Enrollment Form'!$AD487=0),\"\",IF(LEN('Enrollment Form'!$AD487)<>5,\"N\",\"Y\")))","v":""},{"$f":"IF($B480=\"N\",\"\",IF(LEN('Enrollment Form'!$BL487=0),\"\",IF(LEN('Enrollment Form'!$BL487)<>5,\"N\",\"Y\")))","v":""},{"$f":"IF($B480=\"N\",\"\",IF(LEN('Enrollment Form'!$AE487)=0,\"\",IF(LEN('Enrollment Form'!$AE487)<>10,\"N\",\"Y\")))","v":""},{"$f":"IF($B480=\"N\",\"\",IF(LEN('Enrollment Form'!$AF487)=0,\"\",IF(LEN('Enrollment Form'!$AF487)<>10,\"N\",\"Y\")))","v":""},{"$f":"IF('Enrollment Form'!$O487<>\"Graded\",\"-\",IF(AND('Enrollment Form'!$O487=\"Graded\",'Enrollment Form'!$AO487<>\"\"),\"Y\",\"N\"))","v":"-"},{"$f":"IF($B480=\"N\",\"\",IF(OR('Enrollment Form'!$B487<>\"Subscriber\",'Enrollment Form'!$C487=\"ROC\"),\"-\",IF(AND('Enrollment Form'!$B487=\"Subscriber\",'Enrollment Form'!$C487=\"Enroll\",'Enrollment Form'!$AJ487<>\"\"),\"Y\",\"N\")))","v":""},{"$f":"IF($B480=\"N\",\"\",IF(OR('Enrollment Form'!$B487<>\"Subscriber\",'Enrollment Form'!$C487=\"ROC\"),\"-\",IF(AND('Enrollment Form'!$B487=\"Subscriber\",'Enrollment Form'!$C487=\"Enroll\",'Enrollment Form'!$AK487<>\"\"),\"Y\",\"N\")))","v":""},{"$f":"IF($B480=\"N\",\"\",IF(OR('Enrollment Form'!$B487<>\"Subscriber\",'Enrollment Form'!$C487=\"ROC\"),\"-\",IF(AND('Enrollment Form'!$B487=\"Subscriber\",'Enrollment Form'!$C487=\"Enroll\",'Enrollment Form'!$AL487<>\"\"),\"Y\",\"N\")))","v":""},{"$f":"IF($B480=\"N\",\"\",IF(OR('Enrollment Form'!$B487<>\"Subscriber\",'Enrollment Form'!$C487=\"ROC\"),\"-\",IF(AND('Enrollment Form'!$B487=\"Subscriber\",'Enrollment Form'!$C487=\"Enroll\",'Enrollment Form'!$AM487<>\"\"),\"Y\",\"N\")))","v":""},{"$f":"IF($B480=\"N\",\"\",IF(OR('Enrollment Form'!$B487<>\"Subscriber\",'Enrollment Form'!$C487=\"ROC\"),\"-\",IF(AND('Enrollment Form'!$B487=\"Subscriber\",'Enrollment Form'!$C487=\"Enroll\",'Enrollment Form'!$AN487<>\"\"),\"Y\",\"N\")))","v":""},{"$f":"IF($B480=\"N\",\"\",IF(OR('Enrollment Form'!$B487<>\"Subscriber\",'Enrollment Form'!$C487=\"ROC\"),\"-\",IF(AND('Enrollment Form'!$B487=\"Subscriber\",'Enrollment Form'!$C487=\"Enroll\",'Enrollment Form'!$AP487<>\"\"),\"Y\",\"N\")))","v":""},{"$f":"IF($B480=\"N\",\"\",IF($Q480=\"-\",\"-\",IF(AND($Q480=\"Y\",'Enrollment Form'!$AP487=\"No\"),\"-\",IF(AND($Q480=\"Y\",'Enrollment Form'!$AP487=\"Yes\",'Enrollment Form'!$AQ487<>\"\"),\"Y\",\"N\"))))","v":""},{"$f":"IF($B480=\"N\",\"\",IF(OR('Enrollment Form'!$B487<>\"Subscriber\",'Enrollment Form'!$C487=\"ROC\"),\"-\",IF(AND('Enrollment Form'!$B487=\"Subscriber\",'Enrollment Form'!$C487=\"Enroll\",'Enrollment Form'!$CO487<>\"\"),\"Y\",\"N\")))","v":""},{"$f":"IF($B480=\"N\",\"\",IF($S480=\"-\",\"-\",IF(AND($S480=\"Y\",'Enrollment Form'!$CO487=\"No\"),\"-\",IF(AND($S480=\"Y\",'Enrollment Form'!$CO487=\"Yes\",'Enrollment Form'!$CP487<>\"\"),\"Y\",\"N\"))))","v":""},{"$f":"IF(OR('Enrollment Form'!$AV487=\"Yes\",'Enrollment Form'!$AV487=\"\"),\"-\",IF(AND('Enrollment Form'!$AV487=\"No\",ISERROR(FIND(\"HMO\",VLOOKUP('Enrollment Form'!G487,'Enrollment Form'!H$11:J$1000,3,FALSE),1))=FALSE,COUNTA('Enrollment Form'!$AW487:$AZ487)=4),\"Y\",\"N\"))","v":"-"},{"$f":"IF($B480=\"N\",\"\",IF('Enrollment Form'!$B487=\"Subscriber\",\"-\",IF(COUNTA('Enrollment Form'!$BE487,'Enrollment Form'!$BG487)=2,\"Y\",\"N\")))","v":""},{"$f":"IF($B480=\"N\",\"\",IF(OR('Enrollment Form'!$AU487=\"\",'Enrollment Form'!$AU487=\"No\"),\"-\",IF(AND('Enrollment Form'!$AU487=\"Yes\",COUNTA('Enrollment Form'!$CK487)=1),\"Y\",\"N\")))","v":""},{"$f":"IF(OR('Enrollment Form'!$CK487=\"\",'Enrollment Form'!$CK487=\"No\"),\"-\",IF(COUNTA('Enrollment Form'!$CM487:$CN487)=2,\"Y\",\"N\"))","v":"-"},{"$f":"IF($B480=\"N\",\"\",IF(COUNTIF('Enrollment Form'!$CZ487:$DO487,\"Other\")=COUNTA('Enrollment Form'!$DF487,'Enrollment Form'!$DA487,'Enrollment Form'!$DK487,'Enrollment Form'!$DP487),\"Y\",\"N\"))","v":""},{"$f":"IF($B480=\"N\",\"\",IF(OR('Enrollment Form'!B487<>\"Subscriber\",'Enrollment Form'!C487=\"ROC\",COUNTIF('Enrollment Form'!AS487:AT487,\"Yes\")>=1),\"-\",IF(AND('Enrollment Form'!C487=\"Enroll\",COUNTIF('Enrollment Form'!AS487:AT487,\"No\")=2,'Enrollment Form'!AU487=\"\"),\"N\",\"Y\")))","v":""},{"$f":"IF(OR(B480=\"N\",'Enrollment Form'!B487<>\"Subscriber\",'Enrollment Form'!C487=\"ROC\",'Enrollment Form'!O487<>\"Multiple of Salary\"),\"-\",IF(COUNTA('Enrollment Form'!T487:U487)<2,\"N\",\"Y\"))","v":"-"},{"$f":"IF(B480=\"N\",\"\",IF(OR('Enrollment Form'!C487=\"ROC\",'Enrollment Form'!B487<>\"Subscriber\",'Enrollment Form'!O487=\"Waive\",'Enrollment Form'!O487=\"\"),\"-\",IF('Enrollment Form'!P487=\"\",\"N\",\"Y\")))","v":""},{"$f":"IF($B480=\"N\",\"\",IF(AND('Enrollment Form'!$C487=\"ROC\",'Enrollment Form'!$DS487<>\"\"),\"Y\",IF(AND('Enrollment Form'!$C487=\"ROC\",'Enrollment Form'!$DS487=\"\"),\"N\",IF(AND('Enrollment Form'!$C487=\"Enroll\",'Enrollment Form'!$B487=\"Subscriber\",'Enrollment Form'!$CQ487=\"No\",'Enrollment Form'!$DS487=\"\"),\"N\",IF(AND('Enrollment Form'!$C487=\"Enroll\",'Enrollment Form'!$B487=\"Subscriber\",'Enrollment Form'!$CQ487=\"Yes\"),\"-\",\"Y\")))))","v":""},{"$f":"IF($B480=\"N\",\"\",IF(AND('Enrollment Form'!$C487=\"ROC\",'Enrollment Form'!$DT487<>\"\"),\"Y\",IF(AND('Enrollment Form'!$C487=\"ROC\",'Enrollment Form'!$DT487=\"\"),\"N\",IF(AND('Enrollment Form'!$C487=\"Enroll\",'Enrollment Form'!$B487=\"Subscriber\",'Enrollment Form'!$CQ487=\"No\",'Enrollment Form'!$DT487=\"\"),\"N\",IF(AND('Enrollment Form'!$C487=\"Enroll\",'Enrollment Form'!$B487=\"Subscriber\",'Enrollment Form'!$CQ487=\"Yes\"),\"-\",\"Y\")))))","v":""},{"$f":"IF('Enrollment Form'!AH487=\"\",\"\",IF(ISERROR(SEARCH(\".\",'Enrollment Form'!AH487,SEARCH(\"@\",'Enrollment Form'!AH487))),\"N\",\"Y\"))","v":""},{"$f":"IF(OR($B480=\"N\",'Enrollment Form'!$G487=\"\"),\"\",IF('Enrollment Form'!$B487<>\"Subscriber\",\"-\",IF(COUNTIF('Enrollment Form'!$AS487:$AT487,\"Yes\")=2,\"N\",\"Y\")))","v":""},{"$f":"IF(OR('Enrollment Form'!$CC487=\"\",'Enrollment Form'!$CC487=\"No\"),\"-\",IF(AND('Enrollment Form'!$CC487=\"Yes\",'Enrollment Form'!$CD487=\"\"),\"N\",\"Y\"))","v":"-"},{"$f":"IF(OR('Enrollment Form'!$CE487=\"\",'Enrollment Form'!$CE487=\"No\"),\"-\",IF(AND('Enrollment Form'!$CE487=\"Yes\",'Enrollment Form'!$CF487=\"\"),\"N\",\"Y\"))","v":"-"},{"$f":"IF(OR('Enrollment Form'!$CG487=\"\",'Enrollment Form'!$CG487=\"No\"),\"-\",IF(AND('Enrollment Form'!$CG487=\"Yes\",'Enrollment Form'!$CH487=\"\"),\"N\",\"Y\"))","v":"-"},{"$f":"IF(OR('Enrollment Form'!$CG487=\"\",'Enrollment Form'!$CG487=\"No\"),\"-\",IF(AND('Enrollment Form'!$CG487=\"Yes\",'Enrollment Form'!$CI487=\"\"),\"N\",\"Y\"))","v":"-"},{"$f":"IF('Enrollment Form'!B487<>\"Subscriber\",\"-\",IF(AND('Enrollment Form'!B487=\"Subscriber\",'Enrollment Form'!C487=\"Enroll\",'Enrollment Form'!AA487=\"\"),\"N\",\"Y\"))","v":"-"},{"$f":"IF(OR('Enrollment Form'!B487=\"Subscriber\",'Enrollment Form'!B487=\"\"),\"-\",IF('Enrollment Form'!BI487=\"\",\"N\",\"Y\"))","v":"-"},{"$f":"IF('Enrollment Form'!B487<>\"Subscriber\",\"-\",IF(AND('Enrollment Form'!B487=\"Subscriber\",'Enrollment Form'!G487=\"\"),\"N\",\"Y\"))","v":"-"},{"$f":"IF('Enrollment Form'!A487=\"\",\"\",IF('Enrollment Form'!B487=\"Subscriber\",\"-\",IF(AND('Enrollment Form'!B487<>\"Subscriber\",'Enrollment Form'!G487='Enrollment Form'!H487),\"N\",\"Y\")))","v":""},0]
[488,{"$f":"IF('Enrollment Form'!$A488<>\"\",\"Y\",\"N\")","v":"N"},{"$f":"IF(AND('Enrollment Form'!$B488=\"\",'Enrollment Form'!$C488<>\"\"),\"N\",IF($B481=\"N\",\"\",\"Y\"))","v":""},{"$f":"IF(OR($B481=\"N\",'Enrollment Form'!G488=\"\"),\"\",IF('Enrollment Form'!$B488<>\"Subscriber\",\"\",IF('Enrollment Form'!$G488='Enrollment Form'!$H488,\"Y\",\"N\")))","v":""},{"$f":"IF($B481=\"N\",\"\",IF(AND(COUNTIFS('Enrollment Form'!$H$11:$H$1000,'Enrollment Form'!$H488,'Enrollment Form'!$B$11:$B$1000,'Enrollment Form'!$B488)>1,'Enrollment Form'!$H488<>\"\"),\"N\",\"Y\"))","v":""},{"$f":"IF($B481=\"N\",\"\",IF(LEN('Enrollment Form'!$Y488)=0,\"\",IF(LEN('Enrollment Form'!$Y488)<>5,\"N\",\"Y\")))","v":""},{"$f":"IF($B481=\"N\",\"\",IF(LEN('Enrollment Form'!$AD488=0),\"\",IF(LEN('Enrollment Form'!$AD488)<>5,\"N\",\"Y\")))","v":""},{"$f":"IF($B481=\"N\",\"\",IF(LEN('Enrollment Form'!$BL488=0),\"\",IF(LEN('Enrollment Form'!$BL488)<>5,\"N\",\"Y\")))","v":""},{"$f":"IF($B481=\"N\",\"\",IF(LEN('Enrollment Form'!$AE488)=0,\"\",IF(LEN('Enrollment Form'!$AE488)<>10,\"N\",\"Y\")))","v":""},{"$f":"IF($B481=\"N\",\"\",IF(LEN('Enrollment Form'!$AF488)=0,\"\",IF(LEN('Enrollment Form'!$AF488)<>10,\"N\",\"Y\")))","v":""},{"$f":"IF('Enrollment Form'!$O488<>\"Graded\",\"-\",IF(AND('Enrollment Form'!$O488=\"Graded\",'Enrollment Form'!$AO488<>\"\"),\"Y\",\"N\"))","v":"-"},{"$f":"IF($B481=\"N\",\"\",IF(OR('Enrollment Form'!$B488<>\"Subscriber\",'Enrollment Form'!$C488=\"ROC\"),\"-\",IF(AND('Enrollment Form'!$B488=\"Subscriber\",'Enrollment Form'!$C488=\"Enroll\",'Enrollment Form'!$AJ488<>\"\"),\"Y\",\"N\")))","v":""},{"$f":"IF($B481=\"N\",\"\",IF(OR('Enrollment Form'!$B488<>\"Subscriber\",'Enrollment Form'!$C488=\"ROC\"),\"-\",IF(AND('Enrollment Form'!$B488=\"Subscriber\",'Enrollment Form'!$C488=\"Enroll\",'Enrollment Form'!$AK488<>\"\"),\"Y\",\"N\")))","v":""},{"$f":"IF($B481=\"N\",\"\",IF(OR('Enrollment Form'!$B488<>\"Subscriber\",'Enrollment Form'!$C488=\"ROC\"),\"-\",IF(AND('Enrollment Form'!$B488=\"Subscriber\",'Enrollment Form'!$C488=\"Enroll\",'Enrollment Form'!$AL488<>\"\"),\"Y\",\"N\")))","v":""},{"$f":"IF($B481=\"N\",\"\",IF(OR('Enrollment Form'!$B488<>\"Subscriber\",'Enrollment Form'!$C488=\"ROC\"),\"-\",IF(AND('Enrollment Form'!$B488=\"Subscriber\",'Enrollment Form'!$C488=\"Enroll\",'Enrollment Form'!$AM488<>\"\"),\"Y\",\"N\")))","v":""},{"$f":"IF($B481=\"N\",\"\",IF(OR('Enrollment Form'!$B488<>\"Subscriber\",'Enrollment Form'!$C488=\"ROC\"),\"-\",IF(AND('Enrollment Form'!$B488=\"Subscriber\",'Enrollment Form'!$C488=\"Enroll\",'Enrollment Form'!$AN488<>\"\"),\"Y\",\"N\")))","v":""},{"$f":"IF($B481=\"N\",\"\",IF(OR('Enrollment Form'!$B488<>\"Subscriber\",'Enrollment Form'!$C488=\"ROC\"),\"-\",IF(AND('Enrollment Form'!$B488=\"Subscriber\",'Enrollment Form'!$C488=\"Enroll\",'Enrollment Form'!$AP488<>\"\"),\"Y\",\"N\")))","v":""},{"$f":"IF($B481=\"N\",\"\",IF($Q481=\"-\",\"-\",IF(AND($Q481=\"Y\",'Enrollment Form'!$AP488=\"No\"),\"-\",IF(AND($Q481=\"Y\",'Enrollment Form'!$AP488=\"Yes\",'Enrollment Form'!$AQ488<>\"\"),\"Y\",\"N\"))))","v":""},{"$f":"IF($B481=\"N\",\"\",IF(OR('Enrollment Form'!$B488<>\"Subscriber\",'Enrollment Form'!$C488=\"ROC\"),\"-\",IF(AND('Enrollment Form'!$B488=\"Subscriber\",'Enrollment Form'!$C488=\"Enroll\",'Enrollment Form'!$CO488<>\"\"),\"Y\",\"N\")))","v":""},{"$f":"IF($B481=\"N\",\"\",IF($S481=\"-\",\"-\",IF(AND($S481=\"Y\",'Enrollment Form'!$CO488=\"No\"),\"-\",IF(AND($S481=\"Y\",'Enrollment Form'!$CO488=\"Yes\",'Enrollment Form'!$CP488<>\"\"),\"Y\",\"N\"))))","v":""},{"$f":"IF(OR('Enrollment Form'!$AV488=\"Yes\",'Enrollment Form'!$AV488=\"\"),\"-\",IF(AND('Enrollment Form'!$AV488=\"No\",ISERROR(FIND(\"HMO\",VLOOKUP('Enrollment Form'!G488,'Enrollment Form'!H$11:J$1000,3,FALSE),1))=FALSE,COUNTA('Enrollment Form'!$AW488:$AZ488)=4),\"Y\",\"N\"))","v":"-"},{"$f":"IF($B481=\"N\",\"\",IF('Enrollment Form'!$B488=\"Subscriber\",\"-\",IF(COUNTA('Enrollment Form'!$BE488,'Enrollment Form'!$BG488)=2,\"Y\",\"N\")))","v":""},{"$f":"IF($B481=\"N\",\"\",IF(OR('Enrollment Form'!$AU488=\"\",'Enrollment Form'!$AU488=\"No\"),\"-\",IF(AND('Enrollment Form'!$AU488=\"Yes\",COUNTA('Enrollment Form'!$CK488)=1),\"Y\",\"N\")))","v":""},{"$f":"IF(OR('Enrollment Form'!$CK488=\"\",'Enrollment Form'!$CK488=\"No\"),\"-\",IF(COUNTA('Enrollment Form'!$CM488:$CN488)=2,\"Y\",\"N\"))","v":"-"},{"$f":"IF($B481=\"N\",\"\",IF(COUNTIF('Enrollment Form'!$CZ488:$DO488,\"Other\")=COUNTA('Enrollment Form'!$DF488,'Enrollment Form'!$DA488,'Enrollment Form'!$DK488,'Enrollment Form'!$DP488),\"Y\",\"N\"))","v":""},{"$f":"IF($B481=\"N\",\"\",IF(OR('Enrollment Form'!B488<>\"Subscriber\",'Enrollment Form'!C488=\"ROC\",COUNTIF('Enrollment Form'!AS488:AT488,\"Yes\")>=1),\"-\",IF(AND('Enrollment Form'!C488=\"Enroll\",COUNTIF('Enrollment Form'!AS488:AT488,\"No\")=2,'Enrollment Form'!AU488=\"\"),\"N\",\"Y\")))","v":""},{"$f":"IF(OR(B481=\"N\",'Enrollment Form'!B488<>\"Subscriber\",'Enrollment Form'!C488=\"ROC\",'Enrollment Form'!O488<>\"Multiple of Salary\"),\"-\",IF(COUNTA('Enrollment Form'!T488:U488)<2,\"N\",\"Y\"))","v":"-"},{"$f":"IF(B481=\"N\",\"\",IF(OR('Enrollment Form'!C488=\"ROC\",'Enrollment Form'!B488<>\"Subscriber\",'Enrollment Form'!O488=\"Waive\",'Enrollment Form'!O488=\"\"),\"-\",IF('Enrollment Form'!P488=\"\",\"N\",\"Y\")))","v":""},{"$f":"IF($B481=\"N\",\"\",IF(AND('Enrollment Form'!$C488=\"ROC\",'Enrollment Form'!$DS488<>\"\"),\"Y\",IF(AND('Enrollment Form'!$C488=\"ROC\",'Enrollment Form'!$DS488=\"\"),\"N\",IF(AND('Enrollment Form'!$C488=\"Enroll\",'Enrollment Form'!$B488=\"Subscriber\",'Enrollment Form'!$CQ488=\"No\",'Enrollment Form'!$DS488=\"\"),\"N\",IF(AND('Enrollment Form'!$C488=\"Enroll\",'Enrollment Form'!$B488=\"Subscriber\",'Enrollment Form'!$CQ488=\"Yes\"),\"-\",\"Y\")))))","v":""},{"$f":"IF($B481=\"N\",\"\",IF(AND('Enrollment Form'!$C488=\"ROC\",'Enrollment Form'!$DT488<>\"\"),\"Y\",IF(AND('Enrollment Form'!$C488=\"ROC\",'Enrollment Form'!$DT488=\"\"),\"N\",IF(AND('Enrollment Form'!$C488=\"Enroll\",'Enrollment Form'!$B488=\"Subscriber\",'Enrollment Form'!$CQ488=\"No\",'Enrollment Form'!$DT488=\"\"),\"N\",IF(AND('Enrollment Form'!$C488=\"Enroll\",'Enrollment Form'!$B488=\"Subscriber\",'Enrollment Form'!$CQ488=\"Yes\"),\"-\",\"Y\")))))","v":""},{"$f":"IF('Enrollment Form'!AH488=\"\",\"\",IF(ISERROR(SEARCH(\".\",'Enrollment Form'!AH488,SEARCH(\"@\",'Enrollment Form'!AH488))),\"N\",\"Y\"))","v":""},{"$f":"IF(OR($B481=\"N\",'Enrollment Form'!$G488=\"\"),\"\",IF('Enrollment Form'!$B488<>\"Subscriber\",\"-\",IF(COUNTIF('Enrollment Form'!$AS488:$AT488,\"Yes\")=2,\"N\",\"Y\")))","v":""},{"$f":"IF(OR('Enrollment Form'!$CC488=\"\",'Enrollment Form'!$CC488=\"No\"),\"-\",IF(AND('Enrollment Form'!$CC488=\"Yes\",'Enrollment Form'!$CD488=\"\"),\"N\",\"Y\"))","v":"-"},{"$f":"IF(OR('Enrollment Form'!$CE488=\"\",'Enrollment Form'!$CE488=\"No\"),\"-\",IF(AND('Enrollment Form'!$CE488=\"Yes\",'Enrollment Form'!$CF488=\"\"),\"N\",\"Y\"))","v":"-"},{"$f":"IF(OR('Enrollment Form'!$CG488=\"\",'Enrollment Form'!$CG488=\"No\"),\"-\",IF(AND('Enrollment Form'!$CG488=\"Yes\",'Enrollment Form'!$CH488=\"\"),\"N\",\"Y\"))","v":"-"},{"$f":"IF(OR('Enrollment Form'!$CG488=\"\",'Enrollment Form'!$CG488=\"No\"),\"-\",IF(AND('Enrollment Form'!$CG488=\"Yes\",'Enrollment Form'!$CI488=\"\"),\"N\",\"Y\"))","v":"-"},{"$f":"IF('Enrollment Form'!B488<>\"Subscriber\",\"-\",IF(AND('Enrollment Form'!B488=\"Subscriber\",'Enrollment Form'!C488=\"Enroll\",'Enrollment Form'!AA488=\"\"),\"N\",\"Y\"))","v":"-"},{"$f":"IF(OR('Enrollment Form'!B488=\"Subscriber\",'Enrollment Form'!B488=\"\"),\"-\",IF('Enrollment Form'!BI488=\"\",\"N\",\"Y\"))","v":"-"},{"$f":"IF('Enrollment Form'!B488<>\"Subscriber\",\"-\",IF(AND('Enrollment Form'!B488=\"Subscriber\",'Enrollment Form'!G488=\"\"),\"N\",\"Y\"))","v":"-"},{"$f":"IF('Enrollment Form'!A488=\"\",\"\",IF('Enrollment Form'!B488=\"Subscriber\",\"-\",IF(AND('Enrollment Form'!B488<>\"Subscriber\",'Enrollment Form'!G488='Enrollment Form'!H488),\"N\",\"Y\")))","v":""},0]
[489,{"$f":"IF('Enrollment Form'!$A489<>\"\",\"Y\",\"N\")","v":"N"},{"$f":"IF(AND('Enrollment Form'!$B489=\"\",'Enrollment Form'!$C489<>\"\"),\"N\",IF($B482=\"N\",\"\",\"Y\"))","v":""},{"$f":"IF(OR($B482=\"N\",'Enrollment Form'!G489=\"\"),\"\",IF('Enrollment Form'!$B489<>\"Subscriber\",\"\",IF('Enrollment Form'!$G489='Enrollment Form'!$H489,\"Y\",\"N\")))","v":""},{"$f":"IF($B482=\"N\",\"\",IF(AND(COUNTIFS('Enrollment Form'!$H$11:$H$1000,'Enrollment Form'!$H489,'Enrollment Form'!$B$11:$B$1000,'Enrollment Form'!$B489)>1,'Enrollment Form'!$H489<>\"\"),\"N\",\"Y\"))","v":""},{"$f":"IF($B482=\"N\",\"\",IF(LEN('Enrollment Form'!$Y489)=0,\"\",IF(LEN('Enrollment Form'!$Y489)<>5,\"N\",\"Y\")))","v":""},{"$f":"IF($B482=\"N\",\"\",IF(LEN('Enrollment Form'!$AD489=0),\"\",IF(LEN('Enrollment Form'!$AD489)<>5,\"N\",\"Y\")))","v":""},{"$f":"IF($B482=\"N\",\"\",IF(LEN('Enrollment Form'!$BL489=0),\"\",IF(LEN('Enrollment Form'!$BL489)<>5,\"N\",\"Y\")))","v":""},{"$f":"IF($B482=\"N\",\"\",IF(LEN('Enrollment Form'!$AE489)=0,\"\",IF(LEN('Enrollment Form'!$AE489)<>10,\"N\",\"Y\")))","v":""},{"$f":"IF($B482=\"N\",\"\",IF(LEN('Enrollment Form'!$AF489)=0,\"\",IF(LEN('Enrollment Form'!$AF489)<>10,\"N\",\"Y\")))","v":""},{"$f":"IF('Enrollment Form'!$O489<>\"Graded\",\"-\",IF(AND('Enrollment Form'!$O489=\"Graded\",'Enrollment Form'!$AO489<>\"\"),\"Y\",\"N\"))","v":"-"},{"$f":"IF($B482=\"N\",\"\",IF(OR('Enrollment Form'!$B489<>\"Subscriber\",'Enrollment Form'!$C489=\"ROC\"),\"-\",IF(AND('Enrollment Form'!$B489=\"Subscriber\",'Enrollment Form'!$C489=\"Enroll\",'Enrollment Form'!$AJ489<>\"\"),\"Y\",\"N\")))","v":""},{"$f":"IF($B482=\"N\",\"\",IF(OR('Enrollment Form'!$B489<>\"Subscriber\",'Enrollment Form'!$C489=\"ROC\"),\"-\",IF(AND('Enrollment Form'!$B489=\"Subscriber\",'Enrollment Form'!$C489=\"Enroll\",'Enrollment Form'!$AK489<>\"\"),\"Y\",\"N\")))","v":""},{"$f":"IF($B482=\"N\",\"\",IF(OR('Enrollment Form'!$B489<>\"Subscriber\",'Enrollment Form'!$C489=\"ROC\"),\"-\",IF(AND('Enrollment Form'!$B489=\"Subscriber\",'Enrollment Form'!$C489=\"Enroll\",'Enrollment Form'!$AL489<>\"\"),\"Y\",\"N\")))","v":""},{"$f":"IF($B482=\"N\",\"\",IF(OR('Enrollment Form'!$B489<>\"Subscriber\",'Enrollment Form'!$C489=\"ROC\"),\"-\",IF(AND('Enrollment Form'!$B489=\"Subscriber\",'Enrollment Form'!$C489=\"Enroll\",'Enrollment Form'!$AM489<>\"\"),\"Y\",\"N\")))","v":""},{"$f":"IF($B482=\"N\",\"\",IF(OR('Enrollment Form'!$B489<>\"Subscriber\",'Enrollment Form'!$C489=\"ROC\"),\"-\",IF(AND('Enrollment Form'!$B489=\"Subscriber\",'Enrollment Form'!$C489=\"Enroll\",'Enrollment Form'!$AN489<>\"\"),\"Y\",\"N\")))","v":""},{"$f":"IF($B482=\"N\",\"\",IF(OR('Enrollment Form'!$B489<>\"Subscriber\",'Enrollment Form'!$C489=\"ROC\"),\"-\",IF(AND('Enrollment Form'!$B489=\"Subscriber\",'Enrollment Form'!$C489=\"Enroll\",'Enrollment Form'!$AP489<>\"\"),\"Y\",\"N\")))","v":""},{"$f":"IF($B482=\"N\",\"\",IF($Q482=\"-\",\"-\",IF(AND($Q482=\"Y\",'Enrollment Form'!$AP489=\"No\"),\"-\",IF(AND($Q482=\"Y\",'Enrollment Form'!$AP489=\"Yes\",'Enrollment Form'!$AQ489<>\"\"),\"Y\",\"N\"))))","v":""},{"$f":"IF($B482=\"N\",\"\",IF(OR('Enrollment Form'!$B489<>\"Subscriber\",'Enrollment Form'!$C489=\"ROC\"),\"-\",IF(AND('Enrollment Form'!$B489=\"Subscriber\",'Enrollment Form'!$C489=\"Enroll\",'Enrollment Form'!$CO489<>\"\"),\"Y\",\"N\")))","v":""},{"$f":"IF($B482=\"N\",\"\",IF($S482=\"-\",\"-\",IF(AND($S482=\"Y\",'Enrollment Form'!$CO489=\"No\"),\"-\",IF(AND($S482=\"Y\",'Enrollment Form'!$CO489=\"Yes\",'Enrollment Form'!$CP489<>\"\"),\"Y\",\"N\"))))","v":""},{"$f":"IF(OR('Enrollment Form'!$AV489=\"Yes\",'Enrollment Form'!$AV489=\"\"),\"-\",IF(AND('Enrollment Form'!$AV489=\"No\",ISERROR(FIND(\"HMO\",VLOOKUP('Enrollment Form'!G489,'Enrollment Form'!H$11:J$1000,3,FALSE),1))=FALSE,COUNTA('Enrollment Form'!$AW489:$AZ489)=4),\"Y\",\"N\"))","v":"-"},{"$f":"IF($B482=\"N\",\"\",IF('Enrollment Form'!$B489=\"Subscriber\",\"-\",IF(COUNTA('Enrollment Form'!$BE489,'Enrollment Form'!$BG489)=2,\"Y\",\"N\")))","v":""},{"$f":"IF($B482=\"N\",\"\",IF(OR('Enrollment Form'!$AU489=\"\",'Enrollment Form'!$AU489=\"No\"),\"-\",IF(AND('Enrollment Form'!$AU489=\"Yes\",COUNTA('Enrollment Form'!$CK489)=1),\"Y\",\"N\")))","v":""},{"$f":"IF(OR('Enrollment Form'!$CK489=\"\",'Enrollment Form'!$CK489=\"No\"),\"-\",IF(COUNTA('Enrollment Form'!$CM489:$CN489)=2,\"Y\",\"N\"))","v":"-"},{"$f":"IF($B482=\"N\",\"\",IF(COUNTIF('Enrollment Form'!$CZ489:$DO489,\"Other\")=COUNTA('Enrollment Form'!$DF489,'Enrollment Form'!$DA489,'Enrollment Form'!$DK489,'Enrollment Form'!$DP489),\"Y\",\"N\"))","v":""},{"$f":"IF($B482=\"N\",\"\",IF(OR('Enrollment Form'!B489<>\"Subscriber\",'Enrollment Form'!C489=\"ROC\",COUNTIF('Enrollment Form'!AS489:AT489,\"Yes\")>=1),\"-\",IF(AND('Enrollment Form'!C489=\"Enroll\",COUNTIF('Enrollment Form'!AS489:AT489,\"No\")=2,'Enrollment Form'!AU489=\"\"),\"N\",\"Y\")))","v":""},{"$f":"IF(OR(B482=\"N\",'Enrollment Form'!B489<>\"Subscriber\",'Enrollment Form'!C489=\"ROC\",'Enrollment Form'!O489<>\"Multiple of Salary\"),\"-\",IF(COUNTA('Enrollment Form'!T489:U489)<2,\"N\",\"Y\"))","v":"-"},{"$f":"IF(B482=\"N\",\"\",IF(OR('Enrollment Form'!C489=\"ROC\",'Enrollment Form'!B489<>\"Subscriber\",'Enrollment Form'!O489=\"Waive\",'Enrollment Form'!O489=\"\"),\"-\",IF('Enrollment Form'!P489=\"\",\"N\",\"Y\")))","v":""},{"$f":"IF($B482=\"N\",\"\",IF(AND('Enrollment Form'!$C489=\"ROC\",'Enrollment Form'!$DS489<>\"\"),\"Y\",IF(AND('Enrollment Form'!$C489=\"ROC\",'Enrollment Form'!$DS489=\"\"),\"N\",IF(AND('Enrollment Form'!$C489=\"Enroll\",'Enrollment Form'!$B489=\"Subscriber\",'Enrollment Form'!$CQ489=\"No\",'Enrollment Form'!$DS489=\"\"),\"N\",IF(AND('Enrollment Form'!$C489=\"Enroll\",'Enrollment Form'!$B489=\"Subscriber\",'Enrollment Form'!$CQ489=\"Yes\"),\"-\",\"Y\")))))","v":""},{"$f":"IF($B482=\"N\",\"\",IF(AND('Enrollment Form'!$C489=\"ROC\",'Enrollment Form'!$DT489<>\"\"),\"Y\",IF(AND('Enrollment Form'!$C489=\"ROC\",'Enrollment Form'!$DT489=\"\"),\"N\",IF(AND('Enrollment Form'!$C489=\"Enroll\",'Enrollment Form'!$B489=\"Subscriber\",'Enrollment Form'!$CQ489=\"No\",'Enrollment Form'!$DT489=\"\"),\"N\",IF(AND('Enrollment Form'!$C489=\"Enroll\",'Enrollment Form'!$B489=\"Subscriber\",'Enrollment Form'!$CQ489=\"Yes\"),\"-\",\"Y\")))))","v":""},{"$f":"IF('Enrollment Form'!AH489=\"\",\"\",IF(ISERROR(SEARCH(\".\",'Enrollment Form'!AH489,SEARCH(\"@\",'Enrollment Form'!AH489))),\"N\",\"Y\"))","v":""},{"$f":"IF(OR($B482=\"N\",'Enrollment Form'!$G489=\"\"),\"\",IF('Enrollment Form'!$B489<>\"Subscriber\",\"-\",IF(COUNTIF('Enrollment Form'!$AS489:$AT489,\"Yes\")=2,\"N\",\"Y\")))","v":""},{"$f":"IF(OR('Enrollment Form'!$CC489=\"\",'Enrollment Form'!$CC489=\"No\"),\"-\",IF(AND('Enrollment Form'!$CC489=\"Yes\",'Enrollment Form'!$CD489=\"\"),\"N\",\"Y\"))","v":"-"},{"$f":"IF(OR('Enrollment Form'!$CE489=\"\",'Enrollment Form'!$CE489=\"No\"),\"-\",IF(AND('Enrollment Form'!$CE489=\"Yes\",'Enrollment Form'!$CF489=\"\"),\"N\",\"Y\"))","v":"-"},{"$f":"IF(OR('Enrollment Form'!$CG489=\"\",'Enrollment Form'!$CG489=\"No\"),\"-\",IF(AND('Enrollment Form'!$CG489=\"Yes\",'Enrollment Form'!$CH489=\"\"),\"N\",\"Y\"))","v":"-"},{"$f":"IF(OR('Enrollment Form'!$CG489=\"\",'Enrollment Form'!$CG489=\"No\"),\"-\",IF(AND('Enrollment Form'!$CG489=\"Yes\",'Enrollment Form'!$CI489=\"\"),\"N\",\"Y\"))","v":"-"},{"$f":"IF('Enrollment Form'!B489<>\"Subscriber\",\"-\",IF(AND('Enrollment Form'!B489=\"Subscriber\",'Enrollment Form'!C489=\"Enroll\",'Enrollment Form'!AA489=\"\"),\"N\",\"Y\"))","v":"-"},{"$f":"IF(OR('Enrollment Form'!B489=\"Subscriber\",'Enrollment Form'!B489=\"\"),\"-\",IF('Enrollment Form'!BI489=\"\",\"N\",\"Y\"))","v":"-"},{"$f":"IF('Enrollment Form'!B489<>\"Subscriber\",\"-\",IF(AND('Enrollment Form'!B489=\"Subscriber\",'Enrollment Form'!G489=\"\"),\"N\",\"Y\"))","v":"-"},{"$f":"IF('Enrollment Form'!A489=\"\",\"\",IF('Enrollment Form'!B489=\"Subscriber\",\"-\",IF(AND('Enrollment Form'!B489<>\"Subscriber\",'Enrollment Form'!G489='Enrollment Form'!H489),\"N\",\"Y\")))","v":""},0]
[490,{"$f":"IF('Enrollment Form'!$A490<>\"\",\"Y\",\"N\")","v":"N"},{"$f":"IF(AND('Enrollment Form'!$B490=\"\",'Enrollment Form'!$C490<>\"\"),\"N\",IF($B483=\"N\",\"\",\"Y\"))","v":""},{"$f":"IF(OR($B483=\"N\",'Enrollment Form'!G490=\"\"),\"\",IF('Enrollment Form'!$B490<>\"Subscriber\",\"\",IF('Enrollment Form'!$G490='Enrollment Form'!$H490,\"Y\",\"N\")))","v":""},{"$f":"IF($B483=\"N\",\"\",IF(AND(COUNTIFS('Enrollment Form'!$H$11:$H$1000,'Enrollment Form'!$H490,'Enrollment Form'!$B$11:$B$1000,'Enrollment Form'!$B490)>1,'Enrollment Form'!$H490<>\"\"),\"N\",\"Y\"))","v":""},{"$f":"IF($B483=\"N\",\"\",IF(LEN('Enrollment Form'!$Y490)=0,\"\",IF(LEN('Enrollment Form'!$Y490)<>5,\"N\",\"Y\")))","v":""},{"$f":"IF($B483=\"N\",\"\",IF(LEN('Enrollment Form'!$AD490=0),\"\",IF(LEN('Enrollment Form'!$AD490)<>5,\"N\",\"Y\")))","v":""},{"$f":"IF($B483=\"N\",\"\",IF(LEN('Enrollment Form'!$BL490=0),\"\",IF(LEN('Enrollment Form'!$BL490)<>5,\"N\",\"Y\")))","v":""},{"$f":"IF($B483=\"N\",\"\",IF(LEN('Enrollment Form'!$AE490)=0,\"\",IF(LEN('Enrollment Form'!$AE490)<>10,\"N\",\"Y\")))","v":""},{"$f":"IF($B483=\"N\",\"\",IF(LEN('Enrollment Form'!$AF490)=0,\"\",IF(LEN('Enrollment Form'!$AF490)<>10,\"N\",\"Y\")))","v":""},{"$f":"IF('Enrollment Form'!$O490<>\"Graded\",\"-\",IF(AND('Enrollment Form'!$O490=\"Graded\",'Enrollment Form'!$AO490<>\"\"),\"Y\",\"N\"))","v":"-"},{"$f":"IF($B483=\"N\",\"\",IF(OR('Enrollment Form'!$B490<>\"Subscriber\",'Enrollment Form'!$C490=\"ROC\"),\"-\",IF(AND('Enrollment Form'!$B490=\"Subscriber\",'Enrollment Form'!$C490=\"Enroll\",'Enrollment Form'!$AJ490<>\"\"),\"Y\",\"N\")))","v":""},{"$f":"IF($B483=\"N\",\"\",IF(OR('Enrollment Form'!$B490<>\"Subscriber\",'Enrollment Form'!$C490=\"ROC\"),\"-\",IF(AND('Enrollment Form'!$B490=\"Subscriber\",'Enrollment Form'!$C490=\"Enroll\",'Enrollment Form'!$AK490<>\"\"),\"Y\",\"N\")))","v":""},{"$f":"IF($B483=\"N\",\"\",IF(OR('Enrollment Form'!$B490<>\"Subscriber\",'Enrollment Form'!$C490=\"ROC\"),\"-\",IF(AND('Enrollment Form'!$B490=\"Subscriber\",'Enrollment Form'!$C490=\"Enroll\",'Enrollment Form'!$AL490<>\"\"),\"Y\",\"N\")))","v":""},{"$f":"IF($B483=\"N\",\"\",IF(OR('Enrollment Form'!$B490<>\"Subscriber\",'Enrollment Form'!$C490=\"ROC\"),\"-\",IF(AND('Enrollment Form'!$B490=\"Subscriber\",'Enrollment Form'!$C490=\"Enroll\",'Enrollment Form'!$AM490<>\"\"),\"Y\",\"N\")))","v":""},{"$f":"IF($B483=\"N\",\"\",IF(OR('Enrollment Form'!$B490<>\"Subscriber\",'Enrollment Form'!$C490=\"ROC\"),\"-\",IF(AND('Enrollment Form'!$B490=\"Subscriber\",'Enrollment Form'!$C490=\"Enroll\",'Enrollment Form'!$AN490<>\"\"),\"Y\",\"N\")))","v":""},{"$f":"IF($B483=\"N\",\"\",IF(OR('Enrollment Form'!$B490<>\"Subscriber\",'Enrollment Form'!$C490=\"ROC\"),\"-\",IF(AND('Enrollment Form'!$B490=\"Subscriber\",'Enrollment Form'!$C490=\"Enroll\",'Enrollment Form'!$AP490<>\"\"),\"Y\",\"N\")))","v":""},{"$f":"IF($B483=\"N\",\"\",IF($Q483=\"-\",\"-\",IF(AND($Q483=\"Y\",'Enrollment Form'!$AP490=\"No\"),\"-\",IF(AND($Q483=\"Y\",'Enrollment Form'!$AP490=\"Yes\",'Enrollment Form'!$AQ490<>\"\"),\"Y\",\"N\"))))","v":""},{"$f":"IF($B483=\"N\",\"\",IF(OR('Enrollment Form'!$B490<>\"Subscriber\",'Enrollment Form'!$C490=\"ROC\"),\"-\",IF(AND('Enrollment Form'!$B490=\"Subscriber\",'Enrollment Form'!$C490=\"Enroll\",'Enrollment Form'!$CO490<>\"\"),\"Y\",\"N\")))","v":""},{"$f":"IF($B483=\"N\",\"\",IF($S483=\"-\",\"-\",IF(AND($S483=\"Y\",'Enrollment Form'!$CO490=\"No\"),\"-\",IF(AND($S483=\"Y\",'Enrollment Form'!$CO490=\"Yes\",'Enrollment Form'!$CP490<>\"\"),\"Y\",\"N\"))))","v":""},{"$f":"IF(OR('Enrollment Form'!$AV490=\"Yes\",'Enrollment Form'!$AV490=\"\"),\"-\",IF(AND('Enrollment Form'!$AV490=\"No\",ISERROR(FIND(\"HMO\",VLOOKUP('Enrollment Form'!G490,'Enrollment Form'!H$11:J$1000,3,FALSE),1))=FALSE,COUNTA('Enrollment Form'!$AW490:$AZ490)=4),\"Y\",\"N\"))","v":"-"},{"$f":"IF($B483=\"N\",\"\",IF('Enrollment Form'!$B490=\"Subscriber\",\"-\",IF(COUNTA('Enrollment Form'!$BE490,'Enrollment Form'!$BG490)=2,\"Y\",\"N\")))","v":""},{"$f":"IF($B483=\"N\",\"\",IF(OR('Enrollment Form'!$AU490=\"\",'Enrollment Form'!$AU490=\"No\"),\"-\",IF(AND('Enrollment Form'!$AU490=\"Yes\",COUNTA('Enrollment Form'!$CK490)=1),\"Y\",\"N\")))","v":""},{"$f":"IF(OR('Enrollment Form'!$CK490=\"\",'Enrollment Form'!$CK490=\"No\"),\"-\",IF(COUNTA('Enrollment Form'!$CM490:$CN490)=2,\"Y\",\"N\"))","v":"-"},{"$f":"IF($B483=\"N\",\"\",IF(COUNTIF('Enrollment Form'!$CZ490:$DO490,\"Other\")=COUNTA('Enrollment Form'!$DF490,'Enrollment Form'!$DA490,'Enrollment Form'!$DK490,'Enrollment Form'!$DP490),\"Y\",\"N\"))","v":""},{"$f":"IF($B483=\"N\",\"\",IF(OR('Enrollment Form'!B490<>\"Subscriber\",'Enrollment Form'!C490=\"ROC\",COUNTIF('Enrollment Form'!AS490:AT490,\"Yes\")>=1),\"-\",IF(AND('Enrollment Form'!C490=\"Enroll\",COUNTIF('Enrollment Form'!AS490:AT490,\"No\")=2,'Enrollment Form'!AU490=\"\"),\"N\",\"Y\")))","v":""},{"$f":"IF(OR(B483=\"N\",'Enrollment Form'!B490<>\"Subscriber\",'Enrollment Form'!C490=\"ROC\",'Enrollment Form'!O490<>\"Multiple of Salary\"),\"-\",IF(COUNTA('Enrollment Form'!T490:U490)<2,\"N\",\"Y\"))","v":"-"},{"$f":"IF(B483=\"N\",\"\",IF(OR('Enrollment Form'!C490=\"ROC\",'Enrollment Form'!B490<>\"Subscriber\",'Enrollment Form'!O490=\"Waive\",'Enrollment Form'!O490=\"\"),\"-\",IF('Enrollment Form'!P490=\"\",\"N\",\"Y\")))","v":""},{"$f":"IF($B483=\"N\",\"\",IF(AND('Enrollment Form'!$C490=\"ROC\",'Enrollment Form'!$DS490<>\"\"),\"Y\",IF(AND('Enrollment Form'!$C490=\"ROC\",'Enrollment Form'!$DS490=\"\"),\"N\",IF(AND('Enrollment Form'!$C490=\"Enroll\",'Enrollment Form'!$B490=\"Subscriber\",'Enrollment Form'!$CQ490=\"No\",'Enrollment Form'!$DS490=\"\"),\"N\",IF(AND('Enrollment Form'!$C490=\"Enroll\",'Enrollment Form'!$B490=\"Subscriber\",'Enrollment Form'!$CQ490=\"Yes\"),\"-\",\"Y\")))))","v":""},{"$f":"IF($B483=\"N\",\"\",IF(AND('Enrollment Form'!$C490=\"ROC\",'Enrollment Form'!$DT490<>\"\"),\"Y\",IF(AND('Enrollment Form'!$C490=\"ROC\",'Enrollment Form'!$DT490=\"\"),\"N\",IF(AND('Enrollment Form'!$C490=\"Enroll\",'Enrollment Form'!$B490=\"Subscriber\",'Enrollment Form'!$CQ490=\"No\",'Enrollment Form'!$DT490=\"\"),\"N\",IF(AND('Enrollment Form'!$C490=\"Enroll\",'Enrollment Form'!$B490=\"Subscriber\",'Enrollment Form'!$CQ490=\"Yes\"),\"-\",\"Y\")))))","v":""},{"$f":"IF('Enrollment Form'!AH490=\"\",\"\",IF(ISERROR(SEARCH(\".\",'Enrollment Form'!AH490,SEARCH(\"@\",'Enrollment Form'!AH490))),\"N\",\"Y\"))","v":""},{"$f":"IF(OR($B483=\"N\",'Enrollment Form'!$G490=\"\"),\"\",IF('Enrollment Form'!$B490<>\"Subscriber\",\"-\",IF(COUNTIF('Enrollment Form'!$AS490:$AT490,\"Yes\")=2,\"N\",\"Y\")))","v":""},{"$f":"IF(OR('Enrollment Form'!$CC490=\"\",'Enrollment Form'!$CC490=\"No\"),\"-\",IF(AND('Enrollment Form'!$CC490=\"Yes\",'Enrollment Form'!$CD490=\"\"),\"N\",\"Y\"))","v":"-"},{"$f":"IF(OR('Enrollment Form'!$CE490=\"\",'Enrollment Form'!$CE490=\"No\"),\"-\",IF(AND('Enrollment Form'!$CE490=\"Yes\",'Enrollment Form'!$CF490=\"\"),\"N\",\"Y\"))","v":"-"},{"$f":"IF(OR('Enrollment Form'!$CG490=\"\",'Enrollment Form'!$CG490=\"No\"),\"-\",IF(AND('Enrollment Form'!$CG490=\"Yes\",'Enrollment Form'!$CH490=\"\"),\"N\",\"Y\"))","v":"-"},{"$f":"IF(OR('Enrollment Form'!$CG490=\"\",'Enrollment Form'!$CG490=\"No\"),\"-\",IF(AND('Enrollment Form'!$CG490=\"Yes\",'Enrollment Form'!$CI490=\"\"),\"N\",\"Y\"))","v":"-"},{"$f":"IF('Enrollment Form'!B490<>\"Subscriber\",\"-\",IF(AND('Enrollment Form'!B490=\"Subscriber\",'Enrollment Form'!C490=\"Enroll\",'Enrollment Form'!AA490=\"\"),\"N\",\"Y\"))","v":"-"},{"$f":"IF(OR('Enrollment Form'!B490=\"Subscriber\",'Enrollment Form'!B490=\"\"),\"-\",IF('Enrollment Form'!BI490=\"\",\"N\",\"Y\"))","v":"-"},{"$f":"IF('Enrollment Form'!B490<>\"Subscriber\",\"-\",IF(AND('Enrollment Form'!B490=\"Subscriber\",'Enrollment Form'!G490=\"\"),\"N\",\"Y\"))","v":"-"},{"$f":"IF('Enrollment Form'!A490=\"\",\"\",IF('Enrollment Form'!B490=\"Subscriber\",\"-\",IF(AND('Enrollment Form'!B490<>\"Subscriber\",'Enrollment Form'!G490='Enrollment Form'!H490),\"N\",\"Y\")))","v":""},0]
[491,{"$f":"IF('Enrollment Form'!$A491<>\"\",\"Y\",\"N\")","v":"N"},{"$f":"IF(AND('Enrollment Form'!$B491=\"\",'Enrollment Form'!$C491<>\"\"),\"N\",IF($B484=\"N\",\"\",\"Y\"))","v":""},{"$f":"IF(OR($B484=\"N\",'Enrollment Form'!G491=\"\"),\"\",IF('Enrollment Form'!$B491<>\"Subscriber\",\"\",IF('Enrollment Form'!$G491='Enrollment Form'!$H491,\"Y\",\"N\")))","v":""},{"$f":"IF($B484=\"N\",\"\",IF(AND(COUNTIFS('Enrollment Form'!$H$11:$H$1000,'Enrollment Form'!$H491,'Enrollment Form'!$B$11:$B$1000,'Enrollment Form'!$B491)>1,'Enrollment Form'!$H491<>\"\"),\"N\",\"Y\"))","v":""},{"$f":"IF($B484=\"N\",\"\",IF(LEN('Enrollment Form'!$Y491)=0,\"\",IF(LEN('Enrollment Form'!$Y491)<>5,\"N\",\"Y\")))","v":""},{"$f":"IF($B484=\"N\",\"\",IF(LEN('Enrollment Form'!$AD491=0),\"\",IF(LEN('Enrollment Form'!$AD491)<>5,\"N\",\"Y\")))","v":""},{"$f":"IF($B484=\"N\",\"\",IF(LEN('Enrollment Form'!$BL491=0),\"\",IF(LEN('Enrollment Form'!$BL491)<>5,\"N\",\"Y\")))","v":""},{"$f":"IF($B484=\"N\",\"\",IF(LEN('Enrollment Form'!$AE491)=0,\"\",IF(LEN('Enrollment Form'!$AE491)<>10,\"N\",\"Y\")))","v":""},{"$f":"IF($B484=\"N\",\"\",IF(LEN('Enrollment Form'!$AF491)=0,\"\",IF(LEN('Enrollment Form'!$AF491)<>10,\"N\",\"Y\")))","v":""},{"$f":"IF('Enrollment Form'!$O491<>\"Graded\",\"-\",IF(AND('Enrollment Form'!$O491=\"Graded\",'Enrollment Form'!$AO491<>\"\"),\"Y\",\"N\"))","v":"-"},{"$f":"IF($B484=\"N\",\"\",IF(OR('Enrollment Form'!$B491<>\"Subscriber\",'Enrollment Form'!$C491=\"ROC\"),\"-\",IF(AND('Enrollment Form'!$B491=\"Subscriber\",'Enrollment Form'!$C491=\"Enroll\",'Enrollment Form'!$AJ491<>\"\"),\"Y\",\"N\")))","v":""},{"$f":"IF($B484=\"N\",\"\",IF(OR('Enrollment Form'!$B491<>\"Subscriber\",'Enrollment Form'!$C491=\"ROC\"),\"-\",IF(AND('Enrollment Form'!$B491=\"Subscriber\",'Enrollment Form'!$C491=\"Enroll\",'Enrollment Form'!$AK491<>\"\"),\"Y\",\"N\")))","v":""},{"$f":"IF($B484=\"N\",\"\",IF(OR('Enrollment Form'!$B491<>\"Subscriber\",'Enrollment Form'!$C491=\"ROC\"),\"-\",IF(AND('Enrollment Form'!$B491=\"Subscriber\",'Enrollment Form'!$C491=\"Enroll\",'Enrollment Form'!$AL491<>\"\"),\"Y\",\"N\")))","v":""},{"$f":"IF($B484=\"N\",\"\",IF(OR('Enrollment Form'!$B491<>\"Subscriber\",'Enrollment Form'!$C491=\"ROC\"),\"-\",IF(AND('Enrollment Form'!$B491=\"Subscriber\",'Enrollment Form'!$C491=\"Enroll\",'Enrollment Form'!$AM491<>\"\"),\"Y\",\"N\")))","v":""},{"$f":"IF($B484=\"N\",\"\",IF(OR('Enrollment Form'!$B491<>\"Subscriber\",'Enrollment Form'!$C491=\"ROC\"),\"-\",IF(AND('Enrollment Form'!$B491=\"Subscriber\",'Enrollment Form'!$C491=\"Enroll\",'Enrollment Form'!$AN491<>\"\"),\"Y\",\"N\")))","v":""},{"$f":"IF($B484=\"N\",\"\",IF(OR('Enrollment Form'!$B491<>\"Subscriber\",'Enrollment Form'!$C491=\"ROC\"),\"-\",IF(AND('Enrollment Form'!$B491=\"Subscriber\",'Enrollment Form'!$C491=\"Enroll\",'Enrollment Form'!$AP491<>\"\"),\"Y\",\"N\")))","v":""},{"$f":"IF($B484=\"N\",\"\",IF($Q484=\"-\",\"-\",IF(AND($Q484=\"Y\",'Enrollment Form'!$AP491=\"No\"),\"-\",IF(AND($Q484=\"Y\",'Enrollment Form'!$AP491=\"Yes\",'Enrollment Form'!$AQ491<>\"\"),\"Y\",\"N\"))))","v":""},{"$f":"IF($B484=\"N\",\"\",IF(OR('Enrollment Form'!$B491<>\"Subscriber\",'Enrollment Form'!$C491=\"ROC\"),\"-\",IF(AND('Enrollment Form'!$B491=\"Subscriber\",'Enrollment Form'!$C491=\"Enroll\",'Enrollment Form'!$CO491<>\"\"),\"Y\",\"N\")))","v":""},{"$f":"IF($B484=\"N\",\"\",IF($S484=\"-\",\"-\",IF(AND($S484=\"Y\",'Enrollment Form'!$CO491=\"No\"),\"-\",IF(AND($S484=\"Y\",'Enrollment Form'!$CO491=\"Yes\",'Enrollment Form'!$CP491<>\"\"),\"Y\",\"N\"))))","v":""},{"$f":"IF(OR('Enrollment Form'!$AV491=\"Yes\",'Enrollment Form'!$AV491=\"\"),\"-\",IF(AND('Enrollment Form'!$AV491=\"No\",ISERROR(FIND(\"HMO\",VLOOKUP('Enrollment Form'!G491,'Enrollment Form'!H$11:J$1000,3,FALSE),1))=FALSE,COUNTA('Enrollment Form'!$AW491:$AZ491)=4),\"Y\",\"N\"))","v":"-"},{"$f":"IF($B484=\"N\",\"\",IF('Enrollment Form'!$B491=\"Subscriber\",\"-\",IF(COUNTA('Enrollment Form'!$BE491,'Enrollment Form'!$BG491)=2,\"Y\",\"N\")))","v":""},{"$f":"IF($B484=\"N\",\"\",IF(OR('Enrollment Form'!$AU491=\"\",'Enrollment Form'!$AU491=\"No\"),\"-\",IF(AND('Enrollment Form'!$AU491=\"Yes\",COUNTA('Enrollment Form'!$CK491)=1),\"Y\",\"N\")))","v":""},{"$f":"IF(OR('Enrollment Form'!$CK491=\"\",'Enrollment Form'!$CK491=\"No\"),\"-\",IF(COUNTA('Enrollment Form'!$CM491:$CN491)=2,\"Y\",\"N\"))","v":"-"},{"$f":"IF($B484=\"N\",\"\",IF(COUNTIF('Enrollment Form'!$CZ491:$DO491,\"Other\")=COUNTA('Enrollment Form'!$DF491,'Enrollment Form'!$DA491,'Enrollment Form'!$DK491,'Enrollment Form'!$DP491),\"Y\",\"N\"))","v":""},{"$f":"IF($B484=\"N\",\"\",IF(OR('Enrollment Form'!B491<>\"Subscriber\",'Enrollment Form'!C491=\"ROC\",COUNTIF('Enrollment Form'!AS491:AT491,\"Yes\")>=1),\"-\",IF(AND('Enrollment Form'!C491=\"Enroll\",COUNTIF('Enrollment Form'!AS491:AT491,\"No\")=2,'Enrollment Form'!AU491=\"\"),\"N\",\"Y\")))","v":""},{"$f":"IF(OR(B484=\"N\",'Enrollment Form'!B491<>\"Subscriber\",'Enrollment Form'!C491=\"ROC\",'Enrollment Form'!O491<>\"Multiple of Salary\"),\"-\",IF(COUNTA('Enrollment Form'!T491:U491)<2,\"N\",\"Y\"))","v":"-"},{"$f":"IF(B484=\"N\",\"\",IF(OR('Enrollment Form'!C491=\"ROC\",'Enrollment Form'!B491<>\"Subscriber\",'Enrollment Form'!O491=\"Waive\",'Enrollment Form'!O491=\"\"),\"-\",IF('Enrollment Form'!P491=\"\",\"N\",\"Y\")))","v":""},{"$f":"IF($B484=\"N\",\"\",IF(AND('Enrollment Form'!$C491=\"ROC\",'Enrollment Form'!$DS491<>\"\"),\"Y\",IF(AND('Enrollment Form'!$C491=\"ROC\",'Enrollment Form'!$DS491=\"\"),\"N\",IF(AND('Enrollment Form'!$C491=\"Enroll\",'Enrollment Form'!$B491=\"Subscriber\",'Enrollment Form'!$CQ491=\"No\",'Enrollment Form'!$DS491=\"\"),\"N\",IF(AND('Enrollment Form'!$C491=\"Enroll\",'Enrollment Form'!$B491=\"Subscriber\",'Enrollment Form'!$CQ491=\"Yes\"),\"-\",\"Y\")))))","v":""},{"$f":"IF($B484=\"N\",\"\",IF(AND('Enrollment Form'!$C491=\"ROC\",'Enrollment Form'!$DT491<>\"\"),\"Y\",IF(AND('Enrollment Form'!$C491=\"ROC\",'Enrollment Form'!$DT491=\"\"),\"N\",IF(AND('Enrollment Form'!$C491=\"Enroll\",'Enrollment Form'!$B491=\"Subscriber\",'Enrollment Form'!$CQ491=\"No\",'Enrollment Form'!$DT491=\"\"),\"N\",IF(AND('Enrollment Form'!$C491=\"Enroll\",'Enrollment Form'!$B491=\"Subscriber\",'Enrollment Form'!$CQ491=\"Yes\"),\"-\",\"Y\")))))","v":""},{"$f":"IF('Enrollment Form'!AH491=\"\",\"\",IF(ISERROR(SEARCH(\".\",'Enrollment Form'!AH491,SEARCH(\"@\",'Enrollment Form'!AH491))),\"N\",\"Y\"))","v":""},{"$f":"IF(OR($B484=\"N\",'Enrollment Form'!$G491=\"\"),\"\",IF('Enrollment Form'!$B491<>\"Subscriber\",\"-\",IF(COUNTIF('Enrollment Form'!$AS491:$AT491,\"Yes\")=2,\"N\",\"Y\")))","v":""},{"$f":"IF(OR('Enrollment Form'!$CC491=\"\",'Enrollment Form'!$CC491=\"No\"),\"-\",IF(AND('Enrollment Form'!$CC491=\"Yes\",'Enrollment Form'!$CD491=\"\"),\"N\",\"Y\"))","v":"-"},{"$f":"IF(OR('Enrollment Form'!$CE491=\"\",'Enrollment Form'!$CE491=\"No\"),\"-\",IF(AND('Enrollment Form'!$CE491=\"Yes\",'Enrollment Form'!$CF491=\"\"),\"N\",\"Y\"))","v":"-"},{"$f":"IF(OR('Enrollment Form'!$CG491=\"\",'Enrollment Form'!$CG491=\"No\"),\"-\",IF(AND('Enrollment Form'!$CG491=\"Yes\",'Enrollment Form'!$CH491=\"\"),\"N\",\"Y\"))","v":"-"},{"$f":"IF(OR('Enrollment Form'!$CG491=\"\",'Enrollment Form'!$CG491=\"No\"),\"-\",IF(AND('Enrollment Form'!$CG491=\"Yes\",'Enrollment Form'!$CI491=\"\"),\"N\",\"Y\"))","v":"-"},{"$f":"IF('Enrollment Form'!B491<>\"Subscriber\",\"-\",IF(AND('Enrollment Form'!B491=\"Subscriber\",'Enrollment Form'!C491=\"Enroll\",'Enrollment Form'!AA491=\"\"),\"N\",\"Y\"))","v":"-"},{"$f":"IF(OR('Enrollment Form'!B491=\"Subscriber\",'Enrollment Form'!B491=\"\"),\"-\",IF('Enrollment Form'!BI491=\"\",\"N\",\"Y\"))","v":"-"},{"$f":"IF('Enrollment Form'!B491<>\"Subscriber\",\"-\",IF(AND('Enrollment Form'!B491=\"Subscriber\",'Enrollment Form'!G491=\"\"),\"N\",\"Y\"))","v":"-"},{"$f":"IF('Enrollment Form'!A491=\"\",\"\",IF('Enrollment Form'!B491=\"Subscriber\",\"-\",IF(AND('Enrollment Form'!B491<>\"Subscriber\",'Enrollment Form'!G491='Enrollment Form'!H491),\"N\",\"Y\")))","v":""},0]
[492,{"$f":"IF('Enrollment Form'!$A492<>\"\",\"Y\",\"N\")","v":"N"},{"$f":"IF(AND('Enrollment Form'!$B492=\"\",'Enrollment Form'!$C492<>\"\"),\"N\",IF($B485=\"N\",\"\",\"Y\"))","v":""},{"$f":"IF(OR($B485=\"N\",'Enrollment Form'!G492=\"\"),\"\",IF('Enrollment Form'!$B492<>\"Subscriber\",\"\",IF('Enrollment Form'!$G492='Enrollment Form'!$H492,\"Y\",\"N\")))","v":""},{"$f":"IF($B485=\"N\",\"\",IF(AND(COUNTIFS('Enrollment Form'!$H$11:$H$1000,'Enrollment Form'!$H492,'Enrollment Form'!$B$11:$B$1000,'Enrollment Form'!$B492)>1,'Enrollment Form'!$H492<>\"\"),\"N\",\"Y\"))","v":""},{"$f":"IF($B485=\"N\",\"\",IF(LEN('Enrollment Form'!$Y492)=0,\"\",IF(LEN('Enrollment Form'!$Y492)<>5,\"N\",\"Y\")))","v":""},{"$f":"IF($B485=\"N\",\"\",IF(LEN('Enrollment Form'!$AD492=0),\"\",IF(LEN('Enrollment Form'!$AD492)<>5,\"N\",\"Y\")))","v":""},{"$f":"IF($B485=\"N\",\"\",IF(LEN('Enrollment Form'!$BL492=0),\"\",IF(LEN('Enrollment Form'!$BL492)<>5,\"N\",\"Y\")))","v":""},{"$f":"IF($B485=\"N\",\"\",IF(LEN('Enrollment Form'!$AE492)=0,\"\",IF(LEN('Enrollment Form'!$AE492)<>10,\"N\",\"Y\")))","v":""},{"$f":"IF($B485=\"N\",\"\",IF(LEN('Enrollment Form'!$AF492)=0,\"\",IF(LEN('Enrollment Form'!$AF492)<>10,\"N\",\"Y\")))","v":""},{"$f":"IF('Enrollment Form'!$O492<>\"Graded\",\"-\",IF(AND('Enrollment Form'!$O492=\"Graded\",'Enrollment Form'!$AO492<>\"\"),\"Y\",\"N\"))","v":"-"},{"$f":"IF($B485=\"N\",\"\",IF(OR('Enrollment Form'!$B492<>\"Subscriber\",'Enrollment Form'!$C492=\"ROC\"),\"-\",IF(AND('Enrollment Form'!$B492=\"Subscriber\",'Enrollment Form'!$C492=\"Enroll\",'Enrollment Form'!$AJ492<>\"\"),\"Y\",\"N\")))","v":""},{"$f":"IF($B485=\"N\",\"\",IF(OR('Enrollment Form'!$B492<>\"Subscriber\",'Enrollment Form'!$C492=\"ROC\"),\"-\",IF(AND('Enrollment Form'!$B492=\"Subscriber\",'Enrollment Form'!$C492=\"Enroll\",'Enrollment Form'!$AK492<>\"\"),\"Y\",\"N\")))","v":""},{"$f":"IF($B485=\"N\",\"\",IF(OR('Enrollment Form'!$B492<>\"Subscriber\",'Enrollment Form'!$C492=\"ROC\"),\"-\",IF(AND('Enrollment Form'!$B492=\"Subscriber\",'Enrollment Form'!$C492=\"Enroll\",'Enrollment Form'!$AL492<>\"\"),\"Y\",\"N\")))","v":""},{"$f":"IF($B485=\"N\",\"\",IF(OR('Enrollment Form'!$B492<>\"Subscriber\",'Enrollment Form'!$C492=\"ROC\"),\"-\",IF(AND('Enrollment Form'!$B492=\"Subscriber\",'Enrollment Form'!$C492=\"Enroll\",'Enrollment Form'!$AM492<>\"\"),\"Y\",\"N\")))","v":""},{"$f":"IF($B485=\"N\",\"\",IF(OR('Enrollment Form'!$B492<>\"Subscriber\",'Enrollment Form'!$C492=\"ROC\"),\"-\",IF(AND('Enrollment Form'!$B492=\"Subscriber\",'Enrollment Form'!$C492=\"Enroll\",'Enrollment Form'!$AN492<>\"\"),\"Y\",\"N\")))","v":""},{"$f":"IF($B485=\"N\",\"\",IF(OR('Enrollment Form'!$B492<>\"Subscriber\",'Enrollment Form'!$C492=\"ROC\"),\"-\",IF(AND('Enrollment Form'!$B492=\"Subscriber\",'Enrollment Form'!$C492=\"Enroll\",'Enrollment Form'!$AP492<>\"\"),\"Y\",\"N\")))","v":""},{"$f":"IF($B485=\"N\",\"\",IF($Q485=\"-\",\"-\",IF(AND($Q485=\"Y\",'Enrollment Form'!$AP492=\"No\"),\"-\",IF(AND($Q485=\"Y\",'Enrollment Form'!$AP492=\"Yes\",'Enrollment Form'!$AQ492<>\"\"),\"Y\",\"N\"))))","v":""},{"$f":"IF($B485=\"N\",\"\",IF(OR('Enrollment Form'!$B492<>\"Subscriber\",'Enrollment Form'!$C492=\"ROC\"),\"-\",IF(AND('Enrollment Form'!$B492=\"Subscriber\",'Enrollment Form'!$C492=\"Enroll\",'Enrollment Form'!$CO492<>\"\"),\"Y\",\"N\")))","v":""},{"$f":"IF($B485=\"N\",\"\",IF($S485=\"-\",\"-\",IF(AND($S485=\"Y\",'Enrollment Form'!$CO492=\"No\"),\"-\",IF(AND($S485=\"Y\",'Enrollment Form'!$CO492=\"Yes\",'Enrollment Form'!$CP492<>\"\"),\"Y\",\"N\"))))","v":""},{"$f":"IF(OR('Enrollment Form'!$AV492=\"Yes\",'Enrollment Form'!$AV492=\"\"),\"-\",IF(AND('Enrollment Form'!$AV492=\"No\",ISERROR(FIND(\"HMO\",VLOOKUP('Enrollment Form'!G492,'Enrollment Form'!H$11:J$1000,3,FALSE),1))=FALSE,COUNTA('Enrollment Form'!$AW492:$AZ492)=4),\"Y\",\"N\"))","v":"-"},{"$f":"IF($B485=\"N\",\"\",IF('Enrollment Form'!$B492=\"Subscriber\",\"-\",IF(COUNTA('Enrollment Form'!$BE492,'Enrollment Form'!$BG492)=2,\"Y\",\"N\")))","v":""},{"$f":"IF($B485=\"N\",\"\",IF(OR('Enrollment Form'!$AU492=\"\",'Enrollment Form'!$AU492=\"No\"),\"-\",IF(AND('Enrollment Form'!$AU492=\"Yes\",COUNTA('Enrollment Form'!$CK492)=1),\"Y\",\"N\")))","v":""},{"$f":"IF(OR('Enrollment Form'!$CK492=\"\",'Enrollment Form'!$CK492=\"No\"),\"-\",IF(COUNTA('Enrollment Form'!$CM492:$CN492)=2,\"Y\",\"N\"))","v":"-"},{"$f":"IF($B485=\"N\",\"\",IF(COUNTIF('Enrollment Form'!$CZ492:$DO492,\"Other\")=COUNTA('Enrollment Form'!$DF492,'Enrollment Form'!$DA492,'Enrollment Form'!$DK492,'Enrollment Form'!$DP492),\"Y\",\"N\"))","v":""},{"$f":"IF($B485=\"N\",\"\",IF(OR('Enrollment Form'!B492<>\"Subscriber\",'Enrollment Form'!C492=\"ROC\",COUNTIF('Enrollment Form'!AS492:AT492,\"Yes\")>=1),\"-\",IF(AND('Enrollment Form'!C492=\"Enroll\",COUNTIF('Enrollment Form'!AS492:AT492,\"No\")=2,'Enrollment Form'!AU492=\"\"),\"N\",\"Y\")))","v":""},{"$f":"IF(OR(B485=\"N\",'Enrollment Form'!B492<>\"Subscriber\",'Enrollment Form'!C492=\"ROC\",'Enrollment Form'!O492<>\"Multiple of Salary\"),\"-\",IF(COUNTA('Enrollment Form'!T492:U492)<2,\"N\",\"Y\"))","v":"-"},{"$f":"IF(B485=\"N\",\"\",IF(OR('Enrollment Form'!C492=\"ROC\",'Enrollment Form'!B492<>\"Subscriber\",'Enrollment Form'!O492=\"Waive\",'Enrollment Form'!O492=\"\"),\"-\",IF('Enrollment Form'!P492=\"\",\"N\",\"Y\")))","v":""},{"$f":"IF($B485=\"N\",\"\",IF(AND('Enrollment Form'!$C492=\"ROC\",'Enrollment Form'!$DS492<>\"\"),\"Y\",IF(AND('Enrollment Form'!$C492=\"ROC\",'Enrollment Form'!$DS492=\"\"),\"N\",IF(AND('Enrollment Form'!$C492=\"Enroll\",'Enrollment Form'!$B492=\"Subscriber\",'Enrollment Form'!$CQ492=\"No\",'Enrollment Form'!$DS492=\"\"),\"N\",IF(AND('Enrollment Form'!$C492=\"Enroll\",'Enrollment Form'!$B492=\"Subscriber\",'Enrollment Form'!$CQ492=\"Yes\"),\"-\",\"Y\")))))","v":""},{"$f":"IF($B485=\"N\",\"\",IF(AND('Enrollment Form'!$C492=\"ROC\",'Enrollment Form'!$DT492<>\"\"),\"Y\",IF(AND('Enrollment Form'!$C492=\"ROC\",'Enrollment Form'!$DT492=\"\"),\"N\",IF(AND('Enrollment Form'!$C492=\"Enroll\",'Enrollment Form'!$B492=\"Subscriber\",'Enrollment Form'!$CQ492=\"No\",'Enrollment Form'!$DT492=\"\"),\"N\",IF(AND('Enrollment Form'!$C492=\"Enroll\",'Enrollment Form'!$B492=\"Subscriber\",'Enrollment Form'!$CQ492=\"Yes\"),\"-\",\"Y\")))))","v":""},{"$f":"IF('Enrollment Form'!AH492=\"\",\"\",IF(ISERROR(SEARCH(\".\",'Enrollment Form'!AH492,SEARCH(\"@\",'Enrollment Form'!AH492))),\"N\",\"Y\"))","v":""},{"$f":"IF(OR($B485=\"N\",'Enrollment Form'!$G492=\"\"),\"\",IF('Enrollment Form'!$B492<>\"Subscriber\",\"-\",IF(COUNTIF('Enrollment Form'!$AS492:$AT492,\"Yes\")=2,\"N\",\"Y\")))","v":""},{"$f":"IF(OR('Enrollment Form'!$CC492=\"\",'Enrollment Form'!$CC492=\"No\"),\"-\",IF(AND('Enrollment Form'!$CC492=\"Yes\",'Enrollment Form'!$CD492=\"\"),\"N\",\"Y\"))","v":"-"},{"$f":"IF(OR('Enrollment Form'!$CE492=\"\",'Enrollment Form'!$CE492=\"No\"),\"-\",IF(AND('Enrollment Form'!$CE492=\"Yes\",'Enrollment Form'!$CF492=\"\"),\"N\",\"Y\"))","v":"-"},{"$f":"IF(OR('Enrollment Form'!$CG492=\"\",'Enrollment Form'!$CG492=\"No\"),\"-\",IF(AND('Enrollment Form'!$CG492=\"Yes\",'Enrollment Form'!$CH492=\"\"),\"N\",\"Y\"))","v":"-"},{"$f":"IF(OR('Enrollment Form'!$CG492=\"\",'Enrollment Form'!$CG492=\"No\"),\"-\",IF(AND('Enrollment Form'!$CG492=\"Yes\",'Enrollment Form'!$CI492=\"\"),\"N\",\"Y\"))","v":"-"},{"$f":"IF('Enrollment Form'!B492<>\"Subscriber\",\"-\",IF(AND('Enrollment Form'!B492=\"Subscriber\",'Enrollment Form'!C492=\"Enroll\",'Enrollment Form'!AA492=\"\"),\"N\",\"Y\"))","v":"-"},{"$f":"IF(OR('Enrollment Form'!B492=\"Subscriber\",'Enrollment Form'!B492=\"\"),\"-\",IF('Enrollment Form'!BI492=\"\",\"N\",\"Y\"))","v":"-"},{"$f":"IF('Enrollment Form'!B492<>\"Subscriber\",\"-\",IF(AND('Enrollment Form'!B492=\"Subscriber\",'Enrollment Form'!G492=\"\"),\"N\",\"Y\"))","v":"-"},{"$f":"IF('Enrollment Form'!A492=\"\",\"\",IF('Enrollment Form'!B492=\"Subscriber\",\"-\",IF(AND('Enrollment Form'!B492<>\"Subscriber\",'Enrollment Form'!G492='Enrollment Form'!H492),\"N\",\"Y\")))","v":""},0]
[493,{"$f":"IF('Enrollment Form'!$A493<>\"\",\"Y\",\"N\")","v":"N"},{"$f":"IF(AND('Enrollment Form'!$B493=\"\",'Enrollment Form'!$C493<>\"\"),\"N\",IF($B486=\"N\",\"\",\"Y\"))","v":""},{"$f":"IF(OR($B486=\"N\",'Enrollment Form'!G493=\"\"),\"\",IF('Enrollment Form'!$B493<>\"Subscriber\",\"\",IF('Enrollment Form'!$G493='Enrollment Form'!$H493,\"Y\",\"N\")))","v":""},{"$f":"IF($B486=\"N\",\"\",IF(AND(COUNTIFS('Enrollment Form'!$H$11:$H$1000,'Enrollment Form'!$H493,'Enrollment Form'!$B$11:$B$1000,'Enrollment Form'!$B493)>1,'Enrollment Form'!$H493<>\"\"),\"N\",\"Y\"))","v":""},{"$f":"IF($B486=\"N\",\"\",IF(LEN('Enrollment Form'!$Y493)=0,\"\",IF(LEN('Enrollment Form'!$Y493)<>5,\"N\",\"Y\")))","v":""},{"$f":"IF($B486=\"N\",\"\",IF(LEN('Enrollment Form'!$AD493=0),\"\",IF(LEN('Enrollment Form'!$AD493)<>5,\"N\",\"Y\")))","v":""},{"$f":"IF($B486=\"N\",\"\",IF(LEN('Enrollment Form'!$BL493=0),\"\",IF(LEN('Enrollment Form'!$BL493)<>5,\"N\",\"Y\")))","v":""},{"$f":"IF($B486=\"N\",\"\",IF(LEN('Enrollment Form'!$AE493)=0,\"\",IF(LEN('Enrollment Form'!$AE493)<>10,\"N\",\"Y\")))","v":""},{"$f":"IF($B486=\"N\",\"\",IF(LEN('Enrollment Form'!$AF493)=0,\"\",IF(LEN('Enrollment Form'!$AF493)<>10,\"N\",\"Y\")))","v":""},{"$f":"IF('Enrollment Form'!$O493<>\"Graded\",\"-\",IF(AND('Enrollment Form'!$O493=\"Graded\",'Enrollment Form'!$AO493<>\"\"),\"Y\",\"N\"))","v":"-"},{"$f":"IF($B486=\"N\",\"\",IF(OR('Enrollment Form'!$B493<>\"Subscriber\",'Enrollment Form'!$C493=\"ROC\"),\"-\",IF(AND('Enrollment Form'!$B493=\"Subscriber\",'Enrollment Form'!$C493=\"Enroll\",'Enrollment Form'!$AJ493<>\"\"),\"Y\",\"N\")))","v":""},{"$f":"IF($B486=\"N\",\"\",IF(OR('Enrollment Form'!$B493<>\"Subscriber\",'Enrollment Form'!$C493=\"ROC\"),\"-\",IF(AND('Enrollment Form'!$B493=\"Subscriber\",'Enrollment Form'!$C493=\"Enroll\",'Enrollment Form'!$AK493<>\"\"),\"Y\",\"N\")))","v":""},{"$f":"IF($B486=\"N\",\"\",IF(OR('Enrollment Form'!$B493<>\"Subscriber\",'Enrollment Form'!$C493=\"ROC\"),\"-\",IF(AND('Enrollment Form'!$B493=\"Subscriber\",'Enrollment Form'!$C493=\"Enroll\",'Enrollment Form'!$AL493<>\"\"),\"Y\",\"N\")))","v":""},{"$f":"IF($B486=\"N\",\"\",IF(OR('Enrollment Form'!$B493<>\"Subscriber\",'Enrollment Form'!$C493=\"ROC\"),\"-\",IF(AND('Enrollment Form'!$B493=\"Subscriber\",'Enrollment Form'!$C493=\"Enroll\",'Enrollment Form'!$AM493<>\"\"),\"Y\",\"N\")))","v":""},{"$f":"IF($B486=\"N\",\"\",IF(OR('Enrollment Form'!$B493<>\"Subscriber\",'Enrollment Form'!$C493=\"ROC\"),\"-\",IF(AND('Enrollment Form'!$B493=\"Subscriber\",'Enrollment Form'!$C493=\"Enroll\",'Enrollment Form'!$AN493<>\"\"),\"Y\",\"N\")))","v":""},{"$f":"IF($B486=\"N\",\"\",IF(OR('Enrollment Form'!$B493<>\"Subscriber\",'Enrollment Form'!$C493=\"ROC\"),\"-\",IF(AND('Enrollment Form'!$B493=\"Subscriber\",'Enrollment Form'!$C493=\"Enroll\",'Enrollment Form'!$AP493<>\"\"),\"Y\",\"N\")))","v":""},{"$f":"IF($B486=\"N\",\"\",IF($Q486=\"-\",\"-\",IF(AND($Q486=\"Y\",'Enrollment Form'!$AP493=\"No\"),\"-\",IF(AND($Q486=\"Y\",'Enrollment Form'!$AP493=\"Yes\",'Enrollment Form'!$AQ493<>\"\"),\"Y\",\"N\"))))","v":""},{"$f":"IF($B486=\"N\",\"\",IF(OR('Enrollment Form'!$B493<>\"Subscriber\",'Enrollment Form'!$C493=\"ROC\"),\"-\",IF(AND('Enrollment Form'!$B493=\"Subscriber\",'Enrollment Form'!$C493=\"Enroll\",'Enrollment Form'!$CO493<>\"\"),\"Y\",\"N\")))","v":""},{"$f":"IF($B486=\"N\",\"\",IF($S486=\"-\",\"-\",IF(AND($S486=\"Y\",'Enrollment Form'!$CO493=\"No\"),\"-\",IF(AND($S486=\"Y\",'Enrollment Form'!$CO493=\"Yes\",'Enrollment Form'!$CP493<>\"\"),\"Y\",\"N\"))))","v":""},{"$f":"IF(OR('Enrollment Form'!$AV493=\"Yes\",'Enrollment Form'!$AV493=\"\"),\"-\",IF(AND('Enrollment Form'!$AV493=\"No\",ISERROR(FIND(\"HMO\",VLOOKUP('Enrollment Form'!G493,'Enrollment Form'!H$11:J$1000,3,FALSE),1))=FALSE,COUNTA('Enrollment Form'!$AW493:$AZ493)=4),\"Y\",\"N\"))","v":"-"},{"$f":"IF($B486=\"N\",\"\",IF('Enrollment Form'!$B493=\"Subscriber\",\"-\",IF(COUNTA('Enrollment Form'!$BE493,'Enrollment Form'!$BG493)=2,\"Y\",\"N\")))","v":""},{"$f":"IF($B486=\"N\",\"\",IF(OR('Enrollment Form'!$AU493=\"\",'Enrollment Form'!$AU493=\"No\"),\"-\",IF(AND('Enrollment Form'!$AU493=\"Yes\",COUNTA('Enrollment Form'!$CK493)=1),\"Y\",\"N\")))","v":""},{"$f":"IF(OR('Enrollment Form'!$CK493=\"\",'Enrollment Form'!$CK493=\"No\"),\"-\",IF(COUNTA('Enrollment Form'!$CM493:$CN493)=2,\"Y\",\"N\"))","v":"-"},{"$f":"IF($B486=\"N\",\"\",IF(COUNTIF('Enrollment Form'!$CZ493:$DO493,\"Other\")=COUNTA('Enrollment Form'!$DF493,'Enrollment Form'!$DA493,'Enrollment Form'!$DK493,'Enrollment Form'!$DP493),\"Y\",\"N\"))","v":""},{"$f":"IF($B486=\"N\",\"\",IF(OR('Enrollment Form'!B493<>\"Subscriber\",'Enrollment Form'!C493=\"ROC\",COUNTIF('Enrollment Form'!AS493:AT493,\"Yes\")>=1),\"-\",IF(AND('Enrollment Form'!C493=\"Enroll\",COUNTIF('Enrollment Form'!AS493:AT493,\"No\")=2,'Enrollment Form'!AU493=\"\"),\"N\",\"Y\")))","v":""},{"$f":"IF(OR(B486=\"N\",'Enrollment Form'!B493<>\"Subscriber\",'Enrollment Form'!C493=\"ROC\",'Enrollment Form'!O493<>\"Multiple of Salary\"),\"-\",IF(COUNTA('Enrollment Form'!T493:U493)<2,\"N\",\"Y\"))","v":"-"},{"$f":"IF(B486=\"N\",\"\",IF(OR('Enrollment Form'!C493=\"ROC\",'Enrollment Form'!B493<>\"Subscriber\",'Enrollment Form'!O493=\"Waive\",'Enrollment Form'!O493=\"\"),\"-\",IF('Enrollment Form'!P493=\"\",\"N\",\"Y\")))","v":""},{"$f":"IF($B486=\"N\",\"\",IF(AND('Enrollment Form'!$C493=\"ROC\",'Enrollment Form'!$DS493<>\"\"),\"Y\",IF(AND('Enrollment Form'!$C493=\"ROC\",'Enrollment Form'!$DS493=\"\"),\"N\",IF(AND('Enrollment Form'!$C493=\"Enroll\",'Enrollment Form'!$B493=\"Subscriber\",'Enrollment Form'!$CQ493=\"No\",'Enrollment Form'!$DS493=\"\"),\"N\",IF(AND('Enrollment Form'!$C493=\"Enroll\",'Enrollment Form'!$B493=\"Subscriber\",'Enrollment Form'!$CQ493=\"Yes\"),\"-\",\"Y\")))))","v":""},{"$f":"IF($B486=\"N\",\"\",IF(AND('Enrollment Form'!$C493=\"ROC\",'Enrollment Form'!$DT493<>\"\"),\"Y\",IF(AND('Enrollment Form'!$C493=\"ROC\",'Enrollment Form'!$DT493=\"\"),\"N\",IF(AND('Enrollment Form'!$C493=\"Enroll\",'Enrollment Form'!$B493=\"Subscriber\",'Enrollment Form'!$CQ493=\"No\",'Enrollment Form'!$DT493=\"\"),\"N\",IF(AND('Enrollment Form'!$C493=\"Enroll\",'Enrollment Form'!$B493=\"Subscriber\",'Enrollment Form'!$CQ493=\"Yes\"),\"-\",\"Y\")))))","v":""},{"$f":"IF('Enrollment Form'!AH493=\"\",\"\",IF(ISERROR(SEARCH(\".\",'Enrollment Form'!AH493,SEARCH(\"@\",'Enrollment Form'!AH493))),\"N\",\"Y\"))","v":""},{"$f":"IF(OR($B486=\"N\",'Enrollment Form'!$G493=\"\"),\"\",IF('Enrollment Form'!$B493<>\"Subscriber\",\"-\",IF(COUNTIF('Enrollment Form'!$AS493:$AT493,\"Yes\")=2,\"N\",\"Y\")))","v":""},{"$f":"IF(OR('Enrollment Form'!$CC493=\"\",'Enrollment Form'!$CC493=\"No\"),\"-\",IF(AND('Enrollment Form'!$CC493=\"Yes\",'Enrollment Form'!$CD493=\"\"),\"N\",\"Y\"))","v":"-"},{"$f":"IF(OR('Enrollment Form'!$CE493=\"\",'Enrollment Form'!$CE493=\"No\"),\"-\",IF(AND('Enrollment Form'!$CE493=\"Yes\",'Enrollment Form'!$CF493=\"\"),\"N\",\"Y\"))","v":"-"},{"$f":"IF(OR('Enrollment Form'!$CG493=\"\",'Enrollment Form'!$CG493=\"No\"),\"-\",IF(AND('Enrollment Form'!$CG493=\"Yes\",'Enrollment Form'!$CH493=\"\"),\"N\",\"Y\"))","v":"-"},{"$f":"IF(OR('Enrollment Form'!$CG493=\"\",'Enrollment Form'!$CG493=\"No\"),\"-\",IF(AND('Enrollment Form'!$CG493=\"Yes\",'Enrollment Form'!$CI493=\"\"),\"N\",\"Y\"))","v":"-"},{"$f":"IF('Enrollment Form'!B493<>\"Subscriber\",\"-\",IF(AND('Enrollment Form'!B493=\"Subscriber\",'Enrollment Form'!C493=\"Enroll\",'Enrollment Form'!AA493=\"\"),\"N\",\"Y\"))","v":"-"},{"$f":"IF(OR('Enrollment Form'!B493=\"Subscriber\",'Enrollment Form'!B493=\"\"),\"-\",IF('Enrollment Form'!BI493=\"\",\"N\",\"Y\"))","v":"-"},{"$f":"IF('Enrollment Form'!B493<>\"Subscriber\",\"-\",IF(AND('Enrollment Form'!B493=\"Subscriber\",'Enrollment Form'!G493=\"\"),\"N\",\"Y\"))","v":"-"},{"$f":"IF('Enrollment Form'!A493=\"\",\"\",IF('Enrollment Form'!B493=\"Subscriber\",\"-\",IF(AND('Enrollment Form'!B493<>\"Subscriber\",'Enrollment Form'!G493='Enrollment Form'!H493),\"N\",\"Y\")))","v":""},0]
[494,{"$f":"IF('Enrollment Form'!$A494<>\"\",\"Y\",\"N\")","v":"N"},{"$f":"IF(AND('Enrollment Form'!$B494=\"\",'Enrollment Form'!$C494<>\"\"),\"N\",IF($B487=\"N\",\"\",\"Y\"))","v":""},{"$f":"IF(OR($B487=\"N\",'Enrollment Form'!G494=\"\"),\"\",IF('Enrollment Form'!$B494<>\"Subscriber\",\"\",IF('Enrollment Form'!$G494='Enrollment Form'!$H494,\"Y\",\"N\")))","v":""},{"$f":"IF($B487=\"N\",\"\",IF(AND(COUNTIFS('Enrollment Form'!$H$11:$H$1000,'Enrollment Form'!$H494,'Enrollment Form'!$B$11:$B$1000,'Enrollment Form'!$B494)>1,'Enrollment Form'!$H494<>\"\"),\"N\",\"Y\"))","v":""},{"$f":"IF($B487=\"N\",\"\",IF(LEN('Enrollment Form'!$Y494)=0,\"\",IF(LEN('Enrollment Form'!$Y494)<>5,\"N\",\"Y\")))","v":""},{"$f":"IF($B487=\"N\",\"\",IF(LEN('Enrollment Form'!$AD494=0),\"\",IF(LEN('Enrollment Form'!$AD494)<>5,\"N\",\"Y\")))","v":""},{"$f":"IF($B487=\"N\",\"\",IF(LEN('Enrollment Form'!$BL494=0),\"\",IF(LEN('Enrollment Form'!$BL494)<>5,\"N\",\"Y\")))","v":""},{"$f":"IF($B487=\"N\",\"\",IF(LEN('Enrollment Form'!$AE494)=0,\"\",IF(LEN('Enrollment Form'!$AE494)<>10,\"N\",\"Y\")))","v":""},{"$f":"IF($B487=\"N\",\"\",IF(LEN('Enrollment Form'!$AF494)=0,\"\",IF(LEN('Enrollment Form'!$AF494)<>10,\"N\",\"Y\")))","v":""},{"$f":"IF('Enrollment Form'!$O494<>\"Graded\",\"-\",IF(AND('Enrollment Form'!$O494=\"Graded\",'Enrollment Form'!$AO494<>\"\"),\"Y\",\"N\"))","v":"-"},{"$f":"IF($B487=\"N\",\"\",IF(OR('Enrollment Form'!$B494<>\"Subscriber\",'Enrollment Form'!$C494=\"ROC\"),\"-\",IF(AND('Enrollment Form'!$B494=\"Subscriber\",'Enrollment Form'!$C494=\"Enroll\",'Enrollment Form'!$AJ494<>\"\"),\"Y\",\"N\")))","v":""},{"$f":"IF($B487=\"N\",\"\",IF(OR('Enrollment Form'!$B494<>\"Subscriber\",'Enrollment Form'!$C494=\"ROC\"),\"-\",IF(AND('Enrollment Form'!$B494=\"Subscriber\",'Enrollment Form'!$C494=\"Enroll\",'Enrollment Form'!$AK494<>\"\"),\"Y\",\"N\")))","v":""},{"$f":"IF($B487=\"N\",\"\",IF(OR('Enrollment Form'!$B494<>\"Subscriber\",'Enrollment Form'!$C494=\"ROC\"),\"-\",IF(AND('Enrollment Form'!$B494=\"Subscriber\",'Enrollment Form'!$C494=\"Enroll\",'Enrollment Form'!$AL494<>\"\"),\"Y\",\"N\")))","v":""},{"$f":"IF($B487=\"N\",\"\",IF(OR('Enrollment Form'!$B494<>\"Subscriber\",'Enrollment Form'!$C494=\"ROC\"),\"-\",IF(AND('Enrollment Form'!$B494=\"Subscriber\",'Enrollment Form'!$C494=\"Enroll\",'Enrollment Form'!$AM494<>\"\"),\"Y\",\"N\")))","v":""},{"$f":"IF($B487=\"N\",\"\",IF(OR('Enrollment Form'!$B494<>\"Subscriber\",'Enrollment Form'!$C494=\"ROC\"),\"-\",IF(AND('Enrollment Form'!$B494=\"Subscriber\",'Enrollment Form'!$C494=\"Enroll\",'Enrollment Form'!$AN494<>\"\"),\"Y\",\"N\")))","v":""},{"$f":"IF($B487=\"N\",\"\",IF(OR('Enrollment Form'!$B494<>\"Subscriber\",'Enrollment Form'!$C494=\"ROC\"),\"-\",IF(AND('Enrollment Form'!$B494=\"Subscriber\",'Enrollment Form'!$C494=\"Enroll\",'Enrollment Form'!$AP494<>\"\"),\"Y\",\"N\")))","v":""},{"$f":"IF($B487=\"N\",\"\",IF($Q487=\"-\",\"-\",IF(AND($Q487=\"Y\",'Enrollment Form'!$AP494=\"No\"),\"-\",IF(AND($Q487=\"Y\",'Enrollment Form'!$AP494=\"Yes\",'Enrollment Form'!$AQ494<>\"\"),\"Y\",\"N\"))))","v":""},{"$f":"IF($B487=\"N\",\"\",IF(OR('Enrollment Form'!$B494<>\"Subscriber\",'Enrollment Form'!$C494=\"ROC\"),\"-\",IF(AND('Enrollment Form'!$B494=\"Subscriber\",'Enrollment Form'!$C494=\"Enroll\",'Enrollment Form'!$CO494<>\"\"),\"Y\",\"N\")))","v":""},{"$f":"IF($B487=\"N\",\"\",IF($S487=\"-\",\"-\",IF(AND($S487=\"Y\",'Enrollment Form'!$CO494=\"No\"),\"-\",IF(AND($S487=\"Y\",'Enrollment Form'!$CO494=\"Yes\",'Enrollment Form'!$CP494<>\"\"),\"Y\",\"N\"))))","v":""},{"$f":"IF(OR('Enrollment Form'!$AV494=\"Yes\",'Enrollment Form'!$AV494=\"\"),\"-\",IF(AND('Enrollment Form'!$AV494=\"No\",ISERROR(FIND(\"HMO\",VLOOKUP('Enrollment Form'!G494,'Enrollment Form'!H$11:J$1000,3,FALSE),1))=FALSE,COUNTA('Enrollment Form'!$AW494:$AZ494)=4),\"Y\",\"N\"))","v":"-"},{"$f":"IF($B487=\"N\",\"\",IF('Enrollment Form'!$B494=\"Subscriber\",\"-\",IF(COUNTA('Enrollment Form'!$BE494,'Enrollment Form'!$BG494)=2,\"Y\",\"N\")))","v":""},{"$f":"IF($B487=\"N\",\"\",IF(OR('Enrollment Form'!$AU494=\"\",'Enrollment Form'!$AU494=\"No\"),\"-\",IF(AND('Enrollment Form'!$AU494=\"Yes\",COUNTA('Enrollment Form'!$CK494)=1),\"Y\",\"N\")))","v":""},{"$f":"IF(OR('Enrollment Form'!$CK494=\"\",'Enrollment Form'!$CK494=\"No\"),\"-\",IF(COUNTA('Enrollment Form'!$CM494:$CN494)=2,\"Y\",\"N\"))","v":"-"},{"$f":"IF($B487=\"N\",\"\",IF(COUNTIF('Enrollment Form'!$CZ494:$DO494,\"Other\")=COUNTA('Enrollment Form'!$DF494,'Enrollment Form'!$DA494,'Enrollment Form'!$DK494,'Enrollment Form'!$DP494),\"Y\",\"N\"))","v":""},{"$f":"IF($B487=\"N\",\"\",IF(OR('Enrollment Form'!B494<>\"Subscriber\",'Enrollment Form'!C494=\"ROC\",COUNTIF('Enrollment Form'!AS494:AT494,\"Yes\")>=1),\"-\",IF(AND('Enrollment Form'!C494=\"Enroll\",COUNTIF('Enrollment Form'!AS494:AT494,\"No\")=2,'Enrollment Form'!AU494=\"\"),\"N\",\"Y\")))","v":""},{"$f":"IF(OR(B487=\"N\",'Enrollment Form'!B494<>\"Subscriber\",'Enrollment Form'!C494=\"ROC\",'Enrollment Form'!O494<>\"Multiple of Salary\"),\"-\",IF(COUNTA('Enrollment Form'!T494:U494)<2,\"N\",\"Y\"))","v":"-"},{"$f":"IF(B487=\"N\",\"\",IF(OR('Enrollment Form'!C494=\"ROC\",'Enrollment Form'!B494<>\"Subscriber\",'Enrollment Form'!O494=\"Waive\",'Enrollment Form'!O494=\"\"),\"-\",IF('Enrollment Form'!P494=\"\",\"N\",\"Y\")))","v":""},{"$f":"IF($B487=\"N\",\"\",IF(AND('Enrollment Form'!$C494=\"ROC\",'Enrollment Form'!$DS494<>\"\"),\"Y\",IF(AND('Enrollment Form'!$C494=\"ROC\",'Enrollment Form'!$DS494=\"\"),\"N\",IF(AND('Enrollment Form'!$C494=\"Enroll\",'Enrollment Form'!$B494=\"Subscriber\",'Enrollment Form'!$CQ494=\"No\",'Enrollment Form'!$DS494=\"\"),\"N\",IF(AND('Enrollment Form'!$C494=\"Enroll\",'Enrollment Form'!$B494=\"Subscriber\",'Enrollment Form'!$CQ494=\"Yes\"),\"-\",\"Y\")))))","v":""},{"$f":"IF($B487=\"N\",\"\",IF(AND('Enrollment Form'!$C494=\"ROC\",'Enrollment Form'!$DT494<>\"\"),\"Y\",IF(AND('Enrollment Form'!$C494=\"ROC\",'Enrollment Form'!$DT494=\"\"),\"N\",IF(AND('Enrollment Form'!$C494=\"Enroll\",'Enrollment Form'!$B494=\"Subscriber\",'Enrollment Form'!$CQ494=\"No\",'Enrollment Form'!$DT494=\"\"),\"N\",IF(AND('Enrollment Form'!$C494=\"Enroll\",'Enrollment Form'!$B494=\"Subscriber\",'Enrollment Form'!$CQ494=\"Yes\"),\"-\",\"Y\")))))","v":""},{"$f":"IF('Enrollment Form'!AH494=\"\",\"\",IF(ISERROR(SEARCH(\".\",'Enrollment Form'!AH494,SEARCH(\"@\",'Enrollment Form'!AH494))),\"N\",\"Y\"))","v":""},{"$f":"IF(OR($B487=\"N\",'Enrollment Form'!$G494=\"\"),\"\",IF('Enrollment Form'!$B494<>\"Subscriber\",\"-\",IF(COUNTIF('Enrollment Form'!$AS494:$AT494,\"Yes\")=2,\"N\",\"Y\")))","v":""},{"$f":"IF(OR('Enrollment Form'!$CC494=\"\",'Enrollment Form'!$CC494=\"No\"),\"-\",IF(AND('Enrollment Form'!$CC494=\"Yes\",'Enrollment Form'!$CD494=\"\"),\"N\",\"Y\"))","v":"-"},{"$f":"IF(OR('Enrollment Form'!$CE494=\"\",'Enrollment Form'!$CE494=\"No\"),\"-\",IF(AND('Enrollment Form'!$CE494=\"Yes\",'Enrollment Form'!$CF494=\"\"),\"N\",\"Y\"))","v":"-"},{"$f":"IF(OR('Enrollment Form'!$CG494=\"\",'Enrollment Form'!$CG494=\"No\"),\"-\",IF(AND('Enrollment Form'!$CG494=\"Yes\",'Enrollment Form'!$CH494=\"\"),\"N\",\"Y\"))","v":"-"},{"$f":"IF(OR('Enrollment Form'!$CG494=\"\",'Enrollment Form'!$CG494=\"No\"),\"-\",IF(AND('Enrollment Form'!$CG494=\"Yes\",'Enrollment Form'!$CI494=\"\"),\"N\",\"Y\"))","v":"-"},{"$f":"IF('Enrollment Form'!B494<>\"Subscriber\",\"-\",IF(AND('Enrollment Form'!B494=\"Subscriber\",'Enrollment Form'!C494=\"Enroll\",'Enrollment Form'!AA494=\"\"),\"N\",\"Y\"))","v":"-"},{"$f":"IF(OR('Enrollment Form'!B494=\"Subscriber\",'Enrollment Form'!B494=\"\"),\"-\",IF('Enrollment Form'!BI494=\"\",\"N\",\"Y\"))","v":"-"},{"$f":"IF('Enrollment Form'!B494<>\"Subscriber\",\"-\",IF(AND('Enrollment Form'!B494=\"Subscriber\",'Enrollment Form'!G494=\"\"),\"N\",\"Y\"))","v":"-"},{"$f":"IF('Enrollment Form'!A494=\"\",\"\",IF('Enrollment Form'!B494=\"Subscriber\",\"-\",IF(AND('Enrollment Form'!B494<>\"Subscriber\",'Enrollment Form'!G494='Enrollment Form'!H494),\"N\",\"Y\")))","v":""},0]
[495,{"$f":"IF('Enrollment Form'!$A495<>\"\",\"Y\",\"N\")","v":"N"},{"$f":"IF(AND('Enrollment Form'!$B495=\"\",'Enrollment Form'!$C495<>\"\"),\"N\",IF($B488=\"N\",\"\",\"Y\"))","v":""},{"$f":"IF(OR($B488=\"N\",'Enrollment Form'!G495=\"\"),\"\",IF('Enrollment Form'!$B495<>\"Subscriber\",\"\",IF('Enrollment Form'!$G495='Enrollment Form'!$H495,\"Y\",\"N\")))","v":""},{"$f":"IF($B488=\"N\",\"\",IF(AND(COUNTIFS('Enrollment Form'!$H$11:$H$1000,'Enrollment Form'!$H495,'Enrollment Form'!$B$11:$B$1000,'Enrollment Form'!$B495)>1,'Enrollment Form'!$H495<>\"\"),\"N\",\"Y\"))","v":""},{"$f":"IF($B488=\"N\",\"\",IF(LEN('Enrollment Form'!$Y495)=0,\"\",IF(LEN('Enrollment Form'!$Y495)<>5,\"N\",\"Y\")))","v":""},{"$f":"IF($B488=\"N\",\"\",IF(LEN('Enrollment Form'!$AD495=0),\"\",IF(LEN('Enrollment Form'!$AD495)<>5,\"N\",\"Y\")))","v":""},{"$f":"IF($B488=\"N\",\"\",IF(LEN('Enrollment Form'!$BL495=0),\"\",IF(LEN('Enrollment Form'!$BL495)<>5,\"N\",\"Y\")))","v":""},{"$f":"IF($B488=\"N\",\"\",IF(LEN('Enrollment Form'!$AE495)=0,\"\",IF(LEN('Enrollment Form'!$AE495)<>10,\"N\",\"Y\")))","v":""},{"$f":"IF($B488=\"N\",\"\",IF(LEN('Enrollment Form'!$AF495)=0,\"\",IF(LEN('Enrollment Form'!$AF495)<>10,\"N\",\"Y\")))","v":""},{"$f":"IF('Enrollment Form'!$O495<>\"Graded\",\"-\",IF(AND('Enrollment Form'!$O495=\"Graded\",'Enrollment Form'!$AO495<>\"\"),\"Y\",\"N\"))","v":"-"},{"$f":"IF($B488=\"N\",\"\",IF(OR('Enrollment Form'!$B495<>\"Subscriber\",'Enrollment Form'!$C495=\"ROC\"),\"-\",IF(AND('Enrollment Form'!$B495=\"Subscriber\",'Enrollment Form'!$C495=\"Enroll\",'Enrollment Form'!$AJ495<>\"\"),\"Y\",\"N\")))","v":""},{"$f":"IF($B488=\"N\",\"\",IF(OR('Enrollment Form'!$B495<>\"Subscriber\",'Enrollment Form'!$C495=\"ROC\"),\"-\",IF(AND('Enrollment Form'!$B495=\"Subscriber\",'Enrollment Form'!$C495=\"Enroll\",'Enrollment Form'!$AK495<>\"\"),\"Y\",\"N\")))","v":""},{"$f":"IF($B488=\"N\",\"\",IF(OR('Enrollment Form'!$B495<>\"Subscriber\",'Enrollment Form'!$C495=\"ROC\"),\"-\",IF(AND('Enrollment Form'!$B495=\"Subscriber\",'Enrollment Form'!$C495=\"Enroll\",'Enrollment Form'!$AL495<>\"\"),\"Y\",\"N\")))","v":""},{"$f":"IF($B488=\"N\",\"\",IF(OR('Enrollment Form'!$B495<>\"Subscriber\",'Enrollment Form'!$C495=\"ROC\"),\"-\",IF(AND('Enrollment Form'!$B495=\"Subscriber\",'Enrollment Form'!$C495=\"Enroll\",'Enrollment Form'!$AM495<>\"\"),\"Y\",\"N\")))","v":""},{"$f":"IF($B488=\"N\",\"\",IF(OR('Enrollment Form'!$B495<>\"Subscriber\",'Enrollment Form'!$C495=\"ROC\"),\"-\",IF(AND('Enrollment Form'!$B495=\"Subscriber\",'Enrollment Form'!$C495=\"Enroll\",'Enrollment Form'!$AN495<>\"\"),\"Y\",\"N\")))","v":""},{"$f":"IF($B488=\"N\",\"\",IF(OR('Enrollment Form'!$B495<>\"Subscriber\",'Enrollment Form'!$C495=\"ROC\"),\"-\",IF(AND('Enrollment Form'!$B495=\"Subscriber\",'Enrollment Form'!$C495=\"Enroll\",'Enrollment Form'!$AP495<>\"\"),\"Y\",\"N\")))","v":""},{"$f":"IF($B488=\"N\",\"\",IF($Q488=\"-\",\"-\",IF(AND($Q488=\"Y\",'Enrollment Form'!$AP495=\"No\"),\"-\",IF(AND($Q488=\"Y\",'Enrollment Form'!$AP495=\"Yes\",'Enrollment Form'!$AQ495<>\"\"),\"Y\",\"N\"))))","v":""},{"$f":"IF($B488=\"N\",\"\",IF(OR('Enrollment Form'!$B495<>\"Subscriber\",'Enrollment Form'!$C495=\"ROC\"),\"-\",IF(AND('Enrollment Form'!$B495=\"Subscriber\",'Enrollment Form'!$C495=\"Enroll\",'Enrollment Form'!$CO495<>\"\"),\"Y\",\"N\")))","v":""},{"$f":"IF($B488=\"N\",\"\",IF($S488=\"-\",\"-\",IF(AND($S488=\"Y\",'Enrollment Form'!$CO495=\"No\"),\"-\",IF(AND($S488=\"Y\",'Enrollment Form'!$CO495=\"Yes\",'Enrollment Form'!$CP495<>\"\"),\"Y\",\"N\"))))","v":""},{"$f":"IF(OR('Enrollment Form'!$AV495=\"Yes\",'Enrollment Form'!$AV495=\"\"),\"-\",IF(AND('Enrollment Form'!$AV495=\"No\",ISERROR(FIND(\"HMO\",VLOOKUP('Enrollment Form'!G495,'Enrollment Form'!H$11:J$1000,3,FALSE),1))=FALSE,COUNTA('Enrollment Form'!$AW495:$AZ495)=4),\"Y\",\"N\"))","v":"-"},{"$f":"IF($B488=\"N\",\"\",IF('Enrollment Form'!$B495=\"Subscriber\",\"-\",IF(COUNTA('Enrollment Form'!$BE495,'Enrollment Form'!$BG495)=2,\"Y\",\"N\")))","v":""},{"$f":"IF($B488=\"N\",\"\",IF(OR('Enrollment Form'!$AU495=\"\",'Enrollment Form'!$AU495=\"No\"),\"-\",IF(AND('Enrollment Form'!$AU495=\"Yes\",COUNTA('Enrollment Form'!$CK495)=1),\"Y\",\"N\")))","v":""},{"$f":"IF(OR('Enrollment Form'!$CK495=\"\",'Enrollment Form'!$CK495=\"No\"),\"-\",IF(COUNTA('Enrollment Form'!$CM495:$CN495)=2,\"Y\",\"N\"))","v":"-"},{"$f":"IF($B488=\"N\",\"\",IF(COUNTIF('Enrollment Form'!$CZ495:$DO495,\"Other\")=COUNTA('Enrollment Form'!$DF495,'Enrollment Form'!$DA495,'Enrollment Form'!$DK495,'Enrollment Form'!$DP495),\"Y\",\"N\"))","v":""},{"$f":"IF($B488=\"N\",\"\",IF(OR('Enrollment Form'!B495<>\"Subscriber\",'Enrollment Form'!C495=\"ROC\",COUNTIF('Enrollment Form'!AS495:AT495,\"Yes\")>=1),\"-\",IF(AND('Enrollment Form'!C495=\"Enroll\",COUNTIF('Enrollment Form'!AS495:AT495,\"No\")=2,'Enrollment Form'!AU495=\"\"),\"N\",\"Y\")))","v":""},{"$f":"IF(OR(B488=\"N\",'Enrollment Form'!B495<>\"Subscriber\",'Enrollment Form'!C495=\"ROC\",'Enrollment Form'!O495<>\"Multiple of Salary\"),\"-\",IF(COUNTA('Enrollment Form'!T495:U495)<2,\"N\",\"Y\"))","v":"-"},{"$f":"IF(B488=\"N\",\"\",IF(OR('Enrollment Form'!C495=\"ROC\",'Enrollment Form'!B495<>\"Subscriber\",'Enrollment Form'!O495=\"Waive\",'Enrollment Form'!O495=\"\"),\"-\",IF('Enrollment Form'!P495=\"\",\"N\",\"Y\")))","v":""},{"$f":"IF($B488=\"N\",\"\",IF(AND('Enrollment Form'!$C495=\"ROC\",'Enrollment Form'!$DS495<>\"\"),\"Y\",IF(AND('Enrollment Form'!$C495=\"ROC\",'Enrollment Form'!$DS495=\"\"),\"N\",IF(AND('Enrollment Form'!$C495=\"Enroll\",'Enrollment Form'!$B495=\"Subscriber\",'Enrollment Form'!$CQ495=\"No\",'Enrollment Form'!$DS495=\"\"),\"N\",IF(AND('Enrollment Form'!$C495=\"Enroll\",'Enrollment Form'!$B495=\"Subscriber\",'Enrollment Form'!$CQ495=\"Yes\"),\"-\",\"Y\")))))","v":""},{"$f":"IF($B488=\"N\",\"\",IF(AND('Enrollment Form'!$C495=\"ROC\",'Enrollment Form'!$DT495<>\"\"),\"Y\",IF(AND('Enrollment Form'!$C495=\"ROC\",'Enrollment Form'!$DT495=\"\"),\"N\",IF(AND('Enrollment Form'!$C495=\"Enroll\",'Enrollment Form'!$B495=\"Subscriber\",'Enrollment Form'!$CQ495=\"No\",'Enrollment Form'!$DT495=\"\"),\"N\",IF(AND('Enrollment Form'!$C495=\"Enroll\",'Enrollment Form'!$B495=\"Subscriber\",'Enrollment Form'!$CQ495=\"Yes\"),\"-\",\"Y\")))))","v":""},{"$f":"IF('Enrollment Form'!AH495=\"\",\"\",IF(ISERROR(SEARCH(\".\",'Enrollment Form'!AH495,SEARCH(\"@\",'Enrollment Form'!AH495))),\"N\",\"Y\"))","v":""},{"$f":"IF(OR($B488=\"N\",'Enrollment Form'!$G495=\"\"),\"\",IF('Enrollment Form'!$B495<>\"Subscriber\",\"-\",IF(COUNTIF('Enrollment Form'!$AS495:$AT495,\"Yes\")=2,\"N\",\"Y\")))","v":""},{"$f":"IF(OR('Enrollment Form'!$CC495=\"\",'Enrollment Form'!$CC495=\"No\"),\"-\",IF(AND('Enrollment Form'!$CC495=\"Yes\",'Enrollment Form'!$CD495=\"\"),\"N\",\"Y\"))","v":"-"},{"$f":"IF(OR('Enrollment Form'!$CE495=\"\",'Enrollment Form'!$CE495=\"No\"),\"-\",IF(AND('Enrollment Form'!$CE495=\"Yes\",'Enrollment Form'!$CF495=\"\"),\"N\",\"Y\"))","v":"-"},{"$f":"IF(OR('Enrollment Form'!$CG495=\"\",'Enrollment Form'!$CG495=\"No\"),\"-\",IF(AND('Enrollment Form'!$CG495=\"Yes\",'Enrollment Form'!$CH495=\"\"),\"N\",\"Y\"))","v":"-"},{"$f":"IF(OR('Enrollment Form'!$CG495=\"\",'Enrollment Form'!$CG495=\"No\"),\"-\",IF(AND('Enrollment Form'!$CG495=\"Yes\",'Enrollment Form'!$CI495=\"\"),\"N\",\"Y\"))","v":"-"},{"$f":"IF('Enrollment Form'!B495<>\"Subscriber\",\"-\",IF(AND('Enrollment Form'!B495=\"Subscriber\",'Enrollment Form'!C495=\"Enroll\",'Enrollment Form'!AA495=\"\"),\"N\",\"Y\"))","v":"-"},{"$f":"IF(OR('Enrollment Form'!B495=\"Subscriber\",'Enrollment Form'!B495=\"\"),\"-\",IF('Enrollment Form'!BI495=\"\",\"N\",\"Y\"))","v":"-"},{"$f":"IF('Enrollment Form'!B495<>\"Subscriber\",\"-\",IF(AND('Enrollment Form'!B495=\"Subscriber\",'Enrollment Form'!G495=\"\"),\"N\",\"Y\"))","v":"-"},{"$f":"IF('Enrollment Form'!A495=\"\",\"\",IF('Enrollment Form'!B495=\"Subscriber\",\"-\",IF(AND('Enrollment Form'!B495<>\"Subscriber\",'Enrollment Form'!G495='Enrollment Form'!H495),\"N\",\"Y\")))","v":""},0]
[496,{"$f":"IF('Enrollment Form'!$A496<>\"\",\"Y\",\"N\")","v":"N"},{"$f":"IF(AND('Enrollment Form'!$B496=\"\",'Enrollment Form'!$C496<>\"\"),\"N\",IF($B489=\"N\",\"\",\"Y\"))","v":""},{"$f":"IF(OR($B489=\"N\",'Enrollment Form'!G496=\"\"),\"\",IF('Enrollment Form'!$B496<>\"Subscriber\",\"\",IF('Enrollment Form'!$G496='Enrollment Form'!$H496,\"Y\",\"N\")))","v":""},{"$f":"IF($B489=\"N\",\"\",IF(AND(COUNTIFS('Enrollment Form'!$H$11:$H$1000,'Enrollment Form'!$H496,'Enrollment Form'!$B$11:$B$1000,'Enrollment Form'!$B496)>1,'Enrollment Form'!$H496<>\"\"),\"N\",\"Y\"))","v":""},{"$f":"IF($B489=\"N\",\"\",IF(LEN('Enrollment Form'!$Y496)=0,\"\",IF(LEN('Enrollment Form'!$Y496)<>5,\"N\",\"Y\")))","v":""},{"$f":"IF($B489=\"N\",\"\",IF(LEN('Enrollment Form'!$AD496=0),\"\",IF(LEN('Enrollment Form'!$AD496)<>5,\"N\",\"Y\")))","v":""},{"$f":"IF($B489=\"N\",\"\",IF(LEN('Enrollment Form'!$BL496=0),\"\",IF(LEN('Enrollment Form'!$BL496)<>5,\"N\",\"Y\")))","v":""},{"$f":"IF($B489=\"N\",\"\",IF(LEN('Enrollment Form'!$AE496)=0,\"\",IF(LEN('Enrollment Form'!$AE496)<>10,\"N\",\"Y\")))","v":""},{"$f":"IF($B489=\"N\",\"\",IF(LEN('Enrollment Form'!$AF496)=0,\"\",IF(LEN('Enrollment Form'!$AF496)<>10,\"N\",\"Y\")))","v":""},{"$f":"IF('Enrollment Form'!$O496<>\"Graded\",\"-\",IF(AND('Enrollment Form'!$O496=\"Graded\",'Enrollment Form'!$AO496<>\"\"),\"Y\",\"N\"))","v":"-"},{"$f":"IF($B489=\"N\",\"\",IF(OR('Enrollment Form'!$B496<>\"Subscriber\",'Enrollment Form'!$C496=\"ROC\"),\"-\",IF(AND('Enrollment Form'!$B496=\"Subscriber\",'Enrollment Form'!$C496=\"Enroll\",'Enrollment Form'!$AJ496<>\"\"),\"Y\",\"N\")))","v":""},{"$f":"IF($B489=\"N\",\"\",IF(OR('Enrollment Form'!$B496<>\"Subscriber\",'Enrollment Form'!$C496=\"ROC\"),\"-\",IF(AND('Enrollment Form'!$B496=\"Subscriber\",'Enrollment Form'!$C496=\"Enroll\",'Enrollment Form'!$AK496<>\"\"),\"Y\",\"N\")))","v":""},{"$f":"IF($B489=\"N\",\"\",IF(OR('Enrollment Form'!$B496<>\"Subscriber\",'Enrollment Form'!$C496=\"ROC\"),\"-\",IF(AND('Enrollment Form'!$B496=\"Subscriber\",'Enrollment Form'!$C496=\"Enroll\",'Enrollment Form'!$AL496<>\"\"),\"Y\",\"N\")))","v":""},{"$f":"IF($B489=\"N\",\"\",IF(OR('Enrollment Form'!$B496<>\"Subscriber\",'Enrollment Form'!$C496=\"ROC\"),\"-\",IF(AND('Enrollment Form'!$B496=\"Subscriber\",'Enrollment Form'!$C496=\"Enroll\",'Enrollment Form'!$AM496<>\"\"),\"Y\",\"N\")))","v":""},{"$f":"IF($B489=\"N\",\"\",IF(OR('Enrollment Form'!$B496<>\"Subscriber\",'Enrollment Form'!$C496=\"ROC\"),\"-\",IF(AND('Enrollment Form'!$B496=\"Subscriber\",'Enrollment Form'!$C496=\"Enroll\",'Enrollment Form'!$AN496<>\"\"),\"Y\",\"N\")))","v":""},{"$f":"IF($B489=\"N\",\"\",IF(OR('Enrollment Form'!$B496<>\"Subscriber\",'Enrollment Form'!$C496=\"ROC\"),\"-\",IF(AND('Enrollment Form'!$B496=\"Subscriber\",'Enrollment Form'!$C496=\"Enroll\",'Enrollment Form'!$AP496<>\"\"),\"Y\",\"N\")))","v":""},{"$f":"IF($B489=\"N\",\"\",IF($Q489=\"-\",\"-\",IF(AND($Q489=\"Y\",'Enrollment Form'!$AP496=\"No\"),\"-\",IF(AND($Q489=\"Y\",'Enrollment Form'!$AP496=\"Yes\",'Enrollment Form'!$AQ496<>\"\"),\"Y\",\"N\"))))","v":""},{"$f":"IF($B489=\"N\",\"\",IF(OR('Enrollment Form'!$B496<>\"Subscriber\",'Enrollment Form'!$C496=\"ROC\"),\"-\",IF(AND('Enrollment Form'!$B496=\"Subscriber\",'Enrollment Form'!$C496=\"Enroll\",'Enrollment Form'!$CO496<>\"\"),\"Y\",\"N\")))","v":""},{"$f":"IF($B489=\"N\",\"\",IF($S489=\"-\",\"-\",IF(AND($S489=\"Y\",'Enrollment Form'!$CO496=\"No\"),\"-\",IF(AND($S489=\"Y\",'Enrollment Form'!$CO496=\"Yes\",'Enrollment Form'!$CP496<>\"\"),\"Y\",\"N\"))))","v":""},{"$f":"IF(OR('Enrollment Form'!$AV496=\"Yes\",'Enrollment Form'!$AV496=\"\"),\"-\",IF(AND('Enrollment Form'!$AV496=\"No\",ISERROR(FIND(\"HMO\",VLOOKUP('Enrollment Form'!G496,'Enrollment Form'!H$11:J$1000,3,FALSE),1))=FALSE,COUNTA('Enrollment Form'!$AW496:$AZ496)=4),\"Y\",\"N\"))","v":"-"},{"$f":"IF($B489=\"N\",\"\",IF('Enrollment Form'!$B496=\"Subscriber\",\"-\",IF(COUNTA('Enrollment Form'!$BE496,'Enrollment Form'!$BG496)=2,\"Y\",\"N\")))","v":""},{"$f":"IF($B489=\"N\",\"\",IF(OR('Enrollment Form'!$AU496=\"\",'Enrollment Form'!$AU496=\"No\"),\"-\",IF(AND('Enrollment Form'!$AU496=\"Yes\",COUNTA('Enrollment Form'!$CK496)=1),\"Y\",\"N\")))","v":""},{"$f":"IF(OR('Enrollment Form'!$CK496=\"\",'Enrollment Form'!$CK496=\"No\"),\"-\",IF(COUNTA('Enrollment Form'!$CM496:$CN496)=2,\"Y\",\"N\"))","v":"-"},{"$f":"IF($B489=\"N\",\"\",IF(COUNTIF('Enrollment Form'!$CZ496:$DO496,\"Other\")=COUNTA('Enrollment Form'!$DF496,'Enrollment Form'!$DA496,'Enrollment Form'!$DK496,'Enrollment Form'!$DP496),\"Y\",\"N\"))","v":""},{"$f":"IF($B489=\"N\",\"\",IF(OR('Enrollment Form'!B496<>\"Subscriber\",'Enrollment Form'!C496=\"ROC\",COUNTIF('Enrollment Form'!AS496:AT496,\"Yes\")>=1),\"-\",IF(AND('Enrollment Form'!C496=\"Enroll\",COUNTIF('Enrollment Form'!AS496:AT496,\"No\")=2,'Enrollment Form'!AU496=\"\"),\"N\",\"Y\")))","v":""},{"$f":"IF(OR(B489=\"N\",'Enrollment Form'!B496<>\"Subscriber\",'Enrollment Form'!C496=\"ROC\",'Enrollment Form'!O496<>\"Multiple of Salary\"),\"-\",IF(COUNTA('Enrollment Form'!T496:U496)<2,\"N\",\"Y\"))","v":"-"},{"$f":"IF(B489=\"N\",\"\",IF(OR('Enrollment Form'!C496=\"ROC\",'Enrollment Form'!B496<>\"Subscriber\",'Enrollment Form'!O496=\"Waive\",'Enrollment Form'!O496=\"\"),\"-\",IF('Enrollment Form'!P496=\"\",\"N\",\"Y\")))","v":""},{"$f":"IF($B489=\"N\",\"\",IF(AND('Enrollment Form'!$C496=\"ROC\",'Enrollment Form'!$DS496<>\"\"),\"Y\",IF(AND('Enrollment Form'!$C496=\"ROC\",'Enrollment Form'!$DS496=\"\"),\"N\",IF(AND('Enrollment Form'!$C496=\"Enroll\",'Enrollment Form'!$B496=\"Subscriber\",'Enrollment Form'!$CQ496=\"No\",'Enrollment Form'!$DS496=\"\"),\"N\",IF(AND('Enrollment Form'!$C496=\"Enroll\",'Enrollment Form'!$B496=\"Subscriber\",'Enrollment Form'!$CQ496=\"Yes\"),\"-\",\"Y\")))))","v":""},{"$f":"IF($B489=\"N\",\"\",IF(AND('Enrollment Form'!$C496=\"ROC\",'Enrollment Form'!$DT496<>\"\"),\"Y\",IF(AND('Enrollment Form'!$C496=\"ROC\",'Enrollment Form'!$DT496=\"\"),\"N\",IF(AND('Enrollment Form'!$C496=\"Enroll\",'Enrollment Form'!$B496=\"Subscriber\",'Enrollment Form'!$CQ496=\"No\",'Enrollment Form'!$DT496=\"\"),\"N\",IF(AND('Enrollment Form'!$C496=\"Enroll\",'Enrollment Form'!$B496=\"Subscriber\",'Enrollment Form'!$CQ496=\"Yes\"),\"-\",\"Y\")))))","v":""},{"$f":"IF('Enrollment Form'!AH496=\"\",\"\",IF(ISERROR(SEARCH(\".\",'Enrollment Form'!AH496,SEARCH(\"@\",'Enrollment Form'!AH496))),\"N\",\"Y\"))","v":""},{"$f":"IF(OR($B489=\"N\",'Enrollment Form'!$G496=\"\"),\"\",IF('Enrollment Form'!$B496<>\"Subscriber\",\"-\",IF(COUNTIF('Enrollment Form'!$AS496:$AT496,\"Yes\")=2,\"N\",\"Y\")))","v":""},{"$f":"IF(OR('Enrollment Form'!$CC496=\"\",'Enrollment Form'!$CC496=\"No\"),\"-\",IF(AND('Enrollment Form'!$CC496=\"Yes\",'Enrollment Form'!$CD496=\"\"),\"N\",\"Y\"))","v":"-"},{"$f":"IF(OR('Enrollment Form'!$CE496=\"\",'Enrollment Form'!$CE496=\"No\"),\"-\",IF(AND('Enrollment Form'!$CE496=\"Yes\",'Enrollment Form'!$CF496=\"\"),\"N\",\"Y\"))","v":"-"},{"$f":"IF(OR('Enrollment Form'!$CG496=\"\",'Enrollment Form'!$CG496=\"No\"),\"-\",IF(AND('Enrollment Form'!$CG496=\"Yes\",'Enrollment Form'!$CH496=\"\"),\"N\",\"Y\"))","v":"-"},{"$f":"IF(OR('Enrollment Form'!$CG496=\"\",'Enrollment Form'!$CG496=\"No\"),\"-\",IF(AND('Enrollment Form'!$CG496=\"Yes\",'Enrollment Form'!$CI496=\"\"),\"N\",\"Y\"))","v":"-"},{"$f":"IF('Enrollment Form'!B496<>\"Subscriber\",\"-\",IF(AND('Enrollment Form'!B496=\"Subscriber\",'Enrollment Form'!C496=\"Enroll\",'Enrollment Form'!AA496=\"\"),\"N\",\"Y\"))","v":"-"},{"$f":"IF(OR('Enrollment Form'!B496=\"Subscriber\",'Enrollment Form'!B496=\"\"),\"-\",IF('Enrollment Form'!BI496=\"\",\"N\",\"Y\"))","v":"-"},{"$f":"IF('Enrollment Form'!B496<>\"Subscriber\",\"-\",IF(AND('Enrollment Form'!B496=\"Subscriber\",'Enrollment Form'!G496=\"\"),\"N\",\"Y\"))","v":"-"},{"$f":"IF('Enrollment Form'!A496=\"\",\"\",IF('Enrollment Form'!B496=\"Subscriber\",\"-\",IF(AND('Enrollment Form'!B496<>\"Subscriber\",'Enrollment Form'!G496='Enrollment Form'!H496),\"N\",\"Y\")))","v":""},0]
[497,{"$f":"IF('Enrollment Form'!$A497<>\"\",\"Y\",\"N\")","v":"N"},{"$f":"IF(AND('Enrollment Form'!$B497=\"\",'Enrollment Form'!$C497<>\"\"),\"N\",IF($B490=\"N\",\"\",\"Y\"))","v":""},{"$f":"IF(OR($B490=\"N\",'Enrollment Form'!G497=\"\"),\"\",IF('Enrollment Form'!$B497<>\"Subscriber\",\"\",IF('Enrollment Form'!$G497='Enrollment Form'!$H497,\"Y\",\"N\")))","v":""},{"$f":"IF($B490=\"N\",\"\",IF(AND(COUNTIFS('Enrollment Form'!$H$11:$H$1000,'Enrollment Form'!$H497,'Enrollment Form'!$B$11:$B$1000,'Enrollment Form'!$B497)>1,'Enrollment Form'!$H497<>\"\"),\"N\",\"Y\"))","v":""},{"$f":"IF($B490=\"N\",\"\",IF(LEN('Enrollment Form'!$Y497)=0,\"\",IF(LEN('Enrollment Form'!$Y497)<>5,\"N\",\"Y\")))","v":""},{"$f":"IF($B490=\"N\",\"\",IF(LEN('Enrollment Form'!$AD497=0),\"\",IF(LEN('Enrollment Form'!$AD497)<>5,\"N\",\"Y\")))","v":""},{"$f":"IF($B490=\"N\",\"\",IF(LEN('Enrollment Form'!$BL497=0),\"\",IF(LEN('Enrollment Form'!$BL497)<>5,\"N\",\"Y\")))","v":""},{"$f":"IF($B490=\"N\",\"\",IF(LEN('Enrollment Form'!$AE497)=0,\"\",IF(LEN('Enrollment Form'!$AE497)<>10,\"N\",\"Y\")))","v":""},{"$f":"IF($B490=\"N\",\"\",IF(LEN('Enrollment Form'!$AF497)=0,\"\",IF(LEN('Enrollment Form'!$AF497)<>10,\"N\",\"Y\")))","v":""},{"$f":"IF('Enrollment Form'!$O497<>\"Graded\",\"-\",IF(AND('Enrollment Form'!$O497=\"Graded\",'Enrollment Form'!$AO497<>\"\"),\"Y\",\"N\"))","v":"-"},{"$f":"IF($B490=\"N\",\"\",IF(OR('Enrollment Form'!$B497<>\"Subscriber\",'Enrollment Form'!$C497=\"ROC\"),\"-\",IF(AND('Enrollment Form'!$B497=\"Subscriber\",'Enrollment Form'!$C497=\"Enroll\",'Enrollment Form'!$AJ497<>\"\"),\"Y\",\"N\")))","v":""},{"$f":"IF($B490=\"N\",\"\",IF(OR('Enrollment Form'!$B497<>\"Subscriber\",'Enrollment Form'!$C497=\"ROC\"),\"-\",IF(AND('Enrollment Form'!$B497=\"Subscriber\",'Enrollment Form'!$C497=\"Enroll\",'Enrollment Form'!$AK497<>\"\"),\"Y\",\"N\")))","v":""},{"$f":"IF($B490=\"N\",\"\",IF(OR('Enrollment Form'!$B497<>\"Subscriber\",'Enrollment Form'!$C497=\"ROC\"),\"-\",IF(AND('Enrollment Form'!$B497=\"Subscriber\",'Enrollment Form'!$C497=\"Enroll\",'Enrollment Form'!$AL497<>\"\"),\"Y\",\"N\")))","v":""},{"$f":"IF($B490=\"N\",\"\",IF(OR('Enrollment Form'!$B497<>\"Subscriber\",'Enrollment Form'!$C497=\"ROC\"),\"-\",IF(AND('Enrollment Form'!$B497=\"Subscriber\",'Enrollment Form'!$C497=\"Enroll\",'Enrollment Form'!$AM497<>\"\"),\"Y\",\"N\")))","v":""},{"$f":"IF($B490=\"N\",\"\",IF(OR('Enrollment Form'!$B497<>\"Subscriber\",'Enrollment Form'!$C497=\"ROC\"),\"-\",IF(AND('Enrollment Form'!$B497=\"Subscriber\",'Enrollment Form'!$C497=\"Enroll\",'Enrollment Form'!$AN497<>\"\"),\"Y\",\"N\")))","v":""},{"$f":"IF($B490=\"N\",\"\",IF(OR('Enrollment Form'!$B497<>\"Subscriber\",'Enrollment Form'!$C497=\"ROC\"),\"-\",IF(AND('Enrollment Form'!$B497=\"Subscriber\",'Enrollment Form'!$C497=\"Enroll\",'Enrollment Form'!$AP497<>\"\"),\"Y\",\"N\")))","v":""},{"$f":"IF($B490=\"N\",\"\",IF($Q490=\"-\",\"-\",IF(AND($Q490=\"Y\",'Enrollment Form'!$AP497=\"No\"),\"-\",IF(AND($Q490=\"Y\",'Enrollment Form'!$AP497=\"Yes\",'Enrollment Form'!$AQ497<>\"\"),\"Y\",\"N\"))))","v":""},{"$f":"IF($B490=\"N\",\"\",IF(OR('Enrollment Form'!$B497<>\"Subscriber\",'Enrollment Form'!$C497=\"ROC\"),\"-\",IF(AND('Enrollment Form'!$B497=\"Subscriber\",'Enrollment Form'!$C497=\"Enroll\",'Enrollment Form'!$CO497<>\"\"),\"Y\",\"N\")))","v":""},{"$f":"IF($B490=\"N\",\"\",IF($S490=\"-\",\"-\",IF(AND($S490=\"Y\",'Enrollment Form'!$CO497=\"No\"),\"-\",IF(AND($S490=\"Y\",'Enrollment Form'!$CO497=\"Yes\",'Enrollment Form'!$CP497<>\"\"),\"Y\",\"N\"))))","v":""},{"$f":"IF(OR('Enrollment Form'!$AV497=\"Yes\",'Enrollment Form'!$AV497=\"\"),\"-\",IF(AND('Enrollment Form'!$AV497=\"No\",ISERROR(FIND(\"HMO\",VLOOKUP('Enrollment Form'!G497,'Enrollment Form'!H$11:J$1000,3,FALSE),1))=FALSE,COUNTA('Enrollment Form'!$AW497:$AZ497)=4),\"Y\",\"N\"))","v":"-"},{"$f":"IF($B490=\"N\",\"\",IF('Enrollment Form'!$B497=\"Subscriber\",\"-\",IF(COUNTA('Enrollment Form'!$BE497,'Enrollment Form'!$BG497)=2,\"Y\",\"N\")))","v":""},{"$f":"IF($B490=\"N\",\"\",IF(OR('Enrollment Form'!$AU497=\"\",'Enrollment Form'!$AU497=\"No\"),\"-\",IF(AND('Enrollment Form'!$AU497=\"Yes\",COUNTA('Enrollment Form'!$CK497)=1),\"Y\",\"N\")))","v":""},{"$f":"IF(OR('Enrollment Form'!$CK497=\"\",'Enrollment Form'!$CK497=\"No\"),\"-\",IF(COUNTA('Enrollment Form'!$CM497:$CN497)=2,\"Y\",\"N\"))","v":"-"},{"$f":"IF($B490=\"N\",\"\",IF(COUNTIF('Enrollment Form'!$CZ497:$DO497,\"Other\")=COUNTA('Enrollment Form'!$DF497,'Enrollment Form'!$DA497,'Enrollment Form'!$DK497,'Enrollment Form'!$DP497),\"Y\",\"N\"))","v":""},{"$f":"IF($B490=\"N\",\"\",IF(OR('Enrollment Form'!B497<>\"Subscriber\",'Enrollment Form'!C497=\"ROC\",COUNTIF('Enrollment Form'!AS497:AT497,\"Yes\")>=1),\"-\",IF(AND('Enrollment Form'!C497=\"Enroll\",COUNTIF('Enrollment Form'!AS497:AT497,\"No\")=2,'Enrollment Form'!AU497=\"\"),\"N\",\"Y\")))","v":""},{"$f":"IF(OR(B490=\"N\",'Enrollment Form'!B497<>\"Subscriber\",'Enrollment Form'!C497=\"ROC\",'Enrollment Form'!O497<>\"Multiple of Salary\"),\"-\",IF(COUNTA('Enrollment Form'!T497:U497)<2,\"N\",\"Y\"))","v":"-"},{"$f":"IF(B490=\"N\",\"\",IF(OR('Enrollment Form'!C497=\"ROC\",'Enrollment Form'!B497<>\"Subscriber\",'Enrollment Form'!O497=\"Waive\",'Enrollment Form'!O497=\"\"),\"-\",IF('Enrollment Form'!P497=\"\",\"N\",\"Y\")))","v":""},{"$f":"IF($B490=\"N\",\"\",IF(AND('Enrollment Form'!$C497=\"ROC\",'Enrollment Form'!$DS497<>\"\"),\"Y\",IF(AND('Enrollment Form'!$C497=\"ROC\",'Enrollment Form'!$DS497=\"\"),\"N\",IF(AND('Enrollment Form'!$C497=\"Enroll\",'Enrollment Form'!$B497=\"Subscriber\",'Enrollment Form'!$CQ497=\"No\",'Enrollment Form'!$DS497=\"\"),\"N\",IF(AND('Enrollment Form'!$C497=\"Enroll\",'Enrollment Form'!$B497=\"Subscriber\",'Enrollment Form'!$CQ497=\"Yes\"),\"-\",\"Y\")))))","v":""},{"$f":"IF($B490=\"N\",\"\",IF(AND('Enrollment Form'!$C497=\"ROC\",'Enrollment Form'!$DT497<>\"\"),\"Y\",IF(AND('Enrollment Form'!$C497=\"ROC\",'Enrollment Form'!$DT497=\"\"),\"N\",IF(AND('Enrollment Form'!$C497=\"Enroll\",'Enrollment Form'!$B497=\"Subscriber\",'Enrollment Form'!$CQ497=\"No\",'Enrollment Form'!$DT497=\"\"),\"N\",IF(AND('Enrollment Form'!$C497=\"Enroll\",'Enrollment Form'!$B497=\"Subscriber\",'Enrollment Form'!$CQ497=\"Yes\"),\"-\",\"Y\")))))","v":""},{"$f":"IF('Enrollment Form'!AH497=\"\",\"\",IF(ISERROR(SEARCH(\".\",'Enrollment Form'!AH497,SEARCH(\"@\",'Enrollment Form'!AH497))),\"N\",\"Y\"))","v":""},{"$f":"IF(OR($B490=\"N\",'Enrollment Form'!$G497=\"\"),\"\",IF('Enrollment Form'!$B497<>\"Subscriber\",\"-\",IF(COUNTIF('Enrollment Form'!$AS497:$AT497,\"Yes\")=2,\"N\",\"Y\")))","v":""},{"$f":"IF(OR('Enrollment Form'!$CC497=\"\",'Enrollment Form'!$CC497=\"No\"),\"-\",IF(AND('Enrollment Form'!$CC497=\"Yes\",'Enrollment Form'!$CD497=\"\"),\"N\",\"Y\"))","v":"-"},{"$f":"IF(OR('Enrollment Form'!$CE497=\"\",'Enrollment Form'!$CE497=\"No\"),\"-\",IF(AND('Enrollment Form'!$CE497=\"Yes\",'Enrollment Form'!$CF497=\"\"),\"N\",\"Y\"))","v":"-"},{"$f":"IF(OR('Enrollment Form'!$CG497=\"\",'Enrollment Form'!$CG497=\"No\"),\"-\",IF(AND('Enrollment Form'!$CG497=\"Yes\",'Enrollment Form'!$CH497=\"\"),\"N\",\"Y\"))","v":"-"},{"$f":"IF(OR('Enrollment Form'!$CG497=\"\",'Enrollment Form'!$CG497=\"No\"),\"-\",IF(AND('Enrollment Form'!$CG497=\"Yes\",'Enrollment Form'!$CI497=\"\"),\"N\",\"Y\"))","v":"-"},{"$f":"IF('Enrollment Form'!B497<>\"Subscriber\",\"-\",IF(AND('Enrollment Form'!B497=\"Subscriber\",'Enrollment Form'!C497=\"Enroll\",'Enrollment Form'!AA497=\"\"),\"N\",\"Y\"))","v":"-"},{"$f":"IF(OR('Enrollment Form'!B497=\"Subscriber\",'Enrollment Form'!B497=\"\"),\"-\",IF('Enrollment Form'!BI497=\"\",\"N\",\"Y\"))","v":"-"},{"$f":"IF('Enrollment Form'!B497<>\"Subscriber\",\"-\",IF(AND('Enrollment Form'!B497=\"Subscriber\",'Enrollment Form'!G497=\"\"),\"N\",\"Y\"))","v":"-"},{"$f":"IF('Enrollment Form'!A497=\"\",\"\",IF('Enrollment Form'!B497=\"Subscriber\",\"-\",IF(AND('Enrollment Form'!B497<>\"Subscriber\",'Enrollment Form'!G497='Enrollment Form'!H497),\"N\",\"Y\")))","v":""},0]
[498,{"$f":"IF('Enrollment Form'!$A498<>\"\",\"Y\",\"N\")","v":"N"},{"$f":"IF(AND('Enrollment Form'!$B498=\"\",'Enrollment Form'!$C498<>\"\"),\"N\",IF($B491=\"N\",\"\",\"Y\"))","v":""},{"$f":"IF(OR($B491=\"N\",'Enrollment Form'!G498=\"\"),\"\",IF('Enrollment Form'!$B498<>\"Subscriber\",\"\",IF('Enrollment Form'!$G498='Enrollment Form'!$H498,\"Y\",\"N\")))","v":""},{"$f":"IF($B491=\"N\",\"\",IF(AND(COUNTIFS('Enrollment Form'!$H$11:$H$1000,'Enrollment Form'!$H498,'Enrollment Form'!$B$11:$B$1000,'Enrollment Form'!$B498)>1,'Enrollment Form'!$H498<>\"\"),\"N\",\"Y\"))","v":""},{"$f":"IF($B491=\"N\",\"\",IF(LEN('Enrollment Form'!$Y498)=0,\"\",IF(LEN('Enrollment Form'!$Y498)<>5,\"N\",\"Y\")))","v":""},{"$f":"IF($B491=\"N\",\"\",IF(LEN('Enrollment Form'!$AD498=0),\"\",IF(LEN('Enrollment Form'!$AD498)<>5,\"N\",\"Y\")))","v":""},{"$f":"IF($B491=\"N\",\"\",IF(LEN('Enrollment Form'!$BL498=0),\"\",IF(LEN('Enrollment Form'!$BL498)<>5,\"N\",\"Y\")))","v":""},{"$f":"IF($B491=\"N\",\"\",IF(LEN('Enrollment Form'!$AE498)=0,\"\",IF(LEN('Enrollment Form'!$AE498)<>10,\"N\",\"Y\")))","v":""},{"$f":"IF($B491=\"N\",\"\",IF(LEN('Enrollment Form'!$AF498)=0,\"\",IF(LEN('Enrollment Form'!$AF498)<>10,\"N\",\"Y\")))","v":""},{"$f":"IF('Enrollment Form'!$O498<>\"Graded\",\"-\",IF(AND('Enrollment Form'!$O498=\"Graded\",'Enrollment Form'!$AO498<>\"\"),\"Y\",\"N\"))","v":"-"},{"$f":"IF($B491=\"N\",\"\",IF(OR('Enrollment Form'!$B498<>\"Subscriber\",'Enrollment Form'!$C498=\"ROC\"),\"-\",IF(AND('Enrollment Form'!$B498=\"Subscriber\",'Enrollment Form'!$C498=\"Enroll\",'Enrollment Form'!$AJ498<>\"\"),\"Y\",\"N\")))","v":""},{"$f":"IF($B491=\"N\",\"\",IF(OR('Enrollment Form'!$B498<>\"Subscriber\",'Enrollment Form'!$C498=\"ROC\"),\"-\",IF(AND('Enrollment Form'!$B498=\"Subscriber\",'Enrollment Form'!$C498=\"Enroll\",'Enrollment Form'!$AK498<>\"\"),\"Y\",\"N\")))","v":""},{"$f":"IF($B491=\"N\",\"\",IF(OR('Enrollment Form'!$B498<>\"Subscriber\",'Enrollment Form'!$C498=\"ROC\"),\"-\",IF(AND('Enrollment Form'!$B498=\"Subscriber\",'Enrollment Form'!$C498=\"Enroll\",'Enrollment Form'!$AL498<>\"\"),\"Y\",\"N\")))","v":""},{"$f":"IF($B491=\"N\",\"\",IF(OR('Enrollment Form'!$B498<>\"Subscriber\",'Enrollment Form'!$C498=\"ROC\"),\"-\",IF(AND('Enrollment Form'!$B498=\"Subscriber\",'Enrollment Form'!$C498=\"Enroll\",'Enrollment Form'!$AM498<>\"\"),\"Y\",\"N\")))","v":""},{"$f":"IF($B491=\"N\",\"\",IF(OR('Enrollment Form'!$B498<>\"Subscriber\",'Enrollment Form'!$C498=\"ROC\"),\"-\",IF(AND('Enrollment Form'!$B498=\"Subscriber\",'Enrollment Form'!$C498=\"Enroll\",'Enrollment Form'!$AN498<>\"\"),\"Y\",\"N\")))","v":""},{"$f":"IF($B491=\"N\",\"\",IF(OR('Enrollment Form'!$B498<>\"Subscriber\",'Enrollment Form'!$C498=\"ROC\"),\"-\",IF(AND('Enrollment Form'!$B498=\"Subscriber\",'Enrollment Form'!$C498=\"Enroll\",'Enrollment Form'!$AP498<>\"\"),\"Y\",\"N\")))","v":""},{"$f":"IF($B491=\"N\",\"\",IF($Q491=\"-\",\"-\",IF(AND($Q491=\"Y\",'Enrollment Form'!$AP498=\"No\"),\"-\",IF(AND($Q491=\"Y\",'Enrollment Form'!$AP498=\"Yes\",'Enrollment Form'!$AQ498<>\"\"),\"Y\",\"N\"))))","v":""},{"$f":"IF($B491=\"N\",\"\",IF(OR('Enrollment Form'!$B498<>\"Subscriber\",'Enrollment Form'!$C498=\"ROC\"),\"-\",IF(AND('Enrollment Form'!$B498=\"Subscriber\",'Enrollment Form'!$C498=\"Enroll\",'Enrollment Form'!$CO498<>\"\"),\"Y\",\"N\")))","v":""},{"$f":"IF($B491=\"N\",\"\",IF($S491=\"-\",\"-\",IF(AND($S491=\"Y\",'Enrollment Form'!$CO498=\"No\"),\"-\",IF(AND($S491=\"Y\",'Enrollment Form'!$CO498=\"Yes\",'Enrollment Form'!$CP498<>\"\"),\"Y\",\"N\"))))","v":""},{"$f":"IF(OR('Enrollment Form'!$AV498=\"Yes\",'Enrollment Form'!$AV498=\"\"),\"-\",IF(AND('Enrollment Form'!$AV498=\"No\",ISERROR(FIND(\"HMO\",VLOOKUP('Enrollment Form'!G498,'Enrollment Form'!H$11:J$1000,3,FALSE),1))=FALSE,COUNTA('Enrollment Form'!$AW498:$AZ498)=4),\"Y\",\"N\"))","v":"-"},{"$f":"IF($B491=\"N\",\"\",IF('Enrollment Form'!$B498=\"Subscriber\",\"-\",IF(COUNTA('Enrollment Form'!$BE498,'Enrollment Form'!$BG498)=2,\"Y\",\"N\")))","v":""},{"$f":"IF($B491=\"N\",\"\",IF(OR('Enrollment Form'!$AU498=\"\",'Enrollment Form'!$AU498=\"No\"),\"-\",IF(AND('Enrollment Form'!$AU498=\"Yes\",COUNTA('Enrollment Form'!$CK498)=1),\"Y\",\"N\")))","v":""},{"$f":"IF(OR('Enrollment Form'!$CK498=\"\",'Enrollment Form'!$CK498=\"No\"),\"-\",IF(COUNTA('Enrollment Form'!$CM498:$CN498)=2,\"Y\",\"N\"))","v":"-"},{"$f":"IF($B491=\"N\",\"\",IF(COUNTIF('Enrollment Form'!$CZ498:$DO498,\"Other\")=COUNTA('Enrollment Form'!$DF498,'Enrollment Form'!$DA498,'Enrollment Form'!$DK498,'Enrollment Form'!$DP498),\"Y\",\"N\"))","v":""},{"$f":"IF($B491=\"N\",\"\",IF(OR('Enrollment Form'!B498<>\"Subscriber\",'Enrollment Form'!C498=\"ROC\",COUNTIF('Enrollment Form'!AS498:AT498,\"Yes\")>=1),\"-\",IF(AND('Enrollment Form'!C498=\"Enroll\",COUNTIF('Enrollment Form'!AS498:AT498,\"No\")=2,'Enrollment Form'!AU498=\"\"),\"N\",\"Y\")))","v":""},{"$f":"IF(OR(B491=\"N\",'Enrollment Form'!B498<>\"Subscriber\",'Enrollment Form'!C498=\"ROC\",'Enrollment Form'!O498<>\"Multiple of Salary\"),\"-\",IF(COUNTA('Enrollment Form'!T498:U498)<2,\"N\",\"Y\"))","v":"-"},{"$f":"IF(B491=\"N\",\"\",IF(OR('Enrollment Form'!C498=\"ROC\",'Enrollment Form'!B498<>\"Subscriber\",'Enrollment Form'!O498=\"Waive\",'Enrollment Form'!O498=\"\"),\"-\",IF('Enrollment Form'!P498=\"\",\"N\",\"Y\")))","v":""},{"$f":"IF($B491=\"N\",\"\",IF(AND('Enrollment Form'!$C498=\"ROC\",'Enrollment Form'!$DS498<>\"\"),\"Y\",IF(AND('Enrollment Form'!$C498=\"ROC\",'Enrollment Form'!$DS498=\"\"),\"N\",IF(AND('Enrollment Form'!$C498=\"Enroll\",'Enrollment Form'!$B498=\"Subscriber\",'Enrollment Form'!$CQ498=\"No\",'Enrollment Form'!$DS498=\"\"),\"N\",IF(AND('Enrollment Form'!$C498=\"Enroll\",'Enrollment Form'!$B498=\"Subscriber\",'Enrollment Form'!$CQ498=\"Yes\"),\"-\",\"Y\")))))","v":""},{"$f":"IF($B491=\"N\",\"\",IF(AND('Enrollment Form'!$C498=\"ROC\",'Enrollment Form'!$DT498<>\"\"),\"Y\",IF(AND('Enrollment Form'!$C498=\"ROC\",'Enrollment Form'!$DT498=\"\"),\"N\",IF(AND('Enrollment Form'!$C498=\"Enroll\",'Enrollment Form'!$B498=\"Subscriber\",'Enrollment Form'!$CQ498=\"No\",'Enrollment Form'!$DT498=\"\"),\"N\",IF(AND('Enrollment Form'!$C498=\"Enroll\",'Enrollment Form'!$B498=\"Subscriber\",'Enrollment Form'!$CQ498=\"Yes\"),\"-\",\"Y\")))))","v":""},{"$f":"IF('Enrollment Form'!AH498=\"\",\"\",IF(ISERROR(SEARCH(\".\",'Enrollment Form'!AH498,SEARCH(\"@\",'Enrollment Form'!AH498))),\"N\",\"Y\"))","v":""},{"$f":"IF(OR($B491=\"N\",'Enrollment Form'!$G498=\"\"),\"\",IF('Enrollment Form'!$B498<>\"Subscriber\",\"-\",IF(COUNTIF('Enrollment Form'!$AS498:$AT498,\"Yes\")=2,\"N\",\"Y\")))","v":""},{"$f":"IF(OR('Enrollment Form'!$CC498=\"\",'Enrollment Form'!$CC498=\"No\"),\"-\",IF(AND('Enrollment Form'!$CC498=\"Yes\",'Enrollment Form'!$CD498=\"\"),\"N\",\"Y\"))","v":"-"},{"$f":"IF(OR('Enrollment Form'!$CE498=\"\",'Enrollment Form'!$CE498=\"No\"),\"-\",IF(AND('Enrollment Form'!$CE498=\"Yes\",'Enrollment Form'!$CF498=\"\"),\"N\",\"Y\"))","v":"-"},{"$f":"IF(OR('Enrollment Form'!$CG498=\"\",'Enrollment Form'!$CG498=\"No\"),\"-\",IF(AND('Enrollment Form'!$CG498=\"Yes\",'Enrollment Form'!$CH498=\"\"),\"N\",\"Y\"))","v":"-"},{"$f":"IF(OR('Enrollment Form'!$CG498=\"\",'Enrollment Form'!$CG498=\"No\"),\"-\",IF(AND('Enrollment Form'!$CG498=\"Yes\",'Enrollment Form'!$CI498=\"\"),\"N\",\"Y\"))","v":"-"},{"$f":"IF('Enrollment Form'!B498<>\"Subscriber\",\"-\",IF(AND('Enrollment Form'!B498=\"Subscriber\",'Enrollment Form'!C498=\"Enroll\",'Enrollment Form'!AA498=\"\"),\"N\",\"Y\"))","v":"-"},{"$f":"IF(OR('Enrollment Form'!B498=\"Subscriber\",'Enrollment Form'!B498=\"\"),\"-\",IF('Enrollment Form'!BI498=\"\",\"N\",\"Y\"))","v":"-"},{"$f":"IF('Enrollment Form'!B498<>\"Subscriber\",\"-\",IF(AND('Enrollment Form'!B498=\"Subscriber\",'Enrollment Form'!G498=\"\"),\"N\",\"Y\"))","v":"-"},{"$f":"IF('Enrollment Form'!A498=\"\",\"\",IF('Enrollment Form'!B498=\"Subscriber\",\"-\",IF(AND('Enrollment Form'!B498<>\"Subscriber\",'Enrollment Form'!G498='Enrollment Form'!H498),\"N\",\"Y\")))","v":""},0]
[499,{"$f":"IF('Enrollment Form'!$A499<>\"\",\"Y\",\"N\")","v":"N"},{"$f":"IF(AND('Enrollment Form'!$B499=\"\",'Enrollment Form'!$C499<>\"\"),\"N\",IF($B492=\"N\",\"\",\"Y\"))","v":""},{"$f":"IF(OR($B492=\"N\",'Enrollment Form'!G499=\"\"),\"\",IF('Enrollment Form'!$B499<>\"Subscriber\",\"\",IF('Enrollment Form'!$G499='Enrollment Form'!$H499,\"Y\",\"N\")))","v":""},{"$f":"IF($B492=\"N\",\"\",IF(AND(COUNTIFS('Enrollment Form'!$H$11:$H$1000,'Enrollment Form'!$H499,'Enrollment Form'!$B$11:$B$1000,'Enrollment Form'!$B499)>1,'Enrollment Form'!$H499<>\"\"),\"N\",\"Y\"))","v":""},{"$f":"IF($B492=\"N\",\"\",IF(LEN('Enrollment Form'!$Y499)=0,\"\",IF(LEN('Enrollment Form'!$Y499)<>5,\"N\",\"Y\")))","v":""},{"$f":"IF($B492=\"N\",\"\",IF(LEN('Enrollment Form'!$AD499=0),\"\",IF(LEN('Enrollment Form'!$AD499)<>5,\"N\",\"Y\")))","v":""},{"$f":"IF($B492=\"N\",\"\",IF(LEN('Enrollment Form'!$BL499=0),\"\",IF(LEN('Enrollment Form'!$BL499)<>5,\"N\",\"Y\")))","v":""},{"$f":"IF($B492=\"N\",\"\",IF(LEN('Enrollment Form'!$AE499)=0,\"\",IF(LEN('Enrollment Form'!$AE499)<>10,\"N\",\"Y\")))","v":""},{"$f":"IF($B492=\"N\",\"\",IF(LEN('Enrollment Form'!$AF499)=0,\"\",IF(LEN('Enrollment Form'!$AF499)<>10,\"N\",\"Y\")))","v":""},{"$f":"IF('Enrollment Form'!$O499<>\"Graded\",\"-\",IF(AND('Enrollment Form'!$O499=\"Graded\",'Enrollment Form'!$AO499<>\"\"),\"Y\",\"N\"))","v":"-"},{"$f":"IF($B492=\"N\",\"\",IF(OR('Enrollment Form'!$B499<>\"Subscriber\",'Enrollment Form'!$C499=\"ROC\"),\"-\",IF(AND('Enrollment Form'!$B499=\"Subscriber\",'Enrollment Form'!$C499=\"Enroll\",'Enrollment Form'!$AJ499<>\"\"),\"Y\",\"N\")))","v":""},{"$f":"IF($B492=\"N\",\"\",IF(OR('Enrollment Form'!$B499<>\"Subscriber\",'Enrollment Form'!$C499=\"ROC\"),\"-\",IF(AND('Enrollment Form'!$B499=\"Subscriber\",'Enrollment Form'!$C499=\"Enroll\",'Enrollment Form'!$AK499<>\"\"),\"Y\",\"N\")))","v":""},{"$f":"IF($B492=\"N\",\"\",IF(OR('Enrollment Form'!$B499<>\"Subscriber\",'Enrollment Form'!$C499=\"ROC\"),\"-\",IF(AND('Enrollment Form'!$B499=\"Subscriber\",'Enrollment Form'!$C499=\"Enroll\",'Enrollment Form'!$AL499<>\"\"),\"Y\",\"N\")))","v":""},{"$f":"IF($B492=\"N\",\"\",IF(OR('Enrollment Form'!$B499<>\"Subscriber\",'Enrollment Form'!$C499=\"ROC\"),\"-\",IF(AND('Enrollment Form'!$B499=\"Subscriber\",'Enrollment Form'!$C499=\"Enroll\",'Enrollment Form'!$AM499<>\"\"),\"Y\",\"N\")))","v":""},{"$f":"IF($B492=\"N\",\"\",IF(OR('Enrollment Form'!$B499<>\"Subscriber\",'Enrollment Form'!$C499=\"ROC\"),\"-\",IF(AND('Enrollment Form'!$B499=\"Subscriber\",'Enrollment Form'!$C499=\"Enroll\",'Enrollment Form'!$AN499<>\"\"),\"Y\",\"N\")))","v":""},{"$f":"IF($B492=\"N\",\"\",IF(OR('Enrollment Form'!$B499<>\"Subscriber\",'Enrollment Form'!$C499=\"ROC\"),\"-\",IF(AND('Enrollment Form'!$B499=\"Subscriber\",'Enrollment Form'!$C499=\"Enroll\",'Enrollment Form'!$AP499<>\"\"),\"Y\",\"N\")))","v":""},{"$f":"IF($B492=\"N\",\"\",IF($Q492=\"-\",\"-\",IF(AND($Q492=\"Y\",'Enrollment Form'!$AP499=\"No\"),\"-\",IF(AND($Q492=\"Y\",'Enrollment Form'!$AP499=\"Yes\",'Enrollment Form'!$AQ499<>\"\"),\"Y\",\"N\"))))","v":""},{"$f":"IF($B492=\"N\",\"\",IF(OR('Enrollment Form'!$B499<>\"Subscriber\",'Enrollment Form'!$C499=\"ROC\"),\"-\",IF(AND('Enrollment Form'!$B499=\"Subscriber\",'Enrollment Form'!$C499=\"Enroll\",'Enrollment Form'!$CO499<>\"\"),\"Y\",\"N\")))","v":""},{"$f":"IF($B492=\"N\",\"\",IF($S492=\"-\",\"-\",IF(AND($S492=\"Y\",'Enrollment Form'!$CO499=\"No\"),\"-\",IF(AND($S492=\"Y\",'Enrollment Form'!$CO499=\"Yes\",'Enrollment Form'!$CP499<>\"\"),\"Y\",\"N\"))))","v":""},{"$f":"IF(OR('Enrollment Form'!$AV499=\"Yes\",'Enrollment Form'!$AV499=\"\"),\"-\",IF(AND('Enrollment Form'!$AV499=\"No\",ISERROR(FIND(\"HMO\",VLOOKUP('Enrollment Form'!G499,'Enrollment Form'!H$11:J$1000,3,FALSE),1))=FALSE,COUNTA('Enrollment Form'!$AW499:$AZ499)=4),\"Y\",\"N\"))","v":"-"},{"$f":"IF($B492=\"N\",\"\",IF('Enrollment Form'!$B499=\"Subscriber\",\"-\",IF(COUNTA('Enrollment Form'!$BE499,'Enrollment Form'!$BG499)=2,\"Y\",\"N\")))","v":""},{"$f":"IF($B492=\"N\",\"\",IF(OR('Enrollment Form'!$AU499=\"\",'Enrollment Form'!$AU499=\"No\"),\"-\",IF(AND('Enrollment Form'!$AU499=\"Yes\",COUNTA('Enrollment Form'!$CK499)=1),\"Y\",\"N\")))","v":""},{"$f":"IF(OR('Enrollment Form'!$CK499=\"\",'Enrollment Form'!$CK499=\"No\"),\"-\",IF(COUNTA('Enrollment Form'!$CM499:$CN499)=2,\"Y\",\"N\"))","v":"-"},{"$f":"IF($B492=\"N\",\"\",IF(COUNTIF('Enrollment Form'!$CZ499:$DO499,\"Other\")=COUNTA('Enrollment Form'!$DF499,'Enrollment Form'!$DA499,'Enrollment Form'!$DK499,'Enrollment Form'!$DP499),\"Y\",\"N\"))","v":""},{"$f":"IF($B492=\"N\",\"\",IF(OR('Enrollment Form'!B499<>\"Subscriber\",'Enrollment Form'!C499=\"ROC\",COUNTIF('Enrollment Form'!AS499:AT499,\"Yes\")>=1),\"-\",IF(AND('Enrollment Form'!C499=\"Enroll\",COUNTIF('Enrollment Form'!AS499:AT499,\"No\")=2,'Enrollment Form'!AU499=\"\"),\"N\",\"Y\")))","v":""},{"$f":"IF(OR(B492=\"N\",'Enrollment Form'!B499<>\"Subscriber\",'Enrollment Form'!C499=\"ROC\",'Enrollment Form'!O499<>\"Multiple of Salary\"),\"-\",IF(COUNTA('Enrollment Form'!T499:U499)<2,\"N\",\"Y\"))","v":"-"},{"$f":"IF(B492=\"N\",\"\",IF(OR('Enrollment Form'!C499=\"ROC\",'Enrollment Form'!B499<>\"Subscriber\",'Enrollment Form'!O499=\"Waive\",'Enrollment Form'!O499=\"\"),\"-\",IF('Enrollment Form'!P499=\"\",\"N\",\"Y\")))","v":""},{"$f":"IF($B492=\"N\",\"\",IF(AND('Enrollment Form'!$C499=\"ROC\",'Enrollment Form'!$DS499<>\"\"),\"Y\",IF(AND('Enrollment Form'!$C499=\"ROC\",'Enrollment Form'!$DS499=\"\"),\"N\",IF(AND('Enrollment Form'!$C499=\"Enroll\",'Enrollment Form'!$B499=\"Subscriber\",'Enrollment Form'!$CQ499=\"No\",'Enrollment Form'!$DS499=\"\"),\"N\",IF(AND('Enrollment Form'!$C499=\"Enroll\",'Enrollment Form'!$B499=\"Subscriber\",'Enrollment Form'!$CQ499=\"Yes\"),\"-\",\"Y\")))))","v":""},{"$f":"IF($B492=\"N\",\"\",IF(AND('Enrollment Form'!$C499=\"ROC\",'Enrollment Form'!$DT499<>\"\"),\"Y\",IF(AND('Enrollment Form'!$C499=\"ROC\",'Enrollment Form'!$DT499=\"\"),\"N\",IF(AND('Enrollment Form'!$C499=\"Enroll\",'Enrollment Form'!$B499=\"Subscriber\",'Enrollment Form'!$CQ499=\"No\",'Enrollment Form'!$DT499=\"\"),\"N\",IF(AND('Enrollment Form'!$C499=\"Enroll\",'Enrollment Form'!$B499=\"Subscriber\",'Enrollment Form'!$CQ499=\"Yes\"),\"-\",\"Y\")))))","v":""},{"$f":"IF('Enrollment Form'!AH499=\"\",\"\",IF(ISERROR(SEARCH(\".\",'Enrollment Form'!AH499,SEARCH(\"@\",'Enrollment Form'!AH499))),\"N\",\"Y\"))","v":""},{"$f":"IF(OR($B492=\"N\",'Enrollment Form'!$G499=\"\"),\"\",IF('Enrollment Form'!$B499<>\"Subscriber\",\"-\",IF(COUNTIF('Enrollment Form'!$AS499:$AT499,\"Yes\")=2,\"N\",\"Y\")))","v":""},{"$f":"IF(OR('Enrollment Form'!$CC499=\"\",'Enrollment Form'!$CC499=\"No\"),\"-\",IF(AND('Enrollment Form'!$CC499=\"Yes\",'Enrollment Form'!$CD499=\"\"),\"N\",\"Y\"))","v":"-"},{"$f":"IF(OR('Enrollment Form'!$CE499=\"\",'Enrollment Form'!$CE499=\"No\"),\"-\",IF(AND('Enrollment Form'!$CE499=\"Yes\",'Enrollment Form'!$CF499=\"\"),\"N\",\"Y\"))","v":"-"},{"$f":"IF(OR('Enrollment Form'!$CG499=\"\",'Enrollment Form'!$CG499=\"No\"),\"-\",IF(AND('Enrollment Form'!$CG499=\"Yes\",'Enrollment Form'!$CH499=\"\"),\"N\",\"Y\"))","v":"-"},{"$f":"IF(OR('Enrollment Form'!$CG499=\"\",'Enrollment Form'!$CG499=\"No\"),\"-\",IF(AND('Enrollment Form'!$CG499=\"Yes\",'Enrollment Form'!$CI499=\"\"),\"N\",\"Y\"))","v":"-"},{"$f":"IF('Enrollment Form'!B499<>\"Subscriber\",\"-\",IF(AND('Enrollment Form'!B499=\"Subscriber\",'Enrollment Form'!C499=\"Enroll\",'Enrollment Form'!AA499=\"\"),\"N\",\"Y\"))","v":"-"},{"$f":"IF(OR('Enrollment Form'!B499=\"Subscriber\",'Enrollment Form'!B499=\"\"),\"-\",IF('Enrollment Form'!BI499=\"\",\"N\",\"Y\"))","v":"-"},{"$f":"IF('Enrollment Form'!B499<>\"Subscriber\",\"-\",IF(AND('Enrollment Form'!B499=\"Subscriber\",'Enrollment Form'!G499=\"\"),\"N\",\"Y\"))","v":"-"},{"$f":"IF('Enrollment Form'!A499=\"\",\"\",IF('Enrollment Form'!B499=\"Subscriber\",\"-\",IF(AND('Enrollment Form'!B499<>\"Subscriber\",'Enrollment Form'!G499='Enrollment Form'!H499),\"N\",\"Y\")))","v":""},0]
[500,{"$f":"IF('Enrollment Form'!$A500<>\"\",\"Y\",\"N\")","v":"N"},{"$f":"IF(AND('Enrollment Form'!$B500=\"\",'Enrollment Form'!$C500<>\"\"),\"N\",IF($B493=\"N\",\"\",\"Y\"))","v":""},{"$f":"IF(OR($B493=\"N\",'Enrollment Form'!G500=\"\"),\"\",IF('Enrollment Form'!$B500<>\"Subscriber\",\"\",IF('Enrollment Form'!$G500='Enrollment Form'!$H500,\"Y\",\"N\")))","v":""},{"$f":"IF($B493=\"N\",\"\",IF(AND(COUNTIFS('Enrollment Form'!$H$11:$H$1000,'Enrollment Form'!$H500,'Enrollment Form'!$B$11:$B$1000,'Enrollment Form'!$B500)>1,'Enrollment Form'!$H500<>\"\"),\"N\",\"Y\"))","v":""},{"$f":"IF($B493=\"N\",\"\",IF(LEN('Enrollment Form'!$Y500)=0,\"\",IF(LEN('Enrollment Form'!$Y500)<>5,\"N\",\"Y\")))","v":""},{"$f":"IF($B493=\"N\",\"\",IF(LEN('Enrollment Form'!$AD500=0),\"\",IF(LEN('Enrollment Form'!$AD500)<>5,\"N\",\"Y\")))","v":""},{"$f":"IF($B493=\"N\",\"\",IF(LEN('Enrollment Form'!$BL500=0),\"\",IF(LEN('Enrollment Form'!$BL500)<>5,\"N\",\"Y\")))","v":""},{"$f":"IF($B493=\"N\",\"\",IF(LEN('Enrollment Form'!$AE500)=0,\"\",IF(LEN('Enrollment Form'!$AE500)<>10,\"N\",\"Y\")))","v":""},{"$f":"IF($B493=\"N\",\"\",IF(LEN('Enrollment Form'!$AF500)=0,\"\",IF(LEN('Enrollment Form'!$AF500)<>10,\"N\",\"Y\")))","v":""},{"$f":"IF('Enrollment Form'!$O500<>\"Graded\",\"-\",IF(AND('Enrollment Form'!$O500=\"Graded\",'Enrollment Form'!$AO500<>\"\"),\"Y\",\"N\"))","v":"-"},{"$f":"IF($B493=\"N\",\"\",IF(OR('Enrollment Form'!$B500<>\"Subscriber\",'Enrollment Form'!$C500=\"ROC\"),\"-\",IF(AND('Enrollment Form'!$B500=\"Subscriber\",'Enrollment Form'!$C500=\"Enroll\",'Enrollment Form'!$AJ500<>\"\"),\"Y\",\"N\")))","v":""},{"$f":"IF($B493=\"N\",\"\",IF(OR('Enrollment Form'!$B500<>\"Subscriber\",'Enrollment Form'!$C500=\"ROC\"),\"-\",IF(AND('Enrollment Form'!$B500=\"Subscriber\",'Enrollment Form'!$C500=\"Enroll\",'Enrollment Form'!$AK500<>\"\"),\"Y\",\"N\")))","v":""},{"$f":"IF($B493=\"N\",\"\",IF(OR('Enrollment Form'!$B500<>\"Subscriber\",'Enrollment Form'!$C500=\"ROC\"),\"-\",IF(AND('Enrollment Form'!$B500=\"Subscriber\",'Enrollment Form'!$C500=\"Enroll\",'Enrollment Form'!$AL500<>\"\"),\"Y\",\"N\")))","v":""},{"$f":"IF($B493=\"N\",\"\",IF(OR('Enrollment Form'!$B500<>\"Subscriber\",'Enrollment Form'!$C500=\"ROC\"),\"-\",IF(AND('Enrollment Form'!$B500=\"Subscriber\",'Enrollment Form'!$C500=\"Enroll\",'Enrollment Form'!$AM500<>\"\"),\"Y\",\"N\")))","v":""},{"$f":"IF($B493=\"N\",\"\",IF(OR('Enrollment Form'!$B500<>\"Subscriber\",'Enrollment Form'!$C500=\"ROC\"),\"-\",IF(AND('Enrollment Form'!$B500=\"Subscriber\",'Enrollment Form'!$C500=\"Enroll\",'Enrollment Form'!$AN500<>\"\"),\"Y\",\"N\")))","v":""},{"$f":"IF($B493=\"N\",\"\",IF(OR('Enrollment Form'!$B500<>\"Subscriber\",'Enrollment Form'!$C500=\"ROC\"),\"-\",IF(AND('Enrollment Form'!$B500=\"Subscriber\",'Enrollment Form'!$C500=\"Enroll\",'Enrollment Form'!$AP500<>\"\"),\"Y\",\"N\")))","v":""},{"$f":"IF($B493=\"N\",\"\",IF($Q493=\"-\",\"-\",IF(AND($Q493=\"Y\",'Enrollment Form'!$AP500=\"No\"),\"-\",IF(AND($Q493=\"Y\",'Enrollment Form'!$AP500=\"Yes\",'Enrollment Form'!$AQ500<>\"\"),\"Y\",\"N\"))))","v":""},{"$f":"IF($B493=\"N\",\"\",IF(OR('Enrollment Form'!$B500<>\"Subscriber\",'Enrollment Form'!$C500=\"ROC\"),\"-\",IF(AND('Enrollment Form'!$B500=\"Subscriber\",'Enrollment Form'!$C500=\"Enroll\",'Enrollment Form'!$CO500<>\"\"),\"Y\",\"N\")))","v":""},{"$f":"IF($B493=\"N\",\"\",IF($S493=\"-\",\"-\",IF(AND($S493=\"Y\",'Enrollment Form'!$CO500=\"No\"),\"-\",IF(AND($S493=\"Y\",'Enrollment Form'!$CO500=\"Yes\",'Enrollment Form'!$CP500<>\"\"),\"Y\",\"N\"))))","v":""},{"$f":"IF(OR('Enrollment Form'!$AV500=\"Yes\",'Enrollment Form'!$AV500=\"\"),\"-\",IF(AND('Enrollment Form'!$AV500=\"No\",ISERROR(FIND(\"HMO\",VLOOKUP('Enrollment Form'!G500,'Enrollment Form'!H$11:J$1000,3,FALSE),1))=FALSE,COUNTA('Enrollment Form'!$AW500:$AZ500)=4),\"Y\",\"N\"))","v":"-"},{"$f":"IF($B493=\"N\",\"\",IF('Enrollment Form'!$B500=\"Subscriber\",\"-\",IF(COUNTA('Enrollment Form'!$BE500,'Enrollment Form'!$BG500)=2,\"Y\",\"N\")))","v":""},{"$f":"IF($B493=\"N\",\"\",IF(OR('Enrollment Form'!$AU500=\"\",'Enrollment Form'!$AU500=\"No\"),\"-\",IF(AND('Enrollment Form'!$AU500=\"Yes\",COUNTA('Enrollment Form'!$CK500)=1),\"Y\",\"N\")))","v":""},{"$f":"IF(OR('Enrollment Form'!$CK500=\"\",'Enrollment Form'!$CK500=\"No\"),\"-\",IF(COUNTA('Enrollment Form'!$CM500:$CN500)=2,\"Y\",\"N\"))","v":"-"},{"$f":"IF($B493=\"N\",\"\",IF(COUNTIF('Enrollment Form'!$CZ500:$DO500,\"Other\")=COUNTA('Enrollment Form'!$DF500,'Enrollment Form'!$DA500,'Enrollment Form'!$DK500,'Enrollment Form'!$DP500),\"Y\",\"N\"))","v":""},{"$f":"IF($B493=\"N\",\"\",IF(OR('Enrollment Form'!B500<>\"Subscriber\",'Enrollment Form'!C500=\"ROC\",COUNTIF('Enrollment Form'!AS500:AT500,\"Yes\")>=1),\"-\",IF(AND('Enrollment Form'!C500=\"Enroll\",COUNTIF('Enrollment Form'!AS500:AT500,\"No\")=2,'Enrollment Form'!AU500=\"\"),\"N\",\"Y\")))","v":""},{"$f":"IF(OR(B493=\"N\",'Enrollment Form'!B500<>\"Subscriber\",'Enrollment Form'!C500=\"ROC\",'Enrollment Form'!O500<>\"Multiple of Salary\"),\"-\",IF(COUNTA('Enrollment Form'!T500:U500)<2,\"N\",\"Y\"))","v":"-"},{"$f":"IF(B493=\"N\",\"\",IF(OR('Enrollment Form'!C500=\"ROC\",'Enrollment Form'!B500<>\"Subscriber\",'Enrollment Form'!O500=\"Waive\",'Enrollment Form'!O500=\"\"),\"-\",IF('Enrollment Form'!P500=\"\",\"N\",\"Y\")))","v":""},{"$f":"IF($B493=\"N\",\"\",IF(AND('Enrollment Form'!$C500=\"ROC\",'Enrollment Form'!$DS500<>\"\"),\"Y\",IF(AND('Enrollment Form'!$C500=\"ROC\",'Enrollment Form'!$DS500=\"\"),\"N\",IF(AND('Enrollment Form'!$C500=\"Enroll\",'Enrollment Form'!$B500=\"Subscriber\",'Enrollment Form'!$CQ500=\"No\",'Enrollment Form'!$DS500=\"\"),\"N\",IF(AND('Enrollment Form'!$C500=\"Enroll\",'Enrollment Form'!$B500=\"Subscriber\",'Enrollment Form'!$CQ500=\"Yes\"),\"-\",\"Y\")))))","v":""},{"$f":"IF($B493=\"N\",\"\",IF(AND('Enrollment Form'!$C500=\"ROC\",'Enrollment Form'!$DT500<>\"\"),\"Y\",IF(AND('Enrollment Form'!$C500=\"ROC\",'Enrollment Form'!$DT500=\"\"),\"N\",IF(AND('Enrollment Form'!$C500=\"Enroll\",'Enrollment Form'!$B500=\"Subscriber\",'Enrollment Form'!$CQ500=\"No\",'Enrollment Form'!$DT500=\"\"),\"N\",IF(AND('Enrollment Form'!$C500=\"Enroll\",'Enrollment Form'!$B500=\"Subscriber\",'Enrollment Form'!$CQ500=\"Yes\"),\"-\",\"Y\")))))","v":""},{"$f":"IF('Enrollment Form'!AH500=\"\",\"\",IF(ISERROR(SEARCH(\".\",'Enrollment Form'!AH500,SEARCH(\"@\",'Enrollment Form'!AH500))),\"N\",\"Y\"))","v":""},{"$f":"IF(OR($B493=\"N\",'Enrollment Form'!$G500=\"\"),\"\",IF('Enrollment Form'!$B500<>\"Subscriber\",\"-\",IF(COUNTIF('Enrollment Form'!$AS500:$AT500,\"Yes\")=2,\"N\",\"Y\")))","v":""},{"$f":"IF(OR('Enrollment Form'!$CC500=\"\",'Enrollment Form'!$CC500=\"No\"),\"-\",IF(AND('Enrollment Form'!$CC500=\"Yes\",'Enrollment Form'!$CD500=\"\"),\"N\",\"Y\"))","v":"-"},{"$f":"IF(OR('Enrollment Form'!$CE500=\"\",'Enrollment Form'!$CE500=\"No\"),\"-\",IF(AND('Enrollment Form'!$CE500=\"Yes\",'Enrollment Form'!$CF500=\"\"),\"N\",\"Y\"))","v":"-"},{"$f":"IF(OR('Enrollment Form'!$CG500=\"\",'Enrollment Form'!$CG500=\"No\"),\"-\",IF(AND('Enrollment Form'!$CG500=\"Yes\",'Enrollment Form'!$CH500=\"\"),\"N\",\"Y\"))","v":"-"},{"$f":"IF(OR('Enrollment Form'!$CG500=\"\",'Enrollment Form'!$CG500=\"No\"),\"-\",IF(AND('Enrollment Form'!$CG500=\"Yes\",'Enrollment Form'!$CI500=\"\"),\"N\",\"Y\"))","v":"-"},{"$f":"IF('Enrollment Form'!B500<>\"Subscriber\",\"-\",IF(AND('Enrollment Form'!B500=\"Subscriber\",'Enrollment Form'!C500=\"Enroll\",'Enrollment Form'!AA500=\"\"),\"N\",\"Y\"))","v":"-"},{"$f":"IF(OR('Enrollment Form'!B500=\"Subscriber\",'Enrollment Form'!B500=\"\"),\"-\",IF('Enrollment Form'!BI500=\"\",\"N\",\"Y\"))","v":"-"},{"$f":"IF('Enrollment Form'!B500<>\"Subscriber\",\"-\",IF(AND('Enrollment Form'!B500=\"Subscriber\",'Enrollment Form'!G500=\"\"),\"N\",\"Y\"))","v":"-"},{"$f":"IF('Enrollment Form'!A500=\"\",\"\",IF('Enrollment Form'!B500=\"Subscriber\",\"-\",IF(AND('Enrollment Form'!B500<>\"Subscriber\",'Enrollment Form'!G500='Enrollment Form'!H500),\"N\",\"Y\")))","v":""},0]
[501,{"$f":"IF('Enrollment Form'!$A501<>\"\",\"Y\",\"N\")","v":"N"},{"$f":"IF(AND('Enrollment Form'!$B501=\"\",'Enrollment Form'!$C501<>\"\"),\"N\",IF($B494=\"N\",\"\",\"Y\"))","v":""},{"$f":"IF(OR($B494=\"N\",'Enrollment Form'!G501=\"\"),\"\",IF('Enrollment Form'!$B501<>\"Subscriber\",\"\",IF('Enrollment Form'!$G501='Enrollment Form'!$H501,\"Y\",\"N\")))","v":""},{"$f":"IF($B494=\"N\",\"\",IF(AND(COUNTIFS('Enrollment Form'!$H$11:$H$1000,'Enrollment Form'!$H501,'Enrollment Form'!$B$11:$B$1000,'Enrollment Form'!$B501)>1,'Enrollment Form'!$H501<>\"\"),\"N\",\"Y\"))","v":""},{"$f":"IF($B494=\"N\",\"\",IF(LEN('Enrollment Form'!$Y501)=0,\"\",IF(LEN('Enrollment Form'!$Y501)<>5,\"N\",\"Y\")))","v":""},{"$f":"IF($B494=\"N\",\"\",IF(LEN('Enrollment Form'!$AD501=0),\"\",IF(LEN('Enrollment Form'!$AD501)<>5,\"N\",\"Y\")))","v":""},{"$f":"IF($B494=\"N\",\"\",IF(LEN('Enrollment Form'!$BL501=0),\"\",IF(LEN('Enrollment Form'!$BL501)<>5,\"N\",\"Y\")))","v":""},{"$f":"IF($B494=\"N\",\"\",IF(LEN('Enrollment Form'!$AE501)=0,\"\",IF(LEN('Enrollment Form'!$AE501)<>10,\"N\",\"Y\")))","v":""},{"$f":"IF($B494=\"N\",\"\",IF(LEN('Enrollment Form'!$AF501)=0,\"\",IF(LEN('Enrollment Form'!$AF501)<>10,\"N\",\"Y\")))","v":""},{"$f":"IF('Enrollment Form'!$O501<>\"Graded\",\"-\",IF(AND('Enrollment Form'!$O501=\"Graded\",'Enrollment Form'!$AO501<>\"\"),\"Y\",\"N\"))","v":"-"},{"$f":"IF($B494=\"N\",\"\",IF(OR('Enrollment Form'!$B501<>\"Subscriber\",'Enrollment Form'!$C501=\"ROC\"),\"-\",IF(AND('Enrollment Form'!$B501=\"Subscriber\",'Enrollment Form'!$C501=\"Enroll\",'Enrollment Form'!$AJ501<>\"\"),\"Y\",\"N\")))","v":""},{"$f":"IF($B494=\"N\",\"\",IF(OR('Enrollment Form'!$B501<>\"Subscriber\",'Enrollment Form'!$C501=\"ROC\"),\"-\",IF(AND('Enrollment Form'!$B501=\"Subscriber\",'Enrollment Form'!$C501=\"Enroll\",'Enrollment Form'!$AK501<>\"\"),\"Y\",\"N\")))","v":""},{"$f":"IF($B494=\"N\",\"\",IF(OR('Enrollment Form'!$B501<>\"Subscriber\",'Enrollment Form'!$C501=\"ROC\"),\"-\",IF(AND('Enrollment Form'!$B501=\"Subscriber\",'Enrollment Form'!$C501=\"Enroll\",'Enrollment Form'!$AL501<>\"\"),\"Y\",\"N\")))","v":""},{"$f":"IF($B494=\"N\",\"\",IF(OR('Enrollment Form'!$B501<>\"Subscriber\",'Enrollment Form'!$C501=\"ROC\"),\"-\",IF(AND('Enrollment Form'!$B501=\"Subscriber\",'Enrollment Form'!$C501=\"Enroll\",'Enrollment Form'!$AM501<>\"\"),\"Y\",\"N\")))","v":""},{"$f":"IF($B494=\"N\",\"\",IF(OR('Enrollment Form'!$B501<>\"Subscriber\",'Enrollment Form'!$C501=\"ROC\"),\"-\",IF(AND('Enrollment Form'!$B501=\"Subscriber\",'Enrollment Form'!$C501=\"Enroll\",'Enrollment Form'!$AN501<>\"\"),\"Y\",\"N\")))","v":""},{"$f":"IF($B494=\"N\",\"\",IF(OR('Enrollment Form'!$B501<>\"Subscriber\",'Enrollment Form'!$C501=\"ROC\"),\"-\",IF(AND('Enrollment Form'!$B501=\"Subscriber\",'Enrollment Form'!$C501=\"Enroll\",'Enrollment Form'!$AP501<>\"\"),\"Y\",\"N\")))","v":""},{"$f":"IF($B494=\"N\",\"\",IF($Q494=\"-\",\"-\",IF(AND($Q494=\"Y\",'Enrollment Form'!$AP501=\"No\"),\"-\",IF(AND($Q494=\"Y\",'Enrollment Form'!$AP501=\"Yes\",'Enrollment Form'!$AQ501<>\"\"),\"Y\",\"N\"))))","v":""},{"$f":"IF($B494=\"N\",\"\",IF(OR('Enrollment Form'!$B501<>\"Subscriber\",'Enrollment Form'!$C501=\"ROC\"),\"-\",IF(AND('Enrollment Form'!$B501=\"Subscriber\",'Enrollment Form'!$C501=\"Enroll\",'Enrollment Form'!$CO501<>\"\"),\"Y\",\"N\")))","v":""},{"$f":"IF($B494=\"N\",\"\",IF($S494=\"-\",\"-\",IF(AND($S494=\"Y\",'Enrollment Form'!$CO501=\"No\"),\"-\",IF(AND($S494=\"Y\",'Enrollment Form'!$CO501=\"Yes\",'Enrollment Form'!$CP501<>\"\"),\"Y\",\"N\"))))","v":""},{"$f":"IF(OR('Enrollment Form'!$AV501=\"Yes\",'Enrollment Form'!$AV501=\"\"),\"-\",IF(AND('Enrollment Form'!$AV501=\"No\",ISERROR(FIND(\"HMO\",VLOOKUP('Enrollment Form'!G501,'Enrollment Form'!H$11:J$1000,3,FALSE),1))=FALSE,COUNTA('Enrollment Form'!$AW501:$AZ501)=4),\"Y\",\"N\"))","v":"-"},{"$f":"IF($B494=\"N\",\"\",IF('Enrollment Form'!$B501=\"Subscriber\",\"-\",IF(COUNTA('Enrollment Form'!$BE501,'Enrollment Form'!$BG501)=2,\"Y\",\"N\")))","v":""},{"$f":"IF($B494=\"N\",\"\",IF(OR('Enrollment Form'!$AU501=\"\",'Enrollment Form'!$AU501=\"No\"),\"-\",IF(AND('Enrollment Form'!$AU501=\"Yes\",COUNTA('Enrollment Form'!$CK501)=1),\"Y\",\"N\")))","v":""},{"$f":"IF(OR('Enrollment Form'!$CK501=\"\",'Enrollment Form'!$CK501=\"No\"),\"-\",IF(COUNTA('Enrollment Form'!$CM501:$CN501)=2,\"Y\",\"N\"))","v":"-"},{"$f":"IF($B494=\"N\",\"\",IF(COUNTIF('Enrollment Form'!$CZ501:$DO501,\"Other\")=COUNTA('Enrollment Form'!$DF501,'Enrollment Form'!$DA501,'Enrollment Form'!$DK501,'Enrollment Form'!$DP501),\"Y\",\"N\"))","v":""},{"$f":"IF($B494=\"N\",\"\",IF(OR('Enrollment Form'!B501<>\"Subscriber\",'Enrollment Form'!C501=\"ROC\",COUNTIF('Enrollment Form'!AS501:AT501,\"Yes\")>=1),\"-\",IF(AND('Enrollment Form'!C501=\"Enroll\",COUNTIF('Enrollment Form'!AS501:AT501,\"No\")=2,'Enrollment Form'!AU501=\"\"),\"N\",\"Y\")))","v":""},{"$f":"IF(OR(B494=\"N\",'Enrollment Form'!B501<>\"Subscriber\",'Enrollment Form'!C501=\"ROC\",'Enrollment Form'!O501<>\"Multiple of Salary\"),\"-\",IF(COUNTA('Enrollment Form'!T501:U501)<2,\"N\",\"Y\"))","v":"-"},{"$f":"IF(B494=\"N\",\"\",IF(OR('Enrollment Form'!C501=\"ROC\",'Enrollment Form'!B501<>\"Subscriber\",'Enrollment Form'!O501=\"Waive\",'Enrollment Form'!O501=\"\"),\"-\",IF('Enrollment Form'!P501=\"\",\"N\",\"Y\")))","v":""},{"$f":"IF($B494=\"N\",\"\",IF(AND('Enrollment Form'!$C501=\"ROC\",'Enrollment Form'!$DS501<>\"\"),\"Y\",IF(AND('Enrollment Form'!$C501=\"ROC\",'Enrollment Form'!$DS501=\"\"),\"N\",IF(AND('Enrollment Form'!$C501=\"Enroll\",'Enrollment Form'!$B501=\"Subscriber\",'Enrollment Form'!$CQ501=\"No\",'Enrollment Form'!$DS501=\"\"),\"N\",IF(AND('Enrollment Form'!$C501=\"Enroll\",'Enrollment Form'!$B501=\"Subscriber\",'Enrollment Form'!$CQ501=\"Yes\"),\"-\",\"Y\")))))","v":""},{"$f":"IF($B494=\"N\",\"\",IF(AND('Enrollment Form'!$C501=\"ROC\",'Enrollment Form'!$DT501<>\"\"),\"Y\",IF(AND('Enrollment Form'!$C501=\"ROC\",'Enrollment Form'!$DT501=\"\"),\"N\",IF(AND('Enrollment Form'!$C501=\"Enroll\",'Enrollment Form'!$B501=\"Subscriber\",'Enrollment Form'!$CQ501=\"No\",'Enrollment Form'!$DT501=\"\"),\"N\",IF(AND('Enrollment Form'!$C501=\"Enroll\",'Enrollment Form'!$B501=\"Subscriber\",'Enrollment Form'!$CQ501=\"Yes\"),\"-\",\"Y\")))))","v":""},{"$f":"IF('Enrollment Form'!AH501=\"\",\"\",IF(ISERROR(SEARCH(\".\",'Enrollment Form'!AH501,SEARCH(\"@\",'Enrollment Form'!AH501))),\"N\",\"Y\"))","v":""},{"$f":"IF(OR($B494=\"N\",'Enrollment Form'!$G501=\"\"),\"\",IF('Enrollment Form'!$B501<>\"Subscriber\",\"-\",IF(COUNTIF('Enrollment Form'!$AS501:$AT501,\"Yes\")=2,\"N\",\"Y\")))","v":""},{"$f":"IF(OR('Enrollment Form'!$CC501=\"\",'Enrollment Form'!$CC501=\"No\"),\"-\",IF(AND('Enrollment Form'!$CC501=\"Yes\",'Enrollment Form'!$CD501=\"\"),\"N\",\"Y\"))","v":"-"},{"$f":"IF(OR('Enrollment Form'!$CE501=\"\",'Enrollment Form'!$CE501=\"No\"),\"-\",IF(AND('Enrollment Form'!$CE501=\"Yes\",'Enrollment Form'!$CF501=\"\"),\"N\",\"Y\"))","v":"-"},{"$f":"IF(OR('Enrollment Form'!$CG501=\"\",'Enrollment Form'!$CG501=\"No\"),\"-\",IF(AND('Enrollment Form'!$CG501=\"Yes\",'Enrollment Form'!$CH501=\"\"),\"N\",\"Y\"))","v":"-"},{"$f":"IF(OR('Enrollment Form'!$CG501=\"\",'Enrollment Form'!$CG501=\"No\"),\"-\",IF(AND('Enrollment Form'!$CG501=\"Yes\",'Enrollment Form'!$CI501=\"\"),\"N\",\"Y\"))","v":"-"},{"$f":"IF('Enrollment Form'!B501<>\"Subscriber\",\"-\",IF(AND('Enrollment Form'!B501=\"Subscriber\",'Enrollment Form'!C501=\"Enroll\",'Enrollment Form'!AA501=\"\"),\"N\",\"Y\"))","v":"-"},{"$f":"IF(OR('Enrollment Form'!B501=\"Subscriber\",'Enrollment Form'!B501=\"\"),\"-\",IF('Enrollment Form'!BI501=\"\",\"N\",\"Y\"))","v":"-"},{"$f":"IF('Enrollment Form'!B501<>\"Subscriber\",\"-\",IF(AND('Enrollment Form'!B501=\"Subscriber\",'Enrollment Form'!G501=\"\"),\"N\",\"Y\"))","v":"-"},{"$f":"IF('Enrollment Form'!A501=\"\",\"\",IF('Enrollment Form'!B501=\"Subscriber\",\"-\",IF(AND('Enrollment Form'!B501<>\"Subscriber\",'Enrollment Form'!G501='Enrollment Form'!H501),\"N\",\"Y\")))","v":""},0]
[502,{"$f":"IF('Enrollment Form'!$A502<>\"\",\"Y\",\"N\")","v":"N"},{"$f":"IF(AND('Enrollment Form'!$B502=\"\",'Enrollment Form'!$C502<>\"\"),\"N\",IF($B495=\"N\",\"\",\"Y\"))","v":""},{"$f":"IF(OR($B495=\"N\",'Enrollment Form'!G502=\"\"),\"\",IF('Enrollment Form'!$B502<>\"Subscriber\",\"\",IF('Enrollment Form'!$G502='Enrollment Form'!$H502,\"Y\",\"N\")))","v":""},{"$f":"IF($B495=\"N\",\"\",IF(AND(COUNTIFS('Enrollment Form'!$H$11:$H$1000,'Enrollment Form'!$H502,'Enrollment Form'!$B$11:$B$1000,'Enrollment Form'!$B502)>1,'Enrollment Form'!$H502<>\"\"),\"N\",\"Y\"))","v":""},{"$f":"IF($B495=\"N\",\"\",IF(LEN('Enrollment Form'!$Y502)=0,\"\",IF(LEN('Enrollment Form'!$Y502)<>5,\"N\",\"Y\")))","v":""},{"$f":"IF($B495=\"N\",\"\",IF(LEN('Enrollment Form'!$AD502=0),\"\",IF(LEN('Enrollment Form'!$AD502)<>5,\"N\",\"Y\")))","v":""},{"$f":"IF($B495=\"N\",\"\",IF(LEN('Enrollment Form'!$BL502=0),\"\",IF(LEN('Enrollment Form'!$BL502)<>5,\"N\",\"Y\")))","v":""},{"$f":"IF($B495=\"N\",\"\",IF(LEN('Enrollment Form'!$AE502)=0,\"\",IF(LEN('Enrollment Form'!$AE502)<>10,\"N\",\"Y\")))","v":""},{"$f":"IF($B495=\"N\",\"\",IF(LEN('Enrollment Form'!$AF502)=0,\"\",IF(LEN('Enrollment Form'!$AF502)<>10,\"N\",\"Y\")))","v":""},{"$f":"IF('Enrollment Form'!$O502<>\"Graded\",\"-\",IF(AND('Enrollment Form'!$O502=\"Graded\",'Enrollment Form'!$AO502<>\"\"),\"Y\",\"N\"))","v":"-"},{"$f":"IF($B495=\"N\",\"\",IF(OR('Enrollment Form'!$B502<>\"Subscriber\",'Enrollment Form'!$C502=\"ROC\"),\"-\",IF(AND('Enrollment Form'!$B502=\"Subscriber\",'Enrollment Form'!$C502=\"Enroll\",'Enrollment Form'!$AJ502<>\"\"),\"Y\",\"N\")))","v":""},{"$f":"IF($B495=\"N\",\"\",IF(OR('Enrollment Form'!$B502<>\"Subscriber\",'Enrollment Form'!$C502=\"ROC\"),\"-\",IF(AND('Enrollment Form'!$B502=\"Subscriber\",'Enrollment Form'!$C502=\"Enroll\",'Enrollment Form'!$AK502<>\"\"),\"Y\",\"N\")))","v":""},{"$f":"IF($B495=\"N\",\"\",IF(OR('Enrollment Form'!$B502<>\"Subscriber\",'Enrollment Form'!$C502=\"ROC\"),\"-\",IF(AND('Enrollment Form'!$B502=\"Subscriber\",'Enrollment Form'!$C502=\"Enroll\",'Enrollment Form'!$AL502<>\"\"),\"Y\",\"N\")))","v":""},{"$f":"IF($B495=\"N\",\"\",IF(OR('Enrollment Form'!$B502<>\"Subscriber\",'Enrollment Form'!$C502=\"ROC\"),\"-\",IF(AND('Enrollment Form'!$B502=\"Subscriber\",'Enrollment Form'!$C502=\"Enroll\",'Enrollment Form'!$AM502<>\"\"),\"Y\",\"N\")))","v":""},{"$f":"IF($B495=\"N\",\"\",IF(OR('Enrollment Form'!$B502<>\"Subscriber\",'Enrollment Form'!$C502=\"ROC\"),\"-\",IF(AND('Enrollment Form'!$B502=\"Subscriber\",'Enrollment Form'!$C502=\"Enroll\",'Enrollment Form'!$AN502<>\"\"),\"Y\",\"N\")))","v":""},{"$f":"IF($B495=\"N\",\"\",IF(OR('Enrollment Form'!$B502<>\"Subscriber\",'Enrollment Form'!$C502=\"ROC\"),\"-\",IF(AND('Enrollment Form'!$B502=\"Subscriber\",'Enrollment Form'!$C502=\"Enroll\",'Enrollment Form'!$AP502<>\"\"),\"Y\",\"N\")))","v":""},{"$f":"IF($B495=\"N\",\"\",IF($Q495=\"-\",\"-\",IF(AND($Q495=\"Y\",'Enrollment Form'!$AP502=\"No\"),\"-\",IF(AND($Q495=\"Y\",'Enrollment Form'!$AP502=\"Yes\",'Enrollment Form'!$AQ502<>\"\"),\"Y\",\"N\"))))","v":""},{"$f":"IF($B495=\"N\",\"\",IF(OR('Enrollment Form'!$B502<>\"Subscriber\",'Enrollment Form'!$C502=\"ROC\"),\"-\",IF(AND('Enrollment Form'!$B502=\"Subscriber\",'Enrollment Form'!$C502=\"Enroll\",'Enrollment Form'!$CO502<>\"\"),\"Y\",\"N\")))","v":""},{"$f":"IF($B495=\"N\",\"\",IF($S495=\"-\",\"-\",IF(AND($S495=\"Y\",'Enrollment Form'!$CO502=\"No\"),\"-\",IF(AND($S495=\"Y\",'Enrollment Form'!$CO502=\"Yes\",'Enrollment Form'!$CP502<>\"\"),\"Y\",\"N\"))))","v":""},{"$f":"IF(OR('Enrollment Form'!$AV502=\"Yes\",'Enrollment Form'!$AV502=\"\"),\"-\",IF(AND('Enrollment Form'!$AV502=\"No\",ISERROR(FIND(\"HMO\",VLOOKUP('Enrollment Form'!G502,'Enrollment Form'!H$11:J$1000,3,FALSE),1))=FALSE,COUNTA('Enrollment Form'!$AW502:$AZ502)=4),\"Y\",\"N\"))","v":"-"},{"$f":"IF($B495=\"N\",\"\",IF('Enrollment Form'!$B502=\"Subscriber\",\"-\",IF(COUNTA('Enrollment Form'!$BE502,'Enrollment Form'!$BG502)=2,\"Y\",\"N\")))","v":""},{"$f":"IF($B495=\"N\",\"\",IF(OR('Enrollment Form'!$AU502=\"\",'Enrollment Form'!$AU502=\"No\"),\"-\",IF(AND('Enrollment Form'!$AU502=\"Yes\",COUNTA('Enrollment Form'!$CK502)=1),\"Y\",\"N\")))","v":""},{"$f":"IF(OR('Enrollment Form'!$CK502=\"\",'Enrollment Form'!$CK502=\"No\"),\"-\",IF(COUNTA('Enrollment Form'!$CM502:$CN502)=2,\"Y\",\"N\"))","v":"-"},{"$f":"IF($B495=\"N\",\"\",IF(COUNTIF('Enrollment Form'!$CZ502:$DO502,\"Other\")=COUNTA('Enrollment Form'!$DF502,'Enrollment Form'!$DA502,'Enrollment Form'!$DK502,'Enrollment Form'!$DP502),\"Y\",\"N\"))","v":""},{"$f":"IF($B495=\"N\",\"\",IF(OR('Enrollment Form'!B502<>\"Subscriber\",'Enrollment Form'!C502=\"ROC\",COUNTIF('Enrollment Form'!AS502:AT502,\"Yes\")>=1),\"-\",IF(AND('Enrollment Form'!C502=\"Enroll\",COUNTIF('Enrollment Form'!AS502:AT502,\"No\")=2,'Enrollment Form'!AU502=\"\"),\"N\",\"Y\")))","v":""},{"$f":"IF(OR(B495=\"N\",'Enrollment Form'!B502<>\"Subscriber\",'Enrollment Form'!C502=\"ROC\",'Enrollment Form'!O502<>\"Multiple of Salary\"),\"-\",IF(COUNTA('Enrollment Form'!T502:U502)<2,\"N\",\"Y\"))","v":"-"},{"$f":"IF(B495=\"N\",\"\",IF(OR('Enrollment Form'!C502=\"ROC\",'Enrollment Form'!B502<>\"Subscriber\",'Enrollment Form'!O502=\"Waive\",'Enrollment Form'!O502=\"\"),\"-\",IF('Enrollment Form'!P502=\"\",\"N\",\"Y\")))","v":""},{"$f":"IF($B495=\"N\",\"\",IF(AND('Enrollment Form'!$C502=\"ROC\",'Enrollment Form'!$DS502<>\"\"),\"Y\",IF(AND('Enrollment Form'!$C502=\"ROC\",'Enrollment Form'!$DS502=\"\"),\"N\",IF(AND('Enrollment Form'!$C502=\"Enroll\",'Enrollment Form'!$B502=\"Subscriber\",'Enrollment Form'!$CQ502=\"No\",'Enrollment Form'!$DS502=\"\"),\"N\",IF(AND('Enrollment Form'!$C502=\"Enroll\",'Enrollment Form'!$B502=\"Subscriber\",'Enrollment Form'!$CQ502=\"Yes\"),\"-\",\"Y\")))))","v":""},{"$f":"IF($B495=\"N\",\"\",IF(AND('Enrollment Form'!$C502=\"ROC\",'Enrollment Form'!$DT502<>\"\"),\"Y\",IF(AND('Enrollment Form'!$C502=\"ROC\",'Enrollment Form'!$DT502=\"\"),\"N\",IF(AND('Enrollment Form'!$C502=\"Enroll\",'Enrollment Form'!$B502=\"Subscriber\",'Enrollment Form'!$CQ502=\"No\",'Enrollment Form'!$DT502=\"\"),\"N\",IF(AND('Enrollment Form'!$C502=\"Enroll\",'Enrollment Form'!$B502=\"Subscriber\",'Enrollment Form'!$CQ502=\"Yes\"),\"-\",\"Y\")))))","v":""},{"$f":"IF('Enrollment Form'!AH502=\"\",\"\",IF(ISERROR(SEARCH(\".\",'Enrollment Form'!AH502,SEARCH(\"@\",'Enrollment Form'!AH502))),\"N\",\"Y\"))","v":""},{"$f":"IF(OR($B495=\"N\",'Enrollment Form'!$G502=\"\"),\"\",IF('Enrollment Form'!$B502<>\"Subscriber\",\"-\",IF(COUNTIF('Enrollment Form'!$AS502:$AT502,\"Yes\")=2,\"N\",\"Y\")))","v":""},{"$f":"IF(OR('Enrollment Form'!$CC502=\"\",'Enrollment Form'!$CC502=\"No\"),\"-\",IF(AND('Enrollment Form'!$CC502=\"Yes\",'Enrollment Form'!$CD502=\"\"),\"N\",\"Y\"))","v":"-"},{"$f":"IF(OR('Enrollment Form'!$CE502=\"\",'Enrollment Form'!$CE502=\"No\"),\"-\",IF(AND('Enrollment Form'!$CE502=\"Yes\",'Enrollment Form'!$CF502=\"\"),\"N\",\"Y\"))","v":"-"},{"$f":"IF(OR('Enrollment Form'!$CG502=\"\",'Enrollment Form'!$CG502=\"No\"),\"-\",IF(AND('Enrollment Form'!$CG502=\"Yes\",'Enrollment Form'!$CH502=\"\"),\"N\",\"Y\"))","v":"-"},{"$f":"IF(OR('Enrollment Form'!$CG502=\"\",'Enrollment Form'!$CG502=\"No\"),\"-\",IF(AND('Enrollment Form'!$CG502=\"Yes\",'Enrollment Form'!$CI502=\"\"),\"N\",\"Y\"))","v":"-"},{"$f":"IF('Enrollment Form'!B502<>\"Subscriber\",\"-\",IF(AND('Enrollment Form'!B502=\"Subscriber\",'Enrollment Form'!C502=\"Enroll\",'Enrollment Form'!AA502=\"\"),\"N\",\"Y\"))","v":"-"},{"$f":"IF(OR('Enrollment Form'!B502=\"Subscriber\",'Enrollment Form'!B502=\"\"),\"-\",IF('Enrollment Form'!BI502=\"\",\"N\",\"Y\"))","v":"-"},{"$f":"IF('Enrollment Form'!B502<>\"Subscriber\",\"-\",IF(AND('Enrollment Form'!B502=\"Subscriber\",'Enrollment Form'!G502=\"\"),\"N\",\"Y\"))","v":"-"},{"$f":"IF('Enrollment Form'!A502=\"\",\"\",IF('Enrollment Form'!B502=\"Subscriber\",\"-\",IF(AND('Enrollment Form'!B502<>\"Subscriber\",'Enrollment Form'!G502='Enrollment Form'!H502),\"N\",\"Y\")))","v":""},0]
[503,{"$f":"IF('Enrollment Form'!$A503<>\"\",\"Y\",\"N\")","v":"N"},{"$f":"IF(AND('Enrollment Form'!$B503=\"\",'Enrollment Form'!$C503<>\"\"),\"N\",IF($B496=\"N\",\"\",\"Y\"))","v":""},{"$f":"IF(OR($B496=\"N\",'Enrollment Form'!G503=\"\"),\"\",IF('Enrollment Form'!$B503<>\"Subscriber\",\"\",IF('Enrollment Form'!$G503='Enrollment Form'!$H503,\"Y\",\"N\")))","v":""},{"$f":"IF($B496=\"N\",\"\",IF(AND(COUNTIFS('Enrollment Form'!$H$11:$H$1000,'Enrollment Form'!$H503,'Enrollment Form'!$B$11:$B$1000,'Enrollment Form'!$B503)>1,'Enrollment Form'!$H503<>\"\"),\"N\",\"Y\"))","v":""},{"$f":"IF($B496=\"N\",\"\",IF(LEN('Enrollment Form'!$Y503)=0,\"\",IF(LEN('Enrollment Form'!$Y503)<>5,\"N\",\"Y\")))","v":""},{"$f":"IF($B496=\"N\",\"\",IF(LEN('Enrollment Form'!$AD503=0),\"\",IF(LEN('Enrollment Form'!$AD503)<>5,\"N\",\"Y\")))","v":""},{"$f":"IF($B496=\"N\",\"\",IF(LEN('Enrollment Form'!$BL503=0),\"\",IF(LEN('Enrollment Form'!$BL503)<>5,\"N\",\"Y\")))","v":""},{"$f":"IF($B496=\"N\",\"\",IF(LEN('Enrollment Form'!$AE503)=0,\"\",IF(LEN('Enrollment Form'!$AE503)<>10,\"N\",\"Y\")))","v":""},{"$f":"IF($B496=\"N\",\"\",IF(LEN('Enrollment Form'!$AF503)=0,\"\",IF(LEN('Enrollment Form'!$AF503)<>10,\"N\",\"Y\")))","v":""},{"$f":"IF('Enrollment Form'!$O503<>\"Graded\",\"-\",IF(AND('Enrollment Form'!$O503=\"Graded\",'Enrollment Form'!$AO503<>\"\"),\"Y\",\"N\"))","v":"-"},{"$f":"IF($B496=\"N\",\"\",IF(OR('Enrollment Form'!$B503<>\"Subscriber\",'Enrollment Form'!$C503=\"ROC\"),\"-\",IF(AND('Enrollment Form'!$B503=\"Subscriber\",'Enrollment Form'!$C503=\"Enroll\",'Enrollment Form'!$AJ503<>\"\"),\"Y\",\"N\")))","v":""},{"$f":"IF($B496=\"N\",\"\",IF(OR('Enrollment Form'!$B503<>\"Subscriber\",'Enrollment Form'!$C503=\"ROC\"),\"-\",IF(AND('Enrollment Form'!$B503=\"Subscriber\",'Enrollment Form'!$C503=\"Enroll\",'Enrollment Form'!$AK503<>\"\"),\"Y\",\"N\")))","v":""},{"$f":"IF($B496=\"N\",\"\",IF(OR('Enrollment Form'!$B503<>\"Subscriber\",'Enrollment Form'!$C503=\"ROC\"),\"-\",IF(AND('Enrollment Form'!$B503=\"Subscriber\",'Enrollment Form'!$C503=\"Enroll\",'Enrollment Form'!$AL503<>\"\"),\"Y\",\"N\")))","v":""},{"$f":"IF($B496=\"N\",\"\",IF(OR('Enrollment Form'!$B503<>\"Subscriber\",'Enrollment Form'!$C503=\"ROC\"),\"-\",IF(AND('Enrollment Form'!$B503=\"Subscriber\",'Enrollment Form'!$C503=\"Enroll\",'Enrollment Form'!$AM503<>\"\"),\"Y\",\"N\")))","v":""},{"$f":"IF($B496=\"N\",\"\",IF(OR('Enrollment Form'!$B503<>\"Subscriber\",'Enrollment Form'!$C503=\"ROC\"),\"-\",IF(AND('Enrollment Form'!$B503=\"Subscriber\",'Enrollment Form'!$C503=\"Enroll\",'Enrollment Form'!$AN503<>\"\"),\"Y\",\"N\")))","v":""},{"$f":"IF($B496=\"N\",\"\",IF(OR('Enrollment Form'!$B503<>\"Subscriber\",'Enrollment Form'!$C503=\"ROC\"),\"-\",IF(AND('Enrollment Form'!$B503=\"Subscriber\",'Enrollment Form'!$C503=\"Enroll\",'Enrollment Form'!$AP503<>\"\"),\"Y\",\"N\")))","v":""},{"$f":"IF($B496=\"N\",\"\",IF($Q496=\"-\",\"-\",IF(AND($Q496=\"Y\",'Enrollment Form'!$AP503=\"No\"),\"-\",IF(AND($Q496=\"Y\",'Enrollment Form'!$AP503=\"Yes\",'Enrollment Form'!$AQ503<>\"\"),\"Y\",\"N\"))))","v":""},{"$f":"IF($B496=\"N\",\"\",IF(OR('Enrollment Form'!$B503<>\"Subscriber\",'Enrollment Form'!$C503=\"ROC\"),\"-\",IF(AND('Enrollment Form'!$B503=\"Subscriber\",'Enrollment Form'!$C503=\"Enroll\",'Enrollment Form'!$CO503<>\"\"),\"Y\",\"N\")))","v":""},{"$f":"IF($B496=\"N\",\"\",IF($S496=\"-\",\"-\",IF(AND($S496=\"Y\",'Enrollment Form'!$CO503=\"No\"),\"-\",IF(AND($S496=\"Y\",'Enrollment Form'!$CO503=\"Yes\",'Enrollment Form'!$CP503<>\"\"),\"Y\",\"N\"))))","v":""},{"$f":"IF(OR('Enrollment Form'!$AV503=\"Yes\",'Enrollment Form'!$AV503=\"\"),\"-\",IF(AND('Enrollment Form'!$AV503=\"No\",ISERROR(FIND(\"HMO\",VLOOKUP('Enrollment Form'!G503,'Enrollment Form'!H$11:J$1000,3,FALSE),1))=FALSE,COUNTA('Enrollment Form'!$AW503:$AZ503)=4),\"Y\",\"N\"))","v":"-"},{"$f":"IF($B496=\"N\",\"\",IF('Enrollment Form'!$B503=\"Subscriber\",\"-\",IF(COUNTA('Enrollment Form'!$BE503,'Enrollment Form'!$BG503)=2,\"Y\",\"N\")))","v":""},{"$f":"IF($B496=\"N\",\"\",IF(OR('Enrollment Form'!$AU503=\"\",'Enrollment Form'!$AU503=\"No\"),\"-\",IF(AND('Enrollment Form'!$AU503=\"Yes\",COUNTA('Enrollment Form'!$CK503)=1),\"Y\",\"N\")))","v":""},{"$f":"IF(OR('Enrollment Form'!$CK503=\"\",'Enrollment Form'!$CK503=\"No\"),\"-\",IF(COUNTA('Enrollment Form'!$CM503:$CN503)=2,\"Y\",\"N\"))","v":"-"},{"$f":"IF($B496=\"N\",\"\",IF(COUNTIF('Enrollment Form'!$CZ503:$DO503,\"Other\")=COUNTA('Enrollment Form'!$DF503,'Enrollment Form'!$DA503,'Enrollment Form'!$DK503,'Enrollment Form'!$DP503),\"Y\",\"N\"))","v":""},{"$f":"IF($B496=\"N\",\"\",IF(OR('Enrollment Form'!B503<>\"Subscriber\",'Enrollment Form'!C503=\"ROC\",COUNTIF('Enrollment Form'!AS503:AT503,\"Yes\")>=1),\"-\",IF(AND('Enrollment Form'!C503=\"Enroll\",COUNTIF('Enrollment Form'!AS503:AT503,\"No\")=2,'Enrollment Form'!AU503=\"\"),\"N\",\"Y\")))","v":""},{"$f":"IF(OR(B496=\"N\",'Enrollment Form'!B503<>\"Subscriber\",'Enrollment Form'!C503=\"ROC\",'Enrollment Form'!O503<>\"Multiple of Salary\"),\"-\",IF(COUNTA('Enrollment Form'!T503:U503)<2,\"N\",\"Y\"))","v":"-"},{"$f":"IF(B496=\"N\",\"\",IF(OR('Enrollment Form'!C503=\"ROC\",'Enrollment Form'!B503<>\"Subscriber\",'Enrollment Form'!O503=\"Waive\",'Enrollment Form'!O503=\"\"),\"-\",IF('Enrollment Form'!P503=\"\",\"N\",\"Y\")))","v":""},{"$f":"IF($B496=\"N\",\"\",IF(AND('Enrollment Form'!$C503=\"ROC\",'Enrollment Form'!$DS503<>\"\"),\"Y\",IF(AND('Enrollment Form'!$C503=\"ROC\",'Enrollment Form'!$DS503=\"\"),\"N\",IF(AND('Enrollment Form'!$C503=\"Enroll\",'Enrollment Form'!$B503=\"Subscriber\",'Enrollment Form'!$CQ503=\"No\",'Enrollment Form'!$DS503=\"\"),\"N\",IF(AND('Enrollment Form'!$C503=\"Enroll\",'Enrollment Form'!$B503=\"Subscriber\",'Enrollment Form'!$CQ503=\"Yes\"),\"-\",\"Y\")))))","v":""},{"$f":"IF($B496=\"N\",\"\",IF(AND('Enrollment Form'!$C503=\"ROC\",'Enrollment Form'!$DT503<>\"\"),\"Y\",IF(AND('Enrollment Form'!$C503=\"ROC\",'Enrollment Form'!$DT503=\"\"),\"N\",IF(AND('Enrollment Form'!$C503=\"Enroll\",'Enrollment Form'!$B503=\"Subscriber\",'Enrollment Form'!$CQ503=\"No\",'Enrollment Form'!$DT503=\"\"),\"N\",IF(AND('Enrollment Form'!$C503=\"Enroll\",'Enrollment Form'!$B503=\"Subscriber\",'Enrollment Form'!$CQ503=\"Yes\"),\"-\",\"Y\")))))","v":""},{"$f":"IF('Enrollment Form'!AH503=\"\",\"\",IF(ISERROR(SEARCH(\".\",'Enrollment Form'!AH503,SEARCH(\"@\",'Enrollment Form'!AH503))),\"N\",\"Y\"))","v":""},{"$f":"IF(OR($B496=\"N\",'Enrollment Form'!$G503=\"\"),\"\",IF('Enrollment Form'!$B503<>\"Subscriber\",\"-\",IF(COUNTIF('Enrollment Form'!$AS503:$AT503,\"Yes\")=2,\"N\",\"Y\")))","v":""},{"$f":"IF(OR('Enrollment Form'!$CC503=\"\",'Enrollment Form'!$CC503=\"No\"),\"-\",IF(AND('Enrollment Form'!$CC503=\"Yes\",'Enrollment Form'!$CD503=\"\"),\"N\",\"Y\"))","v":"-"},{"$f":"IF(OR('Enrollment Form'!$CE503=\"\",'Enrollment Form'!$CE503=\"No\"),\"-\",IF(AND('Enrollment Form'!$CE503=\"Yes\",'Enrollment Form'!$CF503=\"\"),\"N\",\"Y\"))","v":"-"},{"$f":"IF(OR('Enrollment Form'!$CG503=\"\",'Enrollment Form'!$CG503=\"No\"),\"-\",IF(AND('Enrollment Form'!$CG503=\"Yes\",'Enrollment Form'!$CH503=\"\"),\"N\",\"Y\"))","v":"-"},{"$f":"IF(OR('Enrollment Form'!$CG503=\"\",'Enrollment Form'!$CG503=\"No\"),\"-\",IF(AND('Enrollment Form'!$CG503=\"Yes\",'Enrollment Form'!$CI503=\"\"),\"N\",\"Y\"))","v":"-"},{"$f":"IF('Enrollment Form'!B503<>\"Subscriber\",\"-\",IF(AND('Enrollment Form'!B503=\"Subscriber\",'Enrollment Form'!C503=\"Enroll\",'Enrollment Form'!AA503=\"\"),\"N\",\"Y\"))","v":"-"},{"$f":"IF(OR('Enrollment Form'!B503=\"Subscriber\",'Enrollment Form'!B503=\"\"),\"-\",IF('Enrollment Form'!BI503=\"\",\"N\",\"Y\"))","v":"-"},{"$f":"IF('Enrollment Form'!B503<>\"Subscriber\",\"-\",IF(AND('Enrollment Form'!B503=\"Subscriber\",'Enrollment Form'!G503=\"\"),\"N\",\"Y\"))","v":"-"},{"$f":"IF('Enrollment Form'!A503=\"\",\"\",IF('Enrollment Form'!B503=\"Subscriber\",\"-\",IF(AND('Enrollment Form'!B503<>\"Subscriber\",'Enrollment Form'!G503='Enrollment Form'!H503),\"N\",\"Y\")))","v":""},0]
[504,{"$f":"IF('Enrollment Form'!$A504<>\"\",\"Y\",\"N\")","v":"N"},{"$f":"IF(AND('Enrollment Form'!$B504=\"\",'Enrollment Form'!$C504<>\"\"),\"N\",IF($B497=\"N\",\"\",\"Y\"))","v":""},{"$f":"IF(OR($B497=\"N\",'Enrollment Form'!G504=\"\"),\"\",IF('Enrollment Form'!$B504<>\"Subscriber\",\"\",IF('Enrollment Form'!$G504='Enrollment Form'!$H504,\"Y\",\"N\")))","v":""},{"$f":"IF($B497=\"N\",\"\",IF(AND(COUNTIFS('Enrollment Form'!$H$11:$H$1000,'Enrollment Form'!$H504,'Enrollment Form'!$B$11:$B$1000,'Enrollment Form'!$B504)>1,'Enrollment Form'!$H504<>\"\"),\"N\",\"Y\"))","v":""},{"$f":"IF($B497=\"N\",\"\",IF(LEN('Enrollment Form'!$Y504)=0,\"\",IF(LEN('Enrollment Form'!$Y504)<>5,\"N\",\"Y\")))","v":""},{"$f":"IF($B497=\"N\",\"\",IF(LEN('Enrollment Form'!$AD504=0),\"\",IF(LEN('Enrollment Form'!$AD504)<>5,\"N\",\"Y\")))","v":""},{"$f":"IF($B497=\"N\",\"\",IF(LEN('Enrollment Form'!$BL504=0),\"\",IF(LEN('Enrollment Form'!$BL504)<>5,\"N\",\"Y\")))","v":""},{"$f":"IF($B497=\"N\",\"\",IF(LEN('Enrollment Form'!$AE504)=0,\"\",IF(LEN('Enrollment Form'!$AE504)<>10,\"N\",\"Y\")))","v":""},{"$f":"IF($B497=\"N\",\"\",IF(LEN('Enrollment Form'!$AF504)=0,\"\",IF(LEN('Enrollment Form'!$AF504)<>10,\"N\",\"Y\")))","v":""},{"$f":"IF('Enrollment Form'!$O504<>\"Graded\",\"-\",IF(AND('Enrollment Form'!$O504=\"Graded\",'Enrollment Form'!$AO504<>\"\"),\"Y\",\"N\"))","v":"-"},{"$f":"IF($B497=\"N\",\"\",IF(OR('Enrollment Form'!$B504<>\"Subscriber\",'Enrollment Form'!$C504=\"ROC\"),\"-\",IF(AND('Enrollment Form'!$B504=\"Subscriber\",'Enrollment Form'!$C504=\"Enroll\",'Enrollment Form'!$AJ504<>\"\"),\"Y\",\"N\")))","v":""},{"$f":"IF($B497=\"N\",\"\",IF(OR('Enrollment Form'!$B504<>\"Subscriber\",'Enrollment Form'!$C504=\"ROC\"),\"-\",IF(AND('Enrollment Form'!$B504=\"Subscriber\",'Enrollment Form'!$C504=\"Enroll\",'Enrollment Form'!$AK504<>\"\"),\"Y\",\"N\")))","v":""},{"$f":"IF($B497=\"N\",\"\",IF(OR('Enrollment Form'!$B504<>\"Subscriber\",'Enrollment Form'!$C504=\"ROC\"),\"-\",IF(AND('Enrollment Form'!$B504=\"Subscriber\",'Enrollment Form'!$C504=\"Enroll\",'Enrollment Form'!$AL504<>\"\"),\"Y\",\"N\")))","v":""},{"$f":"IF($B497=\"N\",\"\",IF(OR('Enrollment Form'!$B504<>\"Subscriber\",'Enrollment Form'!$C504=\"ROC\"),\"-\",IF(AND('Enrollment Form'!$B504=\"Subscriber\",'Enrollment Form'!$C504=\"Enroll\",'Enrollment Form'!$AM504<>\"\"),\"Y\",\"N\")))","v":""},{"$f":"IF($B497=\"N\",\"\",IF(OR('Enrollment Form'!$B504<>\"Subscriber\",'Enrollment Form'!$C504=\"ROC\"),\"-\",IF(AND('Enrollment Form'!$B504=\"Subscriber\",'Enrollment Form'!$C504=\"Enroll\",'Enrollment Form'!$AN504<>\"\"),\"Y\",\"N\")))","v":""},{"$f":"IF($B497=\"N\",\"\",IF(OR('Enrollment Form'!$B504<>\"Subscriber\",'Enrollment Form'!$C504=\"ROC\"),\"-\",IF(AND('Enrollment Form'!$B504=\"Subscriber\",'Enrollment Form'!$C504=\"Enroll\",'Enrollment Form'!$AP504<>\"\"),\"Y\",\"N\")))","v":""},{"$f":"IF($B497=\"N\",\"\",IF($Q497=\"-\",\"-\",IF(AND($Q497=\"Y\",'Enrollment Form'!$AP504=\"No\"),\"-\",IF(AND($Q497=\"Y\",'Enrollment Form'!$AP504=\"Yes\",'Enrollment Form'!$AQ504<>\"\"),\"Y\",\"N\"))))","v":""},{"$f":"IF($B497=\"N\",\"\",IF(OR('Enrollment Form'!$B504<>\"Subscriber\",'Enrollment Form'!$C504=\"ROC\"),\"-\",IF(AND('Enrollment Form'!$B504=\"Subscriber\",'Enrollment Form'!$C504=\"Enroll\",'Enrollment Form'!$CO504<>\"\"),\"Y\",\"N\")))","v":""},{"$f":"IF($B497=\"N\",\"\",IF($S497=\"-\",\"-\",IF(AND($S497=\"Y\",'Enrollment Form'!$CO504=\"No\"),\"-\",IF(AND($S497=\"Y\",'Enrollment Form'!$CO504=\"Yes\",'Enrollment Form'!$CP504<>\"\"),\"Y\",\"N\"))))","v":""},{"$f":"IF(OR('Enrollment Form'!$AV504=\"Yes\",'Enrollment Form'!$AV504=\"\"),\"-\",IF(AND('Enrollment Form'!$AV504=\"No\",ISERROR(FIND(\"HMO\",VLOOKUP('Enrollment Form'!G504,'Enrollment Form'!H$11:J$1000,3,FALSE),1))=FALSE,COUNTA('Enrollment Form'!$AW504:$AZ504)=4),\"Y\",\"N\"))","v":"-"},{"$f":"IF($B497=\"N\",\"\",IF('Enrollment Form'!$B504=\"Subscriber\",\"-\",IF(COUNTA('Enrollment Form'!$BE504,'Enrollment Form'!$BG504)=2,\"Y\",\"N\")))","v":""},{"$f":"IF($B497=\"N\",\"\",IF(OR('Enrollment Form'!$AU504=\"\",'Enrollment Form'!$AU504=\"No\"),\"-\",IF(AND('Enrollment Form'!$AU504=\"Yes\",COUNTA('Enrollment Form'!$CK504)=1),\"Y\",\"N\")))","v":""},{"$f":"IF(OR('Enrollment Form'!$CK504=\"\",'Enrollment Form'!$CK504=\"No\"),\"-\",IF(COUNTA('Enrollment Form'!$CM504:$CN504)=2,\"Y\",\"N\"))","v":"-"},{"$f":"IF($B497=\"N\",\"\",IF(COUNTIF('Enrollment Form'!$CZ504:$DO504,\"Other\")=COUNTA('Enrollment Form'!$DF504,'Enrollment Form'!$DA504,'Enrollment Form'!$DK504,'Enrollment Form'!$DP504),\"Y\",\"N\"))","v":""},{"$f":"IF($B497=\"N\",\"\",IF(OR('Enrollment Form'!B504<>\"Subscriber\",'Enrollment Form'!C504=\"ROC\",COUNTIF('Enrollment Form'!AS504:AT504,\"Yes\")>=1),\"-\",IF(AND('Enrollment Form'!C504=\"Enroll\",COUNTIF('Enrollment Form'!AS504:AT504,\"No\")=2,'Enrollment Form'!AU504=\"\"),\"N\",\"Y\")))","v":""},{"$f":"IF(OR(B497=\"N\",'Enrollment Form'!B504<>\"Subscriber\",'Enrollment Form'!C504=\"ROC\",'Enrollment Form'!O504<>\"Multiple of Salary\"),\"-\",IF(COUNTA('Enrollment Form'!T504:U504)<2,\"N\",\"Y\"))","v":"-"},{"$f":"IF(B497=\"N\",\"\",IF(OR('Enrollment Form'!C504=\"ROC\",'Enrollment Form'!B504<>\"Subscriber\",'Enrollment Form'!O504=\"Waive\",'Enrollment Form'!O504=\"\"),\"-\",IF('Enrollment Form'!P504=\"\",\"N\",\"Y\")))","v":""},{"$f":"IF($B497=\"N\",\"\",IF(AND('Enrollment Form'!$C504=\"ROC\",'Enrollment Form'!$DS504<>\"\"),\"Y\",IF(AND('Enrollment Form'!$C504=\"ROC\",'Enrollment Form'!$DS504=\"\"),\"N\",IF(AND('Enrollment Form'!$C504=\"Enroll\",'Enrollment Form'!$B504=\"Subscriber\",'Enrollment Form'!$CQ504=\"No\",'Enrollment Form'!$DS504=\"\"),\"N\",IF(AND('Enrollment Form'!$C504=\"Enroll\",'Enrollment Form'!$B504=\"Subscriber\",'Enrollment Form'!$CQ504=\"Yes\"),\"-\",\"Y\")))))","v":""},{"$f":"IF($B497=\"N\",\"\",IF(AND('Enrollment Form'!$C504=\"ROC\",'Enrollment Form'!$DT504<>\"\"),\"Y\",IF(AND('Enrollment Form'!$C504=\"ROC\",'Enrollment Form'!$DT504=\"\"),\"N\",IF(AND('Enrollment Form'!$C504=\"Enroll\",'Enrollment Form'!$B504=\"Subscriber\",'Enrollment Form'!$CQ504=\"No\",'Enrollment Form'!$DT504=\"\"),\"N\",IF(AND('Enrollment Form'!$C504=\"Enroll\",'Enrollment Form'!$B504=\"Subscriber\",'Enrollment Form'!$CQ504=\"Yes\"),\"-\",\"Y\")))))","v":""},{"$f":"IF('Enrollment Form'!AH504=\"\",\"\",IF(ISERROR(SEARCH(\".\",'Enrollment Form'!AH504,SEARCH(\"@\",'Enrollment Form'!AH504))),\"N\",\"Y\"))","v":""},{"$f":"IF(OR($B497=\"N\",'Enrollment Form'!$G504=\"\"),\"\",IF('Enrollment Form'!$B504<>\"Subscriber\",\"-\",IF(COUNTIF('Enrollment Form'!$AS504:$AT504,\"Yes\")=2,\"N\",\"Y\")))","v":""},{"$f":"IF(OR('Enrollment Form'!$CC504=\"\",'Enrollment Form'!$CC504=\"No\"),\"-\",IF(AND('Enrollment Form'!$CC504=\"Yes\",'Enrollment Form'!$CD504=\"\"),\"N\",\"Y\"))","v":"-"},{"$f":"IF(OR('Enrollment Form'!$CE504=\"\",'Enrollment Form'!$CE504=\"No\"),\"-\",IF(AND('Enrollment Form'!$CE504=\"Yes\",'Enrollment Form'!$CF504=\"\"),\"N\",\"Y\"))","v":"-"},{"$f":"IF(OR('Enrollment Form'!$CG504=\"\",'Enrollment Form'!$CG504=\"No\"),\"-\",IF(AND('Enrollment Form'!$CG504=\"Yes\",'Enrollment Form'!$CH504=\"\"),\"N\",\"Y\"))","v":"-"},{"$f":"IF(OR('Enrollment Form'!$CG504=\"\",'Enrollment Form'!$CG504=\"No\"),\"-\",IF(AND('Enrollment Form'!$CG504=\"Yes\",'Enrollment Form'!$CI504=\"\"),\"N\",\"Y\"))","v":"-"},{"$f":"IF('Enrollment Form'!B504<>\"Subscriber\",\"-\",IF(AND('Enrollment Form'!B504=\"Subscriber\",'Enrollment Form'!C504=\"Enroll\",'Enrollment Form'!AA504=\"\"),\"N\",\"Y\"))","v":"-"},{"$f":"IF(OR('Enrollment Form'!B504=\"Subscriber\",'Enrollment Form'!B504=\"\"),\"-\",IF('Enrollment Form'!BI504=\"\",\"N\",\"Y\"))","v":"-"},{"$f":"IF('Enrollment Form'!B504<>\"Subscriber\",\"-\",IF(AND('Enrollment Form'!B504=\"Subscriber\",'Enrollment Form'!G504=\"\"),\"N\",\"Y\"))","v":"-"},{"$f":"IF('Enrollment Form'!A504=\"\",\"\",IF('Enrollment Form'!B504=\"Subscriber\",\"-\",IF(AND('Enrollment Form'!B504<>\"Subscriber\",'Enrollment Form'!G504='Enrollment Form'!H504),\"N\",\"Y\")))","v":""},0]
[505,{"$f":"IF('Enrollment Form'!$A505<>\"\",\"Y\",\"N\")","v":"N"},{"$f":"IF(AND('Enrollment Form'!$B505=\"\",'Enrollment Form'!$C505<>\"\"),\"N\",IF($B498=\"N\",\"\",\"Y\"))","v":""},{"$f":"IF(OR($B498=\"N\",'Enrollment Form'!G505=\"\"),\"\",IF('Enrollment Form'!$B505<>\"Subscriber\",\"\",IF('Enrollment Form'!$G505='Enrollment Form'!$H505,\"Y\",\"N\")))","v":""},{"$f":"IF($B498=\"N\",\"\",IF(AND(COUNTIFS('Enrollment Form'!$H$11:$H$1000,'Enrollment Form'!$H505,'Enrollment Form'!$B$11:$B$1000,'Enrollment Form'!$B505)>1,'Enrollment Form'!$H505<>\"\"),\"N\",\"Y\"))","v":""},{"$f":"IF($B498=\"N\",\"\",IF(LEN('Enrollment Form'!$Y505)=0,\"\",IF(LEN('Enrollment Form'!$Y505)<>5,\"N\",\"Y\")))","v":""},{"$f":"IF($B498=\"N\",\"\",IF(LEN('Enrollment Form'!$AD505=0),\"\",IF(LEN('Enrollment Form'!$AD505)<>5,\"N\",\"Y\")))","v":""},{"$f":"IF($B498=\"N\",\"\",IF(LEN('Enrollment Form'!$BL505=0),\"\",IF(LEN('Enrollment Form'!$BL505)<>5,\"N\",\"Y\")))","v":""},{"$f":"IF($B498=\"N\",\"\",IF(LEN('Enrollment Form'!$AE505)=0,\"\",IF(LEN('Enrollment Form'!$AE505)<>10,\"N\",\"Y\")))","v":""},{"$f":"IF($B498=\"N\",\"\",IF(LEN('Enrollment Form'!$AF505)=0,\"\",IF(LEN('Enrollment Form'!$AF505)<>10,\"N\",\"Y\")))","v":""},{"$f":"IF('Enrollment Form'!$O505<>\"Graded\",\"-\",IF(AND('Enrollment Form'!$O505=\"Graded\",'Enrollment Form'!$AO505<>\"\"),\"Y\",\"N\"))","v":"-"},{"$f":"IF($B498=\"N\",\"\",IF(OR('Enrollment Form'!$B505<>\"Subscriber\",'Enrollment Form'!$C505=\"ROC\"),\"-\",IF(AND('Enrollment Form'!$B505=\"Subscriber\",'Enrollment Form'!$C505=\"Enroll\",'Enrollment Form'!$AJ505<>\"\"),\"Y\",\"N\")))","v":""},{"$f":"IF($B498=\"N\",\"\",IF(OR('Enrollment Form'!$B505<>\"Subscriber\",'Enrollment Form'!$C505=\"ROC\"),\"-\",IF(AND('Enrollment Form'!$B505=\"Subscriber\",'Enrollment Form'!$C505=\"Enroll\",'Enrollment Form'!$AK505<>\"\"),\"Y\",\"N\")))","v":""},{"$f":"IF($B498=\"N\",\"\",IF(OR('Enrollment Form'!$B505<>\"Subscriber\",'Enrollment Form'!$C505=\"ROC\"),\"-\",IF(AND('Enrollment Form'!$B505=\"Subscriber\",'Enrollment Form'!$C505=\"Enroll\",'Enrollment Form'!$AL505<>\"\"),\"Y\",\"N\")))","v":""},{"$f":"IF($B498=\"N\",\"\",IF(OR('Enrollment Form'!$B505<>\"Subscriber\",'Enrollment Form'!$C505=\"ROC\"),\"-\",IF(AND('Enrollment Form'!$B505=\"Subscriber\",'Enrollment Form'!$C505=\"Enroll\",'Enrollment Form'!$AM505<>\"\"),\"Y\",\"N\")))","v":""},{"$f":"IF($B498=\"N\",\"\",IF(OR('Enrollment Form'!$B505<>\"Subscriber\",'Enrollment Form'!$C505=\"ROC\"),\"-\",IF(AND('Enrollment Form'!$B505=\"Subscriber\",'Enrollment Form'!$C505=\"Enroll\",'Enrollment Form'!$AN505<>\"\"),\"Y\",\"N\")))","v":""},{"$f":"IF($B498=\"N\",\"\",IF(OR('Enrollment Form'!$B505<>\"Subscriber\",'Enrollment Form'!$C505=\"ROC\"),\"-\",IF(AND('Enrollment Form'!$B505=\"Subscriber\",'Enrollment Form'!$C505=\"Enroll\",'Enrollment Form'!$AP505<>\"\"),\"Y\",\"N\")))","v":""},{"$f":"IF($B498=\"N\",\"\",IF($Q498=\"-\",\"-\",IF(AND($Q498=\"Y\",'Enrollment Form'!$AP505=\"No\"),\"-\",IF(AND($Q498=\"Y\",'Enrollment Form'!$AP505=\"Yes\",'Enrollment Form'!$AQ505<>\"\"),\"Y\",\"N\"))))","v":""},{"$f":"IF($B498=\"N\",\"\",IF(OR('Enrollment Form'!$B505<>\"Subscriber\",'Enrollment Form'!$C505=\"ROC\"),\"-\",IF(AND('Enrollment Form'!$B505=\"Subscriber\",'Enrollment Form'!$C505=\"Enroll\",'Enrollment Form'!$CO505<>\"\"),\"Y\",\"N\")))","v":""},{"$f":"IF($B498=\"N\",\"\",IF($S498=\"-\",\"-\",IF(AND($S498=\"Y\",'Enrollment Form'!$CO505=\"No\"),\"-\",IF(AND($S498=\"Y\",'Enrollment Form'!$CO505=\"Yes\",'Enrollment Form'!$CP505<>\"\"),\"Y\",\"N\"))))","v":""},{"$f":"IF(OR('Enrollment Form'!$AV505=\"Yes\",'Enrollment Form'!$AV505=\"\"),\"-\",IF(AND('Enrollment Form'!$AV505=\"No\",ISERROR(FIND(\"HMO\",VLOOKUP('Enrollment Form'!G505,'Enrollment Form'!H$11:J$1000,3,FALSE),1))=FALSE,COUNTA('Enrollment Form'!$AW505:$AZ505)=4),\"Y\",\"N\"))","v":"-"},{"$f":"IF($B498=\"N\",\"\",IF('Enrollment Form'!$B505=\"Subscriber\",\"-\",IF(COUNTA('Enrollment Form'!$BE505,'Enrollment Form'!$BG505)=2,\"Y\",\"N\")))","v":""},{"$f":"IF($B498=\"N\",\"\",IF(OR('Enrollment Form'!$AU505=\"\",'Enrollment Form'!$AU505=\"No\"),\"-\",IF(AND('Enrollment Form'!$AU505=\"Yes\",COUNTA('Enrollment Form'!$CK505)=1),\"Y\",\"N\")))","v":""},{"$f":"IF(OR('Enrollment Form'!$CK505=\"\",'Enrollment Form'!$CK505=\"No\"),\"-\",IF(COUNTA('Enrollment Form'!$CM505:$CN505)=2,\"Y\",\"N\"))","v":"-"},{"$f":"IF($B498=\"N\",\"\",IF(COUNTIF('Enrollment Form'!$CZ505:$DO505,\"Other\")=COUNTA('Enrollment Form'!$DF505,'Enrollment Form'!$DA505,'Enrollment Form'!$DK505,'Enrollment Form'!$DP505),\"Y\",\"N\"))","v":""},{"$f":"IF($B498=\"N\",\"\",IF(OR('Enrollment Form'!B505<>\"Subscriber\",'Enrollment Form'!C505=\"ROC\",COUNTIF('Enrollment Form'!AS505:AT505,\"Yes\")>=1),\"-\",IF(AND('Enrollment Form'!C505=\"Enroll\",COUNTIF('Enrollment Form'!AS505:AT505,\"No\")=2,'Enrollment Form'!AU505=\"\"),\"N\",\"Y\")))","v":""},{"$f":"IF(OR(B498=\"N\",'Enrollment Form'!B505<>\"Subscriber\",'Enrollment Form'!C505=\"ROC\",'Enrollment Form'!O505<>\"Multiple of Salary\"),\"-\",IF(COUNTA('Enrollment Form'!T505:U505)<2,\"N\",\"Y\"))","v":"-"},{"$f":"IF(B498=\"N\",\"\",IF(OR('Enrollment Form'!C505=\"ROC\",'Enrollment Form'!B505<>\"Subscriber\",'Enrollment Form'!O505=\"Waive\",'Enrollment Form'!O505=\"\"),\"-\",IF('Enrollment Form'!P505=\"\",\"N\",\"Y\")))","v":""},{"$f":"IF($B498=\"N\",\"\",IF(AND('Enrollment Form'!$C505=\"ROC\",'Enrollment Form'!$DS505<>\"\"),\"Y\",IF(AND('Enrollment Form'!$C505=\"ROC\",'Enrollment Form'!$DS505=\"\"),\"N\",IF(AND('Enrollment Form'!$C505=\"Enroll\",'Enrollment Form'!$B505=\"Subscriber\",'Enrollment Form'!$CQ505=\"No\",'Enrollment Form'!$DS505=\"\"),\"N\",IF(AND('Enrollment Form'!$C505=\"Enroll\",'Enrollment Form'!$B505=\"Subscriber\",'Enrollment Form'!$CQ505=\"Yes\"),\"-\",\"Y\")))))","v":""},{"$f":"IF($B498=\"N\",\"\",IF(AND('Enrollment Form'!$C505=\"ROC\",'Enrollment Form'!$DT505<>\"\"),\"Y\",IF(AND('Enrollment Form'!$C505=\"ROC\",'Enrollment Form'!$DT505=\"\"),\"N\",IF(AND('Enrollment Form'!$C505=\"Enroll\",'Enrollment Form'!$B505=\"Subscriber\",'Enrollment Form'!$CQ505=\"No\",'Enrollment Form'!$DT505=\"\"),\"N\",IF(AND('Enrollment Form'!$C505=\"Enroll\",'Enrollment Form'!$B505=\"Subscriber\",'Enrollment Form'!$CQ505=\"Yes\"),\"-\",\"Y\")))))","v":""},{"$f":"IF('Enrollment Form'!AH505=\"\",\"\",IF(ISERROR(SEARCH(\".\",'Enrollment Form'!AH505,SEARCH(\"@\",'Enrollment Form'!AH505))),\"N\",\"Y\"))","v":""},{"$f":"IF(OR($B498=\"N\",'Enrollment Form'!$G505=\"\"),\"\",IF('Enrollment Form'!$B505<>\"Subscriber\",\"-\",IF(COUNTIF('Enrollment Form'!$AS505:$AT505,\"Yes\")=2,\"N\",\"Y\")))","v":""},{"$f":"IF(OR('Enrollment Form'!$CC505=\"\",'Enrollment Form'!$CC505=\"No\"),\"-\",IF(AND('Enrollment Form'!$CC505=\"Yes\",'Enrollment Form'!$CD505=\"\"),\"N\",\"Y\"))","v":"-"},{"$f":"IF(OR('Enrollment Form'!$CE505=\"\",'Enrollment Form'!$CE505=\"No\"),\"-\",IF(AND('Enrollment Form'!$CE505=\"Yes\",'Enrollment Form'!$CF505=\"\"),\"N\",\"Y\"))","v":"-"},{"$f":"IF(OR('Enrollment Form'!$CG505=\"\",'Enrollment Form'!$CG505=\"No\"),\"-\",IF(AND('Enrollment Form'!$CG505=\"Yes\",'Enrollment Form'!$CH505=\"\"),\"N\",\"Y\"))","v":"-"},{"$f":"IF(OR('Enrollment Form'!$CG505=\"\",'Enrollment Form'!$CG505=\"No\"),\"-\",IF(AND('Enrollment Form'!$CG505=\"Yes\",'Enrollment Form'!$CI505=\"\"),\"N\",\"Y\"))","v":"-"},{"$f":"IF('Enrollment Form'!B505<>\"Subscriber\",\"-\",IF(AND('Enrollment Form'!B505=\"Subscriber\",'Enrollment Form'!C505=\"Enroll\",'Enrollment Form'!AA505=\"\"),\"N\",\"Y\"))","v":"-"},{"$f":"IF(OR('Enrollment Form'!B505=\"Subscriber\",'Enrollment Form'!B505=\"\"),\"-\",IF('Enrollment Form'!BI505=\"\",\"N\",\"Y\"))","v":"-"},{"$f":"IF('Enrollment Form'!B505<>\"Subscriber\",\"-\",IF(AND('Enrollment Form'!B505=\"Subscriber\",'Enrollment Form'!G505=\"\"),\"N\",\"Y\"))","v":"-"},{"$f":"IF('Enrollment Form'!A505=\"\",\"\",IF('Enrollment Form'!B505=\"Subscriber\",\"-\",IF(AND('Enrollment Form'!B505<>\"Subscriber\",'Enrollment Form'!G505='Enrollment Form'!H505),\"N\",\"Y\")))","v":""},0]
[506,{"$f":"IF('Enrollment Form'!$A506<>\"\",\"Y\",\"N\")","v":"N"},{"$f":"IF(AND('Enrollment Form'!$B506=\"\",'Enrollment Form'!$C506<>\"\"),\"N\",IF($B499=\"N\",\"\",\"Y\"))","v":""},{"$f":"IF(OR($B499=\"N\",'Enrollment Form'!G506=\"\"),\"\",IF('Enrollment Form'!$B506<>\"Subscriber\",\"\",IF('Enrollment Form'!$G506='Enrollment Form'!$H506,\"Y\",\"N\")))","v":""},{"$f":"IF($B499=\"N\",\"\",IF(AND(COUNTIFS('Enrollment Form'!$H$11:$H$1000,'Enrollment Form'!$H506,'Enrollment Form'!$B$11:$B$1000,'Enrollment Form'!$B506)>1,'Enrollment Form'!$H506<>\"\"),\"N\",\"Y\"))","v":""},{"$f":"IF($B499=\"N\",\"\",IF(LEN('Enrollment Form'!$Y506)=0,\"\",IF(LEN('Enrollment Form'!$Y506)<>5,\"N\",\"Y\")))","v":""},{"$f":"IF($B499=\"N\",\"\",IF(LEN('Enrollment Form'!$AD506=0),\"\",IF(LEN('Enrollment Form'!$AD506)<>5,\"N\",\"Y\")))","v":""},{"$f":"IF($B499=\"N\",\"\",IF(LEN('Enrollment Form'!$BL506=0),\"\",IF(LEN('Enrollment Form'!$BL506)<>5,\"N\",\"Y\")))","v":""},{"$f":"IF($B499=\"N\",\"\",IF(LEN('Enrollment Form'!$AE506)=0,\"\",IF(LEN('Enrollment Form'!$AE506)<>10,\"N\",\"Y\")))","v":""},{"$f":"IF($B499=\"N\",\"\",IF(LEN('Enrollment Form'!$AF506)=0,\"\",IF(LEN('Enrollment Form'!$AF506)<>10,\"N\",\"Y\")))","v":""},{"$f":"IF('Enrollment Form'!$O506<>\"Graded\",\"-\",IF(AND('Enrollment Form'!$O506=\"Graded\",'Enrollment Form'!$AO506<>\"\"),\"Y\",\"N\"))","v":"-"},{"$f":"IF($B499=\"N\",\"\",IF(OR('Enrollment Form'!$B506<>\"Subscriber\",'Enrollment Form'!$C506=\"ROC\"),\"-\",IF(AND('Enrollment Form'!$B506=\"Subscriber\",'Enrollment Form'!$C506=\"Enroll\",'Enrollment Form'!$AJ506<>\"\"),\"Y\",\"N\")))","v":""},{"$f":"IF($B499=\"N\",\"\",IF(OR('Enrollment Form'!$B506<>\"Subscriber\",'Enrollment Form'!$C506=\"ROC\"),\"-\",IF(AND('Enrollment Form'!$B506=\"Subscriber\",'Enrollment Form'!$C506=\"Enroll\",'Enrollment Form'!$AK506<>\"\"),\"Y\",\"N\")))","v":""},{"$f":"IF($B499=\"N\",\"\",IF(OR('Enrollment Form'!$B506<>\"Subscriber\",'Enrollment Form'!$C506=\"ROC\"),\"-\",IF(AND('Enrollment Form'!$B506=\"Subscriber\",'Enrollment Form'!$C506=\"Enroll\",'Enrollment Form'!$AL506<>\"\"),\"Y\",\"N\")))","v":""},{"$f":"IF($B499=\"N\",\"\",IF(OR('Enrollment Form'!$B506<>\"Subscriber\",'Enrollment Form'!$C506=\"ROC\"),\"-\",IF(AND('Enrollment Form'!$B506=\"Subscriber\",'Enrollment Form'!$C506=\"Enroll\",'Enrollment Form'!$AM506<>\"\"),\"Y\",\"N\")))","v":""},{"$f":"IF($B499=\"N\",\"\",IF(OR('Enrollment Form'!$B506<>\"Subscriber\",'Enrollment Form'!$C506=\"ROC\"),\"-\",IF(AND('Enrollment Form'!$B506=\"Subscriber\",'Enrollment Form'!$C506=\"Enroll\",'Enrollment Form'!$AN506<>\"\"),\"Y\",\"N\")))","v":""},{"$f":"IF($B499=\"N\",\"\",IF(OR('Enrollment Form'!$B506<>\"Subscriber\",'Enrollment Form'!$C506=\"ROC\"),\"-\",IF(AND('Enrollment Form'!$B506=\"Subscriber\",'Enrollment Form'!$C506=\"Enroll\",'Enrollment Form'!$AP506<>\"\"),\"Y\",\"N\")))","v":""},{"$f":"IF($B499=\"N\",\"\",IF($Q499=\"-\",\"-\",IF(AND($Q499=\"Y\",'Enrollment Form'!$AP506=\"No\"),\"-\",IF(AND($Q499=\"Y\",'Enrollment Form'!$AP506=\"Yes\",'Enrollment Form'!$AQ506<>\"\"),\"Y\",\"N\"))))","v":""},{"$f":"IF($B499=\"N\",\"\",IF(OR('Enrollment Form'!$B506<>\"Subscriber\",'Enrollment Form'!$C506=\"ROC\"),\"-\",IF(AND('Enrollment Form'!$B506=\"Subscriber\",'Enrollment Form'!$C506=\"Enroll\",'Enrollment Form'!$CO506<>\"\"),\"Y\",\"N\")))","v":""},{"$f":"IF($B499=\"N\",\"\",IF($S499=\"-\",\"-\",IF(AND($S499=\"Y\",'Enrollment Form'!$CO506=\"No\"),\"-\",IF(AND($S499=\"Y\",'Enrollment Form'!$CO506=\"Yes\",'Enrollment Form'!$CP506<>\"\"),\"Y\",\"N\"))))","v":""},{"$f":"IF(OR('Enrollment Form'!$AV506=\"Yes\",'Enrollment Form'!$AV506=\"\"),\"-\",IF(AND('Enrollment Form'!$AV506=\"No\",ISERROR(FIND(\"HMO\",VLOOKUP('Enrollment Form'!G506,'Enrollment Form'!H$11:J$1000,3,FALSE),1))=FALSE,COUNTA('Enrollment Form'!$AW506:$AZ506)=4),\"Y\",\"N\"))","v":"-"},{"$f":"IF($B499=\"N\",\"\",IF('Enrollment Form'!$B506=\"Subscriber\",\"-\",IF(COUNTA('Enrollment Form'!$BE506,'Enrollment Form'!$BG506)=2,\"Y\",\"N\")))","v":""},{"$f":"IF($B499=\"N\",\"\",IF(OR('Enrollment Form'!$AU506=\"\",'Enrollment Form'!$AU506=\"No\"),\"-\",IF(AND('Enrollment Form'!$AU506=\"Yes\",COUNTA('Enrollment Form'!$CK506)=1),\"Y\",\"N\")))","v":""},{"$f":"IF(OR('Enrollment Form'!$CK506=\"\",'Enrollment Form'!$CK506=\"No\"),\"-\",IF(COUNTA('Enrollment Form'!$CM506:$CN506)=2,\"Y\",\"N\"))","v":"-"},{"$f":"IF($B499=\"N\",\"\",IF(COUNTIF('Enrollment Form'!$CZ506:$DO506,\"Other\")=COUNTA('Enrollment Form'!$DF506,'Enrollment Form'!$DA506,'Enrollment Form'!$DK506,'Enrollment Form'!$DP506),\"Y\",\"N\"))","v":""},{"$f":"IF($B499=\"N\",\"\",IF(OR('Enrollment Form'!B506<>\"Subscriber\",'Enrollment Form'!C506=\"ROC\",COUNTIF('Enrollment Form'!AS506:AT506,\"Yes\")>=1),\"-\",IF(AND('Enrollment Form'!C506=\"Enroll\",COUNTIF('Enrollment Form'!AS506:AT506,\"No\")=2,'Enrollment Form'!AU506=\"\"),\"N\",\"Y\")))","v":""},{"$f":"IF(OR(B499=\"N\",'Enrollment Form'!B506<>\"Subscriber\",'Enrollment Form'!C506=\"ROC\",'Enrollment Form'!O506<>\"Multiple of Salary\"),\"-\",IF(COUNTA('Enrollment Form'!T506:U506)<2,\"N\",\"Y\"))","v":"-"},{"$f":"IF(B499=\"N\",\"\",IF(OR('Enrollment Form'!C506=\"ROC\",'Enrollment Form'!B506<>\"Subscriber\",'Enrollment Form'!O506=\"Waive\",'Enrollment Form'!O506=\"\"),\"-\",IF('Enrollment Form'!P506=\"\",\"N\",\"Y\")))","v":""},{"$f":"IF($B499=\"N\",\"\",IF(AND('Enrollment Form'!$C506=\"ROC\",'Enrollment Form'!$DS506<>\"\"),\"Y\",IF(AND('Enrollment Form'!$C506=\"ROC\",'Enrollment Form'!$DS506=\"\"),\"N\",IF(AND('Enrollment Form'!$C506=\"Enroll\",'Enrollment Form'!$B506=\"Subscriber\",'Enrollment Form'!$CQ506=\"No\",'Enrollment Form'!$DS506=\"\"),\"N\",IF(AND('Enrollment Form'!$C506=\"Enroll\",'Enrollment Form'!$B506=\"Subscriber\",'Enrollment Form'!$CQ506=\"Yes\"),\"-\",\"Y\")))))","v":""},{"$f":"IF($B499=\"N\",\"\",IF(AND('Enrollment Form'!$C506=\"ROC\",'Enrollment Form'!$DT506<>\"\"),\"Y\",IF(AND('Enrollment Form'!$C506=\"ROC\",'Enrollment Form'!$DT506=\"\"),\"N\",IF(AND('Enrollment Form'!$C506=\"Enroll\",'Enrollment Form'!$B506=\"Subscriber\",'Enrollment Form'!$CQ506=\"No\",'Enrollment Form'!$DT506=\"\"),\"N\",IF(AND('Enrollment Form'!$C506=\"Enroll\",'Enrollment Form'!$B506=\"Subscriber\",'Enrollment Form'!$CQ506=\"Yes\"),\"-\",\"Y\")))))","v":""},{"$f":"IF('Enrollment Form'!AH506=\"\",\"\",IF(ISERROR(SEARCH(\".\",'Enrollment Form'!AH506,SEARCH(\"@\",'Enrollment Form'!AH506))),\"N\",\"Y\"))","v":""},{"$f":"IF(OR($B499=\"N\",'Enrollment Form'!$G506=\"\"),\"\",IF('Enrollment Form'!$B506<>\"Subscriber\",\"-\",IF(COUNTIF('Enrollment Form'!$AS506:$AT506,\"Yes\")=2,\"N\",\"Y\")))","v":""},{"$f":"IF(OR('Enrollment Form'!$CC506=\"\",'Enrollment Form'!$CC506=\"No\"),\"-\",IF(AND('Enrollment Form'!$CC506=\"Yes\",'Enrollment Form'!$CD506=\"\"),\"N\",\"Y\"))","v":"-"},{"$f":"IF(OR('Enrollment Form'!$CE506=\"\",'Enrollment Form'!$CE506=\"No\"),\"-\",IF(AND('Enrollment Form'!$CE506=\"Yes\",'Enrollment Form'!$CF506=\"\"),\"N\",\"Y\"))","v":"-"},{"$f":"IF(OR('Enrollment Form'!$CG506=\"\",'Enrollment Form'!$CG506=\"No\"),\"-\",IF(AND('Enrollment Form'!$CG506=\"Yes\",'Enrollment Form'!$CH506=\"\"),\"N\",\"Y\"))","v":"-"},{"$f":"IF(OR('Enrollment Form'!$CG506=\"\",'Enrollment Form'!$CG506=\"No\"),\"-\",IF(AND('Enrollment Form'!$CG506=\"Yes\",'Enrollment Form'!$CI506=\"\"),\"N\",\"Y\"))","v":"-"},{"$f":"IF('Enrollment Form'!B506<>\"Subscriber\",\"-\",IF(AND('Enrollment Form'!B506=\"Subscriber\",'Enrollment Form'!C506=\"Enroll\",'Enrollment Form'!AA506=\"\"),\"N\",\"Y\"))","v":"-"},{"$f":"IF(OR('Enrollment Form'!B506=\"Subscriber\",'Enrollment Form'!B506=\"\"),\"-\",IF('Enrollment Form'!BI506=\"\",\"N\",\"Y\"))","v":"-"},{"$f":"IF('Enrollment Form'!B506<>\"Subscriber\",\"-\",IF(AND('Enrollment Form'!B506=\"Subscriber\",'Enrollment Form'!G506=\"\"),\"N\",\"Y\"))","v":"-"},{"$f":"IF('Enrollment Form'!A506=\"\",\"\",IF('Enrollment Form'!B506=\"Subscriber\",\"-\",IF(AND('Enrollment Form'!B506<>\"Subscriber\",'Enrollment Form'!G506='Enrollment Form'!H506),\"N\",\"Y\")))","v":""},0]
[507,{"$f":"IF('Enrollment Form'!$A507<>\"\",\"Y\",\"N\")","v":"N"},{"$f":"IF(AND('Enrollment Form'!$B507=\"\",'Enrollment Form'!$C507<>\"\"),\"N\",IF($B500=\"N\",\"\",\"Y\"))","v":""},{"$f":"IF(OR($B500=\"N\",'Enrollment Form'!G507=\"\"),\"\",IF('Enrollment Form'!$B507<>\"Subscriber\",\"\",IF('Enrollment Form'!$G507='Enrollment Form'!$H507,\"Y\",\"N\")))","v":""},{"$f":"IF($B500=\"N\",\"\",IF(AND(COUNTIFS('Enrollment Form'!$H$11:$H$1000,'Enrollment Form'!$H507,'Enrollment Form'!$B$11:$B$1000,'Enrollment Form'!$B507)>1,'Enrollment Form'!$H507<>\"\"),\"N\",\"Y\"))","v":""},{"$f":"IF($B500=\"N\",\"\",IF(LEN('Enrollment Form'!$Y507)=0,\"\",IF(LEN('Enrollment Form'!$Y507)<>5,\"N\",\"Y\")))","v":""},{"$f":"IF($B500=\"N\",\"\",IF(LEN('Enrollment Form'!$AD507=0),\"\",IF(LEN('Enrollment Form'!$AD507)<>5,\"N\",\"Y\")))","v":""},{"$f":"IF($B500=\"N\",\"\",IF(LEN('Enrollment Form'!$BL507=0),\"\",IF(LEN('Enrollment Form'!$BL507)<>5,\"N\",\"Y\")))","v":""},{"$f":"IF($B500=\"N\",\"\",IF(LEN('Enrollment Form'!$AE507)=0,\"\",IF(LEN('Enrollment Form'!$AE507)<>10,\"N\",\"Y\")))","v":""},{"$f":"IF($B500=\"N\",\"\",IF(LEN('Enrollment Form'!$AF507)=0,\"\",IF(LEN('Enrollment Form'!$AF507)<>10,\"N\",\"Y\")))","v":""},{"$f":"IF('Enrollment Form'!$O507<>\"Graded\",\"-\",IF(AND('Enrollment Form'!$O507=\"Graded\",'Enrollment Form'!$AO507<>\"\"),\"Y\",\"N\"))","v":"-"},{"$f":"IF($B500=\"N\",\"\",IF(OR('Enrollment Form'!$B507<>\"Subscriber\",'Enrollment Form'!$C507=\"ROC\"),\"-\",IF(AND('Enrollment Form'!$B507=\"Subscriber\",'Enrollment Form'!$C507=\"Enroll\",'Enrollment Form'!$AJ507<>\"\"),\"Y\",\"N\")))","v":""},{"$f":"IF($B500=\"N\",\"\",IF(OR('Enrollment Form'!$B507<>\"Subscriber\",'Enrollment Form'!$C507=\"ROC\"),\"-\",IF(AND('Enrollment Form'!$B507=\"Subscriber\",'Enrollment Form'!$C507=\"Enroll\",'Enrollment Form'!$AK507<>\"\"),\"Y\",\"N\")))","v":""},{"$f":"IF($B500=\"N\",\"\",IF(OR('Enrollment Form'!$B507<>\"Subscriber\",'Enrollment Form'!$C507=\"ROC\"),\"-\",IF(AND('Enrollment Form'!$B507=\"Subscriber\",'Enrollment Form'!$C507=\"Enroll\",'Enrollment Form'!$AL507<>\"\"),\"Y\",\"N\")))","v":""},{"$f":"IF($B500=\"N\",\"\",IF(OR('Enrollment Form'!$B507<>\"Subscriber\",'Enrollment Form'!$C507=\"ROC\"),\"-\",IF(AND('Enrollment Form'!$B507=\"Subscriber\",'Enrollment Form'!$C507=\"Enroll\",'Enrollment Form'!$AM507<>\"\"),\"Y\",\"N\")))","v":""},{"$f":"IF($B500=\"N\",\"\",IF(OR('Enrollment Form'!$B507<>\"Subscriber\",'Enrollment Form'!$C507=\"ROC\"),\"-\",IF(AND('Enrollment Form'!$B507=\"Subscriber\",'Enrollment Form'!$C507=\"Enroll\",'Enrollment Form'!$AN507<>\"\"),\"Y\",\"N\")))","v":""},{"$f":"IF($B500=\"N\",\"\",IF(OR('Enrollment Form'!$B507<>\"Subscriber\",'Enrollment Form'!$C507=\"ROC\"),\"-\",IF(AND('Enrollment Form'!$B507=\"Subscriber\",'Enrollment Form'!$C507=\"Enroll\",'Enrollment Form'!$AP507<>\"\"),\"Y\",\"N\")))","v":""},{"$f":"IF($B500=\"N\",\"\",IF($Q500=\"-\",\"-\",IF(AND($Q500=\"Y\",'Enrollment Form'!$AP507=\"No\"),\"-\",IF(AND($Q500=\"Y\",'Enrollment Form'!$AP507=\"Yes\",'Enrollment Form'!$AQ507<>\"\"),\"Y\",\"N\"))))","v":""},{"$f":"IF($B500=\"N\",\"\",IF(OR('Enrollment Form'!$B507<>\"Subscriber\",'Enrollment Form'!$C507=\"ROC\"),\"-\",IF(AND('Enrollment Form'!$B507=\"Subscriber\",'Enrollment Form'!$C507=\"Enroll\",'Enrollment Form'!$CO507<>\"\"),\"Y\",\"N\")))","v":""},{"$f":"IF($B500=\"N\",\"\",IF($S500=\"-\",\"-\",IF(AND($S500=\"Y\",'Enrollment Form'!$CO507=\"No\"),\"-\",IF(AND($S500=\"Y\",'Enrollment Form'!$CO507=\"Yes\",'Enrollment Form'!$CP507<>\"\"),\"Y\",\"N\"))))","v":""},{"$f":"IF(OR('Enrollment Form'!$AV507=\"Yes\",'Enrollment Form'!$AV507=\"\"),\"-\",IF(AND('Enrollment Form'!$AV507=\"No\",ISERROR(FIND(\"HMO\",VLOOKUP('Enrollment Form'!G507,'Enrollment Form'!H$11:J$1000,3,FALSE),1))=FALSE,COUNTA('Enrollment Form'!$AW507:$AZ507)=4),\"Y\",\"N\"))","v":"-"},{"$f":"IF($B500=\"N\",\"\",IF('Enrollment Form'!$B507=\"Subscriber\",\"-\",IF(COUNTA('Enrollment Form'!$BE507,'Enrollment Form'!$BG507)=2,\"Y\",\"N\")))","v":""},{"$f":"IF($B500=\"N\",\"\",IF(OR('Enrollment Form'!$AU507=\"\",'Enrollment Form'!$AU507=\"No\"),\"-\",IF(AND('Enrollment Form'!$AU507=\"Yes\",COUNTA('Enrollment Form'!$CK507)=1),\"Y\",\"N\")))","v":""},{"$f":"IF(OR('Enrollment Form'!$CK507=\"\",'Enrollment Form'!$CK507=\"No\"),\"-\",IF(COUNTA('Enrollment Form'!$CM507:$CN507)=2,\"Y\",\"N\"))","v":"-"},{"$f":"IF($B500=\"N\",\"\",IF(COUNTIF('Enrollment Form'!$CZ507:$DO507,\"Other\")=COUNTA('Enrollment Form'!$DF507,'Enrollment Form'!$DA507,'Enrollment Form'!$DK507,'Enrollment Form'!$DP507),\"Y\",\"N\"))","v":""},{"$f":"IF($B500=\"N\",\"\",IF(OR('Enrollment Form'!B507<>\"Subscriber\",'Enrollment Form'!C507=\"ROC\",COUNTIF('Enrollment Form'!AS507:AT507,\"Yes\")>=1),\"-\",IF(AND('Enrollment Form'!C507=\"Enroll\",COUNTIF('Enrollment Form'!AS507:AT507,\"No\")=2,'Enrollment Form'!AU507=\"\"),\"N\",\"Y\")))","v":""},{"$f":"IF(OR(B500=\"N\",'Enrollment Form'!B507<>\"Subscriber\",'Enrollment Form'!C507=\"ROC\",'Enrollment Form'!O507<>\"Multiple of Salary\"),\"-\",IF(COUNTA('Enrollment Form'!T507:U507)<2,\"N\",\"Y\"))","v":"-"},{"$f":"IF(B500=\"N\",\"\",IF(OR('Enrollment Form'!C507=\"ROC\",'Enrollment Form'!B507<>\"Subscriber\",'Enrollment Form'!O507=\"Waive\",'Enrollment Form'!O507=\"\"),\"-\",IF('Enrollment Form'!P507=\"\",\"N\",\"Y\")))","v":""},{"$f":"IF($B500=\"N\",\"\",IF(AND('Enrollment Form'!$C507=\"ROC\",'Enrollment Form'!$DS507<>\"\"),\"Y\",IF(AND('Enrollment Form'!$C507=\"ROC\",'Enrollment Form'!$DS507=\"\"),\"N\",IF(AND('Enrollment Form'!$C507=\"Enroll\",'Enrollment Form'!$B507=\"Subscriber\",'Enrollment Form'!$CQ507=\"No\",'Enrollment Form'!$DS507=\"\"),\"N\",IF(AND('Enrollment Form'!$C507=\"Enroll\",'Enrollment Form'!$B507=\"Subscriber\",'Enrollment Form'!$CQ507=\"Yes\"),\"-\",\"Y\")))))","v":""},{"$f":"IF($B500=\"N\",\"\",IF(AND('Enrollment Form'!$C507=\"ROC\",'Enrollment Form'!$DT507<>\"\"),\"Y\",IF(AND('Enrollment Form'!$C507=\"ROC\",'Enrollment Form'!$DT507=\"\"),\"N\",IF(AND('Enrollment Form'!$C507=\"Enroll\",'Enrollment Form'!$B507=\"Subscriber\",'Enrollment Form'!$CQ507=\"No\",'Enrollment Form'!$DT507=\"\"),\"N\",IF(AND('Enrollment Form'!$C507=\"Enroll\",'Enrollment Form'!$B507=\"Subscriber\",'Enrollment Form'!$CQ507=\"Yes\"),\"-\",\"Y\")))))","v":""},{"$f":"IF('Enrollment Form'!AH507=\"\",\"\",IF(ISERROR(SEARCH(\".\",'Enrollment Form'!AH507,SEARCH(\"@\",'Enrollment Form'!AH507))),\"N\",\"Y\"))","v":""},{"$f":"IF(OR($B500=\"N\",'Enrollment Form'!$G507=\"\"),\"\",IF('Enrollment Form'!$B507<>\"Subscriber\",\"-\",IF(COUNTIF('Enrollment Form'!$AS507:$AT507,\"Yes\")=2,\"N\",\"Y\")))","v":""},{"$f":"IF(OR('Enrollment Form'!$CC507=\"\",'Enrollment Form'!$CC507=\"No\"),\"-\",IF(AND('Enrollment Form'!$CC507=\"Yes\",'Enrollment Form'!$CD507=\"\"),\"N\",\"Y\"))","v":"-"},{"$f":"IF(OR('Enrollment Form'!$CE507=\"\",'Enrollment Form'!$CE507=\"No\"),\"-\",IF(AND('Enrollment Form'!$CE507=\"Yes\",'Enrollment Form'!$CF507=\"\"),\"N\",\"Y\"))","v":"-"},{"$f":"IF(OR('Enrollment Form'!$CG507=\"\",'Enrollment Form'!$CG507=\"No\"),\"-\",IF(AND('Enrollment Form'!$CG507=\"Yes\",'Enrollment Form'!$CH507=\"\"),\"N\",\"Y\"))","v":"-"},{"$f":"IF(OR('Enrollment Form'!$CG507=\"\",'Enrollment Form'!$CG507=\"No\"),\"-\",IF(AND('Enrollment Form'!$CG507=\"Yes\",'Enrollment Form'!$CI507=\"\"),\"N\",\"Y\"))","v":"-"},{"$f":"IF('Enrollment Form'!B507<>\"Subscriber\",\"-\",IF(AND('Enrollment Form'!B507=\"Subscriber\",'Enrollment Form'!C507=\"Enroll\",'Enrollment Form'!AA507=\"\"),\"N\",\"Y\"))","v":"-"},{"$f":"IF(OR('Enrollment Form'!B507=\"Subscriber\",'Enrollment Form'!B507=\"\"),\"-\",IF('Enrollment Form'!BI507=\"\",\"N\",\"Y\"))","v":"-"},{"$f":"IF('Enrollment Form'!B507<>\"Subscriber\",\"-\",IF(AND('Enrollment Form'!B507=\"Subscriber\",'Enrollment Form'!G507=\"\"),\"N\",\"Y\"))","v":"-"},{"$f":"IF('Enrollment Form'!A507=\"\",\"\",IF('Enrollment Form'!B507=\"Subscriber\",\"-\",IF(AND('Enrollment Form'!B507<>\"Subscriber\",'Enrollment Form'!G507='Enrollment Form'!H507),\"N\",\"Y\")))","v":""},0]
[508,{"$f":"IF('Enrollment Form'!$A508<>\"\",\"Y\",\"N\")","v":"N"},{"$f":"IF(AND('Enrollment Form'!$B508=\"\",'Enrollment Form'!$C508<>\"\"),\"N\",IF($B501=\"N\",\"\",\"Y\"))","v":""},{"$f":"IF(OR($B501=\"N\",'Enrollment Form'!G508=\"\"),\"\",IF('Enrollment Form'!$B508<>\"Subscriber\",\"\",IF('Enrollment Form'!$G508='Enrollment Form'!$H508,\"Y\",\"N\")))","v":""},{"$f":"IF($B501=\"N\",\"\",IF(AND(COUNTIFS('Enrollment Form'!$H$11:$H$1000,'Enrollment Form'!$H508,'Enrollment Form'!$B$11:$B$1000,'Enrollment Form'!$B508)>1,'Enrollment Form'!$H508<>\"\"),\"N\",\"Y\"))","v":""},{"$f":"IF($B501=\"N\",\"\",IF(LEN('Enrollment Form'!$Y508)=0,\"\",IF(LEN('Enrollment Form'!$Y508)<>5,\"N\",\"Y\")))","v":""},{"$f":"IF($B501=\"N\",\"\",IF(LEN('Enrollment Form'!$AD508=0),\"\",IF(LEN('Enrollment Form'!$AD508)<>5,\"N\",\"Y\")))","v":""},{"$f":"IF($B501=\"N\",\"\",IF(LEN('Enrollment Form'!$BL508=0),\"\",IF(LEN('Enrollment Form'!$BL508)<>5,\"N\",\"Y\")))","v":""},{"$f":"IF($B501=\"N\",\"\",IF(LEN('Enrollment Form'!$AE508)=0,\"\",IF(LEN('Enrollment Form'!$AE508)<>10,\"N\",\"Y\")))","v":""},{"$f":"IF($B501=\"N\",\"\",IF(LEN('Enrollment Form'!$AF508)=0,\"\",IF(LEN('Enrollment Form'!$AF508)<>10,\"N\",\"Y\")))","v":""},{"$f":"IF('Enrollment Form'!$O508<>\"Graded\",\"-\",IF(AND('Enrollment Form'!$O508=\"Graded\",'Enrollment Form'!$AO508<>\"\"),\"Y\",\"N\"))","v":"-"},{"$f":"IF($B501=\"N\",\"\",IF(OR('Enrollment Form'!$B508<>\"Subscriber\",'Enrollment Form'!$C508=\"ROC\"),\"-\",IF(AND('Enrollment Form'!$B508=\"Subscriber\",'Enrollment Form'!$C508=\"Enroll\",'Enrollment Form'!$AJ508<>\"\"),\"Y\",\"N\")))","v":""},{"$f":"IF($B501=\"N\",\"\",IF(OR('Enrollment Form'!$B508<>\"Subscriber\",'Enrollment Form'!$C508=\"ROC\"),\"-\",IF(AND('Enrollment Form'!$B508=\"Subscriber\",'Enrollment Form'!$C508=\"Enroll\",'Enrollment Form'!$AK508<>\"\"),\"Y\",\"N\")))","v":""},{"$f":"IF($B501=\"N\",\"\",IF(OR('Enrollment Form'!$B508<>\"Subscriber\",'Enrollment Form'!$C508=\"ROC\"),\"-\",IF(AND('Enrollment Form'!$B508=\"Subscriber\",'Enrollment Form'!$C508=\"Enroll\",'Enrollment Form'!$AL508<>\"\"),\"Y\",\"N\")))","v":""},{"$f":"IF($B501=\"N\",\"\",IF(OR('Enrollment Form'!$B508<>\"Subscriber\",'Enrollment Form'!$C508=\"ROC\"),\"-\",IF(AND('Enrollment Form'!$B508=\"Subscriber\",'Enrollment Form'!$C508=\"Enroll\",'Enrollment Form'!$AM508<>\"\"),\"Y\",\"N\")))","v":""},{"$f":"IF($B501=\"N\",\"\",IF(OR('Enrollment Form'!$B508<>\"Subscriber\",'Enrollment Form'!$C508=\"ROC\"),\"-\",IF(AND('Enrollment Form'!$B508=\"Subscriber\",'Enrollment Form'!$C508=\"Enroll\",'Enrollment Form'!$AN508<>\"\"),\"Y\",\"N\")))","v":""},{"$f":"IF($B501=\"N\",\"\",IF(OR('Enrollment Form'!$B508<>\"Subscriber\",'Enrollment Form'!$C508=\"ROC\"),\"-\",IF(AND('Enrollment Form'!$B508=\"Subscriber\",'Enrollment Form'!$C508=\"Enroll\",'Enrollment Form'!$AP508<>\"\"),\"Y\",\"N\")))","v":""},{"$f":"IF($B501=\"N\",\"\",IF($Q501=\"-\",\"-\",IF(AND($Q501=\"Y\",'Enrollment Form'!$AP508=\"No\"),\"-\",IF(AND($Q501=\"Y\",'Enrollment Form'!$AP508=\"Yes\",'Enrollment Form'!$AQ508<>\"\"),\"Y\",\"N\"))))","v":""},{"$f":"IF($B501=\"N\",\"\",IF(OR('Enrollment Form'!$B508<>\"Subscriber\",'Enrollment Form'!$C508=\"ROC\"),\"-\",IF(AND('Enrollment Form'!$B508=\"Subscriber\",'Enrollment Form'!$C508=\"Enroll\",'Enrollment Form'!$CO508<>\"\"),\"Y\",\"N\")))","v":""},{"$f":"IF($B501=\"N\",\"\",IF($S501=\"-\",\"-\",IF(AND($S501=\"Y\",'Enrollment Form'!$CO508=\"No\"),\"-\",IF(AND($S501=\"Y\",'Enrollment Form'!$CO508=\"Yes\",'Enrollment Form'!$CP508<>\"\"),\"Y\",\"N\"))))","v":""},{"$f":"IF(OR('Enrollment Form'!$AV508=\"Yes\",'Enrollment Form'!$AV508=\"\"),\"-\",IF(AND('Enrollment Form'!$AV508=\"No\",ISERROR(FIND(\"HMO\",VLOOKUP('Enrollment Form'!G508,'Enrollment Form'!H$11:J$1000,3,FALSE),1))=FALSE,COUNTA('Enrollment Form'!$AW508:$AZ508)=4),\"Y\",\"N\"))","v":"-"},{"$f":"IF($B501=\"N\",\"\",IF('Enrollment Form'!$B508=\"Subscriber\",\"-\",IF(COUNTA('Enrollment Form'!$BE508,'Enrollment Form'!$BG508)=2,\"Y\",\"N\")))","v":""},{"$f":"IF($B501=\"N\",\"\",IF(OR('Enrollment Form'!$AU508=\"\",'Enrollment Form'!$AU508=\"No\"),\"-\",IF(AND('Enrollment Form'!$AU508=\"Yes\",COUNTA('Enrollment Form'!$CK508)=1),\"Y\",\"N\")))","v":""},{"$f":"IF(OR('Enrollment Form'!$CK508=\"\",'Enrollment Form'!$CK508=\"No\"),\"-\",IF(COUNTA('Enrollment Form'!$CM508:$CN508)=2,\"Y\",\"N\"))","v":"-"},{"$f":"IF($B501=\"N\",\"\",IF(COUNTIF('Enrollment Form'!$CZ508:$DO508,\"Other\")=COUNTA('Enrollment Form'!$DF508,'Enrollment Form'!$DA508,'Enrollment Form'!$DK508,'Enrollment Form'!$DP508),\"Y\",\"N\"))","v":""},{"$f":"IF($B501=\"N\",\"\",IF(OR('Enrollment Form'!B508<>\"Subscriber\",'Enrollment Form'!C508=\"ROC\",COUNTIF('Enrollment Form'!AS508:AT508,\"Yes\")>=1),\"-\",IF(AND('Enrollment Form'!C508=\"Enroll\",COUNTIF('Enrollment Form'!AS508:AT508,\"No\")=2,'Enrollment Form'!AU508=\"\"),\"N\",\"Y\")))","v":""},{"$f":"IF(OR(B501=\"N\",'Enrollment Form'!B508<>\"Subscriber\",'Enrollment Form'!C508=\"ROC\",'Enrollment Form'!O508<>\"Multiple of Salary\"),\"-\",IF(COUNTA('Enrollment Form'!T508:U508)<2,\"N\",\"Y\"))","v":"-"},{"$f":"IF(B501=\"N\",\"\",IF(OR('Enrollment Form'!C508=\"ROC\",'Enrollment Form'!B508<>\"Subscriber\",'Enrollment Form'!O508=\"Waive\",'Enrollment Form'!O508=\"\"),\"-\",IF('Enrollment Form'!P508=\"\",\"N\",\"Y\")))","v":""},{"$f":"IF($B501=\"N\",\"\",IF(AND('Enrollment Form'!$C508=\"ROC\",'Enrollment Form'!$DS508<>\"\"),\"Y\",IF(AND('Enrollment Form'!$C508=\"ROC\",'Enrollment Form'!$DS508=\"\"),\"N\",IF(AND('Enrollment Form'!$C508=\"Enroll\",'Enrollment Form'!$B508=\"Subscriber\",'Enrollment Form'!$CQ508=\"No\",'Enrollment Form'!$DS508=\"\"),\"N\",IF(AND('Enrollment Form'!$C508=\"Enroll\",'Enrollment Form'!$B508=\"Subscriber\",'Enrollment Form'!$CQ508=\"Yes\"),\"-\",\"Y\")))))","v":""},{"$f":"IF($B501=\"N\",\"\",IF(AND('Enrollment Form'!$C508=\"ROC\",'Enrollment Form'!$DT508<>\"\"),\"Y\",IF(AND('Enrollment Form'!$C508=\"ROC\",'Enrollment Form'!$DT508=\"\"),\"N\",IF(AND('Enrollment Form'!$C508=\"Enroll\",'Enrollment Form'!$B508=\"Subscriber\",'Enrollment Form'!$CQ508=\"No\",'Enrollment Form'!$DT508=\"\"),\"N\",IF(AND('Enrollment Form'!$C508=\"Enroll\",'Enrollment Form'!$B508=\"Subscriber\",'Enrollment Form'!$CQ508=\"Yes\"),\"-\",\"Y\")))))","v":""},{"$f":"IF('Enrollment Form'!AH508=\"\",\"\",IF(ISERROR(SEARCH(\".\",'Enrollment Form'!AH508,SEARCH(\"@\",'Enrollment Form'!AH508))),\"N\",\"Y\"))","v":""},{"$f":"IF(OR($B501=\"N\",'Enrollment Form'!$G508=\"\"),\"\",IF('Enrollment Form'!$B508<>\"Subscriber\",\"-\",IF(COUNTIF('Enrollment Form'!$AS508:$AT508,\"Yes\")=2,\"N\",\"Y\")))","v":""},{"$f":"IF(OR('Enrollment Form'!$CC508=\"\",'Enrollment Form'!$CC508=\"No\"),\"-\",IF(AND('Enrollment Form'!$CC508=\"Yes\",'Enrollment Form'!$CD508=\"\"),\"N\",\"Y\"))","v":"-"},{"$f":"IF(OR('Enrollment Form'!$CE508=\"\",'Enrollment Form'!$CE508=\"No\"),\"-\",IF(AND('Enrollment Form'!$CE508=\"Yes\",'Enrollment Form'!$CF508=\"\"),\"N\",\"Y\"))","v":"-"},{"$f":"IF(OR('Enrollment Form'!$CG508=\"\",'Enrollment Form'!$CG508=\"No\"),\"-\",IF(AND('Enrollment Form'!$CG508=\"Yes\",'Enrollment Form'!$CH508=\"\"),\"N\",\"Y\"))","v":"-"},{"$f":"IF(OR('Enrollment Form'!$CG508=\"\",'Enrollment Form'!$CG508=\"No\"),\"-\",IF(AND('Enrollment Form'!$CG508=\"Yes\",'Enrollment Form'!$CI508=\"\"),\"N\",\"Y\"))","v":"-"},{"$f":"IF('Enrollment Form'!B508<>\"Subscriber\",\"-\",IF(AND('Enrollment Form'!B508=\"Subscriber\",'Enrollment Form'!C508=\"Enroll\",'Enrollment Form'!AA508=\"\"),\"N\",\"Y\"))","v":"-"},{"$f":"IF(OR('Enrollment Form'!B508=\"Subscriber\",'Enrollment Form'!B508=\"\"),\"-\",IF('Enrollment Form'!BI508=\"\",\"N\",\"Y\"))","v":"-"},{"$f":"IF('Enrollment Form'!B508<>\"Subscriber\",\"-\",IF(AND('Enrollment Form'!B508=\"Subscriber\",'Enrollment Form'!G508=\"\"),\"N\",\"Y\"))","v":"-"},{"$f":"IF('Enrollment Form'!A508=\"\",\"\",IF('Enrollment Form'!B508=\"Subscriber\",\"-\",IF(AND('Enrollment Form'!B508<>\"Subscriber\",'Enrollment Form'!G508='Enrollment Form'!H508),\"N\",\"Y\")))","v":""},0]
[509,{"$f":"IF('Enrollment Form'!$A509<>\"\",\"Y\",\"N\")","v":"N"},{"$f":"IF(AND('Enrollment Form'!$B509=\"\",'Enrollment Form'!$C509<>\"\"),\"N\",IF($B502=\"N\",\"\",\"Y\"))","v":""},{"$f":"IF(OR($B502=\"N\",'Enrollment Form'!G509=\"\"),\"\",IF('Enrollment Form'!$B509<>\"Subscriber\",\"\",IF('Enrollment Form'!$G509='Enrollment Form'!$H509,\"Y\",\"N\")))","v":""},{"$f":"IF($B502=\"N\",\"\",IF(AND(COUNTIFS('Enrollment Form'!$H$11:$H$1000,'Enrollment Form'!$H509,'Enrollment Form'!$B$11:$B$1000,'Enrollment Form'!$B509)>1,'Enrollment Form'!$H509<>\"\"),\"N\",\"Y\"))","v":""},{"$f":"IF($B502=\"N\",\"\",IF(LEN('Enrollment Form'!$Y509)=0,\"\",IF(LEN('Enrollment Form'!$Y509)<>5,\"N\",\"Y\")))","v":""},{"$f":"IF($B502=\"N\",\"\",IF(LEN('Enrollment Form'!$AD509=0),\"\",IF(LEN('Enrollment Form'!$AD509)<>5,\"N\",\"Y\")))","v":""},{"$f":"IF($B502=\"N\",\"\",IF(LEN('Enrollment Form'!$BL509=0),\"\",IF(LEN('Enrollment Form'!$BL509)<>5,\"N\",\"Y\")))","v":""},{"$f":"IF($B502=\"N\",\"\",IF(LEN('Enrollment Form'!$AE509)=0,\"\",IF(LEN('Enrollment Form'!$AE509)<>10,\"N\",\"Y\")))","v":""},{"$f":"IF($B502=\"N\",\"\",IF(LEN('Enrollment Form'!$AF509)=0,\"\",IF(LEN('Enrollment Form'!$AF509)<>10,\"N\",\"Y\")))","v":""},{"$f":"IF('Enrollment Form'!$O509<>\"Graded\",\"-\",IF(AND('Enrollment Form'!$O509=\"Graded\",'Enrollment Form'!$AO509<>\"\"),\"Y\",\"N\"))","v":"-"},{"$f":"IF($B502=\"N\",\"\",IF(OR('Enrollment Form'!$B509<>\"Subscriber\",'Enrollment Form'!$C509=\"ROC\"),\"-\",IF(AND('Enrollment Form'!$B509=\"Subscriber\",'Enrollment Form'!$C509=\"Enroll\",'Enrollment Form'!$AJ509<>\"\"),\"Y\",\"N\")))","v":""},{"$f":"IF($B502=\"N\",\"\",IF(OR('Enrollment Form'!$B509<>\"Subscriber\",'Enrollment Form'!$C509=\"ROC\"),\"-\",IF(AND('Enrollment Form'!$B509=\"Subscriber\",'Enrollment Form'!$C509=\"Enroll\",'Enrollment Form'!$AK509<>\"\"),\"Y\",\"N\")))","v":""},{"$f":"IF($B502=\"N\",\"\",IF(OR('Enrollment Form'!$B509<>\"Subscriber\",'Enrollment Form'!$C509=\"ROC\"),\"-\",IF(AND('Enrollment Form'!$B509=\"Subscriber\",'Enrollment Form'!$C509=\"Enroll\",'Enrollment Form'!$AL509<>\"\"),\"Y\",\"N\")))","v":""},{"$f":"IF($B502=\"N\",\"\",IF(OR('Enrollment Form'!$B509<>\"Subscriber\",'Enrollment Form'!$C509=\"ROC\"),\"-\",IF(AND('Enrollment Form'!$B509=\"Subscriber\",'Enrollment Form'!$C509=\"Enroll\",'Enrollment Form'!$AM509<>\"\"),\"Y\",\"N\")))","v":""},{"$f":"IF($B502=\"N\",\"\",IF(OR('Enrollment Form'!$B509<>\"Subscriber\",'Enrollment Form'!$C509=\"ROC\"),\"-\",IF(AND('Enrollment Form'!$B509=\"Subscriber\",'Enrollment Form'!$C509=\"Enroll\",'Enrollment Form'!$AN509<>\"\"),\"Y\",\"N\")))","v":""},{"$f":"IF($B502=\"N\",\"\",IF(OR('Enrollment Form'!$B509<>\"Subscriber\",'Enrollment Form'!$C509=\"ROC\"),\"-\",IF(AND('Enrollment Form'!$B509=\"Subscriber\",'Enrollment Form'!$C509=\"Enroll\",'Enrollment Form'!$AP509<>\"\"),\"Y\",\"N\")))","v":""},{"$f":"IF($B502=\"N\",\"\",IF($Q502=\"-\",\"-\",IF(AND($Q502=\"Y\",'Enrollment Form'!$AP509=\"No\"),\"-\",IF(AND($Q502=\"Y\",'Enrollment Form'!$AP509=\"Yes\",'Enrollment Form'!$AQ509<>\"\"),\"Y\",\"N\"))))","v":""},{"$f":"IF($B502=\"N\",\"\",IF(OR('Enrollment Form'!$B509<>\"Subscriber\",'Enrollment Form'!$C509=\"ROC\"),\"-\",IF(AND('Enrollment Form'!$B509=\"Subscriber\",'Enrollment Form'!$C509=\"Enroll\",'Enrollment Form'!$CO509<>\"\"),\"Y\",\"N\")))","v":""},{"$f":"IF($B502=\"N\",\"\",IF($S502=\"-\",\"-\",IF(AND($S502=\"Y\",'Enrollment Form'!$CO509=\"No\"),\"-\",IF(AND($S502=\"Y\",'Enrollment Form'!$CO509=\"Yes\",'Enrollment Form'!$CP509<>\"\"),\"Y\",\"N\"))))","v":""},{"$f":"IF(OR('Enrollment Form'!$AV509=\"Yes\",'Enrollment Form'!$AV509=\"\"),\"-\",IF(AND('Enrollment Form'!$AV509=\"No\",ISERROR(FIND(\"HMO\",VLOOKUP('Enrollment Form'!G509,'Enrollment Form'!H$11:J$1000,3,FALSE),1))=FALSE,COUNTA('Enrollment Form'!$AW509:$AZ509)=4),\"Y\",\"N\"))","v":"-"},{"$f":"IF($B502=\"N\",\"\",IF('Enrollment Form'!$B509=\"Subscriber\",\"-\",IF(COUNTA('Enrollment Form'!$BE509,'Enrollment Form'!$BG509)=2,\"Y\",\"N\")))","v":""},{"$f":"IF($B502=\"N\",\"\",IF(OR('Enrollment Form'!$AU509=\"\",'Enrollment Form'!$AU509=\"No\"),\"-\",IF(AND('Enrollment Form'!$AU509=\"Yes\",COUNTA('Enrollment Form'!$CK509)=1),\"Y\",\"N\")))","v":""},{"$f":"IF(OR('Enrollment Form'!$CK509=\"\",'Enrollment Form'!$CK509=\"No\"),\"-\",IF(COUNTA('Enrollment Form'!$CM509:$CN509)=2,\"Y\",\"N\"))","v":"-"},{"$f":"IF($B502=\"N\",\"\",IF(COUNTIF('Enrollment Form'!$CZ509:$DO509,\"Other\")=COUNTA('Enrollment Form'!$DF509,'Enrollment Form'!$DA509,'Enrollment Form'!$DK509,'Enrollment Form'!$DP509),\"Y\",\"N\"))","v":""},{"$f":"IF($B502=\"N\",\"\",IF(OR('Enrollment Form'!B509<>\"Subscriber\",'Enrollment Form'!C509=\"ROC\",COUNTIF('Enrollment Form'!AS509:AT509,\"Yes\")>=1),\"-\",IF(AND('Enrollment Form'!C509=\"Enroll\",COUNTIF('Enrollment Form'!AS509:AT509,\"No\")=2,'Enrollment Form'!AU509=\"\"),\"N\",\"Y\")))","v":""},{"$f":"IF(OR(B502=\"N\",'Enrollment Form'!B509<>\"Subscriber\",'Enrollment Form'!C509=\"ROC\",'Enrollment Form'!O509<>\"Multiple of Salary\"),\"-\",IF(COUNTA('Enrollment Form'!T509:U509)<2,\"N\",\"Y\"))","v":"-"},{"$f":"IF(B502=\"N\",\"\",IF(OR('Enrollment Form'!C509=\"ROC\",'Enrollment Form'!B509<>\"Subscriber\",'Enrollment Form'!O509=\"Waive\",'Enrollment Form'!O509=\"\"),\"-\",IF('Enrollment Form'!P509=\"\",\"N\",\"Y\")))","v":""},{"$f":"IF($B502=\"N\",\"\",IF(AND('Enrollment Form'!$C509=\"ROC\",'Enrollment Form'!$DS509<>\"\"),\"Y\",IF(AND('Enrollment Form'!$C509=\"ROC\",'Enrollment Form'!$DS509=\"\"),\"N\",IF(AND('Enrollment Form'!$C509=\"Enroll\",'Enrollment Form'!$B509=\"Subscriber\",'Enrollment Form'!$CQ509=\"No\",'Enrollment Form'!$DS509=\"\"),\"N\",IF(AND('Enrollment Form'!$C509=\"Enroll\",'Enrollment Form'!$B509=\"Subscriber\",'Enrollment Form'!$CQ509=\"Yes\"),\"-\",\"Y\")))))","v":""},{"$f":"IF($B502=\"N\",\"\",IF(AND('Enrollment Form'!$C509=\"ROC\",'Enrollment Form'!$DT509<>\"\"),\"Y\",IF(AND('Enrollment Form'!$C509=\"ROC\",'Enrollment Form'!$DT509=\"\"),\"N\",IF(AND('Enrollment Form'!$C509=\"Enroll\",'Enrollment Form'!$B509=\"Subscriber\",'Enrollment Form'!$CQ509=\"No\",'Enrollment Form'!$DT509=\"\"),\"N\",IF(AND('Enrollment Form'!$C509=\"Enroll\",'Enrollment Form'!$B509=\"Subscriber\",'Enrollment Form'!$CQ509=\"Yes\"),\"-\",\"Y\")))))","v":""},{"$f":"IF('Enrollment Form'!AH509=\"\",\"\",IF(ISERROR(SEARCH(\".\",'Enrollment Form'!AH509,SEARCH(\"@\",'Enrollment Form'!AH509))),\"N\",\"Y\"))","v":""},{"$f":"IF(OR($B502=\"N\",'Enrollment Form'!$G509=\"\"),\"\",IF('Enrollment Form'!$B509<>\"Subscriber\",\"-\",IF(COUNTIF('Enrollment Form'!$AS509:$AT509,\"Yes\")=2,\"N\",\"Y\")))","v":""},{"$f":"IF(OR('Enrollment Form'!$CC509=\"\",'Enrollment Form'!$CC509=\"No\"),\"-\",IF(AND('Enrollment Form'!$CC509=\"Yes\",'Enrollment Form'!$CD509=\"\"),\"N\",\"Y\"))","v":"-"},{"$f":"IF(OR('Enrollment Form'!$CE509=\"\",'Enrollment Form'!$CE509=\"No\"),\"-\",IF(AND('Enrollment Form'!$CE509=\"Yes\",'Enrollment Form'!$CF509=\"\"),\"N\",\"Y\"))","v":"-"},{"$f":"IF(OR('Enrollment Form'!$CG509=\"\",'Enrollment Form'!$CG509=\"No\"),\"-\",IF(AND('Enrollment Form'!$CG509=\"Yes\",'Enrollment Form'!$CH509=\"\"),\"N\",\"Y\"))","v":"-"},{"$f":"IF(OR('Enrollment Form'!$CG509=\"\",'Enrollment Form'!$CG509=\"No\"),\"-\",IF(AND('Enrollment Form'!$CG509=\"Yes\",'Enrollment Form'!$CI509=\"\"),\"N\",\"Y\"))","v":"-"},{"$f":"IF('Enrollment Form'!B509<>\"Subscriber\",\"-\",IF(AND('Enrollment Form'!B509=\"Subscriber\",'Enrollment Form'!C509=\"Enroll\",'Enrollment Form'!AA509=\"\"),\"N\",\"Y\"))","v":"-"},{"$f":"IF(OR('Enrollment Form'!B509=\"Subscriber\",'Enrollment Form'!B509=\"\"),\"-\",IF('Enrollment Form'!BI509=\"\",\"N\",\"Y\"))","v":"-"},{"$f":"IF('Enrollment Form'!B509<>\"Subscriber\",\"-\",IF(AND('Enrollment Form'!B509=\"Subscriber\",'Enrollment Form'!G509=\"\"),\"N\",\"Y\"))","v":"-"},{"$f":"IF('Enrollment Form'!A509=\"\",\"\",IF('Enrollment Form'!B509=\"Subscriber\",\"-\",IF(AND('Enrollment Form'!B509<>\"Subscriber\",'Enrollment Form'!G509='Enrollment Form'!H509),\"N\",\"Y\")))","v":""},0]
[510,{"$f":"IF('Enrollment Form'!$A510<>\"\",\"Y\",\"N\")","v":"N"},{"$f":"IF(AND('Enrollment Form'!$B510=\"\",'Enrollment Form'!$C510<>\"\"),\"N\",IF($B503=\"N\",\"\",\"Y\"))","v":""},{"$f":"IF(OR($B503=\"N\",'Enrollment Form'!G510=\"\"),\"\",IF('Enrollment Form'!$B510<>\"Subscriber\",\"\",IF('Enrollment Form'!$G510='Enrollment Form'!$H510,\"Y\",\"N\")))","v":""},{"$f":"IF($B503=\"N\",\"\",IF(AND(COUNTIFS('Enrollment Form'!$H$11:$H$1000,'Enrollment Form'!$H510,'Enrollment Form'!$B$11:$B$1000,'Enrollment Form'!$B510)>1,'Enrollment Form'!$H510<>\"\"),\"N\",\"Y\"))","v":""},{"$f":"IF($B503=\"N\",\"\",IF(LEN('Enrollment Form'!$Y510)=0,\"\",IF(LEN('Enrollment Form'!$Y510)<>5,\"N\",\"Y\")))","v":""},{"$f":"IF($B503=\"N\",\"\",IF(LEN('Enrollment Form'!$AD510=0),\"\",IF(LEN('Enrollment Form'!$AD510)<>5,\"N\",\"Y\")))","v":""},{"$f":"IF($B503=\"N\",\"\",IF(LEN('Enrollment Form'!$BL510=0),\"\",IF(LEN('Enrollment Form'!$BL510)<>5,\"N\",\"Y\")))","v":""},{"$f":"IF($B503=\"N\",\"\",IF(LEN('Enrollment Form'!$AE510)=0,\"\",IF(LEN('Enrollment Form'!$AE510)<>10,\"N\",\"Y\")))","v":""},{"$f":"IF($B503=\"N\",\"\",IF(LEN('Enrollment Form'!$AF510)=0,\"\",IF(LEN('Enrollment Form'!$AF510)<>10,\"N\",\"Y\")))","v":""},{"$f":"IF('Enrollment Form'!$O510<>\"Graded\",\"-\",IF(AND('Enrollment Form'!$O510=\"Graded\",'Enrollment Form'!$AO510<>\"\"),\"Y\",\"N\"))","v":"-"},{"$f":"IF($B503=\"N\",\"\",IF(OR('Enrollment Form'!$B510<>\"Subscriber\",'Enrollment Form'!$C510=\"ROC\"),\"-\",IF(AND('Enrollment Form'!$B510=\"Subscriber\",'Enrollment Form'!$C510=\"Enroll\",'Enrollment Form'!$AJ510<>\"\"),\"Y\",\"N\")))","v":""},{"$f":"IF($B503=\"N\",\"\",IF(OR('Enrollment Form'!$B510<>\"Subscriber\",'Enrollment Form'!$C510=\"ROC\"),\"-\",IF(AND('Enrollment Form'!$B510=\"Subscriber\",'Enrollment Form'!$C510=\"Enroll\",'Enrollment Form'!$AK510<>\"\"),\"Y\",\"N\")))","v":""},{"$f":"IF($B503=\"N\",\"\",IF(OR('Enrollment Form'!$B510<>\"Subscriber\",'Enrollment Form'!$C510=\"ROC\"),\"-\",IF(AND('Enrollment Form'!$B510=\"Subscriber\",'Enrollment Form'!$C510=\"Enroll\",'Enrollment Form'!$AL510<>\"\"),\"Y\",\"N\")))","v":""},{"$f":"IF($B503=\"N\",\"\",IF(OR('Enrollment Form'!$B510<>\"Subscriber\",'Enrollment Form'!$C510=\"ROC\"),\"-\",IF(AND('Enrollment Form'!$B510=\"Subscriber\",'Enrollment Form'!$C510=\"Enroll\",'Enrollment Form'!$AM510<>\"\"),\"Y\",\"N\")))","v":""},{"$f":"IF($B503=\"N\",\"\",IF(OR('Enrollment Form'!$B510<>\"Subscriber\",'Enrollment Form'!$C510=\"ROC\"),\"-\",IF(AND('Enrollment Form'!$B510=\"Subscriber\",'Enrollment Form'!$C510=\"Enroll\",'Enrollment Form'!$AN510<>\"\"),\"Y\",\"N\")))","v":""},{"$f":"IF($B503=\"N\",\"\",IF(OR('Enrollment Form'!$B510<>\"Subscriber\",'Enrollment Form'!$C510=\"ROC\"),\"-\",IF(AND('Enrollment Form'!$B510=\"Subscriber\",'Enrollment Form'!$C510=\"Enroll\",'Enrollment Form'!$AP510<>\"\"),\"Y\",\"N\")))","v":""},{"$f":"IF($B503=\"N\",\"\",IF($Q503=\"-\",\"-\",IF(AND($Q503=\"Y\",'Enrollment Form'!$AP510=\"No\"),\"-\",IF(AND($Q503=\"Y\",'Enrollment Form'!$AP510=\"Yes\",'Enrollment Form'!$AQ510<>\"\"),\"Y\",\"N\"))))","v":""},{"$f":"IF($B503=\"N\",\"\",IF(OR('Enrollment Form'!$B510<>\"Subscriber\",'Enrollment Form'!$C510=\"ROC\"),\"-\",IF(AND('Enrollment Form'!$B510=\"Subscriber\",'Enrollment Form'!$C510=\"Enroll\",'Enrollment Form'!$CO510<>\"\"),\"Y\",\"N\")))","v":""},{"$f":"IF($B503=\"N\",\"\",IF($S503=\"-\",\"-\",IF(AND($S503=\"Y\",'Enrollment Form'!$CO510=\"No\"),\"-\",IF(AND($S503=\"Y\",'Enrollment Form'!$CO510=\"Yes\",'Enrollment Form'!$CP510<>\"\"),\"Y\",\"N\"))))","v":""},{"$f":"IF(OR('Enrollment Form'!$AV510=\"Yes\",'Enrollment Form'!$AV510=\"\"),\"-\",IF(AND('Enrollment Form'!$AV510=\"No\",ISERROR(FIND(\"HMO\",VLOOKUP('Enrollment Form'!G510,'Enrollment Form'!H$11:J$1000,3,FALSE),1))=FALSE,COUNTA('Enrollment Form'!$AW510:$AZ510)=4),\"Y\",\"N\"))","v":"-"},{"$f":"IF($B503=\"N\",\"\",IF('Enrollment Form'!$B510=\"Subscriber\",\"-\",IF(COUNTA('Enrollment Form'!$BE510,'Enrollment Form'!$BG510)=2,\"Y\",\"N\")))","v":""},{"$f":"IF($B503=\"N\",\"\",IF(OR('Enrollment Form'!$AU510=\"\",'Enrollment Form'!$AU510=\"No\"),\"-\",IF(AND('Enrollment Form'!$AU510=\"Yes\",COUNTA('Enrollment Form'!$CK510)=1),\"Y\",\"N\")))","v":""},{"$f":"IF(OR('Enrollment Form'!$CK510=\"\",'Enrollment Form'!$CK510=\"No\"),\"-\",IF(COUNTA('Enrollment Form'!$CM510:$CN510)=2,\"Y\",\"N\"))","v":"-"},{"$f":"IF($B503=\"N\",\"\",IF(COUNTIF('Enrollment Form'!$CZ510:$DO510,\"Other\")=COUNTA('Enrollment Form'!$DF510,'Enrollment Form'!$DA510,'Enrollment Form'!$DK510,'Enrollment Form'!$DP510),\"Y\",\"N\"))","v":""},{"$f":"IF($B503=\"N\",\"\",IF(OR('Enrollment Form'!B510<>\"Subscriber\",'Enrollment Form'!C510=\"ROC\",COUNTIF('Enrollment Form'!AS510:AT510,\"Yes\")>=1),\"-\",IF(AND('Enrollment Form'!C510=\"Enroll\",COUNTIF('Enrollment Form'!AS510:AT510,\"No\")=2,'Enrollment Form'!AU510=\"\"),\"N\",\"Y\")))","v":""},{"$f":"IF(OR(B503=\"N\",'Enrollment Form'!B510<>\"Subscriber\",'Enrollment Form'!C510=\"ROC\",'Enrollment Form'!O510<>\"Multiple of Salary\"),\"-\",IF(COUNTA('Enrollment Form'!T510:U510)<2,\"N\",\"Y\"))","v":"-"},{"$f":"IF(B503=\"N\",\"\",IF(OR('Enrollment Form'!C510=\"ROC\",'Enrollment Form'!B510<>\"Subscriber\",'Enrollment Form'!O510=\"Waive\",'Enrollment Form'!O510=\"\"),\"-\",IF('Enrollment Form'!P510=\"\",\"N\",\"Y\")))","v":""},{"$f":"IF($B503=\"N\",\"\",IF(AND('Enrollment Form'!$C510=\"ROC\",'Enrollment Form'!$DS510<>\"\"),\"Y\",IF(AND('Enrollment Form'!$C510=\"ROC\",'Enrollment Form'!$DS510=\"\"),\"N\",IF(AND('Enrollment Form'!$C510=\"Enroll\",'Enrollment Form'!$B510=\"Subscriber\",'Enrollment Form'!$CQ510=\"No\",'Enrollment Form'!$DS510=\"\"),\"N\",IF(AND('Enrollment Form'!$C510=\"Enroll\",'Enrollment Form'!$B510=\"Subscriber\",'Enrollment Form'!$CQ510=\"Yes\"),\"-\",\"Y\")))))","v":""},{"$f":"IF($B503=\"N\",\"\",IF(AND('Enrollment Form'!$C510=\"ROC\",'Enrollment Form'!$DT510<>\"\"),\"Y\",IF(AND('Enrollment Form'!$C510=\"ROC\",'Enrollment Form'!$DT510=\"\"),\"N\",IF(AND('Enrollment Form'!$C510=\"Enroll\",'Enrollment Form'!$B510=\"Subscriber\",'Enrollment Form'!$CQ510=\"No\",'Enrollment Form'!$DT510=\"\"),\"N\",IF(AND('Enrollment Form'!$C510=\"Enroll\",'Enrollment Form'!$B510=\"Subscriber\",'Enrollment Form'!$CQ510=\"Yes\"),\"-\",\"Y\")))))","v":""},{"$f":"IF('Enrollment Form'!AH510=\"\",\"\",IF(ISERROR(SEARCH(\".\",'Enrollment Form'!AH510,SEARCH(\"@\",'Enrollment Form'!AH510))),\"N\",\"Y\"))","v":""},{"$f":"IF(OR($B503=\"N\",'Enrollment Form'!$G510=\"\"),\"\",IF('Enrollment Form'!$B510<>\"Subscriber\",\"-\",IF(COUNTIF('Enrollment Form'!$AS510:$AT510,\"Yes\")=2,\"N\",\"Y\")))","v":""},{"$f":"IF(OR('Enrollment Form'!$CC510=\"\",'Enrollment Form'!$CC510=\"No\"),\"-\",IF(AND('Enrollment Form'!$CC510=\"Yes\",'Enrollment Form'!$CD510=\"\"),\"N\",\"Y\"))","v":"-"},{"$f":"IF(OR('Enrollment Form'!$CE510=\"\",'Enrollment Form'!$CE510=\"No\"),\"-\",IF(AND('Enrollment Form'!$CE510=\"Yes\",'Enrollment Form'!$CF510=\"\"),\"N\",\"Y\"))","v":"-"},{"$f":"IF(OR('Enrollment Form'!$CG510=\"\",'Enrollment Form'!$CG510=\"No\"),\"-\",IF(AND('Enrollment Form'!$CG510=\"Yes\",'Enrollment Form'!$CH510=\"\"),\"N\",\"Y\"))","v":"-"},{"$f":"IF(OR('Enrollment Form'!$CG510=\"\",'Enrollment Form'!$CG510=\"No\"),\"-\",IF(AND('Enrollment Form'!$CG510=\"Yes\",'Enrollment Form'!$CI510=\"\"),\"N\",\"Y\"))","v":"-"},{"$f":"IF('Enrollment Form'!B510<>\"Subscriber\",\"-\",IF(AND('Enrollment Form'!B510=\"Subscriber\",'Enrollment Form'!C510=\"Enroll\",'Enrollment Form'!AA510=\"\"),\"N\",\"Y\"))","v":"-"},{"$f":"IF(OR('Enrollment Form'!B510=\"Subscriber\",'Enrollment Form'!B510=\"\"),\"-\",IF('Enrollment Form'!BI510=\"\",\"N\",\"Y\"))","v":"-"},{"$f":"IF('Enrollment Form'!B510<>\"Subscriber\",\"-\",IF(AND('Enrollment Form'!B510=\"Subscriber\",'Enrollment Form'!G510=\"\"),\"N\",\"Y\"))","v":"-"},{"$f":"IF('Enrollment Form'!A510=\"\",\"\",IF('Enrollment Form'!B510=\"Subscriber\",\"-\",IF(AND('Enrollment Form'!B510<>\"Subscriber\",'Enrollment Form'!G510='Enrollment Form'!H510),\"N\",\"Y\")))","v":""},0]
[511,{"$f":"IF('Enrollment Form'!$A511<>\"\",\"Y\",\"N\")","v":"N"},{"$f":"IF(AND('Enrollment Form'!$B511=\"\",'Enrollment Form'!$C511<>\"\"),\"N\",IF($B504=\"N\",\"\",\"Y\"))","v":""},{"$f":"IF(OR($B504=\"N\",'Enrollment Form'!G511=\"\"),\"\",IF('Enrollment Form'!$B511<>\"Subscriber\",\"\",IF('Enrollment Form'!$G511='Enrollment Form'!$H511,\"Y\",\"N\")))","v":""},{"$f":"IF($B504=\"N\",\"\",IF(AND(COUNTIFS('Enrollment Form'!$H$11:$H$1000,'Enrollment Form'!$H511,'Enrollment Form'!$B$11:$B$1000,'Enrollment Form'!$B511)>1,'Enrollment Form'!$H511<>\"\"),\"N\",\"Y\"))","v":""},{"$f":"IF($B504=\"N\",\"\",IF(LEN('Enrollment Form'!$Y511)=0,\"\",IF(LEN('Enrollment Form'!$Y511)<>5,\"N\",\"Y\")))","v":""},{"$f":"IF($B504=\"N\",\"\",IF(LEN('Enrollment Form'!$AD511=0),\"\",IF(LEN('Enrollment Form'!$AD511)<>5,\"N\",\"Y\")))","v":""},{"$f":"IF($B504=\"N\",\"\",IF(LEN('Enrollment Form'!$BL511=0),\"\",IF(LEN('Enrollment Form'!$BL511)<>5,\"N\",\"Y\")))","v":""},{"$f":"IF($B504=\"N\",\"\",IF(LEN('Enrollment Form'!$AE511)=0,\"\",IF(LEN('Enrollment Form'!$AE511)<>10,\"N\",\"Y\")))","v":""},{"$f":"IF($B504=\"N\",\"\",IF(LEN('Enrollment Form'!$AF511)=0,\"\",IF(LEN('Enrollment Form'!$AF511)<>10,\"N\",\"Y\")))","v":""},{"$f":"IF('Enrollment Form'!$O511<>\"Graded\",\"-\",IF(AND('Enrollment Form'!$O511=\"Graded\",'Enrollment Form'!$AO511<>\"\"),\"Y\",\"N\"))","v":"-"},{"$f":"IF($B504=\"N\",\"\",IF(OR('Enrollment Form'!$B511<>\"Subscriber\",'Enrollment Form'!$C511=\"ROC\"),\"-\",IF(AND('Enrollment Form'!$B511=\"Subscriber\",'Enrollment Form'!$C511=\"Enroll\",'Enrollment Form'!$AJ511<>\"\"),\"Y\",\"N\")))","v":""},{"$f":"IF($B504=\"N\",\"\",IF(OR('Enrollment Form'!$B511<>\"Subscriber\",'Enrollment Form'!$C511=\"ROC\"),\"-\",IF(AND('Enrollment Form'!$B511=\"Subscriber\",'Enrollment Form'!$C511=\"Enroll\",'Enrollment Form'!$AK511<>\"\"),\"Y\",\"N\")))","v":""},{"$f":"IF($B504=\"N\",\"\",IF(OR('Enrollment Form'!$B511<>\"Subscriber\",'Enrollment Form'!$C511=\"ROC\"),\"-\",IF(AND('Enrollment Form'!$B511=\"Subscriber\",'Enrollment Form'!$C511=\"Enroll\",'Enrollment Form'!$AL511<>\"\"),\"Y\",\"N\")))","v":""},{"$f":"IF($B504=\"N\",\"\",IF(OR('Enrollment Form'!$B511<>\"Subscriber\",'Enrollment Form'!$C511=\"ROC\"),\"-\",IF(AND('Enrollment Form'!$B511=\"Subscriber\",'Enrollment Form'!$C511=\"Enroll\",'Enrollment Form'!$AM511<>\"\"),\"Y\",\"N\")))","v":""},{"$f":"IF($B504=\"N\",\"\",IF(OR('Enrollment Form'!$B511<>\"Subscriber\",'Enrollment Form'!$C511=\"ROC\"),\"-\",IF(AND('Enrollment Form'!$B511=\"Subscriber\",'Enrollment Form'!$C511=\"Enroll\",'Enrollment Form'!$AN511<>\"\"),\"Y\",\"N\")))","v":""},{"$f":"IF($B504=\"N\",\"\",IF(OR('Enrollment Form'!$B511<>\"Subscriber\",'Enrollment Form'!$C511=\"ROC\"),\"-\",IF(AND('Enrollment Form'!$B511=\"Subscriber\",'Enrollment Form'!$C511=\"Enroll\",'Enrollment Form'!$AP511<>\"\"),\"Y\",\"N\")))","v":""},{"$f":"IF($B504=\"N\",\"\",IF($Q504=\"-\",\"-\",IF(AND($Q504=\"Y\",'Enrollment Form'!$AP511=\"No\"),\"-\",IF(AND($Q504=\"Y\",'Enrollment Form'!$AP511=\"Yes\",'Enrollment Form'!$AQ511<>\"\"),\"Y\",\"N\"))))","v":""},{"$f":"IF($B504=\"N\",\"\",IF(OR('Enrollment Form'!$B511<>\"Subscriber\",'Enrollment Form'!$C511=\"ROC\"),\"-\",IF(AND('Enrollment Form'!$B511=\"Subscriber\",'Enrollment Form'!$C511=\"Enroll\",'Enrollment Form'!$CO511<>\"\"),\"Y\",\"N\")))","v":""},{"$f":"IF($B504=\"N\",\"\",IF($S504=\"-\",\"-\",IF(AND($S504=\"Y\",'Enrollment Form'!$CO511=\"No\"),\"-\",IF(AND($S504=\"Y\",'Enrollment Form'!$CO511=\"Yes\",'Enrollment Form'!$CP511<>\"\"),\"Y\",\"N\"))))","v":""},{"$f":"IF(OR('Enrollment Form'!$AV511=\"Yes\",'Enrollment Form'!$AV511=\"\"),\"-\",IF(AND('Enrollment Form'!$AV511=\"No\",ISERROR(FIND(\"HMO\",VLOOKUP('Enrollment Form'!G511,'Enrollment Form'!H$11:J$1000,3,FALSE),1))=FALSE,COUNTA('Enrollment Form'!$AW511:$AZ511)=4),\"Y\",\"N\"))","v":"-"},{"$f":"IF($B504=\"N\",\"\",IF('Enrollment Form'!$B511=\"Subscriber\",\"-\",IF(COUNTA('Enrollment Form'!$BE511,'Enrollment Form'!$BG511)=2,\"Y\",\"N\")))","v":""},{"$f":"IF($B504=\"N\",\"\",IF(OR('Enrollment Form'!$AU511=\"\",'Enrollment Form'!$AU511=\"No\"),\"-\",IF(AND('Enrollment Form'!$AU511=\"Yes\",COUNTA('Enrollment Form'!$CK511)=1),\"Y\",\"N\")))","v":""},{"$f":"IF(OR('Enrollment Form'!$CK511=\"\",'Enrollment Form'!$CK511=\"No\"),\"-\",IF(COUNTA('Enrollment Form'!$CM511:$CN511)=2,\"Y\",\"N\"))","v":"-"},{"$f":"IF($B504=\"N\",\"\",IF(COUNTIF('Enrollment Form'!$CZ511:$DO511,\"Other\")=COUNTA('Enrollment Form'!$DF511,'Enrollment Form'!$DA511,'Enrollment Form'!$DK511,'Enrollment Form'!$DP511),\"Y\",\"N\"))","v":""},{"$f":"IF($B504=\"N\",\"\",IF(OR('Enrollment Form'!B511<>\"Subscriber\",'Enrollment Form'!C511=\"ROC\",COUNTIF('Enrollment Form'!AS511:AT511,\"Yes\")>=1),\"-\",IF(AND('Enrollment Form'!C511=\"Enroll\",COUNTIF('Enrollment Form'!AS511:AT511,\"No\")=2,'Enrollment Form'!AU511=\"\"),\"N\",\"Y\")))","v":""},{"$f":"IF(OR(B504=\"N\",'Enrollment Form'!B511<>\"Subscriber\",'Enrollment Form'!C511=\"ROC\",'Enrollment Form'!O511<>\"Multiple of Salary\"),\"-\",IF(COUNTA('Enrollment Form'!T511:U511)<2,\"N\",\"Y\"))","v":"-"},{"$f":"IF(B504=\"N\",\"\",IF(OR('Enrollment Form'!C511=\"ROC\",'Enrollment Form'!B511<>\"Subscriber\",'Enrollment Form'!O511=\"Waive\",'Enrollment Form'!O511=\"\"),\"-\",IF('Enrollment Form'!P511=\"\",\"N\",\"Y\")))","v":""},{"$f":"IF($B504=\"N\",\"\",IF(AND('Enrollment Form'!$C511=\"ROC\",'Enrollment Form'!$DS511<>\"\"),\"Y\",IF(AND('Enrollment Form'!$C511=\"ROC\",'Enrollment Form'!$DS511=\"\"),\"N\",IF(AND('Enrollment Form'!$C511=\"Enroll\",'Enrollment Form'!$B511=\"Subscriber\",'Enrollment Form'!$CQ511=\"No\",'Enrollment Form'!$DS511=\"\"),\"N\",IF(AND('Enrollment Form'!$C511=\"Enroll\",'Enrollment Form'!$B511=\"Subscriber\",'Enrollment Form'!$CQ511=\"Yes\"),\"-\",\"Y\")))))","v":""},{"$f":"IF($B504=\"N\",\"\",IF(AND('Enrollment Form'!$C511=\"ROC\",'Enrollment Form'!$DT511<>\"\"),\"Y\",IF(AND('Enrollment Form'!$C511=\"ROC\",'Enrollment Form'!$DT511=\"\"),\"N\",IF(AND('Enrollment Form'!$C511=\"Enroll\",'Enrollment Form'!$B511=\"Subscriber\",'Enrollment Form'!$CQ511=\"No\",'Enrollment Form'!$DT511=\"\"),\"N\",IF(AND('Enrollment Form'!$C511=\"Enroll\",'Enrollment Form'!$B511=\"Subscriber\",'Enrollment Form'!$CQ511=\"Yes\"),\"-\",\"Y\")))))","v":""},{"$f":"IF('Enrollment Form'!AH511=\"\",\"\",IF(ISERROR(SEARCH(\".\",'Enrollment Form'!AH511,SEARCH(\"@\",'Enrollment Form'!AH511))),\"N\",\"Y\"))","v":""},{"$f":"IF(OR($B504=\"N\",'Enrollment Form'!$G511=\"\"),\"\",IF('Enrollment Form'!$B511<>\"Subscriber\",\"-\",IF(COUNTIF('Enrollment Form'!$AS511:$AT511,\"Yes\")=2,\"N\",\"Y\")))","v":""},{"$f":"IF(OR('Enrollment Form'!$CC511=\"\",'Enrollment Form'!$CC511=\"No\"),\"-\",IF(AND('Enrollment Form'!$CC511=\"Yes\",'Enrollment Form'!$CD511=\"\"),\"N\",\"Y\"))","v":"-"},{"$f":"IF(OR('Enrollment Form'!$CE511=\"\",'Enrollment Form'!$CE511=\"No\"),\"-\",IF(AND('Enrollment Form'!$CE511=\"Yes\",'Enrollment Form'!$CF511=\"\"),\"N\",\"Y\"))","v":"-"},{"$f":"IF(OR('Enrollment Form'!$CG511=\"\",'Enrollment Form'!$CG511=\"No\"),\"-\",IF(AND('Enrollment Form'!$CG511=\"Yes\",'Enrollment Form'!$CH511=\"\"),\"N\",\"Y\"))","v":"-"},{"$f":"IF(OR('Enrollment Form'!$CG511=\"\",'Enrollment Form'!$CG511=\"No\"),\"-\",IF(AND('Enrollment Form'!$CG511=\"Yes\",'Enrollment Form'!$CI511=\"\"),\"N\",\"Y\"))","v":"-"},{"$f":"IF('Enrollment Form'!B511<>\"Subscriber\",\"-\",IF(AND('Enrollment Form'!B511=\"Subscriber\",'Enrollment Form'!C511=\"Enroll\",'Enrollment Form'!AA511=\"\"),\"N\",\"Y\"))","v":"-"},{"$f":"IF(OR('Enrollment Form'!B511=\"Subscriber\",'Enrollment Form'!B511=\"\"),\"-\",IF('Enrollment Form'!BI511=\"\",\"N\",\"Y\"))","v":"-"},{"$f":"IF('Enrollment Form'!B511<>\"Subscriber\",\"-\",IF(AND('Enrollment Form'!B511=\"Subscriber\",'Enrollment Form'!G511=\"\"),\"N\",\"Y\"))","v":"-"},{"$f":"IF('Enrollment Form'!A511=\"\",\"\",IF('Enrollment Form'!B511=\"Subscriber\",\"-\",IF(AND('Enrollment Form'!B511<>\"Subscriber\",'Enrollment Form'!G511='Enrollment Form'!H511),\"N\",\"Y\")))","v":""},0]
[512,{"$f":"IF('Enrollment Form'!$A512<>\"\",\"Y\",\"N\")","v":"N"},{"$f":"IF(AND('Enrollment Form'!$B512=\"\",'Enrollment Form'!$C512<>\"\"),\"N\",IF($B505=\"N\",\"\",\"Y\"))","v":""},{"$f":"IF(OR($B505=\"N\",'Enrollment Form'!G512=\"\"),\"\",IF('Enrollment Form'!$B512<>\"Subscriber\",\"\",IF('Enrollment Form'!$G512='Enrollment Form'!$H512,\"Y\",\"N\")))","v":""},{"$f":"IF($B505=\"N\",\"\",IF(AND(COUNTIFS('Enrollment Form'!$H$11:$H$1000,'Enrollment Form'!$H512,'Enrollment Form'!$B$11:$B$1000,'Enrollment Form'!$B512)>1,'Enrollment Form'!$H512<>\"\"),\"N\",\"Y\"))","v":""},{"$f":"IF($B505=\"N\",\"\",IF(LEN('Enrollment Form'!$Y512)=0,\"\",IF(LEN('Enrollment Form'!$Y512)<>5,\"N\",\"Y\")))","v":""},{"$f":"IF($B505=\"N\",\"\",IF(LEN('Enrollment Form'!$AD512=0),\"\",IF(LEN('Enrollment Form'!$AD512)<>5,\"N\",\"Y\")))","v":""},{"$f":"IF($B505=\"N\",\"\",IF(LEN('Enrollment Form'!$BL512=0),\"\",IF(LEN('Enrollment Form'!$BL512)<>5,\"N\",\"Y\")))","v":""},{"$f":"IF($B505=\"N\",\"\",IF(LEN('Enrollment Form'!$AE512)=0,\"\",IF(LEN('Enrollment Form'!$AE512)<>10,\"N\",\"Y\")))","v":""},{"$f":"IF($B505=\"N\",\"\",IF(LEN('Enrollment Form'!$AF512)=0,\"\",IF(LEN('Enrollment Form'!$AF512)<>10,\"N\",\"Y\")))","v":""},{"$f":"IF('Enrollment Form'!$O512<>\"Graded\",\"-\",IF(AND('Enrollment Form'!$O512=\"Graded\",'Enrollment Form'!$AO512<>\"\"),\"Y\",\"N\"))","v":"-"},{"$f":"IF($B505=\"N\",\"\",IF(OR('Enrollment Form'!$B512<>\"Subscriber\",'Enrollment Form'!$C512=\"ROC\"),\"-\",IF(AND('Enrollment Form'!$B512=\"Subscriber\",'Enrollment Form'!$C512=\"Enroll\",'Enrollment Form'!$AJ512<>\"\"),\"Y\",\"N\")))","v":""},{"$f":"IF($B505=\"N\",\"\",IF(OR('Enrollment Form'!$B512<>\"Subscriber\",'Enrollment Form'!$C512=\"ROC\"),\"-\",IF(AND('Enrollment Form'!$B512=\"Subscriber\",'Enrollment Form'!$C512=\"Enroll\",'Enrollment Form'!$AK512<>\"\"),\"Y\",\"N\")))","v":""},{"$f":"IF($B505=\"N\",\"\",IF(OR('Enrollment Form'!$B512<>\"Subscriber\",'Enrollment Form'!$C512=\"ROC\"),\"-\",IF(AND('Enrollment Form'!$B512=\"Subscriber\",'Enrollment Form'!$C512=\"Enroll\",'Enrollment Form'!$AL512<>\"\"),\"Y\",\"N\")))","v":""},{"$f":"IF($B505=\"N\",\"\",IF(OR('Enrollment Form'!$B512<>\"Subscriber\",'Enrollment Form'!$C512=\"ROC\"),\"-\",IF(AND('Enrollment Form'!$B512=\"Subscriber\",'Enrollment Form'!$C512=\"Enroll\",'Enrollment Form'!$AM512<>\"\"),\"Y\",\"N\")))","v":""},{"$f":"IF($B505=\"N\",\"\",IF(OR('Enrollment Form'!$B512<>\"Subscriber\",'Enrollment Form'!$C512=\"ROC\"),\"-\",IF(AND('Enrollment Form'!$B512=\"Subscriber\",'Enrollment Form'!$C512=\"Enroll\",'Enrollment Form'!$AN512<>\"\"),\"Y\",\"N\")))","v":""},{"$f":"IF($B505=\"N\",\"\",IF(OR('Enrollment Form'!$B512<>\"Subscriber\",'Enrollment Form'!$C512=\"ROC\"),\"-\",IF(AND('Enrollment Form'!$B512=\"Subscriber\",'Enrollment Form'!$C512=\"Enroll\",'Enrollment Form'!$AP512<>\"\"),\"Y\",\"N\")))","v":""},{"$f":"IF($B505=\"N\",\"\",IF($Q505=\"-\",\"-\",IF(AND($Q505=\"Y\",'Enrollment Form'!$AP512=\"No\"),\"-\",IF(AND($Q505=\"Y\",'Enrollment Form'!$AP512=\"Yes\",'Enrollment Form'!$AQ512<>\"\"),\"Y\",\"N\"))))","v":""},{"$f":"IF($B505=\"N\",\"\",IF(OR('Enrollment Form'!$B512<>\"Subscriber\",'Enrollment Form'!$C512=\"ROC\"),\"-\",IF(AND('Enrollment Form'!$B512=\"Subscriber\",'Enrollment Form'!$C512=\"Enroll\",'Enrollment Form'!$CO512<>\"\"),\"Y\",\"N\")))","v":""},{"$f":"IF($B505=\"N\",\"\",IF($S505=\"-\",\"-\",IF(AND($S505=\"Y\",'Enrollment Form'!$CO512=\"No\"),\"-\",IF(AND($S505=\"Y\",'Enrollment Form'!$CO512=\"Yes\",'Enrollment Form'!$CP512<>\"\"),\"Y\",\"N\"))))","v":""},{"$f":"IF(OR('Enrollment Form'!$AV512=\"Yes\",'Enrollment Form'!$AV512=\"\"),\"-\",IF(AND('Enrollment Form'!$AV512=\"No\",ISERROR(FIND(\"HMO\",VLOOKUP('Enrollment Form'!G512,'Enrollment Form'!H$11:J$1000,3,FALSE),1))=FALSE,COUNTA('Enrollment Form'!$AW512:$AZ512)=4),\"Y\",\"N\"))","v":"-"},{"$f":"IF($B505=\"N\",\"\",IF('Enrollment Form'!$B512=\"Subscriber\",\"-\",IF(COUNTA('Enrollment Form'!$BE512,'Enrollment Form'!$BG512)=2,\"Y\",\"N\")))","v":""},{"$f":"IF($B505=\"N\",\"\",IF(OR('Enrollment Form'!$AU512=\"\",'Enrollment Form'!$AU512=\"No\"),\"-\",IF(AND('Enrollment Form'!$AU512=\"Yes\",COUNTA('Enrollment Form'!$CK512)=1),\"Y\",\"N\")))","v":""},{"$f":"IF(OR('Enrollment Form'!$CK512=\"\",'Enrollment Form'!$CK512=\"No\"),\"-\",IF(COUNTA('Enrollment Form'!$CM512:$CN512)=2,\"Y\",\"N\"))","v":"-"},{"$f":"IF($B505=\"N\",\"\",IF(COUNTIF('Enrollment Form'!$CZ512:$DO512,\"Other\")=COUNTA('Enrollment Form'!$DF512,'Enrollment Form'!$DA512,'Enrollment Form'!$DK512,'Enrollment Form'!$DP512),\"Y\",\"N\"))","v":""},{"$f":"IF($B505=\"N\",\"\",IF(OR('Enrollment Form'!B512<>\"Subscriber\",'Enrollment Form'!C512=\"ROC\",COUNTIF('Enrollment Form'!AS512:AT512,\"Yes\")>=1),\"-\",IF(AND('Enrollment Form'!C512=\"Enroll\",COUNTIF('Enrollment Form'!AS512:AT512,\"No\")=2,'Enrollment Form'!AU512=\"\"),\"N\",\"Y\")))","v":""},{"$f":"IF(OR(B505=\"N\",'Enrollment Form'!B512<>\"Subscriber\",'Enrollment Form'!C512=\"ROC\",'Enrollment Form'!O512<>\"Multiple of Salary\"),\"-\",IF(COUNTA('Enrollment Form'!T512:U512)<2,\"N\",\"Y\"))","v":"-"},{"$f":"IF(B505=\"N\",\"\",IF(OR('Enrollment Form'!C512=\"ROC\",'Enrollment Form'!B512<>\"Subscriber\",'Enrollment Form'!O512=\"Waive\",'Enrollment Form'!O512=\"\"),\"-\",IF('Enrollment Form'!P512=\"\",\"N\",\"Y\")))","v":""},{"$f":"IF($B505=\"N\",\"\",IF(AND('Enrollment Form'!$C512=\"ROC\",'Enrollment Form'!$DS512<>\"\"),\"Y\",IF(AND('Enrollment Form'!$C512=\"ROC\",'Enrollment Form'!$DS512=\"\"),\"N\",IF(AND('Enrollment Form'!$C512=\"Enroll\",'Enrollment Form'!$B512=\"Subscriber\",'Enrollment Form'!$CQ512=\"No\",'Enrollment Form'!$DS512=\"\"),\"N\",IF(AND('Enrollment Form'!$C512=\"Enroll\",'Enrollment Form'!$B512=\"Subscriber\",'Enrollment Form'!$CQ512=\"Yes\"),\"-\",\"Y\")))))","v":""},{"$f":"IF($B505=\"N\",\"\",IF(AND('Enrollment Form'!$C512=\"ROC\",'Enrollment Form'!$DT512<>\"\"),\"Y\",IF(AND('Enrollment Form'!$C512=\"ROC\",'Enrollment Form'!$DT512=\"\"),\"N\",IF(AND('Enrollment Form'!$C512=\"Enroll\",'Enrollment Form'!$B512=\"Subscriber\",'Enrollment Form'!$CQ512=\"No\",'Enrollment Form'!$DT512=\"\"),\"N\",IF(AND('Enrollment Form'!$C512=\"Enroll\",'Enrollment Form'!$B512=\"Subscriber\",'Enrollment Form'!$CQ512=\"Yes\"),\"-\",\"Y\")))))","v":""},{"$f":"IF('Enrollment Form'!AH512=\"\",\"\",IF(ISERROR(SEARCH(\".\",'Enrollment Form'!AH512,SEARCH(\"@\",'Enrollment Form'!AH512))),\"N\",\"Y\"))","v":""},{"$f":"IF(OR($B505=\"N\",'Enrollment Form'!$G512=\"\"),\"\",IF('Enrollment Form'!$B512<>\"Subscriber\",\"-\",IF(COUNTIF('Enrollment Form'!$AS512:$AT512,\"Yes\")=2,\"N\",\"Y\")))","v":""},{"$f":"IF(OR('Enrollment Form'!$CC512=\"\",'Enrollment Form'!$CC512=\"No\"),\"-\",IF(AND('Enrollment Form'!$CC512=\"Yes\",'Enrollment Form'!$CD512=\"\"),\"N\",\"Y\"))","v":"-"},{"$f":"IF(OR('Enrollment Form'!$CE512=\"\",'Enrollment Form'!$CE512=\"No\"),\"-\",IF(AND('Enrollment Form'!$CE512=\"Yes\",'Enrollment Form'!$CF512=\"\"),\"N\",\"Y\"))","v":"-"},{"$f":"IF(OR('Enrollment Form'!$CG512=\"\",'Enrollment Form'!$CG512=\"No\"),\"-\",IF(AND('Enrollment Form'!$CG512=\"Yes\",'Enrollment Form'!$CH512=\"\"),\"N\",\"Y\"))","v":"-"},{"$f":"IF(OR('Enrollment Form'!$CG512=\"\",'Enrollment Form'!$CG512=\"No\"),\"-\",IF(AND('Enrollment Form'!$CG512=\"Yes\",'Enrollment Form'!$CI512=\"\"),\"N\",\"Y\"))","v":"-"},{"$f":"IF('Enrollment Form'!B512<>\"Subscriber\",\"-\",IF(AND('Enrollment Form'!B512=\"Subscriber\",'Enrollment Form'!C512=\"Enroll\",'Enrollment Form'!AA512=\"\"),\"N\",\"Y\"))","v":"-"},{"$f":"IF(OR('Enrollment Form'!B512=\"Subscriber\",'Enrollment Form'!B512=\"\"),\"-\",IF('Enrollment Form'!BI512=\"\",\"N\",\"Y\"))","v":"-"},{"$f":"IF('Enrollment Form'!B512<>\"Subscriber\",\"-\",IF(AND('Enrollment Form'!B512=\"Subscriber\",'Enrollment Form'!G512=\"\"),\"N\",\"Y\"))","v":"-"},{"$f":"IF('Enrollment Form'!A512=\"\",\"\",IF('Enrollment Form'!B512=\"Subscriber\",\"-\",IF(AND('Enrollment Form'!B512<>\"Subscriber\",'Enrollment Form'!G512='Enrollment Form'!H512),\"N\",\"Y\")))","v":""},0]
[513,{"$f":"IF('Enrollment Form'!$A513<>\"\",\"Y\",\"N\")","v":"N"},{"$f":"IF(AND('Enrollment Form'!$B513=\"\",'Enrollment Form'!$C513<>\"\"),\"N\",IF($B506=\"N\",\"\",\"Y\"))","v":""},{"$f":"IF(OR($B506=\"N\",'Enrollment Form'!G513=\"\"),\"\",IF('Enrollment Form'!$B513<>\"Subscriber\",\"\",IF('Enrollment Form'!$G513='Enrollment Form'!$H513,\"Y\",\"N\")))","v":""},{"$f":"IF($B506=\"N\",\"\",IF(AND(COUNTIFS('Enrollment Form'!$H$11:$H$1000,'Enrollment Form'!$H513,'Enrollment Form'!$B$11:$B$1000,'Enrollment Form'!$B513)>1,'Enrollment Form'!$H513<>\"\"),\"N\",\"Y\"))","v":""},{"$f":"IF($B506=\"N\",\"\",IF(LEN('Enrollment Form'!$Y513)=0,\"\",IF(LEN('Enrollment Form'!$Y513)<>5,\"N\",\"Y\")))","v":""},{"$f":"IF($B506=\"N\",\"\",IF(LEN('Enrollment Form'!$AD513=0),\"\",IF(LEN('Enrollment Form'!$AD513)<>5,\"N\",\"Y\")))","v":""},{"$f":"IF($B506=\"N\",\"\",IF(LEN('Enrollment Form'!$BL513=0),\"\",IF(LEN('Enrollment Form'!$BL513)<>5,\"N\",\"Y\")))","v":""},{"$f":"IF($B506=\"N\",\"\",IF(LEN('Enrollment Form'!$AE513)=0,\"\",IF(LEN('Enrollment Form'!$AE513)<>10,\"N\",\"Y\")))","v":""},{"$f":"IF($B506=\"N\",\"\",IF(LEN('Enrollment Form'!$AF513)=0,\"\",IF(LEN('Enrollment Form'!$AF513)<>10,\"N\",\"Y\")))","v":""},{"$f":"IF('Enrollment Form'!$O513<>\"Graded\",\"-\",IF(AND('Enrollment Form'!$O513=\"Graded\",'Enrollment Form'!$AO513<>\"\"),\"Y\",\"N\"))","v":"-"},{"$f":"IF($B506=\"N\",\"\",IF(OR('Enrollment Form'!$B513<>\"Subscriber\",'Enrollment Form'!$C513=\"ROC\"),\"-\",IF(AND('Enrollment Form'!$B513=\"Subscriber\",'Enrollment Form'!$C513=\"Enroll\",'Enrollment Form'!$AJ513<>\"\"),\"Y\",\"N\")))","v":""},{"$f":"IF($B506=\"N\",\"\",IF(OR('Enrollment Form'!$B513<>\"Subscriber\",'Enrollment Form'!$C513=\"ROC\"),\"-\",IF(AND('Enrollment Form'!$B513=\"Subscriber\",'Enrollment Form'!$C513=\"Enroll\",'Enrollment Form'!$AK513<>\"\"),\"Y\",\"N\")))","v":""},{"$f":"IF($B506=\"N\",\"\",IF(OR('Enrollment Form'!$B513<>\"Subscriber\",'Enrollment Form'!$C513=\"ROC\"),\"-\",IF(AND('Enrollment Form'!$B513=\"Subscriber\",'Enrollment Form'!$C513=\"Enroll\",'Enrollment Form'!$AL513<>\"\"),\"Y\",\"N\")))","v":""},{"$f":"IF($B506=\"N\",\"\",IF(OR('Enrollment Form'!$B513<>\"Subscriber\",'Enrollment Form'!$C513=\"ROC\"),\"-\",IF(AND('Enrollment Form'!$B513=\"Subscriber\",'Enrollment Form'!$C513=\"Enroll\",'Enrollment Form'!$AM513<>\"\"),\"Y\",\"N\")))","v":""},{"$f":"IF($B506=\"N\",\"\",IF(OR('Enrollment Form'!$B513<>\"Subscriber\",'Enrollment Form'!$C513=\"ROC\"),\"-\",IF(AND('Enrollment Form'!$B513=\"Subscriber\",'Enrollment Form'!$C513=\"Enroll\",'Enrollment Form'!$AN513<>\"\"),\"Y\",\"N\")))","v":""},{"$f":"IF($B506=\"N\",\"\",IF(OR('Enrollment Form'!$B513<>\"Subscriber\",'Enrollment Form'!$C513=\"ROC\"),\"-\",IF(AND('Enrollment Form'!$B513=\"Subscriber\",'Enrollment Form'!$C513=\"Enroll\",'Enrollment Form'!$AP513<>\"\"),\"Y\",\"N\")))","v":""},{"$f":"IF($B506=\"N\",\"\",IF($Q506=\"-\",\"-\",IF(AND($Q506=\"Y\",'Enrollment Form'!$AP513=\"No\"),\"-\",IF(AND($Q506=\"Y\",'Enrollment Form'!$AP513=\"Yes\",'Enrollment Form'!$AQ513<>\"\"),\"Y\",\"N\"))))","v":""},{"$f":"IF($B506=\"N\",\"\",IF(OR('Enrollment Form'!$B513<>\"Subscriber\",'Enrollment Form'!$C513=\"ROC\"),\"-\",IF(AND('Enrollment Form'!$B513=\"Subscriber\",'Enrollment Form'!$C513=\"Enroll\",'Enrollment Form'!$CO513<>\"\"),\"Y\",\"N\")))","v":""},{"$f":"IF($B506=\"N\",\"\",IF($S506=\"-\",\"-\",IF(AND($S506=\"Y\",'Enrollment Form'!$CO513=\"No\"),\"-\",IF(AND($S506=\"Y\",'Enrollment Form'!$CO513=\"Yes\",'Enrollment Form'!$CP513<>\"\"),\"Y\",\"N\"))))","v":""},{"$f":"IF(OR('Enrollment Form'!$AV513=\"Yes\",'Enrollment Form'!$AV513=\"\"),\"-\",IF(AND('Enrollment Form'!$AV513=\"No\",ISERROR(FIND(\"HMO\",VLOOKUP('Enrollment Form'!G513,'Enrollment Form'!H$11:J$1000,3,FALSE),1))=FALSE,COUNTA('Enrollment Form'!$AW513:$AZ513)=4),\"Y\",\"N\"))","v":"-"},{"$f":"IF($B506=\"N\",\"\",IF('Enrollment Form'!$B513=\"Subscriber\",\"-\",IF(COUNTA('Enrollment Form'!$BE513,'Enrollment Form'!$BG513)=2,\"Y\",\"N\")))","v":""},{"$f":"IF($B506=\"N\",\"\",IF(OR('Enrollment Form'!$AU513=\"\",'Enrollment Form'!$AU513=\"No\"),\"-\",IF(AND('Enrollment Form'!$AU513=\"Yes\",COUNTA('Enrollment Form'!$CK513)=1),\"Y\",\"N\")))","v":""},{"$f":"IF(OR('Enrollment Form'!$CK513=\"\",'Enrollment Form'!$CK513=\"No\"),\"-\",IF(COUNTA('Enrollment Form'!$CM513:$CN513)=2,\"Y\",\"N\"))","v":"-"},{"$f":"IF($B506=\"N\",\"\",IF(COUNTIF('Enrollment Form'!$CZ513:$DO513,\"Other\")=COUNTA('Enrollment Form'!$DF513,'Enrollment Form'!$DA513,'Enrollment Form'!$DK513,'Enrollment Form'!$DP513),\"Y\",\"N\"))","v":""},{"$f":"IF($B506=\"N\",\"\",IF(OR('Enrollment Form'!B513<>\"Subscriber\",'Enrollment Form'!C513=\"ROC\",COUNTIF('Enrollment Form'!AS513:AT513,\"Yes\")>=1),\"-\",IF(AND('Enrollment Form'!C513=\"Enroll\",COUNTIF('Enrollment Form'!AS513:AT513,\"No\")=2,'Enrollment Form'!AU513=\"\"),\"N\",\"Y\")))","v":""},{"$f":"IF(OR(B506=\"N\",'Enrollment Form'!B513<>\"Subscriber\",'Enrollment Form'!C513=\"ROC\",'Enrollment Form'!O513<>\"Multiple of Salary\"),\"-\",IF(COUNTA('Enrollment Form'!T513:U513)<2,\"N\",\"Y\"))","v":"-"},{"$f":"IF(B506=\"N\",\"\",IF(OR('Enrollment Form'!C513=\"ROC\",'Enrollment Form'!B513<>\"Subscriber\",'Enrollment Form'!O513=\"Waive\",'Enrollment Form'!O513=\"\"),\"-\",IF('Enrollment Form'!P513=\"\",\"N\",\"Y\")))","v":""},{"$f":"IF($B506=\"N\",\"\",IF(AND('Enrollment Form'!$C513=\"ROC\",'Enrollment Form'!$DS513<>\"\"),\"Y\",IF(AND('Enrollment Form'!$C513=\"ROC\",'Enrollment Form'!$DS513=\"\"),\"N\",IF(AND('Enrollment Form'!$C513=\"Enroll\",'Enrollment Form'!$B513=\"Subscriber\",'Enrollment Form'!$CQ513=\"No\",'Enrollment Form'!$DS513=\"\"),\"N\",IF(AND('Enrollment Form'!$C513=\"Enroll\",'Enrollment Form'!$B513=\"Subscriber\",'Enrollment Form'!$CQ513=\"Yes\"),\"-\",\"Y\")))))","v":""},{"$f":"IF($B506=\"N\",\"\",IF(AND('Enrollment Form'!$C513=\"ROC\",'Enrollment Form'!$DT513<>\"\"),\"Y\",IF(AND('Enrollment Form'!$C513=\"ROC\",'Enrollment Form'!$DT513=\"\"),\"N\",IF(AND('Enrollment Form'!$C513=\"Enroll\",'Enrollment Form'!$B513=\"Subscriber\",'Enrollment Form'!$CQ513=\"No\",'Enrollment Form'!$DT513=\"\"),\"N\",IF(AND('Enrollment Form'!$C513=\"Enroll\",'Enrollment Form'!$B513=\"Subscriber\",'Enrollment Form'!$CQ513=\"Yes\"),\"-\",\"Y\")))))","v":""},{"$f":"IF('Enrollment Form'!AH513=\"\",\"\",IF(ISERROR(SEARCH(\".\",'Enrollment Form'!AH513,SEARCH(\"@\",'Enrollment Form'!AH513))),\"N\",\"Y\"))","v":""},{"$f":"IF(OR($B506=\"N\",'Enrollment Form'!$G513=\"\"),\"\",IF('Enrollment Form'!$B513<>\"Subscriber\",\"-\",IF(COUNTIF('Enrollment Form'!$AS513:$AT513,\"Yes\")=2,\"N\",\"Y\")))","v":""},{"$f":"IF(OR('Enrollment Form'!$CC513=\"\",'Enrollment Form'!$CC513=\"No\"),\"-\",IF(AND('Enrollment Form'!$CC513=\"Yes\",'Enrollment Form'!$CD513=\"\"),\"N\",\"Y\"))","v":"-"},{"$f":"IF(OR('Enrollment Form'!$CE513=\"\",'Enrollment Form'!$CE513=\"No\"),\"-\",IF(AND('Enrollment Form'!$CE513=\"Yes\",'Enrollment Form'!$CF513=\"\"),\"N\",\"Y\"))","v":"-"},{"$f":"IF(OR('Enrollment Form'!$CG513=\"\",'Enrollment Form'!$CG513=\"No\"),\"-\",IF(AND('Enrollment Form'!$CG513=\"Yes\",'Enrollment Form'!$CH513=\"\"),\"N\",\"Y\"))","v":"-"},{"$f":"IF(OR('Enrollment Form'!$CG513=\"\",'Enrollment Form'!$CG513=\"No\"),\"-\",IF(AND('Enrollment Form'!$CG513=\"Yes\",'Enrollment Form'!$CI513=\"\"),\"N\",\"Y\"))","v":"-"},{"$f":"IF('Enrollment Form'!B513<>\"Subscriber\",\"-\",IF(AND('Enrollment Form'!B513=\"Subscriber\",'Enrollment Form'!C513=\"Enroll\",'Enrollment Form'!AA513=\"\"),\"N\",\"Y\"))","v":"-"},{"$f":"IF(OR('Enrollment Form'!B513=\"Subscriber\",'Enrollment Form'!B513=\"\"),\"-\",IF('Enrollment Form'!BI513=\"\",\"N\",\"Y\"))","v":"-"},{"$f":"IF('Enrollment Form'!B513<>\"Subscriber\",\"-\",IF(AND('Enrollment Form'!B513=\"Subscriber\",'Enrollment Form'!G513=\"\"),\"N\",\"Y\"))","v":"-"},{"$f":"IF('Enrollment Form'!A513=\"\",\"\",IF('Enrollment Form'!B513=\"Subscriber\",\"-\",IF(AND('Enrollment Form'!B513<>\"Subscriber\",'Enrollment Form'!G513='Enrollment Form'!H513),\"N\",\"Y\")))","v":""},0]
[514,{"$f":"IF('Enrollment Form'!$A514<>\"\",\"Y\",\"N\")","v":"N"},{"$f":"IF(AND('Enrollment Form'!$B514=\"\",'Enrollment Form'!$C514<>\"\"),\"N\",IF($B507=\"N\",\"\",\"Y\"))","v":""},{"$f":"IF(OR($B507=\"N\",'Enrollment Form'!G514=\"\"),\"\",IF('Enrollment Form'!$B514<>\"Subscriber\",\"\",IF('Enrollment Form'!$G514='Enrollment Form'!$H514,\"Y\",\"N\")))","v":""},{"$f":"IF($B507=\"N\",\"\",IF(AND(COUNTIFS('Enrollment Form'!$H$11:$H$1000,'Enrollment Form'!$H514,'Enrollment Form'!$B$11:$B$1000,'Enrollment Form'!$B514)>1,'Enrollment Form'!$H514<>\"\"),\"N\",\"Y\"))","v":""},{"$f":"IF($B507=\"N\",\"\",IF(LEN('Enrollment Form'!$Y514)=0,\"\",IF(LEN('Enrollment Form'!$Y514)<>5,\"N\",\"Y\")))","v":""},{"$f":"IF($B507=\"N\",\"\",IF(LEN('Enrollment Form'!$AD514=0),\"\",IF(LEN('Enrollment Form'!$AD514)<>5,\"N\",\"Y\")))","v":""},{"$f":"IF($B507=\"N\",\"\",IF(LEN('Enrollment Form'!$BL514=0),\"\",IF(LEN('Enrollment Form'!$BL514)<>5,\"N\",\"Y\")))","v":""},{"$f":"IF($B507=\"N\",\"\",IF(LEN('Enrollment Form'!$AE514)=0,\"\",IF(LEN('Enrollment Form'!$AE514)<>10,\"N\",\"Y\")))","v":""},{"$f":"IF($B507=\"N\",\"\",IF(LEN('Enrollment Form'!$AF514)=0,\"\",IF(LEN('Enrollment Form'!$AF514)<>10,\"N\",\"Y\")))","v":""},{"$f":"IF('Enrollment Form'!$O514<>\"Graded\",\"-\",IF(AND('Enrollment Form'!$O514=\"Graded\",'Enrollment Form'!$AO514<>\"\"),\"Y\",\"N\"))","v":"-"},{"$f":"IF($B507=\"N\",\"\",IF(OR('Enrollment Form'!$B514<>\"Subscriber\",'Enrollment Form'!$C514=\"ROC\"),\"-\",IF(AND('Enrollment Form'!$B514=\"Subscriber\",'Enrollment Form'!$C514=\"Enroll\",'Enrollment Form'!$AJ514<>\"\"),\"Y\",\"N\")))","v":""},{"$f":"IF($B507=\"N\",\"\",IF(OR('Enrollment Form'!$B514<>\"Subscriber\",'Enrollment Form'!$C514=\"ROC\"),\"-\",IF(AND('Enrollment Form'!$B514=\"Subscriber\",'Enrollment Form'!$C514=\"Enroll\",'Enrollment Form'!$AK514<>\"\"),\"Y\",\"N\")))","v":""},{"$f":"IF($B507=\"N\",\"\",IF(OR('Enrollment Form'!$B514<>\"Subscriber\",'Enrollment Form'!$C514=\"ROC\"),\"-\",IF(AND('Enrollment Form'!$B514=\"Subscriber\",'Enrollment Form'!$C514=\"Enroll\",'Enrollment Form'!$AL514<>\"\"),\"Y\",\"N\")))","v":""},{"$f":"IF($B507=\"N\",\"\",IF(OR('Enrollment Form'!$B514<>\"Subscriber\",'Enrollment Form'!$C514=\"ROC\"),\"-\",IF(AND('Enrollment Form'!$B514=\"Subscriber\",'Enrollment Form'!$C514=\"Enroll\",'Enrollment Form'!$AM514<>\"\"),\"Y\",\"N\")))","v":""},{"$f":"IF($B507=\"N\",\"\",IF(OR('Enrollment Form'!$B514<>\"Subscriber\",'Enrollment Form'!$C514=\"ROC\"),\"-\",IF(AND('Enrollment Form'!$B514=\"Subscriber\",'Enrollment Form'!$C514=\"Enroll\",'Enrollment Form'!$AN514<>\"\"),\"Y\",\"N\")))","v":""},{"$f":"IF($B507=\"N\",\"\",IF(OR('Enrollment Form'!$B514<>\"Subscriber\",'Enrollment Form'!$C514=\"ROC\"),\"-\",IF(AND('Enrollment Form'!$B514=\"Subscriber\",'Enrollment Form'!$C514=\"Enroll\",'Enrollment Form'!$AP514<>\"\"),\"Y\",\"N\")))","v":""},{"$f":"IF($B507=\"N\",\"\",IF($Q507=\"-\",\"-\",IF(AND($Q507=\"Y\",'Enrollment Form'!$AP514=\"No\"),\"-\",IF(AND($Q507=\"Y\",'Enrollment Form'!$AP514=\"Yes\",'Enrollment Form'!$AQ514<>\"\"),\"Y\",\"N\"))))","v":""},{"$f":"IF($B507=\"N\",\"\",IF(OR('Enrollment Form'!$B514<>\"Subscriber\",'Enrollment Form'!$C514=\"ROC\"),\"-\",IF(AND('Enrollment Form'!$B514=\"Subscriber\",'Enrollment Form'!$C514=\"Enroll\",'Enrollment Form'!$CO514<>\"\"),\"Y\",\"N\")))","v":""},{"$f":"IF($B507=\"N\",\"\",IF($S507=\"-\",\"-\",IF(AND($S507=\"Y\",'Enrollment Form'!$CO514=\"No\"),\"-\",IF(AND($S507=\"Y\",'Enrollment Form'!$CO514=\"Yes\",'Enrollment Form'!$CP514<>\"\"),\"Y\",\"N\"))))","v":""},{"$f":"IF(OR('Enrollment Form'!$AV514=\"Yes\",'Enrollment Form'!$AV514=\"\"),\"-\",IF(AND('Enrollment Form'!$AV514=\"No\",ISERROR(FIND(\"HMO\",VLOOKUP('Enrollment Form'!G514,'Enrollment Form'!H$11:J$1000,3,FALSE),1))=FALSE,COUNTA('Enrollment Form'!$AW514:$AZ514)=4),\"Y\",\"N\"))","v":"-"},{"$f":"IF($B507=\"N\",\"\",IF('Enrollment Form'!$B514=\"Subscriber\",\"-\",IF(COUNTA('Enrollment Form'!$BE514,'Enrollment Form'!$BG514)=2,\"Y\",\"N\")))","v":""},{"$f":"IF($B507=\"N\",\"\",IF(OR('Enrollment Form'!$AU514=\"\",'Enrollment Form'!$AU514=\"No\"),\"-\",IF(AND('Enrollment Form'!$AU514=\"Yes\",COUNTA('Enrollment Form'!$CK514)=1),\"Y\",\"N\")))","v":""},{"$f":"IF(OR('Enrollment Form'!$CK514=\"\",'Enrollment Form'!$CK514=\"No\"),\"-\",IF(COUNTA('Enrollment Form'!$CM514:$CN514)=2,\"Y\",\"N\"))","v":"-"},{"$f":"IF($B507=\"N\",\"\",IF(COUNTIF('Enrollment Form'!$CZ514:$DO514,\"Other\")=COUNTA('Enrollment Form'!$DF514,'Enrollment Form'!$DA514,'Enrollment Form'!$DK514,'Enrollment Form'!$DP514),\"Y\",\"N\"))","v":""},{"$f":"IF($B507=\"N\",\"\",IF(OR('Enrollment Form'!B514<>\"Subscriber\",'Enrollment Form'!C514=\"ROC\",COUNTIF('Enrollment Form'!AS514:AT514,\"Yes\")>=1),\"-\",IF(AND('Enrollment Form'!C514=\"Enroll\",COUNTIF('Enrollment Form'!AS514:AT514,\"No\")=2,'Enrollment Form'!AU514=\"\"),\"N\",\"Y\")))","v":""},{"$f":"IF(OR(B507=\"N\",'Enrollment Form'!B514<>\"Subscriber\",'Enrollment Form'!C514=\"ROC\",'Enrollment Form'!O514<>\"Multiple of Salary\"),\"-\",IF(COUNTA('Enrollment Form'!T514:U514)<2,\"N\",\"Y\"))","v":"-"},{"$f":"IF(B507=\"N\",\"\",IF(OR('Enrollment Form'!C514=\"ROC\",'Enrollment Form'!B514<>\"Subscriber\",'Enrollment Form'!O514=\"Waive\",'Enrollment Form'!O514=\"\"),\"-\",IF('Enrollment Form'!P514=\"\",\"N\",\"Y\")))","v":""},{"$f":"IF($B507=\"N\",\"\",IF(AND('Enrollment Form'!$C514=\"ROC\",'Enrollment Form'!$DS514<>\"\"),\"Y\",IF(AND('Enrollment Form'!$C514=\"ROC\",'Enrollment Form'!$DS514=\"\"),\"N\",IF(AND('Enrollment Form'!$C514=\"Enroll\",'Enrollment Form'!$B514=\"Subscriber\",'Enrollment Form'!$CQ514=\"No\",'Enrollment Form'!$DS514=\"\"),\"N\",IF(AND('Enrollment Form'!$C514=\"Enroll\",'Enrollment Form'!$B514=\"Subscriber\",'Enrollment Form'!$CQ514=\"Yes\"),\"-\",\"Y\")))))","v":""},{"$f":"IF($B507=\"N\",\"\",IF(AND('Enrollment Form'!$C514=\"ROC\",'Enrollment Form'!$DT514<>\"\"),\"Y\",IF(AND('Enrollment Form'!$C514=\"ROC\",'Enrollment Form'!$DT514=\"\"),\"N\",IF(AND('Enrollment Form'!$C514=\"Enroll\",'Enrollment Form'!$B514=\"Subscriber\",'Enrollment Form'!$CQ514=\"No\",'Enrollment Form'!$DT514=\"\"),\"N\",IF(AND('Enrollment Form'!$C514=\"Enroll\",'Enrollment Form'!$B514=\"Subscriber\",'Enrollment Form'!$CQ514=\"Yes\"),\"-\",\"Y\")))))","v":""},{"$f":"IF('Enrollment Form'!AH514=\"\",\"\",IF(ISERROR(SEARCH(\".\",'Enrollment Form'!AH514,SEARCH(\"@\",'Enrollment Form'!AH514))),\"N\",\"Y\"))","v":""},{"$f":"IF(OR($B507=\"N\",'Enrollment Form'!$G514=\"\"),\"\",IF('Enrollment Form'!$B514<>\"Subscriber\",\"-\",IF(COUNTIF('Enrollment Form'!$AS514:$AT514,\"Yes\")=2,\"N\",\"Y\")))","v":""},{"$f":"IF(OR('Enrollment Form'!$CC514=\"\",'Enrollment Form'!$CC514=\"No\"),\"-\",IF(AND('Enrollment Form'!$CC514=\"Yes\",'Enrollment Form'!$CD514=\"\"),\"N\",\"Y\"))","v":"-"},{"$f":"IF(OR('Enrollment Form'!$CE514=\"\",'Enrollment Form'!$CE514=\"No\"),\"-\",IF(AND('Enrollment Form'!$CE514=\"Yes\",'Enrollment Form'!$CF514=\"\"),\"N\",\"Y\"))","v":"-"},{"$f":"IF(OR('Enrollment Form'!$CG514=\"\",'Enrollment Form'!$CG514=\"No\"),\"-\",IF(AND('Enrollment Form'!$CG514=\"Yes\",'Enrollment Form'!$CH514=\"\"),\"N\",\"Y\"))","v":"-"},{"$f":"IF(OR('Enrollment Form'!$CG514=\"\",'Enrollment Form'!$CG514=\"No\"),\"-\",IF(AND('Enrollment Form'!$CG514=\"Yes\",'Enrollment Form'!$CI514=\"\"),\"N\",\"Y\"))","v":"-"},{"$f":"IF('Enrollment Form'!B514<>\"Subscriber\",\"-\",IF(AND('Enrollment Form'!B514=\"Subscriber\",'Enrollment Form'!C514=\"Enroll\",'Enrollment Form'!AA514=\"\"),\"N\",\"Y\"))","v":"-"},{"$f":"IF(OR('Enrollment Form'!B514=\"Subscriber\",'Enrollment Form'!B514=\"\"),\"-\",IF('Enrollment Form'!BI514=\"\",\"N\",\"Y\"))","v":"-"},{"$f":"IF('Enrollment Form'!B514<>\"Subscriber\",\"-\",IF(AND('Enrollment Form'!B514=\"Subscriber\",'Enrollment Form'!G514=\"\"),\"N\",\"Y\"))","v":"-"},{"$f":"IF('Enrollment Form'!A514=\"\",\"\",IF('Enrollment Form'!B514=\"Subscriber\",\"-\",IF(AND('Enrollment Form'!B514<>\"Subscriber\",'Enrollment Form'!G514='Enrollment Form'!H514),\"N\",\"Y\")))","v":""},0]
[515,{"$f":"IF('Enrollment Form'!$A515<>\"\",\"Y\",\"N\")","v":"N"},{"$f":"IF(AND('Enrollment Form'!$B515=\"\",'Enrollment Form'!$C515<>\"\"),\"N\",IF($B508=\"N\",\"\",\"Y\"))","v":""},{"$f":"IF(OR($B508=\"N\",'Enrollment Form'!G515=\"\"),\"\",IF('Enrollment Form'!$B515<>\"Subscriber\",\"\",IF('Enrollment Form'!$G515='Enrollment Form'!$H515,\"Y\",\"N\")))","v":""},{"$f":"IF($B508=\"N\",\"\",IF(AND(COUNTIFS('Enrollment Form'!$H$11:$H$1000,'Enrollment Form'!$H515,'Enrollment Form'!$B$11:$B$1000,'Enrollment Form'!$B515)>1,'Enrollment Form'!$H515<>\"\"),\"N\",\"Y\"))","v":""},{"$f":"IF($B508=\"N\",\"\",IF(LEN('Enrollment Form'!$Y515)=0,\"\",IF(LEN('Enrollment Form'!$Y515)<>5,\"N\",\"Y\")))","v":""},{"$f":"IF($B508=\"N\",\"\",IF(LEN('Enrollment Form'!$AD515=0),\"\",IF(LEN('Enrollment Form'!$AD515)<>5,\"N\",\"Y\")))","v":""},{"$f":"IF($B508=\"N\",\"\",IF(LEN('Enrollment Form'!$BL515=0),\"\",IF(LEN('Enrollment Form'!$BL515)<>5,\"N\",\"Y\")))","v":""},{"$f":"IF($B508=\"N\",\"\",IF(LEN('Enrollment Form'!$AE515)=0,\"\",IF(LEN('Enrollment Form'!$AE515)<>10,\"N\",\"Y\")))","v":""},{"$f":"IF($B508=\"N\",\"\",IF(LEN('Enrollment Form'!$AF515)=0,\"\",IF(LEN('Enrollment Form'!$AF515)<>10,\"N\",\"Y\")))","v":""},{"$f":"IF('Enrollment Form'!$O515<>\"Graded\",\"-\",IF(AND('Enrollment Form'!$O515=\"Graded\",'Enrollment Form'!$AO515<>\"\"),\"Y\",\"N\"))","v":"-"},{"$f":"IF($B508=\"N\",\"\",IF(OR('Enrollment Form'!$B515<>\"Subscriber\",'Enrollment Form'!$C515=\"ROC\"),\"-\",IF(AND('Enrollment Form'!$B515=\"Subscriber\",'Enrollment Form'!$C515=\"Enroll\",'Enrollment Form'!$AJ515<>\"\"),\"Y\",\"N\")))","v":""},{"$f":"IF($B508=\"N\",\"\",IF(OR('Enrollment Form'!$B515<>\"Subscriber\",'Enrollment Form'!$C515=\"ROC\"),\"-\",IF(AND('Enrollment Form'!$B515=\"Subscriber\",'Enrollment Form'!$C515=\"Enroll\",'Enrollment Form'!$AK515<>\"\"),\"Y\",\"N\")))","v":""},{"$f":"IF($B508=\"N\",\"\",IF(OR('Enrollment Form'!$B515<>\"Subscriber\",'Enrollment Form'!$C515=\"ROC\"),\"-\",IF(AND('Enrollment Form'!$B515=\"Subscriber\",'Enrollment Form'!$C515=\"Enroll\",'Enrollment Form'!$AL515<>\"\"),\"Y\",\"N\")))","v":""},{"$f":"IF($B508=\"N\",\"\",IF(OR('Enrollment Form'!$B515<>\"Subscriber\",'Enrollment Form'!$C515=\"ROC\"),\"-\",IF(AND('Enrollment Form'!$B515=\"Subscriber\",'Enrollment Form'!$C515=\"Enroll\",'Enrollment Form'!$AM515<>\"\"),\"Y\",\"N\")))","v":""},{"$f":"IF($B508=\"N\",\"\",IF(OR('Enrollment Form'!$B515<>\"Subscriber\",'Enrollment Form'!$C515=\"ROC\"),\"-\",IF(AND('Enrollment Form'!$B515=\"Subscriber\",'Enrollment Form'!$C515=\"Enroll\",'Enrollment Form'!$AN515<>\"\"),\"Y\",\"N\")))","v":""},{"$f":"IF($B508=\"N\",\"\",IF(OR('Enrollment Form'!$B515<>\"Subscriber\",'Enrollment Form'!$C515=\"ROC\"),\"-\",IF(AND('Enrollment Form'!$B515=\"Subscriber\",'Enrollment Form'!$C515=\"Enroll\",'Enrollment Form'!$AP515<>\"\"),\"Y\",\"N\")))","v":""},{"$f":"IF($B508=\"N\",\"\",IF($Q508=\"-\",\"-\",IF(AND($Q508=\"Y\",'Enrollment Form'!$AP515=\"No\"),\"-\",IF(AND($Q508=\"Y\",'Enrollment Form'!$AP515=\"Yes\",'Enrollment Form'!$AQ515<>\"\"),\"Y\",\"N\"))))","v":""},{"$f":"IF($B508=\"N\",\"\",IF(OR('Enrollment Form'!$B515<>\"Subscriber\",'Enrollment Form'!$C515=\"ROC\"),\"-\",IF(AND('Enrollment Form'!$B515=\"Subscriber\",'Enrollment Form'!$C515=\"Enroll\",'Enrollment Form'!$CO515<>\"\"),\"Y\",\"N\")))","v":""},{"$f":"IF($B508=\"N\",\"\",IF($S508=\"-\",\"-\",IF(AND($S508=\"Y\",'Enrollment Form'!$CO515=\"No\"),\"-\",IF(AND($S508=\"Y\",'Enrollment Form'!$CO515=\"Yes\",'Enrollment Form'!$CP515<>\"\"),\"Y\",\"N\"))))","v":""},{"$f":"IF(OR('Enrollment Form'!$AV515=\"Yes\",'Enrollment Form'!$AV515=\"\"),\"-\",IF(AND('Enrollment Form'!$AV515=\"No\",ISERROR(FIND(\"HMO\",VLOOKUP('Enrollment Form'!G515,'Enrollment Form'!H$11:J$1000,3,FALSE),1))=FALSE,COUNTA('Enrollment Form'!$AW515:$AZ515)=4),\"Y\",\"N\"))","v":"-"},{"$f":"IF($B508=\"N\",\"\",IF('Enrollment Form'!$B515=\"Subscriber\",\"-\",IF(COUNTA('Enrollment Form'!$BE515,'Enrollment Form'!$BG515)=2,\"Y\",\"N\")))","v":""},{"$f":"IF($B508=\"N\",\"\",IF(OR('Enrollment Form'!$AU515=\"\",'Enrollment Form'!$AU515=\"No\"),\"-\",IF(AND('Enrollment Form'!$AU515=\"Yes\",COUNTA('Enrollment Form'!$CK515)=1),\"Y\",\"N\")))","v":""},{"$f":"IF(OR('Enrollment Form'!$CK515=\"\",'Enrollment Form'!$CK515=\"No\"),\"-\",IF(COUNTA('Enrollment Form'!$CM515:$CN515)=2,\"Y\",\"N\"))","v":"-"},{"$f":"IF($B508=\"N\",\"\",IF(COUNTIF('Enrollment Form'!$CZ515:$DO515,\"Other\")=COUNTA('Enrollment Form'!$DF515,'Enrollment Form'!$DA515,'Enrollment Form'!$DK515,'Enrollment Form'!$DP515),\"Y\",\"N\"))","v":""},{"$f":"IF($B508=\"N\",\"\",IF(OR('Enrollment Form'!B515<>\"Subscriber\",'Enrollment Form'!C515=\"ROC\",COUNTIF('Enrollment Form'!AS515:AT515,\"Yes\")>=1),\"-\",IF(AND('Enrollment Form'!C515=\"Enroll\",COUNTIF('Enrollment Form'!AS515:AT515,\"No\")=2,'Enrollment Form'!AU515=\"\"),\"N\",\"Y\")))","v":""},{"$f":"IF(OR(B508=\"N\",'Enrollment Form'!B515<>\"Subscriber\",'Enrollment Form'!C515=\"ROC\",'Enrollment Form'!O515<>\"Multiple of Salary\"),\"-\",IF(COUNTA('Enrollment Form'!T515:U515)<2,\"N\",\"Y\"))","v":"-"},{"$f":"IF(B508=\"N\",\"\",IF(OR('Enrollment Form'!C515=\"ROC\",'Enrollment Form'!B515<>\"Subscriber\",'Enrollment Form'!O515=\"Waive\",'Enrollment Form'!O515=\"\"),\"-\",IF('Enrollment Form'!P515=\"\",\"N\",\"Y\")))","v":""},{"$f":"IF($B508=\"N\",\"\",IF(AND('Enrollment Form'!$C515=\"ROC\",'Enrollment Form'!$DS515<>\"\"),\"Y\",IF(AND('Enrollment Form'!$C515=\"ROC\",'Enrollment Form'!$DS515=\"\"),\"N\",IF(AND('Enrollment Form'!$C515=\"Enroll\",'Enrollment Form'!$B515=\"Subscriber\",'Enrollment Form'!$CQ515=\"No\",'Enrollment Form'!$DS515=\"\"),\"N\",IF(AND('Enrollment Form'!$C515=\"Enroll\",'Enrollment Form'!$B515=\"Subscriber\",'Enrollment Form'!$CQ515=\"Yes\"),\"-\",\"Y\")))))","v":""},{"$f":"IF($B508=\"N\",\"\",IF(AND('Enrollment Form'!$C515=\"ROC\",'Enrollment Form'!$DT515<>\"\"),\"Y\",IF(AND('Enrollment Form'!$C515=\"ROC\",'Enrollment Form'!$DT515=\"\"),\"N\",IF(AND('Enrollment Form'!$C515=\"Enroll\",'Enrollment Form'!$B515=\"Subscriber\",'Enrollment Form'!$CQ515=\"No\",'Enrollment Form'!$DT515=\"\"),\"N\",IF(AND('Enrollment Form'!$C515=\"Enroll\",'Enrollment Form'!$B515=\"Subscriber\",'Enrollment Form'!$CQ515=\"Yes\"),\"-\",\"Y\")))))","v":""},{"$f":"IF('Enrollment Form'!AH515=\"\",\"\",IF(ISERROR(SEARCH(\".\",'Enrollment Form'!AH515,SEARCH(\"@\",'Enrollment Form'!AH515))),\"N\",\"Y\"))","v":""},{"$f":"IF(OR($B508=\"N\",'Enrollment Form'!$G515=\"\"),\"\",IF('Enrollment Form'!$B515<>\"Subscriber\",\"-\",IF(COUNTIF('Enrollment Form'!$AS515:$AT515,\"Yes\")=2,\"N\",\"Y\")))","v":""},{"$f":"IF(OR('Enrollment Form'!$CC515=\"\",'Enrollment Form'!$CC515=\"No\"),\"-\",IF(AND('Enrollment Form'!$CC515=\"Yes\",'Enrollment Form'!$CD515=\"\"),\"N\",\"Y\"))","v":"-"},{"$f":"IF(OR('Enrollment Form'!$CE515=\"\",'Enrollment Form'!$CE515=\"No\"),\"-\",IF(AND('Enrollment Form'!$CE515=\"Yes\",'Enrollment Form'!$CF515=\"\"),\"N\",\"Y\"))","v":"-"},{"$f":"IF(OR('Enrollment Form'!$CG515=\"\",'Enrollment Form'!$CG515=\"No\"),\"-\",IF(AND('Enrollment Form'!$CG515=\"Yes\",'Enrollment Form'!$CH515=\"\"),\"N\",\"Y\"))","v":"-"},{"$f":"IF(OR('Enrollment Form'!$CG515=\"\",'Enrollment Form'!$CG515=\"No\"),\"-\",IF(AND('Enrollment Form'!$CG515=\"Yes\",'Enrollment Form'!$CI515=\"\"),\"N\",\"Y\"))","v":"-"},{"$f":"IF('Enrollment Form'!B515<>\"Subscriber\",\"-\",IF(AND('Enrollment Form'!B515=\"Subscriber\",'Enrollment Form'!C515=\"Enroll\",'Enrollment Form'!AA515=\"\"),\"N\",\"Y\"))","v":"-"},{"$f":"IF(OR('Enrollment Form'!B515=\"Subscriber\",'Enrollment Form'!B515=\"\"),\"-\",IF('Enrollment Form'!BI515=\"\",\"N\",\"Y\"))","v":"-"},{"$f":"IF('Enrollment Form'!B515<>\"Subscriber\",\"-\",IF(AND('Enrollment Form'!B515=\"Subscriber\",'Enrollment Form'!G515=\"\"),\"N\",\"Y\"))","v":"-"},{"$f":"IF('Enrollment Form'!A515=\"\",\"\",IF('Enrollment Form'!B515=\"Subscriber\",\"-\",IF(AND('Enrollment Form'!B515<>\"Subscriber\",'Enrollment Form'!G515='Enrollment Form'!H515),\"N\",\"Y\")))","v":""},0]
[516,{"$f":"IF('Enrollment Form'!$A516<>\"\",\"Y\",\"N\")","v":"N"},{"$f":"IF(AND('Enrollment Form'!$B516=\"\",'Enrollment Form'!$C516<>\"\"),\"N\",IF($B509=\"N\",\"\",\"Y\"))","v":""},{"$f":"IF(OR($B509=\"N\",'Enrollment Form'!G516=\"\"),\"\",IF('Enrollment Form'!$B516<>\"Subscriber\",\"\",IF('Enrollment Form'!$G516='Enrollment Form'!$H516,\"Y\",\"N\")))","v":""},{"$f":"IF($B509=\"N\",\"\",IF(AND(COUNTIFS('Enrollment Form'!$H$11:$H$1000,'Enrollment Form'!$H516,'Enrollment Form'!$B$11:$B$1000,'Enrollment Form'!$B516)>1,'Enrollment Form'!$H516<>\"\"),\"N\",\"Y\"))","v":""},{"$f":"IF($B509=\"N\",\"\",IF(LEN('Enrollment Form'!$Y516)=0,\"\",IF(LEN('Enrollment Form'!$Y516)<>5,\"N\",\"Y\")))","v":""},{"$f":"IF($B509=\"N\",\"\",IF(LEN('Enrollment Form'!$AD516=0),\"\",IF(LEN('Enrollment Form'!$AD516)<>5,\"N\",\"Y\")))","v":""},{"$f":"IF($B509=\"N\",\"\",IF(LEN('Enrollment Form'!$BL516=0),\"\",IF(LEN('Enrollment Form'!$BL516)<>5,\"N\",\"Y\")))","v":""},{"$f":"IF($B509=\"N\",\"\",IF(LEN('Enrollment Form'!$AE516)=0,\"\",IF(LEN('Enrollment Form'!$AE516)<>10,\"N\",\"Y\")))","v":""},{"$f":"IF($B509=\"N\",\"\",IF(LEN('Enrollment Form'!$AF516)=0,\"\",IF(LEN('Enrollment Form'!$AF516)<>10,\"N\",\"Y\")))","v":""},{"$f":"IF('Enrollment Form'!$O516<>\"Graded\",\"-\",IF(AND('Enrollment Form'!$O516=\"Graded\",'Enrollment Form'!$AO516<>\"\"),\"Y\",\"N\"))","v":"-"},{"$f":"IF($B509=\"N\",\"\",IF(OR('Enrollment Form'!$B516<>\"Subscriber\",'Enrollment Form'!$C516=\"ROC\"),\"-\",IF(AND('Enrollment Form'!$B516=\"Subscriber\",'Enrollment Form'!$C516=\"Enroll\",'Enrollment Form'!$AJ516<>\"\"),\"Y\",\"N\")))","v":""},{"$f":"IF($B509=\"N\",\"\",IF(OR('Enrollment Form'!$B516<>\"Subscriber\",'Enrollment Form'!$C516=\"ROC\"),\"-\",IF(AND('Enrollment Form'!$B516=\"Subscriber\",'Enrollment Form'!$C516=\"Enroll\",'Enrollment Form'!$AK516<>\"\"),\"Y\",\"N\")))","v":""},{"$f":"IF($B509=\"N\",\"\",IF(OR('Enrollment Form'!$B516<>\"Subscriber\",'Enrollment Form'!$C516=\"ROC\"),\"-\",IF(AND('Enrollment Form'!$B516=\"Subscriber\",'Enrollment Form'!$C516=\"Enroll\",'Enrollment Form'!$AL516<>\"\"),\"Y\",\"N\")))","v":""},{"$f":"IF($B509=\"N\",\"\",IF(OR('Enrollment Form'!$B516<>\"Subscriber\",'Enrollment Form'!$C516=\"ROC\"),\"-\",IF(AND('Enrollment Form'!$B516=\"Subscriber\",'Enrollment Form'!$C516=\"Enroll\",'Enrollment Form'!$AM516<>\"\"),\"Y\",\"N\")))","v":""},{"$f":"IF($B509=\"N\",\"\",IF(OR('Enrollment Form'!$B516<>\"Subscriber\",'Enrollment Form'!$C516=\"ROC\"),\"-\",IF(AND('Enrollment Form'!$B516=\"Subscriber\",'Enrollment Form'!$C516=\"Enroll\",'Enrollment Form'!$AN516<>\"\"),\"Y\",\"N\")))","v":""},{"$f":"IF($B509=\"N\",\"\",IF(OR('Enrollment Form'!$B516<>\"Subscriber\",'Enrollment Form'!$C516=\"ROC\"),\"-\",IF(AND('Enrollment Form'!$B516=\"Subscriber\",'Enrollment Form'!$C516=\"Enroll\",'Enrollment Form'!$AP516<>\"\"),\"Y\",\"N\")))","v":""},{"$f":"IF($B509=\"N\",\"\",IF($Q509=\"-\",\"-\",IF(AND($Q509=\"Y\",'Enrollment Form'!$AP516=\"No\"),\"-\",IF(AND($Q509=\"Y\",'Enrollment Form'!$AP516=\"Yes\",'Enrollment Form'!$AQ516<>\"\"),\"Y\",\"N\"))))","v":""},{"$f":"IF($B509=\"N\",\"\",IF(OR('Enrollment Form'!$B516<>\"Subscriber\",'Enrollment Form'!$C516=\"ROC\"),\"-\",IF(AND('Enrollment Form'!$B516=\"Subscriber\",'Enrollment Form'!$C516=\"Enroll\",'Enrollment Form'!$CO516<>\"\"),\"Y\",\"N\")))","v":""},{"$f":"IF($B509=\"N\",\"\",IF($S509=\"-\",\"-\",IF(AND($S509=\"Y\",'Enrollment Form'!$CO516=\"No\"),\"-\",IF(AND($S509=\"Y\",'Enrollment Form'!$CO516=\"Yes\",'Enrollment Form'!$CP516<>\"\"),\"Y\",\"N\"))))","v":""},{"$f":"IF(OR('Enrollment Form'!$AV516=\"Yes\",'Enrollment Form'!$AV516=\"\"),\"-\",IF(AND('Enrollment Form'!$AV516=\"No\",ISERROR(FIND(\"HMO\",VLOOKUP('Enrollment Form'!G516,'Enrollment Form'!H$11:J$1000,3,FALSE),1))=FALSE,COUNTA('Enrollment Form'!$AW516:$AZ516)=4),\"Y\",\"N\"))","v":"-"},{"$f":"IF($B509=\"N\",\"\",IF('Enrollment Form'!$B516=\"Subscriber\",\"-\",IF(COUNTA('Enrollment Form'!$BE516,'Enrollment Form'!$BG516)=2,\"Y\",\"N\")))","v":""},{"$f":"IF($B509=\"N\",\"\",IF(OR('Enrollment Form'!$AU516=\"\",'Enrollment Form'!$AU516=\"No\"),\"-\",IF(AND('Enrollment Form'!$AU516=\"Yes\",COUNTA('Enrollment Form'!$CK516)=1),\"Y\",\"N\")))","v":""},{"$f":"IF(OR('Enrollment Form'!$CK516=\"\",'Enrollment Form'!$CK516=\"No\"),\"-\",IF(COUNTA('Enrollment Form'!$CM516:$CN516)=2,\"Y\",\"N\"))","v":"-"},{"$f":"IF($B509=\"N\",\"\",IF(COUNTIF('Enrollment Form'!$CZ516:$DO516,\"Other\")=COUNTA('Enrollment Form'!$DF516,'Enrollment Form'!$DA516,'Enrollment Form'!$DK516,'Enrollment Form'!$DP516),\"Y\",\"N\"))","v":""},{"$f":"IF($B509=\"N\",\"\",IF(OR('Enrollment Form'!B516<>\"Subscriber\",'Enrollment Form'!C516=\"ROC\",COUNTIF('Enrollment Form'!AS516:AT516,\"Yes\")>=1),\"-\",IF(AND('Enrollment Form'!C516=\"Enroll\",COUNTIF('Enrollment Form'!AS516:AT516,\"No\")=2,'Enrollment Form'!AU516=\"\"),\"N\",\"Y\")))","v":""},{"$f":"IF(OR(B509=\"N\",'Enrollment Form'!B516<>\"Subscriber\",'Enrollment Form'!C516=\"ROC\",'Enrollment Form'!O516<>\"Multiple of Salary\"),\"-\",IF(COUNTA('Enrollment Form'!T516:U516)<2,\"N\",\"Y\"))","v":"-"},{"$f":"IF(B509=\"N\",\"\",IF(OR('Enrollment Form'!C516=\"ROC\",'Enrollment Form'!B516<>\"Subscriber\",'Enrollment Form'!O516=\"Waive\",'Enrollment Form'!O516=\"\"),\"-\",IF('Enrollment Form'!P516=\"\",\"N\",\"Y\")))","v":""},{"$f":"IF($B509=\"N\",\"\",IF(AND('Enrollment Form'!$C516=\"ROC\",'Enrollment Form'!$DS516<>\"\"),\"Y\",IF(AND('Enrollment Form'!$C516=\"ROC\",'Enrollment Form'!$DS516=\"\"),\"N\",IF(AND('Enrollment Form'!$C516=\"Enroll\",'Enrollment Form'!$B516=\"Subscriber\",'Enrollment Form'!$CQ516=\"No\",'Enrollment Form'!$DS516=\"\"),\"N\",IF(AND('Enrollment Form'!$C516=\"Enroll\",'Enrollment Form'!$B516=\"Subscriber\",'Enrollment Form'!$CQ516=\"Yes\"),\"-\",\"Y\")))))","v":""},{"$f":"IF($B509=\"N\",\"\",IF(AND('Enrollment Form'!$C516=\"ROC\",'Enrollment Form'!$DT516<>\"\"),\"Y\",IF(AND('Enrollment Form'!$C516=\"ROC\",'Enrollment Form'!$DT516=\"\"),\"N\",IF(AND('Enrollment Form'!$C516=\"Enroll\",'Enrollment Form'!$B516=\"Subscriber\",'Enrollment Form'!$CQ516=\"No\",'Enrollment Form'!$DT516=\"\"),\"N\",IF(AND('Enrollment Form'!$C516=\"Enroll\",'Enrollment Form'!$B516=\"Subscriber\",'Enrollment Form'!$CQ516=\"Yes\"),\"-\",\"Y\")))))","v":""},{"$f":"IF('Enrollment Form'!AH516=\"\",\"\",IF(ISERROR(SEARCH(\".\",'Enrollment Form'!AH516,SEARCH(\"@\",'Enrollment Form'!AH516))),\"N\",\"Y\"))","v":""},{"$f":"IF(OR($B509=\"N\",'Enrollment Form'!$G516=\"\"),\"\",IF('Enrollment Form'!$B516<>\"Subscriber\",\"-\",IF(COUNTIF('Enrollment Form'!$AS516:$AT516,\"Yes\")=2,\"N\",\"Y\")))","v":""},{"$f":"IF(OR('Enrollment Form'!$CC516=\"\",'Enrollment Form'!$CC516=\"No\"),\"-\",IF(AND('Enrollment Form'!$CC516=\"Yes\",'Enrollment Form'!$CD516=\"\"),\"N\",\"Y\"))","v":"-"},{"$f":"IF(OR('Enrollment Form'!$CE516=\"\",'Enrollment Form'!$CE516=\"No\"),\"-\",IF(AND('Enrollment Form'!$CE516=\"Yes\",'Enrollment Form'!$CF516=\"\"),\"N\",\"Y\"))","v":"-"},{"$f":"IF(OR('Enrollment Form'!$CG516=\"\",'Enrollment Form'!$CG516=\"No\"),\"-\",IF(AND('Enrollment Form'!$CG516=\"Yes\",'Enrollment Form'!$CH516=\"\"),\"N\",\"Y\"))","v":"-"},{"$f":"IF(OR('Enrollment Form'!$CG516=\"\",'Enrollment Form'!$CG516=\"No\"),\"-\",IF(AND('Enrollment Form'!$CG516=\"Yes\",'Enrollment Form'!$CI516=\"\"),\"N\",\"Y\"))","v":"-"},{"$f":"IF('Enrollment Form'!B516<>\"Subscriber\",\"-\",IF(AND('Enrollment Form'!B516=\"Subscriber\",'Enrollment Form'!C516=\"Enroll\",'Enrollment Form'!AA516=\"\"),\"N\",\"Y\"))","v":"-"},{"$f":"IF(OR('Enrollment Form'!B516=\"Subscriber\",'Enrollment Form'!B516=\"\"),\"-\",IF('Enrollment Form'!BI516=\"\",\"N\",\"Y\"))","v":"-"},{"$f":"IF('Enrollment Form'!B516<>\"Subscriber\",\"-\",IF(AND('Enrollment Form'!B516=\"Subscriber\",'Enrollment Form'!G516=\"\"),\"N\",\"Y\"))","v":"-"},{"$f":"IF('Enrollment Form'!A516=\"\",\"\",IF('Enrollment Form'!B516=\"Subscriber\",\"-\",IF(AND('Enrollment Form'!B516<>\"Subscriber\",'Enrollment Form'!G516='Enrollment Form'!H516),\"N\",\"Y\")))","v":""},0]
[517,{"$f":"IF('Enrollment Form'!$A517<>\"\",\"Y\",\"N\")","v":"N"},{"$f":"IF(AND('Enrollment Form'!$B517=\"\",'Enrollment Form'!$C517<>\"\"),\"N\",IF($B510=\"N\",\"\",\"Y\"))","v":""},{"$f":"IF(OR($B510=\"N\",'Enrollment Form'!G517=\"\"),\"\",IF('Enrollment Form'!$B517<>\"Subscriber\",\"\",IF('Enrollment Form'!$G517='Enrollment Form'!$H517,\"Y\",\"N\")))","v":""},{"$f":"IF($B510=\"N\",\"\",IF(AND(COUNTIFS('Enrollment Form'!$H$11:$H$1000,'Enrollment Form'!$H517,'Enrollment Form'!$B$11:$B$1000,'Enrollment Form'!$B517)>1,'Enrollment Form'!$H517<>\"\"),\"N\",\"Y\"))","v":""},{"$f":"IF($B510=\"N\",\"\",IF(LEN('Enrollment Form'!$Y517)=0,\"\",IF(LEN('Enrollment Form'!$Y517)<>5,\"N\",\"Y\")))","v":""},{"$f":"IF($B510=\"N\",\"\",IF(LEN('Enrollment Form'!$AD517=0),\"\",IF(LEN('Enrollment Form'!$AD517)<>5,\"N\",\"Y\")))","v":""},{"$f":"IF($B510=\"N\",\"\",IF(LEN('Enrollment Form'!$BL517=0),\"\",IF(LEN('Enrollment Form'!$BL517)<>5,\"N\",\"Y\")))","v":""},{"$f":"IF($B510=\"N\",\"\",IF(LEN('Enrollment Form'!$AE517)=0,\"\",IF(LEN('Enrollment Form'!$AE517)<>10,\"N\",\"Y\")))","v":""},{"$f":"IF($B510=\"N\",\"\",IF(LEN('Enrollment Form'!$AF517)=0,\"\",IF(LEN('Enrollment Form'!$AF517)<>10,\"N\",\"Y\")))","v":""},{"$f":"IF('Enrollment Form'!$O517<>\"Graded\",\"-\",IF(AND('Enrollment Form'!$O517=\"Graded\",'Enrollment Form'!$AO517<>\"\"),\"Y\",\"N\"))","v":"-"},{"$f":"IF($B510=\"N\",\"\",IF(OR('Enrollment Form'!$B517<>\"Subscriber\",'Enrollment Form'!$C517=\"ROC\"),\"-\",IF(AND('Enrollment Form'!$B517=\"Subscriber\",'Enrollment Form'!$C517=\"Enroll\",'Enrollment Form'!$AJ517<>\"\"),\"Y\",\"N\")))","v":""},{"$f":"IF($B510=\"N\",\"\",IF(OR('Enrollment Form'!$B517<>\"Subscriber\",'Enrollment Form'!$C517=\"ROC\"),\"-\",IF(AND('Enrollment Form'!$B517=\"Subscriber\",'Enrollment Form'!$C517=\"Enroll\",'Enrollment Form'!$AK517<>\"\"),\"Y\",\"N\")))","v":""},{"$f":"IF($B510=\"N\",\"\",IF(OR('Enrollment Form'!$B517<>\"Subscriber\",'Enrollment Form'!$C517=\"ROC\"),\"-\",IF(AND('Enrollment Form'!$B517=\"Subscriber\",'Enrollment Form'!$C517=\"Enroll\",'Enrollment Form'!$AL517<>\"\"),\"Y\",\"N\")))","v":""},{"$f":"IF($B510=\"N\",\"\",IF(OR('Enrollment Form'!$B517<>\"Subscriber\",'Enrollment Form'!$C517=\"ROC\"),\"-\",IF(AND('Enrollment Form'!$B517=\"Subscriber\",'Enrollment Form'!$C517=\"Enroll\",'Enrollment Form'!$AM517<>\"\"),\"Y\",\"N\")))","v":""},{"$f":"IF($B510=\"N\",\"\",IF(OR('Enrollment Form'!$B517<>\"Subscriber\",'Enrollment Form'!$C517=\"ROC\"),\"-\",IF(AND('Enrollment Form'!$B517=\"Subscriber\",'Enrollment Form'!$C517=\"Enroll\",'Enrollment Form'!$AN517<>\"\"),\"Y\",\"N\")))","v":""},{"$f":"IF($B510=\"N\",\"\",IF(OR('Enrollment Form'!$B517<>\"Subscriber\",'Enrollment Form'!$C517=\"ROC\"),\"-\",IF(AND('Enrollment Form'!$B517=\"Subscriber\",'Enrollment Form'!$C517=\"Enroll\",'Enrollment Form'!$AP517<>\"\"),\"Y\",\"N\")))","v":""},{"$f":"IF($B510=\"N\",\"\",IF($Q510=\"-\",\"-\",IF(AND($Q510=\"Y\",'Enrollment Form'!$AP517=\"No\"),\"-\",IF(AND($Q510=\"Y\",'Enrollment Form'!$AP517=\"Yes\",'Enrollment Form'!$AQ517<>\"\"),\"Y\",\"N\"))))","v":""},{"$f":"IF($B510=\"N\",\"\",IF(OR('Enrollment Form'!$B517<>\"Subscriber\",'Enrollment Form'!$C517=\"ROC\"),\"-\",IF(AND('Enrollment Form'!$B517=\"Subscriber\",'Enrollment Form'!$C517=\"Enroll\",'Enrollment Form'!$CO517<>\"\"),\"Y\",\"N\")))","v":""},{"$f":"IF($B510=\"N\",\"\",IF($S510=\"-\",\"-\",IF(AND($S510=\"Y\",'Enrollment Form'!$CO517=\"No\"),\"-\",IF(AND($S510=\"Y\",'Enrollment Form'!$CO517=\"Yes\",'Enrollment Form'!$CP517<>\"\"),\"Y\",\"N\"))))","v":""},{"$f":"IF(OR('Enrollment Form'!$AV517=\"Yes\",'Enrollment Form'!$AV517=\"\"),\"-\",IF(AND('Enrollment Form'!$AV517=\"No\",ISERROR(FIND(\"HMO\",VLOOKUP('Enrollment Form'!G517,'Enrollment Form'!H$11:J$1000,3,FALSE),1))=FALSE,COUNTA('Enrollment Form'!$AW517:$AZ517)=4),\"Y\",\"N\"))","v":"-"},{"$f":"IF($B510=\"N\",\"\",IF('Enrollment Form'!$B517=\"Subscriber\",\"-\",IF(COUNTA('Enrollment Form'!$BE517,'Enrollment Form'!$BG517)=2,\"Y\",\"N\")))","v":""},{"$f":"IF($B510=\"N\",\"\",IF(OR('Enrollment Form'!$AU517=\"\",'Enrollment Form'!$AU517=\"No\"),\"-\",IF(AND('Enrollment Form'!$AU517=\"Yes\",COUNTA('Enrollment Form'!$CK517)=1),\"Y\",\"N\")))","v":""},{"$f":"IF(OR('Enrollment Form'!$CK517=\"\",'Enrollment Form'!$CK517=\"No\"),\"-\",IF(COUNTA('Enrollment Form'!$CM517:$CN517)=2,\"Y\",\"N\"))","v":"-"},{"$f":"IF($B510=\"N\",\"\",IF(COUNTIF('Enrollment Form'!$CZ517:$DO517,\"Other\")=COUNTA('Enrollment Form'!$DF517,'Enrollment Form'!$DA517,'Enrollment Form'!$DK517,'Enrollment Form'!$DP517),\"Y\",\"N\"))","v":""},{"$f":"IF($B510=\"N\",\"\",IF(OR('Enrollment Form'!B517<>\"Subscriber\",'Enrollment Form'!C517=\"ROC\",COUNTIF('Enrollment Form'!AS517:AT517,\"Yes\")>=1),\"-\",IF(AND('Enrollment Form'!C517=\"Enroll\",COUNTIF('Enrollment Form'!AS517:AT517,\"No\")=2,'Enrollment Form'!AU517=\"\"),\"N\",\"Y\")))","v":""},{"$f":"IF(OR(B510=\"N\",'Enrollment Form'!B517<>\"Subscriber\",'Enrollment Form'!C517=\"ROC\",'Enrollment Form'!O517<>\"Multiple of Salary\"),\"-\",IF(COUNTA('Enrollment Form'!T517:U517)<2,\"N\",\"Y\"))","v":"-"},{"$f":"IF(B510=\"N\",\"\",IF(OR('Enrollment Form'!C517=\"ROC\",'Enrollment Form'!B517<>\"Subscriber\",'Enrollment Form'!O517=\"Waive\",'Enrollment Form'!O517=\"\"),\"-\",IF('Enrollment Form'!P517=\"\",\"N\",\"Y\")))","v":""},{"$f":"IF($B510=\"N\",\"\",IF(AND('Enrollment Form'!$C517=\"ROC\",'Enrollment Form'!$DS517<>\"\"),\"Y\",IF(AND('Enrollment Form'!$C517=\"ROC\",'Enrollment Form'!$DS517=\"\"),\"N\",IF(AND('Enrollment Form'!$C517=\"Enroll\",'Enrollment Form'!$B517=\"Subscriber\",'Enrollment Form'!$CQ517=\"No\",'Enrollment Form'!$DS517=\"\"),\"N\",IF(AND('Enrollment Form'!$C517=\"Enroll\",'Enrollment Form'!$B517=\"Subscriber\",'Enrollment Form'!$CQ517=\"Yes\"),\"-\",\"Y\")))))","v":""},{"$f":"IF($B510=\"N\",\"\",IF(AND('Enrollment Form'!$C517=\"ROC\",'Enrollment Form'!$DT517<>\"\"),\"Y\",IF(AND('Enrollment Form'!$C517=\"ROC\",'Enrollment Form'!$DT517=\"\"),\"N\",IF(AND('Enrollment Form'!$C517=\"Enroll\",'Enrollment Form'!$B517=\"Subscriber\",'Enrollment Form'!$CQ517=\"No\",'Enrollment Form'!$DT517=\"\"),\"N\",IF(AND('Enrollment Form'!$C517=\"Enroll\",'Enrollment Form'!$B517=\"Subscriber\",'Enrollment Form'!$CQ517=\"Yes\"),\"-\",\"Y\")))))","v":""},{"$f":"IF('Enrollment Form'!AH517=\"\",\"\",IF(ISERROR(SEARCH(\".\",'Enrollment Form'!AH517,SEARCH(\"@\",'Enrollment Form'!AH517))),\"N\",\"Y\"))","v":""},{"$f":"IF(OR($B510=\"N\",'Enrollment Form'!$G517=\"\"),\"\",IF('Enrollment Form'!$B517<>\"Subscriber\",\"-\",IF(COUNTIF('Enrollment Form'!$AS517:$AT517,\"Yes\")=2,\"N\",\"Y\")))","v":""},{"$f":"IF(OR('Enrollment Form'!$CC517=\"\",'Enrollment Form'!$CC517=\"No\"),\"-\",IF(AND('Enrollment Form'!$CC517=\"Yes\",'Enrollment Form'!$CD517=\"\"),\"N\",\"Y\"))","v":"-"},{"$f":"IF(OR('Enrollment Form'!$CE517=\"\",'Enrollment Form'!$CE517=\"No\"),\"-\",IF(AND('Enrollment Form'!$CE517=\"Yes\",'Enrollment Form'!$CF517=\"\"),\"N\",\"Y\"))","v":"-"},{"$f":"IF(OR('Enrollment Form'!$CG517=\"\",'Enrollment Form'!$CG517=\"No\"),\"-\",IF(AND('Enrollment Form'!$CG517=\"Yes\",'Enrollment Form'!$CH517=\"\"),\"N\",\"Y\"))","v":"-"},{"$f":"IF(OR('Enrollment Form'!$CG517=\"\",'Enrollment Form'!$CG517=\"No\"),\"-\",IF(AND('Enrollment Form'!$CG517=\"Yes\",'Enrollment Form'!$CI517=\"\"),\"N\",\"Y\"))","v":"-"},{"$f":"IF('Enrollment Form'!B517<>\"Subscriber\",\"-\",IF(AND('Enrollment Form'!B517=\"Subscriber\",'Enrollment Form'!C517=\"Enroll\",'Enrollment Form'!AA517=\"\"),\"N\",\"Y\"))","v":"-"},{"$f":"IF(OR('Enrollment Form'!B517=\"Subscriber\",'Enrollment Form'!B517=\"\"),\"-\",IF('Enrollment Form'!BI517=\"\",\"N\",\"Y\"))","v":"-"},{"$f":"IF('Enrollment Form'!B517<>\"Subscriber\",\"-\",IF(AND('Enrollment Form'!B517=\"Subscriber\",'Enrollment Form'!G517=\"\"),\"N\",\"Y\"))","v":"-"},{"$f":"IF('Enrollment Form'!A517=\"\",\"\",IF('Enrollment Form'!B517=\"Subscriber\",\"-\",IF(AND('Enrollment Form'!B517<>\"Subscriber\",'Enrollment Form'!G517='Enrollment Form'!H517),\"N\",\"Y\")))","v":""},0]
[518,{"$f":"IF('Enrollment Form'!$A518<>\"\",\"Y\",\"N\")","v":"N"},{"$f":"IF(AND('Enrollment Form'!$B518=\"\",'Enrollment Form'!$C518<>\"\"),\"N\",IF($B511=\"N\",\"\",\"Y\"))","v":""},{"$f":"IF(OR($B511=\"N\",'Enrollment Form'!G518=\"\"),\"\",IF('Enrollment Form'!$B518<>\"Subscriber\",\"\",IF('Enrollment Form'!$G518='Enrollment Form'!$H518,\"Y\",\"N\")))","v":""},{"$f":"IF($B511=\"N\",\"\",IF(AND(COUNTIFS('Enrollment Form'!$H$11:$H$1000,'Enrollment Form'!$H518,'Enrollment Form'!$B$11:$B$1000,'Enrollment Form'!$B518)>1,'Enrollment Form'!$H518<>\"\"),\"N\",\"Y\"))","v":""},{"$f":"IF($B511=\"N\",\"\",IF(LEN('Enrollment Form'!$Y518)=0,\"\",IF(LEN('Enrollment Form'!$Y518)<>5,\"N\",\"Y\")))","v":""},{"$f":"IF($B511=\"N\",\"\",IF(LEN('Enrollment Form'!$AD518=0),\"\",IF(LEN('Enrollment Form'!$AD518)<>5,\"N\",\"Y\")))","v":""},{"$f":"IF($B511=\"N\",\"\",IF(LEN('Enrollment Form'!$BL518=0),\"\",IF(LEN('Enrollment Form'!$BL518)<>5,\"N\",\"Y\")))","v":""},{"$f":"IF($B511=\"N\",\"\",IF(LEN('Enrollment Form'!$AE518)=0,\"\",IF(LEN('Enrollment Form'!$AE518)<>10,\"N\",\"Y\")))","v":""},{"$f":"IF($B511=\"N\",\"\",IF(LEN('Enrollment Form'!$AF518)=0,\"\",IF(LEN('Enrollment Form'!$AF518)<>10,\"N\",\"Y\")))","v":""},{"$f":"IF('Enrollment Form'!$O518<>\"Graded\",\"-\",IF(AND('Enrollment Form'!$O518=\"Graded\",'Enrollment Form'!$AO518<>\"\"),\"Y\",\"N\"))","v":"-"},{"$f":"IF($B511=\"N\",\"\",IF(OR('Enrollment Form'!$B518<>\"Subscriber\",'Enrollment Form'!$C518=\"ROC\"),\"-\",IF(AND('Enrollment Form'!$B518=\"Subscriber\",'Enrollment Form'!$C518=\"Enroll\",'Enrollment Form'!$AJ518<>\"\"),\"Y\",\"N\")))","v":""},{"$f":"IF($B511=\"N\",\"\",IF(OR('Enrollment Form'!$B518<>\"Subscriber\",'Enrollment Form'!$C518=\"ROC\"),\"-\",IF(AND('Enrollment Form'!$B518=\"Subscriber\",'Enrollment Form'!$C518=\"Enroll\",'Enrollment Form'!$AK518<>\"\"),\"Y\",\"N\")))","v":""},{"$f":"IF($B511=\"N\",\"\",IF(OR('Enrollment Form'!$B518<>\"Subscriber\",'Enrollment Form'!$C518=\"ROC\"),\"-\",IF(AND('Enrollment Form'!$B518=\"Subscriber\",'Enrollment Form'!$C518=\"Enroll\",'Enrollment Form'!$AL518<>\"\"),\"Y\",\"N\")))","v":""},{"$f":"IF($B511=\"N\",\"\",IF(OR('Enrollment Form'!$B518<>\"Subscriber\",'Enrollment Form'!$C518=\"ROC\"),\"-\",IF(AND('Enrollment Form'!$B518=\"Subscriber\",'Enrollment Form'!$C518=\"Enroll\",'Enrollment Form'!$AM518<>\"\"),\"Y\",\"N\")))","v":""},{"$f":"IF($B511=\"N\",\"\",IF(OR('Enrollment Form'!$B518<>\"Subscriber\",'Enrollment Form'!$C518=\"ROC\"),\"-\",IF(AND('Enrollment Form'!$B518=\"Subscriber\",'Enrollment Form'!$C518=\"Enroll\",'Enrollment Form'!$AN518<>\"\"),\"Y\",\"N\")))","v":""},{"$f":"IF($B511=\"N\",\"\",IF(OR('Enrollment Form'!$B518<>\"Subscriber\",'Enrollment Form'!$C518=\"ROC\"),\"-\",IF(AND('Enrollment Form'!$B518=\"Subscriber\",'Enrollment Form'!$C518=\"Enroll\",'Enrollment Form'!$AP518<>\"\"),\"Y\",\"N\")))","v":""},{"$f":"IF($B511=\"N\",\"\",IF($Q511=\"-\",\"-\",IF(AND($Q511=\"Y\",'Enrollment Form'!$AP518=\"No\"),\"-\",IF(AND($Q511=\"Y\",'Enrollment Form'!$AP518=\"Yes\",'Enrollment Form'!$AQ518<>\"\"),\"Y\",\"N\"))))","v":""},{"$f":"IF($B511=\"N\",\"\",IF(OR('Enrollment Form'!$B518<>\"Subscriber\",'Enrollment Form'!$C518=\"ROC\"),\"-\",IF(AND('Enrollment Form'!$B518=\"Subscriber\",'Enrollment Form'!$C518=\"Enroll\",'Enrollment Form'!$CO518<>\"\"),\"Y\",\"N\")))","v":""},{"$f":"IF($B511=\"N\",\"\",IF($S511=\"-\",\"-\",IF(AND($S511=\"Y\",'Enrollment Form'!$CO518=\"No\"),\"-\",IF(AND($S511=\"Y\",'Enrollment Form'!$CO518=\"Yes\",'Enrollment Form'!$CP518<>\"\"),\"Y\",\"N\"))))","v":""},{"$f":"IF(OR('Enrollment Form'!$AV518=\"Yes\",'Enrollment Form'!$AV518=\"\"),\"-\",IF(AND('Enrollment Form'!$AV518=\"No\",ISERROR(FIND(\"HMO\",VLOOKUP('Enrollment Form'!G518,'Enrollment Form'!H$11:J$1000,3,FALSE),1))=FALSE,COUNTA('Enrollment Form'!$AW518:$AZ518)=4),\"Y\",\"N\"))","v":"-"},{"$f":"IF($B511=\"N\",\"\",IF('Enrollment Form'!$B518=\"Subscriber\",\"-\",IF(COUNTA('Enrollment Form'!$BE518,'Enrollment Form'!$BG518)=2,\"Y\",\"N\")))","v":""},{"$f":"IF($B511=\"N\",\"\",IF(OR('Enrollment Form'!$AU518=\"\",'Enrollment Form'!$AU518=\"No\"),\"-\",IF(AND('Enrollment Form'!$AU518=\"Yes\",COUNTA('Enrollment Form'!$CK518)=1),\"Y\",\"N\")))","v":""},{"$f":"IF(OR('Enrollment Form'!$CK518=\"\",'Enrollment Form'!$CK518=\"No\"),\"-\",IF(COUNTA('Enrollment Form'!$CM518:$CN518)=2,\"Y\",\"N\"))","v":"-"},{"$f":"IF($B511=\"N\",\"\",IF(COUNTIF('Enrollment Form'!$CZ518:$DO518,\"Other\")=COUNTA('Enrollment Form'!$DF518,'Enrollment Form'!$DA518,'Enrollment Form'!$DK518,'Enrollment Form'!$DP518),\"Y\",\"N\"))","v":""},{"$f":"IF($B511=\"N\",\"\",IF(OR('Enrollment Form'!B518<>\"Subscriber\",'Enrollment Form'!C518=\"ROC\",COUNTIF('Enrollment Form'!AS518:AT518,\"Yes\")>=1),\"-\",IF(AND('Enrollment Form'!C518=\"Enroll\",COUNTIF('Enrollment Form'!AS518:AT518,\"No\")=2,'Enrollment Form'!AU518=\"\"),\"N\",\"Y\")))","v":""},{"$f":"IF(OR(B511=\"N\",'Enrollment Form'!B518<>\"Subscriber\",'Enrollment Form'!C518=\"ROC\",'Enrollment Form'!O518<>\"Multiple of Salary\"),\"-\",IF(COUNTA('Enrollment Form'!T518:U518)<2,\"N\",\"Y\"))","v":"-"},{"$f":"IF(B511=\"N\",\"\",IF(OR('Enrollment Form'!C518=\"ROC\",'Enrollment Form'!B518<>\"Subscriber\",'Enrollment Form'!O518=\"Waive\",'Enrollment Form'!O518=\"\"),\"-\",IF('Enrollment Form'!P518=\"\",\"N\",\"Y\")))","v":""},{"$f":"IF($B511=\"N\",\"\",IF(AND('Enrollment Form'!$C518=\"ROC\",'Enrollment Form'!$DS518<>\"\"),\"Y\",IF(AND('Enrollment Form'!$C518=\"ROC\",'Enrollment Form'!$DS518=\"\"),\"N\",IF(AND('Enrollment Form'!$C518=\"Enroll\",'Enrollment Form'!$B518=\"Subscriber\",'Enrollment Form'!$CQ518=\"No\",'Enrollment Form'!$DS518=\"\"),\"N\",IF(AND('Enrollment Form'!$C518=\"Enroll\",'Enrollment Form'!$B518=\"Subscriber\",'Enrollment Form'!$CQ518=\"Yes\"),\"-\",\"Y\")))))","v":""},{"$f":"IF($B511=\"N\",\"\",IF(AND('Enrollment Form'!$C518=\"ROC\",'Enrollment Form'!$DT518<>\"\"),\"Y\",IF(AND('Enrollment Form'!$C518=\"ROC\",'Enrollment Form'!$DT518=\"\"),\"N\",IF(AND('Enrollment Form'!$C518=\"Enroll\",'Enrollment Form'!$B518=\"Subscriber\",'Enrollment Form'!$CQ518=\"No\",'Enrollment Form'!$DT518=\"\"),\"N\",IF(AND('Enrollment Form'!$C518=\"Enroll\",'Enrollment Form'!$B518=\"Subscriber\",'Enrollment Form'!$CQ518=\"Yes\"),\"-\",\"Y\")))))","v":""},{"$f":"IF('Enrollment Form'!AH518=\"\",\"\",IF(ISERROR(SEARCH(\".\",'Enrollment Form'!AH518,SEARCH(\"@\",'Enrollment Form'!AH518))),\"N\",\"Y\"))","v":""},{"$f":"IF(OR($B511=\"N\",'Enrollment Form'!$G518=\"\"),\"\",IF('Enrollment Form'!$B518<>\"Subscriber\",\"-\",IF(COUNTIF('Enrollment Form'!$AS518:$AT518,\"Yes\")=2,\"N\",\"Y\")))","v":""},{"$f":"IF(OR('Enrollment Form'!$CC518=\"\",'Enrollment Form'!$CC518=\"No\"),\"-\",IF(AND('Enrollment Form'!$CC518=\"Yes\",'Enrollment Form'!$CD518=\"\"),\"N\",\"Y\"))","v":"-"},{"$f":"IF(OR('Enrollment Form'!$CE518=\"\",'Enrollment Form'!$CE518=\"No\"),\"-\",IF(AND('Enrollment Form'!$CE518=\"Yes\",'Enrollment Form'!$CF518=\"\"),\"N\",\"Y\"))","v":"-"},{"$f":"IF(OR('Enrollment Form'!$CG518=\"\",'Enrollment Form'!$CG518=\"No\"),\"-\",IF(AND('Enrollment Form'!$CG518=\"Yes\",'Enrollment Form'!$CH518=\"\"),\"N\",\"Y\"))","v":"-"},{"$f":"IF(OR('Enrollment Form'!$CG518=\"\",'Enrollment Form'!$CG518=\"No\"),\"-\",IF(AND('Enrollment Form'!$CG518=\"Yes\",'Enrollment Form'!$CI518=\"\"),\"N\",\"Y\"))","v":"-"},{"$f":"IF('Enrollment Form'!B518<>\"Subscriber\",\"-\",IF(AND('Enrollment Form'!B518=\"Subscriber\",'Enrollment Form'!C518=\"Enroll\",'Enrollment Form'!AA518=\"\"),\"N\",\"Y\"))","v":"-"},{"$f":"IF(OR('Enrollment Form'!B518=\"Subscriber\",'Enrollment Form'!B518=\"\"),\"-\",IF('Enrollment Form'!BI518=\"\",\"N\",\"Y\"))","v":"-"},{"$f":"IF('Enrollment Form'!B518<>\"Subscriber\",\"-\",IF(AND('Enrollment Form'!B518=\"Subscriber\",'Enrollment Form'!G518=\"\"),\"N\",\"Y\"))","v":"-"},{"$f":"IF('Enrollment Form'!A518=\"\",\"\",IF('Enrollment Form'!B518=\"Subscriber\",\"-\",IF(AND('Enrollment Form'!B518<>\"Subscriber\",'Enrollment Form'!G518='Enrollment Form'!H518),\"N\",\"Y\")))","v":""},0]
[519,{"$f":"IF('Enrollment Form'!$A519<>\"\",\"Y\",\"N\")","v":"N"},{"$f":"IF(AND('Enrollment Form'!$B519=\"\",'Enrollment Form'!$C519<>\"\"),\"N\",IF($B512=\"N\",\"\",\"Y\"))","v":""},{"$f":"IF(OR($B512=\"N\",'Enrollment Form'!G519=\"\"),\"\",IF('Enrollment Form'!$B519<>\"Subscriber\",\"\",IF('Enrollment Form'!$G519='Enrollment Form'!$H519,\"Y\",\"N\")))","v":""},{"$f":"IF($B512=\"N\",\"\",IF(AND(COUNTIFS('Enrollment Form'!$H$11:$H$1000,'Enrollment Form'!$H519,'Enrollment Form'!$B$11:$B$1000,'Enrollment Form'!$B519)>1,'Enrollment Form'!$H519<>\"\"),\"N\",\"Y\"))","v":""},{"$f":"IF($B512=\"N\",\"\",IF(LEN('Enrollment Form'!$Y519)=0,\"\",IF(LEN('Enrollment Form'!$Y519)<>5,\"N\",\"Y\")))","v":""},{"$f":"IF($B512=\"N\",\"\",IF(LEN('Enrollment Form'!$AD519=0),\"\",IF(LEN('Enrollment Form'!$AD519)<>5,\"N\",\"Y\")))","v":""},{"$f":"IF($B512=\"N\",\"\",IF(LEN('Enrollment Form'!$BL519=0),\"\",IF(LEN('Enrollment Form'!$BL519)<>5,\"N\",\"Y\")))","v":""},{"$f":"IF($B512=\"N\",\"\",IF(LEN('Enrollment Form'!$AE519)=0,\"\",IF(LEN('Enrollment Form'!$AE519)<>10,\"N\",\"Y\")))","v":""},{"$f":"IF($B512=\"N\",\"\",IF(LEN('Enrollment Form'!$AF519)=0,\"\",IF(LEN('Enrollment Form'!$AF519)<>10,\"N\",\"Y\")))","v":""},{"$f":"IF('Enrollment Form'!$O519<>\"Graded\",\"-\",IF(AND('Enrollment Form'!$O519=\"Graded\",'Enrollment Form'!$AO519<>\"\"),\"Y\",\"N\"))","v":"-"},{"$f":"IF($B512=\"N\",\"\",IF(OR('Enrollment Form'!$B519<>\"Subscriber\",'Enrollment Form'!$C519=\"ROC\"),\"-\",IF(AND('Enrollment Form'!$B519=\"Subscriber\",'Enrollment Form'!$C519=\"Enroll\",'Enrollment Form'!$AJ519<>\"\"),\"Y\",\"N\")))","v":""},{"$f":"IF($B512=\"N\",\"\",IF(OR('Enrollment Form'!$B519<>\"Subscriber\",'Enrollment Form'!$C519=\"ROC\"),\"-\",IF(AND('Enrollment Form'!$B519=\"Subscriber\",'Enrollment Form'!$C519=\"Enroll\",'Enrollment Form'!$AK519<>\"\"),\"Y\",\"N\")))","v":""},{"$f":"IF($B512=\"N\",\"\",IF(OR('Enrollment Form'!$B519<>\"Subscriber\",'Enrollment Form'!$C519=\"ROC\"),\"-\",IF(AND('Enrollment Form'!$B519=\"Subscriber\",'Enrollment Form'!$C519=\"Enroll\",'Enrollment Form'!$AL519<>\"\"),\"Y\",\"N\")))","v":""},{"$f":"IF($B512=\"N\",\"\",IF(OR('Enrollment Form'!$B519<>\"Subscriber\",'Enrollment Form'!$C519=\"ROC\"),\"-\",IF(AND('Enrollment Form'!$B519=\"Subscriber\",'Enrollment Form'!$C519=\"Enroll\",'Enrollment Form'!$AM519<>\"\"),\"Y\",\"N\")))","v":""},{"$f":"IF($B512=\"N\",\"\",IF(OR('Enrollment Form'!$B519<>\"Subscriber\",'Enrollment Form'!$C519=\"ROC\"),\"-\",IF(AND('Enrollment Form'!$B519=\"Subscriber\",'Enrollment Form'!$C519=\"Enroll\",'Enrollment Form'!$AN519<>\"\"),\"Y\",\"N\")))","v":""},{"$f":"IF($B512=\"N\",\"\",IF(OR('Enrollment Form'!$B519<>\"Subscriber\",'Enrollment Form'!$C519=\"ROC\"),\"-\",IF(AND('Enrollment Form'!$B519=\"Subscriber\",'Enrollment Form'!$C519=\"Enroll\",'Enrollment Form'!$AP519<>\"\"),\"Y\",\"N\")))","v":""},{"$f":"IF($B512=\"N\",\"\",IF($Q512=\"-\",\"-\",IF(AND($Q512=\"Y\",'Enrollment Form'!$AP519=\"No\"),\"-\",IF(AND($Q512=\"Y\",'Enrollment Form'!$AP519=\"Yes\",'Enrollment Form'!$AQ519<>\"\"),\"Y\",\"N\"))))","v":""},{"$f":"IF($B512=\"N\",\"\",IF(OR('Enrollment Form'!$B519<>\"Subscriber\",'Enrollment Form'!$C519=\"ROC\"),\"-\",IF(AND('Enrollment Form'!$B519=\"Subscriber\",'Enrollment Form'!$C519=\"Enroll\",'Enrollment Form'!$CO519<>\"\"),\"Y\",\"N\")))","v":""},{"$f":"IF($B512=\"N\",\"\",IF($S512=\"-\",\"-\",IF(AND($S512=\"Y\",'Enrollment Form'!$CO519=\"No\"),\"-\",IF(AND($S512=\"Y\",'Enrollment Form'!$CO519=\"Yes\",'Enrollment Form'!$CP519<>\"\"),\"Y\",\"N\"))))","v":""},{"$f":"IF(OR('Enrollment Form'!$AV519=\"Yes\",'Enrollment Form'!$AV519=\"\"),\"-\",IF(AND('Enrollment Form'!$AV519=\"No\",ISERROR(FIND(\"HMO\",VLOOKUP('Enrollment Form'!G519,'Enrollment Form'!H$11:J$1000,3,FALSE),1))=FALSE,COUNTA('Enrollment Form'!$AW519:$AZ519)=4),\"Y\",\"N\"))","v":"-"},{"$f":"IF($B512=\"N\",\"\",IF('Enrollment Form'!$B519=\"Subscriber\",\"-\",IF(COUNTA('Enrollment Form'!$BE519,'Enrollment Form'!$BG519)=2,\"Y\",\"N\")))","v":""},{"$f":"IF($B512=\"N\",\"\",IF(OR('Enrollment Form'!$AU519=\"\",'Enrollment Form'!$AU519=\"No\"),\"-\",IF(AND('Enrollment Form'!$AU519=\"Yes\",COUNTA('Enrollment Form'!$CK519)=1),\"Y\",\"N\")))","v":""},{"$f":"IF(OR('Enrollment Form'!$CK519=\"\",'Enrollment Form'!$CK519=\"No\"),\"-\",IF(COUNTA('Enrollment Form'!$CM519:$CN519)=2,\"Y\",\"N\"))","v":"-"},{"$f":"IF($B512=\"N\",\"\",IF(COUNTIF('Enrollment Form'!$CZ519:$DO519,\"Other\")=COUNTA('Enrollment Form'!$DF519,'Enrollment Form'!$DA519,'Enrollment Form'!$DK519,'Enrollment Form'!$DP519),\"Y\",\"N\"))","v":""},{"$f":"IF($B512=\"N\",\"\",IF(OR('Enrollment Form'!B519<>\"Subscriber\",'Enrollment Form'!C519=\"ROC\",COUNTIF('Enrollment Form'!AS519:AT519,\"Yes\")>=1),\"-\",IF(AND('Enrollment Form'!C519=\"Enroll\",COUNTIF('Enrollment Form'!AS519:AT519,\"No\")=2,'Enrollment Form'!AU519=\"\"),\"N\",\"Y\")))","v":""},{"$f":"IF(OR(B512=\"N\",'Enrollment Form'!B519<>\"Subscriber\",'Enrollment Form'!C519=\"ROC\",'Enrollment Form'!O519<>\"Multiple of Salary\"),\"-\",IF(COUNTA('Enrollment Form'!T519:U519)<2,\"N\",\"Y\"))","v":"-"},{"$f":"IF(B512=\"N\",\"\",IF(OR('Enrollment Form'!C519=\"ROC\",'Enrollment Form'!B519<>\"Subscriber\",'Enrollment Form'!O519=\"Waive\",'Enrollment Form'!O519=\"\"),\"-\",IF('Enrollment Form'!P519=\"\",\"N\",\"Y\")))","v":""},{"$f":"IF($B512=\"N\",\"\",IF(AND('Enrollment Form'!$C519=\"ROC\",'Enrollment Form'!$DS519<>\"\"),\"Y\",IF(AND('Enrollment Form'!$C519=\"ROC\",'Enrollment Form'!$DS519=\"\"),\"N\",IF(AND('Enrollment Form'!$C519=\"Enroll\",'Enrollment Form'!$B519=\"Subscriber\",'Enrollment Form'!$CQ519=\"No\",'Enrollment Form'!$DS519=\"\"),\"N\",IF(AND('Enrollment Form'!$C519=\"Enroll\",'Enrollment Form'!$B519=\"Subscriber\",'Enrollment Form'!$CQ519=\"Yes\"),\"-\",\"Y\")))))","v":""},{"$f":"IF($B512=\"N\",\"\",IF(AND('Enrollment Form'!$C519=\"ROC\",'Enrollment Form'!$DT519<>\"\"),\"Y\",IF(AND('Enrollment Form'!$C519=\"ROC\",'Enrollment Form'!$DT519=\"\"),\"N\",IF(AND('Enrollment Form'!$C519=\"Enroll\",'Enrollment Form'!$B519=\"Subscriber\",'Enrollment Form'!$CQ519=\"No\",'Enrollment Form'!$DT519=\"\"),\"N\",IF(AND('Enrollment Form'!$C519=\"Enroll\",'Enrollment Form'!$B519=\"Subscriber\",'Enrollment Form'!$CQ519=\"Yes\"),\"-\",\"Y\")))))","v":""},{"$f":"IF('Enrollment Form'!AH519=\"\",\"\",IF(ISERROR(SEARCH(\".\",'Enrollment Form'!AH519,SEARCH(\"@\",'Enrollment Form'!AH519))),\"N\",\"Y\"))","v":""},{"$f":"IF(OR($B512=\"N\",'Enrollment Form'!$G519=\"\"),\"\",IF('Enrollment Form'!$B519<>\"Subscriber\",\"-\",IF(COUNTIF('Enrollment Form'!$AS519:$AT519,\"Yes\")=2,\"N\",\"Y\")))","v":""},{"$f":"IF(OR('Enrollment Form'!$CC519=\"\",'Enrollment Form'!$CC519=\"No\"),\"-\",IF(AND('Enrollment Form'!$CC519=\"Yes\",'Enrollment Form'!$CD519=\"\"),\"N\",\"Y\"))","v":"-"},{"$f":"IF(OR('Enrollment Form'!$CE519=\"\",'Enrollment Form'!$CE519=\"No\"),\"-\",IF(AND('Enrollment Form'!$CE519=\"Yes\",'Enrollment Form'!$CF519=\"\"),\"N\",\"Y\"))","v":"-"},{"$f":"IF(OR('Enrollment Form'!$CG519=\"\",'Enrollment Form'!$CG519=\"No\"),\"-\",IF(AND('Enrollment Form'!$CG519=\"Yes\",'Enrollment Form'!$CH519=\"\"),\"N\",\"Y\"))","v":"-"},{"$f":"IF(OR('Enrollment Form'!$CG519=\"\",'Enrollment Form'!$CG519=\"No\"),\"-\",IF(AND('Enrollment Form'!$CG519=\"Yes\",'Enrollment Form'!$CI519=\"\"),\"N\",\"Y\"))","v":"-"},{"$f":"IF('Enrollment Form'!B519<>\"Subscriber\",\"-\",IF(AND('Enrollment Form'!B519=\"Subscriber\",'Enrollment Form'!C519=\"Enroll\",'Enrollment Form'!AA519=\"\"),\"N\",\"Y\"))","v":"-"},{"$f":"IF(OR('Enrollment Form'!B519=\"Subscriber\",'Enrollment Form'!B519=\"\"),\"-\",IF('Enrollment Form'!BI519=\"\",\"N\",\"Y\"))","v":"-"},{"$f":"IF('Enrollment Form'!B519<>\"Subscriber\",\"-\",IF(AND('Enrollment Form'!B519=\"Subscriber\",'Enrollment Form'!G519=\"\"),\"N\",\"Y\"))","v":"-"},{"$f":"IF('Enrollment Form'!A519=\"\",\"\",IF('Enrollment Form'!B519=\"Subscriber\",\"-\",IF(AND('Enrollment Form'!B519<>\"Subscriber\",'Enrollment Form'!G519='Enrollment Form'!H519),\"N\",\"Y\")))","v":""},0]
[520,{"$f":"IF('Enrollment Form'!$A520<>\"\",\"Y\",\"N\")","v":"N"},{"$f":"IF(AND('Enrollment Form'!$B520=\"\",'Enrollment Form'!$C520<>\"\"),\"N\",IF($B513=\"N\",\"\",\"Y\"))","v":""},{"$f":"IF(OR($B513=\"N\",'Enrollment Form'!G520=\"\"),\"\",IF('Enrollment Form'!$B520<>\"Subscriber\",\"\",IF('Enrollment Form'!$G520='Enrollment Form'!$H520,\"Y\",\"N\")))","v":""},{"$f":"IF($B513=\"N\",\"\",IF(AND(COUNTIFS('Enrollment Form'!$H$11:$H$1000,'Enrollment Form'!$H520,'Enrollment Form'!$B$11:$B$1000,'Enrollment Form'!$B520)>1,'Enrollment Form'!$H520<>\"\"),\"N\",\"Y\"))","v":""},{"$f":"IF($B513=\"N\",\"\",IF(LEN('Enrollment Form'!$Y520)=0,\"\",IF(LEN('Enrollment Form'!$Y520)<>5,\"N\",\"Y\")))","v":""},{"$f":"IF($B513=\"N\",\"\",IF(LEN('Enrollment Form'!$AD520=0),\"\",IF(LEN('Enrollment Form'!$AD520)<>5,\"N\",\"Y\")))","v":""},{"$f":"IF($B513=\"N\",\"\",IF(LEN('Enrollment Form'!$BL520=0),\"\",IF(LEN('Enrollment Form'!$BL520)<>5,\"N\",\"Y\")))","v":""},{"$f":"IF($B513=\"N\",\"\",IF(LEN('Enrollment Form'!$AE520)=0,\"\",IF(LEN('Enrollment Form'!$AE520)<>10,\"N\",\"Y\")))","v":""},{"$f":"IF($B513=\"N\",\"\",IF(LEN('Enrollment Form'!$AF520)=0,\"\",IF(LEN('Enrollment Form'!$AF520)<>10,\"N\",\"Y\")))","v":""},{"$f":"IF('Enrollment Form'!$O520<>\"Graded\",\"-\",IF(AND('Enrollment Form'!$O520=\"Graded\",'Enrollment Form'!$AO520<>\"\"),\"Y\",\"N\"))","v":"-"},{"$f":"IF($B513=\"N\",\"\",IF(OR('Enrollment Form'!$B520<>\"Subscriber\",'Enrollment Form'!$C520=\"ROC\"),\"-\",IF(AND('Enrollment Form'!$B520=\"Subscriber\",'Enrollment Form'!$C520=\"Enroll\",'Enrollment Form'!$AJ520<>\"\"),\"Y\",\"N\")))","v":""},{"$f":"IF($B513=\"N\",\"\",IF(OR('Enrollment Form'!$B520<>\"Subscriber\",'Enrollment Form'!$C520=\"ROC\"),\"-\",IF(AND('Enrollment Form'!$B520=\"Subscriber\",'Enrollment Form'!$C520=\"Enroll\",'Enrollment Form'!$AK520<>\"\"),\"Y\",\"N\")))","v":""},{"$f":"IF($B513=\"N\",\"\",IF(OR('Enrollment Form'!$B520<>\"Subscriber\",'Enrollment Form'!$C520=\"ROC\"),\"-\",IF(AND('Enrollment Form'!$B520=\"Subscriber\",'Enrollment Form'!$C520=\"Enroll\",'Enrollment Form'!$AL520<>\"\"),\"Y\",\"N\")))","v":""},{"$f":"IF($B513=\"N\",\"\",IF(OR('Enrollment Form'!$B520<>\"Subscriber\",'Enrollment Form'!$C520=\"ROC\"),\"-\",IF(AND('Enrollment Form'!$B520=\"Subscriber\",'Enrollment Form'!$C520=\"Enroll\",'Enrollment Form'!$AM520<>\"\"),\"Y\",\"N\")))","v":""},{"$f":"IF($B513=\"N\",\"\",IF(OR('Enrollment Form'!$B520<>\"Subscriber\",'Enrollment Form'!$C520=\"ROC\"),\"-\",IF(AND('Enrollment Form'!$B520=\"Subscriber\",'Enrollment Form'!$C520=\"Enroll\",'Enrollment Form'!$AN520<>\"\"),\"Y\",\"N\")))","v":""},{"$f":"IF($B513=\"N\",\"\",IF(OR('Enrollment Form'!$B520<>\"Subscriber\",'Enrollment Form'!$C520=\"ROC\"),\"-\",IF(AND('Enrollment Form'!$B520=\"Subscriber\",'Enrollment Form'!$C520=\"Enroll\",'Enrollment Form'!$AP520<>\"\"),\"Y\",\"N\")))","v":""},{"$f":"IF($B513=\"N\",\"\",IF($Q513=\"-\",\"-\",IF(AND($Q513=\"Y\",'Enrollment Form'!$AP520=\"No\"),\"-\",IF(AND($Q513=\"Y\",'Enrollment Form'!$AP520=\"Yes\",'Enrollment Form'!$AQ520<>\"\"),\"Y\",\"N\"))))","v":""},{"$f":"IF($B513=\"N\",\"\",IF(OR('Enrollment Form'!$B520<>\"Subscriber\",'Enrollment Form'!$C520=\"ROC\"),\"-\",IF(AND('Enrollment Form'!$B520=\"Subscriber\",'Enrollment Form'!$C520=\"Enroll\",'Enrollment Form'!$CO520<>\"\"),\"Y\",\"N\")))","v":""},{"$f":"IF($B513=\"N\",\"\",IF($S513=\"-\",\"-\",IF(AND($S513=\"Y\",'Enrollment Form'!$CO520=\"No\"),\"-\",IF(AND($S513=\"Y\",'Enrollment Form'!$CO520=\"Yes\",'Enrollment Form'!$CP520<>\"\"),\"Y\",\"N\"))))","v":""},{"$f":"IF(OR('Enrollment Form'!$AV520=\"Yes\",'Enrollment Form'!$AV520=\"\"),\"-\",IF(AND('Enrollment Form'!$AV520=\"No\",ISERROR(FIND(\"HMO\",VLOOKUP('Enrollment Form'!G520,'Enrollment Form'!H$11:J$1000,3,FALSE),1))=FALSE,COUNTA('Enrollment Form'!$AW520:$AZ520)=4),\"Y\",\"N\"))","v":"-"},{"$f":"IF($B513=\"N\",\"\",IF('Enrollment Form'!$B520=\"Subscriber\",\"-\",IF(COUNTA('Enrollment Form'!$BE520,'Enrollment Form'!$BG520)=2,\"Y\",\"N\")))","v":""},{"$f":"IF($B513=\"N\",\"\",IF(OR('Enrollment Form'!$AU520=\"\",'Enrollment Form'!$AU520=\"No\"),\"-\",IF(AND('Enrollment Form'!$AU520=\"Yes\",COUNTA('Enrollment Form'!$CK520)=1),\"Y\",\"N\")))","v":""},{"$f":"IF(OR('Enrollment Form'!$CK520=\"\",'Enrollment Form'!$CK520=\"No\"),\"-\",IF(COUNTA('Enrollment Form'!$CM520:$CN520)=2,\"Y\",\"N\"))","v":"-"},{"$f":"IF($B513=\"N\",\"\",IF(COUNTIF('Enrollment Form'!$CZ520:$DO520,\"Other\")=COUNTA('Enrollment Form'!$DF520,'Enrollment Form'!$DA520,'Enrollment Form'!$DK520,'Enrollment Form'!$DP520),\"Y\",\"N\"))","v":""},{"$f":"IF($B513=\"N\",\"\",IF(OR('Enrollment Form'!B520<>\"Subscriber\",'Enrollment Form'!C520=\"ROC\",COUNTIF('Enrollment Form'!AS520:AT520,\"Yes\")>=1),\"-\",IF(AND('Enrollment Form'!C520=\"Enroll\",COUNTIF('Enrollment Form'!AS520:AT520,\"No\")=2,'Enrollment Form'!AU520=\"\"),\"N\",\"Y\")))","v":""},{"$f":"IF(OR(B513=\"N\",'Enrollment Form'!B520<>\"Subscriber\",'Enrollment Form'!C520=\"ROC\",'Enrollment Form'!O520<>\"Multiple of Salary\"),\"-\",IF(COUNTA('Enrollment Form'!T520:U520)<2,\"N\",\"Y\"))","v":"-"},{"$f":"IF(B513=\"N\",\"\",IF(OR('Enrollment Form'!C520=\"ROC\",'Enrollment Form'!B520<>\"Subscriber\",'Enrollment Form'!O520=\"Waive\",'Enrollment Form'!O520=\"\"),\"-\",IF('Enrollment Form'!P520=\"\",\"N\",\"Y\")))","v":""},{"$f":"IF($B513=\"N\",\"\",IF(AND('Enrollment Form'!$C520=\"ROC\",'Enrollment Form'!$DS520<>\"\"),\"Y\",IF(AND('Enrollment Form'!$C520=\"ROC\",'Enrollment Form'!$DS520=\"\"),\"N\",IF(AND('Enrollment Form'!$C520=\"Enroll\",'Enrollment Form'!$B520=\"Subscriber\",'Enrollment Form'!$CQ520=\"No\",'Enrollment Form'!$DS520=\"\"),\"N\",IF(AND('Enrollment Form'!$C520=\"Enroll\",'Enrollment Form'!$B520=\"Subscriber\",'Enrollment Form'!$CQ520=\"Yes\"),\"-\",\"Y\")))))","v":""},{"$f":"IF($B513=\"N\",\"\",IF(AND('Enrollment Form'!$C520=\"ROC\",'Enrollment Form'!$DT520<>\"\"),\"Y\",IF(AND('Enrollment Form'!$C520=\"ROC\",'Enrollment Form'!$DT520=\"\"),\"N\",IF(AND('Enrollment Form'!$C520=\"Enroll\",'Enrollment Form'!$B520=\"Subscriber\",'Enrollment Form'!$CQ520=\"No\",'Enrollment Form'!$DT520=\"\"),\"N\",IF(AND('Enrollment Form'!$C520=\"Enroll\",'Enrollment Form'!$B520=\"Subscriber\",'Enrollment Form'!$CQ520=\"Yes\"),\"-\",\"Y\")))))","v":""},{"$f":"IF('Enrollment Form'!AH520=\"\",\"\",IF(ISERROR(SEARCH(\".\",'Enrollment Form'!AH520,SEARCH(\"@\",'Enrollment Form'!AH520))),\"N\",\"Y\"))","v":""},{"$f":"IF(OR($B513=\"N\",'Enrollment Form'!$G520=\"\"),\"\",IF('Enrollment Form'!$B520<>\"Subscriber\",\"-\",IF(COUNTIF('Enrollment Form'!$AS520:$AT520,\"Yes\")=2,\"N\",\"Y\")))","v":""},{"$f":"IF(OR('Enrollment Form'!$CC520=\"\",'Enrollment Form'!$CC520=\"No\"),\"-\",IF(AND('Enrollment Form'!$CC520=\"Yes\",'Enrollment Form'!$CD520=\"\"),\"N\",\"Y\"))","v":"-"},{"$f":"IF(OR('Enrollment Form'!$CE520=\"\",'Enrollment Form'!$CE520=\"No\"),\"-\",IF(AND('Enrollment Form'!$CE520=\"Yes\",'Enrollment Form'!$CF520=\"\"),\"N\",\"Y\"))","v":"-"},{"$f":"IF(OR('Enrollment Form'!$CG520=\"\",'Enrollment Form'!$CG520=\"No\"),\"-\",IF(AND('Enrollment Form'!$CG520=\"Yes\",'Enrollment Form'!$CH520=\"\"),\"N\",\"Y\"))","v":"-"},{"$f":"IF(OR('Enrollment Form'!$CG520=\"\",'Enrollment Form'!$CG520=\"No\"),\"-\",IF(AND('Enrollment Form'!$CG520=\"Yes\",'Enrollment Form'!$CI520=\"\"),\"N\",\"Y\"))","v":"-"},{"$f":"IF('Enrollment Form'!B520<>\"Subscriber\",\"-\",IF(AND('Enrollment Form'!B520=\"Subscriber\",'Enrollment Form'!C520=\"Enroll\",'Enrollment Form'!AA520=\"\"),\"N\",\"Y\"))","v":"-"},{"$f":"IF(OR('Enrollment Form'!B520=\"Subscriber\",'Enrollment Form'!B520=\"\"),\"-\",IF('Enrollment Form'!BI520=\"\",\"N\",\"Y\"))","v":"-"},{"$f":"IF('Enrollment Form'!B520<>\"Subscriber\",\"-\",IF(AND('Enrollment Form'!B520=\"Subscriber\",'Enrollment Form'!G520=\"\"),\"N\",\"Y\"))","v":"-"},{"$f":"IF('Enrollment Form'!A520=\"\",\"\",IF('Enrollment Form'!B520=\"Subscriber\",\"-\",IF(AND('Enrollment Form'!B520<>\"Subscriber\",'Enrollment Form'!G520='Enrollment Form'!H520),\"N\",\"Y\")))","v":""},0]
[521,{"$f":"IF('Enrollment Form'!$A521<>\"\",\"Y\",\"N\")","v":"N"},{"$f":"IF(AND('Enrollment Form'!$B521=\"\",'Enrollment Form'!$C521<>\"\"),\"N\",IF($B514=\"N\",\"\",\"Y\"))","v":""},{"$f":"IF(OR($B514=\"N\",'Enrollment Form'!G521=\"\"),\"\",IF('Enrollment Form'!$B521<>\"Subscriber\",\"\",IF('Enrollment Form'!$G521='Enrollment Form'!$H521,\"Y\",\"N\")))","v":""},{"$f":"IF($B514=\"N\",\"\",IF(AND(COUNTIFS('Enrollment Form'!$H$11:$H$1000,'Enrollment Form'!$H521,'Enrollment Form'!$B$11:$B$1000,'Enrollment Form'!$B521)>1,'Enrollment Form'!$H521<>\"\"),\"N\",\"Y\"))","v":""},{"$f":"IF($B514=\"N\",\"\",IF(LEN('Enrollment Form'!$Y521)=0,\"\",IF(LEN('Enrollment Form'!$Y521)<>5,\"N\",\"Y\")))","v":""},{"$f":"IF($B514=\"N\",\"\",IF(LEN('Enrollment Form'!$AD521=0),\"\",IF(LEN('Enrollment Form'!$AD521)<>5,\"N\",\"Y\")))","v":""},{"$f":"IF($B514=\"N\",\"\",IF(LEN('Enrollment Form'!$BL521=0),\"\",IF(LEN('Enrollment Form'!$BL521)<>5,\"N\",\"Y\")))","v":""},{"$f":"IF($B514=\"N\",\"\",IF(LEN('Enrollment Form'!$AE521)=0,\"\",IF(LEN('Enrollment Form'!$AE521)<>10,\"N\",\"Y\")))","v":""},{"$f":"IF($B514=\"N\",\"\",IF(LEN('Enrollment Form'!$AF521)=0,\"\",IF(LEN('Enrollment Form'!$AF521)<>10,\"N\",\"Y\")))","v":""},{"$f":"IF('Enrollment Form'!$O521<>\"Graded\",\"-\",IF(AND('Enrollment Form'!$O521=\"Graded\",'Enrollment Form'!$AO521<>\"\"),\"Y\",\"N\"))","v":"-"},{"$f":"IF($B514=\"N\",\"\",IF(OR('Enrollment Form'!$B521<>\"Subscriber\",'Enrollment Form'!$C521=\"ROC\"),\"-\",IF(AND('Enrollment Form'!$B521=\"Subscriber\",'Enrollment Form'!$C521=\"Enroll\",'Enrollment Form'!$AJ521<>\"\"),\"Y\",\"N\")))","v":""},{"$f":"IF($B514=\"N\",\"\",IF(OR('Enrollment Form'!$B521<>\"Subscriber\",'Enrollment Form'!$C521=\"ROC\"),\"-\",IF(AND('Enrollment Form'!$B521=\"Subscriber\",'Enrollment Form'!$C521=\"Enroll\",'Enrollment Form'!$AK521<>\"\"),\"Y\",\"N\")))","v":""},{"$f":"IF($B514=\"N\",\"\",IF(OR('Enrollment Form'!$B521<>\"Subscriber\",'Enrollment Form'!$C521=\"ROC\"),\"-\",IF(AND('Enrollment Form'!$B521=\"Subscriber\",'Enrollment Form'!$C521=\"Enroll\",'Enrollment Form'!$AL521<>\"\"),\"Y\",\"N\")))","v":""},{"$f":"IF($B514=\"N\",\"\",IF(OR('Enrollment Form'!$B521<>\"Subscriber\",'Enrollment Form'!$C521=\"ROC\"),\"-\",IF(AND('Enrollment Form'!$B521=\"Subscriber\",'Enrollment Form'!$C521=\"Enroll\",'Enrollment Form'!$AM521<>\"\"),\"Y\",\"N\")))","v":""},{"$f":"IF($B514=\"N\",\"\",IF(OR('Enrollment Form'!$B521<>\"Subscriber\",'Enrollment Form'!$C521=\"ROC\"),\"-\",IF(AND('Enrollment Form'!$B521=\"Subscriber\",'Enrollment Form'!$C521=\"Enroll\",'Enrollment Form'!$AN521<>\"\"),\"Y\",\"N\")))","v":""},{"$f":"IF($B514=\"N\",\"\",IF(OR('Enrollment Form'!$B521<>\"Subscriber\",'Enrollment Form'!$C521=\"ROC\"),\"-\",IF(AND('Enrollment Form'!$B521=\"Subscriber\",'Enrollment Form'!$C521=\"Enroll\",'Enrollment Form'!$AP521<>\"\"),\"Y\",\"N\")))","v":""},{"$f":"IF($B514=\"N\",\"\",IF($Q514=\"-\",\"-\",IF(AND($Q514=\"Y\",'Enrollment Form'!$AP521=\"No\"),\"-\",IF(AND($Q514=\"Y\",'Enrollment Form'!$AP521=\"Yes\",'Enrollment Form'!$AQ521<>\"\"),\"Y\",\"N\"))))","v":""},{"$f":"IF($B514=\"N\",\"\",IF(OR('Enrollment Form'!$B521<>\"Subscriber\",'Enrollment Form'!$C521=\"ROC\"),\"-\",IF(AND('Enrollment Form'!$B521=\"Subscriber\",'Enrollment Form'!$C521=\"Enroll\",'Enrollment Form'!$CO521<>\"\"),\"Y\",\"N\")))","v":""},{"$f":"IF($B514=\"N\",\"\",IF($S514=\"-\",\"-\",IF(AND($S514=\"Y\",'Enrollment Form'!$CO521=\"No\"),\"-\",IF(AND($S514=\"Y\",'Enrollment Form'!$CO521=\"Yes\",'Enrollment Form'!$CP521<>\"\"),\"Y\",\"N\"))))","v":""},{"$f":"IF(OR('Enrollment Form'!$AV521=\"Yes\",'Enrollment Form'!$AV521=\"\"),\"-\",IF(AND('Enrollment Form'!$AV521=\"No\",ISERROR(FIND(\"HMO\",VLOOKUP('Enrollment Form'!G521,'Enrollment Form'!H$11:J$1000,3,FALSE),1))=FALSE,COUNTA('Enrollment Form'!$AW521:$AZ521)=4),\"Y\",\"N\"))","v":"-"},{"$f":"IF($B514=\"N\",\"\",IF('Enrollment Form'!$B521=\"Subscriber\",\"-\",IF(COUNTA('Enrollment Form'!$BE521,'Enrollment Form'!$BG521)=2,\"Y\",\"N\")))","v":""},{"$f":"IF($B514=\"N\",\"\",IF(OR('Enrollment Form'!$AU521=\"\",'Enrollment Form'!$AU521=\"No\"),\"-\",IF(AND('Enrollment Form'!$AU521=\"Yes\",COUNTA('Enrollment Form'!$CK521)=1),\"Y\",\"N\")))","v":""},{"$f":"IF(OR('Enrollment Form'!$CK521=\"\",'Enrollment Form'!$CK521=\"No\"),\"-\",IF(COUNTA('Enrollment Form'!$CM521:$CN521)=2,\"Y\",\"N\"))","v":"-"},{"$f":"IF($B514=\"N\",\"\",IF(COUNTIF('Enrollment Form'!$CZ521:$DO521,\"Other\")=COUNTA('Enrollment Form'!$DF521,'Enrollment Form'!$DA521,'Enrollment Form'!$DK521,'Enrollment Form'!$DP521),\"Y\",\"N\"))","v":""},{"$f":"IF($B514=\"N\",\"\",IF(OR('Enrollment Form'!B521<>\"Subscriber\",'Enrollment Form'!C521=\"ROC\",COUNTIF('Enrollment Form'!AS521:AT521,\"Yes\")>=1),\"-\",IF(AND('Enrollment Form'!C521=\"Enroll\",COUNTIF('Enrollment Form'!AS521:AT521,\"No\")=2,'Enrollment Form'!AU521=\"\"),\"N\",\"Y\")))","v":""},{"$f":"IF(OR(B514=\"N\",'Enrollment Form'!B521<>\"Subscriber\",'Enrollment Form'!C521=\"ROC\",'Enrollment Form'!O521<>\"Multiple of Salary\"),\"-\",IF(COUNTA('Enrollment Form'!T521:U521)<2,\"N\",\"Y\"))","v":"-"},{"$f":"IF(B514=\"N\",\"\",IF(OR('Enrollment Form'!C521=\"ROC\",'Enrollment Form'!B521<>\"Subscriber\",'Enrollment Form'!O521=\"Waive\",'Enrollment Form'!O521=\"\"),\"-\",IF('Enrollment Form'!P521=\"\",\"N\",\"Y\")))","v":""},{"$f":"IF($B514=\"N\",\"\",IF(AND('Enrollment Form'!$C521=\"ROC\",'Enrollment Form'!$DS521<>\"\"),\"Y\",IF(AND('Enrollment Form'!$C521=\"ROC\",'Enrollment Form'!$DS521=\"\"),\"N\",IF(AND('Enrollment Form'!$C521=\"Enroll\",'Enrollment Form'!$B521=\"Subscriber\",'Enrollment Form'!$CQ521=\"No\",'Enrollment Form'!$DS521=\"\"),\"N\",IF(AND('Enrollment Form'!$C521=\"Enroll\",'Enrollment Form'!$B521=\"Subscriber\",'Enrollment Form'!$CQ521=\"Yes\"),\"-\",\"Y\")))))","v":""},{"$f":"IF($B514=\"N\",\"\",IF(AND('Enrollment Form'!$C521=\"ROC\",'Enrollment Form'!$DT521<>\"\"),\"Y\",IF(AND('Enrollment Form'!$C521=\"ROC\",'Enrollment Form'!$DT521=\"\"),\"N\",IF(AND('Enrollment Form'!$C521=\"Enroll\",'Enrollment Form'!$B521=\"Subscriber\",'Enrollment Form'!$CQ521=\"No\",'Enrollment Form'!$DT521=\"\"),\"N\",IF(AND('Enrollment Form'!$C521=\"Enroll\",'Enrollment Form'!$B521=\"Subscriber\",'Enrollment Form'!$CQ521=\"Yes\"),\"-\",\"Y\")))))","v":""},{"$f":"IF('Enrollment Form'!AH521=\"\",\"\",IF(ISERROR(SEARCH(\".\",'Enrollment Form'!AH521,SEARCH(\"@\",'Enrollment Form'!AH521))),\"N\",\"Y\"))","v":""},{"$f":"IF(OR($B514=\"N\",'Enrollment Form'!$G521=\"\"),\"\",IF('Enrollment Form'!$B521<>\"Subscriber\",\"-\",IF(COUNTIF('Enrollment Form'!$AS521:$AT521,\"Yes\")=2,\"N\",\"Y\")))","v":""},{"$f":"IF(OR('Enrollment Form'!$CC521=\"\",'Enrollment Form'!$CC521=\"No\"),\"-\",IF(AND('Enrollment Form'!$CC521=\"Yes\",'Enrollment Form'!$CD521=\"\"),\"N\",\"Y\"))","v":"-"},{"$f":"IF(OR('Enrollment Form'!$CE521=\"\",'Enrollment Form'!$CE521=\"No\"),\"-\",IF(AND('Enrollment Form'!$CE521=\"Yes\",'Enrollment Form'!$CF521=\"\"),\"N\",\"Y\"))","v":"-"},{"$f":"IF(OR('Enrollment Form'!$CG521=\"\",'Enrollment Form'!$CG521=\"No\"),\"-\",IF(AND('Enrollment Form'!$CG521=\"Yes\",'Enrollment Form'!$CH521=\"\"),\"N\",\"Y\"))","v":"-"},{"$f":"IF(OR('Enrollment Form'!$CG521=\"\",'Enrollment Form'!$CG521=\"No\"),\"-\",IF(AND('Enrollment Form'!$CG521=\"Yes\",'Enrollment Form'!$CI521=\"\"),\"N\",\"Y\"))","v":"-"},{"$f":"IF('Enrollment Form'!B521<>\"Subscriber\",\"-\",IF(AND('Enrollment Form'!B521=\"Subscriber\",'Enrollment Form'!C521=\"Enroll\",'Enrollment Form'!AA521=\"\"),\"N\",\"Y\"))","v":"-"},{"$f":"IF(OR('Enrollment Form'!B521=\"Subscriber\",'Enrollment Form'!B521=\"\"),\"-\",IF('Enrollment Form'!BI521=\"\",\"N\",\"Y\"))","v":"-"},{"$f":"IF('Enrollment Form'!B521<>\"Subscriber\",\"-\",IF(AND('Enrollment Form'!B521=\"Subscriber\",'Enrollment Form'!G521=\"\"),\"N\",\"Y\"))","v":"-"},{"$f":"IF('Enrollment Form'!A521=\"\",\"\",IF('Enrollment Form'!B521=\"Subscriber\",\"-\",IF(AND('Enrollment Form'!B521<>\"Subscriber\",'Enrollment Form'!G521='Enrollment Form'!H521),\"N\",\"Y\")))","v":""},0]
[522,{"$f":"IF('Enrollment Form'!$A522<>\"\",\"Y\",\"N\")","v":"N"},{"$f":"IF(AND('Enrollment Form'!$B522=\"\",'Enrollment Form'!$C522<>\"\"),\"N\",IF($B515=\"N\",\"\",\"Y\"))","v":""},{"$f":"IF(OR($B515=\"N\",'Enrollment Form'!G522=\"\"),\"\",IF('Enrollment Form'!$B522<>\"Subscriber\",\"\",IF('Enrollment Form'!$G522='Enrollment Form'!$H522,\"Y\",\"N\")))","v":""},{"$f":"IF($B515=\"N\",\"\",IF(AND(COUNTIFS('Enrollment Form'!$H$11:$H$1000,'Enrollment Form'!$H522,'Enrollment Form'!$B$11:$B$1000,'Enrollment Form'!$B522)>1,'Enrollment Form'!$H522<>\"\"),\"N\",\"Y\"))","v":""},{"$f":"IF($B515=\"N\",\"\",IF(LEN('Enrollment Form'!$Y522)=0,\"\",IF(LEN('Enrollment Form'!$Y522)<>5,\"N\",\"Y\")))","v":""},{"$f":"IF($B515=\"N\",\"\",IF(LEN('Enrollment Form'!$AD522=0),\"\",IF(LEN('Enrollment Form'!$AD522)<>5,\"N\",\"Y\")))","v":""},{"$f":"IF($B515=\"N\",\"\",IF(LEN('Enrollment Form'!$BL522=0),\"\",IF(LEN('Enrollment Form'!$BL522)<>5,\"N\",\"Y\")))","v":""},{"$f":"IF($B515=\"N\",\"\",IF(LEN('Enrollment Form'!$AE522)=0,\"\",IF(LEN('Enrollment Form'!$AE522)<>10,\"N\",\"Y\")))","v":""},{"$f":"IF($B515=\"N\",\"\",IF(LEN('Enrollment Form'!$AF522)=0,\"\",IF(LEN('Enrollment Form'!$AF522)<>10,\"N\",\"Y\")))","v":""},{"$f":"IF('Enrollment Form'!$O522<>\"Graded\",\"-\",IF(AND('Enrollment Form'!$O522=\"Graded\",'Enrollment Form'!$AO522<>\"\"),\"Y\",\"N\"))","v":"-"},{"$f":"IF($B515=\"N\",\"\",IF(OR('Enrollment Form'!$B522<>\"Subscriber\",'Enrollment Form'!$C522=\"ROC\"),\"-\",IF(AND('Enrollment Form'!$B522=\"Subscriber\",'Enrollment Form'!$C522=\"Enroll\",'Enrollment Form'!$AJ522<>\"\"),\"Y\",\"N\")))","v":""},{"$f":"IF($B515=\"N\",\"\",IF(OR('Enrollment Form'!$B522<>\"Subscriber\",'Enrollment Form'!$C522=\"ROC\"),\"-\",IF(AND('Enrollment Form'!$B522=\"Subscriber\",'Enrollment Form'!$C522=\"Enroll\",'Enrollment Form'!$AK522<>\"\"),\"Y\",\"N\")))","v":""},{"$f":"IF($B515=\"N\",\"\",IF(OR('Enrollment Form'!$B522<>\"Subscriber\",'Enrollment Form'!$C522=\"ROC\"),\"-\",IF(AND('Enrollment Form'!$B522=\"Subscriber\",'Enrollment Form'!$C522=\"Enroll\",'Enrollment Form'!$AL522<>\"\"),\"Y\",\"N\")))","v":""},{"$f":"IF($B515=\"N\",\"\",IF(OR('Enrollment Form'!$B522<>\"Subscriber\",'Enrollment Form'!$C522=\"ROC\"),\"-\",IF(AND('Enrollment Form'!$B522=\"Subscriber\",'Enrollment Form'!$C522=\"Enroll\",'Enrollment Form'!$AM522<>\"\"),\"Y\",\"N\")))","v":""},{"$f":"IF($B515=\"N\",\"\",IF(OR('Enrollment Form'!$B522<>\"Subscriber\",'Enrollment Form'!$C522=\"ROC\"),\"-\",IF(AND('Enrollment Form'!$B522=\"Subscriber\",'Enrollment Form'!$C522=\"Enroll\",'Enrollment Form'!$AN522<>\"\"),\"Y\",\"N\")))","v":""},{"$f":"IF($B515=\"N\",\"\",IF(OR('Enrollment Form'!$B522<>\"Subscriber\",'Enrollment Form'!$C522=\"ROC\"),\"-\",IF(AND('Enrollment Form'!$B522=\"Subscriber\",'Enrollment Form'!$C522=\"Enroll\",'Enrollment Form'!$AP522<>\"\"),\"Y\",\"N\")))","v":""},{"$f":"IF($B515=\"N\",\"\",IF($Q515=\"-\",\"-\",IF(AND($Q515=\"Y\",'Enrollment Form'!$AP522=\"No\"),\"-\",IF(AND($Q515=\"Y\",'Enrollment Form'!$AP522=\"Yes\",'Enrollment Form'!$AQ522<>\"\"),\"Y\",\"N\"))))","v":""},{"$f":"IF($B515=\"N\",\"\",IF(OR('Enrollment Form'!$B522<>\"Subscriber\",'Enrollment Form'!$C522=\"ROC\"),\"-\",IF(AND('Enrollment Form'!$B522=\"Subscriber\",'Enrollment Form'!$C522=\"Enroll\",'Enrollment Form'!$CO522<>\"\"),\"Y\",\"N\")))","v":""},{"$f":"IF($B515=\"N\",\"\",IF($S515=\"-\",\"-\",IF(AND($S515=\"Y\",'Enrollment Form'!$CO522=\"No\"),\"-\",IF(AND($S515=\"Y\",'Enrollment Form'!$CO522=\"Yes\",'Enrollment Form'!$CP522<>\"\"),\"Y\",\"N\"))))","v":""},{"$f":"IF(OR('Enrollment Form'!$AV522=\"Yes\",'Enrollment Form'!$AV522=\"\"),\"-\",IF(AND('Enrollment Form'!$AV522=\"No\",ISERROR(FIND(\"HMO\",VLOOKUP('Enrollment Form'!G522,'Enrollment Form'!H$11:J$1000,3,FALSE),1))=FALSE,COUNTA('Enrollment Form'!$AW522:$AZ522)=4),\"Y\",\"N\"))","v":"-"},{"$f":"IF($B515=\"N\",\"\",IF('Enrollment Form'!$B522=\"Subscriber\",\"-\",IF(COUNTA('Enrollment Form'!$BE522,'Enrollment Form'!$BG522)=2,\"Y\",\"N\")))","v":""},{"$f":"IF($B515=\"N\",\"\",IF(OR('Enrollment Form'!$AU522=\"\",'Enrollment Form'!$AU522=\"No\"),\"-\",IF(AND('Enrollment Form'!$AU522=\"Yes\",COUNTA('Enrollment Form'!$CK522)=1),\"Y\",\"N\")))","v":""},{"$f":"IF(OR('Enrollment Form'!$CK522=\"\",'Enrollment Form'!$CK522=\"No\"),\"-\",IF(COUNTA('Enrollment Form'!$CM522:$CN522)=2,\"Y\",\"N\"))","v":"-"},{"$f":"IF($B515=\"N\",\"\",IF(COUNTIF('Enrollment Form'!$CZ522:$DO522,\"Other\")=COUNTA('Enrollment Form'!$DF522,'Enrollment Form'!$DA522,'Enrollment Form'!$DK522,'Enrollment Form'!$DP522),\"Y\",\"N\"))","v":""},{"$f":"IF($B515=\"N\",\"\",IF(OR('Enrollment Form'!B522<>\"Subscriber\",'Enrollment Form'!C522=\"ROC\",COUNTIF('Enrollment Form'!AS522:AT522,\"Yes\")>=1),\"-\",IF(AND('Enrollment Form'!C522=\"Enroll\",COUNTIF('Enrollment Form'!AS522:AT522,\"No\")=2,'Enrollment Form'!AU522=\"\"),\"N\",\"Y\")))","v":""},{"$f":"IF(OR(B515=\"N\",'Enrollment Form'!B522<>\"Subscriber\",'Enrollment Form'!C522=\"ROC\",'Enrollment Form'!O522<>\"Multiple of Salary\"),\"-\",IF(COUNTA('Enrollment Form'!T522:U522)<2,\"N\",\"Y\"))","v":"-"},{"$f":"IF(B515=\"N\",\"\",IF(OR('Enrollment Form'!C522=\"ROC\",'Enrollment Form'!B522<>\"Subscriber\",'Enrollment Form'!O522=\"Waive\",'Enrollment Form'!O522=\"\"),\"-\",IF('Enrollment Form'!P522=\"\",\"N\",\"Y\")))","v":""},{"$f":"IF($B515=\"N\",\"\",IF(AND('Enrollment Form'!$C522=\"ROC\",'Enrollment Form'!$DS522<>\"\"),\"Y\",IF(AND('Enrollment Form'!$C522=\"ROC\",'Enrollment Form'!$DS522=\"\"),\"N\",IF(AND('Enrollment Form'!$C522=\"Enroll\",'Enrollment Form'!$B522=\"Subscriber\",'Enrollment Form'!$CQ522=\"No\",'Enrollment Form'!$DS522=\"\"),\"N\",IF(AND('Enrollment Form'!$C522=\"Enroll\",'Enrollment Form'!$B522=\"Subscriber\",'Enrollment Form'!$CQ522=\"Yes\"),\"-\",\"Y\")))))","v":""},{"$f":"IF($B515=\"N\",\"\",IF(AND('Enrollment Form'!$C522=\"ROC\",'Enrollment Form'!$DT522<>\"\"),\"Y\",IF(AND('Enrollment Form'!$C522=\"ROC\",'Enrollment Form'!$DT522=\"\"),\"N\",IF(AND('Enrollment Form'!$C522=\"Enroll\",'Enrollment Form'!$B522=\"Subscriber\",'Enrollment Form'!$CQ522=\"No\",'Enrollment Form'!$DT522=\"\"),\"N\",IF(AND('Enrollment Form'!$C522=\"Enroll\",'Enrollment Form'!$B522=\"Subscriber\",'Enrollment Form'!$CQ522=\"Yes\"),\"-\",\"Y\")))))","v":""},{"$f":"IF('Enrollment Form'!AH522=\"\",\"\",IF(ISERROR(SEARCH(\".\",'Enrollment Form'!AH522,SEARCH(\"@\",'Enrollment Form'!AH522))),\"N\",\"Y\"))","v":""},{"$f":"IF(OR($B515=\"N\",'Enrollment Form'!$G522=\"\"),\"\",IF('Enrollment Form'!$B522<>\"Subscriber\",\"-\",IF(COUNTIF('Enrollment Form'!$AS522:$AT522,\"Yes\")=2,\"N\",\"Y\")))","v":""},{"$f":"IF(OR('Enrollment Form'!$CC522=\"\",'Enrollment Form'!$CC522=\"No\"),\"-\",IF(AND('Enrollment Form'!$CC522=\"Yes\",'Enrollment Form'!$CD522=\"\"),\"N\",\"Y\"))","v":"-"},{"$f":"IF(OR('Enrollment Form'!$CE522=\"\",'Enrollment Form'!$CE522=\"No\"),\"-\",IF(AND('Enrollment Form'!$CE522=\"Yes\",'Enrollment Form'!$CF522=\"\"),\"N\",\"Y\"))","v":"-"},{"$f":"IF(OR('Enrollment Form'!$CG522=\"\",'Enrollment Form'!$CG522=\"No\"),\"-\",IF(AND('Enrollment Form'!$CG522=\"Yes\",'Enrollment Form'!$CH522=\"\"),\"N\",\"Y\"))","v":"-"},{"$f":"IF(OR('Enrollment Form'!$CG522=\"\",'Enrollment Form'!$CG522=\"No\"),\"-\",IF(AND('Enrollment Form'!$CG522=\"Yes\",'Enrollment Form'!$CI522=\"\"),\"N\",\"Y\"))","v":"-"},{"$f":"IF('Enrollment Form'!B522<>\"Subscriber\",\"-\",IF(AND('Enrollment Form'!B522=\"Subscriber\",'Enrollment Form'!C522=\"Enroll\",'Enrollment Form'!AA522=\"\"),\"N\",\"Y\"))","v":"-"},{"$f":"IF(OR('Enrollment Form'!B522=\"Subscriber\",'Enrollment Form'!B522=\"\"),\"-\",IF('Enrollment Form'!BI522=\"\",\"N\",\"Y\"))","v":"-"},{"$f":"IF('Enrollment Form'!B522<>\"Subscriber\",\"-\",IF(AND('Enrollment Form'!B522=\"Subscriber\",'Enrollment Form'!G522=\"\"),\"N\",\"Y\"))","v":"-"},{"$f":"IF('Enrollment Form'!A522=\"\",\"\",IF('Enrollment Form'!B522=\"Subscriber\",\"-\",IF(AND('Enrollment Form'!B522<>\"Subscriber\",'Enrollment Form'!G522='Enrollment Form'!H522),\"N\",\"Y\")))","v":""},0]
[523,{"$f":"IF('Enrollment Form'!$A523<>\"\",\"Y\",\"N\")","v":"N"},{"$f":"IF(AND('Enrollment Form'!$B523=\"\",'Enrollment Form'!$C523<>\"\"),\"N\",IF($B516=\"N\",\"\",\"Y\"))","v":""},{"$f":"IF(OR($B516=\"N\",'Enrollment Form'!G523=\"\"),\"\",IF('Enrollment Form'!$B523<>\"Subscriber\",\"\",IF('Enrollment Form'!$G523='Enrollment Form'!$H523,\"Y\",\"N\")))","v":""},{"$f":"IF($B516=\"N\",\"\",IF(AND(COUNTIFS('Enrollment Form'!$H$11:$H$1000,'Enrollment Form'!$H523,'Enrollment Form'!$B$11:$B$1000,'Enrollment Form'!$B523)>1,'Enrollment Form'!$H523<>\"\"),\"N\",\"Y\"))","v":""},{"$f":"IF($B516=\"N\",\"\",IF(LEN('Enrollment Form'!$Y523)=0,\"\",IF(LEN('Enrollment Form'!$Y523)<>5,\"N\",\"Y\")))","v":""},{"$f":"IF($B516=\"N\",\"\",IF(LEN('Enrollment Form'!$AD523=0),\"\",IF(LEN('Enrollment Form'!$AD523)<>5,\"N\",\"Y\")))","v":""},{"$f":"IF($B516=\"N\",\"\",IF(LEN('Enrollment Form'!$BL523=0),\"\",IF(LEN('Enrollment Form'!$BL523)<>5,\"N\",\"Y\")))","v":""},{"$f":"IF($B516=\"N\",\"\",IF(LEN('Enrollment Form'!$AE523)=0,\"\",IF(LEN('Enrollment Form'!$AE523)<>10,\"N\",\"Y\")))","v":""},{"$f":"IF($B516=\"N\",\"\",IF(LEN('Enrollment Form'!$AF523)=0,\"\",IF(LEN('Enrollment Form'!$AF523)<>10,\"N\",\"Y\")))","v":""},{"$f":"IF('Enrollment Form'!$O523<>\"Graded\",\"-\",IF(AND('Enrollment Form'!$O523=\"Graded\",'Enrollment Form'!$AO523<>\"\"),\"Y\",\"N\"))","v":"-"},{"$f":"IF($B516=\"N\",\"\",IF(OR('Enrollment Form'!$B523<>\"Subscriber\",'Enrollment Form'!$C523=\"ROC\"),\"-\",IF(AND('Enrollment Form'!$B523=\"Subscriber\",'Enrollment Form'!$C523=\"Enroll\",'Enrollment Form'!$AJ523<>\"\"),\"Y\",\"N\")))","v":""},{"$f":"IF($B516=\"N\",\"\",IF(OR('Enrollment Form'!$B523<>\"Subscriber\",'Enrollment Form'!$C523=\"ROC\"),\"-\",IF(AND('Enrollment Form'!$B523=\"Subscriber\",'Enrollment Form'!$C523=\"Enroll\",'Enrollment Form'!$AK523<>\"\"),\"Y\",\"N\")))","v":""},{"$f":"IF($B516=\"N\",\"\",IF(OR('Enrollment Form'!$B523<>\"Subscriber\",'Enrollment Form'!$C523=\"ROC\"),\"-\",IF(AND('Enrollment Form'!$B523=\"Subscriber\",'Enrollment Form'!$C523=\"Enroll\",'Enrollment Form'!$AL523<>\"\"),\"Y\",\"N\")))","v":""},{"$f":"IF($B516=\"N\",\"\",IF(OR('Enrollment Form'!$B523<>\"Subscriber\",'Enrollment Form'!$C523=\"ROC\"),\"-\",IF(AND('Enrollment Form'!$B523=\"Subscriber\",'Enrollment Form'!$C523=\"Enroll\",'Enrollment Form'!$AM523<>\"\"),\"Y\",\"N\")))","v":""},{"$f":"IF($B516=\"N\",\"\",IF(OR('Enrollment Form'!$B523<>\"Subscriber\",'Enrollment Form'!$C523=\"ROC\"),\"-\",IF(AND('Enrollment Form'!$B523=\"Subscriber\",'Enrollment Form'!$C523=\"Enroll\",'Enrollment Form'!$AN523<>\"\"),\"Y\",\"N\")))","v":""},{"$f":"IF($B516=\"N\",\"\",IF(OR('Enrollment Form'!$B523<>\"Subscriber\",'Enrollment Form'!$C523=\"ROC\"),\"-\",IF(AND('Enrollment Form'!$B523=\"Subscriber\",'Enrollment Form'!$C523=\"Enroll\",'Enrollment Form'!$AP523<>\"\"),\"Y\",\"N\")))","v":""},{"$f":"IF($B516=\"N\",\"\",IF($Q516=\"-\",\"-\",IF(AND($Q516=\"Y\",'Enrollment Form'!$AP523=\"No\"),\"-\",IF(AND($Q516=\"Y\",'Enrollment Form'!$AP523=\"Yes\",'Enrollment Form'!$AQ523<>\"\"),\"Y\",\"N\"))))","v":""},{"$f":"IF($B516=\"N\",\"\",IF(OR('Enrollment Form'!$B523<>\"Subscriber\",'Enrollment Form'!$C523=\"ROC\"),\"-\",IF(AND('Enrollment Form'!$B523=\"Subscriber\",'Enrollment Form'!$C523=\"Enroll\",'Enrollment Form'!$CO523<>\"\"),\"Y\",\"N\")))","v":""},{"$f":"IF($B516=\"N\",\"\",IF($S516=\"-\",\"-\",IF(AND($S516=\"Y\",'Enrollment Form'!$CO523=\"No\"),\"-\",IF(AND($S516=\"Y\",'Enrollment Form'!$CO523=\"Yes\",'Enrollment Form'!$CP523<>\"\"),\"Y\",\"N\"))))","v":""},{"$f":"IF(OR('Enrollment Form'!$AV523=\"Yes\",'Enrollment Form'!$AV523=\"\"),\"-\",IF(AND('Enrollment Form'!$AV523=\"No\",ISERROR(FIND(\"HMO\",VLOOKUP('Enrollment Form'!G523,'Enrollment Form'!H$11:J$1000,3,FALSE),1))=FALSE,COUNTA('Enrollment Form'!$AW523:$AZ523)=4),\"Y\",\"N\"))","v":"-"},{"$f":"IF($B516=\"N\",\"\",IF('Enrollment Form'!$B523=\"Subscriber\",\"-\",IF(COUNTA('Enrollment Form'!$BE523,'Enrollment Form'!$BG523)=2,\"Y\",\"N\")))","v":""},{"$f":"IF($B516=\"N\",\"\",IF(OR('Enrollment Form'!$AU523=\"\",'Enrollment Form'!$AU523=\"No\"),\"-\",IF(AND('Enrollment Form'!$AU523=\"Yes\",COUNTA('Enrollment Form'!$CK523)=1),\"Y\",\"N\")))","v":""},{"$f":"IF(OR('Enrollment Form'!$CK523=\"\",'Enrollment Form'!$CK523=\"No\"),\"-\",IF(COUNTA('Enrollment Form'!$CM523:$CN523)=2,\"Y\",\"N\"))","v":"-"},{"$f":"IF($B516=\"N\",\"\",IF(COUNTIF('Enrollment Form'!$CZ523:$DO523,\"Other\")=COUNTA('Enrollment Form'!$DF523,'Enrollment Form'!$DA523,'Enrollment Form'!$DK523,'Enrollment Form'!$DP523),\"Y\",\"N\"))","v":""},{"$f":"IF($B516=\"N\",\"\",IF(OR('Enrollment Form'!B523<>\"Subscriber\",'Enrollment Form'!C523=\"ROC\",COUNTIF('Enrollment Form'!AS523:AT523,\"Yes\")>=1),\"-\",IF(AND('Enrollment Form'!C523=\"Enroll\",COUNTIF('Enrollment Form'!AS523:AT523,\"No\")=2,'Enrollment Form'!AU523=\"\"),\"N\",\"Y\")))","v":""},{"$f":"IF(OR(B516=\"N\",'Enrollment Form'!B523<>\"Subscriber\",'Enrollment Form'!C523=\"ROC\",'Enrollment Form'!O523<>\"Multiple of Salary\"),\"-\",IF(COUNTA('Enrollment Form'!T523:U523)<2,\"N\",\"Y\"))","v":"-"},{"$f":"IF(B516=\"N\",\"\",IF(OR('Enrollment Form'!C523=\"ROC\",'Enrollment Form'!B523<>\"Subscriber\",'Enrollment Form'!O523=\"Waive\",'Enrollment Form'!O523=\"\"),\"-\",IF('Enrollment Form'!P523=\"\",\"N\",\"Y\")))","v":""},{"$f":"IF($B516=\"N\",\"\",IF(AND('Enrollment Form'!$C523=\"ROC\",'Enrollment Form'!$DS523<>\"\"),\"Y\",IF(AND('Enrollment Form'!$C523=\"ROC\",'Enrollment Form'!$DS523=\"\"),\"N\",IF(AND('Enrollment Form'!$C523=\"Enroll\",'Enrollment Form'!$B523=\"Subscriber\",'Enrollment Form'!$CQ523=\"No\",'Enrollment Form'!$DS523=\"\"),\"N\",IF(AND('Enrollment Form'!$C523=\"Enroll\",'Enrollment Form'!$B523=\"Subscriber\",'Enrollment Form'!$CQ523=\"Yes\"),\"-\",\"Y\")))))","v":""},{"$f":"IF($B516=\"N\",\"\",IF(AND('Enrollment Form'!$C523=\"ROC\",'Enrollment Form'!$DT523<>\"\"),\"Y\",IF(AND('Enrollment Form'!$C523=\"ROC\",'Enrollment Form'!$DT523=\"\"),\"N\",IF(AND('Enrollment Form'!$C523=\"Enroll\",'Enrollment Form'!$B523=\"Subscriber\",'Enrollment Form'!$CQ523=\"No\",'Enrollment Form'!$DT523=\"\"),\"N\",IF(AND('Enrollment Form'!$C523=\"Enroll\",'Enrollment Form'!$B523=\"Subscriber\",'Enrollment Form'!$CQ523=\"Yes\"),\"-\",\"Y\")))))","v":""},{"$f":"IF('Enrollment Form'!AH523=\"\",\"\",IF(ISERROR(SEARCH(\".\",'Enrollment Form'!AH523,SEARCH(\"@\",'Enrollment Form'!AH523))),\"N\",\"Y\"))","v":""},{"$f":"IF(OR($B516=\"N\",'Enrollment Form'!$G523=\"\"),\"\",IF('Enrollment Form'!$B523<>\"Subscriber\",\"-\",IF(COUNTIF('Enrollment Form'!$AS523:$AT523,\"Yes\")=2,\"N\",\"Y\")))","v":""},{"$f":"IF(OR('Enrollment Form'!$CC523=\"\",'Enrollment Form'!$CC523=\"No\"),\"-\",IF(AND('Enrollment Form'!$CC523=\"Yes\",'Enrollment Form'!$CD523=\"\"),\"N\",\"Y\"))","v":"-"},{"$f":"IF(OR('Enrollment Form'!$CE523=\"\",'Enrollment Form'!$CE523=\"No\"),\"-\",IF(AND('Enrollment Form'!$CE523=\"Yes\",'Enrollment Form'!$CF523=\"\"),\"N\",\"Y\"))","v":"-"},{"$f":"IF(OR('Enrollment Form'!$CG523=\"\",'Enrollment Form'!$CG523=\"No\"),\"-\",IF(AND('Enrollment Form'!$CG523=\"Yes\",'Enrollment Form'!$CH523=\"\"),\"N\",\"Y\"))","v":"-"},{"$f":"IF(OR('Enrollment Form'!$CG523=\"\",'Enrollment Form'!$CG523=\"No\"),\"-\",IF(AND('Enrollment Form'!$CG523=\"Yes\",'Enrollment Form'!$CI523=\"\"),\"N\",\"Y\"))","v":"-"},{"$f":"IF('Enrollment Form'!B523<>\"Subscriber\",\"-\",IF(AND('Enrollment Form'!B523=\"Subscriber\",'Enrollment Form'!C523=\"Enroll\",'Enrollment Form'!AA523=\"\"),\"N\",\"Y\"))","v":"-"},{"$f":"IF(OR('Enrollment Form'!B523=\"Subscriber\",'Enrollment Form'!B523=\"\"),\"-\",IF('Enrollment Form'!BI523=\"\",\"N\",\"Y\"))","v":"-"},{"$f":"IF('Enrollment Form'!B523<>\"Subscriber\",\"-\",IF(AND('Enrollment Form'!B523=\"Subscriber\",'Enrollment Form'!G523=\"\"),\"N\",\"Y\"))","v":"-"},{"$f":"IF('Enrollment Form'!A523=\"\",\"\",IF('Enrollment Form'!B523=\"Subscriber\",\"-\",IF(AND('Enrollment Form'!B523<>\"Subscriber\",'Enrollment Form'!G523='Enrollment Form'!H523),\"N\",\"Y\")))","v":""},{"$f":"COUNTIF(C516:AN516,\"N\")","v":0}]
[524,{"$f":"IF('Enrollment Form'!$A524<>\"\",\"Y\",\"N\")","v":"N"},{"$f":"IF(AND('Enrollment Form'!$B524=\"\",'Enrollment Form'!$C524<>\"\"),\"N\",IF($B517=\"N\",\"\",\"Y\"))","v":""},{"$f":"IF(OR($B517=\"N\",'Enrollment Form'!G524=\"\"),\"\",IF('Enrollment Form'!$B524<>\"Subscriber\",\"\",IF('Enrollment Form'!$G524='Enrollment Form'!$H524,\"Y\",\"N\")))","v":""},{"$f":"IF($B517=\"N\",\"\",IF(AND(COUNTIFS('Enrollment Form'!$H$11:$H$1000,'Enrollment Form'!$H524,'Enrollment Form'!$B$11:$B$1000,'Enrollment Form'!$B524)>1,'Enrollment Form'!$H524<>\"\"),\"N\",\"Y\"))","v":""},{"$f":"IF($B517=\"N\",\"\",IF(LEN('Enrollment Form'!$Y524)=0,\"\",IF(LEN('Enrollment Form'!$Y524)<>5,\"N\",\"Y\")))","v":""},{"$f":"IF($B517=\"N\",\"\",IF(LEN('Enrollment Form'!$AD524=0),\"\",IF(LEN('Enrollment Form'!$AD524)<>5,\"N\",\"Y\")))","v":""},{"$f":"IF($B517=\"N\",\"\",IF(LEN('Enrollment Form'!$BL524=0),\"\",IF(LEN('Enrollment Form'!$BL524)<>5,\"N\",\"Y\")))","v":""},{"$f":"IF($B517=\"N\",\"\",IF(LEN('Enrollment Form'!$AE524)=0,\"\",IF(LEN('Enrollment Form'!$AE524)<>10,\"N\",\"Y\")))","v":""},{"$f":"IF($B517=\"N\",\"\",IF(LEN('Enrollment Form'!$AF524)=0,\"\",IF(LEN('Enrollment Form'!$AF524)<>10,\"N\",\"Y\")))","v":""},{"$f":"IF('Enrollment Form'!$O524<>\"Graded\",\"-\",IF(AND('Enrollment Form'!$O524=\"Graded\",'Enrollment Form'!$AO524<>\"\"),\"Y\",\"N\"))","v":"-"},{"$f":"IF($B517=\"N\",\"\",IF(OR('Enrollment Form'!$B524<>\"Subscriber\",'Enrollment Form'!$C524=\"ROC\"),\"-\",IF(AND('Enrollment Form'!$B524=\"Subscriber\",'Enrollment Form'!$C524=\"Enroll\",'Enrollment Form'!$AJ524<>\"\"),\"Y\",\"N\")))","v":""},{"$f":"IF($B517=\"N\",\"\",IF(OR('Enrollment Form'!$B524<>\"Subscriber\",'Enrollment Form'!$C524=\"ROC\"),\"-\",IF(AND('Enrollment Form'!$B524=\"Subscriber\",'Enrollment Form'!$C524=\"Enroll\",'Enrollment Form'!$AK524<>\"\"),\"Y\",\"N\")))","v":""},{"$f":"IF($B517=\"N\",\"\",IF(OR('Enrollment Form'!$B524<>\"Subscriber\",'Enrollment Form'!$C524=\"ROC\"),\"-\",IF(AND('Enrollment Form'!$B524=\"Subscriber\",'Enrollment Form'!$C524=\"Enroll\",'Enrollment Form'!$AL524<>\"\"),\"Y\",\"N\")))","v":""},{"$f":"IF($B517=\"N\",\"\",IF(OR('Enrollment Form'!$B524<>\"Subscriber\",'Enrollment Form'!$C524=\"ROC\"),\"-\",IF(AND('Enrollment Form'!$B524=\"Subscriber\",'Enrollment Form'!$C524=\"Enroll\",'Enrollment Form'!$AM524<>\"\"),\"Y\",\"N\")))","v":""},{"$f":"IF($B517=\"N\",\"\",IF(OR('Enrollment Form'!$B524<>\"Subscriber\",'Enrollment Form'!$C524=\"ROC\"),\"-\",IF(AND('Enrollment Form'!$B524=\"Subscriber\",'Enrollment Form'!$C524=\"Enroll\",'Enrollment Form'!$AN524<>\"\"),\"Y\",\"N\")))","v":""},{"$f":"IF($B517=\"N\",\"\",IF(OR('Enrollment Form'!$B524<>\"Subscriber\",'Enrollment Form'!$C524=\"ROC\"),\"-\",IF(AND('Enrollment Form'!$B524=\"Subscriber\",'Enrollment Form'!$C524=\"Enroll\",'Enrollment Form'!$AP524<>\"\"),\"Y\",\"N\")))","v":""},{"$f":"IF($B517=\"N\",\"\",IF($Q517=\"-\",\"-\",IF(AND($Q517=\"Y\",'Enrollment Form'!$AP524=\"No\"),\"-\",IF(AND($Q517=\"Y\",'Enrollment Form'!$AP524=\"Yes\",'Enrollment Form'!$AQ524<>\"\"),\"Y\",\"N\"))))","v":""},{"$f":"IF($B517=\"N\",\"\",IF(OR('Enrollment Form'!$B524<>\"Subscriber\",'Enrollment Form'!$C524=\"ROC\"),\"-\",IF(AND('Enrollment Form'!$B524=\"Subscriber\",'Enrollment Form'!$C524=\"Enroll\",'Enrollment Form'!$CO524<>\"\"),\"Y\",\"N\")))","v":""},{"$f":"IF($B517=\"N\",\"\",IF($S517=\"-\",\"-\",IF(AND($S517=\"Y\",'Enrollment Form'!$CO524=\"No\"),\"-\",IF(AND($S517=\"Y\",'Enrollment Form'!$CO524=\"Yes\",'Enrollment Form'!$CP524<>\"\"),\"Y\",\"N\"))))","v":""},{"$f":"IF(OR('Enrollment Form'!$AV524=\"Yes\",'Enrollment Form'!$AV524=\"\"),\"-\",IF(AND('Enrollment Form'!$AV524=\"No\",ISERROR(FIND(\"HMO\",VLOOKUP('Enrollment Form'!G524,'Enrollment Form'!H$11:J$1000,3,FALSE),1))=FALSE,COUNTA('Enrollment Form'!$AW524:$AZ524)=4),\"Y\",\"N\"))","v":"-"},{"$f":"IF($B517=\"N\",\"\",IF('Enrollment Form'!$B524=\"Subscriber\",\"-\",IF(COUNTA('Enrollment Form'!$BE524,'Enrollment Form'!$BG524)=2,\"Y\",\"N\")))","v":""},{"$f":"IF($B517=\"N\",\"\",IF(OR('Enrollment Form'!$AU524=\"\",'Enrollment Form'!$AU524=\"No\"),\"-\",IF(AND('Enrollment Form'!$AU524=\"Yes\",COUNTA('Enrollment Form'!$CK524)=1),\"Y\",\"N\")))","v":""},{"$f":"IF(OR('Enrollment Form'!$CK524=\"\",'Enrollment Form'!$CK524=\"No\"),\"-\",IF(COUNTA('Enrollment Form'!$CM524:$CN524)=2,\"Y\",\"N\"))","v":"-"},{"$f":"IF($B517=\"N\",\"\",IF(COUNTIF('Enrollment Form'!$CZ524:$DO524,\"Other\")=COUNTA('Enrollment Form'!$DF524,'Enrollment Form'!$DA524,'Enrollment Form'!$DK524,'Enrollment Form'!$DP524),\"Y\",\"N\"))","v":""},{"$f":"IF($B517=\"N\",\"\",IF(OR('Enrollment Form'!B524<>\"Subscriber\",'Enrollment Form'!C524=\"ROC\",COUNTIF('Enrollment Form'!AS524:AT524,\"Yes\")>=1),\"-\",IF(AND('Enrollment Form'!C524=\"Enroll\",COUNTIF('Enrollment Form'!AS524:AT524,\"No\")=2,'Enrollment Form'!AU524=\"\"),\"N\",\"Y\")))","v":""},{"$f":"IF(OR(B517=\"N\",'Enrollment Form'!B524<>\"Subscriber\",'Enrollment Form'!C524=\"ROC\",'Enrollment Form'!O524<>\"Multiple of Salary\"),\"-\",IF(COUNTA('Enrollment Form'!T524:U524)<2,\"N\",\"Y\"))","v":"-"},{"$f":"IF(B517=\"N\",\"\",IF(OR('Enrollment Form'!C524=\"ROC\",'Enrollment Form'!B524<>\"Subscriber\",'Enrollment Form'!O524=\"Waive\",'Enrollment Form'!O524=\"\"),\"-\",IF('Enrollment Form'!P524=\"\",\"N\",\"Y\")))","v":""},{"$f":"IF($B517=\"N\",\"\",IF(AND('Enrollment Form'!$C524=\"ROC\",'Enrollment Form'!$DS524<>\"\"),\"Y\",IF(AND('Enrollment Form'!$C524=\"ROC\",'Enrollment Form'!$DS524=\"\"),\"N\",IF(AND('Enrollment Form'!$C524=\"Enroll\",'Enrollment Form'!$B524=\"Subscriber\",'Enrollment Form'!$CQ524=\"No\",'Enrollment Form'!$DS524=\"\"),\"N\",IF(AND('Enrollment Form'!$C524=\"Enroll\",'Enrollment Form'!$B524=\"Subscriber\",'Enrollment Form'!$CQ524=\"Yes\"),\"-\",\"Y\")))))","v":""},{"$f":"IF($B517=\"N\",\"\",IF(AND('Enrollment Form'!$C524=\"ROC\",'Enrollment Form'!$DT524<>\"\"),\"Y\",IF(AND('Enrollment Form'!$C524=\"ROC\",'Enrollment Form'!$DT524=\"\"),\"N\",IF(AND('Enrollment Form'!$C524=\"Enroll\",'Enrollment Form'!$B524=\"Subscriber\",'Enrollment Form'!$CQ524=\"No\",'Enrollment Form'!$DT524=\"\"),\"N\",IF(AND('Enrollment Form'!$C524=\"Enroll\",'Enrollment Form'!$B524=\"Subscriber\",'Enrollment Form'!$CQ524=\"Yes\"),\"-\",\"Y\")))))","v":""},{"$f":"IF('Enrollment Form'!AH524=\"\",\"\",IF(ISERROR(SEARCH(\".\",'Enrollment Form'!AH524,SEARCH(\"@\",'Enrollment Form'!AH524))),\"N\",\"Y\"))","v":""},{"$f":"IF(OR($B517=\"N\",'Enrollment Form'!$G524=\"\"),\"\",IF('Enrollment Form'!$B524<>\"Subscriber\",\"-\",IF(COUNTIF('Enrollment Form'!$AS524:$AT524,\"Yes\")=2,\"N\",\"Y\")))","v":""},{"$f":"IF(OR('Enrollment Form'!$CC524=\"\",'Enrollment Form'!$CC524=\"No\"),\"-\",IF(AND('Enrollment Form'!$CC524=\"Yes\",'Enrollment Form'!$CD524=\"\"),\"N\",\"Y\"))","v":"-"},{"$f":"IF(OR('Enrollment Form'!$CE524=\"\",'Enrollment Form'!$CE524=\"No\"),\"-\",IF(AND('Enrollment Form'!$CE524=\"Yes\",'Enrollment Form'!$CF524=\"\"),\"N\",\"Y\"))","v":"-"},{"$f":"IF(OR('Enrollment Form'!$CG524=\"\",'Enrollment Form'!$CG524=\"No\"),\"-\",IF(AND('Enrollment Form'!$CG524=\"Yes\",'Enrollment Form'!$CH524=\"\"),\"N\",\"Y\"))","v":"-"},{"$f":"IF(OR('Enrollment Form'!$CG524=\"\",'Enrollment Form'!$CG524=\"No\"),\"-\",IF(AND('Enrollment Form'!$CG524=\"Yes\",'Enrollment Form'!$CI524=\"\"),\"N\",\"Y\"))","v":"-"},{"$f":"IF('Enrollment Form'!B524<>\"Subscriber\",\"-\",IF(AND('Enrollment Form'!B524=\"Subscriber\",'Enrollment Form'!C524=\"Enroll\",'Enrollment Form'!AA524=\"\"),\"N\",\"Y\"))","v":"-"},{"$f":"IF(OR('Enrollment Form'!B524=\"Subscriber\",'Enrollment Form'!B524=\"\"),\"-\",IF('Enrollment Form'!BI524=\"\",\"N\",\"Y\"))","v":"-"},{"$f":"IF('Enrollment Form'!B524<>\"Subscriber\",\"-\",IF(AND('Enrollment Form'!B524=\"Subscriber\",'Enrollment Form'!G524=\"\"),\"N\",\"Y\"))","v":"-"},{"$f":"IF('Enrollment Form'!A524=\"\",\"\",IF('Enrollment Form'!B524=\"Subscriber\",\"-\",IF(AND('Enrollment Form'!B524<>\"Subscriber\",'Enrollment Form'!G524='Enrollment Form'!H524),\"N\",\"Y\")))","v":""},0]
[{"$f":"1+A517","v":525},{"$f":"IF('Enrollment Form'!$A525<>\"\",\"Y\",\"N\")","v":"N"},{"$f":"IF(AND('Enrollment Form'!$B525=\"\",'Enrollment Form'!$C525<>\"\"),\"N\",IF($B518=\"N\",\"\",\"Y\"))","v":""},{"$f":"IF(OR($B518=\"N\",'Enrollment Form'!G525=\"\"),\"\",IF('Enrollment Form'!$B525<>\"Subscriber\",\"\",IF('Enrollment Form'!$G525='Enrollment Form'!$H525,\"Y\",\"N\")))","v":""},{"$f":"IF($B518=\"N\",\"\",IF(AND(COUNTIFS('Enrollment Form'!$H$11:$H$1000,'Enrollment Form'!$H525,'Enrollment Form'!$B$11:$B$1000,'Enrollment Form'!$B525)>1,'Enrollment Form'!$H525<>\"\"),\"N\",\"Y\"))","v":""},{"$f":"IF($B518=\"N\",\"\",IF(LEN('Enrollment Form'!$Y525)=0,\"\",IF(LEN('Enrollment Form'!$Y525)<>5,\"N\",\"Y\")))","v":""},{"$f":"IF($B518=\"N\",\"\",IF(LEN('Enrollment Form'!$AD525=0),\"\",IF(LEN('Enrollment Form'!$AD525)<>5,\"N\",\"Y\")))","v":""},{"$f":"IF($B518=\"N\",\"\",IF(LEN('Enrollment Form'!$BL525=0),\"\",IF(LEN('Enrollment Form'!$BL525)<>5,\"N\",\"Y\")))","v":""},{"$f":"IF($B518=\"N\",\"\",IF(LEN('Enrollment Form'!$AE525)=0,\"\",IF(LEN('Enrollment Form'!$AE525)<>10,\"N\",\"Y\")))","v":""},{"$f":"IF($B518=\"N\",\"\",IF(LEN('Enrollment Form'!$AF525)=0,\"\",IF(LEN('Enrollment Form'!$AF525)<>10,\"N\",\"Y\")))","v":""},{"$f":"IF('Enrollment Form'!$O525<>\"Graded\",\"-\",IF(AND('Enrollment Form'!$O525=\"Graded\",'Enrollment Form'!$AO525<>\"\"),\"Y\",\"N\"))","v":"-"},{"$f":"IF($B518=\"N\",\"\",IF(OR('Enrollment Form'!$B525<>\"Subscriber\",'Enrollment Form'!$C525=\"ROC\"),\"-\",IF(AND('Enrollment Form'!$B525=\"Subscriber\",'Enrollment Form'!$C525=\"Enroll\",'Enrollment Form'!$AJ525<>\"\"),\"Y\",\"N\")))","v":""},{"$f":"IF($B518=\"N\",\"\",IF(OR('Enrollment Form'!$B525<>\"Subscriber\",'Enrollment Form'!$C525=\"ROC\"),\"-\",IF(AND('Enrollment Form'!$B525=\"Subscriber\",'Enrollment Form'!$C525=\"Enroll\",'Enrollment Form'!$AK525<>\"\"),\"Y\",\"N\")))","v":""},{"$f":"IF($B518=\"N\",\"\",IF(OR('Enrollment Form'!$B525<>\"Subscriber\",'Enrollment Form'!$C525=\"ROC\"),\"-\",IF(AND('Enrollment Form'!$B525=\"Subscriber\",'Enrollment Form'!$C525=\"Enroll\",'Enrollment Form'!$AL525<>\"\"),\"Y\",\"N\")))","v":""},{"$f":"IF($B518=\"N\",\"\",IF(OR('Enrollment Form'!$B525<>\"Subscriber\",'Enrollment Form'!$C525=\"ROC\"),\"-\",IF(AND('Enrollment Form'!$B525=\"Subscriber\",'Enrollment Form'!$C525=\"Enroll\",'Enrollment Form'!$AM525<>\"\"),\"Y\",\"N\")))","v":""},{"$f":"IF($B518=\"N\",\"\",IF(OR('Enrollment Form'!$B525<>\"Subscriber\",'Enrollment Form'!$C525=\"ROC\"),\"-\",IF(AND('Enrollment Form'!$B525=\"Subscriber\",'Enrollment Form'!$C525=\"Enroll\",'Enrollment Form'!$AN525<>\"\"),\"Y\",\"N\")))","v":""},{"$f":"IF($B518=\"N\",\"\",IF(OR('Enrollment Form'!$B525<>\"Subscriber\",'Enrollment Form'!$C525=\"ROC\"),\"-\",IF(AND('Enrollment Form'!$B525=\"Subscriber\",'Enrollment Form'!$C525=\"Enroll\",'Enrollment Form'!$AP525<>\"\"),\"Y\",\"N\")))","v":""},{"$f":"IF($B518=\"N\",\"\",IF($Q518=\"-\",\"-\",IF(AND($Q518=\"Y\",'Enrollment Form'!$AP525=\"No\"),\"-\",IF(AND($Q518=\"Y\",'Enrollment Form'!$AP525=\"Yes\",'Enrollment Form'!$AQ525<>\"\"),\"Y\",\"N\"))))","v":""},{"$f":"IF($B518=\"N\",\"\",IF(OR('Enrollment Form'!$B525<>\"Subscriber\",'Enrollment Form'!$C525=\"ROC\"),\"-\",IF(AND('Enrollment Form'!$B525=\"Subscriber\",'Enrollment Form'!$C525=\"Enroll\",'Enrollment Form'!$CO525<>\"\"),\"Y\",\"N\")))","v":""},{"$f":"IF($B518=\"N\",\"\",IF($S518=\"-\",\"-\",IF(AND($S518=\"Y\",'Enrollment Form'!$CO525=\"No\"),\"-\",IF(AND($S518=\"Y\",'Enrollment Form'!$CO525=\"Yes\",'Enrollment Form'!$CP525<>\"\"),\"Y\",\"N\"))))","v":""},{"$f":"IF(OR('Enrollment Form'!$AV525=\"Yes\",'Enrollment Form'!$AV525=\"\"),\"-\",IF(AND('Enrollment Form'!$AV525=\"No\",ISERROR(FIND(\"HMO\",VLOOKUP('Enrollment Form'!G525,'Enrollment Form'!H$11:J$1000,3,FALSE),1))=FALSE,COUNTA('Enrollment Form'!$AW525:$AZ525)=4),\"Y\",\"N\"))","v":"-"},{"$f":"IF($B518=\"N\",\"\",IF('Enrollment Form'!$B525=\"Subscriber\",\"-\",IF(COUNTA('Enrollment Form'!$BE525,'Enrollment Form'!$BG525)=2,\"Y\",\"N\")))","v":""},{"$f":"IF($B518=\"N\",\"\",IF(OR('Enrollment Form'!$AU525=\"\",'Enrollment Form'!$AU525=\"No\"),\"-\",IF(AND('Enrollment Form'!$AU525=\"Yes\",COUNTA('Enrollment Form'!$CK525)=1),\"Y\",\"N\")))","v":""},{"$f":"IF(OR('Enrollment Form'!$CK525=\"\",'Enrollment Form'!$CK525=\"No\"),\"-\",IF(COUNTA('Enrollment Form'!$CM525:$CN525)=2,\"Y\",\"N\"))","v":"-"},{"$f":"IF($B518=\"N\",\"\",IF(COUNTIF('Enrollment Form'!$CZ525:$DO525,\"Other\")=COUNTA('Enrollment Form'!$DF525,'Enrollment Form'!$DA525,'Enrollment Form'!$DK525,'Enrollment Form'!$DP525),\"Y\",\"N\"))","v":""},{"$f":"IF($B518=\"N\",\"\",IF(OR('Enrollment Form'!B525<>\"Subscriber\",'Enrollment Form'!C525=\"ROC\",COUNTIF('Enrollment Form'!AS525:AT525,\"Yes\")>=1),\"-\",IF(AND('Enrollment Form'!C525=\"Enroll\",COUNTIF('Enrollment Form'!AS525:AT525,\"No\")=2,'Enrollment Form'!AU525=\"\"),\"N\",\"Y\")))","v":""},{"$f":"IF(OR(B518=\"N\",'Enrollment Form'!B525<>\"Subscriber\",'Enrollment Form'!C525=\"ROC\",'Enrollment Form'!O525<>\"Multiple of Salary\"),\"-\",IF(COUNTA('Enrollment Form'!T525:U525)<2,\"N\",\"Y\"))","v":"-"},{"$f":"IF(B518=\"N\",\"\",IF(OR('Enrollment Form'!C525=\"ROC\",'Enrollment Form'!B525<>\"Subscriber\",'Enrollment Form'!O525=\"Waive\",'Enrollment Form'!O525=\"\"),\"-\",IF('Enrollment Form'!P525=\"\",\"N\",\"Y\")))","v":""},{"$f":"IF($B518=\"N\",\"\",IF(AND('Enrollment Form'!$C525=\"ROC\",'Enrollment Form'!$DS525<>\"\"),\"Y\",IF(AND('Enrollment Form'!$C525=\"ROC\",'Enrollment Form'!$DS525=\"\"),\"N\",IF(AND('Enrollment Form'!$C525=\"Enroll\",'Enrollment Form'!$B525=\"Subscriber\",'Enrollment Form'!$CQ525=\"No\",'Enrollment Form'!$DS525=\"\"),\"N\",IF(AND('Enrollment Form'!$C525=\"Enroll\",'Enrollment Form'!$B525=\"Subscriber\",'Enrollment Form'!$CQ525=\"Yes\"),\"-\",\"Y\")))))","v":""},{"$f":"IF($B518=\"N\",\"\",IF(AND('Enrollment Form'!$C525=\"ROC\",'Enrollment Form'!$DT525<>\"\"),\"Y\",IF(AND('Enrollment Form'!$C525=\"ROC\",'Enrollment Form'!$DT525=\"\"),\"N\",IF(AND('Enrollment Form'!$C525=\"Enroll\",'Enrollment Form'!$B525=\"Subscriber\",'Enrollment Form'!$CQ525=\"No\",'Enrollment Form'!$DT525=\"\"),\"N\",IF(AND('Enrollment Form'!$C525=\"Enroll\",'Enrollment Form'!$B525=\"Subscriber\",'Enrollment Form'!$CQ525=\"Yes\"),\"-\",\"Y\")))))","v":""},{"$f":"IF('Enrollment Form'!AH525=\"\",\"\",IF(ISERROR(SEARCH(\".\",'Enrollment Form'!AH525,SEARCH(\"@\",'Enrollment Form'!AH525))),\"N\",\"Y\"))","v":""},{"$f":"IF(OR($B518=\"N\",'Enrollment Form'!$G525=\"\"),\"\",IF('Enrollment Form'!$B525<>\"Subscriber\",\"-\",IF(COUNTIF('Enrollment Form'!$AS525:$AT525,\"Yes\")=2,\"N\",\"Y\")))","v":""},{"$f":"IF(OR('Enrollment Form'!$CC525=\"\",'Enrollment Form'!$CC525=\"No\"),\"-\",IF(AND('Enrollment Form'!$CC525=\"Yes\",'Enrollment Form'!$CD525=\"\"),\"N\",\"Y\"))","v":"-"},{"$f":"IF(OR('Enrollment Form'!$CE525=\"\",'Enrollment Form'!$CE525=\"No\"),\"-\",IF(AND('Enrollment Form'!$CE525=\"Yes\",'Enrollment Form'!$CF525=\"\"),\"N\",\"Y\"))","v":"-"},{"$f":"IF(OR('Enrollment Form'!$CG525=\"\",'Enrollment Form'!$CG525=\"No\"),\"-\",IF(AND('Enrollment Form'!$CG525=\"Yes\",'Enrollment Form'!$CH525=\"\"),\"N\",\"Y\"))","v":"-"},{"$f":"IF(OR('Enrollment Form'!$CG525=\"\",'Enrollment Form'!$CG525=\"No\"),\"-\",IF(AND('Enrollment Form'!$CG525=\"Yes\",'Enrollment Form'!$CI525=\"\"),\"N\",\"Y\"))","v":"-"},{"$f":"IF('Enrollment Form'!B525<>\"Subscriber\",\"-\",IF(AND('Enrollment Form'!B525=\"Subscriber\",'Enrollment Form'!C525=\"Enroll\",'Enrollment Form'!AA525=\"\"),\"N\",\"Y\"))","v":"-"},{"$f":"IF(OR('Enrollment Form'!B525=\"Subscriber\",'Enrollment Form'!B525=\"\"),\"-\",IF('Enrollment Form'!BI525=\"\",\"N\",\"Y\"))","v":"-"},{"$f":"IF('Enrollment Form'!B525<>\"Subscriber\",\"-\",IF(AND('Enrollment Form'!B525=\"Subscriber\",'Enrollment Form'!G525=\"\"),\"N\",\"Y\"))","v":"-"},{"$f":"IF('Enrollment Form'!A525=\"\",\"\",IF('Enrollment Form'!B525=\"Subscriber\",\"-\",IF(AND('Enrollment Form'!B525<>\"Subscriber\",'Enrollment Form'!G525='Enrollment Form'!H525),\"N\",\"Y\")))","v":""},0]
[526,{"$f":"IF('Enrollment Form'!$A526<>\"\",\"Y\",\"N\")","v":"N"},{"$f":"IF(AND('Enrollment Form'!$B526=\"\",'Enrollment Form'!$C526<>\"\"),\"N\",IF($B519=\"N\",\"\",\"Y\"))","v":""},{"$f":"IF(OR($B519=\"N\",'Enrollment Form'!G526=\"\"),\"\",IF('Enrollment Form'!$B526<>\"Subscriber\",\"\",IF('Enrollment Form'!$G526='Enrollment Form'!$H526,\"Y\",\"N\")))","v":""},{"$f":"IF($B519=\"N\",\"\",IF(AND(COUNTIFS('Enrollment Form'!$H$11:$H$1000,'Enrollment Form'!$H526,'Enrollment Form'!$B$11:$B$1000,'Enrollment Form'!$B526)>1,'Enrollment Form'!$H526<>\"\"),\"N\",\"Y\"))","v":""},{"$f":"IF($B519=\"N\",\"\",IF(LEN('Enrollment Form'!$Y526)=0,\"\",IF(LEN('Enrollment Form'!$Y526)<>5,\"N\",\"Y\")))","v":""},{"$f":"IF($B519=\"N\",\"\",IF(LEN('Enrollment Form'!$AD526=0),\"\",IF(LEN('Enrollment Form'!$AD526)<>5,\"N\",\"Y\")))","v":""},{"$f":"IF($B519=\"N\",\"\",IF(LEN('Enrollment Form'!$BL526=0),\"\",IF(LEN('Enrollment Form'!$BL526)<>5,\"N\",\"Y\")))","v":""},{"$f":"IF($B519=\"N\",\"\",IF(LEN('Enrollment Form'!$AE526)=0,\"\",IF(LEN('Enrollment Form'!$AE526)<>10,\"N\",\"Y\")))","v":""},{"$f":"IF($B519=\"N\",\"\",IF(LEN('Enrollment Form'!$AF526)=0,\"\",IF(LEN('Enrollment Form'!$AF526)<>10,\"N\",\"Y\")))","v":""},{"$f":"IF('Enrollment Form'!$O526<>\"Graded\",\"-\",IF(AND('Enrollment Form'!$O526=\"Graded\",'Enrollment Form'!$AO526<>\"\"),\"Y\",\"N\"))","v":"-"},{"$f":"IF($B519=\"N\",\"\",IF(OR('Enrollment Form'!$B526<>\"Subscriber\",'Enrollment Form'!$C526=\"ROC\"),\"-\",IF(AND('Enrollment Form'!$B526=\"Subscriber\",'Enrollment Form'!$C526=\"Enroll\",'Enrollment Form'!$AJ526<>\"\"),\"Y\",\"N\")))","v":""},{"$f":"IF($B519=\"N\",\"\",IF(OR('Enrollment Form'!$B526<>\"Subscriber\",'Enrollment Form'!$C526=\"ROC\"),\"-\",IF(AND('Enrollment Form'!$B526=\"Subscriber\",'Enrollment Form'!$C526=\"Enroll\",'Enrollment Form'!$AK526<>\"\"),\"Y\",\"N\")))","v":""},{"$f":"IF($B519=\"N\",\"\",IF(OR('Enrollment Form'!$B526<>\"Subscriber\",'Enrollment Form'!$C526=\"ROC\"),\"-\",IF(AND('Enrollment Form'!$B526=\"Subscriber\",'Enrollment Form'!$C526=\"Enroll\",'Enrollment Form'!$AL526<>\"\"),\"Y\",\"N\")))","v":""},{"$f":"IF($B519=\"N\",\"\",IF(OR('Enrollment Form'!$B526<>\"Subscriber\",'Enrollment Form'!$C526=\"ROC\"),\"-\",IF(AND('Enrollment Form'!$B526=\"Subscriber\",'Enrollment Form'!$C526=\"Enroll\",'Enrollment Form'!$AM526<>\"\"),\"Y\",\"N\")))","v":""},{"$f":"IF($B519=\"N\",\"\",IF(OR('Enrollment Form'!$B526<>\"Subscriber\",'Enrollment Form'!$C526=\"ROC\"),\"-\",IF(AND('Enrollment Form'!$B526=\"Subscriber\",'Enrollment Form'!$C526=\"Enroll\",'Enrollment Form'!$AN526<>\"\"),\"Y\",\"N\")))","v":""},{"$f":"IF($B519=\"N\",\"\",IF(OR('Enrollment Form'!$B526<>\"Subscriber\",'Enrollment Form'!$C526=\"ROC\"),\"-\",IF(AND('Enrollment Form'!$B526=\"Subscriber\",'Enrollment Form'!$C526=\"Enroll\",'Enrollment Form'!$AP526<>\"\"),\"Y\",\"N\")))","v":""},{"$f":"IF($B519=\"N\",\"\",IF($Q519=\"-\",\"-\",IF(AND($Q519=\"Y\",'Enrollment Form'!$AP526=\"No\"),\"-\",IF(AND($Q519=\"Y\",'Enrollment Form'!$AP526=\"Yes\",'Enrollment Form'!$AQ526<>\"\"),\"Y\",\"N\"))))","v":""},{"$f":"IF($B519=\"N\",\"\",IF(OR('Enrollment Form'!$B526<>\"Subscriber\",'Enrollment Form'!$C526=\"ROC\"),\"-\",IF(AND('Enrollment Form'!$B526=\"Subscriber\",'Enrollment Form'!$C526=\"Enroll\",'Enrollment Form'!$CO526<>\"\"),\"Y\",\"N\")))","v":""},{"$f":"IF($B519=\"N\",\"\",IF($S519=\"-\",\"-\",IF(AND($S519=\"Y\",'Enrollment Form'!$CO526=\"No\"),\"-\",IF(AND($S519=\"Y\",'Enrollment Form'!$CO526=\"Yes\",'Enrollment Form'!$CP526<>\"\"),\"Y\",\"N\"))))","v":""},{"$f":"IF(OR('Enrollment Form'!$AV526=\"Yes\",'Enrollment Form'!$AV526=\"\"),\"-\",IF(AND('Enrollment Form'!$AV526=\"No\",ISERROR(FIND(\"HMO\",VLOOKUP('Enrollment Form'!G526,'Enrollment Form'!H$11:J$1000,3,FALSE),1))=FALSE,COUNTA('Enrollment Form'!$AW526:$AZ526)=4),\"Y\",\"N\"))","v":"-"},{"$f":"IF($B519=\"N\",\"\",IF('Enrollment Form'!$B526=\"Subscriber\",\"-\",IF(COUNTA('Enrollment Form'!$BE526,'Enrollment Form'!$BG526)=2,\"Y\",\"N\")))","v":""},{"$f":"IF($B519=\"N\",\"\",IF(OR('Enrollment Form'!$AU526=\"\",'Enrollment Form'!$AU526=\"No\"),\"-\",IF(AND('Enrollment Form'!$AU526=\"Yes\",COUNTA('Enrollment Form'!$CK526)=1),\"Y\",\"N\")))","v":""},{"$f":"IF(OR('Enrollment Form'!$CK526=\"\",'Enrollment Form'!$CK526=\"No\"),\"-\",IF(COUNTA('Enrollment Form'!$CM526:$CN526)=2,\"Y\",\"N\"))","v":"-"},{"$f":"IF($B519=\"N\",\"\",IF(COUNTIF('Enrollment Form'!$CZ526:$DO526,\"Other\")=COUNTA('Enrollment Form'!$DF526,'Enrollment Form'!$DA526,'Enrollment Form'!$DK526,'Enrollment Form'!$DP526),\"Y\",\"N\"))","v":""},{"$f":"IF($B519=\"N\",\"\",IF(OR('Enrollment Form'!B526<>\"Subscriber\",'Enrollment Form'!C526=\"ROC\",COUNTIF('Enrollment Form'!AS526:AT526,\"Yes\")>=1),\"-\",IF(AND('Enrollment Form'!C526=\"Enroll\",COUNTIF('Enrollment Form'!AS526:AT526,\"No\")=2,'Enrollment Form'!AU526=\"\"),\"N\",\"Y\")))","v":""},{"$f":"IF(OR(B519=\"N\",'Enrollment Form'!B526<>\"Subscriber\",'Enrollment Form'!C526=\"ROC\",'Enrollment Form'!O526<>\"Multiple of Salary\"),\"-\",IF(COUNTA('Enrollment Form'!T526:U526)<2,\"N\",\"Y\"))","v":"-"},{"$f":"IF(B519=\"N\",\"\",IF(OR('Enrollment Form'!C526=\"ROC\",'Enrollment Form'!B526<>\"Subscriber\",'Enrollment Form'!O526=\"Waive\",'Enrollment Form'!O526=\"\"),\"-\",IF('Enrollment Form'!P526=\"\",\"N\",\"Y\")))","v":""},{"$f":"IF($B519=\"N\",\"\",IF(AND('Enrollment Form'!$C526=\"ROC\",'Enrollment Form'!$DS526<>\"\"),\"Y\",IF(AND('Enrollment Form'!$C526=\"ROC\",'Enrollment Form'!$DS526=\"\"),\"N\",IF(AND('Enrollment Form'!$C526=\"Enroll\",'Enrollment Form'!$B526=\"Subscriber\",'Enrollment Form'!$CQ526=\"No\",'Enrollment Form'!$DS526=\"\"),\"N\",IF(AND('Enrollment Form'!$C526=\"Enroll\",'Enrollment Form'!$B526=\"Subscriber\",'Enrollment Form'!$CQ526=\"Yes\"),\"-\",\"Y\")))))","v":""},{"$f":"IF($B519=\"N\",\"\",IF(AND('Enrollment Form'!$C526=\"ROC\",'Enrollment Form'!$DT526<>\"\"),\"Y\",IF(AND('Enrollment Form'!$C526=\"ROC\",'Enrollment Form'!$DT526=\"\"),\"N\",IF(AND('Enrollment Form'!$C526=\"Enroll\",'Enrollment Form'!$B526=\"Subscriber\",'Enrollment Form'!$CQ526=\"No\",'Enrollment Form'!$DT526=\"\"),\"N\",IF(AND('Enrollment Form'!$C526=\"Enroll\",'Enrollment Form'!$B526=\"Subscriber\",'Enrollment Form'!$CQ526=\"Yes\"),\"-\",\"Y\")))))","v":""},{"$f":"IF('Enrollment Form'!AH526=\"\",\"\",IF(ISERROR(SEARCH(\".\",'Enrollment Form'!AH526,SEARCH(\"@\",'Enrollment Form'!AH526))),\"N\",\"Y\"))","v":""},{"$f":"IF(OR($B519=\"N\",'Enrollment Form'!$G526=\"\"),\"\",IF('Enrollment Form'!$B526<>\"Subscriber\",\"-\",IF(COUNTIF('Enrollment Form'!$AS526:$AT526,\"Yes\")=2,\"N\",\"Y\")))","v":""},{"$f":"IF(OR('Enrollment Form'!$CC526=\"\",'Enrollment Form'!$CC526=\"No\"),\"-\",IF(AND('Enrollment Form'!$CC526=\"Yes\",'Enrollment Form'!$CD526=\"\"),\"N\",\"Y\"))","v":"-"},{"$f":"IF(OR('Enrollment Form'!$CE526=\"\",'Enrollment Form'!$CE526=\"No\"),\"-\",IF(AND('Enrollment Form'!$CE526=\"Yes\",'Enrollment Form'!$CF526=\"\"),\"N\",\"Y\"))","v":"-"},{"$f":"IF(OR('Enrollment Form'!$CG526=\"\",'Enrollment Form'!$CG526=\"No\"),\"-\",IF(AND('Enrollment Form'!$CG526=\"Yes\",'Enrollment Form'!$CH526=\"\"),\"N\",\"Y\"))","v":"-"},{"$f":"IF(OR('Enrollment Form'!$CG526=\"\",'Enrollment Form'!$CG526=\"No\"),\"-\",IF(AND('Enrollment Form'!$CG526=\"Yes\",'Enrollment Form'!$CI526=\"\"),\"N\",\"Y\"))","v":"-"},{"$f":"IF('Enrollment Form'!B526<>\"Subscriber\",\"-\",IF(AND('Enrollment Form'!B526=\"Subscriber\",'Enrollment Form'!C526=\"Enroll\",'Enrollment Form'!AA526=\"\"),\"N\",\"Y\"))","v":"-"},{"$f":"IF(OR('Enrollment Form'!B526=\"Subscriber\",'Enrollment Form'!B526=\"\"),\"-\",IF('Enrollment Form'!BI526=\"\",\"N\",\"Y\"))","v":"-"},{"$f":"IF('Enrollment Form'!B526<>\"Subscriber\",\"-\",IF(AND('Enrollment Form'!B526=\"Subscriber\",'Enrollment Form'!G526=\"\"),\"N\",\"Y\"))","v":"-"},{"$f":"IF('Enrollment Form'!A526=\"\",\"\",IF('Enrollment Form'!B526=\"Subscriber\",\"-\",IF(AND('Enrollment Form'!B526<>\"Subscriber\",'Enrollment Form'!G526='Enrollment Form'!H526),\"N\",\"Y\")))","v":""},0]
[527,{"$f":"IF('Enrollment Form'!$A527<>\"\",\"Y\",\"N\")","v":"N"},{"$f":"IF(AND('Enrollment Form'!$B527=\"\",'Enrollment Form'!$C527<>\"\"),\"N\",IF($B520=\"N\",\"\",\"Y\"))","v":""},{"$f":"IF(OR($B520=\"N\",'Enrollment Form'!G527=\"\"),\"\",IF('Enrollment Form'!$B527<>\"Subscriber\",\"\",IF('Enrollment Form'!$G527='Enrollment Form'!$H527,\"Y\",\"N\")))","v":""},{"$f":"IF($B520=\"N\",\"\",IF(AND(COUNTIFS('Enrollment Form'!$H$11:$H$1000,'Enrollment Form'!$H527,'Enrollment Form'!$B$11:$B$1000,'Enrollment Form'!$B527)>1,'Enrollment Form'!$H527<>\"\"),\"N\",\"Y\"))","v":""},{"$f":"IF($B520=\"N\",\"\",IF(LEN('Enrollment Form'!$Y527)=0,\"\",IF(LEN('Enrollment Form'!$Y527)<>5,\"N\",\"Y\")))","v":""},{"$f":"IF($B520=\"N\",\"\",IF(LEN('Enrollment Form'!$AD527=0),\"\",IF(LEN('Enrollment Form'!$AD527)<>5,\"N\",\"Y\")))","v":""},{"$f":"IF($B520=\"N\",\"\",IF(LEN('Enrollment Form'!$BL527=0),\"\",IF(LEN('Enrollment Form'!$BL527)<>5,\"N\",\"Y\")))","v":""},{"$f":"IF($B520=\"N\",\"\",IF(LEN('Enrollment Form'!$AE527)=0,\"\",IF(LEN('Enrollment Form'!$AE527)<>10,\"N\",\"Y\")))","v":""},{"$f":"IF($B520=\"N\",\"\",IF(LEN('Enrollment Form'!$AF527)=0,\"\",IF(LEN('Enrollment Form'!$AF527)<>10,\"N\",\"Y\")))","v":""},{"$f":"IF('Enrollment Form'!$O527<>\"Graded\",\"-\",IF(AND('Enrollment Form'!$O527=\"Graded\",'Enrollment Form'!$AO527<>\"\"),\"Y\",\"N\"))","v":"-"},{"$f":"IF($B520=\"N\",\"\",IF(OR('Enrollment Form'!$B527<>\"Subscriber\",'Enrollment Form'!$C527=\"ROC\"),\"-\",IF(AND('Enrollment Form'!$B527=\"Subscriber\",'Enrollment Form'!$C527=\"Enroll\",'Enrollment Form'!$AJ527<>\"\"),\"Y\",\"N\")))","v":""},{"$f":"IF($B520=\"N\",\"\",IF(OR('Enrollment Form'!$B527<>\"Subscriber\",'Enrollment Form'!$C527=\"ROC\"),\"-\",IF(AND('Enrollment Form'!$B527=\"Subscriber\",'Enrollment Form'!$C527=\"Enroll\",'Enrollment Form'!$AK527<>\"\"),\"Y\",\"N\")))","v":""},{"$f":"IF($B520=\"N\",\"\",IF(OR('Enrollment Form'!$B527<>\"Subscriber\",'Enrollment Form'!$C527=\"ROC\"),\"-\",IF(AND('Enrollment Form'!$B527=\"Subscriber\",'Enrollment Form'!$C527=\"Enroll\",'Enrollment Form'!$AL527<>\"\"),\"Y\",\"N\")))","v":""},{"$f":"IF($B520=\"N\",\"\",IF(OR('Enrollment Form'!$B527<>\"Subscriber\",'Enrollment Form'!$C527=\"ROC\"),\"-\",IF(AND('Enrollment Form'!$B527=\"Subscriber\",'Enrollment Form'!$C527=\"Enroll\",'Enrollment Form'!$AM527<>\"\"),\"Y\",\"N\")))","v":""},{"$f":"IF($B520=\"N\",\"\",IF(OR('Enrollment Form'!$B527<>\"Subscriber\",'Enrollment Form'!$C527=\"ROC\"),\"-\",IF(AND('Enrollment Form'!$B527=\"Subscriber\",'Enrollment Form'!$C527=\"Enroll\",'Enrollment Form'!$AN527<>\"\"),\"Y\",\"N\")))","v":""},{"$f":"IF($B520=\"N\",\"\",IF(OR('Enrollment Form'!$B527<>\"Subscriber\",'Enrollment Form'!$C527=\"ROC\"),\"-\",IF(AND('Enrollment Form'!$B527=\"Subscriber\",'Enrollment Form'!$C527=\"Enroll\",'Enrollment Form'!$AP527<>\"\"),\"Y\",\"N\")))","v":""},{"$f":"IF($B520=\"N\",\"\",IF($Q520=\"-\",\"-\",IF(AND($Q520=\"Y\",'Enrollment Form'!$AP527=\"No\"),\"-\",IF(AND($Q520=\"Y\",'Enrollment Form'!$AP527=\"Yes\",'Enrollment Form'!$AQ527<>\"\"),\"Y\",\"N\"))))","v":""},{"$f":"IF($B520=\"N\",\"\",IF(OR('Enrollment Form'!$B527<>\"Subscriber\",'Enrollment Form'!$C527=\"ROC\"),\"-\",IF(AND('Enrollment Form'!$B527=\"Subscriber\",'Enrollment Form'!$C527=\"Enroll\",'Enrollment Form'!$CO527<>\"\"),\"Y\",\"N\")))","v":""},{"$f":"IF($B520=\"N\",\"\",IF($S520=\"-\",\"-\",IF(AND($S520=\"Y\",'Enrollment Form'!$CO527=\"No\"),\"-\",IF(AND($S520=\"Y\",'Enrollment Form'!$CO527=\"Yes\",'Enrollment Form'!$CP527<>\"\"),\"Y\",\"N\"))))","v":""},{"$f":"IF(OR('Enrollment Form'!$AV527=\"Yes\",'Enrollment Form'!$AV527=\"\"),\"-\",IF(AND('Enrollment Form'!$AV527=\"No\",ISERROR(FIND(\"HMO\",VLOOKUP('Enrollment Form'!G527,'Enrollment Form'!H$11:J$1000,3,FALSE),1))=FALSE,COUNTA('Enrollment Form'!$AW527:$AZ527)=4),\"Y\",\"N\"))","v":"-"},{"$f":"IF($B520=\"N\",\"\",IF('Enrollment Form'!$B527=\"Subscriber\",\"-\",IF(COUNTA('Enrollment Form'!$BE527,'Enrollment Form'!$BG527)=2,\"Y\",\"N\")))","v":""},{"$f":"IF($B520=\"N\",\"\",IF(OR('Enrollment Form'!$AU527=\"\",'Enrollment Form'!$AU527=\"No\"),\"-\",IF(AND('Enrollment Form'!$AU527=\"Yes\",COUNTA('Enrollment Form'!$CK527)=1),\"Y\",\"N\")))","v":""},{"$f":"IF(OR('Enrollment Form'!$CK527=\"\",'Enrollment Form'!$CK527=\"No\"),\"-\",IF(COUNTA('Enrollment Form'!$CM527:$CN527)=2,\"Y\",\"N\"))","v":"-"},{"$f":"IF($B520=\"N\",\"\",IF(COUNTIF('Enrollment Form'!$CZ527:$DO527,\"Other\")=COUNTA('Enrollment Form'!$DF527,'Enrollment Form'!$DA527,'Enrollment Form'!$DK527,'Enrollment Form'!$DP527),\"Y\",\"N\"))","v":""},{"$f":"IF($B520=\"N\",\"\",IF(OR('Enrollment Form'!B527<>\"Subscriber\",'Enrollment Form'!C527=\"ROC\",COUNTIF('Enrollment Form'!AS527:AT527,\"Yes\")>=1),\"-\",IF(AND('Enrollment Form'!C527=\"Enroll\",COUNTIF('Enrollment Form'!AS527:AT527,\"No\")=2,'Enrollment Form'!AU527=\"\"),\"N\",\"Y\")))","v":""},{"$f":"IF(OR(B520=\"N\",'Enrollment Form'!B527<>\"Subscriber\",'Enrollment Form'!C527=\"ROC\",'Enrollment Form'!O527<>\"Multiple of Salary\"),\"-\",IF(COUNTA('Enrollment Form'!T527:U527)<2,\"N\",\"Y\"))","v":"-"},{"$f":"IF(B520=\"N\",\"\",IF(OR('Enrollment Form'!C527=\"ROC\",'Enrollment Form'!B527<>\"Subscriber\",'Enrollment Form'!O527=\"Waive\",'Enrollment Form'!O527=\"\"),\"-\",IF('Enrollment Form'!P527=\"\",\"N\",\"Y\")))","v":""},{"$f":"IF($B520=\"N\",\"\",IF(AND('Enrollment Form'!$C527=\"ROC\",'Enrollment Form'!$DS527<>\"\"),\"Y\",IF(AND('Enrollment Form'!$C527=\"ROC\",'Enrollment Form'!$DS527=\"\"),\"N\",IF(AND('Enrollment Form'!$C527=\"Enroll\",'Enrollment Form'!$B527=\"Subscriber\",'Enrollment Form'!$CQ527=\"No\",'Enrollment Form'!$DS527=\"\"),\"N\",IF(AND('Enrollment Form'!$C527=\"Enroll\",'Enrollment Form'!$B527=\"Subscriber\",'Enrollment Form'!$CQ527=\"Yes\"),\"-\",\"Y\")))))","v":""},{"$f":"IF($B520=\"N\",\"\",IF(AND('Enrollment Form'!$C527=\"ROC\",'Enrollment Form'!$DT527<>\"\"),\"Y\",IF(AND('Enrollment Form'!$C527=\"ROC\",'Enrollment Form'!$DT527=\"\"),\"N\",IF(AND('Enrollment Form'!$C527=\"Enroll\",'Enrollment Form'!$B527=\"Subscriber\",'Enrollment Form'!$CQ527=\"No\",'Enrollment Form'!$DT527=\"\"),\"N\",IF(AND('Enrollment Form'!$C527=\"Enroll\",'Enrollment Form'!$B527=\"Subscriber\",'Enrollment Form'!$CQ527=\"Yes\"),\"-\",\"Y\")))))","v":""},{"$f":"IF('Enrollment Form'!AH527=\"\",\"\",IF(ISERROR(SEARCH(\".\",'Enrollment Form'!AH527,SEARCH(\"@\",'Enrollment Form'!AH527))),\"N\",\"Y\"))","v":""},{"$f":"IF(OR($B520=\"N\",'Enrollment Form'!$G527=\"\"),\"\",IF('Enrollment Form'!$B527<>\"Subscriber\",\"-\",IF(COUNTIF('Enrollment Form'!$AS527:$AT527,\"Yes\")=2,\"N\",\"Y\")))","v":""},{"$f":"IF(OR('Enrollment Form'!$CC527=\"\",'Enrollment Form'!$CC527=\"No\"),\"-\",IF(AND('Enrollment Form'!$CC527=\"Yes\",'Enrollment Form'!$CD527=\"\"),\"N\",\"Y\"))","v":"-"},{"$f":"IF(OR('Enrollment Form'!$CE527=\"\",'Enrollment Form'!$CE527=\"No\"),\"-\",IF(AND('Enrollment Form'!$CE527=\"Yes\",'Enrollment Form'!$CF527=\"\"),\"N\",\"Y\"))","v":"-"},{"$f":"IF(OR('Enrollment Form'!$CG527=\"\",'Enrollment Form'!$CG527=\"No\"),\"-\",IF(AND('Enrollment Form'!$CG527=\"Yes\",'Enrollment Form'!$CH527=\"\"),\"N\",\"Y\"))","v":"-"},{"$f":"IF(OR('Enrollment Form'!$CG527=\"\",'Enrollment Form'!$CG527=\"No\"),\"-\",IF(AND('Enrollment Form'!$CG527=\"Yes\",'Enrollment Form'!$CI527=\"\"),\"N\",\"Y\"))","v":"-"},{"$f":"IF('Enrollment Form'!B527<>\"Subscriber\",\"-\",IF(AND('Enrollment Form'!B527=\"Subscriber\",'Enrollment Form'!C527=\"Enroll\",'Enrollment Form'!AA527=\"\"),\"N\",\"Y\"))","v":"-"},{"$f":"IF(OR('Enrollment Form'!B527=\"Subscriber\",'Enrollment Form'!B527=\"\"),\"-\",IF('Enrollment Form'!BI527=\"\",\"N\",\"Y\"))","v":"-"},{"$f":"IF('Enrollment Form'!B527<>\"Subscriber\",\"-\",IF(AND('Enrollment Form'!B527=\"Subscriber\",'Enrollment Form'!G527=\"\"),\"N\",\"Y\"))","v":"-"},{"$f":"IF('Enrollment Form'!A527=\"\",\"\",IF('Enrollment Form'!B527=\"Subscriber\",\"-\",IF(AND('Enrollment Form'!B527<>\"Subscriber\",'Enrollment Form'!G527='Enrollment Form'!H527),\"N\",\"Y\")))","v":""},0]
[528,{"$f":"IF('Enrollment Form'!$A528<>\"\",\"Y\",\"N\")","v":"N"},{"$f":"IF(AND('Enrollment Form'!$B528=\"\",'Enrollment Form'!$C528<>\"\"),\"N\",IF($B521=\"N\",\"\",\"Y\"))","v":""},{"$f":"IF(OR($B521=\"N\",'Enrollment Form'!G528=\"\"),\"\",IF('Enrollment Form'!$B528<>\"Subscriber\",\"\",IF('Enrollment Form'!$G528='Enrollment Form'!$H528,\"Y\",\"N\")))","v":""},{"$f":"IF($B521=\"N\",\"\",IF(AND(COUNTIFS('Enrollment Form'!$H$11:$H$1000,'Enrollment Form'!$H528,'Enrollment Form'!$B$11:$B$1000,'Enrollment Form'!$B528)>1,'Enrollment Form'!$H528<>\"\"),\"N\",\"Y\"))","v":""},{"$f":"IF($B521=\"N\",\"\",IF(LEN('Enrollment Form'!$Y528)=0,\"\",IF(LEN('Enrollment Form'!$Y528)<>5,\"N\",\"Y\")))","v":""},{"$f":"IF($B521=\"N\",\"\",IF(LEN('Enrollment Form'!$AD528=0),\"\",IF(LEN('Enrollment Form'!$AD528)<>5,\"N\",\"Y\")))","v":""},{"$f":"IF($B521=\"N\",\"\",IF(LEN('Enrollment Form'!$BL528=0),\"\",IF(LEN('Enrollment Form'!$BL528)<>5,\"N\",\"Y\")))","v":""},{"$f":"IF($B521=\"N\",\"\",IF(LEN('Enrollment Form'!$AE528)=0,\"\",IF(LEN('Enrollment Form'!$AE528)<>10,\"N\",\"Y\")))","v":""},{"$f":"IF($B521=\"N\",\"\",IF(LEN('Enrollment Form'!$AF528)=0,\"\",IF(LEN('Enrollment Form'!$AF528)<>10,\"N\",\"Y\")))","v":""},{"$f":"IF('Enrollment Form'!$O528<>\"Graded\",\"-\",IF(AND('Enrollment Form'!$O528=\"Graded\",'Enrollment Form'!$AO528<>\"\"),\"Y\",\"N\"))","v":"-"},{"$f":"IF($B521=\"N\",\"\",IF(OR('Enrollment Form'!$B528<>\"Subscriber\",'Enrollment Form'!$C528=\"ROC\"),\"-\",IF(AND('Enrollment Form'!$B528=\"Subscriber\",'Enrollment Form'!$C528=\"Enroll\",'Enrollment Form'!$AJ528<>\"\"),\"Y\",\"N\")))","v":""},{"$f":"IF($B521=\"N\",\"\",IF(OR('Enrollment Form'!$B528<>\"Subscriber\",'Enrollment Form'!$C528=\"ROC\"),\"-\",IF(AND('Enrollment Form'!$B528=\"Subscriber\",'Enrollment Form'!$C528=\"Enroll\",'Enrollment Form'!$AK528<>\"\"),\"Y\",\"N\")))","v":""},{"$f":"IF($B521=\"N\",\"\",IF(OR('Enrollment Form'!$B528<>\"Subscriber\",'Enrollment Form'!$C528=\"ROC\"),\"-\",IF(AND('Enrollment Form'!$B528=\"Subscriber\",'Enrollment Form'!$C528=\"Enroll\",'Enrollment Form'!$AL528<>\"\"),\"Y\",\"N\")))","v":""},{"$f":"IF($B521=\"N\",\"\",IF(OR('Enrollment Form'!$B528<>\"Subscriber\",'Enrollment Form'!$C528=\"ROC\"),\"-\",IF(AND('Enrollment Form'!$B528=\"Subscriber\",'Enrollment Form'!$C528=\"Enroll\",'Enrollment Form'!$AM528<>\"\"),\"Y\",\"N\")))","v":""},{"$f":"IF($B521=\"N\",\"\",IF(OR('Enrollment Form'!$B528<>\"Subscriber\",'Enrollment Form'!$C528=\"ROC\"),\"-\",IF(AND('Enrollment Form'!$B528=\"Subscriber\",'Enrollment Form'!$C528=\"Enroll\",'Enrollment Form'!$AN528<>\"\"),\"Y\",\"N\")))","v":""},{"$f":"IF($B521=\"N\",\"\",IF(OR('Enrollment Form'!$B528<>\"Subscriber\",'Enrollment Form'!$C528=\"ROC\"),\"-\",IF(AND('Enrollment Form'!$B528=\"Subscriber\",'Enrollment Form'!$C528=\"Enroll\",'Enrollment Form'!$AP528<>\"\"),\"Y\",\"N\")))","v":""},{"$f":"IF($B521=\"N\",\"\",IF($Q521=\"-\",\"-\",IF(AND($Q521=\"Y\",'Enrollment Form'!$AP528=\"No\"),\"-\",IF(AND($Q521=\"Y\",'Enrollment Form'!$AP528=\"Yes\",'Enrollment Form'!$AQ528<>\"\"),\"Y\",\"N\"))))","v":""},{"$f":"IF($B521=\"N\",\"\",IF(OR('Enrollment Form'!$B528<>\"Subscriber\",'Enrollment Form'!$C528=\"ROC\"),\"-\",IF(AND('Enrollment Form'!$B528=\"Subscriber\",'Enrollment Form'!$C528=\"Enroll\",'Enrollment Form'!$CO528<>\"\"),\"Y\",\"N\")))","v":""},{"$f":"IF($B521=\"N\",\"\",IF($S521=\"-\",\"-\",IF(AND($S521=\"Y\",'Enrollment Form'!$CO528=\"No\"),\"-\",IF(AND($S521=\"Y\",'Enrollment Form'!$CO528=\"Yes\",'Enrollment Form'!$CP528<>\"\"),\"Y\",\"N\"))))","v":""},{"$f":"IF(OR('Enrollment Form'!$AV528=\"Yes\",'Enrollment Form'!$AV528=\"\"),\"-\",IF(AND('Enrollment Form'!$AV528=\"No\",ISERROR(FIND(\"HMO\",VLOOKUP('Enrollment Form'!G528,'Enrollment Form'!H$11:J$1000,3,FALSE),1))=FALSE,COUNTA('Enrollment Form'!$AW528:$AZ528)=4),\"Y\",\"N\"))","v":"-"},{"$f":"IF($B521=\"N\",\"\",IF('Enrollment Form'!$B528=\"Subscriber\",\"-\",IF(COUNTA('Enrollment Form'!$BE528,'Enrollment Form'!$BG528)=2,\"Y\",\"N\")))","v":""},{"$f":"IF($B521=\"N\",\"\",IF(OR('Enrollment Form'!$AU528=\"\",'Enrollment Form'!$AU528=\"No\"),\"-\",IF(AND('Enrollment Form'!$AU528=\"Yes\",COUNTA('Enrollment Form'!$CK528)=1),\"Y\",\"N\")))","v":""},{"$f":"IF(OR('Enrollment Form'!$CK528=\"\",'Enrollment Form'!$CK528=\"No\"),\"-\",IF(COUNTA('Enrollment Form'!$CM528:$CN528)=2,\"Y\",\"N\"))","v":"-"},{"$f":"IF($B521=\"N\",\"\",IF(COUNTIF('Enrollment Form'!$CZ528:$DO528,\"Other\")=COUNTA('Enrollment Form'!$DF528,'Enrollment Form'!$DA528,'Enrollment Form'!$DK528,'Enrollment Form'!$DP528),\"Y\",\"N\"))","v":""},{"$f":"IF($B521=\"N\",\"\",IF(OR('Enrollment Form'!B528<>\"Subscriber\",'Enrollment Form'!C528=\"ROC\",COUNTIF('Enrollment Form'!AS528:AT528,\"Yes\")>=1),\"-\",IF(AND('Enrollment Form'!C528=\"Enroll\",COUNTIF('Enrollment Form'!AS528:AT528,\"No\")=2,'Enrollment Form'!AU528=\"\"),\"N\",\"Y\")))","v":""},{"$f":"IF(OR(B521=\"N\",'Enrollment Form'!B528<>\"Subscriber\",'Enrollment Form'!C528=\"ROC\",'Enrollment Form'!O528<>\"Multiple of Salary\"),\"-\",IF(COUNTA('Enrollment Form'!T528:U528)<2,\"N\",\"Y\"))","v":"-"},{"$f":"IF(B521=\"N\",\"\",IF(OR('Enrollment Form'!C528=\"ROC\",'Enrollment Form'!B528<>\"Subscriber\",'Enrollment Form'!O528=\"Waive\",'Enrollment Form'!O528=\"\"),\"-\",IF('Enrollment Form'!P528=\"\",\"N\",\"Y\")))","v":""},{"$f":"IF($B521=\"N\",\"\",IF(AND('Enrollment Form'!$C528=\"ROC\",'Enrollment Form'!$DS528<>\"\"),\"Y\",IF(AND('Enrollment Form'!$C528=\"ROC\",'Enrollment Form'!$DS528=\"\"),\"N\",IF(AND('Enrollment Form'!$C528=\"Enroll\",'Enrollment Form'!$B528=\"Subscriber\",'Enrollment Form'!$CQ528=\"No\",'Enrollment Form'!$DS528=\"\"),\"N\",IF(AND('Enrollment Form'!$C528=\"Enroll\",'Enrollment Form'!$B528=\"Subscriber\",'Enrollment Form'!$CQ528=\"Yes\"),\"-\",\"Y\")))))","v":""},{"$f":"IF($B521=\"N\",\"\",IF(AND('Enrollment Form'!$C528=\"ROC\",'Enrollment Form'!$DT528<>\"\"),\"Y\",IF(AND('Enrollment Form'!$C528=\"ROC\",'Enrollment Form'!$DT528=\"\"),\"N\",IF(AND('Enrollment Form'!$C528=\"Enroll\",'Enrollment Form'!$B528=\"Subscriber\",'Enrollment Form'!$CQ528=\"No\",'Enrollment Form'!$DT528=\"\"),\"N\",IF(AND('Enrollment Form'!$C528=\"Enroll\",'Enrollment Form'!$B528=\"Subscriber\",'Enrollment Form'!$CQ528=\"Yes\"),\"-\",\"Y\")))))","v":""},{"$f":"IF('Enrollment Form'!AH528=\"\",\"\",IF(ISERROR(SEARCH(\".\",'Enrollment Form'!AH528,SEARCH(\"@\",'Enrollment Form'!AH528))),\"N\",\"Y\"))","v":""},{"$f":"IF(OR($B521=\"N\",'Enrollment Form'!$G528=\"\"),\"\",IF('Enrollment Form'!$B528<>\"Subscriber\",\"-\",IF(COUNTIF('Enrollment Form'!$AS528:$AT528,\"Yes\")=2,\"N\",\"Y\")))","v":""},{"$f":"IF(OR('Enrollment Form'!$CC528=\"\",'Enrollment Form'!$CC528=\"No\"),\"-\",IF(AND('Enrollment Form'!$CC528=\"Yes\",'Enrollment Form'!$CD528=\"\"),\"N\",\"Y\"))","v":"-"},{"$f":"IF(OR('Enrollment Form'!$CE528=\"\",'Enrollment Form'!$CE528=\"No\"),\"-\",IF(AND('Enrollment Form'!$CE528=\"Yes\",'Enrollment Form'!$CF528=\"\"),\"N\",\"Y\"))","v":"-"},{"$f":"IF(OR('Enrollment Form'!$CG528=\"\",'Enrollment Form'!$CG528=\"No\"),\"-\",IF(AND('Enrollment Form'!$CG528=\"Yes\",'Enrollment Form'!$CH528=\"\"),\"N\",\"Y\"))","v":"-"},{"$f":"IF(OR('Enrollment Form'!$CG528=\"\",'Enrollment Form'!$CG528=\"No\"),\"-\",IF(AND('Enrollment Form'!$CG528=\"Yes\",'Enrollment Form'!$CI528=\"\"),\"N\",\"Y\"))","v":"-"},{"$f":"IF('Enrollment Form'!B528<>\"Subscriber\",\"-\",IF(AND('Enrollment Form'!B528=\"Subscriber\",'Enrollment Form'!C528=\"Enroll\",'Enrollment Form'!AA528=\"\"),\"N\",\"Y\"))","v":"-"},{"$f":"IF(OR('Enrollment Form'!B528=\"Subscriber\",'Enrollment Form'!B528=\"\"),\"-\",IF('Enrollment Form'!BI528=\"\",\"N\",\"Y\"))","v":"-"},{"$f":"IF('Enrollment Form'!B528<>\"Subscriber\",\"-\",IF(AND('Enrollment Form'!B528=\"Subscriber\",'Enrollment Form'!G528=\"\"),\"N\",\"Y\"))","v":"-"},{"$f":"IF('Enrollment Form'!A528=\"\",\"\",IF('Enrollment Form'!B528=\"Subscriber\",\"-\",IF(AND('Enrollment Form'!B528<>\"Subscriber\",'Enrollment Form'!G528='Enrollment Form'!H528),\"N\",\"Y\")))","v":""},0]
[529,{"$f":"IF('Enrollment Form'!$A529<>\"\",\"Y\",\"N\")","v":"N"},{"$f":"IF(AND('Enrollment Form'!$B529=\"\",'Enrollment Form'!$C529<>\"\"),\"N\",IF($B522=\"N\",\"\",\"Y\"))","v":""},{"$f":"IF(OR($B522=\"N\",'Enrollment Form'!G529=\"\"),\"\",IF('Enrollment Form'!$B529<>\"Subscriber\",\"\",IF('Enrollment Form'!$G529='Enrollment Form'!$H529,\"Y\",\"N\")))","v":""},{"$f":"IF($B522=\"N\",\"\",IF(AND(COUNTIFS('Enrollment Form'!$H$11:$H$1000,'Enrollment Form'!$H529,'Enrollment Form'!$B$11:$B$1000,'Enrollment Form'!$B529)>1,'Enrollment Form'!$H529<>\"\"),\"N\",\"Y\"))","v":""},{"$f":"IF($B522=\"N\",\"\",IF(LEN('Enrollment Form'!$Y529)=0,\"\",IF(LEN('Enrollment Form'!$Y529)<>5,\"N\",\"Y\")))","v":""},{"$f":"IF($B522=\"N\",\"\",IF(LEN('Enrollment Form'!$AD529=0),\"\",IF(LEN('Enrollment Form'!$AD529)<>5,\"N\",\"Y\")))","v":""},{"$f":"IF($B522=\"N\",\"\",IF(LEN('Enrollment Form'!$BL529=0),\"\",IF(LEN('Enrollment Form'!$BL529)<>5,\"N\",\"Y\")))","v":""},{"$f":"IF($B522=\"N\",\"\",IF(LEN('Enrollment Form'!$AE529)=0,\"\",IF(LEN('Enrollment Form'!$AE529)<>10,\"N\",\"Y\")))","v":""},{"$f":"IF($B522=\"N\",\"\",IF(LEN('Enrollment Form'!$AF529)=0,\"\",IF(LEN('Enrollment Form'!$AF529)<>10,\"N\",\"Y\")))","v":""},{"$f":"IF('Enrollment Form'!$O529<>\"Graded\",\"-\",IF(AND('Enrollment Form'!$O529=\"Graded\",'Enrollment Form'!$AO529<>\"\"),\"Y\",\"N\"))","v":"-"},{"$f":"IF($B522=\"N\",\"\",IF(OR('Enrollment Form'!$B529<>\"Subscriber\",'Enrollment Form'!$C529=\"ROC\"),\"-\",IF(AND('Enrollment Form'!$B529=\"Subscriber\",'Enrollment Form'!$C529=\"Enroll\",'Enrollment Form'!$AJ529<>\"\"),\"Y\",\"N\")))","v":""},{"$f":"IF($B522=\"N\",\"\",IF(OR('Enrollment Form'!$B529<>\"Subscriber\",'Enrollment Form'!$C529=\"ROC\"),\"-\",IF(AND('Enrollment Form'!$B529=\"Subscriber\",'Enrollment Form'!$C529=\"Enroll\",'Enrollment Form'!$AK529<>\"\"),\"Y\",\"N\")))","v":""},{"$f":"IF($B522=\"N\",\"\",IF(OR('Enrollment Form'!$B529<>\"Subscriber\",'Enrollment Form'!$C529=\"ROC\"),\"-\",IF(AND('Enrollment Form'!$B529=\"Subscriber\",'Enrollment Form'!$C529=\"Enroll\",'Enrollment Form'!$AL529<>\"\"),\"Y\",\"N\")))","v":""},{"$f":"IF($B522=\"N\",\"\",IF(OR('Enrollment Form'!$B529<>\"Subscriber\",'Enrollment Form'!$C529=\"ROC\"),\"-\",IF(AND('Enrollment Form'!$B529=\"Subscriber\",'Enrollment Form'!$C529=\"Enroll\",'Enrollment Form'!$AM529<>\"\"),\"Y\",\"N\")))","v":""},{"$f":"IF($B522=\"N\",\"\",IF(OR('Enrollment Form'!$B529<>\"Subscriber\",'Enrollment Form'!$C529=\"ROC\"),\"-\",IF(AND('Enrollment Form'!$B529=\"Subscriber\",'Enrollment Form'!$C529=\"Enroll\",'Enrollment Form'!$AN529<>\"\"),\"Y\",\"N\")))","v":""},{"$f":"IF($B522=\"N\",\"\",IF(OR('Enrollment Form'!$B529<>\"Subscriber\",'Enrollment Form'!$C529=\"ROC\"),\"-\",IF(AND('Enrollment Form'!$B529=\"Subscriber\",'Enrollment Form'!$C529=\"Enroll\",'Enrollment Form'!$AP529<>\"\"),\"Y\",\"N\")))","v":""},{"$f":"IF($B522=\"N\",\"\",IF($Q522=\"-\",\"-\",IF(AND($Q522=\"Y\",'Enrollment Form'!$AP529=\"No\"),\"-\",IF(AND($Q522=\"Y\",'Enrollment Form'!$AP529=\"Yes\",'Enrollment Form'!$AQ529<>\"\"),\"Y\",\"N\"))))","v":""},{"$f":"IF($B522=\"N\",\"\",IF(OR('Enrollment Form'!$B529<>\"Subscriber\",'Enrollment Form'!$C529=\"ROC\"),\"-\",IF(AND('Enrollment Form'!$B529=\"Subscriber\",'Enrollment Form'!$C529=\"Enroll\",'Enrollment Form'!$CO529<>\"\"),\"Y\",\"N\")))","v":""},{"$f":"IF($B522=\"N\",\"\",IF($S522=\"-\",\"-\",IF(AND($S522=\"Y\",'Enrollment Form'!$CO529=\"No\"),\"-\",IF(AND($S522=\"Y\",'Enrollment Form'!$CO529=\"Yes\",'Enrollment Form'!$CP529<>\"\"),\"Y\",\"N\"))))","v":""},{"$f":"IF(OR('Enrollment Form'!$AV529=\"Yes\",'Enrollment Form'!$AV529=\"\"),\"-\",IF(AND('Enrollment Form'!$AV529=\"No\",ISERROR(FIND(\"HMO\",VLOOKUP('Enrollment Form'!G529,'Enrollment Form'!H$11:J$1000,3,FALSE),1))=FALSE,COUNTA('Enrollment Form'!$AW529:$AZ529)=4),\"Y\",\"N\"))","v":"-"},{"$f":"IF($B522=\"N\",\"\",IF('Enrollment Form'!$B529=\"Subscriber\",\"-\",IF(COUNTA('Enrollment Form'!$BE529,'Enrollment Form'!$BG529)=2,\"Y\",\"N\")))","v":""},{"$f":"IF($B522=\"N\",\"\",IF(OR('Enrollment Form'!$AU529=\"\",'Enrollment Form'!$AU529=\"No\"),\"-\",IF(AND('Enrollment Form'!$AU529=\"Yes\",COUNTA('Enrollment Form'!$CK529)=1),\"Y\",\"N\")))","v":""},{"$f":"IF(OR('Enrollment Form'!$CK529=\"\",'Enrollment Form'!$CK529=\"No\"),\"-\",IF(COUNTA('Enrollment Form'!$CM529:$CN529)=2,\"Y\",\"N\"))","v":"-"},{"$f":"IF($B522=\"N\",\"\",IF(COUNTIF('Enrollment Form'!$CZ529:$DO529,\"Other\")=COUNTA('Enrollment Form'!$DF529,'Enrollment Form'!$DA529,'Enrollment Form'!$DK529,'Enrollment Form'!$DP529),\"Y\",\"N\"))","v":""},{"$f":"IF($B522=\"N\",\"\",IF(OR('Enrollment Form'!B529<>\"Subscriber\",'Enrollment Form'!C529=\"ROC\",COUNTIF('Enrollment Form'!AS529:AT529,\"Yes\")>=1),\"-\",IF(AND('Enrollment Form'!C529=\"Enroll\",COUNTIF('Enrollment Form'!AS529:AT529,\"No\")=2,'Enrollment Form'!AU529=\"\"),\"N\",\"Y\")))","v":""},{"$f":"IF(OR(B522=\"N\",'Enrollment Form'!B529<>\"Subscriber\",'Enrollment Form'!C529=\"ROC\",'Enrollment Form'!O529<>\"Multiple of Salary\"),\"-\",IF(COUNTA('Enrollment Form'!T529:U529)<2,\"N\",\"Y\"))","v":"-"},{"$f":"IF(B522=\"N\",\"\",IF(OR('Enrollment Form'!C529=\"ROC\",'Enrollment Form'!B529<>\"Subscriber\",'Enrollment Form'!O529=\"Waive\",'Enrollment Form'!O529=\"\"),\"-\",IF('Enrollment Form'!P529=\"\",\"N\",\"Y\")))","v":""},{"$f":"IF($B522=\"N\",\"\",IF(AND('Enrollment Form'!$C529=\"ROC\",'Enrollment Form'!$DS529<>\"\"),\"Y\",IF(AND('Enrollment Form'!$C529=\"ROC\",'Enrollment Form'!$DS529=\"\"),\"N\",IF(AND('Enrollment Form'!$C529=\"Enroll\",'Enrollment Form'!$B529=\"Subscriber\",'Enrollment Form'!$CQ529=\"No\",'Enrollment Form'!$DS529=\"\"),\"N\",IF(AND('Enrollment Form'!$C529=\"Enroll\",'Enrollment Form'!$B529=\"Subscriber\",'Enrollment Form'!$CQ529=\"Yes\"),\"-\",\"Y\")))))","v":""},{"$f":"IF($B522=\"N\",\"\",IF(AND('Enrollment Form'!$C529=\"ROC\",'Enrollment Form'!$DT529<>\"\"),\"Y\",IF(AND('Enrollment Form'!$C529=\"ROC\",'Enrollment Form'!$DT529=\"\"),\"N\",IF(AND('Enrollment Form'!$C529=\"Enroll\",'Enrollment Form'!$B529=\"Subscriber\",'Enrollment Form'!$CQ529=\"No\",'Enrollment Form'!$DT529=\"\"),\"N\",IF(AND('Enrollment Form'!$C529=\"Enroll\",'Enrollment Form'!$B529=\"Subscriber\",'Enrollment Form'!$CQ529=\"Yes\"),\"-\",\"Y\")))))","v":""},{"$f":"IF('Enrollment Form'!AH529=\"\",\"\",IF(ISERROR(SEARCH(\".\",'Enrollment Form'!AH529,SEARCH(\"@\",'Enrollment Form'!AH529))),\"N\",\"Y\"))","v":""},{"$f":"IF(OR($B522=\"N\",'Enrollment Form'!$G529=\"\"),\"\",IF('Enrollment Form'!$B529<>\"Subscriber\",\"-\",IF(COUNTIF('Enrollment Form'!$AS529:$AT529,\"Yes\")=2,\"N\",\"Y\")))","v":""},{"$f":"IF(OR('Enrollment Form'!$CC529=\"\",'Enrollment Form'!$CC529=\"No\"),\"-\",IF(AND('Enrollment Form'!$CC529=\"Yes\",'Enrollment Form'!$CD529=\"\"),\"N\",\"Y\"))","v":"-"},{"$f":"IF(OR('Enrollment Form'!$CE529=\"\",'Enrollment Form'!$CE529=\"No\"),\"-\",IF(AND('Enrollment Form'!$CE529=\"Yes\",'Enrollment Form'!$CF529=\"\"),\"N\",\"Y\"))","v":"-"},{"$f":"IF(OR('Enrollment Form'!$CG529=\"\",'Enrollment Form'!$CG529=\"No\"),\"-\",IF(AND('Enrollment Form'!$CG529=\"Yes\",'Enrollment Form'!$CH529=\"\"),\"N\",\"Y\"))","v":"-"},{"$f":"IF(OR('Enrollment Form'!$CG529=\"\",'Enrollment Form'!$CG529=\"No\"),\"-\",IF(AND('Enrollment Form'!$CG529=\"Yes\",'Enrollment Form'!$CI529=\"\"),\"N\",\"Y\"))","v":"-"},{"$f":"IF('Enrollment Form'!B529<>\"Subscriber\",\"-\",IF(AND('Enrollment Form'!B529=\"Subscriber\",'Enrollment Form'!C529=\"Enroll\",'Enrollment Form'!AA529=\"\"),\"N\",\"Y\"))","v":"-"},{"$f":"IF(OR('Enrollment Form'!B529=\"Subscriber\",'Enrollment Form'!B529=\"\"),\"-\",IF('Enrollment Form'!BI529=\"\",\"N\",\"Y\"))","v":"-"},{"$f":"IF('Enrollment Form'!B529<>\"Subscriber\",\"-\",IF(AND('Enrollment Form'!B529=\"Subscriber\",'Enrollment Form'!G529=\"\"),\"N\",\"Y\"))","v":"-"},{"$f":"IF('Enrollment Form'!A529=\"\",\"\",IF('Enrollment Form'!B529=\"Subscriber\",\"-\",IF(AND('Enrollment Form'!B529<>\"Subscriber\",'Enrollment Form'!G529='Enrollment Form'!H529),\"N\",\"Y\")))","v":""},0]
[530,{"$f":"IF('Enrollment Form'!$A530<>\"\",\"Y\",\"N\")","v":"N"},{"$f":"IF(AND('Enrollment Form'!$B530=\"\",'Enrollment Form'!$C530<>\"\"),\"N\",IF($B523=\"N\",\"\",\"Y\"))","v":""},{"$f":"IF(OR($B523=\"N\",'Enrollment Form'!G530=\"\"),\"\",IF('Enrollment Form'!$B530<>\"Subscriber\",\"\",IF('Enrollment Form'!$G530='Enrollment Form'!$H530,\"Y\",\"N\")))","v":""},{"$f":"IF($B523=\"N\",\"\",IF(AND(COUNTIFS('Enrollment Form'!$H$11:$H$1000,'Enrollment Form'!$H530,'Enrollment Form'!$B$11:$B$1000,'Enrollment Form'!$B530)>1,'Enrollment Form'!$H530<>\"\"),\"N\",\"Y\"))","v":""},{"$f":"IF($B523=\"N\",\"\",IF(LEN('Enrollment Form'!$Y530)=0,\"\",IF(LEN('Enrollment Form'!$Y530)<>5,\"N\",\"Y\")))","v":""},{"$f":"IF($B523=\"N\",\"\",IF(LEN('Enrollment Form'!$AD530=0),\"\",IF(LEN('Enrollment Form'!$AD530)<>5,\"N\",\"Y\")))","v":""},{"$f":"IF($B523=\"N\",\"\",IF(LEN('Enrollment Form'!$BL530=0),\"\",IF(LEN('Enrollment Form'!$BL530)<>5,\"N\",\"Y\")))","v":""},{"$f":"IF($B523=\"N\",\"\",IF(LEN('Enrollment Form'!$AE530)=0,\"\",IF(LEN('Enrollment Form'!$AE530)<>10,\"N\",\"Y\")))","v":""},{"$f":"IF($B523=\"N\",\"\",IF(LEN('Enrollment Form'!$AF530)=0,\"\",IF(LEN('Enrollment Form'!$AF530)<>10,\"N\",\"Y\")))","v":""},{"$f":"IF('Enrollment Form'!$O530<>\"Graded\",\"-\",IF(AND('Enrollment Form'!$O530=\"Graded\",'Enrollment Form'!$AO530<>\"\"),\"Y\",\"N\"))","v":"-"},{"$f":"IF($B523=\"N\",\"\",IF(OR('Enrollment Form'!$B530<>\"Subscriber\",'Enrollment Form'!$C530=\"ROC\"),\"-\",IF(AND('Enrollment Form'!$B530=\"Subscriber\",'Enrollment Form'!$C530=\"Enroll\",'Enrollment Form'!$AJ530<>\"\"),\"Y\",\"N\")))","v":""},{"$f":"IF($B523=\"N\",\"\",IF(OR('Enrollment Form'!$B530<>\"Subscriber\",'Enrollment Form'!$C530=\"ROC\"),\"-\",IF(AND('Enrollment Form'!$B530=\"Subscriber\",'Enrollment Form'!$C530=\"Enroll\",'Enrollment Form'!$AK530<>\"\"),\"Y\",\"N\")))","v":""},{"$f":"IF($B523=\"N\",\"\",IF(OR('Enrollment Form'!$B530<>\"Subscriber\",'Enrollment Form'!$C530=\"ROC\"),\"-\",IF(AND('Enrollment Form'!$B530=\"Subscriber\",'Enrollment Form'!$C530=\"Enroll\",'Enrollment Form'!$AL530<>\"\"),\"Y\",\"N\")))","v":""},{"$f":"IF($B523=\"N\",\"\",IF(OR('Enrollment Form'!$B530<>\"Subscriber\",'Enrollment Form'!$C530=\"ROC\"),\"-\",IF(AND('Enrollment Form'!$B530=\"Subscriber\",'Enrollment Form'!$C530=\"Enroll\",'Enrollment Form'!$AM530<>\"\"),\"Y\",\"N\")))","v":""},{"$f":"IF($B523=\"N\",\"\",IF(OR('Enrollment Form'!$B530<>\"Subscriber\",'Enrollment Form'!$C530=\"ROC\"),\"-\",IF(AND('Enrollment Form'!$B530=\"Subscriber\",'Enrollment Form'!$C530=\"Enroll\",'Enrollment Form'!$AN530<>\"\"),\"Y\",\"N\")))","v":""},{"$f":"IF($B523=\"N\",\"\",IF(OR('Enrollment Form'!$B530<>\"Subscriber\",'Enrollment Form'!$C530=\"ROC\"),\"-\",IF(AND('Enrollment Form'!$B530=\"Subscriber\",'Enrollment Form'!$C530=\"Enroll\",'Enrollment Form'!$AP530<>\"\"),\"Y\",\"N\")))","v":""},{"$f":"IF($B523=\"N\",\"\",IF($Q523=\"-\",\"-\",IF(AND($Q523=\"Y\",'Enrollment Form'!$AP530=\"No\"),\"-\",IF(AND($Q523=\"Y\",'Enrollment Form'!$AP530=\"Yes\",'Enrollment Form'!$AQ530<>\"\"),\"Y\",\"N\"))))","v":""},{"$f":"IF($B523=\"N\",\"\",IF(OR('Enrollment Form'!$B530<>\"Subscriber\",'Enrollment Form'!$C530=\"ROC\"),\"-\",IF(AND('Enrollment Form'!$B530=\"Subscriber\",'Enrollment Form'!$C530=\"Enroll\",'Enrollment Form'!$CO530<>\"\"),\"Y\",\"N\")))","v":""},{"$f":"IF($B523=\"N\",\"\",IF($S523=\"-\",\"-\",IF(AND($S523=\"Y\",'Enrollment Form'!$CO530=\"No\"),\"-\",IF(AND($S523=\"Y\",'Enrollment Form'!$CO530=\"Yes\",'Enrollment Form'!$CP530<>\"\"),\"Y\",\"N\"))))","v":""},{"$f":"IF(OR('Enrollment Form'!$AV530=\"Yes\",'Enrollment Form'!$AV530=\"\"),\"-\",IF(AND('Enrollment Form'!$AV530=\"No\",ISERROR(FIND(\"HMO\",VLOOKUP('Enrollment Form'!G530,'Enrollment Form'!H$11:J$1000,3,FALSE),1))=FALSE,COUNTA('Enrollment Form'!$AW530:$AZ530)=4),\"Y\",\"N\"))","v":"-"},{"$f":"IF($B523=\"N\",\"\",IF('Enrollment Form'!$B530=\"Subscriber\",\"-\",IF(COUNTA('Enrollment Form'!$BE530,'Enrollment Form'!$BG530)=2,\"Y\",\"N\")))","v":""},{"$f":"IF($B523=\"N\",\"\",IF(OR('Enrollment Form'!$AU530=\"\",'Enrollment Form'!$AU530=\"No\"),\"-\",IF(AND('Enrollment Form'!$AU530=\"Yes\",COUNTA('Enrollment Form'!$CK530)=1),\"Y\",\"N\")))","v":""},{"$f":"IF(OR('Enrollment Form'!$CK530=\"\",'Enrollment Form'!$CK530=\"No\"),\"-\",IF(COUNTA('Enrollment Form'!$CM530:$CN530)=2,\"Y\",\"N\"))","v":"-"},{"$f":"IF($B523=\"N\",\"\",IF(COUNTIF('Enrollment Form'!$CZ530:$DO530,\"Other\")=COUNTA('Enrollment Form'!$DF530,'Enrollment Form'!$DA530,'Enrollment Form'!$DK530,'Enrollment Form'!$DP530),\"Y\",\"N\"))","v":""},{"$f":"IF($B523=\"N\",\"\",IF(OR('Enrollment Form'!B530<>\"Subscriber\",'Enrollment Form'!C530=\"ROC\",COUNTIF('Enrollment Form'!AS530:AT530,\"Yes\")>=1),\"-\",IF(AND('Enrollment Form'!C530=\"Enroll\",COUNTIF('Enrollment Form'!AS530:AT530,\"No\")=2,'Enrollment Form'!AU530=\"\"),\"N\",\"Y\")))","v":""},{"$f":"IF(OR(B523=\"N\",'Enrollment Form'!B530<>\"Subscriber\",'Enrollment Form'!C530=\"ROC\",'Enrollment Form'!O530<>\"Multiple of Salary\"),\"-\",IF(COUNTA('Enrollment Form'!T530:U530)<2,\"N\",\"Y\"))","v":"-"},{"$f":"IF(B523=\"N\",\"\",IF(OR('Enrollment Form'!C530=\"ROC\",'Enrollment Form'!B530<>\"Subscriber\",'Enrollment Form'!O530=\"Waive\",'Enrollment Form'!O530=\"\"),\"-\",IF('Enrollment Form'!P530=\"\",\"N\",\"Y\")))","v":""},{"$f":"IF($B523=\"N\",\"\",IF(AND('Enrollment Form'!$C530=\"ROC\",'Enrollment Form'!$DS530<>\"\"),\"Y\",IF(AND('Enrollment Form'!$C530=\"ROC\",'Enrollment Form'!$DS530=\"\"),\"N\",IF(AND('Enrollment Form'!$C530=\"Enroll\",'Enrollment Form'!$B530=\"Subscriber\",'Enrollment Form'!$CQ530=\"No\",'Enrollment Form'!$DS530=\"\"),\"N\",IF(AND('Enrollment Form'!$C530=\"Enroll\",'Enrollment Form'!$B530=\"Subscriber\",'Enrollment Form'!$CQ530=\"Yes\"),\"-\",\"Y\")))))","v":""},{"$f":"IF($B523=\"N\",\"\",IF(AND('Enrollment Form'!$C530=\"ROC\",'Enrollment Form'!$DT530<>\"\"),\"Y\",IF(AND('Enrollment Form'!$C530=\"ROC\",'Enrollment Form'!$DT530=\"\"),\"N\",IF(AND('Enrollment Form'!$C530=\"Enroll\",'Enrollment Form'!$B530=\"Subscriber\",'Enrollment Form'!$CQ530=\"No\",'Enrollment Form'!$DT530=\"\"),\"N\",IF(AND('Enrollment Form'!$C530=\"Enroll\",'Enrollment Form'!$B530=\"Subscriber\",'Enrollment Form'!$CQ530=\"Yes\"),\"-\",\"Y\")))))","v":""},{"$f":"IF('Enrollment Form'!AH530=\"\",\"\",IF(ISERROR(SEARCH(\".\",'Enrollment Form'!AH530,SEARCH(\"@\",'Enrollment Form'!AH530))),\"N\",\"Y\"))","v":""},{"$f":"IF(OR($B523=\"N\",'Enrollment Form'!$G530=\"\"),\"\",IF('Enrollment Form'!$B530<>\"Subscriber\",\"-\",IF(COUNTIF('Enrollment Form'!$AS530:$AT530,\"Yes\")=2,\"N\",\"Y\")))","v":""},{"$f":"IF(OR('Enrollment Form'!$CC530=\"\",'Enrollment Form'!$CC530=\"No\"),\"-\",IF(AND('Enrollment Form'!$CC530=\"Yes\",'Enrollment Form'!$CD530=\"\"),\"N\",\"Y\"))","v":"-"},{"$f":"IF(OR('Enrollment Form'!$CE530=\"\",'Enrollment Form'!$CE530=\"No\"),\"-\",IF(AND('Enrollment Form'!$CE530=\"Yes\",'Enrollment Form'!$CF530=\"\"),\"N\",\"Y\"))","v":"-"},{"$f":"IF(OR('Enrollment Form'!$CG530=\"\",'Enrollment Form'!$CG530=\"No\"),\"-\",IF(AND('Enrollment Form'!$CG530=\"Yes\",'Enrollment Form'!$CH530=\"\"),\"N\",\"Y\"))","v":"-"},{"$f":"IF(OR('Enrollment Form'!$CG530=\"\",'Enrollment Form'!$CG530=\"No\"),\"-\",IF(AND('Enrollment Form'!$CG530=\"Yes\",'Enrollment Form'!$CI530=\"\"),\"N\",\"Y\"))","v":"-"},{"$f":"IF('Enrollment Form'!B530<>\"Subscriber\",\"-\",IF(AND('Enrollment Form'!B530=\"Subscriber\",'Enrollment Form'!C530=\"Enroll\",'Enrollment Form'!AA530=\"\"),\"N\",\"Y\"))","v":"-"},{"$f":"IF(OR('Enrollment Form'!B530=\"Subscriber\",'Enrollment Form'!B530=\"\"),\"-\",IF('Enrollment Form'!BI530=\"\",\"N\",\"Y\"))","v":"-"},{"$f":"IF('Enrollment Form'!B530<>\"Subscriber\",\"-\",IF(AND('Enrollment Form'!B530=\"Subscriber\",'Enrollment Form'!G530=\"\"),\"N\",\"Y\"))","v":"-"},{"$f":"IF('Enrollment Form'!A530=\"\",\"\",IF('Enrollment Form'!B530=\"Subscriber\",\"-\",IF(AND('Enrollment Form'!B530<>\"Subscriber\",'Enrollment Form'!G530='Enrollment Form'!H530),\"N\",\"Y\")))","v":""},0]
[531,{"$f":"IF('Enrollment Form'!$A531<>\"\",\"Y\",\"N\")","v":"N"},{"$f":"IF(AND('Enrollment Form'!$B531=\"\",'Enrollment Form'!$C531<>\"\"),\"N\",IF($B524=\"N\",\"\",\"Y\"))","v":""},{"$f":"IF(OR($B524=\"N\",'Enrollment Form'!G531=\"\"),\"\",IF('Enrollment Form'!$B531<>\"Subscriber\",\"\",IF('Enrollment Form'!$G531='Enrollment Form'!$H531,\"Y\",\"N\")))","v":""},{"$f":"IF($B524=\"N\",\"\",IF(AND(COUNTIFS('Enrollment Form'!$H$11:$H$1000,'Enrollment Form'!$H531,'Enrollment Form'!$B$11:$B$1000,'Enrollment Form'!$B531)>1,'Enrollment Form'!$H531<>\"\"),\"N\",\"Y\"))","v":""},{"$f":"IF($B524=\"N\",\"\",IF(LEN('Enrollment Form'!$Y531)=0,\"\",IF(LEN('Enrollment Form'!$Y531)<>5,\"N\",\"Y\")))","v":""},{"$f":"IF($B524=\"N\",\"\",IF(LEN('Enrollment Form'!$AD531=0),\"\",IF(LEN('Enrollment Form'!$AD531)<>5,\"N\",\"Y\")))","v":""},{"$f":"IF($B524=\"N\",\"\",IF(LEN('Enrollment Form'!$BL531=0),\"\",IF(LEN('Enrollment Form'!$BL531)<>5,\"N\",\"Y\")))","v":""},{"$f":"IF($B524=\"N\",\"\",IF(LEN('Enrollment Form'!$AE531)=0,\"\",IF(LEN('Enrollment Form'!$AE531)<>10,\"N\",\"Y\")))","v":""},{"$f":"IF($B524=\"N\",\"\",IF(LEN('Enrollment Form'!$AF531)=0,\"\",IF(LEN('Enrollment Form'!$AF531)<>10,\"N\",\"Y\")))","v":""},{"$f":"IF('Enrollment Form'!$O531<>\"Graded\",\"-\",IF(AND('Enrollment Form'!$O531=\"Graded\",'Enrollment Form'!$AO531<>\"\"),\"Y\",\"N\"))","v":"-"},{"$f":"IF($B524=\"N\",\"\",IF(OR('Enrollment Form'!$B531<>\"Subscriber\",'Enrollment Form'!$C531=\"ROC\"),\"-\",IF(AND('Enrollment Form'!$B531=\"Subscriber\",'Enrollment Form'!$C531=\"Enroll\",'Enrollment Form'!$AJ531<>\"\"),\"Y\",\"N\")))","v":""},{"$f":"IF($B524=\"N\",\"\",IF(OR('Enrollment Form'!$B531<>\"Subscriber\",'Enrollment Form'!$C531=\"ROC\"),\"-\",IF(AND('Enrollment Form'!$B531=\"Subscriber\",'Enrollment Form'!$C531=\"Enroll\",'Enrollment Form'!$AK531<>\"\"),\"Y\",\"N\")))","v":""},{"$f":"IF($B524=\"N\",\"\",IF(OR('Enrollment Form'!$B531<>\"Subscriber\",'Enrollment Form'!$C531=\"ROC\"),\"-\",IF(AND('Enrollment Form'!$B531=\"Subscriber\",'Enrollment Form'!$C531=\"Enroll\",'Enrollment Form'!$AL531<>\"\"),\"Y\",\"N\")))","v":""},{"$f":"IF($B524=\"N\",\"\",IF(OR('Enrollment Form'!$B531<>\"Subscriber\",'Enrollment Form'!$C531=\"ROC\"),\"-\",IF(AND('Enrollment Form'!$B531=\"Subscriber\",'Enrollment Form'!$C531=\"Enroll\",'Enrollment Form'!$AM531<>\"\"),\"Y\",\"N\")))","v":""},{"$f":"IF($B524=\"N\",\"\",IF(OR('Enrollment Form'!$B531<>\"Subscriber\",'Enrollment Form'!$C531=\"ROC\"),\"-\",IF(AND('Enrollment Form'!$B531=\"Subscriber\",'Enrollment Form'!$C531=\"Enroll\",'Enrollment Form'!$AN531<>\"\"),\"Y\",\"N\")))","v":""},{"$f":"IF($B524=\"N\",\"\",IF(OR('Enrollment Form'!$B531<>\"Subscriber\",'Enrollment Form'!$C531=\"ROC\"),\"-\",IF(AND('Enrollment Form'!$B531=\"Subscriber\",'Enrollment Form'!$C531=\"Enroll\",'Enrollment Form'!$AP531<>\"\"),\"Y\",\"N\")))","v":""},{"$f":"IF($B524=\"N\",\"\",IF($Q524=\"-\",\"-\",IF(AND($Q524=\"Y\",'Enrollment Form'!$AP531=\"No\"),\"-\",IF(AND($Q524=\"Y\",'Enrollment Form'!$AP531=\"Yes\",'Enrollment Form'!$AQ531<>\"\"),\"Y\",\"N\"))))","v":""},{"$f":"IF($B524=\"N\",\"\",IF(OR('Enrollment Form'!$B531<>\"Subscriber\",'Enrollment Form'!$C531=\"ROC\"),\"-\",IF(AND('Enrollment Form'!$B531=\"Subscriber\",'Enrollment Form'!$C531=\"Enroll\",'Enrollment Form'!$CO531<>\"\"),\"Y\",\"N\")))","v":""},{"$f":"IF($B524=\"N\",\"\",IF($S524=\"-\",\"-\",IF(AND($S524=\"Y\",'Enrollment Form'!$CO531=\"No\"),\"-\",IF(AND($S524=\"Y\",'Enrollment Form'!$CO531=\"Yes\",'Enrollment Form'!$CP531<>\"\"),\"Y\",\"N\"))))","v":""},{"$f":"IF(OR('Enrollment Form'!$AV531=\"Yes\",'Enrollment Form'!$AV531=\"\"),\"-\",IF(AND('Enrollment Form'!$AV531=\"No\",ISERROR(FIND(\"HMO\",VLOOKUP('Enrollment Form'!G531,'Enrollment Form'!H$11:J$1000,3,FALSE),1))=FALSE,COUNTA('Enrollment Form'!$AW531:$AZ531)=4),\"Y\",\"N\"))","v":"-"},{"$f":"IF($B524=\"N\",\"\",IF('Enrollment Form'!$B531=\"Subscriber\",\"-\",IF(COUNTA('Enrollment Form'!$BE531,'Enrollment Form'!$BG531)=2,\"Y\",\"N\")))","v":""},{"$f":"IF($B524=\"N\",\"\",IF(OR('Enrollment Form'!$AU531=\"\",'Enrollment Form'!$AU531=\"No\"),\"-\",IF(AND('Enrollment Form'!$AU531=\"Yes\",COUNTA('Enrollment Form'!$CK531)=1),\"Y\",\"N\")))","v":""},{"$f":"IF(OR('Enrollment Form'!$CK531=\"\",'Enrollment Form'!$CK531=\"No\"),\"-\",IF(COUNTA('Enrollment Form'!$CM531:$CN531)=2,\"Y\",\"N\"))","v":"-"},{"$f":"IF($B524=\"N\",\"\",IF(COUNTIF('Enrollment Form'!$CZ531:$DO531,\"Other\")=COUNTA('Enrollment Form'!$DF531,'Enrollment Form'!$DA531,'Enrollment Form'!$DK531,'Enrollment Form'!$DP531),\"Y\",\"N\"))","v":""},{"$f":"IF($B524=\"N\",\"\",IF(OR('Enrollment Form'!B531<>\"Subscriber\",'Enrollment Form'!C531=\"ROC\",COUNTIF('Enrollment Form'!AS531:AT531,\"Yes\")>=1),\"-\",IF(AND('Enrollment Form'!C531=\"Enroll\",COUNTIF('Enrollment Form'!AS531:AT531,\"No\")=2,'Enrollment Form'!AU531=\"\"),\"N\",\"Y\")))","v":""},{"$f":"IF(OR(B524=\"N\",'Enrollment Form'!B531<>\"Subscriber\",'Enrollment Form'!C531=\"ROC\",'Enrollment Form'!O531<>\"Multiple of Salary\"),\"-\",IF(COUNTA('Enrollment Form'!T531:U531)<2,\"N\",\"Y\"))","v":"-"},{"$f":"IF(B524=\"N\",\"\",IF(OR('Enrollment Form'!C531=\"ROC\",'Enrollment Form'!B531<>\"Subscriber\",'Enrollment Form'!O531=\"Waive\",'Enrollment Form'!O531=\"\"),\"-\",IF('Enrollment Form'!P531=\"\",\"N\",\"Y\")))","v":""},{"$f":"IF($B524=\"N\",\"\",IF(AND('Enrollment Form'!$C531=\"ROC\",'Enrollment Form'!$DS531<>\"\"),\"Y\",IF(AND('Enrollment Form'!$C531=\"ROC\",'Enrollment Form'!$DS531=\"\"),\"N\",IF(AND('Enrollment Form'!$C531=\"Enroll\",'Enrollment Form'!$B531=\"Subscriber\",'Enrollment Form'!$CQ531=\"No\",'Enrollment Form'!$DS531=\"\"),\"N\",IF(AND('Enrollment Form'!$C531=\"Enroll\",'Enrollment Form'!$B531=\"Subscriber\",'Enrollment Form'!$CQ531=\"Yes\"),\"-\",\"Y\")))))","v":""},{"$f":"IF($B524=\"N\",\"\",IF(AND('Enrollment Form'!$C531=\"ROC\",'Enrollment Form'!$DT531<>\"\"),\"Y\",IF(AND('Enrollment Form'!$C531=\"ROC\",'Enrollment Form'!$DT531=\"\"),\"N\",IF(AND('Enrollment Form'!$C531=\"Enroll\",'Enrollment Form'!$B531=\"Subscriber\",'Enrollment Form'!$CQ531=\"No\",'Enrollment Form'!$DT531=\"\"),\"N\",IF(AND('Enrollment Form'!$C531=\"Enroll\",'Enrollment Form'!$B531=\"Subscriber\",'Enrollment Form'!$CQ531=\"Yes\"),\"-\",\"Y\")))))","v":""},{"$f":"IF('Enrollment Form'!AH531=\"\",\"\",IF(ISERROR(SEARCH(\".\",'Enrollment Form'!AH531,SEARCH(\"@\",'Enrollment Form'!AH531))),\"N\",\"Y\"))","v":""},{"$f":"IF(OR($B524=\"N\",'Enrollment Form'!$G531=\"\"),\"\",IF('Enrollment Form'!$B531<>\"Subscriber\",\"-\",IF(COUNTIF('Enrollment Form'!$AS531:$AT531,\"Yes\")=2,\"N\",\"Y\")))","v":""},{"$f":"IF(OR('Enrollment Form'!$CC531=\"\",'Enrollment Form'!$CC531=\"No\"),\"-\",IF(AND('Enrollment Form'!$CC531=\"Yes\",'Enrollment Form'!$CD531=\"\"),\"N\",\"Y\"))","v":"-"},{"$f":"IF(OR('Enrollment Form'!$CE531=\"\",'Enrollment Form'!$CE531=\"No\"),\"-\",IF(AND('Enrollment Form'!$CE531=\"Yes\",'Enrollment Form'!$CF531=\"\"),\"N\",\"Y\"))","v":"-"},{"$f":"IF(OR('Enrollment Form'!$CG531=\"\",'Enrollment Form'!$CG531=\"No\"),\"-\",IF(AND('Enrollment Form'!$CG531=\"Yes\",'Enrollment Form'!$CH531=\"\"),\"N\",\"Y\"))","v":"-"},{"$f":"IF(OR('Enrollment Form'!$CG531=\"\",'Enrollment Form'!$CG531=\"No\"),\"-\",IF(AND('Enrollment Form'!$CG531=\"Yes\",'Enrollment Form'!$CI531=\"\"),\"N\",\"Y\"))","v":"-"},{"$f":"IF('Enrollment Form'!B531<>\"Subscriber\",\"-\",IF(AND('Enrollment Form'!B531=\"Subscriber\",'Enrollment Form'!C531=\"Enroll\",'Enrollment Form'!AA531=\"\"),\"N\",\"Y\"))","v":"-"},{"$f":"IF(OR('Enrollment Form'!B531=\"Subscriber\",'Enrollment Form'!B531=\"\"),\"-\",IF('Enrollment Form'!BI531=\"\",\"N\",\"Y\"))","v":"-"},{"$f":"IF('Enrollment Form'!B531<>\"Subscriber\",\"-\",IF(AND('Enrollment Form'!B531=\"Subscriber\",'Enrollment Form'!G531=\"\"),\"N\",\"Y\"))","v":"-"},{"$f":"IF('Enrollment Form'!A531=\"\",\"\",IF('Enrollment Form'!B531=\"Subscriber\",\"-\",IF(AND('Enrollment Form'!B531<>\"Subscriber\",'Enrollment Form'!G531='Enrollment Form'!H531),\"N\",\"Y\")))","v":""},0]
[532,{"$f":"IF('Enrollment Form'!$A532<>\"\",\"Y\",\"N\")","v":"N"},{"$f":"IF(AND('Enrollment Form'!$B532=\"\",'Enrollment Form'!$C532<>\"\"),\"N\",IF($B525=\"N\",\"\",\"Y\"))","v":""},{"$f":"IF(OR($B525=\"N\",'Enrollment Form'!G532=\"\"),\"\",IF('Enrollment Form'!$B532<>\"Subscriber\",\"\",IF('Enrollment Form'!$G532='Enrollment Form'!$H532,\"Y\",\"N\")))","v":""},{"$f":"IF($B525=\"N\",\"\",IF(AND(COUNTIFS('Enrollment Form'!$H$11:$H$1000,'Enrollment Form'!$H532,'Enrollment Form'!$B$11:$B$1000,'Enrollment Form'!$B532)>1,'Enrollment Form'!$H532<>\"\"),\"N\",\"Y\"))","v":""},{"$f":"IF($B525=\"N\",\"\",IF(LEN('Enrollment Form'!$Y532)=0,\"\",IF(LEN('Enrollment Form'!$Y532)<>5,\"N\",\"Y\")))","v":""},{"$f":"IF($B525=\"N\",\"\",IF(LEN('Enrollment Form'!$AD532=0),\"\",IF(LEN('Enrollment Form'!$AD532)<>5,\"N\",\"Y\")))","v":""},{"$f":"IF($B525=\"N\",\"\",IF(LEN('Enrollment Form'!$BL532=0),\"\",IF(LEN('Enrollment Form'!$BL532)<>5,\"N\",\"Y\")))","v":""},{"$f":"IF($B525=\"N\",\"\",IF(LEN('Enrollment Form'!$AE532)=0,\"\",IF(LEN('Enrollment Form'!$AE532)<>10,\"N\",\"Y\")))","v":""},{"$f":"IF($B525=\"N\",\"\",IF(LEN('Enrollment Form'!$AF532)=0,\"\",IF(LEN('Enrollment Form'!$AF532)<>10,\"N\",\"Y\")))","v":""},{"$f":"IF('Enrollment Form'!$O532<>\"Graded\",\"-\",IF(AND('Enrollment Form'!$O532=\"Graded\",'Enrollment Form'!$AO532<>\"\"),\"Y\",\"N\"))","v":"-"},{"$f":"IF($B525=\"N\",\"\",IF(OR('Enrollment Form'!$B532<>\"Subscriber\",'Enrollment Form'!$C532=\"ROC\"),\"-\",IF(AND('Enrollment Form'!$B532=\"Subscriber\",'Enrollment Form'!$C532=\"Enroll\",'Enrollment Form'!$AJ532<>\"\"),\"Y\",\"N\")))","v":""},{"$f":"IF($B525=\"N\",\"\",IF(OR('Enrollment Form'!$B532<>\"Subscriber\",'Enrollment Form'!$C532=\"ROC\"),\"-\",IF(AND('Enrollment Form'!$B532=\"Subscriber\",'Enrollment Form'!$C532=\"Enroll\",'Enrollment Form'!$AK532<>\"\"),\"Y\",\"N\")))","v":""},{"$f":"IF($B525=\"N\",\"\",IF(OR('Enrollment Form'!$B532<>\"Subscriber\",'Enrollment Form'!$C532=\"ROC\"),\"-\",IF(AND('Enrollment Form'!$B532=\"Subscriber\",'Enrollment Form'!$C532=\"Enroll\",'Enrollment Form'!$AL532<>\"\"),\"Y\",\"N\")))","v":""},{"$f":"IF($B525=\"N\",\"\",IF(OR('Enrollment Form'!$B532<>\"Subscriber\",'Enrollment Form'!$C532=\"ROC\"),\"-\",IF(AND('Enrollment Form'!$B532=\"Subscriber\",'Enrollment Form'!$C532=\"Enroll\",'Enrollment Form'!$AM532<>\"\"),\"Y\",\"N\")))","v":""},{"$f":"IF($B525=\"N\",\"\",IF(OR('Enrollment Form'!$B532<>\"Subscriber\",'Enrollment Form'!$C532=\"ROC\"),\"-\",IF(AND('Enrollment Form'!$B532=\"Subscriber\",'Enrollment Form'!$C532=\"Enroll\",'Enrollment Form'!$AN532<>\"\"),\"Y\",\"N\")))","v":""},{"$f":"IF($B525=\"N\",\"\",IF(OR('Enrollment Form'!$B532<>\"Subscriber\",'Enrollment Form'!$C532=\"ROC\"),\"-\",IF(AND('Enrollment Form'!$B532=\"Subscriber\",'Enrollment Form'!$C532=\"Enroll\",'Enrollment Form'!$AP532<>\"\"),\"Y\",\"N\")))","v":""},{"$f":"IF($B525=\"N\",\"\",IF($Q525=\"-\",\"-\",IF(AND($Q525=\"Y\",'Enrollment Form'!$AP532=\"No\"),\"-\",IF(AND($Q525=\"Y\",'Enrollment Form'!$AP532=\"Yes\",'Enrollment Form'!$AQ532<>\"\"),\"Y\",\"N\"))))","v":""},{"$f":"IF($B525=\"N\",\"\",IF(OR('Enrollment Form'!$B532<>\"Subscriber\",'Enrollment Form'!$C532=\"ROC\"),\"-\",IF(AND('Enrollment Form'!$B532=\"Subscriber\",'Enrollment Form'!$C532=\"Enroll\",'Enrollment Form'!$CO532<>\"\"),\"Y\",\"N\")))","v":""},{"$f":"IF($B525=\"N\",\"\",IF($S525=\"-\",\"-\",IF(AND($S525=\"Y\",'Enrollment Form'!$CO532=\"No\"),\"-\",IF(AND($S525=\"Y\",'Enrollment Form'!$CO532=\"Yes\",'Enrollment Form'!$CP532<>\"\"),\"Y\",\"N\"))))","v":""},{"$f":"IF(OR('Enrollment Form'!$AV532=\"Yes\",'Enrollment Form'!$AV532=\"\"),\"-\",IF(AND('Enrollment Form'!$AV532=\"No\",ISERROR(FIND(\"HMO\",VLOOKUP('Enrollment Form'!G532,'Enrollment Form'!H$11:J$1000,3,FALSE),1))=FALSE,COUNTA('Enrollment Form'!$AW532:$AZ532)=4),\"Y\",\"N\"))","v":"-"},{"$f":"IF($B525=\"N\",\"\",IF('Enrollment Form'!$B532=\"Subscriber\",\"-\",IF(COUNTA('Enrollment Form'!$BE532,'Enrollment Form'!$BG532)=2,\"Y\",\"N\")))","v":""},{"$f":"IF($B525=\"N\",\"\",IF(OR('Enrollment Form'!$AU532=\"\",'Enrollment Form'!$AU532=\"No\"),\"-\",IF(AND('Enrollment Form'!$AU532=\"Yes\",COUNTA('Enrollment Form'!$CK532)=1),\"Y\",\"N\")))","v":""},{"$f":"IF(OR('Enrollment Form'!$CK532=\"\",'Enrollment Form'!$CK532=\"No\"),\"-\",IF(COUNTA('Enrollment Form'!$CM532:$CN532)=2,\"Y\",\"N\"))","v":"-"},{"$f":"IF($B525=\"N\",\"\",IF(COUNTIF('Enrollment Form'!$CZ532:$DO532,\"Other\")=COUNTA('Enrollment Form'!$DF532,'Enrollment Form'!$DA532,'Enrollment Form'!$DK532,'Enrollment Form'!$DP532),\"Y\",\"N\"))","v":""},{"$f":"IF($B525=\"N\",\"\",IF(OR('Enrollment Form'!B532<>\"Subscriber\",'Enrollment Form'!C532=\"ROC\",COUNTIF('Enrollment Form'!AS532:AT532,\"Yes\")>=1),\"-\",IF(AND('Enrollment Form'!C532=\"Enroll\",COUNTIF('Enrollment Form'!AS532:AT532,\"No\")=2,'Enrollment Form'!AU532=\"\"),\"N\",\"Y\")))","v":""},{"$f":"IF(OR(B525=\"N\",'Enrollment Form'!B532<>\"Subscriber\",'Enrollment Form'!C532=\"ROC\",'Enrollment Form'!O532<>\"Multiple of Salary\"),\"-\",IF(COUNTA('Enrollment Form'!T532:U532)<2,\"N\",\"Y\"))","v":"-"},{"$f":"IF(B525=\"N\",\"\",IF(OR('Enrollment Form'!C532=\"ROC\",'Enrollment Form'!B532<>\"Subscriber\",'Enrollment Form'!O532=\"Waive\",'Enrollment Form'!O532=\"\"),\"-\",IF('Enrollment Form'!P532=\"\",\"N\",\"Y\")))","v":""},{"$f":"IF($B525=\"N\",\"\",IF(AND('Enrollment Form'!$C532=\"ROC\",'Enrollment Form'!$DS532<>\"\"),\"Y\",IF(AND('Enrollment Form'!$C532=\"ROC\",'Enrollment Form'!$DS532=\"\"),\"N\",IF(AND('Enrollment Form'!$C532=\"Enroll\",'Enrollment Form'!$B532=\"Subscriber\",'Enrollment Form'!$CQ532=\"No\",'Enrollment Form'!$DS532=\"\"),\"N\",IF(AND('Enrollment Form'!$C532=\"Enroll\",'Enrollment Form'!$B532=\"Subscriber\",'Enrollment Form'!$CQ532=\"Yes\"),\"-\",\"Y\")))))","v":""},{"$f":"IF($B525=\"N\",\"\",IF(AND('Enrollment Form'!$C532=\"ROC\",'Enrollment Form'!$DT532<>\"\"),\"Y\",IF(AND('Enrollment Form'!$C532=\"ROC\",'Enrollment Form'!$DT532=\"\"),\"N\",IF(AND('Enrollment Form'!$C532=\"Enroll\",'Enrollment Form'!$B532=\"Subscriber\",'Enrollment Form'!$CQ532=\"No\",'Enrollment Form'!$DT532=\"\"),\"N\",IF(AND('Enrollment Form'!$C532=\"Enroll\",'Enrollment Form'!$B532=\"Subscriber\",'Enrollment Form'!$CQ532=\"Yes\"),\"-\",\"Y\")))))","v":""},{"$f":"IF('Enrollment Form'!AH532=\"\",\"\",IF(ISERROR(SEARCH(\".\",'Enrollment Form'!AH532,SEARCH(\"@\",'Enrollment Form'!AH532))),\"N\",\"Y\"))","v":""},{"$f":"IF(OR($B525=\"N\",'Enrollment Form'!$G532=\"\"),\"\",IF('Enrollment Form'!$B532<>\"Subscriber\",\"-\",IF(COUNTIF('Enrollment Form'!$AS532:$AT532,\"Yes\")=2,\"N\",\"Y\")))","v":""},{"$f":"IF(OR('Enrollment Form'!$CC532=\"\",'Enrollment Form'!$CC532=\"No\"),\"-\",IF(AND('Enrollment Form'!$CC532=\"Yes\",'Enrollment Form'!$CD532=\"\"),\"N\",\"Y\"))","v":"-"},{"$f":"IF(OR('Enrollment Form'!$CE532=\"\",'Enrollment Form'!$CE532=\"No\"),\"-\",IF(AND('Enrollment Form'!$CE532=\"Yes\",'Enrollment Form'!$CF532=\"\"),\"N\",\"Y\"))","v":"-"},{"$f":"IF(OR('Enrollment Form'!$CG532=\"\",'Enrollment Form'!$CG532=\"No\"),\"-\",IF(AND('Enrollment Form'!$CG532=\"Yes\",'Enrollment Form'!$CH532=\"\"),\"N\",\"Y\"))","v":"-"},{"$f":"IF(OR('Enrollment Form'!$CG532=\"\",'Enrollment Form'!$CG532=\"No\"),\"-\",IF(AND('Enrollment Form'!$CG532=\"Yes\",'Enrollment Form'!$CI532=\"\"),\"N\",\"Y\"))","v":"-"},{"$f":"IF('Enrollment Form'!B532<>\"Subscriber\",\"-\",IF(AND('Enrollment Form'!B532=\"Subscriber\",'Enrollment Form'!C532=\"Enroll\",'Enrollment Form'!AA532=\"\"),\"N\",\"Y\"))","v":"-"},{"$f":"IF(OR('Enrollment Form'!B532=\"Subscriber\",'Enrollment Form'!B532=\"\"),\"-\",IF('Enrollment Form'!BI532=\"\",\"N\",\"Y\"))","v":"-"},{"$f":"IF('Enrollment Form'!B532<>\"Subscriber\",\"-\",IF(AND('Enrollment Form'!B532=\"Subscriber\",'Enrollment Form'!G532=\"\"),\"N\",\"Y\"))","v":"-"},{"$f":"IF('Enrollment Form'!A532=\"\",\"\",IF('Enrollment Form'!B532=\"Subscriber\",\"-\",IF(AND('Enrollment Form'!B532<>\"Subscriber\",'Enrollment Form'!G532='Enrollment Form'!H532),\"N\",\"Y\")))","v":""},0]
[533,{"$f":"IF('Enrollment Form'!$A533<>\"\",\"Y\",\"N\")","v":"N"},{"$f":"IF(AND('Enrollment Form'!$B533=\"\",'Enrollment Form'!$C533<>\"\"),\"N\",IF($B526=\"N\",\"\",\"Y\"))","v":""},{"$f":"IF(OR($B526=\"N\",'Enrollment Form'!G533=\"\"),\"\",IF('Enrollment Form'!$B533<>\"Subscriber\",\"\",IF('Enrollment Form'!$G533='Enrollment Form'!$H533,\"Y\",\"N\")))","v":""},{"$f":"IF($B526=\"N\",\"\",IF(AND(COUNTIFS('Enrollment Form'!$H$11:$H$1000,'Enrollment Form'!$H533,'Enrollment Form'!$B$11:$B$1000,'Enrollment Form'!$B533)>1,'Enrollment Form'!$H533<>\"\"),\"N\",\"Y\"))","v":""},{"$f":"IF($B526=\"N\",\"\",IF(LEN('Enrollment Form'!$Y533)=0,\"\",IF(LEN('Enrollment Form'!$Y533)<>5,\"N\",\"Y\")))","v":""},{"$f":"IF($B526=\"N\",\"\",IF(LEN('Enrollment Form'!$AD533=0),\"\",IF(LEN('Enrollment Form'!$AD533)<>5,\"N\",\"Y\")))","v":""},{"$f":"IF($B526=\"N\",\"\",IF(LEN('Enrollment Form'!$BL533=0),\"\",IF(LEN('Enrollment Form'!$BL533)<>5,\"N\",\"Y\")))","v":""},{"$f":"IF($B526=\"N\",\"\",IF(LEN('Enrollment Form'!$AE533)=0,\"\",IF(LEN('Enrollment Form'!$AE533)<>10,\"N\",\"Y\")))","v":""},{"$f":"IF($B526=\"N\",\"\",IF(LEN('Enrollment Form'!$AF533)=0,\"\",IF(LEN('Enrollment Form'!$AF533)<>10,\"N\",\"Y\")))","v":""},{"$f":"IF('Enrollment Form'!$O533<>\"Graded\",\"-\",IF(AND('Enrollment Form'!$O533=\"Graded\",'Enrollment Form'!$AO533<>\"\"),\"Y\",\"N\"))","v":"-"},{"$f":"IF($B526=\"N\",\"\",IF(OR('Enrollment Form'!$B533<>\"Subscriber\",'Enrollment Form'!$C533=\"ROC\"),\"-\",IF(AND('Enrollment Form'!$B533=\"Subscriber\",'Enrollment Form'!$C533=\"Enroll\",'Enrollment Form'!$AJ533<>\"\"),\"Y\",\"N\")))","v":""},{"$f":"IF($B526=\"N\",\"\",IF(OR('Enrollment Form'!$B533<>\"Subscriber\",'Enrollment Form'!$C533=\"ROC\"),\"-\",IF(AND('Enrollment Form'!$B533=\"Subscriber\",'Enrollment Form'!$C533=\"Enroll\",'Enrollment Form'!$AK533<>\"\"),\"Y\",\"N\")))","v":""},{"$f":"IF($B526=\"N\",\"\",IF(OR('Enrollment Form'!$B533<>\"Subscriber\",'Enrollment Form'!$C533=\"ROC\"),\"-\",IF(AND('Enrollment Form'!$B533=\"Subscriber\",'Enrollment Form'!$C533=\"Enroll\",'Enrollment Form'!$AL533<>\"\"),\"Y\",\"N\")))","v":""},{"$f":"IF($B526=\"N\",\"\",IF(OR('Enrollment Form'!$B533<>\"Subscriber\",'Enrollment Form'!$C533=\"ROC\"),\"-\",IF(AND('Enrollment Form'!$B533=\"Subscriber\",'Enrollment Form'!$C533=\"Enroll\",'Enrollment Form'!$AM533<>\"\"),\"Y\",\"N\")))","v":""},{"$f":"IF($B526=\"N\",\"\",IF(OR('Enrollment Form'!$B533<>\"Subscriber\",'Enrollment Form'!$C533=\"ROC\"),\"-\",IF(AND('Enrollment Form'!$B533=\"Subscriber\",'Enrollment Form'!$C533=\"Enroll\",'Enrollment Form'!$AN533<>\"\"),\"Y\",\"N\")))","v":""},{"$f":"IF($B526=\"N\",\"\",IF(OR('Enrollment Form'!$B533<>\"Subscriber\",'Enrollment Form'!$C533=\"ROC\"),\"-\",IF(AND('Enrollment Form'!$B533=\"Subscriber\",'Enrollment Form'!$C533=\"Enroll\",'Enrollment Form'!$AP533<>\"\"),\"Y\",\"N\")))","v":""},{"$f":"IF($B526=\"N\",\"\",IF($Q526=\"-\",\"-\",IF(AND($Q526=\"Y\",'Enrollment Form'!$AP533=\"No\"),\"-\",IF(AND($Q526=\"Y\",'Enrollment Form'!$AP533=\"Yes\",'Enrollment Form'!$AQ533<>\"\"),\"Y\",\"N\"))))","v":""},{"$f":"IF($B526=\"N\",\"\",IF(OR('Enrollment Form'!$B533<>\"Subscriber\",'Enrollment Form'!$C533=\"ROC\"),\"-\",IF(AND('Enrollment Form'!$B533=\"Subscriber\",'Enrollment Form'!$C533=\"Enroll\",'Enrollment Form'!$CO533<>\"\"),\"Y\",\"N\")))","v":""},{"$f":"IF($B526=\"N\",\"\",IF($S526=\"-\",\"-\",IF(AND($S526=\"Y\",'Enrollment Form'!$CO533=\"No\"),\"-\",IF(AND($S526=\"Y\",'Enrollment Form'!$CO533=\"Yes\",'Enrollment Form'!$CP533<>\"\"),\"Y\",\"N\"))))","v":""},{"$f":"IF(OR('Enrollment Form'!$AV533=\"Yes\",'Enrollment Form'!$AV533=\"\"),\"-\",IF(AND('Enrollment Form'!$AV533=\"No\",ISERROR(FIND(\"HMO\",VLOOKUP('Enrollment Form'!G533,'Enrollment Form'!H$11:J$1000,3,FALSE),1))=FALSE,COUNTA('Enrollment Form'!$AW533:$AZ533)=4),\"Y\",\"N\"))","v":"-"},{"$f":"IF($B526=\"N\",\"\",IF('Enrollment Form'!$B533=\"Subscriber\",\"-\",IF(COUNTA('Enrollment Form'!$BE533,'Enrollment Form'!$BG533)=2,\"Y\",\"N\")))","v":""},{"$f":"IF($B526=\"N\",\"\",IF(OR('Enrollment Form'!$AU533=\"\",'Enrollment Form'!$AU533=\"No\"),\"-\",IF(AND('Enrollment Form'!$AU533=\"Yes\",COUNTA('Enrollment Form'!$CK533)=1),\"Y\",\"N\")))","v":""},{"$f":"IF(OR('Enrollment Form'!$CK533=\"\",'Enrollment Form'!$CK533=\"No\"),\"-\",IF(COUNTA('Enrollment Form'!$CM533:$CN533)=2,\"Y\",\"N\"))","v":"-"},{"$f":"IF($B526=\"N\",\"\",IF(COUNTIF('Enrollment Form'!$CZ533:$DO533,\"Other\")=COUNTA('Enrollment Form'!$DF533,'Enrollment Form'!$DA533,'Enrollment Form'!$DK533,'Enrollment Form'!$DP533),\"Y\",\"N\"))","v":""},{"$f":"IF($B526=\"N\",\"\",IF(OR('Enrollment Form'!B533<>\"Subscriber\",'Enrollment Form'!C533=\"ROC\",COUNTIF('Enrollment Form'!AS533:AT533,\"Yes\")>=1),\"-\",IF(AND('Enrollment Form'!C533=\"Enroll\",COUNTIF('Enrollment Form'!AS533:AT533,\"No\")=2,'Enrollment Form'!AU533=\"\"),\"N\",\"Y\")))","v":""},{"$f":"IF(OR(B526=\"N\",'Enrollment Form'!B533<>\"Subscriber\",'Enrollment Form'!C533=\"ROC\",'Enrollment Form'!O533<>\"Multiple of Salary\"),\"-\",IF(COUNTA('Enrollment Form'!T533:U533)<2,\"N\",\"Y\"))","v":"-"},{"$f":"IF(B526=\"N\",\"\",IF(OR('Enrollment Form'!C533=\"ROC\",'Enrollment Form'!B533<>\"Subscriber\",'Enrollment Form'!O533=\"Waive\",'Enrollment Form'!O533=\"\"),\"-\",IF('Enrollment Form'!P533=\"\",\"N\",\"Y\")))","v":""},{"$f":"IF($B526=\"N\",\"\",IF(AND('Enrollment Form'!$C533=\"ROC\",'Enrollment Form'!$DS533<>\"\"),\"Y\",IF(AND('Enrollment Form'!$C533=\"ROC\",'Enrollment Form'!$DS533=\"\"),\"N\",IF(AND('Enrollment Form'!$C533=\"Enroll\",'Enrollment Form'!$B533=\"Subscriber\",'Enrollment Form'!$CQ533=\"No\",'Enrollment Form'!$DS533=\"\"),\"N\",IF(AND('Enrollment Form'!$C533=\"Enroll\",'Enrollment Form'!$B533=\"Subscriber\",'Enrollment Form'!$CQ533=\"Yes\"),\"-\",\"Y\")))))","v":""},{"$f":"IF($B526=\"N\",\"\",IF(AND('Enrollment Form'!$C533=\"ROC\",'Enrollment Form'!$DT533<>\"\"),\"Y\",IF(AND('Enrollment Form'!$C533=\"ROC\",'Enrollment Form'!$DT533=\"\"),\"N\",IF(AND('Enrollment Form'!$C533=\"Enroll\",'Enrollment Form'!$B533=\"Subscriber\",'Enrollment Form'!$CQ533=\"No\",'Enrollment Form'!$DT533=\"\"),\"N\",IF(AND('Enrollment Form'!$C533=\"Enroll\",'Enrollment Form'!$B533=\"Subscriber\",'Enrollment Form'!$CQ533=\"Yes\"),\"-\",\"Y\")))))","v":""},{"$f":"IF('Enrollment Form'!AH533=\"\",\"\",IF(ISERROR(SEARCH(\".\",'Enrollment Form'!AH533,SEARCH(\"@\",'Enrollment Form'!AH533))),\"N\",\"Y\"))","v":""},{"$f":"IF(OR($B526=\"N\",'Enrollment Form'!$G533=\"\"),\"\",IF('Enrollment Form'!$B533<>\"Subscriber\",\"-\",IF(COUNTIF('Enrollment Form'!$AS533:$AT533,\"Yes\")=2,\"N\",\"Y\")))","v":""},{"$f":"IF(OR('Enrollment Form'!$CC533=\"\",'Enrollment Form'!$CC533=\"No\"),\"-\",IF(AND('Enrollment Form'!$CC533=\"Yes\",'Enrollment Form'!$CD533=\"\"),\"N\",\"Y\"))","v":"-"},{"$f":"IF(OR('Enrollment Form'!$CE533=\"\",'Enrollment Form'!$CE533=\"No\"),\"-\",IF(AND('Enrollment Form'!$CE533=\"Yes\",'Enrollment Form'!$CF533=\"\"),\"N\",\"Y\"))","v":"-"},{"$f":"IF(OR('Enrollment Form'!$CG533=\"\",'Enrollment Form'!$CG533=\"No\"),\"-\",IF(AND('Enrollment Form'!$CG533=\"Yes\",'Enrollment Form'!$CH533=\"\"),\"N\",\"Y\"))","v":"-"},{"$f":"IF(OR('Enrollment Form'!$CG533=\"\",'Enrollment Form'!$CG533=\"No\"),\"-\",IF(AND('Enrollment Form'!$CG533=\"Yes\",'Enrollment Form'!$CI533=\"\"),\"N\",\"Y\"))","v":"-"},{"$f":"IF('Enrollment Form'!B533<>\"Subscriber\",\"-\",IF(AND('Enrollment Form'!B533=\"Subscriber\",'Enrollment Form'!C533=\"Enroll\",'Enrollment Form'!AA533=\"\"),\"N\",\"Y\"))","v":"-"},{"$f":"IF(OR('Enrollment Form'!B533=\"Subscriber\",'Enrollment Form'!B533=\"\"),\"-\",IF('Enrollment Form'!BI533=\"\",\"N\",\"Y\"))","v":"-"},{"$f":"IF('Enrollment Form'!B533<>\"Subscriber\",\"-\",IF(AND('Enrollment Form'!B533=\"Subscriber\",'Enrollment Form'!G533=\"\"),\"N\",\"Y\"))","v":"-"},{"$f":"IF('Enrollment Form'!A533=\"\",\"\",IF('Enrollment Form'!B533=\"Subscriber\",\"-\",IF(AND('Enrollment Form'!B533<>\"Subscriber\",'Enrollment Form'!G533='Enrollment Form'!H533),\"N\",\"Y\")))","v":""},0]
[534,{"$f":"IF('Enrollment Form'!$A534<>\"\",\"Y\",\"N\")","v":"N"},{"$f":"IF(AND('Enrollment Form'!$B534=\"\",'Enrollment Form'!$C534<>\"\"),\"N\",IF($B527=\"N\",\"\",\"Y\"))","v":""},{"$f":"IF(OR($B527=\"N\",'Enrollment Form'!G534=\"\"),\"\",IF('Enrollment Form'!$B534<>\"Subscriber\",\"\",IF('Enrollment Form'!$G534='Enrollment Form'!$H534,\"Y\",\"N\")))","v":""},{"$f":"IF($B527=\"N\",\"\",IF(AND(COUNTIFS('Enrollment Form'!$H$11:$H$1000,'Enrollment Form'!$H534,'Enrollment Form'!$B$11:$B$1000,'Enrollment Form'!$B534)>1,'Enrollment Form'!$H534<>\"\"),\"N\",\"Y\"))","v":""},{"$f":"IF($B527=\"N\",\"\",IF(LEN('Enrollment Form'!$Y534)=0,\"\",IF(LEN('Enrollment Form'!$Y534)<>5,\"N\",\"Y\")))","v":""},{"$f":"IF($B527=\"N\",\"\",IF(LEN('Enrollment Form'!$AD534=0),\"\",IF(LEN('Enrollment Form'!$AD534)<>5,\"N\",\"Y\")))","v":""},{"$f":"IF($B527=\"N\",\"\",IF(LEN('Enrollment Form'!$BL534=0),\"\",IF(LEN('Enrollment Form'!$BL534)<>5,\"N\",\"Y\")))","v":""},{"$f":"IF($B527=\"N\",\"\",IF(LEN('Enrollment Form'!$AE534)=0,\"\",IF(LEN('Enrollment Form'!$AE534)<>10,\"N\",\"Y\")))","v":""},{"$f":"IF($B527=\"N\",\"\",IF(LEN('Enrollment Form'!$AF534)=0,\"\",IF(LEN('Enrollment Form'!$AF534)<>10,\"N\",\"Y\")))","v":""},{"$f":"IF('Enrollment Form'!$O534<>\"Graded\",\"-\",IF(AND('Enrollment Form'!$O534=\"Graded\",'Enrollment Form'!$AO534<>\"\"),\"Y\",\"N\"))","v":"-"},{"$f":"IF($B527=\"N\",\"\",IF(OR('Enrollment Form'!$B534<>\"Subscriber\",'Enrollment Form'!$C534=\"ROC\"),\"-\",IF(AND('Enrollment Form'!$B534=\"Subscriber\",'Enrollment Form'!$C534=\"Enroll\",'Enrollment Form'!$AJ534<>\"\"),\"Y\",\"N\")))","v":""},{"$f":"IF($B527=\"N\",\"\",IF(OR('Enrollment Form'!$B534<>\"Subscriber\",'Enrollment Form'!$C534=\"ROC\"),\"-\",IF(AND('Enrollment Form'!$B534=\"Subscriber\",'Enrollment Form'!$C534=\"Enroll\",'Enrollment Form'!$AK534<>\"\"),\"Y\",\"N\")))","v":""},{"$f":"IF($B527=\"N\",\"\",IF(OR('Enrollment Form'!$B534<>\"Subscriber\",'Enrollment Form'!$C534=\"ROC\"),\"-\",IF(AND('Enrollment Form'!$B534=\"Subscriber\",'Enrollment Form'!$C534=\"Enroll\",'Enrollment Form'!$AL534<>\"\"),\"Y\",\"N\")))","v":""},{"$f":"IF($B527=\"N\",\"\",IF(OR('Enrollment Form'!$B534<>\"Subscriber\",'Enrollment Form'!$C534=\"ROC\"),\"-\",IF(AND('Enrollment Form'!$B534=\"Subscriber\",'Enrollment Form'!$C534=\"Enroll\",'Enrollment Form'!$AM534<>\"\"),\"Y\",\"N\")))","v":""},{"$f":"IF($B527=\"N\",\"\",IF(OR('Enrollment Form'!$B534<>\"Subscriber\",'Enrollment Form'!$C534=\"ROC\"),\"-\",IF(AND('Enrollment Form'!$B534=\"Subscriber\",'Enrollment Form'!$C534=\"Enroll\",'Enrollment Form'!$AN534<>\"\"),\"Y\",\"N\")))","v":""},{"$f":"IF($B527=\"N\",\"\",IF(OR('Enrollment Form'!$B534<>\"Subscriber\",'Enrollment Form'!$C534=\"ROC\"),\"-\",IF(AND('Enrollment Form'!$B534=\"Subscriber\",'Enrollment Form'!$C534=\"Enroll\",'Enrollment Form'!$AP534<>\"\"),\"Y\",\"N\")))","v":""},{"$f":"IF($B527=\"N\",\"\",IF($Q527=\"-\",\"-\",IF(AND($Q527=\"Y\",'Enrollment Form'!$AP534=\"No\"),\"-\",IF(AND($Q527=\"Y\",'Enrollment Form'!$AP534=\"Yes\",'Enrollment Form'!$AQ534<>\"\"),\"Y\",\"N\"))))","v":""},{"$f":"IF($B527=\"N\",\"\",IF(OR('Enrollment Form'!$B534<>\"Subscriber\",'Enrollment Form'!$C534=\"ROC\"),\"-\",IF(AND('Enrollment Form'!$B534=\"Subscriber\",'Enrollment Form'!$C534=\"Enroll\",'Enrollment Form'!$CO534<>\"\"),\"Y\",\"N\")))","v":""},{"$f":"IF($B527=\"N\",\"\",IF($S527=\"-\",\"-\",IF(AND($S527=\"Y\",'Enrollment Form'!$CO534=\"No\"),\"-\",IF(AND($S527=\"Y\",'Enrollment Form'!$CO534=\"Yes\",'Enrollment Form'!$CP534<>\"\"),\"Y\",\"N\"))))","v":""},{"$f":"IF(OR('Enrollment Form'!$AV534=\"Yes\",'Enrollment Form'!$AV534=\"\"),\"-\",IF(AND('Enrollment Form'!$AV534=\"No\",ISERROR(FIND(\"HMO\",VLOOKUP('Enrollment Form'!G534,'Enrollment Form'!H$11:J$1000,3,FALSE),1))=FALSE,COUNTA('Enrollment Form'!$AW534:$AZ534)=4),\"Y\",\"N\"))","v":"-"},{"$f":"IF($B527=\"N\",\"\",IF('Enrollment Form'!$B534=\"Subscriber\",\"-\",IF(COUNTA('Enrollment Form'!$BE534,'Enrollment Form'!$BG534)=2,\"Y\",\"N\")))","v":""},{"$f":"IF($B527=\"N\",\"\",IF(OR('Enrollment Form'!$AU534=\"\",'Enrollment Form'!$AU534=\"No\"),\"-\",IF(AND('Enrollment Form'!$AU534=\"Yes\",COUNTA('Enrollment Form'!$CK534)=1),\"Y\",\"N\")))","v":""},{"$f":"IF(OR('Enrollment Form'!$CK534=\"\",'Enrollment Form'!$CK534=\"No\"),\"-\",IF(COUNTA('Enrollment Form'!$CM534:$CN534)=2,\"Y\",\"N\"))","v":"-"},{"$f":"IF($B527=\"N\",\"\",IF(COUNTIF('Enrollment Form'!$CZ534:$DO534,\"Other\")=COUNTA('Enrollment Form'!$DF534,'Enrollment Form'!$DA534,'Enrollment Form'!$DK534,'Enrollment Form'!$DP534),\"Y\",\"N\"))","v":""},{"$f":"IF($B527=\"N\",\"\",IF(OR('Enrollment Form'!B534<>\"Subscriber\",'Enrollment Form'!C534=\"ROC\",COUNTIF('Enrollment Form'!AS534:AT534,\"Yes\")>=1),\"-\",IF(AND('Enrollment Form'!C534=\"Enroll\",COUNTIF('Enrollment Form'!AS534:AT534,\"No\")=2,'Enrollment Form'!AU534=\"\"),\"N\",\"Y\")))","v":""},{"$f":"IF(OR(B527=\"N\",'Enrollment Form'!B534<>\"Subscriber\",'Enrollment Form'!C534=\"ROC\",'Enrollment Form'!O534<>\"Multiple of Salary\"),\"-\",IF(COUNTA('Enrollment Form'!T534:U534)<2,\"N\",\"Y\"))","v":"-"},{"$f":"IF(B527=\"N\",\"\",IF(OR('Enrollment Form'!C534=\"ROC\",'Enrollment Form'!B534<>\"Subscriber\",'Enrollment Form'!O534=\"Waive\",'Enrollment Form'!O534=\"\"),\"-\",IF('Enrollment Form'!P534=\"\",\"N\",\"Y\")))","v":""},{"$f":"IF($B527=\"N\",\"\",IF(AND('Enrollment Form'!$C534=\"ROC\",'Enrollment Form'!$DS534<>\"\"),\"Y\",IF(AND('Enrollment Form'!$C534=\"ROC\",'Enrollment Form'!$DS534=\"\"),\"N\",IF(AND('Enrollment Form'!$C534=\"Enroll\",'Enrollment Form'!$B534=\"Subscriber\",'Enrollment Form'!$CQ534=\"No\",'Enrollment Form'!$DS534=\"\"),\"N\",IF(AND('Enrollment Form'!$C534=\"Enroll\",'Enrollment Form'!$B534=\"Subscriber\",'Enrollment Form'!$CQ534=\"Yes\"),\"-\",\"Y\")))))","v":""},{"$f":"IF($B527=\"N\",\"\",IF(AND('Enrollment Form'!$C534=\"ROC\",'Enrollment Form'!$DT534<>\"\"),\"Y\",IF(AND('Enrollment Form'!$C534=\"ROC\",'Enrollment Form'!$DT534=\"\"),\"N\",IF(AND('Enrollment Form'!$C534=\"Enroll\",'Enrollment Form'!$B534=\"Subscriber\",'Enrollment Form'!$CQ534=\"No\",'Enrollment Form'!$DT534=\"\"),\"N\",IF(AND('Enrollment Form'!$C534=\"Enroll\",'Enrollment Form'!$B534=\"Subscriber\",'Enrollment Form'!$CQ534=\"Yes\"),\"-\",\"Y\")))))","v":""},{"$f":"IF('Enrollment Form'!AH534=\"\",\"\",IF(ISERROR(SEARCH(\".\",'Enrollment Form'!AH534,SEARCH(\"@\",'Enrollment Form'!AH534))),\"N\",\"Y\"))","v":""},{"$f":"IF(OR($B527=\"N\",'Enrollment Form'!$G534=\"\"),\"\",IF('Enrollment Form'!$B534<>\"Subscriber\",\"-\",IF(COUNTIF('Enrollment Form'!$AS534:$AT534,\"Yes\")=2,\"N\",\"Y\")))","v":""},{"$f":"IF(OR('Enrollment Form'!$CC534=\"\",'Enrollment Form'!$CC534=\"No\"),\"-\",IF(AND('Enrollment Form'!$CC534=\"Yes\",'Enrollment Form'!$CD534=\"\"),\"N\",\"Y\"))","v":"-"},{"$f":"IF(OR('Enrollment Form'!$CE534=\"\",'Enrollment Form'!$CE534=\"No\"),\"-\",IF(AND('Enrollment Form'!$CE534=\"Yes\",'Enrollment Form'!$CF534=\"\"),\"N\",\"Y\"))","v":"-"},{"$f":"IF(OR('Enrollment Form'!$CG534=\"\",'Enrollment Form'!$CG534=\"No\"),\"-\",IF(AND('Enrollment Form'!$CG534=\"Yes\",'Enrollment Form'!$CH534=\"\"),\"N\",\"Y\"))","v":"-"},{"$f":"IF(OR('Enrollment Form'!$CG534=\"\",'Enrollment Form'!$CG534=\"No\"),\"-\",IF(AND('Enrollment Form'!$CG534=\"Yes\",'Enrollment Form'!$CI534=\"\"),\"N\",\"Y\"))","v":"-"},{"$f":"IF('Enrollment Form'!B534<>\"Subscriber\",\"-\",IF(AND('Enrollment Form'!B534=\"Subscriber\",'Enrollment Form'!C534=\"Enroll\",'Enrollment Form'!AA534=\"\"),\"N\",\"Y\"))","v":"-"},{"$f":"IF(OR('Enrollment Form'!B534=\"Subscriber\",'Enrollment Form'!B534=\"\"),\"-\",IF('Enrollment Form'!BI534=\"\",\"N\",\"Y\"))","v":"-"},{"$f":"IF('Enrollment Form'!B534<>\"Subscriber\",\"-\",IF(AND('Enrollment Form'!B534=\"Subscriber\",'Enrollment Form'!G534=\"\"),\"N\",\"Y\"))","v":"-"},{"$f":"IF('Enrollment Form'!A534=\"\",\"\",IF('Enrollment Form'!B534=\"Subscriber\",\"-\",IF(AND('Enrollment Form'!B534<>\"Subscriber\",'Enrollment Form'!G534='Enrollment Form'!H534),\"N\",\"Y\")))","v":""},0]
[535,{"$f":"IF('Enrollment Form'!$A535<>\"\",\"Y\",\"N\")","v":"N"},{"$f":"IF(AND('Enrollment Form'!$B535=\"\",'Enrollment Form'!$C535<>\"\"),\"N\",IF($B528=\"N\",\"\",\"Y\"))","v":""},{"$f":"IF(OR($B528=\"N\",'Enrollment Form'!G535=\"\"),\"\",IF('Enrollment Form'!$B535<>\"Subscriber\",\"\",IF('Enrollment Form'!$G535='Enrollment Form'!$H535,\"Y\",\"N\")))","v":""},{"$f":"IF($B528=\"N\",\"\",IF(AND(COUNTIFS('Enrollment Form'!$H$11:$H$1000,'Enrollment Form'!$H535,'Enrollment Form'!$B$11:$B$1000,'Enrollment Form'!$B535)>1,'Enrollment Form'!$H535<>\"\"),\"N\",\"Y\"))","v":""},{"$f":"IF($B528=\"N\",\"\",IF(LEN('Enrollment Form'!$Y535)=0,\"\",IF(LEN('Enrollment Form'!$Y535)<>5,\"N\",\"Y\")))","v":""},{"$f":"IF($B528=\"N\",\"\",IF(LEN('Enrollment Form'!$AD535=0),\"\",IF(LEN('Enrollment Form'!$AD535)<>5,\"N\",\"Y\")))","v":""},{"$f":"IF($B528=\"N\",\"\",IF(LEN('Enrollment Form'!$BL535=0),\"\",IF(LEN('Enrollment Form'!$BL535)<>5,\"N\",\"Y\")))","v":""},{"$f":"IF($B528=\"N\",\"\",IF(LEN('Enrollment Form'!$AE535)=0,\"\",IF(LEN('Enrollment Form'!$AE535)<>10,\"N\",\"Y\")))","v":""},{"$f":"IF($B528=\"N\",\"\",IF(LEN('Enrollment Form'!$AF535)=0,\"\",IF(LEN('Enrollment Form'!$AF535)<>10,\"N\",\"Y\")))","v":""},{"$f":"IF('Enrollment Form'!$O535<>\"Graded\",\"-\",IF(AND('Enrollment Form'!$O535=\"Graded\",'Enrollment Form'!$AO535<>\"\"),\"Y\",\"N\"))","v":"-"},{"$f":"IF($B528=\"N\",\"\",IF(OR('Enrollment Form'!$B535<>\"Subscriber\",'Enrollment Form'!$C535=\"ROC\"),\"-\",IF(AND('Enrollment Form'!$B535=\"Subscriber\",'Enrollment Form'!$C535=\"Enroll\",'Enrollment Form'!$AJ535<>\"\"),\"Y\",\"N\")))","v":""},{"$f":"IF($B528=\"N\",\"\",IF(OR('Enrollment Form'!$B535<>\"Subscriber\",'Enrollment Form'!$C535=\"ROC\"),\"-\",IF(AND('Enrollment Form'!$B535=\"Subscriber\",'Enrollment Form'!$C535=\"Enroll\",'Enrollment Form'!$AK535<>\"\"),\"Y\",\"N\")))","v":""},{"$f":"IF($B528=\"N\",\"\",IF(OR('Enrollment Form'!$B535<>\"Subscriber\",'Enrollment Form'!$C535=\"ROC\"),\"-\",IF(AND('Enrollment Form'!$B535=\"Subscriber\",'Enrollment Form'!$C535=\"Enroll\",'Enrollment Form'!$AL535<>\"\"),\"Y\",\"N\")))","v":""},{"$f":"IF($B528=\"N\",\"\",IF(OR('Enrollment Form'!$B535<>\"Subscriber\",'Enrollment Form'!$C535=\"ROC\"),\"-\",IF(AND('Enrollment Form'!$B535=\"Subscriber\",'Enrollment Form'!$C535=\"Enroll\",'Enrollment Form'!$AM535<>\"\"),\"Y\",\"N\")))","v":""},{"$f":"IF($B528=\"N\",\"\",IF(OR('Enrollment Form'!$B535<>\"Subscriber\",'Enrollment Form'!$C535=\"ROC\"),\"-\",IF(AND('Enrollment Form'!$B535=\"Subscriber\",'Enrollment Form'!$C535=\"Enroll\",'Enrollment Form'!$AN535<>\"\"),\"Y\",\"N\")))","v":""},{"$f":"IF($B528=\"N\",\"\",IF(OR('Enrollment Form'!$B535<>\"Subscriber\",'Enrollment Form'!$C535=\"ROC\"),\"-\",IF(AND('Enrollment Form'!$B535=\"Subscriber\",'Enrollment Form'!$C535=\"Enroll\",'Enrollment Form'!$AP535<>\"\"),\"Y\",\"N\")))","v":""},{"$f":"IF($B528=\"N\",\"\",IF($Q528=\"-\",\"-\",IF(AND($Q528=\"Y\",'Enrollment Form'!$AP535=\"No\"),\"-\",IF(AND($Q528=\"Y\",'Enrollment Form'!$AP535=\"Yes\",'Enrollment Form'!$AQ535<>\"\"),\"Y\",\"N\"))))","v":""},{"$f":"IF($B528=\"N\",\"\",IF(OR('Enrollment Form'!$B535<>\"Subscriber\",'Enrollment Form'!$C535=\"ROC\"),\"-\",IF(AND('Enrollment Form'!$B535=\"Subscriber\",'Enrollment Form'!$C535=\"Enroll\",'Enrollment Form'!$CO535<>\"\"),\"Y\",\"N\")))","v":""},{"$f":"IF($B528=\"N\",\"\",IF($S528=\"-\",\"-\",IF(AND($S528=\"Y\",'Enrollment Form'!$CO535=\"No\"),\"-\",IF(AND($S528=\"Y\",'Enrollment Form'!$CO535=\"Yes\",'Enrollment Form'!$CP535<>\"\"),\"Y\",\"N\"))))","v":""},{"$f":"IF(OR('Enrollment Form'!$AV535=\"Yes\",'Enrollment Form'!$AV535=\"\"),\"-\",IF(AND('Enrollment Form'!$AV535=\"No\",ISERROR(FIND(\"HMO\",VLOOKUP('Enrollment Form'!G535,'Enrollment Form'!H$11:J$1000,3,FALSE),1))=FALSE,COUNTA('Enrollment Form'!$AW535:$AZ535)=4),\"Y\",\"N\"))","v":"-"},{"$f":"IF($B528=\"N\",\"\",IF('Enrollment Form'!$B535=\"Subscriber\",\"-\",IF(COUNTA('Enrollment Form'!$BE535,'Enrollment Form'!$BG535)=2,\"Y\",\"N\")))","v":""},{"$f":"IF($B528=\"N\",\"\",IF(OR('Enrollment Form'!$AU535=\"\",'Enrollment Form'!$AU535=\"No\"),\"-\",IF(AND('Enrollment Form'!$AU535=\"Yes\",COUNTA('Enrollment Form'!$CK535)=1),\"Y\",\"N\")))","v":""},{"$f":"IF(OR('Enrollment Form'!$CK535=\"\",'Enrollment Form'!$CK535=\"No\"),\"-\",IF(COUNTA('Enrollment Form'!$CM535:$CN535)=2,\"Y\",\"N\"))","v":"-"},{"$f":"IF($B528=\"N\",\"\",IF(COUNTIF('Enrollment Form'!$CZ535:$DO535,\"Other\")=COUNTA('Enrollment Form'!$DF535,'Enrollment Form'!$DA535,'Enrollment Form'!$DK535,'Enrollment Form'!$DP535),\"Y\",\"N\"))","v":""},{"$f":"IF($B528=\"N\",\"\",IF(OR('Enrollment Form'!B535<>\"Subscriber\",'Enrollment Form'!C535=\"ROC\",COUNTIF('Enrollment Form'!AS535:AT535,\"Yes\")>=1),\"-\",IF(AND('Enrollment Form'!C535=\"Enroll\",COUNTIF('Enrollment Form'!AS535:AT535,\"No\")=2,'Enrollment Form'!AU535=\"\"),\"N\",\"Y\")))","v":""},{"$f":"IF(OR(B528=\"N\",'Enrollment Form'!B535<>\"Subscriber\",'Enrollment Form'!C535=\"ROC\",'Enrollment Form'!O535<>\"Multiple of Salary\"),\"-\",IF(COUNTA('Enrollment Form'!T535:U535)<2,\"N\",\"Y\"))","v":"-"},{"$f":"IF(B528=\"N\",\"\",IF(OR('Enrollment Form'!C535=\"ROC\",'Enrollment Form'!B535<>\"Subscriber\",'Enrollment Form'!O535=\"Waive\",'Enrollment Form'!O535=\"\"),\"-\",IF('Enrollment Form'!P535=\"\",\"N\",\"Y\")))","v":""},{"$f":"IF($B528=\"N\",\"\",IF(AND('Enrollment Form'!$C535=\"ROC\",'Enrollment Form'!$DS535<>\"\"),\"Y\",IF(AND('Enrollment Form'!$C535=\"ROC\",'Enrollment Form'!$DS535=\"\"),\"N\",IF(AND('Enrollment Form'!$C535=\"Enroll\",'Enrollment Form'!$B535=\"Subscriber\",'Enrollment Form'!$CQ535=\"No\",'Enrollment Form'!$DS535=\"\"),\"N\",IF(AND('Enrollment Form'!$C535=\"Enroll\",'Enrollment Form'!$B535=\"Subscriber\",'Enrollment Form'!$CQ535=\"Yes\"),\"-\",\"Y\")))))","v":""},{"$f":"IF($B528=\"N\",\"\",IF(AND('Enrollment Form'!$C535=\"ROC\",'Enrollment Form'!$DT535<>\"\"),\"Y\",IF(AND('Enrollment Form'!$C535=\"ROC\",'Enrollment Form'!$DT535=\"\"),\"N\",IF(AND('Enrollment Form'!$C535=\"Enroll\",'Enrollment Form'!$B535=\"Subscriber\",'Enrollment Form'!$CQ535=\"No\",'Enrollment Form'!$DT535=\"\"),\"N\",IF(AND('Enrollment Form'!$C535=\"Enroll\",'Enrollment Form'!$B535=\"Subscriber\",'Enrollment Form'!$CQ535=\"Yes\"),\"-\",\"Y\")))))","v":""},{"$f":"IF('Enrollment Form'!AH535=\"\",\"\",IF(ISERROR(SEARCH(\".\",'Enrollment Form'!AH535,SEARCH(\"@\",'Enrollment Form'!AH535))),\"N\",\"Y\"))","v":""},{"$f":"IF(OR($B528=\"N\",'Enrollment Form'!$G535=\"\"),\"\",IF('Enrollment Form'!$B535<>\"Subscriber\",\"-\",IF(COUNTIF('Enrollment Form'!$AS535:$AT535,\"Yes\")=2,\"N\",\"Y\")))","v":""},{"$f":"IF(OR('Enrollment Form'!$CC535=\"\",'Enrollment Form'!$CC535=\"No\"),\"-\",IF(AND('Enrollment Form'!$CC535=\"Yes\",'Enrollment Form'!$CD535=\"\"),\"N\",\"Y\"))","v":"-"},{"$f":"IF(OR('Enrollment Form'!$CE535=\"\",'Enrollment Form'!$CE535=\"No\"),\"-\",IF(AND('Enrollment Form'!$CE535=\"Yes\",'Enrollment Form'!$CF535=\"\"),\"N\",\"Y\"))","v":"-"},{"$f":"IF(OR('Enrollment Form'!$CG535=\"\",'Enrollment Form'!$CG535=\"No\"),\"-\",IF(AND('Enrollment Form'!$CG535=\"Yes\",'Enrollment Form'!$CH535=\"\"),\"N\",\"Y\"))","v":"-"},{"$f":"IF(OR('Enrollment Form'!$CG535=\"\",'Enrollment Form'!$CG535=\"No\"),\"-\",IF(AND('Enrollment Form'!$CG535=\"Yes\",'Enrollment Form'!$CI535=\"\"),\"N\",\"Y\"))","v":"-"},{"$f":"IF('Enrollment Form'!B535<>\"Subscriber\",\"-\",IF(AND('Enrollment Form'!B535=\"Subscriber\",'Enrollment Form'!C535=\"Enroll\",'Enrollment Form'!AA535=\"\"),\"N\",\"Y\"))","v":"-"},{"$f":"IF(OR('Enrollment Form'!B535=\"Subscriber\",'Enrollment Form'!B535=\"\"),\"-\",IF('Enrollment Form'!BI535=\"\",\"N\",\"Y\"))","v":"-"},{"$f":"IF('Enrollment Form'!B535<>\"Subscriber\",\"-\",IF(AND('Enrollment Form'!B535=\"Subscriber\",'Enrollment Form'!G535=\"\"),\"N\",\"Y\"))","v":"-"},{"$f":"IF('Enrollment Form'!A535=\"\",\"\",IF('Enrollment Form'!B535=\"Subscriber\",\"-\",IF(AND('Enrollment Form'!B535<>\"Subscriber\",'Enrollment Form'!G535='Enrollment Form'!H535),\"N\",\"Y\")))","v":""},0]
[536,{"$f":"IF('Enrollment Form'!$A536<>\"\",\"Y\",\"N\")","v":"N"},{"$f":"IF(AND('Enrollment Form'!$B536=\"\",'Enrollment Form'!$C536<>\"\"),\"N\",IF($B529=\"N\",\"\",\"Y\"))","v":""},{"$f":"IF(OR($B529=\"N\",'Enrollment Form'!G536=\"\"),\"\",IF('Enrollment Form'!$B536<>\"Subscriber\",\"\",IF('Enrollment Form'!$G536='Enrollment Form'!$H536,\"Y\",\"N\")))","v":""},{"$f":"IF($B529=\"N\",\"\",IF(AND(COUNTIFS('Enrollment Form'!$H$11:$H$1000,'Enrollment Form'!$H536,'Enrollment Form'!$B$11:$B$1000,'Enrollment Form'!$B536)>1,'Enrollment Form'!$H536<>\"\"),\"N\",\"Y\"))","v":""},{"$f":"IF($B529=\"N\",\"\",IF(LEN('Enrollment Form'!$Y536)=0,\"\",IF(LEN('Enrollment Form'!$Y536)<>5,\"N\",\"Y\")))","v":""},{"$f":"IF($B529=\"N\",\"\",IF(LEN('Enrollment Form'!$AD536=0),\"\",IF(LEN('Enrollment Form'!$AD536)<>5,\"N\",\"Y\")))","v":""},{"$f":"IF($B529=\"N\",\"\",IF(LEN('Enrollment Form'!$BL536=0),\"\",IF(LEN('Enrollment Form'!$BL536)<>5,\"N\",\"Y\")))","v":""},{"$f":"IF($B529=\"N\",\"\",IF(LEN('Enrollment Form'!$AE536)=0,\"\",IF(LEN('Enrollment Form'!$AE536)<>10,\"N\",\"Y\")))","v":""},{"$f":"IF($B529=\"N\",\"\",IF(LEN('Enrollment Form'!$AF536)=0,\"\",IF(LEN('Enrollment Form'!$AF536)<>10,\"N\",\"Y\")))","v":""},{"$f":"IF('Enrollment Form'!$O536<>\"Graded\",\"-\",IF(AND('Enrollment Form'!$O536=\"Graded\",'Enrollment Form'!$AO536<>\"\"),\"Y\",\"N\"))","v":"-"},{"$f":"IF($B529=\"N\",\"\",IF(OR('Enrollment Form'!$B536<>\"Subscriber\",'Enrollment Form'!$C536=\"ROC\"),\"-\",IF(AND('Enrollment Form'!$B536=\"Subscriber\",'Enrollment Form'!$C536=\"Enroll\",'Enrollment Form'!$AJ536<>\"\"),\"Y\",\"N\")))","v":""},{"$f":"IF($B529=\"N\",\"\",IF(OR('Enrollment Form'!$B536<>\"Subscriber\",'Enrollment Form'!$C536=\"ROC\"),\"-\",IF(AND('Enrollment Form'!$B536=\"Subscriber\",'Enrollment Form'!$C536=\"Enroll\",'Enrollment Form'!$AK536<>\"\"),\"Y\",\"N\")))","v":""},{"$f":"IF($B529=\"N\",\"\",IF(OR('Enrollment Form'!$B536<>\"Subscriber\",'Enrollment Form'!$C536=\"ROC\"),\"-\",IF(AND('Enrollment Form'!$B536=\"Subscriber\",'Enrollment Form'!$C536=\"Enroll\",'Enrollment Form'!$AL536<>\"\"),\"Y\",\"N\")))","v":""},{"$f":"IF($B529=\"N\",\"\",IF(OR('Enrollment Form'!$B536<>\"Subscriber\",'Enrollment Form'!$C536=\"ROC\"),\"-\",IF(AND('Enrollment Form'!$B536=\"Subscriber\",'Enrollment Form'!$C536=\"Enroll\",'Enrollment Form'!$AM536<>\"\"),\"Y\",\"N\")))","v":""},{"$f":"IF($B529=\"N\",\"\",IF(OR('Enrollment Form'!$B536<>\"Subscriber\",'Enrollment Form'!$C536=\"ROC\"),\"-\",IF(AND('Enrollment Form'!$B536=\"Subscriber\",'Enrollment Form'!$C536=\"Enroll\",'Enrollment Form'!$AN536<>\"\"),\"Y\",\"N\")))","v":""},{"$f":"IF($B529=\"N\",\"\",IF(OR('Enrollment Form'!$B536<>\"Subscriber\",'Enrollment Form'!$C536=\"ROC\"),\"-\",IF(AND('Enrollment Form'!$B536=\"Subscriber\",'Enrollment Form'!$C536=\"Enroll\",'Enrollment Form'!$AP536<>\"\"),\"Y\",\"N\")))","v":""},{"$f":"IF($B529=\"N\",\"\",IF($Q529=\"-\",\"-\",IF(AND($Q529=\"Y\",'Enrollment Form'!$AP536=\"No\"),\"-\",IF(AND($Q529=\"Y\",'Enrollment Form'!$AP536=\"Yes\",'Enrollment Form'!$AQ536<>\"\"),\"Y\",\"N\"))))","v":""},{"$f":"IF($B529=\"N\",\"\",IF(OR('Enrollment Form'!$B536<>\"Subscriber\",'Enrollment Form'!$C536=\"ROC\"),\"-\",IF(AND('Enrollment Form'!$B536=\"Subscriber\",'Enrollment Form'!$C536=\"Enroll\",'Enrollment Form'!$CO536<>\"\"),\"Y\",\"N\")))","v":""},{"$f":"IF($B529=\"N\",\"\",IF($S529=\"-\",\"-\",IF(AND($S529=\"Y\",'Enrollment Form'!$CO536=\"No\"),\"-\",IF(AND($S529=\"Y\",'Enrollment Form'!$CO536=\"Yes\",'Enrollment Form'!$CP536<>\"\"),\"Y\",\"N\"))))","v":""},{"$f":"IF(OR('Enrollment Form'!$AV536=\"Yes\",'Enrollment Form'!$AV536=\"\"),\"-\",IF(AND('Enrollment Form'!$AV536=\"No\",ISERROR(FIND(\"HMO\",VLOOKUP('Enrollment Form'!G536,'Enrollment Form'!H$11:J$1000,3,FALSE),1))=FALSE,COUNTA('Enrollment Form'!$AW536:$AZ536)=4),\"Y\",\"N\"))","v":"-"},{"$f":"IF($B529=\"N\",\"\",IF('Enrollment Form'!$B536=\"Subscriber\",\"-\",IF(COUNTA('Enrollment Form'!$BE536,'Enrollment Form'!$BG536)=2,\"Y\",\"N\")))","v":""},{"$f":"IF($B529=\"N\",\"\",IF(OR('Enrollment Form'!$AU536=\"\",'Enrollment Form'!$AU536=\"No\"),\"-\",IF(AND('Enrollment Form'!$AU536=\"Yes\",COUNTA('Enrollment Form'!$CK536)=1),\"Y\",\"N\")))","v":""},{"$f":"IF(OR('Enrollment Form'!$CK536=\"\",'Enrollment Form'!$CK536=\"No\"),\"-\",IF(COUNTA('Enrollment Form'!$CM536:$CN536)=2,\"Y\",\"N\"))","v":"-"},{"$f":"IF($B529=\"N\",\"\",IF(COUNTIF('Enrollment Form'!$CZ536:$DO536,\"Other\")=COUNTA('Enrollment Form'!$DF536,'Enrollment Form'!$DA536,'Enrollment Form'!$DK536,'Enrollment Form'!$DP536),\"Y\",\"N\"))","v":""},{"$f":"IF($B529=\"N\",\"\",IF(OR('Enrollment Form'!B536<>\"Subscriber\",'Enrollment Form'!C536=\"ROC\",COUNTIF('Enrollment Form'!AS536:AT536,\"Yes\")>=1),\"-\",IF(AND('Enrollment Form'!C536=\"Enroll\",COUNTIF('Enrollment Form'!AS536:AT536,\"No\")=2,'Enrollment Form'!AU536=\"\"),\"N\",\"Y\")))","v":""},{"$f":"IF(OR(B529=\"N\",'Enrollment Form'!B536<>\"Subscriber\",'Enrollment Form'!C536=\"ROC\",'Enrollment Form'!O536<>\"Multiple of Salary\"),\"-\",IF(COUNTA('Enrollment Form'!T536:U536)<2,\"N\",\"Y\"))","v":"-"},{"$f":"IF(B529=\"N\",\"\",IF(OR('Enrollment Form'!C536=\"ROC\",'Enrollment Form'!B536<>\"Subscriber\",'Enrollment Form'!O536=\"Waive\",'Enrollment Form'!O536=\"\"),\"-\",IF('Enrollment Form'!P536=\"\",\"N\",\"Y\")))","v":""},{"$f":"IF($B529=\"N\",\"\",IF(AND('Enrollment Form'!$C536=\"ROC\",'Enrollment Form'!$DS536<>\"\"),\"Y\",IF(AND('Enrollment Form'!$C536=\"ROC\",'Enrollment Form'!$DS536=\"\"),\"N\",IF(AND('Enrollment Form'!$C536=\"Enroll\",'Enrollment Form'!$B536=\"Subscriber\",'Enrollment Form'!$CQ536=\"No\",'Enrollment Form'!$DS536=\"\"),\"N\",IF(AND('Enrollment Form'!$C536=\"Enroll\",'Enrollment Form'!$B536=\"Subscriber\",'Enrollment Form'!$CQ536=\"Yes\"),\"-\",\"Y\")))))","v":""},{"$f":"IF($B529=\"N\",\"\",IF(AND('Enrollment Form'!$C536=\"ROC\",'Enrollment Form'!$DT536<>\"\"),\"Y\",IF(AND('Enrollment Form'!$C536=\"ROC\",'Enrollment Form'!$DT536=\"\"),\"N\",IF(AND('Enrollment Form'!$C536=\"Enroll\",'Enrollment Form'!$B536=\"Subscriber\",'Enrollment Form'!$CQ536=\"No\",'Enrollment Form'!$DT536=\"\"),\"N\",IF(AND('Enrollment Form'!$C536=\"Enroll\",'Enrollment Form'!$B536=\"Subscriber\",'Enrollment Form'!$CQ536=\"Yes\"),\"-\",\"Y\")))))","v":""},{"$f":"IF('Enrollment Form'!AH536=\"\",\"\",IF(ISERROR(SEARCH(\".\",'Enrollment Form'!AH536,SEARCH(\"@\",'Enrollment Form'!AH536))),\"N\",\"Y\"))","v":""},{"$f":"IF(OR($B529=\"N\",'Enrollment Form'!$G536=\"\"),\"\",IF('Enrollment Form'!$B536<>\"Subscriber\",\"-\",IF(COUNTIF('Enrollment Form'!$AS536:$AT536,\"Yes\")=2,\"N\",\"Y\")))","v":""},{"$f":"IF(OR('Enrollment Form'!$CC536=\"\",'Enrollment Form'!$CC536=\"No\"),\"-\",IF(AND('Enrollment Form'!$CC536=\"Yes\",'Enrollment Form'!$CD536=\"\"),\"N\",\"Y\"))","v":"-"},{"$f":"IF(OR('Enrollment Form'!$CE536=\"\",'Enrollment Form'!$CE536=\"No\"),\"-\",IF(AND('Enrollment Form'!$CE536=\"Yes\",'Enrollment Form'!$CF536=\"\"),\"N\",\"Y\"))","v":"-"},{"$f":"IF(OR('Enrollment Form'!$CG536=\"\",'Enrollment Form'!$CG536=\"No\"),\"-\",IF(AND('Enrollment Form'!$CG536=\"Yes\",'Enrollment Form'!$CH536=\"\"),\"N\",\"Y\"))","v":"-"},{"$f":"IF(OR('Enrollment Form'!$CG536=\"\",'Enrollment Form'!$CG536=\"No\"),\"-\",IF(AND('Enrollment Form'!$CG536=\"Yes\",'Enrollment Form'!$CI536=\"\"),\"N\",\"Y\"))","v":"-"},{"$f":"IF('Enrollment Form'!B536<>\"Subscriber\",\"-\",IF(AND('Enrollment Form'!B536=\"Subscriber\",'Enrollment Form'!C536=\"Enroll\",'Enrollment Form'!AA536=\"\"),\"N\",\"Y\"))","v":"-"},{"$f":"IF(OR('Enrollment Form'!B536=\"Subscriber\",'Enrollment Form'!B536=\"\"),\"-\",IF('Enrollment Form'!BI536=\"\",\"N\",\"Y\"))","v":"-"},{"$f":"IF('Enrollment Form'!B536<>\"Subscriber\",\"-\",IF(AND('Enrollment Form'!B536=\"Subscriber\",'Enrollment Form'!G536=\"\"),\"N\",\"Y\"))","v":"-"},{"$f":"IF('Enrollment Form'!A536=\"\",\"\",IF('Enrollment Form'!B536=\"Subscriber\",\"-\",IF(AND('Enrollment Form'!B536<>\"Subscriber\",'Enrollment Form'!G536='Enrollment Form'!H536),\"N\",\"Y\")))","v":""},0]
[537,{"$f":"IF('Enrollment Form'!$A537<>\"\",\"Y\",\"N\")","v":"N"},{"$f":"IF(AND('Enrollment Form'!$B537=\"\",'Enrollment Form'!$C537<>\"\"),\"N\",IF($B530=\"N\",\"\",\"Y\"))","v":""},{"$f":"IF(OR($B530=\"N\",'Enrollment Form'!G537=\"\"),\"\",IF('Enrollment Form'!$B537<>\"Subscriber\",\"\",IF('Enrollment Form'!$G537='Enrollment Form'!$H537,\"Y\",\"N\")))","v":""},{"$f":"IF($B530=\"N\",\"\",IF(AND(COUNTIFS('Enrollment Form'!$H$11:$H$1000,'Enrollment Form'!$H537,'Enrollment Form'!$B$11:$B$1000,'Enrollment Form'!$B537)>1,'Enrollment Form'!$H537<>\"\"),\"N\",\"Y\"))","v":""},{"$f":"IF($B530=\"N\",\"\",IF(LEN('Enrollment Form'!$Y537)=0,\"\",IF(LEN('Enrollment Form'!$Y537)<>5,\"N\",\"Y\")))","v":""},{"$f":"IF($B530=\"N\",\"\",IF(LEN('Enrollment Form'!$AD537=0),\"\",IF(LEN('Enrollment Form'!$AD537)<>5,\"N\",\"Y\")))","v":""},{"$f":"IF($B530=\"N\",\"\",IF(LEN('Enrollment Form'!$BL537=0),\"\",IF(LEN('Enrollment Form'!$BL537)<>5,\"N\",\"Y\")))","v":""},{"$f":"IF($B530=\"N\",\"\",IF(LEN('Enrollment Form'!$AE537)=0,\"\",IF(LEN('Enrollment Form'!$AE537)<>10,\"N\",\"Y\")))","v":""},{"$f":"IF($B530=\"N\",\"\",IF(LEN('Enrollment Form'!$AF537)=0,\"\",IF(LEN('Enrollment Form'!$AF537)<>10,\"N\",\"Y\")))","v":""},{"$f":"IF('Enrollment Form'!$O537<>\"Graded\",\"-\",IF(AND('Enrollment Form'!$O537=\"Graded\",'Enrollment Form'!$AO537<>\"\"),\"Y\",\"N\"))","v":"-"},{"$f":"IF($B530=\"N\",\"\",IF(OR('Enrollment Form'!$B537<>\"Subscriber\",'Enrollment Form'!$C537=\"ROC\"),\"-\",IF(AND('Enrollment Form'!$B537=\"Subscriber\",'Enrollment Form'!$C537=\"Enroll\",'Enrollment Form'!$AJ537<>\"\"),\"Y\",\"N\")))","v":""},{"$f":"IF($B530=\"N\",\"\",IF(OR('Enrollment Form'!$B537<>\"Subscriber\",'Enrollment Form'!$C537=\"ROC\"),\"-\",IF(AND('Enrollment Form'!$B537=\"Subscriber\",'Enrollment Form'!$C537=\"Enroll\",'Enrollment Form'!$AK537<>\"\"),\"Y\",\"N\")))","v":""},{"$f":"IF($B530=\"N\",\"\",IF(OR('Enrollment Form'!$B537<>\"Subscriber\",'Enrollment Form'!$C537=\"ROC\"),\"-\",IF(AND('Enrollment Form'!$B537=\"Subscriber\",'Enrollment Form'!$C537=\"Enroll\",'Enrollment Form'!$AL537<>\"\"),\"Y\",\"N\")))","v":""},{"$f":"IF($B530=\"N\",\"\",IF(OR('Enrollment Form'!$B537<>\"Subscriber\",'Enrollment Form'!$C537=\"ROC\"),\"-\",IF(AND('Enrollment Form'!$B537=\"Subscriber\",'Enrollment Form'!$C537=\"Enroll\",'Enrollment Form'!$AM537<>\"\"),\"Y\",\"N\")))","v":""},{"$f":"IF($B530=\"N\",\"\",IF(OR('Enrollment Form'!$B537<>\"Subscriber\",'Enrollment Form'!$C537=\"ROC\"),\"-\",IF(AND('Enrollment Form'!$B537=\"Subscriber\",'Enrollment Form'!$C537=\"Enroll\",'Enrollment Form'!$AN537<>\"\"),\"Y\",\"N\")))","v":""},{"$f":"IF($B530=\"N\",\"\",IF(OR('Enrollment Form'!$B537<>\"Subscriber\",'Enrollment Form'!$C537=\"ROC\"),\"-\",IF(AND('Enrollment Form'!$B537=\"Subscriber\",'Enrollment Form'!$C537=\"Enroll\",'Enrollment Form'!$AP537<>\"\"),\"Y\",\"N\")))","v":""},{"$f":"IF($B530=\"N\",\"\",IF($Q530=\"-\",\"-\",IF(AND($Q530=\"Y\",'Enrollment Form'!$AP537=\"No\"),\"-\",IF(AND($Q530=\"Y\",'Enrollment Form'!$AP537=\"Yes\",'Enrollment Form'!$AQ537<>\"\"),\"Y\",\"N\"))))","v":""},{"$f":"IF($B530=\"N\",\"\",IF(OR('Enrollment Form'!$B537<>\"Subscriber\",'Enrollment Form'!$C537=\"ROC\"),\"-\",IF(AND('Enrollment Form'!$B537=\"Subscriber\",'Enrollment Form'!$C537=\"Enroll\",'Enrollment Form'!$CO537<>\"\"),\"Y\",\"N\")))","v":""},{"$f":"IF($B530=\"N\",\"\",IF($S530=\"-\",\"-\",IF(AND($S530=\"Y\",'Enrollment Form'!$CO537=\"No\"),\"-\",IF(AND($S530=\"Y\",'Enrollment Form'!$CO537=\"Yes\",'Enrollment Form'!$CP537<>\"\"),\"Y\",\"N\"))))","v":""},{"$f":"IF(OR('Enrollment Form'!$AV537=\"Yes\",'Enrollment Form'!$AV537=\"\"),\"-\",IF(AND('Enrollment Form'!$AV537=\"No\",ISERROR(FIND(\"HMO\",VLOOKUP('Enrollment Form'!G537,'Enrollment Form'!H$11:J$1000,3,FALSE),1))=FALSE,COUNTA('Enrollment Form'!$AW537:$AZ537)=4),\"Y\",\"N\"))","v":"-"},{"$f":"IF($B530=\"N\",\"\",IF('Enrollment Form'!$B537=\"Subscriber\",\"-\",IF(COUNTA('Enrollment Form'!$BE537,'Enrollment Form'!$BG537)=2,\"Y\",\"N\")))","v":""},{"$f":"IF($B530=\"N\",\"\",IF(OR('Enrollment Form'!$AU537=\"\",'Enrollment Form'!$AU537=\"No\"),\"-\",IF(AND('Enrollment Form'!$AU537=\"Yes\",COUNTA('Enrollment Form'!$CK537)=1),\"Y\",\"N\")))","v":""},{"$f":"IF(OR('Enrollment Form'!$CK537=\"\",'Enrollment Form'!$CK537=\"No\"),\"-\",IF(COUNTA('Enrollment Form'!$CM537:$CN537)=2,\"Y\",\"N\"))","v":"-"},{"$f":"IF($B530=\"N\",\"\",IF(COUNTIF('Enrollment Form'!$CZ537:$DO537,\"Other\")=COUNTA('Enrollment Form'!$DF537,'Enrollment Form'!$DA537,'Enrollment Form'!$DK537,'Enrollment Form'!$DP537),\"Y\",\"N\"))","v":""},{"$f":"IF($B530=\"N\",\"\",IF(OR('Enrollment Form'!B537<>\"Subscriber\",'Enrollment Form'!C537=\"ROC\",COUNTIF('Enrollment Form'!AS537:AT537,\"Yes\")>=1),\"-\",IF(AND('Enrollment Form'!C537=\"Enroll\",COUNTIF('Enrollment Form'!AS537:AT537,\"No\")=2,'Enrollment Form'!AU537=\"\"),\"N\",\"Y\")))","v":""},{"$f":"IF(OR(B530=\"N\",'Enrollment Form'!B537<>\"Subscriber\",'Enrollment Form'!C537=\"ROC\",'Enrollment Form'!O537<>\"Multiple of Salary\"),\"-\",IF(COUNTA('Enrollment Form'!T537:U537)<2,\"N\",\"Y\"))","v":"-"},{"$f":"IF(B530=\"N\",\"\",IF(OR('Enrollment Form'!C537=\"ROC\",'Enrollment Form'!B537<>\"Subscriber\",'Enrollment Form'!O537=\"Waive\",'Enrollment Form'!O537=\"\"),\"-\",IF('Enrollment Form'!P537=\"\",\"N\",\"Y\")))","v":""},{"$f":"IF($B530=\"N\",\"\",IF(AND('Enrollment Form'!$C537=\"ROC\",'Enrollment Form'!$DS537<>\"\"),\"Y\",IF(AND('Enrollment Form'!$C537=\"ROC\",'Enrollment Form'!$DS537=\"\"),\"N\",IF(AND('Enrollment Form'!$C537=\"Enroll\",'Enrollment Form'!$B537=\"Subscriber\",'Enrollment Form'!$CQ537=\"No\",'Enrollment Form'!$DS537=\"\"),\"N\",IF(AND('Enrollment Form'!$C537=\"Enroll\",'Enrollment Form'!$B537=\"Subscriber\",'Enrollment Form'!$CQ537=\"Yes\"),\"-\",\"Y\")))))","v":""},{"$f":"IF($B530=\"N\",\"\",IF(AND('Enrollment Form'!$C537=\"ROC\",'Enrollment Form'!$DT537<>\"\"),\"Y\",IF(AND('Enrollment Form'!$C537=\"ROC\",'Enrollment Form'!$DT537=\"\"),\"N\",IF(AND('Enrollment Form'!$C537=\"Enroll\",'Enrollment Form'!$B537=\"Subscriber\",'Enrollment Form'!$CQ537=\"No\",'Enrollment Form'!$DT537=\"\"),\"N\",IF(AND('Enrollment Form'!$C537=\"Enroll\",'Enrollment Form'!$B537=\"Subscriber\",'Enrollment Form'!$CQ537=\"Yes\"),\"-\",\"Y\")))))","v":""},{"$f":"IF('Enrollment Form'!AH537=\"\",\"\",IF(ISERROR(SEARCH(\".\",'Enrollment Form'!AH537,SEARCH(\"@\",'Enrollment Form'!AH537))),\"N\",\"Y\"))","v":""},{"$f":"IF(OR($B530=\"N\",'Enrollment Form'!$G537=\"\"),\"\",IF('Enrollment Form'!$B537<>\"Subscriber\",\"-\",IF(COUNTIF('Enrollment Form'!$AS537:$AT537,\"Yes\")=2,\"N\",\"Y\")))","v":""},{"$f":"IF(OR('Enrollment Form'!$CC537=\"\",'Enrollment Form'!$CC537=\"No\"),\"-\",IF(AND('Enrollment Form'!$CC537=\"Yes\",'Enrollment Form'!$CD537=\"\"),\"N\",\"Y\"))","v":"-"},{"$f":"IF(OR('Enrollment Form'!$CE537=\"\",'Enrollment Form'!$CE537=\"No\"),\"-\",IF(AND('Enrollment Form'!$CE537=\"Yes\",'Enrollment Form'!$CF537=\"\"),\"N\",\"Y\"))","v":"-"},{"$f":"IF(OR('Enrollment Form'!$CG537=\"\",'Enrollment Form'!$CG537=\"No\"),\"-\",IF(AND('Enrollment Form'!$CG537=\"Yes\",'Enrollment Form'!$CH537=\"\"),\"N\",\"Y\"))","v":"-"},{"$f":"IF(OR('Enrollment Form'!$CG537=\"\",'Enrollment Form'!$CG537=\"No\"),\"-\",IF(AND('Enrollment Form'!$CG537=\"Yes\",'Enrollment Form'!$CI537=\"\"),\"N\",\"Y\"))","v":"-"},{"$f":"IF('Enrollment Form'!B537<>\"Subscriber\",\"-\",IF(AND('Enrollment Form'!B537=\"Subscriber\",'Enrollment Form'!C537=\"Enroll\",'Enrollment Form'!AA537=\"\"),\"N\",\"Y\"))","v":"-"},{"$f":"IF(OR('Enrollment Form'!B537=\"Subscriber\",'Enrollment Form'!B537=\"\"),\"-\",IF('Enrollment Form'!BI537=\"\",\"N\",\"Y\"))","v":"-"},{"$f":"IF('Enrollment Form'!B537<>\"Subscriber\",\"-\",IF(AND('Enrollment Form'!B537=\"Subscriber\",'Enrollment Form'!G537=\"\"),\"N\",\"Y\"))","v":"-"},{"$f":"IF('Enrollment Form'!A537=\"\",\"\",IF('Enrollment Form'!B537=\"Subscriber\",\"-\",IF(AND('Enrollment Form'!B537<>\"Subscriber\",'Enrollment Form'!G537='Enrollment Form'!H537),\"N\",\"Y\")))","v":""},0]
[538,{"$f":"IF('Enrollment Form'!$A538<>\"\",\"Y\",\"N\")","v":"N"},{"$f":"IF(AND('Enrollment Form'!$B538=\"\",'Enrollment Form'!$C538<>\"\"),\"N\",IF($B531=\"N\",\"\",\"Y\"))","v":""},{"$f":"IF(OR($B531=\"N\",'Enrollment Form'!G538=\"\"),\"\",IF('Enrollment Form'!$B538<>\"Subscriber\",\"\",IF('Enrollment Form'!$G538='Enrollment Form'!$H538,\"Y\",\"N\")))","v":""},{"$f":"IF($B531=\"N\",\"\",IF(AND(COUNTIFS('Enrollment Form'!$H$11:$H$1000,'Enrollment Form'!$H538,'Enrollment Form'!$B$11:$B$1000,'Enrollment Form'!$B538)>1,'Enrollment Form'!$H538<>\"\"),\"N\",\"Y\"))","v":""},{"$f":"IF($B531=\"N\",\"\",IF(LEN('Enrollment Form'!$Y538)=0,\"\",IF(LEN('Enrollment Form'!$Y538)<>5,\"N\",\"Y\")))","v":""},{"$f":"IF($B531=\"N\",\"\",IF(LEN('Enrollment Form'!$AD538=0),\"\",IF(LEN('Enrollment Form'!$AD538)<>5,\"N\",\"Y\")))","v":""},{"$f":"IF($B531=\"N\",\"\",IF(LEN('Enrollment Form'!$BL538=0),\"\",IF(LEN('Enrollment Form'!$BL538)<>5,\"N\",\"Y\")))","v":""},{"$f":"IF($B531=\"N\",\"\",IF(LEN('Enrollment Form'!$AE538)=0,\"\",IF(LEN('Enrollment Form'!$AE538)<>10,\"N\",\"Y\")))","v":""},{"$f":"IF($B531=\"N\",\"\",IF(LEN('Enrollment Form'!$AF538)=0,\"\",IF(LEN('Enrollment Form'!$AF538)<>10,\"N\",\"Y\")))","v":""},{"$f":"IF('Enrollment Form'!$O538<>\"Graded\",\"-\",IF(AND('Enrollment Form'!$O538=\"Graded\",'Enrollment Form'!$AO538<>\"\"),\"Y\",\"N\"))","v":"-"},{"$f":"IF($B531=\"N\",\"\",IF(OR('Enrollment Form'!$B538<>\"Subscriber\",'Enrollment Form'!$C538=\"ROC\"),\"-\",IF(AND('Enrollment Form'!$B538=\"Subscriber\",'Enrollment Form'!$C538=\"Enroll\",'Enrollment Form'!$AJ538<>\"\"),\"Y\",\"N\")))","v":""},{"$f":"IF($B531=\"N\",\"\",IF(OR('Enrollment Form'!$B538<>\"Subscriber\",'Enrollment Form'!$C538=\"ROC\"),\"-\",IF(AND('Enrollment Form'!$B538=\"Subscriber\",'Enrollment Form'!$C538=\"Enroll\",'Enrollment Form'!$AK538<>\"\"),\"Y\",\"N\")))","v":""},{"$f":"IF($B531=\"N\",\"\",IF(OR('Enrollment Form'!$B538<>\"Subscriber\",'Enrollment Form'!$C538=\"ROC\"),\"-\",IF(AND('Enrollment Form'!$B538=\"Subscriber\",'Enrollment Form'!$C538=\"Enroll\",'Enrollment Form'!$AL538<>\"\"),\"Y\",\"N\")))","v":""},{"$f":"IF($B531=\"N\",\"\",IF(OR('Enrollment Form'!$B538<>\"Subscriber\",'Enrollment Form'!$C538=\"ROC\"),\"-\",IF(AND('Enrollment Form'!$B538=\"Subscriber\",'Enrollment Form'!$C538=\"Enroll\",'Enrollment Form'!$AM538<>\"\"),\"Y\",\"N\")))","v":""},{"$f":"IF($B531=\"N\",\"\",IF(OR('Enrollment Form'!$B538<>\"Subscriber\",'Enrollment Form'!$C538=\"ROC\"),\"-\",IF(AND('Enrollment Form'!$B538=\"Subscriber\",'Enrollment Form'!$C538=\"Enroll\",'Enrollment Form'!$AN538<>\"\"),\"Y\",\"N\")))","v":""},{"$f":"IF($B531=\"N\",\"\",IF(OR('Enrollment Form'!$B538<>\"Subscriber\",'Enrollment Form'!$C538=\"ROC\"),\"-\",IF(AND('Enrollment Form'!$B538=\"Subscriber\",'Enrollment Form'!$C538=\"Enroll\",'Enrollment Form'!$AP538<>\"\"),\"Y\",\"N\")))","v":""},{"$f":"IF($B531=\"N\",\"\",IF($Q531=\"-\",\"-\",IF(AND($Q531=\"Y\",'Enrollment Form'!$AP538=\"No\"),\"-\",IF(AND($Q531=\"Y\",'Enrollment Form'!$AP538=\"Yes\",'Enrollment Form'!$AQ538<>\"\"),\"Y\",\"N\"))))","v":""},{"$f":"IF($B531=\"N\",\"\",IF(OR('Enrollment Form'!$B538<>\"Subscriber\",'Enrollment Form'!$C538=\"ROC\"),\"-\",IF(AND('Enrollment Form'!$B538=\"Subscriber\",'Enrollment Form'!$C538=\"Enroll\",'Enrollment Form'!$CO538<>\"\"),\"Y\",\"N\")))","v":""},{"$f":"IF($B531=\"N\",\"\",IF($S531=\"-\",\"-\",IF(AND($S531=\"Y\",'Enrollment Form'!$CO538=\"No\"),\"-\",IF(AND($S531=\"Y\",'Enrollment Form'!$CO538=\"Yes\",'Enrollment Form'!$CP538<>\"\"),\"Y\",\"N\"))))","v":""},{"$f":"IF(OR('Enrollment Form'!$AV538=\"Yes\",'Enrollment Form'!$AV538=\"\"),\"-\",IF(AND('Enrollment Form'!$AV538=\"No\",ISERROR(FIND(\"HMO\",VLOOKUP('Enrollment Form'!G538,'Enrollment Form'!H$11:J$1000,3,FALSE),1))=FALSE,COUNTA('Enrollment Form'!$AW538:$AZ538)=4),\"Y\",\"N\"))","v":"-"},{"$f":"IF($B531=\"N\",\"\",IF('Enrollment Form'!$B538=\"Subscriber\",\"-\",IF(COUNTA('Enrollment Form'!$BE538,'Enrollment Form'!$BG538)=2,\"Y\",\"N\")))","v":""},{"$f":"IF($B531=\"N\",\"\",IF(OR('Enrollment Form'!$AU538=\"\",'Enrollment Form'!$AU538=\"No\"),\"-\",IF(AND('Enrollment Form'!$AU538=\"Yes\",COUNTA('Enrollment Form'!$CK538)=1),\"Y\",\"N\")))","v":""},{"$f":"IF(OR('Enrollment Form'!$CK538=\"\",'Enrollment Form'!$CK538=\"No\"),\"-\",IF(COUNTA('Enrollment Form'!$CM538:$CN538)=2,\"Y\",\"N\"))","v":"-"},{"$f":"IF($B531=\"N\",\"\",IF(COUNTIF('Enrollment Form'!$CZ538:$DO538,\"Other\")=COUNTA('Enrollment Form'!$DF538,'Enrollment Form'!$DA538,'Enrollment Form'!$DK538,'Enrollment Form'!$DP538),\"Y\",\"N\"))","v":""},{"$f":"IF($B531=\"N\",\"\",IF(OR('Enrollment Form'!B538<>\"Subscriber\",'Enrollment Form'!C538=\"ROC\",COUNTIF('Enrollment Form'!AS538:AT538,\"Yes\")>=1),\"-\",IF(AND('Enrollment Form'!C538=\"Enroll\",COUNTIF('Enrollment Form'!AS538:AT538,\"No\")=2,'Enrollment Form'!AU538=\"\"),\"N\",\"Y\")))","v":""},{"$f":"IF(OR(B531=\"N\",'Enrollment Form'!B538<>\"Subscriber\",'Enrollment Form'!C538=\"ROC\",'Enrollment Form'!O538<>\"Multiple of Salary\"),\"-\",IF(COUNTA('Enrollment Form'!T538:U538)<2,\"N\",\"Y\"))","v":"-"},{"$f":"IF(B531=\"N\",\"\",IF(OR('Enrollment Form'!C538=\"ROC\",'Enrollment Form'!B538<>\"Subscriber\",'Enrollment Form'!O538=\"Waive\",'Enrollment Form'!O538=\"\"),\"-\",IF('Enrollment Form'!P538=\"\",\"N\",\"Y\")))","v":""},{"$f":"IF($B531=\"N\",\"\",IF(AND('Enrollment Form'!$C538=\"ROC\",'Enrollment Form'!$DS538<>\"\"),\"Y\",IF(AND('Enrollment Form'!$C538=\"ROC\",'Enrollment Form'!$DS538=\"\"),\"N\",IF(AND('Enrollment Form'!$C538=\"Enroll\",'Enrollment Form'!$B538=\"Subscriber\",'Enrollment Form'!$CQ538=\"No\",'Enrollment Form'!$DS538=\"\"),\"N\",IF(AND('Enrollment Form'!$C538=\"Enroll\",'Enrollment Form'!$B538=\"Subscriber\",'Enrollment Form'!$CQ538=\"Yes\"),\"-\",\"Y\")))))","v":""},{"$f":"IF($B531=\"N\",\"\",IF(AND('Enrollment Form'!$C538=\"ROC\",'Enrollment Form'!$DT538<>\"\"),\"Y\",IF(AND('Enrollment Form'!$C538=\"ROC\",'Enrollment Form'!$DT538=\"\"),\"N\",IF(AND('Enrollment Form'!$C538=\"Enroll\",'Enrollment Form'!$B538=\"Subscriber\",'Enrollment Form'!$CQ538=\"No\",'Enrollment Form'!$DT538=\"\"),\"N\",IF(AND('Enrollment Form'!$C538=\"Enroll\",'Enrollment Form'!$B538=\"Subscriber\",'Enrollment Form'!$CQ538=\"Yes\"),\"-\",\"Y\")))))","v":""},{"$f":"IF('Enrollment Form'!AH538=\"\",\"\",IF(ISERROR(SEARCH(\".\",'Enrollment Form'!AH538,SEARCH(\"@\",'Enrollment Form'!AH538))),\"N\",\"Y\"))","v":""},{"$f":"IF(OR($B531=\"N\",'Enrollment Form'!$G538=\"\"),\"\",IF('Enrollment Form'!$B538<>\"Subscriber\",\"-\",IF(COUNTIF('Enrollment Form'!$AS538:$AT538,\"Yes\")=2,\"N\",\"Y\")))","v":""},{"$f":"IF(OR('Enrollment Form'!$CC538=\"\",'Enrollment Form'!$CC538=\"No\"),\"-\",IF(AND('Enrollment Form'!$CC538=\"Yes\",'Enrollment Form'!$CD538=\"\"),\"N\",\"Y\"))","v":"-"},{"$f":"IF(OR('Enrollment Form'!$CE538=\"\",'Enrollment Form'!$CE538=\"No\"),\"-\",IF(AND('Enrollment Form'!$CE538=\"Yes\",'Enrollment Form'!$CF538=\"\"),\"N\",\"Y\"))","v":"-"},{"$f":"IF(OR('Enrollment Form'!$CG538=\"\",'Enrollment Form'!$CG538=\"No\"),\"-\",IF(AND('Enrollment Form'!$CG538=\"Yes\",'Enrollment Form'!$CH538=\"\"),\"N\",\"Y\"))","v":"-"},{"$f":"IF(OR('Enrollment Form'!$CG538=\"\",'Enrollment Form'!$CG538=\"No\"),\"-\",IF(AND('Enrollment Form'!$CG538=\"Yes\",'Enrollment Form'!$CI538=\"\"),\"N\",\"Y\"))","v":"-"},{"$f":"IF('Enrollment Form'!B538<>\"Subscriber\",\"-\",IF(AND('Enrollment Form'!B538=\"Subscriber\",'Enrollment Form'!C538=\"Enroll\",'Enrollment Form'!AA538=\"\"),\"N\",\"Y\"))","v":"-"},{"$f":"IF(OR('Enrollment Form'!B538=\"Subscriber\",'Enrollment Form'!B538=\"\"),\"-\",IF('Enrollment Form'!BI538=\"\",\"N\",\"Y\"))","v":"-"},{"$f":"IF('Enrollment Form'!B538<>\"Subscriber\",\"-\",IF(AND('Enrollment Form'!B538=\"Subscriber\",'Enrollment Form'!G538=\"\"),\"N\",\"Y\"))","v":"-"},{"$f":"IF('Enrollment Form'!A538=\"\",\"\",IF('Enrollment Form'!B538=\"Subscriber\",\"-\",IF(AND('Enrollment Form'!B538<>\"Subscriber\",'Enrollment Form'!G538='Enrollment Form'!H538),\"N\",\"Y\")))","v":""},0]
[539,{"$f":"IF('Enrollment Form'!$A539<>\"\",\"Y\",\"N\")","v":"N"},{"$f":"IF(AND('Enrollment Form'!$B539=\"\",'Enrollment Form'!$C539<>\"\"),\"N\",IF($B532=\"N\",\"\",\"Y\"))","v":""},{"$f":"IF(OR($B532=\"N\",'Enrollment Form'!G539=\"\"),\"\",IF('Enrollment Form'!$B539<>\"Subscriber\",\"\",IF('Enrollment Form'!$G539='Enrollment Form'!$H539,\"Y\",\"N\")))","v":""},{"$f":"IF($B532=\"N\",\"\",IF(AND(COUNTIFS('Enrollment Form'!$H$11:$H$1000,'Enrollment Form'!$H539,'Enrollment Form'!$B$11:$B$1000,'Enrollment Form'!$B539)>1,'Enrollment Form'!$H539<>\"\"),\"N\",\"Y\"))","v":""},{"$f":"IF($B532=\"N\",\"\",IF(LEN('Enrollment Form'!$Y539)=0,\"\",IF(LEN('Enrollment Form'!$Y539)<>5,\"N\",\"Y\")))","v":""},{"$f":"IF($B532=\"N\",\"\",IF(LEN('Enrollment Form'!$AD539=0),\"\",IF(LEN('Enrollment Form'!$AD539)<>5,\"N\",\"Y\")))","v":""},{"$f":"IF($B532=\"N\",\"\",IF(LEN('Enrollment Form'!$BL539=0),\"\",IF(LEN('Enrollment Form'!$BL539)<>5,\"N\",\"Y\")))","v":""},{"$f":"IF($B532=\"N\",\"\",IF(LEN('Enrollment Form'!$AE539)=0,\"\",IF(LEN('Enrollment Form'!$AE539)<>10,\"N\",\"Y\")))","v":""},{"$f":"IF($B532=\"N\",\"\",IF(LEN('Enrollment Form'!$AF539)=0,\"\",IF(LEN('Enrollment Form'!$AF539)<>10,\"N\",\"Y\")))","v":""},{"$f":"IF('Enrollment Form'!$O539<>\"Graded\",\"-\",IF(AND('Enrollment Form'!$O539=\"Graded\",'Enrollment Form'!$AO539<>\"\"),\"Y\",\"N\"))","v":"-"},{"$f":"IF($B532=\"N\",\"\",IF(OR('Enrollment Form'!$B539<>\"Subscriber\",'Enrollment Form'!$C539=\"ROC\"),\"-\",IF(AND('Enrollment Form'!$B539=\"Subscriber\",'Enrollment Form'!$C539=\"Enroll\",'Enrollment Form'!$AJ539<>\"\"),\"Y\",\"N\")))","v":""},{"$f":"IF($B532=\"N\",\"\",IF(OR('Enrollment Form'!$B539<>\"Subscriber\",'Enrollment Form'!$C539=\"ROC\"),\"-\",IF(AND('Enrollment Form'!$B539=\"Subscriber\",'Enrollment Form'!$C539=\"Enroll\",'Enrollment Form'!$AK539<>\"\"),\"Y\",\"N\")))","v":""},{"$f":"IF($B532=\"N\",\"\",IF(OR('Enrollment Form'!$B539<>\"Subscriber\",'Enrollment Form'!$C539=\"ROC\"),\"-\",IF(AND('Enrollment Form'!$B539=\"Subscriber\",'Enrollment Form'!$C539=\"Enroll\",'Enrollment Form'!$AL539<>\"\"),\"Y\",\"N\")))","v":""},{"$f":"IF($B532=\"N\",\"\",IF(OR('Enrollment Form'!$B539<>\"Subscriber\",'Enrollment Form'!$C539=\"ROC\"),\"-\",IF(AND('Enrollment Form'!$B539=\"Subscriber\",'Enrollment Form'!$C539=\"Enroll\",'Enrollment Form'!$AM539<>\"\"),\"Y\",\"N\")))","v":""},{"$f":"IF($B532=\"N\",\"\",IF(OR('Enrollment Form'!$B539<>\"Subscriber\",'Enrollment Form'!$C539=\"ROC\"),\"-\",IF(AND('Enrollment Form'!$B539=\"Subscriber\",'Enrollment Form'!$C539=\"Enroll\",'Enrollment Form'!$AN539<>\"\"),\"Y\",\"N\")))","v":""},{"$f":"IF($B532=\"N\",\"\",IF(OR('Enrollment Form'!$B539<>\"Subscriber\",'Enrollment Form'!$C539=\"ROC\"),\"-\",IF(AND('Enrollment Form'!$B539=\"Subscriber\",'Enrollment Form'!$C539=\"Enroll\",'Enrollment Form'!$AP539<>\"\"),\"Y\",\"N\")))","v":""},{"$f":"IF($B532=\"N\",\"\",IF($Q532=\"-\",\"-\",IF(AND($Q532=\"Y\",'Enrollment Form'!$AP539=\"No\"),\"-\",IF(AND($Q532=\"Y\",'Enrollment Form'!$AP539=\"Yes\",'Enrollment Form'!$AQ539<>\"\"),\"Y\",\"N\"))))","v":""},{"$f":"IF($B532=\"N\",\"\",IF(OR('Enrollment Form'!$B539<>\"Subscriber\",'Enrollment Form'!$C539=\"ROC\"),\"-\",IF(AND('Enrollment Form'!$B539=\"Subscriber\",'Enrollment Form'!$C539=\"Enroll\",'Enrollment Form'!$CO539<>\"\"),\"Y\",\"N\")))","v":""},{"$f":"IF($B532=\"N\",\"\",IF($S532=\"-\",\"-\",IF(AND($S532=\"Y\",'Enrollment Form'!$CO539=\"No\"),\"-\",IF(AND($S532=\"Y\",'Enrollment Form'!$CO539=\"Yes\",'Enrollment Form'!$CP539<>\"\"),\"Y\",\"N\"))))","v":""},{"$f":"IF(OR('Enrollment Form'!$AV539=\"Yes\",'Enrollment Form'!$AV539=\"\"),\"-\",IF(AND('Enrollment Form'!$AV539=\"No\",ISERROR(FIND(\"HMO\",VLOOKUP('Enrollment Form'!G539,'Enrollment Form'!H$11:J$1000,3,FALSE),1))=FALSE,COUNTA('Enrollment Form'!$AW539:$AZ539)=4),\"Y\",\"N\"))","v":"-"},{"$f":"IF($B532=\"N\",\"\",IF('Enrollment Form'!$B539=\"Subscriber\",\"-\",IF(COUNTA('Enrollment Form'!$BE539,'Enrollment Form'!$BG539)=2,\"Y\",\"N\")))","v":""},{"$f":"IF($B532=\"N\",\"\",IF(OR('Enrollment Form'!$AU539=\"\",'Enrollment Form'!$AU539=\"No\"),\"-\",IF(AND('Enrollment Form'!$AU539=\"Yes\",COUNTA('Enrollment Form'!$CK539)=1),\"Y\",\"N\")))","v":""},{"$f":"IF(OR('Enrollment Form'!$CK539=\"\",'Enrollment Form'!$CK539=\"No\"),\"-\",IF(COUNTA('Enrollment Form'!$CM539:$CN539)=2,\"Y\",\"N\"))","v":"-"},{"$f":"IF($B532=\"N\",\"\",IF(COUNTIF('Enrollment Form'!$CZ539:$DO539,\"Other\")=COUNTA('Enrollment Form'!$DF539,'Enrollment Form'!$DA539,'Enrollment Form'!$DK539,'Enrollment Form'!$DP539),\"Y\",\"N\"))","v":""},{"$f":"IF($B532=\"N\",\"\",IF(OR('Enrollment Form'!B539<>\"Subscriber\",'Enrollment Form'!C539=\"ROC\",COUNTIF('Enrollment Form'!AS539:AT539,\"Yes\")>=1),\"-\",IF(AND('Enrollment Form'!C539=\"Enroll\",COUNTIF('Enrollment Form'!AS539:AT539,\"No\")=2,'Enrollment Form'!AU539=\"\"),\"N\",\"Y\")))","v":""},{"$f":"IF(OR(B532=\"N\",'Enrollment Form'!B539<>\"Subscriber\",'Enrollment Form'!C539=\"ROC\",'Enrollment Form'!O539<>\"Multiple of Salary\"),\"-\",IF(COUNTA('Enrollment Form'!T539:U539)<2,\"N\",\"Y\"))","v":"-"},{"$f":"IF(B532=\"N\",\"\",IF(OR('Enrollment Form'!C539=\"ROC\",'Enrollment Form'!B539<>\"Subscriber\",'Enrollment Form'!O539=\"Waive\",'Enrollment Form'!O539=\"\"),\"-\",IF('Enrollment Form'!P539=\"\",\"N\",\"Y\")))","v":""},{"$f":"IF($B532=\"N\",\"\",IF(AND('Enrollment Form'!$C539=\"ROC\",'Enrollment Form'!$DS539<>\"\"),\"Y\",IF(AND('Enrollment Form'!$C539=\"ROC\",'Enrollment Form'!$DS539=\"\"),\"N\",IF(AND('Enrollment Form'!$C539=\"Enroll\",'Enrollment Form'!$B539=\"Subscriber\",'Enrollment Form'!$CQ539=\"No\",'Enrollment Form'!$DS539=\"\"),\"N\",IF(AND('Enrollment Form'!$C539=\"Enroll\",'Enrollment Form'!$B539=\"Subscriber\",'Enrollment Form'!$CQ539=\"Yes\"),\"-\",\"Y\")))))","v":""},{"$f":"IF($B532=\"N\",\"\",IF(AND('Enrollment Form'!$C539=\"ROC\",'Enrollment Form'!$DT539<>\"\"),\"Y\",IF(AND('Enrollment Form'!$C539=\"ROC\",'Enrollment Form'!$DT539=\"\"),\"N\",IF(AND('Enrollment Form'!$C539=\"Enroll\",'Enrollment Form'!$B539=\"Subscriber\",'Enrollment Form'!$CQ539=\"No\",'Enrollment Form'!$DT539=\"\"),\"N\",IF(AND('Enrollment Form'!$C539=\"Enroll\",'Enrollment Form'!$B539=\"Subscriber\",'Enrollment Form'!$CQ539=\"Yes\"),\"-\",\"Y\")))))","v":""},{"$f":"IF('Enrollment Form'!AH539=\"\",\"\",IF(ISERROR(SEARCH(\".\",'Enrollment Form'!AH539,SEARCH(\"@\",'Enrollment Form'!AH539))),\"N\",\"Y\"))","v":""},{"$f":"IF(OR($B532=\"N\",'Enrollment Form'!$G539=\"\"),\"\",IF('Enrollment Form'!$B539<>\"Subscriber\",\"-\",IF(COUNTIF('Enrollment Form'!$AS539:$AT539,\"Yes\")=2,\"N\",\"Y\")))","v":""},{"$f":"IF(OR('Enrollment Form'!$CC539=\"\",'Enrollment Form'!$CC539=\"No\"),\"-\",IF(AND('Enrollment Form'!$CC539=\"Yes\",'Enrollment Form'!$CD539=\"\"),\"N\",\"Y\"))","v":"-"},{"$f":"IF(OR('Enrollment Form'!$CE539=\"\",'Enrollment Form'!$CE539=\"No\"),\"-\",IF(AND('Enrollment Form'!$CE539=\"Yes\",'Enrollment Form'!$CF539=\"\"),\"N\",\"Y\"))","v":"-"},{"$f":"IF(OR('Enrollment Form'!$CG539=\"\",'Enrollment Form'!$CG539=\"No\"),\"-\",IF(AND('Enrollment Form'!$CG539=\"Yes\",'Enrollment Form'!$CH539=\"\"),\"N\",\"Y\"))","v":"-"},{"$f":"IF(OR('Enrollment Form'!$CG539=\"\",'Enrollment Form'!$CG539=\"No\"),\"-\",IF(AND('Enrollment Form'!$CG539=\"Yes\",'Enrollment Form'!$CI539=\"\"),\"N\",\"Y\"))","v":"-"},{"$f":"IF('Enrollment Form'!B539<>\"Subscriber\",\"-\",IF(AND('Enrollment Form'!B539=\"Subscriber\",'Enrollment Form'!C539=\"Enroll\",'Enrollment Form'!AA539=\"\"),\"N\",\"Y\"))","v":"-"},{"$f":"IF(OR('Enrollment Form'!B539=\"Subscriber\",'Enrollment Form'!B539=\"\"),\"-\",IF('Enrollment Form'!BI539=\"\",\"N\",\"Y\"))","v":"-"},{"$f":"IF('Enrollment Form'!B539<>\"Subscriber\",\"-\",IF(AND('Enrollment Form'!B539=\"Subscriber\",'Enrollment Form'!G539=\"\"),\"N\",\"Y\"))","v":"-"},{"$f":"IF('Enrollment Form'!A539=\"\",\"\",IF('Enrollment Form'!B539=\"Subscriber\",\"-\",IF(AND('Enrollment Form'!B539<>\"Subscriber\",'Enrollment Form'!G539='Enrollment Form'!H539),\"N\",\"Y\")))","v":""},0]
[540,{"$f":"IF('Enrollment Form'!$A540<>\"\",\"Y\",\"N\")","v":"N"},{"$f":"IF(AND('Enrollment Form'!$B540=\"\",'Enrollment Form'!$C540<>\"\"),\"N\",IF($B533=\"N\",\"\",\"Y\"))","v":""},{"$f":"IF(OR($B533=\"N\",'Enrollment Form'!G540=\"\"),\"\",IF('Enrollment Form'!$B540<>\"Subscriber\",\"\",IF('Enrollment Form'!$G540='Enrollment Form'!$H540,\"Y\",\"N\")))","v":""},{"$f":"IF($B533=\"N\",\"\",IF(AND(COUNTIFS('Enrollment Form'!$H$11:$H$1000,'Enrollment Form'!$H540,'Enrollment Form'!$B$11:$B$1000,'Enrollment Form'!$B540)>1,'Enrollment Form'!$H540<>\"\"),\"N\",\"Y\"))","v":""},{"$f":"IF($B533=\"N\",\"\",IF(LEN('Enrollment Form'!$Y540)=0,\"\",IF(LEN('Enrollment Form'!$Y540)<>5,\"N\",\"Y\")))","v":""},{"$f":"IF($B533=\"N\",\"\",IF(LEN('Enrollment Form'!$AD540=0),\"\",IF(LEN('Enrollment Form'!$AD540)<>5,\"N\",\"Y\")))","v":""},{"$f":"IF($B533=\"N\",\"\",IF(LEN('Enrollment Form'!$BL540=0),\"\",IF(LEN('Enrollment Form'!$BL540)<>5,\"N\",\"Y\")))","v":""},{"$f":"IF($B533=\"N\",\"\",IF(LEN('Enrollment Form'!$AE540)=0,\"\",IF(LEN('Enrollment Form'!$AE540)<>10,\"N\",\"Y\")))","v":""},{"$f":"IF($B533=\"N\",\"\",IF(LEN('Enrollment Form'!$AF540)=0,\"\",IF(LEN('Enrollment Form'!$AF540)<>10,\"N\",\"Y\")))","v":""},{"$f":"IF('Enrollment Form'!$O540<>\"Graded\",\"-\",IF(AND('Enrollment Form'!$O540=\"Graded\",'Enrollment Form'!$AO540<>\"\"),\"Y\",\"N\"))","v":"-"},{"$f":"IF($B533=\"N\",\"\",IF(OR('Enrollment Form'!$B540<>\"Subscriber\",'Enrollment Form'!$C540=\"ROC\"),\"-\",IF(AND('Enrollment Form'!$B540=\"Subscriber\",'Enrollment Form'!$C540=\"Enroll\",'Enrollment Form'!$AJ540<>\"\"),\"Y\",\"N\")))","v":""},{"$f":"IF($B533=\"N\",\"\",IF(OR('Enrollment Form'!$B540<>\"Subscriber\",'Enrollment Form'!$C540=\"ROC\"),\"-\",IF(AND('Enrollment Form'!$B540=\"Subscriber\",'Enrollment Form'!$C540=\"Enroll\",'Enrollment Form'!$AK540<>\"\"),\"Y\",\"N\")))","v":""},{"$f":"IF($B533=\"N\",\"\",IF(OR('Enrollment Form'!$B540<>\"Subscriber\",'Enrollment Form'!$C540=\"ROC\"),\"-\",IF(AND('Enrollment Form'!$B540=\"Subscriber\",'Enrollment Form'!$C540=\"Enroll\",'Enrollment Form'!$AL540<>\"\"),\"Y\",\"N\")))","v":""},{"$f":"IF($B533=\"N\",\"\",IF(OR('Enrollment Form'!$B540<>\"Subscriber\",'Enrollment Form'!$C540=\"ROC\"),\"-\",IF(AND('Enrollment Form'!$B540=\"Subscriber\",'Enrollment Form'!$C540=\"Enroll\",'Enrollment Form'!$AM540<>\"\"),\"Y\",\"N\")))","v":""},{"$f":"IF($B533=\"N\",\"\",IF(OR('Enrollment Form'!$B540<>\"Subscriber\",'Enrollment Form'!$C540=\"ROC\"),\"-\",IF(AND('Enrollment Form'!$B540=\"Subscriber\",'Enrollment Form'!$C540=\"Enroll\",'Enrollment Form'!$AN540<>\"\"),\"Y\",\"N\")))","v":""},{"$f":"IF($B533=\"N\",\"\",IF(OR('Enrollment Form'!$B540<>\"Subscriber\",'Enrollment Form'!$C540=\"ROC\"),\"-\",IF(AND('Enrollment Form'!$B540=\"Subscriber\",'Enrollment Form'!$C540=\"Enroll\",'Enrollment Form'!$AP540<>\"\"),\"Y\",\"N\")))","v":""},{"$f":"IF($B533=\"N\",\"\",IF($Q533=\"-\",\"-\",IF(AND($Q533=\"Y\",'Enrollment Form'!$AP540=\"No\"),\"-\",IF(AND($Q533=\"Y\",'Enrollment Form'!$AP540=\"Yes\",'Enrollment Form'!$AQ540<>\"\"),\"Y\",\"N\"))))","v":""},{"$f":"IF($B533=\"N\",\"\",IF(OR('Enrollment Form'!$B540<>\"Subscriber\",'Enrollment Form'!$C540=\"ROC\"),\"-\",IF(AND('Enrollment Form'!$B540=\"Subscriber\",'Enrollment Form'!$C540=\"Enroll\",'Enrollment Form'!$CO540<>\"\"),\"Y\",\"N\")))","v":""},{"$f":"IF($B533=\"N\",\"\",IF($S533=\"-\",\"-\",IF(AND($S533=\"Y\",'Enrollment Form'!$CO540=\"No\"),\"-\",IF(AND($S533=\"Y\",'Enrollment Form'!$CO540=\"Yes\",'Enrollment Form'!$CP540<>\"\"),\"Y\",\"N\"))))","v":""},{"$f":"IF(OR('Enrollment Form'!$AV540=\"Yes\",'Enrollment Form'!$AV540=\"\"),\"-\",IF(AND('Enrollment Form'!$AV540=\"No\",ISERROR(FIND(\"HMO\",VLOOKUP('Enrollment Form'!G540,'Enrollment Form'!H$11:J$1000,3,FALSE),1))=FALSE,COUNTA('Enrollment Form'!$AW540:$AZ540)=4),\"Y\",\"N\"))","v":"-"},{"$f":"IF($B533=\"N\",\"\",IF('Enrollment Form'!$B540=\"Subscriber\",\"-\",IF(COUNTA('Enrollment Form'!$BE540,'Enrollment Form'!$BG540)=2,\"Y\",\"N\")))","v":""},{"$f":"IF($B533=\"N\",\"\",IF(OR('Enrollment Form'!$AU540=\"\",'Enrollment Form'!$AU540=\"No\"),\"-\",IF(AND('Enrollment Form'!$AU540=\"Yes\",COUNTA('Enrollment Form'!$CK540)=1),\"Y\",\"N\")))","v":""},{"$f":"IF(OR('Enrollment Form'!$CK540=\"\",'Enrollment Form'!$CK540=\"No\"),\"-\",IF(COUNTA('Enrollment Form'!$CM540:$CN540)=2,\"Y\",\"N\"))","v":"-"},{"$f":"IF($B533=\"N\",\"\",IF(COUNTIF('Enrollment Form'!$CZ540:$DO540,\"Other\")=COUNTA('Enrollment Form'!$DF540,'Enrollment Form'!$DA540,'Enrollment Form'!$DK540,'Enrollment Form'!$DP540),\"Y\",\"N\"))","v":""},{"$f":"IF($B533=\"N\",\"\",IF(OR('Enrollment Form'!B540<>\"Subscriber\",'Enrollment Form'!C540=\"ROC\",COUNTIF('Enrollment Form'!AS540:AT540,\"Yes\")>=1),\"-\",IF(AND('Enrollment Form'!C540=\"Enroll\",COUNTIF('Enrollment Form'!AS540:AT540,\"No\")=2,'Enrollment Form'!AU540=\"\"),\"N\",\"Y\")))","v":""},{"$f":"IF(OR(B533=\"N\",'Enrollment Form'!B540<>\"Subscriber\",'Enrollment Form'!C540=\"ROC\",'Enrollment Form'!O540<>\"Multiple of Salary\"),\"-\",IF(COUNTA('Enrollment Form'!T540:U540)<2,\"N\",\"Y\"))","v":"-"},{"$f":"IF(B533=\"N\",\"\",IF(OR('Enrollment Form'!C540=\"ROC\",'Enrollment Form'!B540<>\"Subscriber\",'Enrollment Form'!O540=\"Waive\",'Enrollment Form'!O540=\"\"),\"-\",IF('Enrollment Form'!P540=\"\",\"N\",\"Y\")))","v":""},{"$f":"IF($B533=\"N\",\"\",IF(AND('Enrollment Form'!$C540=\"ROC\",'Enrollment Form'!$DS540<>\"\"),\"Y\",IF(AND('Enrollment Form'!$C540=\"ROC\",'Enrollment Form'!$DS540=\"\"),\"N\",IF(AND('Enrollment Form'!$C540=\"Enroll\",'Enrollment Form'!$B540=\"Subscriber\",'Enrollment Form'!$CQ540=\"No\",'Enrollment Form'!$DS540=\"\"),\"N\",IF(AND('Enrollment Form'!$C540=\"Enroll\",'Enrollment Form'!$B540=\"Subscriber\",'Enrollment Form'!$CQ540=\"Yes\"),\"-\",\"Y\")))))","v":""},{"$f":"IF($B533=\"N\",\"\",IF(AND('Enrollment Form'!$C540=\"ROC\",'Enrollment Form'!$DT540<>\"\"),\"Y\",IF(AND('Enrollment Form'!$C540=\"ROC\",'Enrollment Form'!$DT540=\"\"),\"N\",IF(AND('Enrollment Form'!$C540=\"Enroll\",'Enrollment Form'!$B540=\"Subscriber\",'Enrollment Form'!$CQ540=\"No\",'Enrollment Form'!$DT540=\"\"),\"N\",IF(AND('Enrollment Form'!$C540=\"Enroll\",'Enrollment Form'!$B540=\"Subscriber\",'Enrollment Form'!$CQ540=\"Yes\"),\"-\",\"Y\")))))","v":""},{"$f":"IF('Enrollment Form'!AH540=\"\",\"\",IF(ISERROR(SEARCH(\".\",'Enrollment Form'!AH540,SEARCH(\"@\",'Enrollment Form'!AH540))),\"N\",\"Y\"))","v":""},{"$f":"IF(OR($B533=\"N\",'Enrollment Form'!$G540=\"\"),\"\",IF('Enrollment Form'!$B540<>\"Subscriber\",\"-\",IF(COUNTIF('Enrollment Form'!$AS540:$AT540,\"Yes\")=2,\"N\",\"Y\")))","v":""},{"$f":"IF(OR('Enrollment Form'!$CC540=\"\",'Enrollment Form'!$CC540=\"No\"),\"-\",IF(AND('Enrollment Form'!$CC540=\"Yes\",'Enrollment Form'!$CD540=\"\"),\"N\",\"Y\"))","v":"-"},{"$f":"IF(OR('Enrollment Form'!$CE540=\"\",'Enrollment Form'!$CE540=\"No\"),\"-\",IF(AND('Enrollment Form'!$CE540=\"Yes\",'Enrollment Form'!$CF540=\"\"),\"N\",\"Y\"))","v":"-"},{"$f":"IF(OR('Enrollment Form'!$CG540=\"\",'Enrollment Form'!$CG540=\"No\"),\"-\",IF(AND('Enrollment Form'!$CG540=\"Yes\",'Enrollment Form'!$CH540=\"\"),\"N\",\"Y\"))","v":"-"},{"$f":"IF(OR('Enrollment Form'!$CG540=\"\",'Enrollment Form'!$CG540=\"No\"),\"-\",IF(AND('Enrollment Form'!$CG540=\"Yes\",'Enrollment Form'!$CI540=\"\"),\"N\",\"Y\"))","v":"-"},{"$f":"IF('Enrollment Form'!B540<>\"Subscriber\",\"-\",IF(AND('Enrollment Form'!B540=\"Subscriber\",'Enrollment Form'!C540=\"Enroll\",'Enrollment Form'!AA540=\"\"),\"N\",\"Y\"))","v":"-"},{"$f":"IF(OR('Enrollment Form'!B540=\"Subscriber\",'Enrollment Form'!B540=\"\"),\"-\",IF('Enrollment Form'!BI540=\"\",\"N\",\"Y\"))","v":"-"},{"$f":"IF('Enrollment Form'!B540<>\"Subscriber\",\"-\",IF(AND('Enrollment Form'!B540=\"Subscriber\",'Enrollment Form'!G540=\"\"),\"N\",\"Y\"))","v":"-"},{"$f":"IF('Enrollment Form'!A540=\"\",\"\",IF('Enrollment Form'!B540=\"Subscriber\",\"-\",IF(AND('Enrollment Form'!B540<>\"Subscriber\",'Enrollment Form'!G540='Enrollment Form'!H540),\"N\",\"Y\")))","v":""},0]
[541,{"$f":"IF('Enrollment Form'!$A541<>\"\",\"Y\",\"N\")","v":"N"},{"$f":"IF(AND('Enrollment Form'!$B541=\"\",'Enrollment Form'!$C541<>\"\"),\"N\",IF($B534=\"N\",\"\",\"Y\"))","v":""},{"$f":"IF(OR($B534=\"N\",'Enrollment Form'!G541=\"\"),\"\",IF('Enrollment Form'!$B541<>\"Subscriber\",\"\",IF('Enrollment Form'!$G541='Enrollment Form'!$H541,\"Y\",\"N\")))","v":""},{"$f":"IF($B534=\"N\",\"\",IF(AND(COUNTIFS('Enrollment Form'!$H$11:$H$1000,'Enrollment Form'!$H541,'Enrollment Form'!$B$11:$B$1000,'Enrollment Form'!$B541)>1,'Enrollment Form'!$H541<>\"\"),\"N\",\"Y\"))","v":""},{"$f":"IF($B534=\"N\",\"\",IF(LEN('Enrollment Form'!$Y541)=0,\"\",IF(LEN('Enrollment Form'!$Y541)<>5,\"N\",\"Y\")))","v":""},{"$f":"IF($B534=\"N\",\"\",IF(LEN('Enrollment Form'!$AD541=0),\"\",IF(LEN('Enrollment Form'!$AD541)<>5,\"N\",\"Y\")))","v":""},{"$f":"IF($B534=\"N\",\"\",IF(LEN('Enrollment Form'!$BL541=0),\"\",IF(LEN('Enrollment Form'!$BL541)<>5,\"N\",\"Y\")))","v":""},{"$f":"IF($B534=\"N\",\"\",IF(LEN('Enrollment Form'!$AE541)=0,\"\",IF(LEN('Enrollment Form'!$AE541)<>10,\"N\",\"Y\")))","v":""},{"$f":"IF($B534=\"N\",\"\",IF(LEN('Enrollment Form'!$AF541)=0,\"\",IF(LEN('Enrollment Form'!$AF541)<>10,\"N\",\"Y\")))","v":""},{"$f":"IF('Enrollment Form'!$O541<>\"Graded\",\"-\",IF(AND('Enrollment Form'!$O541=\"Graded\",'Enrollment Form'!$AO541<>\"\"),\"Y\",\"N\"))","v":"-"},{"$f":"IF($B534=\"N\",\"\",IF(OR('Enrollment Form'!$B541<>\"Subscriber\",'Enrollment Form'!$C541=\"ROC\"),\"-\",IF(AND('Enrollment Form'!$B541=\"Subscriber\",'Enrollment Form'!$C541=\"Enroll\",'Enrollment Form'!$AJ541<>\"\"),\"Y\",\"N\")))","v":""},{"$f":"IF($B534=\"N\",\"\",IF(OR('Enrollment Form'!$B541<>\"Subscriber\",'Enrollment Form'!$C541=\"ROC\"),\"-\",IF(AND('Enrollment Form'!$B541=\"Subscriber\",'Enrollment Form'!$C541=\"Enroll\",'Enrollment Form'!$AK541<>\"\"),\"Y\",\"N\")))","v":""},{"$f":"IF($B534=\"N\",\"\",IF(OR('Enrollment Form'!$B541<>\"Subscriber\",'Enrollment Form'!$C541=\"ROC\"),\"-\",IF(AND('Enrollment Form'!$B541=\"Subscriber\",'Enrollment Form'!$C541=\"Enroll\",'Enrollment Form'!$AL541<>\"\"),\"Y\",\"N\")))","v":""},{"$f":"IF($B534=\"N\",\"\",IF(OR('Enrollment Form'!$B541<>\"Subscriber\",'Enrollment Form'!$C541=\"ROC\"),\"-\",IF(AND('Enrollment Form'!$B541=\"Subscriber\",'Enrollment Form'!$C541=\"Enroll\",'Enrollment Form'!$AM541<>\"\"),\"Y\",\"N\")))","v":""},{"$f":"IF($B534=\"N\",\"\",IF(OR('Enrollment Form'!$B541<>\"Subscriber\",'Enrollment Form'!$C541=\"ROC\"),\"-\",IF(AND('Enrollment Form'!$B541=\"Subscriber\",'Enrollment Form'!$C541=\"Enroll\",'Enrollment Form'!$AN541<>\"\"),\"Y\",\"N\")))","v":""},{"$f":"IF($B534=\"N\",\"\",IF(OR('Enrollment Form'!$B541<>\"Subscriber\",'Enrollment Form'!$C541=\"ROC\"),\"-\",IF(AND('Enrollment Form'!$B541=\"Subscriber\",'Enrollment Form'!$C541=\"Enroll\",'Enrollment Form'!$AP541<>\"\"),\"Y\",\"N\")))","v":""},{"$f":"IF($B534=\"N\",\"\",IF($Q534=\"-\",\"-\",IF(AND($Q534=\"Y\",'Enrollment Form'!$AP541=\"No\"),\"-\",IF(AND($Q534=\"Y\",'Enrollment Form'!$AP541=\"Yes\",'Enrollment Form'!$AQ541<>\"\"),\"Y\",\"N\"))))","v":""},{"$f":"IF($B534=\"N\",\"\",IF(OR('Enrollment Form'!$B541<>\"Subscriber\",'Enrollment Form'!$C541=\"ROC\"),\"-\",IF(AND('Enrollment Form'!$B541=\"Subscriber\",'Enrollment Form'!$C541=\"Enroll\",'Enrollment Form'!$CO541<>\"\"),\"Y\",\"N\")))","v":""},{"$f":"IF($B534=\"N\",\"\",IF($S534=\"-\",\"-\",IF(AND($S534=\"Y\",'Enrollment Form'!$CO541=\"No\"),\"-\",IF(AND($S534=\"Y\",'Enrollment Form'!$CO541=\"Yes\",'Enrollment Form'!$CP541<>\"\"),\"Y\",\"N\"))))","v":""},{"$f":"IF(OR('Enrollment Form'!$AV541=\"Yes\",'Enrollment Form'!$AV541=\"\"),\"-\",IF(AND('Enrollment Form'!$AV541=\"No\",ISERROR(FIND(\"HMO\",VLOOKUP('Enrollment Form'!G541,'Enrollment Form'!H$11:J$1000,3,FALSE),1))=FALSE,COUNTA('Enrollment Form'!$AW541:$AZ541)=4),\"Y\",\"N\"))","v":"-"},{"$f":"IF($B534=\"N\",\"\",IF('Enrollment Form'!$B541=\"Subscriber\",\"-\",IF(COUNTA('Enrollment Form'!$BE541,'Enrollment Form'!$BG541)=2,\"Y\",\"N\")))","v":""},{"$f":"IF($B534=\"N\",\"\",IF(OR('Enrollment Form'!$AU541=\"\",'Enrollment Form'!$AU541=\"No\"),\"-\",IF(AND('Enrollment Form'!$AU541=\"Yes\",COUNTA('Enrollment Form'!$CK541)=1),\"Y\",\"N\")))","v":""},{"$f":"IF(OR('Enrollment Form'!$CK541=\"\",'Enrollment Form'!$CK541=\"No\"),\"-\",IF(COUNTA('Enrollment Form'!$CM541:$CN541)=2,\"Y\",\"N\"))","v":"-"},{"$f":"IF($B534=\"N\",\"\",IF(COUNTIF('Enrollment Form'!$CZ541:$DO541,\"Other\")=COUNTA('Enrollment Form'!$DF541,'Enrollment Form'!$DA541,'Enrollment Form'!$DK541,'Enrollment Form'!$DP541),\"Y\",\"N\"))","v":""},{"$f":"IF($B534=\"N\",\"\",IF(OR('Enrollment Form'!B541<>\"Subscriber\",'Enrollment Form'!C541=\"ROC\",COUNTIF('Enrollment Form'!AS541:AT541,\"Yes\")>=1),\"-\",IF(AND('Enrollment Form'!C541=\"Enroll\",COUNTIF('Enrollment Form'!AS541:AT541,\"No\")=2,'Enrollment Form'!AU541=\"\"),\"N\",\"Y\")))","v":""},{"$f":"IF(OR(B534=\"N\",'Enrollment Form'!B541<>\"Subscriber\",'Enrollment Form'!C541=\"ROC\",'Enrollment Form'!O541<>\"Multiple of Salary\"),\"-\",IF(COUNTA('Enrollment Form'!T541:U541)<2,\"N\",\"Y\"))","v":"-"},{"$f":"IF(B534=\"N\",\"\",IF(OR('Enrollment Form'!C541=\"ROC\",'Enrollment Form'!B541<>\"Subscriber\",'Enrollment Form'!O541=\"Waive\",'Enrollment Form'!O541=\"\"),\"-\",IF('Enrollment Form'!P541=\"\",\"N\",\"Y\")))","v":""},{"$f":"IF($B534=\"N\",\"\",IF(AND('Enrollment Form'!$C541=\"ROC\",'Enrollment Form'!$DS541<>\"\"),\"Y\",IF(AND('Enrollment Form'!$C541=\"ROC\",'Enrollment Form'!$DS541=\"\"),\"N\",IF(AND('Enrollment Form'!$C541=\"Enroll\",'Enrollment Form'!$B541=\"Subscriber\",'Enrollment Form'!$CQ541=\"No\",'Enrollment Form'!$DS541=\"\"),\"N\",IF(AND('Enrollment Form'!$C541=\"Enroll\",'Enrollment Form'!$B541=\"Subscriber\",'Enrollment Form'!$CQ541=\"Yes\"),\"-\",\"Y\")))))","v":""},{"$f":"IF($B534=\"N\",\"\",IF(AND('Enrollment Form'!$C541=\"ROC\",'Enrollment Form'!$DT541<>\"\"),\"Y\",IF(AND('Enrollment Form'!$C541=\"ROC\",'Enrollment Form'!$DT541=\"\"),\"N\",IF(AND('Enrollment Form'!$C541=\"Enroll\",'Enrollment Form'!$B541=\"Subscriber\",'Enrollment Form'!$CQ541=\"No\",'Enrollment Form'!$DT541=\"\"),\"N\",IF(AND('Enrollment Form'!$C541=\"Enroll\",'Enrollment Form'!$B541=\"Subscriber\",'Enrollment Form'!$CQ541=\"Yes\"),\"-\",\"Y\")))))","v":""},{"$f":"IF('Enrollment Form'!AH541=\"\",\"\",IF(ISERROR(SEARCH(\".\",'Enrollment Form'!AH541,SEARCH(\"@\",'Enrollment Form'!AH541))),\"N\",\"Y\"))","v":""},{"$f":"IF(OR($B534=\"N\",'Enrollment Form'!$G541=\"\"),\"\",IF('Enrollment Form'!$B541<>\"Subscriber\",\"-\",IF(COUNTIF('Enrollment Form'!$AS541:$AT541,\"Yes\")=2,\"N\",\"Y\")))","v":""},{"$f":"IF(OR('Enrollment Form'!$CC541=\"\",'Enrollment Form'!$CC541=\"No\"),\"-\",IF(AND('Enrollment Form'!$CC541=\"Yes\",'Enrollment Form'!$CD541=\"\"),\"N\",\"Y\"))","v":"-"},{"$f":"IF(OR('Enrollment Form'!$CE541=\"\",'Enrollment Form'!$CE541=\"No\"),\"-\",IF(AND('Enrollment Form'!$CE541=\"Yes\",'Enrollment Form'!$CF541=\"\"),\"N\",\"Y\"))","v":"-"},{"$f":"IF(OR('Enrollment Form'!$CG541=\"\",'Enrollment Form'!$CG541=\"No\"),\"-\",IF(AND('Enrollment Form'!$CG541=\"Yes\",'Enrollment Form'!$CH541=\"\"),\"N\",\"Y\"))","v":"-"},{"$f":"IF(OR('Enrollment Form'!$CG541=\"\",'Enrollment Form'!$CG541=\"No\"),\"-\",IF(AND('Enrollment Form'!$CG541=\"Yes\",'Enrollment Form'!$CI541=\"\"),\"N\",\"Y\"))","v":"-"},{"$f":"IF('Enrollment Form'!B541<>\"Subscriber\",\"-\",IF(AND('Enrollment Form'!B541=\"Subscriber\",'Enrollment Form'!C541=\"Enroll\",'Enrollment Form'!AA541=\"\"),\"N\",\"Y\"))","v":"-"},{"$f":"IF(OR('Enrollment Form'!B541=\"Subscriber\",'Enrollment Form'!B541=\"\"),\"-\",IF('Enrollment Form'!BI541=\"\",\"N\",\"Y\"))","v":"-"},{"$f":"IF('Enrollment Form'!B541<>\"Subscriber\",\"-\",IF(AND('Enrollment Form'!B541=\"Subscriber\",'Enrollment Form'!G541=\"\"),\"N\",\"Y\"))","v":"-"},{"$f":"IF('Enrollment Form'!A541=\"\",\"\",IF('Enrollment Form'!B541=\"Subscriber\",\"-\",IF(AND('Enrollment Form'!B541<>\"Subscriber\",'Enrollment Form'!G541='Enrollment Form'!H541),\"N\",\"Y\")))","v":""},0]
[542,{"$f":"IF('Enrollment Form'!$A542<>\"\",\"Y\",\"N\")","v":"N"},{"$f":"IF(AND('Enrollment Form'!$B542=\"\",'Enrollment Form'!$C542<>\"\"),\"N\",IF($B535=\"N\",\"\",\"Y\"))","v":""},{"$f":"IF(OR($B535=\"N\",'Enrollment Form'!G542=\"\"),\"\",IF('Enrollment Form'!$B542<>\"Subscriber\",\"\",IF('Enrollment Form'!$G542='Enrollment Form'!$H542,\"Y\",\"N\")))","v":""},{"$f":"IF($B535=\"N\",\"\",IF(AND(COUNTIFS('Enrollment Form'!$H$11:$H$1000,'Enrollment Form'!$H542,'Enrollment Form'!$B$11:$B$1000,'Enrollment Form'!$B542)>1,'Enrollment Form'!$H542<>\"\"),\"N\",\"Y\"))","v":""},{"$f":"IF($B535=\"N\",\"\",IF(LEN('Enrollment Form'!$Y542)=0,\"\",IF(LEN('Enrollment Form'!$Y542)<>5,\"N\",\"Y\")))","v":""},{"$f":"IF($B535=\"N\",\"\",IF(LEN('Enrollment Form'!$AD542=0),\"\",IF(LEN('Enrollment Form'!$AD542)<>5,\"N\",\"Y\")))","v":""},{"$f":"IF($B535=\"N\",\"\",IF(LEN('Enrollment Form'!$BL542=0),\"\",IF(LEN('Enrollment Form'!$BL542)<>5,\"N\",\"Y\")))","v":""},{"$f":"IF($B535=\"N\",\"\",IF(LEN('Enrollment Form'!$AE542)=0,\"\",IF(LEN('Enrollment Form'!$AE542)<>10,\"N\",\"Y\")))","v":""},{"$f":"IF($B535=\"N\",\"\",IF(LEN('Enrollment Form'!$AF542)=0,\"\",IF(LEN('Enrollment Form'!$AF542)<>10,\"N\",\"Y\")))","v":""},{"$f":"IF('Enrollment Form'!$O542<>\"Graded\",\"-\",IF(AND('Enrollment Form'!$O542=\"Graded\",'Enrollment Form'!$AO542<>\"\"),\"Y\",\"N\"))","v":"-"},{"$f":"IF($B535=\"N\",\"\",IF(OR('Enrollment Form'!$B542<>\"Subscriber\",'Enrollment Form'!$C542=\"ROC\"),\"-\",IF(AND('Enrollment Form'!$B542=\"Subscriber\",'Enrollment Form'!$C542=\"Enroll\",'Enrollment Form'!$AJ542<>\"\"),\"Y\",\"N\")))","v":""},{"$f":"IF($B535=\"N\",\"\",IF(OR('Enrollment Form'!$B542<>\"Subscriber\",'Enrollment Form'!$C542=\"ROC\"),\"-\",IF(AND('Enrollment Form'!$B542=\"Subscriber\",'Enrollment Form'!$C542=\"Enroll\",'Enrollment Form'!$AK542<>\"\"),\"Y\",\"N\")))","v":""},{"$f":"IF($B535=\"N\",\"\",IF(OR('Enrollment Form'!$B542<>\"Subscriber\",'Enrollment Form'!$C542=\"ROC\"),\"-\",IF(AND('Enrollment Form'!$B542=\"Subscriber\",'Enrollment Form'!$C542=\"Enroll\",'Enrollment Form'!$AL542<>\"\"),\"Y\",\"N\")))","v":""},{"$f":"IF($B535=\"N\",\"\",IF(OR('Enrollment Form'!$B542<>\"Subscriber\",'Enrollment Form'!$C542=\"ROC\"),\"-\",IF(AND('Enrollment Form'!$B542=\"Subscriber\",'Enrollment Form'!$C542=\"Enroll\",'Enrollment Form'!$AM542<>\"\"),\"Y\",\"N\")))","v":""},{"$f":"IF($B535=\"N\",\"\",IF(OR('Enrollment Form'!$B542<>\"Subscriber\",'Enrollment Form'!$C542=\"ROC\"),\"-\",IF(AND('Enrollment Form'!$B542=\"Subscriber\",'Enrollment Form'!$C542=\"Enroll\",'Enrollment Form'!$AN542<>\"\"),\"Y\",\"N\")))","v":""},{"$f":"IF($B535=\"N\",\"\",IF(OR('Enrollment Form'!$B542<>\"Subscriber\",'Enrollment Form'!$C542=\"ROC\"),\"-\",IF(AND('Enrollment Form'!$B542=\"Subscriber\",'Enrollment Form'!$C542=\"Enroll\",'Enrollment Form'!$AP542<>\"\"),\"Y\",\"N\")))","v":""},{"$f":"IF($B535=\"N\",\"\",IF($Q535=\"-\",\"-\",IF(AND($Q535=\"Y\",'Enrollment Form'!$AP542=\"No\"),\"-\",IF(AND($Q535=\"Y\",'Enrollment Form'!$AP542=\"Yes\",'Enrollment Form'!$AQ542<>\"\"),\"Y\",\"N\"))))","v":""},{"$f":"IF($B535=\"N\",\"\",IF(OR('Enrollment Form'!$B542<>\"Subscriber\",'Enrollment Form'!$C542=\"ROC\"),\"-\",IF(AND('Enrollment Form'!$B542=\"Subscriber\",'Enrollment Form'!$C542=\"Enroll\",'Enrollment Form'!$CO542<>\"\"),\"Y\",\"N\")))","v":""},{"$f":"IF($B535=\"N\",\"\",IF($S535=\"-\",\"-\",IF(AND($S535=\"Y\",'Enrollment Form'!$CO542=\"No\"),\"-\",IF(AND($S535=\"Y\",'Enrollment Form'!$CO542=\"Yes\",'Enrollment Form'!$CP542<>\"\"),\"Y\",\"N\"))))","v":""},{"$f":"IF(OR('Enrollment Form'!$AV542=\"Yes\",'Enrollment Form'!$AV542=\"\"),\"-\",IF(AND('Enrollment Form'!$AV542=\"No\",ISERROR(FIND(\"HMO\",VLOOKUP('Enrollment Form'!G542,'Enrollment Form'!H$11:J$1000,3,FALSE),1))=FALSE,COUNTA('Enrollment Form'!$AW542:$AZ542)=4),\"Y\",\"N\"))","v":"-"},{"$f":"IF($B535=\"N\",\"\",IF('Enrollment Form'!$B542=\"Subscriber\",\"-\",IF(COUNTA('Enrollment Form'!$BE542,'Enrollment Form'!$BG542)=2,\"Y\",\"N\")))","v":""},{"$f":"IF($B535=\"N\",\"\",IF(OR('Enrollment Form'!$AU542=\"\",'Enrollment Form'!$AU542=\"No\"),\"-\",IF(AND('Enrollment Form'!$AU542=\"Yes\",COUNTA('Enrollment Form'!$CK542)=1),\"Y\",\"N\")))","v":""},{"$f":"IF(OR('Enrollment Form'!$CK542=\"\",'Enrollment Form'!$CK542=\"No\"),\"-\",IF(COUNTA('Enrollment Form'!$CM542:$CN542)=2,\"Y\",\"N\"))","v":"-"},{"$f":"IF($B535=\"N\",\"\",IF(COUNTIF('Enrollment Form'!$CZ542:$DO542,\"Other\")=COUNTA('Enrollment Form'!$DF542,'Enrollment Form'!$DA542,'Enrollment Form'!$DK542,'Enrollment Form'!$DP542),\"Y\",\"N\"))","v":""},{"$f":"IF($B535=\"N\",\"\",IF(OR('Enrollment Form'!B542<>\"Subscriber\",'Enrollment Form'!C542=\"ROC\",COUNTIF('Enrollment Form'!AS542:AT542,\"Yes\")>=1),\"-\",IF(AND('Enrollment Form'!C542=\"Enroll\",COUNTIF('Enrollment Form'!AS542:AT542,\"No\")=2,'Enrollment Form'!AU542=\"\"),\"N\",\"Y\")))","v":""},{"$f":"IF(OR(B535=\"N\",'Enrollment Form'!B542<>\"Subscriber\",'Enrollment Form'!C542=\"ROC\",'Enrollment Form'!O542<>\"Multiple of Salary\"),\"-\",IF(COUNTA('Enrollment Form'!T542:U542)<2,\"N\",\"Y\"))","v":"-"},{"$f":"IF(B535=\"N\",\"\",IF(OR('Enrollment Form'!C542=\"ROC\",'Enrollment Form'!B542<>\"Subscriber\",'Enrollment Form'!O542=\"Waive\",'Enrollment Form'!O542=\"\"),\"-\",IF('Enrollment Form'!P542=\"\",\"N\",\"Y\")))","v":""},{"$f":"IF($B535=\"N\",\"\",IF(AND('Enrollment Form'!$C542=\"ROC\",'Enrollment Form'!$DS542<>\"\"),\"Y\",IF(AND('Enrollment Form'!$C542=\"ROC\",'Enrollment Form'!$DS542=\"\"),\"N\",IF(AND('Enrollment Form'!$C542=\"Enroll\",'Enrollment Form'!$B542=\"Subscriber\",'Enrollment Form'!$CQ542=\"No\",'Enrollment Form'!$DS542=\"\"),\"N\",IF(AND('Enrollment Form'!$C542=\"Enroll\",'Enrollment Form'!$B542=\"Subscriber\",'Enrollment Form'!$CQ542=\"Yes\"),\"-\",\"Y\")))))","v":""},{"$f":"IF($B535=\"N\",\"\",IF(AND('Enrollment Form'!$C542=\"ROC\",'Enrollment Form'!$DT542<>\"\"),\"Y\",IF(AND('Enrollment Form'!$C542=\"ROC\",'Enrollment Form'!$DT542=\"\"),\"N\",IF(AND('Enrollment Form'!$C542=\"Enroll\",'Enrollment Form'!$B542=\"Subscriber\",'Enrollment Form'!$CQ542=\"No\",'Enrollment Form'!$DT542=\"\"),\"N\",IF(AND('Enrollment Form'!$C542=\"Enroll\",'Enrollment Form'!$B542=\"Subscriber\",'Enrollment Form'!$CQ542=\"Yes\"),\"-\",\"Y\")))))","v":""},{"$f":"IF('Enrollment Form'!AH542=\"\",\"\",IF(ISERROR(SEARCH(\".\",'Enrollment Form'!AH542,SEARCH(\"@\",'Enrollment Form'!AH542))),\"N\",\"Y\"))","v":""},{"$f":"IF(OR($B535=\"N\",'Enrollment Form'!$G542=\"\"),\"\",IF('Enrollment Form'!$B542<>\"Subscriber\",\"-\",IF(COUNTIF('Enrollment Form'!$AS542:$AT542,\"Yes\")=2,\"N\",\"Y\")))","v":""},{"$f":"IF(OR('Enrollment Form'!$CC542=\"\",'Enrollment Form'!$CC542=\"No\"),\"-\",IF(AND('Enrollment Form'!$CC542=\"Yes\",'Enrollment Form'!$CD542=\"\"),\"N\",\"Y\"))","v":"-"},{"$f":"IF(OR('Enrollment Form'!$CE542=\"\",'Enrollment Form'!$CE542=\"No\"),\"-\",IF(AND('Enrollment Form'!$CE542=\"Yes\",'Enrollment Form'!$CF542=\"\"),\"N\",\"Y\"))","v":"-"},{"$f":"IF(OR('Enrollment Form'!$CG542=\"\",'Enrollment Form'!$CG542=\"No\"),\"-\",IF(AND('Enrollment Form'!$CG542=\"Yes\",'Enrollment Form'!$CH542=\"\"),\"N\",\"Y\"))","v":"-"},{"$f":"IF(OR('Enrollment Form'!$CG542=\"\",'Enrollment Form'!$CG542=\"No\"),\"-\",IF(AND('Enrollment Form'!$CG542=\"Yes\",'Enrollment Form'!$CI542=\"\"),\"N\",\"Y\"))","v":"-"},{"$f":"IF('Enrollment Form'!B542<>\"Subscriber\",\"-\",IF(AND('Enrollment Form'!B542=\"Subscriber\",'Enrollment Form'!C542=\"Enroll\",'Enrollment Form'!AA542=\"\"),\"N\",\"Y\"))","v":"-"},{"$f":"IF(OR('Enrollment Form'!B542=\"Subscriber\",'Enrollment Form'!B542=\"\"),\"-\",IF('Enrollment Form'!BI542=\"\",\"N\",\"Y\"))","v":"-"},{"$f":"IF('Enrollment Form'!B542<>\"Subscriber\",\"-\",IF(AND('Enrollment Form'!B542=\"Subscriber\",'Enrollment Form'!G542=\"\"),\"N\",\"Y\"))","v":"-"},{"$f":"IF('Enrollment Form'!A542=\"\",\"\",IF('Enrollment Form'!B542=\"Subscriber\",\"-\",IF(AND('Enrollment Form'!B542<>\"Subscriber\",'Enrollment Form'!G542='Enrollment Form'!H542),\"N\",\"Y\")))","v":""},0]
[543,{"$f":"IF('Enrollment Form'!$A543<>\"\",\"Y\",\"N\")","v":"N"},{"$f":"IF(AND('Enrollment Form'!$B543=\"\",'Enrollment Form'!$C543<>\"\"),\"N\",IF($B536=\"N\",\"\",\"Y\"))","v":""},{"$f":"IF(OR($B536=\"N\",'Enrollment Form'!G543=\"\"),\"\",IF('Enrollment Form'!$B543<>\"Subscriber\",\"\",IF('Enrollment Form'!$G543='Enrollment Form'!$H543,\"Y\",\"N\")))","v":""},{"$f":"IF($B536=\"N\",\"\",IF(AND(COUNTIFS('Enrollment Form'!$H$11:$H$1000,'Enrollment Form'!$H543,'Enrollment Form'!$B$11:$B$1000,'Enrollment Form'!$B543)>1,'Enrollment Form'!$H543<>\"\"),\"N\",\"Y\"))","v":""},{"$f":"IF($B536=\"N\",\"\",IF(LEN('Enrollment Form'!$Y543)=0,\"\",IF(LEN('Enrollment Form'!$Y543)<>5,\"N\",\"Y\")))","v":""},{"$f":"IF($B536=\"N\",\"\",IF(LEN('Enrollment Form'!$AD543=0),\"\",IF(LEN('Enrollment Form'!$AD543)<>5,\"N\",\"Y\")))","v":""},{"$f":"IF($B536=\"N\",\"\",IF(LEN('Enrollment Form'!$BL543=0),\"\",IF(LEN('Enrollment Form'!$BL543)<>5,\"N\",\"Y\")))","v":""},{"$f":"IF($B536=\"N\",\"\",IF(LEN('Enrollment Form'!$AE543)=0,\"\",IF(LEN('Enrollment Form'!$AE543)<>10,\"N\",\"Y\")))","v":""},{"$f":"IF($B536=\"N\",\"\",IF(LEN('Enrollment Form'!$AF543)=0,\"\",IF(LEN('Enrollment Form'!$AF543)<>10,\"N\",\"Y\")))","v":""},{"$f":"IF('Enrollment Form'!$O543<>\"Graded\",\"-\",IF(AND('Enrollment Form'!$O543=\"Graded\",'Enrollment Form'!$AO543<>\"\"),\"Y\",\"N\"))","v":"-"},{"$f":"IF($B536=\"N\",\"\",IF(OR('Enrollment Form'!$B543<>\"Subscriber\",'Enrollment Form'!$C543=\"ROC\"),\"-\",IF(AND('Enrollment Form'!$B543=\"Subscriber\",'Enrollment Form'!$C543=\"Enroll\",'Enrollment Form'!$AJ543<>\"\"),\"Y\",\"N\")))","v":""},{"$f":"IF($B536=\"N\",\"\",IF(OR('Enrollment Form'!$B543<>\"Subscriber\",'Enrollment Form'!$C543=\"ROC\"),\"-\",IF(AND('Enrollment Form'!$B543=\"Subscriber\",'Enrollment Form'!$C543=\"Enroll\",'Enrollment Form'!$AK543<>\"\"),\"Y\",\"N\")))","v":""},{"$f":"IF($B536=\"N\",\"\",IF(OR('Enrollment Form'!$B543<>\"Subscriber\",'Enrollment Form'!$C543=\"ROC\"),\"-\",IF(AND('Enrollment Form'!$B543=\"Subscriber\",'Enrollment Form'!$C543=\"Enroll\",'Enrollment Form'!$AL543<>\"\"),\"Y\",\"N\")))","v":""},{"$f":"IF($B536=\"N\",\"\",IF(OR('Enrollment Form'!$B543<>\"Subscriber\",'Enrollment Form'!$C543=\"ROC\"),\"-\",IF(AND('Enrollment Form'!$B543=\"Subscriber\",'Enrollment Form'!$C543=\"Enroll\",'Enrollment Form'!$AM543<>\"\"),\"Y\",\"N\")))","v":""},{"$f":"IF($B536=\"N\",\"\",IF(OR('Enrollment Form'!$B543<>\"Subscriber\",'Enrollment Form'!$C543=\"ROC\"),\"-\",IF(AND('Enrollment Form'!$B543=\"Subscriber\",'Enrollment Form'!$C543=\"Enroll\",'Enrollment Form'!$AN543<>\"\"),\"Y\",\"N\")))","v":""},{"$f":"IF($B536=\"N\",\"\",IF(OR('Enrollment Form'!$B543<>\"Subscriber\",'Enrollment Form'!$C543=\"ROC\"),\"-\",IF(AND('Enrollment Form'!$B543=\"Subscriber\",'Enrollment Form'!$C543=\"Enroll\",'Enrollment Form'!$AP543<>\"\"),\"Y\",\"N\")))","v":""},{"$f":"IF($B536=\"N\",\"\",IF($Q536=\"-\",\"-\",IF(AND($Q536=\"Y\",'Enrollment Form'!$AP543=\"No\"),\"-\",IF(AND($Q536=\"Y\",'Enrollment Form'!$AP543=\"Yes\",'Enrollment Form'!$AQ543<>\"\"),\"Y\",\"N\"))))","v":""},{"$f":"IF($B536=\"N\",\"\",IF(OR('Enrollment Form'!$B543<>\"Subscriber\",'Enrollment Form'!$C543=\"ROC\"),\"-\",IF(AND('Enrollment Form'!$B543=\"Subscriber\",'Enrollment Form'!$C543=\"Enroll\",'Enrollment Form'!$CO543<>\"\"),\"Y\",\"N\")))","v":""},{"$f":"IF($B536=\"N\",\"\",IF($S536=\"-\",\"-\",IF(AND($S536=\"Y\",'Enrollment Form'!$CO543=\"No\"),\"-\",IF(AND($S536=\"Y\",'Enrollment Form'!$CO543=\"Yes\",'Enrollment Form'!$CP543<>\"\"),\"Y\",\"N\"))))","v":""},{"$f":"IF(OR('Enrollment Form'!$AV543=\"Yes\",'Enrollment Form'!$AV543=\"\"),\"-\",IF(AND('Enrollment Form'!$AV543=\"No\",ISERROR(FIND(\"HMO\",VLOOKUP('Enrollment Form'!G543,'Enrollment Form'!H$11:J$1000,3,FALSE),1))=FALSE,COUNTA('Enrollment Form'!$AW543:$AZ543)=4),\"Y\",\"N\"))","v":"-"},{"$f":"IF($B536=\"N\",\"\",IF('Enrollment Form'!$B543=\"Subscriber\",\"-\",IF(COUNTA('Enrollment Form'!$BE543,'Enrollment Form'!$BG543)=2,\"Y\",\"N\")))","v":""},{"$f":"IF($B536=\"N\",\"\",IF(OR('Enrollment Form'!$AU543=\"\",'Enrollment Form'!$AU543=\"No\"),\"-\",IF(AND('Enrollment Form'!$AU543=\"Yes\",COUNTA('Enrollment Form'!$CK543)=1),\"Y\",\"N\")))","v":""},{"$f":"IF(OR('Enrollment Form'!$CK543=\"\",'Enrollment Form'!$CK543=\"No\"),\"-\",IF(COUNTA('Enrollment Form'!$CM543:$CN543)=2,\"Y\",\"N\"))","v":"-"},{"$f":"IF($B536=\"N\",\"\",IF(COUNTIF('Enrollment Form'!$CZ543:$DO543,\"Other\")=COUNTA('Enrollment Form'!$DF543,'Enrollment Form'!$DA543,'Enrollment Form'!$DK543,'Enrollment Form'!$DP543),\"Y\",\"N\"))","v":""},{"$f":"IF($B536=\"N\",\"\",IF(OR('Enrollment Form'!B543<>\"Subscriber\",'Enrollment Form'!C543=\"ROC\",COUNTIF('Enrollment Form'!AS543:AT543,\"Yes\")>=1),\"-\",IF(AND('Enrollment Form'!C543=\"Enroll\",COUNTIF('Enrollment Form'!AS543:AT543,\"No\")=2,'Enrollment Form'!AU543=\"\"),\"N\",\"Y\")))","v":""},{"$f":"IF(OR(B536=\"N\",'Enrollment Form'!B543<>\"Subscriber\",'Enrollment Form'!C543=\"ROC\",'Enrollment Form'!O543<>\"Multiple of Salary\"),\"-\",IF(COUNTA('Enrollment Form'!T543:U543)<2,\"N\",\"Y\"))","v":"-"},{"$f":"IF(B536=\"N\",\"\",IF(OR('Enrollment Form'!C543=\"ROC\",'Enrollment Form'!B543<>\"Subscriber\",'Enrollment Form'!O543=\"Waive\",'Enrollment Form'!O543=\"\"),\"-\",IF('Enrollment Form'!P543=\"\",\"N\",\"Y\")))","v":""},{"$f":"IF($B536=\"N\",\"\",IF(AND('Enrollment Form'!$C543=\"ROC\",'Enrollment Form'!$DS543<>\"\"),\"Y\",IF(AND('Enrollment Form'!$C543=\"ROC\",'Enrollment Form'!$DS543=\"\"),\"N\",IF(AND('Enrollment Form'!$C543=\"Enroll\",'Enrollment Form'!$B543=\"Subscriber\",'Enrollment Form'!$CQ543=\"No\",'Enrollment Form'!$DS543=\"\"),\"N\",IF(AND('Enrollment Form'!$C543=\"Enroll\",'Enrollment Form'!$B543=\"Subscriber\",'Enrollment Form'!$CQ543=\"Yes\"),\"-\",\"Y\")))))","v":""},{"$f":"IF($B536=\"N\",\"\",IF(AND('Enrollment Form'!$C543=\"ROC\",'Enrollment Form'!$DT543<>\"\"),\"Y\",IF(AND('Enrollment Form'!$C543=\"ROC\",'Enrollment Form'!$DT543=\"\"),\"N\",IF(AND('Enrollment Form'!$C543=\"Enroll\",'Enrollment Form'!$B543=\"Subscriber\",'Enrollment Form'!$CQ543=\"No\",'Enrollment Form'!$DT543=\"\"),\"N\",IF(AND('Enrollment Form'!$C543=\"Enroll\",'Enrollment Form'!$B543=\"Subscriber\",'Enrollment Form'!$CQ543=\"Yes\"),\"-\",\"Y\")))))","v":""},{"$f":"IF('Enrollment Form'!AH543=\"\",\"\",IF(ISERROR(SEARCH(\".\",'Enrollment Form'!AH543,SEARCH(\"@\",'Enrollment Form'!AH543))),\"N\",\"Y\"))","v":""},{"$f":"IF(OR($B536=\"N\",'Enrollment Form'!$G543=\"\"),\"\",IF('Enrollment Form'!$B543<>\"Subscriber\",\"-\",IF(COUNTIF('Enrollment Form'!$AS543:$AT543,\"Yes\")=2,\"N\",\"Y\")))","v":""},{"$f":"IF(OR('Enrollment Form'!$CC543=\"\",'Enrollment Form'!$CC543=\"No\"),\"-\",IF(AND('Enrollment Form'!$CC543=\"Yes\",'Enrollment Form'!$CD543=\"\"),\"N\",\"Y\"))","v":"-"},{"$f":"IF(OR('Enrollment Form'!$CE543=\"\",'Enrollment Form'!$CE543=\"No\"),\"-\",IF(AND('Enrollment Form'!$CE543=\"Yes\",'Enrollment Form'!$CF543=\"\"),\"N\",\"Y\"))","v":"-"},{"$f":"IF(OR('Enrollment Form'!$CG543=\"\",'Enrollment Form'!$CG543=\"No\"),\"-\",IF(AND('Enrollment Form'!$CG543=\"Yes\",'Enrollment Form'!$CH543=\"\"),\"N\",\"Y\"))","v":"-"},{"$f":"IF(OR('Enrollment Form'!$CG543=\"\",'Enrollment Form'!$CG543=\"No\"),\"-\",IF(AND('Enrollment Form'!$CG543=\"Yes\",'Enrollment Form'!$CI543=\"\"),\"N\",\"Y\"))","v":"-"},{"$f":"IF('Enrollment Form'!B543<>\"Subscriber\",\"-\",IF(AND('Enrollment Form'!B543=\"Subscriber\",'Enrollment Form'!C543=\"Enroll\",'Enrollment Form'!AA543=\"\"),\"N\",\"Y\"))","v":"-"},{"$f":"IF(OR('Enrollment Form'!B543=\"Subscriber\",'Enrollment Form'!B543=\"\"),\"-\",IF('Enrollment Form'!BI543=\"\",\"N\",\"Y\"))","v":"-"},{"$f":"IF('Enrollment Form'!B543<>\"Subscriber\",\"-\",IF(AND('Enrollment Form'!B543=\"Subscriber\",'Enrollment Form'!G543=\"\"),\"N\",\"Y\"))","v":"-"},{"$f":"IF('Enrollment Form'!A543=\"\",\"\",IF('Enrollment Form'!B543=\"Subscriber\",\"-\",IF(AND('Enrollment Form'!B543<>\"Subscriber\",'Enrollment Form'!G543='Enrollment Form'!H543),\"N\",\"Y\")))","v":""},0]
[544,{"$f":"IF('Enrollment Form'!$A544<>\"\",\"Y\",\"N\")","v":"N"},{"$f":"IF(AND('Enrollment Form'!$B544=\"\",'Enrollment Form'!$C544<>\"\"),\"N\",IF($B537=\"N\",\"\",\"Y\"))","v":""},{"$f":"IF(OR($B537=\"N\",'Enrollment Form'!G544=\"\"),\"\",IF('Enrollment Form'!$B544<>\"Subscriber\",\"\",IF('Enrollment Form'!$G544='Enrollment Form'!$H544,\"Y\",\"N\")))","v":""},{"$f":"IF($B537=\"N\",\"\",IF(AND(COUNTIFS('Enrollment Form'!$H$11:$H$1000,'Enrollment Form'!$H544,'Enrollment Form'!$B$11:$B$1000,'Enrollment Form'!$B544)>1,'Enrollment Form'!$H544<>\"\"),\"N\",\"Y\"))","v":""},{"$f":"IF($B537=\"N\",\"\",IF(LEN('Enrollment Form'!$Y544)=0,\"\",IF(LEN('Enrollment Form'!$Y544)<>5,\"N\",\"Y\")))","v":""},{"$f":"IF($B537=\"N\",\"\",IF(LEN('Enrollment Form'!$AD544=0),\"\",IF(LEN('Enrollment Form'!$AD544)<>5,\"N\",\"Y\")))","v":""},{"$f":"IF($B537=\"N\",\"\",IF(LEN('Enrollment Form'!$BL544=0),\"\",IF(LEN('Enrollment Form'!$BL544)<>5,\"N\",\"Y\")))","v":""},{"$f":"IF($B537=\"N\",\"\",IF(LEN('Enrollment Form'!$AE544)=0,\"\",IF(LEN('Enrollment Form'!$AE544)<>10,\"N\",\"Y\")))","v":""},{"$f":"IF($B537=\"N\",\"\",IF(LEN('Enrollment Form'!$AF544)=0,\"\",IF(LEN('Enrollment Form'!$AF544)<>10,\"N\",\"Y\")))","v":""},{"$f":"IF('Enrollment Form'!$O544<>\"Graded\",\"-\",IF(AND('Enrollment Form'!$O544=\"Graded\",'Enrollment Form'!$AO544<>\"\"),\"Y\",\"N\"))","v":"-"},{"$f":"IF($B537=\"N\",\"\",IF(OR('Enrollment Form'!$B544<>\"Subscriber\",'Enrollment Form'!$C544=\"ROC\"),\"-\",IF(AND('Enrollment Form'!$B544=\"Subscriber\",'Enrollment Form'!$C544=\"Enroll\",'Enrollment Form'!$AJ544<>\"\"),\"Y\",\"N\")))","v":""},{"$f":"IF($B537=\"N\",\"\",IF(OR('Enrollment Form'!$B544<>\"Subscriber\",'Enrollment Form'!$C544=\"ROC\"),\"-\",IF(AND('Enrollment Form'!$B544=\"Subscriber\",'Enrollment Form'!$C544=\"Enroll\",'Enrollment Form'!$AK544<>\"\"),\"Y\",\"N\")))","v":""},{"$f":"IF($B537=\"N\",\"\",IF(OR('Enrollment Form'!$B544<>\"Subscriber\",'Enrollment Form'!$C544=\"ROC\"),\"-\",IF(AND('Enrollment Form'!$B544=\"Subscriber\",'Enrollment Form'!$C544=\"Enroll\",'Enrollment Form'!$AL544<>\"\"),\"Y\",\"N\")))","v":""},{"$f":"IF($B537=\"N\",\"\",IF(OR('Enrollment Form'!$B544<>\"Subscriber\",'Enrollment Form'!$C544=\"ROC\"),\"-\",IF(AND('Enrollment Form'!$B544=\"Subscriber\",'Enrollment Form'!$C544=\"Enroll\",'Enrollment Form'!$AM544<>\"\"),\"Y\",\"N\")))","v":""},{"$f":"IF($B537=\"N\",\"\",IF(OR('Enrollment Form'!$B544<>\"Subscriber\",'Enrollment Form'!$C544=\"ROC\"),\"-\",IF(AND('Enrollment Form'!$B544=\"Subscriber\",'Enrollment Form'!$C544=\"Enroll\",'Enrollment Form'!$AN544<>\"\"),\"Y\",\"N\")))","v":""},{"$f":"IF($B537=\"N\",\"\",IF(OR('Enrollment Form'!$B544<>\"Subscriber\",'Enrollment Form'!$C544=\"ROC\"),\"-\",IF(AND('Enrollment Form'!$B544=\"Subscriber\",'Enrollment Form'!$C544=\"Enroll\",'Enrollment Form'!$AP544<>\"\"),\"Y\",\"N\")))","v":""},{"$f":"IF($B537=\"N\",\"\",IF($Q537=\"-\",\"-\",IF(AND($Q537=\"Y\",'Enrollment Form'!$AP544=\"No\"),\"-\",IF(AND($Q537=\"Y\",'Enrollment Form'!$AP544=\"Yes\",'Enrollment Form'!$AQ544<>\"\"),\"Y\",\"N\"))))","v":""},{"$f":"IF($B537=\"N\",\"\",IF(OR('Enrollment Form'!$B544<>\"Subscriber\",'Enrollment Form'!$C544=\"ROC\"),\"-\",IF(AND('Enrollment Form'!$B544=\"Subscriber\",'Enrollment Form'!$C544=\"Enroll\",'Enrollment Form'!$CO544<>\"\"),\"Y\",\"N\")))","v":""},{"$f":"IF($B537=\"N\",\"\",IF($S537=\"-\",\"-\",IF(AND($S537=\"Y\",'Enrollment Form'!$CO544=\"No\"),\"-\",IF(AND($S537=\"Y\",'Enrollment Form'!$CO544=\"Yes\",'Enrollment Form'!$CP544<>\"\"),\"Y\",\"N\"))))","v":""},{"$f":"IF(OR('Enrollment Form'!$AV544=\"Yes\",'Enrollment Form'!$AV544=\"\"),\"-\",IF(AND('Enrollment Form'!$AV544=\"No\",ISERROR(FIND(\"HMO\",VLOOKUP('Enrollment Form'!G544,'Enrollment Form'!H$11:J$1000,3,FALSE),1))=FALSE,COUNTA('Enrollment Form'!$AW544:$AZ544)=4),\"Y\",\"N\"))","v":"-"},{"$f":"IF($B537=\"N\",\"\",IF('Enrollment Form'!$B544=\"Subscriber\",\"-\",IF(COUNTA('Enrollment Form'!$BE544,'Enrollment Form'!$BG544)=2,\"Y\",\"N\")))","v":""},{"$f":"IF($B537=\"N\",\"\",IF(OR('Enrollment Form'!$AU544=\"\",'Enrollment Form'!$AU544=\"No\"),\"-\",IF(AND('Enrollment Form'!$AU544=\"Yes\",COUNTA('Enrollment Form'!$CK544)=1),\"Y\",\"N\")))","v":""},{"$f":"IF(OR('Enrollment Form'!$CK544=\"\",'Enrollment Form'!$CK544=\"No\"),\"-\",IF(COUNTA('Enrollment Form'!$CM544:$CN544)=2,\"Y\",\"N\"))","v":"-"},{"$f":"IF($B537=\"N\",\"\",IF(COUNTIF('Enrollment Form'!$CZ544:$DO544,\"Other\")=COUNTA('Enrollment Form'!$DF544,'Enrollment Form'!$DA544,'Enrollment Form'!$DK544,'Enrollment Form'!$DP544),\"Y\",\"N\"))","v":""},{"$f":"IF($B537=\"N\",\"\",IF(OR('Enrollment Form'!B544<>\"Subscriber\",'Enrollment Form'!C544=\"ROC\",COUNTIF('Enrollment Form'!AS544:AT544,\"Yes\")>=1),\"-\",IF(AND('Enrollment Form'!C544=\"Enroll\",COUNTIF('Enrollment Form'!AS544:AT544,\"No\")=2,'Enrollment Form'!AU544=\"\"),\"N\",\"Y\")))","v":""},{"$f":"IF(OR(B537=\"N\",'Enrollment Form'!B544<>\"Subscriber\",'Enrollment Form'!C544=\"ROC\",'Enrollment Form'!O544<>\"Multiple of Salary\"),\"-\",IF(COUNTA('Enrollment Form'!T544:U544)<2,\"N\",\"Y\"))","v":"-"},{"$f":"IF(B537=\"N\",\"\",IF(OR('Enrollment Form'!C544=\"ROC\",'Enrollment Form'!B544<>\"Subscriber\",'Enrollment Form'!O544=\"Waive\",'Enrollment Form'!O544=\"\"),\"-\",IF('Enrollment Form'!P544=\"\",\"N\",\"Y\")))","v":""},{"$f":"IF($B537=\"N\",\"\",IF(AND('Enrollment Form'!$C544=\"ROC\",'Enrollment Form'!$DS544<>\"\"),\"Y\",IF(AND('Enrollment Form'!$C544=\"ROC\",'Enrollment Form'!$DS544=\"\"),\"N\",IF(AND('Enrollment Form'!$C544=\"Enroll\",'Enrollment Form'!$B544=\"Subscriber\",'Enrollment Form'!$CQ544=\"No\",'Enrollment Form'!$DS544=\"\"),\"N\",IF(AND('Enrollment Form'!$C544=\"Enroll\",'Enrollment Form'!$B544=\"Subscriber\",'Enrollment Form'!$CQ544=\"Yes\"),\"-\",\"Y\")))))","v":""},{"$f":"IF($B537=\"N\",\"\",IF(AND('Enrollment Form'!$C544=\"ROC\",'Enrollment Form'!$DT544<>\"\"),\"Y\",IF(AND('Enrollment Form'!$C544=\"ROC\",'Enrollment Form'!$DT544=\"\"),\"N\",IF(AND('Enrollment Form'!$C544=\"Enroll\",'Enrollment Form'!$B544=\"Subscriber\",'Enrollment Form'!$CQ544=\"No\",'Enrollment Form'!$DT544=\"\"),\"N\",IF(AND('Enrollment Form'!$C544=\"Enroll\",'Enrollment Form'!$B544=\"Subscriber\",'Enrollment Form'!$CQ544=\"Yes\"),\"-\",\"Y\")))))","v":""},{"$f":"IF('Enrollment Form'!AH544=\"\",\"\",IF(ISERROR(SEARCH(\".\",'Enrollment Form'!AH544,SEARCH(\"@\",'Enrollment Form'!AH544))),\"N\",\"Y\"))","v":""},{"$f":"IF(OR($B537=\"N\",'Enrollment Form'!$G544=\"\"),\"\",IF('Enrollment Form'!$B544<>\"Subscriber\",\"-\",IF(COUNTIF('Enrollment Form'!$AS544:$AT544,\"Yes\")=2,\"N\",\"Y\")))","v":""},{"$f":"IF(OR('Enrollment Form'!$CC544=\"\",'Enrollment Form'!$CC544=\"No\"),\"-\",IF(AND('Enrollment Form'!$CC544=\"Yes\",'Enrollment Form'!$CD544=\"\"),\"N\",\"Y\"))","v":"-"},{"$f":"IF(OR('Enrollment Form'!$CE544=\"\",'Enrollment Form'!$CE544=\"No\"),\"-\",IF(AND('Enrollment Form'!$CE544=\"Yes\",'Enrollment Form'!$CF544=\"\"),\"N\",\"Y\"))","v":"-"},{"$f":"IF(OR('Enrollment Form'!$CG544=\"\",'Enrollment Form'!$CG544=\"No\"),\"-\",IF(AND('Enrollment Form'!$CG544=\"Yes\",'Enrollment Form'!$CH544=\"\"),\"N\",\"Y\"))","v":"-"},{"$f":"IF(OR('Enrollment Form'!$CG544=\"\",'Enrollment Form'!$CG544=\"No\"),\"-\",IF(AND('Enrollment Form'!$CG544=\"Yes\",'Enrollment Form'!$CI544=\"\"),\"N\",\"Y\"))","v":"-"},{"$f":"IF('Enrollment Form'!B544<>\"Subscriber\",\"-\",IF(AND('Enrollment Form'!B544=\"Subscriber\",'Enrollment Form'!C544=\"Enroll\",'Enrollment Form'!AA544=\"\"),\"N\",\"Y\"))","v":"-"},{"$f":"IF(OR('Enrollment Form'!B544=\"Subscriber\",'Enrollment Form'!B544=\"\"),\"-\",IF('Enrollment Form'!BI544=\"\",\"N\",\"Y\"))","v":"-"},{"$f":"IF('Enrollment Form'!B544<>\"Subscriber\",\"-\",IF(AND('Enrollment Form'!B544=\"Subscriber\",'Enrollment Form'!G544=\"\"),\"N\",\"Y\"))","v":"-"},{"$f":"IF('Enrollment Form'!A544=\"\",\"\",IF('Enrollment Form'!B544=\"Subscriber\",\"-\",IF(AND('Enrollment Form'!B544<>\"Subscriber\",'Enrollment Form'!G544='Enrollment Form'!H544),\"N\",\"Y\")))","v":""},0]
[545,{"$f":"IF('Enrollment Form'!$A545<>\"\",\"Y\",\"N\")","v":"N"},{"$f":"IF(AND('Enrollment Form'!$B545=\"\",'Enrollment Form'!$C545<>\"\"),\"N\",IF($B538=\"N\",\"\",\"Y\"))","v":""},{"$f":"IF(OR($B538=\"N\",'Enrollment Form'!G545=\"\"),\"\",IF('Enrollment Form'!$B545<>\"Subscriber\",\"\",IF('Enrollment Form'!$G545='Enrollment Form'!$H545,\"Y\",\"N\")))","v":""},{"$f":"IF($B538=\"N\",\"\",IF(AND(COUNTIFS('Enrollment Form'!$H$11:$H$1000,'Enrollment Form'!$H545,'Enrollment Form'!$B$11:$B$1000,'Enrollment Form'!$B545)>1,'Enrollment Form'!$H545<>\"\"),\"N\",\"Y\"))","v":""},{"$f":"IF($B538=\"N\",\"\",IF(LEN('Enrollment Form'!$Y545)=0,\"\",IF(LEN('Enrollment Form'!$Y545)<>5,\"N\",\"Y\")))","v":""},{"$f":"IF($B538=\"N\",\"\",IF(LEN('Enrollment Form'!$AD545=0),\"\",IF(LEN('Enrollment Form'!$AD545)<>5,\"N\",\"Y\")))","v":""},{"$f":"IF($B538=\"N\",\"\",IF(LEN('Enrollment Form'!$BL545=0),\"\",IF(LEN('Enrollment Form'!$BL545)<>5,\"N\",\"Y\")))","v":""},{"$f":"IF($B538=\"N\",\"\",IF(LEN('Enrollment Form'!$AE545)=0,\"\",IF(LEN('Enrollment Form'!$AE545)<>10,\"N\",\"Y\")))","v":""},{"$f":"IF($B538=\"N\",\"\",IF(LEN('Enrollment Form'!$AF545)=0,\"\",IF(LEN('Enrollment Form'!$AF545)<>10,\"N\",\"Y\")))","v":""},{"$f":"IF('Enrollment Form'!$O545<>\"Graded\",\"-\",IF(AND('Enrollment Form'!$O545=\"Graded\",'Enrollment Form'!$AO545<>\"\"),\"Y\",\"N\"))","v":"-"},{"$f":"IF($B538=\"N\",\"\",IF(OR('Enrollment Form'!$B545<>\"Subscriber\",'Enrollment Form'!$C545=\"ROC\"),\"-\",IF(AND('Enrollment Form'!$B545=\"Subscriber\",'Enrollment Form'!$C545=\"Enroll\",'Enrollment Form'!$AJ545<>\"\"),\"Y\",\"N\")))","v":""},{"$f":"IF($B538=\"N\",\"\",IF(OR('Enrollment Form'!$B545<>\"Subscriber\",'Enrollment Form'!$C545=\"ROC\"),\"-\",IF(AND('Enrollment Form'!$B545=\"Subscriber\",'Enrollment Form'!$C545=\"Enroll\",'Enrollment Form'!$AK545<>\"\"),\"Y\",\"N\")))","v":""},{"$f":"IF($B538=\"N\",\"\",IF(OR('Enrollment Form'!$B545<>\"Subscriber\",'Enrollment Form'!$C545=\"ROC\"),\"-\",IF(AND('Enrollment Form'!$B545=\"Subscriber\",'Enrollment Form'!$C545=\"Enroll\",'Enrollment Form'!$AL545<>\"\"),\"Y\",\"N\")))","v":""},{"$f":"IF($B538=\"N\",\"\",IF(OR('Enrollment Form'!$B545<>\"Subscriber\",'Enrollment Form'!$C545=\"ROC\"),\"-\",IF(AND('Enrollment Form'!$B545=\"Subscriber\",'Enrollment Form'!$C545=\"Enroll\",'Enrollment Form'!$AM545<>\"\"),\"Y\",\"N\")))","v":""},{"$f":"IF($B538=\"N\",\"\",IF(OR('Enrollment Form'!$B545<>\"Subscriber\",'Enrollment Form'!$C545=\"ROC\"),\"-\",IF(AND('Enrollment Form'!$B545=\"Subscriber\",'Enrollment Form'!$C545=\"Enroll\",'Enrollment Form'!$AN545<>\"\"),\"Y\",\"N\")))","v":""},{"$f":"IF($B538=\"N\",\"\",IF(OR('Enrollment Form'!$B545<>\"Subscriber\",'Enrollment Form'!$C545=\"ROC\"),\"-\",IF(AND('Enrollment Form'!$B545=\"Subscriber\",'Enrollment Form'!$C545=\"Enroll\",'Enrollment Form'!$AP545<>\"\"),\"Y\",\"N\")))","v":""},{"$f":"IF($B538=\"N\",\"\",IF($Q538=\"-\",\"-\",IF(AND($Q538=\"Y\",'Enrollment Form'!$AP545=\"No\"),\"-\",IF(AND($Q538=\"Y\",'Enrollment Form'!$AP545=\"Yes\",'Enrollment Form'!$AQ545<>\"\"),\"Y\",\"N\"))))","v":""},{"$f":"IF($B538=\"N\",\"\",IF(OR('Enrollment Form'!$B545<>\"Subscriber\",'Enrollment Form'!$C545=\"ROC\"),\"-\",IF(AND('Enrollment Form'!$B545=\"Subscriber\",'Enrollment Form'!$C545=\"Enroll\",'Enrollment Form'!$CO545<>\"\"),\"Y\",\"N\")))","v":""},{"$f":"IF($B538=\"N\",\"\",IF($S538=\"-\",\"-\",IF(AND($S538=\"Y\",'Enrollment Form'!$CO545=\"No\"),\"-\",IF(AND($S538=\"Y\",'Enrollment Form'!$CO545=\"Yes\",'Enrollment Form'!$CP545<>\"\"),\"Y\",\"N\"))))","v":""},{"$f":"IF(OR('Enrollment Form'!$AV545=\"Yes\",'Enrollment Form'!$AV545=\"\"),\"-\",IF(AND('Enrollment Form'!$AV545=\"No\",ISERROR(FIND(\"HMO\",VLOOKUP('Enrollment Form'!G545,'Enrollment Form'!H$11:J$1000,3,FALSE),1))=FALSE,COUNTA('Enrollment Form'!$AW545:$AZ545)=4),\"Y\",\"N\"))","v":"-"},{"$f":"IF($B538=\"N\",\"\",IF('Enrollment Form'!$B545=\"Subscriber\",\"-\",IF(COUNTA('Enrollment Form'!$BE545,'Enrollment Form'!$BG545)=2,\"Y\",\"N\")))","v":""},{"$f":"IF($B538=\"N\",\"\",IF(OR('Enrollment Form'!$AU545=\"\",'Enrollment Form'!$AU545=\"No\"),\"-\",IF(AND('Enrollment Form'!$AU545=\"Yes\",COUNTA('Enrollment Form'!$CK545)=1),\"Y\",\"N\")))","v":""},{"$f":"IF(OR('Enrollment Form'!$CK545=\"\",'Enrollment Form'!$CK545=\"No\"),\"-\",IF(COUNTA('Enrollment Form'!$CM545:$CN545)=2,\"Y\",\"N\"))","v":"-"},{"$f":"IF($B538=\"N\",\"\",IF(COUNTIF('Enrollment Form'!$CZ545:$DO545,\"Other\")=COUNTA('Enrollment Form'!$DF545,'Enrollment Form'!$DA545,'Enrollment Form'!$DK545,'Enrollment Form'!$DP545),\"Y\",\"N\"))","v":""},{"$f":"IF($B538=\"N\",\"\",IF(OR('Enrollment Form'!B545<>\"Subscriber\",'Enrollment Form'!C545=\"ROC\",COUNTIF('Enrollment Form'!AS545:AT545,\"Yes\")>=1),\"-\",IF(AND('Enrollment Form'!C545=\"Enroll\",COUNTIF('Enrollment Form'!AS545:AT545,\"No\")=2,'Enrollment Form'!AU545=\"\"),\"N\",\"Y\")))","v":""},{"$f":"IF(OR(B538=\"N\",'Enrollment Form'!B545<>\"Subscriber\",'Enrollment Form'!C545=\"ROC\",'Enrollment Form'!O545<>\"Multiple of Salary\"),\"-\",IF(COUNTA('Enrollment Form'!T545:U545)<2,\"N\",\"Y\"))","v":"-"},{"$f":"IF(B538=\"N\",\"\",IF(OR('Enrollment Form'!C545=\"ROC\",'Enrollment Form'!B545<>\"Subscriber\",'Enrollment Form'!O545=\"Waive\",'Enrollment Form'!O545=\"\"),\"-\",IF('Enrollment Form'!P545=\"\",\"N\",\"Y\")))","v":""},{"$f":"IF($B538=\"N\",\"\",IF(AND('Enrollment Form'!$C545=\"ROC\",'Enrollment Form'!$DS545<>\"\"),\"Y\",IF(AND('Enrollment Form'!$C545=\"ROC\",'Enrollment Form'!$DS545=\"\"),\"N\",IF(AND('Enrollment Form'!$C545=\"Enroll\",'Enrollment Form'!$B545=\"Subscriber\",'Enrollment Form'!$CQ545=\"No\",'Enrollment Form'!$DS545=\"\"),\"N\",IF(AND('Enrollment Form'!$C545=\"Enroll\",'Enrollment Form'!$B545=\"Subscriber\",'Enrollment Form'!$CQ545=\"Yes\"),\"-\",\"Y\")))))","v":""},{"$f":"IF($B538=\"N\",\"\",IF(AND('Enrollment Form'!$C545=\"ROC\",'Enrollment Form'!$DT545<>\"\"),\"Y\",IF(AND('Enrollment Form'!$C545=\"ROC\",'Enrollment Form'!$DT545=\"\"),\"N\",IF(AND('Enrollment Form'!$C545=\"Enroll\",'Enrollment Form'!$B545=\"Subscriber\",'Enrollment Form'!$CQ545=\"No\",'Enrollment Form'!$DT545=\"\"),\"N\",IF(AND('Enrollment Form'!$C545=\"Enroll\",'Enrollment Form'!$B545=\"Subscriber\",'Enrollment Form'!$CQ545=\"Yes\"),\"-\",\"Y\")))))","v":""},{"$f":"IF('Enrollment Form'!AH545=\"\",\"\",IF(ISERROR(SEARCH(\".\",'Enrollment Form'!AH545,SEARCH(\"@\",'Enrollment Form'!AH545))),\"N\",\"Y\"))","v":""},{"$f":"IF(OR($B538=\"N\",'Enrollment Form'!$G545=\"\"),\"\",IF('Enrollment Form'!$B545<>\"Subscriber\",\"-\",IF(COUNTIF('Enrollment Form'!$AS545:$AT545,\"Yes\")=2,\"N\",\"Y\")))","v":""},{"$f":"IF(OR('Enrollment Form'!$CC545=\"\",'Enrollment Form'!$CC545=\"No\"),\"-\",IF(AND('Enrollment Form'!$CC545=\"Yes\",'Enrollment Form'!$CD545=\"\"),\"N\",\"Y\"))","v":"-"},{"$f":"IF(OR('Enrollment Form'!$CE545=\"\",'Enrollment Form'!$CE545=\"No\"),\"-\",IF(AND('Enrollment Form'!$CE545=\"Yes\",'Enrollment Form'!$CF545=\"\"),\"N\",\"Y\"))","v":"-"},{"$f":"IF(OR('Enrollment Form'!$CG545=\"\",'Enrollment Form'!$CG545=\"No\"),\"-\",IF(AND('Enrollment Form'!$CG545=\"Yes\",'Enrollment Form'!$CH545=\"\"),\"N\",\"Y\"))","v":"-"},{"$f":"IF(OR('Enrollment Form'!$CG545=\"\",'Enrollment Form'!$CG545=\"No\"),\"-\",IF(AND('Enrollment Form'!$CG545=\"Yes\",'Enrollment Form'!$CI545=\"\"),\"N\",\"Y\"))","v":"-"},{"$f":"IF('Enrollment Form'!B545<>\"Subscriber\",\"-\",IF(AND('Enrollment Form'!B545=\"Subscriber\",'Enrollment Form'!C545=\"Enroll\",'Enrollment Form'!AA545=\"\"),\"N\",\"Y\"))","v":"-"},{"$f":"IF(OR('Enrollment Form'!B545=\"Subscriber\",'Enrollment Form'!B545=\"\"),\"-\",IF('Enrollment Form'!BI545=\"\",\"N\",\"Y\"))","v":"-"},{"$f":"IF('Enrollment Form'!B545<>\"Subscriber\",\"-\",IF(AND('Enrollment Form'!B545=\"Subscriber\",'Enrollment Form'!G545=\"\"),\"N\",\"Y\"))","v":"-"},{"$f":"IF('Enrollment Form'!A545=\"\",\"\",IF('Enrollment Form'!B545=\"Subscriber\",\"-\",IF(AND('Enrollment Form'!B545<>\"Subscriber\",'Enrollment Form'!G545='Enrollment Form'!H545),\"N\",\"Y\")))","v":""},0]
[546,{"$f":"IF('Enrollment Form'!$A546<>\"\",\"Y\",\"N\")","v":"N"},{"$f":"IF(AND('Enrollment Form'!$B546=\"\",'Enrollment Form'!$C546<>\"\"),\"N\",IF($B539=\"N\",\"\",\"Y\"))","v":""},{"$f":"IF(OR($B539=\"N\",'Enrollment Form'!G546=\"\"),\"\",IF('Enrollment Form'!$B546<>\"Subscriber\",\"\",IF('Enrollment Form'!$G546='Enrollment Form'!$H546,\"Y\",\"N\")))","v":""},{"$f":"IF($B539=\"N\",\"\",IF(AND(COUNTIFS('Enrollment Form'!$H$11:$H$1000,'Enrollment Form'!$H546,'Enrollment Form'!$B$11:$B$1000,'Enrollment Form'!$B546)>1,'Enrollment Form'!$H546<>\"\"),\"N\",\"Y\"))","v":""},{"$f":"IF($B539=\"N\",\"\",IF(LEN('Enrollment Form'!$Y546)=0,\"\",IF(LEN('Enrollment Form'!$Y546)<>5,\"N\",\"Y\")))","v":""},{"$f":"IF($B539=\"N\",\"\",IF(LEN('Enrollment Form'!$AD546=0),\"\",IF(LEN('Enrollment Form'!$AD546)<>5,\"N\",\"Y\")))","v":""},{"$f":"IF($B539=\"N\",\"\",IF(LEN('Enrollment Form'!$BL546=0),\"\",IF(LEN('Enrollment Form'!$BL546)<>5,\"N\",\"Y\")))","v":""},{"$f":"IF($B539=\"N\",\"\",IF(LEN('Enrollment Form'!$AE546)=0,\"\",IF(LEN('Enrollment Form'!$AE546)<>10,\"N\",\"Y\")))","v":""},{"$f":"IF($B539=\"N\",\"\",IF(LEN('Enrollment Form'!$AF546)=0,\"\",IF(LEN('Enrollment Form'!$AF546)<>10,\"N\",\"Y\")))","v":""},{"$f":"IF('Enrollment Form'!$O546<>\"Graded\",\"-\",IF(AND('Enrollment Form'!$O546=\"Graded\",'Enrollment Form'!$AO546<>\"\"),\"Y\",\"N\"))","v":"-"},{"$f":"IF($B539=\"N\",\"\",IF(OR('Enrollment Form'!$B546<>\"Subscriber\",'Enrollment Form'!$C546=\"ROC\"),\"-\",IF(AND('Enrollment Form'!$B546=\"Subscriber\",'Enrollment Form'!$C546=\"Enroll\",'Enrollment Form'!$AJ546<>\"\"),\"Y\",\"N\")))","v":""},{"$f":"IF($B539=\"N\",\"\",IF(OR('Enrollment Form'!$B546<>\"Subscriber\",'Enrollment Form'!$C546=\"ROC\"),\"-\",IF(AND('Enrollment Form'!$B546=\"Subscriber\",'Enrollment Form'!$C546=\"Enroll\",'Enrollment Form'!$AK546<>\"\"),\"Y\",\"N\")))","v":""},{"$f":"IF($B539=\"N\",\"\",IF(OR('Enrollment Form'!$B546<>\"Subscriber\",'Enrollment Form'!$C546=\"ROC\"),\"-\",IF(AND('Enrollment Form'!$B546=\"Subscriber\",'Enrollment Form'!$C546=\"Enroll\",'Enrollment Form'!$AL546<>\"\"),\"Y\",\"N\")))","v":""},{"$f":"IF($B539=\"N\",\"\",IF(OR('Enrollment Form'!$B546<>\"Subscriber\",'Enrollment Form'!$C546=\"ROC\"),\"-\",IF(AND('Enrollment Form'!$B546=\"Subscriber\",'Enrollment Form'!$C546=\"Enroll\",'Enrollment Form'!$AM546<>\"\"),\"Y\",\"N\")))","v":""},{"$f":"IF($B539=\"N\",\"\",IF(OR('Enrollment Form'!$B546<>\"Subscriber\",'Enrollment Form'!$C546=\"ROC\"),\"-\",IF(AND('Enrollment Form'!$B546=\"Subscriber\",'Enrollment Form'!$C546=\"Enroll\",'Enrollment Form'!$AN546<>\"\"),\"Y\",\"N\")))","v":""},{"$f":"IF($B539=\"N\",\"\",IF(OR('Enrollment Form'!$B546<>\"Subscriber\",'Enrollment Form'!$C546=\"ROC\"),\"-\",IF(AND('Enrollment Form'!$B546=\"Subscriber\",'Enrollment Form'!$C546=\"Enroll\",'Enrollment Form'!$AP546<>\"\"),\"Y\",\"N\")))","v":""},{"$f":"IF($B539=\"N\",\"\",IF($Q539=\"-\",\"-\",IF(AND($Q539=\"Y\",'Enrollment Form'!$AP546=\"No\"),\"-\",IF(AND($Q539=\"Y\",'Enrollment Form'!$AP546=\"Yes\",'Enrollment Form'!$AQ546<>\"\"),\"Y\",\"N\"))))","v":""},{"$f":"IF($B539=\"N\",\"\",IF(OR('Enrollment Form'!$B546<>\"Subscriber\",'Enrollment Form'!$C546=\"ROC\"),\"-\",IF(AND('Enrollment Form'!$B546=\"Subscriber\",'Enrollment Form'!$C546=\"Enroll\",'Enrollment Form'!$CO546<>\"\"),\"Y\",\"N\")))","v":""},{"$f":"IF($B539=\"N\",\"\",IF($S539=\"-\",\"-\",IF(AND($S539=\"Y\",'Enrollment Form'!$CO546=\"No\"),\"-\",IF(AND($S539=\"Y\",'Enrollment Form'!$CO546=\"Yes\",'Enrollment Form'!$CP546<>\"\"),\"Y\",\"N\"))))","v":""},{"$f":"IF(OR('Enrollment Form'!$AV546=\"Yes\",'Enrollment Form'!$AV546=\"\"),\"-\",IF(AND('Enrollment Form'!$AV546=\"No\",ISERROR(FIND(\"HMO\",VLOOKUP('Enrollment Form'!G546,'Enrollment Form'!H$11:J$1000,3,FALSE),1))=FALSE,COUNTA('Enrollment Form'!$AW546:$AZ546)=4),\"Y\",\"N\"))","v":"-"},{"$f":"IF($B539=\"N\",\"\",IF('Enrollment Form'!$B546=\"Subscriber\",\"-\",IF(COUNTA('Enrollment Form'!$BE546,'Enrollment Form'!$BG546)=2,\"Y\",\"N\")))","v":""},{"$f":"IF($B539=\"N\",\"\",IF(OR('Enrollment Form'!$AU546=\"\",'Enrollment Form'!$AU546=\"No\"),\"-\",IF(AND('Enrollment Form'!$AU546=\"Yes\",COUNTA('Enrollment Form'!$CK546)=1),\"Y\",\"N\")))","v":""},{"$f":"IF(OR('Enrollment Form'!$CK546=\"\",'Enrollment Form'!$CK546=\"No\"),\"-\",IF(COUNTA('Enrollment Form'!$CM546:$CN546)=2,\"Y\",\"N\"))","v":"-"},{"$f":"IF($B539=\"N\",\"\",IF(COUNTIF('Enrollment Form'!$CZ546:$DO546,\"Other\")=COUNTA('Enrollment Form'!$DF546,'Enrollment Form'!$DA546,'Enrollment Form'!$DK546,'Enrollment Form'!$DP546),\"Y\",\"N\"))","v":""},{"$f":"IF($B539=\"N\",\"\",IF(OR('Enrollment Form'!B546<>\"Subscriber\",'Enrollment Form'!C546=\"ROC\",COUNTIF('Enrollment Form'!AS546:AT546,\"Yes\")>=1),\"-\",IF(AND('Enrollment Form'!C546=\"Enroll\",COUNTIF('Enrollment Form'!AS546:AT546,\"No\")=2,'Enrollment Form'!AU546=\"\"),\"N\",\"Y\")))","v":""},{"$f":"IF(OR(B539=\"N\",'Enrollment Form'!B546<>\"Subscriber\",'Enrollment Form'!C546=\"ROC\",'Enrollment Form'!O546<>\"Multiple of Salary\"),\"-\",IF(COUNTA('Enrollment Form'!T546:U546)<2,\"N\",\"Y\"))","v":"-"},{"$f":"IF(B539=\"N\",\"\",IF(OR('Enrollment Form'!C546=\"ROC\",'Enrollment Form'!B546<>\"Subscriber\",'Enrollment Form'!O546=\"Waive\",'Enrollment Form'!O546=\"\"),\"-\",IF('Enrollment Form'!P546=\"\",\"N\",\"Y\")))","v":""},{"$f":"IF($B539=\"N\",\"\",IF(AND('Enrollment Form'!$C546=\"ROC\",'Enrollment Form'!$DS546<>\"\"),\"Y\",IF(AND('Enrollment Form'!$C546=\"ROC\",'Enrollment Form'!$DS546=\"\"),\"N\",IF(AND('Enrollment Form'!$C546=\"Enroll\",'Enrollment Form'!$B546=\"Subscriber\",'Enrollment Form'!$CQ546=\"No\",'Enrollment Form'!$DS546=\"\"),\"N\",IF(AND('Enrollment Form'!$C546=\"Enroll\",'Enrollment Form'!$B546=\"Subscriber\",'Enrollment Form'!$CQ546=\"Yes\"),\"-\",\"Y\")))))","v":""},{"$f":"IF($B539=\"N\",\"\",IF(AND('Enrollment Form'!$C546=\"ROC\",'Enrollment Form'!$DT546<>\"\"),\"Y\",IF(AND('Enrollment Form'!$C546=\"ROC\",'Enrollment Form'!$DT546=\"\"),\"N\",IF(AND('Enrollment Form'!$C546=\"Enroll\",'Enrollment Form'!$B546=\"Subscriber\",'Enrollment Form'!$CQ546=\"No\",'Enrollment Form'!$DT546=\"\"),\"N\",IF(AND('Enrollment Form'!$C546=\"Enroll\",'Enrollment Form'!$B546=\"Subscriber\",'Enrollment Form'!$CQ546=\"Yes\"),\"-\",\"Y\")))))","v":""},{"$f":"IF('Enrollment Form'!AH546=\"\",\"\",IF(ISERROR(SEARCH(\".\",'Enrollment Form'!AH546,SEARCH(\"@\",'Enrollment Form'!AH546))),\"N\",\"Y\"))","v":""},{"$f":"IF(OR($B539=\"N\",'Enrollment Form'!$G546=\"\"),\"\",IF('Enrollment Form'!$B546<>\"Subscriber\",\"-\",IF(COUNTIF('Enrollment Form'!$AS546:$AT546,\"Yes\")=2,\"N\",\"Y\")))","v":""},{"$f":"IF(OR('Enrollment Form'!$CC546=\"\",'Enrollment Form'!$CC546=\"No\"),\"-\",IF(AND('Enrollment Form'!$CC546=\"Yes\",'Enrollment Form'!$CD546=\"\"),\"N\",\"Y\"))","v":"-"},{"$f":"IF(OR('Enrollment Form'!$CE546=\"\",'Enrollment Form'!$CE546=\"No\"),\"-\",IF(AND('Enrollment Form'!$CE546=\"Yes\",'Enrollment Form'!$CF546=\"\"),\"N\",\"Y\"))","v":"-"},{"$f":"IF(OR('Enrollment Form'!$CG546=\"\",'Enrollment Form'!$CG546=\"No\"),\"-\",IF(AND('Enrollment Form'!$CG546=\"Yes\",'Enrollment Form'!$CH546=\"\"),\"N\",\"Y\"))","v":"-"},{"$f":"IF(OR('Enrollment Form'!$CG546=\"\",'Enrollment Form'!$CG546=\"No\"),\"-\",IF(AND('Enrollment Form'!$CG546=\"Yes\",'Enrollment Form'!$CI546=\"\"),\"N\",\"Y\"))","v":"-"},{"$f":"IF('Enrollment Form'!B546<>\"Subscriber\",\"-\",IF(AND('Enrollment Form'!B546=\"Subscriber\",'Enrollment Form'!C546=\"Enroll\",'Enrollment Form'!AA546=\"\"),\"N\",\"Y\"))","v":"-"},{"$f":"IF(OR('Enrollment Form'!B546=\"Subscriber\",'Enrollment Form'!B546=\"\"),\"-\",IF('Enrollment Form'!BI546=\"\",\"N\",\"Y\"))","v":"-"},{"$f":"IF('Enrollment Form'!B546<>\"Subscriber\",\"-\",IF(AND('Enrollment Form'!B546=\"Subscriber\",'Enrollment Form'!G546=\"\"),\"N\",\"Y\"))","v":"-"},{"$f":"IF('Enrollment Form'!A546=\"\",\"\",IF('Enrollment Form'!B546=\"Subscriber\",\"-\",IF(AND('Enrollment Form'!B546<>\"Subscriber\",'Enrollment Form'!G546='Enrollment Form'!H546),\"N\",\"Y\")))","v":""},0]
[547,{"$f":"IF('Enrollment Form'!$A547<>\"\",\"Y\",\"N\")","v":"N"},{"$f":"IF(AND('Enrollment Form'!$B547=\"\",'Enrollment Form'!$C547<>\"\"),\"N\",IF($B540=\"N\",\"\",\"Y\"))","v":""},{"$f":"IF(OR($B540=\"N\",'Enrollment Form'!G547=\"\"),\"\",IF('Enrollment Form'!$B547<>\"Subscriber\",\"\",IF('Enrollment Form'!$G547='Enrollment Form'!$H547,\"Y\",\"N\")))","v":""},{"$f":"IF($B540=\"N\",\"\",IF(AND(COUNTIFS('Enrollment Form'!$H$11:$H$1000,'Enrollment Form'!$H547,'Enrollment Form'!$B$11:$B$1000,'Enrollment Form'!$B547)>1,'Enrollment Form'!$H547<>\"\"),\"N\",\"Y\"))","v":""},{"$f":"IF($B540=\"N\",\"\",IF(LEN('Enrollment Form'!$Y547)=0,\"\",IF(LEN('Enrollment Form'!$Y547)<>5,\"N\",\"Y\")))","v":""},{"$f":"IF($B540=\"N\",\"\",IF(LEN('Enrollment Form'!$AD547=0),\"\",IF(LEN('Enrollment Form'!$AD547)<>5,\"N\",\"Y\")))","v":""},{"$f":"IF($B540=\"N\",\"\",IF(LEN('Enrollment Form'!$BL547=0),\"\",IF(LEN('Enrollment Form'!$BL547)<>5,\"N\",\"Y\")))","v":""},{"$f":"IF($B540=\"N\",\"\",IF(LEN('Enrollment Form'!$AE547)=0,\"\",IF(LEN('Enrollment Form'!$AE547)<>10,\"N\",\"Y\")))","v":""},{"$f":"IF($B540=\"N\",\"\",IF(LEN('Enrollment Form'!$AF547)=0,\"\",IF(LEN('Enrollment Form'!$AF547)<>10,\"N\",\"Y\")))","v":""},{"$f":"IF('Enrollment Form'!$O547<>\"Graded\",\"-\",IF(AND('Enrollment Form'!$O547=\"Graded\",'Enrollment Form'!$AO547<>\"\"),\"Y\",\"N\"))","v":"-"},{"$f":"IF($B540=\"N\",\"\",IF(OR('Enrollment Form'!$B547<>\"Subscriber\",'Enrollment Form'!$C547=\"ROC\"),\"-\",IF(AND('Enrollment Form'!$B547=\"Subscriber\",'Enrollment Form'!$C547=\"Enroll\",'Enrollment Form'!$AJ547<>\"\"),\"Y\",\"N\")))","v":""},{"$f":"IF($B540=\"N\",\"\",IF(OR('Enrollment Form'!$B547<>\"Subscriber\",'Enrollment Form'!$C547=\"ROC\"),\"-\",IF(AND('Enrollment Form'!$B547=\"Subscriber\",'Enrollment Form'!$C547=\"Enroll\",'Enrollment Form'!$AK547<>\"\"),\"Y\",\"N\")))","v":""},{"$f":"IF($B540=\"N\",\"\",IF(OR('Enrollment Form'!$B547<>\"Subscriber\",'Enrollment Form'!$C547=\"ROC\"),\"-\",IF(AND('Enrollment Form'!$B547=\"Subscriber\",'Enrollment Form'!$C547=\"Enroll\",'Enrollment Form'!$AL547<>\"\"),\"Y\",\"N\")))","v":""},{"$f":"IF($B540=\"N\",\"\",IF(OR('Enrollment Form'!$B547<>\"Subscriber\",'Enrollment Form'!$C547=\"ROC\"),\"-\",IF(AND('Enrollment Form'!$B547=\"Subscriber\",'Enrollment Form'!$C547=\"Enroll\",'Enrollment Form'!$AM547<>\"\"),\"Y\",\"N\")))","v":""},{"$f":"IF($B540=\"N\",\"\",IF(OR('Enrollment Form'!$B547<>\"Subscriber\",'Enrollment Form'!$C547=\"ROC\"),\"-\",IF(AND('Enrollment Form'!$B547=\"Subscriber\",'Enrollment Form'!$C547=\"Enroll\",'Enrollment Form'!$AN547<>\"\"),\"Y\",\"N\")))","v":""},{"$f":"IF($B540=\"N\",\"\",IF(OR('Enrollment Form'!$B547<>\"Subscriber\",'Enrollment Form'!$C547=\"ROC\"),\"-\",IF(AND('Enrollment Form'!$B547=\"Subscriber\",'Enrollment Form'!$C547=\"Enroll\",'Enrollment Form'!$AP547<>\"\"),\"Y\",\"N\")))","v":""},{"$f":"IF($B540=\"N\",\"\",IF($Q540=\"-\",\"-\",IF(AND($Q540=\"Y\",'Enrollment Form'!$AP547=\"No\"),\"-\",IF(AND($Q540=\"Y\",'Enrollment Form'!$AP547=\"Yes\",'Enrollment Form'!$AQ547<>\"\"),\"Y\",\"N\"))))","v":""},{"$f":"IF($B540=\"N\",\"\",IF(OR('Enrollment Form'!$B547<>\"Subscriber\",'Enrollment Form'!$C547=\"ROC\"),\"-\",IF(AND('Enrollment Form'!$B547=\"Subscriber\",'Enrollment Form'!$C547=\"Enroll\",'Enrollment Form'!$CO547<>\"\"),\"Y\",\"N\")))","v":""},{"$f":"IF($B540=\"N\",\"\",IF($S540=\"-\",\"-\",IF(AND($S540=\"Y\",'Enrollment Form'!$CO547=\"No\"),\"-\",IF(AND($S540=\"Y\",'Enrollment Form'!$CO547=\"Yes\",'Enrollment Form'!$CP547<>\"\"),\"Y\",\"N\"))))","v":""},{"$f":"IF(OR('Enrollment Form'!$AV547=\"Yes\",'Enrollment Form'!$AV547=\"\"),\"-\",IF(AND('Enrollment Form'!$AV547=\"No\",ISERROR(FIND(\"HMO\",VLOOKUP('Enrollment Form'!G547,'Enrollment Form'!H$11:J$1000,3,FALSE),1))=FALSE,COUNTA('Enrollment Form'!$AW547:$AZ547)=4),\"Y\",\"N\"))","v":"-"},{"$f":"IF($B540=\"N\",\"\",IF('Enrollment Form'!$B547=\"Subscriber\",\"-\",IF(COUNTA('Enrollment Form'!$BE547,'Enrollment Form'!$BG547)=2,\"Y\",\"N\")))","v":""},{"$f":"IF($B540=\"N\",\"\",IF(OR('Enrollment Form'!$AU547=\"\",'Enrollment Form'!$AU547=\"No\"),\"-\",IF(AND('Enrollment Form'!$AU547=\"Yes\",COUNTA('Enrollment Form'!$CK547)=1),\"Y\",\"N\")))","v":""},{"$f":"IF(OR('Enrollment Form'!$CK547=\"\",'Enrollment Form'!$CK547=\"No\"),\"-\",IF(COUNTA('Enrollment Form'!$CM547:$CN547)=2,\"Y\",\"N\"))","v":"-"},{"$f":"IF($B540=\"N\",\"\",IF(COUNTIF('Enrollment Form'!$CZ547:$DO547,\"Other\")=COUNTA('Enrollment Form'!$DF547,'Enrollment Form'!$DA547,'Enrollment Form'!$DK547,'Enrollment Form'!$DP547),\"Y\",\"N\"))","v":""},{"$f":"IF($B540=\"N\",\"\",IF(OR('Enrollment Form'!B547<>\"Subscriber\",'Enrollment Form'!C547=\"ROC\",COUNTIF('Enrollment Form'!AS547:AT547,\"Yes\")>=1),\"-\",IF(AND('Enrollment Form'!C547=\"Enroll\",COUNTIF('Enrollment Form'!AS547:AT547,\"No\")=2,'Enrollment Form'!AU547=\"\"),\"N\",\"Y\")))","v":""},{"$f":"IF(OR(B540=\"N\",'Enrollment Form'!B547<>\"Subscriber\",'Enrollment Form'!C547=\"ROC\",'Enrollment Form'!O547<>\"Multiple of Salary\"),\"-\",IF(COUNTA('Enrollment Form'!T547:U547)<2,\"N\",\"Y\"))","v":"-"},{"$f":"IF(B540=\"N\",\"\",IF(OR('Enrollment Form'!C547=\"ROC\",'Enrollment Form'!B547<>\"Subscriber\",'Enrollment Form'!O547=\"Waive\",'Enrollment Form'!O547=\"\"),\"-\",IF('Enrollment Form'!P547=\"\",\"N\",\"Y\")))","v":""},{"$f":"IF($B540=\"N\",\"\",IF(AND('Enrollment Form'!$C547=\"ROC\",'Enrollment Form'!$DS547<>\"\"),\"Y\",IF(AND('Enrollment Form'!$C547=\"ROC\",'Enrollment Form'!$DS547=\"\"),\"N\",IF(AND('Enrollment Form'!$C547=\"Enroll\",'Enrollment Form'!$B547=\"Subscriber\",'Enrollment Form'!$CQ547=\"No\",'Enrollment Form'!$DS547=\"\"),\"N\",IF(AND('Enrollment Form'!$C547=\"Enroll\",'Enrollment Form'!$B547=\"Subscriber\",'Enrollment Form'!$CQ547=\"Yes\"),\"-\",\"Y\")))))","v":""},{"$f":"IF($B540=\"N\",\"\",IF(AND('Enrollment Form'!$C547=\"ROC\",'Enrollment Form'!$DT547<>\"\"),\"Y\",IF(AND('Enrollment Form'!$C547=\"ROC\",'Enrollment Form'!$DT547=\"\"),\"N\",IF(AND('Enrollment Form'!$C547=\"Enroll\",'Enrollment Form'!$B547=\"Subscriber\",'Enrollment Form'!$CQ547=\"No\",'Enrollment Form'!$DT547=\"\"),\"N\",IF(AND('Enrollment Form'!$C547=\"Enroll\",'Enrollment Form'!$B547=\"Subscriber\",'Enrollment Form'!$CQ547=\"Yes\"),\"-\",\"Y\")))))","v":""},{"$f":"IF('Enrollment Form'!AH547=\"\",\"\",IF(ISERROR(SEARCH(\".\",'Enrollment Form'!AH547,SEARCH(\"@\",'Enrollment Form'!AH547))),\"N\",\"Y\"))","v":""},{"$f":"IF(OR($B540=\"N\",'Enrollment Form'!$G547=\"\"),\"\",IF('Enrollment Form'!$B547<>\"Subscriber\",\"-\",IF(COUNTIF('Enrollment Form'!$AS547:$AT547,\"Yes\")=2,\"N\",\"Y\")))","v":""},{"$f":"IF(OR('Enrollment Form'!$CC547=\"\",'Enrollment Form'!$CC547=\"No\"),\"-\",IF(AND('Enrollment Form'!$CC547=\"Yes\",'Enrollment Form'!$CD547=\"\"),\"N\",\"Y\"))","v":"-"},{"$f":"IF(OR('Enrollment Form'!$CE547=\"\",'Enrollment Form'!$CE547=\"No\"),\"-\",IF(AND('Enrollment Form'!$CE547=\"Yes\",'Enrollment Form'!$CF547=\"\"),\"N\",\"Y\"))","v":"-"},{"$f":"IF(OR('Enrollment Form'!$CG547=\"\",'Enrollment Form'!$CG547=\"No\"),\"-\",IF(AND('Enrollment Form'!$CG547=\"Yes\",'Enrollment Form'!$CH547=\"\"),\"N\",\"Y\"))","v":"-"},{"$f":"IF(OR('Enrollment Form'!$CG547=\"\",'Enrollment Form'!$CG547=\"No\"),\"-\",IF(AND('Enrollment Form'!$CG547=\"Yes\",'Enrollment Form'!$CI547=\"\"),\"N\",\"Y\"))","v":"-"},{"$f":"IF('Enrollment Form'!B547<>\"Subscriber\",\"-\",IF(AND('Enrollment Form'!B547=\"Subscriber\",'Enrollment Form'!C547=\"Enroll\",'Enrollment Form'!AA547=\"\"),\"N\",\"Y\"))","v":"-"},{"$f":"IF(OR('Enrollment Form'!B547=\"Subscriber\",'Enrollment Form'!B547=\"\"),\"-\",IF('Enrollment Form'!BI547=\"\",\"N\",\"Y\"))","v":"-"},{"$f":"IF('Enrollment Form'!B547<>\"Subscriber\",\"-\",IF(AND('Enrollment Form'!B547=\"Subscriber\",'Enrollment Form'!G547=\"\"),\"N\",\"Y\"))","v":"-"},{"$f":"IF('Enrollment Form'!A547=\"\",\"\",IF('Enrollment Form'!B547=\"Subscriber\",\"-\",IF(AND('Enrollment Form'!B547<>\"Subscriber\",'Enrollment Form'!G547='Enrollment Form'!H547),\"N\",\"Y\")))","v":""},0]
[548,{"$f":"IF('Enrollment Form'!$A548<>\"\",\"Y\",\"N\")","v":"N"},{"$f":"IF(AND('Enrollment Form'!$B548=\"\",'Enrollment Form'!$C548<>\"\"),\"N\",IF($B541=\"N\",\"\",\"Y\"))","v":""},{"$f":"IF(OR($B541=\"N\",'Enrollment Form'!G548=\"\"),\"\",IF('Enrollment Form'!$B548<>\"Subscriber\",\"\",IF('Enrollment Form'!$G548='Enrollment Form'!$H548,\"Y\",\"N\")))","v":""},{"$f":"IF($B541=\"N\",\"\",IF(AND(COUNTIFS('Enrollment Form'!$H$11:$H$1000,'Enrollment Form'!$H548,'Enrollment Form'!$B$11:$B$1000,'Enrollment Form'!$B548)>1,'Enrollment Form'!$H548<>\"\"),\"N\",\"Y\"))","v":""},{"$f":"IF($B541=\"N\",\"\",IF(LEN('Enrollment Form'!$Y548)=0,\"\",IF(LEN('Enrollment Form'!$Y548)<>5,\"N\",\"Y\")))","v":""},{"$f":"IF($B541=\"N\",\"\",IF(LEN('Enrollment Form'!$AD548=0),\"\",IF(LEN('Enrollment Form'!$AD548)<>5,\"N\",\"Y\")))","v":""},{"$f":"IF($B541=\"N\",\"\",IF(LEN('Enrollment Form'!$BL548=0),\"\",IF(LEN('Enrollment Form'!$BL548)<>5,\"N\",\"Y\")))","v":""},{"$f":"IF($B541=\"N\",\"\",IF(LEN('Enrollment Form'!$AE548)=0,\"\",IF(LEN('Enrollment Form'!$AE548)<>10,\"N\",\"Y\")))","v":""},{"$f":"IF($B541=\"N\",\"\",IF(LEN('Enrollment Form'!$AF548)=0,\"\",IF(LEN('Enrollment Form'!$AF548)<>10,\"N\",\"Y\")))","v":""},{"$f":"IF('Enrollment Form'!$O548<>\"Graded\",\"-\",IF(AND('Enrollment Form'!$O548=\"Graded\",'Enrollment Form'!$AO548<>\"\"),\"Y\",\"N\"))","v":"-"},{"$f":"IF($B541=\"N\",\"\",IF(OR('Enrollment Form'!$B548<>\"Subscriber\",'Enrollment Form'!$C548=\"ROC\"),\"-\",IF(AND('Enrollment Form'!$B548=\"Subscriber\",'Enrollment Form'!$C548=\"Enroll\",'Enrollment Form'!$AJ548<>\"\"),\"Y\",\"N\")))","v":""},{"$f":"IF($B541=\"N\",\"\",IF(OR('Enrollment Form'!$B548<>\"Subscriber\",'Enrollment Form'!$C548=\"ROC\"),\"-\",IF(AND('Enrollment Form'!$B548=\"Subscriber\",'Enrollment Form'!$C548=\"Enroll\",'Enrollment Form'!$AK548<>\"\"),\"Y\",\"N\")))","v":""},{"$f":"IF($B541=\"N\",\"\",IF(OR('Enrollment Form'!$B548<>\"Subscriber\",'Enrollment Form'!$C548=\"ROC\"),\"-\",IF(AND('Enrollment Form'!$B548=\"Subscriber\",'Enrollment Form'!$C548=\"Enroll\",'Enrollment Form'!$AL548<>\"\"),\"Y\",\"N\")))","v":""},{"$f":"IF($B541=\"N\",\"\",IF(OR('Enrollment Form'!$B548<>\"Subscriber\",'Enrollment Form'!$C548=\"ROC\"),\"-\",IF(AND('Enrollment Form'!$B548=\"Subscriber\",'Enrollment Form'!$C548=\"Enroll\",'Enrollment Form'!$AM548<>\"\"),\"Y\",\"N\")))","v":""},{"$f":"IF($B541=\"N\",\"\",IF(OR('Enrollment Form'!$B548<>\"Subscriber\",'Enrollment Form'!$C548=\"ROC\"),\"-\",IF(AND('Enrollment Form'!$B548=\"Subscriber\",'Enrollment Form'!$C548=\"Enroll\",'Enrollment Form'!$AN548<>\"\"),\"Y\",\"N\")))","v":""},{"$f":"IF($B541=\"N\",\"\",IF(OR('Enrollment Form'!$B548<>\"Subscriber\",'Enrollment Form'!$C548=\"ROC\"),\"-\",IF(AND('Enrollment Form'!$B548=\"Subscriber\",'Enrollment Form'!$C548=\"Enroll\",'Enrollment Form'!$AP548<>\"\"),\"Y\",\"N\")))","v":""},{"$f":"IF($B541=\"N\",\"\",IF($Q541=\"-\",\"-\",IF(AND($Q541=\"Y\",'Enrollment Form'!$AP548=\"No\"),\"-\",IF(AND($Q541=\"Y\",'Enrollment Form'!$AP548=\"Yes\",'Enrollment Form'!$AQ548<>\"\"),\"Y\",\"N\"))))","v":""},{"$f":"IF($B541=\"N\",\"\",IF(OR('Enrollment Form'!$B548<>\"Subscriber\",'Enrollment Form'!$C548=\"ROC\"),\"-\",IF(AND('Enrollment Form'!$B548=\"Subscriber\",'Enrollment Form'!$C548=\"Enroll\",'Enrollment Form'!$CO548<>\"\"),\"Y\",\"N\")))","v":""},{"$f":"IF($B541=\"N\",\"\",IF($S541=\"-\",\"-\",IF(AND($S541=\"Y\",'Enrollment Form'!$CO548=\"No\"),\"-\",IF(AND($S541=\"Y\",'Enrollment Form'!$CO548=\"Yes\",'Enrollment Form'!$CP548<>\"\"),\"Y\",\"N\"))))","v":""},{"$f":"IF(OR('Enrollment Form'!$AV548=\"Yes\",'Enrollment Form'!$AV548=\"\"),\"-\",IF(AND('Enrollment Form'!$AV548=\"No\",ISERROR(FIND(\"HMO\",VLOOKUP('Enrollment Form'!G548,'Enrollment Form'!H$11:J$1000,3,FALSE),1))=FALSE,COUNTA('Enrollment Form'!$AW548:$AZ548)=4),\"Y\",\"N\"))","v":"-"},{"$f":"IF($B541=\"N\",\"\",IF('Enrollment Form'!$B548=\"Subscriber\",\"-\",IF(COUNTA('Enrollment Form'!$BE548,'Enrollment Form'!$BG548)=2,\"Y\",\"N\")))","v":""},{"$f":"IF($B541=\"N\",\"\",IF(OR('Enrollment Form'!$AU548=\"\",'Enrollment Form'!$AU548=\"No\"),\"-\",IF(AND('Enrollment Form'!$AU548=\"Yes\",COUNTA('Enrollment Form'!$CK548)=1),\"Y\",\"N\")))","v":""},{"$f":"IF(OR('Enrollment Form'!$CK548=\"\",'Enrollment Form'!$CK548=\"No\"),\"-\",IF(COUNTA('Enrollment Form'!$CM548:$CN548)=2,\"Y\",\"N\"))","v":"-"},{"$f":"IF($B541=\"N\",\"\",IF(COUNTIF('Enrollment Form'!$CZ548:$DO548,\"Other\")=COUNTA('Enrollment Form'!$DF548,'Enrollment Form'!$DA548,'Enrollment Form'!$DK548,'Enrollment Form'!$DP548),\"Y\",\"N\"))","v":""},{"$f":"IF($B541=\"N\",\"\",IF(OR('Enrollment Form'!B548<>\"Subscriber\",'Enrollment Form'!C548=\"ROC\",COUNTIF('Enrollment Form'!AS548:AT548,\"Yes\")>=1),\"-\",IF(AND('Enrollment Form'!C548=\"Enroll\",COUNTIF('Enrollment Form'!AS548:AT548,\"No\")=2,'Enrollment Form'!AU548=\"\"),\"N\",\"Y\")))","v":""},{"$f":"IF(OR(B541=\"N\",'Enrollment Form'!B548<>\"Subscriber\",'Enrollment Form'!C548=\"ROC\",'Enrollment Form'!O548<>\"Multiple of Salary\"),\"-\",IF(COUNTA('Enrollment Form'!T548:U548)<2,\"N\",\"Y\"))","v":"-"},{"$f":"IF(B541=\"N\",\"\",IF(OR('Enrollment Form'!C548=\"ROC\",'Enrollment Form'!B548<>\"Subscriber\",'Enrollment Form'!O548=\"Waive\",'Enrollment Form'!O548=\"\"),\"-\",IF('Enrollment Form'!P548=\"\",\"N\",\"Y\")))","v":""},{"$f":"IF($B541=\"N\",\"\",IF(AND('Enrollment Form'!$C548=\"ROC\",'Enrollment Form'!$DS548<>\"\"),\"Y\",IF(AND('Enrollment Form'!$C548=\"ROC\",'Enrollment Form'!$DS548=\"\"),\"N\",IF(AND('Enrollment Form'!$C548=\"Enroll\",'Enrollment Form'!$B548=\"Subscriber\",'Enrollment Form'!$CQ548=\"No\",'Enrollment Form'!$DS548=\"\"),\"N\",IF(AND('Enrollment Form'!$C548=\"Enroll\",'Enrollment Form'!$B548=\"Subscriber\",'Enrollment Form'!$CQ548=\"Yes\"),\"-\",\"Y\")))))","v":""},{"$f":"IF($B541=\"N\",\"\",IF(AND('Enrollment Form'!$C548=\"ROC\",'Enrollment Form'!$DT548<>\"\"),\"Y\",IF(AND('Enrollment Form'!$C548=\"ROC\",'Enrollment Form'!$DT548=\"\"),\"N\",IF(AND('Enrollment Form'!$C548=\"Enroll\",'Enrollment Form'!$B548=\"Subscriber\",'Enrollment Form'!$CQ548=\"No\",'Enrollment Form'!$DT548=\"\"),\"N\",IF(AND('Enrollment Form'!$C548=\"Enroll\",'Enrollment Form'!$B548=\"Subscriber\",'Enrollment Form'!$CQ548=\"Yes\"),\"-\",\"Y\")))))","v":""},{"$f":"IF('Enrollment Form'!AH548=\"\",\"\",IF(ISERROR(SEARCH(\".\",'Enrollment Form'!AH548,SEARCH(\"@\",'Enrollment Form'!AH548))),\"N\",\"Y\"))","v":""},{"$f":"IF(OR($B541=\"N\",'Enrollment Form'!$G548=\"\"),\"\",IF('Enrollment Form'!$B548<>\"Subscriber\",\"-\",IF(COUNTIF('Enrollment Form'!$AS548:$AT548,\"Yes\")=2,\"N\",\"Y\")))","v":""},{"$f":"IF(OR('Enrollment Form'!$CC548=\"\",'Enrollment Form'!$CC548=\"No\"),\"-\",IF(AND('Enrollment Form'!$CC548=\"Yes\",'Enrollment Form'!$CD548=\"\"),\"N\",\"Y\"))","v":"-"},{"$f":"IF(OR('Enrollment Form'!$CE548=\"\",'Enrollment Form'!$CE548=\"No\"),\"-\",IF(AND('Enrollment Form'!$CE548=\"Yes\",'Enrollment Form'!$CF548=\"\"),\"N\",\"Y\"))","v":"-"},{"$f":"IF(OR('Enrollment Form'!$CG548=\"\",'Enrollment Form'!$CG548=\"No\"),\"-\",IF(AND('Enrollment Form'!$CG548=\"Yes\",'Enrollment Form'!$CH548=\"\"),\"N\",\"Y\"))","v":"-"},{"$f":"IF(OR('Enrollment Form'!$CG548=\"\",'Enrollment Form'!$CG548=\"No\"),\"-\",IF(AND('Enrollment Form'!$CG548=\"Yes\",'Enrollment Form'!$CI548=\"\"),\"N\",\"Y\"))","v":"-"},{"$f":"IF('Enrollment Form'!B548<>\"Subscriber\",\"-\",IF(AND('Enrollment Form'!B548=\"Subscriber\",'Enrollment Form'!C548=\"Enroll\",'Enrollment Form'!AA548=\"\"),\"N\",\"Y\"))","v":"-"},{"$f":"IF(OR('Enrollment Form'!B548=\"Subscriber\",'Enrollment Form'!B548=\"\"),\"-\",IF('Enrollment Form'!BI548=\"\",\"N\",\"Y\"))","v":"-"},{"$f":"IF('Enrollment Form'!B548<>\"Subscriber\",\"-\",IF(AND('Enrollment Form'!B548=\"Subscriber\",'Enrollment Form'!G548=\"\"),\"N\",\"Y\"))","v":"-"},{"$f":"IF('Enrollment Form'!A548=\"\",\"\",IF('Enrollment Form'!B548=\"Subscriber\",\"-\",IF(AND('Enrollment Form'!B548<>\"Subscriber\",'Enrollment Form'!G548='Enrollment Form'!H548),\"N\",\"Y\")))","v":""},0]
[549,{"$f":"IF('Enrollment Form'!$A549<>\"\",\"Y\",\"N\")","v":"N"},{"$f":"IF(AND('Enrollment Form'!$B549=\"\",'Enrollment Form'!$C549<>\"\"),\"N\",IF($B542=\"N\",\"\",\"Y\"))","v":""},{"$f":"IF(OR($B542=\"N\",'Enrollment Form'!G549=\"\"),\"\",IF('Enrollment Form'!$B549<>\"Subscriber\",\"\",IF('Enrollment Form'!$G549='Enrollment Form'!$H549,\"Y\",\"N\")))","v":""},{"$f":"IF($B542=\"N\",\"\",IF(AND(COUNTIFS('Enrollment Form'!$H$11:$H$1000,'Enrollment Form'!$H549,'Enrollment Form'!$B$11:$B$1000,'Enrollment Form'!$B549)>1,'Enrollment Form'!$H549<>\"\"),\"N\",\"Y\"))","v":""},{"$f":"IF($B542=\"N\",\"\",IF(LEN('Enrollment Form'!$Y549)=0,\"\",IF(LEN('Enrollment Form'!$Y549)<>5,\"N\",\"Y\")))","v":""},{"$f":"IF($B542=\"N\",\"\",IF(LEN('Enrollment Form'!$AD549=0),\"\",IF(LEN('Enrollment Form'!$AD549)<>5,\"N\",\"Y\")))","v":""},{"$f":"IF($B542=\"N\",\"\",IF(LEN('Enrollment Form'!$BL549=0),\"\",IF(LEN('Enrollment Form'!$BL549)<>5,\"N\",\"Y\")))","v":""},{"$f":"IF($B542=\"N\",\"\",IF(LEN('Enrollment Form'!$AE549)=0,\"\",IF(LEN('Enrollment Form'!$AE549)<>10,\"N\",\"Y\")))","v":""},{"$f":"IF($B542=\"N\",\"\",IF(LEN('Enrollment Form'!$AF549)=0,\"\",IF(LEN('Enrollment Form'!$AF549)<>10,\"N\",\"Y\")))","v":""},{"$f":"IF('Enrollment Form'!$O549<>\"Graded\",\"-\",IF(AND('Enrollment Form'!$O549=\"Graded\",'Enrollment Form'!$AO549<>\"\"),\"Y\",\"N\"))","v":"-"},{"$f":"IF($B542=\"N\",\"\",IF(OR('Enrollment Form'!$B549<>\"Subscriber\",'Enrollment Form'!$C549=\"ROC\"),\"-\",IF(AND('Enrollment Form'!$B549=\"Subscriber\",'Enrollment Form'!$C549=\"Enroll\",'Enrollment Form'!$AJ549<>\"\"),\"Y\",\"N\")))","v":""},{"$f":"IF($B542=\"N\",\"\",IF(OR('Enrollment Form'!$B549<>\"Subscriber\",'Enrollment Form'!$C549=\"ROC\"),\"-\",IF(AND('Enrollment Form'!$B549=\"Subscriber\",'Enrollment Form'!$C549=\"Enroll\",'Enrollment Form'!$AK549<>\"\"),\"Y\",\"N\")))","v":""},{"$f":"IF($B542=\"N\",\"\",IF(OR('Enrollment Form'!$B549<>\"Subscriber\",'Enrollment Form'!$C549=\"ROC\"),\"-\",IF(AND('Enrollment Form'!$B549=\"Subscriber\",'Enrollment Form'!$C549=\"Enroll\",'Enrollment Form'!$AL549<>\"\"),\"Y\",\"N\")))","v":""},{"$f":"IF($B542=\"N\",\"\",IF(OR('Enrollment Form'!$B549<>\"Subscriber\",'Enrollment Form'!$C549=\"ROC\"),\"-\",IF(AND('Enrollment Form'!$B549=\"Subscriber\",'Enrollment Form'!$C549=\"Enroll\",'Enrollment Form'!$AM549<>\"\"),\"Y\",\"N\")))","v":""},{"$f":"IF($B542=\"N\",\"\",IF(OR('Enrollment Form'!$B549<>\"Subscriber\",'Enrollment Form'!$C549=\"ROC\"),\"-\",IF(AND('Enrollment Form'!$B549=\"Subscriber\",'Enrollment Form'!$C549=\"Enroll\",'Enrollment Form'!$AN549<>\"\"),\"Y\",\"N\")))","v":""},{"$f":"IF($B542=\"N\",\"\",IF(OR('Enrollment Form'!$B549<>\"Subscriber\",'Enrollment Form'!$C549=\"ROC\"),\"-\",IF(AND('Enrollment Form'!$B549=\"Subscriber\",'Enrollment Form'!$C549=\"Enroll\",'Enrollment Form'!$AP549<>\"\"),\"Y\",\"N\")))","v":""},{"$f":"IF($B542=\"N\",\"\",IF($Q542=\"-\",\"-\",IF(AND($Q542=\"Y\",'Enrollment Form'!$AP549=\"No\"),\"-\",IF(AND($Q542=\"Y\",'Enrollment Form'!$AP549=\"Yes\",'Enrollment Form'!$AQ549<>\"\"),\"Y\",\"N\"))))","v":""},{"$f":"IF($B542=\"N\",\"\",IF(OR('Enrollment Form'!$B549<>\"Subscriber\",'Enrollment Form'!$C549=\"ROC\"),\"-\",IF(AND('Enrollment Form'!$B549=\"Subscriber\",'Enrollment Form'!$C549=\"Enroll\",'Enrollment Form'!$CO549<>\"\"),\"Y\",\"N\")))","v":""},{"$f":"IF($B542=\"N\",\"\",IF($S542=\"-\",\"-\",IF(AND($S542=\"Y\",'Enrollment Form'!$CO549=\"No\"),\"-\",IF(AND($S542=\"Y\",'Enrollment Form'!$CO549=\"Yes\",'Enrollment Form'!$CP549<>\"\"),\"Y\",\"N\"))))","v":""},{"$f":"IF(OR('Enrollment Form'!$AV549=\"Yes\",'Enrollment Form'!$AV549=\"\"),\"-\",IF(AND('Enrollment Form'!$AV549=\"No\",ISERROR(FIND(\"HMO\",VLOOKUP('Enrollment Form'!G549,'Enrollment Form'!H$11:J$1000,3,FALSE),1))=FALSE,COUNTA('Enrollment Form'!$AW549:$AZ549)=4),\"Y\",\"N\"))","v":"-"},{"$f":"IF($B542=\"N\",\"\",IF('Enrollment Form'!$B549=\"Subscriber\",\"-\",IF(COUNTA('Enrollment Form'!$BE549,'Enrollment Form'!$BG549)=2,\"Y\",\"N\")))","v":""},{"$f":"IF($B542=\"N\",\"\",IF(OR('Enrollment Form'!$AU549=\"\",'Enrollment Form'!$AU549=\"No\"),\"-\",IF(AND('Enrollment Form'!$AU549=\"Yes\",COUNTA('Enrollment Form'!$CK549)=1),\"Y\",\"N\")))","v":""},{"$f":"IF(OR('Enrollment Form'!$CK549=\"\",'Enrollment Form'!$CK549=\"No\"),\"-\",IF(COUNTA('Enrollment Form'!$CM549:$CN549)=2,\"Y\",\"N\"))","v":"-"},{"$f":"IF($B542=\"N\",\"\",IF(COUNTIF('Enrollment Form'!$CZ549:$DO549,\"Other\")=COUNTA('Enrollment Form'!$DF549,'Enrollment Form'!$DA549,'Enrollment Form'!$DK549,'Enrollment Form'!$DP549),\"Y\",\"N\"))","v":""},{"$f":"IF($B542=\"N\",\"\",IF(OR('Enrollment Form'!B549<>\"Subscriber\",'Enrollment Form'!C549=\"ROC\",COUNTIF('Enrollment Form'!AS549:AT549,\"Yes\")>=1),\"-\",IF(AND('Enrollment Form'!C549=\"Enroll\",COUNTIF('Enrollment Form'!AS549:AT549,\"No\")=2,'Enrollment Form'!AU549=\"\"),\"N\",\"Y\")))","v":""},{"$f":"IF(OR(B542=\"N\",'Enrollment Form'!B549<>\"Subscriber\",'Enrollment Form'!C549=\"ROC\",'Enrollment Form'!O549<>\"Multiple of Salary\"),\"-\",IF(COUNTA('Enrollment Form'!T549:U549)<2,\"N\",\"Y\"))","v":"-"},{"$f":"IF(B542=\"N\",\"\",IF(OR('Enrollment Form'!C549=\"ROC\",'Enrollment Form'!B549<>\"Subscriber\",'Enrollment Form'!O549=\"Waive\",'Enrollment Form'!O549=\"\"),\"-\",IF('Enrollment Form'!P549=\"\",\"N\",\"Y\")))","v":""},{"$f":"IF($B542=\"N\",\"\",IF(AND('Enrollment Form'!$C549=\"ROC\",'Enrollment Form'!$DS549<>\"\"),\"Y\",IF(AND('Enrollment Form'!$C549=\"ROC\",'Enrollment Form'!$DS549=\"\"),\"N\",IF(AND('Enrollment Form'!$C549=\"Enroll\",'Enrollment Form'!$B549=\"Subscriber\",'Enrollment Form'!$CQ549=\"No\",'Enrollment Form'!$DS549=\"\"),\"N\",IF(AND('Enrollment Form'!$C549=\"Enroll\",'Enrollment Form'!$B549=\"Subscriber\",'Enrollment Form'!$CQ549=\"Yes\"),\"-\",\"Y\")))))","v":""},{"$f":"IF($B542=\"N\",\"\",IF(AND('Enrollment Form'!$C549=\"ROC\",'Enrollment Form'!$DT549<>\"\"),\"Y\",IF(AND('Enrollment Form'!$C549=\"ROC\",'Enrollment Form'!$DT549=\"\"),\"N\",IF(AND('Enrollment Form'!$C549=\"Enroll\",'Enrollment Form'!$B549=\"Subscriber\",'Enrollment Form'!$CQ549=\"No\",'Enrollment Form'!$DT549=\"\"),\"N\",IF(AND('Enrollment Form'!$C549=\"Enroll\",'Enrollment Form'!$B549=\"Subscriber\",'Enrollment Form'!$CQ549=\"Yes\"),\"-\",\"Y\")))))","v":""},{"$f":"IF('Enrollment Form'!AH549=\"\",\"\",IF(ISERROR(SEARCH(\".\",'Enrollment Form'!AH549,SEARCH(\"@\",'Enrollment Form'!AH549))),\"N\",\"Y\"))","v":""},{"$f":"IF(OR($B542=\"N\",'Enrollment Form'!$G549=\"\"),\"\",IF('Enrollment Form'!$B549<>\"Subscriber\",\"-\",IF(COUNTIF('Enrollment Form'!$AS549:$AT549,\"Yes\")=2,\"N\",\"Y\")))","v":""},{"$f":"IF(OR('Enrollment Form'!$CC549=\"\",'Enrollment Form'!$CC549=\"No\"),\"-\",IF(AND('Enrollment Form'!$CC549=\"Yes\",'Enrollment Form'!$CD549=\"\"),\"N\",\"Y\"))","v":"-"},{"$f":"IF(OR('Enrollment Form'!$CE549=\"\",'Enrollment Form'!$CE549=\"No\"),\"-\",IF(AND('Enrollment Form'!$CE549=\"Yes\",'Enrollment Form'!$CF549=\"\"),\"N\",\"Y\"))","v":"-"},{"$f":"IF(OR('Enrollment Form'!$CG549=\"\",'Enrollment Form'!$CG549=\"No\"),\"-\",IF(AND('Enrollment Form'!$CG549=\"Yes\",'Enrollment Form'!$CH549=\"\"),\"N\",\"Y\"))","v":"-"},{"$f":"IF(OR('Enrollment Form'!$CG549=\"\",'Enrollment Form'!$CG549=\"No\"),\"-\",IF(AND('Enrollment Form'!$CG549=\"Yes\",'Enrollment Form'!$CI549=\"\"),\"N\",\"Y\"))","v":"-"},{"$f":"IF('Enrollment Form'!B549<>\"Subscriber\",\"-\",IF(AND('Enrollment Form'!B549=\"Subscriber\",'Enrollment Form'!C549=\"Enroll\",'Enrollment Form'!AA549=\"\"),\"N\",\"Y\"))","v":"-"},{"$f":"IF(OR('Enrollment Form'!B549=\"Subscriber\",'Enrollment Form'!B549=\"\"),\"-\",IF('Enrollment Form'!BI549=\"\",\"N\",\"Y\"))","v":"-"},{"$f":"IF('Enrollment Form'!B549<>\"Subscriber\",\"-\",IF(AND('Enrollment Form'!B549=\"Subscriber\",'Enrollment Form'!G549=\"\"),\"N\",\"Y\"))","v":"-"},{"$f":"IF('Enrollment Form'!A549=\"\",\"\",IF('Enrollment Form'!B549=\"Subscriber\",\"-\",IF(AND('Enrollment Form'!B549<>\"Subscriber\",'Enrollment Form'!G549='Enrollment Form'!H549),\"N\",\"Y\")))","v":""},0]
[550,{"$f":"IF('Enrollment Form'!$A550<>\"\",\"Y\",\"N\")","v":"N"},{"$f":"IF(AND('Enrollment Form'!$B550=\"\",'Enrollment Form'!$C550<>\"\"),\"N\",IF($B543=\"N\",\"\",\"Y\"))","v":""},{"$f":"IF(OR($B543=\"N\",'Enrollment Form'!G550=\"\"),\"\",IF('Enrollment Form'!$B550<>\"Subscriber\",\"\",IF('Enrollment Form'!$G550='Enrollment Form'!$H550,\"Y\",\"N\")))","v":""},{"$f":"IF($B543=\"N\",\"\",IF(AND(COUNTIFS('Enrollment Form'!$H$11:$H$1000,'Enrollment Form'!$H550,'Enrollment Form'!$B$11:$B$1000,'Enrollment Form'!$B550)>1,'Enrollment Form'!$H550<>\"\"),\"N\",\"Y\"))","v":""},{"$f":"IF($B543=\"N\",\"\",IF(LEN('Enrollment Form'!$Y550)=0,\"\",IF(LEN('Enrollment Form'!$Y550)<>5,\"N\",\"Y\")))","v":""},{"$f":"IF($B543=\"N\",\"\",IF(LEN('Enrollment Form'!$AD550=0),\"\",IF(LEN('Enrollment Form'!$AD550)<>5,\"N\",\"Y\")))","v":""},{"$f":"IF($B543=\"N\",\"\",IF(LEN('Enrollment Form'!$BL550=0),\"\",IF(LEN('Enrollment Form'!$BL550)<>5,\"N\",\"Y\")))","v":""},{"$f":"IF($B543=\"N\",\"\",IF(LEN('Enrollment Form'!$AE550)=0,\"\",IF(LEN('Enrollment Form'!$AE550)<>10,\"N\",\"Y\")))","v":""},{"$f":"IF($B543=\"N\",\"\",IF(LEN('Enrollment Form'!$AF550)=0,\"\",IF(LEN('Enrollment Form'!$AF550)<>10,\"N\",\"Y\")))","v":""},{"$f":"IF('Enrollment Form'!$O550<>\"Graded\",\"-\",IF(AND('Enrollment Form'!$O550=\"Graded\",'Enrollment Form'!$AO550<>\"\"),\"Y\",\"N\"))","v":"-"},{"$f":"IF($B543=\"N\",\"\",IF(OR('Enrollment Form'!$B550<>\"Subscriber\",'Enrollment Form'!$C550=\"ROC\"),\"-\",IF(AND('Enrollment Form'!$B550=\"Subscriber\",'Enrollment Form'!$C550=\"Enroll\",'Enrollment Form'!$AJ550<>\"\"),\"Y\",\"N\")))","v":""},{"$f":"IF($B543=\"N\",\"\",IF(OR('Enrollment Form'!$B550<>\"Subscriber\",'Enrollment Form'!$C550=\"ROC\"),\"-\",IF(AND('Enrollment Form'!$B550=\"Subscriber\",'Enrollment Form'!$C550=\"Enroll\",'Enrollment Form'!$AK550<>\"\"),\"Y\",\"N\")))","v":""},{"$f":"IF($B543=\"N\",\"\",IF(OR('Enrollment Form'!$B550<>\"Subscriber\",'Enrollment Form'!$C550=\"ROC\"),\"-\",IF(AND('Enrollment Form'!$B550=\"Subscriber\",'Enrollment Form'!$C550=\"Enroll\",'Enrollment Form'!$AL550<>\"\"),\"Y\",\"N\")))","v":""},{"$f":"IF($B543=\"N\",\"\",IF(OR('Enrollment Form'!$B550<>\"Subscriber\",'Enrollment Form'!$C550=\"ROC\"),\"-\",IF(AND('Enrollment Form'!$B550=\"Subscriber\",'Enrollment Form'!$C550=\"Enroll\",'Enrollment Form'!$AM550<>\"\"),\"Y\",\"N\")))","v":""},{"$f":"IF($B543=\"N\",\"\",IF(OR('Enrollment Form'!$B550<>\"Subscriber\",'Enrollment Form'!$C550=\"ROC\"),\"-\",IF(AND('Enrollment Form'!$B550=\"Subscriber\",'Enrollment Form'!$C550=\"Enroll\",'Enrollment Form'!$AN550<>\"\"),\"Y\",\"N\")))","v":""},{"$f":"IF($B543=\"N\",\"\",IF(OR('Enrollment Form'!$B550<>\"Subscriber\",'Enrollment Form'!$C550=\"ROC\"),\"-\",IF(AND('Enrollment Form'!$B550=\"Subscriber\",'Enrollment Form'!$C550=\"Enroll\",'Enrollment Form'!$AP550<>\"\"),\"Y\",\"N\")))","v":""},{"$f":"IF($B543=\"N\",\"\",IF($Q543=\"-\",\"-\",IF(AND($Q543=\"Y\",'Enrollment Form'!$AP550=\"No\"),\"-\",IF(AND($Q543=\"Y\",'Enrollment Form'!$AP550=\"Yes\",'Enrollment Form'!$AQ550<>\"\"),\"Y\",\"N\"))))","v":""},{"$f":"IF($B543=\"N\",\"\",IF(OR('Enrollment Form'!$B550<>\"Subscriber\",'Enrollment Form'!$C550=\"ROC\"),\"-\",IF(AND('Enrollment Form'!$B550=\"Subscriber\",'Enrollment Form'!$C550=\"Enroll\",'Enrollment Form'!$CO550<>\"\"),\"Y\",\"N\")))","v":""},{"$f":"IF($B543=\"N\",\"\",IF($S543=\"-\",\"-\",IF(AND($S543=\"Y\",'Enrollment Form'!$CO550=\"No\"),\"-\",IF(AND($S543=\"Y\",'Enrollment Form'!$CO550=\"Yes\",'Enrollment Form'!$CP550<>\"\"),\"Y\",\"N\"))))","v":""},{"$f":"IF(OR('Enrollment Form'!$AV550=\"Yes\",'Enrollment Form'!$AV550=\"\"),\"-\",IF(AND('Enrollment Form'!$AV550=\"No\",ISERROR(FIND(\"HMO\",VLOOKUP('Enrollment Form'!G550,'Enrollment Form'!H$11:J$1000,3,FALSE),1))=FALSE,COUNTA('Enrollment Form'!$AW550:$AZ550)=4),\"Y\",\"N\"))","v":"-"},{"$f":"IF($B543=\"N\",\"\",IF('Enrollment Form'!$B550=\"Subscriber\",\"-\",IF(COUNTA('Enrollment Form'!$BE550,'Enrollment Form'!$BG550)=2,\"Y\",\"N\")))","v":""},{"$f":"IF($B543=\"N\",\"\",IF(OR('Enrollment Form'!$AU550=\"\",'Enrollment Form'!$AU550=\"No\"),\"-\",IF(AND('Enrollment Form'!$AU550=\"Yes\",COUNTA('Enrollment Form'!$CK550)=1),\"Y\",\"N\")))","v":""},{"$f":"IF(OR('Enrollment Form'!$CK550=\"\",'Enrollment Form'!$CK550=\"No\"),\"-\",IF(COUNTA('Enrollment Form'!$CM550:$CN550)=2,\"Y\",\"N\"))","v":"-"},{"$f":"IF($B543=\"N\",\"\",IF(COUNTIF('Enrollment Form'!$CZ550:$DO550,\"Other\")=COUNTA('Enrollment Form'!$DF550,'Enrollment Form'!$DA550,'Enrollment Form'!$DK550,'Enrollment Form'!$DP550),\"Y\",\"N\"))","v":""},{"$f":"IF($B543=\"N\",\"\",IF(OR('Enrollment Form'!B550<>\"Subscriber\",'Enrollment Form'!C550=\"ROC\",COUNTIF('Enrollment Form'!AS550:AT550,\"Yes\")>=1),\"-\",IF(AND('Enrollment Form'!C550=\"Enroll\",COUNTIF('Enrollment Form'!AS550:AT550,\"No\")=2,'Enrollment Form'!AU550=\"\"),\"N\",\"Y\")))","v":""},{"$f":"IF(OR(B543=\"N\",'Enrollment Form'!B550<>\"Subscriber\",'Enrollment Form'!C550=\"ROC\",'Enrollment Form'!O550<>\"Multiple of Salary\"),\"-\",IF(COUNTA('Enrollment Form'!T550:U550)<2,\"N\",\"Y\"))","v":"-"},{"$f":"IF(B543=\"N\",\"\",IF(OR('Enrollment Form'!C550=\"ROC\",'Enrollment Form'!B550<>\"Subscriber\",'Enrollment Form'!O550=\"Waive\",'Enrollment Form'!O550=\"\"),\"-\",IF('Enrollment Form'!P550=\"\",\"N\",\"Y\")))","v":""},{"$f":"IF($B543=\"N\",\"\",IF(AND('Enrollment Form'!$C550=\"ROC\",'Enrollment Form'!$DS550<>\"\"),\"Y\",IF(AND('Enrollment Form'!$C550=\"ROC\",'Enrollment Form'!$DS550=\"\"),\"N\",IF(AND('Enrollment Form'!$C550=\"Enroll\",'Enrollment Form'!$B550=\"Subscriber\",'Enrollment Form'!$CQ550=\"No\",'Enrollment Form'!$DS550=\"\"),\"N\",IF(AND('Enrollment Form'!$C550=\"Enroll\",'Enrollment Form'!$B550=\"Subscriber\",'Enrollment Form'!$CQ550=\"Yes\"),\"-\",\"Y\")))))","v":""},{"$f":"IF($B543=\"N\",\"\",IF(AND('Enrollment Form'!$C550=\"ROC\",'Enrollment Form'!$DT550<>\"\"),\"Y\",IF(AND('Enrollment Form'!$C550=\"ROC\",'Enrollment Form'!$DT550=\"\"),\"N\",IF(AND('Enrollment Form'!$C550=\"Enroll\",'Enrollment Form'!$B550=\"Subscriber\",'Enrollment Form'!$CQ550=\"No\",'Enrollment Form'!$DT550=\"\"),\"N\",IF(AND('Enrollment Form'!$C550=\"Enroll\",'Enrollment Form'!$B550=\"Subscriber\",'Enrollment Form'!$CQ550=\"Yes\"),\"-\",\"Y\")))))","v":""},{"$f":"IF('Enrollment Form'!AH550=\"\",\"\",IF(ISERROR(SEARCH(\".\",'Enrollment Form'!AH550,SEARCH(\"@\",'Enrollment Form'!AH550))),\"N\",\"Y\"))","v":""},{"$f":"IF(OR($B543=\"N\",'Enrollment Form'!$G550=\"\"),\"\",IF('Enrollment Form'!$B550<>\"Subscriber\",\"-\",IF(COUNTIF('Enrollment Form'!$AS550:$AT550,\"Yes\")=2,\"N\",\"Y\")))","v":""},{"$f":"IF(OR('Enrollment Form'!$CC550=\"\",'Enrollment Form'!$CC550=\"No\"),\"-\",IF(AND('Enrollment Form'!$CC550=\"Yes\",'Enrollment Form'!$CD550=\"\"),\"N\",\"Y\"))","v":"-"},{"$f":"IF(OR('Enrollment Form'!$CE550=\"\",'Enrollment Form'!$CE550=\"No\"),\"-\",IF(AND('Enrollment Form'!$CE550=\"Yes\",'Enrollment Form'!$CF550=\"\"),\"N\",\"Y\"))","v":"-"},{"$f":"IF(OR('Enrollment Form'!$CG550=\"\",'Enrollment Form'!$CG550=\"No\"),\"-\",IF(AND('Enrollment Form'!$CG550=\"Yes\",'Enrollment Form'!$CH550=\"\"),\"N\",\"Y\"))","v":"-"},{"$f":"IF(OR('Enrollment Form'!$CG550=\"\",'Enrollment Form'!$CG550=\"No\"),\"-\",IF(AND('Enrollment Form'!$CG550=\"Yes\",'Enrollment Form'!$CI550=\"\"),\"N\",\"Y\"))","v":"-"},{"$f":"IF('Enrollment Form'!B550<>\"Subscriber\",\"-\",IF(AND('Enrollment Form'!B550=\"Subscriber\",'Enrollment Form'!C550=\"Enroll\",'Enrollment Form'!AA550=\"\"),\"N\",\"Y\"))","v":"-"},{"$f":"IF(OR('Enrollment Form'!B550=\"Subscriber\",'Enrollment Form'!B550=\"\"),\"-\",IF('Enrollment Form'!BI550=\"\",\"N\",\"Y\"))","v":"-"},{"$f":"IF('Enrollment Form'!B550<>\"Subscriber\",\"-\",IF(AND('Enrollment Form'!B550=\"Subscriber\",'Enrollment Form'!G550=\"\"),\"N\",\"Y\"))","v":"-"},{"$f":"IF('Enrollment Form'!A550=\"\",\"\",IF('Enrollment Form'!B550=\"Subscriber\",\"-\",IF(AND('Enrollment Form'!B550<>\"Subscriber\",'Enrollment Form'!G550='Enrollment Form'!H550),\"N\",\"Y\")))","v":""},0]
[551,{"$f":"IF('Enrollment Form'!$A551<>\"\",\"Y\",\"N\")","v":"N"},{"$f":"IF(AND('Enrollment Form'!$B551=\"\",'Enrollment Form'!$C551<>\"\"),\"N\",IF($B544=\"N\",\"\",\"Y\"))","v":""},{"$f":"IF(OR($B544=\"N\",'Enrollment Form'!G551=\"\"),\"\",IF('Enrollment Form'!$B551<>\"Subscriber\",\"\",IF('Enrollment Form'!$G551='Enrollment Form'!$H551,\"Y\",\"N\")))","v":""},{"$f":"IF($B544=\"N\",\"\",IF(AND(COUNTIFS('Enrollment Form'!$H$11:$H$1000,'Enrollment Form'!$H551,'Enrollment Form'!$B$11:$B$1000,'Enrollment Form'!$B551)>1,'Enrollment Form'!$H551<>\"\"),\"N\",\"Y\"))","v":""},{"$f":"IF($B544=\"N\",\"\",IF(LEN('Enrollment Form'!$Y551)=0,\"\",IF(LEN('Enrollment Form'!$Y551)<>5,\"N\",\"Y\")))","v":""},{"$f":"IF($B544=\"N\",\"\",IF(LEN('Enrollment Form'!$AD551=0),\"\",IF(LEN('Enrollment Form'!$AD551)<>5,\"N\",\"Y\")))","v":""},{"$f":"IF($B544=\"N\",\"\",IF(LEN('Enrollment Form'!$BL551=0),\"\",IF(LEN('Enrollment Form'!$BL551)<>5,\"N\",\"Y\")))","v":""},{"$f":"IF($B544=\"N\",\"\",IF(LEN('Enrollment Form'!$AE551)=0,\"\",IF(LEN('Enrollment Form'!$AE551)<>10,\"N\",\"Y\")))","v":""},{"$f":"IF($B544=\"N\",\"\",IF(LEN('Enrollment Form'!$AF551)=0,\"\",IF(LEN('Enrollment Form'!$AF551)<>10,\"N\",\"Y\")))","v":""},{"$f":"IF('Enrollment Form'!$O551<>\"Graded\",\"-\",IF(AND('Enrollment Form'!$O551=\"Graded\",'Enrollment Form'!$AO551<>\"\"),\"Y\",\"N\"))","v":"-"},{"$f":"IF($B544=\"N\",\"\",IF(OR('Enrollment Form'!$B551<>\"Subscriber\",'Enrollment Form'!$C551=\"ROC\"),\"-\",IF(AND('Enrollment Form'!$B551=\"Subscriber\",'Enrollment Form'!$C551=\"Enroll\",'Enrollment Form'!$AJ551<>\"\"),\"Y\",\"N\")))","v":""},{"$f":"IF($B544=\"N\",\"\",IF(OR('Enrollment Form'!$B551<>\"Subscriber\",'Enrollment Form'!$C551=\"ROC\"),\"-\",IF(AND('Enrollment Form'!$B551=\"Subscriber\",'Enrollment Form'!$C551=\"Enroll\",'Enrollment Form'!$AK551<>\"\"),\"Y\",\"N\")))","v":""},{"$f":"IF($B544=\"N\",\"\",IF(OR('Enrollment Form'!$B551<>\"Subscriber\",'Enrollment Form'!$C551=\"ROC\"),\"-\",IF(AND('Enrollment Form'!$B551=\"Subscriber\",'Enrollment Form'!$C551=\"Enroll\",'Enrollment Form'!$AL551<>\"\"),\"Y\",\"N\")))","v":""},{"$f":"IF($B544=\"N\",\"\",IF(OR('Enrollment Form'!$B551<>\"Subscriber\",'Enrollment Form'!$C551=\"ROC\"),\"-\",IF(AND('Enrollment Form'!$B551=\"Subscriber\",'Enrollment Form'!$C551=\"Enroll\",'Enrollment Form'!$AM551<>\"\"),\"Y\",\"N\")))","v":""},{"$f":"IF($B544=\"N\",\"\",IF(OR('Enrollment Form'!$B551<>\"Subscriber\",'Enrollment Form'!$C551=\"ROC\"),\"-\",IF(AND('Enrollment Form'!$B551=\"Subscriber\",'Enrollment Form'!$C551=\"Enroll\",'Enrollment Form'!$AN551<>\"\"),\"Y\",\"N\")))","v":""},{"$f":"IF($B544=\"N\",\"\",IF(OR('Enrollment Form'!$B551<>\"Subscriber\",'Enrollment Form'!$C551=\"ROC\"),\"-\",IF(AND('Enrollment Form'!$B551=\"Subscriber\",'Enrollment Form'!$C551=\"Enroll\",'Enrollment Form'!$AP551<>\"\"),\"Y\",\"N\")))","v":""},{"$f":"IF($B544=\"N\",\"\",IF($Q544=\"-\",\"-\",IF(AND($Q544=\"Y\",'Enrollment Form'!$AP551=\"No\"),\"-\",IF(AND($Q544=\"Y\",'Enrollment Form'!$AP551=\"Yes\",'Enrollment Form'!$AQ551<>\"\"),\"Y\",\"N\"))))","v":""},{"$f":"IF($B544=\"N\",\"\",IF(OR('Enrollment Form'!$B551<>\"Subscriber\",'Enrollment Form'!$C551=\"ROC\"),\"-\",IF(AND('Enrollment Form'!$B551=\"Subscriber\",'Enrollment Form'!$C551=\"Enroll\",'Enrollment Form'!$CO551<>\"\"),\"Y\",\"N\")))","v":""},{"$f":"IF($B544=\"N\",\"\",IF($S544=\"-\",\"-\",IF(AND($S544=\"Y\",'Enrollment Form'!$CO551=\"No\"),\"-\",IF(AND($S544=\"Y\",'Enrollment Form'!$CO551=\"Yes\",'Enrollment Form'!$CP551<>\"\"),\"Y\",\"N\"))))","v":""},{"$f":"IF(OR('Enrollment Form'!$AV551=\"Yes\",'Enrollment Form'!$AV551=\"\"),\"-\",IF(AND('Enrollment Form'!$AV551=\"No\",ISERROR(FIND(\"HMO\",VLOOKUP('Enrollment Form'!G551,'Enrollment Form'!H$11:J$1000,3,FALSE),1))=FALSE,COUNTA('Enrollment Form'!$AW551:$AZ551)=4),\"Y\",\"N\"))","v":"-"},{"$f":"IF($B544=\"N\",\"\",IF('Enrollment Form'!$B551=\"Subscriber\",\"-\",IF(COUNTA('Enrollment Form'!$BE551,'Enrollment Form'!$BG551)=2,\"Y\",\"N\")))","v":""},{"$f":"IF($B544=\"N\",\"\",IF(OR('Enrollment Form'!$AU551=\"\",'Enrollment Form'!$AU551=\"No\"),\"-\",IF(AND('Enrollment Form'!$AU551=\"Yes\",COUNTA('Enrollment Form'!$CK551)=1),\"Y\",\"N\")))","v":""},{"$f":"IF(OR('Enrollment Form'!$CK551=\"\",'Enrollment Form'!$CK551=\"No\"),\"-\",IF(COUNTA('Enrollment Form'!$CM551:$CN551)=2,\"Y\",\"N\"))","v":"-"},{"$f":"IF($B544=\"N\",\"\",IF(COUNTIF('Enrollment Form'!$CZ551:$DO551,\"Other\")=COUNTA('Enrollment Form'!$DF551,'Enrollment Form'!$DA551,'Enrollment Form'!$DK551,'Enrollment Form'!$DP551),\"Y\",\"N\"))","v":""},{"$f":"IF($B544=\"N\",\"\",IF(OR('Enrollment Form'!B551<>\"Subscriber\",'Enrollment Form'!C551=\"ROC\",COUNTIF('Enrollment Form'!AS551:AT551,\"Yes\")>=1),\"-\",IF(AND('Enrollment Form'!C551=\"Enroll\",COUNTIF('Enrollment Form'!AS551:AT551,\"No\")=2,'Enrollment Form'!AU551=\"\"),\"N\",\"Y\")))","v":""},{"$f":"IF(OR(B544=\"N\",'Enrollment Form'!B551<>\"Subscriber\",'Enrollment Form'!C551=\"ROC\",'Enrollment Form'!O551<>\"Multiple of Salary\"),\"-\",IF(COUNTA('Enrollment Form'!T551:U551)<2,\"N\",\"Y\"))","v":"-"},{"$f":"IF(B544=\"N\",\"\",IF(OR('Enrollment Form'!C551=\"ROC\",'Enrollment Form'!B551<>\"Subscriber\",'Enrollment Form'!O551=\"Waive\",'Enrollment Form'!O551=\"\"),\"-\",IF('Enrollment Form'!P551=\"\",\"N\",\"Y\")))","v":""},{"$f":"IF($B544=\"N\",\"\",IF(AND('Enrollment Form'!$C551=\"ROC\",'Enrollment Form'!$DS551<>\"\"),\"Y\",IF(AND('Enrollment Form'!$C551=\"ROC\",'Enrollment Form'!$DS551=\"\"),\"N\",IF(AND('Enrollment Form'!$C551=\"Enroll\",'Enrollment Form'!$B551=\"Subscriber\",'Enrollment Form'!$CQ551=\"No\",'Enrollment Form'!$DS551=\"\"),\"N\",IF(AND('Enrollment Form'!$C551=\"Enroll\",'Enrollment Form'!$B551=\"Subscriber\",'Enrollment Form'!$CQ551=\"Yes\"),\"-\",\"Y\")))))","v":""},{"$f":"IF($B544=\"N\",\"\",IF(AND('Enrollment Form'!$C551=\"ROC\",'Enrollment Form'!$DT551<>\"\"),\"Y\",IF(AND('Enrollment Form'!$C551=\"ROC\",'Enrollment Form'!$DT551=\"\"),\"N\",IF(AND('Enrollment Form'!$C551=\"Enroll\",'Enrollment Form'!$B551=\"Subscriber\",'Enrollment Form'!$CQ551=\"No\",'Enrollment Form'!$DT551=\"\"),\"N\",IF(AND('Enrollment Form'!$C551=\"Enroll\",'Enrollment Form'!$B551=\"Subscriber\",'Enrollment Form'!$CQ551=\"Yes\"),\"-\",\"Y\")))))","v":""},{"$f":"IF('Enrollment Form'!AH551=\"\",\"\",IF(ISERROR(SEARCH(\".\",'Enrollment Form'!AH551,SEARCH(\"@\",'Enrollment Form'!AH551))),\"N\",\"Y\"))","v":""},{"$f":"IF(OR($B544=\"N\",'Enrollment Form'!$G551=\"\"),\"\",IF('Enrollment Form'!$B551<>\"Subscriber\",\"-\",IF(COUNTIF('Enrollment Form'!$AS551:$AT551,\"Yes\")=2,\"N\",\"Y\")))","v":""},{"$f":"IF(OR('Enrollment Form'!$CC551=\"\",'Enrollment Form'!$CC551=\"No\"),\"-\",IF(AND('Enrollment Form'!$CC551=\"Yes\",'Enrollment Form'!$CD551=\"\"),\"N\",\"Y\"))","v":"-"},{"$f":"IF(OR('Enrollment Form'!$CE551=\"\",'Enrollment Form'!$CE551=\"No\"),\"-\",IF(AND('Enrollment Form'!$CE551=\"Yes\",'Enrollment Form'!$CF551=\"\"),\"N\",\"Y\"))","v":"-"},{"$f":"IF(OR('Enrollment Form'!$CG551=\"\",'Enrollment Form'!$CG551=\"No\"),\"-\",IF(AND('Enrollment Form'!$CG551=\"Yes\",'Enrollment Form'!$CH551=\"\"),\"N\",\"Y\"))","v":"-"},{"$f":"IF(OR('Enrollment Form'!$CG551=\"\",'Enrollment Form'!$CG551=\"No\"),\"-\",IF(AND('Enrollment Form'!$CG551=\"Yes\",'Enrollment Form'!$CI551=\"\"),\"N\",\"Y\"))","v":"-"},{"$f":"IF('Enrollment Form'!B551<>\"Subscriber\",\"-\",IF(AND('Enrollment Form'!B551=\"Subscriber\",'Enrollment Form'!C551=\"Enroll\",'Enrollment Form'!AA551=\"\"),\"N\",\"Y\"))","v":"-"},{"$f":"IF(OR('Enrollment Form'!B551=\"Subscriber\",'Enrollment Form'!B551=\"\"),\"-\",IF('Enrollment Form'!BI551=\"\",\"N\",\"Y\"))","v":"-"},{"$f":"IF('Enrollment Form'!B551<>\"Subscriber\",\"-\",IF(AND('Enrollment Form'!B551=\"Subscriber\",'Enrollment Form'!G551=\"\"),\"N\",\"Y\"))","v":"-"},{"$f":"IF('Enrollment Form'!A551=\"\",\"\",IF('Enrollment Form'!B551=\"Subscriber\",\"-\",IF(AND('Enrollment Form'!B551<>\"Subscriber\",'Enrollment Form'!G551='Enrollment Form'!H551),\"N\",\"Y\")))","v":""},0]
[552,{"$f":"IF('Enrollment Form'!$A552<>\"\",\"Y\",\"N\")","v":"N"},{"$f":"IF(AND('Enrollment Form'!$B552=\"\",'Enrollment Form'!$C552<>\"\"),\"N\",IF($B545=\"N\",\"\",\"Y\"))","v":""},{"$f":"IF(OR($B545=\"N\",'Enrollment Form'!G552=\"\"),\"\",IF('Enrollment Form'!$B552<>\"Subscriber\",\"\",IF('Enrollment Form'!$G552='Enrollment Form'!$H552,\"Y\",\"N\")))","v":""},{"$f":"IF($B545=\"N\",\"\",IF(AND(COUNTIFS('Enrollment Form'!$H$11:$H$1000,'Enrollment Form'!$H552,'Enrollment Form'!$B$11:$B$1000,'Enrollment Form'!$B552)>1,'Enrollment Form'!$H552<>\"\"),\"N\",\"Y\"))","v":""},{"$f":"IF($B545=\"N\",\"\",IF(LEN('Enrollment Form'!$Y552)=0,\"\",IF(LEN('Enrollment Form'!$Y552)<>5,\"N\",\"Y\")))","v":""},{"$f":"IF($B545=\"N\",\"\",IF(LEN('Enrollment Form'!$AD552=0),\"\",IF(LEN('Enrollment Form'!$AD552)<>5,\"N\",\"Y\")))","v":""},{"$f":"IF($B545=\"N\",\"\",IF(LEN('Enrollment Form'!$BL552=0),\"\",IF(LEN('Enrollment Form'!$BL552)<>5,\"N\",\"Y\")))","v":""},{"$f":"IF($B545=\"N\",\"\",IF(LEN('Enrollment Form'!$AE552)=0,\"\",IF(LEN('Enrollment Form'!$AE552)<>10,\"N\",\"Y\")))","v":""},{"$f":"IF($B545=\"N\",\"\",IF(LEN('Enrollment Form'!$AF552)=0,\"\",IF(LEN('Enrollment Form'!$AF552)<>10,\"N\",\"Y\")))","v":""},{"$f":"IF('Enrollment Form'!$O552<>\"Graded\",\"-\",IF(AND('Enrollment Form'!$O552=\"Graded\",'Enrollment Form'!$AO552<>\"\"),\"Y\",\"N\"))","v":"-"},{"$f":"IF($B545=\"N\",\"\",IF(OR('Enrollment Form'!$B552<>\"Subscriber\",'Enrollment Form'!$C552=\"ROC\"),\"-\",IF(AND('Enrollment Form'!$B552=\"Subscriber\",'Enrollment Form'!$C552=\"Enroll\",'Enrollment Form'!$AJ552<>\"\"),\"Y\",\"N\")))","v":""},{"$f":"IF($B545=\"N\",\"\",IF(OR('Enrollment Form'!$B552<>\"Subscriber\",'Enrollment Form'!$C552=\"ROC\"),\"-\",IF(AND('Enrollment Form'!$B552=\"Subscriber\",'Enrollment Form'!$C552=\"Enroll\",'Enrollment Form'!$AK552<>\"\"),\"Y\",\"N\")))","v":""},{"$f":"IF($B545=\"N\",\"\",IF(OR('Enrollment Form'!$B552<>\"Subscriber\",'Enrollment Form'!$C552=\"ROC\"),\"-\",IF(AND('Enrollment Form'!$B552=\"Subscriber\",'Enrollment Form'!$C552=\"Enroll\",'Enrollment Form'!$AL552<>\"\"),\"Y\",\"N\")))","v":""},{"$f":"IF($B545=\"N\",\"\",IF(OR('Enrollment Form'!$B552<>\"Subscriber\",'Enrollment Form'!$C552=\"ROC\"),\"-\",IF(AND('Enrollment Form'!$B552=\"Subscriber\",'Enrollment Form'!$C552=\"Enroll\",'Enrollment Form'!$AM552<>\"\"),\"Y\",\"N\")))","v":""},{"$f":"IF($B545=\"N\",\"\",IF(OR('Enrollment Form'!$B552<>\"Subscriber\",'Enrollment Form'!$C552=\"ROC\"),\"-\",IF(AND('Enrollment Form'!$B552=\"Subscriber\",'Enrollment Form'!$C552=\"Enroll\",'Enrollment Form'!$AN552<>\"\"),\"Y\",\"N\")))","v":""},{"$f":"IF($B545=\"N\",\"\",IF(OR('Enrollment Form'!$B552<>\"Subscriber\",'Enrollment Form'!$C552=\"ROC\"),\"-\",IF(AND('Enrollment Form'!$B552=\"Subscriber\",'Enrollment Form'!$C552=\"Enroll\",'Enrollment Form'!$AP552<>\"\"),\"Y\",\"N\")))","v":""},{"$f":"IF($B545=\"N\",\"\",IF($Q545=\"-\",\"-\",IF(AND($Q545=\"Y\",'Enrollment Form'!$AP552=\"No\"),\"-\",IF(AND($Q545=\"Y\",'Enrollment Form'!$AP552=\"Yes\",'Enrollment Form'!$AQ552<>\"\"),\"Y\",\"N\"))))","v":""},{"$f":"IF($B545=\"N\",\"\",IF(OR('Enrollment Form'!$B552<>\"Subscriber\",'Enrollment Form'!$C552=\"ROC\"),\"-\",IF(AND('Enrollment Form'!$B552=\"Subscriber\",'Enrollment Form'!$C552=\"Enroll\",'Enrollment Form'!$CO552<>\"\"),\"Y\",\"N\")))","v":""},{"$f":"IF($B545=\"N\",\"\",IF($S545=\"-\",\"-\",IF(AND($S545=\"Y\",'Enrollment Form'!$CO552=\"No\"),\"-\",IF(AND($S545=\"Y\",'Enrollment Form'!$CO552=\"Yes\",'Enrollment Form'!$CP552<>\"\"),\"Y\",\"N\"))))","v":""},{"$f":"IF(OR('Enrollment Form'!$AV552=\"Yes\",'Enrollment Form'!$AV552=\"\"),\"-\",IF(AND('Enrollment Form'!$AV552=\"No\",ISERROR(FIND(\"HMO\",VLOOKUP('Enrollment Form'!G552,'Enrollment Form'!H$11:J$1000,3,FALSE),1))=FALSE,COUNTA('Enrollment Form'!$AW552:$AZ552)=4),\"Y\",\"N\"))","v":"-"},{"$f":"IF($B545=\"N\",\"\",IF('Enrollment Form'!$B552=\"Subscriber\",\"-\",IF(COUNTA('Enrollment Form'!$BE552,'Enrollment Form'!$BG552)=2,\"Y\",\"N\")))","v":""},{"$f":"IF($B545=\"N\",\"\",IF(OR('Enrollment Form'!$AU552=\"\",'Enrollment Form'!$AU552=\"No\"),\"-\",IF(AND('Enrollment Form'!$AU552=\"Yes\",COUNTA('Enrollment Form'!$CK552)=1),\"Y\",\"N\")))","v":""},{"$f":"IF(OR('Enrollment Form'!$CK552=\"\",'Enrollment Form'!$CK552=\"No\"),\"-\",IF(COUNTA('Enrollment Form'!$CM552:$CN552)=2,\"Y\",\"N\"))","v":"-"},{"$f":"IF($B545=\"N\",\"\",IF(COUNTIF('Enrollment Form'!$CZ552:$DO552,\"Other\")=COUNTA('Enrollment Form'!$DF552,'Enrollment Form'!$DA552,'Enrollment Form'!$DK552,'Enrollment Form'!$DP552),\"Y\",\"N\"))","v":""},{"$f":"IF($B545=\"N\",\"\",IF(OR('Enrollment Form'!B552<>\"Subscriber\",'Enrollment Form'!C552=\"ROC\",COUNTIF('Enrollment Form'!AS552:AT552,\"Yes\")>=1),\"-\",IF(AND('Enrollment Form'!C552=\"Enroll\",COUNTIF('Enrollment Form'!AS552:AT552,\"No\")=2,'Enrollment Form'!AU552=\"\"),\"N\",\"Y\")))","v":""},{"$f":"IF(OR(B545=\"N\",'Enrollment Form'!B552<>\"Subscriber\",'Enrollment Form'!C552=\"ROC\",'Enrollment Form'!O552<>\"Multiple of Salary\"),\"-\",IF(COUNTA('Enrollment Form'!T552:U552)<2,\"N\",\"Y\"))","v":"-"},{"$f":"IF(B545=\"N\",\"\",IF(OR('Enrollment Form'!C552=\"ROC\",'Enrollment Form'!B552<>\"Subscriber\",'Enrollment Form'!O552=\"Waive\",'Enrollment Form'!O552=\"\"),\"-\",IF('Enrollment Form'!P552=\"\",\"N\",\"Y\")))","v":""},{"$f":"IF($B545=\"N\",\"\",IF(AND('Enrollment Form'!$C552=\"ROC\",'Enrollment Form'!$DS552<>\"\"),\"Y\",IF(AND('Enrollment Form'!$C552=\"ROC\",'Enrollment Form'!$DS552=\"\"),\"N\",IF(AND('Enrollment Form'!$C552=\"Enroll\",'Enrollment Form'!$B552=\"Subscriber\",'Enrollment Form'!$CQ552=\"No\",'Enrollment Form'!$DS552=\"\"),\"N\",IF(AND('Enrollment Form'!$C552=\"Enroll\",'Enrollment Form'!$B552=\"Subscriber\",'Enrollment Form'!$CQ552=\"Yes\"),\"-\",\"Y\")))))","v":""},{"$f":"IF($B545=\"N\",\"\",IF(AND('Enrollment Form'!$C552=\"ROC\",'Enrollment Form'!$DT552<>\"\"),\"Y\",IF(AND('Enrollment Form'!$C552=\"ROC\",'Enrollment Form'!$DT552=\"\"),\"N\",IF(AND('Enrollment Form'!$C552=\"Enroll\",'Enrollment Form'!$B552=\"Subscriber\",'Enrollment Form'!$CQ552=\"No\",'Enrollment Form'!$DT552=\"\"),\"N\",IF(AND('Enrollment Form'!$C552=\"Enroll\",'Enrollment Form'!$B552=\"Subscriber\",'Enrollment Form'!$CQ552=\"Yes\"),\"-\",\"Y\")))))","v":""},{"$f":"IF('Enrollment Form'!AH552=\"\",\"\",IF(ISERROR(SEARCH(\".\",'Enrollment Form'!AH552,SEARCH(\"@\",'Enrollment Form'!AH552))),\"N\",\"Y\"))","v":""},{"$f":"IF(OR($B545=\"N\",'Enrollment Form'!$G552=\"\"),\"\",IF('Enrollment Form'!$B552<>\"Subscriber\",\"-\",IF(COUNTIF('Enrollment Form'!$AS552:$AT552,\"Yes\")=2,\"N\",\"Y\")))","v":""},{"$f":"IF(OR('Enrollment Form'!$CC552=\"\",'Enrollment Form'!$CC552=\"No\"),\"-\",IF(AND('Enrollment Form'!$CC552=\"Yes\",'Enrollment Form'!$CD552=\"\"),\"N\",\"Y\"))","v":"-"},{"$f":"IF(OR('Enrollment Form'!$CE552=\"\",'Enrollment Form'!$CE552=\"No\"),\"-\",IF(AND('Enrollment Form'!$CE552=\"Yes\",'Enrollment Form'!$CF552=\"\"),\"N\",\"Y\"))","v":"-"},{"$f":"IF(OR('Enrollment Form'!$CG552=\"\",'Enrollment Form'!$CG552=\"No\"),\"-\",IF(AND('Enrollment Form'!$CG552=\"Yes\",'Enrollment Form'!$CH552=\"\"),\"N\",\"Y\"))","v":"-"},{"$f":"IF(OR('Enrollment Form'!$CG552=\"\",'Enrollment Form'!$CG552=\"No\"),\"-\",IF(AND('Enrollment Form'!$CG552=\"Yes\",'Enrollment Form'!$CI552=\"\"),\"N\",\"Y\"))","v":"-"},{"$f":"IF('Enrollment Form'!B552<>\"Subscriber\",\"-\",IF(AND('Enrollment Form'!B552=\"Subscriber\",'Enrollment Form'!C552=\"Enroll\",'Enrollment Form'!AA552=\"\"),\"N\",\"Y\"))","v":"-"},{"$f":"IF(OR('Enrollment Form'!B552=\"Subscriber\",'Enrollment Form'!B552=\"\"),\"-\",IF('Enrollment Form'!BI552=\"\",\"N\",\"Y\"))","v":"-"},{"$f":"IF('Enrollment Form'!B552<>\"Subscriber\",\"-\",IF(AND('Enrollment Form'!B552=\"Subscriber\",'Enrollment Form'!G552=\"\"),\"N\",\"Y\"))","v":"-"},{"$f":"IF('Enrollment Form'!A552=\"\",\"\",IF('Enrollment Form'!B552=\"Subscriber\",\"-\",IF(AND('Enrollment Form'!B552<>\"Subscriber\",'Enrollment Form'!G552='Enrollment Form'!H552),\"N\",\"Y\")))","v":""},0]
[553,{"$f":"IF('Enrollment Form'!$A553<>\"\",\"Y\",\"N\")","v":"N"},{"$f":"IF(AND('Enrollment Form'!$B553=\"\",'Enrollment Form'!$C553<>\"\"),\"N\",IF($B546=\"N\",\"\",\"Y\"))","v":""},{"$f":"IF(OR($B546=\"N\",'Enrollment Form'!G553=\"\"),\"\",IF('Enrollment Form'!$B553<>\"Subscriber\",\"\",IF('Enrollment Form'!$G553='Enrollment Form'!$H553,\"Y\",\"N\")))","v":""},{"$f":"IF($B546=\"N\",\"\",IF(AND(COUNTIFS('Enrollment Form'!$H$11:$H$1000,'Enrollment Form'!$H553,'Enrollment Form'!$B$11:$B$1000,'Enrollment Form'!$B553)>1,'Enrollment Form'!$H553<>\"\"),\"N\",\"Y\"))","v":""},{"$f":"IF($B546=\"N\",\"\",IF(LEN('Enrollment Form'!$Y553)=0,\"\",IF(LEN('Enrollment Form'!$Y553)<>5,\"N\",\"Y\")))","v":""},{"$f":"IF($B546=\"N\",\"\",IF(LEN('Enrollment Form'!$AD553=0),\"\",IF(LEN('Enrollment Form'!$AD553)<>5,\"N\",\"Y\")))","v":""},{"$f":"IF($B546=\"N\",\"\",IF(LEN('Enrollment Form'!$BL553=0),\"\",IF(LEN('Enrollment Form'!$BL553)<>5,\"N\",\"Y\")))","v":""},{"$f":"IF($B546=\"N\",\"\",IF(LEN('Enrollment Form'!$AE553)=0,\"\",IF(LEN('Enrollment Form'!$AE553)<>10,\"N\",\"Y\")))","v":""},{"$f":"IF($B546=\"N\",\"\",IF(LEN('Enrollment Form'!$AF553)=0,\"\",IF(LEN('Enrollment Form'!$AF553)<>10,\"N\",\"Y\")))","v":""},{"$f":"IF('Enrollment Form'!$O553<>\"Graded\",\"-\",IF(AND('Enrollment Form'!$O553=\"Graded\",'Enrollment Form'!$AO553<>\"\"),\"Y\",\"N\"))","v":"-"},{"$f":"IF($B546=\"N\",\"\",IF(OR('Enrollment Form'!$B553<>\"Subscriber\",'Enrollment Form'!$C553=\"ROC\"),\"-\",IF(AND('Enrollment Form'!$B553=\"Subscriber\",'Enrollment Form'!$C553=\"Enroll\",'Enrollment Form'!$AJ553<>\"\"),\"Y\",\"N\")))","v":""},{"$f":"IF($B546=\"N\",\"\",IF(OR('Enrollment Form'!$B553<>\"Subscriber\",'Enrollment Form'!$C553=\"ROC\"),\"-\",IF(AND('Enrollment Form'!$B553=\"Subscriber\",'Enrollment Form'!$C553=\"Enroll\",'Enrollment Form'!$AK553<>\"\"),\"Y\",\"N\")))","v":""},{"$f":"IF($B546=\"N\",\"\",IF(OR('Enrollment Form'!$B553<>\"Subscriber\",'Enrollment Form'!$C553=\"ROC\"),\"-\",IF(AND('Enrollment Form'!$B553=\"Subscriber\",'Enrollment Form'!$C553=\"Enroll\",'Enrollment Form'!$AL553<>\"\"),\"Y\",\"N\")))","v":""},{"$f":"IF($B546=\"N\",\"\",IF(OR('Enrollment Form'!$B553<>\"Subscriber\",'Enrollment Form'!$C553=\"ROC\"),\"-\",IF(AND('Enrollment Form'!$B553=\"Subscriber\",'Enrollment Form'!$C553=\"Enroll\",'Enrollment Form'!$AM553<>\"\"),\"Y\",\"N\")))","v":""},{"$f":"IF($B546=\"N\",\"\",IF(OR('Enrollment Form'!$B553<>\"Subscriber\",'Enrollment Form'!$C553=\"ROC\"),\"-\",IF(AND('Enrollment Form'!$B553=\"Subscriber\",'Enrollment Form'!$C553=\"Enroll\",'Enrollment Form'!$AN553<>\"\"),\"Y\",\"N\")))","v":""},{"$f":"IF($B546=\"N\",\"\",IF(OR('Enrollment Form'!$B553<>\"Subscriber\",'Enrollment Form'!$C553=\"ROC\"),\"-\",IF(AND('Enrollment Form'!$B553=\"Subscriber\",'Enrollment Form'!$C553=\"Enroll\",'Enrollment Form'!$AP553<>\"\"),\"Y\",\"N\")))","v":""},{"$f":"IF($B546=\"N\",\"\",IF($Q546=\"-\",\"-\",IF(AND($Q546=\"Y\",'Enrollment Form'!$AP553=\"No\"),\"-\",IF(AND($Q546=\"Y\",'Enrollment Form'!$AP553=\"Yes\",'Enrollment Form'!$AQ553<>\"\"),\"Y\",\"N\"))))","v":""},{"$f":"IF($B546=\"N\",\"\",IF(OR('Enrollment Form'!$B553<>\"Subscriber\",'Enrollment Form'!$C553=\"ROC\"),\"-\",IF(AND('Enrollment Form'!$B553=\"Subscriber\",'Enrollment Form'!$C553=\"Enroll\",'Enrollment Form'!$CO553<>\"\"),\"Y\",\"N\")))","v":""},{"$f":"IF($B546=\"N\",\"\",IF($S546=\"-\",\"-\",IF(AND($S546=\"Y\",'Enrollment Form'!$CO553=\"No\"),\"-\",IF(AND($S546=\"Y\",'Enrollment Form'!$CO553=\"Yes\",'Enrollment Form'!$CP553<>\"\"),\"Y\",\"N\"))))","v":""},{"$f":"IF(OR('Enrollment Form'!$AV553=\"Yes\",'Enrollment Form'!$AV553=\"\"),\"-\",IF(AND('Enrollment Form'!$AV553=\"No\",ISERROR(FIND(\"HMO\",VLOOKUP('Enrollment Form'!G553,'Enrollment Form'!H$11:J$1000,3,FALSE),1))=FALSE,COUNTA('Enrollment Form'!$AW553:$AZ553)=4),\"Y\",\"N\"))","v":"-"},{"$f":"IF($B546=\"N\",\"\",IF('Enrollment Form'!$B553=\"Subscriber\",\"-\",IF(COUNTA('Enrollment Form'!$BE553,'Enrollment Form'!$BG553)=2,\"Y\",\"N\")))","v":""},{"$f":"IF($B546=\"N\",\"\",IF(OR('Enrollment Form'!$AU553=\"\",'Enrollment Form'!$AU553=\"No\"),\"-\",IF(AND('Enrollment Form'!$AU553=\"Yes\",COUNTA('Enrollment Form'!$CK553)=1),\"Y\",\"N\")))","v":""},{"$f":"IF(OR('Enrollment Form'!$CK553=\"\",'Enrollment Form'!$CK553=\"No\"),\"-\",IF(COUNTA('Enrollment Form'!$CM553:$CN553)=2,\"Y\",\"N\"))","v":"-"},{"$f":"IF($B546=\"N\",\"\",IF(COUNTIF('Enrollment Form'!$CZ553:$DO553,\"Other\")=COUNTA('Enrollment Form'!$DF553,'Enrollment Form'!$DA553,'Enrollment Form'!$DK553,'Enrollment Form'!$DP553),\"Y\",\"N\"))","v":""},{"$f":"IF($B546=\"N\",\"\",IF(OR('Enrollment Form'!B553<>\"Subscriber\",'Enrollment Form'!C553=\"ROC\",COUNTIF('Enrollment Form'!AS553:AT553,\"Yes\")>=1),\"-\",IF(AND('Enrollment Form'!C553=\"Enroll\",COUNTIF('Enrollment Form'!AS553:AT553,\"No\")=2,'Enrollment Form'!AU553=\"\"),\"N\",\"Y\")))","v":""},{"$f":"IF(OR(B546=\"N\",'Enrollment Form'!B553<>\"Subscriber\",'Enrollment Form'!C553=\"ROC\",'Enrollment Form'!O553<>\"Multiple of Salary\"),\"-\",IF(COUNTA('Enrollment Form'!T553:U553)<2,\"N\",\"Y\"))","v":"-"},{"$f":"IF(B546=\"N\",\"\",IF(OR('Enrollment Form'!C553=\"ROC\",'Enrollment Form'!B553<>\"Subscriber\",'Enrollment Form'!O553=\"Waive\",'Enrollment Form'!O553=\"\"),\"-\",IF('Enrollment Form'!P553=\"\",\"N\",\"Y\")))","v":""},{"$f":"IF($B546=\"N\",\"\",IF(AND('Enrollment Form'!$C553=\"ROC\",'Enrollment Form'!$DS553<>\"\"),\"Y\",IF(AND('Enrollment Form'!$C553=\"ROC\",'Enrollment Form'!$DS553=\"\"),\"N\",IF(AND('Enrollment Form'!$C553=\"Enroll\",'Enrollment Form'!$B553=\"Subscriber\",'Enrollment Form'!$CQ553=\"No\",'Enrollment Form'!$DS553=\"\"),\"N\",IF(AND('Enrollment Form'!$C553=\"Enroll\",'Enrollment Form'!$B553=\"Subscriber\",'Enrollment Form'!$CQ553=\"Yes\"),\"-\",\"Y\")))))","v":""},{"$f":"IF($B546=\"N\",\"\",IF(AND('Enrollment Form'!$C553=\"ROC\",'Enrollment Form'!$DT553<>\"\"),\"Y\",IF(AND('Enrollment Form'!$C553=\"ROC\",'Enrollment Form'!$DT553=\"\"),\"N\",IF(AND('Enrollment Form'!$C553=\"Enroll\",'Enrollment Form'!$B553=\"Subscriber\",'Enrollment Form'!$CQ553=\"No\",'Enrollment Form'!$DT553=\"\"),\"N\",IF(AND('Enrollment Form'!$C553=\"Enroll\",'Enrollment Form'!$B553=\"Subscriber\",'Enrollment Form'!$CQ553=\"Yes\"),\"-\",\"Y\")))))","v":""},{"$f":"IF('Enrollment Form'!AH553=\"\",\"\",IF(ISERROR(SEARCH(\".\",'Enrollment Form'!AH553,SEARCH(\"@\",'Enrollment Form'!AH553))),\"N\",\"Y\"))","v":""},{"$f":"IF(OR($B546=\"N\",'Enrollment Form'!$G553=\"\"),\"\",IF('Enrollment Form'!$B553<>\"Subscriber\",\"-\",IF(COUNTIF('Enrollment Form'!$AS553:$AT553,\"Yes\")=2,\"N\",\"Y\")))","v":""},{"$f":"IF(OR('Enrollment Form'!$CC553=\"\",'Enrollment Form'!$CC553=\"No\"),\"-\",IF(AND('Enrollment Form'!$CC553=\"Yes\",'Enrollment Form'!$CD553=\"\"),\"N\",\"Y\"))","v":"-"},{"$f":"IF(OR('Enrollment Form'!$CE553=\"\",'Enrollment Form'!$CE553=\"No\"),\"-\",IF(AND('Enrollment Form'!$CE553=\"Yes\",'Enrollment Form'!$CF553=\"\"),\"N\",\"Y\"))","v":"-"},{"$f":"IF(OR('Enrollment Form'!$CG553=\"\",'Enrollment Form'!$CG553=\"No\"),\"-\",IF(AND('Enrollment Form'!$CG553=\"Yes\",'Enrollment Form'!$CH553=\"\"),\"N\",\"Y\"))","v":"-"},{"$f":"IF(OR('Enrollment Form'!$CG553=\"\",'Enrollment Form'!$CG553=\"No\"),\"-\",IF(AND('Enrollment Form'!$CG553=\"Yes\",'Enrollment Form'!$CI553=\"\"),\"N\",\"Y\"))","v":"-"},{"$f":"IF('Enrollment Form'!B553<>\"Subscriber\",\"-\",IF(AND('Enrollment Form'!B553=\"Subscriber\",'Enrollment Form'!C553=\"Enroll\",'Enrollment Form'!AA553=\"\"),\"N\",\"Y\"))","v":"-"},{"$f":"IF(OR('Enrollment Form'!B553=\"Subscriber\",'Enrollment Form'!B553=\"\"),\"-\",IF('Enrollment Form'!BI553=\"\",\"N\",\"Y\"))","v":"-"},{"$f":"IF('Enrollment Form'!B553<>\"Subscriber\",\"-\",IF(AND('Enrollment Form'!B553=\"Subscriber\",'Enrollment Form'!G553=\"\"),\"N\",\"Y\"))","v":"-"},{"$f":"IF('Enrollment Form'!A553=\"\",\"\",IF('Enrollment Form'!B553=\"Subscriber\",\"-\",IF(AND('Enrollment Form'!B553<>\"Subscriber\",'Enrollment Form'!G553='Enrollment Form'!H553),\"N\",\"Y\")))","v":""},0]
[554,{"$f":"IF('Enrollment Form'!$A554<>\"\",\"Y\",\"N\")","v":"N"},{"$f":"IF(AND('Enrollment Form'!$B554=\"\",'Enrollment Form'!$C554<>\"\"),\"N\",IF($B547=\"N\",\"\",\"Y\"))","v":""},{"$f":"IF(OR($B547=\"N\",'Enrollment Form'!G554=\"\"),\"\",IF('Enrollment Form'!$B554<>\"Subscriber\",\"\",IF('Enrollment Form'!$G554='Enrollment Form'!$H554,\"Y\",\"N\")))","v":""},{"$f":"IF($B547=\"N\",\"\",IF(AND(COUNTIFS('Enrollment Form'!$H$11:$H$1000,'Enrollment Form'!$H554,'Enrollment Form'!$B$11:$B$1000,'Enrollment Form'!$B554)>1,'Enrollment Form'!$H554<>\"\"),\"N\",\"Y\"))","v":""},{"$f":"IF($B547=\"N\",\"\",IF(LEN('Enrollment Form'!$Y554)=0,\"\",IF(LEN('Enrollment Form'!$Y554)<>5,\"N\",\"Y\")))","v":""},{"$f":"IF($B547=\"N\",\"\",IF(LEN('Enrollment Form'!$AD554=0),\"\",IF(LEN('Enrollment Form'!$AD554)<>5,\"N\",\"Y\")))","v":""},{"$f":"IF($B547=\"N\",\"\",IF(LEN('Enrollment Form'!$BL554=0),\"\",IF(LEN('Enrollment Form'!$BL554)<>5,\"N\",\"Y\")))","v":""},{"$f":"IF($B547=\"N\",\"\",IF(LEN('Enrollment Form'!$AE554)=0,\"\",IF(LEN('Enrollment Form'!$AE554)<>10,\"N\",\"Y\")))","v":""},{"$f":"IF($B547=\"N\",\"\",IF(LEN('Enrollment Form'!$AF554)=0,\"\",IF(LEN('Enrollment Form'!$AF554)<>10,\"N\",\"Y\")))","v":""},{"$f":"IF('Enrollment Form'!$O554<>\"Graded\",\"-\",IF(AND('Enrollment Form'!$O554=\"Graded\",'Enrollment Form'!$AO554<>\"\"),\"Y\",\"N\"))","v":"-"},{"$f":"IF($B547=\"N\",\"\",IF(OR('Enrollment Form'!$B554<>\"Subscriber\",'Enrollment Form'!$C554=\"ROC\"),\"-\",IF(AND('Enrollment Form'!$B554=\"Subscriber\",'Enrollment Form'!$C554=\"Enroll\",'Enrollment Form'!$AJ554<>\"\"),\"Y\",\"N\")))","v":""},{"$f":"IF($B547=\"N\",\"\",IF(OR('Enrollment Form'!$B554<>\"Subscriber\",'Enrollment Form'!$C554=\"ROC\"),\"-\",IF(AND('Enrollment Form'!$B554=\"Subscriber\",'Enrollment Form'!$C554=\"Enroll\",'Enrollment Form'!$AK554<>\"\"),\"Y\",\"N\")))","v":""},{"$f":"IF($B547=\"N\",\"\",IF(OR('Enrollment Form'!$B554<>\"Subscriber\",'Enrollment Form'!$C554=\"ROC\"),\"-\",IF(AND('Enrollment Form'!$B554=\"Subscriber\",'Enrollment Form'!$C554=\"Enroll\",'Enrollment Form'!$AL554<>\"\"),\"Y\",\"N\")))","v":""},{"$f":"IF($B547=\"N\",\"\",IF(OR('Enrollment Form'!$B554<>\"Subscriber\",'Enrollment Form'!$C554=\"ROC\"),\"-\",IF(AND('Enrollment Form'!$B554=\"Subscriber\",'Enrollment Form'!$C554=\"Enroll\",'Enrollment Form'!$AM554<>\"\"),\"Y\",\"N\")))","v":""},{"$f":"IF($B547=\"N\",\"\",IF(OR('Enrollment Form'!$B554<>\"Subscriber\",'Enrollment Form'!$C554=\"ROC\"),\"-\",IF(AND('Enrollment Form'!$B554=\"Subscriber\",'Enrollment Form'!$C554=\"Enroll\",'Enrollment Form'!$AN554<>\"\"),\"Y\",\"N\")))","v":""},{"$f":"IF($B547=\"N\",\"\",IF(OR('Enrollment Form'!$B554<>\"Subscriber\",'Enrollment Form'!$C554=\"ROC\"),\"-\",IF(AND('Enrollment Form'!$B554=\"Subscriber\",'Enrollment Form'!$C554=\"Enroll\",'Enrollment Form'!$AP554<>\"\"),\"Y\",\"N\")))","v":""},{"$f":"IF($B547=\"N\",\"\",IF($Q547=\"-\",\"-\",IF(AND($Q547=\"Y\",'Enrollment Form'!$AP554=\"No\"),\"-\",IF(AND($Q547=\"Y\",'Enrollment Form'!$AP554=\"Yes\",'Enrollment Form'!$AQ554<>\"\"),\"Y\",\"N\"))))","v":""},{"$f":"IF($B547=\"N\",\"\",IF(OR('Enrollment Form'!$B554<>\"Subscriber\",'Enrollment Form'!$C554=\"ROC\"),\"-\",IF(AND('Enrollment Form'!$B554=\"Subscriber\",'Enrollment Form'!$C554=\"Enroll\",'Enrollment Form'!$CO554<>\"\"),\"Y\",\"N\")))","v":""},{"$f":"IF($B547=\"N\",\"\",IF($S547=\"-\",\"-\",IF(AND($S547=\"Y\",'Enrollment Form'!$CO554=\"No\"),\"-\",IF(AND($S547=\"Y\",'Enrollment Form'!$CO554=\"Yes\",'Enrollment Form'!$CP554<>\"\"),\"Y\",\"N\"))))","v":""},{"$f":"IF(OR('Enrollment Form'!$AV554=\"Yes\",'Enrollment Form'!$AV554=\"\"),\"-\",IF(AND('Enrollment Form'!$AV554=\"No\",ISERROR(FIND(\"HMO\",VLOOKUP('Enrollment Form'!G554,'Enrollment Form'!H$11:J$1000,3,FALSE),1))=FALSE,COUNTA('Enrollment Form'!$AW554:$AZ554)=4),\"Y\",\"N\"))","v":"-"},{"$f":"IF($B547=\"N\",\"\",IF('Enrollment Form'!$B554=\"Subscriber\",\"-\",IF(COUNTA('Enrollment Form'!$BE554,'Enrollment Form'!$BG554)=2,\"Y\",\"N\")))","v":""},{"$f":"IF($B547=\"N\",\"\",IF(OR('Enrollment Form'!$AU554=\"\",'Enrollment Form'!$AU554=\"No\"),\"-\",IF(AND('Enrollment Form'!$AU554=\"Yes\",COUNTA('Enrollment Form'!$CK554)=1),\"Y\",\"N\")))","v":""},{"$f":"IF(OR('Enrollment Form'!$CK554=\"\",'Enrollment Form'!$CK554=\"No\"),\"-\",IF(COUNTA('Enrollment Form'!$CM554:$CN554)=2,\"Y\",\"N\"))","v":"-"},{"$f":"IF($B547=\"N\",\"\",IF(COUNTIF('Enrollment Form'!$CZ554:$DO554,\"Other\")=COUNTA('Enrollment Form'!$DF554,'Enrollment Form'!$DA554,'Enrollment Form'!$DK554,'Enrollment Form'!$DP554),\"Y\",\"N\"))","v":""},{"$f":"IF($B547=\"N\",\"\",IF(OR('Enrollment Form'!B554<>\"Subscriber\",'Enrollment Form'!C554=\"ROC\",COUNTIF('Enrollment Form'!AS554:AT554,\"Yes\")>=1),\"-\",IF(AND('Enrollment Form'!C554=\"Enroll\",COUNTIF('Enrollment Form'!AS554:AT554,\"No\")=2,'Enrollment Form'!AU554=\"\"),\"N\",\"Y\")))","v":""},{"$f":"IF(OR(B547=\"N\",'Enrollment Form'!B554<>\"Subscriber\",'Enrollment Form'!C554=\"ROC\",'Enrollment Form'!O554<>\"Multiple of Salary\"),\"-\",IF(COUNTA('Enrollment Form'!T554:U554)<2,\"N\",\"Y\"))","v":"-"},{"$f":"IF(B547=\"N\",\"\",IF(OR('Enrollment Form'!C554=\"ROC\",'Enrollment Form'!B554<>\"Subscriber\",'Enrollment Form'!O554=\"Waive\",'Enrollment Form'!O554=\"\"),\"-\",IF('Enrollment Form'!P554=\"\",\"N\",\"Y\")))","v":""},{"$f":"IF($B547=\"N\",\"\",IF(AND('Enrollment Form'!$C554=\"ROC\",'Enrollment Form'!$DS554<>\"\"),\"Y\",IF(AND('Enrollment Form'!$C554=\"ROC\",'Enrollment Form'!$DS554=\"\"),\"N\",IF(AND('Enrollment Form'!$C554=\"Enroll\",'Enrollment Form'!$B554=\"Subscriber\",'Enrollment Form'!$CQ554=\"No\",'Enrollment Form'!$DS554=\"\"),\"N\",IF(AND('Enrollment Form'!$C554=\"Enroll\",'Enrollment Form'!$B554=\"Subscriber\",'Enrollment Form'!$CQ554=\"Yes\"),\"-\",\"Y\")))))","v":""},{"$f":"IF($B547=\"N\",\"\",IF(AND('Enrollment Form'!$C554=\"ROC\",'Enrollment Form'!$DT554<>\"\"),\"Y\",IF(AND('Enrollment Form'!$C554=\"ROC\",'Enrollment Form'!$DT554=\"\"),\"N\",IF(AND('Enrollment Form'!$C554=\"Enroll\",'Enrollment Form'!$B554=\"Subscriber\",'Enrollment Form'!$CQ554=\"No\",'Enrollment Form'!$DT554=\"\"),\"N\",IF(AND('Enrollment Form'!$C554=\"Enroll\",'Enrollment Form'!$B554=\"Subscriber\",'Enrollment Form'!$CQ554=\"Yes\"),\"-\",\"Y\")))))","v":""},{"$f":"IF('Enrollment Form'!AH554=\"\",\"\",IF(ISERROR(SEARCH(\".\",'Enrollment Form'!AH554,SEARCH(\"@\",'Enrollment Form'!AH554))),\"N\",\"Y\"))","v":""},{"$f":"IF(OR($B547=\"N\",'Enrollment Form'!$G554=\"\"),\"\",IF('Enrollment Form'!$B554<>\"Subscriber\",\"-\",IF(COUNTIF('Enrollment Form'!$AS554:$AT554,\"Yes\")=2,\"N\",\"Y\")))","v":""},{"$f":"IF(OR('Enrollment Form'!$CC554=\"\",'Enrollment Form'!$CC554=\"No\"),\"-\",IF(AND('Enrollment Form'!$CC554=\"Yes\",'Enrollment Form'!$CD554=\"\"),\"N\",\"Y\"))","v":"-"},{"$f":"IF(OR('Enrollment Form'!$CE554=\"\",'Enrollment Form'!$CE554=\"No\"),\"-\",IF(AND('Enrollment Form'!$CE554=\"Yes\",'Enrollment Form'!$CF554=\"\"),\"N\",\"Y\"))","v":"-"},{"$f":"IF(OR('Enrollment Form'!$CG554=\"\",'Enrollment Form'!$CG554=\"No\"),\"-\",IF(AND('Enrollment Form'!$CG554=\"Yes\",'Enrollment Form'!$CH554=\"\"),\"N\",\"Y\"))","v":"-"},{"$f":"IF(OR('Enrollment Form'!$CG554=\"\",'Enrollment Form'!$CG554=\"No\"),\"-\",IF(AND('Enrollment Form'!$CG554=\"Yes\",'Enrollment Form'!$CI554=\"\"),\"N\",\"Y\"))","v":"-"},{"$f":"IF('Enrollment Form'!B554<>\"Subscriber\",\"-\",IF(AND('Enrollment Form'!B554=\"Subscriber\",'Enrollment Form'!C554=\"Enroll\",'Enrollment Form'!AA554=\"\"),\"N\",\"Y\"))","v":"-"},{"$f":"IF(OR('Enrollment Form'!B554=\"Subscriber\",'Enrollment Form'!B554=\"\"),\"-\",IF('Enrollment Form'!BI554=\"\",\"N\",\"Y\"))","v":"-"},{"$f":"IF('Enrollment Form'!B554<>\"Subscriber\",\"-\",IF(AND('Enrollment Form'!B554=\"Subscriber\",'Enrollment Form'!G554=\"\"),\"N\",\"Y\"))","v":"-"},{"$f":"IF('Enrollment Form'!A554=\"\",\"\",IF('Enrollment Form'!B554=\"Subscriber\",\"-\",IF(AND('Enrollment Form'!B554<>\"Subscriber\",'Enrollment Form'!G554='Enrollment Form'!H554),\"N\",\"Y\")))","v":""},0]
[555,{"$f":"IF('Enrollment Form'!$A555<>\"\",\"Y\",\"N\")","v":"N"},{"$f":"IF(AND('Enrollment Form'!$B555=\"\",'Enrollment Form'!$C555<>\"\"),\"N\",IF($B548=\"N\",\"\",\"Y\"))","v":""},{"$f":"IF(OR($B548=\"N\",'Enrollment Form'!G555=\"\"),\"\",IF('Enrollment Form'!$B555<>\"Subscriber\",\"\",IF('Enrollment Form'!$G555='Enrollment Form'!$H555,\"Y\",\"N\")))","v":""},{"$f":"IF($B548=\"N\",\"\",IF(AND(COUNTIFS('Enrollment Form'!$H$11:$H$1000,'Enrollment Form'!$H555,'Enrollment Form'!$B$11:$B$1000,'Enrollment Form'!$B555)>1,'Enrollment Form'!$H555<>\"\"),\"N\",\"Y\"))","v":""},{"$f":"IF($B548=\"N\",\"\",IF(LEN('Enrollment Form'!$Y555)=0,\"\",IF(LEN('Enrollment Form'!$Y555)<>5,\"N\",\"Y\")))","v":""},{"$f":"IF($B548=\"N\",\"\",IF(LEN('Enrollment Form'!$AD555=0),\"\",IF(LEN('Enrollment Form'!$AD555)<>5,\"N\",\"Y\")))","v":""},{"$f":"IF($B548=\"N\",\"\",IF(LEN('Enrollment Form'!$BL555=0),\"\",IF(LEN('Enrollment Form'!$BL555)<>5,\"N\",\"Y\")))","v":""},{"$f":"IF($B548=\"N\",\"\",IF(LEN('Enrollment Form'!$AE555)=0,\"\",IF(LEN('Enrollment Form'!$AE555)<>10,\"N\",\"Y\")))","v":""},{"$f":"IF($B548=\"N\",\"\",IF(LEN('Enrollment Form'!$AF555)=0,\"\",IF(LEN('Enrollment Form'!$AF555)<>10,\"N\",\"Y\")))","v":""},{"$f":"IF('Enrollment Form'!$O555<>\"Graded\",\"-\",IF(AND('Enrollment Form'!$O555=\"Graded\",'Enrollment Form'!$AO555<>\"\"),\"Y\",\"N\"))","v":"-"},{"$f":"IF($B548=\"N\",\"\",IF(OR('Enrollment Form'!$B555<>\"Subscriber\",'Enrollment Form'!$C555=\"ROC\"),\"-\",IF(AND('Enrollment Form'!$B555=\"Subscriber\",'Enrollment Form'!$C555=\"Enroll\",'Enrollment Form'!$AJ555<>\"\"),\"Y\",\"N\")))","v":""},{"$f":"IF($B548=\"N\",\"\",IF(OR('Enrollment Form'!$B555<>\"Subscriber\",'Enrollment Form'!$C555=\"ROC\"),\"-\",IF(AND('Enrollment Form'!$B555=\"Subscriber\",'Enrollment Form'!$C555=\"Enroll\",'Enrollment Form'!$AK555<>\"\"),\"Y\",\"N\")))","v":""},{"$f":"IF($B548=\"N\",\"\",IF(OR('Enrollment Form'!$B555<>\"Subscriber\",'Enrollment Form'!$C555=\"ROC\"),\"-\",IF(AND('Enrollment Form'!$B555=\"Subscriber\",'Enrollment Form'!$C555=\"Enroll\",'Enrollment Form'!$AL555<>\"\"),\"Y\",\"N\")))","v":""},{"$f":"IF($B548=\"N\",\"\",IF(OR('Enrollment Form'!$B555<>\"Subscriber\",'Enrollment Form'!$C555=\"ROC\"),\"-\",IF(AND('Enrollment Form'!$B555=\"Subscriber\",'Enrollment Form'!$C555=\"Enroll\",'Enrollment Form'!$AM555<>\"\"),\"Y\",\"N\")))","v":""},{"$f":"IF($B548=\"N\",\"\",IF(OR('Enrollment Form'!$B555<>\"Subscriber\",'Enrollment Form'!$C555=\"ROC\"),\"-\",IF(AND('Enrollment Form'!$B555=\"Subscriber\",'Enrollment Form'!$C555=\"Enroll\",'Enrollment Form'!$AN555<>\"\"),\"Y\",\"N\")))","v":""},{"$f":"IF($B548=\"N\",\"\",IF(OR('Enrollment Form'!$B555<>\"Subscriber\",'Enrollment Form'!$C555=\"ROC\"),\"-\",IF(AND('Enrollment Form'!$B555=\"Subscriber\",'Enrollment Form'!$C555=\"Enroll\",'Enrollment Form'!$AP555<>\"\"),\"Y\",\"N\")))","v":""},{"$f":"IF($B548=\"N\",\"\",IF($Q548=\"-\",\"-\",IF(AND($Q548=\"Y\",'Enrollment Form'!$AP555=\"No\"),\"-\",IF(AND($Q548=\"Y\",'Enrollment Form'!$AP555=\"Yes\",'Enrollment Form'!$AQ555<>\"\"),\"Y\",\"N\"))))","v":""},{"$f":"IF($B548=\"N\",\"\",IF(OR('Enrollment Form'!$B555<>\"Subscriber\",'Enrollment Form'!$C555=\"ROC\"),\"-\",IF(AND('Enrollment Form'!$B555=\"Subscriber\",'Enrollment Form'!$C555=\"Enroll\",'Enrollment Form'!$CO555<>\"\"),\"Y\",\"N\")))","v":""},{"$f":"IF($B548=\"N\",\"\",IF($S548=\"-\",\"-\",IF(AND($S548=\"Y\",'Enrollment Form'!$CO555=\"No\"),\"-\",IF(AND($S548=\"Y\",'Enrollment Form'!$CO555=\"Yes\",'Enrollment Form'!$CP555<>\"\"),\"Y\",\"N\"))))","v":""},{"$f":"IF(OR('Enrollment Form'!$AV555=\"Yes\",'Enrollment Form'!$AV555=\"\"),\"-\",IF(AND('Enrollment Form'!$AV555=\"No\",ISERROR(FIND(\"HMO\",VLOOKUP('Enrollment Form'!G555,'Enrollment Form'!H$11:J$1000,3,FALSE),1))=FALSE,COUNTA('Enrollment Form'!$AW555:$AZ555)=4),\"Y\",\"N\"))","v":"-"},{"$f":"IF($B548=\"N\",\"\",IF('Enrollment Form'!$B555=\"Subscriber\",\"-\",IF(COUNTA('Enrollment Form'!$BE555,'Enrollment Form'!$BG555)=2,\"Y\",\"N\")))","v":""},{"$f":"IF($B548=\"N\",\"\",IF(OR('Enrollment Form'!$AU555=\"\",'Enrollment Form'!$AU555=\"No\"),\"-\",IF(AND('Enrollment Form'!$AU555=\"Yes\",COUNTA('Enrollment Form'!$CK555)=1),\"Y\",\"N\")))","v":""},{"$f":"IF(OR('Enrollment Form'!$CK555=\"\",'Enrollment Form'!$CK555=\"No\"),\"-\",IF(COUNTA('Enrollment Form'!$CM555:$CN555)=2,\"Y\",\"N\"))","v":"-"},{"$f":"IF($B548=\"N\",\"\",IF(COUNTIF('Enrollment Form'!$CZ555:$DO555,\"Other\")=COUNTA('Enrollment Form'!$DF555,'Enrollment Form'!$DA555,'Enrollment Form'!$DK555,'Enrollment Form'!$DP555),\"Y\",\"N\"))","v":""},{"$f":"IF($B548=\"N\",\"\",IF(OR('Enrollment Form'!B555<>\"Subscriber\",'Enrollment Form'!C555=\"ROC\",COUNTIF('Enrollment Form'!AS555:AT555,\"Yes\")>=1),\"-\",IF(AND('Enrollment Form'!C555=\"Enroll\",COUNTIF('Enrollment Form'!AS555:AT555,\"No\")=2,'Enrollment Form'!AU555=\"\"),\"N\",\"Y\")))","v":""},{"$f":"IF(OR(B548=\"N\",'Enrollment Form'!B555<>\"Subscriber\",'Enrollment Form'!C555=\"ROC\",'Enrollment Form'!O555<>\"Multiple of Salary\"),\"-\",IF(COUNTA('Enrollment Form'!T555:U555)<2,\"N\",\"Y\"))","v":"-"},{"$f":"IF(B548=\"N\",\"\",IF(OR('Enrollment Form'!C555=\"ROC\",'Enrollment Form'!B555<>\"Subscriber\",'Enrollment Form'!O555=\"Waive\",'Enrollment Form'!O555=\"\"),\"-\",IF('Enrollment Form'!P555=\"\",\"N\",\"Y\")))","v":""},{"$f":"IF($B548=\"N\",\"\",IF(AND('Enrollment Form'!$C555=\"ROC\",'Enrollment Form'!$DS555<>\"\"),\"Y\",IF(AND('Enrollment Form'!$C555=\"ROC\",'Enrollment Form'!$DS555=\"\"),\"N\",IF(AND('Enrollment Form'!$C555=\"Enroll\",'Enrollment Form'!$B555=\"Subscriber\",'Enrollment Form'!$CQ555=\"No\",'Enrollment Form'!$DS555=\"\"),\"N\",IF(AND('Enrollment Form'!$C555=\"Enroll\",'Enrollment Form'!$B555=\"Subscriber\",'Enrollment Form'!$CQ555=\"Yes\"),\"-\",\"Y\")))))","v":""},{"$f":"IF($B548=\"N\",\"\",IF(AND('Enrollment Form'!$C555=\"ROC\",'Enrollment Form'!$DT555<>\"\"),\"Y\",IF(AND('Enrollment Form'!$C555=\"ROC\",'Enrollment Form'!$DT555=\"\"),\"N\",IF(AND('Enrollment Form'!$C555=\"Enroll\",'Enrollment Form'!$B555=\"Subscriber\",'Enrollment Form'!$CQ555=\"No\",'Enrollment Form'!$DT555=\"\"),\"N\",IF(AND('Enrollment Form'!$C555=\"Enroll\",'Enrollment Form'!$B555=\"Subscriber\",'Enrollment Form'!$CQ555=\"Yes\"),\"-\",\"Y\")))))","v":""},{"$f":"IF('Enrollment Form'!AH555=\"\",\"\",IF(ISERROR(SEARCH(\".\",'Enrollment Form'!AH555,SEARCH(\"@\",'Enrollment Form'!AH555))),\"N\",\"Y\"))","v":""},{"$f":"IF(OR($B548=\"N\",'Enrollment Form'!$G555=\"\"),\"\",IF('Enrollment Form'!$B555<>\"Subscriber\",\"-\",IF(COUNTIF('Enrollment Form'!$AS555:$AT555,\"Yes\")=2,\"N\",\"Y\")))","v":""},{"$f":"IF(OR('Enrollment Form'!$CC555=\"\",'Enrollment Form'!$CC555=\"No\"),\"-\",IF(AND('Enrollment Form'!$CC555=\"Yes\",'Enrollment Form'!$CD555=\"\"),\"N\",\"Y\"))","v":"-"},{"$f":"IF(OR('Enrollment Form'!$CE555=\"\",'Enrollment Form'!$CE555=\"No\"),\"-\",IF(AND('Enrollment Form'!$CE555=\"Yes\",'Enrollment Form'!$CF555=\"\"),\"N\",\"Y\"))","v":"-"},{"$f":"IF(OR('Enrollment Form'!$CG555=\"\",'Enrollment Form'!$CG555=\"No\"),\"-\",IF(AND('Enrollment Form'!$CG555=\"Yes\",'Enrollment Form'!$CH555=\"\"),\"N\",\"Y\"))","v":"-"},{"$f":"IF(OR('Enrollment Form'!$CG555=\"\",'Enrollment Form'!$CG555=\"No\"),\"-\",IF(AND('Enrollment Form'!$CG555=\"Yes\",'Enrollment Form'!$CI555=\"\"),\"N\",\"Y\"))","v":"-"},{"$f":"IF('Enrollment Form'!B555<>\"Subscriber\",\"-\",IF(AND('Enrollment Form'!B555=\"Subscriber\",'Enrollment Form'!C555=\"Enroll\",'Enrollment Form'!AA555=\"\"),\"N\",\"Y\"))","v":"-"},{"$f":"IF(OR('Enrollment Form'!B555=\"Subscriber\",'Enrollment Form'!B555=\"\"),\"-\",IF('Enrollment Form'!BI555=\"\",\"N\",\"Y\"))","v":"-"},{"$f":"IF('Enrollment Form'!B555<>\"Subscriber\",\"-\",IF(AND('Enrollment Form'!B555=\"Subscriber\",'Enrollment Form'!G555=\"\"),\"N\",\"Y\"))","v":"-"},{"$f":"IF('Enrollment Form'!A555=\"\",\"\",IF('Enrollment Form'!B555=\"Subscriber\",\"-\",IF(AND('Enrollment Form'!B555<>\"Subscriber\",'Enrollment Form'!G555='Enrollment Form'!H555),\"N\",\"Y\")))","v":""},0]
[556,{"$f":"IF('Enrollment Form'!$A556<>\"\",\"Y\",\"N\")","v":"N"},{"$f":"IF(AND('Enrollment Form'!$B556=\"\",'Enrollment Form'!$C556<>\"\"),\"N\",IF($B549=\"N\",\"\",\"Y\"))","v":""},{"$f":"IF(OR($B549=\"N\",'Enrollment Form'!G556=\"\"),\"\",IF('Enrollment Form'!$B556<>\"Subscriber\",\"\",IF('Enrollment Form'!$G556='Enrollment Form'!$H556,\"Y\",\"N\")))","v":""},{"$f":"IF($B549=\"N\",\"\",IF(AND(COUNTIFS('Enrollment Form'!$H$11:$H$1000,'Enrollment Form'!$H556,'Enrollment Form'!$B$11:$B$1000,'Enrollment Form'!$B556)>1,'Enrollment Form'!$H556<>\"\"),\"N\",\"Y\"))","v":""},{"$f":"IF($B549=\"N\",\"\",IF(LEN('Enrollment Form'!$Y556)=0,\"\",IF(LEN('Enrollment Form'!$Y556)<>5,\"N\",\"Y\")))","v":""},{"$f":"IF($B549=\"N\",\"\",IF(LEN('Enrollment Form'!$AD556=0),\"\",IF(LEN('Enrollment Form'!$AD556)<>5,\"N\",\"Y\")))","v":""},{"$f":"IF($B549=\"N\",\"\",IF(LEN('Enrollment Form'!$BL556=0),\"\",IF(LEN('Enrollment Form'!$BL556)<>5,\"N\",\"Y\")))","v":""},{"$f":"IF($B549=\"N\",\"\",IF(LEN('Enrollment Form'!$AE556)=0,\"\",IF(LEN('Enrollment Form'!$AE556)<>10,\"N\",\"Y\")))","v":""},{"$f":"IF($B549=\"N\",\"\",IF(LEN('Enrollment Form'!$AF556)=0,\"\",IF(LEN('Enrollment Form'!$AF556)<>10,\"N\",\"Y\")))","v":""},{"$f":"IF('Enrollment Form'!$O556<>\"Graded\",\"-\",IF(AND('Enrollment Form'!$O556=\"Graded\",'Enrollment Form'!$AO556<>\"\"),\"Y\",\"N\"))","v":"-"},{"$f":"IF($B549=\"N\",\"\",IF(OR('Enrollment Form'!$B556<>\"Subscriber\",'Enrollment Form'!$C556=\"ROC\"),\"-\",IF(AND('Enrollment Form'!$B556=\"Subscriber\",'Enrollment Form'!$C556=\"Enroll\",'Enrollment Form'!$AJ556<>\"\"),\"Y\",\"N\")))","v":""},{"$f":"IF($B549=\"N\",\"\",IF(OR('Enrollment Form'!$B556<>\"Subscriber\",'Enrollment Form'!$C556=\"ROC\"),\"-\",IF(AND('Enrollment Form'!$B556=\"Subscriber\",'Enrollment Form'!$C556=\"Enroll\",'Enrollment Form'!$AK556<>\"\"),\"Y\",\"N\")))","v":""},{"$f":"IF($B549=\"N\",\"\",IF(OR('Enrollment Form'!$B556<>\"Subscriber\",'Enrollment Form'!$C556=\"ROC\"),\"-\",IF(AND('Enrollment Form'!$B556=\"Subscriber\",'Enrollment Form'!$C556=\"Enroll\",'Enrollment Form'!$AL556<>\"\"),\"Y\",\"N\")))","v":""},{"$f":"IF($B549=\"N\",\"\",IF(OR('Enrollment Form'!$B556<>\"Subscriber\",'Enrollment Form'!$C556=\"ROC\"),\"-\",IF(AND('Enrollment Form'!$B556=\"Subscriber\",'Enrollment Form'!$C556=\"Enroll\",'Enrollment Form'!$AM556<>\"\"),\"Y\",\"N\")))","v":""},{"$f":"IF($B549=\"N\",\"\",IF(OR('Enrollment Form'!$B556<>\"Subscriber\",'Enrollment Form'!$C556=\"ROC\"),\"-\",IF(AND('Enrollment Form'!$B556=\"Subscriber\",'Enrollment Form'!$C556=\"Enroll\",'Enrollment Form'!$AN556<>\"\"),\"Y\",\"N\")))","v":""},{"$f":"IF($B549=\"N\",\"\",IF(OR('Enrollment Form'!$B556<>\"Subscriber\",'Enrollment Form'!$C556=\"ROC\"),\"-\",IF(AND('Enrollment Form'!$B556=\"Subscriber\",'Enrollment Form'!$C556=\"Enroll\",'Enrollment Form'!$AP556<>\"\"),\"Y\",\"N\")))","v":""},{"$f":"IF($B549=\"N\",\"\",IF($Q549=\"-\",\"-\",IF(AND($Q549=\"Y\",'Enrollment Form'!$AP556=\"No\"),\"-\",IF(AND($Q549=\"Y\",'Enrollment Form'!$AP556=\"Yes\",'Enrollment Form'!$AQ556<>\"\"),\"Y\",\"N\"))))","v":""},{"$f":"IF($B549=\"N\",\"\",IF(OR('Enrollment Form'!$B556<>\"Subscriber\",'Enrollment Form'!$C556=\"ROC\"),\"-\",IF(AND('Enrollment Form'!$B556=\"Subscriber\",'Enrollment Form'!$C556=\"Enroll\",'Enrollment Form'!$CO556<>\"\"),\"Y\",\"N\")))","v":""},{"$f":"IF($B549=\"N\",\"\",IF($S549=\"-\",\"-\",IF(AND($S549=\"Y\",'Enrollment Form'!$CO556=\"No\"),\"-\",IF(AND($S549=\"Y\",'Enrollment Form'!$CO556=\"Yes\",'Enrollment Form'!$CP556<>\"\"),\"Y\",\"N\"))))","v":""},{"$f":"IF(OR('Enrollment Form'!$AV556=\"Yes\",'Enrollment Form'!$AV556=\"\"),\"-\",IF(AND('Enrollment Form'!$AV556=\"No\",ISERROR(FIND(\"HMO\",VLOOKUP('Enrollment Form'!G556,'Enrollment Form'!H$11:J$1000,3,FALSE),1))=FALSE,COUNTA('Enrollment Form'!$AW556:$AZ556)=4),\"Y\",\"N\"))","v":"-"},{"$f":"IF($B549=\"N\",\"\",IF('Enrollment Form'!$B556=\"Subscriber\",\"-\",IF(COUNTA('Enrollment Form'!$BE556,'Enrollment Form'!$BG556)=2,\"Y\",\"N\")))","v":""},{"$f":"IF($B549=\"N\",\"\",IF(OR('Enrollment Form'!$AU556=\"\",'Enrollment Form'!$AU556=\"No\"),\"-\",IF(AND('Enrollment Form'!$AU556=\"Yes\",COUNTA('Enrollment Form'!$CK556)=1),\"Y\",\"N\")))","v":""},{"$f":"IF(OR('Enrollment Form'!$CK556=\"\",'Enrollment Form'!$CK556=\"No\"),\"-\",IF(COUNTA('Enrollment Form'!$CM556:$CN556)=2,\"Y\",\"N\"))","v":"-"},{"$f":"IF($B549=\"N\",\"\",IF(COUNTIF('Enrollment Form'!$CZ556:$DO556,\"Other\")=COUNTA('Enrollment Form'!$DF556,'Enrollment Form'!$DA556,'Enrollment Form'!$DK556,'Enrollment Form'!$DP556),\"Y\",\"N\"))","v":""},{"$f":"IF($B549=\"N\",\"\",IF(OR('Enrollment Form'!B556<>\"Subscriber\",'Enrollment Form'!C556=\"ROC\",COUNTIF('Enrollment Form'!AS556:AT556,\"Yes\")>=1),\"-\",IF(AND('Enrollment Form'!C556=\"Enroll\",COUNTIF('Enrollment Form'!AS556:AT556,\"No\")=2,'Enrollment Form'!AU556=\"\"),\"N\",\"Y\")))","v":""},{"$f":"IF(OR(B549=\"N\",'Enrollment Form'!B556<>\"Subscriber\",'Enrollment Form'!C556=\"ROC\",'Enrollment Form'!O556<>\"Multiple of Salary\"),\"-\",IF(COUNTA('Enrollment Form'!T556:U556)<2,\"N\",\"Y\"))","v":"-"},{"$f":"IF(B549=\"N\",\"\",IF(OR('Enrollment Form'!C556=\"ROC\",'Enrollment Form'!B556<>\"Subscriber\",'Enrollment Form'!O556=\"Waive\",'Enrollment Form'!O556=\"\"),\"-\",IF('Enrollment Form'!P556=\"\",\"N\",\"Y\")))","v":""},{"$f":"IF($B549=\"N\",\"\",IF(AND('Enrollment Form'!$C556=\"ROC\",'Enrollment Form'!$DS556<>\"\"),\"Y\",IF(AND('Enrollment Form'!$C556=\"ROC\",'Enrollment Form'!$DS556=\"\"),\"N\",IF(AND('Enrollment Form'!$C556=\"Enroll\",'Enrollment Form'!$B556=\"Subscriber\",'Enrollment Form'!$CQ556=\"No\",'Enrollment Form'!$DS556=\"\"),\"N\",IF(AND('Enrollment Form'!$C556=\"Enroll\",'Enrollment Form'!$B556=\"Subscriber\",'Enrollment Form'!$CQ556=\"Yes\"),\"-\",\"Y\")))))","v":""},{"$f":"IF($B549=\"N\",\"\",IF(AND('Enrollment Form'!$C556=\"ROC\",'Enrollment Form'!$DT556<>\"\"),\"Y\",IF(AND('Enrollment Form'!$C556=\"ROC\",'Enrollment Form'!$DT556=\"\"),\"N\",IF(AND('Enrollment Form'!$C556=\"Enroll\",'Enrollment Form'!$B556=\"Subscriber\",'Enrollment Form'!$CQ556=\"No\",'Enrollment Form'!$DT556=\"\"),\"N\",IF(AND('Enrollment Form'!$C556=\"Enroll\",'Enrollment Form'!$B556=\"Subscriber\",'Enrollment Form'!$CQ556=\"Yes\"),\"-\",\"Y\")))))","v":""},{"$f":"IF('Enrollment Form'!AH556=\"\",\"\",IF(ISERROR(SEARCH(\".\",'Enrollment Form'!AH556,SEARCH(\"@\",'Enrollment Form'!AH556))),\"N\",\"Y\"))","v":""},{"$f":"IF(OR($B549=\"N\",'Enrollment Form'!$G556=\"\"),\"\",IF('Enrollment Form'!$B556<>\"Subscriber\",\"-\",IF(COUNTIF('Enrollment Form'!$AS556:$AT556,\"Yes\")=2,\"N\",\"Y\")))","v":""},{"$f":"IF(OR('Enrollment Form'!$CC556=\"\",'Enrollment Form'!$CC556=\"No\"),\"-\",IF(AND('Enrollment Form'!$CC556=\"Yes\",'Enrollment Form'!$CD556=\"\"),\"N\",\"Y\"))","v":"-"},{"$f":"IF(OR('Enrollment Form'!$CE556=\"\",'Enrollment Form'!$CE556=\"No\"),\"-\",IF(AND('Enrollment Form'!$CE556=\"Yes\",'Enrollment Form'!$CF556=\"\"),\"N\",\"Y\"))","v":"-"},{"$f":"IF(OR('Enrollment Form'!$CG556=\"\",'Enrollment Form'!$CG556=\"No\"),\"-\",IF(AND('Enrollment Form'!$CG556=\"Yes\",'Enrollment Form'!$CH556=\"\"),\"N\",\"Y\"))","v":"-"},{"$f":"IF(OR('Enrollment Form'!$CG556=\"\",'Enrollment Form'!$CG556=\"No\"),\"-\",IF(AND('Enrollment Form'!$CG556=\"Yes\",'Enrollment Form'!$CI556=\"\"),\"N\",\"Y\"))","v":"-"},{"$f":"IF('Enrollment Form'!B556<>\"Subscriber\",\"-\",IF(AND('Enrollment Form'!B556=\"Subscriber\",'Enrollment Form'!C556=\"Enroll\",'Enrollment Form'!AA556=\"\"),\"N\",\"Y\"))","v":"-"},{"$f":"IF(OR('Enrollment Form'!B556=\"Subscriber\",'Enrollment Form'!B556=\"\"),\"-\",IF('Enrollment Form'!BI556=\"\",\"N\",\"Y\"))","v":"-"},{"$f":"IF('Enrollment Form'!B556<>\"Subscriber\",\"-\",IF(AND('Enrollment Form'!B556=\"Subscriber\",'Enrollment Form'!G556=\"\"),\"N\",\"Y\"))","v":"-"},{"$f":"IF('Enrollment Form'!A556=\"\",\"\",IF('Enrollment Form'!B556=\"Subscriber\",\"-\",IF(AND('Enrollment Form'!B556<>\"Subscriber\",'Enrollment Form'!G556='Enrollment Form'!H556),\"N\",\"Y\")))","v":""},0]
[557,{"$f":"IF('Enrollment Form'!$A557<>\"\",\"Y\",\"N\")","v":"N"},{"$f":"IF(AND('Enrollment Form'!$B557=\"\",'Enrollment Form'!$C557<>\"\"),\"N\",IF($B550=\"N\",\"\",\"Y\"))","v":""},{"$f":"IF(OR($B550=\"N\",'Enrollment Form'!G557=\"\"),\"\",IF('Enrollment Form'!$B557<>\"Subscriber\",\"\",IF('Enrollment Form'!$G557='Enrollment Form'!$H557,\"Y\",\"N\")))","v":""},{"$f":"IF($B550=\"N\",\"\",IF(AND(COUNTIFS('Enrollment Form'!$H$11:$H$1000,'Enrollment Form'!$H557,'Enrollment Form'!$B$11:$B$1000,'Enrollment Form'!$B557)>1,'Enrollment Form'!$H557<>\"\"),\"N\",\"Y\"))","v":""},{"$f":"IF($B550=\"N\",\"\",IF(LEN('Enrollment Form'!$Y557)=0,\"\",IF(LEN('Enrollment Form'!$Y557)<>5,\"N\",\"Y\")))","v":""},{"$f":"IF($B550=\"N\",\"\",IF(LEN('Enrollment Form'!$AD557=0),\"\",IF(LEN('Enrollment Form'!$AD557)<>5,\"N\",\"Y\")))","v":""},{"$f":"IF($B550=\"N\",\"\",IF(LEN('Enrollment Form'!$BL557=0),\"\",IF(LEN('Enrollment Form'!$BL557)<>5,\"N\",\"Y\")))","v":""},{"$f":"IF($B550=\"N\",\"\",IF(LEN('Enrollment Form'!$AE557)=0,\"\",IF(LEN('Enrollment Form'!$AE557)<>10,\"N\",\"Y\")))","v":""},{"$f":"IF($B550=\"N\",\"\",IF(LEN('Enrollment Form'!$AF557)=0,\"\",IF(LEN('Enrollment Form'!$AF557)<>10,\"N\",\"Y\")))","v":""},{"$f":"IF('Enrollment Form'!$O557<>\"Graded\",\"-\",IF(AND('Enrollment Form'!$O557=\"Graded\",'Enrollment Form'!$AO557<>\"\"),\"Y\",\"N\"))","v":"-"},{"$f":"IF($B550=\"N\",\"\",IF(OR('Enrollment Form'!$B557<>\"Subscriber\",'Enrollment Form'!$C557=\"ROC\"),\"-\",IF(AND('Enrollment Form'!$B557=\"Subscriber\",'Enrollment Form'!$C557=\"Enroll\",'Enrollment Form'!$AJ557<>\"\"),\"Y\",\"N\")))","v":""},{"$f":"IF($B550=\"N\",\"\",IF(OR('Enrollment Form'!$B557<>\"Subscriber\",'Enrollment Form'!$C557=\"ROC\"),\"-\",IF(AND('Enrollment Form'!$B557=\"Subscriber\",'Enrollment Form'!$C557=\"Enroll\",'Enrollment Form'!$AK557<>\"\"),\"Y\",\"N\")))","v":""},{"$f":"IF($B550=\"N\",\"\",IF(OR('Enrollment Form'!$B557<>\"Subscriber\",'Enrollment Form'!$C557=\"ROC\"),\"-\",IF(AND('Enrollment Form'!$B557=\"Subscriber\",'Enrollment Form'!$C557=\"Enroll\",'Enrollment Form'!$AL557<>\"\"),\"Y\",\"N\")))","v":""},{"$f":"IF($B550=\"N\",\"\",IF(OR('Enrollment Form'!$B557<>\"Subscriber\",'Enrollment Form'!$C557=\"ROC\"),\"-\",IF(AND('Enrollment Form'!$B557=\"Subscriber\",'Enrollment Form'!$C557=\"Enroll\",'Enrollment Form'!$AM557<>\"\"),\"Y\",\"N\")))","v":""},{"$f":"IF($B550=\"N\",\"\",IF(OR('Enrollment Form'!$B557<>\"Subscriber\",'Enrollment Form'!$C557=\"ROC\"),\"-\",IF(AND('Enrollment Form'!$B557=\"Subscriber\",'Enrollment Form'!$C557=\"Enroll\",'Enrollment Form'!$AN557<>\"\"),\"Y\",\"N\")))","v":""},{"$f":"IF($B550=\"N\",\"\",IF(OR('Enrollment Form'!$B557<>\"Subscriber\",'Enrollment Form'!$C557=\"ROC\"),\"-\",IF(AND('Enrollment Form'!$B557=\"Subscriber\",'Enrollment Form'!$C557=\"Enroll\",'Enrollment Form'!$AP557<>\"\"),\"Y\",\"N\")))","v":""},{"$f":"IF($B550=\"N\",\"\",IF($Q550=\"-\",\"-\",IF(AND($Q550=\"Y\",'Enrollment Form'!$AP557=\"No\"),\"-\",IF(AND($Q550=\"Y\",'Enrollment Form'!$AP557=\"Yes\",'Enrollment Form'!$AQ557<>\"\"),\"Y\",\"N\"))))","v":""},{"$f":"IF($B550=\"N\",\"\",IF(OR('Enrollment Form'!$B557<>\"Subscriber\",'Enrollment Form'!$C557=\"ROC\"),\"-\",IF(AND('Enrollment Form'!$B557=\"Subscriber\",'Enrollment Form'!$C557=\"Enroll\",'Enrollment Form'!$CO557<>\"\"),\"Y\",\"N\")))","v":""},{"$f":"IF($B550=\"N\",\"\",IF($S550=\"-\",\"-\",IF(AND($S550=\"Y\",'Enrollment Form'!$CO557=\"No\"),\"-\",IF(AND($S550=\"Y\",'Enrollment Form'!$CO557=\"Yes\",'Enrollment Form'!$CP557<>\"\"),\"Y\",\"N\"))))","v":""},{"$f":"IF(OR('Enrollment Form'!$AV557=\"Yes\",'Enrollment Form'!$AV557=\"\"),\"-\",IF(AND('Enrollment Form'!$AV557=\"No\",ISERROR(FIND(\"HMO\",VLOOKUP('Enrollment Form'!G557,'Enrollment Form'!H$11:J$1000,3,FALSE),1))=FALSE,COUNTA('Enrollment Form'!$AW557:$AZ557)=4),\"Y\",\"N\"))","v":"-"},{"$f":"IF($B550=\"N\",\"\",IF('Enrollment Form'!$B557=\"Subscriber\",\"-\",IF(COUNTA('Enrollment Form'!$BE557,'Enrollment Form'!$BG557)=2,\"Y\",\"N\")))","v":""},{"$f":"IF($B550=\"N\",\"\",IF(OR('Enrollment Form'!$AU557=\"\",'Enrollment Form'!$AU557=\"No\"),\"-\",IF(AND('Enrollment Form'!$AU557=\"Yes\",COUNTA('Enrollment Form'!$CK557)=1),\"Y\",\"N\")))","v":""},{"$f":"IF(OR('Enrollment Form'!$CK557=\"\",'Enrollment Form'!$CK557=\"No\"),\"-\",IF(COUNTA('Enrollment Form'!$CM557:$CN557)=2,\"Y\",\"N\"))","v":"-"},{"$f":"IF($B550=\"N\",\"\",IF(COUNTIF('Enrollment Form'!$CZ557:$DO557,\"Other\")=COUNTA('Enrollment Form'!$DF557,'Enrollment Form'!$DA557,'Enrollment Form'!$DK557,'Enrollment Form'!$DP557),\"Y\",\"N\"))","v":""},{"$f":"IF($B550=\"N\",\"\",IF(OR('Enrollment Form'!B557<>\"Subscriber\",'Enrollment Form'!C557=\"ROC\",COUNTIF('Enrollment Form'!AS557:AT557,\"Yes\")>=1),\"-\",IF(AND('Enrollment Form'!C557=\"Enroll\",COUNTIF('Enrollment Form'!AS557:AT557,\"No\")=2,'Enrollment Form'!AU557=\"\"),\"N\",\"Y\")))","v":""},{"$f":"IF(OR(B550=\"N\",'Enrollment Form'!B557<>\"Subscriber\",'Enrollment Form'!C557=\"ROC\",'Enrollment Form'!O557<>\"Multiple of Salary\"),\"-\",IF(COUNTA('Enrollment Form'!T557:U557)<2,\"N\",\"Y\"))","v":"-"},{"$f":"IF(B550=\"N\",\"\",IF(OR('Enrollment Form'!C557=\"ROC\",'Enrollment Form'!B557<>\"Subscriber\",'Enrollment Form'!O557=\"Waive\",'Enrollment Form'!O557=\"\"),\"-\",IF('Enrollment Form'!P557=\"\",\"N\",\"Y\")))","v":""},{"$f":"IF($B550=\"N\",\"\",IF(AND('Enrollment Form'!$C557=\"ROC\",'Enrollment Form'!$DS557<>\"\"),\"Y\",IF(AND('Enrollment Form'!$C557=\"ROC\",'Enrollment Form'!$DS557=\"\"),\"N\",IF(AND('Enrollment Form'!$C557=\"Enroll\",'Enrollment Form'!$B557=\"Subscriber\",'Enrollment Form'!$CQ557=\"No\",'Enrollment Form'!$DS557=\"\"),\"N\",IF(AND('Enrollment Form'!$C557=\"Enroll\",'Enrollment Form'!$B557=\"Subscriber\",'Enrollment Form'!$CQ557=\"Yes\"),\"-\",\"Y\")))))","v":""},{"$f":"IF($B550=\"N\",\"\",IF(AND('Enrollment Form'!$C557=\"ROC\",'Enrollment Form'!$DT557<>\"\"),\"Y\",IF(AND('Enrollment Form'!$C557=\"ROC\",'Enrollment Form'!$DT557=\"\"),\"N\",IF(AND('Enrollment Form'!$C557=\"Enroll\",'Enrollment Form'!$B557=\"Subscriber\",'Enrollment Form'!$CQ557=\"No\",'Enrollment Form'!$DT557=\"\"),\"N\",IF(AND('Enrollment Form'!$C557=\"Enroll\",'Enrollment Form'!$B557=\"Subscriber\",'Enrollment Form'!$CQ557=\"Yes\"),\"-\",\"Y\")))))","v":""},{"$f":"IF('Enrollment Form'!AH557=\"\",\"\",IF(ISERROR(SEARCH(\".\",'Enrollment Form'!AH557,SEARCH(\"@\",'Enrollment Form'!AH557))),\"N\",\"Y\"))","v":""},{"$f":"IF(OR($B550=\"N\",'Enrollment Form'!$G557=\"\"),\"\",IF('Enrollment Form'!$B557<>\"Subscriber\",\"-\",IF(COUNTIF('Enrollment Form'!$AS557:$AT557,\"Yes\")=2,\"N\",\"Y\")))","v":""},{"$f":"IF(OR('Enrollment Form'!$CC557=\"\",'Enrollment Form'!$CC557=\"No\"),\"-\",IF(AND('Enrollment Form'!$CC557=\"Yes\",'Enrollment Form'!$CD557=\"\"),\"N\",\"Y\"))","v":"-"},{"$f":"IF(OR('Enrollment Form'!$CE557=\"\",'Enrollment Form'!$CE557=\"No\"),\"-\",IF(AND('Enrollment Form'!$CE557=\"Yes\",'Enrollment Form'!$CF557=\"\"),\"N\",\"Y\"))","v":"-"},{"$f":"IF(OR('Enrollment Form'!$CG557=\"\",'Enrollment Form'!$CG557=\"No\"),\"-\",IF(AND('Enrollment Form'!$CG557=\"Yes\",'Enrollment Form'!$CH557=\"\"),\"N\",\"Y\"))","v":"-"},{"$f":"IF(OR('Enrollment Form'!$CG557=\"\",'Enrollment Form'!$CG557=\"No\"),\"-\",IF(AND('Enrollment Form'!$CG557=\"Yes\",'Enrollment Form'!$CI557=\"\"),\"N\",\"Y\"))","v":"-"},{"$f":"IF('Enrollment Form'!B557<>\"Subscriber\",\"-\",IF(AND('Enrollment Form'!B557=\"Subscriber\",'Enrollment Form'!C557=\"Enroll\",'Enrollment Form'!AA557=\"\"),\"N\",\"Y\"))","v":"-"},{"$f":"IF(OR('Enrollment Form'!B557=\"Subscriber\",'Enrollment Form'!B557=\"\"),\"-\",IF('Enrollment Form'!BI557=\"\",\"N\",\"Y\"))","v":"-"},{"$f":"IF('Enrollment Form'!B557<>\"Subscriber\",\"-\",IF(AND('Enrollment Form'!B557=\"Subscriber\",'Enrollment Form'!G557=\"\"),\"N\",\"Y\"))","v":"-"},{"$f":"IF('Enrollment Form'!A557=\"\",\"\",IF('Enrollment Form'!B557=\"Subscriber\",\"-\",IF(AND('Enrollment Form'!B557<>\"Subscriber\",'Enrollment Form'!G557='Enrollment Form'!H557),\"N\",\"Y\")))","v":""},0]
[558,{"$f":"IF('Enrollment Form'!$A558<>\"\",\"Y\",\"N\")","v":"N"},{"$f":"IF(AND('Enrollment Form'!$B558=\"\",'Enrollment Form'!$C558<>\"\"),\"N\",IF($B551=\"N\",\"\",\"Y\"))","v":""},{"$f":"IF(OR($B551=\"N\",'Enrollment Form'!G558=\"\"),\"\",IF('Enrollment Form'!$B558<>\"Subscriber\",\"\",IF('Enrollment Form'!$G558='Enrollment Form'!$H558,\"Y\",\"N\")))","v":""},{"$f":"IF($B551=\"N\",\"\",IF(AND(COUNTIFS('Enrollment Form'!$H$11:$H$1000,'Enrollment Form'!$H558,'Enrollment Form'!$B$11:$B$1000,'Enrollment Form'!$B558)>1,'Enrollment Form'!$H558<>\"\"),\"N\",\"Y\"))","v":""},{"$f":"IF($B551=\"N\",\"\",IF(LEN('Enrollment Form'!$Y558)=0,\"\",IF(LEN('Enrollment Form'!$Y558)<>5,\"N\",\"Y\")))","v":""},{"$f":"IF($B551=\"N\",\"\",IF(LEN('Enrollment Form'!$AD558=0),\"\",IF(LEN('Enrollment Form'!$AD558)<>5,\"N\",\"Y\")))","v":""},{"$f":"IF($B551=\"N\",\"\",IF(LEN('Enrollment Form'!$BL558=0),\"\",IF(LEN('Enrollment Form'!$BL558)<>5,\"N\",\"Y\")))","v":""},{"$f":"IF($B551=\"N\",\"\",IF(LEN('Enrollment Form'!$AE558)=0,\"\",IF(LEN('Enrollment Form'!$AE558)<>10,\"N\",\"Y\")))","v":""},{"$f":"IF($B551=\"N\",\"\",IF(LEN('Enrollment Form'!$AF558)=0,\"\",IF(LEN('Enrollment Form'!$AF558)<>10,\"N\",\"Y\")))","v":""},{"$f":"IF('Enrollment Form'!$O558<>\"Graded\",\"-\",IF(AND('Enrollment Form'!$O558=\"Graded\",'Enrollment Form'!$AO558<>\"\"),\"Y\",\"N\"))","v":"-"},{"$f":"IF($B551=\"N\",\"\",IF(OR('Enrollment Form'!$B558<>\"Subscriber\",'Enrollment Form'!$C558=\"ROC\"),\"-\",IF(AND('Enrollment Form'!$B558=\"Subscriber\",'Enrollment Form'!$C558=\"Enroll\",'Enrollment Form'!$AJ558<>\"\"),\"Y\",\"N\")))","v":""},{"$f":"IF($B551=\"N\",\"\",IF(OR('Enrollment Form'!$B558<>\"Subscriber\",'Enrollment Form'!$C558=\"ROC\"),\"-\",IF(AND('Enrollment Form'!$B558=\"Subscriber\",'Enrollment Form'!$C558=\"Enroll\",'Enrollment Form'!$AK558<>\"\"),\"Y\",\"N\")))","v":""},{"$f":"IF($B551=\"N\",\"\",IF(OR('Enrollment Form'!$B558<>\"Subscriber\",'Enrollment Form'!$C558=\"ROC\"),\"-\",IF(AND('Enrollment Form'!$B558=\"Subscriber\",'Enrollment Form'!$C558=\"Enroll\",'Enrollment Form'!$AL558<>\"\"),\"Y\",\"N\")))","v":""},{"$f":"IF($B551=\"N\",\"\",IF(OR('Enrollment Form'!$B558<>\"Subscriber\",'Enrollment Form'!$C558=\"ROC\"),\"-\",IF(AND('Enrollment Form'!$B558=\"Subscriber\",'Enrollment Form'!$C558=\"Enroll\",'Enrollment Form'!$AM558<>\"\"),\"Y\",\"N\")))","v":""},{"$f":"IF($B551=\"N\",\"\",IF(OR('Enrollment Form'!$B558<>\"Subscriber\",'Enrollment Form'!$C558=\"ROC\"),\"-\",IF(AND('Enrollment Form'!$B558=\"Subscriber\",'Enrollment Form'!$C558=\"Enroll\",'Enrollment Form'!$AN558<>\"\"),\"Y\",\"N\")))","v":""},{"$f":"IF($B551=\"N\",\"\",IF(OR('Enrollment Form'!$B558<>\"Subscriber\",'Enrollment Form'!$C558=\"ROC\"),\"-\",IF(AND('Enrollment Form'!$B558=\"Subscriber\",'Enrollment Form'!$C558=\"Enroll\",'Enrollment Form'!$AP558<>\"\"),\"Y\",\"N\")))","v":""},{"$f":"IF($B551=\"N\",\"\",IF($Q551=\"-\",\"-\",IF(AND($Q551=\"Y\",'Enrollment Form'!$AP558=\"No\"),\"-\",IF(AND($Q551=\"Y\",'Enrollment Form'!$AP558=\"Yes\",'Enrollment Form'!$AQ558<>\"\"),\"Y\",\"N\"))))","v":""},{"$f":"IF($B551=\"N\",\"\",IF(OR('Enrollment Form'!$B558<>\"Subscriber\",'Enrollment Form'!$C558=\"ROC\"),\"-\",IF(AND('Enrollment Form'!$B558=\"Subscriber\",'Enrollment Form'!$C558=\"Enroll\",'Enrollment Form'!$CO558<>\"\"),\"Y\",\"N\")))","v":""},{"$f":"IF($B551=\"N\",\"\",IF($S551=\"-\",\"-\",IF(AND($S551=\"Y\",'Enrollment Form'!$CO558=\"No\"),\"-\",IF(AND($S551=\"Y\",'Enrollment Form'!$CO558=\"Yes\",'Enrollment Form'!$CP558<>\"\"),\"Y\",\"N\"))))","v":""},{"$f":"IF(OR('Enrollment Form'!$AV558=\"Yes\",'Enrollment Form'!$AV558=\"\"),\"-\",IF(AND('Enrollment Form'!$AV558=\"No\",ISERROR(FIND(\"HMO\",VLOOKUP('Enrollment Form'!G558,'Enrollment Form'!H$11:J$1000,3,FALSE),1))=FALSE,COUNTA('Enrollment Form'!$AW558:$AZ558)=4),\"Y\",\"N\"))","v":"-"},{"$f":"IF($B551=\"N\",\"\",IF('Enrollment Form'!$B558=\"Subscriber\",\"-\",IF(COUNTA('Enrollment Form'!$BE558,'Enrollment Form'!$BG558)=2,\"Y\",\"N\")))","v":""},{"$f":"IF($B551=\"N\",\"\",IF(OR('Enrollment Form'!$AU558=\"\",'Enrollment Form'!$AU558=\"No\"),\"-\",IF(AND('Enrollment Form'!$AU558=\"Yes\",COUNTA('Enrollment Form'!$CK558)=1),\"Y\",\"N\")))","v":""},{"$f":"IF(OR('Enrollment Form'!$CK558=\"\",'Enrollment Form'!$CK558=\"No\"),\"-\",IF(COUNTA('Enrollment Form'!$CM558:$CN558)=2,\"Y\",\"N\"))","v":"-"},{"$f":"IF($B551=\"N\",\"\",IF(COUNTIF('Enrollment Form'!$CZ558:$DO558,\"Other\")=COUNTA('Enrollment Form'!$DF558,'Enrollment Form'!$DA558,'Enrollment Form'!$DK558,'Enrollment Form'!$DP558),\"Y\",\"N\"))","v":""},{"$f":"IF($B551=\"N\",\"\",IF(OR('Enrollment Form'!B558<>\"Subscriber\",'Enrollment Form'!C558=\"ROC\",COUNTIF('Enrollment Form'!AS558:AT558,\"Yes\")>=1),\"-\",IF(AND('Enrollment Form'!C558=\"Enroll\",COUNTIF('Enrollment Form'!AS558:AT558,\"No\")=2,'Enrollment Form'!AU558=\"\"),\"N\",\"Y\")))","v":""},{"$f":"IF(OR(B551=\"N\",'Enrollment Form'!B558<>\"Subscriber\",'Enrollment Form'!C558=\"ROC\",'Enrollment Form'!O558<>\"Multiple of Salary\"),\"-\",IF(COUNTA('Enrollment Form'!T558:U558)<2,\"N\",\"Y\"))","v":"-"},{"$f":"IF(B551=\"N\",\"\",IF(OR('Enrollment Form'!C558=\"ROC\",'Enrollment Form'!B558<>\"Subscriber\",'Enrollment Form'!O558=\"Waive\",'Enrollment Form'!O558=\"\"),\"-\",IF('Enrollment Form'!P558=\"\",\"N\",\"Y\")))","v":""},{"$f":"IF($B551=\"N\",\"\",IF(AND('Enrollment Form'!$C558=\"ROC\",'Enrollment Form'!$DS558<>\"\"),\"Y\",IF(AND('Enrollment Form'!$C558=\"ROC\",'Enrollment Form'!$DS558=\"\"),\"N\",IF(AND('Enrollment Form'!$C558=\"Enroll\",'Enrollment Form'!$B558=\"Subscriber\",'Enrollment Form'!$CQ558=\"No\",'Enrollment Form'!$DS558=\"\"),\"N\",IF(AND('Enrollment Form'!$C558=\"Enroll\",'Enrollment Form'!$B558=\"Subscriber\",'Enrollment Form'!$CQ558=\"Yes\"),\"-\",\"Y\")))))","v":""},{"$f":"IF($B551=\"N\",\"\",IF(AND('Enrollment Form'!$C558=\"ROC\",'Enrollment Form'!$DT558<>\"\"),\"Y\",IF(AND('Enrollment Form'!$C558=\"ROC\",'Enrollment Form'!$DT558=\"\"),\"N\",IF(AND('Enrollment Form'!$C558=\"Enroll\",'Enrollment Form'!$B558=\"Subscriber\",'Enrollment Form'!$CQ558=\"No\",'Enrollment Form'!$DT558=\"\"),\"N\",IF(AND('Enrollment Form'!$C558=\"Enroll\",'Enrollment Form'!$B558=\"Subscriber\",'Enrollment Form'!$CQ558=\"Yes\"),\"-\",\"Y\")))))","v":""},{"$f":"IF('Enrollment Form'!AH558=\"\",\"\",IF(ISERROR(SEARCH(\".\",'Enrollment Form'!AH558,SEARCH(\"@\",'Enrollment Form'!AH558))),\"N\",\"Y\"))","v":""},{"$f":"IF(OR($B551=\"N\",'Enrollment Form'!$G558=\"\"),\"\",IF('Enrollment Form'!$B558<>\"Subscriber\",\"-\",IF(COUNTIF('Enrollment Form'!$AS558:$AT558,\"Yes\")=2,\"N\",\"Y\")))","v":""},{"$f":"IF(OR('Enrollment Form'!$CC558=\"\",'Enrollment Form'!$CC558=\"No\"),\"-\",IF(AND('Enrollment Form'!$CC558=\"Yes\",'Enrollment Form'!$CD558=\"\"),\"N\",\"Y\"))","v":"-"},{"$f":"IF(OR('Enrollment Form'!$CE558=\"\",'Enrollment Form'!$CE558=\"No\"),\"-\",IF(AND('Enrollment Form'!$CE558=\"Yes\",'Enrollment Form'!$CF558=\"\"),\"N\",\"Y\"))","v":"-"},{"$f":"IF(OR('Enrollment Form'!$CG558=\"\",'Enrollment Form'!$CG558=\"No\"),\"-\",IF(AND('Enrollment Form'!$CG558=\"Yes\",'Enrollment Form'!$CH558=\"\"),\"N\",\"Y\"))","v":"-"},{"$f":"IF(OR('Enrollment Form'!$CG558=\"\",'Enrollment Form'!$CG558=\"No\"),\"-\",IF(AND('Enrollment Form'!$CG558=\"Yes\",'Enrollment Form'!$CI558=\"\"),\"N\",\"Y\"))","v":"-"},{"$f":"IF('Enrollment Form'!B558<>\"Subscriber\",\"-\",IF(AND('Enrollment Form'!B558=\"Subscriber\",'Enrollment Form'!C558=\"Enroll\",'Enrollment Form'!AA558=\"\"),\"N\",\"Y\"))","v":"-"},{"$f":"IF(OR('Enrollment Form'!B558=\"Subscriber\",'Enrollment Form'!B558=\"\"),\"-\",IF('Enrollment Form'!BI558=\"\",\"N\",\"Y\"))","v":"-"},{"$f":"IF('Enrollment Form'!B558<>\"Subscriber\",\"-\",IF(AND('Enrollment Form'!B558=\"Subscriber\",'Enrollment Form'!G558=\"\"),\"N\",\"Y\"))","v":"-"},{"$f":"IF('Enrollment Form'!A558=\"\",\"\",IF('Enrollment Form'!B558=\"Subscriber\",\"-\",IF(AND('Enrollment Form'!B558<>\"Subscriber\",'Enrollment Form'!G558='Enrollment Form'!H558),\"N\",\"Y\")))","v":""},0]
[559,{"$f":"IF('Enrollment Form'!$A559<>\"\",\"Y\",\"N\")","v":"N"},{"$f":"IF(AND('Enrollment Form'!$B559=\"\",'Enrollment Form'!$C559<>\"\"),\"N\",IF($B552=\"N\",\"\",\"Y\"))","v":""},{"$f":"IF(OR($B552=\"N\",'Enrollment Form'!G559=\"\"),\"\",IF('Enrollment Form'!$B559<>\"Subscriber\",\"\",IF('Enrollment Form'!$G559='Enrollment Form'!$H559,\"Y\",\"N\")))","v":""},{"$f":"IF($B552=\"N\",\"\",IF(AND(COUNTIFS('Enrollment Form'!$H$11:$H$1000,'Enrollment Form'!$H559,'Enrollment Form'!$B$11:$B$1000,'Enrollment Form'!$B559)>1,'Enrollment Form'!$H559<>\"\"),\"N\",\"Y\"))","v":""},{"$f":"IF($B552=\"N\",\"\",IF(LEN('Enrollment Form'!$Y559)=0,\"\",IF(LEN('Enrollment Form'!$Y559)<>5,\"N\",\"Y\")))","v":""},{"$f":"IF($B552=\"N\",\"\",IF(LEN('Enrollment Form'!$AD559=0),\"\",IF(LEN('Enrollment Form'!$AD559)<>5,\"N\",\"Y\")))","v":""},{"$f":"IF($B552=\"N\",\"\",IF(LEN('Enrollment Form'!$BL559=0),\"\",IF(LEN('Enrollment Form'!$BL559)<>5,\"N\",\"Y\")))","v":""},{"$f":"IF($B552=\"N\",\"\",IF(LEN('Enrollment Form'!$AE559)=0,\"\",IF(LEN('Enrollment Form'!$AE559)<>10,\"N\",\"Y\")))","v":""},{"$f":"IF($B552=\"N\",\"\",IF(LEN('Enrollment Form'!$AF559)=0,\"\",IF(LEN('Enrollment Form'!$AF559)<>10,\"N\",\"Y\")))","v":""},{"$f":"IF('Enrollment Form'!$O559<>\"Graded\",\"-\",IF(AND('Enrollment Form'!$O559=\"Graded\",'Enrollment Form'!$AO559<>\"\"),\"Y\",\"N\"))","v":"-"},{"$f":"IF($B552=\"N\",\"\",IF(OR('Enrollment Form'!$B559<>\"Subscriber\",'Enrollment Form'!$C559=\"ROC\"),\"-\",IF(AND('Enrollment Form'!$B559=\"Subscriber\",'Enrollment Form'!$C559=\"Enroll\",'Enrollment Form'!$AJ559<>\"\"),\"Y\",\"N\")))","v":""},{"$f":"IF($B552=\"N\",\"\",IF(OR('Enrollment Form'!$B559<>\"Subscriber\",'Enrollment Form'!$C559=\"ROC\"),\"-\",IF(AND('Enrollment Form'!$B559=\"Subscriber\",'Enrollment Form'!$C559=\"Enroll\",'Enrollment Form'!$AK559<>\"\"),\"Y\",\"N\")))","v":""},{"$f":"IF($B552=\"N\",\"\",IF(OR('Enrollment Form'!$B559<>\"Subscriber\",'Enrollment Form'!$C559=\"ROC\"),\"-\",IF(AND('Enrollment Form'!$B559=\"Subscriber\",'Enrollment Form'!$C559=\"Enroll\",'Enrollment Form'!$AL559<>\"\"),\"Y\",\"N\")))","v":""},{"$f":"IF($B552=\"N\",\"\",IF(OR('Enrollment Form'!$B559<>\"Subscriber\",'Enrollment Form'!$C559=\"ROC\"),\"-\",IF(AND('Enrollment Form'!$B559=\"Subscriber\",'Enrollment Form'!$C559=\"Enroll\",'Enrollment Form'!$AM559<>\"\"),\"Y\",\"N\")))","v":""},{"$f":"IF($B552=\"N\",\"\",IF(OR('Enrollment Form'!$B559<>\"Subscriber\",'Enrollment Form'!$C559=\"ROC\"),\"-\",IF(AND('Enrollment Form'!$B559=\"Subscriber\",'Enrollment Form'!$C559=\"Enroll\",'Enrollment Form'!$AN559<>\"\"),\"Y\",\"N\")))","v":""},{"$f":"IF($B552=\"N\",\"\",IF(OR('Enrollment Form'!$B559<>\"Subscriber\",'Enrollment Form'!$C559=\"ROC\"),\"-\",IF(AND('Enrollment Form'!$B559=\"Subscriber\",'Enrollment Form'!$C559=\"Enroll\",'Enrollment Form'!$AP559<>\"\"),\"Y\",\"N\")))","v":""},{"$f":"IF($B552=\"N\",\"\",IF($Q552=\"-\",\"-\",IF(AND($Q552=\"Y\",'Enrollment Form'!$AP559=\"No\"),\"-\",IF(AND($Q552=\"Y\",'Enrollment Form'!$AP559=\"Yes\",'Enrollment Form'!$AQ559<>\"\"),\"Y\",\"N\"))))","v":""},{"$f":"IF($B552=\"N\",\"\",IF(OR('Enrollment Form'!$B559<>\"Subscriber\",'Enrollment Form'!$C559=\"ROC\"),\"-\",IF(AND('Enrollment Form'!$B559=\"Subscriber\",'Enrollment Form'!$C559=\"Enroll\",'Enrollment Form'!$CO559<>\"\"),\"Y\",\"N\")))","v":""},{"$f":"IF($B552=\"N\",\"\",IF($S552=\"-\",\"-\",IF(AND($S552=\"Y\",'Enrollment Form'!$CO559=\"No\"),\"-\",IF(AND($S552=\"Y\",'Enrollment Form'!$CO559=\"Yes\",'Enrollment Form'!$CP559<>\"\"),\"Y\",\"N\"))))","v":""},{"$f":"IF(OR('Enrollment Form'!$AV559=\"Yes\",'Enrollment Form'!$AV559=\"\"),\"-\",IF(AND('Enrollment Form'!$AV559=\"No\",ISERROR(FIND(\"HMO\",VLOOKUP('Enrollment Form'!G559,'Enrollment Form'!H$11:J$1000,3,FALSE),1))=FALSE,COUNTA('Enrollment Form'!$AW559:$AZ559)=4),\"Y\",\"N\"))","v":"-"},{"$f":"IF($B552=\"N\",\"\",IF('Enrollment Form'!$B559=\"Subscriber\",\"-\",IF(COUNTA('Enrollment Form'!$BE559,'Enrollment Form'!$BG559)=2,\"Y\",\"N\")))","v":""},{"$f":"IF($B552=\"N\",\"\",IF(OR('Enrollment Form'!$AU559=\"\",'Enrollment Form'!$AU559=\"No\"),\"-\",IF(AND('Enrollment Form'!$AU559=\"Yes\",COUNTA('Enrollment Form'!$CK559)=1),\"Y\",\"N\")))","v":""},{"$f":"IF(OR('Enrollment Form'!$CK559=\"\",'Enrollment Form'!$CK559=\"No\"),\"-\",IF(COUNTA('Enrollment Form'!$CM559:$CN559)=2,\"Y\",\"N\"))","v":"-"},{"$f":"IF($B552=\"N\",\"\",IF(COUNTIF('Enrollment Form'!$CZ559:$DO559,\"Other\")=COUNTA('Enrollment Form'!$DF559,'Enrollment Form'!$DA559,'Enrollment Form'!$DK559,'Enrollment Form'!$DP559),\"Y\",\"N\"))","v":""},{"$f":"IF($B552=\"N\",\"\",IF(OR('Enrollment Form'!B559<>\"Subscriber\",'Enrollment Form'!C559=\"ROC\",COUNTIF('Enrollment Form'!AS559:AT559,\"Yes\")>=1),\"-\",IF(AND('Enrollment Form'!C559=\"Enroll\",COUNTIF('Enrollment Form'!AS559:AT559,\"No\")=2,'Enrollment Form'!AU559=\"\"),\"N\",\"Y\")))","v":""},{"$f":"IF(OR(B552=\"N\",'Enrollment Form'!B559<>\"Subscriber\",'Enrollment Form'!C559=\"ROC\",'Enrollment Form'!O559<>\"Multiple of Salary\"),\"-\",IF(COUNTA('Enrollment Form'!T559:U559)<2,\"N\",\"Y\"))","v":"-"},{"$f":"IF(B552=\"N\",\"\",IF(OR('Enrollment Form'!C559=\"ROC\",'Enrollment Form'!B559<>\"Subscriber\",'Enrollment Form'!O559=\"Waive\",'Enrollment Form'!O559=\"\"),\"-\",IF('Enrollment Form'!P559=\"\",\"N\",\"Y\")))","v":""},{"$f":"IF($B552=\"N\",\"\",IF(AND('Enrollment Form'!$C559=\"ROC\",'Enrollment Form'!$DS559<>\"\"),\"Y\",IF(AND('Enrollment Form'!$C559=\"ROC\",'Enrollment Form'!$DS559=\"\"),\"N\",IF(AND('Enrollment Form'!$C559=\"Enroll\",'Enrollment Form'!$B559=\"Subscriber\",'Enrollment Form'!$CQ559=\"No\",'Enrollment Form'!$DS559=\"\"),\"N\",IF(AND('Enrollment Form'!$C559=\"Enroll\",'Enrollment Form'!$B559=\"Subscriber\",'Enrollment Form'!$CQ559=\"Yes\"),\"-\",\"Y\")))))","v":""},{"$f":"IF($B552=\"N\",\"\",IF(AND('Enrollment Form'!$C559=\"ROC\",'Enrollment Form'!$DT559<>\"\"),\"Y\",IF(AND('Enrollment Form'!$C559=\"ROC\",'Enrollment Form'!$DT559=\"\"),\"N\",IF(AND('Enrollment Form'!$C559=\"Enroll\",'Enrollment Form'!$B559=\"Subscriber\",'Enrollment Form'!$CQ559=\"No\",'Enrollment Form'!$DT559=\"\"),\"N\",IF(AND('Enrollment Form'!$C559=\"Enroll\",'Enrollment Form'!$B559=\"Subscriber\",'Enrollment Form'!$CQ559=\"Yes\"),\"-\",\"Y\")))))","v":""},{"$f":"IF('Enrollment Form'!AH559=\"\",\"\",IF(ISERROR(SEARCH(\".\",'Enrollment Form'!AH559,SEARCH(\"@\",'Enrollment Form'!AH559))),\"N\",\"Y\"))","v":""},{"$f":"IF(OR($B552=\"N\",'Enrollment Form'!$G559=\"\"),\"\",IF('Enrollment Form'!$B559<>\"Subscriber\",\"-\",IF(COUNTIF('Enrollment Form'!$AS559:$AT559,\"Yes\")=2,\"N\",\"Y\")))","v":""},{"$f":"IF(OR('Enrollment Form'!$CC559=\"\",'Enrollment Form'!$CC559=\"No\"),\"-\",IF(AND('Enrollment Form'!$CC559=\"Yes\",'Enrollment Form'!$CD559=\"\"),\"N\",\"Y\"))","v":"-"},{"$f":"IF(OR('Enrollment Form'!$CE559=\"\",'Enrollment Form'!$CE559=\"No\"),\"-\",IF(AND('Enrollment Form'!$CE559=\"Yes\",'Enrollment Form'!$CF559=\"\"),\"N\",\"Y\"))","v":"-"},{"$f":"IF(OR('Enrollment Form'!$CG559=\"\",'Enrollment Form'!$CG559=\"No\"),\"-\",IF(AND('Enrollment Form'!$CG559=\"Yes\",'Enrollment Form'!$CH559=\"\"),\"N\",\"Y\"))","v":"-"},{"$f":"IF(OR('Enrollment Form'!$CG559=\"\",'Enrollment Form'!$CG559=\"No\"),\"-\",IF(AND('Enrollment Form'!$CG559=\"Yes\",'Enrollment Form'!$CI559=\"\"),\"N\",\"Y\"))","v":"-"},{"$f":"IF('Enrollment Form'!B559<>\"Subscriber\",\"-\",IF(AND('Enrollment Form'!B559=\"Subscriber\",'Enrollment Form'!C559=\"Enroll\",'Enrollment Form'!AA559=\"\"),\"N\",\"Y\"))","v":"-"},{"$f":"IF(OR('Enrollment Form'!B559=\"Subscriber\",'Enrollment Form'!B559=\"\"),\"-\",IF('Enrollment Form'!BI559=\"\",\"N\",\"Y\"))","v":"-"},{"$f":"IF('Enrollment Form'!B559<>\"Subscriber\",\"-\",IF(AND('Enrollment Form'!B559=\"Subscriber\",'Enrollment Form'!G559=\"\"),\"N\",\"Y\"))","v":"-"},{"$f":"IF('Enrollment Form'!A559=\"\",\"\",IF('Enrollment Form'!B559=\"Subscriber\",\"-\",IF(AND('Enrollment Form'!B559<>\"Subscriber\",'Enrollment Form'!G559='Enrollment Form'!H559),\"N\",\"Y\")))","v":""},0]
[560,{"$f":"IF('Enrollment Form'!$A560<>\"\",\"Y\",\"N\")","v":"N"},{"$f":"IF(AND('Enrollment Form'!$B560=\"\",'Enrollment Form'!$C560<>\"\"),\"N\",IF($B553=\"N\",\"\",\"Y\"))","v":""},{"$f":"IF(OR($B553=\"N\",'Enrollment Form'!G560=\"\"),\"\",IF('Enrollment Form'!$B560<>\"Subscriber\",\"\",IF('Enrollment Form'!$G560='Enrollment Form'!$H560,\"Y\",\"N\")))","v":""},{"$f":"IF($B553=\"N\",\"\",IF(AND(COUNTIFS('Enrollment Form'!$H$11:$H$1000,'Enrollment Form'!$H560,'Enrollment Form'!$B$11:$B$1000,'Enrollment Form'!$B560)>1,'Enrollment Form'!$H560<>\"\"),\"N\",\"Y\"))","v":""},{"$f":"IF($B553=\"N\",\"\",IF(LEN('Enrollment Form'!$Y560)=0,\"\",IF(LEN('Enrollment Form'!$Y560)<>5,\"N\",\"Y\")))","v":""},{"$f":"IF($B553=\"N\",\"\",IF(LEN('Enrollment Form'!$AD560=0),\"\",IF(LEN('Enrollment Form'!$AD560)<>5,\"N\",\"Y\")))","v":""},{"$f":"IF($B553=\"N\",\"\",IF(LEN('Enrollment Form'!$BL560=0),\"\",IF(LEN('Enrollment Form'!$BL560)<>5,\"N\",\"Y\")))","v":""},{"$f":"IF($B553=\"N\",\"\",IF(LEN('Enrollment Form'!$AE560)=0,\"\",IF(LEN('Enrollment Form'!$AE560)<>10,\"N\",\"Y\")))","v":""},{"$f":"IF($B553=\"N\",\"\",IF(LEN('Enrollment Form'!$AF560)=0,\"\",IF(LEN('Enrollment Form'!$AF560)<>10,\"N\",\"Y\")))","v":""},{"$f":"IF('Enrollment Form'!$O560<>\"Graded\",\"-\",IF(AND('Enrollment Form'!$O560=\"Graded\",'Enrollment Form'!$AO560<>\"\"),\"Y\",\"N\"))","v":"-"},{"$f":"IF($B553=\"N\",\"\",IF(OR('Enrollment Form'!$B560<>\"Subscriber\",'Enrollment Form'!$C560=\"ROC\"),\"-\",IF(AND('Enrollment Form'!$B560=\"Subscriber\",'Enrollment Form'!$C560=\"Enroll\",'Enrollment Form'!$AJ560<>\"\"),\"Y\",\"N\")))","v":""},{"$f":"IF($B553=\"N\",\"\",IF(OR('Enrollment Form'!$B560<>\"Subscriber\",'Enrollment Form'!$C560=\"ROC\"),\"-\",IF(AND('Enrollment Form'!$B560=\"Subscriber\",'Enrollment Form'!$C560=\"Enroll\",'Enrollment Form'!$AK560<>\"\"),\"Y\",\"N\")))","v":""},{"$f":"IF($B553=\"N\",\"\",IF(OR('Enrollment Form'!$B560<>\"Subscriber\",'Enrollment Form'!$C560=\"ROC\"),\"-\",IF(AND('Enrollment Form'!$B560=\"Subscriber\",'Enrollment Form'!$C560=\"Enroll\",'Enrollment Form'!$AL560<>\"\"),\"Y\",\"N\")))","v":""},{"$f":"IF($B553=\"N\",\"\",IF(OR('Enrollment Form'!$B560<>\"Subscriber\",'Enrollment Form'!$C560=\"ROC\"),\"-\",IF(AND('Enrollment Form'!$B560=\"Subscriber\",'Enrollment Form'!$C560=\"Enroll\",'Enrollment Form'!$AM560<>\"\"),\"Y\",\"N\")))","v":""},{"$f":"IF($B553=\"N\",\"\",IF(OR('Enrollment Form'!$B560<>\"Subscriber\",'Enrollment Form'!$C560=\"ROC\"),\"-\",IF(AND('Enrollment Form'!$B560=\"Subscriber\",'Enrollment Form'!$C560=\"Enroll\",'Enrollment Form'!$AN560<>\"\"),\"Y\",\"N\")))","v":""},{"$f":"IF($B553=\"N\",\"\",IF(OR('Enrollment Form'!$B560<>\"Subscriber\",'Enrollment Form'!$C560=\"ROC\"),\"-\",IF(AND('Enrollment Form'!$B560=\"Subscriber\",'Enrollment Form'!$C560=\"Enroll\",'Enrollment Form'!$AP560<>\"\"),\"Y\",\"N\")))","v":""},{"$f":"IF($B553=\"N\",\"\",IF($Q553=\"-\",\"-\",IF(AND($Q553=\"Y\",'Enrollment Form'!$AP560=\"No\"),\"-\",IF(AND($Q553=\"Y\",'Enrollment Form'!$AP560=\"Yes\",'Enrollment Form'!$AQ560<>\"\"),\"Y\",\"N\"))))","v":""},{"$f":"IF($B553=\"N\",\"\",IF(OR('Enrollment Form'!$B560<>\"Subscriber\",'Enrollment Form'!$C560=\"ROC\"),\"-\",IF(AND('Enrollment Form'!$B560=\"Subscriber\",'Enrollment Form'!$C560=\"Enroll\",'Enrollment Form'!$CO560<>\"\"),\"Y\",\"N\")))","v":""},{"$f":"IF($B553=\"N\",\"\",IF($S553=\"-\",\"-\",IF(AND($S553=\"Y\",'Enrollment Form'!$CO560=\"No\"),\"-\",IF(AND($S553=\"Y\",'Enrollment Form'!$CO560=\"Yes\",'Enrollment Form'!$CP560<>\"\"),\"Y\",\"N\"))))","v":""},{"$f":"IF(OR('Enrollment Form'!$AV560=\"Yes\",'Enrollment Form'!$AV560=\"\"),\"-\",IF(AND('Enrollment Form'!$AV560=\"No\",ISERROR(FIND(\"HMO\",VLOOKUP('Enrollment Form'!G560,'Enrollment Form'!H$11:J$1000,3,FALSE),1))=FALSE,COUNTA('Enrollment Form'!$AW560:$AZ560)=4),\"Y\",\"N\"))","v":"-"},{"$f":"IF($B553=\"N\",\"\",IF('Enrollment Form'!$B560=\"Subscriber\",\"-\",IF(COUNTA('Enrollment Form'!$BE560,'Enrollment Form'!$BG560)=2,\"Y\",\"N\")))","v":""},{"$f":"IF($B553=\"N\",\"\",IF(OR('Enrollment Form'!$AU560=\"\",'Enrollment Form'!$AU560=\"No\"),\"-\",IF(AND('Enrollment Form'!$AU560=\"Yes\",COUNTA('Enrollment Form'!$CK560)=1),\"Y\",\"N\")))","v":""},{"$f":"IF(OR('Enrollment Form'!$CK560=\"\",'Enrollment Form'!$CK560=\"No\"),\"-\",IF(COUNTA('Enrollment Form'!$CM560:$CN560)=2,\"Y\",\"N\"))","v":"-"},{"$f":"IF($B553=\"N\",\"\",IF(COUNTIF('Enrollment Form'!$CZ560:$DO560,\"Other\")=COUNTA('Enrollment Form'!$DF560,'Enrollment Form'!$DA560,'Enrollment Form'!$DK560,'Enrollment Form'!$DP560),\"Y\",\"N\"))","v":""},{"$f":"IF($B553=\"N\",\"\",IF(OR('Enrollment Form'!B560<>\"Subscriber\",'Enrollment Form'!C560=\"ROC\",COUNTIF('Enrollment Form'!AS560:AT560,\"Yes\")>=1),\"-\",IF(AND('Enrollment Form'!C560=\"Enroll\",COUNTIF('Enrollment Form'!AS560:AT560,\"No\")=2,'Enrollment Form'!AU560=\"\"),\"N\",\"Y\")))","v":""},{"$f":"IF(OR(B553=\"N\",'Enrollment Form'!B560<>\"Subscriber\",'Enrollment Form'!C560=\"ROC\",'Enrollment Form'!O560<>\"Multiple of Salary\"),\"-\",IF(COUNTA('Enrollment Form'!T560:U560)<2,\"N\",\"Y\"))","v":"-"},{"$f":"IF(B553=\"N\",\"\",IF(OR('Enrollment Form'!C560=\"ROC\",'Enrollment Form'!B560<>\"Subscriber\",'Enrollment Form'!O560=\"Waive\",'Enrollment Form'!O560=\"\"),\"-\",IF('Enrollment Form'!P560=\"\",\"N\",\"Y\")))","v":""},{"$f":"IF($B553=\"N\",\"\",IF(AND('Enrollment Form'!$C560=\"ROC\",'Enrollment Form'!$DS560<>\"\"),\"Y\",IF(AND('Enrollment Form'!$C560=\"ROC\",'Enrollment Form'!$DS560=\"\"),\"N\",IF(AND('Enrollment Form'!$C560=\"Enroll\",'Enrollment Form'!$B560=\"Subscriber\",'Enrollment Form'!$CQ560=\"No\",'Enrollment Form'!$DS560=\"\"),\"N\",IF(AND('Enrollment Form'!$C560=\"Enroll\",'Enrollment Form'!$B560=\"Subscriber\",'Enrollment Form'!$CQ560=\"Yes\"),\"-\",\"Y\")))))","v":""},{"$f":"IF($B553=\"N\",\"\",IF(AND('Enrollment Form'!$C560=\"ROC\",'Enrollment Form'!$DT560<>\"\"),\"Y\",IF(AND('Enrollment Form'!$C560=\"ROC\",'Enrollment Form'!$DT560=\"\"),\"N\",IF(AND('Enrollment Form'!$C560=\"Enroll\",'Enrollment Form'!$B560=\"Subscriber\",'Enrollment Form'!$CQ560=\"No\",'Enrollment Form'!$DT560=\"\"),\"N\",IF(AND('Enrollment Form'!$C560=\"Enroll\",'Enrollment Form'!$B560=\"Subscriber\",'Enrollment Form'!$CQ560=\"Yes\"),\"-\",\"Y\")))))","v":""},{"$f":"IF('Enrollment Form'!AH560=\"\",\"\",IF(ISERROR(SEARCH(\".\",'Enrollment Form'!AH560,SEARCH(\"@\",'Enrollment Form'!AH560))),\"N\",\"Y\"))","v":""},{"$f":"IF(OR($B553=\"N\",'Enrollment Form'!$G560=\"\"),\"\",IF('Enrollment Form'!$B560<>\"Subscriber\",\"-\",IF(COUNTIF('Enrollment Form'!$AS560:$AT560,\"Yes\")=2,\"N\",\"Y\")))","v":""},{"$f":"IF(OR('Enrollment Form'!$CC560=\"\",'Enrollment Form'!$CC560=\"No\"),\"-\",IF(AND('Enrollment Form'!$CC560=\"Yes\",'Enrollment Form'!$CD560=\"\"),\"N\",\"Y\"))","v":"-"},{"$f":"IF(OR('Enrollment Form'!$CE560=\"\",'Enrollment Form'!$CE560=\"No\"),\"-\",IF(AND('Enrollment Form'!$CE560=\"Yes\",'Enrollment Form'!$CF560=\"\"),\"N\",\"Y\"))","v":"-"},{"$f":"IF(OR('Enrollment Form'!$CG560=\"\",'Enrollment Form'!$CG560=\"No\"),\"-\",IF(AND('Enrollment Form'!$CG560=\"Yes\",'Enrollment Form'!$CH560=\"\"),\"N\",\"Y\"))","v":"-"},{"$f":"IF(OR('Enrollment Form'!$CG560=\"\",'Enrollment Form'!$CG560=\"No\"),\"-\",IF(AND('Enrollment Form'!$CG560=\"Yes\",'Enrollment Form'!$CI560=\"\"),\"N\",\"Y\"))","v":"-"},{"$f":"IF('Enrollment Form'!B560<>\"Subscriber\",\"-\",IF(AND('Enrollment Form'!B560=\"Subscriber\",'Enrollment Form'!C560=\"Enroll\",'Enrollment Form'!AA560=\"\"),\"N\",\"Y\"))","v":"-"},{"$f":"IF(OR('Enrollment Form'!B560=\"Subscriber\",'Enrollment Form'!B560=\"\"),\"-\",IF('Enrollment Form'!BI560=\"\",\"N\",\"Y\"))","v":"-"},{"$f":"IF('Enrollment Form'!B560<>\"Subscriber\",\"-\",IF(AND('Enrollment Form'!B560=\"Subscriber\",'Enrollment Form'!G560=\"\"),\"N\",\"Y\"))","v":"-"},{"$f":"IF('Enrollment Form'!A560=\"\",\"\",IF('Enrollment Form'!B560=\"Subscriber\",\"-\",IF(AND('Enrollment Form'!B560<>\"Subscriber\",'Enrollment Form'!G560='Enrollment Form'!H560),\"N\",\"Y\")))","v":""},0]
[561,{"$f":"IF('Enrollment Form'!$A561<>\"\",\"Y\",\"N\")","v":"N"},{"$f":"IF(AND('Enrollment Form'!$B561=\"\",'Enrollment Form'!$C561<>\"\"),\"N\",IF($B554=\"N\",\"\",\"Y\"))","v":""},{"$f":"IF(OR($B554=\"N\",'Enrollment Form'!G561=\"\"),\"\",IF('Enrollment Form'!$B561<>\"Subscriber\",\"\",IF('Enrollment Form'!$G561='Enrollment Form'!$H561,\"Y\",\"N\")))","v":""},{"$f":"IF($B554=\"N\",\"\",IF(AND(COUNTIFS('Enrollment Form'!$H$11:$H$1000,'Enrollment Form'!$H561,'Enrollment Form'!$B$11:$B$1000,'Enrollment Form'!$B561)>1,'Enrollment Form'!$H561<>\"\"),\"N\",\"Y\"))","v":""},{"$f":"IF($B554=\"N\",\"\",IF(LEN('Enrollment Form'!$Y561)=0,\"\",IF(LEN('Enrollment Form'!$Y561)<>5,\"N\",\"Y\")))","v":""},{"$f":"IF($B554=\"N\",\"\",IF(LEN('Enrollment Form'!$AD561=0),\"\",IF(LEN('Enrollment Form'!$AD561)<>5,\"N\",\"Y\")))","v":""},{"$f":"IF($B554=\"N\",\"\",IF(LEN('Enrollment Form'!$BL561=0),\"\",IF(LEN('Enrollment Form'!$BL561)<>5,\"N\",\"Y\")))","v":""},{"$f":"IF($B554=\"N\",\"\",IF(LEN('Enrollment Form'!$AE561)=0,\"\",IF(LEN('Enrollment Form'!$AE561)<>10,\"N\",\"Y\")))","v":""},{"$f":"IF($B554=\"N\",\"\",IF(LEN('Enrollment Form'!$AF561)=0,\"\",IF(LEN('Enrollment Form'!$AF561)<>10,\"N\",\"Y\")))","v":""},{"$f":"IF('Enrollment Form'!$O561<>\"Graded\",\"-\",IF(AND('Enrollment Form'!$O561=\"Graded\",'Enrollment Form'!$AO561<>\"\"),\"Y\",\"N\"))","v":"-"},{"$f":"IF($B554=\"N\",\"\",IF(OR('Enrollment Form'!$B561<>\"Subscriber\",'Enrollment Form'!$C561=\"ROC\"),\"-\",IF(AND('Enrollment Form'!$B561=\"Subscriber\",'Enrollment Form'!$C561=\"Enroll\",'Enrollment Form'!$AJ561<>\"\"),\"Y\",\"N\")))","v":""},{"$f":"IF($B554=\"N\",\"\",IF(OR('Enrollment Form'!$B561<>\"Subscriber\",'Enrollment Form'!$C561=\"ROC\"),\"-\",IF(AND('Enrollment Form'!$B561=\"Subscriber\",'Enrollment Form'!$C561=\"Enroll\",'Enrollment Form'!$AK561<>\"\"),\"Y\",\"N\")))","v":""},{"$f":"IF($B554=\"N\",\"\",IF(OR('Enrollment Form'!$B561<>\"Subscriber\",'Enrollment Form'!$C561=\"ROC\"),\"-\",IF(AND('Enrollment Form'!$B561=\"Subscriber\",'Enrollment Form'!$C561=\"Enroll\",'Enrollment Form'!$AL561<>\"\"),\"Y\",\"N\")))","v":""},{"$f":"IF($B554=\"N\",\"\",IF(OR('Enrollment Form'!$B561<>\"Subscriber\",'Enrollment Form'!$C561=\"ROC\"),\"-\",IF(AND('Enrollment Form'!$B561=\"Subscriber\",'Enrollment Form'!$C561=\"Enroll\",'Enrollment Form'!$AM561<>\"\"),\"Y\",\"N\")))","v":""},{"$f":"IF($B554=\"N\",\"\",IF(OR('Enrollment Form'!$B561<>\"Subscriber\",'Enrollment Form'!$C561=\"ROC\"),\"-\",IF(AND('Enrollment Form'!$B561=\"Subscriber\",'Enrollment Form'!$C561=\"Enroll\",'Enrollment Form'!$AN561<>\"\"),\"Y\",\"N\")))","v":""},{"$f":"IF($B554=\"N\",\"\",IF(OR('Enrollment Form'!$B561<>\"Subscriber\",'Enrollment Form'!$C561=\"ROC\"),\"-\",IF(AND('Enrollment Form'!$B561=\"Subscriber\",'Enrollment Form'!$C561=\"Enroll\",'Enrollment Form'!$AP561<>\"\"),\"Y\",\"N\")))","v":""},{"$f":"IF($B554=\"N\",\"\",IF($Q554=\"-\",\"-\",IF(AND($Q554=\"Y\",'Enrollment Form'!$AP561=\"No\"),\"-\",IF(AND($Q554=\"Y\",'Enrollment Form'!$AP561=\"Yes\",'Enrollment Form'!$AQ561<>\"\"),\"Y\",\"N\"))))","v":""},{"$f":"IF($B554=\"N\",\"\",IF(OR('Enrollment Form'!$B561<>\"Subscriber\",'Enrollment Form'!$C561=\"ROC\"),\"-\",IF(AND('Enrollment Form'!$B561=\"Subscriber\",'Enrollment Form'!$C561=\"Enroll\",'Enrollment Form'!$CO561<>\"\"),\"Y\",\"N\")))","v":""},{"$f":"IF($B554=\"N\",\"\",IF($S554=\"-\",\"-\",IF(AND($S554=\"Y\",'Enrollment Form'!$CO561=\"No\"),\"-\",IF(AND($S554=\"Y\",'Enrollment Form'!$CO561=\"Yes\",'Enrollment Form'!$CP561<>\"\"),\"Y\",\"N\"))))","v":""},{"$f":"IF(OR('Enrollment Form'!$AV561=\"Yes\",'Enrollment Form'!$AV561=\"\"),\"-\",IF(AND('Enrollment Form'!$AV561=\"No\",ISERROR(FIND(\"HMO\",VLOOKUP('Enrollment Form'!G561,'Enrollment Form'!H$11:J$1000,3,FALSE),1))=FALSE,COUNTA('Enrollment Form'!$AW561:$AZ561)=4),\"Y\",\"N\"))","v":"-"},{"$f":"IF($B554=\"N\",\"\",IF('Enrollment Form'!$B561=\"Subscriber\",\"-\",IF(COUNTA('Enrollment Form'!$BE561,'Enrollment Form'!$BG561)=2,\"Y\",\"N\")))","v":""},{"$f":"IF($B554=\"N\",\"\",IF(OR('Enrollment Form'!$AU561=\"\",'Enrollment Form'!$AU561=\"No\"),\"-\",IF(AND('Enrollment Form'!$AU561=\"Yes\",COUNTA('Enrollment Form'!$CK561)=1),\"Y\",\"N\")))","v":""},{"$f":"IF(OR('Enrollment Form'!$CK561=\"\",'Enrollment Form'!$CK561=\"No\"),\"-\",IF(COUNTA('Enrollment Form'!$CM561:$CN561)=2,\"Y\",\"N\"))","v":"-"},{"$f":"IF($B554=\"N\",\"\",IF(COUNTIF('Enrollment Form'!$CZ561:$DO561,\"Other\")=COUNTA('Enrollment Form'!$DF561,'Enrollment Form'!$DA561,'Enrollment Form'!$DK561,'Enrollment Form'!$DP561),\"Y\",\"N\"))","v":""},{"$f":"IF($B554=\"N\",\"\",IF(OR('Enrollment Form'!B561<>\"Subscriber\",'Enrollment Form'!C561=\"ROC\",COUNTIF('Enrollment Form'!AS561:AT561,\"Yes\")>=1),\"-\",IF(AND('Enrollment Form'!C561=\"Enroll\",COUNTIF('Enrollment Form'!AS561:AT561,\"No\")=2,'Enrollment Form'!AU561=\"\"),\"N\",\"Y\")))","v":""},{"$f":"IF(OR(B554=\"N\",'Enrollment Form'!B561<>\"Subscriber\",'Enrollment Form'!C561=\"ROC\",'Enrollment Form'!O561<>\"Multiple of Salary\"),\"-\",IF(COUNTA('Enrollment Form'!T561:U561)<2,\"N\",\"Y\"))","v":"-"},{"$f":"IF(B554=\"N\",\"\",IF(OR('Enrollment Form'!C561=\"ROC\",'Enrollment Form'!B561<>\"Subscriber\",'Enrollment Form'!O561=\"Waive\",'Enrollment Form'!O561=\"\"),\"-\",IF('Enrollment Form'!P561=\"\",\"N\",\"Y\")))","v":""},{"$f":"IF($B554=\"N\",\"\",IF(AND('Enrollment Form'!$C561=\"ROC\",'Enrollment Form'!$DS561<>\"\"),\"Y\",IF(AND('Enrollment Form'!$C561=\"ROC\",'Enrollment Form'!$DS561=\"\"),\"N\",IF(AND('Enrollment Form'!$C561=\"Enroll\",'Enrollment Form'!$B561=\"Subscriber\",'Enrollment Form'!$CQ561=\"No\",'Enrollment Form'!$DS561=\"\"),\"N\",IF(AND('Enrollment Form'!$C561=\"Enroll\",'Enrollment Form'!$B561=\"Subscriber\",'Enrollment Form'!$CQ561=\"Yes\"),\"-\",\"Y\")))))","v":""},{"$f":"IF($B554=\"N\",\"\",IF(AND('Enrollment Form'!$C561=\"ROC\",'Enrollment Form'!$DT561<>\"\"),\"Y\",IF(AND('Enrollment Form'!$C561=\"ROC\",'Enrollment Form'!$DT561=\"\"),\"N\",IF(AND('Enrollment Form'!$C561=\"Enroll\",'Enrollment Form'!$B561=\"Subscriber\",'Enrollment Form'!$CQ561=\"No\",'Enrollment Form'!$DT561=\"\"),\"N\",IF(AND('Enrollment Form'!$C561=\"Enroll\",'Enrollment Form'!$B561=\"Subscriber\",'Enrollment Form'!$CQ561=\"Yes\"),\"-\",\"Y\")))))","v":""},{"$f":"IF('Enrollment Form'!AH561=\"\",\"\",IF(ISERROR(SEARCH(\".\",'Enrollment Form'!AH561,SEARCH(\"@\",'Enrollment Form'!AH561))),\"N\",\"Y\"))","v":""},{"$f":"IF(OR($B554=\"N\",'Enrollment Form'!$G561=\"\"),\"\",IF('Enrollment Form'!$B561<>\"Subscriber\",\"-\",IF(COUNTIF('Enrollment Form'!$AS561:$AT561,\"Yes\")=2,\"N\",\"Y\")))","v":""},{"$f":"IF(OR('Enrollment Form'!$CC561=\"\",'Enrollment Form'!$CC561=\"No\"),\"-\",IF(AND('Enrollment Form'!$CC561=\"Yes\",'Enrollment Form'!$CD561=\"\"),\"N\",\"Y\"))","v":"-"},{"$f":"IF(OR('Enrollment Form'!$CE561=\"\",'Enrollment Form'!$CE561=\"No\"),\"-\",IF(AND('Enrollment Form'!$CE561=\"Yes\",'Enrollment Form'!$CF561=\"\"),\"N\",\"Y\"))","v":"-"},{"$f":"IF(OR('Enrollment Form'!$CG561=\"\",'Enrollment Form'!$CG561=\"No\"),\"-\",IF(AND('Enrollment Form'!$CG561=\"Yes\",'Enrollment Form'!$CH561=\"\"),\"N\",\"Y\"))","v":"-"},{"$f":"IF(OR('Enrollment Form'!$CG561=\"\",'Enrollment Form'!$CG561=\"No\"),\"-\",IF(AND('Enrollment Form'!$CG561=\"Yes\",'Enrollment Form'!$CI561=\"\"),\"N\",\"Y\"))","v":"-"},{"$f":"IF('Enrollment Form'!B561<>\"Subscriber\",\"-\",IF(AND('Enrollment Form'!B561=\"Subscriber\",'Enrollment Form'!C561=\"Enroll\",'Enrollment Form'!AA561=\"\"),\"N\",\"Y\"))","v":"-"},{"$f":"IF(OR('Enrollment Form'!B561=\"Subscriber\",'Enrollment Form'!B561=\"\"),\"-\",IF('Enrollment Form'!BI561=\"\",\"N\",\"Y\"))","v":"-"},{"$f":"IF('Enrollment Form'!B561<>\"Subscriber\",\"-\",IF(AND('Enrollment Form'!B561=\"Subscriber\",'Enrollment Form'!G561=\"\"),\"N\",\"Y\"))","v":"-"},{"$f":"IF('Enrollment Form'!A561=\"\",\"\",IF('Enrollment Form'!B561=\"Subscriber\",\"-\",IF(AND('Enrollment Form'!B561<>\"Subscriber\",'Enrollment Form'!G561='Enrollment Form'!H561),\"N\",\"Y\")))","v":""},0]
[562,{"$f":"IF('Enrollment Form'!$A562<>\"\",\"Y\",\"N\")","v":"N"},{"$f":"IF(AND('Enrollment Form'!$B562=\"\",'Enrollment Form'!$C562<>\"\"),\"N\",IF($B555=\"N\",\"\",\"Y\"))","v":""},{"$f":"IF(OR($B555=\"N\",'Enrollment Form'!G562=\"\"),\"\",IF('Enrollment Form'!$B562<>\"Subscriber\",\"\",IF('Enrollment Form'!$G562='Enrollment Form'!$H562,\"Y\",\"N\")))","v":""},{"$f":"IF($B555=\"N\",\"\",IF(AND(COUNTIFS('Enrollment Form'!$H$11:$H$1000,'Enrollment Form'!$H562,'Enrollment Form'!$B$11:$B$1000,'Enrollment Form'!$B562)>1,'Enrollment Form'!$H562<>\"\"),\"N\",\"Y\"))","v":""},{"$f":"IF($B555=\"N\",\"\",IF(LEN('Enrollment Form'!$Y562)=0,\"\",IF(LEN('Enrollment Form'!$Y562)<>5,\"N\",\"Y\")))","v":""},{"$f":"IF($B555=\"N\",\"\",IF(LEN('Enrollment Form'!$AD562=0),\"\",IF(LEN('Enrollment Form'!$AD562)<>5,\"N\",\"Y\")))","v":""},{"$f":"IF($B555=\"N\",\"\",IF(LEN('Enrollment Form'!$BL562=0),\"\",IF(LEN('Enrollment Form'!$BL562)<>5,\"N\",\"Y\")))","v":""},{"$f":"IF($B555=\"N\",\"\",IF(LEN('Enrollment Form'!$AE562)=0,\"\",IF(LEN('Enrollment Form'!$AE562)<>10,\"N\",\"Y\")))","v":""},{"$f":"IF($B555=\"N\",\"\",IF(LEN('Enrollment Form'!$AF562)=0,\"\",IF(LEN('Enrollment Form'!$AF562)<>10,\"N\",\"Y\")))","v":""},{"$f":"IF('Enrollment Form'!$O562<>\"Graded\",\"-\",IF(AND('Enrollment Form'!$O562=\"Graded\",'Enrollment Form'!$AO562<>\"\"),\"Y\",\"N\"))","v":"-"},{"$f":"IF($B555=\"N\",\"\",IF(OR('Enrollment Form'!$B562<>\"Subscriber\",'Enrollment Form'!$C562=\"ROC\"),\"-\",IF(AND('Enrollment Form'!$B562=\"Subscriber\",'Enrollment Form'!$C562=\"Enroll\",'Enrollment Form'!$AJ562<>\"\"),\"Y\",\"N\")))","v":""},{"$f":"IF($B555=\"N\",\"\",IF(OR('Enrollment Form'!$B562<>\"Subscriber\",'Enrollment Form'!$C562=\"ROC\"),\"-\",IF(AND('Enrollment Form'!$B562=\"Subscriber\",'Enrollment Form'!$C562=\"Enroll\",'Enrollment Form'!$AK562<>\"\"),\"Y\",\"N\")))","v":""},{"$f":"IF($B555=\"N\",\"\",IF(OR('Enrollment Form'!$B562<>\"Subscriber\",'Enrollment Form'!$C562=\"ROC\"),\"-\",IF(AND('Enrollment Form'!$B562=\"Subscriber\",'Enrollment Form'!$C562=\"Enroll\",'Enrollment Form'!$AL562<>\"\"),\"Y\",\"N\")))","v":""},{"$f":"IF($B555=\"N\",\"\",IF(OR('Enrollment Form'!$B562<>\"Subscriber\",'Enrollment Form'!$C562=\"ROC\"),\"-\",IF(AND('Enrollment Form'!$B562=\"Subscriber\",'Enrollment Form'!$C562=\"Enroll\",'Enrollment Form'!$AM562<>\"\"),\"Y\",\"N\")))","v":""},{"$f":"IF($B555=\"N\",\"\",IF(OR('Enrollment Form'!$B562<>\"Subscriber\",'Enrollment Form'!$C562=\"ROC\"),\"-\",IF(AND('Enrollment Form'!$B562=\"Subscriber\",'Enrollment Form'!$C562=\"Enroll\",'Enrollment Form'!$AN562<>\"\"),\"Y\",\"N\")))","v":""},{"$f":"IF($B555=\"N\",\"\",IF(OR('Enrollment Form'!$B562<>\"Subscriber\",'Enrollment Form'!$C562=\"ROC\"),\"-\",IF(AND('Enrollment Form'!$B562=\"Subscriber\",'Enrollment Form'!$C562=\"Enroll\",'Enrollment Form'!$AP562<>\"\"),\"Y\",\"N\")))","v":""},{"$f":"IF($B555=\"N\",\"\",IF($Q555=\"-\",\"-\",IF(AND($Q555=\"Y\",'Enrollment Form'!$AP562=\"No\"),\"-\",IF(AND($Q555=\"Y\",'Enrollment Form'!$AP562=\"Yes\",'Enrollment Form'!$AQ562<>\"\"),\"Y\",\"N\"))))","v":""},{"$f":"IF($B555=\"N\",\"\",IF(OR('Enrollment Form'!$B562<>\"Subscriber\",'Enrollment Form'!$C562=\"ROC\"),\"-\",IF(AND('Enrollment Form'!$B562=\"Subscriber\",'Enrollment Form'!$C562=\"Enroll\",'Enrollment Form'!$CO562<>\"\"),\"Y\",\"N\")))","v":""},{"$f":"IF($B555=\"N\",\"\",IF($S555=\"-\",\"-\",IF(AND($S555=\"Y\",'Enrollment Form'!$CO562=\"No\"),\"-\",IF(AND($S555=\"Y\",'Enrollment Form'!$CO562=\"Yes\",'Enrollment Form'!$CP562<>\"\"),\"Y\",\"N\"))))","v":""},{"$f":"IF(OR('Enrollment Form'!$AV562=\"Yes\",'Enrollment Form'!$AV562=\"\"),\"-\",IF(AND('Enrollment Form'!$AV562=\"No\",ISERROR(FIND(\"HMO\",VLOOKUP('Enrollment Form'!G562,'Enrollment Form'!H$11:J$1000,3,FALSE),1))=FALSE,COUNTA('Enrollment Form'!$AW562:$AZ562)=4),\"Y\",\"N\"))","v":"-"},{"$f":"IF($B555=\"N\",\"\",IF('Enrollment Form'!$B562=\"Subscriber\",\"-\",IF(COUNTA('Enrollment Form'!$BE562,'Enrollment Form'!$BG562)=2,\"Y\",\"N\")))","v":""},{"$f":"IF($B555=\"N\",\"\",IF(OR('Enrollment Form'!$AU562=\"\",'Enrollment Form'!$AU562=\"No\"),\"-\",IF(AND('Enrollment Form'!$AU562=\"Yes\",COUNTA('Enrollment Form'!$CK562)=1),\"Y\",\"N\")))","v":""},{"$f":"IF(OR('Enrollment Form'!$CK562=\"\",'Enrollment Form'!$CK562=\"No\"),\"-\",IF(COUNTA('Enrollment Form'!$CM562:$CN562)=2,\"Y\",\"N\"))","v":"-"},{"$f":"IF($B555=\"N\",\"\",IF(COUNTIF('Enrollment Form'!$CZ562:$DO562,\"Other\")=COUNTA('Enrollment Form'!$DF562,'Enrollment Form'!$DA562,'Enrollment Form'!$DK562,'Enrollment Form'!$DP562),\"Y\",\"N\"))","v":""},{"$f":"IF($B555=\"N\",\"\",IF(OR('Enrollment Form'!B562<>\"Subscriber\",'Enrollment Form'!C562=\"ROC\",COUNTIF('Enrollment Form'!AS562:AT562,\"Yes\")>=1),\"-\",IF(AND('Enrollment Form'!C562=\"Enroll\",COUNTIF('Enrollment Form'!AS562:AT562,\"No\")=2,'Enrollment Form'!AU562=\"\"),\"N\",\"Y\")))","v":""},{"$f":"IF(OR(B555=\"N\",'Enrollment Form'!B562<>\"Subscriber\",'Enrollment Form'!C562=\"ROC\",'Enrollment Form'!O562<>\"Multiple of Salary\"),\"-\",IF(COUNTA('Enrollment Form'!T562:U562)<2,\"N\",\"Y\"))","v":"-"},{"$f":"IF(B555=\"N\",\"\",IF(OR('Enrollment Form'!C562=\"ROC\",'Enrollment Form'!B562<>\"Subscriber\",'Enrollment Form'!O562=\"Waive\",'Enrollment Form'!O562=\"\"),\"-\",IF('Enrollment Form'!P562=\"\",\"N\",\"Y\")))","v":""},{"$f":"IF($B555=\"N\",\"\",IF(AND('Enrollment Form'!$C562=\"ROC\",'Enrollment Form'!$DS562<>\"\"),\"Y\",IF(AND('Enrollment Form'!$C562=\"ROC\",'Enrollment Form'!$DS562=\"\"),\"N\",IF(AND('Enrollment Form'!$C562=\"Enroll\",'Enrollment Form'!$B562=\"Subscriber\",'Enrollment Form'!$CQ562=\"No\",'Enrollment Form'!$DS562=\"\"),\"N\",IF(AND('Enrollment Form'!$C562=\"Enroll\",'Enrollment Form'!$B562=\"Subscriber\",'Enrollment Form'!$CQ562=\"Yes\"),\"-\",\"Y\")))))","v":""},{"$f":"IF($B555=\"N\",\"\",IF(AND('Enrollment Form'!$C562=\"ROC\",'Enrollment Form'!$DT562<>\"\"),\"Y\",IF(AND('Enrollment Form'!$C562=\"ROC\",'Enrollment Form'!$DT562=\"\"),\"N\",IF(AND('Enrollment Form'!$C562=\"Enroll\",'Enrollment Form'!$B562=\"Subscriber\",'Enrollment Form'!$CQ562=\"No\",'Enrollment Form'!$DT562=\"\"),\"N\",IF(AND('Enrollment Form'!$C562=\"Enroll\",'Enrollment Form'!$B562=\"Subscriber\",'Enrollment Form'!$CQ562=\"Yes\"),\"-\",\"Y\")))))","v":""},{"$f":"IF('Enrollment Form'!AH562=\"\",\"\",IF(ISERROR(SEARCH(\".\",'Enrollment Form'!AH562,SEARCH(\"@\",'Enrollment Form'!AH562))),\"N\",\"Y\"))","v":""},{"$f":"IF(OR($B555=\"N\",'Enrollment Form'!$G562=\"\"),\"\",IF('Enrollment Form'!$B562<>\"Subscriber\",\"-\",IF(COUNTIF('Enrollment Form'!$AS562:$AT562,\"Yes\")=2,\"N\",\"Y\")))","v":""},{"$f":"IF(OR('Enrollment Form'!$CC562=\"\",'Enrollment Form'!$CC562=\"No\"),\"-\",IF(AND('Enrollment Form'!$CC562=\"Yes\",'Enrollment Form'!$CD562=\"\"),\"N\",\"Y\"))","v":"-"},{"$f":"IF(OR('Enrollment Form'!$CE562=\"\",'Enrollment Form'!$CE562=\"No\"),\"-\",IF(AND('Enrollment Form'!$CE562=\"Yes\",'Enrollment Form'!$CF562=\"\"),\"N\",\"Y\"))","v":"-"},{"$f":"IF(OR('Enrollment Form'!$CG562=\"\",'Enrollment Form'!$CG562=\"No\"),\"-\",IF(AND('Enrollment Form'!$CG562=\"Yes\",'Enrollment Form'!$CH562=\"\"),\"N\",\"Y\"))","v":"-"},{"$f":"IF(OR('Enrollment Form'!$CG562=\"\",'Enrollment Form'!$CG562=\"No\"),\"-\",IF(AND('Enrollment Form'!$CG562=\"Yes\",'Enrollment Form'!$CI562=\"\"),\"N\",\"Y\"))","v":"-"},{"$f":"IF('Enrollment Form'!B562<>\"Subscriber\",\"-\",IF(AND('Enrollment Form'!B562=\"Subscriber\",'Enrollment Form'!C562=\"Enroll\",'Enrollment Form'!AA562=\"\"),\"N\",\"Y\"))","v":"-"},{"$f":"IF(OR('Enrollment Form'!B562=\"Subscriber\",'Enrollment Form'!B562=\"\"),\"-\",IF('Enrollment Form'!BI562=\"\",\"N\",\"Y\"))","v":"-"},{"$f":"IF('Enrollment Form'!B562<>\"Subscriber\",\"-\",IF(AND('Enrollment Form'!B562=\"Subscriber\",'Enrollment Form'!G562=\"\"),\"N\",\"Y\"))","v":"-"},{"$f":"IF('Enrollment Form'!A562=\"\",\"\",IF('Enrollment Form'!B562=\"Subscriber\",\"-\",IF(AND('Enrollment Form'!B562<>\"Subscriber\",'Enrollment Form'!G562='Enrollment Form'!H562),\"N\",\"Y\")))","v":""},0]
[563,{"$f":"IF('Enrollment Form'!$A563<>\"\",\"Y\",\"N\")","v":"N"},{"$f":"IF(AND('Enrollment Form'!$B563=\"\",'Enrollment Form'!$C563<>\"\"),\"N\",IF($B556=\"N\",\"\",\"Y\"))","v":""},{"$f":"IF(OR($B556=\"N\",'Enrollment Form'!G563=\"\"),\"\",IF('Enrollment Form'!$B563<>\"Subscriber\",\"\",IF('Enrollment Form'!$G563='Enrollment Form'!$H563,\"Y\",\"N\")))","v":""},{"$f":"IF($B556=\"N\",\"\",IF(AND(COUNTIFS('Enrollment Form'!$H$11:$H$1000,'Enrollment Form'!$H563,'Enrollment Form'!$B$11:$B$1000,'Enrollment Form'!$B563)>1,'Enrollment Form'!$H563<>\"\"),\"N\",\"Y\"))","v":""},{"$f":"IF($B556=\"N\",\"\",IF(LEN('Enrollment Form'!$Y563)=0,\"\",IF(LEN('Enrollment Form'!$Y563)<>5,\"N\",\"Y\")))","v":""},{"$f":"IF($B556=\"N\",\"\",IF(LEN('Enrollment Form'!$AD563=0),\"\",IF(LEN('Enrollment Form'!$AD563)<>5,\"N\",\"Y\")))","v":""},{"$f":"IF($B556=\"N\",\"\",IF(LEN('Enrollment Form'!$BL563=0),\"\",IF(LEN('Enrollment Form'!$BL563)<>5,\"N\",\"Y\")))","v":""},{"$f":"IF($B556=\"N\",\"\",IF(LEN('Enrollment Form'!$AE563)=0,\"\",IF(LEN('Enrollment Form'!$AE563)<>10,\"N\",\"Y\")))","v":""},{"$f":"IF($B556=\"N\",\"\",IF(LEN('Enrollment Form'!$AF563)=0,\"\",IF(LEN('Enrollment Form'!$AF563)<>10,\"N\",\"Y\")))","v":""},{"$f":"IF('Enrollment Form'!$O563<>\"Graded\",\"-\",IF(AND('Enrollment Form'!$O563=\"Graded\",'Enrollment Form'!$AO563<>\"\"),\"Y\",\"N\"))","v":"-"},{"$f":"IF($B556=\"N\",\"\",IF(OR('Enrollment Form'!$B563<>\"Subscriber\",'Enrollment Form'!$C563=\"ROC\"),\"-\",IF(AND('Enrollment Form'!$B563=\"Subscriber\",'Enrollment Form'!$C563=\"Enroll\",'Enrollment Form'!$AJ563<>\"\"),\"Y\",\"N\")))","v":""},{"$f":"IF($B556=\"N\",\"\",IF(OR('Enrollment Form'!$B563<>\"Subscriber\",'Enrollment Form'!$C563=\"ROC\"),\"-\",IF(AND('Enrollment Form'!$B563=\"Subscriber\",'Enrollment Form'!$C563=\"Enroll\",'Enrollment Form'!$AK563<>\"\"),\"Y\",\"N\")))","v":""},{"$f":"IF($B556=\"N\",\"\",IF(OR('Enrollment Form'!$B563<>\"Subscriber\",'Enrollment Form'!$C563=\"ROC\"),\"-\",IF(AND('Enrollment Form'!$B563=\"Subscriber\",'Enrollment Form'!$C563=\"Enroll\",'Enrollment Form'!$AL563<>\"\"),\"Y\",\"N\")))","v":""},{"$f":"IF($B556=\"N\",\"\",IF(OR('Enrollment Form'!$B563<>\"Subscriber\",'Enrollment Form'!$C563=\"ROC\"),\"-\",IF(AND('Enrollment Form'!$B563=\"Subscriber\",'Enrollment Form'!$C563=\"Enroll\",'Enrollment Form'!$AM563<>\"\"),\"Y\",\"N\")))","v":""},{"$f":"IF($B556=\"N\",\"\",IF(OR('Enrollment Form'!$B563<>\"Subscriber\",'Enrollment Form'!$C563=\"ROC\"),\"-\",IF(AND('Enrollment Form'!$B563=\"Subscriber\",'Enrollment Form'!$C563=\"Enroll\",'Enrollment Form'!$AN563<>\"\"),\"Y\",\"N\")))","v":""},{"$f":"IF($B556=\"N\",\"\",IF(OR('Enrollment Form'!$B563<>\"Subscriber\",'Enrollment Form'!$C563=\"ROC\"),\"-\",IF(AND('Enrollment Form'!$B563=\"Subscriber\",'Enrollment Form'!$C563=\"Enroll\",'Enrollment Form'!$AP563<>\"\"),\"Y\",\"N\")))","v":""},{"$f":"IF($B556=\"N\",\"\",IF($Q556=\"-\",\"-\",IF(AND($Q556=\"Y\",'Enrollment Form'!$AP563=\"No\"),\"-\",IF(AND($Q556=\"Y\",'Enrollment Form'!$AP563=\"Yes\",'Enrollment Form'!$AQ563<>\"\"),\"Y\",\"N\"))))","v":""},{"$f":"IF($B556=\"N\",\"\",IF(OR('Enrollment Form'!$B563<>\"Subscriber\",'Enrollment Form'!$C563=\"ROC\"),\"-\",IF(AND('Enrollment Form'!$B563=\"Subscriber\",'Enrollment Form'!$C563=\"Enroll\",'Enrollment Form'!$CO563<>\"\"),\"Y\",\"N\")))","v":""},{"$f":"IF($B556=\"N\",\"\",IF($S556=\"-\",\"-\",IF(AND($S556=\"Y\",'Enrollment Form'!$CO563=\"No\"),\"-\",IF(AND($S556=\"Y\",'Enrollment Form'!$CO563=\"Yes\",'Enrollment Form'!$CP563<>\"\"),\"Y\",\"N\"))))","v":""},{"$f":"IF(OR('Enrollment Form'!$AV563=\"Yes\",'Enrollment Form'!$AV563=\"\"),\"-\",IF(AND('Enrollment Form'!$AV563=\"No\",ISERROR(FIND(\"HMO\",VLOOKUP('Enrollment Form'!G563,'Enrollment Form'!H$11:J$1000,3,FALSE),1))=FALSE,COUNTA('Enrollment Form'!$AW563:$AZ563)=4),\"Y\",\"N\"))","v":"-"},{"$f":"IF($B556=\"N\",\"\",IF('Enrollment Form'!$B563=\"Subscriber\",\"-\",IF(COUNTA('Enrollment Form'!$BE563,'Enrollment Form'!$BG563)=2,\"Y\",\"N\")))","v":""},{"$f":"IF($B556=\"N\",\"\",IF(OR('Enrollment Form'!$AU563=\"\",'Enrollment Form'!$AU563=\"No\"),\"-\",IF(AND('Enrollment Form'!$AU563=\"Yes\",COUNTA('Enrollment Form'!$CK563)=1),\"Y\",\"N\")))","v":""},{"$f":"IF(OR('Enrollment Form'!$CK563=\"\",'Enrollment Form'!$CK563=\"No\"),\"-\",IF(COUNTA('Enrollment Form'!$CM563:$CN563)=2,\"Y\",\"N\"))","v":"-"},{"$f":"IF($B556=\"N\",\"\",IF(COUNTIF('Enrollment Form'!$CZ563:$DO563,\"Other\")=COUNTA('Enrollment Form'!$DF563,'Enrollment Form'!$DA563,'Enrollment Form'!$DK563,'Enrollment Form'!$DP563),\"Y\",\"N\"))","v":""},{"$f":"IF($B556=\"N\",\"\",IF(OR('Enrollment Form'!B563<>\"Subscriber\",'Enrollment Form'!C563=\"ROC\",COUNTIF('Enrollment Form'!AS563:AT563,\"Yes\")>=1),\"-\",IF(AND('Enrollment Form'!C563=\"Enroll\",COUNTIF('Enrollment Form'!AS563:AT563,\"No\")=2,'Enrollment Form'!AU563=\"\"),\"N\",\"Y\")))","v":""},{"$f":"IF(OR(B556=\"N\",'Enrollment Form'!B563<>\"Subscriber\",'Enrollment Form'!C563=\"ROC\",'Enrollment Form'!O563<>\"Multiple of Salary\"),\"-\",IF(COUNTA('Enrollment Form'!T563:U563)<2,\"N\",\"Y\"))","v":"-"},{"$f":"IF(B556=\"N\",\"\",IF(OR('Enrollment Form'!C563=\"ROC\",'Enrollment Form'!B563<>\"Subscriber\",'Enrollment Form'!O563=\"Waive\",'Enrollment Form'!O563=\"\"),\"-\",IF('Enrollment Form'!P563=\"\",\"N\",\"Y\")))","v":""},{"$f":"IF($B556=\"N\",\"\",IF(AND('Enrollment Form'!$C563=\"ROC\",'Enrollment Form'!$DS563<>\"\"),\"Y\",IF(AND('Enrollment Form'!$C563=\"ROC\",'Enrollment Form'!$DS563=\"\"),\"N\",IF(AND('Enrollment Form'!$C563=\"Enroll\",'Enrollment Form'!$B563=\"Subscriber\",'Enrollment Form'!$CQ563=\"No\",'Enrollment Form'!$DS563=\"\"),\"N\",IF(AND('Enrollment Form'!$C563=\"Enroll\",'Enrollment Form'!$B563=\"Subscriber\",'Enrollment Form'!$CQ563=\"Yes\"),\"-\",\"Y\")))))","v":""},{"$f":"IF($B556=\"N\",\"\",IF(AND('Enrollment Form'!$C563=\"ROC\",'Enrollment Form'!$DT563<>\"\"),\"Y\",IF(AND('Enrollment Form'!$C563=\"ROC\",'Enrollment Form'!$DT563=\"\"),\"N\",IF(AND('Enrollment Form'!$C563=\"Enroll\",'Enrollment Form'!$B563=\"Subscriber\",'Enrollment Form'!$CQ563=\"No\",'Enrollment Form'!$DT563=\"\"),\"N\",IF(AND('Enrollment Form'!$C563=\"Enroll\",'Enrollment Form'!$B563=\"Subscriber\",'Enrollment Form'!$CQ563=\"Yes\"),\"-\",\"Y\")))))","v":""},{"$f":"IF('Enrollment Form'!AH563=\"\",\"\",IF(ISERROR(SEARCH(\".\",'Enrollment Form'!AH563,SEARCH(\"@\",'Enrollment Form'!AH563))),\"N\",\"Y\"))","v":""},{"$f":"IF(OR($B556=\"N\",'Enrollment Form'!$G563=\"\"),\"\",IF('Enrollment Form'!$B563<>\"Subscriber\",\"-\",IF(COUNTIF('Enrollment Form'!$AS563:$AT563,\"Yes\")=2,\"N\",\"Y\")))","v":""},{"$f":"IF(OR('Enrollment Form'!$CC563=\"\",'Enrollment Form'!$CC563=\"No\"),\"-\",IF(AND('Enrollment Form'!$CC563=\"Yes\",'Enrollment Form'!$CD563=\"\"),\"N\",\"Y\"))","v":"-"},{"$f":"IF(OR('Enrollment Form'!$CE563=\"\",'Enrollment Form'!$CE563=\"No\"),\"-\",IF(AND('Enrollment Form'!$CE563=\"Yes\",'Enrollment Form'!$CF563=\"\"),\"N\",\"Y\"))","v":"-"},{"$f":"IF(OR('Enrollment Form'!$CG563=\"\",'Enrollment Form'!$CG563=\"No\"),\"-\",IF(AND('Enrollment Form'!$CG563=\"Yes\",'Enrollment Form'!$CH563=\"\"),\"N\",\"Y\"))","v":"-"},{"$f":"IF(OR('Enrollment Form'!$CG563=\"\",'Enrollment Form'!$CG563=\"No\"),\"-\",IF(AND('Enrollment Form'!$CG563=\"Yes\",'Enrollment Form'!$CI563=\"\"),\"N\",\"Y\"))","v":"-"},{"$f":"IF('Enrollment Form'!B563<>\"Subscriber\",\"-\",IF(AND('Enrollment Form'!B563=\"Subscriber\",'Enrollment Form'!C563=\"Enroll\",'Enrollment Form'!AA563=\"\"),\"N\",\"Y\"))","v":"-"},{"$f":"IF(OR('Enrollment Form'!B563=\"Subscriber\",'Enrollment Form'!B563=\"\"),\"-\",IF('Enrollment Form'!BI563=\"\",\"N\",\"Y\"))","v":"-"},{"$f":"IF('Enrollment Form'!B563<>\"Subscriber\",\"-\",IF(AND('Enrollment Form'!B563=\"Subscriber\",'Enrollment Form'!G563=\"\"),\"N\",\"Y\"))","v":"-"},{"$f":"IF('Enrollment Form'!A563=\"\",\"\",IF('Enrollment Form'!B563=\"Subscriber\",\"-\",IF(AND('Enrollment Form'!B563<>\"Subscriber\",'Enrollment Form'!G563='Enrollment Form'!H563),\"N\",\"Y\")))","v":""},0]
[564,{"$f":"IF('Enrollment Form'!$A564<>\"\",\"Y\",\"N\")","v":"N"},{"$f":"IF(AND('Enrollment Form'!$B564=\"\",'Enrollment Form'!$C564<>\"\"),\"N\",IF($B557=\"N\",\"\",\"Y\"))","v":""},{"$f":"IF(OR($B557=\"N\",'Enrollment Form'!G564=\"\"),\"\",IF('Enrollment Form'!$B564<>\"Subscriber\",\"\",IF('Enrollment Form'!$G564='Enrollment Form'!$H564,\"Y\",\"N\")))","v":""},{"$f":"IF($B557=\"N\",\"\",IF(AND(COUNTIFS('Enrollment Form'!$H$11:$H$1000,'Enrollment Form'!$H564,'Enrollment Form'!$B$11:$B$1000,'Enrollment Form'!$B564)>1,'Enrollment Form'!$H564<>\"\"),\"N\",\"Y\"))","v":""},{"$f":"IF($B557=\"N\",\"\",IF(LEN('Enrollment Form'!$Y564)=0,\"\",IF(LEN('Enrollment Form'!$Y564)<>5,\"N\",\"Y\")))","v":""},{"$f":"IF($B557=\"N\",\"\",IF(LEN('Enrollment Form'!$AD564=0),\"\",IF(LEN('Enrollment Form'!$AD564)<>5,\"N\",\"Y\")))","v":""},{"$f":"IF($B557=\"N\",\"\",IF(LEN('Enrollment Form'!$BL564=0),\"\",IF(LEN('Enrollment Form'!$BL564)<>5,\"N\",\"Y\")))","v":""},{"$f":"IF($B557=\"N\",\"\",IF(LEN('Enrollment Form'!$AE564)=0,\"\",IF(LEN('Enrollment Form'!$AE564)<>10,\"N\",\"Y\")))","v":""},{"$f":"IF($B557=\"N\",\"\",IF(LEN('Enrollment Form'!$AF564)=0,\"\",IF(LEN('Enrollment Form'!$AF564)<>10,\"N\",\"Y\")))","v":""},{"$f":"IF('Enrollment Form'!$O564<>\"Graded\",\"-\",IF(AND('Enrollment Form'!$O564=\"Graded\",'Enrollment Form'!$AO564<>\"\"),\"Y\",\"N\"))","v":"-"},{"$f":"IF($B557=\"N\",\"\",IF(OR('Enrollment Form'!$B564<>\"Subscriber\",'Enrollment Form'!$C564=\"ROC\"),\"-\",IF(AND('Enrollment Form'!$B564=\"Subscriber\",'Enrollment Form'!$C564=\"Enroll\",'Enrollment Form'!$AJ564<>\"\"),\"Y\",\"N\")))","v":""},{"$f":"IF($B557=\"N\",\"\",IF(OR('Enrollment Form'!$B564<>\"Subscriber\",'Enrollment Form'!$C564=\"ROC\"),\"-\",IF(AND('Enrollment Form'!$B564=\"Subscriber\",'Enrollment Form'!$C564=\"Enroll\",'Enrollment Form'!$AK564<>\"\"),\"Y\",\"N\")))","v":""},{"$f":"IF($B557=\"N\",\"\",IF(OR('Enrollment Form'!$B564<>\"Subscriber\",'Enrollment Form'!$C564=\"ROC\"),\"-\",IF(AND('Enrollment Form'!$B564=\"Subscriber\",'Enrollment Form'!$C564=\"Enroll\",'Enrollment Form'!$AL564<>\"\"),\"Y\",\"N\")))","v":""},{"$f":"IF($B557=\"N\",\"\",IF(OR('Enrollment Form'!$B564<>\"Subscriber\",'Enrollment Form'!$C564=\"ROC\"),\"-\",IF(AND('Enrollment Form'!$B564=\"Subscriber\",'Enrollment Form'!$C564=\"Enroll\",'Enrollment Form'!$AM564<>\"\"),\"Y\",\"N\")))","v":""},{"$f":"IF($B557=\"N\",\"\",IF(OR('Enrollment Form'!$B564<>\"Subscriber\",'Enrollment Form'!$C564=\"ROC\"),\"-\",IF(AND('Enrollment Form'!$B564=\"Subscriber\",'Enrollment Form'!$C564=\"Enroll\",'Enrollment Form'!$AN564<>\"\"),\"Y\",\"N\")))","v":""},{"$f":"IF($B557=\"N\",\"\",IF(OR('Enrollment Form'!$B564<>\"Subscriber\",'Enrollment Form'!$C564=\"ROC\"),\"-\",IF(AND('Enrollment Form'!$B564=\"Subscriber\",'Enrollment Form'!$C564=\"Enroll\",'Enrollment Form'!$AP564<>\"\"),\"Y\",\"N\")))","v":""},{"$f":"IF($B557=\"N\",\"\",IF($Q557=\"-\",\"-\",IF(AND($Q557=\"Y\",'Enrollment Form'!$AP564=\"No\"),\"-\",IF(AND($Q557=\"Y\",'Enrollment Form'!$AP564=\"Yes\",'Enrollment Form'!$AQ564<>\"\"),\"Y\",\"N\"))))","v":""},{"$f":"IF($B557=\"N\",\"\",IF(OR('Enrollment Form'!$B564<>\"Subscriber\",'Enrollment Form'!$C564=\"ROC\"),\"-\",IF(AND('Enrollment Form'!$B564=\"Subscriber\",'Enrollment Form'!$C564=\"Enroll\",'Enrollment Form'!$CO564<>\"\"),\"Y\",\"N\")))","v":""},{"$f":"IF($B557=\"N\",\"\",IF($S557=\"-\",\"-\",IF(AND($S557=\"Y\",'Enrollment Form'!$CO564=\"No\"),\"-\",IF(AND($S557=\"Y\",'Enrollment Form'!$CO564=\"Yes\",'Enrollment Form'!$CP564<>\"\"),\"Y\",\"N\"))))","v":""},{"$f":"IF(OR('Enrollment Form'!$AV564=\"Yes\",'Enrollment Form'!$AV564=\"\"),\"-\",IF(AND('Enrollment Form'!$AV564=\"No\",ISERROR(FIND(\"HMO\",VLOOKUP('Enrollment Form'!G564,'Enrollment Form'!H$11:J$1000,3,FALSE),1))=FALSE,COUNTA('Enrollment Form'!$AW564:$AZ564)=4),\"Y\",\"N\"))","v":"-"},{"$f":"IF($B557=\"N\",\"\",IF('Enrollment Form'!$B564=\"Subscriber\",\"-\",IF(COUNTA('Enrollment Form'!$BE564,'Enrollment Form'!$BG564)=2,\"Y\",\"N\")))","v":""},{"$f":"IF($B557=\"N\",\"\",IF(OR('Enrollment Form'!$AU564=\"\",'Enrollment Form'!$AU564=\"No\"),\"-\",IF(AND('Enrollment Form'!$AU564=\"Yes\",COUNTA('Enrollment Form'!$CK564)=1),\"Y\",\"N\")))","v":""},{"$f":"IF(OR('Enrollment Form'!$CK564=\"\",'Enrollment Form'!$CK564=\"No\"),\"-\",IF(COUNTA('Enrollment Form'!$CM564:$CN564)=2,\"Y\",\"N\"))","v":"-"},{"$f":"IF($B557=\"N\",\"\",IF(COUNTIF('Enrollment Form'!$CZ564:$DO564,\"Other\")=COUNTA('Enrollment Form'!$DF564,'Enrollment Form'!$DA564,'Enrollment Form'!$DK564,'Enrollment Form'!$DP564),\"Y\",\"N\"))","v":""},{"$f":"IF($B557=\"N\",\"\",IF(OR('Enrollment Form'!B564<>\"Subscriber\",'Enrollment Form'!C564=\"ROC\",COUNTIF('Enrollment Form'!AS564:AT564,\"Yes\")>=1),\"-\",IF(AND('Enrollment Form'!C564=\"Enroll\",COUNTIF('Enrollment Form'!AS564:AT564,\"No\")=2,'Enrollment Form'!AU564=\"\"),\"N\",\"Y\")))","v":""},{"$f":"IF(OR(B557=\"N\",'Enrollment Form'!B564<>\"Subscriber\",'Enrollment Form'!C564=\"ROC\",'Enrollment Form'!O564<>\"Multiple of Salary\"),\"-\",IF(COUNTA('Enrollment Form'!T564:U564)<2,\"N\",\"Y\"))","v":"-"},{"$f":"IF(B557=\"N\",\"\",IF(OR('Enrollment Form'!C564=\"ROC\",'Enrollment Form'!B564<>\"Subscriber\",'Enrollment Form'!O564=\"Waive\",'Enrollment Form'!O564=\"\"),\"-\",IF('Enrollment Form'!P564=\"\",\"N\",\"Y\")))","v":""},{"$f":"IF($B557=\"N\",\"\",IF(AND('Enrollment Form'!$C564=\"ROC\",'Enrollment Form'!$DS564<>\"\"),\"Y\",IF(AND('Enrollment Form'!$C564=\"ROC\",'Enrollment Form'!$DS564=\"\"),\"N\",IF(AND('Enrollment Form'!$C564=\"Enroll\",'Enrollment Form'!$B564=\"Subscriber\",'Enrollment Form'!$CQ564=\"No\",'Enrollment Form'!$DS564=\"\"),\"N\",IF(AND('Enrollment Form'!$C564=\"Enroll\",'Enrollment Form'!$B564=\"Subscriber\",'Enrollment Form'!$CQ564=\"Yes\"),\"-\",\"Y\")))))","v":""},{"$f":"IF($B557=\"N\",\"\",IF(AND('Enrollment Form'!$C564=\"ROC\",'Enrollment Form'!$DT564<>\"\"),\"Y\",IF(AND('Enrollment Form'!$C564=\"ROC\",'Enrollment Form'!$DT564=\"\"),\"N\",IF(AND('Enrollment Form'!$C564=\"Enroll\",'Enrollment Form'!$B564=\"Subscriber\",'Enrollment Form'!$CQ564=\"No\",'Enrollment Form'!$DT564=\"\"),\"N\",IF(AND('Enrollment Form'!$C564=\"Enroll\",'Enrollment Form'!$B564=\"Subscriber\",'Enrollment Form'!$CQ564=\"Yes\"),\"-\",\"Y\")))))","v":""},{"$f":"IF('Enrollment Form'!AH564=\"\",\"\",IF(ISERROR(SEARCH(\".\",'Enrollment Form'!AH564,SEARCH(\"@\",'Enrollment Form'!AH564))),\"N\",\"Y\"))","v":""},{"$f":"IF(OR($B557=\"N\",'Enrollment Form'!$G564=\"\"),\"\",IF('Enrollment Form'!$B564<>\"Subscriber\",\"-\",IF(COUNTIF('Enrollment Form'!$AS564:$AT564,\"Yes\")=2,\"N\",\"Y\")))","v":""},{"$f":"IF(OR('Enrollment Form'!$CC564=\"\",'Enrollment Form'!$CC564=\"No\"),\"-\",IF(AND('Enrollment Form'!$CC564=\"Yes\",'Enrollment Form'!$CD564=\"\"),\"N\",\"Y\"))","v":"-"},{"$f":"IF(OR('Enrollment Form'!$CE564=\"\",'Enrollment Form'!$CE564=\"No\"),\"-\",IF(AND('Enrollment Form'!$CE564=\"Yes\",'Enrollment Form'!$CF564=\"\"),\"N\",\"Y\"))","v":"-"},{"$f":"IF(OR('Enrollment Form'!$CG564=\"\",'Enrollment Form'!$CG564=\"No\"),\"-\",IF(AND('Enrollment Form'!$CG564=\"Yes\",'Enrollment Form'!$CH564=\"\"),\"N\",\"Y\"))","v":"-"},{"$f":"IF(OR('Enrollment Form'!$CG564=\"\",'Enrollment Form'!$CG564=\"No\"),\"-\",IF(AND('Enrollment Form'!$CG564=\"Yes\",'Enrollment Form'!$CI564=\"\"),\"N\",\"Y\"))","v":"-"},{"$f":"IF('Enrollment Form'!B564<>\"Subscriber\",\"-\",IF(AND('Enrollment Form'!B564=\"Subscriber\",'Enrollment Form'!C564=\"Enroll\",'Enrollment Form'!AA564=\"\"),\"N\",\"Y\"))","v":"-"},{"$f":"IF(OR('Enrollment Form'!B564=\"Subscriber\",'Enrollment Form'!B564=\"\"),\"-\",IF('Enrollment Form'!BI564=\"\",\"N\",\"Y\"))","v":"-"},{"$f":"IF('Enrollment Form'!B564<>\"Subscriber\",\"-\",IF(AND('Enrollment Form'!B564=\"Subscriber\",'Enrollment Form'!G564=\"\"),\"N\",\"Y\"))","v":"-"},{"$f":"IF('Enrollment Form'!A564=\"\",\"\",IF('Enrollment Form'!B564=\"Subscriber\",\"-\",IF(AND('Enrollment Form'!B564<>\"Subscriber\",'Enrollment Form'!G564='Enrollment Form'!H564),\"N\",\"Y\")))","v":""},0]
[565,{"$f":"IF('Enrollment Form'!$A565<>\"\",\"Y\",\"N\")","v":"N"},{"$f":"IF(AND('Enrollment Form'!$B565=\"\",'Enrollment Form'!$C565<>\"\"),\"N\",IF($B558=\"N\",\"\",\"Y\"))","v":""},{"$f":"IF(OR($B558=\"N\",'Enrollment Form'!G565=\"\"),\"\",IF('Enrollment Form'!$B565<>\"Subscriber\",\"\",IF('Enrollment Form'!$G565='Enrollment Form'!$H565,\"Y\",\"N\")))","v":""},{"$f":"IF($B558=\"N\",\"\",IF(AND(COUNTIFS('Enrollment Form'!$H$11:$H$1000,'Enrollment Form'!$H565,'Enrollment Form'!$B$11:$B$1000,'Enrollment Form'!$B565)>1,'Enrollment Form'!$H565<>\"\"),\"N\",\"Y\"))","v":""},{"$f":"IF($B558=\"N\",\"\",IF(LEN('Enrollment Form'!$Y565)=0,\"\",IF(LEN('Enrollment Form'!$Y565)<>5,\"N\",\"Y\")))","v":""},{"$f":"IF($B558=\"N\",\"\",IF(LEN('Enrollment Form'!$AD565=0),\"\",IF(LEN('Enrollment Form'!$AD565)<>5,\"N\",\"Y\")))","v":""},{"$f":"IF($B558=\"N\",\"\",IF(LEN('Enrollment Form'!$BL565=0),\"\",IF(LEN('Enrollment Form'!$BL565)<>5,\"N\",\"Y\")))","v":""},{"$f":"IF($B558=\"N\",\"\",IF(LEN('Enrollment Form'!$AE565)=0,\"\",IF(LEN('Enrollment Form'!$AE565)<>10,\"N\",\"Y\")))","v":""},{"$f":"IF($B558=\"N\",\"\",IF(LEN('Enrollment Form'!$AF565)=0,\"\",IF(LEN('Enrollment Form'!$AF565)<>10,\"N\",\"Y\")))","v":""},{"$f":"IF('Enrollment Form'!$O565<>\"Graded\",\"-\",IF(AND('Enrollment Form'!$O565=\"Graded\",'Enrollment Form'!$AO565<>\"\"),\"Y\",\"N\"))","v":"-"},{"$f":"IF($B558=\"N\",\"\",IF(OR('Enrollment Form'!$B565<>\"Subscriber\",'Enrollment Form'!$C565=\"ROC\"),\"-\",IF(AND('Enrollment Form'!$B565=\"Subscriber\",'Enrollment Form'!$C565=\"Enroll\",'Enrollment Form'!$AJ565<>\"\"),\"Y\",\"N\")))","v":""},{"$f":"IF($B558=\"N\",\"\",IF(OR('Enrollment Form'!$B565<>\"Subscriber\",'Enrollment Form'!$C565=\"ROC\"),\"-\",IF(AND('Enrollment Form'!$B565=\"Subscriber\",'Enrollment Form'!$C565=\"Enroll\",'Enrollment Form'!$AK565<>\"\"),\"Y\",\"N\")))","v":""},{"$f":"IF($B558=\"N\",\"\",IF(OR('Enrollment Form'!$B565<>\"Subscriber\",'Enrollment Form'!$C565=\"ROC\"),\"-\",IF(AND('Enrollment Form'!$B565=\"Subscriber\",'Enrollment Form'!$C565=\"Enroll\",'Enrollment Form'!$AL565<>\"\"),\"Y\",\"N\")))","v":""},{"$f":"IF($B558=\"N\",\"\",IF(OR('Enrollment Form'!$B565<>\"Subscriber\",'Enrollment Form'!$C565=\"ROC\"),\"-\",IF(AND('Enrollment Form'!$B565=\"Subscriber\",'Enrollment Form'!$C565=\"Enroll\",'Enrollment Form'!$AM565<>\"\"),\"Y\",\"N\")))","v":""},{"$f":"IF($B558=\"N\",\"\",IF(OR('Enrollment Form'!$B565<>\"Subscriber\",'Enrollment Form'!$C565=\"ROC\"),\"-\",IF(AND('Enrollment Form'!$B565=\"Subscriber\",'Enrollment Form'!$C565=\"Enroll\",'Enrollment Form'!$AN565<>\"\"),\"Y\",\"N\")))","v":""},{"$f":"IF($B558=\"N\",\"\",IF(OR('Enrollment Form'!$B565<>\"Subscriber\",'Enrollment Form'!$C565=\"ROC\"),\"-\",IF(AND('Enrollment Form'!$B565=\"Subscriber\",'Enrollment Form'!$C565=\"Enroll\",'Enrollment Form'!$AP565<>\"\"),\"Y\",\"N\")))","v":""},{"$f":"IF($B558=\"N\",\"\",IF($Q558=\"-\",\"-\",IF(AND($Q558=\"Y\",'Enrollment Form'!$AP565=\"No\"),\"-\",IF(AND($Q558=\"Y\",'Enrollment Form'!$AP565=\"Yes\",'Enrollment Form'!$AQ565<>\"\"),\"Y\",\"N\"))))","v":""},{"$f":"IF($B558=\"N\",\"\",IF(OR('Enrollment Form'!$B565<>\"Subscriber\",'Enrollment Form'!$C565=\"ROC\"),\"-\",IF(AND('Enrollment Form'!$B565=\"Subscriber\",'Enrollment Form'!$C565=\"Enroll\",'Enrollment Form'!$CO565<>\"\"),\"Y\",\"N\")))","v":""},{"$f":"IF($B558=\"N\",\"\",IF($S558=\"-\",\"-\",IF(AND($S558=\"Y\",'Enrollment Form'!$CO565=\"No\"),\"-\",IF(AND($S558=\"Y\",'Enrollment Form'!$CO565=\"Yes\",'Enrollment Form'!$CP565<>\"\"),\"Y\",\"N\"))))","v":""},{"$f":"IF(OR('Enrollment Form'!$AV565=\"Yes\",'Enrollment Form'!$AV565=\"\"),\"-\",IF(AND('Enrollment Form'!$AV565=\"No\",ISERROR(FIND(\"HMO\",VLOOKUP('Enrollment Form'!G565,'Enrollment Form'!H$11:J$1000,3,FALSE),1))=FALSE,COUNTA('Enrollment Form'!$AW565:$AZ565)=4),\"Y\",\"N\"))","v":"-"},{"$f":"IF($B558=\"N\",\"\",IF('Enrollment Form'!$B565=\"Subscriber\",\"-\",IF(COUNTA('Enrollment Form'!$BE565,'Enrollment Form'!$BG565)=2,\"Y\",\"N\")))","v":""},{"$f":"IF($B558=\"N\",\"\",IF(OR('Enrollment Form'!$AU565=\"\",'Enrollment Form'!$AU565=\"No\"),\"-\",IF(AND('Enrollment Form'!$AU565=\"Yes\",COUNTA('Enrollment Form'!$CK565)=1),\"Y\",\"N\")))","v":""},{"$f":"IF(OR('Enrollment Form'!$CK565=\"\",'Enrollment Form'!$CK565=\"No\"),\"-\",IF(COUNTA('Enrollment Form'!$CM565:$CN565)=2,\"Y\",\"N\"))","v":"-"},{"$f":"IF($B558=\"N\",\"\",IF(COUNTIF('Enrollment Form'!$CZ565:$DO565,\"Other\")=COUNTA('Enrollment Form'!$DF565,'Enrollment Form'!$DA565,'Enrollment Form'!$DK565,'Enrollment Form'!$DP565),\"Y\",\"N\"))","v":""},{"$f":"IF($B558=\"N\",\"\",IF(OR('Enrollment Form'!B565<>\"Subscriber\",'Enrollment Form'!C565=\"ROC\",COUNTIF('Enrollment Form'!AS565:AT565,\"Yes\")>=1),\"-\",IF(AND('Enrollment Form'!C565=\"Enroll\",COUNTIF('Enrollment Form'!AS565:AT565,\"No\")=2,'Enrollment Form'!AU565=\"\"),\"N\",\"Y\")))","v":""},{"$f":"IF(OR(B558=\"N\",'Enrollment Form'!B565<>\"Subscriber\",'Enrollment Form'!C565=\"ROC\",'Enrollment Form'!O565<>\"Multiple of Salary\"),\"-\",IF(COUNTA('Enrollment Form'!T565:U565)<2,\"N\",\"Y\"))","v":"-"},{"$f":"IF(B558=\"N\",\"\",IF(OR('Enrollment Form'!C565=\"ROC\",'Enrollment Form'!B565<>\"Subscriber\",'Enrollment Form'!O565=\"Waive\",'Enrollment Form'!O565=\"\"),\"-\",IF('Enrollment Form'!P565=\"\",\"N\",\"Y\")))","v":""},{"$f":"IF($B558=\"N\",\"\",IF(AND('Enrollment Form'!$C565=\"ROC\",'Enrollment Form'!$DS565<>\"\"),\"Y\",IF(AND('Enrollment Form'!$C565=\"ROC\",'Enrollment Form'!$DS565=\"\"),\"N\",IF(AND('Enrollment Form'!$C565=\"Enroll\",'Enrollment Form'!$B565=\"Subscriber\",'Enrollment Form'!$CQ565=\"No\",'Enrollment Form'!$DS565=\"\"),\"N\",IF(AND('Enrollment Form'!$C565=\"Enroll\",'Enrollment Form'!$B565=\"Subscriber\",'Enrollment Form'!$CQ565=\"Yes\"),\"-\",\"Y\")))))","v":""},{"$f":"IF($B558=\"N\",\"\",IF(AND('Enrollment Form'!$C565=\"ROC\",'Enrollment Form'!$DT565<>\"\"),\"Y\",IF(AND('Enrollment Form'!$C565=\"ROC\",'Enrollment Form'!$DT565=\"\"),\"N\",IF(AND('Enrollment Form'!$C565=\"Enroll\",'Enrollment Form'!$B565=\"Subscriber\",'Enrollment Form'!$CQ565=\"No\",'Enrollment Form'!$DT565=\"\"),\"N\",IF(AND('Enrollment Form'!$C565=\"Enroll\",'Enrollment Form'!$B565=\"Subscriber\",'Enrollment Form'!$CQ565=\"Yes\"),\"-\",\"Y\")))))","v":""},{"$f":"IF('Enrollment Form'!AH565=\"\",\"\",IF(ISERROR(SEARCH(\".\",'Enrollment Form'!AH565,SEARCH(\"@\",'Enrollment Form'!AH565))),\"N\",\"Y\"))","v":""},{"$f":"IF(OR($B558=\"N\",'Enrollment Form'!$G565=\"\"),\"\",IF('Enrollment Form'!$B565<>\"Subscriber\",\"-\",IF(COUNTIF('Enrollment Form'!$AS565:$AT565,\"Yes\")=2,\"N\",\"Y\")))","v":""},{"$f":"IF(OR('Enrollment Form'!$CC565=\"\",'Enrollment Form'!$CC565=\"No\"),\"-\",IF(AND('Enrollment Form'!$CC565=\"Yes\",'Enrollment Form'!$CD565=\"\"),\"N\",\"Y\"))","v":"-"},{"$f":"IF(OR('Enrollment Form'!$CE565=\"\",'Enrollment Form'!$CE565=\"No\"),\"-\",IF(AND('Enrollment Form'!$CE565=\"Yes\",'Enrollment Form'!$CF565=\"\"),\"N\",\"Y\"))","v":"-"},{"$f":"IF(OR('Enrollment Form'!$CG565=\"\",'Enrollment Form'!$CG565=\"No\"),\"-\",IF(AND('Enrollment Form'!$CG565=\"Yes\",'Enrollment Form'!$CH565=\"\"),\"N\",\"Y\"))","v":"-"},{"$f":"IF(OR('Enrollment Form'!$CG565=\"\",'Enrollment Form'!$CG565=\"No\"),\"-\",IF(AND('Enrollment Form'!$CG565=\"Yes\",'Enrollment Form'!$CI565=\"\"),\"N\",\"Y\"))","v":"-"},{"$f":"IF('Enrollment Form'!B565<>\"Subscriber\",\"-\",IF(AND('Enrollment Form'!B565=\"Subscriber\",'Enrollment Form'!C565=\"Enroll\",'Enrollment Form'!AA565=\"\"),\"N\",\"Y\"))","v":"-"},{"$f":"IF(OR('Enrollment Form'!B565=\"Subscriber\",'Enrollment Form'!B565=\"\"),\"-\",IF('Enrollment Form'!BI565=\"\",\"N\",\"Y\"))","v":"-"},{"$f":"IF('Enrollment Form'!B565<>\"Subscriber\",\"-\",IF(AND('Enrollment Form'!B565=\"Subscriber\",'Enrollment Form'!G565=\"\"),\"N\",\"Y\"))","v":"-"},{"$f":"IF('Enrollment Form'!A565=\"\",\"\",IF('Enrollment Form'!B565=\"Subscriber\",\"-\",IF(AND('Enrollment Form'!B565<>\"Subscriber\",'Enrollment Form'!G565='Enrollment Form'!H565),\"N\",\"Y\")))","v":""},0]
[566,{"$f":"IF('Enrollment Form'!$A566<>\"\",\"Y\",\"N\")","v":"N"},{"$f":"IF(AND('Enrollment Form'!$B566=\"\",'Enrollment Form'!$C566<>\"\"),\"N\",IF($B559=\"N\",\"\",\"Y\"))","v":""},{"$f":"IF(OR($B559=\"N\",'Enrollment Form'!G566=\"\"),\"\",IF('Enrollment Form'!$B566<>\"Subscriber\",\"\",IF('Enrollment Form'!$G566='Enrollment Form'!$H566,\"Y\",\"N\")))","v":""},{"$f":"IF($B559=\"N\",\"\",IF(AND(COUNTIFS('Enrollment Form'!$H$11:$H$1000,'Enrollment Form'!$H566,'Enrollment Form'!$B$11:$B$1000,'Enrollment Form'!$B566)>1,'Enrollment Form'!$H566<>\"\"),\"N\",\"Y\"))","v":""},{"$f":"IF($B559=\"N\",\"\",IF(LEN('Enrollment Form'!$Y566)=0,\"\",IF(LEN('Enrollment Form'!$Y566)<>5,\"N\",\"Y\")))","v":""},{"$f":"IF($B559=\"N\",\"\",IF(LEN('Enrollment Form'!$AD566=0),\"\",IF(LEN('Enrollment Form'!$AD566)<>5,\"N\",\"Y\")))","v":""},{"$f":"IF($B559=\"N\",\"\",IF(LEN('Enrollment Form'!$BL566=0),\"\",IF(LEN('Enrollment Form'!$BL566)<>5,\"N\",\"Y\")))","v":""},{"$f":"IF($B559=\"N\",\"\",IF(LEN('Enrollment Form'!$AE566)=0,\"\",IF(LEN('Enrollment Form'!$AE566)<>10,\"N\",\"Y\")))","v":""},{"$f":"IF($B559=\"N\",\"\",IF(LEN('Enrollment Form'!$AF566)=0,\"\",IF(LEN('Enrollment Form'!$AF566)<>10,\"N\",\"Y\")))","v":""},{"$f":"IF('Enrollment Form'!$O566<>\"Graded\",\"-\",IF(AND('Enrollment Form'!$O566=\"Graded\",'Enrollment Form'!$AO566<>\"\"),\"Y\",\"N\"))","v":"-"},{"$f":"IF($B559=\"N\",\"\",IF(OR('Enrollment Form'!$B566<>\"Subscriber\",'Enrollment Form'!$C566=\"ROC\"),\"-\",IF(AND('Enrollment Form'!$B566=\"Subscriber\",'Enrollment Form'!$C566=\"Enroll\",'Enrollment Form'!$AJ566<>\"\"),\"Y\",\"N\")))","v":""},{"$f":"IF($B559=\"N\",\"\",IF(OR('Enrollment Form'!$B566<>\"Subscriber\",'Enrollment Form'!$C566=\"ROC\"),\"-\",IF(AND('Enrollment Form'!$B566=\"Subscriber\",'Enrollment Form'!$C566=\"Enroll\",'Enrollment Form'!$AK566<>\"\"),\"Y\",\"N\")))","v":""},{"$f":"IF($B559=\"N\",\"\",IF(OR('Enrollment Form'!$B566<>\"Subscriber\",'Enrollment Form'!$C566=\"ROC\"),\"-\",IF(AND('Enrollment Form'!$B566=\"Subscriber\",'Enrollment Form'!$C566=\"Enroll\",'Enrollment Form'!$AL566<>\"\"),\"Y\",\"N\")))","v":""},{"$f":"IF($B559=\"N\",\"\",IF(OR('Enrollment Form'!$B566<>\"Subscriber\",'Enrollment Form'!$C566=\"ROC\"),\"-\",IF(AND('Enrollment Form'!$B566=\"Subscriber\",'Enrollment Form'!$C566=\"Enroll\",'Enrollment Form'!$AM566<>\"\"),\"Y\",\"N\")))","v":""},{"$f":"IF($B559=\"N\",\"\",IF(OR('Enrollment Form'!$B566<>\"Subscriber\",'Enrollment Form'!$C566=\"ROC\"),\"-\",IF(AND('Enrollment Form'!$B566=\"Subscriber\",'Enrollment Form'!$C566=\"Enroll\",'Enrollment Form'!$AN566<>\"\"),\"Y\",\"N\")))","v":""},{"$f":"IF($B559=\"N\",\"\",IF(OR('Enrollment Form'!$B566<>\"Subscriber\",'Enrollment Form'!$C566=\"ROC\"),\"-\",IF(AND('Enrollment Form'!$B566=\"Subscriber\",'Enrollment Form'!$C566=\"Enroll\",'Enrollment Form'!$AP566<>\"\"),\"Y\",\"N\")))","v":""},{"$f":"IF($B559=\"N\",\"\",IF($Q559=\"-\",\"-\",IF(AND($Q559=\"Y\",'Enrollment Form'!$AP566=\"No\"),\"-\",IF(AND($Q559=\"Y\",'Enrollment Form'!$AP566=\"Yes\",'Enrollment Form'!$AQ566<>\"\"),\"Y\",\"N\"))))","v":""},{"$f":"IF($B559=\"N\",\"\",IF(OR('Enrollment Form'!$B566<>\"Subscriber\",'Enrollment Form'!$C566=\"ROC\"),\"-\",IF(AND('Enrollment Form'!$B566=\"Subscriber\",'Enrollment Form'!$C566=\"Enroll\",'Enrollment Form'!$CO566<>\"\"),\"Y\",\"N\")))","v":""},{"$f":"IF($B559=\"N\",\"\",IF($S559=\"-\",\"-\",IF(AND($S559=\"Y\",'Enrollment Form'!$CO566=\"No\"),\"-\",IF(AND($S559=\"Y\",'Enrollment Form'!$CO566=\"Yes\",'Enrollment Form'!$CP566<>\"\"),\"Y\",\"N\"))))","v":""},{"$f":"IF(OR('Enrollment Form'!$AV566=\"Yes\",'Enrollment Form'!$AV566=\"\"),\"-\",IF(AND('Enrollment Form'!$AV566=\"No\",ISERROR(FIND(\"HMO\",VLOOKUP('Enrollment Form'!G566,'Enrollment Form'!H$11:J$1000,3,FALSE),1))=FALSE,COUNTA('Enrollment Form'!$AW566:$AZ566)=4),\"Y\",\"N\"))","v":"-"},{"$f":"IF($B559=\"N\",\"\",IF('Enrollment Form'!$B566=\"Subscriber\",\"-\",IF(COUNTA('Enrollment Form'!$BE566,'Enrollment Form'!$BG566)=2,\"Y\",\"N\")))","v":""},{"$f":"IF($B559=\"N\",\"\",IF(OR('Enrollment Form'!$AU566=\"\",'Enrollment Form'!$AU566=\"No\"),\"-\",IF(AND('Enrollment Form'!$AU566=\"Yes\",COUNTA('Enrollment Form'!$CK566)=1),\"Y\",\"N\")))","v":""},{"$f":"IF(OR('Enrollment Form'!$CK566=\"\",'Enrollment Form'!$CK566=\"No\"),\"-\",IF(COUNTA('Enrollment Form'!$CM566:$CN566)=2,\"Y\",\"N\"))","v":"-"},{"$f":"IF($B559=\"N\",\"\",IF(COUNTIF('Enrollment Form'!$CZ566:$DO566,\"Other\")=COUNTA('Enrollment Form'!$DF566,'Enrollment Form'!$DA566,'Enrollment Form'!$DK566,'Enrollment Form'!$DP566),\"Y\",\"N\"))","v":""},{"$f":"IF($B559=\"N\",\"\",IF(OR('Enrollment Form'!B566<>\"Subscriber\",'Enrollment Form'!C566=\"ROC\",COUNTIF('Enrollment Form'!AS566:AT566,\"Yes\")>=1),\"-\",IF(AND('Enrollment Form'!C566=\"Enroll\",COUNTIF('Enrollment Form'!AS566:AT566,\"No\")=2,'Enrollment Form'!AU566=\"\"),\"N\",\"Y\")))","v":""},{"$f":"IF(OR(B559=\"N\",'Enrollment Form'!B566<>\"Subscriber\",'Enrollment Form'!C566=\"ROC\",'Enrollment Form'!O566<>\"Multiple of Salary\"),\"-\",IF(COUNTA('Enrollment Form'!T566:U566)<2,\"N\",\"Y\"))","v":"-"},{"$f":"IF(B559=\"N\",\"\",IF(OR('Enrollment Form'!C566=\"ROC\",'Enrollment Form'!B566<>\"Subscriber\",'Enrollment Form'!O566=\"Waive\",'Enrollment Form'!O566=\"\"),\"-\",IF('Enrollment Form'!P566=\"\",\"N\",\"Y\")))","v":""},{"$f":"IF($B559=\"N\",\"\",IF(AND('Enrollment Form'!$C566=\"ROC\",'Enrollment Form'!$DS566<>\"\"),\"Y\",IF(AND('Enrollment Form'!$C566=\"ROC\",'Enrollment Form'!$DS566=\"\"),\"N\",IF(AND('Enrollment Form'!$C566=\"Enroll\",'Enrollment Form'!$B566=\"Subscriber\",'Enrollment Form'!$CQ566=\"No\",'Enrollment Form'!$DS566=\"\"),\"N\",IF(AND('Enrollment Form'!$C566=\"Enroll\",'Enrollment Form'!$B566=\"Subscriber\",'Enrollment Form'!$CQ566=\"Yes\"),\"-\",\"Y\")))))","v":""},{"$f":"IF($B559=\"N\",\"\",IF(AND('Enrollment Form'!$C566=\"ROC\",'Enrollment Form'!$DT566<>\"\"),\"Y\",IF(AND('Enrollment Form'!$C566=\"ROC\",'Enrollment Form'!$DT566=\"\"),\"N\",IF(AND('Enrollment Form'!$C566=\"Enroll\",'Enrollment Form'!$B566=\"Subscriber\",'Enrollment Form'!$CQ566=\"No\",'Enrollment Form'!$DT566=\"\"),\"N\",IF(AND('Enrollment Form'!$C566=\"Enroll\",'Enrollment Form'!$B566=\"Subscriber\",'Enrollment Form'!$CQ566=\"Yes\"),\"-\",\"Y\")))))","v":""},{"$f":"IF('Enrollment Form'!AH566=\"\",\"\",IF(ISERROR(SEARCH(\".\",'Enrollment Form'!AH566,SEARCH(\"@\",'Enrollment Form'!AH566))),\"N\",\"Y\"))","v":""},{"$f":"IF(OR($B559=\"N\",'Enrollment Form'!$G566=\"\"),\"\",IF('Enrollment Form'!$B566<>\"Subscriber\",\"-\",IF(COUNTIF('Enrollment Form'!$AS566:$AT566,\"Yes\")=2,\"N\",\"Y\")))","v":""},{"$f":"IF(OR('Enrollment Form'!$CC566=\"\",'Enrollment Form'!$CC566=\"No\"),\"-\",IF(AND('Enrollment Form'!$CC566=\"Yes\",'Enrollment Form'!$CD566=\"\"),\"N\",\"Y\"))","v":"-"},{"$f":"IF(OR('Enrollment Form'!$CE566=\"\",'Enrollment Form'!$CE566=\"No\"),\"-\",IF(AND('Enrollment Form'!$CE566=\"Yes\",'Enrollment Form'!$CF566=\"\"),\"N\",\"Y\"))","v":"-"},{"$f":"IF(OR('Enrollment Form'!$CG566=\"\",'Enrollment Form'!$CG566=\"No\"),\"-\",IF(AND('Enrollment Form'!$CG566=\"Yes\",'Enrollment Form'!$CH566=\"\"),\"N\",\"Y\"))","v":"-"},{"$f":"IF(OR('Enrollment Form'!$CG566=\"\",'Enrollment Form'!$CG566=\"No\"),\"-\",IF(AND('Enrollment Form'!$CG566=\"Yes\",'Enrollment Form'!$CI566=\"\"),\"N\",\"Y\"))","v":"-"},{"$f":"IF('Enrollment Form'!B566<>\"Subscriber\",\"-\",IF(AND('Enrollment Form'!B566=\"Subscriber\",'Enrollment Form'!C566=\"Enroll\",'Enrollment Form'!AA566=\"\"),\"N\",\"Y\"))","v":"-"},{"$f":"IF(OR('Enrollment Form'!B566=\"Subscriber\",'Enrollment Form'!B566=\"\"),\"-\",IF('Enrollment Form'!BI566=\"\",\"N\",\"Y\"))","v":"-"},{"$f":"IF('Enrollment Form'!B566<>\"Subscriber\",\"-\",IF(AND('Enrollment Form'!B566=\"Subscriber\",'Enrollment Form'!G566=\"\"),\"N\",\"Y\"))","v":"-"},{"$f":"IF('Enrollment Form'!A566=\"\",\"\",IF('Enrollment Form'!B566=\"Subscriber\",\"-\",IF(AND('Enrollment Form'!B566<>\"Subscriber\",'Enrollment Form'!G566='Enrollment Form'!H566),\"N\",\"Y\")))","v":""},0]
[567,{"$f":"IF('Enrollment Form'!$A567<>\"\",\"Y\",\"N\")","v":"N"},{"$f":"IF(AND('Enrollment Form'!$B567=\"\",'Enrollment Form'!$C567<>\"\"),\"N\",IF($B560=\"N\",\"\",\"Y\"))","v":""},{"$f":"IF(OR($B560=\"N\",'Enrollment Form'!G567=\"\"),\"\",IF('Enrollment Form'!$B567<>\"Subscriber\",\"\",IF('Enrollment Form'!$G567='Enrollment Form'!$H567,\"Y\",\"N\")))","v":""},{"$f":"IF($B560=\"N\",\"\",IF(AND(COUNTIFS('Enrollment Form'!$H$11:$H$1000,'Enrollment Form'!$H567,'Enrollment Form'!$B$11:$B$1000,'Enrollment Form'!$B567)>1,'Enrollment Form'!$H567<>\"\"),\"N\",\"Y\"))","v":""},{"$f":"IF($B560=\"N\",\"\",IF(LEN('Enrollment Form'!$Y567)=0,\"\",IF(LEN('Enrollment Form'!$Y567)<>5,\"N\",\"Y\")))","v":""},{"$f":"IF($B560=\"N\",\"\",IF(LEN('Enrollment Form'!$AD567=0),\"\",IF(LEN('Enrollment Form'!$AD567)<>5,\"N\",\"Y\")))","v":""},{"$f":"IF($B560=\"N\",\"\",IF(LEN('Enrollment Form'!$BL567=0),\"\",IF(LEN('Enrollment Form'!$BL567)<>5,\"N\",\"Y\")))","v":""},{"$f":"IF($B560=\"N\",\"\",IF(LEN('Enrollment Form'!$AE567)=0,\"\",IF(LEN('Enrollment Form'!$AE567)<>10,\"N\",\"Y\")))","v":""},{"$f":"IF($B560=\"N\",\"\",IF(LEN('Enrollment Form'!$AF567)=0,\"\",IF(LEN('Enrollment Form'!$AF567)<>10,\"N\",\"Y\")))","v":""},{"$f":"IF('Enrollment Form'!$O567<>\"Graded\",\"-\",IF(AND('Enrollment Form'!$O567=\"Graded\",'Enrollment Form'!$AO567<>\"\"),\"Y\",\"N\"))","v":"-"},{"$f":"IF($B560=\"N\",\"\",IF(OR('Enrollment Form'!$B567<>\"Subscriber\",'Enrollment Form'!$C567=\"ROC\"),\"-\",IF(AND('Enrollment Form'!$B567=\"Subscriber\",'Enrollment Form'!$C567=\"Enroll\",'Enrollment Form'!$AJ567<>\"\"),\"Y\",\"N\")))","v":""},{"$f":"IF($B560=\"N\",\"\",IF(OR('Enrollment Form'!$B567<>\"Subscriber\",'Enrollment Form'!$C567=\"ROC\"),\"-\",IF(AND('Enrollment Form'!$B567=\"Subscriber\",'Enrollment Form'!$C567=\"Enroll\",'Enrollment Form'!$AK567<>\"\"),\"Y\",\"N\")))","v":""},{"$f":"IF($B560=\"N\",\"\",IF(OR('Enrollment Form'!$B567<>\"Subscriber\",'Enrollment Form'!$C567=\"ROC\"),\"-\",IF(AND('Enrollment Form'!$B567=\"Subscriber\",'Enrollment Form'!$C567=\"Enroll\",'Enrollment Form'!$AL567<>\"\"),\"Y\",\"N\")))","v":""},{"$f":"IF($B560=\"N\",\"\",IF(OR('Enrollment Form'!$B567<>\"Subscriber\",'Enrollment Form'!$C567=\"ROC\"),\"-\",IF(AND('Enrollment Form'!$B567=\"Subscriber\",'Enrollment Form'!$C567=\"Enroll\",'Enrollment Form'!$AM567<>\"\"),\"Y\",\"N\")))","v":""},{"$f":"IF($B560=\"N\",\"\",IF(OR('Enrollment Form'!$B567<>\"Subscriber\",'Enrollment Form'!$C567=\"ROC\"),\"-\",IF(AND('Enrollment Form'!$B567=\"Subscriber\",'Enrollment Form'!$C567=\"Enroll\",'Enrollment Form'!$AN567<>\"\"),\"Y\",\"N\")))","v":""},{"$f":"IF($B560=\"N\",\"\",IF(OR('Enrollment Form'!$B567<>\"Subscriber\",'Enrollment Form'!$C567=\"ROC\"),\"-\",IF(AND('Enrollment Form'!$B567=\"Subscriber\",'Enrollment Form'!$C567=\"Enroll\",'Enrollment Form'!$AP567<>\"\"),\"Y\",\"N\")))","v":""},{"$f":"IF($B560=\"N\",\"\",IF($Q560=\"-\",\"-\",IF(AND($Q560=\"Y\",'Enrollment Form'!$AP567=\"No\"),\"-\",IF(AND($Q560=\"Y\",'Enrollment Form'!$AP567=\"Yes\",'Enrollment Form'!$AQ567<>\"\"),\"Y\",\"N\"))))","v":""},{"$f":"IF($B560=\"N\",\"\",IF(OR('Enrollment Form'!$B567<>\"Subscriber\",'Enrollment Form'!$C567=\"ROC\"),\"-\",IF(AND('Enrollment Form'!$B567=\"Subscriber\",'Enrollment Form'!$C567=\"Enroll\",'Enrollment Form'!$CO567<>\"\"),\"Y\",\"N\")))","v":""},{"$f":"IF($B560=\"N\",\"\",IF($S560=\"-\",\"-\",IF(AND($S560=\"Y\",'Enrollment Form'!$CO567=\"No\"),\"-\",IF(AND($S560=\"Y\",'Enrollment Form'!$CO567=\"Yes\",'Enrollment Form'!$CP567<>\"\"),\"Y\",\"N\"))))","v":""},{"$f":"IF(OR('Enrollment Form'!$AV567=\"Yes\",'Enrollment Form'!$AV567=\"\"),\"-\",IF(AND('Enrollment Form'!$AV567=\"No\",ISERROR(FIND(\"HMO\",VLOOKUP('Enrollment Form'!G567,'Enrollment Form'!H$11:J$1000,3,FALSE),1))=FALSE,COUNTA('Enrollment Form'!$AW567:$AZ567)=4),\"Y\",\"N\"))","v":"-"},{"$f":"IF($B560=\"N\",\"\",IF('Enrollment Form'!$B567=\"Subscriber\",\"-\",IF(COUNTA('Enrollment Form'!$BE567,'Enrollment Form'!$BG567)=2,\"Y\",\"N\")))","v":""},{"$f":"IF($B560=\"N\",\"\",IF(OR('Enrollment Form'!$AU567=\"\",'Enrollment Form'!$AU567=\"No\"),\"-\",IF(AND('Enrollment Form'!$AU567=\"Yes\",COUNTA('Enrollment Form'!$CK567)=1),\"Y\",\"N\")))","v":""},{"$f":"IF(OR('Enrollment Form'!$CK567=\"\",'Enrollment Form'!$CK567=\"No\"),\"-\",IF(COUNTA('Enrollment Form'!$CM567:$CN567)=2,\"Y\",\"N\"))","v":"-"},{"$f":"IF($B560=\"N\",\"\",IF(COUNTIF('Enrollment Form'!$CZ567:$DO567,\"Other\")=COUNTA('Enrollment Form'!$DF567,'Enrollment Form'!$DA567,'Enrollment Form'!$DK567,'Enrollment Form'!$DP567),\"Y\",\"N\"))","v":""},{"$f":"IF($B560=\"N\",\"\",IF(OR('Enrollment Form'!B567<>\"Subscriber\",'Enrollment Form'!C567=\"ROC\",COUNTIF('Enrollment Form'!AS567:AT567,\"Yes\")>=1),\"-\",IF(AND('Enrollment Form'!C567=\"Enroll\",COUNTIF('Enrollment Form'!AS567:AT567,\"No\")=2,'Enrollment Form'!AU567=\"\"),\"N\",\"Y\")))","v":""},{"$f":"IF(OR(B560=\"N\",'Enrollment Form'!B567<>\"Subscriber\",'Enrollment Form'!C567=\"ROC\",'Enrollment Form'!O567<>\"Multiple of Salary\"),\"-\",IF(COUNTA('Enrollment Form'!T567:U567)<2,\"N\",\"Y\"))","v":"-"},{"$f":"IF(B560=\"N\",\"\",IF(OR('Enrollment Form'!C567=\"ROC\",'Enrollment Form'!B567<>\"Subscriber\",'Enrollment Form'!O567=\"Waive\",'Enrollment Form'!O567=\"\"),\"-\",IF('Enrollment Form'!P567=\"\",\"N\",\"Y\")))","v":""},{"$f":"IF($B560=\"N\",\"\",IF(AND('Enrollment Form'!$C567=\"ROC\",'Enrollment Form'!$DS567<>\"\"),\"Y\",IF(AND('Enrollment Form'!$C567=\"ROC\",'Enrollment Form'!$DS567=\"\"),\"N\",IF(AND('Enrollment Form'!$C567=\"Enroll\",'Enrollment Form'!$B567=\"Subscriber\",'Enrollment Form'!$CQ567=\"No\",'Enrollment Form'!$DS567=\"\"),\"N\",IF(AND('Enrollment Form'!$C567=\"Enroll\",'Enrollment Form'!$B567=\"Subscriber\",'Enrollment Form'!$CQ567=\"Yes\"),\"-\",\"Y\")))))","v":""},{"$f":"IF($B560=\"N\",\"\",IF(AND('Enrollment Form'!$C567=\"ROC\",'Enrollment Form'!$DT567<>\"\"),\"Y\",IF(AND('Enrollment Form'!$C567=\"ROC\",'Enrollment Form'!$DT567=\"\"),\"N\",IF(AND('Enrollment Form'!$C567=\"Enroll\",'Enrollment Form'!$B567=\"Subscriber\",'Enrollment Form'!$CQ567=\"No\",'Enrollment Form'!$DT567=\"\"),\"N\",IF(AND('Enrollment Form'!$C567=\"Enroll\",'Enrollment Form'!$B567=\"Subscriber\",'Enrollment Form'!$CQ567=\"Yes\"),\"-\",\"Y\")))))","v":""},{"$f":"IF('Enrollment Form'!AH567=\"\",\"\",IF(ISERROR(SEARCH(\".\",'Enrollment Form'!AH567,SEARCH(\"@\",'Enrollment Form'!AH567))),\"N\",\"Y\"))","v":""},{"$f":"IF(OR($B560=\"N\",'Enrollment Form'!$G567=\"\"),\"\",IF('Enrollment Form'!$B567<>\"Subscriber\",\"-\",IF(COUNTIF('Enrollment Form'!$AS567:$AT567,\"Yes\")=2,\"N\",\"Y\")))","v":""},{"$f":"IF(OR('Enrollment Form'!$CC567=\"\",'Enrollment Form'!$CC567=\"No\"),\"-\",IF(AND('Enrollment Form'!$CC567=\"Yes\",'Enrollment Form'!$CD567=\"\"),\"N\",\"Y\"))","v":"-"},{"$f":"IF(OR('Enrollment Form'!$CE567=\"\",'Enrollment Form'!$CE567=\"No\"),\"-\",IF(AND('Enrollment Form'!$CE567=\"Yes\",'Enrollment Form'!$CF567=\"\"),\"N\",\"Y\"))","v":"-"},{"$f":"IF(OR('Enrollment Form'!$CG567=\"\",'Enrollment Form'!$CG567=\"No\"),\"-\",IF(AND('Enrollment Form'!$CG567=\"Yes\",'Enrollment Form'!$CH567=\"\"),\"N\",\"Y\"))","v":"-"},{"$f":"IF(OR('Enrollment Form'!$CG567=\"\",'Enrollment Form'!$CG567=\"No\"),\"-\",IF(AND('Enrollment Form'!$CG567=\"Yes\",'Enrollment Form'!$CI567=\"\"),\"N\",\"Y\"))","v":"-"},{"$f":"IF('Enrollment Form'!B567<>\"Subscriber\",\"-\",IF(AND('Enrollment Form'!B567=\"Subscriber\",'Enrollment Form'!C567=\"Enroll\",'Enrollment Form'!AA567=\"\"),\"N\",\"Y\"))","v":"-"},{"$f":"IF(OR('Enrollment Form'!B567=\"Subscriber\",'Enrollment Form'!B567=\"\"),\"-\",IF('Enrollment Form'!BI567=\"\",\"N\",\"Y\"))","v":"-"},{"$f":"IF('Enrollment Form'!B567<>\"Subscriber\",\"-\",IF(AND('Enrollment Form'!B567=\"Subscriber\",'Enrollment Form'!G567=\"\"),\"N\",\"Y\"))","v":"-"},{"$f":"IF('Enrollment Form'!A567=\"\",\"\",IF('Enrollment Form'!B567=\"Subscriber\",\"-\",IF(AND('Enrollment Form'!B567<>\"Subscriber\",'Enrollment Form'!G567='Enrollment Form'!H567),\"N\",\"Y\")))","v":""},0]
[568,{"$f":"IF('Enrollment Form'!$A568<>\"\",\"Y\",\"N\")","v":"N"},{"$f":"IF(AND('Enrollment Form'!$B568=\"\",'Enrollment Form'!$C568<>\"\"),\"N\",IF($B561=\"N\",\"\",\"Y\"))","v":""},{"$f":"IF(OR($B561=\"N\",'Enrollment Form'!G568=\"\"),\"\",IF('Enrollment Form'!$B568<>\"Subscriber\",\"\",IF('Enrollment Form'!$G568='Enrollment Form'!$H568,\"Y\",\"N\")))","v":""},{"$f":"IF($B561=\"N\",\"\",IF(AND(COUNTIFS('Enrollment Form'!$H$11:$H$1000,'Enrollment Form'!$H568,'Enrollment Form'!$B$11:$B$1000,'Enrollment Form'!$B568)>1,'Enrollment Form'!$H568<>\"\"),\"N\",\"Y\"))","v":""},{"$f":"IF($B561=\"N\",\"\",IF(LEN('Enrollment Form'!$Y568)=0,\"\",IF(LEN('Enrollment Form'!$Y568)<>5,\"N\",\"Y\")))","v":""},{"$f":"IF($B561=\"N\",\"\",IF(LEN('Enrollment Form'!$AD568=0),\"\",IF(LEN('Enrollment Form'!$AD568)<>5,\"N\",\"Y\")))","v":""},{"$f":"IF($B561=\"N\",\"\",IF(LEN('Enrollment Form'!$BL568=0),\"\",IF(LEN('Enrollment Form'!$BL568)<>5,\"N\",\"Y\")))","v":""},{"$f":"IF($B561=\"N\",\"\",IF(LEN('Enrollment Form'!$AE568)=0,\"\",IF(LEN('Enrollment Form'!$AE568)<>10,\"N\",\"Y\")))","v":""},{"$f":"IF($B561=\"N\",\"\",IF(LEN('Enrollment Form'!$AF568)=0,\"\",IF(LEN('Enrollment Form'!$AF568)<>10,\"N\",\"Y\")))","v":""},{"$f":"IF('Enrollment Form'!$O568<>\"Graded\",\"-\",IF(AND('Enrollment Form'!$O568=\"Graded\",'Enrollment Form'!$AO568<>\"\"),\"Y\",\"N\"))","v":"-"},{"$f":"IF($B561=\"N\",\"\",IF(OR('Enrollment Form'!$B568<>\"Subscriber\",'Enrollment Form'!$C568=\"ROC\"),\"-\",IF(AND('Enrollment Form'!$B568=\"Subscriber\",'Enrollment Form'!$C568=\"Enroll\",'Enrollment Form'!$AJ568<>\"\"),\"Y\",\"N\")))","v":""},{"$f":"IF($B561=\"N\",\"\",IF(OR('Enrollment Form'!$B568<>\"Subscriber\",'Enrollment Form'!$C568=\"ROC\"),\"-\",IF(AND('Enrollment Form'!$B568=\"Subscriber\",'Enrollment Form'!$C568=\"Enroll\",'Enrollment Form'!$AK568<>\"\"),\"Y\",\"N\")))","v":""},{"$f":"IF($B561=\"N\",\"\",IF(OR('Enrollment Form'!$B568<>\"Subscriber\",'Enrollment Form'!$C568=\"ROC\"),\"-\",IF(AND('Enrollment Form'!$B568=\"Subscriber\",'Enrollment Form'!$C568=\"Enroll\",'Enrollment Form'!$AL568<>\"\"),\"Y\",\"N\")))","v":""},{"$f":"IF($B561=\"N\",\"\",IF(OR('Enrollment Form'!$B568<>\"Subscriber\",'Enrollment Form'!$C568=\"ROC\"),\"-\",IF(AND('Enrollment Form'!$B568=\"Subscriber\",'Enrollment Form'!$C568=\"Enroll\",'Enrollment Form'!$AM568<>\"\"),\"Y\",\"N\")))","v":""},{"$f":"IF($B561=\"N\",\"\",IF(OR('Enrollment Form'!$B568<>\"Subscriber\",'Enrollment Form'!$C568=\"ROC\"),\"-\",IF(AND('Enrollment Form'!$B568=\"Subscriber\",'Enrollment Form'!$C568=\"Enroll\",'Enrollment Form'!$AN568<>\"\"),\"Y\",\"N\")))","v":""},{"$f":"IF($B561=\"N\",\"\",IF(OR('Enrollment Form'!$B568<>\"Subscriber\",'Enrollment Form'!$C568=\"ROC\"),\"-\",IF(AND('Enrollment Form'!$B568=\"Subscriber\",'Enrollment Form'!$C568=\"Enroll\",'Enrollment Form'!$AP568<>\"\"),\"Y\",\"N\")))","v":""},{"$f":"IF($B561=\"N\",\"\",IF($Q561=\"-\",\"-\",IF(AND($Q561=\"Y\",'Enrollment Form'!$AP568=\"No\"),\"-\",IF(AND($Q561=\"Y\",'Enrollment Form'!$AP568=\"Yes\",'Enrollment Form'!$AQ568<>\"\"),\"Y\",\"N\"))))","v":""},{"$f":"IF($B561=\"N\",\"\",IF(OR('Enrollment Form'!$B568<>\"Subscriber\",'Enrollment Form'!$C568=\"ROC\"),\"-\",IF(AND('Enrollment Form'!$B568=\"Subscriber\",'Enrollment Form'!$C568=\"Enroll\",'Enrollment Form'!$CO568<>\"\"),\"Y\",\"N\")))","v":""},{"$f":"IF($B561=\"N\",\"\",IF($S561=\"-\",\"-\",IF(AND($S561=\"Y\",'Enrollment Form'!$CO568=\"No\"),\"-\",IF(AND($S561=\"Y\",'Enrollment Form'!$CO568=\"Yes\",'Enrollment Form'!$CP568<>\"\"),\"Y\",\"N\"))))","v":""},{"$f":"IF(OR('Enrollment Form'!$AV568=\"Yes\",'Enrollment Form'!$AV568=\"\"),\"-\",IF(AND('Enrollment Form'!$AV568=\"No\",ISERROR(FIND(\"HMO\",VLOOKUP('Enrollment Form'!G568,'Enrollment Form'!H$11:J$1000,3,FALSE),1))=FALSE,COUNTA('Enrollment Form'!$AW568:$AZ568)=4),\"Y\",\"N\"))","v":"-"},{"$f":"IF($B561=\"N\",\"\",IF('Enrollment Form'!$B568=\"Subscriber\",\"-\",IF(COUNTA('Enrollment Form'!$BE568,'Enrollment Form'!$BG568)=2,\"Y\",\"N\")))","v":""},{"$f":"IF($B561=\"N\",\"\",IF(OR('Enrollment Form'!$AU568=\"\",'Enrollment Form'!$AU568=\"No\"),\"-\",IF(AND('Enrollment Form'!$AU568=\"Yes\",COUNTA('Enrollment Form'!$CK568)=1),\"Y\",\"N\")))","v":""},{"$f":"IF(OR('Enrollment Form'!$CK568=\"\",'Enrollment Form'!$CK568=\"No\"),\"-\",IF(COUNTA('Enrollment Form'!$CM568:$CN568)=2,\"Y\",\"N\"))","v":"-"},{"$f":"IF($B561=\"N\",\"\",IF(COUNTIF('Enrollment Form'!$CZ568:$DO568,\"Other\")=COUNTA('Enrollment Form'!$DF568,'Enrollment Form'!$DA568,'Enrollment Form'!$DK568,'Enrollment Form'!$DP568),\"Y\",\"N\"))","v":""},{"$f":"IF($B561=\"N\",\"\",IF(OR('Enrollment Form'!B568<>\"Subscriber\",'Enrollment Form'!C568=\"ROC\",COUNTIF('Enrollment Form'!AS568:AT568,\"Yes\")>=1),\"-\",IF(AND('Enrollment Form'!C568=\"Enroll\",COUNTIF('Enrollment Form'!AS568:AT568,\"No\")=2,'Enrollment Form'!AU568=\"\"),\"N\",\"Y\")))","v":""},{"$f":"IF(OR(B561=\"N\",'Enrollment Form'!B568<>\"Subscriber\",'Enrollment Form'!C568=\"ROC\",'Enrollment Form'!O568<>\"Multiple of Salary\"),\"-\",IF(COUNTA('Enrollment Form'!T568:U568)<2,\"N\",\"Y\"))","v":"-"},{"$f":"IF(B561=\"N\",\"\",IF(OR('Enrollment Form'!C568=\"ROC\",'Enrollment Form'!B568<>\"Subscriber\",'Enrollment Form'!O568=\"Waive\",'Enrollment Form'!O568=\"\"),\"-\",IF('Enrollment Form'!P568=\"\",\"N\",\"Y\")))","v":""},{"$f":"IF($B561=\"N\",\"\",IF(AND('Enrollment Form'!$C568=\"ROC\",'Enrollment Form'!$DS568<>\"\"),\"Y\",IF(AND('Enrollment Form'!$C568=\"ROC\",'Enrollment Form'!$DS568=\"\"),\"N\",IF(AND('Enrollment Form'!$C568=\"Enroll\",'Enrollment Form'!$B568=\"Subscriber\",'Enrollment Form'!$CQ568=\"No\",'Enrollment Form'!$DS568=\"\"),\"N\",IF(AND('Enrollment Form'!$C568=\"Enroll\",'Enrollment Form'!$B568=\"Subscriber\",'Enrollment Form'!$CQ568=\"Yes\"),\"-\",\"Y\")))))","v":""},{"$f":"IF($B561=\"N\",\"\",IF(AND('Enrollment Form'!$C568=\"ROC\",'Enrollment Form'!$DT568<>\"\"),\"Y\",IF(AND('Enrollment Form'!$C568=\"ROC\",'Enrollment Form'!$DT568=\"\"),\"N\",IF(AND('Enrollment Form'!$C568=\"Enroll\",'Enrollment Form'!$B568=\"Subscriber\",'Enrollment Form'!$CQ568=\"No\",'Enrollment Form'!$DT568=\"\"),\"N\",IF(AND('Enrollment Form'!$C568=\"Enroll\",'Enrollment Form'!$B568=\"Subscriber\",'Enrollment Form'!$CQ568=\"Yes\"),\"-\",\"Y\")))))","v":""},{"$f":"IF('Enrollment Form'!AH568=\"\",\"\",IF(ISERROR(SEARCH(\".\",'Enrollment Form'!AH568,SEARCH(\"@\",'Enrollment Form'!AH568))),\"N\",\"Y\"))","v":""},{"$f":"IF(OR($B561=\"N\",'Enrollment Form'!$G568=\"\"),\"\",IF('Enrollment Form'!$B568<>\"Subscriber\",\"-\",IF(COUNTIF('Enrollment Form'!$AS568:$AT568,\"Yes\")=2,\"N\",\"Y\")))","v":""},{"$f":"IF(OR('Enrollment Form'!$CC568=\"\",'Enrollment Form'!$CC568=\"No\"),\"-\",IF(AND('Enrollment Form'!$CC568=\"Yes\",'Enrollment Form'!$CD568=\"\"),\"N\",\"Y\"))","v":"-"},{"$f":"IF(OR('Enrollment Form'!$CE568=\"\",'Enrollment Form'!$CE568=\"No\"),\"-\",IF(AND('Enrollment Form'!$CE568=\"Yes\",'Enrollment Form'!$CF568=\"\"),\"N\",\"Y\"))","v":"-"},{"$f":"IF(OR('Enrollment Form'!$CG568=\"\",'Enrollment Form'!$CG568=\"No\"),\"-\",IF(AND('Enrollment Form'!$CG568=\"Yes\",'Enrollment Form'!$CH568=\"\"),\"N\",\"Y\"))","v":"-"},{"$f":"IF(OR('Enrollment Form'!$CG568=\"\",'Enrollment Form'!$CG568=\"No\"),\"-\",IF(AND('Enrollment Form'!$CG568=\"Yes\",'Enrollment Form'!$CI568=\"\"),\"N\",\"Y\"))","v":"-"},{"$f":"IF('Enrollment Form'!B568<>\"Subscriber\",\"-\",IF(AND('Enrollment Form'!B568=\"Subscriber\",'Enrollment Form'!C568=\"Enroll\",'Enrollment Form'!AA568=\"\"),\"N\",\"Y\"))","v":"-"},{"$f":"IF(OR('Enrollment Form'!B568=\"Subscriber\",'Enrollment Form'!B568=\"\"),\"-\",IF('Enrollment Form'!BI568=\"\",\"N\",\"Y\"))","v":"-"},{"$f":"IF('Enrollment Form'!B568<>\"Subscriber\",\"-\",IF(AND('Enrollment Form'!B568=\"Subscriber\",'Enrollment Form'!G568=\"\"),\"N\",\"Y\"))","v":"-"},{"$f":"IF('Enrollment Form'!A568=\"\",\"\",IF('Enrollment Form'!B568=\"Subscriber\",\"-\",IF(AND('Enrollment Form'!B568<>\"Subscriber\",'Enrollment Form'!G568='Enrollment Form'!H568),\"N\",\"Y\")))","v":""},0]
[569,{"$f":"IF('Enrollment Form'!$A569<>\"\",\"Y\",\"N\")","v":"N"},{"$f":"IF(AND('Enrollment Form'!$B569=\"\",'Enrollment Form'!$C569<>\"\"),\"N\",IF($B562=\"N\",\"\",\"Y\"))","v":""},{"$f":"IF(OR($B562=\"N\",'Enrollment Form'!G569=\"\"),\"\",IF('Enrollment Form'!$B569<>\"Subscriber\",\"\",IF('Enrollment Form'!$G569='Enrollment Form'!$H569,\"Y\",\"N\")))","v":""},{"$f":"IF($B562=\"N\",\"\",IF(AND(COUNTIFS('Enrollment Form'!$H$11:$H$1000,'Enrollment Form'!$H569,'Enrollment Form'!$B$11:$B$1000,'Enrollment Form'!$B569)>1,'Enrollment Form'!$H569<>\"\"),\"N\",\"Y\"))","v":""},{"$f":"IF($B562=\"N\",\"\",IF(LEN('Enrollment Form'!$Y569)=0,\"\",IF(LEN('Enrollment Form'!$Y569)<>5,\"N\",\"Y\")))","v":""},{"$f":"IF($B562=\"N\",\"\",IF(LEN('Enrollment Form'!$AD569=0),\"\",IF(LEN('Enrollment Form'!$AD569)<>5,\"N\",\"Y\")))","v":""},{"$f":"IF($B562=\"N\",\"\",IF(LEN('Enrollment Form'!$BL569=0),\"\",IF(LEN('Enrollment Form'!$BL569)<>5,\"N\",\"Y\")))","v":""},{"$f":"IF($B562=\"N\",\"\",IF(LEN('Enrollment Form'!$AE569)=0,\"\",IF(LEN('Enrollment Form'!$AE569)<>10,\"N\",\"Y\")))","v":""},{"$f":"IF($B562=\"N\",\"\",IF(LEN('Enrollment Form'!$AF569)=0,\"\",IF(LEN('Enrollment Form'!$AF569)<>10,\"N\",\"Y\")))","v":""},{"$f":"IF('Enrollment Form'!$O569<>\"Graded\",\"-\",IF(AND('Enrollment Form'!$O569=\"Graded\",'Enrollment Form'!$AO569<>\"\"),\"Y\",\"N\"))","v":"-"},{"$f":"IF($B562=\"N\",\"\",IF(OR('Enrollment Form'!$B569<>\"Subscriber\",'Enrollment Form'!$C569=\"ROC\"),\"-\",IF(AND('Enrollment Form'!$B569=\"Subscriber\",'Enrollment Form'!$C569=\"Enroll\",'Enrollment Form'!$AJ569<>\"\"),\"Y\",\"N\")))","v":""},{"$f":"IF($B562=\"N\",\"\",IF(OR('Enrollment Form'!$B569<>\"Subscriber\",'Enrollment Form'!$C569=\"ROC\"),\"-\",IF(AND('Enrollment Form'!$B569=\"Subscriber\",'Enrollment Form'!$C569=\"Enroll\",'Enrollment Form'!$AK569<>\"\"),\"Y\",\"N\")))","v":""},{"$f":"IF($B562=\"N\",\"\",IF(OR('Enrollment Form'!$B569<>\"Subscriber\",'Enrollment Form'!$C569=\"ROC\"),\"-\",IF(AND('Enrollment Form'!$B569=\"Subscriber\",'Enrollment Form'!$C569=\"Enroll\",'Enrollment Form'!$AL569<>\"\"),\"Y\",\"N\")))","v":""},{"$f":"IF($B562=\"N\",\"\",IF(OR('Enrollment Form'!$B569<>\"Subscriber\",'Enrollment Form'!$C569=\"ROC\"),\"-\",IF(AND('Enrollment Form'!$B569=\"Subscriber\",'Enrollment Form'!$C569=\"Enroll\",'Enrollment Form'!$AM569<>\"\"),\"Y\",\"N\")))","v":""},{"$f":"IF($B562=\"N\",\"\",IF(OR('Enrollment Form'!$B569<>\"Subscriber\",'Enrollment Form'!$C569=\"ROC\"),\"-\",IF(AND('Enrollment Form'!$B569=\"Subscriber\",'Enrollment Form'!$C569=\"Enroll\",'Enrollment Form'!$AN569<>\"\"),\"Y\",\"N\")))","v":""},{"$f":"IF($B562=\"N\",\"\",IF(OR('Enrollment Form'!$B569<>\"Subscriber\",'Enrollment Form'!$C569=\"ROC\"),\"-\",IF(AND('Enrollment Form'!$B569=\"Subscriber\",'Enrollment Form'!$C569=\"Enroll\",'Enrollment Form'!$AP569<>\"\"),\"Y\",\"N\")))","v":""},{"$f":"IF($B562=\"N\",\"\",IF($Q562=\"-\",\"-\",IF(AND($Q562=\"Y\",'Enrollment Form'!$AP569=\"No\"),\"-\",IF(AND($Q562=\"Y\",'Enrollment Form'!$AP569=\"Yes\",'Enrollment Form'!$AQ569<>\"\"),\"Y\",\"N\"))))","v":""},{"$f":"IF($B562=\"N\",\"\",IF(OR('Enrollment Form'!$B569<>\"Subscriber\",'Enrollment Form'!$C569=\"ROC\"),\"-\",IF(AND('Enrollment Form'!$B569=\"Subscriber\",'Enrollment Form'!$C569=\"Enroll\",'Enrollment Form'!$CO569<>\"\"),\"Y\",\"N\")))","v":""},{"$f":"IF($B562=\"N\",\"\",IF($S562=\"-\",\"-\",IF(AND($S562=\"Y\",'Enrollment Form'!$CO569=\"No\"),\"-\",IF(AND($S562=\"Y\",'Enrollment Form'!$CO569=\"Yes\",'Enrollment Form'!$CP569<>\"\"),\"Y\",\"N\"))))","v":""},{"$f":"IF(OR('Enrollment Form'!$AV569=\"Yes\",'Enrollment Form'!$AV569=\"\"),\"-\",IF(AND('Enrollment Form'!$AV569=\"No\",ISERROR(FIND(\"HMO\",VLOOKUP('Enrollment Form'!G569,'Enrollment Form'!H$11:J$1000,3,FALSE),1))=FALSE,COUNTA('Enrollment Form'!$AW569:$AZ569)=4),\"Y\",\"N\"))","v":"-"},{"$f":"IF($B562=\"N\",\"\",IF('Enrollment Form'!$B569=\"Subscriber\",\"-\",IF(COUNTA('Enrollment Form'!$BE569,'Enrollment Form'!$BG569)=2,\"Y\",\"N\")))","v":""},{"$f":"IF($B562=\"N\",\"\",IF(OR('Enrollment Form'!$AU569=\"\",'Enrollment Form'!$AU569=\"No\"),\"-\",IF(AND('Enrollment Form'!$AU569=\"Yes\",COUNTA('Enrollment Form'!$CK569)=1),\"Y\",\"N\")))","v":""},{"$f":"IF(OR('Enrollment Form'!$CK569=\"\",'Enrollment Form'!$CK569=\"No\"),\"-\",IF(COUNTA('Enrollment Form'!$CM569:$CN569)=2,\"Y\",\"N\"))","v":"-"},{"$f":"IF($B562=\"N\",\"\",IF(COUNTIF('Enrollment Form'!$CZ569:$DO569,\"Other\")=COUNTA('Enrollment Form'!$DF569,'Enrollment Form'!$DA569,'Enrollment Form'!$DK569,'Enrollment Form'!$DP569),\"Y\",\"N\"))","v":""},{"$f":"IF($B562=\"N\",\"\",IF(OR('Enrollment Form'!B569<>\"Subscriber\",'Enrollment Form'!C569=\"ROC\",COUNTIF('Enrollment Form'!AS569:AT569,\"Yes\")>=1),\"-\",IF(AND('Enrollment Form'!C569=\"Enroll\",COUNTIF('Enrollment Form'!AS569:AT569,\"No\")=2,'Enrollment Form'!AU569=\"\"),\"N\",\"Y\")))","v":""},{"$f":"IF(OR(B562=\"N\",'Enrollment Form'!B569<>\"Subscriber\",'Enrollment Form'!C569=\"ROC\",'Enrollment Form'!O569<>\"Multiple of Salary\"),\"-\",IF(COUNTA('Enrollment Form'!T569:U569)<2,\"N\",\"Y\"))","v":"-"},{"$f":"IF(B562=\"N\",\"\",IF(OR('Enrollment Form'!C569=\"ROC\",'Enrollment Form'!B569<>\"Subscriber\",'Enrollment Form'!O569=\"Waive\",'Enrollment Form'!O569=\"\"),\"-\",IF('Enrollment Form'!P569=\"\",\"N\",\"Y\")))","v":""},{"$f":"IF($B562=\"N\",\"\",IF(AND('Enrollment Form'!$C569=\"ROC\",'Enrollment Form'!$DS569<>\"\"),\"Y\",IF(AND('Enrollment Form'!$C569=\"ROC\",'Enrollment Form'!$DS569=\"\"),\"N\",IF(AND('Enrollment Form'!$C569=\"Enroll\",'Enrollment Form'!$B569=\"Subscriber\",'Enrollment Form'!$CQ569=\"No\",'Enrollment Form'!$DS569=\"\"),\"N\",IF(AND('Enrollment Form'!$C569=\"Enroll\",'Enrollment Form'!$B569=\"Subscriber\",'Enrollment Form'!$CQ569=\"Yes\"),\"-\",\"Y\")))))","v":""},{"$f":"IF($B562=\"N\",\"\",IF(AND('Enrollment Form'!$C569=\"ROC\",'Enrollment Form'!$DT569<>\"\"),\"Y\",IF(AND('Enrollment Form'!$C569=\"ROC\",'Enrollment Form'!$DT569=\"\"),\"N\",IF(AND('Enrollment Form'!$C569=\"Enroll\",'Enrollment Form'!$B569=\"Subscriber\",'Enrollment Form'!$CQ569=\"No\",'Enrollment Form'!$DT569=\"\"),\"N\",IF(AND('Enrollment Form'!$C569=\"Enroll\",'Enrollment Form'!$B569=\"Subscriber\",'Enrollment Form'!$CQ569=\"Yes\"),\"-\",\"Y\")))))","v":""},{"$f":"IF('Enrollment Form'!AH569=\"\",\"\",IF(ISERROR(SEARCH(\".\",'Enrollment Form'!AH569,SEARCH(\"@\",'Enrollment Form'!AH569))),\"N\",\"Y\"))","v":""},{"$f":"IF(OR($B562=\"N\",'Enrollment Form'!$G569=\"\"),\"\",IF('Enrollment Form'!$B569<>\"Subscriber\",\"-\",IF(COUNTIF('Enrollment Form'!$AS569:$AT569,\"Yes\")=2,\"N\",\"Y\")))","v":""},{"$f":"IF(OR('Enrollment Form'!$CC569=\"\",'Enrollment Form'!$CC569=\"No\"),\"-\",IF(AND('Enrollment Form'!$CC569=\"Yes\",'Enrollment Form'!$CD569=\"\"),\"N\",\"Y\"))","v":"-"},{"$f":"IF(OR('Enrollment Form'!$CE569=\"\",'Enrollment Form'!$CE569=\"No\"),\"-\",IF(AND('Enrollment Form'!$CE569=\"Yes\",'Enrollment Form'!$CF569=\"\"),\"N\",\"Y\"))","v":"-"},{"$f":"IF(OR('Enrollment Form'!$CG569=\"\",'Enrollment Form'!$CG569=\"No\"),\"-\",IF(AND('Enrollment Form'!$CG569=\"Yes\",'Enrollment Form'!$CH569=\"\"),\"N\",\"Y\"))","v":"-"},{"$f":"IF(OR('Enrollment Form'!$CG569=\"\",'Enrollment Form'!$CG569=\"No\"),\"-\",IF(AND('Enrollment Form'!$CG569=\"Yes\",'Enrollment Form'!$CI569=\"\"),\"N\",\"Y\"))","v":"-"},{"$f":"IF('Enrollment Form'!B569<>\"Subscriber\",\"-\",IF(AND('Enrollment Form'!B569=\"Subscriber\",'Enrollment Form'!C569=\"Enroll\",'Enrollment Form'!AA569=\"\"),\"N\",\"Y\"))","v":"-"},{"$f":"IF(OR('Enrollment Form'!B569=\"Subscriber\",'Enrollment Form'!B569=\"\"),\"-\",IF('Enrollment Form'!BI569=\"\",\"N\",\"Y\"))","v":"-"},{"$f":"IF('Enrollment Form'!B569<>\"Subscriber\",\"-\",IF(AND('Enrollment Form'!B569=\"Subscriber\",'Enrollment Form'!G569=\"\"),\"N\",\"Y\"))","v":"-"},{"$f":"IF('Enrollment Form'!A569=\"\",\"\",IF('Enrollment Form'!B569=\"Subscriber\",\"-\",IF(AND('Enrollment Form'!B569<>\"Subscriber\",'Enrollment Form'!G569='Enrollment Form'!H569),\"N\",\"Y\")))","v":""},0]
[570,{"$f":"IF('Enrollment Form'!$A570<>\"\",\"Y\",\"N\")","v":"N"},{"$f":"IF(AND('Enrollment Form'!$B570=\"\",'Enrollment Form'!$C570<>\"\"),\"N\",IF($B563=\"N\",\"\",\"Y\"))","v":""},{"$f":"IF(OR($B563=\"N\",'Enrollment Form'!G570=\"\"),\"\",IF('Enrollment Form'!$B570<>\"Subscriber\",\"\",IF('Enrollment Form'!$G570='Enrollment Form'!$H570,\"Y\",\"N\")))","v":""},{"$f":"IF($B563=\"N\",\"\",IF(AND(COUNTIFS('Enrollment Form'!$H$11:$H$1000,'Enrollment Form'!$H570,'Enrollment Form'!$B$11:$B$1000,'Enrollment Form'!$B570)>1,'Enrollment Form'!$H570<>\"\"),\"N\",\"Y\"))","v":""},{"$f":"IF($B563=\"N\",\"\",IF(LEN('Enrollment Form'!$Y570)=0,\"\",IF(LEN('Enrollment Form'!$Y570)<>5,\"N\",\"Y\")))","v":""},{"$f":"IF($B563=\"N\",\"\",IF(LEN('Enrollment Form'!$AD570=0),\"\",IF(LEN('Enrollment Form'!$AD570)<>5,\"N\",\"Y\")))","v":""},{"$f":"IF($B563=\"N\",\"\",IF(LEN('Enrollment Form'!$BL570=0),\"\",IF(LEN('Enrollment Form'!$BL570)<>5,\"N\",\"Y\")))","v":""},{"$f":"IF($B563=\"N\",\"\",IF(LEN('Enrollment Form'!$AE570)=0,\"\",IF(LEN('Enrollment Form'!$AE570)<>10,\"N\",\"Y\")))","v":""},{"$f":"IF($B563=\"N\",\"\",IF(LEN('Enrollment Form'!$AF570)=0,\"\",IF(LEN('Enrollment Form'!$AF570)<>10,\"N\",\"Y\")))","v":""},{"$f":"IF('Enrollment Form'!$O570<>\"Graded\",\"-\",IF(AND('Enrollment Form'!$O570=\"Graded\",'Enrollment Form'!$AO570<>\"\"),\"Y\",\"N\"))","v":"-"},{"$f":"IF($B563=\"N\",\"\",IF(OR('Enrollment Form'!$B570<>\"Subscriber\",'Enrollment Form'!$C570=\"ROC\"),\"-\",IF(AND('Enrollment Form'!$B570=\"Subscriber\",'Enrollment Form'!$C570=\"Enroll\",'Enrollment Form'!$AJ570<>\"\"),\"Y\",\"N\")))","v":""},{"$f":"IF($B563=\"N\",\"\",IF(OR('Enrollment Form'!$B570<>\"Subscriber\",'Enrollment Form'!$C570=\"ROC\"),\"-\",IF(AND('Enrollment Form'!$B570=\"Subscriber\",'Enrollment Form'!$C570=\"Enroll\",'Enrollment Form'!$AK570<>\"\"),\"Y\",\"N\")))","v":""},{"$f":"IF($B563=\"N\",\"\",IF(OR('Enrollment Form'!$B570<>\"Subscriber\",'Enrollment Form'!$C570=\"ROC\"),\"-\",IF(AND('Enrollment Form'!$B570=\"Subscriber\",'Enrollment Form'!$C570=\"Enroll\",'Enrollment Form'!$AL570<>\"\"),\"Y\",\"N\")))","v":""},{"$f":"IF($B563=\"N\",\"\",IF(OR('Enrollment Form'!$B570<>\"Subscriber\",'Enrollment Form'!$C570=\"ROC\"),\"-\",IF(AND('Enrollment Form'!$B570=\"Subscriber\",'Enrollment Form'!$C570=\"Enroll\",'Enrollment Form'!$AM570<>\"\"),\"Y\",\"N\")))","v":""},{"$f":"IF($B563=\"N\",\"\",IF(OR('Enrollment Form'!$B570<>\"Subscriber\",'Enrollment Form'!$C570=\"ROC\"),\"-\",IF(AND('Enrollment Form'!$B570=\"Subscriber\",'Enrollment Form'!$C570=\"Enroll\",'Enrollment Form'!$AN570<>\"\"),\"Y\",\"N\")))","v":""},{"$f":"IF($B563=\"N\",\"\",IF(OR('Enrollment Form'!$B570<>\"Subscriber\",'Enrollment Form'!$C570=\"ROC\"),\"-\",IF(AND('Enrollment Form'!$B570=\"Subscriber\",'Enrollment Form'!$C570=\"Enroll\",'Enrollment Form'!$AP570<>\"\"),\"Y\",\"N\")))","v":""},{"$f":"IF($B563=\"N\",\"\",IF($Q563=\"-\",\"-\",IF(AND($Q563=\"Y\",'Enrollment Form'!$AP570=\"No\"),\"-\",IF(AND($Q563=\"Y\",'Enrollment Form'!$AP570=\"Yes\",'Enrollment Form'!$AQ570<>\"\"),\"Y\",\"N\"))))","v":""},{"$f":"IF($B563=\"N\",\"\",IF(OR('Enrollment Form'!$B570<>\"Subscriber\",'Enrollment Form'!$C570=\"ROC\"),\"-\",IF(AND('Enrollment Form'!$B570=\"Subscriber\",'Enrollment Form'!$C570=\"Enroll\",'Enrollment Form'!$CO570<>\"\"),\"Y\",\"N\")))","v":""},{"$f":"IF($B563=\"N\",\"\",IF($S563=\"-\",\"-\",IF(AND($S563=\"Y\",'Enrollment Form'!$CO570=\"No\"),\"-\",IF(AND($S563=\"Y\",'Enrollment Form'!$CO570=\"Yes\",'Enrollment Form'!$CP570<>\"\"),\"Y\",\"N\"))))","v":""},{"$f":"IF(OR('Enrollment Form'!$AV570=\"Yes\",'Enrollment Form'!$AV570=\"\"),\"-\",IF(AND('Enrollment Form'!$AV570=\"No\",ISERROR(FIND(\"HMO\",VLOOKUP('Enrollment Form'!G570,'Enrollment Form'!H$11:J$1000,3,FALSE),1))=FALSE,COUNTA('Enrollment Form'!$AW570:$AZ570)=4),\"Y\",\"N\"))","v":"-"},{"$f":"IF($B563=\"N\",\"\",IF('Enrollment Form'!$B570=\"Subscriber\",\"-\",IF(COUNTA('Enrollment Form'!$BE570,'Enrollment Form'!$BG570)=2,\"Y\",\"N\")))","v":""},{"$f":"IF($B563=\"N\",\"\",IF(OR('Enrollment Form'!$AU570=\"\",'Enrollment Form'!$AU570=\"No\"),\"-\",IF(AND('Enrollment Form'!$AU570=\"Yes\",COUNTA('Enrollment Form'!$CK570)=1),\"Y\",\"N\")))","v":""},{"$f":"IF(OR('Enrollment Form'!$CK570=\"\",'Enrollment Form'!$CK570=\"No\"),\"-\",IF(COUNTA('Enrollment Form'!$CM570:$CN570)=2,\"Y\",\"N\"))","v":"-"},{"$f":"IF($B563=\"N\",\"\",IF(COUNTIF('Enrollment Form'!$CZ570:$DO570,\"Other\")=COUNTA('Enrollment Form'!$DF570,'Enrollment Form'!$DA570,'Enrollment Form'!$DK570,'Enrollment Form'!$DP570),\"Y\",\"N\"))","v":""},{"$f":"IF($B563=\"N\",\"\",IF(OR('Enrollment Form'!B570<>\"Subscriber\",'Enrollment Form'!C570=\"ROC\",COUNTIF('Enrollment Form'!AS570:AT570,\"Yes\")>=1),\"-\",IF(AND('Enrollment Form'!C570=\"Enroll\",COUNTIF('Enrollment Form'!AS570:AT570,\"No\")=2,'Enrollment Form'!AU570=\"\"),\"N\",\"Y\")))","v":""},{"$f":"IF(OR(B563=\"N\",'Enrollment Form'!B570<>\"Subscriber\",'Enrollment Form'!C570=\"ROC\",'Enrollment Form'!O570<>\"Multiple of Salary\"),\"-\",IF(COUNTA('Enrollment Form'!T570:U570)<2,\"N\",\"Y\"))","v":"-"},{"$f":"IF(B563=\"N\",\"\",IF(OR('Enrollment Form'!C570=\"ROC\",'Enrollment Form'!B570<>\"Subscriber\",'Enrollment Form'!O570=\"Waive\",'Enrollment Form'!O570=\"\"),\"-\",IF('Enrollment Form'!P570=\"\",\"N\",\"Y\")))","v":""},{"$f":"IF($B563=\"N\",\"\",IF(AND('Enrollment Form'!$C570=\"ROC\",'Enrollment Form'!$DS570<>\"\"),\"Y\",IF(AND('Enrollment Form'!$C570=\"ROC\",'Enrollment Form'!$DS570=\"\"),\"N\",IF(AND('Enrollment Form'!$C570=\"Enroll\",'Enrollment Form'!$B570=\"Subscriber\",'Enrollment Form'!$CQ570=\"No\",'Enrollment Form'!$DS570=\"\"),\"N\",IF(AND('Enrollment Form'!$C570=\"Enroll\",'Enrollment Form'!$B570=\"Subscriber\",'Enrollment Form'!$CQ570=\"Yes\"),\"-\",\"Y\")))))","v":""},{"$f":"IF($B563=\"N\",\"\",IF(AND('Enrollment Form'!$C570=\"ROC\",'Enrollment Form'!$DT570<>\"\"),\"Y\",IF(AND('Enrollment Form'!$C570=\"ROC\",'Enrollment Form'!$DT570=\"\"),\"N\",IF(AND('Enrollment Form'!$C570=\"Enroll\",'Enrollment Form'!$B570=\"Subscriber\",'Enrollment Form'!$CQ570=\"No\",'Enrollment Form'!$DT570=\"\"),\"N\",IF(AND('Enrollment Form'!$C570=\"Enroll\",'Enrollment Form'!$B570=\"Subscriber\",'Enrollment Form'!$CQ570=\"Yes\"),\"-\",\"Y\")))))","v":""},{"$f":"IF('Enrollment Form'!AH570=\"\",\"\",IF(ISERROR(SEARCH(\".\",'Enrollment Form'!AH570,SEARCH(\"@\",'Enrollment Form'!AH570))),\"N\",\"Y\"))","v":""},{"$f":"IF(OR($B563=\"N\",'Enrollment Form'!$G570=\"\"),\"\",IF('Enrollment Form'!$B570<>\"Subscriber\",\"-\",IF(COUNTIF('Enrollment Form'!$AS570:$AT570,\"Yes\")=2,\"N\",\"Y\")))","v":""},{"$f":"IF(OR('Enrollment Form'!$CC570=\"\",'Enrollment Form'!$CC570=\"No\"),\"-\",IF(AND('Enrollment Form'!$CC570=\"Yes\",'Enrollment Form'!$CD570=\"\"),\"N\",\"Y\"))","v":"-"},{"$f":"IF(OR('Enrollment Form'!$CE570=\"\",'Enrollment Form'!$CE570=\"No\"),\"-\",IF(AND('Enrollment Form'!$CE570=\"Yes\",'Enrollment Form'!$CF570=\"\"),\"N\",\"Y\"))","v":"-"},{"$f":"IF(OR('Enrollment Form'!$CG570=\"\",'Enrollment Form'!$CG570=\"No\"),\"-\",IF(AND('Enrollment Form'!$CG570=\"Yes\",'Enrollment Form'!$CH570=\"\"),\"N\",\"Y\"))","v":"-"},{"$f":"IF(OR('Enrollment Form'!$CG570=\"\",'Enrollment Form'!$CG570=\"No\"),\"-\",IF(AND('Enrollment Form'!$CG570=\"Yes\",'Enrollment Form'!$CI570=\"\"),\"N\",\"Y\"))","v":"-"},{"$f":"IF('Enrollment Form'!B570<>\"Subscriber\",\"-\",IF(AND('Enrollment Form'!B570=\"Subscriber\",'Enrollment Form'!C570=\"Enroll\",'Enrollment Form'!AA570=\"\"),\"N\",\"Y\"))","v":"-"},{"$f":"IF(OR('Enrollment Form'!B570=\"Subscriber\",'Enrollment Form'!B570=\"\"),\"-\",IF('Enrollment Form'!BI570=\"\",\"N\",\"Y\"))","v":"-"},{"$f":"IF('Enrollment Form'!B570<>\"Subscriber\",\"-\",IF(AND('Enrollment Form'!B570=\"Subscriber\",'Enrollment Form'!G570=\"\"),\"N\",\"Y\"))","v":"-"},{"$f":"IF('Enrollment Form'!A570=\"\",\"\",IF('Enrollment Form'!B570=\"Subscriber\",\"-\",IF(AND('Enrollment Form'!B570<>\"Subscriber\",'Enrollment Form'!G570='Enrollment Form'!H570),\"N\",\"Y\")))","v":""},0]
[571,{"$f":"IF('Enrollment Form'!$A571<>\"\",\"Y\",\"N\")","v":"N"},{"$f":"IF(AND('Enrollment Form'!$B571=\"\",'Enrollment Form'!$C571<>\"\"),\"N\",IF($B564=\"N\",\"\",\"Y\"))","v":""},{"$f":"IF(OR($B564=\"N\",'Enrollment Form'!G571=\"\"),\"\",IF('Enrollment Form'!$B571<>\"Subscriber\",\"\",IF('Enrollment Form'!$G571='Enrollment Form'!$H571,\"Y\",\"N\")))","v":""},{"$f":"IF($B564=\"N\",\"\",IF(AND(COUNTIFS('Enrollment Form'!$H$11:$H$1000,'Enrollment Form'!$H571,'Enrollment Form'!$B$11:$B$1000,'Enrollment Form'!$B571)>1,'Enrollment Form'!$H571<>\"\"),\"N\",\"Y\"))","v":""},{"$f":"IF($B564=\"N\",\"\",IF(LEN('Enrollment Form'!$Y571)=0,\"\",IF(LEN('Enrollment Form'!$Y571)<>5,\"N\",\"Y\")))","v":""},{"$f":"IF($B564=\"N\",\"\",IF(LEN('Enrollment Form'!$AD571=0),\"\",IF(LEN('Enrollment Form'!$AD571)<>5,\"N\",\"Y\")))","v":""},{"$f":"IF($B564=\"N\",\"\",IF(LEN('Enrollment Form'!$BL571=0),\"\",IF(LEN('Enrollment Form'!$BL571)<>5,\"N\",\"Y\")))","v":""},{"$f":"IF($B564=\"N\",\"\",IF(LEN('Enrollment Form'!$AE571)=0,\"\",IF(LEN('Enrollment Form'!$AE571)<>10,\"N\",\"Y\")))","v":""},{"$f":"IF($B564=\"N\",\"\",IF(LEN('Enrollment Form'!$AF571)=0,\"\",IF(LEN('Enrollment Form'!$AF571)<>10,\"N\",\"Y\")))","v":""},{"$f":"IF('Enrollment Form'!$O571<>\"Graded\",\"-\",IF(AND('Enrollment Form'!$O571=\"Graded\",'Enrollment Form'!$AO571<>\"\"),\"Y\",\"N\"))","v":"-"},{"$f":"IF($B564=\"N\",\"\",IF(OR('Enrollment Form'!$B571<>\"Subscriber\",'Enrollment Form'!$C571=\"ROC\"),\"-\",IF(AND('Enrollment Form'!$B571=\"Subscriber\",'Enrollment Form'!$C571=\"Enroll\",'Enrollment Form'!$AJ571<>\"\"),\"Y\",\"N\")))","v":""},{"$f":"IF($B564=\"N\",\"\",IF(OR('Enrollment Form'!$B571<>\"Subscriber\",'Enrollment Form'!$C571=\"ROC\"),\"-\",IF(AND('Enrollment Form'!$B571=\"Subscriber\",'Enrollment Form'!$C571=\"Enroll\",'Enrollment Form'!$AK571<>\"\"),\"Y\",\"N\")))","v":""},{"$f":"IF($B564=\"N\",\"\",IF(OR('Enrollment Form'!$B571<>\"Subscriber\",'Enrollment Form'!$C571=\"ROC\"),\"-\",IF(AND('Enrollment Form'!$B571=\"Subscriber\",'Enrollment Form'!$C571=\"Enroll\",'Enrollment Form'!$AL571<>\"\"),\"Y\",\"N\")))","v":""},{"$f":"IF($B564=\"N\",\"\",IF(OR('Enrollment Form'!$B571<>\"Subscriber\",'Enrollment Form'!$C571=\"ROC\"),\"-\",IF(AND('Enrollment Form'!$B571=\"Subscriber\",'Enrollment Form'!$C571=\"Enroll\",'Enrollment Form'!$AM571<>\"\"),\"Y\",\"N\")))","v":""},{"$f":"IF($B564=\"N\",\"\",IF(OR('Enrollment Form'!$B571<>\"Subscriber\",'Enrollment Form'!$C571=\"ROC\"),\"-\",IF(AND('Enrollment Form'!$B571=\"Subscriber\",'Enrollment Form'!$C571=\"Enroll\",'Enrollment Form'!$AN571<>\"\"),\"Y\",\"N\")))","v":""},{"$f":"IF($B564=\"N\",\"\",IF(OR('Enrollment Form'!$B571<>\"Subscriber\",'Enrollment Form'!$C571=\"ROC\"),\"-\",IF(AND('Enrollment Form'!$B571=\"Subscriber\",'Enrollment Form'!$C571=\"Enroll\",'Enrollment Form'!$AP571<>\"\"),\"Y\",\"N\")))","v":""},{"$f":"IF($B564=\"N\",\"\",IF($Q564=\"-\",\"-\",IF(AND($Q564=\"Y\",'Enrollment Form'!$AP571=\"No\"),\"-\",IF(AND($Q564=\"Y\",'Enrollment Form'!$AP571=\"Yes\",'Enrollment Form'!$AQ571<>\"\"),\"Y\",\"N\"))))","v":""},{"$f":"IF($B564=\"N\",\"\",IF(OR('Enrollment Form'!$B571<>\"Subscriber\",'Enrollment Form'!$C571=\"ROC\"),\"-\",IF(AND('Enrollment Form'!$B571=\"Subscriber\",'Enrollment Form'!$C571=\"Enroll\",'Enrollment Form'!$CO571<>\"\"),\"Y\",\"N\")))","v":""},{"$f":"IF($B564=\"N\",\"\",IF($S564=\"-\",\"-\",IF(AND($S564=\"Y\",'Enrollment Form'!$CO571=\"No\"),\"-\",IF(AND($S564=\"Y\",'Enrollment Form'!$CO571=\"Yes\",'Enrollment Form'!$CP571<>\"\"),\"Y\",\"N\"))))","v":""},{"$f":"IF(OR('Enrollment Form'!$AV571=\"Yes\",'Enrollment Form'!$AV571=\"\"),\"-\",IF(AND('Enrollment Form'!$AV571=\"No\",ISERROR(FIND(\"HMO\",VLOOKUP('Enrollment Form'!G571,'Enrollment Form'!H$11:J$1000,3,FALSE),1))=FALSE,COUNTA('Enrollment Form'!$AW571:$AZ571)=4),\"Y\",\"N\"))","v":"-"},{"$f":"IF($B564=\"N\",\"\",IF('Enrollment Form'!$B571=\"Subscriber\",\"-\",IF(COUNTA('Enrollment Form'!$BE571,'Enrollment Form'!$BG571)=2,\"Y\",\"N\")))","v":""},{"$f":"IF($B564=\"N\",\"\",IF(OR('Enrollment Form'!$AU571=\"\",'Enrollment Form'!$AU571=\"No\"),\"-\",IF(AND('Enrollment Form'!$AU571=\"Yes\",COUNTA('Enrollment Form'!$CK571)=1),\"Y\",\"N\")))","v":""},{"$f":"IF(OR('Enrollment Form'!$CK571=\"\",'Enrollment Form'!$CK571=\"No\"),\"-\",IF(COUNTA('Enrollment Form'!$CM571:$CN571)=2,\"Y\",\"N\"))","v":"-"},{"$f":"IF($B564=\"N\",\"\",IF(COUNTIF('Enrollment Form'!$CZ571:$DO571,\"Other\")=COUNTA('Enrollment Form'!$DF571,'Enrollment Form'!$DA571,'Enrollment Form'!$DK571,'Enrollment Form'!$DP571),\"Y\",\"N\"))","v":""},{"$f":"IF($B564=\"N\",\"\",IF(OR('Enrollment Form'!B571<>\"Subscriber\",'Enrollment Form'!C571=\"ROC\",COUNTIF('Enrollment Form'!AS571:AT571,\"Yes\")>=1),\"-\",IF(AND('Enrollment Form'!C571=\"Enroll\",COUNTIF('Enrollment Form'!AS571:AT571,\"No\")=2,'Enrollment Form'!AU571=\"\"),\"N\",\"Y\")))","v":""},{"$f":"IF(OR(B564=\"N\",'Enrollment Form'!B571<>\"Subscriber\",'Enrollment Form'!C571=\"ROC\",'Enrollment Form'!O571<>\"Multiple of Salary\"),\"-\",IF(COUNTA('Enrollment Form'!T571:U571)<2,\"N\",\"Y\"))","v":"-"},{"$f":"IF(B564=\"N\",\"\",IF(OR('Enrollment Form'!C571=\"ROC\",'Enrollment Form'!B571<>\"Subscriber\",'Enrollment Form'!O571=\"Waive\",'Enrollment Form'!O571=\"\"),\"-\",IF('Enrollment Form'!P571=\"\",\"N\",\"Y\")))","v":""},{"$f":"IF($B564=\"N\",\"\",IF(AND('Enrollment Form'!$C571=\"ROC\",'Enrollment Form'!$DS571<>\"\"),\"Y\",IF(AND('Enrollment Form'!$C571=\"ROC\",'Enrollment Form'!$DS571=\"\"),\"N\",IF(AND('Enrollment Form'!$C571=\"Enroll\",'Enrollment Form'!$B571=\"Subscriber\",'Enrollment Form'!$CQ571=\"No\",'Enrollment Form'!$DS571=\"\"),\"N\",IF(AND('Enrollment Form'!$C571=\"Enroll\",'Enrollment Form'!$B571=\"Subscriber\",'Enrollment Form'!$CQ571=\"Yes\"),\"-\",\"Y\")))))","v":""},{"$f":"IF($B564=\"N\",\"\",IF(AND('Enrollment Form'!$C571=\"ROC\",'Enrollment Form'!$DT571<>\"\"),\"Y\",IF(AND('Enrollment Form'!$C571=\"ROC\",'Enrollment Form'!$DT571=\"\"),\"N\",IF(AND('Enrollment Form'!$C571=\"Enroll\",'Enrollment Form'!$B571=\"Subscriber\",'Enrollment Form'!$CQ571=\"No\",'Enrollment Form'!$DT571=\"\"),\"N\",IF(AND('Enrollment Form'!$C571=\"Enroll\",'Enrollment Form'!$B571=\"Subscriber\",'Enrollment Form'!$CQ571=\"Yes\"),\"-\",\"Y\")))))","v":""},{"$f":"IF('Enrollment Form'!AH571=\"\",\"\",IF(ISERROR(SEARCH(\".\",'Enrollment Form'!AH571,SEARCH(\"@\",'Enrollment Form'!AH571))),\"N\",\"Y\"))","v":""},{"$f":"IF(OR($B564=\"N\",'Enrollment Form'!$G571=\"\"),\"\",IF('Enrollment Form'!$B571<>\"Subscriber\",\"-\",IF(COUNTIF('Enrollment Form'!$AS571:$AT571,\"Yes\")=2,\"N\",\"Y\")))","v":""},{"$f":"IF(OR('Enrollment Form'!$CC571=\"\",'Enrollment Form'!$CC571=\"No\"),\"-\",IF(AND('Enrollment Form'!$CC571=\"Yes\",'Enrollment Form'!$CD571=\"\"),\"N\",\"Y\"))","v":"-"},{"$f":"IF(OR('Enrollment Form'!$CE571=\"\",'Enrollment Form'!$CE571=\"No\"),\"-\",IF(AND('Enrollment Form'!$CE571=\"Yes\",'Enrollment Form'!$CF571=\"\"),\"N\",\"Y\"))","v":"-"},{"$f":"IF(OR('Enrollment Form'!$CG571=\"\",'Enrollment Form'!$CG571=\"No\"),\"-\",IF(AND('Enrollment Form'!$CG571=\"Yes\",'Enrollment Form'!$CH571=\"\"),\"N\",\"Y\"))","v":"-"},{"$f":"IF(OR('Enrollment Form'!$CG571=\"\",'Enrollment Form'!$CG571=\"No\"),\"-\",IF(AND('Enrollment Form'!$CG571=\"Yes\",'Enrollment Form'!$CI571=\"\"),\"N\",\"Y\"))","v":"-"},{"$f":"IF('Enrollment Form'!B571<>\"Subscriber\",\"-\",IF(AND('Enrollment Form'!B571=\"Subscriber\",'Enrollment Form'!C571=\"Enroll\",'Enrollment Form'!AA571=\"\"),\"N\",\"Y\"))","v":"-"},{"$f":"IF(OR('Enrollment Form'!B571=\"Subscriber\",'Enrollment Form'!B571=\"\"),\"-\",IF('Enrollment Form'!BI571=\"\",\"N\",\"Y\"))","v":"-"},{"$f":"IF('Enrollment Form'!B571<>\"Subscriber\",\"-\",IF(AND('Enrollment Form'!B571=\"Subscriber\",'Enrollment Form'!G571=\"\"),\"N\",\"Y\"))","v":"-"},{"$f":"IF('Enrollment Form'!A571=\"\",\"\",IF('Enrollment Form'!B571=\"Subscriber\",\"-\",IF(AND('Enrollment Form'!B571<>\"Subscriber\",'Enrollment Form'!G571='Enrollment Form'!H571),\"N\",\"Y\")))","v":""},0]
[572,{"$f":"IF('Enrollment Form'!$A572<>\"\",\"Y\",\"N\")","v":"N"},{"$f":"IF(AND('Enrollment Form'!$B572=\"\",'Enrollment Form'!$C572<>\"\"),\"N\",IF($B565=\"N\",\"\",\"Y\"))","v":""},{"$f":"IF(OR($B565=\"N\",'Enrollment Form'!G572=\"\"),\"\",IF('Enrollment Form'!$B572<>\"Subscriber\",\"\",IF('Enrollment Form'!$G572='Enrollment Form'!$H572,\"Y\",\"N\")))","v":""},{"$f":"IF($B565=\"N\",\"\",IF(AND(COUNTIFS('Enrollment Form'!$H$11:$H$1000,'Enrollment Form'!$H572,'Enrollment Form'!$B$11:$B$1000,'Enrollment Form'!$B572)>1,'Enrollment Form'!$H572<>\"\"),\"N\",\"Y\"))","v":""},{"$f":"IF($B565=\"N\",\"\",IF(LEN('Enrollment Form'!$Y572)=0,\"\",IF(LEN('Enrollment Form'!$Y572)<>5,\"N\",\"Y\")))","v":""},{"$f":"IF($B565=\"N\",\"\",IF(LEN('Enrollment Form'!$AD572=0),\"\",IF(LEN('Enrollment Form'!$AD572)<>5,\"N\",\"Y\")))","v":""},{"$f":"IF($B565=\"N\",\"\",IF(LEN('Enrollment Form'!$BL572=0),\"\",IF(LEN('Enrollment Form'!$BL572)<>5,\"N\",\"Y\")))","v":""},{"$f":"IF($B565=\"N\",\"\",IF(LEN('Enrollment Form'!$AE572)=0,\"\",IF(LEN('Enrollment Form'!$AE572)<>10,\"N\",\"Y\")))","v":""},{"$f":"IF($B565=\"N\",\"\",IF(LEN('Enrollment Form'!$AF572)=0,\"\",IF(LEN('Enrollment Form'!$AF572)<>10,\"N\",\"Y\")))","v":""},{"$f":"IF('Enrollment Form'!$O572<>\"Graded\",\"-\",IF(AND('Enrollment Form'!$O572=\"Graded\",'Enrollment Form'!$AO572<>\"\"),\"Y\",\"N\"))","v":"-"},{"$f":"IF($B565=\"N\",\"\",IF(OR('Enrollment Form'!$B572<>\"Subscriber\",'Enrollment Form'!$C572=\"ROC\"),\"-\",IF(AND('Enrollment Form'!$B572=\"Subscriber\",'Enrollment Form'!$C572=\"Enroll\",'Enrollment Form'!$AJ572<>\"\"),\"Y\",\"N\")))","v":""},{"$f":"IF($B565=\"N\",\"\",IF(OR('Enrollment Form'!$B572<>\"Subscriber\",'Enrollment Form'!$C572=\"ROC\"),\"-\",IF(AND('Enrollment Form'!$B572=\"Subscriber\",'Enrollment Form'!$C572=\"Enroll\",'Enrollment Form'!$AK572<>\"\"),\"Y\",\"N\")))","v":""},{"$f":"IF($B565=\"N\",\"\",IF(OR('Enrollment Form'!$B572<>\"Subscriber\",'Enrollment Form'!$C572=\"ROC\"),\"-\",IF(AND('Enrollment Form'!$B572=\"Subscriber\",'Enrollment Form'!$C572=\"Enroll\",'Enrollment Form'!$AL572<>\"\"),\"Y\",\"N\")))","v":""},{"$f":"IF($B565=\"N\",\"\",IF(OR('Enrollment Form'!$B572<>\"Subscriber\",'Enrollment Form'!$C572=\"ROC\"),\"-\",IF(AND('Enrollment Form'!$B572=\"Subscriber\",'Enrollment Form'!$C572=\"Enroll\",'Enrollment Form'!$AM572<>\"\"),\"Y\",\"N\")))","v":""},{"$f":"IF($B565=\"N\",\"\",IF(OR('Enrollment Form'!$B572<>\"Subscriber\",'Enrollment Form'!$C572=\"ROC\"),\"-\",IF(AND('Enrollment Form'!$B572=\"Subscriber\",'Enrollment Form'!$C572=\"Enroll\",'Enrollment Form'!$AN572<>\"\"),\"Y\",\"N\")))","v":""},{"$f":"IF($B565=\"N\",\"\",IF(OR('Enrollment Form'!$B572<>\"Subscriber\",'Enrollment Form'!$C572=\"ROC\"),\"-\",IF(AND('Enrollment Form'!$B572=\"Subscriber\",'Enrollment Form'!$C572=\"Enroll\",'Enrollment Form'!$AP572<>\"\"),\"Y\",\"N\")))","v":""},{"$f":"IF($B565=\"N\",\"\",IF($Q565=\"-\",\"-\",IF(AND($Q565=\"Y\",'Enrollment Form'!$AP572=\"No\"),\"-\",IF(AND($Q565=\"Y\",'Enrollment Form'!$AP572=\"Yes\",'Enrollment Form'!$AQ572<>\"\"),\"Y\",\"N\"))))","v":""},{"$f":"IF($B565=\"N\",\"\",IF(OR('Enrollment Form'!$B572<>\"Subscriber\",'Enrollment Form'!$C572=\"ROC\"),\"-\",IF(AND('Enrollment Form'!$B572=\"Subscriber\",'Enrollment Form'!$C572=\"Enroll\",'Enrollment Form'!$CO572<>\"\"),\"Y\",\"N\")))","v":""},{"$f":"IF($B565=\"N\",\"\",IF($S565=\"-\",\"-\",IF(AND($S565=\"Y\",'Enrollment Form'!$CO572=\"No\"),\"-\",IF(AND($S565=\"Y\",'Enrollment Form'!$CO572=\"Yes\",'Enrollment Form'!$CP572<>\"\"),\"Y\",\"N\"))))","v":""},{"$f":"IF(OR('Enrollment Form'!$AV572=\"Yes\",'Enrollment Form'!$AV572=\"\"),\"-\",IF(AND('Enrollment Form'!$AV572=\"No\",ISERROR(FIND(\"HMO\",VLOOKUP('Enrollment Form'!G572,'Enrollment Form'!H$11:J$1000,3,FALSE),1))=FALSE,COUNTA('Enrollment Form'!$AW572:$AZ572)=4),\"Y\",\"N\"))","v":"-"},{"$f":"IF($B565=\"N\",\"\",IF('Enrollment Form'!$B572=\"Subscriber\",\"-\",IF(COUNTA('Enrollment Form'!$BE572,'Enrollment Form'!$BG572)=2,\"Y\",\"N\")))","v":""},{"$f":"IF($B565=\"N\",\"\",IF(OR('Enrollment Form'!$AU572=\"\",'Enrollment Form'!$AU572=\"No\"),\"-\",IF(AND('Enrollment Form'!$AU572=\"Yes\",COUNTA('Enrollment Form'!$CK572)=1),\"Y\",\"N\")))","v":""},{"$f":"IF(OR('Enrollment Form'!$CK572=\"\",'Enrollment Form'!$CK572=\"No\"),\"-\",IF(COUNTA('Enrollment Form'!$CM572:$CN572)=2,\"Y\",\"N\"))","v":"-"},{"$f":"IF($B565=\"N\",\"\",IF(COUNTIF('Enrollment Form'!$CZ572:$DO572,\"Other\")=COUNTA('Enrollment Form'!$DF572,'Enrollment Form'!$DA572,'Enrollment Form'!$DK572,'Enrollment Form'!$DP572),\"Y\",\"N\"))","v":""},{"$f":"IF($B565=\"N\",\"\",IF(OR('Enrollment Form'!B572<>\"Subscriber\",'Enrollment Form'!C572=\"ROC\",COUNTIF('Enrollment Form'!AS572:AT572,\"Yes\")>=1),\"-\",IF(AND('Enrollment Form'!C572=\"Enroll\",COUNTIF('Enrollment Form'!AS572:AT572,\"No\")=2,'Enrollment Form'!AU572=\"\"),\"N\",\"Y\")))","v":""},{"$f":"IF(OR(B565=\"N\",'Enrollment Form'!B572<>\"Subscriber\",'Enrollment Form'!C572=\"ROC\",'Enrollment Form'!O572<>\"Multiple of Salary\"),\"-\",IF(COUNTA('Enrollment Form'!T572:U572)<2,\"N\",\"Y\"))","v":"-"},{"$f":"IF(B565=\"N\",\"\",IF(OR('Enrollment Form'!C572=\"ROC\",'Enrollment Form'!B572<>\"Subscriber\",'Enrollment Form'!O572=\"Waive\",'Enrollment Form'!O572=\"\"),\"-\",IF('Enrollment Form'!P572=\"\",\"N\",\"Y\")))","v":""},{"$f":"IF($B565=\"N\",\"\",IF(AND('Enrollment Form'!$C572=\"ROC\",'Enrollment Form'!$DS572<>\"\"),\"Y\",IF(AND('Enrollment Form'!$C572=\"ROC\",'Enrollment Form'!$DS572=\"\"),\"N\",IF(AND('Enrollment Form'!$C572=\"Enroll\",'Enrollment Form'!$B572=\"Subscriber\",'Enrollment Form'!$CQ572=\"No\",'Enrollment Form'!$DS572=\"\"),\"N\",IF(AND('Enrollment Form'!$C572=\"Enroll\",'Enrollment Form'!$B572=\"Subscriber\",'Enrollment Form'!$CQ572=\"Yes\"),\"-\",\"Y\")))))","v":""},{"$f":"IF($B565=\"N\",\"\",IF(AND('Enrollment Form'!$C572=\"ROC\",'Enrollment Form'!$DT572<>\"\"),\"Y\",IF(AND('Enrollment Form'!$C572=\"ROC\",'Enrollment Form'!$DT572=\"\"),\"N\",IF(AND('Enrollment Form'!$C572=\"Enroll\",'Enrollment Form'!$B572=\"Subscriber\",'Enrollment Form'!$CQ572=\"No\",'Enrollment Form'!$DT572=\"\"),\"N\",IF(AND('Enrollment Form'!$C572=\"Enroll\",'Enrollment Form'!$B572=\"Subscriber\",'Enrollment Form'!$CQ572=\"Yes\"),\"-\",\"Y\")))))","v":""},{"$f":"IF('Enrollment Form'!AH572=\"\",\"\",IF(ISERROR(SEARCH(\".\",'Enrollment Form'!AH572,SEARCH(\"@\",'Enrollment Form'!AH572))),\"N\",\"Y\"))","v":""},{"$f":"IF(OR($B565=\"N\",'Enrollment Form'!$G572=\"\"),\"\",IF('Enrollment Form'!$B572<>\"Subscriber\",\"-\",IF(COUNTIF('Enrollment Form'!$AS572:$AT572,\"Yes\")=2,\"N\",\"Y\")))","v":""},{"$f":"IF(OR('Enrollment Form'!$CC572=\"\",'Enrollment Form'!$CC572=\"No\"),\"-\",IF(AND('Enrollment Form'!$CC572=\"Yes\",'Enrollment Form'!$CD572=\"\"),\"N\",\"Y\"))","v":"-"},{"$f":"IF(OR('Enrollment Form'!$CE572=\"\",'Enrollment Form'!$CE572=\"No\"),\"-\",IF(AND('Enrollment Form'!$CE572=\"Yes\",'Enrollment Form'!$CF572=\"\"),\"N\",\"Y\"))","v":"-"},{"$f":"IF(OR('Enrollment Form'!$CG572=\"\",'Enrollment Form'!$CG572=\"No\"),\"-\",IF(AND('Enrollment Form'!$CG572=\"Yes\",'Enrollment Form'!$CH572=\"\"),\"N\",\"Y\"))","v":"-"},{"$f":"IF(OR('Enrollment Form'!$CG572=\"\",'Enrollment Form'!$CG572=\"No\"),\"-\",IF(AND('Enrollment Form'!$CG572=\"Yes\",'Enrollment Form'!$CI572=\"\"),\"N\",\"Y\"))","v":"-"},{"$f":"IF('Enrollment Form'!B572<>\"Subscriber\",\"-\",IF(AND('Enrollment Form'!B572=\"Subscriber\",'Enrollment Form'!C572=\"Enroll\",'Enrollment Form'!AA572=\"\"),\"N\",\"Y\"))","v":"-"},{"$f":"IF(OR('Enrollment Form'!B572=\"Subscriber\",'Enrollment Form'!B572=\"\"),\"-\",IF('Enrollment Form'!BI572=\"\",\"N\",\"Y\"))","v":"-"},{"$f":"IF('Enrollment Form'!B572<>\"Subscriber\",\"-\",IF(AND('Enrollment Form'!B572=\"Subscriber\",'Enrollment Form'!G572=\"\"),\"N\",\"Y\"))","v":"-"},{"$f":"IF('Enrollment Form'!A572=\"\",\"\",IF('Enrollment Form'!B572=\"Subscriber\",\"-\",IF(AND('Enrollment Form'!B572<>\"Subscriber\",'Enrollment Form'!G572='Enrollment Form'!H572),\"N\",\"Y\")))","v":""},0]
[573,{"$f":"IF('Enrollment Form'!$A573<>\"\",\"Y\",\"N\")","v":"N"},{"$f":"IF(AND('Enrollment Form'!$B573=\"\",'Enrollment Form'!$C573<>\"\"),\"N\",IF($B566=\"N\",\"\",\"Y\"))","v":""},{"$f":"IF(OR($B566=\"N\",'Enrollment Form'!G573=\"\"),\"\",IF('Enrollment Form'!$B573<>\"Subscriber\",\"\",IF('Enrollment Form'!$G573='Enrollment Form'!$H573,\"Y\",\"N\")))","v":""},{"$f":"IF($B566=\"N\",\"\",IF(AND(COUNTIFS('Enrollment Form'!$H$11:$H$1000,'Enrollment Form'!$H573,'Enrollment Form'!$B$11:$B$1000,'Enrollment Form'!$B573)>1,'Enrollment Form'!$H573<>\"\"),\"N\",\"Y\"))","v":""},{"$f":"IF($B566=\"N\",\"\",IF(LEN('Enrollment Form'!$Y573)=0,\"\",IF(LEN('Enrollment Form'!$Y573)<>5,\"N\",\"Y\")))","v":""},{"$f":"IF($B566=\"N\",\"\",IF(LEN('Enrollment Form'!$AD573=0),\"\",IF(LEN('Enrollment Form'!$AD573)<>5,\"N\",\"Y\")))","v":""},{"$f":"IF($B566=\"N\",\"\",IF(LEN('Enrollment Form'!$BL573=0),\"\",IF(LEN('Enrollment Form'!$BL573)<>5,\"N\",\"Y\")))","v":""},{"$f":"IF($B566=\"N\",\"\",IF(LEN('Enrollment Form'!$AE573)=0,\"\",IF(LEN('Enrollment Form'!$AE573)<>10,\"N\",\"Y\")))","v":""},{"$f":"IF($B566=\"N\",\"\",IF(LEN('Enrollment Form'!$AF573)=0,\"\",IF(LEN('Enrollment Form'!$AF573)<>10,\"N\",\"Y\")))","v":""},{"$f":"IF('Enrollment Form'!$O573<>\"Graded\",\"-\",IF(AND('Enrollment Form'!$O573=\"Graded\",'Enrollment Form'!$AO573<>\"\"),\"Y\",\"N\"))","v":"-"},{"$f":"IF($B566=\"N\",\"\",IF(OR('Enrollment Form'!$B573<>\"Subscriber\",'Enrollment Form'!$C573=\"ROC\"),\"-\",IF(AND('Enrollment Form'!$B573=\"Subscriber\",'Enrollment Form'!$C573=\"Enroll\",'Enrollment Form'!$AJ573<>\"\"),\"Y\",\"N\")))","v":""},{"$f":"IF($B566=\"N\",\"\",IF(OR('Enrollment Form'!$B573<>\"Subscriber\",'Enrollment Form'!$C573=\"ROC\"),\"-\",IF(AND('Enrollment Form'!$B573=\"Subscriber\",'Enrollment Form'!$C573=\"Enroll\",'Enrollment Form'!$AK573<>\"\"),\"Y\",\"N\")))","v":""},{"$f":"IF($B566=\"N\",\"\",IF(OR('Enrollment Form'!$B573<>\"Subscriber\",'Enrollment Form'!$C573=\"ROC\"),\"-\",IF(AND('Enrollment Form'!$B573=\"Subscriber\",'Enrollment Form'!$C573=\"Enroll\",'Enrollment Form'!$AL573<>\"\"),\"Y\",\"N\")))","v":""},{"$f":"IF($B566=\"N\",\"\",IF(OR('Enrollment Form'!$B573<>\"Subscriber\",'Enrollment Form'!$C573=\"ROC\"),\"-\",IF(AND('Enrollment Form'!$B573=\"Subscriber\",'Enrollment Form'!$C573=\"Enroll\",'Enrollment Form'!$AM573<>\"\"),\"Y\",\"N\")))","v":""},{"$f":"IF($B566=\"N\",\"\",IF(OR('Enrollment Form'!$B573<>\"Subscriber\",'Enrollment Form'!$C573=\"ROC\"),\"-\",IF(AND('Enrollment Form'!$B573=\"Subscriber\",'Enrollment Form'!$C573=\"Enroll\",'Enrollment Form'!$AN573<>\"\"),\"Y\",\"N\")))","v":""},{"$f":"IF($B566=\"N\",\"\",IF(OR('Enrollment Form'!$B573<>\"Subscriber\",'Enrollment Form'!$C573=\"ROC\"),\"-\",IF(AND('Enrollment Form'!$B573=\"Subscriber\",'Enrollment Form'!$C573=\"Enroll\",'Enrollment Form'!$AP573<>\"\"),\"Y\",\"N\")))","v":""},{"$f":"IF($B566=\"N\",\"\",IF($Q566=\"-\",\"-\",IF(AND($Q566=\"Y\",'Enrollment Form'!$AP573=\"No\"),\"-\",IF(AND($Q566=\"Y\",'Enrollment Form'!$AP573=\"Yes\",'Enrollment Form'!$AQ573<>\"\"),\"Y\",\"N\"))))","v":""},{"$f":"IF($B566=\"N\",\"\",IF(OR('Enrollment Form'!$B573<>\"Subscriber\",'Enrollment Form'!$C573=\"ROC\"),\"-\",IF(AND('Enrollment Form'!$B573=\"Subscriber\",'Enrollment Form'!$C573=\"Enroll\",'Enrollment Form'!$CO573<>\"\"),\"Y\",\"N\")))","v":""},{"$f":"IF($B566=\"N\",\"\",IF($S566=\"-\",\"-\",IF(AND($S566=\"Y\",'Enrollment Form'!$CO573=\"No\"),\"-\",IF(AND($S566=\"Y\",'Enrollment Form'!$CO573=\"Yes\",'Enrollment Form'!$CP573<>\"\"),\"Y\",\"N\"))))","v":""},{"$f":"IF(OR('Enrollment Form'!$AV573=\"Yes\",'Enrollment Form'!$AV573=\"\"),\"-\",IF(AND('Enrollment Form'!$AV573=\"No\",ISERROR(FIND(\"HMO\",VLOOKUP('Enrollment Form'!G573,'Enrollment Form'!H$11:J$1000,3,FALSE),1))=FALSE,COUNTA('Enrollment Form'!$AW573:$AZ573)=4),\"Y\",\"N\"))","v":"-"},{"$f":"IF($B566=\"N\",\"\",IF('Enrollment Form'!$B573=\"Subscriber\",\"-\",IF(COUNTA('Enrollment Form'!$BE573,'Enrollment Form'!$BG573)=2,\"Y\",\"N\")))","v":""},{"$f":"IF($B566=\"N\",\"\",IF(OR('Enrollment Form'!$AU573=\"\",'Enrollment Form'!$AU573=\"No\"),\"-\",IF(AND('Enrollment Form'!$AU573=\"Yes\",COUNTA('Enrollment Form'!$CK573)=1),\"Y\",\"N\")))","v":""},{"$f":"IF(OR('Enrollment Form'!$CK573=\"\",'Enrollment Form'!$CK573=\"No\"),\"-\",IF(COUNTA('Enrollment Form'!$CM573:$CN573)=2,\"Y\",\"N\"))","v":"-"},{"$f":"IF($B566=\"N\",\"\",IF(COUNTIF('Enrollment Form'!$CZ573:$DO573,\"Other\")=COUNTA('Enrollment Form'!$DF573,'Enrollment Form'!$DA573,'Enrollment Form'!$DK573,'Enrollment Form'!$DP573),\"Y\",\"N\"))","v":""},{"$f":"IF($B566=\"N\",\"\",IF(OR('Enrollment Form'!B573<>\"Subscriber\",'Enrollment Form'!C573=\"ROC\",COUNTIF('Enrollment Form'!AS573:AT573,\"Yes\")>=1),\"-\",IF(AND('Enrollment Form'!C573=\"Enroll\",COUNTIF('Enrollment Form'!AS573:AT573,\"No\")=2,'Enrollment Form'!AU573=\"\"),\"N\",\"Y\")))","v":""},{"$f":"IF(OR(B566=\"N\",'Enrollment Form'!B573<>\"Subscriber\",'Enrollment Form'!C573=\"ROC\",'Enrollment Form'!O573<>\"Multiple of Salary\"),\"-\",IF(COUNTA('Enrollment Form'!T573:U573)<2,\"N\",\"Y\"))","v":"-"},{"$f":"IF(B566=\"N\",\"\",IF(OR('Enrollment Form'!C573=\"ROC\",'Enrollment Form'!B573<>\"Subscriber\",'Enrollment Form'!O573=\"Waive\",'Enrollment Form'!O573=\"\"),\"-\",IF('Enrollment Form'!P573=\"\",\"N\",\"Y\")))","v":""},{"$f":"IF($B566=\"N\",\"\",IF(AND('Enrollment Form'!$C573=\"ROC\",'Enrollment Form'!$DS573<>\"\"),\"Y\",IF(AND('Enrollment Form'!$C573=\"ROC\",'Enrollment Form'!$DS573=\"\"),\"N\",IF(AND('Enrollment Form'!$C573=\"Enroll\",'Enrollment Form'!$B573=\"Subscriber\",'Enrollment Form'!$CQ573=\"No\",'Enrollment Form'!$DS573=\"\"),\"N\",IF(AND('Enrollment Form'!$C573=\"Enroll\",'Enrollment Form'!$B573=\"Subscriber\",'Enrollment Form'!$CQ573=\"Yes\"),\"-\",\"Y\")))))","v":""},{"$f":"IF($B566=\"N\",\"\",IF(AND('Enrollment Form'!$C573=\"ROC\",'Enrollment Form'!$DT573<>\"\"),\"Y\",IF(AND('Enrollment Form'!$C573=\"ROC\",'Enrollment Form'!$DT573=\"\"),\"N\",IF(AND('Enrollment Form'!$C573=\"Enroll\",'Enrollment Form'!$B573=\"Subscriber\",'Enrollment Form'!$CQ573=\"No\",'Enrollment Form'!$DT573=\"\"),\"N\",IF(AND('Enrollment Form'!$C573=\"Enroll\",'Enrollment Form'!$B573=\"Subscriber\",'Enrollment Form'!$CQ573=\"Yes\"),\"-\",\"Y\")))))","v":""},{"$f":"IF('Enrollment Form'!AH573=\"\",\"\",IF(ISERROR(SEARCH(\".\",'Enrollment Form'!AH573,SEARCH(\"@\",'Enrollment Form'!AH573))),\"N\",\"Y\"))","v":""},{"$f":"IF(OR($B566=\"N\",'Enrollment Form'!$G573=\"\"),\"\",IF('Enrollment Form'!$B573<>\"Subscriber\",\"-\",IF(COUNTIF('Enrollment Form'!$AS573:$AT573,\"Yes\")=2,\"N\",\"Y\")))","v":""},{"$f":"IF(OR('Enrollment Form'!$CC573=\"\",'Enrollment Form'!$CC573=\"No\"),\"-\",IF(AND('Enrollment Form'!$CC573=\"Yes\",'Enrollment Form'!$CD573=\"\"),\"N\",\"Y\"))","v":"-"},{"$f":"IF(OR('Enrollment Form'!$CE573=\"\",'Enrollment Form'!$CE573=\"No\"),\"-\",IF(AND('Enrollment Form'!$CE573=\"Yes\",'Enrollment Form'!$CF573=\"\"),\"N\",\"Y\"))","v":"-"},{"$f":"IF(OR('Enrollment Form'!$CG573=\"\",'Enrollment Form'!$CG573=\"No\"),\"-\",IF(AND('Enrollment Form'!$CG573=\"Yes\",'Enrollment Form'!$CH573=\"\"),\"N\",\"Y\"))","v":"-"},{"$f":"IF(OR('Enrollment Form'!$CG573=\"\",'Enrollment Form'!$CG573=\"No\"),\"-\",IF(AND('Enrollment Form'!$CG573=\"Yes\",'Enrollment Form'!$CI573=\"\"),\"N\",\"Y\"))","v":"-"},{"$f":"IF('Enrollment Form'!B573<>\"Subscriber\",\"-\",IF(AND('Enrollment Form'!B573=\"Subscriber\",'Enrollment Form'!C573=\"Enroll\",'Enrollment Form'!AA573=\"\"),\"N\",\"Y\"))","v":"-"},{"$f":"IF(OR('Enrollment Form'!B573=\"Subscriber\",'Enrollment Form'!B573=\"\"),\"-\",IF('Enrollment Form'!BI573=\"\",\"N\",\"Y\"))","v":"-"},{"$f":"IF('Enrollment Form'!B573<>\"Subscriber\",\"-\",IF(AND('Enrollment Form'!B573=\"Subscriber\",'Enrollment Form'!G573=\"\"),\"N\",\"Y\"))","v":"-"},{"$f":"IF('Enrollment Form'!A573=\"\",\"\",IF('Enrollment Form'!B573=\"Subscriber\",\"-\",IF(AND('Enrollment Form'!B573<>\"Subscriber\",'Enrollment Form'!G573='Enrollment Form'!H573),\"N\",\"Y\")))","v":""},0]
[574,{"$f":"IF('Enrollment Form'!$A574<>\"\",\"Y\",\"N\")","v":"N"},{"$f":"IF(AND('Enrollment Form'!$B574=\"\",'Enrollment Form'!$C574<>\"\"),\"N\",IF($B567=\"N\",\"\",\"Y\"))","v":""},{"$f":"IF(OR($B567=\"N\",'Enrollment Form'!G574=\"\"),\"\",IF('Enrollment Form'!$B574<>\"Subscriber\",\"\",IF('Enrollment Form'!$G574='Enrollment Form'!$H574,\"Y\",\"N\")))","v":""},{"$f":"IF($B567=\"N\",\"\",IF(AND(COUNTIFS('Enrollment Form'!$H$11:$H$1000,'Enrollment Form'!$H574,'Enrollment Form'!$B$11:$B$1000,'Enrollment Form'!$B574)>1,'Enrollment Form'!$H574<>\"\"),\"N\",\"Y\"))","v":""},{"$f":"IF($B567=\"N\",\"\",IF(LEN('Enrollment Form'!$Y574)=0,\"\",IF(LEN('Enrollment Form'!$Y574)<>5,\"N\",\"Y\")))","v":""},{"$f":"IF($B567=\"N\",\"\",IF(LEN('Enrollment Form'!$AD574=0),\"\",IF(LEN('Enrollment Form'!$AD574)<>5,\"N\",\"Y\")))","v":""},{"$f":"IF($B567=\"N\",\"\",IF(LEN('Enrollment Form'!$BL574=0),\"\",IF(LEN('Enrollment Form'!$BL574)<>5,\"N\",\"Y\")))","v":""},{"$f":"IF($B567=\"N\",\"\",IF(LEN('Enrollment Form'!$AE574)=0,\"\",IF(LEN('Enrollment Form'!$AE574)<>10,\"N\",\"Y\")))","v":""},{"$f":"IF($B567=\"N\",\"\",IF(LEN('Enrollment Form'!$AF574)=0,\"\",IF(LEN('Enrollment Form'!$AF574)<>10,\"N\",\"Y\")))","v":""},{"$f":"IF('Enrollment Form'!$O574<>\"Graded\",\"-\",IF(AND('Enrollment Form'!$O574=\"Graded\",'Enrollment Form'!$AO574<>\"\"),\"Y\",\"N\"))","v":"-"},{"$f":"IF($B567=\"N\",\"\",IF(OR('Enrollment Form'!$B574<>\"Subscriber\",'Enrollment Form'!$C574=\"ROC\"),\"-\",IF(AND('Enrollment Form'!$B574=\"Subscriber\",'Enrollment Form'!$C574=\"Enroll\",'Enrollment Form'!$AJ574<>\"\"),\"Y\",\"N\")))","v":""},{"$f":"IF($B567=\"N\",\"\",IF(OR('Enrollment Form'!$B574<>\"Subscriber\",'Enrollment Form'!$C574=\"ROC\"),\"-\",IF(AND('Enrollment Form'!$B574=\"Subscriber\",'Enrollment Form'!$C574=\"Enroll\",'Enrollment Form'!$AK574<>\"\"),\"Y\",\"N\")))","v":""},{"$f":"IF($B567=\"N\",\"\",IF(OR('Enrollment Form'!$B574<>\"Subscriber\",'Enrollment Form'!$C574=\"ROC\"),\"-\",IF(AND('Enrollment Form'!$B574=\"Subscriber\",'Enrollment Form'!$C574=\"Enroll\",'Enrollment Form'!$AL574<>\"\"),\"Y\",\"N\")))","v":""},{"$f":"IF($B567=\"N\",\"\",IF(OR('Enrollment Form'!$B574<>\"Subscriber\",'Enrollment Form'!$C574=\"ROC\"),\"-\",IF(AND('Enrollment Form'!$B574=\"Subscriber\",'Enrollment Form'!$C574=\"Enroll\",'Enrollment Form'!$AM574<>\"\"),\"Y\",\"N\")))","v":""},{"$f":"IF($B567=\"N\",\"\",IF(OR('Enrollment Form'!$B574<>\"Subscriber\",'Enrollment Form'!$C574=\"ROC\"),\"-\",IF(AND('Enrollment Form'!$B574=\"Subscriber\",'Enrollment Form'!$C574=\"Enroll\",'Enrollment Form'!$AN574<>\"\"),\"Y\",\"N\")))","v":""},{"$f":"IF($B567=\"N\",\"\",IF(OR('Enrollment Form'!$B574<>\"Subscriber\",'Enrollment Form'!$C574=\"ROC\"),\"-\",IF(AND('Enrollment Form'!$B574=\"Subscriber\",'Enrollment Form'!$C574=\"Enroll\",'Enrollment Form'!$AP574<>\"\"),\"Y\",\"N\")))","v":""},{"$f":"IF($B567=\"N\",\"\",IF($Q567=\"-\",\"-\",IF(AND($Q567=\"Y\",'Enrollment Form'!$AP574=\"No\"),\"-\",IF(AND($Q567=\"Y\",'Enrollment Form'!$AP574=\"Yes\",'Enrollment Form'!$AQ574<>\"\"),\"Y\",\"N\"))))","v":""},{"$f":"IF($B567=\"N\",\"\",IF(OR('Enrollment Form'!$B574<>\"Subscriber\",'Enrollment Form'!$C574=\"ROC\"),\"-\",IF(AND('Enrollment Form'!$B574=\"Subscriber\",'Enrollment Form'!$C574=\"Enroll\",'Enrollment Form'!$CO574<>\"\"),\"Y\",\"N\")))","v":""},{"$f":"IF($B567=\"N\",\"\",IF($S567=\"-\",\"-\",IF(AND($S567=\"Y\",'Enrollment Form'!$CO574=\"No\"),\"-\",IF(AND($S567=\"Y\",'Enrollment Form'!$CO574=\"Yes\",'Enrollment Form'!$CP574<>\"\"),\"Y\",\"N\"))))","v":""},{"$f":"IF(OR('Enrollment Form'!$AV574=\"Yes\",'Enrollment Form'!$AV574=\"\"),\"-\",IF(AND('Enrollment Form'!$AV574=\"No\",ISERROR(FIND(\"HMO\",VLOOKUP('Enrollment Form'!G574,'Enrollment Form'!H$11:J$1000,3,FALSE),1))=FALSE,COUNTA('Enrollment Form'!$AW574:$AZ574)=4),\"Y\",\"N\"))","v":"-"},{"$f":"IF($B567=\"N\",\"\",IF('Enrollment Form'!$B574=\"Subscriber\",\"-\",IF(COUNTA('Enrollment Form'!$BE574,'Enrollment Form'!$BG574)=2,\"Y\",\"N\")))","v":""},{"$f":"IF($B567=\"N\",\"\",IF(OR('Enrollment Form'!$AU574=\"\",'Enrollment Form'!$AU574=\"No\"),\"-\",IF(AND('Enrollment Form'!$AU574=\"Yes\",COUNTA('Enrollment Form'!$CK574)=1),\"Y\",\"N\")))","v":""},{"$f":"IF(OR('Enrollment Form'!$CK574=\"\",'Enrollment Form'!$CK574=\"No\"),\"-\",IF(COUNTA('Enrollment Form'!$CM574:$CN574)=2,\"Y\",\"N\"))","v":"-"},{"$f":"IF($B567=\"N\",\"\",IF(COUNTIF('Enrollment Form'!$CZ574:$DO574,\"Other\")=COUNTA('Enrollment Form'!$DF574,'Enrollment Form'!$DA574,'Enrollment Form'!$DK574,'Enrollment Form'!$DP574),\"Y\",\"N\"))","v":""},{"$f":"IF($B567=\"N\",\"\",IF(OR('Enrollment Form'!B574<>\"Subscriber\",'Enrollment Form'!C574=\"ROC\",COUNTIF('Enrollment Form'!AS574:AT574,\"Yes\")>=1),\"-\",IF(AND('Enrollment Form'!C574=\"Enroll\",COUNTIF('Enrollment Form'!AS574:AT574,\"No\")=2,'Enrollment Form'!AU574=\"\"),\"N\",\"Y\")))","v":""},{"$f":"IF(OR(B567=\"N\",'Enrollment Form'!B574<>\"Subscriber\",'Enrollment Form'!C574=\"ROC\",'Enrollment Form'!O574<>\"Multiple of Salary\"),\"-\",IF(COUNTA('Enrollment Form'!T574:U574)<2,\"N\",\"Y\"))","v":"-"},{"$f":"IF(B567=\"N\",\"\",IF(OR('Enrollment Form'!C574=\"ROC\",'Enrollment Form'!B574<>\"Subscriber\",'Enrollment Form'!O574=\"Waive\",'Enrollment Form'!O574=\"\"),\"-\",IF('Enrollment Form'!P574=\"\",\"N\",\"Y\")))","v":""},{"$f":"IF($B567=\"N\",\"\",IF(AND('Enrollment Form'!$C574=\"ROC\",'Enrollment Form'!$DS574<>\"\"),\"Y\",IF(AND('Enrollment Form'!$C574=\"ROC\",'Enrollment Form'!$DS574=\"\"),\"N\",IF(AND('Enrollment Form'!$C574=\"Enroll\",'Enrollment Form'!$B574=\"Subscriber\",'Enrollment Form'!$CQ574=\"No\",'Enrollment Form'!$DS574=\"\"),\"N\",IF(AND('Enrollment Form'!$C574=\"Enroll\",'Enrollment Form'!$B574=\"Subscriber\",'Enrollment Form'!$CQ574=\"Yes\"),\"-\",\"Y\")))))","v":""},{"$f":"IF($B567=\"N\",\"\",IF(AND('Enrollment Form'!$C574=\"ROC\",'Enrollment Form'!$DT574<>\"\"),\"Y\",IF(AND('Enrollment Form'!$C574=\"ROC\",'Enrollment Form'!$DT574=\"\"),\"N\",IF(AND('Enrollment Form'!$C574=\"Enroll\",'Enrollment Form'!$B574=\"Subscriber\",'Enrollment Form'!$CQ574=\"No\",'Enrollment Form'!$DT574=\"\"),\"N\",IF(AND('Enrollment Form'!$C574=\"Enroll\",'Enrollment Form'!$B574=\"Subscriber\",'Enrollment Form'!$CQ574=\"Yes\"),\"-\",\"Y\")))))","v":""},{"$f":"IF('Enrollment Form'!AH574=\"\",\"\",IF(ISERROR(SEARCH(\".\",'Enrollment Form'!AH574,SEARCH(\"@\",'Enrollment Form'!AH574))),\"N\",\"Y\"))","v":""},{"$f":"IF(OR($B567=\"N\",'Enrollment Form'!$G574=\"\"),\"\",IF('Enrollment Form'!$B574<>\"Subscriber\",\"-\",IF(COUNTIF('Enrollment Form'!$AS574:$AT574,\"Yes\")=2,\"N\",\"Y\")))","v":""},{"$f":"IF(OR('Enrollment Form'!$CC574=\"\",'Enrollment Form'!$CC574=\"No\"),\"-\",IF(AND('Enrollment Form'!$CC574=\"Yes\",'Enrollment Form'!$CD574=\"\"),\"N\",\"Y\"))","v":"-"},{"$f":"IF(OR('Enrollment Form'!$CE574=\"\",'Enrollment Form'!$CE574=\"No\"),\"-\",IF(AND('Enrollment Form'!$CE574=\"Yes\",'Enrollment Form'!$CF574=\"\"),\"N\",\"Y\"))","v":"-"},{"$f":"IF(OR('Enrollment Form'!$CG574=\"\",'Enrollment Form'!$CG574=\"No\"),\"-\",IF(AND('Enrollment Form'!$CG574=\"Yes\",'Enrollment Form'!$CH574=\"\"),\"N\",\"Y\"))","v":"-"},{"$f":"IF(OR('Enrollment Form'!$CG574=\"\",'Enrollment Form'!$CG574=\"No\"),\"-\",IF(AND('Enrollment Form'!$CG574=\"Yes\",'Enrollment Form'!$CI574=\"\"),\"N\",\"Y\"))","v":"-"},{"$f":"IF('Enrollment Form'!B574<>\"Subscriber\",\"-\",IF(AND('Enrollment Form'!B574=\"Subscriber\",'Enrollment Form'!C574=\"Enroll\",'Enrollment Form'!AA574=\"\"),\"N\",\"Y\"))","v":"-"},{"$f":"IF(OR('Enrollment Form'!B574=\"Subscriber\",'Enrollment Form'!B574=\"\"),\"-\",IF('Enrollment Form'!BI574=\"\",\"N\",\"Y\"))","v":"-"},{"$f":"IF('Enrollment Form'!B574<>\"Subscriber\",\"-\",IF(AND('Enrollment Form'!B574=\"Subscriber\",'Enrollment Form'!G574=\"\"),\"N\",\"Y\"))","v":"-"},{"$f":"IF('Enrollment Form'!A574=\"\",\"\",IF('Enrollment Form'!B574=\"Subscriber\",\"-\",IF(AND('Enrollment Form'!B574<>\"Subscriber\",'Enrollment Form'!G574='Enrollment Form'!H574),\"N\",\"Y\")))","v":""},0]
[575,{"$f":"IF('Enrollment Form'!$A575<>\"\",\"Y\",\"N\")","v":"N"},{"$f":"IF(AND('Enrollment Form'!$B575=\"\",'Enrollment Form'!$C575<>\"\"),\"N\",IF($B568=\"N\",\"\",\"Y\"))","v":""},{"$f":"IF(OR($B568=\"N\",'Enrollment Form'!G575=\"\"),\"\",IF('Enrollment Form'!$B575<>\"Subscriber\",\"\",IF('Enrollment Form'!$G575='Enrollment Form'!$H575,\"Y\",\"N\")))","v":""},{"$f":"IF($B568=\"N\",\"\",IF(AND(COUNTIFS('Enrollment Form'!$H$11:$H$1000,'Enrollment Form'!$H575,'Enrollment Form'!$B$11:$B$1000,'Enrollment Form'!$B575)>1,'Enrollment Form'!$H575<>\"\"),\"N\",\"Y\"))","v":""},{"$f":"IF($B568=\"N\",\"\",IF(LEN('Enrollment Form'!$Y575)=0,\"\",IF(LEN('Enrollment Form'!$Y575)<>5,\"N\",\"Y\")))","v":""},{"$f":"IF($B568=\"N\",\"\",IF(LEN('Enrollment Form'!$AD575=0),\"\",IF(LEN('Enrollment Form'!$AD575)<>5,\"N\",\"Y\")))","v":""},{"$f":"IF($B568=\"N\",\"\",IF(LEN('Enrollment Form'!$BL575=0),\"\",IF(LEN('Enrollment Form'!$BL575)<>5,\"N\",\"Y\")))","v":""},{"$f":"IF($B568=\"N\",\"\",IF(LEN('Enrollment Form'!$AE575)=0,\"\",IF(LEN('Enrollment Form'!$AE575)<>10,\"N\",\"Y\")))","v":""},{"$f":"IF($B568=\"N\",\"\",IF(LEN('Enrollment Form'!$AF575)=0,\"\",IF(LEN('Enrollment Form'!$AF575)<>10,\"N\",\"Y\")))","v":""},{"$f":"IF('Enrollment Form'!$O575<>\"Graded\",\"-\",IF(AND('Enrollment Form'!$O575=\"Graded\",'Enrollment Form'!$AO575<>\"\"),\"Y\",\"N\"))","v":"-"},{"$f":"IF($B568=\"N\",\"\",IF(OR('Enrollment Form'!$B575<>\"Subscriber\",'Enrollment Form'!$C575=\"ROC\"),\"-\",IF(AND('Enrollment Form'!$B575=\"Subscriber\",'Enrollment Form'!$C575=\"Enroll\",'Enrollment Form'!$AJ575<>\"\"),\"Y\",\"N\")))","v":""},{"$f":"IF($B568=\"N\",\"\",IF(OR('Enrollment Form'!$B575<>\"Subscriber\",'Enrollment Form'!$C575=\"ROC\"),\"-\",IF(AND('Enrollment Form'!$B575=\"Subscriber\",'Enrollment Form'!$C575=\"Enroll\",'Enrollment Form'!$AK575<>\"\"),\"Y\",\"N\")))","v":""},{"$f":"IF($B568=\"N\",\"\",IF(OR('Enrollment Form'!$B575<>\"Subscriber\",'Enrollment Form'!$C575=\"ROC\"),\"-\",IF(AND('Enrollment Form'!$B575=\"Subscriber\",'Enrollment Form'!$C575=\"Enroll\",'Enrollment Form'!$AL575<>\"\"),\"Y\",\"N\")))","v":""},{"$f":"IF($B568=\"N\",\"\",IF(OR('Enrollment Form'!$B575<>\"Subscriber\",'Enrollment Form'!$C575=\"ROC\"),\"-\",IF(AND('Enrollment Form'!$B575=\"Subscriber\",'Enrollment Form'!$C575=\"Enroll\",'Enrollment Form'!$AM575<>\"\"),\"Y\",\"N\")))","v":""},{"$f":"IF($B568=\"N\",\"\",IF(OR('Enrollment Form'!$B575<>\"Subscriber\",'Enrollment Form'!$C575=\"ROC\"),\"-\",IF(AND('Enrollment Form'!$B575=\"Subscriber\",'Enrollment Form'!$C575=\"Enroll\",'Enrollment Form'!$AN575<>\"\"),\"Y\",\"N\")))","v":""},{"$f":"IF($B568=\"N\",\"\",IF(OR('Enrollment Form'!$B575<>\"Subscriber\",'Enrollment Form'!$C575=\"ROC\"),\"-\",IF(AND('Enrollment Form'!$B575=\"Subscriber\",'Enrollment Form'!$C575=\"Enroll\",'Enrollment Form'!$AP575<>\"\"),\"Y\",\"N\")))","v":""},{"$f":"IF($B568=\"N\",\"\",IF($Q568=\"-\",\"-\",IF(AND($Q568=\"Y\",'Enrollment Form'!$AP575=\"No\"),\"-\",IF(AND($Q568=\"Y\",'Enrollment Form'!$AP575=\"Yes\",'Enrollment Form'!$AQ575<>\"\"),\"Y\",\"N\"))))","v":""},{"$f":"IF($B568=\"N\",\"\",IF(OR('Enrollment Form'!$B575<>\"Subscriber\",'Enrollment Form'!$C575=\"ROC\"),\"-\",IF(AND('Enrollment Form'!$B575=\"Subscriber\",'Enrollment Form'!$C575=\"Enroll\",'Enrollment Form'!$CO575<>\"\"),\"Y\",\"N\")))","v":""},{"$f":"IF($B568=\"N\",\"\",IF($S568=\"-\",\"-\",IF(AND($S568=\"Y\",'Enrollment Form'!$CO575=\"No\"),\"-\",IF(AND($S568=\"Y\",'Enrollment Form'!$CO575=\"Yes\",'Enrollment Form'!$CP575<>\"\"),\"Y\",\"N\"))))","v":""},{"$f":"IF(OR('Enrollment Form'!$AV575=\"Yes\",'Enrollment Form'!$AV575=\"\"),\"-\",IF(AND('Enrollment Form'!$AV575=\"No\",ISERROR(FIND(\"HMO\",VLOOKUP('Enrollment Form'!G575,'Enrollment Form'!H$11:J$1000,3,FALSE),1))=FALSE,COUNTA('Enrollment Form'!$AW575:$AZ575)=4),\"Y\",\"N\"))","v":"-"},{"$f":"IF($B568=\"N\",\"\",IF('Enrollment Form'!$B575=\"Subscriber\",\"-\",IF(COUNTA('Enrollment Form'!$BE575,'Enrollment Form'!$BG575)=2,\"Y\",\"N\")))","v":""},{"$f":"IF($B568=\"N\",\"\",IF(OR('Enrollment Form'!$AU575=\"\",'Enrollment Form'!$AU575=\"No\"),\"-\",IF(AND('Enrollment Form'!$AU575=\"Yes\",COUNTA('Enrollment Form'!$CK575)=1),\"Y\",\"N\")))","v":""},{"$f":"IF(OR('Enrollment Form'!$CK575=\"\",'Enrollment Form'!$CK575=\"No\"),\"-\",IF(COUNTA('Enrollment Form'!$CM575:$CN575)=2,\"Y\",\"N\"))","v":"-"},{"$f":"IF($B568=\"N\",\"\",IF(COUNTIF('Enrollment Form'!$CZ575:$DO575,\"Other\")=COUNTA('Enrollment Form'!$DF575,'Enrollment Form'!$DA575,'Enrollment Form'!$DK575,'Enrollment Form'!$DP575),\"Y\",\"N\"))","v":""},{"$f":"IF($B568=\"N\",\"\",IF(OR('Enrollment Form'!B575<>\"Subscriber\",'Enrollment Form'!C575=\"ROC\",COUNTIF('Enrollment Form'!AS575:AT575,\"Yes\")>=1),\"-\",IF(AND('Enrollment Form'!C575=\"Enroll\",COUNTIF('Enrollment Form'!AS575:AT575,\"No\")=2,'Enrollment Form'!AU575=\"\"),\"N\",\"Y\")))","v":""},{"$f":"IF(OR(B568=\"N\",'Enrollment Form'!B575<>\"Subscriber\",'Enrollment Form'!C575=\"ROC\",'Enrollment Form'!O575<>\"Multiple of Salary\"),\"-\",IF(COUNTA('Enrollment Form'!T575:U575)<2,\"N\",\"Y\"))","v":"-"},{"$f":"IF(B568=\"N\",\"\",IF(OR('Enrollment Form'!C575=\"ROC\",'Enrollment Form'!B575<>\"Subscriber\",'Enrollment Form'!O575=\"Waive\",'Enrollment Form'!O575=\"\"),\"-\",IF('Enrollment Form'!P575=\"\",\"N\",\"Y\")))","v":""},{"$f":"IF($B568=\"N\",\"\",IF(AND('Enrollment Form'!$C575=\"ROC\",'Enrollment Form'!$DS575<>\"\"),\"Y\",IF(AND('Enrollment Form'!$C575=\"ROC\",'Enrollment Form'!$DS575=\"\"),\"N\",IF(AND('Enrollment Form'!$C575=\"Enroll\",'Enrollment Form'!$B575=\"Subscriber\",'Enrollment Form'!$CQ575=\"No\",'Enrollment Form'!$DS575=\"\"),\"N\",IF(AND('Enrollment Form'!$C575=\"Enroll\",'Enrollment Form'!$B575=\"Subscriber\",'Enrollment Form'!$CQ575=\"Yes\"),\"-\",\"Y\")))))","v":""},{"$f":"IF($B568=\"N\",\"\",IF(AND('Enrollment Form'!$C575=\"ROC\",'Enrollment Form'!$DT575<>\"\"),\"Y\",IF(AND('Enrollment Form'!$C575=\"ROC\",'Enrollment Form'!$DT575=\"\"),\"N\",IF(AND('Enrollment Form'!$C575=\"Enroll\",'Enrollment Form'!$B575=\"Subscriber\",'Enrollment Form'!$CQ575=\"No\",'Enrollment Form'!$DT575=\"\"),\"N\",IF(AND('Enrollment Form'!$C575=\"Enroll\",'Enrollment Form'!$B575=\"Subscriber\",'Enrollment Form'!$CQ575=\"Yes\"),\"-\",\"Y\")))))","v":""},{"$f":"IF('Enrollment Form'!AH575=\"\",\"\",IF(ISERROR(SEARCH(\".\",'Enrollment Form'!AH575,SEARCH(\"@\",'Enrollment Form'!AH575))),\"N\",\"Y\"))","v":""},{"$f":"IF(OR($B568=\"N\",'Enrollment Form'!$G575=\"\"),\"\",IF('Enrollment Form'!$B575<>\"Subscriber\",\"-\",IF(COUNTIF('Enrollment Form'!$AS575:$AT575,\"Yes\")=2,\"N\",\"Y\")))","v":""},{"$f":"IF(OR('Enrollment Form'!$CC575=\"\",'Enrollment Form'!$CC575=\"No\"),\"-\",IF(AND('Enrollment Form'!$CC575=\"Yes\",'Enrollment Form'!$CD575=\"\"),\"N\",\"Y\"))","v":"-"},{"$f":"IF(OR('Enrollment Form'!$CE575=\"\",'Enrollment Form'!$CE575=\"No\"),\"-\",IF(AND('Enrollment Form'!$CE575=\"Yes\",'Enrollment Form'!$CF575=\"\"),\"N\",\"Y\"))","v":"-"},{"$f":"IF(OR('Enrollment Form'!$CG575=\"\",'Enrollment Form'!$CG575=\"No\"),\"-\",IF(AND('Enrollment Form'!$CG575=\"Yes\",'Enrollment Form'!$CH575=\"\"),\"N\",\"Y\"))","v":"-"},{"$f":"IF(OR('Enrollment Form'!$CG575=\"\",'Enrollment Form'!$CG575=\"No\"),\"-\",IF(AND('Enrollment Form'!$CG575=\"Yes\",'Enrollment Form'!$CI575=\"\"),\"N\",\"Y\"))","v":"-"},{"$f":"IF('Enrollment Form'!B575<>\"Subscriber\",\"-\",IF(AND('Enrollment Form'!B575=\"Subscriber\",'Enrollment Form'!C575=\"Enroll\",'Enrollment Form'!AA575=\"\"),\"N\",\"Y\"))","v":"-"},{"$f":"IF(OR('Enrollment Form'!B575=\"Subscriber\",'Enrollment Form'!B575=\"\"),\"-\",IF('Enrollment Form'!BI575=\"\",\"N\",\"Y\"))","v":"-"},{"$f":"IF('Enrollment Form'!B575<>\"Subscriber\",\"-\",IF(AND('Enrollment Form'!B575=\"Subscriber\",'Enrollment Form'!G575=\"\"),\"N\",\"Y\"))","v":"-"},{"$f":"IF('Enrollment Form'!A575=\"\",\"\",IF('Enrollment Form'!B575=\"Subscriber\",\"-\",IF(AND('Enrollment Form'!B575<>\"Subscriber\",'Enrollment Form'!G575='Enrollment Form'!H575),\"N\",\"Y\")))","v":""},0]
[576,{"$f":"IF('Enrollment Form'!$A576<>\"\",\"Y\",\"N\")","v":"N"},{"$f":"IF(AND('Enrollment Form'!$B576=\"\",'Enrollment Form'!$C576<>\"\"),\"N\",IF($B569=\"N\",\"\",\"Y\"))","v":""},{"$f":"IF(OR($B569=\"N\",'Enrollment Form'!G576=\"\"),\"\",IF('Enrollment Form'!$B576<>\"Subscriber\",\"\",IF('Enrollment Form'!$G576='Enrollment Form'!$H576,\"Y\",\"N\")))","v":""},{"$f":"IF($B569=\"N\",\"\",IF(AND(COUNTIFS('Enrollment Form'!$H$11:$H$1000,'Enrollment Form'!$H576,'Enrollment Form'!$B$11:$B$1000,'Enrollment Form'!$B576)>1,'Enrollment Form'!$H576<>\"\"),\"N\",\"Y\"))","v":""},{"$f":"IF($B569=\"N\",\"\",IF(LEN('Enrollment Form'!$Y576)=0,\"\",IF(LEN('Enrollment Form'!$Y576)<>5,\"N\",\"Y\")))","v":""},{"$f":"IF($B569=\"N\",\"\",IF(LEN('Enrollment Form'!$AD576=0),\"\",IF(LEN('Enrollment Form'!$AD576)<>5,\"N\",\"Y\")))","v":""},{"$f":"IF($B569=\"N\",\"\",IF(LEN('Enrollment Form'!$BL576=0),\"\",IF(LEN('Enrollment Form'!$BL576)<>5,\"N\",\"Y\")))","v":""},{"$f":"IF($B569=\"N\",\"\",IF(LEN('Enrollment Form'!$AE576)=0,\"\",IF(LEN('Enrollment Form'!$AE576)<>10,\"N\",\"Y\")))","v":""},{"$f":"IF($B569=\"N\",\"\",IF(LEN('Enrollment Form'!$AF576)=0,\"\",IF(LEN('Enrollment Form'!$AF576)<>10,\"N\",\"Y\")))","v":""},{"$f":"IF('Enrollment Form'!$O576<>\"Graded\",\"-\",IF(AND('Enrollment Form'!$O576=\"Graded\",'Enrollment Form'!$AO576<>\"\"),\"Y\",\"N\"))","v":"-"},{"$f":"IF($B569=\"N\",\"\",IF(OR('Enrollment Form'!$B576<>\"Subscriber\",'Enrollment Form'!$C576=\"ROC\"),\"-\",IF(AND('Enrollment Form'!$B576=\"Subscriber\",'Enrollment Form'!$C576=\"Enroll\",'Enrollment Form'!$AJ576<>\"\"),\"Y\",\"N\")))","v":""},{"$f":"IF($B569=\"N\",\"\",IF(OR('Enrollment Form'!$B576<>\"Subscriber\",'Enrollment Form'!$C576=\"ROC\"),\"-\",IF(AND('Enrollment Form'!$B576=\"Subscriber\",'Enrollment Form'!$C576=\"Enroll\",'Enrollment Form'!$AK576<>\"\"),\"Y\",\"N\")))","v":""},{"$f":"IF($B569=\"N\",\"\",IF(OR('Enrollment Form'!$B576<>\"Subscriber\",'Enrollment Form'!$C576=\"ROC\"),\"-\",IF(AND('Enrollment Form'!$B576=\"Subscriber\",'Enrollment Form'!$C576=\"Enroll\",'Enrollment Form'!$AL576<>\"\"),\"Y\",\"N\")))","v":""},{"$f":"IF($B569=\"N\",\"\",IF(OR('Enrollment Form'!$B576<>\"Subscriber\",'Enrollment Form'!$C576=\"ROC\"),\"-\",IF(AND('Enrollment Form'!$B576=\"Subscriber\",'Enrollment Form'!$C576=\"Enroll\",'Enrollment Form'!$AM576<>\"\"),\"Y\",\"N\")))","v":""},{"$f":"IF($B569=\"N\",\"\",IF(OR('Enrollment Form'!$B576<>\"Subscriber\",'Enrollment Form'!$C576=\"ROC\"),\"-\",IF(AND('Enrollment Form'!$B576=\"Subscriber\",'Enrollment Form'!$C576=\"Enroll\",'Enrollment Form'!$AN576<>\"\"),\"Y\",\"N\")))","v":""},{"$f":"IF($B569=\"N\",\"\",IF(OR('Enrollment Form'!$B576<>\"Subscriber\",'Enrollment Form'!$C576=\"ROC\"),\"-\",IF(AND('Enrollment Form'!$B576=\"Subscriber\",'Enrollment Form'!$C576=\"Enroll\",'Enrollment Form'!$AP576<>\"\"),\"Y\",\"N\")))","v":""},{"$f":"IF($B569=\"N\",\"\",IF($Q569=\"-\",\"-\",IF(AND($Q569=\"Y\",'Enrollment Form'!$AP576=\"No\"),\"-\",IF(AND($Q569=\"Y\",'Enrollment Form'!$AP576=\"Yes\",'Enrollment Form'!$AQ576<>\"\"),\"Y\",\"N\"))))","v":""},{"$f":"IF($B569=\"N\",\"\",IF(OR('Enrollment Form'!$B576<>\"Subscriber\",'Enrollment Form'!$C576=\"ROC\"),\"-\",IF(AND('Enrollment Form'!$B576=\"Subscriber\",'Enrollment Form'!$C576=\"Enroll\",'Enrollment Form'!$CO576<>\"\"),\"Y\",\"N\")))","v":""},{"$f":"IF($B569=\"N\",\"\",IF($S569=\"-\",\"-\",IF(AND($S569=\"Y\",'Enrollment Form'!$CO576=\"No\"),\"-\",IF(AND($S569=\"Y\",'Enrollment Form'!$CO576=\"Yes\",'Enrollment Form'!$CP576<>\"\"),\"Y\",\"N\"))))","v":""},{"$f":"IF(OR('Enrollment Form'!$AV576=\"Yes\",'Enrollment Form'!$AV576=\"\"),\"-\",IF(AND('Enrollment Form'!$AV576=\"No\",ISERROR(FIND(\"HMO\",VLOOKUP('Enrollment Form'!G576,'Enrollment Form'!H$11:J$1000,3,FALSE),1))=FALSE,COUNTA('Enrollment Form'!$AW576:$AZ576)=4),\"Y\",\"N\"))","v":"-"},{"$f":"IF($B569=\"N\",\"\",IF('Enrollment Form'!$B576=\"Subscriber\",\"-\",IF(COUNTA('Enrollment Form'!$BE576,'Enrollment Form'!$BG576)=2,\"Y\",\"N\")))","v":""},{"$f":"IF($B569=\"N\",\"\",IF(OR('Enrollment Form'!$AU576=\"\",'Enrollment Form'!$AU576=\"No\"),\"-\",IF(AND('Enrollment Form'!$AU576=\"Yes\",COUNTA('Enrollment Form'!$CK576)=1),\"Y\",\"N\")))","v":""},{"$f":"IF(OR('Enrollment Form'!$CK576=\"\",'Enrollment Form'!$CK576=\"No\"),\"-\",IF(COUNTA('Enrollment Form'!$CM576:$CN576)=2,\"Y\",\"N\"))","v":"-"},{"$f":"IF($B569=\"N\",\"\",IF(COUNTIF('Enrollment Form'!$CZ576:$DO576,\"Other\")=COUNTA('Enrollment Form'!$DF576,'Enrollment Form'!$DA576,'Enrollment Form'!$DK576,'Enrollment Form'!$DP576),\"Y\",\"N\"))","v":""},{"$f":"IF($B569=\"N\",\"\",IF(OR('Enrollment Form'!B576<>\"Subscriber\",'Enrollment Form'!C576=\"ROC\",COUNTIF('Enrollment Form'!AS576:AT576,\"Yes\")>=1),\"-\",IF(AND('Enrollment Form'!C576=\"Enroll\",COUNTIF('Enrollment Form'!AS576:AT576,\"No\")=2,'Enrollment Form'!AU576=\"\"),\"N\",\"Y\")))","v":""},{"$f":"IF(OR(B569=\"N\",'Enrollment Form'!B576<>\"Subscriber\",'Enrollment Form'!C576=\"ROC\",'Enrollment Form'!O576<>\"Multiple of Salary\"),\"-\",IF(COUNTA('Enrollment Form'!T576:U576)<2,\"N\",\"Y\"))","v":"-"},{"$f":"IF(B569=\"N\",\"\",IF(OR('Enrollment Form'!C576=\"ROC\",'Enrollment Form'!B576<>\"Subscriber\",'Enrollment Form'!O576=\"Waive\",'Enrollment Form'!O576=\"\"),\"-\",IF('Enrollment Form'!P576=\"\",\"N\",\"Y\")))","v":""},{"$f":"IF($B569=\"N\",\"\",IF(AND('Enrollment Form'!$C576=\"ROC\",'Enrollment Form'!$DS576<>\"\"),\"Y\",IF(AND('Enrollment Form'!$C576=\"ROC\",'Enrollment Form'!$DS576=\"\"),\"N\",IF(AND('Enrollment Form'!$C576=\"Enroll\",'Enrollment Form'!$B576=\"Subscriber\",'Enrollment Form'!$CQ576=\"No\",'Enrollment Form'!$DS576=\"\"),\"N\",IF(AND('Enrollment Form'!$C576=\"Enroll\",'Enrollment Form'!$B576=\"Subscriber\",'Enrollment Form'!$CQ576=\"Yes\"),\"-\",\"Y\")))))","v":""},{"$f":"IF($B569=\"N\",\"\",IF(AND('Enrollment Form'!$C576=\"ROC\",'Enrollment Form'!$DT576<>\"\"),\"Y\",IF(AND('Enrollment Form'!$C576=\"ROC\",'Enrollment Form'!$DT576=\"\"),\"N\",IF(AND('Enrollment Form'!$C576=\"Enroll\",'Enrollment Form'!$B576=\"Subscriber\",'Enrollment Form'!$CQ576=\"No\",'Enrollment Form'!$DT576=\"\"),\"N\",IF(AND('Enrollment Form'!$C576=\"Enroll\",'Enrollment Form'!$B576=\"Subscriber\",'Enrollment Form'!$CQ576=\"Yes\"),\"-\",\"Y\")))))","v":""},{"$f":"IF('Enrollment Form'!AH576=\"\",\"\",IF(ISERROR(SEARCH(\".\",'Enrollment Form'!AH576,SEARCH(\"@\",'Enrollment Form'!AH576))),\"N\",\"Y\"))","v":""},{"$f":"IF(OR($B569=\"N\",'Enrollment Form'!$G576=\"\"),\"\",IF('Enrollment Form'!$B576<>\"Subscriber\",\"-\",IF(COUNTIF('Enrollment Form'!$AS576:$AT576,\"Yes\")=2,\"N\",\"Y\")))","v":""},{"$f":"IF(OR('Enrollment Form'!$CC576=\"\",'Enrollment Form'!$CC576=\"No\"),\"-\",IF(AND('Enrollment Form'!$CC576=\"Yes\",'Enrollment Form'!$CD576=\"\"),\"N\",\"Y\"))","v":"-"},{"$f":"IF(OR('Enrollment Form'!$CE576=\"\",'Enrollment Form'!$CE576=\"No\"),\"-\",IF(AND('Enrollment Form'!$CE576=\"Yes\",'Enrollment Form'!$CF576=\"\"),\"N\",\"Y\"))","v":"-"},{"$f":"IF(OR('Enrollment Form'!$CG576=\"\",'Enrollment Form'!$CG576=\"No\"),\"-\",IF(AND('Enrollment Form'!$CG576=\"Yes\",'Enrollment Form'!$CH576=\"\"),\"N\",\"Y\"))","v":"-"},{"$f":"IF(OR('Enrollment Form'!$CG576=\"\",'Enrollment Form'!$CG576=\"No\"),\"-\",IF(AND('Enrollment Form'!$CG576=\"Yes\",'Enrollment Form'!$CI576=\"\"),\"N\",\"Y\"))","v":"-"},{"$f":"IF('Enrollment Form'!B576<>\"Subscriber\",\"-\",IF(AND('Enrollment Form'!B576=\"Subscriber\",'Enrollment Form'!C576=\"Enroll\",'Enrollment Form'!AA576=\"\"),\"N\",\"Y\"))","v":"-"},{"$f":"IF(OR('Enrollment Form'!B576=\"Subscriber\",'Enrollment Form'!B576=\"\"),\"-\",IF('Enrollment Form'!BI576=\"\",\"N\",\"Y\"))","v":"-"},{"$f":"IF('Enrollment Form'!B576<>\"Subscriber\",\"-\",IF(AND('Enrollment Form'!B576=\"Subscriber\",'Enrollment Form'!G576=\"\"),\"N\",\"Y\"))","v":"-"},{"$f":"IF('Enrollment Form'!A576=\"\",\"\",IF('Enrollment Form'!B576=\"Subscriber\",\"-\",IF(AND('Enrollment Form'!B576<>\"Subscriber\",'Enrollment Form'!G576='Enrollment Form'!H576),\"N\",\"Y\")))","v":""},0]
[577,{"$f":"IF('Enrollment Form'!$A577<>\"\",\"Y\",\"N\")","v":"N"},{"$f":"IF(AND('Enrollment Form'!$B577=\"\",'Enrollment Form'!$C577<>\"\"),\"N\",IF($B570=\"N\",\"\",\"Y\"))","v":""},{"$f":"IF(OR($B570=\"N\",'Enrollment Form'!G577=\"\"),\"\",IF('Enrollment Form'!$B577<>\"Subscriber\",\"\",IF('Enrollment Form'!$G577='Enrollment Form'!$H577,\"Y\",\"N\")))","v":""},{"$f":"IF($B570=\"N\",\"\",IF(AND(COUNTIFS('Enrollment Form'!$H$11:$H$1000,'Enrollment Form'!$H577,'Enrollment Form'!$B$11:$B$1000,'Enrollment Form'!$B577)>1,'Enrollment Form'!$H577<>\"\"),\"N\",\"Y\"))","v":""},{"$f":"IF($B570=\"N\",\"\",IF(LEN('Enrollment Form'!$Y577)=0,\"\",IF(LEN('Enrollment Form'!$Y577)<>5,\"N\",\"Y\")))","v":""},{"$f":"IF($B570=\"N\",\"\",IF(LEN('Enrollment Form'!$AD577=0),\"\",IF(LEN('Enrollment Form'!$AD577)<>5,\"N\",\"Y\")))","v":""},{"$f":"IF($B570=\"N\",\"\",IF(LEN('Enrollment Form'!$BL577=0),\"\",IF(LEN('Enrollment Form'!$BL577)<>5,\"N\",\"Y\")))","v":""},{"$f":"IF($B570=\"N\",\"\",IF(LEN('Enrollment Form'!$AE577)=0,\"\",IF(LEN('Enrollment Form'!$AE577)<>10,\"N\",\"Y\")))","v":""},{"$f":"IF($B570=\"N\",\"\",IF(LEN('Enrollment Form'!$AF577)=0,\"\",IF(LEN('Enrollment Form'!$AF577)<>10,\"N\",\"Y\")))","v":""},{"$f":"IF('Enrollment Form'!$O577<>\"Graded\",\"-\",IF(AND('Enrollment Form'!$O577=\"Graded\",'Enrollment Form'!$AO577<>\"\"),\"Y\",\"N\"))","v":"-"},{"$f":"IF($B570=\"N\",\"\",IF(OR('Enrollment Form'!$B577<>\"Subscriber\",'Enrollment Form'!$C577=\"ROC\"),\"-\",IF(AND('Enrollment Form'!$B577=\"Subscriber\",'Enrollment Form'!$C577=\"Enroll\",'Enrollment Form'!$AJ577<>\"\"),\"Y\",\"N\")))","v":""},{"$f":"IF($B570=\"N\",\"\",IF(OR('Enrollment Form'!$B577<>\"Subscriber\",'Enrollment Form'!$C577=\"ROC\"),\"-\",IF(AND('Enrollment Form'!$B577=\"Subscriber\",'Enrollment Form'!$C577=\"Enroll\",'Enrollment Form'!$AK577<>\"\"),\"Y\",\"N\")))","v":""},{"$f":"IF($B570=\"N\",\"\",IF(OR('Enrollment Form'!$B577<>\"Subscriber\",'Enrollment Form'!$C577=\"ROC\"),\"-\",IF(AND('Enrollment Form'!$B577=\"Subscriber\",'Enrollment Form'!$C577=\"Enroll\",'Enrollment Form'!$AL577<>\"\"),\"Y\",\"N\")))","v":""},{"$f":"IF($B570=\"N\",\"\",IF(OR('Enrollment Form'!$B577<>\"Subscriber\",'Enrollment Form'!$C577=\"ROC\"),\"-\",IF(AND('Enrollment Form'!$B577=\"Subscriber\",'Enrollment Form'!$C577=\"Enroll\",'Enrollment Form'!$AM577<>\"\"),\"Y\",\"N\")))","v":""},{"$f":"IF($B570=\"N\",\"\",IF(OR('Enrollment Form'!$B577<>\"Subscriber\",'Enrollment Form'!$C577=\"ROC\"),\"-\",IF(AND('Enrollment Form'!$B577=\"Subscriber\",'Enrollment Form'!$C577=\"Enroll\",'Enrollment Form'!$AN577<>\"\"),\"Y\",\"N\")))","v":""},{"$f":"IF($B570=\"N\",\"\",IF(OR('Enrollment Form'!$B577<>\"Subscriber\",'Enrollment Form'!$C577=\"ROC\"),\"-\",IF(AND('Enrollment Form'!$B577=\"Subscriber\",'Enrollment Form'!$C577=\"Enroll\",'Enrollment Form'!$AP577<>\"\"),\"Y\",\"N\")))","v":""},{"$f":"IF($B570=\"N\",\"\",IF($Q570=\"-\",\"-\",IF(AND($Q570=\"Y\",'Enrollment Form'!$AP577=\"No\"),\"-\",IF(AND($Q570=\"Y\",'Enrollment Form'!$AP577=\"Yes\",'Enrollment Form'!$AQ577<>\"\"),\"Y\",\"N\"))))","v":""},{"$f":"IF($B570=\"N\",\"\",IF(OR('Enrollment Form'!$B577<>\"Subscriber\",'Enrollment Form'!$C577=\"ROC\"),\"-\",IF(AND('Enrollment Form'!$B577=\"Subscriber\",'Enrollment Form'!$C577=\"Enroll\",'Enrollment Form'!$CO577<>\"\"),\"Y\",\"N\")))","v":""},{"$f":"IF($B570=\"N\",\"\",IF($S570=\"-\",\"-\",IF(AND($S570=\"Y\",'Enrollment Form'!$CO577=\"No\"),\"-\",IF(AND($S570=\"Y\",'Enrollment Form'!$CO577=\"Yes\",'Enrollment Form'!$CP577<>\"\"),\"Y\",\"N\"))))","v":""},{"$f":"IF(OR('Enrollment Form'!$AV577=\"Yes\",'Enrollment Form'!$AV577=\"\"),\"-\",IF(AND('Enrollment Form'!$AV577=\"No\",ISERROR(FIND(\"HMO\",VLOOKUP('Enrollment Form'!G577,'Enrollment Form'!H$11:J$1000,3,FALSE),1))=FALSE,COUNTA('Enrollment Form'!$AW577:$AZ577)=4),\"Y\",\"N\"))","v":"-"},{"$f":"IF($B570=\"N\",\"\",IF('Enrollment Form'!$B577=\"Subscriber\",\"-\",IF(COUNTA('Enrollment Form'!$BE577,'Enrollment Form'!$BG577)=2,\"Y\",\"N\")))","v":""},{"$f":"IF($B570=\"N\",\"\",IF(OR('Enrollment Form'!$AU577=\"\",'Enrollment Form'!$AU577=\"No\"),\"-\",IF(AND('Enrollment Form'!$AU577=\"Yes\",COUNTA('Enrollment Form'!$CK577)=1),\"Y\",\"N\")))","v":""},{"$f":"IF(OR('Enrollment Form'!$CK577=\"\",'Enrollment Form'!$CK577=\"No\"),\"-\",IF(COUNTA('Enrollment Form'!$CM577:$CN577)=2,\"Y\",\"N\"))","v":"-"},{"$f":"IF($B570=\"N\",\"\",IF(COUNTIF('Enrollment Form'!$CZ577:$DO577,\"Other\")=COUNTA('Enrollment Form'!$DF577,'Enrollment Form'!$DA577,'Enrollment Form'!$DK577,'Enrollment Form'!$DP577),\"Y\",\"N\"))","v":""},{"$f":"IF($B570=\"N\",\"\",IF(OR('Enrollment Form'!B577<>\"Subscriber\",'Enrollment Form'!C577=\"ROC\",COUNTIF('Enrollment Form'!AS577:AT577,\"Yes\")>=1),\"-\",IF(AND('Enrollment Form'!C577=\"Enroll\",COUNTIF('Enrollment Form'!AS577:AT577,\"No\")=2,'Enrollment Form'!AU577=\"\"),\"N\",\"Y\")))","v":""},{"$f":"IF(OR(B570=\"N\",'Enrollment Form'!B577<>\"Subscriber\",'Enrollment Form'!C577=\"ROC\",'Enrollment Form'!O577<>\"Multiple of Salary\"),\"-\",IF(COUNTA('Enrollment Form'!T577:U577)<2,\"N\",\"Y\"))","v":"-"},{"$f":"IF(B570=\"N\",\"\",IF(OR('Enrollment Form'!C577=\"ROC\",'Enrollment Form'!B577<>\"Subscriber\",'Enrollment Form'!O577=\"Waive\",'Enrollment Form'!O577=\"\"),\"-\",IF('Enrollment Form'!P577=\"\",\"N\",\"Y\")))","v":""},{"$f":"IF($B570=\"N\",\"\",IF(AND('Enrollment Form'!$C577=\"ROC\",'Enrollment Form'!$DS577<>\"\"),\"Y\",IF(AND('Enrollment Form'!$C577=\"ROC\",'Enrollment Form'!$DS577=\"\"),\"N\",IF(AND('Enrollment Form'!$C577=\"Enroll\",'Enrollment Form'!$B577=\"Subscriber\",'Enrollment Form'!$CQ577=\"No\",'Enrollment Form'!$DS577=\"\"),\"N\",IF(AND('Enrollment Form'!$C577=\"Enroll\",'Enrollment Form'!$B577=\"Subscriber\",'Enrollment Form'!$CQ577=\"Yes\"),\"-\",\"Y\")))))","v":""},{"$f":"IF($B570=\"N\",\"\",IF(AND('Enrollment Form'!$C577=\"ROC\",'Enrollment Form'!$DT577<>\"\"),\"Y\",IF(AND('Enrollment Form'!$C577=\"ROC\",'Enrollment Form'!$DT577=\"\"),\"N\",IF(AND('Enrollment Form'!$C577=\"Enroll\",'Enrollment Form'!$B577=\"Subscriber\",'Enrollment Form'!$CQ577=\"No\",'Enrollment Form'!$DT577=\"\"),\"N\",IF(AND('Enrollment Form'!$C577=\"Enroll\",'Enrollment Form'!$B577=\"Subscriber\",'Enrollment Form'!$CQ577=\"Yes\"),\"-\",\"Y\")))))","v":""},{"$f":"IF('Enrollment Form'!AH577=\"\",\"\",IF(ISERROR(SEARCH(\".\",'Enrollment Form'!AH577,SEARCH(\"@\",'Enrollment Form'!AH577))),\"N\",\"Y\"))","v":""},{"$f":"IF(OR($B570=\"N\",'Enrollment Form'!$G577=\"\"),\"\",IF('Enrollment Form'!$B577<>\"Subscriber\",\"-\",IF(COUNTIF('Enrollment Form'!$AS577:$AT577,\"Yes\")=2,\"N\",\"Y\")))","v":""},{"$f":"IF(OR('Enrollment Form'!$CC577=\"\",'Enrollment Form'!$CC577=\"No\"),\"-\",IF(AND('Enrollment Form'!$CC577=\"Yes\",'Enrollment Form'!$CD577=\"\"),\"N\",\"Y\"))","v":"-"},{"$f":"IF(OR('Enrollment Form'!$CE577=\"\",'Enrollment Form'!$CE577=\"No\"),\"-\",IF(AND('Enrollment Form'!$CE577=\"Yes\",'Enrollment Form'!$CF577=\"\"),\"N\",\"Y\"))","v":"-"},{"$f":"IF(OR('Enrollment Form'!$CG577=\"\",'Enrollment Form'!$CG577=\"No\"),\"-\",IF(AND('Enrollment Form'!$CG577=\"Yes\",'Enrollment Form'!$CH577=\"\"),\"N\",\"Y\"))","v":"-"},{"$f":"IF(OR('Enrollment Form'!$CG577=\"\",'Enrollment Form'!$CG577=\"No\"),\"-\",IF(AND('Enrollment Form'!$CG577=\"Yes\",'Enrollment Form'!$CI577=\"\"),\"N\",\"Y\"))","v":"-"},{"$f":"IF('Enrollment Form'!B577<>\"Subscriber\",\"-\",IF(AND('Enrollment Form'!B577=\"Subscriber\",'Enrollment Form'!C577=\"Enroll\",'Enrollment Form'!AA577=\"\"),\"N\",\"Y\"))","v":"-"},{"$f":"IF(OR('Enrollment Form'!B577=\"Subscriber\",'Enrollment Form'!B577=\"\"),\"-\",IF('Enrollment Form'!BI577=\"\",\"N\",\"Y\"))","v":"-"},{"$f":"IF('Enrollment Form'!B577<>\"Subscriber\",\"-\",IF(AND('Enrollment Form'!B577=\"Subscriber\",'Enrollment Form'!G577=\"\"),\"N\",\"Y\"))","v":"-"},{"$f":"IF('Enrollment Form'!A577=\"\",\"\",IF('Enrollment Form'!B577=\"Subscriber\",\"-\",IF(AND('Enrollment Form'!B577<>\"Subscriber\",'Enrollment Form'!G577='Enrollment Form'!H577),\"N\",\"Y\")))","v":""},0]
[578,{"$f":"IF('Enrollment Form'!$A578<>\"\",\"Y\",\"N\")","v":"N"},{"$f":"IF(AND('Enrollment Form'!$B578=\"\",'Enrollment Form'!$C578<>\"\"),\"N\",IF($B571=\"N\",\"\",\"Y\"))","v":""},{"$f":"IF(OR($B571=\"N\",'Enrollment Form'!G578=\"\"),\"\",IF('Enrollment Form'!$B578<>\"Subscriber\",\"\",IF('Enrollment Form'!$G578='Enrollment Form'!$H578,\"Y\",\"N\")))","v":""},{"$f":"IF($B571=\"N\",\"\",IF(AND(COUNTIFS('Enrollment Form'!$H$11:$H$1000,'Enrollment Form'!$H578,'Enrollment Form'!$B$11:$B$1000,'Enrollment Form'!$B578)>1,'Enrollment Form'!$H578<>\"\"),\"N\",\"Y\"))","v":""},{"$f":"IF($B571=\"N\",\"\",IF(LEN('Enrollment Form'!$Y578)=0,\"\",IF(LEN('Enrollment Form'!$Y578)<>5,\"N\",\"Y\")))","v":""},{"$f":"IF($B571=\"N\",\"\",IF(LEN('Enrollment Form'!$AD578=0),\"\",IF(LEN('Enrollment Form'!$AD578)<>5,\"N\",\"Y\")))","v":""},{"$f":"IF($B571=\"N\",\"\",IF(LEN('Enrollment Form'!$BL578=0),\"\",IF(LEN('Enrollment Form'!$BL578)<>5,\"N\",\"Y\")))","v":""},{"$f":"IF($B571=\"N\",\"\",IF(LEN('Enrollment Form'!$AE578)=0,\"\",IF(LEN('Enrollment Form'!$AE578)<>10,\"N\",\"Y\")))","v":""},{"$f":"IF($B571=\"N\",\"\",IF(LEN('Enrollment Form'!$AF578)=0,\"\",IF(LEN('Enrollment Form'!$AF578)<>10,\"N\",\"Y\")))","v":""},{"$f":"IF('Enrollment Form'!$O578<>\"Graded\",\"-\",IF(AND('Enrollment Form'!$O578=\"Graded\",'Enrollment Form'!$AO578<>\"\"),\"Y\",\"N\"))","v":"-"},{"$f":"IF($B571=\"N\",\"\",IF(OR('Enrollment Form'!$B578<>\"Subscriber\",'Enrollment Form'!$C578=\"ROC\"),\"-\",IF(AND('Enrollment Form'!$B578=\"Subscriber\",'Enrollment Form'!$C578=\"Enroll\",'Enrollment Form'!$AJ578<>\"\"),\"Y\",\"N\")))","v":""},{"$f":"IF($B571=\"N\",\"\",IF(OR('Enrollment Form'!$B578<>\"Subscriber\",'Enrollment Form'!$C578=\"ROC\"),\"-\",IF(AND('Enrollment Form'!$B578=\"Subscriber\",'Enrollment Form'!$C578=\"Enroll\",'Enrollment Form'!$AK578<>\"\"),\"Y\",\"N\")))","v":""},{"$f":"IF($B571=\"N\",\"\",IF(OR('Enrollment Form'!$B578<>\"Subscriber\",'Enrollment Form'!$C578=\"ROC\"),\"-\",IF(AND('Enrollment Form'!$B578=\"Subscriber\",'Enrollment Form'!$C578=\"Enroll\",'Enrollment Form'!$AL578<>\"\"),\"Y\",\"N\")))","v":""},{"$f":"IF($B571=\"N\",\"\",IF(OR('Enrollment Form'!$B578<>\"Subscriber\",'Enrollment Form'!$C578=\"ROC\"),\"-\",IF(AND('Enrollment Form'!$B578=\"Subscriber\",'Enrollment Form'!$C578=\"Enroll\",'Enrollment Form'!$AM578<>\"\"),\"Y\",\"N\")))","v":""},{"$f":"IF($B571=\"N\",\"\",IF(OR('Enrollment Form'!$B578<>\"Subscriber\",'Enrollment Form'!$C578=\"ROC\"),\"-\",IF(AND('Enrollment Form'!$B578=\"Subscriber\",'Enrollment Form'!$C578=\"Enroll\",'Enrollment Form'!$AN578<>\"\"),\"Y\",\"N\")))","v":""},{"$f":"IF($B571=\"N\",\"\",IF(OR('Enrollment Form'!$B578<>\"Subscriber\",'Enrollment Form'!$C578=\"ROC\"),\"-\",IF(AND('Enrollment Form'!$B578=\"Subscriber\",'Enrollment Form'!$C578=\"Enroll\",'Enrollment Form'!$AP578<>\"\"),\"Y\",\"N\")))","v":""},{"$f":"IF($B571=\"N\",\"\",IF($Q571=\"-\",\"-\",IF(AND($Q571=\"Y\",'Enrollment Form'!$AP578=\"No\"),\"-\",IF(AND($Q571=\"Y\",'Enrollment Form'!$AP578=\"Yes\",'Enrollment Form'!$AQ578<>\"\"),\"Y\",\"N\"))))","v":""},{"$f":"IF($B571=\"N\",\"\",IF(OR('Enrollment Form'!$B578<>\"Subscriber\",'Enrollment Form'!$C578=\"ROC\"),\"-\",IF(AND('Enrollment Form'!$B578=\"Subscriber\",'Enrollment Form'!$C578=\"Enroll\",'Enrollment Form'!$CO578<>\"\"),\"Y\",\"N\")))","v":""},{"$f":"IF($B571=\"N\",\"\",IF($S571=\"-\",\"-\",IF(AND($S571=\"Y\",'Enrollment Form'!$CO578=\"No\"),\"-\",IF(AND($S571=\"Y\",'Enrollment Form'!$CO578=\"Yes\",'Enrollment Form'!$CP578<>\"\"),\"Y\",\"N\"))))","v":""},{"$f":"IF(OR('Enrollment Form'!$AV578=\"Yes\",'Enrollment Form'!$AV578=\"\"),\"-\",IF(AND('Enrollment Form'!$AV578=\"No\",ISERROR(FIND(\"HMO\",VLOOKUP('Enrollment Form'!G578,'Enrollment Form'!H$11:J$1000,3,FALSE),1))=FALSE,COUNTA('Enrollment Form'!$AW578:$AZ578)=4),\"Y\",\"N\"))","v":"-"},{"$f":"IF($B571=\"N\",\"\",IF('Enrollment Form'!$B578=\"Subscriber\",\"-\",IF(COUNTA('Enrollment Form'!$BE578,'Enrollment Form'!$BG578)=2,\"Y\",\"N\")))","v":""},{"$f":"IF($B571=\"N\",\"\",IF(OR('Enrollment Form'!$AU578=\"\",'Enrollment Form'!$AU578=\"No\"),\"-\",IF(AND('Enrollment Form'!$AU578=\"Yes\",COUNTA('Enrollment Form'!$CK578)=1),\"Y\",\"N\")))","v":""},{"$f":"IF(OR('Enrollment Form'!$CK578=\"\",'Enrollment Form'!$CK578=\"No\"),\"-\",IF(COUNTA('Enrollment Form'!$CM578:$CN578)=2,\"Y\",\"N\"))","v":"-"},{"$f":"IF($B571=\"N\",\"\",IF(COUNTIF('Enrollment Form'!$CZ578:$DO578,\"Other\")=COUNTA('Enrollment Form'!$DF578,'Enrollment Form'!$DA578,'Enrollment Form'!$DK578,'Enrollment Form'!$DP578),\"Y\",\"N\"))","v":""},{"$f":"IF($B571=\"N\",\"\",IF(OR('Enrollment Form'!B578<>\"Subscriber\",'Enrollment Form'!C578=\"ROC\",COUNTIF('Enrollment Form'!AS578:AT578,\"Yes\")>=1),\"-\",IF(AND('Enrollment Form'!C578=\"Enroll\",COUNTIF('Enrollment Form'!AS578:AT578,\"No\")=2,'Enrollment Form'!AU578=\"\"),\"N\",\"Y\")))","v":""},{"$f":"IF(OR(B571=\"N\",'Enrollment Form'!B578<>\"Subscriber\",'Enrollment Form'!C578=\"ROC\",'Enrollment Form'!O578<>\"Multiple of Salary\"),\"-\",IF(COUNTA('Enrollment Form'!T578:U578)<2,\"N\",\"Y\"))","v":"-"},{"$f":"IF(B571=\"N\",\"\",IF(OR('Enrollment Form'!C578=\"ROC\",'Enrollment Form'!B578<>\"Subscriber\",'Enrollment Form'!O578=\"Waive\",'Enrollment Form'!O578=\"\"),\"-\",IF('Enrollment Form'!P578=\"\",\"N\",\"Y\")))","v":""},{"$f":"IF($B571=\"N\",\"\",IF(AND('Enrollment Form'!$C578=\"ROC\",'Enrollment Form'!$DS578<>\"\"),\"Y\",IF(AND('Enrollment Form'!$C578=\"ROC\",'Enrollment Form'!$DS578=\"\"),\"N\",IF(AND('Enrollment Form'!$C578=\"Enroll\",'Enrollment Form'!$B578=\"Subscriber\",'Enrollment Form'!$CQ578=\"No\",'Enrollment Form'!$DS578=\"\"),\"N\",IF(AND('Enrollment Form'!$C578=\"Enroll\",'Enrollment Form'!$B578=\"Subscriber\",'Enrollment Form'!$CQ578=\"Yes\"),\"-\",\"Y\")))))","v":""},{"$f":"IF($B571=\"N\",\"\",IF(AND('Enrollment Form'!$C578=\"ROC\",'Enrollment Form'!$DT578<>\"\"),\"Y\",IF(AND('Enrollment Form'!$C578=\"ROC\",'Enrollment Form'!$DT578=\"\"),\"N\",IF(AND('Enrollment Form'!$C578=\"Enroll\",'Enrollment Form'!$B578=\"Subscriber\",'Enrollment Form'!$CQ578=\"No\",'Enrollment Form'!$DT578=\"\"),\"N\",IF(AND('Enrollment Form'!$C578=\"Enroll\",'Enrollment Form'!$B578=\"Subscriber\",'Enrollment Form'!$CQ578=\"Yes\"),\"-\",\"Y\")))))","v":""},{"$f":"IF('Enrollment Form'!AH578=\"\",\"\",IF(ISERROR(SEARCH(\".\",'Enrollment Form'!AH578,SEARCH(\"@\",'Enrollment Form'!AH578))),\"N\",\"Y\"))","v":""},{"$f":"IF(OR($B571=\"N\",'Enrollment Form'!$G578=\"\"),\"\",IF('Enrollment Form'!$B578<>\"Subscriber\",\"-\",IF(COUNTIF('Enrollment Form'!$AS578:$AT578,\"Yes\")=2,\"N\",\"Y\")))","v":""},{"$f":"IF(OR('Enrollment Form'!$CC578=\"\",'Enrollment Form'!$CC578=\"No\"),\"-\",IF(AND('Enrollment Form'!$CC578=\"Yes\",'Enrollment Form'!$CD578=\"\"),\"N\",\"Y\"))","v":"-"},{"$f":"IF(OR('Enrollment Form'!$CE578=\"\",'Enrollment Form'!$CE578=\"No\"),\"-\",IF(AND('Enrollment Form'!$CE578=\"Yes\",'Enrollment Form'!$CF578=\"\"),\"N\",\"Y\"))","v":"-"},{"$f":"IF(OR('Enrollment Form'!$CG578=\"\",'Enrollment Form'!$CG578=\"No\"),\"-\",IF(AND('Enrollment Form'!$CG578=\"Yes\",'Enrollment Form'!$CH578=\"\"),\"N\",\"Y\"))","v":"-"},{"$f":"IF(OR('Enrollment Form'!$CG578=\"\",'Enrollment Form'!$CG578=\"No\"),\"-\",IF(AND('Enrollment Form'!$CG578=\"Yes\",'Enrollment Form'!$CI578=\"\"),\"N\",\"Y\"))","v":"-"},{"$f":"IF('Enrollment Form'!B578<>\"Subscriber\",\"-\",IF(AND('Enrollment Form'!B578=\"Subscriber\",'Enrollment Form'!C578=\"Enroll\",'Enrollment Form'!AA578=\"\"),\"N\",\"Y\"))","v":"-"},{"$f":"IF(OR('Enrollment Form'!B578=\"Subscriber\",'Enrollment Form'!B578=\"\"),\"-\",IF('Enrollment Form'!BI578=\"\",\"N\",\"Y\"))","v":"-"},{"$f":"IF('Enrollment Form'!B578<>\"Subscriber\",\"-\",IF(AND('Enrollment Form'!B578=\"Subscriber\",'Enrollment Form'!G578=\"\"),\"N\",\"Y\"))","v":"-"},{"$f":"IF('Enrollment Form'!A578=\"\",\"\",IF('Enrollment Form'!B578=\"Subscriber\",\"-\",IF(AND('Enrollment Form'!B578<>\"Subscriber\",'Enrollment Form'!G578='Enrollment Form'!H578),\"N\",\"Y\")))","v":""},0]
[579,{"$f":"IF('Enrollment Form'!$A579<>\"\",\"Y\",\"N\")","v":"N"},{"$f":"IF(AND('Enrollment Form'!$B579=\"\",'Enrollment Form'!$C579<>\"\"),\"N\",IF($B572=\"N\",\"\",\"Y\"))","v":""},{"$f":"IF(OR($B572=\"N\",'Enrollment Form'!G579=\"\"),\"\",IF('Enrollment Form'!$B579<>\"Subscriber\",\"\",IF('Enrollment Form'!$G579='Enrollment Form'!$H579,\"Y\",\"N\")))","v":""},{"$f":"IF($B572=\"N\",\"\",IF(AND(COUNTIFS('Enrollment Form'!$H$11:$H$1000,'Enrollment Form'!$H579,'Enrollment Form'!$B$11:$B$1000,'Enrollment Form'!$B579)>1,'Enrollment Form'!$H579<>\"\"),\"N\",\"Y\"))","v":""},{"$f":"IF($B572=\"N\",\"\",IF(LEN('Enrollment Form'!$Y579)=0,\"\",IF(LEN('Enrollment Form'!$Y579)<>5,\"N\",\"Y\")))","v":""},{"$f":"IF($B572=\"N\",\"\",IF(LEN('Enrollment Form'!$AD579=0),\"\",IF(LEN('Enrollment Form'!$AD579)<>5,\"N\",\"Y\")))","v":""},{"$f":"IF($B572=\"N\",\"\",IF(LEN('Enrollment Form'!$BL579=0),\"\",IF(LEN('Enrollment Form'!$BL579)<>5,\"N\",\"Y\")))","v":""},{"$f":"IF($B572=\"N\",\"\",IF(LEN('Enrollment Form'!$AE579)=0,\"\",IF(LEN('Enrollment Form'!$AE579)<>10,\"N\",\"Y\")))","v":""},{"$f":"IF($B572=\"N\",\"\",IF(LEN('Enrollment Form'!$AF579)=0,\"\",IF(LEN('Enrollment Form'!$AF579)<>10,\"N\",\"Y\")))","v":""},{"$f":"IF('Enrollment Form'!$O579<>\"Graded\",\"-\",IF(AND('Enrollment Form'!$O579=\"Graded\",'Enrollment Form'!$AO579<>\"\"),\"Y\",\"N\"))","v":"-"},{"$f":"IF($B572=\"N\",\"\",IF(OR('Enrollment Form'!$B579<>\"Subscriber\",'Enrollment Form'!$C579=\"ROC\"),\"-\",IF(AND('Enrollment Form'!$B579=\"Subscriber\",'Enrollment Form'!$C579=\"Enroll\",'Enrollment Form'!$AJ579<>\"\"),\"Y\",\"N\")))","v":""},{"$f":"IF($B572=\"N\",\"\",IF(OR('Enrollment Form'!$B579<>\"Subscriber\",'Enrollment Form'!$C579=\"ROC\"),\"-\",IF(AND('Enrollment Form'!$B579=\"Subscriber\",'Enrollment Form'!$C579=\"Enroll\",'Enrollment Form'!$AK579<>\"\"),\"Y\",\"N\")))","v":""},{"$f":"IF($B572=\"N\",\"\",IF(OR('Enrollment Form'!$B579<>\"Subscriber\",'Enrollment Form'!$C579=\"ROC\"),\"-\",IF(AND('Enrollment Form'!$B579=\"Subscriber\",'Enrollment Form'!$C579=\"Enroll\",'Enrollment Form'!$AL579<>\"\"),\"Y\",\"N\")))","v":""},{"$f":"IF($B572=\"N\",\"\",IF(OR('Enrollment Form'!$B579<>\"Subscriber\",'Enrollment Form'!$C579=\"ROC\"),\"-\",IF(AND('Enrollment Form'!$B579=\"Subscriber\",'Enrollment Form'!$C579=\"Enroll\",'Enrollment Form'!$AM579<>\"\"),\"Y\",\"N\")))","v":""},{"$f":"IF($B572=\"N\",\"\",IF(OR('Enrollment Form'!$B579<>\"Subscriber\",'Enrollment Form'!$C579=\"ROC\"),\"-\",IF(AND('Enrollment Form'!$B579=\"Subscriber\",'Enrollment Form'!$C579=\"Enroll\",'Enrollment Form'!$AN579<>\"\"),\"Y\",\"N\")))","v":""},{"$f":"IF($B572=\"N\",\"\",IF(OR('Enrollment Form'!$B579<>\"Subscriber\",'Enrollment Form'!$C579=\"ROC\"),\"-\",IF(AND('Enrollment Form'!$B579=\"Subscriber\",'Enrollment Form'!$C579=\"Enroll\",'Enrollment Form'!$AP579<>\"\"),\"Y\",\"N\")))","v":""},{"$f":"IF($B572=\"N\",\"\",IF($Q572=\"-\",\"-\",IF(AND($Q572=\"Y\",'Enrollment Form'!$AP579=\"No\"),\"-\",IF(AND($Q572=\"Y\",'Enrollment Form'!$AP579=\"Yes\",'Enrollment Form'!$AQ579<>\"\"),\"Y\",\"N\"))))","v":""},{"$f":"IF($B572=\"N\",\"\",IF(OR('Enrollment Form'!$B579<>\"Subscriber\",'Enrollment Form'!$C579=\"ROC\"),\"-\",IF(AND('Enrollment Form'!$B579=\"Subscriber\",'Enrollment Form'!$C579=\"Enroll\",'Enrollment Form'!$CO579<>\"\"),\"Y\",\"N\")))","v":""},{"$f":"IF($B572=\"N\",\"\",IF($S572=\"-\",\"-\",IF(AND($S572=\"Y\",'Enrollment Form'!$CO579=\"No\"),\"-\",IF(AND($S572=\"Y\",'Enrollment Form'!$CO579=\"Yes\",'Enrollment Form'!$CP579<>\"\"),\"Y\",\"N\"))))","v":""},{"$f":"IF(OR('Enrollment Form'!$AV579=\"Yes\",'Enrollment Form'!$AV579=\"\"),\"-\",IF(AND('Enrollment Form'!$AV579=\"No\",ISERROR(FIND(\"HMO\",VLOOKUP('Enrollment Form'!G579,'Enrollment Form'!H$11:J$1000,3,FALSE),1))=FALSE,COUNTA('Enrollment Form'!$AW579:$AZ579)=4),\"Y\",\"N\"))","v":"-"},{"$f":"IF($B572=\"N\",\"\",IF('Enrollment Form'!$B579=\"Subscriber\",\"-\",IF(COUNTA('Enrollment Form'!$BE579,'Enrollment Form'!$BG579)=2,\"Y\",\"N\")))","v":""},{"$f":"IF($B572=\"N\",\"\",IF(OR('Enrollment Form'!$AU579=\"\",'Enrollment Form'!$AU579=\"No\"),\"-\",IF(AND('Enrollment Form'!$AU579=\"Yes\",COUNTA('Enrollment Form'!$CK579)=1),\"Y\",\"N\")))","v":""},{"$f":"IF(OR('Enrollment Form'!$CK579=\"\",'Enrollment Form'!$CK579=\"No\"),\"-\",IF(COUNTA('Enrollment Form'!$CM579:$CN579)=2,\"Y\",\"N\"))","v":"-"},{"$f":"IF($B572=\"N\",\"\",IF(COUNTIF('Enrollment Form'!$CZ579:$DO579,\"Other\")=COUNTA('Enrollment Form'!$DF579,'Enrollment Form'!$DA579,'Enrollment Form'!$DK579,'Enrollment Form'!$DP579),\"Y\",\"N\"))","v":""},{"$f":"IF($B572=\"N\",\"\",IF(OR('Enrollment Form'!B579<>\"Subscriber\",'Enrollment Form'!C579=\"ROC\",COUNTIF('Enrollment Form'!AS579:AT579,\"Yes\")>=1),\"-\",IF(AND('Enrollment Form'!C579=\"Enroll\",COUNTIF('Enrollment Form'!AS579:AT579,\"No\")=2,'Enrollment Form'!AU579=\"\"),\"N\",\"Y\")))","v":""},{"$f":"IF(OR(B572=\"N\",'Enrollment Form'!B579<>\"Subscriber\",'Enrollment Form'!C579=\"ROC\",'Enrollment Form'!O579<>\"Multiple of Salary\"),\"-\",IF(COUNTA('Enrollment Form'!T579:U579)<2,\"N\",\"Y\"))","v":"-"},{"$f":"IF(B572=\"N\",\"\",IF(OR('Enrollment Form'!C579=\"ROC\",'Enrollment Form'!B579<>\"Subscriber\",'Enrollment Form'!O579=\"Waive\",'Enrollment Form'!O579=\"\"),\"-\",IF('Enrollment Form'!P579=\"\",\"N\",\"Y\")))","v":""},{"$f":"IF($B572=\"N\",\"\",IF(AND('Enrollment Form'!$C579=\"ROC\",'Enrollment Form'!$DS579<>\"\"),\"Y\",IF(AND('Enrollment Form'!$C579=\"ROC\",'Enrollment Form'!$DS579=\"\"),\"N\",IF(AND('Enrollment Form'!$C579=\"Enroll\",'Enrollment Form'!$B579=\"Subscriber\",'Enrollment Form'!$CQ579=\"No\",'Enrollment Form'!$DS579=\"\"),\"N\",IF(AND('Enrollment Form'!$C579=\"Enroll\",'Enrollment Form'!$B579=\"Subscriber\",'Enrollment Form'!$CQ579=\"Yes\"),\"-\",\"Y\")))))","v":""},{"$f":"IF($B572=\"N\",\"\",IF(AND('Enrollment Form'!$C579=\"ROC\",'Enrollment Form'!$DT579<>\"\"),\"Y\",IF(AND('Enrollment Form'!$C579=\"ROC\",'Enrollment Form'!$DT579=\"\"),\"N\",IF(AND('Enrollment Form'!$C579=\"Enroll\",'Enrollment Form'!$B579=\"Subscriber\",'Enrollment Form'!$CQ579=\"No\",'Enrollment Form'!$DT579=\"\"),\"N\",IF(AND('Enrollment Form'!$C579=\"Enroll\",'Enrollment Form'!$B579=\"Subscriber\",'Enrollment Form'!$CQ579=\"Yes\"),\"-\",\"Y\")))))","v":""},{"$f":"IF('Enrollment Form'!AH579=\"\",\"\",IF(ISERROR(SEARCH(\".\",'Enrollment Form'!AH579,SEARCH(\"@\",'Enrollment Form'!AH579))),\"N\",\"Y\"))","v":""},{"$f":"IF(OR($B572=\"N\",'Enrollment Form'!$G579=\"\"),\"\",IF('Enrollment Form'!$B579<>\"Subscriber\",\"-\",IF(COUNTIF('Enrollment Form'!$AS579:$AT579,\"Yes\")=2,\"N\",\"Y\")))","v":""},{"$f":"IF(OR('Enrollment Form'!$CC579=\"\",'Enrollment Form'!$CC579=\"No\"),\"-\",IF(AND('Enrollment Form'!$CC579=\"Yes\",'Enrollment Form'!$CD579=\"\"),\"N\",\"Y\"))","v":"-"},{"$f":"IF(OR('Enrollment Form'!$CE579=\"\",'Enrollment Form'!$CE579=\"No\"),\"-\",IF(AND('Enrollment Form'!$CE579=\"Yes\",'Enrollment Form'!$CF579=\"\"),\"N\",\"Y\"))","v":"-"},{"$f":"IF(OR('Enrollment Form'!$CG579=\"\",'Enrollment Form'!$CG579=\"No\"),\"-\",IF(AND('Enrollment Form'!$CG579=\"Yes\",'Enrollment Form'!$CH579=\"\"),\"N\",\"Y\"))","v":"-"},{"$f":"IF(OR('Enrollment Form'!$CG579=\"\",'Enrollment Form'!$CG579=\"No\"),\"-\",IF(AND('Enrollment Form'!$CG579=\"Yes\",'Enrollment Form'!$CI579=\"\"),\"N\",\"Y\"))","v":"-"},{"$f":"IF('Enrollment Form'!B579<>\"Subscriber\",\"-\",IF(AND('Enrollment Form'!B579=\"Subscriber\",'Enrollment Form'!C579=\"Enroll\",'Enrollment Form'!AA579=\"\"),\"N\",\"Y\"))","v":"-"},{"$f":"IF(OR('Enrollment Form'!B579=\"Subscriber\",'Enrollment Form'!B579=\"\"),\"-\",IF('Enrollment Form'!BI579=\"\",\"N\",\"Y\"))","v":"-"},{"$f":"IF('Enrollment Form'!B579<>\"Subscriber\",\"-\",IF(AND('Enrollment Form'!B579=\"Subscriber\",'Enrollment Form'!G579=\"\"),\"N\",\"Y\"))","v":"-"},{"$f":"IF('Enrollment Form'!A579=\"\",\"\",IF('Enrollment Form'!B579=\"Subscriber\",\"-\",IF(AND('Enrollment Form'!B579<>\"Subscriber\",'Enrollment Form'!G579='Enrollment Form'!H579),\"N\",\"Y\")))","v":""},0]
[580,{"$f":"IF('Enrollment Form'!$A580<>\"\",\"Y\",\"N\")","v":"N"},{"$f":"IF(AND('Enrollment Form'!$B580=\"\",'Enrollment Form'!$C580<>\"\"),\"N\",IF($B573=\"N\",\"\",\"Y\"))","v":""},{"$f":"IF(OR($B573=\"N\",'Enrollment Form'!G580=\"\"),\"\",IF('Enrollment Form'!$B580<>\"Subscriber\",\"\",IF('Enrollment Form'!$G580='Enrollment Form'!$H580,\"Y\",\"N\")))","v":""},{"$f":"IF($B573=\"N\",\"\",IF(AND(COUNTIFS('Enrollment Form'!$H$11:$H$1000,'Enrollment Form'!$H580,'Enrollment Form'!$B$11:$B$1000,'Enrollment Form'!$B580)>1,'Enrollment Form'!$H580<>\"\"),\"N\",\"Y\"))","v":""},{"$f":"IF($B573=\"N\",\"\",IF(LEN('Enrollment Form'!$Y580)=0,\"\",IF(LEN('Enrollment Form'!$Y580)<>5,\"N\",\"Y\")))","v":""},{"$f":"IF($B573=\"N\",\"\",IF(LEN('Enrollment Form'!$AD580=0),\"\",IF(LEN('Enrollment Form'!$AD580)<>5,\"N\",\"Y\")))","v":""},{"$f":"IF($B573=\"N\",\"\",IF(LEN('Enrollment Form'!$BL580=0),\"\",IF(LEN('Enrollment Form'!$BL580)<>5,\"N\",\"Y\")))","v":""},{"$f":"IF($B573=\"N\",\"\",IF(LEN('Enrollment Form'!$AE580)=0,\"\",IF(LEN('Enrollment Form'!$AE580)<>10,\"N\",\"Y\")))","v":""},{"$f":"IF($B573=\"N\",\"\",IF(LEN('Enrollment Form'!$AF580)=0,\"\",IF(LEN('Enrollment Form'!$AF580)<>10,\"N\",\"Y\")))","v":""},{"$f":"IF('Enrollment Form'!$O580<>\"Graded\",\"-\",IF(AND('Enrollment Form'!$O580=\"Graded\",'Enrollment Form'!$AO580<>\"\"),\"Y\",\"N\"))","v":"-"},{"$f":"IF($B573=\"N\",\"\",IF(OR('Enrollment Form'!$B580<>\"Subscriber\",'Enrollment Form'!$C580=\"ROC\"),\"-\",IF(AND('Enrollment Form'!$B580=\"Subscriber\",'Enrollment Form'!$C580=\"Enroll\",'Enrollment Form'!$AJ580<>\"\"),\"Y\",\"N\")))","v":""},{"$f":"IF($B573=\"N\",\"\",IF(OR('Enrollment Form'!$B580<>\"Subscriber\",'Enrollment Form'!$C580=\"ROC\"),\"-\",IF(AND('Enrollment Form'!$B580=\"Subscriber\",'Enrollment Form'!$C580=\"Enroll\",'Enrollment Form'!$AK580<>\"\"),\"Y\",\"N\")))","v":""},{"$f":"IF($B573=\"N\",\"\",IF(OR('Enrollment Form'!$B580<>\"Subscriber\",'Enrollment Form'!$C580=\"ROC\"),\"-\",IF(AND('Enrollment Form'!$B580=\"Subscriber\",'Enrollment Form'!$C580=\"Enroll\",'Enrollment Form'!$AL580<>\"\"),\"Y\",\"N\")))","v":""},{"$f":"IF($B573=\"N\",\"\",IF(OR('Enrollment Form'!$B580<>\"Subscriber\",'Enrollment Form'!$C580=\"ROC\"),\"-\",IF(AND('Enrollment Form'!$B580=\"Subscriber\",'Enrollment Form'!$C580=\"Enroll\",'Enrollment Form'!$AM580<>\"\"),\"Y\",\"N\")))","v":""},{"$f":"IF($B573=\"N\",\"\",IF(OR('Enrollment Form'!$B580<>\"Subscriber\",'Enrollment Form'!$C580=\"ROC\"),\"-\",IF(AND('Enrollment Form'!$B580=\"Subscriber\",'Enrollment Form'!$C580=\"Enroll\",'Enrollment Form'!$AN580<>\"\"),\"Y\",\"N\")))","v":""},{"$f":"IF($B573=\"N\",\"\",IF(OR('Enrollment Form'!$B580<>\"Subscriber\",'Enrollment Form'!$C580=\"ROC\"),\"-\",IF(AND('Enrollment Form'!$B580=\"Subscriber\",'Enrollment Form'!$C580=\"Enroll\",'Enrollment Form'!$AP580<>\"\"),\"Y\",\"N\")))","v":""},{"$f":"IF($B573=\"N\",\"\",IF($Q573=\"-\",\"-\",IF(AND($Q573=\"Y\",'Enrollment Form'!$AP580=\"No\"),\"-\",IF(AND($Q573=\"Y\",'Enrollment Form'!$AP580=\"Yes\",'Enrollment Form'!$AQ580<>\"\"),\"Y\",\"N\"))))","v":""},{"$f":"IF($B573=\"N\",\"\",IF(OR('Enrollment Form'!$B580<>\"Subscriber\",'Enrollment Form'!$C580=\"ROC\"),\"-\",IF(AND('Enrollment Form'!$B580=\"Subscriber\",'Enrollment Form'!$C580=\"Enroll\",'Enrollment Form'!$CO580<>\"\"),\"Y\",\"N\")))","v":""},{"$f":"IF($B573=\"N\",\"\",IF($S573=\"-\",\"-\",IF(AND($S573=\"Y\",'Enrollment Form'!$CO580=\"No\"),\"-\",IF(AND($S573=\"Y\",'Enrollment Form'!$CO580=\"Yes\",'Enrollment Form'!$CP580<>\"\"),\"Y\",\"N\"))))","v":""},{"$f":"IF(OR('Enrollment Form'!$AV580=\"Yes\",'Enrollment Form'!$AV580=\"\"),\"-\",IF(AND('Enrollment Form'!$AV580=\"No\",ISERROR(FIND(\"HMO\",VLOOKUP('Enrollment Form'!G580,'Enrollment Form'!H$11:J$1000,3,FALSE),1))=FALSE,COUNTA('Enrollment Form'!$AW580:$AZ580)=4),\"Y\",\"N\"))","v":"-"},{"$f":"IF($B573=\"N\",\"\",IF('Enrollment Form'!$B580=\"Subscriber\",\"-\",IF(COUNTA('Enrollment Form'!$BE580,'Enrollment Form'!$BG580)=2,\"Y\",\"N\")))","v":""},{"$f":"IF($B573=\"N\",\"\",IF(OR('Enrollment Form'!$AU580=\"\",'Enrollment Form'!$AU580=\"No\"),\"-\",IF(AND('Enrollment Form'!$AU580=\"Yes\",COUNTA('Enrollment Form'!$CK580)=1),\"Y\",\"N\")))","v":""},{"$f":"IF(OR('Enrollment Form'!$CK580=\"\",'Enrollment Form'!$CK580=\"No\"),\"-\",IF(COUNTA('Enrollment Form'!$CM580:$CN580)=2,\"Y\",\"N\"))","v":"-"},{"$f":"IF($B573=\"N\",\"\",IF(COUNTIF('Enrollment Form'!$CZ580:$DO580,\"Other\")=COUNTA('Enrollment Form'!$DF580,'Enrollment Form'!$DA580,'Enrollment Form'!$DK580,'Enrollment Form'!$DP580),\"Y\",\"N\"))","v":""},{"$f":"IF($B573=\"N\",\"\",IF(OR('Enrollment Form'!B580<>\"Subscriber\",'Enrollment Form'!C580=\"ROC\",COUNTIF('Enrollment Form'!AS580:AT580,\"Yes\")>=1),\"-\",IF(AND('Enrollment Form'!C580=\"Enroll\",COUNTIF('Enrollment Form'!AS580:AT580,\"No\")=2,'Enrollment Form'!AU580=\"\"),\"N\",\"Y\")))","v":""},{"$f":"IF(OR(B573=\"N\",'Enrollment Form'!B580<>\"Subscriber\",'Enrollment Form'!C580=\"ROC\",'Enrollment Form'!O580<>\"Multiple of Salary\"),\"-\",IF(COUNTA('Enrollment Form'!T580:U580)<2,\"N\",\"Y\"))","v":"-"},{"$f":"IF(B573=\"N\",\"\",IF(OR('Enrollment Form'!C580=\"ROC\",'Enrollment Form'!B580<>\"Subscriber\",'Enrollment Form'!O580=\"Waive\",'Enrollment Form'!O580=\"\"),\"-\",IF('Enrollment Form'!P580=\"\",\"N\",\"Y\")))","v":""},{"$f":"IF($B573=\"N\",\"\",IF(AND('Enrollment Form'!$C580=\"ROC\",'Enrollment Form'!$DS580<>\"\"),\"Y\",IF(AND('Enrollment Form'!$C580=\"ROC\",'Enrollment Form'!$DS580=\"\"),\"N\",IF(AND('Enrollment Form'!$C580=\"Enroll\",'Enrollment Form'!$B580=\"Subscriber\",'Enrollment Form'!$CQ580=\"No\",'Enrollment Form'!$DS580=\"\"),\"N\",IF(AND('Enrollment Form'!$C580=\"Enroll\",'Enrollment Form'!$B580=\"Subscriber\",'Enrollment Form'!$CQ580=\"Yes\"),\"-\",\"Y\")))))","v":""},{"$f":"IF($B573=\"N\",\"\",IF(AND('Enrollment Form'!$C580=\"ROC\",'Enrollment Form'!$DT580<>\"\"),\"Y\",IF(AND('Enrollment Form'!$C580=\"ROC\",'Enrollment Form'!$DT580=\"\"),\"N\",IF(AND('Enrollment Form'!$C580=\"Enroll\",'Enrollment Form'!$B580=\"Subscriber\",'Enrollment Form'!$CQ580=\"No\",'Enrollment Form'!$DT580=\"\"),\"N\",IF(AND('Enrollment Form'!$C580=\"Enroll\",'Enrollment Form'!$B580=\"Subscriber\",'Enrollment Form'!$CQ580=\"Yes\"),\"-\",\"Y\")))))","v":""},{"$f":"IF('Enrollment Form'!AH580=\"\",\"\",IF(ISERROR(SEARCH(\".\",'Enrollment Form'!AH580,SEARCH(\"@\",'Enrollment Form'!AH580))),\"N\",\"Y\"))","v":""},{"$f":"IF(OR($B573=\"N\",'Enrollment Form'!$G580=\"\"),\"\",IF('Enrollment Form'!$B580<>\"Subscriber\",\"-\",IF(COUNTIF('Enrollment Form'!$AS580:$AT580,\"Yes\")=2,\"N\",\"Y\")))","v":""},{"$f":"IF(OR('Enrollment Form'!$CC580=\"\",'Enrollment Form'!$CC580=\"No\"),\"-\",IF(AND('Enrollment Form'!$CC580=\"Yes\",'Enrollment Form'!$CD580=\"\"),\"N\",\"Y\"))","v":"-"},{"$f":"IF(OR('Enrollment Form'!$CE580=\"\",'Enrollment Form'!$CE580=\"No\"),\"-\",IF(AND('Enrollment Form'!$CE580=\"Yes\",'Enrollment Form'!$CF580=\"\"),\"N\",\"Y\"))","v":"-"},{"$f":"IF(OR('Enrollment Form'!$CG580=\"\",'Enrollment Form'!$CG580=\"No\"),\"-\",IF(AND('Enrollment Form'!$CG580=\"Yes\",'Enrollment Form'!$CH580=\"\"),\"N\",\"Y\"))","v":"-"},{"$f":"IF(OR('Enrollment Form'!$CG580=\"\",'Enrollment Form'!$CG580=\"No\"),\"-\",IF(AND('Enrollment Form'!$CG580=\"Yes\",'Enrollment Form'!$CI580=\"\"),\"N\",\"Y\"))","v":"-"},{"$f":"IF('Enrollment Form'!B580<>\"Subscriber\",\"-\",IF(AND('Enrollment Form'!B580=\"Subscriber\",'Enrollment Form'!C580=\"Enroll\",'Enrollment Form'!AA580=\"\"),\"N\",\"Y\"))","v":"-"},{"$f":"IF(OR('Enrollment Form'!B580=\"Subscriber\",'Enrollment Form'!B580=\"\"),\"-\",IF('Enrollment Form'!BI580=\"\",\"N\",\"Y\"))","v":"-"},{"$f":"IF('Enrollment Form'!B580<>\"Subscriber\",\"-\",IF(AND('Enrollment Form'!B580=\"Subscriber\",'Enrollment Form'!G580=\"\"),\"N\",\"Y\"))","v":"-"},{"$f":"IF('Enrollment Form'!A580=\"\",\"\",IF('Enrollment Form'!B580=\"Subscriber\",\"-\",IF(AND('Enrollment Form'!B580<>\"Subscriber\",'Enrollment Form'!G580='Enrollment Form'!H580),\"N\",\"Y\")))","v":""},0]
[581,{"$f":"IF('Enrollment Form'!$A581<>\"\",\"Y\",\"N\")","v":"N"},{"$f":"IF(AND('Enrollment Form'!$B581=\"\",'Enrollment Form'!$C581<>\"\"),\"N\",IF($B574=\"N\",\"\",\"Y\"))","v":""},{"$f":"IF(OR($B574=\"N\",'Enrollment Form'!G581=\"\"),\"\",IF('Enrollment Form'!$B581<>\"Subscriber\",\"\",IF('Enrollment Form'!$G581='Enrollment Form'!$H581,\"Y\",\"N\")))","v":""},{"$f":"IF($B574=\"N\",\"\",IF(AND(COUNTIFS('Enrollment Form'!$H$11:$H$1000,'Enrollment Form'!$H581,'Enrollment Form'!$B$11:$B$1000,'Enrollment Form'!$B581)>1,'Enrollment Form'!$H581<>\"\"),\"N\",\"Y\"))","v":""},{"$f":"IF($B574=\"N\",\"\",IF(LEN('Enrollment Form'!$Y581)=0,\"\",IF(LEN('Enrollment Form'!$Y581)<>5,\"N\",\"Y\")))","v":""},{"$f":"IF($B574=\"N\",\"\",IF(LEN('Enrollment Form'!$AD581=0),\"\",IF(LEN('Enrollment Form'!$AD581)<>5,\"N\",\"Y\")))","v":""},{"$f":"IF($B574=\"N\",\"\",IF(LEN('Enrollment Form'!$BL581=0),\"\",IF(LEN('Enrollment Form'!$BL581)<>5,\"N\",\"Y\")))","v":""},{"$f":"IF($B574=\"N\",\"\",IF(LEN('Enrollment Form'!$AE581)=0,\"\",IF(LEN('Enrollment Form'!$AE581)<>10,\"N\",\"Y\")))","v":""},{"$f":"IF($B574=\"N\",\"\",IF(LEN('Enrollment Form'!$AF581)=0,\"\",IF(LEN('Enrollment Form'!$AF581)<>10,\"N\",\"Y\")))","v":""},{"$f":"IF('Enrollment Form'!$O581<>\"Graded\",\"-\",IF(AND('Enrollment Form'!$O581=\"Graded\",'Enrollment Form'!$AO581<>\"\"),\"Y\",\"N\"))","v":"-"},{"$f":"IF($B574=\"N\",\"\",IF(OR('Enrollment Form'!$B581<>\"Subscriber\",'Enrollment Form'!$C581=\"ROC\"),\"-\",IF(AND('Enrollment Form'!$B581=\"Subscriber\",'Enrollment Form'!$C581=\"Enroll\",'Enrollment Form'!$AJ581<>\"\"),\"Y\",\"N\")))","v":""},{"$f":"IF($B574=\"N\",\"\",IF(OR('Enrollment Form'!$B581<>\"Subscriber\",'Enrollment Form'!$C581=\"ROC\"),\"-\",IF(AND('Enrollment Form'!$B581=\"Subscriber\",'Enrollment Form'!$C581=\"Enroll\",'Enrollment Form'!$AK581<>\"\"),\"Y\",\"N\")))","v":""},{"$f":"IF($B574=\"N\",\"\",IF(OR('Enrollment Form'!$B581<>\"Subscriber\",'Enrollment Form'!$C581=\"ROC\"),\"-\",IF(AND('Enrollment Form'!$B581=\"Subscriber\",'Enrollment Form'!$C581=\"Enroll\",'Enrollment Form'!$AL581<>\"\"),\"Y\",\"N\")))","v":""},{"$f":"IF($B574=\"N\",\"\",IF(OR('Enrollment Form'!$B581<>\"Subscriber\",'Enrollment Form'!$C581=\"ROC\"),\"-\",IF(AND('Enrollment Form'!$B581=\"Subscriber\",'Enrollment Form'!$C581=\"Enroll\",'Enrollment Form'!$AM581<>\"\"),\"Y\",\"N\")))","v":""},{"$f":"IF($B574=\"N\",\"\",IF(OR('Enrollment Form'!$B581<>\"Subscriber\",'Enrollment Form'!$C581=\"ROC\"),\"-\",IF(AND('Enrollment Form'!$B581=\"Subscriber\",'Enrollment Form'!$C581=\"Enroll\",'Enrollment Form'!$AN581<>\"\"),\"Y\",\"N\")))","v":""},{"$f":"IF($B574=\"N\",\"\",IF(OR('Enrollment Form'!$B581<>\"Subscriber\",'Enrollment Form'!$C581=\"ROC\"),\"-\",IF(AND('Enrollment Form'!$B581=\"Subscriber\",'Enrollment Form'!$C581=\"Enroll\",'Enrollment Form'!$AP581<>\"\"),\"Y\",\"N\")))","v":""},{"$f":"IF($B574=\"N\",\"\",IF($Q574=\"-\",\"-\",IF(AND($Q574=\"Y\",'Enrollment Form'!$AP581=\"No\"),\"-\",IF(AND($Q574=\"Y\",'Enrollment Form'!$AP581=\"Yes\",'Enrollment Form'!$AQ581<>\"\"),\"Y\",\"N\"))))","v":""},{"$f":"IF($B574=\"N\",\"\",IF(OR('Enrollment Form'!$B581<>\"Subscriber\",'Enrollment Form'!$C581=\"ROC\"),\"-\",IF(AND('Enrollment Form'!$B581=\"Subscriber\",'Enrollment Form'!$C581=\"Enroll\",'Enrollment Form'!$CO581<>\"\"),\"Y\",\"N\")))","v":""},{"$f":"IF($B574=\"N\",\"\",IF($S574=\"-\",\"-\",IF(AND($S574=\"Y\",'Enrollment Form'!$CO581=\"No\"),\"-\",IF(AND($S574=\"Y\",'Enrollment Form'!$CO581=\"Yes\",'Enrollment Form'!$CP581<>\"\"),\"Y\",\"N\"))))","v":""},{"$f":"IF(OR('Enrollment Form'!$AV581=\"Yes\",'Enrollment Form'!$AV581=\"\"),\"-\",IF(AND('Enrollment Form'!$AV581=\"No\",ISERROR(FIND(\"HMO\",VLOOKUP('Enrollment Form'!G581,'Enrollment Form'!H$11:J$1000,3,FALSE),1))=FALSE,COUNTA('Enrollment Form'!$AW581:$AZ581)=4),\"Y\",\"N\"))","v":"-"},{"$f":"IF($B574=\"N\",\"\",IF('Enrollment Form'!$B581=\"Subscriber\",\"-\",IF(COUNTA('Enrollment Form'!$BE581,'Enrollment Form'!$BG581)=2,\"Y\",\"N\")))","v":""},{"$f":"IF($B574=\"N\",\"\",IF(OR('Enrollment Form'!$AU581=\"\",'Enrollment Form'!$AU581=\"No\"),\"-\",IF(AND('Enrollment Form'!$AU581=\"Yes\",COUNTA('Enrollment Form'!$CK581)=1),\"Y\",\"N\")))","v":""},{"$f":"IF(OR('Enrollment Form'!$CK581=\"\",'Enrollment Form'!$CK581=\"No\"),\"-\",IF(COUNTA('Enrollment Form'!$CM581:$CN581)=2,\"Y\",\"N\"))","v":"-"},{"$f":"IF($B574=\"N\",\"\",IF(COUNTIF('Enrollment Form'!$CZ581:$DO581,\"Other\")=COUNTA('Enrollment Form'!$DF581,'Enrollment Form'!$DA581,'Enrollment Form'!$DK581,'Enrollment Form'!$DP581),\"Y\",\"N\"))","v":""},{"$f":"IF($B574=\"N\",\"\",IF(OR('Enrollment Form'!B581<>\"Subscriber\",'Enrollment Form'!C581=\"ROC\",COUNTIF('Enrollment Form'!AS581:AT581,\"Yes\")>=1),\"-\",IF(AND('Enrollment Form'!C581=\"Enroll\",COUNTIF('Enrollment Form'!AS581:AT581,\"No\")=2,'Enrollment Form'!AU581=\"\"),\"N\",\"Y\")))","v":""},{"$f":"IF(OR(B574=\"N\",'Enrollment Form'!B581<>\"Subscriber\",'Enrollment Form'!C581=\"ROC\",'Enrollment Form'!O581<>\"Multiple of Salary\"),\"-\",IF(COUNTA('Enrollment Form'!T581:U581)<2,\"N\",\"Y\"))","v":"-"},{"$f":"IF(B574=\"N\",\"\",IF(OR('Enrollment Form'!C581=\"ROC\",'Enrollment Form'!B581<>\"Subscriber\",'Enrollment Form'!O581=\"Waive\",'Enrollment Form'!O581=\"\"),\"-\",IF('Enrollment Form'!P581=\"\",\"N\",\"Y\")))","v":""},{"$f":"IF($B574=\"N\",\"\",IF(AND('Enrollment Form'!$C581=\"ROC\",'Enrollment Form'!$DS581<>\"\"),\"Y\",IF(AND('Enrollment Form'!$C581=\"ROC\",'Enrollment Form'!$DS581=\"\"),\"N\",IF(AND('Enrollment Form'!$C581=\"Enroll\",'Enrollment Form'!$B581=\"Subscriber\",'Enrollment Form'!$CQ581=\"No\",'Enrollment Form'!$DS581=\"\"),\"N\",IF(AND('Enrollment Form'!$C581=\"Enroll\",'Enrollment Form'!$B581=\"Subscriber\",'Enrollment Form'!$CQ581=\"Yes\"),\"-\",\"Y\")))))","v":""},{"$f":"IF($B574=\"N\",\"\",IF(AND('Enrollment Form'!$C581=\"ROC\",'Enrollment Form'!$DT581<>\"\"),\"Y\",IF(AND('Enrollment Form'!$C581=\"ROC\",'Enrollment Form'!$DT581=\"\"),\"N\",IF(AND('Enrollment Form'!$C581=\"Enroll\",'Enrollment Form'!$B581=\"Subscriber\",'Enrollment Form'!$CQ581=\"No\",'Enrollment Form'!$DT581=\"\"),\"N\",IF(AND('Enrollment Form'!$C581=\"Enroll\",'Enrollment Form'!$B581=\"Subscriber\",'Enrollment Form'!$CQ581=\"Yes\"),\"-\",\"Y\")))))","v":""},{"$f":"IF('Enrollment Form'!AH581=\"\",\"\",IF(ISERROR(SEARCH(\".\",'Enrollment Form'!AH581,SEARCH(\"@\",'Enrollment Form'!AH581))),\"N\",\"Y\"))","v":""},{"$f":"IF(OR($B574=\"N\",'Enrollment Form'!$G581=\"\"),\"\",IF('Enrollment Form'!$B581<>\"Subscriber\",\"-\",IF(COUNTIF('Enrollment Form'!$AS581:$AT581,\"Yes\")=2,\"N\",\"Y\")))","v":""},{"$f":"IF(OR('Enrollment Form'!$CC581=\"\",'Enrollment Form'!$CC581=\"No\"),\"-\",IF(AND('Enrollment Form'!$CC581=\"Yes\",'Enrollment Form'!$CD581=\"\"),\"N\",\"Y\"))","v":"-"},{"$f":"IF(OR('Enrollment Form'!$CE581=\"\",'Enrollment Form'!$CE581=\"No\"),\"-\",IF(AND('Enrollment Form'!$CE581=\"Yes\",'Enrollment Form'!$CF581=\"\"),\"N\",\"Y\"))","v":"-"},{"$f":"IF(OR('Enrollment Form'!$CG581=\"\",'Enrollment Form'!$CG581=\"No\"),\"-\",IF(AND('Enrollment Form'!$CG581=\"Yes\",'Enrollment Form'!$CH581=\"\"),\"N\",\"Y\"))","v":"-"},{"$f":"IF(OR('Enrollment Form'!$CG581=\"\",'Enrollment Form'!$CG581=\"No\"),\"-\",IF(AND('Enrollment Form'!$CG581=\"Yes\",'Enrollment Form'!$CI581=\"\"),\"N\",\"Y\"))","v":"-"},{"$f":"IF('Enrollment Form'!B581<>\"Subscriber\",\"-\",IF(AND('Enrollment Form'!B581=\"Subscriber\",'Enrollment Form'!C581=\"Enroll\",'Enrollment Form'!AA581=\"\"),\"N\",\"Y\"))","v":"-"},{"$f":"IF(OR('Enrollment Form'!B581=\"Subscriber\",'Enrollment Form'!B581=\"\"),\"-\",IF('Enrollment Form'!BI581=\"\",\"N\",\"Y\"))","v":"-"},{"$f":"IF('Enrollment Form'!B581<>\"Subscriber\",\"-\",IF(AND('Enrollment Form'!B581=\"Subscriber\",'Enrollment Form'!G581=\"\"),\"N\",\"Y\"))","v":"-"},{"$f":"IF('Enrollment Form'!A581=\"\",\"\",IF('Enrollment Form'!B581=\"Subscriber\",\"-\",IF(AND('Enrollment Form'!B581<>\"Subscriber\",'Enrollment Form'!G581='Enrollment Form'!H581),\"N\",\"Y\")))","v":""},0]
[582,{"$f":"IF('Enrollment Form'!$A582<>\"\",\"Y\",\"N\")","v":"N"},{"$f":"IF(AND('Enrollment Form'!$B582=\"\",'Enrollment Form'!$C582<>\"\"),\"N\",IF($B575=\"N\",\"\",\"Y\"))","v":""},{"$f":"IF(OR($B575=\"N\",'Enrollment Form'!G582=\"\"),\"\",IF('Enrollment Form'!$B582<>\"Subscriber\",\"\",IF('Enrollment Form'!$G582='Enrollment Form'!$H582,\"Y\",\"N\")))","v":""},{"$f":"IF($B575=\"N\",\"\",IF(AND(COUNTIFS('Enrollment Form'!$H$11:$H$1000,'Enrollment Form'!$H582,'Enrollment Form'!$B$11:$B$1000,'Enrollment Form'!$B582)>1,'Enrollment Form'!$H582<>\"\"),\"N\",\"Y\"))","v":""},{"$f":"IF($B575=\"N\",\"\",IF(LEN('Enrollment Form'!$Y582)=0,\"\",IF(LEN('Enrollment Form'!$Y582)<>5,\"N\",\"Y\")))","v":""},{"$f":"IF($B575=\"N\",\"\",IF(LEN('Enrollment Form'!$AD582=0),\"\",IF(LEN('Enrollment Form'!$AD582)<>5,\"N\",\"Y\")))","v":""},{"$f":"IF($B575=\"N\",\"\",IF(LEN('Enrollment Form'!$BL582=0),\"\",IF(LEN('Enrollment Form'!$BL582)<>5,\"N\",\"Y\")))","v":""},{"$f":"IF($B575=\"N\",\"\",IF(LEN('Enrollment Form'!$AE582)=0,\"\",IF(LEN('Enrollment Form'!$AE582)<>10,\"N\",\"Y\")))","v":""},{"$f":"IF($B575=\"N\",\"\",IF(LEN('Enrollment Form'!$AF582)=0,\"\",IF(LEN('Enrollment Form'!$AF582)<>10,\"N\",\"Y\")))","v":""},{"$f":"IF('Enrollment Form'!$O582<>\"Graded\",\"-\",IF(AND('Enrollment Form'!$O582=\"Graded\",'Enrollment Form'!$AO582<>\"\"),\"Y\",\"N\"))","v":"-"},{"$f":"IF($B575=\"N\",\"\",IF(OR('Enrollment Form'!$B582<>\"Subscriber\",'Enrollment Form'!$C582=\"ROC\"),\"-\",IF(AND('Enrollment Form'!$B582=\"Subscriber\",'Enrollment Form'!$C582=\"Enroll\",'Enrollment Form'!$AJ582<>\"\"),\"Y\",\"N\")))","v":""},{"$f":"IF($B575=\"N\",\"\",IF(OR('Enrollment Form'!$B582<>\"Subscriber\",'Enrollment Form'!$C582=\"ROC\"),\"-\",IF(AND('Enrollment Form'!$B582=\"Subscriber\",'Enrollment Form'!$C582=\"Enroll\",'Enrollment Form'!$AK582<>\"\"),\"Y\",\"N\")))","v":""},{"$f":"IF($B575=\"N\",\"\",IF(OR('Enrollment Form'!$B582<>\"Subscriber\",'Enrollment Form'!$C582=\"ROC\"),\"-\",IF(AND('Enrollment Form'!$B582=\"Subscriber\",'Enrollment Form'!$C582=\"Enroll\",'Enrollment Form'!$AL582<>\"\"),\"Y\",\"N\")))","v":""},{"$f":"IF($B575=\"N\",\"\",IF(OR('Enrollment Form'!$B582<>\"Subscriber\",'Enrollment Form'!$C582=\"ROC\"),\"-\",IF(AND('Enrollment Form'!$B582=\"Subscriber\",'Enrollment Form'!$C582=\"Enroll\",'Enrollment Form'!$AM582<>\"\"),\"Y\",\"N\")))","v":""},{"$f":"IF($B575=\"N\",\"\",IF(OR('Enrollment Form'!$B582<>\"Subscriber\",'Enrollment Form'!$C582=\"ROC\"),\"-\",IF(AND('Enrollment Form'!$B582=\"Subscriber\",'Enrollment Form'!$C582=\"Enroll\",'Enrollment Form'!$AN582<>\"\"),\"Y\",\"N\")))","v":""},{"$f":"IF($B575=\"N\",\"\",IF(OR('Enrollment Form'!$B582<>\"Subscriber\",'Enrollment Form'!$C582=\"ROC\"),\"-\",IF(AND('Enrollment Form'!$B582=\"Subscriber\",'Enrollment Form'!$C582=\"Enroll\",'Enrollment Form'!$AP582<>\"\"),\"Y\",\"N\")))","v":""},{"$f":"IF($B575=\"N\",\"\",IF($Q575=\"-\",\"-\",IF(AND($Q575=\"Y\",'Enrollment Form'!$AP582=\"No\"),\"-\",IF(AND($Q575=\"Y\",'Enrollment Form'!$AP582=\"Yes\",'Enrollment Form'!$AQ582<>\"\"),\"Y\",\"N\"))))","v":""},{"$f":"IF($B575=\"N\",\"\",IF(OR('Enrollment Form'!$B582<>\"Subscriber\",'Enrollment Form'!$C582=\"ROC\"),\"-\",IF(AND('Enrollment Form'!$B582=\"Subscriber\",'Enrollment Form'!$C582=\"Enroll\",'Enrollment Form'!$CO582<>\"\"),\"Y\",\"N\")))","v":""},{"$f":"IF($B575=\"N\",\"\",IF($S575=\"-\",\"-\",IF(AND($S575=\"Y\",'Enrollment Form'!$CO582=\"No\"),\"-\",IF(AND($S575=\"Y\",'Enrollment Form'!$CO582=\"Yes\",'Enrollment Form'!$CP582<>\"\"),\"Y\",\"N\"))))","v":""},{"$f":"IF(OR('Enrollment Form'!$AV582=\"Yes\",'Enrollment Form'!$AV582=\"\"),\"-\",IF(AND('Enrollment Form'!$AV582=\"No\",ISERROR(FIND(\"HMO\",VLOOKUP('Enrollment Form'!G582,'Enrollment Form'!H$11:J$1000,3,FALSE),1))=FALSE,COUNTA('Enrollment Form'!$AW582:$AZ582)=4),\"Y\",\"N\"))","v":"-"},{"$f":"IF($B575=\"N\",\"\",IF('Enrollment Form'!$B582=\"Subscriber\",\"-\",IF(COUNTA('Enrollment Form'!$BE582,'Enrollment Form'!$BG582)=2,\"Y\",\"N\")))","v":""},{"$f":"IF($B575=\"N\",\"\",IF(OR('Enrollment Form'!$AU582=\"\",'Enrollment Form'!$AU582=\"No\"),\"-\",IF(AND('Enrollment Form'!$AU582=\"Yes\",COUNTA('Enrollment Form'!$CK582)=1),\"Y\",\"N\")))","v":""},{"$f":"IF(OR('Enrollment Form'!$CK582=\"\",'Enrollment Form'!$CK582=\"No\"),\"-\",IF(COUNTA('Enrollment Form'!$CM582:$CN582)=2,\"Y\",\"N\"))","v":"-"},{"$f":"IF($B575=\"N\",\"\",IF(COUNTIF('Enrollment Form'!$CZ582:$DO582,\"Other\")=COUNTA('Enrollment Form'!$DF582,'Enrollment Form'!$DA582,'Enrollment Form'!$DK582,'Enrollment Form'!$DP582),\"Y\",\"N\"))","v":""},{"$f":"IF($B575=\"N\",\"\",IF(OR('Enrollment Form'!B582<>\"Subscriber\",'Enrollment Form'!C582=\"ROC\",COUNTIF('Enrollment Form'!AS582:AT582,\"Yes\")>=1),\"-\",IF(AND('Enrollment Form'!C582=\"Enroll\",COUNTIF('Enrollment Form'!AS582:AT582,\"No\")=2,'Enrollment Form'!AU582=\"\"),\"N\",\"Y\")))","v":""},{"$f":"IF(OR(B575=\"N\",'Enrollment Form'!B582<>\"Subscriber\",'Enrollment Form'!C582=\"ROC\",'Enrollment Form'!O582<>\"Multiple of Salary\"),\"-\",IF(COUNTA('Enrollment Form'!T582:U582)<2,\"N\",\"Y\"))","v":"-"},{"$f":"IF(B575=\"N\",\"\",IF(OR('Enrollment Form'!C582=\"ROC\",'Enrollment Form'!B582<>\"Subscriber\",'Enrollment Form'!O582=\"Waive\",'Enrollment Form'!O582=\"\"),\"-\",IF('Enrollment Form'!P582=\"\",\"N\",\"Y\")))","v":""},{"$f":"IF($B575=\"N\",\"\",IF(AND('Enrollment Form'!$C582=\"ROC\",'Enrollment Form'!$DS582<>\"\"),\"Y\",IF(AND('Enrollment Form'!$C582=\"ROC\",'Enrollment Form'!$DS582=\"\"),\"N\",IF(AND('Enrollment Form'!$C582=\"Enroll\",'Enrollment Form'!$B582=\"Subscriber\",'Enrollment Form'!$CQ582=\"No\",'Enrollment Form'!$DS582=\"\"),\"N\",IF(AND('Enrollment Form'!$C582=\"Enroll\",'Enrollment Form'!$B582=\"Subscriber\",'Enrollment Form'!$CQ582=\"Yes\"),\"-\",\"Y\")))))","v":""},{"$f":"IF($B575=\"N\",\"\",IF(AND('Enrollment Form'!$C582=\"ROC\",'Enrollment Form'!$DT582<>\"\"),\"Y\",IF(AND('Enrollment Form'!$C582=\"ROC\",'Enrollment Form'!$DT582=\"\"),\"N\",IF(AND('Enrollment Form'!$C582=\"Enroll\",'Enrollment Form'!$B582=\"Subscriber\",'Enrollment Form'!$CQ582=\"No\",'Enrollment Form'!$DT582=\"\"),\"N\",IF(AND('Enrollment Form'!$C582=\"Enroll\",'Enrollment Form'!$B582=\"Subscriber\",'Enrollment Form'!$CQ582=\"Yes\"),\"-\",\"Y\")))))","v":""},{"$f":"IF('Enrollment Form'!AH582=\"\",\"\",IF(ISERROR(SEARCH(\".\",'Enrollment Form'!AH582,SEARCH(\"@\",'Enrollment Form'!AH582))),\"N\",\"Y\"))","v":""},{"$f":"IF(OR($B575=\"N\",'Enrollment Form'!$G582=\"\"),\"\",IF('Enrollment Form'!$B582<>\"Subscriber\",\"-\",IF(COUNTIF('Enrollment Form'!$AS582:$AT582,\"Yes\")=2,\"N\",\"Y\")))","v":""},{"$f":"IF(OR('Enrollment Form'!$CC582=\"\",'Enrollment Form'!$CC582=\"No\"),\"-\",IF(AND('Enrollment Form'!$CC582=\"Yes\",'Enrollment Form'!$CD582=\"\"),\"N\",\"Y\"))","v":"-"},{"$f":"IF(OR('Enrollment Form'!$CE582=\"\",'Enrollment Form'!$CE582=\"No\"),\"-\",IF(AND('Enrollment Form'!$CE582=\"Yes\",'Enrollment Form'!$CF582=\"\"),\"N\",\"Y\"))","v":"-"},{"$f":"IF(OR('Enrollment Form'!$CG582=\"\",'Enrollment Form'!$CG582=\"No\"),\"-\",IF(AND('Enrollment Form'!$CG582=\"Yes\",'Enrollment Form'!$CH582=\"\"),\"N\",\"Y\"))","v":"-"},{"$f":"IF(OR('Enrollment Form'!$CG582=\"\",'Enrollment Form'!$CG582=\"No\"),\"-\",IF(AND('Enrollment Form'!$CG582=\"Yes\",'Enrollment Form'!$CI582=\"\"),\"N\",\"Y\"))","v":"-"},{"$f":"IF('Enrollment Form'!B582<>\"Subscriber\",\"-\",IF(AND('Enrollment Form'!B582=\"Subscriber\",'Enrollment Form'!C582=\"Enroll\",'Enrollment Form'!AA582=\"\"),\"N\",\"Y\"))","v":"-"},{"$f":"IF(OR('Enrollment Form'!B582=\"Subscriber\",'Enrollment Form'!B582=\"\"),\"-\",IF('Enrollment Form'!BI582=\"\",\"N\",\"Y\"))","v":"-"},{"$f":"IF('Enrollment Form'!B582<>\"Subscriber\",\"-\",IF(AND('Enrollment Form'!B582=\"Subscriber\",'Enrollment Form'!G582=\"\"),\"N\",\"Y\"))","v":"-"},{"$f":"IF('Enrollment Form'!A582=\"\",\"\",IF('Enrollment Form'!B582=\"Subscriber\",\"-\",IF(AND('Enrollment Form'!B582<>\"Subscriber\",'Enrollment Form'!G582='Enrollment Form'!H582),\"N\",\"Y\")))","v":""},0]
[583,{"$f":"IF('Enrollment Form'!$A583<>\"\",\"Y\",\"N\")","v":"N"},{"$f":"IF(AND('Enrollment Form'!$B583=\"\",'Enrollment Form'!$C583<>\"\"),\"N\",IF($B576=\"N\",\"\",\"Y\"))","v":""},{"$f":"IF(OR($B576=\"N\",'Enrollment Form'!G583=\"\"),\"\",IF('Enrollment Form'!$B583<>\"Subscriber\",\"\",IF('Enrollment Form'!$G583='Enrollment Form'!$H583,\"Y\",\"N\")))","v":""},{"$f":"IF($B576=\"N\",\"\",IF(AND(COUNTIFS('Enrollment Form'!$H$11:$H$1000,'Enrollment Form'!$H583,'Enrollment Form'!$B$11:$B$1000,'Enrollment Form'!$B583)>1,'Enrollment Form'!$H583<>\"\"),\"N\",\"Y\"))","v":""},{"$f":"IF($B576=\"N\",\"\",IF(LEN('Enrollment Form'!$Y583)=0,\"\",IF(LEN('Enrollment Form'!$Y583)<>5,\"N\",\"Y\")))","v":""},{"$f":"IF($B576=\"N\",\"\",IF(LEN('Enrollment Form'!$AD583=0),\"\",IF(LEN('Enrollment Form'!$AD583)<>5,\"N\",\"Y\")))","v":""},{"$f":"IF($B576=\"N\",\"\",IF(LEN('Enrollment Form'!$BL583=0),\"\",IF(LEN('Enrollment Form'!$BL583)<>5,\"N\",\"Y\")))","v":""},{"$f":"IF($B576=\"N\",\"\",IF(LEN('Enrollment Form'!$AE583)=0,\"\",IF(LEN('Enrollment Form'!$AE583)<>10,\"N\",\"Y\")))","v":""},{"$f":"IF($B576=\"N\",\"\",IF(LEN('Enrollment Form'!$AF583)=0,\"\",IF(LEN('Enrollment Form'!$AF583)<>10,\"N\",\"Y\")))","v":""},{"$f":"IF('Enrollment Form'!$O583<>\"Graded\",\"-\",IF(AND('Enrollment Form'!$O583=\"Graded\",'Enrollment Form'!$AO583<>\"\"),\"Y\",\"N\"))","v":"-"},{"$f":"IF($B576=\"N\",\"\",IF(OR('Enrollment Form'!$B583<>\"Subscriber\",'Enrollment Form'!$C583=\"ROC\"),\"-\",IF(AND('Enrollment Form'!$B583=\"Subscriber\",'Enrollment Form'!$C583=\"Enroll\",'Enrollment Form'!$AJ583<>\"\"),\"Y\",\"N\")))","v":""},{"$f":"IF($B576=\"N\",\"\",IF(OR('Enrollment Form'!$B583<>\"Subscriber\",'Enrollment Form'!$C583=\"ROC\"),\"-\",IF(AND('Enrollment Form'!$B583=\"Subscriber\",'Enrollment Form'!$C583=\"Enroll\",'Enrollment Form'!$AK583<>\"\"),\"Y\",\"N\")))","v":""},{"$f":"IF($B576=\"N\",\"\",IF(OR('Enrollment Form'!$B583<>\"Subscriber\",'Enrollment Form'!$C583=\"ROC\"),\"-\",IF(AND('Enrollment Form'!$B583=\"Subscriber\",'Enrollment Form'!$C583=\"Enroll\",'Enrollment Form'!$AL583<>\"\"),\"Y\",\"N\")))","v":""},{"$f":"IF($B576=\"N\",\"\",IF(OR('Enrollment Form'!$B583<>\"Subscriber\",'Enrollment Form'!$C583=\"ROC\"),\"-\",IF(AND('Enrollment Form'!$B583=\"Subscriber\",'Enrollment Form'!$C583=\"Enroll\",'Enrollment Form'!$AM583<>\"\"),\"Y\",\"N\")))","v":""},{"$f":"IF($B576=\"N\",\"\",IF(OR('Enrollment Form'!$B583<>\"Subscriber\",'Enrollment Form'!$C583=\"ROC\"),\"-\",IF(AND('Enrollment Form'!$B583=\"Subscriber\",'Enrollment Form'!$C583=\"Enroll\",'Enrollment Form'!$AN583<>\"\"),\"Y\",\"N\")))","v":""},{"$f":"IF($B576=\"N\",\"\",IF(OR('Enrollment Form'!$B583<>\"Subscriber\",'Enrollment Form'!$C583=\"ROC\"),\"-\",IF(AND('Enrollment Form'!$B583=\"Subscriber\",'Enrollment Form'!$C583=\"Enroll\",'Enrollment Form'!$AP583<>\"\"),\"Y\",\"N\")))","v":""},{"$f":"IF($B576=\"N\",\"\",IF($Q576=\"-\",\"-\",IF(AND($Q576=\"Y\",'Enrollment Form'!$AP583=\"No\"),\"-\",IF(AND($Q576=\"Y\",'Enrollment Form'!$AP583=\"Yes\",'Enrollment Form'!$AQ583<>\"\"),\"Y\",\"N\"))))","v":""},{"$f":"IF($B576=\"N\",\"\",IF(OR('Enrollment Form'!$B583<>\"Subscriber\",'Enrollment Form'!$C583=\"ROC\"),\"-\",IF(AND('Enrollment Form'!$B583=\"Subscriber\",'Enrollment Form'!$C583=\"Enroll\",'Enrollment Form'!$CO583<>\"\"),\"Y\",\"N\")))","v":""},{"$f":"IF($B576=\"N\",\"\",IF($S576=\"-\",\"-\",IF(AND($S576=\"Y\",'Enrollment Form'!$CO583=\"No\"),\"-\",IF(AND($S576=\"Y\",'Enrollment Form'!$CO583=\"Yes\",'Enrollment Form'!$CP583<>\"\"),\"Y\",\"N\"))))","v":""},{"$f":"IF(OR('Enrollment Form'!$AV583=\"Yes\",'Enrollment Form'!$AV583=\"\"),\"-\",IF(AND('Enrollment Form'!$AV583=\"No\",ISERROR(FIND(\"HMO\",VLOOKUP('Enrollment Form'!G583,'Enrollment Form'!H$11:J$1000,3,FALSE),1))=FALSE,COUNTA('Enrollment Form'!$AW583:$AZ583)=4),\"Y\",\"N\"))","v":"-"},{"$f":"IF($B576=\"N\",\"\",IF('Enrollment Form'!$B583=\"Subscriber\",\"-\",IF(COUNTA('Enrollment Form'!$BE583,'Enrollment Form'!$BG583)=2,\"Y\",\"N\")))","v":""},{"$f":"IF($B576=\"N\",\"\",IF(OR('Enrollment Form'!$AU583=\"\",'Enrollment Form'!$AU583=\"No\"),\"-\",IF(AND('Enrollment Form'!$AU583=\"Yes\",COUNTA('Enrollment Form'!$CK583)=1),\"Y\",\"N\")))","v":""},{"$f":"IF(OR('Enrollment Form'!$CK583=\"\",'Enrollment Form'!$CK583=\"No\"),\"-\",IF(COUNTA('Enrollment Form'!$CM583:$CN583)=2,\"Y\",\"N\"))","v":"-"},{"$f":"IF($B576=\"N\",\"\",IF(COUNTIF('Enrollment Form'!$CZ583:$DO583,\"Other\")=COUNTA('Enrollment Form'!$DF583,'Enrollment Form'!$DA583,'Enrollment Form'!$DK583,'Enrollment Form'!$DP583),\"Y\",\"N\"))","v":""},{"$f":"IF($B576=\"N\",\"\",IF(OR('Enrollment Form'!B583<>\"Subscriber\",'Enrollment Form'!C583=\"ROC\",COUNTIF('Enrollment Form'!AS583:AT583,\"Yes\")>=1),\"-\",IF(AND('Enrollment Form'!C583=\"Enroll\",COUNTIF('Enrollment Form'!AS583:AT583,\"No\")=2,'Enrollment Form'!AU583=\"\"),\"N\",\"Y\")))","v":""},{"$f":"IF(OR(B576=\"N\",'Enrollment Form'!B583<>\"Subscriber\",'Enrollment Form'!C583=\"ROC\",'Enrollment Form'!O583<>\"Multiple of Salary\"),\"-\",IF(COUNTA('Enrollment Form'!T583:U583)<2,\"N\",\"Y\"))","v":"-"},{"$f":"IF(B576=\"N\",\"\",IF(OR('Enrollment Form'!C583=\"ROC\",'Enrollment Form'!B583<>\"Subscriber\",'Enrollment Form'!O583=\"Waive\",'Enrollment Form'!O583=\"\"),\"-\",IF('Enrollment Form'!P583=\"\",\"N\",\"Y\")))","v":""},{"$f":"IF($B576=\"N\",\"\",IF(AND('Enrollment Form'!$C583=\"ROC\",'Enrollment Form'!$DS583<>\"\"),\"Y\",IF(AND('Enrollment Form'!$C583=\"ROC\",'Enrollment Form'!$DS583=\"\"),\"N\",IF(AND('Enrollment Form'!$C583=\"Enroll\",'Enrollment Form'!$B583=\"Subscriber\",'Enrollment Form'!$CQ583=\"No\",'Enrollment Form'!$DS583=\"\"),\"N\",IF(AND('Enrollment Form'!$C583=\"Enroll\",'Enrollment Form'!$B583=\"Subscriber\",'Enrollment Form'!$CQ583=\"Yes\"),\"-\",\"Y\")))))","v":""},{"$f":"IF($B576=\"N\",\"\",IF(AND('Enrollment Form'!$C583=\"ROC\",'Enrollment Form'!$DT583<>\"\"),\"Y\",IF(AND('Enrollment Form'!$C583=\"ROC\",'Enrollment Form'!$DT583=\"\"),\"N\",IF(AND('Enrollment Form'!$C583=\"Enroll\",'Enrollment Form'!$B583=\"Subscriber\",'Enrollment Form'!$CQ583=\"No\",'Enrollment Form'!$DT583=\"\"),\"N\",IF(AND('Enrollment Form'!$C583=\"Enroll\",'Enrollment Form'!$B583=\"Subscriber\",'Enrollment Form'!$CQ583=\"Yes\"),\"-\",\"Y\")))))","v":""},{"$f":"IF('Enrollment Form'!AH583=\"\",\"\",IF(ISERROR(SEARCH(\".\",'Enrollment Form'!AH583,SEARCH(\"@\",'Enrollment Form'!AH583))),\"N\",\"Y\"))","v":""},{"$f":"IF(OR($B576=\"N\",'Enrollment Form'!$G583=\"\"),\"\",IF('Enrollment Form'!$B583<>\"Subscriber\",\"-\",IF(COUNTIF('Enrollment Form'!$AS583:$AT583,\"Yes\")=2,\"N\",\"Y\")))","v":""},{"$f":"IF(OR('Enrollment Form'!$CC583=\"\",'Enrollment Form'!$CC583=\"No\"),\"-\",IF(AND('Enrollment Form'!$CC583=\"Yes\",'Enrollment Form'!$CD583=\"\"),\"N\",\"Y\"))","v":"-"},{"$f":"IF(OR('Enrollment Form'!$CE583=\"\",'Enrollment Form'!$CE583=\"No\"),\"-\",IF(AND('Enrollment Form'!$CE583=\"Yes\",'Enrollment Form'!$CF583=\"\"),\"N\",\"Y\"))","v":"-"},{"$f":"IF(OR('Enrollment Form'!$CG583=\"\",'Enrollment Form'!$CG583=\"No\"),\"-\",IF(AND('Enrollment Form'!$CG583=\"Yes\",'Enrollment Form'!$CH583=\"\"),\"N\",\"Y\"))","v":"-"},{"$f":"IF(OR('Enrollment Form'!$CG583=\"\",'Enrollment Form'!$CG583=\"No\"),\"-\",IF(AND('Enrollment Form'!$CG583=\"Yes\",'Enrollment Form'!$CI583=\"\"),\"N\",\"Y\"))","v":"-"},{"$f":"IF('Enrollment Form'!B583<>\"Subscriber\",\"-\",IF(AND('Enrollment Form'!B583=\"Subscriber\",'Enrollment Form'!C583=\"Enroll\",'Enrollment Form'!AA583=\"\"),\"N\",\"Y\"))","v":"-"},{"$f":"IF(OR('Enrollment Form'!B583=\"Subscriber\",'Enrollment Form'!B583=\"\"),\"-\",IF('Enrollment Form'!BI583=\"\",\"N\",\"Y\"))","v":"-"},{"$f":"IF('Enrollment Form'!B583<>\"Subscriber\",\"-\",IF(AND('Enrollment Form'!B583=\"Subscriber\",'Enrollment Form'!G583=\"\"),\"N\",\"Y\"))","v":"-"},{"$f":"IF('Enrollment Form'!A583=\"\",\"\",IF('Enrollment Form'!B583=\"Subscriber\",\"-\",IF(AND('Enrollment Form'!B583<>\"Subscriber\",'Enrollment Form'!G583='Enrollment Form'!H583),\"N\",\"Y\")))","v":""},0]
[584,{"$f":"IF('Enrollment Form'!$A584<>\"\",\"Y\",\"N\")","v":"N"},{"$f":"IF(AND('Enrollment Form'!$B584=\"\",'Enrollment Form'!$C584<>\"\"),\"N\",IF($B577=\"N\",\"\",\"Y\"))","v":""},{"$f":"IF(OR($B577=\"N\",'Enrollment Form'!G584=\"\"),\"\",IF('Enrollment Form'!$B584<>\"Subscriber\",\"\",IF('Enrollment Form'!$G584='Enrollment Form'!$H584,\"Y\",\"N\")))","v":""},{"$f":"IF($B577=\"N\",\"\",IF(AND(COUNTIFS('Enrollment Form'!$H$11:$H$1000,'Enrollment Form'!$H584,'Enrollment Form'!$B$11:$B$1000,'Enrollment Form'!$B584)>1,'Enrollment Form'!$H584<>\"\"),\"N\",\"Y\"))","v":""},{"$f":"IF($B577=\"N\",\"\",IF(LEN('Enrollment Form'!$Y584)=0,\"\",IF(LEN('Enrollment Form'!$Y584)<>5,\"N\",\"Y\")))","v":""},{"$f":"IF($B577=\"N\",\"\",IF(LEN('Enrollment Form'!$AD584=0),\"\",IF(LEN('Enrollment Form'!$AD584)<>5,\"N\",\"Y\")))","v":""},{"$f":"IF($B577=\"N\",\"\",IF(LEN('Enrollment Form'!$BL584=0),\"\",IF(LEN('Enrollment Form'!$BL584)<>5,\"N\",\"Y\")))","v":""},{"$f":"IF($B577=\"N\",\"\",IF(LEN('Enrollment Form'!$AE584)=0,\"\",IF(LEN('Enrollment Form'!$AE584)<>10,\"N\",\"Y\")))","v":""},{"$f":"IF($B577=\"N\",\"\",IF(LEN('Enrollment Form'!$AF584)=0,\"\",IF(LEN('Enrollment Form'!$AF584)<>10,\"N\",\"Y\")))","v":""},{"$f":"IF('Enrollment Form'!$O584<>\"Graded\",\"-\",IF(AND('Enrollment Form'!$O584=\"Graded\",'Enrollment Form'!$AO584<>\"\"),\"Y\",\"N\"))","v":"-"},{"$f":"IF($B577=\"N\",\"\",IF(OR('Enrollment Form'!$B584<>\"Subscriber\",'Enrollment Form'!$C584=\"ROC\"),\"-\",IF(AND('Enrollment Form'!$B584=\"Subscriber\",'Enrollment Form'!$C584=\"Enroll\",'Enrollment Form'!$AJ584<>\"\"),\"Y\",\"N\")))","v":""},{"$f":"IF($B577=\"N\",\"\",IF(OR('Enrollment Form'!$B584<>\"Subscriber\",'Enrollment Form'!$C584=\"ROC\"),\"-\",IF(AND('Enrollment Form'!$B584=\"Subscriber\",'Enrollment Form'!$C584=\"Enroll\",'Enrollment Form'!$AK584<>\"\"),\"Y\",\"N\")))","v":""},{"$f":"IF($B577=\"N\",\"\",IF(OR('Enrollment Form'!$B584<>\"Subscriber\",'Enrollment Form'!$C584=\"ROC\"),\"-\",IF(AND('Enrollment Form'!$B584=\"Subscriber\",'Enrollment Form'!$C584=\"Enroll\",'Enrollment Form'!$AL584<>\"\"),\"Y\",\"N\")))","v":""},{"$f":"IF($B577=\"N\",\"\",IF(OR('Enrollment Form'!$B584<>\"Subscriber\",'Enrollment Form'!$C584=\"ROC\"),\"-\",IF(AND('Enrollment Form'!$B584=\"Subscriber\",'Enrollment Form'!$C584=\"Enroll\",'Enrollment Form'!$AM584<>\"\"),\"Y\",\"N\")))","v":""},{"$f":"IF($B577=\"N\",\"\",IF(OR('Enrollment Form'!$B584<>\"Subscriber\",'Enrollment Form'!$C584=\"ROC\"),\"-\",IF(AND('Enrollment Form'!$B584=\"Subscriber\",'Enrollment Form'!$C584=\"Enroll\",'Enrollment Form'!$AN584<>\"\"),\"Y\",\"N\")))","v":""},{"$f":"IF($B577=\"N\",\"\",IF(OR('Enrollment Form'!$B584<>\"Subscriber\",'Enrollment Form'!$C584=\"ROC\"),\"-\",IF(AND('Enrollment Form'!$B584=\"Subscriber\",'Enrollment Form'!$C584=\"Enroll\",'Enrollment Form'!$AP584<>\"\"),\"Y\",\"N\")))","v":""},{"$f":"IF($B577=\"N\",\"\",IF($Q577=\"-\",\"-\",IF(AND($Q577=\"Y\",'Enrollment Form'!$AP584=\"No\"),\"-\",IF(AND($Q577=\"Y\",'Enrollment Form'!$AP584=\"Yes\",'Enrollment Form'!$AQ584<>\"\"),\"Y\",\"N\"))))","v":""},{"$f":"IF($B577=\"N\",\"\",IF(OR('Enrollment Form'!$B584<>\"Subscriber\",'Enrollment Form'!$C584=\"ROC\"),\"-\",IF(AND('Enrollment Form'!$B584=\"Subscriber\",'Enrollment Form'!$C584=\"Enroll\",'Enrollment Form'!$CO584<>\"\"),\"Y\",\"N\")))","v":""},{"$f":"IF($B577=\"N\",\"\",IF($S577=\"-\",\"-\",IF(AND($S577=\"Y\",'Enrollment Form'!$CO584=\"No\"),\"-\",IF(AND($S577=\"Y\",'Enrollment Form'!$CO584=\"Yes\",'Enrollment Form'!$CP584<>\"\"),\"Y\",\"N\"))))","v":""},{"$f":"IF(OR('Enrollment Form'!$AV584=\"Yes\",'Enrollment Form'!$AV584=\"\"),\"-\",IF(AND('Enrollment Form'!$AV584=\"No\",ISERROR(FIND(\"HMO\",VLOOKUP('Enrollment Form'!G584,'Enrollment Form'!H$11:J$1000,3,FALSE),1))=FALSE,COUNTA('Enrollment Form'!$AW584:$AZ584)=4),\"Y\",\"N\"))","v":"-"},{"$f":"IF($B577=\"N\",\"\",IF('Enrollment Form'!$B584=\"Subscriber\",\"-\",IF(COUNTA('Enrollment Form'!$BE584,'Enrollment Form'!$BG584)=2,\"Y\",\"N\")))","v":""},{"$f":"IF($B577=\"N\",\"\",IF(OR('Enrollment Form'!$AU584=\"\",'Enrollment Form'!$AU584=\"No\"),\"-\",IF(AND('Enrollment Form'!$AU584=\"Yes\",COUNTA('Enrollment Form'!$CK584)=1),\"Y\",\"N\")))","v":""},{"$f":"IF(OR('Enrollment Form'!$CK584=\"\",'Enrollment Form'!$CK584=\"No\"),\"-\",IF(COUNTA('Enrollment Form'!$CM584:$CN584)=2,\"Y\",\"N\"))","v":"-"},{"$f":"IF($B577=\"N\",\"\",IF(COUNTIF('Enrollment Form'!$CZ584:$DO584,\"Other\")=COUNTA('Enrollment Form'!$DF584,'Enrollment Form'!$DA584,'Enrollment Form'!$DK584,'Enrollment Form'!$DP584),\"Y\",\"N\"))","v":""},{"$f":"IF($B577=\"N\",\"\",IF(OR('Enrollment Form'!B584<>\"Subscriber\",'Enrollment Form'!C584=\"ROC\",COUNTIF('Enrollment Form'!AS584:AT584,\"Yes\")>=1),\"-\",IF(AND('Enrollment Form'!C584=\"Enroll\",COUNTIF('Enrollment Form'!AS584:AT584,\"No\")=2,'Enrollment Form'!AU584=\"\"),\"N\",\"Y\")))","v":""},{"$f":"IF(OR(B577=\"N\",'Enrollment Form'!B584<>\"Subscriber\",'Enrollment Form'!C584=\"ROC\",'Enrollment Form'!O584<>\"Multiple of Salary\"),\"-\",IF(COUNTA('Enrollment Form'!T584:U584)<2,\"N\",\"Y\"))","v":"-"},{"$f":"IF(B577=\"N\",\"\",IF(OR('Enrollment Form'!C584=\"ROC\",'Enrollment Form'!B584<>\"Subscriber\",'Enrollment Form'!O584=\"Waive\",'Enrollment Form'!O584=\"\"),\"-\",IF('Enrollment Form'!P584=\"\",\"N\",\"Y\")))","v":""},{"$f":"IF($B577=\"N\",\"\",IF(AND('Enrollment Form'!$C584=\"ROC\",'Enrollment Form'!$DS584<>\"\"),\"Y\",IF(AND('Enrollment Form'!$C584=\"ROC\",'Enrollment Form'!$DS584=\"\"),\"N\",IF(AND('Enrollment Form'!$C584=\"Enroll\",'Enrollment Form'!$B584=\"Subscriber\",'Enrollment Form'!$CQ584=\"No\",'Enrollment Form'!$DS584=\"\"),\"N\",IF(AND('Enrollment Form'!$C584=\"Enroll\",'Enrollment Form'!$B584=\"Subscriber\",'Enrollment Form'!$CQ584=\"Yes\"),\"-\",\"Y\")))))","v":""},{"$f":"IF($B577=\"N\",\"\",IF(AND('Enrollment Form'!$C584=\"ROC\",'Enrollment Form'!$DT584<>\"\"),\"Y\",IF(AND('Enrollment Form'!$C584=\"ROC\",'Enrollment Form'!$DT584=\"\"),\"N\",IF(AND('Enrollment Form'!$C584=\"Enroll\",'Enrollment Form'!$B584=\"Subscriber\",'Enrollment Form'!$CQ584=\"No\",'Enrollment Form'!$DT584=\"\"),\"N\",IF(AND('Enrollment Form'!$C584=\"Enroll\",'Enrollment Form'!$B584=\"Subscriber\",'Enrollment Form'!$CQ584=\"Yes\"),\"-\",\"Y\")))))","v":""},{"$f":"IF('Enrollment Form'!AH584=\"\",\"\",IF(ISERROR(SEARCH(\".\",'Enrollment Form'!AH584,SEARCH(\"@\",'Enrollment Form'!AH584))),\"N\",\"Y\"))","v":""},{"$f":"IF(OR($B577=\"N\",'Enrollment Form'!$G584=\"\"),\"\",IF('Enrollment Form'!$B584<>\"Subscriber\",\"-\",IF(COUNTIF('Enrollment Form'!$AS584:$AT584,\"Yes\")=2,\"N\",\"Y\")))","v":""},{"$f":"IF(OR('Enrollment Form'!$CC584=\"\",'Enrollment Form'!$CC584=\"No\"),\"-\",IF(AND('Enrollment Form'!$CC584=\"Yes\",'Enrollment Form'!$CD584=\"\"),\"N\",\"Y\"))","v":"-"},{"$f":"IF(OR('Enrollment Form'!$CE584=\"\",'Enrollment Form'!$CE584=\"No\"),\"-\",IF(AND('Enrollment Form'!$CE584=\"Yes\",'Enrollment Form'!$CF584=\"\"),\"N\",\"Y\"))","v":"-"},{"$f":"IF(OR('Enrollment Form'!$CG584=\"\",'Enrollment Form'!$CG584=\"No\"),\"-\",IF(AND('Enrollment Form'!$CG584=\"Yes\",'Enrollment Form'!$CH584=\"\"),\"N\",\"Y\"))","v":"-"},{"$f":"IF(OR('Enrollment Form'!$CG584=\"\",'Enrollment Form'!$CG584=\"No\"),\"-\",IF(AND('Enrollment Form'!$CG584=\"Yes\",'Enrollment Form'!$CI584=\"\"),\"N\",\"Y\"))","v":"-"},{"$f":"IF('Enrollment Form'!B584<>\"Subscriber\",\"-\",IF(AND('Enrollment Form'!B584=\"Subscriber\",'Enrollment Form'!C584=\"Enroll\",'Enrollment Form'!AA584=\"\"),\"N\",\"Y\"))","v":"-"},{"$f":"IF(OR('Enrollment Form'!B584=\"Subscriber\",'Enrollment Form'!B584=\"\"),\"-\",IF('Enrollment Form'!BI584=\"\",\"N\",\"Y\"))","v":"-"},{"$f":"IF('Enrollment Form'!B584<>\"Subscriber\",\"-\",IF(AND('Enrollment Form'!B584=\"Subscriber\",'Enrollment Form'!G584=\"\"),\"N\",\"Y\"))","v":"-"},{"$f":"IF('Enrollment Form'!A584=\"\",\"\",IF('Enrollment Form'!B584=\"Subscriber\",\"-\",IF(AND('Enrollment Form'!B584<>\"Subscriber\",'Enrollment Form'!G584='Enrollment Form'!H584),\"N\",\"Y\")))","v":""},0]
[585,{"$f":"IF('Enrollment Form'!$A585<>\"\",\"Y\",\"N\")","v":"N"},{"$f":"IF(AND('Enrollment Form'!$B585=\"\",'Enrollment Form'!$C585<>\"\"),\"N\",IF($B578=\"N\",\"\",\"Y\"))","v":""},{"$f":"IF(OR($B578=\"N\",'Enrollment Form'!G585=\"\"),\"\",IF('Enrollment Form'!$B585<>\"Subscriber\",\"\",IF('Enrollment Form'!$G585='Enrollment Form'!$H585,\"Y\",\"N\")))","v":""},{"$f":"IF($B578=\"N\",\"\",IF(AND(COUNTIFS('Enrollment Form'!$H$11:$H$1000,'Enrollment Form'!$H585,'Enrollment Form'!$B$11:$B$1000,'Enrollment Form'!$B585)>1,'Enrollment Form'!$H585<>\"\"),\"N\",\"Y\"))","v":""},{"$f":"IF($B578=\"N\",\"\",IF(LEN('Enrollment Form'!$Y585)=0,\"\",IF(LEN('Enrollment Form'!$Y585)<>5,\"N\",\"Y\")))","v":""},{"$f":"IF($B578=\"N\",\"\",IF(LEN('Enrollment Form'!$AD585=0),\"\",IF(LEN('Enrollment Form'!$AD585)<>5,\"N\",\"Y\")))","v":""},{"$f":"IF($B578=\"N\",\"\",IF(LEN('Enrollment Form'!$BL585=0),\"\",IF(LEN('Enrollment Form'!$BL585)<>5,\"N\",\"Y\")))","v":""},{"$f":"IF($B578=\"N\",\"\",IF(LEN('Enrollment Form'!$AE585)=0,\"\",IF(LEN('Enrollment Form'!$AE585)<>10,\"N\",\"Y\")))","v":""},{"$f":"IF($B578=\"N\",\"\",IF(LEN('Enrollment Form'!$AF585)=0,\"\",IF(LEN('Enrollment Form'!$AF585)<>10,\"N\",\"Y\")))","v":""},{"$f":"IF('Enrollment Form'!$O585<>\"Graded\",\"-\",IF(AND('Enrollment Form'!$O585=\"Graded\",'Enrollment Form'!$AO585<>\"\"),\"Y\",\"N\"))","v":"-"},{"$f":"IF($B578=\"N\",\"\",IF(OR('Enrollment Form'!$B585<>\"Subscriber\",'Enrollment Form'!$C585=\"ROC\"),\"-\",IF(AND('Enrollment Form'!$B585=\"Subscriber\",'Enrollment Form'!$C585=\"Enroll\",'Enrollment Form'!$AJ585<>\"\"),\"Y\",\"N\")))","v":""},{"$f":"IF($B578=\"N\",\"\",IF(OR('Enrollment Form'!$B585<>\"Subscriber\",'Enrollment Form'!$C585=\"ROC\"),\"-\",IF(AND('Enrollment Form'!$B585=\"Subscriber\",'Enrollment Form'!$C585=\"Enroll\",'Enrollment Form'!$AK585<>\"\"),\"Y\",\"N\")))","v":""},{"$f":"IF($B578=\"N\",\"\",IF(OR('Enrollment Form'!$B585<>\"Subscriber\",'Enrollment Form'!$C585=\"ROC\"),\"-\",IF(AND('Enrollment Form'!$B585=\"Subscriber\",'Enrollment Form'!$C585=\"Enroll\",'Enrollment Form'!$AL585<>\"\"),\"Y\",\"N\")))","v":""},{"$f":"IF($B578=\"N\",\"\",IF(OR('Enrollment Form'!$B585<>\"Subscriber\",'Enrollment Form'!$C585=\"ROC\"),\"-\",IF(AND('Enrollment Form'!$B585=\"Subscriber\",'Enrollment Form'!$C585=\"Enroll\",'Enrollment Form'!$AM585<>\"\"),\"Y\",\"N\")))","v":""},{"$f":"IF($B578=\"N\",\"\",IF(OR('Enrollment Form'!$B585<>\"Subscriber\",'Enrollment Form'!$C585=\"ROC\"),\"-\",IF(AND('Enrollment Form'!$B585=\"Subscriber\",'Enrollment Form'!$C585=\"Enroll\",'Enrollment Form'!$AN585<>\"\"),\"Y\",\"N\")))","v":""},{"$f":"IF($B578=\"N\",\"\",IF(OR('Enrollment Form'!$B585<>\"Subscriber\",'Enrollment Form'!$C585=\"ROC\"),\"-\",IF(AND('Enrollment Form'!$B585=\"Subscriber\",'Enrollment Form'!$C585=\"Enroll\",'Enrollment Form'!$AP585<>\"\"),\"Y\",\"N\")))","v":""},{"$f":"IF($B578=\"N\",\"\",IF($Q578=\"-\",\"-\",IF(AND($Q578=\"Y\",'Enrollment Form'!$AP585=\"No\"),\"-\",IF(AND($Q578=\"Y\",'Enrollment Form'!$AP585=\"Yes\",'Enrollment Form'!$AQ585<>\"\"),\"Y\",\"N\"))))","v":""},{"$f":"IF($B578=\"N\",\"\",IF(OR('Enrollment Form'!$B585<>\"Subscriber\",'Enrollment Form'!$C585=\"ROC\"),\"-\",IF(AND('Enrollment Form'!$B585=\"Subscriber\",'Enrollment Form'!$C585=\"Enroll\",'Enrollment Form'!$CO585<>\"\"),\"Y\",\"N\")))","v":""},{"$f":"IF($B578=\"N\",\"\",IF($S578=\"-\",\"-\",IF(AND($S578=\"Y\",'Enrollment Form'!$CO585=\"No\"),\"-\",IF(AND($S578=\"Y\",'Enrollment Form'!$CO585=\"Yes\",'Enrollment Form'!$CP585<>\"\"),\"Y\",\"N\"))))","v":""},{"$f":"IF(OR('Enrollment Form'!$AV585=\"Yes\",'Enrollment Form'!$AV585=\"\"),\"-\",IF(AND('Enrollment Form'!$AV585=\"No\",ISERROR(FIND(\"HMO\",VLOOKUP('Enrollment Form'!G585,'Enrollment Form'!H$11:J$1000,3,FALSE),1))=FALSE,COUNTA('Enrollment Form'!$AW585:$AZ585)=4),\"Y\",\"N\"))","v":"-"},{"$f":"IF($B578=\"N\",\"\",IF('Enrollment Form'!$B585=\"Subscriber\",\"-\",IF(COUNTA('Enrollment Form'!$BE585,'Enrollment Form'!$BG585)=2,\"Y\",\"N\")))","v":""},{"$f":"IF($B578=\"N\",\"\",IF(OR('Enrollment Form'!$AU585=\"\",'Enrollment Form'!$AU585=\"No\"),\"-\",IF(AND('Enrollment Form'!$AU585=\"Yes\",COUNTA('Enrollment Form'!$CK585)=1),\"Y\",\"N\")))","v":""},{"$f":"IF(OR('Enrollment Form'!$CK585=\"\",'Enrollment Form'!$CK585=\"No\"),\"-\",IF(COUNTA('Enrollment Form'!$CM585:$CN585)=2,\"Y\",\"N\"))","v":"-"},{"$f":"IF($B578=\"N\",\"\",IF(COUNTIF('Enrollment Form'!$CZ585:$DO585,\"Other\")=COUNTA('Enrollment Form'!$DF585,'Enrollment Form'!$DA585,'Enrollment Form'!$DK585,'Enrollment Form'!$DP585),\"Y\",\"N\"))","v":""},{"$f":"IF($B578=\"N\",\"\",IF(OR('Enrollment Form'!B585<>\"Subscriber\",'Enrollment Form'!C585=\"ROC\",COUNTIF('Enrollment Form'!AS585:AT585,\"Yes\")>=1),\"-\",IF(AND('Enrollment Form'!C585=\"Enroll\",COUNTIF('Enrollment Form'!AS585:AT585,\"No\")=2,'Enrollment Form'!AU585=\"\"),\"N\",\"Y\")))","v":""},{"$f":"IF(OR(B578=\"N\",'Enrollment Form'!B585<>\"Subscriber\",'Enrollment Form'!C585=\"ROC\",'Enrollment Form'!O585<>\"Multiple of Salary\"),\"-\",IF(COUNTA('Enrollment Form'!T585:U585)<2,\"N\",\"Y\"))","v":"-"},{"$f":"IF(B578=\"N\",\"\",IF(OR('Enrollment Form'!C585=\"ROC\",'Enrollment Form'!B585<>\"Subscriber\",'Enrollment Form'!O585=\"Waive\",'Enrollment Form'!O585=\"\"),\"-\",IF('Enrollment Form'!P585=\"\",\"N\",\"Y\")))","v":""},{"$f":"IF($B578=\"N\",\"\",IF(AND('Enrollment Form'!$C585=\"ROC\",'Enrollment Form'!$DS585<>\"\"),\"Y\",IF(AND('Enrollment Form'!$C585=\"ROC\",'Enrollment Form'!$DS585=\"\"),\"N\",IF(AND('Enrollment Form'!$C585=\"Enroll\",'Enrollment Form'!$B585=\"Subscriber\",'Enrollment Form'!$CQ585=\"No\",'Enrollment Form'!$DS585=\"\"),\"N\",IF(AND('Enrollment Form'!$C585=\"Enroll\",'Enrollment Form'!$B585=\"Subscriber\",'Enrollment Form'!$CQ585=\"Yes\"),\"-\",\"Y\")))))","v":""},{"$f":"IF($B578=\"N\",\"\",IF(AND('Enrollment Form'!$C585=\"ROC\",'Enrollment Form'!$DT585<>\"\"),\"Y\",IF(AND('Enrollment Form'!$C585=\"ROC\",'Enrollment Form'!$DT585=\"\"),\"N\",IF(AND('Enrollment Form'!$C585=\"Enroll\",'Enrollment Form'!$B585=\"Subscriber\",'Enrollment Form'!$CQ585=\"No\",'Enrollment Form'!$DT585=\"\"),\"N\",IF(AND('Enrollment Form'!$C585=\"Enroll\",'Enrollment Form'!$B585=\"Subscriber\",'Enrollment Form'!$CQ585=\"Yes\"),\"-\",\"Y\")))))","v":""},{"$f":"IF('Enrollment Form'!AH585=\"\",\"\",IF(ISERROR(SEARCH(\".\",'Enrollment Form'!AH585,SEARCH(\"@\",'Enrollment Form'!AH585))),\"N\",\"Y\"))","v":""},{"$f":"IF(OR($B578=\"N\",'Enrollment Form'!$G585=\"\"),\"\",IF('Enrollment Form'!$B585<>\"Subscriber\",\"-\",IF(COUNTIF('Enrollment Form'!$AS585:$AT585,\"Yes\")=2,\"N\",\"Y\")))","v":""},{"$f":"IF(OR('Enrollment Form'!$CC585=\"\",'Enrollment Form'!$CC585=\"No\"),\"-\",IF(AND('Enrollment Form'!$CC585=\"Yes\",'Enrollment Form'!$CD585=\"\"),\"N\",\"Y\"))","v":"-"},{"$f":"IF(OR('Enrollment Form'!$CE585=\"\",'Enrollment Form'!$CE585=\"No\"),\"-\",IF(AND('Enrollment Form'!$CE585=\"Yes\",'Enrollment Form'!$CF585=\"\"),\"N\",\"Y\"))","v":"-"},{"$f":"IF(OR('Enrollment Form'!$CG585=\"\",'Enrollment Form'!$CG585=\"No\"),\"-\",IF(AND('Enrollment Form'!$CG585=\"Yes\",'Enrollment Form'!$CH585=\"\"),\"N\",\"Y\"))","v":"-"},{"$f":"IF(OR('Enrollment Form'!$CG585=\"\",'Enrollment Form'!$CG585=\"No\"),\"-\",IF(AND('Enrollment Form'!$CG585=\"Yes\",'Enrollment Form'!$CI585=\"\"),\"N\",\"Y\"))","v":"-"},{"$f":"IF('Enrollment Form'!B585<>\"Subscriber\",\"-\",IF(AND('Enrollment Form'!B585=\"Subscriber\",'Enrollment Form'!C585=\"Enroll\",'Enrollment Form'!AA585=\"\"),\"N\",\"Y\"))","v":"-"},{"$f":"IF(OR('Enrollment Form'!B585=\"Subscriber\",'Enrollment Form'!B585=\"\"),\"-\",IF('Enrollment Form'!BI585=\"\",\"N\",\"Y\"))","v":"-"},{"$f":"IF('Enrollment Form'!B585<>\"Subscriber\",\"-\",IF(AND('Enrollment Form'!B585=\"Subscriber\",'Enrollment Form'!G585=\"\"),\"N\",\"Y\"))","v":"-"},{"$f":"IF('Enrollment Form'!A585=\"\",\"\",IF('Enrollment Form'!B585=\"Subscriber\",\"-\",IF(AND('Enrollment Form'!B585<>\"Subscriber\",'Enrollment Form'!G585='Enrollment Form'!H585),\"N\",\"Y\")))","v":""},0]
[586,{"$f":"IF('Enrollment Form'!$A586<>\"\",\"Y\",\"N\")","v":"N"},{"$f":"IF(AND('Enrollment Form'!$B586=\"\",'Enrollment Form'!$C586<>\"\"),\"N\",IF($B579=\"N\",\"\",\"Y\"))","v":""},{"$f":"IF(OR($B579=\"N\",'Enrollment Form'!G586=\"\"),\"\",IF('Enrollment Form'!$B586<>\"Subscriber\",\"\",IF('Enrollment Form'!$G586='Enrollment Form'!$H586,\"Y\",\"N\")))","v":""},{"$f":"IF($B579=\"N\",\"\",IF(AND(COUNTIFS('Enrollment Form'!$H$11:$H$1000,'Enrollment Form'!$H586,'Enrollment Form'!$B$11:$B$1000,'Enrollment Form'!$B586)>1,'Enrollment Form'!$H586<>\"\"),\"N\",\"Y\"))","v":""},{"$f":"IF($B579=\"N\",\"\",IF(LEN('Enrollment Form'!$Y586)=0,\"\",IF(LEN('Enrollment Form'!$Y586)<>5,\"N\",\"Y\")))","v":""},{"$f":"IF($B579=\"N\",\"\",IF(LEN('Enrollment Form'!$AD586=0),\"\",IF(LEN('Enrollment Form'!$AD586)<>5,\"N\",\"Y\")))","v":""},{"$f":"IF($B579=\"N\",\"\",IF(LEN('Enrollment Form'!$BL586=0),\"\",IF(LEN('Enrollment Form'!$BL586)<>5,\"N\",\"Y\")))","v":""},{"$f":"IF($B579=\"N\",\"\",IF(LEN('Enrollment Form'!$AE586)=0,\"\",IF(LEN('Enrollment Form'!$AE586)<>10,\"N\",\"Y\")))","v":""},{"$f":"IF($B579=\"N\",\"\",IF(LEN('Enrollment Form'!$AF586)=0,\"\",IF(LEN('Enrollment Form'!$AF586)<>10,\"N\",\"Y\")))","v":""},{"$f":"IF('Enrollment Form'!$O586<>\"Graded\",\"-\",IF(AND('Enrollment Form'!$O586=\"Graded\",'Enrollment Form'!$AO586<>\"\"),\"Y\",\"N\"))","v":"-"},{"$f":"IF($B579=\"N\",\"\",IF(OR('Enrollment Form'!$B586<>\"Subscriber\",'Enrollment Form'!$C586=\"ROC\"),\"-\",IF(AND('Enrollment Form'!$B586=\"Subscriber\",'Enrollment Form'!$C586=\"Enroll\",'Enrollment Form'!$AJ586<>\"\"),\"Y\",\"N\")))","v":""},{"$f":"IF($B579=\"N\",\"\",IF(OR('Enrollment Form'!$B586<>\"Subscriber\",'Enrollment Form'!$C586=\"ROC\"),\"-\",IF(AND('Enrollment Form'!$B586=\"Subscriber\",'Enrollment Form'!$C586=\"Enroll\",'Enrollment Form'!$AK586<>\"\"),\"Y\",\"N\")))","v":""},{"$f":"IF($B579=\"N\",\"\",IF(OR('Enrollment Form'!$B586<>\"Subscriber\",'Enrollment Form'!$C586=\"ROC\"),\"-\",IF(AND('Enrollment Form'!$B586=\"Subscriber\",'Enrollment Form'!$C586=\"Enroll\",'Enrollment Form'!$AL586<>\"\"),\"Y\",\"N\")))","v":""},{"$f":"IF($B579=\"N\",\"\",IF(OR('Enrollment Form'!$B586<>\"Subscriber\",'Enrollment Form'!$C586=\"ROC\"),\"-\",IF(AND('Enrollment Form'!$B586=\"Subscriber\",'Enrollment Form'!$C586=\"Enroll\",'Enrollment Form'!$AM586<>\"\"),\"Y\",\"N\")))","v":""},{"$f":"IF($B579=\"N\",\"\",IF(OR('Enrollment Form'!$B586<>\"Subscriber\",'Enrollment Form'!$C586=\"ROC\"),\"-\",IF(AND('Enrollment Form'!$B586=\"Subscriber\",'Enrollment Form'!$C586=\"Enroll\",'Enrollment Form'!$AN586<>\"\"),\"Y\",\"N\")))","v":""},{"$f":"IF($B579=\"N\",\"\",IF(OR('Enrollment Form'!$B586<>\"Subscriber\",'Enrollment Form'!$C586=\"ROC\"),\"-\",IF(AND('Enrollment Form'!$B586=\"Subscriber\",'Enrollment Form'!$C586=\"Enroll\",'Enrollment Form'!$AP586<>\"\"),\"Y\",\"N\")))","v":""},{"$f":"IF($B579=\"N\",\"\",IF($Q579=\"-\",\"-\",IF(AND($Q579=\"Y\",'Enrollment Form'!$AP586=\"No\"),\"-\",IF(AND($Q579=\"Y\",'Enrollment Form'!$AP586=\"Yes\",'Enrollment Form'!$AQ586<>\"\"),\"Y\",\"N\"))))","v":""},{"$f":"IF($B579=\"N\",\"\",IF(OR('Enrollment Form'!$B586<>\"Subscriber\",'Enrollment Form'!$C586=\"ROC\"),\"-\",IF(AND('Enrollment Form'!$B586=\"Subscriber\",'Enrollment Form'!$C586=\"Enroll\",'Enrollment Form'!$CO586<>\"\"),\"Y\",\"N\")))","v":""},{"$f":"IF($B579=\"N\",\"\",IF($S579=\"-\",\"-\",IF(AND($S579=\"Y\",'Enrollment Form'!$CO586=\"No\"),\"-\",IF(AND($S579=\"Y\",'Enrollment Form'!$CO586=\"Yes\",'Enrollment Form'!$CP586<>\"\"),\"Y\",\"N\"))))","v":""},{"$f":"IF(OR('Enrollment Form'!$AV586=\"Yes\",'Enrollment Form'!$AV586=\"\"),\"-\",IF(AND('Enrollment Form'!$AV586=\"No\",ISERROR(FIND(\"HMO\",VLOOKUP('Enrollment Form'!G586,'Enrollment Form'!H$11:J$1000,3,FALSE),1))=FALSE,COUNTA('Enrollment Form'!$AW586:$AZ586)=4),\"Y\",\"N\"))","v":"-"},{"$f":"IF($B579=\"N\",\"\",IF('Enrollment Form'!$B586=\"Subscriber\",\"-\",IF(COUNTA('Enrollment Form'!$BE586,'Enrollment Form'!$BG586)=2,\"Y\",\"N\")))","v":""},{"$f":"IF($B579=\"N\",\"\",IF(OR('Enrollment Form'!$AU586=\"\",'Enrollment Form'!$AU586=\"No\"),\"-\",IF(AND('Enrollment Form'!$AU586=\"Yes\",COUNTA('Enrollment Form'!$CK586)=1),\"Y\",\"N\")))","v":""},{"$f":"IF(OR('Enrollment Form'!$CK586=\"\",'Enrollment Form'!$CK586=\"No\"),\"-\",IF(COUNTA('Enrollment Form'!$CM586:$CN586)=2,\"Y\",\"N\"))","v":"-"},{"$f":"IF($B579=\"N\",\"\",IF(COUNTIF('Enrollment Form'!$CZ586:$DO586,\"Other\")=COUNTA('Enrollment Form'!$DF586,'Enrollment Form'!$DA586,'Enrollment Form'!$DK586,'Enrollment Form'!$DP586),\"Y\",\"N\"))","v":""},{"$f":"IF($B579=\"N\",\"\",IF(OR('Enrollment Form'!B586<>\"Subscriber\",'Enrollment Form'!C586=\"ROC\",COUNTIF('Enrollment Form'!AS586:AT586,\"Yes\")>=1),\"-\",IF(AND('Enrollment Form'!C586=\"Enroll\",COUNTIF('Enrollment Form'!AS586:AT586,\"No\")=2,'Enrollment Form'!AU586=\"\"),\"N\",\"Y\")))","v":""},{"$f":"IF(OR(B579=\"N\",'Enrollment Form'!B586<>\"Subscriber\",'Enrollment Form'!C586=\"ROC\",'Enrollment Form'!O586<>\"Multiple of Salary\"),\"-\",IF(COUNTA('Enrollment Form'!T586:U586)<2,\"N\",\"Y\"))","v":"-"},{"$f":"IF(B579=\"N\",\"\",IF(OR('Enrollment Form'!C586=\"ROC\",'Enrollment Form'!B586<>\"Subscriber\",'Enrollment Form'!O586=\"Waive\",'Enrollment Form'!O586=\"\"),\"-\",IF('Enrollment Form'!P586=\"\",\"N\",\"Y\")))","v":""},{"$f":"IF($B579=\"N\",\"\",IF(AND('Enrollment Form'!$C586=\"ROC\",'Enrollment Form'!$DS586<>\"\"),\"Y\",IF(AND('Enrollment Form'!$C586=\"ROC\",'Enrollment Form'!$DS586=\"\"),\"N\",IF(AND('Enrollment Form'!$C586=\"Enroll\",'Enrollment Form'!$B586=\"Subscriber\",'Enrollment Form'!$CQ586=\"No\",'Enrollment Form'!$DS586=\"\"),\"N\",IF(AND('Enrollment Form'!$C586=\"Enroll\",'Enrollment Form'!$B586=\"Subscriber\",'Enrollment Form'!$CQ586=\"Yes\"),\"-\",\"Y\")))))","v":""},{"$f":"IF($B579=\"N\",\"\",IF(AND('Enrollment Form'!$C586=\"ROC\",'Enrollment Form'!$DT586<>\"\"),\"Y\",IF(AND('Enrollment Form'!$C586=\"ROC\",'Enrollment Form'!$DT586=\"\"),\"N\",IF(AND('Enrollment Form'!$C586=\"Enroll\",'Enrollment Form'!$B586=\"Subscriber\",'Enrollment Form'!$CQ586=\"No\",'Enrollment Form'!$DT586=\"\"),\"N\",IF(AND('Enrollment Form'!$C586=\"Enroll\",'Enrollment Form'!$B586=\"Subscriber\",'Enrollment Form'!$CQ586=\"Yes\"),\"-\",\"Y\")))))","v":""},{"$f":"IF('Enrollment Form'!AH586=\"\",\"\",IF(ISERROR(SEARCH(\".\",'Enrollment Form'!AH586,SEARCH(\"@\",'Enrollment Form'!AH586))),\"N\",\"Y\"))","v":""},{"$f":"IF(OR($B579=\"N\",'Enrollment Form'!$G586=\"\"),\"\",IF('Enrollment Form'!$B586<>\"Subscriber\",\"-\",IF(COUNTIF('Enrollment Form'!$AS586:$AT586,\"Yes\")=2,\"N\",\"Y\")))","v":""},{"$f":"IF(OR('Enrollment Form'!$CC586=\"\",'Enrollment Form'!$CC586=\"No\"),\"-\",IF(AND('Enrollment Form'!$CC586=\"Yes\",'Enrollment Form'!$CD586=\"\"),\"N\",\"Y\"))","v":"-"},{"$f":"IF(OR('Enrollment Form'!$CE586=\"\",'Enrollment Form'!$CE586=\"No\"),\"-\",IF(AND('Enrollment Form'!$CE586=\"Yes\",'Enrollment Form'!$CF586=\"\"),\"N\",\"Y\"))","v":"-"},{"$f":"IF(OR('Enrollment Form'!$CG586=\"\",'Enrollment Form'!$CG586=\"No\"),\"-\",IF(AND('Enrollment Form'!$CG586=\"Yes\",'Enrollment Form'!$CH586=\"\"),\"N\",\"Y\"))","v":"-"},{"$f":"IF(OR('Enrollment Form'!$CG586=\"\",'Enrollment Form'!$CG586=\"No\"),\"-\",IF(AND('Enrollment Form'!$CG586=\"Yes\",'Enrollment Form'!$CI586=\"\"),\"N\",\"Y\"))","v":"-"},{"$f":"IF('Enrollment Form'!B586<>\"Subscriber\",\"-\",IF(AND('Enrollment Form'!B586=\"Subscriber\",'Enrollment Form'!C586=\"Enroll\",'Enrollment Form'!AA586=\"\"),\"N\",\"Y\"))","v":"-"},{"$f":"IF(OR('Enrollment Form'!B586=\"Subscriber\",'Enrollment Form'!B586=\"\"),\"-\",IF('Enrollment Form'!BI586=\"\",\"N\",\"Y\"))","v":"-"},{"$f":"IF('Enrollment Form'!B586<>\"Subscriber\",\"-\",IF(AND('Enrollment Form'!B586=\"Subscriber\",'Enrollment Form'!G586=\"\"),\"N\",\"Y\"))","v":"-"},{"$f":"IF('Enrollment Form'!A586=\"\",\"\",IF('Enrollment Form'!B586=\"Subscriber\",\"-\",IF(AND('Enrollment Form'!B586<>\"Subscriber\",'Enrollment Form'!G586='Enrollment Form'!H586),\"N\",\"Y\")))","v":""},0]
[587,{"$f":"IF('Enrollment Form'!$A587<>\"\",\"Y\",\"N\")","v":"N"},{"$f":"IF(AND('Enrollment Form'!$B587=\"\",'Enrollment Form'!$C587<>\"\"),\"N\",IF($B580=\"N\",\"\",\"Y\"))","v":""},{"$f":"IF(OR($B580=\"N\",'Enrollment Form'!G587=\"\"),\"\",IF('Enrollment Form'!$B587<>\"Subscriber\",\"\",IF('Enrollment Form'!$G587='Enrollment Form'!$H587,\"Y\",\"N\")))","v":""},{"$f":"IF($B580=\"N\",\"\",IF(AND(COUNTIFS('Enrollment Form'!$H$11:$H$1000,'Enrollment Form'!$H587,'Enrollment Form'!$B$11:$B$1000,'Enrollment Form'!$B587)>1,'Enrollment Form'!$H587<>\"\"),\"N\",\"Y\"))","v":""},{"$f":"IF($B580=\"N\",\"\",IF(LEN('Enrollment Form'!$Y587)=0,\"\",IF(LEN('Enrollment Form'!$Y587)<>5,\"N\",\"Y\")))","v":""},{"$f":"IF($B580=\"N\",\"\",IF(LEN('Enrollment Form'!$AD587=0),\"\",IF(LEN('Enrollment Form'!$AD587)<>5,\"N\",\"Y\")))","v":""},{"$f":"IF($B580=\"N\",\"\",IF(LEN('Enrollment Form'!$BL587=0),\"\",IF(LEN('Enrollment Form'!$BL587)<>5,\"N\",\"Y\")))","v":""},{"$f":"IF($B580=\"N\",\"\",IF(LEN('Enrollment Form'!$AE587)=0,\"\",IF(LEN('Enrollment Form'!$AE587)<>10,\"N\",\"Y\")))","v":""},{"$f":"IF($B580=\"N\",\"\",IF(LEN('Enrollment Form'!$AF587)=0,\"\",IF(LEN('Enrollment Form'!$AF587)<>10,\"N\",\"Y\")))","v":""},{"$f":"IF('Enrollment Form'!$O587<>\"Graded\",\"-\",IF(AND('Enrollment Form'!$O587=\"Graded\",'Enrollment Form'!$AO587<>\"\"),\"Y\",\"N\"))","v":"-"},{"$f":"IF($B580=\"N\",\"\",IF(OR('Enrollment Form'!$B587<>\"Subscriber\",'Enrollment Form'!$C587=\"ROC\"),\"-\",IF(AND('Enrollment Form'!$B587=\"Subscriber\",'Enrollment Form'!$C587=\"Enroll\",'Enrollment Form'!$AJ587<>\"\"),\"Y\",\"N\")))","v":""},{"$f":"IF($B580=\"N\",\"\",IF(OR('Enrollment Form'!$B587<>\"Subscriber\",'Enrollment Form'!$C587=\"ROC\"),\"-\",IF(AND('Enrollment Form'!$B587=\"Subscriber\",'Enrollment Form'!$C587=\"Enroll\",'Enrollment Form'!$AK587<>\"\"),\"Y\",\"N\")))","v":""},{"$f":"IF($B580=\"N\",\"\",IF(OR('Enrollment Form'!$B587<>\"Subscriber\",'Enrollment Form'!$C587=\"ROC\"),\"-\",IF(AND('Enrollment Form'!$B587=\"Subscriber\",'Enrollment Form'!$C587=\"Enroll\",'Enrollment Form'!$AL587<>\"\"),\"Y\",\"N\")))","v":""},{"$f":"IF($B580=\"N\",\"\",IF(OR('Enrollment Form'!$B587<>\"Subscriber\",'Enrollment Form'!$C587=\"ROC\"),\"-\",IF(AND('Enrollment Form'!$B587=\"Subscriber\",'Enrollment Form'!$C587=\"Enroll\",'Enrollment Form'!$AM587<>\"\"),\"Y\",\"N\")))","v":""},{"$f":"IF($B580=\"N\",\"\",IF(OR('Enrollment Form'!$B587<>\"Subscriber\",'Enrollment Form'!$C587=\"ROC\"),\"-\",IF(AND('Enrollment Form'!$B587=\"Subscriber\",'Enrollment Form'!$C587=\"Enroll\",'Enrollment Form'!$AN587<>\"\"),\"Y\",\"N\")))","v":""},{"$f":"IF($B580=\"N\",\"\",IF(OR('Enrollment Form'!$B587<>\"Subscriber\",'Enrollment Form'!$C587=\"ROC\"),\"-\",IF(AND('Enrollment Form'!$B587=\"Subscriber\",'Enrollment Form'!$C587=\"Enroll\",'Enrollment Form'!$AP587<>\"\"),\"Y\",\"N\")))","v":""},{"$f":"IF($B580=\"N\",\"\",IF($Q580=\"-\",\"-\",IF(AND($Q580=\"Y\",'Enrollment Form'!$AP587=\"No\"),\"-\",IF(AND($Q580=\"Y\",'Enrollment Form'!$AP587=\"Yes\",'Enrollment Form'!$AQ587<>\"\"),\"Y\",\"N\"))))","v":""},{"$f":"IF($B580=\"N\",\"\",IF(OR('Enrollment Form'!$B587<>\"Subscriber\",'Enrollment Form'!$C587=\"ROC\"),\"-\",IF(AND('Enrollment Form'!$B587=\"Subscriber\",'Enrollment Form'!$C587=\"Enroll\",'Enrollment Form'!$CO587<>\"\"),\"Y\",\"N\")))","v":""},{"$f":"IF($B580=\"N\",\"\",IF($S580=\"-\",\"-\",IF(AND($S580=\"Y\",'Enrollment Form'!$CO587=\"No\"),\"-\",IF(AND($S580=\"Y\",'Enrollment Form'!$CO587=\"Yes\",'Enrollment Form'!$CP587<>\"\"),\"Y\",\"N\"))))","v":""},{"$f":"IF(OR('Enrollment Form'!$AV587=\"Yes\",'Enrollment Form'!$AV587=\"\"),\"-\",IF(AND('Enrollment Form'!$AV587=\"No\",ISERROR(FIND(\"HMO\",VLOOKUP('Enrollment Form'!G587,'Enrollment Form'!H$11:J$1000,3,FALSE),1))=FALSE,COUNTA('Enrollment Form'!$AW587:$AZ587)=4),\"Y\",\"N\"))","v":"-"},{"$f":"IF($B580=\"N\",\"\",IF('Enrollment Form'!$B587=\"Subscriber\",\"-\",IF(COUNTA('Enrollment Form'!$BE587,'Enrollment Form'!$BG587)=2,\"Y\",\"N\")))","v":""},{"$f":"IF($B580=\"N\",\"\",IF(OR('Enrollment Form'!$AU587=\"\",'Enrollment Form'!$AU587=\"No\"),\"-\",IF(AND('Enrollment Form'!$AU587=\"Yes\",COUNTA('Enrollment Form'!$CK587)=1),\"Y\",\"N\")))","v":""},{"$f":"IF(OR('Enrollment Form'!$CK587=\"\",'Enrollment Form'!$CK587=\"No\"),\"-\",IF(COUNTA('Enrollment Form'!$CM587:$CN587)=2,\"Y\",\"N\"))","v":"-"},{"$f":"IF($B580=\"N\",\"\",IF(COUNTIF('Enrollment Form'!$CZ587:$DO587,\"Other\")=COUNTA('Enrollment Form'!$DF587,'Enrollment Form'!$DA587,'Enrollment Form'!$DK587,'Enrollment Form'!$DP587),\"Y\",\"N\"))","v":""},{"$f":"IF($B580=\"N\",\"\",IF(OR('Enrollment Form'!B587<>\"Subscriber\",'Enrollment Form'!C587=\"ROC\",COUNTIF('Enrollment Form'!AS587:AT587,\"Yes\")>=1),\"-\",IF(AND('Enrollment Form'!C587=\"Enroll\",COUNTIF('Enrollment Form'!AS587:AT587,\"No\")=2,'Enrollment Form'!AU587=\"\"),\"N\",\"Y\")))","v":""},{"$f":"IF(OR(B580=\"N\",'Enrollment Form'!B587<>\"Subscriber\",'Enrollment Form'!C587=\"ROC\",'Enrollment Form'!O587<>\"Multiple of Salary\"),\"-\",IF(COUNTA('Enrollment Form'!T587:U587)<2,\"N\",\"Y\"))","v":"-"},{"$f":"IF(B580=\"N\",\"\",IF(OR('Enrollment Form'!C587=\"ROC\",'Enrollment Form'!B587<>\"Subscriber\",'Enrollment Form'!O587=\"Waive\",'Enrollment Form'!O587=\"\"),\"-\",IF('Enrollment Form'!P587=\"\",\"N\",\"Y\")))","v":""},{"$f":"IF($B580=\"N\",\"\",IF(AND('Enrollment Form'!$C587=\"ROC\",'Enrollment Form'!$DS587<>\"\"),\"Y\",IF(AND('Enrollment Form'!$C587=\"ROC\",'Enrollment Form'!$DS587=\"\"),\"N\",IF(AND('Enrollment Form'!$C587=\"Enroll\",'Enrollment Form'!$B587=\"Subscriber\",'Enrollment Form'!$CQ587=\"No\",'Enrollment Form'!$DS587=\"\"),\"N\",IF(AND('Enrollment Form'!$C587=\"Enroll\",'Enrollment Form'!$B587=\"Subscriber\",'Enrollment Form'!$CQ587=\"Yes\"),\"-\",\"Y\")))))","v":""},{"$f":"IF($B580=\"N\",\"\",IF(AND('Enrollment Form'!$C587=\"ROC\",'Enrollment Form'!$DT587<>\"\"),\"Y\",IF(AND('Enrollment Form'!$C587=\"ROC\",'Enrollment Form'!$DT587=\"\"),\"N\",IF(AND('Enrollment Form'!$C587=\"Enroll\",'Enrollment Form'!$B587=\"Subscriber\",'Enrollment Form'!$CQ587=\"No\",'Enrollment Form'!$DT587=\"\"),\"N\",IF(AND('Enrollment Form'!$C587=\"Enroll\",'Enrollment Form'!$B587=\"Subscriber\",'Enrollment Form'!$CQ587=\"Yes\"),\"-\",\"Y\")))))","v":""},{"$f":"IF('Enrollment Form'!AH587=\"\",\"\",IF(ISERROR(SEARCH(\".\",'Enrollment Form'!AH587,SEARCH(\"@\",'Enrollment Form'!AH587))),\"N\",\"Y\"))","v":""},{"$f":"IF(OR($B580=\"N\",'Enrollment Form'!$G587=\"\"),\"\",IF('Enrollment Form'!$B587<>\"Subscriber\",\"-\",IF(COUNTIF('Enrollment Form'!$AS587:$AT587,\"Yes\")=2,\"N\",\"Y\")))","v":""},{"$f":"IF(OR('Enrollment Form'!$CC587=\"\",'Enrollment Form'!$CC587=\"No\"),\"-\",IF(AND('Enrollment Form'!$CC587=\"Yes\",'Enrollment Form'!$CD587=\"\"),\"N\",\"Y\"))","v":"-"},{"$f":"IF(OR('Enrollment Form'!$CE587=\"\",'Enrollment Form'!$CE587=\"No\"),\"-\",IF(AND('Enrollment Form'!$CE587=\"Yes\",'Enrollment Form'!$CF587=\"\"),\"N\",\"Y\"))","v":"-"},{"$f":"IF(OR('Enrollment Form'!$CG587=\"\",'Enrollment Form'!$CG587=\"No\"),\"-\",IF(AND('Enrollment Form'!$CG587=\"Yes\",'Enrollment Form'!$CH587=\"\"),\"N\",\"Y\"))","v":"-"},{"$f":"IF(OR('Enrollment Form'!$CG587=\"\",'Enrollment Form'!$CG587=\"No\"),\"-\",IF(AND('Enrollment Form'!$CG587=\"Yes\",'Enrollment Form'!$CI587=\"\"),\"N\",\"Y\"))","v":"-"},{"$f":"IF('Enrollment Form'!B587<>\"Subscriber\",\"-\",IF(AND('Enrollment Form'!B587=\"Subscriber\",'Enrollment Form'!C587=\"Enroll\",'Enrollment Form'!AA587=\"\"),\"N\",\"Y\"))","v":"-"},{"$f":"IF(OR('Enrollment Form'!B587=\"Subscriber\",'Enrollment Form'!B587=\"\"),\"-\",IF('Enrollment Form'!BI587=\"\",\"N\",\"Y\"))","v":"-"},{"$f":"IF('Enrollment Form'!B587<>\"Subscriber\",\"-\",IF(AND('Enrollment Form'!B587=\"Subscriber\",'Enrollment Form'!G587=\"\"),\"N\",\"Y\"))","v":"-"},{"$f":"IF('Enrollment Form'!A587=\"\",\"\",IF('Enrollment Form'!B587=\"Subscriber\",\"-\",IF(AND('Enrollment Form'!B587<>\"Subscriber\",'Enrollment Form'!G587='Enrollment Form'!H587),\"N\",\"Y\")))","v":""},{"$f":"COUNTIF(C580:AN580,\"N\")","v":0}]
[588,{"$f":"IF('Enrollment Form'!$A588<>\"\",\"Y\",\"N\")","v":"N"},{"$f":"IF(AND('Enrollment Form'!$B588=\"\",'Enrollment Form'!$C588<>\"\"),\"N\",IF($B581=\"N\",\"\",\"Y\"))","v":""},{"$f":"IF(OR($B581=\"N\",'Enrollment Form'!G588=\"\"),\"\",IF('Enrollment Form'!$B588<>\"Subscriber\",\"\",IF('Enrollment Form'!$G588='Enrollment Form'!$H588,\"Y\",\"N\")))","v":""},{"$f":"IF($B581=\"N\",\"\",IF(AND(COUNTIFS('Enrollment Form'!$H$11:$H$1000,'Enrollment Form'!$H588,'Enrollment Form'!$B$11:$B$1000,'Enrollment Form'!$B588)>1,'Enrollment Form'!$H588<>\"\"),\"N\",\"Y\"))","v":""},{"$f":"IF($B581=\"N\",\"\",IF(LEN('Enrollment Form'!$Y588)=0,\"\",IF(LEN('Enrollment Form'!$Y588)<>5,\"N\",\"Y\")))","v":""},{"$f":"IF($B581=\"N\",\"\",IF(LEN('Enrollment Form'!$AD588=0),\"\",IF(LEN('Enrollment Form'!$AD588)<>5,\"N\",\"Y\")))","v":""},{"$f":"IF($B581=\"N\",\"\",IF(LEN('Enrollment Form'!$BL588=0),\"\",IF(LEN('Enrollment Form'!$BL588)<>5,\"N\",\"Y\")))","v":""},{"$f":"IF($B581=\"N\",\"\",IF(LEN('Enrollment Form'!$AE588)=0,\"\",IF(LEN('Enrollment Form'!$AE588)<>10,\"N\",\"Y\")))","v":""},{"$f":"IF($B581=\"N\",\"\",IF(LEN('Enrollment Form'!$AF588)=0,\"\",IF(LEN('Enrollment Form'!$AF588)<>10,\"N\",\"Y\")))","v":""},{"$f":"IF('Enrollment Form'!$O588<>\"Graded\",\"-\",IF(AND('Enrollment Form'!$O588=\"Graded\",'Enrollment Form'!$AO588<>\"\"),\"Y\",\"N\"))","v":"-"},{"$f":"IF($B581=\"N\",\"\",IF(OR('Enrollment Form'!$B588<>\"Subscriber\",'Enrollment Form'!$C588=\"ROC\"),\"-\",IF(AND('Enrollment Form'!$B588=\"Subscriber\",'Enrollment Form'!$C588=\"Enroll\",'Enrollment Form'!$AJ588<>\"\"),\"Y\",\"N\")))","v":""},{"$f":"IF($B581=\"N\",\"\",IF(OR('Enrollment Form'!$B588<>\"Subscriber\",'Enrollment Form'!$C588=\"ROC\"),\"-\",IF(AND('Enrollment Form'!$B588=\"Subscriber\",'Enrollment Form'!$C588=\"Enroll\",'Enrollment Form'!$AK588<>\"\"),\"Y\",\"N\")))","v":""},{"$f":"IF($B581=\"N\",\"\",IF(OR('Enrollment Form'!$B588<>\"Subscriber\",'Enrollment Form'!$C588=\"ROC\"),\"-\",IF(AND('Enrollment Form'!$B588=\"Subscriber\",'Enrollment Form'!$C588=\"Enroll\",'Enrollment Form'!$AL588<>\"\"),\"Y\",\"N\")))","v":""},{"$f":"IF($B581=\"N\",\"\",IF(OR('Enrollment Form'!$B588<>\"Subscriber\",'Enrollment Form'!$C588=\"ROC\"),\"-\",IF(AND('Enrollment Form'!$B588=\"Subscriber\",'Enrollment Form'!$C588=\"Enroll\",'Enrollment Form'!$AM588<>\"\"),\"Y\",\"N\")))","v":""},{"$f":"IF($B581=\"N\",\"\",IF(OR('Enrollment Form'!$B588<>\"Subscriber\",'Enrollment Form'!$C588=\"ROC\"),\"-\",IF(AND('Enrollment Form'!$B588=\"Subscriber\",'Enrollment Form'!$C588=\"Enroll\",'Enrollment Form'!$AN588<>\"\"),\"Y\",\"N\")))","v":""},{"$f":"IF($B581=\"N\",\"\",IF(OR('Enrollment Form'!$B588<>\"Subscriber\",'Enrollment Form'!$C588=\"ROC\"),\"-\",IF(AND('Enrollment Form'!$B588=\"Subscriber\",'Enrollment Form'!$C588=\"Enroll\",'Enrollment Form'!$AP588<>\"\"),\"Y\",\"N\")))","v":""},{"$f":"IF($B581=\"N\",\"\",IF($Q581=\"-\",\"-\",IF(AND($Q581=\"Y\",'Enrollment Form'!$AP588=\"No\"),\"-\",IF(AND($Q581=\"Y\",'Enrollment Form'!$AP588=\"Yes\",'Enrollment Form'!$AQ588<>\"\"),\"Y\",\"N\"))))","v":""},{"$f":"IF($B581=\"N\",\"\",IF(OR('Enrollment Form'!$B588<>\"Subscriber\",'Enrollment Form'!$C588=\"ROC\"),\"-\",IF(AND('Enrollment Form'!$B588=\"Subscriber\",'Enrollment Form'!$C588=\"Enroll\",'Enrollment Form'!$CO588<>\"\"),\"Y\",\"N\")))","v":""},{"$f":"IF($B581=\"N\",\"\",IF($S581=\"-\",\"-\",IF(AND($S581=\"Y\",'Enrollment Form'!$CO588=\"No\"),\"-\",IF(AND($S581=\"Y\",'Enrollment Form'!$CO588=\"Yes\",'Enrollment Form'!$CP588<>\"\"),\"Y\",\"N\"))))","v":""},{"$f":"IF(OR('Enrollment Form'!$AV588=\"Yes\",'Enrollment Form'!$AV588=\"\"),\"-\",IF(AND('Enrollment Form'!$AV588=\"No\",ISERROR(FIND(\"HMO\",VLOOKUP('Enrollment Form'!G588,'Enrollment Form'!H$11:J$1000,3,FALSE),1))=FALSE,COUNTA('Enrollment Form'!$AW588:$AZ588)=4),\"Y\",\"N\"))","v":"-"},{"$f":"IF($B581=\"N\",\"\",IF('Enrollment Form'!$B588=\"Subscriber\",\"-\",IF(COUNTA('Enrollment Form'!$BE588,'Enrollment Form'!$BG588)=2,\"Y\",\"N\")))","v":""},{"$f":"IF($B581=\"N\",\"\",IF(OR('Enrollment Form'!$AU588=\"\",'Enrollment Form'!$AU588=\"No\"),\"-\",IF(AND('Enrollment Form'!$AU588=\"Yes\",COUNTA('Enrollment Form'!$CK588)=1),\"Y\",\"N\")))","v":""},{"$f":"IF(OR('Enrollment Form'!$CK588=\"\",'Enrollment Form'!$CK588=\"No\"),\"-\",IF(COUNTA('Enrollment Form'!$CM588:$CN588)=2,\"Y\",\"N\"))","v":"-"},{"$f":"IF($B581=\"N\",\"\",IF(COUNTIF('Enrollment Form'!$CZ588:$DO588,\"Other\")=COUNTA('Enrollment Form'!$DF588,'Enrollment Form'!$DA588,'Enrollment Form'!$DK588,'Enrollment Form'!$DP588),\"Y\",\"N\"))","v":""},{"$f":"IF($B581=\"N\",\"\",IF(OR('Enrollment Form'!B588<>\"Subscriber\",'Enrollment Form'!C588=\"ROC\",COUNTIF('Enrollment Form'!AS588:AT588,\"Yes\")>=1),\"-\",IF(AND('Enrollment Form'!C588=\"Enroll\",COUNTIF('Enrollment Form'!AS588:AT588,\"No\")=2,'Enrollment Form'!AU588=\"\"),\"N\",\"Y\")))","v":""},{"$f":"IF(OR(B581=\"N\",'Enrollment Form'!B588<>\"Subscriber\",'Enrollment Form'!C588=\"ROC\",'Enrollment Form'!O588<>\"Multiple of Salary\"),\"-\",IF(COUNTA('Enrollment Form'!T588:U588)<2,\"N\",\"Y\"))","v":"-"},{"$f":"IF(B581=\"N\",\"\",IF(OR('Enrollment Form'!C588=\"ROC\",'Enrollment Form'!B588<>\"Subscriber\",'Enrollment Form'!O588=\"Waive\",'Enrollment Form'!O588=\"\"),\"-\",IF('Enrollment Form'!P588=\"\",\"N\",\"Y\")))","v":""},{"$f":"IF($B581=\"N\",\"\",IF(AND('Enrollment Form'!$C588=\"ROC\",'Enrollment Form'!$DS588<>\"\"),\"Y\",IF(AND('Enrollment Form'!$C588=\"ROC\",'Enrollment Form'!$DS588=\"\"),\"N\",IF(AND('Enrollment Form'!$C588=\"Enroll\",'Enrollment Form'!$B588=\"Subscriber\",'Enrollment Form'!$CQ588=\"No\",'Enrollment Form'!$DS588=\"\"),\"N\",IF(AND('Enrollment Form'!$C588=\"Enroll\",'Enrollment Form'!$B588=\"Subscriber\",'Enrollment Form'!$CQ588=\"Yes\"),\"-\",\"Y\")))))","v":""},{"$f":"IF($B581=\"N\",\"\",IF(AND('Enrollment Form'!$C588=\"ROC\",'Enrollment Form'!$DT588<>\"\"),\"Y\",IF(AND('Enrollment Form'!$C588=\"ROC\",'Enrollment Form'!$DT588=\"\"),\"N\",IF(AND('Enrollment Form'!$C588=\"Enroll\",'Enrollment Form'!$B588=\"Subscriber\",'Enrollment Form'!$CQ588=\"No\",'Enrollment Form'!$DT588=\"\"),\"N\",IF(AND('Enrollment Form'!$C588=\"Enroll\",'Enrollment Form'!$B588=\"Subscriber\",'Enrollment Form'!$CQ588=\"Yes\"),\"-\",\"Y\")))))","v":""},{"$f":"IF('Enrollment Form'!AH588=\"\",\"\",IF(ISERROR(SEARCH(\".\",'Enrollment Form'!AH588,SEARCH(\"@\",'Enrollment Form'!AH588))),\"N\",\"Y\"))","v":""},{"$f":"IF(OR($B581=\"N\",'Enrollment Form'!$G588=\"\"),\"\",IF('Enrollment Form'!$B588<>\"Subscriber\",\"-\",IF(COUNTIF('Enrollment Form'!$AS588:$AT588,\"Yes\")=2,\"N\",\"Y\")))","v":""},{"$f":"IF(OR('Enrollment Form'!$CC588=\"\",'Enrollment Form'!$CC588=\"No\"),\"-\",IF(AND('Enrollment Form'!$CC588=\"Yes\",'Enrollment Form'!$CD588=\"\"),\"N\",\"Y\"))","v":"-"},{"$f":"IF(OR('Enrollment Form'!$CE588=\"\",'Enrollment Form'!$CE588=\"No\"),\"-\",IF(AND('Enrollment Form'!$CE588=\"Yes\",'Enrollment Form'!$CF588=\"\"),\"N\",\"Y\"))","v":"-"},{"$f":"IF(OR('Enrollment Form'!$CG588=\"\",'Enrollment Form'!$CG588=\"No\"),\"-\",IF(AND('Enrollment Form'!$CG588=\"Yes\",'Enrollment Form'!$CH588=\"\"),\"N\",\"Y\"))","v":"-"},{"$f":"IF(OR('Enrollment Form'!$CG588=\"\",'Enrollment Form'!$CG588=\"No\"),\"-\",IF(AND('Enrollment Form'!$CG588=\"Yes\",'Enrollment Form'!$CI588=\"\"),\"N\",\"Y\"))","v":"-"},{"$f":"IF('Enrollment Form'!B588<>\"Subscriber\",\"-\",IF(AND('Enrollment Form'!B588=\"Subscriber\",'Enrollment Form'!C588=\"Enroll\",'Enrollment Form'!AA588=\"\"),\"N\",\"Y\"))","v":"-"},{"$f":"IF(OR('Enrollment Form'!B588=\"Subscriber\",'Enrollment Form'!B588=\"\"),\"-\",IF('Enrollment Form'!BI588=\"\",\"N\",\"Y\"))","v":"-"},{"$f":"IF('Enrollment Form'!B588<>\"Subscriber\",\"-\",IF(AND('Enrollment Form'!B588=\"Subscriber\",'Enrollment Form'!G588=\"\"),\"N\",\"Y\"))","v":"-"},{"$f":"IF('Enrollment Form'!A588=\"\",\"\",IF('Enrollment Form'!B588=\"Subscriber\",\"-\",IF(AND('Enrollment Form'!B588<>\"Subscriber\",'Enrollment Form'!G588='Enrollment Form'!H588),\"N\",\"Y\")))","v":""},0]
[{"$f":"1+A581","v":589},{"$f":"IF('Enrollment Form'!$A589<>\"\",\"Y\",\"N\")","v":"N"},{"$f":"IF(AND('Enrollment Form'!$B589=\"\",'Enrollment Form'!$C589<>\"\"),\"N\",IF($B582=\"N\",\"\",\"Y\"))","v":""},{"$f":"IF(OR($B582=\"N\",'Enrollment Form'!G589=\"\"),\"\",IF('Enrollment Form'!$B589<>\"Subscriber\",\"\",IF('Enrollment Form'!$G589='Enrollment Form'!$H589,\"Y\",\"N\")))","v":""},{"$f":"IF($B582=\"N\",\"\",IF(AND(COUNTIFS('Enrollment Form'!$H$11:$H$1000,'Enrollment Form'!$H589,'Enrollment Form'!$B$11:$B$1000,'Enrollment Form'!$B589)>1,'Enrollment Form'!$H589<>\"\"),\"N\",\"Y\"))","v":""},{"$f":"IF($B582=\"N\",\"\",IF(LEN('Enrollment Form'!$Y589)=0,\"\",IF(LEN('Enrollment Form'!$Y589)<>5,\"N\",\"Y\")))","v":""},{"$f":"IF($B582=\"N\",\"\",IF(LEN('Enrollment Form'!$AD589=0),\"\",IF(LEN('Enrollment Form'!$AD589)<>5,\"N\",\"Y\")))","v":""},{"$f":"IF($B582=\"N\",\"\",IF(LEN('Enrollment Form'!$BL589=0),\"\",IF(LEN('Enrollment Form'!$BL589)<>5,\"N\",\"Y\")))","v":""},{"$f":"IF($B582=\"N\",\"\",IF(LEN('Enrollment Form'!$AE589)=0,\"\",IF(LEN('Enrollment Form'!$AE589)<>10,\"N\",\"Y\")))","v":""},{"$f":"IF($B582=\"N\",\"\",IF(LEN('Enrollment Form'!$AF589)=0,\"\",IF(LEN('Enrollment Form'!$AF589)<>10,\"N\",\"Y\")))","v":""},{"$f":"IF('Enrollment Form'!$O589<>\"Graded\",\"-\",IF(AND('Enrollment Form'!$O589=\"Graded\",'Enrollment Form'!$AO589<>\"\"),\"Y\",\"N\"))","v":"-"},{"$f":"IF($B582=\"N\",\"\",IF(OR('Enrollment Form'!$B589<>\"Subscriber\",'Enrollment Form'!$C589=\"ROC\"),\"-\",IF(AND('Enrollment Form'!$B589=\"Subscriber\",'Enrollment Form'!$C589=\"Enroll\",'Enrollment Form'!$AJ589<>\"\"),\"Y\",\"N\")))","v":""},{"$f":"IF($B582=\"N\",\"\",IF(OR('Enrollment Form'!$B589<>\"Subscriber\",'Enrollment Form'!$C589=\"ROC\"),\"-\",IF(AND('Enrollment Form'!$B589=\"Subscriber\",'Enrollment Form'!$C589=\"Enroll\",'Enrollment Form'!$AK589<>\"\"),\"Y\",\"N\")))","v":""},{"$f":"IF($B582=\"N\",\"\",IF(OR('Enrollment Form'!$B589<>\"Subscriber\",'Enrollment Form'!$C589=\"ROC\"),\"-\",IF(AND('Enrollment Form'!$B589=\"Subscriber\",'Enrollment Form'!$C589=\"Enroll\",'Enrollment Form'!$AL589<>\"\"),\"Y\",\"N\")))","v":""},{"$f":"IF($B582=\"N\",\"\",IF(OR('Enrollment Form'!$B589<>\"Subscriber\",'Enrollment Form'!$C589=\"ROC\"),\"-\",IF(AND('Enrollment Form'!$B589=\"Subscriber\",'Enrollment Form'!$C589=\"Enroll\",'Enrollment Form'!$AM589<>\"\"),\"Y\",\"N\")))","v":""},{"$f":"IF($B582=\"N\",\"\",IF(OR('Enrollment Form'!$B589<>\"Subscriber\",'Enrollment Form'!$C589=\"ROC\"),\"-\",IF(AND('Enrollment Form'!$B589=\"Subscriber\",'Enrollment Form'!$C589=\"Enroll\",'Enrollment Form'!$AN589<>\"\"),\"Y\",\"N\")))","v":""},{"$f":"IF($B582=\"N\",\"\",IF(OR('Enrollment Form'!$B589<>\"Subscriber\",'Enrollment Form'!$C589=\"ROC\"),\"-\",IF(AND('Enrollment Form'!$B589=\"Subscriber\",'Enrollment Form'!$C589=\"Enroll\",'Enrollment Form'!$AP589<>\"\"),\"Y\",\"N\")))","v":""},{"$f":"IF($B582=\"N\",\"\",IF($Q582=\"-\",\"-\",IF(AND($Q582=\"Y\",'Enrollment Form'!$AP589=\"No\"),\"-\",IF(AND($Q582=\"Y\",'Enrollment Form'!$AP589=\"Yes\",'Enrollment Form'!$AQ589<>\"\"),\"Y\",\"N\"))))","v":""},{"$f":"IF($B582=\"N\",\"\",IF(OR('Enrollment Form'!$B589<>\"Subscriber\",'Enrollment Form'!$C589=\"ROC\"),\"-\",IF(AND('Enrollment Form'!$B589=\"Subscriber\",'Enrollment Form'!$C589=\"Enroll\",'Enrollment Form'!$CO589<>\"\"),\"Y\",\"N\")))","v":""},{"$f":"IF($B582=\"N\",\"\",IF($S582=\"-\",\"-\",IF(AND($S582=\"Y\",'Enrollment Form'!$CO589=\"No\"),\"-\",IF(AND($S582=\"Y\",'Enrollment Form'!$CO589=\"Yes\",'Enrollment Form'!$CP589<>\"\"),\"Y\",\"N\"))))","v":""},{"$f":"IF(OR('Enrollment Form'!$AV589=\"Yes\",'Enrollment Form'!$AV589=\"\"),\"-\",IF(AND('Enrollment Form'!$AV589=\"No\",ISERROR(FIND(\"HMO\",VLOOKUP('Enrollment Form'!G589,'Enrollment Form'!H$11:J$1000,3,FALSE),1))=FALSE,COUNTA('Enrollment Form'!$AW589:$AZ589)=4),\"Y\",\"N\"))","v":"-"},{"$f":"IF($B582=\"N\",\"\",IF('Enrollment Form'!$B589=\"Subscriber\",\"-\",IF(COUNTA('Enrollment Form'!$BE589,'Enrollment Form'!$BG589)=2,\"Y\",\"N\")))","v":""},{"$f":"IF($B582=\"N\",\"\",IF(OR('Enrollment Form'!$AU589=\"\",'Enrollment Form'!$AU589=\"No\"),\"-\",IF(AND('Enrollment Form'!$AU589=\"Yes\",COUNTA('Enrollment Form'!$CK589)=1),\"Y\",\"N\")))","v":""},{"$f":"IF(OR('Enrollment Form'!$CK589=\"\",'Enrollment Form'!$CK589=\"No\"),\"-\",IF(COUNTA('Enrollment Form'!$CM589:$CN589)=2,\"Y\",\"N\"))","v":"-"},{"$f":"IF($B582=\"N\",\"\",IF(COUNTIF('Enrollment Form'!$CZ589:$DO589,\"Other\")=COUNTA('Enrollment Form'!$DF589,'Enrollment Form'!$DA589,'Enrollment Form'!$DK589,'Enrollment Form'!$DP589),\"Y\",\"N\"))","v":""},{"$f":"IF($B582=\"N\",\"\",IF(OR('Enrollment Form'!B589<>\"Subscriber\",'Enrollment Form'!C589=\"ROC\",COUNTIF('Enrollment Form'!AS589:AT589,\"Yes\")>=1),\"-\",IF(AND('Enrollment Form'!C589=\"Enroll\",COUNTIF('Enrollment Form'!AS589:AT589,\"No\")=2,'Enrollment Form'!AU589=\"\"),\"N\",\"Y\")))","v":""},{"$f":"IF(OR(B582=\"N\",'Enrollment Form'!B589<>\"Subscriber\",'Enrollment Form'!C589=\"ROC\",'Enrollment Form'!O589<>\"Multiple of Salary\"),\"-\",IF(COUNTA('Enrollment Form'!T589:U589)<2,\"N\",\"Y\"))","v":"-"},{"$f":"IF(B582=\"N\",\"\",IF(OR('Enrollment Form'!C589=\"ROC\",'Enrollment Form'!B589<>\"Subscriber\",'Enrollment Form'!O589=\"Waive\",'Enrollment Form'!O589=\"\"),\"-\",IF('Enrollment Form'!P589=\"\",\"N\",\"Y\")))","v":""},{"$f":"IF($B582=\"N\",\"\",IF(AND('Enrollment Form'!$C589=\"ROC\",'Enrollment Form'!$DS589<>\"\"),\"Y\",IF(AND('Enrollment Form'!$C589=\"ROC\",'Enrollment Form'!$DS589=\"\"),\"N\",IF(AND('Enrollment Form'!$C589=\"Enroll\",'Enrollment Form'!$B589=\"Subscriber\",'Enrollment Form'!$CQ589=\"No\",'Enrollment Form'!$DS589=\"\"),\"N\",IF(AND('Enrollment Form'!$C589=\"Enroll\",'Enrollment Form'!$B589=\"Subscriber\",'Enrollment Form'!$CQ589=\"Yes\"),\"-\",\"Y\")))))","v":""},{"$f":"IF($B582=\"N\",\"\",IF(AND('Enrollment Form'!$C589=\"ROC\",'Enrollment Form'!$DT589<>\"\"),\"Y\",IF(AND('Enrollment Form'!$C589=\"ROC\",'Enrollment Form'!$DT589=\"\"),\"N\",IF(AND('Enrollment Form'!$C589=\"Enroll\",'Enrollment Form'!$B589=\"Subscriber\",'Enrollment Form'!$CQ589=\"No\",'Enrollment Form'!$DT589=\"\"),\"N\",IF(AND('Enrollment Form'!$C589=\"Enroll\",'Enrollment Form'!$B589=\"Subscriber\",'Enrollment Form'!$CQ589=\"Yes\"),\"-\",\"Y\")))))","v":""},{"$f":"IF('Enrollment Form'!AH589=\"\",\"\",IF(ISERROR(SEARCH(\".\",'Enrollment Form'!AH589,SEARCH(\"@\",'Enrollment Form'!AH589))),\"N\",\"Y\"))","v":""},{"$f":"IF(OR($B582=\"N\",'Enrollment Form'!$G589=\"\"),\"\",IF('Enrollment Form'!$B589<>\"Subscriber\",\"-\",IF(COUNTIF('Enrollment Form'!$AS589:$AT589,\"Yes\")=2,\"N\",\"Y\")))","v":""},{"$f":"IF(OR('Enrollment Form'!$CC589=\"\",'Enrollment Form'!$CC589=\"No\"),\"-\",IF(AND('Enrollment Form'!$CC589=\"Yes\",'Enrollment Form'!$CD589=\"\"),\"N\",\"Y\"))","v":"-"},{"$f":"IF(OR('Enrollment Form'!$CE589=\"\",'Enrollment Form'!$CE589=\"No\"),\"-\",IF(AND('Enrollment Form'!$CE589=\"Yes\",'Enrollment Form'!$CF589=\"\"),\"N\",\"Y\"))","v":"-"},{"$f":"IF(OR('Enrollment Form'!$CG589=\"\",'Enrollment Form'!$CG589=\"No\"),\"-\",IF(AND('Enrollment Form'!$CG589=\"Yes\",'Enrollment Form'!$CH589=\"\"),\"N\",\"Y\"))","v":"-"},{"$f":"IF(OR('Enrollment Form'!$CG589=\"\",'Enrollment Form'!$CG589=\"No\"),\"-\",IF(AND('Enrollment Form'!$CG589=\"Yes\",'Enrollment Form'!$CI589=\"\"),\"N\",\"Y\"))","v":"-"},{"$f":"IF('Enrollment Form'!B589<>\"Subscriber\",\"-\",IF(AND('Enrollment Form'!B589=\"Subscriber\",'Enrollment Form'!C589=\"Enroll\",'Enrollment Form'!AA589=\"\"),\"N\",\"Y\"))","v":"-"},{"$f":"IF(OR('Enrollment Form'!B589=\"Subscriber\",'Enrollment Form'!B589=\"\"),\"-\",IF('Enrollment Form'!BI589=\"\",\"N\",\"Y\"))","v":"-"},{"$f":"IF('Enrollment Form'!B589<>\"Subscriber\",\"-\",IF(AND('Enrollment Form'!B589=\"Subscriber\",'Enrollment Form'!G589=\"\"),\"N\",\"Y\"))","v":"-"},{"$f":"IF('Enrollment Form'!A589=\"\",\"\",IF('Enrollment Form'!B589=\"Subscriber\",\"-\",IF(AND('Enrollment Form'!B589<>\"Subscriber\",'Enrollment Form'!G589='Enrollment Form'!H589),\"N\",\"Y\")))","v":""},0]
[590,{"$f":"IF('Enrollment Form'!$A590<>\"\",\"Y\",\"N\")","v":"N"},{"$f":"IF(AND('Enrollment Form'!$B590=\"\",'Enrollment Form'!$C590<>\"\"),\"N\",IF($B583=\"N\",\"\",\"Y\"))","v":""},{"$f":"IF(OR($B583=\"N\",'Enrollment Form'!G590=\"\"),\"\",IF('Enrollment Form'!$B590<>\"Subscriber\",\"\",IF('Enrollment Form'!$G590='Enrollment Form'!$H590,\"Y\",\"N\")))","v":""},{"$f":"IF($B583=\"N\",\"\",IF(AND(COUNTIFS('Enrollment Form'!$H$11:$H$1000,'Enrollment Form'!$H590,'Enrollment Form'!$B$11:$B$1000,'Enrollment Form'!$B590)>1,'Enrollment Form'!$H590<>\"\"),\"N\",\"Y\"))","v":""},{"$f":"IF($B583=\"N\",\"\",IF(LEN('Enrollment Form'!$Y590)=0,\"\",IF(LEN('Enrollment Form'!$Y590)<>5,\"N\",\"Y\")))","v":""},{"$f":"IF($B583=\"N\",\"\",IF(LEN('Enrollment Form'!$AD590=0),\"\",IF(LEN('Enrollment Form'!$AD590)<>5,\"N\",\"Y\")))","v":""},{"$f":"IF($B583=\"N\",\"\",IF(LEN('Enrollment Form'!$BL590=0),\"\",IF(LEN('Enrollment Form'!$BL590)<>5,\"N\",\"Y\")))","v":""},{"$f":"IF($B583=\"N\",\"\",IF(LEN('Enrollment Form'!$AE590)=0,\"\",IF(LEN('Enrollment Form'!$AE590)<>10,\"N\",\"Y\")))","v":""},{"$f":"IF($B583=\"N\",\"\",IF(LEN('Enrollment Form'!$AF590)=0,\"\",IF(LEN('Enrollment Form'!$AF590)<>10,\"N\",\"Y\")))","v":""},{"$f":"IF('Enrollment Form'!$O590<>\"Graded\",\"-\",IF(AND('Enrollment Form'!$O590=\"Graded\",'Enrollment Form'!$AO590<>\"\"),\"Y\",\"N\"))","v":"-"},{"$f":"IF($B583=\"N\",\"\",IF(OR('Enrollment Form'!$B590<>\"Subscriber\",'Enrollment Form'!$C590=\"ROC\"),\"-\",IF(AND('Enrollment Form'!$B590=\"Subscriber\",'Enrollment Form'!$C590=\"Enroll\",'Enrollment Form'!$AJ590<>\"\"),\"Y\",\"N\")))","v":""},{"$f":"IF($B583=\"N\",\"\",IF(OR('Enrollment Form'!$B590<>\"Subscriber\",'Enrollment Form'!$C590=\"ROC\"),\"-\",IF(AND('Enrollment Form'!$B590=\"Subscriber\",'Enrollment Form'!$C590=\"Enroll\",'Enrollment Form'!$AK590<>\"\"),\"Y\",\"N\")))","v":""},{"$f":"IF($B583=\"N\",\"\",IF(OR('Enrollment Form'!$B590<>\"Subscriber\",'Enrollment Form'!$C590=\"ROC\"),\"-\",IF(AND('Enrollment Form'!$B590=\"Subscriber\",'Enrollment Form'!$C590=\"Enroll\",'Enrollment Form'!$AL590<>\"\"),\"Y\",\"N\")))","v":""},{"$f":"IF($B583=\"N\",\"\",IF(OR('Enrollment Form'!$B590<>\"Subscriber\",'Enrollment Form'!$C590=\"ROC\"),\"-\",IF(AND('Enrollment Form'!$B590=\"Subscriber\",'Enrollment Form'!$C590=\"Enroll\",'Enrollment Form'!$AM590<>\"\"),\"Y\",\"N\")))","v":""},{"$f":"IF($B583=\"N\",\"\",IF(OR('Enrollment Form'!$B590<>\"Subscriber\",'Enrollment Form'!$C590=\"ROC\"),\"-\",IF(AND('Enrollment Form'!$B590=\"Subscriber\",'Enrollment Form'!$C590=\"Enroll\",'Enrollment Form'!$AN590<>\"\"),\"Y\",\"N\")))","v":""},{"$f":"IF($B583=\"N\",\"\",IF(OR('Enrollment Form'!$B590<>\"Subscriber\",'Enrollment Form'!$C590=\"ROC\"),\"-\",IF(AND('Enrollment Form'!$B590=\"Subscriber\",'Enrollment Form'!$C590=\"Enroll\",'Enrollment Form'!$AP590<>\"\"),\"Y\",\"N\")))","v":""},{"$f":"IF($B583=\"N\",\"\",IF($Q583=\"-\",\"-\",IF(AND($Q583=\"Y\",'Enrollment Form'!$AP590=\"No\"),\"-\",IF(AND($Q583=\"Y\",'Enrollment Form'!$AP590=\"Yes\",'Enrollment Form'!$AQ590<>\"\"),\"Y\",\"N\"))))","v":""},{"$f":"IF($B583=\"N\",\"\",IF(OR('Enrollment Form'!$B590<>\"Subscriber\",'Enrollment Form'!$C590=\"ROC\"),\"-\",IF(AND('Enrollment Form'!$B590=\"Subscriber\",'Enrollment Form'!$C590=\"Enroll\",'Enrollment Form'!$CO590<>\"\"),\"Y\",\"N\")))","v":""},{"$f":"IF($B583=\"N\",\"\",IF($S583=\"-\",\"-\",IF(AND($S583=\"Y\",'Enrollment Form'!$CO590=\"No\"),\"-\",IF(AND($S583=\"Y\",'Enrollment Form'!$CO590=\"Yes\",'Enrollment Form'!$CP590<>\"\"),\"Y\",\"N\"))))","v":""},{"$f":"IF(OR('Enrollment Form'!$AV590=\"Yes\",'Enrollment Form'!$AV590=\"\"),\"-\",IF(AND('Enrollment Form'!$AV590=\"No\",ISERROR(FIND(\"HMO\",VLOOKUP('Enrollment Form'!G590,'Enrollment Form'!H$11:J$1000,3,FALSE),1))=FALSE,COUNTA('Enrollment Form'!$AW590:$AZ590)=4),\"Y\",\"N\"))","v":"-"},{"$f":"IF($B583=\"N\",\"\",IF('Enrollment Form'!$B590=\"Subscriber\",\"-\",IF(COUNTA('Enrollment Form'!$BE590,'Enrollment Form'!$BG590)=2,\"Y\",\"N\")))","v":""},{"$f":"IF($B583=\"N\",\"\",IF(OR('Enrollment Form'!$AU590=\"\",'Enrollment Form'!$AU590=\"No\"),\"-\",IF(AND('Enrollment Form'!$AU590=\"Yes\",COUNTA('Enrollment Form'!$CK590)=1),\"Y\",\"N\")))","v":""},{"$f":"IF(OR('Enrollment Form'!$CK590=\"\",'Enrollment Form'!$CK590=\"No\"),\"-\",IF(COUNTA('Enrollment Form'!$CM590:$CN590)=2,\"Y\",\"N\"))","v":"-"},{"$f":"IF($B583=\"N\",\"\",IF(COUNTIF('Enrollment Form'!$CZ590:$DO590,\"Other\")=COUNTA('Enrollment Form'!$DF590,'Enrollment Form'!$DA590,'Enrollment Form'!$DK590,'Enrollment Form'!$DP590),\"Y\",\"N\"))","v":""},{"$f":"IF($B583=\"N\",\"\",IF(OR('Enrollment Form'!B590<>\"Subscriber\",'Enrollment Form'!C590=\"ROC\",COUNTIF('Enrollment Form'!AS590:AT590,\"Yes\")>=1),\"-\",IF(AND('Enrollment Form'!C590=\"Enroll\",COUNTIF('Enrollment Form'!AS590:AT590,\"No\")=2,'Enrollment Form'!AU590=\"\"),\"N\",\"Y\")))","v":""},{"$f":"IF(OR(B583=\"N\",'Enrollment Form'!B590<>\"Subscriber\",'Enrollment Form'!C590=\"ROC\",'Enrollment Form'!O590<>\"Multiple of Salary\"),\"-\",IF(COUNTA('Enrollment Form'!T590:U590)<2,\"N\",\"Y\"))","v":"-"},{"$f":"IF(B583=\"N\",\"\",IF(OR('Enrollment Form'!C590=\"ROC\",'Enrollment Form'!B590<>\"Subscriber\",'Enrollment Form'!O590=\"Waive\",'Enrollment Form'!O590=\"\"),\"-\",IF('Enrollment Form'!P590=\"\",\"N\",\"Y\")))","v":""},{"$f":"IF($B583=\"N\",\"\",IF(AND('Enrollment Form'!$C590=\"ROC\",'Enrollment Form'!$DS590<>\"\"),\"Y\",IF(AND('Enrollment Form'!$C590=\"ROC\",'Enrollment Form'!$DS590=\"\"),\"N\",IF(AND('Enrollment Form'!$C590=\"Enroll\",'Enrollment Form'!$B590=\"Subscriber\",'Enrollment Form'!$CQ590=\"No\",'Enrollment Form'!$DS590=\"\"),\"N\",IF(AND('Enrollment Form'!$C590=\"Enroll\",'Enrollment Form'!$B590=\"Subscriber\",'Enrollment Form'!$CQ590=\"Yes\"),\"-\",\"Y\")))))","v":""},{"$f":"IF($B583=\"N\",\"\",IF(AND('Enrollment Form'!$C590=\"ROC\",'Enrollment Form'!$DT590<>\"\"),\"Y\",IF(AND('Enrollment Form'!$C590=\"ROC\",'Enrollment Form'!$DT590=\"\"),\"N\",IF(AND('Enrollment Form'!$C590=\"Enroll\",'Enrollment Form'!$B590=\"Subscriber\",'Enrollment Form'!$CQ590=\"No\",'Enrollment Form'!$DT590=\"\"),\"N\",IF(AND('Enrollment Form'!$C590=\"Enroll\",'Enrollment Form'!$B590=\"Subscriber\",'Enrollment Form'!$CQ590=\"Yes\"),\"-\",\"Y\")))))","v":""},{"$f":"IF('Enrollment Form'!AH590=\"\",\"\",IF(ISERROR(SEARCH(\".\",'Enrollment Form'!AH590,SEARCH(\"@\",'Enrollment Form'!AH590))),\"N\",\"Y\"))","v":""},{"$f":"IF(OR($B583=\"N\",'Enrollment Form'!$G590=\"\"),\"\",IF('Enrollment Form'!$B590<>\"Subscriber\",\"-\",IF(COUNTIF('Enrollment Form'!$AS590:$AT590,\"Yes\")=2,\"N\",\"Y\")))","v":""},{"$f":"IF(OR('Enrollment Form'!$CC590=\"\",'Enrollment Form'!$CC590=\"No\"),\"-\",IF(AND('Enrollment Form'!$CC590=\"Yes\",'Enrollment Form'!$CD590=\"\"),\"N\",\"Y\"))","v":"-"},{"$f":"IF(OR('Enrollment Form'!$CE590=\"\",'Enrollment Form'!$CE590=\"No\"),\"-\",IF(AND('Enrollment Form'!$CE590=\"Yes\",'Enrollment Form'!$CF590=\"\"),\"N\",\"Y\"))","v":"-"},{"$f":"IF(OR('Enrollment Form'!$CG590=\"\",'Enrollment Form'!$CG590=\"No\"),\"-\",IF(AND('Enrollment Form'!$CG590=\"Yes\",'Enrollment Form'!$CH590=\"\"),\"N\",\"Y\"))","v":"-"},{"$f":"IF(OR('Enrollment Form'!$CG590=\"\",'Enrollment Form'!$CG590=\"No\"),\"-\",IF(AND('Enrollment Form'!$CG590=\"Yes\",'Enrollment Form'!$CI590=\"\"),\"N\",\"Y\"))","v":"-"},{"$f":"IF('Enrollment Form'!B590<>\"Subscriber\",\"-\",IF(AND('Enrollment Form'!B590=\"Subscriber\",'Enrollment Form'!C590=\"Enroll\",'Enrollment Form'!AA590=\"\"),\"N\",\"Y\"))","v":"-"},{"$f":"IF(OR('Enrollment Form'!B590=\"Subscriber\",'Enrollment Form'!B590=\"\"),\"-\",IF('Enrollment Form'!BI590=\"\",\"N\",\"Y\"))","v":"-"},{"$f":"IF('Enrollment Form'!B590<>\"Subscriber\",\"-\",IF(AND('Enrollment Form'!B590=\"Subscriber\",'Enrollment Form'!G590=\"\"),\"N\",\"Y\"))","v":"-"},{"$f":"IF('Enrollment Form'!A590=\"\",\"\",IF('Enrollment Form'!B590=\"Subscriber\",\"-\",IF(AND('Enrollment Form'!B590<>\"Subscriber\",'Enrollment Form'!G590='Enrollment Form'!H590),\"N\",\"Y\")))","v":""},0]
[591,{"$f":"IF('Enrollment Form'!$A591<>\"\",\"Y\",\"N\")","v":"N"},{"$f":"IF(AND('Enrollment Form'!$B591=\"\",'Enrollment Form'!$C591<>\"\"),\"N\",IF($B584=\"N\",\"\",\"Y\"))","v":""},{"$f":"IF(OR($B584=\"N\",'Enrollment Form'!G591=\"\"),\"\",IF('Enrollment Form'!$B591<>\"Subscriber\",\"\",IF('Enrollment Form'!$G591='Enrollment Form'!$H591,\"Y\",\"N\")))","v":""},{"$f":"IF($B584=\"N\",\"\",IF(AND(COUNTIFS('Enrollment Form'!$H$11:$H$1000,'Enrollment Form'!$H591,'Enrollment Form'!$B$11:$B$1000,'Enrollment Form'!$B591)>1,'Enrollment Form'!$H591<>\"\"),\"N\",\"Y\"))","v":""},{"$f":"IF($B584=\"N\",\"\",IF(LEN('Enrollment Form'!$Y591)=0,\"\",IF(LEN('Enrollment Form'!$Y591)<>5,\"N\",\"Y\")))","v":""},{"$f":"IF($B584=\"N\",\"\",IF(LEN('Enrollment Form'!$AD591=0),\"\",IF(LEN('Enrollment Form'!$AD591)<>5,\"N\",\"Y\")))","v":""},{"$f":"IF($B584=\"N\",\"\",IF(LEN('Enrollment Form'!$BL591=0),\"\",IF(LEN('Enrollment Form'!$BL591)<>5,\"N\",\"Y\")))","v":""},{"$f":"IF($B584=\"N\",\"\",IF(LEN('Enrollment Form'!$AE591)=0,\"\",IF(LEN('Enrollment Form'!$AE591)<>10,\"N\",\"Y\")))","v":""},{"$f":"IF($B584=\"N\",\"\",IF(LEN('Enrollment Form'!$AF591)=0,\"\",IF(LEN('Enrollment Form'!$AF591)<>10,\"N\",\"Y\")))","v":""},{"$f":"IF('Enrollment Form'!$O591<>\"Graded\",\"-\",IF(AND('Enrollment Form'!$O591=\"Graded\",'Enrollment Form'!$AO591<>\"\"),\"Y\",\"N\"))","v":"-"},{"$f":"IF($B584=\"N\",\"\",IF(OR('Enrollment Form'!$B591<>\"Subscriber\",'Enrollment Form'!$C591=\"ROC\"),\"-\",IF(AND('Enrollment Form'!$B591=\"Subscriber\",'Enrollment Form'!$C591=\"Enroll\",'Enrollment Form'!$AJ591<>\"\"),\"Y\",\"N\")))","v":""},{"$f":"IF($B584=\"N\",\"\",IF(OR('Enrollment Form'!$B591<>\"Subscriber\",'Enrollment Form'!$C591=\"ROC\"),\"-\",IF(AND('Enrollment Form'!$B591=\"Subscriber\",'Enrollment Form'!$C591=\"Enroll\",'Enrollment Form'!$AK591<>\"\"),\"Y\",\"N\")))","v":""},{"$f":"IF($B584=\"N\",\"\",IF(OR('Enrollment Form'!$B591<>\"Subscriber\",'Enrollment Form'!$C591=\"ROC\"),\"-\",IF(AND('Enrollment Form'!$B591=\"Subscriber\",'Enrollment Form'!$C591=\"Enroll\",'Enrollment Form'!$AL591<>\"\"),\"Y\",\"N\")))","v":""},{"$f":"IF($B584=\"N\",\"\",IF(OR('Enrollment Form'!$B591<>\"Subscriber\",'Enrollment Form'!$C591=\"ROC\"),\"-\",IF(AND('Enrollment Form'!$B591=\"Subscriber\",'Enrollment Form'!$C591=\"Enroll\",'Enrollment Form'!$AM591<>\"\"),\"Y\",\"N\")))","v":""},{"$f":"IF($B584=\"N\",\"\",IF(OR('Enrollment Form'!$B591<>\"Subscriber\",'Enrollment Form'!$C591=\"ROC\"),\"-\",IF(AND('Enrollment Form'!$B591=\"Subscriber\",'Enrollment Form'!$C591=\"Enroll\",'Enrollment Form'!$AN591<>\"\"),\"Y\",\"N\")))","v":""},{"$f":"IF($B584=\"N\",\"\",IF(OR('Enrollment Form'!$B591<>\"Subscriber\",'Enrollment Form'!$C591=\"ROC\"),\"-\",IF(AND('Enrollment Form'!$B591=\"Subscriber\",'Enrollment Form'!$C591=\"Enroll\",'Enrollment Form'!$AP591<>\"\"),\"Y\",\"N\")))","v":""},{"$f":"IF($B584=\"N\",\"\",IF($Q584=\"-\",\"-\",IF(AND($Q584=\"Y\",'Enrollment Form'!$AP591=\"No\"),\"-\",IF(AND($Q584=\"Y\",'Enrollment Form'!$AP591=\"Yes\",'Enrollment Form'!$AQ591<>\"\"),\"Y\",\"N\"))))","v":""},{"$f":"IF($B584=\"N\",\"\",IF(OR('Enrollment Form'!$B591<>\"Subscriber\",'Enrollment Form'!$C591=\"ROC\"),\"-\",IF(AND('Enrollment Form'!$B591=\"Subscriber\",'Enrollment Form'!$C591=\"Enroll\",'Enrollment Form'!$CO591<>\"\"),\"Y\",\"N\")))","v":""},{"$f":"IF($B584=\"N\",\"\",IF($S584=\"-\",\"-\",IF(AND($S584=\"Y\",'Enrollment Form'!$CO591=\"No\"),\"-\",IF(AND($S584=\"Y\",'Enrollment Form'!$CO591=\"Yes\",'Enrollment Form'!$CP591<>\"\"),\"Y\",\"N\"))))","v":""},{"$f":"IF(OR('Enrollment Form'!$AV591=\"Yes\",'Enrollment Form'!$AV591=\"\"),\"-\",IF(AND('Enrollment Form'!$AV591=\"No\",ISERROR(FIND(\"HMO\",VLOOKUP('Enrollment Form'!G591,'Enrollment Form'!H$11:J$1000,3,FALSE),1))=FALSE,COUNTA('Enrollment Form'!$AW591:$AZ591)=4),\"Y\",\"N\"))","v":"-"},{"$f":"IF($B584=\"N\",\"\",IF('Enrollment Form'!$B591=\"Subscriber\",\"-\",IF(COUNTA('Enrollment Form'!$BE591,'Enrollment Form'!$BG591)=2,\"Y\",\"N\")))","v":""},{"$f":"IF($B584=\"N\",\"\",IF(OR('Enrollment Form'!$AU591=\"\",'Enrollment Form'!$AU591=\"No\"),\"-\",IF(AND('Enrollment Form'!$AU591=\"Yes\",COUNTA('Enrollment Form'!$CK591)=1),\"Y\",\"N\")))","v":""},{"$f":"IF(OR('Enrollment Form'!$CK591=\"\",'Enrollment Form'!$CK591=\"No\"),\"-\",IF(COUNTA('Enrollment Form'!$CM591:$CN591)=2,\"Y\",\"N\"))","v":"-"},{"$f":"IF($B584=\"N\",\"\",IF(COUNTIF('Enrollment Form'!$CZ591:$DO591,\"Other\")=COUNTA('Enrollment Form'!$DF591,'Enrollment Form'!$DA591,'Enrollment Form'!$DK591,'Enrollment Form'!$DP591),\"Y\",\"N\"))","v":""},{"$f":"IF($B584=\"N\",\"\",IF(OR('Enrollment Form'!B591<>\"Subscriber\",'Enrollment Form'!C591=\"ROC\",COUNTIF('Enrollment Form'!AS591:AT591,\"Yes\")>=1),\"-\",IF(AND('Enrollment Form'!C591=\"Enroll\",COUNTIF('Enrollment Form'!AS591:AT591,\"No\")=2,'Enrollment Form'!AU591=\"\"),\"N\",\"Y\")))","v":""},{"$f":"IF(OR(B584=\"N\",'Enrollment Form'!B591<>\"Subscriber\",'Enrollment Form'!C591=\"ROC\",'Enrollment Form'!O591<>\"Multiple of Salary\"),\"-\",IF(COUNTA('Enrollment Form'!T591:U591)<2,\"N\",\"Y\"))","v":"-"},{"$f":"IF(B584=\"N\",\"\",IF(OR('Enrollment Form'!C591=\"ROC\",'Enrollment Form'!B591<>\"Subscriber\",'Enrollment Form'!O591=\"Waive\",'Enrollment Form'!O591=\"\"),\"-\",IF('Enrollment Form'!P591=\"\",\"N\",\"Y\")))","v":""},{"$f":"IF($B584=\"N\",\"\",IF(AND('Enrollment Form'!$C591=\"ROC\",'Enrollment Form'!$DS591<>\"\"),\"Y\",IF(AND('Enrollment Form'!$C591=\"ROC\",'Enrollment Form'!$DS591=\"\"),\"N\",IF(AND('Enrollment Form'!$C591=\"Enroll\",'Enrollment Form'!$B591=\"Subscriber\",'Enrollment Form'!$CQ591=\"No\",'Enrollment Form'!$DS591=\"\"),\"N\",IF(AND('Enrollment Form'!$C591=\"Enroll\",'Enrollment Form'!$B591=\"Subscriber\",'Enrollment Form'!$CQ591=\"Yes\"),\"-\",\"Y\")))))","v":""},{"$f":"IF($B584=\"N\",\"\",IF(AND('Enrollment Form'!$C591=\"ROC\",'Enrollment Form'!$DT591<>\"\"),\"Y\",IF(AND('Enrollment Form'!$C591=\"ROC\",'Enrollment Form'!$DT591=\"\"),\"N\",IF(AND('Enrollment Form'!$C591=\"Enroll\",'Enrollment Form'!$B591=\"Subscriber\",'Enrollment Form'!$CQ591=\"No\",'Enrollment Form'!$DT591=\"\"),\"N\",IF(AND('Enrollment Form'!$C591=\"Enroll\",'Enrollment Form'!$B591=\"Subscriber\",'Enrollment Form'!$CQ591=\"Yes\"),\"-\",\"Y\")))))","v":""},{"$f":"IF('Enrollment Form'!AH591=\"\",\"\",IF(ISERROR(SEARCH(\".\",'Enrollment Form'!AH591,SEARCH(\"@\",'Enrollment Form'!AH591))),\"N\",\"Y\"))","v":""},{"$f":"IF(OR($B584=\"N\",'Enrollment Form'!$G591=\"\"),\"\",IF('Enrollment Form'!$B591<>\"Subscriber\",\"-\",IF(COUNTIF('Enrollment Form'!$AS591:$AT591,\"Yes\")=2,\"N\",\"Y\")))","v":""},{"$f":"IF(OR('Enrollment Form'!$CC591=\"\",'Enrollment Form'!$CC591=\"No\"),\"-\",IF(AND('Enrollment Form'!$CC591=\"Yes\",'Enrollment Form'!$CD591=\"\"),\"N\",\"Y\"))","v":"-"},{"$f":"IF(OR('Enrollment Form'!$CE591=\"\",'Enrollment Form'!$CE591=\"No\"),\"-\",IF(AND('Enrollment Form'!$CE591=\"Yes\",'Enrollment Form'!$CF591=\"\"),\"N\",\"Y\"))","v":"-"},{"$f":"IF(OR('Enrollment Form'!$CG591=\"\",'Enrollment Form'!$CG591=\"No\"),\"-\",IF(AND('Enrollment Form'!$CG591=\"Yes\",'Enrollment Form'!$CH591=\"\"),\"N\",\"Y\"))","v":"-"},{"$f":"IF(OR('Enrollment Form'!$CG591=\"\",'Enrollment Form'!$CG591=\"No\"),\"-\",IF(AND('Enrollment Form'!$CG591=\"Yes\",'Enrollment Form'!$CI591=\"\"),\"N\",\"Y\"))","v":"-"},{"$f":"IF('Enrollment Form'!B591<>\"Subscriber\",\"-\",IF(AND('Enrollment Form'!B591=\"Subscriber\",'Enrollment Form'!C591=\"Enroll\",'Enrollment Form'!AA591=\"\"),\"N\",\"Y\"))","v":"-"},{"$f":"IF(OR('Enrollment Form'!B591=\"Subscriber\",'Enrollment Form'!B591=\"\"),\"-\",IF('Enrollment Form'!BI591=\"\",\"N\",\"Y\"))","v":"-"},{"$f":"IF('Enrollment Form'!B591<>\"Subscriber\",\"-\",IF(AND('Enrollment Form'!B591=\"Subscriber\",'Enrollment Form'!G591=\"\"),\"N\",\"Y\"))","v":"-"},{"$f":"IF('Enrollment Form'!A591=\"\",\"\",IF('Enrollment Form'!B591=\"Subscriber\",\"-\",IF(AND('Enrollment Form'!B591<>\"Subscriber\",'Enrollment Form'!G591='Enrollment Form'!H591),\"N\",\"Y\")))","v":""},0]
[592,{"$f":"IF('Enrollment Form'!$A592<>\"\",\"Y\",\"N\")","v":"N"},{"$f":"IF(AND('Enrollment Form'!$B592=\"\",'Enrollment Form'!$C592<>\"\"),\"N\",IF($B585=\"N\",\"\",\"Y\"))","v":""},{"$f":"IF(OR($B585=\"N\",'Enrollment Form'!G592=\"\"),\"\",IF('Enrollment Form'!$B592<>\"Subscriber\",\"\",IF('Enrollment Form'!$G592='Enrollment Form'!$H592,\"Y\",\"N\")))","v":""},{"$f":"IF($B585=\"N\",\"\",IF(AND(COUNTIFS('Enrollment Form'!$H$11:$H$1000,'Enrollment Form'!$H592,'Enrollment Form'!$B$11:$B$1000,'Enrollment Form'!$B592)>1,'Enrollment Form'!$H592<>\"\"),\"N\",\"Y\"))","v":""},{"$f":"IF($B585=\"N\",\"\",IF(LEN('Enrollment Form'!$Y592)=0,\"\",IF(LEN('Enrollment Form'!$Y592)<>5,\"N\",\"Y\")))","v":""},{"$f":"IF($B585=\"N\",\"\",IF(LEN('Enrollment Form'!$AD592=0),\"\",IF(LEN('Enrollment Form'!$AD592)<>5,\"N\",\"Y\")))","v":""},{"$f":"IF($B585=\"N\",\"\",IF(LEN('Enrollment Form'!$BL592=0),\"\",IF(LEN('Enrollment Form'!$BL592)<>5,\"N\",\"Y\")))","v":""},{"$f":"IF($B585=\"N\",\"\",IF(LEN('Enrollment Form'!$AE592)=0,\"\",IF(LEN('Enrollment Form'!$AE592)<>10,\"N\",\"Y\")))","v":""},{"$f":"IF($B585=\"N\",\"\",IF(LEN('Enrollment Form'!$AF592)=0,\"\",IF(LEN('Enrollment Form'!$AF592)<>10,\"N\",\"Y\")))","v":""},{"$f":"IF('Enrollment Form'!$O592<>\"Graded\",\"-\",IF(AND('Enrollment Form'!$O592=\"Graded\",'Enrollment Form'!$AO592<>\"\"),\"Y\",\"N\"))","v":"-"},{"$f":"IF($B585=\"N\",\"\",IF(OR('Enrollment Form'!$B592<>\"Subscriber\",'Enrollment Form'!$C592=\"ROC\"),\"-\",IF(AND('Enrollment Form'!$B592=\"Subscriber\",'Enrollment Form'!$C592=\"Enroll\",'Enrollment Form'!$AJ592<>\"\"),\"Y\",\"N\")))","v":""},{"$f":"IF($B585=\"N\",\"\",IF(OR('Enrollment Form'!$B592<>\"Subscriber\",'Enrollment Form'!$C592=\"ROC\"),\"-\",IF(AND('Enrollment Form'!$B592=\"Subscriber\",'Enrollment Form'!$C592=\"Enroll\",'Enrollment Form'!$AK592<>\"\"),\"Y\",\"N\")))","v":""},{"$f":"IF($B585=\"N\",\"\",IF(OR('Enrollment Form'!$B592<>\"Subscriber\",'Enrollment Form'!$C592=\"ROC\"),\"-\",IF(AND('Enrollment Form'!$B592=\"Subscriber\",'Enrollment Form'!$C592=\"Enroll\",'Enrollment Form'!$AL592<>\"\"),\"Y\",\"N\")))","v":""},{"$f":"IF($B585=\"N\",\"\",IF(OR('Enrollment Form'!$B592<>\"Subscriber\",'Enrollment Form'!$C592=\"ROC\"),\"-\",IF(AND('Enrollment Form'!$B592=\"Subscriber\",'Enrollment Form'!$C592=\"Enroll\",'Enrollment Form'!$AM592<>\"\"),\"Y\",\"N\")))","v":""},{"$f":"IF($B585=\"N\",\"\",IF(OR('Enrollment Form'!$B592<>\"Subscriber\",'Enrollment Form'!$C592=\"ROC\"),\"-\",IF(AND('Enrollment Form'!$B592=\"Subscriber\",'Enrollment Form'!$C592=\"Enroll\",'Enrollment Form'!$AN592<>\"\"),\"Y\",\"N\")))","v":""},{"$f":"IF($B585=\"N\",\"\",IF(OR('Enrollment Form'!$B592<>\"Subscriber\",'Enrollment Form'!$C592=\"ROC\"),\"-\",IF(AND('Enrollment Form'!$B592=\"Subscriber\",'Enrollment Form'!$C592=\"Enroll\",'Enrollment Form'!$AP592<>\"\"),\"Y\",\"N\")))","v":""},{"$f":"IF($B585=\"N\",\"\",IF($Q585=\"-\",\"-\",IF(AND($Q585=\"Y\",'Enrollment Form'!$AP592=\"No\"),\"-\",IF(AND($Q585=\"Y\",'Enrollment Form'!$AP592=\"Yes\",'Enrollment Form'!$AQ592<>\"\"),\"Y\",\"N\"))))","v":""},{"$f":"IF($B585=\"N\",\"\",IF(OR('Enrollment Form'!$B592<>\"Subscriber\",'Enrollment Form'!$C592=\"ROC\"),\"-\",IF(AND('Enrollment Form'!$B592=\"Subscriber\",'Enrollment Form'!$C592=\"Enroll\",'Enrollment Form'!$CO592<>\"\"),\"Y\",\"N\")))","v":""},{"$f":"IF($B585=\"N\",\"\",IF($S585=\"-\",\"-\",IF(AND($S585=\"Y\",'Enrollment Form'!$CO592=\"No\"),\"-\",IF(AND($S585=\"Y\",'Enrollment Form'!$CO592=\"Yes\",'Enrollment Form'!$CP592<>\"\"),\"Y\",\"N\"))))","v":""},{"$f":"IF(OR('Enrollment Form'!$AV592=\"Yes\",'Enrollment Form'!$AV592=\"\"),\"-\",IF(AND('Enrollment Form'!$AV592=\"No\",ISERROR(FIND(\"HMO\",VLOOKUP('Enrollment Form'!G592,'Enrollment Form'!H$11:J$1000,3,FALSE),1))=FALSE,COUNTA('Enrollment Form'!$AW592:$AZ592)=4),\"Y\",\"N\"))","v":"-"},{"$f":"IF($B585=\"N\",\"\",IF('Enrollment Form'!$B592=\"Subscriber\",\"-\",IF(COUNTA('Enrollment Form'!$BE592,'Enrollment Form'!$BG592)=2,\"Y\",\"N\")))","v":""},{"$f":"IF($B585=\"N\",\"\",IF(OR('Enrollment Form'!$AU592=\"\",'Enrollment Form'!$AU592=\"No\"),\"-\",IF(AND('Enrollment Form'!$AU592=\"Yes\",COUNTA('Enrollment Form'!$CK592)=1),\"Y\",\"N\")))","v":""},{"$f":"IF(OR('Enrollment Form'!$CK592=\"\",'Enrollment Form'!$CK592=\"No\"),\"-\",IF(COUNTA('Enrollment Form'!$CM592:$CN592)=2,\"Y\",\"N\"))","v":"-"},{"$f":"IF($B585=\"N\",\"\",IF(COUNTIF('Enrollment Form'!$CZ592:$DO592,\"Other\")=COUNTA('Enrollment Form'!$DF592,'Enrollment Form'!$DA592,'Enrollment Form'!$DK592,'Enrollment Form'!$DP592),\"Y\",\"N\"))","v":""},{"$f":"IF($B585=\"N\",\"\",IF(OR('Enrollment Form'!B592<>\"Subscriber\",'Enrollment Form'!C592=\"ROC\",COUNTIF('Enrollment Form'!AS592:AT592,\"Yes\")>=1),\"-\",IF(AND('Enrollment Form'!C592=\"Enroll\",COUNTIF('Enrollment Form'!AS592:AT592,\"No\")=2,'Enrollment Form'!AU592=\"\"),\"N\",\"Y\")))","v":""},{"$f":"IF(OR(B585=\"N\",'Enrollment Form'!B592<>\"Subscriber\",'Enrollment Form'!C592=\"ROC\",'Enrollment Form'!O592<>\"Multiple of Salary\"),\"-\",IF(COUNTA('Enrollment Form'!T592:U592)<2,\"N\",\"Y\"))","v":"-"},{"$f":"IF(B585=\"N\",\"\",IF(OR('Enrollment Form'!C592=\"ROC\",'Enrollment Form'!B592<>\"Subscriber\",'Enrollment Form'!O592=\"Waive\",'Enrollment Form'!O592=\"\"),\"-\",IF('Enrollment Form'!P592=\"\",\"N\",\"Y\")))","v":""},{"$f":"IF($B585=\"N\",\"\",IF(AND('Enrollment Form'!$C592=\"ROC\",'Enrollment Form'!$DS592<>\"\"),\"Y\",IF(AND('Enrollment Form'!$C592=\"ROC\",'Enrollment Form'!$DS592=\"\"),\"N\",IF(AND('Enrollment Form'!$C592=\"Enroll\",'Enrollment Form'!$B592=\"Subscriber\",'Enrollment Form'!$CQ592=\"No\",'Enrollment Form'!$DS592=\"\"),\"N\",IF(AND('Enrollment Form'!$C592=\"Enroll\",'Enrollment Form'!$B592=\"Subscriber\",'Enrollment Form'!$CQ592=\"Yes\"),\"-\",\"Y\")))))","v":""},{"$f":"IF($B585=\"N\",\"\",IF(AND('Enrollment Form'!$C592=\"ROC\",'Enrollment Form'!$DT592<>\"\"),\"Y\",IF(AND('Enrollment Form'!$C592=\"ROC\",'Enrollment Form'!$DT592=\"\"),\"N\",IF(AND('Enrollment Form'!$C592=\"Enroll\",'Enrollment Form'!$B592=\"Subscriber\",'Enrollment Form'!$CQ592=\"No\",'Enrollment Form'!$DT592=\"\"),\"N\",IF(AND('Enrollment Form'!$C592=\"Enroll\",'Enrollment Form'!$B592=\"Subscriber\",'Enrollment Form'!$CQ592=\"Yes\"),\"-\",\"Y\")))))","v":""},{"$f":"IF('Enrollment Form'!AH592=\"\",\"\",IF(ISERROR(SEARCH(\".\",'Enrollment Form'!AH592,SEARCH(\"@\",'Enrollment Form'!AH592))),\"N\",\"Y\"))","v":""},{"$f":"IF(OR($B585=\"N\",'Enrollment Form'!$G592=\"\"),\"\",IF('Enrollment Form'!$B592<>\"Subscriber\",\"-\",IF(COUNTIF('Enrollment Form'!$AS592:$AT592,\"Yes\")=2,\"N\",\"Y\")))","v":""},{"$f":"IF(OR('Enrollment Form'!$CC592=\"\",'Enrollment Form'!$CC592=\"No\"),\"-\",IF(AND('Enrollment Form'!$CC592=\"Yes\",'Enrollment Form'!$CD592=\"\"),\"N\",\"Y\"))","v":"-"},{"$f":"IF(OR('Enrollment Form'!$CE592=\"\",'Enrollment Form'!$CE592=\"No\"),\"-\",IF(AND('Enrollment Form'!$CE592=\"Yes\",'Enrollment Form'!$CF592=\"\"),\"N\",\"Y\"))","v":"-"},{"$f":"IF(OR('Enrollment Form'!$CG592=\"\",'Enrollment Form'!$CG592=\"No\"),\"-\",IF(AND('Enrollment Form'!$CG592=\"Yes\",'Enrollment Form'!$CH592=\"\"),\"N\",\"Y\"))","v":"-"},{"$f":"IF(OR('Enrollment Form'!$CG592=\"\",'Enrollment Form'!$CG592=\"No\"),\"-\",IF(AND('Enrollment Form'!$CG592=\"Yes\",'Enrollment Form'!$CI592=\"\"),\"N\",\"Y\"))","v":"-"},{"$f":"IF('Enrollment Form'!B592<>\"Subscriber\",\"-\",IF(AND('Enrollment Form'!B592=\"Subscriber\",'Enrollment Form'!C592=\"Enroll\",'Enrollment Form'!AA592=\"\"),\"N\",\"Y\"))","v":"-"},{"$f":"IF(OR('Enrollment Form'!B592=\"Subscriber\",'Enrollment Form'!B592=\"\"),\"-\",IF('Enrollment Form'!BI592=\"\",\"N\",\"Y\"))","v":"-"},{"$f":"IF('Enrollment Form'!B592<>\"Subscriber\",\"-\",IF(AND('Enrollment Form'!B592=\"Subscriber\",'Enrollment Form'!G592=\"\"),\"N\",\"Y\"))","v":"-"},{"$f":"IF('Enrollment Form'!A592=\"\",\"\",IF('Enrollment Form'!B592=\"Subscriber\",\"-\",IF(AND('Enrollment Form'!B592<>\"Subscriber\",'Enrollment Form'!G592='Enrollment Form'!H592),\"N\",\"Y\")))","v":""},0]
[593,{"$f":"IF('Enrollment Form'!$A593<>\"\",\"Y\",\"N\")","v":"N"},{"$f":"IF(AND('Enrollment Form'!$B593=\"\",'Enrollment Form'!$C593<>\"\"),\"N\",IF($B586=\"N\",\"\",\"Y\"))","v":""},{"$f":"IF(OR($B586=\"N\",'Enrollment Form'!G593=\"\"),\"\",IF('Enrollment Form'!$B593<>\"Subscriber\",\"\",IF('Enrollment Form'!$G593='Enrollment Form'!$H593,\"Y\",\"N\")))","v":""},{"$f":"IF($B586=\"N\",\"\",IF(AND(COUNTIFS('Enrollment Form'!$H$11:$H$1000,'Enrollment Form'!$H593,'Enrollment Form'!$B$11:$B$1000,'Enrollment Form'!$B593)>1,'Enrollment Form'!$H593<>\"\"),\"N\",\"Y\"))","v":""},{"$f":"IF($B586=\"N\",\"\",IF(LEN('Enrollment Form'!$Y593)=0,\"\",IF(LEN('Enrollment Form'!$Y593)<>5,\"N\",\"Y\")))","v":""},{"$f":"IF($B586=\"N\",\"\",IF(LEN('Enrollment Form'!$AD593=0),\"\",IF(LEN('Enrollment Form'!$AD593)<>5,\"N\",\"Y\")))","v":""},{"$f":"IF($B586=\"N\",\"\",IF(LEN('Enrollment Form'!$BL593=0),\"\",IF(LEN('Enrollment Form'!$BL593)<>5,\"N\",\"Y\")))","v":""},{"$f":"IF($B586=\"N\",\"\",IF(LEN('Enrollment Form'!$AE593)=0,\"\",IF(LEN('Enrollment Form'!$AE593)<>10,\"N\",\"Y\")))","v":""},{"$f":"IF($B586=\"N\",\"\",IF(LEN('Enrollment Form'!$AF593)=0,\"\",IF(LEN('Enrollment Form'!$AF593)<>10,\"N\",\"Y\")))","v":""},{"$f":"IF('Enrollment Form'!$O593<>\"Graded\",\"-\",IF(AND('Enrollment Form'!$O593=\"Graded\",'Enrollment Form'!$AO593<>\"\"),\"Y\",\"N\"))","v":"-"},{"$f":"IF($B586=\"N\",\"\",IF(OR('Enrollment Form'!$B593<>\"Subscriber\",'Enrollment Form'!$C593=\"ROC\"),\"-\",IF(AND('Enrollment Form'!$B593=\"Subscriber\",'Enrollment Form'!$C593=\"Enroll\",'Enrollment Form'!$AJ593<>\"\"),\"Y\",\"N\")))","v":""},{"$f":"IF($B586=\"N\",\"\",IF(OR('Enrollment Form'!$B593<>\"Subscriber\",'Enrollment Form'!$C593=\"ROC\"),\"-\",IF(AND('Enrollment Form'!$B593=\"Subscriber\",'Enrollment Form'!$C593=\"Enroll\",'Enrollment Form'!$AK593<>\"\"),\"Y\",\"N\")))","v":""},{"$f":"IF($B586=\"N\",\"\",IF(OR('Enrollment Form'!$B593<>\"Subscriber\",'Enrollment Form'!$C593=\"ROC\"),\"-\",IF(AND('Enrollment Form'!$B593=\"Subscriber\",'Enrollment Form'!$C593=\"Enroll\",'Enrollment Form'!$AL593<>\"\"),\"Y\",\"N\")))","v":""},{"$f":"IF($B586=\"N\",\"\",IF(OR('Enrollment Form'!$B593<>\"Subscriber\",'Enrollment Form'!$C593=\"ROC\"),\"-\",IF(AND('Enrollment Form'!$B593=\"Subscriber\",'Enrollment Form'!$C593=\"Enroll\",'Enrollment Form'!$AM593<>\"\"),\"Y\",\"N\")))","v":""},{"$f":"IF($B586=\"N\",\"\",IF(OR('Enrollment Form'!$B593<>\"Subscriber\",'Enrollment Form'!$C593=\"ROC\"),\"-\",IF(AND('Enrollment Form'!$B593=\"Subscriber\",'Enrollment Form'!$C593=\"Enroll\",'Enrollment Form'!$AN593<>\"\"),\"Y\",\"N\")))","v":""},{"$f":"IF($B586=\"N\",\"\",IF(OR('Enrollment Form'!$B593<>\"Subscriber\",'Enrollment Form'!$C593=\"ROC\"),\"-\",IF(AND('Enrollment Form'!$B593=\"Subscriber\",'Enrollment Form'!$C593=\"Enroll\",'Enrollment Form'!$AP593<>\"\"),\"Y\",\"N\")))","v":""},{"$f":"IF($B586=\"N\",\"\",IF($Q586=\"-\",\"-\",IF(AND($Q586=\"Y\",'Enrollment Form'!$AP593=\"No\"),\"-\",IF(AND($Q586=\"Y\",'Enrollment Form'!$AP593=\"Yes\",'Enrollment Form'!$AQ593<>\"\"),\"Y\",\"N\"))))","v":""},{"$f":"IF($B586=\"N\",\"\",IF(OR('Enrollment Form'!$B593<>\"Subscriber\",'Enrollment Form'!$C593=\"ROC\"),\"-\",IF(AND('Enrollment Form'!$B593=\"Subscriber\",'Enrollment Form'!$C593=\"Enroll\",'Enrollment Form'!$CO593<>\"\"),\"Y\",\"N\")))","v":""},{"$f":"IF($B586=\"N\",\"\",IF($S586=\"-\",\"-\",IF(AND($S586=\"Y\",'Enrollment Form'!$CO593=\"No\"),\"-\",IF(AND($S586=\"Y\",'Enrollment Form'!$CO593=\"Yes\",'Enrollment Form'!$CP593<>\"\"),\"Y\",\"N\"))))","v":""},{"$f":"IF(OR('Enrollment Form'!$AV593=\"Yes\",'Enrollment Form'!$AV593=\"\"),\"-\",IF(AND('Enrollment Form'!$AV593=\"No\",ISERROR(FIND(\"HMO\",VLOOKUP('Enrollment Form'!G593,'Enrollment Form'!H$11:J$1000,3,FALSE),1))=FALSE,COUNTA('Enrollment Form'!$AW593:$AZ593)=4),\"Y\",\"N\"))","v":"-"},{"$f":"IF($B586=\"N\",\"\",IF('Enrollment Form'!$B593=\"Subscriber\",\"-\",IF(COUNTA('Enrollment Form'!$BE593,'Enrollment Form'!$BG593)=2,\"Y\",\"N\")))","v":""},{"$f":"IF($B586=\"N\",\"\",IF(OR('Enrollment Form'!$AU593=\"\",'Enrollment Form'!$AU593=\"No\"),\"-\",IF(AND('Enrollment Form'!$AU593=\"Yes\",COUNTA('Enrollment Form'!$CK593)=1),\"Y\",\"N\")))","v":""},{"$f":"IF(OR('Enrollment Form'!$CK593=\"\",'Enrollment Form'!$CK593=\"No\"),\"-\",IF(COUNTA('Enrollment Form'!$CM593:$CN593)=2,\"Y\",\"N\"))","v":"-"},{"$f":"IF($B586=\"N\",\"\",IF(COUNTIF('Enrollment Form'!$CZ593:$DO593,\"Other\")=COUNTA('Enrollment Form'!$DF593,'Enrollment Form'!$DA593,'Enrollment Form'!$DK593,'Enrollment Form'!$DP593),\"Y\",\"N\"))","v":""},{"$f":"IF($B586=\"N\",\"\",IF(OR('Enrollment Form'!B593<>\"Subscriber\",'Enrollment Form'!C593=\"ROC\",COUNTIF('Enrollment Form'!AS593:AT593,\"Yes\")>=1),\"-\",IF(AND('Enrollment Form'!C593=\"Enroll\",COUNTIF('Enrollment Form'!AS593:AT593,\"No\")=2,'Enrollment Form'!AU593=\"\"),\"N\",\"Y\")))","v":""},{"$f":"IF(OR(B586=\"N\",'Enrollment Form'!B593<>\"Subscriber\",'Enrollment Form'!C593=\"ROC\",'Enrollment Form'!O593<>\"Multiple of Salary\"),\"-\",IF(COUNTA('Enrollment Form'!T593:U593)<2,\"N\",\"Y\"))","v":"-"},{"$f":"IF(B586=\"N\",\"\",IF(OR('Enrollment Form'!C593=\"ROC\",'Enrollment Form'!B593<>\"Subscriber\",'Enrollment Form'!O593=\"Waive\",'Enrollment Form'!O593=\"\"),\"-\",IF('Enrollment Form'!P593=\"\",\"N\",\"Y\")))","v":""},{"$f":"IF($B586=\"N\",\"\",IF(AND('Enrollment Form'!$C593=\"ROC\",'Enrollment Form'!$DS593<>\"\"),\"Y\",IF(AND('Enrollment Form'!$C593=\"ROC\",'Enrollment Form'!$DS593=\"\"),\"N\",IF(AND('Enrollment Form'!$C593=\"Enroll\",'Enrollment Form'!$B593=\"Subscriber\",'Enrollment Form'!$CQ593=\"No\",'Enrollment Form'!$DS593=\"\"),\"N\",IF(AND('Enrollment Form'!$C593=\"Enroll\",'Enrollment Form'!$B593=\"Subscriber\",'Enrollment Form'!$CQ593=\"Yes\"),\"-\",\"Y\")))))","v":""},{"$f":"IF($B586=\"N\",\"\",IF(AND('Enrollment Form'!$C593=\"ROC\",'Enrollment Form'!$DT593<>\"\"),\"Y\",IF(AND('Enrollment Form'!$C593=\"ROC\",'Enrollment Form'!$DT593=\"\"),\"N\",IF(AND('Enrollment Form'!$C593=\"Enroll\",'Enrollment Form'!$B593=\"Subscriber\",'Enrollment Form'!$CQ593=\"No\",'Enrollment Form'!$DT593=\"\"),\"N\",IF(AND('Enrollment Form'!$C593=\"Enroll\",'Enrollment Form'!$B593=\"Subscriber\",'Enrollment Form'!$CQ593=\"Yes\"),\"-\",\"Y\")))))","v":""},{"$f":"IF('Enrollment Form'!AH593=\"\",\"\",IF(ISERROR(SEARCH(\".\",'Enrollment Form'!AH593,SEARCH(\"@\",'Enrollment Form'!AH593))),\"N\",\"Y\"))","v":""},{"$f":"IF(OR($B586=\"N\",'Enrollment Form'!$G593=\"\"),\"\",IF('Enrollment Form'!$B593<>\"Subscriber\",\"-\",IF(COUNTIF('Enrollment Form'!$AS593:$AT593,\"Yes\")=2,\"N\",\"Y\")))","v":""},{"$f":"IF(OR('Enrollment Form'!$CC593=\"\",'Enrollment Form'!$CC593=\"No\"),\"-\",IF(AND('Enrollment Form'!$CC593=\"Yes\",'Enrollment Form'!$CD593=\"\"),\"N\",\"Y\"))","v":"-"},{"$f":"IF(OR('Enrollment Form'!$CE593=\"\",'Enrollment Form'!$CE593=\"No\"),\"-\",IF(AND('Enrollment Form'!$CE593=\"Yes\",'Enrollment Form'!$CF593=\"\"),\"N\",\"Y\"))","v":"-"},{"$f":"IF(OR('Enrollment Form'!$CG593=\"\",'Enrollment Form'!$CG593=\"No\"),\"-\",IF(AND('Enrollment Form'!$CG593=\"Yes\",'Enrollment Form'!$CH593=\"\"),\"N\",\"Y\"))","v":"-"},{"$f":"IF(OR('Enrollment Form'!$CG593=\"\",'Enrollment Form'!$CG593=\"No\"),\"-\",IF(AND('Enrollment Form'!$CG593=\"Yes\",'Enrollment Form'!$CI593=\"\"),\"N\",\"Y\"))","v":"-"},{"$f":"IF('Enrollment Form'!B593<>\"Subscriber\",\"-\",IF(AND('Enrollment Form'!B593=\"Subscriber\",'Enrollment Form'!C593=\"Enroll\",'Enrollment Form'!AA593=\"\"),\"N\",\"Y\"))","v":"-"},{"$f":"IF(OR('Enrollment Form'!B593=\"Subscriber\",'Enrollment Form'!B593=\"\"),\"-\",IF('Enrollment Form'!BI593=\"\",\"N\",\"Y\"))","v":"-"},{"$f":"IF('Enrollment Form'!B593<>\"Subscriber\",\"-\",IF(AND('Enrollment Form'!B593=\"Subscriber\",'Enrollment Form'!G593=\"\"),\"N\",\"Y\"))","v":"-"},{"$f":"IF('Enrollment Form'!A593=\"\",\"\",IF('Enrollment Form'!B593=\"Subscriber\",\"-\",IF(AND('Enrollment Form'!B593<>\"Subscriber\",'Enrollment Form'!G593='Enrollment Form'!H593),\"N\",\"Y\")))","v":""},0]
[594,{"$f":"IF('Enrollment Form'!$A594<>\"\",\"Y\",\"N\")","v":"N"},{"$f":"IF(AND('Enrollment Form'!$B594=\"\",'Enrollment Form'!$C594<>\"\"),\"N\",IF($B587=\"N\",\"\",\"Y\"))","v":""},{"$f":"IF(OR($B587=\"N\",'Enrollment Form'!G594=\"\"),\"\",IF('Enrollment Form'!$B594<>\"Subscriber\",\"\",IF('Enrollment Form'!$G594='Enrollment Form'!$H594,\"Y\",\"N\")))","v":""},{"$f":"IF($B587=\"N\",\"\",IF(AND(COUNTIFS('Enrollment Form'!$H$11:$H$1000,'Enrollment Form'!$H594,'Enrollment Form'!$B$11:$B$1000,'Enrollment Form'!$B594)>1,'Enrollment Form'!$H594<>\"\"),\"N\",\"Y\"))","v":""},{"$f":"IF($B587=\"N\",\"\",IF(LEN('Enrollment Form'!$Y594)=0,\"\",IF(LEN('Enrollment Form'!$Y594)<>5,\"N\",\"Y\")))","v":""},{"$f":"IF($B587=\"N\",\"\",IF(LEN('Enrollment Form'!$AD594=0),\"\",IF(LEN('Enrollment Form'!$AD594)<>5,\"N\",\"Y\")))","v":""},{"$f":"IF($B587=\"N\",\"\",IF(LEN('Enrollment Form'!$BL594=0),\"\",IF(LEN('Enrollment Form'!$BL594)<>5,\"N\",\"Y\")))","v":""},{"$f":"IF($B587=\"N\",\"\",IF(LEN('Enrollment Form'!$AE594)=0,\"\",IF(LEN('Enrollment Form'!$AE594)<>10,\"N\",\"Y\")))","v":""},{"$f":"IF($B587=\"N\",\"\",IF(LEN('Enrollment Form'!$AF594)=0,\"\",IF(LEN('Enrollment Form'!$AF594)<>10,\"N\",\"Y\")))","v":""},{"$f":"IF('Enrollment Form'!$O594<>\"Graded\",\"-\",IF(AND('Enrollment Form'!$O594=\"Graded\",'Enrollment Form'!$AO594<>\"\"),\"Y\",\"N\"))","v":"-"},{"$f":"IF($B587=\"N\",\"\",IF(OR('Enrollment Form'!$B594<>\"Subscriber\",'Enrollment Form'!$C594=\"ROC\"),\"-\",IF(AND('Enrollment Form'!$B594=\"Subscriber\",'Enrollment Form'!$C594=\"Enroll\",'Enrollment Form'!$AJ594<>\"\"),\"Y\",\"N\")))","v":""},{"$f":"IF($B587=\"N\",\"\",IF(OR('Enrollment Form'!$B594<>\"Subscriber\",'Enrollment Form'!$C594=\"ROC\"),\"-\",IF(AND('Enrollment Form'!$B594=\"Subscriber\",'Enrollment Form'!$C594=\"Enroll\",'Enrollment Form'!$AK594<>\"\"),\"Y\",\"N\")))","v":""},{"$f":"IF($B587=\"N\",\"\",IF(OR('Enrollment Form'!$B594<>\"Subscriber\",'Enrollment Form'!$C594=\"ROC\"),\"-\",IF(AND('Enrollment Form'!$B594=\"Subscriber\",'Enrollment Form'!$C594=\"Enroll\",'Enrollment Form'!$AL594<>\"\"),\"Y\",\"N\")))","v":""},{"$f":"IF($B587=\"N\",\"\",IF(OR('Enrollment Form'!$B594<>\"Subscriber\",'Enrollment Form'!$C594=\"ROC\"),\"-\",IF(AND('Enrollment Form'!$B594=\"Subscriber\",'Enrollment Form'!$C594=\"Enroll\",'Enrollment Form'!$AM594<>\"\"),\"Y\",\"N\")))","v":""},{"$f":"IF($B587=\"N\",\"\",IF(OR('Enrollment Form'!$B594<>\"Subscriber\",'Enrollment Form'!$C594=\"ROC\"),\"-\",IF(AND('Enrollment Form'!$B594=\"Subscriber\",'Enrollment Form'!$C594=\"Enroll\",'Enrollment Form'!$AN594<>\"\"),\"Y\",\"N\")))","v":""},{"$f":"IF($B587=\"N\",\"\",IF(OR('Enrollment Form'!$B594<>\"Subscriber\",'Enrollment Form'!$C594=\"ROC\"),\"-\",IF(AND('Enrollment Form'!$B594=\"Subscriber\",'Enrollment Form'!$C594=\"Enroll\",'Enrollment Form'!$AP594<>\"\"),\"Y\",\"N\")))","v":""},{"$f":"IF($B587=\"N\",\"\",IF($Q587=\"-\",\"-\",IF(AND($Q587=\"Y\",'Enrollment Form'!$AP594=\"No\"),\"-\",IF(AND($Q587=\"Y\",'Enrollment Form'!$AP594=\"Yes\",'Enrollment Form'!$AQ594<>\"\"),\"Y\",\"N\"))))","v":""},{"$f":"IF($B587=\"N\",\"\",IF(OR('Enrollment Form'!$B594<>\"Subscriber\",'Enrollment Form'!$C594=\"ROC\"),\"-\",IF(AND('Enrollment Form'!$B594=\"Subscriber\",'Enrollment Form'!$C594=\"Enroll\",'Enrollment Form'!$CO594<>\"\"),\"Y\",\"N\")))","v":""},{"$f":"IF($B587=\"N\",\"\",IF($S587=\"-\",\"-\",IF(AND($S587=\"Y\",'Enrollment Form'!$CO594=\"No\"),\"-\",IF(AND($S587=\"Y\",'Enrollment Form'!$CO594=\"Yes\",'Enrollment Form'!$CP594<>\"\"),\"Y\",\"N\"))))","v":""},{"$f":"IF(OR('Enrollment Form'!$AV594=\"Yes\",'Enrollment Form'!$AV594=\"\"),\"-\",IF(AND('Enrollment Form'!$AV594=\"No\",ISERROR(FIND(\"HMO\",VLOOKUP('Enrollment Form'!G594,'Enrollment Form'!H$11:J$1000,3,FALSE),1))=FALSE,COUNTA('Enrollment Form'!$AW594:$AZ594)=4),\"Y\",\"N\"))","v":"-"},{"$f":"IF($B587=\"N\",\"\",IF('Enrollment Form'!$B594=\"Subscriber\",\"-\",IF(COUNTA('Enrollment Form'!$BE594,'Enrollment Form'!$BG594)=2,\"Y\",\"N\")))","v":""},{"$f":"IF($B587=\"N\",\"\",IF(OR('Enrollment Form'!$AU594=\"\",'Enrollment Form'!$AU594=\"No\"),\"-\",IF(AND('Enrollment Form'!$AU594=\"Yes\",COUNTA('Enrollment Form'!$CK594)=1),\"Y\",\"N\")))","v":""},{"$f":"IF(OR('Enrollment Form'!$CK594=\"\",'Enrollment Form'!$CK594=\"No\"),\"-\",IF(COUNTA('Enrollment Form'!$CM594:$CN594)=2,\"Y\",\"N\"))","v":"-"},{"$f":"IF($B587=\"N\",\"\",IF(COUNTIF('Enrollment Form'!$CZ594:$DO594,\"Other\")=COUNTA('Enrollment Form'!$DF594,'Enrollment Form'!$DA594,'Enrollment Form'!$DK594,'Enrollment Form'!$DP594),\"Y\",\"N\"))","v":""},{"$f":"IF($B587=\"N\",\"\",IF(OR('Enrollment Form'!B594<>\"Subscriber\",'Enrollment Form'!C594=\"ROC\",COUNTIF('Enrollment Form'!AS594:AT594,\"Yes\")>=1),\"-\",IF(AND('Enrollment Form'!C594=\"Enroll\",COUNTIF('Enrollment Form'!AS594:AT594,\"No\")=2,'Enrollment Form'!AU594=\"\"),\"N\",\"Y\")))","v":""},{"$f":"IF(OR(B587=\"N\",'Enrollment Form'!B594<>\"Subscriber\",'Enrollment Form'!C594=\"ROC\",'Enrollment Form'!O594<>\"Multiple of Salary\"),\"-\",IF(COUNTA('Enrollment Form'!T594:U594)<2,\"N\",\"Y\"))","v":"-"},{"$f":"IF(B587=\"N\",\"\",IF(OR('Enrollment Form'!C594=\"ROC\",'Enrollment Form'!B594<>\"Subscriber\",'Enrollment Form'!O594=\"Waive\",'Enrollment Form'!O594=\"\"),\"-\",IF('Enrollment Form'!P594=\"\",\"N\",\"Y\")))","v":""},{"$f":"IF($B587=\"N\",\"\",IF(AND('Enrollment Form'!$C594=\"ROC\",'Enrollment Form'!$DS594<>\"\"),\"Y\",IF(AND('Enrollment Form'!$C594=\"ROC\",'Enrollment Form'!$DS594=\"\"),\"N\",IF(AND('Enrollment Form'!$C594=\"Enroll\",'Enrollment Form'!$B594=\"Subscriber\",'Enrollment Form'!$CQ594=\"No\",'Enrollment Form'!$DS594=\"\"),\"N\",IF(AND('Enrollment Form'!$C594=\"Enroll\",'Enrollment Form'!$B594=\"Subscriber\",'Enrollment Form'!$CQ594=\"Yes\"),\"-\",\"Y\")))))","v":""},{"$f":"IF($B587=\"N\",\"\",IF(AND('Enrollment Form'!$C594=\"ROC\",'Enrollment Form'!$DT594<>\"\"),\"Y\",IF(AND('Enrollment Form'!$C594=\"ROC\",'Enrollment Form'!$DT594=\"\"),\"N\",IF(AND('Enrollment Form'!$C594=\"Enroll\",'Enrollment Form'!$B594=\"Subscriber\",'Enrollment Form'!$CQ594=\"No\",'Enrollment Form'!$DT594=\"\"),\"N\",IF(AND('Enrollment Form'!$C594=\"Enroll\",'Enrollment Form'!$B594=\"Subscriber\",'Enrollment Form'!$CQ594=\"Yes\"),\"-\",\"Y\")))))","v":""},{"$f":"IF('Enrollment Form'!AH594=\"\",\"\",IF(ISERROR(SEARCH(\".\",'Enrollment Form'!AH594,SEARCH(\"@\",'Enrollment Form'!AH594))),\"N\",\"Y\"))","v":""},{"$f":"IF(OR($B587=\"N\",'Enrollment Form'!$G594=\"\"),\"\",IF('Enrollment Form'!$B594<>\"Subscriber\",\"-\",IF(COUNTIF('Enrollment Form'!$AS594:$AT594,\"Yes\")=2,\"N\",\"Y\")))","v":""},{"$f":"IF(OR('Enrollment Form'!$CC594=\"\",'Enrollment Form'!$CC594=\"No\"),\"-\",IF(AND('Enrollment Form'!$CC594=\"Yes\",'Enrollment Form'!$CD594=\"\"),\"N\",\"Y\"))","v":"-"},{"$f":"IF(OR('Enrollment Form'!$CE594=\"\",'Enrollment Form'!$CE594=\"No\"),\"-\",IF(AND('Enrollment Form'!$CE594=\"Yes\",'Enrollment Form'!$CF594=\"\"),\"N\",\"Y\"))","v":"-"},{"$f":"IF(OR('Enrollment Form'!$CG594=\"\",'Enrollment Form'!$CG594=\"No\"),\"-\",IF(AND('Enrollment Form'!$CG594=\"Yes\",'Enrollment Form'!$CH594=\"\"),\"N\",\"Y\"))","v":"-"},{"$f":"IF(OR('Enrollment Form'!$CG594=\"\",'Enrollment Form'!$CG594=\"No\"),\"-\",IF(AND('Enrollment Form'!$CG594=\"Yes\",'Enrollment Form'!$CI594=\"\"),\"N\",\"Y\"))","v":"-"},{"$f":"IF('Enrollment Form'!B594<>\"Subscriber\",\"-\",IF(AND('Enrollment Form'!B594=\"Subscriber\",'Enrollment Form'!C594=\"Enroll\",'Enrollment Form'!AA594=\"\"),\"N\",\"Y\"))","v":"-"},{"$f":"IF(OR('Enrollment Form'!B594=\"Subscriber\",'Enrollment Form'!B594=\"\"),\"-\",IF('Enrollment Form'!BI594=\"\",\"N\",\"Y\"))","v":"-"},{"$f":"IF('Enrollment Form'!B594<>\"Subscriber\",\"-\",IF(AND('Enrollment Form'!B594=\"Subscriber\",'Enrollment Form'!G594=\"\"),\"N\",\"Y\"))","v":"-"},{"$f":"IF('Enrollment Form'!A594=\"\",\"\",IF('Enrollment Form'!B594=\"Subscriber\",\"-\",IF(AND('Enrollment Form'!B594<>\"Subscriber\",'Enrollment Form'!G594='Enrollment Form'!H594),\"N\",\"Y\")))","v":""},0]
[595,{"$f":"IF('Enrollment Form'!$A595<>\"\",\"Y\",\"N\")","v":"N"},{"$f":"IF(AND('Enrollment Form'!$B595=\"\",'Enrollment Form'!$C595<>\"\"),\"N\",IF($B588=\"N\",\"\",\"Y\"))","v":""},{"$f":"IF(OR($B588=\"N\",'Enrollment Form'!G595=\"\"),\"\",IF('Enrollment Form'!$B595<>\"Subscriber\",\"\",IF('Enrollment Form'!$G595='Enrollment Form'!$H595,\"Y\",\"N\")))","v":""},{"$f":"IF($B588=\"N\",\"\",IF(AND(COUNTIFS('Enrollment Form'!$H$11:$H$1000,'Enrollment Form'!$H595,'Enrollment Form'!$B$11:$B$1000,'Enrollment Form'!$B595)>1,'Enrollment Form'!$H595<>\"\"),\"N\",\"Y\"))","v":""},{"$f":"IF($B588=\"N\",\"\",IF(LEN('Enrollment Form'!$Y595)=0,\"\",IF(LEN('Enrollment Form'!$Y595)<>5,\"N\",\"Y\")))","v":""},{"$f":"IF($B588=\"N\",\"\",IF(LEN('Enrollment Form'!$AD595=0),\"\",IF(LEN('Enrollment Form'!$AD595)<>5,\"N\",\"Y\")))","v":""},{"$f":"IF($B588=\"N\",\"\",IF(LEN('Enrollment Form'!$BL595=0),\"\",IF(LEN('Enrollment Form'!$BL595)<>5,\"N\",\"Y\")))","v":""},{"$f":"IF($B588=\"N\",\"\",IF(LEN('Enrollment Form'!$AE595)=0,\"\",IF(LEN('Enrollment Form'!$AE595)<>10,\"N\",\"Y\")))","v":""},{"$f":"IF($B588=\"N\",\"\",IF(LEN('Enrollment Form'!$AF595)=0,\"\",IF(LEN('Enrollment Form'!$AF595)<>10,\"N\",\"Y\")))","v":""},{"$f":"IF('Enrollment Form'!$O595<>\"Graded\",\"-\",IF(AND('Enrollment Form'!$O595=\"Graded\",'Enrollment Form'!$AO595<>\"\"),\"Y\",\"N\"))","v":"-"},{"$f":"IF($B588=\"N\",\"\",IF(OR('Enrollment Form'!$B595<>\"Subscriber\",'Enrollment Form'!$C595=\"ROC\"),\"-\",IF(AND('Enrollment Form'!$B595=\"Subscriber\",'Enrollment Form'!$C595=\"Enroll\",'Enrollment Form'!$AJ595<>\"\"),\"Y\",\"N\")))","v":""},{"$f":"IF($B588=\"N\",\"\",IF(OR('Enrollment Form'!$B595<>\"Subscriber\",'Enrollment Form'!$C595=\"ROC\"),\"-\",IF(AND('Enrollment Form'!$B595=\"Subscriber\",'Enrollment Form'!$C595=\"Enroll\",'Enrollment Form'!$AK595<>\"\"),\"Y\",\"N\")))","v":""},{"$f":"IF($B588=\"N\",\"\",IF(OR('Enrollment Form'!$B595<>\"Subscriber\",'Enrollment Form'!$C595=\"ROC\"),\"-\",IF(AND('Enrollment Form'!$B595=\"Subscriber\",'Enrollment Form'!$C595=\"Enroll\",'Enrollment Form'!$AL595<>\"\"),\"Y\",\"N\")))","v":""},{"$f":"IF($B588=\"N\",\"\",IF(OR('Enrollment Form'!$B595<>\"Subscriber\",'Enrollment Form'!$C595=\"ROC\"),\"-\",IF(AND('Enrollment Form'!$B595=\"Subscriber\",'Enrollment Form'!$C595=\"Enroll\",'Enrollment Form'!$AM595<>\"\"),\"Y\",\"N\")))","v":""},{"$f":"IF($B588=\"N\",\"\",IF(OR('Enrollment Form'!$B595<>\"Subscriber\",'Enrollment Form'!$C595=\"ROC\"),\"-\",IF(AND('Enrollment Form'!$B595=\"Subscriber\",'Enrollment Form'!$C595=\"Enroll\",'Enrollment Form'!$AN595<>\"\"),\"Y\",\"N\")))","v":""},{"$f":"IF($B588=\"N\",\"\",IF(OR('Enrollment Form'!$B595<>\"Subscriber\",'Enrollment Form'!$C595=\"ROC\"),\"-\",IF(AND('Enrollment Form'!$B595=\"Subscriber\",'Enrollment Form'!$C595=\"Enroll\",'Enrollment Form'!$AP595<>\"\"),\"Y\",\"N\")))","v":""},{"$f":"IF($B588=\"N\",\"\",IF($Q588=\"-\",\"-\",IF(AND($Q588=\"Y\",'Enrollment Form'!$AP595=\"No\"),\"-\",IF(AND($Q588=\"Y\",'Enrollment Form'!$AP595=\"Yes\",'Enrollment Form'!$AQ595<>\"\"),\"Y\",\"N\"))))","v":""},{"$f":"IF($B588=\"N\",\"\",IF(OR('Enrollment Form'!$B595<>\"Subscriber\",'Enrollment Form'!$C595=\"ROC\"),\"-\",IF(AND('Enrollment Form'!$B595=\"Subscriber\",'Enrollment Form'!$C595=\"Enroll\",'Enrollment Form'!$CO595<>\"\"),\"Y\",\"N\")))","v":""},{"$f":"IF($B588=\"N\",\"\",IF($S588=\"-\",\"-\",IF(AND($S588=\"Y\",'Enrollment Form'!$CO595=\"No\"),\"-\",IF(AND($S588=\"Y\",'Enrollment Form'!$CO595=\"Yes\",'Enrollment Form'!$CP595<>\"\"),\"Y\",\"N\"))))","v":""},{"$f":"IF(OR('Enrollment Form'!$AV595=\"Yes\",'Enrollment Form'!$AV595=\"\"),\"-\",IF(AND('Enrollment Form'!$AV595=\"No\",ISERROR(FIND(\"HMO\",VLOOKUP('Enrollment Form'!G595,'Enrollment Form'!H$11:J$1000,3,FALSE),1))=FALSE,COUNTA('Enrollment Form'!$AW595:$AZ595)=4),\"Y\",\"N\"))","v":"-"},{"$f":"IF($B588=\"N\",\"\",IF('Enrollment Form'!$B595=\"Subscriber\",\"-\",IF(COUNTA('Enrollment Form'!$BE595,'Enrollment Form'!$BG595)=2,\"Y\",\"N\")))","v":""},{"$f":"IF($B588=\"N\",\"\",IF(OR('Enrollment Form'!$AU595=\"\",'Enrollment Form'!$AU595=\"No\"),\"-\",IF(AND('Enrollment Form'!$AU595=\"Yes\",COUNTA('Enrollment Form'!$CK595)=1),\"Y\",\"N\")))","v":""},{"$f":"IF(OR('Enrollment Form'!$CK595=\"\",'Enrollment Form'!$CK595=\"No\"),\"-\",IF(COUNTA('Enrollment Form'!$CM595:$CN595)=2,\"Y\",\"N\"))","v":"-"},{"$f":"IF($B588=\"N\",\"\",IF(COUNTIF('Enrollment Form'!$CZ595:$DO595,\"Other\")=COUNTA('Enrollment Form'!$DF595,'Enrollment Form'!$DA595,'Enrollment Form'!$DK595,'Enrollment Form'!$DP595),\"Y\",\"N\"))","v":""},{"$f":"IF($B588=\"N\",\"\",IF(OR('Enrollment Form'!B595<>\"Subscriber\",'Enrollment Form'!C595=\"ROC\",COUNTIF('Enrollment Form'!AS595:AT595,\"Yes\")>=1),\"-\",IF(AND('Enrollment Form'!C595=\"Enroll\",COUNTIF('Enrollment Form'!AS595:AT595,\"No\")=2,'Enrollment Form'!AU595=\"\"),\"N\",\"Y\")))","v":""},{"$f":"IF(OR(B588=\"N\",'Enrollment Form'!B595<>\"Subscriber\",'Enrollment Form'!C595=\"ROC\",'Enrollment Form'!O595<>\"Multiple of Salary\"),\"-\",IF(COUNTA('Enrollment Form'!T595:U595)<2,\"N\",\"Y\"))","v":"-"},{"$f":"IF(B588=\"N\",\"\",IF(OR('Enrollment Form'!C595=\"ROC\",'Enrollment Form'!B595<>\"Subscriber\",'Enrollment Form'!O595=\"Waive\",'Enrollment Form'!O595=\"\"),\"-\",IF('Enrollment Form'!P595=\"\",\"N\",\"Y\")))","v":""},{"$f":"IF($B588=\"N\",\"\",IF(AND('Enrollment Form'!$C595=\"ROC\",'Enrollment Form'!$DS595<>\"\"),\"Y\",IF(AND('Enrollment Form'!$C595=\"ROC\",'Enrollment Form'!$DS595=\"\"),\"N\",IF(AND('Enrollment Form'!$C595=\"Enroll\",'Enrollment Form'!$B595=\"Subscriber\",'Enrollment Form'!$CQ595=\"No\",'Enrollment Form'!$DS595=\"\"),\"N\",IF(AND('Enrollment Form'!$C595=\"Enroll\",'Enrollment Form'!$B595=\"Subscriber\",'Enrollment Form'!$CQ595=\"Yes\"),\"-\",\"Y\")))))","v":""},{"$f":"IF($B588=\"N\",\"\",IF(AND('Enrollment Form'!$C595=\"ROC\",'Enrollment Form'!$DT595<>\"\"),\"Y\",IF(AND('Enrollment Form'!$C595=\"ROC\",'Enrollment Form'!$DT595=\"\"),\"N\",IF(AND('Enrollment Form'!$C595=\"Enroll\",'Enrollment Form'!$B595=\"Subscriber\",'Enrollment Form'!$CQ595=\"No\",'Enrollment Form'!$DT595=\"\"),\"N\",IF(AND('Enrollment Form'!$C595=\"Enroll\",'Enrollment Form'!$B595=\"Subscriber\",'Enrollment Form'!$CQ595=\"Yes\"),\"-\",\"Y\")))))","v":""},{"$f":"IF('Enrollment Form'!AH595=\"\",\"\",IF(ISERROR(SEARCH(\".\",'Enrollment Form'!AH595,SEARCH(\"@\",'Enrollment Form'!AH595))),\"N\",\"Y\"))","v":""},{"$f":"IF(OR($B588=\"N\",'Enrollment Form'!$G595=\"\"),\"\",IF('Enrollment Form'!$B595<>\"Subscriber\",\"-\",IF(COUNTIF('Enrollment Form'!$AS595:$AT595,\"Yes\")=2,\"N\",\"Y\")))","v":""},{"$f":"IF(OR('Enrollment Form'!$CC595=\"\",'Enrollment Form'!$CC595=\"No\"),\"-\",IF(AND('Enrollment Form'!$CC595=\"Yes\",'Enrollment Form'!$CD595=\"\"),\"N\",\"Y\"))","v":"-"},{"$f":"IF(OR('Enrollment Form'!$CE595=\"\",'Enrollment Form'!$CE595=\"No\"),\"-\",IF(AND('Enrollment Form'!$CE595=\"Yes\",'Enrollment Form'!$CF595=\"\"),\"N\",\"Y\"))","v":"-"},{"$f":"IF(OR('Enrollment Form'!$CG595=\"\",'Enrollment Form'!$CG595=\"No\"),\"-\",IF(AND('Enrollment Form'!$CG595=\"Yes\",'Enrollment Form'!$CH595=\"\"),\"N\",\"Y\"))","v":"-"},{"$f":"IF(OR('Enrollment Form'!$CG595=\"\",'Enrollment Form'!$CG595=\"No\"),\"-\",IF(AND('Enrollment Form'!$CG595=\"Yes\",'Enrollment Form'!$CI595=\"\"),\"N\",\"Y\"))","v":"-"},{"$f":"IF('Enrollment Form'!B595<>\"Subscriber\",\"-\",IF(AND('Enrollment Form'!B595=\"Subscriber\",'Enrollment Form'!C595=\"Enroll\",'Enrollment Form'!AA595=\"\"),\"N\",\"Y\"))","v":"-"},{"$f":"IF(OR('Enrollment Form'!B595=\"Subscriber\",'Enrollment Form'!B595=\"\"),\"-\",IF('Enrollment Form'!BI595=\"\",\"N\",\"Y\"))","v":"-"},{"$f":"IF('Enrollment Form'!B595<>\"Subscriber\",\"-\",IF(AND('Enrollment Form'!B595=\"Subscriber\",'Enrollment Form'!G595=\"\"),\"N\",\"Y\"))","v":"-"},{"$f":"IF('Enrollment Form'!A595=\"\",\"\",IF('Enrollment Form'!B595=\"Subscriber\",\"-\",IF(AND('Enrollment Form'!B595<>\"Subscriber\",'Enrollment Form'!G595='Enrollment Form'!H595),\"N\",\"Y\")))","v":""},0]
[596,{"$f":"IF('Enrollment Form'!$A596<>\"\",\"Y\",\"N\")","v":"N"},{"$f":"IF(AND('Enrollment Form'!$B596=\"\",'Enrollment Form'!$C596<>\"\"),\"N\",IF($B589=\"N\",\"\",\"Y\"))","v":""},{"$f":"IF(OR($B589=\"N\",'Enrollment Form'!G596=\"\"),\"\",IF('Enrollment Form'!$B596<>\"Subscriber\",\"\",IF('Enrollment Form'!$G596='Enrollment Form'!$H596,\"Y\",\"N\")))","v":""},{"$f":"IF($B589=\"N\",\"\",IF(AND(COUNTIFS('Enrollment Form'!$H$11:$H$1000,'Enrollment Form'!$H596,'Enrollment Form'!$B$11:$B$1000,'Enrollment Form'!$B596)>1,'Enrollment Form'!$H596<>\"\"),\"N\",\"Y\"))","v":""},{"$f":"IF($B589=\"N\",\"\",IF(LEN('Enrollment Form'!$Y596)=0,\"\",IF(LEN('Enrollment Form'!$Y596)<>5,\"N\",\"Y\")))","v":""},{"$f":"IF($B589=\"N\",\"\",IF(LEN('Enrollment Form'!$AD596=0),\"\",IF(LEN('Enrollment Form'!$AD596)<>5,\"N\",\"Y\")))","v":""},{"$f":"IF($B589=\"N\",\"\",IF(LEN('Enrollment Form'!$BL596=0),\"\",IF(LEN('Enrollment Form'!$BL596)<>5,\"N\",\"Y\")))","v":""},{"$f":"IF($B589=\"N\",\"\",IF(LEN('Enrollment Form'!$AE596)=0,\"\",IF(LEN('Enrollment Form'!$AE596)<>10,\"N\",\"Y\")))","v":""},{"$f":"IF($B589=\"N\",\"\",IF(LEN('Enrollment Form'!$AF596)=0,\"\",IF(LEN('Enrollment Form'!$AF596)<>10,\"N\",\"Y\")))","v":""},{"$f":"IF('Enrollment Form'!$O596<>\"Graded\",\"-\",IF(AND('Enrollment Form'!$O596=\"Graded\",'Enrollment Form'!$AO596<>\"\"),\"Y\",\"N\"))","v":"-"},{"$f":"IF($B589=\"N\",\"\",IF(OR('Enrollment Form'!$B596<>\"Subscriber\",'Enrollment Form'!$C596=\"ROC\"),\"-\",IF(AND('Enrollment Form'!$B596=\"Subscriber\",'Enrollment Form'!$C596=\"Enroll\",'Enrollment Form'!$AJ596<>\"\"),\"Y\",\"N\")))","v":""},{"$f":"IF($B589=\"N\",\"\",IF(OR('Enrollment Form'!$B596<>\"Subscriber\",'Enrollment Form'!$C596=\"ROC\"),\"-\",IF(AND('Enrollment Form'!$B596=\"Subscriber\",'Enrollment Form'!$C596=\"Enroll\",'Enrollment Form'!$AK596<>\"\"),\"Y\",\"N\")))","v":""},{"$f":"IF($B589=\"N\",\"\",IF(OR('Enrollment Form'!$B596<>\"Subscriber\",'Enrollment Form'!$C596=\"ROC\"),\"-\",IF(AND('Enrollment Form'!$B596=\"Subscriber\",'Enrollment Form'!$C596=\"Enroll\",'Enrollment Form'!$AL596<>\"\"),\"Y\",\"N\")))","v":""},{"$f":"IF($B589=\"N\",\"\",IF(OR('Enrollment Form'!$B596<>\"Subscriber\",'Enrollment Form'!$C596=\"ROC\"),\"-\",IF(AND('Enrollment Form'!$B596=\"Subscriber\",'Enrollment Form'!$C596=\"Enroll\",'Enrollment Form'!$AM596<>\"\"),\"Y\",\"N\")))","v":""},{"$f":"IF($B589=\"N\",\"\",IF(OR('Enrollment Form'!$B596<>\"Subscriber\",'Enrollment Form'!$C596=\"ROC\"),\"-\",IF(AND('Enrollment Form'!$B596=\"Subscriber\",'Enrollment Form'!$C596=\"Enroll\",'Enrollment Form'!$AN596<>\"\"),\"Y\",\"N\")))","v":""},{"$f":"IF($B589=\"N\",\"\",IF(OR('Enrollment Form'!$B596<>\"Subscriber\",'Enrollment Form'!$C596=\"ROC\"),\"-\",IF(AND('Enrollment Form'!$B596=\"Subscriber\",'Enrollment Form'!$C596=\"Enroll\",'Enrollment Form'!$AP596<>\"\"),\"Y\",\"N\")))","v":""},{"$f":"IF($B589=\"N\",\"\",IF($Q589=\"-\",\"-\",IF(AND($Q589=\"Y\",'Enrollment Form'!$AP596=\"No\"),\"-\",IF(AND($Q589=\"Y\",'Enrollment Form'!$AP596=\"Yes\",'Enrollment Form'!$AQ596<>\"\"),\"Y\",\"N\"))))","v":""},{"$f":"IF($B589=\"N\",\"\",IF(OR('Enrollment Form'!$B596<>\"Subscriber\",'Enrollment Form'!$C596=\"ROC\"),\"-\",IF(AND('Enrollment Form'!$B596=\"Subscriber\",'Enrollment Form'!$C596=\"Enroll\",'Enrollment Form'!$CO596<>\"\"),\"Y\",\"N\")))","v":""},{"$f":"IF($B589=\"N\",\"\",IF($S589=\"-\",\"-\",IF(AND($S589=\"Y\",'Enrollment Form'!$CO596=\"No\"),\"-\",IF(AND($S589=\"Y\",'Enrollment Form'!$CO596=\"Yes\",'Enrollment Form'!$CP596<>\"\"),\"Y\",\"N\"))))","v":""},{"$f":"IF(OR('Enrollment Form'!$AV596=\"Yes\",'Enrollment Form'!$AV596=\"\"),\"-\",IF(AND('Enrollment Form'!$AV596=\"No\",ISERROR(FIND(\"HMO\",VLOOKUP('Enrollment Form'!G596,'Enrollment Form'!H$11:J$1000,3,FALSE),1))=FALSE,COUNTA('Enrollment Form'!$AW596:$AZ596)=4),\"Y\",\"N\"))","v":"-"},{"$f":"IF($B589=\"N\",\"\",IF('Enrollment Form'!$B596=\"Subscriber\",\"-\",IF(COUNTA('Enrollment Form'!$BE596,'Enrollment Form'!$BG596)=2,\"Y\",\"N\")))","v":""},{"$f":"IF($B589=\"N\",\"\",IF(OR('Enrollment Form'!$AU596=\"\",'Enrollment Form'!$AU596=\"No\"),\"-\",IF(AND('Enrollment Form'!$AU596=\"Yes\",COUNTA('Enrollment Form'!$CK596)=1),\"Y\",\"N\")))","v":""},{"$f":"IF(OR('Enrollment Form'!$CK596=\"\",'Enrollment Form'!$CK596=\"No\"),\"-\",IF(COUNTA('Enrollment Form'!$CM596:$CN596)=2,\"Y\",\"N\"))","v":"-"},{"$f":"IF($B589=\"N\",\"\",IF(COUNTIF('Enrollment Form'!$CZ596:$DO596,\"Other\")=COUNTA('Enrollment Form'!$DF596,'Enrollment Form'!$DA596,'Enrollment Form'!$DK596,'Enrollment Form'!$DP596),\"Y\",\"N\"))","v":""},{"$f":"IF($B589=\"N\",\"\",IF(OR('Enrollment Form'!B596<>\"Subscriber\",'Enrollment Form'!C596=\"ROC\",COUNTIF('Enrollment Form'!AS596:AT596,\"Yes\")>=1),\"-\",IF(AND('Enrollment Form'!C596=\"Enroll\",COUNTIF('Enrollment Form'!AS596:AT596,\"No\")=2,'Enrollment Form'!AU596=\"\"),\"N\",\"Y\")))","v":""},{"$f":"IF(OR(B589=\"N\",'Enrollment Form'!B596<>\"Subscriber\",'Enrollment Form'!C596=\"ROC\",'Enrollment Form'!O596<>\"Multiple of Salary\"),\"-\",IF(COUNTA('Enrollment Form'!T596:U596)<2,\"N\",\"Y\"))","v":"-"},{"$f":"IF(B589=\"N\",\"\",IF(OR('Enrollment Form'!C596=\"ROC\",'Enrollment Form'!B596<>\"Subscriber\",'Enrollment Form'!O596=\"Waive\",'Enrollment Form'!O596=\"\"),\"-\",IF('Enrollment Form'!P596=\"\",\"N\",\"Y\")))","v":""},{"$f":"IF($B589=\"N\",\"\",IF(AND('Enrollment Form'!$C596=\"ROC\",'Enrollment Form'!$DS596<>\"\"),\"Y\",IF(AND('Enrollment Form'!$C596=\"ROC\",'Enrollment Form'!$DS596=\"\"),\"N\",IF(AND('Enrollment Form'!$C596=\"Enroll\",'Enrollment Form'!$B596=\"Subscriber\",'Enrollment Form'!$CQ596=\"No\",'Enrollment Form'!$DS596=\"\"),\"N\",IF(AND('Enrollment Form'!$C596=\"Enroll\",'Enrollment Form'!$B596=\"Subscriber\",'Enrollment Form'!$CQ596=\"Yes\"),\"-\",\"Y\")))))","v":""},{"$f":"IF($B589=\"N\",\"\",IF(AND('Enrollment Form'!$C596=\"ROC\",'Enrollment Form'!$DT596<>\"\"),\"Y\",IF(AND('Enrollment Form'!$C596=\"ROC\",'Enrollment Form'!$DT596=\"\"),\"N\",IF(AND('Enrollment Form'!$C596=\"Enroll\",'Enrollment Form'!$B596=\"Subscriber\",'Enrollment Form'!$CQ596=\"No\",'Enrollment Form'!$DT596=\"\"),\"N\",IF(AND('Enrollment Form'!$C596=\"Enroll\",'Enrollment Form'!$B596=\"Subscriber\",'Enrollment Form'!$CQ596=\"Yes\"),\"-\",\"Y\")))))","v":""},{"$f":"IF('Enrollment Form'!AH596=\"\",\"\",IF(ISERROR(SEARCH(\".\",'Enrollment Form'!AH596,SEARCH(\"@\",'Enrollment Form'!AH596))),\"N\",\"Y\"))","v":""},{"$f":"IF(OR($B589=\"N\",'Enrollment Form'!$G596=\"\"),\"\",IF('Enrollment Form'!$B596<>\"Subscriber\",\"-\",IF(COUNTIF('Enrollment Form'!$AS596:$AT596,\"Yes\")=2,\"N\",\"Y\")))","v":""},{"$f":"IF(OR('Enrollment Form'!$CC596=\"\",'Enrollment Form'!$CC596=\"No\"),\"-\",IF(AND('Enrollment Form'!$CC596=\"Yes\",'Enrollment Form'!$CD596=\"\"),\"N\",\"Y\"))","v":"-"},{"$f":"IF(OR('Enrollment Form'!$CE596=\"\",'Enrollment Form'!$CE596=\"No\"),\"-\",IF(AND('Enrollment Form'!$CE596=\"Yes\",'Enrollment Form'!$CF596=\"\"),\"N\",\"Y\"))","v":"-"},{"$f":"IF(OR('Enrollment Form'!$CG596=\"\",'Enrollment Form'!$CG596=\"No\"),\"-\",IF(AND('Enrollment Form'!$CG596=\"Yes\",'Enrollment Form'!$CH596=\"\"),\"N\",\"Y\"))","v":"-"},{"$f":"IF(OR('Enrollment Form'!$CG596=\"\",'Enrollment Form'!$CG596=\"No\"),\"-\",IF(AND('Enrollment Form'!$CG596=\"Yes\",'Enrollment Form'!$CI596=\"\"),\"N\",\"Y\"))","v":"-"},{"$f":"IF('Enrollment Form'!B596<>\"Subscriber\",\"-\",IF(AND('Enrollment Form'!B596=\"Subscriber\",'Enrollment Form'!C596=\"Enroll\",'Enrollment Form'!AA596=\"\"),\"N\",\"Y\"))","v":"-"},{"$f":"IF(OR('Enrollment Form'!B596=\"Subscriber\",'Enrollment Form'!B596=\"\"),\"-\",IF('Enrollment Form'!BI596=\"\",\"N\",\"Y\"))","v":"-"},{"$f":"IF('Enrollment Form'!B596<>\"Subscriber\",\"-\",IF(AND('Enrollment Form'!B596=\"Subscriber\",'Enrollment Form'!G596=\"\"),\"N\",\"Y\"))","v":"-"},{"$f":"IF('Enrollment Form'!A596=\"\",\"\",IF('Enrollment Form'!B596=\"Subscriber\",\"-\",IF(AND('Enrollment Form'!B596<>\"Subscriber\",'Enrollment Form'!G596='Enrollment Form'!H596),\"N\",\"Y\")))","v":""},0]
[597,{"$f":"IF('Enrollment Form'!$A597<>\"\",\"Y\",\"N\")","v":"N"},{"$f":"IF(AND('Enrollment Form'!$B597=\"\",'Enrollment Form'!$C597<>\"\"),\"N\",IF($B590=\"N\",\"\",\"Y\"))","v":""},{"$f":"IF(OR($B590=\"N\",'Enrollment Form'!G597=\"\"),\"\",IF('Enrollment Form'!$B597<>\"Subscriber\",\"\",IF('Enrollment Form'!$G597='Enrollment Form'!$H597,\"Y\",\"N\")))","v":""},{"$f":"IF($B590=\"N\",\"\",IF(AND(COUNTIFS('Enrollment Form'!$H$11:$H$1000,'Enrollment Form'!$H597,'Enrollment Form'!$B$11:$B$1000,'Enrollment Form'!$B597)>1,'Enrollment Form'!$H597<>\"\"),\"N\",\"Y\"))","v":""},{"$f":"IF($B590=\"N\",\"\",IF(LEN('Enrollment Form'!$Y597)=0,\"\",IF(LEN('Enrollment Form'!$Y597)<>5,\"N\",\"Y\")))","v":""},{"$f":"IF($B590=\"N\",\"\",IF(LEN('Enrollment Form'!$AD597=0),\"\",IF(LEN('Enrollment Form'!$AD597)<>5,\"N\",\"Y\")))","v":""},{"$f":"IF($B590=\"N\",\"\",IF(LEN('Enrollment Form'!$BL597=0),\"\",IF(LEN('Enrollment Form'!$BL597)<>5,\"N\",\"Y\")))","v":""},{"$f":"IF($B590=\"N\",\"\",IF(LEN('Enrollment Form'!$AE597)=0,\"\",IF(LEN('Enrollment Form'!$AE597)<>10,\"N\",\"Y\")))","v":""},{"$f":"IF($B590=\"N\",\"\",IF(LEN('Enrollment Form'!$AF597)=0,\"\",IF(LEN('Enrollment Form'!$AF597)<>10,\"N\",\"Y\")))","v":""},{"$f":"IF('Enrollment Form'!$O597<>\"Graded\",\"-\",IF(AND('Enrollment Form'!$O597=\"Graded\",'Enrollment Form'!$AO597<>\"\"),\"Y\",\"N\"))","v":"-"},{"$f":"IF($B590=\"N\",\"\",IF(OR('Enrollment Form'!$B597<>\"Subscriber\",'Enrollment Form'!$C597=\"ROC\"),\"-\",IF(AND('Enrollment Form'!$B597=\"Subscriber\",'Enrollment Form'!$C597=\"Enroll\",'Enrollment Form'!$AJ597<>\"\"),\"Y\",\"N\")))","v":""},{"$f":"IF($B590=\"N\",\"\",IF(OR('Enrollment Form'!$B597<>\"Subscriber\",'Enrollment Form'!$C597=\"ROC\"),\"-\",IF(AND('Enrollment Form'!$B597=\"Subscriber\",'Enrollment Form'!$C597=\"Enroll\",'Enrollment Form'!$AK597<>\"\"),\"Y\",\"N\")))","v":""},{"$f":"IF($B590=\"N\",\"\",IF(OR('Enrollment Form'!$B597<>\"Subscriber\",'Enrollment Form'!$C597=\"ROC\"),\"-\",IF(AND('Enrollment Form'!$B597=\"Subscriber\",'Enrollment Form'!$C597=\"Enroll\",'Enrollment Form'!$AL597<>\"\"),\"Y\",\"N\")))","v":""},{"$f":"IF($B590=\"N\",\"\",IF(OR('Enrollment Form'!$B597<>\"Subscriber\",'Enrollment Form'!$C597=\"ROC\"),\"-\",IF(AND('Enrollment Form'!$B597=\"Subscriber\",'Enrollment Form'!$C597=\"Enroll\",'Enrollment Form'!$AM597<>\"\"),\"Y\",\"N\")))","v":""},{"$f":"IF($B590=\"N\",\"\",IF(OR('Enrollment Form'!$B597<>\"Subscriber\",'Enrollment Form'!$C597=\"ROC\"),\"-\",IF(AND('Enrollment Form'!$B597=\"Subscriber\",'Enrollment Form'!$C597=\"Enroll\",'Enrollment Form'!$AN597<>\"\"),\"Y\",\"N\")))","v":""},{"$f":"IF($B590=\"N\",\"\",IF(OR('Enrollment Form'!$B597<>\"Subscriber\",'Enrollment Form'!$C597=\"ROC\"),\"-\",IF(AND('Enrollment Form'!$B597=\"Subscriber\",'Enrollment Form'!$C597=\"Enroll\",'Enrollment Form'!$AP597<>\"\"),\"Y\",\"N\")))","v":""},{"$f":"IF($B590=\"N\",\"\",IF($Q590=\"-\",\"-\",IF(AND($Q590=\"Y\",'Enrollment Form'!$AP597=\"No\"),\"-\",IF(AND($Q590=\"Y\",'Enrollment Form'!$AP597=\"Yes\",'Enrollment Form'!$AQ597<>\"\"),\"Y\",\"N\"))))","v":""},{"$f":"IF($B590=\"N\",\"\",IF(OR('Enrollment Form'!$B597<>\"Subscriber\",'Enrollment Form'!$C597=\"ROC\"),\"-\",IF(AND('Enrollment Form'!$B597=\"Subscriber\",'Enrollment Form'!$C597=\"Enroll\",'Enrollment Form'!$CO597<>\"\"),\"Y\",\"N\")))","v":""},{"$f":"IF($B590=\"N\",\"\",IF($S590=\"-\",\"-\",IF(AND($S590=\"Y\",'Enrollment Form'!$CO597=\"No\"),\"-\",IF(AND($S590=\"Y\",'Enrollment Form'!$CO597=\"Yes\",'Enrollment Form'!$CP597<>\"\"),\"Y\",\"N\"))))","v":""},{"$f":"IF(OR('Enrollment Form'!$AV597=\"Yes\",'Enrollment Form'!$AV597=\"\"),\"-\",IF(AND('Enrollment Form'!$AV597=\"No\",ISERROR(FIND(\"HMO\",VLOOKUP('Enrollment Form'!G597,'Enrollment Form'!H$11:J$1000,3,FALSE),1))=FALSE,COUNTA('Enrollment Form'!$AW597:$AZ597)=4),\"Y\",\"N\"))","v":"-"},{"$f":"IF($B590=\"N\",\"\",IF('Enrollment Form'!$B597=\"Subscriber\",\"-\",IF(COUNTA('Enrollment Form'!$BE597,'Enrollment Form'!$BG597)=2,\"Y\",\"N\")))","v":""},{"$f":"IF($B590=\"N\",\"\",IF(OR('Enrollment Form'!$AU597=\"\",'Enrollment Form'!$AU597=\"No\"),\"-\",IF(AND('Enrollment Form'!$AU597=\"Yes\",COUNTA('Enrollment Form'!$CK597)=1),\"Y\",\"N\")))","v":""},{"$f":"IF(OR('Enrollment Form'!$CK597=\"\",'Enrollment Form'!$CK597=\"No\"),\"-\",IF(COUNTA('Enrollment Form'!$CM597:$CN597)=2,\"Y\",\"N\"))","v":"-"},{"$f":"IF($B590=\"N\",\"\",IF(COUNTIF('Enrollment Form'!$CZ597:$DO597,\"Other\")=COUNTA('Enrollment Form'!$DF597,'Enrollment Form'!$DA597,'Enrollment Form'!$DK597,'Enrollment Form'!$DP597),\"Y\",\"N\"))","v":""},{"$f":"IF($B590=\"N\",\"\",IF(OR('Enrollment Form'!B597<>\"Subscriber\",'Enrollment Form'!C597=\"ROC\",COUNTIF('Enrollment Form'!AS597:AT597,\"Yes\")>=1),\"-\",IF(AND('Enrollment Form'!C597=\"Enroll\",COUNTIF('Enrollment Form'!AS597:AT597,\"No\")=2,'Enrollment Form'!AU597=\"\"),\"N\",\"Y\")))","v":""},{"$f":"IF(OR(B590=\"N\",'Enrollment Form'!B597<>\"Subscriber\",'Enrollment Form'!C597=\"ROC\",'Enrollment Form'!O597<>\"Multiple of Salary\"),\"-\",IF(COUNTA('Enrollment Form'!T597:U597)<2,\"N\",\"Y\"))","v":"-"},{"$f":"IF(B590=\"N\",\"\",IF(OR('Enrollment Form'!C597=\"ROC\",'Enrollment Form'!B597<>\"Subscriber\",'Enrollment Form'!O597=\"Waive\",'Enrollment Form'!O597=\"\"),\"-\",IF('Enrollment Form'!P597=\"\",\"N\",\"Y\")))","v":""},{"$f":"IF($B590=\"N\",\"\",IF(AND('Enrollment Form'!$C597=\"ROC\",'Enrollment Form'!$DS597<>\"\"),\"Y\",IF(AND('Enrollment Form'!$C597=\"ROC\",'Enrollment Form'!$DS597=\"\"),\"N\",IF(AND('Enrollment Form'!$C597=\"Enroll\",'Enrollment Form'!$B597=\"Subscriber\",'Enrollment Form'!$CQ597=\"No\",'Enrollment Form'!$DS597=\"\"),\"N\",IF(AND('Enrollment Form'!$C597=\"Enroll\",'Enrollment Form'!$B597=\"Subscriber\",'Enrollment Form'!$CQ597=\"Yes\"),\"-\",\"Y\")))))","v":""},{"$f":"IF($B590=\"N\",\"\",IF(AND('Enrollment Form'!$C597=\"ROC\",'Enrollment Form'!$DT597<>\"\"),\"Y\",IF(AND('Enrollment Form'!$C597=\"ROC\",'Enrollment Form'!$DT597=\"\"),\"N\",IF(AND('Enrollment Form'!$C597=\"Enroll\",'Enrollment Form'!$B597=\"Subscriber\",'Enrollment Form'!$CQ597=\"No\",'Enrollment Form'!$DT597=\"\"),\"N\",IF(AND('Enrollment Form'!$C597=\"Enroll\",'Enrollment Form'!$B597=\"Subscriber\",'Enrollment Form'!$CQ597=\"Yes\"),\"-\",\"Y\")))))","v":""},{"$f":"IF('Enrollment Form'!AH597=\"\",\"\",IF(ISERROR(SEARCH(\".\",'Enrollment Form'!AH597,SEARCH(\"@\",'Enrollment Form'!AH597))),\"N\",\"Y\"))","v":""},{"$f":"IF(OR($B590=\"N\",'Enrollment Form'!$G597=\"\"),\"\",IF('Enrollment Form'!$B597<>\"Subscriber\",\"-\",IF(COUNTIF('Enrollment Form'!$AS597:$AT597,\"Yes\")=2,\"N\",\"Y\")))","v":""},{"$f":"IF(OR('Enrollment Form'!$CC597=\"\",'Enrollment Form'!$CC597=\"No\"),\"-\",IF(AND('Enrollment Form'!$CC597=\"Yes\",'Enrollment Form'!$CD597=\"\"),\"N\",\"Y\"))","v":"-"},{"$f":"IF(OR('Enrollment Form'!$CE597=\"\",'Enrollment Form'!$CE597=\"No\"),\"-\",IF(AND('Enrollment Form'!$CE597=\"Yes\",'Enrollment Form'!$CF597=\"\"),\"N\",\"Y\"))","v":"-"},{"$f":"IF(OR('Enrollment Form'!$CG597=\"\",'Enrollment Form'!$CG597=\"No\"),\"-\",IF(AND('Enrollment Form'!$CG597=\"Yes\",'Enrollment Form'!$CH597=\"\"),\"N\",\"Y\"))","v":"-"},{"$f":"IF(OR('Enrollment Form'!$CG597=\"\",'Enrollment Form'!$CG597=\"No\"),\"-\",IF(AND('Enrollment Form'!$CG597=\"Yes\",'Enrollment Form'!$CI597=\"\"),\"N\",\"Y\"))","v":"-"},{"$f":"IF('Enrollment Form'!B597<>\"Subscriber\",\"-\",IF(AND('Enrollment Form'!B597=\"Subscriber\",'Enrollment Form'!C597=\"Enroll\",'Enrollment Form'!AA597=\"\"),\"N\",\"Y\"))","v":"-"},{"$f":"IF(OR('Enrollment Form'!B597=\"Subscriber\",'Enrollment Form'!B597=\"\"),\"-\",IF('Enrollment Form'!BI597=\"\",\"N\",\"Y\"))","v":"-"},{"$f":"IF('Enrollment Form'!B597<>\"Subscriber\",\"-\",IF(AND('Enrollment Form'!B597=\"Subscriber\",'Enrollment Form'!G597=\"\"),\"N\",\"Y\"))","v":"-"},{"$f":"IF('Enrollment Form'!A597=\"\",\"\",IF('Enrollment Form'!B597=\"Subscriber\",\"-\",IF(AND('Enrollment Form'!B597<>\"Subscriber\",'Enrollment Form'!G597='Enrollment Form'!H597),\"N\",\"Y\")))","v":""},0]
[598,{"$f":"IF('Enrollment Form'!$A598<>\"\",\"Y\",\"N\")","v":"N"},{"$f":"IF(AND('Enrollment Form'!$B598=\"\",'Enrollment Form'!$C598<>\"\"),\"N\",IF($B591=\"N\",\"\",\"Y\"))","v":""},{"$f":"IF(OR($B591=\"N\",'Enrollment Form'!G598=\"\"),\"\",IF('Enrollment Form'!$B598<>\"Subscriber\",\"\",IF('Enrollment Form'!$G598='Enrollment Form'!$H598,\"Y\",\"N\")))","v":""},{"$f":"IF($B591=\"N\",\"\",IF(AND(COUNTIFS('Enrollment Form'!$H$11:$H$1000,'Enrollment Form'!$H598,'Enrollment Form'!$B$11:$B$1000,'Enrollment Form'!$B598)>1,'Enrollment Form'!$H598<>\"\"),\"N\",\"Y\"))","v":""},{"$f":"IF($B591=\"N\",\"\",IF(LEN('Enrollment Form'!$Y598)=0,\"\",IF(LEN('Enrollment Form'!$Y598)<>5,\"N\",\"Y\")))","v":""},{"$f":"IF($B591=\"N\",\"\",IF(LEN('Enrollment Form'!$AD598=0),\"\",IF(LEN('Enrollment Form'!$AD598)<>5,\"N\",\"Y\")))","v":""},{"$f":"IF($B591=\"N\",\"\",IF(LEN('Enrollment Form'!$BL598=0),\"\",IF(LEN('Enrollment Form'!$BL598)<>5,\"N\",\"Y\")))","v":""},{"$f":"IF($B591=\"N\",\"\",IF(LEN('Enrollment Form'!$AE598)=0,\"\",IF(LEN('Enrollment Form'!$AE598)<>10,\"N\",\"Y\")))","v":""},{"$f":"IF($B591=\"N\",\"\",IF(LEN('Enrollment Form'!$AF598)=0,\"\",IF(LEN('Enrollment Form'!$AF598)<>10,\"N\",\"Y\")))","v":""},{"$f":"IF('Enrollment Form'!$O598<>\"Graded\",\"-\",IF(AND('Enrollment Form'!$O598=\"Graded\",'Enrollment Form'!$AO598<>\"\"),\"Y\",\"N\"))","v":"-"},{"$f":"IF($B591=\"N\",\"\",IF(OR('Enrollment Form'!$B598<>\"Subscriber\",'Enrollment Form'!$C598=\"ROC\"),\"-\",IF(AND('Enrollment Form'!$B598=\"Subscriber\",'Enrollment Form'!$C598=\"Enroll\",'Enrollment Form'!$AJ598<>\"\"),\"Y\",\"N\")))","v":""},{"$f":"IF($B591=\"N\",\"\",IF(OR('Enrollment Form'!$B598<>\"Subscriber\",'Enrollment Form'!$C598=\"ROC\"),\"-\",IF(AND('Enrollment Form'!$B598=\"Subscriber\",'Enrollment Form'!$C598=\"Enroll\",'Enrollment Form'!$AK598<>\"\"),\"Y\",\"N\")))","v":""},{"$f":"IF($B591=\"N\",\"\",IF(OR('Enrollment Form'!$B598<>\"Subscriber\",'Enrollment Form'!$C598=\"ROC\"),\"-\",IF(AND('Enrollment Form'!$B598=\"Subscriber\",'Enrollment Form'!$C598=\"Enroll\",'Enrollment Form'!$AL598<>\"\"),\"Y\",\"N\")))","v":""},{"$f":"IF($B591=\"N\",\"\",IF(OR('Enrollment Form'!$B598<>\"Subscriber\",'Enrollment Form'!$C598=\"ROC\"),\"-\",IF(AND('Enrollment Form'!$B598=\"Subscriber\",'Enrollment Form'!$C598=\"Enroll\",'Enrollment Form'!$AM598<>\"\"),\"Y\",\"N\")))","v":""},{"$f":"IF($B591=\"N\",\"\",IF(OR('Enrollment Form'!$B598<>\"Subscriber\",'Enrollment Form'!$C598=\"ROC\"),\"-\",IF(AND('Enrollment Form'!$B598=\"Subscriber\",'Enrollment Form'!$C598=\"Enroll\",'Enrollment Form'!$AN598<>\"\"),\"Y\",\"N\")))","v":""},{"$f":"IF($B591=\"N\",\"\",IF(OR('Enrollment Form'!$B598<>\"Subscriber\",'Enrollment Form'!$C598=\"ROC\"),\"-\",IF(AND('Enrollment Form'!$B598=\"Subscriber\",'Enrollment Form'!$C598=\"Enroll\",'Enrollment Form'!$AP598<>\"\"),\"Y\",\"N\")))","v":""},{"$f":"IF($B591=\"N\",\"\",IF($Q591=\"-\",\"-\",IF(AND($Q591=\"Y\",'Enrollment Form'!$AP598=\"No\"),\"-\",IF(AND($Q591=\"Y\",'Enrollment Form'!$AP598=\"Yes\",'Enrollment Form'!$AQ598<>\"\"),\"Y\",\"N\"))))","v":""},{"$f":"IF($B591=\"N\",\"\",IF(OR('Enrollment Form'!$B598<>\"Subscriber\",'Enrollment Form'!$C598=\"ROC\"),\"-\",IF(AND('Enrollment Form'!$B598=\"Subscriber\",'Enrollment Form'!$C598=\"Enroll\",'Enrollment Form'!$CO598<>\"\"),\"Y\",\"N\")))","v":""},{"$f":"IF($B591=\"N\",\"\",IF($S591=\"-\",\"-\",IF(AND($S591=\"Y\",'Enrollment Form'!$CO598=\"No\"),\"-\",IF(AND($S591=\"Y\",'Enrollment Form'!$CO598=\"Yes\",'Enrollment Form'!$CP598<>\"\"),\"Y\",\"N\"))))","v":""},{"$f":"IF(OR('Enrollment Form'!$AV598=\"Yes\",'Enrollment Form'!$AV598=\"\"),\"-\",IF(AND('Enrollment Form'!$AV598=\"No\",ISERROR(FIND(\"HMO\",VLOOKUP('Enrollment Form'!G598,'Enrollment Form'!H$11:J$1000,3,FALSE),1))=FALSE,COUNTA('Enrollment Form'!$AW598:$AZ598)=4),\"Y\",\"N\"))","v":"-"},{"$f":"IF($B591=\"N\",\"\",IF('Enrollment Form'!$B598=\"Subscriber\",\"-\",IF(COUNTA('Enrollment Form'!$BE598,'Enrollment Form'!$BG598)=2,\"Y\",\"N\")))","v":""},{"$f":"IF($B591=\"N\",\"\",IF(OR('Enrollment Form'!$AU598=\"\",'Enrollment Form'!$AU598=\"No\"),\"-\",IF(AND('Enrollment Form'!$AU598=\"Yes\",COUNTA('Enrollment Form'!$CK598)=1),\"Y\",\"N\")))","v":""},{"$f":"IF(OR('Enrollment Form'!$CK598=\"\",'Enrollment Form'!$CK598=\"No\"),\"-\",IF(COUNTA('Enrollment Form'!$CM598:$CN598)=2,\"Y\",\"N\"))","v":"-"},{"$f":"IF($B591=\"N\",\"\",IF(COUNTIF('Enrollment Form'!$CZ598:$DO598,\"Other\")=COUNTA('Enrollment Form'!$DF598,'Enrollment Form'!$DA598,'Enrollment Form'!$DK598,'Enrollment Form'!$DP598),\"Y\",\"N\"))","v":""},{"$f":"IF($B591=\"N\",\"\",IF(OR('Enrollment Form'!B598<>\"Subscriber\",'Enrollment Form'!C598=\"ROC\",COUNTIF('Enrollment Form'!AS598:AT598,\"Yes\")>=1),\"-\",IF(AND('Enrollment Form'!C598=\"Enroll\",COUNTIF('Enrollment Form'!AS598:AT598,\"No\")=2,'Enrollment Form'!AU598=\"\"),\"N\",\"Y\")))","v":""},{"$f":"IF(OR(B591=\"N\",'Enrollment Form'!B598<>\"Subscriber\",'Enrollment Form'!C598=\"ROC\",'Enrollment Form'!O598<>\"Multiple of Salary\"),\"-\",IF(COUNTA('Enrollment Form'!T598:U598)<2,\"N\",\"Y\"))","v":"-"},{"$f":"IF(B591=\"N\",\"\",IF(OR('Enrollment Form'!C598=\"ROC\",'Enrollment Form'!B598<>\"Subscriber\",'Enrollment Form'!O598=\"Waive\",'Enrollment Form'!O598=\"\"),\"-\",IF('Enrollment Form'!P598=\"\",\"N\",\"Y\")))","v":""},{"$f":"IF($B591=\"N\",\"\",IF(AND('Enrollment Form'!$C598=\"ROC\",'Enrollment Form'!$DS598<>\"\"),\"Y\",IF(AND('Enrollment Form'!$C598=\"ROC\",'Enrollment Form'!$DS598=\"\"),\"N\",IF(AND('Enrollment Form'!$C598=\"Enroll\",'Enrollment Form'!$B598=\"Subscriber\",'Enrollment Form'!$CQ598=\"No\",'Enrollment Form'!$DS598=\"\"),\"N\",IF(AND('Enrollment Form'!$C598=\"Enroll\",'Enrollment Form'!$B598=\"Subscriber\",'Enrollment Form'!$CQ598=\"Yes\"),\"-\",\"Y\")))))","v":""},{"$f":"IF($B591=\"N\",\"\",IF(AND('Enrollment Form'!$C598=\"ROC\",'Enrollment Form'!$DT598<>\"\"),\"Y\",IF(AND('Enrollment Form'!$C598=\"ROC\",'Enrollment Form'!$DT598=\"\"),\"N\",IF(AND('Enrollment Form'!$C598=\"Enroll\",'Enrollment Form'!$B598=\"Subscriber\",'Enrollment Form'!$CQ598=\"No\",'Enrollment Form'!$DT598=\"\"),\"N\",IF(AND('Enrollment Form'!$C598=\"Enroll\",'Enrollment Form'!$B598=\"Subscriber\",'Enrollment Form'!$CQ598=\"Yes\"),\"-\",\"Y\")))))","v":""},{"$f":"IF('Enrollment Form'!AH598=\"\",\"\",IF(ISERROR(SEARCH(\".\",'Enrollment Form'!AH598,SEARCH(\"@\",'Enrollment Form'!AH598))),\"N\",\"Y\"))","v":""},{"$f":"IF(OR($B591=\"N\",'Enrollment Form'!$G598=\"\"),\"\",IF('Enrollment Form'!$B598<>\"Subscriber\",\"-\",IF(COUNTIF('Enrollment Form'!$AS598:$AT598,\"Yes\")=2,\"N\",\"Y\")))","v":""},{"$f":"IF(OR('Enrollment Form'!$CC598=\"\",'Enrollment Form'!$CC598=\"No\"),\"-\",IF(AND('Enrollment Form'!$CC598=\"Yes\",'Enrollment Form'!$CD598=\"\"),\"N\",\"Y\"))","v":"-"},{"$f":"IF(OR('Enrollment Form'!$CE598=\"\",'Enrollment Form'!$CE598=\"No\"),\"-\",IF(AND('Enrollment Form'!$CE598=\"Yes\",'Enrollment Form'!$CF598=\"\"),\"N\",\"Y\"))","v":"-"},{"$f":"IF(OR('Enrollment Form'!$CG598=\"\",'Enrollment Form'!$CG598=\"No\"),\"-\",IF(AND('Enrollment Form'!$CG598=\"Yes\",'Enrollment Form'!$CH598=\"\"),\"N\",\"Y\"))","v":"-"},{"$f":"IF(OR('Enrollment Form'!$CG598=\"\",'Enrollment Form'!$CG598=\"No\"),\"-\",IF(AND('Enrollment Form'!$CG598=\"Yes\",'Enrollment Form'!$CI598=\"\"),\"N\",\"Y\"))","v":"-"},{"$f":"IF('Enrollment Form'!B598<>\"Subscriber\",\"-\",IF(AND('Enrollment Form'!B598=\"Subscriber\",'Enrollment Form'!C598=\"Enroll\",'Enrollment Form'!AA598=\"\"),\"N\",\"Y\"))","v":"-"},{"$f":"IF(OR('Enrollment Form'!B598=\"Subscriber\",'Enrollment Form'!B598=\"\"),\"-\",IF('Enrollment Form'!BI598=\"\",\"N\",\"Y\"))","v":"-"},{"$f":"IF('Enrollment Form'!B598<>\"Subscriber\",\"-\",IF(AND('Enrollment Form'!B598=\"Subscriber\",'Enrollment Form'!G598=\"\"),\"N\",\"Y\"))","v":"-"},{"$f":"IF('Enrollment Form'!A598=\"\",\"\",IF('Enrollment Form'!B598=\"Subscriber\",\"-\",IF(AND('Enrollment Form'!B598<>\"Subscriber\",'Enrollment Form'!G598='Enrollment Form'!H598),\"N\",\"Y\")))","v":""},0]
[599,{"$f":"IF('Enrollment Form'!$A599<>\"\",\"Y\",\"N\")","v":"N"},{"$f":"IF(AND('Enrollment Form'!$B599=\"\",'Enrollment Form'!$C599<>\"\"),\"N\",IF($B592=\"N\",\"\",\"Y\"))","v":""},{"$f":"IF(OR($B592=\"N\",'Enrollment Form'!G599=\"\"),\"\",IF('Enrollment Form'!$B599<>\"Subscriber\",\"\",IF('Enrollment Form'!$G599='Enrollment Form'!$H599,\"Y\",\"N\")))","v":""},{"$f":"IF($B592=\"N\",\"\",IF(AND(COUNTIFS('Enrollment Form'!$H$11:$H$1000,'Enrollment Form'!$H599,'Enrollment Form'!$B$11:$B$1000,'Enrollment Form'!$B599)>1,'Enrollment Form'!$H599<>\"\"),\"N\",\"Y\"))","v":""},{"$f":"IF($B592=\"N\",\"\",IF(LEN('Enrollment Form'!$Y599)=0,\"\",IF(LEN('Enrollment Form'!$Y599)<>5,\"N\",\"Y\")))","v":""},{"$f":"IF($B592=\"N\",\"\",IF(LEN('Enrollment Form'!$AD599=0),\"\",IF(LEN('Enrollment Form'!$AD599)<>5,\"N\",\"Y\")))","v":""},{"$f":"IF($B592=\"N\",\"\",IF(LEN('Enrollment Form'!$BL599=0),\"\",IF(LEN('Enrollment Form'!$BL599)<>5,\"N\",\"Y\")))","v":""},{"$f":"IF($B592=\"N\",\"\",IF(LEN('Enrollment Form'!$AE599)=0,\"\",IF(LEN('Enrollment Form'!$AE599)<>10,\"N\",\"Y\")))","v":""},{"$f":"IF($B592=\"N\",\"\",IF(LEN('Enrollment Form'!$AF599)=0,\"\",IF(LEN('Enrollment Form'!$AF599)<>10,\"N\",\"Y\")))","v":""},{"$f":"IF('Enrollment Form'!$O599<>\"Graded\",\"-\",IF(AND('Enrollment Form'!$O599=\"Graded\",'Enrollment Form'!$AO599<>\"\"),\"Y\",\"N\"))","v":"-"},{"$f":"IF($B592=\"N\",\"\",IF(OR('Enrollment Form'!$B599<>\"Subscriber\",'Enrollment Form'!$C599=\"ROC\"),\"-\",IF(AND('Enrollment Form'!$B599=\"Subscriber\",'Enrollment Form'!$C599=\"Enroll\",'Enrollment Form'!$AJ599<>\"\"),\"Y\",\"N\")))","v":""},{"$f":"IF($B592=\"N\",\"\",IF(OR('Enrollment Form'!$B599<>\"Subscriber\",'Enrollment Form'!$C599=\"ROC\"),\"-\",IF(AND('Enrollment Form'!$B599=\"Subscriber\",'Enrollment Form'!$C599=\"Enroll\",'Enrollment Form'!$AK599<>\"\"),\"Y\",\"N\")))","v":""},{"$f":"IF($B592=\"N\",\"\",IF(OR('Enrollment Form'!$B599<>\"Subscriber\",'Enrollment Form'!$C599=\"ROC\"),\"-\",IF(AND('Enrollment Form'!$B599=\"Subscriber\",'Enrollment Form'!$C599=\"Enroll\",'Enrollment Form'!$AL599<>\"\"),\"Y\",\"N\")))","v":""},{"$f":"IF($B592=\"N\",\"\",IF(OR('Enrollment Form'!$B599<>\"Subscriber\",'Enrollment Form'!$C599=\"ROC\"),\"-\",IF(AND('Enrollment Form'!$B599=\"Subscriber\",'Enrollment Form'!$C599=\"Enroll\",'Enrollment Form'!$AM599<>\"\"),\"Y\",\"N\")))","v":""},{"$f":"IF($B592=\"N\",\"\",IF(OR('Enrollment Form'!$B599<>\"Subscriber\",'Enrollment Form'!$C599=\"ROC\"),\"-\",IF(AND('Enrollment Form'!$B599=\"Subscriber\",'Enrollment Form'!$C599=\"Enroll\",'Enrollment Form'!$AN599<>\"\"),\"Y\",\"N\")))","v":""},{"$f":"IF($B592=\"N\",\"\",IF(OR('Enrollment Form'!$B599<>\"Subscriber\",'Enrollment Form'!$C599=\"ROC\"),\"-\",IF(AND('Enrollment Form'!$B599=\"Subscriber\",'Enrollment Form'!$C599=\"Enroll\",'Enrollment Form'!$AP599<>\"\"),\"Y\",\"N\")))","v":""},{"$f":"IF($B592=\"N\",\"\",IF($Q592=\"-\",\"-\",IF(AND($Q592=\"Y\",'Enrollment Form'!$AP599=\"No\"),\"-\",IF(AND($Q592=\"Y\",'Enrollment Form'!$AP599=\"Yes\",'Enrollment Form'!$AQ599<>\"\"),\"Y\",\"N\"))))","v":""},{"$f":"IF($B592=\"N\",\"\",IF(OR('Enrollment Form'!$B599<>\"Subscriber\",'Enrollment Form'!$C599=\"ROC\"),\"-\",IF(AND('Enrollment Form'!$B599=\"Subscriber\",'Enrollment Form'!$C599=\"Enroll\",'Enrollment Form'!$CO599<>\"\"),\"Y\",\"N\")))","v":""},{"$f":"IF($B592=\"N\",\"\",IF($S592=\"-\",\"-\",IF(AND($S592=\"Y\",'Enrollment Form'!$CO599=\"No\"),\"-\",IF(AND($S592=\"Y\",'Enrollment Form'!$CO599=\"Yes\",'Enrollment Form'!$CP599<>\"\"),\"Y\",\"N\"))))","v":""},{"$f":"IF(OR('Enrollment Form'!$AV599=\"Yes\",'Enrollment Form'!$AV599=\"\"),\"-\",IF(AND('Enrollment Form'!$AV599=\"No\",ISERROR(FIND(\"HMO\",VLOOKUP('Enrollment Form'!G599,'Enrollment Form'!H$11:J$1000,3,FALSE),1))=FALSE,COUNTA('Enrollment Form'!$AW599:$AZ599)=4),\"Y\",\"N\"))","v":"-"},{"$f":"IF($B592=\"N\",\"\",IF('Enrollment Form'!$B599=\"Subscriber\",\"-\",IF(COUNTA('Enrollment Form'!$BE599,'Enrollment Form'!$BG599)=2,\"Y\",\"N\")))","v":""},{"$f":"IF($B592=\"N\",\"\",IF(OR('Enrollment Form'!$AU599=\"\",'Enrollment Form'!$AU599=\"No\"),\"-\",IF(AND('Enrollment Form'!$AU599=\"Yes\",COUNTA('Enrollment Form'!$CK599)=1),\"Y\",\"N\")))","v":""},{"$f":"IF(OR('Enrollment Form'!$CK599=\"\",'Enrollment Form'!$CK599=\"No\"),\"-\",IF(COUNTA('Enrollment Form'!$CM599:$CN599)=2,\"Y\",\"N\"))","v":"-"},{"$f":"IF($B592=\"N\",\"\",IF(COUNTIF('Enrollment Form'!$CZ599:$DO599,\"Other\")=COUNTA('Enrollment Form'!$DF599,'Enrollment Form'!$DA599,'Enrollment Form'!$DK599,'Enrollment Form'!$DP599),\"Y\",\"N\"))","v":""},{"$f":"IF($B592=\"N\",\"\",IF(OR('Enrollment Form'!B599<>\"Subscriber\",'Enrollment Form'!C599=\"ROC\",COUNTIF('Enrollment Form'!AS599:AT599,\"Yes\")>=1),\"-\",IF(AND('Enrollment Form'!C599=\"Enroll\",COUNTIF('Enrollment Form'!AS599:AT599,\"No\")=2,'Enrollment Form'!AU599=\"\"),\"N\",\"Y\")))","v":""},{"$f":"IF(OR(B592=\"N\",'Enrollment Form'!B599<>\"Subscriber\",'Enrollment Form'!C599=\"ROC\",'Enrollment Form'!O599<>\"Multiple of Salary\"),\"-\",IF(COUNTA('Enrollment Form'!T599:U599)<2,\"N\",\"Y\"))","v":"-"},{"$f":"IF(B592=\"N\",\"\",IF(OR('Enrollment Form'!C599=\"ROC\",'Enrollment Form'!B599<>\"Subscriber\",'Enrollment Form'!O599=\"Waive\",'Enrollment Form'!O599=\"\"),\"-\",IF('Enrollment Form'!P599=\"\",\"N\",\"Y\")))","v":""},{"$f":"IF($B592=\"N\",\"\",IF(AND('Enrollment Form'!$C599=\"ROC\",'Enrollment Form'!$DS599<>\"\"),\"Y\",IF(AND('Enrollment Form'!$C599=\"ROC\",'Enrollment Form'!$DS599=\"\"),\"N\",IF(AND('Enrollment Form'!$C599=\"Enroll\",'Enrollment Form'!$B599=\"Subscriber\",'Enrollment Form'!$CQ599=\"No\",'Enrollment Form'!$DS599=\"\"),\"N\",IF(AND('Enrollment Form'!$C599=\"Enroll\",'Enrollment Form'!$B599=\"Subscriber\",'Enrollment Form'!$CQ599=\"Yes\"),\"-\",\"Y\")))))","v":""},{"$f":"IF($B592=\"N\",\"\",IF(AND('Enrollment Form'!$C599=\"ROC\",'Enrollment Form'!$DT599<>\"\"),\"Y\",IF(AND('Enrollment Form'!$C599=\"ROC\",'Enrollment Form'!$DT599=\"\"),\"N\",IF(AND('Enrollment Form'!$C599=\"Enroll\",'Enrollment Form'!$B599=\"Subscriber\",'Enrollment Form'!$CQ599=\"No\",'Enrollment Form'!$DT599=\"\"),\"N\",IF(AND('Enrollment Form'!$C599=\"Enroll\",'Enrollment Form'!$B599=\"Subscriber\",'Enrollment Form'!$CQ599=\"Yes\"),\"-\",\"Y\")))))","v":""},{"$f":"IF('Enrollment Form'!AH599=\"\",\"\",IF(ISERROR(SEARCH(\".\",'Enrollment Form'!AH599,SEARCH(\"@\",'Enrollment Form'!AH599))),\"N\",\"Y\"))","v":""},{"$f":"IF(OR($B592=\"N\",'Enrollment Form'!$G599=\"\"),\"\",IF('Enrollment Form'!$B599<>\"Subscriber\",\"-\",IF(COUNTIF('Enrollment Form'!$AS599:$AT599,\"Yes\")=2,\"N\",\"Y\")))","v":""},{"$f":"IF(OR('Enrollment Form'!$CC599=\"\",'Enrollment Form'!$CC599=\"No\"),\"-\",IF(AND('Enrollment Form'!$CC599=\"Yes\",'Enrollment Form'!$CD599=\"\"),\"N\",\"Y\"))","v":"-"},{"$f":"IF(OR('Enrollment Form'!$CE599=\"\",'Enrollment Form'!$CE599=\"No\"),\"-\",IF(AND('Enrollment Form'!$CE599=\"Yes\",'Enrollment Form'!$CF599=\"\"),\"N\",\"Y\"))","v":"-"},{"$f":"IF(OR('Enrollment Form'!$CG599=\"\",'Enrollment Form'!$CG599=\"No\"),\"-\",IF(AND('Enrollment Form'!$CG599=\"Yes\",'Enrollment Form'!$CH599=\"\"),\"N\",\"Y\"))","v":"-"},{"$f":"IF(OR('Enrollment Form'!$CG599=\"\",'Enrollment Form'!$CG599=\"No\"),\"-\",IF(AND('Enrollment Form'!$CG599=\"Yes\",'Enrollment Form'!$CI599=\"\"),\"N\",\"Y\"))","v":"-"},{"$f":"IF('Enrollment Form'!B599<>\"Subscriber\",\"-\",IF(AND('Enrollment Form'!B599=\"Subscriber\",'Enrollment Form'!C599=\"Enroll\",'Enrollment Form'!AA599=\"\"),\"N\",\"Y\"))","v":"-"},{"$f":"IF(OR('Enrollment Form'!B599=\"Subscriber\",'Enrollment Form'!B599=\"\"),\"-\",IF('Enrollment Form'!BI599=\"\",\"N\",\"Y\"))","v":"-"},{"$f":"IF('Enrollment Form'!B599<>\"Subscriber\",\"-\",IF(AND('Enrollment Form'!B599=\"Subscriber\",'Enrollment Form'!G599=\"\"),\"N\",\"Y\"))","v":"-"},{"$f":"IF('Enrollment Form'!A599=\"\",\"\",IF('Enrollment Form'!B599=\"Subscriber\",\"-\",IF(AND('Enrollment Form'!B599<>\"Subscriber\",'Enrollment Form'!G599='Enrollment Form'!H599),\"N\",\"Y\")))","v":""},0]
[600,{"$f":"IF('Enrollment Form'!$A600<>\"\",\"Y\",\"N\")","v":"N"},{"$f":"IF(AND('Enrollment Form'!$B600=\"\",'Enrollment Form'!$C600<>\"\"),\"N\",IF($B593=\"N\",\"\",\"Y\"))","v":""},{"$f":"IF(OR($B593=\"N\",'Enrollment Form'!G600=\"\"),\"\",IF('Enrollment Form'!$B600<>\"Subscriber\",\"\",IF('Enrollment Form'!$G600='Enrollment Form'!$H600,\"Y\",\"N\")))","v":""},{"$f":"IF($B593=\"N\",\"\",IF(AND(COUNTIFS('Enrollment Form'!$H$11:$H$1000,'Enrollment Form'!$H600,'Enrollment Form'!$B$11:$B$1000,'Enrollment Form'!$B600)>1,'Enrollment Form'!$H600<>\"\"),\"N\",\"Y\"))","v":""},{"$f":"IF($B593=\"N\",\"\",IF(LEN('Enrollment Form'!$Y600)=0,\"\",IF(LEN('Enrollment Form'!$Y600)<>5,\"N\",\"Y\")))","v":""},{"$f":"IF($B593=\"N\",\"\",IF(LEN('Enrollment Form'!$AD600=0),\"\",IF(LEN('Enrollment Form'!$AD600)<>5,\"N\",\"Y\")))","v":""},{"$f":"IF($B593=\"N\",\"\",IF(LEN('Enrollment Form'!$BL600=0),\"\",IF(LEN('Enrollment Form'!$BL600)<>5,\"N\",\"Y\")))","v":""},{"$f":"IF($B593=\"N\",\"\",IF(LEN('Enrollment Form'!$AE600)=0,\"\",IF(LEN('Enrollment Form'!$AE600)<>10,\"N\",\"Y\")))","v":""},{"$f":"IF($B593=\"N\",\"\",IF(LEN('Enrollment Form'!$AF600)=0,\"\",IF(LEN('Enrollment Form'!$AF600)<>10,\"N\",\"Y\")))","v":""},{"$f":"IF('Enrollment Form'!$O600<>\"Graded\",\"-\",IF(AND('Enrollment Form'!$O600=\"Graded\",'Enrollment Form'!$AO600<>\"\"),\"Y\",\"N\"))","v":"-"},{"$f":"IF($B593=\"N\",\"\",IF(OR('Enrollment Form'!$B600<>\"Subscriber\",'Enrollment Form'!$C600=\"ROC\"),\"-\",IF(AND('Enrollment Form'!$B600=\"Subscriber\",'Enrollment Form'!$C600=\"Enroll\",'Enrollment Form'!$AJ600<>\"\"),\"Y\",\"N\")))","v":""},{"$f":"IF($B593=\"N\",\"\",IF(OR('Enrollment Form'!$B600<>\"Subscriber\",'Enrollment Form'!$C600=\"ROC\"),\"-\",IF(AND('Enrollment Form'!$B600=\"Subscriber\",'Enrollment Form'!$C600=\"Enroll\",'Enrollment Form'!$AK600<>\"\"),\"Y\",\"N\")))","v":""},{"$f":"IF($B593=\"N\",\"\",IF(OR('Enrollment Form'!$B600<>\"Subscriber\",'Enrollment Form'!$C600=\"ROC\"),\"-\",IF(AND('Enrollment Form'!$B600=\"Subscriber\",'Enrollment Form'!$C600=\"Enroll\",'Enrollment Form'!$AL600<>\"\"),\"Y\",\"N\")))","v":""},{"$f":"IF($B593=\"N\",\"\",IF(OR('Enrollment Form'!$B600<>\"Subscriber\",'Enrollment Form'!$C600=\"ROC\"),\"-\",IF(AND('Enrollment Form'!$B600=\"Subscriber\",'Enrollment Form'!$C600=\"Enroll\",'Enrollment Form'!$AM600<>\"\"),\"Y\",\"N\")))","v":""},{"$f":"IF($B593=\"N\",\"\",IF(OR('Enrollment Form'!$B600<>\"Subscriber\",'Enrollment Form'!$C600=\"ROC\"),\"-\",IF(AND('Enrollment Form'!$B600=\"Subscriber\",'Enrollment Form'!$C600=\"Enroll\",'Enrollment Form'!$AN600<>\"\"),\"Y\",\"N\")))","v":""},{"$f":"IF($B593=\"N\",\"\",IF(OR('Enrollment Form'!$B600<>\"Subscriber\",'Enrollment Form'!$C600=\"ROC\"),\"-\",IF(AND('Enrollment Form'!$B600=\"Subscriber\",'Enrollment Form'!$C600=\"Enroll\",'Enrollment Form'!$AP600<>\"\"),\"Y\",\"N\")))","v":""},{"$f":"IF($B593=\"N\",\"\",IF($Q593=\"-\",\"-\",IF(AND($Q593=\"Y\",'Enrollment Form'!$AP600=\"No\"),\"-\",IF(AND($Q593=\"Y\",'Enrollment Form'!$AP600=\"Yes\",'Enrollment Form'!$AQ600<>\"\"),\"Y\",\"N\"))))","v":""},{"$f":"IF($B593=\"N\",\"\",IF(OR('Enrollment Form'!$B600<>\"Subscriber\",'Enrollment Form'!$C600=\"ROC\"),\"-\",IF(AND('Enrollment Form'!$B600=\"Subscriber\",'Enrollment Form'!$C600=\"Enroll\",'Enrollment Form'!$CO600<>\"\"),\"Y\",\"N\")))","v":""},{"$f":"IF($B593=\"N\",\"\",IF($S593=\"-\",\"-\",IF(AND($S593=\"Y\",'Enrollment Form'!$CO600=\"No\"),\"-\",IF(AND($S593=\"Y\",'Enrollment Form'!$CO600=\"Yes\",'Enrollment Form'!$CP600<>\"\"),\"Y\",\"N\"))))","v":""},{"$f":"IF(OR('Enrollment Form'!$AV600=\"Yes\",'Enrollment Form'!$AV600=\"\"),\"-\",IF(AND('Enrollment Form'!$AV600=\"No\",ISERROR(FIND(\"HMO\",VLOOKUP('Enrollment Form'!G600,'Enrollment Form'!H$11:J$1000,3,FALSE),1))=FALSE,COUNTA('Enrollment Form'!$AW600:$AZ600)=4),\"Y\",\"N\"))","v":"-"},{"$f":"IF($B593=\"N\",\"\",IF('Enrollment Form'!$B600=\"Subscriber\",\"-\",IF(COUNTA('Enrollment Form'!$BE600,'Enrollment Form'!$BG600)=2,\"Y\",\"N\")))","v":""},{"$f":"IF($B593=\"N\",\"\",IF(OR('Enrollment Form'!$AU600=\"\",'Enrollment Form'!$AU600=\"No\"),\"-\",IF(AND('Enrollment Form'!$AU600=\"Yes\",COUNTA('Enrollment Form'!$CK600)=1),\"Y\",\"N\")))","v":""},{"$f":"IF(OR('Enrollment Form'!$CK600=\"\",'Enrollment Form'!$CK600=\"No\"),\"-\",IF(COUNTA('Enrollment Form'!$CM600:$CN600)=2,\"Y\",\"N\"))","v":"-"},{"$f":"IF($B593=\"N\",\"\",IF(COUNTIF('Enrollment Form'!$CZ600:$DO600,\"Other\")=COUNTA('Enrollment Form'!$DF600,'Enrollment Form'!$DA600,'Enrollment Form'!$DK600,'Enrollment Form'!$DP600),\"Y\",\"N\"))","v":""},{"$f":"IF($B593=\"N\",\"\",IF(OR('Enrollment Form'!B600<>\"Subscriber\",'Enrollment Form'!C600=\"ROC\",COUNTIF('Enrollment Form'!AS600:AT600,\"Yes\")>=1),\"-\",IF(AND('Enrollment Form'!C600=\"Enroll\",COUNTIF('Enrollment Form'!AS600:AT600,\"No\")=2,'Enrollment Form'!AU600=\"\"),\"N\",\"Y\")))","v":""},{"$f":"IF(OR(B593=\"N\",'Enrollment Form'!B600<>\"Subscriber\",'Enrollment Form'!C600=\"ROC\",'Enrollment Form'!O600<>\"Multiple of Salary\"),\"-\",IF(COUNTA('Enrollment Form'!T600:U600)<2,\"N\",\"Y\"))","v":"-"},{"$f":"IF(B593=\"N\",\"\",IF(OR('Enrollment Form'!C600=\"ROC\",'Enrollment Form'!B600<>\"Subscriber\",'Enrollment Form'!O600=\"Waive\",'Enrollment Form'!O600=\"\"),\"-\",IF('Enrollment Form'!P600=\"\",\"N\",\"Y\")))","v":""},{"$f":"IF($B593=\"N\",\"\",IF(AND('Enrollment Form'!$C600=\"ROC\",'Enrollment Form'!$DS600<>\"\"),\"Y\",IF(AND('Enrollment Form'!$C600=\"ROC\",'Enrollment Form'!$DS600=\"\"),\"N\",IF(AND('Enrollment Form'!$C600=\"Enroll\",'Enrollment Form'!$B600=\"Subscriber\",'Enrollment Form'!$CQ600=\"No\",'Enrollment Form'!$DS600=\"\"),\"N\",IF(AND('Enrollment Form'!$C600=\"Enroll\",'Enrollment Form'!$B600=\"Subscriber\",'Enrollment Form'!$CQ600=\"Yes\"),\"-\",\"Y\")))))","v":""},{"$f":"IF($B593=\"N\",\"\",IF(AND('Enrollment Form'!$C600=\"ROC\",'Enrollment Form'!$DT600<>\"\"),\"Y\",IF(AND('Enrollment Form'!$C600=\"ROC\",'Enrollment Form'!$DT600=\"\"),\"N\",IF(AND('Enrollment Form'!$C600=\"Enroll\",'Enrollment Form'!$B600=\"Subscriber\",'Enrollment Form'!$CQ600=\"No\",'Enrollment Form'!$DT600=\"\"),\"N\",IF(AND('Enrollment Form'!$C600=\"Enroll\",'Enrollment Form'!$B600=\"Subscriber\",'Enrollment Form'!$CQ600=\"Yes\"),\"-\",\"Y\")))))","v":""},{"$f":"IF('Enrollment Form'!AH600=\"\",\"\",IF(ISERROR(SEARCH(\".\",'Enrollment Form'!AH600,SEARCH(\"@\",'Enrollment Form'!AH600))),\"N\",\"Y\"))","v":""},{"$f":"IF(OR($B593=\"N\",'Enrollment Form'!$G600=\"\"),\"\",IF('Enrollment Form'!$B600<>\"Subscriber\",\"-\",IF(COUNTIF('Enrollment Form'!$AS600:$AT600,\"Yes\")=2,\"N\",\"Y\")))","v":""},{"$f":"IF(OR('Enrollment Form'!$CC600=\"\",'Enrollment Form'!$CC600=\"No\"),\"-\",IF(AND('Enrollment Form'!$CC600=\"Yes\",'Enrollment Form'!$CD600=\"\"),\"N\",\"Y\"))","v":"-"},{"$f":"IF(OR('Enrollment Form'!$CE600=\"\",'Enrollment Form'!$CE600=\"No\"),\"-\",IF(AND('Enrollment Form'!$CE600=\"Yes\",'Enrollment Form'!$CF600=\"\"),\"N\",\"Y\"))","v":"-"},{"$f":"IF(OR('Enrollment Form'!$CG600=\"\",'Enrollment Form'!$CG600=\"No\"),\"-\",IF(AND('Enrollment Form'!$CG600=\"Yes\",'Enrollment Form'!$CH600=\"\"),\"N\",\"Y\"))","v":"-"},{"$f":"IF(OR('Enrollment Form'!$CG600=\"\",'Enrollment Form'!$CG600=\"No\"),\"-\",IF(AND('Enrollment Form'!$CG600=\"Yes\",'Enrollment Form'!$CI600=\"\"),\"N\",\"Y\"))","v":"-"},{"$f":"IF('Enrollment Form'!B600<>\"Subscriber\",\"-\",IF(AND('Enrollment Form'!B600=\"Subscriber\",'Enrollment Form'!C600=\"Enroll\",'Enrollment Form'!AA600=\"\"),\"N\",\"Y\"))","v":"-"},{"$f":"IF(OR('Enrollment Form'!B600=\"Subscriber\",'Enrollment Form'!B600=\"\"),\"-\",IF('Enrollment Form'!BI600=\"\",\"N\",\"Y\"))","v":"-"},{"$f":"IF('Enrollment Form'!B600<>\"Subscriber\",\"-\",IF(AND('Enrollment Form'!B600=\"Subscriber\",'Enrollment Form'!G600=\"\"),\"N\",\"Y\"))","v":"-"},{"$f":"IF('Enrollment Form'!A600=\"\",\"\",IF('Enrollment Form'!B600=\"Subscriber\",\"-\",IF(AND('Enrollment Form'!B600<>\"Subscriber\",'Enrollment Form'!G600='Enrollment Form'!H600),\"N\",\"Y\")))","v":""},0]
[601,{"$f":"IF('Enrollment Form'!$A601<>\"\",\"Y\",\"N\")","v":"N"},{"$f":"IF(AND('Enrollment Form'!$B601=\"\",'Enrollment Form'!$C601<>\"\"),\"N\",IF($B594=\"N\",\"\",\"Y\"))","v":""},{"$f":"IF(OR($B594=\"N\",'Enrollment Form'!G601=\"\"),\"\",IF('Enrollment Form'!$B601<>\"Subscriber\",\"\",IF('Enrollment Form'!$G601='Enrollment Form'!$H601,\"Y\",\"N\")))","v":""},{"$f":"IF($B594=\"N\",\"\",IF(AND(COUNTIFS('Enrollment Form'!$H$11:$H$1000,'Enrollment Form'!$H601,'Enrollment Form'!$B$11:$B$1000,'Enrollment Form'!$B601)>1,'Enrollment Form'!$H601<>\"\"),\"N\",\"Y\"))","v":""},{"$f":"IF($B594=\"N\",\"\",IF(LEN('Enrollment Form'!$Y601)=0,\"\",IF(LEN('Enrollment Form'!$Y601)<>5,\"N\",\"Y\")))","v":""},{"$f":"IF($B594=\"N\",\"\",IF(LEN('Enrollment Form'!$AD601=0),\"\",IF(LEN('Enrollment Form'!$AD601)<>5,\"N\",\"Y\")))","v":""},{"$f":"IF($B594=\"N\",\"\",IF(LEN('Enrollment Form'!$BL601=0),\"\",IF(LEN('Enrollment Form'!$BL601)<>5,\"N\",\"Y\")))","v":""},{"$f":"IF($B594=\"N\",\"\",IF(LEN('Enrollment Form'!$AE601)=0,\"\",IF(LEN('Enrollment Form'!$AE601)<>10,\"N\",\"Y\")))","v":""},{"$f":"IF($B594=\"N\",\"\",IF(LEN('Enrollment Form'!$AF601)=0,\"\",IF(LEN('Enrollment Form'!$AF601)<>10,\"N\",\"Y\")))","v":""},{"$f":"IF('Enrollment Form'!$O601<>\"Graded\",\"-\",IF(AND('Enrollment Form'!$O601=\"Graded\",'Enrollment Form'!$AO601<>\"\"),\"Y\",\"N\"))","v":"-"},{"$f":"IF($B594=\"N\",\"\",IF(OR('Enrollment Form'!$B601<>\"Subscriber\",'Enrollment Form'!$C601=\"ROC\"),\"-\",IF(AND('Enrollment Form'!$B601=\"Subscriber\",'Enrollment Form'!$C601=\"Enroll\",'Enrollment Form'!$AJ601<>\"\"),\"Y\",\"N\")))","v":""},{"$f":"IF($B594=\"N\",\"\",IF(OR('Enrollment Form'!$B601<>\"Subscriber\",'Enrollment Form'!$C601=\"ROC\"),\"-\",IF(AND('Enrollment Form'!$B601=\"Subscriber\",'Enrollment Form'!$C601=\"Enroll\",'Enrollment Form'!$AK601<>\"\"),\"Y\",\"N\")))","v":""},{"$f":"IF($B594=\"N\",\"\",IF(OR('Enrollment Form'!$B601<>\"Subscriber\",'Enrollment Form'!$C601=\"ROC\"),\"-\",IF(AND('Enrollment Form'!$B601=\"Subscriber\",'Enrollment Form'!$C601=\"Enroll\",'Enrollment Form'!$AL601<>\"\"),\"Y\",\"N\")))","v":""},{"$f":"IF($B594=\"N\",\"\",IF(OR('Enrollment Form'!$B601<>\"Subscriber\",'Enrollment Form'!$C601=\"ROC\"),\"-\",IF(AND('Enrollment Form'!$B601=\"Subscriber\",'Enrollment Form'!$C601=\"Enroll\",'Enrollment Form'!$AM601<>\"\"),\"Y\",\"N\")))","v":""},{"$f":"IF($B594=\"N\",\"\",IF(OR('Enrollment Form'!$B601<>\"Subscriber\",'Enrollment Form'!$C601=\"ROC\"),\"-\",IF(AND('Enrollment Form'!$B601=\"Subscriber\",'Enrollment Form'!$C601=\"Enroll\",'Enrollment Form'!$AN601<>\"\"),\"Y\",\"N\")))","v":""},{"$f":"IF($B594=\"N\",\"\",IF(OR('Enrollment Form'!$B601<>\"Subscriber\",'Enrollment Form'!$C601=\"ROC\"),\"-\",IF(AND('Enrollment Form'!$B601=\"Subscriber\",'Enrollment Form'!$C601=\"Enroll\",'Enrollment Form'!$AP601<>\"\"),\"Y\",\"N\")))","v":""},{"$f":"IF($B594=\"N\",\"\",IF($Q594=\"-\",\"-\",IF(AND($Q594=\"Y\",'Enrollment Form'!$AP601=\"No\"),\"-\",IF(AND($Q594=\"Y\",'Enrollment Form'!$AP601=\"Yes\",'Enrollment Form'!$AQ601<>\"\"),\"Y\",\"N\"))))","v":""},{"$f":"IF($B594=\"N\",\"\",IF(OR('Enrollment Form'!$B601<>\"Subscriber\",'Enrollment Form'!$C601=\"ROC\"),\"-\",IF(AND('Enrollment Form'!$B601=\"Subscriber\",'Enrollment Form'!$C601=\"Enroll\",'Enrollment Form'!$CO601<>\"\"),\"Y\",\"N\")))","v":""},{"$f":"IF($B594=\"N\",\"\",IF($S594=\"-\",\"-\",IF(AND($S594=\"Y\",'Enrollment Form'!$CO601=\"No\"),\"-\",IF(AND($S594=\"Y\",'Enrollment Form'!$CO601=\"Yes\",'Enrollment Form'!$CP601<>\"\"),\"Y\",\"N\"))))","v":""},{"$f":"IF(OR('Enrollment Form'!$AV601=\"Yes\",'Enrollment Form'!$AV601=\"\"),\"-\",IF(AND('Enrollment Form'!$AV601=\"No\",ISERROR(FIND(\"HMO\",VLOOKUP('Enrollment Form'!G601,'Enrollment Form'!H$11:J$1000,3,FALSE),1))=FALSE,COUNTA('Enrollment Form'!$AW601:$AZ601)=4),\"Y\",\"N\"))","v":"-"},{"$f":"IF($B594=\"N\",\"\",IF('Enrollment Form'!$B601=\"Subscriber\",\"-\",IF(COUNTA('Enrollment Form'!$BE601,'Enrollment Form'!$BG601)=2,\"Y\",\"N\")))","v":""},{"$f":"IF($B594=\"N\",\"\",IF(OR('Enrollment Form'!$AU601=\"\",'Enrollment Form'!$AU601=\"No\"),\"-\",IF(AND('Enrollment Form'!$AU601=\"Yes\",COUNTA('Enrollment Form'!$CK601)=1),\"Y\",\"N\")))","v":""},{"$f":"IF(OR('Enrollment Form'!$CK601=\"\",'Enrollment Form'!$CK601=\"No\"),\"-\",IF(COUNTA('Enrollment Form'!$CM601:$CN601)=2,\"Y\",\"N\"))","v":"-"},{"$f":"IF($B594=\"N\",\"\",IF(COUNTIF('Enrollment Form'!$CZ601:$DO601,\"Other\")=COUNTA('Enrollment Form'!$DF601,'Enrollment Form'!$DA601,'Enrollment Form'!$DK601,'Enrollment Form'!$DP601),\"Y\",\"N\"))","v":""},{"$f":"IF($B594=\"N\",\"\",IF(OR('Enrollment Form'!B601<>\"Subscriber\",'Enrollment Form'!C601=\"ROC\",COUNTIF('Enrollment Form'!AS601:AT601,\"Yes\")>=1),\"-\",IF(AND('Enrollment Form'!C601=\"Enroll\",COUNTIF('Enrollment Form'!AS601:AT601,\"No\")=2,'Enrollment Form'!AU601=\"\"),\"N\",\"Y\")))","v":""},{"$f":"IF(OR(B594=\"N\",'Enrollment Form'!B601<>\"Subscriber\",'Enrollment Form'!C601=\"ROC\",'Enrollment Form'!O601<>\"Multiple of Salary\"),\"-\",IF(COUNTA('Enrollment Form'!T601:U601)<2,\"N\",\"Y\"))","v":"-"},{"$f":"IF(B594=\"N\",\"\",IF(OR('Enrollment Form'!C601=\"ROC\",'Enrollment Form'!B601<>\"Subscriber\",'Enrollment Form'!O601=\"Waive\",'Enrollment Form'!O601=\"\"),\"-\",IF('Enrollment Form'!P601=\"\",\"N\",\"Y\")))","v":""},{"$f":"IF($B594=\"N\",\"\",IF(AND('Enrollment Form'!$C601=\"ROC\",'Enrollment Form'!$DS601<>\"\"),\"Y\",IF(AND('Enrollment Form'!$C601=\"ROC\",'Enrollment Form'!$DS601=\"\"),\"N\",IF(AND('Enrollment Form'!$C601=\"Enroll\",'Enrollment Form'!$B601=\"Subscriber\",'Enrollment Form'!$CQ601=\"No\",'Enrollment Form'!$DS601=\"\"),\"N\",IF(AND('Enrollment Form'!$C601=\"Enroll\",'Enrollment Form'!$B601=\"Subscriber\",'Enrollment Form'!$CQ601=\"Yes\"),\"-\",\"Y\")))))","v":""},{"$f":"IF($B594=\"N\",\"\",IF(AND('Enrollment Form'!$C601=\"ROC\",'Enrollment Form'!$DT601<>\"\"),\"Y\",IF(AND('Enrollment Form'!$C601=\"ROC\",'Enrollment Form'!$DT601=\"\"),\"N\",IF(AND('Enrollment Form'!$C601=\"Enroll\",'Enrollment Form'!$B601=\"Subscriber\",'Enrollment Form'!$CQ601=\"No\",'Enrollment Form'!$DT601=\"\"),\"N\",IF(AND('Enrollment Form'!$C601=\"Enroll\",'Enrollment Form'!$B601=\"Subscriber\",'Enrollment Form'!$CQ601=\"Yes\"),\"-\",\"Y\")))))","v":""},{"$f":"IF('Enrollment Form'!AH601=\"\",\"\",IF(ISERROR(SEARCH(\".\",'Enrollment Form'!AH601,SEARCH(\"@\",'Enrollment Form'!AH601))),\"N\",\"Y\"))","v":""},{"$f":"IF(OR($B594=\"N\",'Enrollment Form'!$G601=\"\"),\"\",IF('Enrollment Form'!$B601<>\"Subscriber\",\"-\",IF(COUNTIF('Enrollment Form'!$AS601:$AT601,\"Yes\")=2,\"N\",\"Y\")))","v":""},{"$f":"IF(OR('Enrollment Form'!$CC601=\"\",'Enrollment Form'!$CC601=\"No\"),\"-\",IF(AND('Enrollment Form'!$CC601=\"Yes\",'Enrollment Form'!$CD601=\"\"),\"N\",\"Y\"))","v":"-"},{"$f":"IF(OR('Enrollment Form'!$CE601=\"\",'Enrollment Form'!$CE601=\"No\"),\"-\",IF(AND('Enrollment Form'!$CE601=\"Yes\",'Enrollment Form'!$CF601=\"\"),\"N\",\"Y\"))","v":"-"},{"$f":"IF(OR('Enrollment Form'!$CG601=\"\",'Enrollment Form'!$CG601=\"No\"),\"-\",IF(AND('Enrollment Form'!$CG601=\"Yes\",'Enrollment Form'!$CH601=\"\"),\"N\",\"Y\"))","v":"-"},{"$f":"IF(OR('Enrollment Form'!$CG601=\"\",'Enrollment Form'!$CG601=\"No\"),\"-\",IF(AND('Enrollment Form'!$CG601=\"Yes\",'Enrollment Form'!$CI601=\"\"),\"N\",\"Y\"))","v":"-"},{"$f":"IF('Enrollment Form'!B601<>\"Subscriber\",\"-\",IF(AND('Enrollment Form'!B601=\"Subscriber\",'Enrollment Form'!C601=\"Enroll\",'Enrollment Form'!AA601=\"\"),\"N\",\"Y\"))","v":"-"},{"$f":"IF(OR('Enrollment Form'!B601=\"Subscriber\",'Enrollment Form'!B601=\"\"),\"-\",IF('Enrollment Form'!BI601=\"\",\"N\",\"Y\"))","v":"-"},{"$f":"IF('Enrollment Form'!B601<>\"Subscriber\",\"-\",IF(AND('Enrollment Form'!B601=\"Subscriber\",'Enrollment Form'!G601=\"\"),\"N\",\"Y\"))","v":"-"},{"$f":"IF('Enrollment Form'!A601=\"\",\"\",IF('Enrollment Form'!B601=\"Subscriber\",\"-\",IF(AND('Enrollment Form'!B601<>\"Subscriber\",'Enrollment Form'!G601='Enrollment Form'!H601),\"N\",\"Y\")))","v":""},0]
[602,{"$f":"IF('Enrollment Form'!$A602<>\"\",\"Y\",\"N\")","v":"N"},{"$f":"IF(AND('Enrollment Form'!$B602=\"\",'Enrollment Form'!$C602<>\"\"),\"N\",IF($B595=\"N\",\"\",\"Y\"))","v":""},{"$f":"IF(OR($B595=\"N\",'Enrollment Form'!G602=\"\"),\"\",IF('Enrollment Form'!$B602<>\"Subscriber\",\"\",IF('Enrollment Form'!$G602='Enrollment Form'!$H602,\"Y\",\"N\")))","v":""},{"$f":"IF($B595=\"N\",\"\",IF(AND(COUNTIFS('Enrollment Form'!$H$11:$H$1000,'Enrollment Form'!$H602,'Enrollment Form'!$B$11:$B$1000,'Enrollment Form'!$B602)>1,'Enrollment Form'!$H602<>\"\"),\"N\",\"Y\"))","v":""},{"$f":"IF($B595=\"N\",\"\",IF(LEN('Enrollment Form'!$Y602)=0,\"\",IF(LEN('Enrollment Form'!$Y602)<>5,\"N\",\"Y\")))","v":""},{"$f":"IF($B595=\"N\",\"\",IF(LEN('Enrollment Form'!$AD602=0),\"\",IF(LEN('Enrollment Form'!$AD602)<>5,\"N\",\"Y\")))","v":""},{"$f":"IF($B595=\"N\",\"\",IF(LEN('Enrollment Form'!$BL602=0),\"\",IF(LEN('Enrollment Form'!$BL602)<>5,\"N\",\"Y\")))","v":""},{"$f":"IF($B595=\"N\",\"\",IF(LEN('Enrollment Form'!$AE602)=0,\"\",IF(LEN('Enrollment Form'!$AE602)<>10,\"N\",\"Y\")))","v":""},{"$f":"IF($B595=\"N\",\"\",IF(LEN('Enrollment Form'!$AF602)=0,\"\",IF(LEN('Enrollment Form'!$AF602)<>10,\"N\",\"Y\")))","v":""},{"$f":"IF('Enrollment Form'!$O602<>\"Graded\",\"-\",IF(AND('Enrollment Form'!$O602=\"Graded\",'Enrollment Form'!$AO602<>\"\"),\"Y\",\"N\"))","v":"-"},{"$f":"IF($B595=\"N\",\"\",IF(OR('Enrollment Form'!$B602<>\"Subscriber\",'Enrollment Form'!$C602=\"ROC\"),\"-\",IF(AND('Enrollment Form'!$B602=\"Subscriber\",'Enrollment Form'!$C602=\"Enroll\",'Enrollment Form'!$AJ602<>\"\"),\"Y\",\"N\")))","v":""},{"$f":"IF($B595=\"N\",\"\",IF(OR('Enrollment Form'!$B602<>\"Subscriber\",'Enrollment Form'!$C602=\"ROC\"),\"-\",IF(AND('Enrollment Form'!$B602=\"Subscriber\",'Enrollment Form'!$C602=\"Enroll\",'Enrollment Form'!$AK602<>\"\"),\"Y\",\"N\")))","v":""},{"$f":"IF($B595=\"N\",\"\",IF(OR('Enrollment Form'!$B602<>\"Subscriber\",'Enrollment Form'!$C602=\"ROC\"),\"-\",IF(AND('Enrollment Form'!$B602=\"Subscriber\",'Enrollment Form'!$C602=\"Enroll\",'Enrollment Form'!$AL602<>\"\"),\"Y\",\"N\")))","v":""},{"$f":"IF($B595=\"N\",\"\",IF(OR('Enrollment Form'!$B602<>\"Subscriber\",'Enrollment Form'!$C602=\"ROC\"),\"-\",IF(AND('Enrollment Form'!$B602=\"Subscriber\",'Enrollment Form'!$C602=\"Enroll\",'Enrollment Form'!$AM602<>\"\"),\"Y\",\"N\")))","v":""},{"$f":"IF($B595=\"N\",\"\",IF(OR('Enrollment Form'!$B602<>\"Subscriber\",'Enrollment Form'!$C602=\"ROC\"),\"-\",IF(AND('Enrollment Form'!$B602=\"Subscriber\",'Enrollment Form'!$C602=\"Enroll\",'Enrollment Form'!$AN602<>\"\"),\"Y\",\"N\")))","v":""},{"$f":"IF($B595=\"N\",\"\",IF(OR('Enrollment Form'!$B602<>\"Subscriber\",'Enrollment Form'!$C602=\"ROC\"),\"-\",IF(AND('Enrollment Form'!$B602=\"Subscriber\",'Enrollment Form'!$C602=\"Enroll\",'Enrollment Form'!$AP602<>\"\"),\"Y\",\"N\")))","v":""},{"$f":"IF($B595=\"N\",\"\",IF($Q595=\"-\",\"-\",IF(AND($Q595=\"Y\",'Enrollment Form'!$AP602=\"No\"),\"-\",IF(AND($Q595=\"Y\",'Enrollment Form'!$AP602=\"Yes\",'Enrollment Form'!$AQ602<>\"\"),\"Y\",\"N\"))))","v":""},{"$f":"IF($B595=\"N\",\"\",IF(OR('Enrollment Form'!$B602<>\"Subscriber\",'Enrollment Form'!$C602=\"ROC\"),\"-\",IF(AND('Enrollment Form'!$B602=\"Subscriber\",'Enrollment Form'!$C602=\"Enroll\",'Enrollment Form'!$CO602<>\"\"),\"Y\",\"N\")))","v":""},{"$f":"IF($B595=\"N\",\"\",IF($S595=\"-\",\"-\",IF(AND($S595=\"Y\",'Enrollment Form'!$CO602=\"No\"),\"-\",IF(AND($S595=\"Y\",'Enrollment Form'!$CO602=\"Yes\",'Enrollment Form'!$CP602<>\"\"),\"Y\",\"N\"))))","v":""},{"$f":"IF(OR('Enrollment Form'!$AV602=\"Yes\",'Enrollment Form'!$AV602=\"\"),\"-\",IF(AND('Enrollment Form'!$AV602=\"No\",ISERROR(FIND(\"HMO\",VLOOKUP('Enrollment Form'!G602,'Enrollment Form'!H$11:J$1000,3,FALSE),1))=FALSE,COUNTA('Enrollment Form'!$AW602:$AZ602)=4),\"Y\",\"N\"))","v":"-"},{"$f":"IF($B595=\"N\",\"\",IF('Enrollment Form'!$B602=\"Subscriber\",\"-\",IF(COUNTA('Enrollment Form'!$BE602,'Enrollment Form'!$BG602)=2,\"Y\",\"N\")))","v":""},{"$f":"IF($B595=\"N\",\"\",IF(OR('Enrollment Form'!$AU602=\"\",'Enrollment Form'!$AU602=\"No\"),\"-\",IF(AND('Enrollment Form'!$AU602=\"Yes\",COUNTA('Enrollment Form'!$CK602)=1),\"Y\",\"N\")))","v":""},{"$f":"IF(OR('Enrollment Form'!$CK602=\"\",'Enrollment Form'!$CK602=\"No\"),\"-\",IF(COUNTA('Enrollment Form'!$CM602:$CN602)=2,\"Y\",\"N\"))","v":"-"},{"$f":"IF($B595=\"N\",\"\",IF(COUNTIF('Enrollment Form'!$CZ602:$DO602,\"Other\")=COUNTA('Enrollment Form'!$DF602,'Enrollment Form'!$DA602,'Enrollment Form'!$DK602,'Enrollment Form'!$DP602),\"Y\",\"N\"))","v":""},{"$f":"IF($B595=\"N\",\"\",IF(OR('Enrollment Form'!B602<>\"Subscriber\",'Enrollment Form'!C602=\"ROC\",COUNTIF('Enrollment Form'!AS602:AT602,\"Yes\")>=1),\"-\",IF(AND('Enrollment Form'!C602=\"Enroll\",COUNTIF('Enrollment Form'!AS602:AT602,\"No\")=2,'Enrollment Form'!AU602=\"\"),\"N\",\"Y\")))","v":""},{"$f":"IF(OR(B595=\"N\",'Enrollment Form'!B602<>\"Subscriber\",'Enrollment Form'!C602=\"ROC\",'Enrollment Form'!O602<>\"Multiple of Salary\"),\"-\",IF(COUNTA('Enrollment Form'!T602:U602)<2,\"N\",\"Y\"))","v":"-"},{"$f":"IF(B595=\"N\",\"\",IF(OR('Enrollment Form'!C602=\"ROC\",'Enrollment Form'!B602<>\"Subscriber\",'Enrollment Form'!O602=\"Waive\",'Enrollment Form'!O602=\"\"),\"-\",IF('Enrollment Form'!P602=\"\",\"N\",\"Y\")))","v":""},{"$f":"IF($B595=\"N\",\"\",IF(AND('Enrollment Form'!$C602=\"ROC\",'Enrollment Form'!$DS602<>\"\"),\"Y\",IF(AND('Enrollment Form'!$C602=\"ROC\",'Enrollment Form'!$DS602=\"\"),\"N\",IF(AND('Enrollment Form'!$C602=\"Enroll\",'Enrollment Form'!$B602=\"Subscriber\",'Enrollment Form'!$CQ602=\"No\",'Enrollment Form'!$DS602=\"\"),\"N\",IF(AND('Enrollment Form'!$C602=\"Enroll\",'Enrollment Form'!$B602=\"Subscriber\",'Enrollment Form'!$CQ602=\"Yes\"),\"-\",\"Y\")))))","v":""},{"$f":"IF($B595=\"N\",\"\",IF(AND('Enrollment Form'!$C602=\"ROC\",'Enrollment Form'!$DT602<>\"\"),\"Y\",IF(AND('Enrollment Form'!$C602=\"ROC\",'Enrollment Form'!$DT602=\"\"),\"N\",IF(AND('Enrollment Form'!$C602=\"Enroll\",'Enrollment Form'!$B602=\"Subscriber\",'Enrollment Form'!$CQ602=\"No\",'Enrollment Form'!$DT602=\"\"),\"N\",IF(AND('Enrollment Form'!$C602=\"Enroll\",'Enrollment Form'!$B602=\"Subscriber\",'Enrollment Form'!$CQ602=\"Yes\"),\"-\",\"Y\")))))","v":""},{"$f":"IF('Enrollment Form'!AH602=\"\",\"\",IF(ISERROR(SEARCH(\".\",'Enrollment Form'!AH602,SEARCH(\"@\",'Enrollment Form'!AH602))),\"N\",\"Y\"))","v":""},{"$f":"IF(OR($B595=\"N\",'Enrollment Form'!$G602=\"\"),\"\",IF('Enrollment Form'!$B602<>\"Subscriber\",\"-\",IF(COUNTIF('Enrollment Form'!$AS602:$AT602,\"Yes\")=2,\"N\",\"Y\")))","v":""},{"$f":"IF(OR('Enrollment Form'!$CC602=\"\",'Enrollment Form'!$CC602=\"No\"),\"-\",IF(AND('Enrollment Form'!$CC602=\"Yes\",'Enrollment Form'!$CD602=\"\"),\"N\",\"Y\"))","v":"-"},{"$f":"IF(OR('Enrollment Form'!$CE602=\"\",'Enrollment Form'!$CE602=\"No\"),\"-\",IF(AND('Enrollment Form'!$CE602=\"Yes\",'Enrollment Form'!$CF602=\"\"),\"N\",\"Y\"))","v":"-"},{"$f":"IF(OR('Enrollment Form'!$CG602=\"\",'Enrollment Form'!$CG602=\"No\"),\"-\",IF(AND('Enrollment Form'!$CG602=\"Yes\",'Enrollment Form'!$CH602=\"\"),\"N\",\"Y\"))","v":"-"},{"$f":"IF(OR('Enrollment Form'!$CG602=\"\",'Enrollment Form'!$CG602=\"No\"),\"-\",IF(AND('Enrollment Form'!$CG602=\"Yes\",'Enrollment Form'!$CI602=\"\"),\"N\",\"Y\"))","v":"-"},{"$f":"IF('Enrollment Form'!B602<>\"Subscriber\",\"-\",IF(AND('Enrollment Form'!B602=\"Subscriber\",'Enrollment Form'!C602=\"Enroll\",'Enrollment Form'!AA602=\"\"),\"N\",\"Y\"))","v":"-"},{"$f":"IF(OR('Enrollment Form'!B602=\"Subscriber\",'Enrollment Form'!B602=\"\"),\"-\",IF('Enrollment Form'!BI602=\"\",\"N\",\"Y\"))","v":"-"},{"$f":"IF('Enrollment Form'!B602<>\"Subscriber\",\"-\",IF(AND('Enrollment Form'!B602=\"Subscriber\",'Enrollment Form'!G602=\"\"),\"N\",\"Y\"))","v":"-"},{"$f":"IF('Enrollment Form'!A602=\"\",\"\",IF('Enrollment Form'!B602=\"Subscriber\",\"-\",IF(AND('Enrollment Form'!B602<>\"Subscriber\",'Enrollment Form'!G602='Enrollment Form'!H602),\"N\",\"Y\")))","v":""},0]
[603,{"$f":"IF('Enrollment Form'!$A603<>\"\",\"Y\",\"N\")","v":"N"},{"$f":"IF(AND('Enrollment Form'!$B603=\"\",'Enrollment Form'!$C603<>\"\"),\"N\",IF($B596=\"N\",\"\",\"Y\"))","v":""},{"$f":"IF(OR($B596=\"N\",'Enrollment Form'!G603=\"\"),\"\",IF('Enrollment Form'!$B603<>\"Subscriber\",\"\",IF('Enrollment Form'!$G603='Enrollment Form'!$H603,\"Y\",\"N\")))","v":""},{"$f":"IF($B596=\"N\",\"\",IF(AND(COUNTIFS('Enrollment Form'!$H$11:$H$1000,'Enrollment Form'!$H603,'Enrollment Form'!$B$11:$B$1000,'Enrollment Form'!$B603)>1,'Enrollment Form'!$H603<>\"\"),\"N\",\"Y\"))","v":""},{"$f":"IF($B596=\"N\",\"\",IF(LEN('Enrollment Form'!$Y603)=0,\"\",IF(LEN('Enrollment Form'!$Y603)<>5,\"N\",\"Y\")))","v":""},{"$f":"IF($B596=\"N\",\"\",IF(LEN('Enrollment Form'!$AD603=0),\"\",IF(LEN('Enrollment Form'!$AD603)<>5,\"N\",\"Y\")))","v":""},{"$f":"IF($B596=\"N\",\"\",IF(LEN('Enrollment Form'!$BL603=0),\"\",IF(LEN('Enrollment Form'!$BL603)<>5,\"N\",\"Y\")))","v":""},{"$f":"IF($B596=\"N\",\"\",IF(LEN('Enrollment Form'!$AE603)=0,\"\",IF(LEN('Enrollment Form'!$AE603)<>10,\"N\",\"Y\")))","v":""},{"$f":"IF($B596=\"N\",\"\",IF(LEN('Enrollment Form'!$AF603)=0,\"\",IF(LEN('Enrollment Form'!$AF603)<>10,\"N\",\"Y\")))","v":""},{"$f":"IF('Enrollment Form'!$O603<>\"Graded\",\"-\",IF(AND('Enrollment Form'!$O603=\"Graded\",'Enrollment Form'!$AO603<>\"\"),\"Y\",\"N\"))","v":"-"},{"$f":"IF($B596=\"N\",\"\",IF(OR('Enrollment Form'!$B603<>\"Subscriber\",'Enrollment Form'!$C603=\"ROC\"),\"-\",IF(AND('Enrollment Form'!$B603=\"Subscriber\",'Enrollment Form'!$C603=\"Enroll\",'Enrollment Form'!$AJ603<>\"\"),\"Y\",\"N\")))","v":""},{"$f":"IF($B596=\"N\",\"\",IF(OR('Enrollment Form'!$B603<>\"Subscriber\",'Enrollment Form'!$C603=\"ROC\"),\"-\",IF(AND('Enrollment Form'!$B603=\"Subscriber\",'Enrollment Form'!$C603=\"Enroll\",'Enrollment Form'!$AK603<>\"\"),\"Y\",\"N\")))","v":""},{"$f":"IF($B596=\"N\",\"\",IF(OR('Enrollment Form'!$B603<>\"Subscriber\",'Enrollment Form'!$C603=\"ROC\"),\"-\",IF(AND('Enrollment Form'!$B603=\"Subscriber\",'Enrollment Form'!$C603=\"Enroll\",'Enrollment Form'!$AL603<>\"\"),\"Y\",\"N\")))","v":""},{"$f":"IF($B596=\"N\",\"\",IF(OR('Enrollment Form'!$B603<>\"Subscriber\",'Enrollment Form'!$C603=\"ROC\"),\"-\",IF(AND('Enrollment Form'!$B603=\"Subscriber\",'Enrollment Form'!$C603=\"Enroll\",'Enrollment Form'!$AM603<>\"\"),\"Y\",\"N\")))","v":""},{"$f":"IF($B596=\"N\",\"\",IF(OR('Enrollment Form'!$B603<>\"Subscriber\",'Enrollment Form'!$C603=\"ROC\"),\"-\",IF(AND('Enrollment Form'!$B603=\"Subscriber\",'Enrollment Form'!$C603=\"Enroll\",'Enrollment Form'!$AN603<>\"\"),\"Y\",\"N\")))","v":""},{"$f":"IF($B596=\"N\",\"\",IF(OR('Enrollment Form'!$B603<>\"Subscriber\",'Enrollment Form'!$C603=\"ROC\"),\"-\",IF(AND('Enrollment Form'!$B603=\"Subscriber\",'Enrollment Form'!$C603=\"Enroll\",'Enrollment Form'!$AP603<>\"\"),\"Y\",\"N\")))","v":""},{"$f":"IF($B596=\"N\",\"\",IF($Q596=\"-\",\"-\",IF(AND($Q596=\"Y\",'Enrollment Form'!$AP603=\"No\"),\"-\",IF(AND($Q596=\"Y\",'Enrollment Form'!$AP603=\"Yes\",'Enrollment Form'!$AQ603<>\"\"),\"Y\",\"N\"))))","v":""},{"$f":"IF($B596=\"N\",\"\",IF(OR('Enrollment Form'!$B603<>\"Subscriber\",'Enrollment Form'!$C603=\"ROC\"),\"-\",IF(AND('Enrollment Form'!$B603=\"Subscriber\",'Enrollment Form'!$C603=\"Enroll\",'Enrollment Form'!$CO603<>\"\"),\"Y\",\"N\")))","v":""},{"$f":"IF($B596=\"N\",\"\",IF($S596=\"-\",\"-\",IF(AND($S596=\"Y\",'Enrollment Form'!$CO603=\"No\"),\"-\",IF(AND($S596=\"Y\",'Enrollment Form'!$CO603=\"Yes\",'Enrollment Form'!$CP603<>\"\"),\"Y\",\"N\"))))","v":""},{"$f":"IF(OR('Enrollment Form'!$AV603=\"Yes\",'Enrollment Form'!$AV603=\"\"),\"-\",IF(AND('Enrollment Form'!$AV603=\"No\",ISERROR(FIND(\"HMO\",VLOOKUP('Enrollment Form'!G603,'Enrollment Form'!H$11:J$1000,3,FALSE),1))=FALSE,COUNTA('Enrollment Form'!$AW603:$AZ603)=4),\"Y\",\"N\"))","v":"-"},{"$f":"IF($B596=\"N\",\"\",IF('Enrollment Form'!$B603=\"Subscriber\",\"-\",IF(COUNTA('Enrollment Form'!$BE603,'Enrollment Form'!$BG603)=2,\"Y\",\"N\")))","v":""},{"$f":"IF($B596=\"N\",\"\",IF(OR('Enrollment Form'!$AU603=\"\",'Enrollment Form'!$AU603=\"No\"),\"-\",IF(AND('Enrollment Form'!$AU603=\"Yes\",COUNTA('Enrollment Form'!$CK603)=1),\"Y\",\"N\")))","v":""},{"$f":"IF(OR('Enrollment Form'!$CK603=\"\",'Enrollment Form'!$CK603=\"No\"),\"-\",IF(COUNTA('Enrollment Form'!$CM603:$CN603)=2,\"Y\",\"N\"))","v":"-"},{"$f":"IF($B596=\"N\",\"\",IF(COUNTIF('Enrollment Form'!$CZ603:$DO603,\"Other\")=COUNTA('Enrollment Form'!$DF603,'Enrollment Form'!$DA603,'Enrollment Form'!$DK603,'Enrollment Form'!$DP603),\"Y\",\"N\"))","v":""},{"$f":"IF($B596=\"N\",\"\",IF(OR('Enrollment Form'!B603<>\"Subscriber\",'Enrollment Form'!C603=\"ROC\",COUNTIF('Enrollment Form'!AS603:AT603,\"Yes\")>=1),\"-\",IF(AND('Enrollment Form'!C603=\"Enroll\",COUNTIF('Enrollment Form'!AS603:AT603,\"No\")=2,'Enrollment Form'!AU603=\"\"),\"N\",\"Y\")))","v":""},{"$f":"IF(OR(B596=\"N\",'Enrollment Form'!B603<>\"Subscriber\",'Enrollment Form'!C603=\"ROC\",'Enrollment Form'!O603<>\"Multiple of Salary\"),\"-\",IF(COUNTA('Enrollment Form'!T603:U603)<2,\"N\",\"Y\"))","v":"-"},{"$f":"IF(B596=\"N\",\"\",IF(OR('Enrollment Form'!C603=\"ROC\",'Enrollment Form'!B603<>\"Subscriber\",'Enrollment Form'!O603=\"Waive\",'Enrollment Form'!O603=\"\"),\"-\",IF('Enrollment Form'!P603=\"\",\"N\",\"Y\")))","v":""},{"$f":"IF($B596=\"N\",\"\",IF(AND('Enrollment Form'!$C603=\"ROC\",'Enrollment Form'!$DS603<>\"\"),\"Y\",IF(AND('Enrollment Form'!$C603=\"ROC\",'Enrollment Form'!$DS603=\"\"),\"N\",IF(AND('Enrollment Form'!$C603=\"Enroll\",'Enrollment Form'!$B603=\"Subscriber\",'Enrollment Form'!$CQ603=\"No\",'Enrollment Form'!$DS603=\"\"),\"N\",IF(AND('Enrollment Form'!$C603=\"Enroll\",'Enrollment Form'!$B603=\"Subscriber\",'Enrollment Form'!$CQ603=\"Yes\"),\"-\",\"Y\")))))","v":""},{"$f":"IF($B596=\"N\",\"\",IF(AND('Enrollment Form'!$C603=\"ROC\",'Enrollment Form'!$DT603<>\"\"),\"Y\",IF(AND('Enrollment Form'!$C603=\"ROC\",'Enrollment Form'!$DT603=\"\"),\"N\",IF(AND('Enrollment Form'!$C603=\"Enroll\",'Enrollment Form'!$B603=\"Subscriber\",'Enrollment Form'!$CQ603=\"No\",'Enrollment Form'!$DT603=\"\"),\"N\",IF(AND('Enrollment Form'!$C603=\"Enroll\",'Enrollment Form'!$B603=\"Subscriber\",'Enrollment Form'!$CQ603=\"Yes\"),\"-\",\"Y\")))))","v":""},{"$f":"IF('Enrollment Form'!AH603=\"\",\"\",IF(ISERROR(SEARCH(\".\",'Enrollment Form'!AH603,SEARCH(\"@\",'Enrollment Form'!AH603))),\"N\",\"Y\"))","v":""},{"$f":"IF(OR($B596=\"N\",'Enrollment Form'!$G603=\"\"),\"\",IF('Enrollment Form'!$B603<>\"Subscriber\",\"-\",IF(COUNTIF('Enrollment Form'!$AS603:$AT603,\"Yes\")=2,\"N\",\"Y\")))","v":""},{"$f":"IF(OR('Enrollment Form'!$CC603=\"\",'Enrollment Form'!$CC603=\"No\"),\"-\",IF(AND('Enrollment Form'!$CC603=\"Yes\",'Enrollment Form'!$CD603=\"\"),\"N\",\"Y\"))","v":"-"},{"$f":"IF(OR('Enrollment Form'!$CE603=\"\",'Enrollment Form'!$CE603=\"No\"),\"-\",IF(AND('Enrollment Form'!$CE603=\"Yes\",'Enrollment Form'!$CF603=\"\"),\"N\",\"Y\"))","v":"-"},{"$f":"IF(OR('Enrollment Form'!$CG603=\"\",'Enrollment Form'!$CG603=\"No\"),\"-\",IF(AND('Enrollment Form'!$CG603=\"Yes\",'Enrollment Form'!$CH603=\"\"),\"N\",\"Y\"))","v":"-"},{"$f":"IF(OR('Enrollment Form'!$CG603=\"\",'Enrollment Form'!$CG603=\"No\"),\"-\",IF(AND('Enrollment Form'!$CG603=\"Yes\",'Enrollment Form'!$CI603=\"\"),\"N\",\"Y\"))","v":"-"},{"$f":"IF('Enrollment Form'!B603<>\"Subscriber\",\"-\",IF(AND('Enrollment Form'!B603=\"Subscriber\",'Enrollment Form'!C603=\"Enroll\",'Enrollment Form'!AA603=\"\"),\"N\",\"Y\"))","v":"-"},{"$f":"IF(OR('Enrollment Form'!B603=\"Subscriber\",'Enrollment Form'!B603=\"\"),\"-\",IF('Enrollment Form'!BI603=\"\",\"N\",\"Y\"))","v":"-"},{"$f":"IF('Enrollment Form'!B603<>\"Subscriber\",\"-\",IF(AND('Enrollment Form'!B603=\"Subscriber\",'Enrollment Form'!G603=\"\"),\"N\",\"Y\"))","v":"-"},{"$f":"IF('Enrollment Form'!A603=\"\",\"\",IF('Enrollment Form'!B603=\"Subscriber\",\"-\",IF(AND('Enrollment Form'!B603<>\"Subscriber\",'Enrollment Form'!G603='Enrollment Form'!H603),\"N\",\"Y\")))","v":""},0]
[604,{"$f":"IF('Enrollment Form'!$A604<>\"\",\"Y\",\"N\")","v":"N"},{"$f":"IF(AND('Enrollment Form'!$B604=\"\",'Enrollment Form'!$C604<>\"\"),\"N\",IF($B597=\"N\",\"\",\"Y\"))","v":""},{"$f":"IF(OR($B597=\"N\",'Enrollment Form'!G604=\"\"),\"\",IF('Enrollment Form'!$B604<>\"Subscriber\",\"\",IF('Enrollment Form'!$G604='Enrollment Form'!$H604,\"Y\",\"N\")))","v":""},{"$f":"IF($B597=\"N\",\"\",IF(AND(COUNTIFS('Enrollment Form'!$H$11:$H$1000,'Enrollment Form'!$H604,'Enrollment Form'!$B$11:$B$1000,'Enrollment Form'!$B604)>1,'Enrollment Form'!$H604<>\"\"),\"N\",\"Y\"))","v":""},{"$f":"IF($B597=\"N\",\"\",IF(LEN('Enrollment Form'!$Y604)=0,\"\",IF(LEN('Enrollment Form'!$Y604)<>5,\"N\",\"Y\")))","v":""},{"$f":"IF($B597=\"N\",\"\",IF(LEN('Enrollment Form'!$AD604=0),\"\",IF(LEN('Enrollment Form'!$AD604)<>5,\"N\",\"Y\")))","v":""},{"$f":"IF($B597=\"N\",\"\",IF(LEN('Enrollment Form'!$BL604=0),\"\",IF(LEN('Enrollment Form'!$BL604)<>5,\"N\",\"Y\")))","v":""},{"$f":"IF($B597=\"N\",\"\",IF(LEN('Enrollment Form'!$AE604)=0,\"\",IF(LEN('Enrollment Form'!$AE604)<>10,\"N\",\"Y\")))","v":""},{"$f":"IF($B597=\"N\",\"\",IF(LEN('Enrollment Form'!$AF604)=0,\"\",IF(LEN('Enrollment Form'!$AF604)<>10,\"N\",\"Y\")))","v":""},{"$f":"IF('Enrollment Form'!$O604<>\"Graded\",\"-\",IF(AND('Enrollment Form'!$O604=\"Graded\",'Enrollment Form'!$AO604<>\"\"),\"Y\",\"N\"))","v":"-"},{"$f":"IF($B597=\"N\",\"\",IF(OR('Enrollment Form'!$B604<>\"Subscriber\",'Enrollment Form'!$C604=\"ROC\"),\"-\",IF(AND('Enrollment Form'!$B604=\"Subscriber\",'Enrollment Form'!$C604=\"Enroll\",'Enrollment Form'!$AJ604<>\"\"),\"Y\",\"N\")))","v":""},{"$f":"IF($B597=\"N\",\"\",IF(OR('Enrollment Form'!$B604<>\"Subscriber\",'Enrollment Form'!$C604=\"ROC\"),\"-\",IF(AND('Enrollment Form'!$B604=\"Subscriber\",'Enrollment Form'!$C604=\"Enroll\",'Enrollment Form'!$AK604<>\"\"),\"Y\",\"N\")))","v":""},{"$f":"IF($B597=\"N\",\"\",IF(OR('Enrollment Form'!$B604<>\"Subscriber\",'Enrollment Form'!$C604=\"ROC\"),\"-\",IF(AND('Enrollment Form'!$B604=\"Subscriber\",'Enrollment Form'!$C604=\"Enroll\",'Enrollment Form'!$AL604<>\"\"),\"Y\",\"N\")))","v":""},{"$f":"IF($B597=\"N\",\"\",IF(OR('Enrollment Form'!$B604<>\"Subscriber\",'Enrollment Form'!$C604=\"ROC\"),\"-\",IF(AND('Enrollment Form'!$B604=\"Subscriber\",'Enrollment Form'!$C604=\"Enroll\",'Enrollment Form'!$AM604<>\"\"),\"Y\",\"N\")))","v":""},{"$f":"IF($B597=\"N\",\"\",IF(OR('Enrollment Form'!$B604<>\"Subscriber\",'Enrollment Form'!$C604=\"ROC\"),\"-\",IF(AND('Enrollment Form'!$B604=\"Subscriber\",'Enrollment Form'!$C604=\"Enroll\",'Enrollment Form'!$AN604<>\"\"),\"Y\",\"N\")))","v":""},{"$f":"IF($B597=\"N\",\"\",IF(OR('Enrollment Form'!$B604<>\"Subscriber\",'Enrollment Form'!$C604=\"ROC\"),\"-\",IF(AND('Enrollment Form'!$B604=\"Subscriber\",'Enrollment Form'!$C604=\"Enroll\",'Enrollment Form'!$AP604<>\"\"),\"Y\",\"N\")))","v":""},{"$f":"IF($B597=\"N\",\"\",IF($Q597=\"-\",\"-\",IF(AND($Q597=\"Y\",'Enrollment Form'!$AP604=\"No\"),\"-\",IF(AND($Q597=\"Y\",'Enrollment Form'!$AP604=\"Yes\",'Enrollment Form'!$AQ604<>\"\"),\"Y\",\"N\"))))","v":""},{"$f":"IF($B597=\"N\",\"\",IF(OR('Enrollment Form'!$B604<>\"Subscriber\",'Enrollment Form'!$C604=\"ROC\"),\"-\",IF(AND('Enrollment Form'!$B604=\"Subscriber\",'Enrollment Form'!$C604=\"Enroll\",'Enrollment Form'!$CO604<>\"\"),\"Y\",\"N\")))","v":""},{"$f":"IF($B597=\"N\",\"\",IF($S597=\"-\",\"-\",IF(AND($S597=\"Y\",'Enrollment Form'!$CO604=\"No\"),\"-\",IF(AND($S597=\"Y\",'Enrollment Form'!$CO604=\"Yes\",'Enrollment Form'!$CP604<>\"\"),\"Y\",\"N\"))))","v":""},{"$f":"IF(OR('Enrollment Form'!$AV604=\"Yes\",'Enrollment Form'!$AV604=\"\"),\"-\",IF(AND('Enrollment Form'!$AV604=\"No\",ISERROR(FIND(\"HMO\",VLOOKUP('Enrollment Form'!G604,'Enrollment Form'!H$11:J$1000,3,FALSE),1))=FALSE,COUNTA('Enrollment Form'!$AW604:$AZ604)=4),\"Y\",\"N\"))","v":"-"},{"$f":"IF($B597=\"N\",\"\",IF('Enrollment Form'!$B604=\"Subscriber\",\"-\",IF(COUNTA('Enrollment Form'!$BE604,'Enrollment Form'!$BG604)=2,\"Y\",\"N\")))","v":""},{"$f":"IF($B597=\"N\",\"\",IF(OR('Enrollment Form'!$AU604=\"\",'Enrollment Form'!$AU604=\"No\"),\"-\",IF(AND('Enrollment Form'!$AU604=\"Yes\",COUNTA('Enrollment Form'!$CK604)=1),\"Y\",\"N\")))","v":""},{"$f":"IF(OR('Enrollment Form'!$CK604=\"\",'Enrollment Form'!$CK604=\"No\"),\"-\",IF(COUNTA('Enrollment Form'!$CM604:$CN604)=2,\"Y\",\"N\"))","v":"-"},{"$f":"IF($B597=\"N\",\"\",IF(COUNTIF('Enrollment Form'!$CZ604:$DO604,\"Other\")=COUNTA('Enrollment Form'!$DF604,'Enrollment Form'!$DA604,'Enrollment Form'!$DK604,'Enrollment Form'!$DP604),\"Y\",\"N\"))","v":""},{"$f":"IF($B597=\"N\",\"\",IF(OR('Enrollment Form'!B604<>\"Subscriber\",'Enrollment Form'!C604=\"ROC\",COUNTIF('Enrollment Form'!AS604:AT604,\"Yes\")>=1),\"-\",IF(AND('Enrollment Form'!C604=\"Enroll\",COUNTIF('Enrollment Form'!AS604:AT604,\"No\")=2,'Enrollment Form'!AU604=\"\"),\"N\",\"Y\")))","v":""},{"$f":"IF(OR(B597=\"N\",'Enrollment Form'!B604<>\"Subscriber\",'Enrollment Form'!C604=\"ROC\",'Enrollment Form'!O604<>\"Multiple of Salary\"),\"-\",IF(COUNTA('Enrollment Form'!T604:U604)<2,\"N\",\"Y\"))","v":"-"},{"$f":"IF(B597=\"N\",\"\",IF(OR('Enrollment Form'!C604=\"ROC\",'Enrollment Form'!B604<>\"Subscriber\",'Enrollment Form'!O604=\"Waive\",'Enrollment Form'!O604=\"\"),\"-\",IF('Enrollment Form'!P604=\"\",\"N\",\"Y\")))","v":""},{"$f":"IF($B597=\"N\",\"\",IF(AND('Enrollment Form'!$C604=\"ROC\",'Enrollment Form'!$DS604<>\"\"),\"Y\",IF(AND('Enrollment Form'!$C604=\"ROC\",'Enrollment Form'!$DS604=\"\"),\"N\",IF(AND('Enrollment Form'!$C604=\"Enroll\",'Enrollment Form'!$B604=\"Subscriber\",'Enrollment Form'!$CQ604=\"No\",'Enrollment Form'!$DS604=\"\"),\"N\",IF(AND('Enrollment Form'!$C604=\"Enroll\",'Enrollment Form'!$B604=\"Subscriber\",'Enrollment Form'!$CQ604=\"Yes\"),\"-\",\"Y\")))))","v":""},{"$f":"IF($B597=\"N\",\"\",IF(AND('Enrollment Form'!$C604=\"ROC\",'Enrollment Form'!$DT604<>\"\"),\"Y\",IF(AND('Enrollment Form'!$C604=\"ROC\",'Enrollment Form'!$DT604=\"\"),\"N\",IF(AND('Enrollment Form'!$C604=\"Enroll\",'Enrollment Form'!$B604=\"Subscriber\",'Enrollment Form'!$CQ604=\"No\",'Enrollment Form'!$DT604=\"\"),\"N\",IF(AND('Enrollment Form'!$C604=\"Enroll\",'Enrollment Form'!$B604=\"Subscriber\",'Enrollment Form'!$CQ604=\"Yes\"),\"-\",\"Y\")))))","v":""},{"$f":"IF('Enrollment Form'!AH604=\"\",\"\",IF(ISERROR(SEARCH(\".\",'Enrollment Form'!AH604,SEARCH(\"@\",'Enrollment Form'!AH604))),\"N\",\"Y\"))","v":""},{"$f":"IF(OR($B597=\"N\",'Enrollment Form'!$G604=\"\"),\"\",IF('Enrollment Form'!$B604<>\"Subscriber\",\"-\",IF(COUNTIF('Enrollment Form'!$AS604:$AT604,\"Yes\")=2,\"N\",\"Y\")))","v":""},{"$f":"IF(OR('Enrollment Form'!$CC604=\"\",'Enrollment Form'!$CC604=\"No\"),\"-\",IF(AND('Enrollment Form'!$CC604=\"Yes\",'Enrollment Form'!$CD604=\"\"),\"N\",\"Y\"))","v":"-"},{"$f":"IF(OR('Enrollment Form'!$CE604=\"\",'Enrollment Form'!$CE604=\"No\"),\"-\",IF(AND('Enrollment Form'!$CE604=\"Yes\",'Enrollment Form'!$CF604=\"\"),\"N\",\"Y\"))","v":"-"},{"$f":"IF(OR('Enrollment Form'!$CG604=\"\",'Enrollment Form'!$CG604=\"No\"),\"-\",IF(AND('Enrollment Form'!$CG604=\"Yes\",'Enrollment Form'!$CH604=\"\"),\"N\",\"Y\"))","v":"-"},{"$f":"IF(OR('Enrollment Form'!$CG604=\"\",'Enrollment Form'!$CG604=\"No\"),\"-\",IF(AND('Enrollment Form'!$CG604=\"Yes\",'Enrollment Form'!$CI604=\"\"),\"N\",\"Y\"))","v":"-"},{"$f":"IF('Enrollment Form'!B604<>\"Subscriber\",\"-\",IF(AND('Enrollment Form'!B604=\"Subscriber\",'Enrollment Form'!C604=\"Enroll\",'Enrollment Form'!AA604=\"\"),\"N\",\"Y\"))","v":"-"},{"$f":"IF(OR('Enrollment Form'!B604=\"Subscriber\",'Enrollment Form'!B604=\"\"),\"-\",IF('Enrollment Form'!BI604=\"\",\"N\",\"Y\"))","v":"-"},{"$f":"IF('Enrollment Form'!B604<>\"Subscriber\",\"-\",IF(AND('Enrollment Form'!B604=\"Subscriber\",'Enrollment Form'!G604=\"\"),\"N\",\"Y\"))","v":"-"},{"$f":"IF('Enrollment Form'!A604=\"\",\"\",IF('Enrollment Form'!B604=\"Subscriber\",\"-\",IF(AND('Enrollment Form'!B604<>\"Subscriber\",'Enrollment Form'!G604='Enrollment Form'!H604),\"N\",\"Y\")))","v":""},0]
[605,{"$f":"IF('Enrollment Form'!$A605<>\"\",\"Y\",\"N\")","v":"N"},{"$f":"IF(AND('Enrollment Form'!$B605=\"\",'Enrollment Form'!$C605<>\"\"),\"N\",IF($B598=\"N\",\"\",\"Y\"))","v":""},{"$f":"IF(OR($B598=\"N\",'Enrollment Form'!G605=\"\"),\"\",IF('Enrollment Form'!$B605<>\"Subscriber\",\"\",IF('Enrollment Form'!$G605='Enrollment Form'!$H605,\"Y\",\"N\")))","v":""},{"$f":"IF($B598=\"N\",\"\",IF(AND(COUNTIFS('Enrollment Form'!$H$11:$H$1000,'Enrollment Form'!$H605,'Enrollment Form'!$B$11:$B$1000,'Enrollment Form'!$B605)>1,'Enrollment Form'!$H605<>\"\"),\"N\",\"Y\"))","v":""},{"$f":"IF($B598=\"N\",\"\",IF(LEN('Enrollment Form'!$Y605)=0,\"\",IF(LEN('Enrollment Form'!$Y605)<>5,\"N\",\"Y\")))","v":""},{"$f":"IF($B598=\"N\",\"\",IF(LEN('Enrollment Form'!$AD605=0),\"\",IF(LEN('Enrollment Form'!$AD605)<>5,\"N\",\"Y\")))","v":""},{"$f":"IF($B598=\"N\",\"\",IF(LEN('Enrollment Form'!$BL605=0),\"\",IF(LEN('Enrollment Form'!$BL605)<>5,\"N\",\"Y\")))","v":""},{"$f":"IF($B598=\"N\",\"\",IF(LEN('Enrollment Form'!$AE605)=0,\"\",IF(LEN('Enrollment Form'!$AE605)<>10,\"N\",\"Y\")))","v":""},{"$f":"IF($B598=\"N\",\"\",IF(LEN('Enrollment Form'!$AF605)=0,\"\",IF(LEN('Enrollment Form'!$AF605)<>10,\"N\",\"Y\")))","v":""},{"$f":"IF('Enrollment Form'!$O605<>\"Graded\",\"-\",IF(AND('Enrollment Form'!$O605=\"Graded\",'Enrollment Form'!$AO605<>\"\"),\"Y\",\"N\"))","v":"-"},{"$f":"IF($B598=\"N\",\"\",IF(OR('Enrollment Form'!$B605<>\"Subscriber\",'Enrollment Form'!$C605=\"ROC\"),\"-\",IF(AND('Enrollment Form'!$B605=\"Subscriber\",'Enrollment Form'!$C605=\"Enroll\",'Enrollment Form'!$AJ605<>\"\"),\"Y\",\"N\")))","v":""},{"$f":"IF($B598=\"N\",\"\",IF(OR('Enrollment Form'!$B605<>\"Subscriber\",'Enrollment Form'!$C605=\"ROC\"),\"-\",IF(AND('Enrollment Form'!$B605=\"Subscriber\",'Enrollment Form'!$C605=\"Enroll\",'Enrollment Form'!$AK605<>\"\"),\"Y\",\"N\")))","v":""},{"$f":"IF($B598=\"N\",\"\",IF(OR('Enrollment Form'!$B605<>\"Subscriber\",'Enrollment Form'!$C605=\"ROC\"),\"-\",IF(AND('Enrollment Form'!$B605=\"Subscriber\",'Enrollment Form'!$C605=\"Enroll\",'Enrollment Form'!$AL605<>\"\"),\"Y\",\"N\")))","v":""},{"$f":"IF($B598=\"N\",\"\",IF(OR('Enrollment Form'!$B605<>\"Subscriber\",'Enrollment Form'!$C605=\"ROC\"),\"-\",IF(AND('Enrollment Form'!$B605=\"Subscriber\",'Enrollment Form'!$C605=\"Enroll\",'Enrollment Form'!$AM605<>\"\"),\"Y\",\"N\")))","v":""},{"$f":"IF($B598=\"N\",\"\",IF(OR('Enrollment Form'!$B605<>\"Subscriber\",'Enrollment Form'!$C605=\"ROC\"),\"-\",IF(AND('Enrollment Form'!$B605=\"Subscriber\",'Enrollment Form'!$C605=\"Enroll\",'Enrollment Form'!$AN605<>\"\"),\"Y\",\"N\")))","v":""},{"$f":"IF($B598=\"N\",\"\",IF(OR('Enrollment Form'!$B605<>\"Subscriber\",'Enrollment Form'!$C605=\"ROC\"),\"-\",IF(AND('Enrollment Form'!$B605=\"Subscriber\",'Enrollment Form'!$C605=\"Enroll\",'Enrollment Form'!$AP605<>\"\"),\"Y\",\"N\")))","v":""},{"$f":"IF($B598=\"N\",\"\",IF($Q598=\"-\",\"-\",IF(AND($Q598=\"Y\",'Enrollment Form'!$AP605=\"No\"),\"-\",IF(AND($Q598=\"Y\",'Enrollment Form'!$AP605=\"Yes\",'Enrollment Form'!$AQ605<>\"\"),\"Y\",\"N\"))))","v":""},{"$f":"IF($B598=\"N\",\"\",IF(OR('Enrollment Form'!$B605<>\"Subscriber\",'Enrollment Form'!$C605=\"ROC\"),\"-\",IF(AND('Enrollment Form'!$B605=\"Subscriber\",'Enrollment Form'!$C605=\"Enroll\",'Enrollment Form'!$CO605<>\"\"),\"Y\",\"N\")))","v":""},{"$f":"IF($B598=\"N\",\"\",IF($S598=\"-\",\"-\",IF(AND($S598=\"Y\",'Enrollment Form'!$CO605=\"No\"),\"-\",IF(AND($S598=\"Y\",'Enrollment Form'!$CO605=\"Yes\",'Enrollment Form'!$CP605<>\"\"),\"Y\",\"N\"))))","v":""},{"$f":"IF(OR('Enrollment Form'!$AV605=\"Yes\",'Enrollment Form'!$AV605=\"\"),\"-\",IF(AND('Enrollment Form'!$AV605=\"No\",ISERROR(FIND(\"HMO\",VLOOKUP('Enrollment Form'!G605,'Enrollment Form'!H$11:J$1000,3,FALSE),1))=FALSE,COUNTA('Enrollment Form'!$AW605:$AZ605)=4),\"Y\",\"N\"))","v":"-"},{"$f":"IF($B598=\"N\",\"\",IF('Enrollment Form'!$B605=\"Subscriber\",\"-\",IF(COUNTA('Enrollment Form'!$BE605,'Enrollment Form'!$BG605)=2,\"Y\",\"N\")))","v":""},{"$f":"IF($B598=\"N\",\"\",IF(OR('Enrollment Form'!$AU605=\"\",'Enrollment Form'!$AU605=\"No\"),\"-\",IF(AND('Enrollment Form'!$AU605=\"Yes\",COUNTA('Enrollment Form'!$CK605)=1),\"Y\",\"N\")))","v":""},{"$f":"IF(OR('Enrollment Form'!$CK605=\"\",'Enrollment Form'!$CK605=\"No\"),\"-\",IF(COUNTA('Enrollment Form'!$CM605:$CN605)=2,\"Y\",\"N\"))","v":"-"},{"$f":"IF($B598=\"N\",\"\",IF(COUNTIF('Enrollment Form'!$CZ605:$DO605,\"Other\")=COUNTA('Enrollment Form'!$DF605,'Enrollment Form'!$DA605,'Enrollment Form'!$DK605,'Enrollment Form'!$DP605),\"Y\",\"N\"))","v":""},{"$f":"IF($B598=\"N\",\"\",IF(OR('Enrollment Form'!B605<>\"Subscriber\",'Enrollment Form'!C605=\"ROC\",COUNTIF('Enrollment Form'!AS605:AT605,\"Yes\")>=1),\"-\",IF(AND('Enrollment Form'!C605=\"Enroll\",COUNTIF('Enrollment Form'!AS605:AT605,\"No\")=2,'Enrollment Form'!AU605=\"\"),\"N\",\"Y\")))","v":""},{"$f":"IF(OR(B598=\"N\",'Enrollment Form'!B605<>\"Subscriber\",'Enrollment Form'!C605=\"ROC\",'Enrollment Form'!O605<>\"Multiple of Salary\"),\"-\",IF(COUNTA('Enrollment Form'!T605:U605)<2,\"N\",\"Y\"))","v":"-"},{"$f":"IF(B598=\"N\",\"\",IF(OR('Enrollment Form'!C605=\"ROC\",'Enrollment Form'!B605<>\"Subscriber\",'Enrollment Form'!O605=\"Waive\",'Enrollment Form'!O605=\"\"),\"-\",IF('Enrollment Form'!P605=\"\",\"N\",\"Y\")))","v":""},{"$f":"IF($B598=\"N\",\"\",IF(AND('Enrollment Form'!$C605=\"ROC\",'Enrollment Form'!$DS605<>\"\"),\"Y\",IF(AND('Enrollment Form'!$C605=\"ROC\",'Enrollment Form'!$DS605=\"\"),\"N\",IF(AND('Enrollment Form'!$C605=\"Enroll\",'Enrollment Form'!$B605=\"Subscriber\",'Enrollment Form'!$CQ605=\"No\",'Enrollment Form'!$DS605=\"\"),\"N\",IF(AND('Enrollment Form'!$C605=\"Enroll\",'Enrollment Form'!$B605=\"Subscriber\",'Enrollment Form'!$CQ605=\"Yes\"),\"-\",\"Y\")))))","v":""},{"$f":"IF($B598=\"N\",\"\",IF(AND('Enrollment Form'!$C605=\"ROC\",'Enrollment Form'!$DT605<>\"\"),\"Y\",IF(AND('Enrollment Form'!$C605=\"ROC\",'Enrollment Form'!$DT605=\"\"),\"N\",IF(AND('Enrollment Form'!$C605=\"Enroll\",'Enrollment Form'!$B605=\"Subscriber\",'Enrollment Form'!$CQ605=\"No\",'Enrollment Form'!$DT605=\"\"),\"N\",IF(AND('Enrollment Form'!$C605=\"Enroll\",'Enrollment Form'!$B605=\"Subscriber\",'Enrollment Form'!$CQ605=\"Yes\"),\"-\",\"Y\")))))","v":""},{"$f":"IF('Enrollment Form'!AH605=\"\",\"\",IF(ISERROR(SEARCH(\".\",'Enrollment Form'!AH605,SEARCH(\"@\",'Enrollment Form'!AH605))),\"N\",\"Y\"))","v":""},{"$f":"IF(OR($B598=\"N\",'Enrollment Form'!$G605=\"\"),\"\",IF('Enrollment Form'!$B605<>\"Subscriber\",\"-\",IF(COUNTIF('Enrollment Form'!$AS605:$AT605,\"Yes\")=2,\"N\",\"Y\")))","v":""},{"$f":"IF(OR('Enrollment Form'!$CC605=\"\",'Enrollment Form'!$CC605=\"No\"),\"-\",IF(AND('Enrollment Form'!$CC605=\"Yes\",'Enrollment Form'!$CD605=\"\"),\"N\",\"Y\"))","v":"-"},{"$f":"IF(OR('Enrollment Form'!$CE605=\"\",'Enrollment Form'!$CE605=\"No\"),\"-\",IF(AND('Enrollment Form'!$CE605=\"Yes\",'Enrollment Form'!$CF605=\"\"),\"N\",\"Y\"))","v":"-"},{"$f":"IF(OR('Enrollment Form'!$CG605=\"\",'Enrollment Form'!$CG605=\"No\"),\"-\",IF(AND('Enrollment Form'!$CG605=\"Yes\",'Enrollment Form'!$CH605=\"\"),\"N\",\"Y\"))","v":"-"},{"$f":"IF(OR('Enrollment Form'!$CG605=\"\",'Enrollment Form'!$CG605=\"No\"),\"-\",IF(AND('Enrollment Form'!$CG605=\"Yes\",'Enrollment Form'!$CI605=\"\"),\"N\",\"Y\"))","v":"-"},{"$f":"IF('Enrollment Form'!B605<>\"Subscriber\",\"-\",IF(AND('Enrollment Form'!B605=\"Subscriber\",'Enrollment Form'!C605=\"Enroll\",'Enrollment Form'!AA605=\"\"),\"N\",\"Y\"))","v":"-"},{"$f":"IF(OR('Enrollment Form'!B605=\"Subscriber\",'Enrollment Form'!B605=\"\"),\"-\",IF('Enrollment Form'!BI605=\"\",\"N\",\"Y\"))","v":"-"},{"$f":"IF('Enrollment Form'!B605<>\"Subscriber\",\"-\",IF(AND('Enrollment Form'!B605=\"Subscriber\",'Enrollment Form'!G605=\"\"),\"N\",\"Y\"))","v":"-"},{"$f":"IF('Enrollment Form'!A605=\"\",\"\",IF('Enrollment Form'!B605=\"Subscriber\",\"-\",IF(AND('Enrollment Form'!B605<>\"Subscriber\",'Enrollment Form'!G605='Enrollment Form'!H605),\"N\",\"Y\")))","v":""},0]
[606,{"$f":"IF('Enrollment Form'!$A606<>\"\",\"Y\",\"N\")","v":"N"},{"$f":"IF(AND('Enrollment Form'!$B606=\"\",'Enrollment Form'!$C606<>\"\"),\"N\",IF($B599=\"N\",\"\",\"Y\"))","v":""},{"$f":"IF(OR($B599=\"N\",'Enrollment Form'!G606=\"\"),\"\",IF('Enrollment Form'!$B606<>\"Subscriber\",\"\",IF('Enrollment Form'!$G606='Enrollment Form'!$H606,\"Y\",\"N\")))","v":""},{"$f":"IF($B599=\"N\",\"\",IF(AND(COUNTIFS('Enrollment Form'!$H$11:$H$1000,'Enrollment Form'!$H606,'Enrollment Form'!$B$11:$B$1000,'Enrollment Form'!$B606)>1,'Enrollment Form'!$H606<>\"\"),\"N\",\"Y\"))","v":""},{"$f":"IF($B599=\"N\",\"\",IF(LEN('Enrollment Form'!$Y606)=0,\"\",IF(LEN('Enrollment Form'!$Y606)<>5,\"N\",\"Y\")))","v":""},{"$f":"IF($B599=\"N\",\"\",IF(LEN('Enrollment Form'!$AD606=0),\"\",IF(LEN('Enrollment Form'!$AD606)<>5,\"N\",\"Y\")))","v":""},{"$f":"IF($B599=\"N\",\"\",IF(LEN('Enrollment Form'!$BL606=0),\"\",IF(LEN('Enrollment Form'!$BL606)<>5,\"N\",\"Y\")))","v":""},{"$f":"IF($B599=\"N\",\"\",IF(LEN('Enrollment Form'!$AE606)=0,\"\",IF(LEN('Enrollment Form'!$AE606)<>10,\"N\",\"Y\")))","v":""},{"$f":"IF($B599=\"N\",\"\",IF(LEN('Enrollment Form'!$AF606)=0,\"\",IF(LEN('Enrollment Form'!$AF606)<>10,\"N\",\"Y\")))","v":""},{"$f":"IF('Enrollment Form'!$O606<>\"Graded\",\"-\",IF(AND('Enrollment Form'!$O606=\"Graded\",'Enrollment Form'!$AO606<>\"\"),\"Y\",\"N\"))","v":"-"},{"$f":"IF($B599=\"N\",\"\",IF(OR('Enrollment Form'!$B606<>\"Subscriber\",'Enrollment Form'!$C606=\"ROC\"),\"-\",IF(AND('Enrollment Form'!$B606=\"Subscriber\",'Enrollment Form'!$C606=\"Enroll\",'Enrollment Form'!$AJ606<>\"\"),\"Y\",\"N\")))","v":""},{"$f":"IF($B599=\"N\",\"\",IF(OR('Enrollment Form'!$B606<>\"Subscriber\",'Enrollment Form'!$C606=\"ROC\"),\"-\",IF(AND('Enrollment Form'!$B606=\"Subscriber\",'Enrollment Form'!$C606=\"Enroll\",'Enrollment Form'!$AK606<>\"\"),\"Y\",\"N\")))","v":""},{"$f":"IF($B599=\"N\",\"\",IF(OR('Enrollment Form'!$B606<>\"Subscriber\",'Enrollment Form'!$C606=\"ROC\"),\"-\",IF(AND('Enrollment Form'!$B606=\"Subscriber\",'Enrollment Form'!$C606=\"Enroll\",'Enrollment Form'!$AL606<>\"\"),\"Y\",\"N\")))","v":""},{"$f":"IF($B599=\"N\",\"\",IF(OR('Enrollment Form'!$B606<>\"Subscriber\",'Enrollment Form'!$C606=\"ROC\"),\"-\",IF(AND('Enrollment Form'!$B606=\"Subscriber\",'Enrollment Form'!$C606=\"Enroll\",'Enrollment Form'!$AM606<>\"\"),\"Y\",\"N\")))","v":""},{"$f":"IF($B599=\"N\",\"\",IF(OR('Enrollment Form'!$B606<>\"Subscriber\",'Enrollment Form'!$C606=\"ROC\"),\"-\",IF(AND('Enrollment Form'!$B606=\"Subscriber\",'Enrollment Form'!$C606=\"Enroll\",'Enrollment Form'!$AN606<>\"\"),\"Y\",\"N\")))","v":""},{"$f":"IF($B599=\"N\",\"\",IF(OR('Enrollment Form'!$B606<>\"Subscriber\",'Enrollment Form'!$C606=\"ROC\"),\"-\",IF(AND('Enrollment Form'!$B606=\"Subscriber\",'Enrollment Form'!$C606=\"Enroll\",'Enrollment Form'!$AP606<>\"\"),\"Y\",\"N\")))","v":""},{"$f":"IF($B599=\"N\",\"\",IF($Q599=\"-\",\"-\",IF(AND($Q599=\"Y\",'Enrollment Form'!$AP606=\"No\"),\"-\",IF(AND($Q599=\"Y\",'Enrollment Form'!$AP606=\"Yes\",'Enrollment Form'!$AQ606<>\"\"),\"Y\",\"N\"))))","v":""},{"$f":"IF($B599=\"N\",\"\",IF(OR('Enrollment Form'!$B606<>\"Subscriber\",'Enrollment Form'!$C606=\"ROC\"),\"-\",IF(AND('Enrollment Form'!$B606=\"Subscriber\",'Enrollment Form'!$C606=\"Enroll\",'Enrollment Form'!$CO606<>\"\"),\"Y\",\"N\")))","v":""},{"$f":"IF($B599=\"N\",\"\",IF($S599=\"-\",\"-\",IF(AND($S599=\"Y\",'Enrollment Form'!$CO606=\"No\"),\"-\",IF(AND($S599=\"Y\",'Enrollment Form'!$CO606=\"Yes\",'Enrollment Form'!$CP606<>\"\"),\"Y\",\"N\"))))","v":""},{"$f":"IF(OR('Enrollment Form'!$AV606=\"Yes\",'Enrollment Form'!$AV606=\"\"),\"-\",IF(AND('Enrollment Form'!$AV606=\"No\",ISERROR(FIND(\"HMO\",VLOOKUP('Enrollment Form'!G606,'Enrollment Form'!H$11:J$1000,3,FALSE),1))=FALSE,COUNTA('Enrollment Form'!$AW606:$AZ606)=4),\"Y\",\"N\"))","v":"-"},{"$f":"IF($B599=\"N\",\"\",IF('Enrollment Form'!$B606=\"Subscriber\",\"-\",IF(COUNTA('Enrollment Form'!$BE606,'Enrollment Form'!$BG606)=2,\"Y\",\"N\")))","v":""},{"$f":"IF($B599=\"N\",\"\",IF(OR('Enrollment Form'!$AU606=\"\",'Enrollment Form'!$AU606=\"No\"),\"-\",IF(AND('Enrollment Form'!$AU606=\"Yes\",COUNTA('Enrollment Form'!$CK606)=1),\"Y\",\"N\")))","v":""},{"$f":"IF(OR('Enrollment Form'!$CK606=\"\",'Enrollment Form'!$CK606=\"No\"),\"-\",IF(COUNTA('Enrollment Form'!$CM606:$CN606)=2,\"Y\",\"N\"))","v":"-"},{"$f":"IF($B599=\"N\",\"\",IF(COUNTIF('Enrollment Form'!$CZ606:$DO606,\"Other\")=COUNTA('Enrollment Form'!$DF606,'Enrollment Form'!$DA606,'Enrollment Form'!$DK606,'Enrollment Form'!$DP606),\"Y\",\"N\"))","v":""},{"$f":"IF($B599=\"N\",\"\",IF(OR('Enrollment Form'!B606<>\"Subscriber\",'Enrollment Form'!C606=\"ROC\",COUNTIF('Enrollment Form'!AS606:AT606,\"Yes\")>=1),\"-\",IF(AND('Enrollment Form'!C606=\"Enroll\",COUNTIF('Enrollment Form'!AS606:AT606,\"No\")=2,'Enrollment Form'!AU606=\"\"),\"N\",\"Y\")))","v":""},{"$f":"IF(OR(B599=\"N\",'Enrollment Form'!B606<>\"Subscriber\",'Enrollment Form'!C606=\"ROC\",'Enrollment Form'!O606<>\"Multiple of Salary\"),\"-\",IF(COUNTA('Enrollment Form'!T606:U606)<2,\"N\",\"Y\"))","v":"-"},{"$f":"IF(B599=\"N\",\"\",IF(OR('Enrollment Form'!C606=\"ROC\",'Enrollment Form'!B606<>\"Subscriber\",'Enrollment Form'!O606=\"Waive\",'Enrollment Form'!O606=\"\"),\"-\",IF('Enrollment Form'!P606=\"\",\"N\",\"Y\")))","v":""},{"$f":"IF($B599=\"N\",\"\",IF(AND('Enrollment Form'!$C606=\"ROC\",'Enrollment Form'!$DS606<>\"\"),\"Y\",IF(AND('Enrollment Form'!$C606=\"ROC\",'Enrollment Form'!$DS606=\"\"),\"N\",IF(AND('Enrollment Form'!$C606=\"Enroll\",'Enrollment Form'!$B606=\"Subscriber\",'Enrollment Form'!$CQ606=\"No\",'Enrollment Form'!$DS606=\"\"),\"N\",IF(AND('Enrollment Form'!$C606=\"Enroll\",'Enrollment Form'!$B606=\"Subscriber\",'Enrollment Form'!$CQ606=\"Yes\"),\"-\",\"Y\")))))","v":""},{"$f":"IF($B599=\"N\",\"\",IF(AND('Enrollment Form'!$C606=\"ROC\",'Enrollment Form'!$DT606<>\"\"),\"Y\",IF(AND('Enrollment Form'!$C606=\"ROC\",'Enrollment Form'!$DT606=\"\"),\"N\",IF(AND('Enrollment Form'!$C606=\"Enroll\",'Enrollment Form'!$B606=\"Subscriber\",'Enrollment Form'!$CQ606=\"No\",'Enrollment Form'!$DT606=\"\"),\"N\",IF(AND('Enrollment Form'!$C606=\"Enroll\",'Enrollment Form'!$B606=\"Subscriber\",'Enrollment Form'!$CQ606=\"Yes\"),\"-\",\"Y\")))))","v":""},{"$f":"IF('Enrollment Form'!AH606=\"\",\"\",IF(ISERROR(SEARCH(\".\",'Enrollment Form'!AH606,SEARCH(\"@\",'Enrollment Form'!AH606))),\"N\",\"Y\"))","v":""},{"$f":"IF(OR($B599=\"N\",'Enrollment Form'!$G606=\"\"),\"\",IF('Enrollment Form'!$B606<>\"Subscriber\",\"-\",IF(COUNTIF('Enrollment Form'!$AS606:$AT606,\"Yes\")=2,\"N\",\"Y\")))","v":""},{"$f":"IF(OR('Enrollment Form'!$CC606=\"\",'Enrollment Form'!$CC606=\"No\"),\"-\",IF(AND('Enrollment Form'!$CC606=\"Yes\",'Enrollment Form'!$CD606=\"\"),\"N\",\"Y\"))","v":"-"},{"$f":"IF(OR('Enrollment Form'!$CE606=\"\",'Enrollment Form'!$CE606=\"No\"),\"-\",IF(AND('Enrollment Form'!$CE606=\"Yes\",'Enrollment Form'!$CF606=\"\"),\"N\",\"Y\"))","v":"-"},{"$f":"IF(OR('Enrollment Form'!$CG606=\"\",'Enrollment Form'!$CG606=\"No\"),\"-\",IF(AND('Enrollment Form'!$CG606=\"Yes\",'Enrollment Form'!$CH606=\"\"),\"N\",\"Y\"))","v":"-"},{"$f":"IF(OR('Enrollment Form'!$CG606=\"\",'Enrollment Form'!$CG606=\"No\"),\"-\",IF(AND('Enrollment Form'!$CG606=\"Yes\",'Enrollment Form'!$CI606=\"\"),\"N\",\"Y\"))","v":"-"},{"$f":"IF('Enrollment Form'!B606<>\"Subscriber\",\"-\",IF(AND('Enrollment Form'!B606=\"Subscriber\",'Enrollment Form'!C606=\"Enroll\",'Enrollment Form'!AA606=\"\"),\"N\",\"Y\"))","v":"-"},{"$f":"IF(OR('Enrollment Form'!B606=\"Subscriber\",'Enrollment Form'!B606=\"\"),\"-\",IF('Enrollment Form'!BI606=\"\",\"N\",\"Y\"))","v":"-"},{"$f":"IF('Enrollment Form'!B606<>\"Subscriber\",\"-\",IF(AND('Enrollment Form'!B606=\"Subscriber\",'Enrollment Form'!G606=\"\"),\"N\",\"Y\"))","v":"-"},{"$f":"IF('Enrollment Form'!A606=\"\",\"\",IF('Enrollment Form'!B606=\"Subscriber\",\"-\",IF(AND('Enrollment Form'!B606<>\"Subscriber\",'Enrollment Form'!G606='Enrollment Form'!H606),\"N\",\"Y\")))","v":""},0]
[607,{"$f":"IF('Enrollment Form'!$A607<>\"\",\"Y\",\"N\")","v":"N"},{"$f":"IF(AND('Enrollment Form'!$B607=\"\",'Enrollment Form'!$C607<>\"\"),\"N\",IF($B600=\"N\",\"\",\"Y\"))","v":""},{"$f":"IF(OR($B600=\"N\",'Enrollment Form'!G607=\"\"),\"\",IF('Enrollment Form'!$B607<>\"Subscriber\",\"\",IF('Enrollment Form'!$G607='Enrollment Form'!$H607,\"Y\",\"N\")))","v":""},{"$f":"IF($B600=\"N\",\"\",IF(AND(COUNTIFS('Enrollment Form'!$H$11:$H$1000,'Enrollment Form'!$H607,'Enrollment Form'!$B$11:$B$1000,'Enrollment Form'!$B607)>1,'Enrollment Form'!$H607<>\"\"),\"N\",\"Y\"))","v":""},{"$f":"IF($B600=\"N\",\"\",IF(LEN('Enrollment Form'!$Y607)=0,\"\",IF(LEN('Enrollment Form'!$Y607)<>5,\"N\",\"Y\")))","v":""},{"$f":"IF($B600=\"N\",\"\",IF(LEN('Enrollment Form'!$AD607=0),\"\",IF(LEN('Enrollment Form'!$AD607)<>5,\"N\",\"Y\")))","v":""},{"$f":"IF($B600=\"N\",\"\",IF(LEN('Enrollment Form'!$BL607=0),\"\",IF(LEN('Enrollment Form'!$BL607)<>5,\"N\",\"Y\")))","v":""},{"$f":"IF($B600=\"N\",\"\",IF(LEN('Enrollment Form'!$AE607)=0,\"\",IF(LEN('Enrollment Form'!$AE607)<>10,\"N\",\"Y\")))","v":""},{"$f":"IF($B600=\"N\",\"\",IF(LEN('Enrollment Form'!$AF607)=0,\"\",IF(LEN('Enrollment Form'!$AF607)<>10,\"N\",\"Y\")))","v":""},{"$f":"IF('Enrollment Form'!$O607<>\"Graded\",\"-\",IF(AND('Enrollment Form'!$O607=\"Graded\",'Enrollment Form'!$AO607<>\"\"),\"Y\",\"N\"))","v":"-"},{"$f":"IF($B600=\"N\",\"\",IF(OR('Enrollment Form'!$B607<>\"Subscriber\",'Enrollment Form'!$C607=\"ROC\"),\"-\",IF(AND('Enrollment Form'!$B607=\"Subscriber\",'Enrollment Form'!$C607=\"Enroll\",'Enrollment Form'!$AJ607<>\"\"),\"Y\",\"N\")))","v":""},{"$f":"IF($B600=\"N\",\"\",IF(OR('Enrollment Form'!$B607<>\"Subscriber\",'Enrollment Form'!$C607=\"ROC\"),\"-\",IF(AND('Enrollment Form'!$B607=\"Subscriber\",'Enrollment Form'!$C607=\"Enroll\",'Enrollment Form'!$AK607<>\"\"),\"Y\",\"N\")))","v":""},{"$f":"IF($B600=\"N\",\"\",IF(OR('Enrollment Form'!$B607<>\"Subscriber\",'Enrollment Form'!$C607=\"ROC\"),\"-\",IF(AND('Enrollment Form'!$B607=\"Subscriber\",'Enrollment Form'!$C607=\"Enroll\",'Enrollment Form'!$AL607<>\"\"),\"Y\",\"N\")))","v":""},{"$f":"IF($B600=\"N\",\"\",IF(OR('Enrollment Form'!$B607<>\"Subscriber\",'Enrollment Form'!$C607=\"ROC\"),\"-\",IF(AND('Enrollment Form'!$B607=\"Subscriber\",'Enrollment Form'!$C607=\"Enroll\",'Enrollment Form'!$AM607<>\"\"),\"Y\",\"N\")))","v":""},{"$f":"IF($B600=\"N\",\"\",IF(OR('Enrollment Form'!$B607<>\"Subscriber\",'Enrollment Form'!$C607=\"ROC\"),\"-\",IF(AND('Enrollment Form'!$B607=\"Subscriber\",'Enrollment Form'!$C607=\"Enroll\",'Enrollment Form'!$AN607<>\"\"),\"Y\",\"N\")))","v":""},{"$f":"IF($B600=\"N\",\"\",IF(OR('Enrollment Form'!$B607<>\"Subscriber\",'Enrollment Form'!$C607=\"ROC\"),\"-\",IF(AND('Enrollment Form'!$B607=\"Subscriber\",'Enrollment Form'!$C607=\"Enroll\",'Enrollment Form'!$AP607<>\"\"),\"Y\",\"N\")))","v":""},{"$f":"IF($B600=\"N\",\"\",IF($Q600=\"-\",\"-\",IF(AND($Q600=\"Y\",'Enrollment Form'!$AP607=\"No\"),\"-\",IF(AND($Q600=\"Y\",'Enrollment Form'!$AP607=\"Yes\",'Enrollment Form'!$AQ607<>\"\"),\"Y\",\"N\"))))","v":""},{"$f":"IF($B600=\"N\",\"\",IF(OR('Enrollment Form'!$B607<>\"Subscriber\",'Enrollment Form'!$C607=\"ROC\"),\"-\",IF(AND('Enrollment Form'!$B607=\"Subscriber\",'Enrollment Form'!$C607=\"Enroll\",'Enrollment Form'!$CO607<>\"\"),\"Y\",\"N\")))","v":""},{"$f":"IF($B600=\"N\",\"\",IF($S600=\"-\",\"-\",IF(AND($S600=\"Y\",'Enrollment Form'!$CO607=\"No\"),\"-\",IF(AND($S600=\"Y\",'Enrollment Form'!$CO607=\"Yes\",'Enrollment Form'!$CP607<>\"\"),\"Y\",\"N\"))))","v":""},{"$f":"IF(OR('Enrollment Form'!$AV607=\"Yes\",'Enrollment Form'!$AV607=\"\"),\"-\",IF(AND('Enrollment Form'!$AV607=\"No\",ISERROR(FIND(\"HMO\",VLOOKUP('Enrollment Form'!G607,'Enrollment Form'!H$11:J$1000,3,FALSE),1))=FALSE,COUNTA('Enrollment Form'!$AW607:$AZ607)=4),\"Y\",\"N\"))","v":"-"},{"$f":"IF($B600=\"N\",\"\",IF('Enrollment Form'!$B607=\"Subscriber\",\"-\",IF(COUNTA('Enrollment Form'!$BE607,'Enrollment Form'!$BG607)=2,\"Y\",\"N\")))","v":""},{"$f":"IF($B600=\"N\",\"\",IF(OR('Enrollment Form'!$AU607=\"\",'Enrollment Form'!$AU607=\"No\"),\"-\",IF(AND('Enrollment Form'!$AU607=\"Yes\",COUNTA('Enrollment Form'!$CK607)=1),\"Y\",\"N\")))","v":""},{"$f":"IF(OR('Enrollment Form'!$CK607=\"\",'Enrollment Form'!$CK607=\"No\"),\"-\",IF(COUNTA('Enrollment Form'!$CM607:$CN607)=2,\"Y\",\"N\"))","v":"-"},{"$f":"IF($B600=\"N\",\"\",IF(COUNTIF('Enrollment Form'!$CZ607:$DO607,\"Other\")=COUNTA('Enrollment Form'!$DF607,'Enrollment Form'!$DA607,'Enrollment Form'!$DK607,'Enrollment Form'!$DP607),\"Y\",\"N\"))","v":""},{"$f":"IF($B600=\"N\",\"\",IF(OR('Enrollment Form'!B607<>\"Subscriber\",'Enrollment Form'!C607=\"ROC\",COUNTIF('Enrollment Form'!AS607:AT607,\"Yes\")>=1),\"-\",IF(AND('Enrollment Form'!C607=\"Enroll\",COUNTIF('Enrollment Form'!AS607:AT607,\"No\")=2,'Enrollment Form'!AU607=\"\"),\"N\",\"Y\")))","v":""},{"$f":"IF(OR(B600=\"N\",'Enrollment Form'!B607<>\"Subscriber\",'Enrollment Form'!C607=\"ROC\",'Enrollment Form'!O607<>\"Multiple of Salary\"),\"-\",IF(COUNTA('Enrollment Form'!T607:U607)<2,\"N\",\"Y\"))","v":"-"},{"$f":"IF(B600=\"N\",\"\",IF(OR('Enrollment Form'!C607=\"ROC\",'Enrollment Form'!B607<>\"Subscriber\",'Enrollment Form'!O607=\"Waive\",'Enrollment Form'!O607=\"\"),\"-\",IF('Enrollment Form'!P607=\"\",\"N\",\"Y\")))","v":""},{"$f":"IF($B600=\"N\",\"\",IF(AND('Enrollment Form'!$C607=\"ROC\",'Enrollment Form'!$DS607<>\"\"),\"Y\",IF(AND('Enrollment Form'!$C607=\"ROC\",'Enrollment Form'!$DS607=\"\"),\"N\",IF(AND('Enrollment Form'!$C607=\"Enroll\",'Enrollment Form'!$B607=\"Subscriber\",'Enrollment Form'!$CQ607=\"No\",'Enrollment Form'!$DS607=\"\"),\"N\",IF(AND('Enrollment Form'!$C607=\"Enroll\",'Enrollment Form'!$B607=\"Subscriber\",'Enrollment Form'!$CQ607=\"Yes\"),\"-\",\"Y\")))))","v":""},{"$f":"IF($B600=\"N\",\"\",IF(AND('Enrollment Form'!$C607=\"ROC\",'Enrollment Form'!$DT607<>\"\"),\"Y\",IF(AND('Enrollment Form'!$C607=\"ROC\",'Enrollment Form'!$DT607=\"\"),\"N\",IF(AND('Enrollment Form'!$C607=\"Enroll\",'Enrollment Form'!$B607=\"Subscriber\",'Enrollment Form'!$CQ607=\"No\",'Enrollment Form'!$DT607=\"\"),\"N\",IF(AND('Enrollment Form'!$C607=\"Enroll\",'Enrollment Form'!$B607=\"Subscriber\",'Enrollment Form'!$CQ607=\"Yes\"),\"-\",\"Y\")))))","v":""},{"$f":"IF('Enrollment Form'!AH607=\"\",\"\",IF(ISERROR(SEARCH(\".\",'Enrollment Form'!AH607,SEARCH(\"@\",'Enrollment Form'!AH607))),\"N\",\"Y\"))","v":""},{"$f":"IF(OR($B600=\"N\",'Enrollment Form'!$G607=\"\"),\"\",IF('Enrollment Form'!$B607<>\"Subscriber\",\"-\",IF(COUNTIF('Enrollment Form'!$AS607:$AT607,\"Yes\")=2,\"N\",\"Y\")))","v":""},{"$f":"IF(OR('Enrollment Form'!$CC607=\"\",'Enrollment Form'!$CC607=\"No\"),\"-\",IF(AND('Enrollment Form'!$CC607=\"Yes\",'Enrollment Form'!$CD607=\"\"),\"N\",\"Y\"))","v":"-"},{"$f":"IF(OR('Enrollment Form'!$CE607=\"\",'Enrollment Form'!$CE607=\"No\"),\"-\",IF(AND('Enrollment Form'!$CE607=\"Yes\",'Enrollment Form'!$CF607=\"\"),\"N\",\"Y\"))","v":"-"},{"$f":"IF(OR('Enrollment Form'!$CG607=\"\",'Enrollment Form'!$CG607=\"No\"),\"-\",IF(AND('Enrollment Form'!$CG607=\"Yes\",'Enrollment Form'!$CH607=\"\"),\"N\",\"Y\"))","v":"-"},{"$f":"IF(OR('Enrollment Form'!$CG607=\"\",'Enrollment Form'!$CG607=\"No\"),\"-\",IF(AND('Enrollment Form'!$CG607=\"Yes\",'Enrollment Form'!$CI607=\"\"),\"N\",\"Y\"))","v":"-"},{"$f":"IF('Enrollment Form'!B607<>\"Subscriber\",\"-\",IF(AND('Enrollment Form'!B607=\"Subscriber\",'Enrollment Form'!C607=\"Enroll\",'Enrollment Form'!AA607=\"\"),\"N\",\"Y\"))","v":"-"},{"$f":"IF(OR('Enrollment Form'!B607=\"Subscriber\",'Enrollment Form'!B607=\"\"),\"-\",IF('Enrollment Form'!BI607=\"\",\"N\",\"Y\"))","v":"-"},{"$f":"IF('Enrollment Form'!B607<>\"Subscriber\",\"-\",IF(AND('Enrollment Form'!B607=\"Subscriber\",'Enrollment Form'!G607=\"\"),\"N\",\"Y\"))","v":"-"},{"$f":"IF('Enrollment Form'!A607=\"\",\"\",IF('Enrollment Form'!B607=\"Subscriber\",\"-\",IF(AND('Enrollment Form'!B607<>\"Subscriber\",'Enrollment Form'!G607='Enrollment Form'!H607),\"N\",\"Y\")))","v":""},0]
[608,{"$f":"IF('Enrollment Form'!$A608<>\"\",\"Y\",\"N\")","v":"N"},{"$f":"IF(AND('Enrollment Form'!$B608=\"\",'Enrollment Form'!$C608<>\"\"),\"N\",IF($B601=\"N\",\"\",\"Y\"))","v":""},{"$f":"IF(OR($B601=\"N\",'Enrollment Form'!G608=\"\"),\"\",IF('Enrollment Form'!$B608<>\"Subscriber\",\"\",IF('Enrollment Form'!$G608='Enrollment Form'!$H608,\"Y\",\"N\")))","v":""},{"$f":"IF($B601=\"N\",\"\",IF(AND(COUNTIFS('Enrollment Form'!$H$11:$H$1000,'Enrollment Form'!$H608,'Enrollment Form'!$B$11:$B$1000,'Enrollment Form'!$B608)>1,'Enrollment Form'!$H608<>\"\"),\"N\",\"Y\"))","v":""},{"$f":"IF($B601=\"N\",\"\",IF(LEN('Enrollment Form'!$Y608)=0,\"\",IF(LEN('Enrollment Form'!$Y608)<>5,\"N\",\"Y\")))","v":""},{"$f":"IF($B601=\"N\",\"\",IF(LEN('Enrollment Form'!$AD608=0),\"\",IF(LEN('Enrollment Form'!$AD608)<>5,\"N\",\"Y\")))","v":""},{"$f":"IF($B601=\"N\",\"\",IF(LEN('Enrollment Form'!$BL608=0),\"\",IF(LEN('Enrollment Form'!$BL608)<>5,\"N\",\"Y\")))","v":""},{"$f":"IF($B601=\"N\",\"\",IF(LEN('Enrollment Form'!$AE608)=0,\"\",IF(LEN('Enrollment Form'!$AE608)<>10,\"N\",\"Y\")))","v":""},{"$f":"IF($B601=\"N\",\"\",IF(LEN('Enrollment Form'!$AF608)=0,\"\",IF(LEN('Enrollment Form'!$AF608)<>10,\"N\",\"Y\")))","v":""},{"$f":"IF('Enrollment Form'!$O608<>\"Graded\",\"-\",IF(AND('Enrollment Form'!$O608=\"Graded\",'Enrollment Form'!$AO608<>\"\"),\"Y\",\"N\"))","v":"-"},{"$f":"IF($B601=\"N\",\"\",IF(OR('Enrollment Form'!$B608<>\"Subscriber\",'Enrollment Form'!$C608=\"ROC\"),\"-\",IF(AND('Enrollment Form'!$B608=\"Subscriber\",'Enrollment Form'!$C608=\"Enroll\",'Enrollment Form'!$AJ608<>\"\"),\"Y\",\"N\")))","v":""},{"$f":"IF($B601=\"N\",\"\",IF(OR('Enrollment Form'!$B608<>\"Subscriber\",'Enrollment Form'!$C608=\"ROC\"),\"-\",IF(AND('Enrollment Form'!$B608=\"Subscriber\",'Enrollment Form'!$C608=\"Enroll\",'Enrollment Form'!$AK608<>\"\"),\"Y\",\"N\")))","v":""},{"$f":"IF($B601=\"N\",\"\",IF(OR('Enrollment Form'!$B608<>\"Subscriber\",'Enrollment Form'!$C608=\"ROC\"),\"-\",IF(AND('Enrollment Form'!$B608=\"Subscriber\",'Enrollment Form'!$C608=\"Enroll\",'Enrollment Form'!$AL608<>\"\"),\"Y\",\"N\")))","v":""},{"$f":"IF($B601=\"N\",\"\",IF(OR('Enrollment Form'!$B608<>\"Subscriber\",'Enrollment Form'!$C608=\"ROC\"),\"-\",IF(AND('Enrollment Form'!$B608=\"Subscriber\",'Enrollment Form'!$C608=\"Enroll\",'Enrollment Form'!$AM608<>\"\"),\"Y\",\"N\")))","v":""},{"$f":"IF($B601=\"N\",\"\",IF(OR('Enrollment Form'!$B608<>\"Subscriber\",'Enrollment Form'!$C608=\"ROC\"),\"-\",IF(AND('Enrollment Form'!$B608=\"Subscriber\",'Enrollment Form'!$C608=\"Enroll\",'Enrollment Form'!$AN608<>\"\"),\"Y\",\"N\")))","v":""},{"$f":"IF($B601=\"N\",\"\",IF(OR('Enrollment Form'!$B608<>\"Subscriber\",'Enrollment Form'!$C608=\"ROC\"),\"-\",IF(AND('Enrollment Form'!$B608=\"Subscriber\",'Enrollment Form'!$C608=\"Enroll\",'Enrollment Form'!$AP608<>\"\"),\"Y\",\"N\")))","v":""},{"$f":"IF($B601=\"N\",\"\",IF($Q601=\"-\",\"-\",IF(AND($Q601=\"Y\",'Enrollment Form'!$AP608=\"No\"),\"-\",IF(AND($Q601=\"Y\",'Enrollment Form'!$AP608=\"Yes\",'Enrollment Form'!$AQ608<>\"\"),\"Y\",\"N\"))))","v":""},{"$f":"IF($B601=\"N\",\"\",IF(OR('Enrollment Form'!$B608<>\"Subscriber\",'Enrollment Form'!$C608=\"ROC\"),\"-\",IF(AND('Enrollment Form'!$B608=\"Subscriber\",'Enrollment Form'!$C608=\"Enroll\",'Enrollment Form'!$CO608<>\"\"),\"Y\",\"N\")))","v":""},{"$f":"IF($B601=\"N\",\"\",IF($S601=\"-\",\"-\",IF(AND($S601=\"Y\",'Enrollment Form'!$CO608=\"No\"),\"-\",IF(AND($S601=\"Y\",'Enrollment Form'!$CO608=\"Yes\",'Enrollment Form'!$CP608<>\"\"),\"Y\",\"N\"))))","v":""},{"$f":"IF(OR('Enrollment Form'!$AV608=\"Yes\",'Enrollment Form'!$AV608=\"\"),\"-\",IF(AND('Enrollment Form'!$AV608=\"No\",ISERROR(FIND(\"HMO\",VLOOKUP('Enrollment Form'!G608,'Enrollment Form'!H$11:J$1000,3,FALSE),1))=FALSE,COUNTA('Enrollment Form'!$AW608:$AZ608)=4),\"Y\",\"N\"))","v":"-"},{"$f":"IF($B601=\"N\",\"\",IF('Enrollment Form'!$B608=\"Subscriber\",\"-\",IF(COUNTA('Enrollment Form'!$BE608,'Enrollment Form'!$BG608)=2,\"Y\",\"N\")))","v":""},{"$f":"IF($B601=\"N\",\"\",IF(OR('Enrollment Form'!$AU608=\"\",'Enrollment Form'!$AU608=\"No\"),\"-\",IF(AND('Enrollment Form'!$AU608=\"Yes\",COUNTA('Enrollment Form'!$CK608)=1),\"Y\",\"N\")))","v":""},{"$f":"IF(OR('Enrollment Form'!$CK608=\"\",'Enrollment Form'!$CK608=\"No\"),\"-\",IF(COUNTA('Enrollment Form'!$CM608:$CN608)=2,\"Y\",\"N\"))","v":"-"},{"$f":"IF($B601=\"N\",\"\",IF(COUNTIF('Enrollment Form'!$CZ608:$DO608,\"Other\")=COUNTA('Enrollment Form'!$DF608,'Enrollment Form'!$DA608,'Enrollment Form'!$DK608,'Enrollment Form'!$DP608),\"Y\",\"N\"))","v":""},{"$f":"IF($B601=\"N\",\"\",IF(OR('Enrollment Form'!B608<>\"Subscriber\",'Enrollment Form'!C608=\"ROC\",COUNTIF('Enrollment Form'!AS608:AT608,\"Yes\")>=1),\"-\",IF(AND('Enrollment Form'!C608=\"Enroll\",COUNTIF('Enrollment Form'!AS608:AT608,\"No\")=2,'Enrollment Form'!AU608=\"\"),\"N\",\"Y\")))","v":""},{"$f":"IF(OR(B601=\"N\",'Enrollment Form'!B608<>\"Subscriber\",'Enrollment Form'!C608=\"ROC\",'Enrollment Form'!O608<>\"Multiple of Salary\"),\"-\",IF(COUNTA('Enrollment Form'!T608:U608)<2,\"N\",\"Y\"))","v":"-"},{"$f":"IF(B601=\"N\",\"\",IF(OR('Enrollment Form'!C608=\"ROC\",'Enrollment Form'!B608<>\"Subscriber\",'Enrollment Form'!O608=\"Waive\",'Enrollment Form'!O608=\"\"),\"-\",IF('Enrollment Form'!P608=\"\",\"N\",\"Y\")))","v":""},{"$f":"IF($B601=\"N\",\"\",IF(AND('Enrollment Form'!$C608=\"ROC\",'Enrollment Form'!$DS608<>\"\"),\"Y\",IF(AND('Enrollment Form'!$C608=\"ROC\",'Enrollment Form'!$DS608=\"\"),\"N\",IF(AND('Enrollment Form'!$C608=\"Enroll\",'Enrollment Form'!$B608=\"Subscriber\",'Enrollment Form'!$CQ608=\"No\",'Enrollment Form'!$DS608=\"\"),\"N\",IF(AND('Enrollment Form'!$C608=\"Enroll\",'Enrollment Form'!$B608=\"Subscriber\",'Enrollment Form'!$CQ608=\"Yes\"),\"-\",\"Y\")))))","v":""},{"$f":"IF($B601=\"N\",\"\",IF(AND('Enrollment Form'!$C608=\"ROC\",'Enrollment Form'!$DT608<>\"\"),\"Y\",IF(AND('Enrollment Form'!$C608=\"ROC\",'Enrollment Form'!$DT608=\"\"),\"N\",IF(AND('Enrollment Form'!$C608=\"Enroll\",'Enrollment Form'!$B608=\"Subscriber\",'Enrollment Form'!$CQ608=\"No\",'Enrollment Form'!$DT608=\"\"),\"N\",IF(AND('Enrollment Form'!$C608=\"Enroll\",'Enrollment Form'!$B608=\"Subscriber\",'Enrollment Form'!$CQ608=\"Yes\"),\"-\",\"Y\")))))","v":""},{"$f":"IF('Enrollment Form'!AH608=\"\",\"\",IF(ISERROR(SEARCH(\".\",'Enrollment Form'!AH608,SEARCH(\"@\",'Enrollment Form'!AH608))),\"N\",\"Y\"))","v":""},{"$f":"IF(OR($B601=\"N\",'Enrollment Form'!$G608=\"\"),\"\",IF('Enrollment Form'!$B608<>\"Subscriber\",\"-\",IF(COUNTIF('Enrollment Form'!$AS608:$AT608,\"Yes\")=2,\"N\",\"Y\")))","v":""},{"$f":"IF(OR('Enrollment Form'!$CC608=\"\",'Enrollment Form'!$CC608=\"No\"),\"-\",IF(AND('Enrollment Form'!$CC608=\"Yes\",'Enrollment Form'!$CD608=\"\"),\"N\",\"Y\"))","v":"-"},{"$f":"IF(OR('Enrollment Form'!$CE608=\"\",'Enrollment Form'!$CE608=\"No\"),\"-\",IF(AND('Enrollment Form'!$CE608=\"Yes\",'Enrollment Form'!$CF608=\"\"),\"N\",\"Y\"))","v":"-"},{"$f":"IF(OR('Enrollment Form'!$CG608=\"\",'Enrollment Form'!$CG608=\"No\"),\"-\",IF(AND('Enrollment Form'!$CG608=\"Yes\",'Enrollment Form'!$CH608=\"\"),\"N\",\"Y\"))","v":"-"},{"$f":"IF(OR('Enrollment Form'!$CG608=\"\",'Enrollment Form'!$CG608=\"No\"),\"-\",IF(AND('Enrollment Form'!$CG608=\"Yes\",'Enrollment Form'!$CI608=\"\"),\"N\",\"Y\"))","v":"-"},{"$f":"IF('Enrollment Form'!B608<>\"Subscriber\",\"-\",IF(AND('Enrollment Form'!B608=\"Subscriber\",'Enrollment Form'!C608=\"Enroll\",'Enrollment Form'!AA608=\"\"),\"N\",\"Y\"))","v":"-"},{"$f":"IF(OR('Enrollment Form'!B608=\"Subscriber\",'Enrollment Form'!B608=\"\"),\"-\",IF('Enrollment Form'!BI608=\"\",\"N\",\"Y\"))","v":"-"},{"$f":"IF('Enrollment Form'!B608<>\"Subscriber\",\"-\",IF(AND('Enrollment Form'!B608=\"Subscriber\",'Enrollment Form'!G608=\"\"),\"N\",\"Y\"))","v":"-"},{"$f":"IF('Enrollment Form'!A608=\"\",\"\",IF('Enrollment Form'!B608=\"Subscriber\",\"-\",IF(AND('Enrollment Form'!B608<>\"Subscriber\",'Enrollment Form'!G608='Enrollment Form'!H608),\"N\",\"Y\")))","v":""},0]
[609,{"$f":"IF('Enrollment Form'!$A609<>\"\",\"Y\",\"N\")","v":"N"},{"$f":"IF(AND('Enrollment Form'!$B609=\"\",'Enrollment Form'!$C609<>\"\"),\"N\",IF($B602=\"N\",\"\",\"Y\"))","v":""},{"$f":"IF(OR($B602=\"N\",'Enrollment Form'!G609=\"\"),\"\",IF('Enrollment Form'!$B609<>\"Subscriber\",\"\",IF('Enrollment Form'!$G609='Enrollment Form'!$H609,\"Y\",\"N\")))","v":""},{"$f":"IF($B602=\"N\",\"\",IF(AND(COUNTIFS('Enrollment Form'!$H$11:$H$1000,'Enrollment Form'!$H609,'Enrollment Form'!$B$11:$B$1000,'Enrollment Form'!$B609)>1,'Enrollment Form'!$H609<>\"\"),\"N\",\"Y\"))","v":""},{"$f":"IF($B602=\"N\",\"\",IF(LEN('Enrollment Form'!$Y609)=0,\"\",IF(LEN('Enrollment Form'!$Y609)<>5,\"N\",\"Y\")))","v":""},{"$f":"IF($B602=\"N\",\"\",IF(LEN('Enrollment Form'!$AD609=0),\"\",IF(LEN('Enrollment Form'!$AD609)<>5,\"N\",\"Y\")))","v":""},{"$f":"IF($B602=\"N\",\"\",IF(LEN('Enrollment Form'!$BL609=0),\"\",IF(LEN('Enrollment Form'!$BL609)<>5,\"N\",\"Y\")))","v":""},{"$f":"IF($B602=\"N\",\"\",IF(LEN('Enrollment Form'!$AE609)=0,\"\",IF(LEN('Enrollment Form'!$AE609)<>10,\"N\",\"Y\")))","v":""},{"$f":"IF($B602=\"N\",\"\",IF(LEN('Enrollment Form'!$AF609)=0,\"\",IF(LEN('Enrollment Form'!$AF609)<>10,\"N\",\"Y\")))","v":""},{"$f":"IF('Enrollment Form'!$O609<>\"Graded\",\"-\",IF(AND('Enrollment Form'!$O609=\"Graded\",'Enrollment Form'!$AO609<>\"\"),\"Y\",\"N\"))","v":"-"},{"$f":"IF($B602=\"N\",\"\",IF(OR('Enrollment Form'!$B609<>\"Subscriber\",'Enrollment Form'!$C609=\"ROC\"),\"-\",IF(AND('Enrollment Form'!$B609=\"Subscriber\",'Enrollment Form'!$C609=\"Enroll\",'Enrollment Form'!$AJ609<>\"\"),\"Y\",\"N\")))","v":""},{"$f":"IF($B602=\"N\",\"\",IF(OR('Enrollment Form'!$B609<>\"Subscriber\",'Enrollment Form'!$C609=\"ROC\"),\"-\",IF(AND('Enrollment Form'!$B609=\"Subscriber\",'Enrollment Form'!$C609=\"Enroll\",'Enrollment Form'!$AK609<>\"\"),\"Y\",\"N\")))","v":""},{"$f":"IF($B602=\"N\",\"\",IF(OR('Enrollment Form'!$B609<>\"Subscriber\",'Enrollment Form'!$C609=\"ROC\"),\"-\",IF(AND('Enrollment Form'!$B609=\"Subscriber\",'Enrollment Form'!$C609=\"Enroll\",'Enrollment Form'!$AL609<>\"\"),\"Y\",\"N\")))","v":""},{"$f":"IF($B602=\"N\",\"\",IF(OR('Enrollment Form'!$B609<>\"Subscriber\",'Enrollment Form'!$C609=\"ROC\"),\"-\",IF(AND('Enrollment Form'!$B609=\"Subscriber\",'Enrollment Form'!$C609=\"Enroll\",'Enrollment Form'!$AM609<>\"\"),\"Y\",\"N\")))","v":""},{"$f":"IF($B602=\"N\",\"\",IF(OR('Enrollment Form'!$B609<>\"Subscriber\",'Enrollment Form'!$C609=\"ROC\"),\"-\",IF(AND('Enrollment Form'!$B609=\"Subscriber\",'Enrollment Form'!$C609=\"Enroll\",'Enrollment Form'!$AN609<>\"\"),\"Y\",\"N\")))","v":""},{"$f":"IF($B602=\"N\",\"\",IF(OR('Enrollment Form'!$B609<>\"Subscriber\",'Enrollment Form'!$C609=\"ROC\"),\"-\",IF(AND('Enrollment Form'!$B609=\"Subscriber\",'Enrollment Form'!$C609=\"Enroll\",'Enrollment Form'!$AP609<>\"\"),\"Y\",\"N\")))","v":""},{"$f":"IF($B602=\"N\",\"\",IF($Q602=\"-\",\"-\",IF(AND($Q602=\"Y\",'Enrollment Form'!$AP609=\"No\"),\"-\",IF(AND($Q602=\"Y\",'Enrollment Form'!$AP609=\"Yes\",'Enrollment Form'!$AQ609<>\"\"),\"Y\",\"N\"))))","v":""},{"$f":"IF($B602=\"N\",\"\",IF(OR('Enrollment Form'!$B609<>\"Subscriber\",'Enrollment Form'!$C609=\"ROC\"),\"-\",IF(AND('Enrollment Form'!$B609=\"Subscriber\",'Enrollment Form'!$C609=\"Enroll\",'Enrollment Form'!$CO609<>\"\"),\"Y\",\"N\")))","v":""},{"$f":"IF($B602=\"N\",\"\",IF($S602=\"-\",\"-\",IF(AND($S602=\"Y\",'Enrollment Form'!$CO609=\"No\"),\"-\",IF(AND($S602=\"Y\",'Enrollment Form'!$CO609=\"Yes\",'Enrollment Form'!$CP609<>\"\"),\"Y\",\"N\"))))","v":""},{"$f":"IF(OR('Enrollment Form'!$AV609=\"Yes\",'Enrollment Form'!$AV609=\"\"),\"-\",IF(AND('Enrollment Form'!$AV609=\"No\",ISERROR(FIND(\"HMO\",VLOOKUP('Enrollment Form'!G609,'Enrollment Form'!H$11:J$1000,3,FALSE),1))=FALSE,COUNTA('Enrollment Form'!$AW609:$AZ609)=4),\"Y\",\"N\"))","v":"-"},{"$f":"IF($B602=\"N\",\"\",IF('Enrollment Form'!$B609=\"Subscriber\",\"-\",IF(COUNTA('Enrollment Form'!$BE609,'Enrollment Form'!$BG609)=2,\"Y\",\"N\")))","v":""},{"$f":"IF($B602=\"N\",\"\",IF(OR('Enrollment Form'!$AU609=\"\",'Enrollment Form'!$AU609=\"No\"),\"-\",IF(AND('Enrollment Form'!$AU609=\"Yes\",COUNTA('Enrollment Form'!$CK609)=1),\"Y\",\"N\")))","v":""},{"$f":"IF(OR('Enrollment Form'!$CK609=\"\",'Enrollment Form'!$CK609=\"No\"),\"-\",IF(COUNTA('Enrollment Form'!$CM609:$CN609)=2,\"Y\",\"N\"))","v":"-"},{"$f":"IF($B602=\"N\",\"\",IF(COUNTIF('Enrollment Form'!$CZ609:$DO609,\"Other\")=COUNTA('Enrollment Form'!$DF609,'Enrollment Form'!$DA609,'Enrollment Form'!$DK609,'Enrollment Form'!$DP609),\"Y\",\"N\"))","v":""},{"$f":"IF($B602=\"N\",\"\",IF(OR('Enrollment Form'!B609<>\"Subscriber\",'Enrollment Form'!C609=\"ROC\",COUNTIF('Enrollment Form'!AS609:AT609,\"Yes\")>=1),\"-\",IF(AND('Enrollment Form'!C609=\"Enroll\",COUNTIF('Enrollment Form'!AS609:AT609,\"No\")=2,'Enrollment Form'!AU609=\"\"),\"N\",\"Y\")))","v":""},{"$f":"IF(OR(B602=\"N\",'Enrollment Form'!B609<>\"Subscriber\",'Enrollment Form'!C609=\"ROC\",'Enrollment Form'!O609<>\"Multiple of Salary\"),\"-\",IF(COUNTA('Enrollment Form'!T609:U609)<2,\"N\",\"Y\"))","v":"-"},{"$f":"IF(B602=\"N\",\"\",IF(OR('Enrollment Form'!C609=\"ROC\",'Enrollment Form'!B609<>\"Subscriber\",'Enrollment Form'!O609=\"Waive\",'Enrollment Form'!O609=\"\"),\"-\",IF('Enrollment Form'!P609=\"\",\"N\",\"Y\")))","v":""},{"$f":"IF($B602=\"N\",\"\",IF(AND('Enrollment Form'!$C609=\"ROC\",'Enrollment Form'!$DS609<>\"\"),\"Y\",IF(AND('Enrollment Form'!$C609=\"ROC\",'Enrollment Form'!$DS609=\"\"),\"N\",IF(AND('Enrollment Form'!$C609=\"Enroll\",'Enrollment Form'!$B609=\"Subscriber\",'Enrollment Form'!$CQ609=\"No\",'Enrollment Form'!$DS609=\"\"),\"N\",IF(AND('Enrollment Form'!$C609=\"Enroll\",'Enrollment Form'!$B609=\"Subscriber\",'Enrollment Form'!$CQ609=\"Yes\"),\"-\",\"Y\")))))","v":""},{"$f":"IF($B602=\"N\",\"\",IF(AND('Enrollment Form'!$C609=\"ROC\",'Enrollment Form'!$DT609<>\"\"),\"Y\",IF(AND('Enrollment Form'!$C609=\"ROC\",'Enrollment Form'!$DT609=\"\"),\"N\",IF(AND('Enrollment Form'!$C609=\"Enroll\",'Enrollment Form'!$B609=\"Subscriber\",'Enrollment Form'!$CQ609=\"No\",'Enrollment Form'!$DT609=\"\"),\"N\",IF(AND('Enrollment Form'!$C609=\"Enroll\",'Enrollment Form'!$B609=\"Subscriber\",'Enrollment Form'!$CQ609=\"Yes\"),\"-\",\"Y\")))))","v":""},{"$f":"IF('Enrollment Form'!AH609=\"\",\"\",IF(ISERROR(SEARCH(\".\",'Enrollment Form'!AH609,SEARCH(\"@\",'Enrollment Form'!AH609))),\"N\",\"Y\"))","v":""},{"$f":"IF(OR($B602=\"N\",'Enrollment Form'!$G609=\"\"),\"\",IF('Enrollment Form'!$B609<>\"Subscriber\",\"-\",IF(COUNTIF('Enrollment Form'!$AS609:$AT609,\"Yes\")=2,\"N\",\"Y\")))","v":""},{"$f":"IF(OR('Enrollment Form'!$CC609=\"\",'Enrollment Form'!$CC609=\"No\"),\"-\",IF(AND('Enrollment Form'!$CC609=\"Yes\",'Enrollment Form'!$CD609=\"\"),\"N\",\"Y\"))","v":"-"},{"$f":"IF(OR('Enrollment Form'!$CE609=\"\",'Enrollment Form'!$CE609=\"No\"),\"-\",IF(AND('Enrollment Form'!$CE609=\"Yes\",'Enrollment Form'!$CF609=\"\"),\"N\",\"Y\"))","v":"-"},{"$f":"IF(OR('Enrollment Form'!$CG609=\"\",'Enrollment Form'!$CG609=\"No\"),\"-\",IF(AND('Enrollment Form'!$CG609=\"Yes\",'Enrollment Form'!$CH609=\"\"),\"N\",\"Y\"))","v":"-"},{"$f":"IF(OR('Enrollment Form'!$CG609=\"\",'Enrollment Form'!$CG609=\"No\"),\"-\",IF(AND('Enrollment Form'!$CG609=\"Yes\",'Enrollment Form'!$CI609=\"\"),\"N\",\"Y\"))","v":"-"},{"$f":"IF('Enrollment Form'!B609<>\"Subscriber\",\"-\",IF(AND('Enrollment Form'!B609=\"Subscriber\",'Enrollment Form'!C609=\"Enroll\",'Enrollment Form'!AA609=\"\"),\"N\",\"Y\"))","v":"-"},{"$f":"IF(OR('Enrollment Form'!B609=\"Subscriber\",'Enrollment Form'!B609=\"\"),\"-\",IF('Enrollment Form'!BI609=\"\",\"N\",\"Y\"))","v":"-"},{"$f":"IF('Enrollment Form'!B609<>\"Subscriber\",\"-\",IF(AND('Enrollment Form'!B609=\"Subscriber\",'Enrollment Form'!G609=\"\"),\"N\",\"Y\"))","v":"-"},{"$f":"IF('Enrollment Form'!A609=\"\",\"\",IF('Enrollment Form'!B609=\"Subscriber\",\"-\",IF(AND('Enrollment Form'!B609<>\"Subscriber\",'Enrollment Form'!G609='Enrollment Form'!H609),\"N\",\"Y\")))","v":""},0]
[610,{"$f":"IF('Enrollment Form'!$A610<>\"\",\"Y\",\"N\")","v":"N"},{"$f":"IF(AND('Enrollment Form'!$B610=\"\",'Enrollment Form'!$C610<>\"\"),\"N\",IF($B603=\"N\",\"\",\"Y\"))","v":""},{"$f":"IF(OR($B603=\"N\",'Enrollment Form'!G610=\"\"),\"\",IF('Enrollment Form'!$B610<>\"Subscriber\",\"\",IF('Enrollment Form'!$G610='Enrollment Form'!$H610,\"Y\",\"N\")))","v":""},{"$f":"IF($B603=\"N\",\"\",IF(AND(COUNTIFS('Enrollment Form'!$H$11:$H$1000,'Enrollment Form'!$H610,'Enrollment Form'!$B$11:$B$1000,'Enrollment Form'!$B610)>1,'Enrollment Form'!$H610<>\"\"),\"N\",\"Y\"))","v":""},{"$f":"IF($B603=\"N\",\"\",IF(LEN('Enrollment Form'!$Y610)=0,\"\",IF(LEN('Enrollment Form'!$Y610)<>5,\"N\",\"Y\")))","v":""},{"$f":"IF($B603=\"N\",\"\",IF(LEN('Enrollment Form'!$AD610=0),\"\",IF(LEN('Enrollment Form'!$AD610)<>5,\"N\",\"Y\")))","v":""},{"$f":"IF($B603=\"N\",\"\",IF(LEN('Enrollment Form'!$BL610=0),\"\",IF(LEN('Enrollment Form'!$BL610)<>5,\"N\",\"Y\")))","v":""},{"$f":"IF($B603=\"N\",\"\",IF(LEN('Enrollment Form'!$AE610)=0,\"\",IF(LEN('Enrollment Form'!$AE610)<>10,\"N\",\"Y\")))","v":""},{"$f":"IF($B603=\"N\",\"\",IF(LEN('Enrollment Form'!$AF610)=0,\"\",IF(LEN('Enrollment Form'!$AF610)<>10,\"N\",\"Y\")))","v":""},{"$f":"IF('Enrollment Form'!$O610<>\"Graded\",\"-\",IF(AND('Enrollment Form'!$O610=\"Graded\",'Enrollment Form'!$AO610<>\"\"),\"Y\",\"N\"))","v":"-"},{"$f":"IF($B603=\"N\",\"\",IF(OR('Enrollment Form'!$B610<>\"Subscriber\",'Enrollment Form'!$C610=\"ROC\"),\"-\",IF(AND('Enrollment Form'!$B610=\"Subscriber\",'Enrollment Form'!$C610=\"Enroll\",'Enrollment Form'!$AJ610<>\"\"),\"Y\",\"N\")))","v":""},{"$f":"IF($B603=\"N\",\"\",IF(OR('Enrollment Form'!$B610<>\"Subscriber\",'Enrollment Form'!$C610=\"ROC\"),\"-\",IF(AND('Enrollment Form'!$B610=\"Subscriber\",'Enrollment Form'!$C610=\"Enroll\",'Enrollment Form'!$AK610<>\"\"),\"Y\",\"N\")))","v":""},{"$f":"IF($B603=\"N\",\"\",IF(OR('Enrollment Form'!$B610<>\"Subscriber\",'Enrollment Form'!$C610=\"ROC\"),\"-\",IF(AND('Enrollment Form'!$B610=\"Subscriber\",'Enrollment Form'!$C610=\"Enroll\",'Enrollment Form'!$AL610<>\"\"),\"Y\",\"N\")))","v":""},{"$f":"IF($B603=\"N\",\"\",IF(OR('Enrollment Form'!$B610<>\"Subscriber\",'Enrollment Form'!$C610=\"ROC\"),\"-\",IF(AND('Enrollment Form'!$B610=\"Subscriber\",'Enrollment Form'!$C610=\"Enroll\",'Enrollment Form'!$AM610<>\"\"),\"Y\",\"N\")))","v":""},{"$f":"IF($B603=\"N\",\"\",IF(OR('Enrollment Form'!$B610<>\"Subscriber\",'Enrollment Form'!$C610=\"ROC\"),\"-\",IF(AND('Enrollment Form'!$B610=\"Subscriber\",'Enrollment Form'!$C610=\"Enroll\",'Enrollment Form'!$AN610<>\"\"),\"Y\",\"N\")))","v":""},{"$f":"IF($B603=\"N\",\"\",IF(OR('Enrollment Form'!$B610<>\"Subscriber\",'Enrollment Form'!$C610=\"ROC\"),\"-\",IF(AND('Enrollment Form'!$B610=\"Subscriber\",'Enrollment Form'!$C610=\"Enroll\",'Enrollment Form'!$AP610<>\"\"),\"Y\",\"N\")))","v":""},{"$f":"IF($B603=\"N\",\"\",IF($Q603=\"-\",\"-\",IF(AND($Q603=\"Y\",'Enrollment Form'!$AP610=\"No\"),\"-\",IF(AND($Q603=\"Y\",'Enrollment Form'!$AP610=\"Yes\",'Enrollment Form'!$AQ610<>\"\"),\"Y\",\"N\"))))","v":""},{"$f":"IF($B603=\"N\",\"\",IF(OR('Enrollment Form'!$B610<>\"Subscriber\",'Enrollment Form'!$C610=\"ROC\"),\"-\",IF(AND('Enrollment Form'!$B610=\"Subscriber\",'Enrollment Form'!$C610=\"Enroll\",'Enrollment Form'!$CO610<>\"\"),\"Y\",\"N\")))","v":""},{"$f":"IF($B603=\"N\",\"\",IF($S603=\"-\",\"-\",IF(AND($S603=\"Y\",'Enrollment Form'!$CO610=\"No\"),\"-\",IF(AND($S603=\"Y\",'Enrollment Form'!$CO610=\"Yes\",'Enrollment Form'!$CP610<>\"\"),\"Y\",\"N\"))))","v":""},{"$f":"IF(OR('Enrollment Form'!$AV610=\"Yes\",'Enrollment Form'!$AV610=\"\"),\"-\",IF(AND('Enrollment Form'!$AV610=\"No\",ISERROR(FIND(\"HMO\",VLOOKUP('Enrollment Form'!G610,'Enrollment Form'!H$11:J$1000,3,FALSE),1))=FALSE,COUNTA('Enrollment Form'!$AW610:$AZ610)=4),\"Y\",\"N\"))","v":"-"},{"$f":"IF($B603=\"N\",\"\",IF('Enrollment Form'!$B610=\"Subscriber\",\"-\",IF(COUNTA('Enrollment Form'!$BE610,'Enrollment Form'!$BG610)=2,\"Y\",\"N\")))","v":""},{"$f":"IF($B603=\"N\",\"\",IF(OR('Enrollment Form'!$AU610=\"\",'Enrollment Form'!$AU610=\"No\"),\"-\",IF(AND('Enrollment Form'!$AU610=\"Yes\",COUNTA('Enrollment Form'!$CK610)=1),\"Y\",\"N\")))","v":""},{"$f":"IF(OR('Enrollment Form'!$CK610=\"\",'Enrollment Form'!$CK610=\"No\"),\"-\",IF(COUNTA('Enrollment Form'!$CM610:$CN610)=2,\"Y\",\"N\"))","v":"-"},{"$f":"IF($B603=\"N\",\"\",IF(COUNTIF('Enrollment Form'!$CZ610:$DO610,\"Other\")=COUNTA('Enrollment Form'!$DF610,'Enrollment Form'!$DA610,'Enrollment Form'!$DK610,'Enrollment Form'!$DP610),\"Y\",\"N\"))","v":""},{"$f":"IF($B603=\"N\",\"\",IF(OR('Enrollment Form'!B610<>\"Subscriber\",'Enrollment Form'!C610=\"ROC\",COUNTIF('Enrollment Form'!AS610:AT610,\"Yes\")>=1),\"-\",IF(AND('Enrollment Form'!C610=\"Enroll\",COUNTIF('Enrollment Form'!AS610:AT610,\"No\")=2,'Enrollment Form'!AU610=\"\"),\"N\",\"Y\")))","v":""},{"$f":"IF(OR(B603=\"N\",'Enrollment Form'!B610<>\"Subscriber\",'Enrollment Form'!C610=\"ROC\",'Enrollment Form'!O610<>\"Multiple of Salary\"),\"-\",IF(COUNTA('Enrollment Form'!T610:U610)<2,\"N\",\"Y\"))","v":"-"},{"$f":"IF(B603=\"N\",\"\",IF(OR('Enrollment Form'!C610=\"ROC\",'Enrollment Form'!B610<>\"Subscriber\",'Enrollment Form'!O610=\"Waive\",'Enrollment Form'!O610=\"\"),\"-\",IF('Enrollment Form'!P610=\"\",\"N\",\"Y\")))","v":""},{"$f":"IF($B603=\"N\",\"\",IF(AND('Enrollment Form'!$C610=\"ROC\",'Enrollment Form'!$DS610<>\"\"),\"Y\",IF(AND('Enrollment Form'!$C610=\"ROC\",'Enrollment Form'!$DS610=\"\"),\"N\",IF(AND('Enrollment Form'!$C610=\"Enroll\",'Enrollment Form'!$B610=\"Subscriber\",'Enrollment Form'!$CQ610=\"No\",'Enrollment Form'!$DS610=\"\"),\"N\",IF(AND('Enrollment Form'!$C610=\"Enroll\",'Enrollment Form'!$B610=\"Subscriber\",'Enrollment Form'!$CQ610=\"Yes\"),\"-\",\"Y\")))))","v":""},{"$f":"IF($B603=\"N\",\"\",IF(AND('Enrollment Form'!$C610=\"ROC\",'Enrollment Form'!$DT610<>\"\"),\"Y\",IF(AND('Enrollment Form'!$C610=\"ROC\",'Enrollment Form'!$DT610=\"\"),\"N\",IF(AND('Enrollment Form'!$C610=\"Enroll\",'Enrollment Form'!$B610=\"Subscriber\",'Enrollment Form'!$CQ610=\"No\",'Enrollment Form'!$DT610=\"\"),\"N\",IF(AND('Enrollment Form'!$C610=\"Enroll\",'Enrollment Form'!$B610=\"Subscriber\",'Enrollment Form'!$CQ610=\"Yes\"),\"-\",\"Y\")))))","v":""},{"$f":"IF('Enrollment Form'!AH610=\"\",\"\",IF(ISERROR(SEARCH(\".\",'Enrollment Form'!AH610,SEARCH(\"@\",'Enrollment Form'!AH610))),\"N\",\"Y\"))","v":""},{"$f":"IF(OR($B603=\"N\",'Enrollment Form'!$G610=\"\"),\"\",IF('Enrollment Form'!$B610<>\"Subscriber\",\"-\",IF(COUNTIF('Enrollment Form'!$AS610:$AT610,\"Yes\")=2,\"N\",\"Y\")))","v":""},{"$f":"IF(OR('Enrollment Form'!$CC610=\"\",'Enrollment Form'!$CC610=\"No\"),\"-\",IF(AND('Enrollment Form'!$CC610=\"Yes\",'Enrollment Form'!$CD610=\"\"),\"N\",\"Y\"))","v":"-"},{"$f":"IF(OR('Enrollment Form'!$CE610=\"\",'Enrollment Form'!$CE610=\"No\"),\"-\",IF(AND('Enrollment Form'!$CE610=\"Yes\",'Enrollment Form'!$CF610=\"\"),\"N\",\"Y\"))","v":"-"},{"$f":"IF(OR('Enrollment Form'!$CG610=\"\",'Enrollment Form'!$CG610=\"No\"),\"-\",IF(AND('Enrollment Form'!$CG610=\"Yes\",'Enrollment Form'!$CH610=\"\"),\"N\",\"Y\"))","v":"-"},{"$f":"IF(OR('Enrollment Form'!$CG610=\"\",'Enrollment Form'!$CG610=\"No\"),\"-\",IF(AND('Enrollment Form'!$CG610=\"Yes\",'Enrollment Form'!$CI610=\"\"),\"N\",\"Y\"))","v":"-"},{"$f":"IF('Enrollment Form'!B610<>\"Subscriber\",\"-\",IF(AND('Enrollment Form'!B610=\"Subscriber\",'Enrollment Form'!C610=\"Enroll\",'Enrollment Form'!AA610=\"\"),\"N\",\"Y\"))","v":"-"},{"$f":"IF(OR('Enrollment Form'!B610=\"Subscriber\",'Enrollment Form'!B610=\"\"),\"-\",IF('Enrollment Form'!BI610=\"\",\"N\",\"Y\"))","v":"-"},{"$f":"IF('Enrollment Form'!B610<>\"Subscriber\",\"-\",IF(AND('Enrollment Form'!B610=\"Subscriber\",'Enrollment Form'!G610=\"\"),\"N\",\"Y\"))","v":"-"},{"$f":"IF('Enrollment Form'!A610=\"\",\"\",IF('Enrollment Form'!B610=\"Subscriber\",\"-\",IF(AND('Enrollment Form'!B610<>\"Subscriber\",'Enrollment Form'!G610='Enrollment Form'!H610),\"N\",\"Y\")))","v":""},0]
[611,{"$f":"IF('Enrollment Form'!$A611<>\"\",\"Y\",\"N\")","v":"N"},{"$f":"IF(AND('Enrollment Form'!$B611=\"\",'Enrollment Form'!$C611<>\"\"),\"N\",IF($B604=\"N\",\"\",\"Y\"))","v":""},{"$f":"IF(OR($B604=\"N\",'Enrollment Form'!G611=\"\"),\"\",IF('Enrollment Form'!$B611<>\"Subscriber\",\"\",IF('Enrollment Form'!$G611='Enrollment Form'!$H611,\"Y\",\"N\")))","v":""},{"$f":"IF($B604=\"N\",\"\",IF(AND(COUNTIFS('Enrollment Form'!$H$11:$H$1000,'Enrollment Form'!$H611,'Enrollment Form'!$B$11:$B$1000,'Enrollment Form'!$B611)>1,'Enrollment Form'!$H611<>\"\"),\"N\",\"Y\"))","v":""},{"$f":"IF($B604=\"N\",\"\",IF(LEN('Enrollment Form'!$Y611)=0,\"\",IF(LEN('Enrollment Form'!$Y611)<>5,\"N\",\"Y\")))","v":""},{"$f":"IF($B604=\"N\",\"\",IF(LEN('Enrollment Form'!$AD611=0),\"\",IF(LEN('Enrollment Form'!$AD611)<>5,\"N\",\"Y\")))","v":""},{"$f":"IF($B604=\"N\",\"\",IF(LEN('Enrollment Form'!$BL611=0),\"\",IF(LEN('Enrollment Form'!$BL611)<>5,\"N\",\"Y\")))","v":""},{"$f":"IF($B604=\"N\",\"\",IF(LEN('Enrollment Form'!$AE611)=0,\"\",IF(LEN('Enrollment Form'!$AE611)<>10,\"N\",\"Y\")))","v":""},{"$f":"IF($B604=\"N\",\"\",IF(LEN('Enrollment Form'!$AF611)=0,\"\",IF(LEN('Enrollment Form'!$AF611)<>10,\"N\",\"Y\")))","v":""},{"$f":"IF('Enrollment Form'!$O611<>\"Graded\",\"-\",IF(AND('Enrollment Form'!$O611=\"Graded\",'Enrollment Form'!$AO611<>\"\"),\"Y\",\"N\"))","v":"-"},{"$f":"IF($B604=\"N\",\"\",IF(OR('Enrollment Form'!$B611<>\"Subscriber\",'Enrollment Form'!$C611=\"ROC\"),\"-\",IF(AND('Enrollment Form'!$B611=\"Subscriber\",'Enrollment Form'!$C611=\"Enroll\",'Enrollment Form'!$AJ611<>\"\"),\"Y\",\"N\")))","v":""},{"$f":"IF($B604=\"N\",\"\",IF(OR('Enrollment Form'!$B611<>\"Subscriber\",'Enrollment Form'!$C611=\"ROC\"),\"-\",IF(AND('Enrollment Form'!$B611=\"Subscriber\",'Enrollment Form'!$C611=\"Enroll\",'Enrollment Form'!$AK611<>\"\"),\"Y\",\"N\")))","v":""},{"$f":"IF($B604=\"N\",\"\",IF(OR('Enrollment Form'!$B611<>\"Subscriber\",'Enrollment Form'!$C611=\"ROC\"),\"-\",IF(AND('Enrollment Form'!$B611=\"Subscriber\",'Enrollment Form'!$C611=\"Enroll\",'Enrollment Form'!$AL611<>\"\"),\"Y\",\"N\")))","v":""},{"$f":"IF($B604=\"N\",\"\",IF(OR('Enrollment Form'!$B611<>\"Subscriber\",'Enrollment Form'!$C611=\"ROC\"),\"-\",IF(AND('Enrollment Form'!$B611=\"Subscriber\",'Enrollment Form'!$C611=\"Enroll\",'Enrollment Form'!$AM611<>\"\"),\"Y\",\"N\")))","v":""},{"$f":"IF($B604=\"N\",\"\",IF(OR('Enrollment Form'!$B611<>\"Subscriber\",'Enrollment Form'!$C611=\"ROC\"),\"-\",IF(AND('Enrollment Form'!$B611=\"Subscriber\",'Enrollment Form'!$C611=\"Enroll\",'Enrollment Form'!$AN611<>\"\"),\"Y\",\"N\")))","v":""},{"$f":"IF($B604=\"N\",\"\",IF(OR('Enrollment Form'!$B611<>\"Subscriber\",'Enrollment Form'!$C611=\"ROC\"),\"-\",IF(AND('Enrollment Form'!$B611=\"Subscriber\",'Enrollment Form'!$C611=\"Enroll\",'Enrollment Form'!$AP611<>\"\"),\"Y\",\"N\")))","v":""},{"$f":"IF($B604=\"N\",\"\",IF($Q604=\"-\",\"-\",IF(AND($Q604=\"Y\",'Enrollment Form'!$AP611=\"No\"),\"-\",IF(AND($Q604=\"Y\",'Enrollment Form'!$AP611=\"Yes\",'Enrollment Form'!$AQ611<>\"\"),\"Y\",\"N\"))))","v":""},{"$f":"IF($B604=\"N\",\"\",IF(OR('Enrollment Form'!$B611<>\"Subscriber\",'Enrollment Form'!$C611=\"ROC\"),\"-\",IF(AND('Enrollment Form'!$B611=\"Subscriber\",'Enrollment Form'!$C611=\"Enroll\",'Enrollment Form'!$CO611<>\"\"),\"Y\",\"N\")))","v":""},{"$f":"IF($B604=\"N\",\"\",IF($S604=\"-\",\"-\",IF(AND($S604=\"Y\",'Enrollment Form'!$CO611=\"No\"),\"-\",IF(AND($S604=\"Y\",'Enrollment Form'!$CO611=\"Yes\",'Enrollment Form'!$CP611<>\"\"),\"Y\",\"N\"))))","v":""},{"$f":"IF(OR('Enrollment Form'!$AV611=\"Yes\",'Enrollment Form'!$AV611=\"\"),\"-\",IF(AND('Enrollment Form'!$AV611=\"No\",ISERROR(FIND(\"HMO\",VLOOKUP('Enrollment Form'!G611,'Enrollment Form'!H$11:J$1000,3,FALSE),1))=FALSE,COUNTA('Enrollment Form'!$AW611:$AZ611)=4),\"Y\",\"N\"))","v":"-"},{"$f":"IF($B604=\"N\",\"\",IF('Enrollment Form'!$B611=\"Subscriber\",\"-\",IF(COUNTA('Enrollment Form'!$BE611,'Enrollment Form'!$BG611)=2,\"Y\",\"N\")))","v":""},{"$f":"IF($B604=\"N\",\"\",IF(OR('Enrollment Form'!$AU611=\"\",'Enrollment Form'!$AU611=\"No\"),\"-\",IF(AND('Enrollment Form'!$AU611=\"Yes\",COUNTA('Enrollment Form'!$CK611)=1),\"Y\",\"N\")))","v":""},{"$f":"IF(OR('Enrollment Form'!$CK611=\"\",'Enrollment Form'!$CK611=\"No\"),\"-\",IF(COUNTA('Enrollment Form'!$CM611:$CN611)=2,\"Y\",\"N\"))","v":"-"},{"$f":"IF($B604=\"N\",\"\",IF(COUNTIF('Enrollment Form'!$CZ611:$DO611,\"Other\")=COUNTA('Enrollment Form'!$DF611,'Enrollment Form'!$DA611,'Enrollment Form'!$DK611,'Enrollment Form'!$DP611),\"Y\",\"N\"))","v":""},{"$f":"IF($B604=\"N\",\"\",IF(OR('Enrollment Form'!B611<>\"Subscriber\",'Enrollment Form'!C611=\"ROC\",COUNTIF('Enrollment Form'!AS611:AT611,\"Yes\")>=1),\"-\",IF(AND('Enrollment Form'!C611=\"Enroll\",COUNTIF('Enrollment Form'!AS611:AT611,\"No\")=2,'Enrollment Form'!AU611=\"\"),\"N\",\"Y\")))","v":""},{"$f":"IF(OR(B604=\"N\",'Enrollment Form'!B611<>\"Subscriber\",'Enrollment Form'!C611=\"ROC\",'Enrollment Form'!O611<>\"Multiple of Salary\"),\"-\",IF(COUNTA('Enrollment Form'!T611:U611)<2,\"N\",\"Y\"))","v":"-"},{"$f":"IF(B604=\"N\",\"\",IF(OR('Enrollment Form'!C611=\"ROC\",'Enrollment Form'!B611<>\"Subscriber\",'Enrollment Form'!O611=\"Waive\",'Enrollment Form'!O611=\"\"),\"-\",IF('Enrollment Form'!P611=\"\",\"N\",\"Y\")))","v":""},{"$f":"IF($B604=\"N\",\"\",IF(AND('Enrollment Form'!$C611=\"ROC\",'Enrollment Form'!$DS611<>\"\"),\"Y\",IF(AND('Enrollment Form'!$C611=\"ROC\",'Enrollment Form'!$DS611=\"\"),\"N\",IF(AND('Enrollment Form'!$C611=\"Enroll\",'Enrollment Form'!$B611=\"Subscriber\",'Enrollment Form'!$CQ611=\"No\",'Enrollment Form'!$DS611=\"\"),\"N\",IF(AND('Enrollment Form'!$C611=\"Enroll\",'Enrollment Form'!$B611=\"Subscriber\",'Enrollment Form'!$CQ611=\"Yes\"),\"-\",\"Y\")))))","v":""},{"$f":"IF($B604=\"N\",\"\",IF(AND('Enrollment Form'!$C611=\"ROC\",'Enrollment Form'!$DT611<>\"\"),\"Y\",IF(AND('Enrollment Form'!$C611=\"ROC\",'Enrollment Form'!$DT611=\"\"),\"N\",IF(AND('Enrollment Form'!$C611=\"Enroll\",'Enrollment Form'!$B611=\"Subscriber\",'Enrollment Form'!$CQ611=\"No\",'Enrollment Form'!$DT611=\"\"),\"N\",IF(AND('Enrollment Form'!$C611=\"Enroll\",'Enrollment Form'!$B611=\"Subscriber\",'Enrollment Form'!$CQ611=\"Yes\"),\"-\",\"Y\")))))","v":""},{"$f":"IF('Enrollment Form'!AH611=\"\",\"\",IF(ISERROR(SEARCH(\".\",'Enrollment Form'!AH611,SEARCH(\"@\",'Enrollment Form'!AH611))),\"N\",\"Y\"))","v":""},{"$f":"IF(OR($B604=\"N\",'Enrollment Form'!$G611=\"\"),\"\",IF('Enrollment Form'!$B611<>\"Subscriber\",\"-\",IF(COUNTIF('Enrollment Form'!$AS611:$AT611,\"Yes\")=2,\"N\",\"Y\")))","v":""},{"$f":"IF(OR('Enrollment Form'!$CC611=\"\",'Enrollment Form'!$CC611=\"No\"),\"-\",IF(AND('Enrollment Form'!$CC611=\"Yes\",'Enrollment Form'!$CD611=\"\"),\"N\",\"Y\"))","v":"-"},{"$f":"IF(OR('Enrollment Form'!$CE611=\"\",'Enrollment Form'!$CE611=\"No\"),\"-\",IF(AND('Enrollment Form'!$CE611=\"Yes\",'Enrollment Form'!$CF611=\"\"),\"N\",\"Y\"))","v":"-"},{"$f":"IF(OR('Enrollment Form'!$CG611=\"\",'Enrollment Form'!$CG611=\"No\"),\"-\",IF(AND('Enrollment Form'!$CG611=\"Yes\",'Enrollment Form'!$CH611=\"\"),\"N\",\"Y\"))","v":"-"},{"$f":"IF(OR('Enrollment Form'!$CG611=\"\",'Enrollment Form'!$CG611=\"No\"),\"-\",IF(AND('Enrollment Form'!$CG611=\"Yes\",'Enrollment Form'!$CI611=\"\"),\"N\",\"Y\"))","v":"-"},{"$f":"IF('Enrollment Form'!B611<>\"Subscriber\",\"-\",IF(AND('Enrollment Form'!B611=\"Subscriber\",'Enrollment Form'!C611=\"Enroll\",'Enrollment Form'!AA611=\"\"),\"N\",\"Y\"))","v":"-"},{"$f":"IF(OR('Enrollment Form'!B611=\"Subscriber\",'Enrollment Form'!B611=\"\"),\"-\",IF('Enrollment Form'!BI611=\"\",\"N\",\"Y\"))","v":"-"},{"$f":"IF('Enrollment Form'!B611<>\"Subscriber\",\"-\",IF(AND('Enrollment Form'!B611=\"Subscriber\",'Enrollment Form'!G611=\"\"),\"N\",\"Y\"))","v":"-"},{"$f":"IF('Enrollment Form'!A611=\"\",\"\",IF('Enrollment Form'!B611=\"Subscriber\",\"-\",IF(AND('Enrollment Form'!B611<>\"Subscriber\",'Enrollment Form'!G611='Enrollment Form'!H611),\"N\",\"Y\")))","v":""},0]
[612,{"$f":"IF('Enrollment Form'!$A612<>\"\",\"Y\",\"N\")","v":"N"},{"$f":"IF(AND('Enrollment Form'!$B612=\"\",'Enrollment Form'!$C612<>\"\"),\"N\",IF($B605=\"N\",\"\",\"Y\"))","v":""},{"$f":"IF(OR($B605=\"N\",'Enrollment Form'!G612=\"\"),\"\",IF('Enrollment Form'!$B612<>\"Subscriber\",\"\",IF('Enrollment Form'!$G612='Enrollment Form'!$H612,\"Y\",\"N\")))","v":""},{"$f":"IF($B605=\"N\",\"\",IF(AND(COUNTIFS('Enrollment Form'!$H$11:$H$1000,'Enrollment Form'!$H612,'Enrollment Form'!$B$11:$B$1000,'Enrollment Form'!$B612)>1,'Enrollment Form'!$H612<>\"\"),\"N\",\"Y\"))","v":""},{"$f":"IF($B605=\"N\",\"\",IF(LEN('Enrollment Form'!$Y612)=0,\"\",IF(LEN('Enrollment Form'!$Y612)<>5,\"N\",\"Y\")))","v":""},{"$f":"IF($B605=\"N\",\"\",IF(LEN('Enrollment Form'!$AD612=0),\"\",IF(LEN('Enrollment Form'!$AD612)<>5,\"N\",\"Y\")))","v":""},{"$f":"IF($B605=\"N\",\"\",IF(LEN('Enrollment Form'!$BL612=0),\"\",IF(LEN('Enrollment Form'!$BL612)<>5,\"N\",\"Y\")))","v":""},{"$f":"IF($B605=\"N\",\"\",IF(LEN('Enrollment Form'!$AE612)=0,\"\",IF(LEN('Enrollment Form'!$AE612)<>10,\"N\",\"Y\")))","v":""},{"$f":"IF($B605=\"N\",\"\",IF(LEN('Enrollment Form'!$AF612)=0,\"\",IF(LEN('Enrollment Form'!$AF612)<>10,\"N\",\"Y\")))","v":""},{"$f":"IF('Enrollment Form'!$O612<>\"Graded\",\"-\",IF(AND('Enrollment Form'!$O612=\"Graded\",'Enrollment Form'!$AO612<>\"\"),\"Y\",\"N\"))","v":"-"},{"$f":"IF($B605=\"N\",\"\",IF(OR('Enrollment Form'!$B612<>\"Subscriber\",'Enrollment Form'!$C612=\"ROC\"),\"-\",IF(AND('Enrollment Form'!$B612=\"Subscriber\",'Enrollment Form'!$C612=\"Enroll\",'Enrollment Form'!$AJ612<>\"\"),\"Y\",\"N\")))","v":""},{"$f":"IF($B605=\"N\",\"\",IF(OR('Enrollment Form'!$B612<>\"Subscriber\",'Enrollment Form'!$C612=\"ROC\"),\"-\",IF(AND('Enrollment Form'!$B612=\"Subscriber\",'Enrollment Form'!$C612=\"Enroll\",'Enrollment Form'!$AK612<>\"\"),\"Y\",\"N\")))","v":""},{"$f":"IF($B605=\"N\",\"\",IF(OR('Enrollment Form'!$B612<>\"Subscriber\",'Enrollment Form'!$C612=\"ROC\"),\"-\",IF(AND('Enrollment Form'!$B612=\"Subscriber\",'Enrollment Form'!$C612=\"Enroll\",'Enrollment Form'!$AL612<>\"\"),\"Y\",\"N\")))","v":""},{"$f":"IF($B605=\"N\",\"\",IF(OR('Enrollment Form'!$B612<>\"Subscriber\",'Enrollment Form'!$C612=\"ROC\"),\"-\",IF(AND('Enrollment Form'!$B612=\"Subscriber\",'Enrollment Form'!$C612=\"Enroll\",'Enrollment Form'!$AM612<>\"\"),\"Y\",\"N\")))","v":""},{"$f":"IF($B605=\"N\",\"\",IF(OR('Enrollment Form'!$B612<>\"Subscriber\",'Enrollment Form'!$C612=\"ROC\"),\"-\",IF(AND('Enrollment Form'!$B612=\"Subscriber\",'Enrollment Form'!$C612=\"Enroll\",'Enrollment Form'!$AN612<>\"\"),\"Y\",\"N\")))","v":""},{"$f":"IF($B605=\"N\",\"\",IF(OR('Enrollment Form'!$B612<>\"Subscriber\",'Enrollment Form'!$C612=\"ROC\"),\"-\",IF(AND('Enrollment Form'!$B612=\"Subscriber\",'Enrollment Form'!$C612=\"Enroll\",'Enrollment Form'!$AP612<>\"\"),\"Y\",\"N\")))","v":""},{"$f":"IF($B605=\"N\",\"\",IF($Q605=\"-\",\"-\",IF(AND($Q605=\"Y\",'Enrollment Form'!$AP612=\"No\"),\"-\",IF(AND($Q605=\"Y\",'Enrollment Form'!$AP612=\"Yes\",'Enrollment Form'!$AQ612<>\"\"),\"Y\",\"N\"))))","v":""},{"$f":"IF($B605=\"N\",\"\",IF(OR('Enrollment Form'!$B612<>\"Subscriber\",'Enrollment Form'!$C612=\"ROC\"),\"-\",IF(AND('Enrollment Form'!$B612=\"Subscriber\",'Enrollment Form'!$C612=\"Enroll\",'Enrollment Form'!$CO612<>\"\"),\"Y\",\"N\")))","v":""},{"$f":"IF($B605=\"N\",\"\",IF($S605=\"-\",\"-\",IF(AND($S605=\"Y\",'Enrollment Form'!$CO612=\"No\"),\"-\",IF(AND($S605=\"Y\",'Enrollment Form'!$CO612=\"Yes\",'Enrollment Form'!$CP612<>\"\"),\"Y\",\"N\"))))","v":""},{"$f":"IF(OR('Enrollment Form'!$AV612=\"Yes\",'Enrollment Form'!$AV612=\"\"),\"-\",IF(AND('Enrollment Form'!$AV612=\"No\",ISERROR(FIND(\"HMO\",VLOOKUP('Enrollment Form'!G612,'Enrollment Form'!H$11:J$1000,3,FALSE),1))=FALSE,COUNTA('Enrollment Form'!$AW612:$AZ612)=4),\"Y\",\"N\"))","v":"-"},{"$f":"IF($B605=\"N\",\"\",IF('Enrollment Form'!$B612=\"Subscriber\",\"-\",IF(COUNTA('Enrollment Form'!$BE612,'Enrollment Form'!$BG612)=2,\"Y\",\"N\")))","v":""},{"$f":"IF($B605=\"N\",\"\",IF(OR('Enrollment Form'!$AU612=\"\",'Enrollment Form'!$AU612=\"No\"),\"-\",IF(AND('Enrollment Form'!$AU612=\"Yes\",COUNTA('Enrollment Form'!$CK612)=1),\"Y\",\"N\")))","v":""},{"$f":"IF(OR('Enrollment Form'!$CK612=\"\",'Enrollment Form'!$CK612=\"No\"),\"-\",IF(COUNTA('Enrollment Form'!$CM612:$CN612)=2,\"Y\",\"N\"))","v":"-"},{"$f":"IF($B605=\"N\",\"\",IF(COUNTIF('Enrollment Form'!$CZ612:$DO612,\"Other\")=COUNTA('Enrollment Form'!$DF612,'Enrollment Form'!$DA612,'Enrollment Form'!$DK612,'Enrollment Form'!$DP612),\"Y\",\"N\"))","v":""},{"$f":"IF($B605=\"N\",\"\",IF(OR('Enrollment Form'!B612<>\"Subscriber\",'Enrollment Form'!C612=\"ROC\",COUNTIF('Enrollment Form'!AS612:AT612,\"Yes\")>=1),\"-\",IF(AND('Enrollment Form'!C612=\"Enroll\",COUNTIF('Enrollment Form'!AS612:AT612,\"No\")=2,'Enrollment Form'!AU612=\"\"),\"N\",\"Y\")))","v":""},{"$f":"IF(OR(B605=\"N\",'Enrollment Form'!B612<>\"Subscriber\",'Enrollment Form'!C612=\"ROC\",'Enrollment Form'!O612<>\"Multiple of Salary\"),\"-\",IF(COUNTA('Enrollment Form'!T612:U612)<2,\"N\",\"Y\"))","v":"-"},{"$f":"IF(B605=\"N\",\"\",IF(OR('Enrollment Form'!C612=\"ROC\",'Enrollment Form'!B612<>\"Subscriber\",'Enrollment Form'!O612=\"Waive\",'Enrollment Form'!O612=\"\"),\"-\",IF('Enrollment Form'!P612=\"\",\"N\",\"Y\")))","v":""},{"$f":"IF($B605=\"N\",\"\",IF(AND('Enrollment Form'!$C612=\"ROC\",'Enrollment Form'!$DS612<>\"\"),\"Y\",IF(AND('Enrollment Form'!$C612=\"ROC\",'Enrollment Form'!$DS612=\"\"),\"N\",IF(AND('Enrollment Form'!$C612=\"Enroll\",'Enrollment Form'!$B612=\"Subscriber\",'Enrollment Form'!$CQ612=\"No\",'Enrollment Form'!$DS612=\"\"),\"N\",IF(AND('Enrollment Form'!$C612=\"Enroll\",'Enrollment Form'!$B612=\"Subscriber\",'Enrollment Form'!$CQ612=\"Yes\"),\"-\",\"Y\")))))","v":""},{"$f":"IF($B605=\"N\",\"\",IF(AND('Enrollment Form'!$C612=\"ROC\",'Enrollment Form'!$DT612<>\"\"),\"Y\",IF(AND('Enrollment Form'!$C612=\"ROC\",'Enrollment Form'!$DT612=\"\"),\"N\",IF(AND('Enrollment Form'!$C612=\"Enroll\",'Enrollment Form'!$B612=\"Subscriber\",'Enrollment Form'!$CQ612=\"No\",'Enrollment Form'!$DT612=\"\"),\"N\",IF(AND('Enrollment Form'!$C612=\"Enroll\",'Enrollment Form'!$B612=\"Subscriber\",'Enrollment Form'!$CQ612=\"Yes\"),\"-\",\"Y\")))))","v":""},{"$f":"IF('Enrollment Form'!AH612=\"\",\"\",IF(ISERROR(SEARCH(\".\",'Enrollment Form'!AH612,SEARCH(\"@\",'Enrollment Form'!AH612))),\"N\",\"Y\"))","v":""},{"$f":"IF(OR($B605=\"N\",'Enrollment Form'!$G612=\"\"),\"\",IF('Enrollment Form'!$B612<>\"Subscriber\",\"-\",IF(COUNTIF('Enrollment Form'!$AS612:$AT612,\"Yes\")=2,\"N\",\"Y\")))","v":""},{"$f":"IF(OR('Enrollment Form'!$CC612=\"\",'Enrollment Form'!$CC612=\"No\"),\"-\",IF(AND('Enrollment Form'!$CC612=\"Yes\",'Enrollment Form'!$CD612=\"\"),\"N\",\"Y\"))","v":"-"},{"$f":"IF(OR('Enrollment Form'!$CE612=\"\",'Enrollment Form'!$CE612=\"No\"),\"-\",IF(AND('Enrollment Form'!$CE612=\"Yes\",'Enrollment Form'!$CF612=\"\"),\"N\",\"Y\"))","v":"-"},{"$f":"IF(OR('Enrollment Form'!$CG612=\"\",'Enrollment Form'!$CG612=\"No\"),\"-\",IF(AND('Enrollment Form'!$CG612=\"Yes\",'Enrollment Form'!$CH612=\"\"),\"N\",\"Y\"))","v":"-"},{"$f":"IF(OR('Enrollment Form'!$CG612=\"\",'Enrollment Form'!$CG612=\"No\"),\"-\",IF(AND('Enrollment Form'!$CG612=\"Yes\",'Enrollment Form'!$CI612=\"\"),\"N\",\"Y\"))","v":"-"},{"$f":"IF('Enrollment Form'!B612<>\"Subscriber\",\"-\",IF(AND('Enrollment Form'!B612=\"Subscriber\",'Enrollment Form'!C612=\"Enroll\",'Enrollment Form'!AA612=\"\"),\"N\",\"Y\"))","v":"-"},{"$f":"IF(OR('Enrollment Form'!B612=\"Subscriber\",'Enrollment Form'!B612=\"\"),\"-\",IF('Enrollment Form'!BI612=\"\",\"N\",\"Y\"))","v":"-"},{"$f":"IF('Enrollment Form'!B612<>\"Subscriber\",\"-\",IF(AND('Enrollment Form'!B612=\"Subscriber\",'Enrollment Form'!G612=\"\"),\"N\",\"Y\"))","v":"-"},{"$f":"IF('Enrollment Form'!A612=\"\",\"\",IF('Enrollment Form'!B612=\"Subscriber\",\"-\",IF(AND('Enrollment Form'!B612<>\"Subscriber\",'Enrollment Form'!G612='Enrollment Form'!H612),\"N\",\"Y\")))","v":""},0]
[613,{"$f":"IF('Enrollment Form'!$A613<>\"\",\"Y\",\"N\")","v":"N"},{"$f":"IF(AND('Enrollment Form'!$B613=\"\",'Enrollment Form'!$C613<>\"\"),\"N\",IF($B606=\"N\",\"\",\"Y\"))","v":""},{"$f":"IF(OR($B606=\"N\",'Enrollment Form'!G613=\"\"),\"\",IF('Enrollment Form'!$B613<>\"Subscriber\",\"\",IF('Enrollment Form'!$G613='Enrollment Form'!$H613,\"Y\",\"N\")))","v":""},{"$f":"IF($B606=\"N\",\"\",IF(AND(COUNTIFS('Enrollment Form'!$H$11:$H$1000,'Enrollment Form'!$H613,'Enrollment Form'!$B$11:$B$1000,'Enrollment Form'!$B613)>1,'Enrollment Form'!$H613<>\"\"),\"N\",\"Y\"))","v":""},{"$f":"IF($B606=\"N\",\"\",IF(LEN('Enrollment Form'!$Y613)=0,\"\",IF(LEN('Enrollment Form'!$Y613)<>5,\"N\",\"Y\")))","v":""},{"$f":"IF($B606=\"N\",\"\",IF(LEN('Enrollment Form'!$AD613=0),\"\",IF(LEN('Enrollment Form'!$AD613)<>5,\"N\",\"Y\")))","v":""},{"$f":"IF($B606=\"N\",\"\",IF(LEN('Enrollment Form'!$BL613=0),\"\",IF(LEN('Enrollment Form'!$BL613)<>5,\"N\",\"Y\")))","v":""},{"$f":"IF($B606=\"N\",\"\",IF(LEN('Enrollment Form'!$AE613)=0,\"\",IF(LEN('Enrollment Form'!$AE613)<>10,\"N\",\"Y\")))","v":""},{"$f":"IF($B606=\"N\",\"\",IF(LEN('Enrollment Form'!$AF613)=0,\"\",IF(LEN('Enrollment Form'!$AF613)<>10,\"N\",\"Y\")))","v":""},{"$f":"IF('Enrollment Form'!$O613<>\"Graded\",\"-\",IF(AND('Enrollment Form'!$O613=\"Graded\",'Enrollment Form'!$AO613<>\"\"),\"Y\",\"N\"))","v":"-"},{"$f":"IF($B606=\"N\",\"\",IF(OR('Enrollment Form'!$B613<>\"Subscriber\",'Enrollment Form'!$C613=\"ROC\"),\"-\",IF(AND('Enrollment Form'!$B613=\"Subscriber\",'Enrollment Form'!$C613=\"Enroll\",'Enrollment Form'!$AJ613<>\"\"),\"Y\",\"N\")))","v":""},{"$f":"IF($B606=\"N\",\"\",IF(OR('Enrollment Form'!$B613<>\"Subscriber\",'Enrollment Form'!$C613=\"ROC\"),\"-\",IF(AND('Enrollment Form'!$B613=\"Subscriber\",'Enrollment Form'!$C613=\"Enroll\",'Enrollment Form'!$AK613<>\"\"),\"Y\",\"N\")))","v":""},{"$f":"IF($B606=\"N\",\"\",IF(OR('Enrollment Form'!$B613<>\"Subscriber\",'Enrollment Form'!$C613=\"ROC\"),\"-\",IF(AND('Enrollment Form'!$B613=\"Subscriber\",'Enrollment Form'!$C613=\"Enroll\",'Enrollment Form'!$AL613<>\"\"),\"Y\",\"N\")))","v":""},{"$f":"IF($B606=\"N\",\"\",IF(OR('Enrollment Form'!$B613<>\"Subscriber\",'Enrollment Form'!$C613=\"ROC\"),\"-\",IF(AND('Enrollment Form'!$B613=\"Subscriber\",'Enrollment Form'!$C613=\"Enroll\",'Enrollment Form'!$AM613<>\"\"),\"Y\",\"N\")))","v":""},{"$f":"IF($B606=\"N\",\"\",IF(OR('Enrollment Form'!$B613<>\"Subscriber\",'Enrollment Form'!$C613=\"ROC\"),\"-\",IF(AND('Enrollment Form'!$B613=\"Subscriber\",'Enrollment Form'!$C613=\"Enroll\",'Enrollment Form'!$AN613<>\"\"),\"Y\",\"N\")))","v":""},{"$f":"IF($B606=\"N\",\"\",IF(OR('Enrollment Form'!$B613<>\"Subscriber\",'Enrollment Form'!$C613=\"ROC\"),\"-\",IF(AND('Enrollment Form'!$B613=\"Subscriber\",'Enrollment Form'!$C613=\"Enroll\",'Enrollment Form'!$AP613<>\"\"),\"Y\",\"N\")))","v":""},{"$f":"IF($B606=\"N\",\"\",IF($Q606=\"-\",\"-\",IF(AND($Q606=\"Y\",'Enrollment Form'!$AP613=\"No\"),\"-\",IF(AND($Q606=\"Y\",'Enrollment Form'!$AP613=\"Yes\",'Enrollment Form'!$AQ613<>\"\"),\"Y\",\"N\"))))","v":""},{"$f":"IF($B606=\"N\",\"\",IF(OR('Enrollment Form'!$B613<>\"Subscriber\",'Enrollment Form'!$C613=\"ROC\"),\"-\",IF(AND('Enrollment Form'!$B613=\"Subscriber\",'Enrollment Form'!$C613=\"Enroll\",'Enrollment Form'!$CO613<>\"\"),\"Y\",\"N\")))","v":""},{"$f":"IF($B606=\"N\",\"\",IF($S606=\"-\",\"-\",IF(AND($S606=\"Y\",'Enrollment Form'!$CO613=\"No\"),\"-\",IF(AND($S606=\"Y\",'Enrollment Form'!$CO613=\"Yes\",'Enrollment Form'!$CP613<>\"\"),\"Y\",\"N\"))))","v":""},{"$f":"IF(OR('Enrollment Form'!$AV613=\"Yes\",'Enrollment Form'!$AV613=\"\"),\"-\",IF(AND('Enrollment Form'!$AV613=\"No\",ISERROR(FIND(\"HMO\",VLOOKUP('Enrollment Form'!G613,'Enrollment Form'!H$11:J$1000,3,FALSE),1))=FALSE,COUNTA('Enrollment Form'!$AW613:$AZ613)=4),\"Y\",\"N\"))","v":"-"},{"$f":"IF($B606=\"N\",\"\",IF('Enrollment Form'!$B613=\"Subscriber\",\"-\",IF(COUNTA('Enrollment Form'!$BE613,'Enrollment Form'!$BG613)=2,\"Y\",\"N\")))","v":""},{"$f":"IF($B606=\"N\",\"\",IF(OR('Enrollment Form'!$AU613=\"\",'Enrollment Form'!$AU613=\"No\"),\"-\",IF(AND('Enrollment Form'!$AU613=\"Yes\",COUNTA('Enrollment Form'!$CK613)=1),\"Y\",\"N\")))","v":""},{"$f":"IF(OR('Enrollment Form'!$CK613=\"\",'Enrollment Form'!$CK613=\"No\"),\"-\",IF(COUNTA('Enrollment Form'!$CM613:$CN613)=2,\"Y\",\"N\"))","v":"-"},{"$f":"IF($B606=\"N\",\"\",IF(COUNTIF('Enrollment Form'!$CZ613:$DO613,\"Other\")=COUNTA('Enrollment Form'!$DF613,'Enrollment Form'!$DA613,'Enrollment Form'!$DK613,'Enrollment Form'!$DP613),\"Y\",\"N\"))","v":""},{"$f":"IF($B606=\"N\",\"\",IF(OR('Enrollment Form'!B613<>\"Subscriber\",'Enrollment Form'!C613=\"ROC\",COUNTIF('Enrollment Form'!AS613:AT613,\"Yes\")>=1),\"-\",IF(AND('Enrollment Form'!C613=\"Enroll\",COUNTIF('Enrollment Form'!AS613:AT613,\"No\")=2,'Enrollment Form'!AU613=\"\"),\"N\",\"Y\")))","v":""},{"$f":"IF(OR(B606=\"N\",'Enrollment Form'!B613<>\"Subscriber\",'Enrollment Form'!C613=\"ROC\",'Enrollment Form'!O613<>\"Multiple of Salary\"),\"-\",IF(COUNTA('Enrollment Form'!T613:U613)<2,\"N\",\"Y\"))","v":"-"},{"$f":"IF(B606=\"N\",\"\",IF(OR('Enrollment Form'!C613=\"ROC\",'Enrollment Form'!B613<>\"Subscriber\",'Enrollment Form'!O613=\"Waive\",'Enrollment Form'!O613=\"\"),\"-\",IF('Enrollment Form'!P613=\"\",\"N\",\"Y\")))","v":""},{"$f":"IF($B606=\"N\",\"\",IF(AND('Enrollment Form'!$C613=\"ROC\",'Enrollment Form'!$DS613<>\"\"),\"Y\",IF(AND('Enrollment Form'!$C613=\"ROC\",'Enrollment Form'!$DS613=\"\"),\"N\",IF(AND('Enrollment Form'!$C613=\"Enroll\",'Enrollment Form'!$B613=\"Subscriber\",'Enrollment Form'!$CQ613=\"No\",'Enrollment Form'!$DS613=\"\"),\"N\",IF(AND('Enrollment Form'!$C613=\"Enroll\",'Enrollment Form'!$B613=\"Subscriber\",'Enrollment Form'!$CQ613=\"Yes\"),\"-\",\"Y\")))))","v":""},{"$f":"IF($B606=\"N\",\"\",IF(AND('Enrollment Form'!$C613=\"ROC\",'Enrollment Form'!$DT613<>\"\"),\"Y\",IF(AND('Enrollment Form'!$C613=\"ROC\",'Enrollment Form'!$DT613=\"\"),\"N\",IF(AND('Enrollment Form'!$C613=\"Enroll\",'Enrollment Form'!$B613=\"Subscriber\",'Enrollment Form'!$CQ613=\"No\",'Enrollment Form'!$DT613=\"\"),\"N\",IF(AND('Enrollment Form'!$C613=\"Enroll\",'Enrollment Form'!$B613=\"Subscriber\",'Enrollment Form'!$CQ613=\"Yes\"),\"-\",\"Y\")))))","v":""},{"$f":"IF('Enrollment Form'!AH613=\"\",\"\",IF(ISERROR(SEARCH(\".\",'Enrollment Form'!AH613,SEARCH(\"@\",'Enrollment Form'!AH613))),\"N\",\"Y\"))","v":""},{"$f":"IF(OR($B606=\"N\",'Enrollment Form'!$G613=\"\"),\"\",IF('Enrollment Form'!$B613<>\"Subscriber\",\"-\",IF(COUNTIF('Enrollment Form'!$AS613:$AT613,\"Yes\")=2,\"N\",\"Y\")))","v":""},{"$f":"IF(OR('Enrollment Form'!$CC613=\"\",'Enrollment Form'!$CC613=\"No\"),\"-\",IF(AND('Enrollment Form'!$CC613=\"Yes\",'Enrollment Form'!$CD613=\"\"),\"N\",\"Y\"))","v":"-"},{"$f":"IF(OR('Enrollment Form'!$CE613=\"\",'Enrollment Form'!$CE613=\"No\"),\"-\",IF(AND('Enrollment Form'!$CE613=\"Yes\",'Enrollment Form'!$CF613=\"\"),\"N\",\"Y\"))","v":"-"},{"$f":"IF(OR('Enrollment Form'!$CG613=\"\",'Enrollment Form'!$CG613=\"No\"),\"-\",IF(AND('Enrollment Form'!$CG613=\"Yes\",'Enrollment Form'!$CH613=\"\"),\"N\",\"Y\"))","v":"-"},{"$f":"IF(OR('Enrollment Form'!$CG613=\"\",'Enrollment Form'!$CG613=\"No\"),\"-\",IF(AND('Enrollment Form'!$CG613=\"Yes\",'Enrollment Form'!$CI613=\"\"),\"N\",\"Y\"))","v":"-"},{"$f":"IF('Enrollment Form'!B613<>\"Subscriber\",\"-\",IF(AND('Enrollment Form'!B613=\"Subscriber\",'Enrollment Form'!C613=\"Enroll\",'Enrollment Form'!AA613=\"\"),\"N\",\"Y\"))","v":"-"},{"$f":"IF(OR('Enrollment Form'!B613=\"Subscriber\",'Enrollment Form'!B613=\"\"),\"-\",IF('Enrollment Form'!BI613=\"\",\"N\",\"Y\"))","v":"-"},{"$f":"IF('Enrollment Form'!B613<>\"Subscriber\",\"-\",IF(AND('Enrollment Form'!B613=\"Subscriber\",'Enrollment Form'!G613=\"\"),\"N\",\"Y\"))","v":"-"},{"$f":"IF('Enrollment Form'!A613=\"\",\"\",IF('Enrollment Form'!B613=\"Subscriber\",\"-\",IF(AND('Enrollment Form'!B613<>\"Subscriber\",'Enrollment Form'!G613='Enrollment Form'!H613),\"N\",\"Y\")))","v":""},0]
[614,{"$f":"IF('Enrollment Form'!$A614<>\"\",\"Y\",\"N\")","v":"N"},{"$f":"IF(AND('Enrollment Form'!$B614=\"\",'Enrollment Form'!$C614<>\"\"),\"N\",IF($B607=\"N\",\"\",\"Y\"))","v":""},{"$f":"IF(OR($B607=\"N\",'Enrollment Form'!G614=\"\"),\"\",IF('Enrollment Form'!$B614<>\"Subscriber\",\"\",IF('Enrollment Form'!$G614='Enrollment Form'!$H614,\"Y\",\"N\")))","v":""},{"$f":"IF($B607=\"N\",\"\",IF(AND(COUNTIFS('Enrollment Form'!$H$11:$H$1000,'Enrollment Form'!$H614,'Enrollment Form'!$B$11:$B$1000,'Enrollment Form'!$B614)>1,'Enrollment Form'!$H614<>\"\"),\"N\",\"Y\"))","v":""},{"$f":"IF($B607=\"N\",\"\",IF(LEN('Enrollment Form'!$Y614)=0,\"\",IF(LEN('Enrollment Form'!$Y614)<>5,\"N\",\"Y\")))","v":""},{"$f":"IF($B607=\"N\",\"\",IF(LEN('Enrollment Form'!$AD614=0),\"\",IF(LEN('Enrollment Form'!$AD614)<>5,\"N\",\"Y\")))","v":""},{"$f":"IF($B607=\"N\",\"\",IF(LEN('Enrollment Form'!$BL614=0),\"\",IF(LEN('Enrollment Form'!$BL614)<>5,\"N\",\"Y\")))","v":""},{"$f":"IF($B607=\"N\",\"\",IF(LEN('Enrollment Form'!$AE614)=0,\"\",IF(LEN('Enrollment Form'!$AE614)<>10,\"N\",\"Y\")))","v":""},{"$f":"IF($B607=\"N\",\"\",IF(LEN('Enrollment Form'!$AF614)=0,\"\",IF(LEN('Enrollment Form'!$AF614)<>10,\"N\",\"Y\")))","v":""},{"$f":"IF('Enrollment Form'!$O614<>\"Graded\",\"-\",IF(AND('Enrollment Form'!$O614=\"Graded\",'Enrollment Form'!$AO614<>\"\"),\"Y\",\"N\"))","v":"-"},{"$f":"IF($B607=\"N\",\"\",IF(OR('Enrollment Form'!$B614<>\"Subscriber\",'Enrollment Form'!$C614=\"ROC\"),\"-\",IF(AND('Enrollment Form'!$B614=\"Subscriber\",'Enrollment Form'!$C614=\"Enroll\",'Enrollment Form'!$AJ614<>\"\"),\"Y\",\"N\")))","v":""},{"$f":"IF($B607=\"N\",\"\",IF(OR('Enrollment Form'!$B614<>\"Subscriber\",'Enrollment Form'!$C614=\"ROC\"),\"-\",IF(AND('Enrollment Form'!$B614=\"Subscriber\",'Enrollment Form'!$C614=\"Enroll\",'Enrollment Form'!$AK614<>\"\"),\"Y\",\"N\")))","v":""},{"$f":"IF($B607=\"N\",\"\",IF(OR('Enrollment Form'!$B614<>\"Subscriber\",'Enrollment Form'!$C614=\"ROC\"),\"-\",IF(AND('Enrollment Form'!$B614=\"Subscriber\",'Enrollment Form'!$C614=\"Enroll\",'Enrollment Form'!$AL614<>\"\"),\"Y\",\"N\")))","v":""},{"$f":"IF($B607=\"N\",\"\",IF(OR('Enrollment Form'!$B614<>\"Subscriber\",'Enrollment Form'!$C614=\"ROC\"),\"-\",IF(AND('Enrollment Form'!$B614=\"Subscriber\",'Enrollment Form'!$C614=\"Enroll\",'Enrollment Form'!$AM614<>\"\"),\"Y\",\"N\")))","v":""},{"$f":"IF($B607=\"N\",\"\",IF(OR('Enrollment Form'!$B614<>\"Subscriber\",'Enrollment Form'!$C614=\"ROC\"),\"-\",IF(AND('Enrollment Form'!$B614=\"Subscriber\",'Enrollment Form'!$C614=\"Enroll\",'Enrollment Form'!$AN614<>\"\"),\"Y\",\"N\")))","v":""},{"$f":"IF($B607=\"N\",\"\",IF(OR('Enrollment Form'!$B614<>\"Subscriber\",'Enrollment Form'!$C614=\"ROC\"),\"-\",IF(AND('Enrollment Form'!$B614=\"Subscriber\",'Enrollment Form'!$C614=\"Enroll\",'Enrollment Form'!$AP614<>\"\"),\"Y\",\"N\")))","v":""},{"$f":"IF($B607=\"N\",\"\",IF($Q607=\"-\",\"-\",IF(AND($Q607=\"Y\",'Enrollment Form'!$AP614=\"No\"),\"-\",IF(AND($Q607=\"Y\",'Enrollment Form'!$AP614=\"Yes\",'Enrollment Form'!$AQ614<>\"\"),\"Y\",\"N\"))))","v":""},{"$f":"IF($B607=\"N\",\"\",IF(OR('Enrollment Form'!$B614<>\"Subscriber\",'Enrollment Form'!$C614=\"ROC\"),\"-\",IF(AND('Enrollment Form'!$B614=\"Subscriber\",'Enrollment Form'!$C614=\"Enroll\",'Enrollment Form'!$CO614<>\"\"),\"Y\",\"N\")))","v":""},{"$f":"IF($B607=\"N\",\"\",IF($S607=\"-\",\"-\",IF(AND($S607=\"Y\",'Enrollment Form'!$CO614=\"No\"),\"-\",IF(AND($S607=\"Y\",'Enrollment Form'!$CO614=\"Yes\",'Enrollment Form'!$CP614<>\"\"),\"Y\",\"N\"))))","v":""},{"$f":"IF(OR('Enrollment Form'!$AV614=\"Yes\",'Enrollment Form'!$AV614=\"\"),\"-\",IF(AND('Enrollment Form'!$AV614=\"No\",ISERROR(FIND(\"HMO\",VLOOKUP('Enrollment Form'!G614,'Enrollment Form'!H$11:J$1000,3,FALSE),1))=FALSE,COUNTA('Enrollment Form'!$AW614:$AZ614)=4),\"Y\",\"N\"))","v":"-"},{"$f":"IF($B607=\"N\",\"\",IF('Enrollment Form'!$B614=\"Subscriber\",\"-\",IF(COUNTA('Enrollment Form'!$BE614,'Enrollment Form'!$BG614)=2,\"Y\",\"N\")))","v":""},{"$f":"IF($B607=\"N\",\"\",IF(OR('Enrollment Form'!$AU614=\"\",'Enrollment Form'!$AU614=\"No\"),\"-\",IF(AND('Enrollment Form'!$AU614=\"Yes\",COUNTA('Enrollment Form'!$CK614)=1),\"Y\",\"N\")))","v":""},{"$f":"IF(OR('Enrollment Form'!$CK614=\"\",'Enrollment Form'!$CK614=\"No\"),\"-\",IF(COUNTA('Enrollment Form'!$CM614:$CN614)=2,\"Y\",\"N\"))","v":"-"},{"$f":"IF($B607=\"N\",\"\",IF(COUNTIF('Enrollment Form'!$CZ614:$DO614,\"Other\")=COUNTA('Enrollment Form'!$DF614,'Enrollment Form'!$DA614,'Enrollment Form'!$DK614,'Enrollment Form'!$DP614),\"Y\",\"N\"))","v":""},{"$f":"IF($B607=\"N\",\"\",IF(OR('Enrollment Form'!B614<>\"Subscriber\",'Enrollment Form'!C614=\"ROC\",COUNTIF('Enrollment Form'!AS614:AT614,\"Yes\")>=1),\"-\",IF(AND('Enrollment Form'!C614=\"Enroll\",COUNTIF('Enrollment Form'!AS614:AT614,\"No\")=2,'Enrollment Form'!AU614=\"\"),\"N\",\"Y\")))","v":""},{"$f":"IF(OR(B607=\"N\",'Enrollment Form'!B614<>\"Subscriber\",'Enrollment Form'!C614=\"ROC\",'Enrollment Form'!O614<>\"Multiple of Salary\"),\"-\",IF(COUNTA('Enrollment Form'!T614:U614)<2,\"N\",\"Y\"))","v":"-"},{"$f":"IF(B607=\"N\",\"\",IF(OR('Enrollment Form'!C614=\"ROC\",'Enrollment Form'!B614<>\"Subscriber\",'Enrollment Form'!O614=\"Waive\",'Enrollment Form'!O614=\"\"),\"-\",IF('Enrollment Form'!P614=\"\",\"N\",\"Y\")))","v":""},{"$f":"IF($B607=\"N\",\"\",IF(AND('Enrollment Form'!$C614=\"ROC\",'Enrollment Form'!$DS614<>\"\"),\"Y\",IF(AND('Enrollment Form'!$C614=\"ROC\",'Enrollment Form'!$DS614=\"\"),\"N\",IF(AND('Enrollment Form'!$C614=\"Enroll\",'Enrollment Form'!$B614=\"Subscriber\",'Enrollment Form'!$CQ614=\"No\",'Enrollment Form'!$DS614=\"\"),\"N\",IF(AND('Enrollment Form'!$C614=\"Enroll\",'Enrollment Form'!$B614=\"Subscriber\",'Enrollment Form'!$CQ614=\"Yes\"),\"-\",\"Y\")))))","v":""},{"$f":"IF($B607=\"N\",\"\",IF(AND('Enrollment Form'!$C614=\"ROC\",'Enrollment Form'!$DT614<>\"\"),\"Y\",IF(AND('Enrollment Form'!$C614=\"ROC\",'Enrollment Form'!$DT614=\"\"),\"N\",IF(AND('Enrollment Form'!$C614=\"Enroll\",'Enrollment Form'!$B614=\"Subscriber\",'Enrollment Form'!$CQ614=\"No\",'Enrollment Form'!$DT614=\"\"),\"N\",IF(AND('Enrollment Form'!$C614=\"Enroll\",'Enrollment Form'!$B614=\"Subscriber\",'Enrollment Form'!$CQ614=\"Yes\"),\"-\",\"Y\")))))","v":""},{"$f":"IF('Enrollment Form'!AH614=\"\",\"\",IF(ISERROR(SEARCH(\".\",'Enrollment Form'!AH614,SEARCH(\"@\",'Enrollment Form'!AH614))),\"N\",\"Y\"))","v":""},{"$f":"IF(OR($B607=\"N\",'Enrollment Form'!$G614=\"\"),\"\",IF('Enrollment Form'!$B614<>\"Subscriber\",\"-\",IF(COUNTIF('Enrollment Form'!$AS614:$AT614,\"Yes\")=2,\"N\",\"Y\")))","v":""},{"$f":"IF(OR('Enrollment Form'!$CC614=\"\",'Enrollment Form'!$CC614=\"No\"),\"-\",IF(AND('Enrollment Form'!$CC614=\"Yes\",'Enrollment Form'!$CD614=\"\"),\"N\",\"Y\"))","v":"-"},{"$f":"IF(OR('Enrollment Form'!$CE614=\"\",'Enrollment Form'!$CE614=\"No\"),\"-\",IF(AND('Enrollment Form'!$CE614=\"Yes\",'Enrollment Form'!$CF614=\"\"),\"N\",\"Y\"))","v":"-"},{"$f":"IF(OR('Enrollment Form'!$CG614=\"\",'Enrollment Form'!$CG614=\"No\"),\"-\",IF(AND('Enrollment Form'!$CG614=\"Yes\",'Enrollment Form'!$CH614=\"\"),\"N\",\"Y\"))","v":"-"},{"$f":"IF(OR('Enrollment Form'!$CG614=\"\",'Enrollment Form'!$CG614=\"No\"),\"-\",IF(AND('Enrollment Form'!$CG614=\"Yes\",'Enrollment Form'!$CI614=\"\"),\"N\",\"Y\"))","v":"-"},{"$f":"IF('Enrollment Form'!B614<>\"Subscriber\",\"-\",IF(AND('Enrollment Form'!B614=\"Subscriber\",'Enrollment Form'!C614=\"Enroll\",'Enrollment Form'!AA614=\"\"),\"N\",\"Y\"))","v":"-"},{"$f":"IF(OR('Enrollment Form'!B614=\"Subscriber\",'Enrollment Form'!B614=\"\"),\"-\",IF('Enrollment Form'!BI614=\"\",\"N\",\"Y\"))","v":"-"},{"$f":"IF('Enrollment Form'!B614<>\"Subscriber\",\"-\",IF(AND('Enrollment Form'!B614=\"Subscriber\",'Enrollment Form'!G614=\"\"),\"N\",\"Y\"))","v":"-"},{"$f":"IF('Enrollment Form'!A614=\"\",\"\",IF('Enrollment Form'!B614=\"Subscriber\",\"-\",IF(AND('Enrollment Form'!B614<>\"Subscriber\",'Enrollment Form'!G614='Enrollment Form'!H614),\"N\",\"Y\")))","v":""},0]
[615,{"$f":"IF('Enrollment Form'!$A615<>\"\",\"Y\",\"N\")","v":"N"},{"$f":"IF(AND('Enrollment Form'!$B615=\"\",'Enrollment Form'!$C615<>\"\"),\"N\",IF($B608=\"N\",\"\",\"Y\"))","v":""},{"$f":"IF(OR($B608=\"N\",'Enrollment Form'!G615=\"\"),\"\",IF('Enrollment Form'!$B615<>\"Subscriber\",\"\",IF('Enrollment Form'!$G615='Enrollment Form'!$H615,\"Y\",\"N\")))","v":""},{"$f":"IF($B608=\"N\",\"\",IF(AND(COUNTIFS('Enrollment Form'!$H$11:$H$1000,'Enrollment Form'!$H615,'Enrollment Form'!$B$11:$B$1000,'Enrollment Form'!$B615)>1,'Enrollment Form'!$H615<>\"\"),\"N\",\"Y\"))","v":""},{"$f":"IF($B608=\"N\",\"\",IF(LEN('Enrollment Form'!$Y615)=0,\"\",IF(LEN('Enrollment Form'!$Y615)<>5,\"N\",\"Y\")))","v":""},{"$f":"IF($B608=\"N\",\"\",IF(LEN('Enrollment Form'!$AD615=0),\"\",IF(LEN('Enrollment Form'!$AD615)<>5,\"N\",\"Y\")))","v":""},{"$f":"IF($B608=\"N\",\"\",IF(LEN('Enrollment Form'!$BL615=0),\"\",IF(LEN('Enrollment Form'!$BL615)<>5,\"N\",\"Y\")))","v":""},{"$f":"IF($B608=\"N\",\"\",IF(LEN('Enrollment Form'!$AE615)=0,\"\",IF(LEN('Enrollment Form'!$AE615)<>10,\"N\",\"Y\")))","v":""},{"$f":"IF($B608=\"N\",\"\",IF(LEN('Enrollment Form'!$AF615)=0,\"\",IF(LEN('Enrollment Form'!$AF615)<>10,\"N\",\"Y\")))","v":""},{"$f":"IF('Enrollment Form'!$O615<>\"Graded\",\"-\",IF(AND('Enrollment Form'!$O615=\"Graded\",'Enrollment Form'!$AO615<>\"\"),\"Y\",\"N\"))","v":"-"},{"$f":"IF($B608=\"N\",\"\",IF(OR('Enrollment Form'!$B615<>\"Subscriber\",'Enrollment Form'!$C615=\"ROC\"),\"-\",IF(AND('Enrollment Form'!$B615=\"Subscriber\",'Enrollment Form'!$C615=\"Enroll\",'Enrollment Form'!$AJ615<>\"\"),\"Y\",\"N\")))","v":""},{"$f":"IF($B608=\"N\",\"\",IF(OR('Enrollment Form'!$B615<>\"Subscriber\",'Enrollment Form'!$C615=\"ROC\"),\"-\",IF(AND('Enrollment Form'!$B615=\"Subscriber\",'Enrollment Form'!$C615=\"Enroll\",'Enrollment Form'!$AK615<>\"\"),\"Y\",\"N\")))","v":""},{"$f":"IF($B608=\"N\",\"\",IF(OR('Enrollment Form'!$B615<>\"Subscriber\",'Enrollment Form'!$C615=\"ROC\"),\"-\",IF(AND('Enrollment Form'!$B615=\"Subscriber\",'Enrollment Form'!$C615=\"Enroll\",'Enrollment Form'!$AL615<>\"\"),\"Y\",\"N\")))","v":""},{"$f":"IF($B608=\"N\",\"\",IF(OR('Enrollment Form'!$B615<>\"Subscriber\",'Enrollment Form'!$C615=\"ROC\"),\"-\",IF(AND('Enrollment Form'!$B615=\"Subscriber\",'Enrollment Form'!$C615=\"Enroll\",'Enrollment Form'!$AM615<>\"\"),\"Y\",\"N\")))","v":""},{"$f":"IF($B608=\"N\",\"\",IF(OR('Enrollment Form'!$B615<>\"Subscriber\",'Enrollment Form'!$C615=\"ROC\"),\"-\",IF(AND('Enrollment Form'!$B615=\"Subscriber\",'Enrollment Form'!$C615=\"Enroll\",'Enrollment Form'!$AN615<>\"\"),\"Y\",\"N\")))","v":""},{"$f":"IF($B608=\"N\",\"\",IF(OR('Enrollment Form'!$B615<>\"Subscriber\",'Enrollment Form'!$C615=\"ROC\"),\"-\",IF(AND('Enrollment Form'!$B615=\"Subscriber\",'Enrollment Form'!$C615=\"Enroll\",'Enrollment Form'!$AP615<>\"\"),\"Y\",\"N\")))","v":""},{"$f":"IF($B608=\"N\",\"\",IF($Q608=\"-\",\"-\",IF(AND($Q608=\"Y\",'Enrollment Form'!$AP615=\"No\"),\"-\",IF(AND($Q608=\"Y\",'Enrollment Form'!$AP615=\"Yes\",'Enrollment Form'!$AQ615<>\"\"),\"Y\",\"N\"))))","v":""},{"$f":"IF($B608=\"N\",\"\",IF(OR('Enrollment Form'!$B615<>\"Subscriber\",'Enrollment Form'!$C615=\"ROC\"),\"-\",IF(AND('Enrollment Form'!$B615=\"Subscriber\",'Enrollment Form'!$C615=\"Enroll\",'Enrollment Form'!$CO615<>\"\"),\"Y\",\"N\")))","v":""},{"$f":"IF($B608=\"N\",\"\",IF($S608=\"-\",\"-\",IF(AND($S608=\"Y\",'Enrollment Form'!$CO615=\"No\"),\"-\",IF(AND($S608=\"Y\",'Enrollment Form'!$CO615=\"Yes\",'Enrollment Form'!$CP615<>\"\"),\"Y\",\"N\"))))","v":""},{"$f":"IF(OR('Enrollment Form'!$AV615=\"Yes\",'Enrollment Form'!$AV615=\"\"),\"-\",IF(AND('Enrollment Form'!$AV615=\"No\",ISERROR(FIND(\"HMO\",VLOOKUP('Enrollment Form'!G615,'Enrollment Form'!H$11:J$1000,3,FALSE),1))=FALSE,COUNTA('Enrollment Form'!$AW615:$AZ615)=4),\"Y\",\"N\"))","v":"-"},{"$f":"IF($B608=\"N\",\"\",IF('Enrollment Form'!$B615=\"Subscriber\",\"-\",IF(COUNTA('Enrollment Form'!$BE615,'Enrollment Form'!$BG615)=2,\"Y\",\"N\")))","v":""},{"$f":"IF($B608=\"N\",\"\",IF(OR('Enrollment Form'!$AU615=\"\",'Enrollment Form'!$AU615=\"No\"),\"-\",IF(AND('Enrollment Form'!$AU615=\"Yes\",COUNTA('Enrollment Form'!$CK615)=1),\"Y\",\"N\")))","v":""},{"$f":"IF(OR('Enrollment Form'!$CK615=\"\",'Enrollment Form'!$CK615=\"No\"),\"-\",IF(COUNTA('Enrollment Form'!$CM615:$CN615)=2,\"Y\",\"N\"))","v":"-"},{"$f":"IF($B608=\"N\",\"\",IF(COUNTIF('Enrollment Form'!$CZ615:$DO615,\"Other\")=COUNTA('Enrollment Form'!$DF615,'Enrollment Form'!$DA615,'Enrollment Form'!$DK615,'Enrollment Form'!$DP615),\"Y\",\"N\"))","v":""},{"$f":"IF($B608=\"N\",\"\",IF(OR('Enrollment Form'!B615<>\"Subscriber\",'Enrollment Form'!C615=\"ROC\",COUNTIF('Enrollment Form'!AS615:AT615,\"Yes\")>=1),\"-\",IF(AND('Enrollment Form'!C615=\"Enroll\",COUNTIF('Enrollment Form'!AS615:AT615,\"No\")=2,'Enrollment Form'!AU615=\"\"),\"N\",\"Y\")))","v":""},{"$f":"IF(OR(B608=\"N\",'Enrollment Form'!B615<>\"Subscriber\",'Enrollment Form'!C615=\"ROC\",'Enrollment Form'!O615<>\"Multiple of Salary\"),\"-\",IF(COUNTA('Enrollment Form'!T615:U615)<2,\"N\",\"Y\"))","v":"-"},{"$f":"IF(B608=\"N\",\"\",IF(OR('Enrollment Form'!C615=\"ROC\",'Enrollment Form'!B615<>\"Subscriber\",'Enrollment Form'!O615=\"Waive\",'Enrollment Form'!O615=\"\"),\"-\",IF('Enrollment Form'!P615=\"\",\"N\",\"Y\")))","v":""},{"$f":"IF($B608=\"N\",\"\",IF(AND('Enrollment Form'!$C615=\"ROC\",'Enrollment Form'!$DS615<>\"\"),\"Y\",IF(AND('Enrollment Form'!$C615=\"ROC\",'Enrollment Form'!$DS615=\"\"),\"N\",IF(AND('Enrollment Form'!$C615=\"Enroll\",'Enrollment Form'!$B615=\"Subscriber\",'Enrollment Form'!$CQ615=\"No\",'Enrollment Form'!$DS615=\"\"),\"N\",IF(AND('Enrollment Form'!$C615=\"Enroll\",'Enrollment Form'!$B615=\"Subscriber\",'Enrollment Form'!$CQ615=\"Yes\"),\"-\",\"Y\")))))","v":""},{"$f":"IF($B608=\"N\",\"\",IF(AND('Enrollment Form'!$C615=\"ROC\",'Enrollment Form'!$DT615<>\"\"),\"Y\",IF(AND('Enrollment Form'!$C615=\"ROC\",'Enrollment Form'!$DT615=\"\"),\"N\",IF(AND('Enrollment Form'!$C615=\"Enroll\",'Enrollment Form'!$B615=\"Subscriber\",'Enrollment Form'!$CQ615=\"No\",'Enrollment Form'!$DT615=\"\"),\"N\",IF(AND('Enrollment Form'!$C615=\"Enroll\",'Enrollment Form'!$B615=\"Subscriber\",'Enrollment Form'!$CQ615=\"Yes\"),\"-\",\"Y\")))))","v":""},{"$f":"IF('Enrollment Form'!AH615=\"\",\"\",IF(ISERROR(SEARCH(\".\",'Enrollment Form'!AH615,SEARCH(\"@\",'Enrollment Form'!AH615))),\"N\",\"Y\"))","v":""},{"$f":"IF(OR($B608=\"N\",'Enrollment Form'!$G615=\"\"),\"\",IF('Enrollment Form'!$B615<>\"Subscriber\",\"-\",IF(COUNTIF('Enrollment Form'!$AS615:$AT615,\"Yes\")=2,\"N\",\"Y\")))","v":""},{"$f":"IF(OR('Enrollment Form'!$CC615=\"\",'Enrollment Form'!$CC615=\"No\"),\"-\",IF(AND('Enrollment Form'!$CC615=\"Yes\",'Enrollment Form'!$CD615=\"\"),\"N\",\"Y\"))","v":"-"},{"$f":"IF(OR('Enrollment Form'!$CE615=\"\",'Enrollment Form'!$CE615=\"No\"),\"-\",IF(AND('Enrollment Form'!$CE615=\"Yes\",'Enrollment Form'!$CF615=\"\"),\"N\",\"Y\"))","v":"-"},{"$f":"IF(OR('Enrollment Form'!$CG615=\"\",'Enrollment Form'!$CG615=\"No\"),\"-\",IF(AND('Enrollment Form'!$CG615=\"Yes\",'Enrollment Form'!$CH615=\"\"),\"N\",\"Y\"))","v":"-"},{"$f":"IF(OR('Enrollment Form'!$CG615=\"\",'Enrollment Form'!$CG615=\"No\"),\"-\",IF(AND('Enrollment Form'!$CG615=\"Yes\",'Enrollment Form'!$CI615=\"\"),\"N\",\"Y\"))","v":"-"},{"$f":"IF('Enrollment Form'!B615<>\"Subscriber\",\"-\",IF(AND('Enrollment Form'!B615=\"Subscriber\",'Enrollment Form'!C615=\"Enroll\",'Enrollment Form'!AA615=\"\"),\"N\",\"Y\"))","v":"-"},{"$f":"IF(OR('Enrollment Form'!B615=\"Subscriber\",'Enrollment Form'!B615=\"\"),\"-\",IF('Enrollment Form'!BI615=\"\",\"N\",\"Y\"))","v":"-"},{"$f":"IF('Enrollment Form'!B615<>\"Subscriber\",\"-\",IF(AND('Enrollment Form'!B615=\"Subscriber\",'Enrollment Form'!G615=\"\"),\"N\",\"Y\"))","v":"-"},{"$f":"IF('Enrollment Form'!A615=\"\",\"\",IF('Enrollment Form'!B615=\"Subscriber\",\"-\",IF(AND('Enrollment Form'!B615<>\"Subscriber\",'Enrollment Form'!G615='Enrollment Form'!H615),\"N\",\"Y\")))","v":""},0]
[616,{"$f":"IF('Enrollment Form'!$A616<>\"\",\"Y\",\"N\")","v":"N"},{"$f":"IF(AND('Enrollment Form'!$B616=\"\",'Enrollment Form'!$C616<>\"\"),\"N\",IF($B609=\"N\",\"\",\"Y\"))","v":""},{"$f":"IF(OR($B609=\"N\",'Enrollment Form'!G616=\"\"),\"\",IF('Enrollment Form'!$B616<>\"Subscriber\",\"\",IF('Enrollment Form'!$G616='Enrollment Form'!$H616,\"Y\",\"N\")))","v":""},{"$f":"IF($B609=\"N\",\"\",IF(AND(COUNTIFS('Enrollment Form'!$H$11:$H$1000,'Enrollment Form'!$H616,'Enrollment Form'!$B$11:$B$1000,'Enrollment Form'!$B616)>1,'Enrollment Form'!$H616<>\"\"),\"N\",\"Y\"))","v":""},{"$f":"IF($B609=\"N\",\"\",IF(LEN('Enrollment Form'!$Y616)=0,\"\",IF(LEN('Enrollment Form'!$Y616)<>5,\"N\",\"Y\")))","v":""},{"$f":"IF($B609=\"N\",\"\",IF(LEN('Enrollment Form'!$AD616=0),\"\",IF(LEN('Enrollment Form'!$AD616)<>5,\"N\",\"Y\")))","v":""},{"$f":"IF($B609=\"N\",\"\",IF(LEN('Enrollment Form'!$BL616=0),\"\",IF(LEN('Enrollment Form'!$BL616)<>5,\"N\",\"Y\")))","v":""},{"$f":"IF($B609=\"N\",\"\",IF(LEN('Enrollment Form'!$AE616)=0,\"\",IF(LEN('Enrollment Form'!$AE616)<>10,\"N\",\"Y\")))","v":""},{"$f":"IF($B609=\"N\",\"\",IF(LEN('Enrollment Form'!$AF616)=0,\"\",IF(LEN('Enrollment Form'!$AF616)<>10,\"N\",\"Y\")))","v":""},{"$f":"IF('Enrollment Form'!$O616<>\"Graded\",\"-\",IF(AND('Enrollment Form'!$O616=\"Graded\",'Enrollment Form'!$AO616<>\"\"),\"Y\",\"N\"))","v":"-"},{"$f":"IF($B609=\"N\",\"\",IF(OR('Enrollment Form'!$B616<>\"Subscriber\",'Enrollment Form'!$C616=\"ROC\"),\"-\",IF(AND('Enrollment Form'!$B616=\"Subscriber\",'Enrollment Form'!$C616=\"Enroll\",'Enrollment Form'!$AJ616<>\"\"),\"Y\",\"N\")))","v":""},{"$f":"IF($B609=\"N\",\"\",IF(OR('Enrollment Form'!$B616<>\"Subscriber\",'Enrollment Form'!$C616=\"ROC\"),\"-\",IF(AND('Enrollment Form'!$B616=\"Subscriber\",'Enrollment Form'!$C616=\"Enroll\",'Enrollment Form'!$AK616<>\"\"),\"Y\",\"N\")))","v":""},{"$f":"IF($B609=\"N\",\"\",IF(OR('Enrollment Form'!$B616<>\"Subscriber\",'Enrollment Form'!$C616=\"ROC\"),\"-\",IF(AND('Enrollment Form'!$B616=\"Subscriber\",'Enrollment Form'!$C616=\"Enroll\",'Enrollment Form'!$AL616<>\"\"),\"Y\",\"N\")))","v":""},{"$f":"IF($B609=\"N\",\"\",IF(OR('Enrollment Form'!$B616<>\"Subscriber\",'Enrollment Form'!$C616=\"ROC\"),\"-\",IF(AND('Enrollment Form'!$B616=\"Subscriber\",'Enrollment Form'!$C616=\"Enroll\",'Enrollment Form'!$AM616<>\"\"),\"Y\",\"N\")))","v":""},{"$f":"IF($B609=\"N\",\"\",IF(OR('Enrollment Form'!$B616<>\"Subscriber\",'Enrollment Form'!$C616=\"ROC\"),\"-\",IF(AND('Enrollment Form'!$B616=\"Subscriber\",'Enrollment Form'!$C616=\"Enroll\",'Enrollment Form'!$AN616<>\"\"),\"Y\",\"N\")))","v":""},{"$f":"IF($B609=\"N\",\"\",IF(OR('Enrollment Form'!$B616<>\"Subscriber\",'Enrollment Form'!$C616=\"ROC\"),\"-\",IF(AND('Enrollment Form'!$B616=\"Subscriber\",'Enrollment Form'!$C616=\"Enroll\",'Enrollment Form'!$AP616<>\"\"),\"Y\",\"N\")))","v":""},{"$f":"IF($B609=\"N\",\"\",IF($Q609=\"-\",\"-\",IF(AND($Q609=\"Y\",'Enrollment Form'!$AP616=\"No\"),\"-\",IF(AND($Q609=\"Y\",'Enrollment Form'!$AP616=\"Yes\",'Enrollment Form'!$AQ616<>\"\"),\"Y\",\"N\"))))","v":""},{"$f":"IF($B609=\"N\",\"\",IF(OR('Enrollment Form'!$B616<>\"Subscriber\",'Enrollment Form'!$C616=\"ROC\"),\"-\",IF(AND('Enrollment Form'!$B616=\"Subscriber\",'Enrollment Form'!$C616=\"Enroll\",'Enrollment Form'!$CO616<>\"\"),\"Y\",\"N\")))","v":""},{"$f":"IF($B609=\"N\",\"\",IF($S609=\"-\",\"-\",IF(AND($S609=\"Y\",'Enrollment Form'!$CO616=\"No\"),\"-\",IF(AND($S609=\"Y\",'Enrollment Form'!$CO616=\"Yes\",'Enrollment Form'!$CP616<>\"\"),\"Y\",\"N\"))))","v":""},{"$f":"IF(OR('Enrollment Form'!$AV616=\"Yes\",'Enrollment Form'!$AV616=\"\"),\"-\",IF(AND('Enrollment Form'!$AV616=\"No\",ISERROR(FIND(\"HMO\",VLOOKUP('Enrollment Form'!G616,'Enrollment Form'!H$11:J$1000,3,FALSE),1))=FALSE,COUNTA('Enrollment Form'!$AW616:$AZ616)=4),\"Y\",\"N\"))","v":"-"},{"$f":"IF($B609=\"N\",\"\",IF('Enrollment Form'!$B616=\"Subscriber\",\"-\",IF(COUNTA('Enrollment Form'!$BE616,'Enrollment Form'!$BG616)=2,\"Y\",\"N\")))","v":""},{"$f":"IF($B609=\"N\",\"\",IF(OR('Enrollment Form'!$AU616=\"\",'Enrollment Form'!$AU616=\"No\"),\"-\",IF(AND('Enrollment Form'!$AU616=\"Yes\",COUNTA('Enrollment Form'!$CK616)=1),\"Y\",\"N\")))","v":""},{"$f":"IF(OR('Enrollment Form'!$CK616=\"\",'Enrollment Form'!$CK616=\"No\"),\"-\",IF(COUNTA('Enrollment Form'!$CM616:$CN616)=2,\"Y\",\"N\"))","v":"-"},{"$f":"IF($B609=\"N\",\"\",IF(COUNTIF('Enrollment Form'!$CZ616:$DO616,\"Other\")=COUNTA('Enrollment Form'!$DF616,'Enrollment Form'!$DA616,'Enrollment Form'!$DK616,'Enrollment Form'!$DP616),\"Y\",\"N\"))","v":""},{"$f":"IF($B609=\"N\",\"\",IF(OR('Enrollment Form'!B616<>\"Subscriber\",'Enrollment Form'!C616=\"ROC\",COUNTIF('Enrollment Form'!AS616:AT616,\"Yes\")>=1),\"-\",IF(AND('Enrollment Form'!C616=\"Enroll\",COUNTIF('Enrollment Form'!AS616:AT616,\"No\")=2,'Enrollment Form'!AU616=\"\"),\"N\",\"Y\")))","v":""},{"$f":"IF(OR(B609=\"N\",'Enrollment Form'!B616<>\"Subscriber\",'Enrollment Form'!C616=\"ROC\",'Enrollment Form'!O616<>\"Multiple of Salary\"),\"-\",IF(COUNTA('Enrollment Form'!T616:U616)<2,\"N\",\"Y\"))","v":"-"},{"$f":"IF(B609=\"N\",\"\",IF(OR('Enrollment Form'!C616=\"ROC\",'Enrollment Form'!B616<>\"Subscriber\",'Enrollment Form'!O616=\"Waive\",'Enrollment Form'!O616=\"\"),\"-\",IF('Enrollment Form'!P616=\"\",\"N\",\"Y\")))","v":""},{"$f":"IF($B609=\"N\",\"\",IF(AND('Enrollment Form'!$C616=\"ROC\",'Enrollment Form'!$DS616<>\"\"),\"Y\",IF(AND('Enrollment Form'!$C616=\"ROC\",'Enrollment Form'!$DS616=\"\"),\"N\",IF(AND('Enrollment Form'!$C616=\"Enroll\",'Enrollment Form'!$B616=\"Subscriber\",'Enrollment Form'!$CQ616=\"No\",'Enrollment Form'!$DS616=\"\"),\"N\",IF(AND('Enrollment Form'!$C616=\"Enroll\",'Enrollment Form'!$B616=\"Subscriber\",'Enrollment Form'!$CQ616=\"Yes\"),\"-\",\"Y\")))))","v":""},{"$f":"IF($B609=\"N\",\"\",IF(AND('Enrollment Form'!$C616=\"ROC\",'Enrollment Form'!$DT616<>\"\"),\"Y\",IF(AND('Enrollment Form'!$C616=\"ROC\",'Enrollment Form'!$DT616=\"\"),\"N\",IF(AND('Enrollment Form'!$C616=\"Enroll\",'Enrollment Form'!$B616=\"Subscriber\",'Enrollment Form'!$CQ616=\"No\",'Enrollment Form'!$DT616=\"\"),\"N\",IF(AND('Enrollment Form'!$C616=\"Enroll\",'Enrollment Form'!$B616=\"Subscriber\",'Enrollment Form'!$CQ616=\"Yes\"),\"-\",\"Y\")))))","v":""},{"$f":"IF('Enrollment Form'!AH616=\"\",\"\",IF(ISERROR(SEARCH(\".\",'Enrollment Form'!AH616,SEARCH(\"@\",'Enrollment Form'!AH616))),\"N\",\"Y\"))","v":""},{"$f":"IF(OR($B609=\"N\",'Enrollment Form'!$G616=\"\"),\"\",IF('Enrollment Form'!$B616<>\"Subscriber\",\"-\",IF(COUNTIF('Enrollment Form'!$AS616:$AT616,\"Yes\")=2,\"N\",\"Y\")))","v":""},{"$f":"IF(OR('Enrollment Form'!$CC616=\"\",'Enrollment Form'!$CC616=\"No\"),\"-\",IF(AND('Enrollment Form'!$CC616=\"Yes\",'Enrollment Form'!$CD616=\"\"),\"N\",\"Y\"))","v":"-"},{"$f":"IF(OR('Enrollment Form'!$CE616=\"\",'Enrollment Form'!$CE616=\"No\"),\"-\",IF(AND('Enrollment Form'!$CE616=\"Yes\",'Enrollment Form'!$CF616=\"\"),\"N\",\"Y\"))","v":"-"},{"$f":"IF(OR('Enrollment Form'!$CG616=\"\",'Enrollment Form'!$CG616=\"No\"),\"-\",IF(AND('Enrollment Form'!$CG616=\"Yes\",'Enrollment Form'!$CH616=\"\"),\"N\",\"Y\"))","v":"-"},{"$f":"IF(OR('Enrollment Form'!$CG616=\"\",'Enrollment Form'!$CG616=\"No\"),\"-\",IF(AND('Enrollment Form'!$CG616=\"Yes\",'Enrollment Form'!$CI616=\"\"),\"N\",\"Y\"))","v":"-"},{"$f":"IF('Enrollment Form'!B616<>\"Subscriber\",\"-\",IF(AND('Enrollment Form'!B616=\"Subscriber\",'Enrollment Form'!C616=\"Enroll\",'Enrollment Form'!AA616=\"\"),\"N\",\"Y\"))","v":"-"},{"$f":"IF(OR('Enrollment Form'!B616=\"Subscriber\",'Enrollment Form'!B616=\"\"),\"-\",IF('Enrollment Form'!BI616=\"\",\"N\",\"Y\"))","v":"-"},{"$f":"IF('Enrollment Form'!B616<>\"Subscriber\",\"-\",IF(AND('Enrollment Form'!B616=\"Subscriber\",'Enrollment Form'!G616=\"\"),\"N\",\"Y\"))","v":"-"},{"$f":"IF('Enrollment Form'!A616=\"\",\"\",IF('Enrollment Form'!B616=\"Subscriber\",\"-\",IF(AND('Enrollment Form'!B616<>\"Subscriber\",'Enrollment Form'!G616='Enrollment Form'!H616),\"N\",\"Y\")))","v":""},0]
[617,{"$f":"IF('Enrollment Form'!$A617<>\"\",\"Y\",\"N\")","v":"N"},{"$f":"IF(AND('Enrollment Form'!$B617=\"\",'Enrollment Form'!$C617<>\"\"),\"N\",IF($B610=\"N\",\"\",\"Y\"))","v":""},{"$f":"IF(OR($B610=\"N\",'Enrollment Form'!G617=\"\"),\"\",IF('Enrollment Form'!$B617<>\"Subscriber\",\"\",IF('Enrollment Form'!$G617='Enrollment Form'!$H617,\"Y\",\"N\")))","v":""},{"$f":"IF($B610=\"N\",\"\",IF(AND(COUNTIFS('Enrollment Form'!$H$11:$H$1000,'Enrollment Form'!$H617,'Enrollment Form'!$B$11:$B$1000,'Enrollment Form'!$B617)>1,'Enrollment Form'!$H617<>\"\"),\"N\",\"Y\"))","v":""},{"$f":"IF($B610=\"N\",\"\",IF(LEN('Enrollment Form'!$Y617)=0,\"\",IF(LEN('Enrollment Form'!$Y617)<>5,\"N\",\"Y\")))","v":""},{"$f":"IF($B610=\"N\",\"\",IF(LEN('Enrollment Form'!$AD617=0),\"\",IF(LEN('Enrollment Form'!$AD617)<>5,\"N\",\"Y\")))","v":""},{"$f":"IF($B610=\"N\",\"\",IF(LEN('Enrollment Form'!$BL617=0),\"\",IF(LEN('Enrollment Form'!$BL617)<>5,\"N\",\"Y\")))","v":""},{"$f":"IF($B610=\"N\",\"\",IF(LEN('Enrollment Form'!$AE617)=0,\"\",IF(LEN('Enrollment Form'!$AE617)<>10,\"N\",\"Y\")))","v":""},{"$f":"IF($B610=\"N\",\"\",IF(LEN('Enrollment Form'!$AF617)=0,\"\",IF(LEN('Enrollment Form'!$AF617)<>10,\"N\",\"Y\")))","v":""},{"$f":"IF('Enrollment Form'!$O617<>\"Graded\",\"-\",IF(AND('Enrollment Form'!$O617=\"Graded\",'Enrollment Form'!$AO617<>\"\"),\"Y\",\"N\"))","v":"-"},{"$f":"IF($B610=\"N\",\"\",IF(OR('Enrollment Form'!$B617<>\"Subscriber\",'Enrollment Form'!$C617=\"ROC\"),\"-\",IF(AND('Enrollment Form'!$B617=\"Subscriber\",'Enrollment Form'!$C617=\"Enroll\",'Enrollment Form'!$AJ617<>\"\"),\"Y\",\"N\")))","v":""},{"$f":"IF($B610=\"N\",\"\",IF(OR('Enrollment Form'!$B617<>\"Subscriber\",'Enrollment Form'!$C617=\"ROC\"),\"-\",IF(AND('Enrollment Form'!$B617=\"Subscriber\",'Enrollment Form'!$C617=\"Enroll\",'Enrollment Form'!$AK617<>\"\"),\"Y\",\"N\")))","v":""},{"$f":"IF($B610=\"N\",\"\",IF(OR('Enrollment Form'!$B617<>\"Subscriber\",'Enrollment Form'!$C617=\"ROC\"),\"-\",IF(AND('Enrollment Form'!$B617=\"Subscriber\",'Enrollment Form'!$C617=\"Enroll\",'Enrollment Form'!$AL617<>\"\"),\"Y\",\"N\")))","v":""},{"$f":"IF($B610=\"N\",\"\",IF(OR('Enrollment Form'!$B617<>\"Subscriber\",'Enrollment Form'!$C617=\"ROC\"),\"-\",IF(AND('Enrollment Form'!$B617=\"Subscriber\",'Enrollment Form'!$C617=\"Enroll\",'Enrollment Form'!$AM617<>\"\"),\"Y\",\"N\")))","v":""},{"$f":"IF($B610=\"N\",\"\",IF(OR('Enrollment Form'!$B617<>\"Subscriber\",'Enrollment Form'!$C617=\"ROC\"),\"-\",IF(AND('Enrollment Form'!$B617=\"Subscriber\",'Enrollment Form'!$C617=\"Enroll\",'Enrollment Form'!$AN617<>\"\"),\"Y\",\"N\")))","v":""},{"$f":"IF($B610=\"N\",\"\",IF(OR('Enrollment Form'!$B617<>\"Subscriber\",'Enrollment Form'!$C617=\"ROC\"),\"-\",IF(AND('Enrollment Form'!$B617=\"Subscriber\",'Enrollment Form'!$C617=\"Enroll\",'Enrollment Form'!$AP617<>\"\"),\"Y\",\"N\")))","v":""},{"$f":"IF($B610=\"N\",\"\",IF($Q610=\"-\",\"-\",IF(AND($Q610=\"Y\",'Enrollment Form'!$AP617=\"No\"),\"-\",IF(AND($Q610=\"Y\",'Enrollment Form'!$AP617=\"Yes\",'Enrollment Form'!$AQ617<>\"\"),\"Y\",\"N\"))))","v":""},{"$f":"IF($B610=\"N\",\"\",IF(OR('Enrollment Form'!$B617<>\"Subscriber\",'Enrollment Form'!$C617=\"ROC\"),\"-\",IF(AND('Enrollment Form'!$B617=\"Subscriber\",'Enrollment Form'!$C617=\"Enroll\",'Enrollment Form'!$CO617<>\"\"),\"Y\",\"N\")))","v":""},{"$f":"IF($B610=\"N\",\"\",IF($S610=\"-\",\"-\",IF(AND($S610=\"Y\",'Enrollment Form'!$CO617=\"No\"),\"-\",IF(AND($S610=\"Y\",'Enrollment Form'!$CO617=\"Yes\",'Enrollment Form'!$CP617<>\"\"),\"Y\",\"N\"))))","v":""},{"$f":"IF(OR('Enrollment Form'!$AV617=\"Yes\",'Enrollment Form'!$AV617=\"\"),\"-\",IF(AND('Enrollment Form'!$AV617=\"No\",ISERROR(FIND(\"HMO\",VLOOKUP('Enrollment Form'!G617,'Enrollment Form'!H$11:J$1000,3,FALSE),1))=FALSE,COUNTA('Enrollment Form'!$AW617:$AZ617)=4),\"Y\",\"N\"))","v":"-"},{"$f":"IF($B610=\"N\",\"\",IF('Enrollment Form'!$B617=\"Subscriber\",\"-\",IF(COUNTA('Enrollment Form'!$BE617,'Enrollment Form'!$BG617)=2,\"Y\",\"N\")))","v":""},{"$f":"IF($B610=\"N\",\"\",IF(OR('Enrollment Form'!$AU617=\"\",'Enrollment Form'!$AU617=\"No\"),\"-\",IF(AND('Enrollment Form'!$AU617=\"Yes\",COUNTA('Enrollment Form'!$CK617)=1),\"Y\",\"N\")))","v":""},{"$f":"IF(OR('Enrollment Form'!$CK617=\"\",'Enrollment Form'!$CK617=\"No\"),\"-\",IF(COUNTA('Enrollment Form'!$CM617:$CN617)=2,\"Y\",\"N\"))","v":"-"},{"$f":"IF($B610=\"N\",\"\",IF(COUNTIF('Enrollment Form'!$CZ617:$DO617,\"Other\")=COUNTA('Enrollment Form'!$DF617,'Enrollment Form'!$DA617,'Enrollment Form'!$DK617,'Enrollment Form'!$DP617),\"Y\",\"N\"))","v":""},{"$f":"IF($B610=\"N\",\"\",IF(OR('Enrollment Form'!B617<>\"Subscriber\",'Enrollment Form'!C617=\"ROC\",COUNTIF('Enrollment Form'!AS617:AT617,\"Yes\")>=1),\"-\",IF(AND('Enrollment Form'!C617=\"Enroll\",COUNTIF('Enrollment Form'!AS617:AT617,\"No\")=2,'Enrollment Form'!AU617=\"\"),\"N\",\"Y\")))","v":""},{"$f":"IF(OR(B610=\"N\",'Enrollment Form'!B617<>\"Subscriber\",'Enrollment Form'!C617=\"ROC\",'Enrollment Form'!O617<>\"Multiple of Salary\"),\"-\",IF(COUNTA('Enrollment Form'!T617:U617)<2,\"N\",\"Y\"))","v":"-"},{"$f":"IF(B610=\"N\",\"\",IF(OR('Enrollment Form'!C617=\"ROC\",'Enrollment Form'!B617<>\"Subscriber\",'Enrollment Form'!O617=\"Waive\",'Enrollment Form'!O617=\"\"),\"-\",IF('Enrollment Form'!P617=\"\",\"N\",\"Y\")))","v":""},{"$f":"IF($B610=\"N\",\"\",IF(AND('Enrollment Form'!$C617=\"ROC\",'Enrollment Form'!$DS617<>\"\"),\"Y\",IF(AND('Enrollment Form'!$C617=\"ROC\",'Enrollment Form'!$DS617=\"\"),\"N\",IF(AND('Enrollment Form'!$C617=\"Enroll\",'Enrollment Form'!$B617=\"Subscriber\",'Enrollment Form'!$CQ617=\"No\",'Enrollment Form'!$DS617=\"\"),\"N\",IF(AND('Enrollment Form'!$C617=\"Enroll\",'Enrollment Form'!$B617=\"Subscriber\",'Enrollment Form'!$CQ617=\"Yes\"),\"-\",\"Y\")))))","v":""},{"$f":"IF($B610=\"N\",\"\",IF(AND('Enrollment Form'!$C617=\"ROC\",'Enrollment Form'!$DT617<>\"\"),\"Y\",IF(AND('Enrollment Form'!$C617=\"ROC\",'Enrollment Form'!$DT617=\"\"),\"N\",IF(AND('Enrollment Form'!$C617=\"Enroll\",'Enrollment Form'!$B617=\"Subscriber\",'Enrollment Form'!$CQ617=\"No\",'Enrollment Form'!$DT617=\"\"),\"N\",IF(AND('Enrollment Form'!$C617=\"Enroll\",'Enrollment Form'!$B617=\"Subscriber\",'Enrollment Form'!$CQ617=\"Yes\"),\"-\",\"Y\")))))","v":""},{"$f":"IF('Enrollment Form'!AH617=\"\",\"\",IF(ISERROR(SEARCH(\".\",'Enrollment Form'!AH617,SEARCH(\"@\",'Enrollment Form'!AH617))),\"N\",\"Y\"))","v":""},{"$f":"IF(OR($B610=\"N\",'Enrollment Form'!$G617=\"\"),\"\",IF('Enrollment Form'!$B617<>\"Subscriber\",\"-\",IF(COUNTIF('Enrollment Form'!$AS617:$AT617,\"Yes\")=2,\"N\",\"Y\")))","v":""},{"$f":"IF(OR('Enrollment Form'!$CC617=\"\",'Enrollment Form'!$CC617=\"No\"),\"-\",IF(AND('Enrollment Form'!$CC617=\"Yes\",'Enrollment Form'!$CD617=\"\"),\"N\",\"Y\"))","v":"-"},{"$f":"IF(OR('Enrollment Form'!$CE617=\"\",'Enrollment Form'!$CE617=\"No\"),\"-\",IF(AND('Enrollment Form'!$CE617=\"Yes\",'Enrollment Form'!$CF617=\"\"),\"N\",\"Y\"))","v":"-"},{"$f":"IF(OR('Enrollment Form'!$CG617=\"\",'Enrollment Form'!$CG617=\"No\"),\"-\",IF(AND('Enrollment Form'!$CG617=\"Yes\",'Enrollment Form'!$CH617=\"\"),\"N\",\"Y\"))","v":"-"},{"$f":"IF(OR('Enrollment Form'!$CG617=\"\",'Enrollment Form'!$CG617=\"No\"),\"-\",IF(AND('Enrollment Form'!$CG617=\"Yes\",'Enrollment Form'!$CI617=\"\"),\"N\",\"Y\"))","v":"-"},{"$f":"IF('Enrollment Form'!B617<>\"Subscriber\",\"-\",IF(AND('Enrollment Form'!B617=\"Subscriber\",'Enrollment Form'!C617=\"Enroll\",'Enrollment Form'!AA617=\"\"),\"N\",\"Y\"))","v":"-"},{"$f":"IF(OR('Enrollment Form'!B617=\"Subscriber\",'Enrollment Form'!B617=\"\"),\"-\",IF('Enrollment Form'!BI617=\"\",\"N\",\"Y\"))","v":"-"},{"$f":"IF('Enrollment Form'!B617<>\"Subscriber\",\"-\",IF(AND('Enrollment Form'!B617=\"Subscriber\",'Enrollment Form'!G617=\"\"),\"N\",\"Y\"))","v":"-"},{"$f":"IF('Enrollment Form'!A617=\"\",\"\",IF('Enrollment Form'!B617=\"Subscriber\",\"-\",IF(AND('Enrollment Form'!B617<>\"Subscriber\",'Enrollment Form'!G617='Enrollment Form'!H617),\"N\",\"Y\")))","v":""},0]
[618,{"$f":"IF('Enrollment Form'!$A618<>\"\",\"Y\",\"N\")","v":"N"},{"$f":"IF(AND('Enrollment Form'!$B618=\"\",'Enrollment Form'!$C618<>\"\"),\"N\",IF($B611=\"N\",\"\",\"Y\"))","v":""},{"$f":"IF(OR($B611=\"N\",'Enrollment Form'!G618=\"\"),\"\",IF('Enrollment Form'!$B618<>\"Subscriber\",\"\",IF('Enrollment Form'!$G618='Enrollment Form'!$H618,\"Y\",\"N\")))","v":""},{"$f":"IF($B611=\"N\",\"\",IF(AND(COUNTIFS('Enrollment Form'!$H$11:$H$1000,'Enrollment Form'!$H618,'Enrollment Form'!$B$11:$B$1000,'Enrollment Form'!$B618)>1,'Enrollment Form'!$H618<>\"\"),\"N\",\"Y\"))","v":""},{"$f":"IF($B611=\"N\",\"\",IF(LEN('Enrollment Form'!$Y618)=0,\"\",IF(LEN('Enrollment Form'!$Y618)<>5,\"N\",\"Y\")))","v":""},{"$f":"IF($B611=\"N\",\"\",IF(LEN('Enrollment Form'!$AD618=0),\"\",IF(LEN('Enrollment Form'!$AD618)<>5,\"N\",\"Y\")))","v":""},{"$f":"IF($B611=\"N\",\"\",IF(LEN('Enrollment Form'!$BL618=0),\"\",IF(LEN('Enrollment Form'!$BL618)<>5,\"N\",\"Y\")))","v":""},{"$f":"IF($B611=\"N\",\"\",IF(LEN('Enrollment Form'!$AE618)=0,\"\",IF(LEN('Enrollment Form'!$AE618)<>10,\"N\",\"Y\")))","v":""},{"$f":"IF($B611=\"N\",\"\",IF(LEN('Enrollment Form'!$AF618)=0,\"\",IF(LEN('Enrollment Form'!$AF618)<>10,\"N\",\"Y\")))","v":""},{"$f":"IF('Enrollment Form'!$O618<>\"Graded\",\"-\",IF(AND('Enrollment Form'!$O618=\"Graded\",'Enrollment Form'!$AO618<>\"\"),\"Y\",\"N\"))","v":"-"},{"$f":"IF($B611=\"N\",\"\",IF(OR('Enrollment Form'!$B618<>\"Subscriber\",'Enrollment Form'!$C618=\"ROC\"),\"-\",IF(AND('Enrollment Form'!$B618=\"Subscriber\",'Enrollment Form'!$C618=\"Enroll\",'Enrollment Form'!$AJ618<>\"\"),\"Y\",\"N\")))","v":""},{"$f":"IF($B611=\"N\",\"\",IF(OR('Enrollment Form'!$B618<>\"Subscriber\",'Enrollment Form'!$C618=\"ROC\"),\"-\",IF(AND('Enrollment Form'!$B618=\"Subscriber\",'Enrollment Form'!$C618=\"Enroll\",'Enrollment Form'!$AK618<>\"\"),\"Y\",\"N\")))","v":""},{"$f":"IF($B611=\"N\",\"\",IF(OR('Enrollment Form'!$B618<>\"Subscriber\",'Enrollment Form'!$C618=\"ROC\"),\"-\",IF(AND('Enrollment Form'!$B618=\"Subscriber\",'Enrollment Form'!$C618=\"Enroll\",'Enrollment Form'!$AL618<>\"\"),\"Y\",\"N\")))","v":""},{"$f":"IF($B611=\"N\",\"\",IF(OR('Enrollment Form'!$B618<>\"Subscriber\",'Enrollment Form'!$C618=\"ROC\"),\"-\",IF(AND('Enrollment Form'!$B618=\"Subscriber\",'Enrollment Form'!$C618=\"Enroll\",'Enrollment Form'!$AM618<>\"\"),\"Y\",\"N\")))","v":""},{"$f":"IF($B611=\"N\",\"\",IF(OR('Enrollment Form'!$B618<>\"Subscriber\",'Enrollment Form'!$C618=\"ROC\"),\"-\",IF(AND('Enrollment Form'!$B618=\"Subscriber\",'Enrollment Form'!$C618=\"Enroll\",'Enrollment Form'!$AN618<>\"\"),\"Y\",\"N\")))","v":""},{"$f":"IF($B611=\"N\",\"\",IF(OR('Enrollment Form'!$B618<>\"Subscriber\",'Enrollment Form'!$C618=\"ROC\"),\"-\",IF(AND('Enrollment Form'!$B618=\"Subscriber\",'Enrollment Form'!$C618=\"Enroll\",'Enrollment Form'!$AP618<>\"\"),\"Y\",\"N\")))","v":""},{"$f":"IF($B611=\"N\",\"\",IF($Q611=\"-\",\"-\",IF(AND($Q611=\"Y\",'Enrollment Form'!$AP618=\"No\"),\"-\",IF(AND($Q611=\"Y\",'Enrollment Form'!$AP618=\"Yes\",'Enrollment Form'!$AQ618<>\"\"),\"Y\",\"N\"))))","v":""},{"$f":"IF($B611=\"N\",\"\",IF(OR('Enrollment Form'!$B618<>\"Subscriber\",'Enrollment Form'!$C618=\"ROC\"),\"-\",IF(AND('Enrollment Form'!$B618=\"Subscriber\",'Enrollment Form'!$C618=\"Enroll\",'Enrollment Form'!$CO618<>\"\"),\"Y\",\"N\")))","v":""},{"$f":"IF($B611=\"N\",\"\",IF($S611=\"-\",\"-\",IF(AND($S611=\"Y\",'Enrollment Form'!$CO618=\"No\"),\"-\",IF(AND($S611=\"Y\",'Enrollment Form'!$CO618=\"Yes\",'Enrollment Form'!$CP618<>\"\"),\"Y\",\"N\"))))","v":""},{"$f":"IF(OR('Enrollment Form'!$AV618=\"Yes\",'Enrollment Form'!$AV618=\"\"),\"-\",IF(AND('Enrollment Form'!$AV618=\"No\",ISERROR(FIND(\"HMO\",VLOOKUP('Enrollment Form'!G618,'Enrollment Form'!H$11:J$1000,3,FALSE),1))=FALSE,COUNTA('Enrollment Form'!$AW618:$AZ618)=4),\"Y\",\"N\"))","v":"-"},{"$f":"IF($B611=\"N\",\"\",IF('Enrollment Form'!$B618=\"Subscriber\",\"-\",IF(COUNTA('Enrollment Form'!$BE618,'Enrollment Form'!$BG618)=2,\"Y\",\"N\")))","v":""},{"$f":"IF($B611=\"N\",\"\",IF(OR('Enrollment Form'!$AU618=\"\",'Enrollment Form'!$AU618=\"No\"),\"-\",IF(AND('Enrollment Form'!$AU618=\"Yes\",COUNTA('Enrollment Form'!$CK618)=1),\"Y\",\"N\")))","v":""},{"$f":"IF(OR('Enrollment Form'!$CK618=\"\",'Enrollment Form'!$CK618=\"No\"),\"-\",IF(COUNTA('Enrollment Form'!$CM618:$CN618)=2,\"Y\",\"N\"))","v":"-"},{"$f":"IF($B611=\"N\",\"\",IF(COUNTIF('Enrollment Form'!$CZ618:$DO618,\"Other\")=COUNTA('Enrollment Form'!$DF618,'Enrollment Form'!$DA618,'Enrollment Form'!$DK618,'Enrollment Form'!$DP618),\"Y\",\"N\"))","v":""},{"$f":"IF($B611=\"N\",\"\",IF(OR('Enrollment Form'!B618<>\"Subscriber\",'Enrollment Form'!C618=\"ROC\",COUNTIF('Enrollment Form'!AS618:AT618,\"Yes\")>=1),\"-\",IF(AND('Enrollment Form'!C618=\"Enroll\",COUNTIF('Enrollment Form'!AS618:AT618,\"No\")=2,'Enrollment Form'!AU618=\"\"),\"N\",\"Y\")))","v":""},{"$f":"IF(OR(B611=\"N\",'Enrollment Form'!B618<>\"Subscriber\",'Enrollment Form'!C618=\"ROC\",'Enrollment Form'!O618<>\"Multiple of Salary\"),\"-\",IF(COUNTA('Enrollment Form'!T618:U618)<2,\"N\",\"Y\"))","v":"-"},{"$f":"IF(B611=\"N\",\"\",IF(OR('Enrollment Form'!C618=\"ROC\",'Enrollment Form'!B618<>\"Subscriber\",'Enrollment Form'!O618=\"Waive\",'Enrollment Form'!O618=\"\"),\"-\",IF('Enrollment Form'!P618=\"\",\"N\",\"Y\")))","v":""},{"$f":"IF($B611=\"N\",\"\",IF(AND('Enrollment Form'!$C618=\"ROC\",'Enrollment Form'!$DS618<>\"\"),\"Y\",IF(AND('Enrollment Form'!$C618=\"ROC\",'Enrollment Form'!$DS618=\"\"),\"N\",IF(AND('Enrollment Form'!$C618=\"Enroll\",'Enrollment Form'!$B618=\"Subscriber\",'Enrollment Form'!$CQ618=\"No\",'Enrollment Form'!$DS618=\"\"),\"N\",IF(AND('Enrollment Form'!$C618=\"Enroll\",'Enrollment Form'!$B618=\"Subscriber\",'Enrollment Form'!$CQ618=\"Yes\"),\"-\",\"Y\")))))","v":""},{"$f":"IF($B611=\"N\",\"\",IF(AND('Enrollment Form'!$C618=\"ROC\",'Enrollment Form'!$DT618<>\"\"),\"Y\",IF(AND('Enrollment Form'!$C618=\"ROC\",'Enrollment Form'!$DT618=\"\"),\"N\",IF(AND('Enrollment Form'!$C618=\"Enroll\",'Enrollment Form'!$B618=\"Subscriber\",'Enrollment Form'!$CQ618=\"No\",'Enrollment Form'!$DT618=\"\"),\"N\",IF(AND('Enrollment Form'!$C618=\"Enroll\",'Enrollment Form'!$B618=\"Subscriber\",'Enrollment Form'!$CQ618=\"Yes\"),\"-\",\"Y\")))))","v":""},{"$f":"IF('Enrollment Form'!AH618=\"\",\"\",IF(ISERROR(SEARCH(\".\",'Enrollment Form'!AH618,SEARCH(\"@\",'Enrollment Form'!AH618))),\"N\",\"Y\"))","v":""},{"$f":"IF(OR($B611=\"N\",'Enrollment Form'!$G618=\"\"),\"\",IF('Enrollment Form'!$B618<>\"Subscriber\",\"-\",IF(COUNTIF('Enrollment Form'!$AS618:$AT618,\"Yes\")=2,\"N\",\"Y\")))","v":""},{"$f":"IF(OR('Enrollment Form'!$CC618=\"\",'Enrollment Form'!$CC618=\"No\"),\"-\",IF(AND('Enrollment Form'!$CC618=\"Yes\",'Enrollment Form'!$CD618=\"\"),\"N\",\"Y\"))","v":"-"},{"$f":"IF(OR('Enrollment Form'!$CE618=\"\",'Enrollment Form'!$CE618=\"No\"),\"-\",IF(AND('Enrollment Form'!$CE618=\"Yes\",'Enrollment Form'!$CF618=\"\"),\"N\",\"Y\"))","v":"-"},{"$f":"IF(OR('Enrollment Form'!$CG618=\"\",'Enrollment Form'!$CG618=\"No\"),\"-\",IF(AND('Enrollment Form'!$CG618=\"Yes\",'Enrollment Form'!$CH618=\"\"),\"N\",\"Y\"))","v":"-"},{"$f":"IF(OR('Enrollment Form'!$CG618=\"\",'Enrollment Form'!$CG618=\"No\"),\"-\",IF(AND('Enrollment Form'!$CG618=\"Yes\",'Enrollment Form'!$CI618=\"\"),\"N\",\"Y\"))","v":"-"},{"$f":"IF('Enrollment Form'!B618<>\"Subscriber\",\"-\",IF(AND('Enrollment Form'!B618=\"Subscriber\",'Enrollment Form'!C618=\"Enroll\",'Enrollment Form'!AA618=\"\"),\"N\",\"Y\"))","v":"-"},{"$f":"IF(OR('Enrollment Form'!B618=\"Subscriber\",'Enrollment Form'!B618=\"\"),\"-\",IF('Enrollment Form'!BI618=\"\",\"N\",\"Y\"))","v":"-"},{"$f":"IF('Enrollment Form'!B618<>\"Subscriber\",\"-\",IF(AND('Enrollment Form'!B618=\"Subscriber\",'Enrollment Form'!G618=\"\"),\"N\",\"Y\"))","v":"-"},{"$f":"IF('Enrollment Form'!A618=\"\",\"\",IF('Enrollment Form'!B618=\"Subscriber\",\"-\",IF(AND('Enrollment Form'!B618<>\"Subscriber\",'Enrollment Form'!G618='Enrollment Form'!H618),\"N\",\"Y\")))","v":""},0]
[619,{"$f":"IF('Enrollment Form'!$A619<>\"\",\"Y\",\"N\")","v":"N"},{"$f":"IF(AND('Enrollment Form'!$B619=\"\",'Enrollment Form'!$C619<>\"\"),\"N\",IF($B612=\"N\",\"\",\"Y\"))","v":""},{"$f":"IF(OR($B612=\"N\",'Enrollment Form'!G619=\"\"),\"\",IF('Enrollment Form'!$B619<>\"Subscriber\",\"\",IF('Enrollment Form'!$G619='Enrollment Form'!$H619,\"Y\",\"N\")))","v":""},{"$f":"IF($B612=\"N\",\"\",IF(AND(COUNTIFS('Enrollment Form'!$H$11:$H$1000,'Enrollment Form'!$H619,'Enrollment Form'!$B$11:$B$1000,'Enrollment Form'!$B619)>1,'Enrollment Form'!$H619<>\"\"),\"N\",\"Y\"))","v":""},{"$f":"IF($B612=\"N\",\"\",IF(LEN('Enrollment Form'!$Y619)=0,\"\",IF(LEN('Enrollment Form'!$Y619)<>5,\"N\",\"Y\")))","v":""},{"$f":"IF($B612=\"N\",\"\",IF(LEN('Enrollment Form'!$AD619=0),\"\",IF(LEN('Enrollment Form'!$AD619)<>5,\"N\",\"Y\")))","v":""},{"$f":"IF($B612=\"N\",\"\",IF(LEN('Enrollment Form'!$BL619=0),\"\",IF(LEN('Enrollment Form'!$BL619)<>5,\"N\",\"Y\")))","v":""},{"$f":"IF($B612=\"N\",\"\",IF(LEN('Enrollment Form'!$AE619)=0,\"\",IF(LEN('Enrollment Form'!$AE619)<>10,\"N\",\"Y\")))","v":""},{"$f":"IF($B612=\"N\",\"\",IF(LEN('Enrollment Form'!$AF619)=0,\"\",IF(LEN('Enrollment Form'!$AF619)<>10,\"N\",\"Y\")))","v":""},{"$f":"IF('Enrollment Form'!$O619<>\"Graded\",\"-\",IF(AND('Enrollment Form'!$O619=\"Graded\",'Enrollment Form'!$AO619<>\"\"),\"Y\",\"N\"))","v":"-"},{"$f":"IF($B612=\"N\",\"\",IF(OR('Enrollment Form'!$B619<>\"Subscriber\",'Enrollment Form'!$C619=\"ROC\"),\"-\",IF(AND('Enrollment Form'!$B619=\"Subscriber\",'Enrollment Form'!$C619=\"Enroll\",'Enrollment Form'!$AJ619<>\"\"),\"Y\",\"N\")))","v":""},{"$f":"IF($B612=\"N\",\"\",IF(OR('Enrollment Form'!$B619<>\"Subscriber\",'Enrollment Form'!$C619=\"ROC\"),\"-\",IF(AND('Enrollment Form'!$B619=\"Subscriber\",'Enrollment Form'!$C619=\"Enroll\",'Enrollment Form'!$AK619<>\"\"),\"Y\",\"N\")))","v":""},{"$f":"IF($B612=\"N\",\"\",IF(OR('Enrollment Form'!$B619<>\"Subscriber\",'Enrollment Form'!$C619=\"ROC\"),\"-\",IF(AND('Enrollment Form'!$B619=\"Subscriber\",'Enrollment Form'!$C619=\"Enroll\",'Enrollment Form'!$AL619<>\"\"),\"Y\",\"N\")))","v":""},{"$f":"IF($B612=\"N\",\"\",IF(OR('Enrollment Form'!$B619<>\"Subscriber\",'Enrollment Form'!$C619=\"ROC\"),\"-\",IF(AND('Enrollment Form'!$B619=\"Subscriber\",'Enrollment Form'!$C619=\"Enroll\",'Enrollment Form'!$AM619<>\"\"),\"Y\",\"N\")))","v":""},{"$f":"IF($B612=\"N\",\"\",IF(OR('Enrollment Form'!$B619<>\"Subscriber\",'Enrollment Form'!$C619=\"ROC\"),\"-\",IF(AND('Enrollment Form'!$B619=\"Subscriber\",'Enrollment Form'!$C619=\"Enroll\",'Enrollment Form'!$AN619<>\"\"),\"Y\",\"N\")))","v":""},{"$f":"IF($B612=\"N\",\"\",IF(OR('Enrollment Form'!$B619<>\"Subscriber\",'Enrollment Form'!$C619=\"ROC\"),\"-\",IF(AND('Enrollment Form'!$B619=\"Subscriber\",'Enrollment Form'!$C619=\"Enroll\",'Enrollment Form'!$AP619<>\"\"),\"Y\",\"N\")))","v":""},{"$f":"IF($B612=\"N\",\"\",IF($Q612=\"-\",\"-\",IF(AND($Q612=\"Y\",'Enrollment Form'!$AP619=\"No\"),\"-\",IF(AND($Q612=\"Y\",'Enrollment Form'!$AP619=\"Yes\",'Enrollment Form'!$AQ619<>\"\"),\"Y\",\"N\"))))","v":""},{"$f":"IF($B612=\"N\",\"\",IF(OR('Enrollment Form'!$B619<>\"Subscriber\",'Enrollment Form'!$C619=\"ROC\"),\"-\",IF(AND('Enrollment Form'!$B619=\"Subscriber\",'Enrollment Form'!$C619=\"Enroll\",'Enrollment Form'!$CO619<>\"\"),\"Y\",\"N\")))","v":""},{"$f":"IF($B612=\"N\",\"\",IF($S612=\"-\",\"-\",IF(AND($S612=\"Y\",'Enrollment Form'!$CO619=\"No\"),\"-\",IF(AND($S612=\"Y\",'Enrollment Form'!$CO619=\"Yes\",'Enrollment Form'!$CP619<>\"\"),\"Y\",\"N\"))))","v":""},{"$f":"IF(OR('Enrollment Form'!$AV619=\"Yes\",'Enrollment Form'!$AV619=\"\"),\"-\",IF(AND('Enrollment Form'!$AV619=\"No\",ISERROR(FIND(\"HMO\",VLOOKUP('Enrollment Form'!G619,'Enrollment Form'!H$11:J$1000,3,FALSE),1))=FALSE,COUNTA('Enrollment Form'!$AW619:$AZ619)=4),\"Y\",\"N\"))","v":"-"},{"$f":"IF($B612=\"N\",\"\",IF('Enrollment Form'!$B619=\"Subscriber\",\"-\",IF(COUNTA('Enrollment Form'!$BE619,'Enrollment Form'!$BG619)=2,\"Y\",\"N\")))","v":""},{"$f":"IF($B612=\"N\",\"\",IF(OR('Enrollment Form'!$AU619=\"\",'Enrollment Form'!$AU619=\"No\"),\"-\",IF(AND('Enrollment Form'!$AU619=\"Yes\",COUNTA('Enrollment Form'!$CK619)=1),\"Y\",\"N\")))","v":""},{"$f":"IF(OR('Enrollment Form'!$CK619=\"\",'Enrollment Form'!$CK619=\"No\"),\"-\",IF(COUNTA('Enrollment Form'!$CM619:$CN619)=2,\"Y\",\"N\"))","v":"-"},{"$f":"IF($B612=\"N\",\"\",IF(COUNTIF('Enrollment Form'!$CZ619:$DO619,\"Other\")=COUNTA('Enrollment Form'!$DF619,'Enrollment Form'!$DA619,'Enrollment Form'!$DK619,'Enrollment Form'!$DP619),\"Y\",\"N\"))","v":""},{"$f":"IF($B612=\"N\",\"\",IF(OR('Enrollment Form'!B619<>\"Subscriber\",'Enrollment Form'!C619=\"ROC\",COUNTIF('Enrollment Form'!AS619:AT619,\"Yes\")>=1),\"-\",IF(AND('Enrollment Form'!C619=\"Enroll\",COUNTIF('Enrollment Form'!AS619:AT619,\"No\")=2,'Enrollment Form'!AU619=\"\"),\"N\",\"Y\")))","v":""},{"$f":"IF(OR(B612=\"N\",'Enrollment Form'!B619<>\"Subscriber\",'Enrollment Form'!C619=\"ROC\",'Enrollment Form'!O619<>\"Multiple of Salary\"),\"-\",IF(COUNTA('Enrollment Form'!T619:U619)<2,\"N\",\"Y\"))","v":"-"},{"$f":"IF(B612=\"N\",\"\",IF(OR('Enrollment Form'!C619=\"ROC\",'Enrollment Form'!B619<>\"Subscriber\",'Enrollment Form'!O619=\"Waive\",'Enrollment Form'!O619=\"\"),\"-\",IF('Enrollment Form'!P619=\"\",\"N\",\"Y\")))","v":""},{"$f":"IF($B612=\"N\",\"\",IF(AND('Enrollment Form'!$C619=\"ROC\",'Enrollment Form'!$DS619<>\"\"),\"Y\",IF(AND('Enrollment Form'!$C619=\"ROC\",'Enrollment Form'!$DS619=\"\"),\"N\",IF(AND('Enrollment Form'!$C619=\"Enroll\",'Enrollment Form'!$B619=\"Subscriber\",'Enrollment Form'!$CQ619=\"No\",'Enrollment Form'!$DS619=\"\"),\"N\",IF(AND('Enrollment Form'!$C619=\"Enroll\",'Enrollment Form'!$B619=\"Subscriber\",'Enrollment Form'!$CQ619=\"Yes\"),\"-\",\"Y\")))))","v":""},{"$f":"IF($B612=\"N\",\"\",IF(AND('Enrollment Form'!$C619=\"ROC\",'Enrollment Form'!$DT619<>\"\"),\"Y\",IF(AND('Enrollment Form'!$C619=\"ROC\",'Enrollment Form'!$DT619=\"\"),\"N\",IF(AND('Enrollment Form'!$C619=\"Enroll\",'Enrollment Form'!$B619=\"Subscriber\",'Enrollment Form'!$CQ619=\"No\",'Enrollment Form'!$DT619=\"\"),\"N\",IF(AND('Enrollment Form'!$C619=\"Enroll\",'Enrollment Form'!$B619=\"Subscriber\",'Enrollment Form'!$CQ619=\"Yes\"),\"-\",\"Y\")))))","v":""},{"$f":"IF('Enrollment Form'!AH619=\"\",\"\",IF(ISERROR(SEARCH(\".\",'Enrollment Form'!AH619,SEARCH(\"@\",'Enrollment Form'!AH619))),\"N\",\"Y\"))","v":""},{"$f":"IF(OR($B612=\"N\",'Enrollment Form'!$G619=\"\"),\"\",IF('Enrollment Form'!$B619<>\"Subscriber\",\"-\",IF(COUNTIF('Enrollment Form'!$AS619:$AT619,\"Yes\")=2,\"N\",\"Y\")))","v":""},{"$f":"IF(OR('Enrollment Form'!$CC619=\"\",'Enrollment Form'!$CC619=\"No\"),\"-\",IF(AND('Enrollment Form'!$CC619=\"Yes\",'Enrollment Form'!$CD619=\"\"),\"N\",\"Y\"))","v":"-"},{"$f":"IF(OR('Enrollment Form'!$CE619=\"\",'Enrollment Form'!$CE619=\"No\"),\"-\",IF(AND('Enrollment Form'!$CE619=\"Yes\",'Enrollment Form'!$CF619=\"\"),\"N\",\"Y\"))","v":"-"},{"$f":"IF(OR('Enrollment Form'!$CG619=\"\",'Enrollment Form'!$CG619=\"No\"),\"-\",IF(AND('Enrollment Form'!$CG619=\"Yes\",'Enrollment Form'!$CH619=\"\"),\"N\",\"Y\"))","v":"-"},{"$f":"IF(OR('Enrollment Form'!$CG619=\"\",'Enrollment Form'!$CG619=\"No\"),\"-\",IF(AND('Enrollment Form'!$CG619=\"Yes\",'Enrollment Form'!$CI619=\"\"),\"N\",\"Y\"))","v":"-"},{"$f":"IF('Enrollment Form'!B619<>\"Subscriber\",\"-\",IF(AND('Enrollment Form'!B619=\"Subscriber\",'Enrollment Form'!C619=\"Enroll\",'Enrollment Form'!AA619=\"\"),\"N\",\"Y\"))","v":"-"},{"$f":"IF(OR('Enrollment Form'!B619=\"Subscriber\",'Enrollment Form'!B619=\"\"),\"-\",IF('Enrollment Form'!BI619=\"\",\"N\",\"Y\"))","v":"-"},{"$f":"IF('Enrollment Form'!B619<>\"Subscriber\",\"-\",IF(AND('Enrollment Form'!B619=\"Subscriber\",'Enrollment Form'!G619=\"\"),\"N\",\"Y\"))","v":"-"},{"$f":"IF('Enrollment Form'!A619=\"\",\"\",IF('Enrollment Form'!B619=\"Subscriber\",\"-\",IF(AND('Enrollment Form'!B619<>\"Subscriber\",'Enrollment Form'!G619='Enrollment Form'!H619),\"N\",\"Y\")))","v":""},0]
[620,{"$f":"IF('Enrollment Form'!$A620<>\"\",\"Y\",\"N\")","v":"N"},{"$f":"IF(AND('Enrollment Form'!$B620=\"\",'Enrollment Form'!$C620<>\"\"),\"N\",IF($B613=\"N\",\"\",\"Y\"))","v":""},{"$f":"IF(OR($B613=\"N\",'Enrollment Form'!G620=\"\"),\"\",IF('Enrollment Form'!$B620<>\"Subscriber\",\"\",IF('Enrollment Form'!$G620='Enrollment Form'!$H620,\"Y\",\"N\")))","v":""},{"$f":"IF($B613=\"N\",\"\",IF(AND(COUNTIFS('Enrollment Form'!$H$11:$H$1000,'Enrollment Form'!$H620,'Enrollment Form'!$B$11:$B$1000,'Enrollment Form'!$B620)>1,'Enrollment Form'!$H620<>\"\"),\"N\",\"Y\"))","v":""},{"$f":"IF($B613=\"N\",\"\",IF(LEN('Enrollment Form'!$Y620)=0,\"\",IF(LEN('Enrollment Form'!$Y620)<>5,\"N\",\"Y\")))","v":""},{"$f":"IF($B613=\"N\",\"\",IF(LEN('Enrollment Form'!$AD620=0),\"\",IF(LEN('Enrollment Form'!$AD620)<>5,\"N\",\"Y\")))","v":""},{"$f":"IF($B613=\"N\",\"\",IF(LEN('Enrollment Form'!$BL620=0),\"\",IF(LEN('Enrollment Form'!$BL620)<>5,\"N\",\"Y\")))","v":""},{"$f":"IF($B613=\"N\",\"\",IF(LEN('Enrollment Form'!$AE620)=0,\"\",IF(LEN('Enrollment Form'!$AE620)<>10,\"N\",\"Y\")))","v":""},{"$f":"IF($B613=\"N\",\"\",IF(LEN('Enrollment Form'!$AF620)=0,\"\",IF(LEN('Enrollment Form'!$AF620)<>10,\"N\",\"Y\")))","v":""},{"$f":"IF('Enrollment Form'!$O620<>\"Graded\",\"-\",IF(AND('Enrollment Form'!$O620=\"Graded\",'Enrollment Form'!$AO620<>\"\"),\"Y\",\"N\"))","v":"-"},{"$f":"IF($B613=\"N\",\"\",IF(OR('Enrollment Form'!$B620<>\"Subscriber\",'Enrollment Form'!$C620=\"ROC\"),\"-\",IF(AND('Enrollment Form'!$B620=\"Subscriber\",'Enrollment Form'!$C620=\"Enroll\",'Enrollment Form'!$AJ620<>\"\"),\"Y\",\"N\")))","v":""},{"$f":"IF($B613=\"N\",\"\",IF(OR('Enrollment Form'!$B620<>\"Subscriber\",'Enrollment Form'!$C620=\"ROC\"),\"-\",IF(AND('Enrollment Form'!$B620=\"Subscriber\",'Enrollment Form'!$C620=\"Enroll\",'Enrollment Form'!$AK620<>\"\"),\"Y\",\"N\")))","v":""},{"$f":"IF($B613=\"N\",\"\",IF(OR('Enrollment Form'!$B620<>\"Subscriber\",'Enrollment Form'!$C620=\"ROC\"),\"-\",IF(AND('Enrollment Form'!$B620=\"Subscriber\",'Enrollment Form'!$C620=\"Enroll\",'Enrollment Form'!$AL620<>\"\"),\"Y\",\"N\")))","v":""},{"$f":"IF($B613=\"N\",\"\",IF(OR('Enrollment Form'!$B620<>\"Subscriber\",'Enrollment Form'!$C620=\"ROC\"),\"-\",IF(AND('Enrollment Form'!$B620=\"Subscriber\",'Enrollment Form'!$C620=\"Enroll\",'Enrollment Form'!$AM620<>\"\"),\"Y\",\"N\")))","v":""},{"$f":"IF($B613=\"N\",\"\",IF(OR('Enrollment Form'!$B620<>\"Subscriber\",'Enrollment Form'!$C620=\"ROC\"),\"-\",IF(AND('Enrollment Form'!$B620=\"Subscriber\",'Enrollment Form'!$C620=\"Enroll\",'Enrollment Form'!$AN620<>\"\"),\"Y\",\"N\")))","v":""},{"$f":"IF($B613=\"N\",\"\",IF(OR('Enrollment Form'!$B620<>\"Subscriber\",'Enrollment Form'!$C620=\"ROC\"),\"-\",IF(AND('Enrollment Form'!$B620=\"Subscriber\",'Enrollment Form'!$C620=\"Enroll\",'Enrollment Form'!$AP620<>\"\"),\"Y\",\"N\")))","v":""},{"$f":"IF($B613=\"N\",\"\",IF($Q613=\"-\",\"-\",IF(AND($Q613=\"Y\",'Enrollment Form'!$AP620=\"No\"),\"-\",IF(AND($Q613=\"Y\",'Enrollment Form'!$AP620=\"Yes\",'Enrollment Form'!$AQ620<>\"\"),\"Y\",\"N\"))))","v":""},{"$f":"IF($B613=\"N\",\"\",IF(OR('Enrollment Form'!$B620<>\"Subscriber\",'Enrollment Form'!$C620=\"ROC\"),\"-\",IF(AND('Enrollment Form'!$B620=\"Subscriber\",'Enrollment Form'!$C620=\"Enroll\",'Enrollment Form'!$CO620<>\"\"),\"Y\",\"N\")))","v":""},{"$f":"IF($B613=\"N\",\"\",IF($S613=\"-\",\"-\",IF(AND($S613=\"Y\",'Enrollment Form'!$CO620=\"No\"),\"-\",IF(AND($S613=\"Y\",'Enrollment Form'!$CO620=\"Yes\",'Enrollment Form'!$CP620<>\"\"),\"Y\",\"N\"))))","v":""},{"$f":"IF(OR('Enrollment Form'!$AV620=\"Yes\",'Enrollment Form'!$AV620=\"\"),\"-\",IF(AND('Enrollment Form'!$AV620=\"No\",ISERROR(FIND(\"HMO\",VLOOKUP('Enrollment Form'!G620,'Enrollment Form'!H$11:J$1000,3,FALSE),1))=FALSE,COUNTA('Enrollment Form'!$AW620:$AZ620)=4),\"Y\",\"N\"))","v":"-"},{"$f":"IF($B613=\"N\",\"\",IF('Enrollment Form'!$B620=\"Subscriber\",\"-\",IF(COUNTA('Enrollment Form'!$BE620,'Enrollment Form'!$BG620)=2,\"Y\",\"N\")))","v":""},{"$f":"IF($B613=\"N\",\"\",IF(OR('Enrollment Form'!$AU620=\"\",'Enrollment Form'!$AU620=\"No\"),\"-\",IF(AND('Enrollment Form'!$AU620=\"Yes\",COUNTA('Enrollment Form'!$CK620)=1),\"Y\",\"N\")))","v":""},{"$f":"IF(OR('Enrollment Form'!$CK620=\"\",'Enrollment Form'!$CK620=\"No\"),\"-\",IF(COUNTA('Enrollment Form'!$CM620:$CN620)=2,\"Y\",\"N\"))","v":"-"},{"$f":"IF($B613=\"N\",\"\",IF(COUNTIF('Enrollment Form'!$CZ620:$DO620,\"Other\")=COUNTA('Enrollment Form'!$DF620,'Enrollment Form'!$DA620,'Enrollment Form'!$DK620,'Enrollment Form'!$DP620),\"Y\",\"N\"))","v":""},{"$f":"IF($B613=\"N\",\"\",IF(OR('Enrollment Form'!B620<>\"Subscriber\",'Enrollment Form'!C620=\"ROC\",COUNTIF('Enrollment Form'!AS620:AT620,\"Yes\")>=1),\"-\",IF(AND('Enrollment Form'!C620=\"Enroll\",COUNTIF('Enrollment Form'!AS620:AT620,\"No\")=2,'Enrollment Form'!AU620=\"\"),\"N\",\"Y\")))","v":""},{"$f":"IF(OR(B613=\"N\",'Enrollment Form'!B620<>\"Subscriber\",'Enrollment Form'!C620=\"ROC\",'Enrollment Form'!O620<>\"Multiple of Salary\"),\"-\",IF(COUNTA('Enrollment Form'!T620:U620)<2,\"N\",\"Y\"))","v":"-"},{"$f":"IF(B613=\"N\",\"\",IF(OR('Enrollment Form'!C620=\"ROC\",'Enrollment Form'!B620<>\"Subscriber\",'Enrollment Form'!O620=\"Waive\",'Enrollment Form'!O620=\"\"),\"-\",IF('Enrollment Form'!P620=\"\",\"N\",\"Y\")))","v":""},{"$f":"IF($B613=\"N\",\"\",IF(AND('Enrollment Form'!$C620=\"ROC\",'Enrollment Form'!$DS620<>\"\"),\"Y\",IF(AND('Enrollment Form'!$C620=\"ROC\",'Enrollment Form'!$DS620=\"\"),\"N\",IF(AND('Enrollment Form'!$C620=\"Enroll\",'Enrollment Form'!$B620=\"Subscriber\",'Enrollment Form'!$CQ620=\"No\",'Enrollment Form'!$DS620=\"\"),\"N\",IF(AND('Enrollment Form'!$C620=\"Enroll\",'Enrollment Form'!$B620=\"Subscriber\",'Enrollment Form'!$CQ620=\"Yes\"),\"-\",\"Y\")))))","v":""},{"$f":"IF($B613=\"N\",\"\",IF(AND('Enrollment Form'!$C620=\"ROC\",'Enrollment Form'!$DT620<>\"\"),\"Y\",IF(AND('Enrollment Form'!$C620=\"ROC\",'Enrollment Form'!$DT620=\"\"),\"N\",IF(AND('Enrollment Form'!$C620=\"Enroll\",'Enrollment Form'!$B620=\"Subscriber\",'Enrollment Form'!$CQ620=\"No\",'Enrollment Form'!$DT620=\"\"),\"N\",IF(AND('Enrollment Form'!$C620=\"Enroll\",'Enrollment Form'!$B620=\"Subscriber\",'Enrollment Form'!$CQ620=\"Yes\"),\"-\",\"Y\")))))","v":""},{"$f":"IF('Enrollment Form'!AH620=\"\",\"\",IF(ISERROR(SEARCH(\".\",'Enrollment Form'!AH620,SEARCH(\"@\",'Enrollment Form'!AH620))),\"N\",\"Y\"))","v":""},{"$f":"IF(OR($B613=\"N\",'Enrollment Form'!$G620=\"\"),\"\",IF('Enrollment Form'!$B620<>\"Subscriber\",\"-\",IF(COUNTIF('Enrollment Form'!$AS620:$AT620,\"Yes\")=2,\"N\",\"Y\")))","v":""},{"$f":"IF(OR('Enrollment Form'!$CC620=\"\",'Enrollment Form'!$CC620=\"No\"),\"-\",IF(AND('Enrollment Form'!$CC620=\"Yes\",'Enrollment Form'!$CD620=\"\"),\"N\",\"Y\"))","v":"-"},{"$f":"IF(OR('Enrollment Form'!$CE620=\"\",'Enrollment Form'!$CE620=\"No\"),\"-\",IF(AND('Enrollment Form'!$CE620=\"Yes\",'Enrollment Form'!$CF620=\"\"),\"N\",\"Y\"))","v":"-"},{"$f":"IF(OR('Enrollment Form'!$CG620=\"\",'Enrollment Form'!$CG620=\"No\"),\"-\",IF(AND('Enrollment Form'!$CG620=\"Yes\",'Enrollment Form'!$CH620=\"\"),\"N\",\"Y\"))","v":"-"},{"$f":"IF(OR('Enrollment Form'!$CG620=\"\",'Enrollment Form'!$CG620=\"No\"),\"-\",IF(AND('Enrollment Form'!$CG620=\"Yes\",'Enrollment Form'!$CI620=\"\"),\"N\",\"Y\"))","v":"-"},{"$f":"IF('Enrollment Form'!B620<>\"Subscriber\",\"-\",IF(AND('Enrollment Form'!B620=\"Subscriber\",'Enrollment Form'!C620=\"Enroll\",'Enrollment Form'!AA620=\"\"),\"N\",\"Y\"))","v":"-"},{"$f":"IF(OR('Enrollment Form'!B620=\"Subscriber\",'Enrollment Form'!B620=\"\"),\"-\",IF('Enrollment Form'!BI620=\"\",\"N\",\"Y\"))","v":"-"},{"$f":"IF('Enrollment Form'!B620<>\"Subscriber\",\"-\",IF(AND('Enrollment Form'!B620=\"Subscriber\",'Enrollment Form'!G620=\"\"),\"N\",\"Y\"))","v":"-"},{"$f":"IF('Enrollment Form'!A620=\"\",\"\",IF('Enrollment Form'!B620=\"Subscriber\",\"-\",IF(AND('Enrollment Form'!B620<>\"Subscriber\",'Enrollment Form'!G620='Enrollment Form'!H620),\"N\",\"Y\")))","v":""},0]
[621,{"$f":"IF('Enrollment Form'!$A621<>\"\",\"Y\",\"N\")","v":"N"},{"$f":"IF(AND('Enrollment Form'!$B621=\"\",'Enrollment Form'!$C621<>\"\"),\"N\",IF($B614=\"N\",\"\",\"Y\"))","v":""},{"$f":"IF(OR($B614=\"N\",'Enrollment Form'!G621=\"\"),\"\",IF('Enrollment Form'!$B621<>\"Subscriber\",\"\",IF('Enrollment Form'!$G621='Enrollment Form'!$H621,\"Y\",\"N\")))","v":""},{"$f":"IF($B614=\"N\",\"\",IF(AND(COUNTIFS('Enrollment Form'!$H$11:$H$1000,'Enrollment Form'!$H621,'Enrollment Form'!$B$11:$B$1000,'Enrollment Form'!$B621)>1,'Enrollment Form'!$H621<>\"\"),\"N\",\"Y\"))","v":""},{"$f":"IF($B614=\"N\",\"\",IF(LEN('Enrollment Form'!$Y621)=0,\"\",IF(LEN('Enrollment Form'!$Y621)<>5,\"N\",\"Y\")))","v":""},{"$f":"IF($B614=\"N\",\"\",IF(LEN('Enrollment Form'!$AD621=0),\"\",IF(LEN('Enrollment Form'!$AD621)<>5,\"N\",\"Y\")))","v":""},{"$f":"IF($B614=\"N\",\"\",IF(LEN('Enrollment Form'!$BL621=0),\"\",IF(LEN('Enrollment Form'!$BL621)<>5,\"N\",\"Y\")))","v":""},{"$f":"IF($B614=\"N\",\"\",IF(LEN('Enrollment Form'!$AE621)=0,\"\",IF(LEN('Enrollment Form'!$AE621)<>10,\"N\",\"Y\")))","v":""},{"$f":"IF($B614=\"N\",\"\",IF(LEN('Enrollment Form'!$AF621)=0,\"\",IF(LEN('Enrollment Form'!$AF621)<>10,\"N\",\"Y\")))","v":""},{"$f":"IF('Enrollment Form'!$O621<>\"Graded\",\"-\",IF(AND('Enrollment Form'!$O621=\"Graded\",'Enrollment Form'!$AO621<>\"\"),\"Y\",\"N\"))","v":"-"},{"$f":"IF($B614=\"N\",\"\",IF(OR('Enrollment Form'!$B621<>\"Subscriber\",'Enrollment Form'!$C621=\"ROC\"),\"-\",IF(AND('Enrollment Form'!$B621=\"Subscriber\",'Enrollment Form'!$C621=\"Enroll\",'Enrollment Form'!$AJ621<>\"\"),\"Y\",\"N\")))","v":""},{"$f":"IF($B614=\"N\",\"\",IF(OR('Enrollment Form'!$B621<>\"Subscriber\",'Enrollment Form'!$C621=\"ROC\"),\"-\",IF(AND('Enrollment Form'!$B621=\"Subscriber\",'Enrollment Form'!$C621=\"Enroll\",'Enrollment Form'!$AK621<>\"\"),\"Y\",\"N\")))","v":""},{"$f":"IF($B614=\"N\",\"\",IF(OR('Enrollment Form'!$B621<>\"Subscriber\",'Enrollment Form'!$C621=\"ROC\"),\"-\",IF(AND('Enrollment Form'!$B621=\"Subscriber\",'Enrollment Form'!$C621=\"Enroll\",'Enrollment Form'!$AL621<>\"\"),\"Y\",\"N\")))","v":""},{"$f":"IF($B614=\"N\",\"\",IF(OR('Enrollment Form'!$B621<>\"Subscriber\",'Enrollment Form'!$C621=\"ROC\"),\"-\",IF(AND('Enrollment Form'!$B621=\"Subscriber\",'Enrollment Form'!$C621=\"Enroll\",'Enrollment Form'!$AM621<>\"\"),\"Y\",\"N\")))","v":""},{"$f":"IF($B614=\"N\",\"\",IF(OR('Enrollment Form'!$B621<>\"Subscriber\",'Enrollment Form'!$C621=\"ROC\"),\"-\",IF(AND('Enrollment Form'!$B621=\"Subscriber\",'Enrollment Form'!$C621=\"Enroll\",'Enrollment Form'!$AN621<>\"\"),\"Y\",\"N\")))","v":""},{"$f":"IF($B614=\"N\",\"\",IF(OR('Enrollment Form'!$B621<>\"Subscriber\",'Enrollment Form'!$C621=\"ROC\"),\"-\",IF(AND('Enrollment Form'!$B621=\"Subscriber\",'Enrollment Form'!$C621=\"Enroll\",'Enrollment Form'!$AP621<>\"\"),\"Y\",\"N\")))","v":""},{"$f":"IF($B614=\"N\",\"\",IF($Q614=\"-\",\"-\",IF(AND($Q614=\"Y\",'Enrollment Form'!$AP621=\"No\"),\"-\",IF(AND($Q614=\"Y\",'Enrollment Form'!$AP621=\"Yes\",'Enrollment Form'!$AQ621<>\"\"),\"Y\",\"N\"))))","v":""},{"$f":"IF($B614=\"N\",\"\",IF(OR('Enrollment Form'!$B621<>\"Subscriber\",'Enrollment Form'!$C621=\"ROC\"),\"-\",IF(AND('Enrollment Form'!$B621=\"Subscriber\",'Enrollment Form'!$C621=\"Enroll\",'Enrollment Form'!$CO621<>\"\"),\"Y\",\"N\")))","v":""},{"$f":"IF($B614=\"N\",\"\",IF($S614=\"-\",\"-\",IF(AND($S614=\"Y\",'Enrollment Form'!$CO621=\"No\"),\"-\",IF(AND($S614=\"Y\",'Enrollment Form'!$CO621=\"Yes\",'Enrollment Form'!$CP621<>\"\"),\"Y\",\"N\"))))","v":""},{"$f":"IF(OR('Enrollment Form'!$AV621=\"Yes\",'Enrollment Form'!$AV621=\"\"),\"-\",IF(AND('Enrollment Form'!$AV621=\"No\",ISERROR(FIND(\"HMO\",VLOOKUP('Enrollment Form'!G621,'Enrollment Form'!H$11:J$1000,3,FALSE),1))=FALSE,COUNTA('Enrollment Form'!$AW621:$AZ621)=4),\"Y\",\"N\"))","v":"-"},{"$f":"IF($B614=\"N\",\"\",IF('Enrollment Form'!$B621=\"Subscriber\",\"-\",IF(COUNTA('Enrollment Form'!$BE621,'Enrollment Form'!$BG621)=2,\"Y\",\"N\")))","v":""},{"$f":"IF($B614=\"N\",\"\",IF(OR('Enrollment Form'!$AU621=\"\",'Enrollment Form'!$AU621=\"No\"),\"-\",IF(AND('Enrollment Form'!$AU621=\"Yes\",COUNTA('Enrollment Form'!$CK621)=1),\"Y\",\"N\")))","v":""},{"$f":"IF(OR('Enrollment Form'!$CK621=\"\",'Enrollment Form'!$CK621=\"No\"),\"-\",IF(COUNTA('Enrollment Form'!$CM621:$CN621)=2,\"Y\",\"N\"))","v":"-"},{"$f":"IF($B614=\"N\",\"\",IF(COUNTIF('Enrollment Form'!$CZ621:$DO621,\"Other\")=COUNTA('Enrollment Form'!$DF621,'Enrollment Form'!$DA621,'Enrollment Form'!$DK621,'Enrollment Form'!$DP621),\"Y\",\"N\"))","v":""},{"$f":"IF($B614=\"N\",\"\",IF(OR('Enrollment Form'!B621<>\"Subscriber\",'Enrollment Form'!C621=\"ROC\",COUNTIF('Enrollment Form'!AS621:AT621,\"Yes\")>=1),\"-\",IF(AND('Enrollment Form'!C621=\"Enroll\",COUNTIF('Enrollment Form'!AS621:AT621,\"No\")=2,'Enrollment Form'!AU621=\"\"),\"N\",\"Y\")))","v":""},{"$f":"IF(OR(B614=\"N\",'Enrollment Form'!B621<>\"Subscriber\",'Enrollment Form'!C621=\"ROC\",'Enrollment Form'!O621<>\"Multiple of Salary\"),\"-\",IF(COUNTA('Enrollment Form'!T621:U621)<2,\"N\",\"Y\"))","v":"-"},{"$f":"IF(B614=\"N\",\"\",IF(OR('Enrollment Form'!C621=\"ROC\",'Enrollment Form'!B621<>\"Subscriber\",'Enrollment Form'!O621=\"Waive\",'Enrollment Form'!O621=\"\"),\"-\",IF('Enrollment Form'!P621=\"\",\"N\",\"Y\")))","v":""},{"$f":"IF($B614=\"N\",\"\",IF(AND('Enrollment Form'!$C621=\"ROC\",'Enrollment Form'!$DS621<>\"\"),\"Y\",IF(AND('Enrollment Form'!$C621=\"ROC\",'Enrollment Form'!$DS621=\"\"),\"N\",IF(AND('Enrollment Form'!$C621=\"Enroll\",'Enrollment Form'!$B621=\"Subscriber\",'Enrollment Form'!$CQ621=\"No\",'Enrollment Form'!$DS621=\"\"),\"N\",IF(AND('Enrollment Form'!$C621=\"Enroll\",'Enrollment Form'!$B621=\"Subscriber\",'Enrollment Form'!$CQ621=\"Yes\"),\"-\",\"Y\")))))","v":""},{"$f":"IF($B614=\"N\",\"\",IF(AND('Enrollment Form'!$C621=\"ROC\",'Enrollment Form'!$DT621<>\"\"),\"Y\",IF(AND('Enrollment Form'!$C621=\"ROC\",'Enrollment Form'!$DT621=\"\"),\"N\",IF(AND('Enrollment Form'!$C621=\"Enroll\",'Enrollment Form'!$B621=\"Subscriber\",'Enrollment Form'!$CQ621=\"No\",'Enrollment Form'!$DT621=\"\"),\"N\",IF(AND('Enrollment Form'!$C621=\"Enroll\",'Enrollment Form'!$B621=\"Subscriber\",'Enrollment Form'!$CQ621=\"Yes\"),\"-\",\"Y\")))))","v":""},{"$f":"IF('Enrollment Form'!AH621=\"\",\"\",IF(ISERROR(SEARCH(\".\",'Enrollment Form'!AH621,SEARCH(\"@\",'Enrollment Form'!AH621))),\"N\",\"Y\"))","v":""},{"$f":"IF(OR($B614=\"N\",'Enrollment Form'!$G621=\"\"),\"\",IF('Enrollment Form'!$B621<>\"Subscriber\",\"-\",IF(COUNTIF('Enrollment Form'!$AS621:$AT621,\"Yes\")=2,\"N\",\"Y\")))","v":""},{"$f":"IF(OR('Enrollment Form'!$CC621=\"\",'Enrollment Form'!$CC621=\"No\"),\"-\",IF(AND('Enrollment Form'!$CC621=\"Yes\",'Enrollment Form'!$CD621=\"\"),\"N\",\"Y\"))","v":"-"},{"$f":"IF(OR('Enrollment Form'!$CE621=\"\",'Enrollment Form'!$CE621=\"No\"),\"-\",IF(AND('Enrollment Form'!$CE621=\"Yes\",'Enrollment Form'!$CF621=\"\"),\"N\",\"Y\"))","v":"-"},{"$f":"IF(OR('Enrollment Form'!$CG621=\"\",'Enrollment Form'!$CG621=\"No\"),\"-\",IF(AND('Enrollment Form'!$CG621=\"Yes\",'Enrollment Form'!$CH621=\"\"),\"N\",\"Y\"))","v":"-"},{"$f":"IF(OR('Enrollment Form'!$CG621=\"\",'Enrollment Form'!$CG621=\"No\"),\"-\",IF(AND('Enrollment Form'!$CG621=\"Yes\",'Enrollment Form'!$CI621=\"\"),\"N\",\"Y\"))","v":"-"},{"$f":"IF('Enrollment Form'!B621<>\"Subscriber\",\"-\",IF(AND('Enrollment Form'!B621=\"Subscriber\",'Enrollment Form'!C621=\"Enroll\",'Enrollment Form'!AA621=\"\"),\"N\",\"Y\"))","v":"-"},{"$f":"IF(OR('Enrollment Form'!B621=\"Subscriber\",'Enrollment Form'!B621=\"\"),\"-\",IF('Enrollment Form'!BI621=\"\",\"N\",\"Y\"))","v":"-"},{"$f":"IF('Enrollment Form'!B621<>\"Subscriber\",\"-\",IF(AND('Enrollment Form'!B621=\"Subscriber\",'Enrollment Form'!G621=\"\"),\"N\",\"Y\"))","v":"-"},{"$f":"IF('Enrollment Form'!A621=\"\",\"\",IF('Enrollment Form'!B621=\"Subscriber\",\"-\",IF(AND('Enrollment Form'!B621<>\"Subscriber\",'Enrollment Form'!G621='Enrollment Form'!H621),\"N\",\"Y\")))","v":""},0]
[622,{"$f":"IF('Enrollment Form'!$A622<>\"\",\"Y\",\"N\")","v":"N"},{"$f":"IF(AND('Enrollment Form'!$B622=\"\",'Enrollment Form'!$C622<>\"\"),\"N\",IF($B615=\"N\",\"\",\"Y\"))","v":""},{"$f":"IF(OR($B615=\"N\",'Enrollment Form'!G622=\"\"),\"\",IF('Enrollment Form'!$B622<>\"Subscriber\",\"\",IF('Enrollment Form'!$G622='Enrollment Form'!$H622,\"Y\",\"N\")))","v":""},{"$f":"IF($B615=\"N\",\"\",IF(AND(COUNTIFS('Enrollment Form'!$H$11:$H$1000,'Enrollment Form'!$H622,'Enrollment Form'!$B$11:$B$1000,'Enrollment Form'!$B622)>1,'Enrollment Form'!$H622<>\"\"),\"N\",\"Y\"))","v":""},{"$f":"IF($B615=\"N\",\"\",IF(LEN('Enrollment Form'!$Y622)=0,\"\",IF(LEN('Enrollment Form'!$Y622)<>5,\"N\",\"Y\")))","v":""},{"$f":"IF($B615=\"N\",\"\",IF(LEN('Enrollment Form'!$AD622=0),\"\",IF(LEN('Enrollment Form'!$AD622)<>5,\"N\",\"Y\")))","v":""},{"$f":"IF($B615=\"N\",\"\",IF(LEN('Enrollment Form'!$BL622=0),\"\",IF(LEN('Enrollment Form'!$BL622)<>5,\"N\",\"Y\")))","v":""},{"$f":"IF($B615=\"N\",\"\",IF(LEN('Enrollment Form'!$AE622)=0,\"\",IF(LEN('Enrollment Form'!$AE622)<>10,\"N\",\"Y\")))","v":""},{"$f":"IF($B615=\"N\",\"\",IF(LEN('Enrollment Form'!$AF622)=0,\"\",IF(LEN('Enrollment Form'!$AF622)<>10,\"N\",\"Y\")))","v":""},{"$f":"IF('Enrollment Form'!$O622<>\"Graded\",\"-\",IF(AND('Enrollment Form'!$O622=\"Graded\",'Enrollment Form'!$AO622<>\"\"),\"Y\",\"N\"))","v":"-"},{"$f":"IF($B615=\"N\",\"\",IF(OR('Enrollment Form'!$B622<>\"Subscriber\",'Enrollment Form'!$C622=\"ROC\"),\"-\",IF(AND('Enrollment Form'!$B622=\"Subscriber\",'Enrollment Form'!$C622=\"Enroll\",'Enrollment Form'!$AJ622<>\"\"),\"Y\",\"N\")))","v":""},{"$f":"IF($B615=\"N\",\"\",IF(OR('Enrollment Form'!$B622<>\"Subscriber\",'Enrollment Form'!$C622=\"ROC\"),\"-\",IF(AND('Enrollment Form'!$B622=\"Subscriber\",'Enrollment Form'!$C622=\"Enroll\",'Enrollment Form'!$AK622<>\"\"),\"Y\",\"N\")))","v":""},{"$f":"IF($B615=\"N\",\"\",IF(OR('Enrollment Form'!$B622<>\"Subscriber\",'Enrollment Form'!$C622=\"ROC\"),\"-\",IF(AND('Enrollment Form'!$B622=\"Subscriber\",'Enrollment Form'!$C622=\"Enroll\",'Enrollment Form'!$AL622<>\"\"),\"Y\",\"N\")))","v":""},{"$f":"IF($B615=\"N\",\"\",IF(OR('Enrollment Form'!$B622<>\"Subscriber\",'Enrollment Form'!$C622=\"ROC\"),\"-\",IF(AND('Enrollment Form'!$B622=\"Subscriber\",'Enrollment Form'!$C622=\"Enroll\",'Enrollment Form'!$AM622<>\"\"),\"Y\",\"N\")))","v":""},{"$f":"IF($B615=\"N\",\"\",IF(OR('Enrollment Form'!$B622<>\"Subscriber\",'Enrollment Form'!$C622=\"ROC\"),\"-\",IF(AND('Enrollment Form'!$B622=\"Subscriber\",'Enrollment Form'!$C622=\"Enroll\",'Enrollment Form'!$AN622<>\"\"),\"Y\",\"N\")))","v":""},{"$f":"IF($B615=\"N\",\"\",IF(OR('Enrollment Form'!$B622<>\"Subscriber\",'Enrollment Form'!$C622=\"ROC\"),\"-\",IF(AND('Enrollment Form'!$B622=\"Subscriber\",'Enrollment Form'!$C622=\"Enroll\",'Enrollment Form'!$AP622<>\"\"),\"Y\",\"N\")))","v":""},{"$f":"IF($B615=\"N\",\"\",IF($Q615=\"-\",\"-\",IF(AND($Q615=\"Y\",'Enrollment Form'!$AP622=\"No\"),\"-\",IF(AND($Q615=\"Y\",'Enrollment Form'!$AP622=\"Yes\",'Enrollment Form'!$AQ622<>\"\"),\"Y\",\"N\"))))","v":""},{"$f":"IF($B615=\"N\",\"\",IF(OR('Enrollment Form'!$B622<>\"Subscriber\",'Enrollment Form'!$C622=\"ROC\"),\"-\",IF(AND('Enrollment Form'!$B622=\"Subscriber\",'Enrollment Form'!$C622=\"Enroll\",'Enrollment Form'!$CO622<>\"\"),\"Y\",\"N\")))","v":""},{"$f":"IF($B615=\"N\",\"\",IF($S615=\"-\",\"-\",IF(AND($S615=\"Y\",'Enrollment Form'!$CO622=\"No\"),\"-\",IF(AND($S615=\"Y\",'Enrollment Form'!$CO622=\"Yes\",'Enrollment Form'!$CP622<>\"\"),\"Y\",\"N\"))))","v":""},{"$f":"IF(OR('Enrollment Form'!$AV622=\"Yes\",'Enrollment Form'!$AV622=\"\"),\"-\",IF(AND('Enrollment Form'!$AV622=\"No\",ISERROR(FIND(\"HMO\",VLOOKUP('Enrollment Form'!G622,'Enrollment Form'!H$11:J$1000,3,FALSE),1))=FALSE,COUNTA('Enrollment Form'!$AW622:$AZ622)=4),\"Y\",\"N\"))","v":"-"},{"$f":"IF($B615=\"N\",\"\",IF('Enrollment Form'!$B622=\"Subscriber\",\"-\",IF(COUNTA('Enrollment Form'!$BE622,'Enrollment Form'!$BG622)=2,\"Y\",\"N\")))","v":""},{"$f":"IF($B615=\"N\",\"\",IF(OR('Enrollment Form'!$AU622=\"\",'Enrollment Form'!$AU622=\"No\"),\"-\",IF(AND('Enrollment Form'!$AU622=\"Yes\",COUNTA('Enrollment Form'!$CK622)=1),\"Y\",\"N\")))","v":""},{"$f":"IF(OR('Enrollment Form'!$CK622=\"\",'Enrollment Form'!$CK622=\"No\"),\"-\",IF(COUNTA('Enrollment Form'!$CM622:$CN622)=2,\"Y\",\"N\"))","v":"-"},{"$f":"IF($B615=\"N\",\"\",IF(COUNTIF('Enrollment Form'!$CZ622:$DO622,\"Other\")=COUNTA('Enrollment Form'!$DF622,'Enrollment Form'!$DA622,'Enrollment Form'!$DK622,'Enrollment Form'!$DP622),\"Y\",\"N\"))","v":""},{"$f":"IF($B615=\"N\",\"\",IF(OR('Enrollment Form'!B622<>\"Subscriber\",'Enrollment Form'!C622=\"ROC\",COUNTIF('Enrollment Form'!AS622:AT622,\"Yes\")>=1),\"-\",IF(AND('Enrollment Form'!C622=\"Enroll\",COUNTIF('Enrollment Form'!AS622:AT622,\"No\")=2,'Enrollment Form'!AU622=\"\"),\"N\",\"Y\")))","v":""},{"$f":"IF(OR(B615=\"N\",'Enrollment Form'!B622<>\"Subscriber\",'Enrollment Form'!C622=\"ROC\",'Enrollment Form'!O622<>\"Multiple of Salary\"),\"-\",IF(COUNTA('Enrollment Form'!T622:U622)<2,\"N\",\"Y\"))","v":"-"},{"$f":"IF(B615=\"N\",\"\",IF(OR('Enrollment Form'!C622=\"ROC\",'Enrollment Form'!B622<>\"Subscriber\",'Enrollment Form'!O622=\"Waive\",'Enrollment Form'!O622=\"\"),\"-\",IF('Enrollment Form'!P622=\"\",\"N\",\"Y\")))","v":""},{"$f":"IF($B615=\"N\",\"\",IF(AND('Enrollment Form'!$C622=\"ROC\",'Enrollment Form'!$DS622<>\"\"),\"Y\",IF(AND('Enrollment Form'!$C622=\"ROC\",'Enrollment Form'!$DS622=\"\"),\"N\",IF(AND('Enrollment Form'!$C622=\"Enroll\",'Enrollment Form'!$B622=\"Subscriber\",'Enrollment Form'!$CQ622=\"No\",'Enrollment Form'!$DS622=\"\"),\"N\",IF(AND('Enrollment Form'!$C622=\"Enroll\",'Enrollment Form'!$B622=\"Subscriber\",'Enrollment Form'!$CQ622=\"Yes\"),\"-\",\"Y\")))))","v":""},{"$f":"IF($B615=\"N\",\"\",IF(AND('Enrollment Form'!$C622=\"ROC\",'Enrollment Form'!$DT622<>\"\"),\"Y\",IF(AND('Enrollment Form'!$C622=\"ROC\",'Enrollment Form'!$DT622=\"\"),\"N\",IF(AND('Enrollment Form'!$C622=\"Enroll\",'Enrollment Form'!$B622=\"Subscriber\",'Enrollment Form'!$CQ622=\"No\",'Enrollment Form'!$DT622=\"\"),\"N\",IF(AND('Enrollment Form'!$C622=\"Enroll\",'Enrollment Form'!$B622=\"Subscriber\",'Enrollment Form'!$CQ622=\"Yes\"),\"-\",\"Y\")))))","v":""},{"$f":"IF('Enrollment Form'!AH622=\"\",\"\",IF(ISERROR(SEARCH(\".\",'Enrollment Form'!AH622,SEARCH(\"@\",'Enrollment Form'!AH622))),\"N\",\"Y\"))","v":""},{"$f":"IF(OR($B615=\"N\",'Enrollment Form'!$G622=\"\"),\"\",IF('Enrollment Form'!$B622<>\"Subscriber\",\"-\",IF(COUNTIF('Enrollment Form'!$AS622:$AT622,\"Yes\")=2,\"N\",\"Y\")))","v":""},{"$f":"IF(OR('Enrollment Form'!$CC622=\"\",'Enrollment Form'!$CC622=\"No\"),\"-\",IF(AND('Enrollment Form'!$CC622=\"Yes\",'Enrollment Form'!$CD622=\"\"),\"N\",\"Y\"))","v":"-"},{"$f":"IF(OR('Enrollment Form'!$CE622=\"\",'Enrollment Form'!$CE622=\"No\"),\"-\",IF(AND('Enrollment Form'!$CE622=\"Yes\",'Enrollment Form'!$CF622=\"\"),\"N\",\"Y\"))","v":"-"},{"$f":"IF(OR('Enrollment Form'!$CG622=\"\",'Enrollment Form'!$CG622=\"No\"),\"-\",IF(AND('Enrollment Form'!$CG622=\"Yes\",'Enrollment Form'!$CH622=\"\"),\"N\",\"Y\"))","v":"-"},{"$f":"IF(OR('Enrollment Form'!$CG622=\"\",'Enrollment Form'!$CG622=\"No\"),\"-\",IF(AND('Enrollment Form'!$CG622=\"Yes\",'Enrollment Form'!$CI622=\"\"),\"N\",\"Y\"))","v":"-"},{"$f":"IF('Enrollment Form'!B622<>\"Subscriber\",\"-\",IF(AND('Enrollment Form'!B622=\"Subscriber\",'Enrollment Form'!C622=\"Enroll\",'Enrollment Form'!AA622=\"\"),\"N\",\"Y\"))","v":"-"},{"$f":"IF(OR('Enrollment Form'!B622=\"Subscriber\",'Enrollment Form'!B622=\"\"),\"-\",IF('Enrollment Form'!BI622=\"\",\"N\",\"Y\"))","v":"-"},{"$f":"IF('Enrollment Form'!B622<>\"Subscriber\",\"-\",IF(AND('Enrollment Form'!B622=\"Subscriber\",'Enrollment Form'!G622=\"\"),\"N\",\"Y\"))","v":"-"},{"$f":"IF('Enrollment Form'!A622=\"\",\"\",IF('Enrollment Form'!B622=\"Subscriber\",\"-\",IF(AND('Enrollment Form'!B622<>\"Subscriber\",'Enrollment Form'!G622='Enrollment Form'!H622),\"N\",\"Y\")))","v":""},0]
[623,{"$f":"IF('Enrollment Form'!$A623<>\"\",\"Y\",\"N\")","v":"N"},{"$f":"IF(AND('Enrollment Form'!$B623=\"\",'Enrollment Form'!$C623<>\"\"),\"N\",IF($B616=\"N\",\"\",\"Y\"))","v":""},{"$f":"IF(OR($B616=\"N\",'Enrollment Form'!G623=\"\"),\"\",IF('Enrollment Form'!$B623<>\"Subscriber\",\"\",IF('Enrollment Form'!$G623='Enrollment Form'!$H623,\"Y\",\"N\")))","v":""},{"$f":"IF($B616=\"N\",\"\",IF(AND(COUNTIFS('Enrollment Form'!$H$11:$H$1000,'Enrollment Form'!$H623,'Enrollment Form'!$B$11:$B$1000,'Enrollment Form'!$B623)>1,'Enrollment Form'!$H623<>\"\"),\"N\",\"Y\"))","v":""},{"$f":"IF($B616=\"N\",\"\",IF(LEN('Enrollment Form'!$Y623)=0,\"\",IF(LEN('Enrollment Form'!$Y623)<>5,\"N\",\"Y\")))","v":""},{"$f":"IF($B616=\"N\",\"\",IF(LEN('Enrollment Form'!$AD623=0),\"\",IF(LEN('Enrollment Form'!$AD623)<>5,\"N\",\"Y\")))","v":""},{"$f":"IF($B616=\"N\",\"\",IF(LEN('Enrollment Form'!$BL623=0),\"\",IF(LEN('Enrollment Form'!$BL623)<>5,\"N\",\"Y\")))","v":""},{"$f":"IF($B616=\"N\",\"\",IF(LEN('Enrollment Form'!$AE623)=0,\"\",IF(LEN('Enrollment Form'!$AE623)<>10,\"N\",\"Y\")))","v":""},{"$f":"IF($B616=\"N\",\"\",IF(LEN('Enrollment Form'!$AF623)=0,\"\",IF(LEN('Enrollment Form'!$AF623)<>10,\"N\",\"Y\")))","v":""},{"$f":"IF('Enrollment Form'!$O623<>\"Graded\",\"-\",IF(AND('Enrollment Form'!$O623=\"Graded\",'Enrollment Form'!$AO623<>\"\"),\"Y\",\"N\"))","v":"-"},{"$f":"IF($B616=\"N\",\"\",IF(OR('Enrollment Form'!$B623<>\"Subscriber\",'Enrollment Form'!$C623=\"ROC\"),\"-\",IF(AND('Enrollment Form'!$B623=\"Subscriber\",'Enrollment Form'!$C623=\"Enroll\",'Enrollment Form'!$AJ623<>\"\"),\"Y\",\"N\")))","v":""},{"$f":"IF($B616=\"N\",\"\",IF(OR('Enrollment Form'!$B623<>\"Subscriber\",'Enrollment Form'!$C623=\"ROC\"),\"-\",IF(AND('Enrollment Form'!$B623=\"Subscriber\",'Enrollment Form'!$C623=\"Enroll\",'Enrollment Form'!$AK623<>\"\"),\"Y\",\"N\")))","v":""},{"$f":"IF($B616=\"N\",\"\",IF(OR('Enrollment Form'!$B623<>\"Subscriber\",'Enrollment Form'!$C623=\"ROC\"),\"-\",IF(AND('Enrollment Form'!$B623=\"Subscriber\",'Enrollment Form'!$C623=\"Enroll\",'Enrollment Form'!$AL623<>\"\"),\"Y\",\"N\")))","v":""},{"$f":"IF($B616=\"N\",\"\",IF(OR('Enrollment Form'!$B623<>\"Subscriber\",'Enrollment Form'!$C623=\"ROC\"),\"-\",IF(AND('Enrollment Form'!$B623=\"Subscriber\",'Enrollment Form'!$C623=\"Enroll\",'Enrollment Form'!$AM623<>\"\"),\"Y\",\"N\")))","v":""},{"$f":"IF($B616=\"N\",\"\",IF(OR('Enrollment Form'!$B623<>\"Subscriber\",'Enrollment Form'!$C623=\"ROC\"),\"-\",IF(AND('Enrollment Form'!$B623=\"Subscriber\",'Enrollment Form'!$C623=\"Enroll\",'Enrollment Form'!$AN623<>\"\"),\"Y\",\"N\")))","v":""},{"$f":"IF($B616=\"N\",\"\",IF(OR('Enrollment Form'!$B623<>\"Subscriber\",'Enrollment Form'!$C623=\"ROC\"),\"-\",IF(AND('Enrollment Form'!$B623=\"Subscriber\",'Enrollment Form'!$C623=\"Enroll\",'Enrollment Form'!$AP623<>\"\"),\"Y\",\"N\")))","v":""},{"$f":"IF($B616=\"N\",\"\",IF($Q616=\"-\",\"-\",IF(AND($Q616=\"Y\",'Enrollment Form'!$AP623=\"No\"),\"-\",IF(AND($Q616=\"Y\",'Enrollment Form'!$AP623=\"Yes\",'Enrollment Form'!$AQ623<>\"\"),\"Y\",\"N\"))))","v":""},{"$f":"IF($B616=\"N\",\"\",IF(OR('Enrollment Form'!$B623<>\"Subscriber\",'Enrollment Form'!$C623=\"ROC\"),\"-\",IF(AND('Enrollment Form'!$B623=\"Subscriber\",'Enrollment Form'!$C623=\"Enroll\",'Enrollment Form'!$CO623<>\"\"),\"Y\",\"N\")))","v":""},{"$f":"IF($B616=\"N\",\"\",IF($S616=\"-\",\"-\",IF(AND($S616=\"Y\",'Enrollment Form'!$CO623=\"No\"),\"-\",IF(AND($S616=\"Y\",'Enrollment Form'!$CO623=\"Yes\",'Enrollment Form'!$CP623<>\"\"),\"Y\",\"N\"))))","v":""},{"$f":"IF(OR('Enrollment Form'!$AV623=\"Yes\",'Enrollment Form'!$AV623=\"\"),\"-\",IF(AND('Enrollment Form'!$AV623=\"No\",ISERROR(FIND(\"HMO\",VLOOKUP('Enrollment Form'!G623,'Enrollment Form'!H$11:J$1000,3,FALSE),1))=FALSE,COUNTA('Enrollment Form'!$AW623:$AZ623)=4),\"Y\",\"N\"))","v":"-"},{"$f":"IF($B616=\"N\",\"\",IF('Enrollment Form'!$B623=\"Subscriber\",\"-\",IF(COUNTA('Enrollment Form'!$BE623,'Enrollment Form'!$BG623)=2,\"Y\",\"N\")))","v":""},{"$f":"IF($B616=\"N\",\"\",IF(OR('Enrollment Form'!$AU623=\"\",'Enrollment Form'!$AU623=\"No\"),\"-\",IF(AND('Enrollment Form'!$AU623=\"Yes\",COUNTA('Enrollment Form'!$CK623)=1),\"Y\",\"N\")))","v":""},{"$f":"IF(OR('Enrollment Form'!$CK623=\"\",'Enrollment Form'!$CK623=\"No\"),\"-\",IF(COUNTA('Enrollment Form'!$CM623:$CN623)=2,\"Y\",\"N\"))","v":"-"},{"$f":"IF($B616=\"N\",\"\",IF(COUNTIF('Enrollment Form'!$CZ623:$DO623,\"Other\")=COUNTA('Enrollment Form'!$DF623,'Enrollment Form'!$DA623,'Enrollment Form'!$DK623,'Enrollment Form'!$DP623),\"Y\",\"N\"))","v":""},{"$f":"IF($B616=\"N\",\"\",IF(OR('Enrollment Form'!B623<>\"Subscriber\",'Enrollment Form'!C623=\"ROC\",COUNTIF('Enrollment Form'!AS623:AT623,\"Yes\")>=1),\"-\",IF(AND('Enrollment Form'!C623=\"Enroll\",COUNTIF('Enrollment Form'!AS623:AT623,\"No\")=2,'Enrollment Form'!AU623=\"\"),\"N\",\"Y\")))","v":""},{"$f":"IF(OR(B616=\"N\",'Enrollment Form'!B623<>\"Subscriber\",'Enrollment Form'!C623=\"ROC\",'Enrollment Form'!O623<>\"Multiple of Salary\"),\"-\",IF(COUNTA('Enrollment Form'!T623:U623)<2,\"N\",\"Y\"))","v":"-"},{"$f":"IF(B616=\"N\",\"\",IF(OR('Enrollment Form'!C623=\"ROC\",'Enrollment Form'!B623<>\"Subscriber\",'Enrollment Form'!O623=\"Waive\",'Enrollment Form'!O623=\"\"),\"-\",IF('Enrollment Form'!P623=\"\",\"N\",\"Y\")))","v":""},{"$f":"IF($B616=\"N\",\"\",IF(AND('Enrollment Form'!$C623=\"ROC\",'Enrollment Form'!$DS623<>\"\"),\"Y\",IF(AND('Enrollment Form'!$C623=\"ROC\",'Enrollment Form'!$DS623=\"\"),\"N\",IF(AND('Enrollment Form'!$C623=\"Enroll\",'Enrollment Form'!$B623=\"Subscriber\",'Enrollment Form'!$CQ623=\"No\",'Enrollment Form'!$DS623=\"\"),\"N\",IF(AND('Enrollment Form'!$C623=\"Enroll\",'Enrollment Form'!$B623=\"Subscriber\",'Enrollment Form'!$CQ623=\"Yes\"),\"-\",\"Y\")))))","v":""},{"$f":"IF($B616=\"N\",\"\",IF(AND('Enrollment Form'!$C623=\"ROC\",'Enrollment Form'!$DT623<>\"\"),\"Y\",IF(AND('Enrollment Form'!$C623=\"ROC\",'Enrollment Form'!$DT623=\"\"),\"N\",IF(AND('Enrollment Form'!$C623=\"Enroll\",'Enrollment Form'!$B623=\"Subscriber\",'Enrollment Form'!$CQ623=\"No\",'Enrollment Form'!$DT623=\"\"),\"N\",IF(AND('Enrollment Form'!$C623=\"Enroll\",'Enrollment Form'!$B623=\"Subscriber\",'Enrollment Form'!$CQ623=\"Yes\"),\"-\",\"Y\")))))","v":""},{"$f":"IF('Enrollment Form'!AH623=\"\",\"\",IF(ISERROR(SEARCH(\".\",'Enrollment Form'!AH623,SEARCH(\"@\",'Enrollment Form'!AH623))),\"N\",\"Y\"))","v":""},{"$f":"IF(OR($B616=\"N\",'Enrollment Form'!$G623=\"\"),\"\",IF('Enrollment Form'!$B623<>\"Subscriber\",\"-\",IF(COUNTIF('Enrollment Form'!$AS623:$AT623,\"Yes\")=2,\"N\",\"Y\")))","v":""},{"$f":"IF(OR('Enrollment Form'!$CC623=\"\",'Enrollment Form'!$CC623=\"No\"),\"-\",IF(AND('Enrollment Form'!$CC623=\"Yes\",'Enrollment Form'!$CD623=\"\"),\"N\",\"Y\"))","v":"-"},{"$f":"IF(OR('Enrollment Form'!$CE623=\"\",'Enrollment Form'!$CE623=\"No\"),\"-\",IF(AND('Enrollment Form'!$CE623=\"Yes\",'Enrollment Form'!$CF623=\"\"),\"N\",\"Y\"))","v":"-"},{"$f":"IF(OR('Enrollment Form'!$CG623=\"\",'Enrollment Form'!$CG623=\"No\"),\"-\",IF(AND('Enrollment Form'!$CG623=\"Yes\",'Enrollment Form'!$CH623=\"\"),\"N\",\"Y\"))","v":"-"},{"$f":"IF(OR('Enrollment Form'!$CG623=\"\",'Enrollment Form'!$CG623=\"No\"),\"-\",IF(AND('Enrollment Form'!$CG623=\"Yes\",'Enrollment Form'!$CI623=\"\"),\"N\",\"Y\"))","v":"-"},{"$f":"IF('Enrollment Form'!B623<>\"Subscriber\",\"-\",IF(AND('Enrollment Form'!B623=\"Subscriber\",'Enrollment Form'!C623=\"Enroll\",'Enrollment Form'!AA623=\"\"),\"N\",\"Y\"))","v":"-"},{"$f":"IF(OR('Enrollment Form'!B623=\"Subscriber\",'Enrollment Form'!B623=\"\"),\"-\",IF('Enrollment Form'!BI623=\"\",\"N\",\"Y\"))","v":"-"},{"$f":"IF('Enrollment Form'!B623<>\"Subscriber\",\"-\",IF(AND('Enrollment Form'!B623=\"Subscriber\",'Enrollment Form'!G623=\"\"),\"N\",\"Y\"))","v":"-"},{"$f":"IF('Enrollment Form'!A623=\"\",\"\",IF('Enrollment Form'!B623=\"Subscriber\",\"-\",IF(AND('Enrollment Form'!B623<>\"Subscriber\",'Enrollment Form'!G623='Enrollment Form'!H623),\"N\",\"Y\")))","v":""},0]
[624,{"$f":"IF('Enrollment Form'!$A624<>\"\",\"Y\",\"N\")","v":"N"},{"$f":"IF(AND('Enrollment Form'!$B624=\"\",'Enrollment Form'!$C624<>\"\"),\"N\",IF($B617=\"N\",\"\",\"Y\"))","v":""},{"$f":"IF(OR($B617=\"N\",'Enrollment Form'!G624=\"\"),\"\",IF('Enrollment Form'!$B624<>\"Subscriber\",\"\",IF('Enrollment Form'!$G624='Enrollment Form'!$H624,\"Y\",\"N\")))","v":""},{"$f":"IF($B617=\"N\",\"\",IF(AND(COUNTIFS('Enrollment Form'!$H$11:$H$1000,'Enrollment Form'!$H624,'Enrollment Form'!$B$11:$B$1000,'Enrollment Form'!$B624)>1,'Enrollment Form'!$H624<>\"\"),\"N\",\"Y\"))","v":""},{"$f":"IF($B617=\"N\",\"\",IF(LEN('Enrollment Form'!$Y624)=0,\"\",IF(LEN('Enrollment Form'!$Y624)<>5,\"N\",\"Y\")))","v":""},{"$f":"IF($B617=\"N\",\"\",IF(LEN('Enrollment Form'!$AD624=0),\"\",IF(LEN('Enrollment Form'!$AD624)<>5,\"N\",\"Y\")))","v":""},{"$f":"IF($B617=\"N\",\"\",IF(LEN('Enrollment Form'!$BL624=0),\"\",IF(LEN('Enrollment Form'!$BL624)<>5,\"N\",\"Y\")))","v":""},{"$f":"IF($B617=\"N\",\"\",IF(LEN('Enrollment Form'!$AE624)=0,\"\",IF(LEN('Enrollment Form'!$AE624)<>10,\"N\",\"Y\")))","v":""},{"$f":"IF($B617=\"N\",\"\",IF(LEN('Enrollment Form'!$AF624)=0,\"\",IF(LEN('Enrollment Form'!$AF624)<>10,\"N\",\"Y\")))","v":""},{"$f":"IF('Enrollment Form'!$O624<>\"Graded\",\"-\",IF(AND('Enrollment Form'!$O624=\"Graded\",'Enrollment Form'!$AO624<>\"\"),\"Y\",\"N\"))","v":"-"},{"$f":"IF($B617=\"N\",\"\",IF(OR('Enrollment Form'!$B624<>\"Subscriber\",'Enrollment Form'!$C624=\"ROC\"),\"-\",IF(AND('Enrollment Form'!$B624=\"Subscriber\",'Enrollment Form'!$C624=\"Enroll\",'Enrollment Form'!$AJ624<>\"\"),\"Y\",\"N\")))","v":""},{"$f":"IF($B617=\"N\",\"\",IF(OR('Enrollment Form'!$B624<>\"Subscriber\",'Enrollment Form'!$C624=\"ROC\"),\"-\",IF(AND('Enrollment Form'!$B624=\"Subscriber\",'Enrollment Form'!$C624=\"Enroll\",'Enrollment Form'!$AK624<>\"\"),\"Y\",\"N\")))","v":""},{"$f":"IF($B617=\"N\",\"\",IF(OR('Enrollment Form'!$B624<>\"Subscriber\",'Enrollment Form'!$C624=\"ROC\"),\"-\",IF(AND('Enrollment Form'!$B624=\"Subscriber\",'Enrollment Form'!$C624=\"Enroll\",'Enrollment Form'!$AL624<>\"\"),\"Y\",\"N\")))","v":""},{"$f":"IF($B617=\"N\",\"\",IF(OR('Enrollment Form'!$B624<>\"Subscriber\",'Enrollment Form'!$C624=\"ROC\"),\"-\",IF(AND('Enrollment Form'!$B624=\"Subscriber\",'Enrollment Form'!$C624=\"Enroll\",'Enrollment Form'!$AM624<>\"\"),\"Y\",\"N\")))","v":""},{"$f":"IF($B617=\"N\",\"\",IF(OR('Enrollment Form'!$B624<>\"Subscriber\",'Enrollment Form'!$C624=\"ROC\"),\"-\",IF(AND('Enrollment Form'!$B624=\"Subscriber\",'Enrollment Form'!$C624=\"Enroll\",'Enrollment Form'!$AN624<>\"\"),\"Y\",\"N\")))","v":""},{"$f":"IF($B617=\"N\",\"\",IF(OR('Enrollment Form'!$B624<>\"Subscriber\",'Enrollment Form'!$C624=\"ROC\"),\"-\",IF(AND('Enrollment Form'!$B624=\"Subscriber\",'Enrollment Form'!$C624=\"Enroll\",'Enrollment Form'!$AP624<>\"\"),\"Y\",\"N\")))","v":""},{"$f":"IF($B617=\"N\",\"\",IF($Q617=\"-\",\"-\",IF(AND($Q617=\"Y\",'Enrollment Form'!$AP624=\"No\"),\"-\",IF(AND($Q617=\"Y\",'Enrollment Form'!$AP624=\"Yes\",'Enrollment Form'!$AQ624<>\"\"),\"Y\",\"N\"))))","v":""},{"$f":"IF($B617=\"N\",\"\",IF(OR('Enrollment Form'!$B624<>\"Subscriber\",'Enrollment Form'!$C624=\"ROC\"),\"-\",IF(AND('Enrollment Form'!$B624=\"Subscriber\",'Enrollment Form'!$C624=\"Enroll\",'Enrollment Form'!$CO624<>\"\"),\"Y\",\"N\")))","v":""},{"$f":"IF($B617=\"N\",\"\",IF($S617=\"-\",\"-\",IF(AND($S617=\"Y\",'Enrollment Form'!$CO624=\"No\"),\"-\",IF(AND($S617=\"Y\",'Enrollment Form'!$CO624=\"Yes\",'Enrollment Form'!$CP624<>\"\"),\"Y\",\"N\"))))","v":""},{"$f":"IF(OR('Enrollment Form'!$AV624=\"Yes\",'Enrollment Form'!$AV624=\"\"),\"-\",IF(AND('Enrollment Form'!$AV624=\"No\",ISERROR(FIND(\"HMO\",VLOOKUP('Enrollment Form'!G624,'Enrollment Form'!H$11:J$1000,3,FALSE),1))=FALSE,COUNTA('Enrollment Form'!$AW624:$AZ624)=4),\"Y\",\"N\"))","v":"-"},{"$f":"IF($B617=\"N\",\"\",IF('Enrollment Form'!$B624=\"Subscriber\",\"-\",IF(COUNTA('Enrollment Form'!$BE624,'Enrollment Form'!$BG624)=2,\"Y\",\"N\")))","v":""},{"$f":"IF($B617=\"N\",\"\",IF(OR('Enrollment Form'!$AU624=\"\",'Enrollment Form'!$AU624=\"No\"),\"-\",IF(AND('Enrollment Form'!$AU624=\"Yes\",COUNTA('Enrollment Form'!$CK624)=1),\"Y\",\"N\")))","v":""},{"$f":"IF(OR('Enrollment Form'!$CK624=\"\",'Enrollment Form'!$CK624=\"No\"),\"-\",IF(COUNTA('Enrollment Form'!$CM624:$CN624)=2,\"Y\",\"N\"))","v":"-"},{"$f":"IF($B617=\"N\",\"\",IF(COUNTIF('Enrollment Form'!$CZ624:$DO624,\"Other\")=COUNTA('Enrollment Form'!$DF624,'Enrollment Form'!$DA624,'Enrollment Form'!$DK624,'Enrollment Form'!$DP624),\"Y\",\"N\"))","v":""},{"$f":"IF($B617=\"N\",\"\",IF(OR('Enrollment Form'!B624<>\"Subscriber\",'Enrollment Form'!C624=\"ROC\",COUNTIF('Enrollment Form'!AS624:AT624,\"Yes\")>=1),\"-\",IF(AND('Enrollment Form'!C624=\"Enroll\",COUNTIF('Enrollment Form'!AS624:AT624,\"No\")=2,'Enrollment Form'!AU624=\"\"),\"N\",\"Y\")))","v":""},{"$f":"IF(OR(B617=\"N\",'Enrollment Form'!B624<>\"Subscriber\",'Enrollment Form'!C624=\"ROC\",'Enrollment Form'!O624<>\"Multiple of Salary\"),\"-\",IF(COUNTA('Enrollment Form'!T624:U624)<2,\"N\",\"Y\"))","v":"-"},{"$f":"IF(B617=\"N\",\"\",IF(OR('Enrollment Form'!C624=\"ROC\",'Enrollment Form'!B624<>\"Subscriber\",'Enrollment Form'!O624=\"Waive\",'Enrollment Form'!O624=\"\"),\"-\",IF('Enrollment Form'!P624=\"\",\"N\",\"Y\")))","v":""},{"$f":"IF($B617=\"N\",\"\",IF(AND('Enrollment Form'!$C624=\"ROC\",'Enrollment Form'!$DS624<>\"\"),\"Y\",IF(AND('Enrollment Form'!$C624=\"ROC\",'Enrollment Form'!$DS624=\"\"),\"N\",IF(AND('Enrollment Form'!$C624=\"Enroll\",'Enrollment Form'!$B624=\"Subscriber\",'Enrollment Form'!$CQ624=\"No\",'Enrollment Form'!$DS624=\"\"),\"N\",IF(AND('Enrollment Form'!$C624=\"Enroll\",'Enrollment Form'!$B624=\"Subscriber\",'Enrollment Form'!$CQ624=\"Yes\"),\"-\",\"Y\")))))","v":""},{"$f":"IF($B617=\"N\",\"\",IF(AND('Enrollment Form'!$C624=\"ROC\",'Enrollment Form'!$DT624<>\"\"),\"Y\",IF(AND('Enrollment Form'!$C624=\"ROC\",'Enrollment Form'!$DT624=\"\"),\"N\",IF(AND('Enrollment Form'!$C624=\"Enroll\",'Enrollment Form'!$B624=\"Subscriber\",'Enrollment Form'!$CQ624=\"No\",'Enrollment Form'!$DT624=\"\"),\"N\",IF(AND('Enrollment Form'!$C624=\"Enroll\",'Enrollment Form'!$B624=\"Subscriber\",'Enrollment Form'!$CQ624=\"Yes\"),\"-\",\"Y\")))))","v":""},{"$f":"IF('Enrollment Form'!AH624=\"\",\"\",IF(ISERROR(SEARCH(\".\",'Enrollment Form'!AH624,SEARCH(\"@\",'Enrollment Form'!AH624))),\"N\",\"Y\"))","v":""},{"$f":"IF(OR($B617=\"N\",'Enrollment Form'!$G624=\"\"),\"\",IF('Enrollment Form'!$B624<>\"Subscriber\",\"-\",IF(COUNTIF('Enrollment Form'!$AS624:$AT624,\"Yes\")=2,\"N\",\"Y\")))","v":""},{"$f":"IF(OR('Enrollment Form'!$CC624=\"\",'Enrollment Form'!$CC624=\"No\"),\"-\",IF(AND('Enrollment Form'!$CC624=\"Yes\",'Enrollment Form'!$CD624=\"\"),\"N\",\"Y\"))","v":"-"},{"$f":"IF(OR('Enrollment Form'!$CE624=\"\",'Enrollment Form'!$CE624=\"No\"),\"-\",IF(AND('Enrollment Form'!$CE624=\"Yes\",'Enrollment Form'!$CF624=\"\"),\"N\",\"Y\"))","v":"-"},{"$f":"IF(OR('Enrollment Form'!$CG624=\"\",'Enrollment Form'!$CG624=\"No\"),\"-\",IF(AND('Enrollment Form'!$CG624=\"Yes\",'Enrollment Form'!$CH624=\"\"),\"N\",\"Y\"))","v":"-"},{"$f":"IF(OR('Enrollment Form'!$CG624=\"\",'Enrollment Form'!$CG624=\"No\"),\"-\",IF(AND('Enrollment Form'!$CG624=\"Yes\",'Enrollment Form'!$CI624=\"\"),\"N\",\"Y\"))","v":"-"},{"$f":"IF('Enrollment Form'!B624<>\"Subscriber\",\"-\",IF(AND('Enrollment Form'!B624=\"Subscriber\",'Enrollment Form'!C624=\"Enroll\",'Enrollment Form'!AA624=\"\"),\"N\",\"Y\"))","v":"-"},{"$f":"IF(OR('Enrollment Form'!B624=\"Subscriber\",'Enrollment Form'!B624=\"\"),\"-\",IF('Enrollment Form'!BI624=\"\",\"N\",\"Y\"))","v":"-"},{"$f":"IF('Enrollment Form'!B624<>\"Subscriber\",\"-\",IF(AND('Enrollment Form'!B624=\"Subscriber\",'Enrollment Form'!G624=\"\"),\"N\",\"Y\"))","v":"-"},{"$f":"IF('Enrollment Form'!A624=\"\",\"\",IF('Enrollment Form'!B624=\"Subscriber\",\"-\",IF(AND('Enrollment Form'!B624<>\"Subscriber\",'Enrollment Form'!G624='Enrollment Form'!H624),\"N\",\"Y\")))","v":""},0]
[625,{"$f":"IF('Enrollment Form'!$A625<>\"\",\"Y\",\"N\")","v":"N"},{"$f":"IF(AND('Enrollment Form'!$B625=\"\",'Enrollment Form'!$C625<>\"\"),\"N\",IF($B618=\"N\",\"\",\"Y\"))","v":""},{"$f":"IF(OR($B618=\"N\",'Enrollment Form'!G625=\"\"),\"\",IF('Enrollment Form'!$B625<>\"Subscriber\",\"\",IF('Enrollment Form'!$G625='Enrollment Form'!$H625,\"Y\",\"N\")))","v":""},{"$f":"IF($B618=\"N\",\"\",IF(AND(COUNTIFS('Enrollment Form'!$H$11:$H$1000,'Enrollment Form'!$H625,'Enrollment Form'!$B$11:$B$1000,'Enrollment Form'!$B625)>1,'Enrollment Form'!$H625<>\"\"),\"N\",\"Y\"))","v":""},{"$f":"IF($B618=\"N\",\"\",IF(LEN('Enrollment Form'!$Y625)=0,\"\",IF(LEN('Enrollment Form'!$Y625)<>5,\"N\",\"Y\")))","v":""},{"$f":"IF($B618=\"N\",\"\",IF(LEN('Enrollment Form'!$AD625=0),\"\",IF(LEN('Enrollment Form'!$AD625)<>5,\"N\",\"Y\")))","v":""},{"$f":"IF($B618=\"N\",\"\",IF(LEN('Enrollment Form'!$BL625=0),\"\",IF(LEN('Enrollment Form'!$BL625)<>5,\"N\",\"Y\")))","v":""},{"$f":"IF($B618=\"N\",\"\",IF(LEN('Enrollment Form'!$AE625)=0,\"\",IF(LEN('Enrollment Form'!$AE625)<>10,\"N\",\"Y\")))","v":""},{"$f":"IF($B618=\"N\",\"\",IF(LEN('Enrollment Form'!$AF625)=0,\"\",IF(LEN('Enrollment Form'!$AF625)<>10,\"N\",\"Y\")))","v":""},{"$f":"IF('Enrollment Form'!$O625<>\"Graded\",\"-\",IF(AND('Enrollment Form'!$O625=\"Graded\",'Enrollment Form'!$AO625<>\"\"),\"Y\",\"N\"))","v":"-"},{"$f":"IF($B618=\"N\",\"\",IF(OR('Enrollment Form'!$B625<>\"Subscriber\",'Enrollment Form'!$C625=\"ROC\"),\"-\",IF(AND('Enrollment Form'!$B625=\"Subscriber\",'Enrollment Form'!$C625=\"Enroll\",'Enrollment Form'!$AJ625<>\"\"),\"Y\",\"N\")))","v":""},{"$f":"IF($B618=\"N\",\"\",IF(OR('Enrollment Form'!$B625<>\"Subscriber\",'Enrollment Form'!$C625=\"ROC\"),\"-\",IF(AND('Enrollment Form'!$B625=\"Subscriber\",'Enrollment Form'!$C625=\"Enroll\",'Enrollment Form'!$AK625<>\"\"),\"Y\",\"N\")))","v":""},{"$f":"IF($B618=\"N\",\"\",IF(OR('Enrollment Form'!$B625<>\"Subscriber\",'Enrollment Form'!$C625=\"ROC\"),\"-\",IF(AND('Enrollment Form'!$B625=\"Subscriber\",'Enrollment Form'!$C625=\"Enroll\",'Enrollment Form'!$AL625<>\"\"),\"Y\",\"N\")))","v":""},{"$f":"IF($B618=\"N\",\"\",IF(OR('Enrollment Form'!$B625<>\"Subscriber\",'Enrollment Form'!$C625=\"ROC\"),\"-\",IF(AND('Enrollment Form'!$B625=\"Subscriber\",'Enrollment Form'!$C625=\"Enroll\",'Enrollment Form'!$AM625<>\"\"),\"Y\",\"N\")))","v":""},{"$f":"IF($B618=\"N\",\"\",IF(OR('Enrollment Form'!$B625<>\"Subscriber\",'Enrollment Form'!$C625=\"ROC\"),\"-\",IF(AND('Enrollment Form'!$B625=\"Subscriber\",'Enrollment Form'!$C625=\"Enroll\",'Enrollment Form'!$AN625<>\"\"),\"Y\",\"N\")))","v":""},{"$f":"IF($B618=\"N\",\"\",IF(OR('Enrollment Form'!$B625<>\"Subscriber\",'Enrollment Form'!$C625=\"ROC\"),\"-\",IF(AND('Enrollment Form'!$B625=\"Subscriber\",'Enrollment Form'!$C625=\"Enroll\",'Enrollment Form'!$AP625<>\"\"),\"Y\",\"N\")))","v":""},{"$f":"IF($B618=\"N\",\"\",IF($Q618=\"-\",\"-\",IF(AND($Q618=\"Y\",'Enrollment Form'!$AP625=\"No\"),\"-\",IF(AND($Q618=\"Y\",'Enrollment Form'!$AP625=\"Yes\",'Enrollment Form'!$AQ625<>\"\"),\"Y\",\"N\"))))","v":""},{"$f":"IF($B618=\"N\",\"\",IF(OR('Enrollment Form'!$B625<>\"Subscriber\",'Enrollment Form'!$C625=\"ROC\"),\"-\",IF(AND('Enrollment Form'!$B625=\"Subscriber\",'Enrollment Form'!$C625=\"Enroll\",'Enrollment Form'!$CO625<>\"\"),\"Y\",\"N\")))","v":""},{"$f":"IF($B618=\"N\",\"\",IF($S618=\"-\",\"-\",IF(AND($S618=\"Y\",'Enrollment Form'!$CO625=\"No\"),\"-\",IF(AND($S618=\"Y\",'Enrollment Form'!$CO625=\"Yes\",'Enrollment Form'!$CP625<>\"\"),\"Y\",\"N\"))))","v":""},{"$f":"IF(OR('Enrollment Form'!$AV625=\"Yes\",'Enrollment Form'!$AV625=\"\"),\"-\",IF(AND('Enrollment Form'!$AV625=\"No\",ISERROR(FIND(\"HMO\",VLOOKUP('Enrollment Form'!G625,'Enrollment Form'!H$11:J$1000,3,FALSE),1))=FALSE,COUNTA('Enrollment Form'!$AW625:$AZ625)=4),\"Y\",\"N\"))","v":"-"},{"$f":"IF($B618=\"N\",\"\",IF('Enrollment Form'!$B625=\"Subscriber\",\"-\",IF(COUNTA('Enrollment Form'!$BE625,'Enrollment Form'!$BG625)=2,\"Y\",\"N\")))","v":""},{"$f":"IF($B618=\"N\",\"\",IF(OR('Enrollment Form'!$AU625=\"\",'Enrollment Form'!$AU625=\"No\"),\"-\",IF(AND('Enrollment Form'!$AU625=\"Yes\",COUNTA('Enrollment Form'!$CK625)=1),\"Y\",\"N\")))","v":""},{"$f":"IF(OR('Enrollment Form'!$CK625=\"\",'Enrollment Form'!$CK625=\"No\"),\"-\",IF(COUNTA('Enrollment Form'!$CM625:$CN625)=2,\"Y\",\"N\"))","v":"-"},{"$f":"IF($B618=\"N\",\"\",IF(COUNTIF('Enrollment Form'!$CZ625:$DO625,\"Other\")=COUNTA('Enrollment Form'!$DF625,'Enrollment Form'!$DA625,'Enrollment Form'!$DK625,'Enrollment Form'!$DP625),\"Y\",\"N\"))","v":""},{"$f":"IF($B618=\"N\",\"\",IF(OR('Enrollment Form'!B625<>\"Subscriber\",'Enrollment Form'!C625=\"ROC\",COUNTIF('Enrollment Form'!AS625:AT625,\"Yes\")>=1),\"-\",IF(AND('Enrollment Form'!C625=\"Enroll\",COUNTIF('Enrollment Form'!AS625:AT625,\"No\")=2,'Enrollment Form'!AU625=\"\"),\"N\",\"Y\")))","v":""},{"$f":"IF(OR(B618=\"N\",'Enrollment Form'!B625<>\"Subscriber\",'Enrollment Form'!C625=\"ROC\",'Enrollment Form'!O625<>\"Multiple of Salary\"),\"-\",IF(COUNTA('Enrollment Form'!T625:U625)<2,\"N\",\"Y\"))","v":"-"},{"$f":"IF(B618=\"N\",\"\",IF(OR('Enrollment Form'!C625=\"ROC\",'Enrollment Form'!B625<>\"Subscriber\",'Enrollment Form'!O625=\"Waive\",'Enrollment Form'!O625=\"\"),\"-\",IF('Enrollment Form'!P625=\"\",\"N\",\"Y\")))","v":""},{"$f":"IF($B618=\"N\",\"\",IF(AND('Enrollment Form'!$C625=\"ROC\",'Enrollment Form'!$DS625<>\"\"),\"Y\",IF(AND('Enrollment Form'!$C625=\"ROC\",'Enrollment Form'!$DS625=\"\"),\"N\",IF(AND('Enrollment Form'!$C625=\"Enroll\",'Enrollment Form'!$B625=\"Subscriber\",'Enrollment Form'!$CQ625=\"No\",'Enrollment Form'!$DS625=\"\"),\"N\",IF(AND('Enrollment Form'!$C625=\"Enroll\",'Enrollment Form'!$B625=\"Subscriber\",'Enrollment Form'!$CQ625=\"Yes\"),\"-\",\"Y\")))))","v":""},{"$f":"IF($B618=\"N\",\"\",IF(AND('Enrollment Form'!$C625=\"ROC\",'Enrollment Form'!$DT625<>\"\"),\"Y\",IF(AND('Enrollment Form'!$C625=\"ROC\",'Enrollment Form'!$DT625=\"\"),\"N\",IF(AND('Enrollment Form'!$C625=\"Enroll\",'Enrollment Form'!$B625=\"Subscriber\",'Enrollment Form'!$CQ625=\"No\",'Enrollment Form'!$DT625=\"\"),\"N\",IF(AND('Enrollment Form'!$C625=\"Enroll\",'Enrollment Form'!$B625=\"Subscriber\",'Enrollment Form'!$CQ625=\"Yes\"),\"-\",\"Y\")))))","v":""},{"$f":"IF('Enrollment Form'!AH625=\"\",\"\",IF(ISERROR(SEARCH(\".\",'Enrollment Form'!AH625,SEARCH(\"@\",'Enrollment Form'!AH625))),\"N\",\"Y\"))","v":""},{"$f":"IF(OR($B618=\"N\",'Enrollment Form'!$G625=\"\"),\"\",IF('Enrollment Form'!$B625<>\"Subscriber\",\"-\",IF(COUNTIF('Enrollment Form'!$AS625:$AT625,\"Yes\")=2,\"N\",\"Y\")))","v":""},{"$f":"IF(OR('Enrollment Form'!$CC625=\"\",'Enrollment Form'!$CC625=\"No\"),\"-\",IF(AND('Enrollment Form'!$CC625=\"Yes\",'Enrollment Form'!$CD625=\"\"),\"N\",\"Y\"))","v":"-"},{"$f":"IF(OR('Enrollment Form'!$CE625=\"\",'Enrollment Form'!$CE625=\"No\"),\"-\",IF(AND('Enrollment Form'!$CE625=\"Yes\",'Enrollment Form'!$CF625=\"\"),\"N\",\"Y\"))","v":"-"},{"$f":"IF(OR('Enrollment Form'!$CG625=\"\",'Enrollment Form'!$CG625=\"No\"),\"-\",IF(AND('Enrollment Form'!$CG625=\"Yes\",'Enrollment Form'!$CH625=\"\"),\"N\",\"Y\"))","v":"-"},{"$f":"IF(OR('Enrollment Form'!$CG625=\"\",'Enrollment Form'!$CG625=\"No\"),\"-\",IF(AND('Enrollment Form'!$CG625=\"Yes\",'Enrollment Form'!$CI625=\"\"),\"N\",\"Y\"))","v":"-"},{"$f":"IF('Enrollment Form'!B625<>\"Subscriber\",\"-\",IF(AND('Enrollment Form'!B625=\"Subscriber\",'Enrollment Form'!C625=\"Enroll\",'Enrollment Form'!AA625=\"\"),\"N\",\"Y\"))","v":"-"},{"$f":"IF(OR('Enrollment Form'!B625=\"Subscriber\",'Enrollment Form'!B625=\"\"),\"-\",IF('Enrollment Form'!BI625=\"\",\"N\",\"Y\"))","v":"-"},{"$f":"IF('Enrollment Form'!B625<>\"Subscriber\",\"-\",IF(AND('Enrollment Form'!B625=\"Subscriber\",'Enrollment Form'!G625=\"\"),\"N\",\"Y\"))","v":"-"},{"$f":"IF('Enrollment Form'!A625=\"\",\"\",IF('Enrollment Form'!B625=\"Subscriber\",\"-\",IF(AND('Enrollment Form'!B625<>\"Subscriber\",'Enrollment Form'!G625='Enrollment Form'!H625),\"N\",\"Y\")))","v":""},0]
[626,{"$f":"IF('Enrollment Form'!$A626<>\"\",\"Y\",\"N\")","v":"N"},{"$f":"IF(AND('Enrollment Form'!$B626=\"\",'Enrollment Form'!$C626<>\"\"),\"N\",IF($B619=\"N\",\"\",\"Y\"))","v":""},{"$f":"IF(OR($B619=\"N\",'Enrollment Form'!G626=\"\"),\"\",IF('Enrollment Form'!$B626<>\"Subscriber\",\"\",IF('Enrollment Form'!$G626='Enrollment Form'!$H626,\"Y\",\"N\")))","v":""},{"$f":"IF($B619=\"N\",\"\",IF(AND(COUNTIFS('Enrollment Form'!$H$11:$H$1000,'Enrollment Form'!$H626,'Enrollment Form'!$B$11:$B$1000,'Enrollment Form'!$B626)>1,'Enrollment Form'!$H626<>\"\"),\"N\",\"Y\"))","v":""},{"$f":"IF($B619=\"N\",\"\",IF(LEN('Enrollment Form'!$Y626)=0,\"\",IF(LEN('Enrollment Form'!$Y626)<>5,\"N\",\"Y\")))","v":""},{"$f":"IF($B619=\"N\",\"\",IF(LEN('Enrollment Form'!$AD626=0),\"\",IF(LEN('Enrollment Form'!$AD626)<>5,\"N\",\"Y\")))","v":""},{"$f":"IF($B619=\"N\",\"\",IF(LEN('Enrollment Form'!$BL626=0),\"\",IF(LEN('Enrollment Form'!$BL626)<>5,\"N\",\"Y\")))","v":""},{"$f":"IF($B619=\"N\",\"\",IF(LEN('Enrollment Form'!$AE626)=0,\"\",IF(LEN('Enrollment Form'!$AE626)<>10,\"N\",\"Y\")))","v":""},{"$f":"IF($B619=\"N\",\"\",IF(LEN('Enrollment Form'!$AF626)=0,\"\",IF(LEN('Enrollment Form'!$AF626)<>10,\"N\",\"Y\")))","v":""},{"$f":"IF('Enrollment Form'!$O626<>\"Graded\",\"-\",IF(AND('Enrollment Form'!$O626=\"Graded\",'Enrollment Form'!$AO626<>\"\"),\"Y\",\"N\"))","v":"-"},{"$f":"IF($B619=\"N\",\"\",IF(OR('Enrollment Form'!$B626<>\"Subscriber\",'Enrollment Form'!$C626=\"ROC\"),\"-\",IF(AND('Enrollment Form'!$B626=\"Subscriber\",'Enrollment Form'!$C626=\"Enroll\",'Enrollment Form'!$AJ626<>\"\"),\"Y\",\"N\")))","v":""},{"$f":"IF($B619=\"N\",\"\",IF(OR('Enrollment Form'!$B626<>\"Subscriber\",'Enrollment Form'!$C626=\"ROC\"),\"-\",IF(AND('Enrollment Form'!$B626=\"Subscriber\",'Enrollment Form'!$C626=\"Enroll\",'Enrollment Form'!$AK626<>\"\"),\"Y\",\"N\")))","v":""},{"$f":"IF($B619=\"N\",\"\",IF(OR('Enrollment Form'!$B626<>\"Subscriber\",'Enrollment Form'!$C626=\"ROC\"),\"-\",IF(AND('Enrollment Form'!$B626=\"Subscriber\",'Enrollment Form'!$C626=\"Enroll\",'Enrollment Form'!$AL626<>\"\"),\"Y\",\"N\")))","v":""},{"$f":"IF($B619=\"N\",\"\",IF(OR('Enrollment Form'!$B626<>\"Subscriber\",'Enrollment Form'!$C626=\"ROC\"),\"-\",IF(AND('Enrollment Form'!$B626=\"Subscriber\",'Enrollment Form'!$C626=\"Enroll\",'Enrollment Form'!$AM626<>\"\"),\"Y\",\"N\")))","v":""},{"$f":"IF($B619=\"N\",\"\",IF(OR('Enrollment Form'!$B626<>\"Subscriber\",'Enrollment Form'!$C626=\"ROC\"),\"-\",IF(AND('Enrollment Form'!$B626=\"Subscriber\",'Enrollment Form'!$C626=\"Enroll\",'Enrollment Form'!$AN626<>\"\"),\"Y\",\"N\")))","v":""},{"$f":"IF($B619=\"N\",\"\",IF(OR('Enrollment Form'!$B626<>\"Subscriber\",'Enrollment Form'!$C626=\"ROC\"),\"-\",IF(AND('Enrollment Form'!$B626=\"Subscriber\",'Enrollment Form'!$C626=\"Enroll\",'Enrollment Form'!$AP626<>\"\"),\"Y\",\"N\")))","v":""},{"$f":"IF($B619=\"N\",\"\",IF($Q619=\"-\",\"-\",IF(AND($Q619=\"Y\",'Enrollment Form'!$AP626=\"No\"),\"-\",IF(AND($Q619=\"Y\",'Enrollment Form'!$AP626=\"Yes\",'Enrollment Form'!$AQ626<>\"\"),\"Y\",\"N\"))))","v":""},{"$f":"IF($B619=\"N\",\"\",IF(OR('Enrollment Form'!$B626<>\"Subscriber\",'Enrollment Form'!$C626=\"ROC\"),\"-\",IF(AND('Enrollment Form'!$B626=\"Subscriber\",'Enrollment Form'!$C626=\"Enroll\",'Enrollment Form'!$CO626<>\"\"),\"Y\",\"N\")))","v":""},{"$f":"IF($B619=\"N\",\"\",IF($S619=\"-\",\"-\",IF(AND($S619=\"Y\",'Enrollment Form'!$CO626=\"No\"),\"-\",IF(AND($S619=\"Y\",'Enrollment Form'!$CO626=\"Yes\",'Enrollment Form'!$CP626<>\"\"),\"Y\",\"N\"))))","v":""},{"$f":"IF(OR('Enrollment Form'!$AV626=\"Yes\",'Enrollment Form'!$AV626=\"\"),\"-\",IF(AND('Enrollment Form'!$AV626=\"No\",ISERROR(FIND(\"HMO\",VLOOKUP('Enrollment Form'!G626,'Enrollment Form'!H$11:J$1000,3,FALSE),1))=FALSE,COUNTA('Enrollment Form'!$AW626:$AZ626)=4),\"Y\",\"N\"))","v":"-"},{"$f":"IF($B619=\"N\",\"\",IF('Enrollment Form'!$B626=\"Subscriber\",\"-\",IF(COUNTA('Enrollment Form'!$BE626,'Enrollment Form'!$BG626)=2,\"Y\",\"N\")))","v":""},{"$f":"IF($B619=\"N\",\"\",IF(OR('Enrollment Form'!$AU626=\"\",'Enrollment Form'!$AU626=\"No\"),\"-\",IF(AND('Enrollment Form'!$AU626=\"Yes\",COUNTA('Enrollment Form'!$CK626)=1),\"Y\",\"N\")))","v":""},{"$f":"IF(OR('Enrollment Form'!$CK626=\"\",'Enrollment Form'!$CK626=\"No\"),\"-\",IF(COUNTA('Enrollment Form'!$CM626:$CN626)=2,\"Y\",\"N\"))","v":"-"},{"$f":"IF($B619=\"N\",\"\",IF(COUNTIF('Enrollment Form'!$CZ626:$DO626,\"Other\")=COUNTA('Enrollment Form'!$DF626,'Enrollment Form'!$DA626,'Enrollment Form'!$DK626,'Enrollment Form'!$DP626),\"Y\",\"N\"))","v":""},{"$f":"IF($B619=\"N\",\"\",IF(OR('Enrollment Form'!B626<>\"Subscriber\",'Enrollment Form'!C626=\"ROC\",COUNTIF('Enrollment Form'!AS626:AT626,\"Yes\")>=1),\"-\",IF(AND('Enrollment Form'!C626=\"Enroll\",COUNTIF('Enrollment Form'!AS626:AT626,\"No\")=2,'Enrollment Form'!AU626=\"\"),\"N\",\"Y\")))","v":""},{"$f":"IF(OR(B619=\"N\",'Enrollment Form'!B626<>\"Subscriber\",'Enrollment Form'!C626=\"ROC\",'Enrollment Form'!O626<>\"Multiple of Salary\"),\"-\",IF(COUNTA('Enrollment Form'!T626:U626)<2,\"N\",\"Y\"))","v":"-"},{"$f":"IF(B619=\"N\",\"\",IF(OR('Enrollment Form'!C626=\"ROC\",'Enrollment Form'!B626<>\"Subscriber\",'Enrollment Form'!O626=\"Waive\",'Enrollment Form'!O626=\"\"),\"-\",IF('Enrollment Form'!P626=\"\",\"N\",\"Y\")))","v":""},{"$f":"IF($B619=\"N\",\"\",IF(AND('Enrollment Form'!$C626=\"ROC\",'Enrollment Form'!$DS626<>\"\"),\"Y\",IF(AND('Enrollment Form'!$C626=\"ROC\",'Enrollment Form'!$DS626=\"\"),\"N\",IF(AND('Enrollment Form'!$C626=\"Enroll\",'Enrollment Form'!$B626=\"Subscriber\",'Enrollment Form'!$CQ626=\"No\",'Enrollment Form'!$DS626=\"\"),\"N\",IF(AND('Enrollment Form'!$C626=\"Enroll\",'Enrollment Form'!$B626=\"Subscriber\",'Enrollment Form'!$CQ626=\"Yes\"),\"-\",\"Y\")))))","v":""},{"$f":"IF($B619=\"N\",\"\",IF(AND('Enrollment Form'!$C626=\"ROC\",'Enrollment Form'!$DT626<>\"\"),\"Y\",IF(AND('Enrollment Form'!$C626=\"ROC\",'Enrollment Form'!$DT626=\"\"),\"N\",IF(AND('Enrollment Form'!$C626=\"Enroll\",'Enrollment Form'!$B626=\"Subscriber\",'Enrollment Form'!$CQ626=\"No\",'Enrollment Form'!$DT626=\"\"),\"N\",IF(AND('Enrollment Form'!$C626=\"Enroll\",'Enrollment Form'!$B626=\"Subscriber\",'Enrollment Form'!$CQ626=\"Yes\"),\"-\",\"Y\")))))","v":""},{"$f":"IF('Enrollment Form'!AH626=\"\",\"\",IF(ISERROR(SEARCH(\".\",'Enrollment Form'!AH626,SEARCH(\"@\",'Enrollment Form'!AH626))),\"N\",\"Y\"))","v":""},{"$f":"IF(OR($B619=\"N\",'Enrollment Form'!$G626=\"\"),\"\",IF('Enrollment Form'!$B626<>\"Subscriber\",\"-\",IF(COUNTIF('Enrollment Form'!$AS626:$AT626,\"Yes\")=2,\"N\",\"Y\")))","v":""},{"$f":"IF(OR('Enrollment Form'!$CC626=\"\",'Enrollment Form'!$CC626=\"No\"),\"-\",IF(AND('Enrollment Form'!$CC626=\"Yes\",'Enrollment Form'!$CD626=\"\"),\"N\",\"Y\"))","v":"-"},{"$f":"IF(OR('Enrollment Form'!$CE626=\"\",'Enrollment Form'!$CE626=\"No\"),\"-\",IF(AND('Enrollment Form'!$CE626=\"Yes\",'Enrollment Form'!$CF626=\"\"),\"N\",\"Y\"))","v":"-"},{"$f":"IF(OR('Enrollment Form'!$CG626=\"\",'Enrollment Form'!$CG626=\"No\"),\"-\",IF(AND('Enrollment Form'!$CG626=\"Yes\",'Enrollment Form'!$CH626=\"\"),\"N\",\"Y\"))","v":"-"},{"$f":"IF(OR('Enrollment Form'!$CG626=\"\",'Enrollment Form'!$CG626=\"No\"),\"-\",IF(AND('Enrollment Form'!$CG626=\"Yes\",'Enrollment Form'!$CI626=\"\"),\"N\",\"Y\"))","v":"-"},{"$f":"IF('Enrollment Form'!B626<>\"Subscriber\",\"-\",IF(AND('Enrollment Form'!B626=\"Subscriber\",'Enrollment Form'!C626=\"Enroll\",'Enrollment Form'!AA626=\"\"),\"N\",\"Y\"))","v":"-"},{"$f":"IF(OR('Enrollment Form'!B626=\"Subscriber\",'Enrollment Form'!B626=\"\"),\"-\",IF('Enrollment Form'!BI626=\"\",\"N\",\"Y\"))","v":"-"},{"$f":"IF('Enrollment Form'!B626<>\"Subscriber\",\"-\",IF(AND('Enrollment Form'!B626=\"Subscriber\",'Enrollment Form'!G626=\"\"),\"N\",\"Y\"))","v":"-"},{"$f":"IF('Enrollment Form'!A626=\"\",\"\",IF('Enrollment Form'!B626=\"Subscriber\",\"-\",IF(AND('Enrollment Form'!B626<>\"Subscriber\",'Enrollment Form'!G626='Enrollment Form'!H626),\"N\",\"Y\")))","v":""},0]
[627,{"$f":"IF('Enrollment Form'!$A627<>\"\",\"Y\",\"N\")","v":"N"},{"$f":"IF(AND('Enrollment Form'!$B627=\"\",'Enrollment Form'!$C627<>\"\"),\"N\",IF($B620=\"N\",\"\",\"Y\"))","v":""},{"$f":"IF(OR($B620=\"N\",'Enrollment Form'!G627=\"\"),\"\",IF('Enrollment Form'!$B627<>\"Subscriber\",\"\",IF('Enrollment Form'!$G627='Enrollment Form'!$H627,\"Y\",\"N\")))","v":""},{"$f":"IF($B620=\"N\",\"\",IF(AND(COUNTIFS('Enrollment Form'!$H$11:$H$1000,'Enrollment Form'!$H627,'Enrollment Form'!$B$11:$B$1000,'Enrollment Form'!$B627)>1,'Enrollment Form'!$H627<>\"\"),\"N\",\"Y\"))","v":""},{"$f":"IF($B620=\"N\",\"\",IF(LEN('Enrollment Form'!$Y627)=0,\"\",IF(LEN('Enrollment Form'!$Y627)<>5,\"N\",\"Y\")))","v":""},{"$f":"IF($B620=\"N\",\"\",IF(LEN('Enrollment Form'!$AD627=0),\"\",IF(LEN('Enrollment Form'!$AD627)<>5,\"N\",\"Y\")))","v":""},{"$f":"IF($B620=\"N\",\"\",IF(LEN('Enrollment Form'!$BL627=0),\"\",IF(LEN('Enrollment Form'!$BL627)<>5,\"N\",\"Y\")))","v":""},{"$f":"IF($B620=\"N\",\"\",IF(LEN('Enrollment Form'!$AE627)=0,\"\",IF(LEN('Enrollment Form'!$AE627)<>10,\"N\",\"Y\")))","v":""},{"$f":"IF($B620=\"N\",\"\",IF(LEN('Enrollment Form'!$AF627)=0,\"\",IF(LEN('Enrollment Form'!$AF627)<>10,\"N\",\"Y\")))","v":""},{"$f":"IF('Enrollment Form'!$O627<>\"Graded\",\"-\",IF(AND('Enrollment Form'!$O627=\"Graded\",'Enrollment Form'!$AO627<>\"\"),\"Y\",\"N\"))","v":"-"},{"$f":"IF($B620=\"N\",\"\",IF(OR('Enrollment Form'!$B627<>\"Subscriber\",'Enrollment Form'!$C627=\"ROC\"),\"-\",IF(AND('Enrollment Form'!$B627=\"Subscriber\",'Enrollment Form'!$C627=\"Enroll\",'Enrollment Form'!$AJ627<>\"\"),\"Y\",\"N\")))","v":""},{"$f":"IF($B620=\"N\",\"\",IF(OR('Enrollment Form'!$B627<>\"Subscriber\",'Enrollment Form'!$C627=\"ROC\"),\"-\",IF(AND('Enrollment Form'!$B627=\"Subscriber\",'Enrollment Form'!$C627=\"Enroll\",'Enrollment Form'!$AK627<>\"\"),\"Y\",\"N\")))","v":""},{"$f":"IF($B620=\"N\",\"\",IF(OR('Enrollment Form'!$B627<>\"Subscriber\",'Enrollment Form'!$C627=\"ROC\"),\"-\",IF(AND('Enrollment Form'!$B627=\"Subscriber\",'Enrollment Form'!$C627=\"Enroll\",'Enrollment Form'!$AL627<>\"\"),\"Y\",\"N\")))","v":""},{"$f":"IF($B620=\"N\",\"\",IF(OR('Enrollment Form'!$B627<>\"Subscriber\",'Enrollment Form'!$C627=\"ROC\"),\"-\",IF(AND('Enrollment Form'!$B627=\"Subscriber\",'Enrollment Form'!$C627=\"Enroll\",'Enrollment Form'!$AM627<>\"\"),\"Y\",\"N\")))","v":""},{"$f":"IF($B620=\"N\",\"\",IF(OR('Enrollment Form'!$B627<>\"Subscriber\",'Enrollment Form'!$C627=\"ROC\"),\"-\",IF(AND('Enrollment Form'!$B627=\"Subscriber\",'Enrollment Form'!$C627=\"Enroll\",'Enrollment Form'!$AN627<>\"\"),\"Y\",\"N\")))","v":""},{"$f":"IF($B620=\"N\",\"\",IF(OR('Enrollment Form'!$B627<>\"Subscriber\",'Enrollment Form'!$C627=\"ROC\"),\"-\",IF(AND('Enrollment Form'!$B627=\"Subscriber\",'Enrollment Form'!$C627=\"Enroll\",'Enrollment Form'!$AP627<>\"\"),\"Y\",\"N\")))","v":""},{"$f":"IF($B620=\"N\",\"\",IF($Q620=\"-\",\"-\",IF(AND($Q620=\"Y\",'Enrollment Form'!$AP627=\"No\"),\"-\",IF(AND($Q620=\"Y\",'Enrollment Form'!$AP627=\"Yes\",'Enrollment Form'!$AQ627<>\"\"),\"Y\",\"N\"))))","v":""},{"$f":"IF($B620=\"N\",\"\",IF(OR('Enrollment Form'!$B627<>\"Subscriber\",'Enrollment Form'!$C627=\"ROC\"),\"-\",IF(AND('Enrollment Form'!$B627=\"Subscriber\",'Enrollment Form'!$C627=\"Enroll\",'Enrollment Form'!$CO627<>\"\"),\"Y\",\"N\")))","v":""},{"$f":"IF($B620=\"N\",\"\",IF($S620=\"-\",\"-\",IF(AND($S620=\"Y\",'Enrollment Form'!$CO627=\"No\"),\"-\",IF(AND($S620=\"Y\",'Enrollment Form'!$CO627=\"Yes\",'Enrollment Form'!$CP627<>\"\"),\"Y\",\"N\"))))","v":""},{"$f":"IF(OR('Enrollment Form'!$AV627=\"Yes\",'Enrollment Form'!$AV627=\"\"),\"-\",IF(AND('Enrollment Form'!$AV627=\"No\",ISERROR(FIND(\"HMO\",VLOOKUP('Enrollment Form'!G627,'Enrollment Form'!H$11:J$1000,3,FALSE),1))=FALSE,COUNTA('Enrollment Form'!$AW627:$AZ627)=4),\"Y\",\"N\"))","v":"-"},{"$f":"IF($B620=\"N\",\"\",IF('Enrollment Form'!$B627=\"Subscriber\",\"-\",IF(COUNTA('Enrollment Form'!$BE627,'Enrollment Form'!$BG627)=2,\"Y\",\"N\")))","v":""},{"$f":"IF($B620=\"N\",\"\",IF(OR('Enrollment Form'!$AU627=\"\",'Enrollment Form'!$AU627=\"No\"),\"-\",IF(AND('Enrollment Form'!$AU627=\"Yes\",COUNTA('Enrollment Form'!$CK627)=1),\"Y\",\"N\")))","v":""},{"$f":"IF(OR('Enrollment Form'!$CK627=\"\",'Enrollment Form'!$CK627=\"No\"),\"-\",IF(COUNTA('Enrollment Form'!$CM627:$CN627)=2,\"Y\",\"N\"))","v":"-"},{"$f":"IF($B620=\"N\",\"\",IF(COUNTIF('Enrollment Form'!$CZ627:$DO627,\"Other\")=COUNTA('Enrollment Form'!$DF627,'Enrollment Form'!$DA627,'Enrollment Form'!$DK627,'Enrollment Form'!$DP627),\"Y\",\"N\"))","v":""},{"$f":"IF($B620=\"N\",\"\",IF(OR('Enrollment Form'!B627<>\"Subscriber\",'Enrollment Form'!C627=\"ROC\",COUNTIF('Enrollment Form'!AS627:AT627,\"Yes\")>=1),\"-\",IF(AND('Enrollment Form'!C627=\"Enroll\",COUNTIF('Enrollment Form'!AS627:AT627,\"No\")=2,'Enrollment Form'!AU627=\"\"),\"N\",\"Y\")))","v":""},{"$f":"IF(OR(B620=\"N\",'Enrollment Form'!B627<>\"Subscriber\",'Enrollment Form'!C627=\"ROC\",'Enrollment Form'!O627<>\"Multiple of Salary\"),\"-\",IF(COUNTA('Enrollment Form'!T627:U627)<2,\"N\",\"Y\"))","v":"-"},{"$f":"IF(B620=\"N\",\"\",IF(OR('Enrollment Form'!C627=\"ROC\",'Enrollment Form'!B627<>\"Subscriber\",'Enrollment Form'!O627=\"Waive\",'Enrollment Form'!O627=\"\"),\"-\",IF('Enrollment Form'!P627=\"\",\"N\",\"Y\")))","v":""},{"$f":"IF($B620=\"N\",\"\",IF(AND('Enrollment Form'!$C627=\"ROC\",'Enrollment Form'!$DS627<>\"\"),\"Y\",IF(AND('Enrollment Form'!$C627=\"ROC\",'Enrollment Form'!$DS627=\"\"),\"N\",IF(AND('Enrollment Form'!$C627=\"Enroll\",'Enrollment Form'!$B627=\"Subscriber\",'Enrollment Form'!$CQ627=\"No\",'Enrollment Form'!$DS627=\"\"),\"N\",IF(AND('Enrollment Form'!$C627=\"Enroll\",'Enrollment Form'!$B627=\"Subscriber\",'Enrollment Form'!$CQ627=\"Yes\"),\"-\",\"Y\")))))","v":""},{"$f":"IF($B620=\"N\",\"\",IF(AND('Enrollment Form'!$C627=\"ROC\",'Enrollment Form'!$DT627<>\"\"),\"Y\",IF(AND('Enrollment Form'!$C627=\"ROC\",'Enrollment Form'!$DT627=\"\"),\"N\",IF(AND('Enrollment Form'!$C627=\"Enroll\",'Enrollment Form'!$B627=\"Subscriber\",'Enrollment Form'!$CQ627=\"No\",'Enrollment Form'!$DT627=\"\"),\"N\",IF(AND('Enrollment Form'!$C627=\"Enroll\",'Enrollment Form'!$B627=\"Subscriber\",'Enrollment Form'!$CQ627=\"Yes\"),\"-\",\"Y\")))))","v":""},{"$f":"IF('Enrollment Form'!AH627=\"\",\"\",IF(ISERROR(SEARCH(\".\",'Enrollment Form'!AH627,SEARCH(\"@\",'Enrollment Form'!AH627))),\"N\",\"Y\"))","v":""},{"$f":"IF(OR($B620=\"N\",'Enrollment Form'!$G627=\"\"),\"\",IF('Enrollment Form'!$B627<>\"Subscriber\",\"-\",IF(COUNTIF('Enrollment Form'!$AS627:$AT627,\"Yes\")=2,\"N\",\"Y\")))","v":""},{"$f":"IF(OR('Enrollment Form'!$CC627=\"\",'Enrollment Form'!$CC627=\"No\"),\"-\",IF(AND('Enrollment Form'!$CC627=\"Yes\",'Enrollment Form'!$CD627=\"\"),\"N\",\"Y\"))","v":"-"},{"$f":"IF(OR('Enrollment Form'!$CE627=\"\",'Enrollment Form'!$CE627=\"No\"),\"-\",IF(AND('Enrollment Form'!$CE627=\"Yes\",'Enrollment Form'!$CF627=\"\"),\"N\",\"Y\"))","v":"-"},{"$f":"IF(OR('Enrollment Form'!$CG627=\"\",'Enrollment Form'!$CG627=\"No\"),\"-\",IF(AND('Enrollment Form'!$CG627=\"Yes\",'Enrollment Form'!$CH627=\"\"),\"N\",\"Y\"))","v":"-"},{"$f":"IF(OR('Enrollment Form'!$CG627=\"\",'Enrollment Form'!$CG627=\"No\"),\"-\",IF(AND('Enrollment Form'!$CG627=\"Yes\",'Enrollment Form'!$CI627=\"\"),\"N\",\"Y\"))","v":"-"},{"$f":"IF('Enrollment Form'!B627<>\"Subscriber\",\"-\",IF(AND('Enrollment Form'!B627=\"Subscriber\",'Enrollment Form'!C627=\"Enroll\",'Enrollment Form'!AA627=\"\"),\"N\",\"Y\"))","v":"-"},{"$f":"IF(OR('Enrollment Form'!B627=\"Subscriber\",'Enrollment Form'!B627=\"\"),\"-\",IF('Enrollment Form'!BI627=\"\",\"N\",\"Y\"))","v":"-"},{"$f":"IF('Enrollment Form'!B627<>\"Subscriber\",\"-\",IF(AND('Enrollment Form'!B627=\"Subscriber\",'Enrollment Form'!G627=\"\"),\"N\",\"Y\"))","v":"-"},{"$f":"IF('Enrollment Form'!A627=\"\",\"\",IF('Enrollment Form'!B627=\"Subscriber\",\"-\",IF(AND('Enrollment Form'!B627<>\"Subscriber\",'Enrollment Form'!G627='Enrollment Form'!H627),\"N\",\"Y\")))","v":""},0]
[628,{"$f":"IF('Enrollment Form'!$A628<>\"\",\"Y\",\"N\")","v":"N"},{"$f":"IF(AND('Enrollment Form'!$B628=\"\",'Enrollment Form'!$C628<>\"\"),\"N\",IF($B621=\"N\",\"\",\"Y\"))","v":""},{"$f":"IF(OR($B621=\"N\",'Enrollment Form'!G628=\"\"),\"\",IF('Enrollment Form'!$B628<>\"Subscriber\",\"\",IF('Enrollment Form'!$G628='Enrollment Form'!$H628,\"Y\",\"N\")))","v":""},{"$f":"IF($B621=\"N\",\"\",IF(AND(COUNTIFS('Enrollment Form'!$H$11:$H$1000,'Enrollment Form'!$H628,'Enrollment Form'!$B$11:$B$1000,'Enrollment Form'!$B628)>1,'Enrollment Form'!$H628<>\"\"),\"N\",\"Y\"))","v":""},{"$f":"IF($B621=\"N\",\"\",IF(LEN('Enrollment Form'!$Y628)=0,\"\",IF(LEN('Enrollment Form'!$Y628)<>5,\"N\",\"Y\")))","v":""},{"$f":"IF($B621=\"N\",\"\",IF(LEN('Enrollment Form'!$AD628=0),\"\",IF(LEN('Enrollment Form'!$AD628)<>5,\"N\",\"Y\")))","v":""},{"$f":"IF($B621=\"N\",\"\",IF(LEN('Enrollment Form'!$BL628=0),\"\",IF(LEN('Enrollment Form'!$BL628)<>5,\"N\",\"Y\")))","v":""},{"$f":"IF($B621=\"N\",\"\",IF(LEN('Enrollment Form'!$AE628)=0,\"\",IF(LEN('Enrollment Form'!$AE628)<>10,\"N\",\"Y\")))","v":""},{"$f":"IF($B621=\"N\",\"\",IF(LEN('Enrollment Form'!$AF628)=0,\"\",IF(LEN('Enrollment Form'!$AF628)<>10,\"N\",\"Y\")))","v":""},{"$f":"IF('Enrollment Form'!$O628<>\"Graded\",\"-\",IF(AND('Enrollment Form'!$O628=\"Graded\",'Enrollment Form'!$AO628<>\"\"),\"Y\",\"N\"))","v":"-"},{"$f":"IF($B621=\"N\",\"\",IF(OR('Enrollment Form'!$B628<>\"Subscriber\",'Enrollment Form'!$C628=\"ROC\"),\"-\",IF(AND('Enrollment Form'!$B628=\"Subscriber\",'Enrollment Form'!$C628=\"Enroll\",'Enrollment Form'!$AJ628<>\"\"),\"Y\",\"N\")))","v":""},{"$f":"IF($B621=\"N\",\"\",IF(OR('Enrollment Form'!$B628<>\"Subscriber\",'Enrollment Form'!$C628=\"ROC\"),\"-\",IF(AND('Enrollment Form'!$B628=\"Subscriber\",'Enrollment Form'!$C628=\"Enroll\",'Enrollment Form'!$AK628<>\"\"),\"Y\",\"N\")))","v":""},{"$f":"IF($B621=\"N\",\"\",IF(OR('Enrollment Form'!$B628<>\"Subscriber\",'Enrollment Form'!$C628=\"ROC\"),\"-\",IF(AND('Enrollment Form'!$B628=\"Subscriber\",'Enrollment Form'!$C628=\"Enroll\",'Enrollment Form'!$AL628<>\"\"),\"Y\",\"N\")))","v":""},{"$f":"IF($B621=\"N\",\"\",IF(OR('Enrollment Form'!$B628<>\"Subscriber\",'Enrollment Form'!$C628=\"ROC\"),\"-\",IF(AND('Enrollment Form'!$B628=\"Subscriber\",'Enrollment Form'!$C628=\"Enroll\",'Enrollment Form'!$AM628<>\"\"),\"Y\",\"N\")))","v":""},{"$f":"IF($B621=\"N\",\"\",IF(OR('Enrollment Form'!$B628<>\"Subscriber\",'Enrollment Form'!$C628=\"ROC\"),\"-\",IF(AND('Enrollment Form'!$B628=\"Subscriber\",'Enrollment Form'!$C628=\"Enroll\",'Enrollment Form'!$AN628<>\"\"),\"Y\",\"N\")))","v":""},{"$f":"IF($B621=\"N\",\"\",IF(OR('Enrollment Form'!$B628<>\"Subscriber\",'Enrollment Form'!$C628=\"ROC\"),\"-\",IF(AND('Enrollment Form'!$B628=\"Subscriber\",'Enrollment Form'!$C628=\"Enroll\",'Enrollment Form'!$AP628<>\"\"),\"Y\",\"N\")))","v":""},{"$f":"IF($B621=\"N\",\"\",IF($Q621=\"-\",\"-\",IF(AND($Q621=\"Y\",'Enrollment Form'!$AP628=\"No\"),\"-\",IF(AND($Q621=\"Y\",'Enrollment Form'!$AP628=\"Yes\",'Enrollment Form'!$AQ628<>\"\"),\"Y\",\"N\"))))","v":""},{"$f":"IF($B621=\"N\",\"\",IF(OR('Enrollment Form'!$B628<>\"Subscriber\",'Enrollment Form'!$C628=\"ROC\"),\"-\",IF(AND('Enrollment Form'!$B628=\"Subscriber\",'Enrollment Form'!$C628=\"Enroll\",'Enrollment Form'!$CO628<>\"\"),\"Y\",\"N\")))","v":""},{"$f":"IF($B621=\"N\",\"\",IF($S621=\"-\",\"-\",IF(AND($S621=\"Y\",'Enrollment Form'!$CO628=\"No\"),\"-\",IF(AND($S621=\"Y\",'Enrollment Form'!$CO628=\"Yes\",'Enrollment Form'!$CP628<>\"\"),\"Y\",\"N\"))))","v":""},{"$f":"IF(OR('Enrollment Form'!$AV628=\"Yes\",'Enrollment Form'!$AV628=\"\"),\"-\",IF(AND('Enrollment Form'!$AV628=\"No\",ISERROR(FIND(\"HMO\",VLOOKUP('Enrollment Form'!G628,'Enrollment Form'!H$11:J$1000,3,FALSE),1))=FALSE,COUNTA('Enrollment Form'!$AW628:$AZ628)=4),\"Y\",\"N\"))","v":"-"},{"$f":"IF($B621=\"N\",\"\",IF('Enrollment Form'!$B628=\"Subscriber\",\"-\",IF(COUNTA('Enrollment Form'!$BE628,'Enrollment Form'!$BG628)=2,\"Y\",\"N\")))","v":""},{"$f":"IF($B621=\"N\",\"\",IF(OR('Enrollment Form'!$AU628=\"\",'Enrollment Form'!$AU628=\"No\"),\"-\",IF(AND('Enrollment Form'!$AU628=\"Yes\",COUNTA('Enrollment Form'!$CK628)=1),\"Y\",\"N\")))","v":""},{"$f":"IF(OR('Enrollment Form'!$CK628=\"\",'Enrollment Form'!$CK628=\"No\"),\"-\",IF(COUNTA('Enrollment Form'!$CM628:$CN628)=2,\"Y\",\"N\"))","v":"-"},{"$f":"IF($B621=\"N\",\"\",IF(COUNTIF('Enrollment Form'!$CZ628:$DO628,\"Other\")=COUNTA('Enrollment Form'!$DF628,'Enrollment Form'!$DA628,'Enrollment Form'!$DK628,'Enrollment Form'!$DP628),\"Y\",\"N\"))","v":""},{"$f":"IF($B621=\"N\",\"\",IF(OR('Enrollment Form'!B628<>\"Subscriber\",'Enrollment Form'!C628=\"ROC\",COUNTIF('Enrollment Form'!AS628:AT628,\"Yes\")>=1),\"-\",IF(AND('Enrollment Form'!C628=\"Enroll\",COUNTIF('Enrollment Form'!AS628:AT628,\"No\")=2,'Enrollment Form'!AU628=\"\"),\"N\",\"Y\")))","v":""},{"$f":"IF(OR(B621=\"N\",'Enrollment Form'!B628<>\"Subscriber\",'Enrollment Form'!C628=\"ROC\",'Enrollment Form'!O628<>\"Multiple of Salary\"),\"-\",IF(COUNTA('Enrollment Form'!T628:U628)<2,\"N\",\"Y\"))","v":"-"},{"$f":"IF(B621=\"N\",\"\",IF(OR('Enrollment Form'!C628=\"ROC\",'Enrollment Form'!B628<>\"Subscriber\",'Enrollment Form'!O628=\"Waive\",'Enrollment Form'!O628=\"\"),\"-\",IF('Enrollment Form'!P628=\"\",\"N\",\"Y\")))","v":""},{"$f":"IF($B621=\"N\",\"\",IF(AND('Enrollment Form'!$C628=\"ROC\",'Enrollment Form'!$DS628<>\"\"),\"Y\",IF(AND('Enrollment Form'!$C628=\"ROC\",'Enrollment Form'!$DS628=\"\"),\"N\",IF(AND('Enrollment Form'!$C628=\"Enroll\",'Enrollment Form'!$B628=\"Subscriber\",'Enrollment Form'!$CQ628=\"No\",'Enrollment Form'!$DS628=\"\"),\"N\",IF(AND('Enrollment Form'!$C628=\"Enroll\",'Enrollment Form'!$B628=\"Subscriber\",'Enrollment Form'!$CQ628=\"Yes\"),\"-\",\"Y\")))))","v":""},{"$f":"IF($B621=\"N\",\"\",IF(AND('Enrollment Form'!$C628=\"ROC\",'Enrollment Form'!$DT628<>\"\"),\"Y\",IF(AND('Enrollment Form'!$C628=\"ROC\",'Enrollment Form'!$DT628=\"\"),\"N\",IF(AND('Enrollment Form'!$C628=\"Enroll\",'Enrollment Form'!$B628=\"Subscriber\",'Enrollment Form'!$CQ628=\"No\",'Enrollment Form'!$DT628=\"\"),\"N\",IF(AND('Enrollment Form'!$C628=\"Enroll\",'Enrollment Form'!$B628=\"Subscriber\",'Enrollment Form'!$CQ628=\"Yes\"),\"-\",\"Y\")))))","v":""},{"$f":"IF('Enrollment Form'!AH628=\"\",\"\",IF(ISERROR(SEARCH(\".\",'Enrollment Form'!AH628,SEARCH(\"@\",'Enrollment Form'!AH628))),\"N\",\"Y\"))","v":""},{"$f":"IF(OR($B621=\"N\",'Enrollment Form'!$G628=\"\"),\"\",IF('Enrollment Form'!$B628<>\"Subscriber\",\"-\",IF(COUNTIF('Enrollment Form'!$AS628:$AT628,\"Yes\")=2,\"N\",\"Y\")))","v":""},{"$f":"IF(OR('Enrollment Form'!$CC628=\"\",'Enrollment Form'!$CC628=\"No\"),\"-\",IF(AND('Enrollment Form'!$CC628=\"Yes\",'Enrollment Form'!$CD628=\"\"),\"N\",\"Y\"))","v":"-"},{"$f":"IF(OR('Enrollment Form'!$CE628=\"\",'Enrollment Form'!$CE628=\"No\"),\"-\",IF(AND('Enrollment Form'!$CE628=\"Yes\",'Enrollment Form'!$CF628=\"\"),\"N\",\"Y\"))","v":"-"},{"$f":"IF(OR('Enrollment Form'!$CG628=\"\",'Enrollment Form'!$CG628=\"No\"),\"-\",IF(AND('Enrollment Form'!$CG628=\"Yes\",'Enrollment Form'!$CH628=\"\"),\"N\",\"Y\"))","v":"-"},{"$f":"IF(OR('Enrollment Form'!$CG628=\"\",'Enrollment Form'!$CG628=\"No\"),\"-\",IF(AND('Enrollment Form'!$CG628=\"Yes\",'Enrollment Form'!$CI628=\"\"),\"N\",\"Y\"))","v":"-"},{"$f":"IF('Enrollment Form'!B628<>\"Subscriber\",\"-\",IF(AND('Enrollment Form'!B628=\"Subscriber\",'Enrollment Form'!C628=\"Enroll\",'Enrollment Form'!AA628=\"\"),\"N\",\"Y\"))","v":"-"},{"$f":"IF(OR('Enrollment Form'!B628=\"Subscriber\",'Enrollment Form'!B628=\"\"),\"-\",IF('Enrollment Form'!BI628=\"\",\"N\",\"Y\"))","v":"-"},{"$f":"IF('Enrollment Form'!B628<>\"Subscriber\",\"-\",IF(AND('Enrollment Form'!B628=\"Subscriber\",'Enrollment Form'!G628=\"\"),\"N\",\"Y\"))","v":"-"},{"$f":"IF('Enrollment Form'!A628=\"\",\"\",IF('Enrollment Form'!B628=\"Subscriber\",\"-\",IF(AND('Enrollment Form'!B628<>\"Subscriber\",'Enrollment Form'!G628='Enrollment Form'!H628),\"N\",\"Y\")))","v":""},0]
[629,{"$f":"IF('Enrollment Form'!$A629<>\"\",\"Y\",\"N\")","v":"N"},{"$f":"IF(AND('Enrollment Form'!$B629=\"\",'Enrollment Form'!$C629<>\"\"),\"N\",IF($B622=\"N\",\"\",\"Y\"))","v":""},{"$f":"IF(OR($B622=\"N\",'Enrollment Form'!G629=\"\"),\"\",IF('Enrollment Form'!$B629<>\"Subscriber\",\"\",IF('Enrollment Form'!$G629='Enrollment Form'!$H629,\"Y\",\"N\")))","v":""},{"$f":"IF($B622=\"N\",\"\",IF(AND(COUNTIFS('Enrollment Form'!$H$11:$H$1000,'Enrollment Form'!$H629,'Enrollment Form'!$B$11:$B$1000,'Enrollment Form'!$B629)>1,'Enrollment Form'!$H629<>\"\"),\"N\",\"Y\"))","v":""},{"$f":"IF($B622=\"N\",\"\",IF(LEN('Enrollment Form'!$Y629)=0,\"\",IF(LEN('Enrollment Form'!$Y629)<>5,\"N\",\"Y\")))","v":""},{"$f":"IF($B622=\"N\",\"\",IF(LEN('Enrollment Form'!$AD629=0),\"\",IF(LEN('Enrollment Form'!$AD629)<>5,\"N\",\"Y\")))","v":""},{"$f":"IF($B622=\"N\",\"\",IF(LEN('Enrollment Form'!$BL629=0),\"\",IF(LEN('Enrollment Form'!$BL629)<>5,\"N\",\"Y\")))","v":""},{"$f":"IF($B622=\"N\",\"\",IF(LEN('Enrollment Form'!$AE629)=0,\"\",IF(LEN('Enrollment Form'!$AE629)<>10,\"N\",\"Y\")))","v":""},{"$f":"IF($B622=\"N\",\"\",IF(LEN('Enrollment Form'!$AF629)=0,\"\",IF(LEN('Enrollment Form'!$AF629)<>10,\"N\",\"Y\")))","v":""},{"$f":"IF('Enrollment Form'!$O629<>\"Graded\",\"-\",IF(AND('Enrollment Form'!$O629=\"Graded\",'Enrollment Form'!$AO629<>\"\"),\"Y\",\"N\"))","v":"-"},{"$f":"IF($B622=\"N\",\"\",IF(OR('Enrollment Form'!$B629<>\"Subscriber\",'Enrollment Form'!$C629=\"ROC\"),\"-\",IF(AND('Enrollment Form'!$B629=\"Subscriber\",'Enrollment Form'!$C629=\"Enroll\",'Enrollment Form'!$AJ629<>\"\"),\"Y\",\"N\")))","v":""},{"$f":"IF($B622=\"N\",\"\",IF(OR('Enrollment Form'!$B629<>\"Subscriber\",'Enrollment Form'!$C629=\"ROC\"),\"-\",IF(AND('Enrollment Form'!$B629=\"Subscriber\",'Enrollment Form'!$C629=\"Enroll\",'Enrollment Form'!$AK629<>\"\"),\"Y\",\"N\")))","v":""},{"$f":"IF($B622=\"N\",\"\",IF(OR('Enrollment Form'!$B629<>\"Subscriber\",'Enrollment Form'!$C629=\"ROC\"),\"-\",IF(AND('Enrollment Form'!$B629=\"Subscriber\",'Enrollment Form'!$C629=\"Enroll\",'Enrollment Form'!$AL629<>\"\"),\"Y\",\"N\")))","v":""},{"$f":"IF($B622=\"N\",\"\",IF(OR('Enrollment Form'!$B629<>\"Subscriber\",'Enrollment Form'!$C629=\"ROC\"),\"-\",IF(AND('Enrollment Form'!$B629=\"Subscriber\",'Enrollment Form'!$C629=\"Enroll\",'Enrollment Form'!$AM629<>\"\"),\"Y\",\"N\")))","v":""},{"$f":"IF($B622=\"N\",\"\",IF(OR('Enrollment Form'!$B629<>\"Subscriber\",'Enrollment Form'!$C629=\"ROC\"),\"-\",IF(AND('Enrollment Form'!$B629=\"Subscriber\",'Enrollment Form'!$C629=\"Enroll\",'Enrollment Form'!$AN629<>\"\"),\"Y\",\"N\")))","v":""},{"$f":"IF($B622=\"N\",\"\",IF(OR('Enrollment Form'!$B629<>\"Subscriber\",'Enrollment Form'!$C629=\"ROC\"),\"-\",IF(AND('Enrollment Form'!$B629=\"Subscriber\",'Enrollment Form'!$C629=\"Enroll\",'Enrollment Form'!$AP629<>\"\"),\"Y\",\"N\")))","v":""},{"$f":"IF($B622=\"N\",\"\",IF($Q622=\"-\",\"-\",IF(AND($Q622=\"Y\",'Enrollment Form'!$AP629=\"No\"),\"-\",IF(AND($Q622=\"Y\",'Enrollment Form'!$AP629=\"Yes\",'Enrollment Form'!$AQ629<>\"\"),\"Y\",\"N\"))))","v":""},{"$f":"IF($B622=\"N\",\"\",IF(OR('Enrollment Form'!$B629<>\"Subscriber\",'Enrollment Form'!$C629=\"ROC\"),\"-\",IF(AND('Enrollment Form'!$B629=\"Subscriber\",'Enrollment Form'!$C629=\"Enroll\",'Enrollment Form'!$CO629<>\"\"),\"Y\",\"N\")))","v":""},{"$f":"IF($B622=\"N\",\"\",IF($S622=\"-\",\"-\",IF(AND($S622=\"Y\",'Enrollment Form'!$CO629=\"No\"),\"-\",IF(AND($S622=\"Y\",'Enrollment Form'!$CO629=\"Yes\",'Enrollment Form'!$CP629<>\"\"),\"Y\",\"N\"))))","v":""},{"$f":"IF(OR('Enrollment Form'!$AV629=\"Yes\",'Enrollment Form'!$AV629=\"\"),\"-\",IF(AND('Enrollment Form'!$AV629=\"No\",ISERROR(FIND(\"HMO\",VLOOKUP('Enrollment Form'!G629,'Enrollment Form'!H$11:J$1000,3,FALSE),1))=FALSE,COUNTA('Enrollment Form'!$AW629:$AZ629)=4),\"Y\",\"N\"))","v":"-"},{"$f":"IF($B622=\"N\",\"\",IF('Enrollment Form'!$B629=\"Subscriber\",\"-\",IF(COUNTA('Enrollment Form'!$BE629,'Enrollment Form'!$BG629)=2,\"Y\",\"N\")))","v":""},{"$f":"IF($B622=\"N\",\"\",IF(OR('Enrollment Form'!$AU629=\"\",'Enrollment Form'!$AU629=\"No\"),\"-\",IF(AND('Enrollment Form'!$AU629=\"Yes\",COUNTA('Enrollment Form'!$CK629)=1),\"Y\",\"N\")))","v":""},{"$f":"IF(OR('Enrollment Form'!$CK629=\"\",'Enrollment Form'!$CK629=\"No\"),\"-\",IF(COUNTA('Enrollment Form'!$CM629:$CN629)=2,\"Y\",\"N\"))","v":"-"},{"$f":"IF($B622=\"N\",\"\",IF(COUNTIF('Enrollment Form'!$CZ629:$DO629,\"Other\")=COUNTA('Enrollment Form'!$DF629,'Enrollment Form'!$DA629,'Enrollment Form'!$DK629,'Enrollment Form'!$DP629),\"Y\",\"N\"))","v":""},{"$f":"IF($B622=\"N\",\"\",IF(OR('Enrollment Form'!B629<>\"Subscriber\",'Enrollment Form'!C629=\"ROC\",COUNTIF('Enrollment Form'!AS629:AT629,\"Yes\")>=1),\"-\",IF(AND('Enrollment Form'!C629=\"Enroll\",COUNTIF('Enrollment Form'!AS629:AT629,\"No\")=2,'Enrollment Form'!AU629=\"\"),\"N\",\"Y\")))","v":""},{"$f":"IF(OR(B622=\"N\",'Enrollment Form'!B629<>\"Subscriber\",'Enrollment Form'!C629=\"ROC\",'Enrollment Form'!O629<>\"Multiple of Salary\"),\"-\",IF(COUNTA('Enrollment Form'!T629:U629)<2,\"N\",\"Y\"))","v":"-"},{"$f":"IF(B622=\"N\",\"\",IF(OR('Enrollment Form'!C629=\"ROC\",'Enrollment Form'!B629<>\"Subscriber\",'Enrollment Form'!O629=\"Waive\",'Enrollment Form'!O629=\"\"),\"-\",IF('Enrollment Form'!P629=\"\",\"N\",\"Y\")))","v":""},{"$f":"IF($B622=\"N\",\"\",IF(AND('Enrollment Form'!$C629=\"ROC\",'Enrollment Form'!$DS629<>\"\"),\"Y\",IF(AND('Enrollment Form'!$C629=\"ROC\",'Enrollment Form'!$DS629=\"\"),\"N\",IF(AND('Enrollment Form'!$C629=\"Enroll\",'Enrollment Form'!$B629=\"Subscriber\",'Enrollment Form'!$CQ629=\"No\",'Enrollment Form'!$DS629=\"\"),\"N\",IF(AND('Enrollment Form'!$C629=\"Enroll\",'Enrollment Form'!$B629=\"Subscriber\",'Enrollment Form'!$CQ629=\"Yes\"),\"-\",\"Y\")))))","v":""},{"$f":"IF($B622=\"N\",\"\",IF(AND('Enrollment Form'!$C629=\"ROC\",'Enrollment Form'!$DT629<>\"\"),\"Y\",IF(AND('Enrollment Form'!$C629=\"ROC\",'Enrollment Form'!$DT629=\"\"),\"N\",IF(AND('Enrollment Form'!$C629=\"Enroll\",'Enrollment Form'!$B629=\"Subscriber\",'Enrollment Form'!$CQ629=\"No\",'Enrollment Form'!$DT629=\"\"),\"N\",IF(AND('Enrollment Form'!$C629=\"Enroll\",'Enrollment Form'!$B629=\"Subscriber\",'Enrollment Form'!$CQ629=\"Yes\"),\"-\",\"Y\")))))","v":""},{"$f":"IF('Enrollment Form'!AH629=\"\",\"\",IF(ISERROR(SEARCH(\".\",'Enrollment Form'!AH629,SEARCH(\"@\",'Enrollment Form'!AH629))),\"N\",\"Y\"))","v":""},{"$f":"IF(OR($B622=\"N\",'Enrollment Form'!$G629=\"\"),\"\",IF('Enrollment Form'!$B629<>\"Subscriber\",\"-\",IF(COUNTIF('Enrollment Form'!$AS629:$AT629,\"Yes\")=2,\"N\",\"Y\")))","v":""},{"$f":"IF(OR('Enrollment Form'!$CC629=\"\",'Enrollment Form'!$CC629=\"No\"),\"-\",IF(AND('Enrollment Form'!$CC629=\"Yes\",'Enrollment Form'!$CD629=\"\"),\"N\",\"Y\"))","v":"-"},{"$f":"IF(OR('Enrollment Form'!$CE629=\"\",'Enrollment Form'!$CE629=\"No\"),\"-\",IF(AND('Enrollment Form'!$CE629=\"Yes\",'Enrollment Form'!$CF629=\"\"),\"N\",\"Y\"))","v":"-"},{"$f":"IF(OR('Enrollment Form'!$CG629=\"\",'Enrollment Form'!$CG629=\"No\"),\"-\",IF(AND('Enrollment Form'!$CG629=\"Yes\",'Enrollment Form'!$CH629=\"\"),\"N\",\"Y\"))","v":"-"},{"$f":"IF(OR('Enrollment Form'!$CG629=\"\",'Enrollment Form'!$CG629=\"No\"),\"-\",IF(AND('Enrollment Form'!$CG629=\"Yes\",'Enrollment Form'!$CI629=\"\"),\"N\",\"Y\"))","v":"-"},{"$f":"IF('Enrollment Form'!B629<>\"Subscriber\",\"-\",IF(AND('Enrollment Form'!B629=\"Subscriber\",'Enrollment Form'!C629=\"Enroll\",'Enrollment Form'!AA629=\"\"),\"N\",\"Y\"))","v":"-"},{"$f":"IF(OR('Enrollment Form'!B629=\"Subscriber\",'Enrollment Form'!B629=\"\"),\"-\",IF('Enrollment Form'!BI629=\"\",\"N\",\"Y\"))","v":"-"},{"$f":"IF('Enrollment Form'!B629<>\"Subscriber\",\"-\",IF(AND('Enrollment Form'!B629=\"Subscriber\",'Enrollment Form'!G629=\"\"),\"N\",\"Y\"))","v":"-"},{"$f":"IF('Enrollment Form'!A629=\"\",\"\",IF('Enrollment Form'!B629=\"Subscriber\",\"-\",IF(AND('Enrollment Form'!B629<>\"Subscriber\",'Enrollment Form'!G629='Enrollment Form'!H629),\"N\",\"Y\")))","v":""},0]
[630,{"$f":"IF('Enrollment Form'!$A630<>\"\",\"Y\",\"N\")","v":"N"},{"$f":"IF(AND('Enrollment Form'!$B630=\"\",'Enrollment Form'!$C630<>\"\"),\"N\",IF($B623=\"N\",\"\",\"Y\"))","v":""},{"$f":"IF(OR($B623=\"N\",'Enrollment Form'!G630=\"\"),\"\",IF('Enrollment Form'!$B630<>\"Subscriber\",\"\",IF('Enrollment Form'!$G630='Enrollment Form'!$H630,\"Y\",\"N\")))","v":""},{"$f":"IF($B623=\"N\",\"\",IF(AND(COUNTIFS('Enrollment Form'!$H$11:$H$1000,'Enrollment Form'!$H630,'Enrollment Form'!$B$11:$B$1000,'Enrollment Form'!$B630)>1,'Enrollment Form'!$H630<>\"\"),\"N\",\"Y\"))","v":""},{"$f":"IF($B623=\"N\",\"\",IF(LEN('Enrollment Form'!$Y630)=0,\"\",IF(LEN('Enrollment Form'!$Y630)<>5,\"N\",\"Y\")))","v":""},{"$f":"IF($B623=\"N\",\"\",IF(LEN('Enrollment Form'!$AD630=0),\"\",IF(LEN('Enrollment Form'!$AD630)<>5,\"N\",\"Y\")))","v":""},{"$f":"IF($B623=\"N\",\"\",IF(LEN('Enrollment Form'!$BL630=0),\"\",IF(LEN('Enrollment Form'!$BL630)<>5,\"N\",\"Y\")))","v":""},{"$f":"IF($B623=\"N\",\"\",IF(LEN('Enrollment Form'!$AE630)=0,\"\",IF(LEN('Enrollment Form'!$AE630)<>10,\"N\",\"Y\")))","v":""},{"$f":"IF($B623=\"N\",\"\",IF(LEN('Enrollment Form'!$AF630)=0,\"\",IF(LEN('Enrollment Form'!$AF630)<>10,\"N\",\"Y\")))","v":""},{"$f":"IF('Enrollment Form'!$O630<>\"Graded\",\"-\",IF(AND('Enrollment Form'!$O630=\"Graded\",'Enrollment Form'!$AO630<>\"\"),\"Y\",\"N\"))","v":"-"},{"$f":"IF($B623=\"N\",\"\",IF(OR('Enrollment Form'!$B630<>\"Subscriber\",'Enrollment Form'!$C630=\"ROC\"),\"-\",IF(AND('Enrollment Form'!$B630=\"Subscriber\",'Enrollment Form'!$C630=\"Enroll\",'Enrollment Form'!$AJ630<>\"\"),\"Y\",\"N\")))","v":""},{"$f":"IF($B623=\"N\",\"\",IF(OR('Enrollment Form'!$B630<>\"Subscriber\",'Enrollment Form'!$C630=\"ROC\"),\"-\",IF(AND('Enrollment Form'!$B630=\"Subscriber\",'Enrollment Form'!$C630=\"Enroll\",'Enrollment Form'!$AK630<>\"\"),\"Y\",\"N\")))","v":""},{"$f":"IF($B623=\"N\",\"\",IF(OR('Enrollment Form'!$B630<>\"Subscriber\",'Enrollment Form'!$C630=\"ROC\"),\"-\",IF(AND('Enrollment Form'!$B630=\"Subscriber\",'Enrollment Form'!$C630=\"Enroll\",'Enrollment Form'!$AL630<>\"\"),\"Y\",\"N\")))","v":""},{"$f":"IF($B623=\"N\",\"\",IF(OR('Enrollment Form'!$B630<>\"Subscriber\",'Enrollment Form'!$C630=\"ROC\"),\"-\",IF(AND('Enrollment Form'!$B630=\"Subscriber\",'Enrollment Form'!$C630=\"Enroll\",'Enrollment Form'!$AM630<>\"\"),\"Y\",\"N\")))","v":""},{"$f":"IF($B623=\"N\",\"\",IF(OR('Enrollment Form'!$B630<>\"Subscriber\",'Enrollment Form'!$C630=\"ROC\"),\"-\",IF(AND('Enrollment Form'!$B630=\"Subscriber\",'Enrollment Form'!$C630=\"Enroll\",'Enrollment Form'!$AN630<>\"\"),\"Y\",\"N\")))","v":""},{"$f":"IF($B623=\"N\",\"\",IF(OR('Enrollment Form'!$B630<>\"Subscriber\",'Enrollment Form'!$C630=\"ROC\"),\"-\",IF(AND('Enrollment Form'!$B630=\"Subscriber\",'Enrollment Form'!$C630=\"Enroll\",'Enrollment Form'!$AP630<>\"\"),\"Y\",\"N\")))","v":""},{"$f":"IF($B623=\"N\",\"\",IF($Q623=\"-\",\"-\",IF(AND($Q623=\"Y\",'Enrollment Form'!$AP630=\"No\"),\"-\",IF(AND($Q623=\"Y\",'Enrollment Form'!$AP630=\"Yes\",'Enrollment Form'!$AQ630<>\"\"),\"Y\",\"N\"))))","v":""},{"$f":"IF($B623=\"N\",\"\",IF(OR('Enrollment Form'!$B630<>\"Subscriber\",'Enrollment Form'!$C630=\"ROC\"),\"-\",IF(AND('Enrollment Form'!$B630=\"Subscriber\",'Enrollment Form'!$C630=\"Enroll\",'Enrollment Form'!$CO630<>\"\"),\"Y\",\"N\")))","v":""},{"$f":"IF($B623=\"N\",\"\",IF($S623=\"-\",\"-\",IF(AND($S623=\"Y\",'Enrollment Form'!$CO630=\"No\"),\"-\",IF(AND($S623=\"Y\",'Enrollment Form'!$CO630=\"Yes\",'Enrollment Form'!$CP630<>\"\"),\"Y\",\"N\"))))","v":""},{"$f":"IF(OR('Enrollment Form'!$AV630=\"Yes\",'Enrollment Form'!$AV630=\"\"),\"-\",IF(AND('Enrollment Form'!$AV630=\"No\",ISERROR(FIND(\"HMO\",VLOOKUP('Enrollment Form'!G630,'Enrollment Form'!H$11:J$1000,3,FALSE),1))=FALSE,COUNTA('Enrollment Form'!$AW630:$AZ630)=4),\"Y\",\"N\"))","v":"-"},{"$f":"IF($B623=\"N\",\"\",IF('Enrollment Form'!$B630=\"Subscriber\",\"-\",IF(COUNTA('Enrollment Form'!$BE630,'Enrollment Form'!$BG630)=2,\"Y\",\"N\")))","v":""},{"$f":"IF($B623=\"N\",\"\",IF(OR('Enrollment Form'!$AU630=\"\",'Enrollment Form'!$AU630=\"No\"),\"-\",IF(AND('Enrollment Form'!$AU630=\"Yes\",COUNTA('Enrollment Form'!$CK630)=1),\"Y\",\"N\")))","v":""},{"$f":"IF(OR('Enrollment Form'!$CK630=\"\",'Enrollment Form'!$CK630=\"No\"),\"-\",IF(COUNTA('Enrollment Form'!$CM630:$CN630)=2,\"Y\",\"N\"))","v":"-"},{"$f":"IF($B623=\"N\",\"\",IF(COUNTIF('Enrollment Form'!$CZ630:$DO630,\"Other\")=COUNTA('Enrollment Form'!$DF630,'Enrollment Form'!$DA630,'Enrollment Form'!$DK630,'Enrollment Form'!$DP630),\"Y\",\"N\"))","v":""},{"$f":"IF($B623=\"N\",\"\",IF(OR('Enrollment Form'!B630<>\"Subscriber\",'Enrollment Form'!C630=\"ROC\",COUNTIF('Enrollment Form'!AS630:AT630,\"Yes\")>=1),\"-\",IF(AND('Enrollment Form'!C630=\"Enroll\",COUNTIF('Enrollment Form'!AS630:AT630,\"No\")=2,'Enrollment Form'!AU630=\"\"),\"N\",\"Y\")))","v":""},{"$f":"IF(OR(B623=\"N\",'Enrollment Form'!B630<>\"Subscriber\",'Enrollment Form'!C630=\"ROC\",'Enrollment Form'!O630<>\"Multiple of Salary\"),\"-\",IF(COUNTA('Enrollment Form'!T630:U630)<2,\"N\",\"Y\"))","v":"-"},{"$f":"IF(B623=\"N\",\"\",IF(OR('Enrollment Form'!C630=\"ROC\",'Enrollment Form'!B630<>\"Subscriber\",'Enrollment Form'!O630=\"Waive\",'Enrollment Form'!O630=\"\"),\"-\",IF('Enrollment Form'!P630=\"\",\"N\",\"Y\")))","v":""},{"$f":"IF($B623=\"N\",\"\",IF(AND('Enrollment Form'!$C630=\"ROC\",'Enrollment Form'!$DS630<>\"\"),\"Y\",IF(AND('Enrollment Form'!$C630=\"ROC\",'Enrollment Form'!$DS630=\"\"),\"N\",IF(AND('Enrollment Form'!$C630=\"Enroll\",'Enrollment Form'!$B630=\"Subscriber\",'Enrollment Form'!$CQ630=\"No\",'Enrollment Form'!$DS630=\"\"),\"N\",IF(AND('Enrollment Form'!$C630=\"Enroll\",'Enrollment Form'!$B630=\"Subscriber\",'Enrollment Form'!$CQ630=\"Yes\"),\"-\",\"Y\")))))","v":""},{"$f":"IF($B623=\"N\",\"\",IF(AND('Enrollment Form'!$C630=\"ROC\",'Enrollment Form'!$DT630<>\"\"),\"Y\",IF(AND('Enrollment Form'!$C630=\"ROC\",'Enrollment Form'!$DT630=\"\"),\"N\",IF(AND('Enrollment Form'!$C630=\"Enroll\",'Enrollment Form'!$B630=\"Subscriber\",'Enrollment Form'!$CQ630=\"No\",'Enrollment Form'!$DT630=\"\"),\"N\",IF(AND('Enrollment Form'!$C630=\"Enroll\",'Enrollment Form'!$B630=\"Subscriber\",'Enrollment Form'!$CQ630=\"Yes\"),\"-\",\"Y\")))))","v":""},{"$f":"IF('Enrollment Form'!AH630=\"\",\"\",IF(ISERROR(SEARCH(\".\",'Enrollment Form'!AH630,SEARCH(\"@\",'Enrollment Form'!AH630))),\"N\",\"Y\"))","v":""},{"$f":"IF(OR($B623=\"N\",'Enrollment Form'!$G630=\"\"),\"\",IF('Enrollment Form'!$B630<>\"Subscriber\",\"-\",IF(COUNTIF('Enrollment Form'!$AS630:$AT630,\"Yes\")=2,\"N\",\"Y\")))","v":""},{"$f":"IF(OR('Enrollment Form'!$CC630=\"\",'Enrollment Form'!$CC630=\"No\"),\"-\",IF(AND('Enrollment Form'!$CC630=\"Yes\",'Enrollment Form'!$CD630=\"\"),\"N\",\"Y\"))","v":"-"},{"$f":"IF(OR('Enrollment Form'!$CE630=\"\",'Enrollment Form'!$CE630=\"No\"),\"-\",IF(AND('Enrollment Form'!$CE630=\"Yes\",'Enrollment Form'!$CF630=\"\"),\"N\",\"Y\"))","v":"-"},{"$f":"IF(OR('Enrollment Form'!$CG630=\"\",'Enrollment Form'!$CG630=\"No\"),\"-\",IF(AND('Enrollment Form'!$CG630=\"Yes\",'Enrollment Form'!$CH630=\"\"),\"N\",\"Y\"))","v":"-"},{"$f":"IF(OR('Enrollment Form'!$CG630=\"\",'Enrollment Form'!$CG630=\"No\"),\"-\",IF(AND('Enrollment Form'!$CG630=\"Yes\",'Enrollment Form'!$CI630=\"\"),\"N\",\"Y\"))","v":"-"},{"$f":"IF('Enrollment Form'!B630<>\"Subscriber\",\"-\",IF(AND('Enrollment Form'!B630=\"Subscriber\",'Enrollment Form'!C630=\"Enroll\",'Enrollment Form'!AA630=\"\"),\"N\",\"Y\"))","v":"-"},{"$f":"IF(OR('Enrollment Form'!B630=\"Subscriber\",'Enrollment Form'!B630=\"\"),\"-\",IF('Enrollment Form'!BI630=\"\",\"N\",\"Y\"))","v":"-"},{"$f":"IF('Enrollment Form'!B630<>\"Subscriber\",\"-\",IF(AND('Enrollment Form'!B630=\"Subscriber\",'Enrollment Form'!G630=\"\"),\"N\",\"Y\"))","v":"-"},{"$f":"IF('Enrollment Form'!A630=\"\",\"\",IF('Enrollment Form'!B630=\"Subscriber\",\"-\",IF(AND('Enrollment Form'!B630<>\"Subscriber\",'Enrollment Form'!G630='Enrollment Form'!H630),\"N\",\"Y\")))","v":""},0]
[631,{"$f":"IF('Enrollment Form'!$A631<>\"\",\"Y\",\"N\")","v":"N"},{"$f":"IF(AND('Enrollment Form'!$B631=\"\",'Enrollment Form'!$C631<>\"\"),\"N\",IF($B624=\"N\",\"\",\"Y\"))","v":""},{"$f":"IF(OR($B624=\"N\",'Enrollment Form'!G631=\"\"),\"\",IF('Enrollment Form'!$B631<>\"Subscriber\",\"\",IF('Enrollment Form'!$G631='Enrollment Form'!$H631,\"Y\",\"N\")))","v":""},{"$f":"IF($B624=\"N\",\"\",IF(AND(COUNTIFS('Enrollment Form'!$H$11:$H$1000,'Enrollment Form'!$H631,'Enrollment Form'!$B$11:$B$1000,'Enrollment Form'!$B631)>1,'Enrollment Form'!$H631<>\"\"),\"N\",\"Y\"))","v":""},{"$f":"IF($B624=\"N\",\"\",IF(LEN('Enrollment Form'!$Y631)=0,\"\",IF(LEN('Enrollment Form'!$Y631)<>5,\"N\",\"Y\")))","v":""},{"$f":"IF($B624=\"N\",\"\",IF(LEN('Enrollment Form'!$AD631=0),\"\",IF(LEN('Enrollment Form'!$AD631)<>5,\"N\",\"Y\")))","v":""},{"$f":"IF($B624=\"N\",\"\",IF(LEN('Enrollment Form'!$BL631=0),\"\",IF(LEN('Enrollment Form'!$BL631)<>5,\"N\",\"Y\")))","v":""},{"$f":"IF($B624=\"N\",\"\",IF(LEN('Enrollment Form'!$AE631)=0,\"\",IF(LEN('Enrollment Form'!$AE631)<>10,\"N\",\"Y\")))","v":""},{"$f":"IF($B624=\"N\",\"\",IF(LEN('Enrollment Form'!$AF631)=0,\"\",IF(LEN('Enrollment Form'!$AF631)<>10,\"N\",\"Y\")))","v":""},{"$f":"IF('Enrollment Form'!$O631<>\"Graded\",\"-\",IF(AND('Enrollment Form'!$O631=\"Graded\",'Enrollment Form'!$AO631<>\"\"),\"Y\",\"N\"))","v":"-"},{"$f":"IF($B624=\"N\",\"\",IF(OR('Enrollment Form'!$B631<>\"Subscriber\",'Enrollment Form'!$C631=\"ROC\"),\"-\",IF(AND('Enrollment Form'!$B631=\"Subscriber\",'Enrollment Form'!$C631=\"Enroll\",'Enrollment Form'!$AJ631<>\"\"),\"Y\",\"N\")))","v":""},{"$f":"IF($B624=\"N\",\"\",IF(OR('Enrollment Form'!$B631<>\"Subscriber\",'Enrollment Form'!$C631=\"ROC\"),\"-\",IF(AND('Enrollment Form'!$B631=\"Subscriber\",'Enrollment Form'!$C631=\"Enroll\",'Enrollment Form'!$AK631<>\"\"),\"Y\",\"N\")))","v":""},{"$f":"IF($B624=\"N\",\"\",IF(OR('Enrollment Form'!$B631<>\"Subscriber\",'Enrollment Form'!$C631=\"ROC\"),\"-\",IF(AND('Enrollment Form'!$B631=\"Subscriber\",'Enrollment Form'!$C631=\"Enroll\",'Enrollment Form'!$AL631<>\"\"),\"Y\",\"N\")))","v":""},{"$f":"IF($B624=\"N\",\"\",IF(OR('Enrollment Form'!$B631<>\"Subscriber\",'Enrollment Form'!$C631=\"ROC\"),\"-\",IF(AND('Enrollment Form'!$B631=\"Subscriber\",'Enrollment Form'!$C631=\"Enroll\",'Enrollment Form'!$AM631<>\"\"),\"Y\",\"N\")))","v":""},{"$f":"IF($B624=\"N\",\"\",IF(OR('Enrollment Form'!$B631<>\"Subscriber\",'Enrollment Form'!$C631=\"ROC\"),\"-\",IF(AND('Enrollment Form'!$B631=\"Subscriber\",'Enrollment Form'!$C631=\"Enroll\",'Enrollment Form'!$AN631<>\"\"),\"Y\",\"N\")))","v":""},{"$f":"IF($B624=\"N\",\"\",IF(OR('Enrollment Form'!$B631<>\"Subscriber\",'Enrollment Form'!$C631=\"ROC\"),\"-\",IF(AND('Enrollment Form'!$B631=\"Subscriber\",'Enrollment Form'!$C631=\"Enroll\",'Enrollment Form'!$AP631<>\"\"),\"Y\",\"N\")))","v":""},{"$f":"IF($B624=\"N\",\"\",IF($Q624=\"-\",\"-\",IF(AND($Q624=\"Y\",'Enrollment Form'!$AP631=\"No\"),\"-\",IF(AND($Q624=\"Y\",'Enrollment Form'!$AP631=\"Yes\",'Enrollment Form'!$AQ631<>\"\"),\"Y\",\"N\"))))","v":""},{"$f":"IF($B624=\"N\",\"\",IF(OR('Enrollment Form'!$B631<>\"Subscriber\",'Enrollment Form'!$C631=\"ROC\"),\"-\",IF(AND('Enrollment Form'!$B631=\"Subscriber\",'Enrollment Form'!$C631=\"Enroll\",'Enrollment Form'!$CO631<>\"\"),\"Y\",\"N\")))","v":""},{"$f":"IF($B624=\"N\",\"\",IF($S624=\"-\",\"-\",IF(AND($S624=\"Y\",'Enrollment Form'!$CO631=\"No\"),\"-\",IF(AND($S624=\"Y\",'Enrollment Form'!$CO631=\"Yes\",'Enrollment Form'!$CP631<>\"\"),\"Y\",\"N\"))))","v":""},{"$f":"IF(OR('Enrollment Form'!$AV631=\"Yes\",'Enrollment Form'!$AV631=\"\"),\"-\",IF(AND('Enrollment Form'!$AV631=\"No\",ISERROR(FIND(\"HMO\",VLOOKUP('Enrollment Form'!G631,'Enrollment Form'!H$11:J$1000,3,FALSE),1))=FALSE,COUNTA('Enrollment Form'!$AW631:$AZ631)=4),\"Y\",\"N\"))","v":"-"},{"$f":"IF($B624=\"N\",\"\",IF('Enrollment Form'!$B631=\"Subscriber\",\"-\",IF(COUNTA('Enrollment Form'!$BE631,'Enrollment Form'!$BG631)=2,\"Y\",\"N\")))","v":""},{"$f":"IF($B624=\"N\",\"\",IF(OR('Enrollment Form'!$AU631=\"\",'Enrollment Form'!$AU631=\"No\"),\"-\",IF(AND('Enrollment Form'!$AU631=\"Yes\",COUNTA('Enrollment Form'!$CK631)=1),\"Y\",\"N\")))","v":""},{"$f":"IF(OR('Enrollment Form'!$CK631=\"\",'Enrollment Form'!$CK631=\"No\"),\"-\",IF(COUNTA('Enrollment Form'!$CM631:$CN631)=2,\"Y\",\"N\"))","v":"-"},{"$f":"IF($B624=\"N\",\"\",IF(COUNTIF('Enrollment Form'!$CZ631:$DO631,\"Other\")=COUNTA('Enrollment Form'!$DF631,'Enrollment Form'!$DA631,'Enrollment Form'!$DK631,'Enrollment Form'!$DP631),\"Y\",\"N\"))","v":""},{"$f":"IF($B624=\"N\",\"\",IF(OR('Enrollment Form'!B631<>\"Subscriber\",'Enrollment Form'!C631=\"ROC\",COUNTIF('Enrollment Form'!AS631:AT631,\"Yes\")>=1),\"-\",IF(AND('Enrollment Form'!C631=\"Enroll\",COUNTIF('Enrollment Form'!AS631:AT631,\"No\")=2,'Enrollment Form'!AU631=\"\"),\"N\",\"Y\")))","v":""},{"$f":"IF(OR(B624=\"N\",'Enrollment Form'!B631<>\"Subscriber\",'Enrollment Form'!C631=\"ROC\",'Enrollment Form'!O631<>\"Multiple of Salary\"),\"-\",IF(COUNTA('Enrollment Form'!T631:U631)<2,\"N\",\"Y\"))","v":"-"},{"$f":"IF(B624=\"N\",\"\",IF(OR('Enrollment Form'!C631=\"ROC\",'Enrollment Form'!B631<>\"Subscriber\",'Enrollment Form'!O631=\"Waive\",'Enrollment Form'!O631=\"\"),\"-\",IF('Enrollment Form'!P631=\"\",\"N\",\"Y\")))","v":""},{"$f":"IF($B624=\"N\",\"\",IF(AND('Enrollment Form'!$C631=\"ROC\",'Enrollment Form'!$DS631<>\"\"),\"Y\",IF(AND('Enrollment Form'!$C631=\"ROC\",'Enrollment Form'!$DS631=\"\"),\"N\",IF(AND('Enrollment Form'!$C631=\"Enroll\",'Enrollment Form'!$B631=\"Subscriber\",'Enrollment Form'!$CQ631=\"No\",'Enrollment Form'!$DS631=\"\"),\"N\",IF(AND('Enrollment Form'!$C631=\"Enroll\",'Enrollment Form'!$B631=\"Subscriber\",'Enrollment Form'!$CQ631=\"Yes\"),\"-\",\"Y\")))))","v":""},{"$f":"IF($B624=\"N\",\"\",IF(AND('Enrollment Form'!$C631=\"ROC\",'Enrollment Form'!$DT631<>\"\"),\"Y\",IF(AND('Enrollment Form'!$C631=\"ROC\",'Enrollment Form'!$DT631=\"\"),\"N\",IF(AND('Enrollment Form'!$C631=\"Enroll\",'Enrollment Form'!$B631=\"Subscriber\",'Enrollment Form'!$CQ631=\"No\",'Enrollment Form'!$DT631=\"\"),\"N\",IF(AND('Enrollment Form'!$C631=\"Enroll\",'Enrollment Form'!$B631=\"Subscriber\",'Enrollment Form'!$CQ631=\"Yes\"),\"-\",\"Y\")))))","v":""},{"$f":"IF('Enrollment Form'!AH631=\"\",\"\",IF(ISERROR(SEARCH(\".\",'Enrollment Form'!AH631,SEARCH(\"@\",'Enrollment Form'!AH631))),\"N\",\"Y\"))","v":""},{"$f":"IF(OR($B624=\"N\",'Enrollment Form'!$G631=\"\"),\"\",IF('Enrollment Form'!$B631<>\"Subscriber\",\"-\",IF(COUNTIF('Enrollment Form'!$AS631:$AT631,\"Yes\")=2,\"N\",\"Y\")))","v":""},{"$f":"IF(OR('Enrollment Form'!$CC631=\"\",'Enrollment Form'!$CC631=\"No\"),\"-\",IF(AND('Enrollment Form'!$CC631=\"Yes\",'Enrollment Form'!$CD631=\"\"),\"N\",\"Y\"))","v":"-"},{"$f":"IF(OR('Enrollment Form'!$CE631=\"\",'Enrollment Form'!$CE631=\"No\"),\"-\",IF(AND('Enrollment Form'!$CE631=\"Yes\",'Enrollment Form'!$CF631=\"\"),\"N\",\"Y\"))","v":"-"},{"$f":"IF(OR('Enrollment Form'!$CG631=\"\",'Enrollment Form'!$CG631=\"No\"),\"-\",IF(AND('Enrollment Form'!$CG631=\"Yes\",'Enrollment Form'!$CH631=\"\"),\"N\",\"Y\"))","v":"-"},{"$f":"IF(OR('Enrollment Form'!$CG631=\"\",'Enrollment Form'!$CG631=\"No\"),\"-\",IF(AND('Enrollment Form'!$CG631=\"Yes\",'Enrollment Form'!$CI631=\"\"),\"N\",\"Y\"))","v":"-"},{"$f":"IF('Enrollment Form'!B631<>\"Subscriber\",\"-\",IF(AND('Enrollment Form'!B631=\"Subscriber\",'Enrollment Form'!C631=\"Enroll\",'Enrollment Form'!AA631=\"\"),\"N\",\"Y\"))","v":"-"},{"$f":"IF(OR('Enrollment Form'!B631=\"Subscriber\",'Enrollment Form'!B631=\"\"),\"-\",IF('Enrollment Form'!BI631=\"\",\"N\",\"Y\"))","v":"-"},{"$f":"IF('Enrollment Form'!B631<>\"Subscriber\",\"-\",IF(AND('Enrollment Form'!B631=\"Subscriber\",'Enrollment Form'!G631=\"\"),\"N\",\"Y\"))","v":"-"},{"$f":"IF('Enrollment Form'!A631=\"\",\"\",IF('Enrollment Form'!B631=\"Subscriber\",\"-\",IF(AND('Enrollment Form'!B631<>\"Subscriber\",'Enrollment Form'!G631='Enrollment Form'!H631),\"N\",\"Y\")))","v":""},0]
[632,{"$f":"IF('Enrollment Form'!$A632<>\"\",\"Y\",\"N\")","v":"N"},{"$f":"IF(AND('Enrollment Form'!$B632=\"\",'Enrollment Form'!$C632<>\"\"),\"N\",IF($B625=\"N\",\"\",\"Y\"))","v":""},{"$f":"IF(OR($B625=\"N\",'Enrollment Form'!G632=\"\"),\"\",IF('Enrollment Form'!$B632<>\"Subscriber\",\"\",IF('Enrollment Form'!$G632='Enrollment Form'!$H632,\"Y\",\"N\")))","v":""},{"$f":"IF($B625=\"N\",\"\",IF(AND(COUNTIFS('Enrollment Form'!$H$11:$H$1000,'Enrollment Form'!$H632,'Enrollment Form'!$B$11:$B$1000,'Enrollment Form'!$B632)>1,'Enrollment Form'!$H632<>\"\"),\"N\",\"Y\"))","v":""},{"$f":"IF($B625=\"N\",\"\",IF(LEN('Enrollment Form'!$Y632)=0,\"\",IF(LEN('Enrollment Form'!$Y632)<>5,\"N\",\"Y\")))","v":""},{"$f":"IF($B625=\"N\",\"\",IF(LEN('Enrollment Form'!$AD632=0),\"\",IF(LEN('Enrollment Form'!$AD632)<>5,\"N\",\"Y\")))","v":""},{"$f":"IF($B625=\"N\",\"\",IF(LEN('Enrollment Form'!$BL632=0),\"\",IF(LEN('Enrollment Form'!$BL632)<>5,\"N\",\"Y\")))","v":""},{"$f":"IF($B625=\"N\",\"\",IF(LEN('Enrollment Form'!$AE632)=0,\"\",IF(LEN('Enrollment Form'!$AE632)<>10,\"N\",\"Y\")))","v":""},{"$f":"IF($B625=\"N\",\"\",IF(LEN('Enrollment Form'!$AF632)=0,\"\",IF(LEN('Enrollment Form'!$AF632)<>10,\"N\",\"Y\")))","v":""},{"$f":"IF('Enrollment Form'!$O632<>\"Graded\",\"-\",IF(AND('Enrollment Form'!$O632=\"Graded\",'Enrollment Form'!$AO632<>\"\"),\"Y\",\"N\"))","v":"-"},{"$f":"IF($B625=\"N\",\"\",IF(OR('Enrollment Form'!$B632<>\"Subscriber\",'Enrollment Form'!$C632=\"ROC\"),\"-\",IF(AND('Enrollment Form'!$B632=\"Subscriber\",'Enrollment Form'!$C632=\"Enroll\",'Enrollment Form'!$AJ632<>\"\"),\"Y\",\"N\")))","v":""},{"$f":"IF($B625=\"N\",\"\",IF(OR('Enrollment Form'!$B632<>\"Subscriber\",'Enrollment Form'!$C632=\"ROC\"),\"-\",IF(AND('Enrollment Form'!$B632=\"Subscriber\",'Enrollment Form'!$C632=\"Enroll\",'Enrollment Form'!$AK632<>\"\"),\"Y\",\"N\")))","v":""},{"$f":"IF($B625=\"N\",\"\",IF(OR('Enrollment Form'!$B632<>\"Subscriber\",'Enrollment Form'!$C632=\"ROC\"),\"-\",IF(AND('Enrollment Form'!$B632=\"Subscriber\",'Enrollment Form'!$C632=\"Enroll\",'Enrollment Form'!$AL632<>\"\"),\"Y\",\"N\")))","v":""},{"$f":"IF($B625=\"N\",\"\",IF(OR('Enrollment Form'!$B632<>\"Subscriber\",'Enrollment Form'!$C632=\"ROC\"),\"-\",IF(AND('Enrollment Form'!$B632=\"Subscriber\",'Enrollment Form'!$C632=\"Enroll\",'Enrollment Form'!$AM632<>\"\"),\"Y\",\"N\")))","v":""},{"$f":"IF($B625=\"N\",\"\",IF(OR('Enrollment Form'!$B632<>\"Subscriber\",'Enrollment Form'!$C632=\"ROC\"),\"-\",IF(AND('Enrollment Form'!$B632=\"Subscriber\",'Enrollment Form'!$C632=\"Enroll\",'Enrollment Form'!$AN632<>\"\"),\"Y\",\"N\")))","v":""},{"$f":"IF($B625=\"N\",\"\",IF(OR('Enrollment Form'!$B632<>\"Subscriber\",'Enrollment Form'!$C632=\"ROC\"),\"-\",IF(AND('Enrollment Form'!$B632=\"Subscriber\",'Enrollment Form'!$C632=\"Enroll\",'Enrollment Form'!$AP632<>\"\"),\"Y\",\"N\")))","v":""},{"$f":"IF($B625=\"N\",\"\",IF($Q625=\"-\",\"-\",IF(AND($Q625=\"Y\",'Enrollment Form'!$AP632=\"No\"),\"-\",IF(AND($Q625=\"Y\",'Enrollment Form'!$AP632=\"Yes\",'Enrollment Form'!$AQ632<>\"\"),\"Y\",\"N\"))))","v":""},{"$f":"IF($B625=\"N\",\"\",IF(OR('Enrollment Form'!$B632<>\"Subscriber\",'Enrollment Form'!$C632=\"ROC\"),\"-\",IF(AND('Enrollment Form'!$B632=\"Subscriber\",'Enrollment Form'!$C632=\"Enroll\",'Enrollment Form'!$CO632<>\"\"),\"Y\",\"N\")))","v":""},{"$f":"IF($B625=\"N\",\"\",IF($S625=\"-\",\"-\",IF(AND($S625=\"Y\",'Enrollment Form'!$CO632=\"No\"),\"-\",IF(AND($S625=\"Y\",'Enrollment Form'!$CO632=\"Yes\",'Enrollment Form'!$CP632<>\"\"),\"Y\",\"N\"))))","v":""},{"$f":"IF(OR('Enrollment Form'!$AV632=\"Yes\",'Enrollment Form'!$AV632=\"\"),\"-\",IF(AND('Enrollment Form'!$AV632=\"No\",ISERROR(FIND(\"HMO\",VLOOKUP('Enrollment Form'!G632,'Enrollment Form'!H$11:J$1000,3,FALSE),1))=FALSE,COUNTA('Enrollment Form'!$AW632:$AZ632)=4),\"Y\",\"N\"))","v":"-"},{"$f":"IF($B625=\"N\",\"\",IF('Enrollment Form'!$B632=\"Subscriber\",\"-\",IF(COUNTA('Enrollment Form'!$BE632,'Enrollment Form'!$BG632)=2,\"Y\",\"N\")))","v":""},{"$f":"IF($B625=\"N\",\"\",IF(OR('Enrollment Form'!$AU632=\"\",'Enrollment Form'!$AU632=\"No\"),\"-\",IF(AND('Enrollment Form'!$AU632=\"Yes\",COUNTA('Enrollment Form'!$CK632)=1),\"Y\",\"N\")))","v":""},{"$f":"IF(OR('Enrollment Form'!$CK632=\"\",'Enrollment Form'!$CK632=\"No\"),\"-\",IF(COUNTA('Enrollment Form'!$CM632:$CN632)=2,\"Y\",\"N\"))","v":"-"},{"$f":"IF($B625=\"N\",\"\",IF(COUNTIF('Enrollment Form'!$CZ632:$DO632,\"Other\")=COUNTA('Enrollment Form'!$DF632,'Enrollment Form'!$DA632,'Enrollment Form'!$DK632,'Enrollment Form'!$DP632),\"Y\",\"N\"))","v":""},{"$f":"IF($B625=\"N\",\"\",IF(OR('Enrollment Form'!B632<>\"Subscriber\",'Enrollment Form'!C632=\"ROC\",COUNTIF('Enrollment Form'!AS632:AT632,\"Yes\")>=1),\"-\",IF(AND('Enrollment Form'!C632=\"Enroll\",COUNTIF('Enrollment Form'!AS632:AT632,\"No\")=2,'Enrollment Form'!AU632=\"\"),\"N\",\"Y\")))","v":""},{"$f":"IF(OR(B625=\"N\",'Enrollment Form'!B632<>\"Subscriber\",'Enrollment Form'!C632=\"ROC\",'Enrollment Form'!O632<>\"Multiple of Salary\"),\"-\",IF(COUNTA('Enrollment Form'!T632:U632)<2,\"N\",\"Y\"))","v":"-"},{"$f":"IF(B625=\"N\",\"\",IF(OR('Enrollment Form'!C632=\"ROC\",'Enrollment Form'!B632<>\"Subscriber\",'Enrollment Form'!O632=\"Waive\",'Enrollment Form'!O632=\"\"),\"-\",IF('Enrollment Form'!P632=\"\",\"N\",\"Y\")))","v":""},{"$f":"IF($B625=\"N\",\"\",IF(AND('Enrollment Form'!$C632=\"ROC\",'Enrollment Form'!$DS632<>\"\"),\"Y\",IF(AND('Enrollment Form'!$C632=\"ROC\",'Enrollment Form'!$DS632=\"\"),\"N\",IF(AND('Enrollment Form'!$C632=\"Enroll\",'Enrollment Form'!$B632=\"Subscriber\",'Enrollment Form'!$CQ632=\"No\",'Enrollment Form'!$DS632=\"\"),\"N\",IF(AND('Enrollment Form'!$C632=\"Enroll\",'Enrollment Form'!$B632=\"Subscriber\",'Enrollment Form'!$CQ632=\"Yes\"),\"-\",\"Y\")))))","v":""},{"$f":"IF($B625=\"N\",\"\",IF(AND('Enrollment Form'!$C632=\"ROC\",'Enrollment Form'!$DT632<>\"\"),\"Y\",IF(AND('Enrollment Form'!$C632=\"ROC\",'Enrollment Form'!$DT632=\"\"),\"N\",IF(AND('Enrollment Form'!$C632=\"Enroll\",'Enrollment Form'!$B632=\"Subscriber\",'Enrollment Form'!$CQ632=\"No\",'Enrollment Form'!$DT632=\"\"),\"N\",IF(AND('Enrollment Form'!$C632=\"Enroll\",'Enrollment Form'!$B632=\"Subscriber\",'Enrollment Form'!$CQ632=\"Yes\"),\"-\",\"Y\")))))","v":""},{"$f":"IF('Enrollment Form'!AH632=\"\",\"\",IF(ISERROR(SEARCH(\".\",'Enrollment Form'!AH632,SEARCH(\"@\",'Enrollment Form'!AH632))),\"N\",\"Y\"))","v":""},{"$f":"IF(OR($B625=\"N\",'Enrollment Form'!$G632=\"\"),\"\",IF('Enrollment Form'!$B632<>\"Subscriber\",\"-\",IF(COUNTIF('Enrollment Form'!$AS632:$AT632,\"Yes\")=2,\"N\",\"Y\")))","v":""},{"$f":"IF(OR('Enrollment Form'!$CC632=\"\",'Enrollment Form'!$CC632=\"No\"),\"-\",IF(AND('Enrollment Form'!$CC632=\"Yes\",'Enrollment Form'!$CD632=\"\"),\"N\",\"Y\"))","v":"-"},{"$f":"IF(OR('Enrollment Form'!$CE632=\"\",'Enrollment Form'!$CE632=\"No\"),\"-\",IF(AND('Enrollment Form'!$CE632=\"Yes\",'Enrollment Form'!$CF632=\"\"),\"N\",\"Y\"))","v":"-"},{"$f":"IF(OR('Enrollment Form'!$CG632=\"\",'Enrollment Form'!$CG632=\"No\"),\"-\",IF(AND('Enrollment Form'!$CG632=\"Yes\",'Enrollment Form'!$CH632=\"\"),\"N\",\"Y\"))","v":"-"},{"$f":"IF(OR('Enrollment Form'!$CG632=\"\",'Enrollment Form'!$CG632=\"No\"),\"-\",IF(AND('Enrollment Form'!$CG632=\"Yes\",'Enrollment Form'!$CI632=\"\"),\"N\",\"Y\"))","v":"-"},{"$f":"IF('Enrollment Form'!B632<>\"Subscriber\",\"-\",IF(AND('Enrollment Form'!B632=\"Subscriber\",'Enrollment Form'!C632=\"Enroll\",'Enrollment Form'!AA632=\"\"),\"N\",\"Y\"))","v":"-"},{"$f":"IF(OR('Enrollment Form'!B632=\"Subscriber\",'Enrollment Form'!B632=\"\"),\"-\",IF('Enrollment Form'!BI632=\"\",\"N\",\"Y\"))","v":"-"},{"$f":"IF('Enrollment Form'!B632<>\"Subscriber\",\"-\",IF(AND('Enrollment Form'!B632=\"Subscriber\",'Enrollment Form'!G632=\"\"),\"N\",\"Y\"))","v":"-"},{"$f":"IF('Enrollment Form'!A632=\"\",\"\",IF('Enrollment Form'!B632=\"Subscriber\",\"-\",IF(AND('Enrollment Form'!B632<>\"Subscriber\",'Enrollment Form'!G632='Enrollment Form'!H632),\"N\",\"Y\")))","v":""},0]
[633,{"$f":"IF('Enrollment Form'!$A633<>\"\",\"Y\",\"N\")","v":"N"},{"$f":"IF(AND('Enrollment Form'!$B633=\"\",'Enrollment Form'!$C633<>\"\"),\"N\",IF($B626=\"N\",\"\",\"Y\"))","v":""},{"$f":"IF(OR($B626=\"N\",'Enrollment Form'!G633=\"\"),\"\",IF('Enrollment Form'!$B633<>\"Subscriber\",\"\",IF('Enrollment Form'!$G633='Enrollment Form'!$H633,\"Y\",\"N\")))","v":""},{"$f":"IF($B626=\"N\",\"\",IF(AND(COUNTIFS('Enrollment Form'!$H$11:$H$1000,'Enrollment Form'!$H633,'Enrollment Form'!$B$11:$B$1000,'Enrollment Form'!$B633)>1,'Enrollment Form'!$H633<>\"\"),\"N\",\"Y\"))","v":""},{"$f":"IF($B626=\"N\",\"\",IF(LEN('Enrollment Form'!$Y633)=0,\"\",IF(LEN('Enrollment Form'!$Y633)<>5,\"N\",\"Y\")))","v":""},{"$f":"IF($B626=\"N\",\"\",IF(LEN('Enrollment Form'!$AD633=0),\"\",IF(LEN('Enrollment Form'!$AD633)<>5,\"N\",\"Y\")))","v":""},{"$f":"IF($B626=\"N\",\"\",IF(LEN('Enrollment Form'!$BL633=0),\"\",IF(LEN('Enrollment Form'!$BL633)<>5,\"N\",\"Y\")))","v":""},{"$f":"IF($B626=\"N\",\"\",IF(LEN('Enrollment Form'!$AE633)=0,\"\",IF(LEN('Enrollment Form'!$AE633)<>10,\"N\",\"Y\")))","v":""},{"$f":"IF($B626=\"N\",\"\",IF(LEN('Enrollment Form'!$AF633)=0,\"\",IF(LEN('Enrollment Form'!$AF633)<>10,\"N\",\"Y\")))","v":""},{"$f":"IF('Enrollment Form'!$O633<>\"Graded\",\"-\",IF(AND('Enrollment Form'!$O633=\"Graded\",'Enrollment Form'!$AO633<>\"\"),\"Y\",\"N\"))","v":"-"},{"$f":"IF($B626=\"N\",\"\",IF(OR('Enrollment Form'!$B633<>\"Subscriber\",'Enrollment Form'!$C633=\"ROC\"),\"-\",IF(AND('Enrollment Form'!$B633=\"Subscriber\",'Enrollment Form'!$C633=\"Enroll\",'Enrollment Form'!$AJ633<>\"\"),\"Y\",\"N\")))","v":""},{"$f":"IF($B626=\"N\",\"\",IF(OR('Enrollment Form'!$B633<>\"Subscriber\",'Enrollment Form'!$C633=\"ROC\"),\"-\",IF(AND('Enrollment Form'!$B633=\"Subscriber\",'Enrollment Form'!$C633=\"Enroll\",'Enrollment Form'!$AK633<>\"\"),\"Y\",\"N\")))","v":""},{"$f":"IF($B626=\"N\",\"\",IF(OR('Enrollment Form'!$B633<>\"Subscriber\",'Enrollment Form'!$C633=\"ROC\"),\"-\",IF(AND('Enrollment Form'!$B633=\"Subscriber\",'Enrollment Form'!$C633=\"Enroll\",'Enrollment Form'!$AL633<>\"\"),\"Y\",\"N\")))","v":""},{"$f":"IF($B626=\"N\",\"\",IF(OR('Enrollment Form'!$B633<>\"Subscriber\",'Enrollment Form'!$C633=\"ROC\"),\"-\",IF(AND('Enrollment Form'!$B633=\"Subscriber\",'Enrollment Form'!$C633=\"Enroll\",'Enrollment Form'!$AM633<>\"\"),\"Y\",\"N\")))","v":""},{"$f":"IF($B626=\"N\",\"\",IF(OR('Enrollment Form'!$B633<>\"Subscriber\",'Enrollment Form'!$C633=\"ROC\"),\"-\",IF(AND('Enrollment Form'!$B633=\"Subscriber\",'Enrollment Form'!$C633=\"Enroll\",'Enrollment Form'!$AN633<>\"\"),\"Y\",\"N\")))","v":""},{"$f":"IF($B626=\"N\",\"\",IF(OR('Enrollment Form'!$B633<>\"Subscriber\",'Enrollment Form'!$C633=\"ROC\"),\"-\",IF(AND('Enrollment Form'!$B633=\"Subscriber\",'Enrollment Form'!$C633=\"Enroll\",'Enrollment Form'!$AP633<>\"\"),\"Y\",\"N\")))","v":""},{"$f":"IF($B626=\"N\",\"\",IF($Q626=\"-\",\"-\",IF(AND($Q626=\"Y\",'Enrollment Form'!$AP633=\"No\"),\"-\",IF(AND($Q626=\"Y\",'Enrollment Form'!$AP633=\"Yes\",'Enrollment Form'!$AQ633<>\"\"),\"Y\",\"N\"))))","v":""},{"$f":"IF($B626=\"N\",\"\",IF(OR('Enrollment Form'!$B633<>\"Subscriber\",'Enrollment Form'!$C633=\"ROC\"),\"-\",IF(AND('Enrollment Form'!$B633=\"Subscriber\",'Enrollment Form'!$C633=\"Enroll\",'Enrollment Form'!$CO633<>\"\"),\"Y\",\"N\")))","v":""},{"$f":"IF($B626=\"N\",\"\",IF($S626=\"-\",\"-\",IF(AND($S626=\"Y\",'Enrollment Form'!$CO633=\"No\"),\"-\",IF(AND($S626=\"Y\",'Enrollment Form'!$CO633=\"Yes\",'Enrollment Form'!$CP633<>\"\"),\"Y\",\"N\"))))","v":""},{"$f":"IF(OR('Enrollment Form'!$AV633=\"Yes\",'Enrollment Form'!$AV633=\"\"),\"-\",IF(AND('Enrollment Form'!$AV633=\"No\",ISERROR(FIND(\"HMO\",VLOOKUP('Enrollment Form'!G633,'Enrollment Form'!H$11:J$1000,3,FALSE),1))=FALSE,COUNTA('Enrollment Form'!$AW633:$AZ633)=4),\"Y\",\"N\"))","v":"-"},{"$f":"IF($B626=\"N\",\"\",IF('Enrollment Form'!$B633=\"Subscriber\",\"-\",IF(COUNTA('Enrollment Form'!$BE633,'Enrollment Form'!$BG633)=2,\"Y\",\"N\")))","v":""},{"$f":"IF($B626=\"N\",\"\",IF(OR('Enrollment Form'!$AU633=\"\",'Enrollment Form'!$AU633=\"No\"),\"-\",IF(AND('Enrollment Form'!$AU633=\"Yes\",COUNTA('Enrollment Form'!$CK633)=1),\"Y\",\"N\")))","v":""},{"$f":"IF(OR('Enrollment Form'!$CK633=\"\",'Enrollment Form'!$CK633=\"No\"),\"-\",IF(COUNTA('Enrollment Form'!$CM633:$CN633)=2,\"Y\",\"N\"))","v":"-"},{"$f":"IF($B626=\"N\",\"\",IF(COUNTIF('Enrollment Form'!$CZ633:$DO633,\"Other\")=COUNTA('Enrollment Form'!$DF633,'Enrollment Form'!$DA633,'Enrollment Form'!$DK633,'Enrollment Form'!$DP633),\"Y\",\"N\"))","v":""},{"$f":"IF($B626=\"N\",\"\",IF(OR('Enrollment Form'!B633<>\"Subscriber\",'Enrollment Form'!C633=\"ROC\",COUNTIF('Enrollment Form'!AS633:AT633,\"Yes\")>=1),\"-\",IF(AND('Enrollment Form'!C633=\"Enroll\",COUNTIF('Enrollment Form'!AS633:AT633,\"No\")=2,'Enrollment Form'!AU633=\"\"),\"N\",\"Y\")))","v":""},{"$f":"IF(OR(B626=\"N\",'Enrollment Form'!B633<>\"Subscriber\",'Enrollment Form'!C633=\"ROC\",'Enrollment Form'!O633<>\"Multiple of Salary\"),\"-\",IF(COUNTA('Enrollment Form'!T633:U633)<2,\"N\",\"Y\"))","v":"-"},{"$f":"IF(B626=\"N\",\"\",IF(OR('Enrollment Form'!C633=\"ROC\",'Enrollment Form'!B633<>\"Subscriber\",'Enrollment Form'!O633=\"Waive\",'Enrollment Form'!O633=\"\"),\"-\",IF('Enrollment Form'!P633=\"\",\"N\",\"Y\")))","v":""},{"$f":"IF($B626=\"N\",\"\",IF(AND('Enrollment Form'!$C633=\"ROC\",'Enrollment Form'!$DS633<>\"\"),\"Y\",IF(AND('Enrollment Form'!$C633=\"ROC\",'Enrollment Form'!$DS633=\"\"),\"N\",IF(AND('Enrollment Form'!$C633=\"Enroll\",'Enrollment Form'!$B633=\"Subscriber\",'Enrollment Form'!$CQ633=\"No\",'Enrollment Form'!$DS633=\"\"),\"N\",IF(AND('Enrollment Form'!$C633=\"Enroll\",'Enrollment Form'!$B633=\"Subscriber\",'Enrollment Form'!$CQ633=\"Yes\"),\"-\",\"Y\")))))","v":""},{"$f":"IF($B626=\"N\",\"\",IF(AND('Enrollment Form'!$C633=\"ROC\",'Enrollment Form'!$DT633<>\"\"),\"Y\",IF(AND('Enrollment Form'!$C633=\"ROC\",'Enrollment Form'!$DT633=\"\"),\"N\",IF(AND('Enrollment Form'!$C633=\"Enroll\",'Enrollment Form'!$B633=\"Subscriber\",'Enrollment Form'!$CQ633=\"No\",'Enrollment Form'!$DT633=\"\"),\"N\",IF(AND('Enrollment Form'!$C633=\"Enroll\",'Enrollment Form'!$B633=\"Subscriber\",'Enrollment Form'!$CQ633=\"Yes\"),\"-\",\"Y\")))))","v":""},{"$f":"IF('Enrollment Form'!AH633=\"\",\"\",IF(ISERROR(SEARCH(\".\",'Enrollment Form'!AH633,SEARCH(\"@\",'Enrollment Form'!AH633))),\"N\",\"Y\"))","v":""},{"$f":"IF(OR($B626=\"N\",'Enrollment Form'!$G633=\"\"),\"\",IF('Enrollment Form'!$B633<>\"Subscriber\",\"-\",IF(COUNTIF('Enrollment Form'!$AS633:$AT633,\"Yes\")=2,\"N\",\"Y\")))","v":""},{"$f":"IF(OR('Enrollment Form'!$CC633=\"\",'Enrollment Form'!$CC633=\"No\"),\"-\",IF(AND('Enrollment Form'!$CC633=\"Yes\",'Enrollment Form'!$CD633=\"\"),\"N\",\"Y\"))","v":"-"},{"$f":"IF(OR('Enrollment Form'!$CE633=\"\",'Enrollment Form'!$CE633=\"No\"),\"-\",IF(AND('Enrollment Form'!$CE633=\"Yes\",'Enrollment Form'!$CF633=\"\"),\"N\",\"Y\"))","v":"-"},{"$f":"IF(OR('Enrollment Form'!$CG633=\"\",'Enrollment Form'!$CG633=\"No\"),\"-\",IF(AND('Enrollment Form'!$CG633=\"Yes\",'Enrollment Form'!$CH633=\"\"),\"N\",\"Y\"))","v":"-"},{"$f":"IF(OR('Enrollment Form'!$CG633=\"\",'Enrollment Form'!$CG633=\"No\"),\"-\",IF(AND('Enrollment Form'!$CG633=\"Yes\",'Enrollment Form'!$CI633=\"\"),\"N\",\"Y\"))","v":"-"},{"$f":"IF('Enrollment Form'!B633<>\"Subscriber\",\"-\",IF(AND('Enrollment Form'!B633=\"Subscriber\",'Enrollment Form'!C633=\"Enroll\",'Enrollment Form'!AA633=\"\"),\"N\",\"Y\"))","v":"-"},{"$f":"IF(OR('Enrollment Form'!B633=\"Subscriber\",'Enrollment Form'!B633=\"\"),\"-\",IF('Enrollment Form'!BI633=\"\",\"N\",\"Y\"))","v":"-"},{"$f":"IF('Enrollment Form'!B633<>\"Subscriber\",\"-\",IF(AND('Enrollment Form'!B633=\"Subscriber\",'Enrollment Form'!G633=\"\"),\"N\",\"Y\"))","v":"-"},{"$f":"IF('Enrollment Form'!A633=\"\",\"\",IF('Enrollment Form'!B633=\"Subscriber\",\"-\",IF(AND('Enrollment Form'!B633<>\"Subscriber\",'Enrollment Form'!G633='Enrollment Form'!H633),\"N\",\"Y\")))","v":""},0]
[634,{"$f":"IF('Enrollment Form'!$A634<>\"\",\"Y\",\"N\")","v":"N"},{"$f":"IF(AND('Enrollment Form'!$B634=\"\",'Enrollment Form'!$C634<>\"\"),\"N\",IF($B627=\"N\",\"\",\"Y\"))","v":""},{"$f":"IF(OR($B627=\"N\",'Enrollment Form'!G634=\"\"),\"\",IF('Enrollment Form'!$B634<>\"Subscriber\",\"\",IF('Enrollment Form'!$G634='Enrollment Form'!$H634,\"Y\",\"N\")))","v":""},{"$f":"IF($B627=\"N\",\"\",IF(AND(COUNTIFS('Enrollment Form'!$H$11:$H$1000,'Enrollment Form'!$H634,'Enrollment Form'!$B$11:$B$1000,'Enrollment Form'!$B634)>1,'Enrollment Form'!$H634<>\"\"),\"N\",\"Y\"))","v":""},{"$f":"IF($B627=\"N\",\"\",IF(LEN('Enrollment Form'!$Y634)=0,\"\",IF(LEN('Enrollment Form'!$Y634)<>5,\"N\",\"Y\")))","v":""},{"$f":"IF($B627=\"N\",\"\",IF(LEN('Enrollment Form'!$AD634=0),\"\",IF(LEN('Enrollment Form'!$AD634)<>5,\"N\",\"Y\")))","v":""},{"$f":"IF($B627=\"N\",\"\",IF(LEN('Enrollment Form'!$BL634=0),\"\",IF(LEN('Enrollment Form'!$BL634)<>5,\"N\",\"Y\")))","v":""},{"$f":"IF($B627=\"N\",\"\",IF(LEN('Enrollment Form'!$AE634)=0,\"\",IF(LEN('Enrollment Form'!$AE634)<>10,\"N\",\"Y\")))","v":""},{"$f":"IF($B627=\"N\",\"\",IF(LEN('Enrollment Form'!$AF634)=0,\"\",IF(LEN('Enrollment Form'!$AF634)<>10,\"N\",\"Y\")))","v":""},{"$f":"IF('Enrollment Form'!$O634<>\"Graded\",\"-\",IF(AND('Enrollment Form'!$O634=\"Graded\",'Enrollment Form'!$AO634<>\"\"),\"Y\",\"N\"))","v":"-"},{"$f":"IF($B627=\"N\",\"\",IF(OR('Enrollment Form'!$B634<>\"Subscriber\",'Enrollment Form'!$C634=\"ROC\"),\"-\",IF(AND('Enrollment Form'!$B634=\"Subscriber\",'Enrollment Form'!$C634=\"Enroll\",'Enrollment Form'!$AJ634<>\"\"),\"Y\",\"N\")))","v":""},{"$f":"IF($B627=\"N\",\"\",IF(OR('Enrollment Form'!$B634<>\"Subscriber\",'Enrollment Form'!$C634=\"ROC\"),\"-\",IF(AND('Enrollment Form'!$B634=\"Subscriber\",'Enrollment Form'!$C634=\"Enroll\",'Enrollment Form'!$AK634<>\"\"),\"Y\",\"N\")))","v":""},{"$f":"IF($B627=\"N\",\"\",IF(OR('Enrollment Form'!$B634<>\"Subscriber\",'Enrollment Form'!$C634=\"ROC\"),\"-\",IF(AND('Enrollment Form'!$B634=\"Subscriber\",'Enrollment Form'!$C634=\"Enroll\",'Enrollment Form'!$AL634<>\"\"),\"Y\",\"N\")))","v":""},{"$f":"IF($B627=\"N\",\"\",IF(OR('Enrollment Form'!$B634<>\"Subscriber\",'Enrollment Form'!$C634=\"ROC\"),\"-\",IF(AND('Enrollment Form'!$B634=\"Subscriber\",'Enrollment Form'!$C634=\"Enroll\",'Enrollment Form'!$AM634<>\"\"),\"Y\",\"N\")))","v":""},{"$f":"IF($B627=\"N\",\"\",IF(OR('Enrollment Form'!$B634<>\"Subscriber\",'Enrollment Form'!$C634=\"ROC\"),\"-\",IF(AND('Enrollment Form'!$B634=\"Subscriber\",'Enrollment Form'!$C634=\"Enroll\",'Enrollment Form'!$AN634<>\"\"),\"Y\",\"N\")))","v":""},{"$f":"IF($B627=\"N\",\"\",IF(OR('Enrollment Form'!$B634<>\"Subscriber\",'Enrollment Form'!$C634=\"ROC\"),\"-\",IF(AND('Enrollment Form'!$B634=\"Subscriber\",'Enrollment Form'!$C634=\"Enroll\",'Enrollment Form'!$AP634<>\"\"),\"Y\",\"N\")))","v":""},{"$f":"IF($B627=\"N\",\"\",IF($Q627=\"-\",\"-\",IF(AND($Q627=\"Y\",'Enrollment Form'!$AP634=\"No\"),\"-\",IF(AND($Q627=\"Y\",'Enrollment Form'!$AP634=\"Yes\",'Enrollment Form'!$AQ634<>\"\"),\"Y\",\"N\"))))","v":""},{"$f":"IF($B627=\"N\",\"\",IF(OR('Enrollment Form'!$B634<>\"Subscriber\",'Enrollment Form'!$C634=\"ROC\"),\"-\",IF(AND('Enrollment Form'!$B634=\"Subscriber\",'Enrollment Form'!$C634=\"Enroll\",'Enrollment Form'!$CO634<>\"\"),\"Y\",\"N\")))","v":""},{"$f":"IF($B627=\"N\",\"\",IF($S627=\"-\",\"-\",IF(AND($S627=\"Y\",'Enrollment Form'!$CO634=\"No\"),\"-\",IF(AND($S627=\"Y\",'Enrollment Form'!$CO634=\"Yes\",'Enrollment Form'!$CP634<>\"\"),\"Y\",\"N\"))))","v":""},{"$f":"IF(OR('Enrollment Form'!$AV634=\"Yes\",'Enrollment Form'!$AV634=\"\"),\"-\",IF(AND('Enrollment Form'!$AV634=\"No\",ISERROR(FIND(\"HMO\",VLOOKUP('Enrollment Form'!G634,'Enrollment Form'!H$11:J$1000,3,FALSE),1))=FALSE,COUNTA('Enrollment Form'!$AW634:$AZ634)=4),\"Y\",\"N\"))","v":"-"},{"$f":"IF($B627=\"N\",\"\",IF('Enrollment Form'!$B634=\"Subscriber\",\"-\",IF(COUNTA('Enrollment Form'!$BE634,'Enrollment Form'!$BG634)=2,\"Y\",\"N\")))","v":""},{"$f":"IF($B627=\"N\",\"\",IF(OR('Enrollment Form'!$AU634=\"\",'Enrollment Form'!$AU634=\"No\"),\"-\",IF(AND('Enrollment Form'!$AU634=\"Yes\",COUNTA('Enrollment Form'!$CK634)=1),\"Y\",\"N\")))","v":""},{"$f":"IF(OR('Enrollment Form'!$CK634=\"\",'Enrollment Form'!$CK634=\"No\"),\"-\",IF(COUNTA('Enrollment Form'!$CM634:$CN634)=2,\"Y\",\"N\"))","v":"-"},{"$f":"IF($B627=\"N\",\"\",IF(COUNTIF('Enrollment Form'!$CZ634:$DO634,\"Other\")=COUNTA('Enrollment Form'!$DF634,'Enrollment Form'!$DA634,'Enrollment Form'!$DK634,'Enrollment Form'!$DP634),\"Y\",\"N\"))","v":""},{"$f":"IF($B627=\"N\",\"\",IF(OR('Enrollment Form'!B634<>\"Subscriber\",'Enrollment Form'!C634=\"ROC\",COUNTIF('Enrollment Form'!AS634:AT634,\"Yes\")>=1),\"-\",IF(AND('Enrollment Form'!C634=\"Enroll\",COUNTIF('Enrollment Form'!AS634:AT634,\"No\")=2,'Enrollment Form'!AU634=\"\"),\"N\",\"Y\")))","v":""},{"$f":"IF(OR(B627=\"N\",'Enrollment Form'!B634<>\"Subscriber\",'Enrollment Form'!C634=\"ROC\",'Enrollment Form'!O634<>\"Multiple of Salary\"),\"-\",IF(COUNTA('Enrollment Form'!T634:U634)<2,\"N\",\"Y\"))","v":"-"},{"$f":"IF(B627=\"N\",\"\",IF(OR('Enrollment Form'!C634=\"ROC\",'Enrollment Form'!B634<>\"Subscriber\",'Enrollment Form'!O634=\"Waive\",'Enrollment Form'!O634=\"\"),\"-\",IF('Enrollment Form'!P634=\"\",\"N\",\"Y\")))","v":""},{"$f":"IF($B627=\"N\",\"\",IF(AND('Enrollment Form'!$C634=\"ROC\",'Enrollment Form'!$DS634<>\"\"),\"Y\",IF(AND('Enrollment Form'!$C634=\"ROC\",'Enrollment Form'!$DS634=\"\"),\"N\",IF(AND('Enrollment Form'!$C634=\"Enroll\",'Enrollment Form'!$B634=\"Subscriber\",'Enrollment Form'!$CQ634=\"No\",'Enrollment Form'!$DS634=\"\"),\"N\",IF(AND('Enrollment Form'!$C634=\"Enroll\",'Enrollment Form'!$B634=\"Subscriber\",'Enrollment Form'!$CQ634=\"Yes\"),\"-\",\"Y\")))))","v":""},{"$f":"IF($B627=\"N\",\"\",IF(AND('Enrollment Form'!$C634=\"ROC\",'Enrollment Form'!$DT634<>\"\"),\"Y\",IF(AND('Enrollment Form'!$C634=\"ROC\",'Enrollment Form'!$DT634=\"\"),\"N\",IF(AND('Enrollment Form'!$C634=\"Enroll\",'Enrollment Form'!$B634=\"Subscriber\",'Enrollment Form'!$CQ634=\"No\",'Enrollment Form'!$DT634=\"\"),\"N\",IF(AND('Enrollment Form'!$C634=\"Enroll\",'Enrollment Form'!$B634=\"Subscriber\",'Enrollment Form'!$CQ634=\"Yes\"),\"-\",\"Y\")))))","v":""},{"$f":"IF('Enrollment Form'!AH634=\"\",\"\",IF(ISERROR(SEARCH(\".\",'Enrollment Form'!AH634,SEARCH(\"@\",'Enrollment Form'!AH634))),\"N\",\"Y\"))","v":""},{"$f":"IF(OR($B627=\"N\",'Enrollment Form'!$G634=\"\"),\"\",IF('Enrollment Form'!$B634<>\"Subscriber\",\"-\",IF(COUNTIF('Enrollment Form'!$AS634:$AT634,\"Yes\")=2,\"N\",\"Y\")))","v":""},{"$f":"IF(OR('Enrollment Form'!$CC634=\"\",'Enrollment Form'!$CC634=\"No\"),\"-\",IF(AND('Enrollment Form'!$CC634=\"Yes\",'Enrollment Form'!$CD634=\"\"),\"N\",\"Y\"))","v":"-"},{"$f":"IF(OR('Enrollment Form'!$CE634=\"\",'Enrollment Form'!$CE634=\"No\"),\"-\",IF(AND('Enrollment Form'!$CE634=\"Yes\",'Enrollment Form'!$CF634=\"\"),\"N\",\"Y\"))","v":"-"},{"$f":"IF(OR('Enrollment Form'!$CG634=\"\",'Enrollment Form'!$CG634=\"No\"),\"-\",IF(AND('Enrollment Form'!$CG634=\"Yes\",'Enrollment Form'!$CH634=\"\"),\"N\",\"Y\"))","v":"-"},{"$f":"IF(OR('Enrollment Form'!$CG634=\"\",'Enrollment Form'!$CG634=\"No\"),\"-\",IF(AND('Enrollment Form'!$CG634=\"Yes\",'Enrollment Form'!$CI634=\"\"),\"N\",\"Y\"))","v":"-"},{"$f":"IF('Enrollment Form'!B634<>\"Subscriber\",\"-\",IF(AND('Enrollment Form'!B634=\"Subscriber\",'Enrollment Form'!C634=\"Enroll\",'Enrollment Form'!AA634=\"\"),\"N\",\"Y\"))","v":"-"},{"$f":"IF(OR('Enrollment Form'!B634=\"Subscriber\",'Enrollment Form'!B634=\"\"),\"-\",IF('Enrollment Form'!BI634=\"\",\"N\",\"Y\"))","v":"-"},{"$f":"IF('Enrollment Form'!B634<>\"Subscriber\",\"-\",IF(AND('Enrollment Form'!B634=\"Subscriber\",'Enrollment Form'!G634=\"\"),\"N\",\"Y\"))","v":"-"},{"$f":"IF('Enrollment Form'!A634=\"\",\"\",IF('Enrollment Form'!B634=\"Subscriber\",\"-\",IF(AND('Enrollment Form'!B634<>\"Subscriber\",'Enrollment Form'!G634='Enrollment Form'!H634),\"N\",\"Y\")))","v":""},0]
[635,{"$f":"IF('Enrollment Form'!$A635<>\"\",\"Y\",\"N\")","v":"N"},{"$f":"IF(AND('Enrollment Form'!$B635=\"\",'Enrollment Form'!$C635<>\"\"),\"N\",IF($B628=\"N\",\"\",\"Y\"))","v":""},{"$f":"IF(OR($B628=\"N\",'Enrollment Form'!G635=\"\"),\"\",IF('Enrollment Form'!$B635<>\"Subscriber\",\"\",IF('Enrollment Form'!$G635='Enrollment Form'!$H635,\"Y\",\"N\")))","v":""},{"$f":"IF($B628=\"N\",\"\",IF(AND(COUNTIFS('Enrollment Form'!$H$11:$H$1000,'Enrollment Form'!$H635,'Enrollment Form'!$B$11:$B$1000,'Enrollment Form'!$B635)>1,'Enrollment Form'!$H635<>\"\"),\"N\",\"Y\"))","v":""},{"$f":"IF($B628=\"N\",\"\",IF(LEN('Enrollment Form'!$Y635)=0,\"\",IF(LEN('Enrollment Form'!$Y635)<>5,\"N\",\"Y\")))","v":""},{"$f":"IF($B628=\"N\",\"\",IF(LEN('Enrollment Form'!$AD635=0),\"\",IF(LEN('Enrollment Form'!$AD635)<>5,\"N\",\"Y\")))","v":""},{"$f":"IF($B628=\"N\",\"\",IF(LEN('Enrollment Form'!$BL635=0),\"\",IF(LEN('Enrollment Form'!$BL635)<>5,\"N\",\"Y\")))","v":""},{"$f":"IF($B628=\"N\",\"\",IF(LEN('Enrollment Form'!$AE635)=0,\"\",IF(LEN('Enrollment Form'!$AE635)<>10,\"N\",\"Y\")))","v":""},{"$f":"IF($B628=\"N\",\"\",IF(LEN('Enrollment Form'!$AF635)=0,\"\",IF(LEN('Enrollment Form'!$AF635)<>10,\"N\",\"Y\")))","v":""},{"$f":"IF('Enrollment Form'!$O635<>\"Graded\",\"-\",IF(AND('Enrollment Form'!$O635=\"Graded\",'Enrollment Form'!$AO635<>\"\"),\"Y\",\"N\"))","v":"-"},{"$f":"IF($B628=\"N\",\"\",IF(OR('Enrollment Form'!$B635<>\"Subscriber\",'Enrollment Form'!$C635=\"ROC\"),\"-\",IF(AND('Enrollment Form'!$B635=\"Subscriber\",'Enrollment Form'!$C635=\"Enroll\",'Enrollment Form'!$AJ635<>\"\"),\"Y\",\"N\")))","v":""},{"$f":"IF($B628=\"N\",\"\",IF(OR('Enrollment Form'!$B635<>\"Subscriber\",'Enrollment Form'!$C635=\"ROC\"),\"-\",IF(AND('Enrollment Form'!$B635=\"Subscriber\",'Enrollment Form'!$C635=\"Enroll\",'Enrollment Form'!$AK635<>\"\"),\"Y\",\"N\")))","v":""},{"$f":"IF($B628=\"N\",\"\",IF(OR('Enrollment Form'!$B635<>\"Subscriber\",'Enrollment Form'!$C635=\"ROC\"),\"-\",IF(AND('Enrollment Form'!$B635=\"Subscriber\",'Enrollment Form'!$C635=\"Enroll\",'Enrollment Form'!$AL635<>\"\"),\"Y\",\"N\")))","v":""},{"$f":"IF($B628=\"N\",\"\",IF(OR('Enrollment Form'!$B635<>\"Subscriber\",'Enrollment Form'!$C635=\"ROC\"),\"-\",IF(AND('Enrollment Form'!$B635=\"Subscriber\",'Enrollment Form'!$C635=\"Enroll\",'Enrollment Form'!$AM635<>\"\"),\"Y\",\"N\")))","v":""},{"$f":"IF($B628=\"N\",\"\",IF(OR('Enrollment Form'!$B635<>\"Subscriber\",'Enrollment Form'!$C635=\"ROC\"),\"-\",IF(AND('Enrollment Form'!$B635=\"Subscriber\",'Enrollment Form'!$C635=\"Enroll\",'Enrollment Form'!$AN635<>\"\"),\"Y\",\"N\")))","v":""},{"$f":"IF($B628=\"N\",\"\",IF(OR('Enrollment Form'!$B635<>\"Subscriber\",'Enrollment Form'!$C635=\"ROC\"),\"-\",IF(AND('Enrollment Form'!$B635=\"Subscriber\",'Enrollment Form'!$C635=\"Enroll\",'Enrollment Form'!$AP635<>\"\"),\"Y\",\"N\")))","v":""},{"$f":"IF($B628=\"N\",\"\",IF($Q628=\"-\",\"-\",IF(AND($Q628=\"Y\",'Enrollment Form'!$AP635=\"No\"),\"-\",IF(AND($Q628=\"Y\",'Enrollment Form'!$AP635=\"Yes\",'Enrollment Form'!$AQ635<>\"\"),\"Y\",\"N\"))))","v":""},{"$f":"IF($B628=\"N\",\"\",IF(OR('Enrollment Form'!$B635<>\"Subscriber\",'Enrollment Form'!$C635=\"ROC\"),\"-\",IF(AND('Enrollment Form'!$B635=\"Subscriber\",'Enrollment Form'!$C635=\"Enroll\",'Enrollment Form'!$CO635<>\"\"),\"Y\",\"N\")))","v":""},{"$f":"IF($B628=\"N\",\"\",IF($S628=\"-\",\"-\",IF(AND($S628=\"Y\",'Enrollment Form'!$CO635=\"No\"),\"-\",IF(AND($S628=\"Y\",'Enrollment Form'!$CO635=\"Yes\",'Enrollment Form'!$CP635<>\"\"),\"Y\",\"N\"))))","v":""},{"$f":"IF(OR('Enrollment Form'!$AV635=\"Yes\",'Enrollment Form'!$AV635=\"\"),\"-\",IF(AND('Enrollment Form'!$AV635=\"No\",ISERROR(FIND(\"HMO\",VLOOKUP('Enrollment Form'!G635,'Enrollment Form'!H$11:J$1000,3,FALSE),1))=FALSE,COUNTA('Enrollment Form'!$AW635:$AZ635)=4),\"Y\",\"N\"))","v":"-"},{"$f":"IF($B628=\"N\",\"\",IF('Enrollment Form'!$B635=\"Subscriber\",\"-\",IF(COUNTA('Enrollment Form'!$BE635,'Enrollment Form'!$BG635)=2,\"Y\",\"N\")))","v":""},{"$f":"IF($B628=\"N\",\"\",IF(OR('Enrollment Form'!$AU635=\"\",'Enrollment Form'!$AU635=\"No\"),\"-\",IF(AND('Enrollment Form'!$AU635=\"Yes\",COUNTA('Enrollment Form'!$CK635)=1),\"Y\",\"N\")))","v":""},{"$f":"IF(OR('Enrollment Form'!$CK635=\"\",'Enrollment Form'!$CK635=\"No\"),\"-\",IF(COUNTA('Enrollment Form'!$CM635:$CN635)=2,\"Y\",\"N\"))","v":"-"},{"$f":"IF($B628=\"N\",\"\",IF(COUNTIF('Enrollment Form'!$CZ635:$DO635,\"Other\")=COUNTA('Enrollment Form'!$DF635,'Enrollment Form'!$DA635,'Enrollment Form'!$DK635,'Enrollment Form'!$DP635),\"Y\",\"N\"))","v":""},{"$f":"IF($B628=\"N\",\"\",IF(OR('Enrollment Form'!B635<>\"Subscriber\",'Enrollment Form'!C635=\"ROC\",COUNTIF('Enrollment Form'!AS635:AT635,\"Yes\")>=1),\"-\",IF(AND('Enrollment Form'!C635=\"Enroll\",COUNTIF('Enrollment Form'!AS635:AT635,\"No\")=2,'Enrollment Form'!AU635=\"\"),\"N\",\"Y\")))","v":""},{"$f":"IF(OR(B628=\"N\",'Enrollment Form'!B635<>\"Subscriber\",'Enrollment Form'!C635=\"ROC\",'Enrollment Form'!O635<>\"Multiple of Salary\"),\"-\",IF(COUNTA('Enrollment Form'!T635:U635)<2,\"N\",\"Y\"))","v":"-"},{"$f":"IF(B628=\"N\",\"\",IF(OR('Enrollment Form'!C635=\"ROC\",'Enrollment Form'!B635<>\"Subscriber\",'Enrollment Form'!O635=\"Waive\",'Enrollment Form'!O635=\"\"),\"-\",IF('Enrollment Form'!P635=\"\",\"N\",\"Y\")))","v":""},{"$f":"IF($B628=\"N\",\"\",IF(AND('Enrollment Form'!$C635=\"ROC\",'Enrollment Form'!$DS635<>\"\"),\"Y\",IF(AND('Enrollment Form'!$C635=\"ROC\",'Enrollment Form'!$DS635=\"\"),\"N\",IF(AND('Enrollment Form'!$C635=\"Enroll\",'Enrollment Form'!$B635=\"Subscriber\",'Enrollment Form'!$CQ635=\"No\",'Enrollment Form'!$DS635=\"\"),\"N\",IF(AND('Enrollment Form'!$C635=\"Enroll\",'Enrollment Form'!$B635=\"Subscriber\",'Enrollment Form'!$CQ635=\"Yes\"),\"-\",\"Y\")))))","v":""},{"$f":"IF($B628=\"N\",\"\",IF(AND('Enrollment Form'!$C635=\"ROC\",'Enrollment Form'!$DT635<>\"\"),\"Y\",IF(AND('Enrollment Form'!$C635=\"ROC\",'Enrollment Form'!$DT635=\"\"),\"N\",IF(AND('Enrollment Form'!$C635=\"Enroll\",'Enrollment Form'!$B635=\"Subscriber\",'Enrollment Form'!$CQ635=\"No\",'Enrollment Form'!$DT635=\"\"),\"N\",IF(AND('Enrollment Form'!$C635=\"Enroll\",'Enrollment Form'!$B635=\"Subscriber\",'Enrollment Form'!$CQ635=\"Yes\"),\"-\",\"Y\")))))","v":""},{"$f":"IF('Enrollment Form'!AH635=\"\",\"\",IF(ISERROR(SEARCH(\".\",'Enrollment Form'!AH635,SEARCH(\"@\",'Enrollment Form'!AH635))),\"N\",\"Y\"))","v":""},{"$f":"IF(OR($B628=\"N\",'Enrollment Form'!$G635=\"\"),\"\",IF('Enrollment Form'!$B635<>\"Subscriber\",\"-\",IF(COUNTIF('Enrollment Form'!$AS635:$AT635,\"Yes\")=2,\"N\",\"Y\")))","v":""},{"$f":"IF(OR('Enrollment Form'!$CC635=\"\",'Enrollment Form'!$CC635=\"No\"),\"-\",IF(AND('Enrollment Form'!$CC635=\"Yes\",'Enrollment Form'!$CD635=\"\"),\"N\",\"Y\"))","v":"-"},{"$f":"IF(OR('Enrollment Form'!$CE635=\"\",'Enrollment Form'!$CE635=\"No\"),\"-\",IF(AND('Enrollment Form'!$CE635=\"Yes\",'Enrollment Form'!$CF635=\"\"),\"N\",\"Y\"))","v":"-"},{"$f":"IF(OR('Enrollment Form'!$CG635=\"\",'Enrollment Form'!$CG635=\"No\"),\"-\",IF(AND('Enrollment Form'!$CG635=\"Yes\",'Enrollment Form'!$CH635=\"\"),\"N\",\"Y\"))","v":"-"},{"$f":"IF(OR('Enrollment Form'!$CG635=\"\",'Enrollment Form'!$CG635=\"No\"),\"-\",IF(AND('Enrollment Form'!$CG635=\"Yes\",'Enrollment Form'!$CI635=\"\"),\"N\",\"Y\"))","v":"-"},{"$f":"IF('Enrollment Form'!B635<>\"Subscriber\",\"-\",IF(AND('Enrollment Form'!B635=\"Subscriber\",'Enrollment Form'!C635=\"Enroll\",'Enrollment Form'!AA635=\"\"),\"N\",\"Y\"))","v":"-"},{"$f":"IF(OR('Enrollment Form'!B635=\"Subscriber\",'Enrollment Form'!B635=\"\"),\"-\",IF('Enrollment Form'!BI635=\"\",\"N\",\"Y\"))","v":"-"},{"$f":"IF('Enrollment Form'!B635<>\"Subscriber\",\"-\",IF(AND('Enrollment Form'!B635=\"Subscriber\",'Enrollment Form'!G635=\"\"),\"N\",\"Y\"))","v":"-"},{"$f":"IF('Enrollment Form'!A635=\"\",\"\",IF('Enrollment Form'!B635=\"Subscriber\",\"-\",IF(AND('Enrollment Form'!B635<>\"Subscriber\",'Enrollment Form'!G635='Enrollment Form'!H635),\"N\",\"Y\")))","v":""},0]
[636,{"$f":"IF('Enrollment Form'!$A636<>\"\",\"Y\",\"N\")","v":"N"},{"$f":"IF(AND('Enrollment Form'!$B636=\"\",'Enrollment Form'!$C636<>\"\"),\"N\",IF($B629=\"N\",\"\",\"Y\"))","v":""},{"$f":"IF(OR($B629=\"N\",'Enrollment Form'!G636=\"\"),\"\",IF('Enrollment Form'!$B636<>\"Subscriber\",\"\",IF('Enrollment Form'!$G636='Enrollment Form'!$H636,\"Y\",\"N\")))","v":""},{"$f":"IF($B629=\"N\",\"\",IF(AND(COUNTIFS('Enrollment Form'!$H$11:$H$1000,'Enrollment Form'!$H636,'Enrollment Form'!$B$11:$B$1000,'Enrollment Form'!$B636)>1,'Enrollment Form'!$H636<>\"\"),\"N\",\"Y\"))","v":""},{"$f":"IF($B629=\"N\",\"\",IF(LEN('Enrollment Form'!$Y636)=0,\"\",IF(LEN('Enrollment Form'!$Y636)<>5,\"N\",\"Y\")))","v":""},{"$f":"IF($B629=\"N\",\"\",IF(LEN('Enrollment Form'!$AD636=0),\"\",IF(LEN('Enrollment Form'!$AD636)<>5,\"N\",\"Y\")))","v":""},{"$f":"IF($B629=\"N\",\"\",IF(LEN('Enrollment Form'!$BL636=0),\"\",IF(LEN('Enrollment Form'!$BL636)<>5,\"N\",\"Y\")))","v":""},{"$f":"IF($B629=\"N\",\"\",IF(LEN('Enrollment Form'!$AE636)=0,\"\",IF(LEN('Enrollment Form'!$AE636)<>10,\"N\",\"Y\")))","v":""},{"$f":"IF($B629=\"N\",\"\",IF(LEN('Enrollment Form'!$AF636)=0,\"\",IF(LEN('Enrollment Form'!$AF636)<>10,\"N\",\"Y\")))","v":""},{"$f":"IF('Enrollment Form'!$O636<>\"Graded\",\"-\",IF(AND('Enrollment Form'!$O636=\"Graded\",'Enrollment Form'!$AO636<>\"\"),\"Y\",\"N\"))","v":"-"},{"$f":"IF($B629=\"N\",\"\",IF(OR('Enrollment Form'!$B636<>\"Subscriber\",'Enrollment Form'!$C636=\"ROC\"),\"-\",IF(AND('Enrollment Form'!$B636=\"Subscriber\",'Enrollment Form'!$C636=\"Enroll\",'Enrollment Form'!$AJ636<>\"\"),\"Y\",\"N\")))","v":""},{"$f":"IF($B629=\"N\",\"\",IF(OR('Enrollment Form'!$B636<>\"Subscriber\",'Enrollment Form'!$C636=\"ROC\"),\"-\",IF(AND('Enrollment Form'!$B636=\"Subscriber\",'Enrollment Form'!$C636=\"Enroll\",'Enrollment Form'!$AK636<>\"\"),\"Y\",\"N\")))","v":""},{"$f":"IF($B629=\"N\",\"\",IF(OR('Enrollment Form'!$B636<>\"Subscriber\",'Enrollment Form'!$C636=\"ROC\"),\"-\",IF(AND('Enrollment Form'!$B636=\"Subscriber\",'Enrollment Form'!$C636=\"Enroll\",'Enrollment Form'!$AL636<>\"\"),\"Y\",\"N\")))","v":""},{"$f":"IF($B629=\"N\",\"\",IF(OR('Enrollment Form'!$B636<>\"Subscriber\",'Enrollment Form'!$C636=\"ROC\"),\"-\",IF(AND('Enrollment Form'!$B636=\"Subscriber\",'Enrollment Form'!$C636=\"Enroll\",'Enrollment Form'!$AM636<>\"\"),\"Y\",\"N\")))","v":""},{"$f":"IF($B629=\"N\",\"\",IF(OR('Enrollment Form'!$B636<>\"Subscriber\",'Enrollment Form'!$C636=\"ROC\"),\"-\",IF(AND('Enrollment Form'!$B636=\"Subscriber\",'Enrollment Form'!$C636=\"Enroll\",'Enrollment Form'!$AN636<>\"\"),\"Y\",\"N\")))","v":""},{"$f":"IF($B629=\"N\",\"\",IF(OR('Enrollment Form'!$B636<>\"Subscriber\",'Enrollment Form'!$C636=\"ROC\"),\"-\",IF(AND('Enrollment Form'!$B636=\"Subscriber\",'Enrollment Form'!$C636=\"Enroll\",'Enrollment Form'!$AP636<>\"\"),\"Y\",\"N\")))","v":""},{"$f":"IF($B629=\"N\",\"\",IF($Q629=\"-\",\"-\",IF(AND($Q629=\"Y\",'Enrollment Form'!$AP636=\"No\"),\"-\",IF(AND($Q629=\"Y\",'Enrollment Form'!$AP636=\"Yes\",'Enrollment Form'!$AQ636<>\"\"),\"Y\",\"N\"))))","v":""},{"$f":"IF($B629=\"N\",\"\",IF(OR('Enrollment Form'!$B636<>\"Subscriber\",'Enrollment Form'!$C636=\"ROC\"),\"-\",IF(AND('Enrollment Form'!$B636=\"Subscriber\",'Enrollment Form'!$C636=\"Enroll\",'Enrollment Form'!$CO636<>\"\"),\"Y\",\"N\")))","v":""},{"$f":"IF($B629=\"N\",\"\",IF($S629=\"-\",\"-\",IF(AND($S629=\"Y\",'Enrollment Form'!$CO636=\"No\"),\"-\",IF(AND($S629=\"Y\",'Enrollment Form'!$CO636=\"Yes\",'Enrollment Form'!$CP636<>\"\"),\"Y\",\"N\"))))","v":""},{"$f":"IF(OR('Enrollment Form'!$AV636=\"Yes\",'Enrollment Form'!$AV636=\"\"),\"-\",IF(AND('Enrollment Form'!$AV636=\"No\",ISERROR(FIND(\"HMO\",VLOOKUP('Enrollment Form'!G636,'Enrollment Form'!H$11:J$1000,3,FALSE),1))=FALSE,COUNTA('Enrollment Form'!$AW636:$AZ636)=4),\"Y\",\"N\"))","v":"-"},{"$f":"IF($B629=\"N\",\"\",IF('Enrollment Form'!$B636=\"Subscriber\",\"-\",IF(COUNTA('Enrollment Form'!$BE636,'Enrollment Form'!$BG636)=2,\"Y\",\"N\")))","v":""},{"$f":"IF($B629=\"N\",\"\",IF(OR('Enrollment Form'!$AU636=\"\",'Enrollment Form'!$AU636=\"No\"),\"-\",IF(AND('Enrollment Form'!$AU636=\"Yes\",COUNTA('Enrollment Form'!$CK636)=1),\"Y\",\"N\")))","v":""},{"$f":"IF(OR('Enrollment Form'!$CK636=\"\",'Enrollment Form'!$CK636=\"No\"),\"-\",IF(COUNTA('Enrollment Form'!$CM636:$CN636)=2,\"Y\",\"N\"))","v":"-"},{"$f":"IF($B629=\"N\",\"\",IF(COUNTIF('Enrollment Form'!$CZ636:$DO636,\"Other\")=COUNTA('Enrollment Form'!$DF636,'Enrollment Form'!$DA636,'Enrollment Form'!$DK636,'Enrollment Form'!$DP636),\"Y\",\"N\"))","v":""},{"$f":"IF($B629=\"N\",\"\",IF(OR('Enrollment Form'!B636<>\"Subscriber\",'Enrollment Form'!C636=\"ROC\",COUNTIF('Enrollment Form'!AS636:AT636,\"Yes\")>=1),\"-\",IF(AND('Enrollment Form'!C636=\"Enroll\",COUNTIF('Enrollment Form'!AS636:AT636,\"No\")=2,'Enrollment Form'!AU636=\"\"),\"N\",\"Y\")))","v":""},{"$f":"IF(OR(B629=\"N\",'Enrollment Form'!B636<>\"Subscriber\",'Enrollment Form'!C636=\"ROC\",'Enrollment Form'!O636<>\"Multiple of Salary\"),\"-\",IF(COUNTA('Enrollment Form'!T636:U636)<2,\"N\",\"Y\"))","v":"-"},{"$f":"IF(B629=\"N\",\"\",IF(OR('Enrollment Form'!C636=\"ROC\",'Enrollment Form'!B636<>\"Subscriber\",'Enrollment Form'!O636=\"Waive\",'Enrollment Form'!O636=\"\"),\"-\",IF('Enrollment Form'!P636=\"\",\"N\",\"Y\")))","v":""},{"$f":"IF($B629=\"N\",\"\",IF(AND('Enrollment Form'!$C636=\"ROC\",'Enrollment Form'!$DS636<>\"\"),\"Y\",IF(AND('Enrollment Form'!$C636=\"ROC\",'Enrollment Form'!$DS636=\"\"),\"N\",IF(AND('Enrollment Form'!$C636=\"Enroll\",'Enrollment Form'!$B636=\"Subscriber\",'Enrollment Form'!$CQ636=\"No\",'Enrollment Form'!$DS636=\"\"),\"N\",IF(AND('Enrollment Form'!$C636=\"Enroll\",'Enrollment Form'!$B636=\"Subscriber\",'Enrollment Form'!$CQ636=\"Yes\"),\"-\",\"Y\")))))","v":""},{"$f":"IF($B629=\"N\",\"\",IF(AND('Enrollment Form'!$C636=\"ROC\",'Enrollment Form'!$DT636<>\"\"),\"Y\",IF(AND('Enrollment Form'!$C636=\"ROC\",'Enrollment Form'!$DT636=\"\"),\"N\",IF(AND('Enrollment Form'!$C636=\"Enroll\",'Enrollment Form'!$B636=\"Subscriber\",'Enrollment Form'!$CQ636=\"No\",'Enrollment Form'!$DT636=\"\"),\"N\",IF(AND('Enrollment Form'!$C636=\"Enroll\",'Enrollment Form'!$B636=\"Subscriber\",'Enrollment Form'!$CQ636=\"Yes\"),\"-\",\"Y\")))))","v":""},{"$f":"IF('Enrollment Form'!AH636=\"\",\"\",IF(ISERROR(SEARCH(\".\",'Enrollment Form'!AH636,SEARCH(\"@\",'Enrollment Form'!AH636))),\"N\",\"Y\"))","v":""},{"$f":"IF(OR($B629=\"N\",'Enrollment Form'!$G636=\"\"),\"\",IF('Enrollment Form'!$B636<>\"Subscriber\",\"-\",IF(COUNTIF('Enrollment Form'!$AS636:$AT636,\"Yes\")=2,\"N\",\"Y\")))","v":""},{"$f":"IF(OR('Enrollment Form'!$CC636=\"\",'Enrollment Form'!$CC636=\"No\"),\"-\",IF(AND('Enrollment Form'!$CC636=\"Yes\",'Enrollment Form'!$CD636=\"\"),\"N\",\"Y\"))","v":"-"},{"$f":"IF(OR('Enrollment Form'!$CE636=\"\",'Enrollment Form'!$CE636=\"No\"),\"-\",IF(AND('Enrollment Form'!$CE636=\"Yes\",'Enrollment Form'!$CF636=\"\"),\"N\",\"Y\"))","v":"-"},{"$f":"IF(OR('Enrollment Form'!$CG636=\"\",'Enrollment Form'!$CG636=\"No\"),\"-\",IF(AND('Enrollment Form'!$CG636=\"Yes\",'Enrollment Form'!$CH636=\"\"),\"N\",\"Y\"))","v":"-"},{"$f":"IF(OR('Enrollment Form'!$CG636=\"\",'Enrollment Form'!$CG636=\"No\"),\"-\",IF(AND('Enrollment Form'!$CG636=\"Yes\",'Enrollment Form'!$CI636=\"\"),\"N\",\"Y\"))","v":"-"},{"$f":"IF('Enrollment Form'!B636<>\"Subscriber\",\"-\",IF(AND('Enrollment Form'!B636=\"Subscriber\",'Enrollment Form'!C636=\"Enroll\",'Enrollment Form'!AA636=\"\"),\"N\",\"Y\"))","v":"-"},{"$f":"IF(OR('Enrollment Form'!B636=\"Subscriber\",'Enrollment Form'!B636=\"\"),\"-\",IF('Enrollment Form'!BI636=\"\",\"N\",\"Y\"))","v":"-"},{"$f":"IF('Enrollment Form'!B636<>\"Subscriber\",\"-\",IF(AND('Enrollment Form'!B636=\"Subscriber\",'Enrollment Form'!G636=\"\"),\"N\",\"Y\"))","v":"-"},{"$f":"IF('Enrollment Form'!A636=\"\",\"\",IF('Enrollment Form'!B636=\"Subscriber\",\"-\",IF(AND('Enrollment Form'!B636<>\"Subscriber\",'Enrollment Form'!G636='Enrollment Form'!H636),\"N\",\"Y\")))","v":""},0]
[637,{"$f":"IF('Enrollment Form'!$A637<>\"\",\"Y\",\"N\")","v":"N"},{"$f":"IF(AND('Enrollment Form'!$B637=\"\",'Enrollment Form'!$C637<>\"\"),\"N\",IF($B630=\"N\",\"\",\"Y\"))","v":""},{"$f":"IF(OR($B630=\"N\",'Enrollment Form'!G637=\"\"),\"\",IF('Enrollment Form'!$B637<>\"Subscriber\",\"\",IF('Enrollment Form'!$G637='Enrollment Form'!$H637,\"Y\",\"N\")))","v":""},{"$f":"IF($B630=\"N\",\"\",IF(AND(COUNTIFS('Enrollment Form'!$H$11:$H$1000,'Enrollment Form'!$H637,'Enrollment Form'!$B$11:$B$1000,'Enrollment Form'!$B637)>1,'Enrollment Form'!$H637<>\"\"),\"N\",\"Y\"))","v":""},{"$f":"IF($B630=\"N\",\"\",IF(LEN('Enrollment Form'!$Y637)=0,\"\",IF(LEN('Enrollment Form'!$Y637)<>5,\"N\",\"Y\")))","v":""},{"$f":"IF($B630=\"N\",\"\",IF(LEN('Enrollment Form'!$AD637=0),\"\",IF(LEN('Enrollment Form'!$AD637)<>5,\"N\",\"Y\")))","v":""},{"$f":"IF($B630=\"N\",\"\",IF(LEN('Enrollment Form'!$BL637=0),\"\",IF(LEN('Enrollment Form'!$BL637)<>5,\"N\",\"Y\")))","v":""},{"$f":"IF($B630=\"N\",\"\",IF(LEN('Enrollment Form'!$AE637)=0,\"\",IF(LEN('Enrollment Form'!$AE637)<>10,\"N\",\"Y\")))","v":""},{"$f":"IF($B630=\"N\",\"\",IF(LEN('Enrollment Form'!$AF637)=0,\"\",IF(LEN('Enrollment Form'!$AF637)<>10,\"N\",\"Y\")))","v":""},{"$f":"IF('Enrollment Form'!$O637<>\"Graded\",\"-\",IF(AND('Enrollment Form'!$O637=\"Graded\",'Enrollment Form'!$AO637<>\"\"),\"Y\",\"N\"))","v":"-"},{"$f":"IF($B630=\"N\",\"\",IF(OR('Enrollment Form'!$B637<>\"Subscriber\",'Enrollment Form'!$C637=\"ROC\"),\"-\",IF(AND('Enrollment Form'!$B637=\"Subscriber\",'Enrollment Form'!$C637=\"Enroll\",'Enrollment Form'!$AJ637<>\"\"),\"Y\",\"N\")))","v":""},{"$f":"IF($B630=\"N\",\"\",IF(OR('Enrollment Form'!$B637<>\"Subscriber\",'Enrollment Form'!$C637=\"ROC\"),\"-\",IF(AND('Enrollment Form'!$B637=\"Subscriber\",'Enrollment Form'!$C637=\"Enroll\",'Enrollment Form'!$AK637<>\"\"),\"Y\",\"N\")))","v":""},{"$f":"IF($B630=\"N\",\"\",IF(OR('Enrollment Form'!$B637<>\"Subscriber\",'Enrollment Form'!$C637=\"ROC\"),\"-\",IF(AND('Enrollment Form'!$B637=\"Subscriber\",'Enrollment Form'!$C637=\"Enroll\",'Enrollment Form'!$AL637<>\"\"),\"Y\",\"N\")))","v":""},{"$f":"IF($B630=\"N\",\"\",IF(OR('Enrollment Form'!$B637<>\"Subscriber\",'Enrollment Form'!$C637=\"ROC\"),\"-\",IF(AND('Enrollment Form'!$B637=\"Subscriber\",'Enrollment Form'!$C637=\"Enroll\",'Enrollment Form'!$AM637<>\"\"),\"Y\",\"N\")))","v":""},{"$f":"IF($B630=\"N\",\"\",IF(OR('Enrollment Form'!$B637<>\"Subscriber\",'Enrollment Form'!$C637=\"ROC\"),\"-\",IF(AND('Enrollment Form'!$B637=\"Subscriber\",'Enrollment Form'!$C637=\"Enroll\",'Enrollment Form'!$AN637<>\"\"),\"Y\",\"N\")))","v":""},{"$f":"IF($B630=\"N\",\"\",IF(OR('Enrollment Form'!$B637<>\"Subscriber\",'Enrollment Form'!$C637=\"ROC\"),\"-\",IF(AND('Enrollment Form'!$B637=\"Subscriber\",'Enrollment Form'!$C637=\"Enroll\",'Enrollment Form'!$AP637<>\"\"),\"Y\",\"N\")))","v":""},{"$f":"IF($B630=\"N\",\"\",IF($Q630=\"-\",\"-\",IF(AND($Q630=\"Y\",'Enrollment Form'!$AP637=\"No\"),\"-\",IF(AND($Q630=\"Y\",'Enrollment Form'!$AP637=\"Yes\",'Enrollment Form'!$AQ637<>\"\"),\"Y\",\"N\"))))","v":""},{"$f":"IF($B630=\"N\",\"\",IF(OR('Enrollment Form'!$B637<>\"Subscriber\",'Enrollment Form'!$C637=\"ROC\"),\"-\",IF(AND('Enrollment Form'!$B637=\"Subscriber\",'Enrollment Form'!$C637=\"Enroll\",'Enrollment Form'!$CO637<>\"\"),\"Y\",\"N\")))","v":""},{"$f":"IF($B630=\"N\",\"\",IF($S630=\"-\",\"-\",IF(AND($S630=\"Y\",'Enrollment Form'!$CO637=\"No\"),\"-\",IF(AND($S630=\"Y\",'Enrollment Form'!$CO637=\"Yes\",'Enrollment Form'!$CP637<>\"\"),\"Y\",\"N\"))))","v":""},{"$f":"IF(OR('Enrollment Form'!$AV637=\"Yes\",'Enrollment Form'!$AV637=\"\"),\"-\",IF(AND('Enrollment Form'!$AV637=\"No\",ISERROR(FIND(\"HMO\",VLOOKUP('Enrollment Form'!G637,'Enrollment Form'!H$11:J$1000,3,FALSE),1))=FALSE,COUNTA('Enrollment Form'!$AW637:$AZ637)=4),\"Y\",\"N\"))","v":"-"},{"$f":"IF($B630=\"N\",\"\",IF('Enrollment Form'!$B637=\"Subscriber\",\"-\",IF(COUNTA('Enrollment Form'!$BE637,'Enrollment Form'!$BG637)=2,\"Y\",\"N\")))","v":""},{"$f":"IF($B630=\"N\",\"\",IF(OR('Enrollment Form'!$AU637=\"\",'Enrollment Form'!$AU637=\"No\"),\"-\",IF(AND('Enrollment Form'!$AU637=\"Yes\",COUNTA('Enrollment Form'!$CK637)=1),\"Y\",\"N\")))","v":""},{"$f":"IF(OR('Enrollment Form'!$CK637=\"\",'Enrollment Form'!$CK637=\"No\"),\"-\",IF(COUNTA('Enrollment Form'!$CM637:$CN637)=2,\"Y\",\"N\"))","v":"-"},{"$f":"IF($B630=\"N\",\"\",IF(COUNTIF('Enrollment Form'!$CZ637:$DO637,\"Other\")=COUNTA('Enrollment Form'!$DF637,'Enrollment Form'!$DA637,'Enrollment Form'!$DK637,'Enrollment Form'!$DP637),\"Y\",\"N\"))","v":""},{"$f":"IF($B630=\"N\",\"\",IF(OR('Enrollment Form'!B637<>\"Subscriber\",'Enrollment Form'!C637=\"ROC\",COUNTIF('Enrollment Form'!AS637:AT637,\"Yes\")>=1),\"-\",IF(AND('Enrollment Form'!C637=\"Enroll\",COUNTIF('Enrollment Form'!AS637:AT637,\"No\")=2,'Enrollment Form'!AU637=\"\"),\"N\",\"Y\")))","v":""},{"$f":"IF(OR(B630=\"N\",'Enrollment Form'!B637<>\"Subscriber\",'Enrollment Form'!C637=\"ROC\",'Enrollment Form'!O637<>\"Multiple of Salary\"),\"-\",IF(COUNTA('Enrollment Form'!T637:U637)<2,\"N\",\"Y\"))","v":"-"},{"$f":"IF(B630=\"N\",\"\",IF(OR('Enrollment Form'!C637=\"ROC\",'Enrollment Form'!B637<>\"Subscriber\",'Enrollment Form'!O637=\"Waive\",'Enrollment Form'!O637=\"\"),\"-\",IF('Enrollment Form'!P637=\"\",\"N\",\"Y\")))","v":""},{"$f":"IF($B630=\"N\",\"\",IF(AND('Enrollment Form'!$C637=\"ROC\",'Enrollment Form'!$DS637<>\"\"),\"Y\",IF(AND('Enrollment Form'!$C637=\"ROC\",'Enrollment Form'!$DS637=\"\"),\"N\",IF(AND('Enrollment Form'!$C637=\"Enroll\",'Enrollment Form'!$B637=\"Subscriber\",'Enrollment Form'!$CQ637=\"No\",'Enrollment Form'!$DS637=\"\"),\"N\",IF(AND('Enrollment Form'!$C637=\"Enroll\",'Enrollment Form'!$B637=\"Subscriber\",'Enrollment Form'!$CQ637=\"Yes\"),\"-\",\"Y\")))))","v":""},{"$f":"IF($B630=\"N\",\"\",IF(AND('Enrollment Form'!$C637=\"ROC\",'Enrollment Form'!$DT637<>\"\"),\"Y\",IF(AND('Enrollment Form'!$C637=\"ROC\",'Enrollment Form'!$DT637=\"\"),\"N\",IF(AND('Enrollment Form'!$C637=\"Enroll\",'Enrollment Form'!$B637=\"Subscriber\",'Enrollment Form'!$CQ637=\"No\",'Enrollment Form'!$DT637=\"\"),\"N\",IF(AND('Enrollment Form'!$C637=\"Enroll\",'Enrollment Form'!$B637=\"Subscriber\",'Enrollment Form'!$CQ637=\"Yes\"),\"-\",\"Y\")))))","v":""},{"$f":"IF('Enrollment Form'!AH637=\"\",\"\",IF(ISERROR(SEARCH(\".\",'Enrollment Form'!AH637,SEARCH(\"@\",'Enrollment Form'!AH637))),\"N\",\"Y\"))","v":""},{"$f":"IF(OR($B630=\"N\",'Enrollment Form'!$G637=\"\"),\"\",IF('Enrollment Form'!$B637<>\"Subscriber\",\"-\",IF(COUNTIF('Enrollment Form'!$AS637:$AT637,\"Yes\")=2,\"N\",\"Y\")))","v":""},{"$f":"IF(OR('Enrollment Form'!$CC637=\"\",'Enrollment Form'!$CC637=\"No\"),\"-\",IF(AND('Enrollment Form'!$CC637=\"Yes\",'Enrollment Form'!$CD637=\"\"),\"N\",\"Y\"))","v":"-"},{"$f":"IF(OR('Enrollment Form'!$CE637=\"\",'Enrollment Form'!$CE637=\"No\"),\"-\",IF(AND('Enrollment Form'!$CE637=\"Yes\",'Enrollment Form'!$CF637=\"\"),\"N\",\"Y\"))","v":"-"},{"$f":"IF(OR('Enrollment Form'!$CG637=\"\",'Enrollment Form'!$CG637=\"No\"),\"-\",IF(AND('Enrollment Form'!$CG637=\"Yes\",'Enrollment Form'!$CH637=\"\"),\"N\",\"Y\"))","v":"-"},{"$f":"IF(OR('Enrollment Form'!$CG637=\"\",'Enrollment Form'!$CG637=\"No\"),\"-\",IF(AND('Enrollment Form'!$CG637=\"Yes\",'Enrollment Form'!$CI637=\"\"),\"N\",\"Y\"))","v":"-"},{"$f":"IF('Enrollment Form'!B637<>\"Subscriber\",\"-\",IF(AND('Enrollment Form'!B637=\"Subscriber\",'Enrollment Form'!C637=\"Enroll\",'Enrollment Form'!AA637=\"\"),\"N\",\"Y\"))","v":"-"},{"$f":"IF(OR('Enrollment Form'!B637=\"Subscriber\",'Enrollment Form'!B637=\"\"),\"-\",IF('Enrollment Form'!BI637=\"\",\"N\",\"Y\"))","v":"-"},{"$f":"IF('Enrollment Form'!B637<>\"Subscriber\",\"-\",IF(AND('Enrollment Form'!B637=\"Subscriber\",'Enrollment Form'!G637=\"\"),\"N\",\"Y\"))","v":"-"},{"$f":"IF('Enrollment Form'!A637=\"\",\"\",IF('Enrollment Form'!B637=\"Subscriber\",\"-\",IF(AND('Enrollment Form'!B637<>\"Subscriber\",'Enrollment Form'!G637='Enrollment Form'!H637),\"N\",\"Y\")))","v":""},0]
[638,{"$f":"IF('Enrollment Form'!$A638<>\"\",\"Y\",\"N\")","v":"N"},{"$f":"IF(AND('Enrollment Form'!$B638=\"\",'Enrollment Form'!$C638<>\"\"),\"N\",IF($B631=\"N\",\"\",\"Y\"))","v":""},{"$f":"IF(OR($B631=\"N\",'Enrollment Form'!G638=\"\"),\"\",IF('Enrollment Form'!$B638<>\"Subscriber\",\"\",IF('Enrollment Form'!$G638='Enrollment Form'!$H638,\"Y\",\"N\")))","v":""},{"$f":"IF($B631=\"N\",\"\",IF(AND(COUNTIFS('Enrollment Form'!$H$11:$H$1000,'Enrollment Form'!$H638,'Enrollment Form'!$B$11:$B$1000,'Enrollment Form'!$B638)>1,'Enrollment Form'!$H638<>\"\"),\"N\",\"Y\"))","v":""},{"$f":"IF($B631=\"N\",\"\",IF(LEN('Enrollment Form'!$Y638)=0,\"\",IF(LEN('Enrollment Form'!$Y638)<>5,\"N\",\"Y\")))","v":""},{"$f":"IF($B631=\"N\",\"\",IF(LEN('Enrollment Form'!$AD638=0),\"\",IF(LEN('Enrollment Form'!$AD638)<>5,\"N\",\"Y\")))","v":""},{"$f":"IF($B631=\"N\",\"\",IF(LEN('Enrollment Form'!$BL638=0),\"\",IF(LEN('Enrollment Form'!$BL638)<>5,\"N\",\"Y\")))","v":""},{"$f":"IF($B631=\"N\",\"\",IF(LEN('Enrollment Form'!$AE638)=0,\"\",IF(LEN('Enrollment Form'!$AE638)<>10,\"N\",\"Y\")))","v":""},{"$f":"IF($B631=\"N\",\"\",IF(LEN('Enrollment Form'!$AF638)=0,\"\",IF(LEN('Enrollment Form'!$AF638)<>10,\"N\",\"Y\")))","v":""},{"$f":"IF('Enrollment Form'!$O638<>\"Graded\",\"-\",IF(AND('Enrollment Form'!$O638=\"Graded\",'Enrollment Form'!$AO638<>\"\"),\"Y\",\"N\"))","v":"-"},{"$f":"IF($B631=\"N\",\"\",IF(OR('Enrollment Form'!$B638<>\"Subscriber\",'Enrollment Form'!$C638=\"ROC\"),\"-\",IF(AND('Enrollment Form'!$B638=\"Subscriber\",'Enrollment Form'!$C638=\"Enroll\",'Enrollment Form'!$AJ638<>\"\"),\"Y\",\"N\")))","v":""},{"$f":"IF($B631=\"N\",\"\",IF(OR('Enrollment Form'!$B638<>\"Subscriber\",'Enrollment Form'!$C638=\"ROC\"),\"-\",IF(AND('Enrollment Form'!$B638=\"Subscriber\",'Enrollment Form'!$C638=\"Enroll\",'Enrollment Form'!$AK638<>\"\"),\"Y\",\"N\")))","v":""},{"$f":"IF($B631=\"N\",\"\",IF(OR('Enrollment Form'!$B638<>\"Subscriber\",'Enrollment Form'!$C638=\"ROC\"),\"-\",IF(AND('Enrollment Form'!$B638=\"Subscriber\",'Enrollment Form'!$C638=\"Enroll\",'Enrollment Form'!$AL638<>\"\"),\"Y\",\"N\")))","v":""},{"$f":"IF($B631=\"N\",\"\",IF(OR('Enrollment Form'!$B638<>\"Subscriber\",'Enrollment Form'!$C638=\"ROC\"),\"-\",IF(AND('Enrollment Form'!$B638=\"Subscriber\",'Enrollment Form'!$C638=\"Enroll\",'Enrollment Form'!$AM638<>\"\"),\"Y\",\"N\")))","v":""},{"$f":"IF($B631=\"N\",\"\",IF(OR('Enrollment Form'!$B638<>\"Subscriber\",'Enrollment Form'!$C638=\"ROC\"),\"-\",IF(AND('Enrollment Form'!$B638=\"Subscriber\",'Enrollment Form'!$C638=\"Enroll\",'Enrollment Form'!$AN638<>\"\"),\"Y\",\"N\")))","v":""},{"$f":"IF($B631=\"N\",\"\",IF(OR('Enrollment Form'!$B638<>\"Subscriber\",'Enrollment Form'!$C638=\"ROC\"),\"-\",IF(AND('Enrollment Form'!$B638=\"Subscriber\",'Enrollment Form'!$C638=\"Enroll\",'Enrollment Form'!$AP638<>\"\"),\"Y\",\"N\")))","v":""},{"$f":"IF($B631=\"N\",\"\",IF($Q631=\"-\",\"-\",IF(AND($Q631=\"Y\",'Enrollment Form'!$AP638=\"No\"),\"-\",IF(AND($Q631=\"Y\",'Enrollment Form'!$AP638=\"Yes\",'Enrollment Form'!$AQ638<>\"\"),\"Y\",\"N\"))))","v":""},{"$f":"IF($B631=\"N\",\"\",IF(OR('Enrollment Form'!$B638<>\"Subscriber\",'Enrollment Form'!$C638=\"ROC\"),\"-\",IF(AND('Enrollment Form'!$B638=\"Subscriber\",'Enrollment Form'!$C638=\"Enroll\",'Enrollment Form'!$CO638<>\"\"),\"Y\",\"N\")))","v":""},{"$f":"IF($B631=\"N\",\"\",IF($S631=\"-\",\"-\",IF(AND($S631=\"Y\",'Enrollment Form'!$CO638=\"No\"),\"-\",IF(AND($S631=\"Y\",'Enrollment Form'!$CO638=\"Yes\",'Enrollment Form'!$CP638<>\"\"),\"Y\",\"N\"))))","v":""},{"$f":"IF(OR('Enrollment Form'!$AV638=\"Yes\",'Enrollment Form'!$AV638=\"\"),\"-\",IF(AND('Enrollment Form'!$AV638=\"No\",ISERROR(FIND(\"HMO\",VLOOKUP('Enrollment Form'!G638,'Enrollment Form'!H$11:J$1000,3,FALSE),1))=FALSE,COUNTA('Enrollment Form'!$AW638:$AZ638)=4),\"Y\",\"N\"))","v":"-"},{"$f":"IF($B631=\"N\",\"\",IF('Enrollment Form'!$B638=\"Subscriber\",\"-\",IF(COUNTA('Enrollment Form'!$BE638,'Enrollment Form'!$BG638)=2,\"Y\",\"N\")))","v":""},{"$f":"IF($B631=\"N\",\"\",IF(OR('Enrollment Form'!$AU638=\"\",'Enrollment Form'!$AU638=\"No\"),\"-\",IF(AND('Enrollment Form'!$AU638=\"Yes\",COUNTA('Enrollment Form'!$CK638)=1),\"Y\",\"N\")))","v":""},{"$f":"IF(OR('Enrollment Form'!$CK638=\"\",'Enrollment Form'!$CK638=\"No\"),\"-\",IF(COUNTA('Enrollment Form'!$CM638:$CN638)=2,\"Y\",\"N\"))","v":"-"},{"$f":"IF($B631=\"N\",\"\",IF(COUNTIF('Enrollment Form'!$CZ638:$DO638,\"Other\")=COUNTA('Enrollment Form'!$DF638,'Enrollment Form'!$DA638,'Enrollment Form'!$DK638,'Enrollment Form'!$DP638),\"Y\",\"N\"))","v":""},{"$f":"IF($B631=\"N\",\"\",IF(OR('Enrollment Form'!B638<>\"Subscriber\",'Enrollment Form'!C638=\"ROC\",COUNTIF('Enrollment Form'!AS638:AT638,\"Yes\")>=1),\"-\",IF(AND('Enrollment Form'!C638=\"Enroll\",COUNTIF('Enrollment Form'!AS638:AT638,\"No\")=2,'Enrollment Form'!AU638=\"\"),\"N\",\"Y\")))","v":""},{"$f":"IF(OR(B631=\"N\",'Enrollment Form'!B638<>\"Subscriber\",'Enrollment Form'!C638=\"ROC\",'Enrollment Form'!O638<>\"Multiple of Salary\"),\"-\",IF(COUNTA('Enrollment Form'!T638:U638)<2,\"N\",\"Y\"))","v":"-"},{"$f":"IF(B631=\"N\",\"\",IF(OR('Enrollment Form'!C638=\"ROC\",'Enrollment Form'!B638<>\"Subscriber\",'Enrollment Form'!O638=\"Waive\",'Enrollment Form'!O638=\"\"),\"-\",IF('Enrollment Form'!P638=\"\",\"N\",\"Y\")))","v":""},{"$f":"IF($B631=\"N\",\"\",IF(AND('Enrollment Form'!$C638=\"ROC\",'Enrollment Form'!$DS638<>\"\"),\"Y\",IF(AND('Enrollment Form'!$C638=\"ROC\",'Enrollment Form'!$DS638=\"\"),\"N\",IF(AND('Enrollment Form'!$C638=\"Enroll\",'Enrollment Form'!$B638=\"Subscriber\",'Enrollment Form'!$CQ638=\"No\",'Enrollment Form'!$DS638=\"\"),\"N\",IF(AND('Enrollment Form'!$C638=\"Enroll\",'Enrollment Form'!$B638=\"Subscriber\",'Enrollment Form'!$CQ638=\"Yes\"),\"-\",\"Y\")))))","v":""},{"$f":"IF($B631=\"N\",\"\",IF(AND('Enrollment Form'!$C638=\"ROC\",'Enrollment Form'!$DT638<>\"\"),\"Y\",IF(AND('Enrollment Form'!$C638=\"ROC\",'Enrollment Form'!$DT638=\"\"),\"N\",IF(AND('Enrollment Form'!$C638=\"Enroll\",'Enrollment Form'!$B638=\"Subscriber\",'Enrollment Form'!$CQ638=\"No\",'Enrollment Form'!$DT638=\"\"),\"N\",IF(AND('Enrollment Form'!$C638=\"Enroll\",'Enrollment Form'!$B638=\"Subscriber\",'Enrollment Form'!$CQ638=\"Yes\"),\"-\",\"Y\")))))","v":""},{"$f":"IF('Enrollment Form'!AH638=\"\",\"\",IF(ISERROR(SEARCH(\".\",'Enrollment Form'!AH638,SEARCH(\"@\",'Enrollment Form'!AH638))),\"N\",\"Y\"))","v":""},{"$f":"IF(OR($B631=\"N\",'Enrollment Form'!$G638=\"\"),\"\",IF('Enrollment Form'!$B638<>\"Subscriber\",\"-\",IF(COUNTIF('Enrollment Form'!$AS638:$AT638,\"Yes\")=2,\"N\",\"Y\")))","v":""},{"$f":"IF(OR('Enrollment Form'!$CC638=\"\",'Enrollment Form'!$CC638=\"No\"),\"-\",IF(AND('Enrollment Form'!$CC638=\"Yes\",'Enrollment Form'!$CD638=\"\"),\"N\",\"Y\"))","v":"-"},{"$f":"IF(OR('Enrollment Form'!$CE638=\"\",'Enrollment Form'!$CE638=\"No\"),\"-\",IF(AND('Enrollment Form'!$CE638=\"Yes\",'Enrollment Form'!$CF638=\"\"),\"N\",\"Y\"))","v":"-"},{"$f":"IF(OR('Enrollment Form'!$CG638=\"\",'Enrollment Form'!$CG638=\"No\"),\"-\",IF(AND('Enrollment Form'!$CG638=\"Yes\",'Enrollment Form'!$CH638=\"\"),\"N\",\"Y\"))","v":"-"},{"$f":"IF(OR('Enrollment Form'!$CG638=\"\",'Enrollment Form'!$CG638=\"No\"),\"-\",IF(AND('Enrollment Form'!$CG638=\"Yes\",'Enrollment Form'!$CI638=\"\"),\"N\",\"Y\"))","v":"-"},{"$f":"IF('Enrollment Form'!B638<>\"Subscriber\",\"-\",IF(AND('Enrollment Form'!B638=\"Subscriber\",'Enrollment Form'!C638=\"Enroll\",'Enrollment Form'!AA638=\"\"),\"N\",\"Y\"))","v":"-"},{"$f":"IF(OR('Enrollment Form'!B638=\"Subscriber\",'Enrollment Form'!B638=\"\"),\"-\",IF('Enrollment Form'!BI638=\"\",\"N\",\"Y\"))","v":"-"},{"$f":"IF('Enrollment Form'!B638<>\"Subscriber\",\"-\",IF(AND('Enrollment Form'!B638=\"Subscriber\",'Enrollment Form'!G638=\"\"),\"N\",\"Y\"))","v":"-"},{"$f":"IF('Enrollment Form'!A638=\"\",\"\",IF('Enrollment Form'!B638=\"Subscriber\",\"-\",IF(AND('Enrollment Form'!B638<>\"Subscriber\",'Enrollment Form'!G638='Enrollment Form'!H638),\"N\",\"Y\")))","v":""},0]
[639,{"$f":"IF('Enrollment Form'!$A639<>\"\",\"Y\",\"N\")","v":"N"},{"$f":"IF(AND('Enrollment Form'!$B639=\"\",'Enrollment Form'!$C639<>\"\"),\"N\",IF($B632=\"N\",\"\",\"Y\"))","v":""},{"$f":"IF(OR($B632=\"N\",'Enrollment Form'!G639=\"\"),\"\",IF('Enrollment Form'!$B639<>\"Subscriber\",\"\",IF('Enrollment Form'!$G639='Enrollment Form'!$H639,\"Y\",\"N\")))","v":""},{"$f":"IF($B632=\"N\",\"\",IF(AND(COUNTIFS('Enrollment Form'!$H$11:$H$1000,'Enrollment Form'!$H639,'Enrollment Form'!$B$11:$B$1000,'Enrollment Form'!$B639)>1,'Enrollment Form'!$H639<>\"\"),\"N\",\"Y\"))","v":""},{"$f":"IF($B632=\"N\",\"\",IF(LEN('Enrollment Form'!$Y639)=0,\"\",IF(LEN('Enrollment Form'!$Y639)<>5,\"N\",\"Y\")))","v":""},{"$f":"IF($B632=\"N\",\"\",IF(LEN('Enrollment Form'!$AD639=0),\"\",IF(LEN('Enrollment Form'!$AD639)<>5,\"N\",\"Y\")))","v":""},{"$f":"IF($B632=\"N\",\"\",IF(LEN('Enrollment Form'!$BL639=0),\"\",IF(LEN('Enrollment Form'!$BL639)<>5,\"N\",\"Y\")))","v":""},{"$f":"IF($B632=\"N\",\"\",IF(LEN('Enrollment Form'!$AE639)=0,\"\",IF(LEN('Enrollment Form'!$AE639)<>10,\"N\",\"Y\")))","v":""},{"$f":"IF($B632=\"N\",\"\",IF(LEN('Enrollment Form'!$AF639)=0,\"\",IF(LEN('Enrollment Form'!$AF639)<>10,\"N\",\"Y\")))","v":""},{"$f":"IF('Enrollment Form'!$O639<>\"Graded\",\"-\",IF(AND('Enrollment Form'!$O639=\"Graded\",'Enrollment Form'!$AO639<>\"\"),\"Y\",\"N\"))","v":"-"},{"$f":"IF($B632=\"N\",\"\",IF(OR('Enrollment Form'!$B639<>\"Subscriber\",'Enrollment Form'!$C639=\"ROC\"),\"-\",IF(AND('Enrollment Form'!$B639=\"Subscriber\",'Enrollment Form'!$C639=\"Enroll\",'Enrollment Form'!$AJ639<>\"\"),\"Y\",\"N\")))","v":""},{"$f":"IF($B632=\"N\",\"\",IF(OR('Enrollment Form'!$B639<>\"Subscriber\",'Enrollment Form'!$C639=\"ROC\"),\"-\",IF(AND('Enrollment Form'!$B639=\"Subscriber\",'Enrollment Form'!$C639=\"Enroll\",'Enrollment Form'!$AK639<>\"\"),\"Y\",\"N\")))","v":""},{"$f":"IF($B632=\"N\",\"\",IF(OR('Enrollment Form'!$B639<>\"Subscriber\",'Enrollment Form'!$C639=\"ROC\"),\"-\",IF(AND('Enrollment Form'!$B639=\"Subscriber\",'Enrollment Form'!$C639=\"Enroll\",'Enrollment Form'!$AL639<>\"\"),\"Y\",\"N\")))","v":""},{"$f":"IF($B632=\"N\",\"\",IF(OR('Enrollment Form'!$B639<>\"Subscriber\",'Enrollment Form'!$C639=\"ROC\"),\"-\",IF(AND('Enrollment Form'!$B639=\"Subscriber\",'Enrollment Form'!$C639=\"Enroll\",'Enrollment Form'!$AM639<>\"\"),\"Y\",\"N\")))","v":""},{"$f":"IF($B632=\"N\",\"\",IF(OR('Enrollment Form'!$B639<>\"Subscriber\",'Enrollment Form'!$C639=\"ROC\"),\"-\",IF(AND('Enrollment Form'!$B639=\"Subscriber\",'Enrollment Form'!$C639=\"Enroll\",'Enrollment Form'!$AN639<>\"\"),\"Y\",\"N\")))","v":""},{"$f":"IF($B632=\"N\",\"\",IF(OR('Enrollment Form'!$B639<>\"Subscriber\",'Enrollment Form'!$C639=\"ROC\"),\"-\",IF(AND('Enrollment Form'!$B639=\"Subscriber\",'Enrollment Form'!$C639=\"Enroll\",'Enrollment Form'!$AP639<>\"\"),\"Y\",\"N\")))","v":""},{"$f":"IF($B632=\"N\",\"\",IF($Q632=\"-\",\"-\",IF(AND($Q632=\"Y\",'Enrollment Form'!$AP639=\"No\"),\"-\",IF(AND($Q632=\"Y\",'Enrollment Form'!$AP639=\"Yes\",'Enrollment Form'!$AQ639<>\"\"),\"Y\",\"N\"))))","v":""},{"$f":"IF($B632=\"N\",\"\",IF(OR('Enrollment Form'!$B639<>\"Subscriber\",'Enrollment Form'!$C639=\"ROC\"),\"-\",IF(AND('Enrollment Form'!$B639=\"Subscriber\",'Enrollment Form'!$C639=\"Enroll\",'Enrollment Form'!$CO639<>\"\"),\"Y\",\"N\")))","v":""},{"$f":"IF($B632=\"N\",\"\",IF($S632=\"-\",\"-\",IF(AND($S632=\"Y\",'Enrollment Form'!$CO639=\"No\"),\"-\",IF(AND($S632=\"Y\",'Enrollment Form'!$CO639=\"Yes\",'Enrollment Form'!$CP639<>\"\"),\"Y\",\"N\"))))","v":""},{"$f":"IF(OR('Enrollment Form'!$AV639=\"Yes\",'Enrollment Form'!$AV639=\"\"),\"-\",IF(AND('Enrollment Form'!$AV639=\"No\",ISERROR(FIND(\"HMO\",VLOOKUP('Enrollment Form'!G639,'Enrollment Form'!H$11:J$1000,3,FALSE),1))=FALSE,COUNTA('Enrollment Form'!$AW639:$AZ639)=4),\"Y\",\"N\"))","v":"-"},{"$f":"IF($B632=\"N\",\"\",IF('Enrollment Form'!$B639=\"Subscriber\",\"-\",IF(COUNTA('Enrollment Form'!$BE639,'Enrollment Form'!$BG639)=2,\"Y\",\"N\")))","v":""},{"$f":"IF($B632=\"N\",\"\",IF(OR('Enrollment Form'!$AU639=\"\",'Enrollment Form'!$AU639=\"No\"),\"-\",IF(AND('Enrollment Form'!$AU639=\"Yes\",COUNTA('Enrollment Form'!$CK639)=1),\"Y\",\"N\")))","v":""},{"$f":"IF(OR('Enrollment Form'!$CK639=\"\",'Enrollment Form'!$CK639=\"No\"),\"-\",IF(COUNTA('Enrollment Form'!$CM639:$CN639)=2,\"Y\",\"N\"))","v":"-"},{"$f":"IF($B632=\"N\",\"\",IF(COUNTIF('Enrollment Form'!$CZ639:$DO639,\"Other\")=COUNTA('Enrollment Form'!$DF639,'Enrollment Form'!$DA639,'Enrollment Form'!$DK639,'Enrollment Form'!$DP639),\"Y\",\"N\"))","v":""},{"$f":"IF($B632=\"N\",\"\",IF(OR('Enrollment Form'!B639<>\"Subscriber\",'Enrollment Form'!C639=\"ROC\",COUNTIF('Enrollment Form'!AS639:AT639,\"Yes\")>=1),\"-\",IF(AND('Enrollment Form'!C639=\"Enroll\",COUNTIF('Enrollment Form'!AS639:AT639,\"No\")=2,'Enrollment Form'!AU639=\"\"),\"N\",\"Y\")))","v":""},{"$f":"IF(OR(B632=\"N\",'Enrollment Form'!B639<>\"Subscriber\",'Enrollment Form'!C639=\"ROC\",'Enrollment Form'!O639<>\"Multiple of Salary\"),\"-\",IF(COUNTA('Enrollment Form'!T639:U639)<2,\"N\",\"Y\"))","v":"-"},{"$f":"IF(B632=\"N\",\"\",IF(OR('Enrollment Form'!C639=\"ROC\",'Enrollment Form'!B639<>\"Subscriber\",'Enrollment Form'!O639=\"Waive\",'Enrollment Form'!O639=\"\"),\"-\",IF('Enrollment Form'!P639=\"\",\"N\",\"Y\")))","v":""},{"$f":"IF($B632=\"N\",\"\",IF(AND('Enrollment Form'!$C639=\"ROC\",'Enrollment Form'!$DS639<>\"\"),\"Y\",IF(AND('Enrollment Form'!$C639=\"ROC\",'Enrollment Form'!$DS639=\"\"),\"N\",IF(AND('Enrollment Form'!$C639=\"Enroll\",'Enrollment Form'!$B639=\"Subscriber\",'Enrollment Form'!$CQ639=\"No\",'Enrollment Form'!$DS639=\"\"),\"N\",IF(AND('Enrollment Form'!$C639=\"Enroll\",'Enrollment Form'!$B639=\"Subscriber\",'Enrollment Form'!$CQ639=\"Yes\"),\"-\",\"Y\")))))","v":""},{"$f":"IF($B632=\"N\",\"\",IF(AND('Enrollment Form'!$C639=\"ROC\",'Enrollment Form'!$DT639<>\"\"),\"Y\",IF(AND('Enrollment Form'!$C639=\"ROC\",'Enrollment Form'!$DT639=\"\"),\"N\",IF(AND('Enrollment Form'!$C639=\"Enroll\",'Enrollment Form'!$B639=\"Subscriber\",'Enrollment Form'!$CQ639=\"No\",'Enrollment Form'!$DT639=\"\"),\"N\",IF(AND('Enrollment Form'!$C639=\"Enroll\",'Enrollment Form'!$B639=\"Subscriber\",'Enrollment Form'!$CQ639=\"Yes\"),\"-\",\"Y\")))))","v":""},{"$f":"IF('Enrollment Form'!AH639=\"\",\"\",IF(ISERROR(SEARCH(\".\",'Enrollment Form'!AH639,SEARCH(\"@\",'Enrollment Form'!AH639))),\"N\",\"Y\"))","v":""},{"$f":"IF(OR($B632=\"N\",'Enrollment Form'!$G639=\"\"),\"\",IF('Enrollment Form'!$B639<>\"Subscriber\",\"-\",IF(COUNTIF('Enrollment Form'!$AS639:$AT639,\"Yes\")=2,\"N\",\"Y\")))","v":""},{"$f":"IF(OR('Enrollment Form'!$CC639=\"\",'Enrollment Form'!$CC639=\"No\"),\"-\",IF(AND('Enrollment Form'!$CC639=\"Yes\",'Enrollment Form'!$CD639=\"\"),\"N\",\"Y\"))","v":"-"},{"$f":"IF(OR('Enrollment Form'!$CE639=\"\",'Enrollment Form'!$CE639=\"No\"),\"-\",IF(AND('Enrollment Form'!$CE639=\"Yes\",'Enrollment Form'!$CF639=\"\"),\"N\",\"Y\"))","v":"-"},{"$f":"IF(OR('Enrollment Form'!$CG639=\"\",'Enrollment Form'!$CG639=\"No\"),\"-\",IF(AND('Enrollment Form'!$CG639=\"Yes\",'Enrollment Form'!$CH639=\"\"),\"N\",\"Y\"))","v":"-"},{"$f":"IF(OR('Enrollment Form'!$CG639=\"\",'Enrollment Form'!$CG639=\"No\"),\"-\",IF(AND('Enrollment Form'!$CG639=\"Yes\",'Enrollment Form'!$CI639=\"\"),\"N\",\"Y\"))","v":"-"},{"$f":"IF('Enrollment Form'!B639<>\"Subscriber\",\"-\",IF(AND('Enrollment Form'!B639=\"Subscriber\",'Enrollment Form'!C639=\"Enroll\",'Enrollment Form'!AA639=\"\"),\"N\",\"Y\"))","v":"-"},{"$f":"IF(OR('Enrollment Form'!B639=\"Subscriber\",'Enrollment Form'!B639=\"\"),\"-\",IF('Enrollment Form'!BI639=\"\",\"N\",\"Y\"))","v":"-"},{"$f":"IF('Enrollment Form'!B639<>\"Subscriber\",\"-\",IF(AND('Enrollment Form'!B639=\"Subscriber\",'Enrollment Form'!G639=\"\"),\"N\",\"Y\"))","v":"-"},{"$f":"IF('Enrollment Form'!A639=\"\",\"\",IF('Enrollment Form'!B639=\"Subscriber\",\"-\",IF(AND('Enrollment Form'!B639<>\"Subscriber\",'Enrollment Form'!G639='Enrollment Form'!H639),\"N\",\"Y\")))","v":""},0]
[640,{"$f":"IF('Enrollment Form'!$A640<>\"\",\"Y\",\"N\")","v":"N"},{"$f":"IF(AND('Enrollment Form'!$B640=\"\",'Enrollment Form'!$C640<>\"\"),\"N\",IF($B633=\"N\",\"\",\"Y\"))","v":""},{"$f":"IF(OR($B633=\"N\",'Enrollment Form'!G640=\"\"),\"\",IF('Enrollment Form'!$B640<>\"Subscriber\",\"\",IF('Enrollment Form'!$G640='Enrollment Form'!$H640,\"Y\",\"N\")))","v":""},{"$f":"IF($B633=\"N\",\"\",IF(AND(COUNTIFS('Enrollment Form'!$H$11:$H$1000,'Enrollment Form'!$H640,'Enrollment Form'!$B$11:$B$1000,'Enrollment Form'!$B640)>1,'Enrollment Form'!$H640<>\"\"),\"N\",\"Y\"))","v":""},{"$f":"IF($B633=\"N\",\"\",IF(LEN('Enrollment Form'!$Y640)=0,\"\",IF(LEN('Enrollment Form'!$Y640)<>5,\"N\",\"Y\")))","v":""},{"$f":"IF($B633=\"N\",\"\",IF(LEN('Enrollment Form'!$AD640=0),\"\",IF(LEN('Enrollment Form'!$AD640)<>5,\"N\",\"Y\")))","v":""},{"$f":"IF($B633=\"N\",\"\",IF(LEN('Enrollment Form'!$BL640=0),\"\",IF(LEN('Enrollment Form'!$BL640)<>5,\"N\",\"Y\")))","v":""},{"$f":"IF($B633=\"N\",\"\",IF(LEN('Enrollment Form'!$AE640)=0,\"\",IF(LEN('Enrollment Form'!$AE640)<>10,\"N\",\"Y\")))","v":""},{"$f":"IF($B633=\"N\",\"\",IF(LEN('Enrollment Form'!$AF640)=0,\"\",IF(LEN('Enrollment Form'!$AF640)<>10,\"N\",\"Y\")))","v":""},{"$f":"IF('Enrollment Form'!$O640<>\"Graded\",\"-\",IF(AND('Enrollment Form'!$O640=\"Graded\",'Enrollment Form'!$AO640<>\"\"),\"Y\",\"N\"))","v":"-"},{"$f":"IF($B633=\"N\",\"\",IF(OR('Enrollment Form'!$B640<>\"Subscriber\",'Enrollment Form'!$C640=\"ROC\"),\"-\",IF(AND('Enrollment Form'!$B640=\"Subscriber\",'Enrollment Form'!$C640=\"Enroll\",'Enrollment Form'!$AJ640<>\"\"),\"Y\",\"N\")))","v":""},{"$f":"IF($B633=\"N\",\"\",IF(OR('Enrollment Form'!$B640<>\"Subscriber\",'Enrollment Form'!$C640=\"ROC\"),\"-\",IF(AND('Enrollment Form'!$B640=\"Subscriber\",'Enrollment Form'!$C640=\"Enroll\",'Enrollment Form'!$AK640<>\"\"),\"Y\",\"N\")))","v":""},{"$f":"IF($B633=\"N\",\"\",IF(OR('Enrollment Form'!$B640<>\"Subscriber\",'Enrollment Form'!$C640=\"ROC\"),\"-\",IF(AND('Enrollment Form'!$B640=\"Subscriber\",'Enrollment Form'!$C640=\"Enroll\",'Enrollment Form'!$AL640<>\"\"),\"Y\",\"N\")))","v":""},{"$f":"IF($B633=\"N\",\"\",IF(OR('Enrollment Form'!$B640<>\"Subscriber\",'Enrollment Form'!$C640=\"ROC\"),\"-\",IF(AND('Enrollment Form'!$B640=\"Subscriber\",'Enrollment Form'!$C640=\"Enroll\",'Enrollment Form'!$AM640<>\"\"),\"Y\",\"N\")))","v":""},{"$f":"IF($B633=\"N\",\"\",IF(OR('Enrollment Form'!$B640<>\"Subscriber\",'Enrollment Form'!$C640=\"ROC\"),\"-\",IF(AND('Enrollment Form'!$B640=\"Subscriber\",'Enrollment Form'!$C640=\"Enroll\",'Enrollment Form'!$AN640<>\"\"),\"Y\",\"N\")))","v":""},{"$f":"IF($B633=\"N\",\"\",IF(OR('Enrollment Form'!$B640<>\"Subscriber\",'Enrollment Form'!$C640=\"ROC\"),\"-\",IF(AND('Enrollment Form'!$B640=\"Subscriber\",'Enrollment Form'!$C640=\"Enroll\",'Enrollment Form'!$AP640<>\"\"),\"Y\",\"N\")))","v":""},{"$f":"IF($B633=\"N\",\"\",IF($Q633=\"-\",\"-\",IF(AND($Q633=\"Y\",'Enrollment Form'!$AP640=\"No\"),\"-\",IF(AND($Q633=\"Y\",'Enrollment Form'!$AP640=\"Yes\",'Enrollment Form'!$AQ640<>\"\"),\"Y\",\"N\"))))","v":""},{"$f":"IF($B633=\"N\",\"\",IF(OR('Enrollment Form'!$B640<>\"Subscriber\",'Enrollment Form'!$C640=\"ROC\"),\"-\",IF(AND('Enrollment Form'!$B640=\"Subscriber\",'Enrollment Form'!$C640=\"Enroll\",'Enrollment Form'!$CO640<>\"\"),\"Y\",\"N\")))","v":""},{"$f":"IF($B633=\"N\",\"\",IF($S633=\"-\",\"-\",IF(AND($S633=\"Y\",'Enrollment Form'!$CO640=\"No\"),\"-\",IF(AND($S633=\"Y\",'Enrollment Form'!$CO640=\"Yes\",'Enrollment Form'!$CP640<>\"\"),\"Y\",\"N\"))))","v":""},{"$f":"IF(OR('Enrollment Form'!$AV640=\"Yes\",'Enrollment Form'!$AV640=\"\"),\"-\",IF(AND('Enrollment Form'!$AV640=\"No\",ISERROR(FIND(\"HMO\",VLOOKUP('Enrollment Form'!G640,'Enrollment Form'!H$11:J$1000,3,FALSE),1))=FALSE,COUNTA('Enrollment Form'!$AW640:$AZ640)=4),\"Y\",\"N\"))","v":"-"},{"$f":"IF($B633=\"N\",\"\",IF('Enrollment Form'!$B640=\"Subscriber\",\"-\",IF(COUNTA('Enrollment Form'!$BE640,'Enrollment Form'!$BG640)=2,\"Y\",\"N\")))","v":""},{"$f":"IF($B633=\"N\",\"\",IF(OR('Enrollment Form'!$AU640=\"\",'Enrollment Form'!$AU640=\"No\"),\"-\",IF(AND('Enrollment Form'!$AU640=\"Yes\",COUNTA('Enrollment Form'!$CK640)=1),\"Y\",\"N\")))","v":""},{"$f":"IF(OR('Enrollment Form'!$CK640=\"\",'Enrollment Form'!$CK640=\"No\"),\"-\",IF(COUNTA('Enrollment Form'!$CM640:$CN640)=2,\"Y\",\"N\"))","v":"-"},{"$f":"IF($B633=\"N\",\"\",IF(COUNTIF('Enrollment Form'!$CZ640:$DO640,\"Other\")=COUNTA('Enrollment Form'!$DF640,'Enrollment Form'!$DA640,'Enrollment Form'!$DK640,'Enrollment Form'!$DP640),\"Y\",\"N\"))","v":""},{"$f":"IF($B633=\"N\",\"\",IF(OR('Enrollment Form'!B640<>\"Subscriber\",'Enrollment Form'!C640=\"ROC\",COUNTIF('Enrollment Form'!AS640:AT640,\"Yes\")>=1),\"-\",IF(AND('Enrollment Form'!C640=\"Enroll\",COUNTIF('Enrollment Form'!AS640:AT640,\"No\")=2,'Enrollment Form'!AU640=\"\"),\"N\",\"Y\")))","v":""},{"$f":"IF(OR(B633=\"N\",'Enrollment Form'!B640<>\"Subscriber\",'Enrollment Form'!C640=\"ROC\",'Enrollment Form'!O640<>\"Multiple of Salary\"),\"-\",IF(COUNTA('Enrollment Form'!T640:U640)<2,\"N\",\"Y\"))","v":"-"},{"$f":"IF(B633=\"N\",\"\",IF(OR('Enrollment Form'!C640=\"ROC\",'Enrollment Form'!B640<>\"Subscriber\",'Enrollment Form'!O640=\"Waive\",'Enrollment Form'!O640=\"\"),\"-\",IF('Enrollment Form'!P640=\"\",\"N\",\"Y\")))","v":""},{"$f":"IF($B633=\"N\",\"\",IF(AND('Enrollment Form'!$C640=\"ROC\",'Enrollment Form'!$DS640<>\"\"),\"Y\",IF(AND('Enrollment Form'!$C640=\"ROC\",'Enrollment Form'!$DS640=\"\"),\"N\",IF(AND('Enrollment Form'!$C640=\"Enroll\",'Enrollment Form'!$B640=\"Subscriber\",'Enrollment Form'!$CQ640=\"No\",'Enrollment Form'!$DS640=\"\"),\"N\",IF(AND('Enrollment Form'!$C640=\"Enroll\",'Enrollment Form'!$B640=\"Subscriber\",'Enrollment Form'!$CQ640=\"Yes\"),\"-\",\"Y\")))))","v":""},{"$f":"IF($B633=\"N\",\"\",IF(AND('Enrollment Form'!$C640=\"ROC\",'Enrollment Form'!$DT640<>\"\"),\"Y\",IF(AND('Enrollment Form'!$C640=\"ROC\",'Enrollment Form'!$DT640=\"\"),\"N\",IF(AND('Enrollment Form'!$C640=\"Enroll\",'Enrollment Form'!$B640=\"Subscriber\",'Enrollment Form'!$CQ640=\"No\",'Enrollment Form'!$DT640=\"\"),\"N\",IF(AND('Enrollment Form'!$C640=\"Enroll\",'Enrollment Form'!$B640=\"Subscriber\",'Enrollment Form'!$CQ640=\"Yes\"),\"-\",\"Y\")))))","v":""},{"$f":"IF('Enrollment Form'!AH640=\"\",\"\",IF(ISERROR(SEARCH(\".\",'Enrollment Form'!AH640,SEARCH(\"@\",'Enrollment Form'!AH640))),\"N\",\"Y\"))","v":""},{"$f":"IF(OR($B633=\"N\",'Enrollment Form'!$G640=\"\"),\"\",IF('Enrollment Form'!$B640<>\"Subscriber\",\"-\",IF(COUNTIF('Enrollment Form'!$AS640:$AT640,\"Yes\")=2,\"N\",\"Y\")))","v":""},{"$f":"IF(OR('Enrollment Form'!$CC640=\"\",'Enrollment Form'!$CC640=\"No\"),\"-\",IF(AND('Enrollment Form'!$CC640=\"Yes\",'Enrollment Form'!$CD640=\"\"),\"N\",\"Y\"))","v":"-"},{"$f":"IF(OR('Enrollment Form'!$CE640=\"\",'Enrollment Form'!$CE640=\"No\"),\"-\",IF(AND('Enrollment Form'!$CE640=\"Yes\",'Enrollment Form'!$CF640=\"\"),\"N\",\"Y\"))","v":"-"},{"$f":"IF(OR('Enrollment Form'!$CG640=\"\",'Enrollment Form'!$CG640=\"No\"),\"-\",IF(AND('Enrollment Form'!$CG640=\"Yes\",'Enrollment Form'!$CH640=\"\"),\"N\",\"Y\"))","v":"-"},{"$f":"IF(OR('Enrollment Form'!$CG640=\"\",'Enrollment Form'!$CG640=\"No\"),\"-\",IF(AND('Enrollment Form'!$CG640=\"Yes\",'Enrollment Form'!$CI640=\"\"),\"N\",\"Y\"))","v":"-"},{"$f":"IF('Enrollment Form'!B640<>\"Subscriber\",\"-\",IF(AND('Enrollment Form'!B640=\"Subscriber\",'Enrollment Form'!C640=\"Enroll\",'Enrollment Form'!AA640=\"\"),\"N\",\"Y\"))","v":"-"},{"$f":"IF(OR('Enrollment Form'!B640=\"Subscriber\",'Enrollment Form'!B640=\"\"),\"-\",IF('Enrollment Form'!BI640=\"\",\"N\",\"Y\"))","v":"-"},{"$f":"IF('Enrollment Form'!B640<>\"Subscriber\",\"-\",IF(AND('Enrollment Form'!B640=\"Subscriber\",'Enrollment Form'!G640=\"\"),\"N\",\"Y\"))","v":"-"},{"$f":"IF('Enrollment Form'!A640=\"\",\"\",IF('Enrollment Form'!B640=\"Subscriber\",\"-\",IF(AND('Enrollment Form'!B640<>\"Subscriber\",'Enrollment Form'!G640='Enrollment Form'!H640),\"N\",\"Y\")))","v":""},0]
[641,{"$f":"IF('Enrollment Form'!$A641<>\"\",\"Y\",\"N\")","v":"N"},{"$f":"IF(AND('Enrollment Form'!$B641=\"\",'Enrollment Form'!$C641<>\"\"),\"N\",IF($B634=\"N\",\"\",\"Y\"))","v":""},{"$f":"IF(OR($B634=\"N\",'Enrollment Form'!G641=\"\"),\"\",IF('Enrollment Form'!$B641<>\"Subscriber\",\"\",IF('Enrollment Form'!$G641='Enrollment Form'!$H641,\"Y\",\"N\")))","v":""},{"$f":"IF($B634=\"N\",\"\",IF(AND(COUNTIFS('Enrollment Form'!$H$11:$H$1000,'Enrollment Form'!$H641,'Enrollment Form'!$B$11:$B$1000,'Enrollment Form'!$B641)>1,'Enrollment Form'!$H641<>\"\"),\"N\",\"Y\"))","v":""},{"$f":"IF($B634=\"N\",\"\",IF(LEN('Enrollment Form'!$Y641)=0,\"\",IF(LEN('Enrollment Form'!$Y641)<>5,\"N\",\"Y\")))","v":""},{"$f":"IF($B634=\"N\",\"\",IF(LEN('Enrollment Form'!$AD641=0),\"\",IF(LEN('Enrollment Form'!$AD641)<>5,\"N\",\"Y\")))","v":""},{"$f":"IF($B634=\"N\",\"\",IF(LEN('Enrollment Form'!$BL641=0),\"\",IF(LEN('Enrollment Form'!$BL641)<>5,\"N\",\"Y\")))","v":""},{"$f":"IF($B634=\"N\",\"\",IF(LEN('Enrollment Form'!$AE641)=0,\"\",IF(LEN('Enrollment Form'!$AE641)<>10,\"N\",\"Y\")))","v":""},{"$f":"IF($B634=\"N\",\"\",IF(LEN('Enrollment Form'!$AF641)=0,\"\",IF(LEN('Enrollment Form'!$AF641)<>10,\"N\",\"Y\")))","v":""},{"$f":"IF('Enrollment Form'!$O641<>\"Graded\",\"-\",IF(AND('Enrollment Form'!$O641=\"Graded\",'Enrollment Form'!$AO641<>\"\"),\"Y\",\"N\"))","v":"-"},{"$f":"IF($B634=\"N\",\"\",IF(OR('Enrollment Form'!$B641<>\"Subscriber\",'Enrollment Form'!$C641=\"ROC\"),\"-\",IF(AND('Enrollment Form'!$B641=\"Subscriber\",'Enrollment Form'!$C641=\"Enroll\",'Enrollment Form'!$AJ641<>\"\"),\"Y\",\"N\")))","v":""},{"$f":"IF($B634=\"N\",\"\",IF(OR('Enrollment Form'!$B641<>\"Subscriber\",'Enrollment Form'!$C641=\"ROC\"),\"-\",IF(AND('Enrollment Form'!$B641=\"Subscriber\",'Enrollment Form'!$C641=\"Enroll\",'Enrollment Form'!$AK641<>\"\"),\"Y\",\"N\")))","v":""},{"$f":"IF($B634=\"N\",\"\",IF(OR('Enrollment Form'!$B641<>\"Subscriber\",'Enrollment Form'!$C641=\"ROC\"),\"-\",IF(AND('Enrollment Form'!$B641=\"Subscriber\",'Enrollment Form'!$C641=\"Enroll\",'Enrollment Form'!$AL641<>\"\"),\"Y\",\"N\")))","v":""},{"$f":"IF($B634=\"N\",\"\",IF(OR('Enrollment Form'!$B641<>\"Subscriber\",'Enrollment Form'!$C641=\"ROC\"),\"-\",IF(AND('Enrollment Form'!$B641=\"Subscriber\",'Enrollment Form'!$C641=\"Enroll\",'Enrollment Form'!$AM641<>\"\"),\"Y\",\"N\")))","v":""},{"$f":"IF($B634=\"N\",\"\",IF(OR('Enrollment Form'!$B641<>\"Subscriber\",'Enrollment Form'!$C641=\"ROC\"),\"-\",IF(AND('Enrollment Form'!$B641=\"Subscriber\",'Enrollment Form'!$C641=\"Enroll\",'Enrollment Form'!$AN641<>\"\"),\"Y\",\"N\")))","v":""},{"$f":"IF($B634=\"N\",\"\",IF(OR('Enrollment Form'!$B641<>\"Subscriber\",'Enrollment Form'!$C641=\"ROC\"),\"-\",IF(AND('Enrollment Form'!$B641=\"Subscriber\",'Enrollment Form'!$C641=\"Enroll\",'Enrollment Form'!$AP641<>\"\"),\"Y\",\"N\")))","v":""},{"$f":"IF($B634=\"N\",\"\",IF($Q634=\"-\",\"-\",IF(AND($Q634=\"Y\",'Enrollment Form'!$AP641=\"No\"),\"-\",IF(AND($Q634=\"Y\",'Enrollment Form'!$AP641=\"Yes\",'Enrollment Form'!$AQ641<>\"\"),\"Y\",\"N\"))))","v":""},{"$f":"IF($B634=\"N\",\"\",IF(OR('Enrollment Form'!$B641<>\"Subscriber\",'Enrollment Form'!$C641=\"ROC\"),\"-\",IF(AND('Enrollment Form'!$B641=\"Subscriber\",'Enrollment Form'!$C641=\"Enroll\",'Enrollment Form'!$CO641<>\"\"),\"Y\",\"N\")))","v":""},{"$f":"IF($B634=\"N\",\"\",IF($S634=\"-\",\"-\",IF(AND($S634=\"Y\",'Enrollment Form'!$CO641=\"No\"),\"-\",IF(AND($S634=\"Y\",'Enrollment Form'!$CO641=\"Yes\",'Enrollment Form'!$CP641<>\"\"),\"Y\",\"N\"))))","v":""},{"$f":"IF(OR('Enrollment Form'!$AV641=\"Yes\",'Enrollment Form'!$AV641=\"\"),\"-\",IF(AND('Enrollment Form'!$AV641=\"No\",ISERROR(FIND(\"HMO\",VLOOKUP('Enrollment Form'!G641,'Enrollment Form'!H$11:J$1000,3,FALSE),1))=FALSE,COUNTA('Enrollment Form'!$AW641:$AZ641)=4),\"Y\",\"N\"))","v":"-"},{"$f":"IF($B634=\"N\",\"\",IF('Enrollment Form'!$B641=\"Subscriber\",\"-\",IF(COUNTA('Enrollment Form'!$BE641,'Enrollment Form'!$BG641)=2,\"Y\",\"N\")))","v":""},{"$f":"IF($B634=\"N\",\"\",IF(OR('Enrollment Form'!$AU641=\"\",'Enrollment Form'!$AU641=\"No\"),\"-\",IF(AND('Enrollment Form'!$AU641=\"Yes\",COUNTA('Enrollment Form'!$CK641)=1),\"Y\",\"N\")))","v":""},{"$f":"IF(OR('Enrollment Form'!$CK641=\"\",'Enrollment Form'!$CK641=\"No\"),\"-\",IF(COUNTA('Enrollment Form'!$CM641:$CN641)=2,\"Y\",\"N\"))","v":"-"},{"$f":"IF($B634=\"N\",\"\",IF(COUNTIF('Enrollment Form'!$CZ641:$DO641,\"Other\")=COUNTA('Enrollment Form'!$DF641,'Enrollment Form'!$DA641,'Enrollment Form'!$DK641,'Enrollment Form'!$DP641),\"Y\",\"N\"))","v":""},{"$f":"IF($B634=\"N\",\"\",IF(OR('Enrollment Form'!B641<>\"Subscriber\",'Enrollment Form'!C641=\"ROC\",COUNTIF('Enrollment Form'!AS641:AT641,\"Yes\")>=1),\"-\",IF(AND('Enrollment Form'!C641=\"Enroll\",COUNTIF('Enrollment Form'!AS641:AT641,\"No\")=2,'Enrollment Form'!AU641=\"\"),\"N\",\"Y\")))","v":""},{"$f":"IF(OR(B634=\"N\",'Enrollment Form'!B641<>\"Subscriber\",'Enrollment Form'!C641=\"ROC\",'Enrollment Form'!O641<>\"Multiple of Salary\"),\"-\",IF(COUNTA('Enrollment Form'!T641:U641)<2,\"N\",\"Y\"))","v":"-"},{"$f":"IF(B634=\"N\",\"\",IF(OR('Enrollment Form'!C641=\"ROC\",'Enrollment Form'!B641<>\"Subscriber\",'Enrollment Form'!O641=\"Waive\",'Enrollment Form'!O641=\"\"),\"-\",IF('Enrollment Form'!P641=\"\",\"N\",\"Y\")))","v":""},{"$f":"IF($B634=\"N\",\"\",IF(AND('Enrollment Form'!$C641=\"ROC\",'Enrollment Form'!$DS641<>\"\"),\"Y\",IF(AND('Enrollment Form'!$C641=\"ROC\",'Enrollment Form'!$DS641=\"\"),\"N\",IF(AND('Enrollment Form'!$C641=\"Enroll\",'Enrollment Form'!$B641=\"Subscriber\",'Enrollment Form'!$CQ641=\"No\",'Enrollment Form'!$DS641=\"\"),\"N\",IF(AND('Enrollment Form'!$C641=\"Enroll\",'Enrollment Form'!$B641=\"Subscriber\",'Enrollment Form'!$CQ641=\"Yes\"),\"-\",\"Y\")))))","v":""},{"$f":"IF($B634=\"N\",\"\",IF(AND('Enrollment Form'!$C641=\"ROC\",'Enrollment Form'!$DT641<>\"\"),\"Y\",IF(AND('Enrollment Form'!$C641=\"ROC\",'Enrollment Form'!$DT641=\"\"),\"N\",IF(AND('Enrollment Form'!$C641=\"Enroll\",'Enrollment Form'!$B641=\"Subscriber\",'Enrollment Form'!$CQ641=\"No\",'Enrollment Form'!$DT641=\"\"),\"N\",IF(AND('Enrollment Form'!$C641=\"Enroll\",'Enrollment Form'!$B641=\"Subscriber\",'Enrollment Form'!$CQ641=\"Yes\"),\"-\",\"Y\")))))","v":""},{"$f":"IF('Enrollment Form'!AH641=\"\",\"\",IF(ISERROR(SEARCH(\".\",'Enrollment Form'!AH641,SEARCH(\"@\",'Enrollment Form'!AH641))),\"N\",\"Y\"))","v":""},{"$f":"IF(OR($B634=\"N\",'Enrollment Form'!$G641=\"\"),\"\",IF('Enrollment Form'!$B641<>\"Subscriber\",\"-\",IF(COUNTIF('Enrollment Form'!$AS641:$AT641,\"Yes\")=2,\"N\",\"Y\")))","v":""},{"$f":"IF(OR('Enrollment Form'!$CC641=\"\",'Enrollment Form'!$CC641=\"No\"),\"-\",IF(AND('Enrollment Form'!$CC641=\"Yes\",'Enrollment Form'!$CD641=\"\"),\"N\",\"Y\"))","v":"-"},{"$f":"IF(OR('Enrollment Form'!$CE641=\"\",'Enrollment Form'!$CE641=\"No\"),\"-\",IF(AND('Enrollment Form'!$CE641=\"Yes\",'Enrollment Form'!$CF641=\"\"),\"N\",\"Y\"))","v":"-"},{"$f":"IF(OR('Enrollment Form'!$CG641=\"\",'Enrollment Form'!$CG641=\"No\"),\"-\",IF(AND('Enrollment Form'!$CG641=\"Yes\",'Enrollment Form'!$CH641=\"\"),\"N\",\"Y\"))","v":"-"},{"$f":"IF(OR('Enrollment Form'!$CG641=\"\",'Enrollment Form'!$CG641=\"No\"),\"-\",IF(AND('Enrollment Form'!$CG641=\"Yes\",'Enrollment Form'!$CI641=\"\"),\"N\",\"Y\"))","v":"-"},{"$f":"IF('Enrollment Form'!B641<>\"Subscriber\",\"-\",IF(AND('Enrollment Form'!B641=\"Subscriber\",'Enrollment Form'!C641=\"Enroll\",'Enrollment Form'!AA641=\"\"),\"N\",\"Y\"))","v":"-"},{"$f":"IF(OR('Enrollment Form'!B641=\"Subscriber\",'Enrollment Form'!B641=\"\"),\"-\",IF('Enrollment Form'!BI641=\"\",\"N\",\"Y\"))","v":"-"},{"$f":"IF('Enrollment Form'!B641<>\"Subscriber\",\"-\",IF(AND('Enrollment Form'!B641=\"Subscriber\",'Enrollment Form'!G641=\"\"),\"N\",\"Y\"))","v":"-"},{"$f":"IF('Enrollment Form'!A641=\"\",\"\",IF('Enrollment Form'!B641=\"Subscriber\",\"-\",IF(AND('Enrollment Form'!B641<>\"Subscriber\",'Enrollment Form'!G641='Enrollment Form'!H641),\"N\",\"Y\")))","v":""},0]
[642,{"$f":"IF('Enrollment Form'!$A642<>\"\",\"Y\",\"N\")","v":"N"},{"$f":"IF(AND('Enrollment Form'!$B642=\"\",'Enrollment Form'!$C642<>\"\"),\"N\",IF($B635=\"N\",\"\",\"Y\"))","v":""},{"$f":"IF(OR($B635=\"N\",'Enrollment Form'!G642=\"\"),\"\",IF('Enrollment Form'!$B642<>\"Subscriber\",\"\",IF('Enrollment Form'!$G642='Enrollment Form'!$H642,\"Y\",\"N\")))","v":""},{"$f":"IF($B635=\"N\",\"\",IF(AND(COUNTIFS('Enrollment Form'!$H$11:$H$1000,'Enrollment Form'!$H642,'Enrollment Form'!$B$11:$B$1000,'Enrollment Form'!$B642)>1,'Enrollment Form'!$H642<>\"\"),\"N\",\"Y\"))","v":""},{"$f":"IF($B635=\"N\",\"\",IF(LEN('Enrollment Form'!$Y642)=0,\"\",IF(LEN('Enrollment Form'!$Y642)<>5,\"N\",\"Y\")))","v":""},{"$f":"IF($B635=\"N\",\"\",IF(LEN('Enrollment Form'!$AD642=0),\"\",IF(LEN('Enrollment Form'!$AD642)<>5,\"N\",\"Y\")))","v":""},{"$f":"IF($B635=\"N\",\"\",IF(LEN('Enrollment Form'!$BL642=0),\"\",IF(LEN('Enrollment Form'!$BL642)<>5,\"N\",\"Y\")))","v":""},{"$f":"IF($B635=\"N\",\"\",IF(LEN('Enrollment Form'!$AE642)=0,\"\",IF(LEN('Enrollment Form'!$AE642)<>10,\"N\",\"Y\")))","v":""},{"$f":"IF($B635=\"N\",\"\",IF(LEN('Enrollment Form'!$AF642)=0,\"\",IF(LEN('Enrollment Form'!$AF642)<>10,\"N\",\"Y\")))","v":""},{"$f":"IF('Enrollment Form'!$O642<>\"Graded\",\"-\",IF(AND('Enrollment Form'!$O642=\"Graded\",'Enrollment Form'!$AO642<>\"\"),\"Y\",\"N\"))","v":"-"},{"$f":"IF($B635=\"N\",\"\",IF(OR('Enrollment Form'!$B642<>\"Subscriber\",'Enrollment Form'!$C642=\"ROC\"),\"-\",IF(AND('Enrollment Form'!$B642=\"Subscriber\",'Enrollment Form'!$C642=\"Enroll\",'Enrollment Form'!$AJ642<>\"\"),\"Y\",\"N\")))","v":""},{"$f":"IF($B635=\"N\",\"\",IF(OR('Enrollment Form'!$B642<>\"Subscriber\",'Enrollment Form'!$C642=\"ROC\"),\"-\",IF(AND('Enrollment Form'!$B642=\"Subscriber\",'Enrollment Form'!$C642=\"Enroll\",'Enrollment Form'!$AK642<>\"\"),\"Y\",\"N\")))","v":""},{"$f":"IF($B635=\"N\",\"\",IF(OR('Enrollment Form'!$B642<>\"Subscriber\",'Enrollment Form'!$C642=\"ROC\"),\"-\",IF(AND('Enrollment Form'!$B642=\"Subscriber\",'Enrollment Form'!$C642=\"Enroll\",'Enrollment Form'!$AL642<>\"\"),\"Y\",\"N\")))","v":""},{"$f":"IF($B635=\"N\",\"\",IF(OR('Enrollment Form'!$B642<>\"Subscriber\",'Enrollment Form'!$C642=\"ROC\"),\"-\",IF(AND('Enrollment Form'!$B642=\"Subscriber\",'Enrollment Form'!$C642=\"Enroll\",'Enrollment Form'!$AM642<>\"\"),\"Y\",\"N\")))","v":""},{"$f":"IF($B635=\"N\",\"\",IF(OR('Enrollment Form'!$B642<>\"Subscriber\",'Enrollment Form'!$C642=\"ROC\"),\"-\",IF(AND('Enrollment Form'!$B642=\"Subscriber\",'Enrollment Form'!$C642=\"Enroll\",'Enrollment Form'!$AN642<>\"\"),\"Y\",\"N\")))","v":""},{"$f":"IF($B635=\"N\",\"\",IF(OR('Enrollment Form'!$B642<>\"Subscriber\",'Enrollment Form'!$C642=\"ROC\"),\"-\",IF(AND('Enrollment Form'!$B642=\"Subscriber\",'Enrollment Form'!$C642=\"Enroll\",'Enrollment Form'!$AP642<>\"\"),\"Y\",\"N\")))","v":""},{"$f":"IF($B635=\"N\",\"\",IF($Q635=\"-\",\"-\",IF(AND($Q635=\"Y\",'Enrollment Form'!$AP642=\"No\"),\"-\",IF(AND($Q635=\"Y\",'Enrollment Form'!$AP642=\"Yes\",'Enrollment Form'!$AQ642<>\"\"),\"Y\",\"N\"))))","v":""},{"$f":"IF($B635=\"N\",\"\",IF(OR('Enrollment Form'!$B642<>\"Subscriber\",'Enrollment Form'!$C642=\"ROC\"),\"-\",IF(AND('Enrollment Form'!$B642=\"Subscriber\",'Enrollment Form'!$C642=\"Enroll\",'Enrollment Form'!$CO642<>\"\"),\"Y\",\"N\")))","v":""},{"$f":"IF($B635=\"N\",\"\",IF($S635=\"-\",\"-\",IF(AND($S635=\"Y\",'Enrollment Form'!$CO642=\"No\"),\"-\",IF(AND($S635=\"Y\",'Enrollment Form'!$CO642=\"Yes\",'Enrollment Form'!$CP642<>\"\"),\"Y\",\"N\"))))","v":""},{"$f":"IF(OR('Enrollment Form'!$AV642=\"Yes\",'Enrollment Form'!$AV642=\"\"),\"-\",IF(AND('Enrollment Form'!$AV642=\"No\",ISERROR(FIND(\"HMO\",VLOOKUP('Enrollment Form'!G642,'Enrollment Form'!H$11:J$1000,3,FALSE),1))=FALSE,COUNTA('Enrollment Form'!$AW642:$AZ642)=4),\"Y\",\"N\"))","v":"-"},{"$f":"IF($B635=\"N\",\"\",IF('Enrollment Form'!$B642=\"Subscriber\",\"-\",IF(COUNTA('Enrollment Form'!$BE642,'Enrollment Form'!$BG642)=2,\"Y\",\"N\")))","v":""},{"$f":"IF($B635=\"N\",\"\",IF(OR('Enrollment Form'!$AU642=\"\",'Enrollment Form'!$AU642=\"No\"),\"-\",IF(AND('Enrollment Form'!$AU642=\"Yes\",COUNTA('Enrollment Form'!$CK642)=1),\"Y\",\"N\")))","v":""},{"$f":"IF(OR('Enrollment Form'!$CK642=\"\",'Enrollment Form'!$CK642=\"No\"),\"-\",IF(COUNTA('Enrollment Form'!$CM642:$CN642)=2,\"Y\",\"N\"))","v":"-"},{"$f":"IF($B635=\"N\",\"\",IF(COUNTIF('Enrollment Form'!$CZ642:$DO642,\"Other\")=COUNTA('Enrollment Form'!$DF642,'Enrollment Form'!$DA642,'Enrollment Form'!$DK642,'Enrollment Form'!$DP642),\"Y\",\"N\"))","v":""},{"$f":"IF($B635=\"N\",\"\",IF(OR('Enrollment Form'!B642<>\"Subscriber\",'Enrollment Form'!C642=\"ROC\",COUNTIF('Enrollment Form'!AS642:AT642,\"Yes\")>=1),\"-\",IF(AND('Enrollment Form'!C642=\"Enroll\",COUNTIF('Enrollment Form'!AS642:AT642,\"No\")=2,'Enrollment Form'!AU642=\"\"),\"N\",\"Y\")))","v":""},{"$f":"IF(OR(B635=\"N\",'Enrollment Form'!B642<>\"Subscriber\",'Enrollment Form'!C642=\"ROC\",'Enrollment Form'!O642<>\"Multiple of Salary\"),\"-\",IF(COUNTA('Enrollment Form'!T642:U642)<2,\"N\",\"Y\"))","v":"-"},{"$f":"IF(B635=\"N\",\"\",IF(OR('Enrollment Form'!C642=\"ROC\",'Enrollment Form'!B642<>\"Subscriber\",'Enrollment Form'!O642=\"Waive\",'Enrollment Form'!O642=\"\"),\"-\",IF('Enrollment Form'!P642=\"\",\"N\",\"Y\")))","v":""},{"$f":"IF($B635=\"N\",\"\",IF(AND('Enrollment Form'!$C642=\"ROC\",'Enrollment Form'!$DS642<>\"\"),\"Y\",IF(AND('Enrollment Form'!$C642=\"ROC\",'Enrollment Form'!$DS642=\"\"),\"N\",IF(AND('Enrollment Form'!$C642=\"Enroll\",'Enrollment Form'!$B642=\"Subscriber\",'Enrollment Form'!$CQ642=\"No\",'Enrollment Form'!$DS642=\"\"),\"N\",IF(AND('Enrollment Form'!$C642=\"Enroll\",'Enrollment Form'!$B642=\"Subscriber\",'Enrollment Form'!$CQ642=\"Yes\"),\"-\",\"Y\")))))","v":""},{"$f":"IF($B635=\"N\",\"\",IF(AND('Enrollment Form'!$C642=\"ROC\",'Enrollment Form'!$DT642<>\"\"),\"Y\",IF(AND('Enrollment Form'!$C642=\"ROC\",'Enrollment Form'!$DT642=\"\"),\"N\",IF(AND('Enrollment Form'!$C642=\"Enroll\",'Enrollment Form'!$B642=\"Subscriber\",'Enrollment Form'!$CQ642=\"No\",'Enrollment Form'!$DT642=\"\"),\"N\",IF(AND('Enrollment Form'!$C642=\"Enroll\",'Enrollment Form'!$B642=\"Subscriber\",'Enrollment Form'!$CQ642=\"Yes\"),\"-\",\"Y\")))))","v":""},{"$f":"IF('Enrollment Form'!AH642=\"\",\"\",IF(ISERROR(SEARCH(\".\",'Enrollment Form'!AH642,SEARCH(\"@\",'Enrollment Form'!AH642))),\"N\",\"Y\"))","v":""},{"$f":"IF(OR($B635=\"N\",'Enrollment Form'!$G642=\"\"),\"\",IF('Enrollment Form'!$B642<>\"Subscriber\",\"-\",IF(COUNTIF('Enrollment Form'!$AS642:$AT642,\"Yes\")=2,\"N\",\"Y\")))","v":""},{"$f":"IF(OR('Enrollment Form'!$CC642=\"\",'Enrollment Form'!$CC642=\"No\"),\"-\",IF(AND('Enrollment Form'!$CC642=\"Yes\",'Enrollment Form'!$CD642=\"\"),\"N\",\"Y\"))","v":"-"},{"$f":"IF(OR('Enrollment Form'!$CE642=\"\",'Enrollment Form'!$CE642=\"No\"),\"-\",IF(AND('Enrollment Form'!$CE642=\"Yes\",'Enrollment Form'!$CF642=\"\"),\"N\",\"Y\"))","v":"-"},{"$f":"IF(OR('Enrollment Form'!$CG642=\"\",'Enrollment Form'!$CG642=\"No\"),\"-\",IF(AND('Enrollment Form'!$CG642=\"Yes\",'Enrollment Form'!$CH642=\"\"),\"N\",\"Y\"))","v":"-"},{"$f":"IF(OR('Enrollment Form'!$CG642=\"\",'Enrollment Form'!$CG642=\"No\"),\"-\",IF(AND('Enrollment Form'!$CG642=\"Yes\",'Enrollment Form'!$CI642=\"\"),\"N\",\"Y\"))","v":"-"},{"$f":"IF('Enrollment Form'!B642<>\"Subscriber\",\"-\",IF(AND('Enrollment Form'!B642=\"Subscriber\",'Enrollment Form'!C642=\"Enroll\",'Enrollment Form'!AA642=\"\"),\"N\",\"Y\"))","v":"-"},{"$f":"IF(OR('Enrollment Form'!B642=\"Subscriber\",'Enrollment Form'!B642=\"\"),\"-\",IF('Enrollment Form'!BI642=\"\",\"N\",\"Y\"))","v":"-"},{"$f":"IF('Enrollment Form'!B642<>\"Subscriber\",\"-\",IF(AND('Enrollment Form'!B642=\"Subscriber\",'Enrollment Form'!G642=\"\"),\"N\",\"Y\"))","v":"-"},{"$f":"IF('Enrollment Form'!A642=\"\",\"\",IF('Enrollment Form'!B642=\"Subscriber\",\"-\",IF(AND('Enrollment Form'!B642<>\"Subscriber\",'Enrollment Form'!G642='Enrollment Form'!H642),\"N\",\"Y\")))","v":""},0]
[643,{"$f":"IF('Enrollment Form'!$A643<>\"\",\"Y\",\"N\")","v":"N"},{"$f":"IF(AND('Enrollment Form'!$B643=\"\",'Enrollment Form'!$C643<>\"\"),\"N\",IF($B636=\"N\",\"\",\"Y\"))","v":""},{"$f":"IF(OR($B636=\"N\",'Enrollment Form'!G643=\"\"),\"\",IF('Enrollment Form'!$B643<>\"Subscriber\",\"\",IF('Enrollment Form'!$G643='Enrollment Form'!$H643,\"Y\",\"N\")))","v":""},{"$f":"IF($B636=\"N\",\"\",IF(AND(COUNTIFS('Enrollment Form'!$H$11:$H$1000,'Enrollment Form'!$H643,'Enrollment Form'!$B$11:$B$1000,'Enrollment Form'!$B643)>1,'Enrollment Form'!$H643<>\"\"),\"N\",\"Y\"))","v":""},{"$f":"IF($B636=\"N\",\"\",IF(LEN('Enrollment Form'!$Y643)=0,\"\",IF(LEN('Enrollment Form'!$Y643)<>5,\"N\",\"Y\")))","v":""},{"$f":"IF($B636=\"N\",\"\",IF(LEN('Enrollment Form'!$AD643=0),\"\",IF(LEN('Enrollment Form'!$AD643)<>5,\"N\",\"Y\")))","v":""},{"$f":"IF($B636=\"N\",\"\",IF(LEN('Enrollment Form'!$BL643=0),\"\",IF(LEN('Enrollment Form'!$BL643)<>5,\"N\",\"Y\")))","v":""},{"$f":"IF($B636=\"N\",\"\",IF(LEN('Enrollment Form'!$AE643)=0,\"\",IF(LEN('Enrollment Form'!$AE643)<>10,\"N\",\"Y\")))","v":""},{"$f":"IF($B636=\"N\",\"\",IF(LEN('Enrollment Form'!$AF643)=0,\"\",IF(LEN('Enrollment Form'!$AF643)<>10,\"N\",\"Y\")))","v":""},{"$f":"IF('Enrollment Form'!$O643<>\"Graded\",\"-\",IF(AND('Enrollment Form'!$O643=\"Graded\",'Enrollment Form'!$AO643<>\"\"),\"Y\",\"N\"))","v":"-"},{"$f":"IF($B636=\"N\",\"\",IF(OR('Enrollment Form'!$B643<>\"Subscriber\",'Enrollment Form'!$C643=\"ROC\"),\"-\",IF(AND('Enrollment Form'!$B643=\"Subscriber\",'Enrollment Form'!$C643=\"Enroll\",'Enrollment Form'!$AJ643<>\"\"),\"Y\",\"N\")))","v":""},{"$f":"IF($B636=\"N\",\"\",IF(OR('Enrollment Form'!$B643<>\"Subscriber\",'Enrollment Form'!$C643=\"ROC\"),\"-\",IF(AND('Enrollment Form'!$B643=\"Subscriber\",'Enrollment Form'!$C643=\"Enroll\",'Enrollment Form'!$AK643<>\"\"),\"Y\",\"N\")))","v":""},{"$f":"IF($B636=\"N\",\"\",IF(OR('Enrollment Form'!$B643<>\"Subscriber\",'Enrollment Form'!$C643=\"ROC\"),\"-\",IF(AND('Enrollment Form'!$B643=\"Subscriber\",'Enrollment Form'!$C643=\"Enroll\",'Enrollment Form'!$AL643<>\"\"),\"Y\",\"N\")))","v":""},{"$f":"IF($B636=\"N\",\"\",IF(OR('Enrollment Form'!$B643<>\"Subscriber\",'Enrollment Form'!$C643=\"ROC\"),\"-\",IF(AND('Enrollment Form'!$B643=\"Subscriber\",'Enrollment Form'!$C643=\"Enroll\",'Enrollment Form'!$AM643<>\"\"),\"Y\",\"N\")))","v":""},{"$f":"IF($B636=\"N\",\"\",IF(OR('Enrollment Form'!$B643<>\"Subscriber\",'Enrollment Form'!$C643=\"ROC\"),\"-\",IF(AND('Enrollment Form'!$B643=\"Subscriber\",'Enrollment Form'!$C643=\"Enroll\",'Enrollment Form'!$AN643<>\"\"),\"Y\",\"N\")))","v":""},{"$f":"IF($B636=\"N\",\"\",IF(OR('Enrollment Form'!$B643<>\"Subscriber\",'Enrollment Form'!$C643=\"ROC\"),\"-\",IF(AND('Enrollment Form'!$B643=\"Subscriber\",'Enrollment Form'!$C643=\"Enroll\",'Enrollment Form'!$AP643<>\"\"),\"Y\",\"N\")))","v":""},{"$f":"IF($B636=\"N\",\"\",IF($Q636=\"-\",\"-\",IF(AND($Q636=\"Y\",'Enrollment Form'!$AP643=\"No\"),\"-\",IF(AND($Q636=\"Y\",'Enrollment Form'!$AP643=\"Yes\",'Enrollment Form'!$AQ643<>\"\"),\"Y\",\"N\"))))","v":""},{"$f":"IF($B636=\"N\",\"\",IF(OR('Enrollment Form'!$B643<>\"Subscriber\",'Enrollment Form'!$C643=\"ROC\"),\"-\",IF(AND('Enrollment Form'!$B643=\"Subscriber\",'Enrollment Form'!$C643=\"Enroll\",'Enrollment Form'!$CO643<>\"\"),\"Y\",\"N\")))","v":""},{"$f":"IF($B636=\"N\",\"\",IF($S636=\"-\",\"-\",IF(AND($S636=\"Y\",'Enrollment Form'!$CO643=\"No\"),\"-\",IF(AND($S636=\"Y\",'Enrollment Form'!$CO643=\"Yes\",'Enrollment Form'!$CP643<>\"\"),\"Y\",\"N\"))))","v":""},{"$f":"IF(OR('Enrollment Form'!$AV643=\"Yes\",'Enrollment Form'!$AV643=\"\"),\"-\",IF(AND('Enrollment Form'!$AV643=\"No\",ISERROR(FIND(\"HMO\",VLOOKUP('Enrollment Form'!G643,'Enrollment Form'!H$11:J$1000,3,FALSE),1))=FALSE,COUNTA('Enrollment Form'!$AW643:$AZ643)=4),\"Y\",\"N\"))","v":"-"},{"$f":"IF($B636=\"N\",\"\",IF('Enrollment Form'!$B643=\"Subscriber\",\"-\",IF(COUNTA('Enrollment Form'!$BE643,'Enrollment Form'!$BG643)=2,\"Y\",\"N\")))","v":""},{"$f":"IF($B636=\"N\",\"\",IF(OR('Enrollment Form'!$AU643=\"\",'Enrollment Form'!$AU643=\"No\"),\"-\",IF(AND('Enrollment Form'!$AU643=\"Yes\",COUNTA('Enrollment Form'!$CK643)=1),\"Y\",\"N\")))","v":""},{"$f":"IF(OR('Enrollment Form'!$CK643=\"\",'Enrollment Form'!$CK643=\"No\"),\"-\",IF(COUNTA('Enrollment Form'!$CM643:$CN643)=2,\"Y\",\"N\"))","v":"-"},{"$f":"IF($B636=\"N\",\"\",IF(COUNTIF('Enrollment Form'!$CZ643:$DO643,\"Other\")=COUNTA('Enrollment Form'!$DF643,'Enrollment Form'!$DA643,'Enrollment Form'!$DK643,'Enrollment Form'!$DP643),\"Y\",\"N\"))","v":""},{"$f":"IF($B636=\"N\",\"\",IF(OR('Enrollment Form'!B643<>\"Subscriber\",'Enrollment Form'!C643=\"ROC\",COUNTIF('Enrollment Form'!AS643:AT643,\"Yes\")>=1),\"-\",IF(AND('Enrollment Form'!C643=\"Enroll\",COUNTIF('Enrollment Form'!AS643:AT643,\"No\")=2,'Enrollment Form'!AU643=\"\"),\"N\",\"Y\")))","v":""},{"$f":"IF(OR(B636=\"N\",'Enrollment Form'!B643<>\"Subscriber\",'Enrollment Form'!C643=\"ROC\",'Enrollment Form'!O643<>\"Multiple of Salary\"),\"-\",IF(COUNTA('Enrollment Form'!T643:U643)<2,\"N\",\"Y\"))","v":"-"},{"$f":"IF(B636=\"N\",\"\",IF(OR('Enrollment Form'!C643=\"ROC\",'Enrollment Form'!B643<>\"Subscriber\",'Enrollment Form'!O643=\"Waive\",'Enrollment Form'!O643=\"\"),\"-\",IF('Enrollment Form'!P643=\"\",\"N\",\"Y\")))","v":""},{"$f":"IF($B636=\"N\",\"\",IF(AND('Enrollment Form'!$C643=\"ROC\",'Enrollment Form'!$DS643<>\"\"),\"Y\",IF(AND('Enrollment Form'!$C643=\"ROC\",'Enrollment Form'!$DS643=\"\"),\"N\",IF(AND('Enrollment Form'!$C643=\"Enroll\",'Enrollment Form'!$B643=\"Subscriber\",'Enrollment Form'!$CQ643=\"No\",'Enrollment Form'!$DS643=\"\"),\"N\",IF(AND('Enrollment Form'!$C643=\"Enroll\",'Enrollment Form'!$B643=\"Subscriber\",'Enrollment Form'!$CQ643=\"Yes\"),\"-\",\"Y\")))))","v":""},{"$f":"IF($B636=\"N\",\"\",IF(AND('Enrollment Form'!$C643=\"ROC\",'Enrollment Form'!$DT643<>\"\"),\"Y\",IF(AND('Enrollment Form'!$C643=\"ROC\",'Enrollment Form'!$DT643=\"\"),\"N\",IF(AND('Enrollment Form'!$C643=\"Enroll\",'Enrollment Form'!$B643=\"Subscriber\",'Enrollment Form'!$CQ643=\"No\",'Enrollment Form'!$DT643=\"\"),\"N\",IF(AND('Enrollment Form'!$C643=\"Enroll\",'Enrollment Form'!$B643=\"Subscriber\",'Enrollment Form'!$CQ643=\"Yes\"),\"-\",\"Y\")))))","v":""},{"$f":"IF('Enrollment Form'!AH643=\"\",\"\",IF(ISERROR(SEARCH(\".\",'Enrollment Form'!AH643,SEARCH(\"@\",'Enrollment Form'!AH643))),\"N\",\"Y\"))","v":""},{"$f":"IF(OR($B636=\"N\",'Enrollment Form'!$G643=\"\"),\"\",IF('Enrollment Form'!$B643<>\"Subscriber\",\"-\",IF(COUNTIF('Enrollment Form'!$AS643:$AT643,\"Yes\")=2,\"N\",\"Y\")))","v":""},{"$f":"IF(OR('Enrollment Form'!$CC643=\"\",'Enrollment Form'!$CC643=\"No\"),\"-\",IF(AND('Enrollment Form'!$CC643=\"Yes\",'Enrollment Form'!$CD643=\"\"),\"N\",\"Y\"))","v":"-"},{"$f":"IF(OR('Enrollment Form'!$CE643=\"\",'Enrollment Form'!$CE643=\"No\"),\"-\",IF(AND('Enrollment Form'!$CE643=\"Yes\",'Enrollment Form'!$CF643=\"\"),\"N\",\"Y\"))","v":"-"},{"$f":"IF(OR('Enrollment Form'!$CG643=\"\",'Enrollment Form'!$CG643=\"No\"),\"-\",IF(AND('Enrollment Form'!$CG643=\"Yes\",'Enrollment Form'!$CH643=\"\"),\"N\",\"Y\"))","v":"-"},{"$f":"IF(OR('Enrollment Form'!$CG643=\"\",'Enrollment Form'!$CG643=\"No\"),\"-\",IF(AND('Enrollment Form'!$CG643=\"Yes\",'Enrollment Form'!$CI643=\"\"),\"N\",\"Y\"))","v":"-"},{"$f":"IF('Enrollment Form'!B643<>\"Subscriber\",\"-\",IF(AND('Enrollment Form'!B643=\"Subscriber\",'Enrollment Form'!C643=\"Enroll\",'Enrollment Form'!AA643=\"\"),\"N\",\"Y\"))","v":"-"},{"$f":"IF(OR('Enrollment Form'!B643=\"Subscriber\",'Enrollment Form'!B643=\"\"),\"-\",IF('Enrollment Form'!BI643=\"\",\"N\",\"Y\"))","v":"-"},{"$f":"IF('Enrollment Form'!B643<>\"Subscriber\",\"-\",IF(AND('Enrollment Form'!B643=\"Subscriber\",'Enrollment Form'!G643=\"\"),\"N\",\"Y\"))","v":"-"},{"$f":"IF('Enrollment Form'!A643=\"\",\"\",IF('Enrollment Form'!B643=\"Subscriber\",\"-\",IF(AND('Enrollment Form'!B643<>\"Subscriber\",'Enrollment Form'!G643='Enrollment Form'!H643),\"N\",\"Y\")))","v":""},0]
[644,{"$f":"IF('Enrollment Form'!$A644<>\"\",\"Y\",\"N\")","v":"N"},{"$f":"IF(AND('Enrollment Form'!$B644=\"\",'Enrollment Form'!$C644<>\"\"),\"N\",IF($B637=\"N\",\"\",\"Y\"))","v":""},{"$f":"IF(OR($B637=\"N\",'Enrollment Form'!G644=\"\"),\"\",IF('Enrollment Form'!$B644<>\"Subscriber\",\"\",IF('Enrollment Form'!$G644='Enrollment Form'!$H644,\"Y\",\"N\")))","v":""},{"$f":"IF($B637=\"N\",\"\",IF(AND(COUNTIFS('Enrollment Form'!$H$11:$H$1000,'Enrollment Form'!$H644,'Enrollment Form'!$B$11:$B$1000,'Enrollment Form'!$B644)>1,'Enrollment Form'!$H644<>\"\"),\"N\",\"Y\"))","v":""},{"$f":"IF($B637=\"N\",\"\",IF(LEN('Enrollment Form'!$Y644)=0,\"\",IF(LEN('Enrollment Form'!$Y644)<>5,\"N\",\"Y\")))","v":""},{"$f":"IF($B637=\"N\",\"\",IF(LEN('Enrollment Form'!$AD644=0),\"\",IF(LEN('Enrollment Form'!$AD644)<>5,\"N\",\"Y\")))","v":""},{"$f":"IF($B637=\"N\",\"\",IF(LEN('Enrollment Form'!$BL644=0),\"\",IF(LEN('Enrollment Form'!$BL644)<>5,\"N\",\"Y\")))","v":""},{"$f":"IF($B637=\"N\",\"\",IF(LEN('Enrollment Form'!$AE644)=0,\"\",IF(LEN('Enrollment Form'!$AE644)<>10,\"N\",\"Y\")))","v":""},{"$f":"IF($B637=\"N\",\"\",IF(LEN('Enrollment Form'!$AF644)=0,\"\",IF(LEN('Enrollment Form'!$AF644)<>10,\"N\",\"Y\")))","v":""},{"$f":"IF('Enrollment Form'!$O644<>\"Graded\",\"-\",IF(AND('Enrollment Form'!$O644=\"Graded\",'Enrollment Form'!$AO644<>\"\"),\"Y\",\"N\"))","v":"-"},{"$f":"IF($B637=\"N\",\"\",IF(OR('Enrollment Form'!$B644<>\"Subscriber\",'Enrollment Form'!$C644=\"ROC\"),\"-\",IF(AND('Enrollment Form'!$B644=\"Subscriber\",'Enrollment Form'!$C644=\"Enroll\",'Enrollment Form'!$AJ644<>\"\"),\"Y\",\"N\")))","v":""},{"$f":"IF($B637=\"N\",\"\",IF(OR('Enrollment Form'!$B644<>\"Subscriber\",'Enrollment Form'!$C644=\"ROC\"),\"-\",IF(AND('Enrollment Form'!$B644=\"Subscriber\",'Enrollment Form'!$C644=\"Enroll\",'Enrollment Form'!$AK644<>\"\"),\"Y\",\"N\")))","v":""},{"$f":"IF($B637=\"N\",\"\",IF(OR('Enrollment Form'!$B644<>\"Subscriber\",'Enrollment Form'!$C644=\"ROC\"),\"-\",IF(AND('Enrollment Form'!$B644=\"Subscriber\",'Enrollment Form'!$C644=\"Enroll\",'Enrollment Form'!$AL644<>\"\"),\"Y\",\"N\")))","v":""},{"$f":"IF($B637=\"N\",\"\",IF(OR('Enrollment Form'!$B644<>\"Subscriber\",'Enrollment Form'!$C644=\"ROC\"),\"-\",IF(AND('Enrollment Form'!$B644=\"Subscriber\",'Enrollment Form'!$C644=\"Enroll\",'Enrollment Form'!$AM644<>\"\"),\"Y\",\"N\")))","v":""},{"$f":"IF($B637=\"N\",\"\",IF(OR('Enrollment Form'!$B644<>\"Subscriber\",'Enrollment Form'!$C644=\"ROC\"),\"-\",IF(AND('Enrollment Form'!$B644=\"Subscriber\",'Enrollment Form'!$C644=\"Enroll\",'Enrollment Form'!$AN644<>\"\"),\"Y\",\"N\")))","v":""},{"$f":"IF($B637=\"N\",\"\",IF(OR('Enrollment Form'!$B644<>\"Subscriber\",'Enrollment Form'!$C644=\"ROC\"),\"-\",IF(AND('Enrollment Form'!$B644=\"Subscriber\",'Enrollment Form'!$C644=\"Enroll\",'Enrollment Form'!$AP644<>\"\"),\"Y\",\"N\")))","v":""},{"$f":"IF($B637=\"N\",\"\",IF($Q637=\"-\",\"-\",IF(AND($Q637=\"Y\",'Enrollment Form'!$AP644=\"No\"),\"-\",IF(AND($Q637=\"Y\",'Enrollment Form'!$AP644=\"Yes\",'Enrollment Form'!$AQ644<>\"\"),\"Y\",\"N\"))))","v":""},{"$f":"IF($B637=\"N\",\"\",IF(OR('Enrollment Form'!$B644<>\"Subscriber\",'Enrollment Form'!$C644=\"ROC\"),\"-\",IF(AND('Enrollment Form'!$B644=\"Subscriber\",'Enrollment Form'!$C644=\"Enroll\",'Enrollment Form'!$CO644<>\"\"),\"Y\",\"N\")))","v":""},{"$f":"IF($B637=\"N\",\"\",IF($S637=\"-\",\"-\",IF(AND($S637=\"Y\",'Enrollment Form'!$CO644=\"No\"),\"-\",IF(AND($S637=\"Y\",'Enrollment Form'!$CO644=\"Yes\",'Enrollment Form'!$CP644<>\"\"),\"Y\",\"N\"))))","v":""},{"$f":"IF(OR('Enrollment Form'!$AV644=\"Yes\",'Enrollment Form'!$AV644=\"\"),\"-\",IF(AND('Enrollment Form'!$AV644=\"No\",ISERROR(FIND(\"HMO\",VLOOKUP('Enrollment Form'!G644,'Enrollment Form'!H$11:J$1000,3,FALSE),1))=FALSE,COUNTA('Enrollment Form'!$AW644:$AZ644)=4),\"Y\",\"N\"))","v":"-"},{"$f":"IF($B637=\"N\",\"\",IF('Enrollment Form'!$B644=\"Subscriber\",\"-\",IF(COUNTA('Enrollment Form'!$BE644,'Enrollment Form'!$BG644)=2,\"Y\",\"N\")))","v":""},{"$f":"IF($B637=\"N\",\"\",IF(OR('Enrollment Form'!$AU644=\"\",'Enrollment Form'!$AU644=\"No\"),\"-\",IF(AND('Enrollment Form'!$AU644=\"Yes\",COUNTA('Enrollment Form'!$CK644)=1),\"Y\",\"N\")))","v":""},{"$f":"IF(OR('Enrollment Form'!$CK644=\"\",'Enrollment Form'!$CK644=\"No\"),\"-\",IF(COUNTA('Enrollment Form'!$CM644:$CN644)=2,\"Y\",\"N\"))","v":"-"},{"$f":"IF($B637=\"N\",\"\",IF(COUNTIF('Enrollment Form'!$CZ644:$DO644,\"Other\")=COUNTA('Enrollment Form'!$DF644,'Enrollment Form'!$DA644,'Enrollment Form'!$DK644,'Enrollment Form'!$DP644),\"Y\",\"N\"))","v":""},{"$f":"IF($B637=\"N\",\"\",IF(OR('Enrollment Form'!B644<>\"Subscriber\",'Enrollment Form'!C644=\"ROC\",COUNTIF('Enrollment Form'!AS644:AT644,\"Yes\")>=1),\"-\",IF(AND('Enrollment Form'!C644=\"Enroll\",COUNTIF('Enrollment Form'!AS644:AT644,\"No\")=2,'Enrollment Form'!AU644=\"\"),\"N\",\"Y\")))","v":""},{"$f":"IF(OR(B637=\"N\",'Enrollment Form'!B644<>\"Subscriber\",'Enrollment Form'!C644=\"ROC\",'Enrollment Form'!O644<>\"Multiple of Salary\"),\"-\",IF(COUNTA('Enrollment Form'!T644:U644)<2,\"N\",\"Y\"))","v":"-"},{"$f":"IF(B637=\"N\",\"\",IF(OR('Enrollment Form'!C644=\"ROC\",'Enrollment Form'!B644<>\"Subscriber\",'Enrollment Form'!O644=\"Waive\",'Enrollment Form'!O644=\"\"),\"-\",IF('Enrollment Form'!P644=\"\",\"N\",\"Y\")))","v":""},{"$f":"IF($B637=\"N\",\"\",IF(AND('Enrollment Form'!$C644=\"ROC\",'Enrollment Form'!$DS644<>\"\"),\"Y\",IF(AND('Enrollment Form'!$C644=\"ROC\",'Enrollment Form'!$DS644=\"\"),\"N\",IF(AND('Enrollment Form'!$C644=\"Enroll\",'Enrollment Form'!$B644=\"Subscriber\",'Enrollment Form'!$CQ644=\"No\",'Enrollment Form'!$DS644=\"\"),\"N\",IF(AND('Enrollment Form'!$C644=\"Enroll\",'Enrollment Form'!$B644=\"Subscriber\",'Enrollment Form'!$CQ644=\"Yes\"),\"-\",\"Y\")))))","v":""},{"$f":"IF($B637=\"N\",\"\",IF(AND('Enrollment Form'!$C644=\"ROC\",'Enrollment Form'!$DT644<>\"\"),\"Y\",IF(AND('Enrollment Form'!$C644=\"ROC\",'Enrollment Form'!$DT644=\"\"),\"N\",IF(AND('Enrollment Form'!$C644=\"Enroll\",'Enrollment Form'!$B644=\"Subscriber\",'Enrollment Form'!$CQ644=\"No\",'Enrollment Form'!$DT644=\"\"),\"N\",IF(AND('Enrollment Form'!$C644=\"Enroll\",'Enrollment Form'!$B644=\"Subscriber\",'Enrollment Form'!$CQ644=\"Yes\"),\"-\",\"Y\")))))","v":""},{"$f":"IF('Enrollment Form'!AH644=\"\",\"\",IF(ISERROR(SEARCH(\".\",'Enrollment Form'!AH644,SEARCH(\"@\",'Enrollment Form'!AH644))),\"N\",\"Y\"))","v":""},{"$f":"IF(OR($B637=\"N\",'Enrollment Form'!$G644=\"\"),\"\",IF('Enrollment Form'!$B644<>\"Subscriber\",\"-\",IF(COUNTIF('Enrollment Form'!$AS644:$AT644,\"Yes\")=2,\"N\",\"Y\")))","v":""},{"$f":"IF(OR('Enrollment Form'!$CC644=\"\",'Enrollment Form'!$CC644=\"No\"),\"-\",IF(AND('Enrollment Form'!$CC644=\"Yes\",'Enrollment Form'!$CD644=\"\"),\"N\",\"Y\"))","v":"-"},{"$f":"IF(OR('Enrollment Form'!$CE644=\"\",'Enrollment Form'!$CE644=\"No\"),\"-\",IF(AND('Enrollment Form'!$CE644=\"Yes\",'Enrollment Form'!$CF644=\"\"),\"N\",\"Y\"))","v":"-"},{"$f":"IF(OR('Enrollment Form'!$CG644=\"\",'Enrollment Form'!$CG644=\"No\"),\"-\",IF(AND('Enrollment Form'!$CG644=\"Yes\",'Enrollment Form'!$CH644=\"\"),\"N\",\"Y\"))","v":"-"},{"$f":"IF(OR('Enrollment Form'!$CG644=\"\",'Enrollment Form'!$CG644=\"No\"),\"-\",IF(AND('Enrollment Form'!$CG644=\"Yes\",'Enrollment Form'!$CI644=\"\"),\"N\",\"Y\"))","v":"-"},{"$f":"IF('Enrollment Form'!B644<>\"Subscriber\",\"-\",IF(AND('Enrollment Form'!B644=\"Subscriber\",'Enrollment Form'!C644=\"Enroll\",'Enrollment Form'!AA644=\"\"),\"N\",\"Y\"))","v":"-"},{"$f":"IF(OR('Enrollment Form'!B644=\"Subscriber\",'Enrollment Form'!B644=\"\"),\"-\",IF('Enrollment Form'!BI644=\"\",\"N\",\"Y\"))","v":"-"},{"$f":"IF('Enrollment Form'!B644<>\"Subscriber\",\"-\",IF(AND('Enrollment Form'!B644=\"Subscriber\",'Enrollment Form'!G644=\"\"),\"N\",\"Y\"))","v":"-"},{"$f":"IF('Enrollment Form'!A644=\"\",\"\",IF('Enrollment Form'!B644=\"Subscriber\",\"-\",IF(AND('Enrollment Form'!B644<>\"Subscriber\",'Enrollment Form'!G644='Enrollment Form'!H644),\"N\",\"Y\")))","v":""},0]
[645,{"$f":"IF('Enrollment Form'!$A645<>\"\",\"Y\",\"N\")","v":"N"},{"$f":"IF(AND('Enrollment Form'!$B645=\"\",'Enrollment Form'!$C645<>\"\"),\"N\",IF($B638=\"N\",\"\",\"Y\"))","v":""},{"$f":"IF(OR($B638=\"N\",'Enrollment Form'!G645=\"\"),\"\",IF('Enrollment Form'!$B645<>\"Subscriber\",\"\",IF('Enrollment Form'!$G645='Enrollment Form'!$H645,\"Y\",\"N\")))","v":""},{"$f":"IF($B638=\"N\",\"\",IF(AND(COUNTIFS('Enrollment Form'!$H$11:$H$1000,'Enrollment Form'!$H645,'Enrollment Form'!$B$11:$B$1000,'Enrollment Form'!$B645)>1,'Enrollment Form'!$H645<>\"\"),\"N\",\"Y\"))","v":""},{"$f":"IF($B638=\"N\",\"\",IF(LEN('Enrollment Form'!$Y645)=0,\"\",IF(LEN('Enrollment Form'!$Y645)<>5,\"N\",\"Y\")))","v":""},{"$f":"IF($B638=\"N\",\"\",IF(LEN('Enrollment Form'!$AD645=0),\"\",IF(LEN('Enrollment Form'!$AD645)<>5,\"N\",\"Y\")))","v":""},{"$f":"IF($B638=\"N\",\"\",IF(LEN('Enrollment Form'!$BL645=0),\"\",IF(LEN('Enrollment Form'!$BL645)<>5,\"N\",\"Y\")))","v":""},{"$f":"IF($B638=\"N\",\"\",IF(LEN('Enrollment Form'!$AE645)=0,\"\",IF(LEN('Enrollment Form'!$AE645)<>10,\"N\",\"Y\")))","v":""},{"$f":"IF($B638=\"N\",\"\",IF(LEN('Enrollment Form'!$AF645)=0,\"\",IF(LEN('Enrollment Form'!$AF645)<>10,\"N\",\"Y\")))","v":""},{"$f":"IF('Enrollment Form'!$O645<>\"Graded\",\"-\",IF(AND('Enrollment Form'!$O645=\"Graded\",'Enrollment Form'!$AO645<>\"\"),\"Y\",\"N\"))","v":"-"},{"$f":"IF($B638=\"N\",\"\",IF(OR('Enrollment Form'!$B645<>\"Subscriber\",'Enrollment Form'!$C645=\"ROC\"),\"-\",IF(AND('Enrollment Form'!$B645=\"Subscriber\",'Enrollment Form'!$C645=\"Enroll\",'Enrollment Form'!$AJ645<>\"\"),\"Y\",\"N\")))","v":""},{"$f":"IF($B638=\"N\",\"\",IF(OR('Enrollment Form'!$B645<>\"Subscriber\",'Enrollment Form'!$C645=\"ROC\"),\"-\",IF(AND('Enrollment Form'!$B645=\"Subscriber\",'Enrollment Form'!$C645=\"Enroll\",'Enrollment Form'!$AK645<>\"\"),\"Y\",\"N\")))","v":""},{"$f":"IF($B638=\"N\",\"\",IF(OR('Enrollment Form'!$B645<>\"Subscriber\",'Enrollment Form'!$C645=\"ROC\"),\"-\",IF(AND('Enrollment Form'!$B645=\"Subscriber\",'Enrollment Form'!$C645=\"Enroll\",'Enrollment Form'!$AL645<>\"\"),\"Y\",\"N\")))","v":""},{"$f":"IF($B638=\"N\",\"\",IF(OR('Enrollment Form'!$B645<>\"Subscriber\",'Enrollment Form'!$C645=\"ROC\"),\"-\",IF(AND('Enrollment Form'!$B645=\"Subscriber\",'Enrollment Form'!$C645=\"Enroll\",'Enrollment Form'!$AM645<>\"\"),\"Y\",\"N\")))","v":""},{"$f":"IF($B638=\"N\",\"\",IF(OR('Enrollment Form'!$B645<>\"Subscriber\",'Enrollment Form'!$C645=\"ROC\"),\"-\",IF(AND('Enrollment Form'!$B645=\"Subscriber\",'Enrollment Form'!$C645=\"Enroll\",'Enrollment Form'!$AN645<>\"\"),\"Y\",\"N\")))","v":""},{"$f":"IF($B638=\"N\",\"\",IF(OR('Enrollment Form'!$B645<>\"Subscriber\",'Enrollment Form'!$C645=\"ROC\"),\"-\",IF(AND('Enrollment Form'!$B645=\"Subscriber\",'Enrollment Form'!$C645=\"Enroll\",'Enrollment Form'!$AP645<>\"\"),\"Y\",\"N\")))","v":""},{"$f":"IF($B638=\"N\",\"\",IF($Q638=\"-\",\"-\",IF(AND($Q638=\"Y\",'Enrollment Form'!$AP645=\"No\"),\"-\",IF(AND($Q638=\"Y\",'Enrollment Form'!$AP645=\"Yes\",'Enrollment Form'!$AQ645<>\"\"),\"Y\",\"N\"))))","v":""},{"$f":"IF($B638=\"N\",\"\",IF(OR('Enrollment Form'!$B645<>\"Subscriber\",'Enrollment Form'!$C645=\"ROC\"),\"-\",IF(AND('Enrollment Form'!$B645=\"Subscriber\",'Enrollment Form'!$C645=\"Enroll\",'Enrollment Form'!$CO645<>\"\"),\"Y\",\"N\")))","v":""},{"$f":"IF($B638=\"N\",\"\",IF($S638=\"-\",\"-\",IF(AND($S638=\"Y\",'Enrollment Form'!$CO645=\"No\"),\"-\",IF(AND($S638=\"Y\",'Enrollment Form'!$CO645=\"Yes\",'Enrollment Form'!$CP645<>\"\"),\"Y\",\"N\"))))","v":""},{"$f":"IF(OR('Enrollment Form'!$AV645=\"Yes\",'Enrollment Form'!$AV645=\"\"),\"-\",IF(AND('Enrollment Form'!$AV645=\"No\",ISERROR(FIND(\"HMO\",VLOOKUP('Enrollment Form'!G645,'Enrollment Form'!H$11:J$1000,3,FALSE),1))=FALSE,COUNTA('Enrollment Form'!$AW645:$AZ645)=4),\"Y\",\"N\"))","v":"-"},{"$f":"IF($B638=\"N\",\"\",IF('Enrollment Form'!$B645=\"Subscriber\",\"-\",IF(COUNTA('Enrollment Form'!$BE645,'Enrollment Form'!$BG645)=2,\"Y\",\"N\")))","v":""},{"$f":"IF($B638=\"N\",\"\",IF(OR('Enrollment Form'!$AU645=\"\",'Enrollment Form'!$AU645=\"No\"),\"-\",IF(AND('Enrollment Form'!$AU645=\"Yes\",COUNTA('Enrollment Form'!$CK645)=1),\"Y\",\"N\")))","v":""},{"$f":"IF(OR('Enrollment Form'!$CK645=\"\",'Enrollment Form'!$CK645=\"No\"),\"-\",IF(COUNTA('Enrollment Form'!$CM645:$CN645)=2,\"Y\",\"N\"))","v":"-"},{"$f":"IF($B638=\"N\",\"\",IF(COUNTIF('Enrollment Form'!$CZ645:$DO645,\"Other\")=COUNTA('Enrollment Form'!$DF645,'Enrollment Form'!$DA645,'Enrollment Form'!$DK645,'Enrollment Form'!$DP645),\"Y\",\"N\"))","v":""},{"$f":"IF($B638=\"N\",\"\",IF(OR('Enrollment Form'!B645<>\"Subscriber\",'Enrollment Form'!C645=\"ROC\",COUNTIF('Enrollment Form'!AS645:AT645,\"Yes\")>=1),\"-\",IF(AND('Enrollment Form'!C645=\"Enroll\",COUNTIF('Enrollment Form'!AS645:AT645,\"No\")=2,'Enrollment Form'!AU645=\"\"),\"N\",\"Y\")))","v":""},{"$f":"IF(OR(B638=\"N\",'Enrollment Form'!B645<>\"Subscriber\",'Enrollment Form'!C645=\"ROC\",'Enrollment Form'!O645<>\"Multiple of Salary\"),\"-\",IF(COUNTA('Enrollment Form'!T645:U645)<2,\"N\",\"Y\"))","v":"-"},{"$f":"IF(B638=\"N\",\"\",IF(OR('Enrollment Form'!C645=\"ROC\",'Enrollment Form'!B645<>\"Subscriber\",'Enrollment Form'!O645=\"Waive\",'Enrollment Form'!O645=\"\"),\"-\",IF('Enrollment Form'!P645=\"\",\"N\",\"Y\")))","v":""},{"$f":"IF($B638=\"N\",\"\",IF(AND('Enrollment Form'!$C645=\"ROC\",'Enrollment Form'!$DS645<>\"\"),\"Y\",IF(AND('Enrollment Form'!$C645=\"ROC\",'Enrollment Form'!$DS645=\"\"),\"N\",IF(AND('Enrollment Form'!$C645=\"Enroll\",'Enrollment Form'!$B645=\"Subscriber\",'Enrollment Form'!$CQ645=\"No\",'Enrollment Form'!$DS645=\"\"),\"N\",IF(AND('Enrollment Form'!$C645=\"Enroll\",'Enrollment Form'!$B645=\"Subscriber\",'Enrollment Form'!$CQ645=\"Yes\"),\"-\",\"Y\")))))","v":""},{"$f":"IF($B638=\"N\",\"\",IF(AND('Enrollment Form'!$C645=\"ROC\",'Enrollment Form'!$DT645<>\"\"),\"Y\",IF(AND('Enrollment Form'!$C645=\"ROC\",'Enrollment Form'!$DT645=\"\"),\"N\",IF(AND('Enrollment Form'!$C645=\"Enroll\",'Enrollment Form'!$B645=\"Subscriber\",'Enrollment Form'!$CQ645=\"No\",'Enrollment Form'!$DT645=\"\"),\"N\",IF(AND('Enrollment Form'!$C645=\"Enroll\",'Enrollment Form'!$B645=\"Subscriber\",'Enrollment Form'!$CQ645=\"Yes\"),\"-\",\"Y\")))))","v":""},{"$f":"IF('Enrollment Form'!AH645=\"\",\"\",IF(ISERROR(SEARCH(\".\",'Enrollment Form'!AH645,SEARCH(\"@\",'Enrollment Form'!AH645))),\"N\",\"Y\"))","v":""},{"$f":"IF(OR($B638=\"N\",'Enrollment Form'!$G645=\"\"),\"\",IF('Enrollment Form'!$B645<>\"Subscriber\",\"-\",IF(COUNTIF('Enrollment Form'!$AS645:$AT645,\"Yes\")=2,\"N\",\"Y\")))","v":""},{"$f":"IF(OR('Enrollment Form'!$CC645=\"\",'Enrollment Form'!$CC645=\"No\"),\"-\",IF(AND('Enrollment Form'!$CC645=\"Yes\",'Enrollment Form'!$CD645=\"\"),\"N\",\"Y\"))","v":"-"},{"$f":"IF(OR('Enrollment Form'!$CE645=\"\",'Enrollment Form'!$CE645=\"No\"),\"-\",IF(AND('Enrollment Form'!$CE645=\"Yes\",'Enrollment Form'!$CF645=\"\"),\"N\",\"Y\"))","v":"-"},{"$f":"IF(OR('Enrollment Form'!$CG645=\"\",'Enrollment Form'!$CG645=\"No\"),\"-\",IF(AND('Enrollment Form'!$CG645=\"Yes\",'Enrollment Form'!$CH645=\"\"),\"N\",\"Y\"))","v":"-"},{"$f":"IF(OR('Enrollment Form'!$CG645=\"\",'Enrollment Form'!$CG645=\"No\"),\"-\",IF(AND('Enrollment Form'!$CG645=\"Yes\",'Enrollment Form'!$CI645=\"\"),\"N\",\"Y\"))","v":"-"},{"$f":"IF('Enrollment Form'!B645<>\"Subscriber\",\"-\",IF(AND('Enrollment Form'!B645=\"Subscriber\",'Enrollment Form'!C645=\"Enroll\",'Enrollment Form'!AA645=\"\"),\"N\",\"Y\"))","v":"-"},{"$f":"IF(OR('Enrollment Form'!B645=\"Subscriber\",'Enrollment Form'!B645=\"\"),\"-\",IF('Enrollment Form'!BI645=\"\",\"N\",\"Y\"))","v":"-"},{"$f":"IF('Enrollment Form'!B645<>\"Subscriber\",\"-\",IF(AND('Enrollment Form'!B645=\"Subscriber\",'Enrollment Form'!G645=\"\"),\"N\",\"Y\"))","v":"-"},{"$f":"IF('Enrollment Form'!A645=\"\",\"\",IF('Enrollment Form'!B645=\"Subscriber\",\"-\",IF(AND('Enrollment Form'!B645<>\"Subscriber\",'Enrollment Form'!G645='Enrollment Form'!H645),\"N\",\"Y\")))","v":""},0]
[646,{"$f":"IF('Enrollment Form'!$A646<>\"\",\"Y\",\"N\")","v":"N"},{"$f":"IF(AND('Enrollment Form'!$B646=\"\",'Enrollment Form'!$C646<>\"\"),\"N\",IF($B639=\"N\",\"\",\"Y\"))","v":""},{"$f":"IF(OR($B639=\"N\",'Enrollment Form'!G646=\"\"),\"\",IF('Enrollment Form'!$B646<>\"Subscriber\",\"\",IF('Enrollment Form'!$G646='Enrollment Form'!$H646,\"Y\",\"N\")))","v":""},{"$f":"IF($B639=\"N\",\"\",IF(AND(COUNTIFS('Enrollment Form'!$H$11:$H$1000,'Enrollment Form'!$H646,'Enrollment Form'!$B$11:$B$1000,'Enrollment Form'!$B646)>1,'Enrollment Form'!$H646<>\"\"),\"N\",\"Y\"))","v":""},{"$f":"IF($B639=\"N\",\"\",IF(LEN('Enrollment Form'!$Y646)=0,\"\",IF(LEN('Enrollment Form'!$Y646)<>5,\"N\",\"Y\")))","v":""},{"$f":"IF($B639=\"N\",\"\",IF(LEN('Enrollment Form'!$AD646=0),\"\",IF(LEN('Enrollment Form'!$AD646)<>5,\"N\",\"Y\")))","v":""},{"$f":"IF($B639=\"N\",\"\",IF(LEN('Enrollment Form'!$BL646=0),\"\",IF(LEN('Enrollment Form'!$BL646)<>5,\"N\",\"Y\")))","v":""},{"$f":"IF($B639=\"N\",\"\",IF(LEN('Enrollment Form'!$AE646)=0,\"\",IF(LEN('Enrollment Form'!$AE646)<>10,\"N\",\"Y\")))","v":""},{"$f":"IF($B639=\"N\",\"\",IF(LEN('Enrollment Form'!$AF646)=0,\"\",IF(LEN('Enrollment Form'!$AF646)<>10,\"N\",\"Y\")))","v":""},{"$f":"IF('Enrollment Form'!$O646<>\"Graded\",\"-\",IF(AND('Enrollment Form'!$O646=\"Graded\",'Enrollment Form'!$AO646<>\"\"),\"Y\",\"N\"))","v":"-"},{"$f":"IF($B639=\"N\",\"\",IF(OR('Enrollment Form'!$B646<>\"Subscriber\",'Enrollment Form'!$C646=\"ROC\"),\"-\",IF(AND('Enrollment Form'!$B646=\"Subscriber\",'Enrollment Form'!$C646=\"Enroll\",'Enrollment Form'!$AJ646<>\"\"),\"Y\",\"N\")))","v":""},{"$f":"IF($B639=\"N\",\"\",IF(OR('Enrollment Form'!$B646<>\"Subscriber\",'Enrollment Form'!$C646=\"ROC\"),\"-\",IF(AND('Enrollment Form'!$B646=\"Subscriber\",'Enrollment Form'!$C646=\"Enroll\",'Enrollment Form'!$AK646<>\"\"),\"Y\",\"N\")))","v":""},{"$f":"IF($B639=\"N\",\"\",IF(OR('Enrollment Form'!$B646<>\"Subscriber\",'Enrollment Form'!$C646=\"ROC\"),\"-\",IF(AND('Enrollment Form'!$B646=\"Subscriber\",'Enrollment Form'!$C646=\"Enroll\",'Enrollment Form'!$AL646<>\"\"),\"Y\",\"N\")))","v":""},{"$f":"IF($B639=\"N\",\"\",IF(OR('Enrollment Form'!$B646<>\"Subscriber\",'Enrollment Form'!$C646=\"ROC\"),\"-\",IF(AND('Enrollment Form'!$B646=\"Subscriber\",'Enrollment Form'!$C646=\"Enroll\",'Enrollment Form'!$AM646<>\"\"),\"Y\",\"N\")))","v":""},{"$f":"IF($B639=\"N\",\"\",IF(OR('Enrollment Form'!$B646<>\"Subscriber\",'Enrollment Form'!$C646=\"ROC\"),\"-\",IF(AND('Enrollment Form'!$B646=\"Subscriber\",'Enrollment Form'!$C646=\"Enroll\",'Enrollment Form'!$AN646<>\"\"),\"Y\",\"N\")))","v":""},{"$f":"IF($B639=\"N\",\"\",IF(OR('Enrollment Form'!$B646<>\"Subscriber\",'Enrollment Form'!$C646=\"ROC\"),\"-\",IF(AND('Enrollment Form'!$B646=\"Subscriber\",'Enrollment Form'!$C646=\"Enroll\",'Enrollment Form'!$AP646<>\"\"),\"Y\",\"N\")))","v":""},{"$f":"IF($B639=\"N\",\"\",IF($Q639=\"-\",\"-\",IF(AND($Q639=\"Y\",'Enrollment Form'!$AP646=\"No\"),\"-\",IF(AND($Q639=\"Y\",'Enrollment Form'!$AP646=\"Yes\",'Enrollment Form'!$AQ646<>\"\"),\"Y\",\"N\"))))","v":""},{"$f":"IF($B639=\"N\",\"\",IF(OR('Enrollment Form'!$B646<>\"Subscriber\",'Enrollment Form'!$C646=\"ROC\"),\"-\",IF(AND('Enrollment Form'!$B646=\"Subscriber\",'Enrollment Form'!$C646=\"Enroll\",'Enrollment Form'!$CO646<>\"\"),\"Y\",\"N\")))","v":""},{"$f":"IF($B639=\"N\",\"\",IF($S639=\"-\",\"-\",IF(AND($S639=\"Y\",'Enrollment Form'!$CO646=\"No\"),\"-\",IF(AND($S639=\"Y\",'Enrollment Form'!$CO646=\"Yes\",'Enrollment Form'!$CP646<>\"\"),\"Y\",\"N\"))))","v":""},{"$f":"IF(OR('Enrollment Form'!$AV646=\"Yes\",'Enrollment Form'!$AV646=\"\"),\"-\",IF(AND('Enrollment Form'!$AV646=\"No\",ISERROR(FIND(\"HMO\",VLOOKUP('Enrollment Form'!G646,'Enrollment Form'!H$11:J$1000,3,FALSE),1))=FALSE,COUNTA('Enrollment Form'!$AW646:$AZ646)=4),\"Y\",\"N\"))","v":"-"},{"$f":"IF($B639=\"N\",\"\",IF('Enrollment Form'!$B646=\"Subscriber\",\"-\",IF(COUNTA('Enrollment Form'!$BE646,'Enrollment Form'!$BG646)=2,\"Y\",\"N\")))","v":""},{"$f":"IF($B639=\"N\",\"\",IF(OR('Enrollment Form'!$AU646=\"\",'Enrollment Form'!$AU646=\"No\"),\"-\",IF(AND('Enrollment Form'!$AU646=\"Yes\",COUNTA('Enrollment Form'!$CK646)=1),\"Y\",\"N\")))","v":""},{"$f":"IF(OR('Enrollment Form'!$CK646=\"\",'Enrollment Form'!$CK646=\"No\"),\"-\",IF(COUNTA('Enrollment Form'!$CM646:$CN646)=2,\"Y\",\"N\"))","v":"-"},{"$f":"IF($B639=\"N\",\"\",IF(COUNTIF('Enrollment Form'!$CZ646:$DO646,\"Other\")=COUNTA('Enrollment Form'!$DF646,'Enrollment Form'!$DA646,'Enrollment Form'!$DK646,'Enrollment Form'!$DP646),\"Y\",\"N\"))","v":""},{"$f":"IF($B639=\"N\",\"\",IF(OR('Enrollment Form'!B646<>\"Subscriber\",'Enrollment Form'!C646=\"ROC\",COUNTIF('Enrollment Form'!AS646:AT646,\"Yes\")>=1),\"-\",IF(AND('Enrollment Form'!C646=\"Enroll\",COUNTIF('Enrollment Form'!AS646:AT646,\"No\")=2,'Enrollment Form'!AU646=\"\"),\"N\",\"Y\")))","v":""},{"$f":"IF(OR(B639=\"N\",'Enrollment Form'!B646<>\"Subscriber\",'Enrollment Form'!C646=\"ROC\",'Enrollment Form'!O646<>\"Multiple of Salary\"),\"-\",IF(COUNTA('Enrollment Form'!T646:U646)<2,\"N\",\"Y\"))","v":"-"},{"$f":"IF(B639=\"N\",\"\",IF(OR('Enrollment Form'!C646=\"ROC\",'Enrollment Form'!B646<>\"Subscriber\",'Enrollment Form'!O646=\"Waive\",'Enrollment Form'!O646=\"\"),\"-\",IF('Enrollment Form'!P646=\"\",\"N\",\"Y\")))","v":""},{"$f":"IF($B639=\"N\",\"\",IF(AND('Enrollment Form'!$C646=\"ROC\",'Enrollment Form'!$DS646<>\"\"),\"Y\",IF(AND('Enrollment Form'!$C646=\"ROC\",'Enrollment Form'!$DS646=\"\"),\"N\",IF(AND('Enrollment Form'!$C646=\"Enroll\",'Enrollment Form'!$B646=\"Subscriber\",'Enrollment Form'!$CQ646=\"No\",'Enrollment Form'!$DS646=\"\"),\"N\",IF(AND('Enrollment Form'!$C646=\"Enroll\",'Enrollment Form'!$B646=\"Subscriber\",'Enrollment Form'!$CQ646=\"Yes\"),\"-\",\"Y\")))))","v":""},{"$f":"IF($B639=\"N\",\"\",IF(AND('Enrollment Form'!$C646=\"ROC\",'Enrollment Form'!$DT646<>\"\"),\"Y\",IF(AND('Enrollment Form'!$C646=\"ROC\",'Enrollment Form'!$DT646=\"\"),\"N\",IF(AND('Enrollment Form'!$C646=\"Enroll\",'Enrollment Form'!$B646=\"Subscriber\",'Enrollment Form'!$CQ646=\"No\",'Enrollment Form'!$DT646=\"\"),\"N\",IF(AND('Enrollment Form'!$C646=\"Enroll\",'Enrollment Form'!$B646=\"Subscriber\",'Enrollment Form'!$CQ646=\"Yes\"),\"-\",\"Y\")))))","v":""},{"$f":"IF('Enrollment Form'!AH646=\"\",\"\",IF(ISERROR(SEARCH(\".\",'Enrollment Form'!AH646,SEARCH(\"@\",'Enrollment Form'!AH646))),\"N\",\"Y\"))","v":""},{"$f":"IF(OR($B639=\"N\",'Enrollment Form'!$G646=\"\"),\"\",IF('Enrollment Form'!$B646<>\"Subscriber\",\"-\",IF(COUNTIF('Enrollment Form'!$AS646:$AT646,\"Yes\")=2,\"N\",\"Y\")))","v":""},{"$f":"IF(OR('Enrollment Form'!$CC646=\"\",'Enrollment Form'!$CC646=\"No\"),\"-\",IF(AND('Enrollment Form'!$CC646=\"Yes\",'Enrollment Form'!$CD646=\"\"),\"N\",\"Y\"))","v":"-"},{"$f":"IF(OR('Enrollment Form'!$CE646=\"\",'Enrollment Form'!$CE646=\"No\"),\"-\",IF(AND('Enrollment Form'!$CE646=\"Yes\",'Enrollment Form'!$CF646=\"\"),\"N\",\"Y\"))","v":"-"},{"$f":"IF(OR('Enrollment Form'!$CG646=\"\",'Enrollment Form'!$CG646=\"No\"),\"-\",IF(AND('Enrollment Form'!$CG646=\"Yes\",'Enrollment Form'!$CH646=\"\"),\"N\",\"Y\"))","v":"-"},{"$f":"IF(OR('Enrollment Form'!$CG646=\"\",'Enrollment Form'!$CG646=\"No\"),\"-\",IF(AND('Enrollment Form'!$CG646=\"Yes\",'Enrollment Form'!$CI646=\"\"),\"N\",\"Y\"))","v":"-"},{"$f":"IF('Enrollment Form'!B646<>\"Subscriber\",\"-\",IF(AND('Enrollment Form'!B646=\"Subscriber\",'Enrollment Form'!C646=\"Enroll\",'Enrollment Form'!AA646=\"\"),\"N\",\"Y\"))","v":"-"},{"$f":"IF(OR('Enrollment Form'!B646=\"Subscriber\",'Enrollment Form'!B646=\"\"),\"-\",IF('Enrollment Form'!BI646=\"\",\"N\",\"Y\"))","v":"-"},{"$f":"IF('Enrollment Form'!B646<>\"Subscriber\",\"-\",IF(AND('Enrollment Form'!B646=\"Subscriber\",'Enrollment Form'!G646=\"\"),\"N\",\"Y\"))","v":"-"},{"$f":"IF('Enrollment Form'!A646=\"\",\"\",IF('Enrollment Form'!B646=\"Subscriber\",\"-\",IF(AND('Enrollment Form'!B646<>\"Subscriber\",'Enrollment Form'!G646='Enrollment Form'!H646),\"N\",\"Y\")))","v":""},0]
[647,{"$f":"IF('Enrollment Form'!$A647<>\"\",\"Y\",\"N\")","v":"N"},{"$f":"IF(AND('Enrollment Form'!$B647=\"\",'Enrollment Form'!$C647<>\"\"),\"N\",IF($B640=\"N\",\"\",\"Y\"))","v":""},{"$f":"IF(OR($B640=\"N\",'Enrollment Form'!G647=\"\"),\"\",IF('Enrollment Form'!$B647<>\"Subscriber\",\"\",IF('Enrollment Form'!$G647='Enrollment Form'!$H647,\"Y\",\"N\")))","v":""},{"$f":"IF($B640=\"N\",\"\",IF(AND(COUNTIFS('Enrollment Form'!$H$11:$H$1000,'Enrollment Form'!$H647,'Enrollment Form'!$B$11:$B$1000,'Enrollment Form'!$B647)>1,'Enrollment Form'!$H647<>\"\"),\"N\",\"Y\"))","v":""},{"$f":"IF($B640=\"N\",\"\",IF(LEN('Enrollment Form'!$Y647)=0,\"\",IF(LEN('Enrollment Form'!$Y647)<>5,\"N\",\"Y\")))","v":""},{"$f":"IF($B640=\"N\",\"\",IF(LEN('Enrollment Form'!$AD647=0),\"\",IF(LEN('Enrollment Form'!$AD647)<>5,\"N\",\"Y\")))","v":""},{"$f":"IF($B640=\"N\",\"\",IF(LEN('Enrollment Form'!$BL647=0),\"\",IF(LEN('Enrollment Form'!$BL647)<>5,\"N\",\"Y\")))","v":""},{"$f":"IF($B640=\"N\",\"\",IF(LEN('Enrollment Form'!$AE647)=0,\"\",IF(LEN('Enrollment Form'!$AE647)<>10,\"N\",\"Y\")))","v":""},{"$f":"IF($B640=\"N\",\"\",IF(LEN('Enrollment Form'!$AF647)=0,\"\",IF(LEN('Enrollment Form'!$AF647)<>10,\"N\",\"Y\")))","v":""},{"$f":"IF('Enrollment Form'!$O647<>\"Graded\",\"-\",IF(AND('Enrollment Form'!$O647=\"Graded\",'Enrollment Form'!$AO647<>\"\"),\"Y\",\"N\"))","v":"-"},{"$f":"IF($B640=\"N\",\"\",IF(OR('Enrollment Form'!$B647<>\"Subscriber\",'Enrollment Form'!$C647=\"ROC\"),\"-\",IF(AND('Enrollment Form'!$B647=\"Subscriber\",'Enrollment Form'!$C647=\"Enroll\",'Enrollment Form'!$AJ647<>\"\"),\"Y\",\"N\")))","v":""},{"$f":"IF($B640=\"N\",\"\",IF(OR('Enrollment Form'!$B647<>\"Subscriber\",'Enrollment Form'!$C647=\"ROC\"),\"-\",IF(AND('Enrollment Form'!$B647=\"Subscriber\",'Enrollment Form'!$C647=\"Enroll\",'Enrollment Form'!$AK647<>\"\"),\"Y\",\"N\")))","v":""},{"$f":"IF($B640=\"N\",\"\",IF(OR('Enrollment Form'!$B647<>\"Subscriber\",'Enrollment Form'!$C647=\"ROC\"),\"-\",IF(AND('Enrollment Form'!$B647=\"Subscriber\",'Enrollment Form'!$C647=\"Enroll\",'Enrollment Form'!$AL647<>\"\"),\"Y\",\"N\")))","v":""},{"$f":"IF($B640=\"N\",\"\",IF(OR('Enrollment Form'!$B647<>\"Subscriber\",'Enrollment Form'!$C647=\"ROC\"),\"-\",IF(AND('Enrollment Form'!$B647=\"Subscriber\",'Enrollment Form'!$C647=\"Enroll\",'Enrollment Form'!$AM647<>\"\"),\"Y\",\"N\")))","v":""},{"$f":"IF($B640=\"N\",\"\",IF(OR('Enrollment Form'!$B647<>\"Subscriber\",'Enrollment Form'!$C647=\"ROC\"),\"-\",IF(AND('Enrollment Form'!$B647=\"Subscriber\",'Enrollment Form'!$C647=\"Enroll\",'Enrollment Form'!$AN647<>\"\"),\"Y\",\"N\")))","v":""},{"$f":"IF($B640=\"N\",\"\",IF(OR('Enrollment Form'!$B647<>\"Subscriber\",'Enrollment Form'!$C647=\"ROC\"),\"-\",IF(AND('Enrollment Form'!$B647=\"Subscriber\",'Enrollment Form'!$C647=\"Enroll\",'Enrollment Form'!$AP647<>\"\"),\"Y\",\"N\")))","v":""},{"$f":"IF($B640=\"N\",\"\",IF($Q640=\"-\",\"-\",IF(AND($Q640=\"Y\",'Enrollment Form'!$AP647=\"No\"),\"-\",IF(AND($Q640=\"Y\",'Enrollment Form'!$AP647=\"Yes\",'Enrollment Form'!$AQ647<>\"\"),\"Y\",\"N\"))))","v":""},{"$f":"IF($B640=\"N\",\"\",IF(OR('Enrollment Form'!$B647<>\"Subscriber\",'Enrollment Form'!$C647=\"ROC\"),\"-\",IF(AND('Enrollment Form'!$B647=\"Subscriber\",'Enrollment Form'!$C647=\"Enroll\",'Enrollment Form'!$CO647<>\"\"),\"Y\",\"N\")))","v":""},{"$f":"IF($B640=\"N\",\"\",IF($S640=\"-\",\"-\",IF(AND($S640=\"Y\",'Enrollment Form'!$CO647=\"No\"),\"-\",IF(AND($S640=\"Y\",'Enrollment Form'!$CO647=\"Yes\",'Enrollment Form'!$CP647<>\"\"),\"Y\",\"N\"))))","v":""},{"$f":"IF(OR('Enrollment Form'!$AV647=\"Yes\",'Enrollment Form'!$AV647=\"\"),\"-\",IF(AND('Enrollment Form'!$AV647=\"No\",ISERROR(FIND(\"HMO\",VLOOKUP('Enrollment Form'!G647,'Enrollment Form'!H$11:J$1000,3,FALSE),1))=FALSE,COUNTA('Enrollment Form'!$AW647:$AZ647)=4),\"Y\",\"N\"))","v":"-"},{"$f":"IF($B640=\"N\",\"\",IF('Enrollment Form'!$B647=\"Subscriber\",\"-\",IF(COUNTA('Enrollment Form'!$BE647,'Enrollment Form'!$BG647)=2,\"Y\",\"N\")))","v":""},{"$f":"IF($B640=\"N\",\"\",IF(OR('Enrollment Form'!$AU647=\"\",'Enrollment Form'!$AU647=\"No\"),\"-\",IF(AND('Enrollment Form'!$AU647=\"Yes\",COUNTA('Enrollment Form'!$CK647)=1),\"Y\",\"N\")))","v":""},{"$f":"IF(OR('Enrollment Form'!$CK647=\"\",'Enrollment Form'!$CK647=\"No\"),\"-\",IF(COUNTA('Enrollment Form'!$CM647:$CN647)=2,\"Y\",\"N\"))","v":"-"},{"$f":"IF($B640=\"N\",\"\",IF(COUNTIF('Enrollment Form'!$CZ647:$DO647,\"Other\")=COUNTA('Enrollment Form'!$DF647,'Enrollment Form'!$DA647,'Enrollment Form'!$DK647,'Enrollment Form'!$DP647),\"Y\",\"N\"))","v":""},{"$f":"IF($B640=\"N\",\"\",IF(OR('Enrollment Form'!B647<>\"Subscriber\",'Enrollment Form'!C647=\"ROC\",COUNTIF('Enrollment Form'!AS647:AT647,\"Yes\")>=1),\"-\",IF(AND('Enrollment Form'!C647=\"Enroll\",COUNTIF('Enrollment Form'!AS647:AT647,\"No\")=2,'Enrollment Form'!AU647=\"\"),\"N\",\"Y\")))","v":""},{"$f":"IF(OR(B640=\"N\",'Enrollment Form'!B647<>\"Subscriber\",'Enrollment Form'!C647=\"ROC\",'Enrollment Form'!O647<>\"Multiple of Salary\"),\"-\",IF(COUNTA('Enrollment Form'!T647:U647)<2,\"N\",\"Y\"))","v":"-"},{"$f":"IF(B640=\"N\",\"\",IF(OR('Enrollment Form'!C647=\"ROC\",'Enrollment Form'!B647<>\"Subscriber\",'Enrollment Form'!O647=\"Waive\",'Enrollment Form'!O647=\"\"),\"-\",IF('Enrollment Form'!P647=\"\",\"N\",\"Y\")))","v":""},{"$f":"IF($B640=\"N\",\"\",IF(AND('Enrollment Form'!$C647=\"ROC\",'Enrollment Form'!$DS647<>\"\"),\"Y\",IF(AND('Enrollment Form'!$C647=\"ROC\",'Enrollment Form'!$DS647=\"\"),\"N\",IF(AND('Enrollment Form'!$C647=\"Enroll\",'Enrollment Form'!$B647=\"Subscriber\",'Enrollment Form'!$CQ647=\"No\",'Enrollment Form'!$DS647=\"\"),\"N\",IF(AND('Enrollment Form'!$C647=\"Enroll\",'Enrollment Form'!$B647=\"Subscriber\",'Enrollment Form'!$CQ647=\"Yes\"),\"-\",\"Y\")))))","v":""},{"$f":"IF($B640=\"N\",\"\",IF(AND('Enrollment Form'!$C647=\"ROC\",'Enrollment Form'!$DT647<>\"\"),\"Y\",IF(AND('Enrollment Form'!$C647=\"ROC\",'Enrollment Form'!$DT647=\"\"),\"N\",IF(AND('Enrollment Form'!$C647=\"Enroll\",'Enrollment Form'!$B647=\"Subscriber\",'Enrollment Form'!$CQ647=\"No\",'Enrollment Form'!$DT647=\"\"),\"N\",IF(AND('Enrollment Form'!$C647=\"Enroll\",'Enrollment Form'!$B647=\"Subscriber\",'Enrollment Form'!$CQ647=\"Yes\"),\"-\",\"Y\")))))","v":""},{"$f":"IF('Enrollment Form'!AH647=\"\",\"\",IF(ISERROR(SEARCH(\".\",'Enrollment Form'!AH647,SEARCH(\"@\",'Enrollment Form'!AH647))),\"N\",\"Y\"))","v":""},{"$f":"IF(OR($B640=\"N\",'Enrollment Form'!$G647=\"\"),\"\",IF('Enrollment Form'!$B647<>\"Subscriber\",\"-\",IF(COUNTIF('Enrollment Form'!$AS647:$AT647,\"Yes\")=2,\"N\",\"Y\")))","v":""},{"$f":"IF(OR('Enrollment Form'!$CC647=\"\",'Enrollment Form'!$CC647=\"No\"),\"-\",IF(AND('Enrollment Form'!$CC647=\"Yes\",'Enrollment Form'!$CD647=\"\"),\"N\",\"Y\"))","v":"-"},{"$f":"IF(OR('Enrollment Form'!$CE647=\"\",'Enrollment Form'!$CE647=\"No\"),\"-\",IF(AND('Enrollment Form'!$CE647=\"Yes\",'Enrollment Form'!$CF647=\"\"),\"N\",\"Y\"))","v":"-"},{"$f":"IF(OR('Enrollment Form'!$CG647=\"\",'Enrollment Form'!$CG647=\"No\"),\"-\",IF(AND('Enrollment Form'!$CG647=\"Yes\",'Enrollment Form'!$CH647=\"\"),\"N\",\"Y\"))","v":"-"},{"$f":"IF(OR('Enrollment Form'!$CG647=\"\",'Enrollment Form'!$CG647=\"No\"),\"-\",IF(AND('Enrollment Form'!$CG647=\"Yes\",'Enrollment Form'!$CI647=\"\"),\"N\",\"Y\"))","v":"-"},{"$f":"IF('Enrollment Form'!B647<>\"Subscriber\",\"-\",IF(AND('Enrollment Form'!B647=\"Subscriber\",'Enrollment Form'!C647=\"Enroll\",'Enrollment Form'!AA647=\"\"),\"N\",\"Y\"))","v":"-"},{"$f":"IF(OR('Enrollment Form'!B647=\"Subscriber\",'Enrollment Form'!B647=\"\"),\"-\",IF('Enrollment Form'!BI647=\"\",\"N\",\"Y\"))","v":"-"},{"$f":"IF('Enrollment Form'!B647<>\"Subscriber\",\"-\",IF(AND('Enrollment Form'!B647=\"Subscriber\",'Enrollment Form'!G647=\"\"),\"N\",\"Y\"))","v":"-"},{"$f":"IF('Enrollment Form'!A647=\"\",\"\",IF('Enrollment Form'!B647=\"Subscriber\",\"-\",IF(AND('Enrollment Form'!B647<>\"Subscriber\",'Enrollment Form'!G647='Enrollment Form'!H647),\"N\",\"Y\")))","v":""},0]
[648,{"$f":"IF('Enrollment Form'!$A648<>\"\",\"Y\",\"N\")","v":"N"},{"$f":"IF(AND('Enrollment Form'!$B648=\"\",'Enrollment Form'!$C648<>\"\"),\"N\",IF($B641=\"N\",\"\",\"Y\"))","v":""},{"$f":"IF(OR($B641=\"N\",'Enrollment Form'!G648=\"\"),\"\",IF('Enrollment Form'!$B648<>\"Subscriber\",\"\",IF('Enrollment Form'!$G648='Enrollment Form'!$H648,\"Y\",\"N\")))","v":""},{"$f":"IF($B641=\"N\",\"\",IF(AND(COUNTIFS('Enrollment Form'!$H$11:$H$1000,'Enrollment Form'!$H648,'Enrollment Form'!$B$11:$B$1000,'Enrollment Form'!$B648)>1,'Enrollment Form'!$H648<>\"\"),\"N\",\"Y\"))","v":""},{"$f":"IF($B641=\"N\",\"\",IF(LEN('Enrollment Form'!$Y648)=0,\"\",IF(LEN('Enrollment Form'!$Y648)<>5,\"N\",\"Y\")))","v":""},{"$f":"IF($B641=\"N\",\"\",IF(LEN('Enrollment Form'!$AD648=0),\"\",IF(LEN('Enrollment Form'!$AD648)<>5,\"N\",\"Y\")))","v":""},{"$f":"IF($B641=\"N\",\"\",IF(LEN('Enrollment Form'!$BL648=0),\"\",IF(LEN('Enrollment Form'!$BL648)<>5,\"N\",\"Y\")))","v":""},{"$f":"IF($B641=\"N\",\"\",IF(LEN('Enrollment Form'!$AE648)=0,\"\",IF(LEN('Enrollment Form'!$AE648)<>10,\"N\",\"Y\")))","v":""},{"$f":"IF($B641=\"N\",\"\",IF(LEN('Enrollment Form'!$AF648)=0,\"\",IF(LEN('Enrollment Form'!$AF648)<>10,\"N\",\"Y\")))","v":""},{"$f":"IF('Enrollment Form'!$O648<>\"Graded\",\"-\",IF(AND('Enrollment Form'!$O648=\"Graded\",'Enrollment Form'!$AO648<>\"\"),\"Y\",\"N\"))","v":"-"},{"$f":"IF($B641=\"N\",\"\",IF(OR('Enrollment Form'!$B648<>\"Subscriber\",'Enrollment Form'!$C648=\"ROC\"),\"-\",IF(AND('Enrollment Form'!$B648=\"Subscriber\",'Enrollment Form'!$C648=\"Enroll\",'Enrollment Form'!$AJ648<>\"\"),\"Y\",\"N\")))","v":""},{"$f":"IF($B641=\"N\",\"\",IF(OR('Enrollment Form'!$B648<>\"Subscriber\",'Enrollment Form'!$C648=\"ROC\"),\"-\",IF(AND('Enrollment Form'!$B648=\"Subscriber\",'Enrollment Form'!$C648=\"Enroll\",'Enrollment Form'!$AK648<>\"\"),\"Y\",\"N\")))","v":""},{"$f":"IF($B641=\"N\",\"\",IF(OR('Enrollment Form'!$B648<>\"Subscriber\",'Enrollment Form'!$C648=\"ROC\"),\"-\",IF(AND('Enrollment Form'!$B648=\"Subscriber\",'Enrollment Form'!$C648=\"Enroll\",'Enrollment Form'!$AL648<>\"\"),\"Y\",\"N\")))","v":""},{"$f":"IF($B641=\"N\",\"\",IF(OR('Enrollment Form'!$B648<>\"Subscriber\",'Enrollment Form'!$C648=\"ROC\"),\"-\",IF(AND('Enrollment Form'!$B648=\"Subscriber\",'Enrollment Form'!$C648=\"Enroll\",'Enrollment Form'!$AM648<>\"\"),\"Y\",\"N\")))","v":""},{"$f":"IF($B641=\"N\",\"\",IF(OR('Enrollment Form'!$B648<>\"Subscriber\",'Enrollment Form'!$C648=\"ROC\"),\"-\",IF(AND('Enrollment Form'!$B648=\"Subscriber\",'Enrollment Form'!$C648=\"Enroll\",'Enrollment Form'!$AN648<>\"\"),\"Y\",\"N\")))","v":""},{"$f":"IF($B641=\"N\",\"\",IF(OR('Enrollment Form'!$B648<>\"Subscriber\",'Enrollment Form'!$C648=\"ROC\"),\"-\",IF(AND('Enrollment Form'!$B648=\"Subscriber\",'Enrollment Form'!$C648=\"Enroll\",'Enrollment Form'!$AP648<>\"\"),\"Y\",\"N\")))","v":""},{"$f":"IF($B641=\"N\",\"\",IF($Q641=\"-\",\"-\",IF(AND($Q641=\"Y\",'Enrollment Form'!$AP648=\"No\"),\"-\",IF(AND($Q641=\"Y\",'Enrollment Form'!$AP648=\"Yes\",'Enrollment Form'!$AQ648<>\"\"),\"Y\",\"N\"))))","v":""},{"$f":"IF($B641=\"N\",\"\",IF(OR('Enrollment Form'!$B648<>\"Subscriber\",'Enrollment Form'!$C648=\"ROC\"),\"-\",IF(AND('Enrollment Form'!$B648=\"Subscriber\",'Enrollment Form'!$C648=\"Enroll\",'Enrollment Form'!$CO648<>\"\"),\"Y\",\"N\")))","v":""},{"$f":"IF($B641=\"N\",\"\",IF($S641=\"-\",\"-\",IF(AND($S641=\"Y\",'Enrollment Form'!$CO648=\"No\"),\"-\",IF(AND($S641=\"Y\",'Enrollment Form'!$CO648=\"Yes\",'Enrollment Form'!$CP648<>\"\"),\"Y\",\"N\"))))","v":""},{"$f":"IF(OR('Enrollment Form'!$AV648=\"Yes\",'Enrollment Form'!$AV648=\"\"),\"-\",IF(AND('Enrollment Form'!$AV648=\"No\",ISERROR(FIND(\"HMO\",VLOOKUP('Enrollment Form'!G648,'Enrollment Form'!H$11:J$1000,3,FALSE),1))=FALSE,COUNTA('Enrollment Form'!$AW648:$AZ648)=4),\"Y\",\"N\"))","v":"-"},{"$f":"IF($B641=\"N\",\"\",IF('Enrollment Form'!$B648=\"Subscriber\",\"-\",IF(COUNTA('Enrollment Form'!$BE648,'Enrollment Form'!$BG648)=2,\"Y\",\"N\")))","v":""},{"$f":"IF($B641=\"N\",\"\",IF(OR('Enrollment Form'!$AU648=\"\",'Enrollment Form'!$AU648=\"No\"),\"-\",IF(AND('Enrollment Form'!$AU648=\"Yes\",COUNTA('Enrollment Form'!$CK648)=1),\"Y\",\"N\")))","v":""},{"$f":"IF(OR('Enrollment Form'!$CK648=\"\",'Enrollment Form'!$CK648=\"No\"),\"-\",IF(COUNTA('Enrollment Form'!$CM648:$CN648)=2,\"Y\",\"N\"))","v":"-"},{"$f":"IF($B641=\"N\",\"\",IF(COUNTIF('Enrollment Form'!$CZ648:$DO648,\"Other\")=COUNTA('Enrollment Form'!$DF648,'Enrollment Form'!$DA648,'Enrollment Form'!$DK648,'Enrollment Form'!$DP648),\"Y\",\"N\"))","v":""},{"$f":"IF($B641=\"N\",\"\",IF(OR('Enrollment Form'!B648<>\"Subscriber\",'Enrollment Form'!C648=\"ROC\",COUNTIF('Enrollment Form'!AS648:AT648,\"Yes\")>=1),\"-\",IF(AND('Enrollment Form'!C648=\"Enroll\",COUNTIF('Enrollment Form'!AS648:AT648,\"No\")=2,'Enrollment Form'!AU648=\"\"),\"N\",\"Y\")))","v":""},{"$f":"IF(OR(B641=\"N\",'Enrollment Form'!B648<>\"Subscriber\",'Enrollment Form'!C648=\"ROC\",'Enrollment Form'!O648<>\"Multiple of Salary\"),\"-\",IF(COUNTA('Enrollment Form'!T648:U648)<2,\"N\",\"Y\"))","v":"-"},{"$f":"IF(B641=\"N\",\"\",IF(OR('Enrollment Form'!C648=\"ROC\",'Enrollment Form'!B648<>\"Subscriber\",'Enrollment Form'!O648=\"Waive\",'Enrollment Form'!O648=\"\"),\"-\",IF('Enrollment Form'!P648=\"\",\"N\",\"Y\")))","v":""},{"$f":"IF($B641=\"N\",\"\",IF(AND('Enrollment Form'!$C648=\"ROC\",'Enrollment Form'!$DS648<>\"\"),\"Y\",IF(AND('Enrollment Form'!$C648=\"ROC\",'Enrollment Form'!$DS648=\"\"),\"N\",IF(AND('Enrollment Form'!$C648=\"Enroll\",'Enrollment Form'!$B648=\"Subscriber\",'Enrollment Form'!$CQ648=\"No\",'Enrollment Form'!$DS648=\"\"),\"N\",IF(AND('Enrollment Form'!$C648=\"Enroll\",'Enrollment Form'!$B648=\"Subscriber\",'Enrollment Form'!$CQ648=\"Yes\"),\"-\",\"Y\")))))","v":""},{"$f":"IF($B641=\"N\",\"\",IF(AND('Enrollment Form'!$C648=\"ROC\",'Enrollment Form'!$DT648<>\"\"),\"Y\",IF(AND('Enrollment Form'!$C648=\"ROC\",'Enrollment Form'!$DT648=\"\"),\"N\",IF(AND('Enrollment Form'!$C648=\"Enroll\",'Enrollment Form'!$B648=\"Subscriber\",'Enrollment Form'!$CQ648=\"No\",'Enrollment Form'!$DT648=\"\"),\"N\",IF(AND('Enrollment Form'!$C648=\"Enroll\",'Enrollment Form'!$B648=\"Subscriber\",'Enrollment Form'!$CQ648=\"Yes\"),\"-\",\"Y\")))))","v":""},{"$f":"IF('Enrollment Form'!AH648=\"\",\"\",IF(ISERROR(SEARCH(\".\",'Enrollment Form'!AH648,SEARCH(\"@\",'Enrollment Form'!AH648))),\"N\",\"Y\"))","v":""},{"$f":"IF(OR($B641=\"N\",'Enrollment Form'!$G648=\"\"),\"\",IF('Enrollment Form'!$B648<>\"Subscriber\",\"-\",IF(COUNTIF('Enrollment Form'!$AS648:$AT648,\"Yes\")=2,\"N\",\"Y\")))","v":""},{"$f":"IF(OR('Enrollment Form'!$CC648=\"\",'Enrollment Form'!$CC648=\"No\"),\"-\",IF(AND('Enrollment Form'!$CC648=\"Yes\",'Enrollment Form'!$CD648=\"\"),\"N\",\"Y\"))","v":"-"},{"$f":"IF(OR('Enrollment Form'!$CE648=\"\",'Enrollment Form'!$CE648=\"No\"),\"-\",IF(AND('Enrollment Form'!$CE648=\"Yes\",'Enrollment Form'!$CF648=\"\"),\"N\",\"Y\"))","v":"-"},{"$f":"IF(OR('Enrollment Form'!$CG648=\"\",'Enrollment Form'!$CG648=\"No\"),\"-\",IF(AND('Enrollment Form'!$CG648=\"Yes\",'Enrollment Form'!$CH648=\"\"),\"N\",\"Y\"))","v":"-"},{"$f":"IF(OR('Enrollment Form'!$CG648=\"\",'Enrollment Form'!$CG648=\"No\"),\"-\",IF(AND('Enrollment Form'!$CG648=\"Yes\",'Enrollment Form'!$CI648=\"\"),\"N\",\"Y\"))","v":"-"},{"$f":"IF('Enrollment Form'!B648<>\"Subscriber\",\"-\",IF(AND('Enrollment Form'!B648=\"Subscriber\",'Enrollment Form'!C648=\"Enroll\",'Enrollment Form'!AA648=\"\"),\"N\",\"Y\"))","v":"-"},{"$f":"IF(OR('Enrollment Form'!B648=\"Subscriber\",'Enrollment Form'!B648=\"\"),\"-\",IF('Enrollment Form'!BI648=\"\",\"N\",\"Y\"))","v":"-"},{"$f":"IF('Enrollment Form'!B648<>\"Subscriber\",\"-\",IF(AND('Enrollment Form'!B648=\"Subscriber\",'Enrollment Form'!G648=\"\"),\"N\",\"Y\"))","v":"-"},{"$f":"IF('Enrollment Form'!A648=\"\",\"\",IF('Enrollment Form'!B648=\"Subscriber\",\"-\",IF(AND('Enrollment Form'!B648<>\"Subscriber\",'Enrollment Form'!G648='Enrollment Form'!H648),\"N\",\"Y\")))","v":""},0]
[649,{"$f":"IF('Enrollment Form'!$A649<>\"\",\"Y\",\"N\")","v":"N"},{"$f":"IF(AND('Enrollment Form'!$B649=\"\",'Enrollment Form'!$C649<>\"\"),\"N\",IF($B642=\"N\",\"\",\"Y\"))","v":""},{"$f":"IF(OR($B642=\"N\",'Enrollment Form'!G649=\"\"),\"\",IF('Enrollment Form'!$B649<>\"Subscriber\",\"\",IF('Enrollment Form'!$G649='Enrollment Form'!$H649,\"Y\",\"N\")))","v":""},{"$f":"IF($B642=\"N\",\"\",IF(AND(COUNTIFS('Enrollment Form'!$H$11:$H$1000,'Enrollment Form'!$H649,'Enrollment Form'!$B$11:$B$1000,'Enrollment Form'!$B649)>1,'Enrollment Form'!$H649<>\"\"),\"N\",\"Y\"))","v":""},{"$f":"IF($B642=\"N\",\"\",IF(LEN('Enrollment Form'!$Y649)=0,\"\",IF(LEN('Enrollment Form'!$Y649)<>5,\"N\",\"Y\")))","v":""},{"$f":"IF($B642=\"N\",\"\",IF(LEN('Enrollment Form'!$AD649=0),\"\",IF(LEN('Enrollment Form'!$AD649)<>5,\"N\",\"Y\")))","v":""},{"$f":"IF($B642=\"N\",\"\",IF(LEN('Enrollment Form'!$BL649=0),\"\",IF(LEN('Enrollment Form'!$BL649)<>5,\"N\",\"Y\")))","v":""},{"$f":"IF($B642=\"N\",\"\",IF(LEN('Enrollment Form'!$AE649)=0,\"\",IF(LEN('Enrollment Form'!$AE649)<>10,\"N\",\"Y\")))","v":""},{"$f":"IF($B642=\"N\",\"\",IF(LEN('Enrollment Form'!$AF649)=0,\"\",IF(LEN('Enrollment Form'!$AF649)<>10,\"N\",\"Y\")))","v":""},{"$f":"IF('Enrollment Form'!$O649<>\"Graded\",\"-\",IF(AND('Enrollment Form'!$O649=\"Graded\",'Enrollment Form'!$AO649<>\"\"),\"Y\",\"N\"))","v":"-"},{"$f":"IF($B642=\"N\",\"\",IF(OR('Enrollment Form'!$B649<>\"Subscriber\",'Enrollment Form'!$C649=\"ROC\"),\"-\",IF(AND('Enrollment Form'!$B649=\"Subscriber\",'Enrollment Form'!$C649=\"Enroll\",'Enrollment Form'!$AJ649<>\"\"),\"Y\",\"N\")))","v":""},{"$f":"IF($B642=\"N\",\"\",IF(OR('Enrollment Form'!$B649<>\"Subscriber\",'Enrollment Form'!$C649=\"ROC\"),\"-\",IF(AND('Enrollment Form'!$B649=\"Subscriber\",'Enrollment Form'!$C649=\"Enroll\",'Enrollment Form'!$AK649<>\"\"),\"Y\",\"N\")))","v":""},{"$f":"IF($B642=\"N\",\"\",IF(OR('Enrollment Form'!$B649<>\"Subscriber\",'Enrollment Form'!$C649=\"ROC\"),\"-\",IF(AND('Enrollment Form'!$B649=\"Subscriber\",'Enrollment Form'!$C649=\"Enroll\",'Enrollment Form'!$AL649<>\"\"),\"Y\",\"N\")))","v":""},{"$f":"IF($B642=\"N\",\"\",IF(OR('Enrollment Form'!$B649<>\"Subscriber\",'Enrollment Form'!$C649=\"ROC\"),\"-\",IF(AND('Enrollment Form'!$B649=\"Subscriber\",'Enrollment Form'!$C649=\"Enroll\",'Enrollment Form'!$AM649<>\"\"),\"Y\",\"N\")))","v":""},{"$f":"IF($B642=\"N\",\"\",IF(OR('Enrollment Form'!$B649<>\"Subscriber\",'Enrollment Form'!$C649=\"ROC\"),\"-\",IF(AND('Enrollment Form'!$B649=\"Subscriber\",'Enrollment Form'!$C649=\"Enroll\",'Enrollment Form'!$AN649<>\"\"),\"Y\",\"N\")))","v":""},{"$f":"IF($B642=\"N\",\"\",IF(OR('Enrollment Form'!$B649<>\"Subscriber\",'Enrollment Form'!$C649=\"ROC\"),\"-\",IF(AND('Enrollment Form'!$B649=\"Subscriber\",'Enrollment Form'!$C649=\"Enroll\",'Enrollment Form'!$AP649<>\"\"),\"Y\",\"N\")))","v":""},{"$f":"IF($B642=\"N\",\"\",IF($Q642=\"-\",\"-\",IF(AND($Q642=\"Y\",'Enrollment Form'!$AP649=\"No\"),\"-\",IF(AND($Q642=\"Y\",'Enrollment Form'!$AP649=\"Yes\",'Enrollment Form'!$AQ649<>\"\"),\"Y\",\"N\"))))","v":""},{"$f":"IF($B642=\"N\",\"\",IF(OR('Enrollment Form'!$B649<>\"Subscriber\",'Enrollment Form'!$C649=\"ROC\"),\"-\",IF(AND('Enrollment Form'!$B649=\"Subscriber\",'Enrollment Form'!$C649=\"Enroll\",'Enrollment Form'!$CO649<>\"\"),\"Y\",\"N\")))","v":""},{"$f":"IF($B642=\"N\",\"\",IF($S642=\"-\",\"-\",IF(AND($S642=\"Y\",'Enrollment Form'!$CO649=\"No\"),\"-\",IF(AND($S642=\"Y\",'Enrollment Form'!$CO649=\"Yes\",'Enrollment Form'!$CP649<>\"\"),\"Y\",\"N\"))))","v":""},{"$f":"IF(OR('Enrollment Form'!$AV649=\"Yes\",'Enrollment Form'!$AV649=\"\"),\"-\",IF(AND('Enrollment Form'!$AV649=\"No\",ISERROR(FIND(\"HMO\",VLOOKUP('Enrollment Form'!G649,'Enrollment Form'!H$11:J$1000,3,FALSE),1))=FALSE,COUNTA('Enrollment Form'!$AW649:$AZ649)=4),\"Y\",\"N\"))","v":"-"},{"$f":"IF($B642=\"N\",\"\",IF('Enrollment Form'!$B649=\"Subscriber\",\"-\",IF(COUNTA('Enrollment Form'!$BE649,'Enrollment Form'!$BG649)=2,\"Y\",\"N\")))","v":""},{"$f":"IF($B642=\"N\",\"\",IF(OR('Enrollment Form'!$AU649=\"\",'Enrollment Form'!$AU649=\"No\"),\"-\",IF(AND('Enrollment Form'!$AU649=\"Yes\",COUNTA('Enrollment Form'!$CK649)=1),\"Y\",\"N\")))","v":""},{"$f":"IF(OR('Enrollment Form'!$CK649=\"\",'Enrollment Form'!$CK649=\"No\"),\"-\",IF(COUNTA('Enrollment Form'!$CM649:$CN649)=2,\"Y\",\"N\"))","v":"-"},{"$f":"IF($B642=\"N\",\"\",IF(COUNTIF('Enrollment Form'!$CZ649:$DO649,\"Other\")=COUNTA('Enrollment Form'!$DF649,'Enrollment Form'!$DA649,'Enrollment Form'!$DK649,'Enrollment Form'!$DP649),\"Y\",\"N\"))","v":""},{"$f":"IF($B642=\"N\",\"\",IF(OR('Enrollment Form'!B649<>\"Subscriber\",'Enrollment Form'!C649=\"ROC\",COUNTIF('Enrollment Form'!AS649:AT649,\"Yes\")>=1),\"-\",IF(AND('Enrollment Form'!C649=\"Enroll\",COUNTIF('Enrollment Form'!AS649:AT649,\"No\")=2,'Enrollment Form'!AU649=\"\"),\"N\",\"Y\")))","v":""},{"$f":"IF(OR(B642=\"N\",'Enrollment Form'!B649<>\"Subscriber\",'Enrollment Form'!C649=\"ROC\",'Enrollment Form'!O649<>\"Multiple of Salary\"),\"-\",IF(COUNTA('Enrollment Form'!T649:U649)<2,\"N\",\"Y\"))","v":"-"},{"$f":"IF(B642=\"N\",\"\",IF(OR('Enrollment Form'!C649=\"ROC\",'Enrollment Form'!B649<>\"Subscriber\",'Enrollment Form'!O649=\"Waive\",'Enrollment Form'!O649=\"\"),\"-\",IF('Enrollment Form'!P649=\"\",\"N\",\"Y\")))","v":""},{"$f":"IF($B642=\"N\",\"\",IF(AND('Enrollment Form'!$C649=\"ROC\",'Enrollment Form'!$DS649<>\"\"),\"Y\",IF(AND('Enrollment Form'!$C649=\"ROC\",'Enrollment Form'!$DS649=\"\"),\"N\",IF(AND('Enrollment Form'!$C649=\"Enroll\",'Enrollment Form'!$B649=\"Subscriber\",'Enrollment Form'!$CQ649=\"No\",'Enrollment Form'!$DS649=\"\"),\"N\",IF(AND('Enrollment Form'!$C649=\"Enroll\",'Enrollment Form'!$B649=\"Subscriber\",'Enrollment Form'!$CQ649=\"Yes\"),\"-\",\"Y\")))))","v":""},{"$f":"IF($B642=\"N\",\"\",IF(AND('Enrollment Form'!$C649=\"ROC\",'Enrollment Form'!$DT649<>\"\"),\"Y\",IF(AND('Enrollment Form'!$C649=\"ROC\",'Enrollment Form'!$DT649=\"\"),\"N\",IF(AND('Enrollment Form'!$C649=\"Enroll\",'Enrollment Form'!$B649=\"Subscriber\",'Enrollment Form'!$CQ649=\"No\",'Enrollment Form'!$DT649=\"\"),\"N\",IF(AND('Enrollment Form'!$C649=\"Enroll\",'Enrollment Form'!$B649=\"Subscriber\",'Enrollment Form'!$CQ649=\"Yes\"),\"-\",\"Y\")))))","v":""},{"$f":"IF('Enrollment Form'!AH649=\"\",\"\",IF(ISERROR(SEARCH(\".\",'Enrollment Form'!AH649,SEARCH(\"@\",'Enrollment Form'!AH649))),\"N\",\"Y\"))","v":""},{"$f":"IF(OR($B642=\"N\",'Enrollment Form'!$G649=\"\"),\"\",IF('Enrollment Form'!$B649<>\"Subscriber\",\"-\",IF(COUNTIF('Enrollment Form'!$AS649:$AT649,\"Yes\")=2,\"N\",\"Y\")))","v":""},{"$f":"IF(OR('Enrollment Form'!$CC649=\"\",'Enrollment Form'!$CC649=\"No\"),\"-\",IF(AND('Enrollment Form'!$CC649=\"Yes\",'Enrollment Form'!$CD649=\"\"),\"N\",\"Y\"))","v":"-"},{"$f":"IF(OR('Enrollment Form'!$CE649=\"\",'Enrollment Form'!$CE649=\"No\"),\"-\",IF(AND('Enrollment Form'!$CE649=\"Yes\",'Enrollment Form'!$CF649=\"\"),\"N\",\"Y\"))","v":"-"},{"$f":"IF(OR('Enrollment Form'!$CG649=\"\",'Enrollment Form'!$CG649=\"No\"),\"-\",IF(AND('Enrollment Form'!$CG649=\"Yes\",'Enrollment Form'!$CH649=\"\"),\"N\",\"Y\"))","v":"-"},{"$f":"IF(OR('Enrollment Form'!$CG649=\"\",'Enrollment Form'!$CG649=\"No\"),\"-\",IF(AND('Enrollment Form'!$CG649=\"Yes\",'Enrollment Form'!$CI649=\"\"),\"N\",\"Y\"))","v":"-"},{"$f":"IF('Enrollment Form'!B649<>\"Subscriber\",\"-\",IF(AND('Enrollment Form'!B649=\"Subscriber\",'Enrollment Form'!C649=\"Enroll\",'Enrollment Form'!AA649=\"\"),\"N\",\"Y\"))","v":"-"},{"$f":"IF(OR('Enrollment Form'!B649=\"Subscriber\",'Enrollment Form'!B649=\"\"),\"-\",IF('Enrollment Form'!BI649=\"\",\"N\",\"Y\"))","v":"-"},{"$f":"IF('Enrollment Form'!B649<>\"Subscriber\",\"-\",IF(AND('Enrollment Form'!B649=\"Subscriber\",'Enrollment Form'!G649=\"\"),\"N\",\"Y\"))","v":"-"},{"$f":"IF('Enrollment Form'!A649=\"\",\"\",IF('Enrollment Form'!B649=\"Subscriber\",\"-\",IF(AND('Enrollment Form'!B649<>\"Subscriber\",'Enrollment Form'!G649='Enrollment Form'!H649),\"N\",\"Y\")))","v":""},0]
[650,{"$f":"IF('Enrollment Form'!$A650<>\"\",\"Y\",\"N\")","v":"N"},{"$f":"IF(AND('Enrollment Form'!$B650=\"\",'Enrollment Form'!$C650<>\"\"),\"N\",IF($B643=\"N\",\"\",\"Y\"))","v":""},{"$f":"IF(OR($B643=\"N\",'Enrollment Form'!G650=\"\"),\"\",IF('Enrollment Form'!$B650<>\"Subscriber\",\"\",IF('Enrollment Form'!$G650='Enrollment Form'!$H650,\"Y\",\"N\")))","v":""},{"$f":"IF($B643=\"N\",\"\",IF(AND(COUNTIFS('Enrollment Form'!$H$11:$H$1000,'Enrollment Form'!$H650,'Enrollment Form'!$B$11:$B$1000,'Enrollment Form'!$B650)>1,'Enrollment Form'!$H650<>\"\"),\"N\",\"Y\"))","v":""},{"$f":"IF($B643=\"N\",\"\",IF(LEN('Enrollment Form'!$Y650)=0,\"\",IF(LEN('Enrollment Form'!$Y650)<>5,\"N\",\"Y\")))","v":""},{"$f":"IF($B643=\"N\",\"\",IF(LEN('Enrollment Form'!$AD650=0),\"\",IF(LEN('Enrollment Form'!$AD650)<>5,\"N\",\"Y\")))","v":""},{"$f":"IF($B643=\"N\",\"\",IF(LEN('Enrollment Form'!$BL650=0),\"\",IF(LEN('Enrollment Form'!$BL650)<>5,\"N\",\"Y\")))","v":""},{"$f":"IF($B643=\"N\",\"\",IF(LEN('Enrollment Form'!$AE650)=0,\"\",IF(LEN('Enrollment Form'!$AE650)<>10,\"N\",\"Y\")))","v":""},{"$f":"IF($B643=\"N\",\"\",IF(LEN('Enrollment Form'!$AF650)=0,\"\",IF(LEN('Enrollment Form'!$AF650)<>10,\"N\",\"Y\")))","v":""},{"$f":"IF('Enrollment Form'!$O650<>\"Graded\",\"-\",IF(AND('Enrollment Form'!$O650=\"Graded\",'Enrollment Form'!$AO650<>\"\"),\"Y\",\"N\"))","v":"-"},{"$f":"IF($B643=\"N\",\"\",IF(OR('Enrollment Form'!$B650<>\"Subscriber\",'Enrollment Form'!$C650=\"ROC\"),\"-\",IF(AND('Enrollment Form'!$B650=\"Subscriber\",'Enrollment Form'!$C650=\"Enroll\",'Enrollment Form'!$AJ650<>\"\"),\"Y\",\"N\")))","v":""},{"$f":"IF($B643=\"N\",\"\",IF(OR('Enrollment Form'!$B650<>\"Subscriber\",'Enrollment Form'!$C650=\"ROC\"),\"-\",IF(AND('Enrollment Form'!$B650=\"Subscriber\",'Enrollment Form'!$C650=\"Enroll\",'Enrollment Form'!$AK650<>\"\"),\"Y\",\"N\")))","v":""},{"$f":"IF($B643=\"N\",\"\",IF(OR('Enrollment Form'!$B650<>\"Subscriber\",'Enrollment Form'!$C650=\"ROC\"),\"-\",IF(AND('Enrollment Form'!$B650=\"Subscriber\",'Enrollment Form'!$C650=\"Enroll\",'Enrollment Form'!$AL650<>\"\"),\"Y\",\"N\")))","v":""},{"$f":"IF($B643=\"N\",\"\",IF(OR('Enrollment Form'!$B650<>\"Subscriber\",'Enrollment Form'!$C650=\"ROC\"),\"-\",IF(AND('Enrollment Form'!$B650=\"Subscriber\",'Enrollment Form'!$C650=\"Enroll\",'Enrollment Form'!$AM650<>\"\"),\"Y\",\"N\")))","v":""},{"$f":"IF($B643=\"N\",\"\",IF(OR('Enrollment Form'!$B650<>\"Subscriber\",'Enrollment Form'!$C650=\"ROC\"),\"-\",IF(AND('Enrollment Form'!$B650=\"Subscriber\",'Enrollment Form'!$C650=\"Enroll\",'Enrollment Form'!$AN650<>\"\"),\"Y\",\"N\")))","v":""},{"$f":"IF($B643=\"N\",\"\",IF(OR('Enrollment Form'!$B650<>\"Subscriber\",'Enrollment Form'!$C650=\"ROC\"),\"-\",IF(AND('Enrollment Form'!$B650=\"Subscriber\",'Enrollment Form'!$C650=\"Enroll\",'Enrollment Form'!$AP650<>\"\"),\"Y\",\"N\")))","v":""},{"$f":"IF($B643=\"N\",\"\",IF($Q643=\"-\",\"-\",IF(AND($Q643=\"Y\",'Enrollment Form'!$AP650=\"No\"),\"-\",IF(AND($Q643=\"Y\",'Enrollment Form'!$AP650=\"Yes\",'Enrollment Form'!$AQ650<>\"\"),\"Y\",\"N\"))))","v":""},{"$f":"IF($B643=\"N\",\"\",IF(OR('Enrollment Form'!$B650<>\"Subscriber\",'Enrollment Form'!$C650=\"ROC\"),\"-\",IF(AND('Enrollment Form'!$B650=\"Subscriber\",'Enrollment Form'!$C650=\"Enroll\",'Enrollment Form'!$CO650<>\"\"),\"Y\",\"N\")))","v":""},{"$f":"IF($B643=\"N\",\"\",IF($S643=\"-\",\"-\",IF(AND($S643=\"Y\",'Enrollment Form'!$CO650=\"No\"),\"-\",IF(AND($S643=\"Y\",'Enrollment Form'!$CO650=\"Yes\",'Enrollment Form'!$CP650<>\"\"),\"Y\",\"N\"))))","v":""},{"$f":"IF(OR('Enrollment Form'!$AV650=\"Yes\",'Enrollment Form'!$AV650=\"\"),\"-\",IF(AND('Enrollment Form'!$AV650=\"No\",ISERROR(FIND(\"HMO\",VLOOKUP('Enrollment Form'!G650,'Enrollment Form'!H$11:J$1000,3,FALSE),1))=FALSE,COUNTA('Enrollment Form'!$AW650:$AZ650)=4),\"Y\",\"N\"))","v":"-"},{"$f":"IF($B643=\"N\",\"\",IF('Enrollment Form'!$B650=\"Subscriber\",\"-\",IF(COUNTA('Enrollment Form'!$BE650,'Enrollment Form'!$BG650)=2,\"Y\",\"N\")))","v":""},{"$f":"IF($B643=\"N\",\"\",IF(OR('Enrollment Form'!$AU650=\"\",'Enrollment Form'!$AU650=\"No\"),\"-\",IF(AND('Enrollment Form'!$AU650=\"Yes\",COUNTA('Enrollment Form'!$CK650)=1),\"Y\",\"N\")))","v":""},{"$f":"IF(OR('Enrollment Form'!$CK650=\"\",'Enrollment Form'!$CK650=\"No\"),\"-\",IF(COUNTA('Enrollment Form'!$CM650:$CN650)=2,\"Y\",\"N\"))","v":"-"},{"$f":"IF($B643=\"N\",\"\",IF(COUNTIF('Enrollment Form'!$CZ650:$DO650,\"Other\")=COUNTA('Enrollment Form'!$DF650,'Enrollment Form'!$DA650,'Enrollment Form'!$DK650,'Enrollment Form'!$DP650),\"Y\",\"N\"))","v":""},{"$f":"IF($B643=\"N\",\"\",IF(OR('Enrollment Form'!B650<>\"Subscriber\",'Enrollment Form'!C650=\"ROC\",COUNTIF('Enrollment Form'!AS650:AT650,\"Yes\")>=1),\"-\",IF(AND('Enrollment Form'!C650=\"Enroll\",COUNTIF('Enrollment Form'!AS650:AT650,\"No\")=2,'Enrollment Form'!AU650=\"\"),\"N\",\"Y\")))","v":""},{"$f":"IF(OR(B643=\"N\",'Enrollment Form'!B650<>\"Subscriber\",'Enrollment Form'!C650=\"ROC\",'Enrollment Form'!O650<>\"Multiple of Salary\"),\"-\",IF(COUNTA('Enrollment Form'!T650:U650)<2,\"N\",\"Y\"))","v":"-"},{"$f":"IF(B643=\"N\",\"\",IF(OR('Enrollment Form'!C650=\"ROC\",'Enrollment Form'!B650<>\"Subscriber\",'Enrollment Form'!O650=\"Waive\",'Enrollment Form'!O650=\"\"),\"-\",IF('Enrollment Form'!P650=\"\",\"N\",\"Y\")))","v":""},{"$f":"IF($B643=\"N\",\"\",IF(AND('Enrollment Form'!$C650=\"ROC\",'Enrollment Form'!$DS650<>\"\"),\"Y\",IF(AND('Enrollment Form'!$C650=\"ROC\",'Enrollment Form'!$DS650=\"\"),\"N\",IF(AND('Enrollment Form'!$C650=\"Enroll\",'Enrollment Form'!$B650=\"Subscriber\",'Enrollment Form'!$CQ650=\"No\",'Enrollment Form'!$DS650=\"\"),\"N\",IF(AND('Enrollment Form'!$C650=\"Enroll\",'Enrollment Form'!$B650=\"Subscriber\",'Enrollment Form'!$CQ650=\"Yes\"),\"-\",\"Y\")))))","v":""},{"$f":"IF($B643=\"N\",\"\",IF(AND('Enrollment Form'!$C650=\"ROC\",'Enrollment Form'!$DT650<>\"\"),\"Y\",IF(AND('Enrollment Form'!$C650=\"ROC\",'Enrollment Form'!$DT650=\"\"),\"N\",IF(AND('Enrollment Form'!$C650=\"Enroll\",'Enrollment Form'!$B650=\"Subscriber\",'Enrollment Form'!$CQ650=\"No\",'Enrollment Form'!$DT650=\"\"),\"N\",IF(AND('Enrollment Form'!$C650=\"Enroll\",'Enrollment Form'!$B650=\"Subscriber\",'Enrollment Form'!$CQ650=\"Yes\"),\"-\",\"Y\")))))","v":""},{"$f":"IF('Enrollment Form'!AH650=\"\",\"\",IF(ISERROR(SEARCH(\".\",'Enrollment Form'!AH650,SEARCH(\"@\",'Enrollment Form'!AH650))),\"N\",\"Y\"))","v":""},{"$f":"IF(OR($B643=\"N\",'Enrollment Form'!$G650=\"\"),\"\",IF('Enrollment Form'!$B650<>\"Subscriber\",\"-\",IF(COUNTIF('Enrollment Form'!$AS650:$AT650,\"Yes\")=2,\"N\",\"Y\")))","v":""},{"$f":"IF(OR('Enrollment Form'!$CC650=\"\",'Enrollment Form'!$CC650=\"No\"),\"-\",IF(AND('Enrollment Form'!$CC650=\"Yes\",'Enrollment Form'!$CD650=\"\"),\"N\",\"Y\"))","v":"-"},{"$f":"IF(OR('Enrollment Form'!$CE650=\"\",'Enrollment Form'!$CE650=\"No\"),\"-\",IF(AND('Enrollment Form'!$CE650=\"Yes\",'Enrollment Form'!$CF650=\"\"),\"N\",\"Y\"))","v":"-"},{"$f":"IF(OR('Enrollment Form'!$CG650=\"\",'Enrollment Form'!$CG650=\"No\"),\"-\",IF(AND('Enrollment Form'!$CG650=\"Yes\",'Enrollment Form'!$CH650=\"\"),\"N\",\"Y\"))","v":"-"},{"$f":"IF(OR('Enrollment Form'!$CG650=\"\",'Enrollment Form'!$CG650=\"No\"),\"-\",IF(AND('Enrollment Form'!$CG650=\"Yes\",'Enrollment Form'!$CI650=\"\"),\"N\",\"Y\"))","v":"-"},{"$f":"IF('Enrollment Form'!B650<>\"Subscriber\",\"-\",IF(AND('Enrollment Form'!B650=\"Subscriber\",'Enrollment Form'!C650=\"Enroll\",'Enrollment Form'!AA650=\"\"),\"N\",\"Y\"))","v":"-"},{"$f":"IF(OR('Enrollment Form'!B650=\"Subscriber\",'Enrollment Form'!B650=\"\"),\"-\",IF('Enrollment Form'!BI650=\"\",\"N\",\"Y\"))","v":"-"},{"$f":"IF('Enrollment Form'!B650<>\"Subscriber\",\"-\",IF(AND('Enrollment Form'!B650=\"Subscriber\",'Enrollment Form'!G650=\"\"),\"N\",\"Y\"))","v":"-"},{"$f":"IF('Enrollment Form'!A650=\"\",\"\",IF('Enrollment Form'!B650=\"Subscriber\",\"-\",IF(AND('Enrollment Form'!B650<>\"Subscriber\",'Enrollment Form'!G650='Enrollment Form'!H650),\"N\",\"Y\")))","v":""},0]
[651,{"$f":"IF('Enrollment Form'!$A651<>\"\",\"Y\",\"N\")","v":"N"},{"$f":"IF(AND('Enrollment Form'!$B651=\"\",'Enrollment Form'!$C651<>\"\"),\"N\",IF($B644=\"N\",\"\",\"Y\"))","v":""},{"$f":"IF(OR($B644=\"N\",'Enrollment Form'!G651=\"\"),\"\",IF('Enrollment Form'!$B651<>\"Subscriber\",\"\",IF('Enrollment Form'!$G651='Enrollment Form'!$H651,\"Y\",\"N\")))","v":""},{"$f":"IF($B644=\"N\",\"\",IF(AND(COUNTIFS('Enrollment Form'!$H$11:$H$1000,'Enrollment Form'!$H651,'Enrollment Form'!$B$11:$B$1000,'Enrollment Form'!$B651)>1,'Enrollment Form'!$H651<>\"\"),\"N\",\"Y\"))","v":""},{"$f":"IF($B644=\"N\",\"\",IF(LEN('Enrollment Form'!$Y651)=0,\"\",IF(LEN('Enrollment Form'!$Y651)<>5,\"N\",\"Y\")))","v":""},{"$f":"IF($B644=\"N\",\"\",IF(LEN('Enrollment Form'!$AD651=0),\"\",IF(LEN('Enrollment Form'!$AD651)<>5,\"N\",\"Y\")))","v":""},{"$f":"IF($B644=\"N\",\"\",IF(LEN('Enrollment Form'!$BL651=0),\"\",IF(LEN('Enrollment Form'!$BL651)<>5,\"N\",\"Y\")))","v":""},{"$f":"IF($B644=\"N\",\"\",IF(LEN('Enrollment Form'!$AE651)=0,\"\",IF(LEN('Enrollment Form'!$AE651)<>10,\"N\",\"Y\")))","v":""},{"$f":"IF($B644=\"N\",\"\",IF(LEN('Enrollment Form'!$AF651)=0,\"\",IF(LEN('Enrollment Form'!$AF651)<>10,\"N\",\"Y\")))","v":""},{"$f":"IF('Enrollment Form'!$O651<>\"Graded\",\"-\",IF(AND('Enrollment Form'!$O651=\"Graded\",'Enrollment Form'!$AO651<>\"\"),\"Y\",\"N\"))","v":"-"},{"$f":"IF($B644=\"N\",\"\",IF(OR('Enrollment Form'!$B651<>\"Subscriber\",'Enrollment Form'!$C651=\"ROC\"),\"-\",IF(AND('Enrollment Form'!$B651=\"Subscriber\",'Enrollment Form'!$C651=\"Enroll\",'Enrollment Form'!$AJ651<>\"\"),\"Y\",\"N\")))","v":""},{"$f":"IF($B644=\"N\",\"\",IF(OR('Enrollment Form'!$B651<>\"Subscriber\",'Enrollment Form'!$C651=\"ROC\"),\"-\",IF(AND('Enrollment Form'!$B651=\"Subscriber\",'Enrollment Form'!$C651=\"Enroll\",'Enrollment Form'!$AK651<>\"\"),\"Y\",\"N\")))","v":""},{"$f":"IF($B644=\"N\",\"\",IF(OR('Enrollment Form'!$B651<>\"Subscriber\",'Enrollment Form'!$C651=\"ROC\"),\"-\",IF(AND('Enrollment Form'!$B651=\"Subscriber\",'Enrollment Form'!$C651=\"Enroll\",'Enrollment Form'!$AL651<>\"\"),\"Y\",\"N\")))","v":""},{"$f":"IF($B644=\"N\",\"\",IF(OR('Enrollment Form'!$B651<>\"Subscriber\",'Enrollment Form'!$C651=\"ROC\"),\"-\",IF(AND('Enrollment Form'!$B651=\"Subscriber\",'Enrollment Form'!$C651=\"Enroll\",'Enrollment Form'!$AM651<>\"\"),\"Y\",\"N\")))","v":""},{"$f":"IF($B644=\"N\",\"\",IF(OR('Enrollment Form'!$B651<>\"Subscriber\",'Enrollment Form'!$C651=\"ROC\"),\"-\",IF(AND('Enrollment Form'!$B651=\"Subscriber\",'Enrollment Form'!$C651=\"Enroll\",'Enrollment Form'!$AN651<>\"\"),\"Y\",\"N\")))","v":""},{"$f":"IF($B644=\"N\",\"\",IF(OR('Enrollment Form'!$B651<>\"Subscriber\",'Enrollment Form'!$C651=\"ROC\"),\"-\",IF(AND('Enrollment Form'!$B651=\"Subscriber\",'Enrollment Form'!$C651=\"Enroll\",'Enrollment Form'!$AP651<>\"\"),\"Y\",\"N\")))","v":""},{"$f":"IF($B644=\"N\",\"\",IF($Q644=\"-\",\"-\",IF(AND($Q644=\"Y\",'Enrollment Form'!$AP651=\"No\"),\"-\",IF(AND($Q644=\"Y\",'Enrollment Form'!$AP651=\"Yes\",'Enrollment Form'!$AQ651<>\"\"),\"Y\",\"N\"))))","v":""},{"$f":"IF($B644=\"N\",\"\",IF(OR('Enrollment Form'!$B651<>\"Subscriber\",'Enrollment Form'!$C651=\"ROC\"),\"-\",IF(AND('Enrollment Form'!$B651=\"Subscriber\",'Enrollment Form'!$C651=\"Enroll\",'Enrollment Form'!$CO651<>\"\"),\"Y\",\"N\")))","v":""},{"$f":"IF($B644=\"N\",\"\",IF($S644=\"-\",\"-\",IF(AND($S644=\"Y\",'Enrollment Form'!$CO651=\"No\"),\"-\",IF(AND($S644=\"Y\",'Enrollment Form'!$CO651=\"Yes\",'Enrollment Form'!$CP651<>\"\"),\"Y\",\"N\"))))","v":""},{"$f":"IF(OR('Enrollment Form'!$AV651=\"Yes\",'Enrollment Form'!$AV651=\"\"),\"-\",IF(AND('Enrollment Form'!$AV651=\"No\",ISERROR(FIND(\"HMO\",VLOOKUP('Enrollment Form'!G651,'Enrollment Form'!H$11:J$1000,3,FALSE),1))=FALSE,COUNTA('Enrollment Form'!$AW651:$AZ651)=4),\"Y\",\"N\"))","v":"-"},{"$f":"IF($B644=\"N\",\"\",IF('Enrollment Form'!$B651=\"Subscriber\",\"-\",IF(COUNTA('Enrollment Form'!$BE651,'Enrollment Form'!$BG651)=2,\"Y\",\"N\")))","v":""},{"$f":"IF($B644=\"N\",\"\",IF(OR('Enrollment Form'!$AU651=\"\",'Enrollment Form'!$AU651=\"No\"),\"-\",IF(AND('Enrollment Form'!$AU651=\"Yes\",COUNTA('Enrollment Form'!$CK651)=1),\"Y\",\"N\")))","v":""},{"$f":"IF(OR('Enrollment Form'!$CK651=\"\",'Enrollment Form'!$CK651=\"No\"),\"-\",IF(COUNTA('Enrollment Form'!$CM651:$CN651)=2,\"Y\",\"N\"))","v":"-"},{"$f":"IF($B644=\"N\",\"\",IF(COUNTIF('Enrollment Form'!$CZ651:$DO651,\"Other\")=COUNTA('Enrollment Form'!$DF651,'Enrollment Form'!$DA651,'Enrollment Form'!$DK651,'Enrollment Form'!$DP651),\"Y\",\"N\"))","v":""},{"$f":"IF($B644=\"N\",\"\",IF(OR('Enrollment Form'!B651<>\"Subscriber\",'Enrollment Form'!C651=\"ROC\",COUNTIF('Enrollment Form'!AS651:AT651,\"Yes\")>=1),\"-\",IF(AND('Enrollment Form'!C651=\"Enroll\",COUNTIF('Enrollment Form'!AS651:AT651,\"No\")=2,'Enrollment Form'!AU651=\"\"),\"N\",\"Y\")))","v":""},{"$f":"IF(OR(B644=\"N\",'Enrollment Form'!B651<>\"Subscriber\",'Enrollment Form'!C651=\"ROC\",'Enrollment Form'!O651<>\"Multiple of Salary\"),\"-\",IF(COUNTA('Enrollment Form'!T651:U651)<2,\"N\",\"Y\"))","v":"-"},{"$f":"IF(B644=\"N\",\"\",IF(OR('Enrollment Form'!C651=\"ROC\",'Enrollment Form'!B651<>\"Subscriber\",'Enrollment Form'!O651=\"Waive\",'Enrollment Form'!O651=\"\"),\"-\",IF('Enrollment Form'!P651=\"\",\"N\",\"Y\")))","v":""},{"$f":"IF($B644=\"N\",\"\",IF(AND('Enrollment Form'!$C651=\"ROC\",'Enrollment Form'!$DS651<>\"\"),\"Y\",IF(AND('Enrollment Form'!$C651=\"ROC\",'Enrollment Form'!$DS651=\"\"),\"N\",IF(AND('Enrollment Form'!$C651=\"Enroll\",'Enrollment Form'!$B651=\"Subscriber\",'Enrollment Form'!$CQ651=\"No\",'Enrollment Form'!$DS651=\"\"),\"N\",IF(AND('Enrollment Form'!$C651=\"Enroll\",'Enrollment Form'!$B651=\"Subscriber\",'Enrollment Form'!$CQ651=\"Yes\"),\"-\",\"Y\")))))","v":""},{"$f":"IF($B644=\"N\",\"\",IF(AND('Enrollment Form'!$C651=\"ROC\",'Enrollment Form'!$DT651<>\"\"),\"Y\",IF(AND('Enrollment Form'!$C651=\"ROC\",'Enrollment Form'!$DT651=\"\"),\"N\",IF(AND('Enrollment Form'!$C651=\"Enroll\",'Enrollment Form'!$B651=\"Subscriber\",'Enrollment Form'!$CQ651=\"No\",'Enrollment Form'!$DT651=\"\"),\"N\",IF(AND('Enrollment Form'!$C651=\"Enroll\",'Enrollment Form'!$B651=\"Subscriber\",'Enrollment Form'!$CQ651=\"Yes\"),\"-\",\"Y\")))))","v":""},{"$f":"IF('Enrollment Form'!AH651=\"\",\"\",IF(ISERROR(SEARCH(\".\",'Enrollment Form'!AH651,SEARCH(\"@\",'Enrollment Form'!AH651))),\"N\",\"Y\"))","v":""},{"$f":"IF(OR($B644=\"N\",'Enrollment Form'!$G651=\"\"),\"\",IF('Enrollment Form'!$B651<>\"Subscriber\",\"-\",IF(COUNTIF('Enrollment Form'!$AS651:$AT651,\"Yes\")=2,\"N\",\"Y\")))","v":""},{"$f":"IF(OR('Enrollment Form'!$CC651=\"\",'Enrollment Form'!$CC651=\"No\"),\"-\",IF(AND('Enrollment Form'!$CC651=\"Yes\",'Enrollment Form'!$CD651=\"\"),\"N\",\"Y\"))","v":"-"},{"$f":"IF(OR('Enrollment Form'!$CE651=\"\",'Enrollment Form'!$CE651=\"No\"),\"-\",IF(AND('Enrollment Form'!$CE651=\"Yes\",'Enrollment Form'!$CF651=\"\"),\"N\",\"Y\"))","v":"-"},{"$f":"IF(OR('Enrollment Form'!$CG651=\"\",'Enrollment Form'!$CG651=\"No\"),\"-\",IF(AND('Enrollment Form'!$CG651=\"Yes\",'Enrollment Form'!$CH651=\"\"),\"N\",\"Y\"))","v":"-"},{"$f":"IF(OR('Enrollment Form'!$CG651=\"\",'Enrollment Form'!$CG651=\"No\"),\"-\",IF(AND('Enrollment Form'!$CG651=\"Yes\",'Enrollment Form'!$CI651=\"\"),\"N\",\"Y\"))","v":"-"},{"$f":"IF('Enrollment Form'!B651<>\"Subscriber\",\"-\",IF(AND('Enrollment Form'!B651=\"Subscriber\",'Enrollment Form'!C651=\"Enroll\",'Enrollment Form'!AA651=\"\"),\"N\",\"Y\"))","v":"-"},{"$f":"IF(OR('Enrollment Form'!B651=\"Subscriber\",'Enrollment Form'!B651=\"\"),\"-\",IF('Enrollment Form'!BI651=\"\",\"N\",\"Y\"))","v":"-"},{"$f":"IF('Enrollment Form'!B651<>\"Subscriber\",\"-\",IF(AND('Enrollment Form'!B651=\"Subscriber\",'Enrollment Form'!G651=\"\"),\"N\",\"Y\"))","v":"-"},{"$f":"IF('Enrollment Form'!A651=\"\",\"\",IF('Enrollment Form'!B651=\"Subscriber\",\"-\",IF(AND('Enrollment Form'!B651<>\"Subscriber\",'Enrollment Form'!G651='Enrollment Form'!H651),\"N\",\"Y\")))","v":""},{"$f":"COUNTIF(C644:AN644,\"N\")","v":0}]
[652,{"$f":"IF('Enrollment Form'!$A652<>\"\",\"Y\",\"N\")","v":"N"},{"$f":"IF(AND('Enrollment Form'!$B652=\"\",'Enrollment Form'!$C652<>\"\"),\"N\",IF($B645=\"N\",\"\",\"Y\"))","v":""},{"$f":"IF(OR($B645=\"N\",'Enrollment Form'!G652=\"\"),\"\",IF('Enrollment Form'!$B652<>\"Subscriber\",\"\",IF('Enrollment Form'!$G652='Enrollment Form'!$H652,\"Y\",\"N\")))","v":""},{"$f":"IF($B645=\"N\",\"\",IF(AND(COUNTIFS('Enrollment Form'!$H$11:$H$1000,'Enrollment Form'!$H652,'Enrollment Form'!$B$11:$B$1000,'Enrollment Form'!$B652)>1,'Enrollment Form'!$H652<>\"\"),\"N\",\"Y\"))","v":""},{"$f":"IF($B645=\"N\",\"\",IF(LEN('Enrollment Form'!$Y652)=0,\"\",IF(LEN('Enrollment Form'!$Y652)<>5,\"N\",\"Y\")))","v":""},{"$f":"IF($B645=\"N\",\"\",IF(LEN('Enrollment Form'!$AD652=0),\"\",IF(LEN('Enrollment Form'!$AD652)<>5,\"N\",\"Y\")))","v":""},{"$f":"IF($B645=\"N\",\"\",IF(LEN('Enrollment Form'!$BL652=0),\"\",IF(LEN('Enrollment Form'!$BL652)<>5,\"N\",\"Y\")))","v":""},{"$f":"IF($B645=\"N\",\"\",IF(LEN('Enrollment Form'!$AE652)=0,\"\",IF(LEN('Enrollment Form'!$AE652)<>10,\"N\",\"Y\")))","v":""},{"$f":"IF($B645=\"N\",\"\",IF(LEN('Enrollment Form'!$AF652)=0,\"\",IF(LEN('Enrollment Form'!$AF652)<>10,\"N\",\"Y\")))","v":""},{"$f":"IF('Enrollment Form'!$O652<>\"Graded\",\"-\",IF(AND('Enrollment Form'!$O652=\"Graded\",'Enrollment Form'!$AO652<>\"\"),\"Y\",\"N\"))","v":"-"},{"$f":"IF($B645=\"N\",\"\",IF(OR('Enrollment Form'!$B652<>\"Subscriber\",'Enrollment Form'!$C652=\"ROC\"),\"-\",IF(AND('Enrollment Form'!$B652=\"Subscriber\",'Enrollment Form'!$C652=\"Enroll\",'Enrollment Form'!$AJ652<>\"\"),\"Y\",\"N\")))","v":""},{"$f":"IF($B645=\"N\",\"\",IF(OR('Enrollment Form'!$B652<>\"Subscriber\",'Enrollment Form'!$C652=\"ROC\"),\"-\",IF(AND('Enrollment Form'!$B652=\"Subscriber\",'Enrollment Form'!$C652=\"Enroll\",'Enrollment Form'!$AK652<>\"\"),\"Y\",\"N\")))","v":""},{"$f":"IF($B645=\"N\",\"\",IF(OR('Enrollment Form'!$B652<>\"Subscriber\",'Enrollment Form'!$C652=\"ROC\"),\"-\",IF(AND('Enrollment Form'!$B652=\"Subscriber\",'Enrollment Form'!$C652=\"Enroll\",'Enrollment Form'!$AL652<>\"\"),\"Y\",\"N\")))","v":""},{"$f":"IF($B645=\"N\",\"\",IF(OR('Enrollment Form'!$B652<>\"Subscriber\",'Enrollment Form'!$C652=\"ROC\"),\"-\",IF(AND('Enrollment Form'!$B652=\"Subscriber\",'Enrollment Form'!$C652=\"Enroll\",'Enrollment Form'!$AM652<>\"\"),\"Y\",\"N\")))","v":""},{"$f":"IF($B645=\"N\",\"\",IF(OR('Enrollment Form'!$B652<>\"Subscriber\",'Enrollment Form'!$C652=\"ROC\"),\"-\",IF(AND('Enrollment Form'!$B652=\"Subscriber\",'Enrollment Form'!$C652=\"Enroll\",'Enrollment Form'!$AN652<>\"\"),\"Y\",\"N\")))","v":""},{"$f":"IF($B645=\"N\",\"\",IF(OR('Enrollment Form'!$B652<>\"Subscriber\",'Enrollment Form'!$C652=\"ROC\"),\"-\",IF(AND('Enrollment Form'!$B652=\"Subscriber\",'Enrollment Form'!$C652=\"Enroll\",'Enrollment Form'!$AP652<>\"\"),\"Y\",\"N\")))","v":""},{"$f":"IF($B645=\"N\",\"\",IF($Q645=\"-\",\"-\",IF(AND($Q645=\"Y\",'Enrollment Form'!$AP652=\"No\"),\"-\",IF(AND($Q645=\"Y\",'Enrollment Form'!$AP652=\"Yes\",'Enrollment Form'!$AQ652<>\"\"),\"Y\",\"N\"))))","v":""},{"$f":"IF($B645=\"N\",\"\",IF(OR('Enrollment Form'!$B652<>\"Subscriber\",'Enrollment Form'!$C652=\"ROC\"),\"-\",IF(AND('Enrollment Form'!$B652=\"Subscriber\",'Enrollment Form'!$C652=\"Enroll\",'Enrollment Form'!$CO652<>\"\"),\"Y\",\"N\")))","v":""},{"$f":"IF($B645=\"N\",\"\",IF($S645=\"-\",\"-\",IF(AND($S645=\"Y\",'Enrollment Form'!$CO652=\"No\"),\"-\",IF(AND($S645=\"Y\",'Enrollment Form'!$CO652=\"Yes\",'Enrollment Form'!$CP652<>\"\"),\"Y\",\"N\"))))","v":""},{"$f":"IF(OR('Enrollment Form'!$AV652=\"Yes\",'Enrollment Form'!$AV652=\"\"),\"-\",IF(AND('Enrollment Form'!$AV652=\"No\",ISERROR(FIND(\"HMO\",VLOOKUP('Enrollment Form'!G652,'Enrollment Form'!H$11:J$1000,3,FALSE),1))=FALSE,COUNTA('Enrollment Form'!$AW652:$AZ652)=4),\"Y\",\"N\"))","v":"-"},{"$f":"IF($B645=\"N\",\"\",IF('Enrollment Form'!$B652=\"Subscriber\",\"-\",IF(COUNTA('Enrollment Form'!$BE652,'Enrollment Form'!$BG652)=2,\"Y\",\"N\")))","v":""},{"$f":"IF($B645=\"N\",\"\",IF(OR('Enrollment Form'!$AU652=\"\",'Enrollment Form'!$AU652=\"No\"),\"-\",IF(AND('Enrollment Form'!$AU652=\"Yes\",COUNTA('Enrollment Form'!$CK652)=1),\"Y\",\"N\")))","v":""},{"$f":"IF(OR('Enrollment Form'!$CK652=\"\",'Enrollment Form'!$CK652=\"No\"),\"-\",IF(COUNTA('Enrollment Form'!$CM652:$CN652)=2,\"Y\",\"N\"))","v":"-"},{"$f":"IF($B645=\"N\",\"\",IF(COUNTIF('Enrollment Form'!$CZ652:$DO652,\"Other\")=COUNTA('Enrollment Form'!$DF652,'Enrollment Form'!$DA652,'Enrollment Form'!$DK652,'Enrollment Form'!$DP652),\"Y\",\"N\"))","v":""},{"$f":"IF($B645=\"N\",\"\",IF(OR('Enrollment Form'!B652<>\"Subscriber\",'Enrollment Form'!C652=\"ROC\",COUNTIF('Enrollment Form'!AS652:AT652,\"Yes\")>=1),\"-\",IF(AND('Enrollment Form'!C652=\"Enroll\",COUNTIF('Enrollment Form'!AS652:AT652,\"No\")=2,'Enrollment Form'!AU652=\"\"),\"N\",\"Y\")))","v":""},{"$f":"IF(OR(B645=\"N\",'Enrollment Form'!B652<>\"Subscriber\",'Enrollment Form'!C652=\"ROC\",'Enrollment Form'!O652<>\"Multiple of Salary\"),\"-\",IF(COUNTA('Enrollment Form'!T652:U652)<2,\"N\",\"Y\"))","v":"-"},{"$f":"IF(B645=\"N\",\"\",IF(OR('Enrollment Form'!C652=\"ROC\",'Enrollment Form'!B652<>\"Subscriber\",'Enrollment Form'!O652=\"Waive\",'Enrollment Form'!O652=\"\"),\"-\",IF('Enrollment Form'!P652=\"\",\"N\",\"Y\")))","v":""},{"$f":"IF($B645=\"N\",\"\",IF(AND('Enrollment Form'!$C652=\"ROC\",'Enrollment Form'!$DS652<>\"\"),\"Y\",IF(AND('Enrollment Form'!$C652=\"ROC\",'Enrollment Form'!$DS652=\"\"),\"N\",IF(AND('Enrollment Form'!$C652=\"Enroll\",'Enrollment Form'!$B652=\"Subscriber\",'Enrollment Form'!$CQ652=\"No\",'Enrollment Form'!$DS652=\"\"),\"N\",IF(AND('Enrollment Form'!$C652=\"Enroll\",'Enrollment Form'!$B652=\"Subscriber\",'Enrollment Form'!$CQ652=\"Yes\"),\"-\",\"Y\")))))","v":""},{"$f":"IF($B645=\"N\",\"\",IF(AND('Enrollment Form'!$C652=\"ROC\",'Enrollment Form'!$DT652<>\"\"),\"Y\",IF(AND('Enrollment Form'!$C652=\"ROC\",'Enrollment Form'!$DT652=\"\"),\"N\",IF(AND('Enrollment Form'!$C652=\"Enroll\",'Enrollment Form'!$B652=\"Subscriber\",'Enrollment Form'!$CQ652=\"No\",'Enrollment Form'!$DT652=\"\"),\"N\",IF(AND('Enrollment Form'!$C652=\"Enroll\",'Enrollment Form'!$B652=\"Subscriber\",'Enrollment Form'!$CQ652=\"Yes\"),\"-\",\"Y\")))))","v":""},{"$f":"IF('Enrollment Form'!AH652=\"\",\"\",IF(ISERROR(SEARCH(\".\",'Enrollment Form'!AH652,SEARCH(\"@\",'Enrollment Form'!AH652))),\"N\",\"Y\"))","v":""},{"$f":"IF(OR($B645=\"N\",'Enrollment Form'!$G652=\"\"),\"\",IF('Enrollment Form'!$B652<>\"Subscriber\",\"-\",IF(COUNTIF('Enrollment Form'!$AS652:$AT652,\"Yes\")=2,\"N\",\"Y\")))","v":""},{"$f":"IF(OR('Enrollment Form'!$CC652=\"\",'Enrollment Form'!$CC652=\"No\"),\"-\",IF(AND('Enrollment Form'!$CC652=\"Yes\",'Enrollment Form'!$CD652=\"\"),\"N\",\"Y\"))","v":"-"},{"$f":"IF(OR('Enrollment Form'!$CE652=\"\",'Enrollment Form'!$CE652=\"No\"),\"-\",IF(AND('Enrollment Form'!$CE652=\"Yes\",'Enrollment Form'!$CF652=\"\"),\"N\",\"Y\"))","v":"-"},{"$f":"IF(OR('Enrollment Form'!$CG652=\"\",'Enrollment Form'!$CG652=\"No\"),\"-\",IF(AND('Enrollment Form'!$CG652=\"Yes\",'Enrollment Form'!$CH652=\"\"),\"N\",\"Y\"))","v":"-"},{"$f":"IF(OR('Enrollment Form'!$CG652=\"\",'Enrollment Form'!$CG652=\"No\"),\"-\",IF(AND('Enrollment Form'!$CG652=\"Yes\",'Enrollment Form'!$CI652=\"\"),\"N\",\"Y\"))","v":"-"},{"$f":"IF('Enrollment Form'!B652<>\"Subscriber\",\"-\",IF(AND('Enrollment Form'!B652=\"Subscriber\",'Enrollment Form'!C652=\"Enroll\",'Enrollment Form'!AA652=\"\"),\"N\",\"Y\"))","v":"-"},{"$f":"IF(OR('Enrollment Form'!B652=\"Subscriber\",'Enrollment Form'!B652=\"\"),\"-\",IF('Enrollment Form'!BI652=\"\",\"N\",\"Y\"))","v":"-"},{"$f":"IF('Enrollment Form'!B652<>\"Subscriber\",\"-\",IF(AND('Enrollment Form'!B652=\"Subscriber\",'Enrollment Form'!G652=\"\"),\"N\",\"Y\"))","v":"-"},{"$f":"IF('Enrollment Form'!A652=\"\",\"\",IF('Enrollment Form'!B652=\"Subscriber\",\"-\",IF(AND('Enrollment Form'!B652<>\"Subscriber\",'Enrollment Form'!G652='Enrollment Form'!H652),\"N\",\"Y\")))","v":""},0]
[{"$f":"1+A645","v":653},{"$f":"IF('Enrollment Form'!$A653<>\"\",\"Y\",\"N\")","v":"N"},{"$f":"IF(AND('Enrollment Form'!$B653=\"\",'Enrollment Form'!$C653<>\"\"),\"N\",IF($B646=\"N\",\"\",\"Y\"))","v":""},{"$f":"IF(OR($B646=\"N\",'Enrollment Form'!G653=\"\"),\"\",IF('Enrollment Form'!$B653<>\"Subscriber\",\"\",IF('Enrollment Form'!$G653='Enrollment Form'!$H653,\"Y\",\"N\")))","v":""},{"$f":"IF($B646=\"N\",\"\",IF(AND(COUNTIFS('Enrollment Form'!$H$11:$H$1000,'Enrollment Form'!$H653,'Enrollment Form'!$B$11:$B$1000,'Enrollment Form'!$B653)>1,'Enrollment Form'!$H653<>\"\"),\"N\",\"Y\"))","v":""},{"$f":"IF($B646=\"N\",\"\",IF(LEN('Enrollment Form'!$Y653)=0,\"\",IF(LEN('Enrollment Form'!$Y653)<>5,\"N\",\"Y\")))","v":""},{"$f":"IF($B646=\"N\",\"\",IF(LEN('Enrollment Form'!$AD653=0),\"\",IF(LEN('Enrollment Form'!$AD653)<>5,\"N\",\"Y\")))","v":""},{"$f":"IF($B646=\"N\",\"\",IF(LEN('Enrollment Form'!$BL653=0),\"\",IF(LEN('Enrollment Form'!$BL653)<>5,\"N\",\"Y\")))","v":""},{"$f":"IF($B646=\"N\",\"\",IF(LEN('Enrollment Form'!$AE653)=0,\"\",IF(LEN('Enrollment Form'!$AE653)<>10,\"N\",\"Y\")))","v":""},{"$f":"IF($B646=\"N\",\"\",IF(LEN('Enrollment Form'!$AF653)=0,\"\",IF(LEN('Enrollment Form'!$AF653)<>10,\"N\",\"Y\")))","v":""},{"$f":"IF('Enrollment Form'!$O653<>\"Graded\",\"-\",IF(AND('Enrollment Form'!$O653=\"Graded\",'Enrollment Form'!$AO653<>\"\"),\"Y\",\"N\"))","v":"-"},{"$f":"IF($B646=\"N\",\"\",IF(OR('Enrollment Form'!$B653<>\"Subscriber\",'Enrollment Form'!$C653=\"ROC\"),\"-\",IF(AND('Enrollment Form'!$B653=\"Subscriber\",'Enrollment Form'!$C653=\"Enroll\",'Enrollment Form'!$AJ653<>\"\"),\"Y\",\"N\")))","v":""},{"$f":"IF($B646=\"N\",\"\",IF(OR('Enrollment Form'!$B653<>\"Subscriber\",'Enrollment Form'!$C653=\"ROC\"),\"-\",IF(AND('Enrollment Form'!$B653=\"Subscriber\",'Enrollment Form'!$C653=\"Enroll\",'Enrollment Form'!$AK653<>\"\"),\"Y\",\"N\")))","v":""},{"$f":"IF($B646=\"N\",\"\",IF(OR('Enrollment Form'!$B653<>\"Subscriber\",'Enrollment Form'!$C653=\"ROC\"),\"-\",IF(AND('Enrollment Form'!$B653=\"Subscriber\",'Enrollment Form'!$C653=\"Enroll\",'Enrollment Form'!$AL653<>\"\"),\"Y\",\"N\")))","v":""},{"$f":"IF($B646=\"N\",\"\",IF(OR('Enrollment Form'!$B653<>\"Subscriber\",'Enrollment Form'!$C653=\"ROC\"),\"-\",IF(AND('Enrollment Form'!$B653=\"Subscriber\",'Enrollment Form'!$C653=\"Enroll\",'Enrollment Form'!$AM653<>\"\"),\"Y\",\"N\")))","v":""},{"$f":"IF($B646=\"N\",\"\",IF(OR('Enrollment Form'!$B653<>\"Subscriber\",'Enrollment Form'!$C653=\"ROC\"),\"-\",IF(AND('Enrollment Form'!$B653=\"Subscriber\",'Enrollment Form'!$C653=\"Enroll\",'Enrollment Form'!$AN653<>\"\"),\"Y\",\"N\")))","v":""},{"$f":"IF($B646=\"N\",\"\",IF(OR('Enrollment Form'!$B653<>\"Subscriber\",'Enrollment Form'!$C653=\"ROC\"),\"-\",IF(AND('Enrollment Form'!$B653=\"Subscriber\",'Enrollment Form'!$C653=\"Enroll\",'Enrollment Form'!$AP653<>\"\"),\"Y\",\"N\")))","v":""},{"$f":"IF($B646=\"N\",\"\",IF($Q646=\"-\",\"-\",IF(AND($Q646=\"Y\",'Enrollment Form'!$AP653=\"No\"),\"-\",IF(AND($Q646=\"Y\",'Enrollment Form'!$AP653=\"Yes\",'Enrollment Form'!$AQ653<>\"\"),\"Y\",\"N\"))))","v":""},{"$f":"IF($B646=\"N\",\"\",IF(OR('Enrollment Form'!$B653<>\"Subscriber\",'Enrollment Form'!$C653=\"ROC\"),\"-\",IF(AND('Enrollment Form'!$B653=\"Subscriber\",'Enrollment Form'!$C653=\"Enroll\",'Enrollment Form'!$CO653<>\"\"),\"Y\",\"N\")))","v":""},{"$f":"IF($B646=\"N\",\"\",IF($S646=\"-\",\"-\",IF(AND($S646=\"Y\",'Enrollment Form'!$CO653=\"No\"),\"-\",IF(AND($S646=\"Y\",'Enrollment Form'!$CO653=\"Yes\",'Enrollment Form'!$CP653<>\"\"),\"Y\",\"N\"))))","v":""},{"$f":"IF(OR('Enrollment Form'!$AV653=\"Yes\",'Enrollment Form'!$AV653=\"\"),\"-\",IF(AND('Enrollment Form'!$AV653=\"No\",ISERROR(FIND(\"HMO\",VLOOKUP('Enrollment Form'!G653,'Enrollment Form'!H$11:J$1000,3,FALSE),1))=FALSE,COUNTA('Enrollment Form'!$AW653:$AZ653)=4),\"Y\",\"N\"))","v":"-"},{"$f":"IF($B646=\"N\",\"\",IF('Enrollment Form'!$B653=\"Subscriber\",\"-\",IF(COUNTA('Enrollment Form'!$BE653,'Enrollment Form'!$BG653)=2,\"Y\",\"N\")))","v":""},{"$f":"IF($B646=\"N\",\"\",IF(OR('Enrollment Form'!$AU653=\"\",'Enrollment Form'!$AU653=\"No\"),\"-\",IF(AND('Enrollment Form'!$AU653=\"Yes\",COUNTA('Enrollment Form'!$CK653)=1),\"Y\",\"N\")))","v":""},{"$f":"IF(OR('Enrollment Form'!$CK653=\"\",'Enrollment Form'!$CK653=\"No\"),\"-\",IF(COUNTA('Enrollment Form'!$CM653:$CN653)=2,\"Y\",\"N\"))","v":"-"},{"$f":"IF($B646=\"N\",\"\",IF(COUNTIF('Enrollment Form'!$CZ653:$DO653,\"Other\")=COUNTA('Enrollment Form'!$DF653,'Enrollment Form'!$DA653,'Enrollment Form'!$DK653,'Enrollment Form'!$DP653),\"Y\",\"N\"))","v":""},{"$f":"IF($B646=\"N\",\"\",IF(OR('Enrollment Form'!B653<>\"Subscriber\",'Enrollment Form'!C653=\"ROC\",COUNTIF('Enrollment Form'!AS653:AT653,\"Yes\")>=1),\"-\",IF(AND('Enrollment Form'!C653=\"Enroll\",COUNTIF('Enrollment Form'!AS653:AT653,\"No\")=2,'Enrollment Form'!AU653=\"\"),\"N\",\"Y\")))","v":""},{"$f":"IF(OR(B646=\"N\",'Enrollment Form'!B653<>\"Subscriber\",'Enrollment Form'!C653=\"ROC\",'Enrollment Form'!O653<>\"Multiple of Salary\"),\"-\",IF(COUNTA('Enrollment Form'!T653:U653)<2,\"N\",\"Y\"))","v":"-"},{"$f":"IF(B646=\"N\",\"\",IF(OR('Enrollment Form'!C653=\"ROC\",'Enrollment Form'!B653<>\"Subscriber\",'Enrollment Form'!O653=\"Waive\",'Enrollment Form'!O653=\"\"),\"-\",IF('Enrollment Form'!P653=\"\",\"N\",\"Y\")))","v":""},{"$f":"IF($B646=\"N\",\"\",IF(AND('Enrollment Form'!$C653=\"ROC\",'Enrollment Form'!$DS653<>\"\"),\"Y\",IF(AND('Enrollment Form'!$C653=\"ROC\",'Enrollment Form'!$DS653=\"\"),\"N\",IF(AND('Enrollment Form'!$C653=\"Enroll\",'Enrollment Form'!$B653=\"Subscriber\",'Enrollment Form'!$CQ653=\"No\",'Enrollment Form'!$DS653=\"\"),\"N\",IF(AND('Enrollment Form'!$C653=\"Enroll\",'Enrollment Form'!$B653=\"Subscriber\",'Enrollment Form'!$CQ653=\"Yes\"),\"-\",\"Y\")))))","v":""},{"$f":"IF($B646=\"N\",\"\",IF(AND('Enrollment Form'!$C653=\"ROC\",'Enrollment Form'!$DT653<>\"\"),\"Y\",IF(AND('Enrollment Form'!$C653=\"ROC\",'Enrollment Form'!$DT653=\"\"),\"N\",IF(AND('Enrollment Form'!$C653=\"Enroll\",'Enrollment Form'!$B653=\"Subscriber\",'Enrollment Form'!$CQ653=\"No\",'Enrollment Form'!$DT653=\"\"),\"N\",IF(AND('Enrollment Form'!$C653=\"Enroll\",'Enrollment Form'!$B653=\"Subscriber\",'Enrollment Form'!$CQ653=\"Yes\"),\"-\",\"Y\")))))","v":""},{"$f":"IF('Enrollment Form'!AH653=\"\",\"\",IF(ISERROR(SEARCH(\".\",'Enrollment Form'!AH653,SEARCH(\"@\",'Enrollment Form'!AH653))),\"N\",\"Y\"))","v":""},{"$f":"IF(OR($B646=\"N\",'Enrollment Form'!$G653=\"\"),\"\",IF('Enrollment Form'!$B653<>\"Subscriber\",\"-\",IF(COUNTIF('Enrollment Form'!$AS653:$AT653,\"Yes\")=2,\"N\",\"Y\")))","v":""},{"$f":"IF(OR('Enrollment Form'!$CC653=\"\",'Enrollment Form'!$CC653=\"No\"),\"-\",IF(AND('Enrollment Form'!$CC653=\"Yes\",'Enrollment Form'!$CD653=\"\"),\"N\",\"Y\"))","v":"-"},{"$f":"IF(OR('Enrollment Form'!$CE653=\"\",'Enrollment Form'!$CE653=\"No\"),\"-\",IF(AND('Enrollment Form'!$CE653=\"Yes\",'Enrollment Form'!$CF653=\"\"),\"N\",\"Y\"))","v":"-"},{"$f":"IF(OR('Enrollment Form'!$CG653=\"\",'Enrollment Form'!$CG653=\"No\"),\"-\",IF(AND('Enrollment Form'!$CG653=\"Yes\",'Enrollment Form'!$CH653=\"\"),\"N\",\"Y\"))","v":"-"},{"$f":"IF(OR('Enrollment Form'!$CG653=\"\",'Enrollment Form'!$CG653=\"No\"),\"-\",IF(AND('Enrollment Form'!$CG653=\"Yes\",'Enrollment Form'!$CI653=\"\"),\"N\",\"Y\"))","v":"-"},{"$f":"IF('Enrollment Form'!B653<>\"Subscriber\",\"-\",IF(AND('Enrollment Form'!B653=\"Subscriber\",'Enrollment Form'!C653=\"Enroll\",'Enrollment Form'!AA653=\"\"),\"N\",\"Y\"))","v":"-"},{"$f":"IF(OR('Enrollment Form'!B653=\"Subscriber\",'Enrollment Form'!B653=\"\"),\"-\",IF('Enrollment Form'!BI653=\"\",\"N\",\"Y\"))","v":"-"},{"$f":"IF('Enrollment Form'!B653<>\"Subscriber\",\"-\",IF(AND('Enrollment Form'!B653=\"Subscriber\",'Enrollment Form'!G653=\"\"),\"N\",\"Y\"))","v":"-"},{"$f":"IF('Enrollment Form'!A653=\"\",\"\",IF('Enrollment Form'!B653=\"Subscriber\",\"-\",IF(AND('Enrollment Form'!B653<>\"Subscriber\",'Enrollment Form'!G653='Enrollment Form'!H653),\"N\",\"Y\")))","v":""},0]
[654,{"$f":"IF('Enrollment Form'!$A654<>\"\",\"Y\",\"N\")","v":"N"},{"$f":"IF(AND('Enrollment Form'!$B654=\"\",'Enrollment Form'!$C654<>\"\"),\"N\",IF($B647=\"N\",\"\",\"Y\"))","v":""},{"$f":"IF(OR($B647=\"N\",'Enrollment Form'!G654=\"\"),\"\",IF('Enrollment Form'!$B654<>\"Subscriber\",\"\",IF('Enrollment Form'!$G654='Enrollment Form'!$H654,\"Y\",\"N\")))","v":""},{"$f":"IF($B647=\"N\",\"\",IF(AND(COUNTIFS('Enrollment Form'!$H$11:$H$1000,'Enrollment Form'!$H654,'Enrollment Form'!$B$11:$B$1000,'Enrollment Form'!$B654)>1,'Enrollment Form'!$H654<>\"\"),\"N\",\"Y\"))","v":""},{"$f":"IF($B647=\"N\",\"\",IF(LEN('Enrollment Form'!$Y654)=0,\"\",IF(LEN('Enrollment Form'!$Y654)<>5,\"N\",\"Y\")))","v":""},{"$f":"IF($B647=\"N\",\"\",IF(LEN('Enrollment Form'!$AD654=0),\"\",IF(LEN('Enrollment Form'!$AD654)<>5,\"N\",\"Y\")))","v":""},{"$f":"IF($B647=\"N\",\"\",IF(LEN('Enrollment Form'!$BL654=0),\"\",IF(LEN('Enrollment Form'!$BL654)<>5,\"N\",\"Y\")))","v":""},{"$f":"IF($B647=\"N\",\"\",IF(LEN('Enrollment Form'!$AE654)=0,\"\",IF(LEN('Enrollment Form'!$AE654)<>10,\"N\",\"Y\")))","v":""},{"$f":"IF($B647=\"N\",\"\",IF(LEN('Enrollment Form'!$AF654)=0,\"\",IF(LEN('Enrollment Form'!$AF654)<>10,\"N\",\"Y\")))","v":""},{"$f":"IF('Enrollment Form'!$O654<>\"Graded\",\"-\",IF(AND('Enrollment Form'!$O654=\"Graded\",'Enrollment Form'!$AO654<>\"\"),\"Y\",\"N\"))","v":"-"},{"$f":"IF($B647=\"N\",\"\",IF(OR('Enrollment Form'!$B654<>\"Subscriber\",'Enrollment Form'!$C654=\"ROC\"),\"-\",IF(AND('Enrollment Form'!$B654=\"Subscriber\",'Enrollment Form'!$C654=\"Enroll\",'Enrollment Form'!$AJ654<>\"\"),\"Y\",\"N\")))","v":""},{"$f":"IF($B647=\"N\",\"\",IF(OR('Enrollment Form'!$B654<>\"Subscriber\",'Enrollment Form'!$C654=\"ROC\"),\"-\",IF(AND('Enrollment Form'!$B654=\"Subscriber\",'Enrollment Form'!$C654=\"Enroll\",'Enrollment Form'!$AK654<>\"\"),\"Y\",\"N\")))","v":""},{"$f":"IF($B647=\"N\",\"\",IF(OR('Enrollment Form'!$B654<>\"Subscriber\",'Enrollment Form'!$C654=\"ROC\"),\"-\",IF(AND('Enrollment Form'!$B654=\"Subscriber\",'Enrollment Form'!$C654=\"Enroll\",'Enrollment Form'!$AL654<>\"\"),\"Y\",\"N\")))","v":""},{"$f":"IF($B647=\"N\",\"\",IF(OR('Enrollment Form'!$B654<>\"Subscriber\",'Enrollment Form'!$C654=\"ROC\"),\"-\",IF(AND('Enrollment Form'!$B654=\"Subscriber\",'Enrollment Form'!$C654=\"Enroll\",'Enrollment Form'!$AM654<>\"\"),\"Y\",\"N\")))","v":""},{"$f":"IF($B647=\"N\",\"\",IF(OR('Enrollment Form'!$B654<>\"Subscriber\",'Enrollment Form'!$C654=\"ROC\"),\"-\",IF(AND('Enrollment Form'!$B654=\"Subscriber\",'Enrollment Form'!$C654=\"Enroll\",'Enrollment Form'!$AN654<>\"\"),\"Y\",\"N\")))","v":""},{"$f":"IF($B647=\"N\",\"\",IF(OR('Enrollment Form'!$B654<>\"Subscriber\",'Enrollment Form'!$C654=\"ROC\"),\"-\",IF(AND('Enrollment Form'!$B654=\"Subscriber\",'Enrollment Form'!$C654=\"Enroll\",'Enrollment Form'!$AP654<>\"\"),\"Y\",\"N\")))","v":""},{"$f":"IF($B647=\"N\",\"\",IF($Q647=\"-\",\"-\",IF(AND($Q647=\"Y\",'Enrollment Form'!$AP654=\"No\"),\"-\",IF(AND($Q647=\"Y\",'Enrollment Form'!$AP654=\"Yes\",'Enrollment Form'!$AQ654<>\"\"),\"Y\",\"N\"))))","v":""},{"$f":"IF($B647=\"N\",\"\",IF(OR('Enrollment Form'!$B654<>\"Subscriber\",'Enrollment Form'!$C654=\"ROC\"),\"-\",IF(AND('Enrollment Form'!$B654=\"Subscriber\",'Enrollment Form'!$C654=\"Enroll\",'Enrollment Form'!$CO654<>\"\"),\"Y\",\"N\")))","v":""},{"$f":"IF($B647=\"N\",\"\",IF($S647=\"-\",\"-\",IF(AND($S647=\"Y\",'Enrollment Form'!$CO654=\"No\"),\"-\",IF(AND($S647=\"Y\",'Enrollment Form'!$CO654=\"Yes\",'Enrollment Form'!$CP654<>\"\"),\"Y\",\"N\"))))","v":""},{"$f":"IF(OR('Enrollment Form'!$AV654=\"Yes\",'Enrollment Form'!$AV654=\"\"),\"-\",IF(AND('Enrollment Form'!$AV654=\"No\",ISERROR(FIND(\"HMO\",VLOOKUP('Enrollment Form'!G654,'Enrollment Form'!H$11:J$1000,3,FALSE),1))=FALSE,COUNTA('Enrollment Form'!$AW654:$AZ654)=4),\"Y\",\"N\"))","v":"-"},{"$f":"IF($B647=\"N\",\"\",IF('Enrollment Form'!$B654=\"Subscriber\",\"-\",IF(COUNTA('Enrollment Form'!$BE654,'Enrollment Form'!$BG654)=2,\"Y\",\"N\")))","v":""},{"$f":"IF($B647=\"N\",\"\",IF(OR('Enrollment Form'!$AU654=\"\",'Enrollment Form'!$AU654=\"No\"),\"-\",IF(AND('Enrollment Form'!$AU654=\"Yes\",COUNTA('Enrollment Form'!$CK654)=1),\"Y\",\"N\")))","v":""},{"$f":"IF(OR('Enrollment Form'!$CK654=\"\",'Enrollment Form'!$CK654=\"No\"),\"-\",IF(COUNTA('Enrollment Form'!$CM654:$CN654)=2,\"Y\",\"N\"))","v":"-"},{"$f":"IF($B647=\"N\",\"\",IF(COUNTIF('Enrollment Form'!$CZ654:$DO654,\"Other\")=COUNTA('Enrollment Form'!$DF654,'Enrollment Form'!$DA654,'Enrollment Form'!$DK654,'Enrollment Form'!$DP654),\"Y\",\"N\"))","v":""},{"$f":"IF($B647=\"N\",\"\",IF(OR('Enrollment Form'!B654<>\"Subscriber\",'Enrollment Form'!C654=\"ROC\",COUNTIF('Enrollment Form'!AS654:AT654,\"Yes\")>=1),\"-\",IF(AND('Enrollment Form'!C654=\"Enroll\",COUNTIF('Enrollment Form'!AS654:AT654,\"No\")=2,'Enrollment Form'!AU654=\"\"),\"N\",\"Y\")))","v":""},{"$f":"IF(OR(B647=\"N\",'Enrollment Form'!B654<>\"Subscriber\",'Enrollment Form'!C654=\"ROC\",'Enrollment Form'!O654<>\"Multiple of Salary\"),\"-\",IF(COUNTA('Enrollment Form'!T654:U654)<2,\"N\",\"Y\"))","v":"-"},{"$f":"IF(B647=\"N\",\"\",IF(OR('Enrollment Form'!C654=\"ROC\",'Enrollment Form'!B654<>\"Subscriber\",'Enrollment Form'!O654=\"Waive\",'Enrollment Form'!O654=\"\"),\"-\",IF('Enrollment Form'!P654=\"\",\"N\",\"Y\")))","v":""},{"$f":"IF($B647=\"N\",\"\",IF(AND('Enrollment Form'!$C654=\"ROC\",'Enrollment Form'!$DS654<>\"\"),\"Y\",IF(AND('Enrollment Form'!$C654=\"ROC\",'Enrollment Form'!$DS654=\"\"),\"N\",IF(AND('Enrollment Form'!$C654=\"Enroll\",'Enrollment Form'!$B654=\"Subscriber\",'Enrollment Form'!$CQ654=\"No\",'Enrollment Form'!$DS654=\"\"),\"N\",IF(AND('Enrollment Form'!$C654=\"Enroll\",'Enrollment Form'!$B654=\"Subscriber\",'Enrollment Form'!$CQ654=\"Yes\"),\"-\",\"Y\")))))","v":""},{"$f":"IF($B647=\"N\",\"\",IF(AND('Enrollment Form'!$C654=\"ROC\",'Enrollment Form'!$DT654<>\"\"),\"Y\",IF(AND('Enrollment Form'!$C654=\"ROC\",'Enrollment Form'!$DT654=\"\"),\"N\",IF(AND('Enrollment Form'!$C654=\"Enroll\",'Enrollment Form'!$B654=\"Subscriber\",'Enrollment Form'!$CQ654=\"No\",'Enrollment Form'!$DT654=\"\"),\"N\",IF(AND('Enrollment Form'!$C654=\"Enroll\",'Enrollment Form'!$B654=\"Subscriber\",'Enrollment Form'!$CQ654=\"Yes\"),\"-\",\"Y\")))))","v":""},{"$f":"IF('Enrollment Form'!AH654=\"\",\"\",IF(ISERROR(SEARCH(\".\",'Enrollment Form'!AH654,SEARCH(\"@\",'Enrollment Form'!AH654))),\"N\",\"Y\"))","v":""},{"$f":"IF(OR($B647=\"N\",'Enrollment Form'!$G654=\"\"),\"\",IF('Enrollment Form'!$B654<>\"Subscriber\",\"-\",IF(COUNTIF('Enrollment Form'!$AS654:$AT654,\"Yes\")=2,\"N\",\"Y\")))","v":""},{"$f":"IF(OR('Enrollment Form'!$CC654=\"\",'Enrollment Form'!$CC654=\"No\"),\"-\",IF(AND('Enrollment Form'!$CC654=\"Yes\",'Enrollment Form'!$CD654=\"\"),\"N\",\"Y\"))","v":"-"},{"$f":"IF(OR('Enrollment Form'!$CE654=\"\",'Enrollment Form'!$CE654=\"No\"),\"-\",IF(AND('Enrollment Form'!$CE654=\"Yes\",'Enrollment Form'!$CF654=\"\"),\"N\",\"Y\"))","v":"-"},{"$f":"IF(OR('Enrollment Form'!$CG654=\"\",'Enrollment Form'!$CG654=\"No\"),\"-\",IF(AND('Enrollment Form'!$CG654=\"Yes\",'Enrollment Form'!$CH654=\"\"),\"N\",\"Y\"))","v":"-"},{"$f":"IF(OR('Enrollment Form'!$CG654=\"\",'Enrollment Form'!$CG654=\"No\"),\"-\",IF(AND('Enrollment Form'!$CG654=\"Yes\",'Enrollment Form'!$CI654=\"\"),\"N\",\"Y\"))","v":"-"},{"$f":"IF('Enrollment Form'!B654<>\"Subscriber\",\"-\",IF(AND('Enrollment Form'!B654=\"Subscriber\",'Enrollment Form'!C654=\"Enroll\",'Enrollment Form'!AA654=\"\"),\"N\",\"Y\"))","v":"-"},{"$f":"IF(OR('Enrollment Form'!B654=\"Subscriber\",'Enrollment Form'!B654=\"\"),\"-\",IF('Enrollment Form'!BI654=\"\",\"N\",\"Y\"))","v":"-"},{"$f":"IF('Enrollment Form'!B654<>\"Subscriber\",\"-\",IF(AND('Enrollment Form'!B654=\"Subscriber\",'Enrollment Form'!G654=\"\"),\"N\",\"Y\"))","v":"-"},{"$f":"IF('Enrollment Form'!A654=\"\",\"\",IF('Enrollment Form'!B654=\"Subscriber\",\"-\",IF(AND('Enrollment Form'!B654<>\"Subscriber\",'Enrollment Form'!G654='Enrollment Form'!H654),\"N\",\"Y\")))","v":""},0]
[655,{"$f":"IF('Enrollment Form'!$A655<>\"\",\"Y\",\"N\")","v":"N"},{"$f":"IF(AND('Enrollment Form'!$B655=\"\",'Enrollment Form'!$C655<>\"\"),\"N\",IF($B648=\"N\",\"\",\"Y\"))","v":""},{"$f":"IF(OR($B648=\"N\",'Enrollment Form'!G655=\"\"),\"\",IF('Enrollment Form'!$B655<>\"Subscriber\",\"\",IF('Enrollment Form'!$G655='Enrollment Form'!$H655,\"Y\",\"N\")))","v":""},{"$f":"IF($B648=\"N\",\"\",IF(AND(COUNTIFS('Enrollment Form'!$H$11:$H$1000,'Enrollment Form'!$H655,'Enrollment Form'!$B$11:$B$1000,'Enrollment Form'!$B655)>1,'Enrollment Form'!$H655<>\"\"),\"N\",\"Y\"))","v":""},{"$f":"IF($B648=\"N\",\"\",IF(LEN('Enrollment Form'!$Y655)=0,\"\",IF(LEN('Enrollment Form'!$Y655)<>5,\"N\",\"Y\")))","v":""},{"$f":"IF($B648=\"N\",\"\",IF(LEN('Enrollment Form'!$AD655=0),\"\",IF(LEN('Enrollment Form'!$AD655)<>5,\"N\",\"Y\")))","v":""},{"$f":"IF($B648=\"N\",\"\",IF(LEN('Enrollment Form'!$BL655=0),\"\",IF(LEN('Enrollment Form'!$BL655)<>5,\"N\",\"Y\")))","v":""},{"$f":"IF($B648=\"N\",\"\",IF(LEN('Enrollment Form'!$AE655)=0,\"\",IF(LEN('Enrollment Form'!$AE655)<>10,\"N\",\"Y\")))","v":""},{"$f":"IF($B648=\"N\",\"\",IF(LEN('Enrollment Form'!$AF655)=0,\"\",IF(LEN('Enrollment Form'!$AF655)<>10,\"N\",\"Y\")))","v":""},{"$f":"IF('Enrollment Form'!$O655<>\"Graded\",\"-\",IF(AND('Enrollment Form'!$O655=\"Graded\",'Enrollment Form'!$AO655<>\"\"),\"Y\",\"N\"))","v":"-"},{"$f":"IF($B648=\"N\",\"\",IF(OR('Enrollment Form'!$B655<>\"Subscriber\",'Enrollment Form'!$C655=\"ROC\"),\"-\",IF(AND('Enrollment Form'!$B655=\"Subscriber\",'Enrollment Form'!$C655=\"Enroll\",'Enrollment Form'!$AJ655<>\"\"),\"Y\",\"N\")))","v":""},{"$f":"IF($B648=\"N\",\"\",IF(OR('Enrollment Form'!$B655<>\"Subscriber\",'Enrollment Form'!$C655=\"ROC\"),\"-\",IF(AND('Enrollment Form'!$B655=\"Subscriber\",'Enrollment Form'!$C655=\"Enroll\",'Enrollment Form'!$AK655<>\"\"),\"Y\",\"N\")))","v":""},{"$f":"IF($B648=\"N\",\"\",IF(OR('Enrollment Form'!$B655<>\"Subscriber\",'Enrollment Form'!$C655=\"ROC\"),\"-\",IF(AND('Enrollment Form'!$B655=\"Subscriber\",'Enrollment Form'!$C655=\"Enroll\",'Enrollment Form'!$AL655<>\"\"),\"Y\",\"N\")))","v":""},{"$f":"IF($B648=\"N\",\"\",IF(OR('Enrollment Form'!$B655<>\"Subscriber\",'Enrollment Form'!$C655=\"ROC\"),\"-\",IF(AND('Enrollment Form'!$B655=\"Subscriber\",'Enrollment Form'!$C655=\"Enroll\",'Enrollment Form'!$AM655<>\"\"),\"Y\",\"N\")))","v":""},{"$f":"IF($B648=\"N\",\"\",IF(OR('Enrollment Form'!$B655<>\"Subscriber\",'Enrollment Form'!$C655=\"ROC\"),\"-\",IF(AND('Enrollment Form'!$B655=\"Subscriber\",'Enrollment Form'!$C655=\"Enroll\",'Enrollment Form'!$AN655<>\"\"),\"Y\",\"N\")))","v":""},{"$f":"IF($B648=\"N\",\"\",IF(OR('Enrollment Form'!$B655<>\"Subscriber\",'Enrollment Form'!$C655=\"ROC\"),\"-\",IF(AND('Enrollment Form'!$B655=\"Subscriber\",'Enrollment Form'!$C655=\"Enroll\",'Enrollment Form'!$AP655<>\"\"),\"Y\",\"N\")))","v":""},{"$f":"IF($B648=\"N\",\"\",IF($Q648=\"-\",\"-\",IF(AND($Q648=\"Y\",'Enrollment Form'!$AP655=\"No\"),\"-\",IF(AND($Q648=\"Y\",'Enrollment Form'!$AP655=\"Yes\",'Enrollment Form'!$AQ655<>\"\"),\"Y\",\"N\"))))","v":""},{"$f":"IF($B648=\"N\",\"\",IF(OR('Enrollment Form'!$B655<>\"Subscriber\",'Enrollment Form'!$C655=\"ROC\"),\"-\",IF(AND('Enrollment Form'!$B655=\"Subscriber\",'Enrollment Form'!$C655=\"Enroll\",'Enrollment Form'!$CO655<>\"\"),\"Y\",\"N\")))","v":""},{"$f":"IF($B648=\"N\",\"\",IF($S648=\"-\",\"-\",IF(AND($S648=\"Y\",'Enrollment Form'!$CO655=\"No\"),\"-\",IF(AND($S648=\"Y\",'Enrollment Form'!$CO655=\"Yes\",'Enrollment Form'!$CP655<>\"\"),\"Y\",\"N\"))))","v":""},{"$f":"IF(OR('Enrollment Form'!$AV655=\"Yes\",'Enrollment Form'!$AV655=\"\"),\"-\",IF(AND('Enrollment Form'!$AV655=\"No\",ISERROR(FIND(\"HMO\",VLOOKUP('Enrollment Form'!G655,'Enrollment Form'!H$11:J$1000,3,FALSE),1))=FALSE,COUNTA('Enrollment Form'!$AW655:$AZ655)=4),\"Y\",\"N\"))","v":"-"},{"$f":"IF($B648=\"N\",\"\",IF('Enrollment Form'!$B655=\"Subscriber\",\"-\",IF(COUNTA('Enrollment Form'!$BE655,'Enrollment Form'!$BG655)=2,\"Y\",\"N\")))","v":""},{"$f":"IF($B648=\"N\",\"\",IF(OR('Enrollment Form'!$AU655=\"\",'Enrollment Form'!$AU655=\"No\"),\"-\",IF(AND('Enrollment Form'!$AU655=\"Yes\",COUNTA('Enrollment Form'!$CK655)=1),\"Y\",\"N\")))","v":""},{"$f":"IF(OR('Enrollment Form'!$CK655=\"\",'Enrollment Form'!$CK655=\"No\"),\"-\",IF(COUNTA('Enrollment Form'!$CM655:$CN655)=2,\"Y\",\"N\"))","v":"-"},{"$f":"IF($B648=\"N\",\"\",IF(COUNTIF('Enrollment Form'!$CZ655:$DO655,\"Other\")=COUNTA('Enrollment Form'!$DF655,'Enrollment Form'!$DA655,'Enrollment Form'!$DK655,'Enrollment Form'!$DP655),\"Y\",\"N\"))","v":""},{"$f":"IF($B648=\"N\",\"\",IF(OR('Enrollment Form'!B655<>\"Subscriber\",'Enrollment Form'!C655=\"ROC\",COUNTIF('Enrollment Form'!AS655:AT655,\"Yes\")>=1),\"-\",IF(AND('Enrollment Form'!C655=\"Enroll\",COUNTIF('Enrollment Form'!AS655:AT655,\"No\")=2,'Enrollment Form'!AU655=\"\"),\"N\",\"Y\")))","v":""},{"$f":"IF(OR(B648=\"N\",'Enrollment Form'!B655<>\"Subscriber\",'Enrollment Form'!C655=\"ROC\",'Enrollment Form'!O655<>\"Multiple of Salary\"),\"-\",IF(COUNTA('Enrollment Form'!T655:U655)<2,\"N\",\"Y\"))","v":"-"},{"$f":"IF(B648=\"N\",\"\",IF(OR('Enrollment Form'!C655=\"ROC\",'Enrollment Form'!B655<>\"Subscriber\",'Enrollment Form'!O655=\"Waive\",'Enrollment Form'!O655=\"\"),\"-\",IF('Enrollment Form'!P655=\"\",\"N\",\"Y\")))","v":""},{"$f":"IF($B648=\"N\",\"\",IF(AND('Enrollment Form'!$C655=\"ROC\",'Enrollment Form'!$DS655<>\"\"),\"Y\",IF(AND('Enrollment Form'!$C655=\"ROC\",'Enrollment Form'!$DS655=\"\"),\"N\",IF(AND('Enrollment Form'!$C655=\"Enroll\",'Enrollment Form'!$B655=\"Subscriber\",'Enrollment Form'!$CQ655=\"No\",'Enrollment Form'!$DS655=\"\"),\"N\",IF(AND('Enrollment Form'!$C655=\"Enroll\",'Enrollment Form'!$B655=\"Subscriber\",'Enrollment Form'!$CQ655=\"Yes\"),\"-\",\"Y\")))))","v":""},{"$f":"IF($B648=\"N\",\"\",IF(AND('Enrollment Form'!$C655=\"ROC\",'Enrollment Form'!$DT655<>\"\"),\"Y\",IF(AND('Enrollment Form'!$C655=\"ROC\",'Enrollment Form'!$DT655=\"\"),\"N\",IF(AND('Enrollment Form'!$C655=\"Enroll\",'Enrollment Form'!$B655=\"Subscriber\",'Enrollment Form'!$CQ655=\"No\",'Enrollment Form'!$DT655=\"\"),\"N\",IF(AND('Enrollment Form'!$C655=\"Enroll\",'Enrollment Form'!$B655=\"Subscriber\",'Enrollment Form'!$CQ655=\"Yes\"),\"-\",\"Y\")))))","v":""},{"$f":"IF('Enrollment Form'!AH655=\"\",\"\",IF(ISERROR(SEARCH(\".\",'Enrollment Form'!AH655,SEARCH(\"@\",'Enrollment Form'!AH655))),\"N\",\"Y\"))","v":""},{"$f":"IF(OR($B648=\"N\",'Enrollment Form'!$G655=\"\"),\"\",IF('Enrollment Form'!$B655<>\"Subscriber\",\"-\",IF(COUNTIF('Enrollment Form'!$AS655:$AT655,\"Yes\")=2,\"N\",\"Y\")))","v":""},{"$f":"IF(OR('Enrollment Form'!$CC655=\"\",'Enrollment Form'!$CC655=\"No\"),\"-\",IF(AND('Enrollment Form'!$CC655=\"Yes\",'Enrollment Form'!$CD655=\"\"),\"N\",\"Y\"))","v":"-"},{"$f":"IF(OR('Enrollment Form'!$CE655=\"\",'Enrollment Form'!$CE655=\"No\"),\"-\",IF(AND('Enrollment Form'!$CE655=\"Yes\",'Enrollment Form'!$CF655=\"\"),\"N\",\"Y\"))","v":"-"},{"$f":"IF(OR('Enrollment Form'!$CG655=\"\",'Enrollment Form'!$CG655=\"No\"),\"-\",IF(AND('Enrollment Form'!$CG655=\"Yes\",'Enrollment Form'!$CH655=\"\"),\"N\",\"Y\"))","v":"-"},{"$f":"IF(OR('Enrollment Form'!$CG655=\"\",'Enrollment Form'!$CG655=\"No\"),\"-\",IF(AND('Enrollment Form'!$CG655=\"Yes\",'Enrollment Form'!$CI655=\"\"),\"N\",\"Y\"))","v":"-"},{"$f":"IF('Enrollment Form'!B655<>\"Subscriber\",\"-\",IF(AND('Enrollment Form'!B655=\"Subscriber\",'Enrollment Form'!C655=\"Enroll\",'Enrollment Form'!AA655=\"\"),\"N\",\"Y\"))","v":"-"},{"$f":"IF(OR('Enrollment Form'!B655=\"Subscriber\",'Enrollment Form'!B655=\"\"),\"-\",IF('Enrollment Form'!BI655=\"\",\"N\",\"Y\"))","v":"-"},{"$f":"IF('Enrollment Form'!B655<>\"Subscriber\",\"-\",IF(AND('Enrollment Form'!B655=\"Subscriber\",'Enrollment Form'!G655=\"\"),\"N\",\"Y\"))","v":"-"},{"$f":"IF('Enrollment Form'!A655=\"\",\"\",IF('Enrollment Form'!B655=\"Subscriber\",\"-\",IF(AND('Enrollment Form'!B655<>\"Subscriber\",'Enrollment Form'!G655='Enrollment Form'!H655),\"N\",\"Y\")))","v":""},0]
[656,{"$f":"IF('Enrollment Form'!$A656<>\"\",\"Y\",\"N\")","v":"N"},{"$f":"IF(AND('Enrollment Form'!$B656=\"\",'Enrollment Form'!$C656<>\"\"),\"N\",IF($B649=\"N\",\"\",\"Y\"))","v":""},{"$f":"IF(OR($B649=\"N\",'Enrollment Form'!G656=\"\"),\"\",IF('Enrollment Form'!$B656<>\"Subscriber\",\"\",IF('Enrollment Form'!$G656='Enrollment Form'!$H656,\"Y\",\"N\")))","v":""},{"$f":"IF($B649=\"N\",\"\",IF(AND(COUNTIFS('Enrollment Form'!$H$11:$H$1000,'Enrollment Form'!$H656,'Enrollment Form'!$B$11:$B$1000,'Enrollment Form'!$B656)>1,'Enrollment Form'!$H656<>\"\"),\"N\",\"Y\"))","v":""},{"$f":"IF($B649=\"N\",\"\",IF(LEN('Enrollment Form'!$Y656)=0,\"\",IF(LEN('Enrollment Form'!$Y656)<>5,\"N\",\"Y\")))","v":""},{"$f":"IF($B649=\"N\",\"\",IF(LEN('Enrollment Form'!$AD656=0),\"\",IF(LEN('Enrollment Form'!$AD656)<>5,\"N\",\"Y\")))","v":""},{"$f":"IF($B649=\"N\",\"\",IF(LEN('Enrollment Form'!$BL656=0),\"\",IF(LEN('Enrollment Form'!$BL656)<>5,\"N\",\"Y\")))","v":""},{"$f":"IF($B649=\"N\",\"\",IF(LEN('Enrollment Form'!$AE656)=0,\"\",IF(LEN('Enrollment Form'!$AE656)<>10,\"N\",\"Y\")))","v":""},{"$f":"IF($B649=\"N\",\"\",IF(LEN('Enrollment Form'!$AF656)=0,\"\",IF(LEN('Enrollment Form'!$AF656)<>10,\"N\",\"Y\")))","v":""},{"$f":"IF('Enrollment Form'!$O656<>\"Graded\",\"-\",IF(AND('Enrollment Form'!$O656=\"Graded\",'Enrollment Form'!$AO656<>\"\"),\"Y\",\"N\"))","v":"-"},{"$f":"IF($B649=\"N\",\"\",IF(OR('Enrollment Form'!$B656<>\"Subscriber\",'Enrollment Form'!$C656=\"ROC\"),\"-\",IF(AND('Enrollment Form'!$B656=\"Subscriber\",'Enrollment Form'!$C656=\"Enroll\",'Enrollment Form'!$AJ656<>\"\"),\"Y\",\"N\")))","v":""},{"$f":"IF($B649=\"N\",\"\",IF(OR('Enrollment Form'!$B656<>\"Subscriber\",'Enrollment Form'!$C656=\"ROC\"),\"-\",IF(AND('Enrollment Form'!$B656=\"Subscriber\",'Enrollment Form'!$C656=\"Enroll\",'Enrollment Form'!$AK656<>\"\"),\"Y\",\"N\")))","v":""},{"$f":"IF($B649=\"N\",\"\",IF(OR('Enrollment Form'!$B656<>\"Subscriber\",'Enrollment Form'!$C656=\"ROC\"),\"-\",IF(AND('Enrollment Form'!$B656=\"Subscriber\",'Enrollment Form'!$C656=\"Enroll\",'Enrollment Form'!$AL656<>\"\"),\"Y\",\"N\")))","v":""},{"$f":"IF($B649=\"N\",\"\",IF(OR('Enrollment Form'!$B656<>\"Subscriber\",'Enrollment Form'!$C656=\"ROC\"),\"-\",IF(AND('Enrollment Form'!$B656=\"Subscriber\",'Enrollment Form'!$C656=\"Enroll\",'Enrollment Form'!$AM656<>\"\"),\"Y\",\"N\")))","v":""},{"$f":"IF($B649=\"N\",\"\",IF(OR('Enrollment Form'!$B656<>\"Subscriber\",'Enrollment Form'!$C656=\"ROC\"),\"-\",IF(AND('Enrollment Form'!$B656=\"Subscriber\",'Enrollment Form'!$C656=\"Enroll\",'Enrollment Form'!$AN656<>\"\"),\"Y\",\"N\")))","v":""},{"$f":"IF($B649=\"N\",\"\",IF(OR('Enrollment Form'!$B656<>\"Subscriber\",'Enrollment Form'!$C656=\"ROC\"),\"-\",IF(AND('Enrollment Form'!$B656=\"Subscriber\",'Enrollment Form'!$C656=\"Enroll\",'Enrollment Form'!$AP656<>\"\"),\"Y\",\"N\")))","v":""},{"$f":"IF($B649=\"N\",\"\",IF($Q649=\"-\",\"-\",IF(AND($Q649=\"Y\",'Enrollment Form'!$AP656=\"No\"),\"-\",IF(AND($Q649=\"Y\",'Enrollment Form'!$AP656=\"Yes\",'Enrollment Form'!$AQ656<>\"\"),\"Y\",\"N\"))))","v":""},{"$f":"IF($B649=\"N\",\"\",IF(OR('Enrollment Form'!$B656<>\"Subscriber\",'Enrollment Form'!$C656=\"ROC\"),\"-\",IF(AND('Enrollment Form'!$B656=\"Subscriber\",'Enrollment Form'!$C656=\"Enroll\",'Enrollment Form'!$CO656<>\"\"),\"Y\",\"N\")))","v":""},{"$f":"IF($B649=\"N\",\"\",IF($S649=\"-\",\"-\",IF(AND($S649=\"Y\",'Enrollment Form'!$CO656=\"No\"),\"-\",IF(AND($S649=\"Y\",'Enrollment Form'!$CO656=\"Yes\",'Enrollment Form'!$CP656<>\"\"),\"Y\",\"N\"))))","v":""},{"$f":"IF(OR('Enrollment Form'!$AV656=\"Yes\",'Enrollment Form'!$AV656=\"\"),\"-\",IF(AND('Enrollment Form'!$AV656=\"No\",ISERROR(FIND(\"HMO\",VLOOKUP('Enrollment Form'!G656,'Enrollment Form'!H$11:J$1000,3,FALSE),1))=FALSE,COUNTA('Enrollment Form'!$AW656:$AZ656)=4),\"Y\",\"N\"))","v":"-"},{"$f":"IF($B649=\"N\",\"\",IF('Enrollment Form'!$B656=\"Subscriber\",\"-\",IF(COUNTA('Enrollment Form'!$BE656,'Enrollment Form'!$BG656)=2,\"Y\",\"N\")))","v":""},{"$f":"IF($B649=\"N\",\"\",IF(OR('Enrollment Form'!$AU656=\"\",'Enrollment Form'!$AU656=\"No\"),\"-\",IF(AND('Enrollment Form'!$AU656=\"Yes\",COUNTA('Enrollment Form'!$CK656)=1),\"Y\",\"N\")))","v":""},{"$f":"IF(OR('Enrollment Form'!$CK656=\"\",'Enrollment Form'!$CK656=\"No\"),\"-\",IF(COUNTA('Enrollment Form'!$CM656:$CN656)=2,\"Y\",\"N\"))","v":"-"},{"$f":"IF($B649=\"N\",\"\",IF(COUNTIF('Enrollment Form'!$CZ656:$DO656,\"Other\")=COUNTA('Enrollment Form'!$DF656,'Enrollment Form'!$DA656,'Enrollment Form'!$DK656,'Enrollment Form'!$DP656),\"Y\",\"N\"))","v":""},{"$f":"IF($B649=\"N\",\"\",IF(OR('Enrollment Form'!B656<>\"Subscriber\",'Enrollment Form'!C656=\"ROC\",COUNTIF('Enrollment Form'!AS656:AT656,\"Yes\")>=1),\"-\",IF(AND('Enrollment Form'!C656=\"Enroll\",COUNTIF('Enrollment Form'!AS656:AT656,\"No\")=2,'Enrollment Form'!AU656=\"\"),\"N\",\"Y\")))","v":""},{"$f":"IF(OR(B649=\"N\",'Enrollment Form'!B656<>\"Subscriber\",'Enrollment Form'!C656=\"ROC\",'Enrollment Form'!O656<>\"Multiple of Salary\"),\"-\",IF(COUNTA('Enrollment Form'!T656:U656)<2,\"N\",\"Y\"))","v":"-"},{"$f":"IF(B649=\"N\",\"\",IF(OR('Enrollment Form'!C656=\"ROC\",'Enrollment Form'!B656<>\"Subscriber\",'Enrollment Form'!O656=\"Waive\",'Enrollment Form'!O656=\"\"),\"-\",IF('Enrollment Form'!P656=\"\",\"N\",\"Y\")))","v":""},{"$f":"IF($B649=\"N\",\"\",IF(AND('Enrollment Form'!$C656=\"ROC\",'Enrollment Form'!$DS656<>\"\"),\"Y\",IF(AND('Enrollment Form'!$C656=\"ROC\",'Enrollment Form'!$DS656=\"\"),\"N\",IF(AND('Enrollment Form'!$C656=\"Enroll\",'Enrollment Form'!$B656=\"Subscriber\",'Enrollment Form'!$CQ656=\"No\",'Enrollment Form'!$DS656=\"\"),\"N\",IF(AND('Enrollment Form'!$C656=\"Enroll\",'Enrollment Form'!$B656=\"Subscriber\",'Enrollment Form'!$CQ656=\"Yes\"),\"-\",\"Y\")))))","v":""},{"$f":"IF($B649=\"N\",\"\",IF(AND('Enrollment Form'!$C656=\"ROC\",'Enrollment Form'!$DT656<>\"\"),\"Y\",IF(AND('Enrollment Form'!$C656=\"ROC\",'Enrollment Form'!$DT656=\"\"),\"N\",IF(AND('Enrollment Form'!$C656=\"Enroll\",'Enrollment Form'!$B656=\"Subscriber\",'Enrollment Form'!$CQ656=\"No\",'Enrollment Form'!$DT656=\"\"),\"N\",IF(AND('Enrollment Form'!$C656=\"Enroll\",'Enrollment Form'!$B656=\"Subscriber\",'Enrollment Form'!$CQ656=\"Yes\"),\"-\",\"Y\")))))","v":""},{"$f":"IF('Enrollment Form'!AH656=\"\",\"\",IF(ISERROR(SEARCH(\".\",'Enrollment Form'!AH656,SEARCH(\"@\",'Enrollment Form'!AH656))),\"N\",\"Y\"))","v":""},{"$f":"IF(OR($B649=\"N\",'Enrollment Form'!$G656=\"\"),\"\",IF('Enrollment Form'!$B656<>\"Subscriber\",\"-\",IF(COUNTIF('Enrollment Form'!$AS656:$AT656,\"Yes\")=2,\"N\",\"Y\")))","v":""},{"$f":"IF(OR('Enrollment Form'!$CC656=\"\",'Enrollment Form'!$CC656=\"No\"),\"-\",IF(AND('Enrollment Form'!$CC656=\"Yes\",'Enrollment Form'!$CD656=\"\"),\"N\",\"Y\"))","v":"-"},{"$f":"IF(OR('Enrollment Form'!$CE656=\"\",'Enrollment Form'!$CE656=\"No\"),\"-\",IF(AND('Enrollment Form'!$CE656=\"Yes\",'Enrollment Form'!$CF656=\"\"),\"N\",\"Y\"))","v":"-"},{"$f":"IF(OR('Enrollment Form'!$CG656=\"\",'Enrollment Form'!$CG656=\"No\"),\"-\",IF(AND('Enrollment Form'!$CG656=\"Yes\",'Enrollment Form'!$CH656=\"\"),\"N\",\"Y\"))","v":"-"},{"$f":"IF(OR('Enrollment Form'!$CG656=\"\",'Enrollment Form'!$CG656=\"No\"),\"-\",IF(AND('Enrollment Form'!$CG656=\"Yes\",'Enrollment Form'!$CI656=\"\"),\"N\",\"Y\"))","v":"-"},{"$f":"IF('Enrollment Form'!B656<>\"Subscriber\",\"-\",IF(AND('Enrollment Form'!B656=\"Subscriber\",'Enrollment Form'!C656=\"Enroll\",'Enrollment Form'!AA656=\"\"),\"N\",\"Y\"))","v":"-"},{"$f":"IF(OR('Enrollment Form'!B656=\"Subscriber\",'Enrollment Form'!B656=\"\"),\"-\",IF('Enrollment Form'!BI656=\"\",\"N\",\"Y\"))","v":"-"},{"$f":"IF('Enrollment Form'!B656<>\"Subscriber\",\"-\",IF(AND('Enrollment Form'!B656=\"Subscriber\",'Enrollment Form'!G656=\"\"),\"N\",\"Y\"))","v":"-"},{"$f":"IF('Enrollment Form'!A656=\"\",\"\",IF('Enrollment Form'!B656=\"Subscriber\",\"-\",IF(AND('Enrollment Form'!B656<>\"Subscriber\",'Enrollment Form'!G656='Enrollment Form'!H656),\"N\",\"Y\")))","v":""},0]
[657,{"$f":"IF('Enrollment Form'!$A657<>\"\",\"Y\",\"N\")","v":"N"},{"$f":"IF(AND('Enrollment Form'!$B657=\"\",'Enrollment Form'!$C657<>\"\"),\"N\",IF($B650=\"N\",\"\",\"Y\"))","v":""},{"$f":"IF(OR($B650=\"N\",'Enrollment Form'!G657=\"\"),\"\",IF('Enrollment Form'!$B657<>\"Subscriber\",\"\",IF('Enrollment Form'!$G657='Enrollment Form'!$H657,\"Y\",\"N\")))","v":""},{"$f":"IF($B650=\"N\",\"\",IF(AND(COUNTIFS('Enrollment Form'!$H$11:$H$1000,'Enrollment Form'!$H657,'Enrollment Form'!$B$11:$B$1000,'Enrollment Form'!$B657)>1,'Enrollment Form'!$H657<>\"\"),\"N\",\"Y\"))","v":""},{"$f":"IF($B650=\"N\",\"\",IF(LEN('Enrollment Form'!$Y657)=0,\"\",IF(LEN('Enrollment Form'!$Y657)<>5,\"N\",\"Y\")))","v":""},{"$f":"IF($B650=\"N\",\"\",IF(LEN('Enrollment Form'!$AD657=0),\"\",IF(LEN('Enrollment Form'!$AD657)<>5,\"N\",\"Y\")))","v":""},{"$f":"IF($B650=\"N\",\"\",IF(LEN('Enrollment Form'!$BL657=0),\"\",IF(LEN('Enrollment Form'!$BL657)<>5,\"N\",\"Y\")))","v":""},{"$f":"IF($B650=\"N\",\"\",IF(LEN('Enrollment Form'!$AE657)=0,\"\",IF(LEN('Enrollment Form'!$AE657)<>10,\"N\",\"Y\")))","v":""},{"$f":"IF($B650=\"N\",\"\",IF(LEN('Enrollment Form'!$AF657)=0,\"\",IF(LEN('Enrollment Form'!$AF657)<>10,\"N\",\"Y\")))","v":""},{"$f":"IF('Enrollment Form'!$O657<>\"Graded\",\"-\",IF(AND('Enrollment Form'!$O657=\"Graded\",'Enrollment Form'!$AO657<>\"\"),\"Y\",\"N\"))","v":"-"},{"$f":"IF($B650=\"N\",\"\",IF(OR('Enrollment Form'!$B657<>\"Subscriber\",'Enrollment Form'!$C657=\"ROC\"),\"-\",IF(AND('Enrollment Form'!$B657=\"Subscriber\",'Enrollment Form'!$C657=\"Enroll\",'Enrollment Form'!$AJ657<>\"\"),\"Y\",\"N\")))","v":""},{"$f":"IF($B650=\"N\",\"\",IF(OR('Enrollment Form'!$B657<>\"Subscriber\",'Enrollment Form'!$C657=\"ROC\"),\"-\",IF(AND('Enrollment Form'!$B657=\"Subscriber\",'Enrollment Form'!$C657=\"Enroll\",'Enrollment Form'!$AK657<>\"\"),\"Y\",\"N\")))","v":""},{"$f":"IF($B650=\"N\",\"\",IF(OR('Enrollment Form'!$B657<>\"Subscriber\",'Enrollment Form'!$C657=\"ROC\"),\"-\",IF(AND('Enrollment Form'!$B657=\"Subscriber\",'Enrollment Form'!$C657=\"Enroll\",'Enrollment Form'!$AL657<>\"\"),\"Y\",\"N\")))","v":""},{"$f":"IF($B650=\"N\",\"\",IF(OR('Enrollment Form'!$B657<>\"Subscriber\",'Enrollment Form'!$C657=\"ROC\"),\"-\",IF(AND('Enrollment Form'!$B657=\"Subscriber\",'Enrollment Form'!$C657=\"Enroll\",'Enrollment Form'!$AM657<>\"\"),\"Y\",\"N\")))","v":""},{"$f":"IF($B650=\"N\",\"\",IF(OR('Enrollment Form'!$B657<>\"Subscriber\",'Enrollment Form'!$C657=\"ROC\"),\"-\",IF(AND('Enrollment Form'!$B657=\"Subscriber\",'Enrollment Form'!$C657=\"Enroll\",'Enrollment Form'!$AN657<>\"\"),\"Y\",\"N\")))","v":""},{"$f":"IF($B650=\"N\",\"\",IF(OR('Enrollment Form'!$B657<>\"Subscriber\",'Enrollment Form'!$C657=\"ROC\"),\"-\",IF(AND('Enrollment Form'!$B657=\"Subscriber\",'Enrollment Form'!$C657=\"Enroll\",'Enrollment Form'!$AP657<>\"\"),\"Y\",\"N\")))","v":""},{"$f":"IF($B650=\"N\",\"\",IF($Q650=\"-\",\"-\",IF(AND($Q650=\"Y\",'Enrollment Form'!$AP657=\"No\"),\"-\",IF(AND($Q650=\"Y\",'Enrollment Form'!$AP657=\"Yes\",'Enrollment Form'!$AQ657<>\"\"),\"Y\",\"N\"))))","v":""},{"$f":"IF($B650=\"N\",\"\",IF(OR('Enrollment Form'!$B657<>\"Subscriber\",'Enrollment Form'!$C657=\"ROC\"),\"-\",IF(AND('Enrollment Form'!$B657=\"Subscriber\",'Enrollment Form'!$C657=\"Enroll\",'Enrollment Form'!$CO657<>\"\"),\"Y\",\"N\")))","v":""},{"$f":"IF($B650=\"N\",\"\",IF($S650=\"-\",\"-\",IF(AND($S650=\"Y\",'Enrollment Form'!$CO657=\"No\"),\"-\",IF(AND($S650=\"Y\",'Enrollment Form'!$CO657=\"Yes\",'Enrollment Form'!$CP657<>\"\"),\"Y\",\"N\"))))","v":""},{"$f":"IF(OR('Enrollment Form'!$AV657=\"Yes\",'Enrollment Form'!$AV657=\"\"),\"-\",IF(AND('Enrollment Form'!$AV657=\"No\",ISERROR(FIND(\"HMO\",VLOOKUP('Enrollment Form'!G657,'Enrollment Form'!H$11:J$1000,3,FALSE),1))=FALSE,COUNTA('Enrollment Form'!$AW657:$AZ657)=4),\"Y\",\"N\"))","v":"-"},{"$f":"IF($B650=\"N\",\"\",IF('Enrollment Form'!$B657=\"Subscriber\",\"-\",IF(COUNTA('Enrollment Form'!$BE657,'Enrollment Form'!$BG657)=2,\"Y\",\"N\")))","v":""},{"$f":"IF($B650=\"N\",\"\",IF(OR('Enrollment Form'!$AU657=\"\",'Enrollment Form'!$AU657=\"No\"),\"-\",IF(AND('Enrollment Form'!$AU657=\"Yes\",COUNTA('Enrollment Form'!$CK657)=1),\"Y\",\"N\")))","v":""},{"$f":"IF(OR('Enrollment Form'!$CK657=\"\",'Enrollment Form'!$CK657=\"No\"),\"-\",IF(COUNTA('Enrollment Form'!$CM657:$CN657)=2,\"Y\",\"N\"))","v":"-"},{"$f":"IF($B650=\"N\",\"\",IF(COUNTIF('Enrollment Form'!$CZ657:$DO657,\"Other\")=COUNTA('Enrollment Form'!$DF657,'Enrollment Form'!$DA657,'Enrollment Form'!$DK657,'Enrollment Form'!$DP657),\"Y\",\"N\"))","v":""},{"$f":"IF($B650=\"N\",\"\",IF(OR('Enrollment Form'!B657<>\"Subscriber\",'Enrollment Form'!C657=\"ROC\",COUNTIF('Enrollment Form'!AS657:AT657,\"Yes\")>=1),\"-\",IF(AND('Enrollment Form'!C657=\"Enroll\",COUNTIF('Enrollment Form'!AS657:AT657,\"No\")=2,'Enrollment Form'!AU657=\"\"),\"N\",\"Y\")))","v":""},{"$f":"IF(OR(B650=\"N\",'Enrollment Form'!B657<>\"Subscriber\",'Enrollment Form'!C657=\"ROC\",'Enrollment Form'!O657<>\"Multiple of Salary\"),\"-\",IF(COUNTA('Enrollment Form'!T657:U657)<2,\"N\",\"Y\"))","v":"-"},{"$f":"IF(B650=\"N\",\"\",IF(OR('Enrollment Form'!C657=\"ROC\",'Enrollment Form'!B657<>\"Subscriber\",'Enrollment Form'!O657=\"Waive\",'Enrollment Form'!O657=\"\"),\"-\",IF('Enrollment Form'!P657=\"\",\"N\",\"Y\")))","v":""},{"$f":"IF($B650=\"N\",\"\",IF(AND('Enrollment Form'!$C657=\"ROC\",'Enrollment Form'!$DS657<>\"\"),\"Y\",IF(AND('Enrollment Form'!$C657=\"ROC\",'Enrollment Form'!$DS657=\"\"),\"N\",IF(AND('Enrollment Form'!$C657=\"Enroll\",'Enrollment Form'!$B657=\"Subscriber\",'Enrollment Form'!$CQ657=\"No\",'Enrollment Form'!$DS657=\"\"),\"N\",IF(AND('Enrollment Form'!$C657=\"Enroll\",'Enrollment Form'!$B657=\"Subscriber\",'Enrollment Form'!$CQ657=\"Yes\"),\"-\",\"Y\")))))","v":""},{"$f":"IF($B650=\"N\",\"\",IF(AND('Enrollment Form'!$C657=\"ROC\",'Enrollment Form'!$DT657<>\"\"),\"Y\",IF(AND('Enrollment Form'!$C657=\"ROC\",'Enrollment Form'!$DT657=\"\"),\"N\",IF(AND('Enrollment Form'!$C657=\"Enroll\",'Enrollment Form'!$B657=\"Subscriber\",'Enrollment Form'!$CQ657=\"No\",'Enrollment Form'!$DT657=\"\"),\"N\",IF(AND('Enrollment Form'!$C657=\"Enroll\",'Enrollment Form'!$B657=\"Subscriber\",'Enrollment Form'!$CQ657=\"Yes\"),\"-\",\"Y\")))))","v":""},{"$f":"IF('Enrollment Form'!AH657=\"\",\"\",IF(ISERROR(SEARCH(\".\",'Enrollment Form'!AH657,SEARCH(\"@\",'Enrollment Form'!AH657))),\"N\",\"Y\"))","v":""},{"$f":"IF(OR($B650=\"N\",'Enrollment Form'!$G657=\"\"),\"\",IF('Enrollment Form'!$B657<>\"Subscriber\",\"-\",IF(COUNTIF('Enrollment Form'!$AS657:$AT657,\"Yes\")=2,\"N\",\"Y\")))","v":""},{"$f":"IF(OR('Enrollment Form'!$CC657=\"\",'Enrollment Form'!$CC657=\"No\"),\"-\",IF(AND('Enrollment Form'!$CC657=\"Yes\",'Enrollment Form'!$CD657=\"\"),\"N\",\"Y\"))","v":"-"},{"$f":"IF(OR('Enrollment Form'!$CE657=\"\",'Enrollment Form'!$CE657=\"No\"),\"-\",IF(AND('Enrollment Form'!$CE657=\"Yes\",'Enrollment Form'!$CF657=\"\"),\"N\",\"Y\"))","v":"-"},{"$f":"IF(OR('Enrollment Form'!$CG657=\"\",'Enrollment Form'!$CG657=\"No\"),\"-\",IF(AND('Enrollment Form'!$CG657=\"Yes\",'Enrollment Form'!$CH657=\"\"),\"N\",\"Y\"))","v":"-"},{"$f":"IF(OR('Enrollment Form'!$CG657=\"\",'Enrollment Form'!$CG657=\"No\"),\"-\",IF(AND('Enrollment Form'!$CG657=\"Yes\",'Enrollment Form'!$CI657=\"\"),\"N\",\"Y\"))","v":"-"},{"$f":"IF('Enrollment Form'!B657<>\"Subscriber\",\"-\",IF(AND('Enrollment Form'!B657=\"Subscriber\",'Enrollment Form'!C657=\"Enroll\",'Enrollment Form'!AA657=\"\"),\"N\",\"Y\"))","v":"-"},{"$f":"IF(OR('Enrollment Form'!B657=\"Subscriber\",'Enrollment Form'!B657=\"\"),\"-\",IF('Enrollment Form'!BI657=\"\",\"N\",\"Y\"))","v":"-"},{"$f":"IF('Enrollment Form'!B657<>\"Subscriber\",\"-\",IF(AND('Enrollment Form'!B657=\"Subscriber\",'Enrollment Form'!G657=\"\"),\"N\",\"Y\"))","v":"-"},{"$f":"IF('Enrollment Form'!A657=\"\",\"\",IF('Enrollment Form'!B657=\"Subscriber\",\"-\",IF(AND('Enrollment Form'!B657<>\"Subscriber\",'Enrollment Form'!G657='Enrollment Form'!H657),\"N\",\"Y\")))","v":""},0]
[658,{"$f":"IF('Enrollment Form'!$A658<>\"\",\"Y\",\"N\")","v":"N"},{"$f":"IF(AND('Enrollment Form'!$B658=\"\",'Enrollment Form'!$C658<>\"\"),\"N\",IF($B651=\"N\",\"\",\"Y\"))","v":""},{"$f":"IF(OR($B651=\"N\",'Enrollment Form'!G658=\"\"),\"\",IF('Enrollment Form'!$B658<>\"Subscriber\",\"\",IF('Enrollment Form'!$G658='Enrollment Form'!$H658,\"Y\",\"N\")))","v":""},{"$f":"IF($B651=\"N\",\"\",IF(AND(COUNTIFS('Enrollment Form'!$H$11:$H$1000,'Enrollment Form'!$H658,'Enrollment Form'!$B$11:$B$1000,'Enrollment Form'!$B658)>1,'Enrollment Form'!$H658<>\"\"),\"N\",\"Y\"))","v":""},{"$f":"IF($B651=\"N\",\"\",IF(LEN('Enrollment Form'!$Y658)=0,\"\",IF(LEN('Enrollment Form'!$Y658)<>5,\"N\",\"Y\")))","v":""},{"$f":"IF($B651=\"N\",\"\",IF(LEN('Enrollment Form'!$AD658=0),\"\",IF(LEN('Enrollment Form'!$AD658)<>5,\"N\",\"Y\")))","v":""},{"$f":"IF($B651=\"N\",\"\",IF(LEN('Enrollment Form'!$BL658=0),\"\",IF(LEN('Enrollment Form'!$BL658)<>5,\"N\",\"Y\")))","v":""},{"$f":"IF($B651=\"N\",\"\",IF(LEN('Enrollment Form'!$AE658)=0,\"\",IF(LEN('Enrollment Form'!$AE658)<>10,\"N\",\"Y\")))","v":""},{"$f":"IF($B651=\"N\",\"\",IF(LEN('Enrollment Form'!$AF658)=0,\"\",IF(LEN('Enrollment Form'!$AF658)<>10,\"N\",\"Y\")))","v":""},{"$f":"IF('Enrollment Form'!$O658<>\"Graded\",\"-\",IF(AND('Enrollment Form'!$O658=\"Graded\",'Enrollment Form'!$AO658<>\"\"),\"Y\",\"N\"))","v":"-"},{"$f":"IF($B651=\"N\",\"\",IF(OR('Enrollment Form'!$B658<>\"Subscriber\",'Enrollment Form'!$C658=\"ROC\"),\"-\",IF(AND('Enrollment Form'!$B658=\"Subscriber\",'Enrollment Form'!$C658=\"Enroll\",'Enrollment Form'!$AJ658<>\"\"),\"Y\",\"N\")))","v":""},{"$f":"IF($B651=\"N\",\"\",IF(OR('Enrollment Form'!$B658<>\"Subscriber\",'Enrollment Form'!$C658=\"ROC\"),\"-\",IF(AND('Enrollment Form'!$B658=\"Subscriber\",'Enrollment Form'!$C658=\"Enroll\",'Enrollment Form'!$AK658<>\"\"),\"Y\",\"N\")))","v":""},{"$f":"IF($B651=\"N\",\"\",IF(OR('Enrollment Form'!$B658<>\"Subscriber\",'Enrollment Form'!$C658=\"ROC\"),\"-\",IF(AND('Enrollment Form'!$B658=\"Subscriber\",'Enrollment Form'!$C658=\"Enroll\",'Enrollment Form'!$AL658<>\"\"),\"Y\",\"N\")))","v":""},{"$f":"IF($B651=\"N\",\"\",IF(OR('Enrollment Form'!$B658<>\"Subscriber\",'Enrollment Form'!$C658=\"ROC\"),\"-\",IF(AND('Enrollment Form'!$B658=\"Subscriber\",'Enrollment Form'!$C658=\"Enroll\",'Enrollment Form'!$AM658<>\"\"),\"Y\",\"N\")))","v":""},{"$f":"IF($B651=\"N\",\"\",IF(OR('Enrollment Form'!$B658<>\"Subscriber\",'Enrollment Form'!$C658=\"ROC\"),\"-\",IF(AND('Enrollment Form'!$B658=\"Subscriber\",'Enrollment Form'!$C658=\"Enroll\",'Enrollment Form'!$AN658<>\"\"),\"Y\",\"N\")))","v":""},{"$f":"IF($B651=\"N\",\"\",IF(OR('Enrollment Form'!$B658<>\"Subscriber\",'Enrollment Form'!$C658=\"ROC\"),\"-\",IF(AND('Enrollment Form'!$B658=\"Subscriber\",'Enrollment Form'!$C658=\"Enroll\",'Enrollment Form'!$AP658<>\"\"),\"Y\",\"N\")))","v":""},{"$f":"IF($B651=\"N\",\"\",IF($Q651=\"-\",\"-\",IF(AND($Q651=\"Y\",'Enrollment Form'!$AP658=\"No\"),\"-\",IF(AND($Q651=\"Y\",'Enrollment Form'!$AP658=\"Yes\",'Enrollment Form'!$AQ658<>\"\"),\"Y\",\"N\"))))","v":""},{"$f":"IF($B651=\"N\",\"\",IF(OR('Enrollment Form'!$B658<>\"Subscriber\",'Enrollment Form'!$C658=\"ROC\"),\"-\",IF(AND('Enrollment Form'!$B658=\"Subscriber\",'Enrollment Form'!$C658=\"Enroll\",'Enrollment Form'!$CO658<>\"\"),\"Y\",\"N\")))","v":""},{"$f":"IF($B651=\"N\",\"\",IF($S651=\"-\",\"-\",IF(AND($S651=\"Y\",'Enrollment Form'!$CO658=\"No\"),\"-\",IF(AND($S651=\"Y\",'Enrollment Form'!$CO658=\"Yes\",'Enrollment Form'!$CP658<>\"\"),\"Y\",\"N\"))))","v":""},{"$f":"IF(OR('Enrollment Form'!$AV658=\"Yes\",'Enrollment Form'!$AV658=\"\"),\"-\",IF(AND('Enrollment Form'!$AV658=\"No\",ISERROR(FIND(\"HMO\",VLOOKUP('Enrollment Form'!G658,'Enrollment Form'!H$11:J$1000,3,FALSE),1))=FALSE,COUNTA('Enrollment Form'!$AW658:$AZ658)=4),\"Y\",\"N\"))","v":"-"},{"$f":"IF($B651=\"N\",\"\",IF('Enrollment Form'!$B658=\"Subscriber\",\"-\",IF(COUNTA('Enrollment Form'!$BE658,'Enrollment Form'!$BG658)=2,\"Y\",\"N\")))","v":""},{"$f":"IF($B651=\"N\",\"\",IF(OR('Enrollment Form'!$AU658=\"\",'Enrollment Form'!$AU658=\"No\"),\"-\",IF(AND('Enrollment Form'!$AU658=\"Yes\",COUNTA('Enrollment Form'!$CK658)=1),\"Y\",\"N\")))","v":""},{"$f":"IF(OR('Enrollment Form'!$CK658=\"\",'Enrollment Form'!$CK658=\"No\"),\"-\",IF(COUNTA('Enrollment Form'!$CM658:$CN658)=2,\"Y\",\"N\"))","v":"-"},{"$f":"IF($B651=\"N\",\"\",IF(COUNTIF('Enrollment Form'!$CZ658:$DO658,\"Other\")=COUNTA('Enrollment Form'!$DF658,'Enrollment Form'!$DA658,'Enrollment Form'!$DK658,'Enrollment Form'!$DP658),\"Y\",\"N\"))","v":""},{"$f":"IF($B651=\"N\",\"\",IF(OR('Enrollment Form'!B658<>\"Subscriber\",'Enrollment Form'!C658=\"ROC\",COUNTIF('Enrollment Form'!AS658:AT658,\"Yes\")>=1),\"-\",IF(AND('Enrollment Form'!C658=\"Enroll\",COUNTIF('Enrollment Form'!AS658:AT658,\"No\")=2,'Enrollment Form'!AU658=\"\"),\"N\",\"Y\")))","v":""},{"$f":"IF(OR(B651=\"N\",'Enrollment Form'!B658<>\"Subscriber\",'Enrollment Form'!C658=\"ROC\",'Enrollment Form'!O658<>\"Multiple of Salary\"),\"-\",IF(COUNTA('Enrollment Form'!T658:U658)<2,\"N\",\"Y\"))","v":"-"},{"$f":"IF(B651=\"N\",\"\",IF(OR('Enrollment Form'!C658=\"ROC\",'Enrollment Form'!B658<>\"Subscriber\",'Enrollment Form'!O658=\"Waive\",'Enrollment Form'!O658=\"\"),\"-\",IF('Enrollment Form'!P658=\"\",\"N\",\"Y\")))","v":""},{"$f":"IF($B651=\"N\",\"\",IF(AND('Enrollment Form'!$C658=\"ROC\",'Enrollment Form'!$DS658<>\"\"),\"Y\",IF(AND('Enrollment Form'!$C658=\"ROC\",'Enrollment Form'!$DS658=\"\"),\"N\",IF(AND('Enrollment Form'!$C658=\"Enroll\",'Enrollment Form'!$B658=\"Subscriber\",'Enrollment Form'!$CQ658=\"No\",'Enrollment Form'!$DS658=\"\"),\"N\",IF(AND('Enrollment Form'!$C658=\"Enroll\",'Enrollment Form'!$B658=\"Subscriber\",'Enrollment Form'!$CQ658=\"Yes\"),\"-\",\"Y\")))))","v":""},{"$f":"IF($B651=\"N\",\"\",IF(AND('Enrollment Form'!$C658=\"ROC\",'Enrollment Form'!$DT658<>\"\"),\"Y\",IF(AND('Enrollment Form'!$C658=\"ROC\",'Enrollment Form'!$DT658=\"\"),\"N\",IF(AND('Enrollment Form'!$C658=\"Enroll\",'Enrollment Form'!$B658=\"Subscriber\",'Enrollment Form'!$CQ658=\"No\",'Enrollment Form'!$DT658=\"\"),\"N\",IF(AND('Enrollment Form'!$C658=\"Enroll\",'Enrollment Form'!$B658=\"Subscriber\",'Enrollment Form'!$CQ658=\"Yes\"),\"-\",\"Y\")))))","v":""},{"$f":"IF('Enrollment Form'!AH658=\"\",\"\",IF(ISERROR(SEARCH(\".\",'Enrollment Form'!AH658,SEARCH(\"@\",'Enrollment Form'!AH658))),\"N\",\"Y\"))","v":""},{"$f":"IF(OR($B651=\"N\",'Enrollment Form'!$G658=\"\"),\"\",IF('Enrollment Form'!$B658<>\"Subscriber\",\"-\",IF(COUNTIF('Enrollment Form'!$AS658:$AT658,\"Yes\")=2,\"N\",\"Y\")))","v":""},{"$f":"IF(OR('Enrollment Form'!$CC658=\"\",'Enrollment Form'!$CC658=\"No\"),\"-\",IF(AND('Enrollment Form'!$CC658=\"Yes\",'Enrollment Form'!$CD658=\"\"),\"N\",\"Y\"))","v":"-"},{"$f":"IF(OR('Enrollment Form'!$CE658=\"\",'Enrollment Form'!$CE658=\"No\"),\"-\",IF(AND('Enrollment Form'!$CE658=\"Yes\",'Enrollment Form'!$CF658=\"\"),\"N\",\"Y\"))","v":"-"},{"$f":"IF(OR('Enrollment Form'!$CG658=\"\",'Enrollment Form'!$CG658=\"No\"),\"-\",IF(AND('Enrollment Form'!$CG658=\"Yes\",'Enrollment Form'!$CH658=\"\"),\"N\",\"Y\"))","v":"-"},{"$f":"IF(OR('Enrollment Form'!$CG658=\"\",'Enrollment Form'!$CG658=\"No\"),\"-\",IF(AND('Enrollment Form'!$CG658=\"Yes\",'Enrollment Form'!$CI658=\"\"),\"N\",\"Y\"))","v":"-"},{"$f":"IF('Enrollment Form'!B658<>\"Subscriber\",\"-\",IF(AND('Enrollment Form'!B658=\"Subscriber\",'Enrollment Form'!C658=\"Enroll\",'Enrollment Form'!AA658=\"\"),\"N\",\"Y\"))","v":"-"},{"$f":"IF(OR('Enrollment Form'!B658=\"Subscriber\",'Enrollment Form'!B658=\"\"),\"-\",IF('Enrollment Form'!BI658=\"\",\"N\",\"Y\"))","v":"-"},{"$f":"IF('Enrollment Form'!B658<>\"Subscriber\",\"-\",IF(AND('Enrollment Form'!B658=\"Subscriber\",'Enrollment Form'!G658=\"\"),\"N\",\"Y\"))","v":"-"},{"$f":"IF('Enrollment Form'!A658=\"\",\"\",IF('Enrollment Form'!B658=\"Subscriber\",\"-\",IF(AND('Enrollment Form'!B658<>\"Subscriber\",'Enrollment Form'!G658='Enrollment Form'!H658),\"N\",\"Y\")))","v":""},0]
[659,{"$f":"IF('Enrollment Form'!$A659<>\"\",\"Y\",\"N\")","v":"N"},{"$f":"IF(AND('Enrollment Form'!$B659=\"\",'Enrollment Form'!$C659<>\"\"),\"N\",IF($B652=\"N\",\"\",\"Y\"))","v":""},{"$f":"IF(OR($B652=\"N\",'Enrollment Form'!G659=\"\"),\"\",IF('Enrollment Form'!$B659<>\"Subscriber\",\"\",IF('Enrollment Form'!$G659='Enrollment Form'!$H659,\"Y\",\"N\")))","v":""},{"$f":"IF($B652=\"N\",\"\",IF(AND(COUNTIFS('Enrollment Form'!$H$11:$H$1000,'Enrollment Form'!$H659,'Enrollment Form'!$B$11:$B$1000,'Enrollment Form'!$B659)>1,'Enrollment Form'!$H659<>\"\"),\"N\",\"Y\"))","v":""},{"$f":"IF($B652=\"N\",\"\",IF(LEN('Enrollment Form'!$Y659)=0,\"\",IF(LEN('Enrollment Form'!$Y659)<>5,\"N\",\"Y\")))","v":""},{"$f":"IF($B652=\"N\",\"\",IF(LEN('Enrollment Form'!$AD659=0),\"\",IF(LEN('Enrollment Form'!$AD659)<>5,\"N\",\"Y\")))","v":""},{"$f":"IF($B652=\"N\",\"\",IF(LEN('Enrollment Form'!$BL659=0),\"\",IF(LEN('Enrollment Form'!$BL659)<>5,\"N\",\"Y\")))","v":""},{"$f":"IF($B652=\"N\",\"\",IF(LEN('Enrollment Form'!$AE659)=0,\"\",IF(LEN('Enrollment Form'!$AE659)<>10,\"N\",\"Y\")))","v":""},{"$f":"IF($B652=\"N\",\"\",IF(LEN('Enrollment Form'!$AF659)=0,\"\",IF(LEN('Enrollment Form'!$AF659)<>10,\"N\",\"Y\")))","v":""},{"$f":"IF('Enrollment Form'!$O659<>\"Graded\",\"-\",IF(AND('Enrollment Form'!$O659=\"Graded\",'Enrollment Form'!$AO659<>\"\"),\"Y\",\"N\"))","v":"-"},{"$f":"IF($B652=\"N\",\"\",IF(OR('Enrollment Form'!$B659<>\"Subscriber\",'Enrollment Form'!$C659=\"ROC\"),\"-\",IF(AND('Enrollment Form'!$B659=\"Subscriber\",'Enrollment Form'!$C659=\"Enroll\",'Enrollment Form'!$AJ659<>\"\"),\"Y\",\"N\")))","v":""},{"$f":"IF($B652=\"N\",\"\",IF(OR('Enrollment Form'!$B659<>\"Subscriber\",'Enrollment Form'!$C659=\"ROC\"),\"-\",IF(AND('Enrollment Form'!$B659=\"Subscriber\",'Enrollment Form'!$C659=\"Enroll\",'Enrollment Form'!$AK659<>\"\"),\"Y\",\"N\")))","v":""},{"$f":"IF($B652=\"N\",\"\",IF(OR('Enrollment Form'!$B659<>\"Subscriber\",'Enrollment Form'!$C659=\"ROC\"),\"-\",IF(AND('Enrollment Form'!$B659=\"Subscriber\",'Enrollment Form'!$C659=\"Enroll\",'Enrollment Form'!$AL659<>\"\"),\"Y\",\"N\")))","v":""},{"$f":"IF($B652=\"N\",\"\",IF(OR('Enrollment Form'!$B659<>\"Subscriber\",'Enrollment Form'!$C659=\"ROC\"),\"-\",IF(AND('Enrollment Form'!$B659=\"Subscriber\",'Enrollment Form'!$C659=\"Enroll\",'Enrollment Form'!$AM659<>\"\"),\"Y\",\"N\")))","v":""},{"$f":"IF($B652=\"N\",\"\",IF(OR('Enrollment Form'!$B659<>\"Subscriber\",'Enrollment Form'!$C659=\"ROC\"),\"-\",IF(AND('Enrollment Form'!$B659=\"Subscriber\",'Enrollment Form'!$C659=\"Enroll\",'Enrollment Form'!$AN659<>\"\"),\"Y\",\"N\")))","v":""},{"$f":"IF($B652=\"N\",\"\",IF(OR('Enrollment Form'!$B659<>\"Subscriber\",'Enrollment Form'!$C659=\"ROC\"),\"-\",IF(AND('Enrollment Form'!$B659=\"Subscriber\",'Enrollment Form'!$C659=\"Enroll\",'Enrollment Form'!$AP659<>\"\"),\"Y\",\"N\")))","v":""},{"$f":"IF($B652=\"N\",\"\",IF($Q652=\"-\",\"-\",IF(AND($Q652=\"Y\",'Enrollment Form'!$AP659=\"No\"),\"-\",IF(AND($Q652=\"Y\",'Enrollment Form'!$AP659=\"Yes\",'Enrollment Form'!$AQ659<>\"\"),\"Y\",\"N\"))))","v":""},{"$f":"IF($B652=\"N\",\"\",IF(OR('Enrollment Form'!$B659<>\"Subscriber\",'Enrollment Form'!$C659=\"ROC\"),\"-\",IF(AND('Enrollment Form'!$B659=\"Subscriber\",'Enrollment Form'!$C659=\"Enroll\",'Enrollment Form'!$CO659<>\"\"),\"Y\",\"N\")))","v":""},{"$f":"IF($B652=\"N\",\"\",IF($S652=\"-\",\"-\",IF(AND($S652=\"Y\",'Enrollment Form'!$CO659=\"No\"),\"-\",IF(AND($S652=\"Y\",'Enrollment Form'!$CO659=\"Yes\",'Enrollment Form'!$CP659<>\"\"),\"Y\",\"N\"))))","v":""},{"$f":"IF(OR('Enrollment Form'!$AV659=\"Yes\",'Enrollment Form'!$AV659=\"\"),\"-\",IF(AND('Enrollment Form'!$AV659=\"No\",ISERROR(FIND(\"HMO\",VLOOKUP('Enrollment Form'!G659,'Enrollment Form'!H$11:J$1000,3,FALSE),1))=FALSE,COUNTA('Enrollment Form'!$AW659:$AZ659)=4),\"Y\",\"N\"))","v":"-"},{"$f":"IF($B652=\"N\",\"\",IF('Enrollment Form'!$B659=\"Subscriber\",\"-\",IF(COUNTA('Enrollment Form'!$BE659,'Enrollment Form'!$BG659)=2,\"Y\",\"N\")))","v":""},{"$f":"IF($B652=\"N\",\"\",IF(OR('Enrollment Form'!$AU659=\"\",'Enrollment Form'!$AU659=\"No\"),\"-\",IF(AND('Enrollment Form'!$AU659=\"Yes\",COUNTA('Enrollment Form'!$CK659)=1),\"Y\",\"N\")))","v":""},{"$f":"IF(OR('Enrollment Form'!$CK659=\"\",'Enrollment Form'!$CK659=\"No\"),\"-\",IF(COUNTA('Enrollment Form'!$CM659:$CN659)=2,\"Y\",\"N\"))","v":"-"},{"$f":"IF($B652=\"N\",\"\",IF(COUNTIF('Enrollment Form'!$CZ659:$DO659,\"Other\")=COUNTA('Enrollment Form'!$DF659,'Enrollment Form'!$DA659,'Enrollment Form'!$DK659,'Enrollment Form'!$DP659),\"Y\",\"N\"))","v":""},{"$f":"IF($B652=\"N\",\"\",IF(OR('Enrollment Form'!B659<>\"Subscriber\",'Enrollment Form'!C659=\"ROC\",COUNTIF('Enrollment Form'!AS659:AT659,\"Yes\")>=1),\"-\",IF(AND('Enrollment Form'!C659=\"Enroll\",COUNTIF('Enrollment Form'!AS659:AT659,\"No\")=2,'Enrollment Form'!AU659=\"\"),\"N\",\"Y\")))","v":""},{"$f":"IF(OR(B652=\"N\",'Enrollment Form'!B659<>\"Subscriber\",'Enrollment Form'!C659=\"ROC\",'Enrollment Form'!O659<>\"Multiple of Salary\"),\"-\",IF(COUNTA('Enrollment Form'!T659:U659)<2,\"N\",\"Y\"))","v":"-"},{"$f":"IF(B652=\"N\",\"\",IF(OR('Enrollment Form'!C659=\"ROC\",'Enrollment Form'!B659<>\"Subscriber\",'Enrollment Form'!O659=\"Waive\",'Enrollment Form'!O659=\"\"),\"-\",IF('Enrollment Form'!P659=\"\",\"N\",\"Y\")))","v":""},{"$f":"IF($B652=\"N\",\"\",IF(AND('Enrollment Form'!$C659=\"ROC\",'Enrollment Form'!$DS659<>\"\"),\"Y\",IF(AND('Enrollment Form'!$C659=\"ROC\",'Enrollment Form'!$DS659=\"\"),\"N\",IF(AND('Enrollment Form'!$C659=\"Enroll\",'Enrollment Form'!$B659=\"Subscriber\",'Enrollment Form'!$CQ659=\"No\",'Enrollment Form'!$DS659=\"\"),\"N\",IF(AND('Enrollment Form'!$C659=\"Enroll\",'Enrollment Form'!$B659=\"Subscriber\",'Enrollment Form'!$CQ659=\"Yes\"),\"-\",\"Y\")))))","v":""},{"$f":"IF($B652=\"N\",\"\",IF(AND('Enrollment Form'!$C659=\"ROC\",'Enrollment Form'!$DT659<>\"\"),\"Y\",IF(AND('Enrollment Form'!$C659=\"ROC\",'Enrollment Form'!$DT659=\"\"),\"N\",IF(AND('Enrollment Form'!$C659=\"Enroll\",'Enrollment Form'!$B659=\"Subscriber\",'Enrollment Form'!$CQ659=\"No\",'Enrollment Form'!$DT659=\"\"),\"N\",IF(AND('Enrollment Form'!$C659=\"Enroll\",'Enrollment Form'!$B659=\"Subscriber\",'Enrollment Form'!$CQ659=\"Yes\"),\"-\",\"Y\")))))","v":""},{"$f":"IF('Enrollment Form'!AH659=\"\",\"\",IF(ISERROR(SEARCH(\".\",'Enrollment Form'!AH659,SEARCH(\"@\",'Enrollment Form'!AH659))),\"N\",\"Y\"))","v":""},{"$f":"IF(OR($B652=\"N\",'Enrollment Form'!$G659=\"\"),\"\",IF('Enrollment Form'!$B659<>\"Subscriber\",\"-\",IF(COUNTIF('Enrollment Form'!$AS659:$AT659,\"Yes\")=2,\"N\",\"Y\")))","v":""},{"$f":"IF(OR('Enrollment Form'!$CC659=\"\",'Enrollment Form'!$CC659=\"No\"),\"-\",IF(AND('Enrollment Form'!$CC659=\"Yes\",'Enrollment Form'!$CD659=\"\"),\"N\",\"Y\"))","v":"-"},{"$f":"IF(OR('Enrollment Form'!$CE659=\"\",'Enrollment Form'!$CE659=\"No\"),\"-\",IF(AND('Enrollment Form'!$CE659=\"Yes\",'Enrollment Form'!$CF659=\"\"),\"N\",\"Y\"))","v":"-"},{"$f":"IF(OR('Enrollment Form'!$CG659=\"\",'Enrollment Form'!$CG659=\"No\"),\"-\",IF(AND('Enrollment Form'!$CG659=\"Yes\",'Enrollment Form'!$CH659=\"\"),\"N\",\"Y\"))","v":"-"},{"$f":"IF(OR('Enrollment Form'!$CG659=\"\",'Enrollment Form'!$CG659=\"No\"),\"-\",IF(AND('Enrollment Form'!$CG659=\"Yes\",'Enrollment Form'!$CI659=\"\"),\"N\",\"Y\"))","v":"-"},{"$f":"IF('Enrollment Form'!B659<>\"Subscriber\",\"-\",IF(AND('Enrollment Form'!B659=\"Subscriber\",'Enrollment Form'!C659=\"Enroll\",'Enrollment Form'!AA659=\"\"),\"N\",\"Y\"))","v":"-"},{"$f":"IF(OR('Enrollment Form'!B659=\"Subscriber\",'Enrollment Form'!B659=\"\"),\"-\",IF('Enrollment Form'!BI659=\"\",\"N\",\"Y\"))","v":"-"},{"$f":"IF('Enrollment Form'!B659<>\"Subscriber\",\"-\",IF(AND('Enrollment Form'!B659=\"Subscriber\",'Enrollment Form'!G659=\"\"),\"N\",\"Y\"))","v":"-"},{"$f":"IF('Enrollment Form'!A659=\"\",\"\",IF('Enrollment Form'!B659=\"Subscriber\",\"-\",IF(AND('Enrollment Form'!B659<>\"Subscriber\",'Enrollment Form'!G659='Enrollment Form'!H659),\"N\",\"Y\")))","v":""},0]
[660,{"$f":"IF('Enrollment Form'!$A660<>\"\",\"Y\",\"N\")","v":"N"},{"$f":"IF(AND('Enrollment Form'!$B660=\"\",'Enrollment Form'!$C660<>\"\"),\"N\",IF($B653=\"N\",\"\",\"Y\"))","v":""},{"$f":"IF(OR($B653=\"N\",'Enrollment Form'!G660=\"\"),\"\",IF('Enrollment Form'!$B660<>\"Subscriber\",\"\",IF('Enrollment Form'!$G660='Enrollment Form'!$H660,\"Y\",\"N\")))","v":""},{"$f":"IF($B653=\"N\",\"\",IF(AND(COUNTIFS('Enrollment Form'!$H$11:$H$1000,'Enrollment Form'!$H660,'Enrollment Form'!$B$11:$B$1000,'Enrollment Form'!$B660)>1,'Enrollment Form'!$H660<>\"\"),\"N\",\"Y\"))","v":""},{"$f":"IF($B653=\"N\",\"\",IF(LEN('Enrollment Form'!$Y660)=0,\"\",IF(LEN('Enrollment Form'!$Y660)<>5,\"N\",\"Y\")))","v":""},{"$f":"IF($B653=\"N\",\"\",IF(LEN('Enrollment Form'!$AD660=0),\"\",IF(LEN('Enrollment Form'!$AD660)<>5,\"N\",\"Y\")))","v":""},{"$f":"IF($B653=\"N\",\"\",IF(LEN('Enrollment Form'!$BL660=0),\"\",IF(LEN('Enrollment Form'!$BL660)<>5,\"N\",\"Y\")))","v":""},{"$f":"IF($B653=\"N\",\"\",IF(LEN('Enrollment Form'!$AE660)=0,\"\",IF(LEN('Enrollment Form'!$AE660)<>10,\"N\",\"Y\")))","v":""},{"$f":"IF($B653=\"N\",\"\",IF(LEN('Enrollment Form'!$AF660)=0,\"\",IF(LEN('Enrollment Form'!$AF660)<>10,\"N\",\"Y\")))","v":""},{"$f":"IF('Enrollment Form'!$O660<>\"Graded\",\"-\",IF(AND('Enrollment Form'!$O660=\"Graded\",'Enrollment Form'!$AO660<>\"\"),\"Y\",\"N\"))","v":"-"},{"$f":"IF($B653=\"N\",\"\",IF(OR('Enrollment Form'!$B660<>\"Subscriber\",'Enrollment Form'!$C660=\"ROC\"),\"-\",IF(AND('Enrollment Form'!$B660=\"Subscriber\",'Enrollment Form'!$C660=\"Enroll\",'Enrollment Form'!$AJ660<>\"\"),\"Y\",\"N\")))","v":""},{"$f":"IF($B653=\"N\",\"\",IF(OR('Enrollment Form'!$B660<>\"Subscriber\",'Enrollment Form'!$C660=\"ROC\"),\"-\",IF(AND('Enrollment Form'!$B660=\"Subscriber\",'Enrollment Form'!$C660=\"Enroll\",'Enrollment Form'!$AK660<>\"\"),\"Y\",\"N\")))","v":""},{"$f":"IF($B653=\"N\",\"\",IF(OR('Enrollment Form'!$B660<>\"Subscriber\",'Enrollment Form'!$C660=\"ROC\"),\"-\",IF(AND('Enrollment Form'!$B660=\"Subscriber\",'Enrollment Form'!$C660=\"Enroll\",'Enrollment Form'!$AL660<>\"\"),\"Y\",\"N\")))","v":""},{"$f":"IF($B653=\"N\",\"\",IF(OR('Enrollment Form'!$B660<>\"Subscriber\",'Enrollment Form'!$C660=\"ROC\"),\"-\",IF(AND('Enrollment Form'!$B660=\"Subscriber\",'Enrollment Form'!$C660=\"Enroll\",'Enrollment Form'!$AM660<>\"\"),\"Y\",\"N\")))","v":""},{"$f":"IF($B653=\"N\",\"\",IF(OR('Enrollment Form'!$B660<>\"Subscriber\",'Enrollment Form'!$C660=\"ROC\"),\"-\",IF(AND('Enrollment Form'!$B660=\"Subscriber\",'Enrollment Form'!$C660=\"Enroll\",'Enrollment Form'!$AN660<>\"\"),\"Y\",\"N\")))","v":""},{"$f":"IF($B653=\"N\",\"\",IF(OR('Enrollment Form'!$B660<>\"Subscriber\",'Enrollment Form'!$C660=\"ROC\"),\"-\",IF(AND('Enrollment Form'!$B660=\"Subscriber\",'Enrollment Form'!$C660=\"Enroll\",'Enrollment Form'!$AP660<>\"\"),\"Y\",\"N\")))","v":""},{"$f":"IF($B653=\"N\",\"\",IF($Q653=\"-\",\"-\",IF(AND($Q653=\"Y\",'Enrollment Form'!$AP660=\"No\"),\"-\",IF(AND($Q653=\"Y\",'Enrollment Form'!$AP660=\"Yes\",'Enrollment Form'!$AQ660<>\"\"),\"Y\",\"N\"))))","v":""},{"$f":"IF($B653=\"N\",\"\",IF(OR('Enrollment Form'!$B660<>\"Subscriber\",'Enrollment Form'!$C660=\"ROC\"),\"-\",IF(AND('Enrollment Form'!$B660=\"Subscriber\",'Enrollment Form'!$C660=\"Enroll\",'Enrollment Form'!$CO660<>\"\"),\"Y\",\"N\")))","v":""},{"$f":"IF($B653=\"N\",\"\",IF($S653=\"-\",\"-\",IF(AND($S653=\"Y\",'Enrollment Form'!$CO660=\"No\"),\"-\",IF(AND($S653=\"Y\",'Enrollment Form'!$CO660=\"Yes\",'Enrollment Form'!$CP660<>\"\"),\"Y\",\"N\"))))","v":""},{"$f":"IF(OR('Enrollment Form'!$AV660=\"Yes\",'Enrollment Form'!$AV660=\"\"),\"-\",IF(AND('Enrollment Form'!$AV660=\"No\",ISERROR(FIND(\"HMO\",VLOOKUP('Enrollment Form'!G660,'Enrollment Form'!H$11:J$1000,3,FALSE),1))=FALSE,COUNTA('Enrollment Form'!$AW660:$AZ660)=4),\"Y\",\"N\"))","v":"-"},{"$f":"IF($B653=\"N\",\"\",IF('Enrollment Form'!$B660=\"Subscriber\",\"-\",IF(COUNTA('Enrollment Form'!$BE660,'Enrollment Form'!$BG660)=2,\"Y\",\"N\")))","v":""},{"$f":"IF($B653=\"N\",\"\",IF(OR('Enrollment Form'!$AU660=\"\",'Enrollment Form'!$AU660=\"No\"),\"-\",IF(AND('Enrollment Form'!$AU660=\"Yes\",COUNTA('Enrollment Form'!$CK660)=1),\"Y\",\"N\")))","v":""},{"$f":"IF(OR('Enrollment Form'!$CK660=\"\",'Enrollment Form'!$CK660=\"No\"),\"-\",IF(COUNTA('Enrollment Form'!$CM660:$CN660)=2,\"Y\",\"N\"))","v":"-"},{"$f":"IF($B653=\"N\",\"\",IF(COUNTIF('Enrollment Form'!$CZ660:$DO660,\"Other\")=COUNTA('Enrollment Form'!$DF660,'Enrollment Form'!$DA660,'Enrollment Form'!$DK660,'Enrollment Form'!$DP660),\"Y\",\"N\"))","v":""},{"$f":"IF($B653=\"N\",\"\",IF(OR('Enrollment Form'!B660<>\"Subscriber\",'Enrollment Form'!C660=\"ROC\",COUNTIF('Enrollment Form'!AS660:AT660,\"Yes\")>=1),\"-\",IF(AND('Enrollment Form'!C660=\"Enroll\",COUNTIF('Enrollment Form'!AS660:AT660,\"No\")=2,'Enrollment Form'!AU660=\"\"),\"N\",\"Y\")))","v":""},{"$f":"IF(OR(B653=\"N\",'Enrollment Form'!B660<>\"Subscriber\",'Enrollment Form'!C660=\"ROC\",'Enrollment Form'!O660<>\"Multiple of Salary\"),\"-\",IF(COUNTA('Enrollment Form'!T660:U660)<2,\"N\",\"Y\"))","v":"-"},{"$f":"IF(B653=\"N\",\"\",IF(OR('Enrollment Form'!C660=\"ROC\",'Enrollment Form'!B660<>\"Subscriber\",'Enrollment Form'!O660=\"Waive\",'Enrollment Form'!O660=\"\"),\"-\",IF('Enrollment Form'!P660=\"\",\"N\",\"Y\")))","v":""},{"$f":"IF($B653=\"N\",\"\",IF(AND('Enrollment Form'!$C660=\"ROC\",'Enrollment Form'!$DS660<>\"\"),\"Y\",IF(AND('Enrollment Form'!$C660=\"ROC\",'Enrollment Form'!$DS660=\"\"),\"N\",IF(AND('Enrollment Form'!$C660=\"Enroll\",'Enrollment Form'!$B660=\"Subscriber\",'Enrollment Form'!$CQ660=\"No\",'Enrollment Form'!$DS660=\"\"),\"N\",IF(AND('Enrollment Form'!$C660=\"Enroll\",'Enrollment Form'!$B660=\"Subscriber\",'Enrollment Form'!$CQ660=\"Yes\"),\"-\",\"Y\")))))","v":""},{"$f":"IF($B653=\"N\",\"\",IF(AND('Enrollment Form'!$C660=\"ROC\",'Enrollment Form'!$DT660<>\"\"),\"Y\",IF(AND('Enrollment Form'!$C660=\"ROC\",'Enrollment Form'!$DT660=\"\"),\"N\",IF(AND('Enrollment Form'!$C660=\"Enroll\",'Enrollment Form'!$B660=\"Subscriber\",'Enrollment Form'!$CQ660=\"No\",'Enrollment Form'!$DT660=\"\"),\"N\",IF(AND('Enrollment Form'!$C660=\"Enroll\",'Enrollment Form'!$B660=\"Subscriber\",'Enrollment Form'!$CQ660=\"Yes\"),\"-\",\"Y\")))))","v":""},{"$f":"IF('Enrollment Form'!AH660=\"\",\"\",IF(ISERROR(SEARCH(\".\",'Enrollment Form'!AH660,SEARCH(\"@\",'Enrollment Form'!AH660))),\"N\",\"Y\"))","v":""},{"$f":"IF(OR($B653=\"N\",'Enrollment Form'!$G660=\"\"),\"\",IF('Enrollment Form'!$B660<>\"Subscriber\",\"-\",IF(COUNTIF('Enrollment Form'!$AS660:$AT660,\"Yes\")=2,\"N\",\"Y\")))","v":""},{"$f":"IF(OR('Enrollment Form'!$CC660=\"\",'Enrollment Form'!$CC660=\"No\"),\"-\",IF(AND('Enrollment Form'!$CC660=\"Yes\",'Enrollment Form'!$CD660=\"\"),\"N\",\"Y\"))","v":"-"},{"$f":"IF(OR('Enrollment Form'!$CE660=\"\",'Enrollment Form'!$CE660=\"No\"),\"-\",IF(AND('Enrollment Form'!$CE660=\"Yes\",'Enrollment Form'!$CF660=\"\"),\"N\",\"Y\"))","v":"-"},{"$f":"IF(OR('Enrollment Form'!$CG660=\"\",'Enrollment Form'!$CG660=\"No\"),\"-\",IF(AND('Enrollment Form'!$CG660=\"Yes\",'Enrollment Form'!$CH660=\"\"),\"N\",\"Y\"))","v":"-"},{"$f":"IF(OR('Enrollment Form'!$CG660=\"\",'Enrollment Form'!$CG660=\"No\"),\"-\",IF(AND('Enrollment Form'!$CG660=\"Yes\",'Enrollment Form'!$CI660=\"\"),\"N\",\"Y\"))","v":"-"},{"$f":"IF('Enrollment Form'!B660<>\"Subscriber\",\"-\",IF(AND('Enrollment Form'!B660=\"Subscriber\",'Enrollment Form'!C660=\"Enroll\",'Enrollment Form'!AA660=\"\"),\"N\",\"Y\"))","v":"-"},{"$f":"IF(OR('Enrollment Form'!B660=\"Subscriber\",'Enrollment Form'!B660=\"\"),\"-\",IF('Enrollment Form'!BI660=\"\",\"N\",\"Y\"))","v":"-"},{"$f":"IF('Enrollment Form'!B660<>\"Subscriber\",\"-\",IF(AND('Enrollment Form'!B660=\"Subscriber\",'Enrollment Form'!G660=\"\"),\"N\",\"Y\"))","v":"-"},{"$f":"IF('Enrollment Form'!A660=\"\",\"\",IF('Enrollment Form'!B660=\"Subscriber\",\"-\",IF(AND('Enrollment Form'!B660<>\"Subscriber\",'Enrollment Form'!G660='Enrollment Form'!H660),\"N\",\"Y\")))","v":""},0]
[661,{"$f":"IF('Enrollment Form'!$A661<>\"\",\"Y\",\"N\")","v":"N"},{"$f":"IF(AND('Enrollment Form'!$B661=\"\",'Enrollment Form'!$C661<>\"\"),\"N\",IF($B654=\"N\",\"\",\"Y\"))","v":""},{"$f":"IF(OR($B654=\"N\",'Enrollment Form'!G661=\"\"),\"\",IF('Enrollment Form'!$B661<>\"Subscriber\",\"\",IF('Enrollment Form'!$G661='Enrollment Form'!$H661,\"Y\",\"N\")))","v":""},{"$f":"IF($B654=\"N\",\"\",IF(AND(COUNTIFS('Enrollment Form'!$H$11:$H$1000,'Enrollment Form'!$H661,'Enrollment Form'!$B$11:$B$1000,'Enrollment Form'!$B661)>1,'Enrollment Form'!$H661<>\"\"),\"N\",\"Y\"))","v":""},{"$f":"IF($B654=\"N\",\"\",IF(LEN('Enrollment Form'!$Y661)=0,\"\",IF(LEN('Enrollment Form'!$Y661)<>5,\"N\",\"Y\")))","v":""},{"$f":"IF($B654=\"N\",\"\",IF(LEN('Enrollment Form'!$AD661=0),\"\",IF(LEN('Enrollment Form'!$AD661)<>5,\"N\",\"Y\")))","v":""},{"$f":"IF($B654=\"N\",\"\",IF(LEN('Enrollment Form'!$BL661=0),\"\",IF(LEN('Enrollment Form'!$BL661)<>5,\"N\",\"Y\")))","v":""},{"$f":"IF($B654=\"N\",\"\",IF(LEN('Enrollment Form'!$AE661)=0,\"\",IF(LEN('Enrollment Form'!$AE661)<>10,\"N\",\"Y\")))","v":""},{"$f":"IF($B654=\"N\",\"\",IF(LEN('Enrollment Form'!$AF661)=0,\"\",IF(LEN('Enrollment Form'!$AF661)<>10,\"N\",\"Y\")))","v":""},{"$f":"IF('Enrollment Form'!$O661<>\"Graded\",\"-\",IF(AND('Enrollment Form'!$O661=\"Graded\",'Enrollment Form'!$AO661<>\"\"),\"Y\",\"N\"))","v":"-"},{"$f":"IF($B654=\"N\",\"\",IF(OR('Enrollment Form'!$B661<>\"Subscriber\",'Enrollment Form'!$C661=\"ROC\"),\"-\",IF(AND('Enrollment Form'!$B661=\"Subscriber\",'Enrollment Form'!$C661=\"Enroll\",'Enrollment Form'!$AJ661<>\"\"),\"Y\",\"N\")))","v":""},{"$f":"IF($B654=\"N\",\"\",IF(OR('Enrollment Form'!$B661<>\"Subscriber\",'Enrollment Form'!$C661=\"ROC\"),\"-\",IF(AND('Enrollment Form'!$B661=\"Subscriber\",'Enrollment Form'!$C661=\"Enroll\",'Enrollment Form'!$AK661<>\"\"),\"Y\",\"N\")))","v":""},{"$f":"IF($B654=\"N\",\"\",IF(OR('Enrollment Form'!$B661<>\"Subscriber\",'Enrollment Form'!$C661=\"ROC\"),\"-\",IF(AND('Enrollment Form'!$B661=\"Subscriber\",'Enrollment Form'!$C661=\"Enroll\",'Enrollment Form'!$AL661<>\"\"),\"Y\",\"N\")))","v":""},{"$f":"IF($B654=\"N\",\"\",IF(OR('Enrollment Form'!$B661<>\"Subscriber\",'Enrollment Form'!$C661=\"ROC\"),\"-\",IF(AND('Enrollment Form'!$B661=\"Subscriber\",'Enrollment Form'!$C661=\"Enroll\",'Enrollment Form'!$AM661<>\"\"),\"Y\",\"N\")))","v":""},{"$f":"IF($B654=\"N\",\"\",IF(OR('Enrollment Form'!$B661<>\"Subscriber\",'Enrollment Form'!$C661=\"ROC\"),\"-\",IF(AND('Enrollment Form'!$B661=\"Subscriber\",'Enrollment Form'!$C661=\"Enroll\",'Enrollment Form'!$AN661<>\"\"),\"Y\",\"N\")))","v":""},{"$f":"IF($B654=\"N\",\"\",IF(OR('Enrollment Form'!$B661<>\"Subscriber\",'Enrollment Form'!$C661=\"ROC\"),\"-\",IF(AND('Enrollment Form'!$B661=\"Subscriber\",'Enrollment Form'!$C661=\"Enroll\",'Enrollment Form'!$AP661<>\"\"),\"Y\",\"N\")))","v":""},{"$f":"IF($B654=\"N\",\"\",IF($Q654=\"-\",\"-\",IF(AND($Q654=\"Y\",'Enrollment Form'!$AP661=\"No\"),\"-\",IF(AND($Q654=\"Y\",'Enrollment Form'!$AP661=\"Yes\",'Enrollment Form'!$AQ661<>\"\"),\"Y\",\"N\"))))","v":""},{"$f":"IF($B654=\"N\",\"\",IF(OR('Enrollment Form'!$B661<>\"Subscriber\",'Enrollment Form'!$C661=\"ROC\"),\"-\",IF(AND('Enrollment Form'!$B661=\"Subscriber\",'Enrollment Form'!$C661=\"Enroll\",'Enrollment Form'!$CO661<>\"\"),\"Y\",\"N\")))","v":""},{"$f":"IF($B654=\"N\",\"\",IF($S654=\"-\",\"-\",IF(AND($S654=\"Y\",'Enrollment Form'!$CO661=\"No\"),\"-\",IF(AND($S654=\"Y\",'Enrollment Form'!$CO661=\"Yes\",'Enrollment Form'!$CP661<>\"\"),\"Y\",\"N\"))))","v":""},{"$f":"IF(OR('Enrollment Form'!$AV661=\"Yes\",'Enrollment Form'!$AV661=\"\"),\"-\",IF(AND('Enrollment Form'!$AV661=\"No\",ISERROR(FIND(\"HMO\",VLOOKUP('Enrollment Form'!G661,'Enrollment Form'!H$11:J$1000,3,FALSE),1))=FALSE,COUNTA('Enrollment Form'!$AW661:$AZ661)=4),\"Y\",\"N\"))","v":"-"},{"$f":"IF($B654=\"N\",\"\",IF('Enrollment Form'!$B661=\"Subscriber\",\"-\",IF(COUNTA('Enrollment Form'!$BE661,'Enrollment Form'!$BG661)=2,\"Y\",\"N\")))","v":""},{"$f":"IF($B654=\"N\",\"\",IF(OR('Enrollment Form'!$AU661=\"\",'Enrollment Form'!$AU661=\"No\"),\"-\",IF(AND('Enrollment Form'!$AU661=\"Yes\",COUNTA('Enrollment Form'!$CK661)=1),\"Y\",\"N\")))","v":""},{"$f":"IF(OR('Enrollment Form'!$CK661=\"\",'Enrollment Form'!$CK661=\"No\"),\"-\",IF(COUNTA('Enrollment Form'!$CM661:$CN661)=2,\"Y\",\"N\"))","v":"-"},{"$f":"IF($B654=\"N\",\"\",IF(COUNTIF('Enrollment Form'!$CZ661:$DO661,\"Other\")=COUNTA('Enrollment Form'!$DF661,'Enrollment Form'!$DA661,'Enrollment Form'!$DK661,'Enrollment Form'!$DP661),\"Y\",\"N\"))","v":""},{"$f":"IF($B654=\"N\",\"\",IF(OR('Enrollment Form'!B661<>\"Subscriber\",'Enrollment Form'!C661=\"ROC\",COUNTIF('Enrollment Form'!AS661:AT661,\"Yes\")>=1),\"-\",IF(AND('Enrollment Form'!C661=\"Enroll\",COUNTIF('Enrollment Form'!AS661:AT661,\"No\")=2,'Enrollment Form'!AU661=\"\"),\"N\",\"Y\")))","v":""},{"$f":"IF(OR(B654=\"N\",'Enrollment Form'!B661<>\"Subscriber\",'Enrollment Form'!C661=\"ROC\",'Enrollment Form'!O661<>\"Multiple of Salary\"),\"-\",IF(COUNTA('Enrollment Form'!T661:U661)<2,\"N\",\"Y\"))","v":"-"},{"$f":"IF(B654=\"N\",\"\",IF(OR('Enrollment Form'!C661=\"ROC\",'Enrollment Form'!B661<>\"Subscriber\",'Enrollment Form'!O661=\"Waive\",'Enrollment Form'!O661=\"\"),\"-\",IF('Enrollment Form'!P661=\"\",\"N\",\"Y\")))","v":""},{"$f":"IF($B654=\"N\",\"\",IF(AND('Enrollment Form'!$C661=\"ROC\",'Enrollment Form'!$DS661<>\"\"),\"Y\",IF(AND('Enrollment Form'!$C661=\"ROC\",'Enrollment Form'!$DS661=\"\"),\"N\",IF(AND('Enrollment Form'!$C661=\"Enroll\",'Enrollment Form'!$B661=\"Subscriber\",'Enrollment Form'!$CQ661=\"No\",'Enrollment Form'!$DS661=\"\"),\"N\",IF(AND('Enrollment Form'!$C661=\"Enroll\",'Enrollment Form'!$B661=\"Subscriber\",'Enrollment Form'!$CQ661=\"Yes\"),\"-\",\"Y\")))))","v":""},{"$f":"IF($B654=\"N\",\"\",IF(AND('Enrollment Form'!$C661=\"ROC\",'Enrollment Form'!$DT661<>\"\"),\"Y\",IF(AND('Enrollment Form'!$C661=\"ROC\",'Enrollment Form'!$DT661=\"\"),\"N\",IF(AND('Enrollment Form'!$C661=\"Enroll\",'Enrollment Form'!$B661=\"Subscriber\",'Enrollment Form'!$CQ661=\"No\",'Enrollment Form'!$DT661=\"\"),\"N\",IF(AND('Enrollment Form'!$C661=\"Enroll\",'Enrollment Form'!$B661=\"Subscriber\",'Enrollment Form'!$CQ661=\"Yes\"),\"-\",\"Y\")))))","v":""},{"$f":"IF('Enrollment Form'!AH661=\"\",\"\",IF(ISERROR(SEARCH(\".\",'Enrollment Form'!AH661,SEARCH(\"@\",'Enrollment Form'!AH661))),\"N\",\"Y\"))","v":""},{"$f":"IF(OR($B654=\"N\",'Enrollment Form'!$G661=\"\"),\"\",IF('Enrollment Form'!$B661<>\"Subscriber\",\"-\",IF(COUNTIF('Enrollment Form'!$AS661:$AT661,\"Yes\")=2,\"N\",\"Y\")))","v":""},{"$f":"IF(OR('Enrollment Form'!$CC661=\"\",'Enrollment Form'!$CC661=\"No\"),\"-\",IF(AND('Enrollment Form'!$CC661=\"Yes\",'Enrollment Form'!$CD661=\"\"),\"N\",\"Y\"))","v":"-"},{"$f":"IF(OR('Enrollment Form'!$CE661=\"\",'Enrollment Form'!$CE661=\"No\"),\"-\",IF(AND('Enrollment Form'!$CE661=\"Yes\",'Enrollment Form'!$CF661=\"\"),\"N\",\"Y\"))","v":"-"},{"$f":"IF(OR('Enrollment Form'!$CG661=\"\",'Enrollment Form'!$CG661=\"No\"),\"-\",IF(AND('Enrollment Form'!$CG661=\"Yes\",'Enrollment Form'!$CH661=\"\"),\"N\",\"Y\"))","v":"-"},{"$f":"IF(OR('Enrollment Form'!$CG661=\"\",'Enrollment Form'!$CG661=\"No\"),\"-\",IF(AND('Enrollment Form'!$CG661=\"Yes\",'Enrollment Form'!$CI661=\"\"),\"N\",\"Y\"))","v":"-"},{"$f":"IF('Enrollment Form'!B661<>\"Subscriber\",\"-\",IF(AND('Enrollment Form'!B661=\"Subscriber\",'Enrollment Form'!C661=\"Enroll\",'Enrollment Form'!AA661=\"\"),\"N\",\"Y\"))","v":"-"},{"$f":"IF(OR('Enrollment Form'!B661=\"Subscriber\",'Enrollment Form'!B661=\"\"),\"-\",IF('Enrollment Form'!BI661=\"\",\"N\",\"Y\"))","v":"-"},{"$f":"IF('Enrollment Form'!B661<>\"Subscriber\",\"-\",IF(AND('Enrollment Form'!B661=\"Subscriber\",'Enrollment Form'!G661=\"\"),\"N\",\"Y\"))","v":"-"},{"$f":"IF('Enrollment Form'!A661=\"\",\"\",IF('Enrollment Form'!B661=\"Subscriber\",\"-\",IF(AND('Enrollment Form'!B661<>\"Subscriber\",'Enrollment Form'!G661='Enrollment Form'!H661),\"N\",\"Y\")))","v":""},0]
[662,{"$f":"IF('Enrollment Form'!$A662<>\"\",\"Y\",\"N\")","v":"N"},{"$f":"IF(AND('Enrollment Form'!$B662=\"\",'Enrollment Form'!$C662<>\"\"),\"N\",IF($B655=\"N\",\"\",\"Y\"))","v":""},{"$f":"IF(OR($B655=\"N\",'Enrollment Form'!G662=\"\"),\"\",IF('Enrollment Form'!$B662<>\"Subscriber\",\"\",IF('Enrollment Form'!$G662='Enrollment Form'!$H662,\"Y\",\"N\")))","v":""},{"$f":"IF($B655=\"N\",\"\",IF(AND(COUNTIFS('Enrollment Form'!$H$11:$H$1000,'Enrollment Form'!$H662,'Enrollment Form'!$B$11:$B$1000,'Enrollment Form'!$B662)>1,'Enrollment Form'!$H662<>\"\"),\"N\",\"Y\"))","v":""},{"$f":"IF($B655=\"N\",\"\",IF(LEN('Enrollment Form'!$Y662)=0,\"\",IF(LEN('Enrollment Form'!$Y662)<>5,\"N\",\"Y\")))","v":""},{"$f":"IF($B655=\"N\",\"\",IF(LEN('Enrollment Form'!$AD662=0),\"\",IF(LEN('Enrollment Form'!$AD662)<>5,\"N\",\"Y\")))","v":""},{"$f":"IF($B655=\"N\",\"\",IF(LEN('Enrollment Form'!$BL662=0),\"\",IF(LEN('Enrollment Form'!$BL662)<>5,\"N\",\"Y\")))","v":""},{"$f":"IF($B655=\"N\",\"\",IF(LEN('Enrollment Form'!$AE662)=0,\"\",IF(LEN('Enrollment Form'!$AE662)<>10,\"N\",\"Y\")))","v":""},{"$f":"IF($B655=\"N\",\"\",IF(LEN('Enrollment Form'!$AF662)=0,\"\",IF(LEN('Enrollment Form'!$AF662)<>10,\"N\",\"Y\")))","v":""},{"$f":"IF('Enrollment Form'!$O662<>\"Graded\",\"-\",IF(AND('Enrollment Form'!$O662=\"Graded\",'Enrollment Form'!$AO662<>\"\"),\"Y\",\"N\"))","v":"-"},{"$f":"IF($B655=\"N\",\"\",IF(OR('Enrollment Form'!$B662<>\"Subscriber\",'Enrollment Form'!$C662=\"ROC\"),\"-\",IF(AND('Enrollment Form'!$B662=\"Subscriber\",'Enrollment Form'!$C662=\"Enroll\",'Enrollment Form'!$AJ662<>\"\"),\"Y\",\"N\")))","v":""},{"$f":"IF($B655=\"N\",\"\",IF(OR('Enrollment Form'!$B662<>\"Subscriber\",'Enrollment Form'!$C662=\"ROC\"),\"-\",IF(AND('Enrollment Form'!$B662=\"Subscriber\",'Enrollment Form'!$C662=\"Enroll\",'Enrollment Form'!$AK662<>\"\"),\"Y\",\"N\")))","v":""},{"$f":"IF($B655=\"N\",\"\",IF(OR('Enrollment Form'!$B662<>\"Subscriber\",'Enrollment Form'!$C662=\"ROC\"),\"-\",IF(AND('Enrollment Form'!$B662=\"Subscriber\",'Enrollment Form'!$C662=\"Enroll\",'Enrollment Form'!$AL662<>\"\"),\"Y\",\"N\")))","v":""},{"$f":"IF($B655=\"N\",\"\",IF(OR('Enrollment Form'!$B662<>\"Subscriber\",'Enrollment Form'!$C662=\"ROC\"),\"-\",IF(AND('Enrollment Form'!$B662=\"Subscriber\",'Enrollment Form'!$C662=\"Enroll\",'Enrollment Form'!$AM662<>\"\"),\"Y\",\"N\")))","v":""},{"$f":"IF($B655=\"N\",\"\",IF(OR('Enrollment Form'!$B662<>\"Subscriber\",'Enrollment Form'!$C662=\"ROC\"),\"-\",IF(AND('Enrollment Form'!$B662=\"Subscriber\",'Enrollment Form'!$C662=\"Enroll\",'Enrollment Form'!$AN662<>\"\"),\"Y\",\"N\")))","v":""},{"$f":"IF($B655=\"N\",\"\",IF(OR('Enrollment Form'!$B662<>\"Subscriber\",'Enrollment Form'!$C662=\"ROC\"),\"-\",IF(AND('Enrollment Form'!$B662=\"Subscriber\",'Enrollment Form'!$C662=\"Enroll\",'Enrollment Form'!$AP662<>\"\"),\"Y\",\"N\")))","v":""},{"$f":"IF($B655=\"N\",\"\",IF($Q655=\"-\",\"-\",IF(AND($Q655=\"Y\",'Enrollment Form'!$AP662=\"No\"),\"-\",IF(AND($Q655=\"Y\",'Enrollment Form'!$AP662=\"Yes\",'Enrollment Form'!$AQ662<>\"\"),\"Y\",\"N\"))))","v":""},{"$f":"IF($B655=\"N\",\"\",IF(OR('Enrollment Form'!$B662<>\"Subscriber\",'Enrollment Form'!$C662=\"ROC\"),\"-\",IF(AND('Enrollment Form'!$B662=\"Subscriber\",'Enrollment Form'!$C662=\"Enroll\",'Enrollment Form'!$CO662<>\"\"),\"Y\",\"N\")))","v":""},{"$f":"IF($B655=\"N\",\"\",IF($S655=\"-\",\"-\",IF(AND($S655=\"Y\",'Enrollment Form'!$CO662=\"No\"),\"-\",IF(AND($S655=\"Y\",'Enrollment Form'!$CO662=\"Yes\",'Enrollment Form'!$CP662<>\"\"),\"Y\",\"N\"))))","v":""},{"$f":"IF(OR('Enrollment Form'!$AV662=\"Yes\",'Enrollment Form'!$AV662=\"\"),\"-\",IF(AND('Enrollment Form'!$AV662=\"No\",ISERROR(FIND(\"HMO\",VLOOKUP('Enrollment Form'!G662,'Enrollment Form'!H$11:J$1000,3,FALSE),1))=FALSE,COUNTA('Enrollment Form'!$AW662:$AZ662)=4),\"Y\",\"N\"))","v":"-"},{"$f":"IF($B655=\"N\",\"\",IF('Enrollment Form'!$B662=\"Subscriber\",\"-\",IF(COUNTA('Enrollment Form'!$BE662,'Enrollment Form'!$BG662)=2,\"Y\",\"N\")))","v":""},{"$f":"IF($B655=\"N\",\"\",IF(OR('Enrollment Form'!$AU662=\"\",'Enrollment Form'!$AU662=\"No\"),\"-\",IF(AND('Enrollment Form'!$AU662=\"Yes\",COUNTA('Enrollment Form'!$CK662)=1),\"Y\",\"N\")))","v":""},{"$f":"IF(OR('Enrollment Form'!$CK662=\"\",'Enrollment Form'!$CK662=\"No\"),\"-\",IF(COUNTA('Enrollment Form'!$CM662:$CN662)=2,\"Y\",\"N\"))","v":"-"},{"$f":"IF($B655=\"N\",\"\",IF(COUNTIF('Enrollment Form'!$CZ662:$DO662,\"Other\")=COUNTA('Enrollment Form'!$DF662,'Enrollment Form'!$DA662,'Enrollment Form'!$DK662,'Enrollment Form'!$DP662),\"Y\",\"N\"))","v":""},{"$f":"IF($B655=\"N\",\"\",IF(OR('Enrollment Form'!B662<>\"Subscriber\",'Enrollment Form'!C662=\"ROC\",COUNTIF('Enrollment Form'!AS662:AT662,\"Yes\")>=1),\"-\",IF(AND('Enrollment Form'!C662=\"Enroll\",COUNTIF('Enrollment Form'!AS662:AT662,\"No\")=2,'Enrollment Form'!AU662=\"\"),\"N\",\"Y\")))","v":""},{"$f":"IF(OR(B655=\"N\",'Enrollment Form'!B662<>\"Subscriber\",'Enrollment Form'!C662=\"ROC\",'Enrollment Form'!O662<>\"Multiple of Salary\"),\"-\",IF(COUNTA('Enrollment Form'!T662:U662)<2,\"N\",\"Y\"))","v":"-"},{"$f":"IF(B655=\"N\",\"\",IF(OR('Enrollment Form'!C662=\"ROC\",'Enrollment Form'!B662<>\"Subscriber\",'Enrollment Form'!O662=\"Waive\",'Enrollment Form'!O662=\"\"),\"-\",IF('Enrollment Form'!P662=\"\",\"N\",\"Y\")))","v":""},{"$f":"IF($B655=\"N\",\"\",IF(AND('Enrollment Form'!$C662=\"ROC\",'Enrollment Form'!$DS662<>\"\"),\"Y\",IF(AND('Enrollment Form'!$C662=\"ROC\",'Enrollment Form'!$DS662=\"\"),\"N\",IF(AND('Enrollment Form'!$C662=\"Enroll\",'Enrollment Form'!$B662=\"Subscriber\",'Enrollment Form'!$CQ662=\"No\",'Enrollment Form'!$DS662=\"\"),\"N\",IF(AND('Enrollment Form'!$C662=\"Enroll\",'Enrollment Form'!$B662=\"Subscriber\",'Enrollment Form'!$CQ662=\"Yes\"),\"-\",\"Y\")))))","v":""},{"$f":"IF($B655=\"N\",\"\",IF(AND('Enrollment Form'!$C662=\"ROC\",'Enrollment Form'!$DT662<>\"\"),\"Y\",IF(AND('Enrollment Form'!$C662=\"ROC\",'Enrollment Form'!$DT662=\"\"),\"N\",IF(AND('Enrollment Form'!$C662=\"Enroll\",'Enrollment Form'!$B662=\"Subscriber\",'Enrollment Form'!$CQ662=\"No\",'Enrollment Form'!$DT662=\"\"),\"N\",IF(AND('Enrollment Form'!$C662=\"Enroll\",'Enrollment Form'!$B662=\"Subscriber\",'Enrollment Form'!$CQ662=\"Yes\"),\"-\",\"Y\")))))","v":""},{"$f":"IF('Enrollment Form'!AH662=\"\",\"\",IF(ISERROR(SEARCH(\".\",'Enrollment Form'!AH662,SEARCH(\"@\",'Enrollment Form'!AH662))),\"N\",\"Y\"))","v":""},{"$f":"IF(OR($B655=\"N\",'Enrollment Form'!$G662=\"\"),\"\",IF('Enrollment Form'!$B662<>\"Subscriber\",\"-\",IF(COUNTIF('Enrollment Form'!$AS662:$AT662,\"Yes\")=2,\"N\",\"Y\")))","v":""},{"$f":"IF(OR('Enrollment Form'!$CC662=\"\",'Enrollment Form'!$CC662=\"No\"),\"-\",IF(AND('Enrollment Form'!$CC662=\"Yes\",'Enrollment Form'!$CD662=\"\"),\"N\",\"Y\"))","v":"-"},{"$f":"IF(OR('Enrollment Form'!$CE662=\"\",'Enrollment Form'!$CE662=\"No\"),\"-\",IF(AND('Enrollment Form'!$CE662=\"Yes\",'Enrollment Form'!$CF662=\"\"),\"N\",\"Y\"))","v":"-"},{"$f":"IF(OR('Enrollment Form'!$CG662=\"\",'Enrollment Form'!$CG662=\"No\"),\"-\",IF(AND('Enrollment Form'!$CG662=\"Yes\",'Enrollment Form'!$CH662=\"\"),\"N\",\"Y\"))","v":"-"},{"$f":"IF(OR('Enrollment Form'!$CG662=\"\",'Enrollment Form'!$CG662=\"No\"),\"-\",IF(AND('Enrollment Form'!$CG662=\"Yes\",'Enrollment Form'!$CI662=\"\"),\"N\",\"Y\"))","v":"-"},{"$f":"IF('Enrollment Form'!B662<>\"Subscriber\",\"-\",IF(AND('Enrollment Form'!B662=\"Subscriber\",'Enrollment Form'!C662=\"Enroll\",'Enrollment Form'!AA662=\"\"),\"N\",\"Y\"))","v":"-"},{"$f":"IF(OR('Enrollment Form'!B662=\"Subscriber\",'Enrollment Form'!B662=\"\"),\"-\",IF('Enrollment Form'!BI662=\"\",\"N\",\"Y\"))","v":"-"},{"$f":"IF('Enrollment Form'!B662<>\"Subscriber\",\"-\",IF(AND('Enrollment Form'!B662=\"Subscriber\",'Enrollment Form'!G662=\"\"),\"N\",\"Y\"))","v":"-"},{"$f":"IF('Enrollment Form'!A662=\"\",\"\",IF('Enrollment Form'!B662=\"Subscriber\",\"-\",IF(AND('Enrollment Form'!B662<>\"Subscriber\",'Enrollment Form'!G662='Enrollment Form'!H662),\"N\",\"Y\")))","v":""},0]
[663,{"$f":"IF('Enrollment Form'!$A663<>\"\",\"Y\",\"N\")","v":"N"},{"$f":"IF(AND('Enrollment Form'!$B663=\"\",'Enrollment Form'!$C663<>\"\"),\"N\",IF($B656=\"N\",\"\",\"Y\"))","v":""},{"$f":"IF(OR($B656=\"N\",'Enrollment Form'!G663=\"\"),\"\",IF('Enrollment Form'!$B663<>\"Subscriber\",\"\",IF('Enrollment Form'!$G663='Enrollment Form'!$H663,\"Y\",\"N\")))","v":""},{"$f":"IF($B656=\"N\",\"\",IF(AND(COUNTIFS('Enrollment Form'!$H$11:$H$1000,'Enrollment Form'!$H663,'Enrollment Form'!$B$11:$B$1000,'Enrollment Form'!$B663)>1,'Enrollment Form'!$H663<>\"\"),\"N\",\"Y\"))","v":""},{"$f":"IF($B656=\"N\",\"\",IF(LEN('Enrollment Form'!$Y663)=0,\"\",IF(LEN('Enrollment Form'!$Y663)<>5,\"N\",\"Y\")))","v":""},{"$f":"IF($B656=\"N\",\"\",IF(LEN('Enrollment Form'!$AD663=0),\"\",IF(LEN('Enrollment Form'!$AD663)<>5,\"N\",\"Y\")))","v":""},{"$f":"IF($B656=\"N\",\"\",IF(LEN('Enrollment Form'!$BL663=0),\"\",IF(LEN('Enrollment Form'!$BL663)<>5,\"N\",\"Y\")))","v":""},{"$f":"IF($B656=\"N\",\"\",IF(LEN('Enrollment Form'!$AE663)=0,\"\",IF(LEN('Enrollment Form'!$AE663)<>10,\"N\",\"Y\")))","v":""},{"$f":"IF($B656=\"N\",\"\",IF(LEN('Enrollment Form'!$AF663)=0,\"\",IF(LEN('Enrollment Form'!$AF663)<>10,\"N\",\"Y\")))","v":""},{"$f":"IF('Enrollment Form'!$O663<>\"Graded\",\"-\",IF(AND('Enrollment Form'!$O663=\"Graded\",'Enrollment Form'!$AO663<>\"\"),\"Y\",\"N\"))","v":"-"},{"$f":"IF($B656=\"N\",\"\",IF(OR('Enrollment Form'!$B663<>\"Subscriber\",'Enrollment Form'!$C663=\"ROC\"),\"-\",IF(AND('Enrollment Form'!$B663=\"Subscriber\",'Enrollment Form'!$C663=\"Enroll\",'Enrollment Form'!$AJ663<>\"\"),\"Y\",\"N\")))","v":""},{"$f":"IF($B656=\"N\",\"\",IF(OR('Enrollment Form'!$B663<>\"Subscriber\",'Enrollment Form'!$C663=\"ROC\"),\"-\",IF(AND('Enrollment Form'!$B663=\"Subscriber\",'Enrollment Form'!$C663=\"Enroll\",'Enrollment Form'!$AK663<>\"\"),\"Y\",\"N\")))","v":""},{"$f":"IF($B656=\"N\",\"\",IF(OR('Enrollment Form'!$B663<>\"Subscriber\",'Enrollment Form'!$C663=\"ROC\"),\"-\",IF(AND('Enrollment Form'!$B663=\"Subscriber\",'Enrollment Form'!$C663=\"Enroll\",'Enrollment Form'!$AL663<>\"\"),\"Y\",\"N\")))","v":""},{"$f":"IF($B656=\"N\",\"\",IF(OR('Enrollment Form'!$B663<>\"Subscriber\",'Enrollment Form'!$C663=\"ROC\"),\"-\",IF(AND('Enrollment Form'!$B663=\"Subscriber\",'Enrollment Form'!$C663=\"Enroll\",'Enrollment Form'!$AM663<>\"\"),\"Y\",\"N\")))","v":""},{"$f":"IF($B656=\"N\",\"\",IF(OR('Enrollment Form'!$B663<>\"Subscriber\",'Enrollment Form'!$C663=\"ROC\"),\"-\",IF(AND('Enrollment Form'!$B663=\"Subscriber\",'Enrollment Form'!$C663=\"Enroll\",'Enrollment Form'!$AN663<>\"\"),\"Y\",\"N\")))","v":""},{"$f":"IF($B656=\"N\",\"\",IF(OR('Enrollment Form'!$B663<>\"Subscriber\",'Enrollment Form'!$C663=\"ROC\"),\"-\",IF(AND('Enrollment Form'!$B663=\"Subscriber\",'Enrollment Form'!$C663=\"Enroll\",'Enrollment Form'!$AP663<>\"\"),\"Y\",\"N\")))","v":""},{"$f":"IF($B656=\"N\",\"\",IF($Q656=\"-\",\"-\",IF(AND($Q656=\"Y\",'Enrollment Form'!$AP663=\"No\"),\"-\",IF(AND($Q656=\"Y\",'Enrollment Form'!$AP663=\"Yes\",'Enrollment Form'!$AQ663<>\"\"),\"Y\",\"N\"))))","v":""},{"$f":"IF($B656=\"N\",\"\",IF(OR('Enrollment Form'!$B663<>\"Subscriber\",'Enrollment Form'!$C663=\"ROC\"),\"-\",IF(AND('Enrollment Form'!$B663=\"Subscriber\",'Enrollment Form'!$C663=\"Enroll\",'Enrollment Form'!$CO663<>\"\"),\"Y\",\"N\")))","v":""},{"$f":"IF($B656=\"N\",\"\",IF($S656=\"-\",\"-\",IF(AND($S656=\"Y\",'Enrollment Form'!$CO663=\"No\"),\"-\",IF(AND($S656=\"Y\",'Enrollment Form'!$CO663=\"Yes\",'Enrollment Form'!$CP663<>\"\"),\"Y\",\"N\"))))","v":""},{"$f":"IF(OR('Enrollment Form'!$AV663=\"Yes\",'Enrollment Form'!$AV663=\"\"),\"-\",IF(AND('Enrollment Form'!$AV663=\"No\",ISERROR(FIND(\"HMO\",VLOOKUP('Enrollment Form'!G663,'Enrollment Form'!H$11:J$1000,3,FALSE),1))=FALSE,COUNTA('Enrollment Form'!$AW663:$AZ663)=4),\"Y\",\"N\"))","v":"-"},{"$f":"IF($B656=\"N\",\"\",IF('Enrollment Form'!$B663=\"Subscriber\",\"-\",IF(COUNTA('Enrollment Form'!$BE663,'Enrollment Form'!$BG663)=2,\"Y\",\"N\")))","v":""},{"$f":"IF($B656=\"N\",\"\",IF(OR('Enrollment Form'!$AU663=\"\",'Enrollment Form'!$AU663=\"No\"),\"-\",IF(AND('Enrollment Form'!$AU663=\"Yes\",COUNTA('Enrollment Form'!$CK663)=1),\"Y\",\"N\")))","v":""},{"$f":"IF(OR('Enrollment Form'!$CK663=\"\",'Enrollment Form'!$CK663=\"No\"),\"-\",IF(COUNTA('Enrollment Form'!$CM663:$CN663)=2,\"Y\",\"N\"))","v":"-"},{"$f":"IF($B656=\"N\",\"\",IF(COUNTIF('Enrollment Form'!$CZ663:$DO663,\"Other\")=COUNTA('Enrollment Form'!$DF663,'Enrollment Form'!$DA663,'Enrollment Form'!$DK663,'Enrollment Form'!$DP663),\"Y\",\"N\"))","v":""},{"$f":"IF($B656=\"N\",\"\",IF(OR('Enrollment Form'!B663<>\"Subscriber\",'Enrollment Form'!C663=\"ROC\",COUNTIF('Enrollment Form'!AS663:AT663,\"Yes\")>=1),\"-\",IF(AND('Enrollment Form'!C663=\"Enroll\",COUNTIF('Enrollment Form'!AS663:AT663,\"No\")=2,'Enrollment Form'!AU663=\"\"),\"N\",\"Y\")))","v":""},{"$f":"IF(OR(B656=\"N\",'Enrollment Form'!B663<>\"Subscriber\",'Enrollment Form'!C663=\"ROC\",'Enrollment Form'!O663<>\"Multiple of Salary\"),\"-\",IF(COUNTA('Enrollment Form'!T663:U663)<2,\"N\",\"Y\"))","v":"-"},{"$f":"IF(B656=\"N\",\"\",IF(OR('Enrollment Form'!C663=\"ROC\",'Enrollment Form'!B663<>\"Subscriber\",'Enrollment Form'!O663=\"Waive\",'Enrollment Form'!O663=\"\"),\"-\",IF('Enrollment Form'!P663=\"\",\"N\",\"Y\")))","v":""},{"$f":"IF($B656=\"N\",\"\",IF(AND('Enrollment Form'!$C663=\"ROC\",'Enrollment Form'!$DS663<>\"\"),\"Y\",IF(AND('Enrollment Form'!$C663=\"ROC\",'Enrollment Form'!$DS663=\"\"),\"N\",IF(AND('Enrollment Form'!$C663=\"Enroll\",'Enrollment Form'!$B663=\"Subscriber\",'Enrollment Form'!$CQ663=\"No\",'Enrollment Form'!$DS663=\"\"),\"N\",IF(AND('Enrollment Form'!$C663=\"Enroll\",'Enrollment Form'!$B663=\"Subscriber\",'Enrollment Form'!$CQ663=\"Yes\"),\"-\",\"Y\")))))","v":""},{"$f":"IF($B656=\"N\",\"\",IF(AND('Enrollment Form'!$C663=\"ROC\",'Enrollment Form'!$DT663<>\"\"),\"Y\",IF(AND('Enrollment Form'!$C663=\"ROC\",'Enrollment Form'!$DT663=\"\"),\"N\",IF(AND('Enrollment Form'!$C663=\"Enroll\",'Enrollment Form'!$B663=\"Subscriber\",'Enrollment Form'!$CQ663=\"No\",'Enrollment Form'!$DT663=\"\"),\"N\",IF(AND('Enrollment Form'!$C663=\"Enroll\",'Enrollment Form'!$B663=\"Subscriber\",'Enrollment Form'!$CQ663=\"Yes\"),\"-\",\"Y\")))))","v":""},{"$f":"IF('Enrollment Form'!AH663=\"\",\"\",IF(ISERROR(SEARCH(\".\",'Enrollment Form'!AH663,SEARCH(\"@\",'Enrollment Form'!AH663))),\"N\",\"Y\"))","v":""},{"$f":"IF(OR($B656=\"N\",'Enrollment Form'!$G663=\"\"),\"\",IF('Enrollment Form'!$B663<>\"Subscriber\",\"-\",IF(COUNTIF('Enrollment Form'!$AS663:$AT663,\"Yes\")=2,\"N\",\"Y\")))","v":""},{"$f":"IF(OR('Enrollment Form'!$CC663=\"\",'Enrollment Form'!$CC663=\"No\"),\"-\",IF(AND('Enrollment Form'!$CC663=\"Yes\",'Enrollment Form'!$CD663=\"\"),\"N\",\"Y\"))","v":"-"},{"$f":"IF(OR('Enrollment Form'!$CE663=\"\",'Enrollment Form'!$CE663=\"No\"),\"-\",IF(AND('Enrollment Form'!$CE663=\"Yes\",'Enrollment Form'!$CF663=\"\"),\"N\",\"Y\"))","v":"-"},{"$f":"IF(OR('Enrollment Form'!$CG663=\"\",'Enrollment Form'!$CG663=\"No\"),\"-\",IF(AND('Enrollment Form'!$CG663=\"Yes\",'Enrollment Form'!$CH663=\"\"),\"N\",\"Y\"))","v":"-"},{"$f":"IF(OR('Enrollment Form'!$CG663=\"\",'Enrollment Form'!$CG663=\"No\"),\"-\",IF(AND('Enrollment Form'!$CG663=\"Yes\",'Enrollment Form'!$CI663=\"\"),\"N\",\"Y\"))","v":"-"},{"$f":"IF('Enrollment Form'!B663<>\"Subscriber\",\"-\",IF(AND('Enrollment Form'!B663=\"Subscriber\",'Enrollment Form'!C663=\"Enroll\",'Enrollment Form'!AA663=\"\"),\"N\",\"Y\"))","v":"-"},{"$f":"IF(OR('Enrollment Form'!B663=\"Subscriber\",'Enrollment Form'!B663=\"\"),\"-\",IF('Enrollment Form'!BI663=\"\",\"N\",\"Y\"))","v":"-"},{"$f":"IF('Enrollment Form'!B663<>\"Subscriber\",\"-\",IF(AND('Enrollment Form'!B663=\"Subscriber\",'Enrollment Form'!G663=\"\"),\"N\",\"Y\"))","v":"-"},{"$f":"IF('Enrollment Form'!A663=\"\",\"\",IF('Enrollment Form'!B663=\"Subscriber\",\"-\",IF(AND('Enrollment Form'!B663<>\"Subscriber\",'Enrollment Form'!G663='Enrollment Form'!H663),\"N\",\"Y\")))","v":""},0]
[664,{"$f":"IF('Enrollment Form'!$A664<>\"\",\"Y\",\"N\")","v":"N"},{"$f":"IF(AND('Enrollment Form'!$B664=\"\",'Enrollment Form'!$C664<>\"\"),\"N\",IF($B657=\"N\",\"\",\"Y\"))","v":""},{"$f":"IF(OR($B657=\"N\",'Enrollment Form'!G664=\"\"),\"\",IF('Enrollment Form'!$B664<>\"Subscriber\",\"\",IF('Enrollment Form'!$G664='Enrollment Form'!$H664,\"Y\",\"N\")))","v":""},{"$f":"IF($B657=\"N\",\"\",IF(AND(COUNTIFS('Enrollment Form'!$H$11:$H$1000,'Enrollment Form'!$H664,'Enrollment Form'!$B$11:$B$1000,'Enrollment Form'!$B664)>1,'Enrollment Form'!$H664<>\"\"),\"N\",\"Y\"))","v":""},{"$f":"IF($B657=\"N\",\"\",IF(LEN('Enrollment Form'!$Y664)=0,\"\",IF(LEN('Enrollment Form'!$Y664)<>5,\"N\",\"Y\")))","v":""},{"$f":"IF($B657=\"N\",\"\",IF(LEN('Enrollment Form'!$AD664=0),\"\",IF(LEN('Enrollment Form'!$AD664)<>5,\"N\",\"Y\")))","v":""},{"$f":"IF($B657=\"N\",\"\",IF(LEN('Enrollment Form'!$BL664=0),\"\",IF(LEN('Enrollment Form'!$BL664)<>5,\"N\",\"Y\")))","v":""},{"$f":"IF($B657=\"N\",\"\",IF(LEN('Enrollment Form'!$AE664)=0,\"\",IF(LEN('Enrollment Form'!$AE664)<>10,\"N\",\"Y\")))","v":""},{"$f":"IF($B657=\"N\",\"\",IF(LEN('Enrollment Form'!$AF664)=0,\"\",IF(LEN('Enrollment Form'!$AF664)<>10,\"N\",\"Y\")))","v":""},{"$f":"IF('Enrollment Form'!$O664<>\"Graded\",\"-\",IF(AND('Enrollment Form'!$O664=\"Graded\",'Enrollment Form'!$AO664<>\"\"),\"Y\",\"N\"))","v":"-"},{"$f":"IF($B657=\"N\",\"\",IF(OR('Enrollment Form'!$B664<>\"Subscriber\",'Enrollment Form'!$C664=\"ROC\"),\"-\",IF(AND('Enrollment Form'!$B664=\"Subscriber\",'Enrollment Form'!$C664=\"Enroll\",'Enrollment Form'!$AJ664<>\"\"),\"Y\",\"N\")))","v":""},{"$f":"IF($B657=\"N\",\"\",IF(OR('Enrollment Form'!$B664<>\"Subscriber\",'Enrollment Form'!$C664=\"ROC\"),\"-\",IF(AND('Enrollment Form'!$B664=\"Subscriber\",'Enrollment Form'!$C664=\"Enroll\",'Enrollment Form'!$AK664<>\"\"),\"Y\",\"N\")))","v":""},{"$f":"IF($B657=\"N\",\"\",IF(OR('Enrollment Form'!$B664<>\"Subscriber\",'Enrollment Form'!$C664=\"ROC\"),\"-\",IF(AND('Enrollment Form'!$B664=\"Subscriber\",'Enrollment Form'!$C664=\"Enroll\",'Enrollment Form'!$AL664<>\"\"),\"Y\",\"N\")))","v":""},{"$f":"IF($B657=\"N\",\"\",IF(OR('Enrollment Form'!$B664<>\"Subscriber\",'Enrollment Form'!$C664=\"ROC\"),\"-\",IF(AND('Enrollment Form'!$B664=\"Subscriber\",'Enrollment Form'!$C664=\"Enroll\",'Enrollment Form'!$AM664<>\"\"),\"Y\",\"N\")))","v":""},{"$f":"IF($B657=\"N\",\"\",IF(OR('Enrollment Form'!$B664<>\"Subscriber\",'Enrollment Form'!$C664=\"ROC\"),\"-\",IF(AND('Enrollment Form'!$B664=\"Subscriber\",'Enrollment Form'!$C664=\"Enroll\",'Enrollment Form'!$AN664<>\"\"),\"Y\",\"N\")))","v":""},{"$f":"IF($B657=\"N\",\"\",IF(OR('Enrollment Form'!$B664<>\"Subscriber\",'Enrollment Form'!$C664=\"ROC\"),\"-\",IF(AND('Enrollment Form'!$B664=\"Subscriber\",'Enrollment Form'!$C664=\"Enroll\",'Enrollment Form'!$AP664<>\"\"),\"Y\",\"N\")))","v":""},{"$f":"IF($B657=\"N\",\"\",IF($Q657=\"-\",\"-\",IF(AND($Q657=\"Y\",'Enrollment Form'!$AP664=\"No\"),\"-\",IF(AND($Q657=\"Y\",'Enrollment Form'!$AP664=\"Yes\",'Enrollment Form'!$AQ664<>\"\"),\"Y\",\"N\"))))","v":""},{"$f":"IF($B657=\"N\",\"\",IF(OR('Enrollment Form'!$B664<>\"Subscriber\",'Enrollment Form'!$C664=\"ROC\"),\"-\",IF(AND('Enrollment Form'!$B664=\"Subscriber\",'Enrollment Form'!$C664=\"Enroll\",'Enrollment Form'!$CO664<>\"\"),\"Y\",\"N\")))","v":""},{"$f":"IF($B657=\"N\",\"\",IF($S657=\"-\",\"-\",IF(AND($S657=\"Y\",'Enrollment Form'!$CO664=\"No\"),\"-\",IF(AND($S657=\"Y\",'Enrollment Form'!$CO664=\"Yes\",'Enrollment Form'!$CP664<>\"\"),\"Y\",\"N\"))))","v":""},{"$f":"IF(OR('Enrollment Form'!$AV664=\"Yes\",'Enrollment Form'!$AV664=\"\"),\"-\",IF(AND('Enrollment Form'!$AV664=\"No\",ISERROR(FIND(\"HMO\",VLOOKUP('Enrollment Form'!G664,'Enrollment Form'!H$11:J$1000,3,FALSE),1))=FALSE,COUNTA('Enrollment Form'!$AW664:$AZ664)=4),\"Y\",\"N\"))","v":"-"},{"$f":"IF($B657=\"N\",\"\",IF('Enrollment Form'!$B664=\"Subscriber\",\"-\",IF(COUNTA('Enrollment Form'!$BE664,'Enrollment Form'!$BG664)=2,\"Y\",\"N\")))","v":""},{"$f":"IF($B657=\"N\",\"\",IF(OR('Enrollment Form'!$AU664=\"\",'Enrollment Form'!$AU664=\"No\"),\"-\",IF(AND('Enrollment Form'!$AU664=\"Yes\",COUNTA('Enrollment Form'!$CK664)=1),\"Y\",\"N\")))","v":""},{"$f":"IF(OR('Enrollment Form'!$CK664=\"\",'Enrollment Form'!$CK664=\"No\"),\"-\",IF(COUNTA('Enrollment Form'!$CM664:$CN664)=2,\"Y\",\"N\"))","v":"-"},{"$f":"IF($B657=\"N\",\"\",IF(COUNTIF('Enrollment Form'!$CZ664:$DO664,\"Other\")=COUNTA('Enrollment Form'!$DF664,'Enrollment Form'!$DA664,'Enrollment Form'!$DK664,'Enrollment Form'!$DP664),\"Y\",\"N\"))","v":""},{"$f":"IF($B657=\"N\",\"\",IF(OR('Enrollment Form'!B664<>\"Subscriber\",'Enrollment Form'!C664=\"ROC\",COUNTIF('Enrollment Form'!AS664:AT664,\"Yes\")>=1),\"-\",IF(AND('Enrollment Form'!C664=\"Enroll\",COUNTIF('Enrollment Form'!AS664:AT664,\"No\")=2,'Enrollment Form'!AU664=\"\"),\"N\",\"Y\")))","v":""},{"$f":"IF(OR(B657=\"N\",'Enrollment Form'!B664<>\"Subscriber\",'Enrollment Form'!C664=\"ROC\",'Enrollment Form'!O664<>\"Multiple of Salary\"),\"-\",IF(COUNTA('Enrollment Form'!T664:U664)<2,\"N\",\"Y\"))","v":"-"},{"$f":"IF(B657=\"N\",\"\",IF(OR('Enrollment Form'!C664=\"ROC\",'Enrollment Form'!B664<>\"Subscriber\",'Enrollment Form'!O664=\"Waive\",'Enrollment Form'!O664=\"\"),\"-\",IF('Enrollment Form'!P664=\"\",\"N\",\"Y\")))","v":""},{"$f":"IF($B657=\"N\",\"\",IF(AND('Enrollment Form'!$C664=\"ROC\",'Enrollment Form'!$DS664<>\"\"),\"Y\",IF(AND('Enrollment Form'!$C664=\"ROC\",'Enrollment Form'!$DS664=\"\"),\"N\",IF(AND('Enrollment Form'!$C664=\"Enroll\",'Enrollment Form'!$B664=\"Subscriber\",'Enrollment Form'!$CQ664=\"No\",'Enrollment Form'!$DS664=\"\"),\"N\",IF(AND('Enrollment Form'!$C664=\"Enroll\",'Enrollment Form'!$B664=\"Subscriber\",'Enrollment Form'!$CQ664=\"Yes\"),\"-\",\"Y\")))))","v":""},{"$f":"IF($B657=\"N\",\"\",IF(AND('Enrollment Form'!$C664=\"ROC\",'Enrollment Form'!$DT664<>\"\"),\"Y\",IF(AND('Enrollment Form'!$C664=\"ROC\",'Enrollment Form'!$DT664=\"\"),\"N\",IF(AND('Enrollment Form'!$C664=\"Enroll\",'Enrollment Form'!$B664=\"Subscriber\",'Enrollment Form'!$CQ664=\"No\",'Enrollment Form'!$DT664=\"\"),\"N\",IF(AND('Enrollment Form'!$C664=\"Enroll\",'Enrollment Form'!$B664=\"Subscriber\",'Enrollment Form'!$CQ664=\"Yes\"),\"-\",\"Y\")))))","v":""},{"$f":"IF('Enrollment Form'!AH664=\"\",\"\",IF(ISERROR(SEARCH(\".\",'Enrollment Form'!AH664,SEARCH(\"@\",'Enrollment Form'!AH664))),\"N\",\"Y\"))","v":""},{"$f":"IF(OR($B657=\"N\",'Enrollment Form'!$G664=\"\"),\"\",IF('Enrollment Form'!$B664<>\"Subscriber\",\"-\",IF(COUNTIF('Enrollment Form'!$AS664:$AT664,\"Yes\")=2,\"N\",\"Y\")))","v":""},{"$f":"IF(OR('Enrollment Form'!$CC664=\"\",'Enrollment Form'!$CC664=\"No\"),\"-\",IF(AND('Enrollment Form'!$CC664=\"Yes\",'Enrollment Form'!$CD664=\"\"),\"N\",\"Y\"))","v":"-"},{"$f":"IF(OR('Enrollment Form'!$CE664=\"\",'Enrollment Form'!$CE664=\"No\"),\"-\",IF(AND('Enrollment Form'!$CE664=\"Yes\",'Enrollment Form'!$CF664=\"\"),\"N\",\"Y\"))","v":"-"},{"$f":"IF(OR('Enrollment Form'!$CG664=\"\",'Enrollment Form'!$CG664=\"No\"),\"-\",IF(AND('Enrollment Form'!$CG664=\"Yes\",'Enrollment Form'!$CH664=\"\"),\"N\",\"Y\"))","v":"-"},{"$f":"IF(OR('Enrollment Form'!$CG664=\"\",'Enrollment Form'!$CG664=\"No\"),\"-\",IF(AND('Enrollment Form'!$CG664=\"Yes\",'Enrollment Form'!$CI664=\"\"),\"N\",\"Y\"))","v":"-"},{"$f":"IF('Enrollment Form'!B664<>\"Subscriber\",\"-\",IF(AND('Enrollment Form'!B664=\"Subscriber\",'Enrollment Form'!C664=\"Enroll\",'Enrollment Form'!AA664=\"\"),\"N\",\"Y\"))","v":"-"},{"$f":"IF(OR('Enrollment Form'!B664=\"Subscriber\",'Enrollment Form'!B664=\"\"),\"-\",IF('Enrollment Form'!BI664=\"\",\"N\",\"Y\"))","v":"-"},{"$f":"IF('Enrollment Form'!B664<>\"Subscriber\",\"-\",IF(AND('Enrollment Form'!B664=\"Subscriber\",'Enrollment Form'!G664=\"\"),\"N\",\"Y\"))","v":"-"},{"$f":"IF('Enrollment Form'!A664=\"\",\"\",IF('Enrollment Form'!B664=\"Subscriber\",\"-\",IF(AND('Enrollment Form'!B664<>\"Subscriber\",'Enrollment Form'!G664='Enrollment Form'!H664),\"N\",\"Y\")))","v":""},0]
[665,{"$f":"IF('Enrollment Form'!$A665<>\"\",\"Y\",\"N\")","v":"N"},{"$f":"IF(AND('Enrollment Form'!$B665=\"\",'Enrollment Form'!$C665<>\"\"),\"N\",IF($B658=\"N\",\"\",\"Y\"))","v":""},{"$f":"IF(OR($B658=\"N\",'Enrollment Form'!G665=\"\"),\"\",IF('Enrollment Form'!$B665<>\"Subscriber\",\"\",IF('Enrollment Form'!$G665='Enrollment Form'!$H665,\"Y\",\"N\")))","v":""},{"$f":"IF($B658=\"N\",\"\",IF(AND(COUNTIFS('Enrollment Form'!$H$11:$H$1000,'Enrollment Form'!$H665,'Enrollment Form'!$B$11:$B$1000,'Enrollment Form'!$B665)>1,'Enrollment Form'!$H665<>\"\"),\"N\",\"Y\"))","v":""},{"$f":"IF($B658=\"N\",\"\",IF(LEN('Enrollment Form'!$Y665)=0,\"\",IF(LEN('Enrollment Form'!$Y665)<>5,\"N\",\"Y\")))","v":""},{"$f":"IF($B658=\"N\",\"\",IF(LEN('Enrollment Form'!$AD665=0),\"\",IF(LEN('Enrollment Form'!$AD665)<>5,\"N\",\"Y\")))","v":""},{"$f":"IF($B658=\"N\",\"\",IF(LEN('Enrollment Form'!$BL665=0),\"\",IF(LEN('Enrollment Form'!$BL665)<>5,\"N\",\"Y\")))","v":""},{"$f":"IF($B658=\"N\",\"\",IF(LEN('Enrollment Form'!$AE665)=0,\"\",IF(LEN('Enrollment Form'!$AE665)<>10,\"N\",\"Y\")))","v":""},{"$f":"IF($B658=\"N\",\"\",IF(LEN('Enrollment Form'!$AF665)=0,\"\",IF(LEN('Enrollment Form'!$AF665)<>10,\"N\",\"Y\")))","v":""},{"$f":"IF('Enrollment Form'!$O665<>\"Graded\",\"-\",IF(AND('Enrollment Form'!$O665=\"Graded\",'Enrollment Form'!$AO665<>\"\"),\"Y\",\"N\"))","v":"-"},{"$f":"IF($B658=\"N\",\"\",IF(OR('Enrollment Form'!$B665<>\"Subscriber\",'Enrollment Form'!$C665=\"ROC\"),\"-\",IF(AND('Enrollment Form'!$B665=\"Subscriber\",'Enrollment Form'!$C665=\"Enroll\",'Enrollment Form'!$AJ665<>\"\"),\"Y\",\"N\")))","v":""},{"$f":"IF($B658=\"N\",\"\",IF(OR('Enrollment Form'!$B665<>\"Subscriber\",'Enrollment Form'!$C665=\"ROC\"),\"-\",IF(AND('Enrollment Form'!$B665=\"Subscriber\",'Enrollment Form'!$C665=\"Enroll\",'Enrollment Form'!$AK665<>\"\"),\"Y\",\"N\")))","v":""},{"$f":"IF($B658=\"N\",\"\",IF(OR('Enrollment Form'!$B665<>\"Subscriber\",'Enrollment Form'!$C665=\"ROC\"),\"-\",IF(AND('Enrollment Form'!$B665=\"Subscriber\",'Enrollment Form'!$C665=\"Enroll\",'Enrollment Form'!$AL665<>\"\"),\"Y\",\"N\")))","v":""},{"$f":"IF($B658=\"N\",\"\",IF(OR('Enrollment Form'!$B665<>\"Subscriber\",'Enrollment Form'!$C665=\"ROC\"),\"-\",IF(AND('Enrollment Form'!$B665=\"Subscriber\",'Enrollment Form'!$C665=\"Enroll\",'Enrollment Form'!$AM665<>\"\"),\"Y\",\"N\")))","v":""},{"$f":"IF($B658=\"N\",\"\",IF(OR('Enrollment Form'!$B665<>\"Subscriber\",'Enrollment Form'!$C665=\"ROC\"),\"-\",IF(AND('Enrollment Form'!$B665=\"Subscriber\",'Enrollment Form'!$C665=\"Enroll\",'Enrollment Form'!$AN665<>\"\"),\"Y\",\"N\")))","v":""},{"$f":"IF($B658=\"N\",\"\",IF(OR('Enrollment Form'!$B665<>\"Subscriber\",'Enrollment Form'!$C665=\"ROC\"),\"-\",IF(AND('Enrollment Form'!$B665=\"Subscriber\",'Enrollment Form'!$C665=\"Enroll\",'Enrollment Form'!$AP665<>\"\"),\"Y\",\"N\")))","v":""},{"$f":"IF($B658=\"N\",\"\",IF($Q658=\"-\",\"-\",IF(AND($Q658=\"Y\",'Enrollment Form'!$AP665=\"No\"),\"-\",IF(AND($Q658=\"Y\",'Enrollment Form'!$AP665=\"Yes\",'Enrollment Form'!$AQ665<>\"\"),\"Y\",\"N\"))))","v":""},{"$f":"IF($B658=\"N\",\"\",IF(OR('Enrollment Form'!$B665<>\"Subscriber\",'Enrollment Form'!$C665=\"ROC\"),\"-\",IF(AND('Enrollment Form'!$B665=\"Subscriber\",'Enrollment Form'!$C665=\"Enroll\",'Enrollment Form'!$CO665<>\"\"),\"Y\",\"N\")))","v":""},{"$f":"IF($B658=\"N\",\"\",IF($S658=\"-\",\"-\",IF(AND($S658=\"Y\",'Enrollment Form'!$CO665=\"No\"),\"-\",IF(AND($S658=\"Y\",'Enrollment Form'!$CO665=\"Yes\",'Enrollment Form'!$CP665<>\"\"),\"Y\",\"N\"))))","v":""},{"$f":"IF(OR('Enrollment Form'!$AV665=\"Yes\",'Enrollment Form'!$AV665=\"\"),\"-\",IF(AND('Enrollment Form'!$AV665=\"No\",ISERROR(FIND(\"HMO\",VLOOKUP('Enrollment Form'!G665,'Enrollment Form'!H$11:J$1000,3,FALSE),1))=FALSE,COUNTA('Enrollment Form'!$AW665:$AZ665)=4),\"Y\",\"N\"))","v":"-"},{"$f":"IF($B658=\"N\",\"\",IF('Enrollment Form'!$B665=\"Subscriber\",\"-\",IF(COUNTA('Enrollment Form'!$BE665,'Enrollment Form'!$BG665)=2,\"Y\",\"N\")))","v":""},{"$f":"IF($B658=\"N\",\"\",IF(OR('Enrollment Form'!$AU665=\"\",'Enrollment Form'!$AU665=\"No\"),\"-\",IF(AND('Enrollment Form'!$AU665=\"Yes\",COUNTA('Enrollment Form'!$CK665)=1),\"Y\",\"N\")))","v":""},{"$f":"IF(OR('Enrollment Form'!$CK665=\"\",'Enrollment Form'!$CK665=\"No\"),\"-\",IF(COUNTA('Enrollment Form'!$CM665:$CN665)=2,\"Y\",\"N\"))","v":"-"},{"$f":"IF($B658=\"N\",\"\",IF(COUNTIF('Enrollment Form'!$CZ665:$DO665,\"Other\")=COUNTA('Enrollment Form'!$DF665,'Enrollment Form'!$DA665,'Enrollment Form'!$DK665,'Enrollment Form'!$DP665),\"Y\",\"N\"))","v":""},{"$f":"IF($B658=\"N\",\"\",IF(OR('Enrollment Form'!B665<>\"Subscriber\",'Enrollment Form'!C665=\"ROC\",COUNTIF('Enrollment Form'!AS665:AT665,\"Yes\")>=1),\"-\",IF(AND('Enrollment Form'!C665=\"Enroll\",COUNTIF('Enrollment Form'!AS665:AT665,\"No\")=2,'Enrollment Form'!AU665=\"\"),\"N\",\"Y\")))","v":""},{"$f":"IF(OR(B658=\"N\",'Enrollment Form'!B665<>\"Subscriber\",'Enrollment Form'!C665=\"ROC\",'Enrollment Form'!O665<>\"Multiple of Salary\"),\"-\",IF(COUNTA('Enrollment Form'!T665:U665)<2,\"N\",\"Y\"))","v":"-"},{"$f":"IF(B658=\"N\",\"\",IF(OR('Enrollment Form'!C665=\"ROC\",'Enrollment Form'!B665<>\"Subscriber\",'Enrollment Form'!O665=\"Waive\",'Enrollment Form'!O665=\"\"),\"-\",IF('Enrollment Form'!P665=\"\",\"N\",\"Y\")))","v":""},{"$f":"IF($B658=\"N\",\"\",IF(AND('Enrollment Form'!$C665=\"ROC\",'Enrollment Form'!$DS665<>\"\"),\"Y\",IF(AND('Enrollment Form'!$C665=\"ROC\",'Enrollment Form'!$DS665=\"\"),\"N\",IF(AND('Enrollment Form'!$C665=\"Enroll\",'Enrollment Form'!$B665=\"Subscriber\",'Enrollment Form'!$CQ665=\"No\",'Enrollment Form'!$DS665=\"\"),\"N\",IF(AND('Enrollment Form'!$C665=\"Enroll\",'Enrollment Form'!$B665=\"Subscriber\",'Enrollment Form'!$CQ665=\"Yes\"),\"-\",\"Y\")))))","v":""},{"$f":"IF($B658=\"N\",\"\",IF(AND('Enrollment Form'!$C665=\"ROC\",'Enrollment Form'!$DT665<>\"\"),\"Y\",IF(AND('Enrollment Form'!$C665=\"ROC\",'Enrollment Form'!$DT665=\"\"),\"N\",IF(AND('Enrollment Form'!$C665=\"Enroll\",'Enrollment Form'!$B665=\"Subscriber\",'Enrollment Form'!$CQ665=\"No\",'Enrollment Form'!$DT665=\"\"),\"N\",IF(AND('Enrollment Form'!$C665=\"Enroll\",'Enrollment Form'!$B665=\"Subscriber\",'Enrollment Form'!$CQ665=\"Yes\"),\"-\",\"Y\")))))","v":""},{"$f":"IF('Enrollment Form'!AH665=\"\",\"\",IF(ISERROR(SEARCH(\".\",'Enrollment Form'!AH665,SEARCH(\"@\",'Enrollment Form'!AH665))),\"N\",\"Y\"))","v":""},{"$f":"IF(OR($B658=\"N\",'Enrollment Form'!$G665=\"\"),\"\",IF('Enrollment Form'!$B665<>\"Subscriber\",\"-\",IF(COUNTIF('Enrollment Form'!$AS665:$AT665,\"Yes\")=2,\"N\",\"Y\")))","v":""},{"$f":"IF(OR('Enrollment Form'!$CC665=\"\",'Enrollment Form'!$CC665=\"No\"),\"-\",IF(AND('Enrollment Form'!$CC665=\"Yes\",'Enrollment Form'!$CD665=\"\"),\"N\",\"Y\"))","v":"-"},{"$f":"IF(OR('Enrollment Form'!$CE665=\"\",'Enrollment Form'!$CE665=\"No\"),\"-\",IF(AND('Enrollment Form'!$CE665=\"Yes\",'Enrollment Form'!$CF665=\"\"),\"N\",\"Y\"))","v":"-"},{"$f":"IF(OR('Enrollment Form'!$CG665=\"\",'Enrollment Form'!$CG665=\"No\"),\"-\",IF(AND('Enrollment Form'!$CG665=\"Yes\",'Enrollment Form'!$CH665=\"\"),\"N\",\"Y\"))","v":"-"},{"$f":"IF(OR('Enrollment Form'!$CG665=\"\",'Enrollment Form'!$CG665=\"No\"),\"-\",IF(AND('Enrollment Form'!$CG665=\"Yes\",'Enrollment Form'!$CI665=\"\"),\"N\",\"Y\"))","v":"-"},{"$f":"IF('Enrollment Form'!B665<>\"Subscriber\",\"-\",IF(AND('Enrollment Form'!B665=\"Subscriber\",'Enrollment Form'!C665=\"Enroll\",'Enrollment Form'!AA665=\"\"),\"N\",\"Y\"))","v":"-"},{"$f":"IF(OR('Enrollment Form'!B665=\"Subscriber\",'Enrollment Form'!B665=\"\"),\"-\",IF('Enrollment Form'!BI665=\"\",\"N\",\"Y\"))","v":"-"},{"$f":"IF('Enrollment Form'!B665<>\"Subscriber\",\"-\",IF(AND('Enrollment Form'!B665=\"Subscriber\",'Enrollment Form'!G665=\"\"),\"N\",\"Y\"))","v":"-"},{"$f":"IF('Enrollment Form'!A665=\"\",\"\",IF('Enrollment Form'!B665=\"Subscriber\",\"-\",IF(AND('Enrollment Form'!B665<>\"Subscriber\",'Enrollment Form'!G665='Enrollment Form'!H665),\"N\",\"Y\")))","v":""},0]
[666,{"$f":"IF('Enrollment Form'!$A666<>\"\",\"Y\",\"N\")","v":"N"},{"$f":"IF(AND('Enrollment Form'!$B666=\"\",'Enrollment Form'!$C666<>\"\"),\"N\",IF($B659=\"N\",\"\",\"Y\"))","v":""},{"$f":"IF(OR($B659=\"N\",'Enrollment Form'!G666=\"\"),\"\",IF('Enrollment Form'!$B666<>\"Subscriber\",\"\",IF('Enrollment Form'!$G666='Enrollment Form'!$H666,\"Y\",\"N\")))","v":""},{"$f":"IF($B659=\"N\",\"\",IF(AND(COUNTIFS('Enrollment Form'!$H$11:$H$1000,'Enrollment Form'!$H666,'Enrollment Form'!$B$11:$B$1000,'Enrollment Form'!$B666)>1,'Enrollment Form'!$H666<>\"\"),\"N\",\"Y\"))","v":""},{"$f":"IF($B659=\"N\",\"\",IF(LEN('Enrollment Form'!$Y666)=0,\"\",IF(LEN('Enrollment Form'!$Y666)<>5,\"N\",\"Y\")))","v":""},{"$f":"IF($B659=\"N\",\"\",IF(LEN('Enrollment Form'!$AD666=0),\"\",IF(LEN('Enrollment Form'!$AD666)<>5,\"N\",\"Y\")))","v":""},{"$f":"IF($B659=\"N\",\"\",IF(LEN('Enrollment Form'!$BL666=0),\"\",IF(LEN('Enrollment Form'!$BL666)<>5,\"N\",\"Y\")))","v":""},{"$f":"IF($B659=\"N\",\"\",IF(LEN('Enrollment Form'!$AE666)=0,\"\",IF(LEN('Enrollment Form'!$AE666)<>10,\"N\",\"Y\")))","v":""},{"$f":"IF($B659=\"N\",\"\",IF(LEN('Enrollment Form'!$AF666)=0,\"\",IF(LEN('Enrollment Form'!$AF666)<>10,\"N\",\"Y\")))","v":""},{"$f":"IF('Enrollment Form'!$O666<>\"Graded\",\"-\",IF(AND('Enrollment Form'!$O666=\"Graded\",'Enrollment Form'!$AO666<>\"\"),\"Y\",\"N\"))","v":"-"},{"$f":"IF($B659=\"N\",\"\",IF(OR('Enrollment Form'!$B666<>\"Subscriber\",'Enrollment Form'!$C666=\"ROC\"),\"-\",IF(AND('Enrollment Form'!$B666=\"Subscriber\",'Enrollment Form'!$C666=\"Enroll\",'Enrollment Form'!$AJ666<>\"\"),\"Y\",\"N\")))","v":""},{"$f":"IF($B659=\"N\",\"\",IF(OR('Enrollment Form'!$B666<>\"Subscriber\",'Enrollment Form'!$C666=\"ROC\"),\"-\",IF(AND('Enrollment Form'!$B666=\"Subscriber\",'Enrollment Form'!$C666=\"Enroll\",'Enrollment Form'!$AK666<>\"\"),\"Y\",\"N\")))","v":""},{"$f":"IF($B659=\"N\",\"\",IF(OR('Enrollment Form'!$B666<>\"Subscriber\",'Enrollment Form'!$C666=\"ROC\"),\"-\",IF(AND('Enrollment Form'!$B666=\"Subscriber\",'Enrollment Form'!$C666=\"Enroll\",'Enrollment Form'!$AL666<>\"\"),\"Y\",\"N\")))","v":""},{"$f":"IF($B659=\"N\",\"\",IF(OR('Enrollment Form'!$B666<>\"Subscriber\",'Enrollment Form'!$C666=\"ROC\"),\"-\",IF(AND('Enrollment Form'!$B666=\"Subscriber\",'Enrollment Form'!$C666=\"Enroll\",'Enrollment Form'!$AM666<>\"\"),\"Y\",\"N\")))","v":""},{"$f":"IF($B659=\"N\",\"\",IF(OR('Enrollment Form'!$B666<>\"Subscriber\",'Enrollment Form'!$C666=\"ROC\"),\"-\",IF(AND('Enrollment Form'!$B666=\"Subscriber\",'Enrollment Form'!$C666=\"Enroll\",'Enrollment Form'!$AN666<>\"\"),\"Y\",\"N\")))","v":""},{"$f":"IF($B659=\"N\",\"\",IF(OR('Enrollment Form'!$B666<>\"Subscriber\",'Enrollment Form'!$C666=\"ROC\"),\"-\",IF(AND('Enrollment Form'!$B666=\"Subscriber\",'Enrollment Form'!$C666=\"Enroll\",'Enrollment Form'!$AP666<>\"\"),\"Y\",\"N\")))","v":""},{"$f":"IF($B659=\"N\",\"\",IF($Q659=\"-\",\"-\",IF(AND($Q659=\"Y\",'Enrollment Form'!$AP666=\"No\"),\"-\",IF(AND($Q659=\"Y\",'Enrollment Form'!$AP666=\"Yes\",'Enrollment Form'!$AQ666<>\"\"),\"Y\",\"N\"))))","v":""},{"$f":"IF($B659=\"N\",\"\",IF(OR('Enrollment Form'!$B666<>\"Subscriber\",'Enrollment Form'!$C666=\"ROC\"),\"-\",IF(AND('Enrollment Form'!$B666=\"Subscriber\",'Enrollment Form'!$C666=\"Enroll\",'Enrollment Form'!$CO666<>\"\"),\"Y\",\"N\")))","v":""},{"$f":"IF($B659=\"N\",\"\",IF($S659=\"-\",\"-\",IF(AND($S659=\"Y\",'Enrollment Form'!$CO666=\"No\"),\"-\",IF(AND($S659=\"Y\",'Enrollment Form'!$CO666=\"Yes\",'Enrollment Form'!$CP666<>\"\"),\"Y\",\"N\"))))","v":""},{"$f":"IF(OR('Enrollment Form'!$AV666=\"Yes\",'Enrollment Form'!$AV666=\"\"),\"-\",IF(AND('Enrollment Form'!$AV666=\"No\",ISERROR(FIND(\"HMO\",VLOOKUP('Enrollment Form'!G666,'Enrollment Form'!H$11:J$1000,3,FALSE),1))=FALSE,COUNTA('Enrollment Form'!$AW666:$AZ666)=4),\"Y\",\"N\"))","v":"-"},{"$f":"IF($B659=\"N\",\"\",IF('Enrollment Form'!$B666=\"Subscriber\",\"-\",IF(COUNTA('Enrollment Form'!$BE666,'Enrollment Form'!$BG666)=2,\"Y\",\"N\")))","v":""},{"$f":"IF($B659=\"N\",\"\",IF(OR('Enrollment Form'!$AU666=\"\",'Enrollment Form'!$AU666=\"No\"),\"-\",IF(AND('Enrollment Form'!$AU666=\"Yes\",COUNTA('Enrollment Form'!$CK666)=1),\"Y\",\"N\")))","v":""},{"$f":"IF(OR('Enrollment Form'!$CK666=\"\",'Enrollment Form'!$CK666=\"No\"),\"-\",IF(COUNTA('Enrollment Form'!$CM666:$CN666)=2,\"Y\",\"N\"))","v":"-"},{"$f":"IF($B659=\"N\",\"\",IF(COUNTIF('Enrollment Form'!$CZ666:$DO666,\"Other\")=COUNTA('Enrollment Form'!$DF666,'Enrollment Form'!$DA666,'Enrollment Form'!$DK666,'Enrollment Form'!$DP666),\"Y\",\"N\"))","v":""},{"$f":"IF($B659=\"N\",\"\",IF(OR('Enrollment Form'!B666<>\"Subscriber\",'Enrollment Form'!C666=\"ROC\",COUNTIF('Enrollment Form'!AS666:AT666,\"Yes\")>=1),\"-\",IF(AND('Enrollment Form'!C666=\"Enroll\",COUNTIF('Enrollment Form'!AS666:AT666,\"No\")=2,'Enrollment Form'!AU666=\"\"),\"N\",\"Y\")))","v":""},{"$f":"IF(OR(B659=\"N\",'Enrollment Form'!B666<>\"Subscriber\",'Enrollment Form'!C666=\"ROC\",'Enrollment Form'!O666<>\"Multiple of Salary\"),\"-\",IF(COUNTA('Enrollment Form'!T666:U666)<2,\"N\",\"Y\"))","v":"-"},{"$f":"IF(B659=\"N\",\"\",IF(OR('Enrollment Form'!C666=\"ROC\",'Enrollment Form'!B666<>\"Subscriber\",'Enrollment Form'!O666=\"Waive\",'Enrollment Form'!O666=\"\"),\"-\",IF('Enrollment Form'!P666=\"\",\"N\",\"Y\")))","v":""},{"$f":"IF($B659=\"N\",\"\",IF(AND('Enrollment Form'!$C666=\"ROC\",'Enrollment Form'!$DS666<>\"\"),\"Y\",IF(AND('Enrollment Form'!$C666=\"ROC\",'Enrollment Form'!$DS666=\"\"),\"N\",IF(AND('Enrollment Form'!$C666=\"Enroll\",'Enrollment Form'!$B666=\"Subscriber\",'Enrollment Form'!$CQ666=\"No\",'Enrollment Form'!$DS666=\"\"),\"N\",IF(AND('Enrollment Form'!$C666=\"Enroll\",'Enrollment Form'!$B666=\"Subscriber\",'Enrollment Form'!$CQ666=\"Yes\"),\"-\",\"Y\")))))","v":""},{"$f":"IF($B659=\"N\",\"\",IF(AND('Enrollment Form'!$C666=\"ROC\",'Enrollment Form'!$DT666<>\"\"),\"Y\",IF(AND('Enrollment Form'!$C666=\"ROC\",'Enrollment Form'!$DT666=\"\"),\"N\",IF(AND('Enrollment Form'!$C666=\"Enroll\",'Enrollment Form'!$B666=\"Subscriber\",'Enrollment Form'!$CQ666=\"No\",'Enrollment Form'!$DT666=\"\"),\"N\",IF(AND('Enrollment Form'!$C666=\"Enroll\",'Enrollment Form'!$B666=\"Subscriber\",'Enrollment Form'!$CQ666=\"Yes\"),\"-\",\"Y\")))))","v":""},{"$f":"IF('Enrollment Form'!AH666=\"\",\"\",IF(ISERROR(SEARCH(\".\",'Enrollment Form'!AH666,SEARCH(\"@\",'Enrollment Form'!AH666))),\"N\",\"Y\"))","v":""},{"$f":"IF(OR($B659=\"N\",'Enrollment Form'!$G666=\"\"),\"\",IF('Enrollment Form'!$B666<>\"Subscriber\",\"-\",IF(COUNTIF('Enrollment Form'!$AS666:$AT666,\"Yes\")=2,\"N\",\"Y\")))","v":""},{"$f":"IF(OR('Enrollment Form'!$CC666=\"\",'Enrollment Form'!$CC666=\"No\"),\"-\",IF(AND('Enrollment Form'!$CC666=\"Yes\",'Enrollment Form'!$CD666=\"\"),\"N\",\"Y\"))","v":"-"},{"$f":"IF(OR('Enrollment Form'!$CE666=\"\",'Enrollment Form'!$CE666=\"No\"),\"-\",IF(AND('Enrollment Form'!$CE666=\"Yes\",'Enrollment Form'!$CF666=\"\"),\"N\",\"Y\"))","v":"-"},{"$f":"IF(OR('Enrollment Form'!$CG666=\"\",'Enrollment Form'!$CG666=\"No\"),\"-\",IF(AND('Enrollment Form'!$CG666=\"Yes\",'Enrollment Form'!$CH666=\"\"),\"N\",\"Y\"))","v":"-"},{"$f":"IF(OR('Enrollment Form'!$CG666=\"\",'Enrollment Form'!$CG666=\"No\"),\"-\",IF(AND('Enrollment Form'!$CG666=\"Yes\",'Enrollment Form'!$CI666=\"\"),\"N\",\"Y\"))","v":"-"},{"$f":"IF('Enrollment Form'!B666<>\"Subscriber\",\"-\",IF(AND('Enrollment Form'!B666=\"Subscriber\",'Enrollment Form'!C666=\"Enroll\",'Enrollment Form'!AA666=\"\"),\"N\",\"Y\"))","v":"-"},{"$f":"IF(OR('Enrollment Form'!B666=\"Subscriber\",'Enrollment Form'!B666=\"\"),\"-\",IF('Enrollment Form'!BI666=\"\",\"N\",\"Y\"))","v":"-"},{"$f":"IF('Enrollment Form'!B666<>\"Subscriber\",\"-\",IF(AND('Enrollment Form'!B666=\"Subscriber\",'Enrollment Form'!G666=\"\"),\"N\",\"Y\"))","v":"-"},{"$f":"IF('Enrollment Form'!A666=\"\",\"\",IF('Enrollment Form'!B666=\"Subscriber\",\"-\",IF(AND('Enrollment Form'!B666<>\"Subscriber\",'Enrollment Form'!G666='Enrollment Form'!H666),\"N\",\"Y\")))","v":""},0]
[667,{"$f":"IF('Enrollment Form'!$A667<>\"\",\"Y\",\"N\")","v":"N"},{"$f":"IF(AND('Enrollment Form'!$B667=\"\",'Enrollment Form'!$C667<>\"\"),\"N\",IF($B660=\"N\",\"\",\"Y\"))","v":""},{"$f":"IF(OR($B660=\"N\",'Enrollment Form'!G667=\"\"),\"\",IF('Enrollment Form'!$B667<>\"Subscriber\",\"\",IF('Enrollment Form'!$G667='Enrollment Form'!$H667,\"Y\",\"N\")))","v":""},{"$f":"IF($B660=\"N\",\"\",IF(AND(COUNTIFS('Enrollment Form'!$H$11:$H$1000,'Enrollment Form'!$H667,'Enrollment Form'!$B$11:$B$1000,'Enrollment Form'!$B667)>1,'Enrollment Form'!$H667<>\"\"),\"N\",\"Y\"))","v":""},{"$f":"IF($B660=\"N\",\"\",IF(LEN('Enrollment Form'!$Y667)=0,\"\",IF(LEN('Enrollment Form'!$Y667)<>5,\"N\",\"Y\")))","v":""},{"$f":"IF($B660=\"N\",\"\",IF(LEN('Enrollment Form'!$AD667=0),\"\",IF(LEN('Enrollment Form'!$AD667)<>5,\"N\",\"Y\")))","v":""},{"$f":"IF($B660=\"N\",\"\",IF(LEN('Enrollment Form'!$BL667=0),\"\",IF(LEN('Enrollment Form'!$BL667)<>5,\"N\",\"Y\")))","v":""},{"$f":"IF($B660=\"N\",\"\",IF(LEN('Enrollment Form'!$AE667)=0,\"\",IF(LEN('Enrollment Form'!$AE667)<>10,\"N\",\"Y\")))","v":""},{"$f":"IF($B660=\"N\",\"\",IF(LEN('Enrollment Form'!$AF667)=0,\"\",IF(LEN('Enrollment Form'!$AF667)<>10,\"N\",\"Y\")))","v":""},{"$f":"IF('Enrollment Form'!$O667<>\"Graded\",\"-\",IF(AND('Enrollment Form'!$O667=\"Graded\",'Enrollment Form'!$AO667<>\"\"),\"Y\",\"N\"))","v":"-"},{"$f":"IF($B660=\"N\",\"\",IF(OR('Enrollment Form'!$B667<>\"Subscriber\",'Enrollment Form'!$C667=\"ROC\"),\"-\",IF(AND('Enrollment Form'!$B667=\"Subscriber\",'Enrollment Form'!$C667=\"Enroll\",'Enrollment Form'!$AJ667<>\"\"),\"Y\",\"N\")))","v":""},{"$f":"IF($B660=\"N\",\"\",IF(OR('Enrollment Form'!$B667<>\"Subscriber\",'Enrollment Form'!$C667=\"ROC\"),\"-\",IF(AND('Enrollment Form'!$B667=\"Subscriber\",'Enrollment Form'!$C667=\"Enroll\",'Enrollment Form'!$AK667<>\"\"),\"Y\",\"N\")))","v":""},{"$f":"IF($B660=\"N\",\"\",IF(OR('Enrollment Form'!$B667<>\"Subscriber\",'Enrollment Form'!$C667=\"ROC\"),\"-\",IF(AND('Enrollment Form'!$B667=\"Subscriber\",'Enrollment Form'!$C667=\"Enroll\",'Enrollment Form'!$AL667<>\"\"),\"Y\",\"N\")))","v":""},{"$f":"IF($B660=\"N\",\"\",IF(OR('Enrollment Form'!$B667<>\"Subscriber\",'Enrollment Form'!$C667=\"ROC\"),\"-\",IF(AND('Enrollment Form'!$B667=\"Subscriber\",'Enrollment Form'!$C667=\"Enroll\",'Enrollment Form'!$AM667<>\"\"),\"Y\",\"N\")))","v":""},{"$f":"IF($B660=\"N\",\"\",IF(OR('Enrollment Form'!$B667<>\"Subscriber\",'Enrollment Form'!$C667=\"ROC\"),\"-\",IF(AND('Enrollment Form'!$B667=\"Subscriber\",'Enrollment Form'!$C667=\"Enroll\",'Enrollment Form'!$AN667<>\"\"),\"Y\",\"N\")))","v":""},{"$f":"IF($B660=\"N\",\"\",IF(OR('Enrollment Form'!$B667<>\"Subscriber\",'Enrollment Form'!$C667=\"ROC\"),\"-\",IF(AND('Enrollment Form'!$B667=\"Subscriber\",'Enrollment Form'!$C667=\"Enroll\",'Enrollment Form'!$AP667<>\"\"),\"Y\",\"N\")))","v":""},{"$f":"IF($B660=\"N\",\"\",IF($Q660=\"-\",\"-\",IF(AND($Q660=\"Y\",'Enrollment Form'!$AP667=\"No\"),\"-\",IF(AND($Q660=\"Y\",'Enrollment Form'!$AP667=\"Yes\",'Enrollment Form'!$AQ667<>\"\"),\"Y\",\"N\"))))","v":""},{"$f":"IF($B660=\"N\",\"\",IF(OR('Enrollment Form'!$B667<>\"Subscriber\",'Enrollment Form'!$C667=\"ROC\"),\"-\",IF(AND('Enrollment Form'!$B667=\"Subscriber\",'Enrollment Form'!$C667=\"Enroll\",'Enrollment Form'!$CO667<>\"\"),\"Y\",\"N\")))","v":""},{"$f":"IF($B660=\"N\",\"\",IF($S660=\"-\",\"-\",IF(AND($S660=\"Y\",'Enrollment Form'!$CO667=\"No\"),\"-\",IF(AND($S660=\"Y\",'Enrollment Form'!$CO667=\"Yes\",'Enrollment Form'!$CP667<>\"\"),\"Y\",\"N\"))))","v":""},{"$f":"IF(OR('Enrollment Form'!$AV667=\"Yes\",'Enrollment Form'!$AV667=\"\"),\"-\",IF(AND('Enrollment Form'!$AV667=\"No\",ISERROR(FIND(\"HMO\",VLOOKUP('Enrollment Form'!G667,'Enrollment Form'!H$11:J$1000,3,FALSE),1))=FALSE,COUNTA('Enrollment Form'!$AW667:$AZ667)=4),\"Y\",\"N\"))","v":"-"},{"$f":"IF($B660=\"N\",\"\",IF('Enrollment Form'!$B667=\"Subscriber\",\"-\",IF(COUNTA('Enrollment Form'!$BE667,'Enrollment Form'!$BG667)=2,\"Y\",\"N\")))","v":""},{"$f":"IF($B660=\"N\",\"\",IF(OR('Enrollment Form'!$AU667=\"\",'Enrollment Form'!$AU667=\"No\"),\"-\",IF(AND('Enrollment Form'!$AU667=\"Yes\",COUNTA('Enrollment Form'!$CK667)=1),\"Y\",\"N\")))","v":""},{"$f":"IF(OR('Enrollment Form'!$CK667=\"\",'Enrollment Form'!$CK667=\"No\"),\"-\",IF(COUNTA('Enrollment Form'!$CM667:$CN667)=2,\"Y\",\"N\"))","v":"-"},{"$f":"IF($B660=\"N\",\"\",IF(COUNTIF('Enrollment Form'!$CZ667:$DO667,\"Other\")=COUNTA('Enrollment Form'!$DF667,'Enrollment Form'!$DA667,'Enrollment Form'!$DK667,'Enrollment Form'!$DP667),\"Y\",\"N\"))","v":""},{"$f":"IF($B660=\"N\",\"\",IF(OR('Enrollment Form'!B667<>\"Subscriber\",'Enrollment Form'!C667=\"ROC\",COUNTIF('Enrollment Form'!AS667:AT667,\"Yes\")>=1),\"-\",IF(AND('Enrollment Form'!C667=\"Enroll\",COUNTIF('Enrollment Form'!AS667:AT667,\"No\")=2,'Enrollment Form'!AU667=\"\"),\"N\",\"Y\")))","v":""},{"$f":"IF(OR(B660=\"N\",'Enrollment Form'!B667<>\"Subscriber\",'Enrollment Form'!C667=\"ROC\",'Enrollment Form'!O667<>\"Multiple of Salary\"),\"-\",IF(COUNTA('Enrollment Form'!T667:U667)<2,\"N\",\"Y\"))","v":"-"},{"$f":"IF(B660=\"N\",\"\",IF(OR('Enrollment Form'!C667=\"ROC\",'Enrollment Form'!B667<>\"Subscriber\",'Enrollment Form'!O667=\"Waive\",'Enrollment Form'!O667=\"\"),\"-\",IF('Enrollment Form'!P667=\"\",\"N\",\"Y\")))","v":""},{"$f":"IF($B660=\"N\",\"\",IF(AND('Enrollment Form'!$C667=\"ROC\",'Enrollment Form'!$DS667<>\"\"),\"Y\",IF(AND('Enrollment Form'!$C667=\"ROC\",'Enrollment Form'!$DS667=\"\"),\"N\",IF(AND('Enrollment Form'!$C667=\"Enroll\",'Enrollment Form'!$B667=\"Subscriber\",'Enrollment Form'!$CQ667=\"No\",'Enrollment Form'!$DS667=\"\"),\"N\",IF(AND('Enrollment Form'!$C667=\"Enroll\",'Enrollment Form'!$B667=\"Subscriber\",'Enrollment Form'!$CQ667=\"Yes\"),\"-\",\"Y\")))))","v":""},{"$f":"IF($B660=\"N\",\"\",IF(AND('Enrollment Form'!$C667=\"ROC\",'Enrollment Form'!$DT667<>\"\"),\"Y\",IF(AND('Enrollment Form'!$C667=\"ROC\",'Enrollment Form'!$DT667=\"\"),\"N\",IF(AND('Enrollment Form'!$C667=\"Enroll\",'Enrollment Form'!$B667=\"Subscriber\",'Enrollment Form'!$CQ667=\"No\",'Enrollment Form'!$DT667=\"\"),\"N\",IF(AND('Enrollment Form'!$C667=\"Enroll\",'Enrollment Form'!$B667=\"Subscriber\",'Enrollment Form'!$CQ667=\"Yes\"),\"-\",\"Y\")))))","v":""},{"$f":"IF('Enrollment Form'!AH667=\"\",\"\",IF(ISERROR(SEARCH(\".\",'Enrollment Form'!AH667,SEARCH(\"@\",'Enrollment Form'!AH667))),\"N\",\"Y\"))","v":""},{"$f":"IF(OR($B660=\"N\",'Enrollment Form'!$G667=\"\"),\"\",IF('Enrollment Form'!$B667<>\"Subscriber\",\"-\",IF(COUNTIF('Enrollment Form'!$AS667:$AT667,\"Yes\")=2,\"N\",\"Y\")))","v":""},{"$f":"IF(OR('Enrollment Form'!$CC667=\"\",'Enrollment Form'!$CC667=\"No\"),\"-\",IF(AND('Enrollment Form'!$CC667=\"Yes\",'Enrollment Form'!$CD667=\"\"),\"N\",\"Y\"))","v":"-"},{"$f":"IF(OR('Enrollment Form'!$CE667=\"\",'Enrollment Form'!$CE667=\"No\"),\"-\",IF(AND('Enrollment Form'!$CE667=\"Yes\",'Enrollment Form'!$CF667=\"\"),\"N\",\"Y\"))","v":"-"},{"$f":"IF(OR('Enrollment Form'!$CG667=\"\",'Enrollment Form'!$CG667=\"No\"),\"-\",IF(AND('Enrollment Form'!$CG667=\"Yes\",'Enrollment Form'!$CH667=\"\"),\"N\",\"Y\"))","v":"-"},{"$f":"IF(OR('Enrollment Form'!$CG667=\"\",'Enrollment Form'!$CG667=\"No\"),\"-\",IF(AND('Enrollment Form'!$CG667=\"Yes\",'Enrollment Form'!$CI667=\"\"),\"N\",\"Y\"))","v":"-"},{"$f":"IF('Enrollment Form'!B667<>\"Subscriber\",\"-\",IF(AND('Enrollment Form'!B667=\"Subscriber\",'Enrollment Form'!C667=\"Enroll\",'Enrollment Form'!AA667=\"\"),\"N\",\"Y\"))","v":"-"},{"$f":"IF(OR('Enrollment Form'!B667=\"Subscriber\",'Enrollment Form'!B667=\"\"),\"-\",IF('Enrollment Form'!BI667=\"\",\"N\",\"Y\"))","v":"-"},{"$f":"IF('Enrollment Form'!B667<>\"Subscriber\",\"-\",IF(AND('Enrollment Form'!B667=\"Subscriber\",'Enrollment Form'!G667=\"\"),\"N\",\"Y\"))","v":"-"},{"$f":"IF('Enrollment Form'!A667=\"\",\"\",IF('Enrollment Form'!B667=\"Subscriber\",\"-\",IF(AND('Enrollment Form'!B667<>\"Subscriber\",'Enrollment Form'!G667='Enrollment Form'!H667),\"N\",\"Y\")))","v":""},0]
[668,{"$f":"IF('Enrollment Form'!$A668<>\"\",\"Y\",\"N\")","v":"N"},{"$f":"IF(AND('Enrollment Form'!$B668=\"\",'Enrollment Form'!$C668<>\"\"),\"N\",IF($B661=\"N\",\"\",\"Y\"))","v":""},{"$f":"IF(OR($B661=\"N\",'Enrollment Form'!G668=\"\"),\"\",IF('Enrollment Form'!$B668<>\"Subscriber\",\"\",IF('Enrollment Form'!$G668='Enrollment Form'!$H668,\"Y\",\"N\")))","v":""},{"$f":"IF($B661=\"N\",\"\",IF(AND(COUNTIFS('Enrollment Form'!$H$11:$H$1000,'Enrollment Form'!$H668,'Enrollment Form'!$B$11:$B$1000,'Enrollment Form'!$B668)>1,'Enrollment Form'!$H668<>\"\"),\"N\",\"Y\"))","v":""},{"$f":"IF($B661=\"N\",\"\",IF(LEN('Enrollment Form'!$Y668)=0,\"\",IF(LEN('Enrollment Form'!$Y668)<>5,\"N\",\"Y\")))","v":""},{"$f":"IF($B661=\"N\",\"\",IF(LEN('Enrollment Form'!$AD668=0),\"\",IF(LEN('Enrollment Form'!$AD668)<>5,\"N\",\"Y\")))","v":""},{"$f":"IF($B661=\"N\",\"\",IF(LEN('Enrollment Form'!$BL668=0),\"\",IF(LEN('Enrollment Form'!$BL668)<>5,\"N\",\"Y\")))","v":""},{"$f":"IF($B661=\"N\",\"\",IF(LEN('Enrollment Form'!$AE668)=0,\"\",IF(LEN('Enrollment Form'!$AE668)<>10,\"N\",\"Y\")))","v":""},{"$f":"IF($B661=\"N\",\"\",IF(LEN('Enrollment Form'!$AF668)=0,\"\",IF(LEN('Enrollment Form'!$AF668)<>10,\"N\",\"Y\")))","v":""},{"$f":"IF('Enrollment Form'!$O668<>\"Graded\",\"-\",IF(AND('Enrollment Form'!$O668=\"Graded\",'Enrollment Form'!$AO668<>\"\"),\"Y\",\"N\"))","v":"-"},{"$f":"IF($B661=\"N\",\"\",IF(OR('Enrollment Form'!$B668<>\"Subscriber\",'Enrollment Form'!$C668=\"ROC\"),\"-\",IF(AND('Enrollment Form'!$B668=\"Subscriber\",'Enrollment Form'!$C668=\"Enroll\",'Enrollment Form'!$AJ668<>\"\"),\"Y\",\"N\")))","v":""},{"$f":"IF($B661=\"N\",\"\",IF(OR('Enrollment Form'!$B668<>\"Subscriber\",'Enrollment Form'!$C668=\"ROC\"),\"-\",IF(AND('Enrollment Form'!$B668=\"Subscriber\",'Enrollment Form'!$C668=\"Enroll\",'Enrollment Form'!$AK668<>\"\"),\"Y\",\"N\")))","v":""},{"$f":"IF($B661=\"N\",\"\",IF(OR('Enrollment Form'!$B668<>\"Subscriber\",'Enrollment Form'!$C668=\"ROC\"),\"-\",IF(AND('Enrollment Form'!$B668=\"Subscriber\",'Enrollment Form'!$C668=\"Enroll\",'Enrollment Form'!$AL668<>\"\"),\"Y\",\"N\")))","v":""},{"$f":"IF($B661=\"N\",\"\",IF(OR('Enrollment Form'!$B668<>\"Subscriber\",'Enrollment Form'!$C668=\"ROC\"),\"-\",IF(AND('Enrollment Form'!$B668=\"Subscriber\",'Enrollment Form'!$C668=\"Enroll\",'Enrollment Form'!$AM668<>\"\"),\"Y\",\"N\")))","v":""},{"$f":"IF($B661=\"N\",\"\",IF(OR('Enrollment Form'!$B668<>\"Subscriber\",'Enrollment Form'!$C668=\"ROC\"),\"-\",IF(AND('Enrollment Form'!$B668=\"Subscriber\",'Enrollment Form'!$C668=\"Enroll\",'Enrollment Form'!$AN668<>\"\"),\"Y\",\"N\")))","v":""},{"$f":"IF($B661=\"N\",\"\",IF(OR('Enrollment Form'!$B668<>\"Subscriber\",'Enrollment Form'!$C668=\"ROC\"),\"-\",IF(AND('Enrollment Form'!$B668=\"Subscriber\",'Enrollment Form'!$C668=\"Enroll\",'Enrollment Form'!$AP668<>\"\"),\"Y\",\"N\")))","v":""},{"$f":"IF($B661=\"N\",\"\",IF($Q661=\"-\",\"-\",IF(AND($Q661=\"Y\",'Enrollment Form'!$AP668=\"No\"),\"-\",IF(AND($Q661=\"Y\",'Enrollment Form'!$AP668=\"Yes\",'Enrollment Form'!$AQ668<>\"\"),\"Y\",\"N\"))))","v":""},{"$f":"IF($B661=\"N\",\"\",IF(OR('Enrollment Form'!$B668<>\"Subscriber\",'Enrollment Form'!$C668=\"ROC\"),\"-\",IF(AND('Enrollment Form'!$B668=\"Subscriber\",'Enrollment Form'!$C668=\"Enroll\",'Enrollment Form'!$CO668<>\"\"),\"Y\",\"N\")))","v":""},{"$f":"IF($B661=\"N\",\"\",IF($S661=\"-\",\"-\",IF(AND($S661=\"Y\",'Enrollment Form'!$CO668=\"No\"),\"-\",IF(AND($S661=\"Y\",'Enrollment Form'!$CO668=\"Yes\",'Enrollment Form'!$CP668<>\"\"),\"Y\",\"N\"))))","v":""},{"$f":"IF(OR('Enrollment Form'!$AV668=\"Yes\",'Enrollment Form'!$AV668=\"\"),\"-\",IF(AND('Enrollment Form'!$AV668=\"No\",ISERROR(FIND(\"HMO\",VLOOKUP('Enrollment Form'!G668,'Enrollment Form'!H$11:J$1000,3,FALSE),1))=FALSE,COUNTA('Enrollment Form'!$AW668:$AZ668)=4),\"Y\",\"N\"))","v":"-"},{"$f":"IF($B661=\"N\",\"\",IF('Enrollment Form'!$B668=\"Subscriber\",\"-\",IF(COUNTA('Enrollment Form'!$BE668,'Enrollment Form'!$BG668)=2,\"Y\",\"N\")))","v":""},{"$f":"IF($B661=\"N\",\"\",IF(OR('Enrollment Form'!$AU668=\"\",'Enrollment Form'!$AU668=\"No\"),\"-\",IF(AND('Enrollment Form'!$AU668=\"Yes\",COUNTA('Enrollment Form'!$CK668)=1),\"Y\",\"N\")))","v":""},{"$f":"IF(OR('Enrollment Form'!$CK668=\"\",'Enrollment Form'!$CK668=\"No\"),\"-\",IF(COUNTA('Enrollment Form'!$CM668:$CN668)=2,\"Y\",\"N\"))","v":"-"},{"$f":"IF($B661=\"N\",\"\",IF(COUNTIF('Enrollment Form'!$CZ668:$DO668,\"Other\")=COUNTA('Enrollment Form'!$DF668,'Enrollment Form'!$DA668,'Enrollment Form'!$DK668,'Enrollment Form'!$DP668),\"Y\",\"N\"))","v":""},{"$f":"IF($B661=\"N\",\"\",IF(OR('Enrollment Form'!B668<>\"Subscriber\",'Enrollment Form'!C668=\"ROC\",COUNTIF('Enrollment Form'!AS668:AT668,\"Yes\")>=1),\"-\",IF(AND('Enrollment Form'!C668=\"Enroll\",COUNTIF('Enrollment Form'!AS668:AT668,\"No\")=2,'Enrollment Form'!AU668=\"\"),\"N\",\"Y\")))","v":""},{"$f":"IF(OR(B661=\"N\",'Enrollment Form'!B668<>\"Subscriber\",'Enrollment Form'!C668=\"ROC\",'Enrollment Form'!O668<>\"Multiple of Salary\"),\"-\",IF(COUNTA('Enrollment Form'!T668:U668)<2,\"N\",\"Y\"))","v":"-"},{"$f":"IF(B661=\"N\",\"\",IF(OR('Enrollment Form'!C668=\"ROC\",'Enrollment Form'!B668<>\"Subscriber\",'Enrollment Form'!O668=\"Waive\",'Enrollment Form'!O668=\"\"),\"-\",IF('Enrollment Form'!P668=\"\",\"N\",\"Y\")))","v":""},{"$f":"IF($B661=\"N\",\"\",IF(AND('Enrollment Form'!$C668=\"ROC\",'Enrollment Form'!$DS668<>\"\"),\"Y\",IF(AND('Enrollment Form'!$C668=\"ROC\",'Enrollment Form'!$DS668=\"\"),\"N\",IF(AND('Enrollment Form'!$C668=\"Enroll\",'Enrollment Form'!$B668=\"Subscriber\",'Enrollment Form'!$CQ668=\"No\",'Enrollment Form'!$DS668=\"\"),\"N\",IF(AND('Enrollment Form'!$C668=\"Enroll\",'Enrollment Form'!$B668=\"Subscriber\",'Enrollment Form'!$CQ668=\"Yes\"),\"-\",\"Y\")))))","v":""},{"$f":"IF($B661=\"N\",\"\",IF(AND('Enrollment Form'!$C668=\"ROC\",'Enrollment Form'!$DT668<>\"\"),\"Y\",IF(AND('Enrollment Form'!$C668=\"ROC\",'Enrollment Form'!$DT668=\"\"),\"N\",IF(AND('Enrollment Form'!$C668=\"Enroll\",'Enrollment Form'!$B668=\"Subscriber\",'Enrollment Form'!$CQ668=\"No\",'Enrollment Form'!$DT668=\"\"),\"N\",IF(AND('Enrollment Form'!$C668=\"Enroll\",'Enrollment Form'!$B668=\"Subscriber\",'Enrollment Form'!$CQ668=\"Yes\"),\"-\",\"Y\")))))","v":""},{"$f":"IF('Enrollment Form'!AH668=\"\",\"\",IF(ISERROR(SEARCH(\".\",'Enrollment Form'!AH668,SEARCH(\"@\",'Enrollment Form'!AH668))),\"N\",\"Y\"))","v":""},{"$f":"IF(OR($B661=\"N\",'Enrollment Form'!$G668=\"\"),\"\",IF('Enrollment Form'!$B668<>\"Subscriber\",\"-\",IF(COUNTIF('Enrollment Form'!$AS668:$AT668,\"Yes\")=2,\"N\",\"Y\")))","v":""},{"$f":"IF(OR('Enrollment Form'!$CC668=\"\",'Enrollment Form'!$CC668=\"No\"),\"-\",IF(AND('Enrollment Form'!$CC668=\"Yes\",'Enrollment Form'!$CD668=\"\"),\"N\",\"Y\"))","v":"-"},{"$f":"IF(OR('Enrollment Form'!$CE668=\"\",'Enrollment Form'!$CE668=\"No\"),\"-\",IF(AND('Enrollment Form'!$CE668=\"Yes\",'Enrollment Form'!$CF668=\"\"),\"N\",\"Y\"))","v":"-"},{"$f":"IF(OR('Enrollment Form'!$CG668=\"\",'Enrollment Form'!$CG668=\"No\"),\"-\",IF(AND('Enrollment Form'!$CG668=\"Yes\",'Enrollment Form'!$CH668=\"\"),\"N\",\"Y\"))","v":"-"},{"$f":"IF(OR('Enrollment Form'!$CG668=\"\",'Enrollment Form'!$CG668=\"No\"),\"-\",IF(AND('Enrollment Form'!$CG668=\"Yes\",'Enrollment Form'!$CI668=\"\"),\"N\",\"Y\"))","v":"-"},{"$f":"IF('Enrollment Form'!B668<>\"Subscriber\",\"-\",IF(AND('Enrollment Form'!B668=\"Subscriber\",'Enrollment Form'!C668=\"Enroll\",'Enrollment Form'!AA668=\"\"),\"N\",\"Y\"))","v":"-"},{"$f":"IF(OR('Enrollment Form'!B668=\"Subscriber\",'Enrollment Form'!B668=\"\"),\"-\",IF('Enrollment Form'!BI668=\"\",\"N\",\"Y\"))","v":"-"},{"$f":"IF('Enrollment Form'!B668<>\"Subscriber\",\"-\",IF(AND('Enrollment Form'!B668=\"Subscriber\",'Enrollment Form'!G668=\"\"),\"N\",\"Y\"))","v":"-"},{"$f":"IF('Enrollment Form'!A668=\"\",\"\",IF('Enrollment Form'!B668=\"Subscriber\",\"-\",IF(AND('Enrollment Form'!B668<>\"Subscriber\",'Enrollment Form'!G668='Enrollment Form'!H668),\"N\",\"Y\")))","v":""},0]
[669,{"$f":"IF('Enrollment Form'!$A669<>\"\",\"Y\",\"N\")","v":"N"},{"$f":"IF(AND('Enrollment Form'!$B669=\"\",'Enrollment Form'!$C669<>\"\"),\"N\",IF($B662=\"N\",\"\",\"Y\"))","v":""},{"$f":"IF(OR($B662=\"N\",'Enrollment Form'!G669=\"\"),\"\",IF('Enrollment Form'!$B669<>\"Subscriber\",\"\",IF('Enrollment Form'!$G669='Enrollment Form'!$H669,\"Y\",\"N\")))","v":""},{"$f":"IF($B662=\"N\",\"\",IF(AND(COUNTIFS('Enrollment Form'!$H$11:$H$1000,'Enrollment Form'!$H669,'Enrollment Form'!$B$11:$B$1000,'Enrollment Form'!$B669)>1,'Enrollment Form'!$H669<>\"\"),\"N\",\"Y\"))","v":""},{"$f":"IF($B662=\"N\",\"\",IF(LEN('Enrollment Form'!$Y669)=0,\"\",IF(LEN('Enrollment Form'!$Y669)<>5,\"N\",\"Y\")))","v":""},{"$f":"IF($B662=\"N\",\"\",IF(LEN('Enrollment Form'!$AD669=0),\"\",IF(LEN('Enrollment Form'!$AD669)<>5,\"N\",\"Y\")))","v":""},{"$f":"IF($B662=\"N\",\"\",IF(LEN('Enrollment Form'!$BL669=0),\"\",IF(LEN('Enrollment Form'!$BL669)<>5,\"N\",\"Y\")))","v":""},{"$f":"IF($B662=\"N\",\"\",IF(LEN('Enrollment Form'!$AE669)=0,\"\",IF(LEN('Enrollment Form'!$AE669)<>10,\"N\",\"Y\")))","v":""},{"$f":"IF($B662=\"N\",\"\",IF(LEN('Enrollment Form'!$AF669)=0,\"\",IF(LEN('Enrollment Form'!$AF669)<>10,\"N\",\"Y\")))","v":""},{"$f":"IF('Enrollment Form'!$O669<>\"Graded\",\"-\",IF(AND('Enrollment Form'!$O669=\"Graded\",'Enrollment Form'!$AO669<>\"\"),\"Y\",\"N\"))","v":"-"},{"$f":"IF($B662=\"N\",\"\",IF(OR('Enrollment Form'!$B669<>\"Subscriber\",'Enrollment Form'!$C669=\"ROC\"),\"-\",IF(AND('Enrollment Form'!$B669=\"Subscriber\",'Enrollment Form'!$C669=\"Enroll\",'Enrollment Form'!$AJ669<>\"\"),\"Y\",\"N\")))","v":""},{"$f":"IF($B662=\"N\",\"\",IF(OR('Enrollment Form'!$B669<>\"Subscriber\",'Enrollment Form'!$C669=\"ROC\"),\"-\",IF(AND('Enrollment Form'!$B669=\"Subscriber\",'Enrollment Form'!$C669=\"Enroll\",'Enrollment Form'!$AK669<>\"\"),\"Y\",\"N\")))","v":""},{"$f":"IF($B662=\"N\",\"\",IF(OR('Enrollment Form'!$B669<>\"Subscriber\",'Enrollment Form'!$C669=\"ROC\"),\"-\",IF(AND('Enrollment Form'!$B669=\"Subscriber\",'Enrollment Form'!$C669=\"Enroll\",'Enrollment Form'!$AL669<>\"\"),\"Y\",\"N\")))","v":""},{"$f":"IF($B662=\"N\",\"\",IF(OR('Enrollment Form'!$B669<>\"Subscriber\",'Enrollment Form'!$C669=\"ROC\"),\"-\",IF(AND('Enrollment Form'!$B669=\"Subscriber\",'Enrollment Form'!$C669=\"Enroll\",'Enrollment Form'!$AM669<>\"\"),\"Y\",\"N\")))","v":""},{"$f":"IF($B662=\"N\",\"\",IF(OR('Enrollment Form'!$B669<>\"Subscriber\",'Enrollment Form'!$C669=\"ROC\"),\"-\",IF(AND('Enrollment Form'!$B669=\"Subscriber\",'Enrollment Form'!$C669=\"Enroll\",'Enrollment Form'!$AN669<>\"\"),\"Y\",\"N\")))","v":""},{"$f":"IF($B662=\"N\",\"\",IF(OR('Enrollment Form'!$B669<>\"Subscriber\",'Enrollment Form'!$C669=\"ROC\"),\"-\",IF(AND('Enrollment Form'!$B669=\"Subscriber\",'Enrollment Form'!$C669=\"Enroll\",'Enrollment Form'!$AP669<>\"\"),\"Y\",\"N\")))","v":""},{"$f":"IF($B662=\"N\",\"\",IF($Q662=\"-\",\"-\",IF(AND($Q662=\"Y\",'Enrollment Form'!$AP669=\"No\"),\"-\",IF(AND($Q662=\"Y\",'Enrollment Form'!$AP669=\"Yes\",'Enrollment Form'!$AQ669<>\"\"),\"Y\",\"N\"))))","v":""},{"$f":"IF($B662=\"N\",\"\",IF(OR('Enrollment Form'!$B669<>\"Subscriber\",'Enrollment Form'!$C669=\"ROC\"),\"-\",IF(AND('Enrollment Form'!$B669=\"Subscriber\",'Enrollment Form'!$C669=\"Enroll\",'Enrollment Form'!$CO669<>\"\"),\"Y\",\"N\")))","v":""},{"$f":"IF($B662=\"N\",\"\",IF($S662=\"-\",\"-\",IF(AND($S662=\"Y\",'Enrollment Form'!$CO669=\"No\"),\"-\",IF(AND($S662=\"Y\",'Enrollment Form'!$CO669=\"Yes\",'Enrollment Form'!$CP669<>\"\"),\"Y\",\"N\"))))","v":""},{"$f":"IF(OR('Enrollment Form'!$AV669=\"Yes\",'Enrollment Form'!$AV669=\"\"),\"-\",IF(AND('Enrollment Form'!$AV669=\"No\",ISERROR(FIND(\"HMO\",VLOOKUP('Enrollment Form'!G669,'Enrollment Form'!H$11:J$1000,3,FALSE),1))=FALSE,COUNTA('Enrollment Form'!$AW669:$AZ669)=4),\"Y\",\"N\"))","v":"-"},{"$f":"IF($B662=\"N\",\"\",IF('Enrollment Form'!$B669=\"Subscriber\",\"-\",IF(COUNTA('Enrollment Form'!$BE669,'Enrollment Form'!$BG669)=2,\"Y\",\"N\")))","v":""},{"$f":"IF($B662=\"N\",\"\",IF(OR('Enrollment Form'!$AU669=\"\",'Enrollment Form'!$AU669=\"No\"),\"-\",IF(AND('Enrollment Form'!$AU669=\"Yes\",COUNTA('Enrollment Form'!$CK669)=1),\"Y\",\"N\")))","v":""},{"$f":"IF(OR('Enrollment Form'!$CK669=\"\",'Enrollment Form'!$CK669=\"No\"),\"-\",IF(COUNTA('Enrollment Form'!$CM669:$CN669)=2,\"Y\",\"N\"))","v":"-"},{"$f":"IF($B662=\"N\",\"\",IF(COUNTIF('Enrollment Form'!$CZ669:$DO669,\"Other\")=COUNTA('Enrollment Form'!$DF669,'Enrollment Form'!$DA669,'Enrollment Form'!$DK669,'Enrollment Form'!$DP669),\"Y\",\"N\"))","v":""},{"$f":"IF($B662=\"N\",\"\",IF(OR('Enrollment Form'!B669<>\"Subscriber\",'Enrollment Form'!C669=\"ROC\",COUNTIF('Enrollment Form'!AS669:AT669,\"Yes\")>=1),\"-\",IF(AND('Enrollment Form'!C669=\"Enroll\",COUNTIF('Enrollment Form'!AS669:AT669,\"No\")=2,'Enrollment Form'!AU669=\"\"),\"N\",\"Y\")))","v":""},{"$f":"IF(OR(B662=\"N\",'Enrollment Form'!B669<>\"Subscriber\",'Enrollment Form'!C669=\"ROC\",'Enrollment Form'!O669<>\"Multiple of Salary\"),\"-\",IF(COUNTA('Enrollment Form'!T669:U669)<2,\"N\",\"Y\"))","v":"-"},{"$f":"IF(B662=\"N\",\"\",IF(OR('Enrollment Form'!C669=\"ROC\",'Enrollment Form'!B669<>\"Subscriber\",'Enrollment Form'!O669=\"Waive\",'Enrollment Form'!O669=\"\"),\"-\",IF('Enrollment Form'!P669=\"\",\"N\",\"Y\")))","v":""},{"$f":"IF($B662=\"N\",\"\",IF(AND('Enrollment Form'!$C669=\"ROC\",'Enrollment Form'!$DS669<>\"\"),\"Y\",IF(AND('Enrollment Form'!$C669=\"ROC\",'Enrollment Form'!$DS669=\"\"),\"N\",IF(AND('Enrollment Form'!$C669=\"Enroll\",'Enrollment Form'!$B669=\"Subscriber\",'Enrollment Form'!$CQ669=\"No\",'Enrollment Form'!$DS669=\"\"),\"N\",IF(AND('Enrollment Form'!$C669=\"Enroll\",'Enrollment Form'!$B669=\"Subscriber\",'Enrollment Form'!$CQ669=\"Yes\"),\"-\",\"Y\")))))","v":""},{"$f":"IF($B662=\"N\",\"\",IF(AND('Enrollment Form'!$C669=\"ROC\",'Enrollment Form'!$DT669<>\"\"),\"Y\",IF(AND('Enrollment Form'!$C669=\"ROC\",'Enrollment Form'!$DT669=\"\"),\"N\",IF(AND('Enrollment Form'!$C669=\"Enroll\",'Enrollment Form'!$B669=\"Subscriber\",'Enrollment Form'!$CQ669=\"No\",'Enrollment Form'!$DT669=\"\"),\"N\",IF(AND('Enrollment Form'!$C669=\"Enroll\",'Enrollment Form'!$B669=\"Subscriber\",'Enrollment Form'!$CQ669=\"Yes\"),\"-\",\"Y\")))))","v":""},{"$f":"IF('Enrollment Form'!AH669=\"\",\"\",IF(ISERROR(SEARCH(\".\",'Enrollment Form'!AH669,SEARCH(\"@\",'Enrollment Form'!AH669))),\"N\",\"Y\"))","v":""},{"$f":"IF(OR($B662=\"N\",'Enrollment Form'!$G669=\"\"),\"\",IF('Enrollment Form'!$B669<>\"Subscriber\",\"-\",IF(COUNTIF('Enrollment Form'!$AS669:$AT669,\"Yes\")=2,\"N\",\"Y\")))","v":""},{"$f":"IF(OR('Enrollment Form'!$CC669=\"\",'Enrollment Form'!$CC669=\"No\"),\"-\",IF(AND('Enrollment Form'!$CC669=\"Yes\",'Enrollment Form'!$CD669=\"\"),\"N\",\"Y\"))","v":"-"},{"$f":"IF(OR('Enrollment Form'!$CE669=\"\",'Enrollment Form'!$CE669=\"No\"),\"-\",IF(AND('Enrollment Form'!$CE669=\"Yes\",'Enrollment Form'!$CF669=\"\"),\"N\",\"Y\"))","v":"-"},{"$f":"IF(OR('Enrollment Form'!$CG669=\"\",'Enrollment Form'!$CG669=\"No\"),\"-\",IF(AND('Enrollment Form'!$CG669=\"Yes\",'Enrollment Form'!$CH669=\"\"),\"N\",\"Y\"))","v":"-"},{"$f":"IF(OR('Enrollment Form'!$CG669=\"\",'Enrollment Form'!$CG669=\"No\"),\"-\",IF(AND('Enrollment Form'!$CG669=\"Yes\",'Enrollment Form'!$CI669=\"\"),\"N\",\"Y\"))","v":"-"},{"$f":"IF('Enrollment Form'!B669<>\"Subscriber\",\"-\",IF(AND('Enrollment Form'!B669=\"Subscriber\",'Enrollment Form'!C669=\"Enroll\",'Enrollment Form'!AA669=\"\"),\"N\",\"Y\"))","v":"-"},{"$f":"IF(OR('Enrollment Form'!B669=\"Subscriber\",'Enrollment Form'!B669=\"\"),\"-\",IF('Enrollment Form'!BI669=\"\",\"N\",\"Y\"))","v":"-"},{"$f":"IF('Enrollment Form'!B669<>\"Subscriber\",\"-\",IF(AND('Enrollment Form'!B669=\"Subscriber\",'Enrollment Form'!G669=\"\"),\"N\",\"Y\"))","v":"-"},{"$f":"IF('Enrollment Form'!A669=\"\",\"\",IF('Enrollment Form'!B669=\"Subscriber\",\"-\",IF(AND('Enrollment Form'!B669<>\"Subscriber\",'Enrollment Form'!G669='Enrollment Form'!H669),\"N\",\"Y\")))","v":""},0]
[670,{"$f":"IF('Enrollment Form'!$A670<>\"\",\"Y\",\"N\")","v":"N"},{"$f":"IF(AND('Enrollment Form'!$B670=\"\",'Enrollment Form'!$C670<>\"\"),\"N\",IF($B663=\"N\",\"\",\"Y\"))","v":""},{"$f":"IF(OR($B663=\"N\",'Enrollment Form'!G670=\"\"),\"\",IF('Enrollment Form'!$B670<>\"Subscriber\",\"\",IF('Enrollment Form'!$G670='Enrollment Form'!$H670,\"Y\",\"N\")))","v":""},{"$f":"IF($B663=\"N\",\"\",IF(AND(COUNTIFS('Enrollment Form'!$H$11:$H$1000,'Enrollment Form'!$H670,'Enrollment Form'!$B$11:$B$1000,'Enrollment Form'!$B670)>1,'Enrollment Form'!$H670<>\"\"),\"N\",\"Y\"))","v":""},{"$f":"IF($B663=\"N\",\"\",IF(LEN('Enrollment Form'!$Y670)=0,\"\",IF(LEN('Enrollment Form'!$Y670)<>5,\"N\",\"Y\")))","v":""},{"$f":"IF($B663=\"N\",\"\",IF(LEN('Enrollment Form'!$AD670=0),\"\",IF(LEN('Enrollment Form'!$AD670)<>5,\"N\",\"Y\")))","v":""},{"$f":"IF($B663=\"N\",\"\",IF(LEN('Enrollment Form'!$BL670=0),\"\",IF(LEN('Enrollment Form'!$BL670)<>5,\"N\",\"Y\")))","v":""},{"$f":"IF($B663=\"N\",\"\",IF(LEN('Enrollment Form'!$AE670)=0,\"\",IF(LEN('Enrollment Form'!$AE670)<>10,\"N\",\"Y\")))","v":""},{"$f":"IF($B663=\"N\",\"\",IF(LEN('Enrollment Form'!$AF670)=0,\"\",IF(LEN('Enrollment Form'!$AF670)<>10,\"N\",\"Y\")))","v":""},{"$f":"IF('Enrollment Form'!$O670<>\"Graded\",\"-\",IF(AND('Enrollment Form'!$O670=\"Graded\",'Enrollment Form'!$AO670<>\"\"),\"Y\",\"N\"))","v":"-"},{"$f":"IF($B663=\"N\",\"\",IF(OR('Enrollment Form'!$B670<>\"Subscriber\",'Enrollment Form'!$C670=\"ROC\"),\"-\",IF(AND('Enrollment Form'!$B670=\"Subscriber\",'Enrollment Form'!$C670=\"Enroll\",'Enrollment Form'!$AJ670<>\"\"),\"Y\",\"N\")))","v":""},{"$f":"IF($B663=\"N\",\"\",IF(OR('Enrollment Form'!$B670<>\"Subscriber\",'Enrollment Form'!$C670=\"ROC\"),\"-\",IF(AND('Enrollment Form'!$B670=\"Subscriber\",'Enrollment Form'!$C670=\"Enroll\",'Enrollment Form'!$AK670<>\"\"),\"Y\",\"N\")))","v":""},{"$f":"IF($B663=\"N\",\"\",IF(OR('Enrollment Form'!$B670<>\"Subscriber\",'Enrollment Form'!$C670=\"ROC\"),\"-\",IF(AND('Enrollment Form'!$B670=\"Subscriber\",'Enrollment Form'!$C670=\"Enroll\",'Enrollment Form'!$AL670<>\"\"),\"Y\",\"N\")))","v":""},{"$f":"IF($B663=\"N\",\"\",IF(OR('Enrollment Form'!$B670<>\"Subscriber\",'Enrollment Form'!$C670=\"ROC\"),\"-\",IF(AND('Enrollment Form'!$B670=\"Subscriber\",'Enrollment Form'!$C670=\"Enroll\",'Enrollment Form'!$AM670<>\"\"),\"Y\",\"N\")))","v":""},{"$f":"IF($B663=\"N\",\"\",IF(OR('Enrollment Form'!$B670<>\"Subscriber\",'Enrollment Form'!$C670=\"ROC\"),\"-\",IF(AND('Enrollment Form'!$B670=\"Subscriber\",'Enrollment Form'!$C670=\"Enroll\",'Enrollment Form'!$AN670<>\"\"),\"Y\",\"N\")))","v":""},{"$f":"IF($B663=\"N\",\"\",IF(OR('Enrollment Form'!$B670<>\"Subscriber\",'Enrollment Form'!$C670=\"ROC\"),\"-\",IF(AND('Enrollment Form'!$B670=\"Subscriber\",'Enrollment Form'!$C670=\"Enroll\",'Enrollment Form'!$AP670<>\"\"),\"Y\",\"N\")))","v":""},{"$f":"IF($B663=\"N\",\"\",IF($Q663=\"-\",\"-\",IF(AND($Q663=\"Y\",'Enrollment Form'!$AP670=\"No\"),\"-\",IF(AND($Q663=\"Y\",'Enrollment Form'!$AP670=\"Yes\",'Enrollment Form'!$AQ670<>\"\"),\"Y\",\"N\"))))","v":""},{"$f":"IF($B663=\"N\",\"\",IF(OR('Enrollment Form'!$B670<>\"Subscriber\",'Enrollment Form'!$C670=\"ROC\"),\"-\",IF(AND('Enrollment Form'!$B670=\"Subscriber\",'Enrollment Form'!$C670=\"Enroll\",'Enrollment Form'!$CO670<>\"\"),\"Y\",\"N\")))","v":""},{"$f":"IF($B663=\"N\",\"\",IF($S663=\"-\",\"-\",IF(AND($S663=\"Y\",'Enrollment Form'!$CO670=\"No\"),\"-\",IF(AND($S663=\"Y\",'Enrollment Form'!$CO670=\"Yes\",'Enrollment Form'!$CP670<>\"\"),\"Y\",\"N\"))))","v":""},{"$f":"IF(OR('Enrollment Form'!$AV670=\"Yes\",'Enrollment Form'!$AV670=\"\"),\"-\",IF(AND('Enrollment Form'!$AV670=\"No\",ISERROR(FIND(\"HMO\",VLOOKUP('Enrollment Form'!G670,'Enrollment Form'!H$11:J$1000,3,FALSE),1))=FALSE,COUNTA('Enrollment Form'!$AW670:$AZ670)=4),\"Y\",\"N\"))","v":"-"},{"$f":"IF($B663=\"N\",\"\",IF('Enrollment Form'!$B670=\"Subscriber\",\"-\",IF(COUNTA('Enrollment Form'!$BE670,'Enrollment Form'!$BG670)=2,\"Y\",\"N\")))","v":""},{"$f":"IF($B663=\"N\",\"\",IF(OR('Enrollment Form'!$AU670=\"\",'Enrollment Form'!$AU670=\"No\"),\"-\",IF(AND('Enrollment Form'!$AU670=\"Yes\",COUNTA('Enrollment Form'!$CK670)=1),\"Y\",\"N\")))","v":""},{"$f":"IF(OR('Enrollment Form'!$CK670=\"\",'Enrollment Form'!$CK670=\"No\"),\"-\",IF(COUNTA('Enrollment Form'!$CM670:$CN670)=2,\"Y\",\"N\"))","v":"-"},{"$f":"IF($B663=\"N\",\"\",IF(COUNTIF('Enrollment Form'!$CZ670:$DO670,\"Other\")=COUNTA('Enrollment Form'!$DF670,'Enrollment Form'!$DA670,'Enrollment Form'!$DK670,'Enrollment Form'!$DP670),\"Y\",\"N\"))","v":""},{"$f":"IF($B663=\"N\",\"\",IF(OR('Enrollment Form'!B670<>\"Subscriber\",'Enrollment Form'!C670=\"ROC\",COUNTIF('Enrollment Form'!AS670:AT670,\"Yes\")>=1),\"-\",IF(AND('Enrollment Form'!C670=\"Enroll\",COUNTIF('Enrollment Form'!AS670:AT670,\"No\")=2,'Enrollment Form'!AU670=\"\"),\"N\",\"Y\")))","v":""},{"$f":"IF(OR(B663=\"N\",'Enrollment Form'!B670<>\"Subscriber\",'Enrollment Form'!C670=\"ROC\",'Enrollment Form'!O670<>\"Multiple of Salary\"),\"-\",IF(COUNTA('Enrollment Form'!T670:U670)<2,\"N\",\"Y\"))","v":"-"},{"$f":"IF(B663=\"N\",\"\",IF(OR('Enrollment Form'!C670=\"ROC\",'Enrollment Form'!B670<>\"Subscriber\",'Enrollment Form'!O670=\"Waive\",'Enrollment Form'!O670=\"\"),\"-\",IF('Enrollment Form'!P670=\"\",\"N\",\"Y\")))","v":""},{"$f":"IF($B663=\"N\",\"\",IF(AND('Enrollment Form'!$C670=\"ROC\",'Enrollment Form'!$DS670<>\"\"),\"Y\",IF(AND('Enrollment Form'!$C670=\"ROC\",'Enrollment Form'!$DS670=\"\"),\"N\",IF(AND('Enrollment Form'!$C670=\"Enroll\",'Enrollment Form'!$B670=\"Subscriber\",'Enrollment Form'!$CQ670=\"No\",'Enrollment Form'!$DS670=\"\"),\"N\",IF(AND('Enrollment Form'!$C670=\"Enroll\",'Enrollment Form'!$B670=\"Subscriber\",'Enrollment Form'!$CQ670=\"Yes\"),\"-\",\"Y\")))))","v":""},{"$f":"IF($B663=\"N\",\"\",IF(AND('Enrollment Form'!$C670=\"ROC\",'Enrollment Form'!$DT670<>\"\"),\"Y\",IF(AND('Enrollment Form'!$C670=\"ROC\",'Enrollment Form'!$DT670=\"\"),\"N\",IF(AND('Enrollment Form'!$C670=\"Enroll\",'Enrollment Form'!$B670=\"Subscriber\",'Enrollment Form'!$CQ670=\"No\",'Enrollment Form'!$DT670=\"\"),\"N\",IF(AND('Enrollment Form'!$C670=\"Enroll\",'Enrollment Form'!$B670=\"Subscriber\",'Enrollment Form'!$CQ670=\"Yes\"),\"-\",\"Y\")))))","v":""},{"$f":"IF('Enrollment Form'!AH670=\"\",\"\",IF(ISERROR(SEARCH(\".\",'Enrollment Form'!AH670,SEARCH(\"@\",'Enrollment Form'!AH670))),\"N\",\"Y\"))","v":""},{"$f":"IF(OR($B663=\"N\",'Enrollment Form'!$G670=\"\"),\"\",IF('Enrollment Form'!$B670<>\"Subscriber\",\"-\",IF(COUNTIF('Enrollment Form'!$AS670:$AT670,\"Yes\")=2,\"N\",\"Y\")))","v":""},{"$f":"IF(OR('Enrollment Form'!$CC670=\"\",'Enrollment Form'!$CC670=\"No\"),\"-\",IF(AND('Enrollment Form'!$CC670=\"Yes\",'Enrollment Form'!$CD670=\"\"),\"N\",\"Y\"))","v":"-"},{"$f":"IF(OR('Enrollment Form'!$CE670=\"\",'Enrollment Form'!$CE670=\"No\"),\"-\",IF(AND('Enrollment Form'!$CE670=\"Yes\",'Enrollment Form'!$CF670=\"\"),\"N\",\"Y\"))","v":"-"},{"$f":"IF(OR('Enrollment Form'!$CG670=\"\",'Enrollment Form'!$CG670=\"No\"),\"-\",IF(AND('Enrollment Form'!$CG670=\"Yes\",'Enrollment Form'!$CH670=\"\"),\"N\",\"Y\"))","v":"-"},{"$f":"IF(OR('Enrollment Form'!$CG670=\"\",'Enrollment Form'!$CG670=\"No\"),\"-\",IF(AND('Enrollment Form'!$CG670=\"Yes\",'Enrollment Form'!$CI670=\"\"),\"N\",\"Y\"))","v":"-"},{"$f":"IF('Enrollment Form'!B670<>\"Subscriber\",\"-\",IF(AND('Enrollment Form'!B670=\"Subscriber\",'Enrollment Form'!C670=\"Enroll\",'Enrollment Form'!AA670=\"\"),\"N\",\"Y\"))","v":"-"},{"$f":"IF(OR('Enrollment Form'!B670=\"Subscriber\",'Enrollment Form'!B670=\"\"),\"-\",IF('Enrollment Form'!BI670=\"\",\"N\",\"Y\"))","v":"-"},{"$f":"IF('Enrollment Form'!B670<>\"Subscriber\",\"-\",IF(AND('Enrollment Form'!B670=\"Subscriber\",'Enrollment Form'!G670=\"\"),\"N\",\"Y\"))","v":"-"},{"$f":"IF('Enrollment Form'!A670=\"\",\"\",IF('Enrollment Form'!B670=\"Subscriber\",\"-\",IF(AND('Enrollment Form'!B670<>\"Subscriber\",'Enrollment Form'!G670='Enrollment Form'!H670),\"N\",\"Y\")))","v":""},0]
[671,{"$f":"IF('Enrollment Form'!$A671<>\"\",\"Y\",\"N\")","v":"N"},{"$f":"IF(AND('Enrollment Form'!$B671=\"\",'Enrollment Form'!$C671<>\"\"),\"N\",IF($B664=\"N\",\"\",\"Y\"))","v":""},{"$f":"IF(OR($B664=\"N\",'Enrollment Form'!G671=\"\"),\"\",IF('Enrollment Form'!$B671<>\"Subscriber\",\"\",IF('Enrollment Form'!$G671='Enrollment Form'!$H671,\"Y\",\"N\")))","v":""},{"$f":"IF($B664=\"N\",\"\",IF(AND(COUNTIFS('Enrollment Form'!$H$11:$H$1000,'Enrollment Form'!$H671,'Enrollment Form'!$B$11:$B$1000,'Enrollment Form'!$B671)>1,'Enrollment Form'!$H671<>\"\"),\"N\",\"Y\"))","v":""},{"$f":"IF($B664=\"N\",\"\",IF(LEN('Enrollment Form'!$Y671)=0,\"\",IF(LEN('Enrollment Form'!$Y671)<>5,\"N\",\"Y\")))","v":""},{"$f":"IF($B664=\"N\",\"\",IF(LEN('Enrollment Form'!$AD671=0),\"\",IF(LEN('Enrollment Form'!$AD671)<>5,\"N\",\"Y\")))","v":""},{"$f":"IF($B664=\"N\",\"\",IF(LEN('Enrollment Form'!$BL671=0),\"\",IF(LEN('Enrollment Form'!$BL671)<>5,\"N\",\"Y\")))","v":""},{"$f":"IF($B664=\"N\",\"\",IF(LEN('Enrollment Form'!$AE671)=0,\"\",IF(LEN('Enrollment Form'!$AE671)<>10,\"N\",\"Y\")))","v":""},{"$f":"IF($B664=\"N\",\"\",IF(LEN('Enrollment Form'!$AF671)=0,\"\",IF(LEN('Enrollment Form'!$AF671)<>10,\"N\",\"Y\")))","v":""},{"$f":"IF('Enrollment Form'!$O671<>\"Graded\",\"-\",IF(AND('Enrollment Form'!$O671=\"Graded\",'Enrollment Form'!$AO671<>\"\"),\"Y\",\"N\"))","v":"-"},{"$f":"IF($B664=\"N\",\"\",IF(OR('Enrollment Form'!$B671<>\"Subscriber\",'Enrollment Form'!$C671=\"ROC\"),\"-\",IF(AND('Enrollment Form'!$B671=\"Subscriber\",'Enrollment Form'!$C671=\"Enroll\",'Enrollment Form'!$AJ671<>\"\"),\"Y\",\"N\")))","v":""},{"$f":"IF($B664=\"N\",\"\",IF(OR('Enrollment Form'!$B671<>\"Subscriber\",'Enrollment Form'!$C671=\"ROC\"),\"-\",IF(AND('Enrollment Form'!$B671=\"Subscriber\",'Enrollment Form'!$C671=\"Enroll\",'Enrollment Form'!$AK671<>\"\"),\"Y\",\"N\")))","v":""},{"$f":"IF($B664=\"N\",\"\",IF(OR('Enrollment Form'!$B671<>\"Subscriber\",'Enrollment Form'!$C671=\"ROC\"),\"-\",IF(AND('Enrollment Form'!$B671=\"Subscriber\",'Enrollment Form'!$C671=\"Enroll\",'Enrollment Form'!$AL671<>\"\"),\"Y\",\"N\")))","v":""},{"$f":"IF($B664=\"N\",\"\",IF(OR('Enrollment Form'!$B671<>\"Subscriber\",'Enrollment Form'!$C671=\"ROC\"),\"-\",IF(AND('Enrollment Form'!$B671=\"Subscriber\",'Enrollment Form'!$C671=\"Enroll\",'Enrollment Form'!$AM671<>\"\"),\"Y\",\"N\")))","v":""},{"$f":"IF($B664=\"N\",\"\",IF(OR('Enrollment Form'!$B671<>\"Subscriber\",'Enrollment Form'!$C671=\"ROC\"),\"-\",IF(AND('Enrollment Form'!$B671=\"Subscriber\",'Enrollment Form'!$C671=\"Enroll\",'Enrollment Form'!$AN671<>\"\"),\"Y\",\"N\")))","v":""},{"$f":"IF($B664=\"N\",\"\",IF(OR('Enrollment Form'!$B671<>\"Subscriber\",'Enrollment Form'!$C671=\"ROC\"),\"-\",IF(AND('Enrollment Form'!$B671=\"Subscriber\",'Enrollment Form'!$C671=\"Enroll\",'Enrollment Form'!$AP671<>\"\"),\"Y\",\"N\")))","v":""},{"$f":"IF($B664=\"N\",\"\",IF($Q664=\"-\",\"-\",IF(AND($Q664=\"Y\",'Enrollment Form'!$AP671=\"No\"),\"-\",IF(AND($Q664=\"Y\",'Enrollment Form'!$AP671=\"Yes\",'Enrollment Form'!$AQ671<>\"\"),\"Y\",\"N\"))))","v":""},{"$f":"IF($B664=\"N\",\"\",IF(OR('Enrollment Form'!$B671<>\"Subscriber\",'Enrollment Form'!$C671=\"ROC\"),\"-\",IF(AND('Enrollment Form'!$B671=\"Subscriber\",'Enrollment Form'!$C671=\"Enroll\",'Enrollment Form'!$CO671<>\"\"),\"Y\",\"N\")))","v":""},{"$f":"IF($B664=\"N\",\"\",IF($S664=\"-\",\"-\",IF(AND($S664=\"Y\",'Enrollment Form'!$CO671=\"No\"),\"-\",IF(AND($S664=\"Y\",'Enrollment Form'!$CO671=\"Yes\",'Enrollment Form'!$CP671<>\"\"),\"Y\",\"N\"))))","v":""},{"$f":"IF(OR('Enrollment Form'!$AV671=\"Yes\",'Enrollment Form'!$AV671=\"\"),\"-\",IF(AND('Enrollment Form'!$AV671=\"No\",ISERROR(FIND(\"HMO\",VLOOKUP('Enrollment Form'!G671,'Enrollment Form'!H$11:J$1000,3,FALSE),1))=FALSE,COUNTA('Enrollment Form'!$AW671:$AZ671)=4),\"Y\",\"N\"))","v":"-"},{"$f":"IF($B664=\"N\",\"\",IF('Enrollment Form'!$B671=\"Subscriber\",\"-\",IF(COUNTA('Enrollment Form'!$BE671,'Enrollment Form'!$BG671)=2,\"Y\",\"N\")))","v":""},{"$f":"IF($B664=\"N\",\"\",IF(OR('Enrollment Form'!$AU671=\"\",'Enrollment Form'!$AU671=\"No\"),\"-\",IF(AND('Enrollment Form'!$AU671=\"Yes\",COUNTA('Enrollment Form'!$CK671)=1),\"Y\",\"N\")))","v":""},{"$f":"IF(OR('Enrollment Form'!$CK671=\"\",'Enrollment Form'!$CK671=\"No\"),\"-\",IF(COUNTA('Enrollment Form'!$CM671:$CN671)=2,\"Y\",\"N\"))","v":"-"},{"$f":"IF($B664=\"N\",\"\",IF(COUNTIF('Enrollment Form'!$CZ671:$DO671,\"Other\")=COUNTA('Enrollment Form'!$DF671,'Enrollment Form'!$DA671,'Enrollment Form'!$DK671,'Enrollment Form'!$DP671),\"Y\",\"N\"))","v":""},{"$f":"IF($B664=\"N\",\"\",IF(OR('Enrollment Form'!B671<>\"Subscriber\",'Enrollment Form'!C671=\"ROC\",COUNTIF('Enrollment Form'!AS671:AT671,\"Yes\")>=1),\"-\",IF(AND('Enrollment Form'!C671=\"Enroll\",COUNTIF('Enrollment Form'!AS671:AT671,\"No\")=2,'Enrollment Form'!AU671=\"\"),\"N\",\"Y\")))","v":""},{"$f":"IF(OR(B664=\"N\",'Enrollment Form'!B671<>\"Subscriber\",'Enrollment Form'!C671=\"ROC\",'Enrollment Form'!O671<>\"Multiple of Salary\"),\"-\",IF(COUNTA('Enrollment Form'!T671:U671)<2,\"N\",\"Y\"))","v":"-"},{"$f":"IF(B664=\"N\",\"\",IF(OR('Enrollment Form'!C671=\"ROC\",'Enrollment Form'!B671<>\"Subscriber\",'Enrollment Form'!O671=\"Waive\",'Enrollment Form'!O671=\"\"),\"-\",IF('Enrollment Form'!P671=\"\",\"N\",\"Y\")))","v":""},{"$f":"IF($B664=\"N\",\"\",IF(AND('Enrollment Form'!$C671=\"ROC\",'Enrollment Form'!$DS671<>\"\"),\"Y\",IF(AND('Enrollment Form'!$C671=\"ROC\",'Enrollment Form'!$DS671=\"\"),\"N\",IF(AND('Enrollment Form'!$C671=\"Enroll\",'Enrollment Form'!$B671=\"Subscriber\",'Enrollment Form'!$CQ671=\"No\",'Enrollment Form'!$DS671=\"\"),\"N\",IF(AND('Enrollment Form'!$C671=\"Enroll\",'Enrollment Form'!$B671=\"Subscriber\",'Enrollment Form'!$CQ671=\"Yes\"),\"-\",\"Y\")))))","v":""},{"$f":"IF($B664=\"N\",\"\",IF(AND('Enrollment Form'!$C671=\"ROC\",'Enrollment Form'!$DT671<>\"\"),\"Y\",IF(AND('Enrollment Form'!$C671=\"ROC\",'Enrollment Form'!$DT671=\"\"),\"N\",IF(AND('Enrollment Form'!$C671=\"Enroll\",'Enrollment Form'!$B671=\"Subscriber\",'Enrollment Form'!$CQ671=\"No\",'Enrollment Form'!$DT671=\"\"),\"N\",IF(AND('Enrollment Form'!$C671=\"Enroll\",'Enrollment Form'!$B671=\"Subscriber\",'Enrollment Form'!$CQ671=\"Yes\"),\"-\",\"Y\")))))","v":""},{"$f":"IF('Enrollment Form'!AH671=\"\",\"\",IF(ISERROR(SEARCH(\".\",'Enrollment Form'!AH671,SEARCH(\"@\",'Enrollment Form'!AH671))),\"N\",\"Y\"))","v":""},{"$f":"IF(OR($B664=\"N\",'Enrollment Form'!$G671=\"\"),\"\",IF('Enrollment Form'!$B671<>\"Subscriber\",\"-\",IF(COUNTIF('Enrollment Form'!$AS671:$AT671,\"Yes\")=2,\"N\",\"Y\")))","v":""},{"$f":"IF(OR('Enrollment Form'!$CC671=\"\",'Enrollment Form'!$CC671=\"No\"),\"-\",IF(AND('Enrollment Form'!$CC671=\"Yes\",'Enrollment Form'!$CD671=\"\"),\"N\",\"Y\"))","v":"-"},{"$f":"IF(OR('Enrollment Form'!$CE671=\"\",'Enrollment Form'!$CE671=\"No\"),\"-\",IF(AND('Enrollment Form'!$CE671=\"Yes\",'Enrollment Form'!$CF671=\"\"),\"N\",\"Y\"))","v":"-"},{"$f":"IF(OR('Enrollment Form'!$CG671=\"\",'Enrollment Form'!$CG671=\"No\"),\"-\",IF(AND('Enrollment Form'!$CG671=\"Yes\",'Enrollment Form'!$CH671=\"\"),\"N\",\"Y\"))","v":"-"},{"$f":"IF(OR('Enrollment Form'!$CG671=\"\",'Enrollment Form'!$CG671=\"No\"),\"-\",IF(AND('Enrollment Form'!$CG671=\"Yes\",'Enrollment Form'!$CI671=\"\"),\"N\",\"Y\"))","v":"-"},{"$f":"IF('Enrollment Form'!B671<>\"Subscriber\",\"-\",IF(AND('Enrollment Form'!B671=\"Subscriber\",'Enrollment Form'!C671=\"Enroll\",'Enrollment Form'!AA671=\"\"),\"N\",\"Y\"))","v":"-"},{"$f":"IF(OR('Enrollment Form'!B671=\"Subscriber\",'Enrollment Form'!B671=\"\"),\"-\",IF('Enrollment Form'!BI671=\"\",\"N\",\"Y\"))","v":"-"},{"$f":"IF('Enrollment Form'!B671<>\"Subscriber\",\"-\",IF(AND('Enrollment Form'!B671=\"Subscriber\",'Enrollment Form'!G671=\"\"),\"N\",\"Y\"))","v":"-"},{"$f":"IF('Enrollment Form'!A671=\"\",\"\",IF('Enrollment Form'!B671=\"Subscriber\",\"-\",IF(AND('Enrollment Form'!B671<>\"Subscriber\",'Enrollment Form'!G671='Enrollment Form'!H671),\"N\",\"Y\")))","v":""},0]
[672,{"$f":"IF('Enrollment Form'!$A672<>\"\",\"Y\",\"N\")","v":"N"},{"$f":"IF(AND('Enrollment Form'!$B672=\"\",'Enrollment Form'!$C672<>\"\"),\"N\",IF($B665=\"N\",\"\",\"Y\"))","v":""},{"$f":"IF(OR($B665=\"N\",'Enrollment Form'!G672=\"\"),\"\",IF('Enrollment Form'!$B672<>\"Subscriber\",\"\",IF('Enrollment Form'!$G672='Enrollment Form'!$H672,\"Y\",\"N\")))","v":""},{"$f":"IF($B665=\"N\",\"\",IF(AND(COUNTIFS('Enrollment Form'!$H$11:$H$1000,'Enrollment Form'!$H672,'Enrollment Form'!$B$11:$B$1000,'Enrollment Form'!$B672)>1,'Enrollment Form'!$H672<>\"\"),\"N\",\"Y\"))","v":""},{"$f":"IF($B665=\"N\",\"\",IF(LEN('Enrollment Form'!$Y672)=0,\"\",IF(LEN('Enrollment Form'!$Y672)<>5,\"N\",\"Y\")))","v":""},{"$f":"IF($B665=\"N\",\"\",IF(LEN('Enrollment Form'!$AD672=0),\"\",IF(LEN('Enrollment Form'!$AD672)<>5,\"N\",\"Y\")))","v":""},{"$f":"IF($B665=\"N\",\"\",IF(LEN('Enrollment Form'!$BL672=0),\"\",IF(LEN('Enrollment Form'!$BL672)<>5,\"N\",\"Y\")))","v":""},{"$f":"IF($B665=\"N\",\"\",IF(LEN('Enrollment Form'!$AE672)=0,\"\",IF(LEN('Enrollment Form'!$AE672)<>10,\"N\",\"Y\")))","v":""},{"$f":"IF($B665=\"N\",\"\",IF(LEN('Enrollment Form'!$AF672)=0,\"\",IF(LEN('Enrollment Form'!$AF672)<>10,\"N\",\"Y\")))","v":""},{"$f":"IF('Enrollment Form'!$O672<>\"Graded\",\"-\",IF(AND('Enrollment Form'!$O672=\"Graded\",'Enrollment Form'!$AO672<>\"\"),\"Y\",\"N\"))","v":"-"},{"$f":"IF($B665=\"N\",\"\",IF(OR('Enrollment Form'!$B672<>\"Subscriber\",'Enrollment Form'!$C672=\"ROC\"),\"-\",IF(AND('Enrollment Form'!$B672=\"Subscriber\",'Enrollment Form'!$C672=\"Enroll\",'Enrollment Form'!$AJ672<>\"\"),\"Y\",\"N\")))","v":""},{"$f":"IF($B665=\"N\",\"\",IF(OR('Enrollment Form'!$B672<>\"Subscriber\",'Enrollment Form'!$C672=\"ROC\"),\"-\",IF(AND('Enrollment Form'!$B672=\"Subscriber\",'Enrollment Form'!$C672=\"Enroll\",'Enrollment Form'!$AK672<>\"\"),\"Y\",\"N\")))","v":""},{"$f":"IF($B665=\"N\",\"\",IF(OR('Enrollment Form'!$B672<>\"Subscriber\",'Enrollment Form'!$C672=\"ROC\"),\"-\",IF(AND('Enrollment Form'!$B672=\"Subscriber\",'Enrollment Form'!$C672=\"Enroll\",'Enrollment Form'!$AL672<>\"\"),\"Y\",\"N\")))","v":""},{"$f":"IF($B665=\"N\",\"\",IF(OR('Enrollment Form'!$B672<>\"Subscriber\",'Enrollment Form'!$C672=\"ROC\"),\"-\",IF(AND('Enrollment Form'!$B672=\"Subscriber\",'Enrollment Form'!$C672=\"Enroll\",'Enrollment Form'!$AM672<>\"\"),\"Y\",\"N\")))","v":""},{"$f":"IF($B665=\"N\",\"\",IF(OR('Enrollment Form'!$B672<>\"Subscriber\",'Enrollment Form'!$C672=\"ROC\"),\"-\",IF(AND('Enrollment Form'!$B672=\"Subscriber\",'Enrollment Form'!$C672=\"Enroll\",'Enrollment Form'!$AN672<>\"\"),\"Y\",\"N\")))","v":""},{"$f":"IF($B665=\"N\",\"\",IF(OR('Enrollment Form'!$B672<>\"Subscriber\",'Enrollment Form'!$C672=\"ROC\"),\"-\",IF(AND('Enrollment Form'!$B672=\"Subscriber\",'Enrollment Form'!$C672=\"Enroll\",'Enrollment Form'!$AP672<>\"\"),\"Y\",\"N\")))","v":""},{"$f":"IF($B665=\"N\",\"\",IF($Q665=\"-\",\"-\",IF(AND($Q665=\"Y\",'Enrollment Form'!$AP672=\"No\"),\"-\",IF(AND($Q665=\"Y\",'Enrollment Form'!$AP672=\"Yes\",'Enrollment Form'!$AQ672<>\"\"),\"Y\",\"N\"))))","v":""},{"$f":"IF($B665=\"N\",\"\",IF(OR('Enrollment Form'!$B672<>\"Subscriber\",'Enrollment Form'!$C672=\"ROC\"),\"-\",IF(AND('Enrollment Form'!$B672=\"Subscriber\",'Enrollment Form'!$C672=\"Enroll\",'Enrollment Form'!$CO672<>\"\"),\"Y\",\"N\")))","v":""},{"$f":"IF($B665=\"N\",\"\",IF($S665=\"-\",\"-\",IF(AND($S665=\"Y\",'Enrollment Form'!$CO672=\"No\"),\"-\",IF(AND($S665=\"Y\",'Enrollment Form'!$CO672=\"Yes\",'Enrollment Form'!$CP672<>\"\"),\"Y\",\"N\"))))","v":""},{"$f":"IF(OR('Enrollment Form'!$AV672=\"Yes\",'Enrollment Form'!$AV672=\"\"),\"-\",IF(AND('Enrollment Form'!$AV672=\"No\",ISERROR(FIND(\"HMO\",VLOOKUP('Enrollment Form'!G672,'Enrollment Form'!H$11:J$1000,3,FALSE),1))=FALSE,COUNTA('Enrollment Form'!$AW672:$AZ672)=4),\"Y\",\"N\"))","v":"-"},{"$f":"IF($B665=\"N\",\"\",IF('Enrollment Form'!$B672=\"Subscriber\",\"-\",IF(COUNTA('Enrollment Form'!$BE672,'Enrollment Form'!$BG672)=2,\"Y\",\"N\")))","v":""},{"$f":"IF($B665=\"N\",\"\",IF(OR('Enrollment Form'!$AU672=\"\",'Enrollment Form'!$AU672=\"No\"),\"-\",IF(AND('Enrollment Form'!$AU672=\"Yes\",COUNTA('Enrollment Form'!$CK672)=1),\"Y\",\"N\")))","v":""},{"$f":"IF(OR('Enrollment Form'!$CK672=\"\",'Enrollment Form'!$CK672=\"No\"),\"-\",IF(COUNTA('Enrollment Form'!$CM672:$CN672)=2,\"Y\",\"N\"))","v":"-"},{"$f":"IF($B665=\"N\",\"\",IF(COUNTIF('Enrollment Form'!$CZ672:$DO672,\"Other\")=COUNTA('Enrollment Form'!$DF672,'Enrollment Form'!$DA672,'Enrollment Form'!$DK672,'Enrollment Form'!$DP672),\"Y\",\"N\"))","v":""},{"$f":"IF($B665=\"N\",\"\",IF(OR('Enrollment Form'!B672<>\"Subscriber\",'Enrollment Form'!C672=\"ROC\",COUNTIF('Enrollment Form'!AS672:AT672,\"Yes\")>=1),\"-\",IF(AND('Enrollment Form'!C672=\"Enroll\",COUNTIF('Enrollment Form'!AS672:AT672,\"No\")=2,'Enrollment Form'!AU672=\"\"),\"N\",\"Y\")))","v":""},{"$f":"IF(OR(B665=\"N\",'Enrollment Form'!B672<>\"Subscriber\",'Enrollment Form'!C672=\"ROC\",'Enrollment Form'!O672<>\"Multiple of Salary\"),\"-\",IF(COUNTA('Enrollment Form'!T672:U672)<2,\"N\",\"Y\"))","v":"-"},{"$f":"IF(B665=\"N\",\"\",IF(OR('Enrollment Form'!C672=\"ROC\",'Enrollment Form'!B672<>\"Subscriber\",'Enrollment Form'!O672=\"Waive\",'Enrollment Form'!O672=\"\"),\"-\",IF('Enrollment Form'!P672=\"\",\"N\",\"Y\")))","v":""},{"$f":"IF($B665=\"N\",\"\",IF(AND('Enrollment Form'!$C672=\"ROC\",'Enrollment Form'!$DS672<>\"\"),\"Y\",IF(AND('Enrollment Form'!$C672=\"ROC\",'Enrollment Form'!$DS672=\"\"),\"N\",IF(AND('Enrollment Form'!$C672=\"Enroll\",'Enrollment Form'!$B672=\"Subscriber\",'Enrollment Form'!$CQ672=\"No\",'Enrollment Form'!$DS672=\"\"),\"N\",IF(AND('Enrollment Form'!$C672=\"Enroll\",'Enrollment Form'!$B672=\"Subscriber\",'Enrollment Form'!$CQ672=\"Yes\"),\"-\",\"Y\")))))","v":""},{"$f":"IF($B665=\"N\",\"\",IF(AND('Enrollment Form'!$C672=\"ROC\",'Enrollment Form'!$DT672<>\"\"),\"Y\",IF(AND('Enrollment Form'!$C672=\"ROC\",'Enrollment Form'!$DT672=\"\"),\"N\",IF(AND('Enrollment Form'!$C672=\"Enroll\",'Enrollment Form'!$B672=\"Subscriber\",'Enrollment Form'!$CQ672=\"No\",'Enrollment Form'!$DT672=\"\"),\"N\",IF(AND('Enrollment Form'!$C672=\"Enroll\",'Enrollment Form'!$B672=\"Subscriber\",'Enrollment Form'!$CQ672=\"Yes\"),\"-\",\"Y\")))))","v":""},{"$f":"IF('Enrollment Form'!AH672=\"\",\"\",IF(ISERROR(SEARCH(\".\",'Enrollment Form'!AH672,SEARCH(\"@\",'Enrollment Form'!AH672))),\"N\",\"Y\"))","v":""},{"$f":"IF(OR($B665=\"N\",'Enrollment Form'!$G672=\"\"),\"\",IF('Enrollment Form'!$B672<>\"Subscriber\",\"-\",IF(COUNTIF('Enrollment Form'!$AS672:$AT672,\"Yes\")=2,\"N\",\"Y\")))","v":""},{"$f":"IF(OR('Enrollment Form'!$CC672=\"\",'Enrollment Form'!$CC672=\"No\"),\"-\",IF(AND('Enrollment Form'!$CC672=\"Yes\",'Enrollment Form'!$CD672=\"\"),\"N\",\"Y\"))","v":"-"},{"$f":"IF(OR('Enrollment Form'!$CE672=\"\",'Enrollment Form'!$CE672=\"No\"),\"-\",IF(AND('Enrollment Form'!$CE672=\"Yes\",'Enrollment Form'!$CF672=\"\"),\"N\",\"Y\"))","v":"-"},{"$f":"IF(OR('Enrollment Form'!$CG672=\"\",'Enrollment Form'!$CG672=\"No\"),\"-\",IF(AND('Enrollment Form'!$CG672=\"Yes\",'Enrollment Form'!$CH672=\"\"),\"N\",\"Y\"))","v":"-"},{"$f":"IF(OR('Enrollment Form'!$CG672=\"\",'Enrollment Form'!$CG672=\"No\"),\"-\",IF(AND('Enrollment Form'!$CG672=\"Yes\",'Enrollment Form'!$CI672=\"\"),\"N\",\"Y\"))","v":"-"},{"$f":"IF('Enrollment Form'!B672<>\"Subscriber\",\"-\",IF(AND('Enrollment Form'!B672=\"Subscriber\",'Enrollment Form'!C672=\"Enroll\",'Enrollment Form'!AA672=\"\"),\"N\",\"Y\"))","v":"-"},{"$f":"IF(OR('Enrollment Form'!B672=\"Subscriber\",'Enrollment Form'!B672=\"\"),\"-\",IF('Enrollment Form'!BI672=\"\",\"N\",\"Y\"))","v":"-"},{"$f":"IF('Enrollment Form'!B672<>\"Subscriber\",\"-\",IF(AND('Enrollment Form'!B672=\"Subscriber\",'Enrollment Form'!G672=\"\"),\"N\",\"Y\"))","v":"-"},{"$f":"IF('Enrollment Form'!A672=\"\",\"\",IF('Enrollment Form'!B672=\"Subscriber\",\"-\",IF(AND('Enrollment Form'!B672<>\"Subscriber\",'Enrollment Form'!G672='Enrollment Form'!H672),\"N\",\"Y\")))","v":""},0]
[673,{"$f":"IF('Enrollment Form'!$A673<>\"\",\"Y\",\"N\")","v":"N"},{"$f":"IF(AND('Enrollment Form'!$B673=\"\",'Enrollment Form'!$C673<>\"\"),\"N\",IF($B666=\"N\",\"\",\"Y\"))","v":""},{"$f":"IF(OR($B666=\"N\",'Enrollment Form'!G673=\"\"),\"\",IF('Enrollment Form'!$B673<>\"Subscriber\",\"\",IF('Enrollment Form'!$G673='Enrollment Form'!$H673,\"Y\",\"N\")))","v":""},{"$f":"IF($B666=\"N\",\"\",IF(AND(COUNTIFS('Enrollment Form'!$H$11:$H$1000,'Enrollment Form'!$H673,'Enrollment Form'!$B$11:$B$1000,'Enrollment Form'!$B673)>1,'Enrollment Form'!$H673<>\"\"),\"N\",\"Y\"))","v":""},{"$f":"IF($B666=\"N\",\"\",IF(LEN('Enrollment Form'!$Y673)=0,\"\",IF(LEN('Enrollment Form'!$Y673)<>5,\"N\",\"Y\")))","v":""},{"$f":"IF($B666=\"N\",\"\",IF(LEN('Enrollment Form'!$AD673=0),\"\",IF(LEN('Enrollment Form'!$AD673)<>5,\"N\",\"Y\")))","v":""},{"$f":"IF($B666=\"N\",\"\",IF(LEN('Enrollment Form'!$BL673=0),\"\",IF(LEN('Enrollment Form'!$BL673)<>5,\"N\",\"Y\")))","v":""},{"$f":"IF($B666=\"N\",\"\",IF(LEN('Enrollment Form'!$AE673)=0,\"\",IF(LEN('Enrollment Form'!$AE673)<>10,\"N\",\"Y\")))","v":""},{"$f":"IF($B666=\"N\",\"\",IF(LEN('Enrollment Form'!$AF673)=0,\"\",IF(LEN('Enrollment Form'!$AF673)<>10,\"N\",\"Y\")))","v":""},{"$f":"IF('Enrollment Form'!$O673<>\"Graded\",\"-\",IF(AND('Enrollment Form'!$O673=\"Graded\",'Enrollment Form'!$AO673<>\"\"),\"Y\",\"N\"))","v":"-"},{"$f":"IF($B666=\"N\",\"\",IF(OR('Enrollment Form'!$B673<>\"Subscriber\",'Enrollment Form'!$C673=\"ROC\"),\"-\",IF(AND('Enrollment Form'!$B673=\"Subscriber\",'Enrollment Form'!$C673=\"Enroll\",'Enrollment Form'!$AJ673<>\"\"),\"Y\",\"N\")))","v":""},{"$f":"IF($B666=\"N\",\"\",IF(OR('Enrollment Form'!$B673<>\"Subscriber\",'Enrollment Form'!$C673=\"ROC\"),\"-\",IF(AND('Enrollment Form'!$B673=\"Subscriber\",'Enrollment Form'!$C673=\"Enroll\",'Enrollment Form'!$AK673<>\"\"),\"Y\",\"N\")))","v":""},{"$f":"IF($B666=\"N\",\"\",IF(OR('Enrollment Form'!$B673<>\"Subscriber\",'Enrollment Form'!$C673=\"ROC\"),\"-\",IF(AND('Enrollment Form'!$B673=\"Subscriber\",'Enrollment Form'!$C673=\"Enroll\",'Enrollment Form'!$AL673<>\"\"),\"Y\",\"N\")))","v":""},{"$f":"IF($B666=\"N\",\"\",IF(OR('Enrollment Form'!$B673<>\"Subscriber\",'Enrollment Form'!$C673=\"ROC\"),\"-\",IF(AND('Enrollment Form'!$B673=\"Subscriber\",'Enrollment Form'!$C673=\"Enroll\",'Enrollment Form'!$AM673<>\"\"),\"Y\",\"N\")))","v":""},{"$f":"IF($B666=\"N\",\"\",IF(OR('Enrollment Form'!$B673<>\"Subscriber\",'Enrollment Form'!$C673=\"ROC\"),\"-\",IF(AND('Enrollment Form'!$B673=\"Subscriber\",'Enrollment Form'!$C673=\"Enroll\",'Enrollment Form'!$AN673<>\"\"),\"Y\",\"N\")))","v":""},{"$f":"IF($B666=\"N\",\"\",IF(OR('Enrollment Form'!$B673<>\"Subscriber\",'Enrollment Form'!$C673=\"ROC\"),\"-\",IF(AND('Enrollment Form'!$B673=\"Subscriber\",'Enrollment Form'!$C673=\"Enroll\",'Enrollment Form'!$AP673<>\"\"),\"Y\",\"N\")))","v":""},{"$f":"IF($B666=\"N\",\"\",IF($Q666=\"-\",\"-\",IF(AND($Q666=\"Y\",'Enrollment Form'!$AP673=\"No\"),\"-\",IF(AND($Q666=\"Y\",'Enrollment Form'!$AP673=\"Yes\",'Enrollment Form'!$AQ673<>\"\"),\"Y\",\"N\"))))","v":""},{"$f":"IF($B666=\"N\",\"\",IF(OR('Enrollment Form'!$B673<>\"Subscriber\",'Enrollment Form'!$C673=\"ROC\"),\"-\",IF(AND('Enrollment Form'!$B673=\"Subscriber\",'Enrollment Form'!$C673=\"Enroll\",'Enrollment Form'!$CO673<>\"\"),\"Y\",\"N\")))","v":""},{"$f":"IF($B666=\"N\",\"\",IF($S666=\"-\",\"-\",IF(AND($S666=\"Y\",'Enrollment Form'!$CO673=\"No\"),\"-\",IF(AND($S666=\"Y\",'Enrollment Form'!$CO673=\"Yes\",'Enrollment Form'!$CP673<>\"\"),\"Y\",\"N\"))))","v":""},{"$f":"IF(OR('Enrollment Form'!$AV673=\"Yes\",'Enrollment Form'!$AV673=\"\"),\"-\",IF(AND('Enrollment Form'!$AV673=\"No\",ISERROR(FIND(\"HMO\",VLOOKUP('Enrollment Form'!G673,'Enrollment Form'!H$11:J$1000,3,FALSE),1))=FALSE,COUNTA('Enrollment Form'!$AW673:$AZ673)=4),\"Y\",\"N\"))","v":"-"},{"$f":"IF($B666=\"N\",\"\",IF('Enrollment Form'!$B673=\"Subscriber\",\"-\",IF(COUNTA('Enrollment Form'!$BE673,'Enrollment Form'!$BG673)=2,\"Y\",\"N\")))","v":""},{"$f":"IF($B666=\"N\",\"\",IF(OR('Enrollment Form'!$AU673=\"\",'Enrollment Form'!$AU673=\"No\"),\"-\",IF(AND('Enrollment Form'!$AU673=\"Yes\",COUNTA('Enrollment Form'!$CK673)=1),\"Y\",\"N\")))","v":""},{"$f":"IF(OR('Enrollment Form'!$CK673=\"\",'Enrollment Form'!$CK673=\"No\"),\"-\",IF(COUNTA('Enrollment Form'!$CM673:$CN673)=2,\"Y\",\"N\"))","v":"-"},{"$f":"IF($B666=\"N\",\"\",IF(COUNTIF('Enrollment Form'!$CZ673:$DO673,\"Other\")=COUNTA('Enrollment Form'!$DF673,'Enrollment Form'!$DA673,'Enrollment Form'!$DK673,'Enrollment Form'!$DP673),\"Y\",\"N\"))","v":""},{"$f":"IF($B666=\"N\",\"\",IF(OR('Enrollment Form'!B673<>\"Subscriber\",'Enrollment Form'!C673=\"ROC\",COUNTIF('Enrollment Form'!AS673:AT673,\"Yes\")>=1),\"-\",IF(AND('Enrollment Form'!C673=\"Enroll\",COUNTIF('Enrollment Form'!AS673:AT673,\"No\")=2,'Enrollment Form'!AU673=\"\"),\"N\",\"Y\")))","v":""},{"$f":"IF(OR(B666=\"N\",'Enrollment Form'!B673<>\"Subscriber\",'Enrollment Form'!C673=\"ROC\",'Enrollment Form'!O673<>\"Multiple of Salary\"),\"-\",IF(COUNTA('Enrollment Form'!T673:U673)<2,\"N\",\"Y\"))","v":"-"},{"$f":"IF(B666=\"N\",\"\",IF(OR('Enrollment Form'!C673=\"ROC\",'Enrollment Form'!B673<>\"Subscriber\",'Enrollment Form'!O673=\"Waive\",'Enrollment Form'!O673=\"\"),\"-\",IF('Enrollment Form'!P673=\"\",\"N\",\"Y\")))","v":""},{"$f":"IF($B666=\"N\",\"\",IF(AND('Enrollment Form'!$C673=\"ROC\",'Enrollment Form'!$DS673<>\"\"),\"Y\",IF(AND('Enrollment Form'!$C673=\"ROC\",'Enrollment Form'!$DS673=\"\"),\"N\",IF(AND('Enrollment Form'!$C673=\"Enroll\",'Enrollment Form'!$B673=\"Subscriber\",'Enrollment Form'!$CQ673=\"No\",'Enrollment Form'!$DS673=\"\"),\"N\",IF(AND('Enrollment Form'!$C673=\"Enroll\",'Enrollment Form'!$B673=\"Subscriber\",'Enrollment Form'!$CQ673=\"Yes\"),\"-\",\"Y\")))))","v":""},{"$f":"IF($B666=\"N\",\"\",IF(AND('Enrollment Form'!$C673=\"ROC\",'Enrollment Form'!$DT673<>\"\"),\"Y\",IF(AND('Enrollment Form'!$C673=\"ROC\",'Enrollment Form'!$DT673=\"\"),\"N\",IF(AND('Enrollment Form'!$C673=\"Enroll\",'Enrollment Form'!$B673=\"Subscriber\",'Enrollment Form'!$CQ673=\"No\",'Enrollment Form'!$DT673=\"\"),\"N\",IF(AND('Enrollment Form'!$C673=\"Enroll\",'Enrollment Form'!$B673=\"Subscriber\",'Enrollment Form'!$CQ673=\"Yes\"),\"-\",\"Y\")))))","v":""},{"$f":"IF('Enrollment Form'!AH673=\"\",\"\",IF(ISERROR(SEARCH(\".\",'Enrollment Form'!AH673,SEARCH(\"@\",'Enrollment Form'!AH673))),\"N\",\"Y\"))","v":""},{"$f":"IF(OR($B666=\"N\",'Enrollment Form'!$G673=\"\"),\"\",IF('Enrollment Form'!$B673<>\"Subscriber\",\"-\",IF(COUNTIF('Enrollment Form'!$AS673:$AT673,\"Yes\")=2,\"N\",\"Y\")))","v":""},{"$f":"IF(OR('Enrollment Form'!$CC673=\"\",'Enrollment Form'!$CC673=\"No\"),\"-\",IF(AND('Enrollment Form'!$CC673=\"Yes\",'Enrollment Form'!$CD673=\"\"),\"N\",\"Y\"))","v":"-"},{"$f":"IF(OR('Enrollment Form'!$CE673=\"\",'Enrollment Form'!$CE673=\"No\"),\"-\",IF(AND('Enrollment Form'!$CE673=\"Yes\",'Enrollment Form'!$CF673=\"\"),\"N\",\"Y\"))","v":"-"},{"$f":"IF(OR('Enrollment Form'!$CG673=\"\",'Enrollment Form'!$CG673=\"No\"),\"-\",IF(AND('Enrollment Form'!$CG673=\"Yes\",'Enrollment Form'!$CH673=\"\"),\"N\",\"Y\"))","v":"-"},{"$f":"IF(OR('Enrollment Form'!$CG673=\"\",'Enrollment Form'!$CG673=\"No\"),\"-\",IF(AND('Enrollment Form'!$CG673=\"Yes\",'Enrollment Form'!$CI673=\"\"),\"N\",\"Y\"))","v":"-"},{"$f":"IF('Enrollment Form'!B673<>\"Subscriber\",\"-\",IF(AND('Enrollment Form'!B673=\"Subscriber\",'Enrollment Form'!C673=\"Enroll\",'Enrollment Form'!AA673=\"\"),\"N\",\"Y\"))","v":"-"},{"$f":"IF(OR('Enrollment Form'!B673=\"Subscriber\",'Enrollment Form'!B673=\"\"),\"-\",IF('Enrollment Form'!BI673=\"\",\"N\",\"Y\"))","v":"-"},{"$f":"IF('Enrollment Form'!B673<>\"Subscriber\",\"-\",IF(AND('Enrollment Form'!B673=\"Subscriber\",'Enrollment Form'!G673=\"\"),\"N\",\"Y\"))","v":"-"},{"$f":"IF('Enrollment Form'!A673=\"\",\"\",IF('Enrollment Form'!B673=\"Subscriber\",\"-\",IF(AND('Enrollment Form'!B673<>\"Subscriber\",'Enrollment Form'!G673='Enrollment Form'!H673),\"N\",\"Y\")))","v":""},0]
[674,{"$f":"IF('Enrollment Form'!$A674<>\"\",\"Y\",\"N\")","v":"N"},{"$f":"IF(AND('Enrollment Form'!$B674=\"\",'Enrollment Form'!$C674<>\"\"),\"N\",IF($B667=\"N\",\"\",\"Y\"))","v":""},{"$f":"IF(OR($B667=\"N\",'Enrollment Form'!G674=\"\"),\"\",IF('Enrollment Form'!$B674<>\"Subscriber\",\"\",IF('Enrollment Form'!$G674='Enrollment Form'!$H674,\"Y\",\"N\")))","v":""},{"$f":"IF($B667=\"N\",\"\",IF(AND(COUNTIFS('Enrollment Form'!$H$11:$H$1000,'Enrollment Form'!$H674,'Enrollment Form'!$B$11:$B$1000,'Enrollment Form'!$B674)>1,'Enrollment Form'!$H674<>\"\"),\"N\",\"Y\"))","v":""},{"$f":"IF($B667=\"N\",\"\",IF(LEN('Enrollment Form'!$Y674)=0,\"\",IF(LEN('Enrollment Form'!$Y674)<>5,\"N\",\"Y\")))","v":""},{"$f":"IF($B667=\"N\",\"\",IF(LEN('Enrollment Form'!$AD674=0),\"\",IF(LEN('Enrollment Form'!$AD674)<>5,\"N\",\"Y\")))","v":""},{"$f":"IF($B667=\"N\",\"\",IF(LEN('Enrollment Form'!$BL674=0),\"\",IF(LEN('Enrollment Form'!$BL674)<>5,\"N\",\"Y\")))","v":""},{"$f":"IF($B667=\"N\",\"\",IF(LEN('Enrollment Form'!$AE674)=0,\"\",IF(LEN('Enrollment Form'!$AE674)<>10,\"N\",\"Y\")))","v":""},{"$f":"IF($B667=\"N\",\"\",IF(LEN('Enrollment Form'!$AF674)=0,\"\",IF(LEN('Enrollment Form'!$AF674)<>10,\"N\",\"Y\")))","v":""},{"$f":"IF('Enrollment Form'!$O674<>\"Graded\",\"-\",IF(AND('Enrollment Form'!$O674=\"Graded\",'Enrollment Form'!$AO674<>\"\"),\"Y\",\"N\"))","v":"-"},{"$f":"IF($B667=\"N\",\"\",IF(OR('Enrollment Form'!$B674<>\"Subscriber\",'Enrollment Form'!$C674=\"ROC\"),\"-\",IF(AND('Enrollment Form'!$B674=\"Subscriber\",'Enrollment Form'!$C674=\"Enroll\",'Enrollment Form'!$AJ674<>\"\"),\"Y\",\"N\")))","v":""},{"$f":"IF($B667=\"N\",\"\",IF(OR('Enrollment Form'!$B674<>\"Subscriber\",'Enrollment Form'!$C674=\"ROC\"),\"-\",IF(AND('Enrollment Form'!$B674=\"Subscriber\",'Enrollment Form'!$C674=\"Enroll\",'Enrollment Form'!$AK674<>\"\"),\"Y\",\"N\")))","v":""},{"$f":"IF($B667=\"N\",\"\",IF(OR('Enrollment Form'!$B674<>\"Subscriber\",'Enrollment Form'!$C674=\"ROC\"),\"-\",IF(AND('Enrollment Form'!$B674=\"Subscriber\",'Enrollment Form'!$C674=\"Enroll\",'Enrollment Form'!$AL674<>\"\"),\"Y\",\"N\")))","v":""},{"$f":"IF($B667=\"N\",\"\",IF(OR('Enrollment Form'!$B674<>\"Subscriber\",'Enrollment Form'!$C674=\"ROC\"),\"-\",IF(AND('Enrollment Form'!$B674=\"Subscriber\",'Enrollment Form'!$C674=\"Enroll\",'Enrollment Form'!$AM674<>\"\"),\"Y\",\"N\")))","v":""},{"$f":"IF($B667=\"N\",\"\",IF(OR('Enrollment Form'!$B674<>\"Subscriber\",'Enrollment Form'!$C674=\"ROC\"),\"-\",IF(AND('Enrollment Form'!$B674=\"Subscriber\",'Enrollment Form'!$C674=\"Enroll\",'Enrollment Form'!$AN674<>\"\"),\"Y\",\"N\")))","v":""},{"$f":"IF($B667=\"N\",\"\",IF(OR('Enrollment Form'!$B674<>\"Subscriber\",'Enrollment Form'!$C674=\"ROC\"),\"-\",IF(AND('Enrollment Form'!$B674=\"Subscriber\",'Enrollment Form'!$C674=\"Enroll\",'Enrollment Form'!$AP674<>\"\"),\"Y\",\"N\")))","v":""},{"$f":"IF($B667=\"N\",\"\",IF($Q667=\"-\",\"-\",IF(AND($Q667=\"Y\",'Enrollment Form'!$AP674=\"No\"),\"-\",IF(AND($Q667=\"Y\",'Enrollment Form'!$AP674=\"Yes\",'Enrollment Form'!$AQ674<>\"\"),\"Y\",\"N\"))))","v":""},{"$f":"IF($B667=\"N\",\"\",IF(OR('Enrollment Form'!$B674<>\"Subscriber\",'Enrollment Form'!$C674=\"ROC\"),\"-\",IF(AND('Enrollment Form'!$B674=\"Subscriber\",'Enrollment Form'!$C674=\"Enroll\",'Enrollment Form'!$CO674<>\"\"),\"Y\",\"N\")))","v":""},{"$f":"IF($B667=\"N\",\"\",IF($S667=\"-\",\"-\",IF(AND($S667=\"Y\",'Enrollment Form'!$CO674=\"No\"),\"-\",IF(AND($S667=\"Y\",'Enrollment Form'!$CO674=\"Yes\",'Enrollment Form'!$CP674<>\"\"),\"Y\",\"N\"))))","v":""},{"$f":"IF(OR('Enrollment Form'!$AV674=\"Yes\",'Enrollment Form'!$AV674=\"\"),\"-\",IF(AND('Enrollment Form'!$AV674=\"No\",ISERROR(FIND(\"HMO\",VLOOKUP('Enrollment Form'!G674,'Enrollment Form'!H$11:J$1000,3,FALSE),1))=FALSE,COUNTA('Enrollment Form'!$AW674:$AZ674)=4),\"Y\",\"N\"))","v":"-"},{"$f":"IF($B667=\"N\",\"\",IF('Enrollment Form'!$B674=\"Subscriber\",\"-\",IF(COUNTA('Enrollment Form'!$BE674,'Enrollment Form'!$BG674)=2,\"Y\",\"N\")))","v":""},{"$f":"IF($B667=\"N\",\"\",IF(OR('Enrollment Form'!$AU674=\"\",'Enrollment Form'!$AU674=\"No\"),\"-\",IF(AND('Enrollment Form'!$AU674=\"Yes\",COUNTA('Enrollment Form'!$CK674)=1),\"Y\",\"N\")))","v":""},{"$f":"IF(OR('Enrollment Form'!$CK674=\"\",'Enrollment Form'!$CK674=\"No\"),\"-\",IF(COUNTA('Enrollment Form'!$CM674:$CN674)=2,\"Y\",\"N\"))","v":"-"},{"$f":"IF($B667=\"N\",\"\",IF(COUNTIF('Enrollment Form'!$CZ674:$DO674,\"Other\")=COUNTA('Enrollment Form'!$DF674,'Enrollment Form'!$DA674,'Enrollment Form'!$DK674,'Enrollment Form'!$DP674),\"Y\",\"N\"))","v":""},{"$f":"IF($B667=\"N\",\"\",IF(OR('Enrollment Form'!B674<>\"Subscriber\",'Enrollment Form'!C674=\"ROC\",COUNTIF('Enrollment Form'!AS674:AT674,\"Yes\")>=1),\"-\",IF(AND('Enrollment Form'!C674=\"Enroll\",COUNTIF('Enrollment Form'!AS674:AT674,\"No\")=2,'Enrollment Form'!AU674=\"\"),\"N\",\"Y\")))","v":""},{"$f":"IF(OR(B667=\"N\",'Enrollment Form'!B674<>\"Subscriber\",'Enrollment Form'!C674=\"ROC\",'Enrollment Form'!O674<>\"Multiple of Salary\"),\"-\",IF(COUNTA('Enrollment Form'!T674:U674)<2,\"N\",\"Y\"))","v":"-"},{"$f":"IF(B667=\"N\",\"\",IF(OR('Enrollment Form'!C674=\"ROC\",'Enrollment Form'!B674<>\"Subscriber\",'Enrollment Form'!O674=\"Waive\",'Enrollment Form'!O674=\"\"),\"-\",IF('Enrollment Form'!P674=\"\",\"N\",\"Y\")))","v":""},{"$f":"IF($B667=\"N\",\"\",IF(AND('Enrollment Form'!$C674=\"ROC\",'Enrollment Form'!$DS674<>\"\"),\"Y\",IF(AND('Enrollment Form'!$C674=\"ROC\",'Enrollment Form'!$DS674=\"\"),\"N\",IF(AND('Enrollment Form'!$C674=\"Enroll\",'Enrollment Form'!$B674=\"Subscriber\",'Enrollment Form'!$CQ674=\"No\",'Enrollment Form'!$DS674=\"\"),\"N\",IF(AND('Enrollment Form'!$C674=\"Enroll\",'Enrollment Form'!$B674=\"Subscriber\",'Enrollment Form'!$CQ674=\"Yes\"),\"-\",\"Y\")))))","v":""},{"$f":"IF($B667=\"N\",\"\",IF(AND('Enrollment Form'!$C674=\"ROC\",'Enrollment Form'!$DT674<>\"\"),\"Y\",IF(AND('Enrollment Form'!$C674=\"ROC\",'Enrollment Form'!$DT674=\"\"),\"N\",IF(AND('Enrollment Form'!$C674=\"Enroll\",'Enrollment Form'!$B674=\"Subscriber\",'Enrollment Form'!$CQ674=\"No\",'Enrollment Form'!$DT674=\"\"),\"N\",IF(AND('Enrollment Form'!$C674=\"Enroll\",'Enrollment Form'!$B674=\"Subscriber\",'Enrollment Form'!$CQ674=\"Yes\"),\"-\",\"Y\")))))","v":""},{"$f":"IF('Enrollment Form'!AH674=\"\",\"\",IF(ISERROR(SEARCH(\".\",'Enrollment Form'!AH674,SEARCH(\"@\",'Enrollment Form'!AH674))),\"N\",\"Y\"))","v":""},{"$f":"IF(OR($B667=\"N\",'Enrollment Form'!$G674=\"\"),\"\",IF('Enrollment Form'!$B674<>\"Subscriber\",\"-\",IF(COUNTIF('Enrollment Form'!$AS674:$AT674,\"Yes\")=2,\"N\",\"Y\")))","v":""},{"$f":"IF(OR('Enrollment Form'!$CC674=\"\",'Enrollment Form'!$CC674=\"No\"),\"-\",IF(AND('Enrollment Form'!$CC674=\"Yes\",'Enrollment Form'!$CD674=\"\"),\"N\",\"Y\"))","v":"-"},{"$f":"IF(OR('Enrollment Form'!$CE674=\"\",'Enrollment Form'!$CE674=\"No\"),\"-\",IF(AND('Enrollment Form'!$CE674=\"Yes\",'Enrollment Form'!$CF674=\"\"),\"N\",\"Y\"))","v":"-"},{"$f":"IF(OR('Enrollment Form'!$CG674=\"\",'Enrollment Form'!$CG674=\"No\"),\"-\",IF(AND('Enrollment Form'!$CG674=\"Yes\",'Enrollment Form'!$CH674=\"\"),\"N\",\"Y\"))","v":"-"},{"$f":"IF(OR('Enrollment Form'!$CG674=\"\",'Enrollment Form'!$CG674=\"No\"),\"-\",IF(AND('Enrollment Form'!$CG674=\"Yes\",'Enrollment Form'!$CI674=\"\"),\"N\",\"Y\"))","v":"-"},{"$f":"IF('Enrollment Form'!B674<>\"Subscriber\",\"-\",IF(AND('Enrollment Form'!B674=\"Subscriber\",'Enrollment Form'!C674=\"Enroll\",'Enrollment Form'!AA674=\"\"),\"N\",\"Y\"))","v":"-"},{"$f":"IF(OR('Enrollment Form'!B674=\"Subscriber\",'Enrollment Form'!B674=\"\"),\"-\",IF('Enrollment Form'!BI674=\"\",\"N\",\"Y\"))","v":"-"},{"$f":"IF('Enrollment Form'!B674<>\"Subscriber\",\"-\",IF(AND('Enrollment Form'!B674=\"Subscriber\",'Enrollment Form'!G674=\"\"),\"N\",\"Y\"))","v":"-"},{"$f":"IF('Enrollment Form'!A674=\"\",\"\",IF('Enrollment Form'!B674=\"Subscriber\",\"-\",IF(AND('Enrollment Form'!B674<>\"Subscriber\",'Enrollment Form'!G674='Enrollment Form'!H674),\"N\",\"Y\")))","v":""},0]
[675,{"$f":"IF('Enrollment Form'!$A675<>\"\",\"Y\",\"N\")","v":"N"},{"$f":"IF(AND('Enrollment Form'!$B675=\"\",'Enrollment Form'!$C675<>\"\"),\"N\",IF($B668=\"N\",\"\",\"Y\"))","v":""},{"$f":"IF(OR($B668=\"N\",'Enrollment Form'!G675=\"\"),\"\",IF('Enrollment Form'!$B675<>\"Subscriber\",\"\",IF('Enrollment Form'!$G675='Enrollment Form'!$H675,\"Y\",\"N\")))","v":""},{"$f":"IF($B668=\"N\",\"\",IF(AND(COUNTIFS('Enrollment Form'!$H$11:$H$1000,'Enrollment Form'!$H675,'Enrollment Form'!$B$11:$B$1000,'Enrollment Form'!$B675)>1,'Enrollment Form'!$H675<>\"\"),\"N\",\"Y\"))","v":""},{"$f":"IF($B668=\"N\",\"\",IF(LEN('Enrollment Form'!$Y675)=0,\"\",IF(LEN('Enrollment Form'!$Y675)<>5,\"N\",\"Y\")))","v":""},{"$f":"IF($B668=\"N\",\"\",IF(LEN('Enrollment Form'!$AD675=0),\"\",IF(LEN('Enrollment Form'!$AD675)<>5,\"N\",\"Y\")))","v":""},{"$f":"IF($B668=\"N\",\"\",IF(LEN('Enrollment Form'!$BL675=0),\"\",IF(LEN('Enrollment Form'!$BL675)<>5,\"N\",\"Y\")))","v":""},{"$f":"IF($B668=\"N\",\"\",IF(LEN('Enrollment Form'!$AE675)=0,\"\",IF(LEN('Enrollment Form'!$AE675)<>10,\"N\",\"Y\")))","v":""},{"$f":"IF($B668=\"N\",\"\",IF(LEN('Enrollment Form'!$AF675)=0,\"\",IF(LEN('Enrollment Form'!$AF675)<>10,\"N\",\"Y\")))","v":""},{"$f":"IF('Enrollment Form'!$O675<>\"Graded\",\"-\",IF(AND('Enrollment Form'!$O675=\"Graded\",'Enrollment Form'!$AO675<>\"\"),\"Y\",\"N\"))","v":"-"},{"$f":"IF($B668=\"N\",\"\",IF(OR('Enrollment Form'!$B675<>\"Subscriber\",'Enrollment Form'!$C675=\"ROC\"),\"-\",IF(AND('Enrollment Form'!$B675=\"Subscriber\",'Enrollment Form'!$C675=\"Enroll\",'Enrollment Form'!$AJ675<>\"\"),\"Y\",\"N\")))","v":""},{"$f":"IF($B668=\"N\",\"\",IF(OR('Enrollment Form'!$B675<>\"Subscriber\",'Enrollment Form'!$C675=\"ROC\"),\"-\",IF(AND('Enrollment Form'!$B675=\"Subscriber\",'Enrollment Form'!$C675=\"Enroll\",'Enrollment Form'!$AK675<>\"\"),\"Y\",\"N\")))","v":""},{"$f":"IF($B668=\"N\",\"\",IF(OR('Enrollment Form'!$B675<>\"Subscriber\",'Enrollment Form'!$C675=\"ROC\"),\"-\",IF(AND('Enrollment Form'!$B675=\"Subscriber\",'Enrollment Form'!$C675=\"Enroll\",'Enrollment Form'!$AL675<>\"\"),\"Y\",\"N\")))","v":""},{"$f":"IF($B668=\"N\",\"\",IF(OR('Enrollment Form'!$B675<>\"Subscriber\",'Enrollment Form'!$C675=\"ROC\"),\"-\",IF(AND('Enrollment Form'!$B675=\"Subscriber\",'Enrollment Form'!$C675=\"Enroll\",'Enrollment Form'!$AM675<>\"\"),\"Y\",\"N\")))","v":""},{"$f":"IF($B668=\"N\",\"\",IF(OR('Enrollment Form'!$B675<>\"Subscriber\",'Enrollment Form'!$C675=\"ROC\"),\"-\",IF(AND('Enrollment Form'!$B675=\"Subscriber\",'Enrollment Form'!$C675=\"Enroll\",'Enrollment Form'!$AN675<>\"\"),\"Y\",\"N\")))","v":""},{"$f":"IF($B668=\"N\",\"\",IF(OR('Enrollment Form'!$B675<>\"Subscriber\",'Enrollment Form'!$C675=\"ROC\"),\"-\",IF(AND('Enrollment Form'!$B675=\"Subscriber\",'Enrollment Form'!$C675=\"Enroll\",'Enrollment Form'!$AP675<>\"\"),\"Y\",\"N\")))","v":""},{"$f":"IF($B668=\"N\",\"\",IF($Q668=\"-\",\"-\",IF(AND($Q668=\"Y\",'Enrollment Form'!$AP675=\"No\"),\"-\",IF(AND($Q668=\"Y\",'Enrollment Form'!$AP675=\"Yes\",'Enrollment Form'!$AQ675<>\"\"),\"Y\",\"N\"))))","v":""},{"$f":"IF($B668=\"N\",\"\",IF(OR('Enrollment Form'!$B675<>\"Subscriber\",'Enrollment Form'!$C675=\"ROC\"),\"-\",IF(AND('Enrollment Form'!$B675=\"Subscriber\",'Enrollment Form'!$C675=\"Enroll\",'Enrollment Form'!$CO675<>\"\"),\"Y\",\"N\")))","v":""},{"$f":"IF($B668=\"N\",\"\",IF($S668=\"-\",\"-\",IF(AND($S668=\"Y\",'Enrollment Form'!$CO675=\"No\"),\"-\",IF(AND($S668=\"Y\",'Enrollment Form'!$CO675=\"Yes\",'Enrollment Form'!$CP675<>\"\"),\"Y\",\"N\"))))","v":""},{"$f":"IF(OR('Enrollment Form'!$AV675=\"Yes\",'Enrollment Form'!$AV675=\"\"),\"-\",IF(AND('Enrollment Form'!$AV675=\"No\",ISERROR(FIND(\"HMO\",VLOOKUP('Enrollment Form'!G675,'Enrollment Form'!H$11:J$1000,3,FALSE),1))=FALSE,COUNTA('Enrollment Form'!$AW675:$AZ675)=4),\"Y\",\"N\"))","v":"-"},{"$f":"IF($B668=\"N\",\"\",IF('Enrollment Form'!$B675=\"Subscriber\",\"-\",IF(COUNTA('Enrollment Form'!$BE675,'Enrollment Form'!$BG675)=2,\"Y\",\"N\")))","v":""},{"$f":"IF($B668=\"N\",\"\",IF(OR('Enrollment Form'!$AU675=\"\",'Enrollment Form'!$AU675=\"No\"),\"-\",IF(AND('Enrollment Form'!$AU675=\"Yes\",COUNTA('Enrollment Form'!$CK675)=1),\"Y\",\"N\")))","v":""},{"$f":"IF(OR('Enrollment Form'!$CK675=\"\",'Enrollment Form'!$CK675=\"No\"),\"-\",IF(COUNTA('Enrollment Form'!$CM675:$CN675)=2,\"Y\",\"N\"))","v":"-"},{"$f":"IF($B668=\"N\",\"\",IF(COUNTIF('Enrollment Form'!$CZ675:$DO675,\"Other\")=COUNTA('Enrollment Form'!$DF675,'Enrollment Form'!$DA675,'Enrollment Form'!$DK675,'Enrollment Form'!$DP675),\"Y\",\"N\"))","v":""},{"$f":"IF($B668=\"N\",\"\",IF(OR('Enrollment Form'!B675<>\"Subscriber\",'Enrollment Form'!C675=\"ROC\",COUNTIF('Enrollment Form'!AS675:AT675,\"Yes\")>=1),\"-\",IF(AND('Enrollment Form'!C675=\"Enroll\",COUNTIF('Enrollment Form'!AS675:AT675,\"No\")=2,'Enrollment Form'!AU675=\"\"),\"N\",\"Y\")))","v":""},{"$f":"IF(OR(B668=\"N\",'Enrollment Form'!B675<>\"Subscriber\",'Enrollment Form'!C675=\"ROC\",'Enrollment Form'!O675<>\"Multiple of Salary\"),\"-\",IF(COUNTA('Enrollment Form'!T675:U675)<2,\"N\",\"Y\"))","v":"-"},{"$f":"IF(B668=\"N\",\"\",IF(OR('Enrollment Form'!C675=\"ROC\",'Enrollment Form'!B675<>\"Subscriber\",'Enrollment Form'!O675=\"Waive\",'Enrollment Form'!O675=\"\"),\"-\",IF('Enrollment Form'!P675=\"\",\"N\",\"Y\")))","v":""},{"$f":"IF($B668=\"N\",\"\",IF(AND('Enrollment Form'!$C675=\"ROC\",'Enrollment Form'!$DS675<>\"\"),\"Y\",IF(AND('Enrollment Form'!$C675=\"ROC\",'Enrollment Form'!$DS675=\"\"),\"N\",IF(AND('Enrollment Form'!$C675=\"Enroll\",'Enrollment Form'!$B675=\"Subscriber\",'Enrollment Form'!$CQ675=\"No\",'Enrollment Form'!$DS675=\"\"),\"N\",IF(AND('Enrollment Form'!$C675=\"Enroll\",'Enrollment Form'!$B675=\"Subscriber\",'Enrollment Form'!$CQ675=\"Yes\"),\"-\",\"Y\")))))","v":""},{"$f":"IF($B668=\"N\",\"\",IF(AND('Enrollment Form'!$C675=\"ROC\",'Enrollment Form'!$DT675<>\"\"),\"Y\",IF(AND('Enrollment Form'!$C675=\"ROC\",'Enrollment Form'!$DT675=\"\"),\"N\",IF(AND('Enrollment Form'!$C675=\"Enroll\",'Enrollment Form'!$B675=\"Subscriber\",'Enrollment Form'!$CQ675=\"No\",'Enrollment Form'!$DT675=\"\"),\"N\",IF(AND('Enrollment Form'!$C675=\"Enroll\",'Enrollment Form'!$B675=\"Subscriber\",'Enrollment Form'!$CQ675=\"Yes\"),\"-\",\"Y\")))))","v":""},{"$f":"IF('Enrollment Form'!AH675=\"\",\"\",IF(ISERROR(SEARCH(\".\",'Enrollment Form'!AH675,SEARCH(\"@\",'Enrollment Form'!AH675))),\"N\",\"Y\"))","v":""},{"$f":"IF(OR($B668=\"N\",'Enrollment Form'!$G675=\"\"),\"\",IF('Enrollment Form'!$B675<>\"Subscriber\",\"-\",IF(COUNTIF('Enrollment Form'!$AS675:$AT675,\"Yes\")=2,\"N\",\"Y\")))","v":""},{"$f":"IF(OR('Enrollment Form'!$CC675=\"\",'Enrollment Form'!$CC675=\"No\"),\"-\",IF(AND('Enrollment Form'!$CC675=\"Yes\",'Enrollment Form'!$CD675=\"\"),\"N\",\"Y\"))","v":"-"},{"$f":"IF(OR('Enrollment Form'!$CE675=\"\",'Enrollment Form'!$CE675=\"No\"),\"-\",IF(AND('Enrollment Form'!$CE675=\"Yes\",'Enrollment Form'!$CF675=\"\"),\"N\",\"Y\"))","v":"-"},{"$f":"IF(OR('Enrollment Form'!$CG675=\"\",'Enrollment Form'!$CG675=\"No\"),\"-\",IF(AND('Enrollment Form'!$CG675=\"Yes\",'Enrollment Form'!$CH675=\"\"),\"N\",\"Y\"))","v":"-"},{"$f":"IF(OR('Enrollment Form'!$CG675=\"\",'Enrollment Form'!$CG675=\"No\"),\"-\",IF(AND('Enrollment Form'!$CG675=\"Yes\",'Enrollment Form'!$CI675=\"\"),\"N\",\"Y\"))","v":"-"},{"$f":"IF('Enrollment Form'!B675<>\"Subscriber\",\"-\",IF(AND('Enrollment Form'!B675=\"Subscriber\",'Enrollment Form'!C675=\"Enroll\",'Enrollment Form'!AA675=\"\"),\"N\",\"Y\"))","v":"-"},{"$f":"IF(OR('Enrollment Form'!B675=\"Subscriber\",'Enrollment Form'!B675=\"\"),\"-\",IF('Enrollment Form'!BI675=\"\",\"N\",\"Y\"))","v":"-"},{"$f":"IF('Enrollment Form'!B675<>\"Subscriber\",\"-\",IF(AND('Enrollment Form'!B675=\"Subscriber\",'Enrollment Form'!G675=\"\"),\"N\",\"Y\"))","v":"-"},{"$f":"IF('Enrollment Form'!A675=\"\",\"\",IF('Enrollment Form'!B675=\"Subscriber\",\"-\",IF(AND('Enrollment Form'!B675<>\"Subscriber\",'Enrollment Form'!G675='Enrollment Form'!H675),\"N\",\"Y\")))","v":""},0]
[676,{"$f":"IF('Enrollment Form'!$A676<>\"\",\"Y\",\"N\")","v":"N"},{"$f":"IF(AND('Enrollment Form'!$B676=\"\",'Enrollment Form'!$C676<>\"\"),\"N\",IF($B669=\"N\",\"\",\"Y\"))","v":""},{"$f":"IF(OR($B669=\"N\",'Enrollment Form'!G676=\"\"),\"\",IF('Enrollment Form'!$B676<>\"Subscriber\",\"\",IF('Enrollment Form'!$G676='Enrollment Form'!$H676,\"Y\",\"N\")))","v":""},{"$f":"IF($B669=\"N\",\"\",IF(AND(COUNTIFS('Enrollment Form'!$H$11:$H$1000,'Enrollment Form'!$H676,'Enrollment Form'!$B$11:$B$1000,'Enrollment Form'!$B676)>1,'Enrollment Form'!$H676<>\"\"),\"N\",\"Y\"))","v":""},{"$f":"IF($B669=\"N\",\"\",IF(LEN('Enrollment Form'!$Y676)=0,\"\",IF(LEN('Enrollment Form'!$Y676)<>5,\"N\",\"Y\")))","v":""},{"$f":"IF($B669=\"N\",\"\",IF(LEN('Enrollment Form'!$AD676=0),\"\",IF(LEN('Enrollment Form'!$AD676)<>5,\"N\",\"Y\")))","v":""},{"$f":"IF($B669=\"N\",\"\",IF(LEN('Enrollment Form'!$BL676=0),\"\",IF(LEN('Enrollment Form'!$BL676)<>5,\"N\",\"Y\")))","v":""},{"$f":"IF($B669=\"N\",\"\",IF(LEN('Enrollment Form'!$AE676)=0,\"\",IF(LEN('Enrollment Form'!$AE676)<>10,\"N\",\"Y\")))","v":""},{"$f":"IF($B669=\"N\",\"\",IF(LEN('Enrollment Form'!$AF676)=0,\"\",IF(LEN('Enrollment Form'!$AF676)<>10,\"N\",\"Y\")))","v":""},{"$f":"IF('Enrollment Form'!$O676<>\"Graded\",\"-\",IF(AND('Enrollment Form'!$O676=\"Graded\",'Enrollment Form'!$AO676<>\"\"),\"Y\",\"N\"))","v":"-"},{"$f":"IF($B669=\"N\",\"\",IF(OR('Enrollment Form'!$B676<>\"Subscriber\",'Enrollment Form'!$C676=\"ROC\"),\"-\",IF(AND('Enrollment Form'!$B676=\"Subscriber\",'Enrollment Form'!$C676=\"Enroll\",'Enrollment Form'!$AJ676<>\"\"),\"Y\",\"N\")))","v":""},{"$f":"IF($B669=\"N\",\"\",IF(OR('Enrollment Form'!$B676<>\"Subscriber\",'Enrollment Form'!$C676=\"ROC\"),\"-\",IF(AND('Enrollment Form'!$B676=\"Subscriber\",'Enrollment Form'!$C676=\"Enroll\",'Enrollment Form'!$AK676<>\"\"),\"Y\",\"N\")))","v":""},{"$f":"IF($B669=\"N\",\"\",IF(OR('Enrollment Form'!$B676<>\"Subscriber\",'Enrollment Form'!$C676=\"ROC\"),\"-\",IF(AND('Enrollment Form'!$B676=\"Subscriber\",'Enrollment Form'!$C676=\"Enroll\",'Enrollment Form'!$AL676<>\"\"),\"Y\",\"N\")))","v":""},{"$f":"IF($B669=\"N\",\"\",IF(OR('Enrollment Form'!$B676<>\"Subscriber\",'Enrollment Form'!$C676=\"ROC\"),\"-\",IF(AND('Enrollment Form'!$B676=\"Subscriber\",'Enrollment Form'!$C676=\"Enroll\",'Enrollment Form'!$AM676<>\"\"),\"Y\",\"N\")))","v":""},{"$f":"IF($B669=\"N\",\"\",IF(OR('Enrollment Form'!$B676<>\"Subscriber\",'Enrollment Form'!$C676=\"ROC\"),\"-\",IF(AND('Enrollment Form'!$B676=\"Subscriber\",'Enrollment Form'!$C676=\"Enroll\",'Enrollment Form'!$AN676<>\"\"),\"Y\",\"N\")))","v":""},{"$f":"IF($B669=\"N\",\"\",IF(OR('Enrollment Form'!$B676<>\"Subscriber\",'Enrollment Form'!$C676=\"ROC\"),\"-\",IF(AND('Enrollment Form'!$B676=\"Subscriber\",'Enrollment Form'!$C676=\"Enroll\",'Enrollment Form'!$AP676<>\"\"),\"Y\",\"N\")))","v":""},{"$f":"IF($B669=\"N\",\"\",IF($Q669=\"-\",\"-\",IF(AND($Q669=\"Y\",'Enrollment Form'!$AP676=\"No\"),\"-\",IF(AND($Q669=\"Y\",'Enrollment Form'!$AP676=\"Yes\",'Enrollment Form'!$AQ676<>\"\"),\"Y\",\"N\"))))","v":""},{"$f":"IF($B669=\"N\",\"\",IF(OR('Enrollment Form'!$B676<>\"Subscriber\",'Enrollment Form'!$C676=\"ROC\"),\"-\",IF(AND('Enrollment Form'!$B676=\"Subscriber\",'Enrollment Form'!$C676=\"Enroll\",'Enrollment Form'!$CO676<>\"\"),\"Y\",\"N\")))","v":""},{"$f":"IF($B669=\"N\",\"\",IF($S669=\"-\",\"-\",IF(AND($S669=\"Y\",'Enrollment Form'!$CO676=\"No\"),\"-\",IF(AND($S669=\"Y\",'Enrollment Form'!$CO676=\"Yes\",'Enrollment Form'!$CP676<>\"\"),\"Y\",\"N\"))))","v":""},{"$f":"IF(OR('Enrollment Form'!$AV676=\"Yes\",'Enrollment Form'!$AV676=\"\"),\"-\",IF(AND('Enrollment Form'!$AV676=\"No\",ISERROR(FIND(\"HMO\",VLOOKUP('Enrollment Form'!G676,'Enrollment Form'!H$11:J$1000,3,FALSE),1))=FALSE,COUNTA('Enrollment Form'!$AW676:$AZ676)=4),\"Y\",\"N\"))","v":"-"},{"$f":"IF($B669=\"N\",\"\",IF('Enrollment Form'!$B676=\"Subscriber\",\"-\",IF(COUNTA('Enrollment Form'!$BE676,'Enrollment Form'!$BG676)=2,\"Y\",\"N\")))","v":""},{"$f":"IF($B669=\"N\",\"\",IF(OR('Enrollment Form'!$AU676=\"\",'Enrollment Form'!$AU676=\"No\"),\"-\",IF(AND('Enrollment Form'!$AU676=\"Yes\",COUNTA('Enrollment Form'!$CK676)=1),\"Y\",\"N\")))","v":""},{"$f":"IF(OR('Enrollment Form'!$CK676=\"\",'Enrollment Form'!$CK676=\"No\"),\"-\",IF(COUNTA('Enrollment Form'!$CM676:$CN676)=2,\"Y\",\"N\"))","v":"-"},{"$f":"IF($B669=\"N\",\"\",IF(COUNTIF('Enrollment Form'!$CZ676:$DO676,\"Other\")=COUNTA('Enrollment Form'!$DF676,'Enrollment Form'!$DA676,'Enrollment Form'!$DK676,'Enrollment Form'!$DP676),\"Y\",\"N\"))","v":""},{"$f":"IF($B669=\"N\",\"\",IF(OR('Enrollment Form'!B676<>\"Subscriber\",'Enrollment Form'!C676=\"ROC\",COUNTIF('Enrollment Form'!AS676:AT676,\"Yes\")>=1),\"-\",IF(AND('Enrollment Form'!C676=\"Enroll\",COUNTIF('Enrollment Form'!AS676:AT676,\"No\")=2,'Enrollment Form'!AU676=\"\"),\"N\",\"Y\")))","v":""},{"$f":"IF(OR(B669=\"N\",'Enrollment Form'!B676<>\"Subscriber\",'Enrollment Form'!C676=\"ROC\",'Enrollment Form'!O676<>\"Multiple of Salary\"),\"-\",IF(COUNTA('Enrollment Form'!T676:U676)<2,\"N\",\"Y\"))","v":"-"},{"$f":"IF(B669=\"N\",\"\",IF(OR('Enrollment Form'!C676=\"ROC\",'Enrollment Form'!B676<>\"Subscriber\",'Enrollment Form'!O676=\"Waive\",'Enrollment Form'!O676=\"\"),\"-\",IF('Enrollment Form'!P676=\"\",\"N\",\"Y\")))","v":""},{"$f":"IF($B669=\"N\",\"\",IF(AND('Enrollment Form'!$C676=\"ROC\",'Enrollment Form'!$DS676<>\"\"),\"Y\",IF(AND('Enrollment Form'!$C676=\"ROC\",'Enrollment Form'!$DS676=\"\"),\"N\",IF(AND('Enrollment Form'!$C676=\"Enroll\",'Enrollment Form'!$B676=\"Subscriber\",'Enrollment Form'!$CQ676=\"No\",'Enrollment Form'!$DS676=\"\"),\"N\",IF(AND('Enrollment Form'!$C676=\"Enroll\",'Enrollment Form'!$B676=\"Subscriber\",'Enrollment Form'!$CQ676=\"Yes\"),\"-\",\"Y\")))))","v":""},{"$f":"IF($B669=\"N\",\"\",IF(AND('Enrollment Form'!$C676=\"ROC\",'Enrollment Form'!$DT676<>\"\"),\"Y\",IF(AND('Enrollment Form'!$C676=\"ROC\",'Enrollment Form'!$DT676=\"\"),\"N\",IF(AND('Enrollment Form'!$C676=\"Enroll\",'Enrollment Form'!$B676=\"Subscriber\",'Enrollment Form'!$CQ676=\"No\",'Enrollment Form'!$DT676=\"\"),\"N\",IF(AND('Enrollment Form'!$C676=\"Enroll\",'Enrollment Form'!$B676=\"Subscriber\",'Enrollment Form'!$CQ676=\"Yes\"),\"-\",\"Y\")))))","v":""},{"$f":"IF('Enrollment Form'!AH676=\"\",\"\",IF(ISERROR(SEARCH(\".\",'Enrollment Form'!AH676,SEARCH(\"@\",'Enrollment Form'!AH676))),\"N\",\"Y\"))","v":""},{"$f":"IF(OR($B669=\"N\",'Enrollment Form'!$G676=\"\"),\"\",IF('Enrollment Form'!$B676<>\"Subscriber\",\"-\",IF(COUNTIF('Enrollment Form'!$AS676:$AT676,\"Yes\")=2,\"N\",\"Y\")))","v":""},{"$f":"IF(OR('Enrollment Form'!$CC676=\"\",'Enrollment Form'!$CC676=\"No\"),\"-\",IF(AND('Enrollment Form'!$CC676=\"Yes\",'Enrollment Form'!$CD676=\"\"),\"N\",\"Y\"))","v":"-"},{"$f":"IF(OR('Enrollment Form'!$CE676=\"\",'Enrollment Form'!$CE676=\"No\"),\"-\",IF(AND('Enrollment Form'!$CE676=\"Yes\",'Enrollment Form'!$CF676=\"\"),\"N\",\"Y\"))","v":"-"},{"$f":"IF(OR('Enrollment Form'!$CG676=\"\",'Enrollment Form'!$CG676=\"No\"),\"-\",IF(AND('Enrollment Form'!$CG676=\"Yes\",'Enrollment Form'!$CH676=\"\"),\"N\",\"Y\"))","v":"-"},{"$f":"IF(OR('Enrollment Form'!$CG676=\"\",'Enrollment Form'!$CG676=\"No\"),\"-\",IF(AND('Enrollment Form'!$CG676=\"Yes\",'Enrollment Form'!$CI676=\"\"),\"N\",\"Y\"))","v":"-"},{"$f":"IF('Enrollment Form'!B676<>\"Subscriber\",\"-\",IF(AND('Enrollment Form'!B676=\"Subscriber\",'Enrollment Form'!C676=\"Enroll\",'Enrollment Form'!AA676=\"\"),\"N\",\"Y\"))","v":"-"},{"$f":"IF(OR('Enrollment Form'!B676=\"Subscriber\",'Enrollment Form'!B676=\"\"),\"-\",IF('Enrollment Form'!BI676=\"\",\"N\",\"Y\"))","v":"-"},{"$f":"IF('Enrollment Form'!B676<>\"Subscriber\",\"-\",IF(AND('Enrollment Form'!B676=\"Subscriber\",'Enrollment Form'!G676=\"\"),\"N\",\"Y\"))","v":"-"},{"$f":"IF('Enrollment Form'!A676=\"\",\"\",IF('Enrollment Form'!B676=\"Subscriber\",\"-\",IF(AND('Enrollment Form'!B676<>\"Subscriber\",'Enrollment Form'!G676='Enrollment Form'!H676),\"N\",\"Y\")))","v":""},0]
[677,{"$f":"IF('Enrollment Form'!$A677<>\"\",\"Y\",\"N\")","v":"N"},{"$f":"IF(AND('Enrollment Form'!$B677=\"\",'Enrollment Form'!$C677<>\"\"),\"N\",IF($B670=\"N\",\"\",\"Y\"))","v":""},{"$f":"IF(OR($B670=\"N\",'Enrollment Form'!G677=\"\"),\"\",IF('Enrollment Form'!$B677<>\"Subscriber\",\"\",IF('Enrollment Form'!$G677='Enrollment Form'!$H677,\"Y\",\"N\")))","v":""},{"$f":"IF($B670=\"N\",\"\",IF(AND(COUNTIFS('Enrollment Form'!$H$11:$H$1000,'Enrollment Form'!$H677,'Enrollment Form'!$B$11:$B$1000,'Enrollment Form'!$B677)>1,'Enrollment Form'!$H677<>\"\"),\"N\",\"Y\"))","v":""},{"$f":"IF($B670=\"N\",\"\",IF(LEN('Enrollment Form'!$Y677)=0,\"\",IF(LEN('Enrollment Form'!$Y677)<>5,\"N\",\"Y\")))","v":""},{"$f":"IF($B670=\"N\",\"\",IF(LEN('Enrollment Form'!$AD677=0),\"\",IF(LEN('Enrollment Form'!$AD677)<>5,\"N\",\"Y\")))","v":""},{"$f":"IF($B670=\"N\",\"\",IF(LEN('Enrollment Form'!$BL677=0),\"\",IF(LEN('Enrollment Form'!$BL677)<>5,\"N\",\"Y\")))","v":""},{"$f":"IF($B670=\"N\",\"\",IF(LEN('Enrollment Form'!$AE677)=0,\"\",IF(LEN('Enrollment Form'!$AE677)<>10,\"N\",\"Y\")))","v":""},{"$f":"IF($B670=\"N\",\"\",IF(LEN('Enrollment Form'!$AF677)=0,\"\",IF(LEN('Enrollment Form'!$AF677)<>10,\"N\",\"Y\")))","v":""},{"$f":"IF('Enrollment Form'!$O677<>\"Graded\",\"-\",IF(AND('Enrollment Form'!$O677=\"Graded\",'Enrollment Form'!$AO677<>\"\"),\"Y\",\"N\"))","v":"-"},{"$f":"IF($B670=\"N\",\"\",IF(OR('Enrollment Form'!$B677<>\"Subscriber\",'Enrollment Form'!$C677=\"ROC\"),\"-\",IF(AND('Enrollment Form'!$B677=\"Subscriber\",'Enrollment Form'!$C677=\"Enroll\",'Enrollment Form'!$AJ677<>\"\"),\"Y\",\"N\")))","v":""},{"$f":"IF($B670=\"N\",\"\",IF(OR('Enrollment Form'!$B677<>\"Subscriber\",'Enrollment Form'!$C677=\"ROC\"),\"-\",IF(AND('Enrollment Form'!$B677=\"Subscriber\",'Enrollment Form'!$C677=\"Enroll\",'Enrollment Form'!$AK677<>\"\"),\"Y\",\"N\")))","v":""},{"$f":"IF($B670=\"N\",\"\",IF(OR('Enrollment Form'!$B677<>\"Subscriber\",'Enrollment Form'!$C677=\"ROC\"),\"-\",IF(AND('Enrollment Form'!$B677=\"Subscriber\",'Enrollment Form'!$C677=\"Enroll\",'Enrollment Form'!$AL677<>\"\"),\"Y\",\"N\")))","v":""},{"$f":"IF($B670=\"N\",\"\",IF(OR('Enrollment Form'!$B677<>\"Subscriber\",'Enrollment Form'!$C677=\"ROC\"),\"-\",IF(AND('Enrollment Form'!$B677=\"Subscriber\",'Enrollment Form'!$C677=\"Enroll\",'Enrollment Form'!$AM677<>\"\"),\"Y\",\"N\")))","v":""},{"$f":"IF($B670=\"N\",\"\",IF(OR('Enrollment Form'!$B677<>\"Subscriber\",'Enrollment Form'!$C677=\"ROC\"),\"-\",IF(AND('Enrollment Form'!$B677=\"Subscriber\",'Enrollment Form'!$C677=\"Enroll\",'Enrollment Form'!$AN677<>\"\"),\"Y\",\"N\")))","v":""},{"$f":"IF($B670=\"N\",\"\",IF(OR('Enrollment Form'!$B677<>\"Subscriber\",'Enrollment Form'!$C677=\"ROC\"),\"-\",IF(AND('Enrollment Form'!$B677=\"Subscriber\",'Enrollment Form'!$C677=\"Enroll\",'Enrollment Form'!$AP677<>\"\"),\"Y\",\"N\")))","v":""},{"$f":"IF($B670=\"N\",\"\",IF($Q670=\"-\",\"-\",IF(AND($Q670=\"Y\",'Enrollment Form'!$AP677=\"No\"),\"-\",IF(AND($Q670=\"Y\",'Enrollment Form'!$AP677=\"Yes\",'Enrollment Form'!$AQ677<>\"\"),\"Y\",\"N\"))))","v":""},{"$f":"IF($B670=\"N\",\"\",IF(OR('Enrollment Form'!$B677<>\"Subscriber\",'Enrollment Form'!$C677=\"ROC\"),\"-\",IF(AND('Enrollment Form'!$B677=\"Subscriber\",'Enrollment Form'!$C677=\"Enroll\",'Enrollment Form'!$CO677<>\"\"),\"Y\",\"N\")))","v":""},{"$f":"IF($B670=\"N\",\"\",IF($S670=\"-\",\"-\",IF(AND($S670=\"Y\",'Enrollment Form'!$CO677=\"No\"),\"-\",IF(AND($S670=\"Y\",'Enrollment Form'!$CO677=\"Yes\",'Enrollment Form'!$CP677<>\"\"),\"Y\",\"N\"))))","v":""},{"$f":"IF(OR('Enrollment Form'!$AV677=\"Yes\",'Enrollment Form'!$AV677=\"\"),\"-\",IF(AND('Enrollment Form'!$AV677=\"No\",ISERROR(FIND(\"HMO\",VLOOKUP('Enrollment Form'!G677,'Enrollment Form'!H$11:J$1000,3,FALSE),1))=FALSE,COUNTA('Enrollment Form'!$AW677:$AZ677)=4),\"Y\",\"N\"))","v":"-"},{"$f":"IF($B670=\"N\",\"\",IF('Enrollment Form'!$B677=\"Subscriber\",\"-\",IF(COUNTA('Enrollment Form'!$BE677,'Enrollment Form'!$BG677)=2,\"Y\",\"N\")))","v":""},{"$f":"IF($B670=\"N\",\"\",IF(OR('Enrollment Form'!$AU677=\"\",'Enrollment Form'!$AU677=\"No\"),\"-\",IF(AND('Enrollment Form'!$AU677=\"Yes\",COUNTA('Enrollment Form'!$CK677)=1),\"Y\",\"N\")))","v":""},{"$f":"IF(OR('Enrollment Form'!$CK677=\"\",'Enrollment Form'!$CK677=\"No\"),\"-\",IF(COUNTA('Enrollment Form'!$CM677:$CN677)=2,\"Y\",\"N\"))","v":"-"},{"$f":"IF($B670=\"N\",\"\",IF(COUNTIF('Enrollment Form'!$CZ677:$DO677,\"Other\")=COUNTA('Enrollment Form'!$DF677,'Enrollment Form'!$DA677,'Enrollment Form'!$DK677,'Enrollment Form'!$DP677),\"Y\",\"N\"))","v":""},{"$f":"IF($B670=\"N\",\"\",IF(OR('Enrollment Form'!B677<>\"Subscriber\",'Enrollment Form'!C677=\"ROC\",COUNTIF('Enrollment Form'!AS677:AT677,\"Yes\")>=1),\"-\",IF(AND('Enrollment Form'!C677=\"Enroll\",COUNTIF('Enrollment Form'!AS677:AT677,\"No\")=2,'Enrollment Form'!AU677=\"\"),\"N\",\"Y\")))","v":""},{"$f":"IF(OR(B670=\"N\",'Enrollment Form'!B677<>\"Subscriber\",'Enrollment Form'!C677=\"ROC\",'Enrollment Form'!O677<>\"Multiple of Salary\"),\"-\",IF(COUNTA('Enrollment Form'!T677:U677)<2,\"N\",\"Y\"))","v":"-"},{"$f":"IF(B670=\"N\",\"\",IF(OR('Enrollment Form'!C677=\"ROC\",'Enrollment Form'!B677<>\"Subscriber\",'Enrollment Form'!O677=\"Waive\",'Enrollment Form'!O677=\"\"),\"-\",IF('Enrollment Form'!P677=\"\",\"N\",\"Y\")))","v":""},{"$f":"IF($B670=\"N\",\"\",IF(AND('Enrollment Form'!$C677=\"ROC\",'Enrollment Form'!$DS677<>\"\"),\"Y\",IF(AND('Enrollment Form'!$C677=\"ROC\",'Enrollment Form'!$DS677=\"\"),\"N\",IF(AND('Enrollment Form'!$C677=\"Enroll\",'Enrollment Form'!$B677=\"Subscriber\",'Enrollment Form'!$CQ677=\"No\",'Enrollment Form'!$DS677=\"\"),\"N\",IF(AND('Enrollment Form'!$C677=\"Enroll\",'Enrollment Form'!$B677=\"Subscriber\",'Enrollment Form'!$CQ677=\"Yes\"),\"-\",\"Y\")))))","v":""},{"$f":"IF($B670=\"N\",\"\",IF(AND('Enrollment Form'!$C677=\"ROC\",'Enrollment Form'!$DT677<>\"\"),\"Y\",IF(AND('Enrollment Form'!$C677=\"ROC\",'Enrollment Form'!$DT677=\"\"),\"N\",IF(AND('Enrollment Form'!$C677=\"Enroll\",'Enrollment Form'!$B677=\"Subscriber\",'Enrollment Form'!$CQ677=\"No\",'Enrollment Form'!$DT677=\"\"),\"N\",IF(AND('Enrollment Form'!$C677=\"Enroll\",'Enrollment Form'!$B677=\"Subscriber\",'Enrollment Form'!$CQ677=\"Yes\"),\"-\",\"Y\")))))","v":""},{"$f":"IF('Enrollment Form'!AH677=\"\",\"\",IF(ISERROR(SEARCH(\".\",'Enrollment Form'!AH677,SEARCH(\"@\",'Enrollment Form'!AH677))),\"N\",\"Y\"))","v":""},{"$f":"IF(OR($B670=\"N\",'Enrollment Form'!$G677=\"\"),\"\",IF('Enrollment Form'!$B677<>\"Subscriber\",\"-\",IF(COUNTIF('Enrollment Form'!$AS677:$AT677,\"Yes\")=2,\"N\",\"Y\")))","v":""},{"$f":"IF(OR('Enrollment Form'!$CC677=\"\",'Enrollment Form'!$CC677=\"No\"),\"-\",IF(AND('Enrollment Form'!$CC677=\"Yes\",'Enrollment Form'!$CD677=\"\"),\"N\",\"Y\"))","v":"-"},{"$f":"IF(OR('Enrollment Form'!$CE677=\"\",'Enrollment Form'!$CE677=\"No\"),\"-\",IF(AND('Enrollment Form'!$CE677=\"Yes\",'Enrollment Form'!$CF677=\"\"),\"N\",\"Y\"))","v":"-"},{"$f":"IF(OR('Enrollment Form'!$CG677=\"\",'Enrollment Form'!$CG677=\"No\"),\"-\",IF(AND('Enrollment Form'!$CG677=\"Yes\",'Enrollment Form'!$CH677=\"\"),\"N\",\"Y\"))","v":"-"},{"$f":"IF(OR('Enrollment Form'!$CG677=\"\",'Enrollment Form'!$CG677=\"No\"),\"-\",IF(AND('Enrollment Form'!$CG677=\"Yes\",'Enrollment Form'!$CI677=\"\"),\"N\",\"Y\"))","v":"-"},{"$f":"IF('Enrollment Form'!B677<>\"Subscriber\",\"-\",IF(AND('Enrollment Form'!B677=\"Subscriber\",'Enrollment Form'!C677=\"Enroll\",'Enrollment Form'!AA677=\"\"),\"N\",\"Y\"))","v":"-"},{"$f":"IF(OR('Enrollment Form'!B677=\"Subscriber\",'Enrollment Form'!B677=\"\"),\"-\",IF('Enrollment Form'!BI677=\"\",\"N\",\"Y\"))","v":"-"},{"$f":"IF('Enrollment Form'!B677<>\"Subscriber\",\"-\",IF(AND('Enrollment Form'!B677=\"Subscriber\",'Enrollment Form'!G677=\"\"),\"N\",\"Y\"))","v":"-"},{"$f":"IF('Enrollment Form'!A677=\"\",\"\",IF('Enrollment Form'!B677=\"Subscriber\",\"-\",IF(AND('Enrollment Form'!B677<>\"Subscriber\",'Enrollment Form'!G677='Enrollment Form'!H677),\"N\",\"Y\")))","v":""},0]
[678,{"$f":"IF('Enrollment Form'!$A678<>\"\",\"Y\",\"N\")","v":"N"},{"$f":"IF(AND('Enrollment Form'!$B678=\"\",'Enrollment Form'!$C678<>\"\"),\"N\",IF($B671=\"N\",\"\",\"Y\"))","v":""},{"$f":"IF(OR($B671=\"N\",'Enrollment Form'!G678=\"\"),\"\",IF('Enrollment Form'!$B678<>\"Subscriber\",\"\",IF('Enrollment Form'!$G678='Enrollment Form'!$H678,\"Y\",\"N\")))","v":""},{"$f":"IF($B671=\"N\",\"\",IF(AND(COUNTIFS('Enrollment Form'!$H$11:$H$1000,'Enrollment Form'!$H678,'Enrollment Form'!$B$11:$B$1000,'Enrollment Form'!$B678)>1,'Enrollment Form'!$H678<>\"\"),\"N\",\"Y\"))","v":""},{"$f":"IF($B671=\"N\",\"\",IF(LEN('Enrollment Form'!$Y678)=0,\"\",IF(LEN('Enrollment Form'!$Y678)<>5,\"N\",\"Y\")))","v":""},{"$f":"IF($B671=\"N\",\"\",IF(LEN('Enrollment Form'!$AD678=0),\"\",IF(LEN('Enrollment Form'!$AD678)<>5,\"N\",\"Y\")))","v":""},{"$f":"IF($B671=\"N\",\"\",IF(LEN('Enrollment Form'!$BL678=0),\"\",IF(LEN('Enrollment Form'!$BL678)<>5,\"N\",\"Y\")))","v":""},{"$f":"IF($B671=\"N\",\"\",IF(LEN('Enrollment Form'!$AE678)=0,\"\",IF(LEN('Enrollment Form'!$AE678)<>10,\"N\",\"Y\")))","v":""},{"$f":"IF($B671=\"N\",\"\",IF(LEN('Enrollment Form'!$AF678)=0,\"\",IF(LEN('Enrollment Form'!$AF678)<>10,\"N\",\"Y\")))","v":""},{"$f":"IF('Enrollment Form'!$O678<>\"Graded\",\"-\",IF(AND('Enrollment Form'!$O678=\"Graded\",'Enrollment Form'!$AO678<>\"\"),\"Y\",\"N\"))","v":"-"},{"$f":"IF($B671=\"N\",\"\",IF(OR('Enrollment Form'!$B678<>\"Subscriber\",'Enrollment Form'!$C678=\"ROC\"),\"-\",IF(AND('Enrollment Form'!$B678=\"Subscriber\",'Enrollment Form'!$C678=\"Enroll\",'Enrollment Form'!$AJ678<>\"\"),\"Y\",\"N\")))","v":""},{"$f":"IF($B671=\"N\",\"\",IF(OR('Enrollment Form'!$B678<>\"Subscriber\",'Enrollment Form'!$C678=\"ROC\"),\"-\",IF(AND('Enrollment Form'!$B678=\"Subscriber\",'Enrollment Form'!$C678=\"Enroll\",'Enrollment Form'!$AK678<>\"\"),\"Y\",\"N\")))","v":""},{"$f":"IF($B671=\"N\",\"\",IF(OR('Enrollment Form'!$B678<>\"Subscriber\",'Enrollment Form'!$C678=\"ROC\"),\"-\",IF(AND('Enrollment Form'!$B678=\"Subscriber\",'Enrollment Form'!$C678=\"Enroll\",'Enrollment Form'!$AL678<>\"\"),\"Y\",\"N\")))","v":""},{"$f":"IF($B671=\"N\",\"\",IF(OR('Enrollment Form'!$B678<>\"Subscriber\",'Enrollment Form'!$C678=\"ROC\"),\"-\",IF(AND('Enrollment Form'!$B678=\"Subscriber\",'Enrollment Form'!$C678=\"Enroll\",'Enrollment Form'!$AM678<>\"\"),\"Y\",\"N\")))","v":""},{"$f":"IF($B671=\"N\",\"\",IF(OR('Enrollment Form'!$B678<>\"Subscriber\",'Enrollment Form'!$C678=\"ROC\"),\"-\",IF(AND('Enrollment Form'!$B678=\"Subscriber\",'Enrollment Form'!$C678=\"Enroll\",'Enrollment Form'!$AN678<>\"\"),\"Y\",\"N\")))","v":""},{"$f":"IF($B671=\"N\",\"\",IF(OR('Enrollment Form'!$B678<>\"Subscriber\",'Enrollment Form'!$C678=\"ROC\"),\"-\",IF(AND('Enrollment Form'!$B678=\"Subscriber\",'Enrollment Form'!$C678=\"Enroll\",'Enrollment Form'!$AP678<>\"\"),\"Y\",\"N\")))","v":""},{"$f":"IF($B671=\"N\",\"\",IF($Q671=\"-\",\"-\",IF(AND($Q671=\"Y\",'Enrollment Form'!$AP678=\"No\"),\"-\",IF(AND($Q671=\"Y\",'Enrollment Form'!$AP678=\"Yes\",'Enrollment Form'!$AQ678<>\"\"),\"Y\",\"N\"))))","v":""},{"$f":"IF($B671=\"N\",\"\",IF(OR('Enrollment Form'!$B678<>\"Subscriber\",'Enrollment Form'!$C678=\"ROC\"),\"-\",IF(AND('Enrollment Form'!$B678=\"Subscriber\",'Enrollment Form'!$C678=\"Enroll\",'Enrollment Form'!$CO678<>\"\"),\"Y\",\"N\")))","v":""},{"$f":"IF($B671=\"N\",\"\",IF($S671=\"-\",\"-\",IF(AND($S671=\"Y\",'Enrollment Form'!$CO678=\"No\"),\"-\",IF(AND($S671=\"Y\",'Enrollment Form'!$CO678=\"Yes\",'Enrollment Form'!$CP678<>\"\"),\"Y\",\"N\"))))","v":""},{"$f":"IF(OR('Enrollment Form'!$AV678=\"Yes\",'Enrollment Form'!$AV678=\"\"),\"-\",IF(AND('Enrollment Form'!$AV678=\"No\",ISERROR(FIND(\"HMO\",VLOOKUP('Enrollment Form'!G678,'Enrollment Form'!H$11:J$1000,3,FALSE),1))=FALSE,COUNTA('Enrollment Form'!$AW678:$AZ678)=4),\"Y\",\"N\"))","v":"-"},{"$f":"IF($B671=\"N\",\"\",IF('Enrollment Form'!$B678=\"Subscriber\",\"-\",IF(COUNTA('Enrollment Form'!$BE678,'Enrollment Form'!$BG678)=2,\"Y\",\"N\")))","v":""},{"$f":"IF($B671=\"N\",\"\",IF(OR('Enrollment Form'!$AU678=\"\",'Enrollment Form'!$AU678=\"No\"),\"-\",IF(AND('Enrollment Form'!$AU678=\"Yes\",COUNTA('Enrollment Form'!$CK678)=1),\"Y\",\"N\")))","v":""},{"$f":"IF(OR('Enrollment Form'!$CK678=\"\",'Enrollment Form'!$CK678=\"No\"),\"-\",IF(COUNTA('Enrollment Form'!$CM678:$CN678)=2,\"Y\",\"N\"))","v":"-"},{"$f":"IF($B671=\"N\",\"\",IF(COUNTIF('Enrollment Form'!$CZ678:$DO678,\"Other\")=COUNTA('Enrollment Form'!$DF678,'Enrollment Form'!$DA678,'Enrollment Form'!$DK678,'Enrollment Form'!$DP678),\"Y\",\"N\"))","v":""},{"$f":"IF($B671=\"N\",\"\",IF(OR('Enrollment Form'!B678<>\"Subscriber\",'Enrollment Form'!C678=\"ROC\",COUNTIF('Enrollment Form'!AS678:AT678,\"Yes\")>=1),\"-\",IF(AND('Enrollment Form'!C678=\"Enroll\",COUNTIF('Enrollment Form'!AS678:AT678,\"No\")=2,'Enrollment Form'!AU678=\"\"),\"N\",\"Y\")))","v":""},{"$f":"IF(OR(B671=\"N\",'Enrollment Form'!B678<>\"Subscriber\",'Enrollment Form'!C678=\"ROC\",'Enrollment Form'!O678<>\"Multiple of Salary\"),\"-\",IF(COUNTA('Enrollment Form'!T678:U678)<2,\"N\",\"Y\"))","v":"-"},{"$f":"IF(B671=\"N\",\"\",IF(OR('Enrollment Form'!C678=\"ROC\",'Enrollment Form'!B678<>\"Subscriber\",'Enrollment Form'!O678=\"Waive\",'Enrollment Form'!O678=\"\"),\"-\",IF('Enrollment Form'!P678=\"\",\"N\",\"Y\")))","v":""},{"$f":"IF($B671=\"N\",\"\",IF(AND('Enrollment Form'!$C678=\"ROC\",'Enrollment Form'!$DS678<>\"\"),\"Y\",IF(AND('Enrollment Form'!$C678=\"ROC\",'Enrollment Form'!$DS678=\"\"),\"N\",IF(AND('Enrollment Form'!$C678=\"Enroll\",'Enrollment Form'!$B678=\"Subscriber\",'Enrollment Form'!$CQ678=\"No\",'Enrollment Form'!$DS678=\"\"),\"N\",IF(AND('Enrollment Form'!$C678=\"Enroll\",'Enrollment Form'!$B678=\"Subscriber\",'Enrollment Form'!$CQ678=\"Yes\"),\"-\",\"Y\")))))","v":""},{"$f":"IF($B671=\"N\",\"\",IF(AND('Enrollment Form'!$C678=\"ROC\",'Enrollment Form'!$DT678<>\"\"),\"Y\",IF(AND('Enrollment Form'!$C678=\"ROC\",'Enrollment Form'!$DT678=\"\"),\"N\",IF(AND('Enrollment Form'!$C678=\"Enroll\",'Enrollment Form'!$B678=\"Subscriber\",'Enrollment Form'!$CQ678=\"No\",'Enrollment Form'!$DT678=\"\"),\"N\",IF(AND('Enrollment Form'!$C678=\"Enroll\",'Enrollment Form'!$B678=\"Subscriber\",'Enrollment Form'!$CQ678=\"Yes\"),\"-\",\"Y\")))))","v":""},{"$f":"IF('Enrollment Form'!AH678=\"\",\"\",IF(ISERROR(SEARCH(\".\",'Enrollment Form'!AH678,SEARCH(\"@\",'Enrollment Form'!AH678))),\"N\",\"Y\"))","v":""},{"$f":"IF(OR($B671=\"N\",'Enrollment Form'!$G678=\"\"),\"\",IF('Enrollment Form'!$B678<>\"Subscriber\",\"-\",IF(COUNTIF('Enrollment Form'!$AS678:$AT678,\"Yes\")=2,\"N\",\"Y\")))","v":""},{"$f":"IF(OR('Enrollment Form'!$CC678=\"\",'Enrollment Form'!$CC678=\"No\"),\"-\",IF(AND('Enrollment Form'!$CC678=\"Yes\",'Enrollment Form'!$CD678=\"\"),\"N\",\"Y\"))","v":"-"},{"$f":"IF(OR('Enrollment Form'!$CE678=\"\",'Enrollment Form'!$CE678=\"No\"),\"-\",IF(AND('Enrollment Form'!$CE678=\"Yes\",'Enrollment Form'!$CF678=\"\"),\"N\",\"Y\"))","v":"-"},{"$f":"IF(OR('Enrollment Form'!$CG678=\"\",'Enrollment Form'!$CG678=\"No\"),\"-\",IF(AND('Enrollment Form'!$CG678=\"Yes\",'Enrollment Form'!$CH678=\"\"),\"N\",\"Y\"))","v":"-"},{"$f":"IF(OR('Enrollment Form'!$CG678=\"\",'Enrollment Form'!$CG678=\"No\"),\"-\",IF(AND('Enrollment Form'!$CG678=\"Yes\",'Enrollment Form'!$CI678=\"\"),\"N\",\"Y\"))","v":"-"},{"$f":"IF('Enrollment Form'!B678<>\"Subscriber\",\"-\",IF(AND('Enrollment Form'!B678=\"Subscriber\",'Enrollment Form'!C678=\"Enroll\",'Enrollment Form'!AA678=\"\"),\"N\",\"Y\"))","v":"-"},{"$f":"IF(OR('Enrollment Form'!B678=\"Subscriber\",'Enrollment Form'!B678=\"\"),\"-\",IF('Enrollment Form'!BI678=\"\",\"N\",\"Y\"))","v":"-"},{"$f":"IF('Enrollment Form'!B678<>\"Subscriber\",\"-\",IF(AND('Enrollment Form'!B678=\"Subscriber\",'Enrollment Form'!G678=\"\"),\"N\",\"Y\"))","v":"-"},{"$f":"IF('Enrollment Form'!A678=\"\",\"\",IF('Enrollment Form'!B678=\"Subscriber\",\"-\",IF(AND('Enrollment Form'!B678<>\"Subscriber\",'Enrollment Form'!G678='Enrollment Form'!H678),\"N\",\"Y\")))","v":""},0]
[679,{"$f":"IF('Enrollment Form'!$A679<>\"\",\"Y\",\"N\")","v":"N"},{"$f":"IF(AND('Enrollment Form'!$B679=\"\",'Enrollment Form'!$C679<>\"\"),\"N\",IF($B672=\"N\",\"\",\"Y\"))","v":""},{"$f":"IF(OR($B672=\"N\",'Enrollment Form'!G679=\"\"),\"\",IF('Enrollment Form'!$B679<>\"Subscriber\",\"\",IF('Enrollment Form'!$G679='Enrollment Form'!$H679,\"Y\",\"N\")))","v":""},{"$f":"IF($B672=\"N\",\"\",IF(AND(COUNTIFS('Enrollment Form'!$H$11:$H$1000,'Enrollment Form'!$H679,'Enrollment Form'!$B$11:$B$1000,'Enrollment Form'!$B679)>1,'Enrollment Form'!$H679<>\"\"),\"N\",\"Y\"))","v":""},{"$f":"IF($B672=\"N\",\"\",IF(LEN('Enrollment Form'!$Y679)=0,\"\",IF(LEN('Enrollment Form'!$Y679)<>5,\"N\",\"Y\")))","v":""},{"$f":"IF($B672=\"N\",\"\",IF(LEN('Enrollment Form'!$AD679=0),\"\",IF(LEN('Enrollment Form'!$AD679)<>5,\"N\",\"Y\")))","v":""},{"$f":"IF($B672=\"N\",\"\",IF(LEN('Enrollment Form'!$BL679=0),\"\",IF(LEN('Enrollment Form'!$BL679)<>5,\"N\",\"Y\")))","v":""},{"$f":"IF($B672=\"N\",\"\",IF(LEN('Enrollment Form'!$AE679)=0,\"\",IF(LEN('Enrollment Form'!$AE679)<>10,\"N\",\"Y\")))","v":""},{"$f":"IF($B672=\"N\",\"\",IF(LEN('Enrollment Form'!$AF679)=0,\"\",IF(LEN('Enrollment Form'!$AF679)<>10,\"N\",\"Y\")))","v":""},{"$f":"IF('Enrollment Form'!$O679<>\"Graded\",\"-\",IF(AND('Enrollment Form'!$O679=\"Graded\",'Enrollment Form'!$AO679<>\"\"),\"Y\",\"N\"))","v":"-"},{"$f":"IF($B672=\"N\",\"\",IF(OR('Enrollment Form'!$B679<>\"Subscriber\",'Enrollment Form'!$C679=\"ROC\"),\"-\",IF(AND('Enrollment Form'!$B679=\"Subscriber\",'Enrollment Form'!$C679=\"Enroll\",'Enrollment Form'!$AJ679<>\"\"),\"Y\",\"N\")))","v":""},{"$f":"IF($B672=\"N\",\"\",IF(OR('Enrollment Form'!$B679<>\"Subscriber\",'Enrollment Form'!$C679=\"ROC\"),\"-\",IF(AND('Enrollment Form'!$B679=\"Subscriber\",'Enrollment Form'!$C679=\"Enroll\",'Enrollment Form'!$AK679<>\"\"),\"Y\",\"N\")))","v":""},{"$f":"IF($B672=\"N\",\"\",IF(OR('Enrollment Form'!$B679<>\"Subscriber\",'Enrollment Form'!$C679=\"ROC\"),\"-\",IF(AND('Enrollment Form'!$B679=\"Subscriber\",'Enrollment Form'!$C679=\"Enroll\",'Enrollment Form'!$AL679<>\"\"),\"Y\",\"N\")))","v":""},{"$f":"IF($B672=\"N\",\"\",IF(OR('Enrollment Form'!$B679<>\"Subscriber\",'Enrollment Form'!$C679=\"ROC\"),\"-\",IF(AND('Enrollment Form'!$B679=\"Subscriber\",'Enrollment Form'!$C679=\"Enroll\",'Enrollment Form'!$AM679<>\"\"),\"Y\",\"N\")))","v":""},{"$f":"IF($B672=\"N\",\"\",IF(OR('Enrollment Form'!$B679<>\"Subscriber\",'Enrollment Form'!$C679=\"ROC\"),\"-\",IF(AND('Enrollment Form'!$B679=\"Subscriber\",'Enrollment Form'!$C679=\"Enroll\",'Enrollment Form'!$AN679<>\"\"),\"Y\",\"N\")))","v":""},{"$f":"IF($B672=\"N\",\"\",IF(OR('Enrollment Form'!$B679<>\"Subscriber\",'Enrollment Form'!$C679=\"ROC\"),\"-\",IF(AND('Enrollment Form'!$B679=\"Subscriber\",'Enrollment Form'!$C679=\"Enroll\",'Enrollment Form'!$AP679<>\"\"),\"Y\",\"N\")))","v":""},{"$f":"IF($B672=\"N\",\"\",IF($Q672=\"-\",\"-\",IF(AND($Q672=\"Y\",'Enrollment Form'!$AP679=\"No\"),\"-\",IF(AND($Q672=\"Y\",'Enrollment Form'!$AP679=\"Yes\",'Enrollment Form'!$AQ679<>\"\"),\"Y\",\"N\"))))","v":""},{"$f":"IF($B672=\"N\",\"\",IF(OR('Enrollment Form'!$B679<>\"Subscriber\",'Enrollment Form'!$C679=\"ROC\"),\"-\",IF(AND('Enrollment Form'!$B679=\"Subscriber\",'Enrollment Form'!$C679=\"Enroll\",'Enrollment Form'!$CO679<>\"\"),\"Y\",\"N\")))","v":""},{"$f":"IF($B672=\"N\",\"\",IF($S672=\"-\",\"-\",IF(AND($S672=\"Y\",'Enrollment Form'!$CO679=\"No\"),\"-\",IF(AND($S672=\"Y\",'Enrollment Form'!$CO679=\"Yes\",'Enrollment Form'!$CP679<>\"\"),\"Y\",\"N\"))))","v":""},{"$f":"IF(OR('Enrollment Form'!$AV679=\"Yes\",'Enrollment Form'!$AV679=\"\"),\"-\",IF(AND('Enrollment Form'!$AV679=\"No\",ISERROR(FIND(\"HMO\",VLOOKUP('Enrollment Form'!G679,'Enrollment Form'!H$11:J$1000,3,FALSE),1))=FALSE,COUNTA('Enrollment Form'!$AW679:$AZ679)=4),\"Y\",\"N\"))","v":"-"},{"$f":"IF($B672=\"N\",\"\",IF('Enrollment Form'!$B679=\"Subscriber\",\"-\",IF(COUNTA('Enrollment Form'!$BE679,'Enrollment Form'!$BG679)=2,\"Y\",\"N\")))","v":""},{"$f":"IF($B672=\"N\",\"\",IF(OR('Enrollment Form'!$AU679=\"\",'Enrollment Form'!$AU679=\"No\"),\"-\",IF(AND('Enrollment Form'!$AU679=\"Yes\",COUNTA('Enrollment Form'!$CK679)=1),\"Y\",\"N\")))","v":""},{"$f":"IF(OR('Enrollment Form'!$CK679=\"\",'Enrollment Form'!$CK679=\"No\"),\"-\",IF(COUNTA('Enrollment Form'!$CM679:$CN679)=2,\"Y\",\"N\"))","v":"-"},{"$f":"IF($B672=\"N\",\"\",IF(COUNTIF('Enrollment Form'!$CZ679:$DO679,\"Other\")=COUNTA('Enrollment Form'!$DF679,'Enrollment Form'!$DA679,'Enrollment Form'!$DK679,'Enrollment Form'!$DP679),\"Y\",\"N\"))","v":""},{"$f":"IF($B672=\"N\",\"\",IF(OR('Enrollment Form'!B679<>\"Subscriber\",'Enrollment Form'!C679=\"ROC\",COUNTIF('Enrollment Form'!AS679:AT679,\"Yes\")>=1),\"-\",IF(AND('Enrollment Form'!C679=\"Enroll\",COUNTIF('Enrollment Form'!AS679:AT679,\"No\")=2,'Enrollment Form'!AU679=\"\"),\"N\",\"Y\")))","v":""},{"$f":"IF(OR(B672=\"N\",'Enrollment Form'!B679<>\"Subscriber\",'Enrollment Form'!C679=\"ROC\",'Enrollment Form'!O679<>\"Multiple of Salary\"),\"-\",IF(COUNTA('Enrollment Form'!T679:U679)<2,\"N\",\"Y\"))","v":"-"},{"$f":"IF(B672=\"N\",\"\",IF(OR('Enrollment Form'!C679=\"ROC\",'Enrollment Form'!B679<>\"Subscriber\",'Enrollment Form'!O679=\"Waive\",'Enrollment Form'!O679=\"\"),\"-\",IF('Enrollment Form'!P679=\"\",\"N\",\"Y\")))","v":""},{"$f":"IF($B672=\"N\",\"\",IF(AND('Enrollment Form'!$C679=\"ROC\",'Enrollment Form'!$DS679<>\"\"),\"Y\",IF(AND('Enrollment Form'!$C679=\"ROC\",'Enrollment Form'!$DS679=\"\"),\"N\",IF(AND('Enrollment Form'!$C679=\"Enroll\",'Enrollment Form'!$B679=\"Subscriber\",'Enrollment Form'!$CQ679=\"No\",'Enrollment Form'!$DS679=\"\"),\"N\",IF(AND('Enrollment Form'!$C679=\"Enroll\",'Enrollment Form'!$B679=\"Subscriber\",'Enrollment Form'!$CQ679=\"Yes\"),\"-\",\"Y\")))))","v":""},{"$f":"IF($B672=\"N\",\"\",IF(AND('Enrollment Form'!$C679=\"ROC\",'Enrollment Form'!$DT679<>\"\"),\"Y\",IF(AND('Enrollment Form'!$C679=\"ROC\",'Enrollment Form'!$DT679=\"\"),\"N\",IF(AND('Enrollment Form'!$C679=\"Enroll\",'Enrollment Form'!$B679=\"Subscriber\",'Enrollment Form'!$CQ679=\"No\",'Enrollment Form'!$DT679=\"\"),\"N\",IF(AND('Enrollment Form'!$C679=\"Enroll\",'Enrollment Form'!$B679=\"Subscriber\",'Enrollment Form'!$CQ679=\"Yes\"),\"-\",\"Y\")))))","v":""},{"$f":"IF('Enrollment Form'!AH679=\"\",\"\",IF(ISERROR(SEARCH(\".\",'Enrollment Form'!AH679,SEARCH(\"@\",'Enrollment Form'!AH679))),\"N\",\"Y\"))","v":""},{"$f":"IF(OR($B672=\"N\",'Enrollment Form'!$G679=\"\"),\"\",IF('Enrollment Form'!$B679<>\"Subscriber\",\"-\",IF(COUNTIF('Enrollment Form'!$AS679:$AT679,\"Yes\")=2,\"N\",\"Y\")))","v":""},{"$f":"IF(OR('Enrollment Form'!$CC679=\"\",'Enrollment Form'!$CC679=\"No\"),\"-\",IF(AND('Enrollment Form'!$CC679=\"Yes\",'Enrollment Form'!$CD679=\"\"),\"N\",\"Y\"))","v":"-"},{"$f":"IF(OR('Enrollment Form'!$CE679=\"\",'Enrollment Form'!$CE679=\"No\"),\"-\",IF(AND('Enrollment Form'!$CE679=\"Yes\",'Enrollment Form'!$CF679=\"\"),\"N\",\"Y\"))","v":"-"},{"$f":"IF(OR('Enrollment Form'!$CG679=\"\",'Enrollment Form'!$CG679=\"No\"),\"-\",IF(AND('Enrollment Form'!$CG679=\"Yes\",'Enrollment Form'!$CH679=\"\"),\"N\",\"Y\"))","v":"-"},{"$f":"IF(OR('Enrollment Form'!$CG679=\"\",'Enrollment Form'!$CG679=\"No\"),\"-\",IF(AND('Enrollment Form'!$CG679=\"Yes\",'Enrollment Form'!$CI679=\"\"),\"N\",\"Y\"))","v":"-"},{"$f":"IF('Enrollment Form'!B679<>\"Subscriber\",\"-\",IF(AND('Enrollment Form'!B679=\"Subscriber\",'Enrollment Form'!C679=\"Enroll\",'Enrollment Form'!AA679=\"\"),\"N\",\"Y\"))","v":"-"},{"$f":"IF(OR('Enrollment Form'!B679=\"Subscriber\",'Enrollment Form'!B679=\"\"),\"-\",IF('Enrollment Form'!BI679=\"\",\"N\",\"Y\"))","v":"-"},{"$f":"IF('Enrollment Form'!B679<>\"Subscriber\",\"-\",IF(AND('Enrollment Form'!B679=\"Subscriber\",'Enrollment Form'!G679=\"\"),\"N\",\"Y\"))","v":"-"},{"$f":"IF('Enrollment Form'!A679=\"\",\"\",IF('Enrollment Form'!B679=\"Subscriber\",\"-\",IF(AND('Enrollment Form'!B679<>\"Subscriber\",'Enrollment Form'!G679='Enrollment Form'!H679),\"N\",\"Y\")))","v":""},0]
[680,{"$f":"IF('Enrollment Form'!$A680<>\"\",\"Y\",\"N\")","v":"N"},{"$f":"IF(AND('Enrollment Form'!$B680=\"\",'Enrollment Form'!$C680<>\"\"),\"N\",IF($B673=\"N\",\"\",\"Y\"))","v":""},{"$f":"IF(OR($B673=\"N\",'Enrollment Form'!G680=\"\"),\"\",IF('Enrollment Form'!$B680<>\"Subscriber\",\"\",IF('Enrollment Form'!$G680='Enrollment Form'!$H680,\"Y\",\"N\")))","v":""},{"$f":"IF($B673=\"N\",\"\",IF(AND(COUNTIFS('Enrollment Form'!$H$11:$H$1000,'Enrollment Form'!$H680,'Enrollment Form'!$B$11:$B$1000,'Enrollment Form'!$B680)>1,'Enrollment Form'!$H680<>\"\"),\"N\",\"Y\"))","v":""},{"$f":"IF($B673=\"N\",\"\",IF(LEN('Enrollment Form'!$Y680)=0,\"\",IF(LEN('Enrollment Form'!$Y680)<>5,\"N\",\"Y\")))","v":""},{"$f":"IF($B673=\"N\",\"\",IF(LEN('Enrollment Form'!$AD680=0),\"\",IF(LEN('Enrollment Form'!$AD680)<>5,\"N\",\"Y\")))","v":""},{"$f":"IF($B673=\"N\",\"\",IF(LEN('Enrollment Form'!$BL680=0),\"\",IF(LEN('Enrollment Form'!$BL680)<>5,\"N\",\"Y\")))","v":""},{"$f":"IF($B673=\"N\",\"\",IF(LEN('Enrollment Form'!$AE680)=0,\"\",IF(LEN('Enrollment Form'!$AE680)<>10,\"N\",\"Y\")))","v":""},{"$f":"IF($B673=\"N\",\"\",IF(LEN('Enrollment Form'!$AF680)=0,\"\",IF(LEN('Enrollment Form'!$AF680)<>10,\"N\",\"Y\")))","v":""},{"$f":"IF('Enrollment Form'!$O680<>\"Graded\",\"-\",IF(AND('Enrollment Form'!$O680=\"Graded\",'Enrollment Form'!$AO680<>\"\"),\"Y\",\"N\"))","v":"-"},{"$f":"IF($B673=\"N\",\"\",IF(OR('Enrollment Form'!$B680<>\"Subscriber\",'Enrollment Form'!$C680=\"ROC\"),\"-\",IF(AND('Enrollment Form'!$B680=\"Subscriber\",'Enrollment Form'!$C680=\"Enroll\",'Enrollment Form'!$AJ680<>\"\"),\"Y\",\"N\")))","v":""},{"$f":"IF($B673=\"N\",\"\",IF(OR('Enrollment Form'!$B680<>\"Subscriber\",'Enrollment Form'!$C680=\"ROC\"),\"-\",IF(AND('Enrollment Form'!$B680=\"Subscriber\",'Enrollment Form'!$C680=\"Enroll\",'Enrollment Form'!$AK680<>\"\"),\"Y\",\"N\")))","v":""},{"$f":"IF($B673=\"N\",\"\",IF(OR('Enrollment Form'!$B680<>\"Subscriber\",'Enrollment Form'!$C680=\"ROC\"),\"-\",IF(AND('Enrollment Form'!$B680=\"Subscriber\",'Enrollment Form'!$C680=\"Enroll\",'Enrollment Form'!$AL680<>\"\"),\"Y\",\"N\")))","v":""},{"$f":"IF($B673=\"N\",\"\",IF(OR('Enrollment Form'!$B680<>\"Subscriber\",'Enrollment Form'!$C680=\"ROC\"),\"-\",IF(AND('Enrollment Form'!$B680=\"Subscriber\",'Enrollment Form'!$C680=\"Enroll\",'Enrollment Form'!$AM680<>\"\"),\"Y\",\"N\")))","v":""},{"$f":"IF($B673=\"N\",\"\",IF(OR('Enrollment Form'!$B680<>\"Subscriber\",'Enrollment Form'!$C680=\"ROC\"),\"-\",IF(AND('Enrollment Form'!$B680=\"Subscriber\",'Enrollment Form'!$C680=\"Enroll\",'Enrollment Form'!$AN680<>\"\"),\"Y\",\"N\")))","v":""},{"$f":"IF($B673=\"N\",\"\",IF(OR('Enrollment Form'!$B680<>\"Subscriber\",'Enrollment Form'!$C680=\"ROC\"),\"-\",IF(AND('Enrollment Form'!$B680=\"Subscriber\",'Enrollment Form'!$C680=\"Enroll\",'Enrollment Form'!$AP680<>\"\"),\"Y\",\"N\")))","v":""},{"$f":"IF($B673=\"N\",\"\",IF($Q673=\"-\",\"-\",IF(AND($Q673=\"Y\",'Enrollment Form'!$AP680=\"No\"),\"-\",IF(AND($Q673=\"Y\",'Enrollment Form'!$AP680=\"Yes\",'Enrollment Form'!$AQ680<>\"\"),\"Y\",\"N\"))))","v":""},{"$f":"IF($B673=\"N\",\"\",IF(OR('Enrollment Form'!$B680<>\"Subscriber\",'Enrollment Form'!$C680=\"ROC\"),\"-\",IF(AND('Enrollment Form'!$B680=\"Subscriber\",'Enrollment Form'!$C680=\"Enroll\",'Enrollment Form'!$CO680<>\"\"),\"Y\",\"N\")))","v":""},{"$f":"IF($B673=\"N\",\"\",IF($S673=\"-\",\"-\",IF(AND($S673=\"Y\",'Enrollment Form'!$CO680=\"No\"),\"-\",IF(AND($S673=\"Y\",'Enrollment Form'!$CO680=\"Yes\",'Enrollment Form'!$CP680<>\"\"),\"Y\",\"N\"))))","v":""},{"$f":"IF(OR('Enrollment Form'!$AV680=\"Yes\",'Enrollment Form'!$AV680=\"\"),\"-\",IF(AND('Enrollment Form'!$AV680=\"No\",ISERROR(FIND(\"HMO\",VLOOKUP('Enrollment Form'!G680,'Enrollment Form'!H$11:J$1000,3,FALSE),1))=FALSE,COUNTA('Enrollment Form'!$AW680:$AZ680)=4),\"Y\",\"N\"))","v":"-"},{"$f":"IF($B673=\"N\",\"\",IF('Enrollment Form'!$B680=\"Subscriber\",\"-\",IF(COUNTA('Enrollment Form'!$BE680,'Enrollment Form'!$BG680)=2,\"Y\",\"N\")))","v":""},{"$f":"IF($B673=\"N\",\"\",IF(OR('Enrollment Form'!$AU680=\"\",'Enrollment Form'!$AU680=\"No\"),\"-\",IF(AND('Enrollment Form'!$AU680=\"Yes\",COUNTA('Enrollment Form'!$CK680)=1),\"Y\",\"N\")))","v":""},{"$f":"IF(OR('Enrollment Form'!$CK680=\"\",'Enrollment Form'!$CK680=\"No\"),\"-\",IF(COUNTA('Enrollment Form'!$CM680:$CN680)=2,\"Y\",\"N\"))","v":"-"},{"$f":"IF($B673=\"N\",\"\",IF(COUNTIF('Enrollment Form'!$CZ680:$DO680,\"Other\")=COUNTA('Enrollment Form'!$DF680,'Enrollment Form'!$DA680,'Enrollment Form'!$DK680,'Enrollment Form'!$DP680),\"Y\",\"N\"))","v":""},{"$f":"IF($B673=\"N\",\"\",IF(OR('Enrollment Form'!B680<>\"Subscriber\",'Enrollment Form'!C680=\"ROC\",COUNTIF('Enrollment Form'!AS680:AT680,\"Yes\")>=1),\"-\",IF(AND('Enrollment Form'!C680=\"Enroll\",COUNTIF('Enrollment Form'!AS680:AT680,\"No\")=2,'Enrollment Form'!AU680=\"\"),\"N\",\"Y\")))","v":""},{"$f":"IF(OR(B673=\"N\",'Enrollment Form'!B680<>\"Subscriber\",'Enrollment Form'!C680=\"ROC\",'Enrollment Form'!O680<>\"Multiple of Salary\"),\"-\",IF(COUNTA('Enrollment Form'!T680:U680)<2,\"N\",\"Y\"))","v":"-"},{"$f":"IF(B673=\"N\",\"\",IF(OR('Enrollment Form'!C680=\"ROC\",'Enrollment Form'!B680<>\"Subscriber\",'Enrollment Form'!O680=\"Waive\",'Enrollment Form'!O680=\"\"),\"-\",IF('Enrollment Form'!P680=\"\",\"N\",\"Y\")))","v":""},{"$f":"IF($B673=\"N\",\"\",IF(AND('Enrollment Form'!$C680=\"ROC\",'Enrollment Form'!$DS680<>\"\"),\"Y\",IF(AND('Enrollment Form'!$C680=\"ROC\",'Enrollment Form'!$DS680=\"\"),\"N\",IF(AND('Enrollment Form'!$C680=\"Enroll\",'Enrollment Form'!$B680=\"Subscriber\",'Enrollment Form'!$CQ680=\"No\",'Enrollment Form'!$DS680=\"\"),\"N\",IF(AND('Enrollment Form'!$C680=\"Enroll\",'Enrollment Form'!$B680=\"Subscriber\",'Enrollment Form'!$CQ680=\"Yes\"),\"-\",\"Y\")))))","v":""},{"$f":"IF($B673=\"N\",\"\",IF(AND('Enrollment Form'!$C680=\"ROC\",'Enrollment Form'!$DT680<>\"\"),\"Y\",IF(AND('Enrollment Form'!$C680=\"ROC\",'Enrollment Form'!$DT680=\"\"),\"N\",IF(AND('Enrollment Form'!$C680=\"Enroll\",'Enrollment Form'!$B680=\"Subscriber\",'Enrollment Form'!$CQ680=\"No\",'Enrollment Form'!$DT680=\"\"),\"N\",IF(AND('Enrollment Form'!$C680=\"Enroll\",'Enrollment Form'!$B680=\"Subscriber\",'Enrollment Form'!$CQ680=\"Yes\"),\"-\",\"Y\")))))","v":""},{"$f":"IF('Enrollment Form'!AH680=\"\",\"\",IF(ISERROR(SEARCH(\".\",'Enrollment Form'!AH680,SEARCH(\"@\",'Enrollment Form'!AH680))),\"N\",\"Y\"))","v":""},{"$f":"IF(OR($B673=\"N\",'Enrollment Form'!$G680=\"\"),\"\",IF('Enrollment Form'!$B680<>\"Subscriber\",\"-\",IF(COUNTIF('Enrollment Form'!$AS680:$AT680,\"Yes\")=2,\"N\",\"Y\")))","v":""},{"$f":"IF(OR('Enrollment Form'!$CC680=\"\",'Enrollment Form'!$CC680=\"No\"),\"-\",IF(AND('Enrollment Form'!$CC680=\"Yes\",'Enrollment Form'!$CD680=\"\"),\"N\",\"Y\"))","v":"-"},{"$f":"IF(OR('Enrollment Form'!$CE680=\"\",'Enrollment Form'!$CE680=\"No\"),\"-\",IF(AND('Enrollment Form'!$CE680=\"Yes\",'Enrollment Form'!$CF680=\"\"),\"N\",\"Y\"))","v":"-"},{"$f":"IF(OR('Enrollment Form'!$CG680=\"\",'Enrollment Form'!$CG680=\"No\"),\"-\",IF(AND('Enrollment Form'!$CG680=\"Yes\",'Enrollment Form'!$CH680=\"\"),\"N\",\"Y\"))","v":"-"},{"$f":"IF(OR('Enrollment Form'!$CG680=\"\",'Enrollment Form'!$CG680=\"No\"),\"-\",IF(AND('Enrollment Form'!$CG680=\"Yes\",'Enrollment Form'!$CI680=\"\"),\"N\",\"Y\"))","v":"-"},{"$f":"IF('Enrollment Form'!B680<>\"Subscriber\",\"-\",IF(AND('Enrollment Form'!B680=\"Subscriber\",'Enrollment Form'!C680=\"Enroll\",'Enrollment Form'!AA680=\"\"),\"N\",\"Y\"))","v":"-"},{"$f":"IF(OR('Enrollment Form'!B680=\"Subscriber\",'Enrollment Form'!B680=\"\"),\"-\",IF('Enrollment Form'!BI680=\"\",\"N\",\"Y\"))","v":"-"},{"$f":"IF('Enrollment Form'!B680<>\"Subscriber\",\"-\",IF(AND('Enrollment Form'!B680=\"Subscriber\",'Enrollment Form'!G680=\"\"),\"N\",\"Y\"))","v":"-"},{"$f":"IF('Enrollment Form'!A680=\"\",\"\",IF('Enrollment Form'!B680=\"Subscriber\",\"-\",IF(AND('Enrollment Form'!B680<>\"Subscriber\",'Enrollment Form'!G680='Enrollment Form'!H680),\"N\",\"Y\")))","v":""},0]
[681,{"$f":"IF('Enrollment Form'!$A681<>\"\",\"Y\",\"N\")","v":"N"},{"$f":"IF(AND('Enrollment Form'!$B681=\"\",'Enrollment Form'!$C681<>\"\"),\"N\",IF($B674=\"N\",\"\",\"Y\"))","v":""},{"$f":"IF(OR($B674=\"N\",'Enrollment Form'!G681=\"\"),\"\",IF('Enrollment Form'!$B681<>\"Subscriber\",\"\",IF('Enrollment Form'!$G681='Enrollment Form'!$H681,\"Y\",\"N\")))","v":""},{"$f":"IF($B674=\"N\",\"\",IF(AND(COUNTIFS('Enrollment Form'!$H$11:$H$1000,'Enrollment Form'!$H681,'Enrollment Form'!$B$11:$B$1000,'Enrollment Form'!$B681)>1,'Enrollment Form'!$H681<>\"\"),\"N\",\"Y\"))","v":""},{"$f":"IF($B674=\"N\",\"\",IF(LEN('Enrollment Form'!$Y681)=0,\"\",IF(LEN('Enrollment Form'!$Y681)<>5,\"N\",\"Y\")))","v":""},{"$f":"IF($B674=\"N\",\"\",IF(LEN('Enrollment Form'!$AD681=0),\"\",IF(LEN('Enrollment Form'!$AD681)<>5,\"N\",\"Y\")))","v":""},{"$f":"IF($B674=\"N\",\"\",IF(LEN('Enrollment Form'!$BL681=0),\"\",IF(LEN('Enrollment Form'!$BL681)<>5,\"N\",\"Y\")))","v":""},{"$f":"IF($B674=\"N\",\"\",IF(LEN('Enrollment Form'!$AE681)=0,\"\",IF(LEN('Enrollment Form'!$AE681)<>10,\"N\",\"Y\")))","v":""},{"$f":"IF($B674=\"N\",\"\",IF(LEN('Enrollment Form'!$AF681)=0,\"\",IF(LEN('Enrollment Form'!$AF681)<>10,\"N\",\"Y\")))","v":""},{"$f":"IF('Enrollment Form'!$O681<>\"Graded\",\"-\",IF(AND('Enrollment Form'!$O681=\"Graded\",'Enrollment Form'!$AO681<>\"\"),\"Y\",\"N\"))","v":"-"},{"$f":"IF($B674=\"N\",\"\",IF(OR('Enrollment Form'!$B681<>\"Subscriber\",'Enrollment Form'!$C681=\"ROC\"),\"-\",IF(AND('Enrollment Form'!$B681=\"Subscriber\",'Enrollment Form'!$C681=\"Enroll\",'Enrollment Form'!$AJ681<>\"\"),\"Y\",\"N\")))","v":""},{"$f":"IF($B674=\"N\",\"\",IF(OR('Enrollment Form'!$B681<>\"Subscriber\",'Enrollment Form'!$C681=\"ROC\"),\"-\",IF(AND('Enrollment Form'!$B681=\"Subscriber\",'Enrollment Form'!$C681=\"Enroll\",'Enrollment Form'!$AK681<>\"\"),\"Y\",\"N\")))","v":""},{"$f":"IF($B674=\"N\",\"\",IF(OR('Enrollment Form'!$B681<>\"Subscriber\",'Enrollment Form'!$C681=\"ROC\"),\"-\",IF(AND('Enrollment Form'!$B681=\"Subscriber\",'Enrollment Form'!$C681=\"Enroll\",'Enrollment Form'!$AL681<>\"\"),\"Y\",\"N\")))","v":""},{"$f":"IF($B674=\"N\",\"\",IF(OR('Enrollment Form'!$B681<>\"Subscriber\",'Enrollment Form'!$C681=\"ROC\"),\"-\",IF(AND('Enrollment Form'!$B681=\"Subscriber\",'Enrollment Form'!$C681=\"Enroll\",'Enrollment Form'!$AM681<>\"\"),\"Y\",\"N\")))","v":""},{"$f":"IF($B674=\"N\",\"\",IF(OR('Enrollment Form'!$B681<>\"Subscriber\",'Enrollment Form'!$C681=\"ROC\"),\"-\",IF(AND('Enrollment Form'!$B681=\"Subscriber\",'Enrollment Form'!$C681=\"Enroll\",'Enrollment Form'!$AN681<>\"\"),\"Y\",\"N\")))","v":""},{"$f":"IF($B674=\"N\",\"\",IF(OR('Enrollment Form'!$B681<>\"Subscriber\",'Enrollment Form'!$C681=\"ROC\"),\"-\",IF(AND('Enrollment Form'!$B681=\"Subscriber\",'Enrollment Form'!$C681=\"Enroll\",'Enrollment Form'!$AP681<>\"\"),\"Y\",\"N\")))","v":""},{"$f":"IF($B674=\"N\",\"\",IF($Q674=\"-\",\"-\",IF(AND($Q674=\"Y\",'Enrollment Form'!$AP681=\"No\"),\"-\",IF(AND($Q674=\"Y\",'Enrollment Form'!$AP681=\"Yes\",'Enrollment Form'!$AQ681<>\"\"),\"Y\",\"N\"))))","v":""},{"$f":"IF($B674=\"N\",\"\",IF(OR('Enrollment Form'!$B681<>\"Subscriber\",'Enrollment Form'!$C681=\"ROC\"),\"-\",IF(AND('Enrollment Form'!$B681=\"Subscriber\",'Enrollment Form'!$C681=\"Enroll\",'Enrollment Form'!$CO681<>\"\"),\"Y\",\"N\")))","v":""},{"$f":"IF($B674=\"N\",\"\",IF($S674=\"-\",\"-\",IF(AND($S674=\"Y\",'Enrollment Form'!$CO681=\"No\"),\"-\",IF(AND($S674=\"Y\",'Enrollment Form'!$CO681=\"Yes\",'Enrollment Form'!$CP681<>\"\"),\"Y\",\"N\"))))","v":""},{"$f":"IF(OR('Enrollment Form'!$AV681=\"Yes\",'Enrollment Form'!$AV681=\"\"),\"-\",IF(AND('Enrollment Form'!$AV681=\"No\",ISERROR(FIND(\"HMO\",VLOOKUP('Enrollment Form'!G681,'Enrollment Form'!H$11:J$1000,3,FALSE),1))=FALSE,COUNTA('Enrollment Form'!$AW681:$AZ681)=4),\"Y\",\"N\"))","v":"-"},{"$f":"IF($B674=\"N\",\"\",IF('Enrollment Form'!$B681=\"Subscriber\",\"-\",IF(COUNTA('Enrollment Form'!$BE681,'Enrollment Form'!$BG681)=2,\"Y\",\"N\")))","v":""},{"$f":"IF($B674=\"N\",\"\",IF(OR('Enrollment Form'!$AU681=\"\",'Enrollment Form'!$AU681=\"No\"),\"-\",IF(AND('Enrollment Form'!$AU681=\"Yes\",COUNTA('Enrollment Form'!$CK681)=1),\"Y\",\"N\")))","v":""},{"$f":"IF(OR('Enrollment Form'!$CK681=\"\",'Enrollment Form'!$CK681=\"No\"),\"-\",IF(COUNTA('Enrollment Form'!$CM681:$CN681)=2,\"Y\",\"N\"))","v":"-"},{"$f":"IF($B674=\"N\",\"\",IF(COUNTIF('Enrollment Form'!$CZ681:$DO681,\"Other\")=COUNTA('Enrollment Form'!$DF681,'Enrollment Form'!$DA681,'Enrollment Form'!$DK681,'Enrollment Form'!$DP681),\"Y\",\"N\"))","v":""},{"$f":"IF($B674=\"N\",\"\",IF(OR('Enrollment Form'!B681<>\"Subscriber\",'Enrollment Form'!C681=\"ROC\",COUNTIF('Enrollment Form'!AS681:AT681,\"Yes\")>=1),\"-\",IF(AND('Enrollment Form'!C681=\"Enroll\",COUNTIF('Enrollment Form'!AS681:AT681,\"No\")=2,'Enrollment Form'!AU681=\"\"),\"N\",\"Y\")))","v":""},{"$f":"IF(OR(B674=\"N\",'Enrollment Form'!B681<>\"Subscriber\",'Enrollment Form'!C681=\"ROC\",'Enrollment Form'!O681<>\"Multiple of Salary\"),\"-\",IF(COUNTA('Enrollment Form'!T681:U681)<2,\"N\",\"Y\"))","v":"-"},{"$f":"IF(B674=\"N\",\"\",IF(OR('Enrollment Form'!C681=\"ROC\",'Enrollment Form'!B681<>\"Subscriber\",'Enrollment Form'!O681=\"Waive\",'Enrollment Form'!O681=\"\"),\"-\",IF('Enrollment Form'!P681=\"\",\"N\",\"Y\")))","v":""},{"$f":"IF($B674=\"N\",\"\",IF(AND('Enrollment Form'!$C681=\"ROC\",'Enrollment Form'!$DS681<>\"\"),\"Y\",IF(AND('Enrollment Form'!$C681=\"ROC\",'Enrollment Form'!$DS681=\"\"),\"N\",IF(AND('Enrollment Form'!$C681=\"Enroll\",'Enrollment Form'!$B681=\"Subscriber\",'Enrollment Form'!$CQ681=\"No\",'Enrollment Form'!$DS681=\"\"),\"N\",IF(AND('Enrollment Form'!$C681=\"Enroll\",'Enrollment Form'!$B681=\"Subscriber\",'Enrollment Form'!$CQ681=\"Yes\"),\"-\",\"Y\")))))","v":""},{"$f":"IF($B674=\"N\",\"\",IF(AND('Enrollment Form'!$C681=\"ROC\",'Enrollment Form'!$DT681<>\"\"),\"Y\",IF(AND('Enrollment Form'!$C681=\"ROC\",'Enrollment Form'!$DT681=\"\"),\"N\",IF(AND('Enrollment Form'!$C681=\"Enroll\",'Enrollment Form'!$B681=\"Subscriber\",'Enrollment Form'!$CQ681=\"No\",'Enrollment Form'!$DT681=\"\"),\"N\",IF(AND('Enrollment Form'!$C681=\"Enroll\",'Enrollment Form'!$B681=\"Subscriber\",'Enrollment Form'!$CQ681=\"Yes\"),\"-\",\"Y\")))))","v":""},{"$f":"IF('Enrollment Form'!AH681=\"\",\"\",IF(ISERROR(SEARCH(\".\",'Enrollment Form'!AH681,SEARCH(\"@\",'Enrollment Form'!AH681))),\"N\",\"Y\"))","v":""},{"$f":"IF(OR($B674=\"N\",'Enrollment Form'!$G681=\"\"),\"\",IF('Enrollment Form'!$B681<>\"Subscriber\",\"-\",IF(COUNTIF('Enrollment Form'!$AS681:$AT681,\"Yes\")=2,\"N\",\"Y\")))","v":""},{"$f":"IF(OR('Enrollment Form'!$CC681=\"\",'Enrollment Form'!$CC681=\"No\"),\"-\",IF(AND('Enrollment Form'!$CC681=\"Yes\",'Enrollment Form'!$CD681=\"\"),\"N\",\"Y\"))","v":"-"},{"$f":"IF(OR('Enrollment Form'!$CE681=\"\",'Enrollment Form'!$CE681=\"No\"),\"-\",IF(AND('Enrollment Form'!$CE681=\"Yes\",'Enrollment Form'!$CF681=\"\"),\"N\",\"Y\"))","v":"-"},{"$f":"IF(OR('Enrollment Form'!$CG681=\"\",'Enrollment Form'!$CG681=\"No\"),\"-\",IF(AND('Enrollment Form'!$CG681=\"Yes\",'Enrollment Form'!$CH681=\"\"),\"N\",\"Y\"))","v":"-"},{"$f":"IF(OR('Enrollment Form'!$CG681=\"\",'Enrollment Form'!$CG681=\"No\"),\"-\",IF(AND('Enrollment Form'!$CG681=\"Yes\",'Enrollment Form'!$CI681=\"\"),\"N\",\"Y\"))","v":"-"},{"$f":"IF('Enrollment Form'!B681<>\"Subscriber\",\"-\",IF(AND('Enrollment Form'!B681=\"Subscriber\",'Enrollment Form'!C681=\"Enroll\",'Enrollment Form'!AA681=\"\"),\"N\",\"Y\"))","v":"-"},{"$f":"IF(OR('Enrollment Form'!B681=\"Subscriber\",'Enrollment Form'!B681=\"\"),\"-\",IF('Enrollment Form'!BI681=\"\",\"N\",\"Y\"))","v":"-"},{"$f":"IF('Enrollment Form'!B681<>\"Subscriber\",\"-\",IF(AND('Enrollment Form'!B681=\"Subscriber\",'Enrollment Form'!G681=\"\"),\"N\",\"Y\"))","v":"-"},{"$f":"IF('Enrollment Form'!A681=\"\",\"\",IF('Enrollment Form'!B681=\"Subscriber\",\"-\",IF(AND('Enrollment Form'!B681<>\"Subscriber\",'Enrollment Form'!G681='Enrollment Form'!H681),\"N\",\"Y\")))","v":""},0]
[682,{"$f":"IF('Enrollment Form'!$A682<>\"\",\"Y\",\"N\")","v":"N"},{"$f":"IF(AND('Enrollment Form'!$B682=\"\",'Enrollment Form'!$C682<>\"\"),\"N\",IF($B675=\"N\",\"\",\"Y\"))","v":""},{"$f":"IF(OR($B675=\"N\",'Enrollment Form'!G682=\"\"),\"\",IF('Enrollment Form'!$B682<>\"Subscriber\",\"\",IF('Enrollment Form'!$G682='Enrollment Form'!$H682,\"Y\",\"N\")))","v":""},{"$f":"IF($B675=\"N\",\"\",IF(AND(COUNTIFS('Enrollment Form'!$H$11:$H$1000,'Enrollment Form'!$H682,'Enrollment Form'!$B$11:$B$1000,'Enrollment Form'!$B682)>1,'Enrollment Form'!$H682<>\"\"),\"N\",\"Y\"))","v":""},{"$f":"IF($B675=\"N\",\"\",IF(LEN('Enrollment Form'!$Y682)=0,\"\",IF(LEN('Enrollment Form'!$Y682)<>5,\"N\",\"Y\")))","v":""},{"$f":"IF($B675=\"N\",\"\",IF(LEN('Enrollment Form'!$AD682=0),\"\",IF(LEN('Enrollment Form'!$AD682)<>5,\"N\",\"Y\")))","v":""},{"$f":"IF($B675=\"N\",\"\",IF(LEN('Enrollment Form'!$BL682=0),\"\",IF(LEN('Enrollment Form'!$BL682)<>5,\"N\",\"Y\")))","v":""},{"$f":"IF($B675=\"N\",\"\",IF(LEN('Enrollment Form'!$AE682)=0,\"\",IF(LEN('Enrollment Form'!$AE682)<>10,\"N\",\"Y\")))","v":""},{"$f":"IF($B675=\"N\",\"\",IF(LEN('Enrollment Form'!$AF682)=0,\"\",IF(LEN('Enrollment Form'!$AF682)<>10,\"N\",\"Y\")))","v":""},{"$f":"IF('Enrollment Form'!$O682<>\"Graded\",\"-\",IF(AND('Enrollment Form'!$O682=\"Graded\",'Enrollment Form'!$AO682<>\"\"),\"Y\",\"N\"))","v":"-"},{"$f":"IF($B675=\"N\",\"\",IF(OR('Enrollment Form'!$B682<>\"Subscriber\",'Enrollment Form'!$C682=\"ROC\"),\"-\",IF(AND('Enrollment Form'!$B682=\"Subscriber\",'Enrollment Form'!$C682=\"Enroll\",'Enrollment Form'!$AJ682<>\"\"),\"Y\",\"N\")))","v":""},{"$f":"IF($B675=\"N\",\"\",IF(OR('Enrollment Form'!$B682<>\"Subscriber\",'Enrollment Form'!$C682=\"ROC\"),\"-\",IF(AND('Enrollment Form'!$B682=\"Subscriber\",'Enrollment Form'!$C682=\"Enroll\",'Enrollment Form'!$AK682<>\"\"),\"Y\",\"N\")))","v":""},{"$f":"IF($B675=\"N\",\"\",IF(OR('Enrollment Form'!$B682<>\"Subscriber\",'Enrollment Form'!$C682=\"ROC\"),\"-\",IF(AND('Enrollment Form'!$B682=\"Subscriber\",'Enrollment Form'!$C682=\"Enroll\",'Enrollment Form'!$AL682<>\"\"),\"Y\",\"N\")))","v":""},{"$f":"IF($B675=\"N\",\"\",IF(OR('Enrollment Form'!$B682<>\"Subscriber\",'Enrollment Form'!$C682=\"ROC\"),\"-\",IF(AND('Enrollment Form'!$B682=\"Subscriber\",'Enrollment Form'!$C682=\"Enroll\",'Enrollment Form'!$AM682<>\"\"),\"Y\",\"N\")))","v":""},{"$f":"IF($B675=\"N\",\"\",IF(OR('Enrollment Form'!$B682<>\"Subscriber\",'Enrollment Form'!$C682=\"ROC\"),\"-\",IF(AND('Enrollment Form'!$B682=\"Subscriber\",'Enrollment Form'!$C682=\"Enroll\",'Enrollment Form'!$AN682<>\"\"),\"Y\",\"N\")))","v":""},{"$f":"IF($B675=\"N\",\"\",IF(OR('Enrollment Form'!$B682<>\"Subscriber\",'Enrollment Form'!$C682=\"ROC\"),\"-\",IF(AND('Enrollment Form'!$B682=\"Subscriber\",'Enrollment Form'!$C682=\"Enroll\",'Enrollment Form'!$AP682<>\"\"),\"Y\",\"N\")))","v":""},{"$f":"IF($B675=\"N\",\"\",IF($Q675=\"-\",\"-\",IF(AND($Q675=\"Y\",'Enrollment Form'!$AP682=\"No\"),\"-\",IF(AND($Q675=\"Y\",'Enrollment Form'!$AP682=\"Yes\",'Enrollment Form'!$AQ682<>\"\"),\"Y\",\"N\"))))","v":""},{"$f":"IF($B675=\"N\",\"\",IF(OR('Enrollment Form'!$B682<>\"Subscriber\",'Enrollment Form'!$C682=\"ROC\"),\"-\",IF(AND('Enrollment Form'!$B682=\"Subscriber\",'Enrollment Form'!$C682=\"Enroll\",'Enrollment Form'!$CO682<>\"\"),\"Y\",\"N\")))","v":""},{"$f":"IF($B675=\"N\",\"\",IF($S675=\"-\",\"-\",IF(AND($S675=\"Y\",'Enrollment Form'!$CO682=\"No\"),\"-\",IF(AND($S675=\"Y\",'Enrollment Form'!$CO682=\"Yes\",'Enrollment Form'!$CP682<>\"\"),\"Y\",\"N\"))))","v":""},{"$f":"IF(OR('Enrollment Form'!$AV682=\"Yes\",'Enrollment Form'!$AV682=\"\"),\"-\",IF(AND('Enrollment Form'!$AV682=\"No\",ISERROR(FIND(\"HMO\",VLOOKUP('Enrollment Form'!G682,'Enrollment Form'!H$11:J$1000,3,FALSE),1))=FALSE,COUNTA('Enrollment Form'!$AW682:$AZ682)=4),\"Y\",\"N\"))","v":"-"},{"$f":"IF($B675=\"N\",\"\",IF('Enrollment Form'!$B682=\"Subscriber\",\"-\",IF(COUNTA('Enrollment Form'!$BE682,'Enrollment Form'!$BG682)=2,\"Y\",\"N\")))","v":""},{"$f":"IF($B675=\"N\",\"\",IF(OR('Enrollment Form'!$AU682=\"\",'Enrollment Form'!$AU682=\"No\"),\"-\",IF(AND('Enrollment Form'!$AU682=\"Yes\",COUNTA('Enrollment Form'!$CK682)=1),\"Y\",\"N\")))","v":""},{"$f":"IF(OR('Enrollment Form'!$CK682=\"\",'Enrollment Form'!$CK682=\"No\"),\"-\",IF(COUNTA('Enrollment Form'!$CM682:$CN682)=2,\"Y\",\"N\"))","v":"-"},{"$f":"IF($B675=\"N\",\"\",IF(COUNTIF('Enrollment Form'!$CZ682:$DO682,\"Other\")=COUNTA('Enrollment Form'!$DF682,'Enrollment Form'!$DA682,'Enrollment Form'!$DK682,'Enrollment Form'!$DP682),\"Y\",\"N\"))","v":""},{"$f":"IF($B675=\"N\",\"\",IF(OR('Enrollment Form'!B682<>\"Subscriber\",'Enrollment Form'!C682=\"ROC\",COUNTIF('Enrollment Form'!AS682:AT682,\"Yes\")>=1),\"-\",IF(AND('Enrollment Form'!C682=\"Enroll\",COUNTIF('Enrollment Form'!AS682:AT682,\"No\")=2,'Enrollment Form'!AU682=\"\"),\"N\",\"Y\")))","v":""},{"$f":"IF(OR(B675=\"N\",'Enrollment Form'!B682<>\"Subscriber\",'Enrollment Form'!C682=\"ROC\",'Enrollment Form'!O682<>\"Multiple of Salary\"),\"-\",IF(COUNTA('Enrollment Form'!T682:U682)<2,\"N\",\"Y\"))","v":"-"},{"$f":"IF(B675=\"N\",\"\",IF(OR('Enrollment Form'!C682=\"ROC\",'Enrollment Form'!B682<>\"Subscriber\",'Enrollment Form'!O682=\"Waive\",'Enrollment Form'!O682=\"\"),\"-\",IF('Enrollment Form'!P682=\"\",\"N\",\"Y\")))","v":""},{"$f":"IF($B675=\"N\",\"\",IF(AND('Enrollment Form'!$C682=\"ROC\",'Enrollment Form'!$DS682<>\"\"),\"Y\",IF(AND('Enrollment Form'!$C682=\"ROC\",'Enrollment Form'!$DS682=\"\"),\"N\",IF(AND('Enrollment Form'!$C682=\"Enroll\",'Enrollment Form'!$B682=\"Subscriber\",'Enrollment Form'!$CQ682=\"No\",'Enrollment Form'!$DS682=\"\"),\"N\",IF(AND('Enrollment Form'!$C682=\"Enroll\",'Enrollment Form'!$B682=\"Subscriber\",'Enrollment Form'!$CQ682=\"Yes\"),\"-\",\"Y\")))))","v":""},{"$f":"IF($B675=\"N\",\"\",IF(AND('Enrollment Form'!$C682=\"ROC\",'Enrollment Form'!$DT682<>\"\"),\"Y\",IF(AND('Enrollment Form'!$C682=\"ROC\",'Enrollment Form'!$DT682=\"\"),\"N\",IF(AND('Enrollment Form'!$C682=\"Enroll\",'Enrollment Form'!$B682=\"Subscriber\",'Enrollment Form'!$CQ682=\"No\",'Enrollment Form'!$DT682=\"\"),\"N\",IF(AND('Enrollment Form'!$C682=\"Enroll\",'Enrollment Form'!$B682=\"Subscriber\",'Enrollment Form'!$CQ682=\"Yes\"),\"-\",\"Y\")))))","v":""},{"$f":"IF('Enrollment Form'!AH682=\"\",\"\",IF(ISERROR(SEARCH(\".\",'Enrollment Form'!AH682,SEARCH(\"@\",'Enrollment Form'!AH682))),\"N\",\"Y\"))","v":""},{"$f":"IF(OR($B675=\"N\",'Enrollment Form'!$G682=\"\"),\"\",IF('Enrollment Form'!$B682<>\"Subscriber\",\"-\",IF(COUNTIF('Enrollment Form'!$AS682:$AT682,\"Yes\")=2,\"N\",\"Y\")))","v":""},{"$f":"IF(OR('Enrollment Form'!$CC682=\"\",'Enrollment Form'!$CC682=\"No\"),\"-\",IF(AND('Enrollment Form'!$CC682=\"Yes\",'Enrollment Form'!$CD682=\"\"),\"N\",\"Y\"))","v":"-"},{"$f":"IF(OR('Enrollment Form'!$CE682=\"\",'Enrollment Form'!$CE682=\"No\"),\"-\",IF(AND('Enrollment Form'!$CE682=\"Yes\",'Enrollment Form'!$CF682=\"\"),\"N\",\"Y\"))","v":"-"},{"$f":"IF(OR('Enrollment Form'!$CG682=\"\",'Enrollment Form'!$CG682=\"No\"),\"-\",IF(AND('Enrollment Form'!$CG682=\"Yes\",'Enrollment Form'!$CH682=\"\"),\"N\",\"Y\"))","v":"-"},{"$f":"IF(OR('Enrollment Form'!$CG682=\"\",'Enrollment Form'!$CG682=\"No\"),\"-\",IF(AND('Enrollment Form'!$CG682=\"Yes\",'Enrollment Form'!$CI682=\"\"),\"N\",\"Y\"))","v":"-"},{"$f":"IF('Enrollment Form'!B682<>\"Subscriber\",\"-\",IF(AND('Enrollment Form'!B682=\"Subscriber\",'Enrollment Form'!C682=\"Enroll\",'Enrollment Form'!AA682=\"\"),\"N\",\"Y\"))","v":"-"},{"$f":"IF(OR('Enrollment Form'!B682=\"Subscriber\",'Enrollment Form'!B682=\"\"),\"-\",IF('Enrollment Form'!BI682=\"\",\"N\",\"Y\"))","v":"-"},{"$f":"IF('Enrollment Form'!B682<>\"Subscriber\",\"-\",IF(AND('Enrollment Form'!B682=\"Subscriber\",'Enrollment Form'!G682=\"\"),\"N\",\"Y\"))","v":"-"},{"$f":"IF('Enrollment Form'!A682=\"\",\"\",IF('Enrollment Form'!B682=\"Subscriber\",\"-\",IF(AND('Enrollment Form'!B682<>\"Subscriber\",'Enrollment Form'!G682='Enrollment Form'!H682),\"N\",\"Y\")))","v":""},0]
[683,{"$f":"IF('Enrollment Form'!$A683<>\"\",\"Y\",\"N\")","v":"N"},{"$f":"IF(AND('Enrollment Form'!$B683=\"\",'Enrollment Form'!$C683<>\"\"),\"N\",IF($B676=\"N\",\"\",\"Y\"))","v":""},{"$f":"IF(OR($B676=\"N\",'Enrollment Form'!G683=\"\"),\"\",IF('Enrollment Form'!$B683<>\"Subscriber\",\"\",IF('Enrollment Form'!$G683='Enrollment Form'!$H683,\"Y\",\"N\")))","v":""},{"$f":"IF($B676=\"N\",\"\",IF(AND(COUNTIFS('Enrollment Form'!$H$11:$H$1000,'Enrollment Form'!$H683,'Enrollment Form'!$B$11:$B$1000,'Enrollment Form'!$B683)>1,'Enrollment Form'!$H683<>\"\"),\"N\",\"Y\"))","v":""},{"$f":"IF($B676=\"N\",\"\",IF(LEN('Enrollment Form'!$Y683)=0,\"\",IF(LEN('Enrollment Form'!$Y683)<>5,\"N\",\"Y\")))","v":""},{"$f":"IF($B676=\"N\",\"\",IF(LEN('Enrollment Form'!$AD683=0),\"\",IF(LEN('Enrollment Form'!$AD683)<>5,\"N\",\"Y\")))","v":""},{"$f":"IF($B676=\"N\",\"\",IF(LEN('Enrollment Form'!$BL683=0),\"\",IF(LEN('Enrollment Form'!$BL683)<>5,\"N\",\"Y\")))","v":""},{"$f":"IF($B676=\"N\",\"\",IF(LEN('Enrollment Form'!$AE683)=0,\"\",IF(LEN('Enrollment Form'!$AE683)<>10,\"N\",\"Y\")))","v":""},{"$f":"IF($B676=\"N\",\"\",IF(LEN('Enrollment Form'!$AF683)=0,\"\",IF(LEN('Enrollment Form'!$AF683)<>10,\"N\",\"Y\")))","v":""},{"$f":"IF('Enrollment Form'!$O683<>\"Graded\",\"-\",IF(AND('Enrollment Form'!$O683=\"Graded\",'Enrollment Form'!$AO683<>\"\"),\"Y\",\"N\"))","v":"-"},{"$f":"IF($B676=\"N\",\"\",IF(OR('Enrollment Form'!$B683<>\"Subscriber\",'Enrollment Form'!$C683=\"ROC\"),\"-\",IF(AND('Enrollment Form'!$B683=\"Subscriber\",'Enrollment Form'!$C683=\"Enroll\",'Enrollment Form'!$AJ683<>\"\"),\"Y\",\"N\")))","v":""},{"$f":"IF($B676=\"N\",\"\",IF(OR('Enrollment Form'!$B683<>\"Subscriber\",'Enrollment Form'!$C683=\"ROC\"),\"-\",IF(AND('Enrollment Form'!$B683=\"Subscriber\",'Enrollment Form'!$C683=\"Enroll\",'Enrollment Form'!$AK683<>\"\"),\"Y\",\"N\")))","v":""},{"$f":"IF($B676=\"N\",\"\",IF(OR('Enrollment Form'!$B683<>\"Subscriber\",'Enrollment Form'!$C683=\"ROC\"),\"-\",IF(AND('Enrollment Form'!$B683=\"Subscriber\",'Enrollment Form'!$C683=\"Enroll\",'Enrollment Form'!$AL683<>\"\"),\"Y\",\"N\")))","v":""},{"$f":"IF($B676=\"N\",\"\",IF(OR('Enrollment Form'!$B683<>\"Subscriber\",'Enrollment Form'!$C683=\"ROC\"),\"-\",IF(AND('Enrollment Form'!$B683=\"Subscriber\",'Enrollment Form'!$C683=\"Enroll\",'Enrollment Form'!$AM683<>\"\"),\"Y\",\"N\")))","v":""},{"$f":"IF($B676=\"N\",\"\",IF(OR('Enrollment Form'!$B683<>\"Subscriber\",'Enrollment Form'!$C683=\"ROC\"),\"-\",IF(AND('Enrollment Form'!$B683=\"Subscriber\",'Enrollment Form'!$C683=\"Enroll\",'Enrollment Form'!$AN683<>\"\"),\"Y\",\"N\")))","v":""},{"$f":"IF($B676=\"N\",\"\",IF(OR('Enrollment Form'!$B683<>\"Subscriber\",'Enrollment Form'!$C683=\"ROC\"),\"-\",IF(AND('Enrollment Form'!$B683=\"Subscriber\",'Enrollment Form'!$C683=\"Enroll\",'Enrollment Form'!$AP683<>\"\"),\"Y\",\"N\")))","v":""},{"$f":"IF($B676=\"N\",\"\",IF($Q676=\"-\",\"-\",IF(AND($Q676=\"Y\",'Enrollment Form'!$AP683=\"No\"),\"-\",IF(AND($Q676=\"Y\",'Enrollment Form'!$AP683=\"Yes\",'Enrollment Form'!$AQ683<>\"\"),\"Y\",\"N\"))))","v":""},{"$f":"IF($B676=\"N\",\"\",IF(OR('Enrollment Form'!$B683<>\"Subscriber\",'Enrollment Form'!$C683=\"ROC\"),\"-\",IF(AND('Enrollment Form'!$B683=\"Subscriber\",'Enrollment Form'!$C683=\"Enroll\",'Enrollment Form'!$CO683<>\"\"),\"Y\",\"N\")))","v":""},{"$f":"IF($B676=\"N\",\"\",IF($S676=\"-\",\"-\",IF(AND($S676=\"Y\",'Enrollment Form'!$CO683=\"No\"),\"-\",IF(AND($S676=\"Y\",'Enrollment Form'!$CO683=\"Yes\",'Enrollment Form'!$CP683<>\"\"),\"Y\",\"N\"))))","v":""},{"$f":"IF(OR('Enrollment Form'!$AV683=\"Yes\",'Enrollment Form'!$AV683=\"\"),\"-\",IF(AND('Enrollment Form'!$AV683=\"No\",ISERROR(FIND(\"HMO\",VLOOKUP('Enrollment Form'!G683,'Enrollment Form'!H$11:J$1000,3,FALSE),1))=FALSE,COUNTA('Enrollment Form'!$AW683:$AZ683)=4),\"Y\",\"N\"))","v":"-"},{"$f":"IF($B676=\"N\",\"\",IF('Enrollment Form'!$B683=\"Subscriber\",\"-\",IF(COUNTA('Enrollment Form'!$BE683,'Enrollment Form'!$BG683)=2,\"Y\",\"N\")))","v":""},{"$f":"IF($B676=\"N\",\"\",IF(OR('Enrollment Form'!$AU683=\"\",'Enrollment Form'!$AU683=\"No\"),\"-\",IF(AND('Enrollment Form'!$AU683=\"Yes\",COUNTA('Enrollment Form'!$CK683)=1),\"Y\",\"N\")))","v":""},{"$f":"IF(OR('Enrollment Form'!$CK683=\"\",'Enrollment Form'!$CK683=\"No\"),\"-\",IF(COUNTA('Enrollment Form'!$CM683:$CN683)=2,\"Y\",\"N\"))","v":"-"},{"$f":"IF($B676=\"N\",\"\",IF(COUNTIF('Enrollment Form'!$CZ683:$DO683,\"Other\")=COUNTA('Enrollment Form'!$DF683,'Enrollment Form'!$DA683,'Enrollment Form'!$DK683,'Enrollment Form'!$DP683),\"Y\",\"N\"))","v":""},{"$f":"IF($B676=\"N\",\"\",IF(OR('Enrollment Form'!B683<>\"Subscriber\",'Enrollment Form'!C683=\"ROC\",COUNTIF('Enrollment Form'!AS683:AT683,\"Yes\")>=1),\"-\",IF(AND('Enrollment Form'!C683=\"Enroll\",COUNTIF('Enrollment Form'!AS683:AT683,\"No\")=2,'Enrollment Form'!AU683=\"\"),\"N\",\"Y\")))","v":""},{"$f":"IF(OR(B676=\"N\",'Enrollment Form'!B683<>\"Subscriber\",'Enrollment Form'!C683=\"ROC\",'Enrollment Form'!O683<>\"Multiple of Salary\"),\"-\",IF(COUNTA('Enrollment Form'!T683:U683)<2,\"N\",\"Y\"))","v":"-"},{"$f":"IF(B676=\"N\",\"\",IF(OR('Enrollment Form'!C683=\"ROC\",'Enrollment Form'!B683<>\"Subscriber\",'Enrollment Form'!O683=\"Waive\",'Enrollment Form'!O683=\"\"),\"-\",IF('Enrollment Form'!P683=\"\",\"N\",\"Y\")))","v":""},{"$f":"IF($B676=\"N\",\"\",IF(AND('Enrollment Form'!$C683=\"ROC\",'Enrollment Form'!$DS683<>\"\"),\"Y\",IF(AND('Enrollment Form'!$C683=\"ROC\",'Enrollment Form'!$DS683=\"\"),\"N\",IF(AND('Enrollment Form'!$C683=\"Enroll\",'Enrollment Form'!$B683=\"Subscriber\",'Enrollment Form'!$CQ683=\"No\",'Enrollment Form'!$DS683=\"\"),\"N\",IF(AND('Enrollment Form'!$C683=\"Enroll\",'Enrollment Form'!$B683=\"Subscriber\",'Enrollment Form'!$CQ683=\"Yes\"),\"-\",\"Y\")))))","v":""},{"$f":"IF($B676=\"N\",\"\",IF(AND('Enrollment Form'!$C683=\"ROC\",'Enrollment Form'!$DT683<>\"\"),\"Y\",IF(AND('Enrollment Form'!$C683=\"ROC\",'Enrollment Form'!$DT683=\"\"),\"N\",IF(AND('Enrollment Form'!$C683=\"Enroll\",'Enrollment Form'!$B683=\"Subscriber\",'Enrollment Form'!$CQ683=\"No\",'Enrollment Form'!$DT683=\"\"),\"N\",IF(AND('Enrollment Form'!$C683=\"Enroll\",'Enrollment Form'!$B683=\"Subscriber\",'Enrollment Form'!$CQ683=\"Yes\"),\"-\",\"Y\")))))","v":""},{"$f":"IF('Enrollment Form'!AH683=\"\",\"\",IF(ISERROR(SEARCH(\".\",'Enrollment Form'!AH683,SEARCH(\"@\",'Enrollment Form'!AH683))),\"N\",\"Y\"))","v":""},{"$f":"IF(OR($B676=\"N\",'Enrollment Form'!$G683=\"\"),\"\",IF('Enrollment Form'!$B683<>\"Subscriber\",\"-\",IF(COUNTIF('Enrollment Form'!$AS683:$AT683,\"Yes\")=2,\"N\",\"Y\")))","v":""},{"$f":"IF(OR('Enrollment Form'!$CC683=\"\",'Enrollment Form'!$CC683=\"No\"),\"-\",IF(AND('Enrollment Form'!$CC683=\"Yes\",'Enrollment Form'!$CD683=\"\"),\"N\",\"Y\"))","v":"-"},{"$f":"IF(OR('Enrollment Form'!$CE683=\"\",'Enrollment Form'!$CE683=\"No\"),\"-\",IF(AND('Enrollment Form'!$CE683=\"Yes\",'Enrollment Form'!$CF683=\"\"),\"N\",\"Y\"))","v":"-"},{"$f":"IF(OR('Enrollment Form'!$CG683=\"\",'Enrollment Form'!$CG683=\"No\"),\"-\",IF(AND('Enrollment Form'!$CG683=\"Yes\",'Enrollment Form'!$CH683=\"\"),\"N\",\"Y\"))","v":"-"},{"$f":"IF(OR('Enrollment Form'!$CG683=\"\",'Enrollment Form'!$CG683=\"No\"),\"-\",IF(AND('Enrollment Form'!$CG683=\"Yes\",'Enrollment Form'!$CI683=\"\"),\"N\",\"Y\"))","v":"-"},{"$f":"IF('Enrollment Form'!B683<>\"Subscriber\",\"-\",IF(AND('Enrollment Form'!B683=\"Subscriber\",'Enrollment Form'!C683=\"Enroll\",'Enrollment Form'!AA683=\"\"),\"N\",\"Y\"))","v":"-"},{"$f":"IF(OR('Enrollment Form'!B683=\"Subscriber\",'Enrollment Form'!B683=\"\"),\"-\",IF('Enrollment Form'!BI683=\"\",\"N\",\"Y\"))","v":"-"},{"$f":"IF('Enrollment Form'!B683<>\"Subscriber\",\"-\",IF(AND('Enrollment Form'!B683=\"Subscriber\",'Enrollment Form'!G683=\"\"),\"N\",\"Y\"))","v":"-"},{"$f":"IF('Enrollment Form'!A683=\"\",\"\",IF('Enrollment Form'!B683=\"Subscriber\",\"-\",IF(AND('Enrollment Form'!B683<>\"Subscriber\",'Enrollment Form'!G683='Enrollment Form'!H683),\"N\",\"Y\")))","v":""},0]
[684,{"$f":"IF('Enrollment Form'!$A684<>\"\",\"Y\",\"N\")","v":"N"},{"$f":"IF(AND('Enrollment Form'!$B684=\"\",'Enrollment Form'!$C684<>\"\"),\"N\",IF($B677=\"N\",\"\",\"Y\"))","v":""},{"$f":"IF(OR($B677=\"N\",'Enrollment Form'!G684=\"\"),\"\",IF('Enrollment Form'!$B684<>\"Subscriber\",\"\",IF('Enrollment Form'!$G684='Enrollment Form'!$H684,\"Y\",\"N\")))","v":""},{"$f":"IF($B677=\"N\",\"\",IF(AND(COUNTIFS('Enrollment Form'!$H$11:$H$1000,'Enrollment Form'!$H684,'Enrollment Form'!$B$11:$B$1000,'Enrollment Form'!$B684)>1,'Enrollment Form'!$H684<>\"\"),\"N\",\"Y\"))","v":""},{"$f":"IF($B677=\"N\",\"\",IF(LEN('Enrollment Form'!$Y684)=0,\"\",IF(LEN('Enrollment Form'!$Y684)<>5,\"N\",\"Y\")))","v":""},{"$f":"IF($B677=\"N\",\"\",IF(LEN('Enrollment Form'!$AD684=0),\"\",IF(LEN('Enrollment Form'!$AD684)<>5,\"N\",\"Y\")))","v":""},{"$f":"IF($B677=\"N\",\"\",IF(LEN('Enrollment Form'!$BL684=0),\"\",IF(LEN('Enrollment Form'!$BL684)<>5,\"N\",\"Y\")))","v":""},{"$f":"IF($B677=\"N\",\"\",IF(LEN('Enrollment Form'!$AE684)=0,\"\",IF(LEN('Enrollment Form'!$AE684)<>10,\"N\",\"Y\")))","v":""},{"$f":"IF($B677=\"N\",\"\",IF(LEN('Enrollment Form'!$AF684)=0,\"\",IF(LEN('Enrollment Form'!$AF684)<>10,\"N\",\"Y\")))","v":""},{"$f":"IF('Enrollment Form'!$O684<>\"Graded\",\"-\",IF(AND('Enrollment Form'!$O684=\"Graded\",'Enrollment Form'!$AO684<>\"\"),\"Y\",\"N\"))","v":"-"},{"$f":"IF($B677=\"N\",\"\",IF(OR('Enrollment Form'!$B684<>\"Subscriber\",'Enrollment Form'!$C684=\"ROC\"),\"-\",IF(AND('Enrollment Form'!$B684=\"Subscriber\",'Enrollment Form'!$C684=\"Enroll\",'Enrollment Form'!$AJ684<>\"\"),\"Y\",\"N\")))","v":""},{"$f":"IF($B677=\"N\",\"\",IF(OR('Enrollment Form'!$B684<>\"Subscriber\",'Enrollment Form'!$C684=\"ROC\"),\"-\",IF(AND('Enrollment Form'!$B684=\"Subscriber\",'Enrollment Form'!$C684=\"Enroll\",'Enrollment Form'!$AK684<>\"\"),\"Y\",\"N\")))","v":""},{"$f":"IF($B677=\"N\",\"\",IF(OR('Enrollment Form'!$B684<>\"Subscriber\",'Enrollment Form'!$C684=\"ROC\"),\"-\",IF(AND('Enrollment Form'!$B684=\"Subscriber\",'Enrollment Form'!$C684=\"Enroll\",'Enrollment Form'!$AL684<>\"\"),\"Y\",\"N\")))","v":""},{"$f":"IF($B677=\"N\",\"\",IF(OR('Enrollment Form'!$B684<>\"Subscriber\",'Enrollment Form'!$C684=\"ROC\"),\"-\",IF(AND('Enrollment Form'!$B684=\"Subscriber\",'Enrollment Form'!$C684=\"Enroll\",'Enrollment Form'!$AM684<>\"\"),\"Y\",\"N\")))","v":""},{"$f":"IF($B677=\"N\",\"\",IF(OR('Enrollment Form'!$B684<>\"Subscriber\",'Enrollment Form'!$C684=\"ROC\"),\"-\",IF(AND('Enrollment Form'!$B684=\"Subscriber\",'Enrollment Form'!$C684=\"Enroll\",'Enrollment Form'!$AN684<>\"\"),\"Y\",\"N\")))","v":""},{"$f":"IF($B677=\"N\",\"\",IF(OR('Enrollment Form'!$B684<>\"Subscriber\",'Enrollment Form'!$C684=\"ROC\"),\"-\",IF(AND('Enrollment Form'!$B684=\"Subscriber\",'Enrollment Form'!$C684=\"Enroll\",'Enrollment Form'!$AP684<>\"\"),\"Y\",\"N\")))","v":""},{"$f":"IF($B677=\"N\",\"\",IF($Q677=\"-\",\"-\",IF(AND($Q677=\"Y\",'Enrollment Form'!$AP684=\"No\"),\"-\",IF(AND($Q677=\"Y\",'Enrollment Form'!$AP684=\"Yes\",'Enrollment Form'!$AQ684<>\"\"),\"Y\",\"N\"))))","v":""},{"$f":"IF($B677=\"N\",\"\",IF(OR('Enrollment Form'!$B684<>\"Subscriber\",'Enrollment Form'!$C684=\"ROC\"),\"-\",IF(AND('Enrollment Form'!$B684=\"Subscriber\",'Enrollment Form'!$C684=\"Enroll\",'Enrollment Form'!$CO684<>\"\"),\"Y\",\"N\")))","v":""},{"$f":"IF($B677=\"N\",\"\",IF($S677=\"-\",\"-\",IF(AND($S677=\"Y\",'Enrollment Form'!$CO684=\"No\"),\"-\",IF(AND($S677=\"Y\",'Enrollment Form'!$CO684=\"Yes\",'Enrollment Form'!$CP684<>\"\"),\"Y\",\"N\"))))","v":""},{"$f":"IF(OR('Enrollment Form'!$AV684=\"Yes\",'Enrollment Form'!$AV684=\"\"),\"-\",IF(AND('Enrollment Form'!$AV684=\"No\",ISERROR(FIND(\"HMO\",VLOOKUP('Enrollment Form'!G684,'Enrollment Form'!H$11:J$1000,3,FALSE),1))=FALSE,COUNTA('Enrollment Form'!$AW684:$AZ684)=4),\"Y\",\"N\"))","v":"-"},{"$f":"IF($B677=\"N\",\"\",IF('Enrollment Form'!$B684=\"Subscriber\",\"-\",IF(COUNTA('Enrollment Form'!$BE684,'Enrollment Form'!$BG684)=2,\"Y\",\"N\")))","v":""},{"$f":"IF($B677=\"N\",\"\",IF(OR('Enrollment Form'!$AU684=\"\",'Enrollment Form'!$AU684=\"No\"),\"-\",IF(AND('Enrollment Form'!$AU684=\"Yes\",COUNTA('Enrollment Form'!$CK684)=1),\"Y\",\"N\")))","v":""},{"$f":"IF(OR('Enrollment Form'!$CK684=\"\",'Enrollment Form'!$CK684=\"No\"),\"-\",IF(COUNTA('Enrollment Form'!$CM684:$CN684)=2,\"Y\",\"N\"))","v":"-"},{"$f":"IF($B677=\"N\",\"\",IF(COUNTIF('Enrollment Form'!$CZ684:$DO684,\"Other\")=COUNTA('Enrollment Form'!$DF684,'Enrollment Form'!$DA684,'Enrollment Form'!$DK684,'Enrollment Form'!$DP684),\"Y\",\"N\"))","v":""},{"$f":"IF($B677=\"N\",\"\",IF(OR('Enrollment Form'!B684<>\"Subscriber\",'Enrollment Form'!C684=\"ROC\",COUNTIF('Enrollment Form'!AS684:AT684,\"Yes\")>=1),\"-\",IF(AND('Enrollment Form'!C684=\"Enroll\",COUNTIF('Enrollment Form'!AS684:AT684,\"No\")=2,'Enrollment Form'!AU684=\"\"),\"N\",\"Y\")))","v":""},{"$f":"IF(OR(B677=\"N\",'Enrollment Form'!B684<>\"Subscriber\",'Enrollment Form'!C684=\"ROC\",'Enrollment Form'!O684<>\"Multiple of Salary\"),\"-\",IF(COUNTA('Enrollment Form'!T684:U684)<2,\"N\",\"Y\"))","v":"-"},{"$f":"IF(B677=\"N\",\"\",IF(OR('Enrollment Form'!C684=\"ROC\",'Enrollment Form'!B684<>\"Subscriber\",'Enrollment Form'!O684=\"Waive\",'Enrollment Form'!O684=\"\"),\"-\",IF('Enrollment Form'!P684=\"\",\"N\",\"Y\")))","v":""},{"$f":"IF($B677=\"N\",\"\",IF(AND('Enrollment Form'!$C684=\"ROC\",'Enrollment Form'!$DS684<>\"\"),\"Y\",IF(AND('Enrollment Form'!$C684=\"ROC\",'Enrollment Form'!$DS684=\"\"),\"N\",IF(AND('Enrollment Form'!$C684=\"Enroll\",'Enrollment Form'!$B684=\"Subscriber\",'Enrollment Form'!$CQ684=\"No\",'Enrollment Form'!$DS684=\"\"),\"N\",IF(AND('Enrollment Form'!$C684=\"Enroll\",'Enrollment Form'!$B684=\"Subscriber\",'Enrollment Form'!$CQ684=\"Yes\"),\"-\",\"Y\")))))","v":""},{"$f":"IF($B677=\"N\",\"\",IF(AND('Enrollment Form'!$C684=\"ROC\",'Enrollment Form'!$DT684<>\"\"),\"Y\",IF(AND('Enrollment Form'!$C684=\"ROC\",'Enrollment Form'!$DT684=\"\"),\"N\",IF(AND('Enrollment Form'!$C684=\"Enroll\",'Enrollment Form'!$B684=\"Subscriber\",'Enrollment Form'!$CQ684=\"No\",'Enrollment Form'!$DT684=\"\"),\"N\",IF(AND('Enrollment Form'!$C684=\"Enroll\",'Enrollment Form'!$B684=\"Subscriber\",'Enrollment Form'!$CQ684=\"Yes\"),\"-\",\"Y\")))))","v":""},{"$f":"IF('Enrollment Form'!AH684=\"\",\"\",IF(ISERROR(SEARCH(\".\",'Enrollment Form'!AH684,SEARCH(\"@\",'Enrollment Form'!AH684))),\"N\",\"Y\"))","v":""},{"$f":"IF(OR($B677=\"N\",'Enrollment Form'!$G684=\"\"),\"\",IF('Enrollment Form'!$B684<>\"Subscriber\",\"-\",IF(COUNTIF('Enrollment Form'!$AS684:$AT684,\"Yes\")=2,\"N\",\"Y\")))","v":""},{"$f":"IF(OR('Enrollment Form'!$CC684=\"\",'Enrollment Form'!$CC684=\"No\"),\"-\",IF(AND('Enrollment Form'!$CC684=\"Yes\",'Enrollment Form'!$CD684=\"\"),\"N\",\"Y\"))","v":"-"},{"$f":"IF(OR('Enrollment Form'!$CE684=\"\",'Enrollment Form'!$CE684=\"No\"),\"-\",IF(AND('Enrollment Form'!$CE684=\"Yes\",'Enrollment Form'!$CF684=\"\"),\"N\",\"Y\"))","v":"-"},{"$f":"IF(OR('Enrollment Form'!$CG684=\"\",'Enrollment Form'!$CG684=\"No\"),\"-\",IF(AND('Enrollment Form'!$CG684=\"Yes\",'Enrollment Form'!$CH684=\"\"),\"N\",\"Y\"))","v":"-"},{"$f":"IF(OR('Enrollment Form'!$CG684=\"\",'Enrollment Form'!$CG684=\"No\"),\"-\",IF(AND('Enrollment Form'!$CG684=\"Yes\",'Enrollment Form'!$CI684=\"\"),\"N\",\"Y\"))","v":"-"},{"$f":"IF('Enrollment Form'!B684<>\"Subscriber\",\"-\",IF(AND('Enrollment Form'!B684=\"Subscriber\",'Enrollment Form'!C684=\"Enroll\",'Enrollment Form'!AA684=\"\"),\"N\",\"Y\"))","v":"-"},{"$f":"IF(OR('Enrollment Form'!B684=\"Subscriber\",'Enrollment Form'!B684=\"\"),\"-\",IF('Enrollment Form'!BI684=\"\",\"N\",\"Y\"))","v":"-"},{"$f":"IF('Enrollment Form'!B684<>\"Subscriber\",\"-\",IF(AND('Enrollment Form'!B684=\"Subscriber\",'Enrollment Form'!G684=\"\"),\"N\",\"Y\"))","v":"-"},{"$f":"IF('Enrollment Form'!A684=\"\",\"\",IF('Enrollment Form'!B684=\"Subscriber\",\"-\",IF(AND('Enrollment Form'!B684<>\"Subscriber\",'Enrollment Form'!G684='Enrollment Form'!H684),\"N\",\"Y\")))","v":""},0]
[685,{"$f":"IF('Enrollment Form'!$A685<>\"\",\"Y\",\"N\")","v":"N"},{"$f":"IF(AND('Enrollment Form'!$B685=\"\",'Enrollment Form'!$C685<>\"\"),\"N\",IF($B678=\"N\",\"\",\"Y\"))","v":""},{"$f":"IF(OR($B678=\"N\",'Enrollment Form'!G685=\"\"),\"\",IF('Enrollment Form'!$B685<>\"Subscriber\",\"\",IF('Enrollment Form'!$G685='Enrollment Form'!$H685,\"Y\",\"N\")))","v":""},{"$f":"IF($B678=\"N\",\"\",IF(AND(COUNTIFS('Enrollment Form'!$H$11:$H$1000,'Enrollment Form'!$H685,'Enrollment Form'!$B$11:$B$1000,'Enrollment Form'!$B685)>1,'Enrollment Form'!$H685<>\"\"),\"N\",\"Y\"))","v":""},{"$f":"IF($B678=\"N\",\"\",IF(LEN('Enrollment Form'!$Y685)=0,\"\",IF(LEN('Enrollment Form'!$Y685)<>5,\"N\",\"Y\")))","v":""},{"$f":"IF($B678=\"N\",\"\",IF(LEN('Enrollment Form'!$AD685=0),\"\",IF(LEN('Enrollment Form'!$AD685)<>5,\"N\",\"Y\")))","v":""},{"$f":"IF($B678=\"N\",\"\",IF(LEN('Enrollment Form'!$BL685=0),\"\",IF(LEN('Enrollment Form'!$BL685)<>5,\"N\",\"Y\")))","v":""},{"$f":"IF($B678=\"N\",\"\",IF(LEN('Enrollment Form'!$AE685)=0,\"\",IF(LEN('Enrollment Form'!$AE685)<>10,\"N\",\"Y\")))","v":""},{"$f":"IF($B678=\"N\",\"\",IF(LEN('Enrollment Form'!$AF685)=0,\"\",IF(LEN('Enrollment Form'!$AF685)<>10,\"N\",\"Y\")))","v":""},{"$f":"IF('Enrollment Form'!$O685<>\"Graded\",\"-\",IF(AND('Enrollment Form'!$O685=\"Graded\",'Enrollment Form'!$AO685<>\"\"),\"Y\",\"N\"))","v":"-"},{"$f":"IF($B678=\"N\",\"\",IF(OR('Enrollment Form'!$B685<>\"Subscriber\",'Enrollment Form'!$C685=\"ROC\"),\"-\",IF(AND('Enrollment Form'!$B685=\"Subscriber\",'Enrollment Form'!$C685=\"Enroll\",'Enrollment Form'!$AJ685<>\"\"),\"Y\",\"N\")))","v":""},{"$f":"IF($B678=\"N\",\"\",IF(OR('Enrollment Form'!$B685<>\"Subscriber\",'Enrollment Form'!$C685=\"ROC\"),\"-\",IF(AND('Enrollment Form'!$B685=\"Subscriber\",'Enrollment Form'!$C685=\"Enroll\",'Enrollment Form'!$AK685<>\"\"),\"Y\",\"N\")))","v":""},{"$f":"IF($B678=\"N\",\"\",IF(OR('Enrollment Form'!$B685<>\"Subscriber\",'Enrollment Form'!$C685=\"ROC\"),\"-\",IF(AND('Enrollment Form'!$B685=\"Subscriber\",'Enrollment Form'!$C685=\"Enroll\",'Enrollment Form'!$AL685<>\"\"),\"Y\",\"N\")))","v":""},{"$f":"IF($B678=\"N\",\"\",IF(OR('Enrollment Form'!$B685<>\"Subscriber\",'Enrollment Form'!$C685=\"ROC\"),\"-\",IF(AND('Enrollment Form'!$B685=\"Subscriber\",'Enrollment Form'!$C685=\"Enroll\",'Enrollment Form'!$AM685<>\"\"),\"Y\",\"N\")))","v":""},{"$f":"IF($B678=\"N\",\"\",IF(OR('Enrollment Form'!$B685<>\"Subscriber\",'Enrollment Form'!$C685=\"ROC\"),\"-\",IF(AND('Enrollment Form'!$B685=\"Subscriber\",'Enrollment Form'!$C685=\"Enroll\",'Enrollment Form'!$AN685<>\"\"),\"Y\",\"N\")))","v":""},{"$f":"IF($B678=\"N\",\"\",IF(OR('Enrollment Form'!$B685<>\"Subscriber\",'Enrollment Form'!$C685=\"ROC\"),\"-\",IF(AND('Enrollment Form'!$B685=\"Subscriber\",'Enrollment Form'!$C685=\"Enroll\",'Enrollment Form'!$AP685<>\"\"),\"Y\",\"N\")))","v":""},{"$f":"IF($B678=\"N\",\"\",IF($Q678=\"-\",\"-\",IF(AND($Q678=\"Y\",'Enrollment Form'!$AP685=\"No\"),\"-\",IF(AND($Q678=\"Y\",'Enrollment Form'!$AP685=\"Yes\",'Enrollment Form'!$AQ685<>\"\"),\"Y\",\"N\"))))","v":""},{"$f":"IF($B678=\"N\",\"\",IF(OR('Enrollment Form'!$B685<>\"Subscriber\",'Enrollment Form'!$C685=\"ROC\"),\"-\",IF(AND('Enrollment Form'!$B685=\"Subscriber\",'Enrollment Form'!$C685=\"Enroll\",'Enrollment Form'!$CO685<>\"\"),\"Y\",\"N\")))","v":""},{"$f":"IF($B678=\"N\",\"\",IF($S678=\"-\",\"-\",IF(AND($S678=\"Y\",'Enrollment Form'!$CO685=\"No\"),\"-\",IF(AND($S678=\"Y\",'Enrollment Form'!$CO685=\"Yes\",'Enrollment Form'!$CP685<>\"\"),\"Y\",\"N\"))))","v":""},{"$f":"IF(OR('Enrollment Form'!$AV685=\"Yes\",'Enrollment Form'!$AV685=\"\"),\"-\",IF(AND('Enrollment Form'!$AV685=\"No\",ISERROR(FIND(\"HMO\",VLOOKUP('Enrollment Form'!G685,'Enrollment Form'!H$11:J$1000,3,FALSE),1))=FALSE,COUNTA('Enrollment Form'!$AW685:$AZ685)=4),\"Y\",\"N\"))","v":"-"},{"$f":"IF($B678=\"N\",\"\",IF('Enrollment Form'!$B685=\"Subscriber\",\"-\",IF(COUNTA('Enrollment Form'!$BE685,'Enrollment Form'!$BG685)=2,\"Y\",\"N\")))","v":""},{"$f":"IF($B678=\"N\",\"\",IF(OR('Enrollment Form'!$AU685=\"\",'Enrollment Form'!$AU685=\"No\"),\"-\",IF(AND('Enrollment Form'!$AU685=\"Yes\",COUNTA('Enrollment Form'!$CK685)=1),\"Y\",\"N\")))","v":""},{"$f":"IF(OR('Enrollment Form'!$CK685=\"\",'Enrollment Form'!$CK685=\"No\"),\"-\",IF(COUNTA('Enrollment Form'!$CM685:$CN685)=2,\"Y\",\"N\"))","v":"-"},{"$f":"IF($B678=\"N\",\"\",IF(COUNTIF('Enrollment Form'!$CZ685:$DO685,\"Other\")=COUNTA('Enrollment Form'!$DF685,'Enrollment Form'!$DA685,'Enrollment Form'!$DK685,'Enrollment Form'!$DP685),\"Y\",\"N\"))","v":""},{"$f":"IF($B678=\"N\",\"\",IF(OR('Enrollment Form'!B685<>\"Subscriber\",'Enrollment Form'!C685=\"ROC\",COUNTIF('Enrollment Form'!AS685:AT685,\"Yes\")>=1),\"-\",IF(AND('Enrollment Form'!C685=\"Enroll\",COUNTIF('Enrollment Form'!AS685:AT685,\"No\")=2,'Enrollment Form'!AU685=\"\"),\"N\",\"Y\")))","v":""},{"$f":"IF(OR(B678=\"N\",'Enrollment Form'!B685<>\"Subscriber\",'Enrollment Form'!C685=\"ROC\",'Enrollment Form'!O685<>\"Multiple of Salary\"),\"-\",IF(COUNTA('Enrollment Form'!T685:U685)<2,\"N\",\"Y\"))","v":"-"},{"$f":"IF(B678=\"N\",\"\",IF(OR('Enrollment Form'!C685=\"ROC\",'Enrollment Form'!B685<>\"Subscriber\",'Enrollment Form'!O685=\"Waive\",'Enrollment Form'!O685=\"\"),\"-\",IF('Enrollment Form'!P685=\"\",\"N\",\"Y\")))","v":""},{"$f":"IF($B678=\"N\",\"\",IF(AND('Enrollment Form'!$C685=\"ROC\",'Enrollment Form'!$DS685<>\"\"),\"Y\",IF(AND('Enrollment Form'!$C685=\"ROC\",'Enrollment Form'!$DS685=\"\"),\"N\",IF(AND('Enrollment Form'!$C685=\"Enroll\",'Enrollment Form'!$B685=\"Subscriber\",'Enrollment Form'!$CQ685=\"No\",'Enrollment Form'!$DS685=\"\"),\"N\",IF(AND('Enrollment Form'!$C685=\"Enroll\",'Enrollment Form'!$B685=\"Subscriber\",'Enrollment Form'!$CQ685=\"Yes\"),\"-\",\"Y\")))))","v":""},{"$f":"IF($B678=\"N\",\"\",IF(AND('Enrollment Form'!$C685=\"ROC\",'Enrollment Form'!$DT685<>\"\"),\"Y\",IF(AND('Enrollment Form'!$C685=\"ROC\",'Enrollment Form'!$DT685=\"\"),\"N\",IF(AND('Enrollment Form'!$C685=\"Enroll\",'Enrollment Form'!$B685=\"Subscriber\",'Enrollment Form'!$CQ685=\"No\",'Enrollment Form'!$DT685=\"\"),\"N\",IF(AND('Enrollment Form'!$C685=\"Enroll\",'Enrollment Form'!$B685=\"Subscriber\",'Enrollment Form'!$CQ685=\"Yes\"),\"-\",\"Y\")))))","v":""},{"$f":"IF('Enrollment Form'!AH685=\"\",\"\",IF(ISERROR(SEARCH(\".\",'Enrollment Form'!AH685,SEARCH(\"@\",'Enrollment Form'!AH685))),\"N\",\"Y\"))","v":""},{"$f":"IF(OR($B678=\"N\",'Enrollment Form'!$G685=\"\"),\"\",IF('Enrollment Form'!$B685<>\"Subscriber\",\"-\",IF(COUNTIF('Enrollment Form'!$AS685:$AT685,\"Yes\")=2,\"N\",\"Y\")))","v":""},{"$f":"IF(OR('Enrollment Form'!$CC685=\"\",'Enrollment Form'!$CC685=\"No\"),\"-\",IF(AND('Enrollment Form'!$CC685=\"Yes\",'Enrollment Form'!$CD685=\"\"),\"N\",\"Y\"))","v":"-"},{"$f":"IF(OR('Enrollment Form'!$CE685=\"\",'Enrollment Form'!$CE685=\"No\"),\"-\",IF(AND('Enrollment Form'!$CE685=\"Yes\",'Enrollment Form'!$CF685=\"\"),\"N\",\"Y\"))","v":"-"},{"$f":"IF(OR('Enrollment Form'!$CG685=\"\",'Enrollment Form'!$CG685=\"No\"),\"-\",IF(AND('Enrollment Form'!$CG685=\"Yes\",'Enrollment Form'!$CH685=\"\"),\"N\",\"Y\"))","v":"-"},{"$f":"IF(OR('Enrollment Form'!$CG685=\"\",'Enrollment Form'!$CG685=\"No\"),\"-\",IF(AND('Enrollment Form'!$CG685=\"Yes\",'Enrollment Form'!$CI685=\"\"),\"N\",\"Y\"))","v":"-"},{"$f":"IF('Enrollment Form'!B685<>\"Subscriber\",\"-\",IF(AND('Enrollment Form'!B685=\"Subscriber\",'Enrollment Form'!C685=\"Enroll\",'Enrollment Form'!AA685=\"\"),\"N\",\"Y\"))","v":"-"},{"$f":"IF(OR('Enrollment Form'!B685=\"Subscriber\",'Enrollment Form'!B685=\"\"),\"-\",IF('Enrollment Form'!BI685=\"\",\"N\",\"Y\"))","v":"-"},{"$f":"IF('Enrollment Form'!B685<>\"Subscriber\",\"-\",IF(AND('Enrollment Form'!B685=\"Subscriber\",'Enrollment Form'!G685=\"\"),\"N\",\"Y\"))","v":"-"},{"$f":"IF('Enrollment Form'!A685=\"\",\"\",IF('Enrollment Form'!B685=\"Subscriber\",\"-\",IF(AND('Enrollment Form'!B685<>\"Subscriber\",'Enrollment Form'!G685='Enrollment Form'!H685),\"N\",\"Y\")))","v":""},0]
[686,{"$f":"IF('Enrollment Form'!$A686<>\"\",\"Y\",\"N\")","v":"N"},{"$f":"IF(AND('Enrollment Form'!$B686=\"\",'Enrollment Form'!$C686<>\"\"),\"N\",IF($B679=\"N\",\"\",\"Y\"))","v":""},{"$f":"IF(OR($B679=\"N\",'Enrollment Form'!G686=\"\"),\"\",IF('Enrollment Form'!$B686<>\"Subscriber\",\"\",IF('Enrollment Form'!$G686='Enrollment Form'!$H686,\"Y\",\"N\")))","v":""},{"$f":"IF($B679=\"N\",\"\",IF(AND(COUNTIFS('Enrollment Form'!$H$11:$H$1000,'Enrollment Form'!$H686,'Enrollment Form'!$B$11:$B$1000,'Enrollment Form'!$B686)>1,'Enrollment Form'!$H686<>\"\"),\"N\",\"Y\"))","v":""},{"$f":"IF($B679=\"N\",\"\",IF(LEN('Enrollment Form'!$Y686)=0,\"\",IF(LEN('Enrollment Form'!$Y686)<>5,\"N\",\"Y\")))","v":""},{"$f":"IF($B679=\"N\",\"\",IF(LEN('Enrollment Form'!$AD686=0),\"\",IF(LEN('Enrollment Form'!$AD686)<>5,\"N\",\"Y\")))","v":""},{"$f":"IF($B679=\"N\",\"\",IF(LEN('Enrollment Form'!$BL686=0),\"\",IF(LEN('Enrollment Form'!$BL686)<>5,\"N\",\"Y\")))","v":""},{"$f":"IF($B679=\"N\",\"\",IF(LEN('Enrollment Form'!$AE686)=0,\"\",IF(LEN('Enrollment Form'!$AE686)<>10,\"N\",\"Y\")))","v":""},{"$f":"IF($B679=\"N\",\"\",IF(LEN('Enrollment Form'!$AF686)=0,\"\",IF(LEN('Enrollment Form'!$AF686)<>10,\"N\",\"Y\")))","v":""},{"$f":"IF('Enrollment Form'!$O686<>\"Graded\",\"-\",IF(AND('Enrollment Form'!$O686=\"Graded\",'Enrollment Form'!$AO686<>\"\"),\"Y\",\"N\"))","v":"-"},{"$f":"IF($B679=\"N\",\"\",IF(OR('Enrollment Form'!$B686<>\"Subscriber\",'Enrollment Form'!$C686=\"ROC\"),\"-\",IF(AND('Enrollment Form'!$B686=\"Subscriber\",'Enrollment Form'!$C686=\"Enroll\",'Enrollment Form'!$AJ686<>\"\"),\"Y\",\"N\")))","v":""},{"$f":"IF($B679=\"N\",\"\",IF(OR('Enrollment Form'!$B686<>\"Subscriber\",'Enrollment Form'!$C686=\"ROC\"),\"-\",IF(AND('Enrollment Form'!$B686=\"Subscriber\",'Enrollment Form'!$C686=\"Enroll\",'Enrollment Form'!$AK686<>\"\"),\"Y\",\"N\")))","v":""},{"$f":"IF($B679=\"N\",\"\",IF(OR('Enrollment Form'!$B686<>\"Subscriber\",'Enrollment Form'!$C686=\"ROC\"),\"-\",IF(AND('Enrollment Form'!$B686=\"Subscriber\",'Enrollment Form'!$C686=\"Enroll\",'Enrollment Form'!$AL686<>\"\"),\"Y\",\"N\")))","v":""},{"$f":"IF($B679=\"N\",\"\",IF(OR('Enrollment Form'!$B686<>\"Subscriber\",'Enrollment Form'!$C686=\"ROC\"),\"-\",IF(AND('Enrollment Form'!$B686=\"Subscriber\",'Enrollment Form'!$C686=\"Enroll\",'Enrollment Form'!$AM686<>\"\"),\"Y\",\"N\")))","v":""},{"$f":"IF($B679=\"N\",\"\",IF(OR('Enrollment Form'!$B686<>\"Subscriber\",'Enrollment Form'!$C686=\"ROC\"),\"-\",IF(AND('Enrollment Form'!$B686=\"Subscriber\",'Enrollment Form'!$C686=\"Enroll\",'Enrollment Form'!$AN686<>\"\"),\"Y\",\"N\")))","v":""},{"$f":"IF($B679=\"N\",\"\",IF(OR('Enrollment Form'!$B686<>\"Subscriber\",'Enrollment Form'!$C686=\"ROC\"),\"-\",IF(AND('Enrollment Form'!$B686=\"Subscriber\",'Enrollment Form'!$C686=\"Enroll\",'Enrollment Form'!$AP686<>\"\"),\"Y\",\"N\")))","v":""},{"$f":"IF($B679=\"N\",\"\",IF($Q679=\"-\",\"-\",IF(AND($Q679=\"Y\",'Enrollment Form'!$AP686=\"No\"),\"-\",IF(AND($Q679=\"Y\",'Enrollment Form'!$AP686=\"Yes\",'Enrollment Form'!$AQ686<>\"\"),\"Y\",\"N\"))))","v":""},{"$f":"IF($B679=\"N\",\"\",IF(OR('Enrollment Form'!$B686<>\"Subscriber\",'Enrollment Form'!$C686=\"ROC\"),\"-\",IF(AND('Enrollment Form'!$B686=\"Subscriber\",'Enrollment Form'!$C686=\"Enroll\",'Enrollment Form'!$CO686<>\"\"),\"Y\",\"N\")))","v":""},{"$f":"IF($B679=\"N\",\"\",IF($S679=\"-\",\"-\",IF(AND($S679=\"Y\",'Enrollment Form'!$CO686=\"No\"),\"-\",IF(AND($S679=\"Y\",'Enrollment Form'!$CO686=\"Yes\",'Enrollment Form'!$CP686<>\"\"),\"Y\",\"N\"))))","v":""},{"$f":"IF(OR('Enrollment Form'!$AV686=\"Yes\",'Enrollment Form'!$AV686=\"\"),\"-\",IF(AND('Enrollment Form'!$AV686=\"No\",ISERROR(FIND(\"HMO\",VLOOKUP('Enrollment Form'!G686,'Enrollment Form'!H$11:J$1000,3,FALSE),1))=FALSE,COUNTA('Enrollment Form'!$AW686:$AZ686)=4),\"Y\",\"N\"))","v":"-"},{"$f":"IF($B679=\"N\",\"\",IF('Enrollment Form'!$B686=\"Subscriber\",\"-\",IF(COUNTA('Enrollment Form'!$BE686,'Enrollment Form'!$BG686)=2,\"Y\",\"N\")))","v":""},{"$f":"IF($B679=\"N\",\"\",IF(OR('Enrollment Form'!$AU686=\"\",'Enrollment Form'!$AU686=\"No\"),\"-\",IF(AND('Enrollment Form'!$AU686=\"Yes\",COUNTA('Enrollment Form'!$CK686)=1),\"Y\",\"N\")))","v":""},{"$f":"IF(OR('Enrollment Form'!$CK686=\"\",'Enrollment Form'!$CK686=\"No\"),\"-\",IF(COUNTA('Enrollment Form'!$CM686:$CN686)=2,\"Y\",\"N\"))","v":"-"},{"$f":"IF($B679=\"N\",\"\",IF(COUNTIF('Enrollment Form'!$CZ686:$DO686,\"Other\")=COUNTA('Enrollment Form'!$DF686,'Enrollment Form'!$DA686,'Enrollment Form'!$DK686,'Enrollment Form'!$DP686),\"Y\",\"N\"))","v":""},{"$f":"IF($B679=\"N\",\"\",IF(OR('Enrollment Form'!B686<>\"Subscriber\",'Enrollment Form'!C686=\"ROC\",COUNTIF('Enrollment Form'!AS686:AT686,\"Yes\")>=1),\"-\",IF(AND('Enrollment Form'!C686=\"Enroll\",COUNTIF('Enrollment Form'!AS686:AT686,\"No\")=2,'Enrollment Form'!AU686=\"\"),\"N\",\"Y\")))","v":""},{"$f":"IF(OR(B679=\"N\",'Enrollment Form'!B686<>\"Subscriber\",'Enrollment Form'!C686=\"ROC\",'Enrollment Form'!O686<>\"Multiple of Salary\"),\"-\",IF(COUNTA('Enrollment Form'!T686:U686)<2,\"N\",\"Y\"))","v":"-"},{"$f":"IF(B679=\"N\",\"\",IF(OR('Enrollment Form'!C686=\"ROC\",'Enrollment Form'!B686<>\"Subscriber\",'Enrollment Form'!O686=\"Waive\",'Enrollment Form'!O686=\"\"),\"-\",IF('Enrollment Form'!P686=\"\",\"N\",\"Y\")))","v":""},{"$f":"IF($B679=\"N\",\"\",IF(AND('Enrollment Form'!$C686=\"ROC\",'Enrollment Form'!$DS686<>\"\"),\"Y\",IF(AND('Enrollment Form'!$C686=\"ROC\",'Enrollment Form'!$DS686=\"\"),\"N\",IF(AND('Enrollment Form'!$C686=\"Enroll\",'Enrollment Form'!$B686=\"Subscriber\",'Enrollment Form'!$CQ686=\"No\",'Enrollment Form'!$DS686=\"\"),\"N\",IF(AND('Enrollment Form'!$C686=\"Enroll\",'Enrollment Form'!$B686=\"Subscriber\",'Enrollment Form'!$CQ686=\"Yes\"),\"-\",\"Y\")))))","v":""},{"$f":"IF($B679=\"N\",\"\",IF(AND('Enrollment Form'!$C686=\"ROC\",'Enrollment Form'!$DT686<>\"\"),\"Y\",IF(AND('Enrollment Form'!$C686=\"ROC\",'Enrollment Form'!$DT686=\"\"),\"N\",IF(AND('Enrollment Form'!$C686=\"Enroll\",'Enrollment Form'!$B686=\"Subscriber\",'Enrollment Form'!$CQ686=\"No\",'Enrollment Form'!$DT686=\"\"),\"N\",IF(AND('Enrollment Form'!$C686=\"Enroll\",'Enrollment Form'!$B686=\"Subscriber\",'Enrollment Form'!$CQ686=\"Yes\"),\"-\",\"Y\")))))","v":""},{"$f":"IF('Enrollment Form'!AH686=\"\",\"\",IF(ISERROR(SEARCH(\".\",'Enrollment Form'!AH686,SEARCH(\"@\",'Enrollment Form'!AH686))),\"N\",\"Y\"))","v":""},{"$f":"IF(OR($B679=\"N\",'Enrollment Form'!$G686=\"\"),\"\",IF('Enrollment Form'!$B686<>\"Subscriber\",\"-\",IF(COUNTIF('Enrollment Form'!$AS686:$AT686,\"Yes\")=2,\"N\",\"Y\")))","v":""},{"$f":"IF(OR('Enrollment Form'!$CC686=\"\",'Enrollment Form'!$CC686=\"No\"),\"-\",IF(AND('Enrollment Form'!$CC686=\"Yes\",'Enrollment Form'!$CD686=\"\"),\"N\",\"Y\"))","v":"-"},{"$f":"IF(OR('Enrollment Form'!$CE686=\"\",'Enrollment Form'!$CE686=\"No\"),\"-\",IF(AND('Enrollment Form'!$CE686=\"Yes\",'Enrollment Form'!$CF686=\"\"),\"N\",\"Y\"))","v":"-"},{"$f":"IF(OR('Enrollment Form'!$CG686=\"\",'Enrollment Form'!$CG686=\"No\"),\"-\",IF(AND('Enrollment Form'!$CG686=\"Yes\",'Enrollment Form'!$CH686=\"\"),\"N\",\"Y\"))","v":"-"},{"$f":"IF(OR('Enrollment Form'!$CG686=\"\",'Enrollment Form'!$CG686=\"No\"),\"-\",IF(AND('Enrollment Form'!$CG686=\"Yes\",'Enrollment Form'!$CI686=\"\"),\"N\",\"Y\"))","v":"-"},{"$f":"IF('Enrollment Form'!B686<>\"Subscriber\",\"-\",IF(AND('Enrollment Form'!B686=\"Subscriber\",'Enrollment Form'!C686=\"Enroll\",'Enrollment Form'!AA686=\"\"),\"N\",\"Y\"))","v":"-"},{"$f":"IF(OR('Enrollment Form'!B686=\"Subscriber\",'Enrollment Form'!B686=\"\"),\"-\",IF('Enrollment Form'!BI686=\"\",\"N\",\"Y\"))","v":"-"},{"$f":"IF('Enrollment Form'!B686<>\"Subscriber\",\"-\",IF(AND('Enrollment Form'!B686=\"Subscriber\",'Enrollment Form'!G686=\"\"),\"N\",\"Y\"))","v":"-"},{"$f":"IF('Enrollment Form'!A686=\"\",\"\",IF('Enrollment Form'!B686=\"Subscriber\",\"-\",IF(AND('Enrollment Form'!B686<>\"Subscriber\",'Enrollment Form'!G686='Enrollment Form'!H686),\"N\",\"Y\")))","v":""},0]
[687,{"$f":"IF('Enrollment Form'!$A687<>\"\",\"Y\",\"N\")","v":"N"},{"$f":"IF(AND('Enrollment Form'!$B687=\"\",'Enrollment Form'!$C687<>\"\"),\"N\",IF($B680=\"N\",\"\",\"Y\"))","v":""},{"$f":"IF(OR($B680=\"N\",'Enrollment Form'!G687=\"\"),\"\",IF('Enrollment Form'!$B687<>\"Subscriber\",\"\",IF('Enrollment Form'!$G687='Enrollment Form'!$H687,\"Y\",\"N\")))","v":""},{"$f":"IF($B680=\"N\",\"\",IF(AND(COUNTIFS('Enrollment Form'!$H$11:$H$1000,'Enrollment Form'!$H687,'Enrollment Form'!$B$11:$B$1000,'Enrollment Form'!$B687)>1,'Enrollment Form'!$H687<>\"\"),\"N\",\"Y\"))","v":""},{"$f":"IF($B680=\"N\",\"\",IF(LEN('Enrollment Form'!$Y687)=0,\"\",IF(LEN('Enrollment Form'!$Y687)<>5,\"N\",\"Y\")))","v":""},{"$f":"IF($B680=\"N\",\"\",IF(LEN('Enrollment Form'!$AD687=0),\"\",IF(LEN('Enrollment Form'!$AD687)<>5,\"N\",\"Y\")))","v":""},{"$f":"IF($B680=\"N\",\"\",IF(LEN('Enrollment Form'!$BL687=0),\"\",IF(LEN('Enrollment Form'!$BL687)<>5,\"N\",\"Y\")))","v":""},{"$f":"IF($B680=\"N\",\"\",IF(LEN('Enrollment Form'!$AE687)=0,\"\",IF(LEN('Enrollment Form'!$AE687)<>10,\"N\",\"Y\")))","v":""},{"$f":"IF($B680=\"N\",\"\",IF(LEN('Enrollment Form'!$AF687)=0,\"\",IF(LEN('Enrollment Form'!$AF687)<>10,\"N\",\"Y\")))","v":""},{"$f":"IF('Enrollment Form'!$O687<>\"Graded\",\"-\",IF(AND('Enrollment Form'!$O687=\"Graded\",'Enrollment Form'!$AO687<>\"\"),\"Y\",\"N\"))","v":"-"},{"$f":"IF($B680=\"N\",\"\",IF(OR('Enrollment Form'!$B687<>\"Subscriber\",'Enrollment Form'!$C687=\"ROC\"),\"-\",IF(AND('Enrollment Form'!$B687=\"Subscriber\",'Enrollment Form'!$C687=\"Enroll\",'Enrollment Form'!$AJ687<>\"\"),\"Y\",\"N\")))","v":""},{"$f":"IF($B680=\"N\",\"\",IF(OR('Enrollment Form'!$B687<>\"Subscriber\",'Enrollment Form'!$C687=\"ROC\"),\"-\",IF(AND('Enrollment Form'!$B687=\"Subscriber\",'Enrollment Form'!$C687=\"Enroll\",'Enrollment Form'!$AK687<>\"\"),\"Y\",\"N\")))","v":""},{"$f":"IF($B680=\"N\",\"\",IF(OR('Enrollment Form'!$B687<>\"Subscriber\",'Enrollment Form'!$C687=\"ROC\"),\"-\",IF(AND('Enrollment Form'!$B687=\"Subscriber\",'Enrollment Form'!$C687=\"Enroll\",'Enrollment Form'!$AL687<>\"\"),\"Y\",\"N\")))","v":""},{"$f":"IF($B680=\"N\",\"\",IF(OR('Enrollment Form'!$B687<>\"Subscriber\",'Enrollment Form'!$C687=\"ROC\"),\"-\",IF(AND('Enrollment Form'!$B687=\"Subscriber\",'Enrollment Form'!$C687=\"Enroll\",'Enrollment Form'!$AM687<>\"\"),\"Y\",\"N\")))","v":""},{"$f":"IF($B680=\"N\",\"\",IF(OR('Enrollment Form'!$B687<>\"Subscriber\",'Enrollment Form'!$C687=\"ROC\"),\"-\",IF(AND('Enrollment Form'!$B687=\"Subscriber\",'Enrollment Form'!$C687=\"Enroll\",'Enrollment Form'!$AN687<>\"\"),\"Y\",\"N\")))","v":""},{"$f":"IF($B680=\"N\",\"\",IF(OR('Enrollment Form'!$B687<>\"Subscriber\",'Enrollment Form'!$C687=\"ROC\"),\"-\",IF(AND('Enrollment Form'!$B687=\"Subscriber\",'Enrollment Form'!$C687=\"Enroll\",'Enrollment Form'!$AP687<>\"\"),\"Y\",\"N\")))","v":""},{"$f":"IF($B680=\"N\",\"\",IF($Q680=\"-\",\"-\",IF(AND($Q680=\"Y\",'Enrollment Form'!$AP687=\"No\"),\"-\",IF(AND($Q680=\"Y\",'Enrollment Form'!$AP687=\"Yes\",'Enrollment Form'!$AQ687<>\"\"),\"Y\",\"N\"))))","v":""},{"$f":"IF($B680=\"N\",\"\",IF(OR('Enrollment Form'!$B687<>\"Subscriber\",'Enrollment Form'!$C687=\"ROC\"),\"-\",IF(AND('Enrollment Form'!$B687=\"Subscriber\",'Enrollment Form'!$C687=\"Enroll\",'Enrollment Form'!$CO687<>\"\"),\"Y\",\"N\")))","v":""},{"$f":"IF($B680=\"N\",\"\",IF($S680=\"-\",\"-\",IF(AND($S680=\"Y\",'Enrollment Form'!$CO687=\"No\"),\"-\",IF(AND($S680=\"Y\",'Enrollment Form'!$CO687=\"Yes\",'Enrollment Form'!$CP687<>\"\"),\"Y\",\"N\"))))","v":""},{"$f":"IF(OR('Enrollment Form'!$AV687=\"Yes\",'Enrollment Form'!$AV687=\"\"),\"-\",IF(AND('Enrollment Form'!$AV687=\"No\",ISERROR(FIND(\"HMO\",VLOOKUP('Enrollment Form'!G687,'Enrollment Form'!H$11:J$1000,3,FALSE),1))=FALSE,COUNTA('Enrollment Form'!$AW687:$AZ687)=4),\"Y\",\"N\"))","v":"-"},{"$f":"IF($B680=\"N\",\"\",IF('Enrollment Form'!$B687=\"Subscriber\",\"-\",IF(COUNTA('Enrollment Form'!$BE687,'Enrollment Form'!$BG687)=2,\"Y\",\"N\")))","v":""},{"$f":"IF($B680=\"N\",\"\",IF(OR('Enrollment Form'!$AU687=\"\",'Enrollment Form'!$AU687=\"No\"),\"-\",IF(AND('Enrollment Form'!$AU687=\"Yes\",COUNTA('Enrollment Form'!$CK687)=1),\"Y\",\"N\")))","v":""},{"$f":"IF(OR('Enrollment Form'!$CK687=\"\",'Enrollment Form'!$CK687=\"No\"),\"-\",IF(COUNTA('Enrollment Form'!$CM687:$CN687)=2,\"Y\",\"N\"))","v":"-"},{"$f":"IF($B680=\"N\",\"\",IF(COUNTIF('Enrollment Form'!$CZ687:$DO687,\"Other\")=COUNTA('Enrollment Form'!$DF687,'Enrollment Form'!$DA687,'Enrollment Form'!$DK687,'Enrollment Form'!$DP687),\"Y\",\"N\"))","v":""},{"$f":"IF($B680=\"N\",\"\",IF(OR('Enrollment Form'!B687<>\"Subscriber\",'Enrollment Form'!C687=\"ROC\",COUNTIF('Enrollment Form'!AS687:AT687,\"Yes\")>=1),\"-\",IF(AND('Enrollment Form'!C687=\"Enroll\",COUNTIF('Enrollment Form'!AS687:AT687,\"No\")=2,'Enrollment Form'!AU687=\"\"),\"N\",\"Y\")))","v":""},{"$f":"IF(OR(B680=\"N\",'Enrollment Form'!B687<>\"Subscriber\",'Enrollment Form'!C687=\"ROC\",'Enrollment Form'!O687<>\"Multiple of Salary\"),\"-\",IF(COUNTA('Enrollment Form'!T687:U687)<2,\"N\",\"Y\"))","v":"-"},{"$f":"IF(B680=\"N\",\"\",IF(OR('Enrollment Form'!C687=\"ROC\",'Enrollment Form'!B687<>\"Subscriber\",'Enrollment Form'!O687=\"Waive\",'Enrollment Form'!O687=\"\"),\"-\",IF('Enrollment Form'!P687=\"\",\"N\",\"Y\")))","v":""},{"$f":"IF($B680=\"N\",\"\",IF(AND('Enrollment Form'!$C687=\"ROC\",'Enrollment Form'!$DS687<>\"\"),\"Y\",IF(AND('Enrollment Form'!$C687=\"ROC\",'Enrollment Form'!$DS687=\"\"),\"N\",IF(AND('Enrollment Form'!$C687=\"Enroll\",'Enrollment Form'!$B687=\"Subscriber\",'Enrollment Form'!$CQ687=\"No\",'Enrollment Form'!$DS687=\"\"),\"N\",IF(AND('Enrollment Form'!$C687=\"Enroll\",'Enrollment Form'!$B687=\"Subscriber\",'Enrollment Form'!$CQ687=\"Yes\"),\"-\",\"Y\")))))","v":""},{"$f":"IF($B680=\"N\",\"\",IF(AND('Enrollment Form'!$C687=\"ROC\",'Enrollment Form'!$DT687<>\"\"),\"Y\",IF(AND('Enrollment Form'!$C687=\"ROC\",'Enrollment Form'!$DT687=\"\"),\"N\",IF(AND('Enrollment Form'!$C687=\"Enroll\",'Enrollment Form'!$B687=\"Subscriber\",'Enrollment Form'!$CQ687=\"No\",'Enrollment Form'!$DT687=\"\"),\"N\",IF(AND('Enrollment Form'!$C687=\"Enroll\",'Enrollment Form'!$B687=\"Subscriber\",'Enrollment Form'!$CQ687=\"Yes\"),\"-\",\"Y\")))))","v":""},{"$f":"IF('Enrollment Form'!AH687=\"\",\"\",IF(ISERROR(SEARCH(\".\",'Enrollment Form'!AH687,SEARCH(\"@\",'Enrollment Form'!AH687))),\"N\",\"Y\"))","v":""},{"$f":"IF(OR($B680=\"N\",'Enrollment Form'!$G687=\"\"),\"\",IF('Enrollment Form'!$B687<>\"Subscriber\",\"-\",IF(COUNTIF('Enrollment Form'!$AS687:$AT687,\"Yes\")=2,\"N\",\"Y\")))","v":""},{"$f":"IF(OR('Enrollment Form'!$CC687=\"\",'Enrollment Form'!$CC687=\"No\"),\"-\",IF(AND('Enrollment Form'!$CC687=\"Yes\",'Enrollment Form'!$CD687=\"\"),\"N\",\"Y\"))","v":"-"},{"$f":"IF(OR('Enrollment Form'!$CE687=\"\",'Enrollment Form'!$CE687=\"No\"),\"-\",IF(AND('Enrollment Form'!$CE687=\"Yes\",'Enrollment Form'!$CF687=\"\"),\"N\",\"Y\"))","v":"-"},{"$f":"IF(OR('Enrollment Form'!$CG687=\"\",'Enrollment Form'!$CG687=\"No\"),\"-\",IF(AND('Enrollment Form'!$CG687=\"Yes\",'Enrollment Form'!$CH687=\"\"),\"N\",\"Y\"))","v":"-"},{"$f":"IF(OR('Enrollment Form'!$CG687=\"\",'Enrollment Form'!$CG687=\"No\"),\"-\",IF(AND('Enrollment Form'!$CG687=\"Yes\",'Enrollment Form'!$CI687=\"\"),\"N\",\"Y\"))","v":"-"},{"$f":"IF('Enrollment Form'!B687<>\"Subscriber\",\"-\",IF(AND('Enrollment Form'!B687=\"Subscriber\",'Enrollment Form'!C687=\"Enroll\",'Enrollment Form'!AA687=\"\"),\"N\",\"Y\"))","v":"-"},{"$f":"IF(OR('Enrollment Form'!B687=\"Subscriber\",'Enrollment Form'!B687=\"\"),\"-\",IF('Enrollment Form'!BI687=\"\",\"N\",\"Y\"))","v":"-"},{"$f":"IF('Enrollment Form'!B687<>\"Subscriber\",\"-\",IF(AND('Enrollment Form'!B687=\"Subscriber\",'Enrollment Form'!G687=\"\"),\"N\",\"Y\"))","v":"-"},{"$f":"IF('Enrollment Form'!A687=\"\",\"\",IF('Enrollment Form'!B687=\"Subscriber\",\"-\",IF(AND('Enrollment Form'!B687<>\"Subscriber\",'Enrollment Form'!G687='Enrollment Form'!H687),\"N\",\"Y\")))","v":""},0]
[688,{"$f":"IF('Enrollment Form'!$A688<>\"\",\"Y\",\"N\")","v":"N"},{"$f":"IF(AND('Enrollment Form'!$B688=\"\",'Enrollment Form'!$C688<>\"\"),\"N\",IF($B681=\"N\",\"\",\"Y\"))","v":""},{"$f":"IF(OR($B681=\"N\",'Enrollment Form'!G688=\"\"),\"\",IF('Enrollment Form'!$B688<>\"Subscriber\",\"\",IF('Enrollment Form'!$G688='Enrollment Form'!$H688,\"Y\",\"N\")))","v":""},{"$f":"IF($B681=\"N\",\"\",IF(AND(COUNTIFS('Enrollment Form'!$H$11:$H$1000,'Enrollment Form'!$H688,'Enrollment Form'!$B$11:$B$1000,'Enrollment Form'!$B688)>1,'Enrollment Form'!$H688<>\"\"),\"N\",\"Y\"))","v":""},{"$f":"IF($B681=\"N\",\"\",IF(LEN('Enrollment Form'!$Y688)=0,\"\",IF(LEN('Enrollment Form'!$Y688)<>5,\"N\",\"Y\")))","v":""},{"$f":"IF($B681=\"N\",\"\",IF(LEN('Enrollment Form'!$AD688=0),\"\",IF(LEN('Enrollment Form'!$AD688)<>5,\"N\",\"Y\")))","v":""},{"$f":"IF($B681=\"N\",\"\",IF(LEN('Enrollment Form'!$BL688=0),\"\",IF(LEN('Enrollment Form'!$BL688)<>5,\"N\",\"Y\")))","v":""},{"$f":"IF($B681=\"N\",\"\",IF(LEN('Enrollment Form'!$AE688)=0,\"\",IF(LEN('Enrollment Form'!$AE688)<>10,\"N\",\"Y\")))","v":""},{"$f":"IF($B681=\"N\",\"\",IF(LEN('Enrollment Form'!$AF688)=0,\"\",IF(LEN('Enrollment Form'!$AF688)<>10,\"N\",\"Y\")))","v":""},{"$f":"IF('Enrollment Form'!$O688<>\"Graded\",\"-\",IF(AND('Enrollment Form'!$O688=\"Graded\",'Enrollment Form'!$AO688<>\"\"),\"Y\",\"N\"))","v":"-"},{"$f":"IF($B681=\"N\",\"\",IF(OR('Enrollment Form'!$B688<>\"Subscriber\",'Enrollment Form'!$C688=\"ROC\"),\"-\",IF(AND('Enrollment Form'!$B688=\"Subscriber\",'Enrollment Form'!$C688=\"Enroll\",'Enrollment Form'!$AJ688<>\"\"),\"Y\",\"N\")))","v":""},{"$f":"IF($B681=\"N\",\"\",IF(OR('Enrollment Form'!$B688<>\"Subscriber\",'Enrollment Form'!$C688=\"ROC\"),\"-\",IF(AND('Enrollment Form'!$B688=\"Subscriber\",'Enrollment Form'!$C688=\"Enroll\",'Enrollment Form'!$AK688<>\"\"),\"Y\",\"N\")))","v":""},{"$f":"IF($B681=\"N\",\"\",IF(OR('Enrollment Form'!$B688<>\"Subscriber\",'Enrollment Form'!$C688=\"ROC\"),\"-\",IF(AND('Enrollment Form'!$B688=\"Subscriber\",'Enrollment Form'!$C688=\"Enroll\",'Enrollment Form'!$AL688<>\"\"),\"Y\",\"N\")))","v":""},{"$f":"IF($B681=\"N\",\"\",IF(OR('Enrollment Form'!$B688<>\"Subscriber\",'Enrollment Form'!$C688=\"ROC\"),\"-\",IF(AND('Enrollment Form'!$B688=\"Subscriber\",'Enrollment Form'!$C688=\"Enroll\",'Enrollment Form'!$AM688<>\"\"),\"Y\",\"N\")))","v":""},{"$f":"IF($B681=\"N\",\"\",IF(OR('Enrollment Form'!$B688<>\"Subscriber\",'Enrollment Form'!$C688=\"ROC\"),\"-\",IF(AND('Enrollment Form'!$B688=\"Subscriber\",'Enrollment Form'!$C688=\"Enroll\",'Enrollment Form'!$AN688<>\"\"),\"Y\",\"N\")))","v":""},{"$f":"IF($B681=\"N\",\"\",IF(OR('Enrollment Form'!$B688<>\"Subscriber\",'Enrollment Form'!$C688=\"ROC\"),\"-\",IF(AND('Enrollment Form'!$B688=\"Subscriber\",'Enrollment Form'!$C688=\"Enroll\",'Enrollment Form'!$AP688<>\"\"),\"Y\",\"N\")))","v":""},{"$f":"IF($B681=\"N\",\"\",IF($Q681=\"-\",\"-\",IF(AND($Q681=\"Y\",'Enrollment Form'!$AP688=\"No\"),\"-\",IF(AND($Q681=\"Y\",'Enrollment Form'!$AP688=\"Yes\",'Enrollment Form'!$AQ688<>\"\"),\"Y\",\"N\"))))","v":""},{"$f":"IF($B681=\"N\",\"\",IF(OR('Enrollment Form'!$B688<>\"Subscriber\",'Enrollment Form'!$C688=\"ROC\"),\"-\",IF(AND('Enrollment Form'!$B688=\"Subscriber\",'Enrollment Form'!$C688=\"Enroll\",'Enrollment Form'!$CO688<>\"\"),\"Y\",\"N\")))","v":""},{"$f":"IF($B681=\"N\",\"\",IF($S681=\"-\",\"-\",IF(AND($S681=\"Y\",'Enrollment Form'!$CO688=\"No\"),\"-\",IF(AND($S681=\"Y\",'Enrollment Form'!$CO688=\"Yes\",'Enrollment Form'!$CP688<>\"\"),\"Y\",\"N\"))))","v":""},{"$f":"IF(OR('Enrollment Form'!$AV688=\"Yes\",'Enrollment Form'!$AV688=\"\"),\"-\",IF(AND('Enrollment Form'!$AV688=\"No\",ISERROR(FIND(\"HMO\",VLOOKUP('Enrollment Form'!G688,'Enrollment Form'!H$11:J$1000,3,FALSE),1))=FALSE,COUNTA('Enrollment Form'!$AW688:$AZ688)=4),\"Y\",\"N\"))","v":"-"},{"$f":"IF($B681=\"N\",\"\",IF('Enrollment Form'!$B688=\"Subscriber\",\"-\",IF(COUNTA('Enrollment Form'!$BE688,'Enrollment Form'!$BG688)=2,\"Y\",\"N\")))","v":""},{"$f":"IF($B681=\"N\",\"\",IF(OR('Enrollment Form'!$AU688=\"\",'Enrollment Form'!$AU688=\"No\"),\"-\",IF(AND('Enrollment Form'!$AU688=\"Yes\",COUNTA('Enrollment Form'!$CK688)=1),\"Y\",\"N\")))","v":""},{"$f":"IF(OR('Enrollment Form'!$CK688=\"\",'Enrollment Form'!$CK688=\"No\"),\"-\",IF(COUNTA('Enrollment Form'!$CM688:$CN688)=2,\"Y\",\"N\"))","v":"-"},{"$f":"IF($B681=\"N\",\"\",IF(COUNTIF('Enrollment Form'!$CZ688:$DO688,\"Other\")=COUNTA('Enrollment Form'!$DF688,'Enrollment Form'!$DA688,'Enrollment Form'!$DK688,'Enrollment Form'!$DP688),\"Y\",\"N\"))","v":""},{"$f":"IF($B681=\"N\",\"\",IF(OR('Enrollment Form'!B688<>\"Subscriber\",'Enrollment Form'!C688=\"ROC\",COUNTIF('Enrollment Form'!AS688:AT688,\"Yes\")>=1),\"-\",IF(AND('Enrollment Form'!C688=\"Enroll\",COUNTIF('Enrollment Form'!AS688:AT688,\"No\")=2,'Enrollment Form'!AU688=\"\"),\"N\",\"Y\")))","v":""},{"$f":"IF(OR(B681=\"N\",'Enrollment Form'!B688<>\"Subscriber\",'Enrollment Form'!C688=\"ROC\",'Enrollment Form'!O688<>\"Multiple of Salary\"),\"-\",IF(COUNTA('Enrollment Form'!T688:U688)<2,\"N\",\"Y\"))","v":"-"},{"$f":"IF(B681=\"N\",\"\",IF(OR('Enrollment Form'!C688=\"ROC\",'Enrollment Form'!B688<>\"Subscriber\",'Enrollment Form'!O688=\"Waive\",'Enrollment Form'!O688=\"\"),\"-\",IF('Enrollment Form'!P688=\"\",\"N\",\"Y\")))","v":""},{"$f":"IF($B681=\"N\",\"\",IF(AND('Enrollment Form'!$C688=\"ROC\",'Enrollment Form'!$DS688<>\"\"),\"Y\",IF(AND('Enrollment Form'!$C688=\"ROC\",'Enrollment Form'!$DS688=\"\"),\"N\",IF(AND('Enrollment Form'!$C688=\"Enroll\",'Enrollment Form'!$B688=\"Subscriber\",'Enrollment Form'!$CQ688=\"No\",'Enrollment Form'!$DS688=\"\"),\"N\",IF(AND('Enrollment Form'!$C688=\"Enroll\",'Enrollment Form'!$B688=\"Subscriber\",'Enrollment Form'!$CQ688=\"Yes\"),\"-\",\"Y\")))))","v":""},{"$f":"IF($B681=\"N\",\"\",IF(AND('Enrollment Form'!$C688=\"ROC\",'Enrollment Form'!$DT688<>\"\"),\"Y\",IF(AND('Enrollment Form'!$C688=\"ROC\",'Enrollment Form'!$DT688=\"\"),\"N\",IF(AND('Enrollment Form'!$C688=\"Enroll\",'Enrollment Form'!$B688=\"Subscriber\",'Enrollment Form'!$CQ688=\"No\",'Enrollment Form'!$DT688=\"\"),\"N\",IF(AND('Enrollment Form'!$C688=\"Enroll\",'Enrollment Form'!$B688=\"Subscriber\",'Enrollment Form'!$CQ688=\"Yes\"),\"-\",\"Y\")))))","v":""},{"$f":"IF('Enrollment Form'!AH688=\"\",\"\",IF(ISERROR(SEARCH(\".\",'Enrollment Form'!AH688,SEARCH(\"@\",'Enrollment Form'!AH688))),\"N\",\"Y\"))","v":""},{"$f":"IF(OR($B681=\"N\",'Enrollment Form'!$G688=\"\"),\"\",IF('Enrollment Form'!$B688<>\"Subscriber\",\"-\",IF(COUNTIF('Enrollment Form'!$AS688:$AT688,\"Yes\")=2,\"N\",\"Y\")))","v":""},{"$f":"IF(OR('Enrollment Form'!$CC688=\"\",'Enrollment Form'!$CC688=\"No\"),\"-\",IF(AND('Enrollment Form'!$CC688=\"Yes\",'Enrollment Form'!$CD688=\"\"),\"N\",\"Y\"))","v":"-"},{"$f":"IF(OR('Enrollment Form'!$CE688=\"\",'Enrollment Form'!$CE688=\"No\"),\"-\",IF(AND('Enrollment Form'!$CE688=\"Yes\",'Enrollment Form'!$CF688=\"\"),\"N\",\"Y\"))","v":"-"},{"$f":"IF(OR('Enrollment Form'!$CG688=\"\",'Enrollment Form'!$CG688=\"No\"),\"-\",IF(AND('Enrollment Form'!$CG688=\"Yes\",'Enrollment Form'!$CH688=\"\"),\"N\",\"Y\"))","v":"-"},{"$f":"IF(OR('Enrollment Form'!$CG688=\"\",'Enrollment Form'!$CG688=\"No\"),\"-\",IF(AND('Enrollment Form'!$CG688=\"Yes\",'Enrollment Form'!$CI688=\"\"),\"N\",\"Y\"))","v":"-"},{"$f":"IF('Enrollment Form'!B688<>\"Subscriber\",\"-\",IF(AND('Enrollment Form'!B688=\"Subscriber\",'Enrollment Form'!C688=\"Enroll\",'Enrollment Form'!AA688=\"\"),\"N\",\"Y\"))","v":"-"},{"$f":"IF(OR('Enrollment Form'!B688=\"Subscriber\",'Enrollment Form'!B688=\"\"),\"-\",IF('Enrollment Form'!BI688=\"\",\"N\",\"Y\"))","v":"-"},{"$f":"IF('Enrollment Form'!B688<>\"Subscriber\",\"-\",IF(AND('Enrollment Form'!B688=\"Subscriber\",'Enrollment Form'!G688=\"\"),\"N\",\"Y\"))","v":"-"},{"$f":"IF('Enrollment Form'!A688=\"\",\"\",IF('Enrollment Form'!B688=\"Subscriber\",\"-\",IF(AND('Enrollment Form'!B688<>\"Subscriber\",'Enrollment Form'!G688='Enrollment Form'!H688),\"N\",\"Y\")))","v":""},0]
[689,{"$f":"IF('Enrollment Form'!$A689<>\"\",\"Y\",\"N\")","v":"N"},{"$f":"IF(AND('Enrollment Form'!$B689=\"\",'Enrollment Form'!$C689<>\"\"),\"N\",IF($B682=\"N\",\"\",\"Y\"))","v":""},{"$f":"IF(OR($B682=\"N\",'Enrollment Form'!G689=\"\"),\"\",IF('Enrollment Form'!$B689<>\"Subscriber\",\"\",IF('Enrollment Form'!$G689='Enrollment Form'!$H689,\"Y\",\"N\")))","v":""},{"$f":"IF($B682=\"N\",\"\",IF(AND(COUNTIFS('Enrollment Form'!$H$11:$H$1000,'Enrollment Form'!$H689,'Enrollment Form'!$B$11:$B$1000,'Enrollment Form'!$B689)>1,'Enrollment Form'!$H689<>\"\"),\"N\",\"Y\"))","v":""},{"$f":"IF($B682=\"N\",\"\",IF(LEN('Enrollment Form'!$Y689)=0,\"\",IF(LEN('Enrollment Form'!$Y689)<>5,\"N\",\"Y\")))","v":""},{"$f":"IF($B682=\"N\",\"\",IF(LEN('Enrollment Form'!$AD689=0),\"\",IF(LEN('Enrollment Form'!$AD689)<>5,\"N\",\"Y\")))","v":""},{"$f":"IF($B682=\"N\",\"\",IF(LEN('Enrollment Form'!$BL689=0),\"\",IF(LEN('Enrollment Form'!$BL689)<>5,\"N\",\"Y\")))","v":""},{"$f":"IF($B682=\"N\",\"\",IF(LEN('Enrollment Form'!$AE689)=0,\"\",IF(LEN('Enrollment Form'!$AE689)<>10,\"N\",\"Y\")))","v":""},{"$f":"IF($B682=\"N\",\"\",IF(LEN('Enrollment Form'!$AF689)=0,\"\",IF(LEN('Enrollment Form'!$AF689)<>10,\"N\",\"Y\")))","v":""},{"$f":"IF('Enrollment Form'!$O689<>\"Graded\",\"-\",IF(AND('Enrollment Form'!$O689=\"Graded\",'Enrollment Form'!$AO689<>\"\"),\"Y\",\"N\"))","v":"-"},{"$f":"IF($B682=\"N\",\"\",IF(OR('Enrollment Form'!$B689<>\"Subscriber\",'Enrollment Form'!$C689=\"ROC\"),\"-\",IF(AND('Enrollment Form'!$B689=\"Subscriber\",'Enrollment Form'!$C689=\"Enroll\",'Enrollment Form'!$AJ689<>\"\"),\"Y\",\"N\")))","v":""},{"$f":"IF($B682=\"N\",\"\",IF(OR('Enrollment Form'!$B689<>\"Subscriber\",'Enrollment Form'!$C689=\"ROC\"),\"-\",IF(AND('Enrollment Form'!$B689=\"Subscriber\",'Enrollment Form'!$C689=\"Enroll\",'Enrollment Form'!$AK689<>\"\"),\"Y\",\"N\")))","v":""},{"$f":"IF($B682=\"N\",\"\",IF(OR('Enrollment Form'!$B689<>\"Subscriber\",'Enrollment Form'!$C689=\"ROC\"),\"-\",IF(AND('Enrollment Form'!$B689=\"Subscriber\",'Enrollment Form'!$C689=\"Enroll\",'Enrollment Form'!$AL689<>\"\"),\"Y\",\"N\")))","v":""},{"$f":"IF($B682=\"N\",\"\",IF(OR('Enrollment Form'!$B689<>\"Subscriber\",'Enrollment Form'!$C689=\"ROC\"),\"-\",IF(AND('Enrollment Form'!$B689=\"Subscriber\",'Enrollment Form'!$C689=\"Enroll\",'Enrollment Form'!$AM689<>\"\"),\"Y\",\"N\")))","v":""},{"$f":"IF($B682=\"N\",\"\",IF(OR('Enrollment Form'!$B689<>\"Subscriber\",'Enrollment Form'!$C689=\"ROC\"),\"-\",IF(AND('Enrollment Form'!$B689=\"Subscriber\",'Enrollment Form'!$C689=\"Enroll\",'Enrollment Form'!$AN689<>\"\"),\"Y\",\"N\")))","v":""},{"$f":"IF($B682=\"N\",\"\",IF(OR('Enrollment Form'!$B689<>\"Subscriber\",'Enrollment Form'!$C689=\"ROC\"),\"-\",IF(AND('Enrollment Form'!$B689=\"Subscriber\",'Enrollment Form'!$C689=\"Enroll\",'Enrollment Form'!$AP689<>\"\"),\"Y\",\"N\")))","v":""},{"$f":"IF($B682=\"N\",\"\",IF($Q682=\"-\",\"-\",IF(AND($Q682=\"Y\",'Enrollment Form'!$AP689=\"No\"),\"-\",IF(AND($Q682=\"Y\",'Enrollment Form'!$AP689=\"Yes\",'Enrollment Form'!$AQ689<>\"\"),\"Y\",\"N\"))))","v":""},{"$f":"IF($B682=\"N\",\"\",IF(OR('Enrollment Form'!$B689<>\"Subscriber\",'Enrollment Form'!$C689=\"ROC\"),\"-\",IF(AND('Enrollment Form'!$B689=\"Subscriber\",'Enrollment Form'!$C689=\"Enroll\",'Enrollment Form'!$CO689<>\"\"),\"Y\",\"N\")))","v":""},{"$f":"IF($B682=\"N\",\"\",IF($S682=\"-\",\"-\",IF(AND($S682=\"Y\",'Enrollment Form'!$CO689=\"No\"),\"-\",IF(AND($S682=\"Y\",'Enrollment Form'!$CO689=\"Yes\",'Enrollment Form'!$CP689<>\"\"),\"Y\",\"N\"))))","v":""},{"$f":"IF(OR('Enrollment Form'!$AV689=\"Yes\",'Enrollment Form'!$AV689=\"\"),\"-\",IF(AND('Enrollment Form'!$AV689=\"No\",ISERROR(FIND(\"HMO\",VLOOKUP('Enrollment Form'!G689,'Enrollment Form'!H$11:J$1000,3,FALSE),1))=FALSE,COUNTA('Enrollment Form'!$AW689:$AZ689)=4),\"Y\",\"N\"))","v":"-"},{"$f":"IF($B682=\"N\",\"\",IF('Enrollment Form'!$B689=\"Subscriber\",\"-\",IF(COUNTA('Enrollment Form'!$BE689,'Enrollment Form'!$BG689)=2,\"Y\",\"N\")))","v":""},{"$f":"IF($B682=\"N\",\"\",IF(OR('Enrollment Form'!$AU689=\"\",'Enrollment Form'!$AU689=\"No\"),\"-\",IF(AND('Enrollment Form'!$AU689=\"Yes\",COUNTA('Enrollment Form'!$CK689)=1),\"Y\",\"N\")))","v":""},{"$f":"IF(OR('Enrollment Form'!$CK689=\"\",'Enrollment Form'!$CK689=\"No\"),\"-\",IF(COUNTA('Enrollment Form'!$CM689:$CN689)=2,\"Y\",\"N\"))","v":"-"},{"$f":"IF($B682=\"N\",\"\",IF(COUNTIF('Enrollment Form'!$CZ689:$DO689,\"Other\")=COUNTA('Enrollment Form'!$DF689,'Enrollment Form'!$DA689,'Enrollment Form'!$DK689,'Enrollment Form'!$DP689),\"Y\",\"N\"))","v":""},{"$f":"IF($B682=\"N\",\"\",IF(OR('Enrollment Form'!B689<>\"Subscriber\",'Enrollment Form'!C689=\"ROC\",COUNTIF('Enrollment Form'!AS689:AT689,\"Yes\")>=1),\"-\",IF(AND('Enrollment Form'!C689=\"Enroll\",COUNTIF('Enrollment Form'!AS689:AT689,\"No\")=2,'Enrollment Form'!AU689=\"\"),\"N\",\"Y\")))","v":""},{"$f":"IF(OR(B682=\"N\",'Enrollment Form'!B689<>\"Subscriber\",'Enrollment Form'!C689=\"ROC\",'Enrollment Form'!O689<>\"Multiple of Salary\"),\"-\",IF(COUNTA('Enrollment Form'!T689:U689)<2,\"N\",\"Y\"))","v":"-"},{"$f":"IF(B682=\"N\",\"\",IF(OR('Enrollment Form'!C689=\"ROC\",'Enrollment Form'!B689<>\"Subscriber\",'Enrollment Form'!O689=\"Waive\",'Enrollment Form'!O689=\"\"),\"-\",IF('Enrollment Form'!P689=\"\",\"N\",\"Y\")))","v":""},{"$f":"IF($B682=\"N\",\"\",IF(AND('Enrollment Form'!$C689=\"ROC\",'Enrollment Form'!$DS689<>\"\"),\"Y\",IF(AND('Enrollment Form'!$C689=\"ROC\",'Enrollment Form'!$DS689=\"\"),\"N\",IF(AND('Enrollment Form'!$C689=\"Enroll\",'Enrollment Form'!$B689=\"Subscriber\",'Enrollment Form'!$CQ689=\"No\",'Enrollment Form'!$DS689=\"\"),\"N\",IF(AND('Enrollment Form'!$C689=\"Enroll\",'Enrollment Form'!$B689=\"Subscriber\",'Enrollment Form'!$CQ689=\"Yes\"),\"-\",\"Y\")))))","v":""},{"$f":"IF($B682=\"N\",\"\",IF(AND('Enrollment Form'!$C689=\"ROC\",'Enrollment Form'!$DT689<>\"\"),\"Y\",IF(AND('Enrollment Form'!$C689=\"ROC\",'Enrollment Form'!$DT689=\"\"),\"N\",IF(AND('Enrollment Form'!$C689=\"Enroll\",'Enrollment Form'!$B689=\"Subscriber\",'Enrollment Form'!$CQ689=\"No\",'Enrollment Form'!$DT689=\"\"),\"N\",IF(AND('Enrollment Form'!$C689=\"Enroll\",'Enrollment Form'!$B689=\"Subscriber\",'Enrollment Form'!$CQ689=\"Yes\"),\"-\",\"Y\")))))","v":""},{"$f":"IF('Enrollment Form'!AH689=\"\",\"\",IF(ISERROR(SEARCH(\".\",'Enrollment Form'!AH689,SEARCH(\"@\",'Enrollment Form'!AH689))),\"N\",\"Y\"))","v":""},{"$f":"IF(OR($B682=\"N\",'Enrollment Form'!$G689=\"\"),\"\",IF('Enrollment Form'!$B689<>\"Subscriber\",\"-\",IF(COUNTIF('Enrollment Form'!$AS689:$AT689,\"Yes\")=2,\"N\",\"Y\")))","v":""},{"$f":"IF(OR('Enrollment Form'!$CC689=\"\",'Enrollment Form'!$CC689=\"No\"),\"-\",IF(AND('Enrollment Form'!$CC689=\"Yes\",'Enrollment Form'!$CD689=\"\"),\"N\",\"Y\"))","v":"-"},{"$f":"IF(OR('Enrollment Form'!$CE689=\"\",'Enrollment Form'!$CE689=\"No\"),\"-\",IF(AND('Enrollment Form'!$CE689=\"Yes\",'Enrollment Form'!$CF689=\"\"),\"N\",\"Y\"))","v":"-"},{"$f":"IF(OR('Enrollment Form'!$CG689=\"\",'Enrollment Form'!$CG689=\"No\"),\"-\",IF(AND('Enrollment Form'!$CG689=\"Yes\",'Enrollment Form'!$CH689=\"\"),\"N\",\"Y\"))","v":"-"},{"$f":"IF(OR('Enrollment Form'!$CG689=\"\",'Enrollment Form'!$CG689=\"No\"),\"-\",IF(AND('Enrollment Form'!$CG689=\"Yes\",'Enrollment Form'!$CI689=\"\"),\"N\",\"Y\"))","v":"-"},{"$f":"IF('Enrollment Form'!B689<>\"Subscriber\",\"-\",IF(AND('Enrollment Form'!B689=\"Subscriber\",'Enrollment Form'!C689=\"Enroll\",'Enrollment Form'!AA689=\"\"),\"N\",\"Y\"))","v":"-"},{"$f":"IF(OR('Enrollment Form'!B689=\"Subscriber\",'Enrollment Form'!B689=\"\"),\"-\",IF('Enrollment Form'!BI689=\"\",\"N\",\"Y\"))","v":"-"},{"$f":"IF('Enrollment Form'!B689<>\"Subscriber\",\"-\",IF(AND('Enrollment Form'!B689=\"Subscriber\",'Enrollment Form'!G689=\"\"),\"N\",\"Y\"))","v":"-"},{"$f":"IF('Enrollment Form'!A689=\"\",\"\",IF('Enrollment Form'!B689=\"Subscriber\",\"-\",IF(AND('Enrollment Form'!B689<>\"Subscriber\",'Enrollment Form'!G689='Enrollment Form'!H689),\"N\",\"Y\")))","v":""},0]
[690,{"$f":"IF('Enrollment Form'!$A690<>\"\",\"Y\",\"N\")","v":"N"},{"$f":"IF(AND('Enrollment Form'!$B690=\"\",'Enrollment Form'!$C690<>\"\"),\"N\",IF($B683=\"N\",\"\",\"Y\"))","v":""},{"$f":"IF(OR($B683=\"N\",'Enrollment Form'!G690=\"\"),\"\",IF('Enrollment Form'!$B690<>\"Subscriber\",\"\",IF('Enrollment Form'!$G690='Enrollment Form'!$H690,\"Y\",\"N\")))","v":""},{"$f":"IF($B683=\"N\",\"\",IF(AND(COUNTIFS('Enrollment Form'!$H$11:$H$1000,'Enrollment Form'!$H690,'Enrollment Form'!$B$11:$B$1000,'Enrollment Form'!$B690)>1,'Enrollment Form'!$H690<>\"\"),\"N\",\"Y\"))","v":""},{"$f":"IF($B683=\"N\",\"\",IF(LEN('Enrollment Form'!$Y690)=0,\"\",IF(LEN('Enrollment Form'!$Y690)<>5,\"N\",\"Y\")))","v":""},{"$f":"IF($B683=\"N\",\"\",IF(LEN('Enrollment Form'!$AD690=0),\"\",IF(LEN('Enrollment Form'!$AD690)<>5,\"N\",\"Y\")))","v":""},{"$f":"IF($B683=\"N\",\"\",IF(LEN('Enrollment Form'!$BL690=0),\"\",IF(LEN('Enrollment Form'!$BL690)<>5,\"N\",\"Y\")))","v":""},{"$f":"IF($B683=\"N\",\"\",IF(LEN('Enrollment Form'!$AE690)=0,\"\",IF(LEN('Enrollment Form'!$AE690)<>10,\"N\",\"Y\")))","v":""},{"$f":"IF($B683=\"N\",\"\",IF(LEN('Enrollment Form'!$AF690)=0,\"\",IF(LEN('Enrollment Form'!$AF690)<>10,\"N\",\"Y\")))","v":""},{"$f":"IF('Enrollment Form'!$O690<>\"Graded\",\"-\",IF(AND('Enrollment Form'!$O690=\"Graded\",'Enrollment Form'!$AO690<>\"\"),\"Y\",\"N\"))","v":"-"},{"$f":"IF($B683=\"N\",\"\",IF(OR('Enrollment Form'!$B690<>\"Subscriber\",'Enrollment Form'!$C690=\"ROC\"),\"-\",IF(AND('Enrollment Form'!$B690=\"Subscriber\",'Enrollment Form'!$C690=\"Enroll\",'Enrollment Form'!$AJ690<>\"\"),\"Y\",\"N\")))","v":""},{"$f":"IF($B683=\"N\",\"\",IF(OR('Enrollment Form'!$B690<>\"Subscriber\",'Enrollment Form'!$C690=\"ROC\"),\"-\",IF(AND('Enrollment Form'!$B690=\"Subscriber\",'Enrollment Form'!$C690=\"Enroll\",'Enrollment Form'!$AK690<>\"\"),\"Y\",\"N\")))","v":""},{"$f":"IF($B683=\"N\",\"\",IF(OR('Enrollment Form'!$B690<>\"Subscriber\",'Enrollment Form'!$C690=\"ROC\"),\"-\",IF(AND('Enrollment Form'!$B690=\"Subscriber\",'Enrollment Form'!$C690=\"Enroll\",'Enrollment Form'!$AL690<>\"\"),\"Y\",\"N\")))","v":""},{"$f":"IF($B683=\"N\",\"\",IF(OR('Enrollment Form'!$B690<>\"Subscriber\",'Enrollment Form'!$C690=\"ROC\"),\"-\",IF(AND('Enrollment Form'!$B690=\"Subscriber\",'Enrollment Form'!$C690=\"Enroll\",'Enrollment Form'!$AM690<>\"\"),\"Y\",\"N\")))","v":""},{"$f":"IF($B683=\"N\",\"\",IF(OR('Enrollment Form'!$B690<>\"Subscriber\",'Enrollment Form'!$C690=\"ROC\"),\"-\",IF(AND('Enrollment Form'!$B690=\"Subscriber\",'Enrollment Form'!$C690=\"Enroll\",'Enrollment Form'!$AN690<>\"\"),\"Y\",\"N\")))","v":""},{"$f":"IF($B683=\"N\",\"\",IF(OR('Enrollment Form'!$B690<>\"Subscriber\",'Enrollment Form'!$C690=\"ROC\"),\"-\",IF(AND('Enrollment Form'!$B690=\"Subscriber\",'Enrollment Form'!$C690=\"Enroll\",'Enrollment Form'!$AP690<>\"\"),\"Y\",\"N\")))","v":""},{"$f":"IF($B683=\"N\",\"\",IF($Q683=\"-\",\"-\",IF(AND($Q683=\"Y\",'Enrollment Form'!$AP690=\"No\"),\"-\",IF(AND($Q683=\"Y\",'Enrollment Form'!$AP690=\"Yes\",'Enrollment Form'!$AQ690<>\"\"),\"Y\",\"N\"))))","v":""},{"$f":"IF($B683=\"N\",\"\",IF(OR('Enrollment Form'!$B690<>\"Subscriber\",'Enrollment Form'!$C690=\"ROC\"),\"-\",IF(AND('Enrollment Form'!$B690=\"Subscriber\",'Enrollment Form'!$C690=\"Enroll\",'Enrollment Form'!$CO690<>\"\"),\"Y\",\"N\")))","v":""},{"$f":"IF($B683=\"N\",\"\",IF($S683=\"-\",\"-\",IF(AND($S683=\"Y\",'Enrollment Form'!$CO690=\"No\"),\"-\",IF(AND($S683=\"Y\",'Enrollment Form'!$CO690=\"Yes\",'Enrollment Form'!$CP690<>\"\"),\"Y\",\"N\"))))","v":""},{"$f":"IF(OR('Enrollment Form'!$AV690=\"Yes\",'Enrollment Form'!$AV690=\"\"),\"-\",IF(AND('Enrollment Form'!$AV690=\"No\",ISERROR(FIND(\"HMO\",VLOOKUP('Enrollment Form'!G690,'Enrollment Form'!H$11:J$1000,3,FALSE),1))=FALSE,COUNTA('Enrollment Form'!$AW690:$AZ690)=4),\"Y\",\"N\"))","v":"-"},{"$f":"IF($B683=\"N\",\"\",IF('Enrollment Form'!$B690=\"Subscriber\",\"-\",IF(COUNTA('Enrollment Form'!$BE690,'Enrollment Form'!$BG690)=2,\"Y\",\"N\")))","v":""},{"$f":"IF($B683=\"N\",\"\",IF(OR('Enrollment Form'!$AU690=\"\",'Enrollment Form'!$AU690=\"No\"),\"-\",IF(AND('Enrollment Form'!$AU690=\"Yes\",COUNTA('Enrollment Form'!$CK690)=1),\"Y\",\"N\")))","v":""},{"$f":"IF(OR('Enrollment Form'!$CK690=\"\",'Enrollment Form'!$CK690=\"No\"),\"-\",IF(COUNTA('Enrollment Form'!$CM690:$CN690)=2,\"Y\",\"N\"))","v":"-"},{"$f":"IF($B683=\"N\",\"\",IF(COUNTIF('Enrollment Form'!$CZ690:$DO690,\"Other\")=COUNTA('Enrollment Form'!$DF690,'Enrollment Form'!$DA690,'Enrollment Form'!$DK690,'Enrollment Form'!$DP690),\"Y\",\"N\"))","v":""},{"$f":"IF($B683=\"N\",\"\",IF(OR('Enrollment Form'!B690<>\"Subscriber\",'Enrollment Form'!C690=\"ROC\",COUNTIF('Enrollment Form'!AS690:AT690,\"Yes\")>=1),\"-\",IF(AND('Enrollment Form'!C690=\"Enroll\",COUNTIF('Enrollment Form'!AS690:AT690,\"No\")=2,'Enrollment Form'!AU690=\"\"),\"N\",\"Y\")))","v":""},{"$f":"IF(OR(B683=\"N\",'Enrollment Form'!B690<>\"Subscriber\",'Enrollment Form'!C690=\"ROC\",'Enrollment Form'!O690<>\"Multiple of Salary\"),\"-\",IF(COUNTA('Enrollment Form'!T690:U690)<2,\"N\",\"Y\"))","v":"-"},{"$f":"IF(B683=\"N\",\"\",IF(OR('Enrollment Form'!C690=\"ROC\",'Enrollment Form'!B690<>\"Subscriber\",'Enrollment Form'!O690=\"Waive\",'Enrollment Form'!O690=\"\"),\"-\",IF('Enrollment Form'!P690=\"\",\"N\",\"Y\")))","v":""},{"$f":"IF($B683=\"N\",\"\",IF(AND('Enrollment Form'!$C690=\"ROC\",'Enrollment Form'!$DS690<>\"\"),\"Y\",IF(AND('Enrollment Form'!$C690=\"ROC\",'Enrollment Form'!$DS690=\"\"),\"N\",IF(AND('Enrollment Form'!$C690=\"Enroll\",'Enrollment Form'!$B690=\"Subscriber\",'Enrollment Form'!$CQ690=\"No\",'Enrollment Form'!$DS690=\"\"),\"N\",IF(AND('Enrollment Form'!$C690=\"Enroll\",'Enrollment Form'!$B690=\"Subscriber\",'Enrollment Form'!$CQ690=\"Yes\"),\"-\",\"Y\")))))","v":""},{"$f":"IF($B683=\"N\",\"\",IF(AND('Enrollment Form'!$C690=\"ROC\",'Enrollment Form'!$DT690<>\"\"),\"Y\",IF(AND('Enrollment Form'!$C690=\"ROC\",'Enrollment Form'!$DT690=\"\"),\"N\",IF(AND('Enrollment Form'!$C690=\"Enroll\",'Enrollment Form'!$B690=\"Subscriber\",'Enrollment Form'!$CQ690=\"No\",'Enrollment Form'!$DT690=\"\"),\"N\",IF(AND('Enrollment Form'!$C690=\"Enroll\",'Enrollment Form'!$B690=\"Subscriber\",'Enrollment Form'!$CQ690=\"Yes\"),\"-\",\"Y\")))))","v":""},{"$f":"IF('Enrollment Form'!AH690=\"\",\"\",IF(ISERROR(SEARCH(\".\",'Enrollment Form'!AH690,SEARCH(\"@\",'Enrollment Form'!AH690))),\"N\",\"Y\"))","v":""},{"$f":"IF(OR($B683=\"N\",'Enrollment Form'!$G690=\"\"),\"\",IF('Enrollment Form'!$B690<>\"Subscriber\",\"-\",IF(COUNTIF('Enrollment Form'!$AS690:$AT690,\"Yes\")=2,\"N\",\"Y\")))","v":""},{"$f":"IF(OR('Enrollment Form'!$CC690=\"\",'Enrollment Form'!$CC690=\"No\"),\"-\",IF(AND('Enrollment Form'!$CC690=\"Yes\",'Enrollment Form'!$CD690=\"\"),\"N\",\"Y\"))","v":"-"},{"$f":"IF(OR('Enrollment Form'!$CE690=\"\",'Enrollment Form'!$CE690=\"No\"),\"-\",IF(AND('Enrollment Form'!$CE690=\"Yes\",'Enrollment Form'!$CF690=\"\"),\"N\",\"Y\"))","v":"-"},{"$f":"IF(OR('Enrollment Form'!$CG690=\"\",'Enrollment Form'!$CG690=\"No\"),\"-\",IF(AND('Enrollment Form'!$CG690=\"Yes\",'Enrollment Form'!$CH690=\"\"),\"N\",\"Y\"))","v":"-"},{"$f":"IF(OR('Enrollment Form'!$CG690=\"\",'Enrollment Form'!$CG690=\"No\"),\"-\",IF(AND('Enrollment Form'!$CG690=\"Yes\",'Enrollment Form'!$CI690=\"\"),\"N\",\"Y\"))","v":"-"},{"$f":"IF('Enrollment Form'!B690<>\"Subscriber\",\"-\",IF(AND('Enrollment Form'!B690=\"Subscriber\",'Enrollment Form'!C690=\"Enroll\",'Enrollment Form'!AA690=\"\"),\"N\",\"Y\"))","v":"-"},{"$f":"IF(OR('Enrollment Form'!B690=\"Subscriber\",'Enrollment Form'!B690=\"\"),\"-\",IF('Enrollment Form'!BI690=\"\",\"N\",\"Y\"))","v":"-"},{"$f":"IF('Enrollment Form'!B690<>\"Subscriber\",\"-\",IF(AND('Enrollment Form'!B690=\"Subscriber\",'Enrollment Form'!G690=\"\"),\"N\",\"Y\"))","v":"-"},{"$f":"IF('Enrollment Form'!A690=\"\",\"\",IF('Enrollment Form'!B690=\"Subscriber\",\"-\",IF(AND('Enrollment Form'!B690<>\"Subscriber\",'Enrollment Form'!G690='Enrollment Form'!H690),\"N\",\"Y\")))","v":""},0]
[691,{"$f":"IF('Enrollment Form'!$A691<>\"\",\"Y\",\"N\")","v":"N"},{"$f":"IF(AND('Enrollment Form'!$B691=\"\",'Enrollment Form'!$C691<>\"\"),\"N\",IF($B684=\"N\",\"\",\"Y\"))","v":""},{"$f":"IF(OR($B684=\"N\",'Enrollment Form'!G691=\"\"),\"\",IF('Enrollment Form'!$B691<>\"Subscriber\",\"\",IF('Enrollment Form'!$G691='Enrollment Form'!$H691,\"Y\",\"N\")))","v":""},{"$f":"IF($B684=\"N\",\"\",IF(AND(COUNTIFS('Enrollment Form'!$H$11:$H$1000,'Enrollment Form'!$H691,'Enrollment Form'!$B$11:$B$1000,'Enrollment Form'!$B691)>1,'Enrollment Form'!$H691<>\"\"),\"N\",\"Y\"))","v":""},{"$f":"IF($B684=\"N\",\"\",IF(LEN('Enrollment Form'!$Y691)=0,\"\",IF(LEN('Enrollment Form'!$Y691)<>5,\"N\",\"Y\")))","v":""},{"$f":"IF($B684=\"N\",\"\",IF(LEN('Enrollment Form'!$AD691=0),\"\",IF(LEN('Enrollment Form'!$AD691)<>5,\"N\",\"Y\")))","v":""},{"$f":"IF($B684=\"N\",\"\",IF(LEN('Enrollment Form'!$BL691=0),\"\",IF(LEN('Enrollment Form'!$BL691)<>5,\"N\",\"Y\")))","v":""},{"$f":"IF($B684=\"N\",\"\",IF(LEN('Enrollment Form'!$AE691)=0,\"\",IF(LEN('Enrollment Form'!$AE691)<>10,\"N\",\"Y\")))","v":""},{"$f":"IF($B684=\"N\",\"\",IF(LEN('Enrollment Form'!$AF691)=0,\"\",IF(LEN('Enrollment Form'!$AF691)<>10,\"N\",\"Y\")))","v":""},{"$f":"IF('Enrollment Form'!$O691<>\"Graded\",\"-\",IF(AND('Enrollment Form'!$O691=\"Graded\",'Enrollment Form'!$AO691<>\"\"),\"Y\",\"N\"))","v":"-"},{"$f":"IF($B684=\"N\",\"\",IF(OR('Enrollment Form'!$B691<>\"Subscriber\",'Enrollment Form'!$C691=\"ROC\"),\"-\",IF(AND('Enrollment Form'!$B691=\"Subscriber\",'Enrollment Form'!$C691=\"Enroll\",'Enrollment Form'!$AJ691<>\"\"),\"Y\",\"N\")))","v":""},{"$f":"IF($B684=\"N\",\"\",IF(OR('Enrollment Form'!$B691<>\"Subscriber\",'Enrollment Form'!$C691=\"ROC\"),\"-\",IF(AND('Enrollment Form'!$B691=\"Subscriber\",'Enrollment Form'!$C691=\"Enroll\",'Enrollment Form'!$AK691<>\"\"),\"Y\",\"N\")))","v":""},{"$f":"IF($B684=\"N\",\"\",IF(OR('Enrollment Form'!$B691<>\"Subscriber\",'Enrollment Form'!$C691=\"ROC\"),\"-\",IF(AND('Enrollment Form'!$B691=\"Subscriber\",'Enrollment Form'!$C691=\"Enroll\",'Enrollment Form'!$AL691<>\"\"),\"Y\",\"N\")))","v":""},{"$f":"IF($B684=\"N\",\"\",IF(OR('Enrollment Form'!$B691<>\"Subscriber\",'Enrollment Form'!$C691=\"ROC\"),\"-\",IF(AND('Enrollment Form'!$B691=\"Subscriber\",'Enrollment Form'!$C691=\"Enroll\",'Enrollment Form'!$AM691<>\"\"),\"Y\",\"N\")))","v":""},{"$f":"IF($B684=\"N\",\"\",IF(OR('Enrollment Form'!$B691<>\"Subscriber\",'Enrollment Form'!$C691=\"ROC\"),\"-\",IF(AND('Enrollment Form'!$B691=\"Subscriber\",'Enrollment Form'!$C691=\"Enroll\",'Enrollment Form'!$AN691<>\"\"),\"Y\",\"N\")))","v":""},{"$f":"IF($B684=\"N\",\"\",IF(OR('Enrollment Form'!$B691<>\"Subscriber\",'Enrollment Form'!$C691=\"ROC\"),\"-\",IF(AND('Enrollment Form'!$B691=\"Subscriber\",'Enrollment Form'!$C691=\"Enroll\",'Enrollment Form'!$AP691<>\"\"),\"Y\",\"N\")))","v":""},{"$f":"IF($B684=\"N\",\"\",IF($Q684=\"-\",\"-\",IF(AND($Q684=\"Y\",'Enrollment Form'!$AP691=\"No\"),\"-\",IF(AND($Q684=\"Y\",'Enrollment Form'!$AP691=\"Yes\",'Enrollment Form'!$AQ691<>\"\"),\"Y\",\"N\"))))","v":""},{"$f":"IF($B684=\"N\",\"\",IF(OR('Enrollment Form'!$B691<>\"Subscriber\",'Enrollment Form'!$C691=\"ROC\"),\"-\",IF(AND('Enrollment Form'!$B691=\"Subscriber\",'Enrollment Form'!$C691=\"Enroll\",'Enrollment Form'!$CO691<>\"\"),\"Y\",\"N\")))","v":""},{"$f":"IF($B684=\"N\",\"\",IF($S684=\"-\",\"-\",IF(AND($S684=\"Y\",'Enrollment Form'!$CO691=\"No\"),\"-\",IF(AND($S684=\"Y\",'Enrollment Form'!$CO691=\"Yes\",'Enrollment Form'!$CP691<>\"\"),\"Y\",\"N\"))))","v":""},{"$f":"IF(OR('Enrollment Form'!$AV691=\"Yes\",'Enrollment Form'!$AV691=\"\"),\"-\",IF(AND('Enrollment Form'!$AV691=\"No\",ISERROR(FIND(\"HMO\",VLOOKUP('Enrollment Form'!G691,'Enrollment Form'!H$11:J$1000,3,FALSE),1))=FALSE,COUNTA('Enrollment Form'!$AW691:$AZ691)=4),\"Y\",\"N\"))","v":"-"},{"$f":"IF($B684=\"N\",\"\",IF('Enrollment Form'!$B691=\"Subscriber\",\"-\",IF(COUNTA('Enrollment Form'!$BE691,'Enrollment Form'!$BG691)=2,\"Y\",\"N\")))","v":""},{"$f":"IF($B684=\"N\",\"\",IF(OR('Enrollment Form'!$AU691=\"\",'Enrollment Form'!$AU691=\"No\"),\"-\",IF(AND('Enrollment Form'!$AU691=\"Yes\",COUNTA('Enrollment Form'!$CK691)=1),\"Y\",\"N\")))","v":""},{"$f":"IF(OR('Enrollment Form'!$CK691=\"\",'Enrollment Form'!$CK691=\"No\"),\"-\",IF(COUNTA('Enrollment Form'!$CM691:$CN691)=2,\"Y\",\"N\"))","v":"-"},{"$f":"IF($B684=\"N\",\"\",IF(COUNTIF('Enrollment Form'!$CZ691:$DO691,\"Other\")=COUNTA('Enrollment Form'!$DF691,'Enrollment Form'!$DA691,'Enrollment Form'!$DK691,'Enrollment Form'!$DP691),\"Y\",\"N\"))","v":""},{"$f":"IF($B684=\"N\",\"\",IF(OR('Enrollment Form'!B691<>\"Subscriber\",'Enrollment Form'!C691=\"ROC\",COUNTIF('Enrollment Form'!AS691:AT691,\"Yes\")>=1),\"-\",IF(AND('Enrollment Form'!C691=\"Enroll\",COUNTIF('Enrollment Form'!AS691:AT691,\"No\")=2,'Enrollment Form'!AU691=\"\"),\"N\",\"Y\")))","v":""},{"$f":"IF(OR(B684=\"N\",'Enrollment Form'!B691<>\"Subscriber\",'Enrollment Form'!C691=\"ROC\",'Enrollment Form'!O691<>\"Multiple of Salary\"),\"-\",IF(COUNTA('Enrollment Form'!T691:U691)<2,\"N\",\"Y\"))","v":"-"},{"$f":"IF(B684=\"N\",\"\",IF(OR('Enrollment Form'!C691=\"ROC\",'Enrollment Form'!B691<>\"Subscriber\",'Enrollment Form'!O691=\"Waive\",'Enrollment Form'!O691=\"\"),\"-\",IF('Enrollment Form'!P691=\"\",\"N\",\"Y\")))","v":""},{"$f":"IF($B684=\"N\",\"\",IF(AND('Enrollment Form'!$C691=\"ROC\",'Enrollment Form'!$DS691<>\"\"),\"Y\",IF(AND('Enrollment Form'!$C691=\"ROC\",'Enrollment Form'!$DS691=\"\"),\"N\",IF(AND('Enrollment Form'!$C691=\"Enroll\",'Enrollment Form'!$B691=\"Subscriber\",'Enrollment Form'!$CQ691=\"No\",'Enrollment Form'!$DS691=\"\"),\"N\",IF(AND('Enrollment Form'!$C691=\"Enroll\",'Enrollment Form'!$B691=\"Subscriber\",'Enrollment Form'!$CQ691=\"Yes\"),\"-\",\"Y\")))))","v":""},{"$f":"IF($B684=\"N\",\"\",IF(AND('Enrollment Form'!$C691=\"ROC\",'Enrollment Form'!$DT691<>\"\"),\"Y\",IF(AND('Enrollment Form'!$C691=\"ROC\",'Enrollment Form'!$DT691=\"\"),\"N\",IF(AND('Enrollment Form'!$C691=\"Enroll\",'Enrollment Form'!$B691=\"Subscriber\",'Enrollment Form'!$CQ691=\"No\",'Enrollment Form'!$DT691=\"\"),\"N\",IF(AND('Enrollment Form'!$C691=\"Enroll\",'Enrollment Form'!$B691=\"Subscriber\",'Enrollment Form'!$CQ691=\"Yes\"),\"-\",\"Y\")))))","v":""},{"$f":"IF('Enrollment Form'!AH691=\"\",\"\",IF(ISERROR(SEARCH(\".\",'Enrollment Form'!AH691,SEARCH(\"@\",'Enrollment Form'!AH691))),\"N\",\"Y\"))","v":""},{"$f":"IF(OR($B684=\"N\",'Enrollment Form'!$G691=\"\"),\"\",IF('Enrollment Form'!$B691<>\"Subscriber\",\"-\",IF(COUNTIF('Enrollment Form'!$AS691:$AT691,\"Yes\")=2,\"N\",\"Y\")))","v":""},{"$f":"IF(OR('Enrollment Form'!$CC691=\"\",'Enrollment Form'!$CC691=\"No\"),\"-\",IF(AND('Enrollment Form'!$CC691=\"Yes\",'Enrollment Form'!$CD691=\"\"),\"N\",\"Y\"))","v":"-"},{"$f":"IF(OR('Enrollment Form'!$CE691=\"\",'Enrollment Form'!$CE691=\"No\"),\"-\",IF(AND('Enrollment Form'!$CE691=\"Yes\",'Enrollment Form'!$CF691=\"\"),\"N\",\"Y\"))","v":"-"},{"$f":"IF(OR('Enrollment Form'!$CG691=\"\",'Enrollment Form'!$CG691=\"No\"),\"-\",IF(AND('Enrollment Form'!$CG691=\"Yes\",'Enrollment Form'!$CH691=\"\"),\"N\",\"Y\"))","v":"-"},{"$f":"IF(OR('Enrollment Form'!$CG691=\"\",'Enrollment Form'!$CG691=\"No\"),\"-\",IF(AND('Enrollment Form'!$CG691=\"Yes\",'Enrollment Form'!$CI691=\"\"),\"N\",\"Y\"))","v":"-"},{"$f":"IF('Enrollment Form'!B691<>\"Subscriber\",\"-\",IF(AND('Enrollment Form'!B691=\"Subscriber\",'Enrollment Form'!C691=\"Enroll\",'Enrollment Form'!AA691=\"\"),\"N\",\"Y\"))","v":"-"},{"$f":"IF(OR('Enrollment Form'!B691=\"Subscriber\",'Enrollment Form'!B691=\"\"),\"-\",IF('Enrollment Form'!BI691=\"\",\"N\",\"Y\"))","v":"-"},{"$f":"IF('Enrollment Form'!B691<>\"Subscriber\",\"-\",IF(AND('Enrollment Form'!B691=\"Subscriber\",'Enrollment Form'!G691=\"\"),\"N\",\"Y\"))","v":"-"},{"$f":"IF('Enrollment Form'!A691=\"\",\"\",IF('Enrollment Form'!B691=\"Subscriber\",\"-\",IF(AND('Enrollment Form'!B691<>\"Subscriber\",'Enrollment Form'!G691='Enrollment Form'!H691),\"N\",\"Y\")))","v":""},0]
[692,{"$f":"IF('Enrollment Form'!$A692<>\"\",\"Y\",\"N\")","v":"N"},{"$f":"IF(AND('Enrollment Form'!$B692=\"\",'Enrollment Form'!$C692<>\"\"),\"N\",IF($B685=\"N\",\"\",\"Y\"))","v":""},{"$f":"IF(OR($B685=\"N\",'Enrollment Form'!G692=\"\"),\"\",IF('Enrollment Form'!$B692<>\"Subscriber\",\"\",IF('Enrollment Form'!$G692='Enrollment Form'!$H692,\"Y\",\"N\")))","v":""},{"$f":"IF($B685=\"N\",\"\",IF(AND(COUNTIFS('Enrollment Form'!$H$11:$H$1000,'Enrollment Form'!$H692,'Enrollment Form'!$B$11:$B$1000,'Enrollment Form'!$B692)>1,'Enrollment Form'!$H692<>\"\"),\"N\",\"Y\"))","v":""},{"$f":"IF($B685=\"N\",\"\",IF(LEN('Enrollment Form'!$Y692)=0,\"\",IF(LEN('Enrollment Form'!$Y692)<>5,\"N\",\"Y\")))","v":""},{"$f":"IF($B685=\"N\",\"\",IF(LEN('Enrollment Form'!$AD692=0),\"\",IF(LEN('Enrollment Form'!$AD692)<>5,\"N\",\"Y\")))","v":""},{"$f":"IF($B685=\"N\",\"\",IF(LEN('Enrollment Form'!$BL692=0),\"\",IF(LEN('Enrollment Form'!$BL692)<>5,\"N\",\"Y\")))","v":""},{"$f":"IF($B685=\"N\",\"\",IF(LEN('Enrollment Form'!$AE692)=0,\"\",IF(LEN('Enrollment Form'!$AE692)<>10,\"N\",\"Y\")))","v":""},{"$f":"IF($B685=\"N\",\"\",IF(LEN('Enrollment Form'!$AF692)=0,\"\",IF(LEN('Enrollment Form'!$AF692)<>10,\"N\",\"Y\")))","v":""},{"$f":"IF('Enrollment Form'!$O692<>\"Graded\",\"-\",IF(AND('Enrollment Form'!$O692=\"Graded\",'Enrollment Form'!$AO692<>\"\"),\"Y\",\"N\"))","v":"-"},{"$f":"IF($B685=\"N\",\"\",IF(OR('Enrollment Form'!$B692<>\"Subscriber\",'Enrollment Form'!$C692=\"ROC\"),\"-\",IF(AND('Enrollment Form'!$B692=\"Subscriber\",'Enrollment Form'!$C692=\"Enroll\",'Enrollment Form'!$AJ692<>\"\"),\"Y\",\"N\")))","v":""},{"$f":"IF($B685=\"N\",\"\",IF(OR('Enrollment Form'!$B692<>\"Subscriber\",'Enrollment Form'!$C692=\"ROC\"),\"-\",IF(AND('Enrollment Form'!$B692=\"Subscriber\",'Enrollment Form'!$C692=\"Enroll\",'Enrollment Form'!$AK692<>\"\"),\"Y\",\"N\")))","v":""},{"$f":"IF($B685=\"N\",\"\",IF(OR('Enrollment Form'!$B692<>\"Subscriber\",'Enrollment Form'!$C692=\"ROC\"),\"-\",IF(AND('Enrollment Form'!$B692=\"Subscriber\",'Enrollment Form'!$C692=\"Enroll\",'Enrollment Form'!$AL692<>\"\"),\"Y\",\"N\")))","v":""},{"$f":"IF($B685=\"N\",\"\",IF(OR('Enrollment Form'!$B692<>\"Subscriber\",'Enrollment Form'!$C692=\"ROC\"),\"-\",IF(AND('Enrollment Form'!$B692=\"Subscriber\",'Enrollment Form'!$C692=\"Enroll\",'Enrollment Form'!$AM692<>\"\"),\"Y\",\"N\")))","v":""},{"$f":"IF($B685=\"N\",\"\",IF(OR('Enrollment Form'!$B692<>\"Subscriber\",'Enrollment Form'!$C692=\"ROC\"),\"-\",IF(AND('Enrollment Form'!$B692=\"Subscriber\",'Enrollment Form'!$C692=\"Enroll\",'Enrollment Form'!$AN692<>\"\"),\"Y\",\"N\")))","v":""},{"$f":"IF($B685=\"N\",\"\",IF(OR('Enrollment Form'!$B692<>\"Subscriber\",'Enrollment Form'!$C692=\"ROC\"),\"-\",IF(AND('Enrollment Form'!$B692=\"Subscriber\",'Enrollment Form'!$C692=\"Enroll\",'Enrollment Form'!$AP692<>\"\"),\"Y\",\"N\")))","v":""},{"$f":"IF($B685=\"N\",\"\",IF($Q685=\"-\",\"-\",IF(AND($Q685=\"Y\",'Enrollment Form'!$AP692=\"No\"),\"-\",IF(AND($Q685=\"Y\",'Enrollment Form'!$AP692=\"Yes\",'Enrollment Form'!$AQ692<>\"\"),\"Y\",\"N\"))))","v":""},{"$f":"IF($B685=\"N\",\"\",IF(OR('Enrollment Form'!$B692<>\"Subscriber\",'Enrollment Form'!$C692=\"ROC\"),\"-\",IF(AND('Enrollment Form'!$B692=\"Subscriber\",'Enrollment Form'!$C692=\"Enroll\",'Enrollment Form'!$CO692<>\"\"),\"Y\",\"N\")))","v":""},{"$f":"IF($B685=\"N\",\"\",IF($S685=\"-\",\"-\",IF(AND($S685=\"Y\",'Enrollment Form'!$CO692=\"No\"),\"-\",IF(AND($S685=\"Y\",'Enrollment Form'!$CO692=\"Yes\",'Enrollment Form'!$CP692<>\"\"),\"Y\",\"N\"))))","v":""},{"$f":"IF(OR('Enrollment Form'!$AV692=\"Yes\",'Enrollment Form'!$AV692=\"\"),\"-\",IF(AND('Enrollment Form'!$AV692=\"No\",ISERROR(FIND(\"HMO\",VLOOKUP('Enrollment Form'!G692,'Enrollment Form'!H$11:J$1000,3,FALSE),1))=FALSE,COUNTA('Enrollment Form'!$AW692:$AZ692)=4),\"Y\",\"N\"))","v":"-"},{"$f":"IF($B685=\"N\",\"\",IF('Enrollment Form'!$B692=\"Subscriber\",\"-\",IF(COUNTA('Enrollment Form'!$BE692,'Enrollment Form'!$BG692)=2,\"Y\",\"N\")))","v":""},{"$f":"IF($B685=\"N\",\"\",IF(OR('Enrollment Form'!$AU692=\"\",'Enrollment Form'!$AU692=\"No\"),\"-\",IF(AND('Enrollment Form'!$AU692=\"Yes\",COUNTA('Enrollment Form'!$CK692)=1),\"Y\",\"N\")))","v":""},{"$f":"IF(OR('Enrollment Form'!$CK692=\"\",'Enrollment Form'!$CK692=\"No\"),\"-\",IF(COUNTA('Enrollment Form'!$CM692:$CN692)=2,\"Y\",\"N\"))","v":"-"},{"$f":"IF($B685=\"N\",\"\",IF(COUNTIF('Enrollment Form'!$CZ692:$DO692,\"Other\")=COUNTA('Enrollment Form'!$DF692,'Enrollment Form'!$DA692,'Enrollment Form'!$DK692,'Enrollment Form'!$DP692),\"Y\",\"N\"))","v":""},{"$f":"IF($B685=\"N\",\"\",IF(OR('Enrollment Form'!B692<>\"Subscriber\",'Enrollment Form'!C692=\"ROC\",COUNTIF('Enrollment Form'!AS692:AT692,\"Yes\")>=1),\"-\",IF(AND('Enrollment Form'!C692=\"Enroll\",COUNTIF('Enrollment Form'!AS692:AT692,\"No\")=2,'Enrollment Form'!AU692=\"\"),\"N\",\"Y\")))","v":""},{"$f":"IF(OR(B685=\"N\",'Enrollment Form'!B692<>\"Subscriber\",'Enrollment Form'!C692=\"ROC\",'Enrollment Form'!O692<>\"Multiple of Salary\"),\"-\",IF(COUNTA('Enrollment Form'!T692:U692)<2,\"N\",\"Y\"))","v":"-"},{"$f":"IF(B685=\"N\",\"\",IF(OR('Enrollment Form'!C692=\"ROC\",'Enrollment Form'!B692<>\"Subscriber\",'Enrollment Form'!O692=\"Waive\",'Enrollment Form'!O692=\"\"),\"-\",IF('Enrollment Form'!P692=\"\",\"N\",\"Y\")))","v":""},{"$f":"IF($B685=\"N\",\"\",IF(AND('Enrollment Form'!$C692=\"ROC\",'Enrollment Form'!$DS692<>\"\"),\"Y\",IF(AND('Enrollment Form'!$C692=\"ROC\",'Enrollment Form'!$DS692=\"\"),\"N\",IF(AND('Enrollment Form'!$C692=\"Enroll\",'Enrollment Form'!$B692=\"Subscriber\",'Enrollment Form'!$CQ692=\"No\",'Enrollment Form'!$DS692=\"\"),\"N\",IF(AND('Enrollment Form'!$C692=\"Enroll\",'Enrollment Form'!$B692=\"Subscriber\",'Enrollment Form'!$CQ692=\"Yes\"),\"-\",\"Y\")))))","v":""},{"$f":"IF($B685=\"N\",\"\",IF(AND('Enrollment Form'!$C692=\"ROC\",'Enrollment Form'!$DT692<>\"\"),\"Y\",IF(AND('Enrollment Form'!$C692=\"ROC\",'Enrollment Form'!$DT692=\"\"),\"N\",IF(AND('Enrollment Form'!$C692=\"Enroll\",'Enrollment Form'!$B692=\"Subscriber\",'Enrollment Form'!$CQ692=\"No\",'Enrollment Form'!$DT692=\"\"),\"N\",IF(AND('Enrollment Form'!$C692=\"Enroll\",'Enrollment Form'!$B692=\"Subscriber\",'Enrollment Form'!$CQ692=\"Yes\"),\"-\",\"Y\")))))","v":""},{"$f":"IF('Enrollment Form'!AH692=\"\",\"\",IF(ISERROR(SEARCH(\".\",'Enrollment Form'!AH692,SEARCH(\"@\",'Enrollment Form'!AH692))),\"N\",\"Y\"))","v":""},{"$f":"IF(OR($B685=\"N\",'Enrollment Form'!$G692=\"\"),\"\",IF('Enrollment Form'!$B692<>\"Subscriber\",\"-\",IF(COUNTIF('Enrollment Form'!$AS692:$AT692,\"Yes\")=2,\"N\",\"Y\")))","v":""},{"$f":"IF(OR('Enrollment Form'!$CC692=\"\",'Enrollment Form'!$CC692=\"No\"),\"-\",IF(AND('Enrollment Form'!$CC692=\"Yes\",'Enrollment Form'!$CD692=\"\"),\"N\",\"Y\"))","v":"-"},{"$f":"IF(OR('Enrollment Form'!$CE692=\"\",'Enrollment Form'!$CE692=\"No\"),\"-\",IF(AND('Enrollment Form'!$CE692=\"Yes\",'Enrollment Form'!$CF692=\"\"),\"N\",\"Y\"))","v":"-"},{"$f":"IF(OR('Enrollment Form'!$CG692=\"\",'Enrollment Form'!$CG692=\"No\"),\"-\",IF(AND('Enrollment Form'!$CG692=\"Yes\",'Enrollment Form'!$CH692=\"\"),\"N\",\"Y\"))","v":"-"},{"$f":"IF(OR('Enrollment Form'!$CG692=\"\",'Enrollment Form'!$CG692=\"No\"),\"-\",IF(AND('Enrollment Form'!$CG692=\"Yes\",'Enrollment Form'!$CI692=\"\"),\"N\",\"Y\"))","v":"-"},{"$f":"IF('Enrollment Form'!B692<>\"Subscriber\",\"-\",IF(AND('Enrollment Form'!B692=\"Subscriber\",'Enrollment Form'!C692=\"Enroll\",'Enrollment Form'!AA692=\"\"),\"N\",\"Y\"))","v":"-"},{"$f":"IF(OR('Enrollment Form'!B692=\"Subscriber\",'Enrollment Form'!B692=\"\"),\"-\",IF('Enrollment Form'!BI692=\"\",\"N\",\"Y\"))","v":"-"},{"$f":"IF('Enrollment Form'!B692<>\"Subscriber\",\"-\",IF(AND('Enrollment Form'!B692=\"Subscriber\",'Enrollment Form'!G692=\"\"),\"N\",\"Y\"))","v":"-"},{"$f":"IF('Enrollment Form'!A692=\"\",\"\",IF('Enrollment Form'!B692=\"Subscriber\",\"-\",IF(AND('Enrollment Form'!B692<>\"Subscriber\",'Enrollment Form'!G692='Enrollment Form'!H692),\"N\",\"Y\")))","v":""},0]
[693,{"$f":"IF('Enrollment Form'!$A693<>\"\",\"Y\",\"N\")","v":"N"},{"$f":"IF(AND('Enrollment Form'!$B693=\"\",'Enrollment Form'!$C693<>\"\"),\"N\",IF($B686=\"N\",\"\",\"Y\"))","v":""},{"$f":"IF(OR($B686=\"N\",'Enrollment Form'!G693=\"\"),\"\",IF('Enrollment Form'!$B693<>\"Subscriber\",\"\",IF('Enrollment Form'!$G693='Enrollment Form'!$H693,\"Y\",\"N\")))","v":""},{"$f":"IF($B686=\"N\",\"\",IF(AND(COUNTIFS('Enrollment Form'!$H$11:$H$1000,'Enrollment Form'!$H693,'Enrollment Form'!$B$11:$B$1000,'Enrollment Form'!$B693)>1,'Enrollment Form'!$H693<>\"\"),\"N\",\"Y\"))","v":""},{"$f":"IF($B686=\"N\",\"\",IF(LEN('Enrollment Form'!$Y693)=0,\"\",IF(LEN('Enrollment Form'!$Y693)<>5,\"N\",\"Y\")))","v":""},{"$f":"IF($B686=\"N\",\"\",IF(LEN('Enrollment Form'!$AD693=0),\"\",IF(LEN('Enrollment Form'!$AD693)<>5,\"N\",\"Y\")))","v":""},{"$f":"IF($B686=\"N\",\"\",IF(LEN('Enrollment Form'!$BL693=0),\"\",IF(LEN('Enrollment Form'!$BL693)<>5,\"N\",\"Y\")))","v":""},{"$f":"IF($B686=\"N\",\"\",IF(LEN('Enrollment Form'!$AE693)=0,\"\",IF(LEN('Enrollment Form'!$AE693)<>10,\"N\",\"Y\")))","v":""},{"$f":"IF($B686=\"N\",\"\",IF(LEN('Enrollment Form'!$AF693)=0,\"\",IF(LEN('Enrollment Form'!$AF693)<>10,\"N\",\"Y\")))","v":""},{"$f":"IF('Enrollment Form'!$O693<>\"Graded\",\"-\",IF(AND('Enrollment Form'!$O693=\"Graded\",'Enrollment Form'!$AO693<>\"\"),\"Y\",\"N\"))","v":"-"},{"$f":"IF($B686=\"N\",\"\",IF(OR('Enrollment Form'!$B693<>\"Subscriber\",'Enrollment Form'!$C693=\"ROC\"),\"-\",IF(AND('Enrollment Form'!$B693=\"Subscriber\",'Enrollment Form'!$C693=\"Enroll\",'Enrollment Form'!$AJ693<>\"\"),\"Y\",\"N\")))","v":""},{"$f":"IF($B686=\"N\",\"\",IF(OR('Enrollment Form'!$B693<>\"Subscriber\",'Enrollment Form'!$C693=\"ROC\"),\"-\",IF(AND('Enrollment Form'!$B693=\"Subscriber\",'Enrollment Form'!$C693=\"Enroll\",'Enrollment Form'!$AK693<>\"\"),\"Y\",\"N\")))","v":""},{"$f":"IF($B686=\"N\",\"\",IF(OR('Enrollment Form'!$B693<>\"Subscriber\",'Enrollment Form'!$C693=\"ROC\"),\"-\",IF(AND('Enrollment Form'!$B693=\"Subscriber\",'Enrollment Form'!$C693=\"Enroll\",'Enrollment Form'!$AL693<>\"\"),\"Y\",\"N\")))","v":""},{"$f":"IF($B686=\"N\",\"\",IF(OR('Enrollment Form'!$B693<>\"Subscriber\",'Enrollment Form'!$C693=\"ROC\"),\"-\",IF(AND('Enrollment Form'!$B693=\"Subscriber\",'Enrollment Form'!$C693=\"Enroll\",'Enrollment Form'!$AM693<>\"\"),\"Y\",\"N\")))","v":""},{"$f":"IF($B686=\"N\",\"\",IF(OR('Enrollment Form'!$B693<>\"Subscriber\",'Enrollment Form'!$C693=\"ROC\"),\"-\",IF(AND('Enrollment Form'!$B693=\"Subscriber\",'Enrollment Form'!$C693=\"Enroll\",'Enrollment Form'!$AN693<>\"\"),\"Y\",\"N\")))","v":""},{"$f":"IF($B686=\"N\",\"\",IF(OR('Enrollment Form'!$B693<>\"Subscriber\",'Enrollment Form'!$C693=\"ROC\"),\"-\",IF(AND('Enrollment Form'!$B693=\"Subscriber\",'Enrollment Form'!$C693=\"Enroll\",'Enrollment Form'!$AP693<>\"\"),\"Y\",\"N\")))","v":""},{"$f":"IF($B686=\"N\",\"\",IF($Q686=\"-\",\"-\",IF(AND($Q686=\"Y\",'Enrollment Form'!$AP693=\"No\"),\"-\",IF(AND($Q686=\"Y\",'Enrollment Form'!$AP693=\"Yes\",'Enrollment Form'!$AQ693<>\"\"),\"Y\",\"N\"))))","v":""},{"$f":"IF($B686=\"N\",\"\",IF(OR('Enrollment Form'!$B693<>\"Subscriber\",'Enrollment Form'!$C693=\"ROC\"),\"-\",IF(AND('Enrollment Form'!$B693=\"Subscriber\",'Enrollment Form'!$C693=\"Enroll\",'Enrollment Form'!$CO693<>\"\"),\"Y\",\"N\")))","v":""},{"$f":"IF($B686=\"N\",\"\",IF($S686=\"-\",\"-\",IF(AND($S686=\"Y\",'Enrollment Form'!$CO693=\"No\"),\"-\",IF(AND($S686=\"Y\",'Enrollment Form'!$CO693=\"Yes\",'Enrollment Form'!$CP693<>\"\"),\"Y\",\"N\"))))","v":""},{"$f":"IF(OR('Enrollment Form'!$AV693=\"Yes\",'Enrollment Form'!$AV693=\"\"),\"-\",IF(AND('Enrollment Form'!$AV693=\"No\",ISERROR(FIND(\"HMO\",VLOOKUP('Enrollment Form'!G693,'Enrollment Form'!H$11:J$1000,3,FALSE),1))=FALSE,COUNTA('Enrollment Form'!$AW693:$AZ693)=4),\"Y\",\"N\"))","v":"-"},{"$f":"IF($B686=\"N\",\"\",IF('Enrollment Form'!$B693=\"Subscriber\",\"-\",IF(COUNTA('Enrollment Form'!$BE693,'Enrollment Form'!$BG693)=2,\"Y\",\"N\")))","v":""},{"$f":"IF($B686=\"N\",\"\",IF(OR('Enrollment Form'!$AU693=\"\",'Enrollment Form'!$AU693=\"No\"),\"-\",IF(AND('Enrollment Form'!$AU693=\"Yes\",COUNTA('Enrollment Form'!$CK693)=1),\"Y\",\"N\")))","v":""},{"$f":"IF(OR('Enrollment Form'!$CK693=\"\",'Enrollment Form'!$CK693=\"No\"),\"-\",IF(COUNTA('Enrollment Form'!$CM693:$CN693)=2,\"Y\",\"N\"))","v":"-"},{"$f":"IF($B686=\"N\",\"\",IF(COUNTIF('Enrollment Form'!$CZ693:$DO693,\"Other\")=COUNTA('Enrollment Form'!$DF693,'Enrollment Form'!$DA693,'Enrollment Form'!$DK693,'Enrollment Form'!$DP693),\"Y\",\"N\"))","v":""},{"$f":"IF($B686=\"N\",\"\",IF(OR('Enrollment Form'!B693<>\"Subscriber\",'Enrollment Form'!C693=\"ROC\",COUNTIF('Enrollment Form'!AS693:AT693,\"Yes\")>=1),\"-\",IF(AND('Enrollment Form'!C693=\"Enroll\",COUNTIF('Enrollment Form'!AS693:AT693,\"No\")=2,'Enrollment Form'!AU693=\"\"),\"N\",\"Y\")))","v":""},{"$f":"IF(OR(B686=\"N\",'Enrollment Form'!B693<>\"Subscriber\",'Enrollment Form'!C693=\"ROC\",'Enrollment Form'!O693<>\"Multiple of Salary\"),\"-\",IF(COUNTA('Enrollment Form'!T693:U693)<2,\"N\",\"Y\"))","v":"-"},{"$f":"IF(B686=\"N\",\"\",IF(OR('Enrollment Form'!C693=\"ROC\",'Enrollment Form'!B693<>\"Subscriber\",'Enrollment Form'!O693=\"Waive\",'Enrollment Form'!O693=\"\"),\"-\",IF('Enrollment Form'!P693=\"\",\"N\",\"Y\")))","v":""},{"$f":"IF($B686=\"N\",\"\",IF(AND('Enrollment Form'!$C693=\"ROC\",'Enrollment Form'!$DS693<>\"\"),\"Y\",IF(AND('Enrollment Form'!$C693=\"ROC\",'Enrollment Form'!$DS693=\"\"),\"N\",IF(AND('Enrollment Form'!$C693=\"Enroll\",'Enrollment Form'!$B693=\"Subscriber\",'Enrollment Form'!$CQ693=\"No\",'Enrollment Form'!$DS693=\"\"),\"N\",IF(AND('Enrollment Form'!$C693=\"Enroll\",'Enrollment Form'!$B693=\"Subscriber\",'Enrollment Form'!$CQ693=\"Yes\"),\"-\",\"Y\")))))","v":""},{"$f":"IF($B686=\"N\",\"\",IF(AND('Enrollment Form'!$C693=\"ROC\",'Enrollment Form'!$DT693<>\"\"),\"Y\",IF(AND('Enrollment Form'!$C693=\"ROC\",'Enrollment Form'!$DT693=\"\"),\"N\",IF(AND('Enrollment Form'!$C693=\"Enroll\",'Enrollment Form'!$B693=\"Subscriber\",'Enrollment Form'!$CQ693=\"No\",'Enrollment Form'!$DT693=\"\"),\"N\",IF(AND('Enrollment Form'!$C693=\"Enroll\",'Enrollment Form'!$B693=\"Subscriber\",'Enrollment Form'!$CQ693=\"Yes\"),\"-\",\"Y\")))))","v":""},{"$f":"IF('Enrollment Form'!AH693=\"\",\"\",IF(ISERROR(SEARCH(\".\",'Enrollment Form'!AH693,SEARCH(\"@\",'Enrollment Form'!AH693))),\"N\",\"Y\"))","v":""},{"$f":"IF(OR($B686=\"N\",'Enrollment Form'!$G693=\"\"),\"\",IF('Enrollment Form'!$B693<>\"Subscriber\",\"-\",IF(COUNTIF('Enrollment Form'!$AS693:$AT693,\"Yes\")=2,\"N\",\"Y\")))","v":""},{"$f":"IF(OR('Enrollment Form'!$CC693=\"\",'Enrollment Form'!$CC693=\"No\"),\"-\",IF(AND('Enrollment Form'!$CC693=\"Yes\",'Enrollment Form'!$CD693=\"\"),\"N\",\"Y\"))","v":"-"},{"$f":"IF(OR('Enrollment Form'!$CE693=\"\",'Enrollment Form'!$CE693=\"No\"),\"-\",IF(AND('Enrollment Form'!$CE693=\"Yes\",'Enrollment Form'!$CF693=\"\"),\"N\",\"Y\"))","v":"-"},{"$f":"IF(OR('Enrollment Form'!$CG693=\"\",'Enrollment Form'!$CG693=\"No\"),\"-\",IF(AND('Enrollment Form'!$CG693=\"Yes\",'Enrollment Form'!$CH693=\"\"),\"N\",\"Y\"))","v":"-"},{"$f":"IF(OR('Enrollment Form'!$CG693=\"\",'Enrollment Form'!$CG693=\"No\"),\"-\",IF(AND('Enrollment Form'!$CG693=\"Yes\",'Enrollment Form'!$CI693=\"\"),\"N\",\"Y\"))","v":"-"},{"$f":"IF('Enrollment Form'!B693<>\"Subscriber\",\"-\",IF(AND('Enrollment Form'!B693=\"Subscriber\",'Enrollment Form'!C693=\"Enroll\",'Enrollment Form'!AA693=\"\"),\"N\",\"Y\"))","v":"-"},{"$f":"IF(OR('Enrollment Form'!B693=\"Subscriber\",'Enrollment Form'!B693=\"\"),\"-\",IF('Enrollment Form'!BI693=\"\",\"N\",\"Y\"))","v":"-"},{"$f":"IF('Enrollment Form'!B693<>\"Subscriber\",\"-\",IF(AND('Enrollment Form'!B693=\"Subscriber\",'Enrollment Form'!G693=\"\"),\"N\",\"Y\"))","v":"-"},{"$f":"IF('Enrollment Form'!A693=\"\",\"\",IF('Enrollment Form'!B693=\"Subscriber\",\"-\",IF(AND('Enrollment Form'!B693<>\"Subscriber\",'Enrollment Form'!G693='Enrollment Form'!H693),\"N\",\"Y\")))","v":""},0]
[694,{"$f":"IF('Enrollment Form'!$A694<>\"\",\"Y\",\"N\")","v":"N"},{"$f":"IF(AND('Enrollment Form'!$B694=\"\",'Enrollment Form'!$C694<>\"\"),\"N\",IF($B687=\"N\",\"\",\"Y\"))","v":""},{"$f":"IF(OR($B687=\"N\",'Enrollment Form'!G694=\"\"),\"\",IF('Enrollment Form'!$B694<>\"Subscriber\",\"\",IF('Enrollment Form'!$G694='Enrollment Form'!$H694,\"Y\",\"N\")))","v":""},{"$f":"IF($B687=\"N\",\"\",IF(AND(COUNTIFS('Enrollment Form'!$H$11:$H$1000,'Enrollment Form'!$H694,'Enrollment Form'!$B$11:$B$1000,'Enrollment Form'!$B694)>1,'Enrollment Form'!$H694<>\"\"),\"N\",\"Y\"))","v":""},{"$f":"IF($B687=\"N\",\"\",IF(LEN('Enrollment Form'!$Y694)=0,\"\",IF(LEN('Enrollment Form'!$Y694)<>5,\"N\",\"Y\")))","v":""},{"$f":"IF($B687=\"N\",\"\",IF(LEN('Enrollment Form'!$AD694=0),\"\",IF(LEN('Enrollment Form'!$AD694)<>5,\"N\",\"Y\")))","v":""},{"$f":"IF($B687=\"N\",\"\",IF(LEN('Enrollment Form'!$BL694=0),\"\",IF(LEN('Enrollment Form'!$BL694)<>5,\"N\",\"Y\")))","v":""},{"$f":"IF($B687=\"N\",\"\",IF(LEN('Enrollment Form'!$AE694)=0,\"\",IF(LEN('Enrollment Form'!$AE694)<>10,\"N\",\"Y\")))","v":""},{"$f":"IF($B687=\"N\",\"\",IF(LEN('Enrollment Form'!$AF694)=0,\"\",IF(LEN('Enrollment Form'!$AF694)<>10,\"N\",\"Y\")))","v":""},{"$f":"IF('Enrollment Form'!$O694<>\"Graded\",\"-\",IF(AND('Enrollment Form'!$O694=\"Graded\",'Enrollment Form'!$AO694<>\"\"),\"Y\",\"N\"))","v":"-"},{"$f":"IF($B687=\"N\",\"\",IF(OR('Enrollment Form'!$B694<>\"Subscriber\",'Enrollment Form'!$C694=\"ROC\"),\"-\",IF(AND('Enrollment Form'!$B694=\"Subscriber\",'Enrollment Form'!$C694=\"Enroll\",'Enrollment Form'!$AJ694<>\"\"),\"Y\",\"N\")))","v":""},{"$f":"IF($B687=\"N\",\"\",IF(OR('Enrollment Form'!$B694<>\"Subscriber\",'Enrollment Form'!$C694=\"ROC\"),\"-\",IF(AND('Enrollment Form'!$B694=\"Subscriber\",'Enrollment Form'!$C694=\"Enroll\",'Enrollment Form'!$AK694<>\"\"),\"Y\",\"N\")))","v":""},{"$f":"IF($B687=\"N\",\"\",IF(OR('Enrollment Form'!$B694<>\"Subscriber\",'Enrollment Form'!$C694=\"ROC\"),\"-\",IF(AND('Enrollment Form'!$B694=\"Subscriber\",'Enrollment Form'!$C694=\"Enroll\",'Enrollment Form'!$AL694<>\"\"),\"Y\",\"N\")))","v":""},{"$f":"IF($B687=\"N\",\"\",IF(OR('Enrollment Form'!$B694<>\"Subscriber\",'Enrollment Form'!$C694=\"ROC\"),\"-\",IF(AND('Enrollment Form'!$B694=\"Subscriber\",'Enrollment Form'!$C694=\"Enroll\",'Enrollment Form'!$AM694<>\"\"),\"Y\",\"N\")))","v":""},{"$f":"IF($B687=\"N\",\"\",IF(OR('Enrollment Form'!$B694<>\"Subscriber\",'Enrollment Form'!$C694=\"ROC\"),\"-\",IF(AND('Enrollment Form'!$B694=\"Subscriber\",'Enrollment Form'!$C694=\"Enroll\",'Enrollment Form'!$AN694<>\"\"),\"Y\",\"N\")))","v":""},{"$f":"IF($B687=\"N\",\"\",IF(OR('Enrollment Form'!$B694<>\"Subscriber\",'Enrollment Form'!$C694=\"ROC\"),\"-\",IF(AND('Enrollment Form'!$B694=\"Subscriber\",'Enrollment Form'!$C694=\"Enroll\",'Enrollment Form'!$AP694<>\"\"),\"Y\",\"N\")))","v":""},{"$f":"IF($B687=\"N\",\"\",IF($Q687=\"-\",\"-\",IF(AND($Q687=\"Y\",'Enrollment Form'!$AP694=\"No\"),\"-\",IF(AND($Q687=\"Y\",'Enrollment Form'!$AP694=\"Yes\",'Enrollment Form'!$AQ694<>\"\"),\"Y\",\"N\"))))","v":""},{"$f":"IF($B687=\"N\",\"\",IF(OR('Enrollment Form'!$B694<>\"Subscriber\",'Enrollment Form'!$C694=\"ROC\"),\"-\",IF(AND('Enrollment Form'!$B694=\"Subscriber\",'Enrollment Form'!$C694=\"Enroll\",'Enrollment Form'!$CO694<>\"\"),\"Y\",\"N\")))","v":""},{"$f":"IF($B687=\"N\",\"\",IF($S687=\"-\",\"-\",IF(AND($S687=\"Y\",'Enrollment Form'!$CO694=\"No\"),\"-\",IF(AND($S687=\"Y\",'Enrollment Form'!$CO694=\"Yes\",'Enrollment Form'!$CP694<>\"\"),\"Y\",\"N\"))))","v":""},{"$f":"IF(OR('Enrollment Form'!$AV694=\"Yes\",'Enrollment Form'!$AV694=\"\"),\"-\",IF(AND('Enrollment Form'!$AV694=\"No\",ISERROR(FIND(\"HMO\",VLOOKUP('Enrollment Form'!G694,'Enrollment Form'!H$11:J$1000,3,FALSE),1))=FALSE,COUNTA('Enrollment Form'!$AW694:$AZ694)=4),\"Y\",\"N\"))","v":"-"},{"$f":"IF($B687=\"N\",\"\",IF('Enrollment Form'!$B694=\"Subscriber\",\"-\",IF(COUNTA('Enrollment Form'!$BE694,'Enrollment Form'!$BG694)=2,\"Y\",\"N\")))","v":""},{"$f":"IF($B687=\"N\",\"\",IF(OR('Enrollment Form'!$AU694=\"\",'Enrollment Form'!$AU694=\"No\"),\"-\",IF(AND('Enrollment Form'!$AU694=\"Yes\",COUNTA('Enrollment Form'!$CK694)=1),\"Y\",\"N\")))","v":""},{"$f":"IF(OR('Enrollment Form'!$CK694=\"\",'Enrollment Form'!$CK694=\"No\"),\"-\",IF(COUNTA('Enrollment Form'!$CM694:$CN694)=2,\"Y\",\"N\"))","v":"-"},{"$f":"IF($B687=\"N\",\"\",IF(COUNTIF('Enrollment Form'!$CZ694:$DO694,\"Other\")=COUNTA('Enrollment Form'!$DF694,'Enrollment Form'!$DA694,'Enrollment Form'!$DK694,'Enrollment Form'!$DP694),\"Y\",\"N\"))","v":""},{"$f":"IF($B687=\"N\",\"\",IF(OR('Enrollment Form'!B694<>\"Subscriber\",'Enrollment Form'!C694=\"ROC\",COUNTIF('Enrollment Form'!AS694:AT694,\"Yes\")>=1),\"-\",IF(AND('Enrollment Form'!C694=\"Enroll\",COUNTIF('Enrollment Form'!AS694:AT694,\"No\")=2,'Enrollment Form'!AU694=\"\"),\"N\",\"Y\")))","v":""},{"$f":"IF(OR(B687=\"N\",'Enrollment Form'!B694<>\"Subscriber\",'Enrollment Form'!C694=\"ROC\",'Enrollment Form'!O694<>\"Multiple of Salary\"),\"-\",IF(COUNTA('Enrollment Form'!T694:U694)<2,\"N\",\"Y\"))","v":"-"},{"$f":"IF(B687=\"N\",\"\",IF(OR('Enrollment Form'!C694=\"ROC\",'Enrollment Form'!B694<>\"Subscriber\",'Enrollment Form'!O694=\"Waive\",'Enrollment Form'!O694=\"\"),\"-\",IF('Enrollment Form'!P694=\"\",\"N\",\"Y\")))","v":""},{"$f":"IF($B687=\"N\",\"\",IF(AND('Enrollment Form'!$C694=\"ROC\",'Enrollment Form'!$DS694<>\"\"),\"Y\",IF(AND('Enrollment Form'!$C694=\"ROC\",'Enrollment Form'!$DS694=\"\"),\"N\",IF(AND('Enrollment Form'!$C694=\"Enroll\",'Enrollment Form'!$B694=\"Subscriber\",'Enrollment Form'!$CQ694=\"No\",'Enrollment Form'!$DS694=\"\"),\"N\",IF(AND('Enrollment Form'!$C694=\"Enroll\",'Enrollment Form'!$B694=\"Subscriber\",'Enrollment Form'!$CQ694=\"Yes\"),\"-\",\"Y\")))))","v":""},{"$f":"IF($B687=\"N\",\"\",IF(AND('Enrollment Form'!$C694=\"ROC\",'Enrollment Form'!$DT694<>\"\"),\"Y\",IF(AND('Enrollment Form'!$C694=\"ROC\",'Enrollment Form'!$DT694=\"\"),\"N\",IF(AND('Enrollment Form'!$C694=\"Enroll\",'Enrollment Form'!$B694=\"Subscriber\",'Enrollment Form'!$CQ694=\"No\",'Enrollment Form'!$DT694=\"\"),\"N\",IF(AND('Enrollment Form'!$C694=\"Enroll\",'Enrollment Form'!$B694=\"Subscriber\",'Enrollment Form'!$CQ694=\"Yes\"),\"-\",\"Y\")))))","v":""},{"$f":"IF('Enrollment Form'!AH694=\"\",\"\",IF(ISERROR(SEARCH(\".\",'Enrollment Form'!AH694,SEARCH(\"@\",'Enrollment Form'!AH694))),\"N\",\"Y\"))","v":""},{"$f":"IF(OR($B687=\"N\",'Enrollment Form'!$G694=\"\"),\"\",IF('Enrollment Form'!$B694<>\"Subscriber\",\"-\",IF(COUNTIF('Enrollment Form'!$AS694:$AT694,\"Yes\")=2,\"N\",\"Y\")))","v":""},{"$f":"IF(OR('Enrollment Form'!$CC694=\"\",'Enrollment Form'!$CC694=\"No\"),\"-\",IF(AND('Enrollment Form'!$CC694=\"Yes\",'Enrollment Form'!$CD694=\"\"),\"N\",\"Y\"))","v":"-"},{"$f":"IF(OR('Enrollment Form'!$CE694=\"\",'Enrollment Form'!$CE694=\"No\"),\"-\",IF(AND('Enrollment Form'!$CE694=\"Yes\",'Enrollment Form'!$CF694=\"\"),\"N\",\"Y\"))","v":"-"},{"$f":"IF(OR('Enrollment Form'!$CG694=\"\",'Enrollment Form'!$CG694=\"No\"),\"-\",IF(AND('Enrollment Form'!$CG694=\"Yes\",'Enrollment Form'!$CH694=\"\"),\"N\",\"Y\"))","v":"-"},{"$f":"IF(OR('Enrollment Form'!$CG694=\"\",'Enrollment Form'!$CG694=\"No\"),\"-\",IF(AND('Enrollment Form'!$CG694=\"Yes\",'Enrollment Form'!$CI694=\"\"),\"N\",\"Y\"))","v":"-"},{"$f":"IF('Enrollment Form'!B694<>\"Subscriber\",\"-\",IF(AND('Enrollment Form'!B694=\"Subscriber\",'Enrollment Form'!C694=\"Enroll\",'Enrollment Form'!AA694=\"\"),\"N\",\"Y\"))","v":"-"},{"$f":"IF(OR('Enrollment Form'!B694=\"Subscriber\",'Enrollment Form'!B694=\"\"),\"-\",IF('Enrollment Form'!BI694=\"\",\"N\",\"Y\"))","v":"-"},{"$f":"IF('Enrollment Form'!B694<>\"Subscriber\",\"-\",IF(AND('Enrollment Form'!B694=\"Subscriber\",'Enrollment Form'!G694=\"\"),\"N\",\"Y\"))","v":"-"},{"$f":"IF('Enrollment Form'!A694=\"\",\"\",IF('Enrollment Form'!B694=\"Subscriber\",\"-\",IF(AND('Enrollment Form'!B694<>\"Subscriber\",'Enrollment Form'!G694='Enrollment Form'!H694),\"N\",\"Y\")))","v":""},0]
[695,{"$f":"IF('Enrollment Form'!$A695<>\"\",\"Y\",\"N\")","v":"N"},{"$f":"IF(AND('Enrollment Form'!$B695=\"\",'Enrollment Form'!$C695<>\"\"),\"N\",IF($B688=\"N\",\"\",\"Y\"))","v":""},{"$f":"IF(OR($B688=\"N\",'Enrollment Form'!G695=\"\"),\"\",IF('Enrollment Form'!$B695<>\"Subscriber\",\"\",IF('Enrollment Form'!$G695='Enrollment Form'!$H695,\"Y\",\"N\")))","v":""},{"$f":"IF($B688=\"N\",\"\",IF(AND(COUNTIFS('Enrollment Form'!$H$11:$H$1000,'Enrollment Form'!$H695,'Enrollment Form'!$B$11:$B$1000,'Enrollment Form'!$B695)>1,'Enrollment Form'!$H695<>\"\"),\"N\",\"Y\"))","v":""},{"$f":"IF($B688=\"N\",\"\",IF(LEN('Enrollment Form'!$Y695)=0,\"\",IF(LEN('Enrollment Form'!$Y695)<>5,\"N\",\"Y\")))","v":""},{"$f":"IF($B688=\"N\",\"\",IF(LEN('Enrollment Form'!$AD695=0),\"\",IF(LEN('Enrollment Form'!$AD695)<>5,\"N\",\"Y\")))","v":""},{"$f":"IF($B688=\"N\",\"\",IF(LEN('Enrollment Form'!$BL695=0),\"\",IF(LEN('Enrollment Form'!$BL695)<>5,\"N\",\"Y\")))","v":""},{"$f":"IF($B688=\"N\",\"\",IF(LEN('Enrollment Form'!$AE695)=0,\"\",IF(LEN('Enrollment Form'!$AE695)<>10,\"N\",\"Y\")))","v":""},{"$f":"IF($B688=\"N\",\"\",IF(LEN('Enrollment Form'!$AF695)=0,\"\",IF(LEN('Enrollment Form'!$AF695)<>10,\"N\",\"Y\")))","v":""},{"$f":"IF('Enrollment Form'!$O695<>\"Graded\",\"-\",IF(AND('Enrollment Form'!$O695=\"Graded\",'Enrollment Form'!$AO695<>\"\"),\"Y\",\"N\"))","v":"-"},{"$f":"IF($B688=\"N\",\"\",IF(OR('Enrollment Form'!$B695<>\"Subscriber\",'Enrollment Form'!$C695=\"ROC\"),\"-\",IF(AND('Enrollment Form'!$B695=\"Subscriber\",'Enrollment Form'!$C695=\"Enroll\",'Enrollment Form'!$AJ695<>\"\"),\"Y\",\"N\")))","v":""},{"$f":"IF($B688=\"N\",\"\",IF(OR('Enrollment Form'!$B695<>\"Subscriber\",'Enrollment Form'!$C695=\"ROC\"),\"-\",IF(AND('Enrollment Form'!$B695=\"Subscriber\",'Enrollment Form'!$C695=\"Enroll\",'Enrollment Form'!$AK695<>\"\"),\"Y\",\"N\")))","v":""},{"$f":"IF($B688=\"N\",\"\",IF(OR('Enrollment Form'!$B695<>\"Subscriber\",'Enrollment Form'!$C695=\"ROC\"),\"-\",IF(AND('Enrollment Form'!$B695=\"Subscriber\",'Enrollment Form'!$C695=\"Enroll\",'Enrollment Form'!$AL695<>\"\"),\"Y\",\"N\")))","v":""},{"$f":"IF($B688=\"N\",\"\",IF(OR('Enrollment Form'!$B695<>\"Subscriber\",'Enrollment Form'!$C695=\"ROC\"),\"-\",IF(AND('Enrollment Form'!$B695=\"Subscriber\",'Enrollment Form'!$C695=\"Enroll\",'Enrollment Form'!$AM695<>\"\"),\"Y\",\"N\")))","v":""},{"$f":"IF($B688=\"N\",\"\",IF(OR('Enrollment Form'!$B695<>\"Subscriber\",'Enrollment Form'!$C695=\"ROC\"),\"-\",IF(AND('Enrollment Form'!$B695=\"Subscriber\",'Enrollment Form'!$C695=\"Enroll\",'Enrollment Form'!$AN695<>\"\"),\"Y\",\"N\")))","v":""},{"$f":"IF($B688=\"N\",\"\",IF(OR('Enrollment Form'!$B695<>\"Subscriber\",'Enrollment Form'!$C695=\"ROC\"),\"-\",IF(AND('Enrollment Form'!$B695=\"Subscriber\",'Enrollment Form'!$C695=\"Enroll\",'Enrollment Form'!$AP695<>\"\"),\"Y\",\"N\")))","v":""},{"$f":"IF($B688=\"N\",\"\",IF($Q688=\"-\",\"-\",IF(AND($Q688=\"Y\",'Enrollment Form'!$AP695=\"No\"),\"-\",IF(AND($Q688=\"Y\",'Enrollment Form'!$AP695=\"Yes\",'Enrollment Form'!$AQ695<>\"\"),\"Y\",\"N\"))))","v":""},{"$f":"IF($B688=\"N\",\"\",IF(OR('Enrollment Form'!$B695<>\"Subscriber\",'Enrollment Form'!$C695=\"ROC\"),\"-\",IF(AND('Enrollment Form'!$B695=\"Subscriber\",'Enrollment Form'!$C695=\"Enroll\",'Enrollment Form'!$CO695<>\"\"),\"Y\",\"N\")))","v":""},{"$f":"IF($B688=\"N\",\"\",IF($S688=\"-\",\"-\",IF(AND($S688=\"Y\",'Enrollment Form'!$CO695=\"No\"),\"-\",IF(AND($S688=\"Y\",'Enrollment Form'!$CO695=\"Yes\",'Enrollment Form'!$CP695<>\"\"),\"Y\",\"N\"))))","v":""},{"$f":"IF(OR('Enrollment Form'!$AV695=\"Yes\",'Enrollment Form'!$AV695=\"\"),\"-\",IF(AND('Enrollment Form'!$AV695=\"No\",ISERROR(FIND(\"HMO\",VLOOKUP('Enrollment Form'!G695,'Enrollment Form'!H$11:J$1000,3,FALSE),1))=FALSE,COUNTA('Enrollment Form'!$AW695:$AZ695)=4),\"Y\",\"N\"))","v":"-"},{"$f":"IF($B688=\"N\",\"\",IF('Enrollment Form'!$B695=\"Subscriber\",\"-\",IF(COUNTA('Enrollment Form'!$BE695,'Enrollment Form'!$BG695)=2,\"Y\",\"N\")))","v":""},{"$f":"IF($B688=\"N\",\"\",IF(OR('Enrollment Form'!$AU695=\"\",'Enrollment Form'!$AU695=\"No\"),\"-\",IF(AND('Enrollment Form'!$AU695=\"Yes\",COUNTA('Enrollment Form'!$CK695)=1),\"Y\",\"N\")))","v":""},{"$f":"IF(OR('Enrollment Form'!$CK695=\"\",'Enrollment Form'!$CK695=\"No\"),\"-\",IF(COUNTA('Enrollment Form'!$CM695:$CN695)=2,\"Y\",\"N\"))","v":"-"},{"$f":"IF($B688=\"N\",\"\",IF(COUNTIF('Enrollment Form'!$CZ695:$DO695,\"Other\")=COUNTA('Enrollment Form'!$DF695,'Enrollment Form'!$DA695,'Enrollment Form'!$DK695,'Enrollment Form'!$DP695),\"Y\",\"N\"))","v":""},{"$f":"IF($B688=\"N\",\"\",IF(OR('Enrollment Form'!B695<>\"Subscriber\",'Enrollment Form'!C695=\"ROC\",COUNTIF('Enrollment Form'!AS695:AT695,\"Yes\")>=1),\"-\",IF(AND('Enrollment Form'!C695=\"Enroll\",COUNTIF('Enrollment Form'!AS695:AT695,\"No\")=2,'Enrollment Form'!AU695=\"\"),\"N\",\"Y\")))","v":""},{"$f":"IF(OR(B688=\"N\",'Enrollment Form'!B695<>\"Subscriber\",'Enrollment Form'!C695=\"ROC\",'Enrollment Form'!O695<>\"Multiple of Salary\"),\"-\",IF(COUNTA('Enrollment Form'!T695:U695)<2,\"N\",\"Y\"))","v":"-"},{"$f":"IF(B688=\"N\",\"\",IF(OR('Enrollment Form'!C695=\"ROC\",'Enrollment Form'!B695<>\"Subscriber\",'Enrollment Form'!O695=\"Waive\",'Enrollment Form'!O695=\"\"),\"-\",IF('Enrollment Form'!P695=\"\",\"N\",\"Y\")))","v":""},{"$f":"IF($B688=\"N\",\"\",IF(AND('Enrollment Form'!$C695=\"ROC\",'Enrollment Form'!$DS695<>\"\"),\"Y\",IF(AND('Enrollment Form'!$C695=\"ROC\",'Enrollment Form'!$DS695=\"\"),\"N\",IF(AND('Enrollment Form'!$C695=\"Enroll\",'Enrollment Form'!$B695=\"Subscriber\",'Enrollment Form'!$CQ695=\"No\",'Enrollment Form'!$DS695=\"\"),\"N\",IF(AND('Enrollment Form'!$C695=\"Enroll\",'Enrollment Form'!$B695=\"Subscriber\",'Enrollment Form'!$CQ695=\"Yes\"),\"-\",\"Y\")))))","v":""},{"$f":"IF($B688=\"N\",\"\",IF(AND('Enrollment Form'!$C695=\"ROC\",'Enrollment Form'!$DT695<>\"\"),\"Y\",IF(AND('Enrollment Form'!$C695=\"ROC\",'Enrollment Form'!$DT695=\"\"),\"N\",IF(AND('Enrollment Form'!$C695=\"Enroll\",'Enrollment Form'!$B695=\"Subscriber\",'Enrollment Form'!$CQ695=\"No\",'Enrollment Form'!$DT695=\"\"),\"N\",IF(AND('Enrollment Form'!$C695=\"Enroll\",'Enrollment Form'!$B695=\"Subscriber\",'Enrollment Form'!$CQ695=\"Yes\"),\"-\",\"Y\")))))","v":""},{"$f":"IF('Enrollment Form'!AH695=\"\",\"\",IF(ISERROR(SEARCH(\".\",'Enrollment Form'!AH695,SEARCH(\"@\",'Enrollment Form'!AH695))),\"N\",\"Y\"))","v":""},{"$f":"IF(OR($B688=\"N\",'Enrollment Form'!$G695=\"\"),\"\",IF('Enrollment Form'!$B695<>\"Subscriber\",\"-\",IF(COUNTIF('Enrollment Form'!$AS695:$AT695,\"Yes\")=2,\"N\",\"Y\")))","v":""},{"$f":"IF(OR('Enrollment Form'!$CC695=\"\",'Enrollment Form'!$CC695=\"No\"),\"-\",IF(AND('Enrollment Form'!$CC695=\"Yes\",'Enrollment Form'!$CD695=\"\"),\"N\",\"Y\"))","v":"-"},{"$f":"IF(OR('Enrollment Form'!$CE695=\"\",'Enrollment Form'!$CE695=\"No\"),\"-\",IF(AND('Enrollment Form'!$CE695=\"Yes\",'Enrollment Form'!$CF695=\"\"),\"N\",\"Y\"))","v":"-"},{"$f":"IF(OR('Enrollment Form'!$CG695=\"\",'Enrollment Form'!$CG695=\"No\"),\"-\",IF(AND('Enrollment Form'!$CG695=\"Yes\",'Enrollment Form'!$CH695=\"\"),\"N\",\"Y\"))","v":"-"},{"$f":"IF(OR('Enrollment Form'!$CG695=\"\",'Enrollment Form'!$CG695=\"No\"),\"-\",IF(AND('Enrollment Form'!$CG695=\"Yes\",'Enrollment Form'!$CI695=\"\"),\"N\",\"Y\"))","v":"-"},{"$f":"IF('Enrollment Form'!B695<>\"Subscriber\",\"-\",IF(AND('Enrollment Form'!B695=\"Subscriber\",'Enrollment Form'!C695=\"Enroll\",'Enrollment Form'!AA695=\"\"),\"N\",\"Y\"))","v":"-"},{"$f":"IF(OR('Enrollment Form'!B695=\"Subscriber\",'Enrollment Form'!B695=\"\"),\"-\",IF('Enrollment Form'!BI695=\"\",\"N\",\"Y\"))","v":"-"},{"$f":"IF('Enrollment Form'!B695<>\"Subscriber\",\"-\",IF(AND('Enrollment Form'!B695=\"Subscriber\",'Enrollment Form'!G695=\"\"),\"N\",\"Y\"))","v":"-"},{"$f":"IF('Enrollment Form'!A695=\"\",\"\",IF('Enrollment Form'!B695=\"Subscriber\",\"-\",IF(AND('Enrollment Form'!B695<>\"Subscriber\",'Enrollment Form'!G695='Enrollment Form'!H695),\"N\",\"Y\")))","v":""},0]
[696,{"$f":"IF('Enrollment Form'!$A696<>\"\",\"Y\",\"N\")","v":"N"},{"$f":"IF(AND('Enrollment Form'!$B696=\"\",'Enrollment Form'!$C696<>\"\"),\"N\",IF($B689=\"N\",\"\",\"Y\"))","v":""},{"$f":"IF(OR($B689=\"N\",'Enrollment Form'!G696=\"\"),\"\",IF('Enrollment Form'!$B696<>\"Subscriber\",\"\",IF('Enrollment Form'!$G696='Enrollment Form'!$H696,\"Y\",\"N\")))","v":""},{"$f":"IF($B689=\"N\",\"\",IF(AND(COUNTIFS('Enrollment Form'!$H$11:$H$1000,'Enrollment Form'!$H696,'Enrollment Form'!$B$11:$B$1000,'Enrollment Form'!$B696)>1,'Enrollment Form'!$H696<>\"\"),\"N\",\"Y\"))","v":""},{"$f":"IF($B689=\"N\",\"\",IF(LEN('Enrollment Form'!$Y696)=0,\"\",IF(LEN('Enrollment Form'!$Y696)<>5,\"N\",\"Y\")))","v":""},{"$f":"IF($B689=\"N\",\"\",IF(LEN('Enrollment Form'!$AD696=0),\"\",IF(LEN('Enrollment Form'!$AD696)<>5,\"N\",\"Y\")))","v":""},{"$f":"IF($B689=\"N\",\"\",IF(LEN('Enrollment Form'!$BL696=0),\"\",IF(LEN('Enrollment Form'!$BL696)<>5,\"N\",\"Y\")))","v":""},{"$f":"IF($B689=\"N\",\"\",IF(LEN('Enrollment Form'!$AE696)=0,\"\",IF(LEN('Enrollment Form'!$AE696)<>10,\"N\",\"Y\")))","v":""},{"$f":"IF($B689=\"N\",\"\",IF(LEN('Enrollment Form'!$AF696)=0,\"\",IF(LEN('Enrollment Form'!$AF696)<>10,\"N\",\"Y\")))","v":""},{"$f":"IF('Enrollment Form'!$O696<>\"Graded\",\"-\",IF(AND('Enrollment Form'!$O696=\"Graded\",'Enrollment Form'!$AO696<>\"\"),\"Y\",\"N\"))","v":"-"},{"$f":"IF($B689=\"N\",\"\",IF(OR('Enrollment Form'!$B696<>\"Subscriber\",'Enrollment Form'!$C696=\"ROC\"),\"-\",IF(AND('Enrollment Form'!$B696=\"Subscriber\",'Enrollment Form'!$C696=\"Enroll\",'Enrollment Form'!$AJ696<>\"\"),\"Y\",\"N\")))","v":""},{"$f":"IF($B689=\"N\",\"\",IF(OR('Enrollment Form'!$B696<>\"Subscriber\",'Enrollment Form'!$C696=\"ROC\"),\"-\",IF(AND('Enrollment Form'!$B696=\"Subscriber\",'Enrollment Form'!$C696=\"Enroll\",'Enrollment Form'!$AK696<>\"\"),\"Y\",\"N\")))","v":""},{"$f":"IF($B689=\"N\",\"\",IF(OR('Enrollment Form'!$B696<>\"Subscriber\",'Enrollment Form'!$C696=\"ROC\"),\"-\",IF(AND('Enrollment Form'!$B696=\"Subscriber\",'Enrollment Form'!$C696=\"Enroll\",'Enrollment Form'!$AL696<>\"\"),\"Y\",\"N\")))","v":""},{"$f":"IF($B689=\"N\",\"\",IF(OR('Enrollment Form'!$B696<>\"Subscriber\",'Enrollment Form'!$C696=\"ROC\"),\"-\",IF(AND('Enrollment Form'!$B696=\"Subscriber\",'Enrollment Form'!$C696=\"Enroll\",'Enrollment Form'!$AM696<>\"\"),\"Y\",\"N\")))","v":""},{"$f":"IF($B689=\"N\",\"\",IF(OR('Enrollment Form'!$B696<>\"Subscriber\",'Enrollment Form'!$C696=\"ROC\"),\"-\",IF(AND('Enrollment Form'!$B696=\"Subscriber\",'Enrollment Form'!$C696=\"Enroll\",'Enrollment Form'!$AN696<>\"\"),\"Y\",\"N\")))","v":""},{"$f":"IF($B689=\"N\",\"\",IF(OR('Enrollment Form'!$B696<>\"Subscriber\",'Enrollment Form'!$C696=\"ROC\"),\"-\",IF(AND('Enrollment Form'!$B696=\"Subscriber\",'Enrollment Form'!$C696=\"Enroll\",'Enrollment Form'!$AP696<>\"\"),\"Y\",\"N\")))","v":""},{"$f":"IF($B689=\"N\",\"\",IF($Q689=\"-\",\"-\",IF(AND($Q689=\"Y\",'Enrollment Form'!$AP696=\"No\"),\"-\",IF(AND($Q689=\"Y\",'Enrollment Form'!$AP696=\"Yes\",'Enrollment Form'!$AQ696<>\"\"),\"Y\",\"N\"))))","v":""},{"$f":"IF($B689=\"N\",\"\",IF(OR('Enrollment Form'!$B696<>\"Subscriber\",'Enrollment Form'!$C696=\"ROC\"),\"-\",IF(AND('Enrollment Form'!$B696=\"Subscriber\",'Enrollment Form'!$C696=\"Enroll\",'Enrollment Form'!$CO696<>\"\"),\"Y\",\"N\")))","v":""},{"$f":"IF($B689=\"N\",\"\",IF($S689=\"-\",\"-\",IF(AND($S689=\"Y\",'Enrollment Form'!$CO696=\"No\"),\"-\",IF(AND($S689=\"Y\",'Enrollment Form'!$CO696=\"Yes\",'Enrollment Form'!$CP696<>\"\"),\"Y\",\"N\"))))","v":""},{"$f":"IF(OR('Enrollment Form'!$AV696=\"Yes\",'Enrollment Form'!$AV696=\"\"),\"-\",IF(AND('Enrollment Form'!$AV696=\"No\",ISERROR(FIND(\"HMO\",VLOOKUP('Enrollment Form'!G696,'Enrollment Form'!H$11:J$1000,3,FALSE),1))=FALSE,COUNTA('Enrollment Form'!$AW696:$AZ696)=4),\"Y\",\"N\"))","v":"-"},{"$f":"IF($B689=\"N\",\"\",IF('Enrollment Form'!$B696=\"Subscriber\",\"-\",IF(COUNTA('Enrollment Form'!$BE696,'Enrollment Form'!$BG696)=2,\"Y\",\"N\")))","v":""},{"$f":"IF($B689=\"N\",\"\",IF(OR('Enrollment Form'!$AU696=\"\",'Enrollment Form'!$AU696=\"No\"),\"-\",IF(AND('Enrollment Form'!$AU696=\"Yes\",COUNTA('Enrollment Form'!$CK696)=1),\"Y\",\"N\")))","v":""},{"$f":"IF(OR('Enrollment Form'!$CK696=\"\",'Enrollment Form'!$CK696=\"No\"),\"-\",IF(COUNTA('Enrollment Form'!$CM696:$CN696)=2,\"Y\",\"N\"))","v":"-"},{"$f":"IF($B689=\"N\",\"\",IF(COUNTIF('Enrollment Form'!$CZ696:$DO696,\"Other\")=COUNTA('Enrollment Form'!$DF696,'Enrollment Form'!$DA696,'Enrollment Form'!$DK696,'Enrollment Form'!$DP696),\"Y\",\"N\"))","v":""},{"$f":"IF($B689=\"N\",\"\",IF(OR('Enrollment Form'!B696<>\"Subscriber\",'Enrollment Form'!C696=\"ROC\",COUNTIF('Enrollment Form'!AS696:AT696,\"Yes\")>=1),\"-\",IF(AND('Enrollment Form'!C696=\"Enroll\",COUNTIF('Enrollment Form'!AS696:AT696,\"No\")=2,'Enrollment Form'!AU696=\"\"),\"N\",\"Y\")))","v":""},{"$f":"IF(OR(B689=\"N\",'Enrollment Form'!B696<>\"Subscriber\",'Enrollment Form'!C696=\"ROC\",'Enrollment Form'!O696<>\"Multiple of Salary\"),\"-\",IF(COUNTA('Enrollment Form'!T696:U696)<2,\"N\",\"Y\"))","v":"-"},{"$f":"IF(B689=\"N\",\"\",IF(OR('Enrollment Form'!C696=\"ROC\",'Enrollment Form'!B696<>\"Subscriber\",'Enrollment Form'!O696=\"Waive\",'Enrollment Form'!O696=\"\"),\"-\",IF('Enrollment Form'!P696=\"\",\"N\",\"Y\")))","v":""},{"$f":"IF($B689=\"N\",\"\",IF(AND('Enrollment Form'!$C696=\"ROC\",'Enrollment Form'!$DS696<>\"\"),\"Y\",IF(AND('Enrollment Form'!$C696=\"ROC\",'Enrollment Form'!$DS696=\"\"),\"N\",IF(AND('Enrollment Form'!$C696=\"Enroll\",'Enrollment Form'!$B696=\"Subscriber\",'Enrollment Form'!$CQ696=\"No\",'Enrollment Form'!$DS696=\"\"),\"N\",IF(AND('Enrollment Form'!$C696=\"Enroll\",'Enrollment Form'!$B696=\"Subscriber\",'Enrollment Form'!$CQ696=\"Yes\"),\"-\",\"Y\")))))","v":""},{"$f":"IF($B689=\"N\",\"\",IF(AND('Enrollment Form'!$C696=\"ROC\",'Enrollment Form'!$DT696<>\"\"),\"Y\",IF(AND('Enrollment Form'!$C696=\"ROC\",'Enrollment Form'!$DT696=\"\"),\"N\",IF(AND('Enrollment Form'!$C696=\"Enroll\",'Enrollment Form'!$B696=\"Subscriber\",'Enrollment Form'!$CQ696=\"No\",'Enrollment Form'!$DT696=\"\"),\"N\",IF(AND('Enrollment Form'!$C696=\"Enroll\",'Enrollment Form'!$B696=\"Subscriber\",'Enrollment Form'!$CQ696=\"Yes\"),\"-\",\"Y\")))))","v":""},{"$f":"IF('Enrollment Form'!AH696=\"\",\"\",IF(ISERROR(SEARCH(\".\",'Enrollment Form'!AH696,SEARCH(\"@\",'Enrollment Form'!AH696))),\"N\",\"Y\"))","v":""},{"$f":"IF(OR($B689=\"N\",'Enrollment Form'!$G696=\"\"),\"\",IF('Enrollment Form'!$B696<>\"Subscriber\",\"-\",IF(COUNTIF('Enrollment Form'!$AS696:$AT696,\"Yes\")=2,\"N\",\"Y\")))","v":""},{"$f":"IF(OR('Enrollment Form'!$CC696=\"\",'Enrollment Form'!$CC696=\"No\"),\"-\",IF(AND('Enrollment Form'!$CC696=\"Yes\",'Enrollment Form'!$CD696=\"\"),\"N\",\"Y\"))","v":"-"},{"$f":"IF(OR('Enrollment Form'!$CE696=\"\",'Enrollment Form'!$CE696=\"No\"),\"-\",IF(AND('Enrollment Form'!$CE696=\"Yes\",'Enrollment Form'!$CF696=\"\"),\"N\",\"Y\"))","v":"-"},{"$f":"IF(OR('Enrollment Form'!$CG696=\"\",'Enrollment Form'!$CG696=\"No\"),\"-\",IF(AND('Enrollment Form'!$CG696=\"Yes\",'Enrollment Form'!$CH696=\"\"),\"N\",\"Y\"))","v":"-"},{"$f":"IF(OR('Enrollment Form'!$CG696=\"\",'Enrollment Form'!$CG696=\"No\"),\"-\",IF(AND('Enrollment Form'!$CG696=\"Yes\",'Enrollment Form'!$CI696=\"\"),\"N\",\"Y\"))","v":"-"},{"$f":"IF('Enrollment Form'!B696<>\"Subscriber\",\"-\",IF(AND('Enrollment Form'!B696=\"Subscriber\",'Enrollment Form'!C696=\"Enroll\",'Enrollment Form'!AA696=\"\"),\"N\",\"Y\"))","v":"-"},{"$f":"IF(OR('Enrollment Form'!B696=\"Subscriber\",'Enrollment Form'!B696=\"\"),\"-\",IF('Enrollment Form'!BI696=\"\",\"N\",\"Y\"))","v":"-"},{"$f":"IF('Enrollment Form'!B696<>\"Subscriber\",\"-\",IF(AND('Enrollment Form'!B696=\"Subscriber\",'Enrollment Form'!G696=\"\"),\"N\",\"Y\"))","v":"-"},{"$f":"IF('Enrollment Form'!A696=\"\",\"\",IF('Enrollment Form'!B696=\"Subscriber\",\"-\",IF(AND('Enrollment Form'!B696<>\"Subscriber\",'Enrollment Form'!G696='Enrollment Form'!H696),\"N\",\"Y\")))","v":""},0]
[697,{"$f":"IF('Enrollment Form'!$A697<>\"\",\"Y\",\"N\")","v":"N"},{"$f":"IF(AND('Enrollment Form'!$B697=\"\",'Enrollment Form'!$C697<>\"\"),\"N\",IF($B690=\"N\",\"\",\"Y\"))","v":""},{"$f":"IF(OR($B690=\"N\",'Enrollment Form'!G697=\"\"),\"\",IF('Enrollment Form'!$B697<>\"Subscriber\",\"\",IF('Enrollment Form'!$G697='Enrollment Form'!$H697,\"Y\",\"N\")))","v":""},{"$f":"IF($B690=\"N\",\"\",IF(AND(COUNTIFS('Enrollment Form'!$H$11:$H$1000,'Enrollment Form'!$H697,'Enrollment Form'!$B$11:$B$1000,'Enrollment Form'!$B697)>1,'Enrollment Form'!$H697<>\"\"),\"N\",\"Y\"))","v":""},{"$f":"IF($B690=\"N\",\"\",IF(LEN('Enrollment Form'!$Y697)=0,\"\",IF(LEN('Enrollment Form'!$Y697)<>5,\"N\",\"Y\")))","v":""},{"$f":"IF($B690=\"N\",\"\",IF(LEN('Enrollment Form'!$AD697=0),\"\",IF(LEN('Enrollment Form'!$AD697)<>5,\"N\",\"Y\")))","v":""},{"$f":"IF($B690=\"N\",\"\",IF(LEN('Enrollment Form'!$BL697=0),\"\",IF(LEN('Enrollment Form'!$BL697)<>5,\"N\",\"Y\")))","v":""},{"$f":"IF($B690=\"N\",\"\",IF(LEN('Enrollment Form'!$AE697)=0,\"\",IF(LEN('Enrollment Form'!$AE697)<>10,\"N\",\"Y\")))","v":""},{"$f":"IF($B690=\"N\",\"\",IF(LEN('Enrollment Form'!$AF697)=0,\"\",IF(LEN('Enrollment Form'!$AF697)<>10,\"N\",\"Y\")))","v":""},{"$f":"IF('Enrollment Form'!$O697<>\"Graded\",\"-\",IF(AND('Enrollment Form'!$O697=\"Graded\",'Enrollment Form'!$AO697<>\"\"),\"Y\",\"N\"))","v":"-"},{"$f":"IF($B690=\"N\",\"\",IF(OR('Enrollment Form'!$B697<>\"Subscriber\",'Enrollment Form'!$C697=\"ROC\"),\"-\",IF(AND('Enrollment Form'!$B697=\"Subscriber\",'Enrollment Form'!$C697=\"Enroll\",'Enrollment Form'!$AJ697<>\"\"),\"Y\",\"N\")))","v":""},{"$f":"IF($B690=\"N\",\"\",IF(OR('Enrollment Form'!$B697<>\"Subscriber\",'Enrollment Form'!$C697=\"ROC\"),\"-\",IF(AND('Enrollment Form'!$B697=\"Subscriber\",'Enrollment Form'!$C697=\"Enroll\",'Enrollment Form'!$AK697<>\"\"),\"Y\",\"N\")))","v":""},{"$f":"IF($B690=\"N\",\"\",IF(OR('Enrollment Form'!$B697<>\"Subscriber\",'Enrollment Form'!$C697=\"ROC\"),\"-\",IF(AND('Enrollment Form'!$B697=\"Subscriber\",'Enrollment Form'!$C697=\"Enroll\",'Enrollment Form'!$AL697<>\"\"),\"Y\",\"N\")))","v":""},{"$f":"IF($B690=\"N\",\"\",IF(OR('Enrollment Form'!$B697<>\"Subscriber\",'Enrollment Form'!$C697=\"ROC\"),\"-\",IF(AND('Enrollment Form'!$B697=\"Subscriber\",'Enrollment Form'!$C697=\"Enroll\",'Enrollment Form'!$AM697<>\"\"),\"Y\",\"N\")))","v":""},{"$f":"IF($B690=\"N\",\"\",IF(OR('Enrollment Form'!$B697<>\"Subscriber\",'Enrollment Form'!$C697=\"ROC\"),\"-\",IF(AND('Enrollment Form'!$B697=\"Subscriber\",'Enrollment Form'!$C697=\"Enroll\",'Enrollment Form'!$AN697<>\"\"),\"Y\",\"N\")))","v":""},{"$f":"IF($B690=\"N\",\"\",IF(OR('Enrollment Form'!$B697<>\"Subscriber\",'Enrollment Form'!$C697=\"ROC\"),\"-\",IF(AND('Enrollment Form'!$B697=\"Subscriber\",'Enrollment Form'!$C697=\"Enroll\",'Enrollment Form'!$AP697<>\"\"),\"Y\",\"N\")))","v":""},{"$f":"IF($B690=\"N\",\"\",IF($Q690=\"-\",\"-\",IF(AND($Q690=\"Y\",'Enrollment Form'!$AP697=\"No\"),\"-\",IF(AND($Q690=\"Y\",'Enrollment Form'!$AP697=\"Yes\",'Enrollment Form'!$AQ697<>\"\"),\"Y\",\"N\"))))","v":""},{"$f":"IF($B690=\"N\",\"\",IF(OR('Enrollment Form'!$B697<>\"Subscriber\",'Enrollment Form'!$C697=\"ROC\"),\"-\",IF(AND('Enrollment Form'!$B697=\"Subscriber\",'Enrollment Form'!$C697=\"Enroll\",'Enrollment Form'!$CO697<>\"\"),\"Y\",\"N\")))","v":""},{"$f":"IF($B690=\"N\",\"\",IF($S690=\"-\",\"-\",IF(AND($S690=\"Y\",'Enrollment Form'!$CO697=\"No\"),\"-\",IF(AND($S690=\"Y\",'Enrollment Form'!$CO697=\"Yes\",'Enrollment Form'!$CP697<>\"\"),\"Y\",\"N\"))))","v":""},{"$f":"IF(OR('Enrollment Form'!$AV697=\"Yes\",'Enrollment Form'!$AV697=\"\"),\"-\",IF(AND('Enrollment Form'!$AV697=\"No\",ISERROR(FIND(\"HMO\",VLOOKUP('Enrollment Form'!G697,'Enrollment Form'!H$11:J$1000,3,FALSE),1))=FALSE,COUNTA('Enrollment Form'!$AW697:$AZ697)=4),\"Y\",\"N\"))","v":"-"},{"$f":"IF($B690=\"N\",\"\",IF('Enrollment Form'!$B697=\"Subscriber\",\"-\",IF(COUNTA('Enrollment Form'!$BE697,'Enrollment Form'!$BG697)=2,\"Y\",\"N\")))","v":""},{"$f":"IF($B690=\"N\",\"\",IF(OR('Enrollment Form'!$AU697=\"\",'Enrollment Form'!$AU697=\"No\"),\"-\",IF(AND('Enrollment Form'!$AU697=\"Yes\",COUNTA('Enrollment Form'!$CK697)=1),\"Y\",\"N\")))","v":""},{"$f":"IF(OR('Enrollment Form'!$CK697=\"\",'Enrollment Form'!$CK697=\"No\"),\"-\",IF(COUNTA('Enrollment Form'!$CM697:$CN697)=2,\"Y\",\"N\"))","v":"-"},{"$f":"IF($B690=\"N\",\"\",IF(COUNTIF('Enrollment Form'!$CZ697:$DO697,\"Other\")=COUNTA('Enrollment Form'!$DF697,'Enrollment Form'!$DA697,'Enrollment Form'!$DK697,'Enrollment Form'!$DP697),\"Y\",\"N\"))","v":""},{"$f":"IF($B690=\"N\",\"\",IF(OR('Enrollment Form'!B697<>\"Subscriber\",'Enrollment Form'!C697=\"ROC\",COUNTIF('Enrollment Form'!AS697:AT697,\"Yes\")>=1),\"-\",IF(AND('Enrollment Form'!C697=\"Enroll\",COUNTIF('Enrollment Form'!AS697:AT697,\"No\")=2,'Enrollment Form'!AU697=\"\"),\"N\",\"Y\")))","v":""},{"$f":"IF(OR(B690=\"N\",'Enrollment Form'!B697<>\"Subscriber\",'Enrollment Form'!C697=\"ROC\",'Enrollment Form'!O697<>\"Multiple of Salary\"),\"-\",IF(COUNTA('Enrollment Form'!T697:U697)<2,\"N\",\"Y\"))","v":"-"},{"$f":"IF(B690=\"N\",\"\",IF(OR('Enrollment Form'!C697=\"ROC\",'Enrollment Form'!B697<>\"Subscriber\",'Enrollment Form'!O697=\"Waive\",'Enrollment Form'!O697=\"\"),\"-\",IF('Enrollment Form'!P697=\"\",\"N\",\"Y\")))","v":""},{"$f":"IF($B690=\"N\",\"\",IF(AND('Enrollment Form'!$C697=\"ROC\",'Enrollment Form'!$DS697<>\"\"),\"Y\",IF(AND('Enrollment Form'!$C697=\"ROC\",'Enrollment Form'!$DS697=\"\"),\"N\",IF(AND('Enrollment Form'!$C697=\"Enroll\",'Enrollment Form'!$B697=\"Subscriber\",'Enrollment Form'!$CQ697=\"No\",'Enrollment Form'!$DS697=\"\"),\"N\",IF(AND('Enrollment Form'!$C697=\"Enroll\",'Enrollment Form'!$B697=\"Subscriber\",'Enrollment Form'!$CQ697=\"Yes\"),\"-\",\"Y\")))))","v":""},{"$f":"IF($B690=\"N\",\"\",IF(AND('Enrollment Form'!$C697=\"ROC\",'Enrollment Form'!$DT697<>\"\"),\"Y\",IF(AND('Enrollment Form'!$C697=\"ROC\",'Enrollment Form'!$DT697=\"\"),\"N\",IF(AND('Enrollment Form'!$C697=\"Enroll\",'Enrollment Form'!$B697=\"Subscriber\",'Enrollment Form'!$CQ697=\"No\",'Enrollment Form'!$DT697=\"\"),\"N\",IF(AND('Enrollment Form'!$C697=\"Enroll\",'Enrollment Form'!$B697=\"Subscriber\",'Enrollment Form'!$CQ697=\"Yes\"),\"-\",\"Y\")))))","v":""},{"$f":"IF('Enrollment Form'!AH697=\"\",\"\",IF(ISERROR(SEARCH(\".\",'Enrollment Form'!AH697,SEARCH(\"@\",'Enrollment Form'!AH697))),\"N\",\"Y\"))","v":""},{"$f":"IF(OR($B690=\"N\",'Enrollment Form'!$G697=\"\"),\"\",IF('Enrollment Form'!$B697<>\"Subscriber\",\"-\",IF(COUNTIF('Enrollment Form'!$AS697:$AT697,\"Yes\")=2,\"N\",\"Y\")))","v":""},{"$f":"IF(OR('Enrollment Form'!$CC697=\"\",'Enrollment Form'!$CC697=\"No\"),\"-\",IF(AND('Enrollment Form'!$CC697=\"Yes\",'Enrollment Form'!$CD697=\"\"),\"N\",\"Y\"))","v":"-"},{"$f":"IF(OR('Enrollment Form'!$CE697=\"\",'Enrollment Form'!$CE697=\"No\"),\"-\",IF(AND('Enrollment Form'!$CE697=\"Yes\",'Enrollment Form'!$CF697=\"\"),\"N\",\"Y\"))","v":"-"},{"$f":"IF(OR('Enrollment Form'!$CG697=\"\",'Enrollment Form'!$CG697=\"No\"),\"-\",IF(AND('Enrollment Form'!$CG697=\"Yes\",'Enrollment Form'!$CH697=\"\"),\"N\",\"Y\"))","v":"-"},{"$f":"IF(OR('Enrollment Form'!$CG697=\"\",'Enrollment Form'!$CG697=\"No\"),\"-\",IF(AND('Enrollment Form'!$CG697=\"Yes\",'Enrollment Form'!$CI697=\"\"),\"N\",\"Y\"))","v":"-"},{"$f":"IF('Enrollment Form'!B697<>\"Subscriber\",\"-\",IF(AND('Enrollment Form'!B697=\"Subscriber\",'Enrollment Form'!C697=\"Enroll\",'Enrollment Form'!AA697=\"\"),\"N\",\"Y\"))","v":"-"},{"$f":"IF(OR('Enrollment Form'!B697=\"Subscriber\",'Enrollment Form'!B697=\"\"),\"-\",IF('Enrollment Form'!BI697=\"\",\"N\",\"Y\"))","v":"-"},{"$f":"IF('Enrollment Form'!B697<>\"Subscriber\",\"-\",IF(AND('Enrollment Form'!B697=\"Subscriber\",'Enrollment Form'!G697=\"\"),\"N\",\"Y\"))","v":"-"},{"$f":"IF('Enrollment Form'!A697=\"\",\"\",IF('Enrollment Form'!B697=\"Subscriber\",\"-\",IF(AND('Enrollment Form'!B697<>\"Subscriber\",'Enrollment Form'!G697='Enrollment Form'!H697),\"N\",\"Y\")))","v":""},0]
[698,{"$f":"IF('Enrollment Form'!$A698<>\"\",\"Y\",\"N\")","v":"N"},{"$f":"IF(AND('Enrollment Form'!$B698=\"\",'Enrollment Form'!$C698<>\"\"),\"N\",IF($B691=\"N\",\"\",\"Y\"))","v":""},{"$f":"IF(OR($B691=\"N\",'Enrollment Form'!G698=\"\"),\"\",IF('Enrollment Form'!$B698<>\"Subscriber\",\"\",IF('Enrollment Form'!$G698='Enrollment Form'!$H698,\"Y\",\"N\")))","v":""},{"$f":"IF($B691=\"N\",\"\",IF(AND(COUNTIFS('Enrollment Form'!$H$11:$H$1000,'Enrollment Form'!$H698,'Enrollment Form'!$B$11:$B$1000,'Enrollment Form'!$B698)>1,'Enrollment Form'!$H698<>\"\"),\"N\",\"Y\"))","v":""},{"$f":"IF($B691=\"N\",\"\",IF(LEN('Enrollment Form'!$Y698)=0,\"\",IF(LEN('Enrollment Form'!$Y698)<>5,\"N\",\"Y\")))","v":""},{"$f":"IF($B691=\"N\",\"\",IF(LEN('Enrollment Form'!$AD698=0),\"\",IF(LEN('Enrollment Form'!$AD698)<>5,\"N\",\"Y\")))","v":""},{"$f":"IF($B691=\"N\",\"\",IF(LEN('Enrollment Form'!$BL698=0),\"\",IF(LEN('Enrollment Form'!$BL698)<>5,\"N\",\"Y\")))","v":""},{"$f":"IF($B691=\"N\",\"\",IF(LEN('Enrollment Form'!$AE698)=0,\"\",IF(LEN('Enrollment Form'!$AE698)<>10,\"N\",\"Y\")))","v":""},{"$f":"IF($B691=\"N\",\"\",IF(LEN('Enrollment Form'!$AF698)=0,\"\",IF(LEN('Enrollment Form'!$AF698)<>10,\"N\",\"Y\")))","v":""},{"$f":"IF('Enrollment Form'!$O698<>\"Graded\",\"-\",IF(AND('Enrollment Form'!$O698=\"Graded\",'Enrollment Form'!$AO698<>\"\"),\"Y\",\"N\"))","v":"-"},{"$f":"IF($B691=\"N\",\"\",IF(OR('Enrollment Form'!$B698<>\"Subscriber\",'Enrollment Form'!$C698=\"ROC\"),\"-\",IF(AND('Enrollment Form'!$B698=\"Subscriber\",'Enrollment Form'!$C698=\"Enroll\",'Enrollment Form'!$AJ698<>\"\"),\"Y\",\"N\")))","v":""},{"$f":"IF($B691=\"N\",\"\",IF(OR('Enrollment Form'!$B698<>\"Subscriber\",'Enrollment Form'!$C698=\"ROC\"),\"-\",IF(AND('Enrollment Form'!$B698=\"Subscriber\",'Enrollment Form'!$C698=\"Enroll\",'Enrollment Form'!$AK698<>\"\"),\"Y\",\"N\")))","v":""},{"$f":"IF($B691=\"N\",\"\",IF(OR('Enrollment Form'!$B698<>\"Subscriber\",'Enrollment Form'!$C698=\"ROC\"),\"-\",IF(AND('Enrollment Form'!$B698=\"Subscriber\",'Enrollment Form'!$C698=\"Enroll\",'Enrollment Form'!$AL698<>\"\"),\"Y\",\"N\")))","v":""},{"$f":"IF($B691=\"N\",\"\",IF(OR('Enrollment Form'!$B698<>\"Subscriber\",'Enrollment Form'!$C698=\"ROC\"),\"-\",IF(AND('Enrollment Form'!$B698=\"Subscriber\",'Enrollment Form'!$C698=\"Enroll\",'Enrollment Form'!$AM698<>\"\"),\"Y\",\"N\")))","v":""},{"$f":"IF($B691=\"N\",\"\",IF(OR('Enrollment Form'!$B698<>\"Subscriber\",'Enrollment Form'!$C698=\"ROC\"),\"-\",IF(AND('Enrollment Form'!$B698=\"Subscriber\",'Enrollment Form'!$C698=\"Enroll\",'Enrollment Form'!$AN698<>\"\"),\"Y\",\"N\")))","v":""},{"$f":"IF($B691=\"N\",\"\",IF(OR('Enrollment Form'!$B698<>\"Subscriber\",'Enrollment Form'!$C698=\"ROC\"),\"-\",IF(AND('Enrollment Form'!$B698=\"Subscriber\",'Enrollment Form'!$C698=\"Enroll\",'Enrollment Form'!$AP698<>\"\"),\"Y\",\"N\")))","v":""},{"$f":"IF($B691=\"N\",\"\",IF($Q691=\"-\",\"-\",IF(AND($Q691=\"Y\",'Enrollment Form'!$AP698=\"No\"),\"-\",IF(AND($Q691=\"Y\",'Enrollment Form'!$AP698=\"Yes\",'Enrollment Form'!$AQ698<>\"\"),\"Y\",\"N\"))))","v":""},{"$f":"IF($B691=\"N\",\"\",IF(OR('Enrollment Form'!$B698<>\"Subscriber\",'Enrollment Form'!$C698=\"ROC\"),\"-\",IF(AND('Enrollment Form'!$B698=\"Subscriber\",'Enrollment Form'!$C698=\"Enroll\",'Enrollment Form'!$CO698<>\"\"),\"Y\",\"N\")))","v":""},{"$f":"IF($B691=\"N\",\"\",IF($S691=\"-\",\"-\",IF(AND($S691=\"Y\",'Enrollment Form'!$CO698=\"No\"),\"-\",IF(AND($S691=\"Y\",'Enrollment Form'!$CO698=\"Yes\",'Enrollment Form'!$CP698<>\"\"),\"Y\",\"N\"))))","v":""},{"$f":"IF(OR('Enrollment Form'!$AV698=\"Yes\",'Enrollment Form'!$AV698=\"\"),\"-\",IF(AND('Enrollment Form'!$AV698=\"No\",ISERROR(FIND(\"HMO\",VLOOKUP('Enrollment Form'!G698,'Enrollment Form'!H$11:J$1000,3,FALSE),1))=FALSE,COUNTA('Enrollment Form'!$AW698:$AZ698)=4),\"Y\",\"N\"))","v":"-"},{"$f":"IF($B691=\"N\",\"\",IF('Enrollment Form'!$B698=\"Subscriber\",\"-\",IF(COUNTA('Enrollment Form'!$BE698,'Enrollment Form'!$BG698)=2,\"Y\",\"N\")))","v":""},{"$f":"IF($B691=\"N\",\"\",IF(OR('Enrollment Form'!$AU698=\"\",'Enrollment Form'!$AU698=\"No\"),\"-\",IF(AND('Enrollment Form'!$AU698=\"Yes\",COUNTA('Enrollment Form'!$CK698)=1),\"Y\",\"N\")))","v":""},{"$f":"IF(OR('Enrollment Form'!$CK698=\"\",'Enrollment Form'!$CK698=\"No\"),\"-\",IF(COUNTA('Enrollment Form'!$CM698:$CN698)=2,\"Y\",\"N\"))","v":"-"},{"$f":"IF($B691=\"N\",\"\",IF(COUNTIF('Enrollment Form'!$CZ698:$DO698,\"Other\")=COUNTA('Enrollment Form'!$DF698,'Enrollment Form'!$DA698,'Enrollment Form'!$DK698,'Enrollment Form'!$DP698),\"Y\",\"N\"))","v":""},{"$f":"IF($B691=\"N\",\"\",IF(OR('Enrollment Form'!B698<>\"Subscriber\",'Enrollment Form'!C698=\"ROC\",COUNTIF('Enrollment Form'!AS698:AT698,\"Yes\")>=1),\"-\",IF(AND('Enrollment Form'!C698=\"Enroll\",COUNTIF('Enrollment Form'!AS698:AT698,\"No\")=2,'Enrollment Form'!AU698=\"\"),\"N\",\"Y\")))","v":""},{"$f":"IF(OR(B691=\"N\",'Enrollment Form'!B698<>\"Subscriber\",'Enrollment Form'!C698=\"ROC\",'Enrollment Form'!O698<>\"Multiple of Salary\"),\"-\",IF(COUNTA('Enrollment Form'!T698:U698)<2,\"N\",\"Y\"))","v":"-"},{"$f":"IF(B691=\"N\",\"\",IF(OR('Enrollment Form'!C698=\"ROC\",'Enrollment Form'!B698<>\"Subscriber\",'Enrollment Form'!O698=\"Waive\",'Enrollment Form'!O698=\"\"),\"-\",IF('Enrollment Form'!P698=\"\",\"N\",\"Y\")))","v":""},{"$f":"IF($B691=\"N\",\"\",IF(AND('Enrollment Form'!$C698=\"ROC\",'Enrollment Form'!$DS698<>\"\"),\"Y\",IF(AND('Enrollment Form'!$C698=\"ROC\",'Enrollment Form'!$DS698=\"\"),\"N\",IF(AND('Enrollment Form'!$C698=\"Enroll\",'Enrollment Form'!$B698=\"Subscriber\",'Enrollment Form'!$CQ698=\"No\",'Enrollment Form'!$DS698=\"\"),\"N\",IF(AND('Enrollment Form'!$C698=\"Enroll\",'Enrollment Form'!$B698=\"Subscriber\",'Enrollment Form'!$CQ698=\"Yes\"),\"-\",\"Y\")))))","v":""},{"$f":"IF($B691=\"N\",\"\",IF(AND('Enrollment Form'!$C698=\"ROC\",'Enrollment Form'!$DT698<>\"\"),\"Y\",IF(AND('Enrollment Form'!$C698=\"ROC\",'Enrollment Form'!$DT698=\"\"),\"N\",IF(AND('Enrollment Form'!$C698=\"Enroll\",'Enrollment Form'!$B698=\"Subscriber\",'Enrollment Form'!$CQ698=\"No\",'Enrollment Form'!$DT698=\"\"),\"N\",IF(AND('Enrollment Form'!$C698=\"Enroll\",'Enrollment Form'!$B698=\"Subscriber\",'Enrollment Form'!$CQ698=\"Yes\"),\"-\",\"Y\")))))","v":""},{"$f":"IF('Enrollment Form'!AH698=\"\",\"\",IF(ISERROR(SEARCH(\".\",'Enrollment Form'!AH698,SEARCH(\"@\",'Enrollment Form'!AH698))),\"N\",\"Y\"))","v":""},{"$f":"IF(OR($B691=\"N\",'Enrollment Form'!$G698=\"\"),\"\",IF('Enrollment Form'!$B698<>\"Subscriber\",\"-\",IF(COUNTIF('Enrollment Form'!$AS698:$AT698,\"Yes\")=2,\"N\",\"Y\")))","v":""},{"$f":"IF(OR('Enrollment Form'!$CC698=\"\",'Enrollment Form'!$CC698=\"No\"),\"-\",IF(AND('Enrollment Form'!$CC698=\"Yes\",'Enrollment Form'!$CD698=\"\"),\"N\",\"Y\"))","v":"-"},{"$f":"IF(OR('Enrollment Form'!$CE698=\"\",'Enrollment Form'!$CE698=\"No\"),\"-\",IF(AND('Enrollment Form'!$CE698=\"Yes\",'Enrollment Form'!$CF698=\"\"),\"N\",\"Y\"))","v":"-"},{"$f":"IF(OR('Enrollment Form'!$CG698=\"\",'Enrollment Form'!$CG698=\"No\"),\"-\",IF(AND('Enrollment Form'!$CG698=\"Yes\",'Enrollment Form'!$CH698=\"\"),\"N\",\"Y\"))","v":"-"},{"$f":"IF(OR('Enrollment Form'!$CG698=\"\",'Enrollment Form'!$CG698=\"No\"),\"-\",IF(AND('Enrollment Form'!$CG698=\"Yes\",'Enrollment Form'!$CI698=\"\"),\"N\",\"Y\"))","v":"-"},{"$f":"IF('Enrollment Form'!B698<>\"Subscriber\",\"-\",IF(AND('Enrollment Form'!B698=\"Subscriber\",'Enrollment Form'!C698=\"Enroll\",'Enrollment Form'!AA698=\"\"),\"N\",\"Y\"))","v":"-"},{"$f":"IF(OR('Enrollment Form'!B698=\"Subscriber\",'Enrollment Form'!B698=\"\"),\"-\",IF('Enrollment Form'!BI698=\"\",\"N\",\"Y\"))","v":"-"},{"$f":"IF('Enrollment Form'!B698<>\"Subscriber\",\"-\",IF(AND('Enrollment Form'!B698=\"Subscriber\",'Enrollment Form'!G698=\"\"),\"N\",\"Y\"))","v":"-"},{"$f":"IF('Enrollment Form'!A698=\"\",\"\",IF('Enrollment Form'!B698=\"Subscriber\",\"-\",IF(AND('Enrollment Form'!B698<>\"Subscriber\",'Enrollment Form'!G698='Enrollment Form'!H698),\"N\",\"Y\")))","v":""},0]
[699,{"$f":"IF('Enrollment Form'!$A699<>\"\",\"Y\",\"N\")","v":"N"},{"$f":"IF(AND('Enrollment Form'!$B699=\"\",'Enrollment Form'!$C699<>\"\"),\"N\",IF($B692=\"N\",\"\",\"Y\"))","v":""},{"$f":"IF(OR($B692=\"N\",'Enrollment Form'!G699=\"\"),\"\",IF('Enrollment Form'!$B699<>\"Subscriber\",\"\",IF('Enrollment Form'!$G699='Enrollment Form'!$H699,\"Y\",\"N\")))","v":""},{"$f":"IF($B692=\"N\",\"\",IF(AND(COUNTIFS('Enrollment Form'!$H$11:$H$1000,'Enrollment Form'!$H699,'Enrollment Form'!$B$11:$B$1000,'Enrollment Form'!$B699)>1,'Enrollment Form'!$H699<>\"\"),\"N\",\"Y\"))","v":""},{"$f":"IF($B692=\"N\",\"\",IF(LEN('Enrollment Form'!$Y699)=0,\"\",IF(LEN('Enrollment Form'!$Y699)<>5,\"N\",\"Y\")))","v":""},{"$f":"IF($B692=\"N\",\"\",IF(LEN('Enrollment Form'!$AD699=0),\"\",IF(LEN('Enrollment Form'!$AD699)<>5,\"N\",\"Y\")))","v":""},{"$f":"IF($B692=\"N\",\"\",IF(LEN('Enrollment Form'!$BL699=0),\"\",IF(LEN('Enrollment Form'!$BL699)<>5,\"N\",\"Y\")))","v":""},{"$f":"IF($B692=\"N\",\"\",IF(LEN('Enrollment Form'!$AE699)=0,\"\",IF(LEN('Enrollment Form'!$AE699)<>10,\"N\",\"Y\")))","v":""},{"$f":"IF($B692=\"N\",\"\",IF(LEN('Enrollment Form'!$AF699)=0,\"\",IF(LEN('Enrollment Form'!$AF699)<>10,\"N\",\"Y\")))","v":""},{"$f":"IF('Enrollment Form'!$O699<>\"Graded\",\"-\",IF(AND('Enrollment Form'!$O699=\"Graded\",'Enrollment Form'!$AO699<>\"\"),\"Y\",\"N\"))","v":"-"},{"$f":"IF($B692=\"N\",\"\",IF(OR('Enrollment Form'!$B699<>\"Subscriber\",'Enrollment Form'!$C699=\"ROC\"),\"-\",IF(AND('Enrollment Form'!$B699=\"Subscriber\",'Enrollment Form'!$C699=\"Enroll\",'Enrollment Form'!$AJ699<>\"\"),\"Y\",\"N\")))","v":""},{"$f":"IF($B692=\"N\",\"\",IF(OR('Enrollment Form'!$B699<>\"Subscriber\",'Enrollment Form'!$C699=\"ROC\"),\"-\",IF(AND('Enrollment Form'!$B699=\"Subscriber\",'Enrollment Form'!$C699=\"Enroll\",'Enrollment Form'!$AK699<>\"\"),\"Y\",\"N\")))","v":""},{"$f":"IF($B692=\"N\",\"\",IF(OR('Enrollment Form'!$B699<>\"Subscriber\",'Enrollment Form'!$C699=\"ROC\"),\"-\",IF(AND('Enrollment Form'!$B699=\"Subscriber\",'Enrollment Form'!$C699=\"Enroll\",'Enrollment Form'!$AL699<>\"\"),\"Y\",\"N\")))","v":""},{"$f":"IF($B692=\"N\",\"\",IF(OR('Enrollment Form'!$B699<>\"Subscriber\",'Enrollment Form'!$C699=\"ROC\"),\"-\",IF(AND('Enrollment Form'!$B699=\"Subscriber\",'Enrollment Form'!$C699=\"Enroll\",'Enrollment Form'!$AM699<>\"\"),\"Y\",\"N\")))","v":""},{"$f":"IF($B692=\"N\",\"\",IF(OR('Enrollment Form'!$B699<>\"Subscriber\",'Enrollment Form'!$C699=\"ROC\"),\"-\",IF(AND('Enrollment Form'!$B699=\"Subscriber\",'Enrollment Form'!$C699=\"Enroll\",'Enrollment Form'!$AN699<>\"\"),\"Y\",\"N\")))","v":""},{"$f":"IF($B692=\"N\",\"\",IF(OR('Enrollment Form'!$B699<>\"Subscriber\",'Enrollment Form'!$C699=\"ROC\"),\"-\",IF(AND('Enrollment Form'!$B699=\"Subscriber\",'Enrollment Form'!$C699=\"Enroll\",'Enrollment Form'!$AP699<>\"\"),\"Y\",\"N\")))","v":""},{"$f":"IF($B692=\"N\",\"\",IF($Q692=\"-\",\"-\",IF(AND($Q692=\"Y\",'Enrollment Form'!$AP699=\"No\"),\"-\",IF(AND($Q692=\"Y\",'Enrollment Form'!$AP699=\"Yes\",'Enrollment Form'!$AQ699<>\"\"),\"Y\",\"N\"))))","v":""},{"$f":"IF($B692=\"N\",\"\",IF(OR('Enrollment Form'!$B699<>\"Subscriber\",'Enrollment Form'!$C699=\"ROC\"),\"-\",IF(AND('Enrollment Form'!$B699=\"Subscriber\",'Enrollment Form'!$C699=\"Enroll\",'Enrollment Form'!$CO699<>\"\"),\"Y\",\"N\")))","v":""},{"$f":"IF($B692=\"N\",\"\",IF($S692=\"-\",\"-\",IF(AND($S692=\"Y\",'Enrollment Form'!$CO699=\"No\"),\"-\",IF(AND($S692=\"Y\",'Enrollment Form'!$CO699=\"Yes\",'Enrollment Form'!$CP699<>\"\"),\"Y\",\"N\"))))","v":""},{"$f":"IF(OR('Enrollment Form'!$AV699=\"Yes\",'Enrollment Form'!$AV699=\"\"),\"-\",IF(AND('Enrollment Form'!$AV699=\"No\",ISERROR(FIND(\"HMO\",VLOOKUP('Enrollment Form'!G699,'Enrollment Form'!H$11:J$1000,3,FALSE),1))=FALSE,COUNTA('Enrollment Form'!$AW699:$AZ699)=4),\"Y\",\"N\"))","v":"-"},{"$f":"IF($B692=\"N\",\"\",IF('Enrollment Form'!$B699=\"Subscriber\",\"-\",IF(COUNTA('Enrollment Form'!$BE699,'Enrollment Form'!$BG699)=2,\"Y\",\"N\")))","v":""},{"$f":"IF($B692=\"N\",\"\",IF(OR('Enrollment Form'!$AU699=\"\",'Enrollment Form'!$AU699=\"No\"),\"-\",IF(AND('Enrollment Form'!$AU699=\"Yes\",COUNTA('Enrollment Form'!$CK699)=1),\"Y\",\"N\")))","v":""},{"$f":"IF(OR('Enrollment Form'!$CK699=\"\",'Enrollment Form'!$CK699=\"No\"),\"-\",IF(COUNTA('Enrollment Form'!$CM699:$CN699)=2,\"Y\",\"N\"))","v":"-"},{"$f":"IF($B692=\"N\",\"\",IF(COUNTIF('Enrollment Form'!$CZ699:$DO699,\"Other\")=COUNTA('Enrollment Form'!$DF699,'Enrollment Form'!$DA699,'Enrollment Form'!$DK699,'Enrollment Form'!$DP699),\"Y\",\"N\"))","v":""},{"$f":"IF($B692=\"N\",\"\",IF(OR('Enrollment Form'!B699<>\"Subscriber\",'Enrollment Form'!C699=\"ROC\",COUNTIF('Enrollment Form'!AS699:AT699,\"Yes\")>=1),\"-\",IF(AND('Enrollment Form'!C699=\"Enroll\",COUNTIF('Enrollment Form'!AS699:AT699,\"No\")=2,'Enrollment Form'!AU699=\"\"),\"N\",\"Y\")))","v":""},{"$f":"IF(OR(B692=\"N\",'Enrollment Form'!B699<>\"Subscriber\",'Enrollment Form'!C699=\"ROC\",'Enrollment Form'!O699<>\"Multiple of Salary\"),\"-\",IF(COUNTA('Enrollment Form'!T699:U699)<2,\"N\",\"Y\"))","v":"-"},{"$f":"IF(B692=\"N\",\"\",IF(OR('Enrollment Form'!C699=\"ROC\",'Enrollment Form'!B699<>\"Subscriber\",'Enrollment Form'!O699=\"Waive\",'Enrollment Form'!O699=\"\"),\"-\",IF('Enrollment Form'!P699=\"\",\"N\",\"Y\")))","v":""},{"$f":"IF($B692=\"N\",\"\",IF(AND('Enrollment Form'!$C699=\"ROC\",'Enrollment Form'!$DS699<>\"\"),\"Y\",IF(AND('Enrollment Form'!$C699=\"ROC\",'Enrollment Form'!$DS699=\"\"),\"N\",IF(AND('Enrollment Form'!$C699=\"Enroll\",'Enrollment Form'!$B699=\"Subscriber\",'Enrollment Form'!$CQ699=\"No\",'Enrollment Form'!$DS699=\"\"),\"N\",IF(AND('Enrollment Form'!$C699=\"Enroll\",'Enrollment Form'!$B699=\"Subscriber\",'Enrollment Form'!$CQ699=\"Yes\"),\"-\",\"Y\")))))","v":""},{"$f":"IF($B692=\"N\",\"\",IF(AND('Enrollment Form'!$C699=\"ROC\",'Enrollment Form'!$DT699<>\"\"),\"Y\",IF(AND('Enrollment Form'!$C699=\"ROC\",'Enrollment Form'!$DT699=\"\"),\"N\",IF(AND('Enrollment Form'!$C699=\"Enroll\",'Enrollment Form'!$B699=\"Subscriber\",'Enrollment Form'!$CQ699=\"No\",'Enrollment Form'!$DT699=\"\"),\"N\",IF(AND('Enrollment Form'!$C699=\"Enroll\",'Enrollment Form'!$B699=\"Subscriber\",'Enrollment Form'!$CQ699=\"Yes\"),\"-\",\"Y\")))))","v":""},{"$f":"IF('Enrollment Form'!AH699=\"\",\"\",IF(ISERROR(SEARCH(\".\",'Enrollment Form'!AH699,SEARCH(\"@\",'Enrollment Form'!AH699))),\"N\",\"Y\"))","v":""},{"$f":"IF(OR($B692=\"N\",'Enrollment Form'!$G699=\"\"),\"\",IF('Enrollment Form'!$B699<>\"Subscriber\",\"-\",IF(COUNTIF('Enrollment Form'!$AS699:$AT699,\"Yes\")=2,\"N\",\"Y\")))","v":""},{"$f":"IF(OR('Enrollment Form'!$CC699=\"\",'Enrollment Form'!$CC699=\"No\"),\"-\",IF(AND('Enrollment Form'!$CC699=\"Yes\",'Enrollment Form'!$CD699=\"\"),\"N\",\"Y\"))","v":"-"},{"$f":"IF(OR('Enrollment Form'!$CE699=\"\",'Enrollment Form'!$CE699=\"No\"),\"-\",IF(AND('Enrollment Form'!$CE699=\"Yes\",'Enrollment Form'!$CF699=\"\"),\"N\",\"Y\"))","v":"-"},{"$f":"IF(OR('Enrollment Form'!$CG699=\"\",'Enrollment Form'!$CG699=\"No\"),\"-\",IF(AND('Enrollment Form'!$CG699=\"Yes\",'Enrollment Form'!$CH699=\"\"),\"N\",\"Y\"))","v":"-"},{"$f":"IF(OR('Enrollment Form'!$CG699=\"\",'Enrollment Form'!$CG699=\"No\"),\"-\",IF(AND('Enrollment Form'!$CG699=\"Yes\",'Enrollment Form'!$CI699=\"\"),\"N\",\"Y\"))","v":"-"},{"$f":"IF('Enrollment Form'!B699<>\"Subscriber\",\"-\",IF(AND('Enrollment Form'!B699=\"Subscriber\",'Enrollment Form'!C699=\"Enroll\",'Enrollment Form'!AA699=\"\"),\"N\",\"Y\"))","v":"-"},{"$f":"IF(OR('Enrollment Form'!B699=\"Subscriber\",'Enrollment Form'!B699=\"\"),\"-\",IF('Enrollment Form'!BI699=\"\",\"N\",\"Y\"))","v":"-"},{"$f":"IF('Enrollment Form'!B699<>\"Subscriber\",\"-\",IF(AND('Enrollment Form'!B699=\"Subscriber\",'Enrollment Form'!G699=\"\"),\"N\",\"Y\"))","v":"-"},{"$f":"IF('Enrollment Form'!A699=\"\",\"\",IF('Enrollment Form'!B699=\"Subscriber\",\"-\",IF(AND('Enrollment Form'!B699<>\"Subscriber\",'Enrollment Form'!G699='Enrollment Form'!H699),\"N\",\"Y\")))","v":""},0]
[700,{"$f":"IF('Enrollment Form'!$A700<>\"\",\"Y\",\"N\")","v":"N"},{"$f":"IF(AND('Enrollment Form'!$B700=\"\",'Enrollment Form'!$C700<>\"\"),\"N\",IF($B693=\"N\",\"\",\"Y\"))","v":""},{"$f":"IF(OR($B693=\"N\",'Enrollment Form'!G700=\"\"),\"\",IF('Enrollment Form'!$B700<>\"Subscriber\",\"\",IF('Enrollment Form'!$G700='Enrollment Form'!$H700,\"Y\",\"N\")))","v":""},{"$f":"IF($B693=\"N\",\"\",IF(AND(COUNTIFS('Enrollment Form'!$H$11:$H$1000,'Enrollment Form'!$H700,'Enrollment Form'!$B$11:$B$1000,'Enrollment Form'!$B700)>1,'Enrollment Form'!$H700<>\"\"),\"N\",\"Y\"))","v":""},{"$f":"IF($B693=\"N\",\"\",IF(LEN('Enrollment Form'!$Y700)=0,\"\",IF(LEN('Enrollment Form'!$Y700)<>5,\"N\",\"Y\")))","v":""},{"$f":"IF($B693=\"N\",\"\",IF(LEN('Enrollment Form'!$AD700=0),\"\",IF(LEN('Enrollment Form'!$AD700)<>5,\"N\",\"Y\")))","v":""},{"$f":"IF($B693=\"N\",\"\",IF(LEN('Enrollment Form'!$BL700=0),\"\",IF(LEN('Enrollment Form'!$BL700)<>5,\"N\",\"Y\")))","v":""},{"$f":"IF($B693=\"N\",\"\",IF(LEN('Enrollment Form'!$AE700)=0,\"\",IF(LEN('Enrollment Form'!$AE700)<>10,\"N\",\"Y\")))","v":""},{"$f":"IF($B693=\"N\",\"\",IF(LEN('Enrollment Form'!$AF700)=0,\"\",IF(LEN('Enrollment Form'!$AF700)<>10,\"N\",\"Y\")))","v":""},{"$f":"IF('Enrollment Form'!$O700<>\"Graded\",\"-\",IF(AND('Enrollment Form'!$O700=\"Graded\",'Enrollment Form'!$AO700<>\"\"),\"Y\",\"N\"))","v":"-"},{"$f":"IF($B693=\"N\",\"\",IF(OR('Enrollment Form'!$B700<>\"Subscriber\",'Enrollment Form'!$C700=\"ROC\"),\"-\",IF(AND('Enrollment Form'!$B700=\"Subscriber\",'Enrollment Form'!$C700=\"Enroll\",'Enrollment Form'!$AJ700<>\"\"),\"Y\",\"N\")))","v":""},{"$f":"IF($B693=\"N\",\"\",IF(OR('Enrollment Form'!$B700<>\"Subscriber\",'Enrollment Form'!$C700=\"ROC\"),\"-\",IF(AND('Enrollment Form'!$B700=\"Subscriber\",'Enrollment Form'!$C700=\"Enroll\",'Enrollment Form'!$AK700<>\"\"),\"Y\",\"N\")))","v":""},{"$f":"IF($B693=\"N\",\"\",IF(OR('Enrollment Form'!$B700<>\"Subscriber\",'Enrollment Form'!$C700=\"ROC\"),\"-\",IF(AND('Enrollment Form'!$B700=\"Subscriber\",'Enrollment Form'!$C700=\"Enroll\",'Enrollment Form'!$AL700<>\"\"),\"Y\",\"N\")))","v":""},{"$f":"IF($B693=\"N\",\"\",IF(OR('Enrollment Form'!$B700<>\"Subscriber\",'Enrollment Form'!$C700=\"ROC\"),\"-\",IF(AND('Enrollment Form'!$B700=\"Subscriber\",'Enrollment Form'!$C700=\"Enroll\",'Enrollment Form'!$AM700<>\"\"),\"Y\",\"N\")))","v":""},{"$f":"IF($B693=\"N\",\"\",IF(OR('Enrollment Form'!$B700<>\"Subscriber\",'Enrollment Form'!$C700=\"ROC\"),\"-\",IF(AND('Enrollment Form'!$B700=\"Subscriber\",'Enrollment Form'!$C700=\"Enroll\",'Enrollment Form'!$AN700<>\"\"),\"Y\",\"N\")))","v":""},{"$f":"IF($B693=\"N\",\"\",IF(OR('Enrollment Form'!$B700<>\"Subscriber\",'Enrollment Form'!$C700=\"ROC\"),\"-\",IF(AND('Enrollment Form'!$B700=\"Subscriber\",'Enrollment Form'!$C700=\"Enroll\",'Enrollment Form'!$AP700<>\"\"),\"Y\",\"N\")))","v":""},{"$f":"IF($B693=\"N\",\"\",IF($Q693=\"-\",\"-\",IF(AND($Q693=\"Y\",'Enrollment Form'!$AP700=\"No\"),\"-\",IF(AND($Q693=\"Y\",'Enrollment Form'!$AP700=\"Yes\",'Enrollment Form'!$AQ700<>\"\"),\"Y\",\"N\"))))","v":""},{"$f":"IF($B693=\"N\",\"\",IF(OR('Enrollment Form'!$B700<>\"Subscriber\",'Enrollment Form'!$C700=\"ROC\"),\"-\",IF(AND('Enrollment Form'!$B700=\"Subscriber\",'Enrollment Form'!$C700=\"Enroll\",'Enrollment Form'!$CO700<>\"\"),\"Y\",\"N\")))","v":""},{"$f":"IF($B693=\"N\",\"\",IF($S693=\"-\",\"-\",IF(AND($S693=\"Y\",'Enrollment Form'!$CO700=\"No\"),\"-\",IF(AND($S693=\"Y\",'Enrollment Form'!$CO700=\"Yes\",'Enrollment Form'!$CP700<>\"\"),\"Y\",\"N\"))))","v":""},{"$f":"IF(OR('Enrollment Form'!$AV700=\"Yes\",'Enrollment Form'!$AV700=\"\"),\"-\",IF(AND('Enrollment Form'!$AV700=\"No\",ISERROR(FIND(\"HMO\",VLOOKUP('Enrollment Form'!G700,'Enrollment Form'!H$11:J$1000,3,FALSE),1))=FALSE,COUNTA('Enrollment Form'!$AW700:$AZ700)=4),\"Y\",\"N\"))","v":"-"},{"$f":"IF($B693=\"N\",\"\",IF('Enrollment Form'!$B700=\"Subscriber\",\"-\",IF(COUNTA('Enrollment Form'!$BE700,'Enrollment Form'!$BG700)=2,\"Y\",\"N\")))","v":""},{"$f":"IF($B693=\"N\",\"\",IF(OR('Enrollment Form'!$AU700=\"\",'Enrollment Form'!$AU700=\"No\"),\"-\",IF(AND('Enrollment Form'!$AU700=\"Yes\",COUNTA('Enrollment Form'!$CK700)=1),\"Y\",\"N\")))","v":""},{"$f":"IF(OR('Enrollment Form'!$CK700=\"\",'Enrollment Form'!$CK700=\"No\"),\"-\",IF(COUNTA('Enrollment Form'!$CM700:$CN700)=2,\"Y\",\"N\"))","v":"-"},{"$f":"IF($B693=\"N\",\"\",IF(COUNTIF('Enrollment Form'!$CZ700:$DO700,\"Other\")=COUNTA('Enrollment Form'!$DF700,'Enrollment Form'!$DA700,'Enrollment Form'!$DK700,'Enrollment Form'!$DP700),\"Y\",\"N\"))","v":""},{"$f":"IF($B693=\"N\",\"\",IF(OR('Enrollment Form'!B700<>\"Subscriber\",'Enrollment Form'!C700=\"ROC\",COUNTIF('Enrollment Form'!AS700:AT700,\"Yes\")>=1),\"-\",IF(AND('Enrollment Form'!C700=\"Enroll\",COUNTIF('Enrollment Form'!AS700:AT700,\"No\")=2,'Enrollment Form'!AU700=\"\"),\"N\",\"Y\")))","v":""},{"$f":"IF(OR(B693=\"N\",'Enrollment Form'!B700<>\"Subscriber\",'Enrollment Form'!C700=\"ROC\",'Enrollment Form'!O700<>\"Multiple of Salary\"),\"-\",IF(COUNTA('Enrollment Form'!T700:U700)<2,\"N\",\"Y\"))","v":"-"},{"$f":"IF(B693=\"N\",\"\",IF(OR('Enrollment Form'!C700=\"ROC\",'Enrollment Form'!B700<>\"Subscriber\",'Enrollment Form'!O700=\"Waive\",'Enrollment Form'!O700=\"\"),\"-\",IF('Enrollment Form'!P700=\"\",\"N\",\"Y\")))","v":""},{"$f":"IF($B693=\"N\",\"\",IF(AND('Enrollment Form'!$C700=\"ROC\",'Enrollment Form'!$DS700<>\"\"),\"Y\",IF(AND('Enrollment Form'!$C700=\"ROC\",'Enrollment Form'!$DS700=\"\"),\"N\",IF(AND('Enrollment Form'!$C700=\"Enroll\",'Enrollment Form'!$B700=\"Subscriber\",'Enrollment Form'!$CQ700=\"No\",'Enrollment Form'!$DS700=\"\"),\"N\",IF(AND('Enrollment Form'!$C700=\"Enroll\",'Enrollment Form'!$B700=\"Subscriber\",'Enrollment Form'!$CQ700=\"Yes\"),\"-\",\"Y\")))))","v":""},{"$f":"IF($B693=\"N\",\"\",IF(AND('Enrollment Form'!$C700=\"ROC\",'Enrollment Form'!$DT700<>\"\"),\"Y\",IF(AND('Enrollment Form'!$C700=\"ROC\",'Enrollment Form'!$DT700=\"\"),\"N\",IF(AND('Enrollment Form'!$C700=\"Enroll\",'Enrollment Form'!$B700=\"Subscriber\",'Enrollment Form'!$CQ700=\"No\",'Enrollment Form'!$DT700=\"\"),\"N\",IF(AND('Enrollment Form'!$C700=\"Enroll\",'Enrollment Form'!$B700=\"Subscriber\",'Enrollment Form'!$CQ700=\"Yes\"),\"-\",\"Y\")))))","v":""},{"$f":"IF('Enrollment Form'!AH700=\"\",\"\",IF(ISERROR(SEARCH(\".\",'Enrollment Form'!AH700,SEARCH(\"@\",'Enrollment Form'!AH700))),\"N\",\"Y\"))","v":""},{"$f":"IF(OR($B693=\"N\",'Enrollment Form'!$G700=\"\"),\"\",IF('Enrollment Form'!$B700<>\"Subscriber\",\"-\",IF(COUNTIF('Enrollment Form'!$AS700:$AT700,\"Yes\")=2,\"N\",\"Y\")))","v":""},{"$f":"IF(OR('Enrollment Form'!$CC700=\"\",'Enrollment Form'!$CC700=\"No\"),\"-\",IF(AND('Enrollment Form'!$CC700=\"Yes\",'Enrollment Form'!$CD700=\"\"),\"N\",\"Y\"))","v":"-"},{"$f":"IF(OR('Enrollment Form'!$CE700=\"\",'Enrollment Form'!$CE700=\"No\"),\"-\",IF(AND('Enrollment Form'!$CE700=\"Yes\",'Enrollment Form'!$CF700=\"\"),\"N\",\"Y\"))","v":"-"},{"$f":"IF(OR('Enrollment Form'!$CG700=\"\",'Enrollment Form'!$CG700=\"No\"),\"-\",IF(AND('Enrollment Form'!$CG700=\"Yes\",'Enrollment Form'!$CH700=\"\"),\"N\",\"Y\"))","v":"-"},{"$f":"IF(OR('Enrollment Form'!$CG700=\"\",'Enrollment Form'!$CG700=\"No\"),\"-\",IF(AND('Enrollment Form'!$CG700=\"Yes\",'Enrollment Form'!$CI700=\"\"),\"N\",\"Y\"))","v":"-"},{"$f":"IF('Enrollment Form'!B700<>\"Subscriber\",\"-\",IF(AND('Enrollment Form'!B700=\"Subscriber\",'Enrollment Form'!C700=\"Enroll\",'Enrollment Form'!AA700=\"\"),\"N\",\"Y\"))","v":"-"},{"$f":"IF(OR('Enrollment Form'!B700=\"Subscriber\",'Enrollment Form'!B700=\"\"),\"-\",IF('Enrollment Form'!BI700=\"\",\"N\",\"Y\"))","v":"-"},{"$f":"IF('Enrollment Form'!B700<>\"Subscriber\",\"-\",IF(AND('Enrollment Form'!B700=\"Subscriber\",'Enrollment Form'!G700=\"\"),\"N\",\"Y\"))","v":"-"},{"$f":"IF('Enrollment Form'!A700=\"\",\"\",IF('Enrollment Form'!B700=\"Subscriber\",\"-\",IF(AND('Enrollment Form'!B700<>\"Subscriber\",'Enrollment Form'!G700='Enrollment Form'!H700),\"N\",\"Y\")))","v":""},0]
[701,{"$f":"IF('Enrollment Form'!$A701<>\"\",\"Y\",\"N\")","v":"N"},{"$f":"IF(AND('Enrollment Form'!$B701=\"\",'Enrollment Form'!$C701<>\"\"),\"N\",IF($B694=\"N\",\"\",\"Y\"))","v":""},{"$f":"IF(OR($B694=\"N\",'Enrollment Form'!G701=\"\"),\"\",IF('Enrollment Form'!$B701<>\"Subscriber\",\"\",IF('Enrollment Form'!$G701='Enrollment Form'!$H701,\"Y\",\"N\")))","v":""},{"$f":"IF($B694=\"N\",\"\",IF(AND(COUNTIFS('Enrollment Form'!$H$11:$H$1000,'Enrollment Form'!$H701,'Enrollment Form'!$B$11:$B$1000,'Enrollment Form'!$B701)>1,'Enrollment Form'!$H701<>\"\"),\"N\",\"Y\"))","v":""},{"$f":"IF($B694=\"N\",\"\",IF(LEN('Enrollment Form'!$Y701)=0,\"\",IF(LEN('Enrollment Form'!$Y701)<>5,\"N\",\"Y\")))","v":""},{"$f":"IF($B694=\"N\",\"\",IF(LEN('Enrollment Form'!$AD701=0),\"\",IF(LEN('Enrollment Form'!$AD701)<>5,\"N\",\"Y\")))","v":""},{"$f":"IF($B694=\"N\",\"\",IF(LEN('Enrollment Form'!$BL701=0),\"\",IF(LEN('Enrollment Form'!$BL701)<>5,\"N\",\"Y\")))","v":""},{"$f":"IF($B694=\"N\",\"\",IF(LEN('Enrollment Form'!$AE701)=0,\"\",IF(LEN('Enrollment Form'!$AE701)<>10,\"N\",\"Y\")))","v":""},{"$f":"IF($B694=\"N\",\"\",IF(LEN('Enrollment Form'!$AF701)=0,\"\",IF(LEN('Enrollment Form'!$AF701)<>10,\"N\",\"Y\")))","v":""},{"$f":"IF('Enrollment Form'!$O701<>\"Graded\",\"-\",IF(AND('Enrollment Form'!$O701=\"Graded\",'Enrollment Form'!$AO701<>\"\"),\"Y\",\"N\"))","v":"-"},{"$f":"IF($B694=\"N\",\"\",IF(OR('Enrollment Form'!$B701<>\"Subscriber\",'Enrollment Form'!$C701=\"ROC\"),\"-\",IF(AND('Enrollment Form'!$B701=\"Subscriber\",'Enrollment Form'!$C701=\"Enroll\",'Enrollment Form'!$AJ701<>\"\"),\"Y\",\"N\")))","v":""},{"$f":"IF($B694=\"N\",\"\",IF(OR('Enrollment Form'!$B701<>\"Subscriber\",'Enrollment Form'!$C701=\"ROC\"),\"-\",IF(AND('Enrollment Form'!$B701=\"Subscriber\",'Enrollment Form'!$C701=\"Enroll\",'Enrollment Form'!$AK701<>\"\"),\"Y\",\"N\")))","v":""},{"$f":"IF($B694=\"N\",\"\",IF(OR('Enrollment Form'!$B701<>\"Subscriber\",'Enrollment Form'!$C701=\"ROC\"),\"-\",IF(AND('Enrollment Form'!$B701=\"Subscriber\",'Enrollment Form'!$C701=\"Enroll\",'Enrollment Form'!$AL701<>\"\"),\"Y\",\"N\")))","v":""},{"$f":"IF($B694=\"N\",\"\",IF(OR('Enrollment Form'!$B701<>\"Subscriber\",'Enrollment Form'!$C701=\"ROC\"),\"-\",IF(AND('Enrollment Form'!$B701=\"Subscriber\",'Enrollment Form'!$C701=\"Enroll\",'Enrollment Form'!$AM701<>\"\"),\"Y\",\"N\")))","v":""},{"$f":"IF($B694=\"N\",\"\",IF(OR('Enrollment Form'!$B701<>\"Subscriber\",'Enrollment Form'!$C701=\"ROC\"),\"-\",IF(AND('Enrollment Form'!$B701=\"Subscriber\",'Enrollment Form'!$C701=\"Enroll\",'Enrollment Form'!$AN701<>\"\"),\"Y\",\"N\")))","v":""},{"$f":"IF($B694=\"N\",\"\",IF(OR('Enrollment Form'!$B701<>\"Subscriber\",'Enrollment Form'!$C701=\"ROC\"),\"-\",IF(AND('Enrollment Form'!$B701=\"Subscriber\",'Enrollment Form'!$C701=\"Enroll\",'Enrollment Form'!$AP701<>\"\"),\"Y\",\"N\")))","v":""},{"$f":"IF($B694=\"N\",\"\",IF($Q694=\"-\",\"-\",IF(AND($Q694=\"Y\",'Enrollment Form'!$AP701=\"No\"),\"-\",IF(AND($Q694=\"Y\",'Enrollment Form'!$AP701=\"Yes\",'Enrollment Form'!$AQ701<>\"\"),\"Y\",\"N\"))))","v":""},{"$f":"IF($B694=\"N\",\"\",IF(OR('Enrollment Form'!$B701<>\"Subscriber\",'Enrollment Form'!$C701=\"ROC\"),\"-\",IF(AND('Enrollment Form'!$B701=\"Subscriber\",'Enrollment Form'!$C701=\"Enroll\",'Enrollment Form'!$CO701<>\"\"),\"Y\",\"N\")))","v":""},{"$f":"IF($B694=\"N\",\"\",IF($S694=\"-\",\"-\",IF(AND($S694=\"Y\",'Enrollment Form'!$CO701=\"No\"),\"-\",IF(AND($S694=\"Y\",'Enrollment Form'!$CO701=\"Yes\",'Enrollment Form'!$CP701<>\"\"),\"Y\",\"N\"))))","v":""},{"$f":"IF(OR('Enrollment Form'!$AV701=\"Yes\",'Enrollment Form'!$AV701=\"\"),\"-\",IF(AND('Enrollment Form'!$AV701=\"No\",ISERROR(FIND(\"HMO\",VLOOKUP('Enrollment Form'!G701,'Enrollment Form'!H$11:J$1000,3,FALSE),1))=FALSE,COUNTA('Enrollment Form'!$AW701:$AZ701)=4),\"Y\",\"N\"))","v":"-"},{"$f":"IF($B694=\"N\",\"\",IF('Enrollment Form'!$B701=\"Subscriber\",\"-\",IF(COUNTA('Enrollment Form'!$BE701,'Enrollment Form'!$BG701)=2,\"Y\",\"N\")))","v":""},{"$f":"IF($B694=\"N\",\"\",IF(OR('Enrollment Form'!$AU701=\"\",'Enrollment Form'!$AU701=\"No\"),\"-\",IF(AND('Enrollment Form'!$AU701=\"Yes\",COUNTA('Enrollment Form'!$CK701)=1),\"Y\",\"N\")))","v":""},{"$f":"IF(OR('Enrollment Form'!$CK701=\"\",'Enrollment Form'!$CK701=\"No\"),\"-\",IF(COUNTA('Enrollment Form'!$CM701:$CN701)=2,\"Y\",\"N\"))","v":"-"},{"$f":"IF($B694=\"N\",\"\",IF(COUNTIF('Enrollment Form'!$CZ701:$DO701,\"Other\")=COUNTA('Enrollment Form'!$DF701,'Enrollment Form'!$DA701,'Enrollment Form'!$DK701,'Enrollment Form'!$DP701),\"Y\",\"N\"))","v":""},{"$f":"IF($B694=\"N\",\"\",IF(OR('Enrollment Form'!B701<>\"Subscriber\",'Enrollment Form'!C701=\"ROC\",COUNTIF('Enrollment Form'!AS701:AT701,\"Yes\")>=1),\"-\",IF(AND('Enrollment Form'!C701=\"Enroll\",COUNTIF('Enrollment Form'!AS701:AT701,\"No\")=2,'Enrollment Form'!AU701=\"\"),\"N\",\"Y\")))","v":""},{"$f":"IF(OR(B694=\"N\",'Enrollment Form'!B701<>\"Subscriber\",'Enrollment Form'!C701=\"ROC\",'Enrollment Form'!O701<>\"Multiple of Salary\"),\"-\",IF(COUNTA('Enrollment Form'!T701:U701)<2,\"N\",\"Y\"))","v":"-"},{"$f":"IF(B694=\"N\",\"\",IF(OR('Enrollment Form'!C701=\"ROC\",'Enrollment Form'!B701<>\"Subscriber\",'Enrollment Form'!O701=\"Waive\",'Enrollment Form'!O701=\"\"),\"-\",IF('Enrollment Form'!P701=\"\",\"N\",\"Y\")))","v":""},{"$f":"IF($B694=\"N\",\"\",IF(AND('Enrollment Form'!$C701=\"ROC\",'Enrollment Form'!$DS701<>\"\"),\"Y\",IF(AND('Enrollment Form'!$C701=\"ROC\",'Enrollment Form'!$DS701=\"\"),\"N\",IF(AND('Enrollment Form'!$C701=\"Enroll\",'Enrollment Form'!$B701=\"Subscriber\",'Enrollment Form'!$CQ701=\"No\",'Enrollment Form'!$DS701=\"\"),\"N\",IF(AND('Enrollment Form'!$C701=\"Enroll\",'Enrollment Form'!$B701=\"Subscriber\",'Enrollment Form'!$CQ701=\"Yes\"),\"-\",\"Y\")))))","v":""},{"$f":"IF($B694=\"N\",\"\",IF(AND('Enrollment Form'!$C701=\"ROC\",'Enrollment Form'!$DT701<>\"\"),\"Y\",IF(AND('Enrollment Form'!$C701=\"ROC\",'Enrollment Form'!$DT701=\"\"),\"N\",IF(AND('Enrollment Form'!$C701=\"Enroll\",'Enrollment Form'!$B701=\"Subscriber\",'Enrollment Form'!$CQ701=\"No\",'Enrollment Form'!$DT701=\"\"),\"N\",IF(AND('Enrollment Form'!$C701=\"Enroll\",'Enrollment Form'!$B701=\"Subscriber\",'Enrollment Form'!$CQ701=\"Yes\"),\"-\",\"Y\")))))","v":""},{"$f":"IF('Enrollment Form'!AH701=\"\",\"\",IF(ISERROR(SEARCH(\".\",'Enrollment Form'!AH701,SEARCH(\"@\",'Enrollment Form'!AH701))),\"N\",\"Y\"))","v":""},{"$f":"IF(OR($B694=\"N\",'Enrollment Form'!$G701=\"\"),\"\",IF('Enrollment Form'!$B701<>\"Subscriber\",\"-\",IF(COUNTIF('Enrollment Form'!$AS701:$AT701,\"Yes\")=2,\"N\",\"Y\")))","v":""},{"$f":"IF(OR('Enrollment Form'!$CC701=\"\",'Enrollment Form'!$CC701=\"No\"),\"-\",IF(AND('Enrollment Form'!$CC701=\"Yes\",'Enrollment Form'!$CD701=\"\"),\"N\",\"Y\"))","v":"-"},{"$f":"IF(OR('Enrollment Form'!$CE701=\"\",'Enrollment Form'!$CE701=\"No\"),\"-\",IF(AND('Enrollment Form'!$CE701=\"Yes\",'Enrollment Form'!$CF701=\"\"),\"N\",\"Y\"))","v":"-"},{"$f":"IF(OR('Enrollment Form'!$CG701=\"\",'Enrollment Form'!$CG701=\"No\"),\"-\",IF(AND('Enrollment Form'!$CG701=\"Yes\",'Enrollment Form'!$CH701=\"\"),\"N\",\"Y\"))","v":"-"},{"$f":"IF(OR('Enrollment Form'!$CG701=\"\",'Enrollment Form'!$CG701=\"No\"),\"-\",IF(AND('Enrollment Form'!$CG701=\"Yes\",'Enrollment Form'!$CI701=\"\"),\"N\",\"Y\"))","v":"-"},{"$f":"IF('Enrollment Form'!B701<>\"Subscriber\",\"-\",IF(AND('Enrollment Form'!B701=\"Subscriber\",'Enrollment Form'!C701=\"Enroll\",'Enrollment Form'!AA701=\"\"),\"N\",\"Y\"))","v":"-"},{"$f":"IF(OR('Enrollment Form'!B701=\"Subscriber\",'Enrollment Form'!B701=\"\"),\"-\",IF('Enrollment Form'!BI701=\"\",\"N\",\"Y\"))","v":"-"},{"$f":"IF('Enrollment Form'!B701<>\"Subscriber\",\"-\",IF(AND('Enrollment Form'!B701=\"Subscriber\",'Enrollment Form'!G701=\"\"),\"N\",\"Y\"))","v":"-"},{"$f":"IF('Enrollment Form'!A701=\"\",\"\",IF('Enrollment Form'!B701=\"Subscriber\",\"-\",IF(AND('Enrollment Form'!B701<>\"Subscriber\",'Enrollment Form'!G701='Enrollment Form'!H701),\"N\",\"Y\")))","v":""},0]
[702,{"$f":"IF('Enrollment Form'!$A702<>\"\",\"Y\",\"N\")","v":"N"},{"$f":"IF(AND('Enrollment Form'!$B702=\"\",'Enrollment Form'!$C702<>\"\"),\"N\",IF($B695=\"N\",\"\",\"Y\"))","v":""},{"$f":"IF(OR($B695=\"N\",'Enrollment Form'!G702=\"\"),\"\",IF('Enrollment Form'!$B702<>\"Subscriber\",\"\",IF('Enrollment Form'!$G702='Enrollment Form'!$H702,\"Y\",\"N\")))","v":""},{"$f":"IF($B695=\"N\",\"\",IF(AND(COUNTIFS('Enrollment Form'!$H$11:$H$1000,'Enrollment Form'!$H702,'Enrollment Form'!$B$11:$B$1000,'Enrollment Form'!$B702)>1,'Enrollment Form'!$H702<>\"\"),\"N\",\"Y\"))","v":""},{"$f":"IF($B695=\"N\",\"\",IF(LEN('Enrollment Form'!$Y702)=0,\"\",IF(LEN('Enrollment Form'!$Y702)<>5,\"N\",\"Y\")))","v":""},{"$f":"IF($B695=\"N\",\"\",IF(LEN('Enrollment Form'!$AD702=0),\"\",IF(LEN('Enrollment Form'!$AD702)<>5,\"N\",\"Y\")))","v":""},{"$f":"IF($B695=\"N\",\"\",IF(LEN('Enrollment Form'!$BL702=0),\"\",IF(LEN('Enrollment Form'!$BL702)<>5,\"N\",\"Y\")))","v":""},{"$f":"IF($B695=\"N\",\"\",IF(LEN('Enrollment Form'!$AE702)=0,\"\",IF(LEN('Enrollment Form'!$AE702)<>10,\"N\",\"Y\")))","v":""},{"$f":"IF($B695=\"N\",\"\",IF(LEN('Enrollment Form'!$AF702)=0,\"\",IF(LEN('Enrollment Form'!$AF702)<>10,\"N\",\"Y\")))","v":""},{"$f":"IF('Enrollment Form'!$O702<>\"Graded\",\"-\",IF(AND('Enrollment Form'!$O702=\"Graded\",'Enrollment Form'!$AO702<>\"\"),\"Y\",\"N\"))","v":"-"},{"$f":"IF($B695=\"N\",\"\",IF(OR('Enrollment Form'!$B702<>\"Subscriber\",'Enrollment Form'!$C702=\"ROC\"),\"-\",IF(AND('Enrollment Form'!$B702=\"Subscriber\",'Enrollment Form'!$C702=\"Enroll\",'Enrollment Form'!$AJ702<>\"\"),\"Y\",\"N\")))","v":""},{"$f":"IF($B695=\"N\",\"\",IF(OR('Enrollment Form'!$B702<>\"Subscriber\",'Enrollment Form'!$C702=\"ROC\"),\"-\",IF(AND('Enrollment Form'!$B702=\"Subscriber\",'Enrollment Form'!$C702=\"Enroll\",'Enrollment Form'!$AK702<>\"\"),\"Y\",\"N\")))","v":""},{"$f":"IF($B695=\"N\",\"\",IF(OR('Enrollment Form'!$B702<>\"Subscriber\",'Enrollment Form'!$C702=\"ROC\"),\"-\",IF(AND('Enrollment Form'!$B702=\"Subscriber\",'Enrollment Form'!$C702=\"Enroll\",'Enrollment Form'!$AL702<>\"\"),\"Y\",\"N\")))","v":""},{"$f":"IF($B695=\"N\",\"\",IF(OR('Enrollment Form'!$B702<>\"Subscriber\",'Enrollment Form'!$C702=\"ROC\"),\"-\",IF(AND('Enrollment Form'!$B702=\"Subscriber\",'Enrollment Form'!$C702=\"Enroll\",'Enrollment Form'!$AM702<>\"\"),\"Y\",\"N\")))","v":""},{"$f":"IF($B695=\"N\",\"\",IF(OR('Enrollment Form'!$B702<>\"Subscriber\",'Enrollment Form'!$C702=\"ROC\"),\"-\",IF(AND('Enrollment Form'!$B702=\"Subscriber\",'Enrollment Form'!$C702=\"Enroll\",'Enrollment Form'!$AN702<>\"\"),\"Y\",\"N\")))","v":""},{"$f":"IF($B695=\"N\",\"\",IF(OR('Enrollment Form'!$B702<>\"Subscriber\",'Enrollment Form'!$C702=\"ROC\"),\"-\",IF(AND('Enrollment Form'!$B702=\"Subscriber\",'Enrollment Form'!$C702=\"Enroll\",'Enrollment Form'!$AP702<>\"\"),\"Y\",\"N\")))","v":""},{"$f":"IF($B695=\"N\",\"\",IF($Q695=\"-\",\"-\",IF(AND($Q695=\"Y\",'Enrollment Form'!$AP702=\"No\"),\"-\",IF(AND($Q695=\"Y\",'Enrollment Form'!$AP702=\"Yes\",'Enrollment Form'!$AQ702<>\"\"),\"Y\",\"N\"))))","v":""},{"$f":"IF($B695=\"N\",\"\",IF(OR('Enrollment Form'!$B702<>\"Subscriber\",'Enrollment Form'!$C702=\"ROC\"),\"-\",IF(AND('Enrollment Form'!$B702=\"Subscriber\",'Enrollment Form'!$C702=\"Enroll\",'Enrollment Form'!$CO702<>\"\"),\"Y\",\"N\")))","v":""},{"$f":"IF($B695=\"N\",\"\",IF($S695=\"-\",\"-\",IF(AND($S695=\"Y\",'Enrollment Form'!$CO702=\"No\"),\"-\",IF(AND($S695=\"Y\",'Enrollment Form'!$CO702=\"Yes\",'Enrollment Form'!$CP702<>\"\"),\"Y\",\"N\"))))","v":""},{"$f":"IF(OR('Enrollment Form'!$AV702=\"Yes\",'Enrollment Form'!$AV702=\"\"),\"-\",IF(AND('Enrollment Form'!$AV702=\"No\",ISERROR(FIND(\"HMO\",VLOOKUP('Enrollment Form'!G702,'Enrollment Form'!H$11:J$1000,3,FALSE),1))=FALSE,COUNTA('Enrollment Form'!$AW702:$AZ702)=4),\"Y\",\"N\"))","v":"-"},{"$f":"IF($B695=\"N\",\"\",IF('Enrollment Form'!$B702=\"Subscriber\",\"-\",IF(COUNTA('Enrollment Form'!$BE702,'Enrollment Form'!$BG702)=2,\"Y\",\"N\")))","v":""},{"$f":"IF($B695=\"N\",\"\",IF(OR('Enrollment Form'!$AU702=\"\",'Enrollment Form'!$AU702=\"No\"),\"-\",IF(AND('Enrollment Form'!$AU702=\"Yes\",COUNTA('Enrollment Form'!$CK702)=1),\"Y\",\"N\")))","v":""},{"$f":"IF(OR('Enrollment Form'!$CK702=\"\",'Enrollment Form'!$CK702=\"No\"),\"-\",IF(COUNTA('Enrollment Form'!$CM702:$CN702)=2,\"Y\",\"N\"))","v":"-"},{"$f":"IF($B695=\"N\",\"\",IF(COUNTIF('Enrollment Form'!$CZ702:$DO702,\"Other\")=COUNTA('Enrollment Form'!$DF702,'Enrollment Form'!$DA702,'Enrollment Form'!$DK702,'Enrollment Form'!$DP702),\"Y\",\"N\"))","v":""},{"$f":"IF($B695=\"N\",\"\",IF(OR('Enrollment Form'!B702<>\"Subscriber\",'Enrollment Form'!C702=\"ROC\",COUNTIF('Enrollment Form'!AS702:AT702,\"Yes\")>=1),\"-\",IF(AND('Enrollment Form'!C702=\"Enroll\",COUNTIF('Enrollment Form'!AS702:AT702,\"No\")=2,'Enrollment Form'!AU702=\"\"),\"N\",\"Y\")))","v":""},{"$f":"IF(OR(B695=\"N\",'Enrollment Form'!B702<>\"Subscriber\",'Enrollment Form'!C702=\"ROC\",'Enrollment Form'!O702<>\"Multiple of Salary\"),\"-\",IF(COUNTA('Enrollment Form'!T702:U702)<2,\"N\",\"Y\"))","v":"-"},{"$f":"IF(B695=\"N\",\"\",IF(OR('Enrollment Form'!C702=\"ROC\",'Enrollment Form'!B702<>\"Subscriber\",'Enrollment Form'!O702=\"Waive\",'Enrollment Form'!O702=\"\"),\"-\",IF('Enrollment Form'!P702=\"\",\"N\",\"Y\")))","v":""},{"$f":"IF($B695=\"N\",\"\",IF(AND('Enrollment Form'!$C702=\"ROC\",'Enrollment Form'!$DS702<>\"\"),\"Y\",IF(AND('Enrollment Form'!$C702=\"ROC\",'Enrollment Form'!$DS702=\"\"),\"N\",IF(AND('Enrollment Form'!$C702=\"Enroll\",'Enrollment Form'!$B702=\"Subscriber\",'Enrollment Form'!$CQ702=\"No\",'Enrollment Form'!$DS702=\"\"),\"N\",IF(AND('Enrollment Form'!$C702=\"Enroll\",'Enrollment Form'!$B702=\"Subscriber\",'Enrollment Form'!$CQ702=\"Yes\"),\"-\",\"Y\")))))","v":""},{"$f":"IF($B695=\"N\",\"\",IF(AND('Enrollment Form'!$C702=\"ROC\",'Enrollment Form'!$DT702<>\"\"),\"Y\",IF(AND('Enrollment Form'!$C702=\"ROC\",'Enrollment Form'!$DT702=\"\"),\"N\",IF(AND('Enrollment Form'!$C702=\"Enroll\",'Enrollment Form'!$B702=\"Subscriber\",'Enrollment Form'!$CQ702=\"No\",'Enrollment Form'!$DT702=\"\"),\"N\",IF(AND('Enrollment Form'!$C702=\"Enroll\",'Enrollment Form'!$B702=\"Subscriber\",'Enrollment Form'!$CQ702=\"Yes\"),\"-\",\"Y\")))))","v":""},{"$f":"IF('Enrollment Form'!AH702=\"\",\"\",IF(ISERROR(SEARCH(\".\",'Enrollment Form'!AH702,SEARCH(\"@\",'Enrollment Form'!AH702))),\"N\",\"Y\"))","v":""},{"$f":"IF(OR($B695=\"N\",'Enrollment Form'!$G702=\"\"),\"\",IF('Enrollment Form'!$B702<>\"Subscriber\",\"-\",IF(COUNTIF('Enrollment Form'!$AS702:$AT702,\"Yes\")=2,\"N\",\"Y\")))","v":""},{"$f":"IF(OR('Enrollment Form'!$CC702=\"\",'Enrollment Form'!$CC702=\"No\"),\"-\",IF(AND('Enrollment Form'!$CC702=\"Yes\",'Enrollment Form'!$CD702=\"\"),\"N\",\"Y\"))","v":"-"},{"$f":"IF(OR('Enrollment Form'!$CE702=\"\",'Enrollment Form'!$CE702=\"No\"),\"-\",IF(AND('Enrollment Form'!$CE702=\"Yes\",'Enrollment Form'!$CF702=\"\"),\"N\",\"Y\"))","v":"-"},{"$f":"IF(OR('Enrollment Form'!$CG702=\"\",'Enrollment Form'!$CG702=\"No\"),\"-\",IF(AND('Enrollment Form'!$CG702=\"Yes\",'Enrollment Form'!$CH702=\"\"),\"N\",\"Y\"))","v":"-"},{"$f":"IF(OR('Enrollment Form'!$CG702=\"\",'Enrollment Form'!$CG702=\"No\"),\"-\",IF(AND('Enrollment Form'!$CG702=\"Yes\",'Enrollment Form'!$CI702=\"\"),\"N\",\"Y\"))","v":"-"},{"$f":"IF('Enrollment Form'!B702<>\"Subscriber\",\"-\",IF(AND('Enrollment Form'!B702=\"Subscriber\",'Enrollment Form'!C702=\"Enroll\",'Enrollment Form'!AA702=\"\"),\"N\",\"Y\"))","v":"-"},{"$f":"IF(OR('Enrollment Form'!B702=\"Subscriber\",'Enrollment Form'!B702=\"\"),\"-\",IF('Enrollment Form'!BI702=\"\",\"N\",\"Y\"))","v":"-"},{"$f":"IF('Enrollment Form'!B702<>\"Subscriber\",\"-\",IF(AND('Enrollment Form'!B702=\"Subscriber\",'Enrollment Form'!G702=\"\"),\"N\",\"Y\"))","v":"-"},{"$f":"IF('Enrollment Form'!A702=\"\",\"\",IF('Enrollment Form'!B702=\"Subscriber\",\"-\",IF(AND('Enrollment Form'!B702<>\"Subscriber\",'Enrollment Form'!G702='Enrollment Form'!H702),\"N\",\"Y\")))","v":""},0]
[703,{"$f":"IF('Enrollment Form'!$A703<>\"\",\"Y\",\"N\")","v":"N"},{"$f":"IF(AND('Enrollment Form'!$B703=\"\",'Enrollment Form'!$C703<>\"\"),\"N\",IF($B696=\"N\",\"\",\"Y\"))","v":""},{"$f":"IF(OR($B696=\"N\",'Enrollment Form'!G703=\"\"),\"\",IF('Enrollment Form'!$B703<>\"Subscriber\",\"\",IF('Enrollment Form'!$G703='Enrollment Form'!$H703,\"Y\",\"N\")))","v":""},{"$f":"IF($B696=\"N\",\"\",IF(AND(COUNTIFS('Enrollment Form'!$H$11:$H$1000,'Enrollment Form'!$H703,'Enrollment Form'!$B$11:$B$1000,'Enrollment Form'!$B703)>1,'Enrollment Form'!$H703<>\"\"),\"N\",\"Y\"))","v":""},{"$f":"IF($B696=\"N\",\"\",IF(LEN('Enrollment Form'!$Y703)=0,\"\",IF(LEN('Enrollment Form'!$Y703)<>5,\"N\",\"Y\")))","v":""},{"$f":"IF($B696=\"N\",\"\",IF(LEN('Enrollment Form'!$AD703=0),\"\",IF(LEN('Enrollment Form'!$AD703)<>5,\"N\",\"Y\")))","v":""},{"$f":"IF($B696=\"N\",\"\",IF(LEN('Enrollment Form'!$BL703=0),\"\",IF(LEN('Enrollment Form'!$BL703)<>5,\"N\",\"Y\")))","v":""},{"$f":"IF($B696=\"N\",\"\",IF(LEN('Enrollment Form'!$AE703)=0,\"\",IF(LEN('Enrollment Form'!$AE703)<>10,\"N\",\"Y\")))","v":""},{"$f":"IF($B696=\"N\",\"\",IF(LEN('Enrollment Form'!$AF703)=0,\"\",IF(LEN('Enrollment Form'!$AF703)<>10,\"N\",\"Y\")))","v":""},{"$f":"IF('Enrollment Form'!$O703<>\"Graded\",\"-\",IF(AND('Enrollment Form'!$O703=\"Graded\",'Enrollment Form'!$AO703<>\"\"),\"Y\",\"N\"))","v":"-"},{"$f":"IF($B696=\"N\",\"\",IF(OR('Enrollment Form'!$B703<>\"Subscriber\",'Enrollment Form'!$C703=\"ROC\"),\"-\",IF(AND('Enrollment Form'!$B703=\"Subscriber\",'Enrollment Form'!$C703=\"Enroll\",'Enrollment Form'!$AJ703<>\"\"),\"Y\",\"N\")))","v":""},{"$f":"IF($B696=\"N\",\"\",IF(OR('Enrollment Form'!$B703<>\"Subscriber\",'Enrollment Form'!$C703=\"ROC\"),\"-\",IF(AND('Enrollment Form'!$B703=\"Subscriber\",'Enrollment Form'!$C703=\"Enroll\",'Enrollment Form'!$AK703<>\"\"),\"Y\",\"N\")))","v":""},{"$f":"IF($B696=\"N\",\"\",IF(OR('Enrollment Form'!$B703<>\"Subscriber\",'Enrollment Form'!$C703=\"ROC\"),\"-\",IF(AND('Enrollment Form'!$B703=\"Subscriber\",'Enrollment Form'!$C703=\"Enroll\",'Enrollment Form'!$AL703<>\"\"),\"Y\",\"N\")))","v":""},{"$f":"IF($B696=\"N\",\"\",IF(OR('Enrollment Form'!$B703<>\"Subscriber\",'Enrollment Form'!$C703=\"ROC\"),\"-\",IF(AND('Enrollment Form'!$B703=\"Subscriber\",'Enrollment Form'!$C703=\"Enroll\",'Enrollment Form'!$AM703<>\"\"),\"Y\",\"N\")))","v":""},{"$f":"IF($B696=\"N\",\"\",IF(OR('Enrollment Form'!$B703<>\"Subscriber\",'Enrollment Form'!$C703=\"ROC\"),\"-\",IF(AND('Enrollment Form'!$B703=\"Subscriber\",'Enrollment Form'!$C703=\"Enroll\",'Enrollment Form'!$AN703<>\"\"),\"Y\",\"N\")))","v":""},{"$f":"IF($B696=\"N\",\"\",IF(OR('Enrollment Form'!$B703<>\"Subscriber\",'Enrollment Form'!$C703=\"ROC\"),\"-\",IF(AND('Enrollment Form'!$B703=\"Subscriber\",'Enrollment Form'!$C703=\"Enroll\",'Enrollment Form'!$AP703<>\"\"),\"Y\",\"N\")))","v":""},{"$f":"IF($B696=\"N\",\"\",IF($Q696=\"-\",\"-\",IF(AND($Q696=\"Y\",'Enrollment Form'!$AP703=\"No\"),\"-\",IF(AND($Q696=\"Y\",'Enrollment Form'!$AP703=\"Yes\",'Enrollment Form'!$AQ703<>\"\"),\"Y\",\"N\"))))","v":""},{"$f":"IF($B696=\"N\",\"\",IF(OR('Enrollment Form'!$B703<>\"Subscriber\",'Enrollment Form'!$C703=\"ROC\"),\"-\",IF(AND('Enrollment Form'!$B703=\"Subscriber\",'Enrollment Form'!$C703=\"Enroll\",'Enrollment Form'!$CO703<>\"\"),\"Y\",\"N\")))","v":""},{"$f":"IF($B696=\"N\",\"\",IF($S696=\"-\",\"-\",IF(AND($S696=\"Y\",'Enrollment Form'!$CO703=\"No\"),\"-\",IF(AND($S696=\"Y\",'Enrollment Form'!$CO703=\"Yes\",'Enrollment Form'!$CP703<>\"\"),\"Y\",\"N\"))))","v":""},{"$f":"IF(OR('Enrollment Form'!$AV703=\"Yes\",'Enrollment Form'!$AV703=\"\"),\"-\",IF(AND('Enrollment Form'!$AV703=\"No\",ISERROR(FIND(\"HMO\",VLOOKUP('Enrollment Form'!G703,'Enrollment Form'!H$11:J$1000,3,FALSE),1))=FALSE,COUNTA('Enrollment Form'!$AW703:$AZ703)=4),\"Y\",\"N\"))","v":"-"},{"$f":"IF($B696=\"N\",\"\",IF('Enrollment Form'!$B703=\"Subscriber\",\"-\",IF(COUNTA('Enrollment Form'!$BE703,'Enrollment Form'!$BG703)=2,\"Y\",\"N\")))","v":""},{"$f":"IF($B696=\"N\",\"\",IF(OR('Enrollment Form'!$AU703=\"\",'Enrollment Form'!$AU703=\"No\"),\"-\",IF(AND('Enrollment Form'!$AU703=\"Yes\",COUNTA('Enrollment Form'!$CK703)=1),\"Y\",\"N\")))","v":""},{"$f":"IF(OR('Enrollment Form'!$CK703=\"\",'Enrollment Form'!$CK703=\"No\"),\"-\",IF(COUNTA('Enrollment Form'!$CM703:$CN703)=2,\"Y\",\"N\"))","v":"-"},{"$f":"IF($B696=\"N\",\"\",IF(COUNTIF('Enrollment Form'!$CZ703:$DO703,\"Other\")=COUNTA('Enrollment Form'!$DF703,'Enrollment Form'!$DA703,'Enrollment Form'!$DK703,'Enrollment Form'!$DP703),\"Y\",\"N\"))","v":""},{"$f":"IF($B696=\"N\",\"\",IF(OR('Enrollment Form'!B703<>\"Subscriber\",'Enrollment Form'!C703=\"ROC\",COUNTIF('Enrollment Form'!AS703:AT703,\"Yes\")>=1),\"-\",IF(AND('Enrollment Form'!C703=\"Enroll\",COUNTIF('Enrollment Form'!AS703:AT703,\"No\")=2,'Enrollment Form'!AU703=\"\"),\"N\",\"Y\")))","v":""},{"$f":"IF(OR(B696=\"N\",'Enrollment Form'!B703<>\"Subscriber\",'Enrollment Form'!C703=\"ROC\",'Enrollment Form'!O703<>\"Multiple of Salary\"),\"-\",IF(COUNTA('Enrollment Form'!T703:U703)<2,\"N\",\"Y\"))","v":"-"},{"$f":"IF(B696=\"N\",\"\",IF(OR('Enrollment Form'!C703=\"ROC\",'Enrollment Form'!B703<>\"Subscriber\",'Enrollment Form'!O703=\"Waive\",'Enrollment Form'!O703=\"\"),\"-\",IF('Enrollment Form'!P703=\"\",\"N\",\"Y\")))","v":""},{"$f":"IF($B696=\"N\",\"\",IF(AND('Enrollment Form'!$C703=\"ROC\",'Enrollment Form'!$DS703<>\"\"),\"Y\",IF(AND('Enrollment Form'!$C703=\"ROC\",'Enrollment Form'!$DS703=\"\"),\"N\",IF(AND('Enrollment Form'!$C703=\"Enroll\",'Enrollment Form'!$B703=\"Subscriber\",'Enrollment Form'!$CQ703=\"No\",'Enrollment Form'!$DS703=\"\"),\"N\",IF(AND('Enrollment Form'!$C703=\"Enroll\",'Enrollment Form'!$B703=\"Subscriber\",'Enrollment Form'!$CQ703=\"Yes\"),\"-\",\"Y\")))))","v":""},{"$f":"IF($B696=\"N\",\"\",IF(AND('Enrollment Form'!$C703=\"ROC\",'Enrollment Form'!$DT703<>\"\"),\"Y\",IF(AND('Enrollment Form'!$C703=\"ROC\",'Enrollment Form'!$DT703=\"\"),\"N\",IF(AND('Enrollment Form'!$C703=\"Enroll\",'Enrollment Form'!$B703=\"Subscriber\",'Enrollment Form'!$CQ703=\"No\",'Enrollment Form'!$DT703=\"\"),\"N\",IF(AND('Enrollment Form'!$C703=\"Enroll\",'Enrollment Form'!$B703=\"Subscriber\",'Enrollment Form'!$CQ703=\"Yes\"),\"-\",\"Y\")))))","v":""},{"$f":"IF('Enrollment Form'!AH703=\"\",\"\",IF(ISERROR(SEARCH(\".\",'Enrollment Form'!AH703,SEARCH(\"@\",'Enrollment Form'!AH703))),\"N\",\"Y\"))","v":""},{"$f":"IF(OR($B696=\"N\",'Enrollment Form'!$G703=\"\"),\"\",IF('Enrollment Form'!$B703<>\"Subscriber\",\"-\",IF(COUNTIF('Enrollment Form'!$AS703:$AT703,\"Yes\")=2,\"N\",\"Y\")))","v":""},{"$f":"IF(OR('Enrollment Form'!$CC703=\"\",'Enrollment Form'!$CC703=\"No\"),\"-\",IF(AND('Enrollment Form'!$CC703=\"Yes\",'Enrollment Form'!$CD703=\"\"),\"N\",\"Y\"))","v":"-"},{"$f":"IF(OR('Enrollment Form'!$CE703=\"\",'Enrollment Form'!$CE703=\"No\"),\"-\",IF(AND('Enrollment Form'!$CE703=\"Yes\",'Enrollment Form'!$CF703=\"\"),\"N\",\"Y\"))","v":"-"},{"$f":"IF(OR('Enrollment Form'!$CG703=\"\",'Enrollment Form'!$CG703=\"No\"),\"-\",IF(AND('Enrollment Form'!$CG703=\"Yes\",'Enrollment Form'!$CH703=\"\"),\"N\",\"Y\"))","v":"-"},{"$f":"IF(OR('Enrollment Form'!$CG703=\"\",'Enrollment Form'!$CG703=\"No\"),\"-\",IF(AND('Enrollment Form'!$CG703=\"Yes\",'Enrollment Form'!$CI703=\"\"),\"N\",\"Y\"))","v":"-"},{"$f":"IF('Enrollment Form'!B703<>\"Subscriber\",\"-\",IF(AND('Enrollment Form'!B703=\"Subscriber\",'Enrollment Form'!C703=\"Enroll\",'Enrollment Form'!AA703=\"\"),\"N\",\"Y\"))","v":"-"},{"$f":"IF(OR('Enrollment Form'!B703=\"Subscriber\",'Enrollment Form'!B703=\"\"),\"-\",IF('Enrollment Form'!BI703=\"\",\"N\",\"Y\"))","v":"-"},{"$f":"IF('Enrollment Form'!B703<>\"Subscriber\",\"-\",IF(AND('Enrollment Form'!B703=\"Subscriber\",'Enrollment Form'!G703=\"\"),\"N\",\"Y\"))","v":"-"},{"$f":"IF('Enrollment Form'!A703=\"\",\"\",IF('Enrollment Form'!B703=\"Subscriber\",\"-\",IF(AND('Enrollment Form'!B703<>\"Subscriber\",'Enrollment Form'!G703='Enrollment Form'!H703),\"N\",\"Y\")))","v":""},0]
[704,{"$f":"IF('Enrollment Form'!$A704<>\"\",\"Y\",\"N\")","v":"N"},{"$f":"IF(AND('Enrollment Form'!$B704=\"\",'Enrollment Form'!$C704<>\"\"),\"N\",IF($B697=\"N\",\"\",\"Y\"))","v":""},{"$f":"IF(OR($B697=\"N\",'Enrollment Form'!G704=\"\"),\"\",IF('Enrollment Form'!$B704<>\"Subscriber\",\"\",IF('Enrollment Form'!$G704='Enrollment Form'!$H704,\"Y\",\"N\")))","v":""},{"$f":"IF($B697=\"N\",\"\",IF(AND(COUNTIFS('Enrollment Form'!$H$11:$H$1000,'Enrollment Form'!$H704,'Enrollment Form'!$B$11:$B$1000,'Enrollment Form'!$B704)>1,'Enrollment Form'!$H704<>\"\"),\"N\",\"Y\"))","v":""},{"$f":"IF($B697=\"N\",\"\",IF(LEN('Enrollment Form'!$Y704)=0,\"\",IF(LEN('Enrollment Form'!$Y704)<>5,\"N\",\"Y\")))","v":""},{"$f":"IF($B697=\"N\",\"\",IF(LEN('Enrollment Form'!$AD704=0),\"\",IF(LEN('Enrollment Form'!$AD704)<>5,\"N\",\"Y\")))","v":""},{"$f":"IF($B697=\"N\",\"\",IF(LEN('Enrollment Form'!$BL704=0),\"\",IF(LEN('Enrollment Form'!$BL704)<>5,\"N\",\"Y\")))","v":""},{"$f":"IF($B697=\"N\",\"\",IF(LEN('Enrollment Form'!$AE704)=0,\"\",IF(LEN('Enrollment Form'!$AE704)<>10,\"N\",\"Y\")))","v":""},{"$f":"IF($B697=\"N\",\"\",IF(LEN('Enrollment Form'!$AF704)=0,\"\",IF(LEN('Enrollment Form'!$AF704)<>10,\"N\",\"Y\")))","v":""},{"$f":"IF('Enrollment Form'!$O704<>\"Graded\",\"-\",IF(AND('Enrollment Form'!$O704=\"Graded\",'Enrollment Form'!$AO704<>\"\"),\"Y\",\"N\"))","v":"-"},{"$f":"IF($B697=\"N\",\"\",IF(OR('Enrollment Form'!$B704<>\"Subscriber\",'Enrollment Form'!$C704=\"ROC\"),\"-\",IF(AND('Enrollment Form'!$B704=\"Subscriber\",'Enrollment Form'!$C704=\"Enroll\",'Enrollment Form'!$AJ704<>\"\"),\"Y\",\"N\")))","v":""},{"$f":"IF($B697=\"N\",\"\",IF(OR('Enrollment Form'!$B704<>\"Subscriber\",'Enrollment Form'!$C704=\"ROC\"),\"-\",IF(AND('Enrollment Form'!$B704=\"Subscriber\",'Enrollment Form'!$C704=\"Enroll\",'Enrollment Form'!$AK704<>\"\"),\"Y\",\"N\")))","v":""},{"$f":"IF($B697=\"N\",\"\",IF(OR('Enrollment Form'!$B704<>\"Subscriber\",'Enrollment Form'!$C704=\"ROC\"),\"-\",IF(AND('Enrollment Form'!$B704=\"Subscriber\",'Enrollment Form'!$C704=\"Enroll\",'Enrollment Form'!$AL704<>\"\"),\"Y\",\"N\")))","v":""},{"$f":"IF($B697=\"N\",\"\",IF(OR('Enrollment Form'!$B704<>\"Subscriber\",'Enrollment Form'!$C704=\"ROC\"),\"-\",IF(AND('Enrollment Form'!$B704=\"Subscriber\",'Enrollment Form'!$C704=\"Enroll\",'Enrollment Form'!$AM704<>\"\"),\"Y\",\"N\")))","v":""},{"$f":"IF($B697=\"N\",\"\",IF(OR('Enrollment Form'!$B704<>\"Subscriber\",'Enrollment Form'!$C704=\"ROC\"),\"-\",IF(AND('Enrollment Form'!$B704=\"Subscriber\",'Enrollment Form'!$C704=\"Enroll\",'Enrollment Form'!$AN704<>\"\"),\"Y\",\"N\")))","v":""},{"$f":"IF($B697=\"N\",\"\",IF(OR('Enrollment Form'!$B704<>\"Subscriber\",'Enrollment Form'!$C704=\"ROC\"),\"-\",IF(AND('Enrollment Form'!$B704=\"Subscriber\",'Enrollment Form'!$C704=\"Enroll\",'Enrollment Form'!$AP704<>\"\"),\"Y\",\"N\")))","v":""},{"$f":"IF($B697=\"N\",\"\",IF($Q697=\"-\",\"-\",IF(AND($Q697=\"Y\",'Enrollment Form'!$AP704=\"No\"),\"-\",IF(AND($Q697=\"Y\",'Enrollment Form'!$AP704=\"Yes\",'Enrollment Form'!$AQ704<>\"\"),\"Y\",\"N\"))))","v":""},{"$f":"IF($B697=\"N\",\"\",IF(OR('Enrollment Form'!$B704<>\"Subscriber\",'Enrollment Form'!$C704=\"ROC\"),\"-\",IF(AND('Enrollment Form'!$B704=\"Subscriber\",'Enrollment Form'!$C704=\"Enroll\",'Enrollment Form'!$CO704<>\"\"),\"Y\",\"N\")))","v":""},{"$f":"IF($B697=\"N\",\"\",IF($S697=\"-\",\"-\",IF(AND($S697=\"Y\",'Enrollment Form'!$CO704=\"No\"),\"-\",IF(AND($S697=\"Y\",'Enrollment Form'!$CO704=\"Yes\",'Enrollment Form'!$CP704<>\"\"),\"Y\",\"N\"))))","v":""},{"$f":"IF(OR('Enrollment Form'!$AV704=\"Yes\",'Enrollment Form'!$AV704=\"\"),\"-\",IF(AND('Enrollment Form'!$AV704=\"No\",ISERROR(FIND(\"HMO\",VLOOKUP('Enrollment Form'!G704,'Enrollment Form'!H$11:J$1000,3,FALSE),1))=FALSE,COUNTA('Enrollment Form'!$AW704:$AZ704)=4),\"Y\",\"N\"))","v":"-"},{"$f":"IF($B697=\"N\",\"\",IF('Enrollment Form'!$B704=\"Subscriber\",\"-\",IF(COUNTA('Enrollment Form'!$BE704,'Enrollment Form'!$BG704)=2,\"Y\",\"N\")))","v":""},{"$f":"IF($B697=\"N\",\"\",IF(OR('Enrollment Form'!$AU704=\"\",'Enrollment Form'!$AU704=\"No\"),\"-\",IF(AND('Enrollment Form'!$AU704=\"Yes\",COUNTA('Enrollment Form'!$CK704)=1),\"Y\",\"N\")))","v":""},{"$f":"IF(OR('Enrollment Form'!$CK704=\"\",'Enrollment Form'!$CK704=\"No\"),\"-\",IF(COUNTA('Enrollment Form'!$CM704:$CN704)=2,\"Y\",\"N\"))","v":"-"},{"$f":"IF($B697=\"N\",\"\",IF(COUNTIF('Enrollment Form'!$CZ704:$DO704,\"Other\")=COUNTA('Enrollment Form'!$DF704,'Enrollment Form'!$DA704,'Enrollment Form'!$DK704,'Enrollment Form'!$DP704),\"Y\",\"N\"))","v":""},{"$f":"IF($B697=\"N\",\"\",IF(OR('Enrollment Form'!B704<>\"Subscriber\",'Enrollment Form'!C704=\"ROC\",COUNTIF('Enrollment Form'!AS704:AT704,\"Yes\")>=1),\"-\",IF(AND('Enrollment Form'!C704=\"Enroll\",COUNTIF('Enrollment Form'!AS704:AT704,\"No\")=2,'Enrollment Form'!AU704=\"\"),\"N\",\"Y\")))","v":""},{"$f":"IF(OR(B697=\"N\",'Enrollment Form'!B704<>\"Subscriber\",'Enrollment Form'!C704=\"ROC\",'Enrollment Form'!O704<>\"Multiple of Salary\"),\"-\",IF(COUNTA('Enrollment Form'!T704:U704)<2,\"N\",\"Y\"))","v":"-"},{"$f":"IF(B697=\"N\",\"\",IF(OR('Enrollment Form'!C704=\"ROC\",'Enrollment Form'!B704<>\"Subscriber\",'Enrollment Form'!O704=\"Waive\",'Enrollment Form'!O704=\"\"),\"-\",IF('Enrollment Form'!P704=\"\",\"N\",\"Y\")))","v":""},{"$f":"IF($B697=\"N\",\"\",IF(AND('Enrollment Form'!$C704=\"ROC\",'Enrollment Form'!$DS704<>\"\"),\"Y\",IF(AND('Enrollment Form'!$C704=\"ROC\",'Enrollment Form'!$DS704=\"\"),\"N\",IF(AND('Enrollment Form'!$C704=\"Enroll\",'Enrollment Form'!$B704=\"Subscriber\",'Enrollment Form'!$CQ704=\"No\",'Enrollment Form'!$DS704=\"\"),\"N\",IF(AND('Enrollment Form'!$C704=\"Enroll\",'Enrollment Form'!$B704=\"Subscriber\",'Enrollment Form'!$CQ704=\"Yes\"),\"-\",\"Y\")))))","v":""},{"$f":"IF($B697=\"N\",\"\",IF(AND('Enrollment Form'!$C704=\"ROC\",'Enrollment Form'!$DT704<>\"\"),\"Y\",IF(AND('Enrollment Form'!$C704=\"ROC\",'Enrollment Form'!$DT704=\"\"),\"N\",IF(AND('Enrollment Form'!$C704=\"Enroll\",'Enrollment Form'!$B704=\"Subscriber\",'Enrollment Form'!$CQ704=\"No\",'Enrollment Form'!$DT704=\"\"),\"N\",IF(AND('Enrollment Form'!$C704=\"Enroll\",'Enrollment Form'!$B704=\"Subscriber\",'Enrollment Form'!$CQ704=\"Yes\"),\"-\",\"Y\")))))","v":""},{"$f":"IF('Enrollment Form'!AH704=\"\",\"\",IF(ISERROR(SEARCH(\".\",'Enrollment Form'!AH704,SEARCH(\"@\",'Enrollment Form'!AH704))),\"N\",\"Y\"))","v":""},{"$f":"IF(OR($B697=\"N\",'Enrollment Form'!$G704=\"\"),\"\",IF('Enrollment Form'!$B704<>\"Subscriber\",\"-\",IF(COUNTIF('Enrollment Form'!$AS704:$AT704,\"Yes\")=2,\"N\",\"Y\")))","v":""},{"$f":"IF(OR('Enrollment Form'!$CC704=\"\",'Enrollment Form'!$CC704=\"No\"),\"-\",IF(AND('Enrollment Form'!$CC704=\"Yes\",'Enrollment Form'!$CD704=\"\"),\"N\",\"Y\"))","v":"-"},{"$f":"IF(OR('Enrollment Form'!$CE704=\"\",'Enrollment Form'!$CE704=\"No\"),\"-\",IF(AND('Enrollment Form'!$CE704=\"Yes\",'Enrollment Form'!$CF704=\"\"),\"N\",\"Y\"))","v":"-"},{"$f":"IF(OR('Enrollment Form'!$CG704=\"\",'Enrollment Form'!$CG704=\"No\"),\"-\",IF(AND('Enrollment Form'!$CG704=\"Yes\",'Enrollment Form'!$CH704=\"\"),\"N\",\"Y\"))","v":"-"},{"$f":"IF(OR('Enrollment Form'!$CG704=\"\",'Enrollment Form'!$CG704=\"No\"),\"-\",IF(AND('Enrollment Form'!$CG704=\"Yes\",'Enrollment Form'!$CI704=\"\"),\"N\",\"Y\"))","v":"-"},{"$f":"IF('Enrollment Form'!B704<>\"Subscriber\",\"-\",IF(AND('Enrollment Form'!B704=\"Subscriber\",'Enrollment Form'!C704=\"Enroll\",'Enrollment Form'!AA704=\"\"),\"N\",\"Y\"))","v":"-"},{"$f":"IF(OR('Enrollment Form'!B704=\"Subscriber\",'Enrollment Form'!B704=\"\"),\"-\",IF('Enrollment Form'!BI704=\"\",\"N\",\"Y\"))","v":"-"},{"$f":"IF('Enrollment Form'!B704<>\"Subscriber\",\"-\",IF(AND('Enrollment Form'!B704=\"Subscriber\",'Enrollment Form'!G704=\"\"),\"N\",\"Y\"))","v":"-"},{"$f":"IF('Enrollment Form'!A704=\"\",\"\",IF('Enrollment Form'!B704=\"Subscriber\",\"-\",IF(AND('Enrollment Form'!B704<>\"Subscriber\",'Enrollment Form'!G704='Enrollment Form'!H704),\"N\",\"Y\")))","v":""},0]
[705,{"$f":"IF('Enrollment Form'!$A705<>\"\",\"Y\",\"N\")","v":"N"},{"$f":"IF(AND('Enrollment Form'!$B705=\"\",'Enrollment Form'!$C705<>\"\"),\"N\",IF($B698=\"N\",\"\",\"Y\"))","v":""},{"$f":"IF(OR($B698=\"N\",'Enrollment Form'!G705=\"\"),\"\",IF('Enrollment Form'!$B705<>\"Subscriber\",\"\",IF('Enrollment Form'!$G705='Enrollment Form'!$H705,\"Y\",\"N\")))","v":""},{"$f":"IF($B698=\"N\",\"\",IF(AND(COUNTIFS('Enrollment Form'!$H$11:$H$1000,'Enrollment Form'!$H705,'Enrollment Form'!$B$11:$B$1000,'Enrollment Form'!$B705)>1,'Enrollment Form'!$H705<>\"\"),\"N\",\"Y\"))","v":""},{"$f":"IF($B698=\"N\",\"\",IF(LEN('Enrollment Form'!$Y705)=0,\"\",IF(LEN('Enrollment Form'!$Y705)<>5,\"N\",\"Y\")))","v":""},{"$f":"IF($B698=\"N\",\"\",IF(LEN('Enrollment Form'!$AD705=0),\"\",IF(LEN('Enrollment Form'!$AD705)<>5,\"N\",\"Y\")))","v":""},{"$f":"IF($B698=\"N\",\"\",IF(LEN('Enrollment Form'!$BL705=0),\"\",IF(LEN('Enrollment Form'!$BL705)<>5,\"N\",\"Y\")))","v":""},{"$f":"IF($B698=\"N\",\"\",IF(LEN('Enrollment Form'!$AE705)=0,\"\",IF(LEN('Enrollment Form'!$AE705)<>10,\"N\",\"Y\")))","v":""},{"$f":"IF($B698=\"N\",\"\",IF(LEN('Enrollment Form'!$AF705)=0,\"\",IF(LEN('Enrollment Form'!$AF705)<>10,\"N\",\"Y\")))","v":""},{"$f":"IF('Enrollment Form'!$O705<>\"Graded\",\"-\",IF(AND('Enrollment Form'!$O705=\"Graded\",'Enrollment Form'!$AO705<>\"\"),\"Y\",\"N\"))","v":"-"},{"$f":"IF($B698=\"N\",\"\",IF(OR('Enrollment Form'!$B705<>\"Subscriber\",'Enrollment Form'!$C705=\"ROC\"),\"-\",IF(AND('Enrollment Form'!$B705=\"Subscriber\",'Enrollment Form'!$C705=\"Enroll\",'Enrollment Form'!$AJ705<>\"\"),\"Y\",\"N\")))","v":""},{"$f":"IF($B698=\"N\",\"\",IF(OR('Enrollment Form'!$B705<>\"Subscriber\",'Enrollment Form'!$C705=\"ROC\"),\"-\",IF(AND('Enrollment Form'!$B705=\"Subscriber\",'Enrollment Form'!$C705=\"Enroll\",'Enrollment Form'!$AK705<>\"\"),\"Y\",\"N\")))","v":""},{"$f":"IF($B698=\"N\",\"\",IF(OR('Enrollment Form'!$B705<>\"Subscriber\",'Enrollment Form'!$C705=\"ROC\"),\"-\",IF(AND('Enrollment Form'!$B705=\"Subscriber\",'Enrollment Form'!$C705=\"Enroll\",'Enrollment Form'!$AL705<>\"\"),\"Y\",\"N\")))","v":""},{"$f":"IF($B698=\"N\",\"\",IF(OR('Enrollment Form'!$B705<>\"Subscriber\",'Enrollment Form'!$C705=\"ROC\"),\"-\",IF(AND('Enrollment Form'!$B705=\"Subscriber\",'Enrollment Form'!$C705=\"Enroll\",'Enrollment Form'!$AM705<>\"\"),\"Y\",\"N\")))","v":""},{"$f":"IF($B698=\"N\",\"\",IF(OR('Enrollment Form'!$B705<>\"Subscriber\",'Enrollment Form'!$C705=\"ROC\"),\"-\",IF(AND('Enrollment Form'!$B705=\"Subscriber\",'Enrollment Form'!$C705=\"Enroll\",'Enrollment Form'!$AN705<>\"\"),\"Y\",\"N\")))","v":""},{"$f":"IF($B698=\"N\",\"\",IF(OR('Enrollment Form'!$B705<>\"Subscriber\",'Enrollment Form'!$C705=\"ROC\"),\"-\",IF(AND('Enrollment Form'!$B705=\"Subscriber\",'Enrollment Form'!$C705=\"Enroll\",'Enrollment Form'!$AP705<>\"\"),\"Y\",\"N\")))","v":""},{"$f":"IF($B698=\"N\",\"\",IF($Q698=\"-\",\"-\",IF(AND($Q698=\"Y\",'Enrollment Form'!$AP705=\"No\"),\"-\",IF(AND($Q698=\"Y\",'Enrollment Form'!$AP705=\"Yes\",'Enrollment Form'!$AQ705<>\"\"),\"Y\",\"N\"))))","v":""},{"$f":"IF($B698=\"N\",\"\",IF(OR('Enrollment Form'!$B705<>\"Subscriber\",'Enrollment Form'!$C705=\"ROC\"),\"-\",IF(AND('Enrollment Form'!$B705=\"Subscriber\",'Enrollment Form'!$C705=\"Enroll\",'Enrollment Form'!$CO705<>\"\"),\"Y\",\"N\")))","v":""},{"$f":"IF($B698=\"N\",\"\",IF($S698=\"-\",\"-\",IF(AND($S698=\"Y\",'Enrollment Form'!$CO705=\"No\"),\"-\",IF(AND($S698=\"Y\",'Enrollment Form'!$CO705=\"Yes\",'Enrollment Form'!$CP705<>\"\"),\"Y\",\"N\"))))","v":""},{"$f":"IF(OR('Enrollment Form'!$AV705=\"Yes\",'Enrollment Form'!$AV705=\"\"),\"-\",IF(AND('Enrollment Form'!$AV705=\"No\",ISERROR(FIND(\"HMO\",VLOOKUP('Enrollment Form'!G705,'Enrollment Form'!H$11:J$1000,3,FALSE),1))=FALSE,COUNTA('Enrollment Form'!$AW705:$AZ705)=4),\"Y\",\"N\"))","v":"-"},{"$f":"IF($B698=\"N\",\"\",IF('Enrollment Form'!$B705=\"Subscriber\",\"-\",IF(COUNTA('Enrollment Form'!$BE705,'Enrollment Form'!$BG705)=2,\"Y\",\"N\")))","v":""},{"$f":"IF($B698=\"N\",\"\",IF(OR('Enrollment Form'!$AU705=\"\",'Enrollment Form'!$AU705=\"No\"),\"-\",IF(AND('Enrollment Form'!$AU705=\"Yes\",COUNTA('Enrollment Form'!$CK705)=1),\"Y\",\"N\")))","v":""},{"$f":"IF(OR('Enrollment Form'!$CK705=\"\",'Enrollment Form'!$CK705=\"No\"),\"-\",IF(COUNTA('Enrollment Form'!$CM705:$CN705)=2,\"Y\",\"N\"))","v":"-"},{"$f":"IF($B698=\"N\",\"\",IF(COUNTIF('Enrollment Form'!$CZ705:$DO705,\"Other\")=COUNTA('Enrollment Form'!$DF705,'Enrollment Form'!$DA705,'Enrollment Form'!$DK705,'Enrollment Form'!$DP705),\"Y\",\"N\"))","v":""},{"$f":"IF($B698=\"N\",\"\",IF(OR('Enrollment Form'!B705<>\"Subscriber\",'Enrollment Form'!C705=\"ROC\",COUNTIF('Enrollment Form'!AS705:AT705,\"Yes\")>=1),\"-\",IF(AND('Enrollment Form'!C705=\"Enroll\",COUNTIF('Enrollment Form'!AS705:AT705,\"No\")=2,'Enrollment Form'!AU705=\"\"),\"N\",\"Y\")))","v":""},{"$f":"IF(OR(B698=\"N\",'Enrollment Form'!B705<>\"Subscriber\",'Enrollment Form'!C705=\"ROC\",'Enrollment Form'!O705<>\"Multiple of Salary\"),\"-\",IF(COUNTA('Enrollment Form'!T705:U705)<2,\"N\",\"Y\"))","v":"-"},{"$f":"IF(B698=\"N\",\"\",IF(OR('Enrollment Form'!C705=\"ROC\",'Enrollment Form'!B705<>\"Subscriber\",'Enrollment Form'!O705=\"Waive\",'Enrollment Form'!O705=\"\"),\"-\",IF('Enrollment Form'!P705=\"\",\"N\",\"Y\")))","v":""},{"$f":"IF($B698=\"N\",\"\",IF(AND('Enrollment Form'!$C705=\"ROC\",'Enrollment Form'!$DS705<>\"\"),\"Y\",IF(AND('Enrollment Form'!$C705=\"ROC\",'Enrollment Form'!$DS705=\"\"),\"N\",IF(AND('Enrollment Form'!$C705=\"Enroll\",'Enrollment Form'!$B705=\"Subscriber\",'Enrollment Form'!$CQ705=\"No\",'Enrollment Form'!$DS705=\"\"),\"N\",IF(AND('Enrollment Form'!$C705=\"Enroll\",'Enrollment Form'!$B705=\"Subscriber\",'Enrollment Form'!$CQ705=\"Yes\"),\"-\",\"Y\")))))","v":""},{"$f":"IF($B698=\"N\",\"\",IF(AND('Enrollment Form'!$C705=\"ROC\",'Enrollment Form'!$DT705<>\"\"),\"Y\",IF(AND('Enrollment Form'!$C705=\"ROC\",'Enrollment Form'!$DT705=\"\"),\"N\",IF(AND('Enrollment Form'!$C705=\"Enroll\",'Enrollment Form'!$B705=\"Subscriber\",'Enrollment Form'!$CQ705=\"No\",'Enrollment Form'!$DT705=\"\"),\"N\",IF(AND('Enrollment Form'!$C705=\"Enroll\",'Enrollment Form'!$B705=\"Subscriber\",'Enrollment Form'!$CQ705=\"Yes\"),\"-\",\"Y\")))))","v":""},{"$f":"IF('Enrollment Form'!AH705=\"\",\"\",IF(ISERROR(SEARCH(\".\",'Enrollment Form'!AH705,SEARCH(\"@\",'Enrollment Form'!AH705))),\"N\",\"Y\"))","v":""},{"$f":"IF(OR($B698=\"N\",'Enrollment Form'!$G705=\"\"),\"\",IF('Enrollment Form'!$B705<>\"Subscriber\",\"-\",IF(COUNTIF('Enrollment Form'!$AS705:$AT705,\"Yes\")=2,\"N\",\"Y\")))","v":""},{"$f":"IF(OR('Enrollment Form'!$CC705=\"\",'Enrollment Form'!$CC705=\"No\"),\"-\",IF(AND('Enrollment Form'!$CC705=\"Yes\",'Enrollment Form'!$CD705=\"\"),\"N\",\"Y\"))","v":"-"},{"$f":"IF(OR('Enrollment Form'!$CE705=\"\",'Enrollment Form'!$CE705=\"No\"),\"-\",IF(AND('Enrollment Form'!$CE705=\"Yes\",'Enrollment Form'!$CF705=\"\"),\"N\",\"Y\"))","v":"-"},{"$f":"IF(OR('Enrollment Form'!$CG705=\"\",'Enrollment Form'!$CG705=\"No\"),\"-\",IF(AND('Enrollment Form'!$CG705=\"Yes\",'Enrollment Form'!$CH705=\"\"),\"N\",\"Y\"))","v":"-"},{"$f":"IF(OR('Enrollment Form'!$CG705=\"\",'Enrollment Form'!$CG705=\"No\"),\"-\",IF(AND('Enrollment Form'!$CG705=\"Yes\",'Enrollment Form'!$CI705=\"\"),\"N\",\"Y\"))","v":"-"},{"$f":"IF('Enrollment Form'!B705<>\"Subscriber\",\"-\",IF(AND('Enrollment Form'!B705=\"Subscriber\",'Enrollment Form'!C705=\"Enroll\",'Enrollment Form'!AA705=\"\"),\"N\",\"Y\"))","v":"-"},{"$f":"IF(OR('Enrollment Form'!B705=\"Subscriber\",'Enrollment Form'!B705=\"\"),\"-\",IF('Enrollment Form'!BI705=\"\",\"N\",\"Y\"))","v":"-"},{"$f":"IF('Enrollment Form'!B705<>\"Subscriber\",\"-\",IF(AND('Enrollment Form'!B705=\"Subscriber\",'Enrollment Form'!G705=\"\"),\"N\",\"Y\"))","v":"-"},{"$f":"IF('Enrollment Form'!A705=\"\",\"\",IF('Enrollment Form'!B705=\"Subscriber\",\"-\",IF(AND('Enrollment Form'!B705<>\"Subscriber\",'Enrollment Form'!G705='Enrollment Form'!H705),\"N\",\"Y\")))","v":""},0]
[706,{"$f":"IF('Enrollment Form'!$A706<>\"\",\"Y\",\"N\")","v":"N"},{"$f":"IF(AND('Enrollment Form'!$B706=\"\",'Enrollment Form'!$C706<>\"\"),\"N\",IF($B699=\"N\",\"\",\"Y\"))","v":""},{"$f":"IF(OR($B699=\"N\",'Enrollment Form'!G706=\"\"),\"\",IF('Enrollment Form'!$B706<>\"Subscriber\",\"\",IF('Enrollment Form'!$G706='Enrollment Form'!$H706,\"Y\",\"N\")))","v":""},{"$f":"IF($B699=\"N\",\"\",IF(AND(COUNTIFS('Enrollment Form'!$H$11:$H$1000,'Enrollment Form'!$H706,'Enrollment Form'!$B$11:$B$1000,'Enrollment Form'!$B706)>1,'Enrollment Form'!$H706<>\"\"),\"N\",\"Y\"))","v":""},{"$f":"IF($B699=\"N\",\"\",IF(LEN('Enrollment Form'!$Y706)=0,\"\",IF(LEN('Enrollment Form'!$Y706)<>5,\"N\",\"Y\")))","v":""},{"$f":"IF($B699=\"N\",\"\",IF(LEN('Enrollment Form'!$AD706=0),\"\",IF(LEN('Enrollment Form'!$AD706)<>5,\"N\",\"Y\")))","v":""},{"$f":"IF($B699=\"N\",\"\",IF(LEN('Enrollment Form'!$BL706=0),\"\",IF(LEN('Enrollment Form'!$BL706)<>5,\"N\",\"Y\")))","v":""},{"$f":"IF($B699=\"N\",\"\",IF(LEN('Enrollment Form'!$AE706)=0,\"\",IF(LEN('Enrollment Form'!$AE706)<>10,\"N\",\"Y\")))","v":""},{"$f":"IF($B699=\"N\",\"\",IF(LEN('Enrollment Form'!$AF706)=0,\"\",IF(LEN('Enrollment Form'!$AF706)<>10,\"N\",\"Y\")))","v":""},{"$f":"IF('Enrollment Form'!$O706<>\"Graded\",\"-\",IF(AND('Enrollment Form'!$O706=\"Graded\",'Enrollment Form'!$AO706<>\"\"),\"Y\",\"N\"))","v":"-"},{"$f":"IF($B699=\"N\",\"\",IF(OR('Enrollment Form'!$B706<>\"Subscriber\",'Enrollment Form'!$C706=\"ROC\"),\"-\",IF(AND('Enrollment Form'!$B706=\"Subscriber\",'Enrollment Form'!$C706=\"Enroll\",'Enrollment Form'!$AJ706<>\"\"),\"Y\",\"N\")))","v":""},{"$f":"IF($B699=\"N\",\"\",IF(OR('Enrollment Form'!$B706<>\"Subscriber\",'Enrollment Form'!$C706=\"ROC\"),\"-\",IF(AND('Enrollment Form'!$B706=\"Subscriber\",'Enrollment Form'!$C706=\"Enroll\",'Enrollment Form'!$AK706<>\"\"),\"Y\",\"N\")))","v":""},{"$f":"IF($B699=\"N\",\"\",IF(OR('Enrollment Form'!$B706<>\"Subscriber\",'Enrollment Form'!$C706=\"ROC\"),\"-\",IF(AND('Enrollment Form'!$B706=\"Subscriber\",'Enrollment Form'!$C706=\"Enroll\",'Enrollment Form'!$AL706<>\"\"),\"Y\",\"N\")))","v":""},{"$f":"IF($B699=\"N\",\"\",IF(OR('Enrollment Form'!$B706<>\"Subscriber\",'Enrollment Form'!$C706=\"ROC\"),\"-\",IF(AND('Enrollment Form'!$B706=\"Subscriber\",'Enrollment Form'!$C706=\"Enroll\",'Enrollment Form'!$AM706<>\"\"),\"Y\",\"N\")))","v":""},{"$f":"IF($B699=\"N\",\"\",IF(OR('Enrollment Form'!$B706<>\"Subscriber\",'Enrollment Form'!$C706=\"ROC\"),\"-\",IF(AND('Enrollment Form'!$B706=\"Subscriber\",'Enrollment Form'!$C706=\"Enroll\",'Enrollment Form'!$AN706<>\"\"),\"Y\",\"N\")))","v":""},{"$f":"IF($B699=\"N\",\"\",IF(OR('Enrollment Form'!$B706<>\"Subscriber\",'Enrollment Form'!$C706=\"ROC\"),\"-\",IF(AND('Enrollment Form'!$B706=\"Subscriber\",'Enrollment Form'!$C706=\"Enroll\",'Enrollment Form'!$AP706<>\"\"),\"Y\",\"N\")))","v":""},{"$f":"IF($B699=\"N\",\"\",IF($Q699=\"-\",\"-\",IF(AND($Q699=\"Y\",'Enrollment Form'!$AP706=\"No\"),\"-\",IF(AND($Q699=\"Y\",'Enrollment Form'!$AP706=\"Yes\",'Enrollment Form'!$AQ706<>\"\"),\"Y\",\"N\"))))","v":""},{"$f":"IF($B699=\"N\",\"\",IF(OR('Enrollment Form'!$B706<>\"Subscriber\",'Enrollment Form'!$C706=\"ROC\"),\"-\",IF(AND('Enrollment Form'!$B706=\"Subscriber\",'Enrollment Form'!$C706=\"Enroll\",'Enrollment Form'!$CO706<>\"\"),\"Y\",\"N\")))","v":""},{"$f":"IF($B699=\"N\",\"\",IF($S699=\"-\",\"-\",IF(AND($S699=\"Y\",'Enrollment Form'!$CO706=\"No\"),\"-\",IF(AND($S699=\"Y\",'Enrollment Form'!$CO706=\"Yes\",'Enrollment Form'!$CP706<>\"\"),\"Y\",\"N\"))))","v":""},{"$f":"IF(OR('Enrollment Form'!$AV706=\"Yes\",'Enrollment Form'!$AV706=\"\"),\"-\",IF(AND('Enrollment Form'!$AV706=\"No\",ISERROR(FIND(\"HMO\",VLOOKUP('Enrollment Form'!G706,'Enrollment Form'!H$11:J$1000,3,FALSE),1))=FALSE,COUNTA('Enrollment Form'!$AW706:$AZ706)=4),\"Y\",\"N\"))","v":"-"},{"$f":"IF($B699=\"N\",\"\",IF('Enrollment Form'!$B706=\"Subscriber\",\"-\",IF(COUNTA('Enrollment Form'!$BE706,'Enrollment Form'!$BG706)=2,\"Y\",\"N\")))","v":""},{"$f":"IF($B699=\"N\",\"\",IF(OR('Enrollment Form'!$AU706=\"\",'Enrollment Form'!$AU706=\"No\"),\"-\",IF(AND('Enrollment Form'!$AU706=\"Yes\",COUNTA('Enrollment Form'!$CK706)=1),\"Y\",\"N\")))","v":""},{"$f":"IF(OR('Enrollment Form'!$CK706=\"\",'Enrollment Form'!$CK706=\"No\"),\"-\",IF(COUNTA('Enrollment Form'!$CM706:$CN706)=2,\"Y\",\"N\"))","v":"-"},{"$f":"IF($B699=\"N\",\"\",IF(COUNTIF('Enrollment Form'!$CZ706:$DO706,\"Other\")=COUNTA('Enrollment Form'!$DF706,'Enrollment Form'!$DA706,'Enrollment Form'!$DK706,'Enrollment Form'!$DP706),\"Y\",\"N\"))","v":""},{"$f":"IF($B699=\"N\",\"\",IF(OR('Enrollment Form'!B706<>\"Subscriber\",'Enrollment Form'!C706=\"ROC\",COUNTIF('Enrollment Form'!AS706:AT706,\"Yes\")>=1),\"-\",IF(AND('Enrollment Form'!C706=\"Enroll\",COUNTIF('Enrollment Form'!AS706:AT706,\"No\")=2,'Enrollment Form'!AU706=\"\"),\"N\",\"Y\")))","v":""},{"$f":"IF(OR(B699=\"N\",'Enrollment Form'!B706<>\"Subscriber\",'Enrollment Form'!C706=\"ROC\",'Enrollment Form'!O706<>\"Multiple of Salary\"),\"-\",IF(COUNTA('Enrollment Form'!T706:U706)<2,\"N\",\"Y\"))","v":"-"},{"$f":"IF(B699=\"N\",\"\",IF(OR('Enrollment Form'!C706=\"ROC\",'Enrollment Form'!B706<>\"Subscriber\",'Enrollment Form'!O706=\"Waive\",'Enrollment Form'!O706=\"\"),\"-\",IF('Enrollment Form'!P706=\"\",\"N\",\"Y\")))","v":""},{"$f":"IF($B699=\"N\",\"\",IF(AND('Enrollment Form'!$C706=\"ROC\",'Enrollment Form'!$DS706<>\"\"),\"Y\",IF(AND('Enrollment Form'!$C706=\"ROC\",'Enrollment Form'!$DS706=\"\"),\"N\",IF(AND('Enrollment Form'!$C706=\"Enroll\",'Enrollment Form'!$B706=\"Subscriber\",'Enrollment Form'!$CQ706=\"No\",'Enrollment Form'!$DS706=\"\"),\"N\",IF(AND('Enrollment Form'!$C706=\"Enroll\",'Enrollment Form'!$B706=\"Subscriber\",'Enrollment Form'!$CQ706=\"Yes\"),\"-\",\"Y\")))))","v":""},{"$f":"IF($B699=\"N\",\"\",IF(AND('Enrollment Form'!$C706=\"ROC\",'Enrollment Form'!$DT706<>\"\"),\"Y\",IF(AND('Enrollment Form'!$C706=\"ROC\",'Enrollment Form'!$DT706=\"\"),\"N\",IF(AND('Enrollment Form'!$C706=\"Enroll\",'Enrollment Form'!$B706=\"Subscriber\",'Enrollment Form'!$CQ706=\"No\",'Enrollment Form'!$DT706=\"\"),\"N\",IF(AND('Enrollment Form'!$C706=\"Enroll\",'Enrollment Form'!$B706=\"Subscriber\",'Enrollment Form'!$CQ706=\"Yes\"),\"-\",\"Y\")))))","v":""},{"$f":"IF('Enrollment Form'!AH706=\"\",\"\",IF(ISERROR(SEARCH(\".\",'Enrollment Form'!AH706,SEARCH(\"@\",'Enrollment Form'!AH706))),\"N\",\"Y\"))","v":""},{"$f":"IF(OR($B699=\"N\",'Enrollment Form'!$G706=\"\"),\"\",IF('Enrollment Form'!$B706<>\"Subscriber\",\"-\",IF(COUNTIF('Enrollment Form'!$AS706:$AT706,\"Yes\")=2,\"N\",\"Y\")))","v":""},{"$f":"IF(OR('Enrollment Form'!$CC706=\"\",'Enrollment Form'!$CC706=\"No\"),\"-\",IF(AND('Enrollment Form'!$CC706=\"Yes\",'Enrollment Form'!$CD706=\"\"),\"N\",\"Y\"))","v":"-"},{"$f":"IF(OR('Enrollment Form'!$CE706=\"\",'Enrollment Form'!$CE706=\"No\"),\"-\",IF(AND('Enrollment Form'!$CE706=\"Yes\",'Enrollment Form'!$CF706=\"\"),\"N\",\"Y\"))","v":"-"},{"$f":"IF(OR('Enrollment Form'!$CG706=\"\",'Enrollment Form'!$CG706=\"No\"),\"-\",IF(AND('Enrollment Form'!$CG706=\"Yes\",'Enrollment Form'!$CH706=\"\"),\"N\",\"Y\"))","v":"-"},{"$f":"IF(OR('Enrollment Form'!$CG706=\"\",'Enrollment Form'!$CG706=\"No\"),\"-\",IF(AND('Enrollment Form'!$CG706=\"Yes\",'Enrollment Form'!$CI706=\"\"),\"N\",\"Y\"))","v":"-"},{"$f":"IF('Enrollment Form'!B706<>\"Subscriber\",\"-\",IF(AND('Enrollment Form'!B706=\"Subscriber\",'Enrollment Form'!C706=\"Enroll\",'Enrollment Form'!AA706=\"\"),\"N\",\"Y\"))","v":"-"},{"$f":"IF(OR('Enrollment Form'!B706=\"Subscriber\",'Enrollment Form'!B706=\"\"),\"-\",IF('Enrollment Form'!BI706=\"\",\"N\",\"Y\"))","v":"-"},{"$f":"IF('Enrollment Form'!B706<>\"Subscriber\",\"-\",IF(AND('Enrollment Form'!B706=\"Subscriber\",'Enrollment Form'!G706=\"\"),\"N\",\"Y\"))","v":"-"},{"$f":"IF('Enrollment Form'!A706=\"\",\"\",IF('Enrollment Form'!B706=\"Subscriber\",\"-\",IF(AND('Enrollment Form'!B706<>\"Subscriber\",'Enrollment Form'!G706='Enrollment Form'!H706),\"N\",\"Y\")))","v":""},0]
[707,{"$f":"IF('Enrollment Form'!$A707<>\"\",\"Y\",\"N\")","v":"N"},{"$f":"IF(AND('Enrollment Form'!$B707=\"\",'Enrollment Form'!$C707<>\"\"),\"N\",IF($B700=\"N\",\"\",\"Y\"))","v":""},{"$f":"IF(OR($B700=\"N\",'Enrollment Form'!G707=\"\"),\"\",IF('Enrollment Form'!$B707<>\"Subscriber\",\"\",IF('Enrollment Form'!$G707='Enrollment Form'!$H707,\"Y\",\"N\")))","v":""},{"$f":"IF($B700=\"N\",\"\",IF(AND(COUNTIFS('Enrollment Form'!$H$11:$H$1000,'Enrollment Form'!$H707,'Enrollment Form'!$B$11:$B$1000,'Enrollment Form'!$B707)>1,'Enrollment Form'!$H707<>\"\"),\"N\",\"Y\"))","v":""},{"$f":"IF($B700=\"N\",\"\",IF(LEN('Enrollment Form'!$Y707)=0,\"\",IF(LEN('Enrollment Form'!$Y707)<>5,\"N\",\"Y\")))","v":""},{"$f":"IF($B700=\"N\",\"\",IF(LEN('Enrollment Form'!$AD707=0),\"\",IF(LEN('Enrollment Form'!$AD707)<>5,\"N\",\"Y\")))","v":""},{"$f":"IF($B700=\"N\",\"\",IF(LEN('Enrollment Form'!$BL707=0),\"\",IF(LEN('Enrollment Form'!$BL707)<>5,\"N\",\"Y\")))","v":""},{"$f":"IF($B700=\"N\",\"\",IF(LEN('Enrollment Form'!$AE707)=0,\"\",IF(LEN('Enrollment Form'!$AE707)<>10,\"N\",\"Y\")))","v":""},{"$f":"IF($B700=\"N\",\"\",IF(LEN('Enrollment Form'!$AF707)=0,\"\",IF(LEN('Enrollment Form'!$AF707)<>10,\"N\",\"Y\")))","v":""},{"$f":"IF('Enrollment Form'!$O707<>\"Graded\",\"-\",IF(AND('Enrollment Form'!$O707=\"Graded\",'Enrollment Form'!$AO707<>\"\"),\"Y\",\"N\"))","v":"-"},{"$f":"IF($B700=\"N\",\"\",IF(OR('Enrollment Form'!$B707<>\"Subscriber\",'Enrollment Form'!$C707=\"ROC\"),\"-\",IF(AND('Enrollment Form'!$B707=\"Subscriber\",'Enrollment Form'!$C707=\"Enroll\",'Enrollment Form'!$AJ707<>\"\"),\"Y\",\"N\")))","v":""},{"$f":"IF($B700=\"N\",\"\",IF(OR('Enrollment Form'!$B707<>\"Subscriber\",'Enrollment Form'!$C707=\"ROC\"),\"-\",IF(AND('Enrollment Form'!$B707=\"Subscriber\",'Enrollment Form'!$C707=\"Enroll\",'Enrollment Form'!$AK707<>\"\"),\"Y\",\"N\")))","v":""},{"$f":"IF($B700=\"N\",\"\",IF(OR('Enrollment Form'!$B707<>\"Subscriber\",'Enrollment Form'!$C707=\"ROC\"),\"-\",IF(AND('Enrollment Form'!$B707=\"Subscriber\",'Enrollment Form'!$C707=\"Enroll\",'Enrollment Form'!$AL707<>\"\"),\"Y\",\"N\")))","v":""},{"$f":"IF($B700=\"N\",\"\",IF(OR('Enrollment Form'!$B707<>\"Subscriber\",'Enrollment Form'!$C707=\"ROC\"),\"-\",IF(AND('Enrollment Form'!$B707=\"Subscriber\",'Enrollment Form'!$C707=\"Enroll\",'Enrollment Form'!$AM707<>\"\"),\"Y\",\"N\")))","v":""},{"$f":"IF($B700=\"N\",\"\",IF(OR('Enrollment Form'!$B707<>\"Subscriber\",'Enrollment Form'!$C707=\"ROC\"),\"-\",IF(AND('Enrollment Form'!$B707=\"Subscriber\",'Enrollment Form'!$C707=\"Enroll\",'Enrollment Form'!$AN707<>\"\"),\"Y\",\"N\")))","v":""},{"$f":"IF($B700=\"N\",\"\",IF(OR('Enrollment Form'!$B707<>\"Subscriber\",'Enrollment Form'!$C707=\"ROC\"),\"-\",IF(AND('Enrollment Form'!$B707=\"Subscriber\",'Enrollment Form'!$C707=\"Enroll\",'Enrollment Form'!$AP707<>\"\"),\"Y\",\"N\")))","v":""},{"$f":"IF($B700=\"N\",\"\",IF($Q700=\"-\",\"-\",IF(AND($Q700=\"Y\",'Enrollment Form'!$AP707=\"No\"),\"-\",IF(AND($Q700=\"Y\",'Enrollment Form'!$AP707=\"Yes\",'Enrollment Form'!$AQ707<>\"\"),\"Y\",\"N\"))))","v":""},{"$f":"IF($B700=\"N\",\"\",IF(OR('Enrollment Form'!$B707<>\"Subscriber\",'Enrollment Form'!$C707=\"ROC\"),\"-\",IF(AND('Enrollment Form'!$B707=\"Subscriber\",'Enrollment Form'!$C707=\"Enroll\",'Enrollment Form'!$CO707<>\"\"),\"Y\",\"N\")))","v":""},{"$f":"IF($B700=\"N\",\"\",IF($S700=\"-\",\"-\",IF(AND($S700=\"Y\",'Enrollment Form'!$CO707=\"No\"),\"-\",IF(AND($S700=\"Y\",'Enrollment Form'!$CO707=\"Yes\",'Enrollment Form'!$CP707<>\"\"),\"Y\",\"N\"))))","v":""},{"$f":"IF(OR('Enrollment Form'!$AV707=\"Yes\",'Enrollment Form'!$AV707=\"\"),\"-\",IF(AND('Enrollment Form'!$AV707=\"No\",ISERROR(FIND(\"HMO\",VLOOKUP('Enrollment Form'!G707,'Enrollment Form'!H$11:J$1000,3,FALSE),1))=FALSE,COUNTA('Enrollment Form'!$AW707:$AZ707)=4),\"Y\",\"N\"))","v":"-"},{"$f":"IF($B700=\"N\",\"\",IF('Enrollment Form'!$B707=\"Subscriber\",\"-\",IF(COUNTA('Enrollment Form'!$BE707,'Enrollment Form'!$BG707)=2,\"Y\",\"N\")))","v":""},{"$f":"IF($B700=\"N\",\"\",IF(OR('Enrollment Form'!$AU707=\"\",'Enrollment Form'!$AU707=\"No\"),\"-\",IF(AND('Enrollment Form'!$AU707=\"Yes\",COUNTA('Enrollment Form'!$CK707)=1),\"Y\",\"N\")))","v":""},{"$f":"IF(OR('Enrollment Form'!$CK707=\"\",'Enrollment Form'!$CK707=\"No\"),\"-\",IF(COUNTA('Enrollment Form'!$CM707:$CN707)=2,\"Y\",\"N\"))","v":"-"},{"$f":"IF($B700=\"N\",\"\",IF(COUNTIF('Enrollment Form'!$CZ707:$DO707,\"Other\")=COUNTA('Enrollment Form'!$DF707,'Enrollment Form'!$DA707,'Enrollment Form'!$DK707,'Enrollment Form'!$DP707),\"Y\",\"N\"))","v":""},{"$f":"IF($B700=\"N\",\"\",IF(OR('Enrollment Form'!B707<>\"Subscriber\",'Enrollment Form'!C707=\"ROC\",COUNTIF('Enrollment Form'!AS707:AT707,\"Yes\")>=1),\"-\",IF(AND('Enrollment Form'!C707=\"Enroll\",COUNTIF('Enrollment Form'!AS707:AT707,\"No\")=2,'Enrollment Form'!AU707=\"\"),\"N\",\"Y\")))","v":""},{"$f":"IF(OR(B700=\"N\",'Enrollment Form'!B707<>\"Subscriber\",'Enrollment Form'!C707=\"ROC\",'Enrollment Form'!O707<>\"Multiple of Salary\"),\"-\",IF(COUNTA('Enrollment Form'!T707:U707)<2,\"N\",\"Y\"))","v":"-"},{"$f":"IF(B700=\"N\",\"\",IF(OR('Enrollment Form'!C707=\"ROC\",'Enrollment Form'!B707<>\"Subscriber\",'Enrollment Form'!O707=\"Waive\",'Enrollment Form'!O707=\"\"),\"-\",IF('Enrollment Form'!P707=\"\",\"N\",\"Y\")))","v":""},{"$f":"IF($B700=\"N\",\"\",IF(AND('Enrollment Form'!$C707=\"ROC\",'Enrollment Form'!$DS707<>\"\"),\"Y\",IF(AND('Enrollment Form'!$C707=\"ROC\",'Enrollment Form'!$DS707=\"\"),\"N\",IF(AND('Enrollment Form'!$C707=\"Enroll\",'Enrollment Form'!$B707=\"Subscriber\",'Enrollment Form'!$CQ707=\"No\",'Enrollment Form'!$DS707=\"\"),\"N\",IF(AND('Enrollment Form'!$C707=\"Enroll\",'Enrollment Form'!$B707=\"Subscriber\",'Enrollment Form'!$CQ707=\"Yes\"),\"-\",\"Y\")))))","v":""},{"$f":"IF($B700=\"N\",\"\",IF(AND('Enrollment Form'!$C707=\"ROC\",'Enrollment Form'!$DT707<>\"\"),\"Y\",IF(AND('Enrollment Form'!$C707=\"ROC\",'Enrollment Form'!$DT707=\"\"),\"N\",IF(AND('Enrollment Form'!$C707=\"Enroll\",'Enrollment Form'!$B707=\"Subscriber\",'Enrollment Form'!$CQ707=\"No\",'Enrollment Form'!$DT707=\"\"),\"N\",IF(AND('Enrollment Form'!$C707=\"Enroll\",'Enrollment Form'!$B707=\"Subscriber\",'Enrollment Form'!$CQ707=\"Yes\"),\"-\",\"Y\")))))","v":""},{"$f":"IF('Enrollment Form'!AH707=\"\",\"\",IF(ISERROR(SEARCH(\".\",'Enrollment Form'!AH707,SEARCH(\"@\",'Enrollment Form'!AH707))),\"N\",\"Y\"))","v":""},{"$f":"IF(OR($B700=\"N\",'Enrollment Form'!$G707=\"\"),\"\",IF('Enrollment Form'!$B707<>\"Subscriber\",\"-\",IF(COUNTIF('Enrollment Form'!$AS707:$AT707,\"Yes\")=2,\"N\",\"Y\")))","v":""},{"$f":"IF(OR('Enrollment Form'!$CC707=\"\",'Enrollment Form'!$CC707=\"No\"),\"-\",IF(AND('Enrollment Form'!$CC707=\"Yes\",'Enrollment Form'!$CD707=\"\"),\"N\",\"Y\"))","v":"-"},{"$f":"IF(OR('Enrollment Form'!$CE707=\"\",'Enrollment Form'!$CE707=\"No\"),\"-\",IF(AND('Enrollment Form'!$CE707=\"Yes\",'Enrollment Form'!$CF707=\"\"),\"N\",\"Y\"))","v":"-"},{"$f":"IF(OR('Enrollment Form'!$CG707=\"\",'Enrollment Form'!$CG707=\"No\"),\"-\",IF(AND('Enrollment Form'!$CG707=\"Yes\",'Enrollment Form'!$CH707=\"\"),\"N\",\"Y\"))","v":"-"},{"$f":"IF(OR('Enrollment Form'!$CG707=\"\",'Enrollment Form'!$CG707=\"No\"),\"-\",IF(AND('Enrollment Form'!$CG707=\"Yes\",'Enrollment Form'!$CI707=\"\"),\"N\",\"Y\"))","v":"-"},{"$f":"IF('Enrollment Form'!B707<>\"Subscriber\",\"-\",IF(AND('Enrollment Form'!B707=\"Subscriber\",'Enrollment Form'!C707=\"Enroll\",'Enrollment Form'!AA707=\"\"),\"N\",\"Y\"))","v":"-"},{"$f":"IF(OR('Enrollment Form'!B707=\"Subscriber\",'Enrollment Form'!B707=\"\"),\"-\",IF('Enrollment Form'!BI707=\"\",\"N\",\"Y\"))","v":"-"},{"$f":"IF('Enrollment Form'!B707<>\"Subscriber\",\"-\",IF(AND('Enrollment Form'!B707=\"Subscriber\",'Enrollment Form'!G707=\"\"),\"N\",\"Y\"))","v":"-"},{"$f":"IF('Enrollment Form'!A707=\"\",\"\",IF('Enrollment Form'!B707=\"Subscriber\",\"-\",IF(AND('Enrollment Form'!B707<>\"Subscriber\",'Enrollment Form'!G707='Enrollment Form'!H707),\"N\",\"Y\")))","v":""},0]
[708,{"$f":"IF('Enrollment Form'!$A708<>\"\",\"Y\",\"N\")","v":"N"},{"$f":"IF(AND('Enrollment Form'!$B708=\"\",'Enrollment Form'!$C708<>\"\"),\"N\",IF($B701=\"N\",\"\",\"Y\"))","v":""},{"$f":"IF(OR($B701=\"N\",'Enrollment Form'!G708=\"\"),\"\",IF('Enrollment Form'!$B708<>\"Subscriber\",\"\",IF('Enrollment Form'!$G708='Enrollment Form'!$H708,\"Y\",\"N\")))","v":""},{"$f":"IF($B701=\"N\",\"\",IF(AND(COUNTIFS('Enrollment Form'!$H$11:$H$1000,'Enrollment Form'!$H708,'Enrollment Form'!$B$11:$B$1000,'Enrollment Form'!$B708)>1,'Enrollment Form'!$H708<>\"\"),\"N\",\"Y\"))","v":""},{"$f":"IF($B701=\"N\",\"\",IF(LEN('Enrollment Form'!$Y708)=0,\"\",IF(LEN('Enrollment Form'!$Y708)<>5,\"N\",\"Y\")))","v":""},{"$f":"IF($B701=\"N\",\"\",IF(LEN('Enrollment Form'!$AD708=0),\"\",IF(LEN('Enrollment Form'!$AD708)<>5,\"N\",\"Y\")))","v":""},{"$f":"IF($B701=\"N\",\"\",IF(LEN('Enrollment Form'!$BL708=0),\"\",IF(LEN('Enrollment Form'!$BL708)<>5,\"N\",\"Y\")))","v":""},{"$f":"IF($B701=\"N\",\"\",IF(LEN('Enrollment Form'!$AE708)=0,\"\",IF(LEN('Enrollment Form'!$AE708)<>10,\"N\",\"Y\")))","v":""},{"$f":"IF($B701=\"N\",\"\",IF(LEN('Enrollment Form'!$AF708)=0,\"\",IF(LEN('Enrollment Form'!$AF708)<>10,\"N\",\"Y\")))","v":""},{"$f":"IF('Enrollment Form'!$O708<>\"Graded\",\"-\",IF(AND('Enrollment Form'!$O708=\"Graded\",'Enrollment Form'!$AO708<>\"\"),\"Y\",\"N\"))","v":"-"},{"$f":"IF($B701=\"N\",\"\",IF(OR('Enrollment Form'!$B708<>\"Subscriber\",'Enrollment Form'!$C708=\"ROC\"),\"-\",IF(AND('Enrollment Form'!$B708=\"Subscriber\",'Enrollment Form'!$C708=\"Enroll\",'Enrollment Form'!$AJ708<>\"\"),\"Y\",\"N\")))","v":""},{"$f":"IF($B701=\"N\",\"\",IF(OR('Enrollment Form'!$B708<>\"Subscriber\",'Enrollment Form'!$C708=\"ROC\"),\"-\",IF(AND('Enrollment Form'!$B708=\"Subscriber\",'Enrollment Form'!$C708=\"Enroll\",'Enrollment Form'!$AK708<>\"\"),\"Y\",\"N\")))","v":""},{"$f":"IF($B701=\"N\",\"\",IF(OR('Enrollment Form'!$B708<>\"Subscriber\",'Enrollment Form'!$C708=\"ROC\"),\"-\",IF(AND('Enrollment Form'!$B708=\"Subscriber\",'Enrollment Form'!$C708=\"Enroll\",'Enrollment Form'!$AL708<>\"\"),\"Y\",\"N\")))","v":""},{"$f":"IF($B701=\"N\",\"\",IF(OR('Enrollment Form'!$B708<>\"Subscriber\",'Enrollment Form'!$C708=\"ROC\"),\"-\",IF(AND('Enrollment Form'!$B708=\"Subscriber\",'Enrollment Form'!$C708=\"Enroll\",'Enrollment Form'!$AM708<>\"\"),\"Y\",\"N\")))","v":""},{"$f":"IF($B701=\"N\",\"\",IF(OR('Enrollment Form'!$B708<>\"Subscriber\",'Enrollment Form'!$C708=\"ROC\"),\"-\",IF(AND('Enrollment Form'!$B708=\"Subscriber\",'Enrollment Form'!$C708=\"Enroll\",'Enrollment Form'!$AN708<>\"\"),\"Y\",\"N\")))","v":""},{"$f":"IF($B701=\"N\",\"\",IF(OR('Enrollment Form'!$B708<>\"Subscriber\",'Enrollment Form'!$C708=\"ROC\"),\"-\",IF(AND('Enrollment Form'!$B708=\"Subscriber\",'Enrollment Form'!$C708=\"Enroll\",'Enrollment Form'!$AP708<>\"\"),\"Y\",\"N\")))","v":""},{"$f":"IF($B701=\"N\",\"\",IF($Q701=\"-\",\"-\",IF(AND($Q701=\"Y\",'Enrollment Form'!$AP708=\"No\"),\"-\",IF(AND($Q701=\"Y\",'Enrollment Form'!$AP708=\"Yes\",'Enrollment Form'!$AQ708<>\"\"),\"Y\",\"N\"))))","v":""},{"$f":"IF($B701=\"N\",\"\",IF(OR('Enrollment Form'!$B708<>\"Subscriber\",'Enrollment Form'!$C708=\"ROC\"),\"-\",IF(AND('Enrollment Form'!$B708=\"Subscriber\",'Enrollment Form'!$C708=\"Enroll\",'Enrollment Form'!$CO708<>\"\"),\"Y\",\"N\")))","v":""},{"$f":"IF($B701=\"N\",\"\",IF($S701=\"-\",\"-\",IF(AND($S701=\"Y\",'Enrollment Form'!$CO708=\"No\"),\"-\",IF(AND($S701=\"Y\",'Enrollment Form'!$CO708=\"Yes\",'Enrollment Form'!$CP708<>\"\"),\"Y\",\"N\"))))","v":""},{"$f":"IF(OR('Enrollment Form'!$AV708=\"Yes\",'Enrollment Form'!$AV708=\"\"),\"-\",IF(AND('Enrollment Form'!$AV708=\"No\",ISERROR(FIND(\"HMO\",VLOOKUP('Enrollment Form'!G708,'Enrollment Form'!H$11:J$1000,3,FALSE),1))=FALSE,COUNTA('Enrollment Form'!$AW708:$AZ708)=4),\"Y\",\"N\"))","v":"-"},{"$f":"IF($B701=\"N\",\"\",IF('Enrollment Form'!$B708=\"Subscriber\",\"-\",IF(COUNTA('Enrollment Form'!$BE708,'Enrollment Form'!$BG708)=2,\"Y\",\"N\")))","v":""},{"$f":"IF($B701=\"N\",\"\",IF(OR('Enrollment Form'!$AU708=\"\",'Enrollment Form'!$AU708=\"No\"),\"-\",IF(AND('Enrollment Form'!$AU708=\"Yes\",COUNTA('Enrollment Form'!$CK708)=1),\"Y\",\"N\")))","v":""},{"$f":"IF(OR('Enrollment Form'!$CK708=\"\",'Enrollment Form'!$CK708=\"No\"),\"-\",IF(COUNTA('Enrollment Form'!$CM708:$CN708)=2,\"Y\",\"N\"))","v":"-"},{"$f":"IF($B701=\"N\",\"\",IF(COUNTIF('Enrollment Form'!$CZ708:$DO708,\"Other\")=COUNTA('Enrollment Form'!$DF708,'Enrollment Form'!$DA708,'Enrollment Form'!$DK708,'Enrollment Form'!$DP708),\"Y\",\"N\"))","v":""},{"$f":"IF($B701=\"N\",\"\",IF(OR('Enrollment Form'!B708<>\"Subscriber\",'Enrollment Form'!C708=\"ROC\",COUNTIF('Enrollment Form'!AS708:AT708,\"Yes\")>=1),\"-\",IF(AND('Enrollment Form'!C708=\"Enroll\",COUNTIF('Enrollment Form'!AS708:AT708,\"No\")=2,'Enrollment Form'!AU708=\"\"),\"N\",\"Y\")))","v":""},{"$f":"IF(OR(B701=\"N\",'Enrollment Form'!B708<>\"Subscriber\",'Enrollment Form'!C708=\"ROC\",'Enrollment Form'!O708<>\"Multiple of Salary\"),\"-\",IF(COUNTA('Enrollment Form'!T708:U708)<2,\"N\",\"Y\"))","v":"-"},{"$f":"IF(B701=\"N\",\"\",IF(OR('Enrollment Form'!C708=\"ROC\",'Enrollment Form'!B708<>\"Subscriber\",'Enrollment Form'!O708=\"Waive\",'Enrollment Form'!O708=\"\"),\"-\",IF('Enrollment Form'!P708=\"\",\"N\",\"Y\")))","v":""},{"$f":"IF($B701=\"N\",\"\",IF(AND('Enrollment Form'!$C708=\"ROC\",'Enrollment Form'!$DS708<>\"\"),\"Y\",IF(AND('Enrollment Form'!$C708=\"ROC\",'Enrollment Form'!$DS708=\"\"),\"N\",IF(AND('Enrollment Form'!$C708=\"Enroll\",'Enrollment Form'!$B708=\"Subscriber\",'Enrollment Form'!$CQ708=\"No\",'Enrollment Form'!$DS708=\"\"),\"N\",IF(AND('Enrollment Form'!$C708=\"Enroll\",'Enrollment Form'!$B708=\"Subscriber\",'Enrollment Form'!$CQ708=\"Yes\"),\"-\",\"Y\")))))","v":""},{"$f":"IF($B701=\"N\",\"\",IF(AND('Enrollment Form'!$C708=\"ROC\",'Enrollment Form'!$DT708<>\"\"),\"Y\",IF(AND('Enrollment Form'!$C708=\"ROC\",'Enrollment Form'!$DT708=\"\"),\"N\",IF(AND('Enrollment Form'!$C708=\"Enroll\",'Enrollment Form'!$B708=\"Subscriber\",'Enrollment Form'!$CQ708=\"No\",'Enrollment Form'!$DT708=\"\"),\"N\",IF(AND('Enrollment Form'!$C708=\"Enroll\",'Enrollment Form'!$B708=\"Subscriber\",'Enrollment Form'!$CQ708=\"Yes\"),\"-\",\"Y\")))))","v":""},{"$f":"IF('Enrollment Form'!AH708=\"\",\"\",IF(ISERROR(SEARCH(\".\",'Enrollment Form'!AH708,SEARCH(\"@\",'Enrollment Form'!AH708))),\"N\",\"Y\"))","v":""},{"$f":"IF(OR($B701=\"N\",'Enrollment Form'!$G708=\"\"),\"\",IF('Enrollment Form'!$B708<>\"Subscriber\",\"-\",IF(COUNTIF('Enrollment Form'!$AS708:$AT708,\"Yes\")=2,\"N\",\"Y\")))","v":""},{"$f":"IF(OR('Enrollment Form'!$CC708=\"\",'Enrollment Form'!$CC708=\"No\"),\"-\",IF(AND('Enrollment Form'!$CC708=\"Yes\",'Enrollment Form'!$CD708=\"\"),\"N\",\"Y\"))","v":"-"},{"$f":"IF(OR('Enrollment Form'!$CE708=\"\",'Enrollment Form'!$CE708=\"No\"),\"-\",IF(AND('Enrollment Form'!$CE708=\"Yes\",'Enrollment Form'!$CF708=\"\"),\"N\",\"Y\"))","v":"-"},{"$f":"IF(OR('Enrollment Form'!$CG708=\"\",'Enrollment Form'!$CG708=\"No\"),\"-\",IF(AND('Enrollment Form'!$CG708=\"Yes\",'Enrollment Form'!$CH708=\"\"),\"N\",\"Y\"))","v":"-"},{"$f":"IF(OR('Enrollment Form'!$CG708=\"\",'Enrollment Form'!$CG708=\"No\"),\"-\",IF(AND('Enrollment Form'!$CG708=\"Yes\",'Enrollment Form'!$CI708=\"\"),\"N\",\"Y\"))","v":"-"},{"$f":"IF('Enrollment Form'!B708<>\"Subscriber\",\"-\",IF(AND('Enrollment Form'!B708=\"Subscriber\",'Enrollment Form'!C708=\"Enroll\",'Enrollment Form'!AA708=\"\"),\"N\",\"Y\"))","v":"-"},{"$f":"IF(OR('Enrollment Form'!B708=\"Subscriber\",'Enrollment Form'!B708=\"\"),\"-\",IF('Enrollment Form'!BI708=\"\",\"N\",\"Y\"))","v":"-"},{"$f":"IF('Enrollment Form'!B708<>\"Subscriber\",\"-\",IF(AND('Enrollment Form'!B708=\"Subscriber\",'Enrollment Form'!G708=\"\"),\"N\",\"Y\"))","v":"-"},{"$f":"IF('Enrollment Form'!A708=\"\",\"\",IF('Enrollment Form'!B708=\"Subscriber\",\"-\",IF(AND('Enrollment Form'!B708<>\"Subscriber\",'Enrollment Form'!G708='Enrollment Form'!H708),\"N\",\"Y\")))","v":""},0]
[709,{"$f":"IF('Enrollment Form'!$A709<>\"\",\"Y\",\"N\")","v":"N"},{"$f":"IF(AND('Enrollment Form'!$B709=\"\",'Enrollment Form'!$C709<>\"\"),\"N\",IF($B702=\"N\",\"\",\"Y\"))","v":""},{"$f":"IF(OR($B702=\"N\",'Enrollment Form'!G709=\"\"),\"\",IF('Enrollment Form'!$B709<>\"Subscriber\",\"\",IF('Enrollment Form'!$G709='Enrollment Form'!$H709,\"Y\",\"N\")))","v":""},{"$f":"IF($B702=\"N\",\"\",IF(AND(COUNTIFS('Enrollment Form'!$H$11:$H$1000,'Enrollment Form'!$H709,'Enrollment Form'!$B$11:$B$1000,'Enrollment Form'!$B709)>1,'Enrollment Form'!$H709<>\"\"),\"N\",\"Y\"))","v":""},{"$f":"IF($B702=\"N\",\"\",IF(LEN('Enrollment Form'!$Y709)=0,\"\",IF(LEN('Enrollment Form'!$Y709)<>5,\"N\",\"Y\")))","v":""},{"$f":"IF($B702=\"N\",\"\",IF(LEN('Enrollment Form'!$AD709=0),\"\",IF(LEN('Enrollment Form'!$AD709)<>5,\"N\",\"Y\")))","v":""},{"$f":"IF($B702=\"N\",\"\",IF(LEN('Enrollment Form'!$BL709=0),\"\",IF(LEN('Enrollment Form'!$BL709)<>5,\"N\",\"Y\")))","v":""},{"$f":"IF($B702=\"N\",\"\",IF(LEN('Enrollment Form'!$AE709)=0,\"\",IF(LEN('Enrollment Form'!$AE709)<>10,\"N\",\"Y\")))","v":""},{"$f":"IF($B702=\"N\",\"\",IF(LEN('Enrollment Form'!$AF709)=0,\"\",IF(LEN('Enrollment Form'!$AF709)<>10,\"N\",\"Y\")))","v":""},{"$f":"IF('Enrollment Form'!$O709<>\"Graded\",\"-\",IF(AND('Enrollment Form'!$O709=\"Graded\",'Enrollment Form'!$AO709<>\"\"),\"Y\",\"N\"))","v":"-"},{"$f":"IF($B702=\"N\",\"\",IF(OR('Enrollment Form'!$B709<>\"Subscriber\",'Enrollment Form'!$C709=\"ROC\"),\"-\",IF(AND('Enrollment Form'!$B709=\"Subscriber\",'Enrollment Form'!$C709=\"Enroll\",'Enrollment Form'!$AJ709<>\"\"),\"Y\",\"N\")))","v":""},{"$f":"IF($B702=\"N\",\"\",IF(OR('Enrollment Form'!$B709<>\"Subscriber\",'Enrollment Form'!$C709=\"ROC\"),\"-\",IF(AND('Enrollment Form'!$B709=\"Subscriber\",'Enrollment Form'!$C709=\"Enroll\",'Enrollment Form'!$AK709<>\"\"),\"Y\",\"N\")))","v":""},{"$f":"IF($B702=\"N\",\"\",IF(OR('Enrollment Form'!$B709<>\"Subscriber\",'Enrollment Form'!$C709=\"ROC\"),\"-\",IF(AND('Enrollment Form'!$B709=\"Subscriber\",'Enrollment Form'!$C709=\"Enroll\",'Enrollment Form'!$AL709<>\"\"),\"Y\",\"N\")))","v":""},{"$f":"IF($B702=\"N\",\"\",IF(OR('Enrollment Form'!$B709<>\"Subscriber\",'Enrollment Form'!$C709=\"ROC\"),\"-\",IF(AND('Enrollment Form'!$B709=\"Subscriber\",'Enrollment Form'!$C709=\"Enroll\",'Enrollment Form'!$AM709<>\"\"),\"Y\",\"N\")))","v":""},{"$f":"IF($B702=\"N\",\"\",IF(OR('Enrollment Form'!$B709<>\"Subscriber\",'Enrollment Form'!$C709=\"ROC\"),\"-\",IF(AND('Enrollment Form'!$B709=\"Subscriber\",'Enrollment Form'!$C709=\"Enroll\",'Enrollment Form'!$AN709<>\"\"),\"Y\",\"N\")))","v":""},{"$f":"IF($B702=\"N\",\"\",IF(OR('Enrollment Form'!$B709<>\"Subscriber\",'Enrollment Form'!$C709=\"ROC\"),\"-\",IF(AND('Enrollment Form'!$B709=\"Subscriber\",'Enrollment Form'!$C709=\"Enroll\",'Enrollment Form'!$AP709<>\"\"),\"Y\",\"N\")))","v":""},{"$f":"IF($B702=\"N\",\"\",IF($Q702=\"-\",\"-\",IF(AND($Q702=\"Y\",'Enrollment Form'!$AP709=\"No\"),\"-\",IF(AND($Q702=\"Y\",'Enrollment Form'!$AP709=\"Yes\",'Enrollment Form'!$AQ709<>\"\"),\"Y\",\"N\"))))","v":""},{"$f":"IF($B702=\"N\",\"\",IF(OR('Enrollment Form'!$B709<>\"Subscriber\",'Enrollment Form'!$C709=\"ROC\"),\"-\",IF(AND('Enrollment Form'!$B709=\"Subscriber\",'Enrollment Form'!$C709=\"Enroll\",'Enrollment Form'!$CO709<>\"\"),\"Y\",\"N\")))","v":""},{"$f":"IF($B702=\"N\",\"\",IF($S702=\"-\",\"-\",IF(AND($S702=\"Y\",'Enrollment Form'!$CO709=\"No\"),\"-\",IF(AND($S702=\"Y\",'Enrollment Form'!$CO709=\"Yes\",'Enrollment Form'!$CP709<>\"\"),\"Y\",\"N\"))))","v":""},{"$f":"IF(OR('Enrollment Form'!$AV709=\"Yes\",'Enrollment Form'!$AV709=\"\"),\"-\",IF(AND('Enrollment Form'!$AV709=\"No\",ISERROR(FIND(\"HMO\",VLOOKUP('Enrollment Form'!G709,'Enrollment Form'!H$11:J$1000,3,FALSE),1))=FALSE,COUNTA('Enrollment Form'!$AW709:$AZ709)=4),\"Y\",\"N\"))","v":"-"},{"$f":"IF($B702=\"N\",\"\",IF('Enrollment Form'!$B709=\"Subscriber\",\"-\",IF(COUNTA('Enrollment Form'!$BE709,'Enrollment Form'!$BG709)=2,\"Y\",\"N\")))","v":""},{"$f":"IF($B702=\"N\",\"\",IF(OR('Enrollment Form'!$AU709=\"\",'Enrollment Form'!$AU709=\"No\"),\"-\",IF(AND('Enrollment Form'!$AU709=\"Yes\",COUNTA('Enrollment Form'!$CK709)=1),\"Y\",\"N\")))","v":""},{"$f":"IF(OR('Enrollment Form'!$CK709=\"\",'Enrollment Form'!$CK709=\"No\"),\"-\",IF(COUNTA('Enrollment Form'!$CM709:$CN709)=2,\"Y\",\"N\"))","v":"-"},{"$f":"IF($B702=\"N\",\"\",IF(COUNTIF('Enrollment Form'!$CZ709:$DO709,\"Other\")=COUNTA('Enrollment Form'!$DF709,'Enrollment Form'!$DA709,'Enrollment Form'!$DK709,'Enrollment Form'!$DP709),\"Y\",\"N\"))","v":""},{"$f":"IF($B702=\"N\",\"\",IF(OR('Enrollment Form'!B709<>\"Subscriber\",'Enrollment Form'!C709=\"ROC\",COUNTIF('Enrollment Form'!AS709:AT709,\"Yes\")>=1),\"-\",IF(AND('Enrollment Form'!C709=\"Enroll\",COUNTIF('Enrollment Form'!AS709:AT709,\"No\")=2,'Enrollment Form'!AU709=\"\"),\"N\",\"Y\")))","v":""},{"$f":"IF(OR(B702=\"N\",'Enrollment Form'!B709<>\"Subscriber\",'Enrollment Form'!C709=\"ROC\",'Enrollment Form'!O709<>\"Multiple of Salary\"),\"-\",IF(COUNTA('Enrollment Form'!T709:U709)<2,\"N\",\"Y\"))","v":"-"},{"$f":"IF(B702=\"N\",\"\",IF(OR('Enrollment Form'!C709=\"ROC\",'Enrollment Form'!B709<>\"Subscriber\",'Enrollment Form'!O709=\"Waive\",'Enrollment Form'!O709=\"\"),\"-\",IF('Enrollment Form'!P709=\"\",\"N\",\"Y\")))","v":""},{"$f":"IF($B702=\"N\",\"\",IF(AND('Enrollment Form'!$C709=\"ROC\",'Enrollment Form'!$DS709<>\"\"),\"Y\",IF(AND('Enrollment Form'!$C709=\"ROC\",'Enrollment Form'!$DS709=\"\"),\"N\",IF(AND('Enrollment Form'!$C709=\"Enroll\",'Enrollment Form'!$B709=\"Subscriber\",'Enrollment Form'!$CQ709=\"No\",'Enrollment Form'!$DS709=\"\"),\"N\",IF(AND('Enrollment Form'!$C709=\"Enroll\",'Enrollment Form'!$B709=\"Subscriber\",'Enrollment Form'!$CQ709=\"Yes\"),\"-\",\"Y\")))))","v":""},{"$f":"IF($B702=\"N\",\"\",IF(AND('Enrollment Form'!$C709=\"ROC\",'Enrollment Form'!$DT709<>\"\"),\"Y\",IF(AND('Enrollment Form'!$C709=\"ROC\",'Enrollment Form'!$DT709=\"\"),\"N\",IF(AND('Enrollment Form'!$C709=\"Enroll\",'Enrollment Form'!$B709=\"Subscriber\",'Enrollment Form'!$CQ709=\"No\",'Enrollment Form'!$DT709=\"\"),\"N\",IF(AND('Enrollment Form'!$C709=\"Enroll\",'Enrollment Form'!$B709=\"Subscriber\",'Enrollment Form'!$CQ709=\"Yes\"),\"-\",\"Y\")))))","v":""},{"$f":"IF('Enrollment Form'!AH709=\"\",\"\",IF(ISERROR(SEARCH(\".\",'Enrollment Form'!AH709,SEARCH(\"@\",'Enrollment Form'!AH709))),\"N\",\"Y\"))","v":""},{"$f":"IF(OR($B702=\"N\",'Enrollment Form'!$G709=\"\"),\"\",IF('Enrollment Form'!$B709<>\"Subscriber\",\"-\",IF(COUNTIF('Enrollment Form'!$AS709:$AT709,\"Yes\")=2,\"N\",\"Y\")))","v":""},{"$f":"IF(OR('Enrollment Form'!$CC709=\"\",'Enrollment Form'!$CC709=\"No\"),\"-\",IF(AND('Enrollment Form'!$CC709=\"Yes\",'Enrollment Form'!$CD709=\"\"),\"N\",\"Y\"))","v":"-"},{"$f":"IF(OR('Enrollment Form'!$CE709=\"\",'Enrollment Form'!$CE709=\"No\"),\"-\",IF(AND('Enrollment Form'!$CE709=\"Yes\",'Enrollment Form'!$CF709=\"\"),\"N\",\"Y\"))","v":"-"},{"$f":"IF(OR('Enrollment Form'!$CG709=\"\",'Enrollment Form'!$CG709=\"No\"),\"-\",IF(AND('Enrollment Form'!$CG709=\"Yes\",'Enrollment Form'!$CH709=\"\"),\"N\",\"Y\"))","v":"-"},{"$f":"IF(OR('Enrollment Form'!$CG709=\"\",'Enrollment Form'!$CG709=\"No\"),\"-\",IF(AND('Enrollment Form'!$CG709=\"Yes\",'Enrollment Form'!$CI709=\"\"),\"N\",\"Y\"))","v":"-"},{"$f":"IF('Enrollment Form'!B709<>\"Subscriber\",\"-\",IF(AND('Enrollment Form'!B709=\"Subscriber\",'Enrollment Form'!C709=\"Enroll\",'Enrollment Form'!AA709=\"\"),\"N\",\"Y\"))","v":"-"},{"$f":"IF(OR('Enrollment Form'!B709=\"Subscriber\",'Enrollment Form'!B709=\"\"),\"-\",IF('Enrollment Form'!BI709=\"\",\"N\",\"Y\"))","v":"-"},{"$f":"IF('Enrollment Form'!B709<>\"Subscriber\",\"-\",IF(AND('Enrollment Form'!B709=\"Subscriber\",'Enrollment Form'!G709=\"\"),\"N\",\"Y\"))","v":"-"},{"$f":"IF('Enrollment Form'!A709=\"\",\"\",IF('Enrollment Form'!B709=\"Subscriber\",\"-\",IF(AND('Enrollment Form'!B709<>\"Subscriber\",'Enrollment Form'!G709='Enrollment Form'!H709),\"N\",\"Y\")))","v":""},0]
[710,{"$f":"IF('Enrollment Form'!$A710<>\"\",\"Y\",\"N\")","v":"N"},{"$f":"IF(AND('Enrollment Form'!$B710=\"\",'Enrollment Form'!$C710<>\"\"),\"N\",IF($B703=\"N\",\"\",\"Y\"))","v":""},{"$f":"IF(OR($B703=\"N\",'Enrollment Form'!G710=\"\"),\"\",IF('Enrollment Form'!$B710<>\"Subscriber\",\"\",IF('Enrollment Form'!$G710='Enrollment Form'!$H710,\"Y\",\"N\")))","v":""},{"$f":"IF($B703=\"N\",\"\",IF(AND(COUNTIFS('Enrollment Form'!$H$11:$H$1000,'Enrollment Form'!$H710,'Enrollment Form'!$B$11:$B$1000,'Enrollment Form'!$B710)>1,'Enrollment Form'!$H710<>\"\"),\"N\",\"Y\"))","v":""},{"$f":"IF($B703=\"N\",\"\",IF(LEN('Enrollment Form'!$Y710)=0,\"\",IF(LEN('Enrollment Form'!$Y710)<>5,\"N\",\"Y\")))","v":""},{"$f":"IF($B703=\"N\",\"\",IF(LEN('Enrollment Form'!$AD710=0),\"\",IF(LEN('Enrollment Form'!$AD710)<>5,\"N\",\"Y\")))","v":""},{"$f":"IF($B703=\"N\",\"\",IF(LEN('Enrollment Form'!$BL710=0),\"\",IF(LEN('Enrollment Form'!$BL710)<>5,\"N\",\"Y\")))","v":""},{"$f":"IF($B703=\"N\",\"\",IF(LEN('Enrollment Form'!$AE710)=0,\"\",IF(LEN('Enrollment Form'!$AE710)<>10,\"N\",\"Y\")))","v":""},{"$f":"IF($B703=\"N\",\"\",IF(LEN('Enrollment Form'!$AF710)=0,\"\",IF(LEN('Enrollment Form'!$AF710)<>10,\"N\",\"Y\")))","v":""},{"$f":"IF('Enrollment Form'!$O710<>\"Graded\",\"-\",IF(AND('Enrollment Form'!$O710=\"Graded\",'Enrollment Form'!$AO710<>\"\"),\"Y\",\"N\"))","v":"-"},{"$f":"IF($B703=\"N\",\"\",IF(OR('Enrollment Form'!$B710<>\"Subscriber\",'Enrollment Form'!$C710=\"ROC\"),\"-\",IF(AND('Enrollment Form'!$B710=\"Subscriber\",'Enrollment Form'!$C710=\"Enroll\",'Enrollment Form'!$AJ710<>\"\"),\"Y\",\"N\")))","v":""},{"$f":"IF($B703=\"N\",\"\",IF(OR('Enrollment Form'!$B710<>\"Subscriber\",'Enrollment Form'!$C710=\"ROC\"),\"-\",IF(AND('Enrollment Form'!$B710=\"Subscriber\",'Enrollment Form'!$C710=\"Enroll\",'Enrollment Form'!$AK710<>\"\"),\"Y\",\"N\")))","v":""},{"$f":"IF($B703=\"N\",\"\",IF(OR('Enrollment Form'!$B710<>\"Subscriber\",'Enrollment Form'!$C710=\"ROC\"),\"-\",IF(AND('Enrollment Form'!$B710=\"Subscriber\",'Enrollment Form'!$C710=\"Enroll\",'Enrollment Form'!$AL710<>\"\"),\"Y\",\"N\")))","v":""},{"$f":"IF($B703=\"N\",\"\",IF(OR('Enrollment Form'!$B710<>\"Subscriber\",'Enrollment Form'!$C710=\"ROC\"),\"-\",IF(AND('Enrollment Form'!$B710=\"Subscriber\",'Enrollment Form'!$C710=\"Enroll\",'Enrollment Form'!$AM710<>\"\"),\"Y\",\"N\")))","v":""},{"$f":"IF($B703=\"N\",\"\",IF(OR('Enrollment Form'!$B710<>\"Subscriber\",'Enrollment Form'!$C710=\"ROC\"),\"-\",IF(AND('Enrollment Form'!$B710=\"Subscriber\",'Enrollment Form'!$C710=\"Enroll\",'Enrollment Form'!$AN710<>\"\"),\"Y\",\"N\")))","v":""},{"$f":"IF($B703=\"N\",\"\",IF(OR('Enrollment Form'!$B710<>\"Subscriber\",'Enrollment Form'!$C710=\"ROC\"),\"-\",IF(AND('Enrollment Form'!$B710=\"Subscriber\",'Enrollment Form'!$C710=\"Enroll\",'Enrollment Form'!$AP710<>\"\"),\"Y\",\"N\")))","v":""},{"$f":"IF($B703=\"N\",\"\",IF($Q703=\"-\",\"-\",IF(AND($Q703=\"Y\",'Enrollment Form'!$AP710=\"No\"),\"-\",IF(AND($Q703=\"Y\",'Enrollment Form'!$AP710=\"Yes\",'Enrollment Form'!$AQ710<>\"\"),\"Y\",\"N\"))))","v":""},{"$f":"IF($B703=\"N\",\"\",IF(OR('Enrollment Form'!$B710<>\"Subscriber\",'Enrollment Form'!$C710=\"ROC\"),\"-\",IF(AND('Enrollment Form'!$B710=\"Subscriber\",'Enrollment Form'!$C710=\"Enroll\",'Enrollment Form'!$CO710<>\"\"),\"Y\",\"N\")))","v":""},{"$f":"IF($B703=\"N\",\"\",IF($S703=\"-\",\"-\",IF(AND($S703=\"Y\",'Enrollment Form'!$CO710=\"No\"),\"-\",IF(AND($S703=\"Y\",'Enrollment Form'!$CO710=\"Yes\",'Enrollment Form'!$CP710<>\"\"),\"Y\",\"N\"))))","v":""},{"$f":"IF(OR('Enrollment Form'!$AV710=\"Yes\",'Enrollment Form'!$AV710=\"\"),\"-\",IF(AND('Enrollment Form'!$AV710=\"No\",ISERROR(FIND(\"HMO\",VLOOKUP('Enrollment Form'!G710,'Enrollment Form'!H$11:J$1000,3,FALSE),1))=FALSE,COUNTA('Enrollment Form'!$AW710:$AZ710)=4),\"Y\",\"N\"))","v":"-"},{"$f":"IF($B703=\"N\",\"\",IF('Enrollment Form'!$B710=\"Subscriber\",\"-\",IF(COUNTA('Enrollment Form'!$BE710,'Enrollment Form'!$BG710)=2,\"Y\",\"N\")))","v":""},{"$f":"IF($B703=\"N\",\"\",IF(OR('Enrollment Form'!$AU710=\"\",'Enrollment Form'!$AU710=\"No\"),\"-\",IF(AND('Enrollment Form'!$AU710=\"Yes\",COUNTA('Enrollment Form'!$CK710)=1),\"Y\",\"N\")))","v":""},{"$f":"IF(OR('Enrollment Form'!$CK710=\"\",'Enrollment Form'!$CK710=\"No\"),\"-\",IF(COUNTA('Enrollment Form'!$CM710:$CN710)=2,\"Y\",\"N\"))","v":"-"},{"$f":"IF($B703=\"N\",\"\",IF(COUNTIF('Enrollment Form'!$CZ710:$DO710,\"Other\")=COUNTA('Enrollment Form'!$DF710,'Enrollment Form'!$DA710,'Enrollment Form'!$DK710,'Enrollment Form'!$DP710),\"Y\",\"N\"))","v":""},{"$f":"IF($B703=\"N\",\"\",IF(OR('Enrollment Form'!B710<>\"Subscriber\",'Enrollment Form'!C710=\"ROC\",COUNTIF('Enrollment Form'!AS710:AT710,\"Yes\")>=1),\"-\",IF(AND('Enrollment Form'!C710=\"Enroll\",COUNTIF('Enrollment Form'!AS710:AT710,\"No\")=2,'Enrollment Form'!AU710=\"\"),\"N\",\"Y\")))","v":""},{"$f":"IF(OR(B703=\"N\",'Enrollment Form'!B710<>\"Subscriber\",'Enrollment Form'!C710=\"ROC\",'Enrollment Form'!O710<>\"Multiple of Salary\"),\"-\",IF(COUNTA('Enrollment Form'!T710:U710)<2,\"N\",\"Y\"))","v":"-"},{"$f":"IF(B703=\"N\",\"\",IF(OR('Enrollment Form'!C710=\"ROC\",'Enrollment Form'!B710<>\"Subscriber\",'Enrollment Form'!O710=\"Waive\",'Enrollment Form'!O710=\"\"),\"-\",IF('Enrollment Form'!P710=\"\",\"N\",\"Y\")))","v":""},{"$f":"IF($B703=\"N\",\"\",IF(AND('Enrollment Form'!$C710=\"ROC\",'Enrollment Form'!$DS710<>\"\"),\"Y\",IF(AND('Enrollment Form'!$C710=\"ROC\",'Enrollment Form'!$DS710=\"\"),\"N\",IF(AND('Enrollment Form'!$C710=\"Enroll\",'Enrollment Form'!$B710=\"Subscriber\",'Enrollment Form'!$CQ710=\"No\",'Enrollment Form'!$DS710=\"\"),\"N\",IF(AND('Enrollment Form'!$C710=\"Enroll\",'Enrollment Form'!$B710=\"Subscriber\",'Enrollment Form'!$CQ710=\"Yes\"),\"-\",\"Y\")))))","v":""},{"$f":"IF($B703=\"N\",\"\",IF(AND('Enrollment Form'!$C710=\"ROC\",'Enrollment Form'!$DT710<>\"\"),\"Y\",IF(AND('Enrollment Form'!$C710=\"ROC\",'Enrollment Form'!$DT710=\"\"),\"N\",IF(AND('Enrollment Form'!$C710=\"Enroll\",'Enrollment Form'!$B710=\"Subscriber\",'Enrollment Form'!$CQ710=\"No\",'Enrollment Form'!$DT710=\"\"),\"N\",IF(AND('Enrollment Form'!$C710=\"Enroll\",'Enrollment Form'!$B710=\"Subscriber\",'Enrollment Form'!$CQ710=\"Yes\"),\"-\",\"Y\")))))","v":""},{"$f":"IF('Enrollment Form'!AH710=\"\",\"\",IF(ISERROR(SEARCH(\".\",'Enrollment Form'!AH710,SEARCH(\"@\",'Enrollment Form'!AH710))),\"N\",\"Y\"))","v":""},{"$f":"IF(OR($B703=\"N\",'Enrollment Form'!$G710=\"\"),\"\",IF('Enrollment Form'!$B710<>\"Subscriber\",\"-\",IF(COUNTIF('Enrollment Form'!$AS710:$AT710,\"Yes\")=2,\"N\",\"Y\")))","v":""},{"$f":"IF(OR('Enrollment Form'!$CC710=\"\",'Enrollment Form'!$CC710=\"No\"),\"-\",IF(AND('Enrollment Form'!$CC710=\"Yes\",'Enrollment Form'!$CD710=\"\"),\"N\",\"Y\"))","v":"-"},{"$f":"IF(OR('Enrollment Form'!$CE710=\"\",'Enrollment Form'!$CE710=\"No\"),\"-\",IF(AND('Enrollment Form'!$CE710=\"Yes\",'Enrollment Form'!$CF710=\"\"),\"N\",\"Y\"))","v":"-"},{"$f":"IF(OR('Enrollment Form'!$CG710=\"\",'Enrollment Form'!$CG710=\"No\"),\"-\",IF(AND('Enrollment Form'!$CG710=\"Yes\",'Enrollment Form'!$CH710=\"\"),\"N\",\"Y\"))","v":"-"},{"$f":"IF(OR('Enrollment Form'!$CG710=\"\",'Enrollment Form'!$CG710=\"No\"),\"-\",IF(AND('Enrollment Form'!$CG710=\"Yes\",'Enrollment Form'!$CI710=\"\"),\"N\",\"Y\"))","v":"-"},{"$f":"IF('Enrollment Form'!B710<>\"Subscriber\",\"-\",IF(AND('Enrollment Form'!B710=\"Subscriber\",'Enrollment Form'!C710=\"Enroll\",'Enrollment Form'!AA710=\"\"),\"N\",\"Y\"))","v":"-"},{"$f":"IF(OR('Enrollment Form'!B710=\"Subscriber\",'Enrollment Form'!B710=\"\"),\"-\",IF('Enrollment Form'!BI710=\"\",\"N\",\"Y\"))","v":"-"},{"$f":"IF('Enrollment Form'!B710<>\"Subscriber\",\"-\",IF(AND('Enrollment Form'!B710=\"Subscriber\",'Enrollment Form'!G710=\"\"),\"N\",\"Y\"))","v":"-"},{"$f":"IF('Enrollment Form'!A710=\"\",\"\",IF('Enrollment Form'!B710=\"Subscriber\",\"-\",IF(AND('Enrollment Form'!B710<>\"Subscriber\",'Enrollment Form'!G710='Enrollment Form'!H710),\"N\",\"Y\")))","v":""},0]
[711,{"$f":"IF('Enrollment Form'!$A711<>\"\",\"Y\",\"N\")","v":"N"},{"$f":"IF(AND('Enrollment Form'!$B711=\"\",'Enrollment Form'!$C711<>\"\"),\"N\",IF($B704=\"N\",\"\",\"Y\"))","v":""},{"$f":"IF(OR($B704=\"N\",'Enrollment Form'!G711=\"\"),\"\",IF('Enrollment Form'!$B711<>\"Subscriber\",\"\",IF('Enrollment Form'!$G711='Enrollment Form'!$H711,\"Y\",\"N\")))","v":""},{"$f":"IF($B704=\"N\",\"\",IF(AND(COUNTIFS('Enrollment Form'!$H$11:$H$1000,'Enrollment Form'!$H711,'Enrollment Form'!$B$11:$B$1000,'Enrollment Form'!$B711)>1,'Enrollment Form'!$H711<>\"\"),\"N\",\"Y\"))","v":""},{"$f":"IF($B704=\"N\",\"\",IF(LEN('Enrollment Form'!$Y711)=0,\"\",IF(LEN('Enrollment Form'!$Y711)<>5,\"N\",\"Y\")))","v":""},{"$f":"IF($B704=\"N\",\"\",IF(LEN('Enrollment Form'!$AD711=0),\"\",IF(LEN('Enrollment Form'!$AD711)<>5,\"N\",\"Y\")))","v":""},{"$f":"IF($B704=\"N\",\"\",IF(LEN('Enrollment Form'!$BL711=0),\"\",IF(LEN('Enrollment Form'!$BL711)<>5,\"N\",\"Y\")))","v":""},{"$f":"IF($B704=\"N\",\"\",IF(LEN('Enrollment Form'!$AE711)=0,\"\",IF(LEN('Enrollment Form'!$AE711)<>10,\"N\",\"Y\")))","v":""},{"$f":"IF($B704=\"N\",\"\",IF(LEN('Enrollment Form'!$AF711)=0,\"\",IF(LEN('Enrollment Form'!$AF711)<>10,\"N\",\"Y\")))","v":""},{"$f":"IF('Enrollment Form'!$O711<>\"Graded\",\"-\",IF(AND('Enrollment Form'!$O711=\"Graded\",'Enrollment Form'!$AO711<>\"\"),\"Y\",\"N\"))","v":"-"},{"$f":"IF($B704=\"N\",\"\",IF(OR('Enrollment Form'!$B711<>\"Subscriber\",'Enrollment Form'!$C711=\"ROC\"),\"-\",IF(AND('Enrollment Form'!$B711=\"Subscriber\",'Enrollment Form'!$C711=\"Enroll\",'Enrollment Form'!$AJ711<>\"\"),\"Y\",\"N\")))","v":""},{"$f":"IF($B704=\"N\",\"\",IF(OR('Enrollment Form'!$B711<>\"Subscriber\",'Enrollment Form'!$C711=\"ROC\"),\"-\",IF(AND('Enrollment Form'!$B711=\"Subscriber\",'Enrollment Form'!$C711=\"Enroll\",'Enrollment Form'!$AK711<>\"\"),\"Y\",\"N\")))","v":""},{"$f":"IF($B704=\"N\",\"\",IF(OR('Enrollment Form'!$B711<>\"Subscriber\",'Enrollment Form'!$C711=\"ROC\"),\"-\",IF(AND('Enrollment Form'!$B711=\"Subscriber\",'Enrollment Form'!$C711=\"Enroll\",'Enrollment Form'!$AL711<>\"\"),\"Y\",\"N\")))","v":""},{"$f":"IF($B704=\"N\",\"\",IF(OR('Enrollment Form'!$B711<>\"Subscriber\",'Enrollment Form'!$C711=\"ROC\"),\"-\",IF(AND('Enrollment Form'!$B711=\"Subscriber\",'Enrollment Form'!$C711=\"Enroll\",'Enrollment Form'!$AM711<>\"\"),\"Y\",\"N\")))","v":""},{"$f":"IF($B704=\"N\",\"\",IF(OR('Enrollment Form'!$B711<>\"Subscriber\",'Enrollment Form'!$C711=\"ROC\"),\"-\",IF(AND('Enrollment Form'!$B711=\"Subscriber\",'Enrollment Form'!$C711=\"Enroll\",'Enrollment Form'!$AN711<>\"\"),\"Y\",\"N\")))","v":""},{"$f":"IF($B704=\"N\",\"\",IF(OR('Enrollment Form'!$B711<>\"Subscriber\",'Enrollment Form'!$C711=\"ROC\"),\"-\",IF(AND('Enrollment Form'!$B711=\"Subscriber\",'Enrollment Form'!$C711=\"Enroll\",'Enrollment Form'!$AP711<>\"\"),\"Y\",\"N\")))","v":""},{"$f":"IF($B704=\"N\",\"\",IF($Q704=\"-\",\"-\",IF(AND($Q704=\"Y\",'Enrollment Form'!$AP711=\"No\"),\"-\",IF(AND($Q704=\"Y\",'Enrollment Form'!$AP711=\"Yes\",'Enrollment Form'!$AQ711<>\"\"),\"Y\",\"N\"))))","v":""},{"$f":"IF($B704=\"N\",\"\",IF(OR('Enrollment Form'!$B711<>\"Subscriber\",'Enrollment Form'!$C711=\"ROC\"),\"-\",IF(AND('Enrollment Form'!$B711=\"Subscriber\",'Enrollment Form'!$C711=\"Enroll\",'Enrollment Form'!$CO711<>\"\"),\"Y\",\"N\")))","v":""},{"$f":"IF($B704=\"N\",\"\",IF($S704=\"-\",\"-\",IF(AND($S704=\"Y\",'Enrollment Form'!$CO711=\"No\"),\"-\",IF(AND($S704=\"Y\",'Enrollment Form'!$CO711=\"Yes\",'Enrollment Form'!$CP711<>\"\"),\"Y\",\"N\"))))","v":""},{"$f":"IF(OR('Enrollment Form'!$AV711=\"Yes\",'Enrollment Form'!$AV711=\"\"),\"-\",IF(AND('Enrollment Form'!$AV711=\"No\",ISERROR(FIND(\"HMO\",VLOOKUP('Enrollment Form'!G711,'Enrollment Form'!H$11:J$1000,3,FALSE),1))=FALSE,COUNTA('Enrollment Form'!$AW711:$AZ711)=4),\"Y\",\"N\"))","v":"-"},{"$f":"IF($B704=\"N\",\"\",IF('Enrollment Form'!$B711=\"Subscriber\",\"-\",IF(COUNTA('Enrollment Form'!$BE711,'Enrollment Form'!$BG711)=2,\"Y\",\"N\")))","v":""},{"$f":"IF($B704=\"N\",\"\",IF(OR('Enrollment Form'!$AU711=\"\",'Enrollment Form'!$AU711=\"No\"),\"-\",IF(AND('Enrollment Form'!$AU711=\"Yes\",COUNTA('Enrollment Form'!$CK711)=1),\"Y\",\"N\")))","v":""},{"$f":"IF(OR('Enrollment Form'!$CK711=\"\",'Enrollment Form'!$CK711=\"No\"),\"-\",IF(COUNTA('Enrollment Form'!$CM711:$CN711)=2,\"Y\",\"N\"))","v":"-"},{"$f":"IF($B704=\"N\",\"\",IF(COUNTIF('Enrollment Form'!$CZ711:$DO711,\"Other\")=COUNTA('Enrollment Form'!$DF711,'Enrollment Form'!$DA711,'Enrollment Form'!$DK711,'Enrollment Form'!$DP711),\"Y\",\"N\"))","v":""},{"$f":"IF($B704=\"N\",\"\",IF(OR('Enrollment Form'!B711<>\"Subscriber\",'Enrollment Form'!C711=\"ROC\",COUNTIF('Enrollment Form'!AS711:AT711,\"Yes\")>=1),\"-\",IF(AND('Enrollment Form'!C711=\"Enroll\",COUNTIF('Enrollment Form'!AS711:AT711,\"No\")=2,'Enrollment Form'!AU711=\"\"),\"N\",\"Y\")))","v":""},{"$f":"IF(OR(B704=\"N\",'Enrollment Form'!B711<>\"Subscriber\",'Enrollment Form'!C711=\"ROC\",'Enrollment Form'!O711<>\"Multiple of Salary\"),\"-\",IF(COUNTA('Enrollment Form'!T711:U711)<2,\"N\",\"Y\"))","v":"-"},{"$f":"IF(B704=\"N\",\"\",IF(OR('Enrollment Form'!C711=\"ROC\",'Enrollment Form'!B711<>\"Subscriber\",'Enrollment Form'!O711=\"Waive\",'Enrollment Form'!O711=\"\"),\"-\",IF('Enrollment Form'!P711=\"\",\"N\",\"Y\")))","v":""},{"$f":"IF($B704=\"N\",\"\",IF(AND('Enrollment Form'!$C711=\"ROC\",'Enrollment Form'!$DS711<>\"\"),\"Y\",IF(AND('Enrollment Form'!$C711=\"ROC\",'Enrollment Form'!$DS711=\"\"),\"N\",IF(AND('Enrollment Form'!$C711=\"Enroll\",'Enrollment Form'!$B711=\"Subscriber\",'Enrollment Form'!$CQ711=\"No\",'Enrollment Form'!$DS711=\"\"),\"N\",IF(AND('Enrollment Form'!$C711=\"Enroll\",'Enrollment Form'!$B711=\"Subscriber\",'Enrollment Form'!$CQ711=\"Yes\"),\"-\",\"Y\")))))","v":""},{"$f":"IF($B704=\"N\",\"\",IF(AND('Enrollment Form'!$C711=\"ROC\",'Enrollment Form'!$DT711<>\"\"),\"Y\",IF(AND('Enrollment Form'!$C711=\"ROC\",'Enrollment Form'!$DT711=\"\"),\"N\",IF(AND('Enrollment Form'!$C711=\"Enroll\",'Enrollment Form'!$B711=\"Subscriber\",'Enrollment Form'!$CQ711=\"No\",'Enrollment Form'!$DT711=\"\"),\"N\",IF(AND('Enrollment Form'!$C711=\"Enroll\",'Enrollment Form'!$B711=\"Subscriber\",'Enrollment Form'!$CQ711=\"Yes\"),\"-\",\"Y\")))))","v":""},{"$f":"IF('Enrollment Form'!AH711=\"\",\"\",IF(ISERROR(SEARCH(\".\",'Enrollment Form'!AH711,SEARCH(\"@\",'Enrollment Form'!AH711))),\"N\",\"Y\"))","v":""},{"$f":"IF(OR($B704=\"N\",'Enrollment Form'!$G711=\"\"),\"\",IF('Enrollment Form'!$B711<>\"Subscriber\",\"-\",IF(COUNTIF('Enrollment Form'!$AS711:$AT711,\"Yes\")=2,\"N\",\"Y\")))","v":""},{"$f":"IF(OR('Enrollment Form'!$CC711=\"\",'Enrollment Form'!$CC711=\"No\"),\"-\",IF(AND('Enrollment Form'!$CC711=\"Yes\",'Enrollment Form'!$CD711=\"\"),\"N\",\"Y\"))","v":"-"},{"$f":"IF(OR('Enrollment Form'!$CE711=\"\",'Enrollment Form'!$CE711=\"No\"),\"-\",IF(AND('Enrollment Form'!$CE711=\"Yes\",'Enrollment Form'!$CF711=\"\"),\"N\",\"Y\"))","v":"-"},{"$f":"IF(OR('Enrollment Form'!$CG711=\"\",'Enrollment Form'!$CG711=\"No\"),\"-\",IF(AND('Enrollment Form'!$CG711=\"Yes\",'Enrollment Form'!$CH711=\"\"),\"N\",\"Y\"))","v":"-"},{"$f":"IF(OR('Enrollment Form'!$CG711=\"\",'Enrollment Form'!$CG711=\"No\"),\"-\",IF(AND('Enrollment Form'!$CG711=\"Yes\",'Enrollment Form'!$CI711=\"\"),\"N\",\"Y\"))","v":"-"},{"$f":"IF('Enrollment Form'!B711<>\"Subscriber\",\"-\",IF(AND('Enrollment Form'!B711=\"Subscriber\",'Enrollment Form'!C711=\"Enroll\",'Enrollment Form'!AA711=\"\"),\"N\",\"Y\"))","v":"-"},{"$f":"IF(OR('Enrollment Form'!B711=\"Subscriber\",'Enrollment Form'!B711=\"\"),\"-\",IF('Enrollment Form'!BI711=\"\",\"N\",\"Y\"))","v":"-"},{"$f":"IF('Enrollment Form'!B711<>\"Subscriber\",\"-\",IF(AND('Enrollment Form'!B711=\"Subscriber\",'Enrollment Form'!G711=\"\"),\"N\",\"Y\"))","v":"-"},{"$f":"IF('Enrollment Form'!A711=\"\",\"\",IF('Enrollment Form'!B711=\"Subscriber\",\"-\",IF(AND('Enrollment Form'!B711<>\"Subscriber\",'Enrollment Form'!G711='Enrollment Form'!H711),\"N\",\"Y\")))","v":""},0]
[712,{"$f":"IF('Enrollment Form'!$A712<>\"\",\"Y\",\"N\")","v":"N"},{"$f":"IF(AND('Enrollment Form'!$B712=\"\",'Enrollment Form'!$C712<>\"\"),\"N\",IF($B705=\"N\",\"\",\"Y\"))","v":""},{"$f":"IF(OR($B705=\"N\",'Enrollment Form'!G712=\"\"),\"\",IF('Enrollment Form'!$B712<>\"Subscriber\",\"\",IF('Enrollment Form'!$G712='Enrollment Form'!$H712,\"Y\",\"N\")))","v":""},{"$f":"IF($B705=\"N\",\"\",IF(AND(COUNTIFS('Enrollment Form'!$H$11:$H$1000,'Enrollment Form'!$H712,'Enrollment Form'!$B$11:$B$1000,'Enrollment Form'!$B712)>1,'Enrollment Form'!$H712<>\"\"),\"N\",\"Y\"))","v":""},{"$f":"IF($B705=\"N\",\"\",IF(LEN('Enrollment Form'!$Y712)=0,\"\",IF(LEN('Enrollment Form'!$Y712)<>5,\"N\",\"Y\")))","v":""},{"$f":"IF($B705=\"N\",\"\",IF(LEN('Enrollment Form'!$AD712=0),\"\",IF(LEN('Enrollment Form'!$AD712)<>5,\"N\",\"Y\")))","v":""},{"$f":"IF($B705=\"N\",\"\",IF(LEN('Enrollment Form'!$BL712=0),\"\",IF(LEN('Enrollment Form'!$BL712)<>5,\"N\",\"Y\")))","v":""},{"$f":"IF($B705=\"N\",\"\",IF(LEN('Enrollment Form'!$AE712)=0,\"\",IF(LEN('Enrollment Form'!$AE712)<>10,\"N\",\"Y\")))","v":""},{"$f":"IF($B705=\"N\",\"\",IF(LEN('Enrollment Form'!$AF712)=0,\"\",IF(LEN('Enrollment Form'!$AF712)<>10,\"N\",\"Y\")))","v":""},{"$f":"IF('Enrollment Form'!$O712<>\"Graded\",\"-\",IF(AND('Enrollment Form'!$O712=\"Graded\",'Enrollment Form'!$AO712<>\"\"),\"Y\",\"N\"))","v":"-"},{"$f":"IF($B705=\"N\",\"\",IF(OR('Enrollment Form'!$B712<>\"Subscriber\",'Enrollment Form'!$C712=\"ROC\"),\"-\",IF(AND('Enrollment Form'!$B712=\"Subscriber\",'Enrollment Form'!$C712=\"Enroll\",'Enrollment Form'!$AJ712<>\"\"),\"Y\",\"N\")))","v":""},{"$f":"IF($B705=\"N\",\"\",IF(OR('Enrollment Form'!$B712<>\"Subscriber\",'Enrollment Form'!$C712=\"ROC\"),\"-\",IF(AND('Enrollment Form'!$B712=\"Subscriber\",'Enrollment Form'!$C712=\"Enroll\",'Enrollment Form'!$AK712<>\"\"),\"Y\",\"N\")))","v":""},{"$f":"IF($B705=\"N\",\"\",IF(OR('Enrollment Form'!$B712<>\"Subscriber\",'Enrollment Form'!$C712=\"ROC\"),\"-\",IF(AND('Enrollment Form'!$B712=\"Subscriber\",'Enrollment Form'!$C712=\"Enroll\",'Enrollment Form'!$AL712<>\"\"),\"Y\",\"N\")))","v":""},{"$f":"IF($B705=\"N\",\"\",IF(OR('Enrollment Form'!$B712<>\"Subscriber\",'Enrollment Form'!$C712=\"ROC\"),\"-\",IF(AND('Enrollment Form'!$B712=\"Subscriber\",'Enrollment Form'!$C712=\"Enroll\",'Enrollment Form'!$AM712<>\"\"),\"Y\",\"N\")))","v":""},{"$f":"IF($B705=\"N\",\"\",IF(OR('Enrollment Form'!$B712<>\"Subscriber\",'Enrollment Form'!$C712=\"ROC\"),\"-\",IF(AND('Enrollment Form'!$B712=\"Subscriber\",'Enrollment Form'!$C712=\"Enroll\",'Enrollment Form'!$AN712<>\"\"),\"Y\",\"N\")))","v":""},{"$f":"IF($B705=\"N\",\"\",IF(OR('Enrollment Form'!$B712<>\"Subscriber\",'Enrollment Form'!$C712=\"ROC\"),\"-\",IF(AND('Enrollment Form'!$B712=\"Subscriber\",'Enrollment Form'!$C712=\"Enroll\",'Enrollment Form'!$AP712<>\"\"),\"Y\",\"N\")))","v":""},{"$f":"IF($B705=\"N\",\"\",IF($Q705=\"-\",\"-\",IF(AND($Q705=\"Y\",'Enrollment Form'!$AP712=\"No\"),\"-\",IF(AND($Q705=\"Y\",'Enrollment Form'!$AP712=\"Yes\",'Enrollment Form'!$AQ712<>\"\"),\"Y\",\"N\"))))","v":""},{"$f":"IF($B705=\"N\",\"\",IF(OR('Enrollment Form'!$B712<>\"Subscriber\",'Enrollment Form'!$C712=\"ROC\"),\"-\",IF(AND('Enrollment Form'!$B712=\"Subscriber\",'Enrollment Form'!$C712=\"Enroll\",'Enrollment Form'!$CO712<>\"\"),\"Y\",\"N\")))","v":""},{"$f":"IF($B705=\"N\",\"\",IF($S705=\"-\",\"-\",IF(AND($S705=\"Y\",'Enrollment Form'!$CO712=\"No\"),\"-\",IF(AND($S705=\"Y\",'Enrollment Form'!$CO712=\"Yes\",'Enrollment Form'!$CP712<>\"\"),\"Y\",\"N\"))))","v":""},{"$f":"IF(OR('Enrollment Form'!$AV712=\"Yes\",'Enrollment Form'!$AV712=\"\"),\"-\",IF(AND('Enrollment Form'!$AV712=\"No\",ISERROR(FIND(\"HMO\",VLOOKUP('Enrollment Form'!G712,'Enrollment Form'!H$11:J$1000,3,FALSE),1))=FALSE,COUNTA('Enrollment Form'!$AW712:$AZ712)=4),\"Y\",\"N\"))","v":"-"},{"$f":"IF($B705=\"N\",\"\",IF('Enrollment Form'!$B712=\"Subscriber\",\"-\",IF(COUNTA('Enrollment Form'!$BE712,'Enrollment Form'!$BG712)=2,\"Y\",\"N\")))","v":""},{"$f":"IF($B705=\"N\",\"\",IF(OR('Enrollment Form'!$AU712=\"\",'Enrollment Form'!$AU712=\"No\"),\"-\",IF(AND('Enrollment Form'!$AU712=\"Yes\",COUNTA('Enrollment Form'!$CK712)=1),\"Y\",\"N\")))","v":""},{"$f":"IF(OR('Enrollment Form'!$CK712=\"\",'Enrollment Form'!$CK712=\"No\"),\"-\",IF(COUNTA('Enrollment Form'!$CM712:$CN712)=2,\"Y\",\"N\"))","v":"-"},{"$f":"IF($B705=\"N\",\"\",IF(COUNTIF('Enrollment Form'!$CZ712:$DO712,\"Other\")=COUNTA('Enrollment Form'!$DF712,'Enrollment Form'!$DA712,'Enrollment Form'!$DK712,'Enrollment Form'!$DP712),\"Y\",\"N\"))","v":""},{"$f":"IF($B705=\"N\",\"\",IF(OR('Enrollment Form'!B712<>\"Subscriber\",'Enrollment Form'!C712=\"ROC\",COUNTIF('Enrollment Form'!AS712:AT712,\"Yes\")>=1),\"-\",IF(AND('Enrollment Form'!C712=\"Enroll\",COUNTIF('Enrollment Form'!AS712:AT712,\"No\")=2,'Enrollment Form'!AU712=\"\"),\"N\",\"Y\")))","v":""},{"$f":"IF(OR(B705=\"N\",'Enrollment Form'!B712<>\"Subscriber\",'Enrollment Form'!C712=\"ROC\",'Enrollment Form'!O712<>\"Multiple of Salary\"),\"-\",IF(COUNTA('Enrollment Form'!T712:U712)<2,\"N\",\"Y\"))","v":"-"},{"$f":"IF(B705=\"N\",\"\",IF(OR('Enrollment Form'!C712=\"ROC\",'Enrollment Form'!B712<>\"Subscriber\",'Enrollment Form'!O712=\"Waive\",'Enrollment Form'!O712=\"\"),\"-\",IF('Enrollment Form'!P712=\"\",\"N\",\"Y\")))","v":""},{"$f":"IF($B705=\"N\",\"\",IF(AND('Enrollment Form'!$C712=\"ROC\",'Enrollment Form'!$DS712<>\"\"),\"Y\",IF(AND('Enrollment Form'!$C712=\"ROC\",'Enrollment Form'!$DS712=\"\"),\"N\",IF(AND('Enrollment Form'!$C712=\"Enroll\",'Enrollment Form'!$B712=\"Subscriber\",'Enrollment Form'!$CQ712=\"No\",'Enrollment Form'!$DS712=\"\"),\"N\",IF(AND('Enrollment Form'!$C712=\"Enroll\",'Enrollment Form'!$B712=\"Subscriber\",'Enrollment Form'!$CQ712=\"Yes\"),\"-\",\"Y\")))))","v":""},{"$f":"IF($B705=\"N\",\"\",IF(AND('Enrollment Form'!$C712=\"ROC\",'Enrollment Form'!$DT712<>\"\"),\"Y\",IF(AND('Enrollment Form'!$C712=\"ROC\",'Enrollment Form'!$DT712=\"\"),\"N\",IF(AND('Enrollment Form'!$C712=\"Enroll\",'Enrollment Form'!$B712=\"Subscriber\",'Enrollment Form'!$CQ712=\"No\",'Enrollment Form'!$DT712=\"\"),\"N\",IF(AND('Enrollment Form'!$C712=\"Enroll\",'Enrollment Form'!$B712=\"Subscriber\",'Enrollment Form'!$CQ712=\"Yes\"),\"-\",\"Y\")))))","v":""},{"$f":"IF('Enrollment Form'!AH712=\"\",\"\",IF(ISERROR(SEARCH(\".\",'Enrollment Form'!AH712,SEARCH(\"@\",'Enrollment Form'!AH712))),\"N\",\"Y\"))","v":""},{"$f":"IF(OR($B705=\"N\",'Enrollment Form'!$G712=\"\"),\"\",IF('Enrollment Form'!$B712<>\"Subscriber\",\"-\",IF(COUNTIF('Enrollment Form'!$AS712:$AT712,\"Yes\")=2,\"N\",\"Y\")))","v":""},{"$f":"IF(OR('Enrollment Form'!$CC712=\"\",'Enrollment Form'!$CC712=\"No\"),\"-\",IF(AND('Enrollment Form'!$CC712=\"Yes\",'Enrollment Form'!$CD712=\"\"),\"N\",\"Y\"))","v":"-"},{"$f":"IF(OR('Enrollment Form'!$CE712=\"\",'Enrollment Form'!$CE712=\"No\"),\"-\",IF(AND('Enrollment Form'!$CE712=\"Yes\",'Enrollment Form'!$CF712=\"\"),\"N\",\"Y\"))","v":"-"},{"$f":"IF(OR('Enrollment Form'!$CG712=\"\",'Enrollment Form'!$CG712=\"No\"),\"-\",IF(AND('Enrollment Form'!$CG712=\"Yes\",'Enrollment Form'!$CH712=\"\"),\"N\",\"Y\"))","v":"-"},{"$f":"IF(OR('Enrollment Form'!$CG712=\"\",'Enrollment Form'!$CG712=\"No\"),\"-\",IF(AND('Enrollment Form'!$CG712=\"Yes\",'Enrollment Form'!$CI712=\"\"),\"N\",\"Y\"))","v":"-"},{"$f":"IF('Enrollment Form'!B712<>\"Subscriber\",\"-\",IF(AND('Enrollment Form'!B712=\"Subscriber\",'Enrollment Form'!C712=\"Enroll\",'Enrollment Form'!AA712=\"\"),\"N\",\"Y\"))","v":"-"},{"$f":"IF(OR('Enrollment Form'!B712=\"Subscriber\",'Enrollment Form'!B712=\"\"),\"-\",IF('Enrollment Form'!BI712=\"\",\"N\",\"Y\"))","v":"-"},{"$f":"IF('Enrollment Form'!B712<>\"Subscriber\",\"-\",IF(AND('Enrollment Form'!B712=\"Subscriber\",'Enrollment Form'!G712=\"\"),\"N\",\"Y\"))","v":"-"},{"$f":"IF('Enrollment Form'!A712=\"\",\"\",IF('Enrollment Form'!B712=\"Subscriber\",\"-\",IF(AND('Enrollment Form'!B712<>\"Subscriber\",'Enrollment Form'!G712='Enrollment Form'!H712),\"N\",\"Y\")))","v":""},0]
[713,{"$f":"IF('Enrollment Form'!$A713<>\"\",\"Y\",\"N\")","v":"N"},{"$f":"IF(AND('Enrollment Form'!$B713=\"\",'Enrollment Form'!$C713<>\"\"),\"N\",IF($B706=\"N\",\"\",\"Y\"))","v":""},{"$f":"IF(OR($B706=\"N\",'Enrollment Form'!G713=\"\"),\"\",IF('Enrollment Form'!$B713<>\"Subscriber\",\"\",IF('Enrollment Form'!$G713='Enrollment Form'!$H713,\"Y\",\"N\")))","v":""},{"$f":"IF($B706=\"N\",\"\",IF(AND(COUNTIFS('Enrollment Form'!$H$11:$H$1000,'Enrollment Form'!$H713,'Enrollment Form'!$B$11:$B$1000,'Enrollment Form'!$B713)>1,'Enrollment Form'!$H713<>\"\"),\"N\",\"Y\"))","v":""},{"$f":"IF($B706=\"N\",\"\",IF(LEN('Enrollment Form'!$Y713)=0,\"\",IF(LEN('Enrollment Form'!$Y713)<>5,\"N\",\"Y\")))","v":""},{"$f":"IF($B706=\"N\",\"\",IF(LEN('Enrollment Form'!$AD713=0),\"\",IF(LEN('Enrollment Form'!$AD713)<>5,\"N\",\"Y\")))","v":""},{"$f":"IF($B706=\"N\",\"\",IF(LEN('Enrollment Form'!$BL713=0),\"\",IF(LEN('Enrollment Form'!$BL713)<>5,\"N\",\"Y\")))","v":""},{"$f":"IF($B706=\"N\",\"\",IF(LEN('Enrollment Form'!$AE713)=0,\"\",IF(LEN('Enrollment Form'!$AE713)<>10,\"N\",\"Y\")))","v":""},{"$f":"IF($B706=\"N\",\"\",IF(LEN('Enrollment Form'!$AF713)=0,\"\",IF(LEN('Enrollment Form'!$AF713)<>10,\"N\",\"Y\")))","v":""},{"$f":"IF('Enrollment Form'!$O713<>\"Graded\",\"-\",IF(AND('Enrollment Form'!$O713=\"Graded\",'Enrollment Form'!$AO713<>\"\"),\"Y\",\"N\"))","v":"-"},{"$f":"IF($B706=\"N\",\"\",IF(OR('Enrollment Form'!$B713<>\"Subscriber\",'Enrollment Form'!$C713=\"ROC\"),\"-\",IF(AND('Enrollment Form'!$B713=\"Subscriber\",'Enrollment Form'!$C713=\"Enroll\",'Enrollment Form'!$AJ713<>\"\"),\"Y\",\"N\")))","v":""},{"$f":"IF($B706=\"N\",\"\",IF(OR('Enrollment Form'!$B713<>\"Subscriber\",'Enrollment Form'!$C713=\"ROC\"),\"-\",IF(AND('Enrollment Form'!$B713=\"Subscriber\",'Enrollment Form'!$C713=\"Enroll\",'Enrollment Form'!$AK713<>\"\"),\"Y\",\"N\")))","v":""},{"$f":"IF($B706=\"N\",\"\",IF(OR('Enrollment Form'!$B713<>\"Subscriber\",'Enrollment Form'!$C713=\"ROC\"),\"-\",IF(AND('Enrollment Form'!$B713=\"Subscriber\",'Enrollment Form'!$C713=\"Enroll\",'Enrollment Form'!$AL713<>\"\"),\"Y\",\"N\")))","v":""},{"$f":"IF($B706=\"N\",\"\",IF(OR('Enrollment Form'!$B713<>\"Subscriber\",'Enrollment Form'!$C713=\"ROC\"),\"-\",IF(AND('Enrollment Form'!$B713=\"Subscriber\",'Enrollment Form'!$C713=\"Enroll\",'Enrollment Form'!$AM713<>\"\"),\"Y\",\"N\")))","v":""},{"$f":"IF($B706=\"N\",\"\",IF(OR('Enrollment Form'!$B713<>\"Subscriber\",'Enrollment Form'!$C713=\"ROC\"),\"-\",IF(AND('Enrollment Form'!$B713=\"Subscriber\",'Enrollment Form'!$C713=\"Enroll\",'Enrollment Form'!$AN713<>\"\"),\"Y\",\"N\")))","v":""},{"$f":"IF($B706=\"N\",\"\",IF(OR('Enrollment Form'!$B713<>\"Subscriber\",'Enrollment Form'!$C713=\"ROC\"),\"-\",IF(AND('Enrollment Form'!$B713=\"Subscriber\",'Enrollment Form'!$C713=\"Enroll\",'Enrollment Form'!$AP713<>\"\"),\"Y\",\"N\")))","v":""},{"$f":"IF($B706=\"N\",\"\",IF($Q706=\"-\",\"-\",IF(AND($Q706=\"Y\",'Enrollment Form'!$AP713=\"No\"),\"-\",IF(AND($Q706=\"Y\",'Enrollment Form'!$AP713=\"Yes\",'Enrollment Form'!$AQ713<>\"\"),\"Y\",\"N\"))))","v":""},{"$f":"IF($B706=\"N\",\"\",IF(OR('Enrollment Form'!$B713<>\"Subscriber\",'Enrollment Form'!$C713=\"ROC\"),\"-\",IF(AND('Enrollment Form'!$B713=\"Subscriber\",'Enrollment Form'!$C713=\"Enroll\",'Enrollment Form'!$CO713<>\"\"),\"Y\",\"N\")))","v":""},{"$f":"IF($B706=\"N\",\"\",IF($S706=\"-\",\"-\",IF(AND($S706=\"Y\",'Enrollment Form'!$CO713=\"No\"),\"-\",IF(AND($S706=\"Y\",'Enrollment Form'!$CO713=\"Yes\",'Enrollment Form'!$CP713<>\"\"),\"Y\",\"N\"))))","v":""},{"$f":"IF(OR('Enrollment Form'!$AV713=\"Yes\",'Enrollment Form'!$AV713=\"\"),\"-\",IF(AND('Enrollment Form'!$AV713=\"No\",ISERROR(FIND(\"HMO\",VLOOKUP('Enrollment Form'!G713,'Enrollment Form'!H$11:J$1000,3,FALSE),1))=FALSE,COUNTA('Enrollment Form'!$AW713:$AZ713)=4),\"Y\",\"N\"))","v":"-"},{"$f":"IF($B706=\"N\",\"\",IF('Enrollment Form'!$B713=\"Subscriber\",\"-\",IF(COUNTA('Enrollment Form'!$BE713,'Enrollment Form'!$BG713)=2,\"Y\",\"N\")))","v":""},{"$f":"IF($B706=\"N\",\"\",IF(OR('Enrollment Form'!$AU713=\"\",'Enrollment Form'!$AU713=\"No\"),\"-\",IF(AND('Enrollment Form'!$AU713=\"Yes\",COUNTA('Enrollment Form'!$CK713)=1),\"Y\",\"N\")))","v":""},{"$f":"IF(OR('Enrollment Form'!$CK713=\"\",'Enrollment Form'!$CK713=\"No\"),\"-\",IF(COUNTA('Enrollment Form'!$CM713:$CN713)=2,\"Y\",\"N\"))","v":"-"},{"$f":"IF($B706=\"N\",\"\",IF(COUNTIF('Enrollment Form'!$CZ713:$DO713,\"Other\")=COUNTA('Enrollment Form'!$DF713,'Enrollment Form'!$DA713,'Enrollment Form'!$DK713,'Enrollment Form'!$DP713),\"Y\",\"N\"))","v":""},{"$f":"IF($B706=\"N\",\"\",IF(OR('Enrollment Form'!B713<>\"Subscriber\",'Enrollment Form'!C713=\"ROC\",COUNTIF('Enrollment Form'!AS713:AT713,\"Yes\")>=1),\"-\",IF(AND('Enrollment Form'!C713=\"Enroll\",COUNTIF('Enrollment Form'!AS713:AT713,\"No\")=2,'Enrollment Form'!AU713=\"\"),\"N\",\"Y\")))","v":""},{"$f":"IF(OR(B706=\"N\",'Enrollment Form'!B713<>\"Subscriber\",'Enrollment Form'!C713=\"ROC\",'Enrollment Form'!O713<>\"Multiple of Salary\"),\"-\",IF(COUNTA('Enrollment Form'!T713:U713)<2,\"N\",\"Y\"))","v":"-"},{"$f":"IF(B706=\"N\",\"\",IF(OR('Enrollment Form'!C713=\"ROC\",'Enrollment Form'!B713<>\"Subscriber\",'Enrollment Form'!O713=\"Waive\",'Enrollment Form'!O713=\"\"),\"-\",IF('Enrollment Form'!P713=\"\",\"N\",\"Y\")))","v":""},{"$f":"IF($B706=\"N\",\"\",IF(AND('Enrollment Form'!$C713=\"ROC\",'Enrollment Form'!$DS713<>\"\"),\"Y\",IF(AND('Enrollment Form'!$C713=\"ROC\",'Enrollment Form'!$DS713=\"\"),\"N\",IF(AND('Enrollment Form'!$C713=\"Enroll\",'Enrollment Form'!$B713=\"Subscriber\",'Enrollment Form'!$CQ713=\"No\",'Enrollment Form'!$DS713=\"\"),\"N\",IF(AND('Enrollment Form'!$C713=\"Enroll\",'Enrollment Form'!$B713=\"Subscriber\",'Enrollment Form'!$CQ713=\"Yes\"),\"-\",\"Y\")))))","v":""},{"$f":"IF($B706=\"N\",\"\",IF(AND('Enrollment Form'!$C713=\"ROC\",'Enrollment Form'!$DT713<>\"\"),\"Y\",IF(AND('Enrollment Form'!$C713=\"ROC\",'Enrollment Form'!$DT713=\"\"),\"N\",IF(AND('Enrollment Form'!$C713=\"Enroll\",'Enrollment Form'!$B713=\"Subscriber\",'Enrollment Form'!$CQ713=\"No\",'Enrollment Form'!$DT713=\"\"),\"N\",IF(AND('Enrollment Form'!$C713=\"Enroll\",'Enrollment Form'!$B713=\"Subscriber\",'Enrollment Form'!$CQ713=\"Yes\"),\"-\",\"Y\")))))","v":""},{"$f":"IF('Enrollment Form'!AH713=\"\",\"\",IF(ISERROR(SEARCH(\".\",'Enrollment Form'!AH713,SEARCH(\"@\",'Enrollment Form'!AH713))),\"N\",\"Y\"))","v":""},{"$f":"IF(OR($B706=\"N\",'Enrollment Form'!$G713=\"\"),\"\",IF('Enrollment Form'!$B713<>\"Subscriber\",\"-\",IF(COUNTIF('Enrollment Form'!$AS713:$AT713,\"Yes\")=2,\"N\",\"Y\")))","v":""},{"$f":"IF(OR('Enrollment Form'!$CC713=\"\",'Enrollment Form'!$CC713=\"No\"),\"-\",IF(AND('Enrollment Form'!$CC713=\"Yes\",'Enrollment Form'!$CD713=\"\"),\"N\",\"Y\"))","v":"-"},{"$f":"IF(OR('Enrollment Form'!$CE713=\"\",'Enrollment Form'!$CE713=\"No\"),\"-\",IF(AND('Enrollment Form'!$CE713=\"Yes\",'Enrollment Form'!$CF713=\"\"),\"N\",\"Y\"))","v":"-"},{"$f":"IF(OR('Enrollment Form'!$CG713=\"\",'Enrollment Form'!$CG713=\"No\"),\"-\",IF(AND('Enrollment Form'!$CG713=\"Yes\",'Enrollment Form'!$CH713=\"\"),\"N\",\"Y\"))","v":"-"},{"$f":"IF(OR('Enrollment Form'!$CG713=\"\",'Enrollment Form'!$CG713=\"No\"),\"-\",IF(AND('Enrollment Form'!$CG713=\"Yes\",'Enrollment Form'!$CI713=\"\"),\"N\",\"Y\"))","v":"-"},{"$f":"IF('Enrollment Form'!B713<>\"Subscriber\",\"-\",IF(AND('Enrollment Form'!B713=\"Subscriber\",'Enrollment Form'!C713=\"Enroll\",'Enrollment Form'!AA713=\"\"),\"N\",\"Y\"))","v":"-"},{"$f":"IF(OR('Enrollment Form'!B713=\"Subscriber\",'Enrollment Form'!B713=\"\"),\"-\",IF('Enrollment Form'!BI713=\"\",\"N\",\"Y\"))","v":"-"},{"$f":"IF('Enrollment Form'!B713<>\"Subscriber\",\"-\",IF(AND('Enrollment Form'!B713=\"Subscriber\",'Enrollment Form'!G713=\"\"),\"N\",\"Y\"))","v":"-"},{"$f":"IF('Enrollment Form'!A713=\"\",\"\",IF('Enrollment Form'!B713=\"Subscriber\",\"-\",IF(AND('Enrollment Form'!B713<>\"Subscriber\",'Enrollment Form'!G713='Enrollment Form'!H713),\"N\",\"Y\")))","v":""},0]
[714,{"$f":"IF('Enrollment Form'!$A714<>\"\",\"Y\",\"N\")","v":"N"},{"$f":"IF(AND('Enrollment Form'!$B714=\"\",'Enrollment Form'!$C714<>\"\"),\"N\",IF($B707=\"N\",\"\",\"Y\"))","v":""},{"$f":"IF(OR($B707=\"N\",'Enrollment Form'!G714=\"\"),\"\",IF('Enrollment Form'!$B714<>\"Subscriber\",\"\",IF('Enrollment Form'!$G714='Enrollment Form'!$H714,\"Y\",\"N\")))","v":""},{"$f":"IF($B707=\"N\",\"\",IF(AND(COUNTIFS('Enrollment Form'!$H$11:$H$1000,'Enrollment Form'!$H714,'Enrollment Form'!$B$11:$B$1000,'Enrollment Form'!$B714)>1,'Enrollment Form'!$H714<>\"\"),\"N\",\"Y\"))","v":""},{"$f":"IF($B707=\"N\",\"\",IF(LEN('Enrollment Form'!$Y714)=0,\"\",IF(LEN('Enrollment Form'!$Y714)<>5,\"N\",\"Y\")))","v":""},{"$f":"IF($B707=\"N\",\"\",IF(LEN('Enrollment Form'!$AD714=0),\"\",IF(LEN('Enrollment Form'!$AD714)<>5,\"N\",\"Y\")))","v":""},{"$f":"IF($B707=\"N\",\"\",IF(LEN('Enrollment Form'!$BL714=0),\"\",IF(LEN('Enrollment Form'!$BL714)<>5,\"N\",\"Y\")))","v":""},{"$f":"IF($B707=\"N\",\"\",IF(LEN('Enrollment Form'!$AE714)=0,\"\",IF(LEN('Enrollment Form'!$AE714)<>10,\"N\",\"Y\")))","v":""},{"$f":"IF($B707=\"N\",\"\",IF(LEN('Enrollment Form'!$AF714)=0,\"\",IF(LEN('Enrollment Form'!$AF714)<>10,\"N\",\"Y\")))","v":""},{"$f":"IF('Enrollment Form'!$O714<>\"Graded\",\"-\",IF(AND('Enrollment Form'!$O714=\"Graded\",'Enrollment Form'!$AO714<>\"\"),\"Y\",\"N\"))","v":"-"},{"$f":"IF($B707=\"N\",\"\",IF(OR('Enrollment Form'!$B714<>\"Subscriber\",'Enrollment Form'!$C714=\"ROC\"),\"-\",IF(AND('Enrollment Form'!$B714=\"Subscriber\",'Enrollment Form'!$C714=\"Enroll\",'Enrollment Form'!$AJ714<>\"\"),\"Y\",\"N\")))","v":""},{"$f":"IF($B707=\"N\",\"\",IF(OR('Enrollment Form'!$B714<>\"Subscriber\",'Enrollment Form'!$C714=\"ROC\"),\"-\",IF(AND('Enrollment Form'!$B714=\"Subscriber\",'Enrollment Form'!$C714=\"Enroll\",'Enrollment Form'!$AK714<>\"\"),\"Y\",\"N\")))","v":""},{"$f":"IF($B707=\"N\",\"\",IF(OR('Enrollment Form'!$B714<>\"Subscriber\",'Enrollment Form'!$C714=\"ROC\"),\"-\",IF(AND('Enrollment Form'!$B714=\"Subscriber\",'Enrollment Form'!$C714=\"Enroll\",'Enrollment Form'!$AL714<>\"\"),\"Y\",\"N\")))","v":""},{"$f":"IF($B707=\"N\",\"\",IF(OR('Enrollment Form'!$B714<>\"Subscriber\",'Enrollment Form'!$C714=\"ROC\"),\"-\",IF(AND('Enrollment Form'!$B714=\"Subscriber\",'Enrollment Form'!$C714=\"Enroll\",'Enrollment Form'!$AM714<>\"\"),\"Y\",\"N\")))","v":""},{"$f":"IF($B707=\"N\",\"\",IF(OR('Enrollment Form'!$B714<>\"Subscriber\",'Enrollment Form'!$C714=\"ROC\"),\"-\",IF(AND('Enrollment Form'!$B714=\"Subscriber\",'Enrollment Form'!$C714=\"Enroll\",'Enrollment Form'!$AN714<>\"\"),\"Y\",\"N\")))","v":""},{"$f":"IF($B707=\"N\",\"\",IF(OR('Enrollment Form'!$B714<>\"Subscriber\",'Enrollment Form'!$C714=\"ROC\"),\"-\",IF(AND('Enrollment Form'!$B714=\"Subscriber\",'Enrollment Form'!$C714=\"Enroll\",'Enrollment Form'!$AP714<>\"\"),\"Y\",\"N\")))","v":""},{"$f":"IF($B707=\"N\",\"\",IF($Q707=\"-\",\"-\",IF(AND($Q707=\"Y\",'Enrollment Form'!$AP714=\"No\"),\"-\",IF(AND($Q707=\"Y\",'Enrollment Form'!$AP714=\"Yes\",'Enrollment Form'!$AQ714<>\"\"),\"Y\",\"N\"))))","v":""},{"$f":"IF($B707=\"N\",\"\",IF(OR('Enrollment Form'!$B714<>\"Subscriber\",'Enrollment Form'!$C714=\"ROC\"),\"-\",IF(AND('Enrollment Form'!$B714=\"Subscriber\",'Enrollment Form'!$C714=\"Enroll\",'Enrollment Form'!$CO714<>\"\"),\"Y\",\"N\")))","v":""},{"$f":"IF($B707=\"N\",\"\",IF($S707=\"-\",\"-\",IF(AND($S707=\"Y\",'Enrollment Form'!$CO714=\"No\"),\"-\",IF(AND($S707=\"Y\",'Enrollment Form'!$CO714=\"Yes\",'Enrollment Form'!$CP714<>\"\"),\"Y\",\"N\"))))","v":""},{"$f":"IF(OR('Enrollment Form'!$AV714=\"Yes\",'Enrollment Form'!$AV714=\"\"),\"-\",IF(AND('Enrollment Form'!$AV714=\"No\",ISERROR(FIND(\"HMO\",VLOOKUP('Enrollment Form'!G714,'Enrollment Form'!H$11:J$1000,3,FALSE),1))=FALSE,COUNTA('Enrollment Form'!$AW714:$AZ714)=4),\"Y\",\"N\"))","v":"-"},{"$f":"IF($B707=\"N\",\"\",IF('Enrollment Form'!$B714=\"Subscriber\",\"-\",IF(COUNTA('Enrollment Form'!$BE714,'Enrollment Form'!$BG714)=2,\"Y\",\"N\")))","v":""},{"$f":"IF($B707=\"N\",\"\",IF(OR('Enrollment Form'!$AU714=\"\",'Enrollment Form'!$AU714=\"No\"),\"-\",IF(AND('Enrollment Form'!$AU714=\"Yes\",COUNTA('Enrollment Form'!$CK714)=1),\"Y\",\"N\")))","v":""},{"$f":"IF(OR('Enrollment Form'!$CK714=\"\",'Enrollment Form'!$CK714=\"No\"),\"-\",IF(COUNTA('Enrollment Form'!$CM714:$CN714)=2,\"Y\",\"N\"))","v":"-"},{"$f":"IF($B707=\"N\",\"\",IF(COUNTIF('Enrollment Form'!$CZ714:$DO714,\"Other\")=COUNTA('Enrollment Form'!$DF714,'Enrollment Form'!$DA714,'Enrollment Form'!$DK714,'Enrollment Form'!$DP714),\"Y\",\"N\"))","v":""},{"$f":"IF($B707=\"N\",\"\",IF(OR('Enrollment Form'!B714<>\"Subscriber\",'Enrollment Form'!C714=\"ROC\",COUNTIF('Enrollment Form'!AS714:AT714,\"Yes\")>=1),\"-\",IF(AND('Enrollment Form'!C714=\"Enroll\",COUNTIF('Enrollment Form'!AS714:AT714,\"No\")=2,'Enrollment Form'!AU714=\"\"),\"N\",\"Y\")))","v":""},{"$f":"IF(OR(B707=\"N\",'Enrollment Form'!B714<>\"Subscriber\",'Enrollment Form'!C714=\"ROC\",'Enrollment Form'!O714<>\"Multiple of Salary\"),\"-\",IF(COUNTA('Enrollment Form'!T714:U714)<2,\"N\",\"Y\"))","v":"-"},{"$f":"IF(B707=\"N\",\"\",IF(OR('Enrollment Form'!C714=\"ROC\",'Enrollment Form'!B714<>\"Subscriber\",'Enrollment Form'!O714=\"Waive\",'Enrollment Form'!O714=\"\"),\"-\",IF('Enrollment Form'!P714=\"\",\"N\",\"Y\")))","v":""},{"$f":"IF($B707=\"N\",\"\",IF(AND('Enrollment Form'!$C714=\"ROC\",'Enrollment Form'!$DS714<>\"\"),\"Y\",IF(AND('Enrollment Form'!$C714=\"ROC\",'Enrollment Form'!$DS714=\"\"),\"N\",IF(AND('Enrollment Form'!$C714=\"Enroll\",'Enrollment Form'!$B714=\"Subscriber\",'Enrollment Form'!$CQ714=\"No\",'Enrollment Form'!$DS714=\"\"),\"N\",IF(AND('Enrollment Form'!$C714=\"Enroll\",'Enrollment Form'!$B714=\"Subscriber\",'Enrollment Form'!$CQ714=\"Yes\"),\"-\",\"Y\")))))","v":""},{"$f":"IF($B707=\"N\",\"\",IF(AND('Enrollment Form'!$C714=\"ROC\",'Enrollment Form'!$DT714<>\"\"),\"Y\",IF(AND('Enrollment Form'!$C714=\"ROC\",'Enrollment Form'!$DT714=\"\"),\"N\",IF(AND('Enrollment Form'!$C714=\"Enroll\",'Enrollment Form'!$B714=\"Subscriber\",'Enrollment Form'!$CQ714=\"No\",'Enrollment Form'!$DT714=\"\"),\"N\",IF(AND('Enrollment Form'!$C714=\"Enroll\",'Enrollment Form'!$B714=\"Subscriber\",'Enrollment Form'!$CQ714=\"Yes\"),\"-\",\"Y\")))))","v":""},{"$f":"IF('Enrollment Form'!AH714=\"\",\"\",IF(ISERROR(SEARCH(\".\",'Enrollment Form'!AH714,SEARCH(\"@\",'Enrollment Form'!AH714))),\"N\",\"Y\"))","v":""},{"$f":"IF(OR($B707=\"N\",'Enrollment Form'!$G714=\"\"),\"\",IF('Enrollment Form'!$B714<>\"Subscriber\",\"-\",IF(COUNTIF('Enrollment Form'!$AS714:$AT714,\"Yes\")=2,\"N\",\"Y\")))","v":""},{"$f":"IF(OR('Enrollment Form'!$CC714=\"\",'Enrollment Form'!$CC714=\"No\"),\"-\",IF(AND('Enrollment Form'!$CC714=\"Yes\",'Enrollment Form'!$CD714=\"\"),\"N\",\"Y\"))","v":"-"},{"$f":"IF(OR('Enrollment Form'!$CE714=\"\",'Enrollment Form'!$CE714=\"No\"),\"-\",IF(AND('Enrollment Form'!$CE714=\"Yes\",'Enrollment Form'!$CF714=\"\"),\"N\",\"Y\"))","v":"-"},{"$f":"IF(OR('Enrollment Form'!$CG714=\"\",'Enrollment Form'!$CG714=\"No\"),\"-\",IF(AND('Enrollment Form'!$CG714=\"Yes\",'Enrollment Form'!$CH714=\"\"),\"N\",\"Y\"))","v":"-"},{"$f":"IF(OR('Enrollment Form'!$CG714=\"\",'Enrollment Form'!$CG714=\"No\"),\"-\",IF(AND('Enrollment Form'!$CG714=\"Yes\",'Enrollment Form'!$CI714=\"\"),\"N\",\"Y\"))","v":"-"},{"$f":"IF('Enrollment Form'!B714<>\"Subscriber\",\"-\",IF(AND('Enrollment Form'!B714=\"Subscriber\",'Enrollment Form'!C714=\"Enroll\",'Enrollment Form'!AA714=\"\"),\"N\",\"Y\"))","v":"-"},{"$f":"IF(OR('Enrollment Form'!B714=\"Subscriber\",'Enrollment Form'!B714=\"\"),\"-\",IF('Enrollment Form'!BI714=\"\",\"N\",\"Y\"))","v":"-"},{"$f":"IF('Enrollment Form'!B714<>\"Subscriber\",\"-\",IF(AND('Enrollment Form'!B714=\"Subscriber\",'Enrollment Form'!G714=\"\"),\"N\",\"Y\"))","v":"-"},{"$f":"IF('Enrollment Form'!A714=\"\",\"\",IF('Enrollment Form'!B714=\"Subscriber\",\"-\",IF(AND('Enrollment Form'!B714<>\"Subscriber\",'Enrollment Form'!G714='Enrollment Form'!H714),\"N\",\"Y\")))","v":""},0]
[715,{"$f":"IF('Enrollment Form'!$A715<>\"\",\"Y\",\"N\")","v":"N"},{"$f":"IF(AND('Enrollment Form'!$B715=\"\",'Enrollment Form'!$C715<>\"\"),\"N\",IF($B708=\"N\",\"\",\"Y\"))","v":""},{"$f":"IF(OR($B708=\"N\",'Enrollment Form'!G715=\"\"),\"\",IF('Enrollment Form'!$B715<>\"Subscriber\",\"\",IF('Enrollment Form'!$G715='Enrollment Form'!$H715,\"Y\",\"N\")))","v":""},{"$f":"IF($B708=\"N\",\"\",IF(AND(COUNTIFS('Enrollment Form'!$H$11:$H$1000,'Enrollment Form'!$H715,'Enrollment Form'!$B$11:$B$1000,'Enrollment Form'!$B715)>1,'Enrollment Form'!$H715<>\"\"),\"N\",\"Y\"))","v":""},{"$f":"IF($B708=\"N\",\"\",IF(LEN('Enrollment Form'!$Y715)=0,\"\",IF(LEN('Enrollment Form'!$Y715)<>5,\"N\",\"Y\")))","v":""},{"$f":"IF($B708=\"N\",\"\",IF(LEN('Enrollment Form'!$AD715=0),\"\",IF(LEN('Enrollment Form'!$AD715)<>5,\"N\",\"Y\")))","v":""},{"$f":"IF($B708=\"N\",\"\",IF(LEN('Enrollment Form'!$BL715=0),\"\",IF(LEN('Enrollment Form'!$BL715)<>5,\"N\",\"Y\")))","v":""},{"$f":"IF($B708=\"N\",\"\",IF(LEN('Enrollment Form'!$AE715)=0,\"\",IF(LEN('Enrollment Form'!$AE715)<>10,\"N\",\"Y\")))","v":""},{"$f":"IF($B708=\"N\",\"\",IF(LEN('Enrollment Form'!$AF715)=0,\"\",IF(LEN('Enrollment Form'!$AF715)<>10,\"N\",\"Y\")))","v":""},{"$f":"IF('Enrollment Form'!$O715<>\"Graded\",\"-\",IF(AND('Enrollment Form'!$O715=\"Graded\",'Enrollment Form'!$AO715<>\"\"),\"Y\",\"N\"))","v":"-"},{"$f":"IF($B708=\"N\",\"\",IF(OR('Enrollment Form'!$B715<>\"Subscriber\",'Enrollment Form'!$C715=\"ROC\"),\"-\",IF(AND('Enrollment Form'!$B715=\"Subscriber\",'Enrollment Form'!$C715=\"Enroll\",'Enrollment Form'!$AJ715<>\"\"),\"Y\",\"N\")))","v":""},{"$f":"IF($B708=\"N\",\"\",IF(OR('Enrollment Form'!$B715<>\"Subscriber\",'Enrollment Form'!$C715=\"ROC\"),\"-\",IF(AND('Enrollment Form'!$B715=\"Subscriber\",'Enrollment Form'!$C715=\"Enroll\",'Enrollment Form'!$AK715<>\"\"),\"Y\",\"N\")))","v":""},{"$f":"IF($B708=\"N\",\"\",IF(OR('Enrollment Form'!$B715<>\"Subscriber\",'Enrollment Form'!$C715=\"ROC\"),\"-\",IF(AND('Enrollment Form'!$B715=\"Subscriber\",'Enrollment Form'!$C715=\"Enroll\",'Enrollment Form'!$AL715<>\"\"),\"Y\",\"N\")))","v":""},{"$f":"IF($B708=\"N\",\"\",IF(OR('Enrollment Form'!$B715<>\"Subscriber\",'Enrollment Form'!$C715=\"ROC\"),\"-\",IF(AND('Enrollment Form'!$B715=\"Subscriber\",'Enrollment Form'!$C715=\"Enroll\",'Enrollment Form'!$AM715<>\"\"),\"Y\",\"N\")))","v":""},{"$f":"IF($B708=\"N\",\"\",IF(OR('Enrollment Form'!$B715<>\"Subscriber\",'Enrollment Form'!$C715=\"ROC\"),\"-\",IF(AND('Enrollment Form'!$B715=\"Subscriber\",'Enrollment Form'!$C715=\"Enroll\",'Enrollment Form'!$AN715<>\"\"),\"Y\",\"N\")))","v":""},{"$f":"IF($B708=\"N\",\"\",IF(OR('Enrollment Form'!$B715<>\"Subscriber\",'Enrollment Form'!$C715=\"ROC\"),\"-\",IF(AND('Enrollment Form'!$B715=\"Subscriber\",'Enrollment Form'!$C715=\"Enroll\",'Enrollment Form'!$AP715<>\"\"),\"Y\",\"N\")))","v":""},{"$f":"IF($B708=\"N\",\"\",IF($Q708=\"-\",\"-\",IF(AND($Q708=\"Y\",'Enrollment Form'!$AP715=\"No\"),\"-\",IF(AND($Q708=\"Y\",'Enrollment Form'!$AP715=\"Yes\",'Enrollment Form'!$AQ715<>\"\"),\"Y\",\"N\"))))","v":""},{"$f":"IF($B708=\"N\",\"\",IF(OR('Enrollment Form'!$B715<>\"Subscriber\",'Enrollment Form'!$C715=\"ROC\"),\"-\",IF(AND('Enrollment Form'!$B715=\"Subscriber\",'Enrollment Form'!$C715=\"Enroll\",'Enrollment Form'!$CO715<>\"\"),\"Y\",\"N\")))","v":""},{"$f":"IF($B708=\"N\",\"\",IF($S708=\"-\",\"-\",IF(AND($S708=\"Y\",'Enrollment Form'!$CO715=\"No\"),\"-\",IF(AND($S708=\"Y\",'Enrollment Form'!$CO715=\"Yes\",'Enrollment Form'!$CP715<>\"\"),\"Y\",\"N\"))))","v":""},{"$f":"IF(OR('Enrollment Form'!$AV715=\"Yes\",'Enrollment Form'!$AV715=\"\"),\"-\",IF(AND('Enrollment Form'!$AV715=\"No\",ISERROR(FIND(\"HMO\",VLOOKUP('Enrollment Form'!G715,'Enrollment Form'!H$11:J$1000,3,FALSE),1))=FALSE,COUNTA('Enrollment Form'!$AW715:$AZ715)=4),\"Y\",\"N\"))","v":"-"},{"$f":"IF($B708=\"N\",\"\",IF('Enrollment Form'!$B715=\"Subscriber\",\"-\",IF(COUNTA('Enrollment Form'!$BE715,'Enrollment Form'!$BG715)=2,\"Y\",\"N\")))","v":""},{"$f":"IF($B708=\"N\",\"\",IF(OR('Enrollment Form'!$AU715=\"\",'Enrollment Form'!$AU715=\"No\"),\"-\",IF(AND('Enrollment Form'!$AU715=\"Yes\",COUNTA('Enrollment Form'!$CK715)=1),\"Y\",\"N\")))","v":""},{"$f":"IF(OR('Enrollment Form'!$CK715=\"\",'Enrollment Form'!$CK715=\"No\"),\"-\",IF(COUNTA('Enrollment Form'!$CM715:$CN715)=2,\"Y\",\"N\"))","v":"-"},{"$f":"IF($B708=\"N\",\"\",IF(COUNTIF('Enrollment Form'!$CZ715:$DO715,\"Other\")=COUNTA('Enrollment Form'!$DF715,'Enrollment Form'!$DA715,'Enrollment Form'!$DK715,'Enrollment Form'!$DP715),\"Y\",\"N\"))","v":""},{"$f":"IF($B708=\"N\",\"\",IF(OR('Enrollment Form'!B715<>\"Subscriber\",'Enrollment Form'!C715=\"ROC\",COUNTIF('Enrollment Form'!AS715:AT715,\"Yes\")>=1),\"-\",IF(AND('Enrollment Form'!C715=\"Enroll\",COUNTIF('Enrollment Form'!AS715:AT715,\"No\")=2,'Enrollment Form'!AU715=\"\"),\"N\",\"Y\")))","v":""},{"$f":"IF(OR(B708=\"N\",'Enrollment Form'!B715<>\"Subscriber\",'Enrollment Form'!C715=\"ROC\",'Enrollment Form'!O715<>\"Multiple of Salary\"),\"-\",IF(COUNTA('Enrollment Form'!T715:U715)<2,\"N\",\"Y\"))","v":"-"},{"$f":"IF(B708=\"N\",\"\",IF(OR('Enrollment Form'!C715=\"ROC\",'Enrollment Form'!B715<>\"Subscriber\",'Enrollment Form'!O715=\"Waive\",'Enrollment Form'!O715=\"\"),\"-\",IF('Enrollment Form'!P715=\"\",\"N\",\"Y\")))","v":""},{"$f":"IF($B708=\"N\",\"\",IF(AND('Enrollment Form'!$C715=\"ROC\",'Enrollment Form'!$DS715<>\"\"),\"Y\",IF(AND('Enrollment Form'!$C715=\"ROC\",'Enrollment Form'!$DS715=\"\"),\"N\",IF(AND('Enrollment Form'!$C715=\"Enroll\",'Enrollment Form'!$B715=\"Subscriber\",'Enrollment Form'!$CQ715=\"No\",'Enrollment Form'!$DS715=\"\"),\"N\",IF(AND('Enrollment Form'!$C715=\"Enroll\",'Enrollment Form'!$B715=\"Subscriber\",'Enrollment Form'!$CQ715=\"Yes\"),\"-\",\"Y\")))))","v":""},{"$f":"IF($B708=\"N\",\"\",IF(AND('Enrollment Form'!$C715=\"ROC\",'Enrollment Form'!$DT715<>\"\"),\"Y\",IF(AND('Enrollment Form'!$C715=\"ROC\",'Enrollment Form'!$DT715=\"\"),\"N\",IF(AND('Enrollment Form'!$C715=\"Enroll\",'Enrollment Form'!$B715=\"Subscriber\",'Enrollment Form'!$CQ715=\"No\",'Enrollment Form'!$DT715=\"\"),\"N\",IF(AND('Enrollment Form'!$C715=\"Enroll\",'Enrollment Form'!$B715=\"Subscriber\",'Enrollment Form'!$CQ715=\"Yes\"),\"-\",\"Y\")))))","v":""},{"$f":"IF('Enrollment Form'!AH715=\"\",\"\",IF(ISERROR(SEARCH(\".\",'Enrollment Form'!AH715,SEARCH(\"@\",'Enrollment Form'!AH715))),\"N\",\"Y\"))","v":""},{"$f":"IF(OR($B708=\"N\",'Enrollment Form'!$G715=\"\"),\"\",IF('Enrollment Form'!$B715<>\"Subscriber\",\"-\",IF(COUNTIF('Enrollment Form'!$AS715:$AT715,\"Yes\")=2,\"N\",\"Y\")))","v":""},{"$f":"IF(OR('Enrollment Form'!$CC715=\"\",'Enrollment Form'!$CC715=\"No\"),\"-\",IF(AND('Enrollment Form'!$CC715=\"Yes\",'Enrollment Form'!$CD715=\"\"),\"N\",\"Y\"))","v":"-"},{"$f":"IF(OR('Enrollment Form'!$CE715=\"\",'Enrollment Form'!$CE715=\"No\"),\"-\",IF(AND('Enrollment Form'!$CE715=\"Yes\",'Enrollment Form'!$CF715=\"\"),\"N\",\"Y\"))","v":"-"},{"$f":"IF(OR('Enrollment Form'!$CG715=\"\",'Enrollment Form'!$CG715=\"No\"),\"-\",IF(AND('Enrollment Form'!$CG715=\"Yes\",'Enrollment Form'!$CH715=\"\"),\"N\",\"Y\"))","v":"-"},{"$f":"IF(OR('Enrollment Form'!$CG715=\"\",'Enrollment Form'!$CG715=\"No\"),\"-\",IF(AND('Enrollment Form'!$CG715=\"Yes\",'Enrollment Form'!$CI715=\"\"),\"N\",\"Y\"))","v":"-"},{"$f":"IF('Enrollment Form'!B715<>\"Subscriber\",\"-\",IF(AND('Enrollment Form'!B715=\"Subscriber\",'Enrollment Form'!C715=\"Enroll\",'Enrollment Form'!AA715=\"\"),\"N\",\"Y\"))","v":"-"},{"$f":"IF(OR('Enrollment Form'!B715=\"Subscriber\",'Enrollment Form'!B715=\"\"),\"-\",IF('Enrollment Form'!BI715=\"\",\"N\",\"Y\"))","v":"-"},{"$f":"IF('Enrollment Form'!B715<>\"Subscriber\",\"-\",IF(AND('Enrollment Form'!B715=\"Subscriber\",'Enrollment Form'!G715=\"\"),\"N\",\"Y\"))","v":"-"},{"$f":"IF('Enrollment Form'!A715=\"\",\"\",IF('Enrollment Form'!B715=\"Subscriber\",\"-\",IF(AND('Enrollment Form'!B715<>\"Subscriber\",'Enrollment Form'!G715='Enrollment Form'!H715),\"N\",\"Y\")))","v":""},{"$f":"COUNTIF(C708:AN708,\"N\")","v":0}]
[716,{"$f":"IF('Enrollment Form'!$A716<>\"\",\"Y\",\"N\")","v":"N"},{"$f":"IF(AND('Enrollment Form'!$B716=\"\",'Enrollment Form'!$C716<>\"\"),\"N\",IF($B709=\"N\",\"\",\"Y\"))","v":""},{"$f":"IF(OR($B709=\"N\",'Enrollment Form'!G716=\"\"),\"\",IF('Enrollment Form'!$B716<>\"Subscriber\",\"\",IF('Enrollment Form'!$G716='Enrollment Form'!$H716,\"Y\",\"N\")))","v":""},{"$f":"IF($B709=\"N\",\"\",IF(AND(COUNTIFS('Enrollment Form'!$H$11:$H$1000,'Enrollment Form'!$H716,'Enrollment Form'!$B$11:$B$1000,'Enrollment Form'!$B716)>1,'Enrollment Form'!$H716<>\"\"),\"N\",\"Y\"))","v":""},{"$f":"IF($B709=\"N\",\"\",IF(LEN('Enrollment Form'!$Y716)=0,\"\",IF(LEN('Enrollment Form'!$Y716)<>5,\"N\",\"Y\")))","v":""},{"$f":"IF($B709=\"N\",\"\",IF(LEN('Enrollment Form'!$AD716=0),\"\",IF(LEN('Enrollment Form'!$AD716)<>5,\"N\",\"Y\")))","v":""},{"$f":"IF($B709=\"N\",\"\",IF(LEN('Enrollment Form'!$BL716=0),\"\",IF(LEN('Enrollment Form'!$BL716)<>5,\"N\",\"Y\")))","v":""},{"$f":"IF($B709=\"N\",\"\",IF(LEN('Enrollment Form'!$AE716)=0,\"\",IF(LEN('Enrollment Form'!$AE716)<>10,\"N\",\"Y\")))","v":""},{"$f":"IF($B709=\"N\",\"\",IF(LEN('Enrollment Form'!$AF716)=0,\"\",IF(LEN('Enrollment Form'!$AF716)<>10,\"N\",\"Y\")))","v":""},{"$f":"IF('Enrollment Form'!$O716<>\"Graded\",\"-\",IF(AND('Enrollment Form'!$O716=\"Graded\",'Enrollment Form'!$AO716<>\"\"),\"Y\",\"N\"))","v":"-"},{"$f":"IF($B709=\"N\",\"\",IF(OR('Enrollment Form'!$B716<>\"Subscriber\",'Enrollment Form'!$C716=\"ROC\"),\"-\",IF(AND('Enrollment Form'!$B716=\"Subscriber\",'Enrollment Form'!$C716=\"Enroll\",'Enrollment Form'!$AJ716<>\"\"),\"Y\",\"N\")))","v":""},{"$f":"IF($B709=\"N\",\"\",IF(OR('Enrollment Form'!$B716<>\"Subscriber\",'Enrollment Form'!$C716=\"ROC\"),\"-\",IF(AND('Enrollment Form'!$B716=\"Subscriber\",'Enrollment Form'!$C716=\"Enroll\",'Enrollment Form'!$AK716<>\"\"),\"Y\",\"N\")))","v":""},{"$f":"IF($B709=\"N\",\"\",IF(OR('Enrollment Form'!$B716<>\"Subscriber\",'Enrollment Form'!$C716=\"ROC\"),\"-\",IF(AND('Enrollment Form'!$B716=\"Subscriber\",'Enrollment Form'!$C716=\"Enroll\",'Enrollment Form'!$AL716<>\"\"),\"Y\",\"N\")))","v":""},{"$f":"IF($B709=\"N\",\"\",IF(OR('Enrollment Form'!$B716<>\"Subscriber\",'Enrollment Form'!$C716=\"ROC\"),\"-\",IF(AND('Enrollment Form'!$B716=\"Subscriber\",'Enrollment Form'!$C716=\"Enroll\",'Enrollment Form'!$AM716<>\"\"),\"Y\",\"N\")))","v":""},{"$f":"IF($B709=\"N\",\"\",IF(OR('Enrollment Form'!$B716<>\"Subscriber\",'Enrollment Form'!$C716=\"ROC\"),\"-\",IF(AND('Enrollment Form'!$B716=\"Subscriber\",'Enrollment Form'!$C716=\"Enroll\",'Enrollment Form'!$AN716<>\"\"),\"Y\",\"N\")))","v":""},{"$f":"IF($B709=\"N\",\"\",IF(OR('Enrollment Form'!$B716<>\"Subscriber\",'Enrollment Form'!$C716=\"ROC\"),\"-\",IF(AND('Enrollment Form'!$B716=\"Subscriber\",'Enrollment Form'!$C716=\"Enroll\",'Enrollment Form'!$AP716<>\"\"),\"Y\",\"N\")))","v":""},{"$f":"IF($B709=\"N\",\"\",IF($Q709=\"-\",\"-\",IF(AND($Q709=\"Y\",'Enrollment Form'!$AP716=\"No\"),\"-\",IF(AND($Q709=\"Y\",'Enrollment Form'!$AP716=\"Yes\",'Enrollment Form'!$AQ716<>\"\"),\"Y\",\"N\"))))","v":""},{"$f":"IF($B709=\"N\",\"\",IF(OR('Enrollment Form'!$B716<>\"Subscriber\",'Enrollment Form'!$C716=\"ROC\"),\"-\",IF(AND('Enrollment Form'!$B716=\"Subscriber\",'Enrollment Form'!$C716=\"Enroll\",'Enrollment Form'!$CO716<>\"\"),\"Y\",\"N\")))","v":""},{"$f":"IF($B709=\"N\",\"\",IF($S709=\"-\",\"-\",IF(AND($S709=\"Y\",'Enrollment Form'!$CO716=\"No\"),\"-\",IF(AND($S709=\"Y\",'Enrollment Form'!$CO716=\"Yes\",'Enrollment Form'!$CP716<>\"\"),\"Y\",\"N\"))))","v":""},{"$f":"IF(OR('Enrollment Form'!$AV716=\"Yes\",'Enrollment Form'!$AV716=\"\"),\"-\",IF(AND('Enrollment Form'!$AV716=\"No\",ISERROR(FIND(\"HMO\",VLOOKUP('Enrollment Form'!G716,'Enrollment Form'!H$11:J$1000,3,FALSE),1))=FALSE,COUNTA('Enrollment Form'!$AW716:$AZ716)=4),\"Y\",\"N\"))","v":"-"},{"$f":"IF($B709=\"N\",\"\",IF('Enrollment Form'!$B716=\"Subscriber\",\"-\",IF(COUNTA('Enrollment Form'!$BE716,'Enrollment Form'!$BG716)=2,\"Y\",\"N\")))","v":""},{"$f":"IF($B709=\"N\",\"\",IF(OR('Enrollment Form'!$AU716=\"\",'Enrollment Form'!$AU716=\"No\"),\"-\",IF(AND('Enrollment Form'!$AU716=\"Yes\",COUNTA('Enrollment Form'!$CK716)=1),\"Y\",\"N\")))","v":""},{"$f":"IF(OR('Enrollment Form'!$CK716=\"\",'Enrollment Form'!$CK716=\"No\"),\"-\",IF(COUNTA('Enrollment Form'!$CM716:$CN716)=2,\"Y\",\"N\"))","v":"-"},{"$f":"IF($B709=\"N\",\"\",IF(COUNTIF('Enrollment Form'!$CZ716:$DO716,\"Other\")=COUNTA('Enrollment Form'!$DF716,'Enrollment Form'!$DA716,'Enrollment Form'!$DK716,'Enrollment Form'!$DP716),\"Y\",\"N\"))","v":""},{"$f":"IF($B709=\"N\",\"\",IF(OR('Enrollment Form'!B716<>\"Subscriber\",'Enrollment Form'!C716=\"ROC\",COUNTIF('Enrollment Form'!AS716:AT716,\"Yes\")>=1),\"-\",IF(AND('Enrollment Form'!C716=\"Enroll\",COUNTIF('Enrollment Form'!AS716:AT716,\"No\")=2,'Enrollment Form'!AU716=\"\"),\"N\",\"Y\")))","v":""},{"$f":"IF(OR(B709=\"N\",'Enrollment Form'!B716<>\"Subscriber\",'Enrollment Form'!C716=\"ROC\",'Enrollment Form'!O716<>\"Multiple of Salary\"),\"-\",IF(COUNTA('Enrollment Form'!T716:U716)<2,\"N\",\"Y\"))","v":"-"},{"$f":"IF(B709=\"N\",\"\",IF(OR('Enrollment Form'!C716=\"ROC\",'Enrollment Form'!B716<>\"Subscriber\",'Enrollment Form'!O716=\"Waive\",'Enrollment Form'!O716=\"\"),\"-\",IF('Enrollment Form'!P716=\"\",\"N\",\"Y\")))","v":""},{"$f":"IF($B709=\"N\",\"\",IF(AND('Enrollment Form'!$C716=\"ROC\",'Enrollment Form'!$DS716<>\"\"),\"Y\",IF(AND('Enrollment Form'!$C716=\"ROC\",'Enrollment Form'!$DS716=\"\"),\"N\",IF(AND('Enrollment Form'!$C716=\"Enroll\",'Enrollment Form'!$B716=\"Subscriber\",'Enrollment Form'!$CQ716=\"No\",'Enrollment Form'!$DS716=\"\"),\"N\",IF(AND('Enrollment Form'!$C716=\"Enroll\",'Enrollment Form'!$B716=\"Subscriber\",'Enrollment Form'!$CQ716=\"Yes\"),\"-\",\"Y\")))))","v":""},{"$f":"IF($B709=\"N\",\"\",IF(AND('Enrollment Form'!$C716=\"ROC\",'Enrollment Form'!$DT716<>\"\"),\"Y\",IF(AND('Enrollment Form'!$C716=\"ROC\",'Enrollment Form'!$DT716=\"\"),\"N\",IF(AND('Enrollment Form'!$C716=\"Enroll\",'Enrollment Form'!$B716=\"Subscriber\",'Enrollment Form'!$CQ716=\"No\",'Enrollment Form'!$DT716=\"\"),\"N\",IF(AND('Enrollment Form'!$C716=\"Enroll\",'Enrollment Form'!$B716=\"Subscriber\",'Enrollment Form'!$CQ716=\"Yes\"),\"-\",\"Y\")))))","v":""},{"$f":"IF('Enrollment Form'!AH716=\"\",\"\",IF(ISERROR(SEARCH(\".\",'Enrollment Form'!AH716,SEARCH(\"@\",'Enrollment Form'!AH716))),\"N\",\"Y\"))","v":""},{"$f":"IF(OR($B709=\"N\",'Enrollment Form'!$G716=\"\"),\"\",IF('Enrollment Form'!$B716<>\"Subscriber\",\"-\",IF(COUNTIF('Enrollment Form'!$AS716:$AT716,\"Yes\")=2,\"N\",\"Y\")))","v":""},{"$f":"IF(OR('Enrollment Form'!$CC716=\"\",'Enrollment Form'!$CC716=\"No\"),\"-\",IF(AND('Enrollment Form'!$CC716=\"Yes\",'Enrollment Form'!$CD716=\"\"),\"N\",\"Y\"))","v":"-"},{"$f":"IF(OR('Enrollment Form'!$CE716=\"\",'Enrollment Form'!$CE716=\"No\"),\"-\",IF(AND('Enrollment Form'!$CE716=\"Yes\",'Enrollment Form'!$CF716=\"\"),\"N\",\"Y\"))","v":"-"},{"$f":"IF(OR('Enrollment Form'!$CG716=\"\",'Enrollment Form'!$CG716=\"No\"),\"-\",IF(AND('Enrollment Form'!$CG716=\"Yes\",'Enrollment Form'!$CH716=\"\"),\"N\",\"Y\"))","v":"-"},{"$f":"IF(OR('Enrollment Form'!$CG716=\"\",'Enrollment Form'!$CG716=\"No\"),\"-\",IF(AND('Enrollment Form'!$CG716=\"Yes\",'Enrollment Form'!$CI716=\"\"),\"N\",\"Y\"))","v":"-"},{"$f":"IF('Enrollment Form'!B716<>\"Subscriber\",\"-\",IF(AND('Enrollment Form'!B716=\"Subscriber\",'Enrollment Form'!C716=\"Enroll\",'Enrollment Form'!AA716=\"\"),\"N\",\"Y\"))","v":"-"},{"$f":"IF(OR('Enrollment Form'!B716=\"Subscriber\",'Enrollment Form'!B716=\"\"),\"-\",IF('Enrollment Form'!BI716=\"\",\"N\",\"Y\"))","v":"-"},{"$f":"IF('Enrollment Form'!B716<>\"Subscriber\",\"-\",IF(AND('Enrollment Form'!B716=\"Subscriber\",'Enrollment Form'!G716=\"\"),\"N\",\"Y\"))","v":"-"},{"$f":"IF('Enrollment Form'!A716=\"\",\"\",IF('Enrollment Form'!B716=\"Subscriber\",\"-\",IF(AND('Enrollment Form'!B716<>\"Subscriber\",'Enrollment Form'!G716='Enrollment Form'!H716),\"N\",\"Y\")))","v":""},0]
[{"$f":"1+A709","v":717},{"$f":"IF('Enrollment Form'!$A717<>\"\",\"Y\",\"N\")","v":"N"},{"$f":"IF(AND('Enrollment Form'!$B717=\"\",'Enrollment Form'!$C717<>\"\"),\"N\",IF($B710=\"N\",\"\",\"Y\"))","v":""},{"$f":"IF(OR($B710=\"N\",'Enrollment Form'!G717=\"\"),\"\",IF('Enrollment Form'!$B717<>\"Subscriber\",\"\",IF('Enrollment Form'!$G717='Enrollment Form'!$H717,\"Y\",\"N\")))","v":""},{"$f":"IF($B710=\"N\",\"\",IF(AND(COUNTIFS('Enrollment Form'!$H$11:$H$1000,'Enrollment Form'!$H717,'Enrollment Form'!$B$11:$B$1000,'Enrollment Form'!$B717)>1,'Enrollment Form'!$H717<>\"\"),\"N\",\"Y\"))","v":""},{"$f":"IF($B710=\"N\",\"\",IF(LEN('Enrollment Form'!$Y717)=0,\"\",IF(LEN('Enrollment Form'!$Y717)<>5,\"N\",\"Y\")))","v":""},{"$f":"IF($B710=\"N\",\"\",IF(LEN('Enrollment Form'!$AD717=0),\"\",IF(LEN('Enrollment Form'!$AD717)<>5,\"N\",\"Y\")))","v":""},{"$f":"IF($B710=\"N\",\"\",IF(LEN('Enrollment Form'!$BL717=0),\"\",IF(LEN('Enrollment Form'!$BL717)<>5,\"N\",\"Y\")))","v":""},{"$f":"IF($B710=\"N\",\"\",IF(LEN('Enrollment Form'!$AE717)=0,\"\",IF(LEN('Enrollment Form'!$AE717)<>10,\"N\",\"Y\")))","v":""},{"$f":"IF($B710=\"N\",\"\",IF(LEN('Enrollment Form'!$AF717)=0,\"\",IF(LEN('Enrollment Form'!$AF717)<>10,\"N\",\"Y\")))","v":""},{"$f":"IF('Enrollment Form'!$O717<>\"Graded\",\"-\",IF(AND('Enrollment Form'!$O717=\"Graded\",'Enrollment Form'!$AO717<>\"\"),\"Y\",\"N\"))","v":"-"},{"$f":"IF($B710=\"N\",\"\",IF(OR('Enrollment Form'!$B717<>\"Subscriber\",'Enrollment Form'!$C717=\"ROC\"),\"-\",IF(AND('Enrollment Form'!$B717=\"Subscriber\",'Enrollment Form'!$C717=\"Enroll\",'Enrollment Form'!$AJ717<>\"\"),\"Y\",\"N\")))","v":""},{"$f":"IF($B710=\"N\",\"\",IF(OR('Enrollment Form'!$B717<>\"Subscriber\",'Enrollment Form'!$C717=\"ROC\"),\"-\",IF(AND('Enrollment Form'!$B717=\"Subscriber\",'Enrollment Form'!$C717=\"Enroll\",'Enrollment Form'!$AK717<>\"\"),\"Y\",\"N\")))","v":""},{"$f":"IF($B710=\"N\",\"\",IF(OR('Enrollment Form'!$B717<>\"Subscriber\",'Enrollment Form'!$C717=\"ROC\"),\"-\",IF(AND('Enrollment Form'!$B717=\"Subscriber\",'Enrollment Form'!$C717=\"Enroll\",'Enrollment Form'!$AL717<>\"\"),\"Y\",\"N\")))","v":""},{"$f":"IF($B710=\"N\",\"\",IF(OR('Enrollment Form'!$B717<>\"Subscriber\",'Enrollment Form'!$C717=\"ROC\"),\"-\",IF(AND('Enrollment Form'!$B717=\"Subscriber\",'Enrollment Form'!$C717=\"Enroll\",'Enrollment Form'!$AM717<>\"\"),\"Y\",\"N\")))","v":""},{"$f":"IF($B710=\"N\",\"\",IF(OR('Enrollment Form'!$B717<>\"Subscriber\",'Enrollment Form'!$C717=\"ROC\"),\"-\",IF(AND('Enrollment Form'!$B717=\"Subscriber\",'Enrollment Form'!$C717=\"Enroll\",'Enrollment Form'!$AN717<>\"\"),\"Y\",\"N\")))","v":""},{"$f":"IF($B710=\"N\",\"\",IF(OR('Enrollment Form'!$B717<>\"Subscriber\",'Enrollment Form'!$C717=\"ROC\"),\"-\",IF(AND('Enrollment Form'!$B717=\"Subscriber\",'Enrollment Form'!$C717=\"Enroll\",'Enrollment Form'!$AP717<>\"\"),\"Y\",\"N\")))","v":""},{"$f":"IF($B710=\"N\",\"\",IF($Q710=\"-\",\"-\",IF(AND($Q710=\"Y\",'Enrollment Form'!$AP717=\"No\"),\"-\",IF(AND($Q710=\"Y\",'Enrollment Form'!$AP717=\"Yes\",'Enrollment Form'!$AQ717<>\"\"),\"Y\",\"N\"))))","v":""},{"$f":"IF($B710=\"N\",\"\",IF(OR('Enrollment Form'!$B717<>\"Subscriber\",'Enrollment Form'!$C717=\"ROC\"),\"-\",IF(AND('Enrollment Form'!$B717=\"Subscriber\",'Enrollment Form'!$C717=\"Enroll\",'Enrollment Form'!$CO717<>\"\"),\"Y\",\"N\")))","v":""},{"$f":"IF($B710=\"N\",\"\",IF($S710=\"-\",\"-\",IF(AND($S710=\"Y\",'Enrollment Form'!$CO717=\"No\"),\"-\",IF(AND($S710=\"Y\",'Enrollment Form'!$CO717=\"Yes\",'Enrollment Form'!$CP717<>\"\"),\"Y\",\"N\"))))","v":""},{"$f":"IF(OR('Enrollment Form'!$AV717=\"Yes\",'Enrollment Form'!$AV717=\"\"),\"-\",IF(AND('Enrollment Form'!$AV717=\"No\",ISERROR(FIND(\"HMO\",VLOOKUP('Enrollment Form'!G717,'Enrollment Form'!H$11:J$1000,3,FALSE),1))=FALSE,COUNTA('Enrollment Form'!$AW717:$AZ717)=4),\"Y\",\"N\"))","v":"-"},{"$f":"IF($B710=\"N\",\"\",IF('Enrollment Form'!$B717=\"Subscriber\",\"-\",IF(COUNTA('Enrollment Form'!$BE717,'Enrollment Form'!$BG717)=2,\"Y\",\"N\")))","v":""},{"$f":"IF($B710=\"N\",\"\",IF(OR('Enrollment Form'!$AU717=\"\",'Enrollment Form'!$AU717=\"No\"),\"-\",IF(AND('Enrollment Form'!$AU717=\"Yes\",COUNTA('Enrollment Form'!$CK717)=1),\"Y\",\"N\")))","v":""},{"$f":"IF(OR('Enrollment Form'!$CK717=\"\",'Enrollment Form'!$CK717=\"No\"),\"-\",IF(COUNTA('Enrollment Form'!$CM717:$CN717)=2,\"Y\",\"N\"))","v":"-"},{"$f":"IF($B710=\"N\",\"\",IF(COUNTIF('Enrollment Form'!$CZ717:$DO717,\"Other\")=COUNTA('Enrollment Form'!$DF717,'Enrollment Form'!$DA717,'Enrollment Form'!$DK717,'Enrollment Form'!$DP717),\"Y\",\"N\"))","v":""},{"$f":"IF($B710=\"N\",\"\",IF(OR('Enrollment Form'!B717<>\"Subscriber\",'Enrollment Form'!C717=\"ROC\",COUNTIF('Enrollment Form'!AS717:AT717,\"Yes\")>=1),\"-\",IF(AND('Enrollment Form'!C717=\"Enroll\",COUNTIF('Enrollment Form'!AS717:AT717,\"No\")=2,'Enrollment Form'!AU717=\"\"),\"N\",\"Y\")))","v":""},{"$f":"IF(OR(B710=\"N\",'Enrollment Form'!B717<>\"Subscriber\",'Enrollment Form'!C717=\"ROC\",'Enrollment Form'!O717<>\"Multiple of Salary\"),\"-\",IF(COUNTA('Enrollment Form'!T717:U717)<2,\"N\",\"Y\"))","v":"-"},{"$f":"IF(B710=\"N\",\"\",IF(OR('Enrollment Form'!C717=\"ROC\",'Enrollment Form'!B717<>\"Subscriber\",'Enrollment Form'!O717=\"Waive\",'Enrollment Form'!O717=\"\"),\"-\",IF('Enrollment Form'!P717=\"\",\"N\",\"Y\")))","v":""},{"$f":"IF($B710=\"N\",\"\",IF(AND('Enrollment Form'!$C717=\"ROC\",'Enrollment Form'!$DS717<>\"\"),\"Y\",IF(AND('Enrollment Form'!$C717=\"ROC\",'Enrollment Form'!$DS717=\"\"),\"N\",IF(AND('Enrollment Form'!$C717=\"Enroll\",'Enrollment Form'!$B717=\"Subscriber\",'Enrollment Form'!$CQ717=\"No\",'Enrollment Form'!$DS717=\"\"),\"N\",IF(AND('Enrollment Form'!$C717=\"Enroll\",'Enrollment Form'!$B717=\"Subscriber\",'Enrollment Form'!$CQ717=\"Yes\"),\"-\",\"Y\")))))","v":""},{"$f":"IF($B710=\"N\",\"\",IF(AND('Enrollment Form'!$C717=\"ROC\",'Enrollment Form'!$DT717<>\"\"),\"Y\",IF(AND('Enrollment Form'!$C717=\"ROC\",'Enrollment Form'!$DT717=\"\"),\"N\",IF(AND('Enrollment Form'!$C717=\"Enroll\",'Enrollment Form'!$B717=\"Subscriber\",'Enrollment Form'!$CQ717=\"No\",'Enrollment Form'!$DT717=\"\"),\"N\",IF(AND('Enrollment Form'!$C717=\"Enroll\",'Enrollment Form'!$B717=\"Subscriber\",'Enrollment Form'!$CQ717=\"Yes\"),\"-\",\"Y\")))))","v":""},{"$f":"IF('Enrollment Form'!AH717=\"\",\"\",IF(ISERROR(SEARCH(\".\",'Enrollment Form'!AH717,SEARCH(\"@\",'Enrollment Form'!AH717))),\"N\",\"Y\"))","v":""},{"$f":"IF(OR($B710=\"N\",'Enrollment Form'!$G717=\"\"),\"\",IF('Enrollment Form'!$B717<>\"Subscriber\",\"-\",IF(COUNTIF('Enrollment Form'!$AS717:$AT717,\"Yes\")=2,\"N\",\"Y\")))","v":""},{"$f":"IF(OR('Enrollment Form'!$CC717=\"\",'Enrollment Form'!$CC717=\"No\"),\"-\",IF(AND('Enrollment Form'!$CC717=\"Yes\",'Enrollment Form'!$CD717=\"\"),\"N\",\"Y\"))","v":"-"},{"$f":"IF(OR('Enrollment Form'!$CE717=\"\",'Enrollment Form'!$CE717=\"No\"),\"-\",IF(AND('Enrollment Form'!$CE717=\"Yes\",'Enrollment Form'!$CF717=\"\"),\"N\",\"Y\"))","v":"-"},{"$f":"IF(OR('Enrollment Form'!$CG717=\"\",'Enrollment Form'!$CG717=\"No\"),\"-\",IF(AND('Enrollment Form'!$CG717=\"Yes\",'Enrollment Form'!$CH717=\"\"),\"N\",\"Y\"))","v":"-"},{"$f":"IF(OR('Enrollment Form'!$CG717=\"\",'Enrollment Form'!$CG717=\"No\"),\"-\",IF(AND('Enrollment Form'!$CG717=\"Yes\",'Enrollment Form'!$CI717=\"\"),\"N\",\"Y\"))","v":"-"},{"$f":"IF('Enrollment Form'!B717<>\"Subscriber\",\"-\",IF(AND('Enrollment Form'!B717=\"Subscriber\",'Enrollment Form'!C717=\"Enroll\",'Enrollment Form'!AA717=\"\"),\"N\",\"Y\"))","v":"-"},{"$f":"IF(OR('Enrollment Form'!B717=\"Subscriber\",'Enrollment Form'!B717=\"\"),\"-\",IF('Enrollment Form'!BI717=\"\",\"N\",\"Y\"))","v":"-"},{"$f":"IF('Enrollment Form'!B717<>\"Subscriber\",\"-\",IF(AND('Enrollment Form'!B717=\"Subscriber\",'Enrollment Form'!G717=\"\"),\"N\",\"Y\"))","v":"-"},{"$f":"IF('Enrollment Form'!A717=\"\",\"\",IF('Enrollment Form'!B717=\"Subscriber\",\"-\",IF(AND('Enrollment Form'!B717<>\"Subscriber\",'Enrollment Form'!G717='Enrollment Form'!H717),\"N\",\"Y\")))","v":""},0]
[718,{"$f":"IF('Enrollment Form'!$A718<>\"\",\"Y\",\"N\")","v":"N"},{"$f":"IF(AND('Enrollment Form'!$B718=\"\",'Enrollment Form'!$C718<>\"\"),\"N\",IF($B711=\"N\",\"\",\"Y\"))","v":""},{"$f":"IF(OR($B711=\"N\",'Enrollment Form'!G718=\"\"),\"\",IF('Enrollment Form'!$B718<>\"Subscriber\",\"\",IF('Enrollment Form'!$G718='Enrollment Form'!$H718,\"Y\",\"N\")))","v":""},{"$f":"IF($B711=\"N\",\"\",IF(AND(COUNTIFS('Enrollment Form'!$H$11:$H$1000,'Enrollment Form'!$H718,'Enrollment Form'!$B$11:$B$1000,'Enrollment Form'!$B718)>1,'Enrollment Form'!$H718<>\"\"),\"N\",\"Y\"))","v":""},{"$f":"IF($B711=\"N\",\"\",IF(LEN('Enrollment Form'!$Y718)=0,\"\",IF(LEN('Enrollment Form'!$Y718)<>5,\"N\",\"Y\")))","v":""},{"$f":"IF($B711=\"N\",\"\",IF(LEN('Enrollment Form'!$AD718=0),\"\",IF(LEN('Enrollment Form'!$AD718)<>5,\"N\",\"Y\")))","v":""},{"$f":"IF($B711=\"N\",\"\",IF(LEN('Enrollment Form'!$BL718=0),\"\",IF(LEN('Enrollment Form'!$BL718)<>5,\"N\",\"Y\")))","v":""},{"$f":"IF($B711=\"N\",\"\",IF(LEN('Enrollment Form'!$AE718)=0,\"\",IF(LEN('Enrollment Form'!$AE718)<>10,\"N\",\"Y\")))","v":""},{"$f":"IF($B711=\"N\",\"\",IF(LEN('Enrollment Form'!$AF718)=0,\"\",IF(LEN('Enrollment Form'!$AF718)<>10,\"N\",\"Y\")))","v":""},{"$f":"IF('Enrollment Form'!$O718<>\"Graded\",\"-\",IF(AND('Enrollment Form'!$O718=\"Graded\",'Enrollment Form'!$AO718<>\"\"),\"Y\",\"N\"))","v":"-"},{"$f":"IF($B711=\"N\",\"\",IF(OR('Enrollment Form'!$B718<>\"Subscriber\",'Enrollment Form'!$C718=\"ROC\"),\"-\",IF(AND('Enrollment Form'!$B718=\"Subscriber\",'Enrollment Form'!$C718=\"Enroll\",'Enrollment Form'!$AJ718<>\"\"),\"Y\",\"N\")))","v":""},{"$f":"IF($B711=\"N\",\"\",IF(OR('Enrollment Form'!$B718<>\"Subscriber\",'Enrollment Form'!$C718=\"ROC\"),\"-\",IF(AND('Enrollment Form'!$B718=\"Subscriber\",'Enrollment Form'!$C718=\"Enroll\",'Enrollment Form'!$AK718<>\"\"),\"Y\",\"N\")))","v":""},{"$f":"IF($B711=\"N\",\"\",IF(OR('Enrollment Form'!$B718<>\"Subscriber\",'Enrollment Form'!$C718=\"ROC\"),\"-\",IF(AND('Enrollment Form'!$B718=\"Subscriber\",'Enrollment Form'!$C718=\"Enroll\",'Enrollment Form'!$AL718<>\"\"),\"Y\",\"N\")))","v":""},{"$f":"IF($B711=\"N\",\"\",IF(OR('Enrollment Form'!$B718<>\"Subscriber\",'Enrollment Form'!$C718=\"ROC\"),\"-\",IF(AND('Enrollment Form'!$B718=\"Subscriber\",'Enrollment Form'!$C718=\"Enroll\",'Enrollment Form'!$AM718<>\"\"),\"Y\",\"N\")))","v":""},{"$f":"IF($B711=\"N\",\"\",IF(OR('Enrollment Form'!$B718<>\"Subscriber\",'Enrollment Form'!$C718=\"ROC\"),\"-\",IF(AND('Enrollment Form'!$B718=\"Subscriber\",'Enrollment Form'!$C718=\"Enroll\",'Enrollment Form'!$AN718<>\"\"),\"Y\",\"N\")))","v":""},{"$f":"IF($B711=\"N\",\"\",IF(OR('Enrollment Form'!$B718<>\"Subscriber\",'Enrollment Form'!$C718=\"ROC\"),\"-\",IF(AND('Enrollment Form'!$B718=\"Subscriber\",'Enrollment Form'!$C718=\"Enroll\",'Enrollment Form'!$AP718<>\"\"),\"Y\",\"N\")))","v":""},{"$f":"IF($B711=\"N\",\"\",IF($Q711=\"-\",\"-\",IF(AND($Q711=\"Y\",'Enrollment Form'!$AP718=\"No\"),\"-\",IF(AND($Q711=\"Y\",'Enrollment Form'!$AP718=\"Yes\",'Enrollment Form'!$AQ718<>\"\"),\"Y\",\"N\"))))","v":""},{"$f":"IF($B711=\"N\",\"\",IF(OR('Enrollment Form'!$B718<>\"Subscriber\",'Enrollment Form'!$C718=\"ROC\"),\"-\",IF(AND('Enrollment Form'!$B718=\"Subscriber\",'Enrollment Form'!$C718=\"Enroll\",'Enrollment Form'!$CO718<>\"\"),\"Y\",\"N\")))","v":""},{"$f":"IF($B711=\"N\",\"\",IF($S711=\"-\",\"-\",IF(AND($S711=\"Y\",'Enrollment Form'!$CO718=\"No\"),\"-\",IF(AND($S711=\"Y\",'Enrollment Form'!$CO718=\"Yes\",'Enrollment Form'!$CP718<>\"\"),\"Y\",\"N\"))))","v":""},{"$f":"IF(OR('Enrollment Form'!$AV718=\"Yes\",'Enrollment Form'!$AV718=\"\"),\"-\",IF(AND('Enrollment Form'!$AV718=\"No\",ISERROR(FIND(\"HMO\",VLOOKUP('Enrollment Form'!G718,'Enrollment Form'!H$11:J$1000,3,FALSE),1))=FALSE,COUNTA('Enrollment Form'!$AW718:$AZ718)=4),\"Y\",\"N\"))","v":"-"},{"$f":"IF($B711=\"N\",\"\",IF('Enrollment Form'!$B718=\"Subscriber\",\"-\",IF(COUNTA('Enrollment Form'!$BE718,'Enrollment Form'!$BG718)=2,\"Y\",\"N\")))","v":""},{"$f":"IF($B711=\"N\",\"\",IF(OR('Enrollment Form'!$AU718=\"\",'Enrollment Form'!$AU718=\"No\"),\"-\",IF(AND('Enrollment Form'!$AU718=\"Yes\",COUNTA('Enrollment Form'!$CK718)=1),\"Y\",\"N\")))","v":""},{"$f":"IF(OR('Enrollment Form'!$CK718=\"\",'Enrollment Form'!$CK718=\"No\"),\"-\",IF(COUNTA('Enrollment Form'!$CM718:$CN718)=2,\"Y\",\"N\"))","v":"-"},{"$f":"IF($B711=\"N\",\"\",IF(COUNTIF('Enrollment Form'!$CZ718:$DO718,\"Other\")=COUNTA('Enrollment Form'!$DF718,'Enrollment Form'!$DA718,'Enrollment Form'!$DK718,'Enrollment Form'!$DP718),\"Y\",\"N\"))","v":""},{"$f":"IF($B711=\"N\",\"\",IF(OR('Enrollment Form'!B718<>\"Subscriber\",'Enrollment Form'!C718=\"ROC\",COUNTIF('Enrollment Form'!AS718:AT718,\"Yes\")>=1),\"-\",IF(AND('Enrollment Form'!C718=\"Enroll\",COUNTIF('Enrollment Form'!AS718:AT718,\"No\")=2,'Enrollment Form'!AU718=\"\"),\"N\",\"Y\")))","v":""},{"$f":"IF(OR(B711=\"N\",'Enrollment Form'!B718<>\"Subscriber\",'Enrollment Form'!C718=\"ROC\",'Enrollment Form'!O718<>\"Multiple of Salary\"),\"-\",IF(COUNTA('Enrollment Form'!T718:U718)<2,\"N\",\"Y\"))","v":"-"},{"$f":"IF(B711=\"N\",\"\",IF(OR('Enrollment Form'!C718=\"ROC\",'Enrollment Form'!B718<>\"Subscriber\",'Enrollment Form'!O718=\"Waive\",'Enrollment Form'!O718=\"\"),\"-\",IF('Enrollment Form'!P718=\"\",\"N\",\"Y\")))","v":""},{"$f":"IF($B711=\"N\",\"\",IF(AND('Enrollment Form'!$C718=\"ROC\",'Enrollment Form'!$DS718<>\"\"),\"Y\",IF(AND('Enrollment Form'!$C718=\"ROC\",'Enrollment Form'!$DS718=\"\"),\"N\",IF(AND('Enrollment Form'!$C718=\"Enroll\",'Enrollment Form'!$B718=\"Subscriber\",'Enrollment Form'!$CQ718=\"No\",'Enrollment Form'!$DS718=\"\"),\"N\",IF(AND('Enrollment Form'!$C718=\"Enroll\",'Enrollment Form'!$B718=\"Subscriber\",'Enrollment Form'!$CQ718=\"Yes\"),\"-\",\"Y\")))))","v":""},{"$f":"IF($B711=\"N\",\"\",IF(AND('Enrollment Form'!$C718=\"ROC\",'Enrollment Form'!$DT718<>\"\"),\"Y\",IF(AND('Enrollment Form'!$C718=\"ROC\",'Enrollment Form'!$DT718=\"\"),\"N\",IF(AND('Enrollment Form'!$C718=\"Enroll\",'Enrollment Form'!$B718=\"Subscriber\",'Enrollment Form'!$CQ718=\"No\",'Enrollment Form'!$DT718=\"\"),\"N\",IF(AND('Enrollment Form'!$C718=\"Enroll\",'Enrollment Form'!$B718=\"Subscriber\",'Enrollment Form'!$CQ718=\"Yes\"),\"-\",\"Y\")))))","v":""},{"$f":"IF('Enrollment Form'!AH718=\"\",\"\",IF(ISERROR(SEARCH(\".\",'Enrollment Form'!AH718,SEARCH(\"@\",'Enrollment Form'!AH718))),\"N\",\"Y\"))","v":""},{"$f":"IF(OR($B711=\"N\",'Enrollment Form'!$G718=\"\"),\"\",IF('Enrollment Form'!$B718<>\"Subscriber\",\"-\",IF(COUNTIF('Enrollment Form'!$AS718:$AT718,\"Yes\")=2,\"N\",\"Y\")))","v":""},{"$f":"IF(OR('Enrollment Form'!$CC718=\"\",'Enrollment Form'!$CC718=\"No\"),\"-\",IF(AND('Enrollment Form'!$CC718=\"Yes\",'Enrollment Form'!$CD718=\"\"),\"N\",\"Y\"))","v":"-"},{"$f":"IF(OR('Enrollment Form'!$CE718=\"\",'Enrollment Form'!$CE718=\"No\"),\"-\",IF(AND('Enrollment Form'!$CE718=\"Yes\",'Enrollment Form'!$CF718=\"\"),\"N\",\"Y\"))","v":"-"},{"$f":"IF(OR('Enrollment Form'!$CG718=\"\",'Enrollment Form'!$CG718=\"No\"),\"-\",IF(AND('Enrollment Form'!$CG718=\"Yes\",'Enrollment Form'!$CH718=\"\"),\"N\",\"Y\"))","v":"-"},{"$f":"IF(OR('Enrollment Form'!$CG718=\"\",'Enrollment Form'!$CG718=\"No\"),\"-\",IF(AND('Enrollment Form'!$CG718=\"Yes\",'Enrollment Form'!$CI718=\"\"),\"N\",\"Y\"))","v":"-"},{"$f":"IF('Enrollment Form'!B718<>\"Subscriber\",\"-\",IF(AND('Enrollment Form'!B718=\"Subscriber\",'Enrollment Form'!C718=\"Enroll\",'Enrollment Form'!AA718=\"\"),\"N\",\"Y\"))","v":"-"},{"$f":"IF(OR('Enrollment Form'!B718=\"Subscriber\",'Enrollment Form'!B718=\"\"),\"-\",IF('Enrollment Form'!BI718=\"\",\"N\",\"Y\"))","v":"-"},{"$f":"IF('Enrollment Form'!B718<>\"Subscriber\",\"-\",IF(AND('Enrollment Form'!B718=\"Subscriber\",'Enrollment Form'!G718=\"\"),\"N\",\"Y\"))","v":"-"},{"$f":"IF('Enrollment Form'!A718=\"\",\"\",IF('Enrollment Form'!B718=\"Subscriber\",\"-\",IF(AND('Enrollment Form'!B718<>\"Subscriber\",'Enrollment Form'!G718='Enrollment Form'!H718),\"N\",\"Y\")))","v":""},0]
[719,{"$f":"IF('Enrollment Form'!$A719<>\"\",\"Y\",\"N\")","v":"N"},{"$f":"IF(AND('Enrollment Form'!$B719=\"\",'Enrollment Form'!$C719<>\"\"),\"N\",IF($B712=\"N\",\"\",\"Y\"))","v":""},{"$f":"IF(OR($B712=\"N\",'Enrollment Form'!G719=\"\"),\"\",IF('Enrollment Form'!$B719<>\"Subscriber\",\"\",IF('Enrollment Form'!$G719='Enrollment Form'!$H719,\"Y\",\"N\")))","v":""},{"$f":"IF($B712=\"N\",\"\",IF(AND(COUNTIFS('Enrollment Form'!$H$11:$H$1000,'Enrollment Form'!$H719,'Enrollment Form'!$B$11:$B$1000,'Enrollment Form'!$B719)>1,'Enrollment Form'!$H719<>\"\"),\"N\",\"Y\"))","v":""},{"$f":"IF($B712=\"N\",\"\",IF(LEN('Enrollment Form'!$Y719)=0,\"\",IF(LEN('Enrollment Form'!$Y719)<>5,\"N\",\"Y\")))","v":""},{"$f":"IF($B712=\"N\",\"\",IF(LEN('Enrollment Form'!$AD719=0),\"\",IF(LEN('Enrollment Form'!$AD719)<>5,\"N\",\"Y\")))","v":""},{"$f":"IF($B712=\"N\",\"\",IF(LEN('Enrollment Form'!$BL719=0),\"\",IF(LEN('Enrollment Form'!$BL719)<>5,\"N\",\"Y\")))","v":""},{"$f":"IF($B712=\"N\",\"\",IF(LEN('Enrollment Form'!$AE719)=0,\"\",IF(LEN('Enrollment Form'!$AE719)<>10,\"N\",\"Y\")))","v":""},{"$f":"IF($B712=\"N\",\"\",IF(LEN('Enrollment Form'!$AF719)=0,\"\",IF(LEN('Enrollment Form'!$AF719)<>10,\"N\",\"Y\")))","v":""},{"$f":"IF('Enrollment Form'!$O719<>\"Graded\",\"-\",IF(AND('Enrollment Form'!$O719=\"Graded\",'Enrollment Form'!$AO719<>\"\"),\"Y\",\"N\"))","v":"-"},{"$f":"IF($B712=\"N\",\"\",IF(OR('Enrollment Form'!$B719<>\"Subscriber\",'Enrollment Form'!$C719=\"ROC\"),\"-\",IF(AND('Enrollment Form'!$B719=\"Subscriber\",'Enrollment Form'!$C719=\"Enroll\",'Enrollment Form'!$AJ719<>\"\"),\"Y\",\"N\")))","v":""},{"$f":"IF($B712=\"N\",\"\",IF(OR('Enrollment Form'!$B719<>\"Subscriber\",'Enrollment Form'!$C719=\"ROC\"),\"-\",IF(AND('Enrollment Form'!$B719=\"Subscriber\",'Enrollment Form'!$C719=\"Enroll\",'Enrollment Form'!$AK719<>\"\"),\"Y\",\"N\")))","v":""},{"$f":"IF($B712=\"N\",\"\",IF(OR('Enrollment Form'!$B719<>\"Subscriber\",'Enrollment Form'!$C719=\"ROC\"),\"-\",IF(AND('Enrollment Form'!$B719=\"Subscriber\",'Enrollment Form'!$C719=\"Enroll\",'Enrollment Form'!$AL719<>\"\"),\"Y\",\"N\")))","v":""},{"$f":"IF($B712=\"N\",\"\",IF(OR('Enrollment Form'!$B719<>\"Subscriber\",'Enrollment Form'!$C719=\"ROC\"),\"-\",IF(AND('Enrollment Form'!$B719=\"Subscriber\",'Enrollment Form'!$C719=\"Enroll\",'Enrollment Form'!$AM719<>\"\"),\"Y\",\"N\")))","v":""},{"$f":"IF($B712=\"N\",\"\",IF(OR('Enrollment Form'!$B719<>\"Subscriber\",'Enrollment Form'!$C719=\"ROC\"),\"-\",IF(AND('Enrollment Form'!$B719=\"Subscriber\",'Enrollment Form'!$C719=\"Enroll\",'Enrollment Form'!$AN719<>\"\"),\"Y\",\"N\")))","v":""},{"$f":"IF($B712=\"N\",\"\",IF(OR('Enrollment Form'!$B719<>\"Subscriber\",'Enrollment Form'!$C719=\"ROC\"),\"-\",IF(AND('Enrollment Form'!$B719=\"Subscriber\",'Enrollment Form'!$C719=\"Enroll\",'Enrollment Form'!$AP719<>\"\"),\"Y\",\"N\")))","v":""},{"$f":"IF($B712=\"N\",\"\",IF($Q712=\"-\",\"-\",IF(AND($Q712=\"Y\",'Enrollment Form'!$AP719=\"No\"),\"-\",IF(AND($Q712=\"Y\",'Enrollment Form'!$AP719=\"Yes\",'Enrollment Form'!$AQ719<>\"\"),\"Y\",\"N\"))))","v":""},{"$f":"IF($B712=\"N\",\"\",IF(OR('Enrollment Form'!$B719<>\"Subscriber\",'Enrollment Form'!$C719=\"ROC\"),\"-\",IF(AND('Enrollment Form'!$B719=\"Subscriber\",'Enrollment Form'!$C719=\"Enroll\",'Enrollment Form'!$CO719<>\"\"),\"Y\",\"N\")))","v":""},{"$f":"IF($B712=\"N\",\"\",IF($S712=\"-\",\"-\",IF(AND($S712=\"Y\",'Enrollment Form'!$CO719=\"No\"),\"-\",IF(AND($S712=\"Y\",'Enrollment Form'!$CO719=\"Yes\",'Enrollment Form'!$CP719<>\"\"),\"Y\",\"N\"))))","v":""},{"$f":"IF(OR('Enrollment Form'!$AV719=\"Yes\",'Enrollment Form'!$AV719=\"\"),\"-\",IF(AND('Enrollment Form'!$AV719=\"No\",ISERROR(FIND(\"HMO\",VLOOKUP('Enrollment Form'!G719,'Enrollment Form'!H$11:J$1000,3,FALSE),1))=FALSE,COUNTA('Enrollment Form'!$AW719:$AZ719)=4),\"Y\",\"N\"))","v":"-"},{"$f":"IF($B712=\"N\",\"\",IF('Enrollment Form'!$B719=\"Subscriber\",\"-\",IF(COUNTA('Enrollment Form'!$BE719,'Enrollment Form'!$BG719)=2,\"Y\",\"N\")))","v":""},{"$f":"IF($B712=\"N\",\"\",IF(OR('Enrollment Form'!$AU719=\"\",'Enrollment Form'!$AU719=\"No\"),\"-\",IF(AND('Enrollment Form'!$AU719=\"Yes\",COUNTA('Enrollment Form'!$CK719)=1),\"Y\",\"N\")))","v":""},{"$f":"IF(OR('Enrollment Form'!$CK719=\"\",'Enrollment Form'!$CK719=\"No\"),\"-\",IF(COUNTA('Enrollment Form'!$CM719:$CN719)=2,\"Y\",\"N\"))","v":"-"},{"$f":"IF($B712=\"N\",\"\",IF(COUNTIF('Enrollment Form'!$CZ719:$DO719,\"Other\")=COUNTA('Enrollment Form'!$DF719,'Enrollment Form'!$DA719,'Enrollment Form'!$DK719,'Enrollment Form'!$DP719),\"Y\",\"N\"))","v":""},{"$f":"IF($B712=\"N\",\"\",IF(OR('Enrollment Form'!B719<>\"Subscriber\",'Enrollment Form'!C719=\"ROC\",COUNTIF('Enrollment Form'!AS719:AT719,\"Yes\")>=1),\"-\",IF(AND('Enrollment Form'!C719=\"Enroll\",COUNTIF('Enrollment Form'!AS719:AT719,\"No\")=2,'Enrollment Form'!AU719=\"\"),\"N\",\"Y\")))","v":""},{"$f":"IF(OR(B712=\"N\",'Enrollment Form'!B719<>\"Subscriber\",'Enrollment Form'!C719=\"ROC\",'Enrollment Form'!O719<>\"Multiple of Salary\"),\"-\",IF(COUNTA('Enrollment Form'!T719:U719)<2,\"N\",\"Y\"))","v":"-"},{"$f":"IF(B712=\"N\",\"\",IF(OR('Enrollment Form'!C719=\"ROC\",'Enrollment Form'!B719<>\"Subscriber\",'Enrollment Form'!O719=\"Waive\",'Enrollment Form'!O719=\"\"),\"-\",IF('Enrollment Form'!P719=\"\",\"N\",\"Y\")))","v":""},{"$f":"IF($B712=\"N\",\"\",IF(AND('Enrollment Form'!$C719=\"ROC\",'Enrollment Form'!$DS719<>\"\"),\"Y\",IF(AND('Enrollment Form'!$C719=\"ROC\",'Enrollment Form'!$DS719=\"\"),\"N\",IF(AND('Enrollment Form'!$C719=\"Enroll\",'Enrollment Form'!$B719=\"Subscriber\",'Enrollment Form'!$CQ719=\"No\",'Enrollment Form'!$DS719=\"\"),\"N\",IF(AND('Enrollment Form'!$C719=\"Enroll\",'Enrollment Form'!$B719=\"Subscriber\",'Enrollment Form'!$CQ719=\"Yes\"),\"-\",\"Y\")))))","v":""},{"$f":"IF($B712=\"N\",\"\",IF(AND('Enrollment Form'!$C719=\"ROC\",'Enrollment Form'!$DT719<>\"\"),\"Y\",IF(AND('Enrollment Form'!$C719=\"ROC\",'Enrollment Form'!$DT719=\"\"),\"N\",IF(AND('Enrollment Form'!$C719=\"Enroll\",'Enrollment Form'!$B719=\"Subscriber\",'Enrollment Form'!$CQ719=\"No\",'Enrollment Form'!$DT719=\"\"),\"N\",IF(AND('Enrollment Form'!$C719=\"Enroll\",'Enrollment Form'!$B719=\"Subscriber\",'Enrollment Form'!$CQ719=\"Yes\"),\"-\",\"Y\")))))","v":""},{"$f":"IF('Enrollment Form'!AH719=\"\",\"\",IF(ISERROR(SEARCH(\".\",'Enrollment Form'!AH719,SEARCH(\"@\",'Enrollment Form'!AH719))),\"N\",\"Y\"))","v":""},{"$f":"IF(OR($B712=\"N\",'Enrollment Form'!$G719=\"\"),\"\",IF('Enrollment Form'!$B719<>\"Subscriber\",\"-\",IF(COUNTIF('Enrollment Form'!$AS719:$AT719,\"Yes\")=2,\"N\",\"Y\")))","v":""},{"$f":"IF(OR('Enrollment Form'!$CC719=\"\",'Enrollment Form'!$CC719=\"No\"),\"-\",IF(AND('Enrollment Form'!$CC719=\"Yes\",'Enrollment Form'!$CD719=\"\"),\"N\",\"Y\"))","v":"-"},{"$f":"IF(OR('Enrollment Form'!$CE719=\"\",'Enrollment Form'!$CE719=\"No\"),\"-\",IF(AND('Enrollment Form'!$CE719=\"Yes\",'Enrollment Form'!$CF719=\"\"),\"N\",\"Y\"))","v":"-"},{"$f":"IF(OR('Enrollment Form'!$CG719=\"\",'Enrollment Form'!$CG719=\"No\"),\"-\",IF(AND('Enrollment Form'!$CG719=\"Yes\",'Enrollment Form'!$CH719=\"\"),\"N\",\"Y\"))","v":"-"},{"$f":"IF(OR('Enrollment Form'!$CG719=\"\",'Enrollment Form'!$CG719=\"No\"),\"-\",IF(AND('Enrollment Form'!$CG719=\"Yes\",'Enrollment Form'!$CI719=\"\"),\"N\",\"Y\"))","v":"-"},{"$f":"IF('Enrollment Form'!B719<>\"Subscriber\",\"-\",IF(AND('Enrollment Form'!B719=\"Subscriber\",'Enrollment Form'!C719=\"Enroll\",'Enrollment Form'!AA719=\"\"),\"N\",\"Y\"))","v":"-"},{"$f":"IF(OR('Enrollment Form'!B719=\"Subscriber\",'Enrollment Form'!B719=\"\"),\"-\",IF('Enrollment Form'!BI719=\"\",\"N\",\"Y\"))","v":"-"},{"$f":"IF('Enrollment Form'!B719<>\"Subscriber\",\"-\",IF(AND('Enrollment Form'!B719=\"Subscriber\",'Enrollment Form'!G719=\"\"),\"N\",\"Y\"))","v":"-"},{"$f":"IF('Enrollment Form'!A719=\"\",\"\",IF('Enrollment Form'!B719=\"Subscriber\",\"-\",IF(AND('Enrollment Form'!B719<>\"Subscriber\",'Enrollment Form'!G719='Enrollment Form'!H719),\"N\",\"Y\")))","v":""},0]
[720,{"$f":"IF('Enrollment Form'!$A720<>\"\",\"Y\",\"N\")","v":"N"},{"$f":"IF(AND('Enrollment Form'!$B720=\"\",'Enrollment Form'!$C720<>\"\"),\"N\",IF($B713=\"N\",\"\",\"Y\"))","v":""},{"$f":"IF(OR($B713=\"N\",'Enrollment Form'!G720=\"\"),\"\",IF('Enrollment Form'!$B720<>\"Subscriber\",\"\",IF('Enrollment Form'!$G720='Enrollment Form'!$H720,\"Y\",\"N\")))","v":""},{"$f":"IF($B713=\"N\",\"\",IF(AND(COUNTIFS('Enrollment Form'!$H$11:$H$1000,'Enrollment Form'!$H720,'Enrollment Form'!$B$11:$B$1000,'Enrollment Form'!$B720)>1,'Enrollment Form'!$H720<>\"\"),\"N\",\"Y\"))","v":""},{"$f":"IF($B713=\"N\",\"\",IF(LEN('Enrollment Form'!$Y720)=0,\"\",IF(LEN('Enrollment Form'!$Y720)<>5,\"N\",\"Y\")))","v":""},{"$f":"IF($B713=\"N\",\"\",IF(LEN('Enrollment Form'!$AD720=0),\"\",IF(LEN('Enrollment Form'!$AD720)<>5,\"N\",\"Y\")))","v":""},{"$f":"IF($B713=\"N\",\"\",IF(LEN('Enrollment Form'!$BL720=0),\"\",IF(LEN('Enrollment Form'!$BL720)<>5,\"N\",\"Y\")))","v":""},{"$f":"IF($B713=\"N\",\"\",IF(LEN('Enrollment Form'!$AE720)=0,\"\",IF(LEN('Enrollment Form'!$AE720)<>10,\"N\",\"Y\")))","v":""},{"$f":"IF($B713=\"N\",\"\",IF(LEN('Enrollment Form'!$AF720)=0,\"\",IF(LEN('Enrollment Form'!$AF720)<>10,\"N\",\"Y\")))","v":""},{"$f":"IF('Enrollment Form'!$O720<>\"Graded\",\"-\",IF(AND('Enrollment Form'!$O720=\"Graded\",'Enrollment Form'!$AO720<>\"\"),\"Y\",\"N\"))","v":"-"},{"$f":"IF($B713=\"N\",\"\",IF(OR('Enrollment Form'!$B720<>\"Subscriber\",'Enrollment Form'!$C720=\"ROC\"),\"-\",IF(AND('Enrollment Form'!$B720=\"Subscriber\",'Enrollment Form'!$C720=\"Enroll\",'Enrollment Form'!$AJ720<>\"\"),\"Y\",\"N\")))","v":""},{"$f":"IF($B713=\"N\",\"\",IF(OR('Enrollment Form'!$B720<>\"Subscriber\",'Enrollment Form'!$C720=\"ROC\"),\"-\",IF(AND('Enrollment Form'!$B720=\"Subscriber\",'Enrollment Form'!$C720=\"Enroll\",'Enrollment Form'!$AK720<>\"\"),\"Y\",\"N\")))","v":""},{"$f":"IF($B713=\"N\",\"\",IF(OR('Enrollment Form'!$B720<>\"Subscriber\",'Enrollment Form'!$C720=\"ROC\"),\"-\",IF(AND('Enrollment Form'!$B720=\"Subscriber\",'Enrollment Form'!$C720=\"Enroll\",'Enrollment Form'!$AL720<>\"\"),\"Y\",\"N\")))","v":""},{"$f":"IF($B713=\"N\",\"\",IF(OR('Enrollment Form'!$B720<>\"Subscriber\",'Enrollment Form'!$C720=\"ROC\"),\"-\",IF(AND('Enrollment Form'!$B720=\"Subscriber\",'Enrollment Form'!$C720=\"Enroll\",'Enrollment Form'!$AM720<>\"\"),\"Y\",\"N\")))","v":""},{"$f":"IF($B713=\"N\",\"\",IF(OR('Enrollment Form'!$B720<>\"Subscriber\",'Enrollment Form'!$C720=\"ROC\"),\"-\",IF(AND('Enrollment Form'!$B720=\"Subscriber\",'Enrollment Form'!$C720=\"Enroll\",'Enrollment Form'!$AN720<>\"\"),\"Y\",\"N\")))","v":""},{"$f":"IF($B713=\"N\",\"\",IF(OR('Enrollment Form'!$B720<>\"Subscriber\",'Enrollment Form'!$C720=\"ROC\"),\"-\",IF(AND('Enrollment Form'!$B720=\"Subscriber\",'Enrollment Form'!$C720=\"Enroll\",'Enrollment Form'!$AP720<>\"\"),\"Y\",\"N\")))","v":""},{"$f":"IF($B713=\"N\",\"\",IF($Q713=\"-\",\"-\",IF(AND($Q713=\"Y\",'Enrollment Form'!$AP720=\"No\"),\"-\",IF(AND($Q713=\"Y\",'Enrollment Form'!$AP720=\"Yes\",'Enrollment Form'!$AQ720<>\"\"),\"Y\",\"N\"))))","v":""},{"$f":"IF($B713=\"N\",\"\",IF(OR('Enrollment Form'!$B720<>\"Subscriber\",'Enrollment Form'!$C720=\"ROC\"),\"-\",IF(AND('Enrollment Form'!$B720=\"Subscriber\",'Enrollment Form'!$C720=\"Enroll\",'Enrollment Form'!$CO720<>\"\"),\"Y\",\"N\")))","v":""},{"$f":"IF($B713=\"N\",\"\",IF($S713=\"-\",\"-\",IF(AND($S713=\"Y\",'Enrollment Form'!$CO720=\"No\"),\"-\",IF(AND($S713=\"Y\",'Enrollment Form'!$CO720=\"Yes\",'Enrollment Form'!$CP720<>\"\"),\"Y\",\"N\"))))","v":""},{"$f":"IF(OR('Enrollment Form'!$AV720=\"Yes\",'Enrollment Form'!$AV720=\"\"),\"-\",IF(AND('Enrollment Form'!$AV720=\"No\",ISERROR(FIND(\"HMO\",VLOOKUP('Enrollment Form'!G720,'Enrollment Form'!H$11:J$1000,3,FALSE),1))=FALSE,COUNTA('Enrollment Form'!$AW720:$AZ720)=4),\"Y\",\"N\"))","v":"-"},{"$f":"IF($B713=\"N\",\"\",IF('Enrollment Form'!$B720=\"Subscriber\",\"-\",IF(COUNTA('Enrollment Form'!$BE720,'Enrollment Form'!$BG720)=2,\"Y\",\"N\")))","v":""},{"$f":"IF($B713=\"N\",\"\",IF(OR('Enrollment Form'!$AU720=\"\",'Enrollment Form'!$AU720=\"No\"),\"-\",IF(AND('Enrollment Form'!$AU720=\"Yes\",COUNTA('Enrollment Form'!$CK720)=1),\"Y\",\"N\")))","v":""},{"$f":"IF(OR('Enrollment Form'!$CK720=\"\",'Enrollment Form'!$CK720=\"No\"),\"-\",IF(COUNTA('Enrollment Form'!$CM720:$CN720)=2,\"Y\",\"N\"))","v":"-"},{"$f":"IF($B713=\"N\",\"\",IF(COUNTIF('Enrollment Form'!$CZ720:$DO720,\"Other\")=COUNTA('Enrollment Form'!$DF720,'Enrollment Form'!$DA720,'Enrollment Form'!$DK720,'Enrollment Form'!$DP720),\"Y\",\"N\"))","v":""},{"$f":"IF($B713=\"N\",\"\",IF(OR('Enrollment Form'!B720<>\"Subscriber\",'Enrollment Form'!C720=\"ROC\",COUNTIF('Enrollment Form'!AS720:AT720,\"Yes\")>=1),\"-\",IF(AND('Enrollment Form'!C720=\"Enroll\",COUNTIF('Enrollment Form'!AS720:AT720,\"No\")=2,'Enrollment Form'!AU720=\"\"),\"N\",\"Y\")))","v":""},{"$f":"IF(OR(B713=\"N\",'Enrollment Form'!B720<>\"Subscriber\",'Enrollment Form'!C720=\"ROC\",'Enrollment Form'!O720<>\"Multiple of Salary\"),\"-\",IF(COUNTA('Enrollment Form'!T720:U720)<2,\"N\",\"Y\"))","v":"-"},{"$f":"IF(B713=\"N\",\"\",IF(OR('Enrollment Form'!C720=\"ROC\",'Enrollment Form'!B720<>\"Subscriber\",'Enrollment Form'!O720=\"Waive\",'Enrollment Form'!O720=\"\"),\"-\",IF('Enrollment Form'!P720=\"\",\"N\",\"Y\")))","v":""},{"$f":"IF($B713=\"N\",\"\",IF(AND('Enrollment Form'!$C720=\"ROC\",'Enrollment Form'!$DS720<>\"\"),\"Y\",IF(AND('Enrollment Form'!$C720=\"ROC\",'Enrollment Form'!$DS720=\"\"),\"N\",IF(AND('Enrollment Form'!$C720=\"Enroll\",'Enrollment Form'!$B720=\"Subscriber\",'Enrollment Form'!$CQ720=\"No\",'Enrollment Form'!$DS720=\"\"),\"N\",IF(AND('Enrollment Form'!$C720=\"Enroll\",'Enrollment Form'!$B720=\"Subscriber\",'Enrollment Form'!$CQ720=\"Yes\"),\"-\",\"Y\")))))","v":""},{"$f":"IF($B713=\"N\",\"\",IF(AND('Enrollment Form'!$C720=\"ROC\",'Enrollment Form'!$DT720<>\"\"),\"Y\",IF(AND('Enrollment Form'!$C720=\"ROC\",'Enrollment Form'!$DT720=\"\"),\"N\",IF(AND('Enrollment Form'!$C720=\"Enroll\",'Enrollment Form'!$B720=\"Subscriber\",'Enrollment Form'!$CQ720=\"No\",'Enrollment Form'!$DT720=\"\"),\"N\",IF(AND('Enrollment Form'!$C720=\"Enroll\",'Enrollment Form'!$B720=\"Subscriber\",'Enrollment Form'!$CQ720=\"Yes\"),\"-\",\"Y\")))))","v":""},{"$f":"IF('Enrollment Form'!AH720=\"\",\"\",IF(ISERROR(SEARCH(\".\",'Enrollment Form'!AH720,SEARCH(\"@\",'Enrollment Form'!AH720))),\"N\",\"Y\"))","v":""},{"$f":"IF(OR($B713=\"N\",'Enrollment Form'!$G720=\"\"),\"\",IF('Enrollment Form'!$B720<>\"Subscriber\",\"-\",IF(COUNTIF('Enrollment Form'!$AS720:$AT720,\"Yes\")=2,\"N\",\"Y\")))","v":""},{"$f":"IF(OR('Enrollment Form'!$CC720=\"\",'Enrollment Form'!$CC720=\"No\"),\"-\",IF(AND('Enrollment Form'!$CC720=\"Yes\",'Enrollment Form'!$CD720=\"\"),\"N\",\"Y\"))","v":"-"},{"$f":"IF(OR('Enrollment Form'!$CE720=\"\",'Enrollment Form'!$CE720=\"No\"),\"-\",IF(AND('Enrollment Form'!$CE720=\"Yes\",'Enrollment Form'!$CF720=\"\"),\"N\",\"Y\"))","v":"-"},{"$f":"IF(OR('Enrollment Form'!$CG720=\"\",'Enrollment Form'!$CG720=\"No\"),\"-\",IF(AND('Enrollment Form'!$CG720=\"Yes\",'Enrollment Form'!$CH720=\"\"),\"N\",\"Y\"))","v":"-"},{"$f":"IF(OR('Enrollment Form'!$CG720=\"\",'Enrollment Form'!$CG720=\"No\"),\"-\",IF(AND('Enrollment Form'!$CG720=\"Yes\",'Enrollment Form'!$CI720=\"\"),\"N\",\"Y\"))","v":"-"},{"$f":"IF('Enrollment Form'!B720<>\"Subscriber\",\"-\",IF(AND('Enrollment Form'!B720=\"Subscriber\",'Enrollment Form'!C720=\"Enroll\",'Enrollment Form'!AA720=\"\"),\"N\",\"Y\"))","v":"-"},{"$f":"IF(OR('Enrollment Form'!B720=\"Subscriber\",'Enrollment Form'!B720=\"\"),\"-\",IF('Enrollment Form'!BI720=\"\",\"N\",\"Y\"))","v":"-"},{"$f":"IF('Enrollment Form'!B720<>\"Subscriber\",\"-\",IF(AND('Enrollment Form'!B720=\"Subscriber\",'Enrollment Form'!G720=\"\"),\"N\",\"Y\"))","v":"-"},{"$f":"IF('Enrollment Form'!A720=\"\",\"\",IF('Enrollment Form'!B720=\"Subscriber\",\"-\",IF(AND('Enrollment Form'!B720<>\"Subscriber\",'Enrollment Form'!G720='Enrollment Form'!H720),\"N\",\"Y\")))","v":""},0]
[721,{"$f":"IF('Enrollment Form'!$A721<>\"\",\"Y\",\"N\")","v":"N"},{"$f":"IF(AND('Enrollment Form'!$B721=\"\",'Enrollment Form'!$C721<>\"\"),\"N\",IF($B714=\"N\",\"\",\"Y\"))","v":""},{"$f":"IF(OR($B714=\"N\",'Enrollment Form'!G721=\"\"),\"\",IF('Enrollment Form'!$B721<>\"Subscriber\",\"\",IF('Enrollment Form'!$G721='Enrollment Form'!$H721,\"Y\",\"N\")))","v":""},{"$f":"IF($B714=\"N\",\"\",IF(AND(COUNTIFS('Enrollment Form'!$H$11:$H$1000,'Enrollment Form'!$H721,'Enrollment Form'!$B$11:$B$1000,'Enrollment Form'!$B721)>1,'Enrollment Form'!$H721<>\"\"),\"N\",\"Y\"))","v":""},{"$f":"IF($B714=\"N\",\"\",IF(LEN('Enrollment Form'!$Y721)=0,\"\",IF(LEN('Enrollment Form'!$Y721)<>5,\"N\",\"Y\")))","v":""},{"$f":"IF($B714=\"N\",\"\",IF(LEN('Enrollment Form'!$AD721=0),\"\",IF(LEN('Enrollment Form'!$AD721)<>5,\"N\",\"Y\")))","v":""},{"$f":"IF($B714=\"N\",\"\",IF(LEN('Enrollment Form'!$BL721=0),\"\",IF(LEN('Enrollment Form'!$BL721)<>5,\"N\",\"Y\")))","v":""},{"$f":"IF($B714=\"N\",\"\",IF(LEN('Enrollment Form'!$AE721)=0,\"\",IF(LEN('Enrollment Form'!$AE721)<>10,\"N\",\"Y\")))","v":""},{"$f":"IF($B714=\"N\",\"\",IF(LEN('Enrollment Form'!$AF721)=0,\"\",IF(LEN('Enrollment Form'!$AF721)<>10,\"N\",\"Y\")))","v":""},{"$f":"IF('Enrollment Form'!$O721<>\"Graded\",\"-\",IF(AND('Enrollment Form'!$O721=\"Graded\",'Enrollment Form'!$AO721<>\"\"),\"Y\",\"N\"))","v":"-"},{"$f":"IF($B714=\"N\",\"\",IF(OR('Enrollment Form'!$B721<>\"Subscriber\",'Enrollment Form'!$C721=\"ROC\"),\"-\",IF(AND('Enrollment Form'!$B721=\"Subscriber\",'Enrollment Form'!$C721=\"Enroll\",'Enrollment Form'!$AJ721<>\"\"),\"Y\",\"N\")))","v":""},{"$f":"IF($B714=\"N\",\"\",IF(OR('Enrollment Form'!$B721<>\"Subscriber\",'Enrollment Form'!$C721=\"ROC\"),\"-\",IF(AND('Enrollment Form'!$B721=\"Subscriber\",'Enrollment Form'!$C721=\"Enroll\",'Enrollment Form'!$AK721<>\"\"),\"Y\",\"N\")))","v":""},{"$f":"IF($B714=\"N\",\"\",IF(OR('Enrollment Form'!$B721<>\"Subscriber\",'Enrollment Form'!$C721=\"ROC\"),\"-\",IF(AND('Enrollment Form'!$B721=\"Subscriber\",'Enrollment Form'!$C721=\"Enroll\",'Enrollment Form'!$AL721<>\"\"),\"Y\",\"N\")))","v":""},{"$f":"IF($B714=\"N\",\"\",IF(OR('Enrollment Form'!$B721<>\"Subscriber\",'Enrollment Form'!$C721=\"ROC\"),\"-\",IF(AND('Enrollment Form'!$B721=\"Subscriber\",'Enrollment Form'!$C721=\"Enroll\",'Enrollment Form'!$AM721<>\"\"),\"Y\",\"N\")))","v":""},{"$f":"IF($B714=\"N\",\"\",IF(OR('Enrollment Form'!$B721<>\"Subscriber\",'Enrollment Form'!$C721=\"ROC\"),\"-\",IF(AND('Enrollment Form'!$B721=\"Subscriber\",'Enrollment Form'!$C721=\"Enroll\",'Enrollment Form'!$AN721<>\"\"),\"Y\",\"N\")))","v":""},{"$f":"IF($B714=\"N\",\"\",IF(OR('Enrollment Form'!$B721<>\"Subscriber\",'Enrollment Form'!$C721=\"ROC\"),\"-\",IF(AND('Enrollment Form'!$B721=\"Subscriber\",'Enrollment Form'!$C721=\"Enroll\",'Enrollment Form'!$AP721<>\"\"),\"Y\",\"N\")))","v":""},{"$f":"IF($B714=\"N\",\"\",IF($Q714=\"-\",\"-\",IF(AND($Q714=\"Y\",'Enrollment Form'!$AP721=\"No\"),\"-\",IF(AND($Q714=\"Y\",'Enrollment Form'!$AP721=\"Yes\",'Enrollment Form'!$AQ721<>\"\"),\"Y\",\"N\"))))","v":""},{"$f":"IF($B714=\"N\",\"\",IF(OR('Enrollment Form'!$B721<>\"Subscriber\",'Enrollment Form'!$C721=\"ROC\"),\"-\",IF(AND('Enrollment Form'!$B721=\"Subscriber\",'Enrollment Form'!$C721=\"Enroll\",'Enrollment Form'!$CO721<>\"\"),\"Y\",\"N\")))","v":""},{"$f":"IF($B714=\"N\",\"\",IF($S714=\"-\",\"-\",IF(AND($S714=\"Y\",'Enrollment Form'!$CO721=\"No\"),\"-\",IF(AND($S714=\"Y\",'Enrollment Form'!$CO721=\"Yes\",'Enrollment Form'!$CP721<>\"\"),\"Y\",\"N\"))))","v":""},{"$f":"IF(OR('Enrollment Form'!$AV721=\"Yes\",'Enrollment Form'!$AV721=\"\"),\"-\",IF(AND('Enrollment Form'!$AV721=\"No\",ISERROR(FIND(\"HMO\",VLOOKUP('Enrollment Form'!G721,'Enrollment Form'!H$11:J$1000,3,FALSE),1))=FALSE,COUNTA('Enrollment Form'!$AW721:$AZ721)=4),\"Y\",\"N\"))","v":"-"},{"$f":"IF($B714=\"N\",\"\",IF('Enrollment Form'!$B721=\"Subscriber\",\"-\",IF(COUNTA('Enrollment Form'!$BE721,'Enrollment Form'!$BG721)=2,\"Y\",\"N\")))","v":""},{"$f":"IF($B714=\"N\",\"\",IF(OR('Enrollment Form'!$AU721=\"\",'Enrollment Form'!$AU721=\"No\"),\"-\",IF(AND('Enrollment Form'!$AU721=\"Yes\",COUNTA('Enrollment Form'!$CK721)=1),\"Y\",\"N\")))","v":""},{"$f":"IF(OR('Enrollment Form'!$CK721=\"\",'Enrollment Form'!$CK721=\"No\"),\"-\",IF(COUNTA('Enrollment Form'!$CM721:$CN721)=2,\"Y\",\"N\"))","v":"-"},{"$f":"IF($B714=\"N\",\"\",IF(COUNTIF('Enrollment Form'!$CZ721:$DO721,\"Other\")=COUNTA('Enrollment Form'!$DF721,'Enrollment Form'!$DA721,'Enrollment Form'!$DK721,'Enrollment Form'!$DP721),\"Y\",\"N\"))","v":""},{"$f":"IF($B714=\"N\",\"\",IF(OR('Enrollment Form'!B721<>\"Subscriber\",'Enrollment Form'!C721=\"ROC\",COUNTIF('Enrollment Form'!AS721:AT721,\"Yes\")>=1),\"-\",IF(AND('Enrollment Form'!C721=\"Enroll\",COUNTIF('Enrollment Form'!AS721:AT721,\"No\")=2,'Enrollment Form'!AU721=\"\"),\"N\",\"Y\")))","v":""},{"$f":"IF(OR(B714=\"N\",'Enrollment Form'!B721<>\"Subscriber\",'Enrollment Form'!C721=\"ROC\",'Enrollment Form'!O721<>\"Multiple of Salary\"),\"-\",IF(COUNTA('Enrollment Form'!T721:U721)<2,\"N\",\"Y\"))","v":"-"},{"$f":"IF(B714=\"N\",\"\",IF(OR('Enrollment Form'!C721=\"ROC\",'Enrollment Form'!B721<>\"Subscriber\",'Enrollment Form'!O721=\"Waive\",'Enrollment Form'!O721=\"\"),\"-\",IF('Enrollment Form'!P721=\"\",\"N\",\"Y\")))","v":""},{"$f":"IF($B714=\"N\",\"\",IF(AND('Enrollment Form'!$C721=\"ROC\",'Enrollment Form'!$DS721<>\"\"),\"Y\",IF(AND('Enrollment Form'!$C721=\"ROC\",'Enrollment Form'!$DS721=\"\"),\"N\",IF(AND('Enrollment Form'!$C721=\"Enroll\",'Enrollment Form'!$B721=\"Subscriber\",'Enrollment Form'!$CQ721=\"No\",'Enrollment Form'!$DS721=\"\"),\"N\",IF(AND('Enrollment Form'!$C721=\"Enroll\",'Enrollment Form'!$B721=\"Subscriber\",'Enrollment Form'!$CQ721=\"Yes\"),\"-\",\"Y\")))))","v":""},{"$f":"IF($B714=\"N\",\"\",IF(AND('Enrollment Form'!$C721=\"ROC\",'Enrollment Form'!$DT721<>\"\"),\"Y\",IF(AND('Enrollment Form'!$C721=\"ROC\",'Enrollment Form'!$DT721=\"\"),\"N\",IF(AND('Enrollment Form'!$C721=\"Enroll\",'Enrollment Form'!$B721=\"Subscriber\",'Enrollment Form'!$CQ721=\"No\",'Enrollment Form'!$DT721=\"\"),\"N\",IF(AND('Enrollment Form'!$C721=\"Enroll\",'Enrollment Form'!$B721=\"Subscriber\",'Enrollment Form'!$CQ721=\"Yes\"),\"-\",\"Y\")))))","v":""},{"$f":"IF('Enrollment Form'!AH721=\"\",\"\",IF(ISERROR(SEARCH(\".\",'Enrollment Form'!AH721,SEARCH(\"@\",'Enrollment Form'!AH721))),\"N\",\"Y\"))","v":""},{"$f":"IF(OR($B714=\"N\",'Enrollment Form'!$G721=\"\"),\"\",IF('Enrollment Form'!$B721<>\"Subscriber\",\"-\",IF(COUNTIF('Enrollment Form'!$AS721:$AT721,\"Yes\")=2,\"N\",\"Y\")))","v":""},{"$f":"IF(OR('Enrollment Form'!$CC721=\"\",'Enrollment Form'!$CC721=\"No\"),\"-\",IF(AND('Enrollment Form'!$CC721=\"Yes\",'Enrollment Form'!$CD721=\"\"),\"N\",\"Y\"))","v":"-"},{"$f":"IF(OR('Enrollment Form'!$CE721=\"\",'Enrollment Form'!$CE721=\"No\"),\"-\",IF(AND('Enrollment Form'!$CE721=\"Yes\",'Enrollment Form'!$CF721=\"\"),\"N\",\"Y\"))","v":"-"},{"$f":"IF(OR('Enrollment Form'!$CG721=\"\",'Enrollment Form'!$CG721=\"No\"),\"-\",IF(AND('Enrollment Form'!$CG721=\"Yes\",'Enrollment Form'!$CH721=\"\"),\"N\",\"Y\"))","v":"-"},{"$f":"IF(OR('Enrollment Form'!$CG721=\"\",'Enrollment Form'!$CG721=\"No\"),\"-\",IF(AND('Enrollment Form'!$CG721=\"Yes\",'Enrollment Form'!$CI721=\"\"),\"N\",\"Y\"))","v":"-"},{"$f":"IF('Enrollment Form'!B721<>\"Subscriber\",\"-\",IF(AND('Enrollment Form'!B721=\"Subscriber\",'Enrollment Form'!C721=\"Enroll\",'Enrollment Form'!AA721=\"\"),\"N\",\"Y\"))","v":"-"},{"$f":"IF(OR('Enrollment Form'!B721=\"Subscriber\",'Enrollment Form'!B721=\"\"),\"-\",IF('Enrollment Form'!BI721=\"\",\"N\",\"Y\"))","v":"-"},{"$f":"IF('Enrollment Form'!B721<>\"Subscriber\",\"-\",IF(AND('Enrollment Form'!B721=\"Subscriber\",'Enrollment Form'!G721=\"\"),\"N\",\"Y\"))","v":"-"},{"$f":"IF('Enrollment Form'!A721=\"\",\"\",IF('Enrollment Form'!B721=\"Subscriber\",\"-\",IF(AND('Enrollment Form'!B721<>\"Subscriber\",'Enrollment Form'!G721='Enrollment Form'!H721),\"N\",\"Y\")))","v":""},0]
[722,{"$f":"IF('Enrollment Form'!$A722<>\"\",\"Y\",\"N\")","v":"N"},{"$f":"IF(AND('Enrollment Form'!$B722=\"\",'Enrollment Form'!$C722<>\"\"),\"N\",IF($B715=\"N\",\"\",\"Y\"))","v":""},{"$f":"IF(OR($B715=\"N\",'Enrollment Form'!G722=\"\"),\"\",IF('Enrollment Form'!$B722<>\"Subscriber\",\"\",IF('Enrollment Form'!$G722='Enrollment Form'!$H722,\"Y\",\"N\")))","v":""},{"$f":"IF($B715=\"N\",\"\",IF(AND(COUNTIFS('Enrollment Form'!$H$11:$H$1000,'Enrollment Form'!$H722,'Enrollment Form'!$B$11:$B$1000,'Enrollment Form'!$B722)>1,'Enrollment Form'!$H722<>\"\"),\"N\",\"Y\"))","v":""},{"$f":"IF($B715=\"N\",\"\",IF(LEN('Enrollment Form'!$Y722)=0,\"\",IF(LEN('Enrollment Form'!$Y722)<>5,\"N\",\"Y\")))","v":""},{"$f":"IF($B715=\"N\",\"\",IF(LEN('Enrollment Form'!$AD722=0),\"\",IF(LEN('Enrollment Form'!$AD722)<>5,\"N\",\"Y\")))","v":""},{"$f":"IF($B715=\"N\",\"\",IF(LEN('Enrollment Form'!$BL722=0),\"\",IF(LEN('Enrollment Form'!$BL722)<>5,\"N\",\"Y\")))","v":""},{"$f":"IF($B715=\"N\",\"\",IF(LEN('Enrollment Form'!$AE722)=0,\"\",IF(LEN('Enrollment Form'!$AE722)<>10,\"N\",\"Y\")))","v":""},{"$f":"IF($B715=\"N\",\"\",IF(LEN('Enrollment Form'!$AF722)=0,\"\",IF(LEN('Enrollment Form'!$AF722)<>10,\"N\",\"Y\")))","v":""},{"$f":"IF('Enrollment Form'!$O722<>\"Graded\",\"-\",IF(AND('Enrollment Form'!$O722=\"Graded\",'Enrollment Form'!$AO722<>\"\"),\"Y\",\"N\"))","v":"-"},{"$f":"IF($B715=\"N\",\"\",IF(OR('Enrollment Form'!$B722<>\"Subscriber\",'Enrollment Form'!$C722=\"ROC\"),\"-\",IF(AND('Enrollment Form'!$B722=\"Subscriber\",'Enrollment Form'!$C722=\"Enroll\",'Enrollment Form'!$AJ722<>\"\"),\"Y\",\"N\")))","v":""},{"$f":"IF($B715=\"N\",\"\",IF(OR('Enrollment Form'!$B722<>\"Subscriber\",'Enrollment Form'!$C722=\"ROC\"),\"-\",IF(AND('Enrollment Form'!$B722=\"Subscriber\",'Enrollment Form'!$C722=\"Enroll\",'Enrollment Form'!$AK722<>\"\"),\"Y\",\"N\")))","v":""},{"$f":"IF($B715=\"N\",\"\",IF(OR('Enrollment Form'!$B722<>\"Subscriber\",'Enrollment Form'!$C722=\"ROC\"),\"-\",IF(AND('Enrollment Form'!$B722=\"Subscriber\",'Enrollment Form'!$C722=\"Enroll\",'Enrollment Form'!$AL722<>\"\"),\"Y\",\"N\")))","v":""},{"$f":"IF($B715=\"N\",\"\",IF(OR('Enrollment Form'!$B722<>\"Subscriber\",'Enrollment Form'!$C722=\"ROC\"),\"-\",IF(AND('Enrollment Form'!$B722=\"Subscriber\",'Enrollment Form'!$C722=\"Enroll\",'Enrollment Form'!$AM722<>\"\"),\"Y\",\"N\")))","v":""},{"$f":"IF($B715=\"N\",\"\",IF(OR('Enrollment Form'!$B722<>\"Subscriber\",'Enrollment Form'!$C722=\"ROC\"),\"-\",IF(AND('Enrollment Form'!$B722=\"Subscriber\",'Enrollment Form'!$C722=\"Enroll\",'Enrollment Form'!$AN722<>\"\"),\"Y\",\"N\")))","v":""},{"$f":"IF($B715=\"N\",\"\",IF(OR('Enrollment Form'!$B722<>\"Subscriber\",'Enrollment Form'!$C722=\"ROC\"),\"-\",IF(AND('Enrollment Form'!$B722=\"Subscriber\",'Enrollment Form'!$C722=\"Enroll\",'Enrollment Form'!$AP722<>\"\"),\"Y\",\"N\")))","v":""},{"$f":"IF($B715=\"N\",\"\",IF($Q715=\"-\",\"-\",IF(AND($Q715=\"Y\",'Enrollment Form'!$AP722=\"No\"),\"-\",IF(AND($Q715=\"Y\",'Enrollment Form'!$AP722=\"Yes\",'Enrollment Form'!$AQ722<>\"\"),\"Y\",\"N\"))))","v":""},{"$f":"IF($B715=\"N\",\"\",IF(OR('Enrollment Form'!$B722<>\"Subscriber\",'Enrollment Form'!$C722=\"ROC\"),\"-\",IF(AND('Enrollment Form'!$B722=\"Subscriber\",'Enrollment Form'!$C722=\"Enroll\",'Enrollment Form'!$CO722<>\"\"),\"Y\",\"N\")))","v":""},{"$f":"IF($B715=\"N\",\"\",IF($S715=\"-\",\"-\",IF(AND($S715=\"Y\",'Enrollment Form'!$CO722=\"No\"),\"-\",IF(AND($S715=\"Y\",'Enrollment Form'!$CO722=\"Yes\",'Enrollment Form'!$CP722<>\"\"),\"Y\",\"N\"))))","v":""},{"$f":"IF(OR('Enrollment Form'!$AV722=\"Yes\",'Enrollment Form'!$AV722=\"\"),\"-\",IF(AND('Enrollment Form'!$AV722=\"No\",ISERROR(FIND(\"HMO\",VLOOKUP('Enrollment Form'!G722,'Enrollment Form'!H$11:J$1000,3,FALSE),1))=FALSE,COUNTA('Enrollment Form'!$AW722:$AZ722)=4),\"Y\",\"N\"))","v":"-"},{"$f":"IF($B715=\"N\",\"\",IF('Enrollment Form'!$B722=\"Subscriber\",\"-\",IF(COUNTA('Enrollment Form'!$BE722,'Enrollment Form'!$BG722)=2,\"Y\",\"N\")))","v":""},{"$f":"IF($B715=\"N\",\"\",IF(OR('Enrollment Form'!$AU722=\"\",'Enrollment Form'!$AU722=\"No\"),\"-\",IF(AND('Enrollment Form'!$AU722=\"Yes\",COUNTA('Enrollment Form'!$CK722)=1),\"Y\",\"N\")))","v":""},{"$f":"IF(OR('Enrollment Form'!$CK722=\"\",'Enrollment Form'!$CK722=\"No\"),\"-\",IF(COUNTA('Enrollment Form'!$CM722:$CN722)=2,\"Y\",\"N\"))","v":"-"},{"$f":"IF($B715=\"N\",\"\",IF(COUNTIF('Enrollment Form'!$CZ722:$DO722,\"Other\")=COUNTA('Enrollment Form'!$DF722,'Enrollment Form'!$DA722,'Enrollment Form'!$DK722,'Enrollment Form'!$DP722),\"Y\",\"N\"))","v":""},{"$f":"IF($B715=\"N\",\"\",IF(OR('Enrollment Form'!B722<>\"Subscriber\",'Enrollment Form'!C722=\"ROC\",COUNTIF('Enrollment Form'!AS722:AT722,\"Yes\")>=1),\"-\",IF(AND('Enrollment Form'!C722=\"Enroll\",COUNTIF('Enrollment Form'!AS722:AT722,\"No\")=2,'Enrollment Form'!AU722=\"\"),\"N\",\"Y\")))","v":""},{"$f":"IF(OR(B715=\"N\",'Enrollment Form'!B722<>\"Subscriber\",'Enrollment Form'!C722=\"ROC\",'Enrollment Form'!O722<>\"Multiple of Salary\"),\"-\",IF(COUNTA('Enrollment Form'!T722:U722)<2,\"N\",\"Y\"))","v":"-"},{"$f":"IF(B715=\"N\",\"\",IF(OR('Enrollment Form'!C722=\"ROC\",'Enrollment Form'!B722<>\"Subscriber\",'Enrollment Form'!O722=\"Waive\",'Enrollment Form'!O722=\"\"),\"-\",IF('Enrollment Form'!P722=\"\",\"N\",\"Y\")))","v":""},{"$f":"IF($B715=\"N\",\"\",IF(AND('Enrollment Form'!$C722=\"ROC\",'Enrollment Form'!$DS722<>\"\"),\"Y\",IF(AND('Enrollment Form'!$C722=\"ROC\",'Enrollment Form'!$DS722=\"\"),\"N\",IF(AND('Enrollment Form'!$C722=\"Enroll\",'Enrollment Form'!$B722=\"Subscriber\",'Enrollment Form'!$CQ722=\"No\",'Enrollment Form'!$DS722=\"\"),\"N\",IF(AND('Enrollment Form'!$C722=\"Enroll\",'Enrollment Form'!$B722=\"Subscriber\",'Enrollment Form'!$CQ722=\"Yes\"),\"-\",\"Y\")))))","v":""},{"$f":"IF($B715=\"N\",\"\",IF(AND('Enrollment Form'!$C722=\"ROC\",'Enrollment Form'!$DT722<>\"\"),\"Y\",IF(AND('Enrollment Form'!$C722=\"ROC\",'Enrollment Form'!$DT722=\"\"),\"N\",IF(AND('Enrollment Form'!$C722=\"Enroll\",'Enrollment Form'!$B722=\"Subscriber\",'Enrollment Form'!$CQ722=\"No\",'Enrollment Form'!$DT722=\"\"),\"N\",IF(AND('Enrollment Form'!$C722=\"Enroll\",'Enrollment Form'!$B722=\"Subscriber\",'Enrollment Form'!$CQ722=\"Yes\"),\"-\",\"Y\")))))","v":""},{"$f":"IF('Enrollment Form'!AH722=\"\",\"\",IF(ISERROR(SEARCH(\".\",'Enrollment Form'!AH722,SEARCH(\"@\",'Enrollment Form'!AH722))),\"N\",\"Y\"))","v":""},{"$f":"IF(OR($B715=\"N\",'Enrollment Form'!$G722=\"\"),\"\",IF('Enrollment Form'!$B722<>\"Subscriber\",\"-\",IF(COUNTIF('Enrollment Form'!$AS722:$AT722,\"Yes\")=2,\"N\",\"Y\")))","v":""},{"$f":"IF(OR('Enrollment Form'!$CC722=\"\",'Enrollment Form'!$CC722=\"No\"),\"-\",IF(AND('Enrollment Form'!$CC722=\"Yes\",'Enrollment Form'!$CD722=\"\"),\"N\",\"Y\"))","v":"-"},{"$f":"IF(OR('Enrollment Form'!$CE722=\"\",'Enrollment Form'!$CE722=\"No\"),\"-\",IF(AND('Enrollment Form'!$CE722=\"Yes\",'Enrollment Form'!$CF722=\"\"),\"N\",\"Y\"))","v":"-"},{"$f":"IF(OR('Enrollment Form'!$CG722=\"\",'Enrollment Form'!$CG722=\"No\"),\"-\",IF(AND('Enrollment Form'!$CG722=\"Yes\",'Enrollment Form'!$CH722=\"\"),\"N\",\"Y\"))","v":"-"},{"$f":"IF(OR('Enrollment Form'!$CG722=\"\",'Enrollment Form'!$CG722=\"No\"),\"-\",IF(AND('Enrollment Form'!$CG722=\"Yes\",'Enrollment Form'!$CI722=\"\"),\"N\",\"Y\"))","v":"-"},{"$f":"IF('Enrollment Form'!B722<>\"Subscriber\",\"-\",IF(AND('Enrollment Form'!B722=\"Subscriber\",'Enrollment Form'!C722=\"Enroll\",'Enrollment Form'!AA722=\"\"),\"N\",\"Y\"))","v":"-"},{"$f":"IF(OR('Enrollment Form'!B722=\"Subscriber\",'Enrollment Form'!B722=\"\"),\"-\",IF('Enrollment Form'!BI722=\"\",\"N\",\"Y\"))","v":"-"},{"$f":"IF('Enrollment Form'!B722<>\"Subscriber\",\"-\",IF(AND('Enrollment Form'!B722=\"Subscriber\",'Enrollment Form'!G722=\"\"),\"N\",\"Y\"))","v":"-"},{"$f":"IF('Enrollment Form'!A722=\"\",\"\",IF('Enrollment Form'!B722=\"Subscriber\",\"-\",IF(AND('Enrollment Form'!B722<>\"Subscriber\",'Enrollment Form'!G722='Enrollment Form'!H722),\"N\",\"Y\")))","v":""},0]
[723,{"$f":"IF('Enrollment Form'!$A723<>\"\",\"Y\",\"N\")","v":"N"},{"$f":"IF(AND('Enrollment Form'!$B723=\"\",'Enrollment Form'!$C723<>\"\"),\"N\",IF($B716=\"N\",\"\",\"Y\"))","v":""},{"$f":"IF(OR($B716=\"N\",'Enrollment Form'!G723=\"\"),\"\",IF('Enrollment Form'!$B723<>\"Subscriber\",\"\",IF('Enrollment Form'!$G723='Enrollment Form'!$H723,\"Y\",\"N\")))","v":""},{"$f":"IF($B716=\"N\",\"\",IF(AND(COUNTIFS('Enrollment Form'!$H$11:$H$1000,'Enrollment Form'!$H723,'Enrollment Form'!$B$11:$B$1000,'Enrollment Form'!$B723)>1,'Enrollment Form'!$H723<>\"\"),\"N\",\"Y\"))","v":""},{"$f":"IF($B716=\"N\",\"\",IF(LEN('Enrollment Form'!$Y723)=0,\"\",IF(LEN('Enrollment Form'!$Y723)<>5,\"N\",\"Y\")))","v":""},{"$f":"IF($B716=\"N\",\"\",IF(LEN('Enrollment Form'!$AD723=0),\"\",IF(LEN('Enrollment Form'!$AD723)<>5,\"N\",\"Y\")))","v":""},{"$f":"IF($B716=\"N\",\"\",IF(LEN('Enrollment Form'!$BL723=0),\"\",IF(LEN('Enrollment Form'!$BL723)<>5,\"N\",\"Y\")))","v":""},{"$f":"IF($B716=\"N\",\"\",IF(LEN('Enrollment Form'!$AE723)=0,\"\",IF(LEN('Enrollment Form'!$AE723)<>10,\"N\",\"Y\")))","v":""},{"$f":"IF($B716=\"N\",\"\",IF(LEN('Enrollment Form'!$AF723)=0,\"\",IF(LEN('Enrollment Form'!$AF723)<>10,\"N\",\"Y\")))","v":""},{"$f":"IF('Enrollment Form'!$O723<>\"Graded\",\"-\",IF(AND('Enrollment Form'!$O723=\"Graded\",'Enrollment Form'!$AO723<>\"\"),\"Y\",\"N\"))","v":"-"},{"$f":"IF($B716=\"N\",\"\",IF(OR('Enrollment Form'!$B723<>\"Subscriber\",'Enrollment Form'!$C723=\"ROC\"),\"-\",IF(AND('Enrollment Form'!$B723=\"Subscriber\",'Enrollment Form'!$C723=\"Enroll\",'Enrollment Form'!$AJ723<>\"\"),\"Y\",\"N\")))","v":""},{"$f":"IF($B716=\"N\",\"\",IF(OR('Enrollment Form'!$B723<>\"Subscriber\",'Enrollment Form'!$C723=\"ROC\"),\"-\",IF(AND('Enrollment Form'!$B723=\"Subscriber\",'Enrollment Form'!$C723=\"Enroll\",'Enrollment Form'!$AK723<>\"\"),\"Y\",\"N\")))","v":""},{"$f":"IF($B716=\"N\",\"\",IF(OR('Enrollment Form'!$B723<>\"Subscriber\",'Enrollment Form'!$C723=\"ROC\"),\"-\",IF(AND('Enrollment Form'!$B723=\"Subscriber\",'Enrollment Form'!$C723=\"Enroll\",'Enrollment Form'!$AL723<>\"\"),\"Y\",\"N\")))","v":""},{"$f":"IF($B716=\"N\",\"\",IF(OR('Enrollment Form'!$B723<>\"Subscriber\",'Enrollment Form'!$C723=\"ROC\"),\"-\",IF(AND('Enrollment Form'!$B723=\"Subscriber\",'Enrollment Form'!$C723=\"Enroll\",'Enrollment Form'!$AM723<>\"\"),\"Y\",\"N\")))","v":""},{"$f":"IF($B716=\"N\",\"\",IF(OR('Enrollment Form'!$B723<>\"Subscriber\",'Enrollment Form'!$C723=\"ROC\"),\"-\",IF(AND('Enrollment Form'!$B723=\"Subscriber\",'Enrollment Form'!$C723=\"Enroll\",'Enrollment Form'!$AN723<>\"\"),\"Y\",\"N\")))","v":""},{"$f":"IF($B716=\"N\",\"\",IF(OR('Enrollment Form'!$B723<>\"Subscriber\",'Enrollment Form'!$C723=\"ROC\"),\"-\",IF(AND('Enrollment Form'!$B723=\"Subscriber\",'Enrollment Form'!$C723=\"Enroll\",'Enrollment Form'!$AP723<>\"\"),\"Y\",\"N\")))","v":""},{"$f":"IF($B716=\"N\",\"\",IF($Q716=\"-\",\"-\",IF(AND($Q716=\"Y\",'Enrollment Form'!$AP723=\"No\"),\"-\",IF(AND($Q716=\"Y\",'Enrollment Form'!$AP723=\"Yes\",'Enrollment Form'!$AQ723<>\"\"),\"Y\",\"N\"))))","v":""},{"$f":"IF($B716=\"N\",\"\",IF(OR('Enrollment Form'!$B723<>\"Subscriber\",'Enrollment Form'!$C723=\"ROC\"),\"-\",IF(AND('Enrollment Form'!$B723=\"Subscriber\",'Enrollment Form'!$C723=\"Enroll\",'Enrollment Form'!$CO723<>\"\"),\"Y\",\"N\")))","v":""},{"$f":"IF($B716=\"N\",\"\",IF($S716=\"-\",\"-\",IF(AND($S716=\"Y\",'Enrollment Form'!$CO723=\"No\"),\"-\",IF(AND($S716=\"Y\",'Enrollment Form'!$CO723=\"Yes\",'Enrollment Form'!$CP723<>\"\"),\"Y\",\"N\"))))","v":""},{"$f":"IF(OR('Enrollment Form'!$AV723=\"Yes\",'Enrollment Form'!$AV723=\"\"),\"-\",IF(AND('Enrollment Form'!$AV723=\"No\",ISERROR(FIND(\"HMO\",VLOOKUP('Enrollment Form'!G723,'Enrollment Form'!H$11:J$1000,3,FALSE),1))=FALSE,COUNTA('Enrollment Form'!$AW723:$AZ723)=4),\"Y\",\"N\"))","v":"-"},{"$f":"IF($B716=\"N\",\"\",IF('Enrollment Form'!$B723=\"Subscriber\",\"-\",IF(COUNTA('Enrollment Form'!$BE723,'Enrollment Form'!$BG723)=2,\"Y\",\"N\")))","v":""},{"$f":"IF($B716=\"N\",\"\",IF(OR('Enrollment Form'!$AU723=\"\",'Enrollment Form'!$AU723=\"No\"),\"-\",IF(AND('Enrollment Form'!$AU723=\"Yes\",COUNTA('Enrollment Form'!$CK723)=1),\"Y\",\"N\")))","v":""},{"$f":"IF(OR('Enrollment Form'!$CK723=\"\",'Enrollment Form'!$CK723=\"No\"),\"-\",IF(COUNTA('Enrollment Form'!$CM723:$CN723)=2,\"Y\",\"N\"))","v":"-"},{"$f":"IF($B716=\"N\",\"\",IF(COUNTIF('Enrollment Form'!$CZ723:$DO723,\"Other\")=COUNTA('Enrollment Form'!$DF723,'Enrollment Form'!$DA723,'Enrollment Form'!$DK723,'Enrollment Form'!$DP723),\"Y\",\"N\"))","v":""},{"$f":"IF($B716=\"N\",\"\",IF(OR('Enrollment Form'!B723<>\"Subscriber\",'Enrollment Form'!C723=\"ROC\",COUNTIF('Enrollment Form'!AS723:AT723,\"Yes\")>=1),\"-\",IF(AND('Enrollment Form'!C723=\"Enroll\",COUNTIF('Enrollment Form'!AS723:AT723,\"No\")=2,'Enrollment Form'!AU723=\"\"),\"N\",\"Y\")))","v":""},{"$f":"IF(OR(B716=\"N\",'Enrollment Form'!B723<>\"Subscriber\",'Enrollment Form'!C723=\"ROC\",'Enrollment Form'!O723<>\"Multiple of Salary\"),\"-\",IF(COUNTA('Enrollment Form'!T723:U723)<2,\"N\",\"Y\"))","v":"-"},{"$f":"IF(B716=\"N\",\"\",IF(OR('Enrollment Form'!C723=\"ROC\",'Enrollment Form'!B723<>\"Subscriber\",'Enrollment Form'!O723=\"Waive\",'Enrollment Form'!O723=\"\"),\"-\",IF('Enrollment Form'!P723=\"\",\"N\",\"Y\")))","v":""},{"$f":"IF($B716=\"N\",\"\",IF(AND('Enrollment Form'!$C723=\"ROC\",'Enrollment Form'!$DS723<>\"\"),\"Y\",IF(AND('Enrollment Form'!$C723=\"ROC\",'Enrollment Form'!$DS723=\"\"),\"N\",IF(AND('Enrollment Form'!$C723=\"Enroll\",'Enrollment Form'!$B723=\"Subscriber\",'Enrollment Form'!$CQ723=\"No\",'Enrollment Form'!$DS723=\"\"),\"N\",IF(AND('Enrollment Form'!$C723=\"Enroll\",'Enrollment Form'!$B723=\"Subscriber\",'Enrollment Form'!$CQ723=\"Yes\"),\"-\",\"Y\")))))","v":""},{"$f":"IF($B716=\"N\",\"\",IF(AND('Enrollment Form'!$C723=\"ROC\",'Enrollment Form'!$DT723<>\"\"),\"Y\",IF(AND('Enrollment Form'!$C723=\"ROC\",'Enrollment Form'!$DT723=\"\"),\"N\",IF(AND('Enrollment Form'!$C723=\"Enroll\",'Enrollment Form'!$B723=\"Subscriber\",'Enrollment Form'!$CQ723=\"No\",'Enrollment Form'!$DT723=\"\"),\"N\",IF(AND('Enrollment Form'!$C723=\"Enroll\",'Enrollment Form'!$B723=\"Subscriber\",'Enrollment Form'!$CQ723=\"Yes\"),\"-\",\"Y\")))))","v":""},{"$f":"IF('Enrollment Form'!AH723=\"\",\"\",IF(ISERROR(SEARCH(\".\",'Enrollment Form'!AH723,SEARCH(\"@\",'Enrollment Form'!AH723))),\"N\",\"Y\"))","v":""},{"$f":"IF(OR($B716=\"N\",'Enrollment Form'!$G723=\"\"),\"\",IF('Enrollment Form'!$B723<>\"Subscriber\",\"-\",IF(COUNTIF('Enrollment Form'!$AS723:$AT723,\"Yes\")=2,\"N\",\"Y\")))","v":""},{"$f":"IF(OR('Enrollment Form'!$CC723=\"\",'Enrollment Form'!$CC723=\"No\"),\"-\",IF(AND('Enrollment Form'!$CC723=\"Yes\",'Enrollment Form'!$CD723=\"\"),\"N\",\"Y\"))","v":"-"},{"$f":"IF(OR('Enrollment Form'!$CE723=\"\",'Enrollment Form'!$CE723=\"No\"),\"-\",IF(AND('Enrollment Form'!$CE723=\"Yes\",'Enrollment Form'!$CF723=\"\"),\"N\",\"Y\"))","v":"-"},{"$f":"IF(OR('Enrollment Form'!$CG723=\"\",'Enrollment Form'!$CG723=\"No\"),\"-\",IF(AND('Enrollment Form'!$CG723=\"Yes\",'Enrollment Form'!$CH723=\"\"),\"N\",\"Y\"))","v":"-"},{"$f":"IF(OR('Enrollment Form'!$CG723=\"\",'Enrollment Form'!$CG723=\"No\"),\"-\",IF(AND('Enrollment Form'!$CG723=\"Yes\",'Enrollment Form'!$CI723=\"\"),\"N\",\"Y\"))","v":"-"},{"$f":"IF('Enrollment Form'!B723<>\"Subscriber\",\"-\",IF(AND('Enrollment Form'!B723=\"Subscriber\",'Enrollment Form'!C723=\"Enroll\",'Enrollment Form'!AA723=\"\"),\"N\",\"Y\"))","v":"-"},{"$f":"IF(OR('Enrollment Form'!B723=\"Subscriber\",'Enrollment Form'!B723=\"\"),\"-\",IF('Enrollment Form'!BI723=\"\",\"N\",\"Y\"))","v":"-"},{"$f":"IF('Enrollment Form'!B723<>\"Subscriber\",\"-\",IF(AND('Enrollment Form'!B723=\"Subscriber\",'Enrollment Form'!G723=\"\"),\"N\",\"Y\"))","v":"-"},{"$f":"IF('Enrollment Form'!A723=\"\",\"\",IF('Enrollment Form'!B723=\"Subscriber\",\"-\",IF(AND('Enrollment Form'!B723<>\"Subscriber\",'Enrollment Form'!G723='Enrollment Form'!H723),\"N\",\"Y\")))","v":""},0]
[724,{"$f":"IF('Enrollment Form'!$A724<>\"\",\"Y\",\"N\")","v":"N"},{"$f":"IF(AND('Enrollment Form'!$B724=\"\",'Enrollment Form'!$C724<>\"\"),\"N\",IF($B717=\"N\",\"\",\"Y\"))","v":""},{"$f":"IF(OR($B717=\"N\",'Enrollment Form'!G724=\"\"),\"\",IF('Enrollment Form'!$B724<>\"Subscriber\",\"\",IF('Enrollment Form'!$G724='Enrollment Form'!$H724,\"Y\",\"N\")))","v":""},{"$f":"IF($B717=\"N\",\"\",IF(AND(COUNTIFS('Enrollment Form'!$H$11:$H$1000,'Enrollment Form'!$H724,'Enrollment Form'!$B$11:$B$1000,'Enrollment Form'!$B724)>1,'Enrollment Form'!$H724<>\"\"),\"N\",\"Y\"))","v":""},{"$f":"IF($B717=\"N\",\"\",IF(LEN('Enrollment Form'!$Y724)=0,\"\",IF(LEN('Enrollment Form'!$Y724)<>5,\"N\",\"Y\")))","v":""},{"$f":"IF($B717=\"N\",\"\",IF(LEN('Enrollment Form'!$AD724=0),\"\",IF(LEN('Enrollment Form'!$AD724)<>5,\"N\",\"Y\")))","v":""},{"$f":"IF($B717=\"N\",\"\",IF(LEN('Enrollment Form'!$BL724=0),\"\",IF(LEN('Enrollment Form'!$BL724)<>5,\"N\",\"Y\")))","v":""},{"$f":"IF($B717=\"N\",\"\",IF(LEN('Enrollment Form'!$AE724)=0,\"\",IF(LEN('Enrollment Form'!$AE724)<>10,\"N\",\"Y\")))","v":""},{"$f":"IF($B717=\"N\",\"\",IF(LEN('Enrollment Form'!$AF724)=0,\"\",IF(LEN('Enrollment Form'!$AF724)<>10,\"N\",\"Y\")))","v":""},{"$f":"IF('Enrollment Form'!$O724<>\"Graded\",\"-\",IF(AND('Enrollment Form'!$O724=\"Graded\",'Enrollment Form'!$AO724<>\"\"),\"Y\",\"N\"))","v":"-"},{"$f":"IF($B717=\"N\",\"\",IF(OR('Enrollment Form'!$B724<>\"Subscriber\",'Enrollment Form'!$C724=\"ROC\"),\"-\",IF(AND('Enrollment Form'!$B724=\"Subscriber\",'Enrollment Form'!$C724=\"Enroll\",'Enrollment Form'!$AJ724<>\"\"),\"Y\",\"N\")))","v":""},{"$f":"IF($B717=\"N\",\"\",IF(OR('Enrollment Form'!$B724<>\"Subscriber\",'Enrollment Form'!$C724=\"ROC\"),\"-\",IF(AND('Enrollment Form'!$B724=\"Subscriber\",'Enrollment Form'!$C724=\"Enroll\",'Enrollment Form'!$AK724<>\"\"),\"Y\",\"N\")))","v":""},{"$f":"IF($B717=\"N\",\"\",IF(OR('Enrollment Form'!$B724<>\"Subscriber\",'Enrollment Form'!$C724=\"ROC\"),\"-\",IF(AND('Enrollment Form'!$B724=\"Subscriber\",'Enrollment Form'!$C724=\"Enroll\",'Enrollment Form'!$AL724<>\"\"),\"Y\",\"N\")))","v":""},{"$f":"IF($B717=\"N\",\"\",IF(OR('Enrollment Form'!$B724<>\"Subscriber\",'Enrollment Form'!$C724=\"ROC\"),\"-\",IF(AND('Enrollment Form'!$B724=\"Subscriber\",'Enrollment Form'!$C724=\"Enroll\",'Enrollment Form'!$AM724<>\"\"),\"Y\",\"N\")))","v":""},{"$f":"IF($B717=\"N\",\"\",IF(OR('Enrollment Form'!$B724<>\"Subscriber\",'Enrollment Form'!$C724=\"ROC\"),\"-\",IF(AND('Enrollment Form'!$B724=\"Subscriber\",'Enrollment Form'!$C724=\"Enroll\",'Enrollment Form'!$AN724<>\"\"),\"Y\",\"N\")))","v":""},{"$f":"IF($B717=\"N\",\"\",IF(OR('Enrollment Form'!$B724<>\"Subscriber\",'Enrollment Form'!$C724=\"ROC\"),\"-\",IF(AND('Enrollment Form'!$B724=\"Subscriber\",'Enrollment Form'!$C724=\"Enroll\",'Enrollment Form'!$AP724<>\"\"),\"Y\",\"N\")))","v":""},{"$f":"IF($B717=\"N\",\"\",IF($Q717=\"-\",\"-\",IF(AND($Q717=\"Y\",'Enrollment Form'!$AP724=\"No\"),\"-\",IF(AND($Q717=\"Y\",'Enrollment Form'!$AP724=\"Yes\",'Enrollment Form'!$AQ724<>\"\"),\"Y\",\"N\"))))","v":""},{"$f":"IF($B717=\"N\",\"\",IF(OR('Enrollment Form'!$B724<>\"Subscriber\",'Enrollment Form'!$C724=\"ROC\"),\"-\",IF(AND('Enrollment Form'!$B724=\"Subscriber\",'Enrollment Form'!$C724=\"Enroll\",'Enrollment Form'!$CO724<>\"\"),\"Y\",\"N\")))","v":""},{"$f":"IF($B717=\"N\",\"\",IF($S717=\"-\",\"-\",IF(AND($S717=\"Y\",'Enrollment Form'!$CO724=\"No\"),\"-\",IF(AND($S717=\"Y\",'Enrollment Form'!$CO724=\"Yes\",'Enrollment Form'!$CP724<>\"\"),\"Y\",\"N\"))))","v":""},{"$f":"IF(OR('Enrollment Form'!$AV724=\"Yes\",'Enrollment Form'!$AV724=\"\"),\"-\",IF(AND('Enrollment Form'!$AV724=\"No\",ISERROR(FIND(\"HMO\",VLOOKUP('Enrollment Form'!G724,'Enrollment Form'!H$11:J$1000,3,FALSE),1))=FALSE,COUNTA('Enrollment Form'!$AW724:$AZ724)=4),\"Y\",\"N\"))","v":"-"},{"$f":"IF($B717=\"N\",\"\",IF('Enrollment Form'!$B724=\"Subscriber\",\"-\",IF(COUNTA('Enrollment Form'!$BE724,'Enrollment Form'!$BG724)=2,\"Y\",\"N\")))","v":""},{"$f":"IF($B717=\"N\",\"\",IF(OR('Enrollment Form'!$AU724=\"\",'Enrollment Form'!$AU724=\"No\"),\"-\",IF(AND('Enrollment Form'!$AU724=\"Yes\",COUNTA('Enrollment Form'!$CK724)=1),\"Y\",\"N\")))","v":""},{"$f":"IF(OR('Enrollment Form'!$CK724=\"\",'Enrollment Form'!$CK724=\"No\"),\"-\",IF(COUNTA('Enrollment Form'!$CM724:$CN724)=2,\"Y\",\"N\"))","v":"-"},{"$f":"IF($B717=\"N\",\"\",IF(COUNTIF('Enrollment Form'!$CZ724:$DO724,\"Other\")=COUNTA('Enrollment Form'!$DF724,'Enrollment Form'!$DA724,'Enrollment Form'!$DK724,'Enrollment Form'!$DP724),\"Y\",\"N\"))","v":""},{"$f":"IF($B717=\"N\",\"\",IF(OR('Enrollment Form'!B724<>\"Subscriber\",'Enrollment Form'!C724=\"ROC\",COUNTIF('Enrollment Form'!AS724:AT724,\"Yes\")>=1),\"-\",IF(AND('Enrollment Form'!C724=\"Enroll\",COUNTIF('Enrollment Form'!AS724:AT724,\"No\")=2,'Enrollment Form'!AU724=\"\"),\"N\",\"Y\")))","v":""},{"$f":"IF(OR(B717=\"N\",'Enrollment Form'!B724<>\"Subscriber\",'Enrollment Form'!C724=\"ROC\",'Enrollment Form'!O724<>\"Multiple of Salary\"),\"-\",IF(COUNTA('Enrollment Form'!T724:U724)<2,\"N\",\"Y\"))","v":"-"},{"$f":"IF(B717=\"N\",\"\",IF(OR('Enrollment Form'!C724=\"ROC\",'Enrollment Form'!B724<>\"Subscriber\",'Enrollment Form'!O724=\"Waive\",'Enrollment Form'!O724=\"\"),\"-\",IF('Enrollment Form'!P724=\"\",\"N\",\"Y\")))","v":""},{"$f":"IF($B717=\"N\",\"\",IF(AND('Enrollment Form'!$C724=\"ROC\",'Enrollment Form'!$DS724<>\"\"),\"Y\",IF(AND('Enrollment Form'!$C724=\"ROC\",'Enrollment Form'!$DS724=\"\"),\"N\",IF(AND('Enrollment Form'!$C724=\"Enroll\",'Enrollment Form'!$B724=\"Subscriber\",'Enrollment Form'!$CQ724=\"No\",'Enrollment Form'!$DS724=\"\"),\"N\",IF(AND('Enrollment Form'!$C724=\"Enroll\",'Enrollment Form'!$B724=\"Subscriber\",'Enrollment Form'!$CQ724=\"Yes\"),\"-\",\"Y\")))))","v":""},{"$f":"IF($B717=\"N\",\"\",IF(AND('Enrollment Form'!$C724=\"ROC\",'Enrollment Form'!$DT724<>\"\"),\"Y\",IF(AND('Enrollment Form'!$C724=\"ROC\",'Enrollment Form'!$DT724=\"\"),\"N\",IF(AND('Enrollment Form'!$C724=\"Enroll\",'Enrollment Form'!$B724=\"Subscriber\",'Enrollment Form'!$CQ724=\"No\",'Enrollment Form'!$DT724=\"\"),\"N\",IF(AND('Enrollment Form'!$C724=\"Enroll\",'Enrollment Form'!$B724=\"Subscriber\",'Enrollment Form'!$CQ724=\"Yes\"),\"-\",\"Y\")))))","v":""},{"$f":"IF('Enrollment Form'!AH724=\"\",\"\",IF(ISERROR(SEARCH(\".\",'Enrollment Form'!AH724,SEARCH(\"@\",'Enrollment Form'!AH724))),\"N\",\"Y\"))","v":""},{"$f":"IF(OR($B717=\"N\",'Enrollment Form'!$G724=\"\"),\"\",IF('Enrollment Form'!$B724<>\"Subscriber\",\"-\",IF(COUNTIF('Enrollment Form'!$AS724:$AT724,\"Yes\")=2,\"N\",\"Y\")))","v":""},{"$f":"IF(OR('Enrollment Form'!$CC724=\"\",'Enrollment Form'!$CC724=\"No\"),\"-\",IF(AND('Enrollment Form'!$CC724=\"Yes\",'Enrollment Form'!$CD724=\"\"),\"N\",\"Y\"))","v":"-"},{"$f":"IF(OR('Enrollment Form'!$CE724=\"\",'Enrollment Form'!$CE724=\"No\"),\"-\",IF(AND('Enrollment Form'!$CE724=\"Yes\",'Enrollment Form'!$CF724=\"\"),\"N\",\"Y\"))","v":"-"},{"$f":"IF(OR('Enrollment Form'!$CG724=\"\",'Enrollment Form'!$CG724=\"No\"),\"-\",IF(AND('Enrollment Form'!$CG724=\"Yes\",'Enrollment Form'!$CH724=\"\"),\"N\",\"Y\"))","v":"-"},{"$f":"IF(OR('Enrollment Form'!$CG724=\"\",'Enrollment Form'!$CG724=\"No\"),\"-\",IF(AND('Enrollment Form'!$CG724=\"Yes\",'Enrollment Form'!$CI724=\"\"),\"N\",\"Y\"))","v":"-"},{"$f":"IF('Enrollment Form'!B724<>\"Subscriber\",\"-\",IF(AND('Enrollment Form'!B724=\"Subscriber\",'Enrollment Form'!C724=\"Enroll\",'Enrollment Form'!AA724=\"\"),\"N\",\"Y\"))","v":"-"},{"$f":"IF(OR('Enrollment Form'!B724=\"Subscriber\",'Enrollment Form'!B724=\"\"),\"-\",IF('Enrollment Form'!BI724=\"\",\"N\",\"Y\"))","v":"-"},{"$f":"IF('Enrollment Form'!B724<>\"Subscriber\",\"-\",IF(AND('Enrollment Form'!B724=\"Subscriber\",'Enrollment Form'!G724=\"\"),\"N\",\"Y\"))","v":"-"},{"$f":"IF('Enrollment Form'!A724=\"\",\"\",IF('Enrollment Form'!B724=\"Subscriber\",\"-\",IF(AND('Enrollment Form'!B724<>\"Subscriber\",'Enrollment Form'!G724='Enrollment Form'!H724),\"N\",\"Y\")))","v":""},0]
[725,{"$f":"IF('Enrollment Form'!$A725<>\"\",\"Y\",\"N\")","v":"N"},{"$f":"IF(AND('Enrollment Form'!$B725=\"\",'Enrollment Form'!$C725<>\"\"),\"N\",IF($B718=\"N\",\"\",\"Y\"))","v":""},{"$f":"IF(OR($B718=\"N\",'Enrollment Form'!G725=\"\"),\"\",IF('Enrollment Form'!$B725<>\"Subscriber\",\"\",IF('Enrollment Form'!$G725='Enrollment Form'!$H725,\"Y\",\"N\")))","v":""},{"$f":"IF($B718=\"N\",\"\",IF(AND(COUNTIFS('Enrollment Form'!$H$11:$H$1000,'Enrollment Form'!$H725,'Enrollment Form'!$B$11:$B$1000,'Enrollment Form'!$B725)>1,'Enrollment Form'!$H725<>\"\"),\"N\",\"Y\"))","v":""},{"$f":"IF($B718=\"N\",\"\",IF(LEN('Enrollment Form'!$Y725)=0,\"\",IF(LEN('Enrollment Form'!$Y725)<>5,\"N\",\"Y\")))","v":""},{"$f":"IF($B718=\"N\",\"\",IF(LEN('Enrollment Form'!$AD725=0),\"\",IF(LEN('Enrollment Form'!$AD725)<>5,\"N\",\"Y\")))","v":""},{"$f":"IF($B718=\"N\",\"\",IF(LEN('Enrollment Form'!$BL725=0),\"\",IF(LEN('Enrollment Form'!$BL725)<>5,\"N\",\"Y\")))","v":""},{"$f":"IF($B718=\"N\",\"\",IF(LEN('Enrollment Form'!$AE725)=0,\"\",IF(LEN('Enrollment Form'!$AE725)<>10,\"N\",\"Y\")))","v":""},{"$f":"IF($B718=\"N\",\"\",IF(LEN('Enrollment Form'!$AF725)=0,\"\",IF(LEN('Enrollment Form'!$AF725)<>10,\"N\",\"Y\")))","v":""},{"$f":"IF('Enrollment Form'!$O725<>\"Graded\",\"-\",IF(AND('Enrollment Form'!$O725=\"Graded\",'Enrollment Form'!$AO725<>\"\"),\"Y\",\"N\"))","v":"-"},{"$f":"IF($B718=\"N\",\"\",IF(OR('Enrollment Form'!$B725<>\"Subscriber\",'Enrollment Form'!$C725=\"ROC\"),\"-\",IF(AND('Enrollment Form'!$B725=\"Subscriber\",'Enrollment Form'!$C725=\"Enroll\",'Enrollment Form'!$AJ725<>\"\"),\"Y\",\"N\")))","v":""},{"$f":"IF($B718=\"N\",\"\",IF(OR('Enrollment Form'!$B725<>\"Subscriber\",'Enrollment Form'!$C725=\"ROC\"),\"-\",IF(AND('Enrollment Form'!$B725=\"Subscriber\",'Enrollment Form'!$C725=\"Enroll\",'Enrollment Form'!$AK725<>\"\"),\"Y\",\"N\")))","v":""},{"$f":"IF($B718=\"N\",\"\",IF(OR('Enrollment Form'!$B725<>\"Subscriber\",'Enrollment Form'!$C725=\"ROC\"),\"-\",IF(AND('Enrollment Form'!$B725=\"Subscriber\",'Enrollment Form'!$C725=\"Enroll\",'Enrollment Form'!$AL725<>\"\"),\"Y\",\"N\")))","v":""},{"$f":"IF($B718=\"N\",\"\",IF(OR('Enrollment Form'!$B725<>\"Subscriber\",'Enrollment Form'!$C725=\"ROC\"),\"-\",IF(AND('Enrollment Form'!$B725=\"Subscriber\",'Enrollment Form'!$C725=\"Enroll\",'Enrollment Form'!$AM725<>\"\"),\"Y\",\"N\")))","v":""},{"$f":"IF($B718=\"N\",\"\",IF(OR('Enrollment Form'!$B725<>\"Subscriber\",'Enrollment Form'!$C725=\"ROC\"),\"-\",IF(AND('Enrollment Form'!$B725=\"Subscriber\",'Enrollment Form'!$C725=\"Enroll\",'Enrollment Form'!$AN725<>\"\"),\"Y\",\"N\")))","v":""},{"$f":"IF($B718=\"N\",\"\",IF(OR('Enrollment Form'!$B725<>\"Subscriber\",'Enrollment Form'!$C725=\"ROC\"),\"-\",IF(AND('Enrollment Form'!$B725=\"Subscriber\",'Enrollment Form'!$C725=\"Enroll\",'Enrollment Form'!$AP725<>\"\"),\"Y\",\"N\")))","v":""},{"$f":"IF($B718=\"N\",\"\",IF($Q718=\"-\",\"-\",IF(AND($Q718=\"Y\",'Enrollment Form'!$AP725=\"No\"),\"-\",IF(AND($Q718=\"Y\",'Enrollment Form'!$AP725=\"Yes\",'Enrollment Form'!$AQ725<>\"\"),\"Y\",\"N\"))))","v":""},{"$f":"IF($B718=\"N\",\"\",IF(OR('Enrollment Form'!$B725<>\"Subscriber\",'Enrollment Form'!$C725=\"ROC\"),\"-\",IF(AND('Enrollment Form'!$B725=\"Subscriber\",'Enrollment Form'!$C725=\"Enroll\",'Enrollment Form'!$CO725<>\"\"),\"Y\",\"N\")))","v":""},{"$f":"IF($B718=\"N\",\"\",IF($S718=\"-\",\"-\",IF(AND($S718=\"Y\",'Enrollment Form'!$CO725=\"No\"),\"-\",IF(AND($S718=\"Y\",'Enrollment Form'!$CO725=\"Yes\",'Enrollment Form'!$CP725<>\"\"),\"Y\",\"N\"))))","v":""},{"$f":"IF(OR('Enrollment Form'!$AV725=\"Yes\",'Enrollment Form'!$AV725=\"\"),\"-\",IF(AND('Enrollment Form'!$AV725=\"No\",ISERROR(FIND(\"HMO\",VLOOKUP('Enrollment Form'!G725,'Enrollment Form'!H$11:J$1000,3,FALSE),1))=FALSE,COUNTA('Enrollment Form'!$AW725:$AZ725)=4),\"Y\",\"N\"))","v":"-"},{"$f":"IF($B718=\"N\",\"\",IF('Enrollment Form'!$B725=\"Subscriber\",\"-\",IF(COUNTA('Enrollment Form'!$BE725,'Enrollment Form'!$BG725)=2,\"Y\",\"N\")))","v":""},{"$f":"IF($B718=\"N\",\"\",IF(OR('Enrollment Form'!$AU725=\"\",'Enrollment Form'!$AU725=\"No\"),\"-\",IF(AND('Enrollment Form'!$AU725=\"Yes\",COUNTA('Enrollment Form'!$CK725)=1),\"Y\",\"N\")))","v":""},{"$f":"IF(OR('Enrollment Form'!$CK725=\"\",'Enrollment Form'!$CK725=\"No\"),\"-\",IF(COUNTA('Enrollment Form'!$CM725:$CN725)=2,\"Y\",\"N\"))","v":"-"},{"$f":"IF($B718=\"N\",\"\",IF(COUNTIF('Enrollment Form'!$CZ725:$DO725,\"Other\")=COUNTA('Enrollment Form'!$DF725,'Enrollment Form'!$DA725,'Enrollment Form'!$DK725,'Enrollment Form'!$DP725),\"Y\",\"N\"))","v":""},{"$f":"IF($B718=\"N\",\"\",IF(OR('Enrollment Form'!B725<>\"Subscriber\",'Enrollment Form'!C725=\"ROC\",COUNTIF('Enrollment Form'!AS725:AT725,\"Yes\")>=1),\"-\",IF(AND('Enrollment Form'!C725=\"Enroll\",COUNTIF('Enrollment Form'!AS725:AT725,\"No\")=2,'Enrollment Form'!AU725=\"\"),\"N\",\"Y\")))","v":""},{"$f":"IF(OR(B718=\"N\",'Enrollment Form'!B725<>\"Subscriber\",'Enrollment Form'!C725=\"ROC\",'Enrollment Form'!O725<>\"Multiple of Salary\"),\"-\",IF(COUNTA('Enrollment Form'!T725:U725)<2,\"N\",\"Y\"))","v":"-"},{"$f":"IF(B718=\"N\",\"\",IF(OR('Enrollment Form'!C725=\"ROC\",'Enrollment Form'!B725<>\"Subscriber\",'Enrollment Form'!O725=\"Waive\",'Enrollment Form'!O725=\"\"),\"-\",IF('Enrollment Form'!P725=\"\",\"N\",\"Y\")))","v":""},{"$f":"IF($B718=\"N\",\"\",IF(AND('Enrollment Form'!$C725=\"ROC\",'Enrollment Form'!$DS725<>\"\"),\"Y\",IF(AND('Enrollment Form'!$C725=\"ROC\",'Enrollment Form'!$DS725=\"\"),\"N\",IF(AND('Enrollment Form'!$C725=\"Enroll\",'Enrollment Form'!$B725=\"Subscriber\",'Enrollment Form'!$CQ725=\"No\",'Enrollment Form'!$DS725=\"\"),\"N\",IF(AND('Enrollment Form'!$C725=\"Enroll\",'Enrollment Form'!$B725=\"Subscriber\",'Enrollment Form'!$CQ725=\"Yes\"),\"-\",\"Y\")))))","v":""},{"$f":"IF($B718=\"N\",\"\",IF(AND('Enrollment Form'!$C725=\"ROC\",'Enrollment Form'!$DT725<>\"\"),\"Y\",IF(AND('Enrollment Form'!$C725=\"ROC\",'Enrollment Form'!$DT725=\"\"),\"N\",IF(AND('Enrollment Form'!$C725=\"Enroll\",'Enrollment Form'!$B725=\"Subscriber\",'Enrollment Form'!$CQ725=\"No\",'Enrollment Form'!$DT725=\"\"),\"N\",IF(AND('Enrollment Form'!$C725=\"Enroll\",'Enrollment Form'!$B725=\"Subscriber\",'Enrollment Form'!$CQ725=\"Yes\"),\"-\",\"Y\")))))","v":""},{"$f":"IF('Enrollment Form'!AH725=\"\",\"\",IF(ISERROR(SEARCH(\".\",'Enrollment Form'!AH725,SEARCH(\"@\",'Enrollment Form'!AH725))),\"N\",\"Y\"))","v":""},{"$f":"IF(OR($B718=\"N\",'Enrollment Form'!$G725=\"\"),\"\",IF('Enrollment Form'!$B725<>\"Subscriber\",\"-\",IF(COUNTIF('Enrollment Form'!$AS725:$AT725,\"Yes\")=2,\"N\",\"Y\")))","v":""},{"$f":"IF(OR('Enrollment Form'!$CC725=\"\",'Enrollment Form'!$CC725=\"No\"),\"-\",IF(AND('Enrollment Form'!$CC725=\"Yes\",'Enrollment Form'!$CD725=\"\"),\"N\",\"Y\"))","v":"-"},{"$f":"IF(OR('Enrollment Form'!$CE725=\"\",'Enrollment Form'!$CE725=\"No\"),\"-\",IF(AND('Enrollment Form'!$CE725=\"Yes\",'Enrollment Form'!$CF725=\"\"),\"N\",\"Y\"))","v":"-"},{"$f":"IF(OR('Enrollment Form'!$CG725=\"\",'Enrollment Form'!$CG725=\"No\"),\"-\",IF(AND('Enrollment Form'!$CG725=\"Yes\",'Enrollment Form'!$CH725=\"\"),\"N\",\"Y\"))","v":"-"},{"$f":"IF(OR('Enrollment Form'!$CG725=\"\",'Enrollment Form'!$CG725=\"No\"),\"-\",IF(AND('Enrollment Form'!$CG725=\"Yes\",'Enrollment Form'!$CI725=\"\"),\"N\",\"Y\"))","v":"-"},{"$f":"IF('Enrollment Form'!B725<>\"Subscriber\",\"-\",IF(AND('Enrollment Form'!B725=\"Subscriber\",'Enrollment Form'!C725=\"Enroll\",'Enrollment Form'!AA725=\"\"),\"N\",\"Y\"))","v":"-"},{"$f":"IF(OR('Enrollment Form'!B725=\"Subscriber\",'Enrollment Form'!B725=\"\"),\"-\",IF('Enrollment Form'!BI725=\"\",\"N\",\"Y\"))","v":"-"},{"$f":"IF('Enrollment Form'!B725<>\"Subscriber\",\"-\",IF(AND('Enrollment Form'!B725=\"Subscriber\",'Enrollment Form'!G725=\"\"),\"N\",\"Y\"))","v":"-"},{"$f":"IF('Enrollment Form'!A725=\"\",\"\",IF('Enrollment Form'!B725=\"Subscriber\",\"-\",IF(AND('Enrollment Form'!B725<>\"Subscriber\",'Enrollment Form'!G725='Enrollment Form'!H725),\"N\",\"Y\")))","v":""},0]
[726,{"$f":"IF('Enrollment Form'!$A726<>\"\",\"Y\",\"N\")","v":"N"},{"$f":"IF(AND('Enrollment Form'!$B726=\"\",'Enrollment Form'!$C726<>\"\"),\"N\",IF($B719=\"N\",\"\",\"Y\"))","v":""},{"$f":"IF(OR($B719=\"N\",'Enrollment Form'!G726=\"\"),\"\",IF('Enrollment Form'!$B726<>\"Subscriber\",\"\",IF('Enrollment Form'!$G726='Enrollment Form'!$H726,\"Y\",\"N\")))","v":""},{"$f":"IF($B719=\"N\",\"\",IF(AND(COUNTIFS('Enrollment Form'!$H$11:$H$1000,'Enrollment Form'!$H726,'Enrollment Form'!$B$11:$B$1000,'Enrollment Form'!$B726)>1,'Enrollment Form'!$H726<>\"\"),\"N\",\"Y\"))","v":""},{"$f":"IF($B719=\"N\",\"\",IF(LEN('Enrollment Form'!$Y726)=0,\"\",IF(LEN('Enrollment Form'!$Y726)<>5,\"N\",\"Y\")))","v":""},{"$f":"IF($B719=\"N\",\"\",IF(LEN('Enrollment Form'!$AD726=0),\"\",IF(LEN('Enrollment Form'!$AD726)<>5,\"N\",\"Y\")))","v":""},{"$f":"IF($B719=\"N\",\"\",IF(LEN('Enrollment Form'!$BL726=0),\"\",IF(LEN('Enrollment Form'!$BL726)<>5,\"N\",\"Y\")))","v":""},{"$f":"IF($B719=\"N\",\"\",IF(LEN('Enrollment Form'!$AE726)=0,\"\",IF(LEN('Enrollment Form'!$AE726)<>10,\"N\",\"Y\")))","v":""},{"$f":"IF($B719=\"N\",\"\",IF(LEN('Enrollment Form'!$AF726)=0,\"\",IF(LEN('Enrollment Form'!$AF726)<>10,\"N\",\"Y\")))","v":""},{"$f":"IF('Enrollment Form'!$O726<>\"Graded\",\"-\",IF(AND('Enrollment Form'!$O726=\"Graded\",'Enrollment Form'!$AO726<>\"\"),\"Y\",\"N\"))","v":"-"},{"$f":"IF($B719=\"N\",\"\",IF(OR('Enrollment Form'!$B726<>\"Subscriber\",'Enrollment Form'!$C726=\"ROC\"),\"-\",IF(AND('Enrollment Form'!$B726=\"Subscriber\",'Enrollment Form'!$C726=\"Enroll\",'Enrollment Form'!$AJ726<>\"\"),\"Y\",\"N\")))","v":""},{"$f":"IF($B719=\"N\",\"\",IF(OR('Enrollment Form'!$B726<>\"Subscriber\",'Enrollment Form'!$C726=\"ROC\"),\"-\",IF(AND('Enrollment Form'!$B726=\"Subscriber\",'Enrollment Form'!$C726=\"Enroll\",'Enrollment Form'!$AK726<>\"\"),\"Y\",\"N\")))","v":""},{"$f":"IF($B719=\"N\",\"\",IF(OR('Enrollment Form'!$B726<>\"Subscriber\",'Enrollment Form'!$C726=\"ROC\"),\"-\",IF(AND('Enrollment Form'!$B726=\"Subscriber\",'Enrollment Form'!$C726=\"Enroll\",'Enrollment Form'!$AL726<>\"\"),\"Y\",\"N\")))","v":""},{"$f":"IF($B719=\"N\",\"\",IF(OR('Enrollment Form'!$B726<>\"Subscriber\",'Enrollment Form'!$C726=\"ROC\"),\"-\",IF(AND('Enrollment Form'!$B726=\"Subscriber\",'Enrollment Form'!$C726=\"Enroll\",'Enrollment Form'!$AM726<>\"\"),\"Y\",\"N\")))","v":""},{"$f":"IF($B719=\"N\",\"\",IF(OR('Enrollment Form'!$B726<>\"Subscriber\",'Enrollment Form'!$C726=\"ROC\"),\"-\",IF(AND('Enrollment Form'!$B726=\"Subscriber\",'Enrollment Form'!$C726=\"Enroll\",'Enrollment Form'!$AN726<>\"\"),\"Y\",\"N\")))","v":""},{"$f":"IF($B719=\"N\",\"\",IF(OR('Enrollment Form'!$B726<>\"Subscriber\",'Enrollment Form'!$C726=\"ROC\"),\"-\",IF(AND('Enrollment Form'!$B726=\"Subscriber\",'Enrollment Form'!$C726=\"Enroll\",'Enrollment Form'!$AP726<>\"\"),\"Y\",\"N\")))","v":""},{"$f":"IF($B719=\"N\",\"\",IF($Q719=\"-\",\"-\",IF(AND($Q719=\"Y\",'Enrollment Form'!$AP726=\"No\"),\"-\",IF(AND($Q719=\"Y\",'Enrollment Form'!$AP726=\"Yes\",'Enrollment Form'!$AQ726<>\"\"),\"Y\",\"N\"))))","v":""},{"$f":"IF($B719=\"N\",\"\",IF(OR('Enrollment Form'!$B726<>\"Subscriber\",'Enrollment Form'!$C726=\"ROC\"),\"-\",IF(AND('Enrollment Form'!$B726=\"Subscriber\",'Enrollment Form'!$C726=\"Enroll\",'Enrollment Form'!$CO726<>\"\"),\"Y\",\"N\")))","v":""},{"$f":"IF($B719=\"N\",\"\",IF($S719=\"-\",\"-\",IF(AND($S719=\"Y\",'Enrollment Form'!$CO726=\"No\"),\"-\",IF(AND($S719=\"Y\",'Enrollment Form'!$CO726=\"Yes\",'Enrollment Form'!$CP726<>\"\"),\"Y\",\"N\"))))","v":""},{"$f":"IF(OR('Enrollment Form'!$AV726=\"Yes\",'Enrollment Form'!$AV726=\"\"),\"-\",IF(AND('Enrollment Form'!$AV726=\"No\",ISERROR(FIND(\"HMO\",VLOOKUP('Enrollment Form'!G726,'Enrollment Form'!H$11:J$1000,3,FALSE),1))=FALSE,COUNTA('Enrollment Form'!$AW726:$AZ726)=4),\"Y\",\"N\"))","v":"-"},{"$f":"IF($B719=\"N\",\"\",IF('Enrollment Form'!$B726=\"Subscriber\",\"-\",IF(COUNTA('Enrollment Form'!$BE726,'Enrollment Form'!$BG726)=2,\"Y\",\"N\")))","v":""},{"$f":"IF($B719=\"N\",\"\",IF(OR('Enrollment Form'!$AU726=\"\",'Enrollment Form'!$AU726=\"No\"),\"-\",IF(AND('Enrollment Form'!$AU726=\"Yes\",COUNTA('Enrollment Form'!$CK726)=1),\"Y\",\"N\")))","v":""},{"$f":"IF(OR('Enrollment Form'!$CK726=\"\",'Enrollment Form'!$CK726=\"No\"),\"-\",IF(COUNTA('Enrollment Form'!$CM726:$CN726)=2,\"Y\",\"N\"))","v":"-"},{"$f":"IF($B719=\"N\",\"\",IF(COUNTIF('Enrollment Form'!$CZ726:$DO726,\"Other\")=COUNTA('Enrollment Form'!$DF726,'Enrollment Form'!$DA726,'Enrollment Form'!$DK726,'Enrollment Form'!$DP726),\"Y\",\"N\"))","v":""},{"$f":"IF($B719=\"N\",\"\",IF(OR('Enrollment Form'!B726<>\"Subscriber\",'Enrollment Form'!C726=\"ROC\",COUNTIF('Enrollment Form'!AS726:AT726,\"Yes\")>=1),\"-\",IF(AND('Enrollment Form'!C726=\"Enroll\",COUNTIF('Enrollment Form'!AS726:AT726,\"No\")=2,'Enrollment Form'!AU726=\"\"),\"N\",\"Y\")))","v":""},{"$f":"IF(OR(B719=\"N\",'Enrollment Form'!B726<>\"Subscriber\",'Enrollment Form'!C726=\"ROC\",'Enrollment Form'!O726<>\"Multiple of Salary\"),\"-\",IF(COUNTA('Enrollment Form'!T726:U726)<2,\"N\",\"Y\"))","v":"-"},{"$f":"IF(B719=\"N\",\"\",IF(OR('Enrollment Form'!C726=\"ROC\",'Enrollment Form'!B726<>\"Subscriber\",'Enrollment Form'!O726=\"Waive\",'Enrollment Form'!O726=\"\"),\"-\",IF('Enrollment Form'!P726=\"\",\"N\",\"Y\")))","v":""},{"$f":"IF($B719=\"N\",\"\",IF(AND('Enrollment Form'!$C726=\"ROC\",'Enrollment Form'!$DS726<>\"\"),\"Y\",IF(AND('Enrollment Form'!$C726=\"ROC\",'Enrollment Form'!$DS726=\"\"),\"N\",IF(AND('Enrollment Form'!$C726=\"Enroll\",'Enrollment Form'!$B726=\"Subscriber\",'Enrollment Form'!$CQ726=\"No\",'Enrollment Form'!$DS726=\"\"),\"N\",IF(AND('Enrollment Form'!$C726=\"Enroll\",'Enrollment Form'!$B726=\"Subscriber\",'Enrollment Form'!$CQ726=\"Yes\"),\"-\",\"Y\")))))","v":""},{"$f":"IF($B719=\"N\",\"\",IF(AND('Enrollment Form'!$C726=\"ROC\",'Enrollment Form'!$DT726<>\"\"),\"Y\",IF(AND('Enrollment Form'!$C726=\"ROC\",'Enrollment Form'!$DT726=\"\"),\"N\",IF(AND('Enrollment Form'!$C726=\"Enroll\",'Enrollment Form'!$B726=\"Subscriber\",'Enrollment Form'!$CQ726=\"No\",'Enrollment Form'!$DT726=\"\"),\"N\",IF(AND('Enrollment Form'!$C726=\"Enroll\",'Enrollment Form'!$B726=\"Subscriber\",'Enrollment Form'!$CQ726=\"Yes\"),\"-\",\"Y\")))))","v":""},{"$f":"IF('Enrollment Form'!AH726=\"\",\"\",IF(ISERROR(SEARCH(\".\",'Enrollment Form'!AH726,SEARCH(\"@\",'Enrollment Form'!AH726))),\"N\",\"Y\"))","v":""},{"$f":"IF(OR($B719=\"N\",'Enrollment Form'!$G726=\"\"),\"\",IF('Enrollment Form'!$B726<>\"Subscriber\",\"-\",IF(COUNTIF('Enrollment Form'!$AS726:$AT726,\"Yes\")=2,\"N\",\"Y\")))","v":""},{"$f":"IF(OR('Enrollment Form'!$CC726=\"\",'Enrollment Form'!$CC726=\"No\"),\"-\",IF(AND('Enrollment Form'!$CC726=\"Yes\",'Enrollment Form'!$CD726=\"\"),\"N\",\"Y\"))","v":"-"},{"$f":"IF(OR('Enrollment Form'!$CE726=\"\",'Enrollment Form'!$CE726=\"No\"),\"-\",IF(AND('Enrollment Form'!$CE726=\"Yes\",'Enrollment Form'!$CF726=\"\"),\"N\",\"Y\"))","v":"-"},{"$f":"IF(OR('Enrollment Form'!$CG726=\"\",'Enrollment Form'!$CG726=\"No\"),\"-\",IF(AND('Enrollment Form'!$CG726=\"Yes\",'Enrollment Form'!$CH726=\"\"),\"N\",\"Y\"))","v":"-"},{"$f":"IF(OR('Enrollment Form'!$CG726=\"\",'Enrollment Form'!$CG726=\"No\"),\"-\",IF(AND('Enrollment Form'!$CG726=\"Yes\",'Enrollment Form'!$CI726=\"\"),\"N\",\"Y\"))","v":"-"},{"$f":"IF('Enrollment Form'!B726<>\"Subscriber\",\"-\",IF(AND('Enrollment Form'!B726=\"Subscriber\",'Enrollment Form'!C726=\"Enroll\",'Enrollment Form'!AA726=\"\"),\"N\",\"Y\"))","v":"-"},{"$f":"IF(OR('Enrollment Form'!B726=\"Subscriber\",'Enrollment Form'!B726=\"\"),\"-\",IF('Enrollment Form'!BI726=\"\",\"N\",\"Y\"))","v":"-"},{"$f":"IF('Enrollment Form'!B726<>\"Subscriber\",\"-\",IF(AND('Enrollment Form'!B726=\"Subscriber\",'Enrollment Form'!G726=\"\"),\"N\",\"Y\"))","v":"-"},{"$f":"IF('Enrollment Form'!A726=\"\",\"\",IF('Enrollment Form'!B726=\"Subscriber\",\"-\",IF(AND('Enrollment Form'!B726<>\"Subscriber\",'Enrollment Form'!G726='Enrollment Form'!H726),\"N\",\"Y\")))","v":""},0]
[727,{"$f":"IF('Enrollment Form'!$A727<>\"\",\"Y\",\"N\")","v":"N"},{"$f":"IF(AND('Enrollment Form'!$B727=\"\",'Enrollment Form'!$C727<>\"\"),\"N\",IF($B720=\"N\",\"\",\"Y\"))","v":""},{"$f":"IF(OR($B720=\"N\",'Enrollment Form'!G727=\"\"),\"\",IF('Enrollment Form'!$B727<>\"Subscriber\",\"\",IF('Enrollment Form'!$G727='Enrollment Form'!$H727,\"Y\",\"N\")))","v":""},{"$f":"IF($B720=\"N\",\"\",IF(AND(COUNTIFS('Enrollment Form'!$H$11:$H$1000,'Enrollment Form'!$H727,'Enrollment Form'!$B$11:$B$1000,'Enrollment Form'!$B727)>1,'Enrollment Form'!$H727<>\"\"),\"N\",\"Y\"))","v":""},{"$f":"IF($B720=\"N\",\"\",IF(LEN('Enrollment Form'!$Y727)=0,\"\",IF(LEN('Enrollment Form'!$Y727)<>5,\"N\",\"Y\")))","v":""},{"$f":"IF($B720=\"N\",\"\",IF(LEN('Enrollment Form'!$AD727=0),\"\",IF(LEN('Enrollment Form'!$AD727)<>5,\"N\",\"Y\")))","v":""},{"$f":"IF($B720=\"N\",\"\",IF(LEN('Enrollment Form'!$BL727=0),\"\",IF(LEN('Enrollment Form'!$BL727)<>5,\"N\",\"Y\")))","v":""},{"$f":"IF($B720=\"N\",\"\",IF(LEN('Enrollment Form'!$AE727)=0,\"\",IF(LEN('Enrollment Form'!$AE727)<>10,\"N\",\"Y\")))","v":""},{"$f":"IF($B720=\"N\",\"\",IF(LEN('Enrollment Form'!$AF727)=0,\"\",IF(LEN('Enrollment Form'!$AF727)<>10,\"N\",\"Y\")))","v":""},{"$f":"IF('Enrollment Form'!$O727<>\"Graded\",\"-\",IF(AND('Enrollment Form'!$O727=\"Graded\",'Enrollment Form'!$AO727<>\"\"),\"Y\",\"N\"))","v":"-"},{"$f":"IF($B720=\"N\",\"\",IF(OR('Enrollment Form'!$B727<>\"Subscriber\",'Enrollment Form'!$C727=\"ROC\"),\"-\",IF(AND('Enrollment Form'!$B727=\"Subscriber\",'Enrollment Form'!$C727=\"Enroll\",'Enrollment Form'!$AJ727<>\"\"),\"Y\",\"N\")))","v":""},{"$f":"IF($B720=\"N\",\"\",IF(OR('Enrollment Form'!$B727<>\"Subscriber\",'Enrollment Form'!$C727=\"ROC\"),\"-\",IF(AND('Enrollment Form'!$B727=\"Subscriber\",'Enrollment Form'!$C727=\"Enroll\",'Enrollment Form'!$AK727<>\"\"),\"Y\",\"N\")))","v":""},{"$f":"IF($B720=\"N\",\"\",IF(OR('Enrollment Form'!$B727<>\"Subscriber\",'Enrollment Form'!$C727=\"ROC\"),\"-\",IF(AND('Enrollment Form'!$B727=\"Subscriber\",'Enrollment Form'!$C727=\"Enroll\",'Enrollment Form'!$AL727<>\"\"),\"Y\",\"N\")))","v":""},{"$f":"IF($B720=\"N\",\"\",IF(OR('Enrollment Form'!$B727<>\"Subscriber\",'Enrollment Form'!$C727=\"ROC\"),\"-\",IF(AND('Enrollment Form'!$B727=\"Subscriber\",'Enrollment Form'!$C727=\"Enroll\",'Enrollment Form'!$AM727<>\"\"),\"Y\",\"N\")))","v":""},{"$f":"IF($B720=\"N\",\"\",IF(OR('Enrollment Form'!$B727<>\"Subscriber\",'Enrollment Form'!$C727=\"ROC\"),\"-\",IF(AND('Enrollment Form'!$B727=\"Subscriber\",'Enrollment Form'!$C727=\"Enroll\",'Enrollment Form'!$AN727<>\"\"),\"Y\",\"N\")))","v":""},{"$f":"IF($B720=\"N\",\"\",IF(OR('Enrollment Form'!$B727<>\"Subscriber\",'Enrollment Form'!$C727=\"ROC\"),\"-\",IF(AND('Enrollment Form'!$B727=\"Subscriber\",'Enrollment Form'!$C727=\"Enroll\",'Enrollment Form'!$AP727<>\"\"),\"Y\",\"N\")))","v":""},{"$f":"IF($B720=\"N\",\"\",IF($Q720=\"-\",\"-\",IF(AND($Q720=\"Y\",'Enrollment Form'!$AP727=\"No\"),\"-\",IF(AND($Q720=\"Y\",'Enrollment Form'!$AP727=\"Yes\",'Enrollment Form'!$AQ727<>\"\"),\"Y\",\"N\"))))","v":""},{"$f":"IF($B720=\"N\",\"\",IF(OR('Enrollment Form'!$B727<>\"Subscriber\",'Enrollment Form'!$C727=\"ROC\"),\"-\",IF(AND('Enrollment Form'!$B727=\"Subscriber\",'Enrollment Form'!$C727=\"Enroll\",'Enrollment Form'!$CO727<>\"\"),\"Y\",\"N\")))","v":""},{"$f":"IF($B720=\"N\",\"\",IF($S720=\"-\",\"-\",IF(AND($S720=\"Y\",'Enrollment Form'!$CO727=\"No\"),\"-\",IF(AND($S720=\"Y\",'Enrollment Form'!$CO727=\"Yes\",'Enrollment Form'!$CP727<>\"\"),\"Y\",\"N\"))))","v":""},{"$f":"IF(OR('Enrollment Form'!$AV727=\"Yes\",'Enrollment Form'!$AV727=\"\"),\"-\",IF(AND('Enrollment Form'!$AV727=\"No\",ISERROR(FIND(\"HMO\",VLOOKUP('Enrollment Form'!G727,'Enrollment Form'!H$11:J$1000,3,FALSE),1))=FALSE,COUNTA('Enrollment Form'!$AW727:$AZ727)=4),\"Y\",\"N\"))","v":"-"},{"$f":"IF($B720=\"N\",\"\",IF('Enrollment Form'!$B727=\"Subscriber\",\"-\",IF(COUNTA('Enrollment Form'!$BE727,'Enrollment Form'!$BG727)=2,\"Y\",\"N\")))","v":""},{"$f":"IF($B720=\"N\",\"\",IF(OR('Enrollment Form'!$AU727=\"\",'Enrollment Form'!$AU727=\"No\"),\"-\",IF(AND('Enrollment Form'!$AU727=\"Yes\",COUNTA('Enrollment Form'!$CK727)=1),\"Y\",\"N\")))","v":""},{"$f":"IF(OR('Enrollment Form'!$CK727=\"\",'Enrollment Form'!$CK727=\"No\"),\"-\",IF(COUNTA('Enrollment Form'!$CM727:$CN727)=2,\"Y\",\"N\"))","v":"-"},{"$f":"IF($B720=\"N\",\"\",IF(COUNTIF('Enrollment Form'!$CZ727:$DO727,\"Other\")=COUNTA('Enrollment Form'!$DF727,'Enrollment Form'!$DA727,'Enrollment Form'!$DK727,'Enrollment Form'!$DP727),\"Y\",\"N\"))","v":""},{"$f":"IF($B720=\"N\",\"\",IF(OR('Enrollment Form'!B727<>\"Subscriber\",'Enrollment Form'!C727=\"ROC\",COUNTIF('Enrollment Form'!AS727:AT727,\"Yes\")>=1),\"-\",IF(AND('Enrollment Form'!C727=\"Enroll\",COUNTIF('Enrollment Form'!AS727:AT727,\"No\")=2,'Enrollment Form'!AU727=\"\"),\"N\",\"Y\")))","v":""},{"$f":"IF(OR(B720=\"N\",'Enrollment Form'!B727<>\"Subscriber\",'Enrollment Form'!C727=\"ROC\",'Enrollment Form'!O727<>\"Multiple of Salary\"),\"-\",IF(COUNTA('Enrollment Form'!T727:U727)<2,\"N\",\"Y\"))","v":"-"},{"$f":"IF(B720=\"N\",\"\",IF(OR('Enrollment Form'!C727=\"ROC\",'Enrollment Form'!B727<>\"Subscriber\",'Enrollment Form'!O727=\"Waive\",'Enrollment Form'!O727=\"\"),\"-\",IF('Enrollment Form'!P727=\"\",\"N\",\"Y\")))","v":""},{"$f":"IF($B720=\"N\",\"\",IF(AND('Enrollment Form'!$C727=\"ROC\",'Enrollment Form'!$DS727<>\"\"),\"Y\",IF(AND('Enrollment Form'!$C727=\"ROC\",'Enrollment Form'!$DS727=\"\"),\"N\",IF(AND('Enrollment Form'!$C727=\"Enroll\",'Enrollment Form'!$B727=\"Subscriber\",'Enrollment Form'!$CQ727=\"No\",'Enrollment Form'!$DS727=\"\"),\"N\",IF(AND('Enrollment Form'!$C727=\"Enroll\",'Enrollment Form'!$B727=\"Subscriber\",'Enrollment Form'!$CQ727=\"Yes\"),\"-\",\"Y\")))))","v":""},{"$f":"IF($B720=\"N\",\"\",IF(AND('Enrollment Form'!$C727=\"ROC\",'Enrollment Form'!$DT727<>\"\"),\"Y\",IF(AND('Enrollment Form'!$C727=\"ROC\",'Enrollment Form'!$DT727=\"\"),\"N\",IF(AND('Enrollment Form'!$C727=\"Enroll\",'Enrollment Form'!$B727=\"Subscriber\",'Enrollment Form'!$CQ727=\"No\",'Enrollment Form'!$DT727=\"\"),\"N\",IF(AND('Enrollment Form'!$C727=\"Enroll\",'Enrollment Form'!$B727=\"Subscriber\",'Enrollment Form'!$CQ727=\"Yes\"),\"-\",\"Y\")))))","v":""},{"$f":"IF('Enrollment Form'!AH727=\"\",\"\",IF(ISERROR(SEARCH(\".\",'Enrollment Form'!AH727,SEARCH(\"@\",'Enrollment Form'!AH727))),\"N\",\"Y\"))","v":""},{"$f":"IF(OR($B720=\"N\",'Enrollment Form'!$G727=\"\"),\"\",IF('Enrollment Form'!$B727<>\"Subscriber\",\"-\",IF(COUNTIF('Enrollment Form'!$AS727:$AT727,\"Yes\")=2,\"N\",\"Y\")))","v":""},{"$f":"IF(OR('Enrollment Form'!$CC727=\"\",'Enrollment Form'!$CC727=\"No\"),\"-\",IF(AND('Enrollment Form'!$CC727=\"Yes\",'Enrollment Form'!$CD727=\"\"),\"N\",\"Y\"))","v":"-"},{"$f":"IF(OR('Enrollment Form'!$CE727=\"\",'Enrollment Form'!$CE727=\"No\"),\"-\",IF(AND('Enrollment Form'!$CE727=\"Yes\",'Enrollment Form'!$CF727=\"\"),\"N\",\"Y\"))","v":"-"},{"$f":"IF(OR('Enrollment Form'!$CG727=\"\",'Enrollment Form'!$CG727=\"No\"),\"-\",IF(AND('Enrollment Form'!$CG727=\"Yes\",'Enrollment Form'!$CH727=\"\"),\"N\",\"Y\"))","v":"-"},{"$f":"IF(OR('Enrollment Form'!$CG727=\"\",'Enrollment Form'!$CG727=\"No\"),\"-\",IF(AND('Enrollment Form'!$CG727=\"Yes\",'Enrollment Form'!$CI727=\"\"),\"N\",\"Y\"))","v":"-"},{"$f":"IF('Enrollment Form'!B727<>\"Subscriber\",\"-\",IF(AND('Enrollment Form'!B727=\"Subscriber\",'Enrollment Form'!C727=\"Enroll\",'Enrollment Form'!AA727=\"\"),\"N\",\"Y\"))","v":"-"},{"$f":"IF(OR('Enrollment Form'!B727=\"Subscriber\",'Enrollment Form'!B727=\"\"),\"-\",IF('Enrollment Form'!BI727=\"\",\"N\",\"Y\"))","v":"-"},{"$f":"IF('Enrollment Form'!B727<>\"Subscriber\",\"-\",IF(AND('Enrollment Form'!B727=\"Subscriber\",'Enrollment Form'!G727=\"\"),\"N\",\"Y\"))","v":"-"},{"$f":"IF('Enrollment Form'!A727=\"\",\"\",IF('Enrollment Form'!B727=\"Subscriber\",\"-\",IF(AND('Enrollment Form'!B727<>\"Subscriber\",'Enrollment Form'!G727='Enrollment Form'!H727),\"N\",\"Y\")))","v":""},0]
[728,{"$f":"IF('Enrollment Form'!$A728<>\"\",\"Y\",\"N\")","v":"N"},{"$f":"IF(AND('Enrollment Form'!$B728=\"\",'Enrollment Form'!$C728<>\"\"),\"N\",IF($B721=\"N\",\"\",\"Y\"))","v":""},{"$f":"IF(OR($B721=\"N\",'Enrollment Form'!G728=\"\"),\"\",IF('Enrollment Form'!$B728<>\"Subscriber\",\"\",IF('Enrollment Form'!$G728='Enrollment Form'!$H728,\"Y\",\"N\")))","v":""},{"$f":"IF($B721=\"N\",\"\",IF(AND(COUNTIFS('Enrollment Form'!$H$11:$H$1000,'Enrollment Form'!$H728,'Enrollment Form'!$B$11:$B$1000,'Enrollment Form'!$B728)>1,'Enrollment Form'!$H728<>\"\"),\"N\",\"Y\"))","v":""},{"$f":"IF($B721=\"N\",\"\",IF(LEN('Enrollment Form'!$Y728)=0,\"\",IF(LEN('Enrollment Form'!$Y728)<>5,\"N\",\"Y\")))","v":""},{"$f":"IF($B721=\"N\",\"\",IF(LEN('Enrollment Form'!$AD728=0),\"\",IF(LEN('Enrollment Form'!$AD728)<>5,\"N\",\"Y\")))","v":""},{"$f":"IF($B721=\"N\",\"\",IF(LEN('Enrollment Form'!$BL728=0),\"\",IF(LEN('Enrollment Form'!$BL728)<>5,\"N\",\"Y\")))","v":""},{"$f":"IF($B721=\"N\",\"\",IF(LEN('Enrollment Form'!$AE728)=0,\"\",IF(LEN('Enrollment Form'!$AE728)<>10,\"N\",\"Y\")))","v":""},{"$f":"IF($B721=\"N\",\"\",IF(LEN('Enrollment Form'!$AF728)=0,\"\",IF(LEN('Enrollment Form'!$AF728)<>10,\"N\",\"Y\")))","v":""},{"$f":"IF('Enrollment Form'!$O728<>\"Graded\",\"-\",IF(AND('Enrollment Form'!$O728=\"Graded\",'Enrollment Form'!$AO728<>\"\"),\"Y\",\"N\"))","v":"-"},{"$f":"IF($B721=\"N\",\"\",IF(OR('Enrollment Form'!$B728<>\"Subscriber\",'Enrollment Form'!$C728=\"ROC\"),\"-\",IF(AND('Enrollment Form'!$B728=\"Subscriber\",'Enrollment Form'!$C728=\"Enroll\",'Enrollment Form'!$AJ728<>\"\"),\"Y\",\"N\")))","v":""},{"$f":"IF($B721=\"N\",\"\",IF(OR('Enrollment Form'!$B728<>\"Subscriber\",'Enrollment Form'!$C728=\"ROC\"),\"-\",IF(AND('Enrollment Form'!$B728=\"Subscriber\",'Enrollment Form'!$C728=\"Enroll\",'Enrollment Form'!$AK728<>\"\"),\"Y\",\"N\")))","v":""},{"$f":"IF($B721=\"N\",\"\",IF(OR('Enrollment Form'!$B728<>\"Subscriber\",'Enrollment Form'!$C728=\"ROC\"),\"-\",IF(AND('Enrollment Form'!$B728=\"Subscriber\",'Enrollment Form'!$C728=\"Enroll\",'Enrollment Form'!$AL728<>\"\"),\"Y\",\"N\")))","v":""},{"$f":"IF($B721=\"N\",\"\",IF(OR('Enrollment Form'!$B728<>\"Subscriber\",'Enrollment Form'!$C728=\"ROC\"),\"-\",IF(AND('Enrollment Form'!$B728=\"Subscriber\",'Enrollment Form'!$C728=\"Enroll\",'Enrollment Form'!$AM728<>\"\"),\"Y\",\"N\")))","v":""},{"$f":"IF($B721=\"N\",\"\",IF(OR('Enrollment Form'!$B728<>\"Subscriber\",'Enrollment Form'!$C728=\"ROC\"),\"-\",IF(AND('Enrollment Form'!$B728=\"Subscriber\",'Enrollment Form'!$C728=\"Enroll\",'Enrollment Form'!$AN728<>\"\"),\"Y\",\"N\")))","v":""},{"$f":"IF($B721=\"N\",\"\",IF(OR('Enrollment Form'!$B728<>\"Subscriber\",'Enrollment Form'!$C728=\"ROC\"),\"-\",IF(AND('Enrollment Form'!$B728=\"Subscriber\",'Enrollment Form'!$C728=\"Enroll\",'Enrollment Form'!$AP728<>\"\"),\"Y\",\"N\")))","v":""},{"$f":"IF($B721=\"N\",\"\",IF($Q721=\"-\",\"-\",IF(AND($Q721=\"Y\",'Enrollment Form'!$AP728=\"No\"),\"-\",IF(AND($Q721=\"Y\",'Enrollment Form'!$AP728=\"Yes\",'Enrollment Form'!$AQ728<>\"\"),\"Y\",\"N\"))))","v":""},{"$f":"IF($B721=\"N\",\"\",IF(OR('Enrollment Form'!$B728<>\"Subscriber\",'Enrollment Form'!$C728=\"ROC\"),\"-\",IF(AND('Enrollment Form'!$B728=\"Subscriber\",'Enrollment Form'!$C728=\"Enroll\",'Enrollment Form'!$CO728<>\"\"),\"Y\",\"N\")))","v":""},{"$f":"IF($B721=\"N\",\"\",IF($S721=\"-\",\"-\",IF(AND($S721=\"Y\",'Enrollment Form'!$CO728=\"No\"),\"-\",IF(AND($S721=\"Y\",'Enrollment Form'!$CO728=\"Yes\",'Enrollment Form'!$CP728<>\"\"),\"Y\",\"N\"))))","v":""},{"$f":"IF(OR('Enrollment Form'!$AV728=\"Yes\",'Enrollment Form'!$AV728=\"\"),\"-\",IF(AND('Enrollment Form'!$AV728=\"No\",ISERROR(FIND(\"HMO\",VLOOKUP('Enrollment Form'!G728,'Enrollment Form'!H$11:J$1000,3,FALSE),1))=FALSE,COUNTA('Enrollment Form'!$AW728:$AZ728)=4),\"Y\",\"N\"))","v":"-"},{"$f":"IF($B721=\"N\",\"\",IF('Enrollment Form'!$B728=\"Subscriber\",\"-\",IF(COUNTA('Enrollment Form'!$BE728,'Enrollment Form'!$BG728)=2,\"Y\",\"N\")))","v":""},{"$f":"IF($B721=\"N\",\"\",IF(OR('Enrollment Form'!$AU728=\"\",'Enrollment Form'!$AU728=\"No\"),\"-\",IF(AND('Enrollment Form'!$AU728=\"Yes\",COUNTA('Enrollment Form'!$CK728)=1),\"Y\",\"N\")))","v":""},{"$f":"IF(OR('Enrollment Form'!$CK728=\"\",'Enrollment Form'!$CK728=\"No\"),\"-\",IF(COUNTA('Enrollment Form'!$CM728:$CN728)=2,\"Y\",\"N\"))","v":"-"},{"$f":"IF($B721=\"N\",\"\",IF(COUNTIF('Enrollment Form'!$CZ728:$DO728,\"Other\")=COUNTA('Enrollment Form'!$DF728,'Enrollment Form'!$DA728,'Enrollment Form'!$DK728,'Enrollment Form'!$DP728),\"Y\",\"N\"))","v":""},{"$f":"IF($B721=\"N\",\"\",IF(OR('Enrollment Form'!B728<>\"Subscriber\",'Enrollment Form'!C728=\"ROC\",COUNTIF('Enrollment Form'!AS728:AT728,\"Yes\")>=1),\"-\",IF(AND('Enrollment Form'!C728=\"Enroll\",COUNTIF('Enrollment Form'!AS728:AT728,\"No\")=2,'Enrollment Form'!AU728=\"\"),\"N\",\"Y\")))","v":""},{"$f":"IF(OR(B721=\"N\",'Enrollment Form'!B728<>\"Subscriber\",'Enrollment Form'!C728=\"ROC\",'Enrollment Form'!O728<>\"Multiple of Salary\"),\"-\",IF(COUNTA('Enrollment Form'!T728:U728)<2,\"N\",\"Y\"))","v":"-"},{"$f":"IF(B721=\"N\",\"\",IF(OR('Enrollment Form'!C728=\"ROC\",'Enrollment Form'!B728<>\"Subscriber\",'Enrollment Form'!O728=\"Waive\",'Enrollment Form'!O728=\"\"),\"-\",IF('Enrollment Form'!P728=\"\",\"N\",\"Y\")))","v":""},{"$f":"IF($B721=\"N\",\"\",IF(AND('Enrollment Form'!$C728=\"ROC\",'Enrollment Form'!$DS728<>\"\"),\"Y\",IF(AND('Enrollment Form'!$C728=\"ROC\",'Enrollment Form'!$DS728=\"\"),\"N\",IF(AND('Enrollment Form'!$C728=\"Enroll\",'Enrollment Form'!$B728=\"Subscriber\",'Enrollment Form'!$CQ728=\"No\",'Enrollment Form'!$DS728=\"\"),\"N\",IF(AND('Enrollment Form'!$C728=\"Enroll\",'Enrollment Form'!$B728=\"Subscriber\",'Enrollment Form'!$CQ728=\"Yes\"),\"-\",\"Y\")))))","v":""},{"$f":"IF($B721=\"N\",\"\",IF(AND('Enrollment Form'!$C728=\"ROC\",'Enrollment Form'!$DT728<>\"\"),\"Y\",IF(AND('Enrollment Form'!$C728=\"ROC\",'Enrollment Form'!$DT728=\"\"),\"N\",IF(AND('Enrollment Form'!$C728=\"Enroll\",'Enrollment Form'!$B728=\"Subscriber\",'Enrollment Form'!$CQ728=\"No\",'Enrollment Form'!$DT728=\"\"),\"N\",IF(AND('Enrollment Form'!$C728=\"Enroll\",'Enrollment Form'!$B728=\"Subscriber\",'Enrollment Form'!$CQ728=\"Yes\"),\"-\",\"Y\")))))","v":""},{"$f":"IF('Enrollment Form'!AH728=\"\",\"\",IF(ISERROR(SEARCH(\".\",'Enrollment Form'!AH728,SEARCH(\"@\",'Enrollment Form'!AH728))),\"N\",\"Y\"))","v":""},{"$f":"IF(OR($B721=\"N\",'Enrollment Form'!$G728=\"\"),\"\",IF('Enrollment Form'!$B728<>\"Subscriber\",\"-\",IF(COUNTIF('Enrollment Form'!$AS728:$AT728,\"Yes\")=2,\"N\",\"Y\")))","v":""},{"$f":"IF(OR('Enrollment Form'!$CC728=\"\",'Enrollment Form'!$CC728=\"No\"),\"-\",IF(AND('Enrollment Form'!$CC728=\"Yes\",'Enrollment Form'!$CD728=\"\"),\"N\",\"Y\"))","v":"-"},{"$f":"IF(OR('Enrollment Form'!$CE728=\"\",'Enrollment Form'!$CE728=\"No\"),\"-\",IF(AND('Enrollment Form'!$CE728=\"Yes\",'Enrollment Form'!$CF728=\"\"),\"N\",\"Y\"))","v":"-"},{"$f":"IF(OR('Enrollment Form'!$CG728=\"\",'Enrollment Form'!$CG728=\"No\"),\"-\",IF(AND('Enrollment Form'!$CG728=\"Yes\",'Enrollment Form'!$CH728=\"\"),\"N\",\"Y\"))","v":"-"},{"$f":"IF(OR('Enrollment Form'!$CG728=\"\",'Enrollment Form'!$CG728=\"No\"),\"-\",IF(AND('Enrollment Form'!$CG728=\"Yes\",'Enrollment Form'!$CI728=\"\"),\"N\",\"Y\"))","v":"-"},{"$f":"IF('Enrollment Form'!B728<>\"Subscriber\",\"-\",IF(AND('Enrollment Form'!B728=\"Subscriber\",'Enrollment Form'!C728=\"Enroll\",'Enrollment Form'!AA728=\"\"),\"N\",\"Y\"))","v":"-"},{"$f":"IF(OR('Enrollment Form'!B728=\"Subscriber\",'Enrollment Form'!B728=\"\"),\"-\",IF('Enrollment Form'!BI728=\"\",\"N\",\"Y\"))","v":"-"},{"$f":"IF('Enrollment Form'!B728<>\"Subscriber\",\"-\",IF(AND('Enrollment Form'!B728=\"Subscriber\",'Enrollment Form'!G728=\"\"),\"N\",\"Y\"))","v":"-"},{"$f":"IF('Enrollment Form'!A728=\"\",\"\",IF('Enrollment Form'!B728=\"Subscriber\",\"-\",IF(AND('Enrollment Form'!B728<>\"Subscriber\",'Enrollment Form'!G728='Enrollment Form'!H728),\"N\",\"Y\")))","v":""},0]
[729,{"$f":"IF('Enrollment Form'!$A729<>\"\",\"Y\",\"N\")","v":"N"},{"$f":"IF(AND('Enrollment Form'!$B729=\"\",'Enrollment Form'!$C729<>\"\"),\"N\",IF($B722=\"N\",\"\",\"Y\"))","v":""},{"$f":"IF(OR($B722=\"N\",'Enrollment Form'!G729=\"\"),\"\",IF('Enrollment Form'!$B729<>\"Subscriber\",\"\",IF('Enrollment Form'!$G729='Enrollment Form'!$H729,\"Y\",\"N\")))","v":""},{"$f":"IF($B722=\"N\",\"\",IF(AND(COUNTIFS('Enrollment Form'!$H$11:$H$1000,'Enrollment Form'!$H729,'Enrollment Form'!$B$11:$B$1000,'Enrollment Form'!$B729)>1,'Enrollment Form'!$H729<>\"\"),\"N\",\"Y\"))","v":""},{"$f":"IF($B722=\"N\",\"\",IF(LEN('Enrollment Form'!$Y729)=0,\"\",IF(LEN('Enrollment Form'!$Y729)<>5,\"N\",\"Y\")))","v":""},{"$f":"IF($B722=\"N\",\"\",IF(LEN('Enrollment Form'!$AD729=0),\"\",IF(LEN('Enrollment Form'!$AD729)<>5,\"N\",\"Y\")))","v":""},{"$f":"IF($B722=\"N\",\"\",IF(LEN('Enrollment Form'!$BL729=0),\"\",IF(LEN('Enrollment Form'!$BL729)<>5,\"N\",\"Y\")))","v":""},{"$f":"IF($B722=\"N\",\"\",IF(LEN('Enrollment Form'!$AE729)=0,\"\",IF(LEN('Enrollment Form'!$AE729)<>10,\"N\",\"Y\")))","v":""},{"$f":"IF($B722=\"N\",\"\",IF(LEN('Enrollment Form'!$AF729)=0,\"\",IF(LEN('Enrollment Form'!$AF729)<>10,\"N\",\"Y\")))","v":""},{"$f":"IF('Enrollment Form'!$O729<>\"Graded\",\"-\",IF(AND('Enrollment Form'!$O729=\"Graded\",'Enrollment Form'!$AO729<>\"\"),\"Y\",\"N\"))","v":"-"},{"$f":"IF($B722=\"N\",\"\",IF(OR('Enrollment Form'!$B729<>\"Subscriber\",'Enrollment Form'!$C729=\"ROC\"),\"-\",IF(AND('Enrollment Form'!$B729=\"Subscriber\",'Enrollment Form'!$C729=\"Enroll\",'Enrollment Form'!$AJ729<>\"\"),\"Y\",\"N\")))","v":""},{"$f":"IF($B722=\"N\",\"\",IF(OR('Enrollment Form'!$B729<>\"Subscriber\",'Enrollment Form'!$C729=\"ROC\"),\"-\",IF(AND('Enrollment Form'!$B729=\"Subscriber\",'Enrollment Form'!$C729=\"Enroll\",'Enrollment Form'!$AK729<>\"\"),\"Y\",\"N\")))","v":""},{"$f":"IF($B722=\"N\",\"\",IF(OR('Enrollment Form'!$B729<>\"Subscriber\",'Enrollment Form'!$C729=\"ROC\"),\"-\",IF(AND('Enrollment Form'!$B729=\"Subscriber\",'Enrollment Form'!$C729=\"Enroll\",'Enrollment Form'!$AL729<>\"\"),\"Y\",\"N\")))","v":""},{"$f":"IF($B722=\"N\",\"\",IF(OR('Enrollment Form'!$B729<>\"Subscriber\",'Enrollment Form'!$C729=\"ROC\"),\"-\",IF(AND('Enrollment Form'!$B729=\"Subscriber\",'Enrollment Form'!$C729=\"Enroll\",'Enrollment Form'!$AM729<>\"\"),\"Y\",\"N\")))","v":""},{"$f":"IF($B722=\"N\",\"\",IF(OR('Enrollment Form'!$B729<>\"Subscriber\",'Enrollment Form'!$C729=\"ROC\"),\"-\",IF(AND('Enrollment Form'!$B729=\"Subscriber\",'Enrollment Form'!$C729=\"Enroll\",'Enrollment Form'!$AN729<>\"\"),\"Y\",\"N\")))","v":""},{"$f":"IF($B722=\"N\",\"\",IF(OR('Enrollment Form'!$B729<>\"Subscriber\",'Enrollment Form'!$C729=\"ROC\"),\"-\",IF(AND('Enrollment Form'!$B729=\"Subscriber\",'Enrollment Form'!$C729=\"Enroll\",'Enrollment Form'!$AP729<>\"\"),\"Y\",\"N\")))","v":""},{"$f":"IF($B722=\"N\",\"\",IF($Q722=\"-\",\"-\",IF(AND($Q722=\"Y\",'Enrollment Form'!$AP729=\"No\"),\"-\",IF(AND($Q722=\"Y\",'Enrollment Form'!$AP729=\"Yes\",'Enrollment Form'!$AQ729<>\"\"),\"Y\",\"N\"))))","v":""},{"$f":"IF($B722=\"N\",\"\",IF(OR('Enrollment Form'!$B729<>\"Subscriber\",'Enrollment Form'!$C729=\"ROC\"),\"-\",IF(AND('Enrollment Form'!$B729=\"Subscriber\",'Enrollment Form'!$C729=\"Enroll\",'Enrollment Form'!$CO729<>\"\"),\"Y\",\"N\")))","v":""},{"$f":"IF($B722=\"N\",\"\",IF($S722=\"-\",\"-\",IF(AND($S722=\"Y\",'Enrollment Form'!$CO729=\"No\"),\"-\",IF(AND($S722=\"Y\",'Enrollment Form'!$CO729=\"Yes\",'Enrollment Form'!$CP729<>\"\"),\"Y\",\"N\"))))","v":""},{"$f":"IF(OR('Enrollment Form'!$AV729=\"Yes\",'Enrollment Form'!$AV729=\"\"),\"-\",IF(AND('Enrollment Form'!$AV729=\"No\",ISERROR(FIND(\"HMO\",VLOOKUP('Enrollment Form'!G729,'Enrollment Form'!H$11:J$1000,3,FALSE),1))=FALSE,COUNTA('Enrollment Form'!$AW729:$AZ729)=4),\"Y\",\"N\"))","v":"-"},{"$f":"IF($B722=\"N\",\"\",IF('Enrollment Form'!$B729=\"Subscriber\",\"-\",IF(COUNTA('Enrollment Form'!$BE729,'Enrollment Form'!$BG729)=2,\"Y\",\"N\")))","v":""},{"$f":"IF($B722=\"N\",\"\",IF(OR('Enrollment Form'!$AU729=\"\",'Enrollment Form'!$AU729=\"No\"),\"-\",IF(AND('Enrollment Form'!$AU729=\"Yes\",COUNTA('Enrollment Form'!$CK729)=1),\"Y\",\"N\")))","v":""},{"$f":"IF(OR('Enrollment Form'!$CK729=\"\",'Enrollment Form'!$CK729=\"No\"),\"-\",IF(COUNTA('Enrollment Form'!$CM729:$CN729)=2,\"Y\",\"N\"))","v":"-"},{"$f":"IF($B722=\"N\",\"\",IF(COUNTIF('Enrollment Form'!$CZ729:$DO729,\"Other\")=COUNTA('Enrollment Form'!$DF729,'Enrollment Form'!$DA729,'Enrollment Form'!$DK729,'Enrollment Form'!$DP729),\"Y\",\"N\"))","v":""},{"$f":"IF($B722=\"N\",\"\",IF(OR('Enrollment Form'!B729<>\"Subscriber\",'Enrollment Form'!C729=\"ROC\",COUNTIF('Enrollment Form'!AS729:AT729,\"Yes\")>=1),\"-\",IF(AND('Enrollment Form'!C729=\"Enroll\",COUNTIF('Enrollment Form'!AS729:AT729,\"No\")=2,'Enrollment Form'!AU729=\"\"),\"N\",\"Y\")))","v":""},{"$f":"IF(OR(B722=\"N\",'Enrollment Form'!B729<>\"Subscriber\",'Enrollment Form'!C729=\"ROC\",'Enrollment Form'!O729<>\"Multiple of Salary\"),\"-\",IF(COUNTA('Enrollment Form'!T729:U729)<2,\"N\",\"Y\"))","v":"-"},{"$f":"IF(B722=\"N\",\"\",IF(OR('Enrollment Form'!C729=\"ROC\",'Enrollment Form'!B729<>\"Subscriber\",'Enrollment Form'!O729=\"Waive\",'Enrollment Form'!O729=\"\"),\"-\",IF('Enrollment Form'!P729=\"\",\"N\",\"Y\")))","v":""},{"$f":"IF($B722=\"N\",\"\",IF(AND('Enrollment Form'!$C729=\"ROC\",'Enrollment Form'!$DS729<>\"\"),\"Y\",IF(AND('Enrollment Form'!$C729=\"ROC\",'Enrollment Form'!$DS729=\"\"),\"N\",IF(AND('Enrollment Form'!$C729=\"Enroll\",'Enrollment Form'!$B729=\"Subscriber\",'Enrollment Form'!$CQ729=\"No\",'Enrollment Form'!$DS729=\"\"),\"N\",IF(AND('Enrollment Form'!$C729=\"Enroll\",'Enrollment Form'!$B729=\"Subscriber\",'Enrollment Form'!$CQ729=\"Yes\"),\"-\",\"Y\")))))","v":""},{"$f":"IF($B722=\"N\",\"\",IF(AND('Enrollment Form'!$C729=\"ROC\",'Enrollment Form'!$DT729<>\"\"),\"Y\",IF(AND('Enrollment Form'!$C729=\"ROC\",'Enrollment Form'!$DT729=\"\"),\"N\",IF(AND('Enrollment Form'!$C729=\"Enroll\",'Enrollment Form'!$B729=\"Subscriber\",'Enrollment Form'!$CQ729=\"No\",'Enrollment Form'!$DT729=\"\"),\"N\",IF(AND('Enrollment Form'!$C729=\"Enroll\",'Enrollment Form'!$B729=\"Subscriber\",'Enrollment Form'!$CQ729=\"Yes\"),\"-\",\"Y\")))))","v":""},{"$f":"IF('Enrollment Form'!AH729=\"\",\"\",IF(ISERROR(SEARCH(\".\",'Enrollment Form'!AH729,SEARCH(\"@\",'Enrollment Form'!AH729))),\"N\",\"Y\"))","v":""},{"$f":"IF(OR($B722=\"N\",'Enrollment Form'!$G729=\"\"),\"\",IF('Enrollment Form'!$B729<>\"Subscriber\",\"-\",IF(COUNTIF('Enrollment Form'!$AS729:$AT729,\"Yes\")=2,\"N\",\"Y\")))","v":""},{"$f":"IF(OR('Enrollment Form'!$CC729=\"\",'Enrollment Form'!$CC729=\"No\"),\"-\",IF(AND('Enrollment Form'!$CC729=\"Yes\",'Enrollment Form'!$CD729=\"\"),\"N\",\"Y\"))","v":"-"},{"$f":"IF(OR('Enrollment Form'!$CE729=\"\",'Enrollment Form'!$CE729=\"No\"),\"-\",IF(AND('Enrollment Form'!$CE729=\"Yes\",'Enrollment Form'!$CF729=\"\"),\"N\",\"Y\"))","v":"-"},{"$f":"IF(OR('Enrollment Form'!$CG729=\"\",'Enrollment Form'!$CG729=\"No\"),\"-\",IF(AND('Enrollment Form'!$CG729=\"Yes\",'Enrollment Form'!$CH729=\"\"),\"N\",\"Y\"))","v":"-"},{"$f":"IF(OR('Enrollment Form'!$CG729=\"\",'Enrollment Form'!$CG729=\"No\"),\"-\",IF(AND('Enrollment Form'!$CG729=\"Yes\",'Enrollment Form'!$CI729=\"\"),\"N\",\"Y\"))","v":"-"},{"$f":"IF('Enrollment Form'!B729<>\"Subscriber\",\"-\",IF(AND('Enrollment Form'!B729=\"Subscriber\",'Enrollment Form'!C729=\"Enroll\",'Enrollment Form'!AA729=\"\"),\"N\",\"Y\"))","v":"-"},{"$f":"IF(OR('Enrollment Form'!B729=\"Subscriber\",'Enrollment Form'!B729=\"\"),\"-\",IF('Enrollment Form'!BI729=\"\",\"N\",\"Y\"))","v":"-"},{"$f":"IF('Enrollment Form'!B729<>\"Subscriber\",\"-\",IF(AND('Enrollment Form'!B729=\"Subscriber\",'Enrollment Form'!G729=\"\"),\"N\",\"Y\"))","v":"-"},{"$f":"IF('Enrollment Form'!A729=\"\",\"\",IF('Enrollment Form'!B729=\"Subscriber\",\"-\",IF(AND('Enrollment Form'!B729<>\"Subscriber\",'Enrollment Form'!G729='Enrollment Form'!H729),\"N\",\"Y\")))","v":""},0]
[730,{"$f":"IF('Enrollment Form'!$A730<>\"\",\"Y\",\"N\")","v":"N"},{"$f":"IF(AND('Enrollment Form'!$B730=\"\",'Enrollment Form'!$C730<>\"\"),\"N\",IF($B723=\"N\",\"\",\"Y\"))","v":""},{"$f":"IF(OR($B723=\"N\",'Enrollment Form'!G730=\"\"),\"\",IF('Enrollment Form'!$B730<>\"Subscriber\",\"\",IF('Enrollment Form'!$G730='Enrollment Form'!$H730,\"Y\",\"N\")))","v":""},{"$f":"IF($B723=\"N\",\"\",IF(AND(COUNTIFS('Enrollment Form'!$H$11:$H$1000,'Enrollment Form'!$H730,'Enrollment Form'!$B$11:$B$1000,'Enrollment Form'!$B730)>1,'Enrollment Form'!$H730<>\"\"),\"N\",\"Y\"))","v":""},{"$f":"IF($B723=\"N\",\"\",IF(LEN('Enrollment Form'!$Y730)=0,\"\",IF(LEN('Enrollment Form'!$Y730)<>5,\"N\",\"Y\")))","v":""},{"$f":"IF($B723=\"N\",\"\",IF(LEN('Enrollment Form'!$AD730=0),\"\",IF(LEN('Enrollment Form'!$AD730)<>5,\"N\",\"Y\")))","v":""},{"$f":"IF($B723=\"N\",\"\",IF(LEN('Enrollment Form'!$BL730=0),\"\",IF(LEN('Enrollment Form'!$BL730)<>5,\"N\",\"Y\")))","v":""},{"$f":"IF($B723=\"N\",\"\",IF(LEN('Enrollment Form'!$AE730)=0,\"\",IF(LEN('Enrollment Form'!$AE730)<>10,\"N\",\"Y\")))","v":""},{"$f":"IF($B723=\"N\",\"\",IF(LEN('Enrollment Form'!$AF730)=0,\"\",IF(LEN('Enrollment Form'!$AF730)<>10,\"N\",\"Y\")))","v":""},{"$f":"IF('Enrollment Form'!$O730<>\"Graded\",\"-\",IF(AND('Enrollment Form'!$O730=\"Graded\",'Enrollment Form'!$AO730<>\"\"),\"Y\",\"N\"))","v":"-"},{"$f":"IF($B723=\"N\",\"\",IF(OR('Enrollment Form'!$B730<>\"Subscriber\",'Enrollment Form'!$C730=\"ROC\"),\"-\",IF(AND('Enrollment Form'!$B730=\"Subscriber\",'Enrollment Form'!$C730=\"Enroll\",'Enrollment Form'!$AJ730<>\"\"),\"Y\",\"N\")))","v":""},{"$f":"IF($B723=\"N\",\"\",IF(OR('Enrollment Form'!$B730<>\"Subscriber\",'Enrollment Form'!$C730=\"ROC\"),\"-\",IF(AND('Enrollment Form'!$B730=\"Subscriber\",'Enrollment Form'!$C730=\"Enroll\",'Enrollment Form'!$AK730<>\"\"),\"Y\",\"N\")))","v":""},{"$f":"IF($B723=\"N\",\"\",IF(OR('Enrollment Form'!$B730<>\"Subscriber\",'Enrollment Form'!$C730=\"ROC\"),\"-\",IF(AND('Enrollment Form'!$B730=\"Subscriber\",'Enrollment Form'!$C730=\"Enroll\",'Enrollment Form'!$AL730<>\"\"),\"Y\",\"N\")))","v":""},{"$f":"IF($B723=\"N\",\"\",IF(OR('Enrollment Form'!$B730<>\"Subscriber\",'Enrollment Form'!$C730=\"ROC\"),\"-\",IF(AND('Enrollment Form'!$B730=\"Subscriber\",'Enrollment Form'!$C730=\"Enroll\",'Enrollment Form'!$AM730<>\"\"),\"Y\",\"N\")))","v":""},{"$f":"IF($B723=\"N\",\"\",IF(OR('Enrollment Form'!$B730<>\"Subscriber\",'Enrollment Form'!$C730=\"ROC\"),\"-\",IF(AND('Enrollment Form'!$B730=\"Subscriber\",'Enrollment Form'!$C730=\"Enroll\",'Enrollment Form'!$AN730<>\"\"),\"Y\",\"N\")))","v":""},{"$f":"IF($B723=\"N\",\"\",IF(OR('Enrollment Form'!$B730<>\"Subscriber\",'Enrollment Form'!$C730=\"ROC\"),\"-\",IF(AND('Enrollment Form'!$B730=\"Subscriber\",'Enrollment Form'!$C730=\"Enroll\",'Enrollment Form'!$AP730<>\"\"),\"Y\",\"N\")))","v":""},{"$f":"IF($B723=\"N\",\"\",IF($Q723=\"-\",\"-\",IF(AND($Q723=\"Y\",'Enrollment Form'!$AP730=\"No\"),\"-\",IF(AND($Q723=\"Y\",'Enrollment Form'!$AP730=\"Yes\",'Enrollment Form'!$AQ730<>\"\"),\"Y\",\"N\"))))","v":""},{"$f":"IF($B723=\"N\",\"\",IF(OR('Enrollment Form'!$B730<>\"Subscriber\",'Enrollment Form'!$C730=\"ROC\"),\"-\",IF(AND('Enrollment Form'!$B730=\"Subscriber\",'Enrollment Form'!$C730=\"Enroll\",'Enrollment Form'!$CO730<>\"\"),\"Y\",\"N\")))","v":""},{"$f":"IF($B723=\"N\",\"\",IF($S723=\"-\",\"-\",IF(AND($S723=\"Y\",'Enrollment Form'!$CO730=\"No\"),\"-\",IF(AND($S723=\"Y\",'Enrollment Form'!$CO730=\"Yes\",'Enrollment Form'!$CP730<>\"\"),\"Y\",\"N\"))))","v":""},{"$f":"IF(OR('Enrollment Form'!$AV730=\"Yes\",'Enrollment Form'!$AV730=\"\"),\"-\",IF(AND('Enrollment Form'!$AV730=\"No\",ISERROR(FIND(\"HMO\",VLOOKUP('Enrollment Form'!G730,'Enrollment Form'!H$11:J$1000,3,FALSE),1))=FALSE,COUNTA('Enrollment Form'!$AW730:$AZ730)=4),\"Y\",\"N\"))","v":"-"},{"$f":"IF($B723=\"N\",\"\",IF('Enrollment Form'!$B730=\"Subscriber\",\"-\",IF(COUNTA('Enrollment Form'!$BE730,'Enrollment Form'!$BG730)=2,\"Y\",\"N\")))","v":""},{"$f":"IF($B723=\"N\",\"\",IF(OR('Enrollment Form'!$AU730=\"\",'Enrollment Form'!$AU730=\"No\"),\"-\",IF(AND('Enrollment Form'!$AU730=\"Yes\",COUNTA('Enrollment Form'!$CK730)=1),\"Y\",\"N\")))","v":""},{"$f":"IF(OR('Enrollment Form'!$CK730=\"\",'Enrollment Form'!$CK730=\"No\"),\"-\",IF(COUNTA('Enrollment Form'!$CM730:$CN730)=2,\"Y\",\"N\"))","v":"-"},{"$f":"IF($B723=\"N\",\"\",IF(COUNTIF('Enrollment Form'!$CZ730:$DO730,\"Other\")=COUNTA('Enrollment Form'!$DF730,'Enrollment Form'!$DA730,'Enrollment Form'!$DK730,'Enrollment Form'!$DP730),\"Y\",\"N\"))","v":""},{"$f":"IF($B723=\"N\",\"\",IF(OR('Enrollment Form'!B730<>\"Subscriber\",'Enrollment Form'!C730=\"ROC\",COUNTIF('Enrollment Form'!AS730:AT730,\"Yes\")>=1),\"-\",IF(AND('Enrollment Form'!C730=\"Enroll\",COUNTIF('Enrollment Form'!AS730:AT730,\"No\")=2,'Enrollment Form'!AU730=\"\"),\"N\",\"Y\")))","v":""},{"$f":"IF(OR(B723=\"N\",'Enrollment Form'!B730<>\"Subscriber\",'Enrollment Form'!C730=\"ROC\",'Enrollment Form'!O730<>\"Multiple of Salary\"),\"-\",IF(COUNTA('Enrollment Form'!T730:U730)<2,\"N\",\"Y\"))","v":"-"},{"$f":"IF(B723=\"N\",\"\",IF(OR('Enrollment Form'!C730=\"ROC\",'Enrollment Form'!B730<>\"Subscriber\",'Enrollment Form'!O730=\"Waive\",'Enrollment Form'!O730=\"\"),\"-\",IF('Enrollment Form'!P730=\"\",\"N\",\"Y\")))","v":""},{"$f":"IF($B723=\"N\",\"\",IF(AND('Enrollment Form'!$C730=\"ROC\",'Enrollment Form'!$DS730<>\"\"),\"Y\",IF(AND('Enrollment Form'!$C730=\"ROC\",'Enrollment Form'!$DS730=\"\"),\"N\",IF(AND('Enrollment Form'!$C730=\"Enroll\",'Enrollment Form'!$B730=\"Subscriber\",'Enrollment Form'!$CQ730=\"No\",'Enrollment Form'!$DS730=\"\"),\"N\",IF(AND('Enrollment Form'!$C730=\"Enroll\",'Enrollment Form'!$B730=\"Subscriber\",'Enrollment Form'!$CQ730=\"Yes\"),\"-\",\"Y\")))))","v":""},{"$f":"IF($B723=\"N\",\"\",IF(AND('Enrollment Form'!$C730=\"ROC\",'Enrollment Form'!$DT730<>\"\"),\"Y\",IF(AND('Enrollment Form'!$C730=\"ROC\",'Enrollment Form'!$DT730=\"\"),\"N\",IF(AND('Enrollment Form'!$C730=\"Enroll\",'Enrollment Form'!$B730=\"Subscriber\",'Enrollment Form'!$CQ730=\"No\",'Enrollment Form'!$DT730=\"\"),\"N\",IF(AND('Enrollment Form'!$C730=\"Enroll\",'Enrollment Form'!$B730=\"Subscriber\",'Enrollment Form'!$CQ730=\"Yes\"),\"-\",\"Y\")))))","v":""},{"$f":"IF('Enrollment Form'!AH730=\"\",\"\",IF(ISERROR(SEARCH(\".\",'Enrollment Form'!AH730,SEARCH(\"@\",'Enrollment Form'!AH730))),\"N\",\"Y\"))","v":""},{"$f":"IF(OR($B723=\"N\",'Enrollment Form'!$G730=\"\"),\"\",IF('Enrollment Form'!$B730<>\"Subscriber\",\"-\",IF(COUNTIF('Enrollment Form'!$AS730:$AT730,\"Yes\")=2,\"N\",\"Y\")))","v":""},{"$f":"IF(OR('Enrollment Form'!$CC730=\"\",'Enrollment Form'!$CC730=\"No\"),\"-\",IF(AND('Enrollment Form'!$CC730=\"Yes\",'Enrollment Form'!$CD730=\"\"),\"N\",\"Y\"))","v":"-"},{"$f":"IF(OR('Enrollment Form'!$CE730=\"\",'Enrollment Form'!$CE730=\"No\"),\"-\",IF(AND('Enrollment Form'!$CE730=\"Yes\",'Enrollment Form'!$CF730=\"\"),\"N\",\"Y\"))","v":"-"},{"$f":"IF(OR('Enrollment Form'!$CG730=\"\",'Enrollment Form'!$CG730=\"No\"),\"-\",IF(AND('Enrollment Form'!$CG730=\"Yes\",'Enrollment Form'!$CH730=\"\"),\"N\",\"Y\"))","v":"-"},{"$f":"IF(OR('Enrollment Form'!$CG730=\"\",'Enrollment Form'!$CG730=\"No\"),\"-\",IF(AND('Enrollment Form'!$CG730=\"Yes\",'Enrollment Form'!$CI730=\"\"),\"N\",\"Y\"))","v":"-"},{"$f":"IF('Enrollment Form'!B730<>\"Subscriber\",\"-\",IF(AND('Enrollment Form'!B730=\"Subscriber\",'Enrollment Form'!C730=\"Enroll\",'Enrollment Form'!AA730=\"\"),\"N\",\"Y\"))","v":"-"},{"$f":"IF(OR('Enrollment Form'!B730=\"Subscriber\",'Enrollment Form'!B730=\"\"),\"-\",IF('Enrollment Form'!BI730=\"\",\"N\",\"Y\"))","v":"-"},{"$f":"IF('Enrollment Form'!B730<>\"Subscriber\",\"-\",IF(AND('Enrollment Form'!B730=\"Subscriber\",'Enrollment Form'!G730=\"\"),\"N\",\"Y\"))","v":"-"},{"$f":"IF('Enrollment Form'!A730=\"\",\"\",IF('Enrollment Form'!B730=\"Subscriber\",\"-\",IF(AND('Enrollment Form'!B730<>\"Subscriber\",'Enrollment Form'!G730='Enrollment Form'!H730),\"N\",\"Y\")))","v":""},0]
[731,{"$f":"IF('Enrollment Form'!$A731<>\"\",\"Y\",\"N\")","v":"N"},{"$f":"IF(AND('Enrollment Form'!$B731=\"\",'Enrollment Form'!$C731<>\"\"),\"N\",IF($B724=\"N\",\"\",\"Y\"))","v":""},{"$f":"IF(OR($B724=\"N\",'Enrollment Form'!G731=\"\"),\"\",IF('Enrollment Form'!$B731<>\"Subscriber\",\"\",IF('Enrollment Form'!$G731='Enrollment Form'!$H731,\"Y\",\"N\")))","v":""},{"$f":"IF($B724=\"N\",\"\",IF(AND(COUNTIFS('Enrollment Form'!$H$11:$H$1000,'Enrollment Form'!$H731,'Enrollment Form'!$B$11:$B$1000,'Enrollment Form'!$B731)>1,'Enrollment Form'!$H731<>\"\"),\"N\",\"Y\"))","v":""},{"$f":"IF($B724=\"N\",\"\",IF(LEN('Enrollment Form'!$Y731)=0,\"\",IF(LEN('Enrollment Form'!$Y731)<>5,\"N\",\"Y\")))","v":""},{"$f":"IF($B724=\"N\",\"\",IF(LEN('Enrollment Form'!$AD731=0),\"\",IF(LEN('Enrollment Form'!$AD731)<>5,\"N\",\"Y\")))","v":""},{"$f":"IF($B724=\"N\",\"\",IF(LEN('Enrollment Form'!$BL731=0),\"\",IF(LEN('Enrollment Form'!$BL731)<>5,\"N\",\"Y\")))","v":""},{"$f":"IF($B724=\"N\",\"\",IF(LEN('Enrollment Form'!$AE731)=0,\"\",IF(LEN('Enrollment Form'!$AE731)<>10,\"N\",\"Y\")))","v":""},{"$f":"IF($B724=\"N\",\"\",IF(LEN('Enrollment Form'!$AF731)=0,\"\",IF(LEN('Enrollment Form'!$AF731)<>10,\"N\",\"Y\")))","v":""},{"$f":"IF('Enrollment Form'!$O731<>\"Graded\",\"-\",IF(AND('Enrollment Form'!$O731=\"Graded\",'Enrollment Form'!$AO731<>\"\"),\"Y\",\"N\"))","v":"-"},{"$f":"IF($B724=\"N\",\"\",IF(OR('Enrollment Form'!$B731<>\"Subscriber\",'Enrollment Form'!$C731=\"ROC\"),\"-\",IF(AND('Enrollment Form'!$B731=\"Subscriber\",'Enrollment Form'!$C731=\"Enroll\",'Enrollment Form'!$AJ731<>\"\"),\"Y\",\"N\")))","v":""},{"$f":"IF($B724=\"N\",\"\",IF(OR('Enrollment Form'!$B731<>\"Subscriber\",'Enrollment Form'!$C731=\"ROC\"),\"-\",IF(AND('Enrollment Form'!$B731=\"Subscriber\",'Enrollment Form'!$C731=\"Enroll\",'Enrollment Form'!$AK731<>\"\"),\"Y\",\"N\")))","v":""},{"$f":"IF($B724=\"N\",\"\",IF(OR('Enrollment Form'!$B731<>\"Subscriber\",'Enrollment Form'!$C731=\"ROC\"),\"-\",IF(AND('Enrollment Form'!$B731=\"Subscriber\",'Enrollment Form'!$C731=\"Enroll\",'Enrollment Form'!$AL731<>\"\"),\"Y\",\"N\")))","v":""},{"$f":"IF($B724=\"N\",\"\",IF(OR('Enrollment Form'!$B731<>\"Subscriber\",'Enrollment Form'!$C731=\"ROC\"),\"-\",IF(AND('Enrollment Form'!$B731=\"Subscriber\",'Enrollment Form'!$C731=\"Enroll\",'Enrollment Form'!$AM731<>\"\"),\"Y\",\"N\")))","v":""},{"$f":"IF($B724=\"N\",\"\",IF(OR('Enrollment Form'!$B731<>\"Subscriber\",'Enrollment Form'!$C731=\"ROC\"),\"-\",IF(AND('Enrollment Form'!$B731=\"Subscriber\",'Enrollment Form'!$C731=\"Enroll\",'Enrollment Form'!$AN731<>\"\"),\"Y\",\"N\")))","v":""},{"$f":"IF($B724=\"N\",\"\",IF(OR('Enrollment Form'!$B731<>\"Subscriber\",'Enrollment Form'!$C731=\"ROC\"),\"-\",IF(AND('Enrollment Form'!$B731=\"Subscriber\",'Enrollment Form'!$C731=\"Enroll\",'Enrollment Form'!$AP731<>\"\"),\"Y\",\"N\")))","v":""},{"$f":"IF($B724=\"N\",\"\",IF($Q724=\"-\",\"-\",IF(AND($Q724=\"Y\",'Enrollment Form'!$AP731=\"No\"),\"-\",IF(AND($Q724=\"Y\",'Enrollment Form'!$AP731=\"Yes\",'Enrollment Form'!$AQ731<>\"\"),\"Y\",\"N\"))))","v":""},{"$f":"IF($B724=\"N\",\"\",IF(OR('Enrollment Form'!$B731<>\"Subscriber\",'Enrollment Form'!$C731=\"ROC\"),\"-\",IF(AND('Enrollment Form'!$B731=\"Subscriber\",'Enrollment Form'!$C731=\"Enroll\",'Enrollment Form'!$CO731<>\"\"),\"Y\",\"N\")))","v":""},{"$f":"IF($B724=\"N\",\"\",IF($S724=\"-\",\"-\",IF(AND($S724=\"Y\",'Enrollment Form'!$CO731=\"No\"),\"-\",IF(AND($S724=\"Y\",'Enrollment Form'!$CO731=\"Yes\",'Enrollment Form'!$CP731<>\"\"),\"Y\",\"N\"))))","v":""},{"$f":"IF(OR('Enrollment Form'!$AV731=\"Yes\",'Enrollment Form'!$AV731=\"\"),\"-\",IF(AND('Enrollment Form'!$AV731=\"No\",ISERROR(FIND(\"HMO\",VLOOKUP('Enrollment Form'!G731,'Enrollment Form'!H$11:J$1000,3,FALSE),1))=FALSE,COUNTA('Enrollment Form'!$AW731:$AZ731)=4),\"Y\",\"N\"))","v":"-"},{"$f":"IF($B724=\"N\",\"\",IF('Enrollment Form'!$B731=\"Subscriber\",\"-\",IF(COUNTA('Enrollment Form'!$BE731,'Enrollment Form'!$BG731)=2,\"Y\",\"N\")))","v":""},{"$f":"IF($B724=\"N\",\"\",IF(OR('Enrollment Form'!$AU731=\"\",'Enrollment Form'!$AU731=\"No\"),\"-\",IF(AND('Enrollment Form'!$AU731=\"Yes\",COUNTA('Enrollment Form'!$CK731)=1),\"Y\",\"N\")))","v":""},{"$f":"IF(OR('Enrollment Form'!$CK731=\"\",'Enrollment Form'!$CK731=\"No\"),\"-\",IF(COUNTA('Enrollment Form'!$CM731:$CN731)=2,\"Y\",\"N\"))","v":"-"},{"$f":"IF($B724=\"N\",\"\",IF(COUNTIF('Enrollment Form'!$CZ731:$DO731,\"Other\")=COUNTA('Enrollment Form'!$DF731,'Enrollment Form'!$DA731,'Enrollment Form'!$DK731,'Enrollment Form'!$DP731),\"Y\",\"N\"))","v":""},{"$f":"IF($B724=\"N\",\"\",IF(OR('Enrollment Form'!B731<>\"Subscriber\",'Enrollment Form'!C731=\"ROC\",COUNTIF('Enrollment Form'!AS731:AT731,\"Yes\")>=1),\"-\",IF(AND('Enrollment Form'!C731=\"Enroll\",COUNTIF('Enrollment Form'!AS731:AT731,\"No\")=2,'Enrollment Form'!AU731=\"\"),\"N\",\"Y\")))","v":""},{"$f":"IF(OR(B724=\"N\",'Enrollment Form'!B731<>\"Subscriber\",'Enrollment Form'!C731=\"ROC\",'Enrollment Form'!O731<>\"Multiple of Salary\"),\"-\",IF(COUNTA('Enrollment Form'!T731:U731)<2,\"N\",\"Y\"))","v":"-"},{"$f":"IF(B724=\"N\",\"\",IF(OR('Enrollment Form'!C731=\"ROC\",'Enrollment Form'!B731<>\"Subscriber\",'Enrollment Form'!O731=\"Waive\",'Enrollment Form'!O731=\"\"),\"-\",IF('Enrollment Form'!P731=\"\",\"N\",\"Y\")))","v":""},{"$f":"IF($B724=\"N\",\"\",IF(AND('Enrollment Form'!$C731=\"ROC\",'Enrollment Form'!$DS731<>\"\"),\"Y\",IF(AND('Enrollment Form'!$C731=\"ROC\",'Enrollment Form'!$DS731=\"\"),\"N\",IF(AND('Enrollment Form'!$C731=\"Enroll\",'Enrollment Form'!$B731=\"Subscriber\",'Enrollment Form'!$CQ731=\"No\",'Enrollment Form'!$DS731=\"\"),\"N\",IF(AND('Enrollment Form'!$C731=\"Enroll\",'Enrollment Form'!$B731=\"Subscriber\",'Enrollment Form'!$CQ731=\"Yes\"),\"-\",\"Y\")))))","v":""},{"$f":"IF($B724=\"N\",\"\",IF(AND('Enrollment Form'!$C731=\"ROC\",'Enrollment Form'!$DT731<>\"\"),\"Y\",IF(AND('Enrollment Form'!$C731=\"ROC\",'Enrollment Form'!$DT731=\"\"),\"N\",IF(AND('Enrollment Form'!$C731=\"Enroll\",'Enrollment Form'!$B731=\"Subscriber\",'Enrollment Form'!$CQ731=\"No\",'Enrollment Form'!$DT731=\"\"),\"N\",IF(AND('Enrollment Form'!$C731=\"Enroll\",'Enrollment Form'!$B731=\"Subscriber\",'Enrollment Form'!$CQ731=\"Yes\"),\"-\",\"Y\")))))","v":""},{"$f":"IF('Enrollment Form'!AH731=\"\",\"\",IF(ISERROR(SEARCH(\".\",'Enrollment Form'!AH731,SEARCH(\"@\",'Enrollment Form'!AH731))),\"N\",\"Y\"))","v":""},{"$f":"IF(OR($B724=\"N\",'Enrollment Form'!$G731=\"\"),\"\",IF('Enrollment Form'!$B731<>\"Subscriber\",\"-\",IF(COUNTIF('Enrollment Form'!$AS731:$AT731,\"Yes\")=2,\"N\",\"Y\")))","v":""},{"$f":"IF(OR('Enrollment Form'!$CC731=\"\",'Enrollment Form'!$CC731=\"No\"),\"-\",IF(AND('Enrollment Form'!$CC731=\"Yes\",'Enrollment Form'!$CD731=\"\"),\"N\",\"Y\"))","v":"-"},{"$f":"IF(OR('Enrollment Form'!$CE731=\"\",'Enrollment Form'!$CE731=\"No\"),\"-\",IF(AND('Enrollment Form'!$CE731=\"Yes\",'Enrollment Form'!$CF731=\"\"),\"N\",\"Y\"))","v":"-"},{"$f":"IF(OR('Enrollment Form'!$CG731=\"\",'Enrollment Form'!$CG731=\"No\"),\"-\",IF(AND('Enrollment Form'!$CG731=\"Yes\",'Enrollment Form'!$CH731=\"\"),\"N\",\"Y\"))","v":"-"},{"$f":"IF(OR('Enrollment Form'!$CG731=\"\",'Enrollment Form'!$CG731=\"No\"),\"-\",IF(AND('Enrollment Form'!$CG731=\"Yes\",'Enrollment Form'!$CI731=\"\"),\"N\",\"Y\"))","v":"-"},{"$f":"IF('Enrollment Form'!B731<>\"Subscriber\",\"-\",IF(AND('Enrollment Form'!B731=\"Subscriber\",'Enrollment Form'!C731=\"Enroll\",'Enrollment Form'!AA731=\"\"),\"N\",\"Y\"))","v":"-"},{"$f":"IF(OR('Enrollment Form'!B731=\"Subscriber\",'Enrollment Form'!B731=\"\"),\"-\",IF('Enrollment Form'!BI731=\"\",\"N\",\"Y\"))","v":"-"},{"$f":"IF('Enrollment Form'!B731<>\"Subscriber\",\"-\",IF(AND('Enrollment Form'!B731=\"Subscriber\",'Enrollment Form'!G731=\"\"),\"N\",\"Y\"))","v":"-"},{"$f":"IF('Enrollment Form'!A731=\"\",\"\",IF('Enrollment Form'!B731=\"Subscriber\",\"-\",IF(AND('Enrollment Form'!B731<>\"Subscriber\",'Enrollment Form'!G731='Enrollment Form'!H731),\"N\",\"Y\")))","v":""},0]
[732,{"$f":"IF('Enrollment Form'!$A732<>\"\",\"Y\",\"N\")","v":"N"},{"$f":"IF(AND('Enrollment Form'!$B732=\"\",'Enrollment Form'!$C732<>\"\"),\"N\",IF($B725=\"N\",\"\",\"Y\"))","v":""},{"$f":"IF(OR($B725=\"N\",'Enrollment Form'!G732=\"\"),\"\",IF('Enrollment Form'!$B732<>\"Subscriber\",\"\",IF('Enrollment Form'!$G732='Enrollment Form'!$H732,\"Y\",\"N\")))","v":""},{"$f":"IF($B725=\"N\",\"\",IF(AND(COUNTIFS('Enrollment Form'!$H$11:$H$1000,'Enrollment Form'!$H732,'Enrollment Form'!$B$11:$B$1000,'Enrollment Form'!$B732)>1,'Enrollment Form'!$H732<>\"\"),\"N\",\"Y\"))","v":""},{"$f":"IF($B725=\"N\",\"\",IF(LEN('Enrollment Form'!$Y732)=0,\"\",IF(LEN('Enrollment Form'!$Y732)<>5,\"N\",\"Y\")))","v":""},{"$f":"IF($B725=\"N\",\"\",IF(LEN('Enrollment Form'!$AD732=0),\"\",IF(LEN('Enrollment Form'!$AD732)<>5,\"N\",\"Y\")))","v":""},{"$f":"IF($B725=\"N\",\"\",IF(LEN('Enrollment Form'!$BL732=0),\"\",IF(LEN('Enrollment Form'!$BL732)<>5,\"N\",\"Y\")))","v":""},{"$f":"IF($B725=\"N\",\"\",IF(LEN('Enrollment Form'!$AE732)=0,\"\",IF(LEN('Enrollment Form'!$AE732)<>10,\"N\",\"Y\")))","v":""},{"$f":"IF($B725=\"N\",\"\",IF(LEN('Enrollment Form'!$AF732)=0,\"\",IF(LEN('Enrollment Form'!$AF732)<>10,\"N\",\"Y\")))","v":""},{"$f":"IF('Enrollment Form'!$O732<>\"Graded\",\"-\",IF(AND('Enrollment Form'!$O732=\"Graded\",'Enrollment Form'!$AO732<>\"\"),\"Y\",\"N\"))","v":"-"},{"$f":"IF($B725=\"N\",\"\",IF(OR('Enrollment Form'!$B732<>\"Subscriber\",'Enrollment Form'!$C732=\"ROC\"),\"-\",IF(AND('Enrollment Form'!$B732=\"Subscriber\",'Enrollment Form'!$C732=\"Enroll\",'Enrollment Form'!$AJ732<>\"\"),\"Y\",\"N\")))","v":""},{"$f":"IF($B725=\"N\",\"\",IF(OR('Enrollment Form'!$B732<>\"Subscriber\",'Enrollment Form'!$C732=\"ROC\"),\"-\",IF(AND('Enrollment Form'!$B732=\"Subscriber\",'Enrollment Form'!$C732=\"Enroll\",'Enrollment Form'!$AK732<>\"\"),\"Y\",\"N\")))","v":""},{"$f":"IF($B725=\"N\",\"\",IF(OR('Enrollment Form'!$B732<>\"Subscriber\",'Enrollment Form'!$C732=\"ROC\"),\"-\",IF(AND('Enrollment Form'!$B732=\"Subscriber\",'Enrollment Form'!$C732=\"Enroll\",'Enrollment Form'!$AL732<>\"\"),\"Y\",\"N\")))","v":""},{"$f":"IF($B725=\"N\",\"\",IF(OR('Enrollment Form'!$B732<>\"Subscriber\",'Enrollment Form'!$C732=\"ROC\"),\"-\",IF(AND('Enrollment Form'!$B732=\"Subscriber\",'Enrollment Form'!$C732=\"Enroll\",'Enrollment Form'!$AM732<>\"\"),\"Y\",\"N\")))","v":""},{"$f":"IF($B725=\"N\",\"\",IF(OR('Enrollment Form'!$B732<>\"Subscriber\",'Enrollment Form'!$C732=\"ROC\"),\"-\",IF(AND('Enrollment Form'!$B732=\"Subscriber\",'Enrollment Form'!$C732=\"Enroll\",'Enrollment Form'!$AN732<>\"\"),\"Y\",\"N\")))","v":""},{"$f":"IF($B725=\"N\",\"\",IF(OR('Enrollment Form'!$B732<>\"Subscriber\",'Enrollment Form'!$C732=\"ROC\"),\"-\",IF(AND('Enrollment Form'!$B732=\"Subscriber\",'Enrollment Form'!$C732=\"Enroll\",'Enrollment Form'!$AP732<>\"\"),\"Y\",\"N\")))","v":""},{"$f":"IF($B725=\"N\",\"\",IF($Q725=\"-\",\"-\",IF(AND($Q725=\"Y\",'Enrollment Form'!$AP732=\"No\"),\"-\",IF(AND($Q725=\"Y\",'Enrollment Form'!$AP732=\"Yes\",'Enrollment Form'!$AQ732<>\"\"),\"Y\",\"N\"))))","v":""},{"$f":"IF($B725=\"N\",\"\",IF(OR('Enrollment Form'!$B732<>\"Subscriber\",'Enrollment Form'!$C732=\"ROC\"),\"-\",IF(AND('Enrollment Form'!$B732=\"Subscriber\",'Enrollment Form'!$C732=\"Enroll\",'Enrollment Form'!$CO732<>\"\"),\"Y\",\"N\")))","v":""},{"$f":"IF($B725=\"N\",\"\",IF($S725=\"-\",\"-\",IF(AND($S725=\"Y\",'Enrollment Form'!$CO732=\"No\"),\"-\",IF(AND($S725=\"Y\",'Enrollment Form'!$CO732=\"Yes\",'Enrollment Form'!$CP732<>\"\"),\"Y\",\"N\"))))","v":""},{"$f":"IF(OR('Enrollment Form'!$AV732=\"Yes\",'Enrollment Form'!$AV732=\"\"),\"-\",IF(AND('Enrollment Form'!$AV732=\"No\",ISERROR(FIND(\"HMO\",VLOOKUP('Enrollment Form'!G732,'Enrollment Form'!H$11:J$1000,3,FALSE),1))=FALSE,COUNTA('Enrollment Form'!$AW732:$AZ732)=4),\"Y\",\"N\"))","v":"-"},{"$f":"IF($B725=\"N\",\"\",IF('Enrollment Form'!$B732=\"Subscriber\",\"-\",IF(COUNTA('Enrollment Form'!$BE732,'Enrollment Form'!$BG732)=2,\"Y\",\"N\")))","v":""},{"$f":"IF($B725=\"N\",\"\",IF(OR('Enrollment Form'!$AU732=\"\",'Enrollment Form'!$AU732=\"No\"),\"-\",IF(AND('Enrollment Form'!$AU732=\"Yes\",COUNTA('Enrollment Form'!$CK732)=1),\"Y\",\"N\")))","v":""},{"$f":"IF(OR('Enrollment Form'!$CK732=\"\",'Enrollment Form'!$CK732=\"No\"),\"-\",IF(COUNTA('Enrollment Form'!$CM732:$CN732)=2,\"Y\",\"N\"))","v":"-"},{"$f":"IF($B725=\"N\",\"\",IF(COUNTIF('Enrollment Form'!$CZ732:$DO732,\"Other\")=COUNTA('Enrollment Form'!$DF732,'Enrollment Form'!$DA732,'Enrollment Form'!$DK732,'Enrollment Form'!$DP732),\"Y\",\"N\"))","v":""},{"$f":"IF($B725=\"N\",\"\",IF(OR('Enrollment Form'!B732<>\"Subscriber\",'Enrollment Form'!C732=\"ROC\",COUNTIF('Enrollment Form'!AS732:AT732,\"Yes\")>=1),\"-\",IF(AND('Enrollment Form'!C732=\"Enroll\",COUNTIF('Enrollment Form'!AS732:AT732,\"No\")=2,'Enrollment Form'!AU732=\"\"),\"N\",\"Y\")))","v":""},{"$f":"IF(OR(B725=\"N\",'Enrollment Form'!B732<>\"Subscriber\",'Enrollment Form'!C732=\"ROC\",'Enrollment Form'!O732<>\"Multiple of Salary\"),\"-\",IF(COUNTA('Enrollment Form'!T732:U732)<2,\"N\",\"Y\"))","v":"-"},{"$f":"IF(B725=\"N\",\"\",IF(OR('Enrollment Form'!C732=\"ROC\",'Enrollment Form'!B732<>\"Subscriber\",'Enrollment Form'!O732=\"Waive\",'Enrollment Form'!O732=\"\"),\"-\",IF('Enrollment Form'!P732=\"\",\"N\",\"Y\")))","v":""},{"$f":"IF($B725=\"N\",\"\",IF(AND('Enrollment Form'!$C732=\"ROC\",'Enrollment Form'!$DS732<>\"\"),\"Y\",IF(AND('Enrollment Form'!$C732=\"ROC\",'Enrollment Form'!$DS732=\"\"),\"N\",IF(AND('Enrollment Form'!$C732=\"Enroll\",'Enrollment Form'!$B732=\"Subscriber\",'Enrollment Form'!$CQ732=\"No\",'Enrollment Form'!$DS732=\"\"),\"N\",IF(AND('Enrollment Form'!$C732=\"Enroll\",'Enrollment Form'!$B732=\"Subscriber\",'Enrollment Form'!$CQ732=\"Yes\"),\"-\",\"Y\")))))","v":""},{"$f":"IF($B725=\"N\",\"\",IF(AND('Enrollment Form'!$C732=\"ROC\",'Enrollment Form'!$DT732<>\"\"),\"Y\",IF(AND('Enrollment Form'!$C732=\"ROC\",'Enrollment Form'!$DT732=\"\"),\"N\",IF(AND('Enrollment Form'!$C732=\"Enroll\",'Enrollment Form'!$B732=\"Subscriber\",'Enrollment Form'!$CQ732=\"No\",'Enrollment Form'!$DT732=\"\"),\"N\",IF(AND('Enrollment Form'!$C732=\"Enroll\",'Enrollment Form'!$B732=\"Subscriber\",'Enrollment Form'!$CQ732=\"Yes\"),\"-\",\"Y\")))))","v":""},{"$f":"IF('Enrollment Form'!AH732=\"\",\"\",IF(ISERROR(SEARCH(\".\",'Enrollment Form'!AH732,SEARCH(\"@\",'Enrollment Form'!AH732))),\"N\",\"Y\"))","v":""},{"$f":"IF(OR($B725=\"N\",'Enrollment Form'!$G732=\"\"),\"\",IF('Enrollment Form'!$B732<>\"Subscriber\",\"-\",IF(COUNTIF('Enrollment Form'!$AS732:$AT732,\"Yes\")=2,\"N\",\"Y\")))","v":""},{"$f":"IF(OR('Enrollment Form'!$CC732=\"\",'Enrollment Form'!$CC732=\"No\"),\"-\",IF(AND('Enrollment Form'!$CC732=\"Yes\",'Enrollment Form'!$CD732=\"\"),\"N\",\"Y\"))","v":"-"},{"$f":"IF(OR('Enrollment Form'!$CE732=\"\",'Enrollment Form'!$CE732=\"No\"),\"-\",IF(AND('Enrollment Form'!$CE732=\"Yes\",'Enrollment Form'!$CF732=\"\"),\"N\",\"Y\"))","v":"-"},{"$f":"IF(OR('Enrollment Form'!$CG732=\"\",'Enrollment Form'!$CG732=\"No\"),\"-\",IF(AND('Enrollment Form'!$CG732=\"Yes\",'Enrollment Form'!$CH732=\"\"),\"N\",\"Y\"))","v":"-"},{"$f":"IF(OR('Enrollment Form'!$CG732=\"\",'Enrollment Form'!$CG732=\"No\"),\"-\",IF(AND('Enrollment Form'!$CG732=\"Yes\",'Enrollment Form'!$CI732=\"\"),\"N\",\"Y\"))","v":"-"},{"$f":"IF('Enrollment Form'!B732<>\"Subscriber\",\"-\",IF(AND('Enrollment Form'!B732=\"Subscriber\",'Enrollment Form'!C732=\"Enroll\",'Enrollment Form'!AA732=\"\"),\"N\",\"Y\"))","v":"-"},{"$f":"IF(OR('Enrollment Form'!B732=\"Subscriber\",'Enrollment Form'!B732=\"\"),\"-\",IF('Enrollment Form'!BI732=\"\",\"N\",\"Y\"))","v":"-"},{"$f":"IF('Enrollment Form'!B732<>\"Subscriber\",\"-\",IF(AND('Enrollment Form'!B732=\"Subscriber\",'Enrollment Form'!G732=\"\"),\"N\",\"Y\"))","v":"-"},{"$f":"IF('Enrollment Form'!A732=\"\",\"\",IF('Enrollment Form'!B732=\"Subscriber\",\"-\",IF(AND('Enrollment Form'!B732<>\"Subscriber\",'Enrollment Form'!G732='Enrollment Form'!H732),\"N\",\"Y\")))","v":""},0]
[733,{"$f":"IF('Enrollment Form'!$A733<>\"\",\"Y\",\"N\")","v":"N"},{"$f":"IF(AND('Enrollment Form'!$B733=\"\",'Enrollment Form'!$C733<>\"\"),\"N\",IF($B726=\"N\",\"\",\"Y\"))","v":""},{"$f":"IF(OR($B726=\"N\",'Enrollment Form'!G733=\"\"),\"\",IF('Enrollment Form'!$B733<>\"Subscriber\",\"\",IF('Enrollment Form'!$G733='Enrollment Form'!$H733,\"Y\",\"N\")))","v":""},{"$f":"IF($B726=\"N\",\"\",IF(AND(COUNTIFS('Enrollment Form'!$H$11:$H$1000,'Enrollment Form'!$H733,'Enrollment Form'!$B$11:$B$1000,'Enrollment Form'!$B733)>1,'Enrollment Form'!$H733<>\"\"),\"N\",\"Y\"))","v":""},{"$f":"IF($B726=\"N\",\"\",IF(LEN('Enrollment Form'!$Y733)=0,\"\",IF(LEN('Enrollment Form'!$Y733)<>5,\"N\",\"Y\")))","v":""},{"$f":"IF($B726=\"N\",\"\",IF(LEN('Enrollment Form'!$AD733=0),\"\",IF(LEN('Enrollment Form'!$AD733)<>5,\"N\",\"Y\")))","v":""},{"$f":"IF($B726=\"N\",\"\",IF(LEN('Enrollment Form'!$BL733=0),\"\",IF(LEN('Enrollment Form'!$BL733)<>5,\"N\",\"Y\")))","v":""},{"$f":"IF($B726=\"N\",\"\",IF(LEN('Enrollment Form'!$AE733)=0,\"\",IF(LEN('Enrollment Form'!$AE733)<>10,\"N\",\"Y\")))","v":""},{"$f":"IF($B726=\"N\",\"\",IF(LEN('Enrollment Form'!$AF733)=0,\"\",IF(LEN('Enrollment Form'!$AF733)<>10,\"N\",\"Y\")))","v":""},{"$f":"IF('Enrollment Form'!$O733<>\"Graded\",\"-\",IF(AND('Enrollment Form'!$O733=\"Graded\",'Enrollment Form'!$AO733<>\"\"),\"Y\",\"N\"))","v":"-"},{"$f":"IF($B726=\"N\",\"\",IF(OR('Enrollment Form'!$B733<>\"Subscriber\",'Enrollment Form'!$C733=\"ROC\"),\"-\",IF(AND('Enrollment Form'!$B733=\"Subscriber\",'Enrollment Form'!$C733=\"Enroll\",'Enrollment Form'!$AJ733<>\"\"),\"Y\",\"N\")))","v":""},{"$f":"IF($B726=\"N\",\"\",IF(OR('Enrollment Form'!$B733<>\"Subscriber\",'Enrollment Form'!$C733=\"ROC\"),\"-\",IF(AND('Enrollment Form'!$B733=\"Subscriber\",'Enrollment Form'!$C733=\"Enroll\",'Enrollment Form'!$AK733<>\"\"),\"Y\",\"N\")))","v":""},{"$f":"IF($B726=\"N\",\"\",IF(OR('Enrollment Form'!$B733<>\"Subscriber\",'Enrollment Form'!$C733=\"ROC\"),\"-\",IF(AND('Enrollment Form'!$B733=\"Subscriber\",'Enrollment Form'!$C733=\"Enroll\",'Enrollment Form'!$AL733<>\"\"),\"Y\",\"N\")))","v":""},{"$f":"IF($B726=\"N\",\"\",IF(OR('Enrollment Form'!$B733<>\"Subscriber\",'Enrollment Form'!$C733=\"ROC\"),\"-\",IF(AND('Enrollment Form'!$B733=\"Subscriber\",'Enrollment Form'!$C733=\"Enroll\",'Enrollment Form'!$AM733<>\"\"),\"Y\",\"N\")))","v":""},{"$f":"IF($B726=\"N\",\"\",IF(OR('Enrollment Form'!$B733<>\"Subscriber\",'Enrollment Form'!$C733=\"ROC\"),\"-\",IF(AND('Enrollment Form'!$B733=\"Subscriber\",'Enrollment Form'!$C733=\"Enroll\",'Enrollment Form'!$AN733<>\"\"),\"Y\",\"N\")))","v":""},{"$f":"IF($B726=\"N\",\"\",IF(OR('Enrollment Form'!$B733<>\"Subscriber\",'Enrollment Form'!$C733=\"ROC\"),\"-\",IF(AND('Enrollment Form'!$B733=\"Subscriber\",'Enrollment Form'!$C733=\"Enroll\",'Enrollment Form'!$AP733<>\"\"),\"Y\",\"N\")))","v":""},{"$f":"IF($B726=\"N\",\"\",IF($Q726=\"-\",\"-\",IF(AND($Q726=\"Y\",'Enrollment Form'!$AP733=\"No\"),\"-\",IF(AND($Q726=\"Y\",'Enrollment Form'!$AP733=\"Yes\",'Enrollment Form'!$AQ733<>\"\"),\"Y\",\"N\"))))","v":""},{"$f":"IF($B726=\"N\",\"\",IF(OR('Enrollment Form'!$B733<>\"Subscriber\",'Enrollment Form'!$C733=\"ROC\"),\"-\",IF(AND('Enrollment Form'!$B733=\"Subscriber\",'Enrollment Form'!$C733=\"Enroll\",'Enrollment Form'!$CO733<>\"\"),\"Y\",\"N\")))","v":""},{"$f":"IF($B726=\"N\",\"\",IF($S726=\"-\",\"-\",IF(AND($S726=\"Y\",'Enrollment Form'!$CO733=\"No\"),\"-\",IF(AND($S726=\"Y\",'Enrollment Form'!$CO733=\"Yes\",'Enrollment Form'!$CP733<>\"\"),\"Y\",\"N\"))))","v":""},{"$f":"IF(OR('Enrollment Form'!$AV733=\"Yes\",'Enrollment Form'!$AV733=\"\"),\"-\",IF(AND('Enrollment Form'!$AV733=\"No\",ISERROR(FIND(\"HMO\",VLOOKUP('Enrollment Form'!G733,'Enrollment Form'!H$11:J$1000,3,FALSE),1))=FALSE,COUNTA('Enrollment Form'!$AW733:$AZ733)=4),\"Y\",\"N\"))","v":"-"},{"$f":"IF($B726=\"N\",\"\",IF('Enrollment Form'!$B733=\"Subscriber\",\"-\",IF(COUNTA('Enrollment Form'!$BE733,'Enrollment Form'!$BG733)=2,\"Y\",\"N\")))","v":""},{"$f":"IF($B726=\"N\",\"\",IF(OR('Enrollment Form'!$AU733=\"\",'Enrollment Form'!$AU733=\"No\"),\"-\",IF(AND('Enrollment Form'!$AU733=\"Yes\",COUNTA('Enrollment Form'!$CK733)=1),\"Y\",\"N\")))","v":""},{"$f":"IF(OR('Enrollment Form'!$CK733=\"\",'Enrollment Form'!$CK733=\"No\"),\"-\",IF(COUNTA('Enrollment Form'!$CM733:$CN733)=2,\"Y\",\"N\"))","v":"-"},{"$f":"IF($B726=\"N\",\"\",IF(COUNTIF('Enrollment Form'!$CZ733:$DO733,\"Other\")=COUNTA('Enrollment Form'!$DF733,'Enrollment Form'!$DA733,'Enrollment Form'!$DK733,'Enrollment Form'!$DP733),\"Y\",\"N\"))","v":""},{"$f":"IF($B726=\"N\",\"\",IF(OR('Enrollment Form'!B733<>\"Subscriber\",'Enrollment Form'!C733=\"ROC\",COUNTIF('Enrollment Form'!AS733:AT733,\"Yes\")>=1),\"-\",IF(AND('Enrollment Form'!C733=\"Enroll\",COUNTIF('Enrollment Form'!AS733:AT733,\"No\")=2,'Enrollment Form'!AU733=\"\"),\"N\",\"Y\")))","v":""},{"$f":"IF(OR(B726=\"N\",'Enrollment Form'!B733<>\"Subscriber\",'Enrollment Form'!C733=\"ROC\",'Enrollment Form'!O733<>\"Multiple of Salary\"),\"-\",IF(COUNTA('Enrollment Form'!T733:U733)<2,\"N\",\"Y\"))","v":"-"},{"$f":"IF(B726=\"N\",\"\",IF(OR('Enrollment Form'!C733=\"ROC\",'Enrollment Form'!B733<>\"Subscriber\",'Enrollment Form'!O733=\"Waive\",'Enrollment Form'!O733=\"\"),\"-\",IF('Enrollment Form'!P733=\"\",\"N\",\"Y\")))","v":""},{"$f":"IF($B726=\"N\",\"\",IF(AND('Enrollment Form'!$C733=\"ROC\",'Enrollment Form'!$DS733<>\"\"),\"Y\",IF(AND('Enrollment Form'!$C733=\"ROC\",'Enrollment Form'!$DS733=\"\"),\"N\",IF(AND('Enrollment Form'!$C733=\"Enroll\",'Enrollment Form'!$B733=\"Subscriber\",'Enrollment Form'!$CQ733=\"No\",'Enrollment Form'!$DS733=\"\"),\"N\",IF(AND('Enrollment Form'!$C733=\"Enroll\",'Enrollment Form'!$B733=\"Subscriber\",'Enrollment Form'!$CQ733=\"Yes\"),\"-\",\"Y\")))))","v":""},{"$f":"IF($B726=\"N\",\"\",IF(AND('Enrollment Form'!$C733=\"ROC\",'Enrollment Form'!$DT733<>\"\"),\"Y\",IF(AND('Enrollment Form'!$C733=\"ROC\",'Enrollment Form'!$DT733=\"\"),\"N\",IF(AND('Enrollment Form'!$C733=\"Enroll\",'Enrollment Form'!$B733=\"Subscriber\",'Enrollment Form'!$CQ733=\"No\",'Enrollment Form'!$DT733=\"\"),\"N\",IF(AND('Enrollment Form'!$C733=\"Enroll\",'Enrollment Form'!$B733=\"Subscriber\",'Enrollment Form'!$CQ733=\"Yes\"),\"-\",\"Y\")))))","v":""},{"$f":"IF('Enrollment Form'!AH733=\"\",\"\",IF(ISERROR(SEARCH(\".\",'Enrollment Form'!AH733,SEARCH(\"@\",'Enrollment Form'!AH733))),\"N\",\"Y\"))","v":""},{"$f":"IF(OR($B726=\"N\",'Enrollment Form'!$G733=\"\"),\"\",IF('Enrollment Form'!$B733<>\"Subscriber\",\"-\",IF(COUNTIF('Enrollment Form'!$AS733:$AT733,\"Yes\")=2,\"N\",\"Y\")))","v":""},{"$f":"IF(OR('Enrollment Form'!$CC733=\"\",'Enrollment Form'!$CC733=\"No\"),\"-\",IF(AND('Enrollment Form'!$CC733=\"Yes\",'Enrollment Form'!$CD733=\"\"),\"N\",\"Y\"))","v":"-"},{"$f":"IF(OR('Enrollment Form'!$CE733=\"\",'Enrollment Form'!$CE733=\"No\"),\"-\",IF(AND('Enrollment Form'!$CE733=\"Yes\",'Enrollment Form'!$CF733=\"\"),\"N\",\"Y\"))","v":"-"},{"$f":"IF(OR('Enrollment Form'!$CG733=\"\",'Enrollment Form'!$CG733=\"No\"),\"-\",IF(AND('Enrollment Form'!$CG733=\"Yes\",'Enrollment Form'!$CH733=\"\"),\"N\",\"Y\"))","v":"-"},{"$f":"IF(OR('Enrollment Form'!$CG733=\"\",'Enrollment Form'!$CG733=\"No\"),\"-\",IF(AND('Enrollment Form'!$CG733=\"Yes\",'Enrollment Form'!$CI733=\"\"),\"N\",\"Y\"))","v":"-"},{"$f":"IF('Enrollment Form'!B733<>\"Subscriber\",\"-\",IF(AND('Enrollment Form'!B733=\"Subscriber\",'Enrollment Form'!C733=\"Enroll\",'Enrollment Form'!AA733=\"\"),\"N\",\"Y\"))","v":"-"},{"$f":"IF(OR('Enrollment Form'!B733=\"Subscriber\",'Enrollment Form'!B733=\"\"),\"-\",IF('Enrollment Form'!BI733=\"\",\"N\",\"Y\"))","v":"-"},{"$f":"IF('Enrollment Form'!B733<>\"Subscriber\",\"-\",IF(AND('Enrollment Form'!B733=\"Subscriber\",'Enrollment Form'!G733=\"\"),\"N\",\"Y\"))","v":"-"},{"$f":"IF('Enrollment Form'!A733=\"\",\"\",IF('Enrollment Form'!B733=\"Subscriber\",\"-\",IF(AND('Enrollment Form'!B733<>\"Subscriber\",'Enrollment Form'!G733='Enrollment Form'!H733),\"N\",\"Y\")))","v":""},0]
[734,{"$f":"IF('Enrollment Form'!$A734<>\"\",\"Y\",\"N\")","v":"N"},{"$f":"IF(AND('Enrollment Form'!$B734=\"\",'Enrollment Form'!$C734<>\"\"),\"N\",IF($B727=\"N\",\"\",\"Y\"))","v":""},{"$f":"IF(OR($B727=\"N\",'Enrollment Form'!G734=\"\"),\"\",IF('Enrollment Form'!$B734<>\"Subscriber\",\"\",IF('Enrollment Form'!$G734='Enrollment Form'!$H734,\"Y\",\"N\")))","v":""},{"$f":"IF($B727=\"N\",\"\",IF(AND(COUNTIFS('Enrollment Form'!$H$11:$H$1000,'Enrollment Form'!$H734,'Enrollment Form'!$B$11:$B$1000,'Enrollment Form'!$B734)>1,'Enrollment Form'!$H734<>\"\"),\"N\",\"Y\"))","v":""},{"$f":"IF($B727=\"N\",\"\",IF(LEN('Enrollment Form'!$Y734)=0,\"\",IF(LEN('Enrollment Form'!$Y734)<>5,\"N\",\"Y\")))","v":""},{"$f":"IF($B727=\"N\",\"\",IF(LEN('Enrollment Form'!$AD734=0),\"\",IF(LEN('Enrollment Form'!$AD734)<>5,\"N\",\"Y\")))","v":""},{"$f":"IF($B727=\"N\",\"\",IF(LEN('Enrollment Form'!$BL734=0),\"\",IF(LEN('Enrollment Form'!$BL734)<>5,\"N\",\"Y\")))","v":""},{"$f":"IF($B727=\"N\",\"\",IF(LEN('Enrollment Form'!$AE734)=0,\"\",IF(LEN('Enrollment Form'!$AE734)<>10,\"N\",\"Y\")))","v":""},{"$f":"IF($B727=\"N\",\"\",IF(LEN('Enrollment Form'!$AF734)=0,\"\",IF(LEN('Enrollment Form'!$AF734)<>10,\"N\",\"Y\")))","v":""},{"$f":"IF('Enrollment Form'!$O734<>\"Graded\",\"-\",IF(AND('Enrollment Form'!$O734=\"Graded\",'Enrollment Form'!$AO734<>\"\"),\"Y\",\"N\"))","v":"-"},{"$f":"IF($B727=\"N\",\"\",IF(OR('Enrollment Form'!$B734<>\"Subscriber\",'Enrollment Form'!$C734=\"ROC\"),\"-\",IF(AND('Enrollment Form'!$B734=\"Subscriber\",'Enrollment Form'!$C734=\"Enroll\",'Enrollment Form'!$AJ734<>\"\"),\"Y\",\"N\")))","v":""},{"$f":"IF($B727=\"N\",\"\",IF(OR('Enrollment Form'!$B734<>\"Subscriber\",'Enrollment Form'!$C734=\"ROC\"),\"-\",IF(AND('Enrollment Form'!$B734=\"Subscriber\",'Enrollment Form'!$C734=\"Enroll\",'Enrollment Form'!$AK734<>\"\"),\"Y\",\"N\")))","v":""},{"$f":"IF($B727=\"N\",\"\",IF(OR('Enrollment Form'!$B734<>\"Subscriber\",'Enrollment Form'!$C734=\"ROC\"),\"-\",IF(AND('Enrollment Form'!$B734=\"Subscriber\",'Enrollment Form'!$C734=\"Enroll\",'Enrollment Form'!$AL734<>\"\"),\"Y\",\"N\")))","v":""},{"$f":"IF($B727=\"N\",\"\",IF(OR('Enrollment Form'!$B734<>\"Subscriber\",'Enrollment Form'!$C734=\"ROC\"),\"-\",IF(AND('Enrollment Form'!$B734=\"Subscriber\",'Enrollment Form'!$C734=\"Enroll\",'Enrollment Form'!$AM734<>\"\"),\"Y\",\"N\")))","v":""},{"$f":"IF($B727=\"N\",\"\",IF(OR('Enrollment Form'!$B734<>\"Subscriber\",'Enrollment Form'!$C734=\"ROC\"),\"-\",IF(AND('Enrollment Form'!$B734=\"Subscriber\",'Enrollment Form'!$C734=\"Enroll\",'Enrollment Form'!$AN734<>\"\"),\"Y\",\"N\")))","v":""},{"$f":"IF($B727=\"N\",\"\",IF(OR('Enrollment Form'!$B734<>\"Subscriber\",'Enrollment Form'!$C734=\"ROC\"),\"-\",IF(AND('Enrollment Form'!$B734=\"Subscriber\",'Enrollment Form'!$C734=\"Enroll\",'Enrollment Form'!$AP734<>\"\"),\"Y\",\"N\")))","v":""},{"$f":"IF($B727=\"N\",\"\",IF($Q727=\"-\",\"-\",IF(AND($Q727=\"Y\",'Enrollment Form'!$AP734=\"No\"),\"-\",IF(AND($Q727=\"Y\",'Enrollment Form'!$AP734=\"Yes\",'Enrollment Form'!$AQ734<>\"\"),\"Y\",\"N\"))))","v":""},{"$f":"IF($B727=\"N\",\"\",IF(OR('Enrollment Form'!$B734<>\"Subscriber\",'Enrollment Form'!$C734=\"ROC\"),\"-\",IF(AND('Enrollment Form'!$B734=\"Subscriber\",'Enrollment Form'!$C734=\"Enroll\",'Enrollment Form'!$CO734<>\"\"),\"Y\",\"N\")))","v":""},{"$f":"IF($B727=\"N\",\"\",IF($S727=\"-\",\"-\",IF(AND($S727=\"Y\",'Enrollment Form'!$CO734=\"No\"),\"-\",IF(AND($S727=\"Y\",'Enrollment Form'!$CO734=\"Yes\",'Enrollment Form'!$CP734<>\"\"),\"Y\",\"N\"))))","v":""},{"$f":"IF(OR('Enrollment Form'!$AV734=\"Yes\",'Enrollment Form'!$AV734=\"\"),\"-\",IF(AND('Enrollment Form'!$AV734=\"No\",ISERROR(FIND(\"HMO\",VLOOKUP('Enrollment Form'!G734,'Enrollment Form'!H$11:J$1000,3,FALSE),1))=FALSE,COUNTA('Enrollment Form'!$AW734:$AZ734)=4),\"Y\",\"N\"))","v":"-"},{"$f":"IF($B727=\"N\",\"\",IF('Enrollment Form'!$B734=\"Subscriber\",\"-\",IF(COUNTA('Enrollment Form'!$BE734,'Enrollment Form'!$BG734)=2,\"Y\",\"N\")))","v":""},{"$f":"IF($B727=\"N\",\"\",IF(OR('Enrollment Form'!$AU734=\"\",'Enrollment Form'!$AU734=\"No\"),\"-\",IF(AND('Enrollment Form'!$AU734=\"Yes\",COUNTA('Enrollment Form'!$CK734)=1),\"Y\",\"N\")))","v":""},{"$f":"IF(OR('Enrollment Form'!$CK734=\"\",'Enrollment Form'!$CK734=\"No\"),\"-\",IF(COUNTA('Enrollment Form'!$CM734:$CN734)=2,\"Y\",\"N\"))","v":"-"},{"$f":"IF($B727=\"N\",\"\",IF(COUNTIF('Enrollment Form'!$CZ734:$DO734,\"Other\")=COUNTA('Enrollment Form'!$DF734,'Enrollment Form'!$DA734,'Enrollment Form'!$DK734,'Enrollment Form'!$DP734),\"Y\",\"N\"))","v":""},{"$f":"IF($B727=\"N\",\"\",IF(OR('Enrollment Form'!B734<>\"Subscriber\",'Enrollment Form'!C734=\"ROC\",COUNTIF('Enrollment Form'!AS734:AT734,\"Yes\")>=1),\"-\",IF(AND('Enrollment Form'!C734=\"Enroll\",COUNTIF('Enrollment Form'!AS734:AT734,\"No\")=2,'Enrollment Form'!AU734=\"\"),\"N\",\"Y\")))","v":""},{"$f":"IF(OR(B727=\"N\",'Enrollment Form'!B734<>\"Subscriber\",'Enrollment Form'!C734=\"ROC\",'Enrollment Form'!O734<>\"Multiple of Salary\"),\"-\",IF(COUNTA('Enrollment Form'!T734:U734)<2,\"N\",\"Y\"))","v":"-"},{"$f":"IF(B727=\"N\",\"\",IF(OR('Enrollment Form'!C734=\"ROC\",'Enrollment Form'!B734<>\"Subscriber\",'Enrollment Form'!O734=\"Waive\",'Enrollment Form'!O734=\"\"),\"-\",IF('Enrollment Form'!P734=\"\",\"N\",\"Y\")))","v":""},{"$f":"IF($B727=\"N\",\"\",IF(AND('Enrollment Form'!$C734=\"ROC\",'Enrollment Form'!$DS734<>\"\"),\"Y\",IF(AND('Enrollment Form'!$C734=\"ROC\",'Enrollment Form'!$DS734=\"\"),\"N\",IF(AND('Enrollment Form'!$C734=\"Enroll\",'Enrollment Form'!$B734=\"Subscriber\",'Enrollment Form'!$CQ734=\"No\",'Enrollment Form'!$DS734=\"\"),\"N\",IF(AND('Enrollment Form'!$C734=\"Enroll\",'Enrollment Form'!$B734=\"Subscriber\",'Enrollment Form'!$CQ734=\"Yes\"),\"-\",\"Y\")))))","v":""},{"$f":"IF($B727=\"N\",\"\",IF(AND('Enrollment Form'!$C734=\"ROC\",'Enrollment Form'!$DT734<>\"\"),\"Y\",IF(AND('Enrollment Form'!$C734=\"ROC\",'Enrollment Form'!$DT734=\"\"),\"N\",IF(AND('Enrollment Form'!$C734=\"Enroll\",'Enrollment Form'!$B734=\"Subscriber\",'Enrollment Form'!$CQ734=\"No\",'Enrollment Form'!$DT734=\"\"),\"N\",IF(AND('Enrollment Form'!$C734=\"Enroll\",'Enrollment Form'!$B734=\"Subscriber\",'Enrollment Form'!$CQ734=\"Yes\"),\"-\",\"Y\")))))","v":""},{"$f":"IF('Enrollment Form'!AH734=\"\",\"\",IF(ISERROR(SEARCH(\".\",'Enrollment Form'!AH734,SEARCH(\"@\",'Enrollment Form'!AH734))),\"N\",\"Y\"))","v":""},{"$f":"IF(OR($B727=\"N\",'Enrollment Form'!$G734=\"\"),\"\",IF('Enrollment Form'!$B734<>\"Subscriber\",\"-\",IF(COUNTIF('Enrollment Form'!$AS734:$AT734,\"Yes\")=2,\"N\",\"Y\")))","v":""},{"$f":"IF(OR('Enrollment Form'!$CC734=\"\",'Enrollment Form'!$CC734=\"No\"),\"-\",IF(AND('Enrollment Form'!$CC734=\"Yes\",'Enrollment Form'!$CD734=\"\"),\"N\",\"Y\"))","v":"-"},{"$f":"IF(OR('Enrollment Form'!$CE734=\"\",'Enrollment Form'!$CE734=\"No\"),\"-\",IF(AND('Enrollment Form'!$CE734=\"Yes\",'Enrollment Form'!$CF734=\"\"),\"N\",\"Y\"))","v":"-"},{"$f":"IF(OR('Enrollment Form'!$CG734=\"\",'Enrollment Form'!$CG734=\"No\"),\"-\",IF(AND('Enrollment Form'!$CG734=\"Yes\",'Enrollment Form'!$CH734=\"\"),\"N\",\"Y\"))","v":"-"},{"$f":"IF(OR('Enrollment Form'!$CG734=\"\",'Enrollment Form'!$CG734=\"No\"),\"-\",IF(AND('Enrollment Form'!$CG734=\"Yes\",'Enrollment Form'!$CI734=\"\"),\"N\",\"Y\"))","v":"-"},{"$f":"IF('Enrollment Form'!B734<>\"Subscriber\",\"-\",IF(AND('Enrollment Form'!B734=\"Subscriber\",'Enrollment Form'!C734=\"Enroll\",'Enrollment Form'!AA734=\"\"),\"N\",\"Y\"))","v":"-"},{"$f":"IF(OR('Enrollment Form'!B734=\"Subscriber\",'Enrollment Form'!B734=\"\"),\"-\",IF('Enrollment Form'!BI734=\"\",\"N\",\"Y\"))","v":"-"},{"$f":"IF('Enrollment Form'!B734<>\"Subscriber\",\"-\",IF(AND('Enrollment Form'!B734=\"Subscriber\",'Enrollment Form'!G734=\"\"),\"N\",\"Y\"))","v":"-"},{"$f":"IF('Enrollment Form'!A734=\"\",\"\",IF('Enrollment Form'!B734=\"Subscriber\",\"-\",IF(AND('Enrollment Form'!B734<>\"Subscriber\",'Enrollment Form'!G734='Enrollment Form'!H734),\"N\",\"Y\")))","v":""},0]
[735,{"$f":"IF('Enrollment Form'!$A735<>\"\",\"Y\",\"N\")","v":"N"},{"$f":"IF(AND('Enrollment Form'!$B735=\"\",'Enrollment Form'!$C735<>\"\"),\"N\",IF($B728=\"N\",\"\",\"Y\"))","v":""},{"$f":"IF(OR($B728=\"N\",'Enrollment Form'!G735=\"\"),\"\",IF('Enrollment Form'!$B735<>\"Subscriber\",\"\",IF('Enrollment Form'!$G735='Enrollment Form'!$H735,\"Y\",\"N\")))","v":""},{"$f":"IF($B728=\"N\",\"\",IF(AND(COUNTIFS('Enrollment Form'!$H$11:$H$1000,'Enrollment Form'!$H735,'Enrollment Form'!$B$11:$B$1000,'Enrollment Form'!$B735)>1,'Enrollment Form'!$H735<>\"\"),\"N\",\"Y\"))","v":""},{"$f":"IF($B728=\"N\",\"\",IF(LEN('Enrollment Form'!$Y735)=0,\"\",IF(LEN('Enrollment Form'!$Y735)<>5,\"N\",\"Y\")))","v":""},{"$f":"IF($B728=\"N\",\"\",IF(LEN('Enrollment Form'!$AD735=0),\"\",IF(LEN('Enrollment Form'!$AD735)<>5,\"N\",\"Y\")))","v":""},{"$f":"IF($B728=\"N\",\"\",IF(LEN('Enrollment Form'!$BL735=0),\"\",IF(LEN('Enrollment Form'!$BL735)<>5,\"N\",\"Y\")))","v":""},{"$f":"IF($B728=\"N\",\"\",IF(LEN('Enrollment Form'!$AE735)=0,\"\",IF(LEN('Enrollment Form'!$AE735)<>10,\"N\",\"Y\")))","v":""},{"$f":"IF($B728=\"N\",\"\",IF(LEN('Enrollment Form'!$AF735)=0,\"\",IF(LEN('Enrollment Form'!$AF735)<>10,\"N\",\"Y\")))","v":""},{"$f":"IF('Enrollment Form'!$O735<>\"Graded\",\"-\",IF(AND('Enrollment Form'!$O735=\"Graded\",'Enrollment Form'!$AO735<>\"\"),\"Y\",\"N\"))","v":"-"},{"$f":"IF($B728=\"N\",\"\",IF(OR('Enrollment Form'!$B735<>\"Subscriber\",'Enrollment Form'!$C735=\"ROC\"),\"-\",IF(AND('Enrollment Form'!$B735=\"Subscriber\",'Enrollment Form'!$C735=\"Enroll\",'Enrollment Form'!$AJ735<>\"\"),\"Y\",\"N\")))","v":""},{"$f":"IF($B728=\"N\",\"\",IF(OR('Enrollment Form'!$B735<>\"Subscriber\",'Enrollment Form'!$C735=\"ROC\"),\"-\",IF(AND('Enrollment Form'!$B735=\"Subscriber\",'Enrollment Form'!$C735=\"Enroll\",'Enrollment Form'!$AK735<>\"\"),\"Y\",\"N\")))","v":""},{"$f":"IF($B728=\"N\",\"\",IF(OR('Enrollment Form'!$B735<>\"Subscriber\",'Enrollment Form'!$C735=\"ROC\"),\"-\",IF(AND('Enrollment Form'!$B735=\"Subscriber\",'Enrollment Form'!$C735=\"Enroll\",'Enrollment Form'!$AL735<>\"\"),\"Y\",\"N\")))","v":""},{"$f":"IF($B728=\"N\",\"\",IF(OR('Enrollment Form'!$B735<>\"Subscriber\",'Enrollment Form'!$C735=\"ROC\"),\"-\",IF(AND('Enrollment Form'!$B735=\"Subscriber\",'Enrollment Form'!$C735=\"Enroll\",'Enrollment Form'!$AM735<>\"\"),\"Y\",\"N\")))","v":""},{"$f":"IF($B728=\"N\",\"\",IF(OR('Enrollment Form'!$B735<>\"Subscriber\",'Enrollment Form'!$C735=\"ROC\"),\"-\",IF(AND('Enrollment Form'!$B735=\"Subscriber\",'Enrollment Form'!$C735=\"Enroll\",'Enrollment Form'!$AN735<>\"\"),\"Y\",\"N\")))","v":""},{"$f":"IF($B728=\"N\",\"\",IF(OR('Enrollment Form'!$B735<>\"Subscriber\",'Enrollment Form'!$C735=\"ROC\"),\"-\",IF(AND('Enrollment Form'!$B735=\"Subscriber\",'Enrollment Form'!$C735=\"Enroll\",'Enrollment Form'!$AP735<>\"\"),\"Y\",\"N\")))","v":""},{"$f":"IF($B728=\"N\",\"\",IF($Q728=\"-\",\"-\",IF(AND($Q728=\"Y\",'Enrollment Form'!$AP735=\"No\"),\"-\",IF(AND($Q728=\"Y\",'Enrollment Form'!$AP735=\"Yes\",'Enrollment Form'!$AQ735<>\"\"),\"Y\",\"N\"))))","v":""},{"$f":"IF($B728=\"N\",\"\",IF(OR('Enrollment Form'!$B735<>\"Subscriber\",'Enrollment Form'!$C735=\"ROC\"),\"-\",IF(AND('Enrollment Form'!$B735=\"Subscriber\",'Enrollment Form'!$C735=\"Enroll\",'Enrollment Form'!$CO735<>\"\"),\"Y\",\"N\")))","v":""},{"$f":"IF($B728=\"N\",\"\",IF($S728=\"-\",\"-\",IF(AND($S728=\"Y\",'Enrollment Form'!$CO735=\"No\"),\"-\",IF(AND($S728=\"Y\",'Enrollment Form'!$CO735=\"Yes\",'Enrollment Form'!$CP735<>\"\"),\"Y\",\"N\"))))","v":""},{"$f":"IF(OR('Enrollment Form'!$AV735=\"Yes\",'Enrollment Form'!$AV735=\"\"),\"-\",IF(AND('Enrollment Form'!$AV735=\"No\",ISERROR(FIND(\"HMO\",VLOOKUP('Enrollment Form'!G735,'Enrollment Form'!H$11:J$1000,3,FALSE),1))=FALSE,COUNTA('Enrollment Form'!$AW735:$AZ735)=4),\"Y\",\"N\"))","v":"-"},{"$f":"IF($B728=\"N\",\"\",IF('Enrollment Form'!$B735=\"Subscriber\",\"-\",IF(COUNTA('Enrollment Form'!$BE735,'Enrollment Form'!$BG735)=2,\"Y\",\"N\")))","v":""},{"$f":"IF($B728=\"N\",\"\",IF(OR('Enrollment Form'!$AU735=\"\",'Enrollment Form'!$AU735=\"No\"),\"-\",IF(AND('Enrollment Form'!$AU735=\"Yes\",COUNTA('Enrollment Form'!$CK735)=1),\"Y\",\"N\")))","v":""},{"$f":"IF(OR('Enrollment Form'!$CK735=\"\",'Enrollment Form'!$CK735=\"No\"),\"-\",IF(COUNTA('Enrollment Form'!$CM735:$CN735)=2,\"Y\",\"N\"))","v":"-"},{"$f":"IF($B728=\"N\",\"\",IF(COUNTIF('Enrollment Form'!$CZ735:$DO735,\"Other\")=COUNTA('Enrollment Form'!$DF735,'Enrollment Form'!$DA735,'Enrollment Form'!$DK735,'Enrollment Form'!$DP735),\"Y\",\"N\"))","v":""},{"$f":"IF($B728=\"N\",\"\",IF(OR('Enrollment Form'!B735<>\"Subscriber\",'Enrollment Form'!C735=\"ROC\",COUNTIF('Enrollment Form'!AS735:AT735,\"Yes\")>=1),\"-\",IF(AND('Enrollment Form'!C735=\"Enroll\",COUNTIF('Enrollment Form'!AS735:AT735,\"No\")=2,'Enrollment Form'!AU735=\"\"),\"N\",\"Y\")))","v":""},{"$f":"IF(OR(B728=\"N\",'Enrollment Form'!B735<>\"Subscriber\",'Enrollment Form'!C735=\"ROC\",'Enrollment Form'!O735<>\"Multiple of Salary\"),\"-\",IF(COUNTA('Enrollment Form'!T735:U735)<2,\"N\",\"Y\"))","v":"-"},{"$f":"IF(B728=\"N\",\"\",IF(OR('Enrollment Form'!C735=\"ROC\",'Enrollment Form'!B735<>\"Subscriber\",'Enrollment Form'!O735=\"Waive\",'Enrollment Form'!O735=\"\"),\"-\",IF('Enrollment Form'!P735=\"\",\"N\",\"Y\")))","v":""},{"$f":"IF($B728=\"N\",\"\",IF(AND('Enrollment Form'!$C735=\"ROC\",'Enrollment Form'!$DS735<>\"\"),\"Y\",IF(AND('Enrollment Form'!$C735=\"ROC\",'Enrollment Form'!$DS735=\"\"),\"N\",IF(AND('Enrollment Form'!$C735=\"Enroll\",'Enrollment Form'!$B735=\"Subscriber\",'Enrollment Form'!$CQ735=\"No\",'Enrollment Form'!$DS735=\"\"),\"N\",IF(AND('Enrollment Form'!$C735=\"Enroll\",'Enrollment Form'!$B735=\"Subscriber\",'Enrollment Form'!$CQ735=\"Yes\"),\"-\",\"Y\")))))","v":""},{"$f":"IF($B728=\"N\",\"\",IF(AND('Enrollment Form'!$C735=\"ROC\",'Enrollment Form'!$DT735<>\"\"),\"Y\",IF(AND('Enrollment Form'!$C735=\"ROC\",'Enrollment Form'!$DT735=\"\"),\"N\",IF(AND('Enrollment Form'!$C735=\"Enroll\",'Enrollment Form'!$B735=\"Subscriber\",'Enrollment Form'!$CQ735=\"No\",'Enrollment Form'!$DT735=\"\"),\"N\",IF(AND('Enrollment Form'!$C735=\"Enroll\",'Enrollment Form'!$B735=\"Subscriber\",'Enrollment Form'!$CQ735=\"Yes\"),\"-\",\"Y\")))))","v":""},{"$f":"IF('Enrollment Form'!AH735=\"\",\"\",IF(ISERROR(SEARCH(\".\",'Enrollment Form'!AH735,SEARCH(\"@\",'Enrollment Form'!AH735))),\"N\",\"Y\"))","v":""},{"$f":"IF(OR($B728=\"N\",'Enrollment Form'!$G735=\"\"),\"\",IF('Enrollment Form'!$B735<>\"Subscriber\",\"-\",IF(COUNTIF('Enrollment Form'!$AS735:$AT735,\"Yes\")=2,\"N\",\"Y\")))","v":""},{"$f":"IF(OR('Enrollment Form'!$CC735=\"\",'Enrollment Form'!$CC735=\"No\"),\"-\",IF(AND('Enrollment Form'!$CC735=\"Yes\",'Enrollment Form'!$CD735=\"\"),\"N\",\"Y\"))","v":"-"},{"$f":"IF(OR('Enrollment Form'!$CE735=\"\",'Enrollment Form'!$CE735=\"No\"),\"-\",IF(AND('Enrollment Form'!$CE735=\"Yes\",'Enrollment Form'!$CF735=\"\"),\"N\",\"Y\"))","v":"-"},{"$f":"IF(OR('Enrollment Form'!$CG735=\"\",'Enrollment Form'!$CG735=\"No\"),\"-\",IF(AND('Enrollment Form'!$CG735=\"Yes\",'Enrollment Form'!$CH735=\"\"),\"N\",\"Y\"))","v":"-"},{"$f":"IF(OR('Enrollment Form'!$CG735=\"\",'Enrollment Form'!$CG735=\"No\"),\"-\",IF(AND('Enrollment Form'!$CG735=\"Yes\",'Enrollment Form'!$CI735=\"\"),\"N\",\"Y\"))","v":"-"},{"$f":"IF('Enrollment Form'!B735<>\"Subscriber\",\"-\",IF(AND('Enrollment Form'!B735=\"Subscriber\",'Enrollment Form'!C735=\"Enroll\",'Enrollment Form'!AA735=\"\"),\"N\",\"Y\"))","v":"-"},{"$f":"IF(OR('Enrollment Form'!B735=\"Subscriber\",'Enrollment Form'!B735=\"\"),\"-\",IF('Enrollment Form'!BI735=\"\",\"N\",\"Y\"))","v":"-"},{"$f":"IF('Enrollment Form'!B735<>\"Subscriber\",\"-\",IF(AND('Enrollment Form'!B735=\"Subscriber\",'Enrollment Form'!G735=\"\"),\"N\",\"Y\"))","v":"-"},{"$f":"IF('Enrollment Form'!A735=\"\",\"\",IF('Enrollment Form'!B735=\"Subscriber\",\"-\",IF(AND('Enrollment Form'!B735<>\"Subscriber\",'Enrollment Form'!G735='Enrollment Form'!H735),\"N\",\"Y\")))","v":""},0]
[736,{"$f":"IF('Enrollment Form'!$A736<>\"\",\"Y\",\"N\")","v":"N"},{"$f":"IF(AND('Enrollment Form'!$B736=\"\",'Enrollment Form'!$C736<>\"\"),\"N\",IF($B729=\"N\",\"\",\"Y\"))","v":""},{"$f":"IF(OR($B729=\"N\",'Enrollment Form'!G736=\"\"),\"\",IF('Enrollment Form'!$B736<>\"Subscriber\",\"\",IF('Enrollment Form'!$G736='Enrollment Form'!$H736,\"Y\",\"N\")))","v":""},{"$f":"IF($B729=\"N\",\"\",IF(AND(COUNTIFS('Enrollment Form'!$H$11:$H$1000,'Enrollment Form'!$H736,'Enrollment Form'!$B$11:$B$1000,'Enrollment Form'!$B736)>1,'Enrollment Form'!$H736<>\"\"),\"N\",\"Y\"))","v":""},{"$f":"IF($B729=\"N\",\"\",IF(LEN('Enrollment Form'!$Y736)=0,\"\",IF(LEN('Enrollment Form'!$Y736)<>5,\"N\",\"Y\")))","v":""},{"$f":"IF($B729=\"N\",\"\",IF(LEN('Enrollment Form'!$AD736=0),\"\",IF(LEN('Enrollment Form'!$AD736)<>5,\"N\",\"Y\")))","v":""},{"$f":"IF($B729=\"N\",\"\",IF(LEN('Enrollment Form'!$BL736=0),\"\",IF(LEN('Enrollment Form'!$BL736)<>5,\"N\",\"Y\")))","v":""},{"$f":"IF($B729=\"N\",\"\",IF(LEN('Enrollment Form'!$AE736)=0,\"\",IF(LEN('Enrollment Form'!$AE736)<>10,\"N\",\"Y\")))","v":""},{"$f":"IF($B729=\"N\",\"\",IF(LEN('Enrollment Form'!$AF736)=0,\"\",IF(LEN('Enrollment Form'!$AF736)<>10,\"N\",\"Y\")))","v":""},{"$f":"IF('Enrollment Form'!$O736<>\"Graded\",\"-\",IF(AND('Enrollment Form'!$O736=\"Graded\",'Enrollment Form'!$AO736<>\"\"),\"Y\",\"N\"))","v":"-"},{"$f":"IF($B729=\"N\",\"\",IF(OR('Enrollment Form'!$B736<>\"Subscriber\",'Enrollment Form'!$C736=\"ROC\"),\"-\",IF(AND('Enrollment Form'!$B736=\"Subscriber\",'Enrollment Form'!$C736=\"Enroll\",'Enrollment Form'!$AJ736<>\"\"),\"Y\",\"N\")))","v":""},{"$f":"IF($B729=\"N\",\"\",IF(OR('Enrollment Form'!$B736<>\"Subscriber\",'Enrollment Form'!$C736=\"ROC\"),\"-\",IF(AND('Enrollment Form'!$B736=\"Subscriber\",'Enrollment Form'!$C736=\"Enroll\",'Enrollment Form'!$AK736<>\"\"),\"Y\",\"N\")))","v":""},{"$f":"IF($B729=\"N\",\"\",IF(OR('Enrollment Form'!$B736<>\"Subscriber\",'Enrollment Form'!$C736=\"ROC\"),\"-\",IF(AND('Enrollment Form'!$B736=\"Subscriber\",'Enrollment Form'!$C736=\"Enroll\",'Enrollment Form'!$AL736<>\"\"),\"Y\",\"N\")))","v":""},{"$f":"IF($B729=\"N\",\"\",IF(OR('Enrollment Form'!$B736<>\"Subscriber\",'Enrollment Form'!$C736=\"ROC\"),\"-\",IF(AND('Enrollment Form'!$B736=\"Subscriber\",'Enrollment Form'!$C736=\"Enroll\",'Enrollment Form'!$AM736<>\"\"),\"Y\",\"N\")))","v":""},{"$f":"IF($B729=\"N\",\"\",IF(OR('Enrollment Form'!$B736<>\"Subscriber\",'Enrollment Form'!$C736=\"ROC\"),\"-\",IF(AND('Enrollment Form'!$B736=\"Subscriber\",'Enrollment Form'!$C736=\"Enroll\",'Enrollment Form'!$AN736<>\"\"),\"Y\",\"N\")))","v":""},{"$f":"IF($B729=\"N\",\"\",IF(OR('Enrollment Form'!$B736<>\"Subscriber\",'Enrollment Form'!$C736=\"ROC\"),\"-\",IF(AND('Enrollment Form'!$B736=\"Subscriber\",'Enrollment Form'!$C736=\"Enroll\",'Enrollment Form'!$AP736<>\"\"),\"Y\",\"N\")))","v":""},{"$f":"IF($B729=\"N\",\"\",IF($Q729=\"-\",\"-\",IF(AND($Q729=\"Y\",'Enrollment Form'!$AP736=\"No\"),\"-\",IF(AND($Q729=\"Y\",'Enrollment Form'!$AP736=\"Yes\",'Enrollment Form'!$AQ736<>\"\"),\"Y\",\"N\"))))","v":""},{"$f":"IF($B729=\"N\",\"\",IF(OR('Enrollment Form'!$B736<>\"Subscriber\",'Enrollment Form'!$C736=\"ROC\"),\"-\",IF(AND('Enrollment Form'!$B736=\"Subscriber\",'Enrollment Form'!$C736=\"Enroll\",'Enrollment Form'!$CO736<>\"\"),\"Y\",\"N\")))","v":""},{"$f":"IF($B729=\"N\",\"\",IF($S729=\"-\",\"-\",IF(AND($S729=\"Y\",'Enrollment Form'!$CO736=\"No\"),\"-\",IF(AND($S729=\"Y\",'Enrollment Form'!$CO736=\"Yes\",'Enrollment Form'!$CP736<>\"\"),\"Y\",\"N\"))))","v":""},{"$f":"IF(OR('Enrollment Form'!$AV736=\"Yes\",'Enrollment Form'!$AV736=\"\"),\"-\",IF(AND('Enrollment Form'!$AV736=\"No\",ISERROR(FIND(\"HMO\",VLOOKUP('Enrollment Form'!G736,'Enrollment Form'!H$11:J$1000,3,FALSE),1))=FALSE,COUNTA('Enrollment Form'!$AW736:$AZ736)=4),\"Y\",\"N\"))","v":"-"},{"$f":"IF($B729=\"N\",\"\",IF('Enrollment Form'!$B736=\"Subscriber\",\"-\",IF(COUNTA('Enrollment Form'!$BE736,'Enrollment Form'!$BG736)=2,\"Y\",\"N\")))","v":""},{"$f":"IF($B729=\"N\",\"\",IF(OR('Enrollment Form'!$AU736=\"\",'Enrollment Form'!$AU736=\"No\"),\"-\",IF(AND('Enrollment Form'!$AU736=\"Yes\",COUNTA('Enrollment Form'!$CK736)=1),\"Y\",\"N\")))","v":""},{"$f":"IF(OR('Enrollment Form'!$CK736=\"\",'Enrollment Form'!$CK736=\"No\"),\"-\",IF(COUNTA('Enrollment Form'!$CM736:$CN736)=2,\"Y\",\"N\"))","v":"-"},{"$f":"IF($B729=\"N\",\"\",IF(COUNTIF('Enrollment Form'!$CZ736:$DO736,\"Other\")=COUNTA('Enrollment Form'!$DF736,'Enrollment Form'!$DA736,'Enrollment Form'!$DK736,'Enrollment Form'!$DP736),\"Y\",\"N\"))","v":""},{"$f":"IF($B729=\"N\",\"\",IF(OR('Enrollment Form'!B736<>\"Subscriber\",'Enrollment Form'!C736=\"ROC\",COUNTIF('Enrollment Form'!AS736:AT736,\"Yes\")>=1),\"-\",IF(AND('Enrollment Form'!C736=\"Enroll\",COUNTIF('Enrollment Form'!AS736:AT736,\"No\")=2,'Enrollment Form'!AU736=\"\"),\"N\",\"Y\")))","v":""},{"$f":"IF(OR(B729=\"N\",'Enrollment Form'!B736<>\"Subscriber\",'Enrollment Form'!C736=\"ROC\",'Enrollment Form'!O736<>\"Multiple of Salary\"),\"-\",IF(COUNTA('Enrollment Form'!T736:U736)<2,\"N\",\"Y\"))","v":"-"},{"$f":"IF(B729=\"N\",\"\",IF(OR('Enrollment Form'!C736=\"ROC\",'Enrollment Form'!B736<>\"Subscriber\",'Enrollment Form'!O736=\"Waive\",'Enrollment Form'!O736=\"\"),\"-\",IF('Enrollment Form'!P736=\"\",\"N\",\"Y\")))","v":""},{"$f":"IF($B729=\"N\",\"\",IF(AND('Enrollment Form'!$C736=\"ROC\",'Enrollment Form'!$DS736<>\"\"),\"Y\",IF(AND('Enrollment Form'!$C736=\"ROC\",'Enrollment Form'!$DS736=\"\"),\"N\",IF(AND('Enrollment Form'!$C736=\"Enroll\",'Enrollment Form'!$B736=\"Subscriber\",'Enrollment Form'!$CQ736=\"No\",'Enrollment Form'!$DS736=\"\"),\"N\",IF(AND('Enrollment Form'!$C736=\"Enroll\",'Enrollment Form'!$B736=\"Subscriber\",'Enrollment Form'!$CQ736=\"Yes\"),\"-\",\"Y\")))))","v":""},{"$f":"IF($B729=\"N\",\"\",IF(AND('Enrollment Form'!$C736=\"ROC\",'Enrollment Form'!$DT736<>\"\"),\"Y\",IF(AND('Enrollment Form'!$C736=\"ROC\",'Enrollment Form'!$DT736=\"\"),\"N\",IF(AND('Enrollment Form'!$C736=\"Enroll\",'Enrollment Form'!$B736=\"Subscriber\",'Enrollment Form'!$CQ736=\"No\",'Enrollment Form'!$DT736=\"\"),\"N\",IF(AND('Enrollment Form'!$C736=\"Enroll\",'Enrollment Form'!$B736=\"Subscriber\",'Enrollment Form'!$CQ736=\"Yes\"),\"-\",\"Y\")))))","v":""},{"$f":"IF('Enrollment Form'!AH736=\"\",\"\",IF(ISERROR(SEARCH(\".\",'Enrollment Form'!AH736,SEARCH(\"@\",'Enrollment Form'!AH736))),\"N\",\"Y\"))","v":""},{"$f":"IF(OR($B729=\"N\",'Enrollment Form'!$G736=\"\"),\"\",IF('Enrollment Form'!$B736<>\"Subscriber\",\"-\",IF(COUNTIF('Enrollment Form'!$AS736:$AT736,\"Yes\")=2,\"N\",\"Y\")))","v":""},{"$f":"IF(OR('Enrollment Form'!$CC736=\"\",'Enrollment Form'!$CC736=\"No\"),\"-\",IF(AND('Enrollment Form'!$CC736=\"Yes\",'Enrollment Form'!$CD736=\"\"),\"N\",\"Y\"))","v":"-"},{"$f":"IF(OR('Enrollment Form'!$CE736=\"\",'Enrollment Form'!$CE736=\"No\"),\"-\",IF(AND('Enrollment Form'!$CE736=\"Yes\",'Enrollment Form'!$CF736=\"\"),\"N\",\"Y\"))","v":"-"},{"$f":"IF(OR('Enrollment Form'!$CG736=\"\",'Enrollment Form'!$CG736=\"No\"),\"-\",IF(AND('Enrollment Form'!$CG736=\"Yes\",'Enrollment Form'!$CH736=\"\"),\"N\",\"Y\"))","v":"-"},{"$f":"IF(OR('Enrollment Form'!$CG736=\"\",'Enrollment Form'!$CG736=\"No\"),\"-\",IF(AND('Enrollment Form'!$CG736=\"Yes\",'Enrollment Form'!$CI736=\"\"),\"N\",\"Y\"))","v":"-"},{"$f":"IF('Enrollment Form'!B736<>\"Subscriber\",\"-\",IF(AND('Enrollment Form'!B736=\"Subscriber\",'Enrollment Form'!C736=\"Enroll\",'Enrollment Form'!AA736=\"\"),\"N\",\"Y\"))","v":"-"},{"$f":"IF(OR('Enrollment Form'!B736=\"Subscriber\",'Enrollment Form'!B736=\"\"),\"-\",IF('Enrollment Form'!BI736=\"\",\"N\",\"Y\"))","v":"-"},{"$f":"IF('Enrollment Form'!B736<>\"Subscriber\",\"-\",IF(AND('Enrollment Form'!B736=\"Subscriber\",'Enrollment Form'!G736=\"\"),\"N\",\"Y\"))","v":"-"},{"$f":"IF('Enrollment Form'!A736=\"\",\"\",IF('Enrollment Form'!B736=\"Subscriber\",\"-\",IF(AND('Enrollment Form'!B736<>\"Subscriber\",'Enrollment Form'!G736='Enrollment Form'!H736),\"N\",\"Y\")))","v":""},0]
[737,{"$f":"IF('Enrollment Form'!$A737<>\"\",\"Y\",\"N\")","v":"N"},{"$f":"IF(AND('Enrollment Form'!$B737=\"\",'Enrollment Form'!$C737<>\"\"),\"N\",IF($B730=\"N\",\"\",\"Y\"))","v":""},{"$f":"IF(OR($B730=\"N\",'Enrollment Form'!G737=\"\"),\"\",IF('Enrollment Form'!$B737<>\"Subscriber\",\"\",IF('Enrollment Form'!$G737='Enrollment Form'!$H737,\"Y\",\"N\")))","v":""},{"$f":"IF($B730=\"N\",\"\",IF(AND(COUNTIFS('Enrollment Form'!$H$11:$H$1000,'Enrollment Form'!$H737,'Enrollment Form'!$B$11:$B$1000,'Enrollment Form'!$B737)>1,'Enrollment Form'!$H737<>\"\"),\"N\",\"Y\"))","v":""},{"$f":"IF($B730=\"N\",\"\",IF(LEN('Enrollment Form'!$Y737)=0,\"\",IF(LEN('Enrollment Form'!$Y737)<>5,\"N\",\"Y\")))","v":""},{"$f":"IF($B730=\"N\",\"\",IF(LEN('Enrollment Form'!$AD737=0),\"\",IF(LEN('Enrollment Form'!$AD737)<>5,\"N\",\"Y\")))","v":""},{"$f":"IF($B730=\"N\",\"\",IF(LEN('Enrollment Form'!$BL737=0),\"\",IF(LEN('Enrollment Form'!$BL737)<>5,\"N\",\"Y\")))","v":""},{"$f":"IF($B730=\"N\",\"\",IF(LEN('Enrollment Form'!$AE737)=0,\"\",IF(LEN('Enrollment Form'!$AE737)<>10,\"N\",\"Y\")))","v":""},{"$f":"IF($B730=\"N\",\"\",IF(LEN('Enrollment Form'!$AF737)=0,\"\",IF(LEN('Enrollment Form'!$AF737)<>10,\"N\",\"Y\")))","v":""},{"$f":"IF('Enrollment Form'!$O737<>\"Graded\",\"-\",IF(AND('Enrollment Form'!$O737=\"Graded\",'Enrollment Form'!$AO737<>\"\"),\"Y\",\"N\"))","v":"-"},{"$f":"IF($B730=\"N\",\"\",IF(OR('Enrollment Form'!$B737<>\"Subscriber\",'Enrollment Form'!$C737=\"ROC\"),\"-\",IF(AND('Enrollment Form'!$B737=\"Subscriber\",'Enrollment Form'!$C737=\"Enroll\",'Enrollment Form'!$AJ737<>\"\"),\"Y\",\"N\")))","v":""},{"$f":"IF($B730=\"N\",\"\",IF(OR('Enrollment Form'!$B737<>\"Subscriber\",'Enrollment Form'!$C737=\"ROC\"),\"-\",IF(AND('Enrollment Form'!$B737=\"Subscriber\",'Enrollment Form'!$C737=\"Enroll\",'Enrollment Form'!$AK737<>\"\"),\"Y\",\"N\")))","v":""},{"$f":"IF($B730=\"N\",\"\",IF(OR('Enrollment Form'!$B737<>\"Subscriber\",'Enrollment Form'!$C737=\"ROC\"),\"-\",IF(AND('Enrollment Form'!$B737=\"Subscriber\",'Enrollment Form'!$C737=\"Enroll\",'Enrollment Form'!$AL737<>\"\"),\"Y\",\"N\")))","v":""},{"$f":"IF($B730=\"N\",\"\",IF(OR('Enrollment Form'!$B737<>\"Subscriber\",'Enrollment Form'!$C737=\"ROC\"),\"-\",IF(AND('Enrollment Form'!$B737=\"Subscriber\",'Enrollment Form'!$C737=\"Enroll\",'Enrollment Form'!$AM737<>\"\"),\"Y\",\"N\")))","v":""},{"$f":"IF($B730=\"N\",\"\",IF(OR('Enrollment Form'!$B737<>\"Subscriber\",'Enrollment Form'!$C737=\"ROC\"),\"-\",IF(AND('Enrollment Form'!$B737=\"Subscriber\",'Enrollment Form'!$C737=\"Enroll\",'Enrollment Form'!$AN737<>\"\"),\"Y\",\"N\")))","v":""},{"$f":"IF($B730=\"N\",\"\",IF(OR('Enrollment Form'!$B737<>\"Subscriber\",'Enrollment Form'!$C737=\"ROC\"),\"-\",IF(AND('Enrollment Form'!$B737=\"Subscriber\",'Enrollment Form'!$C737=\"Enroll\",'Enrollment Form'!$AP737<>\"\"),\"Y\",\"N\")))","v":""},{"$f":"IF($B730=\"N\",\"\",IF($Q730=\"-\",\"-\",IF(AND($Q730=\"Y\",'Enrollment Form'!$AP737=\"No\"),\"-\",IF(AND($Q730=\"Y\",'Enrollment Form'!$AP737=\"Yes\",'Enrollment Form'!$AQ737<>\"\"),\"Y\",\"N\"))))","v":""},{"$f":"IF($B730=\"N\",\"\",IF(OR('Enrollment Form'!$B737<>\"Subscriber\",'Enrollment Form'!$C737=\"ROC\"),\"-\",IF(AND('Enrollment Form'!$B737=\"Subscriber\",'Enrollment Form'!$C737=\"Enroll\",'Enrollment Form'!$CO737<>\"\"),\"Y\",\"N\")))","v":""},{"$f":"IF($B730=\"N\",\"\",IF($S730=\"-\",\"-\",IF(AND($S730=\"Y\",'Enrollment Form'!$CO737=\"No\"),\"-\",IF(AND($S730=\"Y\",'Enrollment Form'!$CO737=\"Yes\",'Enrollment Form'!$CP737<>\"\"),\"Y\",\"N\"))))","v":""},{"$f":"IF(OR('Enrollment Form'!$AV737=\"Yes\",'Enrollment Form'!$AV737=\"\"),\"-\",IF(AND('Enrollment Form'!$AV737=\"No\",ISERROR(FIND(\"HMO\",VLOOKUP('Enrollment Form'!G737,'Enrollment Form'!H$11:J$1000,3,FALSE),1))=FALSE,COUNTA('Enrollment Form'!$AW737:$AZ737)=4),\"Y\",\"N\"))","v":"-"},{"$f":"IF($B730=\"N\",\"\",IF('Enrollment Form'!$B737=\"Subscriber\",\"-\",IF(COUNTA('Enrollment Form'!$BE737,'Enrollment Form'!$BG737)=2,\"Y\",\"N\")))","v":""},{"$f":"IF($B730=\"N\",\"\",IF(OR('Enrollment Form'!$AU737=\"\",'Enrollment Form'!$AU737=\"No\"),\"-\",IF(AND('Enrollment Form'!$AU737=\"Yes\",COUNTA('Enrollment Form'!$CK737)=1),\"Y\",\"N\")))","v":""},{"$f":"IF(OR('Enrollment Form'!$CK737=\"\",'Enrollment Form'!$CK737=\"No\"),\"-\",IF(COUNTA('Enrollment Form'!$CM737:$CN737)=2,\"Y\",\"N\"))","v":"-"},{"$f":"IF($B730=\"N\",\"\",IF(COUNTIF('Enrollment Form'!$CZ737:$DO737,\"Other\")=COUNTA('Enrollment Form'!$DF737,'Enrollment Form'!$DA737,'Enrollment Form'!$DK737,'Enrollment Form'!$DP737),\"Y\",\"N\"))","v":""},{"$f":"IF($B730=\"N\",\"\",IF(OR('Enrollment Form'!B737<>\"Subscriber\",'Enrollment Form'!C737=\"ROC\",COUNTIF('Enrollment Form'!AS737:AT737,\"Yes\")>=1),\"-\",IF(AND('Enrollment Form'!C737=\"Enroll\",COUNTIF('Enrollment Form'!AS737:AT737,\"No\")=2,'Enrollment Form'!AU737=\"\"),\"N\",\"Y\")))","v":""},{"$f":"IF(OR(B730=\"N\",'Enrollment Form'!B737<>\"Subscriber\",'Enrollment Form'!C737=\"ROC\",'Enrollment Form'!O737<>\"Multiple of Salary\"),\"-\",IF(COUNTA('Enrollment Form'!T737:U737)<2,\"N\",\"Y\"))","v":"-"},{"$f":"IF(B730=\"N\",\"\",IF(OR('Enrollment Form'!C737=\"ROC\",'Enrollment Form'!B737<>\"Subscriber\",'Enrollment Form'!O737=\"Waive\",'Enrollment Form'!O737=\"\"),\"-\",IF('Enrollment Form'!P737=\"\",\"N\",\"Y\")))","v":""},{"$f":"IF($B730=\"N\",\"\",IF(AND('Enrollment Form'!$C737=\"ROC\",'Enrollment Form'!$DS737<>\"\"),\"Y\",IF(AND('Enrollment Form'!$C737=\"ROC\",'Enrollment Form'!$DS737=\"\"),\"N\",IF(AND('Enrollment Form'!$C737=\"Enroll\",'Enrollment Form'!$B737=\"Subscriber\",'Enrollment Form'!$CQ737=\"No\",'Enrollment Form'!$DS737=\"\"),\"N\",IF(AND('Enrollment Form'!$C737=\"Enroll\",'Enrollment Form'!$B737=\"Subscriber\",'Enrollment Form'!$CQ737=\"Yes\"),\"-\",\"Y\")))))","v":""},{"$f":"IF($B730=\"N\",\"\",IF(AND('Enrollment Form'!$C737=\"ROC\",'Enrollment Form'!$DT737<>\"\"),\"Y\",IF(AND('Enrollment Form'!$C737=\"ROC\",'Enrollment Form'!$DT737=\"\"),\"N\",IF(AND('Enrollment Form'!$C737=\"Enroll\",'Enrollment Form'!$B737=\"Subscriber\",'Enrollment Form'!$CQ737=\"No\",'Enrollment Form'!$DT737=\"\"),\"N\",IF(AND('Enrollment Form'!$C737=\"Enroll\",'Enrollment Form'!$B737=\"Subscriber\",'Enrollment Form'!$CQ737=\"Yes\"),\"-\",\"Y\")))))","v":""},{"$f":"IF('Enrollment Form'!AH737=\"\",\"\",IF(ISERROR(SEARCH(\".\",'Enrollment Form'!AH737,SEARCH(\"@\",'Enrollment Form'!AH737))),\"N\",\"Y\"))","v":""},{"$f":"IF(OR($B730=\"N\",'Enrollment Form'!$G737=\"\"),\"\",IF('Enrollment Form'!$B737<>\"Subscriber\",\"-\",IF(COUNTIF('Enrollment Form'!$AS737:$AT737,\"Yes\")=2,\"N\",\"Y\")))","v":""},{"$f":"IF(OR('Enrollment Form'!$CC737=\"\",'Enrollment Form'!$CC737=\"No\"),\"-\",IF(AND('Enrollment Form'!$CC737=\"Yes\",'Enrollment Form'!$CD737=\"\"),\"N\",\"Y\"))","v":"-"},{"$f":"IF(OR('Enrollment Form'!$CE737=\"\",'Enrollment Form'!$CE737=\"No\"),\"-\",IF(AND('Enrollment Form'!$CE737=\"Yes\",'Enrollment Form'!$CF737=\"\"),\"N\",\"Y\"))","v":"-"},{"$f":"IF(OR('Enrollment Form'!$CG737=\"\",'Enrollment Form'!$CG737=\"No\"),\"-\",IF(AND('Enrollment Form'!$CG737=\"Yes\",'Enrollment Form'!$CH737=\"\"),\"N\",\"Y\"))","v":"-"},{"$f":"IF(OR('Enrollment Form'!$CG737=\"\",'Enrollment Form'!$CG737=\"No\"),\"-\",IF(AND('Enrollment Form'!$CG737=\"Yes\",'Enrollment Form'!$CI737=\"\"),\"N\",\"Y\"))","v":"-"},{"$f":"IF('Enrollment Form'!B737<>\"Subscriber\",\"-\",IF(AND('Enrollment Form'!B737=\"Subscriber\",'Enrollment Form'!C737=\"Enroll\",'Enrollment Form'!AA737=\"\"),\"N\",\"Y\"))","v":"-"},{"$f":"IF(OR('Enrollment Form'!B737=\"Subscriber\",'Enrollment Form'!B737=\"\"),\"-\",IF('Enrollment Form'!BI737=\"\",\"N\",\"Y\"))","v":"-"},{"$f":"IF('Enrollment Form'!B737<>\"Subscriber\",\"-\",IF(AND('Enrollment Form'!B737=\"Subscriber\",'Enrollment Form'!G737=\"\"),\"N\",\"Y\"))","v":"-"},{"$f":"IF('Enrollment Form'!A737=\"\",\"\",IF('Enrollment Form'!B737=\"Subscriber\",\"-\",IF(AND('Enrollment Form'!B737<>\"Subscriber\",'Enrollment Form'!G737='Enrollment Form'!H737),\"N\",\"Y\")))","v":""},0]
[738,{"$f":"IF('Enrollment Form'!$A738<>\"\",\"Y\",\"N\")","v":"N"},{"$f":"IF(AND('Enrollment Form'!$B738=\"\",'Enrollment Form'!$C738<>\"\"),\"N\",IF($B731=\"N\",\"\",\"Y\"))","v":""},{"$f":"IF(OR($B731=\"N\",'Enrollment Form'!G738=\"\"),\"\",IF('Enrollment Form'!$B738<>\"Subscriber\",\"\",IF('Enrollment Form'!$G738='Enrollment Form'!$H738,\"Y\",\"N\")))","v":""},{"$f":"IF($B731=\"N\",\"\",IF(AND(COUNTIFS('Enrollment Form'!$H$11:$H$1000,'Enrollment Form'!$H738,'Enrollment Form'!$B$11:$B$1000,'Enrollment Form'!$B738)>1,'Enrollment Form'!$H738<>\"\"),\"N\",\"Y\"))","v":""},{"$f":"IF($B731=\"N\",\"\",IF(LEN('Enrollment Form'!$Y738)=0,\"\",IF(LEN('Enrollment Form'!$Y738)<>5,\"N\",\"Y\")))","v":""},{"$f":"IF($B731=\"N\",\"\",IF(LEN('Enrollment Form'!$AD738=0),\"\",IF(LEN('Enrollment Form'!$AD738)<>5,\"N\",\"Y\")))","v":""},{"$f":"IF($B731=\"N\",\"\",IF(LEN('Enrollment Form'!$BL738=0),\"\",IF(LEN('Enrollment Form'!$BL738)<>5,\"N\",\"Y\")))","v":""},{"$f":"IF($B731=\"N\",\"\",IF(LEN('Enrollment Form'!$AE738)=0,\"\",IF(LEN('Enrollment Form'!$AE738)<>10,\"N\",\"Y\")))","v":""},{"$f":"IF($B731=\"N\",\"\",IF(LEN('Enrollment Form'!$AF738)=0,\"\",IF(LEN('Enrollment Form'!$AF738)<>10,\"N\",\"Y\")))","v":""},{"$f":"IF('Enrollment Form'!$O738<>\"Graded\",\"-\",IF(AND('Enrollment Form'!$O738=\"Graded\",'Enrollment Form'!$AO738<>\"\"),\"Y\",\"N\"))","v":"-"},{"$f":"IF($B731=\"N\",\"\",IF(OR('Enrollment Form'!$B738<>\"Subscriber\",'Enrollment Form'!$C738=\"ROC\"),\"-\",IF(AND('Enrollment Form'!$B738=\"Subscriber\",'Enrollment Form'!$C738=\"Enroll\",'Enrollment Form'!$AJ738<>\"\"),\"Y\",\"N\")))","v":""},{"$f":"IF($B731=\"N\",\"\",IF(OR('Enrollment Form'!$B738<>\"Subscriber\",'Enrollment Form'!$C738=\"ROC\"),\"-\",IF(AND('Enrollment Form'!$B738=\"Subscriber\",'Enrollment Form'!$C738=\"Enroll\",'Enrollment Form'!$AK738<>\"\"),\"Y\",\"N\")))","v":""},{"$f":"IF($B731=\"N\",\"\",IF(OR('Enrollment Form'!$B738<>\"Subscriber\",'Enrollment Form'!$C738=\"ROC\"),\"-\",IF(AND('Enrollment Form'!$B738=\"Subscriber\",'Enrollment Form'!$C738=\"Enroll\",'Enrollment Form'!$AL738<>\"\"),\"Y\",\"N\")))","v":""},{"$f":"IF($B731=\"N\",\"\",IF(OR('Enrollment Form'!$B738<>\"Subscriber\",'Enrollment Form'!$C738=\"ROC\"),\"-\",IF(AND('Enrollment Form'!$B738=\"Subscriber\",'Enrollment Form'!$C738=\"Enroll\",'Enrollment Form'!$AM738<>\"\"),\"Y\",\"N\")))","v":""},{"$f":"IF($B731=\"N\",\"\",IF(OR('Enrollment Form'!$B738<>\"Subscriber\",'Enrollment Form'!$C738=\"ROC\"),\"-\",IF(AND('Enrollment Form'!$B738=\"Subscriber\",'Enrollment Form'!$C738=\"Enroll\",'Enrollment Form'!$AN738<>\"\"),\"Y\",\"N\")))","v":""},{"$f":"IF($B731=\"N\",\"\",IF(OR('Enrollment Form'!$B738<>\"Subscriber\",'Enrollment Form'!$C738=\"ROC\"),\"-\",IF(AND('Enrollment Form'!$B738=\"Subscriber\",'Enrollment Form'!$C738=\"Enroll\",'Enrollment Form'!$AP738<>\"\"),\"Y\",\"N\")))","v":""},{"$f":"IF($B731=\"N\",\"\",IF($Q731=\"-\",\"-\",IF(AND($Q731=\"Y\",'Enrollment Form'!$AP738=\"No\"),\"-\",IF(AND($Q731=\"Y\",'Enrollment Form'!$AP738=\"Yes\",'Enrollment Form'!$AQ738<>\"\"),\"Y\",\"N\"))))","v":""},{"$f":"IF($B731=\"N\",\"\",IF(OR('Enrollment Form'!$B738<>\"Subscriber\",'Enrollment Form'!$C738=\"ROC\"),\"-\",IF(AND('Enrollment Form'!$B738=\"Subscriber\",'Enrollment Form'!$C738=\"Enroll\",'Enrollment Form'!$CO738<>\"\"),\"Y\",\"N\")))","v":""},{"$f":"IF($B731=\"N\",\"\",IF($S731=\"-\",\"-\",IF(AND($S731=\"Y\",'Enrollment Form'!$CO738=\"No\"),\"-\",IF(AND($S731=\"Y\",'Enrollment Form'!$CO738=\"Yes\",'Enrollment Form'!$CP738<>\"\"),\"Y\",\"N\"))))","v":""},{"$f":"IF(OR('Enrollment Form'!$AV738=\"Yes\",'Enrollment Form'!$AV738=\"\"),\"-\",IF(AND('Enrollment Form'!$AV738=\"No\",ISERROR(FIND(\"HMO\",VLOOKUP('Enrollment Form'!G738,'Enrollment Form'!H$11:J$1000,3,FALSE),1))=FALSE,COUNTA('Enrollment Form'!$AW738:$AZ738)=4),\"Y\",\"N\"))","v":"-"},{"$f":"IF($B731=\"N\",\"\",IF('Enrollment Form'!$B738=\"Subscriber\",\"-\",IF(COUNTA('Enrollment Form'!$BE738,'Enrollment Form'!$BG738)=2,\"Y\",\"N\")))","v":""},{"$f":"IF($B731=\"N\",\"\",IF(OR('Enrollment Form'!$AU738=\"\",'Enrollment Form'!$AU738=\"No\"),\"-\",IF(AND('Enrollment Form'!$AU738=\"Yes\",COUNTA('Enrollment Form'!$CK738)=1),\"Y\",\"N\")))","v":""},{"$f":"IF(OR('Enrollment Form'!$CK738=\"\",'Enrollment Form'!$CK738=\"No\"),\"-\",IF(COUNTA('Enrollment Form'!$CM738:$CN738)=2,\"Y\",\"N\"))","v":"-"},{"$f":"IF($B731=\"N\",\"\",IF(COUNTIF('Enrollment Form'!$CZ738:$DO738,\"Other\")=COUNTA('Enrollment Form'!$DF738,'Enrollment Form'!$DA738,'Enrollment Form'!$DK738,'Enrollment Form'!$DP738),\"Y\",\"N\"))","v":""},{"$f":"IF($B731=\"N\",\"\",IF(OR('Enrollment Form'!B738<>\"Subscriber\",'Enrollment Form'!C738=\"ROC\",COUNTIF('Enrollment Form'!AS738:AT738,\"Yes\")>=1),\"-\",IF(AND('Enrollment Form'!C738=\"Enroll\",COUNTIF('Enrollment Form'!AS738:AT738,\"No\")=2,'Enrollment Form'!AU738=\"\"),\"N\",\"Y\")))","v":""},{"$f":"IF(OR(B731=\"N\",'Enrollment Form'!B738<>\"Subscriber\",'Enrollment Form'!C738=\"ROC\",'Enrollment Form'!O738<>\"Multiple of Salary\"),\"-\",IF(COUNTA('Enrollment Form'!T738:U738)<2,\"N\",\"Y\"))","v":"-"},{"$f":"IF(B731=\"N\",\"\",IF(OR('Enrollment Form'!C738=\"ROC\",'Enrollment Form'!B738<>\"Subscriber\",'Enrollment Form'!O738=\"Waive\",'Enrollment Form'!O738=\"\"),\"-\",IF('Enrollment Form'!P738=\"\",\"N\",\"Y\")))","v":""},{"$f":"IF($B731=\"N\",\"\",IF(AND('Enrollment Form'!$C738=\"ROC\",'Enrollment Form'!$DS738<>\"\"),\"Y\",IF(AND('Enrollment Form'!$C738=\"ROC\",'Enrollment Form'!$DS738=\"\"),\"N\",IF(AND('Enrollment Form'!$C738=\"Enroll\",'Enrollment Form'!$B738=\"Subscriber\",'Enrollment Form'!$CQ738=\"No\",'Enrollment Form'!$DS738=\"\"),\"N\",IF(AND('Enrollment Form'!$C738=\"Enroll\",'Enrollment Form'!$B738=\"Subscriber\",'Enrollment Form'!$CQ738=\"Yes\"),\"-\",\"Y\")))))","v":""},{"$f":"IF($B731=\"N\",\"\",IF(AND('Enrollment Form'!$C738=\"ROC\",'Enrollment Form'!$DT738<>\"\"),\"Y\",IF(AND('Enrollment Form'!$C738=\"ROC\",'Enrollment Form'!$DT738=\"\"),\"N\",IF(AND('Enrollment Form'!$C738=\"Enroll\",'Enrollment Form'!$B738=\"Subscriber\",'Enrollment Form'!$CQ738=\"No\",'Enrollment Form'!$DT738=\"\"),\"N\",IF(AND('Enrollment Form'!$C738=\"Enroll\",'Enrollment Form'!$B738=\"Subscriber\",'Enrollment Form'!$CQ738=\"Yes\"),\"-\",\"Y\")))))","v":""},{"$f":"IF('Enrollment Form'!AH738=\"\",\"\",IF(ISERROR(SEARCH(\".\",'Enrollment Form'!AH738,SEARCH(\"@\",'Enrollment Form'!AH738))),\"N\",\"Y\"))","v":""},{"$f":"IF(OR($B731=\"N\",'Enrollment Form'!$G738=\"\"),\"\",IF('Enrollment Form'!$B738<>\"Subscriber\",\"-\",IF(COUNTIF('Enrollment Form'!$AS738:$AT738,\"Yes\")=2,\"N\",\"Y\")))","v":""},{"$f":"IF(OR('Enrollment Form'!$CC738=\"\",'Enrollment Form'!$CC738=\"No\"),\"-\",IF(AND('Enrollment Form'!$CC738=\"Yes\",'Enrollment Form'!$CD738=\"\"),\"N\",\"Y\"))","v":"-"},{"$f":"IF(OR('Enrollment Form'!$CE738=\"\",'Enrollment Form'!$CE738=\"No\"),\"-\",IF(AND('Enrollment Form'!$CE738=\"Yes\",'Enrollment Form'!$CF738=\"\"),\"N\",\"Y\"))","v":"-"},{"$f":"IF(OR('Enrollment Form'!$CG738=\"\",'Enrollment Form'!$CG738=\"No\"),\"-\",IF(AND('Enrollment Form'!$CG738=\"Yes\",'Enrollment Form'!$CH738=\"\"),\"N\",\"Y\"))","v":"-"},{"$f":"IF(OR('Enrollment Form'!$CG738=\"\",'Enrollment Form'!$CG738=\"No\"),\"-\",IF(AND('Enrollment Form'!$CG738=\"Yes\",'Enrollment Form'!$CI738=\"\"),\"N\",\"Y\"))","v":"-"},{"$f":"IF('Enrollment Form'!B738<>\"Subscriber\",\"-\",IF(AND('Enrollment Form'!B738=\"Subscriber\",'Enrollment Form'!C738=\"Enroll\",'Enrollment Form'!AA738=\"\"),\"N\",\"Y\"))","v":"-"},{"$f":"IF(OR('Enrollment Form'!B738=\"Subscriber\",'Enrollment Form'!B738=\"\"),\"-\",IF('Enrollment Form'!BI738=\"\",\"N\",\"Y\"))","v":"-"},{"$f":"IF('Enrollment Form'!B738<>\"Subscriber\",\"-\",IF(AND('Enrollment Form'!B738=\"Subscriber\",'Enrollment Form'!G738=\"\"),\"N\",\"Y\"))","v":"-"},{"$f":"IF('Enrollment Form'!A738=\"\",\"\",IF('Enrollment Form'!B738=\"Subscriber\",\"-\",IF(AND('Enrollment Form'!B738<>\"Subscriber\",'Enrollment Form'!G738='Enrollment Form'!H738),\"N\",\"Y\")))","v":""},0]
[739,{"$f":"IF('Enrollment Form'!$A739<>\"\",\"Y\",\"N\")","v":"N"},{"$f":"IF(AND('Enrollment Form'!$B739=\"\",'Enrollment Form'!$C739<>\"\"),\"N\",IF($B732=\"N\",\"\",\"Y\"))","v":""},{"$f":"IF(OR($B732=\"N\",'Enrollment Form'!G739=\"\"),\"\",IF('Enrollment Form'!$B739<>\"Subscriber\",\"\",IF('Enrollment Form'!$G739='Enrollment Form'!$H739,\"Y\",\"N\")))","v":""},{"$f":"IF($B732=\"N\",\"\",IF(AND(COUNTIFS('Enrollment Form'!$H$11:$H$1000,'Enrollment Form'!$H739,'Enrollment Form'!$B$11:$B$1000,'Enrollment Form'!$B739)>1,'Enrollment Form'!$H739<>\"\"),\"N\",\"Y\"))","v":""},{"$f":"IF($B732=\"N\",\"\",IF(LEN('Enrollment Form'!$Y739)=0,\"\",IF(LEN('Enrollment Form'!$Y739)<>5,\"N\",\"Y\")))","v":""},{"$f":"IF($B732=\"N\",\"\",IF(LEN('Enrollment Form'!$AD739=0),\"\",IF(LEN('Enrollment Form'!$AD739)<>5,\"N\",\"Y\")))","v":""},{"$f":"IF($B732=\"N\",\"\",IF(LEN('Enrollment Form'!$BL739=0),\"\",IF(LEN('Enrollment Form'!$BL739)<>5,\"N\",\"Y\")))","v":""},{"$f":"IF($B732=\"N\",\"\",IF(LEN('Enrollment Form'!$AE739)=0,\"\",IF(LEN('Enrollment Form'!$AE739)<>10,\"N\",\"Y\")))","v":""},{"$f":"IF($B732=\"N\",\"\",IF(LEN('Enrollment Form'!$AF739)=0,\"\",IF(LEN('Enrollment Form'!$AF739)<>10,\"N\",\"Y\")))","v":""},{"$f":"IF('Enrollment Form'!$O739<>\"Graded\",\"-\",IF(AND('Enrollment Form'!$O739=\"Graded\",'Enrollment Form'!$AO739<>\"\"),\"Y\",\"N\"))","v":"-"},{"$f":"IF($B732=\"N\",\"\",IF(OR('Enrollment Form'!$B739<>\"Subscriber\",'Enrollment Form'!$C739=\"ROC\"),\"-\",IF(AND('Enrollment Form'!$B739=\"Subscriber\",'Enrollment Form'!$C739=\"Enroll\",'Enrollment Form'!$AJ739<>\"\"),\"Y\",\"N\")))","v":""},{"$f":"IF($B732=\"N\",\"\",IF(OR('Enrollment Form'!$B739<>\"Subscriber\",'Enrollment Form'!$C739=\"ROC\"),\"-\",IF(AND('Enrollment Form'!$B739=\"Subscriber\",'Enrollment Form'!$C739=\"Enroll\",'Enrollment Form'!$AK739<>\"\"),\"Y\",\"N\")))","v":""},{"$f":"IF($B732=\"N\",\"\",IF(OR('Enrollment Form'!$B739<>\"Subscriber\",'Enrollment Form'!$C739=\"ROC\"),\"-\",IF(AND('Enrollment Form'!$B739=\"Subscriber\",'Enrollment Form'!$C739=\"Enroll\",'Enrollment Form'!$AL739<>\"\"),\"Y\",\"N\")))","v":""},{"$f":"IF($B732=\"N\",\"\",IF(OR('Enrollment Form'!$B739<>\"Subscriber\",'Enrollment Form'!$C739=\"ROC\"),\"-\",IF(AND('Enrollment Form'!$B739=\"Subscriber\",'Enrollment Form'!$C739=\"Enroll\",'Enrollment Form'!$AM739<>\"\"),\"Y\",\"N\")))","v":""},{"$f":"IF($B732=\"N\",\"\",IF(OR('Enrollment Form'!$B739<>\"Subscriber\",'Enrollment Form'!$C739=\"ROC\"),\"-\",IF(AND('Enrollment Form'!$B739=\"Subscriber\",'Enrollment Form'!$C739=\"Enroll\",'Enrollment Form'!$AN739<>\"\"),\"Y\",\"N\")))","v":""},{"$f":"IF($B732=\"N\",\"\",IF(OR('Enrollment Form'!$B739<>\"Subscriber\",'Enrollment Form'!$C739=\"ROC\"),\"-\",IF(AND('Enrollment Form'!$B739=\"Subscriber\",'Enrollment Form'!$C739=\"Enroll\",'Enrollment Form'!$AP739<>\"\"),\"Y\",\"N\")))","v":""},{"$f":"IF($B732=\"N\",\"\",IF($Q732=\"-\",\"-\",IF(AND($Q732=\"Y\",'Enrollment Form'!$AP739=\"No\"),\"-\",IF(AND($Q732=\"Y\",'Enrollment Form'!$AP739=\"Yes\",'Enrollment Form'!$AQ739<>\"\"),\"Y\",\"N\"))))","v":""},{"$f":"IF($B732=\"N\",\"\",IF(OR('Enrollment Form'!$B739<>\"Subscriber\",'Enrollment Form'!$C739=\"ROC\"),\"-\",IF(AND('Enrollment Form'!$B739=\"Subscriber\",'Enrollment Form'!$C739=\"Enroll\",'Enrollment Form'!$CO739<>\"\"),\"Y\",\"N\")))","v":""},{"$f":"IF($B732=\"N\",\"\",IF($S732=\"-\",\"-\",IF(AND($S732=\"Y\",'Enrollment Form'!$CO739=\"No\"),\"-\",IF(AND($S732=\"Y\",'Enrollment Form'!$CO739=\"Yes\",'Enrollment Form'!$CP739<>\"\"),\"Y\",\"N\"))))","v":""},{"$f":"IF(OR('Enrollment Form'!$AV739=\"Yes\",'Enrollment Form'!$AV739=\"\"),\"-\",IF(AND('Enrollment Form'!$AV739=\"No\",ISERROR(FIND(\"HMO\",VLOOKUP('Enrollment Form'!G739,'Enrollment Form'!H$11:J$1000,3,FALSE),1))=FALSE,COUNTA('Enrollment Form'!$AW739:$AZ739)=4),\"Y\",\"N\"))","v":"-"},{"$f":"IF($B732=\"N\",\"\",IF('Enrollment Form'!$B739=\"Subscriber\",\"-\",IF(COUNTA('Enrollment Form'!$BE739,'Enrollment Form'!$BG739)=2,\"Y\",\"N\")))","v":""},{"$f":"IF($B732=\"N\",\"\",IF(OR('Enrollment Form'!$AU739=\"\",'Enrollment Form'!$AU739=\"No\"),\"-\",IF(AND('Enrollment Form'!$AU739=\"Yes\",COUNTA('Enrollment Form'!$CK739)=1),\"Y\",\"N\")))","v":""},{"$f":"IF(OR('Enrollment Form'!$CK739=\"\",'Enrollment Form'!$CK739=\"No\"),\"-\",IF(COUNTA('Enrollment Form'!$CM739:$CN739)=2,\"Y\",\"N\"))","v":"-"},{"$f":"IF($B732=\"N\",\"\",IF(COUNTIF('Enrollment Form'!$CZ739:$DO739,\"Other\")=COUNTA('Enrollment Form'!$DF739,'Enrollment Form'!$DA739,'Enrollment Form'!$DK739,'Enrollment Form'!$DP739),\"Y\",\"N\"))","v":""},{"$f":"IF($B732=\"N\",\"\",IF(OR('Enrollment Form'!B739<>\"Subscriber\",'Enrollment Form'!C739=\"ROC\",COUNTIF('Enrollment Form'!AS739:AT739,\"Yes\")>=1),\"-\",IF(AND('Enrollment Form'!C739=\"Enroll\",COUNTIF('Enrollment Form'!AS739:AT739,\"No\")=2,'Enrollment Form'!AU739=\"\"),\"N\",\"Y\")))","v":""},{"$f":"IF(OR(B732=\"N\",'Enrollment Form'!B739<>\"Subscriber\",'Enrollment Form'!C739=\"ROC\",'Enrollment Form'!O739<>\"Multiple of Salary\"),\"-\",IF(COUNTA('Enrollment Form'!T739:U739)<2,\"N\",\"Y\"))","v":"-"},{"$f":"IF(B732=\"N\",\"\",IF(OR('Enrollment Form'!C739=\"ROC\",'Enrollment Form'!B739<>\"Subscriber\",'Enrollment Form'!O739=\"Waive\",'Enrollment Form'!O739=\"\"),\"-\",IF('Enrollment Form'!P739=\"\",\"N\",\"Y\")))","v":""},{"$f":"IF($B732=\"N\",\"\",IF(AND('Enrollment Form'!$C739=\"ROC\",'Enrollment Form'!$DS739<>\"\"),\"Y\",IF(AND('Enrollment Form'!$C739=\"ROC\",'Enrollment Form'!$DS739=\"\"),\"N\",IF(AND('Enrollment Form'!$C739=\"Enroll\",'Enrollment Form'!$B739=\"Subscriber\",'Enrollment Form'!$CQ739=\"No\",'Enrollment Form'!$DS739=\"\"),\"N\",IF(AND('Enrollment Form'!$C739=\"Enroll\",'Enrollment Form'!$B739=\"Subscriber\",'Enrollment Form'!$CQ739=\"Yes\"),\"-\",\"Y\")))))","v":""},{"$f":"IF($B732=\"N\",\"\",IF(AND('Enrollment Form'!$C739=\"ROC\",'Enrollment Form'!$DT739<>\"\"),\"Y\",IF(AND('Enrollment Form'!$C739=\"ROC\",'Enrollment Form'!$DT739=\"\"),\"N\",IF(AND('Enrollment Form'!$C739=\"Enroll\",'Enrollment Form'!$B739=\"Subscriber\",'Enrollment Form'!$CQ739=\"No\",'Enrollment Form'!$DT739=\"\"),\"N\",IF(AND('Enrollment Form'!$C739=\"Enroll\",'Enrollment Form'!$B739=\"Subscriber\",'Enrollment Form'!$CQ739=\"Yes\"),\"-\",\"Y\")))))","v":""},{"$f":"IF('Enrollment Form'!AH739=\"\",\"\",IF(ISERROR(SEARCH(\".\",'Enrollment Form'!AH739,SEARCH(\"@\",'Enrollment Form'!AH739))),\"N\",\"Y\"))","v":""},{"$f":"IF(OR($B732=\"N\",'Enrollment Form'!$G739=\"\"),\"\",IF('Enrollment Form'!$B739<>\"Subscriber\",\"-\",IF(COUNTIF('Enrollment Form'!$AS739:$AT739,\"Yes\")=2,\"N\",\"Y\")))","v":""},{"$f":"IF(OR('Enrollment Form'!$CC739=\"\",'Enrollment Form'!$CC739=\"No\"),\"-\",IF(AND('Enrollment Form'!$CC739=\"Yes\",'Enrollment Form'!$CD739=\"\"),\"N\",\"Y\"))","v":"-"},{"$f":"IF(OR('Enrollment Form'!$CE739=\"\",'Enrollment Form'!$CE739=\"No\"),\"-\",IF(AND('Enrollment Form'!$CE739=\"Yes\",'Enrollment Form'!$CF739=\"\"),\"N\",\"Y\"))","v":"-"},{"$f":"IF(OR('Enrollment Form'!$CG739=\"\",'Enrollment Form'!$CG739=\"No\"),\"-\",IF(AND('Enrollment Form'!$CG739=\"Yes\",'Enrollment Form'!$CH739=\"\"),\"N\",\"Y\"))","v":"-"},{"$f":"IF(OR('Enrollment Form'!$CG739=\"\",'Enrollment Form'!$CG739=\"No\"),\"-\",IF(AND('Enrollment Form'!$CG739=\"Yes\",'Enrollment Form'!$CI739=\"\"),\"N\",\"Y\"))","v":"-"},{"$f":"IF('Enrollment Form'!B739<>\"Subscriber\",\"-\",IF(AND('Enrollment Form'!B739=\"Subscriber\",'Enrollment Form'!C739=\"Enroll\",'Enrollment Form'!AA739=\"\"),\"N\",\"Y\"))","v":"-"},{"$f":"IF(OR('Enrollment Form'!B739=\"Subscriber\",'Enrollment Form'!B739=\"\"),\"-\",IF('Enrollment Form'!BI739=\"\",\"N\",\"Y\"))","v":"-"},{"$f":"IF('Enrollment Form'!B739<>\"Subscriber\",\"-\",IF(AND('Enrollment Form'!B739=\"Subscriber\",'Enrollment Form'!G739=\"\"),\"N\",\"Y\"))","v":"-"},{"$f":"IF('Enrollment Form'!A739=\"\",\"\",IF('Enrollment Form'!B739=\"Subscriber\",\"-\",IF(AND('Enrollment Form'!B739<>\"Subscriber\",'Enrollment Form'!G739='Enrollment Form'!H739),\"N\",\"Y\")))","v":""},0]
[740,{"$f":"IF('Enrollment Form'!$A740<>\"\",\"Y\",\"N\")","v":"N"},{"$f":"IF(AND('Enrollment Form'!$B740=\"\",'Enrollment Form'!$C740<>\"\"),\"N\",IF($B733=\"N\",\"\",\"Y\"))","v":""},{"$f":"IF(OR($B733=\"N\",'Enrollment Form'!G740=\"\"),\"\",IF('Enrollment Form'!$B740<>\"Subscriber\",\"\",IF('Enrollment Form'!$G740='Enrollment Form'!$H740,\"Y\",\"N\")))","v":""},{"$f":"IF($B733=\"N\",\"\",IF(AND(COUNTIFS('Enrollment Form'!$H$11:$H$1000,'Enrollment Form'!$H740,'Enrollment Form'!$B$11:$B$1000,'Enrollment Form'!$B740)>1,'Enrollment Form'!$H740<>\"\"),\"N\",\"Y\"))","v":""},{"$f":"IF($B733=\"N\",\"\",IF(LEN('Enrollment Form'!$Y740)=0,\"\",IF(LEN('Enrollment Form'!$Y740)<>5,\"N\",\"Y\")))","v":""},{"$f":"IF($B733=\"N\",\"\",IF(LEN('Enrollment Form'!$AD740=0),\"\",IF(LEN('Enrollment Form'!$AD740)<>5,\"N\",\"Y\")))","v":""},{"$f":"IF($B733=\"N\",\"\",IF(LEN('Enrollment Form'!$BL740=0),\"\",IF(LEN('Enrollment Form'!$BL740)<>5,\"N\",\"Y\")))","v":""},{"$f":"IF($B733=\"N\",\"\",IF(LEN('Enrollment Form'!$AE740)=0,\"\",IF(LEN('Enrollment Form'!$AE740)<>10,\"N\",\"Y\")))","v":""},{"$f":"IF($B733=\"N\",\"\",IF(LEN('Enrollment Form'!$AF740)=0,\"\",IF(LEN('Enrollment Form'!$AF740)<>10,\"N\",\"Y\")))","v":""},{"$f":"IF('Enrollment Form'!$O740<>\"Graded\",\"-\",IF(AND('Enrollment Form'!$O740=\"Graded\",'Enrollment Form'!$AO740<>\"\"),\"Y\",\"N\"))","v":"-"},{"$f":"IF($B733=\"N\",\"\",IF(OR('Enrollment Form'!$B740<>\"Subscriber\",'Enrollment Form'!$C740=\"ROC\"),\"-\",IF(AND('Enrollment Form'!$B740=\"Subscriber\",'Enrollment Form'!$C740=\"Enroll\",'Enrollment Form'!$AJ740<>\"\"),\"Y\",\"N\")))","v":""},{"$f":"IF($B733=\"N\",\"\",IF(OR('Enrollment Form'!$B740<>\"Subscriber\",'Enrollment Form'!$C740=\"ROC\"),\"-\",IF(AND('Enrollment Form'!$B740=\"Subscriber\",'Enrollment Form'!$C740=\"Enroll\",'Enrollment Form'!$AK740<>\"\"),\"Y\",\"N\")))","v":""},{"$f":"IF($B733=\"N\",\"\",IF(OR('Enrollment Form'!$B740<>\"Subscriber\",'Enrollment Form'!$C740=\"ROC\"),\"-\",IF(AND('Enrollment Form'!$B740=\"Subscriber\",'Enrollment Form'!$C740=\"Enroll\",'Enrollment Form'!$AL740<>\"\"),\"Y\",\"N\")))","v":""},{"$f":"IF($B733=\"N\",\"\",IF(OR('Enrollment Form'!$B740<>\"Subscriber\",'Enrollment Form'!$C740=\"ROC\"),\"-\",IF(AND('Enrollment Form'!$B740=\"Subscriber\",'Enrollment Form'!$C740=\"Enroll\",'Enrollment Form'!$AM740<>\"\"),\"Y\",\"N\")))","v":""},{"$f":"IF($B733=\"N\",\"\",IF(OR('Enrollment Form'!$B740<>\"Subscriber\",'Enrollment Form'!$C740=\"ROC\"),\"-\",IF(AND('Enrollment Form'!$B740=\"Subscriber\",'Enrollment Form'!$C740=\"Enroll\",'Enrollment Form'!$AN740<>\"\"),\"Y\",\"N\")))","v":""},{"$f":"IF($B733=\"N\",\"\",IF(OR('Enrollment Form'!$B740<>\"Subscriber\",'Enrollment Form'!$C740=\"ROC\"),\"-\",IF(AND('Enrollment Form'!$B740=\"Subscriber\",'Enrollment Form'!$C740=\"Enroll\",'Enrollment Form'!$AP740<>\"\"),\"Y\",\"N\")))","v":""},{"$f":"IF($B733=\"N\",\"\",IF($Q733=\"-\",\"-\",IF(AND($Q733=\"Y\",'Enrollment Form'!$AP740=\"No\"),\"-\",IF(AND($Q733=\"Y\",'Enrollment Form'!$AP740=\"Yes\",'Enrollment Form'!$AQ740<>\"\"),\"Y\",\"N\"))))","v":""},{"$f":"IF($B733=\"N\",\"\",IF(OR('Enrollment Form'!$B740<>\"Subscriber\",'Enrollment Form'!$C740=\"ROC\"),\"-\",IF(AND('Enrollment Form'!$B740=\"Subscriber\",'Enrollment Form'!$C740=\"Enroll\",'Enrollment Form'!$CO740<>\"\"),\"Y\",\"N\")))","v":""},{"$f":"IF($B733=\"N\",\"\",IF($S733=\"-\",\"-\",IF(AND($S733=\"Y\",'Enrollment Form'!$CO740=\"No\"),\"-\",IF(AND($S733=\"Y\",'Enrollment Form'!$CO740=\"Yes\",'Enrollment Form'!$CP740<>\"\"),\"Y\",\"N\"))))","v":""},{"$f":"IF(OR('Enrollment Form'!$AV740=\"Yes\",'Enrollment Form'!$AV740=\"\"),\"-\",IF(AND('Enrollment Form'!$AV740=\"No\",ISERROR(FIND(\"HMO\",VLOOKUP('Enrollment Form'!G740,'Enrollment Form'!H$11:J$1000,3,FALSE),1))=FALSE,COUNTA('Enrollment Form'!$AW740:$AZ740)=4),\"Y\",\"N\"))","v":"-"},{"$f":"IF($B733=\"N\",\"\",IF('Enrollment Form'!$B740=\"Subscriber\",\"-\",IF(COUNTA('Enrollment Form'!$BE740,'Enrollment Form'!$BG740)=2,\"Y\",\"N\")))","v":""},{"$f":"IF($B733=\"N\",\"\",IF(OR('Enrollment Form'!$AU740=\"\",'Enrollment Form'!$AU740=\"No\"),\"-\",IF(AND('Enrollment Form'!$AU740=\"Yes\",COUNTA('Enrollment Form'!$CK740)=1),\"Y\",\"N\")))","v":""},{"$f":"IF(OR('Enrollment Form'!$CK740=\"\",'Enrollment Form'!$CK740=\"No\"),\"-\",IF(COUNTA('Enrollment Form'!$CM740:$CN740)=2,\"Y\",\"N\"))","v":"-"},{"$f":"IF($B733=\"N\",\"\",IF(COUNTIF('Enrollment Form'!$CZ740:$DO740,\"Other\")=COUNTA('Enrollment Form'!$DF740,'Enrollment Form'!$DA740,'Enrollment Form'!$DK740,'Enrollment Form'!$DP740),\"Y\",\"N\"))","v":""},{"$f":"IF($B733=\"N\",\"\",IF(OR('Enrollment Form'!B740<>\"Subscriber\",'Enrollment Form'!C740=\"ROC\",COUNTIF('Enrollment Form'!AS740:AT740,\"Yes\")>=1),\"-\",IF(AND('Enrollment Form'!C740=\"Enroll\",COUNTIF('Enrollment Form'!AS740:AT740,\"No\")=2,'Enrollment Form'!AU740=\"\"),\"N\",\"Y\")))","v":""},{"$f":"IF(OR(B733=\"N\",'Enrollment Form'!B740<>\"Subscriber\",'Enrollment Form'!C740=\"ROC\",'Enrollment Form'!O740<>\"Multiple of Salary\"),\"-\",IF(COUNTA('Enrollment Form'!T740:U740)<2,\"N\",\"Y\"))","v":"-"},{"$f":"IF(B733=\"N\",\"\",IF(OR('Enrollment Form'!C740=\"ROC\",'Enrollment Form'!B740<>\"Subscriber\",'Enrollment Form'!O740=\"Waive\",'Enrollment Form'!O740=\"\"),\"-\",IF('Enrollment Form'!P740=\"\",\"N\",\"Y\")))","v":""},{"$f":"IF($B733=\"N\",\"\",IF(AND('Enrollment Form'!$C740=\"ROC\",'Enrollment Form'!$DS740<>\"\"),\"Y\",IF(AND('Enrollment Form'!$C740=\"ROC\",'Enrollment Form'!$DS740=\"\"),\"N\",IF(AND('Enrollment Form'!$C740=\"Enroll\",'Enrollment Form'!$B740=\"Subscriber\",'Enrollment Form'!$CQ740=\"No\",'Enrollment Form'!$DS740=\"\"),\"N\",IF(AND('Enrollment Form'!$C740=\"Enroll\",'Enrollment Form'!$B740=\"Subscriber\",'Enrollment Form'!$CQ740=\"Yes\"),\"-\",\"Y\")))))","v":""},{"$f":"IF($B733=\"N\",\"\",IF(AND('Enrollment Form'!$C740=\"ROC\",'Enrollment Form'!$DT740<>\"\"),\"Y\",IF(AND('Enrollment Form'!$C740=\"ROC\",'Enrollment Form'!$DT740=\"\"),\"N\",IF(AND('Enrollment Form'!$C740=\"Enroll\",'Enrollment Form'!$B740=\"Subscriber\",'Enrollment Form'!$CQ740=\"No\",'Enrollment Form'!$DT740=\"\"),\"N\",IF(AND('Enrollment Form'!$C740=\"Enroll\",'Enrollment Form'!$B740=\"Subscriber\",'Enrollment Form'!$CQ740=\"Yes\"),\"-\",\"Y\")))))","v":""},{"$f":"IF('Enrollment Form'!AH740=\"\",\"\",IF(ISERROR(SEARCH(\".\",'Enrollment Form'!AH740,SEARCH(\"@\",'Enrollment Form'!AH740))),\"N\",\"Y\"))","v":""},{"$f":"IF(OR($B733=\"N\",'Enrollment Form'!$G740=\"\"),\"\",IF('Enrollment Form'!$B740<>\"Subscriber\",\"-\",IF(COUNTIF('Enrollment Form'!$AS740:$AT740,\"Yes\")=2,\"N\",\"Y\")))","v":""},{"$f":"IF(OR('Enrollment Form'!$CC740=\"\",'Enrollment Form'!$CC740=\"No\"),\"-\",IF(AND('Enrollment Form'!$CC740=\"Yes\",'Enrollment Form'!$CD740=\"\"),\"N\",\"Y\"))","v":"-"},{"$f":"IF(OR('Enrollment Form'!$CE740=\"\",'Enrollment Form'!$CE740=\"No\"),\"-\",IF(AND('Enrollment Form'!$CE740=\"Yes\",'Enrollment Form'!$CF740=\"\"),\"N\",\"Y\"))","v":"-"},{"$f":"IF(OR('Enrollment Form'!$CG740=\"\",'Enrollment Form'!$CG740=\"No\"),\"-\",IF(AND('Enrollment Form'!$CG740=\"Yes\",'Enrollment Form'!$CH740=\"\"),\"N\",\"Y\"))","v":"-"},{"$f":"IF(OR('Enrollment Form'!$CG740=\"\",'Enrollment Form'!$CG740=\"No\"),\"-\",IF(AND('Enrollment Form'!$CG740=\"Yes\",'Enrollment Form'!$CI740=\"\"),\"N\",\"Y\"))","v":"-"},{"$f":"IF('Enrollment Form'!B740<>\"Subscriber\",\"-\",IF(AND('Enrollment Form'!B740=\"Subscriber\",'Enrollment Form'!C740=\"Enroll\",'Enrollment Form'!AA740=\"\"),\"N\",\"Y\"))","v":"-"},{"$f":"IF(OR('Enrollment Form'!B740=\"Subscriber\",'Enrollment Form'!B740=\"\"),\"-\",IF('Enrollment Form'!BI740=\"\",\"N\",\"Y\"))","v":"-"},{"$f":"IF('Enrollment Form'!B740<>\"Subscriber\",\"-\",IF(AND('Enrollment Form'!B740=\"Subscriber\",'Enrollment Form'!G740=\"\"),\"N\",\"Y\"))","v":"-"},{"$f":"IF('Enrollment Form'!A740=\"\",\"\",IF('Enrollment Form'!B740=\"Subscriber\",\"-\",IF(AND('Enrollment Form'!B740<>\"Subscriber\",'Enrollment Form'!G740='Enrollment Form'!H740),\"N\",\"Y\")))","v":""},0]
[741,{"$f":"IF('Enrollment Form'!$A741<>\"\",\"Y\",\"N\")","v":"N"},{"$f":"IF(AND('Enrollment Form'!$B741=\"\",'Enrollment Form'!$C741<>\"\"),\"N\",IF($B734=\"N\",\"\",\"Y\"))","v":""},{"$f":"IF(OR($B734=\"N\",'Enrollment Form'!G741=\"\"),\"\",IF('Enrollment Form'!$B741<>\"Subscriber\",\"\",IF('Enrollment Form'!$G741='Enrollment Form'!$H741,\"Y\",\"N\")))","v":""},{"$f":"IF($B734=\"N\",\"\",IF(AND(COUNTIFS('Enrollment Form'!$H$11:$H$1000,'Enrollment Form'!$H741,'Enrollment Form'!$B$11:$B$1000,'Enrollment Form'!$B741)>1,'Enrollment Form'!$H741<>\"\"),\"N\",\"Y\"))","v":""},{"$f":"IF($B734=\"N\",\"\",IF(LEN('Enrollment Form'!$Y741)=0,\"\",IF(LEN('Enrollment Form'!$Y741)<>5,\"N\",\"Y\")))","v":""},{"$f":"IF($B734=\"N\",\"\",IF(LEN('Enrollment Form'!$AD741=0),\"\",IF(LEN('Enrollment Form'!$AD741)<>5,\"N\",\"Y\")))","v":""},{"$f":"IF($B734=\"N\",\"\",IF(LEN('Enrollment Form'!$BL741=0),\"\",IF(LEN('Enrollment Form'!$BL741)<>5,\"N\",\"Y\")))","v":""},{"$f":"IF($B734=\"N\",\"\",IF(LEN('Enrollment Form'!$AE741)=0,\"\",IF(LEN('Enrollment Form'!$AE741)<>10,\"N\",\"Y\")))","v":""},{"$f":"IF($B734=\"N\",\"\",IF(LEN('Enrollment Form'!$AF741)=0,\"\",IF(LEN('Enrollment Form'!$AF741)<>10,\"N\",\"Y\")))","v":""},{"$f":"IF('Enrollment Form'!$O741<>\"Graded\",\"-\",IF(AND('Enrollment Form'!$O741=\"Graded\",'Enrollment Form'!$AO741<>\"\"),\"Y\",\"N\"))","v":"-"},{"$f":"IF($B734=\"N\",\"\",IF(OR('Enrollment Form'!$B741<>\"Subscriber\",'Enrollment Form'!$C741=\"ROC\"),\"-\",IF(AND('Enrollment Form'!$B741=\"Subscriber\",'Enrollment Form'!$C741=\"Enroll\",'Enrollment Form'!$AJ741<>\"\"),\"Y\",\"N\")))","v":""},{"$f":"IF($B734=\"N\",\"\",IF(OR('Enrollment Form'!$B741<>\"Subscriber\",'Enrollment Form'!$C741=\"ROC\"),\"-\",IF(AND('Enrollment Form'!$B741=\"Subscriber\",'Enrollment Form'!$C741=\"Enroll\",'Enrollment Form'!$AK741<>\"\"),\"Y\",\"N\")))","v":""},{"$f":"IF($B734=\"N\",\"\",IF(OR('Enrollment Form'!$B741<>\"Subscriber\",'Enrollment Form'!$C741=\"ROC\"),\"-\",IF(AND('Enrollment Form'!$B741=\"Subscriber\",'Enrollment Form'!$C741=\"Enroll\",'Enrollment Form'!$AL741<>\"\"),\"Y\",\"N\")))","v":""},{"$f":"IF($B734=\"N\",\"\",IF(OR('Enrollment Form'!$B741<>\"Subscriber\",'Enrollment Form'!$C741=\"ROC\"),\"-\",IF(AND('Enrollment Form'!$B741=\"Subscriber\",'Enrollment Form'!$C741=\"Enroll\",'Enrollment Form'!$AM741<>\"\"),\"Y\",\"N\")))","v":""},{"$f":"IF($B734=\"N\",\"\",IF(OR('Enrollment Form'!$B741<>\"Subscriber\",'Enrollment Form'!$C741=\"ROC\"),\"-\",IF(AND('Enrollment Form'!$B741=\"Subscriber\",'Enrollment Form'!$C741=\"Enroll\",'Enrollment Form'!$AN741<>\"\"),\"Y\",\"N\")))","v":""},{"$f":"IF($B734=\"N\",\"\",IF(OR('Enrollment Form'!$B741<>\"Subscriber\",'Enrollment Form'!$C741=\"ROC\"),\"-\",IF(AND('Enrollment Form'!$B741=\"Subscriber\",'Enrollment Form'!$C741=\"Enroll\",'Enrollment Form'!$AP741<>\"\"),\"Y\",\"N\")))","v":""},{"$f":"IF($B734=\"N\",\"\",IF($Q734=\"-\",\"-\",IF(AND($Q734=\"Y\",'Enrollment Form'!$AP741=\"No\"),\"-\",IF(AND($Q734=\"Y\",'Enrollment Form'!$AP741=\"Yes\",'Enrollment Form'!$AQ741<>\"\"),\"Y\",\"N\"))))","v":""},{"$f":"IF($B734=\"N\",\"\",IF(OR('Enrollment Form'!$B741<>\"Subscriber\",'Enrollment Form'!$C741=\"ROC\"),\"-\",IF(AND('Enrollment Form'!$B741=\"Subscriber\",'Enrollment Form'!$C741=\"Enroll\",'Enrollment Form'!$CO741<>\"\"),\"Y\",\"N\")))","v":""},{"$f":"IF($B734=\"N\",\"\",IF($S734=\"-\",\"-\",IF(AND($S734=\"Y\",'Enrollment Form'!$CO741=\"No\"),\"-\",IF(AND($S734=\"Y\",'Enrollment Form'!$CO741=\"Yes\",'Enrollment Form'!$CP741<>\"\"),\"Y\",\"N\"))))","v":""},{"$f":"IF(OR('Enrollment Form'!$AV741=\"Yes\",'Enrollment Form'!$AV741=\"\"),\"-\",IF(AND('Enrollment Form'!$AV741=\"No\",ISERROR(FIND(\"HMO\",VLOOKUP('Enrollment Form'!G741,'Enrollment Form'!H$11:J$1000,3,FALSE),1))=FALSE,COUNTA('Enrollment Form'!$AW741:$AZ741)=4),\"Y\",\"N\"))","v":"-"},{"$f":"IF($B734=\"N\",\"\",IF('Enrollment Form'!$B741=\"Subscriber\",\"-\",IF(COUNTA('Enrollment Form'!$BE741,'Enrollment Form'!$BG741)=2,\"Y\",\"N\")))","v":""},{"$f":"IF($B734=\"N\",\"\",IF(OR('Enrollment Form'!$AU741=\"\",'Enrollment Form'!$AU741=\"No\"),\"-\",IF(AND('Enrollment Form'!$AU741=\"Yes\",COUNTA('Enrollment Form'!$CK741)=1),\"Y\",\"N\")))","v":""},{"$f":"IF(OR('Enrollment Form'!$CK741=\"\",'Enrollment Form'!$CK741=\"No\"),\"-\",IF(COUNTA('Enrollment Form'!$CM741:$CN741)=2,\"Y\",\"N\"))","v":"-"},{"$f":"IF($B734=\"N\",\"\",IF(COUNTIF('Enrollment Form'!$CZ741:$DO741,\"Other\")=COUNTA('Enrollment Form'!$DF741,'Enrollment Form'!$DA741,'Enrollment Form'!$DK741,'Enrollment Form'!$DP741),\"Y\",\"N\"))","v":""},{"$f":"IF($B734=\"N\",\"\",IF(OR('Enrollment Form'!B741<>\"Subscriber\",'Enrollment Form'!C741=\"ROC\",COUNTIF('Enrollment Form'!AS741:AT741,\"Yes\")>=1),\"-\",IF(AND('Enrollment Form'!C741=\"Enroll\",COUNTIF('Enrollment Form'!AS741:AT741,\"No\")=2,'Enrollment Form'!AU741=\"\"),\"N\",\"Y\")))","v":""},{"$f":"IF(OR(B734=\"N\",'Enrollment Form'!B741<>\"Subscriber\",'Enrollment Form'!C741=\"ROC\",'Enrollment Form'!O741<>\"Multiple of Salary\"),\"-\",IF(COUNTA('Enrollment Form'!T741:U741)<2,\"N\",\"Y\"))","v":"-"},{"$f":"IF(B734=\"N\",\"\",IF(OR('Enrollment Form'!C741=\"ROC\",'Enrollment Form'!B741<>\"Subscriber\",'Enrollment Form'!O741=\"Waive\",'Enrollment Form'!O741=\"\"),\"-\",IF('Enrollment Form'!P741=\"\",\"N\",\"Y\")))","v":""},{"$f":"IF($B734=\"N\",\"\",IF(AND('Enrollment Form'!$C741=\"ROC\",'Enrollment Form'!$DS741<>\"\"),\"Y\",IF(AND('Enrollment Form'!$C741=\"ROC\",'Enrollment Form'!$DS741=\"\"),\"N\",IF(AND('Enrollment Form'!$C741=\"Enroll\",'Enrollment Form'!$B741=\"Subscriber\",'Enrollment Form'!$CQ741=\"No\",'Enrollment Form'!$DS741=\"\"),\"N\",IF(AND('Enrollment Form'!$C741=\"Enroll\",'Enrollment Form'!$B741=\"Subscriber\",'Enrollment Form'!$CQ741=\"Yes\"),\"-\",\"Y\")))))","v":""},{"$f":"IF($B734=\"N\",\"\",IF(AND('Enrollment Form'!$C741=\"ROC\",'Enrollment Form'!$DT741<>\"\"),\"Y\",IF(AND('Enrollment Form'!$C741=\"ROC\",'Enrollment Form'!$DT741=\"\"),\"N\",IF(AND('Enrollment Form'!$C741=\"Enroll\",'Enrollment Form'!$B741=\"Subscriber\",'Enrollment Form'!$CQ741=\"No\",'Enrollment Form'!$DT741=\"\"),\"N\",IF(AND('Enrollment Form'!$C741=\"Enroll\",'Enrollment Form'!$B741=\"Subscriber\",'Enrollment Form'!$CQ741=\"Yes\"),\"-\",\"Y\")))))","v":""},{"$f":"IF('Enrollment Form'!AH741=\"\",\"\",IF(ISERROR(SEARCH(\".\",'Enrollment Form'!AH741,SEARCH(\"@\",'Enrollment Form'!AH741))),\"N\",\"Y\"))","v":""},{"$f":"IF(OR($B734=\"N\",'Enrollment Form'!$G741=\"\"),\"\",IF('Enrollment Form'!$B741<>\"Subscriber\",\"-\",IF(COUNTIF('Enrollment Form'!$AS741:$AT741,\"Yes\")=2,\"N\",\"Y\")))","v":""},{"$f":"IF(OR('Enrollment Form'!$CC741=\"\",'Enrollment Form'!$CC741=\"No\"),\"-\",IF(AND('Enrollment Form'!$CC741=\"Yes\",'Enrollment Form'!$CD741=\"\"),\"N\",\"Y\"))","v":"-"},{"$f":"IF(OR('Enrollment Form'!$CE741=\"\",'Enrollment Form'!$CE741=\"No\"),\"-\",IF(AND('Enrollment Form'!$CE741=\"Yes\",'Enrollment Form'!$CF741=\"\"),\"N\",\"Y\"))","v":"-"},{"$f":"IF(OR('Enrollment Form'!$CG741=\"\",'Enrollment Form'!$CG741=\"No\"),\"-\",IF(AND('Enrollment Form'!$CG741=\"Yes\",'Enrollment Form'!$CH741=\"\"),\"N\",\"Y\"))","v":"-"},{"$f":"IF(OR('Enrollment Form'!$CG741=\"\",'Enrollment Form'!$CG741=\"No\"),\"-\",IF(AND('Enrollment Form'!$CG741=\"Yes\",'Enrollment Form'!$CI741=\"\"),\"N\",\"Y\"))","v":"-"},{"$f":"IF('Enrollment Form'!B741<>\"Subscriber\",\"-\",IF(AND('Enrollment Form'!B741=\"Subscriber\",'Enrollment Form'!C741=\"Enroll\",'Enrollment Form'!AA741=\"\"),\"N\",\"Y\"))","v":"-"},{"$f":"IF(OR('Enrollment Form'!B741=\"Subscriber\",'Enrollment Form'!B741=\"\"),\"-\",IF('Enrollment Form'!BI741=\"\",\"N\",\"Y\"))","v":"-"},{"$f":"IF('Enrollment Form'!B741<>\"Subscriber\",\"-\",IF(AND('Enrollment Form'!B741=\"Subscriber\",'Enrollment Form'!G741=\"\"),\"N\",\"Y\"))","v":"-"},{"$f":"IF('Enrollment Form'!A741=\"\",\"\",IF('Enrollment Form'!B741=\"Subscriber\",\"-\",IF(AND('Enrollment Form'!B741<>\"Subscriber\",'Enrollment Form'!G741='Enrollment Form'!H741),\"N\",\"Y\")))","v":""},0]
[742,{"$f":"IF('Enrollment Form'!$A742<>\"\",\"Y\",\"N\")","v":"N"},{"$f":"IF(AND('Enrollment Form'!$B742=\"\",'Enrollment Form'!$C742<>\"\"),\"N\",IF($B735=\"N\",\"\",\"Y\"))","v":""},{"$f":"IF(OR($B735=\"N\",'Enrollment Form'!G742=\"\"),\"\",IF('Enrollment Form'!$B742<>\"Subscriber\",\"\",IF('Enrollment Form'!$G742='Enrollment Form'!$H742,\"Y\",\"N\")))","v":""},{"$f":"IF($B735=\"N\",\"\",IF(AND(COUNTIFS('Enrollment Form'!$H$11:$H$1000,'Enrollment Form'!$H742,'Enrollment Form'!$B$11:$B$1000,'Enrollment Form'!$B742)>1,'Enrollment Form'!$H742<>\"\"),\"N\",\"Y\"))","v":""},{"$f":"IF($B735=\"N\",\"\",IF(LEN('Enrollment Form'!$Y742)=0,\"\",IF(LEN('Enrollment Form'!$Y742)<>5,\"N\",\"Y\")))","v":""},{"$f":"IF($B735=\"N\",\"\",IF(LEN('Enrollment Form'!$AD742=0),\"\",IF(LEN('Enrollment Form'!$AD742)<>5,\"N\",\"Y\")))","v":""},{"$f":"IF($B735=\"N\",\"\",IF(LEN('Enrollment Form'!$BL742=0),\"\",IF(LEN('Enrollment Form'!$BL742)<>5,\"N\",\"Y\")))","v":""},{"$f":"IF($B735=\"N\",\"\",IF(LEN('Enrollment Form'!$AE742)=0,\"\",IF(LEN('Enrollment Form'!$AE742)<>10,\"N\",\"Y\")))","v":""},{"$f":"IF($B735=\"N\",\"\",IF(LEN('Enrollment Form'!$AF742)=0,\"\",IF(LEN('Enrollment Form'!$AF742)<>10,\"N\",\"Y\")))","v":""},{"$f":"IF('Enrollment Form'!$O742<>\"Graded\",\"-\",IF(AND('Enrollment Form'!$O742=\"Graded\",'Enrollment Form'!$AO742<>\"\"),\"Y\",\"N\"))","v":"-"},{"$f":"IF($B735=\"N\",\"\",IF(OR('Enrollment Form'!$B742<>\"Subscriber\",'Enrollment Form'!$C742=\"ROC\"),\"-\",IF(AND('Enrollment Form'!$B742=\"Subscriber\",'Enrollment Form'!$C742=\"Enroll\",'Enrollment Form'!$AJ742<>\"\"),\"Y\",\"N\")))","v":""},{"$f":"IF($B735=\"N\",\"\",IF(OR('Enrollment Form'!$B742<>\"Subscriber\",'Enrollment Form'!$C742=\"ROC\"),\"-\",IF(AND('Enrollment Form'!$B742=\"Subscriber\",'Enrollment Form'!$C742=\"Enroll\",'Enrollment Form'!$AK742<>\"\"),\"Y\",\"N\")))","v":""},{"$f":"IF($B735=\"N\",\"\",IF(OR('Enrollment Form'!$B742<>\"Subscriber\",'Enrollment Form'!$C742=\"ROC\"),\"-\",IF(AND('Enrollment Form'!$B742=\"Subscriber\",'Enrollment Form'!$C742=\"Enroll\",'Enrollment Form'!$AL742<>\"\"),\"Y\",\"N\")))","v":""},{"$f":"IF($B735=\"N\",\"\",IF(OR('Enrollment Form'!$B742<>\"Subscriber\",'Enrollment Form'!$C742=\"ROC\"),\"-\",IF(AND('Enrollment Form'!$B742=\"Subscriber\",'Enrollment Form'!$C742=\"Enroll\",'Enrollment Form'!$AM742<>\"\"),\"Y\",\"N\")))","v":""},{"$f":"IF($B735=\"N\",\"\",IF(OR('Enrollment Form'!$B742<>\"Subscriber\",'Enrollment Form'!$C742=\"ROC\"),\"-\",IF(AND('Enrollment Form'!$B742=\"Subscriber\",'Enrollment Form'!$C742=\"Enroll\",'Enrollment Form'!$AN742<>\"\"),\"Y\",\"N\")))","v":""},{"$f":"IF($B735=\"N\",\"\",IF(OR('Enrollment Form'!$B742<>\"Subscriber\",'Enrollment Form'!$C742=\"ROC\"),\"-\",IF(AND('Enrollment Form'!$B742=\"Subscriber\",'Enrollment Form'!$C742=\"Enroll\",'Enrollment Form'!$AP742<>\"\"),\"Y\",\"N\")))","v":""},{"$f":"IF($B735=\"N\",\"\",IF($Q735=\"-\",\"-\",IF(AND($Q735=\"Y\",'Enrollment Form'!$AP742=\"No\"),\"-\",IF(AND($Q735=\"Y\",'Enrollment Form'!$AP742=\"Yes\",'Enrollment Form'!$AQ742<>\"\"),\"Y\",\"N\"))))","v":""},{"$f":"IF($B735=\"N\",\"\",IF(OR('Enrollment Form'!$B742<>\"Subscriber\",'Enrollment Form'!$C742=\"ROC\"),\"-\",IF(AND('Enrollment Form'!$B742=\"Subscriber\",'Enrollment Form'!$C742=\"Enroll\",'Enrollment Form'!$CO742<>\"\"),\"Y\",\"N\")))","v":""},{"$f":"IF($B735=\"N\",\"\",IF($S735=\"-\",\"-\",IF(AND($S735=\"Y\",'Enrollment Form'!$CO742=\"No\"),\"-\",IF(AND($S735=\"Y\",'Enrollment Form'!$CO742=\"Yes\",'Enrollment Form'!$CP742<>\"\"),\"Y\",\"N\"))))","v":""},{"$f":"IF(OR('Enrollment Form'!$AV742=\"Yes\",'Enrollment Form'!$AV742=\"\"),\"-\",IF(AND('Enrollment Form'!$AV742=\"No\",ISERROR(FIND(\"HMO\",VLOOKUP('Enrollment Form'!G742,'Enrollment Form'!H$11:J$1000,3,FALSE),1))=FALSE,COUNTA('Enrollment Form'!$AW742:$AZ742)=4),\"Y\",\"N\"))","v":"-"},{"$f":"IF($B735=\"N\",\"\",IF('Enrollment Form'!$B742=\"Subscriber\",\"-\",IF(COUNTA('Enrollment Form'!$BE742,'Enrollment Form'!$BG742)=2,\"Y\",\"N\")))","v":""},{"$f":"IF($B735=\"N\",\"\",IF(OR('Enrollment Form'!$AU742=\"\",'Enrollment Form'!$AU742=\"No\"),\"-\",IF(AND('Enrollment Form'!$AU742=\"Yes\",COUNTA('Enrollment Form'!$CK742)=1),\"Y\",\"N\")))","v":""},{"$f":"IF(OR('Enrollment Form'!$CK742=\"\",'Enrollment Form'!$CK742=\"No\"),\"-\",IF(COUNTA('Enrollment Form'!$CM742:$CN742)=2,\"Y\",\"N\"))","v":"-"},{"$f":"IF($B735=\"N\",\"\",IF(COUNTIF('Enrollment Form'!$CZ742:$DO742,\"Other\")=COUNTA('Enrollment Form'!$DF742,'Enrollment Form'!$DA742,'Enrollment Form'!$DK742,'Enrollment Form'!$DP742),\"Y\",\"N\"))","v":""},{"$f":"IF($B735=\"N\",\"\",IF(OR('Enrollment Form'!B742<>\"Subscriber\",'Enrollment Form'!C742=\"ROC\",COUNTIF('Enrollment Form'!AS742:AT742,\"Yes\")>=1),\"-\",IF(AND('Enrollment Form'!C742=\"Enroll\",COUNTIF('Enrollment Form'!AS742:AT742,\"No\")=2,'Enrollment Form'!AU742=\"\"),\"N\",\"Y\")))","v":""},{"$f":"IF(OR(B735=\"N\",'Enrollment Form'!B742<>\"Subscriber\",'Enrollment Form'!C742=\"ROC\",'Enrollment Form'!O742<>\"Multiple of Salary\"),\"-\",IF(COUNTA('Enrollment Form'!T742:U742)<2,\"N\",\"Y\"))","v":"-"},{"$f":"IF(B735=\"N\",\"\",IF(OR('Enrollment Form'!C742=\"ROC\",'Enrollment Form'!B742<>\"Subscriber\",'Enrollment Form'!O742=\"Waive\",'Enrollment Form'!O742=\"\"),\"-\",IF('Enrollment Form'!P742=\"\",\"N\",\"Y\")))","v":""},{"$f":"IF($B735=\"N\",\"\",IF(AND('Enrollment Form'!$C742=\"ROC\",'Enrollment Form'!$DS742<>\"\"),\"Y\",IF(AND('Enrollment Form'!$C742=\"ROC\",'Enrollment Form'!$DS742=\"\"),\"N\",IF(AND('Enrollment Form'!$C742=\"Enroll\",'Enrollment Form'!$B742=\"Subscriber\",'Enrollment Form'!$CQ742=\"No\",'Enrollment Form'!$DS742=\"\"),\"N\",IF(AND('Enrollment Form'!$C742=\"Enroll\",'Enrollment Form'!$B742=\"Subscriber\",'Enrollment Form'!$CQ742=\"Yes\"),\"-\",\"Y\")))))","v":""},{"$f":"IF($B735=\"N\",\"\",IF(AND('Enrollment Form'!$C742=\"ROC\",'Enrollment Form'!$DT742<>\"\"),\"Y\",IF(AND('Enrollment Form'!$C742=\"ROC\",'Enrollment Form'!$DT742=\"\"),\"N\",IF(AND('Enrollment Form'!$C742=\"Enroll\",'Enrollment Form'!$B742=\"Subscriber\",'Enrollment Form'!$CQ742=\"No\",'Enrollment Form'!$DT742=\"\"),\"N\",IF(AND('Enrollment Form'!$C742=\"Enroll\",'Enrollment Form'!$B742=\"Subscriber\",'Enrollment Form'!$CQ742=\"Yes\"),\"-\",\"Y\")))))","v":""},{"$f":"IF('Enrollment Form'!AH742=\"\",\"\",IF(ISERROR(SEARCH(\".\",'Enrollment Form'!AH742,SEARCH(\"@\",'Enrollment Form'!AH742))),\"N\",\"Y\"))","v":""},{"$f":"IF(OR($B735=\"N\",'Enrollment Form'!$G742=\"\"),\"\",IF('Enrollment Form'!$B742<>\"Subscriber\",\"-\",IF(COUNTIF('Enrollment Form'!$AS742:$AT742,\"Yes\")=2,\"N\",\"Y\")))","v":""},{"$f":"IF(OR('Enrollment Form'!$CC742=\"\",'Enrollment Form'!$CC742=\"No\"),\"-\",IF(AND('Enrollment Form'!$CC742=\"Yes\",'Enrollment Form'!$CD742=\"\"),\"N\",\"Y\"))","v":"-"},{"$f":"IF(OR('Enrollment Form'!$CE742=\"\",'Enrollment Form'!$CE742=\"No\"),\"-\",IF(AND('Enrollment Form'!$CE742=\"Yes\",'Enrollment Form'!$CF742=\"\"),\"N\",\"Y\"))","v":"-"},{"$f":"IF(OR('Enrollment Form'!$CG742=\"\",'Enrollment Form'!$CG742=\"No\"),\"-\",IF(AND('Enrollment Form'!$CG742=\"Yes\",'Enrollment Form'!$CH742=\"\"),\"N\",\"Y\"))","v":"-"},{"$f":"IF(OR('Enrollment Form'!$CG742=\"\",'Enrollment Form'!$CG742=\"No\"),\"-\",IF(AND('Enrollment Form'!$CG742=\"Yes\",'Enrollment Form'!$CI742=\"\"),\"N\",\"Y\"))","v":"-"},{"$f":"IF('Enrollment Form'!B742<>\"Subscriber\",\"-\",IF(AND('Enrollment Form'!B742=\"Subscriber\",'Enrollment Form'!C742=\"Enroll\",'Enrollment Form'!AA742=\"\"),\"N\",\"Y\"))","v":"-"},{"$f":"IF(OR('Enrollment Form'!B742=\"Subscriber\",'Enrollment Form'!B742=\"\"),\"-\",IF('Enrollment Form'!BI742=\"\",\"N\",\"Y\"))","v":"-"},{"$f":"IF('Enrollment Form'!B742<>\"Subscriber\",\"-\",IF(AND('Enrollment Form'!B742=\"Subscriber\",'Enrollment Form'!G742=\"\"),\"N\",\"Y\"))","v":"-"},{"$f":"IF('Enrollment Form'!A742=\"\",\"\",IF('Enrollment Form'!B742=\"Subscriber\",\"-\",IF(AND('Enrollment Form'!B742<>\"Subscriber\",'Enrollment Form'!G742='Enrollment Form'!H742),\"N\",\"Y\")))","v":""},0]
[743,{"$f":"IF('Enrollment Form'!$A743<>\"\",\"Y\",\"N\")","v":"N"},{"$f":"IF(AND('Enrollment Form'!$B743=\"\",'Enrollment Form'!$C743<>\"\"),\"N\",IF($B736=\"N\",\"\",\"Y\"))","v":""},{"$f":"IF(OR($B736=\"N\",'Enrollment Form'!G743=\"\"),\"\",IF('Enrollment Form'!$B743<>\"Subscriber\",\"\",IF('Enrollment Form'!$G743='Enrollment Form'!$H743,\"Y\",\"N\")))","v":""},{"$f":"IF($B736=\"N\",\"\",IF(AND(COUNTIFS('Enrollment Form'!$H$11:$H$1000,'Enrollment Form'!$H743,'Enrollment Form'!$B$11:$B$1000,'Enrollment Form'!$B743)>1,'Enrollment Form'!$H743<>\"\"),\"N\",\"Y\"))","v":""},{"$f":"IF($B736=\"N\",\"\",IF(LEN('Enrollment Form'!$Y743)=0,\"\",IF(LEN('Enrollment Form'!$Y743)<>5,\"N\",\"Y\")))","v":""},{"$f":"IF($B736=\"N\",\"\",IF(LEN('Enrollment Form'!$AD743=0),\"\",IF(LEN('Enrollment Form'!$AD743)<>5,\"N\",\"Y\")))","v":""},{"$f":"IF($B736=\"N\",\"\",IF(LEN('Enrollment Form'!$BL743=0),\"\",IF(LEN('Enrollment Form'!$BL743)<>5,\"N\",\"Y\")))","v":""},{"$f":"IF($B736=\"N\",\"\",IF(LEN('Enrollment Form'!$AE743)=0,\"\",IF(LEN('Enrollment Form'!$AE743)<>10,\"N\",\"Y\")))","v":""},{"$f":"IF($B736=\"N\",\"\",IF(LEN('Enrollment Form'!$AF743)=0,\"\",IF(LEN('Enrollment Form'!$AF743)<>10,\"N\",\"Y\")))","v":""},{"$f":"IF('Enrollment Form'!$O743<>\"Graded\",\"-\",IF(AND('Enrollment Form'!$O743=\"Graded\",'Enrollment Form'!$AO743<>\"\"),\"Y\",\"N\"))","v":"-"},{"$f":"IF($B736=\"N\",\"\",IF(OR('Enrollment Form'!$B743<>\"Subscriber\",'Enrollment Form'!$C743=\"ROC\"),\"-\",IF(AND('Enrollment Form'!$B743=\"Subscriber\",'Enrollment Form'!$C743=\"Enroll\",'Enrollment Form'!$AJ743<>\"\"),\"Y\",\"N\")))","v":""},{"$f":"IF($B736=\"N\",\"\",IF(OR('Enrollment Form'!$B743<>\"Subscriber\",'Enrollment Form'!$C743=\"ROC\"),\"-\",IF(AND('Enrollment Form'!$B743=\"Subscriber\",'Enrollment Form'!$C743=\"Enroll\",'Enrollment Form'!$AK743<>\"\"),\"Y\",\"N\")))","v":""},{"$f":"IF($B736=\"N\",\"\",IF(OR('Enrollment Form'!$B743<>\"Subscriber\",'Enrollment Form'!$C743=\"ROC\"),\"-\",IF(AND('Enrollment Form'!$B743=\"Subscriber\",'Enrollment Form'!$C743=\"Enroll\",'Enrollment Form'!$AL743<>\"\"),\"Y\",\"N\")))","v":""},{"$f":"IF($B736=\"N\",\"\",IF(OR('Enrollment Form'!$B743<>\"Subscriber\",'Enrollment Form'!$C743=\"ROC\"),\"-\",IF(AND('Enrollment Form'!$B743=\"Subscriber\",'Enrollment Form'!$C743=\"Enroll\",'Enrollment Form'!$AM743<>\"\"),\"Y\",\"N\")))","v":""},{"$f":"IF($B736=\"N\",\"\",IF(OR('Enrollment Form'!$B743<>\"Subscriber\",'Enrollment Form'!$C743=\"ROC\"),\"-\",IF(AND('Enrollment Form'!$B743=\"Subscriber\",'Enrollment Form'!$C743=\"Enroll\",'Enrollment Form'!$AN743<>\"\"),\"Y\",\"N\")))","v":""},{"$f":"IF($B736=\"N\",\"\",IF(OR('Enrollment Form'!$B743<>\"Subscriber\",'Enrollment Form'!$C743=\"ROC\"),\"-\",IF(AND('Enrollment Form'!$B743=\"Subscriber\",'Enrollment Form'!$C743=\"Enroll\",'Enrollment Form'!$AP743<>\"\"),\"Y\",\"N\")))","v":""},{"$f":"IF($B736=\"N\",\"\",IF($Q736=\"-\",\"-\",IF(AND($Q736=\"Y\",'Enrollment Form'!$AP743=\"No\"),\"-\",IF(AND($Q736=\"Y\",'Enrollment Form'!$AP743=\"Yes\",'Enrollment Form'!$AQ743<>\"\"),\"Y\",\"N\"))))","v":""},{"$f":"IF($B736=\"N\",\"\",IF(OR('Enrollment Form'!$B743<>\"Subscriber\",'Enrollment Form'!$C743=\"ROC\"),\"-\",IF(AND('Enrollment Form'!$B743=\"Subscriber\",'Enrollment Form'!$C743=\"Enroll\",'Enrollment Form'!$CO743<>\"\"),\"Y\",\"N\")))","v":""},{"$f":"IF($B736=\"N\",\"\",IF($S736=\"-\",\"-\",IF(AND($S736=\"Y\",'Enrollment Form'!$CO743=\"No\"),\"-\",IF(AND($S736=\"Y\",'Enrollment Form'!$CO743=\"Yes\",'Enrollment Form'!$CP743<>\"\"),\"Y\",\"N\"))))","v":""},{"$f":"IF(OR('Enrollment Form'!$AV743=\"Yes\",'Enrollment Form'!$AV743=\"\"),\"-\",IF(AND('Enrollment Form'!$AV743=\"No\",ISERROR(FIND(\"HMO\",VLOOKUP('Enrollment Form'!G743,'Enrollment Form'!H$11:J$1000,3,FALSE),1))=FALSE,COUNTA('Enrollment Form'!$AW743:$AZ743)=4),\"Y\",\"N\"))","v":"-"},{"$f":"IF($B736=\"N\",\"\",IF('Enrollment Form'!$B743=\"Subscriber\",\"-\",IF(COUNTA('Enrollment Form'!$BE743,'Enrollment Form'!$BG743)=2,\"Y\",\"N\")))","v":""},{"$f":"IF($B736=\"N\",\"\",IF(OR('Enrollment Form'!$AU743=\"\",'Enrollment Form'!$AU743=\"No\"),\"-\",IF(AND('Enrollment Form'!$AU743=\"Yes\",COUNTA('Enrollment Form'!$CK743)=1),\"Y\",\"N\")))","v":""},{"$f":"IF(OR('Enrollment Form'!$CK743=\"\",'Enrollment Form'!$CK743=\"No\"),\"-\",IF(COUNTA('Enrollment Form'!$CM743:$CN743)=2,\"Y\",\"N\"))","v":"-"},{"$f":"IF($B736=\"N\",\"\",IF(COUNTIF('Enrollment Form'!$CZ743:$DO743,\"Other\")=COUNTA('Enrollment Form'!$DF743,'Enrollment Form'!$DA743,'Enrollment Form'!$DK743,'Enrollment Form'!$DP743),\"Y\",\"N\"))","v":""},{"$f":"IF($B736=\"N\",\"\",IF(OR('Enrollment Form'!B743<>\"Subscriber\",'Enrollment Form'!C743=\"ROC\",COUNTIF('Enrollment Form'!AS743:AT743,\"Yes\")>=1),\"-\",IF(AND('Enrollment Form'!C743=\"Enroll\",COUNTIF('Enrollment Form'!AS743:AT743,\"No\")=2,'Enrollment Form'!AU743=\"\"),\"N\",\"Y\")))","v":""},{"$f":"IF(OR(B736=\"N\",'Enrollment Form'!B743<>\"Subscriber\",'Enrollment Form'!C743=\"ROC\",'Enrollment Form'!O743<>\"Multiple of Salary\"),\"-\",IF(COUNTA('Enrollment Form'!T743:U743)<2,\"N\",\"Y\"))","v":"-"},{"$f":"IF(B736=\"N\",\"\",IF(OR('Enrollment Form'!C743=\"ROC\",'Enrollment Form'!B743<>\"Subscriber\",'Enrollment Form'!O743=\"Waive\",'Enrollment Form'!O743=\"\"),\"-\",IF('Enrollment Form'!P743=\"\",\"N\",\"Y\")))","v":""},{"$f":"IF($B736=\"N\",\"\",IF(AND('Enrollment Form'!$C743=\"ROC\",'Enrollment Form'!$DS743<>\"\"),\"Y\",IF(AND('Enrollment Form'!$C743=\"ROC\",'Enrollment Form'!$DS743=\"\"),\"N\",IF(AND('Enrollment Form'!$C743=\"Enroll\",'Enrollment Form'!$B743=\"Subscriber\",'Enrollment Form'!$CQ743=\"No\",'Enrollment Form'!$DS743=\"\"),\"N\",IF(AND('Enrollment Form'!$C743=\"Enroll\",'Enrollment Form'!$B743=\"Subscriber\",'Enrollment Form'!$CQ743=\"Yes\"),\"-\",\"Y\")))))","v":""},{"$f":"IF($B736=\"N\",\"\",IF(AND('Enrollment Form'!$C743=\"ROC\",'Enrollment Form'!$DT743<>\"\"),\"Y\",IF(AND('Enrollment Form'!$C743=\"ROC\",'Enrollment Form'!$DT743=\"\"),\"N\",IF(AND('Enrollment Form'!$C743=\"Enroll\",'Enrollment Form'!$B743=\"Subscriber\",'Enrollment Form'!$CQ743=\"No\",'Enrollment Form'!$DT743=\"\"),\"N\",IF(AND('Enrollment Form'!$C743=\"Enroll\",'Enrollment Form'!$B743=\"Subscriber\",'Enrollment Form'!$CQ743=\"Yes\"),\"-\",\"Y\")))))","v":""},{"$f":"IF('Enrollment Form'!AH743=\"\",\"\",IF(ISERROR(SEARCH(\".\",'Enrollment Form'!AH743,SEARCH(\"@\",'Enrollment Form'!AH743))),\"N\",\"Y\"))","v":""},{"$f":"IF(OR($B736=\"N\",'Enrollment Form'!$G743=\"\"),\"\",IF('Enrollment Form'!$B743<>\"Subscriber\",\"-\",IF(COUNTIF('Enrollment Form'!$AS743:$AT743,\"Yes\")=2,\"N\",\"Y\")))","v":""},{"$f":"IF(OR('Enrollment Form'!$CC743=\"\",'Enrollment Form'!$CC743=\"No\"),\"-\",IF(AND('Enrollment Form'!$CC743=\"Yes\",'Enrollment Form'!$CD743=\"\"),\"N\",\"Y\"))","v":"-"},{"$f":"IF(OR('Enrollment Form'!$CE743=\"\",'Enrollment Form'!$CE743=\"No\"),\"-\",IF(AND('Enrollment Form'!$CE743=\"Yes\",'Enrollment Form'!$CF743=\"\"),\"N\",\"Y\"))","v":"-"},{"$f":"IF(OR('Enrollment Form'!$CG743=\"\",'Enrollment Form'!$CG743=\"No\"),\"-\",IF(AND('Enrollment Form'!$CG743=\"Yes\",'Enrollment Form'!$CH743=\"\"),\"N\",\"Y\"))","v":"-"},{"$f":"IF(OR('Enrollment Form'!$CG743=\"\",'Enrollment Form'!$CG743=\"No\"),\"-\",IF(AND('Enrollment Form'!$CG743=\"Yes\",'Enrollment Form'!$CI743=\"\"),\"N\",\"Y\"))","v":"-"},{"$f":"IF('Enrollment Form'!B743<>\"Subscriber\",\"-\",IF(AND('Enrollment Form'!B743=\"Subscriber\",'Enrollment Form'!C743=\"Enroll\",'Enrollment Form'!AA743=\"\"),\"N\",\"Y\"))","v":"-"},{"$f":"IF(OR('Enrollment Form'!B743=\"Subscriber\",'Enrollment Form'!B743=\"\"),\"-\",IF('Enrollment Form'!BI743=\"\",\"N\",\"Y\"))","v":"-"},{"$f":"IF('Enrollment Form'!B743<>\"Subscriber\",\"-\",IF(AND('Enrollment Form'!B743=\"Subscriber\",'Enrollment Form'!G743=\"\"),\"N\",\"Y\"))","v":"-"},{"$f":"IF('Enrollment Form'!A743=\"\",\"\",IF('Enrollment Form'!B743=\"Subscriber\",\"-\",IF(AND('Enrollment Form'!B743<>\"Subscriber\",'Enrollment Form'!G743='Enrollment Form'!H743),\"N\",\"Y\")))","v":""},0]
[744,{"$f":"IF('Enrollment Form'!$A744<>\"\",\"Y\",\"N\")","v":"N"},{"$f":"IF(AND('Enrollment Form'!$B744=\"\",'Enrollment Form'!$C744<>\"\"),\"N\",IF($B737=\"N\",\"\",\"Y\"))","v":""},{"$f":"IF(OR($B737=\"N\",'Enrollment Form'!G744=\"\"),\"\",IF('Enrollment Form'!$B744<>\"Subscriber\",\"\",IF('Enrollment Form'!$G744='Enrollment Form'!$H744,\"Y\",\"N\")))","v":""},{"$f":"IF($B737=\"N\",\"\",IF(AND(COUNTIFS('Enrollment Form'!$H$11:$H$1000,'Enrollment Form'!$H744,'Enrollment Form'!$B$11:$B$1000,'Enrollment Form'!$B744)>1,'Enrollment Form'!$H744<>\"\"),\"N\",\"Y\"))","v":""},{"$f":"IF($B737=\"N\",\"\",IF(LEN('Enrollment Form'!$Y744)=0,\"\",IF(LEN('Enrollment Form'!$Y744)<>5,\"N\",\"Y\")))","v":""},{"$f":"IF($B737=\"N\",\"\",IF(LEN('Enrollment Form'!$AD744=0),\"\",IF(LEN('Enrollment Form'!$AD744)<>5,\"N\",\"Y\")))","v":""},{"$f":"IF($B737=\"N\",\"\",IF(LEN('Enrollment Form'!$BL744=0),\"\",IF(LEN('Enrollment Form'!$BL744)<>5,\"N\",\"Y\")))","v":""},{"$f":"IF($B737=\"N\",\"\",IF(LEN('Enrollment Form'!$AE744)=0,\"\",IF(LEN('Enrollment Form'!$AE744)<>10,\"N\",\"Y\")))","v":""},{"$f":"IF($B737=\"N\",\"\",IF(LEN('Enrollment Form'!$AF744)=0,\"\",IF(LEN('Enrollment Form'!$AF744)<>10,\"N\",\"Y\")))","v":""},{"$f":"IF('Enrollment Form'!$O744<>\"Graded\",\"-\",IF(AND('Enrollment Form'!$O744=\"Graded\",'Enrollment Form'!$AO744<>\"\"),\"Y\",\"N\"))","v":"-"},{"$f":"IF($B737=\"N\",\"\",IF(OR('Enrollment Form'!$B744<>\"Subscriber\",'Enrollment Form'!$C744=\"ROC\"),\"-\",IF(AND('Enrollment Form'!$B744=\"Subscriber\",'Enrollment Form'!$C744=\"Enroll\",'Enrollment Form'!$AJ744<>\"\"),\"Y\",\"N\")))","v":""},{"$f":"IF($B737=\"N\",\"\",IF(OR('Enrollment Form'!$B744<>\"Subscriber\",'Enrollment Form'!$C744=\"ROC\"),\"-\",IF(AND('Enrollment Form'!$B744=\"Subscriber\",'Enrollment Form'!$C744=\"Enroll\",'Enrollment Form'!$AK744<>\"\"),\"Y\",\"N\")))","v":""},{"$f":"IF($B737=\"N\",\"\",IF(OR('Enrollment Form'!$B744<>\"Subscriber\",'Enrollment Form'!$C744=\"ROC\"),\"-\",IF(AND('Enrollment Form'!$B744=\"Subscriber\",'Enrollment Form'!$C744=\"Enroll\",'Enrollment Form'!$AL744<>\"\"),\"Y\",\"N\")))","v":""},{"$f":"IF($B737=\"N\",\"\",IF(OR('Enrollment Form'!$B744<>\"Subscriber\",'Enrollment Form'!$C744=\"ROC\"),\"-\",IF(AND('Enrollment Form'!$B744=\"Subscriber\",'Enrollment Form'!$C744=\"Enroll\",'Enrollment Form'!$AM744<>\"\"),\"Y\",\"N\")))","v":""},{"$f":"IF($B737=\"N\",\"\",IF(OR('Enrollment Form'!$B744<>\"Subscriber\",'Enrollment Form'!$C744=\"ROC\"),\"-\",IF(AND('Enrollment Form'!$B744=\"Subscriber\",'Enrollment Form'!$C744=\"Enroll\",'Enrollment Form'!$AN744<>\"\"),\"Y\",\"N\")))","v":""},{"$f":"IF($B737=\"N\",\"\",IF(OR('Enrollment Form'!$B744<>\"Subscriber\",'Enrollment Form'!$C744=\"ROC\"),\"-\",IF(AND('Enrollment Form'!$B744=\"Subscriber\",'Enrollment Form'!$C744=\"Enroll\",'Enrollment Form'!$AP744<>\"\"),\"Y\",\"N\")))","v":""},{"$f":"IF($B737=\"N\",\"\",IF($Q737=\"-\",\"-\",IF(AND($Q737=\"Y\",'Enrollment Form'!$AP744=\"No\"),\"-\",IF(AND($Q737=\"Y\",'Enrollment Form'!$AP744=\"Yes\",'Enrollment Form'!$AQ744<>\"\"),\"Y\",\"N\"))))","v":""},{"$f":"IF($B737=\"N\",\"\",IF(OR('Enrollment Form'!$B744<>\"Subscriber\",'Enrollment Form'!$C744=\"ROC\"),\"-\",IF(AND('Enrollment Form'!$B744=\"Subscriber\",'Enrollment Form'!$C744=\"Enroll\",'Enrollment Form'!$CO744<>\"\"),\"Y\",\"N\")))","v":""},{"$f":"IF($B737=\"N\",\"\",IF($S737=\"-\",\"-\",IF(AND($S737=\"Y\",'Enrollment Form'!$CO744=\"No\"),\"-\",IF(AND($S737=\"Y\",'Enrollment Form'!$CO744=\"Yes\",'Enrollment Form'!$CP744<>\"\"),\"Y\",\"N\"))))","v":""},{"$f":"IF(OR('Enrollment Form'!$AV744=\"Yes\",'Enrollment Form'!$AV744=\"\"),\"-\",IF(AND('Enrollment Form'!$AV744=\"No\",ISERROR(FIND(\"HMO\",VLOOKUP('Enrollment Form'!G744,'Enrollment Form'!H$11:J$1000,3,FALSE),1))=FALSE,COUNTA('Enrollment Form'!$AW744:$AZ744)=4),\"Y\",\"N\"))","v":"-"},{"$f":"IF($B737=\"N\",\"\",IF('Enrollment Form'!$B744=\"Subscriber\",\"-\",IF(COUNTA('Enrollment Form'!$BE744,'Enrollment Form'!$BG744)=2,\"Y\",\"N\")))","v":""},{"$f":"IF($B737=\"N\",\"\",IF(OR('Enrollment Form'!$AU744=\"\",'Enrollment Form'!$AU744=\"No\"),\"-\",IF(AND('Enrollment Form'!$AU744=\"Yes\",COUNTA('Enrollment Form'!$CK744)=1),\"Y\",\"N\")))","v":""},{"$f":"IF(OR('Enrollment Form'!$CK744=\"\",'Enrollment Form'!$CK744=\"No\"),\"-\",IF(COUNTA('Enrollment Form'!$CM744:$CN744)=2,\"Y\",\"N\"))","v":"-"},{"$f":"IF($B737=\"N\",\"\",IF(COUNTIF('Enrollment Form'!$CZ744:$DO744,\"Other\")=COUNTA('Enrollment Form'!$DF744,'Enrollment Form'!$DA744,'Enrollment Form'!$DK744,'Enrollment Form'!$DP744),\"Y\",\"N\"))","v":""},{"$f":"IF($B737=\"N\",\"\",IF(OR('Enrollment Form'!B744<>\"Subscriber\",'Enrollment Form'!C744=\"ROC\",COUNTIF('Enrollment Form'!AS744:AT744,\"Yes\")>=1),\"-\",IF(AND('Enrollment Form'!C744=\"Enroll\",COUNTIF('Enrollment Form'!AS744:AT744,\"No\")=2,'Enrollment Form'!AU744=\"\"),\"N\",\"Y\")))","v":""},{"$f":"IF(OR(B737=\"N\",'Enrollment Form'!B744<>\"Subscriber\",'Enrollment Form'!C744=\"ROC\",'Enrollment Form'!O744<>\"Multiple of Salary\"),\"-\",IF(COUNTA('Enrollment Form'!T744:U744)<2,\"N\",\"Y\"))","v":"-"},{"$f":"IF(B737=\"N\",\"\",IF(OR('Enrollment Form'!C744=\"ROC\",'Enrollment Form'!B744<>\"Subscriber\",'Enrollment Form'!O744=\"Waive\",'Enrollment Form'!O744=\"\"),\"-\",IF('Enrollment Form'!P744=\"\",\"N\",\"Y\")))","v":""},{"$f":"IF($B737=\"N\",\"\",IF(AND('Enrollment Form'!$C744=\"ROC\",'Enrollment Form'!$DS744<>\"\"),\"Y\",IF(AND('Enrollment Form'!$C744=\"ROC\",'Enrollment Form'!$DS744=\"\"),\"N\",IF(AND('Enrollment Form'!$C744=\"Enroll\",'Enrollment Form'!$B744=\"Subscriber\",'Enrollment Form'!$CQ744=\"No\",'Enrollment Form'!$DS744=\"\"),\"N\",IF(AND('Enrollment Form'!$C744=\"Enroll\",'Enrollment Form'!$B744=\"Subscriber\",'Enrollment Form'!$CQ744=\"Yes\"),\"-\",\"Y\")))))","v":""},{"$f":"IF($B737=\"N\",\"\",IF(AND('Enrollment Form'!$C744=\"ROC\",'Enrollment Form'!$DT744<>\"\"),\"Y\",IF(AND('Enrollment Form'!$C744=\"ROC\",'Enrollment Form'!$DT744=\"\"),\"N\",IF(AND('Enrollment Form'!$C744=\"Enroll\",'Enrollment Form'!$B744=\"Subscriber\",'Enrollment Form'!$CQ744=\"No\",'Enrollment Form'!$DT744=\"\"),\"N\",IF(AND('Enrollment Form'!$C744=\"Enroll\",'Enrollment Form'!$B744=\"Subscriber\",'Enrollment Form'!$CQ744=\"Yes\"),\"-\",\"Y\")))))","v":""},{"$f":"IF('Enrollment Form'!AH744=\"\",\"\",IF(ISERROR(SEARCH(\".\",'Enrollment Form'!AH744,SEARCH(\"@\",'Enrollment Form'!AH744))),\"N\",\"Y\"))","v":""},{"$f":"IF(OR($B737=\"N\",'Enrollment Form'!$G744=\"\"),\"\",IF('Enrollment Form'!$B744<>\"Subscriber\",\"-\",IF(COUNTIF('Enrollment Form'!$AS744:$AT744,\"Yes\")=2,\"N\",\"Y\")))","v":""},{"$f":"IF(OR('Enrollment Form'!$CC744=\"\",'Enrollment Form'!$CC744=\"No\"),\"-\",IF(AND('Enrollment Form'!$CC744=\"Yes\",'Enrollment Form'!$CD744=\"\"),\"N\",\"Y\"))","v":"-"},{"$f":"IF(OR('Enrollment Form'!$CE744=\"\",'Enrollment Form'!$CE744=\"No\"),\"-\",IF(AND('Enrollment Form'!$CE744=\"Yes\",'Enrollment Form'!$CF744=\"\"),\"N\",\"Y\"))","v":"-"},{"$f":"IF(OR('Enrollment Form'!$CG744=\"\",'Enrollment Form'!$CG744=\"No\"),\"-\",IF(AND('Enrollment Form'!$CG744=\"Yes\",'Enrollment Form'!$CH744=\"\"),\"N\",\"Y\"))","v":"-"},{"$f":"IF(OR('Enrollment Form'!$CG744=\"\",'Enrollment Form'!$CG744=\"No\"),\"-\",IF(AND('Enrollment Form'!$CG744=\"Yes\",'Enrollment Form'!$CI744=\"\"),\"N\",\"Y\"))","v":"-"},{"$f":"IF('Enrollment Form'!B744<>\"Subscriber\",\"-\",IF(AND('Enrollment Form'!B744=\"Subscriber\",'Enrollment Form'!C744=\"Enroll\",'Enrollment Form'!AA744=\"\"),\"N\",\"Y\"))","v":"-"},{"$f":"IF(OR('Enrollment Form'!B744=\"Subscriber\",'Enrollment Form'!B744=\"\"),\"-\",IF('Enrollment Form'!BI744=\"\",\"N\",\"Y\"))","v":"-"},{"$f":"IF('Enrollment Form'!B744<>\"Subscriber\",\"-\",IF(AND('Enrollment Form'!B744=\"Subscriber\",'Enrollment Form'!G744=\"\"),\"N\",\"Y\"))","v":"-"},{"$f":"IF('Enrollment Form'!A744=\"\",\"\",IF('Enrollment Form'!B744=\"Subscriber\",\"-\",IF(AND('Enrollment Form'!B744<>\"Subscriber\",'Enrollment Form'!G744='Enrollment Form'!H744),\"N\",\"Y\")))","v":""},0]
[745,{"$f":"IF('Enrollment Form'!$A745<>\"\",\"Y\",\"N\")","v":"N"},{"$f":"IF(AND('Enrollment Form'!$B745=\"\",'Enrollment Form'!$C745<>\"\"),\"N\",IF($B738=\"N\",\"\",\"Y\"))","v":""},{"$f":"IF(OR($B738=\"N\",'Enrollment Form'!G745=\"\"),\"\",IF('Enrollment Form'!$B745<>\"Subscriber\",\"\",IF('Enrollment Form'!$G745='Enrollment Form'!$H745,\"Y\",\"N\")))","v":""},{"$f":"IF($B738=\"N\",\"\",IF(AND(COUNTIFS('Enrollment Form'!$H$11:$H$1000,'Enrollment Form'!$H745,'Enrollment Form'!$B$11:$B$1000,'Enrollment Form'!$B745)>1,'Enrollment Form'!$H745<>\"\"),\"N\",\"Y\"))","v":""},{"$f":"IF($B738=\"N\",\"\",IF(LEN('Enrollment Form'!$Y745)=0,\"\",IF(LEN('Enrollment Form'!$Y745)<>5,\"N\",\"Y\")))","v":""},{"$f":"IF($B738=\"N\",\"\",IF(LEN('Enrollment Form'!$AD745=0),\"\",IF(LEN('Enrollment Form'!$AD745)<>5,\"N\",\"Y\")))","v":""},{"$f":"IF($B738=\"N\",\"\",IF(LEN('Enrollment Form'!$BL745=0),\"\",IF(LEN('Enrollment Form'!$BL745)<>5,\"N\",\"Y\")))","v":""},{"$f":"IF($B738=\"N\",\"\",IF(LEN('Enrollment Form'!$AE745)=0,\"\",IF(LEN('Enrollment Form'!$AE745)<>10,\"N\",\"Y\")))","v":""},{"$f":"IF($B738=\"N\",\"\",IF(LEN('Enrollment Form'!$AF745)=0,\"\",IF(LEN('Enrollment Form'!$AF745)<>10,\"N\",\"Y\")))","v":""},{"$f":"IF('Enrollment Form'!$O745<>\"Graded\",\"-\",IF(AND('Enrollment Form'!$O745=\"Graded\",'Enrollment Form'!$AO745<>\"\"),\"Y\",\"N\"))","v":"-"},{"$f":"IF($B738=\"N\",\"\",IF(OR('Enrollment Form'!$B745<>\"Subscriber\",'Enrollment Form'!$C745=\"ROC\"),\"-\",IF(AND('Enrollment Form'!$B745=\"Subscriber\",'Enrollment Form'!$C745=\"Enroll\",'Enrollment Form'!$AJ745<>\"\"),\"Y\",\"N\")))","v":""},{"$f":"IF($B738=\"N\",\"\",IF(OR('Enrollment Form'!$B745<>\"Subscriber\",'Enrollment Form'!$C745=\"ROC\"),\"-\",IF(AND('Enrollment Form'!$B745=\"Subscriber\",'Enrollment Form'!$C745=\"Enroll\",'Enrollment Form'!$AK745<>\"\"),\"Y\",\"N\")))","v":""},{"$f":"IF($B738=\"N\",\"\",IF(OR('Enrollment Form'!$B745<>\"Subscriber\",'Enrollment Form'!$C745=\"ROC\"),\"-\",IF(AND('Enrollment Form'!$B745=\"Subscriber\",'Enrollment Form'!$C745=\"Enroll\",'Enrollment Form'!$AL745<>\"\"),\"Y\",\"N\")))","v":""},{"$f":"IF($B738=\"N\",\"\",IF(OR('Enrollment Form'!$B745<>\"Subscriber\",'Enrollment Form'!$C745=\"ROC\"),\"-\",IF(AND('Enrollment Form'!$B745=\"Subscriber\",'Enrollment Form'!$C745=\"Enroll\",'Enrollment Form'!$AM745<>\"\"),\"Y\",\"N\")))","v":""},{"$f":"IF($B738=\"N\",\"\",IF(OR('Enrollment Form'!$B745<>\"Subscriber\",'Enrollment Form'!$C745=\"ROC\"),\"-\",IF(AND('Enrollment Form'!$B745=\"Subscriber\",'Enrollment Form'!$C745=\"Enroll\",'Enrollment Form'!$AN745<>\"\"),\"Y\",\"N\")))","v":""},{"$f":"IF($B738=\"N\",\"\",IF(OR('Enrollment Form'!$B745<>\"Subscriber\",'Enrollment Form'!$C745=\"ROC\"),\"-\",IF(AND('Enrollment Form'!$B745=\"Subscriber\",'Enrollment Form'!$C745=\"Enroll\",'Enrollment Form'!$AP745<>\"\"),\"Y\",\"N\")))","v":""},{"$f":"IF($B738=\"N\",\"\",IF($Q738=\"-\",\"-\",IF(AND($Q738=\"Y\",'Enrollment Form'!$AP745=\"No\"),\"-\",IF(AND($Q738=\"Y\",'Enrollment Form'!$AP745=\"Yes\",'Enrollment Form'!$AQ745<>\"\"),\"Y\",\"N\"))))","v":""},{"$f":"IF($B738=\"N\",\"\",IF(OR('Enrollment Form'!$B745<>\"Subscriber\",'Enrollment Form'!$C745=\"ROC\"),\"-\",IF(AND('Enrollment Form'!$B745=\"Subscriber\",'Enrollment Form'!$C745=\"Enroll\",'Enrollment Form'!$CO745<>\"\"),\"Y\",\"N\")))","v":""},{"$f":"IF($B738=\"N\",\"\",IF($S738=\"-\",\"-\",IF(AND($S738=\"Y\",'Enrollment Form'!$CO745=\"No\"),\"-\",IF(AND($S738=\"Y\",'Enrollment Form'!$CO745=\"Yes\",'Enrollment Form'!$CP745<>\"\"),\"Y\",\"N\"))))","v":""},{"$f":"IF(OR('Enrollment Form'!$AV745=\"Yes\",'Enrollment Form'!$AV745=\"\"),\"-\",IF(AND('Enrollment Form'!$AV745=\"No\",ISERROR(FIND(\"HMO\",VLOOKUP('Enrollment Form'!G745,'Enrollment Form'!H$11:J$1000,3,FALSE),1))=FALSE,COUNTA('Enrollment Form'!$AW745:$AZ745)=4),\"Y\",\"N\"))","v":"-"},{"$f":"IF($B738=\"N\",\"\",IF('Enrollment Form'!$B745=\"Subscriber\",\"-\",IF(COUNTA('Enrollment Form'!$BE745,'Enrollment Form'!$BG745)=2,\"Y\",\"N\")))","v":""},{"$f":"IF($B738=\"N\",\"\",IF(OR('Enrollment Form'!$AU745=\"\",'Enrollment Form'!$AU745=\"No\"),\"-\",IF(AND('Enrollment Form'!$AU745=\"Yes\",COUNTA('Enrollment Form'!$CK745)=1),\"Y\",\"N\")))","v":""},{"$f":"IF(OR('Enrollment Form'!$CK745=\"\",'Enrollment Form'!$CK745=\"No\"),\"-\",IF(COUNTA('Enrollment Form'!$CM745:$CN745)=2,\"Y\",\"N\"))","v":"-"},{"$f":"IF($B738=\"N\",\"\",IF(COUNTIF('Enrollment Form'!$CZ745:$DO745,\"Other\")=COUNTA('Enrollment Form'!$DF745,'Enrollment Form'!$DA745,'Enrollment Form'!$DK745,'Enrollment Form'!$DP745),\"Y\",\"N\"))","v":""},{"$f":"IF($B738=\"N\",\"\",IF(OR('Enrollment Form'!B745<>\"Subscriber\",'Enrollment Form'!C745=\"ROC\",COUNTIF('Enrollment Form'!AS745:AT745,\"Yes\")>=1),\"-\",IF(AND('Enrollment Form'!C745=\"Enroll\",COUNTIF('Enrollment Form'!AS745:AT745,\"No\")=2,'Enrollment Form'!AU745=\"\"),\"N\",\"Y\")))","v":""},{"$f":"IF(OR(B738=\"N\",'Enrollment Form'!B745<>\"Subscriber\",'Enrollment Form'!C745=\"ROC\",'Enrollment Form'!O745<>\"Multiple of Salary\"),\"-\",IF(COUNTA('Enrollment Form'!T745:U745)<2,\"N\",\"Y\"))","v":"-"},{"$f":"IF(B738=\"N\",\"\",IF(OR('Enrollment Form'!C745=\"ROC\",'Enrollment Form'!B745<>\"Subscriber\",'Enrollment Form'!O745=\"Waive\",'Enrollment Form'!O745=\"\"),\"-\",IF('Enrollment Form'!P745=\"\",\"N\",\"Y\")))","v":""},{"$f":"IF($B738=\"N\",\"\",IF(AND('Enrollment Form'!$C745=\"ROC\",'Enrollment Form'!$DS745<>\"\"),\"Y\",IF(AND('Enrollment Form'!$C745=\"ROC\",'Enrollment Form'!$DS745=\"\"),\"N\",IF(AND('Enrollment Form'!$C745=\"Enroll\",'Enrollment Form'!$B745=\"Subscriber\",'Enrollment Form'!$CQ745=\"No\",'Enrollment Form'!$DS745=\"\"),\"N\",IF(AND('Enrollment Form'!$C745=\"Enroll\",'Enrollment Form'!$B745=\"Subscriber\",'Enrollment Form'!$CQ745=\"Yes\"),\"-\",\"Y\")))))","v":""},{"$f":"IF($B738=\"N\",\"\",IF(AND('Enrollment Form'!$C745=\"ROC\",'Enrollment Form'!$DT745<>\"\"),\"Y\",IF(AND('Enrollment Form'!$C745=\"ROC\",'Enrollment Form'!$DT745=\"\"),\"N\",IF(AND('Enrollment Form'!$C745=\"Enroll\",'Enrollment Form'!$B745=\"Subscriber\",'Enrollment Form'!$CQ745=\"No\",'Enrollment Form'!$DT745=\"\"),\"N\",IF(AND('Enrollment Form'!$C745=\"Enroll\",'Enrollment Form'!$B745=\"Subscriber\",'Enrollment Form'!$CQ745=\"Yes\"),\"-\",\"Y\")))))","v":""},{"$f":"IF('Enrollment Form'!AH745=\"\",\"\",IF(ISERROR(SEARCH(\".\",'Enrollment Form'!AH745,SEARCH(\"@\",'Enrollment Form'!AH745))),\"N\",\"Y\"))","v":""},{"$f":"IF(OR($B738=\"N\",'Enrollment Form'!$G745=\"\"),\"\",IF('Enrollment Form'!$B745<>\"Subscriber\",\"-\",IF(COUNTIF('Enrollment Form'!$AS745:$AT745,\"Yes\")=2,\"N\",\"Y\")))","v":""},{"$f":"IF(OR('Enrollment Form'!$CC745=\"\",'Enrollment Form'!$CC745=\"No\"),\"-\",IF(AND('Enrollment Form'!$CC745=\"Yes\",'Enrollment Form'!$CD745=\"\"),\"N\",\"Y\"))","v":"-"},{"$f":"IF(OR('Enrollment Form'!$CE745=\"\",'Enrollment Form'!$CE745=\"No\"),\"-\",IF(AND('Enrollment Form'!$CE745=\"Yes\",'Enrollment Form'!$CF745=\"\"),\"N\",\"Y\"))","v":"-"},{"$f":"IF(OR('Enrollment Form'!$CG745=\"\",'Enrollment Form'!$CG745=\"No\"),\"-\",IF(AND('Enrollment Form'!$CG745=\"Yes\",'Enrollment Form'!$CH745=\"\"),\"N\",\"Y\"))","v":"-"},{"$f":"IF(OR('Enrollment Form'!$CG745=\"\",'Enrollment Form'!$CG745=\"No\"),\"-\",IF(AND('Enrollment Form'!$CG745=\"Yes\",'Enrollment Form'!$CI745=\"\"),\"N\",\"Y\"))","v":"-"},{"$f":"IF('Enrollment Form'!B745<>\"Subscriber\",\"-\",IF(AND('Enrollment Form'!B745=\"Subscriber\",'Enrollment Form'!C745=\"Enroll\",'Enrollment Form'!AA745=\"\"),\"N\",\"Y\"))","v":"-"},{"$f":"IF(OR('Enrollment Form'!B745=\"Subscriber\",'Enrollment Form'!B745=\"\"),\"-\",IF('Enrollment Form'!BI745=\"\",\"N\",\"Y\"))","v":"-"},{"$f":"IF('Enrollment Form'!B745<>\"Subscriber\",\"-\",IF(AND('Enrollment Form'!B745=\"Subscriber\",'Enrollment Form'!G745=\"\"),\"N\",\"Y\"))","v":"-"},{"$f":"IF('Enrollment Form'!A745=\"\",\"\",IF('Enrollment Form'!B745=\"Subscriber\",\"-\",IF(AND('Enrollment Form'!B745<>\"Subscriber\",'Enrollment Form'!G745='Enrollment Form'!H745),\"N\",\"Y\")))","v":""},0]
[746,{"$f":"IF('Enrollment Form'!$A746<>\"\",\"Y\",\"N\")","v":"N"},{"$f":"IF(AND('Enrollment Form'!$B746=\"\",'Enrollment Form'!$C746<>\"\"),\"N\",IF($B739=\"N\",\"\",\"Y\"))","v":""},{"$f":"IF(OR($B739=\"N\",'Enrollment Form'!G746=\"\"),\"\",IF('Enrollment Form'!$B746<>\"Subscriber\",\"\",IF('Enrollment Form'!$G746='Enrollment Form'!$H746,\"Y\",\"N\")))","v":""},{"$f":"IF($B739=\"N\",\"\",IF(AND(COUNTIFS('Enrollment Form'!$H$11:$H$1000,'Enrollment Form'!$H746,'Enrollment Form'!$B$11:$B$1000,'Enrollment Form'!$B746)>1,'Enrollment Form'!$H746<>\"\"),\"N\",\"Y\"))","v":""},{"$f":"IF($B739=\"N\",\"\",IF(LEN('Enrollment Form'!$Y746)=0,\"\",IF(LEN('Enrollment Form'!$Y746)<>5,\"N\",\"Y\")))","v":""},{"$f":"IF($B739=\"N\",\"\",IF(LEN('Enrollment Form'!$AD746=0),\"\",IF(LEN('Enrollment Form'!$AD746)<>5,\"N\",\"Y\")))","v":""},{"$f":"IF($B739=\"N\",\"\",IF(LEN('Enrollment Form'!$BL746=0),\"\",IF(LEN('Enrollment Form'!$BL746)<>5,\"N\",\"Y\")))","v":""},{"$f":"IF($B739=\"N\",\"\",IF(LEN('Enrollment Form'!$AE746)=0,\"\",IF(LEN('Enrollment Form'!$AE746)<>10,\"N\",\"Y\")))","v":""},{"$f":"IF($B739=\"N\",\"\",IF(LEN('Enrollment Form'!$AF746)=0,\"\",IF(LEN('Enrollment Form'!$AF746)<>10,\"N\",\"Y\")))","v":""},{"$f":"IF('Enrollment Form'!$O746<>\"Graded\",\"-\",IF(AND('Enrollment Form'!$O746=\"Graded\",'Enrollment Form'!$AO746<>\"\"),\"Y\",\"N\"))","v":"-"},{"$f":"IF($B739=\"N\",\"\",IF(OR('Enrollment Form'!$B746<>\"Subscriber\",'Enrollment Form'!$C746=\"ROC\"),\"-\",IF(AND('Enrollment Form'!$B746=\"Subscriber\",'Enrollment Form'!$C746=\"Enroll\",'Enrollment Form'!$AJ746<>\"\"),\"Y\",\"N\")))","v":""},{"$f":"IF($B739=\"N\",\"\",IF(OR('Enrollment Form'!$B746<>\"Subscriber\",'Enrollment Form'!$C746=\"ROC\"),\"-\",IF(AND('Enrollment Form'!$B746=\"Subscriber\",'Enrollment Form'!$C746=\"Enroll\",'Enrollment Form'!$AK746<>\"\"),\"Y\",\"N\")))","v":""},{"$f":"IF($B739=\"N\",\"\",IF(OR('Enrollment Form'!$B746<>\"Subscriber\",'Enrollment Form'!$C746=\"ROC\"),\"-\",IF(AND('Enrollment Form'!$B746=\"Subscriber\",'Enrollment Form'!$C746=\"Enroll\",'Enrollment Form'!$AL746<>\"\"),\"Y\",\"N\")))","v":""},{"$f":"IF($B739=\"N\",\"\",IF(OR('Enrollment Form'!$B746<>\"Subscriber\",'Enrollment Form'!$C746=\"ROC\"),\"-\",IF(AND('Enrollment Form'!$B746=\"Subscriber\",'Enrollment Form'!$C746=\"Enroll\",'Enrollment Form'!$AM746<>\"\"),\"Y\",\"N\")))","v":""},{"$f":"IF($B739=\"N\",\"\",IF(OR('Enrollment Form'!$B746<>\"Subscriber\",'Enrollment Form'!$C746=\"ROC\"),\"-\",IF(AND('Enrollment Form'!$B746=\"Subscriber\",'Enrollment Form'!$C746=\"Enroll\",'Enrollment Form'!$AN746<>\"\"),\"Y\",\"N\")))","v":""},{"$f":"IF($B739=\"N\",\"\",IF(OR('Enrollment Form'!$B746<>\"Subscriber\",'Enrollment Form'!$C746=\"ROC\"),\"-\",IF(AND('Enrollment Form'!$B746=\"Subscriber\",'Enrollment Form'!$C746=\"Enroll\",'Enrollment Form'!$AP746<>\"\"),\"Y\",\"N\")))","v":""},{"$f":"IF($B739=\"N\",\"\",IF($Q739=\"-\",\"-\",IF(AND($Q739=\"Y\",'Enrollment Form'!$AP746=\"No\"),\"-\",IF(AND($Q739=\"Y\",'Enrollment Form'!$AP746=\"Yes\",'Enrollment Form'!$AQ746<>\"\"),\"Y\",\"N\"))))","v":""},{"$f":"IF($B739=\"N\",\"\",IF(OR('Enrollment Form'!$B746<>\"Subscriber\",'Enrollment Form'!$C746=\"ROC\"),\"-\",IF(AND('Enrollment Form'!$B746=\"Subscriber\",'Enrollment Form'!$C746=\"Enroll\",'Enrollment Form'!$CO746<>\"\"),\"Y\",\"N\")))","v":""},{"$f":"IF($B739=\"N\",\"\",IF($S739=\"-\",\"-\",IF(AND($S739=\"Y\",'Enrollment Form'!$CO746=\"No\"),\"-\",IF(AND($S739=\"Y\",'Enrollment Form'!$CO746=\"Yes\",'Enrollment Form'!$CP746<>\"\"),\"Y\",\"N\"))))","v":""},{"$f":"IF(OR('Enrollment Form'!$AV746=\"Yes\",'Enrollment Form'!$AV746=\"\"),\"-\",IF(AND('Enrollment Form'!$AV746=\"No\",ISERROR(FIND(\"HMO\",VLOOKUP('Enrollment Form'!G746,'Enrollment Form'!H$11:J$1000,3,FALSE),1))=FALSE,COUNTA('Enrollment Form'!$AW746:$AZ746)=4),\"Y\",\"N\"))","v":"-"},{"$f":"IF($B739=\"N\",\"\",IF('Enrollment Form'!$B746=\"Subscriber\",\"-\",IF(COUNTA('Enrollment Form'!$BE746,'Enrollment Form'!$BG746)=2,\"Y\",\"N\")))","v":""},{"$f":"IF($B739=\"N\",\"\",IF(OR('Enrollment Form'!$AU746=\"\",'Enrollment Form'!$AU746=\"No\"),\"-\",IF(AND('Enrollment Form'!$AU746=\"Yes\",COUNTA('Enrollment Form'!$CK746)=1),\"Y\",\"N\")))","v":""},{"$f":"IF(OR('Enrollment Form'!$CK746=\"\",'Enrollment Form'!$CK746=\"No\"),\"-\",IF(COUNTA('Enrollment Form'!$CM746:$CN746)=2,\"Y\",\"N\"))","v":"-"},{"$f":"IF($B739=\"N\",\"\",IF(COUNTIF('Enrollment Form'!$CZ746:$DO746,\"Other\")=COUNTA('Enrollment Form'!$DF746,'Enrollment Form'!$DA746,'Enrollment Form'!$DK746,'Enrollment Form'!$DP746),\"Y\",\"N\"))","v":""},{"$f":"IF($B739=\"N\",\"\",IF(OR('Enrollment Form'!B746<>\"Subscriber\",'Enrollment Form'!C746=\"ROC\",COUNTIF('Enrollment Form'!AS746:AT746,\"Yes\")>=1),\"-\",IF(AND('Enrollment Form'!C746=\"Enroll\",COUNTIF('Enrollment Form'!AS746:AT746,\"No\")=2,'Enrollment Form'!AU746=\"\"),\"N\",\"Y\")))","v":""},{"$f":"IF(OR(B739=\"N\",'Enrollment Form'!B746<>\"Subscriber\",'Enrollment Form'!C746=\"ROC\",'Enrollment Form'!O746<>\"Multiple of Salary\"),\"-\",IF(COUNTA('Enrollment Form'!T746:U746)<2,\"N\",\"Y\"))","v":"-"},{"$f":"IF(B739=\"N\",\"\",IF(OR('Enrollment Form'!C746=\"ROC\",'Enrollment Form'!B746<>\"Subscriber\",'Enrollment Form'!O746=\"Waive\",'Enrollment Form'!O746=\"\"),\"-\",IF('Enrollment Form'!P746=\"\",\"N\",\"Y\")))","v":""},{"$f":"IF($B739=\"N\",\"\",IF(AND('Enrollment Form'!$C746=\"ROC\",'Enrollment Form'!$DS746<>\"\"),\"Y\",IF(AND('Enrollment Form'!$C746=\"ROC\",'Enrollment Form'!$DS746=\"\"),\"N\",IF(AND('Enrollment Form'!$C746=\"Enroll\",'Enrollment Form'!$B746=\"Subscriber\",'Enrollment Form'!$CQ746=\"No\",'Enrollment Form'!$DS746=\"\"),\"N\",IF(AND('Enrollment Form'!$C746=\"Enroll\",'Enrollment Form'!$B746=\"Subscriber\",'Enrollment Form'!$CQ746=\"Yes\"),\"-\",\"Y\")))))","v":""},{"$f":"IF($B739=\"N\",\"\",IF(AND('Enrollment Form'!$C746=\"ROC\",'Enrollment Form'!$DT746<>\"\"),\"Y\",IF(AND('Enrollment Form'!$C746=\"ROC\",'Enrollment Form'!$DT746=\"\"),\"N\",IF(AND('Enrollment Form'!$C746=\"Enroll\",'Enrollment Form'!$B746=\"Subscriber\",'Enrollment Form'!$CQ746=\"No\",'Enrollment Form'!$DT746=\"\"),\"N\",IF(AND('Enrollment Form'!$C746=\"Enroll\",'Enrollment Form'!$B746=\"Subscriber\",'Enrollment Form'!$CQ746=\"Yes\"),\"-\",\"Y\")))))","v":""},{"$f":"IF('Enrollment Form'!AH746=\"\",\"\",IF(ISERROR(SEARCH(\".\",'Enrollment Form'!AH746,SEARCH(\"@\",'Enrollment Form'!AH746))),\"N\",\"Y\"))","v":""},{"$f":"IF(OR($B739=\"N\",'Enrollment Form'!$G746=\"\"),\"\",IF('Enrollment Form'!$B746<>\"Subscriber\",\"-\",IF(COUNTIF('Enrollment Form'!$AS746:$AT746,\"Yes\")=2,\"N\",\"Y\")))","v":""},{"$f":"IF(OR('Enrollment Form'!$CC746=\"\",'Enrollment Form'!$CC746=\"No\"),\"-\",IF(AND('Enrollment Form'!$CC746=\"Yes\",'Enrollment Form'!$CD746=\"\"),\"N\",\"Y\"))","v":"-"},{"$f":"IF(OR('Enrollment Form'!$CE746=\"\",'Enrollment Form'!$CE746=\"No\"),\"-\",IF(AND('Enrollment Form'!$CE746=\"Yes\",'Enrollment Form'!$CF746=\"\"),\"N\",\"Y\"))","v":"-"},{"$f":"IF(OR('Enrollment Form'!$CG746=\"\",'Enrollment Form'!$CG746=\"No\"),\"-\",IF(AND('Enrollment Form'!$CG746=\"Yes\",'Enrollment Form'!$CH746=\"\"),\"N\",\"Y\"))","v":"-"},{"$f":"IF(OR('Enrollment Form'!$CG746=\"\",'Enrollment Form'!$CG746=\"No\"),\"-\",IF(AND('Enrollment Form'!$CG746=\"Yes\",'Enrollment Form'!$CI746=\"\"),\"N\",\"Y\"))","v":"-"},{"$f":"IF('Enrollment Form'!B746<>\"Subscriber\",\"-\",IF(AND('Enrollment Form'!B746=\"Subscriber\",'Enrollment Form'!C746=\"Enroll\",'Enrollment Form'!AA746=\"\"),\"N\",\"Y\"))","v":"-"},{"$f":"IF(OR('Enrollment Form'!B746=\"Subscriber\",'Enrollment Form'!B746=\"\"),\"-\",IF('Enrollment Form'!BI746=\"\",\"N\",\"Y\"))","v":"-"},{"$f":"IF('Enrollment Form'!B746<>\"Subscriber\",\"-\",IF(AND('Enrollment Form'!B746=\"Subscriber\",'Enrollment Form'!G746=\"\"),\"N\",\"Y\"))","v":"-"},{"$f":"IF('Enrollment Form'!A746=\"\",\"\",IF('Enrollment Form'!B746=\"Subscriber\",\"-\",IF(AND('Enrollment Form'!B746<>\"Subscriber\",'Enrollment Form'!G746='Enrollment Form'!H746),\"N\",\"Y\")))","v":""},0]
[747,{"$f":"IF('Enrollment Form'!$A747<>\"\",\"Y\",\"N\")","v":"N"},{"$f":"IF(AND('Enrollment Form'!$B747=\"\",'Enrollment Form'!$C747<>\"\"),\"N\",IF($B740=\"N\",\"\",\"Y\"))","v":""},{"$f":"IF(OR($B740=\"N\",'Enrollment Form'!G747=\"\"),\"\",IF('Enrollment Form'!$B747<>\"Subscriber\",\"\",IF('Enrollment Form'!$G747='Enrollment Form'!$H747,\"Y\",\"N\")))","v":""},{"$f":"IF($B740=\"N\",\"\",IF(AND(COUNTIFS('Enrollment Form'!$H$11:$H$1000,'Enrollment Form'!$H747,'Enrollment Form'!$B$11:$B$1000,'Enrollment Form'!$B747)>1,'Enrollment Form'!$H747<>\"\"),\"N\",\"Y\"))","v":""},{"$f":"IF($B740=\"N\",\"\",IF(LEN('Enrollment Form'!$Y747)=0,\"\",IF(LEN('Enrollment Form'!$Y747)<>5,\"N\",\"Y\")))","v":""},{"$f":"IF($B740=\"N\",\"\",IF(LEN('Enrollment Form'!$AD747=0),\"\",IF(LEN('Enrollment Form'!$AD747)<>5,\"N\",\"Y\")))","v":""},{"$f":"IF($B740=\"N\",\"\",IF(LEN('Enrollment Form'!$BL747=0),\"\",IF(LEN('Enrollment Form'!$BL747)<>5,\"N\",\"Y\")))","v":""},{"$f":"IF($B740=\"N\",\"\",IF(LEN('Enrollment Form'!$AE747)=0,\"\",IF(LEN('Enrollment Form'!$AE747)<>10,\"N\",\"Y\")))","v":""},{"$f":"IF($B740=\"N\",\"\",IF(LEN('Enrollment Form'!$AF747)=0,\"\",IF(LEN('Enrollment Form'!$AF747)<>10,\"N\",\"Y\")))","v":""},{"$f":"IF('Enrollment Form'!$O747<>\"Graded\",\"-\",IF(AND('Enrollment Form'!$O747=\"Graded\",'Enrollment Form'!$AO747<>\"\"),\"Y\",\"N\"))","v":"-"},{"$f":"IF($B740=\"N\",\"\",IF(OR('Enrollment Form'!$B747<>\"Subscriber\",'Enrollment Form'!$C747=\"ROC\"),\"-\",IF(AND('Enrollment Form'!$B747=\"Subscriber\",'Enrollment Form'!$C747=\"Enroll\",'Enrollment Form'!$AJ747<>\"\"),\"Y\",\"N\")))","v":""},{"$f":"IF($B740=\"N\",\"\",IF(OR('Enrollment Form'!$B747<>\"Subscriber\",'Enrollment Form'!$C747=\"ROC\"),\"-\",IF(AND('Enrollment Form'!$B747=\"Subscriber\",'Enrollment Form'!$C747=\"Enroll\",'Enrollment Form'!$AK747<>\"\"),\"Y\",\"N\")))","v":""},{"$f":"IF($B740=\"N\",\"\",IF(OR('Enrollment Form'!$B747<>\"Subscriber\",'Enrollment Form'!$C747=\"ROC\"),\"-\",IF(AND('Enrollment Form'!$B747=\"Subscriber\",'Enrollment Form'!$C747=\"Enroll\",'Enrollment Form'!$AL747<>\"\"),\"Y\",\"N\")))","v":""},{"$f":"IF($B740=\"N\",\"\",IF(OR('Enrollment Form'!$B747<>\"Subscriber\",'Enrollment Form'!$C747=\"ROC\"),\"-\",IF(AND('Enrollment Form'!$B747=\"Subscriber\",'Enrollment Form'!$C747=\"Enroll\",'Enrollment Form'!$AM747<>\"\"),\"Y\",\"N\")))","v":""},{"$f":"IF($B740=\"N\",\"\",IF(OR('Enrollment Form'!$B747<>\"Subscriber\",'Enrollment Form'!$C747=\"ROC\"),\"-\",IF(AND('Enrollment Form'!$B747=\"Subscriber\",'Enrollment Form'!$C747=\"Enroll\",'Enrollment Form'!$AN747<>\"\"),\"Y\",\"N\")))","v":""},{"$f":"IF($B740=\"N\",\"\",IF(OR('Enrollment Form'!$B747<>\"Subscriber\",'Enrollment Form'!$C747=\"ROC\"),\"-\",IF(AND('Enrollment Form'!$B747=\"Subscriber\",'Enrollment Form'!$C747=\"Enroll\",'Enrollment Form'!$AP747<>\"\"),\"Y\",\"N\")))","v":""},{"$f":"IF($B740=\"N\",\"\",IF($Q740=\"-\",\"-\",IF(AND($Q740=\"Y\",'Enrollment Form'!$AP747=\"No\"),\"-\",IF(AND($Q740=\"Y\",'Enrollment Form'!$AP747=\"Yes\",'Enrollment Form'!$AQ747<>\"\"),\"Y\",\"N\"))))","v":""},{"$f":"IF($B740=\"N\",\"\",IF(OR('Enrollment Form'!$B747<>\"Subscriber\",'Enrollment Form'!$C747=\"ROC\"),\"-\",IF(AND('Enrollment Form'!$B747=\"Subscriber\",'Enrollment Form'!$C747=\"Enroll\",'Enrollment Form'!$CO747<>\"\"),\"Y\",\"N\")))","v":""},{"$f":"IF($B740=\"N\",\"\",IF($S740=\"-\",\"-\",IF(AND($S740=\"Y\",'Enrollment Form'!$CO747=\"No\"),\"-\",IF(AND($S740=\"Y\",'Enrollment Form'!$CO747=\"Yes\",'Enrollment Form'!$CP747<>\"\"),\"Y\",\"N\"))))","v":""},{"$f":"IF(OR('Enrollment Form'!$AV747=\"Yes\",'Enrollment Form'!$AV747=\"\"),\"-\",IF(AND('Enrollment Form'!$AV747=\"No\",ISERROR(FIND(\"HMO\",VLOOKUP('Enrollment Form'!G747,'Enrollment Form'!H$11:J$1000,3,FALSE),1))=FALSE,COUNTA('Enrollment Form'!$AW747:$AZ747)=4),\"Y\",\"N\"))","v":"-"},{"$f":"IF($B740=\"N\",\"\",IF('Enrollment Form'!$B747=\"Subscriber\",\"-\",IF(COUNTA('Enrollment Form'!$BE747,'Enrollment Form'!$BG747)=2,\"Y\",\"N\")))","v":""},{"$f":"IF($B740=\"N\",\"\",IF(OR('Enrollment Form'!$AU747=\"\",'Enrollment Form'!$AU747=\"No\"),\"-\",IF(AND('Enrollment Form'!$AU747=\"Yes\",COUNTA('Enrollment Form'!$CK747)=1),\"Y\",\"N\")))","v":""},{"$f":"IF(OR('Enrollment Form'!$CK747=\"\",'Enrollment Form'!$CK747=\"No\"),\"-\",IF(COUNTA('Enrollment Form'!$CM747:$CN747)=2,\"Y\",\"N\"))","v":"-"},{"$f":"IF($B740=\"N\",\"\",IF(COUNTIF('Enrollment Form'!$CZ747:$DO747,\"Other\")=COUNTA('Enrollment Form'!$DF747,'Enrollment Form'!$DA747,'Enrollment Form'!$DK747,'Enrollment Form'!$DP747),\"Y\",\"N\"))","v":""},{"$f":"IF($B740=\"N\",\"\",IF(OR('Enrollment Form'!B747<>\"Subscriber\",'Enrollment Form'!C747=\"ROC\",COUNTIF('Enrollment Form'!AS747:AT747,\"Yes\")>=1),\"-\",IF(AND('Enrollment Form'!C747=\"Enroll\",COUNTIF('Enrollment Form'!AS747:AT747,\"No\")=2,'Enrollment Form'!AU747=\"\"),\"N\",\"Y\")))","v":""},{"$f":"IF(OR(B740=\"N\",'Enrollment Form'!B747<>\"Subscriber\",'Enrollment Form'!C747=\"ROC\",'Enrollment Form'!O747<>\"Multiple of Salary\"),\"-\",IF(COUNTA('Enrollment Form'!T747:U747)<2,\"N\",\"Y\"))","v":"-"},{"$f":"IF(B740=\"N\",\"\",IF(OR('Enrollment Form'!C747=\"ROC\",'Enrollment Form'!B747<>\"Subscriber\",'Enrollment Form'!O747=\"Waive\",'Enrollment Form'!O747=\"\"),\"-\",IF('Enrollment Form'!P747=\"\",\"N\",\"Y\")))","v":""},{"$f":"IF($B740=\"N\",\"\",IF(AND('Enrollment Form'!$C747=\"ROC\",'Enrollment Form'!$DS747<>\"\"),\"Y\",IF(AND('Enrollment Form'!$C747=\"ROC\",'Enrollment Form'!$DS747=\"\"),\"N\",IF(AND('Enrollment Form'!$C747=\"Enroll\",'Enrollment Form'!$B747=\"Subscriber\",'Enrollment Form'!$CQ747=\"No\",'Enrollment Form'!$DS747=\"\"),\"N\",IF(AND('Enrollment Form'!$C747=\"Enroll\",'Enrollment Form'!$B747=\"Subscriber\",'Enrollment Form'!$CQ747=\"Yes\"),\"-\",\"Y\")))))","v":""},{"$f":"IF($B740=\"N\",\"\",IF(AND('Enrollment Form'!$C747=\"ROC\",'Enrollment Form'!$DT747<>\"\"),\"Y\",IF(AND('Enrollment Form'!$C747=\"ROC\",'Enrollment Form'!$DT747=\"\"),\"N\",IF(AND('Enrollment Form'!$C747=\"Enroll\",'Enrollment Form'!$B747=\"Subscriber\",'Enrollment Form'!$CQ747=\"No\",'Enrollment Form'!$DT747=\"\"),\"N\",IF(AND('Enrollment Form'!$C747=\"Enroll\",'Enrollment Form'!$B747=\"Subscriber\",'Enrollment Form'!$CQ747=\"Yes\"),\"-\",\"Y\")))))","v":""},{"$f":"IF('Enrollment Form'!AH747=\"\",\"\",IF(ISERROR(SEARCH(\".\",'Enrollment Form'!AH747,SEARCH(\"@\",'Enrollment Form'!AH747))),\"N\",\"Y\"))","v":""},{"$f":"IF(OR($B740=\"N\",'Enrollment Form'!$G747=\"\"),\"\",IF('Enrollment Form'!$B747<>\"Subscriber\",\"-\",IF(COUNTIF('Enrollment Form'!$AS747:$AT747,\"Yes\")=2,\"N\",\"Y\")))","v":""},{"$f":"IF(OR('Enrollment Form'!$CC747=\"\",'Enrollment Form'!$CC747=\"No\"),\"-\",IF(AND('Enrollment Form'!$CC747=\"Yes\",'Enrollment Form'!$CD747=\"\"),\"N\",\"Y\"))","v":"-"},{"$f":"IF(OR('Enrollment Form'!$CE747=\"\",'Enrollment Form'!$CE747=\"No\"),\"-\",IF(AND('Enrollment Form'!$CE747=\"Yes\",'Enrollment Form'!$CF747=\"\"),\"N\",\"Y\"))","v":"-"},{"$f":"IF(OR('Enrollment Form'!$CG747=\"\",'Enrollment Form'!$CG747=\"No\"),\"-\",IF(AND('Enrollment Form'!$CG747=\"Yes\",'Enrollment Form'!$CH747=\"\"),\"N\",\"Y\"))","v":"-"},{"$f":"IF(OR('Enrollment Form'!$CG747=\"\",'Enrollment Form'!$CG747=\"No\"),\"-\",IF(AND('Enrollment Form'!$CG747=\"Yes\",'Enrollment Form'!$CI747=\"\"),\"N\",\"Y\"))","v":"-"},{"$f":"IF('Enrollment Form'!B747<>\"Subscriber\",\"-\",IF(AND('Enrollment Form'!B747=\"Subscriber\",'Enrollment Form'!C747=\"Enroll\",'Enrollment Form'!AA747=\"\"),\"N\",\"Y\"))","v":"-"},{"$f":"IF(OR('Enrollment Form'!B747=\"Subscriber\",'Enrollment Form'!B747=\"\"),\"-\",IF('Enrollment Form'!BI747=\"\",\"N\",\"Y\"))","v":"-"},{"$f":"IF('Enrollment Form'!B747<>\"Subscriber\",\"-\",IF(AND('Enrollment Form'!B747=\"Subscriber\",'Enrollment Form'!G747=\"\"),\"N\",\"Y\"))","v":"-"},{"$f":"IF('Enrollment Form'!A747=\"\",\"\",IF('Enrollment Form'!B747=\"Subscriber\",\"-\",IF(AND('Enrollment Form'!B747<>\"Subscriber\",'Enrollment Form'!G747='Enrollment Form'!H747),\"N\",\"Y\")))","v":""},0]
[748,{"$f":"IF('Enrollment Form'!$A748<>\"\",\"Y\",\"N\")","v":"N"},{"$f":"IF(AND('Enrollment Form'!$B748=\"\",'Enrollment Form'!$C748<>\"\"),\"N\",IF($B741=\"N\",\"\",\"Y\"))","v":""},{"$f":"IF(OR($B741=\"N\",'Enrollment Form'!G748=\"\"),\"\",IF('Enrollment Form'!$B748<>\"Subscriber\",\"\",IF('Enrollment Form'!$G748='Enrollment Form'!$H748,\"Y\",\"N\")))","v":""},{"$f":"IF($B741=\"N\",\"\",IF(AND(COUNTIFS('Enrollment Form'!$H$11:$H$1000,'Enrollment Form'!$H748,'Enrollment Form'!$B$11:$B$1000,'Enrollment Form'!$B748)>1,'Enrollment Form'!$H748<>\"\"),\"N\",\"Y\"))","v":""},{"$f":"IF($B741=\"N\",\"\",IF(LEN('Enrollment Form'!$Y748)=0,\"\",IF(LEN('Enrollment Form'!$Y748)<>5,\"N\",\"Y\")))","v":""},{"$f":"IF($B741=\"N\",\"\",IF(LEN('Enrollment Form'!$AD748=0),\"\",IF(LEN('Enrollment Form'!$AD748)<>5,\"N\",\"Y\")))","v":""},{"$f":"IF($B741=\"N\",\"\",IF(LEN('Enrollment Form'!$BL748=0),\"\",IF(LEN('Enrollment Form'!$BL748)<>5,\"N\",\"Y\")))","v":""},{"$f":"IF($B741=\"N\",\"\",IF(LEN('Enrollment Form'!$AE748)=0,\"\",IF(LEN('Enrollment Form'!$AE748)<>10,\"N\",\"Y\")))","v":""},{"$f":"IF($B741=\"N\",\"\",IF(LEN('Enrollment Form'!$AF748)=0,\"\",IF(LEN('Enrollment Form'!$AF748)<>10,\"N\",\"Y\")))","v":""},{"$f":"IF('Enrollment Form'!$O748<>\"Graded\",\"-\",IF(AND('Enrollment Form'!$O748=\"Graded\",'Enrollment Form'!$AO748<>\"\"),\"Y\",\"N\"))","v":"-"},{"$f":"IF($B741=\"N\",\"\",IF(OR('Enrollment Form'!$B748<>\"Subscriber\",'Enrollment Form'!$C748=\"ROC\"),\"-\",IF(AND('Enrollment Form'!$B748=\"Subscriber\",'Enrollment Form'!$C748=\"Enroll\",'Enrollment Form'!$AJ748<>\"\"),\"Y\",\"N\")))","v":""},{"$f":"IF($B741=\"N\",\"\",IF(OR('Enrollment Form'!$B748<>\"Subscriber\",'Enrollment Form'!$C748=\"ROC\"),\"-\",IF(AND('Enrollment Form'!$B748=\"Subscriber\",'Enrollment Form'!$C748=\"Enroll\",'Enrollment Form'!$AK748<>\"\"),\"Y\",\"N\")))","v":""},{"$f":"IF($B741=\"N\",\"\",IF(OR('Enrollment Form'!$B748<>\"Subscriber\",'Enrollment Form'!$C748=\"ROC\"),\"-\",IF(AND('Enrollment Form'!$B748=\"Subscriber\",'Enrollment Form'!$C748=\"Enroll\",'Enrollment Form'!$AL748<>\"\"),\"Y\",\"N\")))","v":""},{"$f":"IF($B741=\"N\",\"\",IF(OR('Enrollment Form'!$B748<>\"Subscriber\",'Enrollment Form'!$C748=\"ROC\"),\"-\",IF(AND('Enrollment Form'!$B748=\"Subscriber\",'Enrollment Form'!$C748=\"Enroll\",'Enrollment Form'!$AM748<>\"\"),\"Y\",\"N\")))","v":""},{"$f":"IF($B741=\"N\",\"\",IF(OR('Enrollment Form'!$B748<>\"Subscriber\",'Enrollment Form'!$C748=\"ROC\"),\"-\",IF(AND('Enrollment Form'!$B748=\"Subscriber\",'Enrollment Form'!$C748=\"Enroll\",'Enrollment Form'!$AN748<>\"\"),\"Y\",\"N\")))","v":""},{"$f":"IF($B741=\"N\",\"\",IF(OR('Enrollment Form'!$B748<>\"Subscriber\",'Enrollment Form'!$C748=\"ROC\"),\"-\",IF(AND('Enrollment Form'!$B748=\"Subscriber\",'Enrollment Form'!$C748=\"Enroll\",'Enrollment Form'!$AP748<>\"\"),\"Y\",\"N\")))","v":""},{"$f":"IF($B741=\"N\",\"\",IF($Q741=\"-\",\"-\",IF(AND($Q741=\"Y\",'Enrollment Form'!$AP748=\"No\"),\"-\",IF(AND($Q741=\"Y\",'Enrollment Form'!$AP748=\"Yes\",'Enrollment Form'!$AQ748<>\"\"),\"Y\",\"N\"))))","v":""},{"$f":"IF($B741=\"N\",\"\",IF(OR('Enrollment Form'!$B748<>\"Subscriber\",'Enrollment Form'!$C748=\"ROC\"),\"-\",IF(AND('Enrollment Form'!$B748=\"Subscriber\",'Enrollment Form'!$C748=\"Enroll\",'Enrollment Form'!$CO748<>\"\"),\"Y\",\"N\")))","v":""},{"$f":"IF($B741=\"N\",\"\",IF($S741=\"-\",\"-\",IF(AND($S741=\"Y\",'Enrollment Form'!$CO748=\"No\"),\"-\",IF(AND($S741=\"Y\",'Enrollment Form'!$CO748=\"Yes\",'Enrollment Form'!$CP748<>\"\"),\"Y\",\"N\"))))","v":""},{"$f":"IF(OR('Enrollment Form'!$AV748=\"Yes\",'Enrollment Form'!$AV748=\"\"),\"-\",IF(AND('Enrollment Form'!$AV748=\"No\",ISERROR(FIND(\"HMO\",VLOOKUP('Enrollment Form'!G748,'Enrollment Form'!H$11:J$1000,3,FALSE),1))=FALSE,COUNTA('Enrollment Form'!$AW748:$AZ748)=4),\"Y\",\"N\"))","v":"-"},{"$f":"IF($B741=\"N\",\"\",IF('Enrollment Form'!$B748=\"Subscriber\",\"-\",IF(COUNTA('Enrollment Form'!$BE748,'Enrollment Form'!$BG748)=2,\"Y\",\"N\")))","v":""},{"$f":"IF($B741=\"N\",\"\",IF(OR('Enrollment Form'!$AU748=\"\",'Enrollment Form'!$AU748=\"No\"),\"-\",IF(AND('Enrollment Form'!$AU748=\"Yes\",COUNTA('Enrollment Form'!$CK748)=1),\"Y\",\"N\")))","v":""},{"$f":"IF(OR('Enrollment Form'!$CK748=\"\",'Enrollment Form'!$CK748=\"No\"),\"-\",IF(COUNTA('Enrollment Form'!$CM748:$CN748)=2,\"Y\",\"N\"))","v":"-"},{"$f":"IF($B741=\"N\",\"\",IF(COUNTIF('Enrollment Form'!$CZ748:$DO748,\"Other\")=COUNTA('Enrollment Form'!$DF748,'Enrollment Form'!$DA748,'Enrollment Form'!$DK748,'Enrollment Form'!$DP748),\"Y\",\"N\"))","v":""},{"$f":"IF($B741=\"N\",\"\",IF(OR('Enrollment Form'!B748<>\"Subscriber\",'Enrollment Form'!C748=\"ROC\",COUNTIF('Enrollment Form'!AS748:AT748,\"Yes\")>=1),\"-\",IF(AND('Enrollment Form'!C748=\"Enroll\",COUNTIF('Enrollment Form'!AS748:AT748,\"No\")=2,'Enrollment Form'!AU748=\"\"),\"N\",\"Y\")))","v":""},{"$f":"IF(OR(B741=\"N\",'Enrollment Form'!B748<>\"Subscriber\",'Enrollment Form'!C748=\"ROC\",'Enrollment Form'!O748<>\"Multiple of Salary\"),\"-\",IF(COUNTA('Enrollment Form'!T748:U748)<2,\"N\",\"Y\"))","v":"-"},{"$f":"IF(B741=\"N\",\"\",IF(OR('Enrollment Form'!C748=\"ROC\",'Enrollment Form'!B748<>\"Subscriber\",'Enrollment Form'!O748=\"Waive\",'Enrollment Form'!O748=\"\"),\"-\",IF('Enrollment Form'!P748=\"\",\"N\",\"Y\")))","v":""},{"$f":"IF($B741=\"N\",\"\",IF(AND('Enrollment Form'!$C748=\"ROC\",'Enrollment Form'!$DS748<>\"\"),\"Y\",IF(AND('Enrollment Form'!$C748=\"ROC\",'Enrollment Form'!$DS748=\"\"),\"N\",IF(AND('Enrollment Form'!$C748=\"Enroll\",'Enrollment Form'!$B748=\"Subscriber\",'Enrollment Form'!$CQ748=\"No\",'Enrollment Form'!$DS748=\"\"),\"N\",IF(AND('Enrollment Form'!$C748=\"Enroll\",'Enrollment Form'!$B748=\"Subscriber\",'Enrollment Form'!$CQ748=\"Yes\"),\"-\",\"Y\")))))","v":""},{"$f":"IF($B741=\"N\",\"\",IF(AND('Enrollment Form'!$C748=\"ROC\",'Enrollment Form'!$DT748<>\"\"),\"Y\",IF(AND('Enrollment Form'!$C748=\"ROC\",'Enrollment Form'!$DT748=\"\"),\"N\",IF(AND('Enrollment Form'!$C748=\"Enroll\",'Enrollment Form'!$B748=\"Subscriber\",'Enrollment Form'!$CQ748=\"No\",'Enrollment Form'!$DT748=\"\"),\"N\",IF(AND('Enrollment Form'!$C748=\"Enroll\",'Enrollment Form'!$B748=\"Subscriber\",'Enrollment Form'!$CQ748=\"Yes\"),\"-\",\"Y\")))))","v":""},{"$f":"IF('Enrollment Form'!AH748=\"\",\"\",IF(ISERROR(SEARCH(\".\",'Enrollment Form'!AH748,SEARCH(\"@\",'Enrollment Form'!AH748))),\"N\",\"Y\"))","v":""},{"$f":"IF(OR($B741=\"N\",'Enrollment Form'!$G748=\"\"),\"\",IF('Enrollment Form'!$B748<>\"Subscriber\",\"-\",IF(COUNTIF('Enrollment Form'!$AS748:$AT748,\"Yes\")=2,\"N\",\"Y\")))","v":""},{"$f":"IF(OR('Enrollment Form'!$CC748=\"\",'Enrollment Form'!$CC748=\"No\"),\"-\",IF(AND('Enrollment Form'!$CC748=\"Yes\",'Enrollment Form'!$CD748=\"\"),\"N\",\"Y\"))","v":"-"},{"$f":"IF(OR('Enrollment Form'!$CE748=\"\",'Enrollment Form'!$CE748=\"No\"),\"-\",IF(AND('Enrollment Form'!$CE748=\"Yes\",'Enrollment Form'!$CF748=\"\"),\"N\",\"Y\"))","v":"-"},{"$f":"IF(OR('Enrollment Form'!$CG748=\"\",'Enrollment Form'!$CG748=\"No\"),\"-\",IF(AND('Enrollment Form'!$CG748=\"Yes\",'Enrollment Form'!$CH748=\"\"),\"N\",\"Y\"))","v":"-"},{"$f":"IF(OR('Enrollment Form'!$CG748=\"\",'Enrollment Form'!$CG748=\"No\"),\"-\",IF(AND('Enrollment Form'!$CG748=\"Yes\",'Enrollment Form'!$CI748=\"\"),\"N\",\"Y\"))","v":"-"},{"$f":"IF('Enrollment Form'!B748<>\"Subscriber\",\"-\",IF(AND('Enrollment Form'!B748=\"Subscriber\",'Enrollment Form'!C748=\"Enroll\",'Enrollment Form'!AA748=\"\"),\"N\",\"Y\"))","v":"-"},{"$f":"IF(OR('Enrollment Form'!B748=\"Subscriber\",'Enrollment Form'!B748=\"\"),\"-\",IF('Enrollment Form'!BI748=\"\",\"N\",\"Y\"))","v":"-"},{"$f":"IF('Enrollment Form'!B748<>\"Subscriber\",\"-\",IF(AND('Enrollment Form'!B748=\"Subscriber\",'Enrollment Form'!G748=\"\"),\"N\",\"Y\"))","v":"-"},{"$f":"IF('Enrollment Form'!A748=\"\",\"\",IF('Enrollment Form'!B748=\"Subscriber\",\"-\",IF(AND('Enrollment Form'!B748<>\"Subscriber\",'Enrollment Form'!G748='Enrollment Form'!H748),\"N\",\"Y\")))","v":""},0]
[749,{"$f":"IF('Enrollment Form'!$A749<>\"\",\"Y\",\"N\")","v":"N"},{"$f":"IF(AND('Enrollment Form'!$B749=\"\",'Enrollment Form'!$C749<>\"\"),\"N\",IF($B742=\"N\",\"\",\"Y\"))","v":""},{"$f":"IF(OR($B742=\"N\",'Enrollment Form'!G749=\"\"),\"\",IF('Enrollment Form'!$B749<>\"Subscriber\",\"\",IF('Enrollment Form'!$G749='Enrollment Form'!$H749,\"Y\",\"N\")))","v":""},{"$f":"IF($B742=\"N\",\"\",IF(AND(COUNTIFS('Enrollment Form'!$H$11:$H$1000,'Enrollment Form'!$H749,'Enrollment Form'!$B$11:$B$1000,'Enrollment Form'!$B749)>1,'Enrollment Form'!$H749<>\"\"),\"N\",\"Y\"))","v":""},{"$f":"IF($B742=\"N\",\"\",IF(LEN('Enrollment Form'!$Y749)=0,\"\",IF(LEN('Enrollment Form'!$Y749)<>5,\"N\",\"Y\")))","v":""},{"$f":"IF($B742=\"N\",\"\",IF(LEN('Enrollment Form'!$AD749=0),\"\",IF(LEN('Enrollment Form'!$AD749)<>5,\"N\",\"Y\")))","v":""},{"$f":"IF($B742=\"N\",\"\",IF(LEN('Enrollment Form'!$BL749=0),\"\",IF(LEN('Enrollment Form'!$BL749)<>5,\"N\",\"Y\")))","v":""},{"$f":"IF($B742=\"N\",\"\",IF(LEN('Enrollment Form'!$AE749)=0,\"\",IF(LEN('Enrollment Form'!$AE749)<>10,\"N\",\"Y\")))","v":""},{"$f":"IF($B742=\"N\",\"\",IF(LEN('Enrollment Form'!$AF749)=0,\"\",IF(LEN('Enrollment Form'!$AF749)<>10,\"N\",\"Y\")))","v":""},{"$f":"IF('Enrollment Form'!$O749<>\"Graded\",\"-\",IF(AND('Enrollment Form'!$O749=\"Graded\",'Enrollment Form'!$AO749<>\"\"),\"Y\",\"N\"))","v":"-"},{"$f":"IF($B742=\"N\",\"\",IF(OR('Enrollment Form'!$B749<>\"Subscriber\",'Enrollment Form'!$C749=\"ROC\"),\"-\",IF(AND('Enrollment Form'!$B749=\"Subscriber\",'Enrollment Form'!$C749=\"Enroll\",'Enrollment Form'!$AJ749<>\"\"),\"Y\",\"N\")))","v":""},{"$f":"IF($B742=\"N\",\"\",IF(OR('Enrollment Form'!$B749<>\"Subscriber\",'Enrollment Form'!$C749=\"ROC\"),\"-\",IF(AND('Enrollment Form'!$B749=\"Subscriber\",'Enrollment Form'!$C749=\"Enroll\",'Enrollment Form'!$AK749<>\"\"),\"Y\",\"N\")))","v":""},{"$f":"IF($B742=\"N\",\"\",IF(OR('Enrollment Form'!$B749<>\"Subscriber\",'Enrollment Form'!$C749=\"ROC\"),\"-\",IF(AND('Enrollment Form'!$B749=\"Subscriber\",'Enrollment Form'!$C749=\"Enroll\",'Enrollment Form'!$AL749<>\"\"),\"Y\",\"N\")))","v":""},{"$f":"IF($B742=\"N\",\"\",IF(OR('Enrollment Form'!$B749<>\"Subscriber\",'Enrollment Form'!$C749=\"ROC\"),\"-\",IF(AND('Enrollment Form'!$B749=\"Subscriber\",'Enrollment Form'!$C749=\"Enroll\",'Enrollment Form'!$AM749<>\"\"),\"Y\",\"N\")))","v":""},{"$f":"IF($B742=\"N\",\"\",IF(OR('Enrollment Form'!$B749<>\"Subscriber\",'Enrollment Form'!$C749=\"ROC\"),\"-\",IF(AND('Enrollment Form'!$B749=\"Subscriber\",'Enrollment Form'!$C749=\"Enroll\",'Enrollment Form'!$AN749<>\"\"),\"Y\",\"N\")))","v":""},{"$f":"IF($B742=\"N\",\"\",IF(OR('Enrollment Form'!$B749<>\"Subscriber\",'Enrollment Form'!$C749=\"ROC\"),\"-\",IF(AND('Enrollment Form'!$B749=\"Subscriber\",'Enrollment Form'!$C749=\"Enroll\",'Enrollment Form'!$AP749<>\"\"),\"Y\",\"N\")))","v":""},{"$f":"IF($B742=\"N\",\"\",IF($Q742=\"-\",\"-\",IF(AND($Q742=\"Y\",'Enrollment Form'!$AP749=\"No\"),\"-\",IF(AND($Q742=\"Y\",'Enrollment Form'!$AP749=\"Yes\",'Enrollment Form'!$AQ749<>\"\"),\"Y\",\"N\"))))","v":""},{"$f":"IF($B742=\"N\",\"\",IF(OR('Enrollment Form'!$B749<>\"Subscriber\",'Enrollment Form'!$C749=\"ROC\"),\"-\",IF(AND('Enrollment Form'!$B749=\"Subscriber\",'Enrollment Form'!$C749=\"Enroll\",'Enrollment Form'!$CO749<>\"\"),\"Y\",\"N\")))","v":""},{"$f":"IF($B742=\"N\",\"\",IF($S742=\"-\",\"-\",IF(AND($S742=\"Y\",'Enrollment Form'!$CO749=\"No\"),\"-\",IF(AND($S742=\"Y\",'Enrollment Form'!$CO749=\"Yes\",'Enrollment Form'!$CP749<>\"\"),\"Y\",\"N\"))))","v":""},{"$f":"IF(OR('Enrollment Form'!$AV749=\"Yes\",'Enrollment Form'!$AV749=\"\"),\"-\",IF(AND('Enrollment Form'!$AV749=\"No\",ISERROR(FIND(\"HMO\",VLOOKUP('Enrollment Form'!G749,'Enrollment Form'!H$11:J$1000,3,FALSE),1))=FALSE,COUNTA('Enrollment Form'!$AW749:$AZ749)=4),\"Y\",\"N\"))","v":"-"},{"$f":"IF($B742=\"N\",\"\",IF('Enrollment Form'!$B749=\"Subscriber\",\"-\",IF(COUNTA('Enrollment Form'!$BE749,'Enrollment Form'!$BG749)=2,\"Y\",\"N\")))","v":""},{"$f":"IF($B742=\"N\",\"\",IF(OR('Enrollment Form'!$AU749=\"\",'Enrollment Form'!$AU749=\"No\"),\"-\",IF(AND('Enrollment Form'!$AU749=\"Yes\",COUNTA('Enrollment Form'!$CK749)=1),\"Y\",\"N\")))","v":""},{"$f":"IF(OR('Enrollment Form'!$CK749=\"\",'Enrollment Form'!$CK749=\"No\"),\"-\",IF(COUNTA('Enrollment Form'!$CM749:$CN749)=2,\"Y\",\"N\"))","v":"-"},{"$f":"IF($B742=\"N\",\"\",IF(COUNTIF('Enrollment Form'!$CZ749:$DO749,\"Other\")=COUNTA('Enrollment Form'!$DF749,'Enrollment Form'!$DA749,'Enrollment Form'!$DK749,'Enrollment Form'!$DP749),\"Y\",\"N\"))","v":""},{"$f":"IF($B742=\"N\",\"\",IF(OR('Enrollment Form'!B749<>\"Subscriber\",'Enrollment Form'!C749=\"ROC\",COUNTIF('Enrollment Form'!AS749:AT749,\"Yes\")>=1),\"-\",IF(AND('Enrollment Form'!C749=\"Enroll\",COUNTIF('Enrollment Form'!AS749:AT749,\"No\")=2,'Enrollment Form'!AU749=\"\"),\"N\",\"Y\")))","v":""},{"$f":"IF(OR(B742=\"N\",'Enrollment Form'!B749<>\"Subscriber\",'Enrollment Form'!C749=\"ROC\",'Enrollment Form'!O749<>\"Multiple of Salary\"),\"-\",IF(COUNTA('Enrollment Form'!T749:U749)<2,\"N\",\"Y\"))","v":"-"},{"$f":"IF(B742=\"N\",\"\",IF(OR('Enrollment Form'!C749=\"ROC\",'Enrollment Form'!B749<>\"Subscriber\",'Enrollment Form'!O749=\"Waive\",'Enrollment Form'!O749=\"\"),\"-\",IF('Enrollment Form'!P749=\"\",\"N\",\"Y\")))","v":""},{"$f":"IF($B742=\"N\",\"\",IF(AND('Enrollment Form'!$C749=\"ROC\",'Enrollment Form'!$DS749<>\"\"),\"Y\",IF(AND('Enrollment Form'!$C749=\"ROC\",'Enrollment Form'!$DS749=\"\"),\"N\",IF(AND('Enrollment Form'!$C749=\"Enroll\",'Enrollment Form'!$B749=\"Subscriber\",'Enrollment Form'!$CQ749=\"No\",'Enrollment Form'!$DS749=\"\"),\"N\",IF(AND('Enrollment Form'!$C749=\"Enroll\",'Enrollment Form'!$B749=\"Subscriber\",'Enrollment Form'!$CQ749=\"Yes\"),\"-\",\"Y\")))))","v":""},{"$f":"IF($B742=\"N\",\"\",IF(AND('Enrollment Form'!$C749=\"ROC\",'Enrollment Form'!$DT749<>\"\"),\"Y\",IF(AND('Enrollment Form'!$C749=\"ROC\",'Enrollment Form'!$DT749=\"\"),\"N\",IF(AND('Enrollment Form'!$C749=\"Enroll\",'Enrollment Form'!$B749=\"Subscriber\",'Enrollment Form'!$CQ749=\"No\",'Enrollment Form'!$DT749=\"\"),\"N\",IF(AND('Enrollment Form'!$C749=\"Enroll\",'Enrollment Form'!$B749=\"Subscriber\",'Enrollment Form'!$CQ749=\"Yes\"),\"-\",\"Y\")))))","v":""},{"$f":"IF('Enrollment Form'!AH749=\"\",\"\",IF(ISERROR(SEARCH(\".\",'Enrollment Form'!AH749,SEARCH(\"@\",'Enrollment Form'!AH749))),\"N\",\"Y\"))","v":""},{"$f":"IF(OR($B742=\"N\",'Enrollment Form'!$G749=\"\"),\"\",IF('Enrollment Form'!$B749<>\"Subscriber\",\"-\",IF(COUNTIF('Enrollment Form'!$AS749:$AT749,\"Yes\")=2,\"N\",\"Y\")))","v":""},{"$f":"IF(OR('Enrollment Form'!$CC749=\"\",'Enrollment Form'!$CC749=\"No\"),\"-\",IF(AND('Enrollment Form'!$CC749=\"Yes\",'Enrollment Form'!$CD749=\"\"),\"N\",\"Y\"))","v":"-"},{"$f":"IF(OR('Enrollment Form'!$CE749=\"\",'Enrollment Form'!$CE749=\"No\"),\"-\",IF(AND('Enrollment Form'!$CE749=\"Yes\",'Enrollment Form'!$CF749=\"\"),\"N\",\"Y\"))","v":"-"},{"$f":"IF(OR('Enrollment Form'!$CG749=\"\",'Enrollment Form'!$CG749=\"No\"),\"-\",IF(AND('Enrollment Form'!$CG749=\"Yes\",'Enrollment Form'!$CH749=\"\"),\"N\",\"Y\"))","v":"-"},{"$f":"IF(OR('Enrollment Form'!$CG749=\"\",'Enrollment Form'!$CG749=\"No\"),\"-\",IF(AND('Enrollment Form'!$CG749=\"Yes\",'Enrollment Form'!$CI749=\"\"),\"N\",\"Y\"))","v":"-"},{"$f":"IF('Enrollment Form'!B749<>\"Subscriber\",\"-\",IF(AND('Enrollment Form'!B749=\"Subscriber\",'Enrollment Form'!C749=\"Enroll\",'Enrollment Form'!AA749=\"\"),\"N\",\"Y\"))","v":"-"},{"$f":"IF(OR('Enrollment Form'!B749=\"Subscriber\",'Enrollment Form'!B749=\"\"),\"-\",IF('Enrollment Form'!BI749=\"\",\"N\",\"Y\"))","v":"-"},{"$f":"IF('Enrollment Form'!B749<>\"Subscriber\",\"-\",IF(AND('Enrollment Form'!B749=\"Subscriber\",'Enrollment Form'!G749=\"\"),\"N\",\"Y\"))","v":"-"},{"$f":"IF('Enrollment Form'!A749=\"\",\"\",IF('Enrollment Form'!B749=\"Subscriber\",\"-\",IF(AND('Enrollment Form'!B749<>\"Subscriber\",'Enrollment Form'!G749='Enrollment Form'!H749),\"N\",\"Y\")))","v":""},0]
[750,{"$f":"IF('Enrollment Form'!$A750<>\"\",\"Y\",\"N\")","v":"N"},{"$f":"IF(AND('Enrollment Form'!$B750=\"\",'Enrollment Form'!$C750<>\"\"),\"N\",IF($B743=\"N\",\"\",\"Y\"))","v":""},{"$f":"IF(OR($B743=\"N\",'Enrollment Form'!G750=\"\"),\"\",IF('Enrollment Form'!$B750<>\"Subscriber\",\"\",IF('Enrollment Form'!$G750='Enrollment Form'!$H750,\"Y\",\"N\")))","v":""},{"$f":"IF($B743=\"N\",\"\",IF(AND(COUNTIFS('Enrollment Form'!$H$11:$H$1000,'Enrollment Form'!$H750,'Enrollment Form'!$B$11:$B$1000,'Enrollment Form'!$B750)>1,'Enrollment Form'!$H750<>\"\"),\"N\",\"Y\"))","v":""},{"$f":"IF($B743=\"N\",\"\",IF(LEN('Enrollment Form'!$Y750)=0,\"\",IF(LEN('Enrollment Form'!$Y750)<>5,\"N\",\"Y\")))","v":""},{"$f":"IF($B743=\"N\",\"\",IF(LEN('Enrollment Form'!$AD750=0),\"\",IF(LEN('Enrollment Form'!$AD750)<>5,\"N\",\"Y\")))","v":""},{"$f":"IF($B743=\"N\",\"\",IF(LEN('Enrollment Form'!$BL750=0),\"\",IF(LEN('Enrollment Form'!$BL750)<>5,\"N\",\"Y\")))","v":""},{"$f":"IF($B743=\"N\",\"\",IF(LEN('Enrollment Form'!$AE750)=0,\"\",IF(LEN('Enrollment Form'!$AE750)<>10,\"N\",\"Y\")))","v":""},{"$f":"IF($B743=\"N\",\"\",IF(LEN('Enrollment Form'!$AF750)=0,\"\",IF(LEN('Enrollment Form'!$AF750)<>10,\"N\",\"Y\")))","v":""},{"$f":"IF('Enrollment Form'!$O750<>\"Graded\",\"-\",IF(AND('Enrollment Form'!$O750=\"Graded\",'Enrollment Form'!$AO750<>\"\"),\"Y\",\"N\"))","v":"-"},{"$f":"IF($B743=\"N\",\"\",IF(OR('Enrollment Form'!$B750<>\"Subscriber\",'Enrollment Form'!$C750=\"ROC\"),\"-\",IF(AND('Enrollment Form'!$B750=\"Subscriber\",'Enrollment Form'!$C750=\"Enroll\",'Enrollment Form'!$AJ750<>\"\"),\"Y\",\"N\")))","v":""},{"$f":"IF($B743=\"N\",\"\",IF(OR('Enrollment Form'!$B750<>\"Subscriber\",'Enrollment Form'!$C750=\"ROC\"),\"-\",IF(AND('Enrollment Form'!$B750=\"Subscriber\",'Enrollment Form'!$C750=\"Enroll\",'Enrollment Form'!$AK750<>\"\"),\"Y\",\"N\")))","v":""},{"$f":"IF($B743=\"N\",\"\",IF(OR('Enrollment Form'!$B750<>\"Subscriber\",'Enrollment Form'!$C750=\"ROC\"),\"-\",IF(AND('Enrollment Form'!$B750=\"Subscriber\",'Enrollment Form'!$C750=\"Enroll\",'Enrollment Form'!$AL750<>\"\"),\"Y\",\"N\")))","v":""},{"$f":"IF($B743=\"N\",\"\",IF(OR('Enrollment Form'!$B750<>\"Subscriber\",'Enrollment Form'!$C750=\"ROC\"),\"-\",IF(AND('Enrollment Form'!$B750=\"Subscriber\",'Enrollment Form'!$C750=\"Enroll\",'Enrollment Form'!$AM750<>\"\"),\"Y\",\"N\")))","v":""},{"$f":"IF($B743=\"N\",\"\",IF(OR('Enrollment Form'!$B750<>\"Subscriber\",'Enrollment Form'!$C750=\"ROC\"),\"-\",IF(AND('Enrollment Form'!$B750=\"Subscriber\",'Enrollment Form'!$C750=\"Enroll\",'Enrollment Form'!$AN750<>\"\"),\"Y\",\"N\")))","v":""},{"$f":"IF($B743=\"N\",\"\",IF(OR('Enrollment Form'!$B750<>\"Subscriber\",'Enrollment Form'!$C750=\"ROC\"),\"-\",IF(AND('Enrollment Form'!$B750=\"Subscriber\",'Enrollment Form'!$C750=\"Enroll\",'Enrollment Form'!$AP750<>\"\"),\"Y\",\"N\")))","v":""},{"$f":"IF($B743=\"N\",\"\",IF($Q743=\"-\",\"-\",IF(AND($Q743=\"Y\",'Enrollment Form'!$AP750=\"No\"),\"-\",IF(AND($Q743=\"Y\",'Enrollment Form'!$AP750=\"Yes\",'Enrollment Form'!$AQ750<>\"\"),\"Y\",\"N\"))))","v":""},{"$f":"IF($B743=\"N\",\"\",IF(OR('Enrollment Form'!$B750<>\"Subscriber\",'Enrollment Form'!$C750=\"ROC\"),\"-\",IF(AND('Enrollment Form'!$B750=\"Subscriber\",'Enrollment Form'!$C750=\"Enroll\",'Enrollment Form'!$CO750<>\"\"),\"Y\",\"N\")))","v":""},{"$f":"IF($B743=\"N\",\"\",IF($S743=\"-\",\"-\",IF(AND($S743=\"Y\",'Enrollment Form'!$CO750=\"No\"),\"-\",IF(AND($S743=\"Y\",'Enrollment Form'!$CO750=\"Yes\",'Enrollment Form'!$CP750<>\"\"),\"Y\",\"N\"))))","v":""},{"$f":"IF(OR('Enrollment Form'!$AV750=\"Yes\",'Enrollment Form'!$AV750=\"\"),\"-\",IF(AND('Enrollment Form'!$AV750=\"No\",ISERROR(FIND(\"HMO\",VLOOKUP('Enrollment Form'!G750,'Enrollment Form'!H$11:J$1000,3,FALSE),1))=FALSE,COUNTA('Enrollment Form'!$AW750:$AZ750)=4),\"Y\",\"N\"))","v":"-"},{"$f":"IF($B743=\"N\",\"\",IF('Enrollment Form'!$B750=\"Subscriber\",\"-\",IF(COUNTA('Enrollment Form'!$BE750,'Enrollment Form'!$BG750)=2,\"Y\",\"N\")))","v":""},{"$f":"IF($B743=\"N\",\"\",IF(OR('Enrollment Form'!$AU750=\"\",'Enrollment Form'!$AU750=\"No\"),\"-\",IF(AND('Enrollment Form'!$AU750=\"Yes\",COUNTA('Enrollment Form'!$CK750)=1),\"Y\",\"N\")))","v":""},{"$f":"IF(OR('Enrollment Form'!$CK750=\"\",'Enrollment Form'!$CK750=\"No\"),\"-\",IF(COUNTA('Enrollment Form'!$CM750:$CN750)=2,\"Y\",\"N\"))","v":"-"},{"$f":"IF($B743=\"N\",\"\",IF(COUNTIF('Enrollment Form'!$CZ750:$DO750,\"Other\")=COUNTA('Enrollment Form'!$DF750,'Enrollment Form'!$DA750,'Enrollment Form'!$DK750,'Enrollment Form'!$DP750),\"Y\",\"N\"))","v":""},{"$f":"IF($B743=\"N\",\"\",IF(OR('Enrollment Form'!B750<>\"Subscriber\",'Enrollment Form'!C750=\"ROC\",COUNTIF('Enrollment Form'!AS750:AT750,\"Yes\")>=1),\"-\",IF(AND('Enrollment Form'!C750=\"Enroll\",COUNTIF('Enrollment Form'!AS750:AT750,\"No\")=2,'Enrollment Form'!AU750=\"\"),\"N\",\"Y\")))","v":""},{"$f":"IF(OR(B743=\"N\",'Enrollment Form'!B750<>\"Subscriber\",'Enrollment Form'!C750=\"ROC\",'Enrollment Form'!O750<>\"Multiple of Salary\"),\"-\",IF(COUNTA('Enrollment Form'!T750:U750)<2,\"N\",\"Y\"))","v":"-"},{"$f":"IF(B743=\"N\",\"\",IF(OR('Enrollment Form'!C750=\"ROC\",'Enrollment Form'!B750<>\"Subscriber\",'Enrollment Form'!O750=\"Waive\",'Enrollment Form'!O750=\"\"),\"-\",IF('Enrollment Form'!P750=\"\",\"N\",\"Y\")))","v":""},{"$f":"IF($B743=\"N\",\"\",IF(AND('Enrollment Form'!$C750=\"ROC\",'Enrollment Form'!$DS750<>\"\"),\"Y\",IF(AND('Enrollment Form'!$C750=\"ROC\",'Enrollment Form'!$DS750=\"\"),\"N\",IF(AND('Enrollment Form'!$C750=\"Enroll\",'Enrollment Form'!$B750=\"Subscriber\",'Enrollment Form'!$CQ750=\"No\",'Enrollment Form'!$DS750=\"\"),\"N\",IF(AND('Enrollment Form'!$C750=\"Enroll\",'Enrollment Form'!$B750=\"Subscriber\",'Enrollment Form'!$CQ750=\"Yes\"),\"-\",\"Y\")))))","v":""},{"$f":"IF($B743=\"N\",\"\",IF(AND('Enrollment Form'!$C750=\"ROC\",'Enrollment Form'!$DT750<>\"\"),\"Y\",IF(AND('Enrollment Form'!$C750=\"ROC\",'Enrollment Form'!$DT750=\"\"),\"N\",IF(AND('Enrollment Form'!$C750=\"Enroll\",'Enrollment Form'!$B750=\"Subscriber\",'Enrollment Form'!$CQ750=\"No\",'Enrollment Form'!$DT750=\"\"),\"N\",IF(AND('Enrollment Form'!$C750=\"Enroll\",'Enrollment Form'!$B750=\"Subscriber\",'Enrollment Form'!$CQ750=\"Yes\"),\"-\",\"Y\")))))","v":""},{"$f":"IF('Enrollment Form'!AH750=\"\",\"\",IF(ISERROR(SEARCH(\".\",'Enrollment Form'!AH750,SEARCH(\"@\",'Enrollment Form'!AH750))),\"N\",\"Y\"))","v":""},{"$f":"IF(OR($B743=\"N\",'Enrollment Form'!$G750=\"\"),\"\",IF('Enrollment Form'!$B750<>\"Subscriber\",\"-\",IF(COUNTIF('Enrollment Form'!$AS750:$AT750,\"Yes\")=2,\"N\",\"Y\")))","v":""},{"$f":"IF(OR('Enrollment Form'!$CC750=\"\",'Enrollment Form'!$CC750=\"No\"),\"-\",IF(AND('Enrollment Form'!$CC750=\"Yes\",'Enrollment Form'!$CD750=\"\"),\"N\",\"Y\"))","v":"-"},{"$f":"IF(OR('Enrollment Form'!$CE750=\"\",'Enrollment Form'!$CE750=\"No\"),\"-\",IF(AND('Enrollment Form'!$CE750=\"Yes\",'Enrollment Form'!$CF750=\"\"),\"N\",\"Y\"))","v":"-"},{"$f":"IF(OR('Enrollment Form'!$CG750=\"\",'Enrollment Form'!$CG750=\"No\"),\"-\",IF(AND('Enrollment Form'!$CG750=\"Yes\",'Enrollment Form'!$CH750=\"\"),\"N\",\"Y\"))","v":"-"},{"$f":"IF(OR('Enrollment Form'!$CG750=\"\",'Enrollment Form'!$CG750=\"No\"),\"-\",IF(AND('Enrollment Form'!$CG750=\"Yes\",'Enrollment Form'!$CI750=\"\"),\"N\",\"Y\"))","v":"-"},{"$f":"IF('Enrollment Form'!B750<>\"Subscriber\",\"-\",IF(AND('Enrollment Form'!B750=\"Subscriber\",'Enrollment Form'!C750=\"Enroll\",'Enrollment Form'!AA750=\"\"),\"N\",\"Y\"))","v":"-"},{"$f":"IF(OR('Enrollment Form'!B750=\"Subscriber\",'Enrollment Form'!B750=\"\"),\"-\",IF('Enrollment Form'!BI750=\"\",\"N\",\"Y\"))","v":"-"},{"$f":"IF('Enrollment Form'!B750<>\"Subscriber\",\"-\",IF(AND('Enrollment Form'!B750=\"Subscriber\",'Enrollment Form'!G750=\"\"),\"N\",\"Y\"))","v":"-"},{"$f":"IF('Enrollment Form'!A750=\"\",\"\",IF('Enrollment Form'!B750=\"Subscriber\",\"-\",IF(AND('Enrollment Form'!B750<>\"Subscriber\",'Enrollment Form'!G750='Enrollment Form'!H750),\"N\",\"Y\")))","v":""},0]
[751,{"$f":"IF('Enrollment Form'!$A751<>\"\",\"Y\",\"N\")","v":"N"},{"$f":"IF(AND('Enrollment Form'!$B751=\"\",'Enrollment Form'!$C751<>\"\"),\"N\",IF($B744=\"N\",\"\",\"Y\"))","v":""},{"$f":"IF(OR($B744=\"N\",'Enrollment Form'!G751=\"\"),\"\",IF('Enrollment Form'!$B751<>\"Subscriber\",\"\",IF('Enrollment Form'!$G751='Enrollment Form'!$H751,\"Y\",\"N\")))","v":""},{"$f":"IF($B744=\"N\",\"\",IF(AND(COUNTIFS('Enrollment Form'!$H$11:$H$1000,'Enrollment Form'!$H751,'Enrollment Form'!$B$11:$B$1000,'Enrollment Form'!$B751)>1,'Enrollment Form'!$H751<>\"\"),\"N\",\"Y\"))","v":""},{"$f":"IF($B744=\"N\",\"\",IF(LEN('Enrollment Form'!$Y751)=0,\"\",IF(LEN('Enrollment Form'!$Y751)<>5,\"N\",\"Y\")))","v":""},{"$f":"IF($B744=\"N\",\"\",IF(LEN('Enrollment Form'!$AD751=0),\"\",IF(LEN('Enrollment Form'!$AD751)<>5,\"N\",\"Y\")))","v":""},{"$f":"IF($B744=\"N\",\"\",IF(LEN('Enrollment Form'!$BL751=0),\"\",IF(LEN('Enrollment Form'!$BL751)<>5,\"N\",\"Y\")))","v":""},{"$f":"IF($B744=\"N\",\"\",IF(LEN('Enrollment Form'!$AE751)=0,\"\",IF(LEN('Enrollment Form'!$AE751)<>10,\"N\",\"Y\")))","v":""},{"$f":"IF($B744=\"N\",\"\",IF(LEN('Enrollment Form'!$AF751)=0,\"\",IF(LEN('Enrollment Form'!$AF751)<>10,\"N\",\"Y\")))","v":""},{"$f":"IF('Enrollment Form'!$O751<>\"Graded\",\"-\",IF(AND('Enrollment Form'!$O751=\"Graded\",'Enrollment Form'!$AO751<>\"\"),\"Y\",\"N\"))","v":"-"},{"$f":"IF($B744=\"N\",\"\",IF(OR('Enrollment Form'!$B751<>\"Subscriber\",'Enrollment Form'!$C751=\"ROC\"),\"-\",IF(AND('Enrollment Form'!$B751=\"Subscriber\",'Enrollment Form'!$C751=\"Enroll\",'Enrollment Form'!$AJ751<>\"\"),\"Y\",\"N\")))","v":""},{"$f":"IF($B744=\"N\",\"\",IF(OR('Enrollment Form'!$B751<>\"Subscriber\",'Enrollment Form'!$C751=\"ROC\"),\"-\",IF(AND('Enrollment Form'!$B751=\"Subscriber\",'Enrollment Form'!$C751=\"Enroll\",'Enrollment Form'!$AK751<>\"\"),\"Y\",\"N\")))","v":""},{"$f":"IF($B744=\"N\",\"\",IF(OR('Enrollment Form'!$B751<>\"Subscriber\",'Enrollment Form'!$C751=\"ROC\"),\"-\",IF(AND('Enrollment Form'!$B751=\"Subscriber\",'Enrollment Form'!$C751=\"Enroll\",'Enrollment Form'!$AL751<>\"\"),\"Y\",\"N\")))","v":""},{"$f":"IF($B744=\"N\",\"\",IF(OR('Enrollment Form'!$B751<>\"Subscriber\",'Enrollment Form'!$C751=\"ROC\"),\"-\",IF(AND('Enrollment Form'!$B751=\"Subscriber\",'Enrollment Form'!$C751=\"Enroll\",'Enrollment Form'!$AM751<>\"\"),\"Y\",\"N\")))","v":""},{"$f":"IF($B744=\"N\",\"\",IF(OR('Enrollment Form'!$B751<>\"Subscriber\",'Enrollment Form'!$C751=\"ROC\"),\"-\",IF(AND('Enrollment Form'!$B751=\"Subscriber\",'Enrollment Form'!$C751=\"Enroll\",'Enrollment Form'!$AN751<>\"\"),\"Y\",\"N\")))","v":""},{"$f":"IF($B744=\"N\",\"\",IF(OR('Enrollment Form'!$B751<>\"Subscriber\",'Enrollment Form'!$C751=\"ROC\"),\"-\",IF(AND('Enrollment Form'!$B751=\"Subscriber\",'Enrollment Form'!$C751=\"Enroll\",'Enrollment Form'!$AP751<>\"\"),\"Y\",\"N\")))","v":""},{"$f":"IF($B744=\"N\",\"\",IF($Q744=\"-\",\"-\",IF(AND($Q744=\"Y\",'Enrollment Form'!$AP751=\"No\"),\"-\",IF(AND($Q744=\"Y\",'Enrollment Form'!$AP751=\"Yes\",'Enrollment Form'!$AQ751<>\"\"),\"Y\",\"N\"))))","v":""},{"$f":"IF($B744=\"N\",\"\",IF(OR('Enrollment Form'!$B751<>\"Subscriber\",'Enrollment Form'!$C751=\"ROC\"),\"-\",IF(AND('Enrollment Form'!$B751=\"Subscriber\",'Enrollment Form'!$C751=\"Enroll\",'Enrollment Form'!$CO751<>\"\"),\"Y\",\"N\")))","v":""},{"$f":"IF($B744=\"N\",\"\",IF($S744=\"-\",\"-\",IF(AND($S744=\"Y\",'Enrollment Form'!$CO751=\"No\"),\"-\",IF(AND($S744=\"Y\",'Enrollment Form'!$CO751=\"Yes\",'Enrollment Form'!$CP751<>\"\"),\"Y\",\"N\"))))","v":""},{"$f":"IF(OR('Enrollment Form'!$AV751=\"Yes\",'Enrollment Form'!$AV751=\"\"),\"-\",IF(AND('Enrollment Form'!$AV751=\"No\",ISERROR(FIND(\"HMO\",VLOOKUP('Enrollment Form'!G751,'Enrollment Form'!H$11:J$1000,3,FALSE),1))=FALSE,COUNTA('Enrollment Form'!$AW751:$AZ751)=4),\"Y\",\"N\"))","v":"-"},{"$f":"IF($B744=\"N\",\"\",IF('Enrollment Form'!$B751=\"Subscriber\",\"-\",IF(COUNTA('Enrollment Form'!$BE751,'Enrollment Form'!$BG751)=2,\"Y\",\"N\")))","v":""},{"$f":"IF($B744=\"N\",\"\",IF(OR('Enrollment Form'!$AU751=\"\",'Enrollment Form'!$AU751=\"No\"),\"-\",IF(AND('Enrollment Form'!$AU751=\"Yes\",COUNTA('Enrollment Form'!$CK751)=1),\"Y\",\"N\")))","v":""},{"$f":"IF(OR('Enrollment Form'!$CK751=\"\",'Enrollment Form'!$CK751=\"No\"),\"-\",IF(COUNTA('Enrollment Form'!$CM751:$CN751)=2,\"Y\",\"N\"))","v":"-"},{"$f":"IF($B744=\"N\",\"\",IF(COUNTIF('Enrollment Form'!$CZ751:$DO751,\"Other\")=COUNTA('Enrollment Form'!$DF751,'Enrollment Form'!$DA751,'Enrollment Form'!$DK751,'Enrollment Form'!$DP751),\"Y\",\"N\"))","v":""},{"$f":"IF($B744=\"N\",\"\",IF(OR('Enrollment Form'!B751<>\"Subscriber\",'Enrollment Form'!C751=\"ROC\",COUNTIF('Enrollment Form'!AS751:AT751,\"Yes\")>=1),\"-\",IF(AND('Enrollment Form'!C751=\"Enroll\",COUNTIF('Enrollment Form'!AS751:AT751,\"No\")=2,'Enrollment Form'!AU751=\"\"),\"N\",\"Y\")))","v":""},{"$f":"IF(OR(B744=\"N\",'Enrollment Form'!B751<>\"Subscriber\",'Enrollment Form'!C751=\"ROC\",'Enrollment Form'!O751<>\"Multiple of Salary\"),\"-\",IF(COUNTA('Enrollment Form'!T751:U751)<2,\"N\",\"Y\"))","v":"-"},{"$f":"IF(B744=\"N\",\"\",IF(OR('Enrollment Form'!C751=\"ROC\",'Enrollment Form'!B751<>\"Subscriber\",'Enrollment Form'!O751=\"Waive\",'Enrollment Form'!O751=\"\"),\"-\",IF('Enrollment Form'!P751=\"\",\"N\",\"Y\")))","v":""},{"$f":"IF($B744=\"N\",\"\",IF(AND('Enrollment Form'!$C751=\"ROC\",'Enrollment Form'!$DS751<>\"\"),\"Y\",IF(AND('Enrollment Form'!$C751=\"ROC\",'Enrollment Form'!$DS751=\"\"),\"N\",IF(AND('Enrollment Form'!$C751=\"Enroll\",'Enrollment Form'!$B751=\"Subscriber\",'Enrollment Form'!$CQ751=\"No\",'Enrollment Form'!$DS751=\"\"),\"N\",IF(AND('Enrollment Form'!$C751=\"Enroll\",'Enrollment Form'!$B751=\"Subscriber\",'Enrollment Form'!$CQ751=\"Yes\"),\"-\",\"Y\")))))","v":""},{"$f":"IF($B744=\"N\",\"\",IF(AND('Enrollment Form'!$C751=\"ROC\",'Enrollment Form'!$DT751<>\"\"),\"Y\",IF(AND('Enrollment Form'!$C751=\"ROC\",'Enrollment Form'!$DT751=\"\"),\"N\",IF(AND('Enrollment Form'!$C751=\"Enroll\",'Enrollment Form'!$B751=\"Subscriber\",'Enrollment Form'!$CQ751=\"No\",'Enrollment Form'!$DT751=\"\"),\"N\",IF(AND('Enrollment Form'!$C751=\"Enroll\",'Enrollment Form'!$B751=\"Subscriber\",'Enrollment Form'!$CQ751=\"Yes\"),\"-\",\"Y\")))))","v":""},{"$f":"IF('Enrollment Form'!AH751=\"\",\"\",IF(ISERROR(SEARCH(\".\",'Enrollment Form'!AH751,SEARCH(\"@\",'Enrollment Form'!AH751))),\"N\",\"Y\"))","v":""},{"$f":"IF(OR($B744=\"N\",'Enrollment Form'!$G751=\"\"),\"\",IF('Enrollment Form'!$B751<>\"Subscriber\",\"-\",IF(COUNTIF('Enrollment Form'!$AS751:$AT751,\"Yes\")=2,\"N\",\"Y\")))","v":""},{"$f":"IF(OR('Enrollment Form'!$CC751=\"\",'Enrollment Form'!$CC751=\"No\"),\"-\",IF(AND('Enrollment Form'!$CC751=\"Yes\",'Enrollment Form'!$CD751=\"\"),\"N\",\"Y\"))","v":"-"},{"$f":"IF(OR('Enrollment Form'!$CE751=\"\",'Enrollment Form'!$CE751=\"No\"),\"-\",IF(AND('Enrollment Form'!$CE751=\"Yes\",'Enrollment Form'!$CF751=\"\"),\"N\",\"Y\"))","v":"-"},{"$f":"IF(OR('Enrollment Form'!$CG751=\"\",'Enrollment Form'!$CG751=\"No\"),\"-\",IF(AND('Enrollment Form'!$CG751=\"Yes\",'Enrollment Form'!$CH751=\"\"),\"N\",\"Y\"))","v":"-"},{"$f":"IF(OR('Enrollment Form'!$CG751=\"\",'Enrollment Form'!$CG751=\"No\"),\"-\",IF(AND('Enrollment Form'!$CG751=\"Yes\",'Enrollment Form'!$CI751=\"\"),\"N\",\"Y\"))","v":"-"},{"$f":"IF('Enrollment Form'!B751<>\"Subscriber\",\"-\",IF(AND('Enrollment Form'!B751=\"Subscriber\",'Enrollment Form'!C751=\"Enroll\",'Enrollment Form'!AA751=\"\"),\"N\",\"Y\"))","v":"-"},{"$f":"IF(OR('Enrollment Form'!B751=\"Subscriber\",'Enrollment Form'!B751=\"\"),\"-\",IF('Enrollment Form'!BI751=\"\",\"N\",\"Y\"))","v":"-"},{"$f":"IF('Enrollment Form'!B751<>\"Subscriber\",\"-\",IF(AND('Enrollment Form'!B751=\"Subscriber\",'Enrollment Form'!G751=\"\"),\"N\",\"Y\"))","v":"-"},{"$f":"IF('Enrollment Form'!A751=\"\",\"\",IF('Enrollment Form'!B751=\"Subscriber\",\"-\",IF(AND('Enrollment Form'!B751<>\"Subscriber\",'Enrollment Form'!G751='Enrollment Form'!H751),\"N\",\"Y\")))","v":""},0]
[752,{"$f":"IF('Enrollment Form'!$A752<>\"\",\"Y\",\"N\")","v":"N"},{"$f":"IF(AND('Enrollment Form'!$B752=\"\",'Enrollment Form'!$C752<>\"\"),\"N\",IF($B745=\"N\",\"\",\"Y\"))","v":""},{"$f":"IF(OR($B745=\"N\",'Enrollment Form'!G752=\"\"),\"\",IF('Enrollment Form'!$B752<>\"Subscriber\",\"\",IF('Enrollment Form'!$G752='Enrollment Form'!$H752,\"Y\",\"N\")))","v":""},{"$f":"IF($B745=\"N\",\"\",IF(AND(COUNTIFS('Enrollment Form'!$H$11:$H$1000,'Enrollment Form'!$H752,'Enrollment Form'!$B$11:$B$1000,'Enrollment Form'!$B752)>1,'Enrollment Form'!$H752<>\"\"),\"N\",\"Y\"))","v":""},{"$f":"IF($B745=\"N\",\"\",IF(LEN('Enrollment Form'!$Y752)=0,\"\",IF(LEN('Enrollment Form'!$Y752)<>5,\"N\",\"Y\")))","v":""},{"$f":"IF($B745=\"N\",\"\",IF(LEN('Enrollment Form'!$AD752=0),\"\",IF(LEN('Enrollment Form'!$AD752)<>5,\"N\",\"Y\")))","v":""},{"$f":"IF($B745=\"N\",\"\",IF(LEN('Enrollment Form'!$BL752=0),\"\",IF(LEN('Enrollment Form'!$BL752)<>5,\"N\",\"Y\")))","v":""},{"$f":"IF($B745=\"N\",\"\",IF(LEN('Enrollment Form'!$AE752)=0,\"\",IF(LEN('Enrollment Form'!$AE752)<>10,\"N\",\"Y\")))","v":""},{"$f":"IF($B745=\"N\",\"\",IF(LEN('Enrollment Form'!$AF752)=0,\"\",IF(LEN('Enrollment Form'!$AF752)<>10,\"N\",\"Y\")))","v":""},{"$f":"IF('Enrollment Form'!$O752<>\"Graded\",\"-\",IF(AND('Enrollment Form'!$O752=\"Graded\",'Enrollment Form'!$AO752<>\"\"),\"Y\",\"N\"))","v":"-"},{"$f":"IF($B745=\"N\",\"\",IF(OR('Enrollment Form'!$B752<>\"Subscriber\",'Enrollment Form'!$C752=\"ROC\"),\"-\",IF(AND('Enrollment Form'!$B752=\"Subscriber\",'Enrollment Form'!$C752=\"Enroll\",'Enrollment Form'!$AJ752<>\"\"),\"Y\",\"N\")))","v":""},{"$f":"IF($B745=\"N\",\"\",IF(OR('Enrollment Form'!$B752<>\"Subscriber\",'Enrollment Form'!$C752=\"ROC\"),\"-\",IF(AND('Enrollment Form'!$B752=\"Subscriber\",'Enrollment Form'!$C752=\"Enroll\",'Enrollment Form'!$AK752<>\"\"),\"Y\",\"N\")))","v":""},{"$f":"IF($B745=\"N\",\"\",IF(OR('Enrollment Form'!$B752<>\"Subscriber\",'Enrollment Form'!$C752=\"ROC\"),\"-\",IF(AND('Enrollment Form'!$B752=\"Subscriber\",'Enrollment Form'!$C752=\"Enroll\",'Enrollment Form'!$AL752<>\"\"),\"Y\",\"N\")))","v":""},{"$f":"IF($B745=\"N\",\"\",IF(OR('Enrollment Form'!$B752<>\"Subscriber\",'Enrollment Form'!$C752=\"ROC\"),\"-\",IF(AND('Enrollment Form'!$B752=\"Subscriber\",'Enrollment Form'!$C752=\"Enroll\",'Enrollment Form'!$AM752<>\"\"),\"Y\",\"N\")))","v":""},{"$f":"IF($B745=\"N\",\"\",IF(OR('Enrollment Form'!$B752<>\"Subscriber\",'Enrollment Form'!$C752=\"ROC\"),\"-\",IF(AND('Enrollment Form'!$B752=\"Subscriber\",'Enrollment Form'!$C752=\"Enroll\",'Enrollment Form'!$AN752<>\"\"),\"Y\",\"N\")))","v":""},{"$f":"IF($B745=\"N\",\"\",IF(OR('Enrollment Form'!$B752<>\"Subscriber\",'Enrollment Form'!$C752=\"ROC\"),\"-\",IF(AND('Enrollment Form'!$B752=\"Subscriber\",'Enrollment Form'!$C752=\"Enroll\",'Enrollment Form'!$AP752<>\"\"),\"Y\",\"N\")))","v":""},{"$f":"IF($B745=\"N\",\"\",IF($Q745=\"-\",\"-\",IF(AND($Q745=\"Y\",'Enrollment Form'!$AP752=\"No\"),\"-\",IF(AND($Q745=\"Y\",'Enrollment Form'!$AP752=\"Yes\",'Enrollment Form'!$AQ752<>\"\"),\"Y\",\"N\"))))","v":""},{"$f":"IF($B745=\"N\",\"\",IF(OR('Enrollment Form'!$B752<>\"Subscriber\",'Enrollment Form'!$C752=\"ROC\"),\"-\",IF(AND('Enrollment Form'!$B752=\"Subscriber\",'Enrollment Form'!$C752=\"Enroll\",'Enrollment Form'!$CO752<>\"\"),\"Y\",\"N\")))","v":""},{"$f":"IF($B745=\"N\",\"\",IF($S745=\"-\",\"-\",IF(AND($S745=\"Y\",'Enrollment Form'!$CO752=\"No\"),\"-\",IF(AND($S745=\"Y\",'Enrollment Form'!$CO752=\"Yes\",'Enrollment Form'!$CP752<>\"\"),\"Y\",\"N\"))))","v":""},{"$f":"IF(OR('Enrollment Form'!$AV752=\"Yes\",'Enrollment Form'!$AV752=\"\"),\"-\",IF(AND('Enrollment Form'!$AV752=\"No\",ISERROR(FIND(\"HMO\",VLOOKUP('Enrollment Form'!G752,'Enrollment Form'!H$11:J$1000,3,FALSE),1))=FALSE,COUNTA('Enrollment Form'!$AW752:$AZ752)=4),\"Y\",\"N\"))","v":"-"},{"$f":"IF($B745=\"N\",\"\",IF('Enrollment Form'!$B752=\"Subscriber\",\"-\",IF(COUNTA('Enrollment Form'!$BE752,'Enrollment Form'!$BG752)=2,\"Y\",\"N\")))","v":""},{"$f":"IF($B745=\"N\",\"\",IF(OR('Enrollment Form'!$AU752=\"\",'Enrollment Form'!$AU752=\"No\"),\"-\",IF(AND('Enrollment Form'!$AU752=\"Yes\",COUNTA('Enrollment Form'!$CK752)=1),\"Y\",\"N\")))","v":""},{"$f":"IF(OR('Enrollment Form'!$CK752=\"\",'Enrollment Form'!$CK752=\"No\"),\"-\",IF(COUNTA('Enrollment Form'!$CM752:$CN752)=2,\"Y\",\"N\"))","v":"-"},{"$f":"IF($B745=\"N\",\"\",IF(COUNTIF('Enrollment Form'!$CZ752:$DO752,\"Other\")=COUNTA('Enrollment Form'!$DF752,'Enrollment Form'!$DA752,'Enrollment Form'!$DK752,'Enrollment Form'!$DP752),\"Y\",\"N\"))","v":""},{"$f":"IF($B745=\"N\",\"\",IF(OR('Enrollment Form'!B752<>\"Subscriber\",'Enrollment Form'!C752=\"ROC\",COUNTIF('Enrollment Form'!AS752:AT752,\"Yes\")>=1),\"-\",IF(AND('Enrollment Form'!C752=\"Enroll\",COUNTIF('Enrollment Form'!AS752:AT752,\"No\")=2,'Enrollment Form'!AU752=\"\"),\"N\",\"Y\")))","v":""},{"$f":"IF(OR(B745=\"N\",'Enrollment Form'!B752<>\"Subscriber\",'Enrollment Form'!C752=\"ROC\",'Enrollment Form'!O752<>\"Multiple of Salary\"),\"-\",IF(COUNTA('Enrollment Form'!T752:U752)<2,\"N\",\"Y\"))","v":"-"},{"$f":"IF(B745=\"N\",\"\",IF(OR('Enrollment Form'!C752=\"ROC\",'Enrollment Form'!B752<>\"Subscriber\",'Enrollment Form'!O752=\"Waive\",'Enrollment Form'!O752=\"\"),\"-\",IF('Enrollment Form'!P752=\"\",\"N\",\"Y\")))","v":""},{"$f":"IF($B745=\"N\",\"\",IF(AND('Enrollment Form'!$C752=\"ROC\",'Enrollment Form'!$DS752<>\"\"),\"Y\",IF(AND('Enrollment Form'!$C752=\"ROC\",'Enrollment Form'!$DS752=\"\"),\"N\",IF(AND('Enrollment Form'!$C752=\"Enroll\",'Enrollment Form'!$B752=\"Subscriber\",'Enrollment Form'!$CQ752=\"No\",'Enrollment Form'!$DS752=\"\"),\"N\",IF(AND('Enrollment Form'!$C752=\"Enroll\",'Enrollment Form'!$B752=\"Subscriber\",'Enrollment Form'!$CQ752=\"Yes\"),\"-\",\"Y\")))))","v":""},{"$f":"IF($B745=\"N\",\"\",IF(AND('Enrollment Form'!$C752=\"ROC\",'Enrollment Form'!$DT752<>\"\"),\"Y\",IF(AND('Enrollment Form'!$C752=\"ROC\",'Enrollment Form'!$DT752=\"\"),\"N\",IF(AND('Enrollment Form'!$C752=\"Enroll\",'Enrollment Form'!$B752=\"Subscriber\",'Enrollment Form'!$CQ752=\"No\",'Enrollment Form'!$DT752=\"\"),\"N\",IF(AND('Enrollment Form'!$C752=\"Enroll\",'Enrollment Form'!$B752=\"Subscriber\",'Enrollment Form'!$CQ752=\"Yes\"),\"-\",\"Y\")))))","v":""},{"$f":"IF('Enrollment Form'!AH752=\"\",\"\",IF(ISERROR(SEARCH(\".\",'Enrollment Form'!AH752,SEARCH(\"@\",'Enrollment Form'!AH752))),\"N\",\"Y\"))","v":""},{"$f":"IF(OR($B745=\"N\",'Enrollment Form'!$G752=\"\"),\"\",IF('Enrollment Form'!$B752<>\"Subscriber\",\"-\",IF(COUNTIF('Enrollment Form'!$AS752:$AT752,\"Yes\")=2,\"N\",\"Y\")))","v":""},{"$f":"IF(OR('Enrollment Form'!$CC752=\"\",'Enrollment Form'!$CC752=\"No\"),\"-\",IF(AND('Enrollment Form'!$CC752=\"Yes\",'Enrollment Form'!$CD752=\"\"),\"N\",\"Y\"))","v":"-"},{"$f":"IF(OR('Enrollment Form'!$CE752=\"\",'Enrollment Form'!$CE752=\"No\"),\"-\",IF(AND('Enrollment Form'!$CE752=\"Yes\",'Enrollment Form'!$CF752=\"\"),\"N\",\"Y\"))","v":"-"},{"$f":"IF(OR('Enrollment Form'!$CG752=\"\",'Enrollment Form'!$CG752=\"No\"),\"-\",IF(AND('Enrollment Form'!$CG752=\"Yes\",'Enrollment Form'!$CH752=\"\"),\"N\",\"Y\"))","v":"-"},{"$f":"IF(OR('Enrollment Form'!$CG752=\"\",'Enrollment Form'!$CG752=\"No\"),\"-\",IF(AND('Enrollment Form'!$CG752=\"Yes\",'Enrollment Form'!$CI752=\"\"),\"N\",\"Y\"))","v":"-"},{"$f":"IF('Enrollment Form'!B752<>\"Subscriber\",\"-\",IF(AND('Enrollment Form'!B752=\"Subscriber\",'Enrollment Form'!C752=\"Enroll\",'Enrollment Form'!AA752=\"\"),\"N\",\"Y\"))","v":"-"},{"$f":"IF(OR('Enrollment Form'!B752=\"Subscriber\",'Enrollment Form'!B752=\"\"),\"-\",IF('Enrollment Form'!BI752=\"\",\"N\",\"Y\"))","v":"-"},{"$f":"IF('Enrollment Form'!B752<>\"Subscriber\",\"-\",IF(AND('Enrollment Form'!B752=\"Subscriber\",'Enrollment Form'!G752=\"\"),\"N\",\"Y\"))","v":"-"},{"$f":"IF('Enrollment Form'!A752=\"\",\"\",IF('Enrollment Form'!B752=\"Subscriber\",\"-\",IF(AND('Enrollment Form'!B752<>\"Subscriber\",'Enrollment Form'!G752='Enrollment Form'!H752),\"N\",\"Y\")))","v":""},0]
[753,{"$f":"IF('Enrollment Form'!$A753<>\"\",\"Y\",\"N\")","v":"N"},{"$f":"IF(AND('Enrollment Form'!$B753=\"\",'Enrollment Form'!$C753<>\"\"),\"N\",IF($B746=\"N\",\"\",\"Y\"))","v":""},{"$f":"IF(OR($B746=\"N\",'Enrollment Form'!G753=\"\"),\"\",IF('Enrollment Form'!$B753<>\"Subscriber\",\"\",IF('Enrollment Form'!$G753='Enrollment Form'!$H753,\"Y\",\"N\")))","v":""},{"$f":"IF($B746=\"N\",\"\",IF(AND(COUNTIFS('Enrollment Form'!$H$11:$H$1000,'Enrollment Form'!$H753,'Enrollment Form'!$B$11:$B$1000,'Enrollment Form'!$B753)>1,'Enrollment Form'!$H753<>\"\"),\"N\",\"Y\"))","v":""},{"$f":"IF($B746=\"N\",\"\",IF(LEN('Enrollment Form'!$Y753)=0,\"\",IF(LEN('Enrollment Form'!$Y753)<>5,\"N\",\"Y\")))","v":""},{"$f":"IF($B746=\"N\",\"\",IF(LEN('Enrollment Form'!$AD753=0),\"\",IF(LEN('Enrollment Form'!$AD753)<>5,\"N\",\"Y\")))","v":""},{"$f":"IF($B746=\"N\",\"\",IF(LEN('Enrollment Form'!$BL753=0),\"\",IF(LEN('Enrollment Form'!$BL753)<>5,\"N\",\"Y\")))","v":""},{"$f":"IF($B746=\"N\",\"\",IF(LEN('Enrollment Form'!$AE753)=0,\"\",IF(LEN('Enrollment Form'!$AE753)<>10,\"N\",\"Y\")))","v":""},{"$f":"IF($B746=\"N\",\"\",IF(LEN('Enrollment Form'!$AF753)=0,\"\",IF(LEN('Enrollment Form'!$AF753)<>10,\"N\",\"Y\")))","v":""},{"$f":"IF('Enrollment Form'!$O753<>\"Graded\",\"-\",IF(AND('Enrollment Form'!$O753=\"Graded\",'Enrollment Form'!$AO753<>\"\"),\"Y\",\"N\"))","v":"-"},{"$f":"IF($B746=\"N\",\"\",IF(OR('Enrollment Form'!$B753<>\"Subscriber\",'Enrollment Form'!$C753=\"ROC\"),\"-\",IF(AND('Enrollment Form'!$B753=\"Subscriber\",'Enrollment Form'!$C753=\"Enroll\",'Enrollment Form'!$AJ753<>\"\"),\"Y\",\"N\")))","v":""},{"$f":"IF($B746=\"N\",\"\",IF(OR('Enrollment Form'!$B753<>\"Subscriber\",'Enrollment Form'!$C753=\"ROC\"),\"-\",IF(AND('Enrollment Form'!$B753=\"Subscriber\",'Enrollment Form'!$C753=\"Enroll\",'Enrollment Form'!$AK753<>\"\"),\"Y\",\"N\")))","v":""},{"$f":"IF($B746=\"N\",\"\",IF(OR('Enrollment Form'!$B753<>\"Subscriber\",'Enrollment Form'!$C753=\"ROC\"),\"-\",IF(AND('Enrollment Form'!$B753=\"Subscriber\",'Enrollment Form'!$C753=\"Enroll\",'Enrollment Form'!$AL753<>\"\"),\"Y\",\"N\")))","v":""},{"$f":"IF($B746=\"N\",\"\",IF(OR('Enrollment Form'!$B753<>\"Subscriber\",'Enrollment Form'!$C753=\"ROC\"),\"-\",IF(AND('Enrollment Form'!$B753=\"Subscriber\",'Enrollment Form'!$C753=\"Enroll\",'Enrollment Form'!$AM753<>\"\"),\"Y\",\"N\")))","v":""},{"$f":"IF($B746=\"N\",\"\",IF(OR('Enrollment Form'!$B753<>\"Subscriber\",'Enrollment Form'!$C753=\"ROC\"),\"-\",IF(AND('Enrollment Form'!$B753=\"Subscriber\",'Enrollment Form'!$C753=\"Enroll\",'Enrollment Form'!$AN753<>\"\"),\"Y\",\"N\")))","v":""},{"$f":"IF($B746=\"N\",\"\",IF(OR('Enrollment Form'!$B753<>\"Subscriber\",'Enrollment Form'!$C753=\"ROC\"),\"-\",IF(AND('Enrollment Form'!$B753=\"Subscriber\",'Enrollment Form'!$C753=\"Enroll\",'Enrollment Form'!$AP753<>\"\"),\"Y\",\"N\")))","v":""},{"$f":"IF($B746=\"N\",\"\",IF($Q746=\"-\",\"-\",IF(AND($Q746=\"Y\",'Enrollment Form'!$AP753=\"No\"),\"-\",IF(AND($Q746=\"Y\",'Enrollment Form'!$AP753=\"Yes\",'Enrollment Form'!$AQ753<>\"\"),\"Y\",\"N\"))))","v":""},{"$f":"IF($B746=\"N\",\"\",IF(OR('Enrollment Form'!$B753<>\"Subscriber\",'Enrollment Form'!$C753=\"ROC\"),\"-\",IF(AND('Enrollment Form'!$B753=\"Subscriber\",'Enrollment Form'!$C753=\"Enroll\",'Enrollment Form'!$CO753<>\"\"),\"Y\",\"N\")))","v":""},{"$f":"IF($B746=\"N\",\"\",IF($S746=\"-\",\"-\",IF(AND($S746=\"Y\",'Enrollment Form'!$CO753=\"No\"),\"-\",IF(AND($S746=\"Y\",'Enrollment Form'!$CO753=\"Yes\",'Enrollment Form'!$CP753<>\"\"),\"Y\",\"N\"))))","v":""},{"$f":"IF(OR('Enrollment Form'!$AV753=\"Yes\",'Enrollment Form'!$AV753=\"\"),\"-\",IF(AND('Enrollment Form'!$AV753=\"No\",ISERROR(FIND(\"HMO\",VLOOKUP('Enrollment Form'!G753,'Enrollment Form'!H$11:J$1000,3,FALSE),1))=FALSE,COUNTA('Enrollment Form'!$AW753:$AZ753)=4),\"Y\",\"N\"))","v":"-"},{"$f":"IF($B746=\"N\",\"\",IF('Enrollment Form'!$B753=\"Subscriber\",\"-\",IF(COUNTA('Enrollment Form'!$BE753,'Enrollment Form'!$BG753)=2,\"Y\",\"N\")))","v":""},{"$f":"IF($B746=\"N\",\"\",IF(OR('Enrollment Form'!$AU753=\"\",'Enrollment Form'!$AU753=\"No\"),\"-\",IF(AND('Enrollment Form'!$AU753=\"Yes\",COUNTA('Enrollment Form'!$CK753)=1),\"Y\",\"N\")))","v":""},{"$f":"IF(OR('Enrollment Form'!$CK753=\"\",'Enrollment Form'!$CK753=\"No\"),\"-\",IF(COUNTA('Enrollment Form'!$CM753:$CN753)=2,\"Y\",\"N\"))","v":"-"},{"$f":"IF($B746=\"N\",\"\",IF(COUNTIF('Enrollment Form'!$CZ753:$DO753,\"Other\")=COUNTA('Enrollment Form'!$DF753,'Enrollment Form'!$DA753,'Enrollment Form'!$DK753,'Enrollment Form'!$DP753),\"Y\",\"N\"))","v":""},{"$f":"IF($B746=\"N\",\"\",IF(OR('Enrollment Form'!B753<>\"Subscriber\",'Enrollment Form'!C753=\"ROC\",COUNTIF('Enrollment Form'!AS753:AT753,\"Yes\")>=1),\"-\",IF(AND('Enrollment Form'!C753=\"Enroll\",COUNTIF('Enrollment Form'!AS753:AT753,\"No\")=2,'Enrollment Form'!AU753=\"\"),\"N\",\"Y\")))","v":""},{"$f":"IF(OR(B746=\"N\",'Enrollment Form'!B753<>\"Subscriber\",'Enrollment Form'!C753=\"ROC\",'Enrollment Form'!O753<>\"Multiple of Salary\"),\"-\",IF(COUNTA('Enrollment Form'!T753:U753)<2,\"N\",\"Y\"))","v":"-"},{"$f":"IF(B746=\"N\",\"\",IF(OR('Enrollment Form'!C753=\"ROC\",'Enrollment Form'!B753<>\"Subscriber\",'Enrollment Form'!O753=\"Waive\",'Enrollment Form'!O753=\"\"),\"-\",IF('Enrollment Form'!P753=\"\",\"N\",\"Y\")))","v":""},{"$f":"IF($B746=\"N\",\"\",IF(AND('Enrollment Form'!$C753=\"ROC\",'Enrollment Form'!$DS753<>\"\"),\"Y\",IF(AND('Enrollment Form'!$C753=\"ROC\",'Enrollment Form'!$DS753=\"\"),\"N\",IF(AND('Enrollment Form'!$C753=\"Enroll\",'Enrollment Form'!$B753=\"Subscriber\",'Enrollment Form'!$CQ753=\"No\",'Enrollment Form'!$DS753=\"\"),\"N\",IF(AND('Enrollment Form'!$C753=\"Enroll\",'Enrollment Form'!$B753=\"Subscriber\",'Enrollment Form'!$CQ753=\"Yes\"),\"-\",\"Y\")))))","v":""},{"$f":"IF($B746=\"N\",\"\",IF(AND('Enrollment Form'!$C753=\"ROC\",'Enrollment Form'!$DT753<>\"\"),\"Y\",IF(AND('Enrollment Form'!$C753=\"ROC\",'Enrollment Form'!$DT753=\"\"),\"N\",IF(AND('Enrollment Form'!$C753=\"Enroll\",'Enrollment Form'!$B753=\"Subscriber\",'Enrollment Form'!$CQ753=\"No\",'Enrollment Form'!$DT753=\"\"),\"N\",IF(AND('Enrollment Form'!$C753=\"Enroll\",'Enrollment Form'!$B753=\"Subscriber\",'Enrollment Form'!$CQ753=\"Yes\"),\"-\",\"Y\")))))","v":""},{"$f":"IF('Enrollment Form'!AH753=\"\",\"\",IF(ISERROR(SEARCH(\".\",'Enrollment Form'!AH753,SEARCH(\"@\",'Enrollment Form'!AH753))),\"N\",\"Y\"))","v":""},{"$f":"IF(OR($B746=\"N\",'Enrollment Form'!$G753=\"\"),\"\",IF('Enrollment Form'!$B753<>\"Subscriber\",\"-\",IF(COUNTIF('Enrollment Form'!$AS753:$AT753,\"Yes\")=2,\"N\",\"Y\")))","v":""},{"$f":"IF(OR('Enrollment Form'!$CC753=\"\",'Enrollment Form'!$CC753=\"No\"),\"-\",IF(AND('Enrollment Form'!$CC753=\"Yes\",'Enrollment Form'!$CD753=\"\"),\"N\",\"Y\"))","v":"-"},{"$f":"IF(OR('Enrollment Form'!$CE753=\"\",'Enrollment Form'!$CE753=\"No\"),\"-\",IF(AND('Enrollment Form'!$CE753=\"Yes\",'Enrollment Form'!$CF753=\"\"),\"N\",\"Y\"))","v":"-"},{"$f":"IF(OR('Enrollment Form'!$CG753=\"\",'Enrollment Form'!$CG753=\"No\"),\"-\",IF(AND('Enrollment Form'!$CG753=\"Yes\",'Enrollment Form'!$CH753=\"\"),\"N\",\"Y\"))","v":"-"},{"$f":"IF(OR('Enrollment Form'!$CG753=\"\",'Enrollment Form'!$CG753=\"No\"),\"-\",IF(AND('Enrollment Form'!$CG753=\"Yes\",'Enrollment Form'!$CI753=\"\"),\"N\",\"Y\"))","v":"-"},{"$f":"IF('Enrollment Form'!B753<>\"Subscriber\",\"-\",IF(AND('Enrollment Form'!B753=\"Subscriber\",'Enrollment Form'!C753=\"Enroll\",'Enrollment Form'!AA753=\"\"),\"N\",\"Y\"))","v":"-"},{"$f":"IF(OR('Enrollment Form'!B753=\"Subscriber\",'Enrollment Form'!B753=\"\"),\"-\",IF('Enrollment Form'!BI753=\"\",\"N\",\"Y\"))","v":"-"},{"$f":"IF('Enrollment Form'!B753<>\"Subscriber\",\"-\",IF(AND('Enrollment Form'!B753=\"Subscriber\",'Enrollment Form'!G753=\"\"),\"N\",\"Y\"))","v":"-"},{"$f":"IF('Enrollment Form'!A753=\"\",\"\",IF('Enrollment Form'!B753=\"Subscriber\",\"-\",IF(AND('Enrollment Form'!B753<>\"Subscriber\",'Enrollment Form'!G753='Enrollment Form'!H753),\"N\",\"Y\")))","v":""},0]
[754,{"$f":"IF('Enrollment Form'!$A754<>\"\",\"Y\",\"N\")","v":"N"},{"$f":"IF(AND('Enrollment Form'!$B754=\"\",'Enrollment Form'!$C754<>\"\"),\"N\",IF($B747=\"N\",\"\",\"Y\"))","v":""},{"$f":"IF(OR($B747=\"N\",'Enrollment Form'!G754=\"\"),\"\",IF('Enrollment Form'!$B754<>\"Subscriber\",\"\",IF('Enrollment Form'!$G754='Enrollment Form'!$H754,\"Y\",\"N\")))","v":""},{"$f":"IF($B747=\"N\",\"\",IF(AND(COUNTIFS('Enrollment Form'!$H$11:$H$1000,'Enrollment Form'!$H754,'Enrollment Form'!$B$11:$B$1000,'Enrollment Form'!$B754)>1,'Enrollment Form'!$H754<>\"\"),\"N\",\"Y\"))","v":""},{"$f":"IF($B747=\"N\",\"\",IF(LEN('Enrollment Form'!$Y754)=0,\"\",IF(LEN('Enrollment Form'!$Y754)<>5,\"N\",\"Y\")))","v":""},{"$f":"IF($B747=\"N\",\"\",IF(LEN('Enrollment Form'!$AD754=0),\"\",IF(LEN('Enrollment Form'!$AD754)<>5,\"N\",\"Y\")))","v":""},{"$f":"IF($B747=\"N\",\"\",IF(LEN('Enrollment Form'!$BL754=0),\"\",IF(LEN('Enrollment Form'!$BL754)<>5,\"N\",\"Y\")))","v":""},{"$f":"IF($B747=\"N\",\"\",IF(LEN('Enrollment Form'!$AE754)=0,\"\",IF(LEN('Enrollment Form'!$AE754)<>10,\"N\",\"Y\")))","v":""},{"$f":"IF($B747=\"N\",\"\",IF(LEN('Enrollment Form'!$AF754)=0,\"\",IF(LEN('Enrollment Form'!$AF754)<>10,\"N\",\"Y\")))","v":""},{"$f":"IF('Enrollment Form'!$O754<>\"Graded\",\"-\",IF(AND('Enrollment Form'!$O754=\"Graded\",'Enrollment Form'!$AO754<>\"\"),\"Y\",\"N\"))","v":"-"},{"$f":"IF($B747=\"N\",\"\",IF(OR('Enrollment Form'!$B754<>\"Subscriber\",'Enrollment Form'!$C754=\"ROC\"),\"-\",IF(AND('Enrollment Form'!$B754=\"Subscriber\",'Enrollment Form'!$C754=\"Enroll\",'Enrollment Form'!$AJ754<>\"\"),\"Y\",\"N\")))","v":""},{"$f":"IF($B747=\"N\",\"\",IF(OR('Enrollment Form'!$B754<>\"Subscriber\",'Enrollment Form'!$C754=\"ROC\"),\"-\",IF(AND('Enrollment Form'!$B754=\"Subscriber\",'Enrollment Form'!$C754=\"Enroll\",'Enrollment Form'!$AK754<>\"\"),\"Y\",\"N\")))","v":""},{"$f":"IF($B747=\"N\",\"\",IF(OR('Enrollment Form'!$B754<>\"Subscriber\",'Enrollment Form'!$C754=\"ROC\"),\"-\",IF(AND('Enrollment Form'!$B754=\"Subscriber\",'Enrollment Form'!$C754=\"Enroll\",'Enrollment Form'!$AL754<>\"\"),\"Y\",\"N\")))","v":""},{"$f":"IF($B747=\"N\",\"\",IF(OR('Enrollment Form'!$B754<>\"Subscriber\",'Enrollment Form'!$C754=\"ROC\"),\"-\",IF(AND('Enrollment Form'!$B754=\"Subscriber\",'Enrollment Form'!$C754=\"Enroll\",'Enrollment Form'!$AM754<>\"\"),\"Y\",\"N\")))","v":""},{"$f":"IF($B747=\"N\",\"\",IF(OR('Enrollment Form'!$B754<>\"Subscriber\",'Enrollment Form'!$C754=\"ROC\"),\"-\",IF(AND('Enrollment Form'!$B754=\"Subscriber\",'Enrollment Form'!$C754=\"Enroll\",'Enrollment Form'!$AN754<>\"\"),\"Y\",\"N\")))","v":""},{"$f":"IF($B747=\"N\",\"\",IF(OR('Enrollment Form'!$B754<>\"Subscriber\",'Enrollment Form'!$C754=\"ROC\"),\"-\",IF(AND('Enrollment Form'!$B754=\"Subscriber\",'Enrollment Form'!$C754=\"Enroll\",'Enrollment Form'!$AP754<>\"\"),\"Y\",\"N\")))","v":""},{"$f":"IF($B747=\"N\",\"\",IF($Q747=\"-\",\"-\",IF(AND($Q747=\"Y\",'Enrollment Form'!$AP754=\"No\"),\"-\",IF(AND($Q747=\"Y\",'Enrollment Form'!$AP754=\"Yes\",'Enrollment Form'!$AQ754<>\"\"),\"Y\",\"N\"))))","v":""},{"$f":"IF($B747=\"N\",\"\",IF(OR('Enrollment Form'!$B754<>\"Subscriber\",'Enrollment Form'!$C754=\"ROC\"),\"-\",IF(AND('Enrollment Form'!$B754=\"Subscriber\",'Enrollment Form'!$C754=\"Enroll\",'Enrollment Form'!$CO754<>\"\"),\"Y\",\"N\")))","v":""},{"$f":"IF($B747=\"N\",\"\",IF($S747=\"-\",\"-\",IF(AND($S747=\"Y\",'Enrollment Form'!$CO754=\"No\"),\"-\",IF(AND($S747=\"Y\",'Enrollment Form'!$CO754=\"Yes\",'Enrollment Form'!$CP754<>\"\"),\"Y\",\"N\"))))","v":""},{"$f":"IF(OR('Enrollment Form'!$AV754=\"Yes\",'Enrollment Form'!$AV754=\"\"),\"-\",IF(AND('Enrollment Form'!$AV754=\"No\",ISERROR(FIND(\"HMO\",VLOOKUP('Enrollment Form'!G754,'Enrollment Form'!H$11:J$1000,3,FALSE),1))=FALSE,COUNTA('Enrollment Form'!$AW754:$AZ754)=4),\"Y\",\"N\"))","v":"-"},{"$f":"IF($B747=\"N\",\"\",IF('Enrollment Form'!$B754=\"Subscriber\",\"-\",IF(COUNTA('Enrollment Form'!$BE754,'Enrollment Form'!$BG754)=2,\"Y\",\"N\")))","v":""},{"$f":"IF($B747=\"N\",\"\",IF(OR('Enrollment Form'!$AU754=\"\",'Enrollment Form'!$AU754=\"No\"),\"-\",IF(AND('Enrollment Form'!$AU754=\"Yes\",COUNTA('Enrollment Form'!$CK754)=1),\"Y\",\"N\")))","v":""},{"$f":"IF(OR('Enrollment Form'!$CK754=\"\",'Enrollment Form'!$CK754=\"No\"),\"-\",IF(COUNTA('Enrollment Form'!$CM754:$CN754)=2,\"Y\",\"N\"))","v":"-"},{"$f":"IF($B747=\"N\",\"\",IF(COUNTIF('Enrollment Form'!$CZ754:$DO754,\"Other\")=COUNTA('Enrollment Form'!$DF754,'Enrollment Form'!$DA754,'Enrollment Form'!$DK754,'Enrollment Form'!$DP754),\"Y\",\"N\"))","v":""},{"$f":"IF($B747=\"N\",\"\",IF(OR('Enrollment Form'!B754<>\"Subscriber\",'Enrollment Form'!C754=\"ROC\",COUNTIF('Enrollment Form'!AS754:AT754,\"Yes\")>=1),\"-\",IF(AND('Enrollment Form'!C754=\"Enroll\",COUNTIF('Enrollment Form'!AS754:AT754,\"No\")=2,'Enrollment Form'!AU754=\"\"),\"N\",\"Y\")))","v":""},{"$f":"IF(OR(B747=\"N\",'Enrollment Form'!B754<>\"Subscriber\",'Enrollment Form'!C754=\"ROC\",'Enrollment Form'!O754<>\"Multiple of Salary\"),\"-\",IF(COUNTA('Enrollment Form'!T754:U754)<2,\"N\",\"Y\"))","v":"-"},{"$f":"IF(B747=\"N\",\"\",IF(OR('Enrollment Form'!C754=\"ROC\",'Enrollment Form'!B754<>\"Subscriber\",'Enrollment Form'!O754=\"Waive\",'Enrollment Form'!O754=\"\"),\"-\",IF('Enrollment Form'!P754=\"\",\"N\",\"Y\")))","v":""},{"$f":"IF($B747=\"N\",\"\",IF(AND('Enrollment Form'!$C754=\"ROC\",'Enrollment Form'!$DS754<>\"\"),\"Y\",IF(AND('Enrollment Form'!$C754=\"ROC\",'Enrollment Form'!$DS754=\"\"),\"N\",IF(AND('Enrollment Form'!$C754=\"Enroll\",'Enrollment Form'!$B754=\"Subscriber\",'Enrollment Form'!$CQ754=\"No\",'Enrollment Form'!$DS754=\"\"),\"N\",IF(AND('Enrollment Form'!$C754=\"Enroll\",'Enrollment Form'!$B754=\"Subscriber\",'Enrollment Form'!$CQ754=\"Yes\"),\"-\",\"Y\")))))","v":""},{"$f":"IF($B747=\"N\",\"\",IF(AND('Enrollment Form'!$C754=\"ROC\",'Enrollment Form'!$DT754<>\"\"),\"Y\",IF(AND('Enrollment Form'!$C754=\"ROC\",'Enrollment Form'!$DT754=\"\"),\"N\",IF(AND('Enrollment Form'!$C754=\"Enroll\",'Enrollment Form'!$B754=\"Subscriber\",'Enrollment Form'!$CQ754=\"No\",'Enrollment Form'!$DT754=\"\"),\"N\",IF(AND('Enrollment Form'!$C754=\"Enroll\",'Enrollment Form'!$B754=\"Subscriber\",'Enrollment Form'!$CQ754=\"Yes\"),\"-\",\"Y\")))))","v":""},{"$f":"IF('Enrollment Form'!AH754=\"\",\"\",IF(ISERROR(SEARCH(\".\",'Enrollment Form'!AH754,SEARCH(\"@\",'Enrollment Form'!AH754))),\"N\",\"Y\"))","v":""},{"$f":"IF(OR($B747=\"N\",'Enrollment Form'!$G754=\"\"),\"\",IF('Enrollment Form'!$B754<>\"Subscriber\",\"-\",IF(COUNTIF('Enrollment Form'!$AS754:$AT754,\"Yes\")=2,\"N\",\"Y\")))","v":""},{"$f":"IF(OR('Enrollment Form'!$CC754=\"\",'Enrollment Form'!$CC754=\"No\"),\"-\",IF(AND('Enrollment Form'!$CC754=\"Yes\",'Enrollment Form'!$CD754=\"\"),\"N\",\"Y\"))","v":"-"},{"$f":"IF(OR('Enrollment Form'!$CE754=\"\",'Enrollment Form'!$CE754=\"No\"),\"-\",IF(AND('Enrollment Form'!$CE754=\"Yes\",'Enrollment Form'!$CF754=\"\"),\"N\",\"Y\"))","v":"-"},{"$f":"IF(OR('Enrollment Form'!$CG754=\"\",'Enrollment Form'!$CG754=\"No\"),\"-\",IF(AND('Enrollment Form'!$CG754=\"Yes\",'Enrollment Form'!$CH754=\"\"),\"N\",\"Y\"))","v":"-"},{"$f":"IF(OR('Enrollment Form'!$CG754=\"\",'Enrollment Form'!$CG754=\"No\"),\"-\",IF(AND('Enrollment Form'!$CG754=\"Yes\",'Enrollment Form'!$CI754=\"\"),\"N\",\"Y\"))","v":"-"},{"$f":"IF('Enrollment Form'!B754<>\"Subscriber\",\"-\",IF(AND('Enrollment Form'!B754=\"Subscriber\",'Enrollment Form'!C754=\"Enroll\",'Enrollment Form'!AA754=\"\"),\"N\",\"Y\"))","v":"-"},{"$f":"IF(OR('Enrollment Form'!B754=\"Subscriber\",'Enrollment Form'!B754=\"\"),\"-\",IF('Enrollment Form'!BI754=\"\",\"N\",\"Y\"))","v":"-"},{"$f":"IF('Enrollment Form'!B754<>\"Subscriber\",\"-\",IF(AND('Enrollment Form'!B754=\"Subscriber\",'Enrollment Form'!G754=\"\"),\"N\",\"Y\"))","v":"-"},{"$f":"IF('Enrollment Form'!A754=\"\",\"\",IF('Enrollment Form'!B754=\"Subscriber\",\"-\",IF(AND('Enrollment Form'!B754<>\"Subscriber\",'Enrollment Form'!G754='Enrollment Form'!H754),\"N\",\"Y\")))","v":""},0]
[755,{"$f":"IF('Enrollment Form'!$A755<>\"\",\"Y\",\"N\")","v":"N"},{"$f":"IF(AND('Enrollment Form'!$B755=\"\",'Enrollment Form'!$C755<>\"\"),\"N\",IF($B748=\"N\",\"\",\"Y\"))","v":""},{"$f":"IF(OR($B748=\"N\",'Enrollment Form'!G755=\"\"),\"\",IF('Enrollment Form'!$B755<>\"Subscriber\",\"\",IF('Enrollment Form'!$G755='Enrollment Form'!$H755,\"Y\",\"N\")))","v":""},{"$f":"IF($B748=\"N\",\"\",IF(AND(COUNTIFS('Enrollment Form'!$H$11:$H$1000,'Enrollment Form'!$H755,'Enrollment Form'!$B$11:$B$1000,'Enrollment Form'!$B755)>1,'Enrollment Form'!$H755<>\"\"),\"N\",\"Y\"))","v":""},{"$f":"IF($B748=\"N\",\"\",IF(LEN('Enrollment Form'!$Y755)=0,\"\",IF(LEN('Enrollment Form'!$Y755)<>5,\"N\",\"Y\")))","v":""},{"$f":"IF($B748=\"N\",\"\",IF(LEN('Enrollment Form'!$AD755=0),\"\",IF(LEN('Enrollment Form'!$AD755)<>5,\"N\",\"Y\")))","v":""},{"$f":"IF($B748=\"N\",\"\",IF(LEN('Enrollment Form'!$BL755=0),\"\",IF(LEN('Enrollment Form'!$BL755)<>5,\"N\",\"Y\")))","v":""},{"$f":"IF($B748=\"N\",\"\",IF(LEN('Enrollment Form'!$AE755)=0,\"\",IF(LEN('Enrollment Form'!$AE755)<>10,\"N\",\"Y\")))","v":""},{"$f":"IF($B748=\"N\",\"\",IF(LEN('Enrollment Form'!$AF755)=0,\"\",IF(LEN('Enrollment Form'!$AF755)<>10,\"N\",\"Y\")))","v":""},{"$f":"IF('Enrollment Form'!$O755<>\"Graded\",\"-\",IF(AND('Enrollment Form'!$O755=\"Graded\",'Enrollment Form'!$AO755<>\"\"),\"Y\",\"N\"))","v":"-"},{"$f":"IF($B748=\"N\",\"\",IF(OR('Enrollment Form'!$B755<>\"Subscriber\",'Enrollment Form'!$C755=\"ROC\"),\"-\",IF(AND('Enrollment Form'!$B755=\"Subscriber\",'Enrollment Form'!$C755=\"Enroll\",'Enrollment Form'!$AJ755<>\"\"),\"Y\",\"N\")))","v":""},{"$f":"IF($B748=\"N\",\"\",IF(OR('Enrollment Form'!$B755<>\"Subscriber\",'Enrollment Form'!$C755=\"ROC\"),\"-\",IF(AND('Enrollment Form'!$B755=\"Subscriber\",'Enrollment Form'!$C755=\"Enroll\",'Enrollment Form'!$AK755<>\"\"),\"Y\",\"N\")))","v":""},{"$f":"IF($B748=\"N\",\"\",IF(OR('Enrollment Form'!$B755<>\"Subscriber\",'Enrollment Form'!$C755=\"ROC\"),\"-\",IF(AND('Enrollment Form'!$B755=\"Subscriber\",'Enrollment Form'!$C755=\"Enroll\",'Enrollment Form'!$AL755<>\"\"),\"Y\",\"N\")))","v":""},{"$f":"IF($B748=\"N\",\"\",IF(OR('Enrollment Form'!$B755<>\"Subscriber\",'Enrollment Form'!$C755=\"ROC\"),\"-\",IF(AND('Enrollment Form'!$B755=\"Subscriber\",'Enrollment Form'!$C755=\"Enroll\",'Enrollment Form'!$AM755<>\"\"),\"Y\",\"N\")))","v":""},{"$f":"IF($B748=\"N\",\"\",IF(OR('Enrollment Form'!$B755<>\"Subscriber\",'Enrollment Form'!$C755=\"ROC\"),\"-\",IF(AND('Enrollment Form'!$B755=\"Subscriber\",'Enrollment Form'!$C755=\"Enroll\",'Enrollment Form'!$AN755<>\"\"),\"Y\",\"N\")))","v":""},{"$f":"IF($B748=\"N\",\"\",IF(OR('Enrollment Form'!$B755<>\"Subscriber\",'Enrollment Form'!$C755=\"ROC\"),\"-\",IF(AND('Enrollment Form'!$B755=\"Subscriber\",'Enrollment Form'!$C755=\"Enroll\",'Enrollment Form'!$AP755<>\"\"),\"Y\",\"N\")))","v":""},{"$f":"IF($B748=\"N\",\"\",IF($Q748=\"-\",\"-\",IF(AND($Q748=\"Y\",'Enrollment Form'!$AP755=\"No\"),\"-\",IF(AND($Q748=\"Y\",'Enrollment Form'!$AP755=\"Yes\",'Enrollment Form'!$AQ755<>\"\"),\"Y\",\"N\"))))","v":""},{"$f":"IF($B748=\"N\",\"\",IF(OR('Enrollment Form'!$B755<>\"Subscriber\",'Enrollment Form'!$C755=\"ROC\"),\"-\",IF(AND('Enrollment Form'!$B755=\"Subscriber\",'Enrollment Form'!$C755=\"Enroll\",'Enrollment Form'!$CO755<>\"\"),\"Y\",\"N\")))","v":""},{"$f":"IF($B748=\"N\",\"\",IF($S748=\"-\",\"-\",IF(AND($S748=\"Y\",'Enrollment Form'!$CO755=\"No\"),\"-\",IF(AND($S748=\"Y\",'Enrollment Form'!$CO755=\"Yes\",'Enrollment Form'!$CP755<>\"\"),\"Y\",\"N\"))))","v":""},{"$f":"IF(OR('Enrollment Form'!$AV755=\"Yes\",'Enrollment Form'!$AV755=\"\"),\"-\",IF(AND('Enrollment Form'!$AV755=\"No\",ISERROR(FIND(\"HMO\",VLOOKUP('Enrollment Form'!G755,'Enrollment Form'!H$11:J$1000,3,FALSE),1))=FALSE,COUNTA('Enrollment Form'!$AW755:$AZ755)=4),\"Y\",\"N\"))","v":"-"},{"$f":"IF($B748=\"N\",\"\",IF('Enrollment Form'!$B755=\"Subscriber\",\"-\",IF(COUNTA('Enrollment Form'!$BE755,'Enrollment Form'!$BG755)=2,\"Y\",\"N\")))","v":""},{"$f":"IF($B748=\"N\",\"\",IF(OR('Enrollment Form'!$AU755=\"\",'Enrollment Form'!$AU755=\"No\"),\"-\",IF(AND('Enrollment Form'!$AU755=\"Yes\",COUNTA('Enrollment Form'!$CK755)=1),\"Y\",\"N\")))","v":""},{"$f":"IF(OR('Enrollment Form'!$CK755=\"\",'Enrollment Form'!$CK755=\"No\"),\"-\",IF(COUNTA('Enrollment Form'!$CM755:$CN755)=2,\"Y\",\"N\"))","v":"-"},{"$f":"IF($B748=\"N\",\"\",IF(COUNTIF('Enrollment Form'!$CZ755:$DO755,\"Other\")=COUNTA('Enrollment Form'!$DF755,'Enrollment Form'!$DA755,'Enrollment Form'!$DK755,'Enrollment Form'!$DP755),\"Y\",\"N\"))","v":""},{"$f":"IF($B748=\"N\",\"\",IF(OR('Enrollment Form'!B755<>\"Subscriber\",'Enrollment Form'!C755=\"ROC\",COUNTIF('Enrollment Form'!AS755:AT755,\"Yes\")>=1),\"-\",IF(AND('Enrollment Form'!C755=\"Enroll\",COUNTIF('Enrollment Form'!AS755:AT755,\"No\")=2,'Enrollment Form'!AU755=\"\"),\"N\",\"Y\")))","v":""},{"$f":"IF(OR(B748=\"N\",'Enrollment Form'!B755<>\"Subscriber\",'Enrollment Form'!C755=\"ROC\",'Enrollment Form'!O755<>\"Multiple of Salary\"),\"-\",IF(COUNTA('Enrollment Form'!T755:U755)<2,\"N\",\"Y\"))","v":"-"},{"$f":"IF(B748=\"N\",\"\",IF(OR('Enrollment Form'!C755=\"ROC\",'Enrollment Form'!B755<>\"Subscriber\",'Enrollment Form'!O755=\"Waive\",'Enrollment Form'!O755=\"\"),\"-\",IF('Enrollment Form'!P755=\"\",\"N\",\"Y\")))","v":""},{"$f":"IF($B748=\"N\",\"\",IF(AND('Enrollment Form'!$C755=\"ROC\",'Enrollment Form'!$DS755<>\"\"),\"Y\",IF(AND('Enrollment Form'!$C755=\"ROC\",'Enrollment Form'!$DS755=\"\"),\"N\",IF(AND('Enrollment Form'!$C755=\"Enroll\",'Enrollment Form'!$B755=\"Subscriber\",'Enrollment Form'!$CQ755=\"No\",'Enrollment Form'!$DS755=\"\"),\"N\",IF(AND('Enrollment Form'!$C755=\"Enroll\",'Enrollment Form'!$B755=\"Subscriber\",'Enrollment Form'!$CQ755=\"Yes\"),\"-\",\"Y\")))))","v":""},{"$f":"IF($B748=\"N\",\"\",IF(AND('Enrollment Form'!$C755=\"ROC\",'Enrollment Form'!$DT755<>\"\"),\"Y\",IF(AND('Enrollment Form'!$C755=\"ROC\",'Enrollment Form'!$DT755=\"\"),\"N\",IF(AND('Enrollment Form'!$C755=\"Enroll\",'Enrollment Form'!$B755=\"Subscriber\",'Enrollment Form'!$CQ755=\"No\",'Enrollment Form'!$DT755=\"\"),\"N\",IF(AND('Enrollment Form'!$C755=\"Enroll\",'Enrollment Form'!$B755=\"Subscriber\",'Enrollment Form'!$CQ755=\"Yes\"),\"-\",\"Y\")))))","v":""},{"$f":"IF('Enrollment Form'!AH755=\"\",\"\",IF(ISERROR(SEARCH(\".\",'Enrollment Form'!AH755,SEARCH(\"@\",'Enrollment Form'!AH755))),\"N\",\"Y\"))","v":""},{"$f":"IF(OR($B748=\"N\",'Enrollment Form'!$G755=\"\"),\"\",IF('Enrollment Form'!$B755<>\"Subscriber\",\"-\",IF(COUNTIF('Enrollment Form'!$AS755:$AT755,\"Yes\")=2,\"N\",\"Y\")))","v":""},{"$f":"IF(OR('Enrollment Form'!$CC755=\"\",'Enrollment Form'!$CC755=\"No\"),\"-\",IF(AND('Enrollment Form'!$CC755=\"Yes\",'Enrollment Form'!$CD755=\"\"),\"N\",\"Y\"))","v":"-"},{"$f":"IF(OR('Enrollment Form'!$CE755=\"\",'Enrollment Form'!$CE755=\"No\"),\"-\",IF(AND('Enrollment Form'!$CE755=\"Yes\",'Enrollment Form'!$CF755=\"\"),\"N\",\"Y\"))","v":"-"},{"$f":"IF(OR('Enrollment Form'!$CG755=\"\",'Enrollment Form'!$CG755=\"No\"),\"-\",IF(AND('Enrollment Form'!$CG755=\"Yes\",'Enrollment Form'!$CH755=\"\"),\"N\",\"Y\"))","v":"-"},{"$f":"IF(OR('Enrollment Form'!$CG755=\"\",'Enrollment Form'!$CG755=\"No\"),\"-\",IF(AND('Enrollment Form'!$CG755=\"Yes\",'Enrollment Form'!$CI755=\"\"),\"N\",\"Y\"))","v":"-"},{"$f":"IF('Enrollment Form'!B755<>\"Subscriber\",\"-\",IF(AND('Enrollment Form'!B755=\"Subscriber\",'Enrollment Form'!C755=\"Enroll\",'Enrollment Form'!AA755=\"\"),\"N\",\"Y\"))","v":"-"},{"$f":"IF(OR('Enrollment Form'!B755=\"Subscriber\",'Enrollment Form'!B755=\"\"),\"-\",IF('Enrollment Form'!BI755=\"\",\"N\",\"Y\"))","v":"-"},{"$f":"IF('Enrollment Form'!B755<>\"Subscriber\",\"-\",IF(AND('Enrollment Form'!B755=\"Subscriber\",'Enrollment Form'!G755=\"\"),\"N\",\"Y\"))","v":"-"},{"$f":"IF('Enrollment Form'!A755=\"\",\"\",IF('Enrollment Form'!B755=\"Subscriber\",\"-\",IF(AND('Enrollment Form'!B755<>\"Subscriber\",'Enrollment Form'!G755='Enrollment Form'!H755),\"N\",\"Y\")))","v":""},0]
[756,{"$f":"IF('Enrollment Form'!$A756<>\"\",\"Y\",\"N\")","v":"N"},{"$f":"IF(AND('Enrollment Form'!$B756=\"\",'Enrollment Form'!$C756<>\"\"),\"N\",IF($B749=\"N\",\"\",\"Y\"))","v":""},{"$f":"IF(OR($B749=\"N\",'Enrollment Form'!G756=\"\"),\"\",IF('Enrollment Form'!$B756<>\"Subscriber\",\"\",IF('Enrollment Form'!$G756='Enrollment Form'!$H756,\"Y\",\"N\")))","v":""},{"$f":"IF($B749=\"N\",\"\",IF(AND(COUNTIFS('Enrollment Form'!$H$11:$H$1000,'Enrollment Form'!$H756,'Enrollment Form'!$B$11:$B$1000,'Enrollment Form'!$B756)>1,'Enrollment Form'!$H756<>\"\"),\"N\",\"Y\"))","v":""},{"$f":"IF($B749=\"N\",\"\",IF(LEN('Enrollment Form'!$Y756)=0,\"\",IF(LEN('Enrollment Form'!$Y756)<>5,\"N\",\"Y\")))","v":""},{"$f":"IF($B749=\"N\",\"\",IF(LEN('Enrollment Form'!$AD756=0),\"\",IF(LEN('Enrollment Form'!$AD756)<>5,\"N\",\"Y\")))","v":""},{"$f":"IF($B749=\"N\",\"\",IF(LEN('Enrollment Form'!$BL756=0),\"\",IF(LEN('Enrollment Form'!$BL756)<>5,\"N\",\"Y\")))","v":""},{"$f":"IF($B749=\"N\",\"\",IF(LEN('Enrollment Form'!$AE756)=0,\"\",IF(LEN('Enrollment Form'!$AE756)<>10,\"N\",\"Y\")))","v":""},{"$f":"IF($B749=\"N\",\"\",IF(LEN('Enrollment Form'!$AF756)=0,\"\",IF(LEN('Enrollment Form'!$AF756)<>10,\"N\",\"Y\")))","v":""},{"$f":"IF('Enrollment Form'!$O756<>\"Graded\",\"-\",IF(AND('Enrollment Form'!$O756=\"Graded\",'Enrollment Form'!$AO756<>\"\"),\"Y\",\"N\"))","v":"-"},{"$f":"IF($B749=\"N\",\"\",IF(OR('Enrollment Form'!$B756<>\"Subscriber\",'Enrollment Form'!$C756=\"ROC\"),\"-\",IF(AND('Enrollment Form'!$B756=\"Subscriber\",'Enrollment Form'!$C756=\"Enroll\",'Enrollment Form'!$AJ756<>\"\"),\"Y\",\"N\")))","v":""},{"$f":"IF($B749=\"N\",\"\",IF(OR('Enrollment Form'!$B756<>\"Subscriber\",'Enrollment Form'!$C756=\"ROC\"),\"-\",IF(AND('Enrollment Form'!$B756=\"Subscriber\",'Enrollment Form'!$C756=\"Enroll\",'Enrollment Form'!$AK756<>\"\"),\"Y\",\"N\")))","v":""},{"$f":"IF($B749=\"N\",\"\",IF(OR('Enrollment Form'!$B756<>\"Subscriber\",'Enrollment Form'!$C756=\"ROC\"),\"-\",IF(AND('Enrollment Form'!$B756=\"Subscriber\",'Enrollment Form'!$C756=\"Enroll\",'Enrollment Form'!$AL756<>\"\"),\"Y\",\"N\")))","v":""},{"$f":"IF($B749=\"N\",\"\",IF(OR('Enrollment Form'!$B756<>\"Subscriber\",'Enrollment Form'!$C756=\"ROC\"),\"-\",IF(AND('Enrollment Form'!$B756=\"Subscriber\",'Enrollment Form'!$C756=\"Enroll\",'Enrollment Form'!$AM756<>\"\"),\"Y\",\"N\")))","v":""},{"$f":"IF($B749=\"N\",\"\",IF(OR('Enrollment Form'!$B756<>\"Subscriber\",'Enrollment Form'!$C756=\"ROC\"),\"-\",IF(AND('Enrollment Form'!$B756=\"Subscriber\",'Enrollment Form'!$C756=\"Enroll\",'Enrollment Form'!$AN756<>\"\"),\"Y\",\"N\")))","v":""},{"$f":"IF($B749=\"N\",\"\",IF(OR('Enrollment Form'!$B756<>\"Subscriber\",'Enrollment Form'!$C756=\"ROC\"),\"-\",IF(AND('Enrollment Form'!$B756=\"Subscriber\",'Enrollment Form'!$C756=\"Enroll\",'Enrollment Form'!$AP756<>\"\"),\"Y\",\"N\")))","v":""},{"$f":"IF($B749=\"N\",\"\",IF($Q749=\"-\",\"-\",IF(AND($Q749=\"Y\",'Enrollment Form'!$AP756=\"No\"),\"-\",IF(AND($Q749=\"Y\",'Enrollment Form'!$AP756=\"Yes\",'Enrollment Form'!$AQ756<>\"\"),\"Y\",\"N\"))))","v":""},{"$f":"IF($B749=\"N\",\"\",IF(OR('Enrollment Form'!$B756<>\"Subscriber\",'Enrollment Form'!$C756=\"ROC\"),\"-\",IF(AND('Enrollment Form'!$B756=\"Subscriber\",'Enrollment Form'!$C756=\"Enroll\",'Enrollment Form'!$CO756<>\"\"),\"Y\",\"N\")))","v":""},{"$f":"IF($B749=\"N\",\"\",IF($S749=\"-\",\"-\",IF(AND($S749=\"Y\",'Enrollment Form'!$CO756=\"No\"),\"-\",IF(AND($S749=\"Y\",'Enrollment Form'!$CO756=\"Yes\",'Enrollment Form'!$CP756<>\"\"),\"Y\",\"N\"))))","v":""},{"$f":"IF(OR('Enrollment Form'!$AV756=\"Yes\",'Enrollment Form'!$AV756=\"\"),\"-\",IF(AND('Enrollment Form'!$AV756=\"No\",ISERROR(FIND(\"HMO\",VLOOKUP('Enrollment Form'!G756,'Enrollment Form'!H$11:J$1000,3,FALSE),1))=FALSE,COUNTA('Enrollment Form'!$AW756:$AZ756)=4),\"Y\",\"N\"))","v":"-"},{"$f":"IF($B749=\"N\",\"\",IF('Enrollment Form'!$B756=\"Subscriber\",\"-\",IF(COUNTA('Enrollment Form'!$BE756,'Enrollment Form'!$BG756)=2,\"Y\",\"N\")))","v":""},{"$f":"IF($B749=\"N\",\"\",IF(OR('Enrollment Form'!$AU756=\"\",'Enrollment Form'!$AU756=\"No\"),\"-\",IF(AND('Enrollment Form'!$AU756=\"Yes\",COUNTA('Enrollment Form'!$CK756)=1),\"Y\",\"N\")))","v":""},{"$f":"IF(OR('Enrollment Form'!$CK756=\"\",'Enrollment Form'!$CK756=\"No\"),\"-\",IF(COUNTA('Enrollment Form'!$CM756:$CN756)=2,\"Y\",\"N\"))","v":"-"},{"$f":"IF($B749=\"N\",\"\",IF(COUNTIF('Enrollment Form'!$CZ756:$DO756,\"Other\")=COUNTA('Enrollment Form'!$DF756,'Enrollment Form'!$DA756,'Enrollment Form'!$DK756,'Enrollment Form'!$DP756),\"Y\",\"N\"))","v":""},{"$f":"IF($B749=\"N\",\"\",IF(OR('Enrollment Form'!B756<>\"Subscriber\",'Enrollment Form'!C756=\"ROC\",COUNTIF('Enrollment Form'!AS756:AT756,\"Yes\")>=1),\"-\",IF(AND('Enrollment Form'!C756=\"Enroll\",COUNTIF('Enrollment Form'!AS756:AT756,\"No\")=2,'Enrollment Form'!AU756=\"\"),\"N\",\"Y\")))","v":""},{"$f":"IF(OR(B749=\"N\",'Enrollment Form'!B756<>\"Subscriber\",'Enrollment Form'!C756=\"ROC\",'Enrollment Form'!O756<>\"Multiple of Salary\"),\"-\",IF(COUNTA('Enrollment Form'!T756:U756)<2,\"N\",\"Y\"))","v":"-"},{"$f":"IF(B749=\"N\",\"\",IF(OR('Enrollment Form'!C756=\"ROC\",'Enrollment Form'!B756<>\"Subscriber\",'Enrollment Form'!O756=\"Waive\",'Enrollment Form'!O756=\"\"),\"-\",IF('Enrollment Form'!P756=\"\",\"N\",\"Y\")))","v":""},{"$f":"IF($B749=\"N\",\"\",IF(AND('Enrollment Form'!$C756=\"ROC\",'Enrollment Form'!$DS756<>\"\"),\"Y\",IF(AND('Enrollment Form'!$C756=\"ROC\",'Enrollment Form'!$DS756=\"\"),\"N\",IF(AND('Enrollment Form'!$C756=\"Enroll\",'Enrollment Form'!$B756=\"Subscriber\",'Enrollment Form'!$CQ756=\"No\",'Enrollment Form'!$DS756=\"\"),\"N\",IF(AND('Enrollment Form'!$C756=\"Enroll\",'Enrollment Form'!$B756=\"Subscriber\",'Enrollment Form'!$CQ756=\"Yes\"),\"-\",\"Y\")))))","v":""},{"$f":"IF($B749=\"N\",\"\",IF(AND('Enrollment Form'!$C756=\"ROC\",'Enrollment Form'!$DT756<>\"\"),\"Y\",IF(AND('Enrollment Form'!$C756=\"ROC\",'Enrollment Form'!$DT756=\"\"),\"N\",IF(AND('Enrollment Form'!$C756=\"Enroll\",'Enrollment Form'!$B756=\"Subscriber\",'Enrollment Form'!$CQ756=\"No\",'Enrollment Form'!$DT756=\"\"),\"N\",IF(AND('Enrollment Form'!$C756=\"Enroll\",'Enrollment Form'!$B756=\"Subscriber\",'Enrollment Form'!$CQ756=\"Yes\"),\"-\",\"Y\")))))","v":""},{"$f":"IF('Enrollment Form'!AH756=\"\",\"\",IF(ISERROR(SEARCH(\".\",'Enrollment Form'!AH756,SEARCH(\"@\",'Enrollment Form'!AH756))),\"N\",\"Y\"))","v":""},{"$f":"IF(OR($B749=\"N\",'Enrollment Form'!$G756=\"\"),\"\",IF('Enrollment Form'!$B756<>\"Subscriber\",\"-\",IF(COUNTIF('Enrollment Form'!$AS756:$AT756,\"Yes\")=2,\"N\",\"Y\")))","v":""},{"$f":"IF(OR('Enrollment Form'!$CC756=\"\",'Enrollment Form'!$CC756=\"No\"),\"-\",IF(AND('Enrollment Form'!$CC756=\"Yes\",'Enrollment Form'!$CD756=\"\"),\"N\",\"Y\"))","v":"-"},{"$f":"IF(OR('Enrollment Form'!$CE756=\"\",'Enrollment Form'!$CE756=\"No\"),\"-\",IF(AND('Enrollment Form'!$CE756=\"Yes\",'Enrollment Form'!$CF756=\"\"),\"N\",\"Y\"))","v":"-"},{"$f":"IF(OR('Enrollment Form'!$CG756=\"\",'Enrollment Form'!$CG756=\"No\"),\"-\",IF(AND('Enrollment Form'!$CG756=\"Yes\",'Enrollment Form'!$CH756=\"\"),\"N\",\"Y\"))","v":"-"},{"$f":"IF(OR('Enrollment Form'!$CG756=\"\",'Enrollment Form'!$CG756=\"No\"),\"-\",IF(AND('Enrollment Form'!$CG756=\"Yes\",'Enrollment Form'!$CI756=\"\"),\"N\",\"Y\"))","v":"-"},{"$f":"IF('Enrollment Form'!B756<>\"Subscriber\",\"-\",IF(AND('Enrollment Form'!B756=\"Subscriber\",'Enrollment Form'!C756=\"Enroll\",'Enrollment Form'!AA756=\"\"),\"N\",\"Y\"))","v":"-"},{"$f":"IF(OR('Enrollment Form'!B756=\"Subscriber\",'Enrollment Form'!B756=\"\"),\"-\",IF('Enrollment Form'!BI756=\"\",\"N\",\"Y\"))","v":"-"},{"$f":"IF('Enrollment Form'!B756<>\"Subscriber\",\"-\",IF(AND('Enrollment Form'!B756=\"Subscriber\",'Enrollment Form'!G756=\"\"),\"N\",\"Y\"))","v":"-"},{"$f":"IF('Enrollment Form'!A756=\"\",\"\",IF('Enrollment Form'!B756=\"Subscriber\",\"-\",IF(AND('Enrollment Form'!B756<>\"Subscriber\",'Enrollment Form'!G756='Enrollment Form'!H756),\"N\",\"Y\")))","v":""},0]
[757,{"$f":"IF('Enrollment Form'!$A757<>\"\",\"Y\",\"N\")","v":"N"},{"$f":"IF(AND('Enrollment Form'!$B757=\"\",'Enrollment Form'!$C757<>\"\"),\"N\",IF($B750=\"N\",\"\",\"Y\"))","v":""},{"$f":"IF(OR($B750=\"N\",'Enrollment Form'!G757=\"\"),\"\",IF('Enrollment Form'!$B757<>\"Subscriber\",\"\",IF('Enrollment Form'!$G757='Enrollment Form'!$H757,\"Y\",\"N\")))","v":""},{"$f":"IF($B750=\"N\",\"\",IF(AND(COUNTIFS('Enrollment Form'!$H$11:$H$1000,'Enrollment Form'!$H757,'Enrollment Form'!$B$11:$B$1000,'Enrollment Form'!$B757)>1,'Enrollment Form'!$H757<>\"\"),\"N\",\"Y\"))","v":""},{"$f":"IF($B750=\"N\",\"\",IF(LEN('Enrollment Form'!$Y757)=0,\"\",IF(LEN('Enrollment Form'!$Y757)<>5,\"N\",\"Y\")))","v":""},{"$f":"IF($B750=\"N\",\"\",IF(LEN('Enrollment Form'!$AD757=0),\"\",IF(LEN('Enrollment Form'!$AD757)<>5,\"N\",\"Y\")))","v":""},{"$f":"IF($B750=\"N\",\"\",IF(LEN('Enrollment Form'!$BL757=0),\"\",IF(LEN('Enrollment Form'!$BL757)<>5,\"N\",\"Y\")))","v":""},{"$f":"IF($B750=\"N\",\"\",IF(LEN('Enrollment Form'!$AE757)=0,\"\",IF(LEN('Enrollment Form'!$AE757)<>10,\"N\",\"Y\")))","v":""},{"$f":"IF($B750=\"N\",\"\",IF(LEN('Enrollment Form'!$AF757)=0,\"\",IF(LEN('Enrollment Form'!$AF757)<>10,\"N\",\"Y\")))","v":""},{"$f":"IF('Enrollment Form'!$O757<>\"Graded\",\"-\",IF(AND('Enrollment Form'!$O757=\"Graded\",'Enrollment Form'!$AO757<>\"\"),\"Y\",\"N\"))","v":"-"},{"$f":"IF($B750=\"N\",\"\",IF(OR('Enrollment Form'!$B757<>\"Subscriber\",'Enrollment Form'!$C757=\"ROC\"),\"-\",IF(AND('Enrollment Form'!$B757=\"Subscriber\",'Enrollment Form'!$C757=\"Enroll\",'Enrollment Form'!$AJ757<>\"\"),\"Y\",\"N\")))","v":""},{"$f":"IF($B750=\"N\",\"\",IF(OR('Enrollment Form'!$B757<>\"Subscriber\",'Enrollment Form'!$C757=\"ROC\"),\"-\",IF(AND('Enrollment Form'!$B757=\"Subscriber\",'Enrollment Form'!$C757=\"Enroll\",'Enrollment Form'!$AK757<>\"\"),\"Y\",\"N\")))","v":""},{"$f":"IF($B750=\"N\",\"\",IF(OR('Enrollment Form'!$B757<>\"Subscriber\",'Enrollment Form'!$C757=\"ROC\"),\"-\",IF(AND('Enrollment Form'!$B757=\"Subscriber\",'Enrollment Form'!$C757=\"Enroll\",'Enrollment Form'!$AL757<>\"\"),\"Y\",\"N\")))","v":""},{"$f":"IF($B750=\"N\",\"\",IF(OR('Enrollment Form'!$B757<>\"Subscriber\",'Enrollment Form'!$C757=\"ROC\"),\"-\",IF(AND('Enrollment Form'!$B757=\"Subscriber\",'Enrollment Form'!$C757=\"Enroll\",'Enrollment Form'!$AM757<>\"\"),\"Y\",\"N\")))","v":""},{"$f":"IF($B750=\"N\",\"\",IF(OR('Enrollment Form'!$B757<>\"Subscriber\",'Enrollment Form'!$C757=\"ROC\"),\"-\",IF(AND('Enrollment Form'!$B757=\"Subscriber\",'Enrollment Form'!$C757=\"Enroll\",'Enrollment Form'!$AN757<>\"\"),\"Y\",\"N\")))","v":""},{"$f":"IF($B750=\"N\",\"\",IF(OR('Enrollment Form'!$B757<>\"Subscriber\",'Enrollment Form'!$C757=\"ROC\"),\"-\",IF(AND('Enrollment Form'!$B757=\"Subscriber\",'Enrollment Form'!$C757=\"Enroll\",'Enrollment Form'!$AP757<>\"\"),\"Y\",\"N\")))","v":""},{"$f":"IF($B750=\"N\",\"\",IF($Q750=\"-\",\"-\",IF(AND($Q750=\"Y\",'Enrollment Form'!$AP757=\"No\"),\"-\",IF(AND($Q750=\"Y\",'Enrollment Form'!$AP757=\"Yes\",'Enrollment Form'!$AQ757<>\"\"),\"Y\",\"N\"))))","v":""},{"$f":"IF($B750=\"N\",\"\",IF(OR('Enrollment Form'!$B757<>\"Subscriber\",'Enrollment Form'!$C757=\"ROC\"),\"-\",IF(AND('Enrollment Form'!$B757=\"Subscriber\",'Enrollment Form'!$C757=\"Enroll\",'Enrollment Form'!$CO757<>\"\"),\"Y\",\"N\")))","v":""},{"$f":"IF($B750=\"N\",\"\",IF($S750=\"-\",\"-\",IF(AND($S750=\"Y\",'Enrollment Form'!$CO757=\"No\"),\"-\",IF(AND($S750=\"Y\",'Enrollment Form'!$CO757=\"Yes\",'Enrollment Form'!$CP757<>\"\"),\"Y\",\"N\"))))","v":""},{"$f":"IF(OR('Enrollment Form'!$AV757=\"Yes\",'Enrollment Form'!$AV757=\"\"),\"-\",IF(AND('Enrollment Form'!$AV757=\"No\",ISERROR(FIND(\"HMO\",VLOOKUP('Enrollment Form'!G757,'Enrollment Form'!H$11:J$1000,3,FALSE),1))=FALSE,COUNTA('Enrollment Form'!$AW757:$AZ757)=4),\"Y\",\"N\"))","v":"-"},{"$f":"IF($B750=\"N\",\"\",IF('Enrollment Form'!$B757=\"Subscriber\",\"-\",IF(COUNTA('Enrollment Form'!$BE757,'Enrollment Form'!$BG757)=2,\"Y\",\"N\")))","v":""},{"$f":"IF($B750=\"N\",\"\",IF(OR('Enrollment Form'!$AU757=\"\",'Enrollment Form'!$AU757=\"No\"),\"-\",IF(AND('Enrollment Form'!$AU757=\"Yes\",COUNTA('Enrollment Form'!$CK757)=1),\"Y\",\"N\")))","v":""},{"$f":"IF(OR('Enrollment Form'!$CK757=\"\",'Enrollment Form'!$CK757=\"No\"),\"-\",IF(COUNTA('Enrollment Form'!$CM757:$CN757)=2,\"Y\",\"N\"))","v":"-"},{"$f":"IF($B750=\"N\",\"\",IF(COUNTIF('Enrollment Form'!$CZ757:$DO757,\"Other\")=COUNTA('Enrollment Form'!$DF757,'Enrollment Form'!$DA757,'Enrollment Form'!$DK757,'Enrollment Form'!$DP757),\"Y\",\"N\"))","v":""},{"$f":"IF($B750=\"N\",\"\",IF(OR('Enrollment Form'!B757<>\"Subscriber\",'Enrollment Form'!C757=\"ROC\",COUNTIF('Enrollment Form'!AS757:AT757,\"Yes\")>=1),\"-\",IF(AND('Enrollment Form'!C757=\"Enroll\",COUNTIF('Enrollment Form'!AS757:AT757,\"No\")=2,'Enrollment Form'!AU757=\"\"),\"N\",\"Y\")))","v":""},{"$f":"IF(OR(B750=\"N\",'Enrollment Form'!B757<>\"Subscriber\",'Enrollment Form'!C757=\"ROC\",'Enrollment Form'!O757<>\"Multiple of Salary\"),\"-\",IF(COUNTA('Enrollment Form'!T757:U757)<2,\"N\",\"Y\"))","v":"-"},{"$f":"IF(B750=\"N\",\"\",IF(OR('Enrollment Form'!C757=\"ROC\",'Enrollment Form'!B757<>\"Subscriber\",'Enrollment Form'!O757=\"Waive\",'Enrollment Form'!O757=\"\"),\"-\",IF('Enrollment Form'!P757=\"\",\"N\",\"Y\")))","v":""},{"$f":"IF($B750=\"N\",\"\",IF(AND('Enrollment Form'!$C757=\"ROC\",'Enrollment Form'!$DS757<>\"\"),\"Y\",IF(AND('Enrollment Form'!$C757=\"ROC\",'Enrollment Form'!$DS757=\"\"),\"N\",IF(AND('Enrollment Form'!$C757=\"Enroll\",'Enrollment Form'!$B757=\"Subscriber\",'Enrollment Form'!$CQ757=\"No\",'Enrollment Form'!$DS757=\"\"),\"N\",IF(AND('Enrollment Form'!$C757=\"Enroll\",'Enrollment Form'!$B757=\"Subscriber\",'Enrollment Form'!$CQ757=\"Yes\"),\"-\",\"Y\")))))","v":""},{"$f":"IF($B750=\"N\",\"\",IF(AND('Enrollment Form'!$C757=\"ROC\",'Enrollment Form'!$DT757<>\"\"),\"Y\",IF(AND('Enrollment Form'!$C757=\"ROC\",'Enrollment Form'!$DT757=\"\"),\"N\",IF(AND('Enrollment Form'!$C757=\"Enroll\",'Enrollment Form'!$B757=\"Subscriber\",'Enrollment Form'!$CQ757=\"No\",'Enrollment Form'!$DT757=\"\"),\"N\",IF(AND('Enrollment Form'!$C757=\"Enroll\",'Enrollment Form'!$B757=\"Subscriber\",'Enrollment Form'!$CQ757=\"Yes\"),\"-\",\"Y\")))))","v":""},{"$f":"IF('Enrollment Form'!AH757=\"\",\"\",IF(ISERROR(SEARCH(\".\",'Enrollment Form'!AH757,SEARCH(\"@\",'Enrollment Form'!AH757))),\"N\",\"Y\"))","v":""},{"$f":"IF(OR($B750=\"N\",'Enrollment Form'!$G757=\"\"),\"\",IF('Enrollment Form'!$B757<>\"Subscriber\",\"-\",IF(COUNTIF('Enrollment Form'!$AS757:$AT757,\"Yes\")=2,\"N\",\"Y\")))","v":""},{"$f":"IF(OR('Enrollment Form'!$CC757=\"\",'Enrollment Form'!$CC757=\"No\"),\"-\",IF(AND('Enrollment Form'!$CC757=\"Yes\",'Enrollment Form'!$CD757=\"\"),\"N\",\"Y\"))","v":"-"},{"$f":"IF(OR('Enrollment Form'!$CE757=\"\",'Enrollment Form'!$CE757=\"No\"),\"-\",IF(AND('Enrollment Form'!$CE757=\"Yes\",'Enrollment Form'!$CF757=\"\"),\"N\",\"Y\"))","v":"-"},{"$f":"IF(OR('Enrollment Form'!$CG757=\"\",'Enrollment Form'!$CG757=\"No\"),\"-\",IF(AND('Enrollment Form'!$CG757=\"Yes\",'Enrollment Form'!$CH757=\"\"),\"N\",\"Y\"))","v":"-"},{"$f":"IF(OR('Enrollment Form'!$CG757=\"\",'Enrollment Form'!$CG757=\"No\"),\"-\",IF(AND('Enrollment Form'!$CG757=\"Yes\",'Enrollment Form'!$CI757=\"\"),\"N\",\"Y\"))","v":"-"},{"$f":"IF('Enrollment Form'!B757<>\"Subscriber\",\"-\",IF(AND('Enrollment Form'!B757=\"Subscriber\",'Enrollment Form'!C757=\"Enroll\",'Enrollment Form'!AA757=\"\"),\"N\",\"Y\"))","v":"-"},{"$f":"IF(OR('Enrollment Form'!B757=\"Subscriber\",'Enrollment Form'!B757=\"\"),\"-\",IF('Enrollment Form'!BI757=\"\",\"N\",\"Y\"))","v":"-"},{"$f":"IF('Enrollment Form'!B757<>\"Subscriber\",\"-\",IF(AND('Enrollment Form'!B757=\"Subscriber\",'Enrollment Form'!G757=\"\"),\"N\",\"Y\"))","v":"-"},{"$f":"IF('Enrollment Form'!A757=\"\",\"\",IF('Enrollment Form'!B757=\"Subscriber\",\"-\",IF(AND('Enrollment Form'!B757<>\"Subscriber\",'Enrollment Form'!G757='Enrollment Form'!H757),\"N\",\"Y\")))","v":""},0]
[758,{"$f":"IF('Enrollment Form'!$A758<>\"\",\"Y\",\"N\")","v":"N"},{"$f":"IF(AND('Enrollment Form'!$B758=\"\",'Enrollment Form'!$C758<>\"\"),\"N\",IF($B751=\"N\",\"\",\"Y\"))","v":""},{"$f":"IF(OR($B751=\"N\",'Enrollment Form'!G758=\"\"),\"\",IF('Enrollment Form'!$B758<>\"Subscriber\",\"\",IF('Enrollment Form'!$G758='Enrollment Form'!$H758,\"Y\",\"N\")))","v":""},{"$f":"IF($B751=\"N\",\"\",IF(AND(COUNTIFS('Enrollment Form'!$H$11:$H$1000,'Enrollment Form'!$H758,'Enrollment Form'!$B$11:$B$1000,'Enrollment Form'!$B758)>1,'Enrollment Form'!$H758<>\"\"),\"N\",\"Y\"))","v":""},{"$f":"IF($B751=\"N\",\"\",IF(LEN('Enrollment Form'!$Y758)=0,\"\",IF(LEN('Enrollment Form'!$Y758)<>5,\"N\",\"Y\")))","v":""},{"$f":"IF($B751=\"N\",\"\",IF(LEN('Enrollment Form'!$AD758=0),\"\",IF(LEN('Enrollment Form'!$AD758)<>5,\"N\",\"Y\")))","v":""},{"$f":"IF($B751=\"N\",\"\",IF(LEN('Enrollment Form'!$BL758=0),\"\",IF(LEN('Enrollment Form'!$BL758)<>5,\"N\",\"Y\")))","v":""},{"$f":"IF($B751=\"N\",\"\",IF(LEN('Enrollment Form'!$AE758)=0,\"\",IF(LEN('Enrollment Form'!$AE758)<>10,\"N\",\"Y\")))","v":""},{"$f":"IF($B751=\"N\",\"\",IF(LEN('Enrollment Form'!$AF758)=0,\"\",IF(LEN('Enrollment Form'!$AF758)<>10,\"N\",\"Y\")))","v":""},{"$f":"IF('Enrollment Form'!$O758<>\"Graded\",\"-\",IF(AND('Enrollment Form'!$O758=\"Graded\",'Enrollment Form'!$AO758<>\"\"),\"Y\",\"N\"))","v":"-"},{"$f":"IF($B751=\"N\",\"\",IF(OR('Enrollment Form'!$B758<>\"Subscriber\",'Enrollment Form'!$C758=\"ROC\"),\"-\",IF(AND('Enrollment Form'!$B758=\"Subscriber\",'Enrollment Form'!$C758=\"Enroll\",'Enrollment Form'!$AJ758<>\"\"),\"Y\",\"N\")))","v":""},{"$f":"IF($B751=\"N\",\"\",IF(OR('Enrollment Form'!$B758<>\"Subscriber\",'Enrollment Form'!$C758=\"ROC\"),\"-\",IF(AND('Enrollment Form'!$B758=\"Subscriber\",'Enrollment Form'!$C758=\"Enroll\",'Enrollment Form'!$AK758<>\"\"),\"Y\",\"N\")))","v":""},{"$f":"IF($B751=\"N\",\"\",IF(OR('Enrollment Form'!$B758<>\"Subscriber\",'Enrollment Form'!$C758=\"ROC\"),\"-\",IF(AND('Enrollment Form'!$B758=\"Subscriber\",'Enrollment Form'!$C758=\"Enroll\",'Enrollment Form'!$AL758<>\"\"),\"Y\",\"N\")))","v":""},{"$f":"IF($B751=\"N\",\"\",IF(OR('Enrollment Form'!$B758<>\"Subscriber\",'Enrollment Form'!$C758=\"ROC\"),\"-\",IF(AND('Enrollment Form'!$B758=\"Subscriber\",'Enrollment Form'!$C758=\"Enroll\",'Enrollment Form'!$AM758<>\"\"),\"Y\",\"N\")))","v":""},{"$f":"IF($B751=\"N\",\"\",IF(OR('Enrollment Form'!$B758<>\"Subscriber\",'Enrollment Form'!$C758=\"ROC\"),\"-\",IF(AND('Enrollment Form'!$B758=\"Subscriber\",'Enrollment Form'!$C758=\"Enroll\",'Enrollment Form'!$AN758<>\"\"),\"Y\",\"N\")))","v":""},{"$f":"IF($B751=\"N\",\"\",IF(OR('Enrollment Form'!$B758<>\"Subscriber\",'Enrollment Form'!$C758=\"ROC\"),\"-\",IF(AND('Enrollment Form'!$B758=\"Subscriber\",'Enrollment Form'!$C758=\"Enroll\",'Enrollment Form'!$AP758<>\"\"),\"Y\",\"N\")))","v":""},{"$f":"IF($B751=\"N\",\"\",IF($Q751=\"-\",\"-\",IF(AND($Q751=\"Y\",'Enrollment Form'!$AP758=\"No\"),\"-\",IF(AND($Q751=\"Y\",'Enrollment Form'!$AP758=\"Yes\",'Enrollment Form'!$AQ758<>\"\"),\"Y\",\"N\"))))","v":""},{"$f":"IF($B751=\"N\",\"\",IF(OR('Enrollment Form'!$B758<>\"Subscriber\",'Enrollment Form'!$C758=\"ROC\"),\"-\",IF(AND('Enrollment Form'!$B758=\"Subscriber\",'Enrollment Form'!$C758=\"Enroll\",'Enrollment Form'!$CO758<>\"\"),\"Y\",\"N\")))","v":""},{"$f":"IF($B751=\"N\",\"\",IF($S751=\"-\",\"-\",IF(AND($S751=\"Y\",'Enrollment Form'!$CO758=\"No\"),\"-\",IF(AND($S751=\"Y\",'Enrollment Form'!$CO758=\"Yes\",'Enrollment Form'!$CP758<>\"\"),\"Y\",\"N\"))))","v":""},{"$f":"IF(OR('Enrollment Form'!$AV758=\"Yes\",'Enrollment Form'!$AV758=\"\"),\"-\",IF(AND('Enrollment Form'!$AV758=\"No\",ISERROR(FIND(\"HMO\",VLOOKUP('Enrollment Form'!G758,'Enrollment Form'!H$11:J$1000,3,FALSE),1))=FALSE,COUNTA('Enrollment Form'!$AW758:$AZ758)=4),\"Y\",\"N\"))","v":"-"},{"$f":"IF($B751=\"N\",\"\",IF('Enrollment Form'!$B758=\"Subscriber\",\"-\",IF(COUNTA('Enrollment Form'!$BE758,'Enrollment Form'!$BG758)=2,\"Y\",\"N\")))","v":""},{"$f":"IF($B751=\"N\",\"\",IF(OR('Enrollment Form'!$AU758=\"\",'Enrollment Form'!$AU758=\"No\"),\"-\",IF(AND('Enrollment Form'!$AU758=\"Yes\",COUNTA('Enrollment Form'!$CK758)=1),\"Y\",\"N\")))","v":""},{"$f":"IF(OR('Enrollment Form'!$CK758=\"\",'Enrollment Form'!$CK758=\"No\"),\"-\",IF(COUNTA('Enrollment Form'!$CM758:$CN758)=2,\"Y\",\"N\"))","v":"-"},{"$f":"IF($B751=\"N\",\"\",IF(COUNTIF('Enrollment Form'!$CZ758:$DO758,\"Other\")=COUNTA('Enrollment Form'!$DF758,'Enrollment Form'!$DA758,'Enrollment Form'!$DK758,'Enrollment Form'!$DP758),\"Y\",\"N\"))","v":""},{"$f":"IF($B751=\"N\",\"\",IF(OR('Enrollment Form'!B758<>\"Subscriber\",'Enrollment Form'!C758=\"ROC\",COUNTIF('Enrollment Form'!AS758:AT758,\"Yes\")>=1),\"-\",IF(AND('Enrollment Form'!C758=\"Enroll\",COUNTIF('Enrollment Form'!AS758:AT758,\"No\")=2,'Enrollment Form'!AU758=\"\"),\"N\",\"Y\")))","v":""},{"$f":"IF(OR(B751=\"N\",'Enrollment Form'!B758<>\"Subscriber\",'Enrollment Form'!C758=\"ROC\",'Enrollment Form'!O758<>\"Multiple of Salary\"),\"-\",IF(COUNTA('Enrollment Form'!T758:U758)<2,\"N\",\"Y\"))","v":"-"},{"$f":"IF(B751=\"N\",\"\",IF(OR('Enrollment Form'!C758=\"ROC\",'Enrollment Form'!B758<>\"Subscriber\",'Enrollment Form'!O758=\"Waive\",'Enrollment Form'!O758=\"\"),\"-\",IF('Enrollment Form'!P758=\"\",\"N\",\"Y\")))","v":""},{"$f":"IF($B751=\"N\",\"\",IF(AND('Enrollment Form'!$C758=\"ROC\",'Enrollment Form'!$DS758<>\"\"),\"Y\",IF(AND('Enrollment Form'!$C758=\"ROC\",'Enrollment Form'!$DS758=\"\"),\"N\",IF(AND('Enrollment Form'!$C758=\"Enroll\",'Enrollment Form'!$B758=\"Subscriber\",'Enrollment Form'!$CQ758=\"No\",'Enrollment Form'!$DS758=\"\"),\"N\",IF(AND('Enrollment Form'!$C758=\"Enroll\",'Enrollment Form'!$B758=\"Subscriber\",'Enrollment Form'!$CQ758=\"Yes\"),\"-\",\"Y\")))))","v":""},{"$f":"IF($B751=\"N\",\"\",IF(AND('Enrollment Form'!$C758=\"ROC\",'Enrollment Form'!$DT758<>\"\"),\"Y\",IF(AND('Enrollment Form'!$C758=\"ROC\",'Enrollment Form'!$DT758=\"\"),\"N\",IF(AND('Enrollment Form'!$C758=\"Enroll\",'Enrollment Form'!$B758=\"Subscriber\",'Enrollment Form'!$CQ758=\"No\",'Enrollment Form'!$DT758=\"\"),\"N\",IF(AND('Enrollment Form'!$C758=\"Enroll\",'Enrollment Form'!$B758=\"Subscriber\",'Enrollment Form'!$CQ758=\"Yes\"),\"-\",\"Y\")))))","v":""},{"$f":"IF('Enrollment Form'!AH758=\"\",\"\",IF(ISERROR(SEARCH(\".\",'Enrollment Form'!AH758,SEARCH(\"@\",'Enrollment Form'!AH758))),\"N\",\"Y\"))","v":""},{"$f":"IF(OR($B751=\"N\",'Enrollment Form'!$G758=\"\"),\"\",IF('Enrollment Form'!$B758<>\"Subscriber\",\"-\",IF(COUNTIF('Enrollment Form'!$AS758:$AT758,\"Yes\")=2,\"N\",\"Y\")))","v":""},{"$f":"IF(OR('Enrollment Form'!$CC758=\"\",'Enrollment Form'!$CC758=\"No\"),\"-\",IF(AND('Enrollment Form'!$CC758=\"Yes\",'Enrollment Form'!$CD758=\"\"),\"N\",\"Y\"))","v":"-"},{"$f":"IF(OR('Enrollment Form'!$CE758=\"\",'Enrollment Form'!$CE758=\"No\"),\"-\",IF(AND('Enrollment Form'!$CE758=\"Yes\",'Enrollment Form'!$CF758=\"\"),\"N\",\"Y\"))","v":"-"},{"$f":"IF(OR('Enrollment Form'!$CG758=\"\",'Enrollment Form'!$CG758=\"No\"),\"-\",IF(AND('Enrollment Form'!$CG758=\"Yes\",'Enrollment Form'!$CH758=\"\"),\"N\",\"Y\"))","v":"-"},{"$f":"IF(OR('Enrollment Form'!$CG758=\"\",'Enrollment Form'!$CG758=\"No\"),\"-\",IF(AND('Enrollment Form'!$CG758=\"Yes\",'Enrollment Form'!$CI758=\"\"),\"N\",\"Y\"))","v":"-"},{"$f":"IF('Enrollment Form'!B758<>\"Subscriber\",\"-\",IF(AND('Enrollment Form'!B758=\"Subscriber\",'Enrollment Form'!C758=\"Enroll\",'Enrollment Form'!AA758=\"\"),\"N\",\"Y\"))","v":"-"},{"$f":"IF(OR('Enrollment Form'!B758=\"Subscriber\",'Enrollment Form'!B758=\"\"),\"-\",IF('Enrollment Form'!BI758=\"\",\"N\",\"Y\"))","v":"-"},{"$f":"IF('Enrollment Form'!B758<>\"Subscriber\",\"-\",IF(AND('Enrollment Form'!B758=\"Subscriber\",'Enrollment Form'!G758=\"\"),\"N\",\"Y\"))","v":"-"},{"$f":"IF('Enrollment Form'!A758=\"\",\"\",IF('Enrollment Form'!B758=\"Subscriber\",\"-\",IF(AND('Enrollment Form'!B758<>\"Subscriber\",'Enrollment Form'!G758='Enrollment Form'!H758),\"N\",\"Y\")))","v":""},0]
[759,{"$f":"IF('Enrollment Form'!$A759<>\"\",\"Y\",\"N\")","v":"N"},{"$f":"IF(AND('Enrollment Form'!$B759=\"\",'Enrollment Form'!$C759<>\"\"),\"N\",IF($B752=\"N\",\"\",\"Y\"))","v":""},{"$f":"IF(OR($B752=\"N\",'Enrollment Form'!G759=\"\"),\"\",IF('Enrollment Form'!$B759<>\"Subscriber\",\"\",IF('Enrollment Form'!$G759='Enrollment Form'!$H759,\"Y\",\"N\")))","v":""},{"$f":"IF($B752=\"N\",\"\",IF(AND(COUNTIFS('Enrollment Form'!$H$11:$H$1000,'Enrollment Form'!$H759,'Enrollment Form'!$B$11:$B$1000,'Enrollment Form'!$B759)>1,'Enrollment Form'!$H759<>\"\"),\"N\",\"Y\"))","v":""},{"$f":"IF($B752=\"N\",\"\",IF(LEN('Enrollment Form'!$Y759)=0,\"\",IF(LEN('Enrollment Form'!$Y759)<>5,\"N\",\"Y\")))","v":""},{"$f":"IF($B752=\"N\",\"\",IF(LEN('Enrollment Form'!$AD759=0),\"\",IF(LEN('Enrollment Form'!$AD759)<>5,\"N\",\"Y\")))","v":""},{"$f":"IF($B752=\"N\",\"\",IF(LEN('Enrollment Form'!$BL759=0),\"\",IF(LEN('Enrollment Form'!$BL759)<>5,\"N\",\"Y\")))","v":""},{"$f":"IF($B752=\"N\",\"\",IF(LEN('Enrollment Form'!$AE759)=0,\"\",IF(LEN('Enrollment Form'!$AE759)<>10,\"N\",\"Y\")))","v":""},{"$f":"IF($B752=\"N\",\"\",IF(LEN('Enrollment Form'!$AF759)=0,\"\",IF(LEN('Enrollment Form'!$AF759)<>10,\"N\",\"Y\")))","v":""},{"$f":"IF('Enrollment Form'!$O759<>\"Graded\",\"-\",IF(AND('Enrollment Form'!$O759=\"Graded\",'Enrollment Form'!$AO759<>\"\"),\"Y\",\"N\"))","v":"-"},{"$f":"IF($B752=\"N\",\"\",IF(OR('Enrollment Form'!$B759<>\"Subscriber\",'Enrollment Form'!$C759=\"ROC\"),\"-\",IF(AND('Enrollment Form'!$B759=\"Subscriber\",'Enrollment Form'!$C759=\"Enroll\",'Enrollment Form'!$AJ759<>\"\"),\"Y\",\"N\")))","v":""},{"$f":"IF($B752=\"N\",\"\",IF(OR('Enrollment Form'!$B759<>\"Subscriber\",'Enrollment Form'!$C759=\"ROC\"),\"-\",IF(AND('Enrollment Form'!$B759=\"Subscriber\",'Enrollment Form'!$C759=\"Enroll\",'Enrollment Form'!$AK759<>\"\"),\"Y\",\"N\")))","v":""},{"$f":"IF($B752=\"N\",\"\",IF(OR('Enrollment Form'!$B759<>\"Subscriber\",'Enrollment Form'!$C759=\"ROC\"),\"-\",IF(AND('Enrollment Form'!$B759=\"Subscriber\",'Enrollment Form'!$C759=\"Enroll\",'Enrollment Form'!$AL759<>\"\"),\"Y\",\"N\")))","v":""},{"$f":"IF($B752=\"N\",\"\",IF(OR('Enrollment Form'!$B759<>\"Subscriber\",'Enrollment Form'!$C759=\"ROC\"),\"-\",IF(AND('Enrollment Form'!$B759=\"Subscriber\",'Enrollment Form'!$C759=\"Enroll\",'Enrollment Form'!$AM759<>\"\"),\"Y\",\"N\")))","v":""},{"$f":"IF($B752=\"N\",\"\",IF(OR('Enrollment Form'!$B759<>\"Subscriber\",'Enrollment Form'!$C759=\"ROC\"),\"-\",IF(AND('Enrollment Form'!$B759=\"Subscriber\",'Enrollment Form'!$C759=\"Enroll\",'Enrollment Form'!$AN759<>\"\"),\"Y\",\"N\")))","v":""},{"$f":"IF($B752=\"N\",\"\",IF(OR('Enrollment Form'!$B759<>\"Subscriber\",'Enrollment Form'!$C759=\"ROC\"),\"-\",IF(AND('Enrollment Form'!$B759=\"Subscriber\",'Enrollment Form'!$C759=\"Enroll\",'Enrollment Form'!$AP759<>\"\"),\"Y\",\"N\")))","v":""},{"$f":"IF($B752=\"N\",\"\",IF($Q752=\"-\",\"-\",IF(AND($Q752=\"Y\",'Enrollment Form'!$AP759=\"No\"),\"-\",IF(AND($Q752=\"Y\",'Enrollment Form'!$AP759=\"Yes\",'Enrollment Form'!$AQ759<>\"\"),\"Y\",\"N\"))))","v":""},{"$f":"IF($B752=\"N\",\"\",IF(OR('Enrollment Form'!$B759<>\"Subscriber\",'Enrollment Form'!$C759=\"ROC\"),\"-\",IF(AND('Enrollment Form'!$B759=\"Subscriber\",'Enrollment Form'!$C759=\"Enroll\",'Enrollment Form'!$CO759<>\"\"),\"Y\",\"N\")))","v":""},{"$f":"IF($B752=\"N\",\"\",IF($S752=\"-\",\"-\",IF(AND($S752=\"Y\",'Enrollment Form'!$CO759=\"No\"),\"-\",IF(AND($S752=\"Y\",'Enrollment Form'!$CO759=\"Yes\",'Enrollment Form'!$CP759<>\"\"),\"Y\",\"N\"))))","v":""},{"$f":"IF(OR('Enrollment Form'!$AV759=\"Yes\",'Enrollment Form'!$AV759=\"\"),\"-\",IF(AND('Enrollment Form'!$AV759=\"No\",ISERROR(FIND(\"HMO\",VLOOKUP('Enrollment Form'!G759,'Enrollment Form'!H$11:J$1000,3,FALSE),1))=FALSE,COUNTA('Enrollment Form'!$AW759:$AZ759)=4),\"Y\",\"N\"))","v":"-"},{"$f":"IF($B752=\"N\",\"\",IF('Enrollment Form'!$B759=\"Subscriber\",\"-\",IF(COUNTA('Enrollment Form'!$BE759,'Enrollment Form'!$BG759)=2,\"Y\",\"N\")))","v":""},{"$f":"IF($B752=\"N\",\"\",IF(OR('Enrollment Form'!$AU759=\"\",'Enrollment Form'!$AU759=\"No\"),\"-\",IF(AND('Enrollment Form'!$AU759=\"Yes\",COUNTA('Enrollment Form'!$CK759)=1),\"Y\",\"N\")))","v":""},{"$f":"IF(OR('Enrollment Form'!$CK759=\"\",'Enrollment Form'!$CK759=\"No\"),\"-\",IF(COUNTA('Enrollment Form'!$CM759:$CN759)=2,\"Y\",\"N\"))","v":"-"},{"$f":"IF($B752=\"N\",\"\",IF(COUNTIF('Enrollment Form'!$CZ759:$DO759,\"Other\")=COUNTA('Enrollment Form'!$DF759,'Enrollment Form'!$DA759,'Enrollment Form'!$DK759,'Enrollment Form'!$DP759),\"Y\",\"N\"))","v":""},{"$f":"IF($B752=\"N\",\"\",IF(OR('Enrollment Form'!B759<>\"Subscriber\",'Enrollment Form'!C759=\"ROC\",COUNTIF('Enrollment Form'!AS759:AT759,\"Yes\")>=1),\"-\",IF(AND('Enrollment Form'!C759=\"Enroll\",COUNTIF('Enrollment Form'!AS759:AT759,\"No\")=2,'Enrollment Form'!AU759=\"\"),\"N\",\"Y\")))","v":""},{"$f":"IF(OR(B752=\"N\",'Enrollment Form'!B759<>\"Subscriber\",'Enrollment Form'!C759=\"ROC\",'Enrollment Form'!O759<>\"Multiple of Salary\"),\"-\",IF(COUNTA('Enrollment Form'!T759:U759)<2,\"N\",\"Y\"))","v":"-"},{"$f":"IF(B752=\"N\",\"\",IF(OR('Enrollment Form'!C759=\"ROC\",'Enrollment Form'!B759<>\"Subscriber\",'Enrollment Form'!O759=\"Waive\",'Enrollment Form'!O759=\"\"),\"-\",IF('Enrollment Form'!P759=\"\",\"N\",\"Y\")))","v":""},{"$f":"IF($B752=\"N\",\"\",IF(AND('Enrollment Form'!$C759=\"ROC\",'Enrollment Form'!$DS759<>\"\"),\"Y\",IF(AND('Enrollment Form'!$C759=\"ROC\",'Enrollment Form'!$DS759=\"\"),\"N\",IF(AND('Enrollment Form'!$C759=\"Enroll\",'Enrollment Form'!$B759=\"Subscriber\",'Enrollment Form'!$CQ759=\"No\",'Enrollment Form'!$DS759=\"\"),\"N\",IF(AND('Enrollment Form'!$C759=\"Enroll\",'Enrollment Form'!$B759=\"Subscriber\",'Enrollment Form'!$CQ759=\"Yes\"),\"-\",\"Y\")))))","v":""},{"$f":"IF($B752=\"N\",\"\",IF(AND('Enrollment Form'!$C759=\"ROC\",'Enrollment Form'!$DT759<>\"\"),\"Y\",IF(AND('Enrollment Form'!$C759=\"ROC\",'Enrollment Form'!$DT759=\"\"),\"N\",IF(AND('Enrollment Form'!$C759=\"Enroll\",'Enrollment Form'!$B759=\"Subscriber\",'Enrollment Form'!$CQ759=\"No\",'Enrollment Form'!$DT759=\"\"),\"N\",IF(AND('Enrollment Form'!$C759=\"Enroll\",'Enrollment Form'!$B759=\"Subscriber\",'Enrollment Form'!$CQ759=\"Yes\"),\"-\",\"Y\")))))","v":""},{"$f":"IF('Enrollment Form'!AH759=\"\",\"\",IF(ISERROR(SEARCH(\".\",'Enrollment Form'!AH759,SEARCH(\"@\",'Enrollment Form'!AH759))),\"N\",\"Y\"))","v":""},{"$f":"IF(OR($B752=\"N\",'Enrollment Form'!$G759=\"\"),\"\",IF('Enrollment Form'!$B759<>\"Subscriber\",\"-\",IF(COUNTIF('Enrollment Form'!$AS759:$AT759,\"Yes\")=2,\"N\",\"Y\")))","v":""},{"$f":"IF(OR('Enrollment Form'!$CC759=\"\",'Enrollment Form'!$CC759=\"No\"),\"-\",IF(AND('Enrollment Form'!$CC759=\"Yes\",'Enrollment Form'!$CD759=\"\"),\"N\",\"Y\"))","v":"-"},{"$f":"IF(OR('Enrollment Form'!$CE759=\"\",'Enrollment Form'!$CE759=\"No\"),\"-\",IF(AND('Enrollment Form'!$CE759=\"Yes\",'Enrollment Form'!$CF759=\"\"),\"N\",\"Y\"))","v":"-"},{"$f":"IF(OR('Enrollment Form'!$CG759=\"\",'Enrollment Form'!$CG759=\"No\"),\"-\",IF(AND('Enrollment Form'!$CG759=\"Yes\",'Enrollment Form'!$CH759=\"\"),\"N\",\"Y\"))","v":"-"},{"$f":"IF(OR('Enrollment Form'!$CG759=\"\",'Enrollment Form'!$CG759=\"No\"),\"-\",IF(AND('Enrollment Form'!$CG759=\"Yes\",'Enrollment Form'!$CI759=\"\"),\"N\",\"Y\"))","v":"-"},{"$f":"IF('Enrollment Form'!B759<>\"Subscriber\",\"-\",IF(AND('Enrollment Form'!B759=\"Subscriber\",'Enrollment Form'!C759=\"Enroll\",'Enrollment Form'!AA759=\"\"),\"N\",\"Y\"))","v":"-"},{"$f":"IF(OR('Enrollment Form'!B759=\"Subscriber\",'Enrollment Form'!B759=\"\"),\"-\",IF('Enrollment Form'!BI759=\"\",\"N\",\"Y\"))","v":"-"},{"$f":"IF('Enrollment Form'!B759<>\"Subscriber\",\"-\",IF(AND('Enrollment Form'!B759=\"Subscriber\",'Enrollment Form'!G759=\"\"),\"N\",\"Y\"))","v":"-"},{"$f":"IF('Enrollment Form'!A759=\"\",\"\",IF('Enrollment Form'!B759=\"Subscriber\",\"-\",IF(AND('Enrollment Form'!B759<>\"Subscriber\",'Enrollment Form'!G759='Enrollment Form'!H759),\"N\",\"Y\")))","v":""},0]
[760,{"$f":"IF('Enrollment Form'!$A760<>\"\",\"Y\",\"N\")","v":"N"},{"$f":"IF(AND('Enrollment Form'!$B760=\"\",'Enrollment Form'!$C760<>\"\"),\"N\",IF($B753=\"N\",\"\",\"Y\"))","v":""},{"$f":"IF(OR($B753=\"N\",'Enrollment Form'!G760=\"\"),\"\",IF('Enrollment Form'!$B760<>\"Subscriber\",\"\",IF('Enrollment Form'!$G760='Enrollment Form'!$H760,\"Y\",\"N\")))","v":""},{"$f":"IF($B753=\"N\",\"\",IF(AND(COUNTIFS('Enrollment Form'!$H$11:$H$1000,'Enrollment Form'!$H760,'Enrollment Form'!$B$11:$B$1000,'Enrollment Form'!$B760)>1,'Enrollment Form'!$H760<>\"\"),\"N\",\"Y\"))","v":""},{"$f":"IF($B753=\"N\",\"\",IF(LEN('Enrollment Form'!$Y760)=0,\"\",IF(LEN('Enrollment Form'!$Y760)<>5,\"N\",\"Y\")))","v":""},{"$f":"IF($B753=\"N\",\"\",IF(LEN('Enrollment Form'!$AD760=0),\"\",IF(LEN('Enrollment Form'!$AD760)<>5,\"N\",\"Y\")))","v":""},{"$f":"IF($B753=\"N\",\"\",IF(LEN('Enrollment Form'!$BL760=0),\"\",IF(LEN('Enrollment Form'!$BL760)<>5,\"N\",\"Y\")))","v":""},{"$f":"IF($B753=\"N\",\"\",IF(LEN('Enrollment Form'!$AE760)=0,\"\",IF(LEN('Enrollment Form'!$AE760)<>10,\"N\",\"Y\")))","v":""},{"$f":"IF($B753=\"N\",\"\",IF(LEN('Enrollment Form'!$AF760)=0,\"\",IF(LEN('Enrollment Form'!$AF760)<>10,\"N\",\"Y\")))","v":""},{"$f":"IF('Enrollment Form'!$O760<>\"Graded\",\"-\",IF(AND('Enrollment Form'!$O760=\"Graded\",'Enrollment Form'!$AO760<>\"\"),\"Y\",\"N\"))","v":"-"},{"$f":"IF($B753=\"N\",\"\",IF(OR('Enrollment Form'!$B760<>\"Subscriber\",'Enrollment Form'!$C760=\"ROC\"),\"-\",IF(AND('Enrollment Form'!$B760=\"Subscriber\",'Enrollment Form'!$C760=\"Enroll\",'Enrollment Form'!$AJ760<>\"\"),\"Y\",\"N\")))","v":""},{"$f":"IF($B753=\"N\",\"\",IF(OR('Enrollment Form'!$B760<>\"Subscriber\",'Enrollment Form'!$C760=\"ROC\"),\"-\",IF(AND('Enrollment Form'!$B760=\"Subscriber\",'Enrollment Form'!$C760=\"Enroll\",'Enrollment Form'!$AK760<>\"\"),\"Y\",\"N\")))","v":""},{"$f":"IF($B753=\"N\",\"\",IF(OR('Enrollment Form'!$B760<>\"Subscriber\",'Enrollment Form'!$C760=\"ROC\"),\"-\",IF(AND('Enrollment Form'!$B760=\"Subscriber\",'Enrollment Form'!$C760=\"Enroll\",'Enrollment Form'!$AL760<>\"\"),\"Y\",\"N\")))","v":""},{"$f":"IF($B753=\"N\",\"\",IF(OR('Enrollment Form'!$B760<>\"Subscriber\",'Enrollment Form'!$C760=\"ROC\"),\"-\",IF(AND('Enrollment Form'!$B760=\"Subscriber\",'Enrollment Form'!$C760=\"Enroll\",'Enrollment Form'!$AM760<>\"\"),\"Y\",\"N\")))","v":""},{"$f":"IF($B753=\"N\",\"\",IF(OR('Enrollment Form'!$B760<>\"Subscriber\",'Enrollment Form'!$C760=\"ROC\"),\"-\",IF(AND('Enrollment Form'!$B760=\"Subscriber\",'Enrollment Form'!$C760=\"Enroll\",'Enrollment Form'!$AN760<>\"\"),\"Y\",\"N\")))","v":""},{"$f":"IF($B753=\"N\",\"\",IF(OR('Enrollment Form'!$B760<>\"Subscriber\",'Enrollment Form'!$C760=\"ROC\"),\"-\",IF(AND('Enrollment Form'!$B760=\"Subscriber\",'Enrollment Form'!$C760=\"Enroll\",'Enrollment Form'!$AP760<>\"\"),\"Y\",\"N\")))","v":""},{"$f":"IF($B753=\"N\",\"\",IF($Q753=\"-\",\"-\",IF(AND($Q753=\"Y\",'Enrollment Form'!$AP760=\"No\"),\"-\",IF(AND($Q753=\"Y\",'Enrollment Form'!$AP760=\"Yes\",'Enrollment Form'!$AQ760<>\"\"),\"Y\",\"N\"))))","v":""},{"$f":"IF($B753=\"N\",\"\",IF(OR('Enrollment Form'!$B760<>\"Subscriber\",'Enrollment Form'!$C760=\"ROC\"),\"-\",IF(AND('Enrollment Form'!$B760=\"Subscriber\",'Enrollment Form'!$C760=\"Enroll\",'Enrollment Form'!$CO760<>\"\"),\"Y\",\"N\")))","v":""},{"$f":"IF($B753=\"N\",\"\",IF($S753=\"-\",\"-\",IF(AND($S753=\"Y\",'Enrollment Form'!$CO760=\"No\"),\"-\",IF(AND($S753=\"Y\",'Enrollment Form'!$CO760=\"Yes\",'Enrollment Form'!$CP760<>\"\"),\"Y\",\"N\"))))","v":""},{"$f":"IF(OR('Enrollment Form'!$AV760=\"Yes\",'Enrollment Form'!$AV760=\"\"),\"-\",IF(AND('Enrollment Form'!$AV760=\"No\",ISERROR(FIND(\"HMO\",VLOOKUP('Enrollment Form'!G760,'Enrollment Form'!H$11:J$1000,3,FALSE),1))=FALSE,COUNTA('Enrollment Form'!$AW760:$AZ760)=4),\"Y\",\"N\"))","v":"-"},{"$f":"IF($B753=\"N\",\"\",IF('Enrollment Form'!$B760=\"Subscriber\",\"-\",IF(COUNTA('Enrollment Form'!$BE760,'Enrollment Form'!$BG760)=2,\"Y\",\"N\")))","v":""},{"$f":"IF($B753=\"N\",\"\",IF(OR('Enrollment Form'!$AU760=\"\",'Enrollment Form'!$AU760=\"No\"),\"-\",IF(AND('Enrollment Form'!$AU760=\"Yes\",COUNTA('Enrollment Form'!$CK760)=1),\"Y\",\"N\")))","v":""},{"$f":"IF(OR('Enrollment Form'!$CK760=\"\",'Enrollment Form'!$CK760=\"No\"),\"-\",IF(COUNTA('Enrollment Form'!$CM760:$CN760)=2,\"Y\",\"N\"))","v":"-"},{"$f":"IF($B753=\"N\",\"\",IF(COUNTIF('Enrollment Form'!$CZ760:$DO760,\"Other\")=COUNTA('Enrollment Form'!$DF760,'Enrollment Form'!$DA760,'Enrollment Form'!$DK760,'Enrollment Form'!$DP760),\"Y\",\"N\"))","v":""},{"$f":"IF($B753=\"N\",\"\",IF(OR('Enrollment Form'!B760<>\"Subscriber\",'Enrollment Form'!C760=\"ROC\",COUNTIF('Enrollment Form'!AS760:AT760,\"Yes\")>=1),\"-\",IF(AND('Enrollment Form'!C760=\"Enroll\",COUNTIF('Enrollment Form'!AS760:AT760,\"No\")=2,'Enrollment Form'!AU760=\"\"),\"N\",\"Y\")))","v":""},{"$f":"IF(OR(B753=\"N\",'Enrollment Form'!B760<>\"Subscriber\",'Enrollment Form'!C760=\"ROC\",'Enrollment Form'!O760<>\"Multiple of Salary\"),\"-\",IF(COUNTA('Enrollment Form'!T760:U760)<2,\"N\",\"Y\"))","v":"-"},{"$f":"IF(B753=\"N\",\"\",IF(OR('Enrollment Form'!C760=\"ROC\",'Enrollment Form'!B760<>\"Subscriber\",'Enrollment Form'!O760=\"Waive\",'Enrollment Form'!O760=\"\"),\"-\",IF('Enrollment Form'!P760=\"\",\"N\",\"Y\")))","v":""},{"$f":"IF($B753=\"N\",\"\",IF(AND('Enrollment Form'!$C760=\"ROC\",'Enrollment Form'!$DS760<>\"\"),\"Y\",IF(AND('Enrollment Form'!$C760=\"ROC\",'Enrollment Form'!$DS760=\"\"),\"N\",IF(AND('Enrollment Form'!$C760=\"Enroll\",'Enrollment Form'!$B760=\"Subscriber\",'Enrollment Form'!$CQ760=\"No\",'Enrollment Form'!$DS760=\"\"),\"N\",IF(AND('Enrollment Form'!$C760=\"Enroll\",'Enrollment Form'!$B760=\"Subscriber\",'Enrollment Form'!$CQ760=\"Yes\"),\"-\",\"Y\")))))","v":""},{"$f":"IF($B753=\"N\",\"\",IF(AND('Enrollment Form'!$C760=\"ROC\",'Enrollment Form'!$DT760<>\"\"),\"Y\",IF(AND('Enrollment Form'!$C760=\"ROC\",'Enrollment Form'!$DT760=\"\"),\"N\",IF(AND('Enrollment Form'!$C760=\"Enroll\",'Enrollment Form'!$B760=\"Subscriber\",'Enrollment Form'!$CQ760=\"No\",'Enrollment Form'!$DT760=\"\"),\"N\",IF(AND('Enrollment Form'!$C760=\"Enroll\",'Enrollment Form'!$B760=\"Subscriber\",'Enrollment Form'!$CQ760=\"Yes\"),\"-\",\"Y\")))))","v":""},{"$f":"IF('Enrollment Form'!AH760=\"\",\"\",IF(ISERROR(SEARCH(\".\",'Enrollment Form'!AH760,SEARCH(\"@\",'Enrollment Form'!AH760))),\"N\",\"Y\"))","v":""},{"$f":"IF(OR($B753=\"N\",'Enrollment Form'!$G760=\"\"),\"\",IF('Enrollment Form'!$B760<>\"Subscriber\",\"-\",IF(COUNTIF('Enrollment Form'!$AS760:$AT760,\"Yes\")=2,\"N\",\"Y\")))","v":""},{"$f":"IF(OR('Enrollment Form'!$CC760=\"\",'Enrollment Form'!$CC760=\"No\"),\"-\",IF(AND('Enrollment Form'!$CC760=\"Yes\",'Enrollment Form'!$CD760=\"\"),\"N\",\"Y\"))","v":"-"},{"$f":"IF(OR('Enrollment Form'!$CE760=\"\",'Enrollment Form'!$CE760=\"No\"),\"-\",IF(AND('Enrollment Form'!$CE760=\"Yes\",'Enrollment Form'!$CF760=\"\"),\"N\",\"Y\"))","v":"-"},{"$f":"IF(OR('Enrollment Form'!$CG760=\"\",'Enrollment Form'!$CG760=\"No\"),\"-\",IF(AND('Enrollment Form'!$CG760=\"Yes\",'Enrollment Form'!$CH760=\"\"),\"N\",\"Y\"))","v":"-"},{"$f":"IF(OR('Enrollment Form'!$CG760=\"\",'Enrollment Form'!$CG760=\"No\"),\"-\",IF(AND('Enrollment Form'!$CG760=\"Yes\",'Enrollment Form'!$CI760=\"\"),\"N\",\"Y\"))","v":"-"},{"$f":"IF('Enrollment Form'!B760<>\"Subscriber\",\"-\",IF(AND('Enrollment Form'!B760=\"Subscriber\",'Enrollment Form'!C760=\"Enroll\",'Enrollment Form'!AA760=\"\"),\"N\",\"Y\"))","v":"-"},{"$f":"IF(OR('Enrollment Form'!B760=\"Subscriber\",'Enrollment Form'!B760=\"\"),\"-\",IF('Enrollment Form'!BI760=\"\",\"N\",\"Y\"))","v":"-"},{"$f":"IF('Enrollment Form'!B760<>\"Subscriber\",\"-\",IF(AND('Enrollment Form'!B760=\"Subscriber\",'Enrollment Form'!G760=\"\"),\"N\",\"Y\"))","v":"-"},{"$f":"IF('Enrollment Form'!A760=\"\",\"\",IF('Enrollment Form'!B760=\"Subscriber\",\"-\",IF(AND('Enrollment Form'!B760<>\"Subscriber\",'Enrollment Form'!G760='Enrollment Form'!H760),\"N\",\"Y\")))","v":""},0]
[761,{"$f":"IF('Enrollment Form'!$A761<>\"\",\"Y\",\"N\")","v":"N"},{"$f":"IF(AND('Enrollment Form'!$B761=\"\",'Enrollment Form'!$C761<>\"\"),\"N\",IF($B754=\"N\",\"\",\"Y\"))","v":""},{"$f":"IF(OR($B754=\"N\",'Enrollment Form'!G761=\"\"),\"\",IF('Enrollment Form'!$B761<>\"Subscriber\",\"\",IF('Enrollment Form'!$G761='Enrollment Form'!$H761,\"Y\",\"N\")))","v":""},{"$f":"IF($B754=\"N\",\"\",IF(AND(COUNTIFS('Enrollment Form'!$H$11:$H$1000,'Enrollment Form'!$H761,'Enrollment Form'!$B$11:$B$1000,'Enrollment Form'!$B761)>1,'Enrollment Form'!$H761<>\"\"),\"N\",\"Y\"))","v":""},{"$f":"IF($B754=\"N\",\"\",IF(LEN('Enrollment Form'!$Y761)=0,\"\",IF(LEN('Enrollment Form'!$Y761)<>5,\"N\",\"Y\")))","v":""},{"$f":"IF($B754=\"N\",\"\",IF(LEN('Enrollment Form'!$AD761=0),\"\",IF(LEN('Enrollment Form'!$AD761)<>5,\"N\",\"Y\")))","v":""},{"$f":"IF($B754=\"N\",\"\",IF(LEN('Enrollment Form'!$BL761=0),\"\",IF(LEN('Enrollment Form'!$BL761)<>5,\"N\",\"Y\")))","v":""},{"$f":"IF($B754=\"N\",\"\",IF(LEN('Enrollment Form'!$AE761)=0,\"\",IF(LEN('Enrollment Form'!$AE761)<>10,\"N\",\"Y\")))","v":""},{"$f":"IF($B754=\"N\",\"\",IF(LEN('Enrollment Form'!$AF761)=0,\"\",IF(LEN('Enrollment Form'!$AF761)<>10,\"N\",\"Y\")))","v":""},{"$f":"IF('Enrollment Form'!$O761<>\"Graded\",\"-\",IF(AND('Enrollment Form'!$O761=\"Graded\",'Enrollment Form'!$AO761<>\"\"),\"Y\",\"N\"))","v":"-"},{"$f":"IF($B754=\"N\",\"\",IF(OR('Enrollment Form'!$B761<>\"Subscriber\",'Enrollment Form'!$C761=\"ROC\"),\"-\",IF(AND('Enrollment Form'!$B761=\"Subscriber\",'Enrollment Form'!$C761=\"Enroll\",'Enrollment Form'!$AJ761<>\"\"),\"Y\",\"N\")))","v":""},{"$f":"IF($B754=\"N\",\"\",IF(OR('Enrollment Form'!$B761<>\"Subscriber\",'Enrollment Form'!$C761=\"ROC\"),\"-\",IF(AND('Enrollment Form'!$B761=\"Subscriber\",'Enrollment Form'!$C761=\"Enroll\",'Enrollment Form'!$AK761<>\"\"),\"Y\",\"N\")))","v":""},{"$f":"IF($B754=\"N\",\"\",IF(OR('Enrollment Form'!$B761<>\"Subscriber\",'Enrollment Form'!$C761=\"ROC\"),\"-\",IF(AND('Enrollment Form'!$B761=\"Subscriber\",'Enrollment Form'!$C761=\"Enroll\",'Enrollment Form'!$AL761<>\"\"),\"Y\",\"N\")))","v":""},{"$f":"IF($B754=\"N\",\"\",IF(OR('Enrollment Form'!$B761<>\"Subscriber\",'Enrollment Form'!$C761=\"ROC\"),\"-\",IF(AND('Enrollment Form'!$B761=\"Subscriber\",'Enrollment Form'!$C761=\"Enroll\",'Enrollment Form'!$AM761<>\"\"),\"Y\",\"N\")))","v":""},{"$f":"IF($B754=\"N\",\"\",IF(OR('Enrollment Form'!$B761<>\"Subscriber\",'Enrollment Form'!$C761=\"ROC\"),\"-\",IF(AND('Enrollment Form'!$B761=\"Subscriber\",'Enrollment Form'!$C761=\"Enroll\",'Enrollment Form'!$AN761<>\"\"),\"Y\",\"N\")))","v":""},{"$f":"IF($B754=\"N\",\"\",IF(OR('Enrollment Form'!$B761<>\"Subscriber\",'Enrollment Form'!$C761=\"ROC\"),\"-\",IF(AND('Enrollment Form'!$B761=\"Subscriber\",'Enrollment Form'!$C761=\"Enroll\",'Enrollment Form'!$AP761<>\"\"),\"Y\",\"N\")))","v":""},{"$f":"IF($B754=\"N\",\"\",IF($Q754=\"-\",\"-\",IF(AND($Q754=\"Y\",'Enrollment Form'!$AP761=\"No\"),\"-\",IF(AND($Q754=\"Y\",'Enrollment Form'!$AP761=\"Yes\",'Enrollment Form'!$AQ761<>\"\"),\"Y\",\"N\"))))","v":""},{"$f":"IF($B754=\"N\",\"\",IF(OR('Enrollment Form'!$B761<>\"Subscriber\",'Enrollment Form'!$C761=\"ROC\"),\"-\",IF(AND('Enrollment Form'!$B761=\"Subscriber\",'Enrollment Form'!$C761=\"Enroll\",'Enrollment Form'!$CO761<>\"\"),\"Y\",\"N\")))","v":""},{"$f":"IF($B754=\"N\",\"\",IF($S754=\"-\",\"-\",IF(AND($S754=\"Y\",'Enrollment Form'!$CO761=\"No\"),\"-\",IF(AND($S754=\"Y\",'Enrollment Form'!$CO761=\"Yes\",'Enrollment Form'!$CP761<>\"\"),\"Y\",\"N\"))))","v":""},{"$f":"IF(OR('Enrollment Form'!$AV761=\"Yes\",'Enrollment Form'!$AV761=\"\"),\"-\",IF(AND('Enrollment Form'!$AV761=\"No\",ISERROR(FIND(\"HMO\",VLOOKUP('Enrollment Form'!G761,'Enrollment Form'!H$11:J$1000,3,FALSE),1))=FALSE,COUNTA('Enrollment Form'!$AW761:$AZ761)=4),\"Y\",\"N\"))","v":"-"},{"$f":"IF($B754=\"N\",\"\",IF('Enrollment Form'!$B761=\"Subscriber\",\"-\",IF(COUNTA('Enrollment Form'!$BE761,'Enrollment Form'!$BG761)=2,\"Y\",\"N\")))","v":""},{"$f":"IF($B754=\"N\",\"\",IF(OR('Enrollment Form'!$AU761=\"\",'Enrollment Form'!$AU761=\"No\"),\"-\",IF(AND('Enrollment Form'!$AU761=\"Yes\",COUNTA('Enrollment Form'!$CK761)=1),\"Y\",\"N\")))","v":""},{"$f":"IF(OR('Enrollment Form'!$CK761=\"\",'Enrollment Form'!$CK761=\"No\"),\"-\",IF(COUNTA('Enrollment Form'!$CM761:$CN761)=2,\"Y\",\"N\"))","v":"-"},{"$f":"IF($B754=\"N\",\"\",IF(COUNTIF('Enrollment Form'!$CZ761:$DO761,\"Other\")=COUNTA('Enrollment Form'!$DF761,'Enrollment Form'!$DA761,'Enrollment Form'!$DK761,'Enrollment Form'!$DP761),\"Y\",\"N\"))","v":""},{"$f":"IF($B754=\"N\",\"\",IF(OR('Enrollment Form'!B761<>\"Subscriber\",'Enrollment Form'!C761=\"ROC\",COUNTIF('Enrollment Form'!AS761:AT761,\"Yes\")>=1),\"-\",IF(AND('Enrollment Form'!C761=\"Enroll\",COUNTIF('Enrollment Form'!AS761:AT761,\"No\")=2,'Enrollment Form'!AU761=\"\"),\"N\",\"Y\")))","v":""},{"$f":"IF(OR(B754=\"N\",'Enrollment Form'!B761<>\"Subscriber\",'Enrollment Form'!C761=\"ROC\",'Enrollment Form'!O761<>\"Multiple of Salary\"),\"-\",IF(COUNTA('Enrollment Form'!T761:U761)<2,\"N\",\"Y\"))","v":"-"},{"$f":"IF(B754=\"N\",\"\",IF(OR('Enrollment Form'!C761=\"ROC\",'Enrollment Form'!B761<>\"Subscriber\",'Enrollment Form'!O761=\"Waive\",'Enrollment Form'!O761=\"\"),\"-\",IF('Enrollment Form'!P761=\"\",\"N\",\"Y\")))","v":""},{"$f":"IF($B754=\"N\",\"\",IF(AND('Enrollment Form'!$C761=\"ROC\",'Enrollment Form'!$DS761<>\"\"),\"Y\",IF(AND('Enrollment Form'!$C761=\"ROC\",'Enrollment Form'!$DS761=\"\"),\"N\",IF(AND('Enrollment Form'!$C761=\"Enroll\",'Enrollment Form'!$B761=\"Subscriber\",'Enrollment Form'!$CQ761=\"No\",'Enrollment Form'!$DS761=\"\"),\"N\",IF(AND('Enrollment Form'!$C761=\"Enroll\",'Enrollment Form'!$B761=\"Subscriber\",'Enrollment Form'!$CQ761=\"Yes\"),\"-\",\"Y\")))))","v":""},{"$f":"IF($B754=\"N\",\"\",IF(AND('Enrollment Form'!$C761=\"ROC\",'Enrollment Form'!$DT761<>\"\"),\"Y\",IF(AND('Enrollment Form'!$C761=\"ROC\",'Enrollment Form'!$DT761=\"\"),\"N\",IF(AND('Enrollment Form'!$C761=\"Enroll\",'Enrollment Form'!$B761=\"Subscriber\",'Enrollment Form'!$CQ761=\"No\",'Enrollment Form'!$DT761=\"\"),\"N\",IF(AND('Enrollment Form'!$C761=\"Enroll\",'Enrollment Form'!$B761=\"Subscriber\",'Enrollment Form'!$CQ761=\"Yes\"),\"-\",\"Y\")))))","v":""},{"$f":"IF('Enrollment Form'!AH761=\"\",\"\",IF(ISERROR(SEARCH(\".\",'Enrollment Form'!AH761,SEARCH(\"@\",'Enrollment Form'!AH761))),\"N\",\"Y\"))","v":""},{"$f":"IF(OR($B754=\"N\",'Enrollment Form'!$G761=\"\"),\"\",IF('Enrollment Form'!$B761<>\"Subscriber\",\"-\",IF(COUNTIF('Enrollment Form'!$AS761:$AT761,\"Yes\")=2,\"N\",\"Y\")))","v":""},{"$f":"IF(OR('Enrollment Form'!$CC761=\"\",'Enrollment Form'!$CC761=\"No\"),\"-\",IF(AND('Enrollment Form'!$CC761=\"Yes\",'Enrollment Form'!$CD761=\"\"),\"N\",\"Y\"))","v":"-"},{"$f":"IF(OR('Enrollment Form'!$CE761=\"\",'Enrollment Form'!$CE761=\"No\"),\"-\",IF(AND('Enrollment Form'!$CE761=\"Yes\",'Enrollment Form'!$CF761=\"\"),\"N\",\"Y\"))","v":"-"},{"$f":"IF(OR('Enrollment Form'!$CG761=\"\",'Enrollment Form'!$CG761=\"No\"),\"-\",IF(AND('Enrollment Form'!$CG761=\"Yes\",'Enrollment Form'!$CH761=\"\"),\"N\",\"Y\"))","v":"-"},{"$f":"IF(OR('Enrollment Form'!$CG761=\"\",'Enrollment Form'!$CG761=\"No\"),\"-\",IF(AND('Enrollment Form'!$CG761=\"Yes\",'Enrollment Form'!$CI761=\"\"),\"N\",\"Y\"))","v":"-"},{"$f":"IF('Enrollment Form'!B761<>\"Subscriber\",\"-\",IF(AND('Enrollment Form'!B761=\"Subscriber\",'Enrollment Form'!C761=\"Enroll\",'Enrollment Form'!AA761=\"\"),\"N\",\"Y\"))","v":"-"},{"$f":"IF(OR('Enrollment Form'!B761=\"Subscriber\",'Enrollment Form'!B761=\"\"),\"-\",IF('Enrollment Form'!BI761=\"\",\"N\",\"Y\"))","v":"-"},{"$f":"IF('Enrollment Form'!B761<>\"Subscriber\",\"-\",IF(AND('Enrollment Form'!B761=\"Subscriber\",'Enrollment Form'!G761=\"\"),\"N\",\"Y\"))","v":"-"},{"$f":"IF('Enrollment Form'!A761=\"\",\"\",IF('Enrollment Form'!B761=\"Subscriber\",\"-\",IF(AND('Enrollment Form'!B761<>\"Subscriber\",'Enrollment Form'!G761='Enrollment Form'!H761),\"N\",\"Y\")))","v":""},0]
[762,{"$f":"IF('Enrollment Form'!$A762<>\"\",\"Y\",\"N\")","v":"N"},{"$f":"IF(AND('Enrollment Form'!$B762=\"\",'Enrollment Form'!$C762<>\"\"),\"N\",IF($B755=\"N\",\"\",\"Y\"))","v":""},{"$f":"IF(OR($B755=\"N\",'Enrollment Form'!G762=\"\"),\"\",IF('Enrollment Form'!$B762<>\"Subscriber\",\"\",IF('Enrollment Form'!$G762='Enrollment Form'!$H762,\"Y\",\"N\")))","v":""},{"$f":"IF($B755=\"N\",\"\",IF(AND(COUNTIFS('Enrollment Form'!$H$11:$H$1000,'Enrollment Form'!$H762,'Enrollment Form'!$B$11:$B$1000,'Enrollment Form'!$B762)>1,'Enrollment Form'!$H762<>\"\"),\"N\",\"Y\"))","v":""},{"$f":"IF($B755=\"N\",\"\",IF(LEN('Enrollment Form'!$Y762)=0,\"\",IF(LEN('Enrollment Form'!$Y762)<>5,\"N\",\"Y\")))","v":""},{"$f":"IF($B755=\"N\",\"\",IF(LEN('Enrollment Form'!$AD762=0),\"\",IF(LEN('Enrollment Form'!$AD762)<>5,\"N\",\"Y\")))","v":""},{"$f":"IF($B755=\"N\",\"\",IF(LEN('Enrollment Form'!$BL762=0),\"\",IF(LEN('Enrollment Form'!$BL762)<>5,\"N\",\"Y\")))","v":""},{"$f":"IF($B755=\"N\",\"\",IF(LEN('Enrollment Form'!$AE762)=0,\"\",IF(LEN('Enrollment Form'!$AE762)<>10,\"N\",\"Y\")))","v":""},{"$f":"IF($B755=\"N\",\"\",IF(LEN('Enrollment Form'!$AF762)=0,\"\",IF(LEN('Enrollment Form'!$AF762)<>10,\"N\",\"Y\")))","v":""},{"$f":"IF('Enrollment Form'!$O762<>\"Graded\",\"-\",IF(AND('Enrollment Form'!$O762=\"Graded\",'Enrollment Form'!$AO762<>\"\"),\"Y\",\"N\"))","v":"-"},{"$f":"IF($B755=\"N\",\"\",IF(OR('Enrollment Form'!$B762<>\"Subscriber\",'Enrollment Form'!$C762=\"ROC\"),\"-\",IF(AND('Enrollment Form'!$B762=\"Subscriber\",'Enrollment Form'!$C762=\"Enroll\",'Enrollment Form'!$AJ762<>\"\"),\"Y\",\"N\")))","v":""},{"$f":"IF($B755=\"N\",\"\",IF(OR('Enrollment Form'!$B762<>\"Subscriber\",'Enrollment Form'!$C762=\"ROC\"),\"-\",IF(AND('Enrollment Form'!$B762=\"Subscriber\",'Enrollment Form'!$C762=\"Enroll\",'Enrollment Form'!$AK762<>\"\"),\"Y\",\"N\")))","v":""},{"$f":"IF($B755=\"N\",\"\",IF(OR('Enrollment Form'!$B762<>\"Subscriber\",'Enrollment Form'!$C762=\"ROC\"),\"-\",IF(AND('Enrollment Form'!$B762=\"Subscriber\",'Enrollment Form'!$C762=\"Enroll\",'Enrollment Form'!$AL762<>\"\"),\"Y\",\"N\")))","v":""},{"$f":"IF($B755=\"N\",\"\",IF(OR('Enrollment Form'!$B762<>\"Subscriber\",'Enrollment Form'!$C762=\"ROC\"),\"-\",IF(AND('Enrollment Form'!$B762=\"Subscriber\",'Enrollment Form'!$C762=\"Enroll\",'Enrollment Form'!$AM762<>\"\"),\"Y\",\"N\")))","v":""},{"$f":"IF($B755=\"N\",\"\",IF(OR('Enrollment Form'!$B762<>\"Subscriber\",'Enrollment Form'!$C762=\"ROC\"),\"-\",IF(AND('Enrollment Form'!$B762=\"Subscriber\",'Enrollment Form'!$C762=\"Enroll\",'Enrollment Form'!$AN762<>\"\"),\"Y\",\"N\")))","v":""},{"$f":"IF($B755=\"N\",\"\",IF(OR('Enrollment Form'!$B762<>\"Subscriber\",'Enrollment Form'!$C762=\"ROC\"),\"-\",IF(AND('Enrollment Form'!$B762=\"Subscriber\",'Enrollment Form'!$C762=\"Enroll\",'Enrollment Form'!$AP762<>\"\"),\"Y\",\"N\")))","v":""},{"$f":"IF($B755=\"N\",\"\",IF($Q755=\"-\",\"-\",IF(AND($Q755=\"Y\",'Enrollment Form'!$AP762=\"No\"),\"-\",IF(AND($Q755=\"Y\",'Enrollment Form'!$AP762=\"Yes\",'Enrollment Form'!$AQ762<>\"\"),\"Y\",\"N\"))))","v":""},{"$f":"IF($B755=\"N\",\"\",IF(OR('Enrollment Form'!$B762<>\"Subscriber\",'Enrollment Form'!$C762=\"ROC\"),\"-\",IF(AND('Enrollment Form'!$B762=\"Subscriber\",'Enrollment Form'!$C762=\"Enroll\",'Enrollment Form'!$CO762<>\"\"),\"Y\",\"N\")))","v":""},{"$f":"IF($B755=\"N\",\"\",IF($S755=\"-\",\"-\",IF(AND($S755=\"Y\",'Enrollment Form'!$CO762=\"No\"),\"-\",IF(AND($S755=\"Y\",'Enrollment Form'!$CO762=\"Yes\",'Enrollment Form'!$CP762<>\"\"),\"Y\",\"N\"))))","v":""},{"$f":"IF(OR('Enrollment Form'!$AV762=\"Yes\",'Enrollment Form'!$AV762=\"\"),\"-\",IF(AND('Enrollment Form'!$AV762=\"No\",ISERROR(FIND(\"HMO\",VLOOKUP('Enrollment Form'!G762,'Enrollment Form'!H$11:J$1000,3,FALSE),1))=FALSE,COUNTA('Enrollment Form'!$AW762:$AZ762)=4),\"Y\",\"N\"))","v":"-"},{"$f":"IF($B755=\"N\",\"\",IF('Enrollment Form'!$B762=\"Subscriber\",\"-\",IF(COUNTA('Enrollment Form'!$BE762,'Enrollment Form'!$BG762)=2,\"Y\",\"N\")))","v":""},{"$f":"IF($B755=\"N\",\"\",IF(OR('Enrollment Form'!$AU762=\"\",'Enrollment Form'!$AU762=\"No\"),\"-\",IF(AND('Enrollment Form'!$AU762=\"Yes\",COUNTA('Enrollment Form'!$CK762)=1),\"Y\",\"N\")))","v":""},{"$f":"IF(OR('Enrollment Form'!$CK762=\"\",'Enrollment Form'!$CK762=\"No\"),\"-\",IF(COUNTA('Enrollment Form'!$CM762:$CN762)=2,\"Y\",\"N\"))","v":"-"},{"$f":"IF($B755=\"N\",\"\",IF(COUNTIF('Enrollment Form'!$CZ762:$DO762,\"Other\")=COUNTA('Enrollment Form'!$DF762,'Enrollment Form'!$DA762,'Enrollment Form'!$DK762,'Enrollment Form'!$DP762),\"Y\",\"N\"))","v":""},{"$f":"IF($B755=\"N\",\"\",IF(OR('Enrollment Form'!B762<>\"Subscriber\",'Enrollment Form'!C762=\"ROC\",COUNTIF('Enrollment Form'!AS762:AT762,\"Yes\")>=1),\"-\",IF(AND('Enrollment Form'!C762=\"Enroll\",COUNTIF('Enrollment Form'!AS762:AT762,\"No\")=2,'Enrollment Form'!AU762=\"\"),\"N\",\"Y\")))","v":""},{"$f":"IF(OR(B755=\"N\",'Enrollment Form'!B762<>\"Subscriber\",'Enrollment Form'!C762=\"ROC\",'Enrollment Form'!O762<>\"Multiple of Salary\"),\"-\",IF(COUNTA('Enrollment Form'!T762:U762)<2,\"N\",\"Y\"))","v":"-"},{"$f":"IF(B755=\"N\",\"\",IF(OR('Enrollment Form'!C762=\"ROC\",'Enrollment Form'!B762<>\"Subscriber\",'Enrollment Form'!O762=\"Waive\",'Enrollment Form'!O762=\"\"),\"-\",IF('Enrollment Form'!P762=\"\",\"N\",\"Y\")))","v":""},{"$f":"IF($B755=\"N\",\"\",IF(AND('Enrollment Form'!$C762=\"ROC\",'Enrollment Form'!$DS762<>\"\"),\"Y\",IF(AND('Enrollment Form'!$C762=\"ROC\",'Enrollment Form'!$DS762=\"\"),\"N\",IF(AND('Enrollment Form'!$C762=\"Enroll\",'Enrollment Form'!$B762=\"Subscriber\",'Enrollment Form'!$CQ762=\"No\",'Enrollment Form'!$DS762=\"\"),\"N\",IF(AND('Enrollment Form'!$C762=\"Enroll\",'Enrollment Form'!$B762=\"Subscriber\",'Enrollment Form'!$CQ762=\"Yes\"),\"-\",\"Y\")))))","v":""},{"$f":"IF($B755=\"N\",\"\",IF(AND('Enrollment Form'!$C762=\"ROC\",'Enrollment Form'!$DT762<>\"\"),\"Y\",IF(AND('Enrollment Form'!$C762=\"ROC\",'Enrollment Form'!$DT762=\"\"),\"N\",IF(AND('Enrollment Form'!$C762=\"Enroll\",'Enrollment Form'!$B762=\"Subscriber\",'Enrollment Form'!$CQ762=\"No\",'Enrollment Form'!$DT762=\"\"),\"N\",IF(AND('Enrollment Form'!$C762=\"Enroll\",'Enrollment Form'!$B762=\"Subscriber\",'Enrollment Form'!$CQ762=\"Yes\"),\"-\",\"Y\")))))","v":""},{"$f":"IF('Enrollment Form'!AH762=\"\",\"\",IF(ISERROR(SEARCH(\".\",'Enrollment Form'!AH762,SEARCH(\"@\",'Enrollment Form'!AH762))),\"N\",\"Y\"))","v":""},{"$f":"IF(OR($B755=\"N\",'Enrollment Form'!$G762=\"\"),\"\",IF('Enrollment Form'!$B762<>\"Subscriber\",\"-\",IF(COUNTIF('Enrollment Form'!$AS762:$AT762,\"Yes\")=2,\"N\",\"Y\")))","v":""},{"$f":"IF(OR('Enrollment Form'!$CC762=\"\",'Enrollment Form'!$CC762=\"No\"),\"-\",IF(AND('Enrollment Form'!$CC762=\"Yes\",'Enrollment Form'!$CD762=\"\"),\"N\",\"Y\"))","v":"-"},{"$f":"IF(OR('Enrollment Form'!$CE762=\"\",'Enrollment Form'!$CE762=\"No\"),\"-\",IF(AND('Enrollment Form'!$CE762=\"Yes\",'Enrollment Form'!$CF762=\"\"),\"N\",\"Y\"))","v":"-"},{"$f":"IF(OR('Enrollment Form'!$CG762=\"\",'Enrollment Form'!$CG762=\"No\"),\"-\",IF(AND('Enrollment Form'!$CG762=\"Yes\",'Enrollment Form'!$CH762=\"\"),\"N\",\"Y\"))","v":"-"},{"$f":"IF(OR('Enrollment Form'!$CG762=\"\",'Enrollment Form'!$CG762=\"No\"),\"-\",IF(AND('Enrollment Form'!$CG762=\"Yes\",'Enrollment Form'!$CI762=\"\"),\"N\",\"Y\"))","v":"-"},{"$f":"IF('Enrollment Form'!B762<>\"Subscriber\",\"-\",IF(AND('Enrollment Form'!B762=\"Subscriber\",'Enrollment Form'!C762=\"Enroll\",'Enrollment Form'!AA762=\"\"),\"N\",\"Y\"))","v":"-"},{"$f":"IF(OR('Enrollment Form'!B762=\"Subscriber\",'Enrollment Form'!B762=\"\"),\"-\",IF('Enrollment Form'!BI762=\"\",\"N\",\"Y\"))","v":"-"},{"$f":"IF('Enrollment Form'!B762<>\"Subscriber\",\"-\",IF(AND('Enrollment Form'!B762=\"Subscriber\",'Enrollment Form'!G762=\"\"),\"N\",\"Y\"))","v":"-"},{"$f":"IF('Enrollment Form'!A762=\"\",\"\",IF('Enrollment Form'!B762=\"Subscriber\",\"-\",IF(AND('Enrollment Form'!B762<>\"Subscriber\",'Enrollment Form'!G762='Enrollment Form'!H762),\"N\",\"Y\")))","v":""},0]
[763,{"$f":"IF('Enrollment Form'!$A763<>\"\",\"Y\",\"N\")","v":"N"},{"$f":"IF(AND('Enrollment Form'!$B763=\"\",'Enrollment Form'!$C763<>\"\"),\"N\",IF($B756=\"N\",\"\",\"Y\"))","v":""},{"$f":"IF(OR($B756=\"N\",'Enrollment Form'!G763=\"\"),\"\",IF('Enrollment Form'!$B763<>\"Subscriber\",\"\",IF('Enrollment Form'!$G763='Enrollment Form'!$H763,\"Y\",\"N\")))","v":""},{"$f":"IF($B756=\"N\",\"\",IF(AND(COUNTIFS('Enrollment Form'!$H$11:$H$1000,'Enrollment Form'!$H763,'Enrollment Form'!$B$11:$B$1000,'Enrollment Form'!$B763)>1,'Enrollment Form'!$H763<>\"\"),\"N\",\"Y\"))","v":""},{"$f":"IF($B756=\"N\",\"\",IF(LEN('Enrollment Form'!$Y763)=0,\"\",IF(LEN('Enrollment Form'!$Y763)<>5,\"N\",\"Y\")))","v":""},{"$f":"IF($B756=\"N\",\"\",IF(LEN('Enrollment Form'!$AD763=0),\"\",IF(LEN('Enrollment Form'!$AD763)<>5,\"N\",\"Y\")))","v":""},{"$f":"IF($B756=\"N\",\"\",IF(LEN('Enrollment Form'!$BL763=0),\"\",IF(LEN('Enrollment Form'!$BL763)<>5,\"N\",\"Y\")))","v":""},{"$f":"IF($B756=\"N\",\"\",IF(LEN('Enrollment Form'!$AE763)=0,\"\",IF(LEN('Enrollment Form'!$AE763)<>10,\"N\",\"Y\")))","v":""},{"$f":"IF($B756=\"N\",\"\",IF(LEN('Enrollment Form'!$AF763)=0,\"\",IF(LEN('Enrollment Form'!$AF763)<>10,\"N\",\"Y\")))","v":""},{"$f":"IF('Enrollment Form'!$O763<>\"Graded\",\"-\",IF(AND('Enrollment Form'!$O763=\"Graded\",'Enrollment Form'!$AO763<>\"\"),\"Y\",\"N\"))","v":"-"},{"$f":"IF($B756=\"N\",\"\",IF(OR('Enrollment Form'!$B763<>\"Subscriber\",'Enrollment Form'!$C763=\"ROC\"),\"-\",IF(AND('Enrollment Form'!$B763=\"Subscriber\",'Enrollment Form'!$C763=\"Enroll\",'Enrollment Form'!$AJ763<>\"\"),\"Y\",\"N\")))","v":""},{"$f":"IF($B756=\"N\",\"\",IF(OR('Enrollment Form'!$B763<>\"Subscriber\",'Enrollment Form'!$C763=\"ROC\"),\"-\",IF(AND('Enrollment Form'!$B763=\"Subscriber\",'Enrollment Form'!$C763=\"Enroll\",'Enrollment Form'!$AK763<>\"\"),\"Y\",\"N\")))","v":""},{"$f":"IF($B756=\"N\",\"\",IF(OR('Enrollment Form'!$B763<>\"Subscriber\",'Enrollment Form'!$C763=\"ROC\"),\"-\",IF(AND('Enrollment Form'!$B763=\"Subscriber\",'Enrollment Form'!$C763=\"Enroll\",'Enrollment Form'!$AL763<>\"\"),\"Y\",\"N\")))","v":""},{"$f":"IF($B756=\"N\",\"\",IF(OR('Enrollment Form'!$B763<>\"Subscriber\",'Enrollment Form'!$C763=\"ROC\"),\"-\",IF(AND('Enrollment Form'!$B763=\"Subscriber\",'Enrollment Form'!$C763=\"Enroll\",'Enrollment Form'!$AM763<>\"\"),\"Y\",\"N\")))","v":""},{"$f":"IF($B756=\"N\",\"\",IF(OR('Enrollment Form'!$B763<>\"Subscriber\",'Enrollment Form'!$C763=\"ROC\"),\"-\",IF(AND('Enrollment Form'!$B763=\"Subscriber\",'Enrollment Form'!$C763=\"Enroll\",'Enrollment Form'!$AN763<>\"\"),\"Y\",\"N\")))","v":""},{"$f":"IF($B756=\"N\",\"\",IF(OR('Enrollment Form'!$B763<>\"Subscriber\",'Enrollment Form'!$C763=\"ROC\"),\"-\",IF(AND('Enrollment Form'!$B763=\"Subscriber\",'Enrollment Form'!$C763=\"Enroll\",'Enrollment Form'!$AP763<>\"\"),\"Y\",\"N\")))","v":""},{"$f":"IF($B756=\"N\",\"\",IF($Q756=\"-\",\"-\",IF(AND($Q756=\"Y\",'Enrollment Form'!$AP763=\"No\"),\"-\",IF(AND($Q756=\"Y\",'Enrollment Form'!$AP763=\"Yes\",'Enrollment Form'!$AQ763<>\"\"),\"Y\",\"N\"))))","v":""},{"$f":"IF($B756=\"N\",\"\",IF(OR('Enrollment Form'!$B763<>\"Subscriber\",'Enrollment Form'!$C763=\"ROC\"),\"-\",IF(AND('Enrollment Form'!$B763=\"Subscriber\",'Enrollment Form'!$C763=\"Enroll\",'Enrollment Form'!$CO763<>\"\"),\"Y\",\"N\")))","v":""},{"$f":"IF($B756=\"N\",\"\",IF($S756=\"-\",\"-\",IF(AND($S756=\"Y\",'Enrollment Form'!$CO763=\"No\"),\"-\",IF(AND($S756=\"Y\",'Enrollment Form'!$CO763=\"Yes\",'Enrollment Form'!$CP763<>\"\"),\"Y\",\"N\"))))","v":""},{"$f":"IF(OR('Enrollment Form'!$AV763=\"Yes\",'Enrollment Form'!$AV763=\"\"),\"-\",IF(AND('Enrollment Form'!$AV763=\"No\",ISERROR(FIND(\"HMO\",VLOOKUP('Enrollment Form'!G763,'Enrollment Form'!H$11:J$1000,3,FALSE),1))=FALSE,COUNTA('Enrollment Form'!$AW763:$AZ763)=4),\"Y\",\"N\"))","v":"-"},{"$f":"IF($B756=\"N\",\"\",IF('Enrollment Form'!$B763=\"Subscriber\",\"-\",IF(COUNTA('Enrollment Form'!$BE763,'Enrollment Form'!$BG763)=2,\"Y\",\"N\")))","v":""},{"$f":"IF($B756=\"N\",\"\",IF(OR('Enrollment Form'!$AU763=\"\",'Enrollment Form'!$AU763=\"No\"),\"-\",IF(AND('Enrollment Form'!$AU763=\"Yes\",COUNTA('Enrollment Form'!$CK763)=1),\"Y\",\"N\")))","v":""},{"$f":"IF(OR('Enrollment Form'!$CK763=\"\",'Enrollment Form'!$CK763=\"No\"),\"-\",IF(COUNTA('Enrollment Form'!$CM763:$CN763)=2,\"Y\",\"N\"))","v":"-"},{"$f":"IF($B756=\"N\",\"\",IF(COUNTIF('Enrollment Form'!$CZ763:$DO763,\"Other\")=COUNTA('Enrollment Form'!$DF763,'Enrollment Form'!$DA763,'Enrollment Form'!$DK763,'Enrollment Form'!$DP763),\"Y\",\"N\"))","v":""},{"$f":"IF($B756=\"N\",\"\",IF(OR('Enrollment Form'!B763<>\"Subscriber\",'Enrollment Form'!C763=\"ROC\",COUNTIF('Enrollment Form'!AS763:AT763,\"Yes\")>=1),\"-\",IF(AND('Enrollment Form'!C763=\"Enroll\",COUNTIF('Enrollment Form'!AS763:AT763,\"No\")=2,'Enrollment Form'!AU763=\"\"),\"N\",\"Y\")))","v":""},{"$f":"IF(OR(B756=\"N\",'Enrollment Form'!B763<>\"Subscriber\",'Enrollment Form'!C763=\"ROC\",'Enrollment Form'!O763<>\"Multiple of Salary\"),\"-\",IF(COUNTA('Enrollment Form'!T763:U763)<2,\"N\",\"Y\"))","v":"-"},{"$f":"IF(B756=\"N\",\"\",IF(OR('Enrollment Form'!C763=\"ROC\",'Enrollment Form'!B763<>\"Subscriber\",'Enrollment Form'!O763=\"Waive\",'Enrollment Form'!O763=\"\"),\"-\",IF('Enrollment Form'!P763=\"\",\"N\",\"Y\")))","v":""},{"$f":"IF($B756=\"N\",\"\",IF(AND('Enrollment Form'!$C763=\"ROC\",'Enrollment Form'!$DS763<>\"\"),\"Y\",IF(AND('Enrollment Form'!$C763=\"ROC\",'Enrollment Form'!$DS763=\"\"),\"N\",IF(AND('Enrollment Form'!$C763=\"Enroll\",'Enrollment Form'!$B763=\"Subscriber\",'Enrollment Form'!$CQ763=\"No\",'Enrollment Form'!$DS763=\"\"),\"N\",IF(AND('Enrollment Form'!$C763=\"Enroll\",'Enrollment Form'!$B763=\"Subscriber\",'Enrollment Form'!$CQ763=\"Yes\"),\"-\",\"Y\")))))","v":""},{"$f":"IF($B756=\"N\",\"\",IF(AND('Enrollment Form'!$C763=\"ROC\",'Enrollment Form'!$DT763<>\"\"),\"Y\",IF(AND('Enrollment Form'!$C763=\"ROC\",'Enrollment Form'!$DT763=\"\"),\"N\",IF(AND('Enrollment Form'!$C763=\"Enroll\",'Enrollment Form'!$B763=\"Subscriber\",'Enrollment Form'!$CQ763=\"No\",'Enrollment Form'!$DT763=\"\"),\"N\",IF(AND('Enrollment Form'!$C763=\"Enroll\",'Enrollment Form'!$B763=\"Subscriber\",'Enrollment Form'!$CQ763=\"Yes\"),\"-\",\"Y\")))))","v":""},{"$f":"IF('Enrollment Form'!AH763=\"\",\"\",IF(ISERROR(SEARCH(\".\",'Enrollment Form'!AH763,SEARCH(\"@\",'Enrollment Form'!AH763))),\"N\",\"Y\"))","v":""},{"$f":"IF(OR($B756=\"N\",'Enrollment Form'!$G763=\"\"),\"\",IF('Enrollment Form'!$B763<>\"Subscriber\",\"-\",IF(COUNTIF('Enrollment Form'!$AS763:$AT763,\"Yes\")=2,\"N\",\"Y\")))","v":""},{"$f":"IF(OR('Enrollment Form'!$CC763=\"\",'Enrollment Form'!$CC763=\"No\"),\"-\",IF(AND('Enrollment Form'!$CC763=\"Yes\",'Enrollment Form'!$CD763=\"\"),\"N\",\"Y\"))","v":"-"},{"$f":"IF(OR('Enrollment Form'!$CE763=\"\",'Enrollment Form'!$CE763=\"No\"),\"-\",IF(AND('Enrollment Form'!$CE763=\"Yes\",'Enrollment Form'!$CF763=\"\"),\"N\",\"Y\"))","v":"-"},{"$f":"IF(OR('Enrollment Form'!$CG763=\"\",'Enrollment Form'!$CG763=\"No\"),\"-\",IF(AND('Enrollment Form'!$CG763=\"Yes\",'Enrollment Form'!$CH763=\"\"),\"N\",\"Y\"))","v":"-"},{"$f":"IF(OR('Enrollment Form'!$CG763=\"\",'Enrollment Form'!$CG763=\"No\"),\"-\",IF(AND('Enrollment Form'!$CG763=\"Yes\",'Enrollment Form'!$CI763=\"\"),\"N\",\"Y\"))","v":"-"},{"$f":"IF('Enrollment Form'!B763<>\"Subscriber\",\"-\",IF(AND('Enrollment Form'!B763=\"Subscriber\",'Enrollment Form'!C763=\"Enroll\",'Enrollment Form'!AA763=\"\"),\"N\",\"Y\"))","v":"-"},{"$f":"IF(OR('Enrollment Form'!B763=\"Subscriber\",'Enrollment Form'!B763=\"\"),\"-\",IF('Enrollment Form'!BI763=\"\",\"N\",\"Y\"))","v":"-"},{"$f":"IF('Enrollment Form'!B763<>\"Subscriber\",\"-\",IF(AND('Enrollment Form'!B763=\"Subscriber\",'Enrollment Form'!G763=\"\"),\"N\",\"Y\"))","v":"-"},{"$f":"IF('Enrollment Form'!A763=\"\",\"\",IF('Enrollment Form'!B763=\"Subscriber\",\"-\",IF(AND('Enrollment Form'!B763<>\"Subscriber\",'Enrollment Form'!G763='Enrollment Form'!H763),\"N\",\"Y\")))","v":""},0]
[764,{"$f":"IF('Enrollment Form'!$A764<>\"\",\"Y\",\"N\")","v":"N"},{"$f":"IF(AND('Enrollment Form'!$B764=\"\",'Enrollment Form'!$C764<>\"\"),\"N\",IF($B757=\"N\",\"\",\"Y\"))","v":""},{"$f":"IF(OR($B757=\"N\",'Enrollment Form'!G764=\"\"),\"\",IF('Enrollment Form'!$B764<>\"Subscriber\",\"\",IF('Enrollment Form'!$G764='Enrollment Form'!$H764,\"Y\",\"N\")))","v":""},{"$f":"IF($B757=\"N\",\"\",IF(AND(COUNTIFS('Enrollment Form'!$H$11:$H$1000,'Enrollment Form'!$H764,'Enrollment Form'!$B$11:$B$1000,'Enrollment Form'!$B764)>1,'Enrollment Form'!$H764<>\"\"),\"N\",\"Y\"))","v":""},{"$f":"IF($B757=\"N\",\"\",IF(LEN('Enrollment Form'!$Y764)=0,\"\",IF(LEN('Enrollment Form'!$Y764)<>5,\"N\",\"Y\")))","v":""},{"$f":"IF($B757=\"N\",\"\",IF(LEN('Enrollment Form'!$AD764=0),\"\",IF(LEN('Enrollment Form'!$AD764)<>5,\"N\",\"Y\")))","v":""},{"$f":"IF($B757=\"N\",\"\",IF(LEN('Enrollment Form'!$BL764=0),\"\",IF(LEN('Enrollment Form'!$BL764)<>5,\"N\",\"Y\")))","v":""},{"$f":"IF($B757=\"N\",\"\",IF(LEN('Enrollment Form'!$AE764)=0,\"\",IF(LEN('Enrollment Form'!$AE764)<>10,\"N\",\"Y\")))","v":""},{"$f":"IF($B757=\"N\",\"\",IF(LEN('Enrollment Form'!$AF764)=0,\"\",IF(LEN('Enrollment Form'!$AF764)<>10,\"N\",\"Y\")))","v":""},{"$f":"IF('Enrollment Form'!$O764<>\"Graded\",\"-\",IF(AND('Enrollment Form'!$O764=\"Graded\",'Enrollment Form'!$AO764<>\"\"),\"Y\",\"N\"))","v":"-"},{"$f":"IF($B757=\"N\",\"\",IF(OR('Enrollment Form'!$B764<>\"Subscriber\",'Enrollment Form'!$C764=\"ROC\"),\"-\",IF(AND('Enrollment Form'!$B764=\"Subscriber\",'Enrollment Form'!$C764=\"Enroll\",'Enrollment Form'!$AJ764<>\"\"),\"Y\",\"N\")))","v":""},{"$f":"IF($B757=\"N\",\"\",IF(OR('Enrollment Form'!$B764<>\"Subscriber\",'Enrollment Form'!$C764=\"ROC\"),\"-\",IF(AND('Enrollment Form'!$B764=\"Subscriber\",'Enrollment Form'!$C764=\"Enroll\",'Enrollment Form'!$AK764<>\"\"),\"Y\",\"N\")))","v":""},{"$f":"IF($B757=\"N\",\"\",IF(OR('Enrollment Form'!$B764<>\"Subscriber\",'Enrollment Form'!$C764=\"ROC\"),\"-\",IF(AND('Enrollment Form'!$B764=\"Subscriber\",'Enrollment Form'!$C764=\"Enroll\",'Enrollment Form'!$AL764<>\"\"),\"Y\",\"N\")))","v":""},{"$f":"IF($B757=\"N\",\"\",IF(OR('Enrollment Form'!$B764<>\"Subscriber\",'Enrollment Form'!$C764=\"ROC\"),\"-\",IF(AND('Enrollment Form'!$B764=\"Subscriber\",'Enrollment Form'!$C764=\"Enroll\",'Enrollment Form'!$AM764<>\"\"),\"Y\",\"N\")))","v":""},{"$f":"IF($B757=\"N\",\"\",IF(OR('Enrollment Form'!$B764<>\"Subscriber\",'Enrollment Form'!$C764=\"ROC\"),\"-\",IF(AND('Enrollment Form'!$B764=\"Subscriber\",'Enrollment Form'!$C764=\"Enroll\",'Enrollment Form'!$AN764<>\"\"),\"Y\",\"N\")))","v":""},{"$f":"IF($B757=\"N\",\"\",IF(OR('Enrollment Form'!$B764<>\"Subscriber\",'Enrollment Form'!$C764=\"ROC\"),\"-\",IF(AND('Enrollment Form'!$B764=\"Subscriber\",'Enrollment Form'!$C764=\"Enroll\",'Enrollment Form'!$AP764<>\"\"),\"Y\",\"N\")))","v":""},{"$f":"IF($B757=\"N\",\"\",IF($Q757=\"-\",\"-\",IF(AND($Q757=\"Y\",'Enrollment Form'!$AP764=\"No\"),\"-\",IF(AND($Q757=\"Y\",'Enrollment Form'!$AP764=\"Yes\",'Enrollment Form'!$AQ764<>\"\"),\"Y\",\"N\"))))","v":""},{"$f":"IF($B757=\"N\",\"\",IF(OR('Enrollment Form'!$B764<>\"Subscriber\",'Enrollment Form'!$C764=\"ROC\"),\"-\",IF(AND('Enrollment Form'!$B764=\"Subscriber\",'Enrollment Form'!$C764=\"Enroll\",'Enrollment Form'!$CO764<>\"\"),\"Y\",\"N\")))","v":""},{"$f":"IF($B757=\"N\",\"\",IF($S757=\"-\",\"-\",IF(AND($S757=\"Y\",'Enrollment Form'!$CO764=\"No\"),\"-\",IF(AND($S757=\"Y\",'Enrollment Form'!$CO764=\"Yes\",'Enrollment Form'!$CP764<>\"\"),\"Y\",\"N\"))))","v":""},{"$f":"IF(OR('Enrollment Form'!$AV764=\"Yes\",'Enrollment Form'!$AV764=\"\"),\"-\",IF(AND('Enrollment Form'!$AV764=\"No\",ISERROR(FIND(\"HMO\",VLOOKUP('Enrollment Form'!G764,'Enrollment Form'!H$11:J$1000,3,FALSE),1))=FALSE,COUNTA('Enrollment Form'!$AW764:$AZ764)=4),\"Y\",\"N\"))","v":"-"},{"$f":"IF($B757=\"N\",\"\",IF('Enrollment Form'!$B764=\"Subscriber\",\"-\",IF(COUNTA('Enrollment Form'!$BE764,'Enrollment Form'!$BG764)=2,\"Y\",\"N\")))","v":""},{"$f":"IF($B757=\"N\",\"\",IF(OR('Enrollment Form'!$AU764=\"\",'Enrollment Form'!$AU764=\"No\"),\"-\",IF(AND('Enrollment Form'!$AU764=\"Yes\",COUNTA('Enrollment Form'!$CK764)=1),\"Y\",\"N\")))","v":""},{"$f":"IF(OR('Enrollment Form'!$CK764=\"\",'Enrollment Form'!$CK764=\"No\"),\"-\",IF(COUNTA('Enrollment Form'!$CM764:$CN764)=2,\"Y\",\"N\"))","v":"-"},{"$f":"IF($B757=\"N\",\"\",IF(COUNTIF('Enrollment Form'!$CZ764:$DO764,\"Other\")=COUNTA('Enrollment Form'!$DF764,'Enrollment Form'!$DA764,'Enrollment Form'!$DK764,'Enrollment Form'!$DP764),\"Y\",\"N\"))","v":""},{"$f":"IF($B757=\"N\",\"\",IF(OR('Enrollment Form'!B764<>\"Subscriber\",'Enrollment Form'!C764=\"ROC\",COUNTIF('Enrollment Form'!AS764:AT764,\"Yes\")>=1),\"-\",IF(AND('Enrollment Form'!C764=\"Enroll\",COUNTIF('Enrollment Form'!AS764:AT764,\"No\")=2,'Enrollment Form'!AU764=\"\"),\"N\",\"Y\")))","v":""},{"$f":"IF(OR(B757=\"N\",'Enrollment Form'!B764<>\"Subscriber\",'Enrollment Form'!C764=\"ROC\",'Enrollment Form'!O764<>\"Multiple of Salary\"),\"-\",IF(COUNTA('Enrollment Form'!T764:U764)<2,\"N\",\"Y\"))","v":"-"},{"$f":"IF(B757=\"N\",\"\",IF(OR('Enrollment Form'!C764=\"ROC\",'Enrollment Form'!B764<>\"Subscriber\",'Enrollment Form'!O764=\"Waive\",'Enrollment Form'!O764=\"\"),\"-\",IF('Enrollment Form'!P764=\"\",\"N\",\"Y\")))","v":""},{"$f":"IF($B757=\"N\",\"\",IF(AND('Enrollment Form'!$C764=\"ROC\",'Enrollment Form'!$DS764<>\"\"),\"Y\",IF(AND('Enrollment Form'!$C764=\"ROC\",'Enrollment Form'!$DS764=\"\"),\"N\",IF(AND('Enrollment Form'!$C764=\"Enroll\",'Enrollment Form'!$B764=\"Subscriber\",'Enrollment Form'!$CQ764=\"No\",'Enrollment Form'!$DS764=\"\"),\"N\",IF(AND('Enrollment Form'!$C764=\"Enroll\",'Enrollment Form'!$B764=\"Subscriber\",'Enrollment Form'!$CQ764=\"Yes\"),\"-\",\"Y\")))))","v":""},{"$f":"IF($B757=\"N\",\"\",IF(AND('Enrollment Form'!$C764=\"ROC\",'Enrollment Form'!$DT764<>\"\"),\"Y\",IF(AND('Enrollment Form'!$C764=\"ROC\",'Enrollment Form'!$DT764=\"\"),\"N\",IF(AND('Enrollment Form'!$C764=\"Enroll\",'Enrollment Form'!$B764=\"Subscriber\",'Enrollment Form'!$CQ764=\"No\",'Enrollment Form'!$DT764=\"\"),\"N\",IF(AND('Enrollment Form'!$C764=\"Enroll\",'Enrollment Form'!$B764=\"Subscriber\",'Enrollment Form'!$CQ764=\"Yes\"),\"-\",\"Y\")))))","v":""},{"$f":"IF('Enrollment Form'!AH764=\"\",\"\",IF(ISERROR(SEARCH(\".\",'Enrollment Form'!AH764,SEARCH(\"@\",'Enrollment Form'!AH764))),\"N\",\"Y\"))","v":""},{"$f":"IF(OR($B757=\"N\",'Enrollment Form'!$G764=\"\"),\"\",IF('Enrollment Form'!$B764<>\"Subscriber\",\"-\",IF(COUNTIF('Enrollment Form'!$AS764:$AT764,\"Yes\")=2,\"N\",\"Y\")))","v":""},{"$f":"IF(OR('Enrollment Form'!$CC764=\"\",'Enrollment Form'!$CC764=\"No\"),\"-\",IF(AND('Enrollment Form'!$CC764=\"Yes\",'Enrollment Form'!$CD764=\"\"),\"N\",\"Y\"))","v":"-"},{"$f":"IF(OR('Enrollment Form'!$CE764=\"\",'Enrollment Form'!$CE764=\"No\"),\"-\",IF(AND('Enrollment Form'!$CE764=\"Yes\",'Enrollment Form'!$CF764=\"\"),\"N\",\"Y\"))","v":"-"},{"$f":"IF(OR('Enrollment Form'!$CG764=\"\",'Enrollment Form'!$CG764=\"No\"),\"-\",IF(AND('Enrollment Form'!$CG764=\"Yes\",'Enrollment Form'!$CH764=\"\"),\"N\",\"Y\"))","v":"-"},{"$f":"IF(OR('Enrollment Form'!$CG764=\"\",'Enrollment Form'!$CG764=\"No\"),\"-\",IF(AND('Enrollment Form'!$CG764=\"Yes\",'Enrollment Form'!$CI764=\"\"),\"N\",\"Y\"))","v":"-"},{"$f":"IF('Enrollment Form'!B764<>\"Subscriber\",\"-\",IF(AND('Enrollment Form'!B764=\"Subscriber\",'Enrollment Form'!C764=\"Enroll\",'Enrollment Form'!AA764=\"\"),\"N\",\"Y\"))","v":"-"},{"$f":"IF(OR('Enrollment Form'!B764=\"Subscriber\",'Enrollment Form'!B764=\"\"),\"-\",IF('Enrollment Form'!BI764=\"\",\"N\",\"Y\"))","v":"-"},{"$f":"IF('Enrollment Form'!B764<>\"Subscriber\",\"-\",IF(AND('Enrollment Form'!B764=\"Subscriber\",'Enrollment Form'!G764=\"\"),\"N\",\"Y\"))","v":"-"},{"$f":"IF('Enrollment Form'!A764=\"\",\"\",IF('Enrollment Form'!B764=\"Subscriber\",\"-\",IF(AND('Enrollment Form'!B764<>\"Subscriber\",'Enrollment Form'!G764='Enrollment Form'!H764),\"N\",\"Y\")))","v":""},0]
[765,{"$f":"IF('Enrollment Form'!$A765<>\"\",\"Y\",\"N\")","v":"N"},{"$f":"IF(AND('Enrollment Form'!$B765=\"\",'Enrollment Form'!$C765<>\"\"),\"N\",IF($B758=\"N\",\"\",\"Y\"))","v":""},{"$f":"IF(OR($B758=\"N\",'Enrollment Form'!G765=\"\"),\"\",IF('Enrollment Form'!$B765<>\"Subscriber\",\"\",IF('Enrollment Form'!$G765='Enrollment Form'!$H765,\"Y\",\"N\")))","v":""},{"$f":"IF($B758=\"N\",\"\",IF(AND(COUNTIFS('Enrollment Form'!$H$11:$H$1000,'Enrollment Form'!$H765,'Enrollment Form'!$B$11:$B$1000,'Enrollment Form'!$B765)>1,'Enrollment Form'!$H765<>\"\"),\"N\",\"Y\"))","v":""},{"$f":"IF($B758=\"N\",\"\",IF(LEN('Enrollment Form'!$Y765)=0,\"\",IF(LEN('Enrollment Form'!$Y765)<>5,\"N\",\"Y\")))","v":""},{"$f":"IF($B758=\"N\",\"\",IF(LEN('Enrollment Form'!$AD765=0),\"\",IF(LEN('Enrollment Form'!$AD765)<>5,\"N\",\"Y\")))","v":""},{"$f":"IF($B758=\"N\",\"\",IF(LEN('Enrollment Form'!$BL765=0),\"\",IF(LEN('Enrollment Form'!$BL765)<>5,\"N\",\"Y\")))","v":""},{"$f":"IF($B758=\"N\",\"\",IF(LEN('Enrollment Form'!$AE765)=0,\"\",IF(LEN('Enrollment Form'!$AE765)<>10,\"N\",\"Y\")))","v":""},{"$f":"IF($B758=\"N\",\"\",IF(LEN('Enrollment Form'!$AF765)=0,\"\",IF(LEN('Enrollment Form'!$AF765)<>10,\"N\",\"Y\")))","v":""},{"$f":"IF('Enrollment Form'!$O765<>\"Graded\",\"-\",IF(AND('Enrollment Form'!$O765=\"Graded\",'Enrollment Form'!$AO765<>\"\"),\"Y\",\"N\"))","v":"-"},{"$f":"IF($B758=\"N\",\"\",IF(OR('Enrollment Form'!$B765<>\"Subscriber\",'Enrollment Form'!$C765=\"ROC\"),\"-\",IF(AND('Enrollment Form'!$B765=\"Subscriber\",'Enrollment Form'!$C765=\"Enroll\",'Enrollment Form'!$AJ765<>\"\"),\"Y\",\"N\")))","v":""},{"$f":"IF($B758=\"N\",\"\",IF(OR('Enrollment Form'!$B765<>\"Subscriber\",'Enrollment Form'!$C765=\"ROC\"),\"-\",IF(AND('Enrollment Form'!$B765=\"Subscriber\",'Enrollment Form'!$C765=\"Enroll\",'Enrollment Form'!$AK765<>\"\"),\"Y\",\"N\")))","v":""},{"$f":"IF($B758=\"N\",\"\",IF(OR('Enrollment Form'!$B765<>\"Subscriber\",'Enrollment Form'!$C765=\"ROC\"),\"-\",IF(AND('Enrollment Form'!$B765=\"Subscriber\",'Enrollment Form'!$C765=\"Enroll\",'Enrollment Form'!$AL765<>\"\"),\"Y\",\"N\")))","v":""},{"$f":"IF($B758=\"N\",\"\",IF(OR('Enrollment Form'!$B765<>\"Subscriber\",'Enrollment Form'!$C765=\"ROC\"),\"-\",IF(AND('Enrollment Form'!$B765=\"Subscriber\",'Enrollment Form'!$C765=\"Enroll\",'Enrollment Form'!$AM765<>\"\"),\"Y\",\"N\")))","v":""},{"$f":"IF($B758=\"N\",\"\",IF(OR('Enrollment Form'!$B765<>\"Subscriber\",'Enrollment Form'!$C765=\"ROC\"),\"-\",IF(AND('Enrollment Form'!$B765=\"Subscriber\",'Enrollment Form'!$C765=\"Enroll\",'Enrollment Form'!$AN765<>\"\"),\"Y\",\"N\")))","v":""},{"$f":"IF($B758=\"N\",\"\",IF(OR('Enrollment Form'!$B765<>\"Subscriber\",'Enrollment Form'!$C765=\"ROC\"),\"-\",IF(AND('Enrollment Form'!$B765=\"Subscriber\",'Enrollment Form'!$C765=\"Enroll\",'Enrollment Form'!$AP765<>\"\"),\"Y\",\"N\")))","v":""},{"$f":"IF($B758=\"N\",\"\",IF($Q758=\"-\",\"-\",IF(AND($Q758=\"Y\",'Enrollment Form'!$AP765=\"No\"),\"-\",IF(AND($Q758=\"Y\",'Enrollment Form'!$AP765=\"Yes\",'Enrollment Form'!$AQ765<>\"\"),\"Y\",\"N\"))))","v":""},{"$f":"IF($B758=\"N\",\"\",IF(OR('Enrollment Form'!$B765<>\"Subscriber\",'Enrollment Form'!$C765=\"ROC\"),\"-\",IF(AND('Enrollment Form'!$B765=\"Subscriber\",'Enrollment Form'!$C765=\"Enroll\",'Enrollment Form'!$CO765<>\"\"),\"Y\",\"N\")))","v":""},{"$f":"IF($B758=\"N\",\"\",IF($S758=\"-\",\"-\",IF(AND($S758=\"Y\",'Enrollment Form'!$CO765=\"No\"),\"-\",IF(AND($S758=\"Y\",'Enrollment Form'!$CO765=\"Yes\",'Enrollment Form'!$CP765<>\"\"),\"Y\",\"N\"))))","v":""},{"$f":"IF(OR('Enrollment Form'!$AV765=\"Yes\",'Enrollment Form'!$AV765=\"\"),\"-\",IF(AND('Enrollment Form'!$AV765=\"No\",ISERROR(FIND(\"HMO\",VLOOKUP('Enrollment Form'!G765,'Enrollment Form'!H$11:J$1000,3,FALSE),1))=FALSE,COUNTA('Enrollment Form'!$AW765:$AZ765)=4),\"Y\",\"N\"))","v":"-"},{"$f":"IF($B758=\"N\",\"\",IF('Enrollment Form'!$B765=\"Subscriber\",\"-\",IF(COUNTA('Enrollment Form'!$BE765,'Enrollment Form'!$BG765)=2,\"Y\",\"N\")))","v":""},{"$f":"IF($B758=\"N\",\"\",IF(OR('Enrollment Form'!$AU765=\"\",'Enrollment Form'!$AU765=\"No\"),\"-\",IF(AND('Enrollment Form'!$AU765=\"Yes\",COUNTA('Enrollment Form'!$CK765)=1),\"Y\",\"N\")))","v":""},{"$f":"IF(OR('Enrollment Form'!$CK765=\"\",'Enrollment Form'!$CK765=\"No\"),\"-\",IF(COUNTA('Enrollment Form'!$CM765:$CN765)=2,\"Y\",\"N\"))","v":"-"},{"$f":"IF($B758=\"N\",\"\",IF(COUNTIF('Enrollment Form'!$CZ765:$DO765,\"Other\")=COUNTA('Enrollment Form'!$DF765,'Enrollment Form'!$DA765,'Enrollment Form'!$DK765,'Enrollment Form'!$DP765),\"Y\",\"N\"))","v":""},{"$f":"IF($B758=\"N\",\"\",IF(OR('Enrollment Form'!B765<>\"Subscriber\",'Enrollment Form'!C765=\"ROC\",COUNTIF('Enrollment Form'!AS765:AT765,\"Yes\")>=1),\"-\",IF(AND('Enrollment Form'!C765=\"Enroll\",COUNTIF('Enrollment Form'!AS765:AT765,\"No\")=2,'Enrollment Form'!AU765=\"\"),\"N\",\"Y\")))","v":""},{"$f":"IF(OR(B758=\"N\",'Enrollment Form'!B765<>\"Subscriber\",'Enrollment Form'!C765=\"ROC\",'Enrollment Form'!O765<>\"Multiple of Salary\"),\"-\",IF(COUNTA('Enrollment Form'!T765:U765)<2,\"N\",\"Y\"))","v":"-"},{"$f":"IF(B758=\"N\",\"\",IF(OR('Enrollment Form'!C765=\"ROC\",'Enrollment Form'!B765<>\"Subscriber\",'Enrollment Form'!O765=\"Waive\",'Enrollment Form'!O765=\"\"),\"-\",IF('Enrollment Form'!P765=\"\",\"N\",\"Y\")))","v":""},{"$f":"IF($B758=\"N\",\"\",IF(AND('Enrollment Form'!$C765=\"ROC\",'Enrollment Form'!$DS765<>\"\"),\"Y\",IF(AND('Enrollment Form'!$C765=\"ROC\",'Enrollment Form'!$DS765=\"\"),\"N\",IF(AND('Enrollment Form'!$C765=\"Enroll\",'Enrollment Form'!$B765=\"Subscriber\",'Enrollment Form'!$CQ765=\"No\",'Enrollment Form'!$DS765=\"\"),\"N\",IF(AND('Enrollment Form'!$C765=\"Enroll\",'Enrollment Form'!$B765=\"Subscriber\",'Enrollment Form'!$CQ765=\"Yes\"),\"-\",\"Y\")))))","v":""},{"$f":"IF($B758=\"N\",\"\",IF(AND('Enrollment Form'!$C765=\"ROC\",'Enrollment Form'!$DT765<>\"\"),\"Y\",IF(AND('Enrollment Form'!$C765=\"ROC\",'Enrollment Form'!$DT765=\"\"),\"N\",IF(AND('Enrollment Form'!$C765=\"Enroll\",'Enrollment Form'!$B765=\"Subscriber\",'Enrollment Form'!$CQ765=\"No\",'Enrollment Form'!$DT765=\"\"),\"N\",IF(AND('Enrollment Form'!$C765=\"Enroll\",'Enrollment Form'!$B765=\"Subscriber\",'Enrollment Form'!$CQ765=\"Yes\"),\"-\",\"Y\")))))","v":""},{"$f":"IF('Enrollment Form'!AH765=\"\",\"\",IF(ISERROR(SEARCH(\".\",'Enrollment Form'!AH765,SEARCH(\"@\",'Enrollment Form'!AH765))),\"N\",\"Y\"))","v":""},{"$f":"IF(OR($B758=\"N\",'Enrollment Form'!$G765=\"\"),\"\",IF('Enrollment Form'!$B765<>\"Subscriber\",\"-\",IF(COUNTIF('Enrollment Form'!$AS765:$AT765,\"Yes\")=2,\"N\",\"Y\")))","v":""},{"$f":"IF(OR('Enrollment Form'!$CC765=\"\",'Enrollment Form'!$CC765=\"No\"),\"-\",IF(AND('Enrollment Form'!$CC765=\"Yes\",'Enrollment Form'!$CD765=\"\"),\"N\",\"Y\"))","v":"-"},{"$f":"IF(OR('Enrollment Form'!$CE765=\"\",'Enrollment Form'!$CE765=\"No\"),\"-\",IF(AND('Enrollment Form'!$CE765=\"Yes\",'Enrollment Form'!$CF765=\"\"),\"N\",\"Y\"))","v":"-"},{"$f":"IF(OR('Enrollment Form'!$CG765=\"\",'Enrollment Form'!$CG765=\"No\"),\"-\",IF(AND('Enrollment Form'!$CG765=\"Yes\",'Enrollment Form'!$CH765=\"\"),\"N\",\"Y\"))","v":"-"},{"$f":"IF(OR('Enrollment Form'!$CG765=\"\",'Enrollment Form'!$CG765=\"No\"),\"-\",IF(AND('Enrollment Form'!$CG765=\"Yes\",'Enrollment Form'!$CI765=\"\"),\"N\",\"Y\"))","v":"-"},{"$f":"IF('Enrollment Form'!B765<>\"Subscriber\",\"-\",IF(AND('Enrollment Form'!B765=\"Subscriber\",'Enrollment Form'!C765=\"Enroll\",'Enrollment Form'!AA765=\"\"),\"N\",\"Y\"))","v":"-"},{"$f":"IF(OR('Enrollment Form'!B765=\"Subscriber\",'Enrollment Form'!B765=\"\"),\"-\",IF('Enrollment Form'!BI765=\"\",\"N\",\"Y\"))","v":"-"},{"$f":"IF('Enrollment Form'!B765<>\"Subscriber\",\"-\",IF(AND('Enrollment Form'!B765=\"Subscriber\",'Enrollment Form'!G765=\"\"),\"N\",\"Y\"))","v":"-"},{"$f":"IF('Enrollment Form'!A765=\"\",\"\",IF('Enrollment Form'!B765=\"Subscriber\",\"-\",IF(AND('Enrollment Form'!B765<>\"Subscriber\",'Enrollment Form'!G765='Enrollment Form'!H765),\"N\",\"Y\")))","v":""},0]
[766,{"$f":"IF('Enrollment Form'!$A766<>\"\",\"Y\",\"N\")","v":"N"},{"$f":"IF(AND('Enrollment Form'!$B766=\"\",'Enrollment Form'!$C766<>\"\"),\"N\",IF($B759=\"N\",\"\",\"Y\"))","v":""},{"$f":"IF(OR($B759=\"N\",'Enrollment Form'!G766=\"\"),\"\",IF('Enrollment Form'!$B766<>\"Subscriber\",\"\",IF('Enrollment Form'!$G766='Enrollment Form'!$H766,\"Y\",\"N\")))","v":""},{"$f":"IF($B759=\"N\",\"\",IF(AND(COUNTIFS('Enrollment Form'!$H$11:$H$1000,'Enrollment Form'!$H766,'Enrollment Form'!$B$11:$B$1000,'Enrollment Form'!$B766)>1,'Enrollment Form'!$H766<>\"\"),\"N\",\"Y\"))","v":""},{"$f":"IF($B759=\"N\",\"\",IF(LEN('Enrollment Form'!$Y766)=0,\"\",IF(LEN('Enrollment Form'!$Y766)<>5,\"N\",\"Y\")))","v":""},{"$f":"IF($B759=\"N\",\"\",IF(LEN('Enrollment Form'!$AD766=0),\"\",IF(LEN('Enrollment Form'!$AD766)<>5,\"N\",\"Y\")))","v":""},{"$f":"IF($B759=\"N\",\"\",IF(LEN('Enrollment Form'!$BL766=0),\"\",IF(LEN('Enrollment Form'!$BL766)<>5,\"N\",\"Y\")))","v":""},{"$f":"IF($B759=\"N\",\"\",IF(LEN('Enrollment Form'!$AE766)=0,\"\",IF(LEN('Enrollment Form'!$AE766)<>10,\"N\",\"Y\")))","v":""},{"$f":"IF($B759=\"N\",\"\",IF(LEN('Enrollment Form'!$AF766)=0,\"\",IF(LEN('Enrollment Form'!$AF766)<>10,\"N\",\"Y\")))","v":""},{"$f":"IF('Enrollment Form'!$O766<>\"Graded\",\"-\",IF(AND('Enrollment Form'!$O766=\"Graded\",'Enrollment Form'!$AO766<>\"\"),\"Y\",\"N\"))","v":"-"},{"$f":"IF($B759=\"N\",\"\",IF(OR('Enrollment Form'!$B766<>\"Subscriber\",'Enrollment Form'!$C766=\"ROC\"),\"-\",IF(AND('Enrollment Form'!$B766=\"Subscriber\",'Enrollment Form'!$C766=\"Enroll\",'Enrollment Form'!$AJ766<>\"\"),\"Y\",\"N\")))","v":""},{"$f":"IF($B759=\"N\",\"\",IF(OR('Enrollment Form'!$B766<>\"Subscriber\",'Enrollment Form'!$C766=\"ROC\"),\"-\",IF(AND('Enrollment Form'!$B766=\"Subscriber\",'Enrollment Form'!$C766=\"Enroll\",'Enrollment Form'!$AK766<>\"\"),\"Y\",\"N\")))","v":""},{"$f":"IF($B759=\"N\",\"\",IF(OR('Enrollment Form'!$B766<>\"Subscriber\",'Enrollment Form'!$C766=\"ROC\"),\"-\",IF(AND('Enrollment Form'!$B766=\"Subscriber\",'Enrollment Form'!$C766=\"Enroll\",'Enrollment Form'!$AL766<>\"\"),\"Y\",\"N\")))","v":""},{"$f":"IF($B759=\"N\",\"\",IF(OR('Enrollment Form'!$B766<>\"Subscriber\",'Enrollment Form'!$C766=\"ROC\"),\"-\",IF(AND('Enrollment Form'!$B766=\"Subscriber\",'Enrollment Form'!$C766=\"Enroll\",'Enrollment Form'!$AM766<>\"\"),\"Y\",\"N\")))","v":""},{"$f":"IF($B759=\"N\",\"\",IF(OR('Enrollment Form'!$B766<>\"Subscriber\",'Enrollment Form'!$C766=\"ROC\"),\"-\",IF(AND('Enrollment Form'!$B766=\"Subscriber\",'Enrollment Form'!$C766=\"Enroll\",'Enrollment Form'!$AN766<>\"\"),\"Y\",\"N\")))","v":""},{"$f":"IF($B759=\"N\",\"\",IF(OR('Enrollment Form'!$B766<>\"Subscriber\",'Enrollment Form'!$C766=\"ROC\"),\"-\",IF(AND('Enrollment Form'!$B766=\"Subscriber\",'Enrollment Form'!$C766=\"Enroll\",'Enrollment Form'!$AP766<>\"\"),\"Y\",\"N\")))","v":""},{"$f":"IF($B759=\"N\",\"\",IF($Q759=\"-\",\"-\",IF(AND($Q759=\"Y\",'Enrollment Form'!$AP766=\"No\"),\"-\",IF(AND($Q759=\"Y\",'Enrollment Form'!$AP766=\"Yes\",'Enrollment Form'!$AQ766<>\"\"),\"Y\",\"N\"))))","v":""},{"$f":"IF($B759=\"N\",\"\",IF(OR('Enrollment Form'!$B766<>\"Subscriber\",'Enrollment Form'!$C766=\"ROC\"),\"-\",IF(AND('Enrollment Form'!$B766=\"Subscriber\",'Enrollment Form'!$C766=\"Enroll\",'Enrollment Form'!$CO766<>\"\"),\"Y\",\"N\")))","v":""},{"$f":"IF($B759=\"N\",\"\",IF($S759=\"-\",\"-\",IF(AND($S759=\"Y\",'Enrollment Form'!$CO766=\"No\"),\"-\",IF(AND($S759=\"Y\",'Enrollment Form'!$CO766=\"Yes\",'Enrollment Form'!$CP766<>\"\"),\"Y\",\"N\"))))","v":""},{"$f":"IF(OR('Enrollment Form'!$AV766=\"Yes\",'Enrollment Form'!$AV766=\"\"),\"-\",IF(AND('Enrollment Form'!$AV766=\"No\",ISERROR(FIND(\"HMO\",VLOOKUP('Enrollment Form'!G766,'Enrollment Form'!H$11:J$1000,3,FALSE),1))=FALSE,COUNTA('Enrollment Form'!$AW766:$AZ766)=4),\"Y\",\"N\"))","v":"-"},{"$f":"IF($B759=\"N\",\"\",IF('Enrollment Form'!$B766=\"Subscriber\",\"-\",IF(COUNTA('Enrollment Form'!$BE766,'Enrollment Form'!$BG766)=2,\"Y\",\"N\")))","v":""},{"$f":"IF($B759=\"N\",\"\",IF(OR('Enrollment Form'!$AU766=\"\",'Enrollment Form'!$AU766=\"No\"),\"-\",IF(AND('Enrollment Form'!$AU766=\"Yes\",COUNTA('Enrollment Form'!$CK766)=1),\"Y\",\"N\")))","v":""},{"$f":"IF(OR('Enrollment Form'!$CK766=\"\",'Enrollment Form'!$CK766=\"No\"),\"-\",IF(COUNTA('Enrollment Form'!$CM766:$CN766)=2,\"Y\",\"N\"))","v":"-"},{"$f":"IF($B759=\"N\",\"\",IF(COUNTIF('Enrollment Form'!$CZ766:$DO766,\"Other\")=COUNTA('Enrollment Form'!$DF766,'Enrollment Form'!$DA766,'Enrollment Form'!$DK766,'Enrollment Form'!$DP766),\"Y\",\"N\"))","v":""},{"$f":"IF($B759=\"N\",\"\",IF(OR('Enrollment Form'!B766<>\"Subscriber\",'Enrollment Form'!C766=\"ROC\",COUNTIF('Enrollment Form'!AS766:AT766,\"Yes\")>=1),\"-\",IF(AND('Enrollment Form'!C766=\"Enroll\",COUNTIF('Enrollment Form'!AS766:AT766,\"No\")=2,'Enrollment Form'!AU766=\"\"),\"N\",\"Y\")))","v":""},{"$f":"IF(OR(B759=\"N\",'Enrollment Form'!B766<>\"Subscriber\",'Enrollment Form'!C766=\"ROC\",'Enrollment Form'!O766<>\"Multiple of Salary\"),\"-\",IF(COUNTA('Enrollment Form'!T766:U766)<2,\"N\",\"Y\"))","v":"-"},{"$f":"IF(B759=\"N\",\"\",IF(OR('Enrollment Form'!C766=\"ROC\",'Enrollment Form'!B766<>\"Subscriber\",'Enrollment Form'!O766=\"Waive\",'Enrollment Form'!O766=\"\"),\"-\",IF('Enrollment Form'!P766=\"\",\"N\",\"Y\")))","v":""},{"$f":"IF($B759=\"N\",\"\",IF(AND('Enrollment Form'!$C766=\"ROC\",'Enrollment Form'!$DS766<>\"\"),\"Y\",IF(AND('Enrollment Form'!$C766=\"ROC\",'Enrollment Form'!$DS766=\"\"),\"N\",IF(AND('Enrollment Form'!$C766=\"Enroll\",'Enrollment Form'!$B766=\"Subscriber\",'Enrollment Form'!$CQ766=\"No\",'Enrollment Form'!$DS766=\"\"),\"N\",IF(AND('Enrollment Form'!$C766=\"Enroll\",'Enrollment Form'!$B766=\"Subscriber\",'Enrollment Form'!$CQ766=\"Yes\"),\"-\",\"Y\")))))","v":""},{"$f":"IF($B759=\"N\",\"\",IF(AND('Enrollment Form'!$C766=\"ROC\",'Enrollment Form'!$DT766<>\"\"),\"Y\",IF(AND('Enrollment Form'!$C766=\"ROC\",'Enrollment Form'!$DT766=\"\"),\"N\",IF(AND('Enrollment Form'!$C766=\"Enroll\",'Enrollment Form'!$B766=\"Subscriber\",'Enrollment Form'!$CQ766=\"No\",'Enrollment Form'!$DT766=\"\"),\"N\",IF(AND('Enrollment Form'!$C766=\"Enroll\",'Enrollment Form'!$B766=\"Subscriber\",'Enrollment Form'!$CQ766=\"Yes\"),\"-\",\"Y\")))))","v":""},{"$f":"IF('Enrollment Form'!AH766=\"\",\"\",IF(ISERROR(SEARCH(\".\",'Enrollment Form'!AH766,SEARCH(\"@\",'Enrollment Form'!AH766))),\"N\",\"Y\"))","v":""},{"$f":"IF(OR($B759=\"N\",'Enrollment Form'!$G766=\"\"),\"\",IF('Enrollment Form'!$B766<>\"Subscriber\",\"-\",IF(COUNTIF('Enrollment Form'!$AS766:$AT766,\"Yes\")=2,\"N\",\"Y\")))","v":""},{"$f":"IF(OR('Enrollment Form'!$CC766=\"\",'Enrollment Form'!$CC766=\"No\"),\"-\",IF(AND('Enrollment Form'!$CC766=\"Yes\",'Enrollment Form'!$CD766=\"\"),\"N\",\"Y\"))","v":"-"},{"$f":"IF(OR('Enrollment Form'!$CE766=\"\",'Enrollment Form'!$CE766=\"No\"),\"-\",IF(AND('Enrollment Form'!$CE766=\"Yes\",'Enrollment Form'!$CF766=\"\"),\"N\",\"Y\"))","v":"-"},{"$f":"IF(OR('Enrollment Form'!$CG766=\"\",'Enrollment Form'!$CG766=\"No\"),\"-\",IF(AND('Enrollment Form'!$CG766=\"Yes\",'Enrollment Form'!$CH766=\"\"),\"N\",\"Y\"))","v":"-"},{"$f":"IF(OR('Enrollment Form'!$CG766=\"\",'Enrollment Form'!$CG766=\"No\"),\"-\",IF(AND('Enrollment Form'!$CG766=\"Yes\",'Enrollment Form'!$CI766=\"\"),\"N\",\"Y\"))","v":"-"},{"$f":"IF('Enrollment Form'!B766<>\"Subscriber\",\"-\",IF(AND('Enrollment Form'!B766=\"Subscriber\",'Enrollment Form'!C766=\"Enroll\",'Enrollment Form'!AA766=\"\"),\"N\",\"Y\"))","v":"-"},{"$f":"IF(OR('Enrollment Form'!B766=\"Subscriber\",'Enrollment Form'!B766=\"\"),\"-\",IF('Enrollment Form'!BI766=\"\",\"N\",\"Y\"))","v":"-"},{"$f":"IF('Enrollment Form'!B766<>\"Subscriber\",\"-\",IF(AND('Enrollment Form'!B766=\"Subscriber\",'Enrollment Form'!G766=\"\"),\"N\",\"Y\"))","v":"-"},{"$f":"IF('Enrollment Form'!A766=\"\",\"\",IF('Enrollment Form'!B766=\"Subscriber\",\"-\",IF(AND('Enrollment Form'!B766<>\"Subscriber\",'Enrollment Form'!G766='Enrollment Form'!H766),\"N\",\"Y\")))","v":""},0]
[767,{"$f":"IF('Enrollment Form'!$A767<>\"\",\"Y\",\"N\")","v":"N"},{"$f":"IF(AND('Enrollment Form'!$B767=\"\",'Enrollment Form'!$C767<>\"\"),\"N\",IF($B760=\"N\",\"\",\"Y\"))","v":""},{"$f":"IF(OR($B760=\"N\",'Enrollment Form'!G767=\"\"),\"\",IF('Enrollment Form'!$B767<>\"Subscriber\",\"\",IF('Enrollment Form'!$G767='Enrollment Form'!$H767,\"Y\",\"N\")))","v":""},{"$f":"IF($B760=\"N\",\"\",IF(AND(COUNTIFS('Enrollment Form'!$H$11:$H$1000,'Enrollment Form'!$H767,'Enrollment Form'!$B$11:$B$1000,'Enrollment Form'!$B767)>1,'Enrollment Form'!$H767<>\"\"),\"N\",\"Y\"))","v":""},{"$f":"IF($B760=\"N\",\"\",IF(LEN('Enrollment Form'!$Y767)=0,\"\",IF(LEN('Enrollment Form'!$Y767)<>5,\"N\",\"Y\")))","v":""},{"$f":"IF($B760=\"N\",\"\",IF(LEN('Enrollment Form'!$AD767=0),\"\",IF(LEN('Enrollment Form'!$AD767)<>5,\"N\",\"Y\")))","v":""},{"$f":"IF($B760=\"N\",\"\",IF(LEN('Enrollment Form'!$BL767=0),\"\",IF(LEN('Enrollment Form'!$BL767)<>5,\"N\",\"Y\")))","v":""},{"$f":"IF($B760=\"N\",\"\",IF(LEN('Enrollment Form'!$AE767)=0,\"\",IF(LEN('Enrollment Form'!$AE767)<>10,\"N\",\"Y\")))","v":""},{"$f":"IF($B760=\"N\",\"\",IF(LEN('Enrollment Form'!$AF767)=0,\"\",IF(LEN('Enrollment Form'!$AF767)<>10,\"N\",\"Y\")))","v":""},{"$f":"IF('Enrollment Form'!$O767<>\"Graded\",\"-\",IF(AND('Enrollment Form'!$O767=\"Graded\",'Enrollment Form'!$AO767<>\"\"),\"Y\",\"N\"))","v":"-"},{"$f":"IF($B760=\"N\",\"\",IF(OR('Enrollment Form'!$B767<>\"Subscriber\",'Enrollment Form'!$C767=\"ROC\"),\"-\",IF(AND('Enrollment Form'!$B767=\"Subscriber\",'Enrollment Form'!$C767=\"Enroll\",'Enrollment Form'!$AJ767<>\"\"),\"Y\",\"N\")))","v":""},{"$f":"IF($B760=\"N\",\"\",IF(OR('Enrollment Form'!$B767<>\"Subscriber\",'Enrollment Form'!$C767=\"ROC\"),\"-\",IF(AND('Enrollment Form'!$B767=\"Subscriber\",'Enrollment Form'!$C767=\"Enroll\",'Enrollment Form'!$AK767<>\"\"),\"Y\",\"N\")))","v":""},{"$f":"IF($B760=\"N\",\"\",IF(OR('Enrollment Form'!$B767<>\"Subscriber\",'Enrollment Form'!$C767=\"ROC\"),\"-\",IF(AND('Enrollment Form'!$B767=\"Subscriber\",'Enrollment Form'!$C767=\"Enroll\",'Enrollment Form'!$AL767<>\"\"),\"Y\",\"N\")))","v":""},{"$f":"IF($B760=\"N\",\"\",IF(OR('Enrollment Form'!$B767<>\"Subscriber\",'Enrollment Form'!$C767=\"ROC\"),\"-\",IF(AND('Enrollment Form'!$B767=\"Subscriber\",'Enrollment Form'!$C767=\"Enroll\",'Enrollment Form'!$AM767<>\"\"),\"Y\",\"N\")))","v":""},{"$f":"IF($B760=\"N\",\"\",IF(OR('Enrollment Form'!$B767<>\"Subscriber\",'Enrollment Form'!$C767=\"ROC\"),\"-\",IF(AND('Enrollment Form'!$B767=\"Subscriber\",'Enrollment Form'!$C767=\"Enroll\",'Enrollment Form'!$AN767<>\"\"),\"Y\",\"N\")))","v":""},{"$f":"IF($B760=\"N\",\"\",IF(OR('Enrollment Form'!$B767<>\"Subscriber\",'Enrollment Form'!$C767=\"ROC\"),\"-\",IF(AND('Enrollment Form'!$B767=\"Subscriber\",'Enrollment Form'!$C767=\"Enroll\",'Enrollment Form'!$AP767<>\"\"),\"Y\",\"N\")))","v":""},{"$f":"IF($B760=\"N\",\"\",IF($Q760=\"-\",\"-\",IF(AND($Q760=\"Y\",'Enrollment Form'!$AP767=\"No\"),\"-\",IF(AND($Q760=\"Y\",'Enrollment Form'!$AP767=\"Yes\",'Enrollment Form'!$AQ767<>\"\"),\"Y\",\"N\"))))","v":""},{"$f":"IF($B760=\"N\",\"\",IF(OR('Enrollment Form'!$B767<>\"Subscriber\",'Enrollment Form'!$C767=\"ROC\"),\"-\",IF(AND('Enrollment Form'!$B767=\"Subscriber\",'Enrollment Form'!$C767=\"Enroll\",'Enrollment Form'!$CO767<>\"\"),\"Y\",\"N\")))","v":""},{"$f":"IF($B760=\"N\",\"\",IF($S760=\"-\",\"-\",IF(AND($S760=\"Y\",'Enrollment Form'!$CO767=\"No\"),\"-\",IF(AND($S760=\"Y\",'Enrollment Form'!$CO767=\"Yes\",'Enrollment Form'!$CP767<>\"\"),\"Y\",\"N\"))))","v":""},{"$f":"IF(OR('Enrollment Form'!$AV767=\"Yes\",'Enrollment Form'!$AV767=\"\"),\"-\",IF(AND('Enrollment Form'!$AV767=\"No\",ISERROR(FIND(\"HMO\",VLOOKUP('Enrollment Form'!G767,'Enrollment Form'!H$11:J$1000,3,FALSE),1))=FALSE,COUNTA('Enrollment Form'!$AW767:$AZ767)=4),\"Y\",\"N\"))","v":"-"},{"$f":"IF($B760=\"N\",\"\",IF('Enrollment Form'!$B767=\"Subscriber\",\"-\",IF(COUNTA('Enrollment Form'!$BE767,'Enrollment Form'!$BG767)=2,\"Y\",\"N\")))","v":""},{"$f":"IF($B760=\"N\",\"\",IF(OR('Enrollment Form'!$AU767=\"\",'Enrollment Form'!$AU767=\"No\"),\"-\",IF(AND('Enrollment Form'!$AU767=\"Yes\",COUNTA('Enrollment Form'!$CK767)=1),\"Y\",\"N\")))","v":""},{"$f":"IF(OR('Enrollment Form'!$CK767=\"\",'Enrollment Form'!$CK767=\"No\"),\"-\",IF(COUNTA('Enrollment Form'!$CM767:$CN767)=2,\"Y\",\"N\"))","v":"-"},{"$f":"IF($B760=\"N\",\"\",IF(COUNTIF('Enrollment Form'!$CZ767:$DO767,\"Other\")=COUNTA('Enrollment Form'!$DF767,'Enrollment Form'!$DA767,'Enrollment Form'!$DK767,'Enrollment Form'!$DP767),\"Y\",\"N\"))","v":""},{"$f":"IF($B760=\"N\",\"\",IF(OR('Enrollment Form'!B767<>\"Subscriber\",'Enrollment Form'!C767=\"ROC\",COUNTIF('Enrollment Form'!AS767:AT767,\"Yes\")>=1),\"-\",IF(AND('Enrollment Form'!C767=\"Enroll\",COUNTIF('Enrollment Form'!AS767:AT767,\"No\")=2,'Enrollment Form'!AU767=\"\"),\"N\",\"Y\")))","v":""},{"$f":"IF(OR(B760=\"N\",'Enrollment Form'!B767<>\"Subscriber\",'Enrollment Form'!C767=\"ROC\",'Enrollment Form'!O767<>\"Multiple of Salary\"),\"-\",IF(COUNTA('Enrollment Form'!T767:U767)<2,\"N\",\"Y\"))","v":"-"},{"$f":"IF(B760=\"N\",\"\",IF(OR('Enrollment Form'!C767=\"ROC\",'Enrollment Form'!B767<>\"Subscriber\",'Enrollment Form'!O767=\"Waive\",'Enrollment Form'!O767=\"\"),\"-\",IF('Enrollment Form'!P767=\"\",\"N\",\"Y\")))","v":""},{"$f":"IF($B760=\"N\",\"\",IF(AND('Enrollment Form'!$C767=\"ROC\",'Enrollment Form'!$DS767<>\"\"),\"Y\",IF(AND('Enrollment Form'!$C767=\"ROC\",'Enrollment Form'!$DS767=\"\"),\"N\",IF(AND('Enrollment Form'!$C767=\"Enroll\",'Enrollment Form'!$B767=\"Subscriber\",'Enrollment Form'!$CQ767=\"No\",'Enrollment Form'!$DS767=\"\"),\"N\",IF(AND('Enrollment Form'!$C767=\"Enroll\",'Enrollment Form'!$B767=\"Subscriber\",'Enrollment Form'!$CQ767=\"Yes\"),\"-\",\"Y\")))))","v":""},{"$f":"IF($B760=\"N\",\"\",IF(AND('Enrollment Form'!$C767=\"ROC\",'Enrollment Form'!$DT767<>\"\"),\"Y\",IF(AND('Enrollment Form'!$C767=\"ROC\",'Enrollment Form'!$DT767=\"\"),\"N\",IF(AND('Enrollment Form'!$C767=\"Enroll\",'Enrollment Form'!$B767=\"Subscriber\",'Enrollment Form'!$CQ767=\"No\",'Enrollment Form'!$DT767=\"\"),\"N\",IF(AND('Enrollment Form'!$C767=\"Enroll\",'Enrollment Form'!$B767=\"Subscriber\",'Enrollment Form'!$CQ767=\"Yes\"),\"-\",\"Y\")))))","v":""},{"$f":"IF('Enrollment Form'!AH767=\"\",\"\",IF(ISERROR(SEARCH(\".\",'Enrollment Form'!AH767,SEARCH(\"@\",'Enrollment Form'!AH767))),\"N\",\"Y\"))","v":""},{"$f":"IF(OR($B760=\"N\",'Enrollment Form'!$G767=\"\"),\"\",IF('Enrollment Form'!$B767<>\"Subscriber\",\"-\",IF(COUNTIF('Enrollment Form'!$AS767:$AT767,\"Yes\")=2,\"N\",\"Y\")))","v":""},{"$f":"IF(OR('Enrollment Form'!$CC767=\"\",'Enrollment Form'!$CC767=\"No\"),\"-\",IF(AND('Enrollment Form'!$CC767=\"Yes\",'Enrollment Form'!$CD767=\"\"),\"N\",\"Y\"))","v":"-"},{"$f":"IF(OR('Enrollment Form'!$CE767=\"\",'Enrollment Form'!$CE767=\"No\"),\"-\",IF(AND('Enrollment Form'!$CE767=\"Yes\",'Enrollment Form'!$CF767=\"\"),\"N\",\"Y\"))","v":"-"},{"$f":"IF(OR('Enrollment Form'!$CG767=\"\",'Enrollment Form'!$CG767=\"No\"),\"-\",IF(AND('Enrollment Form'!$CG767=\"Yes\",'Enrollment Form'!$CH767=\"\"),\"N\",\"Y\"))","v":"-"},{"$f":"IF(OR('Enrollment Form'!$CG767=\"\",'Enrollment Form'!$CG767=\"No\"),\"-\",IF(AND('Enrollment Form'!$CG767=\"Yes\",'Enrollment Form'!$CI767=\"\"),\"N\",\"Y\"))","v":"-"},{"$f":"IF('Enrollment Form'!B767<>\"Subscriber\",\"-\",IF(AND('Enrollment Form'!B767=\"Subscriber\",'Enrollment Form'!C767=\"Enroll\",'Enrollment Form'!AA767=\"\"),\"N\",\"Y\"))","v":"-"},{"$f":"IF(OR('Enrollment Form'!B767=\"Subscriber\",'Enrollment Form'!B767=\"\"),\"-\",IF('Enrollment Form'!BI767=\"\",\"N\",\"Y\"))","v":"-"},{"$f":"IF('Enrollment Form'!B767<>\"Subscriber\",\"-\",IF(AND('Enrollment Form'!B767=\"Subscriber\",'Enrollment Form'!G767=\"\"),\"N\",\"Y\"))","v":"-"},{"$f":"IF('Enrollment Form'!A767=\"\",\"\",IF('Enrollment Form'!B767=\"Subscriber\",\"-\",IF(AND('Enrollment Form'!B767<>\"Subscriber\",'Enrollment Form'!G767='Enrollment Form'!H767),\"N\",\"Y\")))","v":""},0]
[768,{"$f":"IF('Enrollment Form'!$A768<>\"\",\"Y\",\"N\")","v":"N"},{"$f":"IF(AND('Enrollment Form'!$B768=\"\",'Enrollment Form'!$C768<>\"\"),\"N\",IF($B761=\"N\",\"\",\"Y\"))","v":""},{"$f":"IF(OR($B761=\"N\",'Enrollment Form'!G768=\"\"),\"\",IF('Enrollment Form'!$B768<>\"Subscriber\",\"\",IF('Enrollment Form'!$G768='Enrollment Form'!$H768,\"Y\",\"N\")))","v":""},{"$f":"IF($B761=\"N\",\"\",IF(AND(COUNTIFS('Enrollment Form'!$H$11:$H$1000,'Enrollment Form'!$H768,'Enrollment Form'!$B$11:$B$1000,'Enrollment Form'!$B768)>1,'Enrollment Form'!$H768<>\"\"),\"N\",\"Y\"))","v":""},{"$f":"IF($B761=\"N\",\"\",IF(LEN('Enrollment Form'!$Y768)=0,\"\",IF(LEN('Enrollment Form'!$Y768)<>5,\"N\",\"Y\")))","v":""},{"$f":"IF($B761=\"N\",\"\",IF(LEN('Enrollment Form'!$AD768=0),\"\",IF(LEN('Enrollment Form'!$AD768)<>5,\"N\",\"Y\")))","v":""},{"$f":"IF($B761=\"N\",\"\",IF(LEN('Enrollment Form'!$BL768=0),\"\",IF(LEN('Enrollment Form'!$BL768)<>5,\"N\",\"Y\")))","v":""},{"$f":"IF($B761=\"N\",\"\",IF(LEN('Enrollment Form'!$AE768)=0,\"\",IF(LEN('Enrollment Form'!$AE768)<>10,\"N\",\"Y\")))","v":""},{"$f":"IF($B761=\"N\",\"\",IF(LEN('Enrollment Form'!$AF768)=0,\"\",IF(LEN('Enrollment Form'!$AF768)<>10,\"N\",\"Y\")))","v":""},{"$f":"IF('Enrollment Form'!$O768<>\"Graded\",\"-\",IF(AND('Enrollment Form'!$O768=\"Graded\",'Enrollment Form'!$AO768<>\"\"),\"Y\",\"N\"))","v":"-"},{"$f":"IF($B761=\"N\",\"\",IF(OR('Enrollment Form'!$B768<>\"Subscriber\",'Enrollment Form'!$C768=\"ROC\"),\"-\",IF(AND('Enrollment Form'!$B768=\"Subscriber\",'Enrollment Form'!$C768=\"Enroll\",'Enrollment Form'!$AJ768<>\"\"),\"Y\",\"N\")))","v":""},{"$f":"IF($B761=\"N\",\"\",IF(OR('Enrollment Form'!$B768<>\"Subscriber\",'Enrollment Form'!$C768=\"ROC\"),\"-\",IF(AND('Enrollment Form'!$B768=\"Subscriber\",'Enrollment Form'!$C768=\"Enroll\",'Enrollment Form'!$AK768<>\"\"),\"Y\",\"N\")))","v":""},{"$f":"IF($B761=\"N\",\"\",IF(OR('Enrollment Form'!$B768<>\"Subscriber\",'Enrollment Form'!$C768=\"ROC\"),\"-\",IF(AND('Enrollment Form'!$B768=\"Subscriber\",'Enrollment Form'!$C768=\"Enroll\",'Enrollment Form'!$AL768<>\"\"),\"Y\",\"N\")))","v":""},{"$f":"IF($B761=\"N\",\"\",IF(OR('Enrollment Form'!$B768<>\"Subscriber\",'Enrollment Form'!$C768=\"ROC\"),\"-\",IF(AND('Enrollment Form'!$B768=\"Subscriber\",'Enrollment Form'!$C768=\"Enroll\",'Enrollment Form'!$AM768<>\"\"),\"Y\",\"N\")))","v":""},{"$f":"IF($B761=\"N\",\"\",IF(OR('Enrollment Form'!$B768<>\"Subscriber\",'Enrollment Form'!$C768=\"ROC\"),\"-\",IF(AND('Enrollment Form'!$B768=\"Subscriber\",'Enrollment Form'!$C768=\"Enroll\",'Enrollment Form'!$AN768<>\"\"),\"Y\",\"N\")))","v":""},{"$f":"IF($B761=\"N\",\"\",IF(OR('Enrollment Form'!$B768<>\"Subscriber\",'Enrollment Form'!$C768=\"ROC\"),\"-\",IF(AND('Enrollment Form'!$B768=\"Subscriber\",'Enrollment Form'!$C768=\"Enroll\",'Enrollment Form'!$AP768<>\"\"),\"Y\",\"N\")))","v":""},{"$f":"IF($B761=\"N\",\"\",IF($Q761=\"-\",\"-\",IF(AND($Q761=\"Y\",'Enrollment Form'!$AP768=\"No\"),\"-\",IF(AND($Q761=\"Y\",'Enrollment Form'!$AP768=\"Yes\",'Enrollment Form'!$AQ768<>\"\"),\"Y\",\"N\"))))","v":""},{"$f":"IF($B761=\"N\",\"\",IF(OR('Enrollment Form'!$B768<>\"Subscriber\",'Enrollment Form'!$C768=\"ROC\"),\"-\",IF(AND('Enrollment Form'!$B768=\"Subscriber\",'Enrollment Form'!$C768=\"Enroll\",'Enrollment Form'!$CO768<>\"\"),\"Y\",\"N\")))","v":""},{"$f":"IF($B761=\"N\",\"\",IF($S761=\"-\",\"-\",IF(AND($S761=\"Y\",'Enrollment Form'!$CO768=\"No\"),\"-\",IF(AND($S761=\"Y\",'Enrollment Form'!$CO768=\"Yes\",'Enrollment Form'!$CP768<>\"\"),\"Y\",\"N\"))))","v":""},{"$f":"IF(OR('Enrollment Form'!$AV768=\"Yes\",'Enrollment Form'!$AV768=\"\"),\"-\",IF(AND('Enrollment Form'!$AV768=\"No\",ISERROR(FIND(\"HMO\",VLOOKUP('Enrollment Form'!G768,'Enrollment Form'!H$11:J$1000,3,FALSE),1))=FALSE,COUNTA('Enrollment Form'!$AW768:$AZ768)=4),\"Y\",\"N\"))","v":"-"},{"$f":"IF($B761=\"N\",\"\",IF('Enrollment Form'!$B768=\"Subscriber\",\"-\",IF(COUNTA('Enrollment Form'!$BE768,'Enrollment Form'!$BG768)=2,\"Y\",\"N\")))","v":""},{"$f":"IF($B761=\"N\",\"\",IF(OR('Enrollment Form'!$AU768=\"\",'Enrollment Form'!$AU768=\"No\"),\"-\",IF(AND('Enrollment Form'!$AU768=\"Yes\",COUNTA('Enrollment Form'!$CK768)=1),\"Y\",\"N\")))","v":""},{"$f":"IF(OR('Enrollment Form'!$CK768=\"\",'Enrollment Form'!$CK768=\"No\"),\"-\",IF(COUNTA('Enrollment Form'!$CM768:$CN768)=2,\"Y\",\"N\"))","v":"-"},{"$f":"IF($B761=\"N\",\"\",IF(COUNTIF('Enrollment Form'!$CZ768:$DO768,\"Other\")=COUNTA('Enrollment Form'!$DF768,'Enrollment Form'!$DA768,'Enrollment Form'!$DK768,'Enrollment Form'!$DP768),\"Y\",\"N\"))","v":""},{"$f":"IF($B761=\"N\",\"\",IF(OR('Enrollment Form'!B768<>\"Subscriber\",'Enrollment Form'!C768=\"ROC\",COUNTIF('Enrollment Form'!AS768:AT768,\"Yes\")>=1),\"-\",IF(AND('Enrollment Form'!C768=\"Enroll\",COUNTIF('Enrollment Form'!AS768:AT768,\"No\")=2,'Enrollment Form'!AU768=\"\"),\"N\",\"Y\")))","v":""},{"$f":"IF(OR(B761=\"N\",'Enrollment Form'!B768<>\"Subscriber\",'Enrollment Form'!C768=\"ROC\",'Enrollment Form'!O768<>\"Multiple of Salary\"),\"-\",IF(COUNTA('Enrollment Form'!T768:U768)<2,\"N\",\"Y\"))","v":"-"},{"$f":"IF(B761=\"N\",\"\",IF(OR('Enrollment Form'!C768=\"ROC\",'Enrollment Form'!B768<>\"Subscriber\",'Enrollment Form'!O768=\"Waive\",'Enrollment Form'!O768=\"\"),\"-\",IF('Enrollment Form'!P768=\"\",\"N\",\"Y\")))","v":""},{"$f":"IF($B761=\"N\",\"\",IF(AND('Enrollment Form'!$C768=\"ROC\",'Enrollment Form'!$DS768<>\"\"),\"Y\",IF(AND('Enrollment Form'!$C768=\"ROC\",'Enrollment Form'!$DS768=\"\"),\"N\",IF(AND('Enrollment Form'!$C768=\"Enroll\",'Enrollment Form'!$B768=\"Subscriber\",'Enrollment Form'!$CQ768=\"No\",'Enrollment Form'!$DS768=\"\"),\"N\",IF(AND('Enrollment Form'!$C768=\"Enroll\",'Enrollment Form'!$B768=\"Subscriber\",'Enrollment Form'!$CQ768=\"Yes\"),\"-\",\"Y\")))))","v":""},{"$f":"IF($B761=\"N\",\"\",IF(AND('Enrollment Form'!$C768=\"ROC\",'Enrollment Form'!$DT768<>\"\"),\"Y\",IF(AND('Enrollment Form'!$C768=\"ROC\",'Enrollment Form'!$DT768=\"\"),\"N\",IF(AND('Enrollment Form'!$C768=\"Enroll\",'Enrollment Form'!$B768=\"Subscriber\",'Enrollment Form'!$CQ768=\"No\",'Enrollment Form'!$DT768=\"\"),\"N\",IF(AND('Enrollment Form'!$C768=\"Enroll\",'Enrollment Form'!$B768=\"Subscriber\",'Enrollment Form'!$CQ768=\"Yes\"),\"-\",\"Y\")))))","v":""},{"$f":"IF('Enrollment Form'!AH768=\"\",\"\",IF(ISERROR(SEARCH(\".\",'Enrollment Form'!AH768,SEARCH(\"@\",'Enrollment Form'!AH768))),\"N\",\"Y\"))","v":""},{"$f":"IF(OR($B761=\"N\",'Enrollment Form'!$G768=\"\"),\"\",IF('Enrollment Form'!$B768<>\"Subscriber\",\"-\",IF(COUNTIF('Enrollment Form'!$AS768:$AT768,\"Yes\")=2,\"N\",\"Y\")))","v":""},{"$f":"IF(OR('Enrollment Form'!$CC768=\"\",'Enrollment Form'!$CC768=\"No\"),\"-\",IF(AND('Enrollment Form'!$CC768=\"Yes\",'Enrollment Form'!$CD768=\"\"),\"N\",\"Y\"))","v":"-"},{"$f":"IF(OR('Enrollment Form'!$CE768=\"\",'Enrollment Form'!$CE768=\"No\"),\"-\",IF(AND('Enrollment Form'!$CE768=\"Yes\",'Enrollment Form'!$CF768=\"\"),\"N\",\"Y\"))","v":"-"},{"$f":"IF(OR('Enrollment Form'!$CG768=\"\",'Enrollment Form'!$CG768=\"No\"),\"-\",IF(AND('Enrollment Form'!$CG768=\"Yes\",'Enrollment Form'!$CH768=\"\"),\"N\",\"Y\"))","v":"-"},{"$f":"IF(OR('Enrollment Form'!$CG768=\"\",'Enrollment Form'!$CG768=\"No\"),\"-\",IF(AND('Enrollment Form'!$CG768=\"Yes\",'Enrollment Form'!$CI768=\"\"),\"N\",\"Y\"))","v":"-"},{"$f":"IF('Enrollment Form'!B768<>\"Subscriber\",\"-\",IF(AND('Enrollment Form'!B768=\"Subscriber\",'Enrollment Form'!C768=\"Enroll\",'Enrollment Form'!AA768=\"\"),\"N\",\"Y\"))","v":"-"},{"$f":"IF(OR('Enrollment Form'!B768=\"Subscriber\",'Enrollment Form'!B768=\"\"),\"-\",IF('Enrollment Form'!BI768=\"\",\"N\",\"Y\"))","v":"-"},{"$f":"IF('Enrollment Form'!B768<>\"Subscriber\",\"-\",IF(AND('Enrollment Form'!B768=\"Subscriber\",'Enrollment Form'!G768=\"\"),\"N\",\"Y\"))","v":"-"},{"$f":"IF('Enrollment Form'!A768=\"\",\"\",IF('Enrollment Form'!B768=\"Subscriber\",\"-\",IF(AND('Enrollment Form'!B768<>\"Subscriber\",'Enrollment Form'!G768='Enrollment Form'!H768),\"N\",\"Y\")))","v":""},0]
[769,{"$f":"IF('Enrollment Form'!$A769<>\"\",\"Y\",\"N\")","v":"N"},{"$f":"IF(AND('Enrollment Form'!$B769=\"\",'Enrollment Form'!$C769<>\"\"),\"N\",IF($B762=\"N\",\"\",\"Y\"))","v":""},{"$f":"IF(OR($B762=\"N\",'Enrollment Form'!G769=\"\"),\"\",IF('Enrollment Form'!$B769<>\"Subscriber\",\"\",IF('Enrollment Form'!$G769='Enrollment Form'!$H769,\"Y\",\"N\")))","v":""},{"$f":"IF($B762=\"N\",\"\",IF(AND(COUNTIFS('Enrollment Form'!$H$11:$H$1000,'Enrollment Form'!$H769,'Enrollment Form'!$B$11:$B$1000,'Enrollment Form'!$B769)>1,'Enrollment Form'!$H769<>\"\"),\"N\",\"Y\"))","v":""},{"$f":"IF($B762=\"N\",\"\",IF(LEN('Enrollment Form'!$Y769)=0,\"\",IF(LEN('Enrollment Form'!$Y769)<>5,\"N\",\"Y\")))","v":""},{"$f":"IF($B762=\"N\",\"\",IF(LEN('Enrollment Form'!$AD769=0),\"\",IF(LEN('Enrollment Form'!$AD769)<>5,\"N\",\"Y\")))","v":""},{"$f":"IF($B762=\"N\",\"\",IF(LEN('Enrollment Form'!$BL769=0),\"\",IF(LEN('Enrollment Form'!$BL769)<>5,\"N\",\"Y\")))","v":""},{"$f":"IF($B762=\"N\",\"\",IF(LEN('Enrollment Form'!$AE769)=0,\"\",IF(LEN('Enrollment Form'!$AE769)<>10,\"N\",\"Y\")))","v":""},{"$f":"IF($B762=\"N\",\"\",IF(LEN('Enrollment Form'!$AF769)=0,\"\",IF(LEN('Enrollment Form'!$AF769)<>10,\"N\",\"Y\")))","v":""},{"$f":"IF('Enrollment Form'!$O769<>\"Graded\",\"-\",IF(AND('Enrollment Form'!$O769=\"Graded\",'Enrollment Form'!$AO769<>\"\"),\"Y\",\"N\"))","v":"-"},{"$f":"IF($B762=\"N\",\"\",IF(OR('Enrollment Form'!$B769<>\"Subscriber\",'Enrollment Form'!$C769=\"ROC\"),\"-\",IF(AND('Enrollment Form'!$B769=\"Subscriber\",'Enrollment Form'!$C769=\"Enroll\",'Enrollment Form'!$AJ769<>\"\"),\"Y\",\"N\")))","v":""},{"$f":"IF($B762=\"N\",\"\",IF(OR('Enrollment Form'!$B769<>\"Subscriber\",'Enrollment Form'!$C769=\"ROC\"),\"-\",IF(AND('Enrollment Form'!$B769=\"Subscriber\",'Enrollment Form'!$C769=\"Enroll\",'Enrollment Form'!$AK769<>\"\"),\"Y\",\"N\")))","v":""},{"$f":"IF($B762=\"N\",\"\",IF(OR('Enrollment Form'!$B769<>\"Subscriber\",'Enrollment Form'!$C769=\"ROC\"),\"-\",IF(AND('Enrollment Form'!$B769=\"Subscriber\",'Enrollment Form'!$C769=\"Enroll\",'Enrollment Form'!$AL769<>\"\"),\"Y\",\"N\")))","v":""},{"$f":"IF($B762=\"N\",\"\",IF(OR('Enrollment Form'!$B769<>\"Subscriber\",'Enrollment Form'!$C769=\"ROC\"),\"-\",IF(AND('Enrollment Form'!$B769=\"Subscriber\",'Enrollment Form'!$C769=\"Enroll\",'Enrollment Form'!$AM769<>\"\"),\"Y\",\"N\")))","v":""},{"$f":"IF($B762=\"N\",\"\",IF(OR('Enrollment Form'!$B769<>\"Subscriber\",'Enrollment Form'!$C769=\"ROC\"),\"-\",IF(AND('Enrollment Form'!$B769=\"Subscriber\",'Enrollment Form'!$C769=\"Enroll\",'Enrollment Form'!$AN769<>\"\"),\"Y\",\"N\")))","v":""},{"$f":"IF($B762=\"N\",\"\",IF(OR('Enrollment Form'!$B769<>\"Subscriber\",'Enrollment Form'!$C769=\"ROC\"),\"-\",IF(AND('Enrollment Form'!$B769=\"Subscriber\",'Enrollment Form'!$C769=\"Enroll\",'Enrollment Form'!$AP769<>\"\"),\"Y\",\"N\")))","v":""},{"$f":"IF($B762=\"N\",\"\",IF($Q762=\"-\",\"-\",IF(AND($Q762=\"Y\",'Enrollment Form'!$AP769=\"No\"),\"-\",IF(AND($Q762=\"Y\",'Enrollment Form'!$AP769=\"Yes\",'Enrollment Form'!$AQ769<>\"\"),\"Y\",\"N\"))))","v":""},{"$f":"IF($B762=\"N\",\"\",IF(OR('Enrollment Form'!$B769<>\"Subscriber\",'Enrollment Form'!$C769=\"ROC\"),\"-\",IF(AND('Enrollment Form'!$B769=\"Subscriber\",'Enrollment Form'!$C769=\"Enroll\",'Enrollment Form'!$CO769<>\"\"),\"Y\",\"N\")))","v":""},{"$f":"IF($B762=\"N\",\"\",IF($S762=\"-\",\"-\",IF(AND($S762=\"Y\",'Enrollment Form'!$CO769=\"No\"),\"-\",IF(AND($S762=\"Y\",'Enrollment Form'!$CO769=\"Yes\",'Enrollment Form'!$CP769<>\"\"),\"Y\",\"N\"))))","v":""},{"$f":"IF(OR('Enrollment Form'!$AV769=\"Yes\",'Enrollment Form'!$AV769=\"\"),\"-\",IF(AND('Enrollment Form'!$AV769=\"No\",ISERROR(FIND(\"HMO\",VLOOKUP('Enrollment Form'!G769,'Enrollment Form'!H$11:J$1000,3,FALSE),1))=FALSE,COUNTA('Enrollment Form'!$AW769:$AZ769)=4),\"Y\",\"N\"))","v":"-"},{"$f":"IF($B762=\"N\",\"\",IF('Enrollment Form'!$B769=\"Subscriber\",\"-\",IF(COUNTA('Enrollment Form'!$BE769,'Enrollment Form'!$BG769)=2,\"Y\",\"N\")))","v":""},{"$f":"IF($B762=\"N\",\"\",IF(OR('Enrollment Form'!$AU769=\"\",'Enrollment Form'!$AU769=\"No\"),\"-\",IF(AND('Enrollment Form'!$AU769=\"Yes\",COUNTA('Enrollment Form'!$CK769)=1),\"Y\",\"N\")))","v":""},{"$f":"IF(OR('Enrollment Form'!$CK769=\"\",'Enrollment Form'!$CK769=\"No\"),\"-\",IF(COUNTA('Enrollment Form'!$CM769:$CN769)=2,\"Y\",\"N\"))","v":"-"},{"$f":"IF($B762=\"N\",\"\",IF(COUNTIF('Enrollment Form'!$CZ769:$DO769,\"Other\")=COUNTA('Enrollment Form'!$DF769,'Enrollment Form'!$DA769,'Enrollment Form'!$DK769,'Enrollment Form'!$DP769),\"Y\",\"N\"))","v":""},{"$f":"IF($B762=\"N\",\"\",IF(OR('Enrollment Form'!B769<>\"Subscriber\",'Enrollment Form'!C769=\"ROC\",COUNTIF('Enrollment Form'!AS769:AT769,\"Yes\")>=1),\"-\",IF(AND('Enrollment Form'!C769=\"Enroll\",COUNTIF('Enrollment Form'!AS769:AT769,\"No\")=2,'Enrollment Form'!AU769=\"\"),\"N\",\"Y\")))","v":""},{"$f":"IF(OR(B762=\"N\",'Enrollment Form'!B769<>\"Subscriber\",'Enrollment Form'!C769=\"ROC\",'Enrollment Form'!O769<>\"Multiple of Salary\"),\"-\",IF(COUNTA('Enrollment Form'!T769:U769)<2,\"N\",\"Y\"))","v":"-"},{"$f":"IF(B762=\"N\",\"\",IF(OR('Enrollment Form'!C769=\"ROC\",'Enrollment Form'!B769<>\"Subscriber\",'Enrollment Form'!O769=\"Waive\",'Enrollment Form'!O769=\"\"),\"-\",IF('Enrollment Form'!P769=\"\",\"N\",\"Y\")))","v":""},{"$f":"IF($B762=\"N\",\"\",IF(AND('Enrollment Form'!$C769=\"ROC\",'Enrollment Form'!$DS769<>\"\"),\"Y\",IF(AND('Enrollment Form'!$C769=\"ROC\",'Enrollment Form'!$DS769=\"\"),\"N\",IF(AND('Enrollment Form'!$C769=\"Enroll\",'Enrollment Form'!$B769=\"Subscriber\",'Enrollment Form'!$CQ769=\"No\",'Enrollment Form'!$DS769=\"\"),\"N\",IF(AND('Enrollment Form'!$C769=\"Enroll\",'Enrollment Form'!$B769=\"Subscriber\",'Enrollment Form'!$CQ769=\"Yes\"),\"-\",\"Y\")))))","v":""},{"$f":"IF($B762=\"N\",\"\",IF(AND('Enrollment Form'!$C769=\"ROC\",'Enrollment Form'!$DT769<>\"\"),\"Y\",IF(AND('Enrollment Form'!$C769=\"ROC\",'Enrollment Form'!$DT769=\"\"),\"N\",IF(AND('Enrollment Form'!$C769=\"Enroll\",'Enrollment Form'!$B769=\"Subscriber\",'Enrollment Form'!$CQ769=\"No\",'Enrollment Form'!$DT769=\"\"),\"N\",IF(AND('Enrollment Form'!$C769=\"Enroll\",'Enrollment Form'!$B769=\"Subscriber\",'Enrollment Form'!$CQ769=\"Yes\"),\"-\",\"Y\")))))","v":""},{"$f":"IF('Enrollment Form'!AH769=\"\",\"\",IF(ISERROR(SEARCH(\".\",'Enrollment Form'!AH769,SEARCH(\"@\",'Enrollment Form'!AH769))),\"N\",\"Y\"))","v":""},{"$f":"IF(OR($B762=\"N\",'Enrollment Form'!$G769=\"\"),\"\",IF('Enrollment Form'!$B769<>\"Subscriber\",\"-\",IF(COUNTIF('Enrollment Form'!$AS769:$AT769,\"Yes\")=2,\"N\",\"Y\")))","v":""},{"$f":"IF(OR('Enrollment Form'!$CC769=\"\",'Enrollment Form'!$CC769=\"No\"),\"-\",IF(AND('Enrollment Form'!$CC769=\"Yes\",'Enrollment Form'!$CD769=\"\"),\"N\",\"Y\"))","v":"-"},{"$f":"IF(OR('Enrollment Form'!$CE769=\"\",'Enrollment Form'!$CE769=\"No\"),\"-\",IF(AND('Enrollment Form'!$CE769=\"Yes\",'Enrollment Form'!$CF769=\"\"),\"N\",\"Y\"))","v":"-"},{"$f":"IF(OR('Enrollment Form'!$CG769=\"\",'Enrollment Form'!$CG769=\"No\"),\"-\",IF(AND('Enrollment Form'!$CG769=\"Yes\",'Enrollment Form'!$CH769=\"\"),\"N\",\"Y\"))","v":"-"},{"$f":"IF(OR('Enrollment Form'!$CG769=\"\",'Enrollment Form'!$CG769=\"No\"),\"-\",IF(AND('Enrollment Form'!$CG769=\"Yes\",'Enrollment Form'!$CI769=\"\"),\"N\",\"Y\"))","v":"-"},{"$f":"IF('Enrollment Form'!B769<>\"Subscriber\",\"-\",IF(AND('Enrollment Form'!B769=\"Subscriber\",'Enrollment Form'!C769=\"Enroll\",'Enrollment Form'!AA769=\"\"),\"N\",\"Y\"))","v":"-"},{"$f":"IF(OR('Enrollment Form'!B769=\"Subscriber\",'Enrollment Form'!B769=\"\"),\"-\",IF('Enrollment Form'!BI769=\"\",\"N\",\"Y\"))","v":"-"},{"$f":"IF('Enrollment Form'!B769<>\"Subscriber\",\"-\",IF(AND('Enrollment Form'!B769=\"Subscriber\",'Enrollment Form'!G769=\"\"),\"N\",\"Y\"))","v":"-"},{"$f":"IF('Enrollment Form'!A769=\"\",\"\",IF('Enrollment Form'!B769=\"Subscriber\",\"-\",IF(AND('Enrollment Form'!B769<>\"Subscriber\",'Enrollment Form'!G769='Enrollment Form'!H769),\"N\",\"Y\")))","v":""},0]
[770,{"$f":"IF('Enrollment Form'!$A770<>\"\",\"Y\",\"N\")","v":"N"},{"$f":"IF(AND('Enrollment Form'!$B770=\"\",'Enrollment Form'!$C770<>\"\"),\"N\",IF($B763=\"N\",\"\",\"Y\"))","v":""},{"$f":"IF(OR($B763=\"N\",'Enrollment Form'!G770=\"\"),\"\",IF('Enrollment Form'!$B770<>\"Subscriber\",\"\",IF('Enrollment Form'!$G770='Enrollment Form'!$H770,\"Y\",\"N\")))","v":""},{"$f":"IF($B763=\"N\",\"\",IF(AND(COUNTIFS('Enrollment Form'!$H$11:$H$1000,'Enrollment Form'!$H770,'Enrollment Form'!$B$11:$B$1000,'Enrollment Form'!$B770)>1,'Enrollment Form'!$H770<>\"\"),\"N\",\"Y\"))","v":""},{"$f":"IF($B763=\"N\",\"\",IF(LEN('Enrollment Form'!$Y770)=0,\"\",IF(LEN('Enrollment Form'!$Y770)<>5,\"N\",\"Y\")))","v":""},{"$f":"IF($B763=\"N\",\"\",IF(LEN('Enrollment Form'!$AD770=0),\"\",IF(LEN('Enrollment Form'!$AD770)<>5,\"N\",\"Y\")))","v":""},{"$f":"IF($B763=\"N\",\"\",IF(LEN('Enrollment Form'!$BL770=0),\"\",IF(LEN('Enrollment Form'!$BL770)<>5,\"N\",\"Y\")))","v":""},{"$f":"IF($B763=\"N\",\"\",IF(LEN('Enrollment Form'!$AE770)=0,\"\",IF(LEN('Enrollment Form'!$AE770)<>10,\"N\",\"Y\")))","v":""},{"$f":"IF($B763=\"N\",\"\",IF(LEN('Enrollment Form'!$AF770)=0,\"\",IF(LEN('Enrollment Form'!$AF770)<>10,\"N\",\"Y\")))","v":""},{"$f":"IF('Enrollment Form'!$O770<>\"Graded\",\"-\",IF(AND('Enrollment Form'!$O770=\"Graded\",'Enrollment Form'!$AO770<>\"\"),\"Y\",\"N\"))","v":"-"},{"$f":"IF($B763=\"N\",\"\",IF(OR('Enrollment Form'!$B770<>\"Subscriber\",'Enrollment Form'!$C770=\"ROC\"),\"-\",IF(AND('Enrollment Form'!$B770=\"Subscriber\",'Enrollment Form'!$C770=\"Enroll\",'Enrollment Form'!$AJ770<>\"\"),\"Y\",\"N\")))","v":""},{"$f":"IF($B763=\"N\",\"\",IF(OR('Enrollment Form'!$B770<>\"Subscriber\",'Enrollment Form'!$C770=\"ROC\"),\"-\",IF(AND('Enrollment Form'!$B770=\"Subscriber\",'Enrollment Form'!$C770=\"Enroll\",'Enrollment Form'!$AK770<>\"\"),\"Y\",\"N\")))","v":""},{"$f":"IF($B763=\"N\",\"\",IF(OR('Enrollment Form'!$B770<>\"Subscriber\",'Enrollment Form'!$C770=\"ROC\"),\"-\",IF(AND('Enrollment Form'!$B770=\"Subscriber\",'Enrollment Form'!$C770=\"Enroll\",'Enrollment Form'!$AL770<>\"\"),\"Y\",\"N\")))","v":""},{"$f":"IF($B763=\"N\",\"\",IF(OR('Enrollment Form'!$B770<>\"Subscriber\",'Enrollment Form'!$C770=\"ROC\"),\"-\",IF(AND('Enrollment Form'!$B770=\"Subscriber\",'Enrollment Form'!$C770=\"Enroll\",'Enrollment Form'!$AM770<>\"\"),\"Y\",\"N\")))","v":""},{"$f":"IF($B763=\"N\",\"\",IF(OR('Enrollment Form'!$B770<>\"Subscriber\",'Enrollment Form'!$C770=\"ROC\"),\"-\",IF(AND('Enrollment Form'!$B770=\"Subscriber\",'Enrollment Form'!$C770=\"Enroll\",'Enrollment Form'!$AN770<>\"\"),\"Y\",\"N\")))","v":""},{"$f":"IF($B763=\"N\",\"\",IF(OR('Enrollment Form'!$B770<>\"Subscriber\",'Enrollment Form'!$C770=\"ROC\"),\"-\",IF(AND('Enrollment Form'!$B770=\"Subscriber\",'Enrollment Form'!$C770=\"Enroll\",'Enrollment Form'!$AP770<>\"\"),\"Y\",\"N\")))","v":""},{"$f":"IF($B763=\"N\",\"\",IF($Q763=\"-\",\"-\",IF(AND($Q763=\"Y\",'Enrollment Form'!$AP770=\"No\"),\"-\",IF(AND($Q763=\"Y\",'Enrollment Form'!$AP770=\"Yes\",'Enrollment Form'!$AQ770<>\"\"),\"Y\",\"N\"))))","v":""},{"$f":"IF($B763=\"N\",\"\",IF(OR('Enrollment Form'!$B770<>\"Subscriber\",'Enrollment Form'!$C770=\"ROC\"),\"-\",IF(AND('Enrollment Form'!$B770=\"Subscriber\",'Enrollment Form'!$C770=\"Enroll\",'Enrollment Form'!$CO770<>\"\"),\"Y\",\"N\")))","v":""},{"$f":"IF($B763=\"N\",\"\",IF($S763=\"-\",\"-\",IF(AND($S763=\"Y\",'Enrollment Form'!$CO770=\"No\"),\"-\",IF(AND($S763=\"Y\",'Enrollment Form'!$CO770=\"Yes\",'Enrollment Form'!$CP770<>\"\"),\"Y\",\"N\"))))","v":""},{"$f":"IF(OR('Enrollment Form'!$AV770=\"Yes\",'Enrollment Form'!$AV770=\"\"),\"-\",IF(AND('Enrollment Form'!$AV770=\"No\",ISERROR(FIND(\"HMO\",VLOOKUP('Enrollment Form'!G770,'Enrollment Form'!H$11:J$1000,3,FALSE),1))=FALSE,COUNTA('Enrollment Form'!$AW770:$AZ770)=4),\"Y\",\"N\"))","v":"-"},{"$f":"IF($B763=\"N\",\"\",IF('Enrollment Form'!$B770=\"Subscriber\",\"-\",IF(COUNTA('Enrollment Form'!$BE770,'Enrollment Form'!$BG770)=2,\"Y\",\"N\")))","v":""},{"$f":"IF($B763=\"N\",\"\",IF(OR('Enrollment Form'!$AU770=\"\",'Enrollment Form'!$AU770=\"No\"),\"-\",IF(AND('Enrollment Form'!$AU770=\"Yes\",COUNTA('Enrollment Form'!$CK770)=1),\"Y\",\"N\")))","v":""},{"$f":"IF(OR('Enrollment Form'!$CK770=\"\",'Enrollment Form'!$CK770=\"No\"),\"-\",IF(COUNTA('Enrollment Form'!$CM770:$CN770)=2,\"Y\",\"N\"))","v":"-"},{"$f":"IF($B763=\"N\",\"\",IF(COUNTIF('Enrollment Form'!$CZ770:$DO770,\"Other\")=COUNTA('Enrollment Form'!$DF770,'Enrollment Form'!$DA770,'Enrollment Form'!$DK770,'Enrollment Form'!$DP770),\"Y\",\"N\"))","v":""},{"$f":"IF($B763=\"N\",\"\",IF(OR('Enrollment Form'!B770<>\"Subscriber\",'Enrollment Form'!C770=\"ROC\",COUNTIF('Enrollment Form'!AS770:AT770,\"Yes\")>=1),\"-\",IF(AND('Enrollment Form'!C770=\"Enroll\",COUNTIF('Enrollment Form'!AS770:AT770,\"No\")=2,'Enrollment Form'!AU770=\"\"),\"N\",\"Y\")))","v":""},{"$f":"IF(OR(B763=\"N\",'Enrollment Form'!B770<>\"Subscriber\",'Enrollment Form'!C770=\"ROC\",'Enrollment Form'!O770<>\"Multiple of Salary\"),\"-\",IF(COUNTA('Enrollment Form'!T770:U770)<2,\"N\",\"Y\"))","v":"-"},{"$f":"IF(B763=\"N\",\"\",IF(OR('Enrollment Form'!C770=\"ROC\",'Enrollment Form'!B770<>\"Subscriber\",'Enrollment Form'!O770=\"Waive\",'Enrollment Form'!O770=\"\"),\"-\",IF('Enrollment Form'!P770=\"\",\"N\",\"Y\")))","v":""},{"$f":"IF($B763=\"N\",\"\",IF(AND('Enrollment Form'!$C770=\"ROC\",'Enrollment Form'!$DS770<>\"\"),\"Y\",IF(AND('Enrollment Form'!$C770=\"ROC\",'Enrollment Form'!$DS770=\"\"),\"N\",IF(AND('Enrollment Form'!$C770=\"Enroll\",'Enrollment Form'!$B770=\"Subscriber\",'Enrollment Form'!$CQ770=\"No\",'Enrollment Form'!$DS770=\"\"),\"N\",IF(AND('Enrollment Form'!$C770=\"Enroll\",'Enrollment Form'!$B770=\"Subscriber\",'Enrollment Form'!$CQ770=\"Yes\"),\"-\",\"Y\")))))","v":""},{"$f":"IF($B763=\"N\",\"\",IF(AND('Enrollment Form'!$C770=\"ROC\",'Enrollment Form'!$DT770<>\"\"),\"Y\",IF(AND('Enrollment Form'!$C770=\"ROC\",'Enrollment Form'!$DT770=\"\"),\"N\",IF(AND('Enrollment Form'!$C770=\"Enroll\",'Enrollment Form'!$B770=\"Subscriber\",'Enrollment Form'!$CQ770=\"No\",'Enrollment Form'!$DT770=\"\"),\"N\",IF(AND('Enrollment Form'!$C770=\"Enroll\",'Enrollment Form'!$B770=\"Subscriber\",'Enrollment Form'!$CQ770=\"Yes\"),\"-\",\"Y\")))))","v":""},{"$f":"IF('Enrollment Form'!AH770=\"\",\"\",IF(ISERROR(SEARCH(\".\",'Enrollment Form'!AH770,SEARCH(\"@\",'Enrollment Form'!AH770))),\"N\",\"Y\"))","v":""},{"$f":"IF(OR($B763=\"N\",'Enrollment Form'!$G770=\"\"),\"\",IF('Enrollment Form'!$B770<>\"Subscriber\",\"-\",IF(COUNTIF('Enrollment Form'!$AS770:$AT770,\"Yes\")=2,\"N\",\"Y\")))","v":""},{"$f":"IF(OR('Enrollment Form'!$CC770=\"\",'Enrollment Form'!$CC770=\"No\"),\"-\",IF(AND('Enrollment Form'!$CC770=\"Yes\",'Enrollment Form'!$CD770=\"\"),\"N\",\"Y\"))","v":"-"},{"$f":"IF(OR('Enrollment Form'!$CE770=\"\",'Enrollment Form'!$CE770=\"No\"),\"-\",IF(AND('Enrollment Form'!$CE770=\"Yes\",'Enrollment Form'!$CF770=\"\"),\"N\",\"Y\"))","v":"-"},{"$f":"IF(OR('Enrollment Form'!$CG770=\"\",'Enrollment Form'!$CG770=\"No\"),\"-\",IF(AND('Enrollment Form'!$CG770=\"Yes\",'Enrollment Form'!$CH770=\"\"),\"N\",\"Y\"))","v":"-"},{"$f":"IF(OR('Enrollment Form'!$CG770=\"\",'Enrollment Form'!$CG770=\"No\"),\"-\",IF(AND('Enrollment Form'!$CG770=\"Yes\",'Enrollment Form'!$CI770=\"\"),\"N\",\"Y\"))","v":"-"},{"$f":"IF('Enrollment Form'!B770<>\"Subscriber\",\"-\",IF(AND('Enrollment Form'!B770=\"Subscriber\",'Enrollment Form'!C770=\"Enroll\",'Enrollment Form'!AA770=\"\"),\"N\",\"Y\"))","v":"-"},{"$f":"IF(OR('Enrollment Form'!B770=\"Subscriber\",'Enrollment Form'!B770=\"\"),\"-\",IF('Enrollment Form'!BI770=\"\",\"N\",\"Y\"))","v":"-"},{"$f":"IF('Enrollment Form'!B770<>\"Subscriber\",\"-\",IF(AND('Enrollment Form'!B770=\"Subscriber\",'Enrollment Form'!G770=\"\"),\"N\",\"Y\"))","v":"-"},{"$f":"IF('Enrollment Form'!A770=\"\",\"\",IF('Enrollment Form'!B770=\"Subscriber\",\"-\",IF(AND('Enrollment Form'!B770<>\"Subscriber\",'Enrollment Form'!G770='Enrollment Form'!H770),\"N\",\"Y\")))","v":""},0]
[771,{"$f":"IF('Enrollment Form'!$A771<>\"\",\"Y\",\"N\")","v":"N"},{"$f":"IF(AND('Enrollment Form'!$B771=\"\",'Enrollment Form'!$C771<>\"\"),\"N\",IF($B764=\"N\",\"\",\"Y\"))","v":""},{"$f":"IF(OR($B764=\"N\",'Enrollment Form'!G771=\"\"),\"\",IF('Enrollment Form'!$B771<>\"Subscriber\",\"\",IF('Enrollment Form'!$G771='Enrollment Form'!$H771,\"Y\",\"N\")))","v":""},{"$f":"IF($B764=\"N\",\"\",IF(AND(COUNTIFS('Enrollment Form'!$H$11:$H$1000,'Enrollment Form'!$H771,'Enrollment Form'!$B$11:$B$1000,'Enrollment Form'!$B771)>1,'Enrollment Form'!$H771<>\"\"),\"N\",\"Y\"))","v":""},{"$f":"IF($B764=\"N\",\"\",IF(LEN('Enrollment Form'!$Y771)=0,\"\",IF(LEN('Enrollment Form'!$Y771)<>5,\"N\",\"Y\")))","v":""},{"$f":"IF($B764=\"N\",\"\",IF(LEN('Enrollment Form'!$AD771=0),\"\",IF(LEN('Enrollment Form'!$AD771)<>5,\"N\",\"Y\")))","v":""},{"$f":"IF($B764=\"N\",\"\",IF(LEN('Enrollment Form'!$BL771=0),\"\",IF(LEN('Enrollment Form'!$BL771)<>5,\"N\",\"Y\")))","v":""},{"$f":"IF($B764=\"N\",\"\",IF(LEN('Enrollment Form'!$AE771)=0,\"\",IF(LEN('Enrollment Form'!$AE771)<>10,\"N\",\"Y\")))","v":""},{"$f":"IF($B764=\"N\",\"\",IF(LEN('Enrollment Form'!$AF771)=0,\"\",IF(LEN('Enrollment Form'!$AF771)<>10,\"N\",\"Y\")))","v":""},{"$f":"IF('Enrollment Form'!$O771<>\"Graded\",\"-\",IF(AND('Enrollment Form'!$O771=\"Graded\",'Enrollment Form'!$AO771<>\"\"),\"Y\",\"N\"))","v":"-"},{"$f":"IF($B764=\"N\",\"\",IF(OR('Enrollment Form'!$B771<>\"Subscriber\",'Enrollment Form'!$C771=\"ROC\"),\"-\",IF(AND('Enrollment Form'!$B771=\"Subscriber\",'Enrollment Form'!$C771=\"Enroll\",'Enrollment Form'!$AJ771<>\"\"),\"Y\",\"N\")))","v":""},{"$f":"IF($B764=\"N\",\"\",IF(OR('Enrollment Form'!$B771<>\"Subscriber\",'Enrollment Form'!$C771=\"ROC\"),\"-\",IF(AND('Enrollment Form'!$B771=\"Subscriber\",'Enrollment Form'!$C771=\"Enroll\",'Enrollment Form'!$AK771<>\"\"),\"Y\",\"N\")))","v":""},{"$f":"IF($B764=\"N\",\"\",IF(OR('Enrollment Form'!$B771<>\"Subscriber\",'Enrollment Form'!$C771=\"ROC\"),\"-\",IF(AND('Enrollment Form'!$B771=\"Subscriber\",'Enrollment Form'!$C771=\"Enroll\",'Enrollment Form'!$AL771<>\"\"),\"Y\",\"N\")))","v":""},{"$f":"IF($B764=\"N\",\"\",IF(OR('Enrollment Form'!$B771<>\"Subscriber\",'Enrollment Form'!$C771=\"ROC\"),\"-\",IF(AND('Enrollment Form'!$B771=\"Subscriber\",'Enrollment Form'!$C771=\"Enroll\",'Enrollment Form'!$AM771<>\"\"),\"Y\",\"N\")))","v":""},{"$f":"IF($B764=\"N\",\"\",IF(OR('Enrollment Form'!$B771<>\"Subscriber\",'Enrollment Form'!$C771=\"ROC\"),\"-\",IF(AND('Enrollment Form'!$B771=\"Subscriber\",'Enrollment Form'!$C771=\"Enroll\",'Enrollment Form'!$AN771<>\"\"),\"Y\",\"N\")))","v":""},{"$f":"IF($B764=\"N\",\"\",IF(OR('Enrollment Form'!$B771<>\"Subscriber\",'Enrollment Form'!$C771=\"ROC\"),\"-\",IF(AND('Enrollment Form'!$B771=\"Subscriber\",'Enrollment Form'!$C771=\"Enroll\",'Enrollment Form'!$AP771<>\"\"),\"Y\",\"N\")))","v":""},{"$f":"IF($B764=\"N\",\"\",IF($Q764=\"-\",\"-\",IF(AND($Q764=\"Y\",'Enrollment Form'!$AP771=\"No\"),\"-\",IF(AND($Q764=\"Y\",'Enrollment Form'!$AP771=\"Yes\",'Enrollment Form'!$AQ771<>\"\"),\"Y\",\"N\"))))","v":""},{"$f":"IF($B764=\"N\",\"\",IF(OR('Enrollment Form'!$B771<>\"Subscriber\",'Enrollment Form'!$C771=\"ROC\"),\"-\",IF(AND('Enrollment Form'!$B771=\"Subscriber\",'Enrollment Form'!$C771=\"Enroll\",'Enrollment Form'!$CO771<>\"\"),\"Y\",\"N\")))","v":""},{"$f":"IF($B764=\"N\",\"\",IF($S764=\"-\",\"-\",IF(AND($S764=\"Y\",'Enrollment Form'!$CO771=\"No\"),\"-\",IF(AND($S764=\"Y\",'Enrollment Form'!$CO771=\"Yes\",'Enrollment Form'!$CP771<>\"\"),\"Y\",\"N\"))))","v":""},{"$f":"IF(OR('Enrollment Form'!$AV771=\"Yes\",'Enrollment Form'!$AV771=\"\"),\"-\",IF(AND('Enrollment Form'!$AV771=\"No\",ISERROR(FIND(\"HMO\",VLOOKUP('Enrollment Form'!G771,'Enrollment Form'!H$11:J$1000,3,FALSE),1))=FALSE,COUNTA('Enrollment Form'!$AW771:$AZ771)=4),\"Y\",\"N\"))","v":"-"},{"$f":"IF($B764=\"N\",\"\",IF('Enrollment Form'!$B771=\"Subscriber\",\"-\",IF(COUNTA('Enrollment Form'!$BE771,'Enrollment Form'!$BG771)=2,\"Y\",\"N\")))","v":""},{"$f":"IF($B764=\"N\",\"\",IF(OR('Enrollment Form'!$AU771=\"\",'Enrollment Form'!$AU771=\"No\"),\"-\",IF(AND('Enrollment Form'!$AU771=\"Yes\",COUNTA('Enrollment Form'!$CK771)=1),\"Y\",\"N\")))","v":""},{"$f":"IF(OR('Enrollment Form'!$CK771=\"\",'Enrollment Form'!$CK771=\"No\"),\"-\",IF(COUNTA('Enrollment Form'!$CM771:$CN771)=2,\"Y\",\"N\"))","v":"-"},{"$f":"IF($B764=\"N\",\"\",IF(COUNTIF('Enrollment Form'!$CZ771:$DO771,\"Other\")=COUNTA('Enrollment Form'!$DF771,'Enrollment Form'!$DA771,'Enrollment Form'!$DK771,'Enrollment Form'!$DP771),\"Y\",\"N\"))","v":""},{"$f":"IF($B764=\"N\",\"\",IF(OR('Enrollment Form'!B771<>\"Subscriber\",'Enrollment Form'!C771=\"ROC\",COUNTIF('Enrollment Form'!AS771:AT771,\"Yes\")>=1),\"-\",IF(AND('Enrollment Form'!C771=\"Enroll\",COUNTIF('Enrollment Form'!AS771:AT771,\"No\")=2,'Enrollment Form'!AU771=\"\"),\"N\",\"Y\")))","v":""},{"$f":"IF(OR(B764=\"N\",'Enrollment Form'!B771<>\"Subscriber\",'Enrollment Form'!C771=\"ROC\",'Enrollment Form'!O771<>\"Multiple of Salary\"),\"-\",IF(COUNTA('Enrollment Form'!T771:U771)<2,\"N\",\"Y\"))","v":"-"},{"$f":"IF(B764=\"N\",\"\",IF(OR('Enrollment Form'!C771=\"ROC\",'Enrollment Form'!B771<>\"Subscriber\",'Enrollment Form'!O771=\"Waive\",'Enrollment Form'!O771=\"\"),\"-\",IF('Enrollment Form'!P771=\"\",\"N\",\"Y\")))","v":""},{"$f":"IF($B764=\"N\",\"\",IF(AND('Enrollment Form'!$C771=\"ROC\",'Enrollment Form'!$DS771<>\"\"),\"Y\",IF(AND('Enrollment Form'!$C771=\"ROC\",'Enrollment Form'!$DS771=\"\"),\"N\",IF(AND('Enrollment Form'!$C771=\"Enroll\",'Enrollment Form'!$B771=\"Subscriber\",'Enrollment Form'!$CQ771=\"No\",'Enrollment Form'!$DS771=\"\"),\"N\",IF(AND('Enrollment Form'!$C771=\"Enroll\",'Enrollment Form'!$B771=\"Subscriber\",'Enrollment Form'!$CQ771=\"Yes\"),\"-\",\"Y\")))))","v":""},{"$f":"IF($B764=\"N\",\"\",IF(AND('Enrollment Form'!$C771=\"ROC\",'Enrollment Form'!$DT771<>\"\"),\"Y\",IF(AND('Enrollment Form'!$C771=\"ROC\",'Enrollment Form'!$DT771=\"\"),\"N\",IF(AND('Enrollment Form'!$C771=\"Enroll\",'Enrollment Form'!$B771=\"Subscriber\",'Enrollment Form'!$CQ771=\"No\",'Enrollment Form'!$DT771=\"\"),\"N\",IF(AND('Enrollment Form'!$C771=\"Enroll\",'Enrollment Form'!$B771=\"Subscriber\",'Enrollment Form'!$CQ771=\"Yes\"),\"-\",\"Y\")))))","v":""},{"$f":"IF('Enrollment Form'!AH771=\"\",\"\",IF(ISERROR(SEARCH(\".\",'Enrollment Form'!AH771,SEARCH(\"@\",'Enrollment Form'!AH771))),\"N\",\"Y\"))","v":""},{"$f":"IF(OR($B764=\"N\",'Enrollment Form'!$G771=\"\"),\"\",IF('Enrollment Form'!$B771<>\"Subscriber\",\"-\",IF(COUNTIF('Enrollment Form'!$AS771:$AT771,\"Yes\")=2,\"N\",\"Y\")))","v":""},{"$f":"IF(OR('Enrollment Form'!$CC771=\"\",'Enrollment Form'!$CC771=\"No\"),\"-\",IF(AND('Enrollment Form'!$CC771=\"Yes\",'Enrollment Form'!$CD771=\"\"),\"N\",\"Y\"))","v":"-"},{"$f":"IF(OR('Enrollment Form'!$CE771=\"\",'Enrollment Form'!$CE771=\"No\"),\"-\",IF(AND('Enrollment Form'!$CE771=\"Yes\",'Enrollment Form'!$CF771=\"\"),\"N\",\"Y\"))","v":"-"},{"$f":"IF(OR('Enrollment Form'!$CG771=\"\",'Enrollment Form'!$CG771=\"No\"),\"-\",IF(AND('Enrollment Form'!$CG771=\"Yes\",'Enrollment Form'!$CH771=\"\"),\"N\",\"Y\"))","v":"-"},{"$f":"IF(OR('Enrollment Form'!$CG771=\"\",'Enrollment Form'!$CG771=\"No\"),\"-\",IF(AND('Enrollment Form'!$CG771=\"Yes\",'Enrollment Form'!$CI771=\"\"),\"N\",\"Y\"))","v":"-"},{"$f":"IF('Enrollment Form'!B771<>\"Subscriber\",\"-\",IF(AND('Enrollment Form'!B771=\"Subscriber\",'Enrollment Form'!C771=\"Enroll\",'Enrollment Form'!AA771=\"\"),\"N\",\"Y\"))","v":"-"},{"$f":"IF(OR('Enrollment Form'!B771=\"Subscriber\",'Enrollment Form'!B771=\"\"),\"-\",IF('Enrollment Form'!BI771=\"\",\"N\",\"Y\"))","v":"-"},{"$f":"IF('Enrollment Form'!B771<>\"Subscriber\",\"-\",IF(AND('Enrollment Form'!B771=\"Subscriber\",'Enrollment Form'!G771=\"\"),\"N\",\"Y\"))","v":"-"},{"$f":"IF('Enrollment Form'!A771=\"\",\"\",IF('Enrollment Form'!B771=\"Subscriber\",\"-\",IF(AND('Enrollment Form'!B771<>\"Subscriber\",'Enrollment Form'!G771='Enrollment Form'!H771),\"N\",\"Y\")))","v":""},0]
[772,{"$f":"IF('Enrollment Form'!$A772<>\"\",\"Y\",\"N\")","v":"N"},{"$f":"IF(AND('Enrollment Form'!$B772=\"\",'Enrollment Form'!$C772<>\"\"),\"N\",IF($B765=\"N\",\"\",\"Y\"))","v":""},{"$f":"IF(OR($B765=\"N\",'Enrollment Form'!G772=\"\"),\"\",IF('Enrollment Form'!$B772<>\"Subscriber\",\"\",IF('Enrollment Form'!$G772='Enrollment Form'!$H772,\"Y\",\"N\")))","v":""},{"$f":"IF($B765=\"N\",\"\",IF(AND(COUNTIFS('Enrollment Form'!$H$11:$H$1000,'Enrollment Form'!$H772,'Enrollment Form'!$B$11:$B$1000,'Enrollment Form'!$B772)>1,'Enrollment Form'!$H772<>\"\"),\"N\",\"Y\"))","v":""},{"$f":"IF($B765=\"N\",\"\",IF(LEN('Enrollment Form'!$Y772)=0,\"\",IF(LEN('Enrollment Form'!$Y772)<>5,\"N\",\"Y\")))","v":""},{"$f":"IF($B765=\"N\",\"\",IF(LEN('Enrollment Form'!$AD772=0),\"\",IF(LEN('Enrollment Form'!$AD772)<>5,\"N\",\"Y\")))","v":""},{"$f":"IF($B765=\"N\",\"\",IF(LEN('Enrollment Form'!$BL772=0),\"\",IF(LEN('Enrollment Form'!$BL772)<>5,\"N\",\"Y\")))","v":""},{"$f":"IF($B765=\"N\",\"\",IF(LEN('Enrollment Form'!$AE772)=0,\"\",IF(LEN('Enrollment Form'!$AE772)<>10,\"N\",\"Y\")))","v":""},{"$f":"IF($B765=\"N\",\"\",IF(LEN('Enrollment Form'!$AF772)=0,\"\",IF(LEN('Enrollment Form'!$AF772)<>10,\"N\",\"Y\")))","v":""},{"$f":"IF('Enrollment Form'!$O772<>\"Graded\",\"-\",IF(AND('Enrollment Form'!$O772=\"Graded\",'Enrollment Form'!$AO772<>\"\"),\"Y\",\"N\"))","v":"-"},{"$f":"IF($B765=\"N\",\"\",IF(OR('Enrollment Form'!$B772<>\"Subscriber\",'Enrollment Form'!$C772=\"ROC\"),\"-\",IF(AND('Enrollment Form'!$B772=\"Subscriber\",'Enrollment Form'!$C772=\"Enroll\",'Enrollment Form'!$AJ772<>\"\"),\"Y\",\"N\")))","v":""},{"$f":"IF($B765=\"N\",\"\",IF(OR('Enrollment Form'!$B772<>\"Subscriber\",'Enrollment Form'!$C772=\"ROC\"),\"-\",IF(AND('Enrollment Form'!$B772=\"Subscriber\",'Enrollment Form'!$C772=\"Enroll\",'Enrollment Form'!$AK772<>\"\"),\"Y\",\"N\")))","v":""},{"$f":"IF($B765=\"N\",\"\",IF(OR('Enrollment Form'!$B772<>\"Subscriber\",'Enrollment Form'!$C772=\"ROC\"),\"-\",IF(AND('Enrollment Form'!$B772=\"Subscriber\",'Enrollment Form'!$C772=\"Enroll\",'Enrollment Form'!$AL772<>\"\"),\"Y\",\"N\")))","v":""},{"$f":"IF($B765=\"N\",\"\",IF(OR('Enrollment Form'!$B772<>\"Subscriber\",'Enrollment Form'!$C772=\"ROC\"),\"-\",IF(AND('Enrollment Form'!$B772=\"Subscriber\",'Enrollment Form'!$C772=\"Enroll\",'Enrollment Form'!$AM772<>\"\"),\"Y\",\"N\")))","v":""},{"$f":"IF($B765=\"N\",\"\",IF(OR('Enrollment Form'!$B772<>\"Subscriber\",'Enrollment Form'!$C772=\"ROC\"),\"-\",IF(AND('Enrollment Form'!$B772=\"Subscriber\",'Enrollment Form'!$C772=\"Enroll\",'Enrollment Form'!$AN772<>\"\"),\"Y\",\"N\")))","v":""},{"$f":"IF($B765=\"N\",\"\",IF(OR('Enrollment Form'!$B772<>\"Subscriber\",'Enrollment Form'!$C772=\"ROC\"),\"-\",IF(AND('Enrollment Form'!$B772=\"Subscriber\",'Enrollment Form'!$C772=\"Enroll\",'Enrollment Form'!$AP772<>\"\"),\"Y\",\"N\")))","v":""},{"$f":"IF($B765=\"N\",\"\",IF($Q765=\"-\",\"-\",IF(AND($Q765=\"Y\",'Enrollment Form'!$AP772=\"No\"),\"-\",IF(AND($Q765=\"Y\",'Enrollment Form'!$AP772=\"Yes\",'Enrollment Form'!$AQ772<>\"\"),\"Y\",\"N\"))))","v":""},{"$f":"IF($B765=\"N\",\"\",IF(OR('Enrollment Form'!$B772<>\"Subscriber\",'Enrollment Form'!$C772=\"ROC\"),\"-\",IF(AND('Enrollment Form'!$B772=\"Subscriber\",'Enrollment Form'!$C772=\"Enroll\",'Enrollment Form'!$CO772<>\"\"),\"Y\",\"N\")))","v":""},{"$f":"IF($B765=\"N\",\"\",IF($S765=\"-\",\"-\",IF(AND($S765=\"Y\",'Enrollment Form'!$CO772=\"No\"),\"-\",IF(AND($S765=\"Y\",'Enrollment Form'!$CO772=\"Yes\",'Enrollment Form'!$CP772<>\"\"),\"Y\",\"N\"))))","v":""},{"$f":"IF(OR('Enrollment Form'!$AV772=\"Yes\",'Enrollment Form'!$AV772=\"\"),\"-\",IF(AND('Enrollment Form'!$AV772=\"No\",ISERROR(FIND(\"HMO\",VLOOKUP('Enrollment Form'!G772,'Enrollment Form'!H$11:J$1000,3,FALSE),1))=FALSE,COUNTA('Enrollment Form'!$AW772:$AZ772)=4),\"Y\",\"N\"))","v":"-"},{"$f":"IF($B765=\"N\",\"\",IF('Enrollment Form'!$B772=\"Subscriber\",\"-\",IF(COUNTA('Enrollment Form'!$BE772,'Enrollment Form'!$BG772)=2,\"Y\",\"N\")))","v":""},{"$f":"IF($B765=\"N\",\"\",IF(OR('Enrollment Form'!$AU772=\"\",'Enrollment Form'!$AU772=\"No\"),\"-\",IF(AND('Enrollment Form'!$AU772=\"Yes\",COUNTA('Enrollment Form'!$CK772)=1),\"Y\",\"N\")))","v":""},{"$f":"IF(OR('Enrollment Form'!$CK772=\"\",'Enrollment Form'!$CK772=\"No\"),\"-\",IF(COUNTA('Enrollment Form'!$CM772:$CN772)=2,\"Y\",\"N\"))","v":"-"},{"$f":"IF($B765=\"N\",\"\",IF(COUNTIF('Enrollment Form'!$CZ772:$DO772,\"Other\")=COUNTA('Enrollment Form'!$DF772,'Enrollment Form'!$DA772,'Enrollment Form'!$DK772,'Enrollment Form'!$DP772),\"Y\",\"N\"))","v":""},{"$f":"IF($B765=\"N\",\"\",IF(OR('Enrollment Form'!B772<>\"Subscriber\",'Enrollment Form'!C772=\"ROC\",COUNTIF('Enrollment Form'!AS772:AT772,\"Yes\")>=1),\"-\",IF(AND('Enrollment Form'!C772=\"Enroll\",COUNTIF('Enrollment Form'!AS772:AT772,\"No\")=2,'Enrollment Form'!AU772=\"\"),\"N\",\"Y\")))","v":""},{"$f":"IF(OR(B765=\"N\",'Enrollment Form'!B772<>\"Subscriber\",'Enrollment Form'!C772=\"ROC\",'Enrollment Form'!O772<>\"Multiple of Salary\"),\"-\",IF(COUNTA('Enrollment Form'!T772:U772)<2,\"N\",\"Y\"))","v":"-"},{"$f":"IF(B765=\"N\",\"\",IF(OR('Enrollment Form'!C772=\"ROC\",'Enrollment Form'!B772<>\"Subscriber\",'Enrollment Form'!O772=\"Waive\",'Enrollment Form'!O772=\"\"),\"-\",IF('Enrollment Form'!P772=\"\",\"N\",\"Y\")))","v":""},{"$f":"IF($B765=\"N\",\"\",IF(AND('Enrollment Form'!$C772=\"ROC\",'Enrollment Form'!$DS772<>\"\"),\"Y\",IF(AND('Enrollment Form'!$C772=\"ROC\",'Enrollment Form'!$DS772=\"\"),\"N\",IF(AND('Enrollment Form'!$C772=\"Enroll\",'Enrollment Form'!$B772=\"Subscriber\",'Enrollment Form'!$CQ772=\"No\",'Enrollment Form'!$DS772=\"\"),\"N\",IF(AND('Enrollment Form'!$C772=\"Enroll\",'Enrollment Form'!$B772=\"Subscriber\",'Enrollment Form'!$CQ772=\"Yes\"),\"-\",\"Y\")))))","v":""},{"$f":"IF($B765=\"N\",\"\",IF(AND('Enrollment Form'!$C772=\"ROC\",'Enrollment Form'!$DT772<>\"\"),\"Y\",IF(AND('Enrollment Form'!$C772=\"ROC\",'Enrollment Form'!$DT772=\"\"),\"N\",IF(AND('Enrollment Form'!$C772=\"Enroll\",'Enrollment Form'!$B772=\"Subscriber\",'Enrollment Form'!$CQ772=\"No\",'Enrollment Form'!$DT772=\"\"),\"N\",IF(AND('Enrollment Form'!$C772=\"Enroll\",'Enrollment Form'!$B772=\"Subscriber\",'Enrollment Form'!$CQ772=\"Yes\"),\"-\",\"Y\")))))","v":""},{"$f":"IF('Enrollment Form'!AH772=\"\",\"\",IF(ISERROR(SEARCH(\".\",'Enrollment Form'!AH772,SEARCH(\"@\",'Enrollment Form'!AH772))),\"N\",\"Y\"))","v":""},{"$f":"IF(OR($B765=\"N\",'Enrollment Form'!$G772=\"\"),\"\",IF('Enrollment Form'!$B772<>\"Subscriber\",\"-\",IF(COUNTIF('Enrollment Form'!$AS772:$AT772,\"Yes\")=2,\"N\",\"Y\")))","v":""},{"$f":"IF(OR('Enrollment Form'!$CC772=\"\",'Enrollment Form'!$CC772=\"No\"),\"-\",IF(AND('Enrollment Form'!$CC772=\"Yes\",'Enrollment Form'!$CD772=\"\"),\"N\",\"Y\"))","v":"-"},{"$f":"IF(OR('Enrollment Form'!$CE772=\"\",'Enrollment Form'!$CE772=\"No\"),\"-\",IF(AND('Enrollment Form'!$CE772=\"Yes\",'Enrollment Form'!$CF772=\"\"),\"N\",\"Y\"))","v":"-"},{"$f":"IF(OR('Enrollment Form'!$CG772=\"\",'Enrollment Form'!$CG772=\"No\"),\"-\",IF(AND('Enrollment Form'!$CG772=\"Yes\",'Enrollment Form'!$CH772=\"\"),\"N\",\"Y\"))","v":"-"},{"$f":"IF(OR('Enrollment Form'!$CG772=\"\",'Enrollment Form'!$CG772=\"No\"),\"-\",IF(AND('Enrollment Form'!$CG772=\"Yes\",'Enrollment Form'!$CI772=\"\"),\"N\",\"Y\"))","v":"-"},{"$f":"IF('Enrollment Form'!B772<>\"Subscriber\",\"-\",IF(AND('Enrollment Form'!B772=\"Subscriber\",'Enrollment Form'!C772=\"Enroll\",'Enrollment Form'!AA772=\"\"),\"N\",\"Y\"))","v":"-"},{"$f":"IF(OR('Enrollment Form'!B772=\"Subscriber\",'Enrollment Form'!B772=\"\"),\"-\",IF('Enrollment Form'!BI772=\"\",\"N\",\"Y\"))","v":"-"},{"$f":"IF('Enrollment Form'!B772<>\"Subscriber\",\"-\",IF(AND('Enrollment Form'!B772=\"Subscriber\",'Enrollment Form'!G772=\"\"),\"N\",\"Y\"))","v":"-"},{"$f":"IF('Enrollment Form'!A772=\"\",\"\",IF('Enrollment Form'!B772=\"Subscriber\",\"-\",IF(AND('Enrollment Form'!B772<>\"Subscriber\",'Enrollment Form'!G772='Enrollment Form'!H772),\"N\",\"Y\")))","v":""},0]
[773,{"$f":"IF('Enrollment Form'!$A773<>\"\",\"Y\",\"N\")","v":"N"},{"$f":"IF(AND('Enrollment Form'!$B773=\"\",'Enrollment Form'!$C773<>\"\"),\"N\",IF($B766=\"N\",\"\",\"Y\"))","v":""},{"$f":"IF(OR($B766=\"N\",'Enrollment Form'!G773=\"\"),\"\",IF('Enrollment Form'!$B773<>\"Subscriber\",\"\",IF('Enrollment Form'!$G773='Enrollment Form'!$H773,\"Y\",\"N\")))","v":""},{"$f":"IF($B766=\"N\",\"\",IF(AND(COUNTIFS('Enrollment Form'!$H$11:$H$1000,'Enrollment Form'!$H773,'Enrollment Form'!$B$11:$B$1000,'Enrollment Form'!$B773)>1,'Enrollment Form'!$H773<>\"\"),\"N\",\"Y\"))","v":""},{"$f":"IF($B766=\"N\",\"\",IF(LEN('Enrollment Form'!$Y773)=0,\"\",IF(LEN('Enrollment Form'!$Y773)<>5,\"N\",\"Y\")))","v":""},{"$f":"IF($B766=\"N\",\"\",IF(LEN('Enrollment Form'!$AD773=0),\"\",IF(LEN('Enrollment Form'!$AD773)<>5,\"N\",\"Y\")))","v":""},{"$f":"IF($B766=\"N\",\"\",IF(LEN('Enrollment Form'!$BL773=0),\"\",IF(LEN('Enrollment Form'!$BL773)<>5,\"N\",\"Y\")))","v":""},{"$f":"IF($B766=\"N\",\"\",IF(LEN('Enrollment Form'!$AE773)=0,\"\",IF(LEN('Enrollment Form'!$AE773)<>10,\"N\",\"Y\")))","v":""},{"$f":"IF($B766=\"N\",\"\",IF(LEN('Enrollment Form'!$AF773)=0,\"\",IF(LEN('Enrollment Form'!$AF773)<>10,\"N\",\"Y\")))","v":""},{"$f":"IF('Enrollment Form'!$O773<>\"Graded\",\"-\",IF(AND('Enrollment Form'!$O773=\"Graded\",'Enrollment Form'!$AO773<>\"\"),\"Y\",\"N\"))","v":"-"},{"$f":"IF($B766=\"N\",\"\",IF(OR('Enrollment Form'!$B773<>\"Subscriber\",'Enrollment Form'!$C773=\"ROC\"),\"-\",IF(AND('Enrollment Form'!$B773=\"Subscriber\",'Enrollment Form'!$C773=\"Enroll\",'Enrollment Form'!$AJ773<>\"\"),\"Y\",\"N\")))","v":""},{"$f":"IF($B766=\"N\",\"\",IF(OR('Enrollment Form'!$B773<>\"Subscriber\",'Enrollment Form'!$C773=\"ROC\"),\"-\",IF(AND('Enrollment Form'!$B773=\"Subscriber\",'Enrollment Form'!$C773=\"Enroll\",'Enrollment Form'!$AK773<>\"\"),\"Y\",\"N\")))","v":""},{"$f":"IF($B766=\"N\",\"\",IF(OR('Enrollment Form'!$B773<>\"Subscriber\",'Enrollment Form'!$C773=\"ROC\"),\"-\",IF(AND('Enrollment Form'!$B773=\"Subscriber\",'Enrollment Form'!$C773=\"Enroll\",'Enrollment Form'!$AL773<>\"\"),\"Y\",\"N\")))","v":""},{"$f":"IF($B766=\"N\",\"\",IF(OR('Enrollment Form'!$B773<>\"Subscriber\",'Enrollment Form'!$C773=\"ROC\"),\"-\",IF(AND('Enrollment Form'!$B773=\"Subscriber\",'Enrollment Form'!$C773=\"Enroll\",'Enrollment Form'!$AM773<>\"\"),\"Y\",\"N\")))","v":""},{"$f":"IF($B766=\"N\",\"\",IF(OR('Enrollment Form'!$B773<>\"Subscriber\",'Enrollment Form'!$C773=\"ROC\"),\"-\",IF(AND('Enrollment Form'!$B773=\"Subscriber\",'Enrollment Form'!$C773=\"Enroll\",'Enrollment Form'!$AN773<>\"\"),\"Y\",\"N\")))","v":""},{"$f":"IF($B766=\"N\",\"\",IF(OR('Enrollment Form'!$B773<>\"Subscriber\",'Enrollment Form'!$C773=\"ROC\"),\"-\",IF(AND('Enrollment Form'!$B773=\"Subscriber\",'Enrollment Form'!$C773=\"Enroll\",'Enrollment Form'!$AP773<>\"\"),\"Y\",\"N\")))","v":""},{"$f":"IF($B766=\"N\",\"\",IF($Q766=\"-\",\"-\",IF(AND($Q766=\"Y\",'Enrollment Form'!$AP773=\"No\"),\"-\",IF(AND($Q766=\"Y\",'Enrollment Form'!$AP773=\"Yes\",'Enrollment Form'!$AQ773<>\"\"),\"Y\",\"N\"))))","v":""},{"$f":"IF($B766=\"N\",\"\",IF(OR('Enrollment Form'!$B773<>\"Subscriber\",'Enrollment Form'!$C773=\"ROC\"),\"-\",IF(AND('Enrollment Form'!$B773=\"Subscriber\",'Enrollment Form'!$C773=\"Enroll\",'Enrollment Form'!$CO773<>\"\"),\"Y\",\"N\")))","v":""},{"$f":"IF($B766=\"N\",\"\",IF($S766=\"-\",\"-\",IF(AND($S766=\"Y\",'Enrollment Form'!$CO773=\"No\"),\"-\",IF(AND($S766=\"Y\",'Enrollment Form'!$CO773=\"Yes\",'Enrollment Form'!$CP773<>\"\"),\"Y\",\"N\"))))","v":""},{"$f":"IF(OR('Enrollment Form'!$AV773=\"Yes\",'Enrollment Form'!$AV773=\"\"),\"-\",IF(AND('Enrollment Form'!$AV773=\"No\",ISERROR(FIND(\"HMO\",VLOOKUP('Enrollment Form'!G773,'Enrollment Form'!H$11:J$1000,3,FALSE),1))=FALSE,COUNTA('Enrollment Form'!$AW773:$AZ773)=4),\"Y\",\"N\"))","v":"-"},{"$f":"IF($B766=\"N\",\"\",IF('Enrollment Form'!$B773=\"Subscriber\",\"-\",IF(COUNTA('Enrollment Form'!$BE773,'Enrollment Form'!$BG773)=2,\"Y\",\"N\")))","v":""},{"$f":"IF($B766=\"N\",\"\",IF(OR('Enrollment Form'!$AU773=\"\",'Enrollment Form'!$AU773=\"No\"),\"-\",IF(AND('Enrollment Form'!$AU773=\"Yes\",COUNTA('Enrollment Form'!$CK773)=1),\"Y\",\"N\")))","v":""},{"$f":"IF(OR('Enrollment Form'!$CK773=\"\",'Enrollment Form'!$CK773=\"No\"),\"-\",IF(COUNTA('Enrollment Form'!$CM773:$CN773)=2,\"Y\",\"N\"))","v":"-"},{"$f":"IF($B766=\"N\",\"\",IF(COUNTIF('Enrollment Form'!$CZ773:$DO773,\"Other\")=COUNTA('Enrollment Form'!$DF773,'Enrollment Form'!$DA773,'Enrollment Form'!$DK773,'Enrollment Form'!$DP773),\"Y\",\"N\"))","v":""},{"$f":"IF($B766=\"N\",\"\",IF(OR('Enrollment Form'!B773<>\"Subscriber\",'Enrollment Form'!C773=\"ROC\",COUNTIF('Enrollment Form'!AS773:AT773,\"Yes\")>=1),\"-\",IF(AND('Enrollment Form'!C773=\"Enroll\",COUNTIF('Enrollment Form'!AS773:AT773,\"No\")=2,'Enrollment Form'!AU773=\"\"),\"N\",\"Y\")))","v":""},{"$f":"IF(OR(B766=\"N\",'Enrollment Form'!B773<>\"Subscriber\",'Enrollment Form'!C773=\"ROC\",'Enrollment Form'!O773<>\"Multiple of Salary\"),\"-\",IF(COUNTA('Enrollment Form'!T773:U773)<2,\"N\",\"Y\"))","v":"-"},{"$f":"IF(B766=\"N\",\"\",IF(OR('Enrollment Form'!C773=\"ROC\",'Enrollment Form'!B773<>\"Subscriber\",'Enrollment Form'!O773=\"Waive\",'Enrollment Form'!O773=\"\"),\"-\",IF('Enrollment Form'!P773=\"\",\"N\",\"Y\")))","v":""},{"$f":"IF($B766=\"N\",\"\",IF(AND('Enrollment Form'!$C773=\"ROC\",'Enrollment Form'!$DS773<>\"\"),\"Y\",IF(AND('Enrollment Form'!$C773=\"ROC\",'Enrollment Form'!$DS773=\"\"),\"N\",IF(AND('Enrollment Form'!$C773=\"Enroll\",'Enrollment Form'!$B773=\"Subscriber\",'Enrollment Form'!$CQ773=\"No\",'Enrollment Form'!$DS773=\"\"),\"N\",IF(AND('Enrollment Form'!$C773=\"Enroll\",'Enrollment Form'!$B773=\"Subscriber\",'Enrollment Form'!$CQ773=\"Yes\"),\"-\",\"Y\")))))","v":""},{"$f":"IF($B766=\"N\",\"\",IF(AND('Enrollment Form'!$C773=\"ROC\",'Enrollment Form'!$DT773<>\"\"),\"Y\",IF(AND('Enrollment Form'!$C773=\"ROC\",'Enrollment Form'!$DT773=\"\"),\"N\",IF(AND('Enrollment Form'!$C773=\"Enroll\",'Enrollment Form'!$B773=\"Subscriber\",'Enrollment Form'!$CQ773=\"No\",'Enrollment Form'!$DT773=\"\"),\"N\",IF(AND('Enrollment Form'!$C773=\"Enroll\",'Enrollment Form'!$B773=\"Subscriber\",'Enrollment Form'!$CQ773=\"Yes\"),\"-\",\"Y\")))))","v":""},{"$f":"IF('Enrollment Form'!AH773=\"\",\"\",IF(ISERROR(SEARCH(\".\",'Enrollment Form'!AH773,SEARCH(\"@\",'Enrollment Form'!AH773))),\"N\",\"Y\"))","v":""},{"$f":"IF(OR($B766=\"N\",'Enrollment Form'!$G773=\"\"),\"\",IF('Enrollment Form'!$B773<>\"Subscriber\",\"-\",IF(COUNTIF('Enrollment Form'!$AS773:$AT773,\"Yes\")=2,\"N\",\"Y\")))","v":""},{"$f":"IF(OR('Enrollment Form'!$CC773=\"\",'Enrollment Form'!$CC773=\"No\"),\"-\",IF(AND('Enrollment Form'!$CC773=\"Yes\",'Enrollment Form'!$CD773=\"\"),\"N\",\"Y\"))","v":"-"},{"$f":"IF(OR('Enrollment Form'!$CE773=\"\",'Enrollment Form'!$CE773=\"No\"),\"-\",IF(AND('Enrollment Form'!$CE773=\"Yes\",'Enrollment Form'!$CF773=\"\"),\"N\",\"Y\"))","v":"-"},{"$f":"IF(OR('Enrollment Form'!$CG773=\"\",'Enrollment Form'!$CG773=\"No\"),\"-\",IF(AND('Enrollment Form'!$CG773=\"Yes\",'Enrollment Form'!$CH773=\"\"),\"N\",\"Y\"))","v":"-"},{"$f":"IF(OR('Enrollment Form'!$CG773=\"\",'Enrollment Form'!$CG773=\"No\"),\"-\",IF(AND('Enrollment Form'!$CG773=\"Yes\",'Enrollment Form'!$CI773=\"\"),\"N\",\"Y\"))","v":"-"},{"$f":"IF('Enrollment Form'!B773<>\"Subscriber\",\"-\",IF(AND('Enrollment Form'!B773=\"Subscriber\",'Enrollment Form'!C773=\"Enroll\",'Enrollment Form'!AA773=\"\"),\"N\",\"Y\"))","v":"-"},{"$f":"IF(OR('Enrollment Form'!B773=\"Subscriber\",'Enrollment Form'!B773=\"\"),\"-\",IF('Enrollment Form'!BI773=\"\",\"N\",\"Y\"))","v":"-"},{"$f":"IF('Enrollment Form'!B773<>\"Subscriber\",\"-\",IF(AND('Enrollment Form'!B773=\"Subscriber\",'Enrollment Form'!G773=\"\"),\"N\",\"Y\"))","v":"-"},{"$f":"IF('Enrollment Form'!A773=\"\",\"\",IF('Enrollment Form'!B773=\"Subscriber\",\"-\",IF(AND('Enrollment Form'!B773<>\"Subscriber\",'Enrollment Form'!G773='Enrollment Form'!H773),\"N\",\"Y\")))","v":""},0]
[774,{"$f":"IF('Enrollment Form'!$A774<>\"\",\"Y\",\"N\")","v":"N"},{"$f":"IF(AND('Enrollment Form'!$B774=\"\",'Enrollment Form'!$C774<>\"\"),\"N\",IF($B767=\"N\",\"\",\"Y\"))","v":""},{"$f":"IF(OR($B767=\"N\",'Enrollment Form'!G774=\"\"),\"\",IF('Enrollment Form'!$B774<>\"Subscriber\",\"\",IF('Enrollment Form'!$G774='Enrollment Form'!$H774,\"Y\",\"N\")))","v":""},{"$f":"IF($B767=\"N\",\"\",IF(AND(COUNTIFS('Enrollment Form'!$H$11:$H$1000,'Enrollment Form'!$H774,'Enrollment Form'!$B$11:$B$1000,'Enrollment Form'!$B774)>1,'Enrollment Form'!$H774<>\"\"),\"N\",\"Y\"))","v":""},{"$f":"IF($B767=\"N\",\"\",IF(LEN('Enrollment Form'!$Y774)=0,\"\",IF(LEN('Enrollment Form'!$Y774)<>5,\"N\",\"Y\")))","v":""},{"$f":"IF($B767=\"N\",\"\",IF(LEN('Enrollment Form'!$AD774=0),\"\",IF(LEN('Enrollment Form'!$AD774)<>5,\"N\",\"Y\")))","v":""},{"$f":"IF($B767=\"N\",\"\",IF(LEN('Enrollment Form'!$BL774=0),\"\",IF(LEN('Enrollment Form'!$BL774)<>5,\"N\",\"Y\")))","v":""},{"$f":"IF($B767=\"N\",\"\",IF(LEN('Enrollment Form'!$AE774)=0,\"\",IF(LEN('Enrollment Form'!$AE774)<>10,\"N\",\"Y\")))","v":""},{"$f":"IF($B767=\"N\",\"\",IF(LEN('Enrollment Form'!$AF774)=0,\"\",IF(LEN('Enrollment Form'!$AF774)<>10,\"N\",\"Y\")))","v":""},{"$f":"IF('Enrollment Form'!$O774<>\"Graded\",\"-\",IF(AND('Enrollment Form'!$O774=\"Graded\",'Enrollment Form'!$AO774<>\"\"),\"Y\",\"N\"))","v":"-"},{"$f":"IF($B767=\"N\",\"\",IF(OR('Enrollment Form'!$B774<>\"Subscriber\",'Enrollment Form'!$C774=\"ROC\"),\"-\",IF(AND('Enrollment Form'!$B774=\"Subscriber\",'Enrollment Form'!$C774=\"Enroll\",'Enrollment Form'!$AJ774<>\"\"),\"Y\",\"N\")))","v":""},{"$f":"IF($B767=\"N\",\"\",IF(OR('Enrollment Form'!$B774<>\"Subscriber\",'Enrollment Form'!$C774=\"ROC\"),\"-\",IF(AND('Enrollment Form'!$B774=\"Subscriber\",'Enrollment Form'!$C774=\"Enroll\",'Enrollment Form'!$AK774<>\"\"),\"Y\",\"N\")))","v":""},{"$f":"IF($B767=\"N\",\"\",IF(OR('Enrollment Form'!$B774<>\"Subscriber\",'Enrollment Form'!$C774=\"ROC\"),\"-\",IF(AND('Enrollment Form'!$B774=\"Subscriber\",'Enrollment Form'!$C774=\"Enroll\",'Enrollment Form'!$AL774<>\"\"),\"Y\",\"N\")))","v":""},{"$f":"IF($B767=\"N\",\"\",IF(OR('Enrollment Form'!$B774<>\"Subscriber\",'Enrollment Form'!$C774=\"ROC\"),\"-\",IF(AND('Enrollment Form'!$B774=\"Subscriber\",'Enrollment Form'!$C774=\"Enroll\",'Enrollment Form'!$AM774<>\"\"),\"Y\",\"N\")))","v":""},{"$f":"IF($B767=\"N\",\"\",IF(OR('Enrollment Form'!$B774<>\"Subscriber\",'Enrollment Form'!$C774=\"ROC\"),\"-\",IF(AND('Enrollment Form'!$B774=\"Subscriber\",'Enrollment Form'!$C774=\"Enroll\",'Enrollment Form'!$AN774<>\"\"),\"Y\",\"N\")))","v":""},{"$f":"IF($B767=\"N\",\"\",IF(OR('Enrollment Form'!$B774<>\"Subscriber\",'Enrollment Form'!$C774=\"ROC\"),\"-\",IF(AND('Enrollment Form'!$B774=\"Subscriber\",'Enrollment Form'!$C774=\"Enroll\",'Enrollment Form'!$AP774<>\"\"),\"Y\",\"N\")))","v":""},{"$f":"IF($B767=\"N\",\"\",IF($Q767=\"-\",\"-\",IF(AND($Q767=\"Y\",'Enrollment Form'!$AP774=\"No\"),\"-\",IF(AND($Q767=\"Y\",'Enrollment Form'!$AP774=\"Yes\",'Enrollment Form'!$AQ774<>\"\"),\"Y\",\"N\"))))","v":""},{"$f":"IF($B767=\"N\",\"\",IF(OR('Enrollment Form'!$B774<>\"Subscriber\",'Enrollment Form'!$C774=\"ROC\"),\"-\",IF(AND('Enrollment Form'!$B774=\"Subscriber\",'Enrollment Form'!$C774=\"Enroll\",'Enrollment Form'!$CO774<>\"\"),\"Y\",\"N\")))","v":""},{"$f":"IF($B767=\"N\",\"\",IF($S767=\"-\",\"-\",IF(AND($S767=\"Y\",'Enrollment Form'!$CO774=\"No\"),\"-\",IF(AND($S767=\"Y\",'Enrollment Form'!$CO774=\"Yes\",'Enrollment Form'!$CP774<>\"\"),\"Y\",\"N\"))))","v":""},{"$f":"IF(OR('Enrollment Form'!$AV774=\"Yes\",'Enrollment Form'!$AV774=\"\"),\"-\",IF(AND('Enrollment Form'!$AV774=\"No\",ISERROR(FIND(\"HMO\",VLOOKUP('Enrollment Form'!G774,'Enrollment Form'!H$11:J$1000,3,FALSE),1))=FALSE,COUNTA('Enrollment Form'!$AW774:$AZ774)=4),\"Y\",\"N\"))","v":"-"},{"$f":"IF($B767=\"N\",\"\",IF('Enrollment Form'!$B774=\"Subscriber\",\"-\",IF(COUNTA('Enrollment Form'!$BE774,'Enrollment Form'!$BG774)=2,\"Y\",\"N\")))","v":""},{"$f":"IF($B767=\"N\",\"\",IF(OR('Enrollment Form'!$AU774=\"\",'Enrollment Form'!$AU774=\"No\"),\"-\",IF(AND('Enrollment Form'!$AU774=\"Yes\",COUNTA('Enrollment Form'!$CK774)=1),\"Y\",\"N\")))","v":""},{"$f":"IF(OR('Enrollment Form'!$CK774=\"\",'Enrollment Form'!$CK774=\"No\"),\"-\",IF(COUNTA('Enrollment Form'!$CM774:$CN774)=2,\"Y\",\"N\"))","v":"-"},{"$f":"IF($B767=\"N\",\"\",IF(COUNTIF('Enrollment Form'!$CZ774:$DO774,\"Other\")=COUNTA('Enrollment Form'!$DF774,'Enrollment Form'!$DA774,'Enrollment Form'!$DK774,'Enrollment Form'!$DP774),\"Y\",\"N\"))","v":""},{"$f":"IF($B767=\"N\",\"\",IF(OR('Enrollment Form'!B774<>\"Subscriber\",'Enrollment Form'!C774=\"ROC\",COUNTIF('Enrollment Form'!AS774:AT774,\"Yes\")>=1),\"-\",IF(AND('Enrollment Form'!C774=\"Enroll\",COUNTIF('Enrollment Form'!AS774:AT774,\"No\")=2,'Enrollment Form'!AU774=\"\"),\"N\",\"Y\")))","v":""},{"$f":"IF(OR(B767=\"N\",'Enrollment Form'!B774<>\"Subscriber\",'Enrollment Form'!C774=\"ROC\",'Enrollment Form'!O774<>\"Multiple of Salary\"),\"-\",IF(COUNTA('Enrollment Form'!T774:U774)<2,\"N\",\"Y\"))","v":"-"},{"$f":"IF(B767=\"N\",\"\",IF(OR('Enrollment Form'!C774=\"ROC\",'Enrollment Form'!B774<>\"Subscriber\",'Enrollment Form'!O774=\"Waive\",'Enrollment Form'!O774=\"\"),\"-\",IF('Enrollment Form'!P774=\"\",\"N\",\"Y\")))","v":""},{"$f":"IF($B767=\"N\",\"\",IF(AND('Enrollment Form'!$C774=\"ROC\",'Enrollment Form'!$DS774<>\"\"),\"Y\",IF(AND('Enrollment Form'!$C774=\"ROC\",'Enrollment Form'!$DS774=\"\"),\"N\",IF(AND('Enrollment Form'!$C774=\"Enroll\",'Enrollment Form'!$B774=\"Subscriber\",'Enrollment Form'!$CQ774=\"No\",'Enrollment Form'!$DS774=\"\"),\"N\",IF(AND('Enrollment Form'!$C774=\"Enroll\",'Enrollment Form'!$B774=\"Subscriber\",'Enrollment Form'!$CQ774=\"Yes\"),\"-\",\"Y\")))))","v":""},{"$f":"IF($B767=\"N\",\"\",IF(AND('Enrollment Form'!$C774=\"ROC\",'Enrollment Form'!$DT774<>\"\"),\"Y\",IF(AND('Enrollment Form'!$C774=\"ROC\",'Enrollment Form'!$DT774=\"\"),\"N\",IF(AND('Enrollment Form'!$C774=\"Enroll\",'Enrollment Form'!$B774=\"Subscriber\",'Enrollment Form'!$CQ774=\"No\",'Enrollment Form'!$DT774=\"\"),\"N\",IF(AND('Enrollment Form'!$C774=\"Enroll\",'Enrollment Form'!$B774=\"Subscriber\",'Enrollment Form'!$CQ774=\"Yes\"),\"-\",\"Y\")))))","v":""},{"$f":"IF('Enrollment Form'!AH774=\"\",\"\",IF(ISERROR(SEARCH(\".\",'Enrollment Form'!AH774,SEARCH(\"@\",'Enrollment Form'!AH774))),\"N\",\"Y\"))","v":""},{"$f":"IF(OR($B767=\"N\",'Enrollment Form'!$G774=\"\"),\"\",IF('Enrollment Form'!$B774<>\"Subscriber\",\"-\",IF(COUNTIF('Enrollment Form'!$AS774:$AT774,\"Yes\")=2,\"N\",\"Y\")))","v":""},{"$f":"IF(OR('Enrollment Form'!$CC774=\"\",'Enrollment Form'!$CC774=\"No\"),\"-\",IF(AND('Enrollment Form'!$CC774=\"Yes\",'Enrollment Form'!$CD774=\"\"),\"N\",\"Y\"))","v":"-"},{"$f":"IF(OR('Enrollment Form'!$CE774=\"\",'Enrollment Form'!$CE774=\"No\"),\"-\",IF(AND('Enrollment Form'!$CE774=\"Yes\",'Enrollment Form'!$CF774=\"\"),\"N\",\"Y\"))","v":"-"},{"$f":"IF(OR('Enrollment Form'!$CG774=\"\",'Enrollment Form'!$CG774=\"No\"),\"-\",IF(AND('Enrollment Form'!$CG774=\"Yes\",'Enrollment Form'!$CH774=\"\"),\"N\",\"Y\"))","v":"-"},{"$f":"IF(OR('Enrollment Form'!$CG774=\"\",'Enrollment Form'!$CG774=\"No\"),\"-\",IF(AND('Enrollment Form'!$CG774=\"Yes\",'Enrollment Form'!$CI774=\"\"),\"N\",\"Y\"))","v":"-"},{"$f":"IF('Enrollment Form'!B774<>\"Subscriber\",\"-\",IF(AND('Enrollment Form'!B774=\"Subscriber\",'Enrollment Form'!C774=\"Enroll\",'Enrollment Form'!AA774=\"\"),\"N\",\"Y\"))","v":"-"},{"$f":"IF(OR('Enrollment Form'!B774=\"Subscriber\",'Enrollment Form'!B774=\"\"),\"-\",IF('Enrollment Form'!BI774=\"\",\"N\",\"Y\"))","v":"-"},{"$f":"IF('Enrollment Form'!B774<>\"Subscriber\",\"-\",IF(AND('Enrollment Form'!B774=\"Subscriber\",'Enrollment Form'!G774=\"\"),\"N\",\"Y\"))","v":"-"},{"$f":"IF('Enrollment Form'!A774=\"\",\"\",IF('Enrollment Form'!B774=\"Subscriber\",\"-\",IF(AND('Enrollment Form'!B774<>\"Subscriber\",'Enrollment Form'!G774='Enrollment Form'!H774),\"N\",\"Y\")))","v":""},0]
[775,{"$f":"IF('Enrollment Form'!$A775<>\"\",\"Y\",\"N\")","v":"N"},{"$f":"IF(AND('Enrollment Form'!$B775=\"\",'Enrollment Form'!$C775<>\"\"),\"N\",IF($B768=\"N\",\"\",\"Y\"))","v":""},{"$f":"IF(OR($B768=\"N\",'Enrollment Form'!G775=\"\"),\"\",IF('Enrollment Form'!$B775<>\"Subscriber\",\"\",IF('Enrollment Form'!$G775='Enrollment Form'!$H775,\"Y\",\"N\")))","v":""},{"$f":"IF($B768=\"N\",\"\",IF(AND(COUNTIFS('Enrollment Form'!$H$11:$H$1000,'Enrollment Form'!$H775,'Enrollment Form'!$B$11:$B$1000,'Enrollment Form'!$B775)>1,'Enrollment Form'!$H775<>\"\"),\"N\",\"Y\"))","v":""},{"$f":"IF($B768=\"N\",\"\",IF(LEN('Enrollment Form'!$Y775)=0,\"\",IF(LEN('Enrollment Form'!$Y775)<>5,\"N\",\"Y\")))","v":""},{"$f":"IF($B768=\"N\",\"\",IF(LEN('Enrollment Form'!$AD775=0),\"\",IF(LEN('Enrollment Form'!$AD775)<>5,\"N\",\"Y\")))","v":""},{"$f":"IF($B768=\"N\",\"\",IF(LEN('Enrollment Form'!$BL775=0),\"\",IF(LEN('Enrollment Form'!$BL775)<>5,\"N\",\"Y\")))","v":""},{"$f":"IF($B768=\"N\",\"\",IF(LEN('Enrollment Form'!$AE775)=0,\"\",IF(LEN('Enrollment Form'!$AE775)<>10,\"N\",\"Y\")))","v":""},{"$f":"IF($B768=\"N\",\"\",IF(LEN('Enrollment Form'!$AF775)=0,\"\",IF(LEN('Enrollment Form'!$AF775)<>10,\"N\",\"Y\")))","v":""},{"$f":"IF('Enrollment Form'!$O775<>\"Graded\",\"-\",IF(AND('Enrollment Form'!$O775=\"Graded\",'Enrollment Form'!$AO775<>\"\"),\"Y\",\"N\"))","v":"-"},{"$f":"IF($B768=\"N\",\"\",IF(OR('Enrollment Form'!$B775<>\"Subscriber\",'Enrollment Form'!$C775=\"ROC\"),\"-\",IF(AND('Enrollment Form'!$B775=\"Subscriber\",'Enrollment Form'!$C775=\"Enroll\",'Enrollment Form'!$AJ775<>\"\"),\"Y\",\"N\")))","v":""},{"$f":"IF($B768=\"N\",\"\",IF(OR('Enrollment Form'!$B775<>\"Subscriber\",'Enrollment Form'!$C775=\"ROC\"),\"-\",IF(AND('Enrollment Form'!$B775=\"Subscriber\",'Enrollment Form'!$C775=\"Enroll\",'Enrollment Form'!$AK775<>\"\"),\"Y\",\"N\")))","v":""},{"$f":"IF($B768=\"N\",\"\",IF(OR('Enrollment Form'!$B775<>\"Subscriber\",'Enrollment Form'!$C775=\"ROC\"),\"-\",IF(AND('Enrollment Form'!$B775=\"Subscriber\",'Enrollment Form'!$C775=\"Enroll\",'Enrollment Form'!$AL775<>\"\"),\"Y\",\"N\")))","v":""},{"$f":"IF($B768=\"N\",\"\",IF(OR('Enrollment Form'!$B775<>\"Subscriber\",'Enrollment Form'!$C775=\"ROC\"),\"-\",IF(AND('Enrollment Form'!$B775=\"Subscriber\",'Enrollment Form'!$C775=\"Enroll\",'Enrollment Form'!$AM775<>\"\"),\"Y\",\"N\")))","v":""},{"$f":"IF($B768=\"N\",\"\",IF(OR('Enrollment Form'!$B775<>\"Subscriber\",'Enrollment Form'!$C775=\"ROC\"),\"-\",IF(AND('Enrollment Form'!$B775=\"Subscriber\",'Enrollment Form'!$C775=\"Enroll\",'Enrollment Form'!$AN775<>\"\"),\"Y\",\"N\")))","v":""},{"$f":"IF($B768=\"N\",\"\",IF(OR('Enrollment Form'!$B775<>\"Subscriber\",'Enrollment Form'!$C775=\"ROC\"),\"-\",IF(AND('Enrollment Form'!$B775=\"Subscriber\",'Enrollment Form'!$C775=\"Enroll\",'Enrollment Form'!$AP775<>\"\"),\"Y\",\"N\")))","v":""},{"$f":"IF($B768=\"N\",\"\",IF($Q768=\"-\",\"-\",IF(AND($Q768=\"Y\",'Enrollment Form'!$AP775=\"No\"),\"-\",IF(AND($Q768=\"Y\",'Enrollment Form'!$AP775=\"Yes\",'Enrollment Form'!$AQ775<>\"\"),\"Y\",\"N\"))))","v":""},{"$f":"IF($B768=\"N\",\"\",IF(OR('Enrollment Form'!$B775<>\"Subscriber\",'Enrollment Form'!$C775=\"ROC\"),\"-\",IF(AND('Enrollment Form'!$B775=\"Subscriber\",'Enrollment Form'!$C775=\"Enroll\",'Enrollment Form'!$CO775<>\"\"),\"Y\",\"N\")))","v":""},{"$f":"IF($B768=\"N\",\"\",IF($S768=\"-\",\"-\",IF(AND($S768=\"Y\",'Enrollment Form'!$CO775=\"No\"),\"-\",IF(AND($S768=\"Y\",'Enrollment Form'!$CO775=\"Yes\",'Enrollment Form'!$CP775<>\"\"),\"Y\",\"N\"))))","v":""},{"$f":"IF(OR('Enrollment Form'!$AV775=\"Yes\",'Enrollment Form'!$AV775=\"\"),\"-\",IF(AND('Enrollment Form'!$AV775=\"No\",ISERROR(FIND(\"HMO\",VLOOKUP('Enrollment Form'!G775,'Enrollment Form'!H$11:J$1000,3,FALSE),1))=FALSE,COUNTA('Enrollment Form'!$AW775:$AZ775)=4),\"Y\",\"N\"))","v":"-"},{"$f":"IF($B768=\"N\",\"\",IF('Enrollment Form'!$B775=\"Subscriber\",\"-\",IF(COUNTA('Enrollment Form'!$BE775,'Enrollment Form'!$BG775)=2,\"Y\",\"N\")))","v":""},{"$f":"IF($B768=\"N\",\"\",IF(OR('Enrollment Form'!$AU775=\"\",'Enrollment Form'!$AU775=\"No\"),\"-\",IF(AND('Enrollment Form'!$AU775=\"Yes\",COUNTA('Enrollment Form'!$CK775)=1),\"Y\",\"N\")))","v":""},{"$f":"IF(OR('Enrollment Form'!$CK775=\"\",'Enrollment Form'!$CK775=\"No\"),\"-\",IF(COUNTA('Enrollment Form'!$CM775:$CN775)=2,\"Y\",\"N\"))","v":"-"},{"$f":"IF($B768=\"N\",\"\",IF(COUNTIF('Enrollment Form'!$CZ775:$DO775,\"Other\")=COUNTA('Enrollment Form'!$DF775,'Enrollment Form'!$DA775,'Enrollment Form'!$DK775,'Enrollment Form'!$DP775),\"Y\",\"N\"))","v":""},{"$f":"IF($B768=\"N\",\"\",IF(OR('Enrollment Form'!B775<>\"Subscriber\",'Enrollment Form'!C775=\"ROC\",COUNTIF('Enrollment Form'!AS775:AT775,\"Yes\")>=1),\"-\",IF(AND('Enrollment Form'!C775=\"Enroll\",COUNTIF('Enrollment Form'!AS775:AT775,\"No\")=2,'Enrollment Form'!AU775=\"\"),\"N\",\"Y\")))","v":""},{"$f":"IF(OR(B768=\"N\",'Enrollment Form'!B775<>\"Subscriber\",'Enrollment Form'!C775=\"ROC\",'Enrollment Form'!O775<>\"Multiple of Salary\"),\"-\",IF(COUNTA('Enrollment Form'!T775:U775)<2,\"N\",\"Y\"))","v":"-"},{"$f":"IF(B768=\"N\",\"\",IF(OR('Enrollment Form'!C775=\"ROC\",'Enrollment Form'!B775<>\"Subscriber\",'Enrollment Form'!O775=\"Waive\",'Enrollment Form'!O775=\"\"),\"-\",IF('Enrollment Form'!P775=\"\",\"N\",\"Y\")))","v":""},{"$f":"IF($B768=\"N\",\"\",IF(AND('Enrollment Form'!$C775=\"ROC\",'Enrollment Form'!$DS775<>\"\"),\"Y\",IF(AND('Enrollment Form'!$C775=\"ROC\",'Enrollment Form'!$DS775=\"\"),\"N\",IF(AND('Enrollment Form'!$C775=\"Enroll\",'Enrollment Form'!$B775=\"Subscriber\",'Enrollment Form'!$CQ775=\"No\",'Enrollment Form'!$DS775=\"\"),\"N\",IF(AND('Enrollment Form'!$C775=\"Enroll\",'Enrollment Form'!$B775=\"Subscriber\",'Enrollment Form'!$CQ775=\"Yes\"),\"-\",\"Y\")))))","v":""},{"$f":"IF($B768=\"N\",\"\",IF(AND('Enrollment Form'!$C775=\"ROC\",'Enrollment Form'!$DT775<>\"\"),\"Y\",IF(AND('Enrollment Form'!$C775=\"ROC\",'Enrollment Form'!$DT775=\"\"),\"N\",IF(AND('Enrollment Form'!$C775=\"Enroll\",'Enrollment Form'!$B775=\"Subscriber\",'Enrollment Form'!$CQ775=\"No\",'Enrollment Form'!$DT775=\"\"),\"N\",IF(AND('Enrollment Form'!$C775=\"Enroll\",'Enrollment Form'!$B775=\"Subscriber\",'Enrollment Form'!$CQ775=\"Yes\"),\"-\",\"Y\")))))","v":""},{"$f":"IF('Enrollment Form'!AH775=\"\",\"\",IF(ISERROR(SEARCH(\".\",'Enrollment Form'!AH775,SEARCH(\"@\",'Enrollment Form'!AH775))),\"N\",\"Y\"))","v":""},{"$f":"IF(OR($B768=\"N\",'Enrollment Form'!$G775=\"\"),\"\",IF('Enrollment Form'!$B775<>\"Subscriber\",\"-\",IF(COUNTIF('Enrollment Form'!$AS775:$AT775,\"Yes\")=2,\"N\",\"Y\")))","v":""},{"$f":"IF(OR('Enrollment Form'!$CC775=\"\",'Enrollment Form'!$CC775=\"No\"),\"-\",IF(AND('Enrollment Form'!$CC775=\"Yes\",'Enrollment Form'!$CD775=\"\"),\"N\",\"Y\"))","v":"-"},{"$f":"IF(OR('Enrollment Form'!$CE775=\"\",'Enrollment Form'!$CE775=\"No\"),\"-\",IF(AND('Enrollment Form'!$CE775=\"Yes\",'Enrollment Form'!$CF775=\"\"),\"N\",\"Y\"))","v":"-"},{"$f":"IF(OR('Enrollment Form'!$CG775=\"\",'Enrollment Form'!$CG775=\"No\"),\"-\",IF(AND('Enrollment Form'!$CG775=\"Yes\",'Enrollment Form'!$CH775=\"\"),\"N\",\"Y\"))","v":"-"},{"$f":"IF(OR('Enrollment Form'!$CG775=\"\",'Enrollment Form'!$CG775=\"No\"),\"-\",IF(AND('Enrollment Form'!$CG775=\"Yes\",'Enrollment Form'!$CI775=\"\"),\"N\",\"Y\"))","v":"-"},{"$f":"IF('Enrollment Form'!B775<>\"Subscriber\",\"-\",IF(AND('Enrollment Form'!B775=\"Subscriber\",'Enrollment Form'!C775=\"Enroll\",'Enrollment Form'!AA775=\"\"),\"N\",\"Y\"))","v":"-"},{"$f":"IF(OR('Enrollment Form'!B775=\"Subscriber\",'Enrollment Form'!B775=\"\"),\"-\",IF('Enrollment Form'!BI775=\"\",\"N\",\"Y\"))","v":"-"},{"$f":"IF('Enrollment Form'!B775<>\"Subscriber\",\"-\",IF(AND('Enrollment Form'!B775=\"Subscriber\",'Enrollment Form'!G775=\"\"),\"N\",\"Y\"))","v":"-"},{"$f":"IF('Enrollment Form'!A775=\"\",\"\",IF('Enrollment Form'!B775=\"Subscriber\",\"-\",IF(AND('Enrollment Form'!B775<>\"Subscriber\",'Enrollment Form'!G775='Enrollment Form'!H775),\"N\",\"Y\")))","v":""},0]
[776,{"$f":"IF('Enrollment Form'!$A776<>\"\",\"Y\",\"N\")","v":"N"},{"$f":"IF(AND('Enrollment Form'!$B776=\"\",'Enrollment Form'!$C776<>\"\"),\"N\",IF($B769=\"N\",\"\",\"Y\"))","v":""},{"$f":"IF(OR($B769=\"N\",'Enrollment Form'!G776=\"\"),\"\",IF('Enrollment Form'!$B776<>\"Subscriber\",\"\",IF('Enrollment Form'!$G776='Enrollment Form'!$H776,\"Y\",\"N\")))","v":""},{"$f":"IF($B769=\"N\",\"\",IF(AND(COUNTIFS('Enrollment Form'!$H$11:$H$1000,'Enrollment Form'!$H776,'Enrollment Form'!$B$11:$B$1000,'Enrollment Form'!$B776)>1,'Enrollment Form'!$H776<>\"\"),\"N\",\"Y\"))","v":""},{"$f":"IF($B769=\"N\",\"\",IF(LEN('Enrollment Form'!$Y776)=0,\"\",IF(LEN('Enrollment Form'!$Y776)<>5,\"N\",\"Y\")))","v":""},{"$f":"IF($B769=\"N\",\"\",IF(LEN('Enrollment Form'!$AD776=0),\"\",IF(LEN('Enrollment Form'!$AD776)<>5,\"N\",\"Y\")))","v":""},{"$f":"IF($B769=\"N\",\"\",IF(LEN('Enrollment Form'!$BL776=0),\"\",IF(LEN('Enrollment Form'!$BL776)<>5,\"N\",\"Y\")))","v":""},{"$f":"IF($B769=\"N\",\"\",IF(LEN('Enrollment Form'!$AE776)=0,\"\",IF(LEN('Enrollment Form'!$AE776)<>10,\"N\",\"Y\")))","v":""},{"$f":"IF($B769=\"N\",\"\",IF(LEN('Enrollment Form'!$AF776)=0,\"\",IF(LEN('Enrollment Form'!$AF776)<>10,\"N\",\"Y\")))","v":""},{"$f":"IF('Enrollment Form'!$O776<>\"Graded\",\"-\",IF(AND('Enrollment Form'!$O776=\"Graded\",'Enrollment Form'!$AO776<>\"\"),\"Y\",\"N\"))","v":"-"},{"$f":"IF($B769=\"N\",\"\",IF(OR('Enrollment Form'!$B776<>\"Subscriber\",'Enrollment Form'!$C776=\"ROC\"),\"-\",IF(AND('Enrollment Form'!$B776=\"Subscriber\",'Enrollment Form'!$C776=\"Enroll\",'Enrollment Form'!$AJ776<>\"\"),\"Y\",\"N\")))","v":""},{"$f":"IF($B769=\"N\",\"\",IF(OR('Enrollment Form'!$B776<>\"Subscriber\",'Enrollment Form'!$C776=\"ROC\"),\"-\",IF(AND('Enrollment Form'!$B776=\"Subscriber\",'Enrollment Form'!$C776=\"Enroll\",'Enrollment Form'!$AK776<>\"\"),\"Y\",\"N\")))","v":""},{"$f":"IF($B769=\"N\",\"\",IF(OR('Enrollment Form'!$B776<>\"Subscriber\",'Enrollment Form'!$C776=\"ROC\"),\"-\",IF(AND('Enrollment Form'!$B776=\"Subscriber\",'Enrollment Form'!$C776=\"Enroll\",'Enrollment Form'!$AL776<>\"\"),\"Y\",\"N\")))","v":""},{"$f":"IF($B769=\"N\",\"\",IF(OR('Enrollment Form'!$B776<>\"Subscriber\",'Enrollment Form'!$C776=\"ROC\"),\"-\",IF(AND('Enrollment Form'!$B776=\"Subscriber\",'Enrollment Form'!$C776=\"Enroll\",'Enrollment Form'!$AM776<>\"\"),\"Y\",\"N\")))","v":""},{"$f":"IF($B769=\"N\",\"\",IF(OR('Enrollment Form'!$B776<>\"Subscriber\",'Enrollment Form'!$C776=\"ROC\"),\"-\",IF(AND('Enrollment Form'!$B776=\"Subscriber\",'Enrollment Form'!$C776=\"Enroll\",'Enrollment Form'!$AN776<>\"\"),\"Y\",\"N\")))","v":""},{"$f":"IF($B769=\"N\",\"\",IF(OR('Enrollment Form'!$B776<>\"Subscriber\",'Enrollment Form'!$C776=\"ROC\"),\"-\",IF(AND('Enrollment Form'!$B776=\"Subscriber\",'Enrollment Form'!$C776=\"Enroll\",'Enrollment Form'!$AP776<>\"\"),\"Y\",\"N\")))","v":""},{"$f":"IF($B769=\"N\",\"\",IF($Q769=\"-\",\"-\",IF(AND($Q769=\"Y\",'Enrollment Form'!$AP776=\"No\"),\"-\",IF(AND($Q769=\"Y\",'Enrollment Form'!$AP776=\"Yes\",'Enrollment Form'!$AQ776<>\"\"),\"Y\",\"N\"))))","v":""},{"$f":"IF($B769=\"N\",\"\",IF(OR('Enrollment Form'!$B776<>\"Subscriber\",'Enrollment Form'!$C776=\"ROC\"),\"-\",IF(AND('Enrollment Form'!$B776=\"Subscriber\",'Enrollment Form'!$C776=\"Enroll\",'Enrollment Form'!$CO776<>\"\"),\"Y\",\"N\")))","v":""},{"$f":"IF($B769=\"N\",\"\",IF($S769=\"-\",\"-\",IF(AND($S769=\"Y\",'Enrollment Form'!$CO776=\"No\"),\"-\",IF(AND($S769=\"Y\",'Enrollment Form'!$CO776=\"Yes\",'Enrollment Form'!$CP776<>\"\"),\"Y\",\"N\"))))","v":""},{"$f":"IF(OR('Enrollment Form'!$AV776=\"Yes\",'Enrollment Form'!$AV776=\"\"),\"-\",IF(AND('Enrollment Form'!$AV776=\"No\",ISERROR(FIND(\"HMO\",VLOOKUP('Enrollment Form'!G776,'Enrollment Form'!H$11:J$1000,3,FALSE),1))=FALSE,COUNTA('Enrollment Form'!$AW776:$AZ776)=4),\"Y\",\"N\"))","v":"-"},{"$f":"IF($B769=\"N\",\"\",IF('Enrollment Form'!$B776=\"Subscriber\",\"-\",IF(COUNTA('Enrollment Form'!$BE776,'Enrollment Form'!$BG776)=2,\"Y\",\"N\")))","v":""},{"$f":"IF($B769=\"N\",\"\",IF(OR('Enrollment Form'!$AU776=\"\",'Enrollment Form'!$AU776=\"No\"),\"-\",IF(AND('Enrollment Form'!$AU776=\"Yes\",COUNTA('Enrollment Form'!$CK776)=1),\"Y\",\"N\")))","v":""},{"$f":"IF(OR('Enrollment Form'!$CK776=\"\",'Enrollment Form'!$CK776=\"No\"),\"-\",IF(COUNTA('Enrollment Form'!$CM776:$CN776)=2,\"Y\",\"N\"))","v":"-"},{"$f":"IF($B769=\"N\",\"\",IF(COUNTIF('Enrollment Form'!$CZ776:$DO776,\"Other\")=COUNTA('Enrollment Form'!$DF776,'Enrollment Form'!$DA776,'Enrollment Form'!$DK776,'Enrollment Form'!$DP776),\"Y\",\"N\"))","v":""},{"$f":"IF($B769=\"N\",\"\",IF(OR('Enrollment Form'!B776<>\"Subscriber\",'Enrollment Form'!C776=\"ROC\",COUNTIF('Enrollment Form'!AS776:AT776,\"Yes\")>=1),\"-\",IF(AND('Enrollment Form'!C776=\"Enroll\",COUNTIF('Enrollment Form'!AS776:AT776,\"No\")=2,'Enrollment Form'!AU776=\"\"),\"N\",\"Y\")))","v":""},{"$f":"IF(OR(B769=\"N\",'Enrollment Form'!B776<>\"Subscriber\",'Enrollment Form'!C776=\"ROC\",'Enrollment Form'!O776<>\"Multiple of Salary\"),\"-\",IF(COUNTA('Enrollment Form'!T776:U776)<2,\"N\",\"Y\"))","v":"-"},{"$f":"IF(B769=\"N\",\"\",IF(OR('Enrollment Form'!C776=\"ROC\",'Enrollment Form'!B776<>\"Subscriber\",'Enrollment Form'!O776=\"Waive\",'Enrollment Form'!O776=\"\"),\"-\",IF('Enrollment Form'!P776=\"\",\"N\",\"Y\")))","v":""},{"$f":"IF($B769=\"N\",\"\",IF(AND('Enrollment Form'!$C776=\"ROC\",'Enrollment Form'!$DS776<>\"\"),\"Y\",IF(AND('Enrollment Form'!$C776=\"ROC\",'Enrollment Form'!$DS776=\"\"),\"N\",IF(AND('Enrollment Form'!$C776=\"Enroll\",'Enrollment Form'!$B776=\"Subscriber\",'Enrollment Form'!$CQ776=\"No\",'Enrollment Form'!$DS776=\"\"),\"N\",IF(AND('Enrollment Form'!$C776=\"Enroll\",'Enrollment Form'!$B776=\"Subscriber\",'Enrollment Form'!$CQ776=\"Yes\"),\"-\",\"Y\")))))","v":""},{"$f":"IF($B769=\"N\",\"\",IF(AND('Enrollment Form'!$C776=\"ROC\",'Enrollment Form'!$DT776<>\"\"),\"Y\",IF(AND('Enrollment Form'!$C776=\"ROC\",'Enrollment Form'!$DT776=\"\"),\"N\",IF(AND('Enrollment Form'!$C776=\"Enroll\",'Enrollment Form'!$B776=\"Subscriber\",'Enrollment Form'!$CQ776=\"No\",'Enrollment Form'!$DT776=\"\"),\"N\",IF(AND('Enrollment Form'!$C776=\"Enroll\",'Enrollment Form'!$B776=\"Subscriber\",'Enrollment Form'!$CQ776=\"Yes\"),\"-\",\"Y\")))))","v":""},{"$f":"IF('Enrollment Form'!AH776=\"\",\"\",IF(ISERROR(SEARCH(\".\",'Enrollment Form'!AH776,SEARCH(\"@\",'Enrollment Form'!AH776))),\"N\",\"Y\"))","v":""},{"$f":"IF(OR($B769=\"N\",'Enrollment Form'!$G776=\"\"),\"\",IF('Enrollment Form'!$B776<>\"Subscriber\",\"-\",IF(COUNTIF('Enrollment Form'!$AS776:$AT776,\"Yes\")=2,\"N\",\"Y\")))","v":""},{"$f":"IF(OR('Enrollment Form'!$CC776=\"\",'Enrollment Form'!$CC776=\"No\"),\"-\",IF(AND('Enrollment Form'!$CC776=\"Yes\",'Enrollment Form'!$CD776=\"\"),\"N\",\"Y\"))","v":"-"},{"$f":"IF(OR('Enrollment Form'!$CE776=\"\",'Enrollment Form'!$CE776=\"No\"),\"-\",IF(AND('Enrollment Form'!$CE776=\"Yes\",'Enrollment Form'!$CF776=\"\"),\"N\",\"Y\"))","v":"-"},{"$f":"IF(OR('Enrollment Form'!$CG776=\"\",'Enrollment Form'!$CG776=\"No\"),\"-\",IF(AND('Enrollment Form'!$CG776=\"Yes\",'Enrollment Form'!$CH776=\"\"),\"N\",\"Y\"))","v":"-"},{"$f":"IF(OR('Enrollment Form'!$CG776=\"\",'Enrollment Form'!$CG776=\"No\"),\"-\",IF(AND('Enrollment Form'!$CG776=\"Yes\",'Enrollment Form'!$CI776=\"\"),\"N\",\"Y\"))","v":"-"},{"$f":"IF('Enrollment Form'!B776<>\"Subscriber\",\"-\",IF(AND('Enrollment Form'!B776=\"Subscriber\",'Enrollment Form'!C776=\"Enroll\",'Enrollment Form'!AA776=\"\"),\"N\",\"Y\"))","v":"-"},{"$f":"IF(OR('Enrollment Form'!B776=\"Subscriber\",'Enrollment Form'!B776=\"\"),\"-\",IF('Enrollment Form'!BI776=\"\",\"N\",\"Y\"))","v":"-"},{"$f":"IF('Enrollment Form'!B776<>\"Subscriber\",\"-\",IF(AND('Enrollment Form'!B776=\"Subscriber\",'Enrollment Form'!G776=\"\"),\"N\",\"Y\"))","v":"-"},{"$f":"IF('Enrollment Form'!A776=\"\",\"\",IF('Enrollment Form'!B776=\"Subscriber\",\"-\",IF(AND('Enrollment Form'!B776<>\"Subscriber\",'Enrollment Form'!G776='Enrollment Form'!H776),\"N\",\"Y\")))","v":""},0]
[777,{"$f":"IF('Enrollment Form'!$A777<>\"\",\"Y\",\"N\")","v":"N"},{"$f":"IF(AND('Enrollment Form'!$B777=\"\",'Enrollment Form'!$C777<>\"\"),\"N\",IF($B770=\"N\",\"\",\"Y\"))","v":""},{"$f":"IF(OR($B770=\"N\",'Enrollment Form'!G777=\"\"),\"\",IF('Enrollment Form'!$B777<>\"Subscriber\",\"\",IF('Enrollment Form'!$G777='Enrollment Form'!$H777,\"Y\",\"N\")))","v":""},{"$f":"IF($B770=\"N\",\"\",IF(AND(COUNTIFS('Enrollment Form'!$H$11:$H$1000,'Enrollment Form'!$H777,'Enrollment Form'!$B$11:$B$1000,'Enrollment Form'!$B777)>1,'Enrollment Form'!$H777<>\"\"),\"N\",\"Y\"))","v":""},{"$f":"IF($B770=\"N\",\"\",IF(LEN('Enrollment Form'!$Y777)=0,\"\",IF(LEN('Enrollment Form'!$Y777)<>5,\"N\",\"Y\")))","v":""},{"$f":"IF($B770=\"N\",\"\",IF(LEN('Enrollment Form'!$AD777=0),\"\",IF(LEN('Enrollment Form'!$AD777)<>5,\"N\",\"Y\")))","v":""},{"$f":"IF($B770=\"N\",\"\",IF(LEN('Enrollment Form'!$BL777=0),\"\",IF(LEN('Enrollment Form'!$BL777)<>5,\"N\",\"Y\")))","v":""},{"$f":"IF($B770=\"N\",\"\",IF(LEN('Enrollment Form'!$AE777)=0,\"\",IF(LEN('Enrollment Form'!$AE777)<>10,\"N\",\"Y\")))","v":""},{"$f":"IF($B770=\"N\",\"\",IF(LEN('Enrollment Form'!$AF777)=0,\"\",IF(LEN('Enrollment Form'!$AF777)<>10,\"N\",\"Y\")))","v":""},{"$f":"IF('Enrollment Form'!$O777<>\"Graded\",\"-\",IF(AND('Enrollment Form'!$O777=\"Graded\",'Enrollment Form'!$AO777<>\"\"),\"Y\",\"N\"))","v":"-"},{"$f":"IF($B770=\"N\",\"\",IF(OR('Enrollment Form'!$B777<>\"Subscriber\",'Enrollment Form'!$C777=\"ROC\"),\"-\",IF(AND('Enrollment Form'!$B777=\"Subscriber\",'Enrollment Form'!$C777=\"Enroll\",'Enrollment Form'!$AJ777<>\"\"),\"Y\",\"N\")))","v":""},{"$f":"IF($B770=\"N\",\"\",IF(OR('Enrollment Form'!$B777<>\"Subscriber\",'Enrollment Form'!$C777=\"ROC\"),\"-\",IF(AND('Enrollment Form'!$B777=\"Subscriber\",'Enrollment Form'!$C777=\"Enroll\",'Enrollment Form'!$AK777<>\"\"),\"Y\",\"N\")))","v":""},{"$f":"IF($B770=\"N\",\"\",IF(OR('Enrollment Form'!$B777<>\"Subscriber\",'Enrollment Form'!$C777=\"ROC\"),\"-\",IF(AND('Enrollment Form'!$B777=\"Subscriber\",'Enrollment Form'!$C777=\"Enroll\",'Enrollment Form'!$AL777<>\"\"),\"Y\",\"N\")))","v":""},{"$f":"IF($B770=\"N\",\"\",IF(OR('Enrollment Form'!$B777<>\"Subscriber\",'Enrollment Form'!$C777=\"ROC\"),\"-\",IF(AND('Enrollment Form'!$B777=\"Subscriber\",'Enrollment Form'!$C777=\"Enroll\",'Enrollment Form'!$AM777<>\"\"),\"Y\",\"N\")))","v":""},{"$f":"IF($B770=\"N\",\"\",IF(OR('Enrollment Form'!$B777<>\"Subscriber\",'Enrollment Form'!$C777=\"ROC\"),\"-\",IF(AND('Enrollment Form'!$B777=\"Subscriber\",'Enrollment Form'!$C777=\"Enroll\",'Enrollment Form'!$AN777<>\"\"),\"Y\",\"N\")))","v":""},{"$f":"IF($B770=\"N\",\"\",IF(OR('Enrollment Form'!$B777<>\"Subscriber\",'Enrollment Form'!$C777=\"ROC\"),\"-\",IF(AND('Enrollment Form'!$B777=\"Subscriber\",'Enrollment Form'!$C777=\"Enroll\",'Enrollment Form'!$AP777<>\"\"),\"Y\",\"N\")))","v":""},{"$f":"IF($B770=\"N\",\"\",IF($Q770=\"-\",\"-\",IF(AND($Q770=\"Y\",'Enrollment Form'!$AP777=\"No\"),\"-\",IF(AND($Q770=\"Y\",'Enrollment Form'!$AP777=\"Yes\",'Enrollment Form'!$AQ777<>\"\"),\"Y\",\"N\"))))","v":""},{"$f":"IF($B770=\"N\",\"\",IF(OR('Enrollment Form'!$B777<>\"Subscriber\",'Enrollment Form'!$C777=\"ROC\"),\"-\",IF(AND('Enrollment Form'!$B777=\"Subscriber\",'Enrollment Form'!$C777=\"Enroll\",'Enrollment Form'!$CO777<>\"\"),\"Y\",\"N\")))","v":""},{"$f":"IF($B770=\"N\",\"\",IF($S770=\"-\",\"-\",IF(AND($S770=\"Y\",'Enrollment Form'!$CO777=\"No\"),\"-\",IF(AND($S770=\"Y\",'Enrollment Form'!$CO777=\"Yes\",'Enrollment Form'!$CP777<>\"\"),\"Y\",\"N\"))))","v":""},{"$f":"IF(OR('Enrollment Form'!$AV777=\"Yes\",'Enrollment Form'!$AV777=\"\"),\"-\",IF(AND('Enrollment Form'!$AV777=\"No\",ISERROR(FIND(\"HMO\",VLOOKUP('Enrollment Form'!G777,'Enrollment Form'!H$11:J$1000,3,FALSE),1))=FALSE,COUNTA('Enrollment Form'!$AW777:$AZ777)=4),\"Y\",\"N\"))","v":"-"},{"$f":"IF($B770=\"N\",\"\",IF('Enrollment Form'!$B777=\"Subscriber\",\"-\",IF(COUNTA('Enrollment Form'!$BE777,'Enrollment Form'!$BG777)=2,\"Y\",\"N\")))","v":""},{"$f":"IF($B770=\"N\",\"\",IF(OR('Enrollment Form'!$AU777=\"\",'Enrollment Form'!$AU777=\"No\"),\"-\",IF(AND('Enrollment Form'!$AU777=\"Yes\",COUNTA('Enrollment Form'!$CK777)=1),\"Y\",\"N\")))","v":""},{"$f":"IF(OR('Enrollment Form'!$CK777=\"\",'Enrollment Form'!$CK777=\"No\"),\"-\",IF(COUNTA('Enrollment Form'!$CM777:$CN777)=2,\"Y\",\"N\"))","v":"-"},{"$f":"IF($B770=\"N\",\"\",IF(COUNTIF('Enrollment Form'!$CZ777:$DO777,\"Other\")=COUNTA('Enrollment Form'!$DF777,'Enrollment Form'!$DA777,'Enrollment Form'!$DK777,'Enrollment Form'!$DP777),\"Y\",\"N\"))","v":""},{"$f":"IF($B770=\"N\",\"\",IF(OR('Enrollment Form'!B777<>\"Subscriber\",'Enrollment Form'!C777=\"ROC\",COUNTIF('Enrollment Form'!AS777:AT777,\"Yes\")>=1),\"-\",IF(AND('Enrollment Form'!C777=\"Enroll\",COUNTIF('Enrollment Form'!AS777:AT777,\"No\")=2,'Enrollment Form'!AU777=\"\"),\"N\",\"Y\")))","v":""},{"$f":"IF(OR(B770=\"N\",'Enrollment Form'!B777<>\"Subscriber\",'Enrollment Form'!C777=\"ROC\",'Enrollment Form'!O777<>\"Multiple of Salary\"),\"-\",IF(COUNTA('Enrollment Form'!T777:U777)<2,\"N\",\"Y\"))","v":"-"},{"$f":"IF(B770=\"N\",\"\",IF(OR('Enrollment Form'!C777=\"ROC\",'Enrollment Form'!B777<>\"Subscriber\",'Enrollment Form'!O777=\"Waive\",'Enrollment Form'!O777=\"\"),\"-\",IF('Enrollment Form'!P777=\"\",\"N\",\"Y\")))","v":""},{"$f":"IF($B770=\"N\",\"\",IF(AND('Enrollment Form'!$C777=\"ROC\",'Enrollment Form'!$DS777<>\"\"),\"Y\",IF(AND('Enrollment Form'!$C777=\"ROC\",'Enrollment Form'!$DS777=\"\"),\"N\",IF(AND('Enrollment Form'!$C777=\"Enroll\",'Enrollment Form'!$B777=\"Subscriber\",'Enrollment Form'!$CQ777=\"No\",'Enrollment Form'!$DS777=\"\"),\"N\",IF(AND('Enrollment Form'!$C777=\"Enroll\",'Enrollment Form'!$B777=\"Subscriber\",'Enrollment Form'!$CQ777=\"Yes\"),\"-\",\"Y\")))))","v":""},{"$f":"IF($B770=\"N\",\"\",IF(AND('Enrollment Form'!$C777=\"ROC\",'Enrollment Form'!$DT777<>\"\"),\"Y\",IF(AND('Enrollment Form'!$C777=\"ROC\",'Enrollment Form'!$DT777=\"\"),\"N\",IF(AND('Enrollment Form'!$C777=\"Enroll\",'Enrollment Form'!$B777=\"Subscriber\",'Enrollment Form'!$CQ777=\"No\",'Enrollment Form'!$DT777=\"\"),\"N\",IF(AND('Enrollment Form'!$C777=\"Enroll\",'Enrollment Form'!$B777=\"Subscriber\",'Enrollment Form'!$CQ777=\"Yes\"),\"-\",\"Y\")))))","v":""},{"$f":"IF('Enrollment Form'!AH777=\"\",\"\",IF(ISERROR(SEARCH(\".\",'Enrollment Form'!AH777,SEARCH(\"@\",'Enrollment Form'!AH777))),\"N\",\"Y\"))","v":""},{"$f":"IF(OR($B770=\"N\",'Enrollment Form'!$G777=\"\"),\"\",IF('Enrollment Form'!$B777<>\"Subscriber\",\"-\",IF(COUNTIF('Enrollment Form'!$AS777:$AT777,\"Yes\")=2,\"N\",\"Y\")))","v":""},{"$f":"IF(OR('Enrollment Form'!$CC777=\"\",'Enrollment Form'!$CC777=\"No\"),\"-\",IF(AND('Enrollment Form'!$CC777=\"Yes\",'Enrollment Form'!$CD777=\"\"),\"N\",\"Y\"))","v":"-"},{"$f":"IF(OR('Enrollment Form'!$CE777=\"\",'Enrollment Form'!$CE777=\"No\"),\"-\",IF(AND('Enrollment Form'!$CE777=\"Yes\",'Enrollment Form'!$CF777=\"\"),\"N\",\"Y\"))","v":"-"},{"$f":"IF(OR('Enrollment Form'!$CG777=\"\",'Enrollment Form'!$CG777=\"No\"),\"-\",IF(AND('Enrollment Form'!$CG777=\"Yes\",'Enrollment Form'!$CH777=\"\"),\"N\",\"Y\"))","v":"-"},{"$f":"IF(OR('Enrollment Form'!$CG777=\"\",'Enrollment Form'!$CG777=\"No\"),\"-\",IF(AND('Enrollment Form'!$CG777=\"Yes\",'Enrollment Form'!$CI777=\"\"),\"N\",\"Y\"))","v":"-"},{"$f":"IF('Enrollment Form'!B777<>\"Subscriber\",\"-\",IF(AND('Enrollment Form'!B777=\"Subscriber\",'Enrollment Form'!C777=\"Enroll\",'Enrollment Form'!AA777=\"\"),\"N\",\"Y\"))","v":"-"},{"$f":"IF(OR('Enrollment Form'!B777=\"Subscriber\",'Enrollment Form'!B777=\"\"),\"-\",IF('Enrollment Form'!BI777=\"\",\"N\",\"Y\"))","v":"-"},{"$f":"IF('Enrollment Form'!B777<>\"Subscriber\",\"-\",IF(AND('Enrollment Form'!B777=\"Subscriber\",'Enrollment Form'!G777=\"\"),\"N\",\"Y\"))","v":"-"},{"$f":"IF('Enrollment Form'!A777=\"\",\"\",IF('Enrollment Form'!B777=\"Subscriber\",\"-\",IF(AND('Enrollment Form'!B777<>\"Subscriber\",'Enrollment Form'!G777='Enrollment Form'!H777),\"N\",\"Y\")))","v":""},0]
[778,{"$f":"IF('Enrollment Form'!$A778<>\"\",\"Y\",\"N\")","v":"N"},{"$f":"IF(AND('Enrollment Form'!$B778=\"\",'Enrollment Form'!$C778<>\"\"),\"N\",IF($B771=\"N\",\"\",\"Y\"))","v":""},{"$f":"IF(OR($B771=\"N\",'Enrollment Form'!G778=\"\"),\"\",IF('Enrollment Form'!$B778<>\"Subscriber\",\"\",IF('Enrollment Form'!$G778='Enrollment Form'!$H778,\"Y\",\"N\")))","v":""},{"$f":"IF($B771=\"N\",\"\",IF(AND(COUNTIFS('Enrollment Form'!$H$11:$H$1000,'Enrollment Form'!$H778,'Enrollment Form'!$B$11:$B$1000,'Enrollment Form'!$B778)>1,'Enrollment Form'!$H778<>\"\"),\"N\",\"Y\"))","v":""},{"$f":"IF($B771=\"N\",\"\",IF(LEN('Enrollment Form'!$Y778)=0,\"\",IF(LEN('Enrollment Form'!$Y778)<>5,\"N\",\"Y\")))","v":""},{"$f":"IF($B771=\"N\",\"\",IF(LEN('Enrollment Form'!$AD778=0),\"\",IF(LEN('Enrollment Form'!$AD778)<>5,\"N\",\"Y\")))","v":""},{"$f":"IF($B771=\"N\",\"\",IF(LEN('Enrollment Form'!$BL778=0),\"\",IF(LEN('Enrollment Form'!$BL778)<>5,\"N\",\"Y\")))","v":""},{"$f":"IF($B771=\"N\",\"\",IF(LEN('Enrollment Form'!$AE778)=0,\"\",IF(LEN('Enrollment Form'!$AE778)<>10,\"N\",\"Y\")))","v":""},{"$f":"IF($B771=\"N\",\"\",IF(LEN('Enrollment Form'!$AF778)=0,\"\",IF(LEN('Enrollment Form'!$AF778)<>10,\"N\",\"Y\")))","v":""},{"$f":"IF('Enrollment Form'!$O778<>\"Graded\",\"-\",IF(AND('Enrollment Form'!$O778=\"Graded\",'Enrollment Form'!$AO778<>\"\"),\"Y\",\"N\"))","v":"-"},{"$f":"IF($B771=\"N\",\"\",IF(OR('Enrollment Form'!$B778<>\"Subscriber\",'Enrollment Form'!$C778=\"ROC\"),\"-\",IF(AND('Enrollment Form'!$B778=\"Subscriber\",'Enrollment Form'!$C778=\"Enroll\",'Enrollment Form'!$AJ778<>\"\"),\"Y\",\"N\")))","v":""},{"$f":"IF($B771=\"N\",\"\",IF(OR('Enrollment Form'!$B778<>\"Subscriber\",'Enrollment Form'!$C778=\"ROC\"),\"-\",IF(AND('Enrollment Form'!$B778=\"Subscriber\",'Enrollment Form'!$C778=\"Enroll\",'Enrollment Form'!$AK778<>\"\"),\"Y\",\"N\")))","v":""},{"$f":"IF($B771=\"N\",\"\",IF(OR('Enrollment Form'!$B778<>\"Subscriber\",'Enrollment Form'!$C778=\"ROC\"),\"-\",IF(AND('Enrollment Form'!$B778=\"Subscriber\",'Enrollment Form'!$C778=\"Enroll\",'Enrollment Form'!$AL778<>\"\"),\"Y\",\"N\")))","v":""},{"$f":"IF($B771=\"N\",\"\",IF(OR('Enrollment Form'!$B778<>\"Subscriber\",'Enrollment Form'!$C778=\"ROC\"),\"-\",IF(AND('Enrollment Form'!$B778=\"Subscriber\",'Enrollment Form'!$C778=\"Enroll\",'Enrollment Form'!$AM778<>\"\"),\"Y\",\"N\")))","v":""},{"$f":"IF($B771=\"N\",\"\",IF(OR('Enrollment Form'!$B778<>\"Subscriber\",'Enrollment Form'!$C778=\"ROC\"),\"-\",IF(AND('Enrollment Form'!$B778=\"Subscriber\",'Enrollment Form'!$C778=\"Enroll\",'Enrollment Form'!$AN778<>\"\"),\"Y\",\"N\")))","v":""},{"$f":"IF($B771=\"N\",\"\",IF(OR('Enrollment Form'!$B778<>\"Subscriber\",'Enrollment Form'!$C778=\"ROC\"),\"-\",IF(AND('Enrollment Form'!$B778=\"Subscriber\",'Enrollment Form'!$C778=\"Enroll\",'Enrollment Form'!$AP778<>\"\"),\"Y\",\"N\")))","v":""},{"$f":"IF($B771=\"N\",\"\",IF($Q771=\"-\",\"-\",IF(AND($Q771=\"Y\",'Enrollment Form'!$AP778=\"No\"),\"-\",IF(AND($Q771=\"Y\",'Enrollment Form'!$AP778=\"Yes\",'Enrollment Form'!$AQ778<>\"\"),\"Y\",\"N\"))))","v":""},{"$f":"IF($B771=\"N\",\"\",IF(OR('Enrollment Form'!$B778<>\"Subscriber\",'Enrollment Form'!$C778=\"ROC\"),\"-\",IF(AND('Enrollment Form'!$B778=\"Subscriber\",'Enrollment Form'!$C778=\"Enroll\",'Enrollment Form'!$CO778<>\"\"),\"Y\",\"N\")))","v":""},{"$f":"IF($B771=\"N\",\"\",IF($S771=\"-\",\"-\",IF(AND($S771=\"Y\",'Enrollment Form'!$CO778=\"No\"),\"-\",IF(AND($S771=\"Y\",'Enrollment Form'!$CO778=\"Yes\",'Enrollment Form'!$CP778<>\"\"),\"Y\",\"N\"))))","v":""},{"$f":"IF(OR('Enrollment Form'!$AV778=\"Yes\",'Enrollment Form'!$AV778=\"\"),\"-\",IF(AND('Enrollment Form'!$AV778=\"No\",ISERROR(FIND(\"HMO\",VLOOKUP('Enrollment Form'!G778,'Enrollment Form'!H$11:J$1000,3,FALSE),1))=FALSE,COUNTA('Enrollment Form'!$AW778:$AZ778)=4),\"Y\",\"N\"))","v":"-"},{"$f":"IF($B771=\"N\",\"\",IF('Enrollment Form'!$B778=\"Subscriber\",\"-\",IF(COUNTA('Enrollment Form'!$BE778,'Enrollment Form'!$BG778)=2,\"Y\",\"N\")))","v":""},{"$f":"IF($B771=\"N\",\"\",IF(OR('Enrollment Form'!$AU778=\"\",'Enrollment Form'!$AU778=\"No\"),\"-\",IF(AND('Enrollment Form'!$AU778=\"Yes\",COUNTA('Enrollment Form'!$CK778)=1),\"Y\",\"N\")))","v":""},{"$f":"IF(OR('Enrollment Form'!$CK778=\"\",'Enrollment Form'!$CK778=\"No\"),\"-\",IF(COUNTA('Enrollment Form'!$CM778:$CN778)=2,\"Y\",\"N\"))","v":"-"},{"$f":"IF($B771=\"N\",\"\",IF(COUNTIF('Enrollment Form'!$CZ778:$DO778,\"Other\")=COUNTA('Enrollment Form'!$DF778,'Enrollment Form'!$DA778,'Enrollment Form'!$DK778,'Enrollment Form'!$DP778),\"Y\",\"N\"))","v":""},{"$f":"IF($B771=\"N\",\"\",IF(OR('Enrollment Form'!B778<>\"Subscriber\",'Enrollment Form'!C778=\"ROC\",COUNTIF('Enrollment Form'!AS778:AT778,\"Yes\")>=1),\"-\",IF(AND('Enrollment Form'!C778=\"Enroll\",COUNTIF('Enrollment Form'!AS778:AT778,\"No\")=2,'Enrollment Form'!AU778=\"\"),\"N\",\"Y\")))","v":""},{"$f":"IF(OR(B771=\"N\",'Enrollment Form'!B778<>\"Subscriber\",'Enrollment Form'!C778=\"ROC\",'Enrollment Form'!O778<>\"Multiple of Salary\"),\"-\",IF(COUNTA('Enrollment Form'!T778:U778)<2,\"N\",\"Y\"))","v":"-"},{"$f":"IF(B771=\"N\",\"\",IF(OR('Enrollment Form'!C778=\"ROC\",'Enrollment Form'!B778<>\"Subscriber\",'Enrollment Form'!O778=\"Waive\",'Enrollment Form'!O778=\"\"),\"-\",IF('Enrollment Form'!P778=\"\",\"N\",\"Y\")))","v":""},{"$f":"IF($B771=\"N\",\"\",IF(AND('Enrollment Form'!$C778=\"ROC\",'Enrollment Form'!$DS778<>\"\"),\"Y\",IF(AND('Enrollment Form'!$C778=\"ROC\",'Enrollment Form'!$DS778=\"\"),\"N\",IF(AND('Enrollment Form'!$C778=\"Enroll\",'Enrollment Form'!$B778=\"Subscriber\",'Enrollment Form'!$CQ778=\"No\",'Enrollment Form'!$DS778=\"\"),\"N\",IF(AND('Enrollment Form'!$C778=\"Enroll\",'Enrollment Form'!$B778=\"Subscriber\",'Enrollment Form'!$CQ778=\"Yes\"),\"-\",\"Y\")))))","v":""},{"$f":"IF($B771=\"N\",\"\",IF(AND('Enrollment Form'!$C778=\"ROC\",'Enrollment Form'!$DT778<>\"\"),\"Y\",IF(AND('Enrollment Form'!$C778=\"ROC\",'Enrollment Form'!$DT778=\"\"),\"N\",IF(AND('Enrollment Form'!$C778=\"Enroll\",'Enrollment Form'!$B778=\"Subscriber\",'Enrollment Form'!$CQ778=\"No\",'Enrollment Form'!$DT778=\"\"),\"N\",IF(AND('Enrollment Form'!$C778=\"Enroll\",'Enrollment Form'!$B778=\"Subscriber\",'Enrollment Form'!$CQ778=\"Yes\"),\"-\",\"Y\")))))","v":""},{"$f":"IF('Enrollment Form'!AH778=\"\",\"\",IF(ISERROR(SEARCH(\".\",'Enrollment Form'!AH778,SEARCH(\"@\",'Enrollment Form'!AH778))),\"N\",\"Y\"))","v":""},{"$f":"IF(OR($B771=\"N\",'Enrollment Form'!$G778=\"\"),\"\",IF('Enrollment Form'!$B778<>\"Subscriber\",\"-\",IF(COUNTIF('Enrollment Form'!$AS778:$AT778,\"Yes\")=2,\"N\",\"Y\")))","v":""},{"$f":"IF(OR('Enrollment Form'!$CC778=\"\",'Enrollment Form'!$CC778=\"No\"),\"-\",IF(AND('Enrollment Form'!$CC778=\"Yes\",'Enrollment Form'!$CD778=\"\"),\"N\",\"Y\"))","v":"-"},{"$f":"IF(OR('Enrollment Form'!$CE778=\"\",'Enrollment Form'!$CE778=\"No\"),\"-\",IF(AND('Enrollment Form'!$CE778=\"Yes\",'Enrollment Form'!$CF778=\"\"),\"N\",\"Y\"))","v":"-"},{"$f":"IF(OR('Enrollment Form'!$CG778=\"\",'Enrollment Form'!$CG778=\"No\"),\"-\",IF(AND('Enrollment Form'!$CG778=\"Yes\",'Enrollment Form'!$CH778=\"\"),\"N\",\"Y\"))","v":"-"},{"$f":"IF(OR('Enrollment Form'!$CG778=\"\",'Enrollment Form'!$CG778=\"No\"),\"-\",IF(AND('Enrollment Form'!$CG778=\"Yes\",'Enrollment Form'!$CI778=\"\"),\"N\",\"Y\"))","v":"-"},{"$f":"IF('Enrollment Form'!B778<>\"Subscriber\",\"-\",IF(AND('Enrollment Form'!B778=\"Subscriber\",'Enrollment Form'!C778=\"Enroll\",'Enrollment Form'!AA778=\"\"),\"N\",\"Y\"))","v":"-"},{"$f":"IF(OR('Enrollment Form'!B778=\"Subscriber\",'Enrollment Form'!B778=\"\"),\"-\",IF('Enrollment Form'!BI778=\"\",\"N\",\"Y\"))","v":"-"},{"$f":"IF('Enrollment Form'!B778<>\"Subscriber\",\"-\",IF(AND('Enrollment Form'!B778=\"Subscriber\",'Enrollment Form'!G778=\"\"),\"N\",\"Y\"))","v":"-"},{"$f":"IF('Enrollment Form'!A778=\"\",\"\",IF('Enrollment Form'!B778=\"Subscriber\",\"-\",IF(AND('Enrollment Form'!B778<>\"Subscriber\",'Enrollment Form'!G778='Enrollment Form'!H778),\"N\",\"Y\")))","v":""},0]
[779,{"$f":"IF('Enrollment Form'!$A779<>\"\",\"Y\",\"N\")","v":"N"},{"$f":"IF(AND('Enrollment Form'!$B779=\"\",'Enrollment Form'!$C779<>\"\"),\"N\",IF($B772=\"N\",\"\",\"Y\"))","v":""},{"$f":"IF(OR($B772=\"N\",'Enrollment Form'!G779=\"\"),\"\",IF('Enrollment Form'!$B779<>\"Subscriber\",\"\",IF('Enrollment Form'!$G779='Enrollment Form'!$H779,\"Y\",\"N\")))","v":""},{"$f":"IF($B772=\"N\",\"\",IF(AND(COUNTIFS('Enrollment Form'!$H$11:$H$1000,'Enrollment Form'!$H779,'Enrollment Form'!$B$11:$B$1000,'Enrollment Form'!$B779)>1,'Enrollment Form'!$H779<>\"\"),\"N\",\"Y\"))","v":""},{"$f":"IF($B772=\"N\",\"\",IF(LEN('Enrollment Form'!$Y779)=0,\"\",IF(LEN('Enrollment Form'!$Y779)<>5,\"N\",\"Y\")))","v":""},{"$f":"IF($B772=\"N\",\"\",IF(LEN('Enrollment Form'!$AD779=0),\"\",IF(LEN('Enrollment Form'!$AD779)<>5,\"N\",\"Y\")))","v":""},{"$f":"IF($B772=\"N\",\"\",IF(LEN('Enrollment Form'!$BL779=0),\"\",IF(LEN('Enrollment Form'!$BL779)<>5,\"N\",\"Y\")))","v":""},{"$f":"IF($B772=\"N\",\"\",IF(LEN('Enrollment Form'!$AE779)=0,\"\",IF(LEN('Enrollment Form'!$AE779)<>10,\"N\",\"Y\")))","v":""},{"$f":"IF($B772=\"N\",\"\",IF(LEN('Enrollment Form'!$AF779)=0,\"\",IF(LEN('Enrollment Form'!$AF779)<>10,\"N\",\"Y\")))","v":""},{"$f":"IF('Enrollment Form'!$O779<>\"Graded\",\"-\",IF(AND('Enrollment Form'!$O779=\"Graded\",'Enrollment Form'!$AO779<>\"\"),\"Y\",\"N\"))","v":"-"},{"$f":"IF($B772=\"N\",\"\",IF(OR('Enrollment Form'!$B779<>\"Subscriber\",'Enrollment Form'!$C779=\"ROC\"),\"-\",IF(AND('Enrollment Form'!$B779=\"Subscriber\",'Enrollment Form'!$C779=\"Enroll\",'Enrollment Form'!$AJ779<>\"\"),\"Y\",\"N\")))","v":""},{"$f":"IF($B772=\"N\",\"\",IF(OR('Enrollment Form'!$B779<>\"Subscriber\",'Enrollment Form'!$C779=\"ROC\"),\"-\",IF(AND('Enrollment Form'!$B779=\"Subscriber\",'Enrollment Form'!$C779=\"Enroll\",'Enrollment Form'!$AK779<>\"\"),\"Y\",\"N\")))","v":""},{"$f":"IF($B772=\"N\",\"\",IF(OR('Enrollment Form'!$B779<>\"Subscriber\",'Enrollment Form'!$C779=\"ROC\"),\"-\",IF(AND('Enrollment Form'!$B779=\"Subscriber\",'Enrollment Form'!$C779=\"Enroll\",'Enrollment Form'!$AL779<>\"\"),\"Y\",\"N\")))","v":""},{"$f":"IF($B772=\"N\",\"\",IF(OR('Enrollment Form'!$B779<>\"Subscriber\",'Enrollment Form'!$C779=\"ROC\"),\"-\",IF(AND('Enrollment Form'!$B779=\"Subscriber\",'Enrollment Form'!$C779=\"Enroll\",'Enrollment Form'!$AM779<>\"\"),\"Y\",\"N\")))","v":""},{"$f":"IF($B772=\"N\",\"\",IF(OR('Enrollment Form'!$B779<>\"Subscriber\",'Enrollment Form'!$C779=\"ROC\"),\"-\",IF(AND('Enrollment Form'!$B779=\"Subscriber\",'Enrollment Form'!$C779=\"Enroll\",'Enrollment Form'!$AN779<>\"\"),\"Y\",\"N\")))","v":""},{"$f":"IF($B772=\"N\",\"\",IF(OR('Enrollment Form'!$B779<>\"Subscriber\",'Enrollment Form'!$C779=\"ROC\"),\"-\",IF(AND('Enrollment Form'!$B779=\"Subscriber\",'Enrollment Form'!$C779=\"Enroll\",'Enrollment Form'!$AP779<>\"\"),\"Y\",\"N\")))","v":""},{"$f":"IF($B772=\"N\",\"\",IF($Q772=\"-\",\"-\",IF(AND($Q772=\"Y\",'Enrollment Form'!$AP779=\"No\"),\"-\",IF(AND($Q772=\"Y\",'Enrollment Form'!$AP779=\"Yes\",'Enrollment Form'!$AQ779<>\"\"),\"Y\",\"N\"))))","v":""},{"$f":"IF($B772=\"N\",\"\",IF(OR('Enrollment Form'!$B779<>\"Subscriber\",'Enrollment Form'!$C779=\"ROC\"),\"-\",IF(AND('Enrollment Form'!$B779=\"Subscriber\",'Enrollment Form'!$C779=\"Enroll\",'Enrollment Form'!$CO779<>\"\"),\"Y\",\"N\")))","v":""},{"$f":"IF($B772=\"N\",\"\",IF($S772=\"-\",\"-\",IF(AND($S772=\"Y\",'Enrollment Form'!$CO779=\"No\"),\"-\",IF(AND($S772=\"Y\",'Enrollment Form'!$CO779=\"Yes\",'Enrollment Form'!$CP779<>\"\"),\"Y\",\"N\"))))","v":""},{"$f":"IF(OR('Enrollment Form'!$AV779=\"Yes\",'Enrollment Form'!$AV779=\"\"),\"-\",IF(AND('Enrollment Form'!$AV779=\"No\",ISERROR(FIND(\"HMO\",VLOOKUP('Enrollment Form'!G779,'Enrollment Form'!H$11:J$1000,3,FALSE),1))=FALSE,COUNTA('Enrollment Form'!$AW779:$AZ779)=4),\"Y\",\"N\"))","v":"-"},{"$f":"IF($B772=\"N\",\"\",IF('Enrollment Form'!$B779=\"Subscriber\",\"-\",IF(COUNTA('Enrollment Form'!$BE779,'Enrollment Form'!$BG779)=2,\"Y\",\"N\")))","v":""},{"$f":"IF($B772=\"N\",\"\",IF(OR('Enrollment Form'!$AU779=\"\",'Enrollment Form'!$AU779=\"No\"),\"-\",IF(AND('Enrollment Form'!$AU779=\"Yes\",COUNTA('Enrollment Form'!$CK779)=1),\"Y\",\"N\")))","v":""},{"$f":"IF(OR('Enrollment Form'!$CK779=\"\",'Enrollment Form'!$CK779=\"No\"),\"-\",IF(COUNTA('Enrollment Form'!$CM779:$CN779)=2,\"Y\",\"N\"))","v":"-"},{"$f":"IF($B772=\"N\",\"\",IF(COUNTIF('Enrollment Form'!$CZ779:$DO779,\"Other\")=COUNTA('Enrollment Form'!$DF779,'Enrollment Form'!$DA779,'Enrollment Form'!$DK779,'Enrollment Form'!$DP779),\"Y\",\"N\"))","v":""},{"$f":"IF($B772=\"N\",\"\",IF(OR('Enrollment Form'!B779<>\"Subscriber\",'Enrollment Form'!C779=\"ROC\",COUNTIF('Enrollment Form'!AS779:AT779,\"Yes\")>=1),\"-\",IF(AND('Enrollment Form'!C779=\"Enroll\",COUNTIF('Enrollment Form'!AS779:AT779,\"No\")=2,'Enrollment Form'!AU779=\"\"),\"N\",\"Y\")))","v":""},{"$f":"IF(OR(B772=\"N\",'Enrollment Form'!B779<>\"Subscriber\",'Enrollment Form'!C779=\"ROC\",'Enrollment Form'!O779<>\"Multiple of Salary\"),\"-\",IF(COUNTA('Enrollment Form'!T779:U779)<2,\"N\",\"Y\"))","v":"-"},{"$f":"IF(B772=\"N\",\"\",IF(OR('Enrollment Form'!C779=\"ROC\",'Enrollment Form'!B779<>\"Subscriber\",'Enrollment Form'!O779=\"Waive\",'Enrollment Form'!O779=\"\"),\"-\",IF('Enrollment Form'!P779=\"\",\"N\",\"Y\")))","v":""},{"$f":"IF($B772=\"N\",\"\",IF(AND('Enrollment Form'!$C779=\"ROC\",'Enrollment Form'!$DS779<>\"\"),\"Y\",IF(AND('Enrollment Form'!$C779=\"ROC\",'Enrollment Form'!$DS779=\"\"),\"N\",IF(AND('Enrollment Form'!$C779=\"Enroll\",'Enrollment Form'!$B779=\"Subscriber\",'Enrollment Form'!$CQ779=\"No\",'Enrollment Form'!$DS779=\"\"),\"N\",IF(AND('Enrollment Form'!$C779=\"Enroll\",'Enrollment Form'!$B779=\"Subscriber\",'Enrollment Form'!$CQ779=\"Yes\"),\"-\",\"Y\")))))","v":""},{"$f":"IF($B772=\"N\",\"\",IF(AND('Enrollment Form'!$C779=\"ROC\",'Enrollment Form'!$DT779<>\"\"),\"Y\",IF(AND('Enrollment Form'!$C779=\"ROC\",'Enrollment Form'!$DT779=\"\"),\"N\",IF(AND('Enrollment Form'!$C779=\"Enroll\",'Enrollment Form'!$B779=\"Subscriber\",'Enrollment Form'!$CQ779=\"No\",'Enrollment Form'!$DT779=\"\"),\"N\",IF(AND('Enrollment Form'!$C779=\"Enroll\",'Enrollment Form'!$B779=\"Subscriber\",'Enrollment Form'!$CQ779=\"Yes\"),\"-\",\"Y\")))))","v":""},{"$f":"IF('Enrollment Form'!AH779=\"\",\"\",IF(ISERROR(SEARCH(\".\",'Enrollment Form'!AH779,SEARCH(\"@\",'Enrollment Form'!AH779))),\"N\",\"Y\"))","v":""},{"$f":"IF(OR($B772=\"N\",'Enrollment Form'!$G779=\"\"),\"\",IF('Enrollment Form'!$B779<>\"Subscriber\",\"-\",IF(COUNTIF('Enrollment Form'!$AS779:$AT779,\"Yes\")=2,\"N\",\"Y\")))","v":""},{"$f":"IF(OR('Enrollment Form'!$CC779=\"\",'Enrollment Form'!$CC779=\"No\"),\"-\",IF(AND('Enrollment Form'!$CC779=\"Yes\",'Enrollment Form'!$CD779=\"\"),\"N\",\"Y\"))","v":"-"},{"$f":"IF(OR('Enrollment Form'!$CE779=\"\",'Enrollment Form'!$CE779=\"No\"),\"-\",IF(AND('Enrollment Form'!$CE779=\"Yes\",'Enrollment Form'!$CF779=\"\"),\"N\",\"Y\"))","v":"-"},{"$f":"IF(OR('Enrollment Form'!$CG779=\"\",'Enrollment Form'!$CG779=\"No\"),\"-\",IF(AND('Enrollment Form'!$CG779=\"Yes\",'Enrollment Form'!$CH779=\"\"),\"N\",\"Y\"))","v":"-"},{"$f":"IF(OR('Enrollment Form'!$CG779=\"\",'Enrollment Form'!$CG779=\"No\"),\"-\",IF(AND('Enrollment Form'!$CG779=\"Yes\",'Enrollment Form'!$CI779=\"\"),\"N\",\"Y\"))","v":"-"},{"$f":"IF('Enrollment Form'!B779<>\"Subscriber\",\"-\",IF(AND('Enrollment Form'!B779=\"Subscriber\",'Enrollment Form'!C779=\"Enroll\",'Enrollment Form'!AA779=\"\"),\"N\",\"Y\"))","v":"-"},{"$f":"IF(OR('Enrollment Form'!B779=\"Subscriber\",'Enrollment Form'!B779=\"\"),\"-\",IF('Enrollment Form'!BI779=\"\",\"N\",\"Y\"))","v":"-"},{"$f":"IF('Enrollment Form'!B779<>\"Subscriber\",\"-\",IF(AND('Enrollment Form'!B779=\"Subscriber\",'Enrollment Form'!G779=\"\"),\"N\",\"Y\"))","v":"-"},{"$f":"IF('Enrollment Form'!A779=\"\",\"\",IF('Enrollment Form'!B779=\"Subscriber\",\"-\",IF(AND('Enrollment Form'!B779<>\"Subscriber\",'Enrollment Form'!G779='Enrollment Form'!H779),\"N\",\"Y\")))","v":""},{"$f":"COUNTIF(C772:AN772,\"N\")","v":0}]
[780,{"$f":"IF('Enrollment Form'!$A780<>\"\",\"Y\",\"N\")","v":"N"},{"$f":"IF(AND('Enrollment Form'!$B780=\"\",'Enrollment Form'!$C780<>\"\"),\"N\",IF($B773=\"N\",\"\",\"Y\"))","v":""},{"$f":"IF(OR($B773=\"N\",'Enrollment Form'!G780=\"\"),\"\",IF('Enrollment Form'!$B780<>\"Subscriber\",\"\",IF('Enrollment Form'!$G780='Enrollment Form'!$H780,\"Y\",\"N\")))","v":""},{"$f":"IF($B773=\"N\",\"\",IF(AND(COUNTIFS('Enrollment Form'!$H$11:$H$1000,'Enrollment Form'!$H780,'Enrollment Form'!$B$11:$B$1000,'Enrollment Form'!$B780)>1,'Enrollment Form'!$H780<>\"\"),\"N\",\"Y\"))","v":""},{"$f":"IF($B773=\"N\",\"\",IF(LEN('Enrollment Form'!$Y780)=0,\"\",IF(LEN('Enrollment Form'!$Y780)<>5,\"N\",\"Y\")))","v":""},{"$f":"IF($B773=\"N\",\"\",IF(LEN('Enrollment Form'!$AD780=0),\"\",IF(LEN('Enrollment Form'!$AD780)<>5,\"N\",\"Y\")))","v":""},{"$f":"IF($B773=\"N\",\"\",IF(LEN('Enrollment Form'!$BL780=0),\"\",IF(LEN('Enrollment Form'!$BL780)<>5,\"N\",\"Y\")))","v":""},{"$f":"IF($B773=\"N\",\"\",IF(LEN('Enrollment Form'!$AE780)=0,\"\",IF(LEN('Enrollment Form'!$AE780)<>10,\"N\",\"Y\")))","v":""},{"$f":"IF($B773=\"N\",\"\",IF(LEN('Enrollment Form'!$AF780)=0,\"\",IF(LEN('Enrollment Form'!$AF780)<>10,\"N\",\"Y\")))","v":""},{"$f":"IF('Enrollment Form'!$O780<>\"Graded\",\"-\",IF(AND('Enrollment Form'!$O780=\"Graded\",'Enrollment Form'!$AO780<>\"\"),\"Y\",\"N\"))","v":"-"},{"$f":"IF($B773=\"N\",\"\",IF(OR('Enrollment Form'!$B780<>\"Subscriber\",'Enrollment Form'!$C780=\"ROC\"),\"-\",IF(AND('Enrollment Form'!$B780=\"Subscriber\",'Enrollment Form'!$C780=\"Enroll\",'Enrollment Form'!$AJ780<>\"\"),\"Y\",\"N\")))","v":""},{"$f":"IF($B773=\"N\",\"\",IF(OR('Enrollment Form'!$B780<>\"Subscriber\",'Enrollment Form'!$C780=\"ROC\"),\"-\",IF(AND('Enrollment Form'!$B780=\"Subscriber\",'Enrollment Form'!$C780=\"Enroll\",'Enrollment Form'!$AK780<>\"\"),\"Y\",\"N\")))","v":""},{"$f":"IF($B773=\"N\",\"\",IF(OR('Enrollment Form'!$B780<>\"Subscriber\",'Enrollment Form'!$C780=\"ROC\"),\"-\",IF(AND('Enrollment Form'!$B780=\"Subscriber\",'Enrollment Form'!$C780=\"Enroll\",'Enrollment Form'!$AL780<>\"\"),\"Y\",\"N\")))","v":""},{"$f":"IF($B773=\"N\",\"\",IF(OR('Enrollment Form'!$B780<>\"Subscriber\",'Enrollment Form'!$C780=\"ROC\"),\"-\",IF(AND('Enrollment Form'!$B780=\"Subscriber\",'Enrollment Form'!$C780=\"Enroll\",'Enrollment Form'!$AM780<>\"\"),\"Y\",\"N\")))","v":""},{"$f":"IF($B773=\"N\",\"\",IF(OR('Enrollment Form'!$B780<>\"Subscriber\",'Enrollment Form'!$C780=\"ROC\"),\"-\",IF(AND('Enrollment Form'!$B780=\"Subscriber\",'Enrollment Form'!$C780=\"Enroll\",'Enrollment Form'!$AN780<>\"\"),\"Y\",\"N\")))","v":""},{"$f":"IF($B773=\"N\",\"\",IF(OR('Enrollment Form'!$B780<>\"Subscriber\",'Enrollment Form'!$C780=\"ROC\"),\"-\",IF(AND('Enrollment Form'!$B780=\"Subscriber\",'Enrollment Form'!$C780=\"Enroll\",'Enrollment Form'!$AP780<>\"\"),\"Y\",\"N\")))","v":""},{"$f":"IF($B773=\"N\",\"\",IF($Q773=\"-\",\"-\",IF(AND($Q773=\"Y\",'Enrollment Form'!$AP780=\"No\"),\"-\",IF(AND($Q773=\"Y\",'Enrollment Form'!$AP780=\"Yes\",'Enrollment Form'!$AQ780<>\"\"),\"Y\",\"N\"))))","v":""},{"$f":"IF($B773=\"N\",\"\",IF(OR('Enrollment Form'!$B780<>\"Subscriber\",'Enrollment Form'!$C780=\"ROC\"),\"-\",IF(AND('Enrollment Form'!$B780=\"Subscriber\",'Enrollment Form'!$C780=\"Enroll\",'Enrollment Form'!$CO780<>\"\"),\"Y\",\"N\")))","v":""},{"$f":"IF($B773=\"N\",\"\",IF($S773=\"-\",\"-\",IF(AND($S773=\"Y\",'Enrollment Form'!$CO780=\"No\"),\"-\",IF(AND($S773=\"Y\",'Enrollment Form'!$CO780=\"Yes\",'Enrollment Form'!$CP780<>\"\"),\"Y\",\"N\"))))","v":""},{"$f":"IF(OR('Enrollment Form'!$AV780=\"Yes\",'Enrollment Form'!$AV780=\"\"),\"-\",IF(AND('Enrollment Form'!$AV780=\"No\",ISERROR(FIND(\"HMO\",VLOOKUP('Enrollment Form'!G780,'Enrollment Form'!H$11:J$1000,3,FALSE),1))=FALSE,COUNTA('Enrollment Form'!$AW780:$AZ780)=4),\"Y\",\"N\"))","v":"-"},{"$f":"IF($B773=\"N\",\"\",IF('Enrollment Form'!$B780=\"Subscriber\",\"-\",IF(COUNTA('Enrollment Form'!$BE780,'Enrollment Form'!$BG780)=2,\"Y\",\"N\")))","v":""},{"$f":"IF($B773=\"N\",\"\",IF(OR('Enrollment Form'!$AU780=\"\",'Enrollment Form'!$AU780=\"No\"),\"-\",IF(AND('Enrollment Form'!$AU780=\"Yes\",COUNTA('Enrollment Form'!$CK780)=1),\"Y\",\"N\")))","v":""},{"$f":"IF(OR('Enrollment Form'!$CK780=\"\",'Enrollment Form'!$CK780=\"No\"),\"-\",IF(COUNTA('Enrollment Form'!$CM780:$CN780)=2,\"Y\",\"N\"))","v":"-"},{"$f":"IF($B773=\"N\",\"\",IF(COUNTIF('Enrollment Form'!$CZ780:$DO780,\"Other\")=COUNTA('Enrollment Form'!$DF780,'Enrollment Form'!$DA780,'Enrollment Form'!$DK780,'Enrollment Form'!$DP780),\"Y\",\"N\"))","v":""},{"$f":"IF($B773=\"N\",\"\",IF(OR('Enrollment Form'!B780<>\"Subscriber\",'Enrollment Form'!C780=\"ROC\",COUNTIF('Enrollment Form'!AS780:AT780,\"Yes\")>=1),\"-\",IF(AND('Enrollment Form'!C780=\"Enroll\",COUNTIF('Enrollment Form'!AS780:AT780,\"No\")=2,'Enrollment Form'!AU780=\"\"),\"N\",\"Y\")))","v":""},{"$f":"IF(OR(B773=\"N\",'Enrollment Form'!B780<>\"Subscriber\",'Enrollment Form'!C780=\"ROC\",'Enrollment Form'!O780<>\"Multiple of Salary\"),\"-\",IF(COUNTA('Enrollment Form'!T780:U780)<2,\"N\",\"Y\"))","v":"-"},{"$f":"IF(B773=\"N\",\"\",IF(OR('Enrollment Form'!C780=\"ROC\",'Enrollment Form'!B780<>\"Subscriber\",'Enrollment Form'!O780=\"Waive\",'Enrollment Form'!O780=\"\"),\"-\",IF('Enrollment Form'!P780=\"\",\"N\",\"Y\")))","v":""},{"$f":"IF($B773=\"N\",\"\",IF(AND('Enrollment Form'!$C780=\"ROC\",'Enrollment Form'!$DS780<>\"\"),\"Y\",IF(AND('Enrollment Form'!$C780=\"ROC\",'Enrollment Form'!$DS780=\"\"),\"N\",IF(AND('Enrollment Form'!$C780=\"Enroll\",'Enrollment Form'!$B780=\"Subscriber\",'Enrollment Form'!$CQ780=\"No\",'Enrollment Form'!$DS780=\"\"),\"N\",IF(AND('Enrollment Form'!$C780=\"Enroll\",'Enrollment Form'!$B780=\"Subscriber\",'Enrollment Form'!$CQ780=\"Yes\"),\"-\",\"Y\")))))","v":""},{"$f":"IF($B773=\"N\",\"\",IF(AND('Enrollment Form'!$C780=\"ROC\",'Enrollment Form'!$DT780<>\"\"),\"Y\",IF(AND('Enrollment Form'!$C780=\"ROC\",'Enrollment Form'!$DT780=\"\"),\"N\",IF(AND('Enrollment Form'!$C780=\"Enroll\",'Enrollment Form'!$B780=\"Subscriber\",'Enrollment Form'!$CQ780=\"No\",'Enrollment Form'!$DT780=\"\"),\"N\",IF(AND('Enrollment Form'!$C780=\"Enroll\",'Enrollment Form'!$B780=\"Subscriber\",'Enrollment Form'!$CQ780=\"Yes\"),\"-\",\"Y\")))))","v":""},{"$f":"IF('Enrollment Form'!AH780=\"\",\"\",IF(ISERROR(SEARCH(\".\",'Enrollment Form'!AH780,SEARCH(\"@\",'Enrollment Form'!AH780))),\"N\",\"Y\"))","v":""},{"$f":"IF(OR($B773=\"N\",'Enrollment Form'!$G780=\"\"),\"\",IF('Enrollment Form'!$B780<>\"Subscriber\",\"-\",IF(COUNTIF('Enrollment Form'!$AS780:$AT780,\"Yes\")=2,\"N\",\"Y\")))","v":""},{"$f":"IF(OR('Enrollment Form'!$CC780=\"\",'Enrollment Form'!$CC780=\"No\"),\"-\",IF(AND('Enrollment Form'!$CC780=\"Yes\",'Enrollment Form'!$CD780=\"\"),\"N\",\"Y\"))","v":"-"},{"$f":"IF(OR('Enrollment Form'!$CE780=\"\",'Enrollment Form'!$CE780=\"No\"),\"-\",IF(AND('Enrollment Form'!$CE780=\"Yes\",'Enrollment Form'!$CF780=\"\"),\"N\",\"Y\"))","v":"-"},{"$f":"IF(OR('Enrollment Form'!$CG780=\"\",'Enrollment Form'!$CG780=\"No\"),\"-\",IF(AND('Enrollment Form'!$CG780=\"Yes\",'Enrollment Form'!$CH780=\"\"),\"N\",\"Y\"))","v":"-"},{"$f":"IF(OR('Enrollment Form'!$CG780=\"\",'Enrollment Form'!$CG780=\"No\"),\"-\",IF(AND('Enrollment Form'!$CG780=\"Yes\",'Enrollment Form'!$CI780=\"\"),\"N\",\"Y\"))","v":"-"},{"$f":"IF('Enrollment Form'!B780<>\"Subscriber\",\"-\",IF(AND('Enrollment Form'!B780=\"Subscriber\",'Enrollment Form'!C780=\"Enroll\",'Enrollment Form'!AA780=\"\"),\"N\",\"Y\"))","v":"-"},{"$f":"IF(OR('Enrollment Form'!B780=\"Subscriber\",'Enrollment Form'!B780=\"\"),\"-\",IF('Enrollment Form'!BI780=\"\",\"N\",\"Y\"))","v":"-"},{"$f":"IF('Enrollment Form'!B780<>\"Subscriber\",\"-\",IF(AND('Enrollment Form'!B780=\"Subscriber\",'Enrollment Form'!G780=\"\"),\"N\",\"Y\"))","v":"-"},{"$f":"IF('Enrollment Form'!A780=\"\",\"\",IF('Enrollment Form'!B780=\"Subscriber\",\"-\",IF(AND('Enrollment Form'!B780<>\"Subscriber\",'Enrollment Form'!G780='Enrollment Form'!H780),\"N\",\"Y\")))","v":""},0]
[{"$f":"1+A773","v":781},{"$f":"IF('Enrollment Form'!$A781<>\"\",\"Y\",\"N\")","v":"N"},{"$f":"IF(AND('Enrollment Form'!$B781=\"\",'Enrollment Form'!$C781<>\"\"),\"N\",IF($B774=\"N\",\"\",\"Y\"))","v":""},{"$f":"IF(OR($B774=\"N\",'Enrollment Form'!G781=\"\"),\"\",IF('Enrollment Form'!$B781<>\"Subscriber\",\"\",IF('Enrollment Form'!$G781='Enrollment Form'!$H781,\"Y\",\"N\")))","v":""},{"$f":"IF($B774=\"N\",\"\",IF(AND(COUNTIFS('Enrollment Form'!$H$11:$H$1000,'Enrollment Form'!$H781,'Enrollment Form'!$B$11:$B$1000,'Enrollment Form'!$B781)>1,'Enrollment Form'!$H781<>\"\"),\"N\",\"Y\"))","v":""},{"$f":"IF($B774=\"N\",\"\",IF(LEN('Enrollment Form'!$Y781)=0,\"\",IF(LEN('Enrollment Form'!$Y781)<>5,\"N\",\"Y\")))","v":""},{"$f":"IF($B774=\"N\",\"\",IF(LEN('Enrollment Form'!$AD781=0),\"\",IF(LEN('Enrollment Form'!$AD781)<>5,\"N\",\"Y\")))","v":""},{"$f":"IF($B774=\"N\",\"\",IF(LEN('Enrollment Form'!$BL781=0),\"\",IF(LEN('Enrollment Form'!$BL781)<>5,\"N\",\"Y\")))","v":""},{"$f":"IF($B774=\"N\",\"\",IF(LEN('Enrollment Form'!$AE781)=0,\"\",IF(LEN('Enrollment Form'!$AE781)<>10,\"N\",\"Y\")))","v":""},{"$f":"IF($B774=\"N\",\"\",IF(LEN('Enrollment Form'!$AF781)=0,\"\",IF(LEN('Enrollment Form'!$AF781)<>10,\"N\",\"Y\")))","v":""},{"$f":"IF('Enrollment Form'!$O781<>\"Graded\",\"-\",IF(AND('Enrollment Form'!$O781=\"Graded\",'Enrollment Form'!$AO781<>\"\"),\"Y\",\"N\"))","v":"-"},{"$f":"IF($B774=\"N\",\"\",IF(OR('Enrollment Form'!$B781<>\"Subscriber\",'Enrollment Form'!$C781=\"ROC\"),\"-\",IF(AND('Enrollment Form'!$B781=\"Subscriber\",'Enrollment Form'!$C781=\"Enroll\",'Enrollment Form'!$AJ781<>\"\"),\"Y\",\"N\")))","v":""},{"$f":"IF($B774=\"N\",\"\",IF(OR('Enrollment Form'!$B781<>\"Subscriber\",'Enrollment Form'!$C781=\"ROC\"),\"-\",IF(AND('Enrollment Form'!$B781=\"Subscriber\",'Enrollment Form'!$C781=\"Enroll\",'Enrollment Form'!$AK781<>\"\"),\"Y\",\"N\")))","v":""},{"$f":"IF($B774=\"N\",\"\",IF(OR('Enrollment Form'!$B781<>\"Subscriber\",'Enrollment Form'!$C781=\"ROC\"),\"-\",IF(AND('Enrollment Form'!$B781=\"Subscriber\",'Enrollment Form'!$C781=\"Enroll\",'Enrollment Form'!$AL781<>\"\"),\"Y\",\"N\")))","v":""},{"$f":"IF($B774=\"N\",\"\",IF(OR('Enrollment Form'!$B781<>\"Subscriber\",'Enrollment Form'!$C781=\"ROC\"),\"-\",IF(AND('Enrollment Form'!$B781=\"Subscriber\",'Enrollment Form'!$C781=\"Enroll\",'Enrollment Form'!$AM781<>\"\"),\"Y\",\"N\")))","v":""},{"$f":"IF($B774=\"N\",\"\",IF(OR('Enrollment Form'!$B781<>\"Subscriber\",'Enrollment Form'!$C781=\"ROC\"),\"-\",IF(AND('Enrollment Form'!$B781=\"Subscriber\",'Enrollment Form'!$C781=\"Enroll\",'Enrollment Form'!$AN781<>\"\"),\"Y\",\"N\")))","v":""},{"$f":"IF($B774=\"N\",\"\",IF(OR('Enrollment Form'!$B781<>\"Subscriber\",'Enrollment Form'!$C781=\"ROC\"),\"-\",IF(AND('Enrollment Form'!$B781=\"Subscriber\",'Enrollment Form'!$C781=\"Enroll\",'Enrollment Form'!$AP781<>\"\"),\"Y\",\"N\")))","v":""},{"$f":"IF($B774=\"N\",\"\",IF($Q774=\"-\",\"-\",IF(AND($Q774=\"Y\",'Enrollment Form'!$AP781=\"No\"),\"-\",IF(AND($Q774=\"Y\",'Enrollment Form'!$AP781=\"Yes\",'Enrollment Form'!$AQ781<>\"\"),\"Y\",\"N\"))))","v":""},{"$f":"IF($B774=\"N\",\"\",IF(OR('Enrollment Form'!$B781<>\"Subscriber\",'Enrollment Form'!$C781=\"ROC\"),\"-\",IF(AND('Enrollment Form'!$B781=\"Subscriber\",'Enrollment Form'!$C781=\"Enroll\",'Enrollment Form'!$CO781<>\"\"),\"Y\",\"N\")))","v":""},{"$f":"IF($B774=\"N\",\"\",IF($S774=\"-\",\"-\",IF(AND($S774=\"Y\",'Enrollment Form'!$CO781=\"No\"),\"-\",IF(AND($S774=\"Y\",'Enrollment Form'!$CO781=\"Yes\",'Enrollment Form'!$CP781<>\"\"),\"Y\",\"N\"))))","v":""},{"$f":"IF(OR('Enrollment Form'!$AV781=\"Yes\",'Enrollment Form'!$AV781=\"\"),\"-\",IF(AND('Enrollment Form'!$AV781=\"No\",ISERROR(FIND(\"HMO\",VLOOKUP('Enrollment Form'!G781,'Enrollment Form'!H$11:J$1000,3,FALSE),1))=FALSE,COUNTA('Enrollment Form'!$AW781:$AZ781)=4),\"Y\",\"N\"))","v":"-"},{"$f":"IF($B774=\"N\",\"\",IF('Enrollment Form'!$B781=\"Subscriber\",\"-\",IF(COUNTA('Enrollment Form'!$BE781,'Enrollment Form'!$BG781)=2,\"Y\",\"N\")))","v":""},{"$f":"IF($B774=\"N\",\"\",IF(OR('Enrollment Form'!$AU781=\"\",'Enrollment Form'!$AU781=\"No\"),\"-\",IF(AND('Enrollment Form'!$AU781=\"Yes\",COUNTA('Enrollment Form'!$CK781)=1),\"Y\",\"N\")))","v":""},{"$f":"IF(OR('Enrollment Form'!$CK781=\"\",'Enrollment Form'!$CK781=\"No\"),\"-\",IF(COUNTA('Enrollment Form'!$CM781:$CN781)=2,\"Y\",\"N\"))","v":"-"},{"$f":"IF($B774=\"N\",\"\",IF(COUNTIF('Enrollment Form'!$CZ781:$DO781,\"Other\")=COUNTA('Enrollment Form'!$DF781,'Enrollment Form'!$DA781,'Enrollment Form'!$DK781,'Enrollment Form'!$DP781),\"Y\",\"N\"))","v":""},{"$f":"IF($B774=\"N\",\"\",IF(OR('Enrollment Form'!B781<>\"Subscriber\",'Enrollment Form'!C781=\"ROC\",COUNTIF('Enrollment Form'!AS781:AT781,\"Yes\")>=1),\"-\",IF(AND('Enrollment Form'!C781=\"Enroll\",COUNTIF('Enrollment Form'!AS781:AT781,\"No\")=2,'Enrollment Form'!AU781=\"\"),\"N\",\"Y\")))","v":""},{"$f":"IF(OR(B774=\"N\",'Enrollment Form'!B781<>\"Subscriber\",'Enrollment Form'!C781=\"ROC\",'Enrollment Form'!O781<>\"Multiple of Salary\"),\"-\",IF(COUNTA('Enrollment Form'!T781:U781)<2,\"N\",\"Y\"))","v":"-"},{"$f":"IF(B774=\"N\",\"\",IF(OR('Enrollment Form'!C781=\"ROC\",'Enrollment Form'!B781<>\"Subscriber\",'Enrollment Form'!O781=\"Waive\",'Enrollment Form'!O781=\"\"),\"-\",IF('Enrollment Form'!P781=\"\",\"N\",\"Y\")))","v":""},{"$f":"IF($B774=\"N\",\"\",IF(AND('Enrollment Form'!$C781=\"ROC\",'Enrollment Form'!$DS781<>\"\"),\"Y\",IF(AND('Enrollment Form'!$C781=\"ROC\",'Enrollment Form'!$DS781=\"\"),\"N\",IF(AND('Enrollment Form'!$C781=\"Enroll\",'Enrollment Form'!$B781=\"Subscriber\",'Enrollment Form'!$CQ781=\"No\",'Enrollment Form'!$DS781=\"\"),\"N\",IF(AND('Enrollment Form'!$C781=\"Enroll\",'Enrollment Form'!$B781=\"Subscriber\",'Enrollment Form'!$CQ781=\"Yes\"),\"-\",\"Y\")))))","v":""},{"$f":"IF($B774=\"N\",\"\",IF(AND('Enrollment Form'!$C781=\"ROC\",'Enrollment Form'!$DT781<>\"\"),\"Y\",IF(AND('Enrollment Form'!$C781=\"ROC\",'Enrollment Form'!$DT781=\"\"),\"N\",IF(AND('Enrollment Form'!$C781=\"Enroll\",'Enrollment Form'!$B781=\"Subscriber\",'Enrollment Form'!$CQ781=\"No\",'Enrollment Form'!$DT781=\"\"),\"N\",IF(AND('Enrollment Form'!$C781=\"Enroll\",'Enrollment Form'!$B781=\"Subscriber\",'Enrollment Form'!$CQ781=\"Yes\"),\"-\",\"Y\")))))","v":""},{"$f":"IF('Enrollment Form'!AH781=\"\",\"\",IF(ISERROR(SEARCH(\".\",'Enrollment Form'!AH781,SEARCH(\"@\",'Enrollment Form'!AH781))),\"N\",\"Y\"))","v":""},{"$f":"IF(OR($B774=\"N\",'Enrollment Form'!$G781=\"\"),\"\",IF('Enrollment Form'!$B781<>\"Subscriber\",\"-\",IF(COUNTIF('Enrollment Form'!$AS781:$AT781,\"Yes\")=2,\"N\",\"Y\")))","v":""},{"$f":"IF(OR('Enrollment Form'!$CC781=\"\",'Enrollment Form'!$CC781=\"No\"),\"-\",IF(AND('Enrollment Form'!$CC781=\"Yes\",'Enrollment Form'!$CD781=\"\"),\"N\",\"Y\"))","v":"-"},{"$f":"IF(OR('Enrollment Form'!$CE781=\"\",'Enrollment Form'!$CE781=\"No\"),\"-\",IF(AND('Enrollment Form'!$CE781=\"Yes\",'Enrollment Form'!$CF781=\"\"),\"N\",\"Y\"))","v":"-"},{"$f":"IF(OR('Enrollment Form'!$CG781=\"\",'Enrollment Form'!$CG781=\"No\"),\"-\",IF(AND('Enrollment Form'!$CG781=\"Yes\",'Enrollment Form'!$CH781=\"\"),\"N\",\"Y\"))","v":"-"},{"$f":"IF(OR('Enrollment Form'!$CG781=\"\",'Enrollment Form'!$CG781=\"No\"),\"-\",IF(AND('Enrollment Form'!$CG781=\"Yes\",'Enrollment Form'!$CI781=\"\"),\"N\",\"Y\"))","v":"-"},{"$f":"IF('Enrollment Form'!B781<>\"Subscriber\",\"-\",IF(AND('Enrollment Form'!B781=\"Subscriber\",'Enrollment Form'!C781=\"Enroll\",'Enrollment Form'!AA781=\"\"),\"N\",\"Y\"))","v":"-"},{"$f":"IF(OR('Enrollment Form'!B781=\"Subscriber\",'Enrollment Form'!B781=\"\"),\"-\",IF('Enrollment Form'!BI781=\"\",\"N\",\"Y\"))","v":"-"},{"$f":"IF('Enrollment Form'!B781<>\"Subscriber\",\"-\",IF(AND('Enrollment Form'!B781=\"Subscriber\",'Enrollment Form'!G781=\"\"),\"N\",\"Y\"))","v":"-"},{"$f":"IF('Enrollment Form'!A781=\"\",\"\",IF('Enrollment Form'!B781=\"Subscriber\",\"-\",IF(AND('Enrollment Form'!B781<>\"Subscriber\",'Enrollment Form'!G781='Enrollment Form'!H781),\"N\",\"Y\")))","v":""},0]
[782,{"$f":"IF('Enrollment Form'!$A782<>\"\",\"Y\",\"N\")","v":"N"},{"$f":"IF(AND('Enrollment Form'!$B782=\"\",'Enrollment Form'!$C782<>\"\"),\"N\",IF($B775=\"N\",\"\",\"Y\"))","v":""},{"$f":"IF(OR($B775=\"N\",'Enrollment Form'!G782=\"\"),\"\",IF('Enrollment Form'!$B782<>\"Subscriber\",\"\",IF('Enrollment Form'!$G782='Enrollment Form'!$H782,\"Y\",\"N\")))","v":""},{"$f":"IF($B775=\"N\",\"\",IF(AND(COUNTIFS('Enrollment Form'!$H$11:$H$1000,'Enrollment Form'!$H782,'Enrollment Form'!$B$11:$B$1000,'Enrollment Form'!$B782)>1,'Enrollment Form'!$H782<>\"\"),\"N\",\"Y\"))","v":""},{"$f":"IF($B775=\"N\",\"\",IF(LEN('Enrollment Form'!$Y782)=0,\"\",IF(LEN('Enrollment Form'!$Y782)<>5,\"N\",\"Y\")))","v":""},{"$f":"IF($B775=\"N\",\"\",IF(LEN('Enrollment Form'!$AD782=0),\"\",IF(LEN('Enrollment Form'!$AD782)<>5,\"N\",\"Y\")))","v":""},{"$f":"IF($B775=\"N\",\"\",IF(LEN('Enrollment Form'!$BL782=0),\"\",IF(LEN('Enrollment Form'!$BL782)<>5,\"N\",\"Y\")))","v":""},{"$f":"IF($B775=\"N\",\"\",IF(LEN('Enrollment Form'!$AE782)=0,\"\",IF(LEN('Enrollment Form'!$AE782)<>10,\"N\",\"Y\")))","v":""},{"$f":"IF($B775=\"N\",\"\",IF(LEN('Enrollment Form'!$AF782)=0,\"\",IF(LEN('Enrollment Form'!$AF782)<>10,\"N\",\"Y\")))","v":""},{"$f":"IF('Enrollment Form'!$O782<>\"Graded\",\"-\",IF(AND('Enrollment Form'!$O782=\"Graded\",'Enrollment Form'!$AO782<>\"\"),\"Y\",\"N\"))","v":"-"},{"$f":"IF($B775=\"N\",\"\",IF(OR('Enrollment Form'!$B782<>\"Subscriber\",'Enrollment Form'!$C782=\"ROC\"),\"-\",IF(AND('Enrollment Form'!$B782=\"Subscriber\",'Enrollment Form'!$C782=\"Enroll\",'Enrollment Form'!$AJ782<>\"\"),\"Y\",\"N\")))","v":""},{"$f":"IF($B775=\"N\",\"\",IF(OR('Enrollment Form'!$B782<>\"Subscriber\",'Enrollment Form'!$C782=\"ROC\"),\"-\",IF(AND('Enrollment Form'!$B782=\"Subscriber\",'Enrollment Form'!$C782=\"Enroll\",'Enrollment Form'!$AK782<>\"\"),\"Y\",\"N\")))","v":""},{"$f":"IF($B775=\"N\",\"\",IF(OR('Enrollment Form'!$B782<>\"Subscriber\",'Enrollment Form'!$C782=\"ROC\"),\"-\",IF(AND('Enrollment Form'!$B782=\"Subscriber\",'Enrollment Form'!$C782=\"Enroll\",'Enrollment Form'!$AL782<>\"\"),\"Y\",\"N\")))","v":""},{"$f":"IF($B775=\"N\",\"\",IF(OR('Enrollment Form'!$B782<>\"Subscriber\",'Enrollment Form'!$C782=\"ROC\"),\"-\",IF(AND('Enrollment Form'!$B782=\"Subscriber\",'Enrollment Form'!$C782=\"Enroll\",'Enrollment Form'!$AM782<>\"\"),\"Y\",\"N\")))","v":""},{"$f":"IF($B775=\"N\",\"\",IF(OR('Enrollment Form'!$B782<>\"Subscriber\",'Enrollment Form'!$C782=\"ROC\"),\"-\",IF(AND('Enrollment Form'!$B782=\"Subscriber\",'Enrollment Form'!$C782=\"Enroll\",'Enrollment Form'!$AN782<>\"\"),\"Y\",\"N\")))","v":""},{"$f":"IF($B775=\"N\",\"\",IF(OR('Enrollment Form'!$B782<>\"Subscriber\",'Enrollment Form'!$C782=\"ROC\"),\"-\",IF(AND('Enrollment Form'!$B782=\"Subscriber\",'Enrollment Form'!$C782=\"Enroll\",'Enrollment Form'!$AP782<>\"\"),\"Y\",\"N\")))","v":""},{"$f":"IF($B775=\"N\",\"\",IF($Q775=\"-\",\"-\",IF(AND($Q775=\"Y\",'Enrollment Form'!$AP782=\"No\"),\"-\",IF(AND($Q775=\"Y\",'Enrollment Form'!$AP782=\"Yes\",'Enrollment Form'!$AQ782<>\"\"),\"Y\",\"N\"))))","v":""},{"$f":"IF($B775=\"N\",\"\",IF(OR('Enrollment Form'!$B782<>\"Subscriber\",'Enrollment Form'!$C782=\"ROC\"),\"-\",IF(AND('Enrollment Form'!$B782=\"Subscriber\",'Enrollment Form'!$C782=\"Enroll\",'Enrollment Form'!$CO782<>\"\"),\"Y\",\"N\")))","v":""},{"$f":"IF($B775=\"N\",\"\",IF($S775=\"-\",\"-\",IF(AND($S775=\"Y\",'Enrollment Form'!$CO782=\"No\"),\"-\",IF(AND($S775=\"Y\",'Enrollment Form'!$CO782=\"Yes\",'Enrollment Form'!$CP782<>\"\"),\"Y\",\"N\"))))","v":""},{"$f":"IF(OR('Enrollment Form'!$AV782=\"Yes\",'Enrollment Form'!$AV782=\"\"),\"-\",IF(AND('Enrollment Form'!$AV782=\"No\",ISERROR(FIND(\"HMO\",VLOOKUP('Enrollment Form'!G782,'Enrollment Form'!H$11:J$1000,3,FALSE),1))=FALSE,COUNTA('Enrollment Form'!$AW782:$AZ782)=4),\"Y\",\"N\"))","v":"-"},{"$f":"IF($B775=\"N\",\"\",IF('Enrollment Form'!$B782=\"Subscriber\",\"-\",IF(COUNTA('Enrollment Form'!$BE782,'Enrollment Form'!$BG782)=2,\"Y\",\"N\")))","v":""},{"$f":"IF($B775=\"N\",\"\",IF(OR('Enrollment Form'!$AU782=\"\",'Enrollment Form'!$AU782=\"No\"),\"-\",IF(AND('Enrollment Form'!$AU782=\"Yes\",COUNTA('Enrollment Form'!$CK782)=1),\"Y\",\"N\")))","v":""},{"$f":"IF(OR('Enrollment Form'!$CK782=\"\",'Enrollment Form'!$CK782=\"No\"),\"-\",IF(COUNTA('Enrollment Form'!$CM782:$CN782)=2,\"Y\",\"N\"))","v":"-"},{"$f":"IF($B775=\"N\",\"\",IF(COUNTIF('Enrollment Form'!$CZ782:$DO782,\"Other\")=COUNTA('Enrollment Form'!$DF782,'Enrollment Form'!$DA782,'Enrollment Form'!$DK782,'Enrollment Form'!$DP782),\"Y\",\"N\"))","v":""},{"$f":"IF($B775=\"N\",\"\",IF(OR('Enrollment Form'!B782<>\"Subscriber\",'Enrollment Form'!C782=\"ROC\",COUNTIF('Enrollment Form'!AS782:AT782,\"Yes\")>=1),\"-\",IF(AND('Enrollment Form'!C782=\"Enroll\",COUNTIF('Enrollment Form'!AS782:AT782,\"No\")=2,'Enrollment Form'!AU782=\"\"),\"N\",\"Y\")))","v":""},{"$f":"IF(OR(B775=\"N\",'Enrollment Form'!B782<>\"Subscriber\",'Enrollment Form'!C782=\"ROC\",'Enrollment Form'!O782<>\"Multiple of Salary\"),\"-\",IF(COUNTA('Enrollment Form'!T782:U782)<2,\"N\",\"Y\"))","v":"-"},{"$f":"IF(B775=\"N\",\"\",IF(OR('Enrollment Form'!C782=\"ROC\",'Enrollment Form'!B782<>\"Subscriber\",'Enrollment Form'!O782=\"Waive\",'Enrollment Form'!O782=\"\"),\"-\",IF('Enrollment Form'!P782=\"\",\"N\",\"Y\")))","v":""},{"$f":"IF($B775=\"N\",\"\",IF(AND('Enrollment Form'!$C782=\"ROC\",'Enrollment Form'!$DS782<>\"\"),\"Y\",IF(AND('Enrollment Form'!$C782=\"ROC\",'Enrollment Form'!$DS782=\"\"),\"N\",IF(AND('Enrollment Form'!$C782=\"Enroll\",'Enrollment Form'!$B782=\"Subscriber\",'Enrollment Form'!$CQ782=\"No\",'Enrollment Form'!$DS782=\"\"),\"N\",IF(AND('Enrollment Form'!$C782=\"Enroll\",'Enrollment Form'!$B782=\"Subscriber\",'Enrollment Form'!$CQ782=\"Yes\"),\"-\",\"Y\")))))","v":""},{"$f":"IF($B775=\"N\",\"\",IF(AND('Enrollment Form'!$C782=\"ROC\",'Enrollment Form'!$DT782<>\"\"),\"Y\",IF(AND('Enrollment Form'!$C782=\"ROC\",'Enrollment Form'!$DT782=\"\"),\"N\",IF(AND('Enrollment Form'!$C782=\"Enroll\",'Enrollment Form'!$B782=\"Subscriber\",'Enrollment Form'!$CQ782=\"No\",'Enrollment Form'!$DT782=\"\"),\"N\",IF(AND('Enrollment Form'!$C782=\"Enroll\",'Enrollment Form'!$B782=\"Subscriber\",'Enrollment Form'!$CQ782=\"Yes\"),\"-\",\"Y\")))))","v":""},{"$f":"IF('Enrollment Form'!AH782=\"\",\"\",IF(ISERROR(SEARCH(\".\",'Enrollment Form'!AH782,SEARCH(\"@\",'Enrollment Form'!AH782))),\"N\",\"Y\"))","v":""},{"$f":"IF(OR($B775=\"N\",'Enrollment Form'!$G782=\"\"),\"\",IF('Enrollment Form'!$B782<>\"Subscriber\",\"-\",IF(COUNTIF('Enrollment Form'!$AS782:$AT782,\"Yes\")=2,\"N\",\"Y\")))","v":""},{"$f":"IF(OR('Enrollment Form'!$CC782=\"\",'Enrollment Form'!$CC782=\"No\"),\"-\",IF(AND('Enrollment Form'!$CC782=\"Yes\",'Enrollment Form'!$CD782=\"\"),\"N\",\"Y\"))","v":"-"},{"$f":"IF(OR('Enrollment Form'!$CE782=\"\",'Enrollment Form'!$CE782=\"No\"),\"-\",IF(AND('Enrollment Form'!$CE782=\"Yes\",'Enrollment Form'!$CF782=\"\"),\"N\",\"Y\"))","v":"-"},{"$f":"IF(OR('Enrollment Form'!$CG782=\"\",'Enrollment Form'!$CG782=\"No\"),\"-\",IF(AND('Enrollment Form'!$CG782=\"Yes\",'Enrollment Form'!$CH782=\"\"),\"N\",\"Y\"))","v":"-"},{"$f":"IF(OR('Enrollment Form'!$CG782=\"\",'Enrollment Form'!$CG782=\"No\"),\"-\",IF(AND('Enrollment Form'!$CG782=\"Yes\",'Enrollment Form'!$CI782=\"\"),\"N\",\"Y\"))","v":"-"},{"$f":"IF('Enrollment Form'!B782<>\"Subscriber\",\"-\",IF(AND('Enrollment Form'!B782=\"Subscriber\",'Enrollment Form'!C782=\"Enroll\",'Enrollment Form'!AA782=\"\"),\"N\",\"Y\"))","v":"-"},{"$f":"IF(OR('Enrollment Form'!B782=\"Subscriber\",'Enrollment Form'!B782=\"\"),\"-\",IF('Enrollment Form'!BI782=\"\",\"N\",\"Y\"))","v":"-"},{"$f":"IF('Enrollment Form'!B782<>\"Subscriber\",\"-\",IF(AND('Enrollment Form'!B782=\"Subscriber\",'Enrollment Form'!G782=\"\"),\"N\",\"Y\"))","v":"-"},{"$f":"IF('Enrollment Form'!A782=\"\",\"\",IF('Enrollment Form'!B782=\"Subscriber\",\"-\",IF(AND('Enrollment Form'!B782<>\"Subscriber\",'Enrollment Form'!G782='Enrollment Form'!H782),\"N\",\"Y\")))","v":""},0]
[783,{"$f":"IF('Enrollment Form'!$A783<>\"\",\"Y\",\"N\")","v":"N"},{"$f":"IF(AND('Enrollment Form'!$B783=\"\",'Enrollment Form'!$C783<>\"\"),\"N\",IF($B776=\"N\",\"\",\"Y\"))","v":""},{"$f":"IF(OR($B776=\"N\",'Enrollment Form'!G783=\"\"),\"\",IF('Enrollment Form'!$B783<>\"Subscriber\",\"\",IF('Enrollment Form'!$G783='Enrollment Form'!$H783,\"Y\",\"N\")))","v":""},{"$f":"IF($B776=\"N\",\"\",IF(AND(COUNTIFS('Enrollment Form'!$H$11:$H$1000,'Enrollment Form'!$H783,'Enrollment Form'!$B$11:$B$1000,'Enrollment Form'!$B783)>1,'Enrollment Form'!$H783<>\"\"),\"N\",\"Y\"))","v":""},{"$f":"IF($B776=\"N\",\"\",IF(LEN('Enrollment Form'!$Y783)=0,\"\",IF(LEN('Enrollment Form'!$Y783)<>5,\"N\",\"Y\")))","v":""},{"$f":"IF($B776=\"N\",\"\",IF(LEN('Enrollment Form'!$AD783=0),\"\",IF(LEN('Enrollment Form'!$AD783)<>5,\"N\",\"Y\")))","v":""},{"$f":"IF($B776=\"N\",\"\",IF(LEN('Enrollment Form'!$BL783=0),\"\",IF(LEN('Enrollment Form'!$BL783)<>5,\"N\",\"Y\")))","v":""},{"$f":"IF($B776=\"N\",\"\",IF(LEN('Enrollment Form'!$AE783)=0,\"\",IF(LEN('Enrollment Form'!$AE783)<>10,\"N\",\"Y\")))","v":""},{"$f":"IF($B776=\"N\",\"\",IF(LEN('Enrollment Form'!$AF783)=0,\"\",IF(LEN('Enrollment Form'!$AF783)<>10,\"N\",\"Y\")))","v":""},{"$f":"IF('Enrollment Form'!$O783<>\"Graded\",\"-\",IF(AND('Enrollment Form'!$O783=\"Graded\",'Enrollment Form'!$AO783<>\"\"),\"Y\",\"N\"))","v":"-"},{"$f":"IF($B776=\"N\",\"\",IF(OR('Enrollment Form'!$B783<>\"Subscriber\",'Enrollment Form'!$C783=\"ROC\"),\"-\",IF(AND('Enrollment Form'!$B783=\"Subscriber\",'Enrollment Form'!$C783=\"Enroll\",'Enrollment Form'!$AJ783<>\"\"),\"Y\",\"N\")))","v":""},{"$f":"IF($B776=\"N\",\"\",IF(OR('Enrollment Form'!$B783<>\"Subscriber\",'Enrollment Form'!$C783=\"ROC\"),\"-\",IF(AND('Enrollment Form'!$B783=\"Subscriber\",'Enrollment Form'!$C783=\"Enroll\",'Enrollment Form'!$AK783<>\"\"),\"Y\",\"N\")))","v":""},{"$f":"IF($B776=\"N\",\"\",IF(OR('Enrollment Form'!$B783<>\"Subscriber\",'Enrollment Form'!$C783=\"ROC\"),\"-\",IF(AND('Enrollment Form'!$B783=\"Subscriber\",'Enrollment Form'!$C783=\"Enroll\",'Enrollment Form'!$AL783<>\"\"),\"Y\",\"N\")))","v":""},{"$f":"IF($B776=\"N\",\"\",IF(OR('Enrollment Form'!$B783<>\"Subscriber\",'Enrollment Form'!$C783=\"ROC\"),\"-\",IF(AND('Enrollment Form'!$B783=\"Subscriber\",'Enrollment Form'!$C783=\"Enroll\",'Enrollment Form'!$AM783<>\"\"),\"Y\",\"N\")))","v":""},{"$f":"IF($B776=\"N\",\"\",IF(OR('Enrollment Form'!$B783<>\"Subscriber\",'Enrollment Form'!$C783=\"ROC\"),\"-\",IF(AND('Enrollment Form'!$B783=\"Subscriber\",'Enrollment Form'!$C783=\"Enroll\",'Enrollment Form'!$AN783<>\"\"),\"Y\",\"N\")))","v":""},{"$f":"IF($B776=\"N\",\"\",IF(OR('Enrollment Form'!$B783<>\"Subscriber\",'Enrollment Form'!$C783=\"ROC\"),\"-\",IF(AND('Enrollment Form'!$B783=\"Subscriber\",'Enrollment Form'!$C783=\"Enroll\",'Enrollment Form'!$AP783<>\"\"),\"Y\",\"N\")))","v":""},{"$f":"IF($B776=\"N\",\"\",IF($Q776=\"-\",\"-\",IF(AND($Q776=\"Y\",'Enrollment Form'!$AP783=\"No\"),\"-\",IF(AND($Q776=\"Y\",'Enrollment Form'!$AP783=\"Yes\",'Enrollment Form'!$AQ783<>\"\"),\"Y\",\"N\"))))","v":""},{"$f":"IF($B776=\"N\",\"\",IF(OR('Enrollment Form'!$B783<>\"Subscriber\",'Enrollment Form'!$C783=\"ROC\"),\"-\",IF(AND('Enrollment Form'!$B783=\"Subscriber\",'Enrollment Form'!$C783=\"Enroll\",'Enrollment Form'!$CO783<>\"\"),\"Y\",\"N\")))","v":""},{"$f":"IF($B776=\"N\",\"\",IF($S776=\"-\",\"-\",IF(AND($S776=\"Y\",'Enrollment Form'!$CO783=\"No\"),\"-\",IF(AND($S776=\"Y\",'Enrollment Form'!$CO783=\"Yes\",'Enrollment Form'!$CP783<>\"\"),\"Y\",\"N\"))))","v":""},{"$f":"IF(OR('Enrollment Form'!$AV783=\"Yes\",'Enrollment Form'!$AV783=\"\"),\"-\",IF(AND('Enrollment Form'!$AV783=\"No\",ISERROR(FIND(\"HMO\",VLOOKUP('Enrollment Form'!G783,'Enrollment Form'!H$11:J$1000,3,FALSE),1))=FALSE,COUNTA('Enrollment Form'!$AW783:$AZ783)=4),\"Y\",\"N\"))","v":"-"},{"$f":"IF($B776=\"N\",\"\",IF('Enrollment Form'!$B783=\"Subscriber\",\"-\",IF(COUNTA('Enrollment Form'!$BE783,'Enrollment Form'!$BG783)=2,\"Y\",\"N\")))","v":""},{"$f":"IF($B776=\"N\",\"\",IF(OR('Enrollment Form'!$AU783=\"\",'Enrollment Form'!$AU783=\"No\"),\"-\",IF(AND('Enrollment Form'!$AU783=\"Yes\",COUNTA('Enrollment Form'!$CK783)=1),\"Y\",\"N\")))","v":""},{"$f":"IF(OR('Enrollment Form'!$CK783=\"\",'Enrollment Form'!$CK783=\"No\"),\"-\",IF(COUNTA('Enrollment Form'!$CM783:$CN783)=2,\"Y\",\"N\"))","v":"-"},{"$f":"IF($B776=\"N\",\"\",IF(COUNTIF('Enrollment Form'!$CZ783:$DO783,\"Other\")=COUNTA('Enrollment Form'!$DF783,'Enrollment Form'!$DA783,'Enrollment Form'!$DK783,'Enrollment Form'!$DP783),\"Y\",\"N\"))","v":""},{"$f":"IF($B776=\"N\",\"\",IF(OR('Enrollment Form'!B783<>\"Subscriber\",'Enrollment Form'!C783=\"ROC\",COUNTIF('Enrollment Form'!AS783:AT783,\"Yes\")>=1),\"-\",IF(AND('Enrollment Form'!C783=\"Enroll\",COUNTIF('Enrollment Form'!AS783:AT783,\"No\")=2,'Enrollment Form'!AU783=\"\"),\"N\",\"Y\")))","v":""},{"$f":"IF(OR(B776=\"N\",'Enrollment Form'!B783<>\"Subscriber\",'Enrollment Form'!C783=\"ROC\",'Enrollment Form'!O783<>\"Multiple of Salary\"),\"-\",IF(COUNTA('Enrollment Form'!T783:U783)<2,\"N\",\"Y\"))","v":"-"},{"$f":"IF(B776=\"N\",\"\",IF(OR('Enrollment Form'!C783=\"ROC\",'Enrollment Form'!B783<>\"Subscriber\",'Enrollment Form'!O783=\"Waive\",'Enrollment Form'!O783=\"\"),\"-\",IF('Enrollment Form'!P783=\"\",\"N\",\"Y\")))","v":""},{"$f":"IF($B776=\"N\",\"\",IF(AND('Enrollment Form'!$C783=\"ROC\",'Enrollment Form'!$DS783<>\"\"),\"Y\",IF(AND('Enrollment Form'!$C783=\"ROC\",'Enrollment Form'!$DS783=\"\"),\"N\",IF(AND('Enrollment Form'!$C783=\"Enroll\",'Enrollment Form'!$B783=\"Subscriber\",'Enrollment Form'!$CQ783=\"No\",'Enrollment Form'!$DS783=\"\"),\"N\",IF(AND('Enrollment Form'!$C783=\"Enroll\",'Enrollment Form'!$B783=\"Subscriber\",'Enrollment Form'!$CQ783=\"Yes\"),\"-\",\"Y\")))))","v":""},{"$f":"IF($B776=\"N\",\"\",IF(AND('Enrollment Form'!$C783=\"ROC\",'Enrollment Form'!$DT783<>\"\"),\"Y\",IF(AND('Enrollment Form'!$C783=\"ROC\",'Enrollment Form'!$DT783=\"\"),\"N\",IF(AND('Enrollment Form'!$C783=\"Enroll\",'Enrollment Form'!$B783=\"Subscriber\",'Enrollment Form'!$CQ783=\"No\",'Enrollment Form'!$DT783=\"\"),\"N\",IF(AND('Enrollment Form'!$C783=\"Enroll\",'Enrollment Form'!$B783=\"Subscriber\",'Enrollment Form'!$CQ783=\"Yes\"),\"-\",\"Y\")))))","v":""},{"$f":"IF('Enrollment Form'!AH783=\"\",\"\",IF(ISERROR(SEARCH(\".\",'Enrollment Form'!AH783,SEARCH(\"@\",'Enrollment Form'!AH783))),\"N\",\"Y\"))","v":""},{"$f":"IF(OR($B776=\"N\",'Enrollment Form'!$G783=\"\"),\"\",IF('Enrollment Form'!$B783<>\"Subscriber\",\"-\",IF(COUNTIF('Enrollment Form'!$AS783:$AT783,\"Yes\")=2,\"N\",\"Y\")))","v":""},{"$f":"IF(OR('Enrollment Form'!$CC783=\"\",'Enrollment Form'!$CC783=\"No\"),\"-\",IF(AND('Enrollment Form'!$CC783=\"Yes\",'Enrollment Form'!$CD783=\"\"),\"N\",\"Y\"))","v":"-"},{"$f":"IF(OR('Enrollment Form'!$CE783=\"\",'Enrollment Form'!$CE783=\"No\"),\"-\",IF(AND('Enrollment Form'!$CE783=\"Yes\",'Enrollment Form'!$CF783=\"\"),\"N\",\"Y\"))","v":"-"},{"$f":"IF(OR('Enrollment Form'!$CG783=\"\",'Enrollment Form'!$CG783=\"No\"),\"-\",IF(AND('Enrollment Form'!$CG783=\"Yes\",'Enrollment Form'!$CH783=\"\"),\"N\",\"Y\"))","v":"-"},{"$f":"IF(OR('Enrollment Form'!$CG783=\"\",'Enrollment Form'!$CG783=\"No\"),\"-\",IF(AND('Enrollment Form'!$CG783=\"Yes\",'Enrollment Form'!$CI783=\"\"),\"N\",\"Y\"))","v":"-"},{"$f":"IF('Enrollment Form'!B783<>\"Subscriber\",\"-\",IF(AND('Enrollment Form'!B783=\"Subscriber\",'Enrollment Form'!C783=\"Enroll\",'Enrollment Form'!AA783=\"\"),\"N\",\"Y\"))","v":"-"},{"$f":"IF(OR('Enrollment Form'!B783=\"Subscriber\",'Enrollment Form'!B783=\"\"),\"-\",IF('Enrollment Form'!BI783=\"\",\"N\",\"Y\"))","v":"-"},{"$f":"IF('Enrollment Form'!B783<>\"Subscriber\",\"-\",IF(AND('Enrollment Form'!B783=\"Subscriber\",'Enrollment Form'!G783=\"\"),\"N\",\"Y\"))","v":"-"},{"$f":"IF('Enrollment Form'!A783=\"\",\"\",IF('Enrollment Form'!B783=\"Subscriber\",\"-\",IF(AND('Enrollment Form'!B783<>\"Subscriber\",'Enrollment Form'!G783='Enrollment Form'!H783),\"N\",\"Y\")))","v":""},0]
[784,{"$f":"IF('Enrollment Form'!$A784<>\"\",\"Y\",\"N\")","v":"N"},{"$f":"IF(AND('Enrollment Form'!$B784=\"\",'Enrollment Form'!$C784<>\"\"),\"N\",IF($B777=\"N\",\"\",\"Y\"))","v":""},{"$f":"IF(OR($B777=\"N\",'Enrollment Form'!G784=\"\"),\"\",IF('Enrollment Form'!$B784<>\"Subscriber\",\"\",IF('Enrollment Form'!$G784='Enrollment Form'!$H784,\"Y\",\"N\")))","v":""},{"$f":"IF($B777=\"N\",\"\",IF(AND(COUNTIFS('Enrollment Form'!$H$11:$H$1000,'Enrollment Form'!$H784,'Enrollment Form'!$B$11:$B$1000,'Enrollment Form'!$B784)>1,'Enrollment Form'!$H784<>\"\"),\"N\",\"Y\"))","v":""},{"$f":"IF($B777=\"N\",\"\",IF(LEN('Enrollment Form'!$Y784)=0,\"\",IF(LEN('Enrollment Form'!$Y784)<>5,\"N\",\"Y\")))","v":""},{"$f":"IF($B777=\"N\",\"\",IF(LEN('Enrollment Form'!$AD784=0),\"\",IF(LEN('Enrollment Form'!$AD784)<>5,\"N\",\"Y\")))","v":""},{"$f":"IF($B777=\"N\",\"\",IF(LEN('Enrollment Form'!$BL784=0),\"\",IF(LEN('Enrollment Form'!$BL784)<>5,\"N\",\"Y\")))","v":""},{"$f":"IF($B777=\"N\",\"\",IF(LEN('Enrollment Form'!$AE784)=0,\"\",IF(LEN('Enrollment Form'!$AE784)<>10,\"N\",\"Y\")))","v":""},{"$f":"IF($B777=\"N\",\"\",IF(LEN('Enrollment Form'!$AF784)=0,\"\",IF(LEN('Enrollment Form'!$AF784)<>10,\"N\",\"Y\")))","v":""},{"$f":"IF('Enrollment Form'!$O784<>\"Graded\",\"-\",IF(AND('Enrollment Form'!$O784=\"Graded\",'Enrollment Form'!$AO784<>\"\"),\"Y\",\"N\"))","v":"-"},{"$f":"IF($B777=\"N\",\"\",IF(OR('Enrollment Form'!$B784<>\"Subscriber\",'Enrollment Form'!$C784=\"ROC\"),\"-\",IF(AND('Enrollment Form'!$B784=\"Subscriber\",'Enrollment Form'!$C784=\"Enroll\",'Enrollment Form'!$AJ784<>\"\"),\"Y\",\"N\")))","v":""},{"$f":"IF($B777=\"N\",\"\",IF(OR('Enrollment Form'!$B784<>\"Subscriber\",'Enrollment Form'!$C784=\"ROC\"),\"-\",IF(AND('Enrollment Form'!$B784=\"Subscriber\",'Enrollment Form'!$C784=\"Enroll\",'Enrollment Form'!$AK784<>\"\"),\"Y\",\"N\")))","v":""},{"$f":"IF($B777=\"N\",\"\",IF(OR('Enrollment Form'!$B784<>\"Subscriber\",'Enrollment Form'!$C784=\"ROC\"),\"-\",IF(AND('Enrollment Form'!$B784=\"Subscriber\",'Enrollment Form'!$C784=\"Enroll\",'Enrollment Form'!$AL784<>\"\"),\"Y\",\"N\")))","v":""},{"$f":"IF($B777=\"N\",\"\",IF(OR('Enrollment Form'!$B784<>\"Subscriber\",'Enrollment Form'!$C784=\"ROC\"),\"-\",IF(AND('Enrollment Form'!$B784=\"Subscriber\",'Enrollment Form'!$C784=\"Enroll\",'Enrollment Form'!$AM784<>\"\"),\"Y\",\"N\")))","v":""},{"$f":"IF($B777=\"N\",\"\",IF(OR('Enrollment Form'!$B784<>\"Subscriber\",'Enrollment Form'!$C784=\"ROC\"),\"-\",IF(AND('Enrollment Form'!$B784=\"Subscriber\",'Enrollment Form'!$C784=\"Enroll\",'Enrollment Form'!$AN784<>\"\"),\"Y\",\"N\")))","v":""},{"$f":"IF($B777=\"N\",\"\",IF(OR('Enrollment Form'!$B784<>\"Subscriber\",'Enrollment Form'!$C784=\"ROC\"),\"-\",IF(AND('Enrollment Form'!$B784=\"Subscriber\",'Enrollment Form'!$C784=\"Enroll\",'Enrollment Form'!$AP784<>\"\"),\"Y\",\"N\")))","v":""},{"$f":"IF($B777=\"N\",\"\",IF($Q777=\"-\",\"-\",IF(AND($Q777=\"Y\",'Enrollment Form'!$AP784=\"No\"),\"-\",IF(AND($Q777=\"Y\",'Enrollment Form'!$AP784=\"Yes\",'Enrollment Form'!$AQ784<>\"\"),\"Y\",\"N\"))))","v":""},{"$f":"IF($B777=\"N\",\"\",IF(OR('Enrollment Form'!$B784<>\"Subscriber\",'Enrollment Form'!$C784=\"ROC\"),\"-\",IF(AND('Enrollment Form'!$B784=\"Subscriber\",'Enrollment Form'!$C784=\"Enroll\",'Enrollment Form'!$CO784<>\"\"),\"Y\",\"N\")))","v":""},{"$f":"IF($B777=\"N\",\"\",IF($S777=\"-\",\"-\",IF(AND($S777=\"Y\",'Enrollment Form'!$CO784=\"No\"),\"-\",IF(AND($S777=\"Y\",'Enrollment Form'!$CO784=\"Yes\",'Enrollment Form'!$CP784<>\"\"),\"Y\",\"N\"))))","v":""},{"$f":"IF(OR('Enrollment Form'!$AV784=\"Yes\",'Enrollment Form'!$AV784=\"\"),\"-\",IF(AND('Enrollment Form'!$AV784=\"No\",ISERROR(FIND(\"HMO\",VLOOKUP('Enrollment Form'!G784,'Enrollment Form'!H$11:J$1000,3,FALSE),1))=FALSE,COUNTA('Enrollment Form'!$AW784:$AZ784)=4),\"Y\",\"N\"))","v":"-"},{"$f":"IF($B777=\"N\",\"\",IF('Enrollment Form'!$B784=\"Subscriber\",\"-\",IF(COUNTA('Enrollment Form'!$BE784,'Enrollment Form'!$BG784)=2,\"Y\",\"N\")))","v":""},{"$f":"IF($B777=\"N\",\"\",IF(OR('Enrollment Form'!$AU784=\"\",'Enrollment Form'!$AU784=\"No\"),\"-\",IF(AND('Enrollment Form'!$AU784=\"Yes\",COUNTA('Enrollment Form'!$CK784)=1),\"Y\",\"N\")))","v":""},{"$f":"IF(OR('Enrollment Form'!$CK784=\"\",'Enrollment Form'!$CK784=\"No\"),\"-\",IF(COUNTA('Enrollment Form'!$CM784:$CN784)=2,\"Y\",\"N\"))","v":"-"},{"$f":"IF($B777=\"N\",\"\",IF(COUNTIF('Enrollment Form'!$CZ784:$DO784,\"Other\")=COUNTA('Enrollment Form'!$DF784,'Enrollment Form'!$DA784,'Enrollment Form'!$DK784,'Enrollment Form'!$DP784),\"Y\",\"N\"))","v":""},{"$f":"IF($B777=\"N\",\"\",IF(OR('Enrollment Form'!B784<>\"Subscriber\",'Enrollment Form'!C784=\"ROC\",COUNTIF('Enrollment Form'!AS784:AT784,\"Yes\")>=1),\"-\",IF(AND('Enrollment Form'!C784=\"Enroll\",COUNTIF('Enrollment Form'!AS784:AT784,\"No\")=2,'Enrollment Form'!AU784=\"\"),\"N\",\"Y\")))","v":""},{"$f":"IF(OR(B777=\"N\",'Enrollment Form'!B784<>\"Subscriber\",'Enrollment Form'!C784=\"ROC\",'Enrollment Form'!O784<>\"Multiple of Salary\"),\"-\",IF(COUNTA('Enrollment Form'!T784:U784)<2,\"N\",\"Y\"))","v":"-"},{"$f":"IF(B777=\"N\",\"\",IF(OR('Enrollment Form'!C784=\"ROC\",'Enrollment Form'!B784<>\"Subscriber\",'Enrollment Form'!O784=\"Waive\",'Enrollment Form'!O784=\"\"),\"-\",IF('Enrollment Form'!P784=\"\",\"N\",\"Y\")))","v":""},{"$f":"IF($B777=\"N\",\"\",IF(AND('Enrollment Form'!$C784=\"ROC\",'Enrollment Form'!$DS784<>\"\"),\"Y\",IF(AND('Enrollment Form'!$C784=\"ROC\",'Enrollment Form'!$DS784=\"\"),\"N\",IF(AND('Enrollment Form'!$C784=\"Enroll\",'Enrollment Form'!$B784=\"Subscriber\",'Enrollment Form'!$CQ784=\"No\",'Enrollment Form'!$DS784=\"\"),\"N\",IF(AND('Enrollment Form'!$C784=\"Enroll\",'Enrollment Form'!$B784=\"Subscriber\",'Enrollment Form'!$CQ784=\"Yes\"),\"-\",\"Y\")))))","v":""},{"$f":"IF($B777=\"N\",\"\",IF(AND('Enrollment Form'!$C784=\"ROC\",'Enrollment Form'!$DT784<>\"\"),\"Y\",IF(AND('Enrollment Form'!$C784=\"ROC\",'Enrollment Form'!$DT784=\"\"),\"N\",IF(AND('Enrollment Form'!$C784=\"Enroll\",'Enrollment Form'!$B784=\"Subscriber\",'Enrollment Form'!$CQ784=\"No\",'Enrollment Form'!$DT784=\"\"),\"N\",IF(AND('Enrollment Form'!$C784=\"Enroll\",'Enrollment Form'!$B784=\"Subscriber\",'Enrollment Form'!$CQ784=\"Yes\"),\"-\",\"Y\")))))","v":""},{"$f":"IF('Enrollment Form'!AH784=\"\",\"\",IF(ISERROR(SEARCH(\".\",'Enrollment Form'!AH784,SEARCH(\"@\",'Enrollment Form'!AH784))),\"N\",\"Y\"))","v":""},{"$f":"IF(OR($B777=\"N\",'Enrollment Form'!$G784=\"\"),\"\",IF('Enrollment Form'!$B784<>\"Subscriber\",\"-\",IF(COUNTIF('Enrollment Form'!$AS784:$AT784,\"Yes\")=2,\"N\",\"Y\")))","v":""},{"$f":"IF(OR('Enrollment Form'!$CC784=\"\",'Enrollment Form'!$CC784=\"No\"),\"-\",IF(AND('Enrollment Form'!$CC784=\"Yes\",'Enrollment Form'!$CD784=\"\"),\"N\",\"Y\"))","v":"-"},{"$f":"IF(OR('Enrollment Form'!$CE784=\"\",'Enrollment Form'!$CE784=\"No\"),\"-\",IF(AND('Enrollment Form'!$CE784=\"Yes\",'Enrollment Form'!$CF784=\"\"),\"N\",\"Y\"))","v":"-"},{"$f":"IF(OR('Enrollment Form'!$CG784=\"\",'Enrollment Form'!$CG784=\"No\"),\"-\",IF(AND('Enrollment Form'!$CG784=\"Yes\",'Enrollment Form'!$CH784=\"\"),\"N\",\"Y\"))","v":"-"},{"$f":"IF(OR('Enrollment Form'!$CG784=\"\",'Enrollment Form'!$CG784=\"No\"),\"-\",IF(AND('Enrollment Form'!$CG784=\"Yes\",'Enrollment Form'!$CI784=\"\"),\"N\",\"Y\"))","v":"-"},{"$f":"IF('Enrollment Form'!B784<>\"Subscriber\",\"-\",IF(AND('Enrollment Form'!B784=\"Subscriber\",'Enrollment Form'!C784=\"Enroll\",'Enrollment Form'!AA784=\"\"),\"N\",\"Y\"))","v":"-"},{"$f":"IF(OR('Enrollment Form'!B784=\"Subscriber\",'Enrollment Form'!B784=\"\"),\"-\",IF('Enrollment Form'!BI784=\"\",\"N\",\"Y\"))","v":"-"},{"$f":"IF('Enrollment Form'!B784<>\"Subscriber\",\"-\",IF(AND('Enrollment Form'!B784=\"Subscriber\",'Enrollment Form'!G784=\"\"),\"N\",\"Y\"))","v":"-"},{"$f":"IF('Enrollment Form'!A784=\"\",\"\",IF('Enrollment Form'!B784=\"Subscriber\",\"-\",IF(AND('Enrollment Form'!B784<>\"Subscriber\",'Enrollment Form'!G784='Enrollment Form'!H784),\"N\",\"Y\")))","v":""},0]
[785,{"$f":"IF('Enrollment Form'!$A785<>\"\",\"Y\",\"N\")","v":"N"},{"$f":"IF(AND('Enrollment Form'!$B785=\"\",'Enrollment Form'!$C785<>\"\"),\"N\",IF($B778=\"N\",\"\",\"Y\"))","v":""},{"$f":"IF(OR($B778=\"N\",'Enrollment Form'!G785=\"\"),\"\",IF('Enrollment Form'!$B785<>\"Subscriber\",\"\",IF('Enrollment Form'!$G785='Enrollment Form'!$H785,\"Y\",\"N\")))","v":""},{"$f":"IF($B778=\"N\",\"\",IF(AND(COUNTIFS('Enrollment Form'!$H$11:$H$1000,'Enrollment Form'!$H785,'Enrollment Form'!$B$11:$B$1000,'Enrollment Form'!$B785)>1,'Enrollment Form'!$H785<>\"\"),\"N\",\"Y\"))","v":""},{"$f":"IF($B778=\"N\",\"\",IF(LEN('Enrollment Form'!$Y785)=0,\"\",IF(LEN('Enrollment Form'!$Y785)<>5,\"N\",\"Y\")))","v":""},{"$f":"IF($B778=\"N\",\"\",IF(LEN('Enrollment Form'!$AD785=0),\"\",IF(LEN('Enrollment Form'!$AD785)<>5,\"N\",\"Y\")))","v":""},{"$f":"IF($B778=\"N\",\"\",IF(LEN('Enrollment Form'!$BL785=0),\"\",IF(LEN('Enrollment Form'!$BL785)<>5,\"N\",\"Y\")))","v":""},{"$f":"IF($B778=\"N\",\"\",IF(LEN('Enrollment Form'!$AE785)=0,\"\",IF(LEN('Enrollment Form'!$AE785)<>10,\"N\",\"Y\")))","v":""},{"$f":"IF($B778=\"N\",\"\",IF(LEN('Enrollment Form'!$AF785)=0,\"\",IF(LEN('Enrollment Form'!$AF785)<>10,\"N\",\"Y\")))","v":""},{"$f":"IF('Enrollment Form'!$O785<>\"Graded\",\"-\",IF(AND('Enrollment Form'!$O785=\"Graded\",'Enrollment Form'!$AO785<>\"\"),\"Y\",\"N\"))","v":"-"},{"$f":"IF($B778=\"N\",\"\",IF(OR('Enrollment Form'!$B785<>\"Subscriber\",'Enrollment Form'!$C785=\"ROC\"),\"-\",IF(AND('Enrollment Form'!$B785=\"Subscriber\",'Enrollment Form'!$C785=\"Enroll\",'Enrollment Form'!$AJ785<>\"\"),\"Y\",\"N\")))","v":""},{"$f":"IF($B778=\"N\",\"\",IF(OR('Enrollment Form'!$B785<>\"Subscriber\",'Enrollment Form'!$C785=\"ROC\"),\"-\",IF(AND('Enrollment Form'!$B785=\"Subscriber\",'Enrollment Form'!$C785=\"Enroll\",'Enrollment Form'!$AK785<>\"\"),\"Y\",\"N\")))","v":""},{"$f":"IF($B778=\"N\",\"\",IF(OR('Enrollment Form'!$B785<>\"Subscriber\",'Enrollment Form'!$C785=\"ROC\"),\"-\",IF(AND('Enrollment Form'!$B785=\"Subscriber\",'Enrollment Form'!$C785=\"Enroll\",'Enrollment Form'!$AL785<>\"\"),\"Y\",\"N\")))","v":""},{"$f":"IF($B778=\"N\",\"\",IF(OR('Enrollment Form'!$B785<>\"Subscriber\",'Enrollment Form'!$C785=\"ROC\"),\"-\",IF(AND('Enrollment Form'!$B785=\"Subscriber\",'Enrollment Form'!$C785=\"Enroll\",'Enrollment Form'!$AM785<>\"\"),\"Y\",\"N\")))","v":""},{"$f":"IF($B778=\"N\",\"\",IF(OR('Enrollment Form'!$B785<>\"Subscriber\",'Enrollment Form'!$C785=\"ROC\"),\"-\",IF(AND('Enrollment Form'!$B785=\"Subscriber\",'Enrollment Form'!$C785=\"Enroll\",'Enrollment Form'!$AN785<>\"\"),\"Y\",\"N\")))","v":""},{"$f":"IF($B778=\"N\",\"\",IF(OR('Enrollment Form'!$B785<>\"Subscriber\",'Enrollment Form'!$C785=\"ROC\"),\"-\",IF(AND('Enrollment Form'!$B785=\"Subscriber\",'Enrollment Form'!$C785=\"Enroll\",'Enrollment Form'!$AP785<>\"\"),\"Y\",\"N\")))","v":""},{"$f":"IF($B778=\"N\",\"\",IF($Q778=\"-\",\"-\",IF(AND($Q778=\"Y\",'Enrollment Form'!$AP785=\"No\"),\"-\",IF(AND($Q778=\"Y\",'Enrollment Form'!$AP785=\"Yes\",'Enrollment Form'!$AQ785<>\"\"),\"Y\",\"N\"))))","v":""},{"$f":"IF($B778=\"N\",\"\",IF(OR('Enrollment Form'!$B785<>\"Subscriber\",'Enrollment Form'!$C785=\"ROC\"),\"-\",IF(AND('Enrollment Form'!$B785=\"Subscriber\",'Enrollment Form'!$C785=\"Enroll\",'Enrollment Form'!$CO785<>\"\"),\"Y\",\"N\")))","v":""},{"$f":"IF($B778=\"N\",\"\",IF($S778=\"-\",\"-\",IF(AND($S778=\"Y\",'Enrollment Form'!$CO785=\"No\"),\"-\",IF(AND($S778=\"Y\",'Enrollment Form'!$CO785=\"Yes\",'Enrollment Form'!$CP785<>\"\"),\"Y\",\"N\"))))","v":""},{"$f":"IF(OR('Enrollment Form'!$AV785=\"Yes\",'Enrollment Form'!$AV785=\"\"),\"-\",IF(AND('Enrollment Form'!$AV785=\"No\",ISERROR(FIND(\"HMO\",VLOOKUP('Enrollment Form'!G785,'Enrollment Form'!H$11:J$1000,3,FALSE),1))=FALSE,COUNTA('Enrollment Form'!$AW785:$AZ785)=4),\"Y\",\"N\"))","v":"-"},{"$f":"IF($B778=\"N\",\"\",IF('Enrollment Form'!$B785=\"Subscriber\",\"-\",IF(COUNTA('Enrollment Form'!$BE785,'Enrollment Form'!$BG785)=2,\"Y\",\"N\")))","v":""},{"$f":"IF($B778=\"N\",\"\",IF(OR('Enrollment Form'!$AU785=\"\",'Enrollment Form'!$AU785=\"No\"),\"-\",IF(AND('Enrollment Form'!$AU785=\"Yes\",COUNTA('Enrollment Form'!$CK785)=1),\"Y\",\"N\")))","v":""},{"$f":"IF(OR('Enrollment Form'!$CK785=\"\",'Enrollment Form'!$CK785=\"No\"),\"-\",IF(COUNTA('Enrollment Form'!$CM785:$CN785)=2,\"Y\",\"N\"))","v":"-"},{"$f":"IF($B778=\"N\",\"\",IF(COUNTIF('Enrollment Form'!$CZ785:$DO785,\"Other\")=COUNTA('Enrollment Form'!$DF785,'Enrollment Form'!$DA785,'Enrollment Form'!$DK785,'Enrollment Form'!$DP785),\"Y\",\"N\"))","v":""},{"$f":"IF($B778=\"N\",\"\",IF(OR('Enrollment Form'!B785<>\"Subscriber\",'Enrollment Form'!C785=\"ROC\",COUNTIF('Enrollment Form'!AS785:AT785,\"Yes\")>=1),\"-\",IF(AND('Enrollment Form'!C785=\"Enroll\",COUNTIF('Enrollment Form'!AS785:AT785,\"No\")=2,'Enrollment Form'!AU785=\"\"),\"N\",\"Y\")))","v":""},{"$f":"IF(OR(B778=\"N\",'Enrollment Form'!B785<>\"Subscriber\",'Enrollment Form'!C785=\"ROC\",'Enrollment Form'!O785<>\"Multiple of Salary\"),\"-\",IF(COUNTA('Enrollment Form'!T785:U785)<2,\"N\",\"Y\"))","v":"-"},{"$f":"IF(B778=\"N\",\"\",IF(OR('Enrollment Form'!C785=\"ROC\",'Enrollment Form'!B785<>\"Subscriber\",'Enrollment Form'!O785=\"Waive\",'Enrollment Form'!O785=\"\"),\"-\",IF('Enrollment Form'!P785=\"\",\"N\",\"Y\")))","v":""},{"$f":"IF($B778=\"N\",\"\",IF(AND('Enrollment Form'!$C785=\"ROC\",'Enrollment Form'!$DS785<>\"\"),\"Y\",IF(AND('Enrollment Form'!$C785=\"ROC\",'Enrollment Form'!$DS785=\"\"),\"N\",IF(AND('Enrollment Form'!$C785=\"Enroll\",'Enrollment Form'!$B785=\"Subscriber\",'Enrollment Form'!$CQ785=\"No\",'Enrollment Form'!$DS785=\"\"),\"N\",IF(AND('Enrollment Form'!$C785=\"Enroll\",'Enrollment Form'!$B785=\"Subscriber\",'Enrollment Form'!$CQ785=\"Yes\"),\"-\",\"Y\")))))","v":""},{"$f":"IF($B778=\"N\",\"\",IF(AND('Enrollment Form'!$C785=\"ROC\",'Enrollment Form'!$DT785<>\"\"),\"Y\",IF(AND('Enrollment Form'!$C785=\"ROC\",'Enrollment Form'!$DT785=\"\"),\"N\",IF(AND('Enrollment Form'!$C785=\"Enroll\",'Enrollment Form'!$B785=\"Subscriber\",'Enrollment Form'!$CQ785=\"No\",'Enrollment Form'!$DT785=\"\"),\"N\",IF(AND('Enrollment Form'!$C785=\"Enroll\",'Enrollment Form'!$B785=\"Subscriber\",'Enrollment Form'!$CQ785=\"Yes\"),\"-\",\"Y\")))))","v":""},{"$f":"IF('Enrollment Form'!AH785=\"\",\"\",IF(ISERROR(SEARCH(\".\",'Enrollment Form'!AH785,SEARCH(\"@\",'Enrollment Form'!AH785))),\"N\",\"Y\"))","v":""},{"$f":"IF(OR($B778=\"N\",'Enrollment Form'!$G785=\"\"),\"\",IF('Enrollment Form'!$B785<>\"Subscriber\",\"-\",IF(COUNTIF('Enrollment Form'!$AS785:$AT785,\"Yes\")=2,\"N\",\"Y\")))","v":""},{"$f":"IF(OR('Enrollment Form'!$CC785=\"\",'Enrollment Form'!$CC785=\"No\"),\"-\",IF(AND('Enrollment Form'!$CC785=\"Yes\",'Enrollment Form'!$CD785=\"\"),\"N\",\"Y\"))","v":"-"},{"$f":"IF(OR('Enrollment Form'!$CE785=\"\",'Enrollment Form'!$CE785=\"No\"),\"-\",IF(AND('Enrollment Form'!$CE785=\"Yes\",'Enrollment Form'!$CF785=\"\"),\"N\",\"Y\"))","v":"-"},{"$f":"IF(OR('Enrollment Form'!$CG785=\"\",'Enrollment Form'!$CG785=\"No\"),\"-\",IF(AND('Enrollment Form'!$CG785=\"Yes\",'Enrollment Form'!$CH785=\"\"),\"N\",\"Y\"))","v":"-"},{"$f":"IF(OR('Enrollment Form'!$CG785=\"\",'Enrollment Form'!$CG785=\"No\"),\"-\",IF(AND('Enrollment Form'!$CG785=\"Yes\",'Enrollment Form'!$CI785=\"\"),\"N\",\"Y\"))","v":"-"},{"$f":"IF('Enrollment Form'!B785<>\"Subscriber\",\"-\",IF(AND('Enrollment Form'!B785=\"Subscriber\",'Enrollment Form'!C785=\"Enroll\",'Enrollment Form'!AA785=\"\"),\"N\",\"Y\"))","v":"-"},{"$f":"IF(OR('Enrollment Form'!B785=\"Subscriber\",'Enrollment Form'!B785=\"\"),\"-\",IF('Enrollment Form'!BI785=\"\",\"N\",\"Y\"))","v":"-"},{"$f":"IF('Enrollment Form'!B785<>\"Subscriber\",\"-\",IF(AND('Enrollment Form'!B785=\"Subscriber\",'Enrollment Form'!G785=\"\"),\"N\",\"Y\"))","v":"-"},{"$f":"IF('Enrollment Form'!A785=\"\",\"\",IF('Enrollment Form'!B785=\"Subscriber\",\"-\",IF(AND('Enrollment Form'!B785<>\"Subscriber\",'Enrollment Form'!G785='Enrollment Form'!H785),\"N\",\"Y\")))","v":""},0]
[786,{"$f":"IF('Enrollment Form'!$A786<>\"\",\"Y\",\"N\")","v":"N"},{"$f":"IF(AND('Enrollment Form'!$B786=\"\",'Enrollment Form'!$C786<>\"\"),\"N\",IF($B779=\"N\",\"\",\"Y\"))","v":""},{"$f":"IF(OR($B779=\"N\",'Enrollment Form'!G786=\"\"),\"\",IF('Enrollment Form'!$B786<>\"Subscriber\",\"\",IF('Enrollment Form'!$G786='Enrollment Form'!$H786,\"Y\",\"N\")))","v":""},{"$f":"IF($B779=\"N\",\"\",IF(AND(COUNTIFS('Enrollment Form'!$H$11:$H$1000,'Enrollment Form'!$H786,'Enrollment Form'!$B$11:$B$1000,'Enrollment Form'!$B786)>1,'Enrollment Form'!$H786<>\"\"),\"N\",\"Y\"))","v":""},{"$f":"IF($B779=\"N\",\"\",IF(LEN('Enrollment Form'!$Y786)=0,\"\",IF(LEN('Enrollment Form'!$Y786)<>5,\"N\",\"Y\")))","v":""},{"$f":"IF($B779=\"N\",\"\",IF(LEN('Enrollment Form'!$AD786=0),\"\",IF(LEN('Enrollment Form'!$AD786)<>5,\"N\",\"Y\")))","v":""},{"$f":"IF($B779=\"N\",\"\",IF(LEN('Enrollment Form'!$BL786=0),\"\",IF(LEN('Enrollment Form'!$BL786)<>5,\"N\",\"Y\")))","v":""},{"$f":"IF($B779=\"N\",\"\",IF(LEN('Enrollment Form'!$AE786)=0,\"\",IF(LEN('Enrollment Form'!$AE786)<>10,\"N\",\"Y\")))","v":""},{"$f":"IF($B779=\"N\",\"\",IF(LEN('Enrollment Form'!$AF786)=0,\"\",IF(LEN('Enrollment Form'!$AF786)<>10,\"N\",\"Y\")))","v":""},{"$f":"IF('Enrollment Form'!$O786<>\"Graded\",\"-\",IF(AND('Enrollment Form'!$O786=\"Graded\",'Enrollment Form'!$AO786<>\"\"),\"Y\",\"N\"))","v":"-"},{"$f":"IF($B779=\"N\",\"\",IF(OR('Enrollment Form'!$B786<>\"Subscriber\",'Enrollment Form'!$C786=\"ROC\"),\"-\",IF(AND('Enrollment Form'!$B786=\"Subscriber\",'Enrollment Form'!$C786=\"Enroll\",'Enrollment Form'!$AJ786<>\"\"),\"Y\",\"N\")))","v":""},{"$f":"IF($B779=\"N\",\"\",IF(OR('Enrollment Form'!$B786<>\"Subscriber\",'Enrollment Form'!$C786=\"ROC\"),\"-\",IF(AND('Enrollment Form'!$B786=\"Subscriber\",'Enrollment Form'!$C786=\"Enroll\",'Enrollment Form'!$AK786<>\"\"),\"Y\",\"N\")))","v":""},{"$f":"IF($B779=\"N\",\"\",IF(OR('Enrollment Form'!$B786<>\"Subscriber\",'Enrollment Form'!$C786=\"ROC\"),\"-\",IF(AND('Enrollment Form'!$B786=\"Subscriber\",'Enrollment Form'!$C786=\"Enroll\",'Enrollment Form'!$AL786<>\"\"),\"Y\",\"N\")))","v":""},{"$f":"IF($B779=\"N\",\"\",IF(OR('Enrollment Form'!$B786<>\"Subscriber\",'Enrollment Form'!$C786=\"ROC\"),\"-\",IF(AND('Enrollment Form'!$B786=\"Subscriber\",'Enrollment Form'!$C786=\"Enroll\",'Enrollment Form'!$AM786<>\"\"),\"Y\",\"N\")))","v":""},{"$f":"IF($B779=\"N\",\"\",IF(OR('Enrollment Form'!$B786<>\"Subscriber\",'Enrollment Form'!$C786=\"ROC\"),\"-\",IF(AND('Enrollment Form'!$B786=\"Subscriber\",'Enrollment Form'!$C786=\"Enroll\",'Enrollment Form'!$AN786<>\"\"),\"Y\",\"N\")))","v":""},{"$f":"IF($B779=\"N\",\"\",IF(OR('Enrollment Form'!$B786<>\"Subscriber\",'Enrollment Form'!$C786=\"ROC\"),\"-\",IF(AND('Enrollment Form'!$B786=\"Subscriber\",'Enrollment Form'!$C786=\"Enroll\",'Enrollment Form'!$AP786<>\"\"),\"Y\",\"N\")))","v":""},{"$f":"IF($B779=\"N\",\"\",IF($Q779=\"-\",\"-\",IF(AND($Q779=\"Y\",'Enrollment Form'!$AP786=\"No\"),\"-\",IF(AND($Q779=\"Y\",'Enrollment Form'!$AP786=\"Yes\",'Enrollment Form'!$AQ786<>\"\"),\"Y\",\"N\"))))","v":""},{"$f":"IF($B779=\"N\",\"\",IF(OR('Enrollment Form'!$B786<>\"Subscriber\",'Enrollment Form'!$C786=\"ROC\"),\"-\",IF(AND('Enrollment Form'!$B786=\"Subscriber\",'Enrollment Form'!$C786=\"Enroll\",'Enrollment Form'!$CO786<>\"\"),\"Y\",\"N\")))","v":""},{"$f":"IF($B779=\"N\",\"\",IF($S779=\"-\",\"-\",IF(AND($S779=\"Y\",'Enrollment Form'!$CO786=\"No\"),\"-\",IF(AND($S779=\"Y\",'Enrollment Form'!$CO786=\"Yes\",'Enrollment Form'!$CP786<>\"\"),\"Y\",\"N\"))))","v":""},{"$f":"IF(OR('Enrollment Form'!$AV786=\"Yes\",'Enrollment Form'!$AV786=\"\"),\"-\",IF(AND('Enrollment Form'!$AV786=\"No\",ISERROR(FIND(\"HMO\",VLOOKUP('Enrollment Form'!G786,'Enrollment Form'!H$11:J$1000,3,FALSE),1))=FALSE,COUNTA('Enrollment Form'!$AW786:$AZ786)=4),\"Y\",\"N\"))","v":"-"},{"$f":"IF($B779=\"N\",\"\",IF('Enrollment Form'!$B786=\"Subscriber\",\"-\",IF(COUNTA('Enrollment Form'!$BE786,'Enrollment Form'!$BG786)=2,\"Y\",\"N\")))","v":""},{"$f":"IF($B779=\"N\",\"\",IF(OR('Enrollment Form'!$AU786=\"\",'Enrollment Form'!$AU786=\"No\"),\"-\",IF(AND('Enrollment Form'!$AU786=\"Yes\",COUNTA('Enrollment Form'!$CK786)=1),\"Y\",\"N\")))","v":""},{"$f":"IF(OR('Enrollment Form'!$CK786=\"\",'Enrollment Form'!$CK786=\"No\"),\"-\",IF(COUNTA('Enrollment Form'!$CM786:$CN786)=2,\"Y\",\"N\"))","v":"-"},{"$f":"IF($B779=\"N\",\"\",IF(COUNTIF('Enrollment Form'!$CZ786:$DO786,\"Other\")=COUNTA('Enrollment Form'!$DF786,'Enrollment Form'!$DA786,'Enrollment Form'!$DK786,'Enrollment Form'!$DP786),\"Y\",\"N\"))","v":""},{"$f":"IF($B779=\"N\",\"\",IF(OR('Enrollment Form'!B786<>\"Subscriber\",'Enrollment Form'!C786=\"ROC\",COUNTIF('Enrollment Form'!AS786:AT786,\"Yes\")>=1),\"-\",IF(AND('Enrollment Form'!C786=\"Enroll\",COUNTIF('Enrollment Form'!AS786:AT786,\"No\")=2,'Enrollment Form'!AU786=\"\"),\"N\",\"Y\")))","v":""},{"$f":"IF(OR(B779=\"N\",'Enrollment Form'!B786<>\"Subscriber\",'Enrollment Form'!C786=\"ROC\",'Enrollment Form'!O786<>\"Multiple of Salary\"),\"-\",IF(COUNTA('Enrollment Form'!T786:U786)<2,\"N\",\"Y\"))","v":"-"},{"$f":"IF(B779=\"N\",\"\",IF(OR('Enrollment Form'!C786=\"ROC\",'Enrollment Form'!B786<>\"Subscriber\",'Enrollment Form'!O786=\"Waive\",'Enrollment Form'!O786=\"\"),\"-\",IF('Enrollment Form'!P786=\"\",\"N\",\"Y\")))","v":""},{"$f":"IF($B779=\"N\",\"\",IF(AND('Enrollment Form'!$C786=\"ROC\",'Enrollment Form'!$DS786<>\"\"),\"Y\",IF(AND('Enrollment Form'!$C786=\"ROC\",'Enrollment Form'!$DS786=\"\"),\"N\",IF(AND('Enrollment Form'!$C786=\"Enroll\",'Enrollment Form'!$B786=\"Subscriber\",'Enrollment Form'!$CQ786=\"No\",'Enrollment Form'!$DS786=\"\"),\"N\",IF(AND('Enrollment Form'!$C786=\"Enroll\",'Enrollment Form'!$B786=\"Subscriber\",'Enrollment Form'!$CQ786=\"Yes\"),\"-\",\"Y\")))))","v":""},{"$f":"IF($B779=\"N\",\"\",IF(AND('Enrollment Form'!$C786=\"ROC\",'Enrollment Form'!$DT786<>\"\"),\"Y\",IF(AND('Enrollment Form'!$C786=\"ROC\",'Enrollment Form'!$DT786=\"\"),\"N\",IF(AND('Enrollment Form'!$C786=\"Enroll\",'Enrollment Form'!$B786=\"Subscriber\",'Enrollment Form'!$CQ786=\"No\",'Enrollment Form'!$DT786=\"\"),\"N\",IF(AND('Enrollment Form'!$C786=\"Enroll\",'Enrollment Form'!$B786=\"Subscriber\",'Enrollment Form'!$CQ786=\"Yes\"),\"-\",\"Y\")))))","v":""},{"$f":"IF('Enrollment Form'!AH786=\"\",\"\",IF(ISERROR(SEARCH(\".\",'Enrollment Form'!AH786,SEARCH(\"@\",'Enrollment Form'!AH786))),\"N\",\"Y\"))","v":""},{"$f":"IF(OR($B779=\"N\",'Enrollment Form'!$G786=\"\"),\"\",IF('Enrollment Form'!$B786<>\"Subscriber\",\"-\",IF(COUNTIF('Enrollment Form'!$AS786:$AT786,\"Yes\")=2,\"N\",\"Y\")))","v":""},{"$f":"IF(OR('Enrollment Form'!$CC786=\"\",'Enrollment Form'!$CC786=\"No\"),\"-\",IF(AND('Enrollment Form'!$CC786=\"Yes\",'Enrollment Form'!$CD786=\"\"),\"N\",\"Y\"))","v":"-"},{"$f":"IF(OR('Enrollment Form'!$CE786=\"\",'Enrollment Form'!$CE786=\"No\"),\"-\",IF(AND('Enrollment Form'!$CE786=\"Yes\",'Enrollment Form'!$CF786=\"\"),\"N\",\"Y\"))","v":"-"},{"$f":"IF(OR('Enrollment Form'!$CG786=\"\",'Enrollment Form'!$CG786=\"No\"),\"-\",IF(AND('Enrollment Form'!$CG786=\"Yes\",'Enrollment Form'!$CH786=\"\"),\"N\",\"Y\"))","v":"-"},{"$f":"IF(OR('Enrollment Form'!$CG786=\"\",'Enrollment Form'!$CG786=\"No\"),\"-\",IF(AND('Enrollment Form'!$CG786=\"Yes\",'Enrollment Form'!$CI786=\"\"),\"N\",\"Y\"))","v":"-"},{"$f":"IF('Enrollment Form'!B786<>\"Subscriber\",\"-\",IF(AND('Enrollment Form'!B786=\"Subscriber\",'Enrollment Form'!C786=\"Enroll\",'Enrollment Form'!AA786=\"\"),\"N\",\"Y\"))","v":"-"},{"$f":"IF(OR('Enrollment Form'!B786=\"Subscriber\",'Enrollment Form'!B786=\"\"),\"-\",IF('Enrollment Form'!BI786=\"\",\"N\",\"Y\"))","v":"-"},{"$f":"IF('Enrollment Form'!B786<>\"Subscriber\",\"-\",IF(AND('Enrollment Form'!B786=\"Subscriber\",'Enrollment Form'!G786=\"\"),\"N\",\"Y\"))","v":"-"},{"$f":"IF('Enrollment Form'!A786=\"\",\"\",IF('Enrollment Form'!B786=\"Subscriber\",\"-\",IF(AND('Enrollment Form'!B786<>\"Subscriber\",'Enrollment Form'!G786='Enrollment Form'!H786),\"N\",\"Y\")))","v":""},0]
[787,{"$f":"IF('Enrollment Form'!$A787<>\"\",\"Y\",\"N\")","v":"N"},{"$f":"IF(AND('Enrollment Form'!$B787=\"\",'Enrollment Form'!$C787<>\"\"),\"N\",IF($B780=\"N\",\"\",\"Y\"))","v":""},{"$f":"IF(OR($B780=\"N\",'Enrollment Form'!G787=\"\"),\"\",IF('Enrollment Form'!$B787<>\"Subscriber\",\"\",IF('Enrollment Form'!$G787='Enrollment Form'!$H787,\"Y\",\"N\")))","v":""},{"$f":"IF($B780=\"N\",\"\",IF(AND(COUNTIFS('Enrollment Form'!$H$11:$H$1000,'Enrollment Form'!$H787,'Enrollment Form'!$B$11:$B$1000,'Enrollment Form'!$B787)>1,'Enrollment Form'!$H787<>\"\"),\"N\",\"Y\"))","v":""},{"$f":"IF($B780=\"N\",\"\",IF(LEN('Enrollment Form'!$Y787)=0,\"\",IF(LEN('Enrollment Form'!$Y787)<>5,\"N\",\"Y\")))","v":""},{"$f":"IF($B780=\"N\",\"\",IF(LEN('Enrollment Form'!$AD787=0),\"\",IF(LEN('Enrollment Form'!$AD787)<>5,\"N\",\"Y\")))","v":""},{"$f":"IF($B780=\"N\",\"\",IF(LEN('Enrollment Form'!$BL787=0),\"\",IF(LEN('Enrollment Form'!$BL787)<>5,\"N\",\"Y\")))","v":""},{"$f":"IF($B780=\"N\",\"\",IF(LEN('Enrollment Form'!$AE787)=0,\"\",IF(LEN('Enrollment Form'!$AE787)<>10,\"N\",\"Y\")))","v":""},{"$f":"IF($B780=\"N\",\"\",IF(LEN('Enrollment Form'!$AF787)=0,\"\",IF(LEN('Enrollment Form'!$AF787)<>10,\"N\",\"Y\")))","v":""},{"$f":"IF('Enrollment Form'!$O787<>\"Graded\",\"-\",IF(AND('Enrollment Form'!$O787=\"Graded\",'Enrollment Form'!$AO787<>\"\"),\"Y\",\"N\"))","v":"-"},{"$f":"IF($B780=\"N\",\"\",IF(OR('Enrollment Form'!$B787<>\"Subscriber\",'Enrollment Form'!$C787=\"ROC\"),\"-\",IF(AND('Enrollment Form'!$B787=\"Subscriber\",'Enrollment Form'!$C787=\"Enroll\",'Enrollment Form'!$AJ787<>\"\"),\"Y\",\"N\")))","v":""},{"$f":"IF($B780=\"N\",\"\",IF(OR('Enrollment Form'!$B787<>\"Subscriber\",'Enrollment Form'!$C787=\"ROC\"),\"-\",IF(AND('Enrollment Form'!$B787=\"Subscriber\",'Enrollment Form'!$C787=\"Enroll\",'Enrollment Form'!$AK787<>\"\"),\"Y\",\"N\")))","v":""},{"$f":"IF($B780=\"N\",\"\",IF(OR('Enrollment Form'!$B787<>\"Subscriber\",'Enrollment Form'!$C787=\"ROC\"),\"-\",IF(AND('Enrollment Form'!$B787=\"Subscriber\",'Enrollment Form'!$C787=\"Enroll\",'Enrollment Form'!$AL787<>\"\"),\"Y\",\"N\")))","v":""},{"$f":"IF($B780=\"N\",\"\",IF(OR('Enrollment Form'!$B787<>\"Subscriber\",'Enrollment Form'!$C787=\"ROC\"),\"-\",IF(AND('Enrollment Form'!$B787=\"Subscriber\",'Enrollment Form'!$C787=\"Enroll\",'Enrollment Form'!$AM787<>\"\"),\"Y\",\"N\")))","v":""},{"$f":"IF($B780=\"N\",\"\",IF(OR('Enrollment Form'!$B787<>\"Subscriber\",'Enrollment Form'!$C787=\"ROC\"),\"-\",IF(AND('Enrollment Form'!$B787=\"Subscriber\",'Enrollment Form'!$C787=\"Enroll\",'Enrollment Form'!$AN787<>\"\"),\"Y\",\"N\")))","v":""},{"$f":"IF($B780=\"N\",\"\",IF(OR('Enrollment Form'!$B787<>\"Subscriber\",'Enrollment Form'!$C787=\"ROC\"),\"-\",IF(AND('Enrollment Form'!$B787=\"Subscriber\",'Enrollment Form'!$C787=\"Enroll\",'Enrollment Form'!$AP787<>\"\"),\"Y\",\"N\")))","v":""},{"$f":"IF($B780=\"N\",\"\",IF($Q780=\"-\",\"-\",IF(AND($Q780=\"Y\",'Enrollment Form'!$AP787=\"No\"),\"-\",IF(AND($Q780=\"Y\",'Enrollment Form'!$AP787=\"Yes\",'Enrollment Form'!$AQ787<>\"\"),\"Y\",\"N\"))))","v":""},{"$f":"IF($B780=\"N\",\"\",IF(OR('Enrollment Form'!$B787<>\"Subscriber\",'Enrollment Form'!$C787=\"ROC\"),\"-\",IF(AND('Enrollment Form'!$B787=\"Subscriber\",'Enrollment Form'!$C787=\"Enroll\",'Enrollment Form'!$CO787<>\"\"),\"Y\",\"N\")))","v":""},{"$f":"IF($B780=\"N\",\"\",IF($S780=\"-\",\"-\",IF(AND($S780=\"Y\",'Enrollment Form'!$CO787=\"No\"),\"-\",IF(AND($S780=\"Y\",'Enrollment Form'!$CO787=\"Yes\",'Enrollment Form'!$CP787<>\"\"),\"Y\",\"N\"))))","v":""},{"$f":"IF(OR('Enrollment Form'!$AV787=\"Yes\",'Enrollment Form'!$AV787=\"\"),\"-\",IF(AND('Enrollment Form'!$AV787=\"No\",ISERROR(FIND(\"HMO\",VLOOKUP('Enrollment Form'!G787,'Enrollment Form'!H$11:J$1000,3,FALSE),1))=FALSE,COUNTA('Enrollment Form'!$AW787:$AZ787)=4),\"Y\",\"N\"))","v":"-"},{"$f":"IF($B780=\"N\",\"\",IF('Enrollment Form'!$B787=\"Subscriber\",\"-\",IF(COUNTA('Enrollment Form'!$BE787,'Enrollment Form'!$BG787)=2,\"Y\",\"N\")))","v":""},{"$f":"IF($B780=\"N\",\"\",IF(OR('Enrollment Form'!$AU787=\"\",'Enrollment Form'!$AU787=\"No\"),\"-\",IF(AND('Enrollment Form'!$AU787=\"Yes\",COUNTA('Enrollment Form'!$CK787)=1),\"Y\",\"N\")))","v":""},{"$f":"IF(OR('Enrollment Form'!$CK787=\"\",'Enrollment Form'!$CK787=\"No\"),\"-\",IF(COUNTA('Enrollment Form'!$CM787:$CN787)=2,\"Y\",\"N\"))","v":"-"},{"$f":"IF($B780=\"N\",\"\",IF(COUNTIF('Enrollment Form'!$CZ787:$DO787,\"Other\")=COUNTA('Enrollment Form'!$DF787,'Enrollment Form'!$DA787,'Enrollment Form'!$DK787,'Enrollment Form'!$DP787),\"Y\",\"N\"))","v":""},{"$f":"IF($B780=\"N\",\"\",IF(OR('Enrollment Form'!B787<>\"Subscriber\",'Enrollment Form'!C787=\"ROC\",COUNTIF('Enrollment Form'!AS787:AT787,\"Yes\")>=1),\"-\",IF(AND('Enrollment Form'!C787=\"Enroll\",COUNTIF('Enrollment Form'!AS787:AT787,\"No\")=2,'Enrollment Form'!AU787=\"\"),\"N\",\"Y\")))","v":""},{"$f":"IF(OR(B780=\"N\",'Enrollment Form'!B787<>\"Subscriber\",'Enrollment Form'!C787=\"ROC\",'Enrollment Form'!O787<>\"Multiple of Salary\"),\"-\",IF(COUNTA('Enrollment Form'!T787:U787)<2,\"N\",\"Y\"))","v":"-"},{"$f":"IF(B780=\"N\",\"\",IF(OR('Enrollment Form'!C787=\"ROC\",'Enrollment Form'!B787<>\"Subscriber\",'Enrollment Form'!O787=\"Waive\",'Enrollment Form'!O787=\"\"),\"-\",IF('Enrollment Form'!P787=\"\",\"N\",\"Y\")))","v":""},{"$f":"IF($B780=\"N\",\"\",IF(AND('Enrollment Form'!$C787=\"ROC\",'Enrollment Form'!$DS787<>\"\"),\"Y\",IF(AND('Enrollment Form'!$C787=\"ROC\",'Enrollment Form'!$DS787=\"\"),\"N\",IF(AND('Enrollment Form'!$C787=\"Enroll\",'Enrollment Form'!$B787=\"Subscriber\",'Enrollment Form'!$CQ787=\"No\",'Enrollment Form'!$DS787=\"\"),\"N\",IF(AND('Enrollment Form'!$C787=\"Enroll\",'Enrollment Form'!$B787=\"Subscriber\",'Enrollment Form'!$CQ787=\"Yes\"),\"-\",\"Y\")))))","v":""},{"$f":"IF($B780=\"N\",\"\",IF(AND('Enrollment Form'!$C787=\"ROC\",'Enrollment Form'!$DT787<>\"\"),\"Y\",IF(AND('Enrollment Form'!$C787=\"ROC\",'Enrollment Form'!$DT787=\"\"),\"N\",IF(AND('Enrollment Form'!$C787=\"Enroll\",'Enrollment Form'!$B787=\"Subscriber\",'Enrollment Form'!$CQ787=\"No\",'Enrollment Form'!$DT787=\"\"),\"N\",IF(AND('Enrollment Form'!$C787=\"Enroll\",'Enrollment Form'!$B787=\"Subscriber\",'Enrollment Form'!$CQ787=\"Yes\"),\"-\",\"Y\")))))","v":""},{"$f":"IF('Enrollment Form'!AH787=\"\",\"\",IF(ISERROR(SEARCH(\".\",'Enrollment Form'!AH787,SEARCH(\"@\",'Enrollment Form'!AH787))),\"N\",\"Y\"))","v":""},{"$f":"IF(OR($B780=\"N\",'Enrollment Form'!$G787=\"\"),\"\",IF('Enrollment Form'!$B787<>\"Subscriber\",\"-\",IF(COUNTIF('Enrollment Form'!$AS787:$AT787,\"Yes\")=2,\"N\",\"Y\")))","v":""},{"$f":"IF(OR('Enrollment Form'!$CC787=\"\",'Enrollment Form'!$CC787=\"No\"),\"-\",IF(AND('Enrollment Form'!$CC787=\"Yes\",'Enrollment Form'!$CD787=\"\"),\"N\",\"Y\"))","v":"-"},{"$f":"IF(OR('Enrollment Form'!$CE787=\"\",'Enrollment Form'!$CE787=\"No\"),\"-\",IF(AND('Enrollment Form'!$CE787=\"Yes\",'Enrollment Form'!$CF787=\"\"),\"N\",\"Y\"))","v":"-"},{"$f":"IF(OR('Enrollment Form'!$CG787=\"\",'Enrollment Form'!$CG787=\"No\"),\"-\",IF(AND('Enrollment Form'!$CG787=\"Yes\",'Enrollment Form'!$CH787=\"\"),\"N\",\"Y\"))","v":"-"},{"$f":"IF(OR('Enrollment Form'!$CG787=\"\",'Enrollment Form'!$CG787=\"No\"),\"-\",IF(AND('Enrollment Form'!$CG787=\"Yes\",'Enrollment Form'!$CI787=\"\"),\"N\",\"Y\"))","v":"-"},{"$f":"IF('Enrollment Form'!B787<>\"Subscriber\",\"-\",IF(AND('Enrollment Form'!B787=\"Subscriber\",'Enrollment Form'!C787=\"Enroll\",'Enrollment Form'!AA787=\"\"),\"N\",\"Y\"))","v":"-"},{"$f":"IF(OR('Enrollment Form'!B787=\"Subscriber\",'Enrollment Form'!B787=\"\"),\"-\",IF('Enrollment Form'!BI787=\"\",\"N\",\"Y\"))","v":"-"},{"$f":"IF('Enrollment Form'!B787<>\"Subscriber\",\"-\",IF(AND('Enrollment Form'!B787=\"Subscriber\",'Enrollment Form'!G787=\"\"),\"N\",\"Y\"))","v":"-"},{"$f":"IF('Enrollment Form'!A787=\"\",\"\",IF('Enrollment Form'!B787=\"Subscriber\",\"-\",IF(AND('Enrollment Form'!B787<>\"Subscriber\",'Enrollment Form'!G787='Enrollment Form'!H787),\"N\",\"Y\")))","v":""},0]
[788,{"$f":"IF('Enrollment Form'!$A788<>\"\",\"Y\",\"N\")","v":"N"},{"$f":"IF(AND('Enrollment Form'!$B788=\"\",'Enrollment Form'!$C788<>\"\"),\"N\",IF($B781=\"N\",\"\",\"Y\"))","v":""},{"$f":"IF(OR($B781=\"N\",'Enrollment Form'!G788=\"\"),\"\",IF('Enrollment Form'!$B788<>\"Subscriber\",\"\",IF('Enrollment Form'!$G788='Enrollment Form'!$H788,\"Y\",\"N\")))","v":""},{"$f":"IF($B781=\"N\",\"\",IF(AND(COUNTIFS('Enrollment Form'!$H$11:$H$1000,'Enrollment Form'!$H788,'Enrollment Form'!$B$11:$B$1000,'Enrollment Form'!$B788)>1,'Enrollment Form'!$H788<>\"\"),\"N\",\"Y\"))","v":""},{"$f":"IF($B781=\"N\",\"\",IF(LEN('Enrollment Form'!$Y788)=0,\"\",IF(LEN('Enrollment Form'!$Y788)<>5,\"N\",\"Y\")))","v":""},{"$f":"IF($B781=\"N\",\"\",IF(LEN('Enrollment Form'!$AD788=0),\"\",IF(LEN('Enrollment Form'!$AD788)<>5,\"N\",\"Y\")))","v":""},{"$f":"IF($B781=\"N\",\"\",IF(LEN('Enrollment Form'!$BL788=0),\"\",IF(LEN('Enrollment Form'!$BL788)<>5,\"N\",\"Y\")))","v":""},{"$f":"IF($B781=\"N\",\"\",IF(LEN('Enrollment Form'!$AE788)=0,\"\",IF(LEN('Enrollment Form'!$AE788)<>10,\"N\",\"Y\")))","v":""},{"$f":"IF($B781=\"N\",\"\",IF(LEN('Enrollment Form'!$AF788)=0,\"\",IF(LEN('Enrollment Form'!$AF788)<>10,\"N\",\"Y\")))","v":""},{"$f":"IF('Enrollment Form'!$O788<>\"Graded\",\"-\",IF(AND('Enrollment Form'!$O788=\"Graded\",'Enrollment Form'!$AO788<>\"\"),\"Y\",\"N\"))","v":"-"},{"$f":"IF($B781=\"N\",\"\",IF(OR('Enrollment Form'!$B788<>\"Subscriber\",'Enrollment Form'!$C788=\"ROC\"),\"-\",IF(AND('Enrollment Form'!$B788=\"Subscriber\",'Enrollment Form'!$C788=\"Enroll\",'Enrollment Form'!$AJ788<>\"\"),\"Y\",\"N\")))","v":""},{"$f":"IF($B781=\"N\",\"\",IF(OR('Enrollment Form'!$B788<>\"Subscriber\",'Enrollment Form'!$C788=\"ROC\"),\"-\",IF(AND('Enrollment Form'!$B788=\"Subscriber\",'Enrollment Form'!$C788=\"Enroll\",'Enrollment Form'!$AK788<>\"\"),\"Y\",\"N\")))","v":""},{"$f":"IF($B781=\"N\",\"\",IF(OR('Enrollment Form'!$B788<>\"Subscriber\",'Enrollment Form'!$C788=\"ROC\"),\"-\",IF(AND('Enrollment Form'!$B788=\"Subscriber\",'Enrollment Form'!$C788=\"Enroll\",'Enrollment Form'!$AL788<>\"\"),\"Y\",\"N\")))","v":""},{"$f":"IF($B781=\"N\",\"\",IF(OR('Enrollment Form'!$B788<>\"Subscriber\",'Enrollment Form'!$C788=\"ROC\"),\"-\",IF(AND('Enrollment Form'!$B788=\"Subscriber\",'Enrollment Form'!$C788=\"Enroll\",'Enrollment Form'!$AM788<>\"\"),\"Y\",\"N\")))","v":""},{"$f":"IF($B781=\"N\",\"\",IF(OR('Enrollment Form'!$B788<>\"Subscriber\",'Enrollment Form'!$C788=\"ROC\"),\"-\",IF(AND('Enrollment Form'!$B788=\"Subscriber\",'Enrollment Form'!$C788=\"Enroll\",'Enrollment Form'!$AN788<>\"\"),\"Y\",\"N\")))","v":""},{"$f":"IF($B781=\"N\",\"\",IF(OR('Enrollment Form'!$B788<>\"Subscriber\",'Enrollment Form'!$C788=\"ROC\"),\"-\",IF(AND('Enrollment Form'!$B788=\"Subscriber\",'Enrollment Form'!$C788=\"Enroll\",'Enrollment Form'!$AP788<>\"\"),\"Y\",\"N\")))","v":""},{"$f":"IF($B781=\"N\",\"\",IF($Q781=\"-\",\"-\",IF(AND($Q781=\"Y\",'Enrollment Form'!$AP788=\"No\"),\"-\",IF(AND($Q781=\"Y\",'Enrollment Form'!$AP788=\"Yes\",'Enrollment Form'!$AQ788<>\"\"),\"Y\",\"N\"))))","v":""},{"$f":"IF($B781=\"N\",\"\",IF(OR('Enrollment Form'!$B788<>\"Subscriber\",'Enrollment Form'!$C788=\"ROC\"),\"-\",IF(AND('Enrollment Form'!$B788=\"Subscriber\",'Enrollment Form'!$C788=\"Enroll\",'Enrollment Form'!$CO788<>\"\"),\"Y\",\"N\")))","v":""},{"$f":"IF($B781=\"N\",\"\",IF($S781=\"-\",\"-\",IF(AND($S781=\"Y\",'Enrollment Form'!$CO788=\"No\"),\"-\",IF(AND($S781=\"Y\",'Enrollment Form'!$CO788=\"Yes\",'Enrollment Form'!$CP788<>\"\"),\"Y\",\"N\"))))","v":""},{"$f":"IF(OR('Enrollment Form'!$AV788=\"Yes\",'Enrollment Form'!$AV788=\"\"),\"-\",IF(AND('Enrollment Form'!$AV788=\"No\",ISERROR(FIND(\"HMO\",VLOOKUP('Enrollment Form'!G788,'Enrollment Form'!H$11:J$1000,3,FALSE),1))=FALSE,COUNTA('Enrollment Form'!$AW788:$AZ788)=4),\"Y\",\"N\"))","v":"-"},{"$f":"IF($B781=\"N\",\"\",IF('Enrollment Form'!$B788=\"Subscriber\",\"-\",IF(COUNTA('Enrollment Form'!$BE788,'Enrollment Form'!$BG788)=2,\"Y\",\"N\")))","v":""},{"$f":"IF($B781=\"N\",\"\",IF(OR('Enrollment Form'!$AU788=\"\",'Enrollment Form'!$AU788=\"No\"),\"-\",IF(AND('Enrollment Form'!$AU788=\"Yes\",COUNTA('Enrollment Form'!$CK788)=1),\"Y\",\"N\")))","v":""},{"$f":"IF(OR('Enrollment Form'!$CK788=\"\",'Enrollment Form'!$CK788=\"No\"),\"-\",IF(COUNTA('Enrollment Form'!$CM788:$CN788)=2,\"Y\",\"N\"))","v":"-"},{"$f":"IF($B781=\"N\",\"\",IF(COUNTIF('Enrollment Form'!$CZ788:$DO788,\"Other\")=COUNTA('Enrollment Form'!$DF788,'Enrollment Form'!$DA788,'Enrollment Form'!$DK788,'Enrollment Form'!$DP788),\"Y\",\"N\"))","v":""},{"$f":"IF($B781=\"N\",\"\",IF(OR('Enrollment Form'!B788<>\"Subscriber\",'Enrollment Form'!C788=\"ROC\",COUNTIF('Enrollment Form'!AS788:AT788,\"Yes\")>=1),\"-\",IF(AND('Enrollment Form'!C788=\"Enroll\",COUNTIF('Enrollment Form'!AS788:AT788,\"No\")=2,'Enrollment Form'!AU788=\"\"),\"N\",\"Y\")))","v":""},{"$f":"IF(OR(B781=\"N\",'Enrollment Form'!B788<>\"Subscriber\",'Enrollment Form'!C788=\"ROC\",'Enrollment Form'!O788<>\"Multiple of Salary\"),\"-\",IF(COUNTA('Enrollment Form'!T788:U788)<2,\"N\",\"Y\"))","v":"-"},{"$f":"IF(B781=\"N\",\"\",IF(OR('Enrollment Form'!C788=\"ROC\",'Enrollment Form'!B788<>\"Subscriber\",'Enrollment Form'!O788=\"Waive\",'Enrollment Form'!O788=\"\"),\"-\",IF('Enrollment Form'!P788=\"\",\"N\",\"Y\")))","v":""},{"$f":"IF($B781=\"N\",\"\",IF(AND('Enrollment Form'!$C788=\"ROC\",'Enrollment Form'!$DS788<>\"\"),\"Y\",IF(AND('Enrollment Form'!$C788=\"ROC\",'Enrollment Form'!$DS788=\"\"),\"N\",IF(AND('Enrollment Form'!$C788=\"Enroll\",'Enrollment Form'!$B788=\"Subscriber\",'Enrollment Form'!$CQ788=\"No\",'Enrollment Form'!$DS788=\"\"),\"N\",IF(AND('Enrollment Form'!$C788=\"Enroll\",'Enrollment Form'!$B788=\"Subscriber\",'Enrollment Form'!$CQ788=\"Yes\"),\"-\",\"Y\")))))","v":""},{"$f":"IF($B781=\"N\",\"\",IF(AND('Enrollment Form'!$C788=\"ROC\",'Enrollment Form'!$DT788<>\"\"),\"Y\",IF(AND('Enrollment Form'!$C788=\"ROC\",'Enrollment Form'!$DT788=\"\"),\"N\",IF(AND('Enrollment Form'!$C788=\"Enroll\",'Enrollment Form'!$B788=\"Subscriber\",'Enrollment Form'!$CQ788=\"No\",'Enrollment Form'!$DT788=\"\"),\"N\",IF(AND('Enrollment Form'!$C788=\"Enroll\",'Enrollment Form'!$B788=\"Subscriber\",'Enrollment Form'!$CQ788=\"Yes\"),\"-\",\"Y\")))))","v":""},{"$f":"IF('Enrollment Form'!AH788=\"\",\"\",IF(ISERROR(SEARCH(\".\",'Enrollment Form'!AH788,SEARCH(\"@\",'Enrollment Form'!AH788))),\"N\",\"Y\"))","v":""},{"$f":"IF(OR($B781=\"N\",'Enrollment Form'!$G788=\"\"),\"\",IF('Enrollment Form'!$B788<>\"Subscriber\",\"-\",IF(COUNTIF('Enrollment Form'!$AS788:$AT788,\"Yes\")=2,\"N\",\"Y\")))","v":""},{"$f":"IF(OR('Enrollment Form'!$CC788=\"\",'Enrollment Form'!$CC788=\"No\"),\"-\",IF(AND('Enrollment Form'!$CC788=\"Yes\",'Enrollment Form'!$CD788=\"\"),\"N\",\"Y\"))","v":"-"},{"$f":"IF(OR('Enrollment Form'!$CE788=\"\",'Enrollment Form'!$CE788=\"No\"),\"-\",IF(AND('Enrollment Form'!$CE788=\"Yes\",'Enrollment Form'!$CF788=\"\"),\"N\",\"Y\"))","v":"-"},{"$f":"IF(OR('Enrollment Form'!$CG788=\"\",'Enrollment Form'!$CG788=\"No\"),\"-\",IF(AND('Enrollment Form'!$CG788=\"Yes\",'Enrollment Form'!$CH788=\"\"),\"N\",\"Y\"))","v":"-"},{"$f":"IF(OR('Enrollment Form'!$CG788=\"\",'Enrollment Form'!$CG788=\"No\"),\"-\",IF(AND('Enrollment Form'!$CG788=\"Yes\",'Enrollment Form'!$CI788=\"\"),\"N\",\"Y\"))","v":"-"},{"$f":"IF('Enrollment Form'!B788<>\"Subscriber\",\"-\",IF(AND('Enrollment Form'!B788=\"Subscriber\",'Enrollment Form'!C788=\"Enroll\",'Enrollment Form'!AA788=\"\"),\"N\",\"Y\"))","v":"-"},{"$f":"IF(OR('Enrollment Form'!B788=\"Subscriber\",'Enrollment Form'!B788=\"\"),\"-\",IF('Enrollment Form'!BI788=\"\",\"N\",\"Y\"))","v":"-"},{"$f":"IF('Enrollment Form'!B788<>\"Subscriber\",\"-\",IF(AND('Enrollment Form'!B788=\"Subscriber\",'Enrollment Form'!G788=\"\"),\"N\",\"Y\"))","v":"-"},{"$f":"IF('Enrollment Form'!A788=\"\",\"\",IF('Enrollment Form'!B788=\"Subscriber\",\"-\",IF(AND('Enrollment Form'!B788<>\"Subscriber\",'Enrollment Form'!G788='Enrollment Form'!H788),\"N\",\"Y\")))","v":""},0]
[789,{"$f":"IF('Enrollment Form'!$A789<>\"\",\"Y\",\"N\")","v":"N"},{"$f":"IF(AND('Enrollment Form'!$B789=\"\",'Enrollment Form'!$C789<>\"\"),\"N\",IF($B782=\"N\",\"\",\"Y\"))","v":""},{"$f":"IF(OR($B782=\"N\",'Enrollment Form'!G789=\"\"),\"\",IF('Enrollment Form'!$B789<>\"Subscriber\",\"\",IF('Enrollment Form'!$G789='Enrollment Form'!$H789,\"Y\",\"N\")))","v":""},{"$f":"IF($B782=\"N\",\"\",IF(AND(COUNTIFS('Enrollment Form'!$H$11:$H$1000,'Enrollment Form'!$H789,'Enrollment Form'!$B$11:$B$1000,'Enrollment Form'!$B789)>1,'Enrollment Form'!$H789<>\"\"),\"N\",\"Y\"))","v":""},{"$f":"IF($B782=\"N\",\"\",IF(LEN('Enrollment Form'!$Y789)=0,\"\",IF(LEN('Enrollment Form'!$Y789)<>5,\"N\",\"Y\")))","v":""},{"$f":"IF($B782=\"N\",\"\",IF(LEN('Enrollment Form'!$AD789=0),\"\",IF(LEN('Enrollment Form'!$AD789)<>5,\"N\",\"Y\")))","v":""},{"$f":"IF($B782=\"N\",\"\",IF(LEN('Enrollment Form'!$BL789=0),\"\",IF(LEN('Enrollment Form'!$BL789)<>5,\"N\",\"Y\")))","v":""},{"$f":"IF($B782=\"N\",\"\",IF(LEN('Enrollment Form'!$AE789)=0,\"\",IF(LEN('Enrollment Form'!$AE789)<>10,\"N\",\"Y\")))","v":""},{"$f":"IF($B782=\"N\",\"\",IF(LEN('Enrollment Form'!$AF789)=0,\"\",IF(LEN('Enrollment Form'!$AF789)<>10,\"N\",\"Y\")))","v":""},{"$f":"IF('Enrollment Form'!$O789<>\"Graded\",\"-\",IF(AND('Enrollment Form'!$O789=\"Graded\",'Enrollment Form'!$AO789<>\"\"),\"Y\",\"N\"))","v":"-"},{"$f":"IF($B782=\"N\",\"\",IF(OR('Enrollment Form'!$B789<>\"Subscriber\",'Enrollment Form'!$C789=\"ROC\"),\"-\",IF(AND('Enrollment Form'!$B789=\"Subscriber\",'Enrollment Form'!$C789=\"Enroll\",'Enrollment Form'!$AJ789<>\"\"),\"Y\",\"N\")))","v":""},{"$f":"IF($B782=\"N\",\"\",IF(OR('Enrollment Form'!$B789<>\"Subscriber\",'Enrollment Form'!$C789=\"ROC\"),\"-\",IF(AND('Enrollment Form'!$B789=\"Subscriber\",'Enrollment Form'!$C789=\"Enroll\",'Enrollment Form'!$AK789<>\"\"),\"Y\",\"N\")))","v":""},{"$f":"IF($B782=\"N\",\"\",IF(OR('Enrollment Form'!$B789<>\"Subscriber\",'Enrollment Form'!$C789=\"ROC\"),\"-\",IF(AND('Enrollment Form'!$B789=\"Subscriber\",'Enrollment Form'!$C789=\"Enroll\",'Enrollment Form'!$AL789<>\"\"),\"Y\",\"N\")))","v":""},{"$f":"IF($B782=\"N\",\"\",IF(OR('Enrollment Form'!$B789<>\"Subscriber\",'Enrollment Form'!$C789=\"ROC\"),\"-\",IF(AND('Enrollment Form'!$B789=\"Subscriber\",'Enrollment Form'!$C789=\"Enroll\",'Enrollment Form'!$AM789<>\"\"),\"Y\",\"N\")))","v":""},{"$f":"IF($B782=\"N\",\"\",IF(OR('Enrollment Form'!$B789<>\"Subscriber\",'Enrollment Form'!$C789=\"ROC\"),\"-\",IF(AND('Enrollment Form'!$B789=\"Subscriber\",'Enrollment Form'!$C789=\"Enroll\",'Enrollment Form'!$AN789<>\"\"),\"Y\",\"N\")))","v":""},{"$f":"IF($B782=\"N\",\"\",IF(OR('Enrollment Form'!$B789<>\"Subscriber\",'Enrollment Form'!$C789=\"ROC\"),\"-\",IF(AND('Enrollment Form'!$B789=\"Subscriber\",'Enrollment Form'!$C789=\"Enroll\",'Enrollment Form'!$AP789<>\"\"),\"Y\",\"N\")))","v":""},{"$f":"IF($B782=\"N\",\"\",IF($Q782=\"-\",\"-\",IF(AND($Q782=\"Y\",'Enrollment Form'!$AP789=\"No\"),\"-\",IF(AND($Q782=\"Y\",'Enrollment Form'!$AP789=\"Yes\",'Enrollment Form'!$AQ789<>\"\"),\"Y\",\"N\"))))","v":""},{"$f":"IF($B782=\"N\",\"\",IF(OR('Enrollment Form'!$B789<>\"Subscriber\",'Enrollment Form'!$C789=\"ROC\"),\"-\",IF(AND('Enrollment Form'!$B789=\"Subscriber\",'Enrollment Form'!$C789=\"Enroll\",'Enrollment Form'!$CO789<>\"\"),\"Y\",\"N\")))","v":""},{"$f":"IF($B782=\"N\",\"\",IF($S782=\"-\",\"-\",IF(AND($S782=\"Y\",'Enrollment Form'!$CO789=\"No\"),\"-\",IF(AND($S782=\"Y\",'Enrollment Form'!$CO789=\"Yes\",'Enrollment Form'!$CP789<>\"\"),\"Y\",\"N\"))))","v":""},{"$f":"IF(OR('Enrollment Form'!$AV789=\"Yes\",'Enrollment Form'!$AV789=\"\"),\"-\",IF(AND('Enrollment Form'!$AV789=\"No\",ISERROR(FIND(\"HMO\",VLOOKUP('Enrollment Form'!G789,'Enrollment Form'!H$11:J$1000,3,FALSE),1))=FALSE,COUNTA('Enrollment Form'!$AW789:$AZ789)=4),\"Y\",\"N\"))","v":"-"},{"$f":"IF($B782=\"N\",\"\",IF('Enrollment Form'!$B789=\"Subscriber\",\"-\",IF(COUNTA('Enrollment Form'!$BE789,'Enrollment Form'!$BG789)=2,\"Y\",\"N\")))","v":""},{"$f":"IF($B782=\"N\",\"\",IF(OR('Enrollment Form'!$AU789=\"\",'Enrollment Form'!$AU789=\"No\"),\"-\",IF(AND('Enrollment Form'!$AU789=\"Yes\",COUNTA('Enrollment Form'!$CK789)=1),\"Y\",\"N\")))","v":""},{"$f":"IF(OR('Enrollment Form'!$CK789=\"\",'Enrollment Form'!$CK789=\"No\"),\"-\",IF(COUNTA('Enrollment Form'!$CM789:$CN789)=2,\"Y\",\"N\"))","v":"-"},{"$f":"IF($B782=\"N\",\"\",IF(COUNTIF('Enrollment Form'!$CZ789:$DO789,\"Other\")=COUNTA('Enrollment Form'!$DF789,'Enrollment Form'!$DA789,'Enrollment Form'!$DK789,'Enrollment Form'!$DP789),\"Y\",\"N\"))","v":""},{"$f":"IF($B782=\"N\",\"\",IF(OR('Enrollment Form'!B789<>\"Subscriber\",'Enrollment Form'!C789=\"ROC\",COUNTIF('Enrollment Form'!AS789:AT789,\"Yes\")>=1),\"-\",IF(AND('Enrollment Form'!C789=\"Enroll\",COUNTIF('Enrollment Form'!AS789:AT789,\"No\")=2,'Enrollment Form'!AU789=\"\"),\"N\",\"Y\")))","v":""},{"$f":"IF(OR(B782=\"N\",'Enrollment Form'!B789<>\"Subscriber\",'Enrollment Form'!C789=\"ROC\",'Enrollment Form'!O789<>\"Multiple of Salary\"),\"-\",IF(COUNTA('Enrollment Form'!T789:U789)<2,\"N\",\"Y\"))","v":"-"},{"$f":"IF(B782=\"N\",\"\",IF(OR('Enrollment Form'!C789=\"ROC\",'Enrollment Form'!B789<>\"Subscriber\",'Enrollment Form'!O789=\"Waive\",'Enrollment Form'!O789=\"\"),\"-\",IF('Enrollment Form'!P789=\"\",\"N\",\"Y\")))","v":""},{"$f":"IF($B782=\"N\",\"\",IF(AND('Enrollment Form'!$C789=\"ROC\",'Enrollment Form'!$DS789<>\"\"),\"Y\",IF(AND('Enrollment Form'!$C789=\"ROC\",'Enrollment Form'!$DS789=\"\"),\"N\",IF(AND('Enrollment Form'!$C789=\"Enroll\",'Enrollment Form'!$B789=\"Subscriber\",'Enrollment Form'!$CQ789=\"No\",'Enrollment Form'!$DS789=\"\"),\"N\",IF(AND('Enrollment Form'!$C789=\"Enroll\",'Enrollment Form'!$B789=\"Subscriber\",'Enrollment Form'!$CQ789=\"Yes\"),\"-\",\"Y\")))))","v":""},{"$f":"IF($B782=\"N\",\"\",IF(AND('Enrollment Form'!$C789=\"ROC\",'Enrollment Form'!$DT789<>\"\"),\"Y\",IF(AND('Enrollment Form'!$C789=\"ROC\",'Enrollment Form'!$DT789=\"\"),\"N\",IF(AND('Enrollment Form'!$C789=\"Enroll\",'Enrollment Form'!$B789=\"Subscriber\",'Enrollment Form'!$CQ789=\"No\",'Enrollment Form'!$DT789=\"\"),\"N\",IF(AND('Enrollment Form'!$C789=\"Enroll\",'Enrollment Form'!$B789=\"Subscriber\",'Enrollment Form'!$CQ789=\"Yes\"),\"-\",\"Y\")))))","v":""},{"$f":"IF('Enrollment Form'!AH789=\"\",\"\",IF(ISERROR(SEARCH(\".\",'Enrollment Form'!AH789,SEARCH(\"@\",'Enrollment Form'!AH789))),\"N\",\"Y\"))","v":""},{"$f":"IF(OR($B782=\"N\",'Enrollment Form'!$G789=\"\"),\"\",IF('Enrollment Form'!$B789<>\"Subscriber\",\"-\",IF(COUNTIF('Enrollment Form'!$AS789:$AT789,\"Yes\")=2,\"N\",\"Y\")))","v":""},{"$f":"IF(OR('Enrollment Form'!$CC789=\"\",'Enrollment Form'!$CC789=\"No\"),\"-\",IF(AND('Enrollment Form'!$CC789=\"Yes\",'Enrollment Form'!$CD789=\"\"),\"N\",\"Y\"))","v":"-"},{"$f":"IF(OR('Enrollment Form'!$CE789=\"\",'Enrollment Form'!$CE789=\"No\"),\"-\",IF(AND('Enrollment Form'!$CE789=\"Yes\",'Enrollment Form'!$CF789=\"\"),\"N\",\"Y\"))","v":"-"},{"$f":"IF(OR('Enrollment Form'!$CG789=\"\",'Enrollment Form'!$CG789=\"No\"),\"-\",IF(AND('Enrollment Form'!$CG789=\"Yes\",'Enrollment Form'!$CH789=\"\"),\"N\",\"Y\"))","v":"-"},{"$f":"IF(OR('Enrollment Form'!$CG789=\"\",'Enrollment Form'!$CG789=\"No\"),\"-\",IF(AND('Enrollment Form'!$CG789=\"Yes\",'Enrollment Form'!$CI789=\"\"),\"N\",\"Y\"))","v":"-"},{"$f":"IF('Enrollment Form'!B789<>\"Subscriber\",\"-\",IF(AND('Enrollment Form'!B789=\"Subscriber\",'Enrollment Form'!C789=\"Enroll\",'Enrollment Form'!AA789=\"\"),\"N\",\"Y\"))","v":"-"},{"$f":"IF(OR('Enrollment Form'!B789=\"Subscriber\",'Enrollment Form'!B789=\"\"),\"-\",IF('Enrollment Form'!BI789=\"\",\"N\",\"Y\"))","v":"-"},{"$f":"IF('Enrollment Form'!B789<>\"Subscriber\",\"-\",IF(AND('Enrollment Form'!B789=\"Subscriber\",'Enrollment Form'!G789=\"\"),\"N\",\"Y\"))","v":"-"},{"$f":"IF('Enrollment Form'!A789=\"\",\"\",IF('Enrollment Form'!B789=\"Subscriber\",\"-\",IF(AND('Enrollment Form'!B789<>\"Subscriber\",'Enrollment Form'!G789='Enrollment Form'!H789),\"N\",\"Y\")))","v":""},0]
[790,{"$f":"IF('Enrollment Form'!$A790<>\"\",\"Y\",\"N\")","v":"N"},{"$f":"IF(AND('Enrollment Form'!$B790=\"\",'Enrollment Form'!$C790<>\"\"),\"N\",IF($B783=\"N\",\"\",\"Y\"))","v":""},{"$f":"IF(OR($B783=\"N\",'Enrollment Form'!G790=\"\"),\"\",IF('Enrollment Form'!$B790<>\"Subscriber\",\"\",IF('Enrollment Form'!$G790='Enrollment Form'!$H790,\"Y\",\"N\")))","v":""},{"$f":"IF($B783=\"N\",\"\",IF(AND(COUNTIFS('Enrollment Form'!$H$11:$H$1000,'Enrollment Form'!$H790,'Enrollment Form'!$B$11:$B$1000,'Enrollment Form'!$B790)>1,'Enrollment Form'!$H790<>\"\"),\"N\",\"Y\"))","v":""},{"$f":"IF($B783=\"N\",\"\",IF(LEN('Enrollment Form'!$Y790)=0,\"\",IF(LEN('Enrollment Form'!$Y790)<>5,\"N\",\"Y\")))","v":""},{"$f":"IF($B783=\"N\",\"\",IF(LEN('Enrollment Form'!$AD790=0),\"\",IF(LEN('Enrollment Form'!$AD790)<>5,\"N\",\"Y\")))","v":""},{"$f":"IF($B783=\"N\",\"\",IF(LEN('Enrollment Form'!$BL790=0),\"\",IF(LEN('Enrollment Form'!$BL790)<>5,\"N\",\"Y\")))","v":""},{"$f":"IF($B783=\"N\",\"\",IF(LEN('Enrollment Form'!$AE790)=0,\"\",IF(LEN('Enrollment Form'!$AE790)<>10,\"N\",\"Y\")))","v":""},{"$f":"IF($B783=\"N\",\"\",IF(LEN('Enrollment Form'!$AF790)=0,\"\",IF(LEN('Enrollment Form'!$AF790)<>10,\"N\",\"Y\")))","v":""},{"$f":"IF('Enrollment Form'!$O790<>\"Graded\",\"-\",IF(AND('Enrollment Form'!$O790=\"Graded\",'Enrollment Form'!$AO790<>\"\"),\"Y\",\"N\"))","v":"-"},{"$f":"IF($B783=\"N\",\"\",IF(OR('Enrollment Form'!$B790<>\"Subscriber\",'Enrollment Form'!$C790=\"ROC\"),\"-\",IF(AND('Enrollment Form'!$B790=\"Subscriber\",'Enrollment Form'!$C790=\"Enroll\",'Enrollment Form'!$AJ790<>\"\"),\"Y\",\"N\")))","v":""},{"$f":"IF($B783=\"N\",\"\",IF(OR('Enrollment Form'!$B790<>\"Subscriber\",'Enrollment Form'!$C790=\"ROC\"),\"-\",IF(AND('Enrollment Form'!$B790=\"Subscriber\",'Enrollment Form'!$C790=\"Enroll\",'Enrollment Form'!$AK790<>\"\"),\"Y\",\"N\")))","v":""},{"$f":"IF($B783=\"N\",\"\",IF(OR('Enrollment Form'!$B790<>\"Subscriber\",'Enrollment Form'!$C790=\"ROC\"),\"-\",IF(AND('Enrollment Form'!$B790=\"Subscriber\",'Enrollment Form'!$C790=\"Enroll\",'Enrollment Form'!$AL790<>\"\"),\"Y\",\"N\")))","v":""},{"$f":"IF($B783=\"N\",\"\",IF(OR('Enrollment Form'!$B790<>\"Subscriber\",'Enrollment Form'!$C790=\"ROC\"),\"-\",IF(AND('Enrollment Form'!$B790=\"Subscriber\",'Enrollment Form'!$C790=\"Enroll\",'Enrollment Form'!$AM790<>\"\"),\"Y\",\"N\")))","v":""},{"$f":"IF($B783=\"N\",\"\",IF(OR('Enrollment Form'!$B790<>\"Subscriber\",'Enrollment Form'!$C790=\"ROC\"),\"-\",IF(AND('Enrollment Form'!$B790=\"Subscriber\",'Enrollment Form'!$C790=\"Enroll\",'Enrollment Form'!$AN790<>\"\"),\"Y\",\"N\")))","v":""},{"$f":"IF($B783=\"N\",\"\",IF(OR('Enrollment Form'!$B790<>\"Subscriber\",'Enrollment Form'!$C790=\"ROC\"),\"-\",IF(AND('Enrollment Form'!$B790=\"Subscriber\",'Enrollment Form'!$C790=\"Enroll\",'Enrollment Form'!$AP790<>\"\"),\"Y\",\"N\")))","v":""},{"$f":"IF($B783=\"N\",\"\",IF($Q783=\"-\",\"-\",IF(AND($Q783=\"Y\",'Enrollment Form'!$AP790=\"No\"),\"-\",IF(AND($Q783=\"Y\",'Enrollment Form'!$AP790=\"Yes\",'Enrollment Form'!$AQ790<>\"\"),\"Y\",\"N\"))))","v":""},{"$f":"IF($B783=\"N\",\"\",IF(OR('Enrollment Form'!$B790<>\"Subscriber\",'Enrollment Form'!$C790=\"ROC\"),\"-\",IF(AND('Enrollment Form'!$B790=\"Subscriber\",'Enrollment Form'!$C790=\"Enroll\",'Enrollment Form'!$CO790<>\"\"),\"Y\",\"N\")))","v":""},{"$f":"IF($B783=\"N\",\"\",IF($S783=\"-\",\"-\",IF(AND($S783=\"Y\",'Enrollment Form'!$CO790=\"No\"),\"-\",IF(AND($S783=\"Y\",'Enrollment Form'!$CO790=\"Yes\",'Enrollment Form'!$CP790<>\"\"),\"Y\",\"N\"))))","v":""},{"$f":"IF(OR('Enrollment Form'!$AV790=\"Yes\",'Enrollment Form'!$AV790=\"\"),\"-\",IF(AND('Enrollment Form'!$AV790=\"No\",ISERROR(FIND(\"HMO\",VLOOKUP('Enrollment Form'!G790,'Enrollment Form'!H$11:J$1000,3,FALSE),1))=FALSE,COUNTA('Enrollment Form'!$AW790:$AZ790)=4),\"Y\",\"N\"))","v":"-"},{"$f":"IF($B783=\"N\",\"\",IF('Enrollment Form'!$B790=\"Subscriber\",\"-\",IF(COUNTA('Enrollment Form'!$BE790,'Enrollment Form'!$BG790)=2,\"Y\",\"N\")))","v":""},{"$f":"IF($B783=\"N\",\"\",IF(OR('Enrollment Form'!$AU790=\"\",'Enrollment Form'!$AU790=\"No\"),\"-\",IF(AND('Enrollment Form'!$AU790=\"Yes\",COUNTA('Enrollment Form'!$CK790)=1),\"Y\",\"N\")))","v":""},{"$f":"IF(OR('Enrollment Form'!$CK790=\"\",'Enrollment Form'!$CK790=\"No\"),\"-\",IF(COUNTA('Enrollment Form'!$CM790:$CN790)=2,\"Y\",\"N\"))","v":"-"},{"$f":"IF($B783=\"N\",\"\",IF(COUNTIF('Enrollment Form'!$CZ790:$DO790,\"Other\")=COUNTA('Enrollment Form'!$DF790,'Enrollment Form'!$DA790,'Enrollment Form'!$DK790,'Enrollment Form'!$DP790),\"Y\",\"N\"))","v":""},{"$f":"IF($B783=\"N\",\"\",IF(OR('Enrollment Form'!B790<>\"Subscriber\",'Enrollment Form'!C790=\"ROC\",COUNTIF('Enrollment Form'!AS790:AT790,\"Yes\")>=1),\"-\",IF(AND('Enrollment Form'!C790=\"Enroll\",COUNTIF('Enrollment Form'!AS790:AT790,\"No\")=2,'Enrollment Form'!AU790=\"\"),\"N\",\"Y\")))","v":""},{"$f":"IF(OR(B783=\"N\",'Enrollment Form'!B790<>\"Subscriber\",'Enrollment Form'!C790=\"ROC\",'Enrollment Form'!O790<>\"Multiple of Salary\"),\"-\",IF(COUNTA('Enrollment Form'!T790:U790)<2,\"N\",\"Y\"))","v":"-"},{"$f":"IF(B783=\"N\",\"\",IF(OR('Enrollment Form'!C790=\"ROC\",'Enrollment Form'!B790<>\"Subscriber\",'Enrollment Form'!O790=\"Waive\",'Enrollment Form'!O790=\"\"),\"-\",IF('Enrollment Form'!P790=\"\",\"N\",\"Y\")))","v":""},{"$f":"IF($B783=\"N\",\"\",IF(AND('Enrollment Form'!$C790=\"ROC\",'Enrollment Form'!$DS790<>\"\"),\"Y\",IF(AND('Enrollment Form'!$C790=\"ROC\",'Enrollment Form'!$DS790=\"\"),\"N\",IF(AND('Enrollment Form'!$C790=\"Enroll\",'Enrollment Form'!$B790=\"Subscriber\",'Enrollment Form'!$CQ790=\"No\",'Enrollment Form'!$DS790=\"\"),\"N\",IF(AND('Enrollment Form'!$C790=\"Enroll\",'Enrollment Form'!$B790=\"Subscriber\",'Enrollment Form'!$CQ790=\"Yes\"),\"-\",\"Y\")))))","v":""},{"$f":"IF($B783=\"N\",\"\",IF(AND('Enrollment Form'!$C790=\"ROC\",'Enrollment Form'!$DT790<>\"\"),\"Y\",IF(AND('Enrollment Form'!$C790=\"ROC\",'Enrollment Form'!$DT790=\"\"),\"N\",IF(AND('Enrollment Form'!$C790=\"Enroll\",'Enrollment Form'!$B790=\"Subscriber\",'Enrollment Form'!$CQ790=\"No\",'Enrollment Form'!$DT790=\"\"),\"N\",IF(AND('Enrollment Form'!$C790=\"Enroll\",'Enrollment Form'!$B790=\"Subscriber\",'Enrollment Form'!$CQ790=\"Yes\"),\"-\",\"Y\")))))","v":""},{"$f":"IF('Enrollment Form'!AH790=\"\",\"\",IF(ISERROR(SEARCH(\".\",'Enrollment Form'!AH790,SEARCH(\"@\",'Enrollment Form'!AH790))),\"N\",\"Y\"))","v":""},{"$f":"IF(OR($B783=\"N\",'Enrollment Form'!$G790=\"\"),\"\",IF('Enrollment Form'!$B790<>\"Subscriber\",\"-\",IF(COUNTIF('Enrollment Form'!$AS790:$AT790,\"Yes\")=2,\"N\",\"Y\")))","v":""},{"$f":"IF(OR('Enrollment Form'!$CC790=\"\",'Enrollment Form'!$CC790=\"No\"),\"-\",IF(AND('Enrollment Form'!$CC790=\"Yes\",'Enrollment Form'!$CD790=\"\"),\"N\",\"Y\"))","v":"-"},{"$f":"IF(OR('Enrollment Form'!$CE790=\"\",'Enrollment Form'!$CE790=\"No\"),\"-\",IF(AND('Enrollment Form'!$CE790=\"Yes\",'Enrollment Form'!$CF790=\"\"),\"N\",\"Y\"))","v":"-"},{"$f":"IF(OR('Enrollment Form'!$CG790=\"\",'Enrollment Form'!$CG790=\"No\"),\"-\",IF(AND('Enrollment Form'!$CG790=\"Yes\",'Enrollment Form'!$CH790=\"\"),\"N\",\"Y\"))","v":"-"},{"$f":"IF(OR('Enrollment Form'!$CG790=\"\",'Enrollment Form'!$CG790=\"No\"),\"-\",IF(AND('Enrollment Form'!$CG790=\"Yes\",'Enrollment Form'!$CI790=\"\"),\"N\",\"Y\"))","v":"-"},{"$f":"IF('Enrollment Form'!B790<>\"Subscriber\",\"-\",IF(AND('Enrollment Form'!B790=\"Subscriber\",'Enrollment Form'!C790=\"Enroll\",'Enrollment Form'!AA790=\"\"),\"N\",\"Y\"))","v":"-"},{"$f":"IF(OR('Enrollment Form'!B790=\"Subscriber\",'Enrollment Form'!B790=\"\"),\"-\",IF('Enrollment Form'!BI790=\"\",\"N\",\"Y\"))","v":"-"},{"$f":"IF('Enrollment Form'!B790<>\"Subscriber\",\"-\",IF(AND('Enrollment Form'!B790=\"Subscriber\",'Enrollment Form'!G790=\"\"),\"N\",\"Y\"))","v":"-"},{"$f":"IF('Enrollment Form'!A790=\"\",\"\",IF('Enrollment Form'!B790=\"Subscriber\",\"-\",IF(AND('Enrollment Form'!B790<>\"Subscriber\",'Enrollment Form'!G790='Enrollment Form'!H790),\"N\",\"Y\")))","v":""},0]
[791,{"$f":"IF('Enrollment Form'!$A791<>\"\",\"Y\",\"N\")","v":"N"},{"$f":"IF(AND('Enrollment Form'!$B791=\"\",'Enrollment Form'!$C791<>\"\"),\"N\",IF($B784=\"N\",\"\",\"Y\"))","v":""},{"$f":"IF(OR($B784=\"N\",'Enrollment Form'!G791=\"\"),\"\",IF('Enrollment Form'!$B791<>\"Subscriber\",\"\",IF('Enrollment Form'!$G791='Enrollment Form'!$H791,\"Y\",\"N\")))","v":""},{"$f":"IF($B784=\"N\",\"\",IF(AND(COUNTIFS('Enrollment Form'!$H$11:$H$1000,'Enrollment Form'!$H791,'Enrollment Form'!$B$11:$B$1000,'Enrollment Form'!$B791)>1,'Enrollment Form'!$H791<>\"\"),\"N\",\"Y\"))","v":""},{"$f":"IF($B784=\"N\",\"\",IF(LEN('Enrollment Form'!$Y791)=0,\"\",IF(LEN('Enrollment Form'!$Y791)<>5,\"N\",\"Y\")))","v":""},{"$f":"IF($B784=\"N\",\"\",IF(LEN('Enrollment Form'!$AD791=0),\"\",IF(LEN('Enrollment Form'!$AD791)<>5,\"N\",\"Y\")))","v":""},{"$f":"IF($B784=\"N\",\"\",IF(LEN('Enrollment Form'!$BL791=0),\"\",IF(LEN('Enrollment Form'!$BL791)<>5,\"N\",\"Y\")))","v":""},{"$f":"IF($B784=\"N\",\"\",IF(LEN('Enrollment Form'!$AE791)=0,\"\",IF(LEN('Enrollment Form'!$AE791)<>10,\"N\",\"Y\")))","v":""},{"$f":"IF($B784=\"N\",\"\",IF(LEN('Enrollment Form'!$AF791)=0,\"\",IF(LEN('Enrollment Form'!$AF791)<>10,\"N\",\"Y\")))","v":""},{"$f":"IF('Enrollment Form'!$O791<>\"Graded\",\"-\",IF(AND('Enrollment Form'!$O791=\"Graded\",'Enrollment Form'!$AO791<>\"\"),\"Y\",\"N\"))","v":"-"},{"$f":"IF($B784=\"N\",\"\",IF(OR('Enrollment Form'!$B791<>\"Subscriber\",'Enrollment Form'!$C791=\"ROC\"),\"-\",IF(AND('Enrollment Form'!$B791=\"Subscriber\",'Enrollment Form'!$C791=\"Enroll\",'Enrollment Form'!$AJ791<>\"\"),\"Y\",\"N\")))","v":""},{"$f":"IF($B784=\"N\",\"\",IF(OR('Enrollment Form'!$B791<>\"Subscriber\",'Enrollment Form'!$C791=\"ROC\"),\"-\",IF(AND('Enrollment Form'!$B791=\"Subscriber\",'Enrollment Form'!$C791=\"Enroll\",'Enrollment Form'!$AK791<>\"\"),\"Y\",\"N\")))","v":""},{"$f":"IF($B784=\"N\",\"\",IF(OR('Enrollment Form'!$B791<>\"Subscriber\",'Enrollment Form'!$C791=\"ROC\"),\"-\",IF(AND('Enrollment Form'!$B791=\"Subscriber\",'Enrollment Form'!$C791=\"Enroll\",'Enrollment Form'!$AL791<>\"\"),\"Y\",\"N\")))","v":""},{"$f":"IF($B784=\"N\",\"\",IF(OR('Enrollment Form'!$B791<>\"Subscriber\",'Enrollment Form'!$C791=\"ROC\"),\"-\",IF(AND('Enrollment Form'!$B791=\"Subscriber\",'Enrollment Form'!$C791=\"Enroll\",'Enrollment Form'!$AM791<>\"\"),\"Y\",\"N\")))","v":""},{"$f":"IF($B784=\"N\",\"\",IF(OR('Enrollment Form'!$B791<>\"Subscriber\",'Enrollment Form'!$C791=\"ROC\"),\"-\",IF(AND('Enrollment Form'!$B791=\"Subscriber\",'Enrollment Form'!$C791=\"Enroll\",'Enrollment Form'!$AN791<>\"\"),\"Y\",\"N\")))","v":""},{"$f":"IF($B784=\"N\",\"\",IF(OR('Enrollment Form'!$B791<>\"Subscriber\",'Enrollment Form'!$C791=\"ROC\"),\"-\",IF(AND('Enrollment Form'!$B791=\"Subscriber\",'Enrollment Form'!$C791=\"Enroll\",'Enrollment Form'!$AP791<>\"\"),\"Y\",\"N\")))","v":""},{"$f":"IF($B784=\"N\",\"\",IF($Q784=\"-\",\"-\",IF(AND($Q784=\"Y\",'Enrollment Form'!$AP791=\"No\"),\"-\",IF(AND($Q784=\"Y\",'Enrollment Form'!$AP791=\"Yes\",'Enrollment Form'!$AQ791<>\"\"),\"Y\",\"N\"))))","v":""},{"$f":"IF($B784=\"N\",\"\",IF(OR('Enrollment Form'!$B791<>\"Subscriber\",'Enrollment Form'!$C791=\"ROC\"),\"-\",IF(AND('Enrollment Form'!$B791=\"Subscriber\",'Enrollment Form'!$C791=\"Enroll\",'Enrollment Form'!$CO791<>\"\"),\"Y\",\"N\")))","v":""},{"$f":"IF($B784=\"N\",\"\",IF($S784=\"-\",\"-\",IF(AND($S784=\"Y\",'Enrollment Form'!$CO791=\"No\"),\"-\",IF(AND($S784=\"Y\",'Enrollment Form'!$CO791=\"Yes\",'Enrollment Form'!$CP791<>\"\"),\"Y\",\"N\"))))","v":""},{"$f":"IF(OR('Enrollment Form'!$AV791=\"Yes\",'Enrollment Form'!$AV791=\"\"),\"-\",IF(AND('Enrollment Form'!$AV791=\"No\",ISERROR(FIND(\"HMO\",VLOOKUP('Enrollment Form'!G791,'Enrollment Form'!H$11:J$1000,3,FALSE),1))=FALSE,COUNTA('Enrollment Form'!$AW791:$AZ791)=4),\"Y\",\"N\"))","v":"-"},{"$f":"IF($B784=\"N\",\"\",IF('Enrollment Form'!$B791=\"Subscriber\",\"-\",IF(COUNTA('Enrollment Form'!$BE791,'Enrollment Form'!$BG791)=2,\"Y\",\"N\")))","v":""},{"$f":"IF($B784=\"N\",\"\",IF(OR('Enrollment Form'!$AU791=\"\",'Enrollment Form'!$AU791=\"No\"),\"-\",IF(AND('Enrollment Form'!$AU791=\"Yes\",COUNTA('Enrollment Form'!$CK791)=1),\"Y\",\"N\")))","v":""},{"$f":"IF(OR('Enrollment Form'!$CK791=\"\",'Enrollment Form'!$CK791=\"No\"),\"-\",IF(COUNTA('Enrollment Form'!$CM791:$CN791)=2,\"Y\",\"N\"))","v":"-"},{"$f":"IF($B784=\"N\",\"\",IF(COUNTIF('Enrollment Form'!$CZ791:$DO791,\"Other\")=COUNTA('Enrollment Form'!$DF791,'Enrollment Form'!$DA791,'Enrollment Form'!$DK791,'Enrollment Form'!$DP791),\"Y\",\"N\"))","v":""},{"$f":"IF($B784=\"N\",\"\",IF(OR('Enrollment Form'!B791<>\"Subscriber\",'Enrollment Form'!C791=\"ROC\",COUNTIF('Enrollment Form'!AS791:AT791,\"Yes\")>=1),\"-\",IF(AND('Enrollment Form'!C791=\"Enroll\",COUNTIF('Enrollment Form'!AS791:AT791,\"No\")=2,'Enrollment Form'!AU791=\"\"),\"N\",\"Y\")))","v":""},{"$f":"IF(OR(B784=\"N\",'Enrollment Form'!B791<>\"Subscriber\",'Enrollment Form'!C791=\"ROC\",'Enrollment Form'!O791<>\"Multiple of Salary\"),\"-\",IF(COUNTA('Enrollment Form'!T791:U791)<2,\"N\",\"Y\"))","v":"-"},{"$f":"IF(B784=\"N\",\"\",IF(OR('Enrollment Form'!C791=\"ROC\",'Enrollment Form'!B791<>\"Subscriber\",'Enrollment Form'!O791=\"Waive\",'Enrollment Form'!O791=\"\"),\"-\",IF('Enrollment Form'!P791=\"\",\"N\",\"Y\")))","v":""},{"$f":"IF($B784=\"N\",\"\",IF(AND('Enrollment Form'!$C791=\"ROC\",'Enrollment Form'!$DS791<>\"\"),\"Y\",IF(AND('Enrollment Form'!$C791=\"ROC\",'Enrollment Form'!$DS791=\"\"),\"N\",IF(AND('Enrollment Form'!$C791=\"Enroll\",'Enrollment Form'!$B791=\"Subscriber\",'Enrollment Form'!$CQ791=\"No\",'Enrollment Form'!$DS791=\"\"),\"N\",IF(AND('Enrollment Form'!$C791=\"Enroll\",'Enrollment Form'!$B791=\"Subscriber\",'Enrollment Form'!$CQ791=\"Yes\"),\"-\",\"Y\")))))","v":""},{"$f":"IF($B784=\"N\",\"\",IF(AND('Enrollment Form'!$C791=\"ROC\",'Enrollment Form'!$DT791<>\"\"),\"Y\",IF(AND('Enrollment Form'!$C791=\"ROC\",'Enrollment Form'!$DT791=\"\"),\"N\",IF(AND('Enrollment Form'!$C791=\"Enroll\",'Enrollment Form'!$B791=\"Subscriber\",'Enrollment Form'!$CQ791=\"No\",'Enrollment Form'!$DT791=\"\"),\"N\",IF(AND('Enrollment Form'!$C791=\"Enroll\",'Enrollment Form'!$B791=\"Subscriber\",'Enrollment Form'!$CQ791=\"Yes\"),\"-\",\"Y\")))))","v":""},{"$f":"IF('Enrollment Form'!AH791=\"\",\"\",IF(ISERROR(SEARCH(\".\",'Enrollment Form'!AH791,SEARCH(\"@\",'Enrollment Form'!AH791))),\"N\",\"Y\"))","v":""},{"$f":"IF(OR($B784=\"N\",'Enrollment Form'!$G791=\"\"),\"\",IF('Enrollment Form'!$B791<>\"Subscriber\",\"-\",IF(COUNTIF('Enrollment Form'!$AS791:$AT791,\"Yes\")=2,\"N\",\"Y\")))","v":""},{"$f":"IF(OR('Enrollment Form'!$CC791=\"\",'Enrollment Form'!$CC791=\"No\"),\"-\",IF(AND('Enrollment Form'!$CC791=\"Yes\",'Enrollment Form'!$CD791=\"\"),\"N\",\"Y\"))","v":"-"},{"$f":"IF(OR('Enrollment Form'!$CE791=\"\",'Enrollment Form'!$CE791=\"No\"),\"-\",IF(AND('Enrollment Form'!$CE791=\"Yes\",'Enrollment Form'!$CF791=\"\"),\"N\",\"Y\"))","v":"-"},{"$f":"IF(OR('Enrollment Form'!$CG791=\"\",'Enrollment Form'!$CG791=\"No\"),\"-\",IF(AND('Enrollment Form'!$CG791=\"Yes\",'Enrollment Form'!$CH791=\"\"),\"N\",\"Y\"))","v":"-"},{"$f":"IF(OR('Enrollment Form'!$CG791=\"\",'Enrollment Form'!$CG791=\"No\"),\"-\",IF(AND('Enrollment Form'!$CG791=\"Yes\",'Enrollment Form'!$CI791=\"\"),\"N\",\"Y\"))","v":"-"},{"$f":"IF('Enrollment Form'!B791<>\"Subscriber\",\"-\",IF(AND('Enrollment Form'!B791=\"Subscriber\",'Enrollment Form'!C791=\"Enroll\",'Enrollment Form'!AA791=\"\"),\"N\",\"Y\"))","v":"-"},{"$f":"IF(OR('Enrollment Form'!B791=\"Subscriber\",'Enrollment Form'!B791=\"\"),\"-\",IF('Enrollment Form'!BI791=\"\",\"N\",\"Y\"))","v":"-"},{"$f":"IF('Enrollment Form'!B791<>\"Subscriber\",\"-\",IF(AND('Enrollment Form'!B791=\"Subscriber\",'Enrollment Form'!G791=\"\"),\"N\",\"Y\"))","v":"-"},{"$f":"IF('Enrollment Form'!A791=\"\",\"\",IF('Enrollment Form'!B791=\"Subscriber\",\"-\",IF(AND('Enrollment Form'!B791<>\"Subscriber\",'Enrollment Form'!G791='Enrollment Form'!H791),\"N\",\"Y\")))","v":""},0]
[792,{"$f":"IF('Enrollment Form'!$A792<>\"\",\"Y\",\"N\")","v":"N"},{"$f":"IF(AND('Enrollment Form'!$B792=\"\",'Enrollment Form'!$C792<>\"\"),\"N\",IF($B785=\"N\",\"\",\"Y\"))","v":""},{"$f":"IF(OR($B785=\"N\",'Enrollment Form'!G792=\"\"),\"\",IF('Enrollment Form'!$B792<>\"Subscriber\",\"\",IF('Enrollment Form'!$G792='Enrollment Form'!$H792,\"Y\",\"N\")))","v":""},{"$f":"IF($B785=\"N\",\"\",IF(AND(COUNTIFS('Enrollment Form'!$H$11:$H$1000,'Enrollment Form'!$H792,'Enrollment Form'!$B$11:$B$1000,'Enrollment Form'!$B792)>1,'Enrollment Form'!$H792<>\"\"),\"N\",\"Y\"))","v":""},{"$f":"IF($B785=\"N\",\"\",IF(LEN('Enrollment Form'!$Y792)=0,\"\",IF(LEN('Enrollment Form'!$Y792)<>5,\"N\",\"Y\")))","v":""},{"$f":"IF($B785=\"N\",\"\",IF(LEN('Enrollment Form'!$AD792=0),\"\",IF(LEN('Enrollment Form'!$AD792)<>5,\"N\",\"Y\")))","v":""},{"$f":"IF($B785=\"N\",\"\",IF(LEN('Enrollment Form'!$BL792=0),\"\",IF(LEN('Enrollment Form'!$BL792)<>5,\"N\",\"Y\")))","v":""},{"$f":"IF($B785=\"N\",\"\",IF(LEN('Enrollment Form'!$AE792)=0,\"\",IF(LEN('Enrollment Form'!$AE792)<>10,\"N\",\"Y\")))","v":""},{"$f":"IF($B785=\"N\",\"\",IF(LEN('Enrollment Form'!$AF792)=0,\"\",IF(LEN('Enrollment Form'!$AF792)<>10,\"N\",\"Y\")))","v":""},{"$f":"IF('Enrollment Form'!$O792<>\"Graded\",\"-\",IF(AND('Enrollment Form'!$O792=\"Graded\",'Enrollment Form'!$AO792<>\"\"),\"Y\",\"N\"))","v":"-"},{"$f":"IF($B785=\"N\",\"\",IF(OR('Enrollment Form'!$B792<>\"Subscriber\",'Enrollment Form'!$C792=\"ROC\"),\"-\",IF(AND('Enrollment Form'!$B792=\"Subscriber\",'Enrollment Form'!$C792=\"Enroll\",'Enrollment Form'!$AJ792<>\"\"),\"Y\",\"N\")))","v":""},{"$f":"IF($B785=\"N\",\"\",IF(OR('Enrollment Form'!$B792<>\"Subscriber\",'Enrollment Form'!$C792=\"ROC\"),\"-\",IF(AND('Enrollment Form'!$B792=\"Subscriber\",'Enrollment Form'!$C792=\"Enroll\",'Enrollment Form'!$AK792<>\"\"),\"Y\",\"N\")))","v":""},{"$f":"IF($B785=\"N\",\"\",IF(OR('Enrollment Form'!$B792<>\"Subscriber\",'Enrollment Form'!$C792=\"ROC\"),\"-\",IF(AND('Enrollment Form'!$B792=\"Subscriber\",'Enrollment Form'!$C792=\"Enroll\",'Enrollment Form'!$AL792<>\"\"),\"Y\",\"N\")))","v":""},{"$f":"IF($B785=\"N\",\"\",IF(OR('Enrollment Form'!$B792<>\"Subscriber\",'Enrollment Form'!$C792=\"ROC\"),\"-\",IF(AND('Enrollment Form'!$B792=\"Subscriber\",'Enrollment Form'!$C792=\"Enroll\",'Enrollment Form'!$AM792<>\"\"),\"Y\",\"N\")))","v":""},{"$f":"IF($B785=\"N\",\"\",IF(OR('Enrollment Form'!$B792<>\"Subscriber\",'Enrollment Form'!$C792=\"ROC\"),\"-\",IF(AND('Enrollment Form'!$B792=\"Subscriber\",'Enrollment Form'!$C792=\"Enroll\",'Enrollment Form'!$AN792<>\"\"),\"Y\",\"N\")))","v":""},{"$f":"IF($B785=\"N\",\"\",IF(OR('Enrollment Form'!$B792<>\"Subscriber\",'Enrollment Form'!$C792=\"ROC\"),\"-\",IF(AND('Enrollment Form'!$B792=\"Subscriber\",'Enrollment Form'!$C792=\"Enroll\",'Enrollment Form'!$AP792<>\"\"),\"Y\",\"N\")))","v":""},{"$f":"IF($B785=\"N\",\"\",IF($Q785=\"-\",\"-\",IF(AND($Q785=\"Y\",'Enrollment Form'!$AP792=\"No\"),\"-\",IF(AND($Q785=\"Y\",'Enrollment Form'!$AP792=\"Yes\",'Enrollment Form'!$AQ792<>\"\"),\"Y\",\"N\"))))","v":""},{"$f":"IF($B785=\"N\",\"\",IF(OR('Enrollment Form'!$B792<>\"Subscriber\",'Enrollment Form'!$C792=\"ROC\"),\"-\",IF(AND('Enrollment Form'!$B792=\"Subscriber\",'Enrollment Form'!$C792=\"Enroll\",'Enrollment Form'!$CO792<>\"\"),\"Y\",\"N\")))","v":""},{"$f":"IF($B785=\"N\",\"\",IF($S785=\"-\",\"-\",IF(AND($S785=\"Y\",'Enrollment Form'!$CO792=\"No\"),\"-\",IF(AND($S785=\"Y\",'Enrollment Form'!$CO792=\"Yes\",'Enrollment Form'!$CP792<>\"\"),\"Y\",\"N\"))))","v":""},{"$f":"IF(OR('Enrollment Form'!$AV792=\"Yes\",'Enrollment Form'!$AV792=\"\"),\"-\",IF(AND('Enrollment Form'!$AV792=\"No\",ISERROR(FIND(\"HMO\",VLOOKUP('Enrollment Form'!G792,'Enrollment Form'!H$11:J$1000,3,FALSE),1))=FALSE,COUNTA('Enrollment Form'!$AW792:$AZ792)=4),\"Y\",\"N\"))","v":"-"},{"$f":"IF($B785=\"N\",\"\",IF('Enrollment Form'!$B792=\"Subscriber\",\"-\",IF(COUNTA('Enrollment Form'!$BE792,'Enrollment Form'!$BG792)=2,\"Y\",\"N\")))","v":""},{"$f":"IF($B785=\"N\",\"\",IF(OR('Enrollment Form'!$AU792=\"\",'Enrollment Form'!$AU792=\"No\"),\"-\",IF(AND('Enrollment Form'!$AU792=\"Yes\",COUNTA('Enrollment Form'!$CK792)=1),\"Y\",\"N\")))","v":""},{"$f":"IF(OR('Enrollment Form'!$CK792=\"\",'Enrollment Form'!$CK792=\"No\"),\"-\",IF(COUNTA('Enrollment Form'!$CM792:$CN792)=2,\"Y\",\"N\"))","v":"-"},{"$f":"IF($B785=\"N\",\"\",IF(COUNTIF('Enrollment Form'!$CZ792:$DO792,\"Other\")=COUNTA('Enrollment Form'!$DF792,'Enrollment Form'!$DA792,'Enrollment Form'!$DK792,'Enrollment Form'!$DP792),\"Y\",\"N\"))","v":""},{"$f":"IF($B785=\"N\",\"\",IF(OR('Enrollment Form'!B792<>\"Subscriber\",'Enrollment Form'!C792=\"ROC\",COUNTIF('Enrollment Form'!AS792:AT792,\"Yes\")>=1),\"-\",IF(AND('Enrollment Form'!C792=\"Enroll\",COUNTIF('Enrollment Form'!AS792:AT792,\"No\")=2,'Enrollment Form'!AU792=\"\"),\"N\",\"Y\")))","v":""},{"$f":"IF(OR(B785=\"N\",'Enrollment Form'!B792<>\"Subscriber\",'Enrollment Form'!C792=\"ROC\",'Enrollment Form'!O792<>\"Multiple of Salary\"),\"-\",IF(COUNTA('Enrollment Form'!T792:U792)<2,\"N\",\"Y\"))","v":"-"},{"$f":"IF(B785=\"N\",\"\",IF(OR('Enrollment Form'!C792=\"ROC\",'Enrollment Form'!B792<>\"Subscriber\",'Enrollment Form'!O792=\"Waive\",'Enrollment Form'!O792=\"\"),\"-\",IF('Enrollment Form'!P792=\"\",\"N\",\"Y\")))","v":""},{"$f":"IF($B785=\"N\",\"\",IF(AND('Enrollment Form'!$C792=\"ROC\",'Enrollment Form'!$DS792<>\"\"),\"Y\",IF(AND('Enrollment Form'!$C792=\"ROC\",'Enrollment Form'!$DS792=\"\"),\"N\",IF(AND('Enrollment Form'!$C792=\"Enroll\",'Enrollment Form'!$B792=\"Subscriber\",'Enrollment Form'!$CQ792=\"No\",'Enrollment Form'!$DS792=\"\"),\"N\",IF(AND('Enrollment Form'!$C792=\"Enroll\",'Enrollment Form'!$B792=\"Subscriber\",'Enrollment Form'!$CQ792=\"Yes\"),\"-\",\"Y\")))))","v":""},{"$f":"IF($B785=\"N\",\"\",IF(AND('Enrollment Form'!$C792=\"ROC\",'Enrollment Form'!$DT792<>\"\"),\"Y\",IF(AND('Enrollment Form'!$C792=\"ROC\",'Enrollment Form'!$DT792=\"\"),\"N\",IF(AND('Enrollment Form'!$C792=\"Enroll\",'Enrollment Form'!$B792=\"Subscriber\",'Enrollment Form'!$CQ792=\"No\",'Enrollment Form'!$DT792=\"\"),\"N\",IF(AND('Enrollment Form'!$C792=\"Enroll\",'Enrollment Form'!$B792=\"Subscriber\",'Enrollment Form'!$CQ792=\"Yes\"),\"-\",\"Y\")))))","v":""},{"$f":"IF('Enrollment Form'!AH792=\"\",\"\",IF(ISERROR(SEARCH(\".\",'Enrollment Form'!AH792,SEARCH(\"@\",'Enrollment Form'!AH792))),\"N\",\"Y\"))","v":""},{"$f":"IF(OR($B785=\"N\",'Enrollment Form'!$G792=\"\"),\"\",IF('Enrollment Form'!$B792<>\"Subscriber\",\"-\",IF(COUNTIF('Enrollment Form'!$AS792:$AT792,\"Yes\")=2,\"N\",\"Y\")))","v":""},{"$f":"IF(OR('Enrollment Form'!$CC792=\"\",'Enrollment Form'!$CC792=\"No\"),\"-\",IF(AND('Enrollment Form'!$CC792=\"Yes\",'Enrollment Form'!$CD792=\"\"),\"N\",\"Y\"))","v":"-"},{"$f":"IF(OR('Enrollment Form'!$CE792=\"\",'Enrollment Form'!$CE792=\"No\"),\"-\",IF(AND('Enrollment Form'!$CE792=\"Yes\",'Enrollment Form'!$CF792=\"\"),\"N\",\"Y\"))","v":"-"},{"$f":"IF(OR('Enrollment Form'!$CG792=\"\",'Enrollment Form'!$CG792=\"No\"),\"-\",IF(AND('Enrollment Form'!$CG792=\"Yes\",'Enrollment Form'!$CH792=\"\"),\"N\",\"Y\"))","v":"-"},{"$f":"IF(OR('Enrollment Form'!$CG792=\"\",'Enrollment Form'!$CG792=\"No\"),\"-\",IF(AND('Enrollment Form'!$CG792=\"Yes\",'Enrollment Form'!$CI792=\"\"),\"N\",\"Y\"))","v":"-"},{"$f":"IF('Enrollment Form'!B792<>\"Subscriber\",\"-\",IF(AND('Enrollment Form'!B792=\"Subscriber\",'Enrollment Form'!C792=\"Enroll\",'Enrollment Form'!AA792=\"\"),\"N\",\"Y\"))","v":"-"},{"$f":"IF(OR('Enrollment Form'!B792=\"Subscriber\",'Enrollment Form'!B792=\"\"),\"-\",IF('Enrollment Form'!BI792=\"\",\"N\",\"Y\"))","v":"-"},{"$f":"IF('Enrollment Form'!B792<>\"Subscriber\",\"-\",IF(AND('Enrollment Form'!B792=\"Subscriber\",'Enrollment Form'!G792=\"\"),\"N\",\"Y\"))","v":"-"},{"$f":"IF('Enrollment Form'!A792=\"\",\"\",IF('Enrollment Form'!B792=\"Subscriber\",\"-\",IF(AND('Enrollment Form'!B792<>\"Subscriber\",'Enrollment Form'!G792='Enrollment Form'!H792),\"N\",\"Y\")))","v":""},0]
[793,{"$f":"IF('Enrollment Form'!$A793<>\"\",\"Y\",\"N\")","v":"N"},{"$f":"IF(AND('Enrollment Form'!$B793=\"\",'Enrollment Form'!$C793<>\"\"),\"N\",IF($B786=\"N\",\"\",\"Y\"))","v":""},{"$f":"IF(OR($B786=\"N\",'Enrollment Form'!G793=\"\"),\"\",IF('Enrollment Form'!$B793<>\"Subscriber\",\"\",IF('Enrollment Form'!$G793='Enrollment Form'!$H793,\"Y\",\"N\")))","v":""},{"$f":"IF($B786=\"N\",\"\",IF(AND(COUNTIFS('Enrollment Form'!$H$11:$H$1000,'Enrollment Form'!$H793,'Enrollment Form'!$B$11:$B$1000,'Enrollment Form'!$B793)>1,'Enrollment Form'!$H793<>\"\"),\"N\",\"Y\"))","v":""},{"$f":"IF($B786=\"N\",\"\",IF(LEN('Enrollment Form'!$Y793)=0,\"\",IF(LEN('Enrollment Form'!$Y793)<>5,\"N\",\"Y\")))","v":""},{"$f":"IF($B786=\"N\",\"\",IF(LEN('Enrollment Form'!$AD793=0),\"\",IF(LEN('Enrollment Form'!$AD793)<>5,\"N\",\"Y\")))","v":""},{"$f":"IF($B786=\"N\",\"\",IF(LEN('Enrollment Form'!$BL793=0),\"\",IF(LEN('Enrollment Form'!$BL793)<>5,\"N\",\"Y\")))","v":""},{"$f":"IF($B786=\"N\",\"\",IF(LEN('Enrollment Form'!$AE793)=0,\"\",IF(LEN('Enrollment Form'!$AE793)<>10,\"N\",\"Y\")))","v":""},{"$f":"IF($B786=\"N\",\"\",IF(LEN('Enrollment Form'!$AF793)=0,\"\",IF(LEN('Enrollment Form'!$AF793)<>10,\"N\",\"Y\")))","v":""},{"$f":"IF('Enrollment Form'!$O793<>\"Graded\",\"-\",IF(AND('Enrollment Form'!$O793=\"Graded\",'Enrollment Form'!$AO793<>\"\"),\"Y\",\"N\"))","v":"-"},{"$f":"IF($B786=\"N\",\"\",IF(OR('Enrollment Form'!$B793<>\"Subscriber\",'Enrollment Form'!$C793=\"ROC\"),\"-\",IF(AND('Enrollment Form'!$B793=\"Subscriber\",'Enrollment Form'!$C793=\"Enroll\",'Enrollment Form'!$AJ793<>\"\"),\"Y\",\"N\")))","v":""},{"$f":"IF($B786=\"N\",\"\",IF(OR('Enrollment Form'!$B793<>\"Subscriber\",'Enrollment Form'!$C793=\"ROC\"),\"-\",IF(AND('Enrollment Form'!$B793=\"Subscriber\",'Enrollment Form'!$C793=\"Enroll\",'Enrollment Form'!$AK793<>\"\"),\"Y\",\"N\")))","v":""},{"$f":"IF($B786=\"N\",\"\",IF(OR('Enrollment Form'!$B793<>\"Subscriber\",'Enrollment Form'!$C793=\"ROC\"),\"-\",IF(AND('Enrollment Form'!$B793=\"Subscriber\",'Enrollment Form'!$C793=\"Enroll\",'Enrollment Form'!$AL793<>\"\"),\"Y\",\"N\")))","v":""},{"$f":"IF($B786=\"N\",\"\",IF(OR('Enrollment Form'!$B793<>\"Subscriber\",'Enrollment Form'!$C793=\"ROC\"),\"-\",IF(AND('Enrollment Form'!$B793=\"Subscriber\",'Enrollment Form'!$C793=\"Enroll\",'Enrollment Form'!$AM793<>\"\"),\"Y\",\"N\")))","v":""},{"$f":"IF($B786=\"N\",\"\",IF(OR('Enrollment Form'!$B793<>\"Subscriber\",'Enrollment Form'!$C793=\"ROC\"),\"-\",IF(AND('Enrollment Form'!$B793=\"Subscriber\",'Enrollment Form'!$C793=\"Enroll\",'Enrollment Form'!$AN793<>\"\"),\"Y\",\"N\")))","v":""},{"$f":"IF($B786=\"N\",\"\",IF(OR('Enrollment Form'!$B793<>\"Subscriber\",'Enrollment Form'!$C793=\"ROC\"),\"-\",IF(AND('Enrollment Form'!$B793=\"Subscriber\",'Enrollment Form'!$C793=\"Enroll\",'Enrollment Form'!$AP793<>\"\"),\"Y\",\"N\")))","v":""},{"$f":"IF($B786=\"N\",\"\",IF($Q786=\"-\",\"-\",IF(AND($Q786=\"Y\",'Enrollment Form'!$AP793=\"No\"),\"-\",IF(AND($Q786=\"Y\",'Enrollment Form'!$AP793=\"Yes\",'Enrollment Form'!$AQ793<>\"\"),\"Y\",\"N\"))))","v":""},{"$f":"IF($B786=\"N\",\"\",IF(OR('Enrollment Form'!$B793<>\"Subscriber\",'Enrollment Form'!$C793=\"ROC\"),\"-\",IF(AND('Enrollment Form'!$B793=\"Subscriber\",'Enrollment Form'!$C793=\"Enroll\",'Enrollment Form'!$CO793<>\"\"),\"Y\",\"N\")))","v":""},{"$f":"IF($B786=\"N\",\"\",IF($S786=\"-\",\"-\",IF(AND($S786=\"Y\",'Enrollment Form'!$CO793=\"No\"),\"-\",IF(AND($S786=\"Y\",'Enrollment Form'!$CO793=\"Yes\",'Enrollment Form'!$CP793<>\"\"),\"Y\",\"N\"))))","v":""},{"$f":"IF(OR('Enrollment Form'!$AV793=\"Yes\",'Enrollment Form'!$AV793=\"\"),\"-\",IF(AND('Enrollment Form'!$AV793=\"No\",ISERROR(FIND(\"HMO\",VLOOKUP('Enrollment Form'!G793,'Enrollment Form'!H$11:J$1000,3,FALSE),1))=FALSE,COUNTA('Enrollment Form'!$AW793:$AZ793)=4),\"Y\",\"N\"))","v":"-"},{"$f":"IF($B786=\"N\",\"\",IF('Enrollment Form'!$B793=\"Subscriber\",\"-\",IF(COUNTA('Enrollment Form'!$BE793,'Enrollment Form'!$BG793)=2,\"Y\",\"N\")))","v":""},{"$f":"IF($B786=\"N\",\"\",IF(OR('Enrollment Form'!$AU793=\"\",'Enrollment Form'!$AU793=\"No\"),\"-\",IF(AND('Enrollment Form'!$AU793=\"Yes\",COUNTA('Enrollment Form'!$CK793)=1),\"Y\",\"N\")))","v":""},{"$f":"IF(OR('Enrollment Form'!$CK793=\"\",'Enrollment Form'!$CK793=\"No\"),\"-\",IF(COUNTA('Enrollment Form'!$CM793:$CN793)=2,\"Y\",\"N\"))","v":"-"},{"$f":"IF($B786=\"N\",\"\",IF(COUNTIF('Enrollment Form'!$CZ793:$DO793,\"Other\")=COUNTA('Enrollment Form'!$DF793,'Enrollment Form'!$DA793,'Enrollment Form'!$DK793,'Enrollment Form'!$DP793),\"Y\",\"N\"))","v":""},{"$f":"IF($B786=\"N\",\"\",IF(OR('Enrollment Form'!B793<>\"Subscriber\",'Enrollment Form'!C793=\"ROC\",COUNTIF('Enrollment Form'!AS793:AT793,\"Yes\")>=1),\"-\",IF(AND('Enrollment Form'!C793=\"Enroll\",COUNTIF('Enrollment Form'!AS793:AT793,\"No\")=2,'Enrollment Form'!AU793=\"\"),\"N\",\"Y\")))","v":""},{"$f":"IF(OR(B786=\"N\",'Enrollment Form'!B793<>\"Subscriber\",'Enrollment Form'!C793=\"ROC\",'Enrollment Form'!O793<>\"Multiple of Salary\"),\"-\",IF(COUNTA('Enrollment Form'!T793:U793)<2,\"N\",\"Y\"))","v":"-"},{"$f":"IF(B786=\"N\",\"\",IF(OR('Enrollment Form'!C793=\"ROC\",'Enrollment Form'!B793<>\"Subscriber\",'Enrollment Form'!O793=\"Waive\",'Enrollment Form'!O793=\"\"),\"-\",IF('Enrollment Form'!P793=\"\",\"N\",\"Y\")))","v":""},{"$f":"IF($B786=\"N\",\"\",IF(AND('Enrollment Form'!$C793=\"ROC\",'Enrollment Form'!$DS793<>\"\"),\"Y\",IF(AND('Enrollment Form'!$C793=\"ROC\",'Enrollment Form'!$DS793=\"\"),\"N\",IF(AND('Enrollment Form'!$C793=\"Enroll\",'Enrollment Form'!$B793=\"Subscriber\",'Enrollment Form'!$CQ793=\"No\",'Enrollment Form'!$DS793=\"\"),\"N\",IF(AND('Enrollment Form'!$C793=\"Enroll\",'Enrollment Form'!$B793=\"Subscriber\",'Enrollment Form'!$CQ793=\"Yes\"),\"-\",\"Y\")))))","v":""},{"$f":"IF($B786=\"N\",\"\",IF(AND('Enrollment Form'!$C793=\"ROC\",'Enrollment Form'!$DT793<>\"\"),\"Y\",IF(AND('Enrollment Form'!$C793=\"ROC\",'Enrollment Form'!$DT793=\"\"),\"N\",IF(AND('Enrollment Form'!$C793=\"Enroll\",'Enrollment Form'!$B793=\"Subscriber\",'Enrollment Form'!$CQ793=\"No\",'Enrollment Form'!$DT793=\"\"),\"N\",IF(AND('Enrollment Form'!$C793=\"Enroll\",'Enrollment Form'!$B793=\"Subscriber\",'Enrollment Form'!$CQ793=\"Yes\"),\"-\",\"Y\")))))","v":""},{"$f":"IF('Enrollment Form'!AH793=\"\",\"\",IF(ISERROR(SEARCH(\".\",'Enrollment Form'!AH793,SEARCH(\"@\",'Enrollment Form'!AH793))),\"N\",\"Y\"))","v":""},{"$f":"IF(OR($B786=\"N\",'Enrollment Form'!$G793=\"\"),\"\",IF('Enrollment Form'!$B793<>\"Subscriber\",\"-\",IF(COUNTIF('Enrollment Form'!$AS793:$AT793,\"Yes\")=2,\"N\",\"Y\")))","v":""},{"$f":"IF(OR('Enrollment Form'!$CC793=\"\",'Enrollment Form'!$CC793=\"No\"),\"-\",IF(AND('Enrollment Form'!$CC793=\"Yes\",'Enrollment Form'!$CD793=\"\"),\"N\",\"Y\"))","v":"-"},{"$f":"IF(OR('Enrollment Form'!$CE793=\"\",'Enrollment Form'!$CE793=\"No\"),\"-\",IF(AND('Enrollment Form'!$CE793=\"Yes\",'Enrollment Form'!$CF793=\"\"),\"N\",\"Y\"))","v":"-"},{"$f":"IF(OR('Enrollment Form'!$CG793=\"\",'Enrollment Form'!$CG793=\"No\"),\"-\",IF(AND('Enrollment Form'!$CG793=\"Yes\",'Enrollment Form'!$CH793=\"\"),\"N\",\"Y\"))","v":"-"},{"$f":"IF(OR('Enrollment Form'!$CG793=\"\",'Enrollment Form'!$CG793=\"No\"),\"-\",IF(AND('Enrollment Form'!$CG793=\"Yes\",'Enrollment Form'!$CI793=\"\"),\"N\",\"Y\"))","v":"-"},{"$f":"IF('Enrollment Form'!B793<>\"Subscriber\",\"-\",IF(AND('Enrollment Form'!B793=\"Subscriber\",'Enrollment Form'!C793=\"Enroll\",'Enrollment Form'!AA793=\"\"),\"N\",\"Y\"))","v":"-"},{"$f":"IF(OR('Enrollment Form'!B793=\"Subscriber\",'Enrollment Form'!B793=\"\"),\"-\",IF('Enrollment Form'!BI793=\"\",\"N\",\"Y\"))","v":"-"},{"$f":"IF('Enrollment Form'!B793<>\"Subscriber\",\"-\",IF(AND('Enrollment Form'!B793=\"Subscriber\",'Enrollment Form'!G793=\"\"),\"N\",\"Y\"))","v":"-"},{"$f":"IF('Enrollment Form'!A793=\"\",\"\",IF('Enrollment Form'!B793=\"Subscriber\",\"-\",IF(AND('Enrollment Form'!B793<>\"Subscriber\",'Enrollment Form'!G793='Enrollment Form'!H793),\"N\",\"Y\")))","v":""},0]
[794,{"$f":"IF('Enrollment Form'!$A794<>\"\",\"Y\",\"N\")","v":"N"},{"$f":"IF(AND('Enrollment Form'!$B794=\"\",'Enrollment Form'!$C794<>\"\"),\"N\",IF($B787=\"N\",\"\",\"Y\"))","v":""},{"$f":"IF(OR($B787=\"N\",'Enrollment Form'!G794=\"\"),\"\",IF('Enrollment Form'!$B794<>\"Subscriber\",\"\",IF('Enrollment Form'!$G794='Enrollment Form'!$H794,\"Y\",\"N\")))","v":""},{"$f":"IF($B787=\"N\",\"\",IF(AND(COUNTIFS('Enrollment Form'!$H$11:$H$1000,'Enrollment Form'!$H794,'Enrollment Form'!$B$11:$B$1000,'Enrollment Form'!$B794)>1,'Enrollment Form'!$H794<>\"\"),\"N\",\"Y\"))","v":""},{"$f":"IF($B787=\"N\",\"\",IF(LEN('Enrollment Form'!$Y794)=0,\"\",IF(LEN('Enrollment Form'!$Y794)<>5,\"N\",\"Y\")))","v":""},{"$f":"IF($B787=\"N\",\"\",IF(LEN('Enrollment Form'!$AD794=0),\"\",IF(LEN('Enrollment Form'!$AD794)<>5,\"N\",\"Y\")))","v":""},{"$f":"IF($B787=\"N\",\"\",IF(LEN('Enrollment Form'!$BL794=0),\"\",IF(LEN('Enrollment Form'!$BL794)<>5,\"N\",\"Y\")))","v":""},{"$f":"IF($B787=\"N\",\"\",IF(LEN('Enrollment Form'!$AE794)=0,\"\",IF(LEN('Enrollment Form'!$AE794)<>10,\"N\",\"Y\")))","v":""},{"$f":"IF($B787=\"N\",\"\",IF(LEN('Enrollment Form'!$AF794)=0,\"\",IF(LEN('Enrollment Form'!$AF794)<>10,\"N\",\"Y\")))","v":""},{"$f":"IF('Enrollment Form'!$O794<>\"Graded\",\"-\",IF(AND('Enrollment Form'!$O794=\"Graded\",'Enrollment Form'!$AO794<>\"\"),\"Y\",\"N\"))","v":"-"},{"$f":"IF($B787=\"N\",\"\",IF(OR('Enrollment Form'!$B794<>\"Subscriber\",'Enrollment Form'!$C794=\"ROC\"),\"-\",IF(AND('Enrollment Form'!$B794=\"Subscriber\",'Enrollment Form'!$C794=\"Enroll\",'Enrollment Form'!$AJ794<>\"\"),\"Y\",\"N\")))","v":""},{"$f":"IF($B787=\"N\",\"\",IF(OR('Enrollment Form'!$B794<>\"Subscriber\",'Enrollment Form'!$C794=\"ROC\"),\"-\",IF(AND('Enrollment Form'!$B794=\"Subscriber\",'Enrollment Form'!$C794=\"Enroll\",'Enrollment Form'!$AK794<>\"\"),\"Y\",\"N\")))","v":""},{"$f":"IF($B787=\"N\",\"\",IF(OR('Enrollment Form'!$B794<>\"Subscriber\",'Enrollment Form'!$C794=\"ROC\"),\"-\",IF(AND('Enrollment Form'!$B794=\"Subscriber\",'Enrollment Form'!$C794=\"Enroll\",'Enrollment Form'!$AL794<>\"\"),\"Y\",\"N\")))","v":""},{"$f":"IF($B787=\"N\",\"\",IF(OR('Enrollment Form'!$B794<>\"Subscriber\",'Enrollment Form'!$C794=\"ROC\"),\"-\",IF(AND('Enrollment Form'!$B794=\"Subscriber\",'Enrollment Form'!$C794=\"Enroll\",'Enrollment Form'!$AM794<>\"\"),\"Y\",\"N\")))","v":""},{"$f":"IF($B787=\"N\",\"\",IF(OR('Enrollment Form'!$B794<>\"Subscriber\",'Enrollment Form'!$C794=\"ROC\"),\"-\",IF(AND('Enrollment Form'!$B794=\"Subscriber\",'Enrollment Form'!$C794=\"Enroll\",'Enrollment Form'!$AN794<>\"\"),\"Y\",\"N\")))","v":""},{"$f":"IF($B787=\"N\",\"\",IF(OR('Enrollment Form'!$B794<>\"Subscriber\",'Enrollment Form'!$C794=\"ROC\"),\"-\",IF(AND('Enrollment Form'!$B794=\"Subscriber\",'Enrollment Form'!$C794=\"Enroll\",'Enrollment Form'!$AP794<>\"\"),\"Y\",\"N\")))","v":""},{"$f":"IF($B787=\"N\",\"\",IF($Q787=\"-\",\"-\",IF(AND($Q787=\"Y\",'Enrollment Form'!$AP794=\"No\"),\"-\",IF(AND($Q787=\"Y\",'Enrollment Form'!$AP794=\"Yes\",'Enrollment Form'!$AQ794<>\"\"),\"Y\",\"N\"))))","v":""},{"$f":"IF($B787=\"N\",\"\",IF(OR('Enrollment Form'!$B794<>\"Subscriber\",'Enrollment Form'!$C794=\"ROC\"),\"-\",IF(AND('Enrollment Form'!$B794=\"Subscriber\",'Enrollment Form'!$C794=\"Enroll\",'Enrollment Form'!$CO794<>\"\"),\"Y\",\"N\")))","v":""},{"$f":"IF($B787=\"N\",\"\",IF($S787=\"-\",\"-\",IF(AND($S787=\"Y\",'Enrollment Form'!$CO794=\"No\"),\"-\",IF(AND($S787=\"Y\",'Enrollment Form'!$CO794=\"Yes\",'Enrollment Form'!$CP794<>\"\"),\"Y\",\"N\"))))","v":""},{"$f":"IF(OR('Enrollment Form'!$AV794=\"Yes\",'Enrollment Form'!$AV794=\"\"),\"-\",IF(AND('Enrollment Form'!$AV794=\"No\",ISERROR(FIND(\"HMO\",VLOOKUP('Enrollment Form'!G794,'Enrollment Form'!H$11:J$1000,3,FALSE),1))=FALSE,COUNTA('Enrollment Form'!$AW794:$AZ794)=4),\"Y\",\"N\"))","v":"-"},{"$f":"IF($B787=\"N\",\"\",IF('Enrollment Form'!$B794=\"Subscriber\",\"-\",IF(COUNTA('Enrollment Form'!$BE794,'Enrollment Form'!$BG794)=2,\"Y\",\"N\")))","v":""},{"$f":"IF($B787=\"N\",\"\",IF(OR('Enrollment Form'!$AU794=\"\",'Enrollment Form'!$AU794=\"No\"),\"-\",IF(AND('Enrollment Form'!$AU794=\"Yes\",COUNTA('Enrollment Form'!$CK794)=1),\"Y\",\"N\")))","v":""},{"$f":"IF(OR('Enrollment Form'!$CK794=\"\",'Enrollment Form'!$CK794=\"No\"),\"-\",IF(COUNTA('Enrollment Form'!$CM794:$CN794)=2,\"Y\",\"N\"))","v":"-"},{"$f":"IF($B787=\"N\",\"\",IF(COUNTIF('Enrollment Form'!$CZ794:$DO794,\"Other\")=COUNTA('Enrollment Form'!$DF794,'Enrollment Form'!$DA794,'Enrollment Form'!$DK794,'Enrollment Form'!$DP794),\"Y\",\"N\"))","v":""},{"$f":"IF($B787=\"N\",\"\",IF(OR('Enrollment Form'!B794<>\"Subscriber\",'Enrollment Form'!C794=\"ROC\",COUNTIF('Enrollment Form'!AS794:AT794,\"Yes\")>=1),\"-\",IF(AND('Enrollment Form'!C794=\"Enroll\",COUNTIF('Enrollment Form'!AS794:AT794,\"No\")=2,'Enrollment Form'!AU794=\"\"),\"N\",\"Y\")))","v":""},{"$f":"IF(OR(B787=\"N\",'Enrollment Form'!B794<>\"Subscriber\",'Enrollment Form'!C794=\"ROC\",'Enrollment Form'!O794<>\"Multiple of Salary\"),\"-\",IF(COUNTA('Enrollment Form'!T794:U794)<2,\"N\",\"Y\"))","v":"-"},{"$f":"IF(B787=\"N\",\"\",IF(OR('Enrollment Form'!C794=\"ROC\",'Enrollment Form'!B794<>\"Subscriber\",'Enrollment Form'!O794=\"Waive\",'Enrollment Form'!O794=\"\"),\"-\",IF('Enrollment Form'!P794=\"\",\"N\",\"Y\")))","v":""},{"$f":"IF($B787=\"N\",\"\",IF(AND('Enrollment Form'!$C794=\"ROC\",'Enrollment Form'!$DS794<>\"\"),\"Y\",IF(AND('Enrollment Form'!$C794=\"ROC\",'Enrollment Form'!$DS794=\"\"),\"N\",IF(AND('Enrollment Form'!$C794=\"Enroll\",'Enrollment Form'!$B794=\"Subscriber\",'Enrollment Form'!$CQ794=\"No\",'Enrollment Form'!$DS794=\"\"),\"N\",IF(AND('Enrollment Form'!$C794=\"Enroll\",'Enrollment Form'!$B794=\"Subscriber\",'Enrollment Form'!$CQ794=\"Yes\"),\"-\",\"Y\")))))","v":""},{"$f":"IF($B787=\"N\",\"\",IF(AND('Enrollment Form'!$C794=\"ROC\",'Enrollment Form'!$DT794<>\"\"),\"Y\",IF(AND('Enrollment Form'!$C794=\"ROC\",'Enrollment Form'!$DT794=\"\"),\"N\",IF(AND('Enrollment Form'!$C794=\"Enroll\",'Enrollment Form'!$B794=\"Subscriber\",'Enrollment Form'!$CQ794=\"No\",'Enrollment Form'!$DT794=\"\"),\"N\",IF(AND('Enrollment Form'!$C794=\"Enroll\",'Enrollment Form'!$B794=\"Subscriber\",'Enrollment Form'!$CQ794=\"Yes\"),\"-\",\"Y\")))))","v":""},{"$f":"IF('Enrollment Form'!AH794=\"\",\"\",IF(ISERROR(SEARCH(\".\",'Enrollment Form'!AH794,SEARCH(\"@\",'Enrollment Form'!AH794))),\"N\",\"Y\"))","v":""},{"$f":"IF(OR($B787=\"N\",'Enrollment Form'!$G794=\"\"),\"\",IF('Enrollment Form'!$B794<>\"Subscriber\",\"-\",IF(COUNTIF('Enrollment Form'!$AS794:$AT794,\"Yes\")=2,\"N\",\"Y\")))","v":""},{"$f":"IF(OR('Enrollment Form'!$CC794=\"\",'Enrollment Form'!$CC794=\"No\"),\"-\",IF(AND('Enrollment Form'!$CC794=\"Yes\",'Enrollment Form'!$CD794=\"\"),\"N\",\"Y\"))","v":"-"},{"$f":"IF(OR('Enrollment Form'!$CE794=\"\",'Enrollment Form'!$CE794=\"No\"),\"-\",IF(AND('Enrollment Form'!$CE794=\"Yes\",'Enrollment Form'!$CF794=\"\"),\"N\",\"Y\"))","v":"-"},{"$f":"IF(OR('Enrollment Form'!$CG794=\"\",'Enrollment Form'!$CG794=\"No\"),\"-\",IF(AND('Enrollment Form'!$CG794=\"Yes\",'Enrollment Form'!$CH794=\"\"),\"N\",\"Y\"))","v":"-"},{"$f":"IF(OR('Enrollment Form'!$CG794=\"\",'Enrollment Form'!$CG794=\"No\"),\"-\",IF(AND('Enrollment Form'!$CG794=\"Yes\",'Enrollment Form'!$CI794=\"\"),\"N\",\"Y\"))","v":"-"},{"$f":"IF('Enrollment Form'!B794<>\"Subscriber\",\"-\",IF(AND('Enrollment Form'!B794=\"Subscriber\",'Enrollment Form'!C794=\"Enroll\",'Enrollment Form'!AA794=\"\"),\"N\",\"Y\"))","v":"-"},{"$f":"IF(OR('Enrollment Form'!B794=\"Subscriber\",'Enrollment Form'!B794=\"\"),\"-\",IF('Enrollment Form'!BI794=\"\",\"N\",\"Y\"))","v":"-"},{"$f":"IF('Enrollment Form'!B794<>\"Subscriber\",\"-\",IF(AND('Enrollment Form'!B794=\"Subscriber\",'Enrollment Form'!G794=\"\"),\"N\",\"Y\"))","v":"-"},{"$f":"IF('Enrollment Form'!A794=\"\",\"\",IF('Enrollment Form'!B794=\"Subscriber\",\"-\",IF(AND('Enrollment Form'!B794<>\"Subscriber\",'Enrollment Form'!G794='Enrollment Form'!H794),\"N\",\"Y\")))","v":""},0]
[795,{"$f":"IF('Enrollment Form'!$A795<>\"\",\"Y\",\"N\")","v":"N"},{"$f":"IF(AND('Enrollment Form'!$B795=\"\",'Enrollment Form'!$C795<>\"\"),\"N\",IF($B788=\"N\",\"\",\"Y\"))","v":""},{"$f":"IF(OR($B788=\"N\",'Enrollment Form'!G795=\"\"),\"\",IF('Enrollment Form'!$B795<>\"Subscriber\",\"\",IF('Enrollment Form'!$G795='Enrollment Form'!$H795,\"Y\",\"N\")))","v":""},{"$f":"IF($B788=\"N\",\"\",IF(AND(COUNTIFS('Enrollment Form'!$H$11:$H$1000,'Enrollment Form'!$H795,'Enrollment Form'!$B$11:$B$1000,'Enrollment Form'!$B795)>1,'Enrollment Form'!$H795<>\"\"),\"N\",\"Y\"))","v":""},{"$f":"IF($B788=\"N\",\"\",IF(LEN('Enrollment Form'!$Y795)=0,\"\",IF(LEN('Enrollment Form'!$Y795)<>5,\"N\",\"Y\")))","v":""},{"$f":"IF($B788=\"N\",\"\",IF(LEN('Enrollment Form'!$AD795=0),\"\",IF(LEN('Enrollment Form'!$AD795)<>5,\"N\",\"Y\")))","v":""},{"$f":"IF($B788=\"N\",\"\",IF(LEN('Enrollment Form'!$BL795=0),\"\",IF(LEN('Enrollment Form'!$BL795)<>5,\"N\",\"Y\")))","v":""},{"$f":"IF($B788=\"N\",\"\",IF(LEN('Enrollment Form'!$AE795)=0,\"\",IF(LEN('Enrollment Form'!$AE795)<>10,\"N\",\"Y\")))","v":""},{"$f":"IF($B788=\"N\",\"\",IF(LEN('Enrollment Form'!$AF795)=0,\"\",IF(LEN('Enrollment Form'!$AF795)<>10,\"N\",\"Y\")))","v":""},{"$f":"IF('Enrollment Form'!$O795<>\"Graded\",\"-\",IF(AND('Enrollment Form'!$O795=\"Graded\",'Enrollment Form'!$AO795<>\"\"),\"Y\",\"N\"))","v":"-"},{"$f":"IF($B788=\"N\",\"\",IF(OR('Enrollment Form'!$B795<>\"Subscriber\",'Enrollment Form'!$C795=\"ROC\"),\"-\",IF(AND('Enrollment Form'!$B795=\"Subscriber\",'Enrollment Form'!$C795=\"Enroll\",'Enrollment Form'!$AJ795<>\"\"),\"Y\",\"N\")))","v":""},{"$f":"IF($B788=\"N\",\"\",IF(OR('Enrollment Form'!$B795<>\"Subscriber\",'Enrollment Form'!$C795=\"ROC\"),\"-\",IF(AND('Enrollment Form'!$B795=\"Subscriber\",'Enrollment Form'!$C795=\"Enroll\",'Enrollment Form'!$AK795<>\"\"),\"Y\",\"N\")))","v":""},{"$f":"IF($B788=\"N\",\"\",IF(OR('Enrollment Form'!$B795<>\"Subscriber\",'Enrollment Form'!$C795=\"ROC\"),\"-\",IF(AND('Enrollment Form'!$B795=\"Subscriber\",'Enrollment Form'!$C795=\"Enroll\",'Enrollment Form'!$AL795<>\"\"),\"Y\",\"N\")))","v":""},{"$f":"IF($B788=\"N\",\"\",IF(OR('Enrollment Form'!$B795<>\"Subscriber\",'Enrollment Form'!$C795=\"ROC\"),\"-\",IF(AND('Enrollment Form'!$B795=\"Subscriber\",'Enrollment Form'!$C795=\"Enroll\",'Enrollment Form'!$AM795<>\"\"),\"Y\",\"N\")))","v":""},{"$f":"IF($B788=\"N\",\"\",IF(OR('Enrollment Form'!$B795<>\"Subscriber\",'Enrollment Form'!$C795=\"ROC\"),\"-\",IF(AND('Enrollment Form'!$B795=\"Subscriber\",'Enrollment Form'!$C795=\"Enroll\",'Enrollment Form'!$AN795<>\"\"),\"Y\",\"N\")))","v":""},{"$f":"IF($B788=\"N\",\"\",IF(OR('Enrollment Form'!$B795<>\"Subscriber\",'Enrollment Form'!$C795=\"ROC\"),\"-\",IF(AND('Enrollment Form'!$B795=\"Subscriber\",'Enrollment Form'!$C795=\"Enroll\",'Enrollment Form'!$AP795<>\"\"),\"Y\",\"N\")))","v":""},{"$f":"IF($B788=\"N\",\"\",IF($Q788=\"-\",\"-\",IF(AND($Q788=\"Y\",'Enrollment Form'!$AP795=\"No\"),\"-\",IF(AND($Q788=\"Y\",'Enrollment Form'!$AP795=\"Yes\",'Enrollment Form'!$AQ795<>\"\"),\"Y\",\"N\"))))","v":""},{"$f":"IF($B788=\"N\",\"\",IF(OR('Enrollment Form'!$B795<>\"Subscriber\",'Enrollment Form'!$C795=\"ROC\"),\"-\",IF(AND('Enrollment Form'!$B795=\"Subscriber\",'Enrollment Form'!$C795=\"Enroll\",'Enrollment Form'!$CO795<>\"\"),\"Y\",\"N\")))","v":""},{"$f":"IF($B788=\"N\",\"\",IF($S788=\"-\",\"-\",IF(AND($S788=\"Y\",'Enrollment Form'!$CO795=\"No\"),\"-\",IF(AND($S788=\"Y\",'Enrollment Form'!$CO795=\"Yes\",'Enrollment Form'!$CP795<>\"\"),\"Y\",\"N\"))))","v":""},{"$f":"IF(OR('Enrollment Form'!$AV795=\"Yes\",'Enrollment Form'!$AV795=\"\"),\"-\",IF(AND('Enrollment Form'!$AV795=\"No\",ISERROR(FIND(\"HMO\",VLOOKUP('Enrollment Form'!G795,'Enrollment Form'!H$11:J$1000,3,FALSE),1))=FALSE,COUNTA('Enrollment Form'!$AW795:$AZ795)=4),\"Y\",\"N\"))","v":"-"},{"$f":"IF($B788=\"N\",\"\",IF('Enrollment Form'!$B795=\"Subscriber\",\"-\",IF(COUNTA('Enrollment Form'!$BE795,'Enrollment Form'!$BG795)=2,\"Y\",\"N\")))","v":""},{"$f":"IF($B788=\"N\",\"\",IF(OR('Enrollment Form'!$AU795=\"\",'Enrollment Form'!$AU795=\"No\"),\"-\",IF(AND('Enrollment Form'!$AU795=\"Yes\",COUNTA('Enrollment Form'!$CK795)=1),\"Y\",\"N\")))","v":""},{"$f":"IF(OR('Enrollment Form'!$CK795=\"\",'Enrollment Form'!$CK795=\"No\"),\"-\",IF(COUNTA('Enrollment Form'!$CM795:$CN795)=2,\"Y\",\"N\"))","v":"-"},{"$f":"IF($B788=\"N\",\"\",IF(COUNTIF('Enrollment Form'!$CZ795:$DO795,\"Other\")=COUNTA('Enrollment Form'!$DF795,'Enrollment Form'!$DA795,'Enrollment Form'!$DK795,'Enrollment Form'!$DP795),\"Y\",\"N\"))","v":""},{"$f":"IF($B788=\"N\",\"\",IF(OR('Enrollment Form'!B795<>\"Subscriber\",'Enrollment Form'!C795=\"ROC\",COUNTIF('Enrollment Form'!AS795:AT795,\"Yes\")>=1),\"-\",IF(AND('Enrollment Form'!C795=\"Enroll\",COUNTIF('Enrollment Form'!AS795:AT795,\"No\")=2,'Enrollment Form'!AU795=\"\"),\"N\",\"Y\")))","v":""},{"$f":"IF(OR(B788=\"N\",'Enrollment Form'!B795<>\"Subscriber\",'Enrollment Form'!C795=\"ROC\",'Enrollment Form'!O795<>\"Multiple of Salary\"),\"-\",IF(COUNTA('Enrollment Form'!T795:U795)<2,\"N\",\"Y\"))","v":"-"},{"$f":"IF(B788=\"N\",\"\",IF(OR('Enrollment Form'!C795=\"ROC\",'Enrollment Form'!B795<>\"Subscriber\",'Enrollment Form'!O795=\"Waive\",'Enrollment Form'!O795=\"\"),\"-\",IF('Enrollment Form'!P795=\"\",\"N\",\"Y\")))","v":""},{"$f":"IF($B788=\"N\",\"\",IF(AND('Enrollment Form'!$C795=\"ROC\",'Enrollment Form'!$DS795<>\"\"),\"Y\",IF(AND('Enrollment Form'!$C795=\"ROC\",'Enrollment Form'!$DS795=\"\"),\"N\",IF(AND('Enrollment Form'!$C795=\"Enroll\",'Enrollment Form'!$B795=\"Subscriber\",'Enrollment Form'!$CQ795=\"No\",'Enrollment Form'!$DS795=\"\"),\"N\",IF(AND('Enrollment Form'!$C795=\"Enroll\",'Enrollment Form'!$B795=\"Subscriber\",'Enrollment Form'!$CQ795=\"Yes\"),\"-\",\"Y\")))))","v":""},{"$f":"IF($B788=\"N\",\"\",IF(AND('Enrollment Form'!$C795=\"ROC\",'Enrollment Form'!$DT795<>\"\"),\"Y\",IF(AND('Enrollment Form'!$C795=\"ROC\",'Enrollment Form'!$DT795=\"\"),\"N\",IF(AND('Enrollment Form'!$C795=\"Enroll\",'Enrollment Form'!$B795=\"Subscriber\",'Enrollment Form'!$CQ795=\"No\",'Enrollment Form'!$DT795=\"\"),\"N\",IF(AND('Enrollment Form'!$C795=\"Enroll\",'Enrollment Form'!$B795=\"Subscriber\",'Enrollment Form'!$CQ795=\"Yes\"),\"-\",\"Y\")))))","v":""},{"$f":"IF('Enrollment Form'!AH795=\"\",\"\",IF(ISERROR(SEARCH(\".\",'Enrollment Form'!AH795,SEARCH(\"@\",'Enrollment Form'!AH795))),\"N\",\"Y\"))","v":""},{"$f":"IF(OR($B788=\"N\",'Enrollment Form'!$G795=\"\"),\"\",IF('Enrollment Form'!$B795<>\"Subscriber\",\"-\",IF(COUNTIF('Enrollment Form'!$AS795:$AT795,\"Yes\")=2,\"N\",\"Y\")))","v":""},{"$f":"IF(OR('Enrollment Form'!$CC795=\"\",'Enrollment Form'!$CC795=\"No\"),\"-\",IF(AND('Enrollment Form'!$CC795=\"Yes\",'Enrollment Form'!$CD795=\"\"),\"N\",\"Y\"))","v":"-"},{"$f":"IF(OR('Enrollment Form'!$CE795=\"\",'Enrollment Form'!$CE795=\"No\"),\"-\",IF(AND('Enrollment Form'!$CE795=\"Yes\",'Enrollment Form'!$CF795=\"\"),\"N\",\"Y\"))","v":"-"},{"$f":"IF(OR('Enrollment Form'!$CG795=\"\",'Enrollment Form'!$CG795=\"No\"),\"-\",IF(AND('Enrollment Form'!$CG795=\"Yes\",'Enrollment Form'!$CH795=\"\"),\"N\",\"Y\"))","v":"-"},{"$f":"IF(OR('Enrollment Form'!$CG795=\"\",'Enrollment Form'!$CG795=\"No\"),\"-\",IF(AND('Enrollment Form'!$CG795=\"Yes\",'Enrollment Form'!$CI795=\"\"),\"N\",\"Y\"))","v":"-"},{"$f":"IF('Enrollment Form'!B795<>\"Subscriber\",\"-\",IF(AND('Enrollment Form'!B795=\"Subscriber\",'Enrollment Form'!C795=\"Enroll\",'Enrollment Form'!AA795=\"\"),\"N\",\"Y\"))","v":"-"},{"$f":"IF(OR('Enrollment Form'!B795=\"Subscriber\",'Enrollment Form'!B795=\"\"),\"-\",IF('Enrollment Form'!BI795=\"\",\"N\",\"Y\"))","v":"-"},{"$f":"IF('Enrollment Form'!B795<>\"Subscriber\",\"-\",IF(AND('Enrollment Form'!B795=\"Subscriber\",'Enrollment Form'!G795=\"\"),\"N\",\"Y\"))","v":"-"},{"$f":"IF('Enrollment Form'!A795=\"\",\"\",IF('Enrollment Form'!B795=\"Subscriber\",\"-\",IF(AND('Enrollment Form'!B795<>\"Subscriber\",'Enrollment Form'!G795='Enrollment Form'!H795),\"N\",\"Y\")))","v":""},0]
[796,{"$f":"IF('Enrollment Form'!$A796<>\"\",\"Y\",\"N\")","v":"N"},{"$f":"IF(AND('Enrollment Form'!$B796=\"\",'Enrollment Form'!$C796<>\"\"),\"N\",IF($B789=\"N\",\"\",\"Y\"))","v":""},{"$f":"IF(OR($B789=\"N\",'Enrollment Form'!G796=\"\"),\"\",IF('Enrollment Form'!$B796<>\"Subscriber\",\"\",IF('Enrollment Form'!$G796='Enrollment Form'!$H796,\"Y\",\"N\")))","v":""},{"$f":"IF($B789=\"N\",\"\",IF(AND(COUNTIFS('Enrollment Form'!$H$11:$H$1000,'Enrollment Form'!$H796,'Enrollment Form'!$B$11:$B$1000,'Enrollment Form'!$B796)>1,'Enrollment Form'!$H796<>\"\"),\"N\",\"Y\"))","v":""},{"$f":"IF($B789=\"N\",\"\",IF(LEN('Enrollment Form'!$Y796)=0,\"\",IF(LEN('Enrollment Form'!$Y796)<>5,\"N\",\"Y\")))","v":""},{"$f":"IF($B789=\"N\",\"\",IF(LEN('Enrollment Form'!$AD796=0),\"\",IF(LEN('Enrollment Form'!$AD796)<>5,\"N\",\"Y\")))","v":""},{"$f":"IF($B789=\"N\",\"\",IF(LEN('Enrollment Form'!$BL796=0),\"\",IF(LEN('Enrollment Form'!$BL796)<>5,\"N\",\"Y\")))","v":""},{"$f":"IF($B789=\"N\",\"\",IF(LEN('Enrollment Form'!$AE796)=0,\"\",IF(LEN('Enrollment Form'!$AE796)<>10,\"N\",\"Y\")))","v":""},{"$f":"IF($B789=\"N\",\"\",IF(LEN('Enrollment Form'!$AF796)=0,\"\",IF(LEN('Enrollment Form'!$AF796)<>10,\"N\",\"Y\")))","v":""},{"$f":"IF('Enrollment Form'!$O796<>\"Graded\",\"-\",IF(AND('Enrollment Form'!$O796=\"Graded\",'Enrollment Form'!$AO796<>\"\"),\"Y\",\"N\"))","v":"-"},{"$f":"IF($B789=\"N\",\"\",IF(OR('Enrollment Form'!$B796<>\"Subscriber\",'Enrollment Form'!$C796=\"ROC\"),\"-\",IF(AND('Enrollment Form'!$B796=\"Subscriber\",'Enrollment Form'!$C796=\"Enroll\",'Enrollment Form'!$AJ796<>\"\"),\"Y\",\"N\")))","v":""},{"$f":"IF($B789=\"N\",\"\",IF(OR('Enrollment Form'!$B796<>\"Subscriber\",'Enrollment Form'!$C796=\"ROC\"),\"-\",IF(AND('Enrollment Form'!$B796=\"Subscriber\",'Enrollment Form'!$C796=\"Enroll\",'Enrollment Form'!$AK796<>\"\"),\"Y\",\"N\")))","v":""},{"$f":"IF($B789=\"N\",\"\",IF(OR('Enrollment Form'!$B796<>\"Subscriber\",'Enrollment Form'!$C796=\"ROC\"),\"-\",IF(AND('Enrollment Form'!$B796=\"Subscriber\",'Enrollment Form'!$C796=\"Enroll\",'Enrollment Form'!$AL796<>\"\"),\"Y\",\"N\")))","v":""},{"$f":"IF($B789=\"N\",\"\",IF(OR('Enrollment Form'!$B796<>\"Subscriber\",'Enrollment Form'!$C796=\"ROC\"),\"-\",IF(AND('Enrollment Form'!$B796=\"Subscriber\",'Enrollment Form'!$C796=\"Enroll\",'Enrollment Form'!$AM796<>\"\"),\"Y\",\"N\")))","v":""},{"$f":"IF($B789=\"N\",\"\",IF(OR('Enrollment Form'!$B796<>\"Subscriber\",'Enrollment Form'!$C796=\"ROC\"),\"-\",IF(AND('Enrollment Form'!$B796=\"Subscriber\",'Enrollment Form'!$C796=\"Enroll\",'Enrollment Form'!$AN796<>\"\"),\"Y\",\"N\")))","v":""},{"$f":"IF($B789=\"N\",\"\",IF(OR('Enrollment Form'!$B796<>\"Subscriber\",'Enrollment Form'!$C796=\"ROC\"),\"-\",IF(AND('Enrollment Form'!$B796=\"Subscriber\",'Enrollment Form'!$C796=\"Enroll\",'Enrollment Form'!$AP796<>\"\"),\"Y\",\"N\")))","v":""},{"$f":"IF($B789=\"N\",\"\",IF($Q789=\"-\",\"-\",IF(AND($Q789=\"Y\",'Enrollment Form'!$AP796=\"No\"),\"-\",IF(AND($Q789=\"Y\",'Enrollment Form'!$AP796=\"Yes\",'Enrollment Form'!$AQ796<>\"\"),\"Y\",\"N\"))))","v":""},{"$f":"IF($B789=\"N\",\"\",IF(OR('Enrollment Form'!$B796<>\"Subscriber\",'Enrollment Form'!$C796=\"ROC\"),\"-\",IF(AND('Enrollment Form'!$B796=\"Subscriber\",'Enrollment Form'!$C796=\"Enroll\",'Enrollment Form'!$CO796<>\"\"),\"Y\",\"N\")))","v":""},{"$f":"IF($B789=\"N\",\"\",IF($S789=\"-\",\"-\",IF(AND($S789=\"Y\",'Enrollment Form'!$CO796=\"No\"),\"-\",IF(AND($S789=\"Y\",'Enrollment Form'!$CO796=\"Yes\",'Enrollment Form'!$CP796<>\"\"),\"Y\",\"N\"))))","v":""},{"$f":"IF(OR('Enrollment Form'!$AV796=\"Yes\",'Enrollment Form'!$AV796=\"\"),\"-\",IF(AND('Enrollment Form'!$AV796=\"No\",ISERROR(FIND(\"HMO\",VLOOKUP('Enrollment Form'!G796,'Enrollment Form'!H$11:J$1000,3,FALSE),1))=FALSE,COUNTA('Enrollment Form'!$AW796:$AZ796)=4),\"Y\",\"N\"))","v":"-"},{"$f":"IF($B789=\"N\",\"\",IF('Enrollment Form'!$B796=\"Subscriber\",\"-\",IF(COUNTA('Enrollment Form'!$BE796,'Enrollment Form'!$BG796)=2,\"Y\",\"N\")))","v":""},{"$f":"IF($B789=\"N\",\"\",IF(OR('Enrollment Form'!$AU796=\"\",'Enrollment Form'!$AU796=\"No\"),\"-\",IF(AND('Enrollment Form'!$AU796=\"Yes\",COUNTA('Enrollment Form'!$CK796)=1),\"Y\",\"N\")))","v":""},{"$f":"IF(OR('Enrollment Form'!$CK796=\"\",'Enrollment Form'!$CK796=\"No\"),\"-\",IF(COUNTA('Enrollment Form'!$CM796:$CN796)=2,\"Y\",\"N\"))","v":"-"},{"$f":"IF($B789=\"N\",\"\",IF(COUNTIF('Enrollment Form'!$CZ796:$DO796,\"Other\")=COUNTA('Enrollment Form'!$DF796,'Enrollment Form'!$DA796,'Enrollment Form'!$DK796,'Enrollment Form'!$DP796),\"Y\",\"N\"))","v":""},{"$f":"IF($B789=\"N\",\"\",IF(OR('Enrollment Form'!B796<>\"Subscriber\",'Enrollment Form'!C796=\"ROC\",COUNTIF('Enrollment Form'!AS796:AT796,\"Yes\")>=1),\"-\",IF(AND('Enrollment Form'!C796=\"Enroll\",COUNTIF('Enrollment Form'!AS796:AT796,\"No\")=2,'Enrollment Form'!AU796=\"\"),\"N\",\"Y\")))","v":""},{"$f":"IF(OR(B789=\"N\",'Enrollment Form'!B796<>\"Subscriber\",'Enrollment Form'!C796=\"ROC\",'Enrollment Form'!O796<>\"Multiple of Salary\"),\"-\",IF(COUNTA('Enrollment Form'!T796:U796)<2,\"N\",\"Y\"))","v":"-"},{"$f":"IF(B789=\"N\",\"\",IF(OR('Enrollment Form'!C796=\"ROC\",'Enrollment Form'!B796<>\"Subscriber\",'Enrollment Form'!O796=\"Waive\",'Enrollment Form'!O796=\"\"),\"-\",IF('Enrollment Form'!P796=\"\",\"N\",\"Y\")))","v":""},{"$f":"IF($B789=\"N\",\"\",IF(AND('Enrollment Form'!$C796=\"ROC\",'Enrollment Form'!$DS796<>\"\"),\"Y\",IF(AND('Enrollment Form'!$C796=\"ROC\",'Enrollment Form'!$DS796=\"\"),\"N\",IF(AND('Enrollment Form'!$C796=\"Enroll\",'Enrollment Form'!$B796=\"Subscriber\",'Enrollment Form'!$CQ796=\"No\",'Enrollment Form'!$DS796=\"\"),\"N\",IF(AND('Enrollment Form'!$C796=\"Enroll\",'Enrollment Form'!$B796=\"Subscriber\",'Enrollment Form'!$CQ796=\"Yes\"),\"-\",\"Y\")))))","v":""},{"$f":"IF($B789=\"N\",\"\",IF(AND('Enrollment Form'!$C796=\"ROC\",'Enrollment Form'!$DT796<>\"\"),\"Y\",IF(AND('Enrollment Form'!$C796=\"ROC\",'Enrollment Form'!$DT796=\"\"),\"N\",IF(AND('Enrollment Form'!$C796=\"Enroll\",'Enrollment Form'!$B796=\"Subscriber\",'Enrollment Form'!$CQ796=\"No\",'Enrollment Form'!$DT796=\"\"),\"N\",IF(AND('Enrollment Form'!$C796=\"Enroll\",'Enrollment Form'!$B796=\"Subscriber\",'Enrollment Form'!$CQ796=\"Yes\"),\"-\",\"Y\")))))","v":""},{"$f":"IF('Enrollment Form'!AH796=\"\",\"\",IF(ISERROR(SEARCH(\".\",'Enrollment Form'!AH796,SEARCH(\"@\",'Enrollment Form'!AH796))),\"N\",\"Y\"))","v":""},{"$f":"IF(OR($B789=\"N\",'Enrollment Form'!$G796=\"\"),\"\",IF('Enrollment Form'!$B796<>\"Subscriber\",\"-\",IF(COUNTIF('Enrollment Form'!$AS796:$AT796,\"Yes\")=2,\"N\",\"Y\")))","v":""},{"$f":"IF(OR('Enrollment Form'!$CC796=\"\",'Enrollment Form'!$CC796=\"No\"),\"-\",IF(AND('Enrollment Form'!$CC796=\"Yes\",'Enrollment Form'!$CD796=\"\"),\"N\",\"Y\"))","v":"-"},{"$f":"IF(OR('Enrollment Form'!$CE796=\"\",'Enrollment Form'!$CE796=\"No\"),\"-\",IF(AND('Enrollment Form'!$CE796=\"Yes\",'Enrollment Form'!$CF796=\"\"),\"N\",\"Y\"))","v":"-"},{"$f":"IF(OR('Enrollment Form'!$CG796=\"\",'Enrollment Form'!$CG796=\"No\"),\"-\",IF(AND('Enrollment Form'!$CG796=\"Yes\",'Enrollment Form'!$CH796=\"\"),\"N\",\"Y\"))","v":"-"},{"$f":"IF(OR('Enrollment Form'!$CG796=\"\",'Enrollment Form'!$CG796=\"No\"),\"-\",IF(AND('Enrollment Form'!$CG796=\"Yes\",'Enrollment Form'!$CI796=\"\"),\"N\",\"Y\"))","v":"-"},{"$f":"IF('Enrollment Form'!B796<>\"Subscriber\",\"-\",IF(AND('Enrollment Form'!B796=\"Subscriber\",'Enrollment Form'!C796=\"Enroll\",'Enrollment Form'!AA796=\"\"),\"N\",\"Y\"))","v":"-"},{"$f":"IF(OR('Enrollment Form'!B796=\"Subscriber\",'Enrollment Form'!B796=\"\"),\"-\",IF('Enrollment Form'!BI796=\"\",\"N\",\"Y\"))","v":"-"},{"$f":"IF('Enrollment Form'!B796<>\"Subscriber\",\"-\",IF(AND('Enrollment Form'!B796=\"Subscriber\",'Enrollment Form'!G796=\"\"),\"N\",\"Y\"))","v":"-"},{"$f":"IF('Enrollment Form'!A796=\"\",\"\",IF('Enrollment Form'!B796=\"Subscriber\",\"-\",IF(AND('Enrollment Form'!B796<>\"Subscriber\",'Enrollment Form'!G796='Enrollment Form'!H796),\"N\",\"Y\")))","v":""},0]
[797,{"$f":"IF('Enrollment Form'!$A797<>\"\",\"Y\",\"N\")","v":"N"},{"$f":"IF(AND('Enrollment Form'!$B797=\"\",'Enrollment Form'!$C797<>\"\"),\"N\",IF($B790=\"N\",\"\",\"Y\"))","v":""},{"$f":"IF(OR($B790=\"N\",'Enrollment Form'!G797=\"\"),\"\",IF('Enrollment Form'!$B797<>\"Subscriber\",\"\",IF('Enrollment Form'!$G797='Enrollment Form'!$H797,\"Y\",\"N\")))","v":""},{"$f":"IF($B790=\"N\",\"\",IF(AND(COUNTIFS('Enrollment Form'!$H$11:$H$1000,'Enrollment Form'!$H797,'Enrollment Form'!$B$11:$B$1000,'Enrollment Form'!$B797)>1,'Enrollment Form'!$H797<>\"\"),\"N\",\"Y\"))","v":""},{"$f":"IF($B790=\"N\",\"\",IF(LEN('Enrollment Form'!$Y797)=0,\"\",IF(LEN('Enrollment Form'!$Y797)<>5,\"N\",\"Y\")))","v":""},{"$f":"IF($B790=\"N\",\"\",IF(LEN('Enrollment Form'!$AD797=0),\"\",IF(LEN('Enrollment Form'!$AD797)<>5,\"N\",\"Y\")))","v":""},{"$f":"IF($B790=\"N\",\"\",IF(LEN('Enrollment Form'!$BL797=0),\"\",IF(LEN('Enrollment Form'!$BL797)<>5,\"N\",\"Y\")))","v":""},{"$f":"IF($B790=\"N\",\"\",IF(LEN('Enrollment Form'!$AE797)=0,\"\",IF(LEN('Enrollment Form'!$AE797)<>10,\"N\",\"Y\")))","v":""},{"$f":"IF($B790=\"N\",\"\",IF(LEN('Enrollment Form'!$AF797)=0,\"\",IF(LEN('Enrollment Form'!$AF797)<>10,\"N\",\"Y\")))","v":""},{"$f":"IF('Enrollment Form'!$O797<>\"Graded\",\"-\",IF(AND('Enrollment Form'!$O797=\"Graded\",'Enrollment Form'!$AO797<>\"\"),\"Y\",\"N\"))","v":"-"},{"$f":"IF($B790=\"N\",\"\",IF(OR('Enrollment Form'!$B797<>\"Subscriber\",'Enrollment Form'!$C797=\"ROC\"),\"-\",IF(AND('Enrollment Form'!$B797=\"Subscriber\",'Enrollment Form'!$C797=\"Enroll\",'Enrollment Form'!$AJ797<>\"\"),\"Y\",\"N\")))","v":""},{"$f":"IF($B790=\"N\",\"\",IF(OR('Enrollment Form'!$B797<>\"Subscriber\",'Enrollment Form'!$C797=\"ROC\"),\"-\",IF(AND('Enrollment Form'!$B797=\"Subscriber\",'Enrollment Form'!$C797=\"Enroll\",'Enrollment Form'!$AK797<>\"\"),\"Y\",\"N\")))","v":""},{"$f":"IF($B790=\"N\",\"\",IF(OR('Enrollment Form'!$B797<>\"Subscriber\",'Enrollment Form'!$C797=\"ROC\"),\"-\",IF(AND('Enrollment Form'!$B797=\"Subscriber\",'Enrollment Form'!$C797=\"Enroll\",'Enrollment Form'!$AL797<>\"\"),\"Y\",\"N\")))","v":""},{"$f":"IF($B790=\"N\",\"\",IF(OR('Enrollment Form'!$B797<>\"Subscriber\",'Enrollment Form'!$C797=\"ROC\"),\"-\",IF(AND('Enrollment Form'!$B797=\"Subscriber\",'Enrollment Form'!$C797=\"Enroll\",'Enrollment Form'!$AM797<>\"\"),\"Y\",\"N\")))","v":""},{"$f":"IF($B790=\"N\",\"\",IF(OR('Enrollment Form'!$B797<>\"Subscriber\",'Enrollment Form'!$C797=\"ROC\"),\"-\",IF(AND('Enrollment Form'!$B797=\"Subscriber\",'Enrollment Form'!$C797=\"Enroll\",'Enrollment Form'!$AN797<>\"\"),\"Y\",\"N\")))","v":""},{"$f":"IF($B790=\"N\",\"\",IF(OR('Enrollment Form'!$B797<>\"Subscriber\",'Enrollment Form'!$C797=\"ROC\"),\"-\",IF(AND('Enrollment Form'!$B797=\"Subscriber\",'Enrollment Form'!$C797=\"Enroll\",'Enrollment Form'!$AP797<>\"\"),\"Y\",\"N\")))","v":""},{"$f":"IF($B790=\"N\",\"\",IF($Q790=\"-\",\"-\",IF(AND($Q790=\"Y\",'Enrollment Form'!$AP797=\"No\"),\"-\",IF(AND($Q790=\"Y\",'Enrollment Form'!$AP797=\"Yes\",'Enrollment Form'!$AQ797<>\"\"),\"Y\",\"N\"))))","v":""},{"$f":"IF($B790=\"N\",\"\",IF(OR('Enrollment Form'!$B797<>\"Subscriber\",'Enrollment Form'!$C797=\"ROC\"),\"-\",IF(AND('Enrollment Form'!$B797=\"Subscriber\",'Enrollment Form'!$C797=\"Enroll\",'Enrollment Form'!$CO797<>\"\"),\"Y\",\"N\")))","v":""},{"$f":"IF($B790=\"N\",\"\",IF($S790=\"-\",\"-\",IF(AND($S790=\"Y\",'Enrollment Form'!$CO797=\"No\"),\"-\",IF(AND($S790=\"Y\",'Enrollment Form'!$CO797=\"Yes\",'Enrollment Form'!$CP797<>\"\"),\"Y\",\"N\"))))","v":""},{"$f":"IF(OR('Enrollment Form'!$AV797=\"Yes\",'Enrollment Form'!$AV797=\"\"),\"-\",IF(AND('Enrollment Form'!$AV797=\"No\",ISERROR(FIND(\"HMO\",VLOOKUP('Enrollment Form'!G797,'Enrollment Form'!H$11:J$1000,3,FALSE),1))=FALSE,COUNTA('Enrollment Form'!$AW797:$AZ797)=4),\"Y\",\"N\"))","v":"-"},{"$f":"IF($B790=\"N\",\"\",IF('Enrollment Form'!$B797=\"Subscriber\",\"-\",IF(COUNTA('Enrollment Form'!$BE797,'Enrollment Form'!$BG797)=2,\"Y\",\"N\")))","v":""},{"$f":"IF($B790=\"N\",\"\",IF(OR('Enrollment Form'!$AU797=\"\",'Enrollment Form'!$AU797=\"No\"),\"-\",IF(AND('Enrollment Form'!$AU797=\"Yes\",COUNTA('Enrollment Form'!$CK797)=1),\"Y\",\"N\")))","v":""},{"$f":"IF(OR('Enrollment Form'!$CK797=\"\",'Enrollment Form'!$CK797=\"No\"),\"-\",IF(COUNTA('Enrollment Form'!$CM797:$CN797)=2,\"Y\",\"N\"))","v":"-"},{"$f":"IF($B790=\"N\",\"\",IF(COUNTIF('Enrollment Form'!$CZ797:$DO797,\"Other\")=COUNTA('Enrollment Form'!$DF797,'Enrollment Form'!$DA797,'Enrollment Form'!$DK797,'Enrollment Form'!$DP797),\"Y\",\"N\"))","v":""},{"$f":"IF($B790=\"N\",\"\",IF(OR('Enrollment Form'!B797<>\"Subscriber\",'Enrollment Form'!C797=\"ROC\",COUNTIF('Enrollment Form'!AS797:AT797,\"Yes\")>=1),\"-\",IF(AND('Enrollment Form'!C797=\"Enroll\",COUNTIF('Enrollment Form'!AS797:AT797,\"No\")=2,'Enrollment Form'!AU797=\"\"),\"N\",\"Y\")))","v":""},{"$f":"IF(OR(B790=\"N\",'Enrollment Form'!B797<>\"Subscriber\",'Enrollment Form'!C797=\"ROC\",'Enrollment Form'!O797<>\"Multiple of Salary\"),\"-\",IF(COUNTA('Enrollment Form'!T797:U797)<2,\"N\",\"Y\"))","v":"-"},{"$f":"IF(B790=\"N\",\"\",IF(OR('Enrollment Form'!C797=\"ROC\",'Enrollment Form'!B797<>\"Subscriber\",'Enrollment Form'!O797=\"Waive\",'Enrollment Form'!O797=\"\"),\"-\",IF('Enrollment Form'!P797=\"\",\"N\",\"Y\")))","v":""},{"$f":"IF($B790=\"N\",\"\",IF(AND('Enrollment Form'!$C797=\"ROC\",'Enrollment Form'!$DS797<>\"\"),\"Y\",IF(AND('Enrollment Form'!$C797=\"ROC\",'Enrollment Form'!$DS797=\"\"),\"N\",IF(AND('Enrollment Form'!$C797=\"Enroll\",'Enrollment Form'!$B797=\"Subscriber\",'Enrollment Form'!$CQ797=\"No\",'Enrollment Form'!$DS797=\"\"),\"N\",IF(AND('Enrollment Form'!$C797=\"Enroll\",'Enrollment Form'!$B797=\"Subscriber\",'Enrollment Form'!$CQ797=\"Yes\"),\"-\",\"Y\")))))","v":""},{"$f":"IF($B790=\"N\",\"\",IF(AND('Enrollment Form'!$C797=\"ROC\",'Enrollment Form'!$DT797<>\"\"),\"Y\",IF(AND('Enrollment Form'!$C797=\"ROC\",'Enrollment Form'!$DT797=\"\"),\"N\",IF(AND('Enrollment Form'!$C797=\"Enroll\",'Enrollment Form'!$B797=\"Subscriber\",'Enrollment Form'!$CQ797=\"No\",'Enrollment Form'!$DT797=\"\"),\"N\",IF(AND('Enrollment Form'!$C797=\"Enroll\",'Enrollment Form'!$B797=\"Subscriber\",'Enrollment Form'!$CQ797=\"Yes\"),\"-\",\"Y\")))))","v":""},{"$f":"IF('Enrollment Form'!AH797=\"\",\"\",IF(ISERROR(SEARCH(\".\",'Enrollment Form'!AH797,SEARCH(\"@\",'Enrollment Form'!AH797))),\"N\",\"Y\"))","v":""},{"$f":"IF(OR($B790=\"N\",'Enrollment Form'!$G797=\"\"),\"\",IF('Enrollment Form'!$B797<>\"Subscriber\",\"-\",IF(COUNTIF('Enrollment Form'!$AS797:$AT797,\"Yes\")=2,\"N\",\"Y\")))","v":""},{"$f":"IF(OR('Enrollment Form'!$CC797=\"\",'Enrollment Form'!$CC797=\"No\"),\"-\",IF(AND('Enrollment Form'!$CC797=\"Yes\",'Enrollment Form'!$CD797=\"\"),\"N\",\"Y\"))","v":"-"},{"$f":"IF(OR('Enrollment Form'!$CE797=\"\",'Enrollment Form'!$CE797=\"No\"),\"-\",IF(AND('Enrollment Form'!$CE797=\"Yes\",'Enrollment Form'!$CF797=\"\"),\"N\",\"Y\"))","v":"-"},{"$f":"IF(OR('Enrollment Form'!$CG797=\"\",'Enrollment Form'!$CG797=\"No\"),\"-\",IF(AND('Enrollment Form'!$CG797=\"Yes\",'Enrollment Form'!$CH797=\"\"),\"N\",\"Y\"))","v":"-"},{"$f":"IF(OR('Enrollment Form'!$CG797=\"\",'Enrollment Form'!$CG797=\"No\"),\"-\",IF(AND('Enrollment Form'!$CG797=\"Yes\",'Enrollment Form'!$CI797=\"\"),\"N\",\"Y\"))","v":"-"},{"$f":"IF('Enrollment Form'!B797<>\"Subscriber\",\"-\",IF(AND('Enrollment Form'!B797=\"Subscriber\",'Enrollment Form'!C797=\"Enroll\",'Enrollment Form'!AA797=\"\"),\"N\",\"Y\"))","v":"-"},{"$f":"IF(OR('Enrollment Form'!B797=\"Subscriber\",'Enrollment Form'!B797=\"\"),\"-\",IF('Enrollment Form'!BI797=\"\",\"N\",\"Y\"))","v":"-"},{"$f":"IF('Enrollment Form'!B797<>\"Subscriber\",\"-\",IF(AND('Enrollment Form'!B797=\"Subscriber\",'Enrollment Form'!G797=\"\"),\"N\",\"Y\"))","v":"-"},{"$f":"IF('Enrollment Form'!A797=\"\",\"\",IF('Enrollment Form'!B797=\"Subscriber\",\"-\",IF(AND('Enrollment Form'!B797<>\"Subscriber\",'Enrollment Form'!G797='Enrollment Form'!H797),\"N\",\"Y\")))","v":""},0]
[798,{"$f":"IF('Enrollment Form'!$A798<>\"\",\"Y\",\"N\")","v":"N"},{"$f":"IF(AND('Enrollment Form'!$B798=\"\",'Enrollment Form'!$C798<>\"\"),\"N\",IF($B791=\"N\",\"\",\"Y\"))","v":""},{"$f":"IF(OR($B791=\"N\",'Enrollment Form'!G798=\"\"),\"\",IF('Enrollment Form'!$B798<>\"Subscriber\",\"\",IF('Enrollment Form'!$G798='Enrollment Form'!$H798,\"Y\",\"N\")))","v":""},{"$f":"IF($B791=\"N\",\"\",IF(AND(COUNTIFS('Enrollment Form'!$H$11:$H$1000,'Enrollment Form'!$H798,'Enrollment Form'!$B$11:$B$1000,'Enrollment Form'!$B798)>1,'Enrollment Form'!$H798<>\"\"),\"N\",\"Y\"))","v":""},{"$f":"IF($B791=\"N\",\"\",IF(LEN('Enrollment Form'!$Y798)=0,\"\",IF(LEN('Enrollment Form'!$Y798)<>5,\"N\",\"Y\")))","v":""},{"$f":"IF($B791=\"N\",\"\",IF(LEN('Enrollment Form'!$AD798=0),\"\",IF(LEN('Enrollment Form'!$AD798)<>5,\"N\",\"Y\")))","v":""},{"$f":"IF($B791=\"N\",\"\",IF(LEN('Enrollment Form'!$BL798=0),\"\",IF(LEN('Enrollment Form'!$BL798)<>5,\"N\",\"Y\")))","v":""},{"$f":"IF($B791=\"N\",\"\",IF(LEN('Enrollment Form'!$AE798)=0,\"\",IF(LEN('Enrollment Form'!$AE798)<>10,\"N\",\"Y\")))","v":""},{"$f":"IF($B791=\"N\",\"\",IF(LEN('Enrollment Form'!$AF798)=0,\"\",IF(LEN('Enrollment Form'!$AF798)<>10,\"N\",\"Y\")))","v":""},{"$f":"IF('Enrollment Form'!$O798<>\"Graded\",\"-\",IF(AND('Enrollment Form'!$O798=\"Graded\",'Enrollment Form'!$AO798<>\"\"),\"Y\",\"N\"))","v":"-"},{"$f":"IF($B791=\"N\",\"\",IF(OR('Enrollment Form'!$B798<>\"Subscriber\",'Enrollment Form'!$C798=\"ROC\"),\"-\",IF(AND('Enrollment Form'!$B798=\"Subscriber\",'Enrollment Form'!$C798=\"Enroll\",'Enrollment Form'!$AJ798<>\"\"),\"Y\",\"N\")))","v":""},{"$f":"IF($B791=\"N\",\"\",IF(OR('Enrollment Form'!$B798<>\"Subscriber\",'Enrollment Form'!$C798=\"ROC\"),\"-\",IF(AND('Enrollment Form'!$B798=\"Subscriber\",'Enrollment Form'!$C798=\"Enroll\",'Enrollment Form'!$AK798<>\"\"),\"Y\",\"N\")))","v":""},{"$f":"IF($B791=\"N\",\"\",IF(OR('Enrollment Form'!$B798<>\"Subscriber\",'Enrollment Form'!$C798=\"ROC\"),\"-\",IF(AND('Enrollment Form'!$B798=\"Subscriber\",'Enrollment Form'!$C798=\"Enroll\",'Enrollment Form'!$AL798<>\"\"),\"Y\",\"N\")))","v":""},{"$f":"IF($B791=\"N\",\"\",IF(OR('Enrollment Form'!$B798<>\"Subscriber\",'Enrollment Form'!$C798=\"ROC\"),\"-\",IF(AND('Enrollment Form'!$B798=\"Subscriber\",'Enrollment Form'!$C798=\"Enroll\",'Enrollment Form'!$AM798<>\"\"),\"Y\",\"N\")))","v":""},{"$f":"IF($B791=\"N\",\"\",IF(OR('Enrollment Form'!$B798<>\"Subscriber\",'Enrollment Form'!$C798=\"ROC\"),\"-\",IF(AND('Enrollment Form'!$B798=\"Subscriber\",'Enrollment Form'!$C798=\"Enroll\",'Enrollment Form'!$AN798<>\"\"),\"Y\",\"N\")))","v":""},{"$f":"IF($B791=\"N\",\"\",IF(OR('Enrollment Form'!$B798<>\"Subscriber\",'Enrollment Form'!$C798=\"ROC\"),\"-\",IF(AND('Enrollment Form'!$B798=\"Subscriber\",'Enrollment Form'!$C798=\"Enroll\",'Enrollment Form'!$AP798<>\"\"),\"Y\",\"N\")))","v":""},{"$f":"IF($B791=\"N\",\"\",IF($Q791=\"-\",\"-\",IF(AND($Q791=\"Y\",'Enrollment Form'!$AP798=\"No\"),\"-\",IF(AND($Q791=\"Y\",'Enrollment Form'!$AP798=\"Yes\",'Enrollment Form'!$AQ798<>\"\"),\"Y\",\"N\"))))","v":""},{"$f":"IF($B791=\"N\",\"\",IF(OR('Enrollment Form'!$B798<>\"Subscriber\",'Enrollment Form'!$C798=\"ROC\"),\"-\",IF(AND('Enrollment Form'!$B798=\"Subscriber\",'Enrollment Form'!$C798=\"Enroll\",'Enrollment Form'!$CO798<>\"\"),\"Y\",\"N\")))","v":""},{"$f":"IF($B791=\"N\",\"\",IF($S791=\"-\",\"-\",IF(AND($S791=\"Y\",'Enrollment Form'!$CO798=\"No\"),\"-\",IF(AND($S791=\"Y\",'Enrollment Form'!$CO798=\"Yes\",'Enrollment Form'!$CP798<>\"\"),\"Y\",\"N\"))))","v":""},{"$f":"IF(OR('Enrollment Form'!$AV798=\"Yes\",'Enrollment Form'!$AV798=\"\"),\"-\",IF(AND('Enrollment Form'!$AV798=\"No\",ISERROR(FIND(\"HMO\",VLOOKUP('Enrollment Form'!G798,'Enrollment Form'!H$11:J$1000,3,FALSE),1))=FALSE,COUNTA('Enrollment Form'!$AW798:$AZ798)=4),\"Y\",\"N\"))","v":"-"},{"$f":"IF($B791=\"N\",\"\",IF('Enrollment Form'!$B798=\"Subscriber\",\"-\",IF(COUNTA('Enrollment Form'!$BE798,'Enrollment Form'!$BG798)=2,\"Y\",\"N\")))","v":""},{"$f":"IF($B791=\"N\",\"\",IF(OR('Enrollment Form'!$AU798=\"\",'Enrollment Form'!$AU798=\"No\"),\"-\",IF(AND('Enrollment Form'!$AU798=\"Yes\",COUNTA('Enrollment Form'!$CK798)=1),\"Y\",\"N\")))","v":""},{"$f":"IF(OR('Enrollment Form'!$CK798=\"\",'Enrollment Form'!$CK798=\"No\"),\"-\",IF(COUNTA('Enrollment Form'!$CM798:$CN798)=2,\"Y\",\"N\"))","v":"-"},{"$f":"IF($B791=\"N\",\"\",IF(COUNTIF('Enrollment Form'!$CZ798:$DO798,\"Other\")=COUNTA('Enrollment Form'!$DF798,'Enrollment Form'!$DA798,'Enrollment Form'!$DK798,'Enrollment Form'!$DP798),\"Y\",\"N\"))","v":""},{"$f":"IF($B791=\"N\",\"\",IF(OR('Enrollment Form'!B798<>\"Subscriber\",'Enrollment Form'!C798=\"ROC\",COUNTIF('Enrollment Form'!AS798:AT798,\"Yes\")>=1),\"-\",IF(AND('Enrollment Form'!C798=\"Enroll\",COUNTIF('Enrollment Form'!AS798:AT798,\"No\")=2,'Enrollment Form'!AU798=\"\"),\"N\",\"Y\")))","v":""},{"$f":"IF(OR(B791=\"N\",'Enrollment Form'!B798<>\"Subscriber\",'Enrollment Form'!C798=\"ROC\",'Enrollment Form'!O798<>\"Multiple of Salary\"),\"-\",IF(COUNTA('Enrollment Form'!T798:U798)<2,\"N\",\"Y\"))","v":"-"},{"$f":"IF(B791=\"N\",\"\",IF(OR('Enrollment Form'!C798=\"ROC\",'Enrollment Form'!B798<>\"Subscriber\",'Enrollment Form'!O798=\"Waive\",'Enrollment Form'!O798=\"\"),\"-\",IF('Enrollment Form'!P798=\"\",\"N\",\"Y\")))","v":""},{"$f":"IF($B791=\"N\",\"\",IF(AND('Enrollment Form'!$C798=\"ROC\",'Enrollment Form'!$DS798<>\"\"),\"Y\",IF(AND('Enrollment Form'!$C798=\"ROC\",'Enrollment Form'!$DS798=\"\"),\"N\",IF(AND('Enrollment Form'!$C798=\"Enroll\",'Enrollment Form'!$B798=\"Subscriber\",'Enrollment Form'!$CQ798=\"No\",'Enrollment Form'!$DS798=\"\"),\"N\",IF(AND('Enrollment Form'!$C798=\"Enroll\",'Enrollment Form'!$B798=\"Subscriber\",'Enrollment Form'!$CQ798=\"Yes\"),\"-\",\"Y\")))))","v":""},{"$f":"IF($B791=\"N\",\"\",IF(AND('Enrollment Form'!$C798=\"ROC\",'Enrollment Form'!$DT798<>\"\"),\"Y\",IF(AND('Enrollment Form'!$C798=\"ROC\",'Enrollment Form'!$DT798=\"\"),\"N\",IF(AND('Enrollment Form'!$C798=\"Enroll\",'Enrollment Form'!$B798=\"Subscriber\",'Enrollment Form'!$CQ798=\"No\",'Enrollment Form'!$DT798=\"\"),\"N\",IF(AND('Enrollment Form'!$C798=\"Enroll\",'Enrollment Form'!$B798=\"Subscriber\",'Enrollment Form'!$CQ798=\"Yes\"),\"-\",\"Y\")))))","v":""},{"$f":"IF('Enrollment Form'!AH798=\"\",\"\",IF(ISERROR(SEARCH(\".\",'Enrollment Form'!AH798,SEARCH(\"@\",'Enrollment Form'!AH798))),\"N\",\"Y\"))","v":""},{"$f":"IF(OR($B791=\"N\",'Enrollment Form'!$G798=\"\"),\"\",IF('Enrollment Form'!$B798<>\"Subscriber\",\"-\",IF(COUNTIF('Enrollment Form'!$AS798:$AT798,\"Yes\")=2,\"N\",\"Y\")))","v":""},{"$f":"IF(OR('Enrollment Form'!$CC798=\"\",'Enrollment Form'!$CC798=\"No\"),\"-\",IF(AND('Enrollment Form'!$CC798=\"Yes\",'Enrollment Form'!$CD798=\"\"),\"N\",\"Y\"))","v":"-"},{"$f":"IF(OR('Enrollment Form'!$CE798=\"\",'Enrollment Form'!$CE798=\"No\"),\"-\",IF(AND('Enrollment Form'!$CE798=\"Yes\",'Enrollment Form'!$CF798=\"\"),\"N\",\"Y\"))","v":"-"},{"$f":"IF(OR('Enrollment Form'!$CG798=\"\",'Enrollment Form'!$CG798=\"No\"),\"-\",IF(AND('Enrollment Form'!$CG798=\"Yes\",'Enrollment Form'!$CH798=\"\"),\"N\",\"Y\"))","v":"-"},{"$f":"IF(OR('Enrollment Form'!$CG798=\"\",'Enrollment Form'!$CG798=\"No\"),\"-\",IF(AND('Enrollment Form'!$CG798=\"Yes\",'Enrollment Form'!$CI798=\"\"),\"N\",\"Y\"))","v":"-"},{"$f":"IF('Enrollment Form'!B798<>\"Subscriber\",\"-\",IF(AND('Enrollment Form'!B798=\"Subscriber\",'Enrollment Form'!C798=\"Enroll\",'Enrollment Form'!AA798=\"\"),\"N\",\"Y\"))","v":"-"},{"$f":"IF(OR('Enrollment Form'!B798=\"Subscriber\",'Enrollment Form'!B798=\"\"),\"-\",IF('Enrollment Form'!BI798=\"\",\"N\",\"Y\"))","v":"-"},{"$f":"IF('Enrollment Form'!B798<>\"Subscriber\",\"-\",IF(AND('Enrollment Form'!B798=\"Subscriber\",'Enrollment Form'!G798=\"\"),\"N\",\"Y\"))","v":"-"},{"$f":"IF('Enrollment Form'!A798=\"\",\"\",IF('Enrollment Form'!B798=\"Subscriber\",\"-\",IF(AND('Enrollment Form'!B798<>\"Subscriber\",'Enrollment Form'!G798='Enrollment Form'!H798),\"N\",\"Y\")))","v":""},0]
[799,{"$f":"IF('Enrollment Form'!$A799<>\"\",\"Y\",\"N\")","v":"N"},{"$f":"IF(AND('Enrollment Form'!$B799=\"\",'Enrollment Form'!$C799<>\"\"),\"N\",IF($B792=\"N\",\"\",\"Y\"))","v":""},{"$f":"IF(OR($B792=\"N\",'Enrollment Form'!G799=\"\"),\"\",IF('Enrollment Form'!$B799<>\"Subscriber\",\"\",IF('Enrollment Form'!$G799='Enrollment Form'!$H799,\"Y\",\"N\")))","v":""},{"$f":"IF($B792=\"N\",\"\",IF(AND(COUNTIFS('Enrollment Form'!$H$11:$H$1000,'Enrollment Form'!$H799,'Enrollment Form'!$B$11:$B$1000,'Enrollment Form'!$B799)>1,'Enrollment Form'!$H799<>\"\"),\"N\",\"Y\"))","v":""},{"$f":"IF($B792=\"N\",\"\",IF(LEN('Enrollment Form'!$Y799)=0,\"\",IF(LEN('Enrollment Form'!$Y799)<>5,\"N\",\"Y\")))","v":""},{"$f":"IF($B792=\"N\",\"\",IF(LEN('Enrollment Form'!$AD799=0),\"\",IF(LEN('Enrollment Form'!$AD799)<>5,\"N\",\"Y\")))","v":""},{"$f":"IF($B792=\"N\",\"\",IF(LEN('Enrollment Form'!$BL799=0),\"\",IF(LEN('Enrollment Form'!$BL799)<>5,\"N\",\"Y\")))","v":""},{"$f":"IF($B792=\"N\",\"\",IF(LEN('Enrollment Form'!$AE799)=0,\"\",IF(LEN('Enrollment Form'!$AE799)<>10,\"N\",\"Y\")))","v":""},{"$f":"IF($B792=\"N\",\"\",IF(LEN('Enrollment Form'!$AF799)=0,\"\",IF(LEN('Enrollment Form'!$AF799)<>10,\"N\",\"Y\")))","v":""},{"$f":"IF('Enrollment Form'!$O799<>\"Graded\",\"-\",IF(AND('Enrollment Form'!$O799=\"Graded\",'Enrollment Form'!$AO799<>\"\"),\"Y\",\"N\"))","v":"-"},{"$f":"IF($B792=\"N\",\"\",IF(OR('Enrollment Form'!$B799<>\"Subscriber\",'Enrollment Form'!$C799=\"ROC\"),\"-\",IF(AND('Enrollment Form'!$B799=\"Subscriber\",'Enrollment Form'!$C799=\"Enroll\",'Enrollment Form'!$AJ799<>\"\"),\"Y\",\"N\")))","v":""},{"$f":"IF($B792=\"N\",\"\",IF(OR('Enrollment Form'!$B799<>\"Subscriber\",'Enrollment Form'!$C799=\"ROC\"),\"-\",IF(AND('Enrollment Form'!$B799=\"Subscriber\",'Enrollment Form'!$C799=\"Enroll\",'Enrollment Form'!$AK799<>\"\"),\"Y\",\"N\")))","v":""},{"$f":"IF($B792=\"N\",\"\",IF(OR('Enrollment Form'!$B799<>\"Subscriber\",'Enrollment Form'!$C799=\"ROC\"),\"-\",IF(AND('Enrollment Form'!$B799=\"Subscriber\",'Enrollment Form'!$C799=\"Enroll\",'Enrollment Form'!$AL799<>\"\"),\"Y\",\"N\")))","v":""},{"$f":"IF($B792=\"N\",\"\",IF(OR('Enrollment Form'!$B799<>\"Subscriber\",'Enrollment Form'!$C799=\"ROC\"),\"-\",IF(AND('Enrollment Form'!$B799=\"Subscriber\",'Enrollment Form'!$C799=\"Enroll\",'Enrollment Form'!$AM799<>\"\"),\"Y\",\"N\")))","v":""},{"$f":"IF($B792=\"N\",\"\",IF(OR('Enrollment Form'!$B799<>\"Subscriber\",'Enrollment Form'!$C799=\"ROC\"),\"-\",IF(AND('Enrollment Form'!$B799=\"Subscriber\",'Enrollment Form'!$C799=\"Enroll\",'Enrollment Form'!$AN799<>\"\"),\"Y\",\"N\")))","v":""},{"$f":"IF($B792=\"N\",\"\",IF(OR('Enrollment Form'!$B799<>\"Subscriber\",'Enrollment Form'!$C799=\"ROC\"),\"-\",IF(AND('Enrollment Form'!$B799=\"Subscriber\",'Enrollment Form'!$C799=\"Enroll\",'Enrollment Form'!$AP799<>\"\"),\"Y\",\"N\")))","v":""},{"$f":"IF($B792=\"N\",\"\",IF($Q792=\"-\",\"-\",IF(AND($Q792=\"Y\",'Enrollment Form'!$AP799=\"No\"),\"-\",IF(AND($Q792=\"Y\",'Enrollment Form'!$AP799=\"Yes\",'Enrollment Form'!$AQ799<>\"\"),\"Y\",\"N\"))))","v":""},{"$f":"IF($B792=\"N\",\"\",IF(OR('Enrollment Form'!$B799<>\"Subscriber\",'Enrollment Form'!$C799=\"ROC\"),\"-\",IF(AND('Enrollment Form'!$B799=\"Subscriber\",'Enrollment Form'!$C799=\"Enroll\",'Enrollment Form'!$CO799<>\"\"),\"Y\",\"N\")))","v":""},{"$f":"IF($B792=\"N\",\"\",IF($S792=\"-\",\"-\",IF(AND($S792=\"Y\",'Enrollment Form'!$CO799=\"No\"),\"-\",IF(AND($S792=\"Y\",'Enrollment Form'!$CO799=\"Yes\",'Enrollment Form'!$CP799<>\"\"),\"Y\",\"N\"))))","v":""},{"$f":"IF(OR('Enrollment Form'!$AV799=\"Yes\",'Enrollment Form'!$AV799=\"\"),\"-\",IF(AND('Enrollment Form'!$AV799=\"No\",ISERROR(FIND(\"HMO\",VLOOKUP('Enrollment Form'!G799,'Enrollment Form'!H$11:J$1000,3,FALSE),1))=FALSE,COUNTA('Enrollment Form'!$AW799:$AZ799)=4),\"Y\",\"N\"))","v":"-"},{"$f":"IF($B792=\"N\",\"\",IF('Enrollment Form'!$B799=\"Subscriber\",\"-\",IF(COUNTA('Enrollment Form'!$BE799,'Enrollment Form'!$BG799)=2,\"Y\",\"N\")))","v":""},{"$f":"IF($B792=\"N\",\"\",IF(OR('Enrollment Form'!$AU799=\"\",'Enrollment Form'!$AU799=\"No\"),\"-\",IF(AND('Enrollment Form'!$AU799=\"Yes\",COUNTA('Enrollment Form'!$CK799)=1),\"Y\",\"N\")))","v":""},{"$f":"IF(OR('Enrollment Form'!$CK799=\"\",'Enrollment Form'!$CK799=\"No\"),\"-\",IF(COUNTA('Enrollment Form'!$CM799:$CN799)=2,\"Y\",\"N\"))","v":"-"},{"$f":"IF($B792=\"N\",\"\",IF(COUNTIF('Enrollment Form'!$CZ799:$DO799,\"Other\")=COUNTA('Enrollment Form'!$DF799,'Enrollment Form'!$DA799,'Enrollment Form'!$DK799,'Enrollment Form'!$DP799),\"Y\",\"N\"))","v":""},{"$f":"IF($B792=\"N\",\"\",IF(OR('Enrollment Form'!B799<>\"Subscriber\",'Enrollment Form'!C799=\"ROC\",COUNTIF('Enrollment Form'!AS799:AT799,\"Yes\")>=1),\"-\",IF(AND('Enrollment Form'!C799=\"Enroll\",COUNTIF('Enrollment Form'!AS799:AT799,\"No\")=2,'Enrollment Form'!AU799=\"\"),\"N\",\"Y\")))","v":""},{"$f":"IF(OR(B792=\"N\",'Enrollment Form'!B799<>\"Subscriber\",'Enrollment Form'!C799=\"ROC\",'Enrollment Form'!O799<>\"Multiple of Salary\"),\"-\",IF(COUNTA('Enrollment Form'!T799:U799)<2,\"N\",\"Y\"))","v":"-"},{"$f":"IF(B792=\"N\",\"\",IF(OR('Enrollment Form'!C799=\"ROC\",'Enrollment Form'!B799<>\"Subscriber\",'Enrollment Form'!O799=\"Waive\",'Enrollment Form'!O799=\"\"),\"-\",IF('Enrollment Form'!P799=\"\",\"N\",\"Y\")))","v":""},{"$f":"IF($B792=\"N\",\"\",IF(AND('Enrollment Form'!$C799=\"ROC\",'Enrollment Form'!$DS799<>\"\"),\"Y\",IF(AND('Enrollment Form'!$C799=\"ROC\",'Enrollment Form'!$DS799=\"\"),\"N\",IF(AND('Enrollment Form'!$C799=\"Enroll\",'Enrollment Form'!$B799=\"Subscriber\",'Enrollment Form'!$CQ799=\"No\",'Enrollment Form'!$DS799=\"\"),\"N\",IF(AND('Enrollment Form'!$C799=\"Enroll\",'Enrollment Form'!$B799=\"Subscriber\",'Enrollment Form'!$CQ799=\"Yes\"),\"-\",\"Y\")))))","v":""},{"$f":"IF($B792=\"N\",\"\",IF(AND('Enrollment Form'!$C799=\"ROC\",'Enrollment Form'!$DT799<>\"\"),\"Y\",IF(AND('Enrollment Form'!$C799=\"ROC\",'Enrollment Form'!$DT799=\"\"),\"N\",IF(AND('Enrollment Form'!$C799=\"Enroll\",'Enrollment Form'!$B799=\"Subscriber\",'Enrollment Form'!$CQ799=\"No\",'Enrollment Form'!$DT799=\"\"),\"N\",IF(AND('Enrollment Form'!$C799=\"Enroll\",'Enrollment Form'!$B799=\"Subscriber\",'Enrollment Form'!$CQ799=\"Yes\"),\"-\",\"Y\")))))","v":""},{"$f":"IF('Enrollment Form'!AH799=\"\",\"\",IF(ISERROR(SEARCH(\".\",'Enrollment Form'!AH799,SEARCH(\"@\",'Enrollment Form'!AH799))),\"N\",\"Y\"))","v":""},{"$f":"IF(OR($B792=\"N\",'Enrollment Form'!$G799=\"\"),\"\",IF('Enrollment Form'!$B799<>\"Subscriber\",\"-\",IF(COUNTIF('Enrollment Form'!$AS799:$AT799,\"Yes\")=2,\"N\",\"Y\")))","v":""},{"$f":"IF(OR('Enrollment Form'!$CC799=\"\",'Enrollment Form'!$CC799=\"No\"),\"-\",IF(AND('Enrollment Form'!$CC799=\"Yes\",'Enrollment Form'!$CD799=\"\"),\"N\",\"Y\"))","v":"-"},{"$f":"IF(OR('Enrollment Form'!$CE799=\"\",'Enrollment Form'!$CE799=\"No\"),\"-\",IF(AND('Enrollment Form'!$CE799=\"Yes\",'Enrollment Form'!$CF799=\"\"),\"N\",\"Y\"))","v":"-"},{"$f":"IF(OR('Enrollment Form'!$CG799=\"\",'Enrollment Form'!$CG799=\"No\"),\"-\",IF(AND('Enrollment Form'!$CG799=\"Yes\",'Enrollment Form'!$CH799=\"\"),\"N\",\"Y\"))","v":"-"},{"$f":"IF(OR('Enrollment Form'!$CG799=\"\",'Enrollment Form'!$CG799=\"No\"),\"-\",IF(AND('Enrollment Form'!$CG799=\"Yes\",'Enrollment Form'!$CI799=\"\"),\"N\",\"Y\"))","v":"-"},{"$f":"IF('Enrollment Form'!B799<>\"Subscriber\",\"-\",IF(AND('Enrollment Form'!B799=\"Subscriber\",'Enrollment Form'!C799=\"Enroll\",'Enrollment Form'!AA799=\"\"),\"N\",\"Y\"))","v":"-"},{"$f":"IF(OR('Enrollment Form'!B799=\"Subscriber\",'Enrollment Form'!B799=\"\"),\"-\",IF('Enrollment Form'!BI799=\"\",\"N\",\"Y\"))","v":"-"},{"$f":"IF('Enrollment Form'!B799<>\"Subscriber\",\"-\",IF(AND('Enrollment Form'!B799=\"Subscriber\",'Enrollment Form'!G799=\"\"),\"N\",\"Y\"))","v":"-"},{"$f":"IF('Enrollment Form'!A799=\"\",\"\",IF('Enrollment Form'!B799=\"Subscriber\",\"-\",IF(AND('Enrollment Form'!B799<>\"Subscriber\",'Enrollment Form'!G799='Enrollment Form'!H799),\"N\",\"Y\")))","v":""},0]
[800,{"$f":"IF('Enrollment Form'!$A800<>\"\",\"Y\",\"N\")","v":"N"},{"$f":"IF(AND('Enrollment Form'!$B800=\"\",'Enrollment Form'!$C800<>\"\"),\"N\",IF($B793=\"N\",\"\",\"Y\"))","v":""},{"$f":"IF(OR($B793=\"N\",'Enrollment Form'!G800=\"\"),\"\",IF('Enrollment Form'!$B800<>\"Subscriber\",\"\",IF('Enrollment Form'!$G800='Enrollment Form'!$H800,\"Y\",\"N\")))","v":""},{"$f":"IF($B793=\"N\",\"\",IF(AND(COUNTIFS('Enrollment Form'!$H$11:$H$1000,'Enrollment Form'!$H800,'Enrollment Form'!$B$11:$B$1000,'Enrollment Form'!$B800)>1,'Enrollment Form'!$H800<>\"\"),\"N\",\"Y\"))","v":""},{"$f":"IF($B793=\"N\",\"\",IF(LEN('Enrollment Form'!$Y800)=0,\"\",IF(LEN('Enrollment Form'!$Y800)<>5,\"N\",\"Y\")))","v":""},{"$f":"IF($B793=\"N\",\"\",IF(LEN('Enrollment Form'!$AD800=0),\"\",IF(LEN('Enrollment Form'!$AD800)<>5,\"N\",\"Y\")))","v":""},{"$f":"IF($B793=\"N\",\"\",IF(LEN('Enrollment Form'!$BL800=0),\"\",IF(LEN('Enrollment Form'!$BL800)<>5,\"N\",\"Y\")))","v":""},{"$f":"IF($B793=\"N\",\"\",IF(LEN('Enrollment Form'!$AE800)=0,\"\",IF(LEN('Enrollment Form'!$AE800)<>10,\"N\",\"Y\")))","v":""},{"$f":"IF($B793=\"N\",\"\",IF(LEN('Enrollment Form'!$AF800)=0,\"\",IF(LEN('Enrollment Form'!$AF800)<>10,\"N\",\"Y\")))","v":""},{"$f":"IF('Enrollment Form'!$O800<>\"Graded\",\"-\",IF(AND('Enrollment Form'!$O800=\"Graded\",'Enrollment Form'!$AO800<>\"\"),\"Y\",\"N\"))","v":"-"},{"$f":"IF($B793=\"N\",\"\",IF(OR('Enrollment Form'!$B800<>\"Subscriber\",'Enrollment Form'!$C800=\"ROC\"),\"-\",IF(AND('Enrollment Form'!$B800=\"Subscriber\",'Enrollment Form'!$C800=\"Enroll\",'Enrollment Form'!$AJ800<>\"\"),\"Y\",\"N\")))","v":""},{"$f":"IF($B793=\"N\",\"\",IF(OR('Enrollment Form'!$B800<>\"Subscriber\",'Enrollment Form'!$C800=\"ROC\"),\"-\",IF(AND('Enrollment Form'!$B800=\"Subscriber\",'Enrollment Form'!$C800=\"Enroll\",'Enrollment Form'!$AK800<>\"\"),\"Y\",\"N\")))","v":""},{"$f":"IF($B793=\"N\",\"\",IF(OR('Enrollment Form'!$B800<>\"Subscriber\",'Enrollment Form'!$C800=\"ROC\"),\"-\",IF(AND('Enrollment Form'!$B800=\"Subscriber\",'Enrollment Form'!$C800=\"Enroll\",'Enrollment Form'!$AL800<>\"\"),\"Y\",\"N\")))","v":""},{"$f":"IF($B793=\"N\",\"\",IF(OR('Enrollment Form'!$B800<>\"Subscriber\",'Enrollment Form'!$C800=\"ROC\"),\"-\",IF(AND('Enrollment Form'!$B800=\"Subscriber\",'Enrollment Form'!$C800=\"Enroll\",'Enrollment Form'!$AM800<>\"\"),\"Y\",\"N\")))","v":""},{"$f":"IF($B793=\"N\",\"\",IF(OR('Enrollment Form'!$B800<>\"Subscriber\",'Enrollment Form'!$C800=\"ROC\"),\"-\",IF(AND('Enrollment Form'!$B800=\"Subscriber\",'Enrollment Form'!$C800=\"Enroll\",'Enrollment Form'!$AN800<>\"\"),\"Y\",\"N\")))","v":""},{"$f":"IF($B793=\"N\",\"\",IF(OR('Enrollment Form'!$B800<>\"Subscriber\",'Enrollment Form'!$C800=\"ROC\"),\"-\",IF(AND('Enrollment Form'!$B800=\"Subscriber\",'Enrollment Form'!$C800=\"Enroll\",'Enrollment Form'!$AP800<>\"\"),\"Y\",\"N\")))","v":""},{"$f":"IF($B793=\"N\",\"\",IF($Q793=\"-\",\"-\",IF(AND($Q793=\"Y\",'Enrollment Form'!$AP800=\"No\"),\"-\",IF(AND($Q793=\"Y\",'Enrollment Form'!$AP800=\"Yes\",'Enrollment Form'!$AQ800<>\"\"),\"Y\",\"N\"))))","v":""},{"$f":"IF($B793=\"N\",\"\",IF(OR('Enrollment Form'!$B800<>\"Subscriber\",'Enrollment Form'!$C800=\"ROC\"),\"-\",IF(AND('Enrollment Form'!$B800=\"Subscriber\",'Enrollment Form'!$C800=\"Enroll\",'Enrollment Form'!$CO800<>\"\"),\"Y\",\"N\")))","v":""},{"$f":"IF($B793=\"N\",\"\",IF($S793=\"-\",\"-\",IF(AND($S793=\"Y\",'Enrollment Form'!$CO800=\"No\"),\"-\",IF(AND($S793=\"Y\",'Enrollment Form'!$CO800=\"Yes\",'Enrollment Form'!$CP800<>\"\"),\"Y\",\"N\"))))","v":""},{"$f":"IF(OR('Enrollment Form'!$AV800=\"Yes\",'Enrollment Form'!$AV800=\"\"),\"-\",IF(AND('Enrollment Form'!$AV800=\"No\",ISERROR(FIND(\"HMO\",VLOOKUP('Enrollment Form'!G800,'Enrollment Form'!H$11:J$1000,3,FALSE),1))=FALSE,COUNTA('Enrollment Form'!$AW800:$AZ800)=4),\"Y\",\"N\"))","v":"-"},{"$f":"IF($B793=\"N\",\"\",IF('Enrollment Form'!$B800=\"Subscriber\",\"-\",IF(COUNTA('Enrollment Form'!$BE800,'Enrollment Form'!$BG800)=2,\"Y\",\"N\")))","v":""},{"$f":"IF($B793=\"N\",\"\",IF(OR('Enrollment Form'!$AU800=\"\",'Enrollment Form'!$AU800=\"No\"),\"-\",IF(AND('Enrollment Form'!$AU800=\"Yes\",COUNTA('Enrollment Form'!$CK800)=1),\"Y\",\"N\")))","v":""},{"$f":"IF(OR('Enrollment Form'!$CK800=\"\",'Enrollment Form'!$CK800=\"No\"),\"-\",IF(COUNTA('Enrollment Form'!$CM800:$CN800)=2,\"Y\",\"N\"))","v":"-"},{"$f":"IF($B793=\"N\",\"\",IF(COUNTIF('Enrollment Form'!$CZ800:$DO800,\"Other\")=COUNTA('Enrollment Form'!$DF800,'Enrollment Form'!$DA800,'Enrollment Form'!$DK800,'Enrollment Form'!$DP800),\"Y\",\"N\"))","v":""},{"$f":"IF($B793=\"N\",\"\",IF(OR('Enrollment Form'!B800<>\"Subscriber\",'Enrollment Form'!C800=\"ROC\",COUNTIF('Enrollment Form'!AS800:AT800,\"Yes\")>=1),\"-\",IF(AND('Enrollment Form'!C800=\"Enroll\",COUNTIF('Enrollment Form'!AS800:AT800,\"No\")=2,'Enrollment Form'!AU800=\"\"),\"N\",\"Y\")))","v":""},{"$f":"IF(OR(B793=\"N\",'Enrollment Form'!B800<>\"Subscriber\",'Enrollment Form'!C800=\"ROC\",'Enrollment Form'!O800<>\"Multiple of Salary\"),\"-\",IF(COUNTA('Enrollment Form'!T800:U800)<2,\"N\",\"Y\"))","v":"-"},{"$f":"IF(B793=\"N\",\"\",IF(OR('Enrollment Form'!C800=\"ROC\",'Enrollment Form'!B800<>\"Subscriber\",'Enrollment Form'!O800=\"Waive\",'Enrollment Form'!O800=\"\"),\"-\",IF('Enrollment Form'!P800=\"\",\"N\",\"Y\")))","v":""},{"$f":"IF($B793=\"N\",\"\",IF(AND('Enrollment Form'!$C800=\"ROC\",'Enrollment Form'!$DS800<>\"\"),\"Y\",IF(AND('Enrollment Form'!$C800=\"ROC\",'Enrollment Form'!$DS800=\"\"),\"N\",IF(AND('Enrollment Form'!$C800=\"Enroll\",'Enrollment Form'!$B800=\"Subscriber\",'Enrollment Form'!$CQ800=\"No\",'Enrollment Form'!$DS800=\"\"),\"N\",IF(AND('Enrollment Form'!$C800=\"Enroll\",'Enrollment Form'!$B800=\"Subscriber\",'Enrollment Form'!$CQ800=\"Yes\"),\"-\",\"Y\")))))","v":""},{"$f":"IF($B793=\"N\",\"\",IF(AND('Enrollment Form'!$C800=\"ROC\",'Enrollment Form'!$DT800<>\"\"),\"Y\",IF(AND('Enrollment Form'!$C800=\"ROC\",'Enrollment Form'!$DT800=\"\"),\"N\",IF(AND('Enrollment Form'!$C800=\"Enroll\",'Enrollment Form'!$B800=\"Subscriber\",'Enrollment Form'!$CQ800=\"No\",'Enrollment Form'!$DT800=\"\"),\"N\",IF(AND('Enrollment Form'!$C800=\"Enroll\",'Enrollment Form'!$B800=\"Subscriber\",'Enrollment Form'!$CQ800=\"Yes\"),\"-\",\"Y\")))))","v":""},{"$f":"IF('Enrollment Form'!AH800=\"\",\"\",IF(ISERROR(SEARCH(\".\",'Enrollment Form'!AH800,SEARCH(\"@\",'Enrollment Form'!AH800))),\"N\",\"Y\"))","v":""},{"$f":"IF(OR($B793=\"N\",'Enrollment Form'!$G800=\"\"),\"\",IF('Enrollment Form'!$B800<>\"Subscriber\",\"-\",IF(COUNTIF('Enrollment Form'!$AS800:$AT800,\"Yes\")=2,\"N\",\"Y\")))","v":""},{"$f":"IF(OR('Enrollment Form'!$CC800=\"\",'Enrollment Form'!$CC800=\"No\"),\"-\",IF(AND('Enrollment Form'!$CC800=\"Yes\",'Enrollment Form'!$CD800=\"\"),\"N\",\"Y\"))","v":"-"},{"$f":"IF(OR('Enrollment Form'!$CE800=\"\",'Enrollment Form'!$CE800=\"No\"),\"-\",IF(AND('Enrollment Form'!$CE800=\"Yes\",'Enrollment Form'!$CF800=\"\"),\"N\",\"Y\"))","v":"-"},{"$f":"IF(OR('Enrollment Form'!$CG800=\"\",'Enrollment Form'!$CG800=\"No\"),\"-\",IF(AND('Enrollment Form'!$CG800=\"Yes\",'Enrollment Form'!$CH800=\"\"),\"N\",\"Y\"))","v":"-"},{"$f":"IF(OR('Enrollment Form'!$CG800=\"\",'Enrollment Form'!$CG800=\"No\"),\"-\",IF(AND('Enrollment Form'!$CG800=\"Yes\",'Enrollment Form'!$CI800=\"\"),\"N\",\"Y\"))","v":"-"},{"$f":"IF('Enrollment Form'!B800<>\"Subscriber\",\"-\",IF(AND('Enrollment Form'!B800=\"Subscriber\",'Enrollment Form'!C800=\"Enroll\",'Enrollment Form'!AA800=\"\"),\"N\",\"Y\"))","v":"-"},{"$f":"IF(OR('Enrollment Form'!B800=\"Subscriber\",'Enrollment Form'!B800=\"\"),\"-\",IF('Enrollment Form'!BI800=\"\",\"N\",\"Y\"))","v":"-"},{"$f":"IF('Enrollment Form'!B800<>\"Subscriber\",\"-\",IF(AND('Enrollment Form'!B800=\"Subscriber\",'Enrollment Form'!G800=\"\"),\"N\",\"Y\"))","v":"-"},{"$f":"IF('Enrollment Form'!A800=\"\",\"\",IF('Enrollment Form'!B800=\"Subscriber\",\"-\",IF(AND('Enrollment Form'!B800<>\"Subscriber\",'Enrollment Form'!G800='Enrollment Form'!H800),\"N\",\"Y\")))","v":""},0]
[801,{"$f":"IF('Enrollment Form'!$A801<>\"\",\"Y\",\"N\")","v":"N"},{"$f":"IF(AND('Enrollment Form'!$B801=\"\",'Enrollment Form'!$C801<>\"\"),\"N\",IF($B794=\"N\",\"\",\"Y\"))","v":""},{"$f":"IF(OR($B794=\"N\",'Enrollment Form'!G801=\"\"),\"\",IF('Enrollment Form'!$B801<>\"Subscriber\",\"\",IF('Enrollment Form'!$G801='Enrollment Form'!$H801,\"Y\",\"N\")))","v":""},{"$f":"IF($B794=\"N\",\"\",IF(AND(COUNTIFS('Enrollment Form'!$H$11:$H$1000,'Enrollment Form'!$H801,'Enrollment Form'!$B$11:$B$1000,'Enrollment Form'!$B801)>1,'Enrollment Form'!$H801<>\"\"),\"N\",\"Y\"))","v":""},{"$f":"IF($B794=\"N\",\"\",IF(LEN('Enrollment Form'!$Y801)=0,\"\",IF(LEN('Enrollment Form'!$Y801)<>5,\"N\",\"Y\")))","v":""},{"$f":"IF($B794=\"N\",\"\",IF(LEN('Enrollment Form'!$AD801=0),\"\",IF(LEN('Enrollment Form'!$AD801)<>5,\"N\",\"Y\")))","v":""},{"$f":"IF($B794=\"N\",\"\",IF(LEN('Enrollment Form'!$BL801=0),\"\",IF(LEN('Enrollment Form'!$BL801)<>5,\"N\",\"Y\")))","v":""},{"$f":"IF($B794=\"N\",\"\",IF(LEN('Enrollment Form'!$AE801)=0,\"\",IF(LEN('Enrollment Form'!$AE801)<>10,\"N\",\"Y\")))","v":""},{"$f":"IF($B794=\"N\",\"\",IF(LEN('Enrollment Form'!$AF801)=0,\"\",IF(LEN('Enrollment Form'!$AF801)<>10,\"N\",\"Y\")))","v":""},{"$f":"IF('Enrollment Form'!$O801<>\"Graded\",\"-\",IF(AND('Enrollment Form'!$O801=\"Graded\",'Enrollment Form'!$AO801<>\"\"),\"Y\",\"N\"))","v":"-"},{"$f":"IF($B794=\"N\",\"\",IF(OR('Enrollment Form'!$B801<>\"Subscriber\",'Enrollment Form'!$C801=\"ROC\"),\"-\",IF(AND('Enrollment Form'!$B801=\"Subscriber\",'Enrollment Form'!$C801=\"Enroll\",'Enrollment Form'!$AJ801<>\"\"),\"Y\",\"N\")))","v":""},{"$f":"IF($B794=\"N\",\"\",IF(OR('Enrollment Form'!$B801<>\"Subscriber\",'Enrollment Form'!$C801=\"ROC\"),\"-\",IF(AND('Enrollment Form'!$B801=\"Subscriber\",'Enrollment Form'!$C801=\"Enroll\",'Enrollment Form'!$AK801<>\"\"),\"Y\",\"N\")))","v":""},{"$f":"IF($B794=\"N\",\"\",IF(OR('Enrollment Form'!$B801<>\"Subscriber\",'Enrollment Form'!$C801=\"ROC\"),\"-\",IF(AND('Enrollment Form'!$B801=\"Subscriber\",'Enrollment Form'!$C801=\"Enroll\",'Enrollment Form'!$AL801<>\"\"),\"Y\",\"N\")))","v":""},{"$f":"IF($B794=\"N\",\"\",IF(OR('Enrollment Form'!$B801<>\"Subscriber\",'Enrollment Form'!$C801=\"ROC\"),\"-\",IF(AND('Enrollment Form'!$B801=\"Subscriber\",'Enrollment Form'!$C801=\"Enroll\",'Enrollment Form'!$AM801<>\"\"),\"Y\",\"N\")))","v":""},{"$f":"IF($B794=\"N\",\"\",IF(OR('Enrollment Form'!$B801<>\"Subscriber\",'Enrollment Form'!$C801=\"ROC\"),\"-\",IF(AND('Enrollment Form'!$B801=\"Subscriber\",'Enrollment Form'!$C801=\"Enroll\",'Enrollment Form'!$AN801<>\"\"),\"Y\",\"N\")))","v":""},{"$f":"IF($B794=\"N\",\"\",IF(OR('Enrollment Form'!$B801<>\"Subscriber\",'Enrollment Form'!$C801=\"ROC\"),\"-\",IF(AND('Enrollment Form'!$B801=\"Subscriber\",'Enrollment Form'!$C801=\"Enroll\",'Enrollment Form'!$AP801<>\"\"),\"Y\",\"N\")))","v":""},{"$f":"IF($B794=\"N\",\"\",IF($Q794=\"-\",\"-\",IF(AND($Q794=\"Y\",'Enrollment Form'!$AP801=\"No\"),\"-\",IF(AND($Q794=\"Y\",'Enrollment Form'!$AP801=\"Yes\",'Enrollment Form'!$AQ801<>\"\"),\"Y\",\"N\"))))","v":""},{"$f":"IF($B794=\"N\",\"\",IF(OR('Enrollment Form'!$B801<>\"Subscriber\",'Enrollment Form'!$C801=\"ROC\"),\"-\",IF(AND('Enrollment Form'!$B801=\"Subscriber\",'Enrollment Form'!$C801=\"Enroll\",'Enrollment Form'!$CO801<>\"\"),\"Y\",\"N\")))","v":""},{"$f":"IF($B794=\"N\",\"\",IF($S794=\"-\",\"-\",IF(AND($S794=\"Y\",'Enrollment Form'!$CO801=\"No\"),\"-\",IF(AND($S794=\"Y\",'Enrollment Form'!$CO801=\"Yes\",'Enrollment Form'!$CP801<>\"\"),\"Y\",\"N\"))))","v":""},{"$f":"IF(OR('Enrollment Form'!$AV801=\"Yes\",'Enrollment Form'!$AV801=\"\"),\"-\",IF(AND('Enrollment Form'!$AV801=\"No\",ISERROR(FIND(\"HMO\",VLOOKUP('Enrollment Form'!G801,'Enrollment Form'!H$11:J$1000,3,FALSE),1))=FALSE,COUNTA('Enrollment Form'!$AW801:$AZ801)=4),\"Y\",\"N\"))","v":"-"},{"$f":"IF($B794=\"N\",\"\",IF('Enrollment Form'!$B801=\"Subscriber\",\"-\",IF(COUNTA('Enrollment Form'!$BE801,'Enrollment Form'!$BG801)=2,\"Y\",\"N\")))","v":""},{"$f":"IF($B794=\"N\",\"\",IF(OR('Enrollment Form'!$AU801=\"\",'Enrollment Form'!$AU801=\"No\"),\"-\",IF(AND('Enrollment Form'!$AU801=\"Yes\",COUNTA('Enrollment Form'!$CK801)=1),\"Y\",\"N\")))","v":""},{"$f":"IF(OR('Enrollment Form'!$CK801=\"\",'Enrollment Form'!$CK801=\"No\"),\"-\",IF(COUNTA('Enrollment Form'!$CM801:$CN801)=2,\"Y\",\"N\"))","v":"-"},{"$f":"IF($B794=\"N\",\"\",IF(COUNTIF('Enrollment Form'!$CZ801:$DO801,\"Other\")=COUNTA('Enrollment Form'!$DF801,'Enrollment Form'!$DA801,'Enrollment Form'!$DK801,'Enrollment Form'!$DP801),\"Y\",\"N\"))","v":""},{"$f":"IF($B794=\"N\",\"\",IF(OR('Enrollment Form'!B801<>\"Subscriber\",'Enrollment Form'!C801=\"ROC\",COUNTIF('Enrollment Form'!AS801:AT801,\"Yes\")>=1),\"-\",IF(AND('Enrollment Form'!C801=\"Enroll\",COUNTIF('Enrollment Form'!AS801:AT801,\"No\")=2,'Enrollment Form'!AU801=\"\"),\"N\",\"Y\")))","v":""},{"$f":"IF(OR(B794=\"N\",'Enrollment Form'!B801<>\"Subscriber\",'Enrollment Form'!C801=\"ROC\",'Enrollment Form'!O801<>\"Multiple of Salary\"),\"-\",IF(COUNTA('Enrollment Form'!T801:U801)<2,\"N\",\"Y\"))","v":"-"},{"$f":"IF(B794=\"N\",\"\",IF(OR('Enrollment Form'!C801=\"ROC\",'Enrollment Form'!B801<>\"Subscriber\",'Enrollment Form'!O801=\"Waive\",'Enrollment Form'!O801=\"\"),\"-\",IF('Enrollment Form'!P801=\"\",\"N\",\"Y\")))","v":""},{"$f":"IF($B794=\"N\",\"\",IF(AND('Enrollment Form'!$C801=\"ROC\",'Enrollment Form'!$DS801<>\"\"),\"Y\",IF(AND('Enrollment Form'!$C801=\"ROC\",'Enrollment Form'!$DS801=\"\"),\"N\",IF(AND('Enrollment Form'!$C801=\"Enroll\",'Enrollment Form'!$B801=\"Subscriber\",'Enrollment Form'!$CQ801=\"No\",'Enrollment Form'!$DS801=\"\"),\"N\",IF(AND('Enrollment Form'!$C801=\"Enroll\",'Enrollment Form'!$B801=\"Subscriber\",'Enrollment Form'!$CQ801=\"Yes\"),\"-\",\"Y\")))))","v":""},{"$f":"IF($B794=\"N\",\"\",IF(AND('Enrollment Form'!$C801=\"ROC\",'Enrollment Form'!$DT801<>\"\"),\"Y\",IF(AND('Enrollment Form'!$C801=\"ROC\",'Enrollment Form'!$DT801=\"\"),\"N\",IF(AND('Enrollment Form'!$C801=\"Enroll\",'Enrollment Form'!$B801=\"Subscriber\",'Enrollment Form'!$CQ801=\"No\",'Enrollment Form'!$DT801=\"\"),\"N\",IF(AND('Enrollment Form'!$C801=\"Enroll\",'Enrollment Form'!$B801=\"Subscriber\",'Enrollment Form'!$CQ801=\"Yes\"),\"-\",\"Y\")))))","v":""},{"$f":"IF('Enrollment Form'!AH801=\"\",\"\",IF(ISERROR(SEARCH(\".\",'Enrollment Form'!AH801,SEARCH(\"@\",'Enrollment Form'!AH801))),\"N\",\"Y\"))","v":""},{"$f":"IF(OR($B794=\"N\",'Enrollment Form'!$G801=\"\"),\"\",IF('Enrollment Form'!$B801<>\"Subscriber\",\"-\",IF(COUNTIF('Enrollment Form'!$AS801:$AT801,\"Yes\")=2,\"N\",\"Y\")))","v":""},{"$f":"IF(OR('Enrollment Form'!$CC801=\"\",'Enrollment Form'!$CC801=\"No\"),\"-\",IF(AND('Enrollment Form'!$CC801=\"Yes\",'Enrollment Form'!$CD801=\"\"),\"N\",\"Y\"))","v":"-"},{"$f":"IF(OR('Enrollment Form'!$CE801=\"\",'Enrollment Form'!$CE801=\"No\"),\"-\",IF(AND('Enrollment Form'!$CE801=\"Yes\",'Enrollment Form'!$CF801=\"\"),\"N\",\"Y\"))","v":"-"},{"$f":"IF(OR('Enrollment Form'!$CG801=\"\",'Enrollment Form'!$CG801=\"No\"),\"-\",IF(AND('Enrollment Form'!$CG801=\"Yes\",'Enrollment Form'!$CH801=\"\"),\"N\",\"Y\"))","v":"-"},{"$f":"IF(OR('Enrollment Form'!$CG801=\"\",'Enrollment Form'!$CG801=\"No\"),\"-\",IF(AND('Enrollment Form'!$CG801=\"Yes\",'Enrollment Form'!$CI801=\"\"),\"N\",\"Y\"))","v":"-"},{"$f":"IF('Enrollment Form'!B801<>\"Subscriber\",\"-\",IF(AND('Enrollment Form'!B801=\"Subscriber\",'Enrollment Form'!C801=\"Enroll\",'Enrollment Form'!AA801=\"\"),\"N\",\"Y\"))","v":"-"},{"$f":"IF(OR('Enrollment Form'!B801=\"Subscriber\",'Enrollment Form'!B801=\"\"),\"-\",IF('Enrollment Form'!BI801=\"\",\"N\",\"Y\"))","v":"-"},{"$f":"IF('Enrollment Form'!B801<>\"Subscriber\",\"-\",IF(AND('Enrollment Form'!B801=\"Subscriber\",'Enrollment Form'!G801=\"\"),\"N\",\"Y\"))","v":"-"},{"$f":"IF('Enrollment Form'!A801=\"\",\"\",IF('Enrollment Form'!B801=\"Subscriber\",\"-\",IF(AND('Enrollment Form'!B801<>\"Subscriber\",'Enrollment Form'!G801='Enrollment Form'!H801),\"N\",\"Y\")))","v":""},0]
[802,{"$f":"IF('Enrollment Form'!$A802<>\"\",\"Y\",\"N\")","v":"N"},{"$f":"IF(AND('Enrollment Form'!$B802=\"\",'Enrollment Form'!$C802<>\"\"),\"N\",IF($B795=\"N\",\"\",\"Y\"))","v":""},{"$f":"IF(OR($B795=\"N\",'Enrollment Form'!G802=\"\"),\"\",IF('Enrollment Form'!$B802<>\"Subscriber\",\"\",IF('Enrollment Form'!$G802='Enrollment Form'!$H802,\"Y\",\"N\")))","v":""},{"$f":"IF($B795=\"N\",\"\",IF(AND(COUNTIFS('Enrollment Form'!$H$11:$H$1000,'Enrollment Form'!$H802,'Enrollment Form'!$B$11:$B$1000,'Enrollment Form'!$B802)>1,'Enrollment Form'!$H802<>\"\"),\"N\",\"Y\"))","v":""},{"$f":"IF($B795=\"N\",\"\",IF(LEN('Enrollment Form'!$Y802)=0,\"\",IF(LEN('Enrollment Form'!$Y802)<>5,\"N\",\"Y\")))","v":""},{"$f":"IF($B795=\"N\",\"\",IF(LEN('Enrollment Form'!$AD802=0),\"\",IF(LEN('Enrollment Form'!$AD802)<>5,\"N\",\"Y\")))","v":""},{"$f":"IF($B795=\"N\",\"\",IF(LEN('Enrollment Form'!$BL802=0),\"\",IF(LEN('Enrollment Form'!$BL802)<>5,\"N\",\"Y\")))","v":""},{"$f":"IF($B795=\"N\",\"\",IF(LEN('Enrollment Form'!$AE802)=0,\"\",IF(LEN('Enrollment Form'!$AE802)<>10,\"N\",\"Y\")))","v":""},{"$f":"IF($B795=\"N\",\"\",IF(LEN('Enrollment Form'!$AF802)=0,\"\",IF(LEN('Enrollment Form'!$AF802)<>10,\"N\",\"Y\")))","v":""},{"$f":"IF('Enrollment Form'!$O802<>\"Graded\",\"-\",IF(AND('Enrollment Form'!$O802=\"Graded\",'Enrollment Form'!$AO802<>\"\"),\"Y\",\"N\"))","v":"-"},{"$f":"IF($B795=\"N\",\"\",IF(OR('Enrollment Form'!$B802<>\"Subscriber\",'Enrollment Form'!$C802=\"ROC\"),\"-\",IF(AND('Enrollment Form'!$B802=\"Subscriber\",'Enrollment Form'!$C802=\"Enroll\",'Enrollment Form'!$AJ802<>\"\"),\"Y\",\"N\")))","v":""},{"$f":"IF($B795=\"N\",\"\",IF(OR('Enrollment Form'!$B802<>\"Subscriber\",'Enrollment Form'!$C802=\"ROC\"),\"-\",IF(AND('Enrollment Form'!$B802=\"Subscriber\",'Enrollment Form'!$C802=\"Enroll\",'Enrollment Form'!$AK802<>\"\"),\"Y\",\"N\")))","v":""},{"$f":"IF($B795=\"N\",\"\",IF(OR('Enrollment Form'!$B802<>\"Subscriber\",'Enrollment Form'!$C802=\"ROC\"),\"-\",IF(AND('Enrollment Form'!$B802=\"Subscriber\",'Enrollment Form'!$C802=\"Enroll\",'Enrollment Form'!$AL802<>\"\"),\"Y\",\"N\")))","v":""},{"$f":"IF($B795=\"N\",\"\",IF(OR('Enrollment Form'!$B802<>\"Subscriber\",'Enrollment Form'!$C802=\"ROC\"),\"-\",IF(AND('Enrollment Form'!$B802=\"Subscriber\",'Enrollment Form'!$C802=\"Enroll\",'Enrollment Form'!$AM802<>\"\"),\"Y\",\"N\")))","v":""},{"$f":"IF($B795=\"N\",\"\",IF(OR('Enrollment Form'!$B802<>\"Subscriber\",'Enrollment Form'!$C802=\"ROC\"),\"-\",IF(AND('Enrollment Form'!$B802=\"Subscriber\",'Enrollment Form'!$C802=\"Enroll\",'Enrollment Form'!$AN802<>\"\"),\"Y\",\"N\")))","v":""},{"$f":"IF($B795=\"N\",\"\",IF(OR('Enrollment Form'!$B802<>\"Subscriber\",'Enrollment Form'!$C802=\"ROC\"),\"-\",IF(AND('Enrollment Form'!$B802=\"Subscriber\",'Enrollment Form'!$C802=\"Enroll\",'Enrollment Form'!$AP802<>\"\"),\"Y\",\"N\")))","v":""},{"$f":"IF($B795=\"N\",\"\",IF($Q795=\"-\",\"-\",IF(AND($Q795=\"Y\",'Enrollment Form'!$AP802=\"No\"),\"-\",IF(AND($Q795=\"Y\",'Enrollment Form'!$AP802=\"Yes\",'Enrollment Form'!$AQ802<>\"\"),\"Y\",\"N\"))))","v":""},{"$f":"IF($B795=\"N\",\"\",IF(OR('Enrollment Form'!$B802<>\"Subscriber\",'Enrollment Form'!$C802=\"ROC\"),\"-\",IF(AND('Enrollment Form'!$B802=\"Subscriber\",'Enrollment Form'!$C802=\"Enroll\",'Enrollment Form'!$CO802<>\"\"),\"Y\",\"N\")))","v":""},{"$f":"IF($B795=\"N\",\"\",IF($S795=\"-\",\"-\",IF(AND($S795=\"Y\",'Enrollment Form'!$CO802=\"No\"),\"-\",IF(AND($S795=\"Y\",'Enrollment Form'!$CO802=\"Yes\",'Enrollment Form'!$CP802<>\"\"),\"Y\",\"N\"))))","v":""},{"$f":"IF(OR('Enrollment Form'!$AV802=\"Yes\",'Enrollment Form'!$AV802=\"\"),\"-\",IF(AND('Enrollment Form'!$AV802=\"No\",ISERROR(FIND(\"HMO\",VLOOKUP('Enrollment Form'!G802,'Enrollment Form'!H$11:J$1000,3,FALSE),1))=FALSE,COUNTA('Enrollment Form'!$AW802:$AZ802)=4),\"Y\",\"N\"))","v":"-"},{"$f":"IF($B795=\"N\",\"\",IF('Enrollment Form'!$B802=\"Subscriber\",\"-\",IF(COUNTA('Enrollment Form'!$BE802,'Enrollment Form'!$BG802)=2,\"Y\",\"N\")))","v":""},{"$f":"IF($B795=\"N\",\"\",IF(OR('Enrollment Form'!$AU802=\"\",'Enrollment Form'!$AU802=\"No\"),\"-\",IF(AND('Enrollment Form'!$AU802=\"Yes\",COUNTA('Enrollment Form'!$CK802)=1),\"Y\",\"N\")))","v":""},{"$f":"IF(OR('Enrollment Form'!$CK802=\"\",'Enrollment Form'!$CK802=\"No\"),\"-\",IF(COUNTA('Enrollment Form'!$CM802:$CN802)=2,\"Y\",\"N\"))","v":"-"},{"$f":"IF($B795=\"N\",\"\",IF(COUNTIF('Enrollment Form'!$CZ802:$DO802,\"Other\")=COUNTA('Enrollment Form'!$DF802,'Enrollment Form'!$DA802,'Enrollment Form'!$DK802,'Enrollment Form'!$DP802),\"Y\",\"N\"))","v":""},{"$f":"IF($B795=\"N\",\"\",IF(OR('Enrollment Form'!B802<>\"Subscriber\",'Enrollment Form'!C802=\"ROC\",COUNTIF('Enrollment Form'!AS802:AT802,\"Yes\")>=1),\"-\",IF(AND('Enrollment Form'!C802=\"Enroll\",COUNTIF('Enrollment Form'!AS802:AT802,\"No\")=2,'Enrollment Form'!AU802=\"\"),\"N\",\"Y\")))","v":""},{"$f":"IF(OR(B795=\"N\",'Enrollment Form'!B802<>\"Subscriber\",'Enrollment Form'!C802=\"ROC\",'Enrollment Form'!O802<>\"Multiple of Salary\"),\"-\",IF(COUNTA('Enrollment Form'!T802:U802)<2,\"N\",\"Y\"))","v":"-"},{"$f":"IF(B795=\"N\",\"\",IF(OR('Enrollment Form'!C802=\"ROC\",'Enrollment Form'!B802<>\"Subscriber\",'Enrollment Form'!O802=\"Waive\",'Enrollment Form'!O802=\"\"),\"-\",IF('Enrollment Form'!P802=\"\",\"N\",\"Y\")))","v":""},{"$f":"IF($B795=\"N\",\"\",IF(AND('Enrollment Form'!$C802=\"ROC\",'Enrollment Form'!$DS802<>\"\"),\"Y\",IF(AND('Enrollment Form'!$C802=\"ROC\",'Enrollment Form'!$DS802=\"\"),\"N\",IF(AND('Enrollment Form'!$C802=\"Enroll\",'Enrollment Form'!$B802=\"Subscriber\",'Enrollment Form'!$CQ802=\"No\",'Enrollment Form'!$DS802=\"\"),\"N\",IF(AND('Enrollment Form'!$C802=\"Enroll\",'Enrollment Form'!$B802=\"Subscriber\",'Enrollment Form'!$CQ802=\"Yes\"),\"-\",\"Y\")))))","v":""},{"$f":"IF($B795=\"N\",\"\",IF(AND('Enrollment Form'!$C802=\"ROC\",'Enrollment Form'!$DT802<>\"\"),\"Y\",IF(AND('Enrollment Form'!$C802=\"ROC\",'Enrollment Form'!$DT802=\"\"),\"N\",IF(AND('Enrollment Form'!$C802=\"Enroll\",'Enrollment Form'!$B802=\"Subscriber\",'Enrollment Form'!$CQ802=\"No\",'Enrollment Form'!$DT802=\"\"),\"N\",IF(AND('Enrollment Form'!$C802=\"Enroll\",'Enrollment Form'!$B802=\"Subscriber\",'Enrollment Form'!$CQ802=\"Yes\"),\"-\",\"Y\")))))","v":""},{"$f":"IF('Enrollment Form'!AH802=\"\",\"\",IF(ISERROR(SEARCH(\".\",'Enrollment Form'!AH802,SEARCH(\"@\",'Enrollment Form'!AH802))),\"N\",\"Y\"))","v":""},{"$f":"IF(OR($B795=\"N\",'Enrollment Form'!$G802=\"\"),\"\",IF('Enrollment Form'!$B802<>\"Subscriber\",\"-\",IF(COUNTIF('Enrollment Form'!$AS802:$AT802,\"Yes\")=2,\"N\",\"Y\")))","v":""},{"$f":"IF(OR('Enrollment Form'!$CC802=\"\",'Enrollment Form'!$CC802=\"No\"),\"-\",IF(AND('Enrollment Form'!$CC802=\"Yes\",'Enrollment Form'!$CD802=\"\"),\"N\",\"Y\"))","v":"-"},{"$f":"IF(OR('Enrollment Form'!$CE802=\"\",'Enrollment Form'!$CE802=\"No\"),\"-\",IF(AND('Enrollment Form'!$CE802=\"Yes\",'Enrollment Form'!$CF802=\"\"),\"N\",\"Y\"))","v":"-"},{"$f":"IF(OR('Enrollment Form'!$CG802=\"\",'Enrollment Form'!$CG802=\"No\"),\"-\",IF(AND('Enrollment Form'!$CG802=\"Yes\",'Enrollment Form'!$CH802=\"\"),\"N\",\"Y\"))","v":"-"},{"$f":"IF(OR('Enrollment Form'!$CG802=\"\",'Enrollment Form'!$CG802=\"No\"),\"-\",IF(AND('Enrollment Form'!$CG802=\"Yes\",'Enrollment Form'!$CI802=\"\"),\"N\",\"Y\"))","v":"-"},{"$f":"IF('Enrollment Form'!B802<>\"Subscriber\",\"-\",IF(AND('Enrollment Form'!B802=\"Subscriber\",'Enrollment Form'!C802=\"Enroll\",'Enrollment Form'!AA802=\"\"),\"N\",\"Y\"))","v":"-"},{"$f":"IF(OR('Enrollment Form'!B802=\"Subscriber\",'Enrollment Form'!B802=\"\"),\"-\",IF('Enrollment Form'!BI802=\"\",\"N\",\"Y\"))","v":"-"},{"$f":"IF('Enrollment Form'!B802<>\"Subscriber\",\"-\",IF(AND('Enrollment Form'!B802=\"Subscriber\",'Enrollment Form'!G802=\"\"),\"N\",\"Y\"))","v":"-"},{"$f":"IF('Enrollment Form'!A802=\"\",\"\",IF('Enrollment Form'!B802=\"Subscriber\",\"-\",IF(AND('Enrollment Form'!B802<>\"Subscriber\",'Enrollment Form'!G802='Enrollment Form'!H802),\"N\",\"Y\")))","v":""},0]
[803,{"$f":"IF('Enrollment Form'!$A803<>\"\",\"Y\",\"N\")","v":"N"},{"$f":"IF(AND('Enrollment Form'!$B803=\"\",'Enrollment Form'!$C803<>\"\"),\"N\",IF($B796=\"N\",\"\",\"Y\"))","v":""},{"$f":"IF(OR($B796=\"N\",'Enrollment Form'!G803=\"\"),\"\",IF('Enrollment Form'!$B803<>\"Subscriber\",\"\",IF('Enrollment Form'!$G803='Enrollment Form'!$H803,\"Y\",\"N\")))","v":""},{"$f":"IF($B796=\"N\",\"\",IF(AND(COUNTIFS('Enrollment Form'!$H$11:$H$1000,'Enrollment Form'!$H803,'Enrollment Form'!$B$11:$B$1000,'Enrollment Form'!$B803)>1,'Enrollment Form'!$H803<>\"\"),\"N\",\"Y\"))","v":""},{"$f":"IF($B796=\"N\",\"\",IF(LEN('Enrollment Form'!$Y803)=0,\"\",IF(LEN('Enrollment Form'!$Y803)<>5,\"N\",\"Y\")))","v":""},{"$f":"IF($B796=\"N\",\"\",IF(LEN('Enrollment Form'!$AD803=0),\"\",IF(LEN('Enrollment Form'!$AD803)<>5,\"N\",\"Y\")))","v":""},{"$f":"IF($B796=\"N\",\"\",IF(LEN('Enrollment Form'!$BL803=0),\"\",IF(LEN('Enrollment Form'!$BL803)<>5,\"N\",\"Y\")))","v":""},{"$f":"IF($B796=\"N\",\"\",IF(LEN('Enrollment Form'!$AE803)=0,\"\",IF(LEN('Enrollment Form'!$AE803)<>10,\"N\",\"Y\")))","v":""},{"$f":"IF($B796=\"N\",\"\",IF(LEN('Enrollment Form'!$AF803)=0,\"\",IF(LEN('Enrollment Form'!$AF803)<>10,\"N\",\"Y\")))","v":""},{"$f":"IF('Enrollment Form'!$O803<>\"Graded\",\"-\",IF(AND('Enrollment Form'!$O803=\"Graded\",'Enrollment Form'!$AO803<>\"\"),\"Y\",\"N\"))","v":"-"},{"$f":"IF($B796=\"N\",\"\",IF(OR('Enrollment Form'!$B803<>\"Subscriber\",'Enrollment Form'!$C803=\"ROC\"),\"-\",IF(AND('Enrollment Form'!$B803=\"Subscriber\",'Enrollment Form'!$C803=\"Enroll\",'Enrollment Form'!$AJ803<>\"\"),\"Y\",\"N\")))","v":""},{"$f":"IF($B796=\"N\",\"\",IF(OR('Enrollment Form'!$B803<>\"Subscriber\",'Enrollment Form'!$C803=\"ROC\"),\"-\",IF(AND('Enrollment Form'!$B803=\"Subscriber\",'Enrollment Form'!$C803=\"Enroll\",'Enrollment Form'!$AK803<>\"\"),\"Y\",\"N\")))","v":""},{"$f":"IF($B796=\"N\",\"\",IF(OR('Enrollment Form'!$B803<>\"Subscriber\",'Enrollment Form'!$C803=\"ROC\"),\"-\",IF(AND('Enrollment Form'!$B803=\"Subscriber\",'Enrollment Form'!$C803=\"Enroll\",'Enrollment Form'!$AL803<>\"\"),\"Y\",\"N\")))","v":""},{"$f":"IF($B796=\"N\",\"\",IF(OR('Enrollment Form'!$B803<>\"Subscriber\",'Enrollment Form'!$C803=\"ROC\"),\"-\",IF(AND('Enrollment Form'!$B803=\"Subscriber\",'Enrollment Form'!$C803=\"Enroll\",'Enrollment Form'!$AM803<>\"\"),\"Y\",\"N\")))","v":""},{"$f":"IF($B796=\"N\",\"\",IF(OR('Enrollment Form'!$B803<>\"Subscriber\",'Enrollment Form'!$C803=\"ROC\"),\"-\",IF(AND('Enrollment Form'!$B803=\"Subscriber\",'Enrollment Form'!$C803=\"Enroll\",'Enrollment Form'!$AN803<>\"\"),\"Y\",\"N\")))","v":""},{"$f":"IF($B796=\"N\",\"\",IF(OR('Enrollment Form'!$B803<>\"Subscriber\",'Enrollment Form'!$C803=\"ROC\"),\"-\",IF(AND('Enrollment Form'!$B803=\"Subscriber\",'Enrollment Form'!$C803=\"Enroll\",'Enrollment Form'!$AP803<>\"\"),\"Y\",\"N\")))","v":""},{"$f":"IF($B796=\"N\",\"\",IF($Q796=\"-\",\"-\",IF(AND($Q796=\"Y\",'Enrollment Form'!$AP803=\"No\"),\"-\",IF(AND($Q796=\"Y\",'Enrollment Form'!$AP803=\"Yes\",'Enrollment Form'!$AQ803<>\"\"),\"Y\",\"N\"))))","v":""},{"$f":"IF($B796=\"N\",\"\",IF(OR('Enrollment Form'!$B803<>\"Subscriber\",'Enrollment Form'!$C803=\"ROC\"),\"-\",IF(AND('Enrollment Form'!$B803=\"Subscriber\",'Enrollment Form'!$C803=\"Enroll\",'Enrollment Form'!$CO803<>\"\"),\"Y\",\"N\")))","v":""},{"$f":"IF($B796=\"N\",\"\",IF($S796=\"-\",\"-\",IF(AND($S796=\"Y\",'Enrollment Form'!$CO803=\"No\"),\"-\",IF(AND($S796=\"Y\",'Enrollment Form'!$CO803=\"Yes\",'Enrollment Form'!$CP803<>\"\"),\"Y\",\"N\"))))","v":""},{"$f":"IF(OR('Enrollment Form'!$AV803=\"Yes\",'Enrollment Form'!$AV803=\"\"),\"-\",IF(AND('Enrollment Form'!$AV803=\"No\",ISERROR(FIND(\"HMO\",VLOOKUP('Enrollment Form'!G803,'Enrollment Form'!H$11:J$1000,3,FALSE),1))=FALSE,COUNTA('Enrollment Form'!$AW803:$AZ803)=4),\"Y\",\"N\"))","v":"-"},{"$f":"IF($B796=\"N\",\"\",IF('Enrollment Form'!$B803=\"Subscriber\",\"-\",IF(COUNTA('Enrollment Form'!$BE803,'Enrollment Form'!$BG803)=2,\"Y\",\"N\")))","v":""},{"$f":"IF($B796=\"N\",\"\",IF(OR('Enrollment Form'!$AU803=\"\",'Enrollment Form'!$AU803=\"No\"),\"-\",IF(AND('Enrollment Form'!$AU803=\"Yes\",COUNTA('Enrollment Form'!$CK803)=1),\"Y\",\"N\")))","v":""},{"$f":"IF(OR('Enrollment Form'!$CK803=\"\",'Enrollment Form'!$CK803=\"No\"),\"-\",IF(COUNTA('Enrollment Form'!$CM803:$CN803)=2,\"Y\",\"N\"))","v":"-"},{"$f":"IF($B796=\"N\",\"\",IF(COUNTIF('Enrollment Form'!$CZ803:$DO803,\"Other\")=COUNTA('Enrollment Form'!$DF803,'Enrollment Form'!$DA803,'Enrollment Form'!$DK803,'Enrollment Form'!$DP803),\"Y\",\"N\"))","v":""},{"$f":"IF($B796=\"N\",\"\",IF(OR('Enrollment Form'!B803<>\"Subscriber\",'Enrollment Form'!C803=\"ROC\",COUNTIF('Enrollment Form'!AS803:AT803,\"Yes\")>=1),\"-\",IF(AND('Enrollment Form'!C803=\"Enroll\",COUNTIF('Enrollment Form'!AS803:AT803,\"No\")=2,'Enrollment Form'!AU803=\"\"),\"N\",\"Y\")))","v":""},{"$f":"IF(OR(B796=\"N\",'Enrollment Form'!B803<>\"Subscriber\",'Enrollment Form'!C803=\"ROC\",'Enrollment Form'!O803<>\"Multiple of Salary\"),\"-\",IF(COUNTA('Enrollment Form'!T803:U803)<2,\"N\",\"Y\"))","v":"-"},{"$f":"IF(B796=\"N\",\"\",IF(OR('Enrollment Form'!C803=\"ROC\",'Enrollment Form'!B803<>\"Subscriber\",'Enrollment Form'!O803=\"Waive\",'Enrollment Form'!O803=\"\"),\"-\",IF('Enrollment Form'!P803=\"\",\"N\",\"Y\")))","v":""},{"$f":"IF($B796=\"N\",\"\",IF(AND('Enrollment Form'!$C803=\"ROC\",'Enrollment Form'!$DS803<>\"\"),\"Y\",IF(AND('Enrollment Form'!$C803=\"ROC\",'Enrollment Form'!$DS803=\"\"),\"N\",IF(AND('Enrollment Form'!$C803=\"Enroll\",'Enrollment Form'!$B803=\"Subscriber\",'Enrollment Form'!$CQ803=\"No\",'Enrollment Form'!$DS803=\"\"),\"N\",IF(AND('Enrollment Form'!$C803=\"Enroll\",'Enrollment Form'!$B803=\"Subscriber\",'Enrollment Form'!$CQ803=\"Yes\"),\"-\",\"Y\")))))","v":""},{"$f":"IF($B796=\"N\",\"\",IF(AND('Enrollment Form'!$C803=\"ROC\",'Enrollment Form'!$DT803<>\"\"),\"Y\",IF(AND('Enrollment Form'!$C803=\"ROC\",'Enrollment Form'!$DT803=\"\"),\"N\",IF(AND('Enrollment Form'!$C803=\"Enroll\",'Enrollment Form'!$B803=\"Subscriber\",'Enrollment Form'!$CQ803=\"No\",'Enrollment Form'!$DT803=\"\"),\"N\",IF(AND('Enrollment Form'!$C803=\"Enroll\",'Enrollment Form'!$B803=\"Subscriber\",'Enrollment Form'!$CQ803=\"Yes\"),\"-\",\"Y\")))))","v":""},{"$f":"IF('Enrollment Form'!AH803=\"\",\"\",IF(ISERROR(SEARCH(\".\",'Enrollment Form'!AH803,SEARCH(\"@\",'Enrollment Form'!AH803))),\"N\",\"Y\"))","v":""},{"$f":"IF(OR($B796=\"N\",'Enrollment Form'!$G803=\"\"),\"\",IF('Enrollment Form'!$B803<>\"Subscriber\",\"-\",IF(COUNTIF('Enrollment Form'!$AS803:$AT803,\"Yes\")=2,\"N\",\"Y\")))","v":""},{"$f":"IF(OR('Enrollment Form'!$CC803=\"\",'Enrollment Form'!$CC803=\"No\"),\"-\",IF(AND('Enrollment Form'!$CC803=\"Yes\",'Enrollment Form'!$CD803=\"\"),\"N\",\"Y\"))","v":"-"},{"$f":"IF(OR('Enrollment Form'!$CE803=\"\",'Enrollment Form'!$CE803=\"No\"),\"-\",IF(AND('Enrollment Form'!$CE803=\"Yes\",'Enrollment Form'!$CF803=\"\"),\"N\",\"Y\"))","v":"-"},{"$f":"IF(OR('Enrollment Form'!$CG803=\"\",'Enrollment Form'!$CG803=\"No\"),\"-\",IF(AND('Enrollment Form'!$CG803=\"Yes\",'Enrollment Form'!$CH803=\"\"),\"N\",\"Y\"))","v":"-"},{"$f":"IF(OR('Enrollment Form'!$CG803=\"\",'Enrollment Form'!$CG803=\"No\"),\"-\",IF(AND('Enrollment Form'!$CG803=\"Yes\",'Enrollment Form'!$CI803=\"\"),\"N\",\"Y\"))","v":"-"},{"$f":"IF('Enrollment Form'!B803<>\"Subscriber\",\"-\",IF(AND('Enrollment Form'!B803=\"Subscriber\",'Enrollment Form'!C803=\"Enroll\",'Enrollment Form'!AA803=\"\"),\"N\",\"Y\"))","v":"-"},{"$f":"IF(OR('Enrollment Form'!B803=\"Subscriber\",'Enrollment Form'!B803=\"\"),\"-\",IF('Enrollment Form'!BI803=\"\",\"N\",\"Y\"))","v":"-"},{"$f":"IF('Enrollment Form'!B803<>\"Subscriber\",\"-\",IF(AND('Enrollment Form'!B803=\"Subscriber\",'Enrollment Form'!G803=\"\"),\"N\",\"Y\"))","v":"-"},{"$f":"IF('Enrollment Form'!A803=\"\",\"\",IF('Enrollment Form'!B803=\"Subscriber\",\"-\",IF(AND('Enrollment Form'!B803<>\"Subscriber\",'Enrollment Form'!G803='Enrollment Form'!H803),\"N\",\"Y\")))","v":""},0]
[804,{"$f":"IF('Enrollment Form'!$A804<>\"\",\"Y\",\"N\")","v":"N"},{"$f":"IF(AND('Enrollment Form'!$B804=\"\",'Enrollment Form'!$C804<>\"\"),\"N\",IF($B797=\"N\",\"\",\"Y\"))","v":""},{"$f":"IF(OR($B797=\"N\",'Enrollment Form'!G804=\"\"),\"\",IF('Enrollment Form'!$B804<>\"Subscriber\",\"\",IF('Enrollment Form'!$G804='Enrollment Form'!$H804,\"Y\",\"N\")))","v":""},{"$f":"IF($B797=\"N\",\"\",IF(AND(COUNTIFS('Enrollment Form'!$H$11:$H$1000,'Enrollment Form'!$H804,'Enrollment Form'!$B$11:$B$1000,'Enrollment Form'!$B804)>1,'Enrollment Form'!$H804<>\"\"),\"N\",\"Y\"))","v":""},{"$f":"IF($B797=\"N\",\"\",IF(LEN('Enrollment Form'!$Y804)=0,\"\",IF(LEN('Enrollment Form'!$Y804)<>5,\"N\",\"Y\")))","v":""},{"$f":"IF($B797=\"N\",\"\",IF(LEN('Enrollment Form'!$AD804=0),\"\",IF(LEN('Enrollment Form'!$AD804)<>5,\"N\",\"Y\")))","v":""},{"$f":"IF($B797=\"N\",\"\",IF(LEN('Enrollment Form'!$BL804=0),\"\",IF(LEN('Enrollment Form'!$BL804)<>5,\"N\",\"Y\")))","v":""},{"$f":"IF($B797=\"N\",\"\",IF(LEN('Enrollment Form'!$AE804)=0,\"\",IF(LEN('Enrollment Form'!$AE804)<>10,\"N\",\"Y\")))","v":""},{"$f":"IF($B797=\"N\",\"\",IF(LEN('Enrollment Form'!$AF804)=0,\"\",IF(LEN('Enrollment Form'!$AF804)<>10,\"N\",\"Y\")))","v":""},{"$f":"IF('Enrollment Form'!$O804<>\"Graded\",\"-\",IF(AND('Enrollment Form'!$O804=\"Graded\",'Enrollment Form'!$AO804<>\"\"),\"Y\",\"N\"))","v":"-"},{"$f":"IF($B797=\"N\",\"\",IF(OR('Enrollment Form'!$B804<>\"Subscriber\",'Enrollment Form'!$C804=\"ROC\"),\"-\",IF(AND('Enrollment Form'!$B804=\"Subscriber\",'Enrollment Form'!$C804=\"Enroll\",'Enrollment Form'!$AJ804<>\"\"),\"Y\",\"N\")))","v":""},{"$f":"IF($B797=\"N\",\"\",IF(OR('Enrollment Form'!$B804<>\"Subscriber\",'Enrollment Form'!$C804=\"ROC\"),\"-\",IF(AND('Enrollment Form'!$B804=\"Subscriber\",'Enrollment Form'!$C804=\"Enroll\",'Enrollment Form'!$AK804<>\"\"),\"Y\",\"N\")))","v":""},{"$f":"IF($B797=\"N\",\"\",IF(OR('Enrollment Form'!$B804<>\"Subscriber\",'Enrollment Form'!$C804=\"ROC\"),\"-\",IF(AND('Enrollment Form'!$B804=\"Subscriber\",'Enrollment Form'!$C804=\"Enroll\",'Enrollment Form'!$AL804<>\"\"),\"Y\",\"N\")))","v":""},{"$f":"IF($B797=\"N\",\"\",IF(OR('Enrollment Form'!$B804<>\"Subscriber\",'Enrollment Form'!$C804=\"ROC\"),\"-\",IF(AND('Enrollment Form'!$B804=\"Subscriber\",'Enrollment Form'!$C804=\"Enroll\",'Enrollment Form'!$AM804<>\"\"),\"Y\",\"N\")))","v":""},{"$f":"IF($B797=\"N\",\"\",IF(OR('Enrollment Form'!$B804<>\"Subscriber\",'Enrollment Form'!$C804=\"ROC\"),\"-\",IF(AND('Enrollment Form'!$B804=\"Subscriber\",'Enrollment Form'!$C804=\"Enroll\",'Enrollment Form'!$AN804<>\"\"),\"Y\",\"N\")))","v":""},{"$f":"IF($B797=\"N\",\"\",IF(OR('Enrollment Form'!$B804<>\"Subscriber\",'Enrollment Form'!$C804=\"ROC\"),\"-\",IF(AND('Enrollment Form'!$B804=\"Subscriber\",'Enrollment Form'!$C804=\"Enroll\",'Enrollment Form'!$AP804<>\"\"),\"Y\",\"N\")))","v":""},{"$f":"IF($B797=\"N\",\"\",IF($Q797=\"-\",\"-\",IF(AND($Q797=\"Y\",'Enrollment Form'!$AP804=\"No\"),\"-\",IF(AND($Q797=\"Y\",'Enrollment Form'!$AP804=\"Yes\",'Enrollment Form'!$AQ804<>\"\"),\"Y\",\"N\"))))","v":""},{"$f":"IF($B797=\"N\",\"\",IF(OR('Enrollment Form'!$B804<>\"Subscriber\",'Enrollment Form'!$C804=\"ROC\"),\"-\",IF(AND('Enrollment Form'!$B804=\"Subscriber\",'Enrollment Form'!$C804=\"Enroll\",'Enrollment Form'!$CO804<>\"\"),\"Y\",\"N\")))","v":""},{"$f":"IF($B797=\"N\",\"\",IF($S797=\"-\",\"-\",IF(AND($S797=\"Y\",'Enrollment Form'!$CO804=\"No\"),\"-\",IF(AND($S797=\"Y\",'Enrollment Form'!$CO804=\"Yes\",'Enrollment Form'!$CP804<>\"\"),\"Y\",\"N\"))))","v":""},{"$f":"IF(OR('Enrollment Form'!$AV804=\"Yes\",'Enrollment Form'!$AV804=\"\"),\"-\",IF(AND('Enrollment Form'!$AV804=\"No\",ISERROR(FIND(\"HMO\",VLOOKUP('Enrollment Form'!G804,'Enrollment Form'!H$11:J$1000,3,FALSE),1))=FALSE,COUNTA('Enrollment Form'!$AW804:$AZ804)=4),\"Y\",\"N\"))","v":"-"},{"$f":"IF($B797=\"N\",\"\",IF('Enrollment Form'!$B804=\"Subscriber\",\"-\",IF(COUNTA('Enrollment Form'!$BE804,'Enrollment Form'!$BG804)=2,\"Y\",\"N\")))","v":""},{"$f":"IF($B797=\"N\",\"\",IF(OR('Enrollment Form'!$AU804=\"\",'Enrollment Form'!$AU804=\"No\"),\"-\",IF(AND('Enrollment Form'!$AU804=\"Yes\",COUNTA('Enrollment Form'!$CK804)=1),\"Y\",\"N\")))","v":""},{"$f":"IF(OR('Enrollment Form'!$CK804=\"\",'Enrollment Form'!$CK804=\"No\"),\"-\",IF(COUNTA('Enrollment Form'!$CM804:$CN804)=2,\"Y\",\"N\"))","v":"-"},{"$f":"IF($B797=\"N\",\"\",IF(COUNTIF('Enrollment Form'!$CZ804:$DO804,\"Other\")=COUNTA('Enrollment Form'!$DF804,'Enrollment Form'!$DA804,'Enrollment Form'!$DK804,'Enrollment Form'!$DP804),\"Y\",\"N\"))","v":""},{"$f":"IF($B797=\"N\",\"\",IF(OR('Enrollment Form'!B804<>\"Subscriber\",'Enrollment Form'!C804=\"ROC\",COUNTIF('Enrollment Form'!AS804:AT804,\"Yes\")>=1),\"-\",IF(AND('Enrollment Form'!C804=\"Enroll\",COUNTIF('Enrollment Form'!AS804:AT804,\"No\")=2,'Enrollment Form'!AU804=\"\"),\"N\",\"Y\")))","v":""},{"$f":"IF(OR(B797=\"N\",'Enrollment Form'!B804<>\"Subscriber\",'Enrollment Form'!C804=\"ROC\",'Enrollment Form'!O804<>\"Multiple of Salary\"),\"-\",IF(COUNTA('Enrollment Form'!T804:U804)<2,\"N\",\"Y\"))","v":"-"},{"$f":"IF(B797=\"N\",\"\",IF(OR('Enrollment Form'!C804=\"ROC\",'Enrollment Form'!B804<>\"Subscriber\",'Enrollment Form'!O804=\"Waive\",'Enrollment Form'!O804=\"\"),\"-\",IF('Enrollment Form'!P804=\"\",\"N\",\"Y\")))","v":""},{"$f":"IF($B797=\"N\",\"\",IF(AND('Enrollment Form'!$C804=\"ROC\",'Enrollment Form'!$DS804<>\"\"),\"Y\",IF(AND('Enrollment Form'!$C804=\"ROC\",'Enrollment Form'!$DS804=\"\"),\"N\",IF(AND('Enrollment Form'!$C804=\"Enroll\",'Enrollment Form'!$B804=\"Subscriber\",'Enrollment Form'!$CQ804=\"No\",'Enrollment Form'!$DS804=\"\"),\"N\",IF(AND('Enrollment Form'!$C804=\"Enroll\",'Enrollment Form'!$B804=\"Subscriber\",'Enrollment Form'!$CQ804=\"Yes\"),\"-\",\"Y\")))))","v":""},{"$f":"IF($B797=\"N\",\"\",IF(AND('Enrollment Form'!$C804=\"ROC\",'Enrollment Form'!$DT804<>\"\"),\"Y\",IF(AND('Enrollment Form'!$C804=\"ROC\",'Enrollment Form'!$DT804=\"\"),\"N\",IF(AND('Enrollment Form'!$C804=\"Enroll\",'Enrollment Form'!$B804=\"Subscriber\",'Enrollment Form'!$CQ804=\"No\",'Enrollment Form'!$DT804=\"\"),\"N\",IF(AND('Enrollment Form'!$C804=\"Enroll\",'Enrollment Form'!$B804=\"Subscriber\",'Enrollment Form'!$CQ804=\"Yes\"),\"-\",\"Y\")))))","v":""},{"$f":"IF('Enrollment Form'!AH804=\"\",\"\",IF(ISERROR(SEARCH(\".\",'Enrollment Form'!AH804,SEARCH(\"@\",'Enrollment Form'!AH804))),\"N\",\"Y\"))","v":""},{"$f":"IF(OR($B797=\"N\",'Enrollment Form'!$G804=\"\"),\"\",IF('Enrollment Form'!$B804<>\"Subscriber\",\"-\",IF(COUNTIF('Enrollment Form'!$AS804:$AT804,\"Yes\")=2,\"N\",\"Y\")))","v":""},{"$f":"IF(OR('Enrollment Form'!$CC804=\"\",'Enrollment Form'!$CC804=\"No\"),\"-\",IF(AND('Enrollment Form'!$CC804=\"Yes\",'Enrollment Form'!$CD804=\"\"),\"N\",\"Y\"))","v":"-"},{"$f":"IF(OR('Enrollment Form'!$CE804=\"\",'Enrollment Form'!$CE804=\"No\"),\"-\",IF(AND('Enrollment Form'!$CE804=\"Yes\",'Enrollment Form'!$CF804=\"\"),\"N\",\"Y\"))","v":"-"},{"$f":"IF(OR('Enrollment Form'!$CG804=\"\",'Enrollment Form'!$CG804=\"No\"),\"-\",IF(AND('Enrollment Form'!$CG804=\"Yes\",'Enrollment Form'!$CH804=\"\"),\"N\",\"Y\"))","v":"-"},{"$f":"IF(OR('Enrollment Form'!$CG804=\"\",'Enrollment Form'!$CG804=\"No\"),\"-\",IF(AND('Enrollment Form'!$CG804=\"Yes\",'Enrollment Form'!$CI804=\"\"),\"N\",\"Y\"))","v":"-"},{"$f":"IF('Enrollment Form'!B804<>\"Subscriber\",\"-\",IF(AND('Enrollment Form'!B804=\"Subscriber\",'Enrollment Form'!C804=\"Enroll\",'Enrollment Form'!AA804=\"\"),\"N\",\"Y\"))","v":"-"},{"$f":"IF(OR('Enrollment Form'!B804=\"Subscriber\",'Enrollment Form'!B804=\"\"),\"-\",IF('Enrollment Form'!BI804=\"\",\"N\",\"Y\"))","v":"-"},{"$f":"IF('Enrollment Form'!B804<>\"Subscriber\",\"-\",IF(AND('Enrollment Form'!B804=\"Subscriber\",'Enrollment Form'!G804=\"\"),\"N\",\"Y\"))","v":"-"},{"$f":"IF('Enrollment Form'!A804=\"\",\"\",IF('Enrollment Form'!B804=\"Subscriber\",\"-\",IF(AND('Enrollment Form'!B804<>\"Subscriber\",'Enrollment Form'!G804='Enrollment Form'!H804),\"N\",\"Y\")))","v":""},0]
[805,{"$f":"IF('Enrollment Form'!$A805<>\"\",\"Y\",\"N\")","v":"N"},{"$f":"IF(AND('Enrollment Form'!$B805=\"\",'Enrollment Form'!$C805<>\"\"),\"N\",IF($B798=\"N\",\"\",\"Y\"))","v":""},{"$f":"IF(OR($B798=\"N\",'Enrollment Form'!G805=\"\"),\"\",IF('Enrollment Form'!$B805<>\"Subscriber\",\"\",IF('Enrollment Form'!$G805='Enrollment Form'!$H805,\"Y\",\"N\")))","v":""},{"$f":"IF($B798=\"N\",\"\",IF(AND(COUNTIFS('Enrollment Form'!$H$11:$H$1000,'Enrollment Form'!$H805,'Enrollment Form'!$B$11:$B$1000,'Enrollment Form'!$B805)>1,'Enrollment Form'!$H805<>\"\"),\"N\",\"Y\"))","v":""},{"$f":"IF($B798=\"N\",\"\",IF(LEN('Enrollment Form'!$Y805)=0,\"\",IF(LEN('Enrollment Form'!$Y805)<>5,\"N\",\"Y\")))","v":""},{"$f":"IF($B798=\"N\",\"\",IF(LEN('Enrollment Form'!$AD805=0),\"\",IF(LEN('Enrollment Form'!$AD805)<>5,\"N\",\"Y\")))","v":""},{"$f":"IF($B798=\"N\",\"\",IF(LEN('Enrollment Form'!$BL805=0),\"\",IF(LEN('Enrollment Form'!$BL805)<>5,\"N\",\"Y\")))","v":""},{"$f":"IF($B798=\"N\",\"\",IF(LEN('Enrollment Form'!$AE805)=0,\"\",IF(LEN('Enrollment Form'!$AE805)<>10,\"N\",\"Y\")))","v":""},{"$f":"IF($B798=\"N\",\"\",IF(LEN('Enrollment Form'!$AF805)=0,\"\",IF(LEN('Enrollment Form'!$AF805)<>10,\"N\",\"Y\")))","v":""},{"$f":"IF('Enrollment Form'!$O805<>\"Graded\",\"-\",IF(AND('Enrollment Form'!$O805=\"Graded\",'Enrollment Form'!$AO805<>\"\"),\"Y\",\"N\"))","v":"-"},{"$f":"IF($B798=\"N\",\"\",IF(OR('Enrollment Form'!$B805<>\"Subscriber\",'Enrollment Form'!$C805=\"ROC\"),\"-\",IF(AND('Enrollment Form'!$B805=\"Subscriber\",'Enrollment Form'!$C805=\"Enroll\",'Enrollment Form'!$AJ805<>\"\"),\"Y\",\"N\")))","v":""},{"$f":"IF($B798=\"N\",\"\",IF(OR('Enrollment Form'!$B805<>\"Subscriber\",'Enrollment Form'!$C805=\"ROC\"),\"-\",IF(AND('Enrollment Form'!$B805=\"Subscriber\",'Enrollment Form'!$C805=\"Enroll\",'Enrollment Form'!$AK805<>\"\"),\"Y\",\"N\")))","v":""},{"$f":"IF($B798=\"N\",\"\",IF(OR('Enrollment Form'!$B805<>\"Subscriber\",'Enrollment Form'!$C805=\"ROC\"),\"-\",IF(AND('Enrollment Form'!$B805=\"Subscriber\",'Enrollment Form'!$C805=\"Enroll\",'Enrollment Form'!$AL805<>\"\"),\"Y\",\"N\")))","v":""},{"$f":"IF($B798=\"N\",\"\",IF(OR('Enrollment Form'!$B805<>\"Subscriber\",'Enrollment Form'!$C805=\"ROC\"),\"-\",IF(AND('Enrollment Form'!$B805=\"Subscriber\",'Enrollment Form'!$C805=\"Enroll\",'Enrollment Form'!$AM805<>\"\"),\"Y\",\"N\")))","v":""},{"$f":"IF($B798=\"N\",\"\",IF(OR('Enrollment Form'!$B805<>\"Subscriber\",'Enrollment Form'!$C805=\"ROC\"),\"-\",IF(AND('Enrollment Form'!$B805=\"Subscriber\",'Enrollment Form'!$C805=\"Enroll\",'Enrollment Form'!$AN805<>\"\"),\"Y\",\"N\")))","v":""},{"$f":"IF($B798=\"N\",\"\",IF(OR('Enrollment Form'!$B805<>\"Subscriber\",'Enrollment Form'!$C805=\"ROC\"),\"-\",IF(AND('Enrollment Form'!$B805=\"Subscriber\",'Enrollment Form'!$C805=\"Enroll\",'Enrollment Form'!$AP805<>\"\"),\"Y\",\"N\")))","v":""},{"$f":"IF($B798=\"N\",\"\",IF($Q798=\"-\",\"-\",IF(AND($Q798=\"Y\",'Enrollment Form'!$AP805=\"No\"),\"-\",IF(AND($Q798=\"Y\",'Enrollment Form'!$AP805=\"Yes\",'Enrollment Form'!$AQ805<>\"\"),\"Y\",\"N\"))))","v":""},{"$f":"IF($B798=\"N\",\"\",IF(OR('Enrollment Form'!$B805<>\"Subscriber\",'Enrollment Form'!$C805=\"ROC\"),\"-\",IF(AND('Enrollment Form'!$B805=\"Subscriber\",'Enrollment Form'!$C805=\"Enroll\",'Enrollment Form'!$CO805<>\"\"),\"Y\",\"N\")))","v":""},{"$f":"IF($B798=\"N\",\"\",IF($S798=\"-\",\"-\",IF(AND($S798=\"Y\",'Enrollment Form'!$CO805=\"No\"),\"-\",IF(AND($S798=\"Y\",'Enrollment Form'!$CO805=\"Yes\",'Enrollment Form'!$CP805<>\"\"),\"Y\",\"N\"))))","v":""},{"$f":"IF(OR('Enrollment Form'!$AV805=\"Yes\",'Enrollment Form'!$AV805=\"\"),\"-\",IF(AND('Enrollment Form'!$AV805=\"No\",ISERROR(FIND(\"HMO\",VLOOKUP('Enrollment Form'!G805,'Enrollment Form'!H$11:J$1000,3,FALSE),1))=FALSE,COUNTA('Enrollment Form'!$AW805:$AZ805)=4),\"Y\",\"N\"))","v":"-"},{"$f":"IF($B798=\"N\",\"\",IF('Enrollment Form'!$B805=\"Subscriber\",\"-\",IF(COUNTA('Enrollment Form'!$BE805,'Enrollment Form'!$BG805)=2,\"Y\",\"N\")))","v":""},{"$f":"IF($B798=\"N\",\"\",IF(OR('Enrollment Form'!$AU805=\"\",'Enrollment Form'!$AU805=\"No\"),\"-\",IF(AND('Enrollment Form'!$AU805=\"Yes\",COUNTA('Enrollment Form'!$CK805)=1),\"Y\",\"N\")))","v":""},{"$f":"IF(OR('Enrollment Form'!$CK805=\"\",'Enrollment Form'!$CK805=\"No\"),\"-\",IF(COUNTA('Enrollment Form'!$CM805:$CN805)=2,\"Y\",\"N\"))","v":"-"},{"$f":"IF($B798=\"N\",\"\",IF(COUNTIF('Enrollment Form'!$CZ805:$DO805,\"Other\")=COUNTA('Enrollment Form'!$DF805,'Enrollment Form'!$DA805,'Enrollment Form'!$DK805,'Enrollment Form'!$DP805),\"Y\",\"N\"))","v":""},{"$f":"IF($B798=\"N\",\"\",IF(OR('Enrollment Form'!B805<>\"Subscriber\",'Enrollment Form'!C805=\"ROC\",COUNTIF('Enrollment Form'!AS805:AT805,\"Yes\")>=1),\"-\",IF(AND('Enrollment Form'!C805=\"Enroll\",COUNTIF('Enrollment Form'!AS805:AT805,\"No\")=2,'Enrollment Form'!AU805=\"\"),\"N\",\"Y\")))","v":""},{"$f":"IF(OR(B798=\"N\",'Enrollment Form'!B805<>\"Subscriber\",'Enrollment Form'!C805=\"ROC\",'Enrollment Form'!O805<>\"Multiple of Salary\"),\"-\",IF(COUNTA('Enrollment Form'!T805:U805)<2,\"N\",\"Y\"))","v":"-"},{"$f":"IF(B798=\"N\",\"\",IF(OR('Enrollment Form'!C805=\"ROC\",'Enrollment Form'!B805<>\"Subscriber\",'Enrollment Form'!O805=\"Waive\",'Enrollment Form'!O805=\"\"),\"-\",IF('Enrollment Form'!P805=\"\",\"N\",\"Y\")))","v":""},{"$f":"IF($B798=\"N\",\"\",IF(AND('Enrollment Form'!$C805=\"ROC\",'Enrollment Form'!$DS805<>\"\"),\"Y\",IF(AND('Enrollment Form'!$C805=\"ROC\",'Enrollment Form'!$DS805=\"\"),\"N\",IF(AND('Enrollment Form'!$C805=\"Enroll\",'Enrollment Form'!$B805=\"Subscriber\",'Enrollment Form'!$CQ805=\"No\",'Enrollment Form'!$DS805=\"\"),\"N\",IF(AND('Enrollment Form'!$C805=\"Enroll\",'Enrollment Form'!$B805=\"Subscriber\",'Enrollment Form'!$CQ805=\"Yes\"),\"-\",\"Y\")))))","v":""},{"$f":"IF($B798=\"N\",\"\",IF(AND('Enrollment Form'!$C805=\"ROC\",'Enrollment Form'!$DT805<>\"\"),\"Y\",IF(AND('Enrollment Form'!$C805=\"ROC\",'Enrollment Form'!$DT805=\"\"),\"N\",IF(AND('Enrollment Form'!$C805=\"Enroll\",'Enrollment Form'!$B805=\"Subscriber\",'Enrollment Form'!$CQ805=\"No\",'Enrollment Form'!$DT805=\"\"),\"N\",IF(AND('Enrollment Form'!$C805=\"Enroll\",'Enrollment Form'!$B805=\"Subscriber\",'Enrollment Form'!$CQ805=\"Yes\"),\"-\",\"Y\")))))","v":""},{"$f":"IF('Enrollment Form'!AH805=\"\",\"\",IF(ISERROR(SEARCH(\".\",'Enrollment Form'!AH805,SEARCH(\"@\",'Enrollment Form'!AH805))),\"N\",\"Y\"))","v":""},{"$f":"IF(OR($B798=\"N\",'Enrollment Form'!$G805=\"\"),\"\",IF('Enrollment Form'!$B805<>\"Subscriber\",\"-\",IF(COUNTIF('Enrollment Form'!$AS805:$AT805,\"Yes\")=2,\"N\",\"Y\")))","v":""},{"$f":"IF(OR('Enrollment Form'!$CC805=\"\",'Enrollment Form'!$CC805=\"No\"),\"-\",IF(AND('Enrollment Form'!$CC805=\"Yes\",'Enrollment Form'!$CD805=\"\"),\"N\",\"Y\"))","v":"-"},{"$f":"IF(OR('Enrollment Form'!$CE805=\"\",'Enrollment Form'!$CE805=\"No\"),\"-\",IF(AND('Enrollment Form'!$CE805=\"Yes\",'Enrollment Form'!$CF805=\"\"),\"N\",\"Y\"))","v":"-"},{"$f":"IF(OR('Enrollment Form'!$CG805=\"\",'Enrollment Form'!$CG805=\"No\"),\"-\",IF(AND('Enrollment Form'!$CG805=\"Yes\",'Enrollment Form'!$CH805=\"\"),\"N\",\"Y\"))","v":"-"},{"$f":"IF(OR('Enrollment Form'!$CG805=\"\",'Enrollment Form'!$CG805=\"No\"),\"-\",IF(AND('Enrollment Form'!$CG805=\"Yes\",'Enrollment Form'!$CI805=\"\"),\"N\",\"Y\"))","v":"-"},{"$f":"IF('Enrollment Form'!B805<>\"Subscriber\",\"-\",IF(AND('Enrollment Form'!B805=\"Subscriber\",'Enrollment Form'!C805=\"Enroll\",'Enrollment Form'!AA805=\"\"),\"N\",\"Y\"))","v":"-"},{"$f":"IF(OR('Enrollment Form'!B805=\"Subscriber\",'Enrollment Form'!B805=\"\"),\"-\",IF('Enrollment Form'!BI805=\"\",\"N\",\"Y\"))","v":"-"},{"$f":"IF('Enrollment Form'!B805<>\"Subscriber\",\"-\",IF(AND('Enrollment Form'!B805=\"Subscriber\",'Enrollment Form'!G805=\"\"),\"N\",\"Y\"))","v":"-"},{"$f":"IF('Enrollment Form'!A805=\"\",\"\",IF('Enrollment Form'!B805=\"Subscriber\",\"-\",IF(AND('Enrollment Form'!B805<>\"Subscriber\",'Enrollment Form'!G805='Enrollment Form'!H805),\"N\",\"Y\")))","v":""},0]
[806,{"$f":"IF('Enrollment Form'!$A806<>\"\",\"Y\",\"N\")","v":"N"},{"$f":"IF(AND('Enrollment Form'!$B806=\"\",'Enrollment Form'!$C806<>\"\"),\"N\",IF($B799=\"N\",\"\",\"Y\"))","v":""},{"$f":"IF(OR($B799=\"N\",'Enrollment Form'!G806=\"\"),\"\",IF('Enrollment Form'!$B806<>\"Subscriber\",\"\",IF('Enrollment Form'!$G806='Enrollment Form'!$H806,\"Y\",\"N\")))","v":""},{"$f":"IF($B799=\"N\",\"\",IF(AND(COUNTIFS('Enrollment Form'!$H$11:$H$1000,'Enrollment Form'!$H806,'Enrollment Form'!$B$11:$B$1000,'Enrollment Form'!$B806)>1,'Enrollment Form'!$H806<>\"\"),\"N\",\"Y\"))","v":""},{"$f":"IF($B799=\"N\",\"\",IF(LEN('Enrollment Form'!$Y806)=0,\"\",IF(LEN('Enrollment Form'!$Y806)<>5,\"N\",\"Y\")))","v":""},{"$f":"IF($B799=\"N\",\"\",IF(LEN('Enrollment Form'!$AD806=0),\"\",IF(LEN('Enrollment Form'!$AD806)<>5,\"N\",\"Y\")))","v":""},{"$f":"IF($B799=\"N\",\"\",IF(LEN('Enrollment Form'!$BL806=0),\"\",IF(LEN('Enrollment Form'!$BL806)<>5,\"N\",\"Y\")))","v":""},{"$f":"IF($B799=\"N\",\"\",IF(LEN('Enrollment Form'!$AE806)=0,\"\",IF(LEN('Enrollment Form'!$AE806)<>10,\"N\",\"Y\")))","v":""},{"$f":"IF($B799=\"N\",\"\",IF(LEN('Enrollment Form'!$AF806)=0,\"\",IF(LEN('Enrollment Form'!$AF806)<>10,\"N\",\"Y\")))","v":""},{"$f":"IF('Enrollment Form'!$O806<>\"Graded\",\"-\",IF(AND('Enrollment Form'!$O806=\"Graded\",'Enrollment Form'!$AO806<>\"\"),\"Y\",\"N\"))","v":"-"},{"$f":"IF($B799=\"N\",\"\",IF(OR('Enrollment Form'!$B806<>\"Subscriber\",'Enrollment Form'!$C806=\"ROC\"),\"-\",IF(AND('Enrollment Form'!$B806=\"Subscriber\",'Enrollment Form'!$C806=\"Enroll\",'Enrollment Form'!$AJ806<>\"\"),\"Y\",\"N\")))","v":""},{"$f":"IF($B799=\"N\",\"\",IF(OR('Enrollment Form'!$B806<>\"Subscriber\",'Enrollment Form'!$C806=\"ROC\"),\"-\",IF(AND('Enrollment Form'!$B806=\"Subscriber\",'Enrollment Form'!$C806=\"Enroll\",'Enrollment Form'!$AK806<>\"\"),\"Y\",\"N\")))","v":""},{"$f":"IF($B799=\"N\",\"\",IF(OR('Enrollment Form'!$B806<>\"Subscriber\",'Enrollment Form'!$C806=\"ROC\"),\"-\",IF(AND('Enrollment Form'!$B806=\"Subscriber\",'Enrollment Form'!$C806=\"Enroll\",'Enrollment Form'!$AL806<>\"\"),\"Y\",\"N\")))","v":""},{"$f":"IF($B799=\"N\",\"\",IF(OR('Enrollment Form'!$B806<>\"Subscriber\",'Enrollment Form'!$C806=\"ROC\"),\"-\",IF(AND('Enrollment Form'!$B806=\"Subscriber\",'Enrollment Form'!$C806=\"Enroll\",'Enrollment Form'!$AM806<>\"\"),\"Y\",\"N\")))","v":""},{"$f":"IF($B799=\"N\",\"\",IF(OR('Enrollment Form'!$B806<>\"Subscriber\",'Enrollment Form'!$C806=\"ROC\"),\"-\",IF(AND('Enrollment Form'!$B806=\"Subscriber\",'Enrollment Form'!$C806=\"Enroll\",'Enrollment Form'!$AN806<>\"\"),\"Y\",\"N\")))","v":""},{"$f":"IF($B799=\"N\",\"\",IF(OR('Enrollment Form'!$B806<>\"Subscriber\",'Enrollment Form'!$C806=\"ROC\"),\"-\",IF(AND('Enrollment Form'!$B806=\"Subscriber\",'Enrollment Form'!$C806=\"Enroll\",'Enrollment Form'!$AP806<>\"\"),\"Y\",\"N\")))","v":""},{"$f":"IF($B799=\"N\",\"\",IF($Q799=\"-\",\"-\",IF(AND($Q799=\"Y\",'Enrollment Form'!$AP806=\"No\"),\"-\",IF(AND($Q799=\"Y\",'Enrollment Form'!$AP806=\"Yes\",'Enrollment Form'!$AQ806<>\"\"),\"Y\",\"N\"))))","v":""},{"$f":"IF($B799=\"N\",\"\",IF(OR('Enrollment Form'!$B806<>\"Subscriber\",'Enrollment Form'!$C806=\"ROC\"),\"-\",IF(AND('Enrollment Form'!$B806=\"Subscriber\",'Enrollment Form'!$C806=\"Enroll\",'Enrollment Form'!$CO806<>\"\"),\"Y\",\"N\")))","v":""},{"$f":"IF($B799=\"N\",\"\",IF($S799=\"-\",\"-\",IF(AND($S799=\"Y\",'Enrollment Form'!$CO806=\"No\"),\"-\",IF(AND($S799=\"Y\",'Enrollment Form'!$CO806=\"Yes\",'Enrollment Form'!$CP806<>\"\"),\"Y\",\"N\"))))","v":""},{"$f":"IF(OR('Enrollment Form'!$AV806=\"Yes\",'Enrollment Form'!$AV806=\"\"),\"-\",IF(AND('Enrollment Form'!$AV806=\"No\",ISERROR(FIND(\"HMO\",VLOOKUP('Enrollment Form'!G806,'Enrollment Form'!H$11:J$1000,3,FALSE),1))=FALSE,COUNTA('Enrollment Form'!$AW806:$AZ806)=4),\"Y\",\"N\"))","v":"-"},{"$f":"IF($B799=\"N\",\"\",IF('Enrollment Form'!$B806=\"Subscriber\",\"-\",IF(COUNTA('Enrollment Form'!$BE806,'Enrollment Form'!$BG806)=2,\"Y\",\"N\")))","v":""},{"$f":"IF($B799=\"N\",\"\",IF(OR('Enrollment Form'!$AU806=\"\",'Enrollment Form'!$AU806=\"No\"),\"-\",IF(AND('Enrollment Form'!$AU806=\"Yes\",COUNTA('Enrollment Form'!$CK806)=1),\"Y\",\"N\")))","v":""},{"$f":"IF(OR('Enrollment Form'!$CK806=\"\",'Enrollment Form'!$CK806=\"No\"),\"-\",IF(COUNTA('Enrollment Form'!$CM806:$CN806)=2,\"Y\",\"N\"))","v":"-"},{"$f":"IF($B799=\"N\",\"\",IF(COUNTIF('Enrollment Form'!$CZ806:$DO806,\"Other\")=COUNTA('Enrollment Form'!$DF806,'Enrollment Form'!$DA806,'Enrollment Form'!$DK806,'Enrollment Form'!$DP806),\"Y\",\"N\"))","v":""},{"$f":"IF($B799=\"N\",\"\",IF(OR('Enrollment Form'!B806<>\"Subscriber\",'Enrollment Form'!C806=\"ROC\",COUNTIF('Enrollment Form'!AS806:AT806,\"Yes\")>=1),\"-\",IF(AND('Enrollment Form'!C806=\"Enroll\",COUNTIF('Enrollment Form'!AS806:AT806,\"No\")=2,'Enrollment Form'!AU806=\"\"),\"N\",\"Y\")))","v":""},{"$f":"IF(OR(B799=\"N\",'Enrollment Form'!B806<>\"Subscriber\",'Enrollment Form'!C806=\"ROC\",'Enrollment Form'!O806<>\"Multiple of Salary\"),\"-\",IF(COUNTA('Enrollment Form'!T806:U806)<2,\"N\",\"Y\"))","v":"-"},{"$f":"IF(B799=\"N\",\"\",IF(OR('Enrollment Form'!C806=\"ROC\",'Enrollment Form'!B806<>\"Subscriber\",'Enrollment Form'!O806=\"Waive\",'Enrollment Form'!O806=\"\"),\"-\",IF('Enrollment Form'!P806=\"\",\"N\",\"Y\")))","v":""},{"$f":"IF($B799=\"N\",\"\",IF(AND('Enrollment Form'!$C806=\"ROC\",'Enrollment Form'!$DS806<>\"\"),\"Y\",IF(AND('Enrollment Form'!$C806=\"ROC\",'Enrollment Form'!$DS806=\"\"),\"N\",IF(AND('Enrollment Form'!$C806=\"Enroll\",'Enrollment Form'!$B806=\"Subscriber\",'Enrollment Form'!$CQ806=\"No\",'Enrollment Form'!$DS806=\"\"),\"N\",IF(AND('Enrollment Form'!$C806=\"Enroll\",'Enrollment Form'!$B806=\"Subscriber\",'Enrollment Form'!$CQ806=\"Yes\"),\"-\",\"Y\")))))","v":""},{"$f":"IF($B799=\"N\",\"\",IF(AND('Enrollment Form'!$C806=\"ROC\",'Enrollment Form'!$DT806<>\"\"),\"Y\",IF(AND('Enrollment Form'!$C806=\"ROC\",'Enrollment Form'!$DT806=\"\"),\"N\",IF(AND('Enrollment Form'!$C806=\"Enroll\",'Enrollment Form'!$B806=\"Subscriber\",'Enrollment Form'!$CQ806=\"No\",'Enrollment Form'!$DT806=\"\"),\"N\",IF(AND('Enrollment Form'!$C806=\"Enroll\",'Enrollment Form'!$B806=\"Subscriber\",'Enrollment Form'!$CQ806=\"Yes\"),\"-\",\"Y\")))))","v":""},{"$f":"IF('Enrollment Form'!AH806=\"\",\"\",IF(ISERROR(SEARCH(\".\",'Enrollment Form'!AH806,SEARCH(\"@\",'Enrollment Form'!AH806))),\"N\",\"Y\"))","v":""},{"$f":"IF(OR($B799=\"N\",'Enrollment Form'!$G806=\"\"),\"\",IF('Enrollment Form'!$B806<>\"Subscriber\",\"-\",IF(COUNTIF('Enrollment Form'!$AS806:$AT806,\"Yes\")=2,\"N\",\"Y\")))","v":""},{"$f":"IF(OR('Enrollment Form'!$CC806=\"\",'Enrollment Form'!$CC806=\"No\"),\"-\",IF(AND('Enrollment Form'!$CC806=\"Yes\",'Enrollment Form'!$CD806=\"\"),\"N\",\"Y\"))","v":"-"},{"$f":"IF(OR('Enrollment Form'!$CE806=\"\",'Enrollment Form'!$CE806=\"No\"),\"-\",IF(AND('Enrollment Form'!$CE806=\"Yes\",'Enrollment Form'!$CF806=\"\"),\"N\",\"Y\"))","v":"-"},{"$f":"IF(OR('Enrollment Form'!$CG806=\"\",'Enrollment Form'!$CG806=\"No\"),\"-\",IF(AND('Enrollment Form'!$CG806=\"Yes\",'Enrollment Form'!$CH806=\"\"),\"N\",\"Y\"))","v":"-"},{"$f":"IF(OR('Enrollment Form'!$CG806=\"\",'Enrollment Form'!$CG806=\"No\"),\"-\",IF(AND('Enrollment Form'!$CG806=\"Yes\",'Enrollment Form'!$CI806=\"\"),\"N\",\"Y\"))","v":"-"},{"$f":"IF('Enrollment Form'!B806<>\"Subscriber\",\"-\",IF(AND('Enrollment Form'!B806=\"Subscriber\",'Enrollment Form'!C806=\"Enroll\",'Enrollment Form'!AA806=\"\"),\"N\",\"Y\"))","v":"-"},{"$f":"IF(OR('Enrollment Form'!B806=\"Subscriber\",'Enrollment Form'!B806=\"\"),\"-\",IF('Enrollment Form'!BI806=\"\",\"N\",\"Y\"))","v":"-"},{"$f":"IF('Enrollment Form'!B806<>\"Subscriber\",\"-\",IF(AND('Enrollment Form'!B806=\"Subscriber\",'Enrollment Form'!G806=\"\"),\"N\",\"Y\"))","v":"-"},{"$f":"IF('Enrollment Form'!A806=\"\",\"\",IF('Enrollment Form'!B806=\"Subscriber\",\"-\",IF(AND('Enrollment Form'!B806<>\"Subscriber\",'Enrollment Form'!G806='Enrollment Form'!H806),\"N\",\"Y\")))","v":""},0]
[807,{"$f":"IF('Enrollment Form'!$A807<>\"\",\"Y\",\"N\")","v":"N"},{"$f":"IF(AND('Enrollment Form'!$B807=\"\",'Enrollment Form'!$C807<>\"\"),\"N\",IF($B800=\"N\",\"\",\"Y\"))","v":""},{"$f":"IF(OR($B800=\"N\",'Enrollment Form'!G807=\"\"),\"\",IF('Enrollment Form'!$B807<>\"Subscriber\",\"\",IF('Enrollment Form'!$G807='Enrollment Form'!$H807,\"Y\",\"N\")))","v":""},{"$f":"IF($B800=\"N\",\"\",IF(AND(COUNTIFS('Enrollment Form'!$H$11:$H$1000,'Enrollment Form'!$H807,'Enrollment Form'!$B$11:$B$1000,'Enrollment Form'!$B807)>1,'Enrollment Form'!$H807<>\"\"),\"N\",\"Y\"))","v":""},{"$f":"IF($B800=\"N\",\"\",IF(LEN('Enrollment Form'!$Y807)=0,\"\",IF(LEN('Enrollment Form'!$Y807)<>5,\"N\",\"Y\")))","v":""},{"$f":"IF($B800=\"N\",\"\",IF(LEN('Enrollment Form'!$AD807=0),\"\",IF(LEN('Enrollment Form'!$AD807)<>5,\"N\",\"Y\")))","v":""},{"$f":"IF($B800=\"N\",\"\",IF(LEN('Enrollment Form'!$BL807=0),\"\",IF(LEN('Enrollment Form'!$BL807)<>5,\"N\",\"Y\")))","v":""},{"$f":"IF($B800=\"N\",\"\",IF(LEN('Enrollment Form'!$AE807)=0,\"\",IF(LEN('Enrollment Form'!$AE807)<>10,\"N\",\"Y\")))","v":""},{"$f":"IF($B800=\"N\",\"\",IF(LEN('Enrollment Form'!$AF807)=0,\"\",IF(LEN('Enrollment Form'!$AF807)<>10,\"N\",\"Y\")))","v":""},{"$f":"IF('Enrollment Form'!$O807<>\"Graded\",\"-\",IF(AND('Enrollment Form'!$O807=\"Graded\",'Enrollment Form'!$AO807<>\"\"),\"Y\",\"N\"))","v":"-"},{"$f":"IF($B800=\"N\",\"\",IF(OR('Enrollment Form'!$B807<>\"Subscriber\",'Enrollment Form'!$C807=\"ROC\"),\"-\",IF(AND('Enrollment Form'!$B807=\"Subscriber\",'Enrollment Form'!$C807=\"Enroll\",'Enrollment Form'!$AJ807<>\"\"),\"Y\",\"N\")))","v":""},{"$f":"IF($B800=\"N\",\"\",IF(OR('Enrollment Form'!$B807<>\"Subscriber\",'Enrollment Form'!$C807=\"ROC\"),\"-\",IF(AND('Enrollment Form'!$B807=\"Subscriber\",'Enrollment Form'!$C807=\"Enroll\",'Enrollment Form'!$AK807<>\"\"),\"Y\",\"N\")))","v":""},{"$f":"IF($B800=\"N\",\"\",IF(OR('Enrollment Form'!$B807<>\"Subscriber\",'Enrollment Form'!$C807=\"ROC\"),\"-\",IF(AND('Enrollment Form'!$B807=\"Subscriber\",'Enrollment Form'!$C807=\"Enroll\",'Enrollment Form'!$AL807<>\"\"),\"Y\",\"N\")))","v":""},{"$f":"IF($B800=\"N\",\"\",IF(OR('Enrollment Form'!$B807<>\"Subscriber\",'Enrollment Form'!$C807=\"ROC\"),\"-\",IF(AND('Enrollment Form'!$B807=\"Subscriber\",'Enrollment Form'!$C807=\"Enroll\",'Enrollment Form'!$AM807<>\"\"),\"Y\",\"N\")))","v":""},{"$f":"IF($B800=\"N\",\"\",IF(OR('Enrollment Form'!$B807<>\"Subscriber\",'Enrollment Form'!$C807=\"ROC\"),\"-\",IF(AND('Enrollment Form'!$B807=\"Subscriber\",'Enrollment Form'!$C807=\"Enroll\",'Enrollment Form'!$AN807<>\"\"),\"Y\",\"N\")))","v":""},{"$f":"IF($B800=\"N\",\"\",IF(OR('Enrollment Form'!$B807<>\"Subscriber\",'Enrollment Form'!$C807=\"ROC\"),\"-\",IF(AND('Enrollment Form'!$B807=\"Subscriber\",'Enrollment Form'!$C807=\"Enroll\",'Enrollment Form'!$AP807<>\"\"),\"Y\",\"N\")))","v":""},{"$f":"IF($B800=\"N\",\"\",IF($Q800=\"-\",\"-\",IF(AND($Q800=\"Y\",'Enrollment Form'!$AP807=\"No\"),\"-\",IF(AND($Q800=\"Y\",'Enrollment Form'!$AP807=\"Yes\",'Enrollment Form'!$AQ807<>\"\"),\"Y\",\"N\"))))","v":""},{"$f":"IF($B800=\"N\",\"\",IF(OR('Enrollment Form'!$B807<>\"Subscriber\",'Enrollment Form'!$C807=\"ROC\"),\"-\",IF(AND('Enrollment Form'!$B807=\"Subscriber\",'Enrollment Form'!$C807=\"Enroll\",'Enrollment Form'!$CO807<>\"\"),\"Y\",\"N\")))","v":""},{"$f":"IF($B800=\"N\",\"\",IF($S800=\"-\",\"-\",IF(AND($S800=\"Y\",'Enrollment Form'!$CO807=\"No\"),\"-\",IF(AND($S800=\"Y\",'Enrollment Form'!$CO807=\"Yes\",'Enrollment Form'!$CP807<>\"\"),\"Y\",\"N\"))))","v":""},{"$f":"IF(OR('Enrollment Form'!$AV807=\"Yes\",'Enrollment Form'!$AV807=\"\"),\"-\",IF(AND('Enrollment Form'!$AV807=\"No\",ISERROR(FIND(\"HMO\",VLOOKUP('Enrollment Form'!G807,'Enrollment Form'!H$11:J$1000,3,FALSE),1))=FALSE,COUNTA('Enrollment Form'!$AW807:$AZ807)=4),\"Y\",\"N\"))","v":"-"},{"$f":"IF($B800=\"N\",\"\",IF('Enrollment Form'!$B807=\"Subscriber\",\"-\",IF(COUNTA('Enrollment Form'!$BE807,'Enrollment Form'!$BG807)=2,\"Y\",\"N\")))","v":""},{"$f":"IF($B800=\"N\",\"\",IF(OR('Enrollment Form'!$AU807=\"\",'Enrollment Form'!$AU807=\"No\"),\"-\",IF(AND('Enrollment Form'!$AU807=\"Yes\",COUNTA('Enrollment Form'!$CK807)=1),\"Y\",\"N\")))","v":""},{"$f":"IF(OR('Enrollment Form'!$CK807=\"\",'Enrollment Form'!$CK807=\"No\"),\"-\",IF(COUNTA('Enrollment Form'!$CM807:$CN807)=2,\"Y\",\"N\"))","v":"-"},{"$f":"IF($B800=\"N\",\"\",IF(COUNTIF('Enrollment Form'!$CZ807:$DO807,\"Other\")=COUNTA('Enrollment Form'!$DF807,'Enrollment Form'!$DA807,'Enrollment Form'!$DK807,'Enrollment Form'!$DP807),\"Y\",\"N\"))","v":""},{"$f":"IF($B800=\"N\",\"\",IF(OR('Enrollment Form'!B807<>\"Subscriber\",'Enrollment Form'!C807=\"ROC\",COUNTIF('Enrollment Form'!AS807:AT807,\"Yes\")>=1),\"-\",IF(AND('Enrollment Form'!C807=\"Enroll\",COUNTIF('Enrollment Form'!AS807:AT807,\"No\")=2,'Enrollment Form'!AU807=\"\"),\"N\",\"Y\")))","v":""},{"$f":"IF(OR(B800=\"N\",'Enrollment Form'!B807<>\"Subscriber\",'Enrollment Form'!C807=\"ROC\",'Enrollment Form'!O807<>\"Multiple of Salary\"),\"-\",IF(COUNTA('Enrollment Form'!T807:U807)<2,\"N\",\"Y\"))","v":"-"},{"$f":"IF(B800=\"N\",\"\",IF(OR('Enrollment Form'!C807=\"ROC\",'Enrollment Form'!B807<>\"Subscriber\",'Enrollment Form'!O807=\"Waive\",'Enrollment Form'!O807=\"\"),\"-\",IF('Enrollment Form'!P807=\"\",\"N\",\"Y\")))","v":""},{"$f":"IF($B800=\"N\",\"\",IF(AND('Enrollment Form'!$C807=\"ROC\",'Enrollment Form'!$DS807<>\"\"),\"Y\",IF(AND('Enrollment Form'!$C807=\"ROC\",'Enrollment Form'!$DS807=\"\"),\"N\",IF(AND('Enrollment Form'!$C807=\"Enroll\",'Enrollment Form'!$B807=\"Subscriber\",'Enrollment Form'!$CQ807=\"No\",'Enrollment Form'!$DS807=\"\"),\"N\",IF(AND('Enrollment Form'!$C807=\"Enroll\",'Enrollment Form'!$B807=\"Subscriber\",'Enrollment Form'!$CQ807=\"Yes\"),\"-\",\"Y\")))))","v":""},{"$f":"IF($B800=\"N\",\"\",IF(AND('Enrollment Form'!$C807=\"ROC\",'Enrollment Form'!$DT807<>\"\"),\"Y\",IF(AND('Enrollment Form'!$C807=\"ROC\",'Enrollment Form'!$DT807=\"\"),\"N\",IF(AND('Enrollment Form'!$C807=\"Enroll\",'Enrollment Form'!$B807=\"Subscriber\",'Enrollment Form'!$CQ807=\"No\",'Enrollment Form'!$DT807=\"\"),\"N\",IF(AND('Enrollment Form'!$C807=\"Enroll\",'Enrollment Form'!$B807=\"Subscriber\",'Enrollment Form'!$CQ807=\"Yes\"),\"-\",\"Y\")))))","v":""},{"$f":"IF('Enrollment Form'!AH807=\"\",\"\",IF(ISERROR(SEARCH(\".\",'Enrollment Form'!AH807,SEARCH(\"@\",'Enrollment Form'!AH807))),\"N\",\"Y\"))","v":""},{"$f":"IF(OR($B800=\"N\",'Enrollment Form'!$G807=\"\"),\"\",IF('Enrollment Form'!$B807<>\"Subscriber\",\"-\",IF(COUNTIF('Enrollment Form'!$AS807:$AT807,\"Yes\")=2,\"N\",\"Y\")))","v":""},{"$f":"IF(OR('Enrollment Form'!$CC807=\"\",'Enrollment Form'!$CC807=\"No\"),\"-\",IF(AND('Enrollment Form'!$CC807=\"Yes\",'Enrollment Form'!$CD807=\"\"),\"N\",\"Y\"))","v":"-"},{"$f":"IF(OR('Enrollment Form'!$CE807=\"\",'Enrollment Form'!$CE807=\"No\"),\"-\",IF(AND('Enrollment Form'!$CE807=\"Yes\",'Enrollment Form'!$CF807=\"\"),\"N\",\"Y\"))","v":"-"},{"$f":"IF(OR('Enrollment Form'!$CG807=\"\",'Enrollment Form'!$CG807=\"No\"),\"-\",IF(AND('Enrollment Form'!$CG807=\"Yes\",'Enrollment Form'!$CH807=\"\"),\"N\",\"Y\"))","v":"-"},{"$f":"IF(OR('Enrollment Form'!$CG807=\"\",'Enrollment Form'!$CG807=\"No\"),\"-\",IF(AND('Enrollment Form'!$CG807=\"Yes\",'Enrollment Form'!$CI807=\"\"),\"N\",\"Y\"))","v":"-"},{"$f":"IF('Enrollment Form'!B807<>\"Subscriber\",\"-\",IF(AND('Enrollment Form'!B807=\"Subscriber\",'Enrollment Form'!C807=\"Enroll\",'Enrollment Form'!AA807=\"\"),\"N\",\"Y\"))","v":"-"},{"$f":"IF(OR('Enrollment Form'!B807=\"Subscriber\",'Enrollment Form'!B807=\"\"),\"-\",IF('Enrollment Form'!BI807=\"\",\"N\",\"Y\"))","v":"-"},{"$f":"IF('Enrollment Form'!B807<>\"Subscriber\",\"-\",IF(AND('Enrollment Form'!B807=\"Subscriber\",'Enrollment Form'!G807=\"\"),\"N\",\"Y\"))","v":"-"},{"$f":"IF('Enrollment Form'!A807=\"\",\"\",IF('Enrollment Form'!B807=\"Subscriber\",\"-\",IF(AND('Enrollment Form'!B807<>\"Subscriber\",'Enrollment Form'!G807='Enrollment Form'!H807),\"N\",\"Y\")))","v":""},0]
[808,{"$f":"IF('Enrollment Form'!$A808<>\"\",\"Y\",\"N\")","v":"N"},{"$f":"IF(AND('Enrollment Form'!$B808=\"\",'Enrollment Form'!$C808<>\"\"),\"N\",IF($B801=\"N\",\"\",\"Y\"))","v":""},{"$f":"IF(OR($B801=\"N\",'Enrollment Form'!G808=\"\"),\"\",IF('Enrollment Form'!$B808<>\"Subscriber\",\"\",IF('Enrollment Form'!$G808='Enrollment Form'!$H808,\"Y\",\"N\")))","v":""},{"$f":"IF($B801=\"N\",\"\",IF(AND(COUNTIFS('Enrollment Form'!$H$11:$H$1000,'Enrollment Form'!$H808,'Enrollment Form'!$B$11:$B$1000,'Enrollment Form'!$B808)>1,'Enrollment Form'!$H808<>\"\"),\"N\",\"Y\"))","v":""},{"$f":"IF($B801=\"N\",\"\",IF(LEN('Enrollment Form'!$Y808)=0,\"\",IF(LEN('Enrollment Form'!$Y808)<>5,\"N\",\"Y\")))","v":""},{"$f":"IF($B801=\"N\",\"\",IF(LEN('Enrollment Form'!$AD808=0),\"\",IF(LEN('Enrollment Form'!$AD808)<>5,\"N\",\"Y\")))","v":""},{"$f":"IF($B801=\"N\",\"\",IF(LEN('Enrollment Form'!$BL808=0),\"\",IF(LEN('Enrollment Form'!$BL808)<>5,\"N\",\"Y\")))","v":""},{"$f":"IF($B801=\"N\",\"\",IF(LEN('Enrollment Form'!$AE808)=0,\"\",IF(LEN('Enrollment Form'!$AE808)<>10,\"N\",\"Y\")))","v":""},{"$f":"IF($B801=\"N\",\"\",IF(LEN('Enrollment Form'!$AF808)=0,\"\",IF(LEN('Enrollment Form'!$AF808)<>10,\"N\",\"Y\")))","v":""},{"$f":"IF('Enrollment Form'!$O808<>\"Graded\",\"-\",IF(AND('Enrollment Form'!$O808=\"Graded\",'Enrollment Form'!$AO808<>\"\"),\"Y\",\"N\"))","v":"-"},{"$f":"IF($B801=\"N\",\"\",IF(OR('Enrollment Form'!$B808<>\"Subscriber\",'Enrollment Form'!$C808=\"ROC\"),\"-\",IF(AND('Enrollment Form'!$B808=\"Subscriber\",'Enrollment Form'!$C808=\"Enroll\",'Enrollment Form'!$AJ808<>\"\"),\"Y\",\"N\")))","v":""},{"$f":"IF($B801=\"N\",\"\",IF(OR('Enrollment Form'!$B808<>\"Subscriber\",'Enrollment Form'!$C808=\"ROC\"),\"-\",IF(AND('Enrollment Form'!$B808=\"Subscriber\",'Enrollment Form'!$C808=\"Enroll\",'Enrollment Form'!$AK808<>\"\"),\"Y\",\"N\")))","v":""},{"$f":"IF($B801=\"N\",\"\",IF(OR('Enrollment Form'!$B808<>\"Subscriber\",'Enrollment Form'!$C808=\"ROC\"),\"-\",IF(AND('Enrollment Form'!$B808=\"Subscriber\",'Enrollment Form'!$C808=\"Enroll\",'Enrollment Form'!$AL808<>\"\"),\"Y\",\"N\")))","v":""},{"$f":"IF($B801=\"N\",\"\",IF(OR('Enrollment Form'!$B808<>\"Subscriber\",'Enrollment Form'!$C808=\"ROC\"),\"-\",IF(AND('Enrollment Form'!$B808=\"Subscriber\",'Enrollment Form'!$C808=\"Enroll\",'Enrollment Form'!$AM808<>\"\"),\"Y\",\"N\")))","v":""},{"$f":"IF($B801=\"N\",\"\",IF(OR('Enrollment Form'!$B808<>\"Subscriber\",'Enrollment Form'!$C808=\"ROC\"),\"-\",IF(AND('Enrollment Form'!$B808=\"Subscriber\",'Enrollment Form'!$C808=\"Enroll\",'Enrollment Form'!$AN808<>\"\"),\"Y\",\"N\")))","v":""},{"$f":"IF($B801=\"N\",\"\",IF(OR('Enrollment Form'!$B808<>\"Subscriber\",'Enrollment Form'!$C808=\"ROC\"),\"-\",IF(AND('Enrollment Form'!$B808=\"Subscriber\",'Enrollment Form'!$C808=\"Enroll\",'Enrollment Form'!$AP808<>\"\"),\"Y\",\"N\")))","v":""},{"$f":"IF($B801=\"N\",\"\",IF($Q801=\"-\",\"-\",IF(AND($Q801=\"Y\",'Enrollment Form'!$AP808=\"No\"),\"-\",IF(AND($Q801=\"Y\",'Enrollment Form'!$AP808=\"Yes\",'Enrollment Form'!$AQ808<>\"\"),\"Y\",\"N\"))))","v":""},{"$f":"IF($B801=\"N\",\"\",IF(OR('Enrollment Form'!$B808<>\"Subscriber\",'Enrollment Form'!$C808=\"ROC\"),\"-\",IF(AND('Enrollment Form'!$B808=\"Subscriber\",'Enrollment Form'!$C808=\"Enroll\",'Enrollment Form'!$CO808<>\"\"),\"Y\",\"N\")))","v":""},{"$f":"IF($B801=\"N\",\"\",IF($S801=\"-\",\"-\",IF(AND($S801=\"Y\",'Enrollment Form'!$CO808=\"No\"),\"-\",IF(AND($S801=\"Y\",'Enrollment Form'!$CO808=\"Yes\",'Enrollment Form'!$CP808<>\"\"),\"Y\",\"N\"))))","v":""},{"$f":"IF(OR('Enrollment Form'!$AV808=\"Yes\",'Enrollment Form'!$AV808=\"\"),\"-\",IF(AND('Enrollment Form'!$AV808=\"No\",ISERROR(FIND(\"HMO\",VLOOKUP('Enrollment Form'!G808,'Enrollment Form'!H$11:J$1000,3,FALSE),1))=FALSE,COUNTA('Enrollment Form'!$AW808:$AZ808)=4),\"Y\",\"N\"))","v":"-"},{"$f":"IF($B801=\"N\",\"\",IF('Enrollment Form'!$B808=\"Subscriber\",\"-\",IF(COUNTA('Enrollment Form'!$BE808,'Enrollment Form'!$BG808)=2,\"Y\",\"N\")))","v":""},{"$f":"IF($B801=\"N\",\"\",IF(OR('Enrollment Form'!$AU808=\"\",'Enrollment Form'!$AU808=\"No\"),\"-\",IF(AND('Enrollment Form'!$AU808=\"Yes\",COUNTA('Enrollment Form'!$CK808)=1),\"Y\",\"N\")))","v":""},{"$f":"IF(OR('Enrollment Form'!$CK808=\"\",'Enrollment Form'!$CK808=\"No\"),\"-\",IF(COUNTA('Enrollment Form'!$CM808:$CN808)=2,\"Y\",\"N\"))","v":"-"},{"$f":"IF($B801=\"N\",\"\",IF(COUNTIF('Enrollment Form'!$CZ808:$DO808,\"Other\")=COUNTA('Enrollment Form'!$DF808,'Enrollment Form'!$DA808,'Enrollment Form'!$DK808,'Enrollment Form'!$DP808),\"Y\",\"N\"))","v":""},{"$f":"IF($B801=\"N\",\"\",IF(OR('Enrollment Form'!B808<>\"Subscriber\",'Enrollment Form'!C808=\"ROC\",COUNTIF('Enrollment Form'!AS808:AT808,\"Yes\")>=1),\"-\",IF(AND('Enrollment Form'!C808=\"Enroll\",COUNTIF('Enrollment Form'!AS808:AT808,\"No\")=2,'Enrollment Form'!AU808=\"\"),\"N\",\"Y\")))","v":""},{"$f":"IF(OR(B801=\"N\",'Enrollment Form'!B808<>\"Subscriber\",'Enrollment Form'!C808=\"ROC\",'Enrollment Form'!O808<>\"Multiple of Salary\"),\"-\",IF(COUNTA('Enrollment Form'!T808:U808)<2,\"N\",\"Y\"))","v":"-"},{"$f":"IF(B801=\"N\",\"\",IF(OR('Enrollment Form'!C808=\"ROC\",'Enrollment Form'!B808<>\"Subscriber\",'Enrollment Form'!O808=\"Waive\",'Enrollment Form'!O808=\"\"),\"-\",IF('Enrollment Form'!P808=\"\",\"N\",\"Y\")))","v":""},{"$f":"IF($B801=\"N\",\"\",IF(AND('Enrollment Form'!$C808=\"ROC\",'Enrollment Form'!$DS808<>\"\"),\"Y\",IF(AND('Enrollment Form'!$C808=\"ROC\",'Enrollment Form'!$DS808=\"\"),\"N\",IF(AND('Enrollment Form'!$C808=\"Enroll\",'Enrollment Form'!$B808=\"Subscriber\",'Enrollment Form'!$CQ808=\"No\",'Enrollment Form'!$DS808=\"\"),\"N\",IF(AND('Enrollment Form'!$C808=\"Enroll\",'Enrollment Form'!$B808=\"Subscriber\",'Enrollment Form'!$CQ808=\"Yes\"),\"-\",\"Y\")))))","v":""},{"$f":"IF($B801=\"N\",\"\",IF(AND('Enrollment Form'!$C808=\"ROC\",'Enrollment Form'!$DT808<>\"\"),\"Y\",IF(AND('Enrollment Form'!$C808=\"ROC\",'Enrollment Form'!$DT808=\"\"),\"N\",IF(AND('Enrollment Form'!$C808=\"Enroll\",'Enrollment Form'!$B808=\"Subscriber\",'Enrollment Form'!$CQ808=\"No\",'Enrollment Form'!$DT808=\"\"),\"N\",IF(AND('Enrollment Form'!$C808=\"Enroll\",'Enrollment Form'!$B808=\"Subscriber\",'Enrollment Form'!$CQ808=\"Yes\"),\"-\",\"Y\")))))","v":""},{"$f":"IF('Enrollment Form'!AH808=\"\",\"\",IF(ISERROR(SEARCH(\".\",'Enrollment Form'!AH808,SEARCH(\"@\",'Enrollment Form'!AH808))),\"N\",\"Y\"))","v":""},{"$f":"IF(OR($B801=\"N\",'Enrollment Form'!$G808=\"\"),\"\",IF('Enrollment Form'!$B808<>\"Subscriber\",\"-\",IF(COUNTIF('Enrollment Form'!$AS808:$AT808,\"Yes\")=2,\"N\",\"Y\")))","v":""},{"$f":"IF(OR('Enrollment Form'!$CC808=\"\",'Enrollment Form'!$CC808=\"No\"),\"-\",IF(AND('Enrollment Form'!$CC808=\"Yes\",'Enrollment Form'!$CD808=\"\"),\"N\",\"Y\"))","v":"-"},{"$f":"IF(OR('Enrollment Form'!$CE808=\"\",'Enrollment Form'!$CE808=\"No\"),\"-\",IF(AND('Enrollment Form'!$CE808=\"Yes\",'Enrollment Form'!$CF808=\"\"),\"N\",\"Y\"))","v":"-"},{"$f":"IF(OR('Enrollment Form'!$CG808=\"\",'Enrollment Form'!$CG808=\"No\"),\"-\",IF(AND('Enrollment Form'!$CG808=\"Yes\",'Enrollment Form'!$CH808=\"\"),\"N\",\"Y\"))","v":"-"},{"$f":"IF(OR('Enrollment Form'!$CG808=\"\",'Enrollment Form'!$CG808=\"No\"),\"-\",IF(AND('Enrollment Form'!$CG808=\"Yes\",'Enrollment Form'!$CI808=\"\"),\"N\",\"Y\"))","v":"-"},{"$f":"IF('Enrollment Form'!B808<>\"Subscriber\",\"-\",IF(AND('Enrollment Form'!B808=\"Subscriber\",'Enrollment Form'!C808=\"Enroll\",'Enrollment Form'!AA808=\"\"),\"N\",\"Y\"))","v":"-"},{"$f":"IF(OR('Enrollment Form'!B808=\"Subscriber\",'Enrollment Form'!B808=\"\"),\"-\",IF('Enrollment Form'!BI808=\"\",\"N\",\"Y\"))","v":"-"},{"$f":"IF('Enrollment Form'!B808<>\"Subscriber\",\"-\",IF(AND('Enrollment Form'!B808=\"Subscriber\",'Enrollment Form'!G808=\"\"),\"N\",\"Y\"))","v":"-"},{"$f":"IF('Enrollment Form'!A808=\"\",\"\",IF('Enrollment Form'!B808=\"Subscriber\",\"-\",IF(AND('Enrollment Form'!B808<>\"Subscriber\",'Enrollment Form'!G808='Enrollment Form'!H808),\"N\",\"Y\")))","v":""},0]
[809,{"$f":"IF('Enrollment Form'!$A809<>\"\",\"Y\",\"N\")","v":"N"},{"$f":"IF(AND('Enrollment Form'!$B809=\"\",'Enrollment Form'!$C809<>\"\"),\"N\",IF($B802=\"N\",\"\",\"Y\"))","v":""},{"$f":"IF(OR($B802=\"N\",'Enrollment Form'!G809=\"\"),\"\",IF('Enrollment Form'!$B809<>\"Subscriber\",\"\",IF('Enrollment Form'!$G809='Enrollment Form'!$H809,\"Y\",\"N\")))","v":""},{"$f":"IF($B802=\"N\",\"\",IF(AND(COUNTIFS('Enrollment Form'!$H$11:$H$1000,'Enrollment Form'!$H809,'Enrollment Form'!$B$11:$B$1000,'Enrollment Form'!$B809)>1,'Enrollment Form'!$H809<>\"\"),\"N\",\"Y\"))","v":""},{"$f":"IF($B802=\"N\",\"\",IF(LEN('Enrollment Form'!$Y809)=0,\"\",IF(LEN('Enrollment Form'!$Y809)<>5,\"N\",\"Y\")))","v":""},{"$f":"IF($B802=\"N\",\"\",IF(LEN('Enrollment Form'!$AD809=0),\"\",IF(LEN('Enrollment Form'!$AD809)<>5,\"N\",\"Y\")))","v":""},{"$f":"IF($B802=\"N\",\"\",IF(LEN('Enrollment Form'!$BL809=0),\"\",IF(LEN('Enrollment Form'!$BL809)<>5,\"N\",\"Y\")))","v":""},{"$f":"IF($B802=\"N\",\"\",IF(LEN('Enrollment Form'!$AE809)=0,\"\",IF(LEN('Enrollment Form'!$AE809)<>10,\"N\",\"Y\")))","v":""},{"$f":"IF($B802=\"N\",\"\",IF(LEN('Enrollment Form'!$AF809)=0,\"\",IF(LEN('Enrollment Form'!$AF809)<>10,\"N\",\"Y\")))","v":""},{"$f":"IF('Enrollment Form'!$O809<>\"Graded\",\"-\",IF(AND('Enrollment Form'!$O809=\"Graded\",'Enrollment Form'!$AO809<>\"\"),\"Y\",\"N\"))","v":"-"},{"$f":"IF($B802=\"N\",\"\",IF(OR('Enrollment Form'!$B809<>\"Subscriber\",'Enrollment Form'!$C809=\"ROC\"),\"-\",IF(AND('Enrollment Form'!$B809=\"Subscriber\",'Enrollment Form'!$C809=\"Enroll\",'Enrollment Form'!$AJ809<>\"\"),\"Y\",\"N\")))","v":""},{"$f":"IF($B802=\"N\",\"\",IF(OR('Enrollment Form'!$B809<>\"Subscriber\",'Enrollment Form'!$C809=\"ROC\"),\"-\",IF(AND('Enrollment Form'!$B809=\"Subscriber\",'Enrollment Form'!$C809=\"Enroll\",'Enrollment Form'!$AK809<>\"\"),\"Y\",\"N\")))","v":""},{"$f":"IF($B802=\"N\",\"\",IF(OR('Enrollment Form'!$B809<>\"Subscriber\",'Enrollment Form'!$C809=\"ROC\"),\"-\",IF(AND('Enrollment Form'!$B809=\"Subscriber\",'Enrollment Form'!$C809=\"Enroll\",'Enrollment Form'!$AL809<>\"\"),\"Y\",\"N\")))","v":""},{"$f":"IF($B802=\"N\",\"\",IF(OR('Enrollment Form'!$B809<>\"Subscriber\",'Enrollment Form'!$C809=\"ROC\"),\"-\",IF(AND('Enrollment Form'!$B809=\"Subscriber\",'Enrollment Form'!$C809=\"Enroll\",'Enrollment Form'!$AM809<>\"\"),\"Y\",\"N\")))","v":""},{"$f":"IF($B802=\"N\",\"\",IF(OR('Enrollment Form'!$B809<>\"Subscriber\",'Enrollment Form'!$C809=\"ROC\"),\"-\",IF(AND('Enrollment Form'!$B809=\"Subscriber\",'Enrollment Form'!$C809=\"Enroll\",'Enrollment Form'!$AN809<>\"\"),\"Y\",\"N\")))","v":""},{"$f":"IF($B802=\"N\",\"\",IF(OR('Enrollment Form'!$B809<>\"Subscriber\",'Enrollment Form'!$C809=\"ROC\"),\"-\",IF(AND('Enrollment Form'!$B809=\"Subscriber\",'Enrollment Form'!$C809=\"Enroll\",'Enrollment Form'!$AP809<>\"\"),\"Y\",\"N\")))","v":""},{"$f":"IF($B802=\"N\",\"\",IF($Q802=\"-\",\"-\",IF(AND($Q802=\"Y\",'Enrollment Form'!$AP809=\"No\"),\"-\",IF(AND($Q802=\"Y\",'Enrollment Form'!$AP809=\"Yes\",'Enrollment Form'!$AQ809<>\"\"),\"Y\",\"N\"))))","v":""},{"$f":"IF($B802=\"N\",\"\",IF(OR('Enrollment Form'!$B809<>\"Subscriber\",'Enrollment Form'!$C809=\"ROC\"),\"-\",IF(AND('Enrollment Form'!$B809=\"Subscriber\",'Enrollment Form'!$C809=\"Enroll\",'Enrollment Form'!$CO809<>\"\"),\"Y\",\"N\")))","v":""},{"$f":"IF($B802=\"N\",\"\",IF($S802=\"-\",\"-\",IF(AND($S802=\"Y\",'Enrollment Form'!$CO809=\"No\"),\"-\",IF(AND($S802=\"Y\",'Enrollment Form'!$CO809=\"Yes\",'Enrollment Form'!$CP809<>\"\"),\"Y\",\"N\"))))","v":""},{"$f":"IF(OR('Enrollment Form'!$AV809=\"Yes\",'Enrollment Form'!$AV809=\"\"),\"-\",IF(AND('Enrollment Form'!$AV809=\"No\",ISERROR(FIND(\"HMO\",VLOOKUP('Enrollment Form'!G809,'Enrollment Form'!H$11:J$1000,3,FALSE),1))=FALSE,COUNTA('Enrollment Form'!$AW809:$AZ809)=4),\"Y\",\"N\"))","v":"-"},{"$f":"IF($B802=\"N\",\"\",IF('Enrollment Form'!$B809=\"Subscriber\",\"-\",IF(COUNTA('Enrollment Form'!$BE809,'Enrollment Form'!$BG809)=2,\"Y\",\"N\")))","v":""},{"$f":"IF($B802=\"N\",\"\",IF(OR('Enrollment Form'!$AU809=\"\",'Enrollment Form'!$AU809=\"No\"),\"-\",IF(AND('Enrollment Form'!$AU809=\"Yes\",COUNTA('Enrollment Form'!$CK809)=1),\"Y\",\"N\")))","v":""},{"$f":"IF(OR('Enrollment Form'!$CK809=\"\",'Enrollment Form'!$CK809=\"No\"),\"-\",IF(COUNTA('Enrollment Form'!$CM809:$CN809)=2,\"Y\",\"N\"))","v":"-"},{"$f":"IF($B802=\"N\",\"\",IF(COUNTIF('Enrollment Form'!$CZ809:$DO809,\"Other\")=COUNTA('Enrollment Form'!$DF809,'Enrollment Form'!$DA809,'Enrollment Form'!$DK809,'Enrollment Form'!$DP809),\"Y\",\"N\"))","v":""},{"$f":"IF($B802=\"N\",\"\",IF(OR('Enrollment Form'!B809<>\"Subscriber\",'Enrollment Form'!C809=\"ROC\",COUNTIF('Enrollment Form'!AS809:AT809,\"Yes\")>=1),\"-\",IF(AND('Enrollment Form'!C809=\"Enroll\",COUNTIF('Enrollment Form'!AS809:AT809,\"No\")=2,'Enrollment Form'!AU809=\"\"),\"N\",\"Y\")))","v":""},{"$f":"IF(OR(B802=\"N\",'Enrollment Form'!B809<>\"Subscriber\",'Enrollment Form'!C809=\"ROC\",'Enrollment Form'!O809<>\"Multiple of Salary\"),\"-\",IF(COUNTA('Enrollment Form'!T809:U809)<2,\"N\",\"Y\"))","v":"-"},{"$f":"IF(B802=\"N\",\"\",IF(OR('Enrollment Form'!C809=\"ROC\",'Enrollment Form'!B809<>\"Subscriber\",'Enrollment Form'!O809=\"Waive\",'Enrollment Form'!O809=\"\"),\"-\",IF('Enrollment Form'!P809=\"\",\"N\",\"Y\")))","v":""},{"$f":"IF($B802=\"N\",\"\",IF(AND('Enrollment Form'!$C809=\"ROC\",'Enrollment Form'!$DS809<>\"\"),\"Y\",IF(AND('Enrollment Form'!$C809=\"ROC\",'Enrollment Form'!$DS809=\"\"),\"N\",IF(AND('Enrollment Form'!$C809=\"Enroll\",'Enrollment Form'!$B809=\"Subscriber\",'Enrollment Form'!$CQ809=\"No\",'Enrollment Form'!$DS809=\"\"),\"N\",IF(AND('Enrollment Form'!$C809=\"Enroll\",'Enrollment Form'!$B809=\"Subscriber\",'Enrollment Form'!$CQ809=\"Yes\"),\"-\",\"Y\")))))","v":""},{"$f":"IF($B802=\"N\",\"\",IF(AND('Enrollment Form'!$C809=\"ROC\",'Enrollment Form'!$DT809<>\"\"),\"Y\",IF(AND('Enrollment Form'!$C809=\"ROC\",'Enrollment Form'!$DT809=\"\"),\"N\",IF(AND('Enrollment Form'!$C809=\"Enroll\",'Enrollment Form'!$B809=\"Subscriber\",'Enrollment Form'!$CQ809=\"No\",'Enrollment Form'!$DT809=\"\"),\"N\",IF(AND('Enrollment Form'!$C809=\"Enroll\",'Enrollment Form'!$B809=\"Subscriber\",'Enrollment Form'!$CQ809=\"Yes\"),\"-\",\"Y\")))))","v":""},{"$f":"IF('Enrollment Form'!AH809=\"\",\"\",IF(ISERROR(SEARCH(\".\",'Enrollment Form'!AH809,SEARCH(\"@\",'Enrollment Form'!AH809))),\"N\",\"Y\"))","v":""},{"$f":"IF(OR($B802=\"N\",'Enrollment Form'!$G809=\"\"),\"\",IF('Enrollment Form'!$B809<>\"Subscriber\",\"-\",IF(COUNTIF('Enrollment Form'!$AS809:$AT809,\"Yes\")=2,\"N\",\"Y\")))","v":""},{"$f":"IF(OR('Enrollment Form'!$CC809=\"\",'Enrollment Form'!$CC809=\"No\"),\"-\",IF(AND('Enrollment Form'!$CC809=\"Yes\",'Enrollment Form'!$CD809=\"\"),\"N\",\"Y\"))","v":"-"},{"$f":"IF(OR('Enrollment Form'!$CE809=\"\",'Enrollment Form'!$CE809=\"No\"),\"-\",IF(AND('Enrollment Form'!$CE809=\"Yes\",'Enrollment Form'!$CF809=\"\"),\"N\",\"Y\"))","v":"-"},{"$f":"IF(OR('Enrollment Form'!$CG809=\"\",'Enrollment Form'!$CG809=\"No\"),\"-\",IF(AND('Enrollment Form'!$CG809=\"Yes\",'Enrollment Form'!$CH809=\"\"),\"N\",\"Y\"))","v":"-"},{"$f":"IF(OR('Enrollment Form'!$CG809=\"\",'Enrollment Form'!$CG809=\"No\"),\"-\",IF(AND('Enrollment Form'!$CG809=\"Yes\",'Enrollment Form'!$CI809=\"\"),\"N\",\"Y\"))","v":"-"},{"$f":"IF('Enrollment Form'!B809<>\"Subscriber\",\"-\",IF(AND('Enrollment Form'!B809=\"Subscriber\",'Enrollment Form'!C809=\"Enroll\",'Enrollment Form'!AA809=\"\"),\"N\",\"Y\"))","v":"-"},{"$f":"IF(OR('Enrollment Form'!B809=\"Subscriber\",'Enrollment Form'!B809=\"\"),\"-\",IF('Enrollment Form'!BI809=\"\",\"N\",\"Y\"))","v":"-"},{"$f":"IF('Enrollment Form'!B809<>\"Subscriber\",\"-\",IF(AND('Enrollment Form'!B809=\"Subscriber\",'Enrollment Form'!G809=\"\"),\"N\",\"Y\"))","v":"-"},{"$f":"IF('Enrollment Form'!A809=\"\",\"\",IF('Enrollment Form'!B809=\"Subscriber\",\"-\",IF(AND('Enrollment Form'!B809<>\"Subscriber\",'Enrollment Form'!G809='Enrollment Form'!H809),\"N\",\"Y\")))","v":""},0]
[810,{"$f":"IF('Enrollment Form'!$A810<>\"\",\"Y\",\"N\")","v":"N"},{"$f":"IF(AND('Enrollment Form'!$B810=\"\",'Enrollment Form'!$C810<>\"\"),\"N\",IF($B803=\"N\",\"\",\"Y\"))","v":""},{"$f":"IF(OR($B803=\"N\",'Enrollment Form'!G810=\"\"),\"\",IF('Enrollment Form'!$B810<>\"Subscriber\",\"\",IF('Enrollment Form'!$G810='Enrollment Form'!$H810,\"Y\",\"N\")))","v":""},{"$f":"IF($B803=\"N\",\"\",IF(AND(COUNTIFS('Enrollment Form'!$H$11:$H$1000,'Enrollment Form'!$H810,'Enrollment Form'!$B$11:$B$1000,'Enrollment Form'!$B810)>1,'Enrollment Form'!$H810<>\"\"),\"N\",\"Y\"))","v":""},{"$f":"IF($B803=\"N\",\"\",IF(LEN('Enrollment Form'!$Y810)=0,\"\",IF(LEN('Enrollment Form'!$Y810)<>5,\"N\",\"Y\")))","v":""},{"$f":"IF($B803=\"N\",\"\",IF(LEN('Enrollment Form'!$AD810=0),\"\",IF(LEN('Enrollment Form'!$AD810)<>5,\"N\",\"Y\")))","v":""},{"$f":"IF($B803=\"N\",\"\",IF(LEN('Enrollment Form'!$BL810=0),\"\",IF(LEN('Enrollment Form'!$BL810)<>5,\"N\",\"Y\")))","v":""},{"$f":"IF($B803=\"N\",\"\",IF(LEN('Enrollment Form'!$AE810)=0,\"\",IF(LEN('Enrollment Form'!$AE810)<>10,\"N\",\"Y\")))","v":""},{"$f":"IF($B803=\"N\",\"\",IF(LEN('Enrollment Form'!$AF810)=0,\"\",IF(LEN('Enrollment Form'!$AF810)<>10,\"N\",\"Y\")))","v":""},{"$f":"IF('Enrollment Form'!$O810<>\"Graded\",\"-\",IF(AND('Enrollment Form'!$O810=\"Graded\",'Enrollment Form'!$AO810<>\"\"),\"Y\",\"N\"))","v":"-"},{"$f":"IF($B803=\"N\",\"\",IF(OR('Enrollment Form'!$B810<>\"Subscriber\",'Enrollment Form'!$C810=\"ROC\"),\"-\",IF(AND('Enrollment Form'!$B810=\"Subscriber\",'Enrollment Form'!$C810=\"Enroll\",'Enrollment Form'!$AJ810<>\"\"),\"Y\",\"N\")))","v":""},{"$f":"IF($B803=\"N\",\"\",IF(OR('Enrollment Form'!$B810<>\"Subscriber\",'Enrollment Form'!$C810=\"ROC\"),\"-\",IF(AND('Enrollment Form'!$B810=\"Subscriber\",'Enrollment Form'!$C810=\"Enroll\",'Enrollment Form'!$AK810<>\"\"),\"Y\",\"N\")))","v":""},{"$f":"IF($B803=\"N\",\"\",IF(OR('Enrollment Form'!$B810<>\"Subscriber\",'Enrollment Form'!$C810=\"ROC\"),\"-\",IF(AND('Enrollment Form'!$B810=\"Subscriber\",'Enrollment Form'!$C810=\"Enroll\",'Enrollment Form'!$AL810<>\"\"),\"Y\",\"N\")))","v":""},{"$f":"IF($B803=\"N\",\"\",IF(OR('Enrollment Form'!$B810<>\"Subscriber\",'Enrollment Form'!$C810=\"ROC\"),\"-\",IF(AND('Enrollment Form'!$B810=\"Subscriber\",'Enrollment Form'!$C810=\"Enroll\",'Enrollment Form'!$AM810<>\"\"),\"Y\",\"N\")))","v":""},{"$f":"IF($B803=\"N\",\"\",IF(OR('Enrollment Form'!$B810<>\"Subscriber\",'Enrollment Form'!$C810=\"ROC\"),\"-\",IF(AND('Enrollment Form'!$B810=\"Subscriber\",'Enrollment Form'!$C810=\"Enroll\",'Enrollment Form'!$AN810<>\"\"),\"Y\",\"N\")))","v":""},{"$f":"IF($B803=\"N\",\"\",IF(OR('Enrollment Form'!$B810<>\"Subscriber\",'Enrollment Form'!$C810=\"ROC\"),\"-\",IF(AND('Enrollment Form'!$B810=\"Subscriber\",'Enrollment Form'!$C810=\"Enroll\",'Enrollment Form'!$AP810<>\"\"),\"Y\",\"N\")))","v":""},{"$f":"IF($B803=\"N\",\"\",IF($Q803=\"-\",\"-\",IF(AND($Q803=\"Y\",'Enrollment Form'!$AP810=\"No\"),\"-\",IF(AND($Q803=\"Y\",'Enrollment Form'!$AP810=\"Yes\",'Enrollment Form'!$AQ810<>\"\"),\"Y\",\"N\"))))","v":""},{"$f":"IF($B803=\"N\",\"\",IF(OR('Enrollment Form'!$B810<>\"Subscriber\",'Enrollment Form'!$C810=\"ROC\"),\"-\",IF(AND('Enrollment Form'!$B810=\"Subscriber\",'Enrollment Form'!$C810=\"Enroll\",'Enrollment Form'!$CO810<>\"\"),\"Y\",\"N\")))","v":""},{"$f":"IF($B803=\"N\",\"\",IF($S803=\"-\",\"-\",IF(AND($S803=\"Y\",'Enrollment Form'!$CO810=\"No\"),\"-\",IF(AND($S803=\"Y\",'Enrollment Form'!$CO810=\"Yes\",'Enrollment Form'!$CP810<>\"\"),\"Y\",\"N\"))))","v":""},{"$f":"IF(OR('Enrollment Form'!$AV810=\"Yes\",'Enrollment Form'!$AV810=\"\"),\"-\",IF(AND('Enrollment Form'!$AV810=\"No\",ISERROR(FIND(\"HMO\",VLOOKUP('Enrollment Form'!G810,'Enrollment Form'!H$11:J$1000,3,FALSE),1))=FALSE,COUNTA('Enrollment Form'!$AW810:$AZ810)=4),\"Y\",\"N\"))","v":"-"},{"$f":"IF($B803=\"N\",\"\",IF('Enrollment Form'!$B810=\"Subscriber\",\"-\",IF(COUNTA('Enrollment Form'!$BE810,'Enrollment Form'!$BG810)=2,\"Y\",\"N\")))","v":""},{"$f":"IF($B803=\"N\",\"\",IF(OR('Enrollment Form'!$AU810=\"\",'Enrollment Form'!$AU810=\"No\"),\"-\",IF(AND('Enrollment Form'!$AU810=\"Yes\",COUNTA('Enrollment Form'!$CK810)=1),\"Y\",\"N\")))","v":""},{"$f":"IF(OR('Enrollment Form'!$CK810=\"\",'Enrollment Form'!$CK810=\"No\"),\"-\",IF(COUNTA('Enrollment Form'!$CM810:$CN810)=2,\"Y\",\"N\"))","v":"-"},{"$f":"IF($B803=\"N\",\"\",IF(COUNTIF('Enrollment Form'!$CZ810:$DO810,\"Other\")=COUNTA('Enrollment Form'!$DF810,'Enrollment Form'!$DA810,'Enrollment Form'!$DK810,'Enrollment Form'!$DP810),\"Y\",\"N\"))","v":""},{"$f":"IF($B803=\"N\",\"\",IF(OR('Enrollment Form'!B810<>\"Subscriber\",'Enrollment Form'!C810=\"ROC\",COUNTIF('Enrollment Form'!AS810:AT810,\"Yes\")>=1),\"-\",IF(AND('Enrollment Form'!C810=\"Enroll\",COUNTIF('Enrollment Form'!AS810:AT810,\"No\")=2,'Enrollment Form'!AU810=\"\"),\"N\",\"Y\")))","v":""},{"$f":"IF(OR(B803=\"N\",'Enrollment Form'!B810<>\"Subscriber\",'Enrollment Form'!C810=\"ROC\",'Enrollment Form'!O810<>\"Multiple of Salary\"),\"-\",IF(COUNTA('Enrollment Form'!T810:U810)<2,\"N\",\"Y\"))","v":"-"},{"$f":"IF(B803=\"N\",\"\",IF(OR('Enrollment Form'!C810=\"ROC\",'Enrollment Form'!B810<>\"Subscriber\",'Enrollment Form'!O810=\"Waive\",'Enrollment Form'!O810=\"\"),\"-\",IF('Enrollment Form'!P810=\"\",\"N\",\"Y\")))","v":""},{"$f":"IF($B803=\"N\",\"\",IF(AND('Enrollment Form'!$C810=\"ROC\",'Enrollment Form'!$DS810<>\"\"),\"Y\",IF(AND('Enrollment Form'!$C810=\"ROC\",'Enrollment Form'!$DS810=\"\"),\"N\",IF(AND('Enrollment Form'!$C810=\"Enroll\",'Enrollment Form'!$B810=\"Subscriber\",'Enrollment Form'!$CQ810=\"No\",'Enrollment Form'!$DS810=\"\"),\"N\",IF(AND('Enrollment Form'!$C810=\"Enroll\",'Enrollment Form'!$B810=\"Subscriber\",'Enrollment Form'!$CQ810=\"Yes\"),\"-\",\"Y\")))))","v":""},{"$f":"IF($B803=\"N\",\"\",IF(AND('Enrollment Form'!$C810=\"ROC\",'Enrollment Form'!$DT810<>\"\"),\"Y\",IF(AND('Enrollment Form'!$C810=\"ROC\",'Enrollment Form'!$DT810=\"\"),\"N\",IF(AND('Enrollment Form'!$C810=\"Enroll\",'Enrollment Form'!$B810=\"Subscriber\",'Enrollment Form'!$CQ810=\"No\",'Enrollment Form'!$DT810=\"\"),\"N\",IF(AND('Enrollment Form'!$C810=\"Enroll\",'Enrollment Form'!$B810=\"Subscriber\",'Enrollment Form'!$CQ810=\"Yes\"),\"-\",\"Y\")))))","v":""},{"$f":"IF('Enrollment Form'!AH810=\"\",\"\",IF(ISERROR(SEARCH(\".\",'Enrollment Form'!AH810,SEARCH(\"@\",'Enrollment Form'!AH810))),\"N\",\"Y\"))","v":""},{"$f":"IF(OR($B803=\"N\",'Enrollment Form'!$G810=\"\"),\"\",IF('Enrollment Form'!$B810<>\"Subscriber\",\"-\",IF(COUNTIF('Enrollment Form'!$AS810:$AT810,\"Yes\")=2,\"N\",\"Y\")))","v":""},{"$f":"IF(OR('Enrollment Form'!$CC810=\"\",'Enrollment Form'!$CC810=\"No\"),\"-\",IF(AND('Enrollment Form'!$CC810=\"Yes\",'Enrollment Form'!$CD810=\"\"),\"N\",\"Y\"))","v":"-"},{"$f":"IF(OR('Enrollment Form'!$CE810=\"\",'Enrollment Form'!$CE810=\"No\"),\"-\",IF(AND('Enrollment Form'!$CE810=\"Yes\",'Enrollment Form'!$CF810=\"\"),\"N\",\"Y\"))","v":"-"},{"$f":"IF(OR('Enrollment Form'!$CG810=\"\",'Enrollment Form'!$CG810=\"No\"),\"-\",IF(AND('Enrollment Form'!$CG810=\"Yes\",'Enrollment Form'!$CH810=\"\"),\"N\",\"Y\"))","v":"-"},{"$f":"IF(OR('Enrollment Form'!$CG810=\"\",'Enrollment Form'!$CG810=\"No\"),\"-\",IF(AND('Enrollment Form'!$CG810=\"Yes\",'Enrollment Form'!$CI810=\"\"),\"N\",\"Y\"))","v":"-"},{"$f":"IF('Enrollment Form'!B810<>\"Subscriber\",\"-\",IF(AND('Enrollment Form'!B810=\"Subscriber\",'Enrollment Form'!C810=\"Enroll\",'Enrollment Form'!AA810=\"\"),\"N\",\"Y\"))","v":"-"},{"$f":"IF(OR('Enrollment Form'!B810=\"Subscriber\",'Enrollment Form'!B810=\"\"),\"-\",IF('Enrollment Form'!BI810=\"\",\"N\",\"Y\"))","v":"-"},{"$f":"IF('Enrollment Form'!B810<>\"Subscriber\",\"-\",IF(AND('Enrollment Form'!B810=\"Subscriber\",'Enrollment Form'!G810=\"\"),\"N\",\"Y\"))","v":"-"},{"$f":"IF('Enrollment Form'!A810=\"\",\"\",IF('Enrollment Form'!B810=\"Subscriber\",\"-\",IF(AND('Enrollment Form'!B810<>\"Subscriber\",'Enrollment Form'!G810='Enrollment Form'!H810),\"N\",\"Y\")))","v":""},0]
[811,{"$f":"IF('Enrollment Form'!$A811<>\"\",\"Y\",\"N\")","v":"N"},{"$f":"IF(AND('Enrollment Form'!$B811=\"\",'Enrollment Form'!$C811<>\"\"),\"N\",IF($B804=\"N\",\"\",\"Y\"))","v":""},{"$f":"IF(OR($B804=\"N\",'Enrollment Form'!G811=\"\"),\"\",IF('Enrollment Form'!$B811<>\"Subscriber\",\"\",IF('Enrollment Form'!$G811='Enrollment Form'!$H811,\"Y\",\"N\")))","v":""},{"$f":"IF($B804=\"N\",\"\",IF(AND(COUNTIFS('Enrollment Form'!$H$11:$H$1000,'Enrollment Form'!$H811,'Enrollment Form'!$B$11:$B$1000,'Enrollment Form'!$B811)>1,'Enrollment Form'!$H811<>\"\"),\"N\",\"Y\"))","v":""},{"$f":"IF($B804=\"N\",\"\",IF(LEN('Enrollment Form'!$Y811)=0,\"\",IF(LEN('Enrollment Form'!$Y811)<>5,\"N\",\"Y\")))","v":""},{"$f":"IF($B804=\"N\",\"\",IF(LEN('Enrollment Form'!$AD811=0),\"\",IF(LEN('Enrollment Form'!$AD811)<>5,\"N\",\"Y\")))","v":""},{"$f":"IF($B804=\"N\",\"\",IF(LEN('Enrollment Form'!$BL811=0),\"\",IF(LEN('Enrollment Form'!$BL811)<>5,\"N\",\"Y\")))","v":""},{"$f":"IF($B804=\"N\",\"\",IF(LEN('Enrollment Form'!$AE811)=0,\"\",IF(LEN('Enrollment Form'!$AE811)<>10,\"N\",\"Y\")))","v":""},{"$f":"IF($B804=\"N\",\"\",IF(LEN('Enrollment Form'!$AF811)=0,\"\",IF(LEN('Enrollment Form'!$AF811)<>10,\"N\",\"Y\")))","v":""},{"$f":"IF('Enrollment Form'!$O811<>\"Graded\",\"-\",IF(AND('Enrollment Form'!$O811=\"Graded\",'Enrollment Form'!$AO811<>\"\"),\"Y\",\"N\"))","v":"-"},{"$f":"IF($B804=\"N\",\"\",IF(OR('Enrollment Form'!$B811<>\"Subscriber\",'Enrollment Form'!$C811=\"ROC\"),\"-\",IF(AND('Enrollment Form'!$B811=\"Subscriber\",'Enrollment Form'!$C811=\"Enroll\",'Enrollment Form'!$AJ811<>\"\"),\"Y\",\"N\")))","v":""},{"$f":"IF($B804=\"N\",\"\",IF(OR('Enrollment Form'!$B811<>\"Subscriber\",'Enrollment Form'!$C811=\"ROC\"),\"-\",IF(AND('Enrollment Form'!$B811=\"Subscriber\",'Enrollment Form'!$C811=\"Enroll\",'Enrollment Form'!$AK811<>\"\"),\"Y\",\"N\")))","v":""},{"$f":"IF($B804=\"N\",\"\",IF(OR('Enrollment Form'!$B811<>\"Subscriber\",'Enrollment Form'!$C811=\"ROC\"),\"-\",IF(AND('Enrollment Form'!$B811=\"Subscriber\",'Enrollment Form'!$C811=\"Enroll\",'Enrollment Form'!$AL811<>\"\"),\"Y\",\"N\")))","v":""},{"$f":"IF($B804=\"N\",\"\",IF(OR('Enrollment Form'!$B811<>\"Subscriber\",'Enrollment Form'!$C811=\"ROC\"),\"-\",IF(AND('Enrollment Form'!$B811=\"Subscriber\",'Enrollment Form'!$C811=\"Enroll\",'Enrollment Form'!$AM811<>\"\"),\"Y\",\"N\")))","v":""},{"$f":"IF($B804=\"N\",\"\",IF(OR('Enrollment Form'!$B811<>\"Subscriber\",'Enrollment Form'!$C811=\"ROC\"),\"-\",IF(AND('Enrollment Form'!$B811=\"Subscriber\",'Enrollment Form'!$C811=\"Enroll\",'Enrollment Form'!$AN811<>\"\"),\"Y\",\"N\")))","v":""},{"$f":"IF($B804=\"N\",\"\",IF(OR('Enrollment Form'!$B811<>\"Subscriber\",'Enrollment Form'!$C811=\"ROC\"),\"-\",IF(AND('Enrollment Form'!$B811=\"Subscriber\",'Enrollment Form'!$C811=\"Enroll\",'Enrollment Form'!$AP811<>\"\"),\"Y\",\"N\")))","v":""},{"$f":"IF($B804=\"N\",\"\",IF($Q804=\"-\",\"-\",IF(AND($Q804=\"Y\",'Enrollment Form'!$AP811=\"No\"),\"-\",IF(AND($Q804=\"Y\",'Enrollment Form'!$AP811=\"Yes\",'Enrollment Form'!$AQ811<>\"\"),\"Y\",\"N\"))))","v":""},{"$f":"IF($B804=\"N\",\"\",IF(OR('Enrollment Form'!$B811<>\"Subscriber\",'Enrollment Form'!$C811=\"ROC\"),\"-\",IF(AND('Enrollment Form'!$B811=\"Subscriber\",'Enrollment Form'!$C811=\"Enroll\",'Enrollment Form'!$CO811<>\"\"),\"Y\",\"N\")))","v":""},{"$f":"IF($B804=\"N\",\"\",IF($S804=\"-\",\"-\",IF(AND($S804=\"Y\",'Enrollment Form'!$CO811=\"No\"),\"-\",IF(AND($S804=\"Y\",'Enrollment Form'!$CO811=\"Yes\",'Enrollment Form'!$CP811<>\"\"),\"Y\",\"N\"))))","v":""},{"$f":"IF(OR('Enrollment Form'!$AV811=\"Yes\",'Enrollment Form'!$AV811=\"\"),\"-\",IF(AND('Enrollment Form'!$AV811=\"No\",ISERROR(FIND(\"HMO\",VLOOKUP('Enrollment Form'!G811,'Enrollment Form'!H$11:J$1000,3,FALSE),1))=FALSE,COUNTA('Enrollment Form'!$AW811:$AZ811)=4),\"Y\",\"N\"))","v":"-"},{"$f":"IF($B804=\"N\",\"\",IF('Enrollment Form'!$B811=\"Subscriber\",\"-\",IF(COUNTA('Enrollment Form'!$BE811,'Enrollment Form'!$BG811)=2,\"Y\",\"N\")))","v":""},{"$f":"IF($B804=\"N\",\"\",IF(OR('Enrollment Form'!$AU811=\"\",'Enrollment Form'!$AU811=\"No\"),\"-\",IF(AND('Enrollment Form'!$AU811=\"Yes\",COUNTA('Enrollment Form'!$CK811)=1),\"Y\",\"N\")))","v":""},{"$f":"IF(OR('Enrollment Form'!$CK811=\"\",'Enrollment Form'!$CK811=\"No\"),\"-\",IF(COUNTA('Enrollment Form'!$CM811:$CN811)=2,\"Y\",\"N\"))","v":"-"},{"$f":"IF($B804=\"N\",\"\",IF(COUNTIF('Enrollment Form'!$CZ811:$DO811,\"Other\")=COUNTA('Enrollment Form'!$DF811,'Enrollment Form'!$DA811,'Enrollment Form'!$DK811,'Enrollment Form'!$DP811),\"Y\",\"N\"))","v":""},{"$f":"IF($B804=\"N\",\"\",IF(OR('Enrollment Form'!B811<>\"Subscriber\",'Enrollment Form'!C811=\"ROC\",COUNTIF('Enrollment Form'!AS811:AT811,\"Yes\")>=1),\"-\",IF(AND('Enrollment Form'!C811=\"Enroll\",COUNTIF('Enrollment Form'!AS811:AT811,\"No\")=2,'Enrollment Form'!AU811=\"\"),\"N\",\"Y\")))","v":""},{"$f":"IF(OR(B804=\"N\",'Enrollment Form'!B811<>\"Subscriber\",'Enrollment Form'!C811=\"ROC\",'Enrollment Form'!O811<>\"Multiple of Salary\"),\"-\",IF(COUNTA('Enrollment Form'!T811:U811)<2,\"N\",\"Y\"))","v":"-"},{"$f":"IF(B804=\"N\",\"\",IF(OR('Enrollment Form'!C811=\"ROC\",'Enrollment Form'!B811<>\"Subscriber\",'Enrollment Form'!O811=\"Waive\",'Enrollment Form'!O811=\"\"),\"-\",IF('Enrollment Form'!P811=\"\",\"N\",\"Y\")))","v":""},{"$f":"IF($B804=\"N\",\"\",IF(AND('Enrollment Form'!$C811=\"ROC\",'Enrollment Form'!$DS811<>\"\"),\"Y\",IF(AND('Enrollment Form'!$C811=\"ROC\",'Enrollment Form'!$DS811=\"\"),\"N\",IF(AND('Enrollment Form'!$C811=\"Enroll\",'Enrollment Form'!$B811=\"Subscriber\",'Enrollment Form'!$CQ811=\"No\",'Enrollment Form'!$DS811=\"\"),\"N\",IF(AND('Enrollment Form'!$C811=\"Enroll\",'Enrollment Form'!$B811=\"Subscriber\",'Enrollment Form'!$CQ811=\"Yes\"),\"-\",\"Y\")))))","v":""},{"$f":"IF($B804=\"N\",\"\",IF(AND('Enrollment Form'!$C811=\"ROC\",'Enrollment Form'!$DT811<>\"\"),\"Y\",IF(AND('Enrollment Form'!$C811=\"ROC\",'Enrollment Form'!$DT811=\"\"),\"N\",IF(AND('Enrollment Form'!$C811=\"Enroll\",'Enrollment Form'!$B811=\"Subscriber\",'Enrollment Form'!$CQ811=\"No\",'Enrollment Form'!$DT811=\"\"),\"N\",IF(AND('Enrollment Form'!$C811=\"Enroll\",'Enrollment Form'!$B811=\"Subscriber\",'Enrollment Form'!$CQ811=\"Yes\"),\"-\",\"Y\")))))","v":""},{"$f":"IF('Enrollment Form'!AH811=\"\",\"\",IF(ISERROR(SEARCH(\".\",'Enrollment Form'!AH811,SEARCH(\"@\",'Enrollment Form'!AH811))),\"N\",\"Y\"))","v":""},{"$f":"IF(OR($B804=\"N\",'Enrollment Form'!$G811=\"\"),\"\",IF('Enrollment Form'!$B811<>\"Subscriber\",\"-\",IF(COUNTIF('Enrollment Form'!$AS811:$AT811,\"Yes\")=2,\"N\",\"Y\")))","v":""},{"$f":"IF(OR('Enrollment Form'!$CC811=\"\",'Enrollment Form'!$CC811=\"No\"),\"-\",IF(AND('Enrollment Form'!$CC811=\"Yes\",'Enrollment Form'!$CD811=\"\"),\"N\",\"Y\"))","v":"-"},{"$f":"IF(OR('Enrollment Form'!$CE811=\"\",'Enrollment Form'!$CE811=\"No\"),\"-\",IF(AND('Enrollment Form'!$CE811=\"Yes\",'Enrollment Form'!$CF811=\"\"),\"N\",\"Y\"))","v":"-"},{"$f":"IF(OR('Enrollment Form'!$CG811=\"\",'Enrollment Form'!$CG811=\"No\"),\"-\",IF(AND('Enrollment Form'!$CG811=\"Yes\",'Enrollment Form'!$CH811=\"\"),\"N\",\"Y\"))","v":"-"},{"$f":"IF(OR('Enrollment Form'!$CG811=\"\",'Enrollment Form'!$CG811=\"No\"),\"-\",IF(AND('Enrollment Form'!$CG811=\"Yes\",'Enrollment Form'!$CI811=\"\"),\"N\",\"Y\"))","v":"-"},{"$f":"IF('Enrollment Form'!B811<>\"Subscriber\",\"-\",IF(AND('Enrollment Form'!B811=\"Subscriber\",'Enrollment Form'!C811=\"Enroll\",'Enrollment Form'!AA811=\"\"),\"N\",\"Y\"))","v":"-"},{"$f":"IF(OR('Enrollment Form'!B811=\"Subscriber\",'Enrollment Form'!B811=\"\"),\"-\",IF('Enrollment Form'!BI811=\"\",\"N\",\"Y\"))","v":"-"},{"$f":"IF('Enrollment Form'!B811<>\"Subscriber\",\"-\",IF(AND('Enrollment Form'!B811=\"Subscriber\",'Enrollment Form'!G811=\"\"),\"N\",\"Y\"))","v":"-"},{"$f":"IF('Enrollment Form'!A811=\"\",\"\",IF('Enrollment Form'!B811=\"Subscriber\",\"-\",IF(AND('Enrollment Form'!B811<>\"Subscriber\",'Enrollment Form'!G811='Enrollment Form'!H811),\"N\",\"Y\")))","v":""},0]
[812,{"$f":"IF('Enrollment Form'!$A812<>\"\",\"Y\",\"N\")","v":"N"},{"$f":"IF(AND('Enrollment Form'!$B812=\"\",'Enrollment Form'!$C812<>\"\"),\"N\",IF($B805=\"N\",\"\",\"Y\"))","v":""},{"$f":"IF(OR($B805=\"N\",'Enrollment Form'!G812=\"\"),\"\",IF('Enrollment Form'!$B812<>\"Subscriber\",\"\",IF('Enrollment Form'!$G812='Enrollment Form'!$H812,\"Y\",\"N\")))","v":""},{"$f":"IF($B805=\"N\",\"\",IF(AND(COUNTIFS('Enrollment Form'!$H$11:$H$1000,'Enrollment Form'!$H812,'Enrollment Form'!$B$11:$B$1000,'Enrollment Form'!$B812)>1,'Enrollment Form'!$H812<>\"\"),\"N\",\"Y\"))","v":""},{"$f":"IF($B805=\"N\",\"\",IF(LEN('Enrollment Form'!$Y812)=0,\"\",IF(LEN('Enrollment Form'!$Y812)<>5,\"N\",\"Y\")))","v":""},{"$f":"IF($B805=\"N\",\"\",IF(LEN('Enrollment Form'!$AD812=0),\"\",IF(LEN('Enrollment Form'!$AD812)<>5,\"N\",\"Y\")))","v":""},{"$f":"IF($B805=\"N\",\"\",IF(LEN('Enrollment Form'!$BL812=0),\"\",IF(LEN('Enrollment Form'!$BL812)<>5,\"N\",\"Y\")))","v":""},{"$f":"IF($B805=\"N\",\"\",IF(LEN('Enrollment Form'!$AE812)=0,\"\",IF(LEN('Enrollment Form'!$AE812)<>10,\"N\",\"Y\")))","v":""},{"$f":"IF($B805=\"N\",\"\",IF(LEN('Enrollment Form'!$AF812)=0,\"\",IF(LEN('Enrollment Form'!$AF812)<>10,\"N\",\"Y\")))","v":""},{"$f":"IF('Enrollment Form'!$O812<>\"Graded\",\"-\",IF(AND('Enrollment Form'!$O812=\"Graded\",'Enrollment Form'!$AO812<>\"\"),\"Y\",\"N\"))","v":"-"},{"$f":"IF($B805=\"N\",\"\",IF(OR('Enrollment Form'!$B812<>\"Subscriber\",'Enrollment Form'!$C812=\"ROC\"),\"-\",IF(AND('Enrollment Form'!$B812=\"Subscriber\",'Enrollment Form'!$C812=\"Enroll\",'Enrollment Form'!$AJ812<>\"\"),\"Y\",\"N\")))","v":""},{"$f":"IF($B805=\"N\",\"\",IF(OR('Enrollment Form'!$B812<>\"Subscriber\",'Enrollment Form'!$C812=\"ROC\"),\"-\",IF(AND('Enrollment Form'!$B812=\"Subscriber\",'Enrollment Form'!$C812=\"Enroll\",'Enrollment Form'!$AK812<>\"\"),\"Y\",\"N\")))","v":""},{"$f":"IF($B805=\"N\",\"\",IF(OR('Enrollment Form'!$B812<>\"Subscriber\",'Enrollment Form'!$C812=\"ROC\"),\"-\",IF(AND('Enrollment Form'!$B812=\"Subscriber\",'Enrollment Form'!$C812=\"Enroll\",'Enrollment Form'!$AL812<>\"\"),\"Y\",\"N\")))","v":""},{"$f":"IF($B805=\"N\",\"\",IF(OR('Enrollment Form'!$B812<>\"Subscriber\",'Enrollment Form'!$C812=\"ROC\"),\"-\",IF(AND('Enrollment Form'!$B812=\"Subscriber\",'Enrollment Form'!$C812=\"Enroll\",'Enrollment Form'!$AM812<>\"\"),\"Y\",\"N\")))","v":""},{"$f":"IF($B805=\"N\",\"\",IF(OR('Enrollment Form'!$B812<>\"Subscriber\",'Enrollment Form'!$C812=\"ROC\"),\"-\",IF(AND('Enrollment Form'!$B812=\"Subscriber\",'Enrollment Form'!$C812=\"Enroll\",'Enrollment Form'!$AN812<>\"\"),\"Y\",\"N\")))","v":""},{"$f":"IF($B805=\"N\",\"\",IF(OR('Enrollment Form'!$B812<>\"Subscriber\",'Enrollment Form'!$C812=\"ROC\"),\"-\",IF(AND('Enrollment Form'!$B812=\"Subscriber\",'Enrollment Form'!$C812=\"Enroll\",'Enrollment Form'!$AP812<>\"\"),\"Y\",\"N\")))","v":""},{"$f":"IF($B805=\"N\",\"\",IF($Q805=\"-\",\"-\",IF(AND($Q805=\"Y\",'Enrollment Form'!$AP812=\"No\"),\"-\",IF(AND($Q805=\"Y\",'Enrollment Form'!$AP812=\"Yes\",'Enrollment Form'!$AQ812<>\"\"),\"Y\",\"N\"))))","v":""},{"$f":"IF($B805=\"N\",\"\",IF(OR('Enrollment Form'!$B812<>\"Subscriber\",'Enrollment Form'!$C812=\"ROC\"),\"-\",IF(AND('Enrollment Form'!$B812=\"Subscriber\",'Enrollment Form'!$C812=\"Enroll\",'Enrollment Form'!$CO812<>\"\"),\"Y\",\"N\")))","v":""},{"$f":"IF($B805=\"N\",\"\",IF($S805=\"-\",\"-\",IF(AND($S805=\"Y\",'Enrollment Form'!$CO812=\"No\"),\"-\",IF(AND($S805=\"Y\",'Enrollment Form'!$CO812=\"Yes\",'Enrollment Form'!$CP812<>\"\"),\"Y\",\"N\"))))","v":""},{"$f":"IF(OR('Enrollment Form'!$AV812=\"Yes\",'Enrollment Form'!$AV812=\"\"),\"-\",IF(AND('Enrollment Form'!$AV812=\"No\",ISERROR(FIND(\"HMO\",VLOOKUP('Enrollment Form'!G812,'Enrollment Form'!H$11:J$1000,3,FALSE),1))=FALSE,COUNTA('Enrollment Form'!$AW812:$AZ812)=4),\"Y\",\"N\"))","v":"-"},{"$f":"IF($B805=\"N\",\"\",IF('Enrollment Form'!$B812=\"Subscriber\",\"-\",IF(COUNTA('Enrollment Form'!$BE812,'Enrollment Form'!$BG812)=2,\"Y\",\"N\")))","v":""},{"$f":"IF($B805=\"N\",\"\",IF(OR('Enrollment Form'!$AU812=\"\",'Enrollment Form'!$AU812=\"No\"),\"-\",IF(AND('Enrollment Form'!$AU812=\"Yes\",COUNTA('Enrollment Form'!$CK812)=1),\"Y\",\"N\")))","v":""},{"$f":"IF(OR('Enrollment Form'!$CK812=\"\",'Enrollment Form'!$CK812=\"No\"),\"-\",IF(COUNTA('Enrollment Form'!$CM812:$CN812)=2,\"Y\",\"N\"))","v":"-"},{"$f":"IF($B805=\"N\",\"\",IF(COUNTIF('Enrollment Form'!$CZ812:$DO812,\"Other\")=COUNTA('Enrollment Form'!$DF812,'Enrollment Form'!$DA812,'Enrollment Form'!$DK812,'Enrollment Form'!$DP812),\"Y\",\"N\"))","v":""},{"$f":"IF($B805=\"N\",\"\",IF(OR('Enrollment Form'!B812<>\"Subscriber\",'Enrollment Form'!C812=\"ROC\",COUNTIF('Enrollment Form'!AS812:AT812,\"Yes\")>=1),\"-\",IF(AND('Enrollment Form'!C812=\"Enroll\",COUNTIF('Enrollment Form'!AS812:AT812,\"No\")=2,'Enrollment Form'!AU812=\"\"),\"N\",\"Y\")))","v":""},{"$f":"IF(OR(B805=\"N\",'Enrollment Form'!B812<>\"Subscriber\",'Enrollment Form'!C812=\"ROC\",'Enrollment Form'!O812<>\"Multiple of Salary\"),\"-\",IF(COUNTA('Enrollment Form'!T812:U812)<2,\"N\",\"Y\"))","v":"-"},{"$f":"IF(B805=\"N\",\"\",IF(OR('Enrollment Form'!C812=\"ROC\",'Enrollment Form'!B812<>\"Subscriber\",'Enrollment Form'!O812=\"Waive\",'Enrollment Form'!O812=\"\"),\"-\",IF('Enrollment Form'!P812=\"\",\"N\",\"Y\")))","v":""},{"$f":"IF($B805=\"N\",\"\",IF(AND('Enrollment Form'!$C812=\"ROC\",'Enrollment Form'!$DS812<>\"\"),\"Y\",IF(AND('Enrollment Form'!$C812=\"ROC\",'Enrollment Form'!$DS812=\"\"),\"N\",IF(AND('Enrollment Form'!$C812=\"Enroll\",'Enrollment Form'!$B812=\"Subscriber\",'Enrollment Form'!$CQ812=\"No\",'Enrollment Form'!$DS812=\"\"),\"N\",IF(AND('Enrollment Form'!$C812=\"Enroll\",'Enrollment Form'!$B812=\"Subscriber\",'Enrollment Form'!$CQ812=\"Yes\"),\"-\",\"Y\")))))","v":""},{"$f":"IF($B805=\"N\",\"\",IF(AND('Enrollment Form'!$C812=\"ROC\",'Enrollment Form'!$DT812<>\"\"),\"Y\",IF(AND('Enrollment Form'!$C812=\"ROC\",'Enrollment Form'!$DT812=\"\"),\"N\",IF(AND('Enrollment Form'!$C812=\"Enroll\",'Enrollment Form'!$B812=\"Subscriber\",'Enrollment Form'!$CQ812=\"No\",'Enrollment Form'!$DT812=\"\"),\"N\",IF(AND('Enrollment Form'!$C812=\"Enroll\",'Enrollment Form'!$B812=\"Subscriber\",'Enrollment Form'!$CQ812=\"Yes\"),\"-\",\"Y\")))))","v":""},{"$f":"IF('Enrollment Form'!AH812=\"\",\"\",IF(ISERROR(SEARCH(\".\",'Enrollment Form'!AH812,SEARCH(\"@\",'Enrollment Form'!AH812))),\"N\",\"Y\"))","v":""},{"$f":"IF(OR($B805=\"N\",'Enrollment Form'!$G812=\"\"),\"\",IF('Enrollment Form'!$B812<>\"Subscriber\",\"-\",IF(COUNTIF('Enrollment Form'!$AS812:$AT812,\"Yes\")=2,\"N\",\"Y\")))","v":""},{"$f":"IF(OR('Enrollment Form'!$CC812=\"\",'Enrollment Form'!$CC812=\"No\"),\"-\",IF(AND('Enrollment Form'!$CC812=\"Yes\",'Enrollment Form'!$CD812=\"\"),\"N\",\"Y\"))","v":"-"},{"$f":"IF(OR('Enrollment Form'!$CE812=\"\",'Enrollment Form'!$CE812=\"No\"),\"-\",IF(AND('Enrollment Form'!$CE812=\"Yes\",'Enrollment Form'!$CF812=\"\"),\"N\",\"Y\"))","v":"-"},{"$f":"IF(OR('Enrollment Form'!$CG812=\"\",'Enrollment Form'!$CG812=\"No\"),\"-\",IF(AND('Enrollment Form'!$CG812=\"Yes\",'Enrollment Form'!$CH812=\"\"),\"N\",\"Y\"))","v":"-"},{"$f":"IF(OR('Enrollment Form'!$CG812=\"\",'Enrollment Form'!$CG812=\"No\"),\"-\",IF(AND('Enrollment Form'!$CG812=\"Yes\",'Enrollment Form'!$CI812=\"\"),\"N\",\"Y\"))","v":"-"},{"$f":"IF('Enrollment Form'!B812<>\"Subscriber\",\"-\",IF(AND('Enrollment Form'!B812=\"Subscriber\",'Enrollment Form'!C812=\"Enroll\",'Enrollment Form'!AA812=\"\"),\"N\",\"Y\"))","v":"-"},{"$f":"IF(OR('Enrollment Form'!B812=\"Subscriber\",'Enrollment Form'!B812=\"\"),\"-\",IF('Enrollment Form'!BI812=\"\",\"N\",\"Y\"))","v":"-"},{"$f":"IF('Enrollment Form'!B812<>\"Subscriber\",\"-\",IF(AND('Enrollment Form'!B812=\"Subscriber\",'Enrollment Form'!G812=\"\"),\"N\",\"Y\"))","v":"-"},{"$f":"IF('Enrollment Form'!A812=\"\",\"\",IF('Enrollment Form'!B812=\"Subscriber\",\"-\",IF(AND('Enrollment Form'!B812<>\"Subscriber\",'Enrollment Form'!G812='Enrollment Form'!H812),\"N\",\"Y\")))","v":""},0]
[813,{"$f":"IF('Enrollment Form'!$A813<>\"\",\"Y\",\"N\")","v":"N"},{"$f":"IF(AND('Enrollment Form'!$B813=\"\",'Enrollment Form'!$C813<>\"\"),\"N\",IF($B806=\"N\",\"\",\"Y\"))","v":""},{"$f":"IF(OR($B806=\"N\",'Enrollment Form'!G813=\"\"),\"\",IF('Enrollment Form'!$B813<>\"Subscriber\",\"\",IF('Enrollment Form'!$G813='Enrollment Form'!$H813,\"Y\",\"N\")))","v":""},{"$f":"IF($B806=\"N\",\"\",IF(AND(COUNTIFS('Enrollment Form'!$H$11:$H$1000,'Enrollment Form'!$H813,'Enrollment Form'!$B$11:$B$1000,'Enrollment Form'!$B813)>1,'Enrollment Form'!$H813<>\"\"),\"N\",\"Y\"))","v":""},{"$f":"IF($B806=\"N\",\"\",IF(LEN('Enrollment Form'!$Y813)=0,\"\",IF(LEN('Enrollment Form'!$Y813)<>5,\"N\",\"Y\")))","v":""},{"$f":"IF($B806=\"N\",\"\",IF(LEN('Enrollment Form'!$AD813=0),\"\",IF(LEN('Enrollment Form'!$AD813)<>5,\"N\",\"Y\")))","v":""},{"$f":"IF($B806=\"N\",\"\",IF(LEN('Enrollment Form'!$BL813=0),\"\",IF(LEN('Enrollment Form'!$BL813)<>5,\"N\",\"Y\")))","v":""},{"$f":"IF($B806=\"N\",\"\",IF(LEN('Enrollment Form'!$AE813)=0,\"\",IF(LEN('Enrollment Form'!$AE813)<>10,\"N\",\"Y\")))","v":""},{"$f":"IF($B806=\"N\",\"\",IF(LEN('Enrollment Form'!$AF813)=0,\"\",IF(LEN('Enrollment Form'!$AF813)<>10,\"N\",\"Y\")))","v":""},{"$f":"IF('Enrollment Form'!$O813<>\"Graded\",\"-\",IF(AND('Enrollment Form'!$O813=\"Graded\",'Enrollment Form'!$AO813<>\"\"),\"Y\",\"N\"))","v":"-"},{"$f":"IF($B806=\"N\",\"\",IF(OR('Enrollment Form'!$B813<>\"Subscriber\",'Enrollment Form'!$C813=\"ROC\"),\"-\",IF(AND('Enrollment Form'!$B813=\"Subscriber\",'Enrollment Form'!$C813=\"Enroll\",'Enrollment Form'!$AJ813<>\"\"),\"Y\",\"N\")))","v":""},{"$f":"IF($B806=\"N\",\"\",IF(OR('Enrollment Form'!$B813<>\"Subscriber\",'Enrollment Form'!$C813=\"ROC\"),\"-\",IF(AND('Enrollment Form'!$B813=\"Subscriber\",'Enrollment Form'!$C813=\"Enroll\",'Enrollment Form'!$AK813<>\"\"),\"Y\",\"N\")))","v":""},{"$f":"IF($B806=\"N\",\"\",IF(OR('Enrollment Form'!$B813<>\"Subscriber\",'Enrollment Form'!$C813=\"ROC\"),\"-\",IF(AND('Enrollment Form'!$B813=\"Subscriber\",'Enrollment Form'!$C813=\"Enroll\",'Enrollment Form'!$AL813<>\"\"),\"Y\",\"N\")))","v":""},{"$f":"IF($B806=\"N\",\"\",IF(OR('Enrollment Form'!$B813<>\"Subscriber\",'Enrollment Form'!$C813=\"ROC\"),\"-\",IF(AND('Enrollment Form'!$B813=\"Subscriber\",'Enrollment Form'!$C813=\"Enroll\",'Enrollment Form'!$AM813<>\"\"),\"Y\",\"N\")))","v":""},{"$f":"IF($B806=\"N\",\"\",IF(OR('Enrollment Form'!$B813<>\"Subscriber\",'Enrollment Form'!$C813=\"ROC\"),\"-\",IF(AND('Enrollment Form'!$B813=\"Subscriber\",'Enrollment Form'!$C813=\"Enroll\",'Enrollment Form'!$AN813<>\"\"),\"Y\",\"N\")))","v":""},{"$f":"IF($B806=\"N\",\"\",IF(OR('Enrollment Form'!$B813<>\"Subscriber\",'Enrollment Form'!$C813=\"ROC\"),\"-\",IF(AND('Enrollment Form'!$B813=\"Subscriber\",'Enrollment Form'!$C813=\"Enroll\",'Enrollment Form'!$AP813<>\"\"),\"Y\",\"N\")))","v":""},{"$f":"IF($B806=\"N\",\"\",IF($Q806=\"-\",\"-\",IF(AND($Q806=\"Y\",'Enrollment Form'!$AP813=\"No\"),\"-\",IF(AND($Q806=\"Y\",'Enrollment Form'!$AP813=\"Yes\",'Enrollment Form'!$AQ813<>\"\"),\"Y\",\"N\"))))","v":""},{"$f":"IF($B806=\"N\",\"\",IF(OR('Enrollment Form'!$B813<>\"Subscriber\",'Enrollment Form'!$C813=\"ROC\"),\"-\",IF(AND('Enrollment Form'!$B813=\"Subscriber\",'Enrollment Form'!$C813=\"Enroll\",'Enrollment Form'!$CO813<>\"\"),\"Y\",\"N\")))","v":""},{"$f":"IF($B806=\"N\",\"\",IF($S806=\"-\",\"-\",IF(AND($S806=\"Y\",'Enrollment Form'!$CO813=\"No\"),\"-\",IF(AND($S806=\"Y\",'Enrollment Form'!$CO813=\"Yes\",'Enrollment Form'!$CP813<>\"\"),\"Y\",\"N\"))))","v":""},{"$f":"IF(OR('Enrollment Form'!$AV813=\"Yes\",'Enrollment Form'!$AV813=\"\"),\"-\",IF(AND('Enrollment Form'!$AV813=\"No\",ISERROR(FIND(\"HMO\",VLOOKUP('Enrollment Form'!G813,'Enrollment Form'!H$11:J$1000,3,FALSE),1))=FALSE,COUNTA('Enrollment Form'!$AW813:$AZ813)=4),\"Y\",\"N\"))","v":"-"},{"$f":"IF($B806=\"N\",\"\",IF('Enrollment Form'!$B813=\"Subscriber\",\"-\",IF(COUNTA('Enrollment Form'!$BE813,'Enrollment Form'!$BG813)=2,\"Y\",\"N\")))","v":""},{"$f":"IF($B806=\"N\",\"\",IF(OR('Enrollment Form'!$AU813=\"\",'Enrollment Form'!$AU813=\"No\"),\"-\",IF(AND('Enrollment Form'!$AU813=\"Yes\",COUNTA('Enrollment Form'!$CK813)=1),\"Y\",\"N\")))","v":""},{"$f":"IF(OR('Enrollment Form'!$CK813=\"\",'Enrollment Form'!$CK813=\"No\"),\"-\",IF(COUNTA('Enrollment Form'!$CM813:$CN813)=2,\"Y\",\"N\"))","v":"-"},{"$f":"IF($B806=\"N\",\"\",IF(COUNTIF('Enrollment Form'!$CZ813:$DO813,\"Other\")=COUNTA('Enrollment Form'!$DF813,'Enrollment Form'!$DA813,'Enrollment Form'!$DK813,'Enrollment Form'!$DP813),\"Y\",\"N\"))","v":""},{"$f":"IF($B806=\"N\",\"\",IF(OR('Enrollment Form'!B813<>\"Subscriber\",'Enrollment Form'!C813=\"ROC\",COUNTIF('Enrollment Form'!AS813:AT813,\"Yes\")>=1),\"-\",IF(AND('Enrollment Form'!C813=\"Enroll\",COUNTIF('Enrollment Form'!AS813:AT813,\"No\")=2,'Enrollment Form'!AU813=\"\"),\"N\",\"Y\")))","v":""},{"$f":"IF(OR(B806=\"N\",'Enrollment Form'!B813<>\"Subscriber\",'Enrollment Form'!C813=\"ROC\",'Enrollment Form'!O813<>\"Multiple of Salary\"),\"-\",IF(COUNTA('Enrollment Form'!T813:U813)<2,\"N\",\"Y\"))","v":"-"},{"$f":"IF(B806=\"N\",\"\",IF(OR('Enrollment Form'!C813=\"ROC\",'Enrollment Form'!B813<>\"Subscriber\",'Enrollment Form'!O813=\"Waive\",'Enrollment Form'!O813=\"\"),\"-\",IF('Enrollment Form'!P813=\"\",\"N\",\"Y\")))","v":""},{"$f":"IF($B806=\"N\",\"\",IF(AND('Enrollment Form'!$C813=\"ROC\",'Enrollment Form'!$DS813<>\"\"),\"Y\",IF(AND('Enrollment Form'!$C813=\"ROC\",'Enrollment Form'!$DS813=\"\"),\"N\",IF(AND('Enrollment Form'!$C813=\"Enroll\",'Enrollment Form'!$B813=\"Subscriber\",'Enrollment Form'!$CQ813=\"No\",'Enrollment Form'!$DS813=\"\"),\"N\",IF(AND('Enrollment Form'!$C813=\"Enroll\",'Enrollment Form'!$B813=\"Subscriber\",'Enrollment Form'!$CQ813=\"Yes\"),\"-\",\"Y\")))))","v":""},{"$f":"IF($B806=\"N\",\"\",IF(AND('Enrollment Form'!$C813=\"ROC\",'Enrollment Form'!$DT813<>\"\"),\"Y\",IF(AND('Enrollment Form'!$C813=\"ROC\",'Enrollment Form'!$DT813=\"\"),\"N\",IF(AND('Enrollment Form'!$C813=\"Enroll\",'Enrollment Form'!$B813=\"Subscriber\",'Enrollment Form'!$CQ813=\"No\",'Enrollment Form'!$DT813=\"\"),\"N\",IF(AND('Enrollment Form'!$C813=\"Enroll\",'Enrollment Form'!$B813=\"Subscriber\",'Enrollment Form'!$CQ813=\"Yes\"),\"-\",\"Y\")))))","v":""},{"$f":"IF('Enrollment Form'!AH813=\"\",\"\",IF(ISERROR(SEARCH(\".\",'Enrollment Form'!AH813,SEARCH(\"@\",'Enrollment Form'!AH813))),\"N\",\"Y\"))","v":""},{"$f":"IF(OR($B806=\"N\",'Enrollment Form'!$G813=\"\"),\"\",IF('Enrollment Form'!$B813<>\"Subscriber\",\"-\",IF(COUNTIF('Enrollment Form'!$AS813:$AT813,\"Yes\")=2,\"N\",\"Y\")))","v":""},{"$f":"IF(OR('Enrollment Form'!$CC813=\"\",'Enrollment Form'!$CC813=\"No\"),\"-\",IF(AND('Enrollment Form'!$CC813=\"Yes\",'Enrollment Form'!$CD813=\"\"),\"N\",\"Y\"))","v":"-"},{"$f":"IF(OR('Enrollment Form'!$CE813=\"\",'Enrollment Form'!$CE813=\"No\"),\"-\",IF(AND('Enrollment Form'!$CE813=\"Yes\",'Enrollment Form'!$CF813=\"\"),\"N\",\"Y\"))","v":"-"},{"$f":"IF(OR('Enrollment Form'!$CG813=\"\",'Enrollment Form'!$CG813=\"No\"),\"-\",IF(AND('Enrollment Form'!$CG813=\"Yes\",'Enrollment Form'!$CH813=\"\"),\"N\",\"Y\"))","v":"-"},{"$f":"IF(OR('Enrollment Form'!$CG813=\"\",'Enrollment Form'!$CG813=\"No\"),\"-\",IF(AND('Enrollment Form'!$CG813=\"Yes\",'Enrollment Form'!$CI813=\"\"),\"N\",\"Y\"))","v":"-"},{"$f":"IF('Enrollment Form'!B813<>\"Subscriber\",\"-\",IF(AND('Enrollment Form'!B813=\"Subscriber\",'Enrollment Form'!C813=\"Enroll\",'Enrollment Form'!AA813=\"\"),\"N\",\"Y\"))","v":"-"},{"$f":"IF(OR('Enrollment Form'!B813=\"Subscriber\",'Enrollment Form'!B813=\"\"),\"-\",IF('Enrollment Form'!BI813=\"\",\"N\",\"Y\"))","v":"-"},{"$f":"IF('Enrollment Form'!B813<>\"Subscriber\",\"-\",IF(AND('Enrollment Form'!B813=\"Subscriber\",'Enrollment Form'!G813=\"\"),\"N\",\"Y\"))","v":"-"},{"$f":"IF('Enrollment Form'!A813=\"\",\"\",IF('Enrollment Form'!B813=\"Subscriber\",\"-\",IF(AND('Enrollment Form'!B813<>\"Subscriber\",'Enrollment Form'!G813='Enrollment Form'!H813),\"N\",\"Y\")))","v":""},0]
[814,{"$f":"IF('Enrollment Form'!$A814<>\"\",\"Y\",\"N\")","v":"N"},{"$f":"IF(AND('Enrollment Form'!$B814=\"\",'Enrollment Form'!$C814<>\"\"),\"N\",IF($B807=\"N\",\"\",\"Y\"))","v":""},{"$f":"IF(OR($B807=\"N\",'Enrollment Form'!G814=\"\"),\"\",IF('Enrollment Form'!$B814<>\"Subscriber\",\"\",IF('Enrollment Form'!$G814='Enrollment Form'!$H814,\"Y\",\"N\")))","v":""},{"$f":"IF($B807=\"N\",\"\",IF(AND(COUNTIFS('Enrollment Form'!$H$11:$H$1000,'Enrollment Form'!$H814,'Enrollment Form'!$B$11:$B$1000,'Enrollment Form'!$B814)>1,'Enrollment Form'!$H814<>\"\"),\"N\",\"Y\"))","v":""},{"$f":"IF($B807=\"N\",\"\",IF(LEN('Enrollment Form'!$Y814)=0,\"\",IF(LEN('Enrollment Form'!$Y814)<>5,\"N\",\"Y\")))","v":""},{"$f":"IF($B807=\"N\",\"\",IF(LEN('Enrollment Form'!$AD814=0),\"\",IF(LEN('Enrollment Form'!$AD814)<>5,\"N\",\"Y\")))","v":""},{"$f":"IF($B807=\"N\",\"\",IF(LEN('Enrollment Form'!$BL814=0),\"\",IF(LEN('Enrollment Form'!$BL814)<>5,\"N\",\"Y\")))","v":""},{"$f":"IF($B807=\"N\",\"\",IF(LEN('Enrollment Form'!$AE814)=0,\"\",IF(LEN('Enrollment Form'!$AE814)<>10,\"N\",\"Y\")))","v":""},{"$f":"IF($B807=\"N\",\"\",IF(LEN('Enrollment Form'!$AF814)=0,\"\",IF(LEN('Enrollment Form'!$AF814)<>10,\"N\",\"Y\")))","v":""},{"$f":"IF('Enrollment Form'!$O814<>\"Graded\",\"-\",IF(AND('Enrollment Form'!$O814=\"Graded\",'Enrollment Form'!$AO814<>\"\"),\"Y\",\"N\"))","v":"-"},{"$f":"IF($B807=\"N\",\"\",IF(OR('Enrollment Form'!$B814<>\"Subscriber\",'Enrollment Form'!$C814=\"ROC\"),\"-\",IF(AND('Enrollment Form'!$B814=\"Subscriber\",'Enrollment Form'!$C814=\"Enroll\",'Enrollment Form'!$AJ814<>\"\"),\"Y\",\"N\")))","v":""},{"$f":"IF($B807=\"N\",\"\",IF(OR('Enrollment Form'!$B814<>\"Subscriber\",'Enrollment Form'!$C814=\"ROC\"),\"-\",IF(AND('Enrollment Form'!$B814=\"Subscriber\",'Enrollment Form'!$C814=\"Enroll\",'Enrollment Form'!$AK814<>\"\"),\"Y\",\"N\")))","v":""},{"$f":"IF($B807=\"N\",\"\",IF(OR('Enrollment Form'!$B814<>\"Subscriber\",'Enrollment Form'!$C814=\"ROC\"),\"-\",IF(AND('Enrollment Form'!$B814=\"Subscriber\",'Enrollment Form'!$C814=\"Enroll\",'Enrollment Form'!$AL814<>\"\"),\"Y\",\"N\")))","v":""},{"$f":"IF($B807=\"N\",\"\",IF(OR('Enrollment Form'!$B814<>\"Subscriber\",'Enrollment Form'!$C814=\"ROC\"),\"-\",IF(AND('Enrollment Form'!$B814=\"Subscriber\",'Enrollment Form'!$C814=\"Enroll\",'Enrollment Form'!$AM814<>\"\"),\"Y\",\"N\")))","v":""},{"$f":"IF($B807=\"N\",\"\",IF(OR('Enrollment Form'!$B814<>\"Subscriber\",'Enrollment Form'!$C814=\"ROC\"),\"-\",IF(AND('Enrollment Form'!$B814=\"Subscriber\",'Enrollment Form'!$C814=\"Enroll\",'Enrollment Form'!$AN814<>\"\"),\"Y\",\"N\")))","v":""},{"$f":"IF($B807=\"N\",\"\",IF(OR('Enrollment Form'!$B814<>\"Subscriber\",'Enrollment Form'!$C814=\"ROC\"),\"-\",IF(AND('Enrollment Form'!$B814=\"Subscriber\",'Enrollment Form'!$C814=\"Enroll\",'Enrollment Form'!$AP814<>\"\"),\"Y\",\"N\")))","v":""},{"$f":"IF($B807=\"N\",\"\",IF($Q807=\"-\",\"-\",IF(AND($Q807=\"Y\",'Enrollment Form'!$AP814=\"No\"),\"-\",IF(AND($Q807=\"Y\",'Enrollment Form'!$AP814=\"Yes\",'Enrollment Form'!$AQ814<>\"\"),\"Y\",\"N\"))))","v":""},{"$f":"IF($B807=\"N\",\"\",IF(OR('Enrollment Form'!$B814<>\"Subscriber\",'Enrollment Form'!$C814=\"ROC\"),\"-\",IF(AND('Enrollment Form'!$B814=\"Subscriber\",'Enrollment Form'!$C814=\"Enroll\",'Enrollment Form'!$CO814<>\"\"),\"Y\",\"N\")))","v":""},{"$f":"IF($B807=\"N\",\"\",IF($S807=\"-\",\"-\",IF(AND($S807=\"Y\",'Enrollment Form'!$CO814=\"No\"),\"-\",IF(AND($S807=\"Y\",'Enrollment Form'!$CO814=\"Yes\",'Enrollment Form'!$CP814<>\"\"),\"Y\",\"N\"))))","v":""},{"$f":"IF(OR('Enrollment Form'!$AV814=\"Yes\",'Enrollment Form'!$AV814=\"\"),\"-\",IF(AND('Enrollment Form'!$AV814=\"No\",ISERROR(FIND(\"HMO\",VLOOKUP('Enrollment Form'!G814,'Enrollment Form'!H$11:J$1000,3,FALSE),1))=FALSE,COUNTA('Enrollment Form'!$AW814:$AZ814)=4),\"Y\",\"N\"))","v":"-"},{"$f":"IF($B807=\"N\",\"\",IF('Enrollment Form'!$B814=\"Subscriber\",\"-\",IF(COUNTA('Enrollment Form'!$BE814,'Enrollment Form'!$BG814)=2,\"Y\",\"N\")))","v":""},{"$f":"IF($B807=\"N\",\"\",IF(OR('Enrollment Form'!$AU814=\"\",'Enrollment Form'!$AU814=\"No\"),\"-\",IF(AND('Enrollment Form'!$AU814=\"Yes\",COUNTA('Enrollment Form'!$CK814)=1),\"Y\",\"N\")))","v":""},{"$f":"IF(OR('Enrollment Form'!$CK814=\"\",'Enrollment Form'!$CK814=\"No\"),\"-\",IF(COUNTA('Enrollment Form'!$CM814:$CN814)=2,\"Y\",\"N\"))","v":"-"},{"$f":"IF($B807=\"N\",\"\",IF(COUNTIF('Enrollment Form'!$CZ814:$DO814,\"Other\")=COUNTA('Enrollment Form'!$DF814,'Enrollment Form'!$DA814,'Enrollment Form'!$DK814,'Enrollment Form'!$DP814),\"Y\",\"N\"))","v":""},{"$f":"IF($B807=\"N\",\"\",IF(OR('Enrollment Form'!B814<>\"Subscriber\",'Enrollment Form'!C814=\"ROC\",COUNTIF('Enrollment Form'!AS814:AT814,\"Yes\")>=1),\"-\",IF(AND('Enrollment Form'!C814=\"Enroll\",COUNTIF('Enrollment Form'!AS814:AT814,\"No\")=2,'Enrollment Form'!AU814=\"\"),\"N\",\"Y\")))","v":""},{"$f":"IF(OR(B807=\"N\",'Enrollment Form'!B814<>\"Subscriber\",'Enrollment Form'!C814=\"ROC\",'Enrollment Form'!O814<>\"Multiple of Salary\"),\"-\",IF(COUNTA('Enrollment Form'!T814:U814)<2,\"N\",\"Y\"))","v":"-"},{"$f":"IF(B807=\"N\",\"\",IF(OR('Enrollment Form'!C814=\"ROC\",'Enrollment Form'!B814<>\"Subscriber\",'Enrollment Form'!O814=\"Waive\",'Enrollment Form'!O814=\"\"),\"-\",IF('Enrollment Form'!P814=\"\",\"N\",\"Y\")))","v":""},{"$f":"IF($B807=\"N\",\"\",IF(AND('Enrollment Form'!$C814=\"ROC\",'Enrollment Form'!$DS814<>\"\"),\"Y\",IF(AND('Enrollment Form'!$C814=\"ROC\",'Enrollment Form'!$DS814=\"\"),\"N\",IF(AND('Enrollment Form'!$C814=\"Enroll\",'Enrollment Form'!$B814=\"Subscriber\",'Enrollment Form'!$CQ814=\"No\",'Enrollment Form'!$DS814=\"\"),\"N\",IF(AND('Enrollment Form'!$C814=\"Enroll\",'Enrollment Form'!$B814=\"Subscriber\",'Enrollment Form'!$CQ814=\"Yes\"),\"-\",\"Y\")))))","v":""},{"$f":"IF($B807=\"N\",\"\",IF(AND('Enrollment Form'!$C814=\"ROC\",'Enrollment Form'!$DT814<>\"\"),\"Y\",IF(AND('Enrollment Form'!$C814=\"ROC\",'Enrollment Form'!$DT814=\"\"),\"N\",IF(AND('Enrollment Form'!$C814=\"Enroll\",'Enrollment Form'!$B814=\"Subscriber\",'Enrollment Form'!$CQ814=\"No\",'Enrollment Form'!$DT814=\"\"),\"N\",IF(AND('Enrollment Form'!$C814=\"Enroll\",'Enrollment Form'!$B814=\"Subscriber\",'Enrollment Form'!$CQ814=\"Yes\"),\"-\",\"Y\")))))","v":""},{"$f":"IF('Enrollment Form'!AH814=\"\",\"\",IF(ISERROR(SEARCH(\".\",'Enrollment Form'!AH814,SEARCH(\"@\",'Enrollment Form'!AH814))),\"N\",\"Y\"))","v":""},{"$f":"IF(OR($B807=\"N\",'Enrollment Form'!$G814=\"\"),\"\",IF('Enrollment Form'!$B814<>\"Subscriber\",\"-\",IF(COUNTIF('Enrollment Form'!$AS814:$AT814,\"Yes\")=2,\"N\",\"Y\")))","v":""},{"$f":"IF(OR('Enrollment Form'!$CC814=\"\",'Enrollment Form'!$CC814=\"No\"),\"-\",IF(AND('Enrollment Form'!$CC814=\"Yes\",'Enrollment Form'!$CD814=\"\"),\"N\",\"Y\"))","v":"-"},{"$f":"IF(OR('Enrollment Form'!$CE814=\"\",'Enrollment Form'!$CE814=\"No\"),\"-\",IF(AND('Enrollment Form'!$CE814=\"Yes\",'Enrollment Form'!$CF814=\"\"),\"N\",\"Y\"))","v":"-"},{"$f":"IF(OR('Enrollment Form'!$CG814=\"\",'Enrollment Form'!$CG814=\"No\"),\"-\",IF(AND('Enrollment Form'!$CG814=\"Yes\",'Enrollment Form'!$CH814=\"\"),\"N\",\"Y\"))","v":"-"},{"$f":"IF(OR('Enrollment Form'!$CG814=\"\",'Enrollment Form'!$CG814=\"No\"),\"-\",IF(AND('Enrollment Form'!$CG814=\"Yes\",'Enrollment Form'!$CI814=\"\"),\"N\",\"Y\"))","v":"-"},{"$f":"IF('Enrollment Form'!B814<>\"Subscriber\",\"-\",IF(AND('Enrollment Form'!B814=\"Subscriber\",'Enrollment Form'!C814=\"Enroll\",'Enrollment Form'!AA814=\"\"),\"N\",\"Y\"))","v":"-"},{"$f":"IF(OR('Enrollment Form'!B814=\"Subscriber\",'Enrollment Form'!B814=\"\"),\"-\",IF('Enrollment Form'!BI814=\"\",\"N\",\"Y\"))","v":"-"},{"$f":"IF('Enrollment Form'!B814<>\"Subscriber\",\"-\",IF(AND('Enrollment Form'!B814=\"Subscriber\",'Enrollment Form'!G814=\"\"),\"N\",\"Y\"))","v":"-"},{"$f":"IF('Enrollment Form'!A814=\"\",\"\",IF('Enrollment Form'!B814=\"Subscriber\",\"-\",IF(AND('Enrollment Form'!B814<>\"Subscriber\",'Enrollment Form'!G814='Enrollment Form'!H814),\"N\",\"Y\")))","v":""},0]
[815,{"$f":"IF('Enrollment Form'!$A815<>\"\",\"Y\",\"N\")","v":"N"},{"$f":"IF(AND('Enrollment Form'!$B815=\"\",'Enrollment Form'!$C815<>\"\"),\"N\",IF($B808=\"N\",\"\",\"Y\"))","v":""},{"$f":"IF(OR($B808=\"N\",'Enrollment Form'!G815=\"\"),\"\",IF('Enrollment Form'!$B815<>\"Subscriber\",\"\",IF('Enrollment Form'!$G815='Enrollment Form'!$H815,\"Y\",\"N\")))","v":""},{"$f":"IF($B808=\"N\",\"\",IF(AND(COUNTIFS('Enrollment Form'!$H$11:$H$1000,'Enrollment Form'!$H815,'Enrollment Form'!$B$11:$B$1000,'Enrollment Form'!$B815)>1,'Enrollment Form'!$H815<>\"\"),\"N\",\"Y\"))","v":""},{"$f":"IF($B808=\"N\",\"\",IF(LEN('Enrollment Form'!$Y815)=0,\"\",IF(LEN('Enrollment Form'!$Y815)<>5,\"N\",\"Y\")))","v":""},{"$f":"IF($B808=\"N\",\"\",IF(LEN('Enrollment Form'!$AD815=0),\"\",IF(LEN('Enrollment Form'!$AD815)<>5,\"N\",\"Y\")))","v":""},{"$f":"IF($B808=\"N\",\"\",IF(LEN('Enrollment Form'!$BL815=0),\"\",IF(LEN('Enrollment Form'!$BL815)<>5,\"N\",\"Y\")))","v":""},{"$f":"IF($B808=\"N\",\"\",IF(LEN('Enrollment Form'!$AE815)=0,\"\",IF(LEN('Enrollment Form'!$AE815)<>10,\"N\",\"Y\")))","v":""},{"$f":"IF($B808=\"N\",\"\",IF(LEN('Enrollment Form'!$AF815)=0,\"\",IF(LEN('Enrollment Form'!$AF815)<>10,\"N\",\"Y\")))","v":""},{"$f":"IF('Enrollment Form'!$O815<>\"Graded\",\"-\",IF(AND('Enrollment Form'!$O815=\"Graded\",'Enrollment Form'!$AO815<>\"\"),\"Y\",\"N\"))","v":"-"},{"$f":"IF($B808=\"N\",\"\",IF(OR('Enrollment Form'!$B815<>\"Subscriber\",'Enrollment Form'!$C815=\"ROC\"),\"-\",IF(AND('Enrollment Form'!$B815=\"Subscriber\",'Enrollment Form'!$C815=\"Enroll\",'Enrollment Form'!$AJ815<>\"\"),\"Y\",\"N\")))","v":""},{"$f":"IF($B808=\"N\",\"\",IF(OR('Enrollment Form'!$B815<>\"Subscriber\",'Enrollment Form'!$C815=\"ROC\"),\"-\",IF(AND('Enrollment Form'!$B815=\"Subscriber\",'Enrollment Form'!$C815=\"Enroll\",'Enrollment Form'!$AK815<>\"\"),\"Y\",\"N\")))","v":""},{"$f":"IF($B808=\"N\",\"\",IF(OR('Enrollment Form'!$B815<>\"Subscriber\",'Enrollment Form'!$C815=\"ROC\"),\"-\",IF(AND('Enrollment Form'!$B815=\"Subscriber\",'Enrollment Form'!$C815=\"Enroll\",'Enrollment Form'!$AL815<>\"\"),\"Y\",\"N\")))","v":""},{"$f":"IF($B808=\"N\",\"\",IF(OR('Enrollment Form'!$B815<>\"Subscriber\",'Enrollment Form'!$C815=\"ROC\"),\"-\",IF(AND('Enrollment Form'!$B815=\"Subscriber\",'Enrollment Form'!$C815=\"Enroll\",'Enrollment Form'!$AM815<>\"\"),\"Y\",\"N\")))","v":""},{"$f":"IF($B808=\"N\",\"\",IF(OR('Enrollment Form'!$B815<>\"Subscriber\",'Enrollment Form'!$C815=\"ROC\"),\"-\",IF(AND('Enrollment Form'!$B815=\"Subscriber\",'Enrollment Form'!$C815=\"Enroll\",'Enrollment Form'!$AN815<>\"\"),\"Y\",\"N\")))","v":""},{"$f":"IF($B808=\"N\",\"\",IF(OR('Enrollment Form'!$B815<>\"Subscriber\",'Enrollment Form'!$C815=\"ROC\"),\"-\",IF(AND('Enrollment Form'!$B815=\"Subscriber\",'Enrollment Form'!$C815=\"Enroll\",'Enrollment Form'!$AP815<>\"\"),\"Y\",\"N\")))","v":""},{"$f":"IF($B808=\"N\",\"\",IF($Q808=\"-\",\"-\",IF(AND($Q808=\"Y\",'Enrollment Form'!$AP815=\"No\"),\"-\",IF(AND($Q808=\"Y\",'Enrollment Form'!$AP815=\"Yes\",'Enrollment Form'!$AQ815<>\"\"),\"Y\",\"N\"))))","v":""},{"$f":"IF($B808=\"N\",\"\",IF(OR('Enrollment Form'!$B815<>\"Subscriber\",'Enrollment Form'!$C815=\"ROC\"),\"-\",IF(AND('Enrollment Form'!$B815=\"Subscriber\",'Enrollment Form'!$C815=\"Enroll\",'Enrollment Form'!$CO815<>\"\"),\"Y\",\"N\")))","v":""},{"$f":"IF($B808=\"N\",\"\",IF($S808=\"-\",\"-\",IF(AND($S808=\"Y\",'Enrollment Form'!$CO815=\"No\"),\"-\",IF(AND($S808=\"Y\",'Enrollment Form'!$CO815=\"Yes\",'Enrollment Form'!$CP815<>\"\"),\"Y\",\"N\"))))","v":""},{"$f":"IF(OR('Enrollment Form'!$AV815=\"Yes\",'Enrollment Form'!$AV815=\"\"),\"-\",IF(AND('Enrollment Form'!$AV815=\"No\",ISERROR(FIND(\"HMO\",VLOOKUP('Enrollment Form'!G815,'Enrollment Form'!H$11:J$1000,3,FALSE),1))=FALSE,COUNTA('Enrollment Form'!$AW815:$AZ815)=4),\"Y\",\"N\"))","v":"-"},{"$f":"IF($B808=\"N\",\"\",IF('Enrollment Form'!$B815=\"Subscriber\",\"-\",IF(COUNTA('Enrollment Form'!$BE815,'Enrollment Form'!$BG815)=2,\"Y\",\"N\")))","v":""},{"$f":"IF($B808=\"N\",\"\",IF(OR('Enrollment Form'!$AU815=\"\",'Enrollment Form'!$AU815=\"No\"),\"-\",IF(AND('Enrollment Form'!$AU815=\"Yes\",COUNTA('Enrollment Form'!$CK815)=1),\"Y\",\"N\")))","v":""},{"$f":"IF(OR('Enrollment Form'!$CK815=\"\",'Enrollment Form'!$CK815=\"No\"),\"-\",IF(COUNTA('Enrollment Form'!$CM815:$CN815)=2,\"Y\",\"N\"))","v":"-"},{"$f":"IF($B808=\"N\",\"\",IF(COUNTIF('Enrollment Form'!$CZ815:$DO815,\"Other\")=COUNTA('Enrollment Form'!$DF815,'Enrollment Form'!$DA815,'Enrollment Form'!$DK815,'Enrollment Form'!$DP815),\"Y\",\"N\"))","v":""},{"$f":"IF($B808=\"N\",\"\",IF(OR('Enrollment Form'!B815<>\"Subscriber\",'Enrollment Form'!C815=\"ROC\",COUNTIF('Enrollment Form'!AS815:AT815,\"Yes\")>=1),\"-\",IF(AND('Enrollment Form'!C815=\"Enroll\",COUNTIF('Enrollment Form'!AS815:AT815,\"No\")=2,'Enrollment Form'!AU815=\"\"),\"N\",\"Y\")))","v":""},{"$f":"IF(OR(B808=\"N\",'Enrollment Form'!B815<>\"Subscriber\",'Enrollment Form'!C815=\"ROC\",'Enrollment Form'!O815<>\"Multiple of Salary\"),\"-\",IF(COUNTA('Enrollment Form'!T815:U815)<2,\"N\",\"Y\"))","v":"-"},{"$f":"IF(B808=\"N\",\"\",IF(OR('Enrollment Form'!C815=\"ROC\",'Enrollment Form'!B815<>\"Subscriber\",'Enrollment Form'!O815=\"Waive\",'Enrollment Form'!O815=\"\"),\"-\",IF('Enrollment Form'!P815=\"\",\"N\",\"Y\")))","v":""},{"$f":"IF($B808=\"N\",\"\",IF(AND('Enrollment Form'!$C815=\"ROC\",'Enrollment Form'!$DS815<>\"\"),\"Y\",IF(AND('Enrollment Form'!$C815=\"ROC\",'Enrollment Form'!$DS815=\"\"),\"N\",IF(AND('Enrollment Form'!$C815=\"Enroll\",'Enrollment Form'!$B815=\"Subscriber\",'Enrollment Form'!$CQ815=\"No\",'Enrollment Form'!$DS815=\"\"),\"N\",IF(AND('Enrollment Form'!$C815=\"Enroll\",'Enrollment Form'!$B815=\"Subscriber\",'Enrollment Form'!$CQ815=\"Yes\"),\"-\",\"Y\")))))","v":""},{"$f":"IF($B808=\"N\",\"\",IF(AND('Enrollment Form'!$C815=\"ROC\",'Enrollment Form'!$DT815<>\"\"),\"Y\",IF(AND('Enrollment Form'!$C815=\"ROC\",'Enrollment Form'!$DT815=\"\"),\"N\",IF(AND('Enrollment Form'!$C815=\"Enroll\",'Enrollment Form'!$B815=\"Subscriber\",'Enrollment Form'!$CQ815=\"No\",'Enrollment Form'!$DT815=\"\"),\"N\",IF(AND('Enrollment Form'!$C815=\"Enroll\",'Enrollment Form'!$B815=\"Subscriber\",'Enrollment Form'!$CQ815=\"Yes\"),\"-\",\"Y\")))))","v":""},{"$f":"IF('Enrollment Form'!AH815=\"\",\"\",IF(ISERROR(SEARCH(\".\",'Enrollment Form'!AH815,SEARCH(\"@\",'Enrollment Form'!AH815))),\"N\",\"Y\"))","v":""},{"$f":"IF(OR($B808=\"N\",'Enrollment Form'!$G815=\"\"),\"\",IF('Enrollment Form'!$B815<>\"Subscriber\",\"-\",IF(COUNTIF('Enrollment Form'!$AS815:$AT815,\"Yes\")=2,\"N\",\"Y\")))","v":""},{"$f":"IF(OR('Enrollment Form'!$CC815=\"\",'Enrollment Form'!$CC815=\"No\"),\"-\",IF(AND('Enrollment Form'!$CC815=\"Yes\",'Enrollment Form'!$CD815=\"\"),\"N\",\"Y\"))","v":"-"},{"$f":"IF(OR('Enrollment Form'!$CE815=\"\",'Enrollment Form'!$CE815=\"No\"),\"-\",IF(AND('Enrollment Form'!$CE815=\"Yes\",'Enrollment Form'!$CF815=\"\"),\"N\",\"Y\"))","v":"-"},{"$f":"IF(OR('Enrollment Form'!$CG815=\"\",'Enrollment Form'!$CG815=\"No\"),\"-\",IF(AND('Enrollment Form'!$CG815=\"Yes\",'Enrollment Form'!$CH815=\"\"),\"N\",\"Y\"))","v":"-"},{"$f":"IF(OR('Enrollment Form'!$CG815=\"\",'Enrollment Form'!$CG815=\"No\"),\"-\",IF(AND('Enrollment Form'!$CG815=\"Yes\",'Enrollment Form'!$CI815=\"\"),\"N\",\"Y\"))","v":"-"},{"$f":"IF('Enrollment Form'!B815<>\"Subscriber\",\"-\",IF(AND('Enrollment Form'!B815=\"Subscriber\",'Enrollment Form'!C815=\"Enroll\",'Enrollment Form'!AA815=\"\"),\"N\",\"Y\"))","v":"-"},{"$f":"IF(OR('Enrollment Form'!B815=\"Subscriber\",'Enrollment Form'!B815=\"\"),\"-\",IF('Enrollment Form'!BI815=\"\",\"N\",\"Y\"))","v":"-"},{"$f":"IF('Enrollment Form'!B815<>\"Subscriber\",\"-\",IF(AND('Enrollment Form'!B815=\"Subscriber\",'Enrollment Form'!G815=\"\"),\"N\",\"Y\"))","v":"-"},{"$f":"IF('Enrollment Form'!A815=\"\",\"\",IF('Enrollment Form'!B815=\"Subscriber\",\"-\",IF(AND('Enrollment Form'!B815<>\"Subscriber\",'Enrollment Form'!G815='Enrollment Form'!H815),\"N\",\"Y\")))","v":""},0]
[816,{"$f":"IF('Enrollment Form'!$A816<>\"\",\"Y\",\"N\")","v":"N"},{"$f":"IF(AND('Enrollment Form'!$B816=\"\",'Enrollment Form'!$C816<>\"\"),\"N\",IF($B809=\"N\",\"\",\"Y\"))","v":""},{"$f":"IF(OR($B809=\"N\",'Enrollment Form'!G816=\"\"),\"\",IF('Enrollment Form'!$B816<>\"Subscriber\",\"\",IF('Enrollment Form'!$G816='Enrollment Form'!$H816,\"Y\",\"N\")))","v":""},{"$f":"IF($B809=\"N\",\"\",IF(AND(COUNTIFS('Enrollment Form'!$H$11:$H$1000,'Enrollment Form'!$H816,'Enrollment Form'!$B$11:$B$1000,'Enrollment Form'!$B816)>1,'Enrollment Form'!$H816<>\"\"),\"N\",\"Y\"))","v":""},{"$f":"IF($B809=\"N\",\"\",IF(LEN('Enrollment Form'!$Y816)=0,\"\",IF(LEN('Enrollment Form'!$Y816)<>5,\"N\",\"Y\")))","v":""},{"$f":"IF($B809=\"N\",\"\",IF(LEN('Enrollment Form'!$AD816=0),\"\",IF(LEN('Enrollment Form'!$AD816)<>5,\"N\",\"Y\")))","v":""},{"$f":"IF($B809=\"N\",\"\",IF(LEN('Enrollment Form'!$BL816=0),\"\",IF(LEN('Enrollment Form'!$BL816)<>5,\"N\",\"Y\")))","v":""},{"$f":"IF($B809=\"N\",\"\",IF(LEN('Enrollment Form'!$AE816)=0,\"\",IF(LEN('Enrollment Form'!$AE816)<>10,\"N\",\"Y\")))","v":""},{"$f":"IF($B809=\"N\",\"\",IF(LEN('Enrollment Form'!$AF816)=0,\"\",IF(LEN('Enrollment Form'!$AF816)<>10,\"N\",\"Y\")))","v":""},{"$f":"IF('Enrollment Form'!$O816<>\"Graded\",\"-\",IF(AND('Enrollment Form'!$O816=\"Graded\",'Enrollment Form'!$AO816<>\"\"),\"Y\",\"N\"))","v":"-"},{"$f":"IF($B809=\"N\",\"\",IF(OR('Enrollment Form'!$B816<>\"Subscriber\",'Enrollment Form'!$C816=\"ROC\"),\"-\",IF(AND('Enrollment Form'!$B816=\"Subscriber\",'Enrollment Form'!$C816=\"Enroll\",'Enrollment Form'!$AJ816<>\"\"),\"Y\",\"N\")))","v":""},{"$f":"IF($B809=\"N\",\"\",IF(OR('Enrollment Form'!$B816<>\"Subscriber\",'Enrollment Form'!$C816=\"ROC\"),\"-\",IF(AND('Enrollment Form'!$B816=\"Subscriber\",'Enrollment Form'!$C816=\"Enroll\",'Enrollment Form'!$AK816<>\"\"),\"Y\",\"N\")))","v":""},{"$f":"IF($B809=\"N\",\"\",IF(OR('Enrollment Form'!$B816<>\"Subscriber\",'Enrollment Form'!$C816=\"ROC\"),\"-\",IF(AND('Enrollment Form'!$B816=\"Subscriber\",'Enrollment Form'!$C816=\"Enroll\",'Enrollment Form'!$AL816<>\"\"),\"Y\",\"N\")))","v":""},{"$f":"IF($B809=\"N\",\"\",IF(OR('Enrollment Form'!$B816<>\"Subscriber\",'Enrollment Form'!$C816=\"ROC\"),\"-\",IF(AND('Enrollment Form'!$B816=\"Subscriber\",'Enrollment Form'!$C816=\"Enroll\",'Enrollment Form'!$AM816<>\"\"),\"Y\",\"N\")))","v":""},{"$f":"IF($B809=\"N\",\"\",IF(OR('Enrollment Form'!$B816<>\"Subscriber\",'Enrollment Form'!$C816=\"ROC\"),\"-\",IF(AND('Enrollment Form'!$B816=\"Subscriber\",'Enrollment Form'!$C816=\"Enroll\",'Enrollment Form'!$AN816<>\"\"),\"Y\",\"N\")))","v":""},{"$f":"IF($B809=\"N\",\"\",IF(OR('Enrollment Form'!$B816<>\"Subscriber\",'Enrollment Form'!$C816=\"ROC\"),\"-\",IF(AND('Enrollment Form'!$B816=\"Subscriber\",'Enrollment Form'!$C816=\"Enroll\",'Enrollment Form'!$AP816<>\"\"),\"Y\",\"N\")))","v":""},{"$f":"IF($B809=\"N\",\"\",IF($Q809=\"-\",\"-\",IF(AND($Q809=\"Y\",'Enrollment Form'!$AP816=\"No\"),\"-\",IF(AND($Q809=\"Y\",'Enrollment Form'!$AP816=\"Yes\",'Enrollment Form'!$AQ816<>\"\"),\"Y\",\"N\"))))","v":""},{"$f":"IF($B809=\"N\",\"\",IF(OR('Enrollment Form'!$B816<>\"Subscriber\",'Enrollment Form'!$C816=\"ROC\"),\"-\",IF(AND('Enrollment Form'!$B816=\"Subscriber\",'Enrollment Form'!$C816=\"Enroll\",'Enrollment Form'!$CO816<>\"\"),\"Y\",\"N\")))","v":""},{"$f":"IF($B809=\"N\",\"\",IF($S809=\"-\",\"-\",IF(AND($S809=\"Y\",'Enrollment Form'!$CO816=\"No\"),\"-\",IF(AND($S809=\"Y\",'Enrollment Form'!$CO816=\"Yes\",'Enrollment Form'!$CP816<>\"\"),\"Y\",\"N\"))))","v":""},{"$f":"IF(OR('Enrollment Form'!$AV816=\"Yes\",'Enrollment Form'!$AV816=\"\"),\"-\",IF(AND('Enrollment Form'!$AV816=\"No\",ISERROR(FIND(\"HMO\",VLOOKUP('Enrollment Form'!G816,'Enrollment Form'!H$11:J$1000,3,FALSE),1))=FALSE,COUNTA('Enrollment Form'!$AW816:$AZ816)=4),\"Y\",\"N\"))","v":"-"},{"$f":"IF($B809=\"N\",\"\",IF('Enrollment Form'!$B816=\"Subscriber\",\"-\",IF(COUNTA('Enrollment Form'!$BE816,'Enrollment Form'!$BG816)=2,\"Y\",\"N\")))","v":""},{"$f":"IF($B809=\"N\",\"\",IF(OR('Enrollment Form'!$AU816=\"\",'Enrollment Form'!$AU816=\"No\"),\"-\",IF(AND('Enrollment Form'!$AU816=\"Yes\",COUNTA('Enrollment Form'!$CK816)=1),\"Y\",\"N\")))","v":""},{"$f":"IF(OR('Enrollment Form'!$CK816=\"\",'Enrollment Form'!$CK816=\"No\"),\"-\",IF(COUNTA('Enrollment Form'!$CM816:$CN816)=2,\"Y\",\"N\"))","v":"-"},{"$f":"IF($B809=\"N\",\"\",IF(COUNTIF('Enrollment Form'!$CZ816:$DO816,\"Other\")=COUNTA('Enrollment Form'!$DF816,'Enrollment Form'!$DA816,'Enrollment Form'!$DK816,'Enrollment Form'!$DP816),\"Y\",\"N\"))","v":""},{"$f":"IF($B809=\"N\",\"\",IF(OR('Enrollment Form'!B816<>\"Subscriber\",'Enrollment Form'!C816=\"ROC\",COUNTIF('Enrollment Form'!AS816:AT816,\"Yes\")>=1),\"-\",IF(AND('Enrollment Form'!C816=\"Enroll\",COUNTIF('Enrollment Form'!AS816:AT816,\"No\")=2,'Enrollment Form'!AU816=\"\"),\"N\",\"Y\")))","v":""},{"$f":"IF(OR(B809=\"N\",'Enrollment Form'!B816<>\"Subscriber\",'Enrollment Form'!C816=\"ROC\",'Enrollment Form'!O816<>\"Multiple of Salary\"),\"-\",IF(COUNTA('Enrollment Form'!T816:U816)<2,\"N\",\"Y\"))","v":"-"},{"$f":"IF(B809=\"N\",\"\",IF(OR('Enrollment Form'!C816=\"ROC\",'Enrollment Form'!B816<>\"Subscriber\",'Enrollment Form'!O816=\"Waive\",'Enrollment Form'!O816=\"\"),\"-\",IF('Enrollment Form'!P816=\"\",\"N\",\"Y\")))","v":""},{"$f":"IF($B809=\"N\",\"\",IF(AND('Enrollment Form'!$C816=\"ROC\",'Enrollment Form'!$DS816<>\"\"),\"Y\",IF(AND('Enrollment Form'!$C816=\"ROC\",'Enrollment Form'!$DS816=\"\"),\"N\",IF(AND('Enrollment Form'!$C816=\"Enroll\",'Enrollment Form'!$B816=\"Subscriber\",'Enrollment Form'!$CQ816=\"No\",'Enrollment Form'!$DS816=\"\"),\"N\",IF(AND('Enrollment Form'!$C816=\"Enroll\",'Enrollment Form'!$B816=\"Subscriber\",'Enrollment Form'!$CQ816=\"Yes\"),\"-\",\"Y\")))))","v":""},{"$f":"IF($B809=\"N\",\"\",IF(AND('Enrollment Form'!$C816=\"ROC\",'Enrollment Form'!$DT816<>\"\"),\"Y\",IF(AND('Enrollment Form'!$C816=\"ROC\",'Enrollment Form'!$DT816=\"\"),\"N\",IF(AND('Enrollment Form'!$C816=\"Enroll\",'Enrollment Form'!$B816=\"Subscriber\",'Enrollment Form'!$CQ816=\"No\",'Enrollment Form'!$DT816=\"\"),\"N\",IF(AND('Enrollment Form'!$C816=\"Enroll\",'Enrollment Form'!$B816=\"Subscriber\",'Enrollment Form'!$CQ816=\"Yes\"),\"-\",\"Y\")))))","v":""},{"$f":"IF('Enrollment Form'!AH816=\"\",\"\",IF(ISERROR(SEARCH(\".\",'Enrollment Form'!AH816,SEARCH(\"@\",'Enrollment Form'!AH816))),\"N\",\"Y\"))","v":""},{"$f":"IF(OR($B809=\"N\",'Enrollment Form'!$G816=\"\"),\"\",IF('Enrollment Form'!$B816<>\"Subscriber\",\"-\",IF(COUNTIF('Enrollment Form'!$AS816:$AT816,\"Yes\")=2,\"N\",\"Y\")))","v":""},{"$f":"IF(OR('Enrollment Form'!$CC816=\"\",'Enrollment Form'!$CC816=\"No\"),\"-\",IF(AND('Enrollment Form'!$CC816=\"Yes\",'Enrollment Form'!$CD816=\"\"),\"N\",\"Y\"))","v":"-"},{"$f":"IF(OR('Enrollment Form'!$CE816=\"\",'Enrollment Form'!$CE816=\"No\"),\"-\",IF(AND('Enrollment Form'!$CE816=\"Yes\",'Enrollment Form'!$CF816=\"\"),\"N\",\"Y\"))","v":"-"},{"$f":"IF(OR('Enrollment Form'!$CG816=\"\",'Enrollment Form'!$CG816=\"No\"),\"-\",IF(AND('Enrollment Form'!$CG816=\"Yes\",'Enrollment Form'!$CH816=\"\"),\"N\",\"Y\"))","v":"-"},{"$f":"IF(OR('Enrollment Form'!$CG816=\"\",'Enrollment Form'!$CG816=\"No\"),\"-\",IF(AND('Enrollment Form'!$CG816=\"Yes\",'Enrollment Form'!$CI816=\"\"),\"N\",\"Y\"))","v":"-"},{"$f":"IF('Enrollment Form'!B816<>\"Subscriber\",\"-\",IF(AND('Enrollment Form'!B816=\"Subscriber\",'Enrollment Form'!C816=\"Enroll\",'Enrollment Form'!AA816=\"\"),\"N\",\"Y\"))","v":"-"},{"$f":"IF(OR('Enrollment Form'!B816=\"Subscriber\",'Enrollment Form'!B816=\"\"),\"-\",IF('Enrollment Form'!BI816=\"\",\"N\",\"Y\"))","v":"-"},{"$f":"IF('Enrollment Form'!B816<>\"Subscriber\",\"-\",IF(AND('Enrollment Form'!B816=\"Subscriber\",'Enrollment Form'!G816=\"\"),\"N\",\"Y\"))","v":"-"},{"$f":"IF('Enrollment Form'!A816=\"\",\"\",IF('Enrollment Form'!B816=\"Subscriber\",\"-\",IF(AND('Enrollment Form'!B816<>\"Subscriber\",'Enrollment Form'!G816='Enrollment Form'!H816),\"N\",\"Y\")))","v":""},0]
[817,{"$f":"IF('Enrollment Form'!$A817<>\"\",\"Y\",\"N\")","v":"N"},{"$f":"IF(AND('Enrollment Form'!$B817=\"\",'Enrollment Form'!$C817<>\"\"),\"N\",IF($B810=\"N\",\"\",\"Y\"))","v":""},{"$f":"IF(OR($B810=\"N\",'Enrollment Form'!G817=\"\"),\"\",IF('Enrollment Form'!$B817<>\"Subscriber\",\"\",IF('Enrollment Form'!$G817='Enrollment Form'!$H817,\"Y\",\"N\")))","v":""},{"$f":"IF($B810=\"N\",\"\",IF(AND(COUNTIFS('Enrollment Form'!$H$11:$H$1000,'Enrollment Form'!$H817,'Enrollment Form'!$B$11:$B$1000,'Enrollment Form'!$B817)>1,'Enrollment Form'!$H817<>\"\"),\"N\",\"Y\"))","v":""},{"$f":"IF($B810=\"N\",\"\",IF(LEN('Enrollment Form'!$Y817)=0,\"\",IF(LEN('Enrollment Form'!$Y817)<>5,\"N\",\"Y\")))","v":""},{"$f":"IF($B810=\"N\",\"\",IF(LEN('Enrollment Form'!$AD817=0),\"\",IF(LEN('Enrollment Form'!$AD817)<>5,\"N\",\"Y\")))","v":""},{"$f":"IF($B810=\"N\",\"\",IF(LEN('Enrollment Form'!$BL817=0),\"\",IF(LEN('Enrollment Form'!$BL817)<>5,\"N\",\"Y\")))","v":""},{"$f":"IF($B810=\"N\",\"\",IF(LEN('Enrollment Form'!$AE817)=0,\"\",IF(LEN('Enrollment Form'!$AE817)<>10,\"N\",\"Y\")))","v":""},{"$f":"IF($B810=\"N\",\"\",IF(LEN('Enrollment Form'!$AF817)=0,\"\",IF(LEN('Enrollment Form'!$AF817)<>10,\"N\",\"Y\")))","v":""},{"$f":"IF('Enrollment Form'!$O817<>\"Graded\",\"-\",IF(AND('Enrollment Form'!$O817=\"Graded\",'Enrollment Form'!$AO817<>\"\"),\"Y\",\"N\"))","v":"-"},{"$f":"IF($B810=\"N\",\"\",IF(OR('Enrollment Form'!$B817<>\"Subscriber\",'Enrollment Form'!$C817=\"ROC\"),\"-\",IF(AND('Enrollment Form'!$B817=\"Subscriber\",'Enrollment Form'!$C817=\"Enroll\",'Enrollment Form'!$AJ817<>\"\"),\"Y\",\"N\")))","v":""},{"$f":"IF($B810=\"N\",\"\",IF(OR('Enrollment Form'!$B817<>\"Subscriber\",'Enrollment Form'!$C817=\"ROC\"),\"-\",IF(AND('Enrollment Form'!$B817=\"Subscriber\",'Enrollment Form'!$C817=\"Enroll\",'Enrollment Form'!$AK817<>\"\"),\"Y\",\"N\")))","v":""},{"$f":"IF($B810=\"N\",\"\",IF(OR('Enrollment Form'!$B817<>\"Subscriber\",'Enrollment Form'!$C817=\"ROC\"),\"-\",IF(AND('Enrollment Form'!$B817=\"Subscriber\",'Enrollment Form'!$C817=\"Enroll\",'Enrollment Form'!$AL817<>\"\"),\"Y\",\"N\")))","v":""},{"$f":"IF($B810=\"N\",\"\",IF(OR('Enrollment Form'!$B817<>\"Subscriber\",'Enrollment Form'!$C817=\"ROC\"),\"-\",IF(AND('Enrollment Form'!$B817=\"Subscriber\",'Enrollment Form'!$C817=\"Enroll\",'Enrollment Form'!$AM817<>\"\"),\"Y\",\"N\")))","v":""},{"$f":"IF($B810=\"N\",\"\",IF(OR('Enrollment Form'!$B817<>\"Subscriber\",'Enrollment Form'!$C817=\"ROC\"),\"-\",IF(AND('Enrollment Form'!$B817=\"Subscriber\",'Enrollment Form'!$C817=\"Enroll\",'Enrollment Form'!$AN817<>\"\"),\"Y\",\"N\")))","v":""},{"$f":"IF($B810=\"N\",\"\",IF(OR('Enrollment Form'!$B817<>\"Subscriber\",'Enrollment Form'!$C817=\"ROC\"),\"-\",IF(AND('Enrollment Form'!$B817=\"Subscriber\",'Enrollment Form'!$C817=\"Enroll\",'Enrollment Form'!$AP817<>\"\"),\"Y\",\"N\")))","v":""},{"$f":"IF($B810=\"N\",\"\",IF($Q810=\"-\",\"-\",IF(AND($Q810=\"Y\",'Enrollment Form'!$AP817=\"No\"),\"-\",IF(AND($Q810=\"Y\",'Enrollment Form'!$AP817=\"Yes\",'Enrollment Form'!$AQ817<>\"\"),\"Y\",\"N\"))))","v":""},{"$f":"IF($B810=\"N\",\"\",IF(OR('Enrollment Form'!$B817<>\"Subscriber\",'Enrollment Form'!$C817=\"ROC\"),\"-\",IF(AND('Enrollment Form'!$B817=\"Subscriber\",'Enrollment Form'!$C817=\"Enroll\",'Enrollment Form'!$CO817<>\"\"),\"Y\",\"N\")))","v":""},{"$f":"IF($B810=\"N\",\"\",IF($S810=\"-\",\"-\",IF(AND($S810=\"Y\",'Enrollment Form'!$CO817=\"No\"),\"-\",IF(AND($S810=\"Y\",'Enrollment Form'!$CO817=\"Yes\",'Enrollment Form'!$CP817<>\"\"),\"Y\",\"N\"))))","v":""},{"$f":"IF(OR('Enrollment Form'!$AV817=\"Yes\",'Enrollment Form'!$AV817=\"\"),\"-\",IF(AND('Enrollment Form'!$AV817=\"No\",ISERROR(FIND(\"HMO\",VLOOKUP('Enrollment Form'!G817,'Enrollment Form'!H$11:J$1000,3,FALSE),1))=FALSE,COUNTA('Enrollment Form'!$AW817:$AZ817)=4),\"Y\",\"N\"))","v":"-"},{"$f":"IF($B810=\"N\",\"\",IF('Enrollment Form'!$B817=\"Subscriber\",\"-\",IF(COUNTA('Enrollment Form'!$BE817,'Enrollment Form'!$BG817)=2,\"Y\",\"N\")))","v":""},{"$f":"IF($B810=\"N\",\"\",IF(OR('Enrollment Form'!$AU817=\"\",'Enrollment Form'!$AU817=\"No\"),\"-\",IF(AND('Enrollment Form'!$AU817=\"Yes\",COUNTA('Enrollment Form'!$CK817)=1),\"Y\",\"N\")))","v":""},{"$f":"IF(OR('Enrollment Form'!$CK817=\"\",'Enrollment Form'!$CK817=\"No\"),\"-\",IF(COUNTA('Enrollment Form'!$CM817:$CN817)=2,\"Y\",\"N\"))","v":"-"},{"$f":"IF($B810=\"N\",\"\",IF(COUNTIF('Enrollment Form'!$CZ817:$DO817,\"Other\")=COUNTA('Enrollment Form'!$DF817,'Enrollment Form'!$DA817,'Enrollment Form'!$DK817,'Enrollment Form'!$DP817),\"Y\",\"N\"))","v":""},{"$f":"IF($B810=\"N\",\"\",IF(OR('Enrollment Form'!B817<>\"Subscriber\",'Enrollment Form'!C817=\"ROC\",COUNTIF('Enrollment Form'!AS817:AT817,\"Yes\")>=1),\"-\",IF(AND('Enrollment Form'!C817=\"Enroll\",COUNTIF('Enrollment Form'!AS817:AT817,\"No\")=2,'Enrollment Form'!AU817=\"\"),\"N\",\"Y\")))","v":""},{"$f":"IF(OR(B810=\"N\",'Enrollment Form'!B817<>\"Subscriber\",'Enrollment Form'!C817=\"ROC\",'Enrollment Form'!O817<>\"Multiple of Salary\"),\"-\",IF(COUNTA('Enrollment Form'!T817:U817)<2,\"N\",\"Y\"))","v":"-"},{"$f":"IF(B810=\"N\",\"\",IF(OR('Enrollment Form'!C817=\"ROC\",'Enrollment Form'!B817<>\"Subscriber\",'Enrollment Form'!O817=\"Waive\",'Enrollment Form'!O817=\"\"),\"-\",IF('Enrollment Form'!P817=\"\",\"N\",\"Y\")))","v":""},{"$f":"IF($B810=\"N\",\"\",IF(AND('Enrollment Form'!$C817=\"ROC\",'Enrollment Form'!$DS817<>\"\"),\"Y\",IF(AND('Enrollment Form'!$C817=\"ROC\",'Enrollment Form'!$DS817=\"\"),\"N\",IF(AND('Enrollment Form'!$C817=\"Enroll\",'Enrollment Form'!$B817=\"Subscriber\",'Enrollment Form'!$CQ817=\"No\",'Enrollment Form'!$DS817=\"\"),\"N\",IF(AND('Enrollment Form'!$C817=\"Enroll\",'Enrollment Form'!$B817=\"Subscriber\",'Enrollment Form'!$CQ817=\"Yes\"),\"-\",\"Y\")))))","v":""},{"$f":"IF($B810=\"N\",\"\",IF(AND('Enrollment Form'!$C817=\"ROC\",'Enrollment Form'!$DT817<>\"\"),\"Y\",IF(AND('Enrollment Form'!$C817=\"ROC\",'Enrollment Form'!$DT817=\"\"),\"N\",IF(AND('Enrollment Form'!$C817=\"Enroll\",'Enrollment Form'!$B817=\"Subscriber\",'Enrollment Form'!$CQ817=\"No\",'Enrollment Form'!$DT817=\"\"),\"N\",IF(AND('Enrollment Form'!$C817=\"Enroll\",'Enrollment Form'!$B817=\"Subscriber\",'Enrollment Form'!$CQ817=\"Yes\"),\"-\",\"Y\")))))","v":""},{"$f":"IF('Enrollment Form'!AH817=\"\",\"\",IF(ISERROR(SEARCH(\".\",'Enrollment Form'!AH817,SEARCH(\"@\",'Enrollment Form'!AH817))),\"N\",\"Y\"))","v":""},{"$f":"IF(OR($B810=\"N\",'Enrollment Form'!$G817=\"\"),\"\",IF('Enrollment Form'!$B817<>\"Subscriber\",\"-\",IF(COUNTIF('Enrollment Form'!$AS817:$AT817,\"Yes\")=2,\"N\",\"Y\")))","v":""},{"$f":"IF(OR('Enrollment Form'!$CC817=\"\",'Enrollment Form'!$CC817=\"No\"),\"-\",IF(AND('Enrollment Form'!$CC817=\"Yes\",'Enrollment Form'!$CD817=\"\"),\"N\",\"Y\"))","v":"-"},{"$f":"IF(OR('Enrollment Form'!$CE817=\"\",'Enrollment Form'!$CE817=\"No\"),\"-\",IF(AND('Enrollment Form'!$CE817=\"Yes\",'Enrollment Form'!$CF817=\"\"),\"N\",\"Y\"))","v":"-"},{"$f":"IF(OR('Enrollment Form'!$CG817=\"\",'Enrollment Form'!$CG817=\"No\"),\"-\",IF(AND('Enrollment Form'!$CG817=\"Yes\",'Enrollment Form'!$CH817=\"\"),\"N\",\"Y\"))","v":"-"},{"$f":"IF(OR('Enrollment Form'!$CG817=\"\",'Enrollment Form'!$CG817=\"No\"),\"-\",IF(AND('Enrollment Form'!$CG817=\"Yes\",'Enrollment Form'!$CI817=\"\"),\"N\",\"Y\"))","v":"-"},{"$f":"IF('Enrollment Form'!B817<>\"Subscriber\",\"-\",IF(AND('Enrollment Form'!B817=\"Subscriber\",'Enrollment Form'!C817=\"Enroll\",'Enrollment Form'!AA817=\"\"),\"N\",\"Y\"))","v":"-"},{"$f":"IF(OR('Enrollment Form'!B817=\"Subscriber\",'Enrollment Form'!B817=\"\"),\"-\",IF('Enrollment Form'!BI817=\"\",\"N\",\"Y\"))","v":"-"},{"$f":"IF('Enrollment Form'!B817<>\"Subscriber\",\"-\",IF(AND('Enrollment Form'!B817=\"Subscriber\",'Enrollment Form'!G817=\"\"),\"N\",\"Y\"))","v":"-"},{"$f":"IF('Enrollment Form'!A817=\"\",\"\",IF('Enrollment Form'!B817=\"Subscriber\",\"-\",IF(AND('Enrollment Form'!B817<>\"Subscriber\",'Enrollment Form'!G817='Enrollment Form'!H817),\"N\",\"Y\")))","v":""},0]
[818,{"$f":"IF('Enrollment Form'!$A818<>\"\",\"Y\",\"N\")","v":"N"},{"$f":"IF(AND('Enrollment Form'!$B818=\"\",'Enrollment Form'!$C818<>\"\"),\"N\",IF($B811=\"N\",\"\",\"Y\"))","v":""},{"$f":"IF(OR($B811=\"N\",'Enrollment Form'!G818=\"\"),\"\",IF('Enrollment Form'!$B818<>\"Subscriber\",\"\",IF('Enrollment Form'!$G818='Enrollment Form'!$H818,\"Y\",\"N\")))","v":""},{"$f":"IF($B811=\"N\",\"\",IF(AND(COUNTIFS('Enrollment Form'!$H$11:$H$1000,'Enrollment Form'!$H818,'Enrollment Form'!$B$11:$B$1000,'Enrollment Form'!$B818)>1,'Enrollment Form'!$H818<>\"\"),\"N\",\"Y\"))","v":""},{"$f":"IF($B811=\"N\",\"\",IF(LEN('Enrollment Form'!$Y818)=0,\"\",IF(LEN('Enrollment Form'!$Y818)<>5,\"N\",\"Y\")))","v":""},{"$f":"IF($B811=\"N\",\"\",IF(LEN('Enrollment Form'!$AD818=0),\"\",IF(LEN('Enrollment Form'!$AD818)<>5,\"N\",\"Y\")))","v":""},{"$f":"IF($B811=\"N\",\"\",IF(LEN('Enrollment Form'!$BL818=0),\"\",IF(LEN('Enrollment Form'!$BL818)<>5,\"N\",\"Y\")))","v":""},{"$f":"IF($B811=\"N\",\"\",IF(LEN('Enrollment Form'!$AE818)=0,\"\",IF(LEN('Enrollment Form'!$AE818)<>10,\"N\",\"Y\")))","v":""},{"$f":"IF($B811=\"N\",\"\",IF(LEN('Enrollment Form'!$AF818)=0,\"\",IF(LEN('Enrollment Form'!$AF818)<>10,\"N\",\"Y\")))","v":""},{"$f":"IF('Enrollment Form'!$O818<>\"Graded\",\"-\",IF(AND('Enrollment Form'!$O818=\"Graded\",'Enrollment Form'!$AO818<>\"\"),\"Y\",\"N\"))","v":"-"},{"$f":"IF($B811=\"N\",\"\",IF(OR('Enrollment Form'!$B818<>\"Subscriber\",'Enrollment Form'!$C818=\"ROC\"),\"-\",IF(AND('Enrollment Form'!$B818=\"Subscriber\",'Enrollment Form'!$C818=\"Enroll\",'Enrollment Form'!$AJ818<>\"\"),\"Y\",\"N\")))","v":""},{"$f":"IF($B811=\"N\",\"\",IF(OR('Enrollment Form'!$B818<>\"Subscriber\",'Enrollment Form'!$C818=\"ROC\"),\"-\",IF(AND('Enrollment Form'!$B818=\"Subscriber\",'Enrollment Form'!$C818=\"Enroll\",'Enrollment Form'!$AK818<>\"\"),\"Y\",\"N\")))","v":""},{"$f":"IF($B811=\"N\",\"\",IF(OR('Enrollment Form'!$B818<>\"Subscriber\",'Enrollment Form'!$C818=\"ROC\"),\"-\",IF(AND('Enrollment Form'!$B818=\"Subscriber\",'Enrollment Form'!$C818=\"Enroll\",'Enrollment Form'!$AL818<>\"\"),\"Y\",\"N\")))","v":""},{"$f":"IF($B811=\"N\",\"\",IF(OR('Enrollment Form'!$B818<>\"Subscriber\",'Enrollment Form'!$C818=\"ROC\"),\"-\",IF(AND('Enrollment Form'!$B818=\"Subscriber\",'Enrollment Form'!$C818=\"Enroll\",'Enrollment Form'!$AM818<>\"\"),\"Y\",\"N\")))","v":""},{"$f":"IF($B811=\"N\",\"\",IF(OR('Enrollment Form'!$B818<>\"Subscriber\",'Enrollment Form'!$C818=\"ROC\"),\"-\",IF(AND('Enrollment Form'!$B818=\"Subscriber\",'Enrollment Form'!$C818=\"Enroll\",'Enrollment Form'!$AN818<>\"\"),\"Y\",\"N\")))","v":""},{"$f":"IF($B811=\"N\",\"\",IF(OR('Enrollment Form'!$B818<>\"Subscriber\",'Enrollment Form'!$C818=\"ROC\"),\"-\",IF(AND('Enrollment Form'!$B818=\"Subscriber\",'Enrollment Form'!$C818=\"Enroll\",'Enrollment Form'!$AP818<>\"\"),\"Y\",\"N\")))","v":""},{"$f":"IF($B811=\"N\",\"\",IF($Q811=\"-\",\"-\",IF(AND($Q811=\"Y\",'Enrollment Form'!$AP818=\"No\"),\"-\",IF(AND($Q811=\"Y\",'Enrollment Form'!$AP818=\"Yes\",'Enrollment Form'!$AQ818<>\"\"),\"Y\",\"N\"))))","v":""},{"$f":"IF($B811=\"N\",\"\",IF(OR('Enrollment Form'!$B818<>\"Subscriber\",'Enrollment Form'!$C818=\"ROC\"),\"-\",IF(AND('Enrollment Form'!$B818=\"Subscriber\",'Enrollment Form'!$C818=\"Enroll\",'Enrollment Form'!$CO818<>\"\"),\"Y\",\"N\")))","v":""},{"$f":"IF($B811=\"N\",\"\",IF($S811=\"-\",\"-\",IF(AND($S811=\"Y\",'Enrollment Form'!$CO818=\"No\"),\"-\",IF(AND($S811=\"Y\",'Enrollment Form'!$CO818=\"Yes\",'Enrollment Form'!$CP818<>\"\"),\"Y\",\"N\"))))","v":""},{"$f":"IF(OR('Enrollment Form'!$AV818=\"Yes\",'Enrollment Form'!$AV818=\"\"),\"-\",IF(AND('Enrollment Form'!$AV818=\"No\",ISERROR(FIND(\"HMO\",VLOOKUP('Enrollment Form'!G818,'Enrollment Form'!H$11:J$1000,3,FALSE),1))=FALSE,COUNTA('Enrollment Form'!$AW818:$AZ818)=4),\"Y\",\"N\"))","v":"-"},{"$f":"IF($B811=\"N\",\"\",IF('Enrollment Form'!$B818=\"Subscriber\",\"-\",IF(COUNTA('Enrollment Form'!$BE818,'Enrollment Form'!$BG818)=2,\"Y\",\"N\")))","v":""},{"$f":"IF($B811=\"N\",\"\",IF(OR('Enrollment Form'!$AU818=\"\",'Enrollment Form'!$AU818=\"No\"),\"-\",IF(AND('Enrollment Form'!$AU818=\"Yes\",COUNTA('Enrollment Form'!$CK818)=1),\"Y\",\"N\")))","v":""},{"$f":"IF(OR('Enrollment Form'!$CK818=\"\",'Enrollment Form'!$CK818=\"No\"),\"-\",IF(COUNTA('Enrollment Form'!$CM818:$CN818)=2,\"Y\",\"N\"))","v":"-"},{"$f":"IF($B811=\"N\",\"\",IF(COUNTIF('Enrollment Form'!$CZ818:$DO818,\"Other\")=COUNTA('Enrollment Form'!$DF818,'Enrollment Form'!$DA818,'Enrollment Form'!$DK818,'Enrollment Form'!$DP818),\"Y\",\"N\"))","v":""},{"$f":"IF($B811=\"N\",\"\",IF(OR('Enrollment Form'!B818<>\"Subscriber\",'Enrollment Form'!C818=\"ROC\",COUNTIF('Enrollment Form'!AS818:AT818,\"Yes\")>=1),\"-\",IF(AND('Enrollment Form'!C818=\"Enroll\",COUNTIF('Enrollment Form'!AS818:AT818,\"No\")=2,'Enrollment Form'!AU818=\"\"),\"N\",\"Y\")))","v":""},{"$f":"IF(OR(B811=\"N\",'Enrollment Form'!B818<>\"Subscriber\",'Enrollment Form'!C818=\"ROC\",'Enrollment Form'!O818<>\"Multiple of Salary\"),\"-\",IF(COUNTA('Enrollment Form'!T818:U818)<2,\"N\",\"Y\"))","v":"-"},{"$f":"IF(B811=\"N\",\"\",IF(OR('Enrollment Form'!C818=\"ROC\",'Enrollment Form'!B818<>\"Subscriber\",'Enrollment Form'!O818=\"Waive\",'Enrollment Form'!O818=\"\"),\"-\",IF('Enrollment Form'!P818=\"\",\"N\",\"Y\")))","v":""},{"$f":"IF($B811=\"N\",\"\",IF(AND('Enrollment Form'!$C818=\"ROC\",'Enrollment Form'!$DS818<>\"\"),\"Y\",IF(AND('Enrollment Form'!$C818=\"ROC\",'Enrollment Form'!$DS818=\"\"),\"N\",IF(AND('Enrollment Form'!$C818=\"Enroll\",'Enrollment Form'!$B818=\"Subscriber\",'Enrollment Form'!$CQ818=\"No\",'Enrollment Form'!$DS818=\"\"),\"N\",IF(AND('Enrollment Form'!$C818=\"Enroll\",'Enrollment Form'!$B818=\"Subscriber\",'Enrollment Form'!$CQ818=\"Yes\"),\"-\",\"Y\")))))","v":""},{"$f":"IF($B811=\"N\",\"\",IF(AND('Enrollment Form'!$C818=\"ROC\",'Enrollment Form'!$DT818<>\"\"),\"Y\",IF(AND('Enrollment Form'!$C818=\"ROC\",'Enrollment Form'!$DT818=\"\"),\"N\",IF(AND('Enrollment Form'!$C818=\"Enroll\",'Enrollment Form'!$B818=\"Subscriber\",'Enrollment Form'!$CQ818=\"No\",'Enrollment Form'!$DT818=\"\"),\"N\",IF(AND('Enrollment Form'!$C818=\"Enroll\",'Enrollment Form'!$B818=\"Subscriber\",'Enrollment Form'!$CQ818=\"Yes\"),\"-\",\"Y\")))))","v":""},{"$f":"IF('Enrollment Form'!AH818=\"\",\"\",IF(ISERROR(SEARCH(\".\",'Enrollment Form'!AH818,SEARCH(\"@\",'Enrollment Form'!AH818))),\"N\",\"Y\"))","v":""},{"$f":"IF(OR($B811=\"N\",'Enrollment Form'!$G818=\"\"),\"\",IF('Enrollment Form'!$B818<>\"Subscriber\",\"-\",IF(COUNTIF('Enrollment Form'!$AS818:$AT818,\"Yes\")=2,\"N\",\"Y\")))","v":""},{"$f":"IF(OR('Enrollment Form'!$CC818=\"\",'Enrollment Form'!$CC818=\"No\"),\"-\",IF(AND('Enrollment Form'!$CC818=\"Yes\",'Enrollment Form'!$CD818=\"\"),\"N\",\"Y\"))","v":"-"},{"$f":"IF(OR('Enrollment Form'!$CE818=\"\",'Enrollment Form'!$CE818=\"No\"),\"-\",IF(AND('Enrollment Form'!$CE818=\"Yes\",'Enrollment Form'!$CF818=\"\"),\"N\",\"Y\"))","v":"-"},{"$f":"IF(OR('Enrollment Form'!$CG818=\"\",'Enrollment Form'!$CG818=\"No\"),\"-\",IF(AND('Enrollment Form'!$CG818=\"Yes\",'Enrollment Form'!$CH818=\"\"),\"N\",\"Y\"))","v":"-"},{"$f":"IF(OR('Enrollment Form'!$CG818=\"\",'Enrollment Form'!$CG818=\"No\"),\"-\",IF(AND('Enrollment Form'!$CG818=\"Yes\",'Enrollment Form'!$CI818=\"\"),\"N\",\"Y\"))","v":"-"},{"$f":"IF('Enrollment Form'!B818<>\"Subscriber\",\"-\",IF(AND('Enrollment Form'!B818=\"Subscriber\",'Enrollment Form'!C818=\"Enroll\",'Enrollment Form'!AA818=\"\"),\"N\",\"Y\"))","v":"-"},{"$f":"IF(OR('Enrollment Form'!B818=\"Subscriber\",'Enrollment Form'!B818=\"\"),\"-\",IF('Enrollment Form'!BI818=\"\",\"N\",\"Y\"))","v":"-"},{"$f":"IF('Enrollment Form'!B818<>\"Subscriber\",\"-\",IF(AND('Enrollment Form'!B818=\"Subscriber\",'Enrollment Form'!G818=\"\"),\"N\",\"Y\"))","v":"-"},{"$f":"IF('Enrollment Form'!A818=\"\",\"\",IF('Enrollment Form'!B818=\"Subscriber\",\"-\",IF(AND('Enrollment Form'!B818<>\"Subscriber\",'Enrollment Form'!G818='Enrollment Form'!H818),\"N\",\"Y\")))","v":""},0]
[819,{"$f":"IF('Enrollment Form'!$A819<>\"\",\"Y\",\"N\")","v":"N"},{"$f":"IF(AND('Enrollment Form'!$B819=\"\",'Enrollment Form'!$C819<>\"\"),\"N\",IF($B812=\"N\",\"\",\"Y\"))","v":""},{"$f":"IF(OR($B812=\"N\",'Enrollment Form'!G819=\"\"),\"\",IF('Enrollment Form'!$B819<>\"Subscriber\",\"\",IF('Enrollment Form'!$G819='Enrollment Form'!$H819,\"Y\",\"N\")))","v":""},{"$f":"IF($B812=\"N\",\"\",IF(AND(COUNTIFS('Enrollment Form'!$H$11:$H$1000,'Enrollment Form'!$H819,'Enrollment Form'!$B$11:$B$1000,'Enrollment Form'!$B819)>1,'Enrollment Form'!$H819<>\"\"),\"N\",\"Y\"))","v":""},{"$f":"IF($B812=\"N\",\"\",IF(LEN('Enrollment Form'!$Y819)=0,\"\",IF(LEN('Enrollment Form'!$Y819)<>5,\"N\",\"Y\")))","v":""},{"$f":"IF($B812=\"N\",\"\",IF(LEN('Enrollment Form'!$AD819=0),\"\",IF(LEN('Enrollment Form'!$AD819)<>5,\"N\",\"Y\")))","v":""},{"$f":"IF($B812=\"N\",\"\",IF(LEN('Enrollment Form'!$BL819=0),\"\",IF(LEN('Enrollment Form'!$BL819)<>5,\"N\",\"Y\")))","v":""},{"$f":"IF($B812=\"N\",\"\",IF(LEN('Enrollment Form'!$AE819)=0,\"\",IF(LEN('Enrollment Form'!$AE819)<>10,\"N\",\"Y\")))","v":""},{"$f":"IF($B812=\"N\",\"\",IF(LEN('Enrollment Form'!$AF819)=0,\"\",IF(LEN('Enrollment Form'!$AF819)<>10,\"N\",\"Y\")))","v":""},{"$f":"IF('Enrollment Form'!$O819<>\"Graded\",\"-\",IF(AND('Enrollment Form'!$O819=\"Graded\",'Enrollment Form'!$AO819<>\"\"),\"Y\",\"N\"))","v":"-"},{"$f":"IF($B812=\"N\",\"\",IF(OR('Enrollment Form'!$B819<>\"Subscriber\",'Enrollment Form'!$C819=\"ROC\"),\"-\",IF(AND('Enrollment Form'!$B819=\"Subscriber\",'Enrollment Form'!$C819=\"Enroll\",'Enrollment Form'!$AJ819<>\"\"),\"Y\",\"N\")))","v":""},{"$f":"IF($B812=\"N\",\"\",IF(OR('Enrollment Form'!$B819<>\"Subscriber\",'Enrollment Form'!$C819=\"ROC\"),\"-\",IF(AND('Enrollment Form'!$B819=\"Subscriber\",'Enrollment Form'!$C819=\"Enroll\",'Enrollment Form'!$AK819<>\"\"),\"Y\",\"N\")))","v":""},{"$f":"IF($B812=\"N\",\"\",IF(OR('Enrollment Form'!$B819<>\"Subscriber\",'Enrollment Form'!$C819=\"ROC\"),\"-\",IF(AND('Enrollment Form'!$B819=\"Subscriber\",'Enrollment Form'!$C819=\"Enroll\",'Enrollment Form'!$AL819<>\"\"),\"Y\",\"N\")))","v":""},{"$f":"IF($B812=\"N\",\"\",IF(OR('Enrollment Form'!$B819<>\"Subscriber\",'Enrollment Form'!$C819=\"ROC\"),\"-\",IF(AND('Enrollment Form'!$B819=\"Subscriber\",'Enrollment Form'!$C819=\"Enroll\",'Enrollment Form'!$AM819<>\"\"),\"Y\",\"N\")))","v":""},{"$f":"IF($B812=\"N\",\"\",IF(OR('Enrollment Form'!$B819<>\"Subscriber\",'Enrollment Form'!$C819=\"ROC\"),\"-\",IF(AND('Enrollment Form'!$B819=\"Subscriber\",'Enrollment Form'!$C819=\"Enroll\",'Enrollment Form'!$AN819<>\"\"),\"Y\",\"N\")))","v":""},{"$f":"IF($B812=\"N\",\"\",IF(OR('Enrollment Form'!$B819<>\"Subscriber\",'Enrollment Form'!$C819=\"ROC\"),\"-\",IF(AND('Enrollment Form'!$B819=\"Subscriber\",'Enrollment Form'!$C819=\"Enroll\",'Enrollment Form'!$AP819<>\"\"),\"Y\",\"N\")))","v":""},{"$f":"IF($B812=\"N\",\"\",IF($Q812=\"-\",\"-\",IF(AND($Q812=\"Y\",'Enrollment Form'!$AP819=\"No\"),\"-\",IF(AND($Q812=\"Y\",'Enrollment Form'!$AP819=\"Yes\",'Enrollment Form'!$AQ819<>\"\"),\"Y\",\"N\"))))","v":""},{"$f":"IF($B812=\"N\",\"\",IF(OR('Enrollment Form'!$B819<>\"Subscriber\",'Enrollment Form'!$C819=\"ROC\"),\"-\",IF(AND('Enrollment Form'!$B819=\"Subscriber\",'Enrollment Form'!$C819=\"Enroll\",'Enrollment Form'!$CO819<>\"\"),\"Y\",\"N\")))","v":""},{"$f":"IF($B812=\"N\",\"\",IF($S812=\"-\",\"-\",IF(AND($S812=\"Y\",'Enrollment Form'!$CO819=\"No\"),\"-\",IF(AND($S812=\"Y\",'Enrollment Form'!$CO819=\"Yes\",'Enrollment Form'!$CP819<>\"\"),\"Y\",\"N\"))))","v":""},{"$f":"IF(OR('Enrollment Form'!$AV819=\"Yes\",'Enrollment Form'!$AV819=\"\"),\"-\",IF(AND('Enrollment Form'!$AV819=\"No\",ISERROR(FIND(\"HMO\",VLOOKUP('Enrollment Form'!G819,'Enrollment Form'!H$11:J$1000,3,FALSE),1))=FALSE,COUNTA('Enrollment Form'!$AW819:$AZ819)=4),\"Y\",\"N\"))","v":"-"},{"$f":"IF($B812=\"N\",\"\",IF('Enrollment Form'!$B819=\"Subscriber\",\"-\",IF(COUNTA('Enrollment Form'!$BE819,'Enrollment Form'!$BG819)=2,\"Y\",\"N\")))","v":""},{"$f":"IF($B812=\"N\",\"\",IF(OR('Enrollment Form'!$AU819=\"\",'Enrollment Form'!$AU819=\"No\"),\"-\",IF(AND('Enrollment Form'!$AU819=\"Yes\",COUNTA('Enrollment Form'!$CK819)=1),\"Y\",\"N\")))","v":""},{"$f":"IF(OR('Enrollment Form'!$CK819=\"\",'Enrollment Form'!$CK819=\"No\"),\"-\",IF(COUNTA('Enrollment Form'!$CM819:$CN819)=2,\"Y\",\"N\"))","v":"-"},{"$f":"IF($B812=\"N\",\"\",IF(COUNTIF('Enrollment Form'!$CZ819:$DO819,\"Other\")=COUNTA('Enrollment Form'!$DF819,'Enrollment Form'!$DA819,'Enrollment Form'!$DK819,'Enrollment Form'!$DP819),\"Y\",\"N\"))","v":""},{"$f":"IF($B812=\"N\",\"\",IF(OR('Enrollment Form'!B819<>\"Subscriber\",'Enrollment Form'!C819=\"ROC\",COUNTIF('Enrollment Form'!AS819:AT819,\"Yes\")>=1),\"-\",IF(AND('Enrollment Form'!C819=\"Enroll\",COUNTIF('Enrollment Form'!AS819:AT819,\"No\")=2,'Enrollment Form'!AU819=\"\"),\"N\",\"Y\")))","v":""},{"$f":"IF(OR(B812=\"N\",'Enrollment Form'!B819<>\"Subscriber\",'Enrollment Form'!C819=\"ROC\",'Enrollment Form'!O819<>\"Multiple of Salary\"),\"-\",IF(COUNTA('Enrollment Form'!T819:U819)<2,\"N\",\"Y\"))","v":"-"},{"$f":"IF(B812=\"N\",\"\",IF(OR('Enrollment Form'!C819=\"ROC\",'Enrollment Form'!B819<>\"Subscriber\",'Enrollment Form'!O819=\"Waive\",'Enrollment Form'!O819=\"\"),\"-\",IF('Enrollment Form'!P819=\"\",\"N\",\"Y\")))","v":""},{"$f":"IF($B812=\"N\",\"\",IF(AND('Enrollment Form'!$C819=\"ROC\",'Enrollment Form'!$DS819<>\"\"),\"Y\",IF(AND('Enrollment Form'!$C819=\"ROC\",'Enrollment Form'!$DS819=\"\"),\"N\",IF(AND('Enrollment Form'!$C819=\"Enroll\",'Enrollment Form'!$B819=\"Subscriber\",'Enrollment Form'!$CQ819=\"No\",'Enrollment Form'!$DS819=\"\"),\"N\",IF(AND('Enrollment Form'!$C819=\"Enroll\",'Enrollment Form'!$B819=\"Subscriber\",'Enrollment Form'!$CQ819=\"Yes\"),\"-\",\"Y\")))))","v":""},{"$f":"IF($B812=\"N\",\"\",IF(AND('Enrollment Form'!$C819=\"ROC\",'Enrollment Form'!$DT819<>\"\"),\"Y\",IF(AND('Enrollment Form'!$C819=\"ROC\",'Enrollment Form'!$DT819=\"\"),\"N\",IF(AND('Enrollment Form'!$C819=\"Enroll\",'Enrollment Form'!$B819=\"Subscriber\",'Enrollment Form'!$CQ819=\"No\",'Enrollment Form'!$DT819=\"\"),\"N\",IF(AND('Enrollment Form'!$C819=\"Enroll\",'Enrollment Form'!$B819=\"Subscriber\",'Enrollment Form'!$CQ819=\"Yes\"),\"-\",\"Y\")))))","v":""},{"$f":"IF('Enrollment Form'!AH819=\"\",\"\",IF(ISERROR(SEARCH(\".\",'Enrollment Form'!AH819,SEARCH(\"@\",'Enrollment Form'!AH819))),\"N\",\"Y\"))","v":""},{"$f":"IF(OR($B812=\"N\",'Enrollment Form'!$G819=\"\"),\"\",IF('Enrollment Form'!$B819<>\"Subscriber\",\"-\",IF(COUNTIF('Enrollment Form'!$AS819:$AT819,\"Yes\")=2,\"N\",\"Y\")))","v":""},{"$f":"IF(OR('Enrollment Form'!$CC819=\"\",'Enrollment Form'!$CC819=\"No\"),\"-\",IF(AND('Enrollment Form'!$CC819=\"Yes\",'Enrollment Form'!$CD819=\"\"),\"N\",\"Y\"))","v":"-"},{"$f":"IF(OR('Enrollment Form'!$CE819=\"\",'Enrollment Form'!$CE819=\"No\"),\"-\",IF(AND('Enrollment Form'!$CE819=\"Yes\",'Enrollment Form'!$CF819=\"\"),\"N\",\"Y\"))","v":"-"},{"$f":"IF(OR('Enrollment Form'!$CG819=\"\",'Enrollment Form'!$CG819=\"No\"),\"-\",IF(AND('Enrollment Form'!$CG819=\"Yes\",'Enrollment Form'!$CH819=\"\"),\"N\",\"Y\"))","v":"-"},{"$f":"IF(OR('Enrollment Form'!$CG819=\"\",'Enrollment Form'!$CG819=\"No\"),\"-\",IF(AND('Enrollment Form'!$CG819=\"Yes\",'Enrollment Form'!$CI819=\"\"),\"N\",\"Y\"))","v":"-"},{"$f":"IF('Enrollment Form'!B819<>\"Subscriber\",\"-\",IF(AND('Enrollment Form'!B819=\"Subscriber\",'Enrollment Form'!C819=\"Enroll\",'Enrollment Form'!AA819=\"\"),\"N\",\"Y\"))","v":"-"},{"$f":"IF(OR('Enrollment Form'!B819=\"Subscriber\",'Enrollment Form'!B819=\"\"),\"-\",IF('Enrollment Form'!BI819=\"\",\"N\",\"Y\"))","v":"-"},{"$f":"IF('Enrollment Form'!B819<>\"Subscriber\",\"-\",IF(AND('Enrollment Form'!B819=\"Subscriber\",'Enrollment Form'!G819=\"\"),\"N\",\"Y\"))","v":"-"},{"$f":"IF('Enrollment Form'!A819=\"\",\"\",IF('Enrollment Form'!B819=\"Subscriber\",\"-\",IF(AND('Enrollment Form'!B819<>\"Subscriber\",'Enrollment Form'!G819='Enrollment Form'!H819),\"N\",\"Y\")))","v":""},0]
[820,{"$f":"IF('Enrollment Form'!$A820<>\"\",\"Y\",\"N\")","v":"N"},{"$f":"IF(AND('Enrollment Form'!$B820=\"\",'Enrollment Form'!$C820<>\"\"),\"N\",IF($B813=\"N\",\"\",\"Y\"))","v":""},{"$f":"IF(OR($B813=\"N\",'Enrollment Form'!G820=\"\"),\"\",IF('Enrollment Form'!$B820<>\"Subscriber\",\"\",IF('Enrollment Form'!$G820='Enrollment Form'!$H820,\"Y\",\"N\")))","v":""},{"$f":"IF($B813=\"N\",\"\",IF(AND(COUNTIFS('Enrollment Form'!$H$11:$H$1000,'Enrollment Form'!$H820,'Enrollment Form'!$B$11:$B$1000,'Enrollment Form'!$B820)>1,'Enrollment Form'!$H820<>\"\"),\"N\",\"Y\"))","v":""},{"$f":"IF($B813=\"N\",\"\",IF(LEN('Enrollment Form'!$Y820)=0,\"\",IF(LEN('Enrollment Form'!$Y820)<>5,\"N\",\"Y\")))","v":""},{"$f":"IF($B813=\"N\",\"\",IF(LEN('Enrollment Form'!$AD820=0),\"\",IF(LEN('Enrollment Form'!$AD820)<>5,\"N\",\"Y\")))","v":""},{"$f":"IF($B813=\"N\",\"\",IF(LEN('Enrollment Form'!$BL820=0),\"\",IF(LEN('Enrollment Form'!$BL820)<>5,\"N\",\"Y\")))","v":""},{"$f":"IF($B813=\"N\",\"\",IF(LEN('Enrollment Form'!$AE820)=0,\"\",IF(LEN('Enrollment Form'!$AE820)<>10,\"N\",\"Y\")))","v":""},{"$f":"IF($B813=\"N\",\"\",IF(LEN('Enrollment Form'!$AF820)=0,\"\",IF(LEN('Enrollment Form'!$AF820)<>10,\"N\",\"Y\")))","v":""},{"$f":"IF('Enrollment Form'!$O820<>\"Graded\",\"-\",IF(AND('Enrollment Form'!$O820=\"Graded\",'Enrollment Form'!$AO820<>\"\"),\"Y\",\"N\"))","v":"-"},{"$f":"IF($B813=\"N\",\"\",IF(OR('Enrollment Form'!$B820<>\"Subscriber\",'Enrollment Form'!$C820=\"ROC\"),\"-\",IF(AND('Enrollment Form'!$B820=\"Subscriber\",'Enrollment Form'!$C820=\"Enroll\",'Enrollment Form'!$AJ820<>\"\"),\"Y\",\"N\")))","v":""},{"$f":"IF($B813=\"N\",\"\",IF(OR('Enrollment Form'!$B820<>\"Subscriber\",'Enrollment Form'!$C820=\"ROC\"),\"-\",IF(AND('Enrollment Form'!$B820=\"Subscriber\",'Enrollment Form'!$C820=\"Enroll\",'Enrollment Form'!$AK820<>\"\"),\"Y\",\"N\")))","v":""},{"$f":"IF($B813=\"N\",\"\",IF(OR('Enrollment Form'!$B820<>\"Subscriber\",'Enrollment Form'!$C820=\"ROC\"),\"-\",IF(AND('Enrollment Form'!$B820=\"Subscriber\",'Enrollment Form'!$C820=\"Enroll\",'Enrollment Form'!$AL820<>\"\"),\"Y\",\"N\")))","v":""},{"$f":"IF($B813=\"N\",\"\",IF(OR('Enrollment Form'!$B820<>\"Subscriber\",'Enrollment Form'!$C820=\"ROC\"),\"-\",IF(AND('Enrollment Form'!$B820=\"Subscriber\",'Enrollment Form'!$C820=\"Enroll\",'Enrollment Form'!$AM820<>\"\"),\"Y\",\"N\")))","v":""},{"$f":"IF($B813=\"N\",\"\",IF(OR('Enrollment Form'!$B820<>\"Subscriber\",'Enrollment Form'!$C820=\"ROC\"),\"-\",IF(AND('Enrollment Form'!$B820=\"Subscriber\",'Enrollment Form'!$C820=\"Enroll\",'Enrollment Form'!$AN820<>\"\"),\"Y\",\"N\")))","v":""},{"$f":"IF($B813=\"N\",\"\",IF(OR('Enrollment Form'!$B820<>\"Subscriber\",'Enrollment Form'!$C820=\"ROC\"),\"-\",IF(AND('Enrollment Form'!$B820=\"Subscriber\",'Enrollment Form'!$C820=\"Enroll\",'Enrollment Form'!$AP820<>\"\"),\"Y\",\"N\")))","v":""},{"$f":"IF($B813=\"N\",\"\",IF($Q813=\"-\",\"-\",IF(AND($Q813=\"Y\",'Enrollment Form'!$AP820=\"No\"),\"-\",IF(AND($Q813=\"Y\",'Enrollment Form'!$AP820=\"Yes\",'Enrollment Form'!$AQ820<>\"\"),\"Y\",\"N\"))))","v":""},{"$f":"IF($B813=\"N\",\"\",IF(OR('Enrollment Form'!$B820<>\"Subscriber\",'Enrollment Form'!$C820=\"ROC\"),\"-\",IF(AND('Enrollment Form'!$B820=\"Subscriber\",'Enrollment Form'!$C820=\"Enroll\",'Enrollment Form'!$CO820<>\"\"),\"Y\",\"N\")))","v":""},{"$f":"IF($B813=\"N\",\"\",IF($S813=\"-\",\"-\",IF(AND($S813=\"Y\",'Enrollment Form'!$CO820=\"No\"),\"-\",IF(AND($S813=\"Y\",'Enrollment Form'!$CO820=\"Yes\",'Enrollment Form'!$CP820<>\"\"),\"Y\",\"N\"))))","v":""},{"$f":"IF(OR('Enrollment Form'!$AV820=\"Yes\",'Enrollment Form'!$AV820=\"\"),\"-\",IF(AND('Enrollment Form'!$AV820=\"No\",ISERROR(FIND(\"HMO\",VLOOKUP('Enrollment Form'!G820,'Enrollment Form'!H$11:J$1000,3,FALSE),1))=FALSE,COUNTA('Enrollment Form'!$AW820:$AZ820)=4),\"Y\",\"N\"))","v":"-"},{"$f":"IF($B813=\"N\",\"\",IF('Enrollment Form'!$B820=\"Subscriber\",\"-\",IF(COUNTA('Enrollment Form'!$BE820,'Enrollment Form'!$BG820)=2,\"Y\",\"N\")))","v":""},{"$f":"IF($B813=\"N\",\"\",IF(OR('Enrollment Form'!$AU820=\"\",'Enrollment Form'!$AU820=\"No\"),\"-\",IF(AND('Enrollment Form'!$AU820=\"Yes\",COUNTA('Enrollment Form'!$CK820)=1),\"Y\",\"N\")))","v":""},{"$f":"IF(OR('Enrollment Form'!$CK820=\"\",'Enrollment Form'!$CK820=\"No\"),\"-\",IF(COUNTA('Enrollment Form'!$CM820:$CN820)=2,\"Y\",\"N\"))","v":"-"},{"$f":"IF($B813=\"N\",\"\",IF(COUNTIF('Enrollment Form'!$CZ820:$DO820,\"Other\")=COUNTA('Enrollment Form'!$DF820,'Enrollment Form'!$DA820,'Enrollment Form'!$DK820,'Enrollment Form'!$DP820),\"Y\",\"N\"))","v":""},{"$f":"IF($B813=\"N\",\"\",IF(OR('Enrollment Form'!B820<>\"Subscriber\",'Enrollment Form'!C820=\"ROC\",COUNTIF('Enrollment Form'!AS820:AT820,\"Yes\")>=1),\"-\",IF(AND('Enrollment Form'!C820=\"Enroll\",COUNTIF('Enrollment Form'!AS820:AT820,\"No\")=2,'Enrollment Form'!AU820=\"\"),\"N\",\"Y\")))","v":""},{"$f":"IF(OR(B813=\"N\",'Enrollment Form'!B820<>\"Subscriber\",'Enrollment Form'!C820=\"ROC\",'Enrollment Form'!O820<>\"Multiple of Salary\"),\"-\",IF(COUNTA('Enrollment Form'!T820:U820)<2,\"N\",\"Y\"))","v":"-"},{"$f":"IF(B813=\"N\",\"\",IF(OR('Enrollment Form'!C820=\"ROC\",'Enrollment Form'!B820<>\"Subscriber\",'Enrollment Form'!O820=\"Waive\",'Enrollment Form'!O820=\"\"),\"-\",IF('Enrollment Form'!P820=\"\",\"N\",\"Y\")))","v":""},{"$f":"IF($B813=\"N\",\"\",IF(AND('Enrollment Form'!$C820=\"ROC\",'Enrollment Form'!$DS820<>\"\"),\"Y\",IF(AND('Enrollment Form'!$C820=\"ROC\",'Enrollment Form'!$DS820=\"\"),\"N\",IF(AND('Enrollment Form'!$C820=\"Enroll\",'Enrollment Form'!$B820=\"Subscriber\",'Enrollment Form'!$CQ820=\"No\",'Enrollment Form'!$DS820=\"\"),\"N\",IF(AND('Enrollment Form'!$C820=\"Enroll\",'Enrollment Form'!$B820=\"Subscriber\",'Enrollment Form'!$CQ820=\"Yes\"),\"-\",\"Y\")))))","v":""},{"$f":"IF($B813=\"N\",\"\",IF(AND('Enrollment Form'!$C820=\"ROC\",'Enrollment Form'!$DT820<>\"\"),\"Y\",IF(AND('Enrollment Form'!$C820=\"ROC\",'Enrollment Form'!$DT820=\"\"),\"N\",IF(AND('Enrollment Form'!$C820=\"Enroll\",'Enrollment Form'!$B820=\"Subscriber\",'Enrollment Form'!$CQ820=\"No\",'Enrollment Form'!$DT820=\"\"),\"N\",IF(AND('Enrollment Form'!$C820=\"Enroll\",'Enrollment Form'!$B820=\"Subscriber\",'Enrollment Form'!$CQ820=\"Yes\"),\"-\",\"Y\")))))","v":""},{"$f":"IF('Enrollment Form'!AH820=\"\",\"\",IF(ISERROR(SEARCH(\".\",'Enrollment Form'!AH820,SEARCH(\"@\",'Enrollment Form'!AH820))),\"N\",\"Y\"))","v":""},{"$f":"IF(OR($B813=\"N\",'Enrollment Form'!$G820=\"\"),\"\",IF('Enrollment Form'!$B820<>\"Subscriber\",\"-\",IF(COUNTIF('Enrollment Form'!$AS820:$AT820,\"Yes\")=2,\"N\",\"Y\")))","v":""},{"$f":"IF(OR('Enrollment Form'!$CC820=\"\",'Enrollment Form'!$CC820=\"No\"),\"-\",IF(AND('Enrollment Form'!$CC820=\"Yes\",'Enrollment Form'!$CD820=\"\"),\"N\",\"Y\"))","v":"-"},{"$f":"IF(OR('Enrollment Form'!$CE820=\"\",'Enrollment Form'!$CE820=\"No\"),\"-\",IF(AND('Enrollment Form'!$CE820=\"Yes\",'Enrollment Form'!$CF820=\"\"),\"N\",\"Y\"))","v":"-"},{"$f":"IF(OR('Enrollment Form'!$CG820=\"\",'Enrollment Form'!$CG820=\"No\"),\"-\",IF(AND('Enrollment Form'!$CG820=\"Yes\",'Enrollment Form'!$CH820=\"\"),\"N\",\"Y\"))","v":"-"},{"$f":"IF(OR('Enrollment Form'!$CG820=\"\",'Enrollment Form'!$CG820=\"No\"),\"-\",IF(AND('Enrollment Form'!$CG820=\"Yes\",'Enrollment Form'!$CI820=\"\"),\"N\",\"Y\"))","v":"-"},{"$f":"IF('Enrollment Form'!B820<>\"Subscriber\",\"-\",IF(AND('Enrollment Form'!B820=\"Subscriber\",'Enrollment Form'!C820=\"Enroll\",'Enrollment Form'!AA820=\"\"),\"N\",\"Y\"))","v":"-"},{"$f":"IF(OR('Enrollment Form'!B820=\"Subscriber\",'Enrollment Form'!B820=\"\"),\"-\",IF('Enrollment Form'!BI820=\"\",\"N\",\"Y\"))","v":"-"},{"$f":"IF('Enrollment Form'!B820<>\"Subscriber\",\"-\",IF(AND('Enrollment Form'!B820=\"Subscriber\",'Enrollment Form'!G820=\"\"),\"N\",\"Y\"))","v":"-"},{"$f":"IF('Enrollment Form'!A820=\"\",\"\",IF('Enrollment Form'!B820=\"Subscriber\",\"-\",IF(AND('Enrollment Form'!B820<>\"Subscriber\",'Enrollment Form'!G820='Enrollment Form'!H820),\"N\",\"Y\")))","v":""},0]
[821,{"$f":"IF('Enrollment Form'!$A821<>\"\",\"Y\",\"N\")","v":"N"},{"$f":"IF(AND('Enrollment Form'!$B821=\"\",'Enrollment Form'!$C821<>\"\"),\"N\",IF($B814=\"N\",\"\",\"Y\"))","v":""},{"$f":"IF(OR($B814=\"N\",'Enrollment Form'!G821=\"\"),\"\",IF('Enrollment Form'!$B821<>\"Subscriber\",\"\",IF('Enrollment Form'!$G821='Enrollment Form'!$H821,\"Y\",\"N\")))","v":""},{"$f":"IF($B814=\"N\",\"\",IF(AND(COUNTIFS('Enrollment Form'!$H$11:$H$1000,'Enrollment Form'!$H821,'Enrollment Form'!$B$11:$B$1000,'Enrollment Form'!$B821)>1,'Enrollment Form'!$H821<>\"\"),\"N\",\"Y\"))","v":""},{"$f":"IF($B814=\"N\",\"\",IF(LEN('Enrollment Form'!$Y821)=0,\"\",IF(LEN('Enrollment Form'!$Y821)<>5,\"N\",\"Y\")))","v":""},{"$f":"IF($B814=\"N\",\"\",IF(LEN('Enrollment Form'!$AD821=0),\"\",IF(LEN('Enrollment Form'!$AD821)<>5,\"N\",\"Y\")))","v":""},{"$f":"IF($B814=\"N\",\"\",IF(LEN('Enrollment Form'!$BL821=0),\"\",IF(LEN('Enrollment Form'!$BL821)<>5,\"N\",\"Y\")))","v":""},{"$f":"IF($B814=\"N\",\"\",IF(LEN('Enrollment Form'!$AE821)=0,\"\",IF(LEN('Enrollment Form'!$AE821)<>10,\"N\",\"Y\")))","v":""},{"$f":"IF($B814=\"N\",\"\",IF(LEN('Enrollment Form'!$AF821)=0,\"\",IF(LEN('Enrollment Form'!$AF821)<>10,\"N\",\"Y\")))","v":""},{"$f":"IF('Enrollment Form'!$O821<>\"Graded\",\"-\",IF(AND('Enrollment Form'!$O821=\"Graded\",'Enrollment Form'!$AO821<>\"\"),\"Y\",\"N\"))","v":"-"},{"$f":"IF($B814=\"N\",\"\",IF(OR('Enrollment Form'!$B821<>\"Subscriber\",'Enrollment Form'!$C821=\"ROC\"),\"-\",IF(AND('Enrollment Form'!$B821=\"Subscriber\",'Enrollment Form'!$C821=\"Enroll\",'Enrollment Form'!$AJ821<>\"\"),\"Y\",\"N\")))","v":""},{"$f":"IF($B814=\"N\",\"\",IF(OR('Enrollment Form'!$B821<>\"Subscriber\",'Enrollment Form'!$C821=\"ROC\"),\"-\",IF(AND('Enrollment Form'!$B821=\"Subscriber\",'Enrollment Form'!$C821=\"Enroll\",'Enrollment Form'!$AK821<>\"\"),\"Y\",\"N\")))","v":""},{"$f":"IF($B814=\"N\",\"\",IF(OR('Enrollment Form'!$B821<>\"Subscriber\",'Enrollment Form'!$C821=\"ROC\"),\"-\",IF(AND('Enrollment Form'!$B821=\"Subscriber\",'Enrollment Form'!$C821=\"Enroll\",'Enrollment Form'!$AL821<>\"\"),\"Y\",\"N\")))","v":""},{"$f":"IF($B814=\"N\",\"\",IF(OR('Enrollment Form'!$B821<>\"Subscriber\",'Enrollment Form'!$C821=\"ROC\"),\"-\",IF(AND('Enrollment Form'!$B821=\"Subscriber\",'Enrollment Form'!$C821=\"Enroll\",'Enrollment Form'!$AM821<>\"\"),\"Y\",\"N\")))","v":""},{"$f":"IF($B814=\"N\",\"\",IF(OR('Enrollment Form'!$B821<>\"Subscriber\",'Enrollment Form'!$C821=\"ROC\"),\"-\",IF(AND('Enrollment Form'!$B821=\"Subscriber\",'Enrollment Form'!$C821=\"Enroll\",'Enrollment Form'!$AN821<>\"\"),\"Y\",\"N\")))","v":""},{"$f":"IF($B814=\"N\",\"\",IF(OR('Enrollment Form'!$B821<>\"Subscriber\",'Enrollment Form'!$C821=\"ROC\"),\"-\",IF(AND('Enrollment Form'!$B821=\"Subscriber\",'Enrollment Form'!$C821=\"Enroll\",'Enrollment Form'!$AP821<>\"\"),\"Y\",\"N\")))","v":""},{"$f":"IF($B814=\"N\",\"\",IF($Q814=\"-\",\"-\",IF(AND($Q814=\"Y\",'Enrollment Form'!$AP821=\"No\"),\"-\",IF(AND($Q814=\"Y\",'Enrollment Form'!$AP821=\"Yes\",'Enrollment Form'!$AQ821<>\"\"),\"Y\",\"N\"))))","v":""},{"$f":"IF($B814=\"N\",\"\",IF(OR('Enrollment Form'!$B821<>\"Subscriber\",'Enrollment Form'!$C821=\"ROC\"),\"-\",IF(AND('Enrollment Form'!$B821=\"Subscriber\",'Enrollment Form'!$C821=\"Enroll\",'Enrollment Form'!$CO821<>\"\"),\"Y\",\"N\")))","v":""},{"$f":"IF($B814=\"N\",\"\",IF($S814=\"-\",\"-\",IF(AND($S814=\"Y\",'Enrollment Form'!$CO821=\"No\"),\"-\",IF(AND($S814=\"Y\",'Enrollment Form'!$CO821=\"Yes\",'Enrollment Form'!$CP821<>\"\"),\"Y\",\"N\"))))","v":""},{"$f":"IF(OR('Enrollment Form'!$AV821=\"Yes\",'Enrollment Form'!$AV821=\"\"),\"-\",IF(AND('Enrollment Form'!$AV821=\"No\",ISERROR(FIND(\"HMO\",VLOOKUP('Enrollment Form'!G821,'Enrollment Form'!H$11:J$1000,3,FALSE),1))=FALSE,COUNTA('Enrollment Form'!$AW821:$AZ821)=4),\"Y\",\"N\"))","v":"-"},{"$f":"IF($B814=\"N\",\"\",IF('Enrollment Form'!$B821=\"Subscriber\",\"-\",IF(COUNTA('Enrollment Form'!$BE821,'Enrollment Form'!$BG821)=2,\"Y\",\"N\")))","v":""},{"$f":"IF($B814=\"N\",\"\",IF(OR('Enrollment Form'!$AU821=\"\",'Enrollment Form'!$AU821=\"No\"),\"-\",IF(AND('Enrollment Form'!$AU821=\"Yes\",COUNTA('Enrollment Form'!$CK821)=1),\"Y\",\"N\")))","v":""},{"$f":"IF(OR('Enrollment Form'!$CK821=\"\",'Enrollment Form'!$CK821=\"No\"),\"-\",IF(COUNTA('Enrollment Form'!$CM821:$CN821)=2,\"Y\",\"N\"))","v":"-"},{"$f":"IF($B814=\"N\",\"\",IF(COUNTIF('Enrollment Form'!$CZ821:$DO821,\"Other\")=COUNTA('Enrollment Form'!$DF821,'Enrollment Form'!$DA821,'Enrollment Form'!$DK821,'Enrollment Form'!$DP821),\"Y\",\"N\"))","v":""},{"$f":"IF($B814=\"N\",\"\",IF(OR('Enrollment Form'!B821<>\"Subscriber\",'Enrollment Form'!C821=\"ROC\",COUNTIF('Enrollment Form'!AS821:AT821,\"Yes\")>=1),\"-\",IF(AND('Enrollment Form'!C821=\"Enroll\",COUNTIF('Enrollment Form'!AS821:AT821,\"No\")=2,'Enrollment Form'!AU821=\"\"),\"N\",\"Y\")))","v":""},{"$f":"IF(OR(B814=\"N\",'Enrollment Form'!B821<>\"Subscriber\",'Enrollment Form'!C821=\"ROC\",'Enrollment Form'!O821<>\"Multiple of Salary\"),\"-\",IF(COUNTA('Enrollment Form'!T821:U821)<2,\"N\",\"Y\"))","v":"-"},{"$f":"IF(B814=\"N\",\"\",IF(OR('Enrollment Form'!C821=\"ROC\",'Enrollment Form'!B821<>\"Subscriber\",'Enrollment Form'!O821=\"Waive\",'Enrollment Form'!O821=\"\"),\"-\",IF('Enrollment Form'!P821=\"\",\"N\",\"Y\")))","v":""},{"$f":"IF($B814=\"N\",\"\",IF(AND('Enrollment Form'!$C821=\"ROC\",'Enrollment Form'!$DS821<>\"\"),\"Y\",IF(AND('Enrollment Form'!$C821=\"ROC\",'Enrollment Form'!$DS821=\"\"),\"N\",IF(AND('Enrollment Form'!$C821=\"Enroll\",'Enrollment Form'!$B821=\"Subscriber\",'Enrollment Form'!$CQ821=\"No\",'Enrollment Form'!$DS821=\"\"),\"N\",IF(AND('Enrollment Form'!$C821=\"Enroll\",'Enrollment Form'!$B821=\"Subscriber\",'Enrollment Form'!$CQ821=\"Yes\"),\"-\",\"Y\")))))","v":""},{"$f":"IF($B814=\"N\",\"\",IF(AND('Enrollment Form'!$C821=\"ROC\",'Enrollment Form'!$DT821<>\"\"),\"Y\",IF(AND('Enrollment Form'!$C821=\"ROC\",'Enrollment Form'!$DT821=\"\"),\"N\",IF(AND('Enrollment Form'!$C821=\"Enroll\",'Enrollment Form'!$B821=\"Subscriber\",'Enrollment Form'!$CQ821=\"No\",'Enrollment Form'!$DT821=\"\"),\"N\",IF(AND('Enrollment Form'!$C821=\"Enroll\",'Enrollment Form'!$B821=\"Subscriber\",'Enrollment Form'!$CQ821=\"Yes\"),\"-\",\"Y\")))))","v":""},{"$f":"IF('Enrollment Form'!AH821=\"\",\"\",IF(ISERROR(SEARCH(\".\",'Enrollment Form'!AH821,SEARCH(\"@\",'Enrollment Form'!AH821))),\"N\",\"Y\"))","v":""},{"$f":"IF(OR($B814=\"N\",'Enrollment Form'!$G821=\"\"),\"\",IF('Enrollment Form'!$B821<>\"Subscriber\",\"-\",IF(COUNTIF('Enrollment Form'!$AS821:$AT821,\"Yes\")=2,\"N\",\"Y\")))","v":""},{"$f":"IF(OR('Enrollment Form'!$CC821=\"\",'Enrollment Form'!$CC821=\"No\"),\"-\",IF(AND('Enrollment Form'!$CC821=\"Yes\",'Enrollment Form'!$CD821=\"\"),\"N\",\"Y\"))","v":"-"},{"$f":"IF(OR('Enrollment Form'!$CE821=\"\",'Enrollment Form'!$CE821=\"No\"),\"-\",IF(AND('Enrollment Form'!$CE821=\"Yes\",'Enrollment Form'!$CF821=\"\"),\"N\",\"Y\"))","v":"-"},{"$f":"IF(OR('Enrollment Form'!$CG821=\"\",'Enrollment Form'!$CG821=\"No\"),\"-\",IF(AND('Enrollment Form'!$CG821=\"Yes\",'Enrollment Form'!$CH821=\"\"),\"N\",\"Y\"))","v":"-"},{"$f":"IF(OR('Enrollment Form'!$CG821=\"\",'Enrollment Form'!$CG821=\"No\"),\"-\",IF(AND('Enrollment Form'!$CG821=\"Yes\",'Enrollment Form'!$CI821=\"\"),\"N\",\"Y\"))","v":"-"},{"$f":"IF('Enrollment Form'!B821<>\"Subscriber\",\"-\",IF(AND('Enrollment Form'!B821=\"Subscriber\",'Enrollment Form'!C821=\"Enroll\",'Enrollment Form'!AA821=\"\"),\"N\",\"Y\"))","v":"-"},{"$f":"IF(OR('Enrollment Form'!B821=\"Subscriber\",'Enrollment Form'!B821=\"\"),\"-\",IF('Enrollment Form'!BI821=\"\",\"N\",\"Y\"))","v":"-"},{"$f":"IF('Enrollment Form'!B821<>\"Subscriber\",\"-\",IF(AND('Enrollment Form'!B821=\"Subscriber\",'Enrollment Form'!G821=\"\"),\"N\",\"Y\"))","v":"-"},{"$f":"IF('Enrollment Form'!A821=\"\",\"\",IF('Enrollment Form'!B821=\"Subscriber\",\"-\",IF(AND('Enrollment Form'!B821<>\"Subscriber\",'Enrollment Form'!G821='Enrollment Form'!H821),\"N\",\"Y\")))","v":""},0]
[822,{"$f":"IF('Enrollment Form'!$A822<>\"\",\"Y\",\"N\")","v":"N"},{"$f":"IF(AND('Enrollment Form'!$B822=\"\",'Enrollment Form'!$C822<>\"\"),\"N\",IF($B815=\"N\",\"\",\"Y\"))","v":""},{"$f":"IF(OR($B815=\"N\",'Enrollment Form'!G822=\"\"),\"\",IF('Enrollment Form'!$B822<>\"Subscriber\",\"\",IF('Enrollment Form'!$G822='Enrollment Form'!$H822,\"Y\",\"N\")))","v":""},{"$f":"IF($B815=\"N\",\"\",IF(AND(COUNTIFS('Enrollment Form'!$H$11:$H$1000,'Enrollment Form'!$H822,'Enrollment Form'!$B$11:$B$1000,'Enrollment Form'!$B822)>1,'Enrollment Form'!$H822<>\"\"),\"N\",\"Y\"))","v":""},{"$f":"IF($B815=\"N\",\"\",IF(LEN('Enrollment Form'!$Y822)=0,\"\",IF(LEN('Enrollment Form'!$Y822)<>5,\"N\",\"Y\")))","v":""},{"$f":"IF($B815=\"N\",\"\",IF(LEN('Enrollment Form'!$AD822=0),\"\",IF(LEN('Enrollment Form'!$AD822)<>5,\"N\",\"Y\")))","v":""},{"$f":"IF($B815=\"N\",\"\",IF(LEN('Enrollment Form'!$BL822=0),\"\",IF(LEN('Enrollment Form'!$BL822)<>5,\"N\",\"Y\")))","v":""},{"$f":"IF($B815=\"N\",\"\",IF(LEN('Enrollment Form'!$AE822)=0,\"\",IF(LEN('Enrollment Form'!$AE822)<>10,\"N\",\"Y\")))","v":""},{"$f":"IF($B815=\"N\",\"\",IF(LEN('Enrollment Form'!$AF822)=0,\"\",IF(LEN('Enrollment Form'!$AF822)<>10,\"N\",\"Y\")))","v":""},{"$f":"IF('Enrollment Form'!$O822<>\"Graded\",\"-\",IF(AND('Enrollment Form'!$O822=\"Graded\",'Enrollment Form'!$AO822<>\"\"),\"Y\",\"N\"))","v":"-"},{"$f":"IF($B815=\"N\",\"\",IF(OR('Enrollment Form'!$B822<>\"Subscriber\",'Enrollment Form'!$C822=\"ROC\"),\"-\",IF(AND('Enrollment Form'!$B822=\"Subscriber\",'Enrollment Form'!$C822=\"Enroll\",'Enrollment Form'!$AJ822<>\"\"),\"Y\",\"N\")))","v":""},{"$f":"IF($B815=\"N\",\"\",IF(OR('Enrollment Form'!$B822<>\"Subscriber\",'Enrollment Form'!$C822=\"ROC\"),\"-\",IF(AND('Enrollment Form'!$B822=\"Subscriber\",'Enrollment Form'!$C822=\"Enroll\",'Enrollment Form'!$AK822<>\"\"),\"Y\",\"N\")))","v":""},{"$f":"IF($B815=\"N\",\"\",IF(OR('Enrollment Form'!$B822<>\"Subscriber\",'Enrollment Form'!$C822=\"ROC\"),\"-\",IF(AND('Enrollment Form'!$B822=\"Subscriber\",'Enrollment Form'!$C822=\"Enroll\",'Enrollment Form'!$AL822<>\"\"),\"Y\",\"N\")))","v":""},{"$f":"IF($B815=\"N\",\"\",IF(OR('Enrollment Form'!$B822<>\"Subscriber\",'Enrollment Form'!$C822=\"ROC\"),\"-\",IF(AND('Enrollment Form'!$B822=\"Subscriber\",'Enrollment Form'!$C822=\"Enroll\",'Enrollment Form'!$AM822<>\"\"),\"Y\",\"N\")))","v":""},{"$f":"IF($B815=\"N\",\"\",IF(OR('Enrollment Form'!$B822<>\"Subscriber\",'Enrollment Form'!$C822=\"ROC\"),\"-\",IF(AND('Enrollment Form'!$B822=\"Subscriber\",'Enrollment Form'!$C822=\"Enroll\",'Enrollment Form'!$AN822<>\"\"),\"Y\",\"N\")))","v":""},{"$f":"IF($B815=\"N\",\"\",IF(OR('Enrollment Form'!$B822<>\"Subscriber\",'Enrollment Form'!$C822=\"ROC\"),\"-\",IF(AND('Enrollment Form'!$B822=\"Subscriber\",'Enrollment Form'!$C822=\"Enroll\",'Enrollment Form'!$AP822<>\"\"),\"Y\",\"N\")))","v":""},{"$f":"IF($B815=\"N\",\"\",IF($Q815=\"-\",\"-\",IF(AND($Q815=\"Y\",'Enrollment Form'!$AP822=\"No\"),\"-\",IF(AND($Q815=\"Y\",'Enrollment Form'!$AP822=\"Yes\",'Enrollment Form'!$AQ822<>\"\"),\"Y\",\"N\"))))","v":""},{"$f":"IF($B815=\"N\",\"\",IF(OR('Enrollment Form'!$B822<>\"Subscriber\",'Enrollment Form'!$C822=\"ROC\"),\"-\",IF(AND('Enrollment Form'!$B822=\"Subscriber\",'Enrollment Form'!$C822=\"Enroll\",'Enrollment Form'!$CO822<>\"\"),\"Y\",\"N\")))","v":""},{"$f":"IF($B815=\"N\",\"\",IF($S815=\"-\",\"-\",IF(AND($S815=\"Y\",'Enrollment Form'!$CO822=\"No\"),\"-\",IF(AND($S815=\"Y\",'Enrollment Form'!$CO822=\"Yes\",'Enrollment Form'!$CP822<>\"\"),\"Y\",\"N\"))))","v":""},{"$f":"IF(OR('Enrollment Form'!$AV822=\"Yes\",'Enrollment Form'!$AV822=\"\"),\"-\",IF(AND('Enrollment Form'!$AV822=\"No\",ISERROR(FIND(\"HMO\",VLOOKUP('Enrollment Form'!G822,'Enrollment Form'!H$11:J$1000,3,FALSE),1))=FALSE,COUNTA('Enrollment Form'!$AW822:$AZ822)=4),\"Y\",\"N\"))","v":"-"},{"$f":"IF($B815=\"N\",\"\",IF('Enrollment Form'!$B822=\"Subscriber\",\"-\",IF(COUNTA('Enrollment Form'!$BE822,'Enrollment Form'!$BG822)=2,\"Y\",\"N\")))","v":""},{"$f":"IF($B815=\"N\",\"\",IF(OR('Enrollment Form'!$AU822=\"\",'Enrollment Form'!$AU822=\"No\"),\"-\",IF(AND('Enrollment Form'!$AU822=\"Yes\",COUNTA('Enrollment Form'!$CK822)=1),\"Y\",\"N\")))","v":""},{"$f":"IF(OR('Enrollment Form'!$CK822=\"\",'Enrollment Form'!$CK822=\"No\"),\"-\",IF(COUNTA('Enrollment Form'!$CM822:$CN822)=2,\"Y\",\"N\"))","v":"-"},{"$f":"IF($B815=\"N\",\"\",IF(COUNTIF('Enrollment Form'!$CZ822:$DO822,\"Other\")=COUNTA('Enrollment Form'!$DF822,'Enrollment Form'!$DA822,'Enrollment Form'!$DK822,'Enrollment Form'!$DP822),\"Y\",\"N\"))","v":""},{"$f":"IF($B815=\"N\",\"\",IF(OR('Enrollment Form'!B822<>\"Subscriber\",'Enrollment Form'!C822=\"ROC\",COUNTIF('Enrollment Form'!AS822:AT822,\"Yes\")>=1),\"-\",IF(AND('Enrollment Form'!C822=\"Enroll\",COUNTIF('Enrollment Form'!AS822:AT822,\"No\")=2,'Enrollment Form'!AU822=\"\"),\"N\",\"Y\")))","v":""},{"$f":"IF(OR(B815=\"N\",'Enrollment Form'!B822<>\"Subscriber\",'Enrollment Form'!C822=\"ROC\",'Enrollment Form'!O822<>\"Multiple of Salary\"),\"-\",IF(COUNTA('Enrollment Form'!T822:U822)<2,\"N\",\"Y\"))","v":"-"},{"$f":"IF(B815=\"N\",\"\",IF(OR('Enrollment Form'!C822=\"ROC\",'Enrollment Form'!B822<>\"Subscriber\",'Enrollment Form'!O822=\"Waive\",'Enrollment Form'!O822=\"\"),\"-\",IF('Enrollment Form'!P822=\"\",\"N\",\"Y\")))","v":""},{"$f":"IF($B815=\"N\",\"\",IF(AND('Enrollment Form'!$C822=\"ROC\",'Enrollment Form'!$DS822<>\"\"),\"Y\",IF(AND('Enrollment Form'!$C822=\"ROC\",'Enrollment Form'!$DS822=\"\"),\"N\",IF(AND('Enrollment Form'!$C822=\"Enroll\",'Enrollment Form'!$B822=\"Subscriber\",'Enrollment Form'!$CQ822=\"No\",'Enrollment Form'!$DS822=\"\"),\"N\",IF(AND('Enrollment Form'!$C822=\"Enroll\",'Enrollment Form'!$B822=\"Subscriber\",'Enrollment Form'!$CQ822=\"Yes\"),\"-\",\"Y\")))))","v":""},{"$f":"IF($B815=\"N\",\"\",IF(AND('Enrollment Form'!$C822=\"ROC\",'Enrollment Form'!$DT822<>\"\"),\"Y\",IF(AND('Enrollment Form'!$C822=\"ROC\",'Enrollment Form'!$DT822=\"\"),\"N\",IF(AND('Enrollment Form'!$C822=\"Enroll\",'Enrollment Form'!$B822=\"Subscriber\",'Enrollment Form'!$CQ822=\"No\",'Enrollment Form'!$DT822=\"\"),\"N\",IF(AND('Enrollment Form'!$C822=\"Enroll\",'Enrollment Form'!$B822=\"Subscriber\",'Enrollment Form'!$CQ822=\"Yes\"),\"-\",\"Y\")))))","v":""},{"$f":"IF('Enrollment Form'!AH822=\"\",\"\",IF(ISERROR(SEARCH(\".\",'Enrollment Form'!AH822,SEARCH(\"@\",'Enrollment Form'!AH822))),\"N\",\"Y\"))","v":""},{"$f":"IF(OR($B815=\"N\",'Enrollment Form'!$G822=\"\"),\"\",IF('Enrollment Form'!$B822<>\"Subscriber\",\"-\",IF(COUNTIF('Enrollment Form'!$AS822:$AT822,\"Yes\")=2,\"N\",\"Y\")))","v":""},{"$f":"IF(OR('Enrollment Form'!$CC822=\"\",'Enrollment Form'!$CC822=\"No\"),\"-\",IF(AND('Enrollment Form'!$CC822=\"Yes\",'Enrollment Form'!$CD822=\"\"),\"N\",\"Y\"))","v":"-"},{"$f":"IF(OR('Enrollment Form'!$CE822=\"\",'Enrollment Form'!$CE822=\"No\"),\"-\",IF(AND('Enrollment Form'!$CE822=\"Yes\",'Enrollment Form'!$CF822=\"\"),\"N\",\"Y\"))","v":"-"},{"$f":"IF(OR('Enrollment Form'!$CG822=\"\",'Enrollment Form'!$CG822=\"No\"),\"-\",IF(AND('Enrollment Form'!$CG822=\"Yes\",'Enrollment Form'!$CH822=\"\"),\"N\",\"Y\"))","v":"-"},{"$f":"IF(OR('Enrollment Form'!$CG822=\"\",'Enrollment Form'!$CG822=\"No\"),\"-\",IF(AND('Enrollment Form'!$CG822=\"Yes\",'Enrollment Form'!$CI822=\"\"),\"N\",\"Y\"))","v":"-"},{"$f":"IF('Enrollment Form'!B822<>\"Subscriber\",\"-\",IF(AND('Enrollment Form'!B822=\"Subscriber\",'Enrollment Form'!C822=\"Enroll\",'Enrollment Form'!AA822=\"\"),\"N\",\"Y\"))","v":"-"},{"$f":"IF(OR('Enrollment Form'!B822=\"Subscriber\",'Enrollment Form'!B822=\"\"),\"-\",IF('Enrollment Form'!BI822=\"\",\"N\",\"Y\"))","v":"-"},{"$f":"IF('Enrollment Form'!B822<>\"Subscriber\",\"-\",IF(AND('Enrollment Form'!B822=\"Subscriber\",'Enrollment Form'!G822=\"\"),\"N\",\"Y\"))","v":"-"},{"$f":"IF('Enrollment Form'!A822=\"\",\"\",IF('Enrollment Form'!B822=\"Subscriber\",\"-\",IF(AND('Enrollment Form'!B822<>\"Subscriber\",'Enrollment Form'!G822='Enrollment Form'!H822),\"N\",\"Y\")))","v":""},0]
[823,{"$f":"IF('Enrollment Form'!$A823<>\"\",\"Y\",\"N\")","v":"N"},{"$f":"IF(AND('Enrollment Form'!$B823=\"\",'Enrollment Form'!$C823<>\"\"),\"N\",IF($B816=\"N\",\"\",\"Y\"))","v":""},{"$f":"IF(OR($B816=\"N\",'Enrollment Form'!G823=\"\"),\"\",IF('Enrollment Form'!$B823<>\"Subscriber\",\"\",IF('Enrollment Form'!$G823='Enrollment Form'!$H823,\"Y\",\"N\")))","v":""},{"$f":"IF($B816=\"N\",\"\",IF(AND(COUNTIFS('Enrollment Form'!$H$11:$H$1000,'Enrollment Form'!$H823,'Enrollment Form'!$B$11:$B$1000,'Enrollment Form'!$B823)>1,'Enrollment Form'!$H823<>\"\"),\"N\",\"Y\"))","v":""},{"$f":"IF($B816=\"N\",\"\",IF(LEN('Enrollment Form'!$Y823)=0,\"\",IF(LEN('Enrollment Form'!$Y823)<>5,\"N\",\"Y\")))","v":""},{"$f":"IF($B816=\"N\",\"\",IF(LEN('Enrollment Form'!$AD823=0),\"\",IF(LEN('Enrollment Form'!$AD823)<>5,\"N\",\"Y\")))","v":""},{"$f":"IF($B816=\"N\",\"\",IF(LEN('Enrollment Form'!$BL823=0),\"\",IF(LEN('Enrollment Form'!$BL823)<>5,\"N\",\"Y\")))","v":""},{"$f":"IF($B816=\"N\",\"\",IF(LEN('Enrollment Form'!$AE823)=0,\"\",IF(LEN('Enrollment Form'!$AE823)<>10,\"N\",\"Y\")))","v":""},{"$f":"IF($B816=\"N\",\"\",IF(LEN('Enrollment Form'!$AF823)=0,\"\",IF(LEN('Enrollment Form'!$AF823)<>10,\"N\",\"Y\")))","v":""},{"$f":"IF('Enrollment Form'!$O823<>\"Graded\",\"-\",IF(AND('Enrollment Form'!$O823=\"Graded\",'Enrollment Form'!$AO823<>\"\"),\"Y\",\"N\"))","v":"-"},{"$f":"IF($B816=\"N\",\"\",IF(OR('Enrollment Form'!$B823<>\"Subscriber\",'Enrollment Form'!$C823=\"ROC\"),\"-\",IF(AND('Enrollment Form'!$B823=\"Subscriber\",'Enrollment Form'!$C823=\"Enroll\",'Enrollment Form'!$AJ823<>\"\"),\"Y\",\"N\")))","v":""},{"$f":"IF($B816=\"N\",\"\",IF(OR('Enrollment Form'!$B823<>\"Subscriber\",'Enrollment Form'!$C823=\"ROC\"),\"-\",IF(AND('Enrollment Form'!$B823=\"Subscriber\",'Enrollment Form'!$C823=\"Enroll\",'Enrollment Form'!$AK823<>\"\"),\"Y\",\"N\")))","v":""},{"$f":"IF($B816=\"N\",\"\",IF(OR('Enrollment Form'!$B823<>\"Subscriber\",'Enrollment Form'!$C823=\"ROC\"),\"-\",IF(AND('Enrollment Form'!$B823=\"Subscriber\",'Enrollment Form'!$C823=\"Enroll\",'Enrollment Form'!$AL823<>\"\"),\"Y\",\"N\")))","v":""},{"$f":"IF($B816=\"N\",\"\",IF(OR('Enrollment Form'!$B823<>\"Subscriber\",'Enrollment Form'!$C823=\"ROC\"),\"-\",IF(AND('Enrollment Form'!$B823=\"Subscriber\",'Enrollment Form'!$C823=\"Enroll\",'Enrollment Form'!$AM823<>\"\"),\"Y\",\"N\")))","v":""},{"$f":"IF($B816=\"N\",\"\",IF(OR('Enrollment Form'!$B823<>\"Subscriber\",'Enrollment Form'!$C823=\"ROC\"),\"-\",IF(AND('Enrollment Form'!$B823=\"Subscriber\",'Enrollment Form'!$C823=\"Enroll\",'Enrollment Form'!$AN823<>\"\"),\"Y\",\"N\")))","v":""},{"$f":"IF($B816=\"N\",\"\",IF(OR('Enrollment Form'!$B823<>\"Subscriber\",'Enrollment Form'!$C823=\"ROC\"),\"-\",IF(AND('Enrollment Form'!$B823=\"Subscriber\",'Enrollment Form'!$C823=\"Enroll\",'Enrollment Form'!$AP823<>\"\"),\"Y\",\"N\")))","v":""},{"$f":"IF($B816=\"N\",\"\",IF($Q816=\"-\",\"-\",IF(AND($Q816=\"Y\",'Enrollment Form'!$AP823=\"No\"),\"-\",IF(AND($Q816=\"Y\",'Enrollment Form'!$AP823=\"Yes\",'Enrollment Form'!$AQ823<>\"\"),\"Y\",\"N\"))))","v":""},{"$f":"IF($B816=\"N\",\"\",IF(OR('Enrollment Form'!$B823<>\"Subscriber\",'Enrollment Form'!$C823=\"ROC\"),\"-\",IF(AND('Enrollment Form'!$B823=\"Subscriber\",'Enrollment Form'!$C823=\"Enroll\",'Enrollment Form'!$CO823<>\"\"),\"Y\",\"N\")))","v":""},{"$f":"IF($B816=\"N\",\"\",IF($S816=\"-\",\"-\",IF(AND($S816=\"Y\",'Enrollment Form'!$CO823=\"No\"),\"-\",IF(AND($S816=\"Y\",'Enrollment Form'!$CO823=\"Yes\",'Enrollment Form'!$CP823<>\"\"),\"Y\",\"N\"))))","v":""},{"$f":"IF(OR('Enrollment Form'!$AV823=\"Yes\",'Enrollment Form'!$AV823=\"\"),\"-\",IF(AND('Enrollment Form'!$AV823=\"No\",ISERROR(FIND(\"HMO\",VLOOKUP('Enrollment Form'!G823,'Enrollment Form'!H$11:J$1000,3,FALSE),1))=FALSE,COUNTA('Enrollment Form'!$AW823:$AZ823)=4),\"Y\",\"N\"))","v":"-"},{"$f":"IF($B816=\"N\",\"\",IF('Enrollment Form'!$B823=\"Subscriber\",\"-\",IF(COUNTA('Enrollment Form'!$BE823,'Enrollment Form'!$BG823)=2,\"Y\",\"N\")))","v":""},{"$f":"IF($B816=\"N\",\"\",IF(OR('Enrollment Form'!$AU823=\"\",'Enrollment Form'!$AU823=\"No\"),\"-\",IF(AND('Enrollment Form'!$AU823=\"Yes\",COUNTA('Enrollment Form'!$CK823)=1),\"Y\",\"N\")))","v":""},{"$f":"IF(OR('Enrollment Form'!$CK823=\"\",'Enrollment Form'!$CK823=\"No\"),\"-\",IF(COUNTA('Enrollment Form'!$CM823:$CN823)=2,\"Y\",\"N\"))","v":"-"},{"$f":"IF($B816=\"N\",\"\",IF(COUNTIF('Enrollment Form'!$CZ823:$DO823,\"Other\")=COUNTA('Enrollment Form'!$DF823,'Enrollment Form'!$DA823,'Enrollment Form'!$DK823,'Enrollment Form'!$DP823),\"Y\",\"N\"))","v":""},{"$f":"IF($B816=\"N\",\"\",IF(OR('Enrollment Form'!B823<>\"Subscriber\",'Enrollment Form'!C823=\"ROC\",COUNTIF('Enrollment Form'!AS823:AT823,\"Yes\")>=1),\"-\",IF(AND('Enrollment Form'!C823=\"Enroll\",COUNTIF('Enrollment Form'!AS823:AT823,\"No\")=2,'Enrollment Form'!AU823=\"\"),\"N\",\"Y\")))","v":""},{"$f":"IF(OR(B816=\"N\",'Enrollment Form'!B823<>\"Subscriber\",'Enrollment Form'!C823=\"ROC\",'Enrollment Form'!O823<>\"Multiple of Salary\"),\"-\",IF(COUNTA('Enrollment Form'!T823:U823)<2,\"N\",\"Y\"))","v":"-"},{"$f":"IF(B816=\"N\",\"\",IF(OR('Enrollment Form'!C823=\"ROC\",'Enrollment Form'!B823<>\"Subscriber\",'Enrollment Form'!O823=\"Waive\",'Enrollment Form'!O823=\"\"),\"-\",IF('Enrollment Form'!P823=\"\",\"N\",\"Y\")))","v":""},{"$f":"IF($B816=\"N\",\"\",IF(AND('Enrollment Form'!$C823=\"ROC\",'Enrollment Form'!$DS823<>\"\"),\"Y\",IF(AND('Enrollment Form'!$C823=\"ROC\",'Enrollment Form'!$DS823=\"\"),\"N\",IF(AND('Enrollment Form'!$C823=\"Enroll\",'Enrollment Form'!$B823=\"Subscriber\",'Enrollment Form'!$CQ823=\"No\",'Enrollment Form'!$DS823=\"\"),\"N\",IF(AND('Enrollment Form'!$C823=\"Enroll\",'Enrollment Form'!$B823=\"Subscriber\",'Enrollment Form'!$CQ823=\"Yes\"),\"-\",\"Y\")))))","v":""},{"$f":"IF($B816=\"N\",\"\",IF(AND('Enrollment Form'!$C823=\"ROC\",'Enrollment Form'!$DT823<>\"\"),\"Y\",IF(AND('Enrollment Form'!$C823=\"ROC\",'Enrollment Form'!$DT823=\"\"),\"N\",IF(AND('Enrollment Form'!$C823=\"Enroll\",'Enrollment Form'!$B823=\"Subscriber\",'Enrollment Form'!$CQ823=\"No\",'Enrollment Form'!$DT823=\"\"),\"N\",IF(AND('Enrollment Form'!$C823=\"Enroll\",'Enrollment Form'!$B823=\"Subscriber\",'Enrollment Form'!$CQ823=\"Yes\"),\"-\",\"Y\")))))","v":""},{"$f":"IF('Enrollment Form'!AH823=\"\",\"\",IF(ISERROR(SEARCH(\".\",'Enrollment Form'!AH823,SEARCH(\"@\",'Enrollment Form'!AH823))),\"N\",\"Y\"))","v":""},{"$f":"IF(OR($B816=\"N\",'Enrollment Form'!$G823=\"\"),\"\",IF('Enrollment Form'!$B823<>\"Subscriber\",\"-\",IF(COUNTIF('Enrollment Form'!$AS823:$AT823,\"Yes\")=2,\"N\",\"Y\")))","v":""},{"$f":"IF(OR('Enrollment Form'!$CC823=\"\",'Enrollment Form'!$CC823=\"No\"),\"-\",IF(AND('Enrollment Form'!$CC823=\"Yes\",'Enrollment Form'!$CD823=\"\"),\"N\",\"Y\"))","v":"-"},{"$f":"IF(OR('Enrollment Form'!$CE823=\"\",'Enrollment Form'!$CE823=\"No\"),\"-\",IF(AND('Enrollment Form'!$CE823=\"Yes\",'Enrollment Form'!$CF823=\"\"),\"N\",\"Y\"))","v":"-"},{"$f":"IF(OR('Enrollment Form'!$CG823=\"\",'Enrollment Form'!$CG823=\"No\"),\"-\",IF(AND('Enrollment Form'!$CG823=\"Yes\",'Enrollment Form'!$CH823=\"\"),\"N\",\"Y\"))","v":"-"},{"$f":"IF(OR('Enrollment Form'!$CG823=\"\",'Enrollment Form'!$CG823=\"No\"),\"-\",IF(AND('Enrollment Form'!$CG823=\"Yes\",'Enrollment Form'!$CI823=\"\"),\"N\",\"Y\"))","v":"-"},{"$f":"IF('Enrollment Form'!B823<>\"Subscriber\",\"-\",IF(AND('Enrollment Form'!B823=\"Subscriber\",'Enrollment Form'!C823=\"Enroll\",'Enrollment Form'!AA823=\"\"),\"N\",\"Y\"))","v":"-"},{"$f":"IF(OR('Enrollment Form'!B823=\"Subscriber\",'Enrollment Form'!B823=\"\"),\"-\",IF('Enrollment Form'!BI823=\"\",\"N\",\"Y\"))","v":"-"},{"$f":"IF('Enrollment Form'!B823<>\"Subscriber\",\"-\",IF(AND('Enrollment Form'!B823=\"Subscriber\",'Enrollment Form'!G823=\"\"),\"N\",\"Y\"))","v":"-"},{"$f":"IF('Enrollment Form'!A823=\"\",\"\",IF('Enrollment Form'!B823=\"Subscriber\",\"-\",IF(AND('Enrollment Form'!B823<>\"Subscriber\",'Enrollment Form'!G823='Enrollment Form'!H823),\"N\",\"Y\")))","v":""},0]
[824,{"$f":"IF('Enrollment Form'!$A824<>\"\",\"Y\",\"N\")","v":"N"},{"$f":"IF(AND('Enrollment Form'!$B824=\"\",'Enrollment Form'!$C824<>\"\"),\"N\",IF($B817=\"N\",\"\",\"Y\"))","v":""},{"$f":"IF(OR($B817=\"N\",'Enrollment Form'!G824=\"\"),\"\",IF('Enrollment Form'!$B824<>\"Subscriber\",\"\",IF('Enrollment Form'!$G824='Enrollment Form'!$H824,\"Y\",\"N\")))","v":""},{"$f":"IF($B817=\"N\",\"\",IF(AND(COUNTIFS('Enrollment Form'!$H$11:$H$1000,'Enrollment Form'!$H824,'Enrollment Form'!$B$11:$B$1000,'Enrollment Form'!$B824)>1,'Enrollment Form'!$H824<>\"\"),\"N\",\"Y\"))","v":""},{"$f":"IF($B817=\"N\",\"\",IF(LEN('Enrollment Form'!$Y824)=0,\"\",IF(LEN('Enrollment Form'!$Y824)<>5,\"N\",\"Y\")))","v":""},{"$f":"IF($B817=\"N\",\"\",IF(LEN('Enrollment Form'!$AD824=0),\"\",IF(LEN('Enrollment Form'!$AD824)<>5,\"N\",\"Y\")))","v":""},{"$f":"IF($B817=\"N\",\"\",IF(LEN('Enrollment Form'!$BL824=0),\"\",IF(LEN('Enrollment Form'!$BL824)<>5,\"N\",\"Y\")))","v":""},{"$f":"IF($B817=\"N\",\"\",IF(LEN('Enrollment Form'!$AE824)=0,\"\",IF(LEN('Enrollment Form'!$AE824)<>10,\"N\",\"Y\")))","v":""},{"$f":"IF($B817=\"N\",\"\",IF(LEN('Enrollment Form'!$AF824)=0,\"\",IF(LEN('Enrollment Form'!$AF824)<>10,\"N\",\"Y\")))","v":""},{"$f":"IF('Enrollment Form'!$O824<>\"Graded\",\"-\",IF(AND('Enrollment Form'!$O824=\"Graded\",'Enrollment Form'!$AO824<>\"\"),\"Y\",\"N\"))","v":"-"},{"$f":"IF($B817=\"N\",\"\",IF(OR('Enrollment Form'!$B824<>\"Subscriber\",'Enrollment Form'!$C824=\"ROC\"),\"-\",IF(AND('Enrollment Form'!$B824=\"Subscriber\",'Enrollment Form'!$C824=\"Enroll\",'Enrollment Form'!$AJ824<>\"\"),\"Y\",\"N\")))","v":""},{"$f":"IF($B817=\"N\",\"\",IF(OR('Enrollment Form'!$B824<>\"Subscriber\",'Enrollment Form'!$C824=\"ROC\"),\"-\",IF(AND('Enrollment Form'!$B824=\"Subscriber\",'Enrollment Form'!$C824=\"Enroll\",'Enrollment Form'!$AK824<>\"\"),\"Y\",\"N\")))","v":""},{"$f":"IF($B817=\"N\",\"\",IF(OR('Enrollment Form'!$B824<>\"Subscriber\",'Enrollment Form'!$C824=\"ROC\"),\"-\",IF(AND('Enrollment Form'!$B824=\"Subscriber\",'Enrollment Form'!$C824=\"Enroll\",'Enrollment Form'!$AL824<>\"\"),\"Y\",\"N\")))","v":""},{"$f":"IF($B817=\"N\",\"\",IF(OR('Enrollment Form'!$B824<>\"Subscriber\",'Enrollment Form'!$C824=\"ROC\"),\"-\",IF(AND('Enrollment Form'!$B824=\"Subscriber\",'Enrollment Form'!$C824=\"Enroll\",'Enrollment Form'!$AM824<>\"\"),\"Y\",\"N\")))","v":""},{"$f":"IF($B817=\"N\",\"\",IF(OR('Enrollment Form'!$B824<>\"Subscriber\",'Enrollment Form'!$C824=\"ROC\"),\"-\",IF(AND('Enrollment Form'!$B824=\"Subscriber\",'Enrollment Form'!$C824=\"Enroll\",'Enrollment Form'!$AN824<>\"\"),\"Y\",\"N\")))","v":""},{"$f":"IF($B817=\"N\",\"\",IF(OR('Enrollment Form'!$B824<>\"Subscriber\",'Enrollment Form'!$C824=\"ROC\"),\"-\",IF(AND('Enrollment Form'!$B824=\"Subscriber\",'Enrollment Form'!$C824=\"Enroll\",'Enrollment Form'!$AP824<>\"\"),\"Y\",\"N\")))","v":""},{"$f":"IF($B817=\"N\",\"\",IF($Q817=\"-\",\"-\",IF(AND($Q817=\"Y\",'Enrollment Form'!$AP824=\"No\"),\"-\",IF(AND($Q817=\"Y\",'Enrollment Form'!$AP824=\"Yes\",'Enrollment Form'!$AQ824<>\"\"),\"Y\",\"N\"))))","v":""},{"$f":"IF($B817=\"N\",\"\",IF(OR('Enrollment Form'!$B824<>\"Subscriber\",'Enrollment Form'!$C824=\"ROC\"),\"-\",IF(AND('Enrollment Form'!$B824=\"Subscriber\",'Enrollment Form'!$C824=\"Enroll\",'Enrollment Form'!$CO824<>\"\"),\"Y\",\"N\")))","v":""},{"$f":"IF($B817=\"N\",\"\",IF($S817=\"-\",\"-\",IF(AND($S817=\"Y\",'Enrollment Form'!$CO824=\"No\"),\"-\",IF(AND($S817=\"Y\",'Enrollment Form'!$CO824=\"Yes\",'Enrollment Form'!$CP824<>\"\"),\"Y\",\"N\"))))","v":""},{"$f":"IF(OR('Enrollment Form'!$AV824=\"Yes\",'Enrollment Form'!$AV824=\"\"),\"-\",IF(AND('Enrollment Form'!$AV824=\"No\",ISERROR(FIND(\"HMO\",VLOOKUP('Enrollment Form'!G824,'Enrollment Form'!H$11:J$1000,3,FALSE),1))=FALSE,COUNTA('Enrollment Form'!$AW824:$AZ824)=4),\"Y\",\"N\"))","v":"-"},{"$f":"IF($B817=\"N\",\"\",IF('Enrollment Form'!$B824=\"Subscriber\",\"-\",IF(COUNTA('Enrollment Form'!$BE824,'Enrollment Form'!$BG824)=2,\"Y\",\"N\")))","v":""},{"$f":"IF($B817=\"N\",\"\",IF(OR('Enrollment Form'!$AU824=\"\",'Enrollment Form'!$AU824=\"No\"),\"-\",IF(AND('Enrollment Form'!$AU824=\"Yes\",COUNTA('Enrollment Form'!$CK824)=1),\"Y\",\"N\")))","v":""},{"$f":"IF(OR('Enrollment Form'!$CK824=\"\",'Enrollment Form'!$CK824=\"No\"),\"-\",IF(COUNTA('Enrollment Form'!$CM824:$CN824)=2,\"Y\",\"N\"))","v":"-"},{"$f":"IF($B817=\"N\",\"\",IF(COUNTIF('Enrollment Form'!$CZ824:$DO824,\"Other\")=COUNTA('Enrollment Form'!$DF824,'Enrollment Form'!$DA824,'Enrollment Form'!$DK824,'Enrollment Form'!$DP824),\"Y\",\"N\"))","v":""},{"$f":"IF($B817=\"N\",\"\",IF(OR('Enrollment Form'!B824<>\"Subscriber\",'Enrollment Form'!C824=\"ROC\",COUNTIF('Enrollment Form'!AS824:AT824,\"Yes\")>=1),\"-\",IF(AND('Enrollment Form'!C824=\"Enroll\",COUNTIF('Enrollment Form'!AS824:AT824,\"No\")=2,'Enrollment Form'!AU824=\"\"),\"N\",\"Y\")))","v":""},{"$f":"IF(OR(B817=\"N\",'Enrollment Form'!B824<>\"Subscriber\",'Enrollment Form'!C824=\"ROC\",'Enrollment Form'!O824<>\"Multiple of Salary\"),\"-\",IF(COUNTA('Enrollment Form'!T824:U824)<2,\"N\",\"Y\"))","v":"-"},{"$f":"IF(B817=\"N\",\"\",IF(OR('Enrollment Form'!C824=\"ROC\",'Enrollment Form'!B824<>\"Subscriber\",'Enrollment Form'!O824=\"Waive\",'Enrollment Form'!O824=\"\"),\"-\",IF('Enrollment Form'!P824=\"\",\"N\",\"Y\")))","v":""},{"$f":"IF($B817=\"N\",\"\",IF(AND('Enrollment Form'!$C824=\"ROC\",'Enrollment Form'!$DS824<>\"\"),\"Y\",IF(AND('Enrollment Form'!$C824=\"ROC\",'Enrollment Form'!$DS824=\"\"),\"N\",IF(AND('Enrollment Form'!$C824=\"Enroll\",'Enrollment Form'!$B824=\"Subscriber\",'Enrollment Form'!$CQ824=\"No\",'Enrollment Form'!$DS824=\"\"),\"N\",IF(AND('Enrollment Form'!$C824=\"Enroll\",'Enrollment Form'!$B824=\"Subscriber\",'Enrollment Form'!$CQ824=\"Yes\"),\"-\",\"Y\")))))","v":""},{"$f":"IF($B817=\"N\",\"\",IF(AND('Enrollment Form'!$C824=\"ROC\",'Enrollment Form'!$DT824<>\"\"),\"Y\",IF(AND('Enrollment Form'!$C824=\"ROC\",'Enrollment Form'!$DT824=\"\"),\"N\",IF(AND('Enrollment Form'!$C824=\"Enroll\",'Enrollment Form'!$B824=\"Subscriber\",'Enrollment Form'!$CQ824=\"No\",'Enrollment Form'!$DT824=\"\"),\"N\",IF(AND('Enrollment Form'!$C824=\"Enroll\",'Enrollment Form'!$B824=\"Subscriber\",'Enrollment Form'!$CQ824=\"Yes\"),\"-\",\"Y\")))))","v":""},{"$f":"IF('Enrollment Form'!AH824=\"\",\"\",IF(ISERROR(SEARCH(\".\",'Enrollment Form'!AH824,SEARCH(\"@\",'Enrollment Form'!AH824))),\"N\",\"Y\"))","v":""},{"$f":"IF(OR($B817=\"N\",'Enrollment Form'!$G824=\"\"),\"\",IF('Enrollment Form'!$B824<>\"Subscriber\",\"-\",IF(COUNTIF('Enrollment Form'!$AS824:$AT824,\"Yes\")=2,\"N\",\"Y\")))","v":""},{"$f":"IF(OR('Enrollment Form'!$CC824=\"\",'Enrollment Form'!$CC824=\"No\"),\"-\",IF(AND('Enrollment Form'!$CC824=\"Yes\",'Enrollment Form'!$CD824=\"\"),\"N\",\"Y\"))","v":"-"},{"$f":"IF(OR('Enrollment Form'!$CE824=\"\",'Enrollment Form'!$CE824=\"No\"),\"-\",IF(AND('Enrollment Form'!$CE824=\"Yes\",'Enrollment Form'!$CF824=\"\"),\"N\",\"Y\"))","v":"-"},{"$f":"IF(OR('Enrollment Form'!$CG824=\"\",'Enrollment Form'!$CG824=\"No\"),\"-\",IF(AND('Enrollment Form'!$CG824=\"Yes\",'Enrollment Form'!$CH824=\"\"),\"N\",\"Y\"))","v":"-"},{"$f":"IF(OR('Enrollment Form'!$CG824=\"\",'Enrollment Form'!$CG824=\"No\"),\"-\",IF(AND('Enrollment Form'!$CG824=\"Yes\",'Enrollment Form'!$CI824=\"\"),\"N\",\"Y\"))","v":"-"},{"$f":"IF('Enrollment Form'!B824<>\"Subscriber\",\"-\",IF(AND('Enrollment Form'!B824=\"Subscriber\",'Enrollment Form'!C824=\"Enroll\",'Enrollment Form'!AA824=\"\"),\"N\",\"Y\"))","v":"-"},{"$f":"IF(OR('Enrollment Form'!B824=\"Subscriber\",'Enrollment Form'!B824=\"\"),\"-\",IF('Enrollment Form'!BI824=\"\",\"N\",\"Y\"))","v":"-"},{"$f":"IF('Enrollment Form'!B824<>\"Subscriber\",\"-\",IF(AND('Enrollment Form'!B824=\"Subscriber\",'Enrollment Form'!G824=\"\"),\"N\",\"Y\"))","v":"-"},{"$f":"IF('Enrollment Form'!A824=\"\",\"\",IF('Enrollment Form'!B824=\"Subscriber\",\"-\",IF(AND('Enrollment Form'!B824<>\"Subscriber\",'Enrollment Form'!G824='Enrollment Form'!H824),\"N\",\"Y\")))","v":""},0]
[825,{"$f":"IF('Enrollment Form'!$A825<>\"\",\"Y\",\"N\")","v":"N"},{"$f":"IF(AND('Enrollment Form'!$B825=\"\",'Enrollment Form'!$C825<>\"\"),\"N\",IF($B818=\"N\",\"\",\"Y\"))","v":""},{"$f":"IF(OR($B818=\"N\",'Enrollment Form'!G825=\"\"),\"\",IF('Enrollment Form'!$B825<>\"Subscriber\",\"\",IF('Enrollment Form'!$G825='Enrollment Form'!$H825,\"Y\",\"N\")))","v":""},{"$f":"IF($B818=\"N\",\"\",IF(AND(COUNTIFS('Enrollment Form'!$H$11:$H$1000,'Enrollment Form'!$H825,'Enrollment Form'!$B$11:$B$1000,'Enrollment Form'!$B825)>1,'Enrollment Form'!$H825<>\"\"),\"N\",\"Y\"))","v":""},{"$f":"IF($B818=\"N\",\"\",IF(LEN('Enrollment Form'!$Y825)=0,\"\",IF(LEN('Enrollment Form'!$Y825)<>5,\"N\",\"Y\")))","v":""},{"$f":"IF($B818=\"N\",\"\",IF(LEN('Enrollment Form'!$AD825=0),\"\",IF(LEN('Enrollment Form'!$AD825)<>5,\"N\",\"Y\")))","v":""},{"$f":"IF($B818=\"N\",\"\",IF(LEN('Enrollment Form'!$BL825=0),\"\",IF(LEN('Enrollment Form'!$BL825)<>5,\"N\",\"Y\")))","v":""},{"$f":"IF($B818=\"N\",\"\",IF(LEN('Enrollment Form'!$AE825)=0,\"\",IF(LEN('Enrollment Form'!$AE825)<>10,\"N\",\"Y\")))","v":""},{"$f":"IF($B818=\"N\",\"\",IF(LEN('Enrollment Form'!$AF825)=0,\"\",IF(LEN('Enrollment Form'!$AF825)<>10,\"N\",\"Y\")))","v":""},{"$f":"IF('Enrollment Form'!$O825<>\"Graded\",\"-\",IF(AND('Enrollment Form'!$O825=\"Graded\",'Enrollment Form'!$AO825<>\"\"),\"Y\",\"N\"))","v":"-"},{"$f":"IF($B818=\"N\",\"\",IF(OR('Enrollment Form'!$B825<>\"Subscriber\",'Enrollment Form'!$C825=\"ROC\"),\"-\",IF(AND('Enrollment Form'!$B825=\"Subscriber\",'Enrollment Form'!$C825=\"Enroll\",'Enrollment Form'!$AJ825<>\"\"),\"Y\",\"N\")))","v":""},{"$f":"IF($B818=\"N\",\"\",IF(OR('Enrollment Form'!$B825<>\"Subscriber\",'Enrollment Form'!$C825=\"ROC\"),\"-\",IF(AND('Enrollment Form'!$B825=\"Subscriber\",'Enrollment Form'!$C825=\"Enroll\",'Enrollment Form'!$AK825<>\"\"),\"Y\",\"N\")))","v":""},{"$f":"IF($B818=\"N\",\"\",IF(OR('Enrollment Form'!$B825<>\"Subscriber\",'Enrollment Form'!$C825=\"ROC\"),\"-\",IF(AND('Enrollment Form'!$B825=\"Subscriber\",'Enrollment Form'!$C825=\"Enroll\",'Enrollment Form'!$AL825<>\"\"),\"Y\",\"N\")))","v":""},{"$f":"IF($B818=\"N\",\"\",IF(OR('Enrollment Form'!$B825<>\"Subscriber\",'Enrollment Form'!$C825=\"ROC\"),\"-\",IF(AND('Enrollment Form'!$B825=\"Subscriber\",'Enrollment Form'!$C825=\"Enroll\",'Enrollment Form'!$AM825<>\"\"),\"Y\",\"N\")))","v":""},{"$f":"IF($B818=\"N\",\"\",IF(OR('Enrollment Form'!$B825<>\"Subscriber\",'Enrollment Form'!$C825=\"ROC\"),\"-\",IF(AND('Enrollment Form'!$B825=\"Subscriber\",'Enrollment Form'!$C825=\"Enroll\",'Enrollment Form'!$AN825<>\"\"),\"Y\",\"N\")))","v":""},{"$f":"IF($B818=\"N\",\"\",IF(OR('Enrollment Form'!$B825<>\"Subscriber\",'Enrollment Form'!$C825=\"ROC\"),\"-\",IF(AND('Enrollment Form'!$B825=\"Subscriber\",'Enrollment Form'!$C825=\"Enroll\",'Enrollment Form'!$AP825<>\"\"),\"Y\",\"N\")))","v":""},{"$f":"IF($B818=\"N\",\"\",IF($Q818=\"-\",\"-\",IF(AND($Q818=\"Y\",'Enrollment Form'!$AP825=\"No\"),\"-\",IF(AND($Q818=\"Y\",'Enrollment Form'!$AP825=\"Yes\",'Enrollment Form'!$AQ825<>\"\"),\"Y\",\"N\"))))","v":""},{"$f":"IF($B818=\"N\",\"\",IF(OR('Enrollment Form'!$B825<>\"Subscriber\",'Enrollment Form'!$C825=\"ROC\"),\"-\",IF(AND('Enrollment Form'!$B825=\"Subscriber\",'Enrollment Form'!$C825=\"Enroll\",'Enrollment Form'!$CO825<>\"\"),\"Y\",\"N\")))","v":""},{"$f":"IF($B818=\"N\",\"\",IF($S818=\"-\",\"-\",IF(AND($S818=\"Y\",'Enrollment Form'!$CO825=\"No\"),\"-\",IF(AND($S818=\"Y\",'Enrollment Form'!$CO825=\"Yes\",'Enrollment Form'!$CP825<>\"\"),\"Y\",\"N\"))))","v":""},{"$f":"IF(OR('Enrollment Form'!$AV825=\"Yes\",'Enrollment Form'!$AV825=\"\"),\"-\",IF(AND('Enrollment Form'!$AV825=\"No\",ISERROR(FIND(\"HMO\",VLOOKUP('Enrollment Form'!G825,'Enrollment Form'!H$11:J$1000,3,FALSE),1))=FALSE,COUNTA('Enrollment Form'!$AW825:$AZ825)=4),\"Y\",\"N\"))","v":"-"},{"$f":"IF($B818=\"N\",\"\",IF('Enrollment Form'!$B825=\"Subscriber\",\"-\",IF(COUNTA('Enrollment Form'!$BE825,'Enrollment Form'!$BG825)=2,\"Y\",\"N\")))","v":""},{"$f":"IF($B818=\"N\",\"\",IF(OR('Enrollment Form'!$AU825=\"\",'Enrollment Form'!$AU825=\"No\"),\"-\",IF(AND('Enrollment Form'!$AU825=\"Yes\",COUNTA('Enrollment Form'!$CK825)=1),\"Y\",\"N\")))","v":""},{"$f":"IF(OR('Enrollment Form'!$CK825=\"\",'Enrollment Form'!$CK825=\"No\"),\"-\",IF(COUNTA('Enrollment Form'!$CM825:$CN825)=2,\"Y\",\"N\"))","v":"-"},{"$f":"IF($B818=\"N\",\"\",IF(COUNTIF('Enrollment Form'!$CZ825:$DO825,\"Other\")=COUNTA('Enrollment Form'!$DF825,'Enrollment Form'!$DA825,'Enrollment Form'!$DK825,'Enrollment Form'!$DP825),\"Y\",\"N\"))","v":""},{"$f":"IF($B818=\"N\",\"\",IF(OR('Enrollment Form'!B825<>\"Subscriber\",'Enrollment Form'!C825=\"ROC\",COUNTIF('Enrollment Form'!AS825:AT825,\"Yes\")>=1),\"-\",IF(AND('Enrollment Form'!C825=\"Enroll\",COUNTIF('Enrollment Form'!AS825:AT825,\"No\")=2,'Enrollment Form'!AU825=\"\"),\"N\",\"Y\")))","v":""},{"$f":"IF(OR(B818=\"N\",'Enrollment Form'!B825<>\"Subscriber\",'Enrollment Form'!C825=\"ROC\",'Enrollment Form'!O825<>\"Multiple of Salary\"),\"-\",IF(COUNTA('Enrollment Form'!T825:U825)<2,\"N\",\"Y\"))","v":"-"},{"$f":"IF(B818=\"N\",\"\",IF(OR('Enrollment Form'!C825=\"ROC\",'Enrollment Form'!B825<>\"Subscriber\",'Enrollment Form'!O825=\"Waive\",'Enrollment Form'!O825=\"\"),\"-\",IF('Enrollment Form'!P825=\"\",\"N\",\"Y\")))","v":""},{"$f":"IF($B818=\"N\",\"\",IF(AND('Enrollment Form'!$C825=\"ROC\",'Enrollment Form'!$DS825<>\"\"),\"Y\",IF(AND('Enrollment Form'!$C825=\"ROC\",'Enrollment Form'!$DS825=\"\"),\"N\",IF(AND('Enrollment Form'!$C825=\"Enroll\",'Enrollment Form'!$B825=\"Subscriber\",'Enrollment Form'!$CQ825=\"No\",'Enrollment Form'!$DS825=\"\"),\"N\",IF(AND('Enrollment Form'!$C825=\"Enroll\",'Enrollment Form'!$B825=\"Subscriber\",'Enrollment Form'!$CQ825=\"Yes\"),\"-\",\"Y\")))))","v":""},{"$f":"IF($B818=\"N\",\"\",IF(AND('Enrollment Form'!$C825=\"ROC\",'Enrollment Form'!$DT825<>\"\"),\"Y\",IF(AND('Enrollment Form'!$C825=\"ROC\",'Enrollment Form'!$DT825=\"\"),\"N\",IF(AND('Enrollment Form'!$C825=\"Enroll\",'Enrollment Form'!$B825=\"Subscriber\",'Enrollment Form'!$CQ825=\"No\",'Enrollment Form'!$DT825=\"\"),\"N\",IF(AND('Enrollment Form'!$C825=\"Enroll\",'Enrollment Form'!$B825=\"Subscriber\",'Enrollment Form'!$CQ825=\"Yes\"),\"-\",\"Y\")))))","v":""},{"$f":"IF('Enrollment Form'!AH825=\"\",\"\",IF(ISERROR(SEARCH(\".\",'Enrollment Form'!AH825,SEARCH(\"@\",'Enrollment Form'!AH825))),\"N\",\"Y\"))","v":""},{"$f":"IF(OR($B818=\"N\",'Enrollment Form'!$G825=\"\"),\"\",IF('Enrollment Form'!$B825<>\"Subscriber\",\"-\",IF(COUNTIF('Enrollment Form'!$AS825:$AT825,\"Yes\")=2,\"N\",\"Y\")))","v":""},{"$f":"IF(OR('Enrollment Form'!$CC825=\"\",'Enrollment Form'!$CC825=\"No\"),\"-\",IF(AND('Enrollment Form'!$CC825=\"Yes\",'Enrollment Form'!$CD825=\"\"),\"N\",\"Y\"))","v":"-"},{"$f":"IF(OR('Enrollment Form'!$CE825=\"\",'Enrollment Form'!$CE825=\"No\"),\"-\",IF(AND('Enrollment Form'!$CE825=\"Yes\",'Enrollment Form'!$CF825=\"\"),\"N\",\"Y\"))","v":"-"},{"$f":"IF(OR('Enrollment Form'!$CG825=\"\",'Enrollment Form'!$CG825=\"No\"),\"-\",IF(AND('Enrollment Form'!$CG825=\"Yes\",'Enrollment Form'!$CH825=\"\"),\"N\",\"Y\"))","v":"-"},{"$f":"IF(OR('Enrollment Form'!$CG825=\"\",'Enrollment Form'!$CG825=\"No\"),\"-\",IF(AND('Enrollment Form'!$CG825=\"Yes\",'Enrollment Form'!$CI825=\"\"),\"N\",\"Y\"))","v":"-"},{"$f":"IF('Enrollment Form'!B825<>\"Subscriber\",\"-\",IF(AND('Enrollment Form'!B825=\"Subscriber\",'Enrollment Form'!C825=\"Enroll\",'Enrollment Form'!AA825=\"\"),\"N\",\"Y\"))","v":"-"},{"$f":"IF(OR('Enrollment Form'!B825=\"Subscriber\",'Enrollment Form'!B825=\"\"),\"-\",IF('Enrollment Form'!BI825=\"\",\"N\",\"Y\"))","v":"-"},{"$f":"IF('Enrollment Form'!B825<>\"Subscriber\",\"-\",IF(AND('Enrollment Form'!B825=\"Subscriber\",'Enrollment Form'!G825=\"\"),\"N\",\"Y\"))","v":"-"},{"$f":"IF('Enrollment Form'!A825=\"\",\"\",IF('Enrollment Form'!B825=\"Subscriber\",\"-\",IF(AND('Enrollment Form'!B825<>\"Subscriber\",'Enrollment Form'!G825='Enrollment Form'!H825),\"N\",\"Y\")))","v":""},0]
[826,{"$f":"IF('Enrollment Form'!$A826<>\"\",\"Y\",\"N\")","v":"N"},{"$f":"IF(AND('Enrollment Form'!$B826=\"\",'Enrollment Form'!$C826<>\"\"),\"N\",IF($B819=\"N\",\"\",\"Y\"))","v":""},{"$f":"IF(OR($B819=\"N\",'Enrollment Form'!G826=\"\"),\"\",IF('Enrollment Form'!$B826<>\"Subscriber\",\"\",IF('Enrollment Form'!$G826='Enrollment Form'!$H826,\"Y\",\"N\")))","v":""},{"$f":"IF($B819=\"N\",\"\",IF(AND(COUNTIFS('Enrollment Form'!$H$11:$H$1000,'Enrollment Form'!$H826,'Enrollment Form'!$B$11:$B$1000,'Enrollment Form'!$B826)>1,'Enrollment Form'!$H826<>\"\"),\"N\",\"Y\"))","v":""},{"$f":"IF($B819=\"N\",\"\",IF(LEN('Enrollment Form'!$Y826)=0,\"\",IF(LEN('Enrollment Form'!$Y826)<>5,\"N\",\"Y\")))","v":""},{"$f":"IF($B819=\"N\",\"\",IF(LEN('Enrollment Form'!$AD826=0),\"\",IF(LEN('Enrollment Form'!$AD826)<>5,\"N\",\"Y\")))","v":""},{"$f":"IF($B819=\"N\",\"\",IF(LEN('Enrollment Form'!$BL826=0),\"\",IF(LEN('Enrollment Form'!$BL826)<>5,\"N\",\"Y\")))","v":""},{"$f":"IF($B819=\"N\",\"\",IF(LEN('Enrollment Form'!$AE826)=0,\"\",IF(LEN('Enrollment Form'!$AE826)<>10,\"N\",\"Y\")))","v":""},{"$f":"IF($B819=\"N\",\"\",IF(LEN('Enrollment Form'!$AF826)=0,\"\",IF(LEN('Enrollment Form'!$AF826)<>10,\"N\",\"Y\")))","v":""},{"$f":"IF('Enrollment Form'!$O826<>\"Graded\",\"-\",IF(AND('Enrollment Form'!$O826=\"Graded\",'Enrollment Form'!$AO826<>\"\"),\"Y\",\"N\"))","v":"-"},{"$f":"IF($B819=\"N\",\"\",IF(OR('Enrollment Form'!$B826<>\"Subscriber\",'Enrollment Form'!$C826=\"ROC\"),\"-\",IF(AND('Enrollment Form'!$B826=\"Subscriber\",'Enrollment Form'!$C826=\"Enroll\",'Enrollment Form'!$AJ826<>\"\"),\"Y\",\"N\")))","v":""},{"$f":"IF($B819=\"N\",\"\",IF(OR('Enrollment Form'!$B826<>\"Subscriber\",'Enrollment Form'!$C826=\"ROC\"),\"-\",IF(AND('Enrollment Form'!$B826=\"Subscriber\",'Enrollment Form'!$C826=\"Enroll\",'Enrollment Form'!$AK826<>\"\"),\"Y\",\"N\")))","v":""},{"$f":"IF($B819=\"N\",\"\",IF(OR('Enrollment Form'!$B826<>\"Subscriber\",'Enrollment Form'!$C826=\"ROC\"),\"-\",IF(AND('Enrollment Form'!$B826=\"Subscriber\",'Enrollment Form'!$C826=\"Enroll\",'Enrollment Form'!$AL826<>\"\"),\"Y\",\"N\")))","v":""},{"$f":"IF($B819=\"N\",\"\",IF(OR('Enrollment Form'!$B826<>\"Subscriber\",'Enrollment Form'!$C826=\"ROC\"),\"-\",IF(AND('Enrollment Form'!$B826=\"Subscriber\",'Enrollment Form'!$C826=\"Enroll\",'Enrollment Form'!$AM826<>\"\"),\"Y\",\"N\")))","v":""},{"$f":"IF($B819=\"N\",\"\",IF(OR('Enrollment Form'!$B826<>\"Subscriber\",'Enrollment Form'!$C826=\"ROC\"),\"-\",IF(AND('Enrollment Form'!$B826=\"Subscriber\",'Enrollment Form'!$C826=\"Enroll\",'Enrollment Form'!$AN826<>\"\"),\"Y\",\"N\")))","v":""},{"$f":"IF($B819=\"N\",\"\",IF(OR('Enrollment Form'!$B826<>\"Subscriber\",'Enrollment Form'!$C826=\"ROC\"),\"-\",IF(AND('Enrollment Form'!$B826=\"Subscriber\",'Enrollment Form'!$C826=\"Enroll\",'Enrollment Form'!$AP826<>\"\"),\"Y\",\"N\")))","v":""},{"$f":"IF($B819=\"N\",\"\",IF($Q819=\"-\",\"-\",IF(AND($Q819=\"Y\",'Enrollment Form'!$AP826=\"No\"),\"-\",IF(AND($Q819=\"Y\",'Enrollment Form'!$AP826=\"Yes\",'Enrollment Form'!$AQ826<>\"\"),\"Y\",\"N\"))))","v":""},{"$f":"IF($B819=\"N\",\"\",IF(OR('Enrollment Form'!$B826<>\"Subscriber\",'Enrollment Form'!$C826=\"ROC\"),\"-\",IF(AND('Enrollment Form'!$B826=\"Subscriber\",'Enrollment Form'!$C826=\"Enroll\",'Enrollment Form'!$CO826<>\"\"),\"Y\",\"N\")))","v":""},{"$f":"IF($B819=\"N\",\"\",IF($S819=\"-\",\"-\",IF(AND($S819=\"Y\",'Enrollment Form'!$CO826=\"No\"),\"-\",IF(AND($S819=\"Y\",'Enrollment Form'!$CO826=\"Yes\",'Enrollment Form'!$CP826<>\"\"),\"Y\",\"N\"))))","v":""},{"$f":"IF(OR('Enrollment Form'!$AV826=\"Yes\",'Enrollment Form'!$AV826=\"\"),\"-\",IF(AND('Enrollment Form'!$AV826=\"No\",ISERROR(FIND(\"HMO\",VLOOKUP('Enrollment Form'!G826,'Enrollment Form'!H$11:J$1000,3,FALSE),1))=FALSE,COUNTA('Enrollment Form'!$AW826:$AZ826)=4),\"Y\",\"N\"))","v":"-"},{"$f":"IF($B819=\"N\",\"\",IF('Enrollment Form'!$B826=\"Subscriber\",\"-\",IF(COUNTA('Enrollment Form'!$BE826,'Enrollment Form'!$BG826)=2,\"Y\",\"N\")))","v":""},{"$f":"IF($B819=\"N\",\"\",IF(OR('Enrollment Form'!$AU826=\"\",'Enrollment Form'!$AU826=\"No\"),\"-\",IF(AND('Enrollment Form'!$AU826=\"Yes\",COUNTA('Enrollment Form'!$CK826)=1),\"Y\",\"N\")))","v":""},{"$f":"IF(OR('Enrollment Form'!$CK826=\"\",'Enrollment Form'!$CK826=\"No\"),\"-\",IF(COUNTA('Enrollment Form'!$CM826:$CN826)=2,\"Y\",\"N\"))","v":"-"},{"$f":"IF($B819=\"N\",\"\",IF(COUNTIF('Enrollment Form'!$CZ826:$DO826,\"Other\")=COUNTA('Enrollment Form'!$DF826,'Enrollment Form'!$DA826,'Enrollment Form'!$DK826,'Enrollment Form'!$DP826),\"Y\",\"N\"))","v":""},{"$f":"IF($B819=\"N\",\"\",IF(OR('Enrollment Form'!B826<>\"Subscriber\",'Enrollment Form'!C826=\"ROC\",COUNTIF('Enrollment Form'!AS826:AT826,\"Yes\")>=1),\"-\",IF(AND('Enrollment Form'!C826=\"Enroll\",COUNTIF('Enrollment Form'!AS826:AT826,\"No\")=2,'Enrollment Form'!AU826=\"\"),\"N\",\"Y\")))","v":""},{"$f":"IF(OR(B819=\"N\",'Enrollment Form'!B826<>\"Subscriber\",'Enrollment Form'!C826=\"ROC\",'Enrollment Form'!O826<>\"Multiple of Salary\"),\"-\",IF(COUNTA('Enrollment Form'!T826:U826)<2,\"N\",\"Y\"))","v":"-"},{"$f":"IF(B819=\"N\",\"\",IF(OR('Enrollment Form'!C826=\"ROC\",'Enrollment Form'!B826<>\"Subscriber\",'Enrollment Form'!O826=\"Waive\",'Enrollment Form'!O826=\"\"),\"-\",IF('Enrollment Form'!P826=\"\",\"N\",\"Y\")))","v":""},{"$f":"IF($B819=\"N\",\"\",IF(AND('Enrollment Form'!$C826=\"ROC\",'Enrollment Form'!$DS826<>\"\"),\"Y\",IF(AND('Enrollment Form'!$C826=\"ROC\",'Enrollment Form'!$DS826=\"\"),\"N\",IF(AND('Enrollment Form'!$C826=\"Enroll\",'Enrollment Form'!$B826=\"Subscriber\",'Enrollment Form'!$CQ826=\"No\",'Enrollment Form'!$DS826=\"\"),\"N\",IF(AND('Enrollment Form'!$C826=\"Enroll\",'Enrollment Form'!$B826=\"Subscriber\",'Enrollment Form'!$CQ826=\"Yes\"),\"-\",\"Y\")))))","v":""},{"$f":"IF($B819=\"N\",\"\",IF(AND('Enrollment Form'!$C826=\"ROC\",'Enrollment Form'!$DT826<>\"\"),\"Y\",IF(AND('Enrollment Form'!$C826=\"ROC\",'Enrollment Form'!$DT826=\"\"),\"N\",IF(AND('Enrollment Form'!$C826=\"Enroll\",'Enrollment Form'!$B826=\"Subscriber\",'Enrollment Form'!$CQ826=\"No\",'Enrollment Form'!$DT826=\"\"),\"N\",IF(AND('Enrollment Form'!$C826=\"Enroll\",'Enrollment Form'!$B826=\"Subscriber\",'Enrollment Form'!$CQ826=\"Yes\"),\"-\",\"Y\")))))","v":""},{"$f":"IF('Enrollment Form'!AH826=\"\",\"\",IF(ISERROR(SEARCH(\".\",'Enrollment Form'!AH826,SEARCH(\"@\",'Enrollment Form'!AH826))),\"N\",\"Y\"))","v":""},{"$f":"IF(OR($B819=\"N\",'Enrollment Form'!$G826=\"\"),\"\",IF('Enrollment Form'!$B826<>\"Subscriber\",\"-\",IF(COUNTIF('Enrollment Form'!$AS826:$AT826,\"Yes\")=2,\"N\",\"Y\")))","v":""},{"$f":"IF(OR('Enrollment Form'!$CC826=\"\",'Enrollment Form'!$CC826=\"No\"),\"-\",IF(AND('Enrollment Form'!$CC826=\"Yes\",'Enrollment Form'!$CD826=\"\"),\"N\",\"Y\"))","v":"-"},{"$f":"IF(OR('Enrollment Form'!$CE826=\"\",'Enrollment Form'!$CE826=\"No\"),\"-\",IF(AND('Enrollment Form'!$CE826=\"Yes\",'Enrollment Form'!$CF826=\"\"),\"N\",\"Y\"))","v":"-"},{"$f":"IF(OR('Enrollment Form'!$CG826=\"\",'Enrollment Form'!$CG826=\"No\"),\"-\",IF(AND('Enrollment Form'!$CG826=\"Yes\",'Enrollment Form'!$CH826=\"\"),\"N\",\"Y\"))","v":"-"},{"$f":"IF(OR('Enrollment Form'!$CG826=\"\",'Enrollment Form'!$CG826=\"No\"),\"-\",IF(AND('Enrollment Form'!$CG826=\"Yes\",'Enrollment Form'!$CI826=\"\"),\"N\",\"Y\"))","v":"-"},{"$f":"IF('Enrollment Form'!B826<>\"Subscriber\",\"-\",IF(AND('Enrollment Form'!B826=\"Subscriber\",'Enrollment Form'!C826=\"Enroll\",'Enrollment Form'!AA826=\"\"),\"N\",\"Y\"))","v":"-"},{"$f":"IF(OR('Enrollment Form'!B826=\"Subscriber\",'Enrollment Form'!B826=\"\"),\"-\",IF('Enrollment Form'!BI826=\"\",\"N\",\"Y\"))","v":"-"},{"$f":"IF('Enrollment Form'!B826<>\"Subscriber\",\"-\",IF(AND('Enrollment Form'!B826=\"Subscriber\",'Enrollment Form'!G826=\"\"),\"N\",\"Y\"))","v":"-"},{"$f":"IF('Enrollment Form'!A826=\"\",\"\",IF('Enrollment Form'!B826=\"Subscriber\",\"-\",IF(AND('Enrollment Form'!B826<>\"Subscriber\",'Enrollment Form'!G826='Enrollment Form'!H826),\"N\",\"Y\")))","v":""},0]
[827,{"$f":"IF('Enrollment Form'!$A827<>\"\",\"Y\",\"N\")","v":"N"},{"$f":"IF(AND('Enrollment Form'!$B827=\"\",'Enrollment Form'!$C827<>\"\"),\"N\",IF($B820=\"N\",\"\",\"Y\"))","v":""},{"$f":"IF(OR($B820=\"N\",'Enrollment Form'!G827=\"\"),\"\",IF('Enrollment Form'!$B827<>\"Subscriber\",\"\",IF('Enrollment Form'!$G827='Enrollment Form'!$H827,\"Y\",\"N\")))","v":""},{"$f":"IF($B820=\"N\",\"\",IF(AND(COUNTIFS('Enrollment Form'!$H$11:$H$1000,'Enrollment Form'!$H827,'Enrollment Form'!$B$11:$B$1000,'Enrollment Form'!$B827)>1,'Enrollment Form'!$H827<>\"\"),\"N\",\"Y\"))","v":""},{"$f":"IF($B820=\"N\",\"\",IF(LEN('Enrollment Form'!$Y827)=0,\"\",IF(LEN('Enrollment Form'!$Y827)<>5,\"N\",\"Y\")))","v":""},{"$f":"IF($B820=\"N\",\"\",IF(LEN('Enrollment Form'!$AD827=0),\"\",IF(LEN('Enrollment Form'!$AD827)<>5,\"N\",\"Y\")))","v":""},{"$f":"IF($B820=\"N\",\"\",IF(LEN('Enrollment Form'!$BL827=0),\"\",IF(LEN('Enrollment Form'!$BL827)<>5,\"N\",\"Y\")))","v":""},{"$f":"IF($B820=\"N\",\"\",IF(LEN('Enrollment Form'!$AE827)=0,\"\",IF(LEN('Enrollment Form'!$AE827)<>10,\"N\",\"Y\")))","v":""},{"$f":"IF($B820=\"N\",\"\",IF(LEN('Enrollment Form'!$AF827)=0,\"\",IF(LEN('Enrollment Form'!$AF827)<>10,\"N\",\"Y\")))","v":""},{"$f":"IF('Enrollment Form'!$O827<>\"Graded\",\"-\",IF(AND('Enrollment Form'!$O827=\"Graded\",'Enrollment Form'!$AO827<>\"\"),\"Y\",\"N\"))","v":"-"},{"$f":"IF($B820=\"N\",\"\",IF(OR('Enrollment Form'!$B827<>\"Subscriber\",'Enrollment Form'!$C827=\"ROC\"),\"-\",IF(AND('Enrollment Form'!$B827=\"Subscriber\",'Enrollment Form'!$C827=\"Enroll\",'Enrollment Form'!$AJ827<>\"\"),\"Y\",\"N\")))","v":""},{"$f":"IF($B820=\"N\",\"\",IF(OR('Enrollment Form'!$B827<>\"Subscriber\",'Enrollment Form'!$C827=\"ROC\"),\"-\",IF(AND('Enrollment Form'!$B827=\"Subscriber\",'Enrollment Form'!$C827=\"Enroll\",'Enrollment Form'!$AK827<>\"\"),\"Y\",\"N\")))","v":""},{"$f":"IF($B820=\"N\",\"\",IF(OR('Enrollment Form'!$B827<>\"Subscriber\",'Enrollment Form'!$C827=\"ROC\"),\"-\",IF(AND('Enrollment Form'!$B827=\"Subscriber\",'Enrollment Form'!$C827=\"Enroll\",'Enrollment Form'!$AL827<>\"\"),\"Y\",\"N\")))","v":""},{"$f":"IF($B820=\"N\",\"\",IF(OR('Enrollment Form'!$B827<>\"Subscriber\",'Enrollment Form'!$C827=\"ROC\"),\"-\",IF(AND('Enrollment Form'!$B827=\"Subscriber\",'Enrollment Form'!$C827=\"Enroll\",'Enrollment Form'!$AM827<>\"\"),\"Y\",\"N\")))","v":""},{"$f":"IF($B820=\"N\",\"\",IF(OR('Enrollment Form'!$B827<>\"Subscriber\",'Enrollment Form'!$C827=\"ROC\"),\"-\",IF(AND('Enrollment Form'!$B827=\"Subscriber\",'Enrollment Form'!$C827=\"Enroll\",'Enrollment Form'!$AN827<>\"\"),\"Y\",\"N\")))","v":""},{"$f":"IF($B820=\"N\",\"\",IF(OR('Enrollment Form'!$B827<>\"Subscriber\",'Enrollment Form'!$C827=\"ROC\"),\"-\",IF(AND('Enrollment Form'!$B827=\"Subscriber\",'Enrollment Form'!$C827=\"Enroll\",'Enrollment Form'!$AP827<>\"\"),\"Y\",\"N\")))","v":""},{"$f":"IF($B820=\"N\",\"\",IF($Q820=\"-\",\"-\",IF(AND($Q820=\"Y\",'Enrollment Form'!$AP827=\"No\"),\"-\",IF(AND($Q820=\"Y\",'Enrollment Form'!$AP827=\"Yes\",'Enrollment Form'!$AQ827<>\"\"),\"Y\",\"N\"))))","v":""},{"$f":"IF($B820=\"N\",\"\",IF(OR('Enrollment Form'!$B827<>\"Subscriber\",'Enrollment Form'!$C827=\"ROC\"),\"-\",IF(AND('Enrollment Form'!$B827=\"Subscriber\",'Enrollment Form'!$C827=\"Enroll\",'Enrollment Form'!$CO827<>\"\"),\"Y\",\"N\")))","v":""},{"$f":"IF($B820=\"N\",\"\",IF($S820=\"-\",\"-\",IF(AND($S820=\"Y\",'Enrollment Form'!$CO827=\"No\"),\"-\",IF(AND($S820=\"Y\",'Enrollment Form'!$CO827=\"Yes\",'Enrollment Form'!$CP827<>\"\"),\"Y\",\"N\"))))","v":""},{"$f":"IF(OR('Enrollment Form'!$AV827=\"Yes\",'Enrollment Form'!$AV827=\"\"),\"-\",IF(AND('Enrollment Form'!$AV827=\"No\",ISERROR(FIND(\"HMO\",VLOOKUP('Enrollment Form'!G827,'Enrollment Form'!H$11:J$1000,3,FALSE),1))=FALSE,COUNTA('Enrollment Form'!$AW827:$AZ827)=4),\"Y\",\"N\"))","v":"-"},{"$f":"IF($B820=\"N\",\"\",IF('Enrollment Form'!$B827=\"Subscriber\",\"-\",IF(COUNTA('Enrollment Form'!$BE827,'Enrollment Form'!$BG827)=2,\"Y\",\"N\")))","v":""},{"$f":"IF($B820=\"N\",\"\",IF(OR('Enrollment Form'!$AU827=\"\",'Enrollment Form'!$AU827=\"No\"),\"-\",IF(AND('Enrollment Form'!$AU827=\"Yes\",COUNTA('Enrollment Form'!$CK827)=1),\"Y\",\"N\")))","v":""},{"$f":"IF(OR('Enrollment Form'!$CK827=\"\",'Enrollment Form'!$CK827=\"No\"),\"-\",IF(COUNTA('Enrollment Form'!$CM827:$CN827)=2,\"Y\",\"N\"))","v":"-"},{"$f":"IF($B820=\"N\",\"\",IF(COUNTIF('Enrollment Form'!$CZ827:$DO827,\"Other\")=COUNTA('Enrollment Form'!$DF827,'Enrollment Form'!$DA827,'Enrollment Form'!$DK827,'Enrollment Form'!$DP827),\"Y\",\"N\"))","v":""},{"$f":"IF($B820=\"N\",\"\",IF(OR('Enrollment Form'!B827<>\"Subscriber\",'Enrollment Form'!C827=\"ROC\",COUNTIF('Enrollment Form'!AS827:AT827,\"Yes\")>=1),\"-\",IF(AND('Enrollment Form'!C827=\"Enroll\",COUNTIF('Enrollment Form'!AS827:AT827,\"No\")=2,'Enrollment Form'!AU827=\"\"),\"N\",\"Y\")))","v":""},{"$f":"IF(OR(B820=\"N\",'Enrollment Form'!B827<>\"Subscriber\",'Enrollment Form'!C827=\"ROC\",'Enrollment Form'!O827<>\"Multiple of Salary\"),\"-\",IF(COUNTA('Enrollment Form'!T827:U827)<2,\"N\",\"Y\"))","v":"-"},{"$f":"IF(B820=\"N\",\"\",IF(OR('Enrollment Form'!C827=\"ROC\",'Enrollment Form'!B827<>\"Subscriber\",'Enrollment Form'!O827=\"Waive\",'Enrollment Form'!O827=\"\"),\"-\",IF('Enrollment Form'!P827=\"\",\"N\",\"Y\")))","v":""},{"$f":"IF($B820=\"N\",\"\",IF(AND('Enrollment Form'!$C827=\"ROC\",'Enrollment Form'!$DS827<>\"\"),\"Y\",IF(AND('Enrollment Form'!$C827=\"ROC\",'Enrollment Form'!$DS827=\"\"),\"N\",IF(AND('Enrollment Form'!$C827=\"Enroll\",'Enrollment Form'!$B827=\"Subscriber\",'Enrollment Form'!$CQ827=\"No\",'Enrollment Form'!$DS827=\"\"),\"N\",IF(AND('Enrollment Form'!$C827=\"Enroll\",'Enrollment Form'!$B827=\"Subscriber\",'Enrollment Form'!$CQ827=\"Yes\"),\"-\",\"Y\")))))","v":""},{"$f":"IF($B820=\"N\",\"\",IF(AND('Enrollment Form'!$C827=\"ROC\",'Enrollment Form'!$DT827<>\"\"),\"Y\",IF(AND('Enrollment Form'!$C827=\"ROC\",'Enrollment Form'!$DT827=\"\"),\"N\",IF(AND('Enrollment Form'!$C827=\"Enroll\",'Enrollment Form'!$B827=\"Subscriber\",'Enrollment Form'!$CQ827=\"No\",'Enrollment Form'!$DT827=\"\"),\"N\",IF(AND('Enrollment Form'!$C827=\"Enroll\",'Enrollment Form'!$B827=\"Subscriber\",'Enrollment Form'!$CQ827=\"Yes\"),\"-\",\"Y\")))))","v":""},{"$f":"IF('Enrollment Form'!AH827=\"\",\"\",IF(ISERROR(SEARCH(\".\",'Enrollment Form'!AH827,SEARCH(\"@\",'Enrollment Form'!AH827))),\"N\",\"Y\"))","v":""},{"$f":"IF(OR($B820=\"N\",'Enrollment Form'!$G827=\"\"),\"\",IF('Enrollment Form'!$B827<>\"Subscriber\",\"-\",IF(COUNTIF('Enrollment Form'!$AS827:$AT827,\"Yes\")=2,\"N\",\"Y\")))","v":""},{"$f":"IF(OR('Enrollment Form'!$CC827=\"\",'Enrollment Form'!$CC827=\"No\"),\"-\",IF(AND('Enrollment Form'!$CC827=\"Yes\",'Enrollment Form'!$CD827=\"\"),\"N\",\"Y\"))","v":"-"},{"$f":"IF(OR('Enrollment Form'!$CE827=\"\",'Enrollment Form'!$CE827=\"No\"),\"-\",IF(AND('Enrollment Form'!$CE827=\"Yes\",'Enrollment Form'!$CF827=\"\"),\"N\",\"Y\"))","v":"-"},{"$f":"IF(OR('Enrollment Form'!$CG827=\"\",'Enrollment Form'!$CG827=\"No\"),\"-\",IF(AND('Enrollment Form'!$CG827=\"Yes\",'Enrollment Form'!$CH827=\"\"),\"N\",\"Y\"))","v":"-"},{"$f":"IF(OR('Enrollment Form'!$CG827=\"\",'Enrollment Form'!$CG827=\"No\"),\"-\",IF(AND('Enrollment Form'!$CG827=\"Yes\",'Enrollment Form'!$CI827=\"\"),\"N\",\"Y\"))","v":"-"},{"$f":"IF('Enrollment Form'!B827<>\"Subscriber\",\"-\",IF(AND('Enrollment Form'!B827=\"Subscriber\",'Enrollment Form'!C827=\"Enroll\",'Enrollment Form'!AA827=\"\"),\"N\",\"Y\"))","v":"-"},{"$f":"IF(OR('Enrollment Form'!B827=\"Subscriber\",'Enrollment Form'!B827=\"\"),\"-\",IF('Enrollment Form'!BI827=\"\",\"N\",\"Y\"))","v":"-"},{"$f":"IF('Enrollment Form'!B827<>\"Subscriber\",\"-\",IF(AND('Enrollment Form'!B827=\"Subscriber\",'Enrollment Form'!G827=\"\"),\"N\",\"Y\"))","v":"-"},{"$f":"IF('Enrollment Form'!A827=\"\",\"\",IF('Enrollment Form'!B827=\"Subscriber\",\"-\",IF(AND('Enrollment Form'!B827<>\"Subscriber\",'Enrollment Form'!G827='Enrollment Form'!H827),\"N\",\"Y\")))","v":""},0]
[828,{"$f":"IF('Enrollment Form'!$A828<>\"\",\"Y\",\"N\")","v":"N"},{"$f":"IF(AND('Enrollment Form'!$B828=\"\",'Enrollment Form'!$C828<>\"\"),\"N\",IF($B821=\"N\",\"\",\"Y\"))","v":""},{"$f":"IF(OR($B821=\"N\",'Enrollment Form'!G828=\"\"),\"\",IF('Enrollment Form'!$B828<>\"Subscriber\",\"\",IF('Enrollment Form'!$G828='Enrollment Form'!$H828,\"Y\",\"N\")))","v":""},{"$f":"IF($B821=\"N\",\"\",IF(AND(COUNTIFS('Enrollment Form'!$H$11:$H$1000,'Enrollment Form'!$H828,'Enrollment Form'!$B$11:$B$1000,'Enrollment Form'!$B828)>1,'Enrollment Form'!$H828<>\"\"),\"N\",\"Y\"))","v":""},{"$f":"IF($B821=\"N\",\"\",IF(LEN('Enrollment Form'!$Y828)=0,\"\",IF(LEN('Enrollment Form'!$Y828)<>5,\"N\",\"Y\")))","v":""},{"$f":"IF($B821=\"N\",\"\",IF(LEN('Enrollment Form'!$AD828=0),\"\",IF(LEN('Enrollment Form'!$AD828)<>5,\"N\",\"Y\")))","v":""},{"$f":"IF($B821=\"N\",\"\",IF(LEN('Enrollment Form'!$BL828=0),\"\",IF(LEN('Enrollment Form'!$BL828)<>5,\"N\",\"Y\")))","v":""},{"$f":"IF($B821=\"N\",\"\",IF(LEN('Enrollment Form'!$AE828)=0,\"\",IF(LEN('Enrollment Form'!$AE828)<>10,\"N\",\"Y\")))","v":""},{"$f":"IF($B821=\"N\",\"\",IF(LEN('Enrollment Form'!$AF828)=0,\"\",IF(LEN('Enrollment Form'!$AF828)<>10,\"N\",\"Y\")))","v":""},{"$f":"IF('Enrollment Form'!$O828<>\"Graded\",\"-\",IF(AND('Enrollment Form'!$O828=\"Graded\",'Enrollment Form'!$AO828<>\"\"),\"Y\",\"N\"))","v":"-"},{"$f":"IF($B821=\"N\",\"\",IF(OR('Enrollment Form'!$B828<>\"Subscriber\",'Enrollment Form'!$C828=\"ROC\"),\"-\",IF(AND('Enrollment Form'!$B828=\"Subscriber\",'Enrollment Form'!$C828=\"Enroll\",'Enrollment Form'!$AJ828<>\"\"),\"Y\",\"N\")))","v":""},{"$f":"IF($B821=\"N\",\"\",IF(OR('Enrollment Form'!$B828<>\"Subscriber\",'Enrollment Form'!$C828=\"ROC\"),\"-\",IF(AND('Enrollment Form'!$B828=\"Subscriber\",'Enrollment Form'!$C828=\"Enroll\",'Enrollment Form'!$AK828<>\"\"),\"Y\",\"N\")))","v":""},{"$f":"IF($B821=\"N\",\"\",IF(OR('Enrollment Form'!$B828<>\"Subscriber\",'Enrollment Form'!$C828=\"ROC\"),\"-\",IF(AND('Enrollment Form'!$B828=\"Subscriber\",'Enrollment Form'!$C828=\"Enroll\",'Enrollment Form'!$AL828<>\"\"),\"Y\",\"N\")))","v":""},{"$f":"IF($B821=\"N\",\"\",IF(OR('Enrollment Form'!$B828<>\"Subscriber\",'Enrollment Form'!$C828=\"ROC\"),\"-\",IF(AND('Enrollment Form'!$B828=\"Subscriber\",'Enrollment Form'!$C828=\"Enroll\",'Enrollment Form'!$AM828<>\"\"),\"Y\",\"N\")))","v":""},{"$f":"IF($B821=\"N\",\"\",IF(OR('Enrollment Form'!$B828<>\"Subscriber\",'Enrollment Form'!$C828=\"ROC\"),\"-\",IF(AND('Enrollment Form'!$B828=\"Subscriber\",'Enrollment Form'!$C828=\"Enroll\",'Enrollment Form'!$AN828<>\"\"),\"Y\",\"N\")))","v":""},{"$f":"IF($B821=\"N\",\"\",IF(OR('Enrollment Form'!$B828<>\"Subscriber\",'Enrollment Form'!$C828=\"ROC\"),\"-\",IF(AND('Enrollment Form'!$B828=\"Subscriber\",'Enrollment Form'!$C828=\"Enroll\",'Enrollment Form'!$AP828<>\"\"),\"Y\",\"N\")))","v":""},{"$f":"IF($B821=\"N\",\"\",IF($Q821=\"-\",\"-\",IF(AND($Q821=\"Y\",'Enrollment Form'!$AP828=\"No\"),\"-\",IF(AND($Q821=\"Y\",'Enrollment Form'!$AP828=\"Yes\",'Enrollment Form'!$AQ828<>\"\"),\"Y\",\"N\"))))","v":""},{"$f":"IF($B821=\"N\",\"\",IF(OR('Enrollment Form'!$B828<>\"Subscriber\",'Enrollment Form'!$C828=\"ROC\"),\"-\",IF(AND('Enrollment Form'!$B828=\"Subscriber\",'Enrollment Form'!$C828=\"Enroll\",'Enrollment Form'!$CO828<>\"\"),\"Y\",\"N\")))","v":""},{"$f":"IF($B821=\"N\",\"\",IF($S821=\"-\",\"-\",IF(AND($S821=\"Y\",'Enrollment Form'!$CO828=\"No\"),\"-\",IF(AND($S821=\"Y\",'Enrollment Form'!$CO828=\"Yes\",'Enrollment Form'!$CP828<>\"\"),\"Y\",\"N\"))))","v":""},{"$f":"IF(OR('Enrollment Form'!$AV828=\"Yes\",'Enrollment Form'!$AV828=\"\"),\"-\",IF(AND('Enrollment Form'!$AV828=\"No\",ISERROR(FIND(\"HMO\",VLOOKUP('Enrollment Form'!G828,'Enrollment Form'!H$11:J$1000,3,FALSE),1))=FALSE,COUNTA('Enrollment Form'!$AW828:$AZ828)=4),\"Y\",\"N\"))","v":"-"},{"$f":"IF($B821=\"N\",\"\",IF('Enrollment Form'!$B828=\"Subscriber\",\"-\",IF(COUNTA('Enrollment Form'!$BE828,'Enrollment Form'!$BG828)=2,\"Y\",\"N\")))","v":""},{"$f":"IF($B821=\"N\",\"\",IF(OR('Enrollment Form'!$AU828=\"\",'Enrollment Form'!$AU828=\"No\"),\"-\",IF(AND('Enrollment Form'!$AU828=\"Yes\",COUNTA('Enrollment Form'!$CK828)=1),\"Y\",\"N\")))","v":""},{"$f":"IF(OR('Enrollment Form'!$CK828=\"\",'Enrollment Form'!$CK828=\"No\"),\"-\",IF(COUNTA('Enrollment Form'!$CM828:$CN828)=2,\"Y\",\"N\"))","v":"-"},{"$f":"IF($B821=\"N\",\"\",IF(COUNTIF('Enrollment Form'!$CZ828:$DO828,\"Other\")=COUNTA('Enrollment Form'!$DF828,'Enrollment Form'!$DA828,'Enrollment Form'!$DK828,'Enrollment Form'!$DP828),\"Y\",\"N\"))","v":""},{"$f":"IF($B821=\"N\",\"\",IF(OR('Enrollment Form'!B828<>\"Subscriber\",'Enrollment Form'!C828=\"ROC\",COUNTIF('Enrollment Form'!AS828:AT828,\"Yes\")>=1),\"-\",IF(AND('Enrollment Form'!C828=\"Enroll\",COUNTIF('Enrollment Form'!AS828:AT828,\"No\")=2,'Enrollment Form'!AU828=\"\"),\"N\",\"Y\")))","v":""},{"$f":"IF(OR(B821=\"N\",'Enrollment Form'!B828<>\"Subscriber\",'Enrollment Form'!C828=\"ROC\",'Enrollment Form'!O828<>\"Multiple of Salary\"),\"-\",IF(COUNTA('Enrollment Form'!T828:U828)<2,\"N\",\"Y\"))","v":"-"},{"$f":"IF(B821=\"N\",\"\",IF(OR('Enrollment Form'!C828=\"ROC\",'Enrollment Form'!B828<>\"Subscriber\",'Enrollment Form'!O828=\"Waive\",'Enrollment Form'!O828=\"\"),\"-\",IF('Enrollment Form'!P828=\"\",\"N\",\"Y\")))","v":""},{"$f":"IF($B821=\"N\",\"\",IF(AND('Enrollment Form'!$C828=\"ROC\",'Enrollment Form'!$DS828<>\"\"),\"Y\",IF(AND('Enrollment Form'!$C828=\"ROC\",'Enrollment Form'!$DS828=\"\"),\"N\",IF(AND('Enrollment Form'!$C828=\"Enroll\",'Enrollment Form'!$B828=\"Subscriber\",'Enrollment Form'!$CQ828=\"No\",'Enrollment Form'!$DS828=\"\"),\"N\",IF(AND('Enrollment Form'!$C828=\"Enroll\",'Enrollment Form'!$B828=\"Subscriber\",'Enrollment Form'!$CQ828=\"Yes\"),\"-\",\"Y\")))))","v":""},{"$f":"IF($B821=\"N\",\"\",IF(AND('Enrollment Form'!$C828=\"ROC\",'Enrollment Form'!$DT828<>\"\"),\"Y\",IF(AND('Enrollment Form'!$C828=\"ROC\",'Enrollment Form'!$DT828=\"\"),\"N\",IF(AND('Enrollment Form'!$C828=\"Enroll\",'Enrollment Form'!$B828=\"Subscriber\",'Enrollment Form'!$CQ828=\"No\",'Enrollment Form'!$DT828=\"\"),\"N\",IF(AND('Enrollment Form'!$C828=\"Enroll\",'Enrollment Form'!$B828=\"Subscriber\",'Enrollment Form'!$CQ828=\"Yes\"),\"-\",\"Y\")))))","v":""},{"$f":"IF('Enrollment Form'!AH828=\"\",\"\",IF(ISERROR(SEARCH(\".\",'Enrollment Form'!AH828,SEARCH(\"@\",'Enrollment Form'!AH828))),\"N\",\"Y\"))","v":""},{"$f":"IF(OR($B821=\"N\",'Enrollment Form'!$G828=\"\"),\"\",IF('Enrollment Form'!$B828<>\"Subscriber\",\"-\",IF(COUNTIF('Enrollment Form'!$AS828:$AT828,\"Yes\")=2,\"N\",\"Y\")))","v":""},{"$f":"IF(OR('Enrollment Form'!$CC828=\"\",'Enrollment Form'!$CC828=\"No\"),\"-\",IF(AND('Enrollment Form'!$CC828=\"Yes\",'Enrollment Form'!$CD828=\"\"),\"N\",\"Y\"))","v":"-"},{"$f":"IF(OR('Enrollment Form'!$CE828=\"\",'Enrollment Form'!$CE828=\"No\"),\"-\",IF(AND('Enrollment Form'!$CE828=\"Yes\",'Enrollment Form'!$CF828=\"\"),\"N\",\"Y\"))","v":"-"},{"$f":"IF(OR('Enrollment Form'!$CG828=\"\",'Enrollment Form'!$CG828=\"No\"),\"-\",IF(AND('Enrollment Form'!$CG828=\"Yes\",'Enrollment Form'!$CH828=\"\"),\"N\",\"Y\"))","v":"-"},{"$f":"IF(OR('Enrollment Form'!$CG828=\"\",'Enrollment Form'!$CG828=\"No\"),\"-\",IF(AND('Enrollment Form'!$CG828=\"Yes\",'Enrollment Form'!$CI828=\"\"),\"N\",\"Y\"))","v":"-"},{"$f":"IF('Enrollment Form'!B828<>\"Subscriber\",\"-\",IF(AND('Enrollment Form'!B828=\"Subscriber\",'Enrollment Form'!C828=\"Enroll\",'Enrollment Form'!AA828=\"\"),\"N\",\"Y\"))","v":"-"},{"$f":"IF(OR('Enrollment Form'!B828=\"Subscriber\",'Enrollment Form'!B828=\"\"),\"-\",IF('Enrollment Form'!BI828=\"\",\"N\",\"Y\"))","v":"-"},{"$f":"IF('Enrollment Form'!B828<>\"Subscriber\",\"-\",IF(AND('Enrollment Form'!B828=\"Subscriber\",'Enrollment Form'!G828=\"\"),\"N\",\"Y\"))","v":"-"},{"$f":"IF('Enrollment Form'!A828=\"\",\"\",IF('Enrollment Form'!B828=\"Subscriber\",\"-\",IF(AND('Enrollment Form'!B828<>\"Subscriber\",'Enrollment Form'!G828='Enrollment Form'!H828),\"N\",\"Y\")))","v":""},0]
[829,{"$f":"IF('Enrollment Form'!$A829<>\"\",\"Y\",\"N\")","v":"N"},{"$f":"IF(AND('Enrollment Form'!$B829=\"\",'Enrollment Form'!$C829<>\"\"),\"N\",IF($B822=\"N\",\"\",\"Y\"))","v":""},{"$f":"IF(OR($B822=\"N\",'Enrollment Form'!G829=\"\"),\"\",IF('Enrollment Form'!$B829<>\"Subscriber\",\"\",IF('Enrollment Form'!$G829='Enrollment Form'!$H829,\"Y\",\"N\")))","v":""},{"$f":"IF($B822=\"N\",\"\",IF(AND(COUNTIFS('Enrollment Form'!$H$11:$H$1000,'Enrollment Form'!$H829,'Enrollment Form'!$B$11:$B$1000,'Enrollment Form'!$B829)>1,'Enrollment Form'!$H829<>\"\"),\"N\",\"Y\"))","v":""},{"$f":"IF($B822=\"N\",\"\",IF(LEN('Enrollment Form'!$Y829)=0,\"\",IF(LEN('Enrollment Form'!$Y829)<>5,\"N\",\"Y\")))","v":""},{"$f":"IF($B822=\"N\",\"\",IF(LEN('Enrollment Form'!$AD829=0),\"\",IF(LEN('Enrollment Form'!$AD829)<>5,\"N\",\"Y\")))","v":""},{"$f":"IF($B822=\"N\",\"\",IF(LEN('Enrollment Form'!$BL829=0),\"\",IF(LEN('Enrollment Form'!$BL829)<>5,\"N\",\"Y\")))","v":""},{"$f":"IF($B822=\"N\",\"\",IF(LEN('Enrollment Form'!$AE829)=0,\"\",IF(LEN('Enrollment Form'!$AE829)<>10,\"N\",\"Y\")))","v":""},{"$f":"IF($B822=\"N\",\"\",IF(LEN('Enrollment Form'!$AF829)=0,\"\",IF(LEN('Enrollment Form'!$AF829)<>10,\"N\",\"Y\")))","v":""},{"$f":"IF('Enrollment Form'!$O829<>\"Graded\",\"-\",IF(AND('Enrollment Form'!$O829=\"Graded\",'Enrollment Form'!$AO829<>\"\"),\"Y\",\"N\"))","v":"-"},{"$f":"IF($B822=\"N\",\"\",IF(OR('Enrollment Form'!$B829<>\"Subscriber\",'Enrollment Form'!$C829=\"ROC\"),\"-\",IF(AND('Enrollment Form'!$B829=\"Subscriber\",'Enrollment Form'!$C829=\"Enroll\",'Enrollment Form'!$AJ829<>\"\"),\"Y\",\"N\")))","v":""},{"$f":"IF($B822=\"N\",\"\",IF(OR('Enrollment Form'!$B829<>\"Subscriber\",'Enrollment Form'!$C829=\"ROC\"),\"-\",IF(AND('Enrollment Form'!$B829=\"Subscriber\",'Enrollment Form'!$C829=\"Enroll\",'Enrollment Form'!$AK829<>\"\"),\"Y\",\"N\")))","v":""},{"$f":"IF($B822=\"N\",\"\",IF(OR('Enrollment Form'!$B829<>\"Subscriber\",'Enrollment Form'!$C829=\"ROC\"),\"-\",IF(AND('Enrollment Form'!$B829=\"Subscriber\",'Enrollment Form'!$C829=\"Enroll\",'Enrollment Form'!$AL829<>\"\"),\"Y\",\"N\")))","v":""},{"$f":"IF($B822=\"N\",\"\",IF(OR('Enrollment Form'!$B829<>\"Subscriber\",'Enrollment Form'!$C829=\"ROC\"),\"-\",IF(AND('Enrollment Form'!$B829=\"Subscriber\",'Enrollment Form'!$C829=\"Enroll\",'Enrollment Form'!$AM829<>\"\"),\"Y\",\"N\")))","v":""},{"$f":"IF($B822=\"N\",\"\",IF(OR('Enrollment Form'!$B829<>\"Subscriber\",'Enrollment Form'!$C829=\"ROC\"),\"-\",IF(AND('Enrollment Form'!$B829=\"Subscriber\",'Enrollment Form'!$C829=\"Enroll\",'Enrollment Form'!$AN829<>\"\"),\"Y\",\"N\")))","v":""},{"$f":"IF($B822=\"N\",\"\",IF(OR('Enrollment Form'!$B829<>\"Subscriber\",'Enrollment Form'!$C829=\"ROC\"),\"-\",IF(AND('Enrollment Form'!$B829=\"Subscriber\",'Enrollment Form'!$C829=\"Enroll\",'Enrollment Form'!$AP829<>\"\"),\"Y\",\"N\")))","v":""},{"$f":"IF($B822=\"N\",\"\",IF($Q822=\"-\",\"-\",IF(AND($Q822=\"Y\",'Enrollment Form'!$AP829=\"No\"),\"-\",IF(AND($Q822=\"Y\",'Enrollment Form'!$AP829=\"Yes\",'Enrollment Form'!$AQ829<>\"\"),\"Y\",\"N\"))))","v":""},{"$f":"IF($B822=\"N\",\"\",IF(OR('Enrollment Form'!$B829<>\"Subscriber\",'Enrollment Form'!$C829=\"ROC\"),\"-\",IF(AND('Enrollment Form'!$B829=\"Subscriber\",'Enrollment Form'!$C829=\"Enroll\",'Enrollment Form'!$CO829<>\"\"),\"Y\",\"N\")))","v":""},{"$f":"IF($B822=\"N\",\"\",IF($S822=\"-\",\"-\",IF(AND($S822=\"Y\",'Enrollment Form'!$CO829=\"No\"),\"-\",IF(AND($S822=\"Y\",'Enrollment Form'!$CO829=\"Yes\",'Enrollment Form'!$CP829<>\"\"),\"Y\",\"N\"))))","v":""},{"$f":"IF(OR('Enrollment Form'!$AV829=\"Yes\",'Enrollment Form'!$AV829=\"\"),\"-\",IF(AND('Enrollment Form'!$AV829=\"No\",ISERROR(FIND(\"HMO\",VLOOKUP('Enrollment Form'!G829,'Enrollment Form'!H$11:J$1000,3,FALSE),1))=FALSE,COUNTA('Enrollment Form'!$AW829:$AZ829)=4),\"Y\",\"N\"))","v":"-"},{"$f":"IF($B822=\"N\",\"\",IF('Enrollment Form'!$B829=\"Subscriber\",\"-\",IF(COUNTA('Enrollment Form'!$BE829,'Enrollment Form'!$BG829)=2,\"Y\",\"N\")))","v":""},{"$f":"IF($B822=\"N\",\"\",IF(OR('Enrollment Form'!$AU829=\"\",'Enrollment Form'!$AU829=\"No\"),\"-\",IF(AND('Enrollment Form'!$AU829=\"Yes\",COUNTA('Enrollment Form'!$CK829)=1),\"Y\",\"N\")))","v":""},{"$f":"IF(OR('Enrollment Form'!$CK829=\"\",'Enrollment Form'!$CK829=\"No\"),\"-\",IF(COUNTA('Enrollment Form'!$CM829:$CN829)=2,\"Y\",\"N\"))","v":"-"},{"$f":"IF($B822=\"N\",\"\",IF(COUNTIF('Enrollment Form'!$CZ829:$DO829,\"Other\")=COUNTA('Enrollment Form'!$DF829,'Enrollment Form'!$DA829,'Enrollment Form'!$DK829,'Enrollment Form'!$DP829),\"Y\",\"N\"))","v":""},{"$f":"IF($B822=\"N\",\"\",IF(OR('Enrollment Form'!B829<>\"Subscriber\",'Enrollment Form'!C829=\"ROC\",COUNTIF('Enrollment Form'!AS829:AT829,\"Yes\")>=1),\"-\",IF(AND('Enrollment Form'!C829=\"Enroll\",COUNTIF('Enrollment Form'!AS829:AT829,\"No\")=2,'Enrollment Form'!AU829=\"\"),\"N\",\"Y\")))","v":""},{"$f":"IF(OR(B822=\"N\",'Enrollment Form'!B829<>\"Subscriber\",'Enrollment Form'!C829=\"ROC\",'Enrollment Form'!O829<>\"Multiple of Salary\"),\"-\",IF(COUNTA('Enrollment Form'!T829:U829)<2,\"N\",\"Y\"))","v":"-"},{"$f":"IF(B822=\"N\",\"\",IF(OR('Enrollment Form'!C829=\"ROC\",'Enrollment Form'!B829<>\"Subscriber\",'Enrollment Form'!O829=\"Waive\",'Enrollment Form'!O829=\"\"),\"-\",IF('Enrollment Form'!P829=\"\",\"N\",\"Y\")))","v":""},{"$f":"IF($B822=\"N\",\"\",IF(AND('Enrollment Form'!$C829=\"ROC\",'Enrollment Form'!$DS829<>\"\"),\"Y\",IF(AND('Enrollment Form'!$C829=\"ROC\",'Enrollment Form'!$DS829=\"\"),\"N\",IF(AND('Enrollment Form'!$C829=\"Enroll\",'Enrollment Form'!$B829=\"Subscriber\",'Enrollment Form'!$CQ829=\"No\",'Enrollment Form'!$DS829=\"\"),\"N\",IF(AND('Enrollment Form'!$C829=\"Enroll\",'Enrollment Form'!$B829=\"Subscriber\",'Enrollment Form'!$CQ829=\"Yes\"),\"-\",\"Y\")))))","v":""},{"$f":"IF($B822=\"N\",\"\",IF(AND('Enrollment Form'!$C829=\"ROC\",'Enrollment Form'!$DT829<>\"\"),\"Y\",IF(AND('Enrollment Form'!$C829=\"ROC\",'Enrollment Form'!$DT829=\"\"),\"N\",IF(AND('Enrollment Form'!$C829=\"Enroll\",'Enrollment Form'!$B829=\"Subscriber\",'Enrollment Form'!$CQ829=\"No\",'Enrollment Form'!$DT829=\"\"),\"N\",IF(AND('Enrollment Form'!$C829=\"Enroll\",'Enrollment Form'!$B829=\"Subscriber\",'Enrollment Form'!$CQ829=\"Yes\"),\"-\",\"Y\")))))","v":""},{"$f":"IF('Enrollment Form'!AH829=\"\",\"\",IF(ISERROR(SEARCH(\".\",'Enrollment Form'!AH829,SEARCH(\"@\",'Enrollment Form'!AH829))),\"N\",\"Y\"))","v":""},{"$f":"IF(OR($B822=\"N\",'Enrollment Form'!$G829=\"\"),\"\",IF('Enrollment Form'!$B829<>\"Subscriber\",\"-\",IF(COUNTIF('Enrollment Form'!$AS829:$AT829,\"Yes\")=2,\"N\",\"Y\")))","v":""},{"$f":"IF(OR('Enrollment Form'!$CC829=\"\",'Enrollment Form'!$CC829=\"No\"),\"-\",IF(AND('Enrollment Form'!$CC829=\"Yes\",'Enrollment Form'!$CD829=\"\"),\"N\",\"Y\"))","v":"-"},{"$f":"IF(OR('Enrollment Form'!$CE829=\"\",'Enrollment Form'!$CE829=\"No\"),\"-\",IF(AND('Enrollment Form'!$CE829=\"Yes\",'Enrollment Form'!$CF829=\"\"),\"N\",\"Y\"))","v":"-"},{"$f":"IF(OR('Enrollment Form'!$CG829=\"\",'Enrollment Form'!$CG829=\"No\"),\"-\",IF(AND('Enrollment Form'!$CG829=\"Yes\",'Enrollment Form'!$CH829=\"\"),\"N\",\"Y\"))","v":"-"},{"$f":"IF(OR('Enrollment Form'!$CG829=\"\",'Enrollment Form'!$CG829=\"No\"),\"-\",IF(AND('Enrollment Form'!$CG829=\"Yes\",'Enrollment Form'!$CI829=\"\"),\"N\",\"Y\"))","v":"-"},{"$f":"IF('Enrollment Form'!B829<>\"Subscriber\",\"-\",IF(AND('Enrollment Form'!B829=\"Subscriber\",'Enrollment Form'!C829=\"Enroll\",'Enrollment Form'!AA829=\"\"),\"N\",\"Y\"))","v":"-"},{"$f":"IF(OR('Enrollment Form'!B829=\"Subscriber\",'Enrollment Form'!B829=\"\"),\"-\",IF('Enrollment Form'!BI829=\"\",\"N\",\"Y\"))","v":"-"},{"$f":"IF('Enrollment Form'!B829<>\"Subscriber\",\"-\",IF(AND('Enrollment Form'!B829=\"Subscriber\",'Enrollment Form'!G829=\"\"),\"N\",\"Y\"))","v":"-"},{"$f":"IF('Enrollment Form'!A829=\"\",\"\",IF('Enrollment Form'!B829=\"Subscriber\",\"-\",IF(AND('Enrollment Form'!B829<>\"Subscriber\",'Enrollment Form'!G829='Enrollment Form'!H829),\"N\",\"Y\")))","v":""},0]
[830,{"$f":"IF('Enrollment Form'!$A830<>\"\",\"Y\",\"N\")","v":"N"},{"$f":"IF(AND('Enrollment Form'!$B830=\"\",'Enrollment Form'!$C830<>\"\"),\"N\",IF($B823=\"N\",\"\",\"Y\"))","v":""},{"$f":"IF(OR($B823=\"N\",'Enrollment Form'!G830=\"\"),\"\",IF('Enrollment Form'!$B830<>\"Subscriber\",\"\",IF('Enrollment Form'!$G830='Enrollment Form'!$H830,\"Y\",\"N\")))","v":""},{"$f":"IF($B823=\"N\",\"\",IF(AND(COUNTIFS('Enrollment Form'!$H$11:$H$1000,'Enrollment Form'!$H830,'Enrollment Form'!$B$11:$B$1000,'Enrollment Form'!$B830)>1,'Enrollment Form'!$H830<>\"\"),\"N\",\"Y\"))","v":""},{"$f":"IF($B823=\"N\",\"\",IF(LEN('Enrollment Form'!$Y830)=0,\"\",IF(LEN('Enrollment Form'!$Y830)<>5,\"N\",\"Y\")))","v":""},{"$f":"IF($B823=\"N\",\"\",IF(LEN('Enrollment Form'!$AD830=0),\"\",IF(LEN('Enrollment Form'!$AD830)<>5,\"N\",\"Y\")))","v":""},{"$f":"IF($B823=\"N\",\"\",IF(LEN('Enrollment Form'!$BL830=0),\"\",IF(LEN('Enrollment Form'!$BL830)<>5,\"N\",\"Y\")))","v":""},{"$f":"IF($B823=\"N\",\"\",IF(LEN('Enrollment Form'!$AE830)=0,\"\",IF(LEN('Enrollment Form'!$AE830)<>10,\"N\",\"Y\")))","v":""},{"$f":"IF($B823=\"N\",\"\",IF(LEN('Enrollment Form'!$AF830)=0,\"\",IF(LEN('Enrollment Form'!$AF830)<>10,\"N\",\"Y\")))","v":""},{"$f":"IF('Enrollment Form'!$O830<>\"Graded\",\"-\",IF(AND('Enrollment Form'!$O830=\"Graded\",'Enrollment Form'!$AO830<>\"\"),\"Y\",\"N\"))","v":"-"},{"$f":"IF($B823=\"N\",\"\",IF(OR('Enrollment Form'!$B830<>\"Subscriber\",'Enrollment Form'!$C830=\"ROC\"),\"-\",IF(AND('Enrollment Form'!$B830=\"Subscriber\",'Enrollment Form'!$C830=\"Enroll\",'Enrollment Form'!$AJ830<>\"\"),\"Y\",\"N\")))","v":""},{"$f":"IF($B823=\"N\",\"\",IF(OR('Enrollment Form'!$B830<>\"Subscriber\",'Enrollment Form'!$C830=\"ROC\"),\"-\",IF(AND('Enrollment Form'!$B830=\"Subscriber\",'Enrollment Form'!$C830=\"Enroll\",'Enrollment Form'!$AK830<>\"\"),\"Y\",\"N\")))","v":""},{"$f":"IF($B823=\"N\",\"\",IF(OR('Enrollment Form'!$B830<>\"Subscriber\",'Enrollment Form'!$C830=\"ROC\"),\"-\",IF(AND('Enrollment Form'!$B830=\"Subscriber\",'Enrollment Form'!$C830=\"Enroll\",'Enrollment Form'!$AL830<>\"\"),\"Y\",\"N\")))","v":""},{"$f":"IF($B823=\"N\",\"\",IF(OR('Enrollment Form'!$B830<>\"Subscriber\",'Enrollment Form'!$C830=\"ROC\"),\"-\",IF(AND('Enrollment Form'!$B830=\"Subscriber\",'Enrollment Form'!$C830=\"Enroll\",'Enrollment Form'!$AM830<>\"\"),\"Y\",\"N\")))","v":""},{"$f":"IF($B823=\"N\",\"\",IF(OR('Enrollment Form'!$B830<>\"Subscriber\",'Enrollment Form'!$C830=\"ROC\"),\"-\",IF(AND('Enrollment Form'!$B830=\"Subscriber\",'Enrollment Form'!$C830=\"Enroll\",'Enrollment Form'!$AN830<>\"\"),\"Y\",\"N\")))","v":""},{"$f":"IF($B823=\"N\",\"\",IF(OR('Enrollment Form'!$B830<>\"Subscriber\",'Enrollment Form'!$C830=\"ROC\"),\"-\",IF(AND('Enrollment Form'!$B830=\"Subscriber\",'Enrollment Form'!$C830=\"Enroll\",'Enrollment Form'!$AP830<>\"\"),\"Y\",\"N\")))","v":""},{"$f":"IF($B823=\"N\",\"\",IF($Q823=\"-\",\"-\",IF(AND($Q823=\"Y\",'Enrollment Form'!$AP830=\"No\"),\"-\",IF(AND($Q823=\"Y\",'Enrollment Form'!$AP830=\"Yes\",'Enrollment Form'!$AQ830<>\"\"),\"Y\",\"N\"))))","v":""},{"$f":"IF($B823=\"N\",\"\",IF(OR('Enrollment Form'!$B830<>\"Subscriber\",'Enrollment Form'!$C830=\"ROC\"),\"-\",IF(AND('Enrollment Form'!$B830=\"Subscriber\",'Enrollment Form'!$C830=\"Enroll\",'Enrollment Form'!$CO830<>\"\"),\"Y\",\"N\")))","v":""},{"$f":"IF($B823=\"N\",\"\",IF($S823=\"-\",\"-\",IF(AND($S823=\"Y\",'Enrollment Form'!$CO830=\"No\"),\"-\",IF(AND($S823=\"Y\",'Enrollment Form'!$CO830=\"Yes\",'Enrollment Form'!$CP830<>\"\"),\"Y\",\"N\"))))","v":""},{"$f":"IF(OR('Enrollment Form'!$AV830=\"Yes\",'Enrollment Form'!$AV830=\"\"),\"-\",IF(AND('Enrollment Form'!$AV830=\"No\",ISERROR(FIND(\"HMO\",VLOOKUP('Enrollment Form'!G830,'Enrollment Form'!H$11:J$1000,3,FALSE),1))=FALSE,COUNTA('Enrollment Form'!$AW830:$AZ830)=4),\"Y\",\"N\"))","v":"-"},{"$f":"IF($B823=\"N\",\"\",IF('Enrollment Form'!$B830=\"Subscriber\",\"-\",IF(COUNTA('Enrollment Form'!$BE830,'Enrollment Form'!$BG830)=2,\"Y\",\"N\")))","v":""},{"$f":"IF($B823=\"N\",\"\",IF(OR('Enrollment Form'!$AU830=\"\",'Enrollment Form'!$AU830=\"No\"),\"-\",IF(AND('Enrollment Form'!$AU830=\"Yes\",COUNTA('Enrollment Form'!$CK830)=1),\"Y\",\"N\")))","v":""},{"$f":"IF(OR('Enrollment Form'!$CK830=\"\",'Enrollment Form'!$CK830=\"No\"),\"-\",IF(COUNTA('Enrollment Form'!$CM830:$CN830)=2,\"Y\",\"N\"))","v":"-"},{"$f":"IF($B823=\"N\",\"\",IF(COUNTIF('Enrollment Form'!$CZ830:$DO830,\"Other\")=COUNTA('Enrollment Form'!$DF830,'Enrollment Form'!$DA830,'Enrollment Form'!$DK830,'Enrollment Form'!$DP830),\"Y\",\"N\"))","v":""},{"$f":"IF($B823=\"N\",\"\",IF(OR('Enrollment Form'!B830<>\"Subscriber\",'Enrollment Form'!C830=\"ROC\",COUNTIF('Enrollment Form'!AS830:AT830,\"Yes\")>=1),\"-\",IF(AND('Enrollment Form'!C830=\"Enroll\",COUNTIF('Enrollment Form'!AS830:AT830,\"No\")=2,'Enrollment Form'!AU830=\"\"),\"N\",\"Y\")))","v":""},{"$f":"IF(OR(B823=\"N\",'Enrollment Form'!B830<>\"Subscriber\",'Enrollment Form'!C830=\"ROC\",'Enrollment Form'!O830<>\"Multiple of Salary\"),\"-\",IF(COUNTA('Enrollment Form'!T830:U830)<2,\"N\",\"Y\"))","v":"-"},{"$f":"IF(B823=\"N\",\"\",IF(OR('Enrollment Form'!C830=\"ROC\",'Enrollment Form'!B830<>\"Subscriber\",'Enrollment Form'!O830=\"Waive\",'Enrollment Form'!O830=\"\"),\"-\",IF('Enrollment Form'!P830=\"\",\"N\",\"Y\")))","v":""},{"$f":"IF($B823=\"N\",\"\",IF(AND('Enrollment Form'!$C830=\"ROC\",'Enrollment Form'!$DS830<>\"\"),\"Y\",IF(AND('Enrollment Form'!$C830=\"ROC\",'Enrollment Form'!$DS830=\"\"),\"N\",IF(AND('Enrollment Form'!$C830=\"Enroll\",'Enrollment Form'!$B830=\"Subscriber\",'Enrollment Form'!$CQ830=\"No\",'Enrollment Form'!$DS830=\"\"),\"N\",IF(AND('Enrollment Form'!$C830=\"Enroll\",'Enrollment Form'!$B830=\"Subscriber\",'Enrollment Form'!$CQ830=\"Yes\"),\"-\",\"Y\")))))","v":""},{"$f":"IF($B823=\"N\",\"\",IF(AND('Enrollment Form'!$C830=\"ROC\",'Enrollment Form'!$DT830<>\"\"),\"Y\",IF(AND('Enrollment Form'!$C830=\"ROC\",'Enrollment Form'!$DT830=\"\"),\"N\",IF(AND('Enrollment Form'!$C830=\"Enroll\",'Enrollment Form'!$B830=\"Subscriber\",'Enrollment Form'!$CQ830=\"No\",'Enrollment Form'!$DT830=\"\"),\"N\",IF(AND('Enrollment Form'!$C830=\"Enroll\",'Enrollment Form'!$B830=\"Subscriber\",'Enrollment Form'!$CQ830=\"Yes\"),\"-\",\"Y\")))))","v":""},{"$f":"IF('Enrollment Form'!AH830=\"\",\"\",IF(ISERROR(SEARCH(\".\",'Enrollment Form'!AH830,SEARCH(\"@\",'Enrollment Form'!AH830))),\"N\",\"Y\"))","v":""},{"$f":"IF(OR($B823=\"N\",'Enrollment Form'!$G830=\"\"),\"\",IF('Enrollment Form'!$B830<>\"Subscriber\",\"-\",IF(COUNTIF('Enrollment Form'!$AS830:$AT830,\"Yes\")=2,\"N\",\"Y\")))","v":""},{"$f":"IF(OR('Enrollment Form'!$CC830=\"\",'Enrollment Form'!$CC830=\"No\"),\"-\",IF(AND('Enrollment Form'!$CC830=\"Yes\",'Enrollment Form'!$CD830=\"\"),\"N\",\"Y\"))","v":"-"},{"$f":"IF(OR('Enrollment Form'!$CE830=\"\",'Enrollment Form'!$CE830=\"No\"),\"-\",IF(AND('Enrollment Form'!$CE830=\"Yes\",'Enrollment Form'!$CF830=\"\"),\"N\",\"Y\"))","v":"-"},{"$f":"IF(OR('Enrollment Form'!$CG830=\"\",'Enrollment Form'!$CG830=\"No\"),\"-\",IF(AND('Enrollment Form'!$CG830=\"Yes\",'Enrollment Form'!$CH830=\"\"),\"N\",\"Y\"))","v":"-"},{"$f":"IF(OR('Enrollment Form'!$CG830=\"\",'Enrollment Form'!$CG830=\"No\"),\"-\",IF(AND('Enrollment Form'!$CG830=\"Yes\",'Enrollment Form'!$CI830=\"\"),\"N\",\"Y\"))","v":"-"},{"$f":"IF('Enrollment Form'!B830<>\"Subscriber\",\"-\",IF(AND('Enrollment Form'!B830=\"Subscriber\",'Enrollment Form'!C830=\"Enroll\",'Enrollment Form'!AA830=\"\"),\"N\",\"Y\"))","v":"-"},{"$f":"IF(OR('Enrollment Form'!B830=\"Subscriber\",'Enrollment Form'!B830=\"\"),\"-\",IF('Enrollment Form'!BI830=\"\",\"N\",\"Y\"))","v":"-"},{"$f":"IF('Enrollment Form'!B830<>\"Subscriber\",\"-\",IF(AND('Enrollment Form'!B830=\"Subscriber\",'Enrollment Form'!G830=\"\"),\"N\",\"Y\"))","v":"-"},{"$f":"IF('Enrollment Form'!A830=\"\",\"\",IF('Enrollment Form'!B830=\"Subscriber\",\"-\",IF(AND('Enrollment Form'!B830<>\"Subscriber\",'Enrollment Form'!G830='Enrollment Form'!H830),\"N\",\"Y\")))","v":""},0]
[831,{"$f":"IF('Enrollment Form'!$A831<>\"\",\"Y\",\"N\")","v":"N"},{"$f":"IF(AND('Enrollment Form'!$B831=\"\",'Enrollment Form'!$C831<>\"\"),\"N\",IF($B824=\"N\",\"\",\"Y\"))","v":""},{"$f":"IF(OR($B824=\"N\",'Enrollment Form'!G831=\"\"),\"\",IF('Enrollment Form'!$B831<>\"Subscriber\",\"\",IF('Enrollment Form'!$G831='Enrollment Form'!$H831,\"Y\",\"N\")))","v":""},{"$f":"IF($B824=\"N\",\"\",IF(AND(COUNTIFS('Enrollment Form'!$H$11:$H$1000,'Enrollment Form'!$H831,'Enrollment Form'!$B$11:$B$1000,'Enrollment Form'!$B831)>1,'Enrollment Form'!$H831<>\"\"),\"N\",\"Y\"))","v":""},{"$f":"IF($B824=\"N\",\"\",IF(LEN('Enrollment Form'!$Y831)=0,\"\",IF(LEN('Enrollment Form'!$Y831)<>5,\"N\",\"Y\")))","v":""},{"$f":"IF($B824=\"N\",\"\",IF(LEN('Enrollment Form'!$AD831=0),\"\",IF(LEN('Enrollment Form'!$AD831)<>5,\"N\",\"Y\")))","v":""},{"$f":"IF($B824=\"N\",\"\",IF(LEN('Enrollment Form'!$BL831=0),\"\",IF(LEN('Enrollment Form'!$BL831)<>5,\"N\",\"Y\")))","v":""},{"$f":"IF($B824=\"N\",\"\",IF(LEN('Enrollment Form'!$AE831)=0,\"\",IF(LEN('Enrollment Form'!$AE831)<>10,\"N\",\"Y\")))","v":""},{"$f":"IF($B824=\"N\",\"\",IF(LEN('Enrollment Form'!$AF831)=0,\"\",IF(LEN('Enrollment Form'!$AF831)<>10,\"N\",\"Y\")))","v":""},{"$f":"IF('Enrollment Form'!$O831<>\"Graded\",\"-\",IF(AND('Enrollment Form'!$O831=\"Graded\",'Enrollment Form'!$AO831<>\"\"),\"Y\",\"N\"))","v":"-"},{"$f":"IF($B824=\"N\",\"\",IF(OR('Enrollment Form'!$B831<>\"Subscriber\",'Enrollment Form'!$C831=\"ROC\"),\"-\",IF(AND('Enrollment Form'!$B831=\"Subscriber\",'Enrollment Form'!$C831=\"Enroll\",'Enrollment Form'!$AJ831<>\"\"),\"Y\",\"N\")))","v":""},{"$f":"IF($B824=\"N\",\"\",IF(OR('Enrollment Form'!$B831<>\"Subscriber\",'Enrollment Form'!$C831=\"ROC\"),\"-\",IF(AND('Enrollment Form'!$B831=\"Subscriber\",'Enrollment Form'!$C831=\"Enroll\",'Enrollment Form'!$AK831<>\"\"),\"Y\",\"N\")))","v":""},{"$f":"IF($B824=\"N\",\"\",IF(OR('Enrollment Form'!$B831<>\"Subscriber\",'Enrollment Form'!$C831=\"ROC\"),\"-\",IF(AND('Enrollment Form'!$B831=\"Subscriber\",'Enrollment Form'!$C831=\"Enroll\",'Enrollment Form'!$AL831<>\"\"),\"Y\",\"N\")))","v":""},{"$f":"IF($B824=\"N\",\"\",IF(OR('Enrollment Form'!$B831<>\"Subscriber\",'Enrollment Form'!$C831=\"ROC\"),\"-\",IF(AND('Enrollment Form'!$B831=\"Subscriber\",'Enrollment Form'!$C831=\"Enroll\",'Enrollment Form'!$AM831<>\"\"),\"Y\",\"N\")))","v":""},{"$f":"IF($B824=\"N\",\"\",IF(OR('Enrollment Form'!$B831<>\"Subscriber\",'Enrollment Form'!$C831=\"ROC\"),\"-\",IF(AND('Enrollment Form'!$B831=\"Subscriber\",'Enrollment Form'!$C831=\"Enroll\",'Enrollment Form'!$AN831<>\"\"),\"Y\",\"N\")))","v":""},{"$f":"IF($B824=\"N\",\"\",IF(OR('Enrollment Form'!$B831<>\"Subscriber\",'Enrollment Form'!$C831=\"ROC\"),\"-\",IF(AND('Enrollment Form'!$B831=\"Subscriber\",'Enrollment Form'!$C831=\"Enroll\",'Enrollment Form'!$AP831<>\"\"),\"Y\",\"N\")))","v":""},{"$f":"IF($B824=\"N\",\"\",IF($Q824=\"-\",\"-\",IF(AND($Q824=\"Y\",'Enrollment Form'!$AP831=\"No\"),\"-\",IF(AND($Q824=\"Y\",'Enrollment Form'!$AP831=\"Yes\",'Enrollment Form'!$AQ831<>\"\"),\"Y\",\"N\"))))","v":""},{"$f":"IF($B824=\"N\",\"\",IF(OR('Enrollment Form'!$B831<>\"Subscriber\",'Enrollment Form'!$C831=\"ROC\"),\"-\",IF(AND('Enrollment Form'!$B831=\"Subscriber\",'Enrollment Form'!$C831=\"Enroll\",'Enrollment Form'!$CO831<>\"\"),\"Y\",\"N\")))","v":""},{"$f":"IF($B824=\"N\",\"\",IF($S824=\"-\",\"-\",IF(AND($S824=\"Y\",'Enrollment Form'!$CO831=\"No\"),\"-\",IF(AND($S824=\"Y\",'Enrollment Form'!$CO831=\"Yes\",'Enrollment Form'!$CP831<>\"\"),\"Y\",\"N\"))))","v":""},{"$f":"IF(OR('Enrollment Form'!$AV831=\"Yes\",'Enrollment Form'!$AV831=\"\"),\"-\",IF(AND('Enrollment Form'!$AV831=\"No\",ISERROR(FIND(\"HMO\",VLOOKUP('Enrollment Form'!G831,'Enrollment Form'!H$11:J$1000,3,FALSE),1))=FALSE,COUNTA('Enrollment Form'!$AW831:$AZ831)=4),\"Y\",\"N\"))","v":"-"},{"$f":"IF($B824=\"N\",\"\",IF('Enrollment Form'!$B831=\"Subscriber\",\"-\",IF(COUNTA('Enrollment Form'!$BE831,'Enrollment Form'!$BG831)=2,\"Y\",\"N\")))","v":""},{"$f":"IF($B824=\"N\",\"\",IF(OR('Enrollment Form'!$AU831=\"\",'Enrollment Form'!$AU831=\"No\"),\"-\",IF(AND('Enrollment Form'!$AU831=\"Yes\",COUNTA('Enrollment Form'!$CK831)=1),\"Y\",\"N\")))","v":""},{"$f":"IF(OR('Enrollment Form'!$CK831=\"\",'Enrollment Form'!$CK831=\"No\"),\"-\",IF(COUNTA('Enrollment Form'!$CM831:$CN831)=2,\"Y\",\"N\"))","v":"-"},{"$f":"IF($B824=\"N\",\"\",IF(COUNTIF('Enrollment Form'!$CZ831:$DO831,\"Other\")=COUNTA('Enrollment Form'!$DF831,'Enrollment Form'!$DA831,'Enrollment Form'!$DK831,'Enrollment Form'!$DP831),\"Y\",\"N\"))","v":""},{"$f":"IF($B824=\"N\",\"\",IF(OR('Enrollment Form'!B831<>\"Subscriber\",'Enrollment Form'!C831=\"ROC\",COUNTIF('Enrollment Form'!AS831:AT831,\"Yes\")>=1),\"-\",IF(AND('Enrollment Form'!C831=\"Enroll\",COUNTIF('Enrollment Form'!AS831:AT831,\"No\")=2,'Enrollment Form'!AU831=\"\"),\"N\",\"Y\")))","v":""},{"$f":"IF(OR(B824=\"N\",'Enrollment Form'!B831<>\"Subscriber\",'Enrollment Form'!C831=\"ROC\",'Enrollment Form'!O831<>\"Multiple of Salary\"),\"-\",IF(COUNTA('Enrollment Form'!T831:U831)<2,\"N\",\"Y\"))","v":"-"},{"$f":"IF(B824=\"N\",\"\",IF(OR('Enrollment Form'!C831=\"ROC\",'Enrollment Form'!B831<>\"Subscriber\",'Enrollment Form'!O831=\"Waive\",'Enrollment Form'!O831=\"\"),\"-\",IF('Enrollment Form'!P831=\"\",\"N\",\"Y\")))","v":""},{"$f":"IF($B824=\"N\",\"\",IF(AND('Enrollment Form'!$C831=\"ROC\",'Enrollment Form'!$DS831<>\"\"),\"Y\",IF(AND('Enrollment Form'!$C831=\"ROC\",'Enrollment Form'!$DS831=\"\"),\"N\",IF(AND('Enrollment Form'!$C831=\"Enroll\",'Enrollment Form'!$B831=\"Subscriber\",'Enrollment Form'!$CQ831=\"No\",'Enrollment Form'!$DS831=\"\"),\"N\",IF(AND('Enrollment Form'!$C831=\"Enroll\",'Enrollment Form'!$B831=\"Subscriber\",'Enrollment Form'!$CQ831=\"Yes\"),\"-\",\"Y\")))))","v":""},{"$f":"IF($B824=\"N\",\"\",IF(AND('Enrollment Form'!$C831=\"ROC\",'Enrollment Form'!$DT831<>\"\"),\"Y\",IF(AND('Enrollment Form'!$C831=\"ROC\",'Enrollment Form'!$DT831=\"\"),\"N\",IF(AND('Enrollment Form'!$C831=\"Enroll\",'Enrollment Form'!$B831=\"Subscriber\",'Enrollment Form'!$CQ831=\"No\",'Enrollment Form'!$DT831=\"\"),\"N\",IF(AND('Enrollment Form'!$C831=\"Enroll\",'Enrollment Form'!$B831=\"Subscriber\",'Enrollment Form'!$CQ831=\"Yes\"),\"-\",\"Y\")))))","v":""},{"$f":"IF('Enrollment Form'!AH831=\"\",\"\",IF(ISERROR(SEARCH(\".\",'Enrollment Form'!AH831,SEARCH(\"@\",'Enrollment Form'!AH831))),\"N\",\"Y\"))","v":""},{"$f":"IF(OR($B824=\"N\",'Enrollment Form'!$G831=\"\"),\"\",IF('Enrollment Form'!$B831<>\"Subscriber\",\"-\",IF(COUNTIF('Enrollment Form'!$AS831:$AT831,\"Yes\")=2,\"N\",\"Y\")))","v":""},{"$f":"IF(OR('Enrollment Form'!$CC831=\"\",'Enrollment Form'!$CC831=\"No\"),\"-\",IF(AND('Enrollment Form'!$CC831=\"Yes\",'Enrollment Form'!$CD831=\"\"),\"N\",\"Y\"))","v":"-"},{"$f":"IF(OR('Enrollment Form'!$CE831=\"\",'Enrollment Form'!$CE831=\"No\"),\"-\",IF(AND('Enrollment Form'!$CE831=\"Yes\",'Enrollment Form'!$CF831=\"\"),\"N\",\"Y\"))","v":"-"},{"$f":"IF(OR('Enrollment Form'!$CG831=\"\",'Enrollment Form'!$CG831=\"No\"),\"-\",IF(AND('Enrollment Form'!$CG831=\"Yes\",'Enrollment Form'!$CH831=\"\"),\"N\",\"Y\"))","v":"-"},{"$f":"IF(OR('Enrollment Form'!$CG831=\"\",'Enrollment Form'!$CG831=\"No\"),\"-\",IF(AND('Enrollment Form'!$CG831=\"Yes\",'Enrollment Form'!$CI831=\"\"),\"N\",\"Y\"))","v":"-"},{"$f":"IF('Enrollment Form'!B831<>\"Subscriber\",\"-\",IF(AND('Enrollment Form'!B831=\"Subscriber\",'Enrollment Form'!C831=\"Enroll\",'Enrollment Form'!AA831=\"\"),\"N\",\"Y\"))","v":"-"},{"$f":"IF(OR('Enrollment Form'!B831=\"Subscriber\",'Enrollment Form'!B831=\"\"),\"-\",IF('Enrollment Form'!BI831=\"\",\"N\",\"Y\"))","v":"-"},{"$f":"IF('Enrollment Form'!B831<>\"Subscriber\",\"-\",IF(AND('Enrollment Form'!B831=\"Subscriber\",'Enrollment Form'!G831=\"\"),\"N\",\"Y\"))","v":"-"},{"$f":"IF('Enrollment Form'!A831=\"\",\"\",IF('Enrollment Form'!B831=\"Subscriber\",\"-\",IF(AND('Enrollment Form'!B831<>\"Subscriber\",'Enrollment Form'!G831='Enrollment Form'!H831),\"N\",\"Y\")))","v":""},0]
[832,{"$f":"IF('Enrollment Form'!$A832<>\"\",\"Y\",\"N\")","v":"N"},{"$f":"IF(AND('Enrollment Form'!$B832=\"\",'Enrollment Form'!$C832<>\"\"),\"N\",IF($B825=\"N\",\"\",\"Y\"))","v":""},{"$f":"IF(OR($B825=\"N\",'Enrollment Form'!G832=\"\"),\"\",IF('Enrollment Form'!$B832<>\"Subscriber\",\"\",IF('Enrollment Form'!$G832='Enrollment Form'!$H832,\"Y\",\"N\")))","v":""},{"$f":"IF($B825=\"N\",\"\",IF(AND(COUNTIFS('Enrollment Form'!$H$11:$H$1000,'Enrollment Form'!$H832,'Enrollment Form'!$B$11:$B$1000,'Enrollment Form'!$B832)>1,'Enrollment Form'!$H832<>\"\"),\"N\",\"Y\"))","v":""},{"$f":"IF($B825=\"N\",\"\",IF(LEN('Enrollment Form'!$Y832)=0,\"\",IF(LEN('Enrollment Form'!$Y832)<>5,\"N\",\"Y\")))","v":""},{"$f":"IF($B825=\"N\",\"\",IF(LEN('Enrollment Form'!$AD832=0),\"\",IF(LEN('Enrollment Form'!$AD832)<>5,\"N\",\"Y\")))","v":""},{"$f":"IF($B825=\"N\",\"\",IF(LEN('Enrollment Form'!$BL832=0),\"\",IF(LEN('Enrollment Form'!$BL832)<>5,\"N\",\"Y\")))","v":""},{"$f":"IF($B825=\"N\",\"\",IF(LEN('Enrollment Form'!$AE832)=0,\"\",IF(LEN('Enrollment Form'!$AE832)<>10,\"N\",\"Y\")))","v":""},{"$f":"IF($B825=\"N\",\"\",IF(LEN('Enrollment Form'!$AF832)=0,\"\",IF(LEN('Enrollment Form'!$AF832)<>10,\"N\",\"Y\")))","v":""},{"$f":"IF('Enrollment Form'!$O832<>\"Graded\",\"-\",IF(AND('Enrollment Form'!$O832=\"Graded\",'Enrollment Form'!$AO832<>\"\"),\"Y\",\"N\"))","v":"-"},{"$f":"IF($B825=\"N\",\"\",IF(OR('Enrollment Form'!$B832<>\"Subscriber\",'Enrollment Form'!$C832=\"ROC\"),\"-\",IF(AND('Enrollment Form'!$B832=\"Subscriber\",'Enrollment Form'!$C832=\"Enroll\",'Enrollment Form'!$AJ832<>\"\"),\"Y\",\"N\")))","v":""},{"$f":"IF($B825=\"N\",\"\",IF(OR('Enrollment Form'!$B832<>\"Subscriber\",'Enrollment Form'!$C832=\"ROC\"),\"-\",IF(AND('Enrollment Form'!$B832=\"Subscriber\",'Enrollment Form'!$C832=\"Enroll\",'Enrollment Form'!$AK832<>\"\"),\"Y\",\"N\")))","v":""},{"$f":"IF($B825=\"N\",\"\",IF(OR('Enrollment Form'!$B832<>\"Subscriber\",'Enrollment Form'!$C832=\"ROC\"),\"-\",IF(AND('Enrollment Form'!$B832=\"Subscriber\",'Enrollment Form'!$C832=\"Enroll\",'Enrollment Form'!$AL832<>\"\"),\"Y\",\"N\")))","v":""},{"$f":"IF($B825=\"N\",\"\",IF(OR('Enrollment Form'!$B832<>\"Subscriber\",'Enrollment Form'!$C832=\"ROC\"),\"-\",IF(AND('Enrollment Form'!$B832=\"Subscriber\",'Enrollment Form'!$C832=\"Enroll\",'Enrollment Form'!$AM832<>\"\"),\"Y\",\"N\")))","v":""},{"$f":"IF($B825=\"N\",\"\",IF(OR('Enrollment Form'!$B832<>\"Subscriber\",'Enrollment Form'!$C832=\"ROC\"),\"-\",IF(AND('Enrollment Form'!$B832=\"Subscriber\",'Enrollment Form'!$C832=\"Enroll\",'Enrollment Form'!$AN832<>\"\"),\"Y\",\"N\")))","v":""},{"$f":"IF($B825=\"N\",\"\",IF(OR('Enrollment Form'!$B832<>\"Subscriber\",'Enrollment Form'!$C832=\"ROC\"),\"-\",IF(AND('Enrollment Form'!$B832=\"Subscriber\",'Enrollment Form'!$C832=\"Enroll\",'Enrollment Form'!$AP832<>\"\"),\"Y\",\"N\")))","v":""},{"$f":"IF($B825=\"N\",\"\",IF($Q825=\"-\",\"-\",IF(AND($Q825=\"Y\",'Enrollment Form'!$AP832=\"No\"),\"-\",IF(AND($Q825=\"Y\",'Enrollment Form'!$AP832=\"Yes\",'Enrollment Form'!$AQ832<>\"\"),\"Y\",\"N\"))))","v":""},{"$f":"IF($B825=\"N\",\"\",IF(OR('Enrollment Form'!$B832<>\"Subscriber\",'Enrollment Form'!$C832=\"ROC\"),\"-\",IF(AND('Enrollment Form'!$B832=\"Subscriber\",'Enrollment Form'!$C832=\"Enroll\",'Enrollment Form'!$CO832<>\"\"),\"Y\",\"N\")))","v":""},{"$f":"IF($B825=\"N\",\"\",IF($S825=\"-\",\"-\",IF(AND($S825=\"Y\",'Enrollment Form'!$CO832=\"No\"),\"-\",IF(AND($S825=\"Y\",'Enrollment Form'!$CO832=\"Yes\",'Enrollment Form'!$CP832<>\"\"),\"Y\",\"N\"))))","v":""},{"$f":"IF(OR('Enrollment Form'!$AV832=\"Yes\",'Enrollment Form'!$AV832=\"\"),\"-\",IF(AND('Enrollment Form'!$AV832=\"No\",ISERROR(FIND(\"HMO\",VLOOKUP('Enrollment Form'!G832,'Enrollment Form'!H$11:J$1000,3,FALSE),1))=FALSE,COUNTA('Enrollment Form'!$AW832:$AZ832)=4),\"Y\",\"N\"))","v":"-"},{"$f":"IF($B825=\"N\",\"\",IF('Enrollment Form'!$B832=\"Subscriber\",\"-\",IF(COUNTA('Enrollment Form'!$BE832,'Enrollment Form'!$BG832)=2,\"Y\",\"N\")))","v":""},{"$f":"IF($B825=\"N\",\"\",IF(OR('Enrollment Form'!$AU832=\"\",'Enrollment Form'!$AU832=\"No\"),\"-\",IF(AND('Enrollment Form'!$AU832=\"Yes\",COUNTA('Enrollment Form'!$CK832)=1),\"Y\",\"N\")))","v":""},{"$f":"IF(OR('Enrollment Form'!$CK832=\"\",'Enrollment Form'!$CK832=\"No\"),\"-\",IF(COUNTA('Enrollment Form'!$CM832:$CN832)=2,\"Y\",\"N\"))","v":"-"},{"$f":"IF($B825=\"N\",\"\",IF(COUNTIF('Enrollment Form'!$CZ832:$DO832,\"Other\")=COUNTA('Enrollment Form'!$DF832,'Enrollment Form'!$DA832,'Enrollment Form'!$DK832,'Enrollment Form'!$DP832),\"Y\",\"N\"))","v":""},{"$f":"IF($B825=\"N\",\"\",IF(OR('Enrollment Form'!B832<>\"Subscriber\",'Enrollment Form'!C832=\"ROC\",COUNTIF('Enrollment Form'!AS832:AT832,\"Yes\")>=1),\"-\",IF(AND('Enrollment Form'!C832=\"Enroll\",COUNTIF('Enrollment Form'!AS832:AT832,\"No\")=2,'Enrollment Form'!AU832=\"\"),\"N\",\"Y\")))","v":""},{"$f":"IF(OR(B825=\"N\",'Enrollment Form'!B832<>\"Subscriber\",'Enrollment Form'!C832=\"ROC\",'Enrollment Form'!O832<>\"Multiple of Salary\"),\"-\",IF(COUNTA('Enrollment Form'!T832:U832)<2,\"N\",\"Y\"))","v":"-"},{"$f":"IF(B825=\"N\",\"\",IF(OR('Enrollment Form'!C832=\"ROC\",'Enrollment Form'!B832<>\"Subscriber\",'Enrollment Form'!O832=\"Waive\",'Enrollment Form'!O832=\"\"),\"-\",IF('Enrollment Form'!P832=\"\",\"N\",\"Y\")))","v":""},{"$f":"IF($B825=\"N\",\"\",IF(AND('Enrollment Form'!$C832=\"ROC\",'Enrollment Form'!$DS832<>\"\"),\"Y\",IF(AND('Enrollment Form'!$C832=\"ROC\",'Enrollment Form'!$DS832=\"\"),\"N\",IF(AND('Enrollment Form'!$C832=\"Enroll\",'Enrollment Form'!$B832=\"Subscriber\",'Enrollment Form'!$CQ832=\"No\",'Enrollment Form'!$DS832=\"\"),\"N\",IF(AND('Enrollment Form'!$C832=\"Enroll\",'Enrollment Form'!$B832=\"Subscriber\",'Enrollment Form'!$CQ832=\"Yes\"),\"-\",\"Y\")))))","v":""},{"$f":"IF($B825=\"N\",\"\",IF(AND('Enrollment Form'!$C832=\"ROC\",'Enrollment Form'!$DT832<>\"\"),\"Y\",IF(AND('Enrollment Form'!$C832=\"ROC\",'Enrollment Form'!$DT832=\"\"),\"N\",IF(AND('Enrollment Form'!$C832=\"Enroll\",'Enrollment Form'!$B832=\"Subscriber\",'Enrollment Form'!$CQ832=\"No\",'Enrollment Form'!$DT832=\"\"),\"N\",IF(AND('Enrollment Form'!$C832=\"Enroll\",'Enrollment Form'!$B832=\"Subscriber\",'Enrollment Form'!$CQ832=\"Yes\"),\"-\",\"Y\")))))","v":""},{"$f":"IF('Enrollment Form'!AH832=\"\",\"\",IF(ISERROR(SEARCH(\".\",'Enrollment Form'!AH832,SEARCH(\"@\",'Enrollment Form'!AH832))),\"N\",\"Y\"))","v":""},{"$f":"IF(OR($B825=\"N\",'Enrollment Form'!$G832=\"\"),\"\",IF('Enrollment Form'!$B832<>\"Subscriber\",\"-\",IF(COUNTIF('Enrollment Form'!$AS832:$AT832,\"Yes\")=2,\"N\",\"Y\")))","v":""},{"$f":"IF(OR('Enrollment Form'!$CC832=\"\",'Enrollment Form'!$CC832=\"No\"),\"-\",IF(AND('Enrollment Form'!$CC832=\"Yes\",'Enrollment Form'!$CD832=\"\"),\"N\",\"Y\"))","v":"-"},{"$f":"IF(OR('Enrollment Form'!$CE832=\"\",'Enrollment Form'!$CE832=\"No\"),\"-\",IF(AND('Enrollment Form'!$CE832=\"Yes\",'Enrollment Form'!$CF832=\"\"),\"N\",\"Y\"))","v":"-"},{"$f":"IF(OR('Enrollment Form'!$CG832=\"\",'Enrollment Form'!$CG832=\"No\"),\"-\",IF(AND('Enrollment Form'!$CG832=\"Yes\",'Enrollment Form'!$CH832=\"\"),\"N\",\"Y\"))","v":"-"},{"$f":"IF(OR('Enrollment Form'!$CG832=\"\",'Enrollment Form'!$CG832=\"No\"),\"-\",IF(AND('Enrollment Form'!$CG832=\"Yes\",'Enrollment Form'!$CI832=\"\"),\"N\",\"Y\"))","v":"-"},{"$f":"IF('Enrollment Form'!B832<>\"Subscriber\",\"-\",IF(AND('Enrollment Form'!B832=\"Subscriber\",'Enrollment Form'!C832=\"Enroll\",'Enrollment Form'!AA832=\"\"),\"N\",\"Y\"))","v":"-"},{"$f":"IF(OR('Enrollment Form'!B832=\"Subscriber\",'Enrollment Form'!B832=\"\"),\"-\",IF('Enrollment Form'!BI832=\"\",\"N\",\"Y\"))","v":"-"},{"$f":"IF('Enrollment Form'!B832<>\"Subscriber\",\"-\",IF(AND('Enrollment Form'!B832=\"Subscriber\",'Enrollment Form'!G832=\"\"),\"N\",\"Y\"))","v":"-"},{"$f":"IF('Enrollment Form'!A832=\"\",\"\",IF('Enrollment Form'!B832=\"Subscriber\",\"-\",IF(AND('Enrollment Form'!B832<>\"Subscriber\",'Enrollment Form'!G832='Enrollment Form'!H832),\"N\",\"Y\")))","v":""},0]
[833,{"$f":"IF('Enrollment Form'!$A833<>\"\",\"Y\",\"N\")","v":"N"},{"$f":"IF(AND('Enrollment Form'!$B833=\"\",'Enrollment Form'!$C833<>\"\"),\"N\",IF($B826=\"N\",\"\",\"Y\"))","v":""},{"$f":"IF(OR($B826=\"N\",'Enrollment Form'!G833=\"\"),\"\",IF('Enrollment Form'!$B833<>\"Subscriber\",\"\",IF('Enrollment Form'!$G833='Enrollment Form'!$H833,\"Y\",\"N\")))","v":""},{"$f":"IF($B826=\"N\",\"\",IF(AND(COUNTIFS('Enrollment Form'!$H$11:$H$1000,'Enrollment Form'!$H833,'Enrollment Form'!$B$11:$B$1000,'Enrollment Form'!$B833)>1,'Enrollment Form'!$H833<>\"\"),\"N\",\"Y\"))","v":""},{"$f":"IF($B826=\"N\",\"\",IF(LEN('Enrollment Form'!$Y833)=0,\"\",IF(LEN('Enrollment Form'!$Y833)<>5,\"N\",\"Y\")))","v":""},{"$f":"IF($B826=\"N\",\"\",IF(LEN('Enrollment Form'!$AD833=0),\"\",IF(LEN('Enrollment Form'!$AD833)<>5,\"N\",\"Y\")))","v":""},{"$f":"IF($B826=\"N\",\"\",IF(LEN('Enrollment Form'!$BL833=0),\"\",IF(LEN('Enrollment Form'!$BL833)<>5,\"N\",\"Y\")))","v":""},{"$f":"IF($B826=\"N\",\"\",IF(LEN('Enrollment Form'!$AE833)=0,\"\",IF(LEN('Enrollment Form'!$AE833)<>10,\"N\",\"Y\")))","v":""},{"$f":"IF($B826=\"N\",\"\",IF(LEN('Enrollment Form'!$AF833)=0,\"\",IF(LEN('Enrollment Form'!$AF833)<>10,\"N\",\"Y\")))","v":""},{"$f":"IF('Enrollment Form'!$O833<>\"Graded\",\"-\",IF(AND('Enrollment Form'!$O833=\"Graded\",'Enrollment Form'!$AO833<>\"\"),\"Y\",\"N\"))","v":"-"},{"$f":"IF($B826=\"N\",\"\",IF(OR('Enrollment Form'!$B833<>\"Subscriber\",'Enrollment Form'!$C833=\"ROC\"),\"-\",IF(AND('Enrollment Form'!$B833=\"Subscriber\",'Enrollment Form'!$C833=\"Enroll\",'Enrollment Form'!$AJ833<>\"\"),\"Y\",\"N\")))","v":""},{"$f":"IF($B826=\"N\",\"\",IF(OR('Enrollment Form'!$B833<>\"Subscriber\",'Enrollment Form'!$C833=\"ROC\"),\"-\",IF(AND('Enrollment Form'!$B833=\"Subscriber\",'Enrollment Form'!$C833=\"Enroll\",'Enrollment Form'!$AK833<>\"\"),\"Y\",\"N\")))","v":""},{"$f":"IF($B826=\"N\",\"\",IF(OR('Enrollment Form'!$B833<>\"Subscriber\",'Enrollment Form'!$C833=\"ROC\"),\"-\",IF(AND('Enrollment Form'!$B833=\"Subscriber\",'Enrollment Form'!$C833=\"Enroll\",'Enrollment Form'!$AL833<>\"\"),\"Y\",\"N\")))","v":""},{"$f":"IF($B826=\"N\",\"\",IF(OR('Enrollment Form'!$B833<>\"Subscriber\",'Enrollment Form'!$C833=\"ROC\"),\"-\",IF(AND('Enrollment Form'!$B833=\"Subscriber\",'Enrollment Form'!$C833=\"Enroll\",'Enrollment Form'!$AM833<>\"\"),\"Y\",\"N\")))","v":""},{"$f":"IF($B826=\"N\",\"\",IF(OR('Enrollment Form'!$B833<>\"Subscriber\",'Enrollment Form'!$C833=\"ROC\"),\"-\",IF(AND('Enrollment Form'!$B833=\"Subscriber\",'Enrollment Form'!$C833=\"Enroll\",'Enrollment Form'!$AN833<>\"\"),\"Y\",\"N\")))","v":""},{"$f":"IF($B826=\"N\",\"\",IF(OR('Enrollment Form'!$B833<>\"Subscriber\",'Enrollment Form'!$C833=\"ROC\"),\"-\",IF(AND('Enrollment Form'!$B833=\"Subscriber\",'Enrollment Form'!$C833=\"Enroll\",'Enrollment Form'!$AP833<>\"\"),\"Y\",\"N\")))","v":""},{"$f":"IF($B826=\"N\",\"\",IF($Q826=\"-\",\"-\",IF(AND($Q826=\"Y\",'Enrollment Form'!$AP833=\"No\"),\"-\",IF(AND($Q826=\"Y\",'Enrollment Form'!$AP833=\"Yes\",'Enrollment Form'!$AQ833<>\"\"),\"Y\",\"N\"))))","v":""},{"$f":"IF($B826=\"N\",\"\",IF(OR('Enrollment Form'!$B833<>\"Subscriber\",'Enrollment Form'!$C833=\"ROC\"),\"-\",IF(AND('Enrollment Form'!$B833=\"Subscriber\",'Enrollment Form'!$C833=\"Enroll\",'Enrollment Form'!$CO833<>\"\"),\"Y\",\"N\")))","v":""},{"$f":"IF($B826=\"N\",\"\",IF($S826=\"-\",\"-\",IF(AND($S826=\"Y\",'Enrollment Form'!$CO833=\"No\"),\"-\",IF(AND($S826=\"Y\",'Enrollment Form'!$CO833=\"Yes\",'Enrollment Form'!$CP833<>\"\"),\"Y\",\"N\"))))","v":""},{"$f":"IF(OR('Enrollment Form'!$AV833=\"Yes\",'Enrollment Form'!$AV833=\"\"),\"-\",IF(AND('Enrollment Form'!$AV833=\"No\",ISERROR(FIND(\"HMO\",VLOOKUP('Enrollment Form'!G833,'Enrollment Form'!H$11:J$1000,3,FALSE),1))=FALSE,COUNTA('Enrollment Form'!$AW833:$AZ833)=4),\"Y\",\"N\"))","v":"-"},{"$f":"IF($B826=\"N\",\"\",IF('Enrollment Form'!$B833=\"Subscriber\",\"-\",IF(COUNTA('Enrollment Form'!$BE833,'Enrollment Form'!$BG833)=2,\"Y\",\"N\")))","v":""},{"$f":"IF($B826=\"N\",\"\",IF(OR('Enrollment Form'!$AU833=\"\",'Enrollment Form'!$AU833=\"No\"),\"-\",IF(AND('Enrollment Form'!$AU833=\"Yes\",COUNTA('Enrollment Form'!$CK833)=1),\"Y\",\"N\")))","v":""},{"$f":"IF(OR('Enrollment Form'!$CK833=\"\",'Enrollment Form'!$CK833=\"No\"),\"-\",IF(COUNTA('Enrollment Form'!$CM833:$CN833)=2,\"Y\",\"N\"))","v":"-"},{"$f":"IF($B826=\"N\",\"\",IF(COUNTIF('Enrollment Form'!$CZ833:$DO833,\"Other\")=COUNTA('Enrollment Form'!$DF833,'Enrollment Form'!$DA833,'Enrollment Form'!$DK833,'Enrollment Form'!$DP833),\"Y\",\"N\"))","v":""},{"$f":"IF($B826=\"N\",\"\",IF(OR('Enrollment Form'!B833<>\"Subscriber\",'Enrollment Form'!C833=\"ROC\",COUNTIF('Enrollment Form'!AS833:AT833,\"Yes\")>=1),\"-\",IF(AND('Enrollment Form'!C833=\"Enroll\",COUNTIF('Enrollment Form'!AS833:AT833,\"No\")=2,'Enrollment Form'!AU833=\"\"),\"N\",\"Y\")))","v":""},{"$f":"IF(OR(B826=\"N\",'Enrollment Form'!B833<>\"Subscriber\",'Enrollment Form'!C833=\"ROC\",'Enrollment Form'!O833<>\"Multiple of Salary\"),\"-\",IF(COUNTA('Enrollment Form'!T833:U833)<2,\"N\",\"Y\"))","v":"-"},{"$f":"IF(B826=\"N\",\"\",IF(OR('Enrollment Form'!C833=\"ROC\",'Enrollment Form'!B833<>\"Subscriber\",'Enrollment Form'!O833=\"Waive\",'Enrollment Form'!O833=\"\"),\"-\",IF('Enrollment Form'!P833=\"\",\"N\",\"Y\")))","v":""},{"$f":"IF($B826=\"N\",\"\",IF(AND('Enrollment Form'!$C833=\"ROC\",'Enrollment Form'!$DS833<>\"\"),\"Y\",IF(AND('Enrollment Form'!$C833=\"ROC\",'Enrollment Form'!$DS833=\"\"),\"N\",IF(AND('Enrollment Form'!$C833=\"Enroll\",'Enrollment Form'!$B833=\"Subscriber\",'Enrollment Form'!$CQ833=\"No\",'Enrollment Form'!$DS833=\"\"),\"N\",IF(AND('Enrollment Form'!$C833=\"Enroll\",'Enrollment Form'!$B833=\"Subscriber\",'Enrollment Form'!$CQ833=\"Yes\"),\"-\",\"Y\")))))","v":""},{"$f":"IF($B826=\"N\",\"\",IF(AND('Enrollment Form'!$C833=\"ROC\",'Enrollment Form'!$DT833<>\"\"),\"Y\",IF(AND('Enrollment Form'!$C833=\"ROC\",'Enrollment Form'!$DT833=\"\"),\"N\",IF(AND('Enrollment Form'!$C833=\"Enroll\",'Enrollment Form'!$B833=\"Subscriber\",'Enrollment Form'!$CQ833=\"No\",'Enrollment Form'!$DT833=\"\"),\"N\",IF(AND('Enrollment Form'!$C833=\"Enroll\",'Enrollment Form'!$B833=\"Subscriber\",'Enrollment Form'!$CQ833=\"Yes\"),\"-\",\"Y\")))))","v":""},{"$f":"IF('Enrollment Form'!AH833=\"\",\"\",IF(ISERROR(SEARCH(\".\",'Enrollment Form'!AH833,SEARCH(\"@\",'Enrollment Form'!AH833))),\"N\",\"Y\"))","v":""},{"$f":"IF(OR($B826=\"N\",'Enrollment Form'!$G833=\"\"),\"\",IF('Enrollment Form'!$B833<>\"Subscriber\",\"-\",IF(COUNTIF('Enrollment Form'!$AS833:$AT833,\"Yes\")=2,\"N\",\"Y\")))","v":""},{"$f":"IF(OR('Enrollment Form'!$CC833=\"\",'Enrollment Form'!$CC833=\"No\"),\"-\",IF(AND('Enrollment Form'!$CC833=\"Yes\",'Enrollment Form'!$CD833=\"\"),\"N\",\"Y\"))","v":"-"},{"$f":"IF(OR('Enrollment Form'!$CE833=\"\",'Enrollment Form'!$CE833=\"No\"),\"-\",IF(AND('Enrollment Form'!$CE833=\"Yes\",'Enrollment Form'!$CF833=\"\"),\"N\",\"Y\"))","v":"-"},{"$f":"IF(OR('Enrollment Form'!$CG833=\"\",'Enrollment Form'!$CG833=\"No\"),\"-\",IF(AND('Enrollment Form'!$CG833=\"Yes\",'Enrollment Form'!$CH833=\"\"),\"N\",\"Y\"))","v":"-"},{"$f":"IF(OR('Enrollment Form'!$CG833=\"\",'Enrollment Form'!$CG833=\"No\"),\"-\",IF(AND('Enrollment Form'!$CG833=\"Yes\",'Enrollment Form'!$CI833=\"\"),\"N\",\"Y\"))","v":"-"},{"$f":"IF('Enrollment Form'!B833<>\"Subscriber\",\"-\",IF(AND('Enrollment Form'!B833=\"Subscriber\",'Enrollment Form'!C833=\"Enroll\",'Enrollment Form'!AA833=\"\"),\"N\",\"Y\"))","v":"-"},{"$f":"IF(OR('Enrollment Form'!B833=\"Subscriber\",'Enrollment Form'!B833=\"\"),\"-\",IF('Enrollment Form'!BI833=\"\",\"N\",\"Y\"))","v":"-"},{"$f":"IF('Enrollment Form'!B833<>\"Subscriber\",\"-\",IF(AND('Enrollment Form'!B833=\"Subscriber\",'Enrollment Form'!G833=\"\"),\"N\",\"Y\"))","v":"-"},{"$f":"IF('Enrollment Form'!A833=\"\",\"\",IF('Enrollment Form'!B833=\"Subscriber\",\"-\",IF(AND('Enrollment Form'!B833<>\"Subscriber\",'Enrollment Form'!G833='Enrollment Form'!H833),\"N\",\"Y\")))","v":""},0]
[834,{"$f":"IF('Enrollment Form'!$A834<>\"\",\"Y\",\"N\")","v":"N"},{"$f":"IF(AND('Enrollment Form'!$B834=\"\",'Enrollment Form'!$C834<>\"\"),\"N\",IF($B827=\"N\",\"\",\"Y\"))","v":""},{"$f":"IF(OR($B827=\"N\",'Enrollment Form'!G834=\"\"),\"\",IF('Enrollment Form'!$B834<>\"Subscriber\",\"\",IF('Enrollment Form'!$G834='Enrollment Form'!$H834,\"Y\",\"N\")))","v":""},{"$f":"IF($B827=\"N\",\"\",IF(AND(COUNTIFS('Enrollment Form'!$H$11:$H$1000,'Enrollment Form'!$H834,'Enrollment Form'!$B$11:$B$1000,'Enrollment Form'!$B834)>1,'Enrollment Form'!$H834<>\"\"),\"N\",\"Y\"))","v":""},{"$f":"IF($B827=\"N\",\"\",IF(LEN('Enrollment Form'!$Y834)=0,\"\",IF(LEN('Enrollment Form'!$Y834)<>5,\"N\",\"Y\")))","v":""},{"$f":"IF($B827=\"N\",\"\",IF(LEN('Enrollment Form'!$AD834=0),\"\",IF(LEN('Enrollment Form'!$AD834)<>5,\"N\",\"Y\")))","v":""},{"$f":"IF($B827=\"N\",\"\",IF(LEN('Enrollment Form'!$BL834=0),\"\",IF(LEN('Enrollment Form'!$BL834)<>5,\"N\",\"Y\")))","v":""},{"$f":"IF($B827=\"N\",\"\",IF(LEN('Enrollment Form'!$AE834)=0,\"\",IF(LEN('Enrollment Form'!$AE834)<>10,\"N\",\"Y\")))","v":""},{"$f":"IF($B827=\"N\",\"\",IF(LEN('Enrollment Form'!$AF834)=0,\"\",IF(LEN('Enrollment Form'!$AF834)<>10,\"N\",\"Y\")))","v":""},{"$f":"IF('Enrollment Form'!$O834<>\"Graded\",\"-\",IF(AND('Enrollment Form'!$O834=\"Graded\",'Enrollment Form'!$AO834<>\"\"),\"Y\",\"N\"))","v":"-"},{"$f":"IF($B827=\"N\",\"\",IF(OR('Enrollment Form'!$B834<>\"Subscriber\",'Enrollment Form'!$C834=\"ROC\"),\"-\",IF(AND('Enrollment Form'!$B834=\"Subscriber\",'Enrollment Form'!$C834=\"Enroll\",'Enrollment Form'!$AJ834<>\"\"),\"Y\",\"N\")))","v":""},{"$f":"IF($B827=\"N\",\"\",IF(OR('Enrollment Form'!$B834<>\"Subscriber\",'Enrollment Form'!$C834=\"ROC\"),\"-\",IF(AND('Enrollment Form'!$B834=\"Subscriber\",'Enrollment Form'!$C834=\"Enroll\",'Enrollment Form'!$AK834<>\"\"),\"Y\",\"N\")))","v":""},{"$f":"IF($B827=\"N\",\"\",IF(OR('Enrollment Form'!$B834<>\"Subscriber\",'Enrollment Form'!$C834=\"ROC\"),\"-\",IF(AND('Enrollment Form'!$B834=\"Subscriber\",'Enrollment Form'!$C834=\"Enroll\",'Enrollment Form'!$AL834<>\"\"),\"Y\",\"N\")))","v":""},{"$f":"IF($B827=\"N\",\"\",IF(OR('Enrollment Form'!$B834<>\"Subscriber\",'Enrollment Form'!$C834=\"ROC\"),\"-\",IF(AND('Enrollment Form'!$B834=\"Subscriber\",'Enrollment Form'!$C834=\"Enroll\",'Enrollment Form'!$AM834<>\"\"),\"Y\",\"N\")))","v":""},{"$f":"IF($B827=\"N\",\"\",IF(OR('Enrollment Form'!$B834<>\"Subscriber\",'Enrollment Form'!$C834=\"ROC\"),\"-\",IF(AND('Enrollment Form'!$B834=\"Subscriber\",'Enrollment Form'!$C834=\"Enroll\",'Enrollment Form'!$AN834<>\"\"),\"Y\",\"N\")))","v":""},{"$f":"IF($B827=\"N\",\"\",IF(OR('Enrollment Form'!$B834<>\"Subscriber\",'Enrollment Form'!$C834=\"ROC\"),\"-\",IF(AND('Enrollment Form'!$B834=\"Subscriber\",'Enrollment Form'!$C834=\"Enroll\",'Enrollment Form'!$AP834<>\"\"),\"Y\",\"N\")))","v":""},{"$f":"IF($B827=\"N\",\"\",IF($Q827=\"-\",\"-\",IF(AND($Q827=\"Y\",'Enrollment Form'!$AP834=\"No\"),\"-\",IF(AND($Q827=\"Y\",'Enrollment Form'!$AP834=\"Yes\",'Enrollment Form'!$AQ834<>\"\"),\"Y\",\"N\"))))","v":""},{"$f":"IF($B827=\"N\",\"\",IF(OR('Enrollment Form'!$B834<>\"Subscriber\",'Enrollment Form'!$C834=\"ROC\"),\"-\",IF(AND('Enrollment Form'!$B834=\"Subscriber\",'Enrollment Form'!$C834=\"Enroll\",'Enrollment Form'!$CO834<>\"\"),\"Y\",\"N\")))","v":""},{"$f":"IF($B827=\"N\",\"\",IF($S827=\"-\",\"-\",IF(AND($S827=\"Y\",'Enrollment Form'!$CO834=\"No\"),\"-\",IF(AND($S827=\"Y\",'Enrollment Form'!$CO834=\"Yes\",'Enrollment Form'!$CP834<>\"\"),\"Y\",\"N\"))))","v":""},{"$f":"IF(OR('Enrollment Form'!$AV834=\"Yes\",'Enrollment Form'!$AV834=\"\"),\"-\",IF(AND('Enrollment Form'!$AV834=\"No\",ISERROR(FIND(\"HMO\",VLOOKUP('Enrollment Form'!G834,'Enrollment Form'!H$11:J$1000,3,FALSE),1))=FALSE,COUNTA('Enrollment Form'!$AW834:$AZ834)=4),\"Y\",\"N\"))","v":"-"},{"$f":"IF($B827=\"N\",\"\",IF('Enrollment Form'!$B834=\"Subscriber\",\"-\",IF(COUNTA('Enrollment Form'!$BE834,'Enrollment Form'!$BG834)=2,\"Y\",\"N\")))","v":""},{"$f":"IF($B827=\"N\",\"\",IF(OR('Enrollment Form'!$AU834=\"\",'Enrollment Form'!$AU834=\"No\"),\"-\",IF(AND('Enrollment Form'!$AU834=\"Yes\",COUNTA('Enrollment Form'!$CK834)=1),\"Y\",\"N\")))","v":""},{"$f":"IF(OR('Enrollment Form'!$CK834=\"\",'Enrollment Form'!$CK834=\"No\"),\"-\",IF(COUNTA('Enrollment Form'!$CM834:$CN834)=2,\"Y\",\"N\"))","v":"-"},{"$f":"IF($B827=\"N\",\"\",IF(COUNTIF('Enrollment Form'!$CZ834:$DO834,\"Other\")=COUNTA('Enrollment Form'!$DF834,'Enrollment Form'!$DA834,'Enrollment Form'!$DK834,'Enrollment Form'!$DP834),\"Y\",\"N\"))","v":""},{"$f":"IF($B827=\"N\",\"\",IF(OR('Enrollment Form'!B834<>\"Subscriber\",'Enrollment Form'!C834=\"ROC\",COUNTIF('Enrollment Form'!AS834:AT834,\"Yes\")>=1),\"-\",IF(AND('Enrollment Form'!C834=\"Enroll\",COUNTIF('Enrollment Form'!AS834:AT834,\"No\")=2,'Enrollment Form'!AU834=\"\"),\"N\",\"Y\")))","v":""},{"$f":"IF(OR(B827=\"N\",'Enrollment Form'!B834<>\"Subscriber\",'Enrollment Form'!C834=\"ROC\",'Enrollment Form'!O834<>\"Multiple of Salary\"),\"-\",IF(COUNTA('Enrollment Form'!T834:U834)<2,\"N\",\"Y\"))","v":"-"},{"$f":"IF(B827=\"N\",\"\",IF(OR('Enrollment Form'!C834=\"ROC\",'Enrollment Form'!B834<>\"Subscriber\",'Enrollment Form'!O834=\"Waive\",'Enrollment Form'!O834=\"\"),\"-\",IF('Enrollment Form'!P834=\"\",\"N\",\"Y\")))","v":""},{"$f":"IF($B827=\"N\",\"\",IF(AND('Enrollment Form'!$C834=\"ROC\",'Enrollment Form'!$DS834<>\"\"),\"Y\",IF(AND('Enrollment Form'!$C834=\"ROC\",'Enrollment Form'!$DS834=\"\"),\"N\",IF(AND('Enrollment Form'!$C834=\"Enroll\",'Enrollment Form'!$B834=\"Subscriber\",'Enrollment Form'!$CQ834=\"No\",'Enrollment Form'!$DS834=\"\"),\"N\",IF(AND('Enrollment Form'!$C834=\"Enroll\",'Enrollment Form'!$B834=\"Subscriber\",'Enrollment Form'!$CQ834=\"Yes\"),\"-\",\"Y\")))))","v":""},{"$f":"IF($B827=\"N\",\"\",IF(AND('Enrollment Form'!$C834=\"ROC\",'Enrollment Form'!$DT834<>\"\"),\"Y\",IF(AND('Enrollment Form'!$C834=\"ROC\",'Enrollment Form'!$DT834=\"\"),\"N\",IF(AND('Enrollment Form'!$C834=\"Enroll\",'Enrollment Form'!$B834=\"Subscriber\",'Enrollment Form'!$CQ834=\"No\",'Enrollment Form'!$DT834=\"\"),\"N\",IF(AND('Enrollment Form'!$C834=\"Enroll\",'Enrollment Form'!$B834=\"Subscriber\",'Enrollment Form'!$CQ834=\"Yes\"),\"-\",\"Y\")))))","v":""},{"$f":"IF('Enrollment Form'!AH834=\"\",\"\",IF(ISERROR(SEARCH(\".\",'Enrollment Form'!AH834,SEARCH(\"@\",'Enrollment Form'!AH834))),\"N\",\"Y\"))","v":""},{"$f":"IF(OR($B827=\"N\",'Enrollment Form'!$G834=\"\"),\"\",IF('Enrollment Form'!$B834<>\"Subscriber\",\"-\",IF(COUNTIF('Enrollment Form'!$AS834:$AT834,\"Yes\")=2,\"N\",\"Y\")))","v":""},{"$f":"IF(OR('Enrollment Form'!$CC834=\"\",'Enrollment Form'!$CC834=\"No\"),\"-\",IF(AND('Enrollment Form'!$CC834=\"Yes\",'Enrollment Form'!$CD834=\"\"),\"N\",\"Y\"))","v":"-"},{"$f":"IF(OR('Enrollment Form'!$CE834=\"\",'Enrollment Form'!$CE834=\"No\"),\"-\",IF(AND('Enrollment Form'!$CE834=\"Yes\",'Enrollment Form'!$CF834=\"\"),\"N\",\"Y\"))","v":"-"},{"$f":"IF(OR('Enrollment Form'!$CG834=\"\",'Enrollment Form'!$CG834=\"No\"),\"-\",IF(AND('Enrollment Form'!$CG834=\"Yes\",'Enrollment Form'!$CH834=\"\"),\"N\",\"Y\"))","v":"-"},{"$f":"IF(OR('Enrollment Form'!$CG834=\"\",'Enrollment Form'!$CG834=\"No\"),\"-\",IF(AND('Enrollment Form'!$CG834=\"Yes\",'Enrollment Form'!$CI834=\"\"),\"N\",\"Y\"))","v":"-"},{"$f":"IF('Enrollment Form'!B834<>\"Subscriber\",\"-\",IF(AND('Enrollment Form'!B834=\"Subscriber\",'Enrollment Form'!C834=\"Enroll\",'Enrollment Form'!AA834=\"\"),\"N\",\"Y\"))","v":"-"},{"$f":"IF(OR('Enrollment Form'!B834=\"Subscriber\",'Enrollment Form'!B834=\"\"),\"-\",IF('Enrollment Form'!BI834=\"\",\"N\",\"Y\"))","v":"-"},{"$f":"IF('Enrollment Form'!B834<>\"Subscriber\",\"-\",IF(AND('Enrollment Form'!B834=\"Subscriber\",'Enrollment Form'!G834=\"\"),\"N\",\"Y\"))","v":"-"},{"$f":"IF('Enrollment Form'!A834=\"\",\"\",IF('Enrollment Form'!B834=\"Subscriber\",\"-\",IF(AND('Enrollment Form'!B834<>\"Subscriber\",'Enrollment Form'!G834='Enrollment Form'!H834),\"N\",\"Y\")))","v":""},0]
[835,{"$f":"IF('Enrollment Form'!$A835<>\"\",\"Y\",\"N\")","v":"N"},{"$f":"IF(AND('Enrollment Form'!$B835=\"\",'Enrollment Form'!$C835<>\"\"),\"N\",IF($B828=\"N\",\"\",\"Y\"))","v":""},{"$f":"IF(OR($B828=\"N\",'Enrollment Form'!G835=\"\"),\"\",IF('Enrollment Form'!$B835<>\"Subscriber\",\"\",IF('Enrollment Form'!$G835='Enrollment Form'!$H835,\"Y\",\"N\")))","v":""},{"$f":"IF($B828=\"N\",\"\",IF(AND(COUNTIFS('Enrollment Form'!$H$11:$H$1000,'Enrollment Form'!$H835,'Enrollment Form'!$B$11:$B$1000,'Enrollment Form'!$B835)>1,'Enrollment Form'!$H835<>\"\"),\"N\",\"Y\"))","v":""},{"$f":"IF($B828=\"N\",\"\",IF(LEN('Enrollment Form'!$Y835)=0,\"\",IF(LEN('Enrollment Form'!$Y835)<>5,\"N\",\"Y\")))","v":""},{"$f":"IF($B828=\"N\",\"\",IF(LEN('Enrollment Form'!$AD835=0),\"\",IF(LEN('Enrollment Form'!$AD835)<>5,\"N\",\"Y\")))","v":""},{"$f":"IF($B828=\"N\",\"\",IF(LEN('Enrollment Form'!$BL835=0),\"\",IF(LEN('Enrollment Form'!$BL835)<>5,\"N\",\"Y\")))","v":""},{"$f":"IF($B828=\"N\",\"\",IF(LEN('Enrollment Form'!$AE835)=0,\"\",IF(LEN('Enrollment Form'!$AE835)<>10,\"N\",\"Y\")))","v":""},{"$f":"IF($B828=\"N\",\"\",IF(LEN('Enrollment Form'!$AF835)=0,\"\",IF(LEN('Enrollment Form'!$AF835)<>10,\"N\",\"Y\")))","v":""},{"$f":"IF('Enrollment Form'!$O835<>\"Graded\",\"-\",IF(AND('Enrollment Form'!$O835=\"Graded\",'Enrollment Form'!$AO835<>\"\"),\"Y\",\"N\"))","v":"-"},{"$f":"IF($B828=\"N\",\"\",IF(OR('Enrollment Form'!$B835<>\"Subscriber\",'Enrollment Form'!$C835=\"ROC\"),\"-\",IF(AND('Enrollment Form'!$B835=\"Subscriber\",'Enrollment Form'!$C835=\"Enroll\",'Enrollment Form'!$AJ835<>\"\"),\"Y\",\"N\")))","v":""},{"$f":"IF($B828=\"N\",\"\",IF(OR('Enrollment Form'!$B835<>\"Subscriber\",'Enrollment Form'!$C835=\"ROC\"),\"-\",IF(AND('Enrollment Form'!$B835=\"Subscriber\",'Enrollment Form'!$C835=\"Enroll\",'Enrollment Form'!$AK835<>\"\"),\"Y\",\"N\")))","v":""},{"$f":"IF($B828=\"N\",\"\",IF(OR('Enrollment Form'!$B835<>\"Subscriber\",'Enrollment Form'!$C835=\"ROC\"),\"-\",IF(AND('Enrollment Form'!$B835=\"Subscriber\",'Enrollment Form'!$C835=\"Enroll\",'Enrollment Form'!$AL835<>\"\"),\"Y\",\"N\")))","v":""},{"$f":"IF($B828=\"N\",\"\",IF(OR('Enrollment Form'!$B835<>\"Subscriber\",'Enrollment Form'!$C835=\"ROC\"),\"-\",IF(AND('Enrollment Form'!$B835=\"Subscriber\",'Enrollment Form'!$C835=\"Enroll\",'Enrollment Form'!$AM835<>\"\"),\"Y\",\"N\")))","v":""},{"$f":"IF($B828=\"N\",\"\",IF(OR('Enrollment Form'!$B835<>\"Subscriber\",'Enrollment Form'!$C835=\"ROC\"),\"-\",IF(AND('Enrollment Form'!$B835=\"Subscriber\",'Enrollment Form'!$C835=\"Enroll\",'Enrollment Form'!$AN835<>\"\"),\"Y\",\"N\")))","v":""},{"$f":"IF($B828=\"N\",\"\",IF(OR('Enrollment Form'!$B835<>\"Subscriber\",'Enrollment Form'!$C835=\"ROC\"),\"-\",IF(AND('Enrollment Form'!$B835=\"Subscriber\",'Enrollment Form'!$C835=\"Enroll\",'Enrollment Form'!$AP835<>\"\"),\"Y\",\"N\")))","v":""},{"$f":"IF($B828=\"N\",\"\",IF($Q828=\"-\",\"-\",IF(AND($Q828=\"Y\",'Enrollment Form'!$AP835=\"No\"),\"-\",IF(AND($Q828=\"Y\",'Enrollment Form'!$AP835=\"Yes\",'Enrollment Form'!$AQ835<>\"\"),\"Y\",\"N\"))))","v":""},{"$f":"IF($B828=\"N\",\"\",IF(OR('Enrollment Form'!$B835<>\"Subscriber\",'Enrollment Form'!$C835=\"ROC\"),\"-\",IF(AND('Enrollment Form'!$B835=\"Subscriber\",'Enrollment Form'!$C835=\"Enroll\",'Enrollment Form'!$CO835<>\"\"),\"Y\",\"N\")))","v":""},{"$f":"IF($B828=\"N\",\"\",IF($S828=\"-\",\"-\",IF(AND($S828=\"Y\",'Enrollment Form'!$CO835=\"No\"),\"-\",IF(AND($S828=\"Y\",'Enrollment Form'!$CO835=\"Yes\",'Enrollment Form'!$CP835<>\"\"),\"Y\",\"N\"))))","v":""},{"$f":"IF(OR('Enrollment Form'!$AV835=\"Yes\",'Enrollment Form'!$AV835=\"\"),\"-\",IF(AND('Enrollment Form'!$AV835=\"No\",ISERROR(FIND(\"HMO\",VLOOKUP('Enrollment Form'!G835,'Enrollment Form'!H$11:J$1000,3,FALSE),1))=FALSE,COUNTA('Enrollment Form'!$AW835:$AZ835)=4),\"Y\",\"N\"))","v":"-"},{"$f":"IF($B828=\"N\",\"\",IF('Enrollment Form'!$B835=\"Subscriber\",\"-\",IF(COUNTA('Enrollment Form'!$BE835,'Enrollment Form'!$BG835)=2,\"Y\",\"N\")))","v":""},{"$f":"IF($B828=\"N\",\"\",IF(OR('Enrollment Form'!$AU835=\"\",'Enrollment Form'!$AU835=\"No\"),\"-\",IF(AND('Enrollment Form'!$AU835=\"Yes\",COUNTA('Enrollment Form'!$CK835)=1),\"Y\",\"N\")))","v":""},{"$f":"IF(OR('Enrollment Form'!$CK835=\"\",'Enrollment Form'!$CK835=\"No\"),\"-\",IF(COUNTA('Enrollment Form'!$CM835:$CN835)=2,\"Y\",\"N\"))","v":"-"},{"$f":"IF($B828=\"N\",\"\",IF(COUNTIF('Enrollment Form'!$CZ835:$DO835,\"Other\")=COUNTA('Enrollment Form'!$DF835,'Enrollment Form'!$DA835,'Enrollment Form'!$DK835,'Enrollment Form'!$DP835),\"Y\",\"N\"))","v":""},{"$f":"IF($B828=\"N\",\"\",IF(OR('Enrollment Form'!B835<>\"Subscriber\",'Enrollment Form'!C835=\"ROC\",COUNTIF('Enrollment Form'!AS835:AT835,\"Yes\")>=1),\"-\",IF(AND('Enrollment Form'!C835=\"Enroll\",COUNTIF('Enrollment Form'!AS835:AT835,\"No\")=2,'Enrollment Form'!AU835=\"\"),\"N\",\"Y\")))","v":""},{"$f":"IF(OR(B828=\"N\",'Enrollment Form'!B835<>\"Subscriber\",'Enrollment Form'!C835=\"ROC\",'Enrollment Form'!O835<>\"Multiple of Salary\"),\"-\",IF(COUNTA('Enrollment Form'!T835:U835)<2,\"N\",\"Y\"))","v":"-"},{"$f":"IF(B828=\"N\",\"\",IF(OR('Enrollment Form'!C835=\"ROC\",'Enrollment Form'!B835<>\"Subscriber\",'Enrollment Form'!O835=\"Waive\",'Enrollment Form'!O835=\"\"),\"-\",IF('Enrollment Form'!P835=\"\",\"N\",\"Y\")))","v":""},{"$f":"IF($B828=\"N\",\"\",IF(AND('Enrollment Form'!$C835=\"ROC\",'Enrollment Form'!$DS835<>\"\"),\"Y\",IF(AND('Enrollment Form'!$C835=\"ROC\",'Enrollment Form'!$DS835=\"\"),\"N\",IF(AND('Enrollment Form'!$C835=\"Enroll\",'Enrollment Form'!$B835=\"Subscriber\",'Enrollment Form'!$CQ835=\"No\",'Enrollment Form'!$DS835=\"\"),\"N\",IF(AND('Enrollment Form'!$C835=\"Enroll\",'Enrollment Form'!$B835=\"Subscriber\",'Enrollment Form'!$CQ835=\"Yes\"),\"-\",\"Y\")))))","v":""},{"$f":"IF($B828=\"N\",\"\",IF(AND('Enrollment Form'!$C835=\"ROC\",'Enrollment Form'!$DT835<>\"\"),\"Y\",IF(AND('Enrollment Form'!$C835=\"ROC\",'Enrollment Form'!$DT835=\"\"),\"N\",IF(AND('Enrollment Form'!$C835=\"Enroll\",'Enrollment Form'!$B835=\"Subscriber\",'Enrollment Form'!$CQ835=\"No\",'Enrollment Form'!$DT835=\"\"),\"N\",IF(AND('Enrollment Form'!$C835=\"Enroll\",'Enrollment Form'!$B835=\"Subscriber\",'Enrollment Form'!$CQ835=\"Yes\"),\"-\",\"Y\")))))","v":""},{"$f":"IF('Enrollment Form'!AH835=\"\",\"\",IF(ISERROR(SEARCH(\".\",'Enrollment Form'!AH835,SEARCH(\"@\",'Enrollment Form'!AH835))),\"N\",\"Y\"))","v":""},{"$f":"IF(OR($B828=\"N\",'Enrollment Form'!$G835=\"\"),\"\",IF('Enrollment Form'!$B835<>\"Subscriber\",\"-\",IF(COUNTIF('Enrollment Form'!$AS835:$AT835,\"Yes\")=2,\"N\",\"Y\")))","v":""},{"$f":"IF(OR('Enrollment Form'!$CC835=\"\",'Enrollment Form'!$CC835=\"No\"),\"-\",IF(AND('Enrollment Form'!$CC835=\"Yes\",'Enrollment Form'!$CD835=\"\"),\"N\",\"Y\"))","v":"-"},{"$f":"IF(OR('Enrollment Form'!$CE835=\"\",'Enrollment Form'!$CE835=\"No\"),\"-\",IF(AND('Enrollment Form'!$CE835=\"Yes\",'Enrollment Form'!$CF835=\"\"),\"N\",\"Y\"))","v":"-"},{"$f":"IF(OR('Enrollment Form'!$CG835=\"\",'Enrollment Form'!$CG835=\"No\"),\"-\",IF(AND('Enrollment Form'!$CG835=\"Yes\",'Enrollment Form'!$CH835=\"\"),\"N\",\"Y\"))","v":"-"},{"$f":"IF(OR('Enrollment Form'!$CG835=\"\",'Enrollment Form'!$CG835=\"No\"),\"-\",IF(AND('Enrollment Form'!$CG835=\"Yes\",'Enrollment Form'!$CI835=\"\"),\"N\",\"Y\"))","v":"-"},{"$f":"IF('Enrollment Form'!B835<>\"Subscriber\",\"-\",IF(AND('Enrollment Form'!B835=\"Subscriber\",'Enrollment Form'!C835=\"Enroll\",'Enrollment Form'!AA835=\"\"),\"N\",\"Y\"))","v":"-"},{"$f":"IF(OR('Enrollment Form'!B835=\"Subscriber\",'Enrollment Form'!B835=\"\"),\"-\",IF('Enrollment Form'!BI835=\"\",\"N\",\"Y\"))","v":"-"},{"$f":"IF('Enrollment Form'!B835<>\"Subscriber\",\"-\",IF(AND('Enrollment Form'!B835=\"Subscriber\",'Enrollment Form'!G835=\"\"),\"N\",\"Y\"))","v":"-"},{"$f":"IF('Enrollment Form'!A835=\"\",\"\",IF('Enrollment Form'!B835=\"Subscriber\",\"-\",IF(AND('Enrollment Form'!B835<>\"Subscriber\",'Enrollment Form'!G835='Enrollment Form'!H835),\"N\",\"Y\")))","v":""},0]
[836,{"$f":"IF('Enrollment Form'!$A836<>\"\",\"Y\",\"N\")","v":"N"},{"$f":"IF(AND('Enrollment Form'!$B836=\"\",'Enrollment Form'!$C836<>\"\"),\"N\",IF($B829=\"N\",\"\",\"Y\"))","v":""},{"$f":"IF(OR($B829=\"N\",'Enrollment Form'!G836=\"\"),\"\",IF('Enrollment Form'!$B836<>\"Subscriber\",\"\",IF('Enrollment Form'!$G836='Enrollment Form'!$H836,\"Y\",\"N\")))","v":""},{"$f":"IF($B829=\"N\",\"\",IF(AND(COUNTIFS('Enrollment Form'!$H$11:$H$1000,'Enrollment Form'!$H836,'Enrollment Form'!$B$11:$B$1000,'Enrollment Form'!$B836)>1,'Enrollment Form'!$H836<>\"\"),\"N\",\"Y\"))","v":""},{"$f":"IF($B829=\"N\",\"\",IF(LEN('Enrollment Form'!$Y836)=0,\"\",IF(LEN('Enrollment Form'!$Y836)<>5,\"N\",\"Y\")))","v":""},{"$f":"IF($B829=\"N\",\"\",IF(LEN('Enrollment Form'!$AD836=0),\"\",IF(LEN('Enrollment Form'!$AD836)<>5,\"N\",\"Y\")))","v":""},{"$f":"IF($B829=\"N\",\"\",IF(LEN('Enrollment Form'!$BL836=0),\"\",IF(LEN('Enrollment Form'!$BL836)<>5,\"N\",\"Y\")))","v":""},{"$f":"IF($B829=\"N\",\"\",IF(LEN('Enrollment Form'!$AE836)=0,\"\",IF(LEN('Enrollment Form'!$AE836)<>10,\"N\",\"Y\")))","v":""},{"$f":"IF($B829=\"N\",\"\",IF(LEN('Enrollment Form'!$AF836)=0,\"\",IF(LEN('Enrollment Form'!$AF836)<>10,\"N\",\"Y\")))","v":""},{"$f":"IF('Enrollment Form'!$O836<>\"Graded\",\"-\",IF(AND('Enrollment Form'!$O836=\"Graded\",'Enrollment Form'!$AO836<>\"\"),\"Y\",\"N\"))","v":"-"},{"$f":"IF($B829=\"N\",\"\",IF(OR('Enrollment Form'!$B836<>\"Subscriber\",'Enrollment Form'!$C836=\"ROC\"),\"-\",IF(AND('Enrollment Form'!$B836=\"Subscriber\",'Enrollment Form'!$C836=\"Enroll\",'Enrollment Form'!$AJ836<>\"\"),\"Y\",\"N\")))","v":""},{"$f":"IF($B829=\"N\",\"\",IF(OR('Enrollment Form'!$B836<>\"Subscriber\",'Enrollment Form'!$C836=\"ROC\"),\"-\",IF(AND('Enrollment Form'!$B836=\"Subscriber\",'Enrollment Form'!$C836=\"Enroll\",'Enrollment Form'!$AK836<>\"\"),\"Y\",\"N\")))","v":""},{"$f":"IF($B829=\"N\",\"\",IF(OR('Enrollment Form'!$B836<>\"Subscriber\",'Enrollment Form'!$C836=\"ROC\"),\"-\",IF(AND('Enrollment Form'!$B836=\"Subscriber\",'Enrollment Form'!$C836=\"Enroll\",'Enrollment Form'!$AL836<>\"\"),\"Y\",\"N\")))","v":""},{"$f":"IF($B829=\"N\",\"\",IF(OR('Enrollment Form'!$B836<>\"Subscriber\",'Enrollment Form'!$C836=\"ROC\"),\"-\",IF(AND('Enrollment Form'!$B836=\"Subscriber\",'Enrollment Form'!$C836=\"Enroll\",'Enrollment Form'!$AM836<>\"\"),\"Y\",\"N\")))","v":""},{"$f":"IF($B829=\"N\",\"\",IF(OR('Enrollment Form'!$B836<>\"Subscriber\",'Enrollment Form'!$C836=\"ROC\"),\"-\",IF(AND('Enrollment Form'!$B836=\"Subscriber\",'Enrollment Form'!$C836=\"Enroll\",'Enrollment Form'!$AN836<>\"\"),\"Y\",\"N\")))","v":""},{"$f":"IF($B829=\"N\",\"\",IF(OR('Enrollment Form'!$B836<>\"Subscriber\",'Enrollment Form'!$C836=\"ROC\"),\"-\",IF(AND('Enrollment Form'!$B836=\"Subscriber\",'Enrollment Form'!$C836=\"Enroll\",'Enrollment Form'!$AP836<>\"\"),\"Y\",\"N\")))","v":""},{"$f":"IF($B829=\"N\",\"\",IF($Q829=\"-\",\"-\",IF(AND($Q829=\"Y\",'Enrollment Form'!$AP836=\"No\"),\"-\",IF(AND($Q829=\"Y\",'Enrollment Form'!$AP836=\"Yes\",'Enrollment Form'!$AQ836<>\"\"),\"Y\",\"N\"))))","v":""},{"$f":"IF($B829=\"N\",\"\",IF(OR('Enrollment Form'!$B836<>\"Subscriber\",'Enrollment Form'!$C836=\"ROC\"),\"-\",IF(AND('Enrollment Form'!$B836=\"Subscriber\",'Enrollment Form'!$C836=\"Enroll\",'Enrollment Form'!$CO836<>\"\"),\"Y\",\"N\")))","v":""},{"$f":"IF($B829=\"N\",\"\",IF($S829=\"-\",\"-\",IF(AND($S829=\"Y\",'Enrollment Form'!$CO836=\"No\"),\"-\",IF(AND($S829=\"Y\",'Enrollment Form'!$CO836=\"Yes\",'Enrollment Form'!$CP836<>\"\"),\"Y\",\"N\"))))","v":""},{"$f":"IF(OR('Enrollment Form'!$AV836=\"Yes\",'Enrollment Form'!$AV836=\"\"),\"-\",IF(AND('Enrollment Form'!$AV836=\"No\",ISERROR(FIND(\"HMO\",VLOOKUP('Enrollment Form'!G836,'Enrollment Form'!H$11:J$1000,3,FALSE),1))=FALSE,COUNTA('Enrollment Form'!$AW836:$AZ836)=4),\"Y\",\"N\"))","v":"-"},{"$f":"IF($B829=\"N\",\"\",IF('Enrollment Form'!$B836=\"Subscriber\",\"-\",IF(COUNTA('Enrollment Form'!$BE836,'Enrollment Form'!$BG836)=2,\"Y\",\"N\")))","v":""},{"$f":"IF($B829=\"N\",\"\",IF(OR('Enrollment Form'!$AU836=\"\",'Enrollment Form'!$AU836=\"No\"),\"-\",IF(AND('Enrollment Form'!$AU836=\"Yes\",COUNTA('Enrollment Form'!$CK836)=1),\"Y\",\"N\")))","v":""},{"$f":"IF(OR('Enrollment Form'!$CK836=\"\",'Enrollment Form'!$CK836=\"No\"),\"-\",IF(COUNTA('Enrollment Form'!$CM836:$CN836)=2,\"Y\",\"N\"))","v":"-"},{"$f":"IF($B829=\"N\",\"\",IF(COUNTIF('Enrollment Form'!$CZ836:$DO836,\"Other\")=COUNTA('Enrollment Form'!$DF836,'Enrollment Form'!$DA836,'Enrollment Form'!$DK836,'Enrollment Form'!$DP836),\"Y\",\"N\"))","v":""},{"$f":"IF($B829=\"N\",\"\",IF(OR('Enrollment Form'!B836<>\"Subscriber\",'Enrollment Form'!C836=\"ROC\",COUNTIF('Enrollment Form'!AS836:AT836,\"Yes\")>=1),\"-\",IF(AND('Enrollment Form'!C836=\"Enroll\",COUNTIF('Enrollment Form'!AS836:AT836,\"No\")=2,'Enrollment Form'!AU836=\"\"),\"N\",\"Y\")))","v":""},{"$f":"IF(OR(B829=\"N\",'Enrollment Form'!B836<>\"Subscriber\",'Enrollment Form'!C836=\"ROC\",'Enrollment Form'!O836<>\"Multiple of Salary\"),\"-\",IF(COUNTA('Enrollment Form'!T836:U836)<2,\"N\",\"Y\"))","v":"-"},{"$f":"IF(B829=\"N\",\"\",IF(OR('Enrollment Form'!C836=\"ROC\",'Enrollment Form'!B836<>\"Subscriber\",'Enrollment Form'!O836=\"Waive\",'Enrollment Form'!O836=\"\"),\"-\",IF('Enrollment Form'!P836=\"\",\"N\",\"Y\")))","v":""},{"$f":"IF($B829=\"N\",\"\",IF(AND('Enrollment Form'!$C836=\"ROC\",'Enrollment Form'!$DS836<>\"\"),\"Y\",IF(AND('Enrollment Form'!$C836=\"ROC\",'Enrollment Form'!$DS836=\"\"),\"N\",IF(AND('Enrollment Form'!$C836=\"Enroll\",'Enrollment Form'!$B836=\"Subscriber\",'Enrollment Form'!$CQ836=\"No\",'Enrollment Form'!$DS836=\"\"),\"N\",IF(AND('Enrollment Form'!$C836=\"Enroll\",'Enrollment Form'!$B836=\"Subscriber\",'Enrollment Form'!$CQ836=\"Yes\"),\"-\",\"Y\")))))","v":""},{"$f":"IF($B829=\"N\",\"\",IF(AND('Enrollment Form'!$C836=\"ROC\",'Enrollment Form'!$DT836<>\"\"),\"Y\",IF(AND('Enrollment Form'!$C836=\"ROC\",'Enrollment Form'!$DT836=\"\"),\"N\",IF(AND('Enrollment Form'!$C836=\"Enroll\",'Enrollment Form'!$B836=\"Subscriber\",'Enrollment Form'!$CQ836=\"No\",'Enrollment Form'!$DT836=\"\"),\"N\",IF(AND('Enrollment Form'!$C836=\"Enroll\",'Enrollment Form'!$B836=\"Subscriber\",'Enrollment Form'!$CQ836=\"Yes\"),\"-\",\"Y\")))))","v":""},{"$f":"IF('Enrollment Form'!AH836=\"\",\"\",IF(ISERROR(SEARCH(\".\",'Enrollment Form'!AH836,SEARCH(\"@\",'Enrollment Form'!AH836))),\"N\",\"Y\"))","v":""},{"$f":"IF(OR($B829=\"N\",'Enrollment Form'!$G836=\"\"),\"\",IF('Enrollment Form'!$B836<>\"Subscriber\",\"-\",IF(COUNTIF('Enrollment Form'!$AS836:$AT836,\"Yes\")=2,\"N\",\"Y\")))","v":""},{"$f":"IF(OR('Enrollment Form'!$CC836=\"\",'Enrollment Form'!$CC836=\"No\"),\"-\",IF(AND('Enrollment Form'!$CC836=\"Yes\",'Enrollment Form'!$CD836=\"\"),\"N\",\"Y\"))","v":"-"},{"$f":"IF(OR('Enrollment Form'!$CE836=\"\",'Enrollment Form'!$CE836=\"No\"),\"-\",IF(AND('Enrollment Form'!$CE836=\"Yes\",'Enrollment Form'!$CF836=\"\"),\"N\",\"Y\"))","v":"-"},{"$f":"IF(OR('Enrollment Form'!$CG836=\"\",'Enrollment Form'!$CG836=\"No\"),\"-\",IF(AND('Enrollment Form'!$CG836=\"Yes\",'Enrollment Form'!$CH836=\"\"),\"N\",\"Y\"))","v":"-"},{"$f":"IF(OR('Enrollment Form'!$CG836=\"\",'Enrollment Form'!$CG836=\"No\"),\"-\",IF(AND('Enrollment Form'!$CG836=\"Yes\",'Enrollment Form'!$CI836=\"\"),\"N\",\"Y\"))","v":"-"},{"$f":"IF('Enrollment Form'!B836<>\"Subscriber\",\"-\",IF(AND('Enrollment Form'!B836=\"Subscriber\",'Enrollment Form'!C836=\"Enroll\",'Enrollment Form'!AA836=\"\"),\"N\",\"Y\"))","v":"-"},{"$f":"IF(OR('Enrollment Form'!B836=\"Subscriber\",'Enrollment Form'!B836=\"\"),\"-\",IF('Enrollment Form'!BI836=\"\",\"N\",\"Y\"))","v":"-"},{"$f":"IF('Enrollment Form'!B836<>\"Subscriber\",\"-\",IF(AND('Enrollment Form'!B836=\"Subscriber\",'Enrollment Form'!G836=\"\"),\"N\",\"Y\"))","v":"-"},{"$f":"IF('Enrollment Form'!A836=\"\",\"\",IF('Enrollment Form'!B836=\"Subscriber\",\"-\",IF(AND('Enrollment Form'!B836<>\"Subscriber\",'Enrollment Form'!G836='Enrollment Form'!H836),\"N\",\"Y\")))","v":""},0]
[837,{"$f":"IF('Enrollment Form'!$A837<>\"\",\"Y\",\"N\")","v":"N"},{"$f":"IF(AND('Enrollment Form'!$B837=\"\",'Enrollment Form'!$C837<>\"\"),\"N\",IF($B830=\"N\",\"\",\"Y\"))","v":""},{"$f":"IF(OR($B830=\"N\",'Enrollment Form'!G837=\"\"),\"\",IF('Enrollment Form'!$B837<>\"Subscriber\",\"\",IF('Enrollment Form'!$G837='Enrollment Form'!$H837,\"Y\",\"N\")))","v":""},{"$f":"IF($B830=\"N\",\"\",IF(AND(COUNTIFS('Enrollment Form'!$H$11:$H$1000,'Enrollment Form'!$H837,'Enrollment Form'!$B$11:$B$1000,'Enrollment Form'!$B837)>1,'Enrollment Form'!$H837<>\"\"),\"N\",\"Y\"))","v":""},{"$f":"IF($B830=\"N\",\"\",IF(LEN('Enrollment Form'!$Y837)=0,\"\",IF(LEN('Enrollment Form'!$Y837)<>5,\"N\",\"Y\")))","v":""},{"$f":"IF($B830=\"N\",\"\",IF(LEN('Enrollment Form'!$AD837=0),\"\",IF(LEN('Enrollment Form'!$AD837)<>5,\"N\",\"Y\")))","v":""},{"$f":"IF($B830=\"N\",\"\",IF(LEN('Enrollment Form'!$BL837=0),\"\",IF(LEN('Enrollment Form'!$BL837)<>5,\"N\",\"Y\")))","v":""},{"$f":"IF($B830=\"N\",\"\",IF(LEN('Enrollment Form'!$AE837)=0,\"\",IF(LEN('Enrollment Form'!$AE837)<>10,\"N\",\"Y\")))","v":""},{"$f":"IF($B830=\"N\",\"\",IF(LEN('Enrollment Form'!$AF837)=0,\"\",IF(LEN('Enrollment Form'!$AF837)<>10,\"N\",\"Y\")))","v":""},{"$f":"IF('Enrollment Form'!$O837<>\"Graded\",\"-\",IF(AND('Enrollment Form'!$O837=\"Graded\",'Enrollment Form'!$AO837<>\"\"),\"Y\",\"N\"))","v":"-"},{"$f":"IF($B830=\"N\",\"\",IF(OR('Enrollment Form'!$B837<>\"Subscriber\",'Enrollment Form'!$C837=\"ROC\"),\"-\",IF(AND('Enrollment Form'!$B837=\"Subscriber\",'Enrollment Form'!$C837=\"Enroll\",'Enrollment Form'!$AJ837<>\"\"),\"Y\",\"N\")))","v":""},{"$f":"IF($B830=\"N\",\"\",IF(OR('Enrollment Form'!$B837<>\"Subscriber\",'Enrollment Form'!$C837=\"ROC\"),\"-\",IF(AND('Enrollment Form'!$B837=\"Subscriber\",'Enrollment Form'!$C837=\"Enroll\",'Enrollment Form'!$AK837<>\"\"),\"Y\",\"N\")))","v":""},{"$f":"IF($B830=\"N\",\"\",IF(OR('Enrollment Form'!$B837<>\"Subscriber\",'Enrollment Form'!$C837=\"ROC\"),\"-\",IF(AND('Enrollment Form'!$B837=\"Subscriber\",'Enrollment Form'!$C837=\"Enroll\",'Enrollment Form'!$AL837<>\"\"),\"Y\",\"N\")))","v":""},{"$f":"IF($B830=\"N\",\"\",IF(OR('Enrollment Form'!$B837<>\"Subscriber\",'Enrollment Form'!$C837=\"ROC\"),\"-\",IF(AND('Enrollment Form'!$B837=\"Subscriber\",'Enrollment Form'!$C837=\"Enroll\",'Enrollment Form'!$AM837<>\"\"),\"Y\",\"N\")))","v":""},{"$f":"IF($B830=\"N\",\"\",IF(OR('Enrollment Form'!$B837<>\"Subscriber\",'Enrollment Form'!$C837=\"ROC\"),\"-\",IF(AND('Enrollment Form'!$B837=\"Subscriber\",'Enrollment Form'!$C837=\"Enroll\",'Enrollment Form'!$AN837<>\"\"),\"Y\",\"N\")))","v":""},{"$f":"IF($B830=\"N\",\"\",IF(OR('Enrollment Form'!$B837<>\"Subscriber\",'Enrollment Form'!$C837=\"ROC\"),\"-\",IF(AND('Enrollment Form'!$B837=\"Subscriber\",'Enrollment Form'!$C837=\"Enroll\",'Enrollment Form'!$AP837<>\"\"),\"Y\",\"N\")))","v":""},{"$f":"IF($B830=\"N\",\"\",IF($Q830=\"-\",\"-\",IF(AND($Q830=\"Y\",'Enrollment Form'!$AP837=\"No\"),\"-\",IF(AND($Q830=\"Y\",'Enrollment Form'!$AP837=\"Yes\",'Enrollment Form'!$AQ837<>\"\"),\"Y\",\"N\"))))","v":""},{"$f":"IF($B830=\"N\",\"\",IF(OR('Enrollment Form'!$B837<>\"Subscriber\",'Enrollment Form'!$C837=\"ROC\"),\"-\",IF(AND('Enrollment Form'!$B837=\"Subscriber\",'Enrollment Form'!$C837=\"Enroll\",'Enrollment Form'!$CO837<>\"\"),\"Y\",\"N\")))","v":""},{"$f":"IF($B830=\"N\",\"\",IF($S830=\"-\",\"-\",IF(AND($S830=\"Y\",'Enrollment Form'!$CO837=\"No\"),\"-\",IF(AND($S830=\"Y\",'Enrollment Form'!$CO837=\"Yes\",'Enrollment Form'!$CP837<>\"\"),\"Y\",\"N\"))))","v":""},{"$f":"IF(OR('Enrollment Form'!$AV837=\"Yes\",'Enrollment Form'!$AV837=\"\"),\"-\",IF(AND('Enrollment Form'!$AV837=\"No\",ISERROR(FIND(\"HMO\",VLOOKUP('Enrollment Form'!G837,'Enrollment Form'!H$11:J$1000,3,FALSE),1))=FALSE,COUNTA('Enrollment Form'!$AW837:$AZ837)=4),\"Y\",\"N\"))","v":"-"},{"$f":"IF($B830=\"N\",\"\",IF('Enrollment Form'!$B837=\"Subscriber\",\"-\",IF(COUNTA('Enrollment Form'!$BE837,'Enrollment Form'!$BG837)=2,\"Y\",\"N\")))","v":""},{"$f":"IF($B830=\"N\",\"\",IF(OR('Enrollment Form'!$AU837=\"\",'Enrollment Form'!$AU837=\"No\"),\"-\",IF(AND('Enrollment Form'!$AU837=\"Yes\",COUNTA('Enrollment Form'!$CK837)=1),\"Y\",\"N\")))","v":""},{"$f":"IF(OR('Enrollment Form'!$CK837=\"\",'Enrollment Form'!$CK837=\"No\"),\"-\",IF(COUNTA('Enrollment Form'!$CM837:$CN837)=2,\"Y\",\"N\"))","v":"-"},{"$f":"IF($B830=\"N\",\"\",IF(COUNTIF('Enrollment Form'!$CZ837:$DO837,\"Other\")=COUNTA('Enrollment Form'!$DF837,'Enrollment Form'!$DA837,'Enrollment Form'!$DK837,'Enrollment Form'!$DP837),\"Y\",\"N\"))","v":""},{"$f":"IF($B830=\"N\",\"\",IF(OR('Enrollment Form'!B837<>\"Subscriber\",'Enrollment Form'!C837=\"ROC\",COUNTIF('Enrollment Form'!AS837:AT837,\"Yes\")>=1),\"-\",IF(AND('Enrollment Form'!C837=\"Enroll\",COUNTIF('Enrollment Form'!AS837:AT837,\"No\")=2,'Enrollment Form'!AU837=\"\"),\"N\",\"Y\")))","v":""},{"$f":"IF(OR(B830=\"N\",'Enrollment Form'!B837<>\"Subscriber\",'Enrollment Form'!C837=\"ROC\",'Enrollment Form'!O837<>\"Multiple of Salary\"),\"-\",IF(COUNTA('Enrollment Form'!T837:U837)<2,\"N\",\"Y\"))","v":"-"},{"$f":"IF(B830=\"N\",\"\",IF(OR('Enrollment Form'!C837=\"ROC\",'Enrollment Form'!B837<>\"Subscriber\",'Enrollment Form'!O837=\"Waive\",'Enrollment Form'!O837=\"\"),\"-\",IF('Enrollment Form'!P837=\"\",\"N\",\"Y\")))","v":""},{"$f":"IF($B830=\"N\",\"\",IF(AND('Enrollment Form'!$C837=\"ROC\",'Enrollment Form'!$DS837<>\"\"),\"Y\",IF(AND('Enrollment Form'!$C837=\"ROC\",'Enrollment Form'!$DS837=\"\"),\"N\",IF(AND('Enrollment Form'!$C837=\"Enroll\",'Enrollment Form'!$B837=\"Subscriber\",'Enrollment Form'!$CQ837=\"No\",'Enrollment Form'!$DS837=\"\"),\"N\",IF(AND('Enrollment Form'!$C837=\"Enroll\",'Enrollment Form'!$B837=\"Subscriber\",'Enrollment Form'!$CQ837=\"Yes\"),\"-\",\"Y\")))))","v":""},{"$f":"IF($B830=\"N\",\"\",IF(AND('Enrollment Form'!$C837=\"ROC\",'Enrollment Form'!$DT837<>\"\"),\"Y\",IF(AND('Enrollment Form'!$C837=\"ROC\",'Enrollment Form'!$DT837=\"\"),\"N\",IF(AND('Enrollment Form'!$C837=\"Enroll\",'Enrollment Form'!$B837=\"Subscriber\",'Enrollment Form'!$CQ837=\"No\",'Enrollment Form'!$DT837=\"\"),\"N\",IF(AND('Enrollment Form'!$C837=\"Enroll\",'Enrollment Form'!$B837=\"Subscriber\",'Enrollment Form'!$CQ837=\"Yes\"),\"-\",\"Y\")))))","v":""},{"$f":"IF('Enrollment Form'!AH837=\"\",\"\",IF(ISERROR(SEARCH(\".\",'Enrollment Form'!AH837,SEARCH(\"@\",'Enrollment Form'!AH837))),\"N\",\"Y\"))","v":""},{"$f":"IF(OR($B830=\"N\",'Enrollment Form'!$G837=\"\"),\"\",IF('Enrollment Form'!$B837<>\"Subscriber\",\"-\",IF(COUNTIF('Enrollment Form'!$AS837:$AT837,\"Yes\")=2,\"N\",\"Y\")))","v":""},{"$f":"IF(OR('Enrollment Form'!$CC837=\"\",'Enrollment Form'!$CC837=\"No\"),\"-\",IF(AND('Enrollment Form'!$CC837=\"Yes\",'Enrollment Form'!$CD837=\"\"),\"N\",\"Y\"))","v":"-"},{"$f":"IF(OR('Enrollment Form'!$CE837=\"\",'Enrollment Form'!$CE837=\"No\"),\"-\",IF(AND('Enrollment Form'!$CE837=\"Yes\",'Enrollment Form'!$CF837=\"\"),\"N\",\"Y\"))","v":"-"},{"$f":"IF(OR('Enrollment Form'!$CG837=\"\",'Enrollment Form'!$CG837=\"No\"),\"-\",IF(AND('Enrollment Form'!$CG837=\"Yes\",'Enrollment Form'!$CH837=\"\"),\"N\",\"Y\"))","v":"-"},{"$f":"IF(OR('Enrollment Form'!$CG837=\"\",'Enrollment Form'!$CG837=\"No\"),\"-\",IF(AND('Enrollment Form'!$CG837=\"Yes\",'Enrollment Form'!$CI837=\"\"),\"N\",\"Y\"))","v":"-"},{"$f":"IF('Enrollment Form'!B837<>\"Subscriber\",\"-\",IF(AND('Enrollment Form'!B837=\"Subscriber\",'Enrollment Form'!C837=\"Enroll\",'Enrollment Form'!AA837=\"\"),\"N\",\"Y\"))","v":"-"},{"$f":"IF(OR('Enrollment Form'!B837=\"Subscriber\",'Enrollment Form'!B837=\"\"),\"-\",IF('Enrollment Form'!BI837=\"\",\"N\",\"Y\"))","v":"-"},{"$f":"IF('Enrollment Form'!B837<>\"Subscriber\",\"-\",IF(AND('Enrollment Form'!B837=\"Subscriber\",'Enrollment Form'!G837=\"\"),\"N\",\"Y\"))","v":"-"},{"$f":"IF('Enrollment Form'!A837=\"\",\"\",IF('Enrollment Form'!B837=\"Subscriber\",\"-\",IF(AND('Enrollment Form'!B837<>\"Subscriber\",'Enrollment Form'!G837='Enrollment Form'!H837),\"N\",\"Y\")))","v":""},0]
[838,{"$f":"IF('Enrollment Form'!$A838<>\"\",\"Y\",\"N\")","v":"N"},{"$f":"IF(AND('Enrollment Form'!$B838=\"\",'Enrollment Form'!$C838<>\"\"),\"N\",IF($B831=\"N\",\"\",\"Y\"))","v":""},{"$f":"IF(OR($B831=\"N\",'Enrollment Form'!G838=\"\"),\"\",IF('Enrollment Form'!$B838<>\"Subscriber\",\"\",IF('Enrollment Form'!$G838='Enrollment Form'!$H838,\"Y\",\"N\")))","v":""},{"$f":"IF($B831=\"N\",\"\",IF(AND(COUNTIFS('Enrollment Form'!$H$11:$H$1000,'Enrollment Form'!$H838,'Enrollment Form'!$B$11:$B$1000,'Enrollment Form'!$B838)>1,'Enrollment Form'!$H838<>\"\"),\"N\",\"Y\"))","v":""},{"$f":"IF($B831=\"N\",\"\",IF(LEN('Enrollment Form'!$Y838)=0,\"\",IF(LEN('Enrollment Form'!$Y838)<>5,\"N\",\"Y\")))","v":""},{"$f":"IF($B831=\"N\",\"\",IF(LEN('Enrollment Form'!$AD838=0),\"\",IF(LEN('Enrollment Form'!$AD838)<>5,\"N\",\"Y\")))","v":""},{"$f":"IF($B831=\"N\",\"\",IF(LEN('Enrollment Form'!$BL838=0),\"\",IF(LEN('Enrollment Form'!$BL838)<>5,\"N\",\"Y\")))","v":""},{"$f":"IF($B831=\"N\",\"\",IF(LEN('Enrollment Form'!$AE838)=0,\"\",IF(LEN('Enrollment Form'!$AE838)<>10,\"N\",\"Y\")))","v":""},{"$f":"IF($B831=\"N\",\"\",IF(LEN('Enrollment Form'!$AF838)=0,\"\",IF(LEN('Enrollment Form'!$AF838)<>10,\"N\",\"Y\")))","v":""},{"$f":"IF('Enrollment Form'!$O838<>\"Graded\",\"-\",IF(AND('Enrollment Form'!$O838=\"Graded\",'Enrollment Form'!$AO838<>\"\"),\"Y\",\"N\"))","v":"-"},{"$f":"IF($B831=\"N\",\"\",IF(OR('Enrollment Form'!$B838<>\"Subscriber\",'Enrollment Form'!$C838=\"ROC\"),\"-\",IF(AND('Enrollment Form'!$B838=\"Subscriber\",'Enrollment Form'!$C838=\"Enroll\",'Enrollment Form'!$AJ838<>\"\"),\"Y\",\"N\")))","v":""},{"$f":"IF($B831=\"N\",\"\",IF(OR('Enrollment Form'!$B838<>\"Subscriber\",'Enrollment Form'!$C838=\"ROC\"),\"-\",IF(AND('Enrollment Form'!$B838=\"Subscriber\",'Enrollment Form'!$C838=\"Enroll\",'Enrollment Form'!$AK838<>\"\"),\"Y\",\"N\")))","v":""},{"$f":"IF($B831=\"N\",\"\",IF(OR('Enrollment Form'!$B838<>\"Subscriber\",'Enrollment Form'!$C838=\"ROC\"),\"-\",IF(AND('Enrollment Form'!$B838=\"Subscriber\",'Enrollment Form'!$C838=\"Enroll\",'Enrollment Form'!$AL838<>\"\"),\"Y\",\"N\")))","v":""},{"$f":"IF($B831=\"N\",\"\",IF(OR('Enrollment Form'!$B838<>\"Subscriber\",'Enrollment Form'!$C838=\"ROC\"),\"-\",IF(AND('Enrollment Form'!$B838=\"Subscriber\",'Enrollment Form'!$C838=\"Enroll\",'Enrollment Form'!$AM838<>\"\"),\"Y\",\"N\")))","v":""},{"$f":"IF($B831=\"N\",\"\",IF(OR('Enrollment Form'!$B838<>\"Subscriber\",'Enrollment Form'!$C838=\"ROC\"),\"-\",IF(AND('Enrollment Form'!$B838=\"Subscriber\",'Enrollment Form'!$C838=\"Enroll\",'Enrollment Form'!$AN838<>\"\"),\"Y\",\"N\")))","v":""},{"$f":"IF($B831=\"N\",\"\",IF(OR('Enrollment Form'!$B838<>\"Subscriber\",'Enrollment Form'!$C838=\"ROC\"),\"-\",IF(AND('Enrollment Form'!$B838=\"Subscriber\",'Enrollment Form'!$C838=\"Enroll\",'Enrollment Form'!$AP838<>\"\"),\"Y\",\"N\")))","v":""},{"$f":"IF($B831=\"N\",\"\",IF($Q831=\"-\",\"-\",IF(AND($Q831=\"Y\",'Enrollment Form'!$AP838=\"No\"),\"-\",IF(AND($Q831=\"Y\",'Enrollment Form'!$AP838=\"Yes\",'Enrollment Form'!$AQ838<>\"\"),\"Y\",\"N\"))))","v":""},{"$f":"IF($B831=\"N\",\"\",IF(OR('Enrollment Form'!$B838<>\"Subscriber\",'Enrollment Form'!$C838=\"ROC\"),\"-\",IF(AND('Enrollment Form'!$B838=\"Subscriber\",'Enrollment Form'!$C838=\"Enroll\",'Enrollment Form'!$CO838<>\"\"),\"Y\",\"N\")))","v":""},{"$f":"IF($B831=\"N\",\"\",IF($S831=\"-\",\"-\",IF(AND($S831=\"Y\",'Enrollment Form'!$CO838=\"No\"),\"-\",IF(AND($S831=\"Y\",'Enrollment Form'!$CO838=\"Yes\",'Enrollment Form'!$CP838<>\"\"),\"Y\",\"N\"))))","v":""},{"$f":"IF(OR('Enrollment Form'!$AV838=\"Yes\",'Enrollment Form'!$AV838=\"\"),\"-\",IF(AND('Enrollment Form'!$AV838=\"No\",ISERROR(FIND(\"HMO\",VLOOKUP('Enrollment Form'!G838,'Enrollment Form'!H$11:J$1000,3,FALSE),1))=FALSE,COUNTA('Enrollment Form'!$AW838:$AZ838)=4),\"Y\",\"N\"))","v":"-"},{"$f":"IF($B831=\"N\",\"\",IF('Enrollment Form'!$B838=\"Subscriber\",\"-\",IF(COUNTA('Enrollment Form'!$BE838,'Enrollment Form'!$BG838)=2,\"Y\",\"N\")))","v":""},{"$f":"IF($B831=\"N\",\"\",IF(OR('Enrollment Form'!$AU838=\"\",'Enrollment Form'!$AU838=\"No\"),\"-\",IF(AND('Enrollment Form'!$AU838=\"Yes\",COUNTA('Enrollment Form'!$CK838)=1),\"Y\",\"N\")))","v":""},{"$f":"IF(OR('Enrollment Form'!$CK838=\"\",'Enrollment Form'!$CK838=\"No\"),\"-\",IF(COUNTA('Enrollment Form'!$CM838:$CN838)=2,\"Y\",\"N\"))","v":"-"},{"$f":"IF($B831=\"N\",\"\",IF(COUNTIF('Enrollment Form'!$CZ838:$DO838,\"Other\")=COUNTA('Enrollment Form'!$DF838,'Enrollment Form'!$DA838,'Enrollment Form'!$DK838,'Enrollment Form'!$DP838),\"Y\",\"N\"))","v":""},{"$f":"IF($B831=\"N\",\"\",IF(OR('Enrollment Form'!B838<>\"Subscriber\",'Enrollment Form'!C838=\"ROC\",COUNTIF('Enrollment Form'!AS838:AT838,\"Yes\")>=1),\"-\",IF(AND('Enrollment Form'!C838=\"Enroll\",COUNTIF('Enrollment Form'!AS838:AT838,\"No\")=2,'Enrollment Form'!AU838=\"\"),\"N\",\"Y\")))","v":""},{"$f":"IF(OR(B831=\"N\",'Enrollment Form'!B838<>\"Subscriber\",'Enrollment Form'!C838=\"ROC\",'Enrollment Form'!O838<>\"Multiple of Salary\"),\"-\",IF(COUNTA('Enrollment Form'!T838:U838)<2,\"N\",\"Y\"))","v":"-"},{"$f":"IF(B831=\"N\",\"\",IF(OR('Enrollment Form'!C838=\"ROC\",'Enrollment Form'!B838<>\"Subscriber\",'Enrollment Form'!O838=\"Waive\",'Enrollment Form'!O838=\"\"),\"-\",IF('Enrollment Form'!P838=\"\",\"N\",\"Y\")))","v":""},{"$f":"IF($B831=\"N\",\"\",IF(AND('Enrollment Form'!$C838=\"ROC\",'Enrollment Form'!$DS838<>\"\"),\"Y\",IF(AND('Enrollment Form'!$C838=\"ROC\",'Enrollment Form'!$DS838=\"\"),\"N\",IF(AND('Enrollment Form'!$C838=\"Enroll\",'Enrollment Form'!$B838=\"Subscriber\",'Enrollment Form'!$CQ838=\"No\",'Enrollment Form'!$DS838=\"\"),\"N\",IF(AND('Enrollment Form'!$C838=\"Enroll\",'Enrollment Form'!$B838=\"Subscriber\",'Enrollment Form'!$CQ838=\"Yes\"),\"-\",\"Y\")))))","v":""},{"$f":"IF($B831=\"N\",\"\",IF(AND('Enrollment Form'!$C838=\"ROC\",'Enrollment Form'!$DT838<>\"\"),\"Y\",IF(AND('Enrollment Form'!$C838=\"ROC\",'Enrollment Form'!$DT838=\"\"),\"N\",IF(AND('Enrollment Form'!$C838=\"Enroll\",'Enrollment Form'!$B838=\"Subscriber\",'Enrollment Form'!$CQ838=\"No\",'Enrollment Form'!$DT838=\"\"),\"N\",IF(AND('Enrollment Form'!$C838=\"Enroll\",'Enrollment Form'!$B838=\"Subscriber\",'Enrollment Form'!$CQ838=\"Yes\"),\"-\",\"Y\")))))","v":""},{"$f":"IF('Enrollment Form'!AH838=\"\",\"\",IF(ISERROR(SEARCH(\".\",'Enrollment Form'!AH838,SEARCH(\"@\",'Enrollment Form'!AH838))),\"N\",\"Y\"))","v":""},{"$f":"IF(OR($B831=\"N\",'Enrollment Form'!$G838=\"\"),\"\",IF('Enrollment Form'!$B838<>\"Subscriber\",\"-\",IF(COUNTIF('Enrollment Form'!$AS838:$AT838,\"Yes\")=2,\"N\",\"Y\")))","v":""},{"$f":"IF(OR('Enrollment Form'!$CC838=\"\",'Enrollment Form'!$CC838=\"No\"),\"-\",IF(AND('Enrollment Form'!$CC838=\"Yes\",'Enrollment Form'!$CD838=\"\"),\"N\",\"Y\"))","v":"-"},{"$f":"IF(OR('Enrollment Form'!$CE838=\"\",'Enrollment Form'!$CE838=\"No\"),\"-\",IF(AND('Enrollment Form'!$CE838=\"Yes\",'Enrollment Form'!$CF838=\"\"),\"N\",\"Y\"))","v":"-"},{"$f":"IF(OR('Enrollment Form'!$CG838=\"\",'Enrollment Form'!$CG838=\"No\"),\"-\",IF(AND('Enrollment Form'!$CG838=\"Yes\",'Enrollment Form'!$CH838=\"\"),\"N\",\"Y\"))","v":"-"},{"$f":"IF(OR('Enrollment Form'!$CG838=\"\",'Enrollment Form'!$CG838=\"No\"),\"-\",IF(AND('Enrollment Form'!$CG838=\"Yes\",'Enrollment Form'!$CI838=\"\"),\"N\",\"Y\"))","v":"-"},{"$f":"IF('Enrollment Form'!B838<>\"Subscriber\",\"-\",IF(AND('Enrollment Form'!B838=\"Subscriber\",'Enrollment Form'!C838=\"Enroll\",'Enrollment Form'!AA838=\"\"),\"N\",\"Y\"))","v":"-"},{"$f":"IF(OR('Enrollment Form'!B838=\"Subscriber\",'Enrollment Form'!B838=\"\"),\"-\",IF('Enrollment Form'!BI838=\"\",\"N\",\"Y\"))","v":"-"},{"$f":"IF('Enrollment Form'!B838<>\"Subscriber\",\"-\",IF(AND('Enrollment Form'!B838=\"Subscriber\",'Enrollment Form'!G838=\"\"),\"N\",\"Y\"))","v":"-"},{"$f":"IF('Enrollment Form'!A838=\"\",\"\",IF('Enrollment Form'!B838=\"Subscriber\",\"-\",IF(AND('Enrollment Form'!B838<>\"Subscriber\",'Enrollment Form'!G838='Enrollment Form'!H838),\"N\",\"Y\")))","v":""},0]
[839,{"$f":"IF('Enrollment Form'!$A839<>\"\",\"Y\",\"N\")","v":"N"},{"$f":"IF(AND('Enrollment Form'!$B839=\"\",'Enrollment Form'!$C839<>\"\"),\"N\",IF($B832=\"N\",\"\",\"Y\"))","v":""},{"$f":"IF(OR($B832=\"N\",'Enrollment Form'!G839=\"\"),\"\",IF('Enrollment Form'!$B839<>\"Subscriber\",\"\",IF('Enrollment Form'!$G839='Enrollment Form'!$H839,\"Y\",\"N\")))","v":""},{"$f":"IF($B832=\"N\",\"\",IF(AND(COUNTIFS('Enrollment Form'!$H$11:$H$1000,'Enrollment Form'!$H839,'Enrollment Form'!$B$11:$B$1000,'Enrollment Form'!$B839)>1,'Enrollment Form'!$H839<>\"\"),\"N\",\"Y\"))","v":""},{"$f":"IF($B832=\"N\",\"\",IF(LEN('Enrollment Form'!$Y839)=0,\"\",IF(LEN('Enrollment Form'!$Y839)<>5,\"N\",\"Y\")))","v":""},{"$f":"IF($B832=\"N\",\"\",IF(LEN('Enrollment Form'!$AD839=0),\"\",IF(LEN('Enrollment Form'!$AD839)<>5,\"N\",\"Y\")))","v":""},{"$f":"IF($B832=\"N\",\"\",IF(LEN('Enrollment Form'!$BL839=0),\"\",IF(LEN('Enrollment Form'!$BL839)<>5,\"N\",\"Y\")))","v":""},{"$f":"IF($B832=\"N\",\"\",IF(LEN('Enrollment Form'!$AE839)=0,\"\",IF(LEN('Enrollment Form'!$AE839)<>10,\"N\",\"Y\")))","v":""},{"$f":"IF($B832=\"N\",\"\",IF(LEN('Enrollment Form'!$AF839)=0,\"\",IF(LEN('Enrollment Form'!$AF839)<>10,\"N\",\"Y\")))","v":""},{"$f":"IF('Enrollment Form'!$O839<>\"Graded\",\"-\",IF(AND('Enrollment Form'!$O839=\"Graded\",'Enrollment Form'!$AO839<>\"\"),\"Y\",\"N\"))","v":"-"},{"$f":"IF($B832=\"N\",\"\",IF(OR('Enrollment Form'!$B839<>\"Subscriber\",'Enrollment Form'!$C839=\"ROC\"),\"-\",IF(AND('Enrollment Form'!$B839=\"Subscriber\",'Enrollment Form'!$C839=\"Enroll\",'Enrollment Form'!$AJ839<>\"\"),\"Y\",\"N\")))","v":""},{"$f":"IF($B832=\"N\",\"\",IF(OR('Enrollment Form'!$B839<>\"Subscriber\",'Enrollment Form'!$C839=\"ROC\"),\"-\",IF(AND('Enrollment Form'!$B839=\"Subscriber\",'Enrollment Form'!$C839=\"Enroll\",'Enrollment Form'!$AK839<>\"\"),\"Y\",\"N\")))","v":""},{"$f":"IF($B832=\"N\",\"\",IF(OR('Enrollment Form'!$B839<>\"Subscriber\",'Enrollment Form'!$C839=\"ROC\"),\"-\",IF(AND('Enrollment Form'!$B839=\"Subscriber\",'Enrollment Form'!$C839=\"Enroll\",'Enrollment Form'!$AL839<>\"\"),\"Y\",\"N\")))","v":""},{"$f":"IF($B832=\"N\",\"\",IF(OR('Enrollment Form'!$B839<>\"Subscriber\",'Enrollment Form'!$C839=\"ROC\"),\"-\",IF(AND('Enrollment Form'!$B839=\"Subscriber\",'Enrollment Form'!$C839=\"Enroll\",'Enrollment Form'!$AM839<>\"\"),\"Y\",\"N\")))","v":""},{"$f":"IF($B832=\"N\",\"\",IF(OR('Enrollment Form'!$B839<>\"Subscriber\",'Enrollment Form'!$C839=\"ROC\"),\"-\",IF(AND('Enrollment Form'!$B839=\"Subscriber\",'Enrollment Form'!$C839=\"Enroll\",'Enrollment Form'!$AN839<>\"\"),\"Y\",\"N\")))","v":""},{"$f":"IF($B832=\"N\",\"\",IF(OR('Enrollment Form'!$B839<>\"Subscriber\",'Enrollment Form'!$C839=\"ROC\"),\"-\",IF(AND('Enrollment Form'!$B839=\"Subscriber\",'Enrollment Form'!$C839=\"Enroll\",'Enrollment Form'!$AP839<>\"\"),\"Y\",\"N\")))","v":""},{"$f":"IF($B832=\"N\",\"\",IF($Q832=\"-\",\"-\",IF(AND($Q832=\"Y\",'Enrollment Form'!$AP839=\"No\"),\"-\",IF(AND($Q832=\"Y\",'Enrollment Form'!$AP839=\"Yes\",'Enrollment Form'!$AQ839<>\"\"),\"Y\",\"N\"))))","v":""},{"$f":"IF($B832=\"N\",\"\",IF(OR('Enrollment Form'!$B839<>\"Subscriber\",'Enrollment Form'!$C839=\"ROC\"),\"-\",IF(AND('Enrollment Form'!$B839=\"Subscriber\",'Enrollment Form'!$C839=\"Enroll\",'Enrollment Form'!$CO839<>\"\"),\"Y\",\"N\")))","v":""},{"$f":"IF($B832=\"N\",\"\",IF($S832=\"-\",\"-\",IF(AND($S832=\"Y\",'Enrollment Form'!$CO839=\"No\"),\"-\",IF(AND($S832=\"Y\",'Enrollment Form'!$CO839=\"Yes\",'Enrollment Form'!$CP839<>\"\"),\"Y\",\"N\"))))","v":""},{"$f":"IF(OR('Enrollment Form'!$AV839=\"Yes\",'Enrollment Form'!$AV839=\"\"),\"-\",IF(AND('Enrollment Form'!$AV839=\"No\",ISERROR(FIND(\"HMO\",VLOOKUP('Enrollment Form'!G839,'Enrollment Form'!H$11:J$1000,3,FALSE),1))=FALSE,COUNTA('Enrollment Form'!$AW839:$AZ839)=4),\"Y\",\"N\"))","v":"-"},{"$f":"IF($B832=\"N\",\"\",IF('Enrollment Form'!$B839=\"Subscriber\",\"-\",IF(COUNTA('Enrollment Form'!$BE839,'Enrollment Form'!$BG839)=2,\"Y\",\"N\")))","v":""},{"$f":"IF($B832=\"N\",\"\",IF(OR('Enrollment Form'!$AU839=\"\",'Enrollment Form'!$AU839=\"No\"),\"-\",IF(AND('Enrollment Form'!$AU839=\"Yes\",COUNTA('Enrollment Form'!$CK839)=1),\"Y\",\"N\")))","v":""},{"$f":"IF(OR('Enrollment Form'!$CK839=\"\",'Enrollment Form'!$CK839=\"No\"),\"-\",IF(COUNTA('Enrollment Form'!$CM839:$CN839)=2,\"Y\",\"N\"))","v":"-"},{"$f":"IF($B832=\"N\",\"\",IF(COUNTIF('Enrollment Form'!$CZ839:$DO839,\"Other\")=COUNTA('Enrollment Form'!$DF839,'Enrollment Form'!$DA839,'Enrollment Form'!$DK839,'Enrollment Form'!$DP839),\"Y\",\"N\"))","v":""},{"$f":"IF($B832=\"N\",\"\",IF(OR('Enrollment Form'!B839<>\"Subscriber\",'Enrollment Form'!C839=\"ROC\",COUNTIF('Enrollment Form'!AS839:AT839,\"Yes\")>=1),\"-\",IF(AND('Enrollment Form'!C839=\"Enroll\",COUNTIF('Enrollment Form'!AS839:AT839,\"No\")=2,'Enrollment Form'!AU839=\"\"),\"N\",\"Y\")))","v":""},{"$f":"IF(OR(B832=\"N\",'Enrollment Form'!B839<>\"Subscriber\",'Enrollment Form'!C839=\"ROC\",'Enrollment Form'!O839<>\"Multiple of Salary\"),\"-\",IF(COUNTA('Enrollment Form'!T839:U839)<2,\"N\",\"Y\"))","v":"-"},{"$f":"IF(B832=\"N\",\"\",IF(OR('Enrollment Form'!C839=\"ROC\",'Enrollment Form'!B839<>\"Subscriber\",'Enrollment Form'!O839=\"Waive\",'Enrollment Form'!O839=\"\"),\"-\",IF('Enrollment Form'!P839=\"\",\"N\",\"Y\")))","v":""},{"$f":"IF($B832=\"N\",\"\",IF(AND('Enrollment Form'!$C839=\"ROC\",'Enrollment Form'!$DS839<>\"\"),\"Y\",IF(AND('Enrollment Form'!$C839=\"ROC\",'Enrollment Form'!$DS839=\"\"),\"N\",IF(AND('Enrollment Form'!$C839=\"Enroll\",'Enrollment Form'!$B839=\"Subscriber\",'Enrollment Form'!$CQ839=\"No\",'Enrollment Form'!$DS839=\"\"),\"N\",IF(AND('Enrollment Form'!$C839=\"Enroll\",'Enrollment Form'!$B839=\"Subscriber\",'Enrollment Form'!$CQ839=\"Yes\"),\"-\",\"Y\")))))","v":""},{"$f":"IF($B832=\"N\",\"\",IF(AND('Enrollment Form'!$C839=\"ROC\",'Enrollment Form'!$DT839<>\"\"),\"Y\",IF(AND('Enrollment Form'!$C839=\"ROC\",'Enrollment Form'!$DT839=\"\"),\"N\",IF(AND('Enrollment Form'!$C839=\"Enroll\",'Enrollment Form'!$B839=\"Subscriber\",'Enrollment Form'!$CQ839=\"No\",'Enrollment Form'!$DT839=\"\"),\"N\",IF(AND('Enrollment Form'!$C839=\"Enroll\",'Enrollment Form'!$B839=\"Subscriber\",'Enrollment Form'!$CQ839=\"Yes\"),\"-\",\"Y\")))))","v":""},{"$f":"IF('Enrollment Form'!AH839=\"\",\"\",IF(ISERROR(SEARCH(\".\",'Enrollment Form'!AH839,SEARCH(\"@\",'Enrollment Form'!AH839))),\"N\",\"Y\"))","v":""},{"$f":"IF(OR($B832=\"N\",'Enrollment Form'!$G839=\"\"),\"\",IF('Enrollment Form'!$B839<>\"Subscriber\",\"-\",IF(COUNTIF('Enrollment Form'!$AS839:$AT839,\"Yes\")=2,\"N\",\"Y\")))","v":""},{"$f":"IF(OR('Enrollment Form'!$CC839=\"\",'Enrollment Form'!$CC839=\"No\"),\"-\",IF(AND('Enrollment Form'!$CC839=\"Yes\",'Enrollment Form'!$CD839=\"\"),\"N\",\"Y\"))","v":"-"},{"$f":"IF(OR('Enrollment Form'!$CE839=\"\",'Enrollment Form'!$CE839=\"No\"),\"-\",IF(AND('Enrollment Form'!$CE839=\"Yes\",'Enrollment Form'!$CF839=\"\"),\"N\",\"Y\"))","v":"-"},{"$f":"IF(OR('Enrollment Form'!$CG839=\"\",'Enrollment Form'!$CG839=\"No\"),\"-\",IF(AND('Enrollment Form'!$CG839=\"Yes\",'Enrollment Form'!$CH839=\"\"),\"N\",\"Y\"))","v":"-"},{"$f":"IF(OR('Enrollment Form'!$CG839=\"\",'Enrollment Form'!$CG839=\"No\"),\"-\",IF(AND('Enrollment Form'!$CG839=\"Yes\",'Enrollment Form'!$CI839=\"\"),\"N\",\"Y\"))","v":"-"},{"$f":"IF('Enrollment Form'!B839<>\"Subscriber\",\"-\",IF(AND('Enrollment Form'!B839=\"Subscriber\",'Enrollment Form'!C839=\"Enroll\",'Enrollment Form'!AA839=\"\"),\"N\",\"Y\"))","v":"-"},{"$f":"IF(OR('Enrollment Form'!B839=\"Subscriber\",'Enrollment Form'!B839=\"\"),\"-\",IF('Enrollment Form'!BI839=\"\",\"N\",\"Y\"))","v":"-"},{"$f":"IF('Enrollment Form'!B839<>\"Subscriber\",\"-\",IF(AND('Enrollment Form'!B839=\"Subscriber\",'Enrollment Form'!G839=\"\"),\"N\",\"Y\"))","v":"-"},{"$f":"IF('Enrollment Form'!A839=\"\",\"\",IF('Enrollment Form'!B839=\"Subscriber\",\"-\",IF(AND('Enrollment Form'!B839<>\"Subscriber\",'Enrollment Form'!G839='Enrollment Form'!H839),\"N\",\"Y\")))","v":""},0]
[840,{"$f":"IF('Enrollment Form'!$A840<>\"\",\"Y\",\"N\")","v":"N"},{"$f":"IF(AND('Enrollment Form'!$B840=\"\",'Enrollment Form'!$C840<>\"\"),\"N\",IF($B833=\"N\",\"\",\"Y\"))","v":""},{"$f":"IF(OR($B833=\"N\",'Enrollment Form'!G840=\"\"),\"\",IF('Enrollment Form'!$B840<>\"Subscriber\",\"\",IF('Enrollment Form'!$G840='Enrollment Form'!$H840,\"Y\",\"N\")))","v":""},{"$f":"IF($B833=\"N\",\"\",IF(AND(COUNTIFS('Enrollment Form'!$H$11:$H$1000,'Enrollment Form'!$H840,'Enrollment Form'!$B$11:$B$1000,'Enrollment Form'!$B840)>1,'Enrollment Form'!$H840<>\"\"),\"N\",\"Y\"))","v":""},{"$f":"IF($B833=\"N\",\"\",IF(LEN('Enrollment Form'!$Y840)=0,\"\",IF(LEN('Enrollment Form'!$Y840)<>5,\"N\",\"Y\")))","v":""},{"$f":"IF($B833=\"N\",\"\",IF(LEN('Enrollment Form'!$AD840=0),\"\",IF(LEN('Enrollment Form'!$AD840)<>5,\"N\",\"Y\")))","v":""},{"$f":"IF($B833=\"N\",\"\",IF(LEN('Enrollment Form'!$BL840=0),\"\",IF(LEN('Enrollment Form'!$BL840)<>5,\"N\",\"Y\")))","v":""},{"$f":"IF($B833=\"N\",\"\",IF(LEN('Enrollment Form'!$AE840)=0,\"\",IF(LEN('Enrollment Form'!$AE840)<>10,\"N\",\"Y\")))","v":""},{"$f":"IF($B833=\"N\",\"\",IF(LEN('Enrollment Form'!$AF840)=0,\"\",IF(LEN('Enrollment Form'!$AF840)<>10,\"N\",\"Y\")))","v":""},{"$f":"IF('Enrollment Form'!$O840<>\"Graded\",\"-\",IF(AND('Enrollment Form'!$O840=\"Graded\",'Enrollment Form'!$AO840<>\"\"),\"Y\",\"N\"))","v":"-"},{"$f":"IF($B833=\"N\",\"\",IF(OR('Enrollment Form'!$B840<>\"Subscriber\",'Enrollment Form'!$C840=\"ROC\"),\"-\",IF(AND('Enrollment Form'!$B840=\"Subscriber\",'Enrollment Form'!$C840=\"Enroll\",'Enrollment Form'!$AJ840<>\"\"),\"Y\",\"N\")))","v":""},{"$f":"IF($B833=\"N\",\"\",IF(OR('Enrollment Form'!$B840<>\"Subscriber\",'Enrollment Form'!$C840=\"ROC\"),\"-\",IF(AND('Enrollment Form'!$B840=\"Subscriber\",'Enrollment Form'!$C840=\"Enroll\",'Enrollment Form'!$AK840<>\"\"),\"Y\",\"N\")))","v":""},{"$f":"IF($B833=\"N\",\"\",IF(OR('Enrollment Form'!$B840<>\"Subscriber\",'Enrollment Form'!$C840=\"ROC\"),\"-\",IF(AND('Enrollment Form'!$B840=\"Subscriber\",'Enrollment Form'!$C840=\"Enroll\",'Enrollment Form'!$AL840<>\"\"),\"Y\",\"N\")))","v":""},{"$f":"IF($B833=\"N\",\"\",IF(OR('Enrollment Form'!$B840<>\"Subscriber\",'Enrollment Form'!$C840=\"ROC\"),\"-\",IF(AND('Enrollment Form'!$B840=\"Subscriber\",'Enrollment Form'!$C840=\"Enroll\",'Enrollment Form'!$AM840<>\"\"),\"Y\",\"N\")))","v":""},{"$f":"IF($B833=\"N\",\"\",IF(OR('Enrollment Form'!$B840<>\"Subscriber\",'Enrollment Form'!$C840=\"ROC\"),\"-\",IF(AND('Enrollment Form'!$B840=\"Subscriber\",'Enrollment Form'!$C840=\"Enroll\",'Enrollment Form'!$AN840<>\"\"),\"Y\",\"N\")))","v":""},{"$f":"IF($B833=\"N\",\"\",IF(OR('Enrollment Form'!$B840<>\"Subscriber\",'Enrollment Form'!$C840=\"ROC\"),\"-\",IF(AND('Enrollment Form'!$B840=\"Subscriber\",'Enrollment Form'!$C840=\"Enroll\",'Enrollment Form'!$AP840<>\"\"),\"Y\",\"N\")))","v":""},{"$f":"IF($B833=\"N\",\"\",IF($Q833=\"-\",\"-\",IF(AND($Q833=\"Y\",'Enrollment Form'!$AP840=\"No\"),\"-\",IF(AND($Q833=\"Y\",'Enrollment Form'!$AP840=\"Yes\",'Enrollment Form'!$AQ840<>\"\"),\"Y\",\"N\"))))","v":""},{"$f":"IF($B833=\"N\",\"\",IF(OR('Enrollment Form'!$B840<>\"Subscriber\",'Enrollment Form'!$C840=\"ROC\"),\"-\",IF(AND('Enrollment Form'!$B840=\"Subscriber\",'Enrollment Form'!$C840=\"Enroll\",'Enrollment Form'!$CO840<>\"\"),\"Y\",\"N\")))","v":""},{"$f":"IF($B833=\"N\",\"\",IF($S833=\"-\",\"-\",IF(AND($S833=\"Y\",'Enrollment Form'!$CO840=\"No\"),\"-\",IF(AND($S833=\"Y\",'Enrollment Form'!$CO840=\"Yes\",'Enrollment Form'!$CP840<>\"\"),\"Y\",\"N\"))))","v":""},{"$f":"IF(OR('Enrollment Form'!$AV840=\"Yes\",'Enrollment Form'!$AV840=\"\"),\"-\",IF(AND('Enrollment Form'!$AV840=\"No\",ISERROR(FIND(\"HMO\",VLOOKUP('Enrollment Form'!G840,'Enrollment Form'!H$11:J$1000,3,FALSE),1))=FALSE,COUNTA('Enrollment Form'!$AW840:$AZ840)=4),\"Y\",\"N\"))","v":"-"},{"$f":"IF($B833=\"N\",\"\",IF('Enrollment Form'!$B840=\"Subscriber\",\"-\",IF(COUNTA('Enrollment Form'!$BE840,'Enrollment Form'!$BG840)=2,\"Y\",\"N\")))","v":""},{"$f":"IF($B833=\"N\",\"\",IF(OR('Enrollment Form'!$AU840=\"\",'Enrollment Form'!$AU840=\"No\"),\"-\",IF(AND('Enrollment Form'!$AU840=\"Yes\",COUNTA('Enrollment Form'!$CK840)=1),\"Y\",\"N\")))","v":""},{"$f":"IF(OR('Enrollment Form'!$CK840=\"\",'Enrollment Form'!$CK840=\"No\"),\"-\",IF(COUNTA('Enrollment Form'!$CM840:$CN840)=2,\"Y\",\"N\"))","v":"-"},{"$f":"IF($B833=\"N\",\"\",IF(COUNTIF('Enrollment Form'!$CZ840:$DO840,\"Other\")=COUNTA('Enrollment Form'!$DF840,'Enrollment Form'!$DA840,'Enrollment Form'!$DK840,'Enrollment Form'!$DP840),\"Y\",\"N\"))","v":""},{"$f":"IF($B833=\"N\",\"\",IF(OR('Enrollment Form'!B840<>\"Subscriber\",'Enrollment Form'!C840=\"ROC\",COUNTIF('Enrollment Form'!AS840:AT840,\"Yes\")>=1),\"-\",IF(AND('Enrollment Form'!C840=\"Enroll\",COUNTIF('Enrollment Form'!AS840:AT840,\"No\")=2,'Enrollment Form'!AU840=\"\"),\"N\",\"Y\")))","v":""},{"$f":"IF(OR(B833=\"N\",'Enrollment Form'!B840<>\"Subscriber\",'Enrollment Form'!C840=\"ROC\",'Enrollment Form'!O840<>\"Multiple of Salary\"),\"-\",IF(COUNTA('Enrollment Form'!T840:U840)<2,\"N\",\"Y\"))","v":"-"},{"$f":"IF(B833=\"N\",\"\",IF(OR('Enrollment Form'!C840=\"ROC\",'Enrollment Form'!B840<>\"Subscriber\",'Enrollment Form'!O840=\"Waive\",'Enrollment Form'!O840=\"\"),\"-\",IF('Enrollment Form'!P840=\"\",\"N\",\"Y\")))","v":""},{"$f":"IF($B833=\"N\",\"\",IF(AND('Enrollment Form'!$C840=\"ROC\",'Enrollment Form'!$DS840<>\"\"),\"Y\",IF(AND('Enrollment Form'!$C840=\"ROC\",'Enrollment Form'!$DS840=\"\"),\"N\",IF(AND('Enrollment Form'!$C840=\"Enroll\",'Enrollment Form'!$B840=\"Subscriber\",'Enrollment Form'!$CQ840=\"No\",'Enrollment Form'!$DS840=\"\"),\"N\",IF(AND('Enrollment Form'!$C840=\"Enroll\",'Enrollment Form'!$B840=\"Subscriber\",'Enrollment Form'!$CQ840=\"Yes\"),\"-\",\"Y\")))))","v":""},{"$f":"IF($B833=\"N\",\"\",IF(AND('Enrollment Form'!$C840=\"ROC\",'Enrollment Form'!$DT840<>\"\"),\"Y\",IF(AND('Enrollment Form'!$C840=\"ROC\",'Enrollment Form'!$DT840=\"\"),\"N\",IF(AND('Enrollment Form'!$C840=\"Enroll\",'Enrollment Form'!$B840=\"Subscriber\",'Enrollment Form'!$CQ840=\"No\",'Enrollment Form'!$DT840=\"\"),\"N\",IF(AND('Enrollment Form'!$C840=\"Enroll\",'Enrollment Form'!$B840=\"Subscriber\",'Enrollment Form'!$CQ840=\"Yes\"),\"-\",\"Y\")))))","v":""},{"$f":"IF('Enrollment Form'!AH840=\"\",\"\",IF(ISERROR(SEARCH(\".\",'Enrollment Form'!AH840,SEARCH(\"@\",'Enrollment Form'!AH840))),\"N\",\"Y\"))","v":""},{"$f":"IF(OR($B833=\"N\",'Enrollment Form'!$G840=\"\"),\"\",IF('Enrollment Form'!$B840<>\"Subscriber\",\"-\",IF(COUNTIF('Enrollment Form'!$AS840:$AT840,\"Yes\")=2,\"N\",\"Y\")))","v":""},{"$f":"IF(OR('Enrollment Form'!$CC840=\"\",'Enrollment Form'!$CC840=\"No\"),\"-\",IF(AND('Enrollment Form'!$CC840=\"Yes\",'Enrollment Form'!$CD840=\"\"),\"N\",\"Y\"))","v":"-"},{"$f":"IF(OR('Enrollment Form'!$CE840=\"\",'Enrollment Form'!$CE840=\"No\"),\"-\",IF(AND('Enrollment Form'!$CE840=\"Yes\",'Enrollment Form'!$CF840=\"\"),\"N\",\"Y\"))","v":"-"},{"$f":"IF(OR('Enrollment Form'!$CG840=\"\",'Enrollment Form'!$CG840=\"No\"),\"-\",IF(AND('Enrollment Form'!$CG840=\"Yes\",'Enrollment Form'!$CH840=\"\"),\"N\",\"Y\"))","v":"-"},{"$f":"IF(OR('Enrollment Form'!$CG840=\"\",'Enrollment Form'!$CG840=\"No\"),\"-\",IF(AND('Enrollment Form'!$CG840=\"Yes\",'Enrollment Form'!$CI840=\"\"),\"N\",\"Y\"))","v":"-"},{"$f":"IF('Enrollment Form'!B840<>\"Subscriber\",\"-\",IF(AND('Enrollment Form'!B840=\"Subscriber\",'Enrollment Form'!C840=\"Enroll\",'Enrollment Form'!AA840=\"\"),\"N\",\"Y\"))","v":"-"},{"$f":"IF(OR('Enrollment Form'!B840=\"Subscriber\",'Enrollment Form'!B840=\"\"),\"-\",IF('Enrollment Form'!BI840=\"\",\"N\",\"Y\"))","v":"-"},{"$f":"IF('Enrollment Form'!B840<>\"Subscriber\",\"-\",IF(AND('Enrollment Form'!B840=\"Subscriber\",'Enrollment Form'!G840=\"\"),\"N\",\"Y\"))","v":"-"},{"$f":"IF('Enrollment Form'!A840=\"\",\"\",IF('Enrollment Form'!B840=\"Subscriber\",\"-\",IF(AND('Enrollment Form'!B840<>\"Subscriber\",'Enrollment Form'!G840='Enrollment Form'!H840),\"N\",\"Y\")))","v":""},0]
[841,{"$f":"IF('Enrollment Form'!$A841<>\"\",\"Y\",\"N\")","v":"N"},{"$f":"IF(AND('Enrollment Form'!$B841=\"\",'Enrollment Form'!$C841<>\"\"),\"N\",IF($B834=\"N\",\"\",\"Y\"))","v":""},{"$f":"IF(OR($B834=\"N\",'Enrollment Form'!G841=\"\"),\"\",IF('Enrollment Form'!$B841<>\"Subscriber\",\"\",IF('Enrollment Form'!$G841='Enrollment Form'!$H841,\"Y\",\"N\")))","v":""},{"$f":"IF($B834=\"N\",\"\",IF(AND(COUNTIFS('Enrollment Form'!$H$11:$H$1000,'Enrollment Form'!$H841,'Enrollment Form'!$B$11:$B$1000,'Enrollment Form'!$B841)>1,'Enrollment Form'!$H841<>\"\"),\"N\",\"Y\"))","v":""},{"$f":"IF($B834=\"N\",\"\",IF(LEN('Enrollment Form'!$Y841)=0,\"\",IF(LEN('Enrollment Form'!$Y841)<>5,\"N\",\"Y\")))","v":""},{"$f":"IF($B834=\"N\",\"\",IF(LEN('Enrollment Form'!$AD841=0),\"\",IF(LEN('Enrollment Form'!$AD841)<>5,\"N\",\"Y\")))","v":""},{"$f":"IF($B834=\"N\",\"\",IF(LEN('Enrollment Form'!$BL841=0),\"\",IF(LEN('Enrollment Form'!$BL841)<>5,\"N\",\"Y\")))","v":""},{"$f":"IF($B834=\"N\",\"\",IF(LEN('Enrollment Form'!$AE841)=0,\"\",IF(LEN('Enrollment Form'!$AE841)<>10,\"N\",\"Y\")))","v":""},{"$f":"IF($B834=\"N\",\"\",IF(LEN('Enrollment Form'!$AF841)=0,\"\",IF(LEN('Enrollment Form'!$AF841)<>10,\"N\",\"Y\")))","v":""},{"$f":"IF('Enrollment Form'!$O841<>\"Graded\",\"-\",IF(AND('Enrollment Form'!$O841=\"Graded\",'Enrollment Form'!$AO841<>\"\"),\"Y\",\"N\"))","v":"-"},{"$f":"IF($B834=\"N\",\"\",IF(OR('Enrollment Form'!$B841<>\"Subscriber\",'Enrollment Form'!$C841=\"ROC\"),\"-\",IF(AND('Enrollment Form'!$B841=\"Subscriber\",'Enrollment Form'!$C841=\"Enroll\",'Enrollment Form'!$AJ841<>\"\"),\"Y\",\"N\")))","v":""},{"$f":"IF($B834=\"N\",\"\",IF(OR('Enrollment Form'!$B841<>\"Subscriber\",'Enrollment Form'!$C841=\"ROC\"),\"-\",IF(AND('Enrollment Form'!$B841=\"Subscriber\",'Enrollment Form'!$C841=\"Enroll\",'Enrollment Form'!$AK841<>\"\"),\"Y\",\"N\")))","v":""},{"$f":"IF($B834=\"N\",\"\",IF(OR('Enrollment Form'!$B841<>\"Subscriber\",'Enrollment Form'!$C841=\"ROC\"),\"-\",IF(AND('Enrollment Form'!$B841=\"Subscriber\",'Enrollment Form'!$C841=\"Enroll\",'Enrollment Form'!$AL841<>\"\"),\"Y\",\"N\")))","v":""},{"$f":"IF($B834=\"N\",\"\",IF(OR('Enrollment Form'!$B841<>\"Subscriber\",'Enrollment Form'!$C841=\"ROC\"),\"-\",IF(AND('Enrollment Form'!$B841=\"Subscriber\",'Enrollment Form'!$C841=\"Enroll\",'Enrollment Form'!$AM841<>\"\"),\"Y\",\"N\")))","v":""},{"$f":"IF($B834=\"N\",\"\",IF(OR('Enrollment Form'!$B841<>\"Subscriber\",'Enrollment Form'!$C841=\"ROC\"),\"-\",IF(AND('Enrollment Form'!$B841=\"Subscriber\",'Enrollment Form'!$C841=\"Enroll\",'Enrollment Form'!$AN841<>\"\"),\"Y\",\"N\")))","v":""},{"$f":"IF($B834=\"N\",\"\",IF(OR('Enrollment Form'!$B841<>\"Subscriber\",'Enrollment Form'!$C841=\"ROC\"),\"-\",IF(AND('Enrollment Form'!$B841=\"Subscriber\",'Enrollment Form'!$C841=\"Enroll\",'Enrollment Form'!$AP841<>\"\"),\"Y\",\"N\")))","v":""},{"$f":"IF($B834=\"N\",\"\",IF($Q834=\"-\",\"-\",IF(AND($Q834=\"Y\",'Enrollment Form'!$AP841=\"No\"),\"-\",IF(AND($Q834=\"Y\",'Enrollment Form'!$AP841=\"Yes\",'Enrollment Form'!$AQ841<>\"\"),\"Y\",\"N\"))))","v":""},{"$f":"IF($B834=\"N\",\"\",IF(OR('Enrollment Form'!$B841<>\"Subscriber\",'Enrollment Form'!$C841=\"ROC\"),\"-\",IF(AND('Enrollment Form'!$B841=\"Subscriber\",'Enrollment Form'!$C841=\"Enroll\",'Enrollment Form'!$CO841<>\"\"),\"Y\",\"N\")))","v":""},{"$f":"IF($B834=\"N\",\"\",IF($S834=\"-\",\"-\",IF(AND($S834=\"Y\",'Enrollment Form'!$CO841=\"No\"),\"-\",IF(AND($S834=\"Y\",'Enrollment Form'!$CO841=\"Yes\",'Enrollment Form'!$CP841<>\"\"),\"Y\",\"N\"))))","v":""},{"$f":"IF(OR('Enrollment Form'!$AV841=\"Yes\",'Enrollment Form'!$AV841=\"\"),\"-\",IF(AND('Enrollment Form'!$AV841=\"No\",ISERROR(FIND(\"HMO\",VLOOKUP('Enrollment Form'!G841,'Enrollment Form'!H$11:J$1000,3,FALSE),1))=FALSE,COUNTA('Enrollment Form'!$AW841:$AZ841)=4),\"Y\",\"N\"))","v":"-"},{"$f":"IF($B834=\"N\",\"\",IF('Enrollment Form'!$B841=\"Subscriber\",\"-\",IF(COUNTA('Enrollment Form'!$BE841,'Enrollment Form'!$BG841)=2,\"Y\",\"N\")))","v":""},{"$f":"IF($B834=\"N\",\"\",IF(OR('Enrollment Form'!$AU841=\"\",'Enrollment Form'!$AU841=\"No\"),\"-\",IF(AND('Enrollment Form'!$AU841=\"Yes\",COUNTA('Enrollment Form'!$CK841)=1),\"Y\",\"N\")))","v":""},{"$f":"IF(OR('Enrollment Form'!$CK841=\"\",'Enrollment Form'!$CK841=\"No\"),\"-\",IF(COUNTA('Enrollment Form'!$CM841:$CN841)=2,\"Y\",\"N\"))","v":"-"},{"$f":"IF($B834=\"N\",\"\",IF(COUNTIF('Enrollment Form'!$CZ841:$DO841,\"Other\")=COUNTA('Enrollment Form'!$DF841,'Enrollment Form'!$DA841,'Enrollment Form'!$DK841,'Enrollment Form'!$DP841),\"Y\",\"N\"))","v":""},{"$f":"IF($B834=\"N\",\"\",IF(OR('Enrollment Form'!B841<>\"Subscriber\",'Enrollment Form'!C841=\"ROC\",COUNTIF('Enrollment Form'!AS841:AT841,\"Yes\")>=1),\"-\",IF(AND('Enrollment Form'!C841=\"Enroll\",COUNTIF('Enrollment Form'!AS841:AT841,\"No\")=2,'Enrollment Form'!AU841=\"\"),\"N\",\"Y\")))","v":""},{"$f":"IF(OR(B834=\"N\",'Enrollment Form'!B841<>\"Subscriber\",'Enrollment Form'!C841=\"ROC\",'Enrollment Form'!O841<>\"Multiple of Salary\"),\"-\",IF(COUNTA('Enrollment Form'!T841:U841)<2,\"N\",\"Y\"))","v":"-"},{"$f":"IF(B834=\"N\",\"\",IF(OR('Enrollment Form'!C841=\"ROC\",'Enrollment Form'!B841<>\"Subscriber\",'Enrollment Form'!O841=\"Waive\",'Enrollment Form'!O841=\"\"),\"-\",IF('Enrollment Form'!P841=\"\",\"N\",\"Y\")))","v":""},{"$f":"IF($B834=\"N\",\"\",IF(AND('Enrollment Form'!$C841=\"ROC\",'Enrollment Form'!$DS841<>\"\"),\"Y\",IF(AND('Enrollment Form'!$C841=\"ROC\",'Enrollment Form'!$DS841=\"\"),\"N\",IF(AND('Enrollment Form'!$C841=\"Enroll\",'Enrollment Form'!$B841=\"Subscriber\",'Enrollment Form'!$CQ841=\"No\",'Enrollment Form'!$DS841=\"\"),\"N\",IF(AND('Enrollment Form'!$C841=\"Enroll\",'Enrollment Form'!$B841=\"Subscriber\",'Enrollment Form'!$CQ841=\"Yes\"),\"-\",\"Y\")))))","v":""},{"$f":"IF($B834=\"N\",\"\",IF(AND('Enrollment Form'!$C841=\"ROC\",'Enrollment Form'!$DT841<>\"\"),\"Y\",IF(AND('Enrollment Form'!$C841=\"ROC\",'Enrollment Form'!$DT841=\"\"),\"N\",IF(AND('Enrollment Form'!$C841=\"Enroll\",'Enrollment Form'!$B841=\"Subscriber\",'Enrollment Form'!$CQ841=\"No\",'Enrollment Form'!$DT841=\"\"),\"N\",IF(AND('Enrollment Form'!$C841=\"Enroll\",'Enrollment Form'!$B841=\"Subscriber\",'Enrollment Form'!$CQ841=\"Yes\"),\"-\",\"Y\")))))","v":""},{"$f":"IF('Enrollment Form'!AH841=\"\",\"\",IF(ISERROR(SEARCH(\".\",'Enrollment Form'!AH841,SEARCH(\"@\",'Enrollment Form'!AH841))),\"N\",\"Y\"))","v":""},{"$f":"IF(OR($B834=\"N\",'Enrollment Form'!$G841=\"\"),\"\",IF('Enrollment Form'!$B841<>\"Subscriber\",\"-\",IF(COUNTIF('Enrollment Form'!$AS841:$AT841,\"Yes\")=2,\"N\",\"Y\")))","v":""},{"$f":"IF(OR('Enrollment Form'!$CC841=\"\",'Enrollment Form'!$CC841=\"No\"),\"-\",IF(AND('Enrollment Form'!$CC841=\"Yes\",'Enrollment Form'!$CD841=\"\"),\"N\",\"Y\"))","v":"-"},{"$f":"IF(OR('Enrollment Form'!$CE841=\"\",'Enrollment Form'!$CE841=\"No\"),\"-\",IF(AND('Enrollment Form'!$CE841=\"Yes\",'Enrollment Form'!$CF841=\"\"),\"N\",\"Y\"))","v":"-"},{"$f":"IF(OR('Enrollment Form'!$CG841=\"\",'Enrollment Form'!$CG841=\"No\"),\"-\",IF(AND('Enrollment Form'!$CG841=\"Yes\",'Enrollment Form'!$CH841=\"\"),\"N\",\"Y\"))","v":"-"},{"$f":"IF(OR('Enrollment Form'!$CG841=\"\",'Enrollment Form'!$CG841=\"No\"),\"-\",IF(AND('Enrollment Form'!$CG841=\"Yes\",'Enrollment Form'!$CI841=\"\"),\"N\",\"Y\"))","v":"-"},{"$f":"IF('Enrollment Form'!B841<>\"Subscriber\",\"-\",IF(AND('Enrollment Form'!B841=\"Subscriber\",'Enrollment Form'!C841=\"Enroll\",'Enrollment Form'!AA841=\"\"),\"N\",\"Y\"))","v":"-"},{"$f":"IF(OR('Enrollment Form'!B841=\"Subscriber\",'Enrollment Form'!B841=\"\"),\"-\",IF('Enrollment Form'!BI841=\"\",\"N\",\"Y\"))","v":"-"},{"$f":"IF('Enrollment Form'!B841<>\"Subscriber\",\"-\",IF(AND('Enrollment Form'!B841=\"Subscriber\",'Enrollment Form'!G841=\"\"),\"N\",\"Y\"))","v":"-"},{"$f":"IF('Enrollment Form'!A841=\"\",\"\",IF('Enrollment Form'!B841=\"Subscriber\",\"-\",IF(AND('Enrollment Form'!B841<>\"Subscriber\",'Enrollment Form'!G841='Enrollment Form'!H841),\"N\",\"Y\")))","v":""},0]
[842,{"$f":"IF('Enrollment Form'!$A842<>\"\",\"Y\",\"N\")","v":"N"},{"$f":"IF(AND('Enrollment Form'!$B842=\"\",'Enrollment Form'!$C842<>\"\"),\"N\",IF($B835=\"N\",\"\",\"Y\"))","v":""},{"$f":"IF(OR($B835=\"N\",'Enrollment Form'!G842=\"\"),\"\",IF('Enrollment Form'!$B842<>\"Subscriber\",\"\",IF('Enrollment Form'!$G842='Enrollment Form'!$H842,\"Y\",\"N\")))","v":""},{"$f":"IF($B835=\"N\",\"\",IF(AND(COUNTIFS('Enrollment Form'!$H$11:$H$1000,'Enrollment Form'!$H842,'Enrollment Form'!$B$11:$B$1000,'Enrollment Form'!$B842)>1,'Enrollment Form'!$H842<>\"\"),\"N\",\"Y\"))","v":""},{"$f":"IF($B835=\"N\",\"\",IF(LEN('Enrollment Form'!$Y842)=0,\"\",IF(LEN('Enrollment Form'!$Y842)<>5,\"N\",\"Y\")))","v":""},{"$f":"IF($B835=\"N\",\"\",IF(LEN('Enrollment Form'!$AD842=0),\"\",IF(LEN('Enrollment Form'!$AD842)<>5,\"N\",\"Y\")))","v":""},{"$f":"IF($B835=\"N\",\"\",IF(LEN('Enrollment Form'!$BL842=0),\"\",IF(LEN('Enrollment Form'!$BL842)<>5,\"N\",\"Y\")))","v":""},{"$f":"IF($B835=\"N\",\"\",IF(LEN('Enrollment Form'!$AE842)=0,\"\",IF(LEN('Enrollment Form'!$AE842)<>10,\"N\",\"Y\")))","v":""},{"$f":"IF($B835=\"N\",\"\",IF(LEN('Enrollment Form'!$AF842)=0,\"\",IF(LEN('Enrollment Form'!$AF842)<>10,\"N\",\"Y\")))","v":""},{"$f":"IF('Enrollment Form'!$O842<>\"Graded\",\"-\",IF(AND('Enrollment Form'!$O842=\"Graded\",'Enrollment Form'!$AO842<>\"\"),\"Y\",\"N\"))","v":"-"},{"$f":"IF($B835=\"N\",\"\",IF(OR('Enrollment Form'!$B842<>\"Subscriber\",'Enrollment Form'!$C842=\"ROC\"),\"-\",IF(AND('Enrollment Form'!$B842=\"Subscriber\",'Enrollment Form'!$C842=\"Enroll\",'Enrollment Form'!$AJ842<>\"\"),\"Y\",\"N\")))","v":""},{"$f":"IF($B835=\"N\",\"\",IF(OR('Enrollment Form'!$B842<>\"Subscriber\",'Enrollment Form'!$C842=\"ROC\"),\"-\",IF(AND('Enrollment Form'!$B842=\"Subscriber\",'Enrollment Form'!$C842=\"Enroll\",'Enrollment Form'!$AK842<>\"\"),\"Y\",\"N\")))","v":""},{"$f":"IF($B835=\"N\",\"\",IF(OR('Enrollment Form'!$B842<>\"Subscriber\",'Enrollment Form'!$C842=\"ROC\"),\"-\",IF(AND('Enrollment Form'!$B842=\"Subscriber\",'Enrollment Form'!$C842=\"Enroll\",'Enrollment Form'!$AL842<>\"\"),\"Y\",\"N\")))","v":""},{"$f":"IF($B835=\"N\",\"\",IF(OR('Enrollment Form'!$B842<>\"Subscriber\",'Enrollment Form'!$C842=\"ROC\"),\"-\",IF(AND('Enrollment Form'!$B842=\"Subscriber\",'Enrollment Form'!$C842=\"Enroll\",'Enrollment Form'!$AM842<>\"\"),\"Y\",\"N\")))","v":""},{"$f":"IF($B835=\"N\",\"\",IF(OR('Enrollment Form'!$B842<>\"Subscriber\",'Enrollment Form'!$C842=\"ROC\"),\"-\",IF(AND('Enrollment Form'!$B842=\"Subscriber\",'Enrollment Form'!$C842=\"Enroll\",'Enrollment Form'!$AN842<>\"\"),\"Y\",\"N\")))","v":""},{"$f":"IF($B835=\"N\",\"\",IF(OR('Enrollment Form'!$B842<>\"Subscriber\",'Enrollment Form'!$C842=\"ROC\"),\"-\",IF(AND('Enrollment Form'!$B842=\"Subscriber\",'Enrollment Form'!$C842=\"Enroll\",'Enrollment Form'!$AP842<>\"\"),\"Y\",\"N\")))","v":""},{"$f":"IF($B835=\"N\",\"\",IF($Q835=\"-\",\"-\",IF(AND($Q835=\"Y\",'Enrollment Form'!$AP842=\"No\"),\"-\",IF(AND($Q835=\"Y\",'Enrollment Form'!$AP842=\"Yes\",'Enrollment Form'!$AQ842<>\"\"),\"Y\",\"N\"))))","v":""},{"$f":"IF($B835=\"N\",\"\",IF(OR('Enrollment Form'!$B842<>\"Subscriber\",'Enrollment Form'!$C842=\"ROC\"),\"-\",IF(AND('Enrollment Form'!$B842=\"Subscriber\",'Enrollment Form'!$C842=\"Enroll\",'Enrollment Form'!$CO842<>\"\"),\"Y\",\"N\")))","v":""},{"$f":"IF($B835=\"N\",\"\",IF($S835=\"-\",\"-\",IF(AND($S835=\"Y\",'Enrollment Form'!$CO842=\"No\"),\"-\",IF(AND($S835=\"Y\",'Enrollment Form'!$CO842=\"Yes\",'Enrollment Form'!$CP842<>\"\"),\"Y\",\"N\"))))","v":""},{"$f":"IF(OR('Enrollment Form'!$AV842=\"Yes\",'Enrollment Form'!$AV842=\"\"),\"-\",IF(AND('Enrollment Form'!$AV842=\"No\",ISERROR(FIND(\"HMO\",VLOOKUP('Enrollment Form'!G842,'Enrollment Form'!H$11:J$1000,3,FALSE),1))=FALSE,COUNTA('Enrollment Form'!$AW842:$AZ842)=4),\"Y\",\"N\"))","v":"-"},{"$f":"IF($B835=\"N\",\"\",IF('Enrollment Form'!$B842=\"Subscriber\",\"-\",IF(COUNTA('Enrollment Form'!$BE842,'Enrollment Form'!$BG842)=2,\"Y\",\"N\")))","v":""},{"$f":"IF($B835=\"N\",\"\",IF(OR('Enrollment Form'!$AU842=\"\",'Enrollment Form'!$AU842=\"No\"),\"-\",IF(AND('Enrollment Form'!$AU842=\"Yes\",COUNTA('Enrollment Form'!$CK842)=1),\"Y\",\"N\")))","v":""},{"$f":"IF(OR('Enrollment Form'!$CK842=\"\",'Enrollment Form'!$CK842=\"No\"),\"-\",IF(COUNTA('Enrollment Form'!$CM842:$CN842)=2,\"Y\",\"N\"))","v":"-"},{"$f":"IF($B835=\"N\",\"\",IF(COUNTIF('Enrollment Form'!$CZ842:$DO842,\"Other\")=COUNTA('Enrollment Form'!$DF842,'Enrollment Form'!$DA842,'Enrollment Form'!$DK842,'Enrollment Form'!$DP842),\"Y\",\"N\"))","v":""},{"$f":"IF($B835=\"N\",\"\",IF(OR('Enrollment Form'!B842<>\"Subscriber\",'Enrollment Form'!C842=\"ROC\",COUNTIF('Enrollment Form'!AS842:AT842,\"Yes\")>=1),\"-\",IF(AND('Enrollment Form'!C842=\"Enroll\",COUNTIF('Enrollment Form'!AS842:AT842,\"No\")=2,'Enrollment Form'!AU842=\"\"),\"N\",\"Y\")))","v":""},{"$f":"IF(OR(B835=\"N\",'Enrollment Form'!B842<>\"Subscriber\",'Enrollment Form'!C842=\"ROC\",'Enrollment Form'!O842<>\"Multiple of Salary\"),\"-\",IF(COUNTA('Enrollment Form'!T842:U842)<2,\"N\",\"Y\"))","v":"-"},{"$f":"IF(B835=\"N\",\"\",IF(OR('Enrollment Form'!C842=\"ROC\",'Enrollment Form'!B842<>\"Subscriber\",'Enrollment Form'!O842=\"Waive\",'Enrollment Form'!O842=\"\"),\"-\",IF('Enrollment Form'!P842=\"\",\"N\",\"Y\")))","v":""},{"$f":"IF($B835=\"N\",\"\",IF(AND('Enrollment Form'!$C842=\"ROC\",'Enrollment Form'!$DS842<>\"\"),\"Y\",IF(AND('Enrollment Form'!$C842=\"ROC\",'Enrollment Form'!$DS842=\"\"),\"N\",IF(AND('Enrollment Form'!$C842=\"Enroll\",'Enrollment Form'!$B842=\"Subscriber\",'Enrollment Form'!$CQ842=\"No\",'Enrollment Form'!$DS842=\"\"),\"N\",IF(AND('Enrollment Form'!$C842=\"Enroll\",'Enrollment Form'!$B842=\"Subscriber\",'Enrollment Form'!$CQ842=\"Yes\"),\"-\",\"Y\")))))","v":""},{"$f":"IF($B835=\"N\",\"\",IF(AND('Enrollment Form'!$C842=\"ROC\",'Enrollment Form'!$DT842<>\"\"),\"Y\",IF(AND('Enrollment Form'!$C842=\"ROC\",'Enrollment Form'!$DT842=\"\"),\"N\",IF(AND('Enrollment Form'!$C842=\"Enroll\",'Enrollment Form'!$B842=\"Subscriber\",'Enrollment Form'!$CQ842=\"No\",'Enrollment Form'!$DT842=\"\"),\"N\",IF(AND('Enrollment Form'!$C842=\"Enroll\",'Enrollment Form'!$B842=\"Subscriber\",'Enrollment Form'!$CQ842=\"Yes\"),\"-\",\"Y\")))))","v":""},{"$f":"IF('Enrollment Form'!AH842=\"\",\"\",IF(ISERROR(SEARCH(\".\",'Enrollment Form'!AH842,SEARCH(\"@\",'Enrollment Form'!AH842))),\"N\",\"Y\"))","v":""},{"$f":"IF(OR($B835=\"N\",'Enrollment Form'!$G842=\"\"),\"\",IF('Enrollment Form'!$B842<>\"Subscriber\",\"-\",IF(COUNTIF('Enrollment Form'!$AS842:$AT842,\"Yes\")=2,\"N\",\"Y\")))","v":""},{"$f":"IF(OR('Enrollment Form'!$CC842=\"\",'Enrollment Form'!$CC842=\"No\"),\"-\",IF(AND('Enrollment Form'!$CC842=\"Yes\",'Enrollment Form'!$CD842=\"\"),\"N\",\"Y\"))","v":"-"},{"$f":"IF(OR('Enrollment Form'!$CE842=\"\",'Enrollment Form'!$CE842=\"No\"),\"-\",IF(AND('Enrollment Form'!$CE842=\"Yes\",'Enrollment Form'!$CF842=\"\"),\"N\",\"Y\"))","v":"-"},{"$f":"IF(OR('Enrollment Form'!$CG842=\"\",'Enrollment Form'!$CG842=\"No\"),\"-\",IF(AND('Enrollment Form'!$CG842=\"Yes\",'Enrollment Form'!$CH842=\"\"),\"N\",\"Y\"))","v":"-"},{"$f":"IF(OR('Enrollment Form'!$CG842=\"\",'Enrollment Form'!$CG842=\"No\"),\"-\",IF(AND('Enrollment Form'!$CG842=\"Yes\",'Enrollment Form'!$CI842=\"\"),\"N\",\"Y\"))","v":"-"},{"$f":"IF('Enrollment Form'!B842<>\"Subscriber\",\"-\",IF(AND('Enrollment Form'!B842=\"Subscriber\",'Enrollment Form'!C842=\"Enroll\",'Enrollment Form'!AA842=\"\"),\"N\",\"Y\"))","v":"-"},{"$f":"IF(OR('Enrollment Form'!B842=\"Subscriber\",'Enrollment Form'!B842=\"\"),\"-\",IF('Enrollment Form'!BI842=\"\",\"N\",\"Y\"))","v":"-"},{"$f":"IF('Enrollment Form'!B842<>\"Subscriber\",\"-\",IF(AND('Enrollment Form'!B842=\"Subscriber\",'Enrollment Form'!G842=\"\"),\"N\",\"Y\"))","v":"-"},{"$f":"IF('Enrollment Form'!A842=\"\",\"\",IF('Enrollment Form'!B842=\"Subscriber\",\"-\",IF(AND('Enrollment Form'!B842<>\"Subscriber\",'Enrollment Form'!G842='Enrollment Form'!H842),\"N\",\"Y\")))","v":""},0]
[843,{"$f":"IF('Enrollment Form'!$A843<>\"\",\"Y\",\"N\")","v":"N"},{"$f":"IF(AND('Enrollment Form'!$B843=\"\",'Enrollment Form'!$C843<>\"\"),\"N\",IF($B836=\"N\",\"\",\"Y\"))","v":""},{"$f":"IF(OR($B836=\"N\",'Enrollment Form'!G843=\"\"),\"\",IF('Enrollment Form'!$B843<>\"Subscriber\",\"\",IF('Enrollment Form'!$G843='Enrollment Form'!$H843,\"Y\",\"N\")))","v":""},{"$f":"IF($B836=\"N\",\"\",IF(AND(COUNTIFS('Enrollment Form'!$H$11:$H$1000,'Enrollment Form'!$H843,'Enrollment Form'!$B$11:$B$1000,'Enrollment Form'!$B843)>1,'Enrollment Form'!$H843<>\"\"),\"N\",\"Y\"))","v":""},{"$f":"IF($B836=\"N\",\"\",IF(LEN('Enrollment Form'!$Y843)=0,\"\",IF(LEN('Enrollment Form'!$Y843)<>5,\"N\",\"Y\")))","v":""},{"$f":"IF($B836=\"N\",\"\",IF(LEN('Enrollment Form'!$AD843=0),\"\",IF(LEN('Enrollment Form'!$AD843)<>5,\"N\",\"Y\")))","v":""},{"$f":"IF($B836=\"N\",\"\",IF(LEN('Enrollment Form'!$BL843=0),\"\",IF(LEN('Enrollment Form'!$BL843)<>5,\"N\",\"Y\")))","v":""},{"$f":"IF($B836=\"N\",\"\",IF(LEN('Enrollment Form'!$AE843)=0,\"\",IF(LEN('Enrollment Form'!$AE843)<>10,\"N\",\"Y\")))","v":""},{"$f":"IF($B836=\"N\",\"\",IF(LEN('Enrollment Form'!$AF843)=0,\"\",IF(LEN('Enrollment Form'!$AF843)<>10,\"N\",\"Y\")))","v":""},{"$f":"IF('Enrollment Form'!$O843<>\"Graded\",\"-\",IF(AND('Enrollment Form'!$O843=\"Graded\",'Enrollment Form'!$AO843<>\"\"),\"Y\",\"N\"))","v":"-"},{"$f":"IF($B836=\"N\",\"\",IF(OR('Enrollment Form'!$B843<>\"Subscriber\",'Enrollment Form'!$C843=\"ROC\"),\"-\",IF(AND('Enrollment Form'!$B843=\"Subscriber\",'Enrollment Form'!$C843=\"Enroll\",'Enrollment Form'!$AJ843<>\"\"),\"Y\",\"N\")))","v":""},{"$f":"IF($B836=\"N\",\"\",IF(OR('Enrollment Form'!$B843<>\"Subscriber\",'Enrollment Form'!$C843=\"ROC\"),\"-\",IF(AND('Enrollment Form'!$B843=\"Subscriber\",'Enrollment Form'!$C843=\"Enroll\",'Enrollment Form'!$AK843<>\"\"),\"Y\",\"N\")))","v":""},{"$f":"IF($B836=\"N\",\"\",IF(OR('Enrollment Form'!$B843<>\"Subscriber\",'Enrollment Form'!$C843=\"ROC\"),\"-\",IF(AND('Enrollment Form'!$B843=\"Subscriber\",'Enrollment Form'!$C843=\"Enroll\",'Enrollment Form'!$AL843<>\"\"),\"Y\",\"N\")))","v":""},{"$f":"IF($B836=\"N\",\"\",IF(OR('Enrollment Form'!$B843<>\"Subscriber\",'Enrollment Form'!$C843=\"ROC\"),\"-\",IF(AND('Enrollment Form'!$B843=\"Subscriber\",'Enrollment Form'!$C843=\"Enroll\",'Enrollment Form'!$AM843<>\"\"),\"Y\",\"N\")))","v":""},{"$f":"IF($B836=\"N\",\"\",IF(OR('Enrollment Form'!$B843<>\"Subscriber\",'Enrollment Form'!$C843=\"ROC\"),\"-\",IF(AND('Enrollment Form'!$B843=\"Subscriber\",'Enrollment Form'!$C843=\"Enroll\",'Enrollment Form'!$AN843<>\"\"),\"Y\",\"N\")))","v":""},{"$f":"IF($B836=\"N\",\"\",IF(OR('Enrollment Form'!$B843<>\"Subscriber\",'Enrollment Form'!$C843=\"ROC\"),\"-\",IF(AND('Enrollment Form'!$B843=\"Subscriber\",'Enrollment Form'!$C843=\"Enroll\",'Enrollment Form'!$AP843<>\"\"),\"Y\",\"N\")))","v":""},{"$f":"IF($B836=\"N\",\"\",IF($Q836=\"-\",\"-\",IF(AND($Q836=\"Y\",'Enrollment Form'!$AP843=\"No\"),\"-\",IF(AND($Q836=\"Y\",'Enrollment Form'!$AP843=\"Yes\",'Enrollment Form'!$AQ843<>\"\"),\"Y\",\"N\"))))","v":""},{"$f":"IF($B836=\"N\",\"\",IF(OR('Enrollment Form'!$B843<>\"Subscriber\",'Enrollment Form'!$C843=\"ROC\"),\"-\",IF(AND('Enrollment Form'!$B843=\"Subscriber\",'Enrollment Form'!$C843=\"Enroll\",'Enrollment Form'!$CO843<>\"\"),\"Y\",\"N\")))","v":""},{"$f":"IF($B836=\"N\",\"\",IF($S836=\"-\",\"-\",IF(AND($S836=\"Y\",'Enrollment Form'!$CO843=\"No\"),\"-\",IF(AND($S836=\"Y\",'Enrollment Form'!$CO843=\"Yes\",'Enrollment Form'!$CP843<>\"\"),\"Y\",\"N\"))))","v":""},{"$f":"IF(OR('Enrollment Form'!$AV843=\"Yes\",'Enrollment Form'!$AV843=\"\"),\"-\",IF(AND('Enrollment Form'!$AV843=\"No\",ISERROR(FIND(\"HMO\",VLOOKUP('Enrollment Form'!G843,'Enrollment Form'!H$11:J$1000,3,FALSE),1))=FALSE,COUNTA('Enrollment Form'!$AW843:$AZ843)=4),\"Y\",\"N\"))","v":"-"},{"$f":"IF($B836=\"N\",\"\",IF('Enrollment Form'!$B843=\"Subscriber\",\"-\",IF(COUNTA('Enrollment Form'!$BE843,'Enrollment Form'!$BG843)=2,\"Y\",\"N\")))","v":""},{"$f":"IF($B836=\"N\",\"\",IF(OR('Enrollment Form'!$AU843=\"\",'Enrollment Form'!$AU843=\"No\"),\"-\",IF(AND('Enrollment Form'!$AU843=\"Yes\",COUNTA('Enrollment Form'!$CK843)=1),\"Y\",\"N\")))","v":""},{"$f":"IF(OR('Enrollment Form'!$CK843=\"\",'Enrollment Form'!$CK843=\"No\"),\"-\",IF(COUNTA('Enrollment Form'!$CM843:$CN843)=2,\"Y\",\"N\"))","v":"-"},{"$f":"IF($B836=\"N\",\"\",IF(COUNTIF('Enrollment Form'!$CZ843:$DO843,\"Other\")=COUNTA('Enrollment Form'!$DF843,'Enrollment Form'!$DA843,'Enrollment Form'!$DK843,'Enrollment Form'!$DP843),\"Y\",\"N\"))","v":""},{"$f":"IF($B836=\"N\",\"\",IF(OR('Enrollment Form'!B843<>\"Subscriber\",'Enrollment Form'!C843=\"ROC\",COUNTIF('Enrollment Form'!AS843:AT843,\"Yes\")>=1),\"-\",IF(AND('Enrollment Form'!C843=\"Enroll\",COUNTIF('Enrollment Form'!AS843:AT843,\"No\")=2,'Enrollment Form'!AU843=\"\"),\"N\",\"Y\")))","v":""},{"$f":"IF(OR(B836=\"N\",'Enrollment Form'!B843<>\"Subscriber\",'Enrollment Form'!C843=\"ROC\",'Enrollment Form'!O843<>\"Multiple of Salary\"),\"-\",IF(COUNTA('Enrollment Form'!T843:U843)<2,\"N\",\"Y\"))","v":"-"},{"$f":"IF(B836=\"N\",\"\",IF(OR('Enrollment Form'!C843=\"ROC\",'Enrollment Form'!B843<>\"Subscriber\",'Enrollment Form'!O843=\"Waive\",'Enrollment Form'!O843=\"\"),\"-\",IF('Enrollment Form'!P843=\"\",\"N\",\"Y\")))","v":""},{"$f":"IF($B836=\"N\",\"\",IF(AND('Enrollment Form'!$C843=\"ROC\",'Enrollment Form'!$DS843<>\"\"),\"Y\",IF(AND('Enrollment Form'!$C843=\"ROC\",'Enrollment Form'!$DS843=\"\"),\"N\",IF(AND('Enrollment Form'!$C843=\"Enroll\",'Enrollment Form'!$B843=\"Subscriber\",'Enrollment Form'!$CQ843=\"No\",'Enrollment Form'!$DS843=\"\"),\"N\",IF(AND('Enrollment Form'!$C843=\"Enroll\",'Enrollment Form'!$B843=\"Subscriber\",'Enrollment Form'!$CQ843=\"Yes\"),\"-\",\"Y\")))))","v":""},{"$f":"IF($B836=\"N\",\"\",IF(AND('Enrollment Form'!$C843=\"ROC\",'Enrollment Form'!$DT843<>\"\"),\"Y\",IF(AND('Enrollment Form'!$C843=\"ROC\",'Enrollment Form'!$DT843=\"\"),\"N\",IF(AND('Enrollment Form'!$C843=\"Enroll\",'Enrollment Form'!$B843=\"Subscriber\",'Enrollment Form'!$CQ843=\"No\",'Enrollment Form'!$DT843=\"\"),\"N\",IF(AND('Enrollment Form'!$C843=\"Enroll\",'Enrollment Form'!$B843=\"Subscriber\",'Enrollment Form'!$CQ843=\"Yes\"),\"-\",\"Y\")))))","v":""},{"$f":"IF('Enrollment Form'!AH843=\"\",\"\",IF(ISERROR(SEARCH(\".\",'Enrollment Form'!AH843,SEARCH(\"@\",'Enrollment Form'!AH843))),\"N\",\"Y\"))","v":""},{"$f":"IF(OR($B836=\"N\",'Enrollment Form'!$G843=\"\"),\"\",IF('Enrollment Form'!$B843<>\"Subscriber\",\"-\",IF(COUNTIF('Enrollment Form'!$AS843:$AT843,\"Yes\")=2,\"N\",\"Y\")))","v":""},{"$f":"IF(OR('Enrollment Form'!$CC843=\"\",'Enrollment Form'!$CC843=\"No\"),\"-\",IF(AND('Enrollment Form'!$CC843=\"Yes\",'Enrollment Form'!$CD843=\"\"),\"N\",\"Y\"))","v":"-"},{"$f":"IF(OR('Enrollment Form'!$CE843=\"\",'Enrollment Form'!$CE843=\"No\"),\"-\",IF(AND('Enrollment Form'!$CE843=\"Yes\",'Enrollment Form'!$CF843=\"\"),\"N\",\"Y\"))","v":"-"},{"$f":"IF(OR('Enrollment Form'!$CG843=\"\",'Enrollment Form'!$CG843=\"No\"),\"-\",IF(AND('Enrollment Form'!$CG843=\"Yes\",'Enrollment Form'!$CH843=\"\"),\"N\",\"Y\"))","v":"-"},{"$f":"IF(OR('Enrollment Form'!$CG843=\"\",'Enrollment Form'!$CG843=\"No\"),\"-\",IF(AND('Enrollment Form'!$CG843=\"Yes\",'Enrollment Form'!$CI843=\"\"),\"N\",\"Y\"))","v":"-"},{"$f":"IF('Enrollment Form'!B843<>\"Subscriber\",\"-\",IF(AND('Enrollment Form'!B843=\"Subscriber\",'Enrollment Form'!C843=\"Enroll\",'Enrollment Form'!AA843=\"\"),\"N\",\"Y\"))","v":"-"},{"$f":"IF(OR('Enrollment Form'!B843=\"Subscriber\",'Enrollment Form'!B843=\"\"),\"-\",IF('Enrollment Form'!BI843=\"\",\"N\",\"Y\"))","v":"-"},{"$f":"IF('Enrollment Form'!B843<>\"Subscriber\",\"-\",IF(AND('Enrollment Form'!B843=\"Subscriber\",'Enrollment Form'!G843=\"\"),\"N\",\"Y\"))","v":"-"},{"$f":"IF('Enrollment Form'!A843=\"\",\"\",IF('Enrollment Form'!B843=\"Subscriber\",\"-\",IF(AND('Enrollment Form'!B843<>\"Subscriber\",'Enrollment Form'!G843='Enrollment Form'!H843),\"N\",\"Y\")))","v":""},{"$f":"COUNTIF(C836:AN836,\"N\")","v":0}]
[844,{"$f":"IF('Enrollment Form'!$A844<>\"\",\"Y\",\"N\")","v":"N"},{"$f":"IF(AND('Enrollment Form'!$B844=\"\",'Enrollment Form'!$C844<>\"\"),\"N\",IF($B837=\"N\",\"\",\"Y\"))","v":""},{"$f":"IF(OR($B837=\"N\",'Enrollment Form'!G844=\"\"),\"\",IF('Enrollment Form'!$B844<>\"Subscriber\",\"\",IF('Enrollment Form'!$G844='Enrollment Form'!$H844,\"Y\",\"N\")))","v":""},{"$f":"IF($B837=\"N\",\"\",IF(AND(COUNTIFS('Enrollment Form'!$H$11:$H$1000,'Enrollment Form'!$H844,'Enrollment Form'!$B$11:$B$1000,'Enrollment Form'!$B844)>1,'Enrollment Form'!$H844<>\"\"),\"N\",\"Y\"))","v":""},{"$f":"IF($B837=\"N\",\"\",IF(LEN('Enrollment Form'!$Y844)=0,\"\",IF(LEN('Enrollment Form'!$Y844)<>5,\"N\",\"Y\")))","v":""},{"$f":"IF($B837=\"N\",\"\",IF(LEN('Enrollment Form'!$AD844=0),\"\",IF(LEN('Enrollment Form'!$AD844)<>5,\"N\",\"Y\")))","v":""},{"$f":"IF($B837=\"N\",\"\",IF(LEN('Enrollment Form'!$BL844=0),\"\",IF(LEN('Enrollment Form'!$BL844)<>5,\"N\",\"Y\")))","v":""},{"$f":"IF($B837=\"N\",\"\",IF(LEN('Enrollment Form'!$AE844)=0,\"\",IF(LEN('Enrollment Form'!$AE844)<>10,\"N\",\"Y\")))","v":""},{"$f":"IF($B837=\"N\",\"\",IF(LEN('Enrollment Form'!$AF844)=0,\"\",IF(LEN('Enrollment Form'!$AF844)<>10,\"N\",\"Y\")))","v":""},{"$f":"IF('Enrollment Form'!$O844<>\"Graded\",\"-\",IF(AND('Enrollment Form'!$O844=\"Graded\",'Enrollment Form'!$AO844<>\"\"),\"Y\",\"N\"))","v":"-"},{"$f":"IF($B837=\"N\",\"\",IF(OR('Enrollment Form'!$B844<>\"Subscriber\",'Enrollment Form'!$C844=\"ROC\"),\"-\",IF(AND('Enrollment Form'!$B844=\"Subscriber\",'Enrollment Form'!$C844=\"Enroll\",'Enrollment Form'!$AJ844<>\"\"),\"Y\",\"N\")))","v":""},{"$f":"IF($B837=\"N\",\"\",IF(OR('Enrollment Form'!$B844<>\"Subscriber\",'Enrollment Form'!$C844=\"ROC\"),\"-\",IF(AND('Enrollment Form'!$B844=\"Subscriber\",'Enrollment Form'!$C844=\"Enroll\",'Enrollment Form'!$AK844<>\"\"),\"Y\",\"N\")))","v":""},{"$f":"IF($B837=\"N\",\"\",IF(OR('Enrollment Form'!$B844<>\"Subscriber\",'Enrollment Form'!$C844=\"ROC\"),\"-\",IF(AND('Enrollment Form'!$B844=\"Subscriber\",'Enrollment Form'!$C844=\"Enroll\",'Enrollment Form'!$AL844<>\"\"),\"Y\",\"N\")))","v":""},{"$f":"IF($B837=\"N\",\"\",IF(OR('Enrollment Form'!$B844<>\"Subscriber\",'Enrollment Form'!$C844=\"ROC\"),\"-\",IF(AND('Enrollment Form'!$B844=\"Subscriber\",'Enrollment Form'!$C844=\"Enroll\",'Enrollment Form'!$AM844<>\"\"),\"Y\",\"N\")))","v":""},{"$f":"IF($B837=\"N\",\"\",IF(OR('Enrollment Form'!$B844<>\"Subscriber\",'Enrollment Form'!$C844=\"ROC\"),\"-\",IF(AND('Enrollment Form'!$B844=\"Subscriber\",'Enrollment Form'!$C844=\"Enroll\",'Enrollment Form'!$AN844<>\"\"),\"Y\",\"N\")))","v":""},{"$f":"IF($B837=\"N\",\"\",IF(OR('Enrollment Form'!$B844<>\"Subscriber\",'Enrollment Form'!$C844=\"ROC\"),\"-\",IF(AND('Enrollment Form'!$B844=\"Subscriber\",'Enrollment Form'!$C844=\"Enroll\",'Enrollment Form'!$AP844<>\"\"),\"Y\",\"N\")))","v":""},{"$f":"IF($B837=\"N\",\"\",IF($Q837=\"-\",\"-\",IF(AND($Q837=\"Y\",'Enrollment Form'!$AP844=\"No\"),\"-\",IF(AND($Q837=\"Y\",'Enrollment Form'!$AP844=\"Yes\",'Enrollment Form'!$AQ844<>\"\"),\"Y\",\"N\"))))","v":""},{"$f":"IF($B837=\"N\",\"\",IF(OR('Enrollment Form'!$B844<>\"Subscriber\",'Enrollment Form'!$C844=\"ROC\"),\"-\",IF(AND('Enrollment Form'!$B844=\"Subscriber\",'Enrollment Form'!$C844=\"Enroll\",'Enrollment Form'!$CO844<>\"\"),\"Y\",\"N\")))","v":""},{"$f":"IF($B837=\"N\",\"\",IF($S837=\"-\",\"-\",IF(AND($S837=\"Y\",'Enrollment Form'!$CO844=\"No\"),\"-\",IF(AND($S837=\"Y\",'Enrollment Form'!$CO844=\"Yes\",'Enrollment Form'!$CP844<>\"\"),\"Y\",\"N\"))))","v":""},{"$f":"IF(OR('Enrollment Form'!$AV844=\"Yes\",'Enrollment Form'!$AV844=\"\"),\"-\",IF(AND('Enrollment Form'!$AV844=\"No\",ISERROR(FIND(\"HMO\",VLOOKUP('Enrollment Form'!G844,'Enrollment Form'!H$11:J$1000,3,FALSE),1))=FALSE,COUNTA('Enrollment Form'!$AW844:$AZ844)=4),\"Y\",\"N\"))","v":"-"},{"$f":"IF($B837=\"N\",\"\",IF('Enrollment Form'!$B844=\"Subscriber\",\"-\",IF(COUNTA('Enrollment Form'!$BE844,'Enrollment Form'!$BG844)=2,\"Y\",\"N\")))","v":""},{"$f":"IF($B837=\"N\",\"\",IF(OR('Enrollment Form'!$AU844=\"\",'Enrollment Form'!$AU844=\"No\"),\"-\",IF(AND('Enrollment Form'!$AU844=\"Yes\",COUNTA('Enrollment Form'!$CK844)=1),\"Y\",\"N\")))","v":""},{"$f":"IF(OR('Enrollment Form'!$CK844=\"\",'Enrollment Form'!$CK844=\"No\"),\"-\",IF(COUNTA('Enrollment Form'!$CM844:$CN844)=2,\"Y\",\"N\"))","v":"-"},{"$f":"IF($B837=\"N\",\"\",IF(COUNTIF('Enrollment Form'!$CZ844:$DO844,\"Other\")=COUNTA('Enrollment Form'!$DF844,'Enrollment Form'!$DA844,'Enrollment Form'!$DK844,'Enrollment Form'!$DP844),\"Y\",\"N\"))","v":""},{"$f":"IF($B837=\"N\",\"\",IF(OR('Enrollment Form'!B844<>\"Subscriber\",'Enrollment Form'!C844=\"ROC\",COUNTIF('Enrollment Form'!AS844:AT844,\"Yes\")>=1),\"-\",IF(AND('Enrollment Form'!C844=\"Enroll\",COUNTIF('Enrollment Form'!AS844:AT844,\"No\")=2,'Enrollment Form'!AU844=\"\"),\"N\",\"Y\")))","v":""},{"$f":"IF(OR(B837=\"N\",'Enrollment Form'!B844<>\"Subscriber\",'Enrollment Form'!C844=\"ROC\",'Enrollment Form'!O844<>\"Multiple of Salary\"),\"-\",IF(COUNTA('Enrollment Form'!T844:U844)<2,\"N\",\"Y\"))","v":"-"},{"$f":"IF(B837=\"N\",\"\",IF(OR('Enrollment Form'!C844=\"ROC\",'Enrollment Form'!B844<>\"Subscriber\",'Enrollment Form'!O844=\"Waive\",'Enrollment Form'!O844=\"\"),\"-\",IF('Enrollment Form'!P844=\"\",\"N\",\"Y\")))","v":""},{"$f":"IF($B837=\"N\",\"\",IF(AND('Enrollment Form'!$C844=\"ROC\",'Enrollment Form'!$DS844<>\"\"),\"Y\",IF(AND('Enrollment Form'!$C844=\"ROC\",'Enrollment Form'!$DS844=\"\"),\"N\",IF(AND('Enrollment Form'!$C844=\"Enroll\",'Enrollment Form'!$B844=\"Subscriber\",'Enrollment Form'!$CQ844=\"No\",'Enrollment Form'!$DS844=\"\"),\"N\",IF(AND('Enrollment Form'!$C844=\"Enroll\",'Enrollment Form'!$B844=\"Subscriber\",'Enrollment Form'!$CQ844=\"Yes\"),\"-\",\"Y\")))))","v":""},{"$f":"IF($B837=\"N\",\"\",IF(AND('Enrollment Form'!$C844=\"ROC\",'Enrollment Form'!$DT844<>\"\"),\"Y\",IF(AND('Enrollment Form'!$C844=\"ROC\",'Enrollment Form'!$DT844=\"\"),\"N\",IF(AND('Enrollment Form'!$C844=\"Enroll\",'Enrollment Form'!$B844=\"Subscriber\",'Enrollment Form'!$CQ844=\"No\",'Enrollment Form'!$DT844=\"\"),\"N\",IF(AND('Enrollment Form'!$C844=\"Enroll\",'Enrollment Form'!$B844=\"Subscriber\",'Enrollment Form'!$CQ844=\"Yes\"),\"-\",\"Y\")))))","v":""},{"$f":"IF('Enrollment Form'!AH844=\"\",\"\",IF(ISERROR(SEARCH(\".\",'Enrollment Form'!AH844,SEARCH(\"@\",'Enrollment Form'!AH844))),\"N\",\"Y\"))","v":""},{"$f":"IF(OR($B837=\"N\",'Enrollment Form'!$G844=\"\"),\"\",IF('Enrollment Form'!$B844<>\"Subscriber\",\"-\",IF(COUNTIF('Enrollment Form'!$AS844:$AT844,\"Yes\")=2,\"N\",\"Y\")))","v":""},{"$f":"IF(OR('Enrollment Form'!$CC844=\"\",'Enrollment Form'!$CC844=\"No\"),\"-\",IF(AND('Enrollment Form'!$CC844=\"Yes\",'Enrollment Form'!$CD844=\"\"),\"N\",\"Y\"))","v":"-"},{"$f":"IF(OR('Enrollment Form'!$CE844=\"\",'Enrollment Form'!$CE844=\"No\"),\"-\",IF(AND('Enrollment Form'!$CE844=\"Yes\",'Enrollment Form'!$CF844=\"\"),\"N\",\"Y\"))","v":"-"},{"$f":"IF(OR('Enrollment Form'!$CG844=\"\",'Enrollment Form'!$CG844=\"No\"),\"-\",IF(AND('Enrollment Form'!$CG844=\"Yes\",'Enrollment Form'!$CH844=\"\"),\"N\",\"Y\"))","v":"-"},{"$f":"IF(OR('Enrollment Form'!$CG844=\"\",'Enrollment Form'!$CG844=\"No\"),\"-\",IF(AND('Enrollment Form'!$CG844=\"Yes\",'Enrollment Form'!$CI844=\"\"),\"N\",\"Y\"))","v":"-"},{"$f":"IF('Enrollment Form'!B844<>\"Subscriber\",\"-\",IF(AND('Enrollment Form'!B844=\"Subscriber\",'Enrollment Form'!C844=\"Enroll\",'Enrollment Form'!AA844=\"\"),\"N\",\"Y\"))","v":"-"},{"$f":"IF(OR('Enrollment Form'!B844=\"Subscriber\",'Enrollment Form'!B844=\"\"),\"-\",IF('Enrollment Form'!BI844=\"\",\"N\",\"Y\"))","v":"-"},{"$f":"IF('Enrollment Form'!B844<>\"Subscriber\",\"-\",IF(AND('Enrollment Form'!B844=\"Subscriber\",'Enrollment Form'!G844=\"\"),\"N\",\"Y\"))","v":"-"},{"$f":"IF('Enrollment Form'!A844=\"\",\"\",IF('Enrollment Form'!B844=\"Subscriber\",\"-\",IF(AND('Enrollment Form'!B844<>\"Subscriber\",'Enrollment Form'!G844='Enrollment Form'!H844),\"N\",\"Y\")))","v":""},0]
[{"$f":"1+A837","v":845},{"$f":"IF('Enrollment Form'!$A845<>\"\",\"Y\",\"N\")","v":"N"},{"$f":"IF(AND('Enrollment Form'!$B845=\"\",'Enrollment Form'!$C845<>\"\"),\"N\",IF($B838=\"N\",\"\",\"Y\"))","v":""},{"$f":"IF(OR($B838=\"N\",'Enrollment Form'!G845=\"\"),\"\",IF('Enrollment Form'!$B845<>\"Subscriber\",\"\",IF('Enrollment Form'!$G845='Enrollment Form'!$H845,\"Y\",\"N\")))","v":""},{"$f":"IF($B838=\"N\",\"\",IF(AND(COUNTIFS('Enrollment Form'!$H$11:$H$1000,'Enrollment Form'!$H845,'Enrollment Form'!$B$11:$B$1000,'Enrollment Form'!$B845)>1,'Enrollment Form'!$H845<>\"\"),\"N\",\"Y\"))","v":""},{"$f":"IF($B838=\"N\",\"\",IF(LEN('Enrollment Form'!$Y845)=0,\"\",IF(LEN('Enrollment Form'!$Y845)<>5,\"N\",\"Y\")))","v":""},{"$f":"IF($B838=\"N\",\"\",IF(LEN('Enrollment Form'!$AD845=0),\"\",IF(LEN('Enrollment Form'!$AD845)<>5,\"N\",\"Y\")))","v":""},{"$f":"IF($B838=\"N\",\"\",IF(LEN('Enrollment Form'!$BL845=0),\"\",IF(LEN('Enrollment Form'!$BL845)<>5,\"N\",\"Y\")))","v":""},{"$f":"IF($B838=\"N\",\"\",IF(LEN('Enrollment Form'!$AE845)=0,\"\",IF(LEN('Enrollment Form'!$AE845)<>10,\"N\",\"Y\")))","v":""},{"$f":"IF($B838=\"N\",\"\",IF(LEN('Enrollment Form'!$AF845)=0,\"\",IF(LEN('Enrollment Form'!$AF845)<>10,\"N\",\"Y\")))","v":""},{"$f":"IF('Enrollment Form'!$O845<>\"Graded\",\"-\",IF(AND('Enrollment Form'!$O845=\"Graded\",'Enrollment Form'!$AO845<>\"\"),\"Y\",\"N\"))","v":"-"},{"$f":"IF($B838=\"N\",\"\",IF(OR('Enrollment Form'!$B845<>\"Subscriber\",'Enrollment Form'!$C845=\"ROC\"),\"-\",IF(AND('Enrollment Form'!$B845=\"Subscriber\",'Enrollment Form'!$C845=\"Enroll\",'Enrollment Form'!$AJ845<>\"\"),\"Y\",\"N\")))","v":""},{"$f":"IF($B838=\"N\",\"\",IF(OR('Enrollment Form'!$B845<>\"Subscriber\",'Enrollment Form'!$C845=\"ROC\"),\"-\",IF(AND('Enrollment Form'!$B845=\"Subscriber\",'Enrollment Form'!$C845=\"Enroll\",'Enrollment Form'!$AK845<>\"\"),\"Y\",\"N\")))","v":""},{"$f":"IF($B838=\"N\",\"\",IF(OR('Enrollment Form'!$B845<>\"Subscriber\",'Enrollment Form'!$C845=\"ROC\"),\"-\",IF(AND('Enrollment Form'!$B845=\"Subscriber\",'Enrollment Form'!$C845=\"Enroll\",'Enrollment Form'!$AL845<>\"\"),\"Y\",\"N\")))","v":""},{"$f":"IF($B838=\"N\",\"\",IF(OR('Enrollment Form'!$B845<>\"Subscriber\",'Enrollment Form'!$C845=\"ROC\"),\"-\",IF(AND('Enrollment Form'!$B845=\"Subscriber\",'Enrollment Form'!$C845=\"Enroll\",'Enrollment Form'!$AM845<>\"\"),\"Y\",\"N\")))","v":""},{"$f":"IF($B838=\"N\",\"\",IF(OR('Enrollment Form'!$B845<>\"Subscriber\",'Enrollment Form'!$C845=\"ROC\"),\"-\",IF(AND('Enrollment Form'!$B845=\"Subscriber\",'Enrollment Form'!$C845=\"Enroll\",'Enrollment Form'!$AN845<>\"\"),\"Y\",\"N\")))","v":""},{"$f":"IF($B838=\"N\",\"\",IF(OR('Enrollment Form'!$B845<>\"Subscriber\",'Enrollment Form'!$C845=\"ROC\"),\"-\",IF(AND('Enrollment Form'!$B845=\"Subscriber\",'Enrollment Form'!$C845=\"Enroll\",'Enrollment Form'!$AP845<>\"\"),\"Y\",\"N\")))","v":""},{"$f":"IF($B838=\"N\",\"\",IF($Q838=\"-\",\"-\",IF(AND($Q838=\"Y\",'Enrollment Form'!$AP845=\"No\"),\"-\",IF(AND($Q838=\"Y\",'Enrollment Form'!$AP845=\"Yes\",'Enrollment Form'!$AQ845<>\"\"),\"Y\",\"N\"))))","v":""},{"$f":"IF($B838=\"N\",\"\",IF(OR('Enrollment Form'!$B845<>\"Subscriber\",'Enrollment Form'!$C845=\"ROC\"),\"-\",IF(AND('Enrollment Form'!$B845=\"Subscriber\",'Enrollment Form'!$C845=\"Enroll\",'Enrollment Form'!$CO845<>\"\"),\"Y\",\"N\")))","v":""},{"$f":"IF($B838=\"N\",\"\",IF($S838=\"-\",\"-\",IF(AND($S838=\"Y\",'Enrollment Form'!$CO845=\"No\"),\"-\",IF(AND($S838=\"Y\",'Enrollment Form'!$CO845=\"Yes\",'Enrollment Form'!$CP845<>\"\"),\"Y\",\"N\"))))","v":""},{"$f":"IF(OR('Enrollment Form'!$AV845=\"Yes\",'Enrollment Form'!$AV845=\"\"),\"-\",IF(AND('Enrollment Form'!$AV845=\"No\",ISERROR(FIND(\"HMO\",VLOOKUP('Enrollment Form'!G845,'Enrollment Form'!H$11:J$1000,3,FALSE),1))=FALSE,COUNTA('Enrollment Form'!$AW845:$AZ845)=4),\"Y\",\"N\"))","v":"-"},{"$f":"IF($B838=\"N\",\"\",IF('Enrollment Form'!$B845=\"Subscriber\",\"-\",IF(COUNTA('Enrollment Form'!$BE845,'Enrollment Form'!$BG845)=2,\"Y\",\"N\")))","v":""},{"$f":"IF($B838=\"N\",\"\",IF(OR('Enrollment Form'!$AU845=\"\",'Enrollment Form'!$AU845=\"No\"),\"-\",IF(AND('Enrollment Form'!$AU845=\"Yes\",COUNTA('Enrollment Form'!$CK845)=1),\"Y\",\"N\")))","v":""},{"$f":"IF(OR('Enrollment Form'!$CK845=\"\",'Enrollment Form'!$CK845=\"No\"),\"-\",IF(COUNTA('Enrollment Form'!$CM845:$CN845)=2,\"Y\",\"N\"))","v":"-"},{"$f":"IF($B838=\"N\",\"\",IF(COUNTIF('Enrollment Form'!$CZ845:$DO845,\"Other\")=COUNTA('Enrollment Form'!$DF845,'Enrollment Form'!$DA845,'Enrollment Form'!$DK845,'Enrollment Form'!$DP845),\"Y\",\"N\"))","v":""},{"$f":"IF($B838=\"N\",\"\",IF(OR('Enrollment Form'!B845<>\"Subscriber\",'Enrollment Form'!C845=\"ROC\",COUNTIF('Enrollment Form'!AS845:AT845,\"Yes\")>=1),\"-\",IF(AND('Enrollment Form'!C845=\"Enroll\",COUNTIF('Enrollment Form'!AS845:AT845,\"No\")=2,'Enrollment Form'!AU845=\"\"),\"N\",\"Y\")))","v":""},{"$f":"IF(OR(B838=\"N\",'Enrollment Form'!B845<>\"Subscriber\",'Enrollment Form'!C845=\"ROC\",'Enrollment Form'!O845<>\"Multiple of Salary\"),\"-\",IF(COUNTA('Enrollment Form'!T845:U845)<2,\"N\",\"Y\"))","v":"-"},{"$f":"IF(B838=\"N\",\"\",IF(OR('Enrollment Form'!C845=\"ROC\",'Enrollment Form'!B845<>\"Subscriber\",'Enrollment Form'!O845=\"Waive\",'Enrollment Form'!O845=\"\"),\"-\",IF('Enrollment Form'!P845=\"\",\"N\",\"Y\")))","v":""},{"$f":"IF($B838=\"N\",\"\",IF(AND('Enrollment Form'!$C845=\"ROC\",'Enrollment Form'!$DS845<>\"\"),\"Y\",IF(AND('Enrollment Form'!$C845=\"ROC\",'Enrollment Form'!$DS845=\"\"),\"N\",IF(AND('Enrollment Form'!$C845=\"Enroll\",'Enrollment Form'!$B845=\"Subscriber\",'Enrollment Form'!$CQ845=\"No\",'Enrollment Form'!$DS845=\"\"),\"N\",IF(AND('Enrollment Form'!$C845=\"Enroll\",'Enrollment Form'!$B845=\"Subscriber\",'Enrollment Form'!$CQ845=\"Yes\"),\"-\",\"Y\")))))","v":""},{"$f":"IF($B838=\"N\",\"\",IF(AND('Enrollment Form'!$C845=\"ROC\",'Enrollment Form'!$DT845<>\"\"),\"Y\",IF(AND('Enrollment Form'!$C845=\"ROC\",'Enrollment Form'!$DT845=\"\"),\"N\",IF(AND('Enrollment Form'!$C845=\"Enroll\",'Enrollment Form'!$B845=\"Subscriber\",'Enrollment Form'!$CQ845=\"No\",'Enrollment Form'!$DT845=\"\"),\"N\",IF(AND('Enrollment Form'!$C845=\"Enroll\",'Enrollment Form'!$B845=\"Subscriber\",'Enrollment Form'!$CQ845=\"Yes\"),\"-\",\"Y\")))))","v":""},{"$f":"IF('Enrollment Form'!AH845=\"\",\"\",IF(ISERROR(SEARCH(\".\",'Enrollment Form'!AH845,SEARCH(\"@\",'Enrollment Form'!AH845))),\"N\",\"Y\"))","v":""},{"$f":"IF(OR($B838=\"N\",'Enrollment Form'!$G845=\"\"),\"\",IF('Enrollment Form'!$B845<>\"Subscriber\",\"-\",IF(COUNTIF('Enrollment Form'!$AS845:$AT845,\"Yes\")=2,\"N\",\"Y\")))","v":""},{"$f":"IF(OR('Enrollment Form'!$CC845=\"\",'Enrollment Form'!$CC845=\"No\"),\"-\",IF(AND('Enrollment Form'!$CC845=\"Yes\",'Enrollment Form'!$CD845=\"\"),\"N\",\"Y\"))","v":"-"},{"$f":"IF(OR('Enrollment Form'!$CE845=\"\",'Enrollment Form'!$CE845=\"No\"),\"-\",IF(AND('Enrollment Form'!$CE845=\"Yes\",'Enrollment Form'!$CF845=\"\"),\"N\",\"Y\"))","v":"-"},{"$f":"IF(OR('Enrollment Form'!$CG845=\"\",'Enrollment Form'!$CG845=\"No\"),\"-\",IF(AND('Enrollment Form'!$CG845=\"Yes\",'Enrollment Form'!$CH845=\"\"),\"N\",\"Y\"))","v":"-"},{"$f":"IF(OR('Enrollment Form'!$CG845=\"\",'Enrollment Form'!$CG845=\"No\"),\"-\",IF(AND('Enrollment Form'!$CG845=\"Yes\",'Enrollment Form'!$CI845=\"\"),\"N\",\"Y\"))","v":"-"},{"$f":"IF('Enrollment Form'!B845<>\"Subscriber\",\"-\",IF(AND('Enrollment Form'!B845=\"Subscriber\",'Enrollment Form'!C845=\"Enroll\",'Enrollment Form'!AA845=\"\"),\"N\",\"Y\"))","v":"-"},{"$f":"IF(OR('Enrollment Form'!B845=\"Subscriber\",'Enrollment Form'!B845=\"\"),\"-\",IF('Enrollment Form'!BI845=\"\",\"N\",\"Y\"))","v":"-"},{"$f":"IF('Enrollment Form'!B845<>\"Subscriber\",\"-\",IF(AND('Enrollment Form'!B845=\"Subscriber\",'Enrollment Form'!G845=\"\"),\"N\",\"Y\"))","v":"-"},{"$f":"IF('Enrollment Form'!A845=\"\",\"\",IF('Enrollment Form'!B845=\"Subscriber\",\"-\",IF(AND('Enrollment Form'!B845<>\"Subscriber\",'Enrollment Form'!G845='Enrollment Form'!H845),\"N\",\"Y\")))","v":""},0]
[846,{"$f":"IF('Enrollment Form'!$A846<>\"\",\"Y\",\"N\")","v":"N"},{"$f":"IF(AND('Enrollment Form'!$B846=\"\",'Enrollment Form'!$C846<>\"\"),\"N\",IF($B839=\"N\",\"\",\"Y\"))","v":""},{"$f":"IF(OR($B839=\"N\",'Enrollment Form'!G846=\"\"),\"\",IF('Enrollment Form'!$B846<>\"Subscriber\",\"\",IF('Enrollment Form'!$G846='Enrollment Form'!$H846,\"Y\",\"N\")))","v":""},{"$f":"IF($B839=\"N\",\"\",IF(AND(COUNTIFS('Enrollment Form'!$H$11:$H$1000,'Enrollment Form'!$H846,'Enrollment Form'!$B$11:$B$1000,'Enrollment Form'!$B846)>1,'Enrollment Form'!$H846<>\"\"),\"N\",\"Y\"))","v":""},{"$f":"IF($B839=\"N\",\"\",IF(LEN('Enrollment Form'!$Y846)=0,\"\",IF(LEN('Enrollment Form'!$Y846)<>5,\"N\",\"Y\")))","v":""},{"$f":"IF($B839=\"N\",\"\",IF(LEN('Enrollment Form'!$AD846=0),\"\",IF(LEN('Enrollment Form'!$AD846)<>5,\"N\",\"Y\")))","v":""},{"$f":"IF($B839=\"N\",\"\",IF(LEN('Enrollment Form'!$BL846=0),\"\",IF(LEN('Enrollment Form'!$BL846)<>5,\"N\",\"Y\")))","v":""},{"$f":"IF($B839=\"N\",\"\",IF(LEN('Enrollment Form'!$AE846)=0,\"\",IF(LEN('Enrollment Form'!$AE846)<>10,\"N\",\"Y\")))","v":""},{"$f":"IF($B839=\"N\",\"\",IF(LEN('Enrollment Form'!$AF846)=0,\"\",IF(LEN('Enrollment Form'!$AF846)<>10,\"N\",\"Y\")))","v":""},{"$f":"IF('Enrollment Form'!$O846<>\"Graded\",\"-\",IF(AND('Enrollment Form'!$O846=\"Graded\",'Enrollment Form'!$AO846<>\"\"),\"Y\",\"N\"))","v":"-"},{"$f":"IF($B839=\"N\",\"\",IF(OR('Enrollment Form'!$B846<>\"Subscriber\",'Enrollment Form'!$C846=\"ROC\"),\"-\",IF(AND('Enrollment Form'!$B846=\"Subscriber\",'Enrollment Form'!$C846=\"Enroll\",'Enrollment Form'!$AJ846<>\"\"),\"Y\",\"N\")))","v":""},{"$f":"IF($B839=\"N\",\"\",IF(OR('Enrollment Form'!$B846<>\"Subscriber\",'Enrollment Form'!$C846=\"ROC\"),\"-\",IF(AND('Enrollment Form'!$B846=\"Subscriber\",'Enrollment Form'!$C846=\"Enroll\",'Enrollment Form'!$AK846<>\"\"),\"Y\",\"N\")))","v":""},{"$f":"IF($B839=\"N\",\"\",IF(OR('Enrollment Form'!$B846<>\"Subscriber\",'Enrollment Form'!$C846=\"ROC\"),\"-\",IF(AND('Enrollment Form'!$B846=\"Subscriber\",'Enrollment Form'!$C846=\"Enroll\",'Enrollment Form'!$AL846<>\"\"),\"Y\",\"N\")))","v":""},{"$f":"IF($B839=\"N\",\"\",IF(OR('Enrollment Form'!$B846<>\"Subscriber\",'Enrollment Form'!$C846=\"ROC\"),\"-\",IF(AND('Enrollment Form'!$B846=\"Subscriber\",'Enrollment Form'!$C846=\"Enroll\",'Enrollment Form'!$AM846<>\"\"),\"Y\",\"N\")))","v":""},{"$f":"IF($B839=\"N\",\"\",IF(OR('Enrollment Form'!$B846<>\"Subscriber\",'Enrollment Form'!$C846=\"ROC\"),\"-\",IF(AND('Enrollment Form'!$B846=\"Subscriber\",'Enrollment Form'!$C846=\"Enroll\",'Enrollment Form'!$AN846<>\"\"),\"Y\",\"N\")))","v":""},{"$f":"IF($B839=\"N\",\"\",IF(OR('Enrollment Form'!$B846<>\"Subscriber\",'Enrollment Form'!$C846=\"ROC\"),\"-\",IF(AND('Enrollment Form'!$B846=\"Subscriber\",'Enrollment Form'!$C846=\"Enroll\",'Enrollment Form'!$AP846<>\"\"),\"Y\",\"N\")))","v":""},{"$f":"IF($B839=\"N\",\"\",IF($Q839=\"-\",\"-\",IF(AND($Q839=\"Y\",'Enrollment Form'!$AP846=\"No\"),\"-\",IF(AND($Q839=\"Y\",'Enrollment Form'!$AP846=\"Yes\",'Enrollment Form'!$AQ846<>\"\"),\"Y\",\"N\"))))","v":""},{"$f":"IF($B839=\"N\",\"\",IF(OR('Enrollment Form'!$B846<>\"Subscriber\",'Enrollment Form'!$C846=\"ROC\"),\"-\",IF(AND('Enrollment Form'!$B846=\"Subscriber\",'Enrollment Form'!$C846=\"Enroll\",'Enrollment Form'!$CO846<>\"\"),\"Y\",\"N\")))","v":""},{"$f":"IF($B839=\"N\",\"\",IF($S839=\"-\",\"-\",IF(AND($S839=\"Y\",'Enrollment Form'!$CO846=\"No\"),\"-\",IF(AND($S839=\"Y\",'Enrollment Form'!$CO846=\"Yes\",'Enrollment Form'!$CP846<>\"\"),\"Y\",\"N\"))))","v":""},{"$f":"IF(OR('Enrollment Form'!$AV846=\"Yes\",'Enrollment Form'!$AV846=\"\"),\"-\",IF(AND('Enrollment Form'!$AV846=\"No\",ISERROR(FIND(\"HMO\",VLOOKUP('Enrollment Form'!G846,'Enrollment Form'!H$11:J$1000,3,FALSE),1))=FALSE,COUNTA('Enrollment Form'!$AW846:$AZ846)=4),\"Y\",\"N\"))","v":"-"},{"$f":"IF($B839=\"N\",\"\",IF('Enrollment Form'!$B846=\"Subscriber\",\"-\",IF(COUNTA('Enrollment Form'!$BE846,'Enrollment Form'!$BG846)=2,\"Y\",\"N\")))","v":""},{"$f":"IF($B839=\"N\",\"\",IF(OR('Enrollment Form'!$AU846=\"\",'Enrollment Form'!$AU846=\"No\"),\"-\",IF(AND('Enrollment Form'!$AU846=\"Yes\",COUNTA('Enrollment Form'!$CK846)=1),\"Y\",\"N\")))","v":""},{"$f":"IF(OR('Enrollment Form'!$CK846=\"\",'Enrollment Form'!$CK846=\"No\"),\"-\",IF(COUNTA('Enrollment Form'!$CM846:$CN846)=2,\"Y\",\"N\"))","v":"-"},{"$f":"IF($B839=\"N\",\"\",IF(COUNTIF('Enrollment Form'!$CZ846:$DO846,\"Other\")=COUNTA('Enrollment Form'!$DF846,'Enrollment Form'!$DA846,'Enrollment Form'!$DK846,'Enrollment Form'!$DP846),\"Y\",\"N\"))","v":""},{"$f":"IF($B839=\"N\",\"\",IF(OR('Enrollment Form'!B846<>\"Subscriber\",'Enrollment Form'!C846=\"ROC\",COUNTIF('Enrollment Form'!AS846:AT846,\"Yes\")>=1),\"-\",IF(AND('Enrollment Form'!C846=\"Enroll\",COUNTIF('Enrollment Form'!AS846:AT846,\"No\")=2,'Enrollment Form'!AU846=\"\"),\"N\",\"Y\")))","v":""},{"$f":"IF(OR(B839=\"N\",'Enrollment Form'!B846<>\"Subscriber\",'Enrollment Form'!C846=\"ROC\",'Enrollment Form'!O846<>\"Multiple of Salary\"),\"-\",IF(COUNTA('Enrollment Form'!T846:U846)<2,\"N\",\"Y\"))","v":"-"},{"$f":"IF(B839=\"N\",\"\",IF(OR('Enrollment Form'!C846=\"ROC\",'Enrollment Form'!B846<>\"Subscriber\",'Enrollment Form'!O846=\"Waive\",'Enrollment Form'!O846=\"\"),\"-\",IF('Enrollment Form'!P846=\"\",\"N\",\"Y\")))","v":""},{"$f":"IF($B839=\"N\",\"\",IF(AND('Enrollment Form'!$C846=\"ROC\",'Enrollment Form'!$DS846<>\"\"),\"Y\",IF(AND('Enrollment Form'!$C846=\"ROC\",'Enrollment Form'!$DS846=\"\"),\"N\",IF(AND('Enrollment Form'!$C846=\"Enroll\",'Enrollment Form'!$B846=\"Subscriber\",'Enrollment Form'!$CQ846=\"No\",'Enrollment Form'!$DS846=\"\"),\"N\",IF(AND('Enrollment Form'!$C846=\"Enroll\",'Enrollment Form'!$B846=\"Subscriber\",'Enrollment Form'!$CQ846=\"Yes\"),\"-\",\"Y\")))))","v":""},{"$f":"IF($B839=\"N\",\"\",IF(AND('Enrollment Form'!$C846=\"ROC\",'Enrollment Form'!$DT846<>\"\"),\"Y\",IF(AND('Enrollment Form'!$C846=\"ROC\",'Enrollment Form'!$DT846=\"\"),\"N\",IF(AND('Enrollment Form'!$C846=\"Enroll\",'Enrollment Form'!$B846=\"Subscriber\",'Enrollment Form'!$CQ846=\"No\",'Enrollment Form'!$DT846=\"\"),\"N\",IF(AND('Enrollment Form'!$C846=\"Enroll\",'Enrollment Form'!$B846=\"Subscriber\",'Enrollment Form'!$CQ846=\"Yes\"),\"-\",\"Y\")))))","v":""},{"$f":"IF('Enrollment Form'!AH846=\"\",\"\",IF(ISERROR(SEARCH(\".\",'Enrollment Form'!AH846,SEARCH(\"@\",'Enrollment Form'!AH846))),\"N\",\"Y\"))","v":""},{"$f":"IF(OR($B839=\"N\",'Enrollment Form'!$G846=\"\"),\"\",IF('Enrollment Form'!$B846<>\"Subscriber\",\"-\",IF(COUNTIF('Enrollment Form'!$AS846:$AT846,\"Yes\")=2,\"N\",\"Y\")))","v":""},{"$f":"IF(OR('Enrollment Form'!$CC846=\"\",'Enrollment Form'!$CC846=\"No\"),\"-\",IF(AND('Enrollment Form'!$CC846=\"Yes\",'Enrollment Form'!$CD846=\"\"),\"N\",\"Y\"))","v":"-"},{"$f":"IF(OR('Enrollment Form'!$CE846=\"\",'Enrollment Form'!$CE846=\"No\"),\"-\",IF(AND('Enrollment Form'!$CE846=\"Yes\",'Enrollment Form'!$CF846=\"\"),\"N\",\"Y\"))","v":"-"},{"$f":"IF(OR('Enrollment Form'!$CG846=\"\",'Enrollment Form'!$CG846=\"No\"),\"-\",IF(AND('Enrollment Form'!$CG846=\"Yes\",'Enrollment Form'!$CH846=\"\"),\"N\",\"Y\"))","v":"-"},{"$f":"IF(OR('Enrollment Form'!$CG846=\"\",'Enrollment Form'!$CG846=\"No\"),\"-\",IF(AND('Enrollment Form'!$CG846=\"Yes\",'Enrollment Form'!$CI846=\"\"),\"N\",\"Y\"))","v":"-"},{"$f":"IF('Enrollment Form'!B846<>\"Subscriber\",\"-\",IF(AND('Enrollment Form'!B846=\"Subscriber\",'Enrollment Form'!C846=\"Enroll\",'Enrollment Form'!AA846=\"\"),\"N\",\"Y\"))","v":"-"},{"$f":"IF(OR('Enrollment Form'!B846=\"Subscriber\",'Enrollment Form'!B846=\"\"),\"-\",IF('Enrollment Form'!BI846=\"\",\"N\",\"Y\"))","v":"-"},{"$f":"IF('Enrollment Form'!B846<>\"Subscriber\",\"-\",IF(AND('Enrollment Form'!B846=\"Subscriber\",'Enrollment Form'!G846=\"\"),\"N\",\"Y\"))","v":"-"},{"$f":"IF('Enrollment Form'!A846=\"\",\"\",IF('Enrollment Form'!B846=\"Subscriber\",\"-\",IF(AND('Enrollment Form'!B846<>\"Subscriber\",'Enrollment Form'!G846='Enrollment Form'!H846),\"N\",\"Y\")))","v":""},0]
[847,{"$f":"IF('Enrollment Form'!$A847<>\"\",\"Y\",\"N\")","v":"N"},{"$f":"IF(AND('Enrollment Form'!$B847=\"\",'Enrollment Form'!$C847<>\"\"),\"N\",IF($B840=\"N\",\"\",\"Y\"))","v":""},{"$f":"IF(OR($B840=\"N\",'Enrollment Form'!G847=\"\"),\"\",IF('Enrollment Form'!$B847<>\"Subscriber\",\"\",IF('Enrollment Form'!$G847='Enrollment Form'!$H847,\"Y\",\"N\")))","v":""},{"$f":"IF($B840=\"N\",\"\",IF(AND(COUNTIFS('Enrollment Form'!$H$11:$H$1000,'Enrollment Form'!$H847,'Enrollment Form'!$B$11:$B$1000,'Enrollment Form'!$B847)>1,'Enrollment Form'!$H847<>\"\"),\"N\",\"Y\"))","v":""},{"$f":"IF($B840=\"N\",\"\",IF(LEN('Enrollment Form'!$Y847)=0,\"\",IF(LEN('Enrollment Form'!$Y847)<>5,\"N\",\"Y\")))","v":""},{"$f":"IF($B840=\"N\",\"\",IF(LEN('Enrollment Form'!$AD847=0),\"\",IF(LEN('Enrollment Form'!$AD847)<>5,\"N\",\"Y\")))","v":""},{"$f":"IF($B840=\"N\",\"\",IF(LEN('Enrollment Form'!$BL847=0),\"\",IF(LEN('Enrollment Form'!$BL847)<>5,\"N\",\"Y\")))","v":""},{"$f":"IF($B840=\"N\",\"\",IF(LEN('Enrollment Form'!$AE847)=0,\"\",IF(LEN('Enrollment Form'!$AE847)<>10,\"N\",\"Y\")))","v":""},{"$f":"IF($B840=\"N\",\"\",IF(LEN('Enrollment Form'!$AF847)=0,\"\",IF(LEN('Enrollment Form'!$AF847)<>10,\"N\",\"Y\")))","v":""},{"$f":"IF('Enrollment Form'!$O847<>\"Graded\",\"-\",IF(AND('Enrollment Form'!$O847=\"Graded\",'Enrollment Form'!$AO847<>\"\"),\"Y\",\"N\"))","v":"-"},{"$f":"IF($B840=\"N\",\"\",IF(OR('Enrollment Form'!$B847<>\"Subscriber\",'Enrollment Form'!$C847=\"ROC\"),\"-\",IF(AND('Enrollment Form'!$B847=\"Subscriber\",'Enrollment Form'!$C847=\"Enroll\",'Enrollment Form'!$AJ847<>\"\"),\"Y\",\"N\")))","v":""},{"$f":"IF($B840=\"N\",\"\",IF(OR('Enrollment Form'!$B847<>\"Subscriber\",'Enrollment Form'!$C847=\"ROC\"),\"-\",IF(AND('Enrollment Form'!$B847=\"Subscriber\",'Enrollment Form'!$C847=\"Enroll\",'Enrollment Form'!$AK847<>\"\"),\"Y\",\"N\")))","v":""},{"$f":"IF($B840=\"N\",\"\",IF(OR('Enrollment Form'!$B847<>\"Subscriber\",'Enrollment Form'!$C847=\"ROC\"),\"-\",IF(AND('Enrollment Form'!$B847=\"Subscriber\",'Enrollment Form'!$C847=\"Enroll\",'Enrollment Form'!$AL847<>\"\"),\"Y\",\"N\")))","v":""},{"$f":"IF($B840=\"N\",\"\",IF(OR('Enrollment Form'!$B847<>\"Subscriber\",'Enrollment Form'!$C847=\"ROC\"),\"-\",IF(AND('Enrollment Form'!$B847=\"Subscriber\",'Enrollment Form'!$C847=\"Enroll\",'Enrollment Form'!$AM847<>\"\"),\"Y\",\"N\")))","v":""},{"$f":"IF($B840=\"N\",\"\",IF(OR('Enrollment Form'!$B847<>\"Subscriber\",'Enrollment Form'!$C847=\"ROC\"),\"-\",IF(AND('Enrollment Form'!$B847=\"Subscriber\",'Enrollment Form'!$C847=\"Enroll\",'Enrollment Form'!$AN847<>\"\"),\"Y\",\"N\")))","v":""},{"$f":"IF($B840=\"N\",\"\",IF(OR('Enrollment Form'!$B847<>\"Subscriber\",'Enrollment Form'!$C847=\"ROC\"),\"-\",IF(AND('Enrollment Form'!$B847=\"Subscriber\",'Enrollment Form'!$C847=\"Enroll\",'Enrollment Form'!$AP847<>\"\"),\"Y\",\"N\")))","v":""},{"$f":"IF($B840=\"N\",\"\",IF($Q840=\"-\",\"-\",IF(AND($Q840=\"Y\",'Enrollment Form'!$AP847=\"No\"),\"-\",IF(AND($Q840=\"Y\",'Enrollment Form'!$AP847=\"Yes\",'Enrollment Form'!$AQ847<>\"\"),\"Y\",\"N\"))))","v":""},{"$f":"IF($B840=\"N\",\"\",IF(OR('Enrollment Form'!$B847<>\"Subscriber\",'Enrollment Form'!$C847=\"ROC\"),\"-\",IF(AND('Enrollment Form'!$B847=\"Subscriber\",'Enrollment Form'!$C847=\"Enroll\",'Enrollment Form'!$CO847<>\"\"),\"Y\",\"N\")))","v":""},{"$f":"IF($B840=\"N\",\"\",IF($S840=\"-\",\"-\",IF(AND($S840=\"Y\",'Enrollment Form'!$CO847=\"No\"),\"-\",IF(AND($S840=\"Y\",'Enrollment Form'!$CO847=\"Yes\",'Enrollment Form'!$CP847<>\"\"),\"Y\",\"N\"))))","v":""},{"$f":"IF(OR('Enrollment Form'!$AV847=\"Yes\",'Enrollment Form'!$AV847=\"\"),\"-\",IF(AND('Enrollment Form'!$AV847=\"No\",ISERROR(FIND(\"HMO\",VLOOKUP('Enrollment Form'!G847,'Enrollment Form'!H$11:J$1000,3,FALSE),1))=FALSE,COUNTA('Enrollment Form'!$AW847:$AZ847)=4),\"Y\",\"N\"))","v":"-"},{"$f":"IF($B840=\"N\",\"\",IF('Enrollment Form'!$B847=\"Subscriber\",\"-\",IF(COUNTA('Enrollment Form'!$BE847,'Enrollment Form'!$BG847)=2,\"Y\",\"N\")))","v":""},{"$f":"IF($B840=\"N\",\"\",IF(OR('Enrollment Form'!$AU847=\"\",'Enrollment Form'!$AU847=\"No\"),\"-\",IF(AND('Enrollment Form'!$AU847=\"Yes\",COUNTA('Enrollment Form'!$CK847)=1),\"Y\",\"N\")))","v":""},{"$f":"IF(OR('Enrollment Form'!$CK847=\"\",'Enrollment Form'!$CK847=\"No\"),\"-\",IF(COUNTA('Enrollment Form'!$CM847:$CN847)=2,\"Y\",\"N\"))","v":"-"},{"$f":"IF($B840=\"N\",\"\",IF(COUNTIF('Enrollment Form'!$CZ847:$DO847,\"Other\")=COUNTA('Enrollment Form'!$DF847,'Enrollment Form'!$DA847,'Enrollment Form'!$DK847,'Enrollment Form'!$DP847),\"Y\",\"N\"))","v":""},{"$f":"IF($B840=\"N\",\"\",IF(OR('Enrollment Form'!B847<>\"Subscriber\",'Enrollment Form'!C847=\"ROC\",COUNTIF('Enrollment Form'!AS847:AT847,\"Yes\")>=1),\"-\",IF(AND('Enrollment Form'!C847=\"Enroll\",COUNTIF('Enrollment Form'!AS847:AT847,\"No\")=2,'Enrollment Form'!AU847=\"\"),\"N\",\"Y\")))","v":""},{"$f":"IF(OR(B840=\"N\",'Enrollment Form'!B847<>\"Subscriber\",'Enrollment Form'!C847=\"ROC\",'Enrollment Form'!O847<>\"Multiple of Salary\"),\"-\",IF(COUNTA('Enrollment Form'!T847:U847)<2,\"N\",\"Y\"))","v":"-"},{"$f":"IF(B840=\"N\",\"\",IF(OR('Enrollment Form'!C847=\"ROC\",'Enrollment Form'!B847<>\"Subscriber\",'Enrollment Form'!O847=\"Waive\",'Enrollment Form'!O847=\"\"),\"-\",IF('Enrollment Form'!P847=\"\",\"N\",\"Y\")))","v":""},{"$f":"IF($B840=\"N\",\"\",IF(AND('Enrollment Form'!$C847=\"ROC\",'Enrollment Form'!$DS847<>\"\"),\"Y\",IF(AND('Enrollment Form'!$C847=\"ROC\",'Enrollment Form'!$DS847=\"\"),\"N\",IF(AND('Enrollment Form'!$C847=\"Enroll\",'Enrollment Form'!$B847=\"Subscriber\",'Enrollment Form'!$CQ847=\"No\",'Enrollment Form'!$DS847=\"\"),\"N\",IF(AND('Enrollment Form'!$C847=\"Enroll\",'Enrollment Form'!$B847=\"Subscriber\",'Enrollment Form'!$CQ847=\"Yes\"),\"-\",\"Y\")))))","v":""},{"$f":"IF($B840=\"N\",\"\",IF(AND('Enrollment Form'!$C847=\"ROC\",'Enrollment Form'!$DT847<>\"\"),\"Y\",IF(AND('Enrollment Form'!$C847=\"ROC\",'Enrollment Form'!$DT847=\"\"),\"N\",IF(AND('Enrollment Form'!$C847=\"Enroll\",'Enrollment Form'!$B847=\"Subscriber\",'Enrollment Form'!$CQ847=\"No\",'Enrollment Form'!$DT847=\"\"),\"N\",IF(AND('Enrollment Form'!$C847=\"Enroll\",'Enrollment Form'!$B847=\"Subscriber\",'Enrollment Form'!$CQ847=\"Yes\"),\"-\",\"Y\")))))","v":""},{"$f":"IF('Enrollment Form'!AH847=\"\",\"\",IF(ISERROR(SEARCH(\".\",'Enrollment Form'!AH847,SEARCH(\"@\",'Enrollment Form'!AH847))),\"N\",\"Y\"))","v":""},{"$f":"IF(OR($B840=\"N\",'Enrollment Form'!$G847=\"\"),\"\",IF('Enrollment Form'!$B847<>\"Subscriber\",\"-\",IF(COUNTIF('Enrollment Form'!$AS847:$AT847,\"Yes\")=2,\"N\",\"Y\")))","v":""},{"$f":"IF(OR('Enrollment Form'!$CC847=\"\",'Enrollment Form'!$CC847=\"No\"),\"-\",IF(AND('Enrollment Form'!$CC847=\"Yes\",'Enrollment Form'!$CD847=\"\"),\"N\",\"Y\"))","v":"-"},{"$f":"IF(OR('Enrollment Form'!$CE847=\"\",'Enrollment Form'!$CE847=\"No\"),\"-\",IF(AND('Enrollment Form'!$CE847=\"Yes\",'Enrollment Form'!$CF847=\"\"),\"N\",\"Y\"))","v":"-"},{"$f":"IF(OR('Enrollment Form'!$CG847=\"\",'Enrollment Form'!$CG847=\"No\"),\"-\",IF(AND('Enrollment Form'!$CG847=\"Yes\",'Enrollment Form'!$CH847=\"\"),\"N\",\"Y\"))","v":"-"},{"$f":"IF(OR('Enrollment Form'!$CG847=\"\",'Enrollment Form'!$CG847=\"No\"),\"-\",IF(AND('Enrollment Form'!$CG847=\"Yes\",'Enrollment Form'!$CI847=\"\"),\"N\",\"Y\"))","v":"-"},{"$f":"IF('Enrollment Form'!B847<>\"Subscriber\",\"-\",IF(AND('Enrollment Form'!B847=\"Subscriber\",'Enrollment Form'!C847=\"Enroll\",'Enrollment Form'!AA847=\"\"),\"N\",\"Y\"))","v":"-"},{"$f":"IF(OR('Enrollment Form'!B847=\"Subscriber\",'Enrollment Form'!B847=\"\"),\"-\",IF('Enrollment Form'!BI847=\"\",\"N\",\"Y\"))","v":"-"},{"$f":"IF('Enrollment Form'!B847<>\"Subscriber\",\"-\",IF(AND('Enrollment Form'!B847=\"Subscriber\",'Enrollment Form'!G847=\"\"),\"N\",\"Y\"))","v":"-"},{"$f":"IF('Enrollment Form'!A847=\"\",\"\",IF('Enrollment Form'!B847=\"Subscriber\",\"-\",IF(AND('Enrollment Form'!B847<>\"Subscriber\",'Enrollment Form'!G847='Enrollment Form'!H847),\"N\",\"Y\")))","v":""},0]
[848,{"$f":"IF('Enrollment Form'!$A848<>\"\",\"Y\",\"N\")","v":"N"},{"$f":"IF(AND('Enrollment Form'!$B848=\"\",'Enrollment Form'!$C848<>\"\"),\"N\",IF($B841=\"N\",\"\",\"Y\"))","v":""},{"$f":"IF(OR($B841=\"N\",'Enrollment Form'!G848=\"\"),\"\",IF('Enrollment Form'!$B848<>\"Subscriber\",\"\",IF('Enrollment Form'!$G848='Enrollment Form'!$H848,\"Y\",\"N\")))","v":""},{"$f":"IF($B841=\"N\",\"\",IF(AND(COUNTIFS('Enrollment Form'!$H$11:$H$1000,'Enrollment Form'!$H848,'Enrollment Form'!$B$11:$B$1000,'Enrollment Form'!$B848)>1,'Enrollment Form'!$H848<>\"\"),\"N\",\"Y\"))","v":""},{"$f":"IF($B841=\"N\",\"\",IF(LEN('Enrollment Form'!$Y848)=0,\"\",IF(LEN('Enrollment Form'!$Y848)<>5,\"N\",\"Y\")))","v":""},{"$f":"IF($B841=\"N\",\"\",IF(LEN('Enrollment Form'!$AD848=0),\"\",IF(LEN('Enrollment Form'!$AD848)<>5,\"N\",\"Y\")))","v":""},{"$f":"IF($B841=\"N\",\"\",IF(LEN('Enrollment Form'!$BL848=0),\"\",IF(LEN('Enrollment Form'!$BL848)<>5,\"N\",\"Y\")))","v":""},{"$f":"IF($B841=\"N\",\"\",IF(LEN('Enrollment Form'!$AE848)=0,\"\",IF(LEN('Enrollment Form'!$AE848)<>10,\"N\",\"Y\")))","v":""},{"$f":"IF($B841=\"N\",\"\",IF(LEN('Enrollment Form'!$AF848)=0,\"\",IF(LEN('Enrollment Form'!$AF848)<>10,\"N\",\"Y\")))","v":""},{"$f":"IF('Enrollment Form'!$O848<>\"Graded\",\"-\",IF(AND('Enrollment Form'!$O848=\"Graded\",'Enrollment Form'!$AO848<>\"\"),\"Y\",\"N\"))","v":"-"},{"$f":"IF($B841=\"N\",\"\",IF(OR('Enrollment Form'!$B848<>\"Subscriber\",'Enrollment Form'!$C848=\"ROC\"),\"-\",IF(AND('Enrollment Form'!$B848=\"Subscriber\",'Enrollment Form'!$C848=\"Enroll\",'Enrollment Form'!$AJ848<>\"\"),\"Y\",\"N\")))","v":""},{"$f":"IF($B841=\"N\",\"\",IF(OR('Enrollment Form'!$B848<>\"Subscriber\",'Enrollment Form'!$C848=\"ROC\"),\"-\",IF(AND('Enrollment Form'!$B848=\"Subscriber\",'Enrollment Form'!$C848=\"Enroll\",'Enrollment Form'!$AK848<>\"\"),\"Y\",\"N\")))","v":""},{"$f":"IF($B841=\"N\",\"\",IF(OR('Enrollment Form'!$B848<>\"Subscriber\",'Enrollment Form'!$C848=\"ROC\"),\"-\",IF(AND('Enrollment Form'!$B848=\"Subscriber\",'Enrollment Form'!$C848=\"Enroll\",'Enrollment Form'!$AL848<>\"\"),\"Y\",\"N\")))","v":""},{"$f":"IF($B841=\"N\",\"\",IF(OR('Enrollment Form'!$B848<>\"Subscriber\",'Enrollment Form'!$C848=\"ROC\"),\"-\",IF(AND('Enrollment Form'!$B848=\"Subscriber\",'Enrollment Form'!$C848=\"Enroll\",'Enrollment Form'!$AM848<>\"\"),\"Y\",\"N\")))","v":""},{"$f":"IF($B841=\"N\",\"\",IF(OR('Enrollment Form'!$B848<>\"Subscriber\",'Enrollment Form'!$C848=\"ROC\"),\"-\",IF(AND('Enrollment Form'!$B848=\"Subscriber\",'Enrollment Form'!$C848=\"Enroll\",'Enrollment Form'!$AN848<>\"\"),\"Y\",\"N\")))","v":""},{"$f":"IF($B841=\"N\",\"\",IF(OR('Enrollment Form'!$B848<>\"Subscriber\",'Enrollment Form'!$C848=\"ROC\"),\"-\",IF(AND('Enrollment Form'!$B848=\"Subscriber\",'Enrollment Form'!$C848=\"Enroll\",'Enrollment Form'!$AP848<>\"\"),\"Y\",\"N\")))","v":""},{"$f":"IF($B841=\"N\",\"\",IF($Q841=\"-\",\"-\",IF(AND($Q841=\"Y\",'Enrollment Form'!$AP848=\"No\"),\"-\",IF(AND($Q841=\"Y\",'Enrollment Form'!$AP848=\"Yes\",'Enrollment Form'!$AQ848<>\"\"),\"Y\",\"N\"))))","v":""},{"$f":"IF($B841=\"N\",\"\",IF(OR('Enrollment Form'!$B848<>\"Subscriber\",'Enrollment Form'!$C848=\"ROC\"),\"-\",IF(AND('Enrollment Form'!$B848=\"Subscriber\",'Enrollment Form'!$C848=\"Enroll\",'Enrollment Form'!$CO848<>\"\"),\"Y\",\"N\")))","v":""},{"$f":"IF($B841=\"N\",\"\",IF($S841=\"-\",\"-\",IF(AND($S841=\"Y\",'Enrollment Form'!$CO848=\"No\"),\"-\",IF(AND($S841=\"Y\",'Enrollment Form'!$CO848=\"Yes\",'Enrollment Form'!$CP848<>\"\"),\"Y\",\"N\"))))","v":""},{"$f":"IF(OR('Enrollment Form'!$AV848=\"Yes\",'Enrollment Form'!$AV848=\"\"),\"-\",IF(AND('Enrollment Form'!$AV848=\"No\",ISERROR(FIND(\"HMO\",VLOOKUP('Enrollment Form'!G848,'Enrollment Form'!H$11:J$1000,3,FALSE),1))=FALSE,COUNTA('Enrollment Form'!$AW848:$AZ848)=4),\"Y\",\"N\"))","v":"-"},{"$f":"IF($B841=\"N\",\"\",IF('Enrollment Form'!$B848=\"Subscriber\",\"-\",IF(COUNTA('Enrollment Form'!$BE848,'Enrollment Form'!$BG848)=2,\"Y\",\"N\")))","v":""},{"$f":"IF($B841=\"N\",\"\",IF(OR('Enrollment Form'!$AU848=\"\",'Enrollment Form'!$AU848=\"No\"),\"-\",IF(AND('Enrollment Form'!$AU848=\"Yes\",COUNTA('Enrollment Form'!$CK848)=1),\"Y\",\"N\")))","v":""},{"$f":"IF(OR('Enrollment Form'!$CK848=\"\",'Enrollment Form'!$CK848=\"No\"),\"-\",IF(COUNTA('Enrollment Form'!$CM848:$CN848)=2,\"Y\",\"N\"))","v":"-"},{"$f":"IF($B841=\"N\",\"\",IF(COUNTIF('Enrollment Form'!$CZ848:$DO848,\"Other\")=COUNTA('Enrollment Form'!$DF848,'Enrollment Form'!$DA848,'Enrollment Form'!$DK848,'Enrollment Form'!$DP848),\"Y\",\"N\"))","v":""},{"$f":"IF($B841=\"N\",\"\",IF(OR('Enrollment Form'!B848<>\"Subscriber\",'Enrollment Form'!C848=\"ROC\",COUNTIF('Enrollment Form'!AS848:AT848,\"Yes\")>=1),\"-\",IF(AND('Enrollment Form'!C848=\"Enroll\",COUNTIF('Enrollment Form'!AS848:AT848,\"No\")=2,'Enrollment Form'!AU848=\"\"),\"N\",\"Y\")))","v":""},{"$f":"IF(OR(B841=\"N\",'Enrollment Form'!B848<>\"Subscriber\",'Enrollment Form'!C848=\"ROC\",'Enrollment Form'!O848<>\"Multiple of Salary\"),\"-\",IF(COUNTA('Enrollment Form'!T848:U848)<2,\"N\",\"Y\"))","v":"-"},{"$f":"IF(B841=\"N\",\"\",IF(OR('Enrollment Form'!C848=\"ROC\",'Enrollment Form'!B848<>\"Subscriber\",'Enrollment Form'!O848=\"Waive\",'Enrollment Form'!O848=\"\"),\"-\",IF('Enrollment Form'!P848=\"\",\"N\",\"Y\")))","v":""},{"$f":"IF($B841=\"N\",\"\",IF(AND('Enrollment Form'!$C848=\"ROC\",'Enrollment Form'!$DS848<>\"\"),\"Y\",IF(AND('Enrollment Form'!$C848=\"ROC\",'Enrollment Form'!$DS848=\"\"),\"N\",IF(AND('Enrollment Form'!$C848=\"Enroll\",'Enrollment Form'!$B848=\"Subscriber\",'Enrollment Form'!$CQ848=\"No\",'Enrollment Form'!$DS848=\"\"),\"N\",IF(AND('Enrollment Form'!$C848=\"Enroll\",'Enrollment Form'!$B848=\"Subscriber\",'Enrollment Form'!$CQ848=\"Yes\"),\"-\",\"Y\")))))","v":""},{"$f":"IF($B841=\"N\",\"\",IF(AND('Enrollment Form'!$C848=\"ROC\",'Enrollment Form'!$DT848<>\"\"),\"Y\",IF(AND('Enrollment Form'!$C848=\"ROC\",'Enrollment Form'!$DT848=\"\"),\"N\",IF(AND('Enrollment Form'!$C848=\"Enroll\",'Enrollment Form'!$B848=\"Subscriber\",'Enrollment Form'!$CQ848=\"No\",'Enrollment Form'!$DT848=\"\"),\"N\",IF(AND('Enrollment Form'!$C848=\"Enroll\",'Enrollment Form'!$B848=\"Subscriber\",'Enrollment Form'!$CQ848=\"Yes\"),\"-\",\"Y\")))))","v":""},{"$f":"IF('Enrollment Form'!AH848=\"\",\"\",IF(ISERROR(SEARCH(\".\",'Enrollment Form'!AH848,SEARCH(\"@\",'Enrollment Form'!AH848))),\"N\",\"Y\"))","v":""},{"$f":"IF(OR($B841=\"N\",'Enrollment Form'!$G848=\"\"),\"\",IF('Enrollment Form'!$B848<>\"Subscriber\",\"-\",IF(COUNTIF('Enrollment Form'!$AS848:$AT848,\"Yes\")=2,\"N\",\"Y\")))","v":""},{"$f":"IF(OR('Enrollment Form'!$CC848=\"\",'Enrollment Form'!$CC848=\"No\"),\"-\",IF(AND('Enrollment Form'!$CC848=\"Yes\",'Enrollment Form'!$CD848=\"\"),\"N\",\"Y\"))","v":"-"},{"$f":"IF(OR('Enrollment Form'!$CE848=\"\",'Enrollment Form'!$CE848=\"No\"),\"-\",IF(AND('Enrollment Form'!$CE848=\"Yes\",'Enrollment Form'!$CF848=\"\"),\"N\",\"Y\"))","v":"-"},{"$f":"IF(OR('Enrollment Form'!$CG848=\"\",'Enrollment Form'!$CG848=\"No\"),\"-\",IF(AND('Enrollment Form'!$CG848=\"Yes\",'Enrollment Form'!$CH848=\"\"),\"N\",\"Y\"))","v":"-"},{"$f":"IF(OR('Enrollment Form'!$CG848=\"\",'Enrollment Form'!$CG848=\"No\"),\"-\",IF(AND('Enrollment Form'!$CG848=\"Yes\",'Enrollment Form'!$CI848=\"\"),\"N\",\"Y\"))","v":"-"},{"$f":"IF('Enrollment Form'!B848<>\"Subscriber\",\"-\",IF(AND('Enrollment Form'!B848=\"Subscriber\",'Enrollment Form'!C848=\"Enroll\",'Enrollment Form'!AA848=\"\"),\"N\",\"Y\"))","v":"-"},{"$f":"IF(OR('Enrollment Form'!B848=\"Subscriber\",'Enrollment Form'!B848=\"\"),\"-\",IF('Enrollment Form'!BI848=\"\",\"N\",\"Y\"))","v":"-"},{"$f":"IF('Enrollment Form'!B848<>\"Subscriber\",\"-\",IF(AND('Enrollment Form'!B848=\"Subscriber\",'Enrollment Form'!G848=\"\"),\"N\",\"Y\"))","v":"-"},{"$f":"IF('Enrollment Form'!A848=\"\",\"\",IF('Enrollment Form'!B848=\"Subscriber\",\"-\",IF(AND('Enrollment Form'!B848<>\"Subscriber\",'Enrollment Form'!G848='Enrollment Form'!H848),\"N\",\"Y\")))","v":""},0]
[849,{"$f":"IF('Enrollment Form'!$A849<>\"\",\"Y\",\"N\")","v":"N"},{"$f":"IF(AND('Enrollment Form'!$B849=\"\",'Enrollment Form'!$C849<>\"\"),\"N\",IF($B842=\"N\",\"\",\"Y\"))","v":""},{"$f":"IF(OR($B842=\"N\",'Enrollment Form'!G849=\"\"),\"\",IF('Enrollment Form'!$B849<>\"Subscriber\",\"\",IF('Enrollment Form'!$G849='Enrollment Form'!$H849,\"Y\",\"N\")))","v":""},{"$f":"IF($B842=\"N\",\"\",IF(AND(COUNTIFS('Enrollment Form'!$H$11:$H$1000,'Enrollment Form'!$H849,'Enrollment Form'!$B$11:$B$1000,'Enrollment Form'!$B849)>1,'Enrollment Form'!$H849<>\"\"),\"N\",\"Y\"))","v":""},{"$f":"IF($B842=\"N\",\"\",IF(LEN('Enrollment Form'!$Y849)=0,\"\",IF(LEN('Enrollment Form'!$Y849)<>5,\"N\",\"Y\")))","v":""},{"$f":"IF($B842=\"N\",\"\",IF(LEN('Enrollment Form'!$AD849=0),\"\",IF(LEN('Enrollment Form'!$AD849)<>5,\"N\",\"Y\")))","v":""},{"$f":"IF($B842=\"N\",\"\",IF(LEN('Enrollment Form'!$BL849=0),\"\",IF(LEN('Enrollment Form'!$BL849)<>5,\"N\",\"Y\")))","v":""},{"$f":"IF($B842=\"N\",\"\",IF(LEN('Enrollment Form'!$AE849)=0,\"\",IF(LEN('Enrollment Form'!$AE849)<>10,\"N\",\"Y\")))","v":""},{"$f":"IF($B842=\"N\",\"\",IF(LEN('Enrollment Form'!$AF849)=0,\"\",IF(LEN('Enrollment Form'!$AF849)<>10,\"N\",\"Y\")))","v":""},{"$f":"IF('Enrollment Form'!$O849<>\"Graded\",\"-\",IF(AND('Enrollment Form'!$O849=\"Graded\",'Enrollment Form'!$AO849<>\"\"),\"Y\",\"N\"))","v":"-"},{"$f":"IF($B842=\"N\",\"\",IF(OR('Enrollment Form'!$B849<>\"Subscriber\",'Enrollment Form'!$C849=\"ROC\"),\"-\",IF(AND('Enrollment Form'!$B849=\"Subscriber\",'Enrollment Form'!$C849=\"Enroll\",'Enrollment Form'!$AJ849<>\"\"),\"Y\",\"N\")))","v":""},{"$f":"IF($B842=\"N\",\"\",IF(OR('Enrollment Form'!$B849<>\"Subscriber\",'Enrollment Form'!$C849=\"ROC\"),\"-\",IF(AND('Enrollment Form'!$B849=\"Subscriber\",'Enrollment Form'!$C849=\"Enroll\",'Enrollment Form'!$AK849<>\"\"),\"Y\",\"N\")))","v":""},{"$f":"IF($B842=\"N\",\"\",IF(OR('Enrollment Form'!$B849<>\"Subscriber\",'Enrollment Form'!$C849=\"ROC\"),\"-\",IF(AND('Enrollment Form'!$B849=\"Subscriber\",'Enrollment Form'!$C849=\"Enroll\",'Enrollment Form'!$AL849<>\"\"),\"Y\",\"N\")))","v":""},{"$f":"IF($B842=\"N\",\"\",IF(OR('Enrollment Form'!$B849<>\"Subscriber\",'Enrollment Form'!$C849=\"ROC\"),\"-\",IF(AND('Enrollment Form'!$B849=\"Subscriber\",'Enrollment Form'!$C849=\"Enroll\",'Enrollment Form'!$AM849<>\"\"),\"Y\",\"N\")))","v":""},{"$f":"IF($B842=\"N\",\"\",IF(OR('Enrollment Form'!$B849<>\"Subscriber\",'Enrollment Form'!$C849=\"ROC\"),\"-\",IF(AND('Enrollment Form'!$B849=\"Subscriber\",'Enrollment Form'!$C849=\"Enroll\",'Enrollment Form'!$AN849<>\"\"),\"Y\",\"N\")))","v":""},{"$f":"IF($B842=\"N\",\"\",IF(OR('Enrollment Form'!$B849<>\"Subscriber\",'Enrollment Form'!$C849=\"ROC\"),\"-\",IF(AND('Enrollment Form'!$B849=\"Subscriber\",'Enrollment Form'!$C849=\"Enroll\",'Enrollment Form'!$AP849<>\"\"),\"Y\",\"N\")))","v":""},{"$f":"IF($B842=\"N\",\"\",IF($Q842=\"-\",\"-\",IF(AND($Q842=\"Y\",'Enrollment Form'!$AP849=\"No\"),\"-\",IF(AND($Q842=\"Y\",'Enrollment Form'!$AP849=\"Yes\",'Enrollment Form'!$AQ849<>\"\"),\"Y\",\"N\"))))","v":""},{"$f":"IF($B842=\"N\",\"\",IF(OR('Enrollment Form'!$B849<>\"Subscriber\",'Enrollment Form'!$C849=\"ROC\"),\"-\",IF(AND('Enrollment Form'!$B849=\"Subscriber\",'Enrollment Form'!$C849=\"Enroll\",'Enrollment Form'!$CO849<>\"\"),\"Y\",\"N\")))","v":""},{"$f":"IF($B842=\"N\",\"\",IF($S842=\"-\",\"-\",IF(AND($S842=\"Y\",'Enrollment Form'!$CO849=\"No\"),\"-\",IF(AND($S842=\"Y\",'Enrollment Form'!$CO849=\"Yes\",'Enrollment Form'!$CP849<>\"\"),\"Y\",\"N\"))))","v":""},{"$f":"IF(OR('Enrollment Form'!$AV849=\"Yes\",'Enrollment Form'!$AV849=\"\"),\"-\",IF(AND('Enrollment Form'!$AV849=\"No\",ISERROR(FIND(\"HMO\",VLOOKUP('Enrollment Form'!G849,'Enrollment Form'!H$11:J$1000,3,FALSE),1))=FALSE,COUNTA('Enrollment Form'!$AW849:$AZ849)=4),\"Y\",\"N\"))","v":"-"},{"$f":"IF($B842=\"N\",\"\",IF('Enrollment Form'!$B849=\"Subscriber\",\"-\",IF(COUNTA('Enrollment Form'!$BE849,'Enrollment Form'!$BG849)=2,\"Y\",\"N\")))","v":""},{"$f":"IF($B842=\"N\",\"\",IF(OR('Enrollment Form'!$AU849=\"\",'Enrollment Form'!$AU849=\"No\"),\"-\",IF(AND('Enrollment Form'!$AU849=\"Yes\",COUNTA('Enrollment Form'!$CK849)=1),\"Y\",\"N\")))","v":""},{"$f":"IF(OR('Enrollment Form'!$CK849=\"\",'Enrollment Form'!$CK849=\"No\"),\"-\",IF(COUNTA('Enrollment Form'!$CM849:$CN849)=2,\"Y\",\"N\"))","v":"-"},{"$f":"IF($B842=\"N\",\"\",IF(COUNTIF('Enrollment Form'!$CZ849:$DO849,\"Other\")=COUNTA('Enrollment Form'!$DF849,'Enrollment Form'!$DA849,'Enrollment Form'!$DK849,'Enrollment Form'!$DP849),\"Y\",\"N\"))","v":""},{"$f":"IF($B842=\"N\",\"\",IF(OR('Enrollment Form'!B849<>\"Subscriber\",'Enrollment Form'!C849=\"ROC\",COUNTIF('Enrollment Form'!AS849:AT849,\"Yes\")>=1),\"-\",IF(AND('Enrollment Form'!C849=\"Enroll\",COUNTIF('Enrollment Form'!AS849:AT849,\"No\")=2,'Enrollment Form'!AU849=\"\"),\"N\",\"Y\")))","v":""},{"$f":"IF(OR(B842=\"N\",'Enrollment Form'!B849<>\"Subscriber\",'Enrollment Form'!C849=\"ROC\",'Enrollment Form'!O849<>\"Multiple of Salary\"),\"-\",IF(COUNTA('Enrollment Form'!T849:U849)<2,\"N\",\"Y\"))","v":"-"},{"$f":"IF(B842=\"N\",\"\",IF(OR('Enrollment Form'!C849=\"ROC\",'Enrollment Form'!B849<>\"Subscriber\",'Enrollment Form'!O849=\"Waive\",'Enrollment Form'!O849=\"\"),\"-\",IF('Enrollment Form'!P849=\"\",\"N\",\"Y\")))","v":""},{"$f":"IF($B842=\"N\",\"\",IF(AND('Enrollment Form'!$C849=\"ROC\",'Enrollment Form'!$DS849<>\"\"),\"Y\",IF(AND('Enrollment Form'!$C849=\"ROC\",'Enrollment Form'!$DS849=\"\"),\"N\",IF(AND('Enrollment Form'!$C849=\"Enroll\",'Enrollment Form'!$B849=\"Subscriber\",'Enrollment Form'!$CQ849=\"No\",'Enrollment Form'!$DS849=\"\"),\"N\",IF(AND('Enrollment Form'!$C849=\"Enroll\",'Enrollment Form'!$B849=\"Subscriber\",'Enrollment Form'!$CQ849=\"Yes\"),\"-\",\"Y\")))))","v":""},{"$f":"IF($B842=\"N\",\"\",IF(AND('Enrollment Form'!$C849=\"ROC\",'Enrollment Form'!$DT849<>\"\"),\"Y\",IF(AND('Enrollment Form'!$C849=\"ROC\",'Enrollment Form'!$DT849=\"\"),\"N\",IF(AND('Enrollment Form'!$C849=\"Enroll\",'Enrollment Form'!$B849=\"Subscriber\",'Enrollment Form'!$CQ849=\"No\",'Enrollment Form'!$DT849=\"\"),\"N\",IF(AND('Enrollment Form'!$C849=\"Enroll\",'Enrollment Form'!$B849=\"Subscriber\",'Enrollment Form'!$CQ849=\"Yes\"),\"-\",\"Y\")))))","v":""},{"$f":"IF('Enrollment Form'!AH849=\"\",\"\",IF(ISERROR(SEARCH(\".\",'Enrollment Form'!AH849,SEARCH(\"@\",'Enrollment Form'!AH849))),\"N\",\"Y\"))","v":""},{"$f":"IF(OR($B842=\"N\",'Enrollment Form'!$G849=\"\"),\"\",IF('Enrollment Form'!$B849<>\"Subscriber\",\"-\",IF(COUNTIF('Enrollment Form'!$AS849:$AT849,\"Yes\")=2,\"N\",\"Y\")))","v":""},{"$f":"IF(OR('Enrollment Form'!$CC849=\"\",'Enrollment Form'!$CC849=\"No\"),\"-\",IF(AND('Enrollment Form'!$CC849=\"Yes\",'Enrollment Form'!$CD849=\"\"),\"N\",\"Y\"))","v":"-"},{"$f":"IF(OR('Enrollment Form'!$CE849=\"\",'Enrollment Form'!$CE849=\"No\"),\"-\",IF(AND('Enrollment Form'!$CE849=\"Yes\",'Enrollment Form'!$CF849=\"\"),\"N\",\"Y\"))","v":"-"},{"$f":"IF(OR('Enrollment Form'!$CG849=\"\",'Enrollment Form'!$CG849=\"No\"),\"-\",IF(AND('Enrollment Form'!$CG849=\"Yes\",'Enrollment Form'!$CH849=\"\"),\"N\",\"Y\"))","v":"-"},{"$f":"IF(OR('Enrollment Form'!$CG849=\"\",'Enrollment Form'!$CG849=\"No\"),\"-\",IF(AND('Enrollment Form'!$CG849=\"Yes\",'Enrollment Form'!$CI849=\"\"),\"N\",\"Y\"))","v":"-"},{"$f":"IF('Enrollment Form'!B849<>\"Subscriber\",\"-\",IF(AND('Enrollment Form'!B849=\"Subscriber\",'Enrollment Form'!C849=\"Enroll\",'Enrollment Form'!AA849=\"\"),\"N\",\"Y\"))","v":"-"},{"$f":"IF(OR('Enrollment Form'!B849=\"Subscriber\",'Enrollment Form'!B849=\"\"),\"-\",IF('Enrollment Form'!BI849=\"\",\"N\",\"Y\"))","v":"-"},{"$f":"IF('Enrollment Form'!B849<>\"Subscriber\",\"-\",IF(AND('Enrollment Form'!B849=\"Subscriber\",'Enrollment Form'!G849=\"\"),\"N\",\"Y\"))","v":"-"},{"$f":"IF('Enrollment Form'!A849=\"\",\"\",IF('Enrollment Form'!B849=\"Subscriber\",\"-\",IF(AND('Enrollment Form'!B849<>\"Subscriber\",'Enrollment Form'!G849='Enrollment Form'!H849),\"N\",\"Y\")))","v":""},0]
[850,{"$f":"IF('Enrollment Form'!$A850<>\"\",\"Y\",\"N\")","v":"N"},{"$f":"IF(AND('Enrollment Form'!$B850=\"\",'Enrollment Form'!$C850<>\"\"),\"N\",IF($B843=\"N\",\"\",\"Y\"))","v":""},{"$f":"IF(OR($B843=\"N\",'Enrollment Form'!G850=\"\"),\"\",IF('Enrollment Form'!$B850<>\"Subscriber\",\"\",IF('Enrollment Form'!$G850='Enrollment Form'!$H850,\"Y\",\"N\")))","v":""},{"$f":"IF($B843=\"N\",\"\",IF(AND(COUNTIFS('Enrollment Form'!$H$11:$H$1000,'Enrollment Form'!$H850,'Enrollment Form'!$B$11:$B$1000,'Enrollment Form'!$B850)>1,'Enrollment Form'!$H850<>\"\"),\"N\",\"Y\"))","v":""},{"$f":"IF($B843=\"N\",\"\",IF(LEN('Enrollment Form'!$Y850)=0,\"\",IF(LEN('Enrollment Form'!$Y850)<>5,\"N\",\"Y\")))","v":""},{"$f":"IF($B843=\"N\",\"\",IF(LEN('Enrollment Form'!$AD850=0),\"\",IF(LEN('Enrollment Form'!$AD850)<>5,\"N\",\"Y\")))","v":""},{"$f":"IF($B843=\"N\",\"\",IF(LEN('Enrollment Form'!$BL850=0),\"\",IF(LEN('Enrollment Form'!$BL850)<>5,\"N\",\"Y\")))","v":""},{"$f":"IF($B843=\"N\",\"\",IF(LEN('Enrollment Form'!$AE850)=0,\"\",IF(LEN('Enrollment Form'!$AE850)<>10,\"N\",\"Y\")))","v":""},{"$f":"IF($B843=\"N\",\"\",IF(LEN('Enrollment Form'!$AF850)=0,\"\",IF(LEN('Enrollment Form'!$AF850)<>10,\"N\",\"Y\")))","v":""},{"$f":"IF('Enrollment Form'!$O850<>\"Graded\",\"-\",IF(AND('Enrollment Form'!$O850=\"Graded\",'Enrollment Form'!$AO850<>\"\"),\"Y\",\"N\"))","v":"-"},{"$f":"IF($B843=\"N\",\"\",IF(OR('Enrollment Form'!$B850<>\"Subscriber\",'Enrollment Form'!$C850=\"ROC\"),\"-\",IF(AND('Enrollment Form'!$B850=\"Subscriber\",'Enrollment Form'!$C850=\"Enroll\",'Enrollment Form'!$AJ850<>\"\"),\"Y\",\"N\")))","v":""},{"$f":"IF($B843=\"N\",\"\",IF(OR('Enrollment Form'!$B850<>\"Subscriber\",'Enrollment Form'!$C850=\"ROC\"),\"-\",IF(AND('Enrollment Form'!$B850=\"Subscriber\",'Enrollment Form'!$C850=\"Enroll\",'Enrollment Form'!$AK850<>\"\"),\"Y\",\"N\")))","v":""},{"$f":"IF($B843=\"N\",\"\",IF(OR('Enrollment Form'!$B850<>\"Subscriber\",'Enrollment Form'!$C850=\"ROC\"),\"-\",IF(AND('Enrollment Form'!$B850=\"Subscriber\",'Enrollment Form'!$C850=\"Enroll\",'Enrollment Form'!$AL850<>\"\"),\"Y\",\"N\")))","v":""},{"$f":"IF($B843=\"N\",\"\",IF(OR('Enrollment Form'!$B850<>\"Subscriber\",'Enrollment Form'!$C850=\"ROC\"),\"-\",IF(AND('Enrollment Form'!$B850=\"Subscriber\",'Enrollment Form'!$C850=\"Enroll\",'Enrollment Form'!$AM850<>\"\"),\"Y\",\"N\")))","v":""},{"$f":"IF($B843=\"N\",\"\",IF(OR('Enrollment Form'!$B850<>\"Subscriber\",'Enrollment Form'!$C850=\"ROC\"),\"-\",IF(AND('Enrollment Form'!$B850=\"Subscriber\",'Enrollment Form'!$C850=\"Enroll\",'Enrollment Form'!$AN850<>\"\"),\"Y\",\"N\")))","v":""},{"$f":"IF($B843=\"N\",\"\",IF(OR('Enrollment Form'!$B850<>\"Subscriber\",'Enrollment Form'!$C850=\"ROC\"),\"-\",IF(AND('Enrollment Form'!$B850=\"Subscriber\",'Enrollment Form'!$C850=\"Enroll\",'Enrollment Form'!$AP850<>\"\"),\"Y\",\"N\")))","v":""},{"$f":"IF($B843=\"N\",\"\",IF($Q843=\"-\",\"-\",IF(AND($Q843=\"Y\",'Enrollment Form'!$AP850=\"No\"),\"-\",IF(AND($Q843=\"Y\",'Enrollment Form'!$AP850=\"Yes\",'Enrollment Form'!$AQ850<>\"\"),\"Y\",\"N\"))))","v":""},{"$f":"IF($B843=\"N\",\"\",IF(OR('Enrollment Form'!$B850<>\"Subscriber\",'Enrollment Form'!$C850=\"ROC\"),\"-\",IF(AND('Enrollment Form'!$B850=\"Subscriber\",'Enrollment Form'!$C850=\"Enroll\",'Enrollment Form'!$CO850<>\"\"),\"Y\",\"N\")))","v":""},{"$f":"IF($B843=\"N\",\"\",IF($S843=\"-\",\"-\",IF(AND($S843=\"Y\",'Enrollment Form'!$CO850=\"No\"),\"-\",IF(AND($S843=\"Y\",'Enrollment Form'!$CO850=\"Yes\",'Enrollment Form'!$CP850<>\"\"),\"Y\",\"N\"))))","v":""},{"$f":"IF(OR('Enrollment Form'!$AV850=\"Yes\",'Enrollment Form'!$AV850=\"\"),\"-\",IF(AND('Enrollment Form'!$AV850=\"No\",ISERROR(FIND(\"HMO\",VLOOKUP('Enrollment Form'!G850,'Enrollment Form'!H$11:J$1000,3,FALSE),1))=FALSE,COUNTA('Enrollment Form'!$AW850:$AZ850)=4),\"Y\",\"N\"))","v":"-"},{"$f":"IF($B843=\"N\",\"\",IF('Enrollment Form'!$B850=\"Subscriber\",\"-\",IF(COUNTA('Enrollment Form'!$BE850,'Enrollment Form'!$BG850)=2,\"Y\",\"N\")))","v":""},{"$f":"IF($B843=\"N\",\"\",IF(OR('Enrollment Form'!$AU850=\"\",'Enrollment Form'!$AU850=\"No\"),\"-\",IF(AND('Enrollment Form'!$AU850=\"Yes\",COUNTA('Enrollment Form'!$CK850)=1),\"Y\",\"N\")))","v":""},{"$f":"IF(OR('Enrollment Form'!$CK850=\"\",'Enrollment Form'!$CK850=\"No\"),\"-\",IF(COUNTA('Enrollment Form'!$CM850:$CN850)=2,\"Y\",\"N\"))","v":"-"},{"$f":"IF($B843=\"N\",\"\",IF(COUNTIF('Enrollment Form'!$CZ850:$DO850,\"Other\")=COUNTA('Enrollment Form'!$DF850,'Enrollment Form'!$DA850,'Enrollment Form'!$DK850,'Enrollment Form'!$DP850),\"Y\",\"N\"))","v":""},{"$f":"IF($B843=\"N\",\"\",IF(OR('Enrollment Form'!B850<>\"Subscriber\",'Enrollment Form'!C850=\"ROC\",COUNTIF('Enrollment Form'!AS850:AT850,\"Yes\")>=1),\"-\",IF(AND('Enrollment Form'!C850=\"Enroll\",COUNTIF('Enrollment Form'!AS850:AT850,\"No\")=2,'Enrollment Form'!AU850=\"\"),\"N\",\"Y\")))","v":""},{"$f":"IF(OR(B843=\"N\",'Enrollment Form'!B850<>\"Subscriber\",'Enrollment Form'!C850=\"ROC\",'Enrollment Form'!O850<>\"Multiple of Salary\"),\"-\",IF(COUNTA('Enrollment Form'!T850:U850)<2,\"N\",\"Y\"))","v":"-"},{"$f":"IF(B843=\"N\",\"\",IF(OR('Enrollment Form'!C850=\"ROC\",'Enrollment Form'!B850<>\"Subscriber\",'Enrollment Form'!O850=\"Waive\",'Enrollment Form'!O850=\"\"),\"-\",IF('Enrollment Form'!P850=\"\",\"N\",\"Y\")))","v":""},{"$f":"IF($B843=\"N\",\"\",IF(AND('Enrollment Form'!$C850=\"ROC\",'Enrollment Form'!$DS850<>\"\"),\"Y\",IF(AND('Enrollment Form'!$C850=\"ROC\",'Enrollment Form'!$DS850=\"\"),\"N\",IF(AND('Enrollment Form'!$C850=\"Enroll\",'Enrollment Form'!$B850=\"Subscriber\",'Enrollment Form'!$CQ850=\"No\",'Enrollment Form'!$DS850=\"\"),\"N\",IF(AND('Enrollment Form'!$C850=\"Enroll\",'Enrollment Form'!$B850=\"Subscriber\",'Enrollment Form'!$CQ850=\"Yes\"),\"-\",\"Y\")))))","v":""},{"$f":"IF($B843=\"N\",\"\",IF(AND('Enrollment Form'!$C850=\"ROC\",'Enrollment Form'!$DT850<>\"\"),\"Y\",IF(AND('Enrollment Form'!$C850=\"ROC\",'Enrollment Form'!$DT850=\"\"),\"N\",IF(AND('Enrollment Form'!$C850=\"Enroll\",'Enrollment Form'!$B850=\"Subscriber\",'Enrollment Form'!$CQ850=\"No\",'Enrollment Form'!$DT850=\"\"),\"N\",IF(AND('Enrollment Form'!$C850=\"Enroll\",'Enrollment Form'!$B850=\"Subscriber\",'Enrollment Form'!$CQ850=\"Yes\"),\"-\",\"Y\")))))","v":""},{"$f":"IF('Enrollment Form'!AH850=\"\",\"\",IF(ISERROR(SEARCH(\".\",'Enrollment Form'!AH850,SEARCH(\"@\",'Enrollment Form'!AH850))),\"N\",\"Y\"))","v":""},{"$f":"IF(OR($B843=\"N\",'Enrollment Form'!$G850=\"\"),\"\",IF('Enrollment Form'!$B850<>\"Subscriber\",\"-\",IF(COUNTIF('Enrollment Form'!$AS850:$AT850,\"Yes\")=2,\"N\",\"Y\")))","v":""},{"$f":"IF(OR('Enrollment Form'!$CC850=\"\",'Enrollment Form'!$CC850=\"No\"),\"-\",IF(AND('Enrollment Form'!$CC850=\"Yes\",'Enrollment Form'!$CD850=\"\"),\"N\",\"Y\"))","v":"-"},{"$f":"IF(OR('Enrollment Form'!$CE850=\"\",'Enrollment Form'!$CE850=\"No\"),\"-\",IF(AND('Enrollment Form'!$CE850=\"Yes\",'Enrollment Form'!$CF850=\"\"),\"N\",\"Y\"))","v":"-"},{"$f":"IF(OR('Enrollment Form'!$CG850=\"\",'Enrollment Form'!$CG850=\"No\"),\"-\",IF(AND('Enrollment Form'!$CG850=\"Yes\",'Enrollment Form'!$CH850=\"\"),\"N\",\"Y\"))","v":"-"},{"$f":"IF(OR('Enrollment Form'!$CG850=\"\",'Enrollment Form'!$CG850=\"No\"),\"-\",IF(AND('Enrollment Form'!$CG850=\"Yes\",'Enrollment Form'!$CI850=\"\"),\"N\",\"Y\"))","v":"-"},{"$f":"IF('Enrollment Form'!B850<>\"Subscriber\",\"-\",IF(AND('Enrollment Form'!B850=\"Subscriber\",'Enrollment Form'!C850=\"Enroll\",'Enrollment Form'!AA850=\"\"),\"N\",\"Y\"))","v":"-"},{"$f":"IF(OR('Enrollment Form'!B850=\"Subscriber\",'Enrollment Form'!B850=\"\"),\"-\",IF('Enrollment Form'!BI850=\"\",\"N\",\"Y\"))","v":"-"},{"$f":"IF('Enrollment Form'!B850<>\"Subscriber\",\"-\",IF(AND('Enrollment Form'!B850=\"Subscriber\",'Enrollment Form'!G850=\"\"),\"N\",\"Y\"))","v":"-"},{"$f":"IF('Enrollment Form'!A850=\"\",\"\",IF('Enrollment Form'!B850=\"Subscriber\",\"-\",IF(AND('Enrollment Form'!B850<>\"Subscriber\",'Enrollment Form'!G850='Enrollment Form'!H850),\"N\",\"Y\")))","v":""},0]
[851,{"$f":"IF('Enrollment Form'!$A851<>\"\",\"Y\",\"N\")","v":"N"},{"$f":"IF(AND('Enrollment Form'!$B851=\"\",'Enrollment Form'!$C851<>\"\"),\"N\",IF($B844=\"N\",\"\",\"Y\"))","v":""},{"$f":"IF(OR($B844=\"N\",'Enrollment Form'!G851=\"\"),\"\",IF('Enrollment Form'!$B851<>\"Subscriber\",\"\",IF('Enrollment Form'!$G851='Enrollment Form'!$H851,\"Y\",\"N\")))","v":""},{"$f":"IF($B844=\"N\",\"\",IF(AND(COUNTIFS('Enrollment Form'!$H$11:$H$1000,'Enrollment Form'!$H851,'Enrollment Form'!$B$11:$B$1000,'Enrollment Form'!$B851)>1,'Enrollment Form'!$H851<>\"\"),\"N\",\"Y\"))","v":""},{"$f":"IF($B844=\"N\",\"\",IF(LEN('Enrollment Form'!$Y851)=0,\"\",IF(LEN('Enrollment Form'!$Y851)<>5,\"N\",\"Y\")))","v":""},{"$f":"IF($B844=\"N\",\"\",IF(LEN('Enrollment Form'!$AD851=0),\"\",IF(LEN('Enrollment Form'!$AD851)<>5,\"N\",\"Y\")))","v":""},{"$f":"IF($B844=\"N\",\"\",IF(LEN('Enrollment Form'!$BL851=0),\"\",IF(LEN('Enrollment Form'!$BL851)<>5,\"N\",\"Y\")))","v":""},{"$f":"IF($B844=\"N\",\"\",IF(LEN('Enrollment Form'!$AE851)=0,\"\",IF(LEN('Enrollment Form'!$AE851)<>10,\"N\",\"Y\")))","v":""},{"$f":"IF($B844=\"N\",\"\",IF(LEN('Enrollment Form'!$AF851)=0,\"\",IF(LEN('Enrollment Form'!$AF851)<>10,\"N\",\"Y\")))","v":""},{"$f":"IF('Enrollment Form'!$O851<>\"Graded\",\"-\",IF(AND('Enrollment Form'!$O851=\"Graded\",'Enrollment Form'!$AO851<>\"\"),\"Y\",\"N\"))","v":"-"},{"$f":"IF($B844=\"N\",\"\",IF(OR('Enrollment Form'!$B851<>\"Subscriber\",'Enrollment Form'!$C851=\"ROC\"),\"-\",IF(AND('Enrollment Form'!$B851=\"Subscriber\",'Enrollment Form'!$C851=\"Enroll\",'Enrollment Form'!$AJ851<>\"\"),\"Y\",\"N\")))","v":""},{"$f":"IF($B844=\"N\",\"\",IF(OR('Enrollment Form'!$B851<>\"Subscriber\",'Enrollment Form'!$C851=\"ROC\"),\"-\",IF(AND('Enrollment Form'!$B851=\"Subscriber\",'Enrollment Form'!$C851=\"Enroll\",'Enrollment Form'!$AK851<>\"\"),\"Y\",\"N\")))","v":""},{"$f":"IF($B844=\"N\",\"\",IF(OR('Enrollment Form'!$B851<>\"Subscriber\",'Enrollment Form'!$C851=\"ROC\"),\"-\",IF(AND('Enrollment Form'!$B851=\"Subscriber\",'Enrollment Form'!$C851=\"Enroll\",'Enrollment Form'!$AL851<>\"\"),\"Y\",\"N\")))","v":""},{"$f":"IF($B844=\"N\",\"\",IF(OR('Enrollment Form'!$B851<>\"Subscriber\",'Enrollment Form'!$C851=\"ROC\"),\"-\",IF(AND('Enrollment Form'!$B851=\"Subscriber\",'Enrollment Form'!$C851=\"Enroll\",'Enrollment Form'!$AM851<>\"\"),\"Y\",\"N\")))","v":""},{"$f":"IF($B844=\"N\",\"\",IF(OR('Enrollment Form'!$B851<>\"Subscriber\",'Enrollment Form'!$C851=\"ROC\"),\"-\",IF(AND('Enrollment Form'!$B851=\"Subscriber\",'Enrollment Form'!$C851=\"Enroll\",'Enrollment Form'!$AN851<>\"\"),\"Y\",\"N\")))","v":""},{"$f":"IF($B844=\"N\",\"\",IF(OR('Enrollment Form'!$B851<>\"Subscriber\",'Enrollment Form'!$C851=\"ROC\"),\"-\",IF(AND('Enrollment Form'!$B851=\"Subscriber\",'Enrollment Form'!$C851=\"Enroll\",'Enrollment Form'!$AP851<>\"\"),\"Y\",\"N\")))","v":""},{"$f":"IF($B844=\"N\",\"\",IF($Q844=\"-\",\"-\",IF(AND($Q844=\"Y\",'Enrollment Form'!$AP851=\"No\"),\"-\",IF(AND($Q844=\"Y\",'Enrollment Form'!$AP851=\"Yes\",'Enrollment Form'!$AQ851<>\"\"),\"Y\",\"N\"))))","v":""},{"$f":"IF($B844=\"N\",\"\",IF(OR('Enrollment Form'!$B851<>\"Subscriber\",'Enrollment Form'!$C851=\"ROC\"),\"-\",IF(AND('Enrollment Form'!$B851=\"Subscriber\",'Enrollment Form'!$C851=\"Enroll\",'Enrollment Form'!$CO851<>\"\"),\"Y\",\"N\")))","v":""},{"$f":"IF($B844=\"N\",\"\",IF($S844=\"-\",\"-\",IF(AND($S844=\"Y\",'Enrollment Form'!$CO851=\"No\"),\"-\",IF(AND($S844=\"Y\",'Enrollment Form'!$CO851=\"Yes\",'Enrollment Form'!$CP851<>\"\"),\"Y\",\"N\"))))","v":""},{"$f":"IF(OR('Enrollment Form'!$AV851=\"Yes\",'Enrollment Form'!$AV851=\"\"),\"-\",IF(AND('Enrollment Form'!$AV851=\"No\",ISERROR(FIND(\"HMO\",VLOOKUP('Enrollment Form'!G851,'Enrollment Form'!H$11:J$1000,3,FALSE),1))=FALSE,COUNTA('Enrollment Form'!$AW851:$AZ851)=4),\"Y\",\"N\"))","v":"-"},{"$f":"IF($B844=\"N\",\"\",IF('Enrollment Form'!$B851=\"Subscriber\",\"-\",IF(COUNTA('Enrollment Form'!$BE851,'Enrollment Form'!$BG851)=2,\"Y\",\"N\")))","v":""},{"$f":"IF($B844=\"N\",\"\",IF(OR('Enrollment Form'!$AU851=\"\",'Enrollment Form'!$AU851=\"No\"),\"-\",IF(AND('Enrollment Form'!$AU851=\"Yes\",COUNTA('Enrollment Form'!$CK851)=1),\"Y\",\"N\")))","v":""},{"$f":"IF(OR('Enrollment Form'!$CK851=\"\",'Enrollment Form'!$CK851=\"No\"),\"-\",IF(COUNTA('Enrollment Form'!$CM851:$CN851)=2,\"Y\",\"N\"))","v":"-"},{"$f":"IF($B844=\"N\",\"\",IF(COUNTIF('Enrollment Form'!$CZ851:$DO851,\"Other\")=COUNTA('Enrollment Form'!$DF851,'Enrollment Form'!$DA851,'Enrollment Form'!$DK851,'Enrollment Form'!$DP851),\"Y\",\"N\"))","v":""},{"$f":"IF($B844=\"N\",\"\",IF(OR('Enrollment Form'!B851<>\"Subscriber\",'Enrollment Form'!C851=\"ROC\",COUNTIF('Enrollment Form'!AS851:AT851,\"Yes\")>=1),\"-\",IF(AND('Enrollment Form'!C851=\"Enroll\",COUNTIF('Enrollment Form'!AS851:AT851,\"No\")=2,'Enrollment Form'!AU851=\"\"),\"N\",\"Y\")))","v":""},{"$f":"IF(OR(B844=\"N\",'Enrollment Form'!B851<>\"Subscriber\",'Enrollment Form'!C851=\"ROC\",'Enrollment Form'!O851<>\"Multiple of Salary\"),\"-\",IF(COUNTA('Enrollment Form'!T851:U851)<2,\"N\",\"Y\"))","v":"-"},{"$f":"IF(B844=\"N\",\"\",IF(OR('Enrollment Form'!C851=\"ROC\",'Enrollment Form'!B851<>\"Subscriber\",'Enrollment Form'!O851=\"Waive\",'Enrollment Form'!O851=\"\"),\"-\",IF('Enrollment Form'!P851=\"\",\"N\",\"Y\")))","v":""},{"$f":"IF($B844=\"N\",\"\",IF(AND('Enrollment Form'!$C851=\"ROC\",'Enrollment Form'!$DS851<>\"\"),\"Y\",IF(AND('Enrollment Form'!$C851=\"ROC\",'Enrollment Form'!$DS851=\"\"),\"N\",IF(AND('Enrollment Form'!$C851=\"Enroll\",'Enrollment Form'!$B851=\"Subscriber\",'Enrollment Form'!$CQ851=\"No\",'Enrollment Form'!$DS851=\"\"),\"N\",IF(AND('Enrollment Form'!$C851=\"Enroll\",'Enrollment Form'!$B851=\"Subscriber\",'Enrollment Form'!$CQ851=\"Yes\"),\"-\",\"Y\")))))","v":""},{"$f":"IF($B844=\"N\",\"\",IF(AND('Enrollment Form'!$C851=\"ROC\",'Enrollment Form'!$DT851<>\"\"),\"Y\",IF(AND('Enrollment Form'!$C851=\"ROC\",'Enrollment Form'!$DT851=\"\"),\"N\",IF(AND('Enrollment Form'!$C851=\"Enroll\",'Enrollment Form'!$B851=\"Subscriber\",'Enrollment Form'!$CQ851=\"No\",'Enrollment Form'!$DT851=\"\"),\"N\",IF(AND('Enrollment Form'!$C851=\"Enroll\",'Enrollment Form'!$B851=\"Subscriber\",'Enrollment Form'!$CQ851=\"Yes\"),\"-\",\"Y\")))))","v":""},{"$f":"IF('Enrollment Form'!AH851=\"\",\"\",IF(ISERROR(SEARCH(\".\",'Enrollment Form'!AH851,SEARCH(\"@\",'Enrollment Form'!AH851))),\"N\",\"Y\"))","v":""},{"$f":"IF(OR($B844=\"N\",'Enrollment Form'!$G851=\"\"),\"\",IF('Enrollment Form'!$B851<>\"Subscriber\",\"-\",IF(COUNTIF('Enrollment Form'!$AS851:$AT851,\"Yes\")=2,\"N\",\"Y\")))","v":""},{"$f":"IF(OR('Enrollment Form'!$CC851=\"\",'Enrollment Form'!$CC851=\"No\"),\"-\",IF(AND('Enrollment Form'!$CC851=\"Yes\",'Enrollment Form'!$CD851=\"\"),\"N\",\"Y\"))","v":"-"},{"$f":"IF(OR('Enrollment Form'!$CE851=\"\",'Enrollment Form'!$CE851=\"No\"),\"-\",IF(AND('Enrollment Form'!$CE851=\"Yes\",'Enrollment Form'!$CF851=\"\"),\"N\",\"Y\"))","v":"-"},{"$f":"IF(OR('Enrollment Form'!$CG851=\"\",'Enrollment Form'!$CG851=\"No\"),\"-\",IF(AND('Enrollment Form'!$CG851=\"Yes\",'Enrollment Form'!$CH851=\"\"),\"N\",\"Y\"))","v":"-"},{"$f":"IF(OR('Enrollment Form'!$CG851=\"\",'Enrollment Form'!$CG851=\"No\"),\"-\",IF(AND('Enrollment Form'!$CG851=\"Yes\",'Enrollment Form'!$CI851=\"\"),\"N\",\"Y\"))","v":"-"},{"$f":"IF('Enrollment Form'!B851<>\"Subscriber\",\"-\",IF(AND('Enrollment Form'!B851=\"Subscriber\",'Enrollment Form'!C851=\"Enroll\",'Enrollment Form'!AA851=\"\"),\"N\",\"Y\"))","v":"-"},{"$f":"IF(OR('Enrollment Form'!B851=\"Subscriber\",'Enrollment Form'!B851=\"\"),\"-\",IF('Enrollment Form'!BI851=\"\",\"N\",\"Y\"))","v":"-"},{"$f":"IF('Enrollment Form'!B851<>\"Subscriber\",\"-\",IF(AND('Enrollment Form'!B851=\"Subscriber\",'Enrollment Form'!G851=\"\"),\"N\",\"Y\"))","v":"-"},{"$f":"IF('Enrollment Form'!A851=\"\",\"\",IF('Enrollment Form'!B851=\"Subscriber\",\"-\",IF(AND('Enrollment Form'!B851<>\"Subscriber\",'Enrollment Form'!G851='Enrollment Form'!H851),\"N\",\"Y\")))","v":""},0]
[852,{"$f":"IF('Enrollment Form'!$A852<>\"\",\"Y\",\"N\")","v":"N"},{"$f":"IF(AND('Enrollment Form'!$B852=\"\",'Enrollment Form'!$C852<>\"\"),\"N\",IF($B845=\"N\",\"\",\"Y\"))","v":""},{"$f":"IF(OR($B845=\"N\",'Enrollment Form'!G852=\"\"),\"\",IF('Enrollment Form'!$B852<>\"Subscriber\",\"\",IF('Enrollment Form'!$G852='Enrollment Form'!$H852,\"Y\",\"N\")))","v":""},{"$f":"IF($B845=\"N\",\"\",IF(AND(COUNTIFS('Enrollment Form'!$H$11:$H$1000,'Enrollment Form'!$H852,'Enrollment Form'!$B$11:$B$1000,'Enrollment Form'!$B852)>1,'Enrollment Form'!$H852<>\"\"),\"N\",\"Y\"))","v":""},{"$f":"IF($B845=\"N\",\"\",IF(LEN('Enrollment Form'!$Y852)=0,\"\",IF(LEN('Enrollment Form'!$Y852)<>5,\"N\",\"Y\")))","v":""},{"$f":"IF($B845=\"N\",\"\",IF(LEN('Enrollment Form'!$AD852=0),\"\",IF(LEN('Enrollment Form'!$AD852)<>5,\"N\",\"Y\")))","v":""},{"$f":"IF($B845=\"N\",\"\",IF(LEN('Enrollment Form'!$BL852=0),\"\",IF(LEN('Enrollment Form'!$BL852)<>5,\"N\",\"Y\")))","v":""},{"$f":"IF($B845=\"N\",\"\",IF(LEN('Enrollment Form'!$AE852)=0,\"\",IF(LEN('Enrollment Form'!$AE852)<>10,\"N\",\"Y\")))","v":""},{"$f":"IF($B845=\"N\",\"\",IF(LEN('Enrollment Form'!$AF852)=0,\"\",IF(LEN('Enrollment Form'!$AF852)<>10,\"N\",\"Y\")))","v":""},{"$f":"IF('Enrollment Form'!$O852<>\"Graded\",\"-\",IF(AND('Enrollment Form'!$O852=\"Graded\",'Enrollment Form'!$AO852<>\"\"),\"Y\",\"N\"))","v":"-"},{"$f":"IF($B845=\"N\",\"\",IF(OR('Enrollment Form'!$B852<>\"Subscriber\",'Enrollment Form'!$C852=\"ROC\"),\"-\",IF(AND('Enrollment Form'!$B852=\"Subscriber\",'Enrollment Form'!$C852=\"Enroll\",'Enrollment Form'!$AJ852<>\"\"),\"Y\",\"N\")))","v":""},{"$f":"IF($B845=\"N\",\"\",IF(OR('Enrollment Form'!$B852<>\"Subscriber\",'Enrollment Form'!$C852=\"ROC\"),\"-\",IF(AND('Enrollment Form'!$B852=\"Subscriber\",'Enrollment Form'!$C852=\"Enroll\",'Enrollment Form'!$AK852<>\"\"),\"Y\",\"N\")))","v":""},{"$f":"IF($B845=\"N\",\"\",IF(OR('Enrollment Form'!$B852<>\"Subscriber\",'Enrollment Form'!$C852=\"ROC\"),\"-\",IF(AND('Enrollment Form'!$B852=\"Subscriber\",'Enrollment Form'!$C852=\"Enroll\",'Enrollment Form'!$AL852<>\"\"),\"Y\",\"N\")))","v":""},{"$f":"IF($B845=\"N\",\"\",IF(OR('Enrollment Form'!$B852<>\"Subscriber\",'Enrollment Form'!$C852=\"ROC\"),\"-\",IF(AND('Enrollment Form'!$B852=\"Subscriber\",'Enrollment Form'!$C852=\"Enroll\",'Enrollment Form'!$AM852<>\"\"),\"Y\",\"N\")))","v":""},{"$f":"IF($B845=\"N\",\"\",IF(OR('Enrollment Form'!$B852<>\"Subscriber\",'Enrollment Form'!$C852=\"ROC\"),\"-\",IF(AND('Enrollment Form'!$B852=\"Subscriber\",'Enrollment Form'!$C852=\"Enroll\",'Enrollment Form'!$AN852<>\"\"),\"Y\",\"N\")))","v":""},{"$f":"IF($B845=\"N\",\"\",IF(OR('Enrollment Form'!$B852<>\"Subscriber\",'Enrollment Form'!$C852=\"ROC\"),\"-\",IF(AND('Enrollment Form'!$B852=\"Subscriber\",'Enrollment Form'!$C852=\"Enroll\",'Enrollment Form'!$AP852<>\"\"),\"Y\",\"N\")))","v":""},{"$f":"IF($B845=\"N\",\"\",IF($Q845=\"-\",\"-\",IF(AND($Q845=\"Y\",'Enrollment Form'!$AP852=\"No\"),\"-\",IF(AND($Q845=\"Y\",'Enrollment Form'!$AP852=\"Yes\",'Enrollment Form'!$AQ852<>\"\"),\"Y\",\"N\"))))","v":""},{"$f":"IF($B845=\"N\",\"\",IF(OR('Enrollment Form'!$B852<>\"Subscriber\",'Enrollment Form'!$C852=\"ROC\"),\"-\",IF(AND('Enrollment Form'!$B852=\"Subscriber\",'Enrollment Form'!$C852=\"Enroll\",'Enrollment Form'!$CO852<>\"\"),\"Y\",\"N\")))","v":""},{"$f":"IF($B845=\"N\",\"\",IF($S845=\"-\",\"-\",IF(AND($S845=\"Y\",'Enrollment Form'!$CO852=\"No\"),\"-\",IF(AND($S845=\"Y\",'Enrollment Form'!$CO852=\"Yes\",'Enrollment Form'!$CP852<>\"\"),\"Y\",\"N\"))))","v":""},{"$f":"IF(OR('Enrollment Form'!$AV852=\"Yes\",'Enrollment Form'!$AV852=\"\"),\"-\",IF(AND('Enrollment Form'!$AV852=\"No\",ISERROR(FIND(\"HMO\",VLOOKUP('Enrollment Form'!G852,'Enrollment Form'!H$11:J$1000,3,FALSE),1))=FALSE,COUNTA('Enrollment Form'!$AW852:$AZ852)=4),\"Y\",\"N\"))","v":"-"},{"$f":"IF($B845=\"N\",\"\",IF('Enrollment Form'!$B852=\"Subscriber\",\"-\",IF(COUNTA('Enrollment Form'!$BE852,'Enrollment Form'!$BG852)=2,\"Y\",\"N\")))","v":""},{"$f":"IF($B845=\"N\",\"\",IF(OR('Enrollment Form'!$AU852=\"\",'Enrollment Form'!$AU852=\"No\"),\"-\",IF(AND('Enrollment Form'!$AU852=\"Yes\",COUNTA('Enrollment Form'!$CK852)=1),\"Y\",\"N\")))","v":""},{"$f":"IF(OR('Enrollment Form'!$CK852=\"\",'Enrollment Form'!$CK852=\"No\"),\"-\",IF(COUNTA('Enrollment Form'!$CM852:$CN852)=2,\"Y\",\"N\"))","v":"-"},{"$f":"IF($B845=\"N\",\"\",IF(COUNTIF('Enrollment Form'!$CZ852:$DO852,\"Other\")=COUNTA('Enrollment Form'!$DF852,'Enrollment Form'!$DA852,'Enrollment Form'!$DK852,'Enrollment Form'!$DP852),\"Y\",\"N\"))","v":""},{"$f":"IF($B845=\"N\",\"\",IF(OR('Enrollment Form'!B852<>\"Subscriber\",'Enrollment Form'!C852=\"ROC\",COUNTIF('Enrollment Form'!AS852:AT852,\"Yes\")>=1),\"-\",IF(AND('Enrollment Form'!C852=\"Enroll\",COUNTIF('Enrollment Form'!AS852:AT852,\"No\")=2,'Enrollment Form'!AU852=\"\"),\"N\",\"Y\")))","v":""},{"$f":"IF(OR(B845=\"N\",'Enrollment Form'!B852<>\"Subscriber\",'Enrollment Form'!C852=\"ROC\",'Enrollment Form'!O852<>\"Multiple of Salary\"),\"-\",IF(COUNTA('Enrollment Form'!T852:U852)<2,\"N\",\"Y\"))","v":"-"},{"$f":"IF(B845=\"N\",\"\",IF(OR('Enrollment Form'!C852=\"ROC\",'Enrollment Form'!B852<>\"Subscriber\",'Enrollment Form'!O852=\"Waive\",'Enrollment Form'!O852=\"\"),\"-\",IF('Enrollment Form'!P852=\"\",\"N\",\"Y\")))","v":""},{"$f":"IF($B845=\"N\",\"\",IF(AND('Enrollment Form'!$C852=\"ROC\",'Enrollment Form'!$DS852<>\"\"),\"Y\",IF(AND('Enrollment Form'!$C852=\"ROC\",'Enrollment Form'!$DS852=\"\"),\"N\",IF(AND('Enrollment Form'!$C852=\"Enroll\",'Enrollment Form'!$B852=\"Subscriber\",'Enrollment Form'!$CQ852=\"No\",'Enrollment Form'!$DS852=\"\"),\"N\",IF(AND('Enrollment Form'!$C852=\"Enroll\",'Enrollment Form'!$B852=\"Subscriber\",'Enrollment Form'!$CQ852=\"Yes\"),\"-\",\"Y\")))))","v":""},{"$f":"IF($B845=\"N\",\"\",IF(AND('Enrollment Form'!$C852=\"ROC\",'Enrollment Form'!$DT852<>\"\"),\"Y\",IF(AND('Enrollment Form'!$C852=\"ROC\",'Enrollment Form'!$DT852=\"\"),\"N\",IF(AND('Enrollment Form'!$C852=\"Enroll\",'Enrollment Form'!$B852=\"Subscriber\",'Enrollment Form'!$CQ852=\"No\",'Enrollment Form'!$DT852=\"\"),\"N\",IF(AND('Enrollment Form'!$C852=\"Enroll\",'Enrollment Form'!$B852=\"Subscriber\",'Enrollment Form'!$CQ852=\"Yes\"),\"-\",\"Y\")))))","v":""},{"$f":"IF('Enrollment Form'!AH852=\"\",\"\",IF(ISERROR(SEARCH(\".\",'Enrollment Form'!AH852,SEARCH(\"@\",'Enrollment Form'!AH852))),\"N\",\"Y\"))","v":""},{"$f":"IF(OR($B845=\"N\",'Enrollment Form'!$G852=\"\"),\"\",IF('Enrollment Form'!$B852<>\"Subscriber\",\"-\",IF(COUNTIF('Enrollment Form'!$AS852:$AT852,\"Yes\")=2,\"N\",\"Y\")))","v":""},{"$f":"IF(OR('Enrollment Form'!$CC852=\"\",'Enrollment Form'!$CC852=\"No\"),\"-\",IF(AND('Enrollment Form'!$CC852=\"Yes\",'Enrollment Form'!$CD852=\"\"),\"N\",\"Y\"))","v":"-"},{"$f":"IF(OR('Enrollment Form'!$CE852=\"\",'Enrollment Form'!$CE852=\"No\"),\"-\",IF(AND('Enrollment Form'!$CE852=\"Yes\",'Enrollment Form'!$CF852=\"\"),\"N\",\"Y\"))","v":"-"},{"$f":"IF(OR('Enrollment Form'!$CG852=\"\",'Enrollment Form'!$CG852=\"No\"),\"-\",IF(AND('Enrollment Form'!$CG852=\"Yes\",'Enrollment Form'!$CH852=\"\"),\"N\",\"Y\"))","v":"-"},{"$f":"IF(OR('Enrollment Form'!$CG852=\"\",'Enrollment Form'!$CG852=\"No\"),\"-\",IF(AND('Enrollment Form'!$CG852=\"Yes\",'Enrollment Form'!$CI852=\"\"),\"N\",\"Y\"))","v":"-"},{"$f":"IF('Enrollment Form'!B852<>\"Subscriber\",\"-\",IF(AND('Enrollment Form'!B852=\"Subscriber\",'Enrollment Form'!C852=\"Enroll\",'Enrollment Form'!AA852=\"\"),\"N\",\"Y\"))","v":"-"},{"$f":"IF(OR('Enrollment Form'!B852=\"Subscriber\",'Enrollment Form'!B852=\"\"),\"-\",IF('Enrollment Form'!BI852=\"\",\"N\",\"Y\"))","v":"-"},{"$f":"IF('Enrollment Form'!B852<>\"Subscriber\",\"-\",IF(AND('Enrollment Form'!B852=\"Subscriber\",'Enrollment Form'!G852=\"\"),\"N\",\"Y\"))","v":"-"},{"$f":"IF('Enrollment Form'!A852=\"\",\"\",IF('Enrollment Form'!B852=\"Subscriber\",\"-\",IF(AND('Enrollment Form'!B852<>\"Subscriber\",'Enrollment Form'!G852='Enrollment Form'!H852),\"N\",\"Y\")))","v":""},0]
[853,{"$f":"IF('Enrollment Form'!$A853<>\"\",\"Y\",\"N\")","v":"N"},{"$f":"IF(AND('Enrollment Form'!$B853=\"\",'Enrollment Form'!$C853<>\"\"),\"N\",IF($B846=\"N\",\"\",\"Y\"))","v":""},{"$f":"IF(OR($B846=\"N\",'Enrollment Form'!G853=\"\"),\"\",IF('Enrollment Form'!$B853<>\"Subscriber\",\"\",IF('Enrollment Form'!$G853='Enrollment Form'!$H853,\"Y\",\"N\")))","v":""},{"$f":"IF($B846=\"N\",\"\",IF(AND(COUNTIFS('Enrollment Form'!$H$11:$H$1000,'Enrollment Form'!$H853,'Enrollment Form'!$B$11:$B$1000,'Enrollment Form'!$B853)>1,'Enrollment Form'!$H853<>\"\"),\"N\",\"Y\"))","v":""},{"$f":"IF($B846=\"N\",\"\",IF(LEN('Enrollment Form'!$Y853)=0,\"\",IF(LEN('Enrollment Form'!$Y853)<>5,\"N\",\"Y\")))","v":""},{"$f":"IF($B846=\"N\",\"\",IF(LEN('Enrollment Form'!$AD853=0),\"\",IF(LEN('Enrollment Form'!$AD853)<>5,\"N\",\"Y\")))","v":""},{"$f":"IF($B846=\"N\",\"\",IF(LEN('Enrollment Form'!$BL853=0),\"\",IF(LEN('Enrollment Form'!$BL853)<>5,\"N\",\"Y\")))","v":""},{"$f":"IF($B846=\"N\",\"\",IF(LEN('Enrollment Form'!$AE853)=0,\"\",IF(LEN('Enrollment Form'!$AE853)<>10,\"N\",\"Y\")))","v":""},{"$f":"IF($B846=\"N\",\"\",IF(LEN('Enrollment Form'!$AF853)=0,\"\",IF(LEN('Enrollment Form'!$AF853)<>10,\"N\",\"Y\")))","v":""},{"$f":"IF('Enrollment Form'!$O853<>\"Graded\",\"-\",IF(AND('Enrollment Form'!$O853=\"Graded\",'Enrollment Form'!$AO853<>\"\"),\"Y\",\"N\"))","v":"-"},{"$f":"IF($B846=\"N\",\"\",IF(OR('Enrollment Form'!$B853<>\"Subscriber\",'Enrollment Form'!$C853=\"ROC\"),\"-\",IF(AND('Enrollment Form'!$B853=\"Subscriber\",'Enrollment Form'!$C853=\"Enroll\",'Enrollment Form'!$AJ853<>\"\"),\"Y\",\"N\")))","v":""},{"$f":"IF($B846=\"N\",\"\",IF(OR('Enrollment Form'!$B853<>\"Subscriber\",'Enrollment Form'!$C853=\"ROC\"),\"-\",IF(AND('Enrollment Form'!$B853=\"Subscriber\",'Enrollment Form'!$C853=\"Enroll\",'Enrollment Form'!$AK853<>\"\"),\"Y\",\"N\")))","v":""},{"$f":"IF($B846=\"N\",\"\",IF(OR('Enrollment Form'!$B853<>\"Subscriber\",'Enrollment Form'!$C853=\"ROC\"),\"-\",IF(AND('Enrollment Form'!$B853=\"Subscriber\",'Enrollment Form'!$C853=\"Enroll\",'Enrollment Form'!$AL853<>\"\"),\"Y\",\"N\")))","v":""},{"$f":"IF($B846=\"N\",\"\",IF(OR('Enrollment Form'!$B853<>\"Subscriber\",'Enrollment Form'!$C853=\"ROC\"),\"-\",IF(AND('Enrollment Form'!$B853=\"Subscriber\",'Enrollment Form'!$C853=\"Enroll\",'Enrollment Form'!$AM853<>\"\"),\"Y\",\"N\")))","v":""},{"$f":"IF($B846=\"N\",\"\",IF(OR('Enrollment Form'!$B853<>\"Subscriber\",'Enrollment Form'!$C853=\"ROC\"),\"-\",IF(AND('Enrollment Form'!$B853=\"Subscriber\",'Enrollment Form'!$C853=\"Enroll\",'Enrollment Form'!$AN853<>\"\"),\"Y\",\"N\")))","v":""},{"$f":"IF($B846=\"N\",\"\",IF(OR('Enrollment Form'!$B853<>\"Subscriber\",'Enrollment Form'!$C853=\"ROC\"),\"-\",IF(AND('Enrollment Form'!$B853=\"Subscriber\",'Enrollment Form'!$C853=\"Enroll\",'Enrollment Form'!$AP853<>\"\"),\"Y\",\"N\")))","v":""},{"$f":"IF($B846=\"N\",\"\",IF($Q846=\"-\",\"-\",IF(AND($Q846=\"Y\",'Enrollment Form'!$AP853=\"No\"),\"-\",IF(AND($Q846=\"Y\",'Enrollment Form'!$AP853=\"Yes\",'Enrollment Form'!$AQ853<>\"\"),\"Y\",\"N\"))))","v":""},{"$f":"IF($B846=\"N\",\"\",IF(OR('Enrollment Form'!$B853<>\"Subscriber\",'Enrollment Form'!$C853=\"ROC\"),\"-\",IF(AND('Enrollment Form'!$B853=\"Subscriber\",'Enrollment Form'!$C853=\"Enroll\",'Enrollment Form'!$CO853<>\"\"),\"Y\",\"N\")))","v":""},{"$f":"IF($B846=\"N\",\"\",IF($S846=\"-\",\"-\",IF(AND($S846=\"Y\",'Enrollment Form'!$CO853=\"No\"),\"-\",IF(AND($S846=\"Y\",'Enrollment Form'!$CO853=\"Yes\",'Enrollment Form'!$CP853<>\"\"),\"Y\",\"N\"))))","v":""},{"$f":"IF(OR('Enrollment Form'!$AV853=\"Yes\",'Enrollment Form'!$AV853=\"\"),\"-\",IF(AND('Enrollment Form'!$AV853=\"No\",ISERROR(FIND(\"HMO\",VLOOKUP('Enrollment Form'!G853,'Enrollment Form'!H$11:J$1000,3,FALSE),1))=FALSE,COUNTA('Enrollment Form'!$AW853:$AZ853)=4),\"Y\",\"N\"))","v":"-"},{"$f":"IF($B846=\"N\",\"\",IF('Enrollment Form'!$B853=\"Subscriber\",\"-\",IF(COUNTA('Enrollment Form'!$BE853,'Enrollment Form'!$BG853)=2,\"Y\",\"N\")))","v":""},{"$f":"IF($B846=\"N\",\"\",IF(OR('Enrollment Form'!$AU853=\"\",'Enrollment Form'!$AU853=\"No\"),\"-\",IF(AND('Enrollment Form'!$AU853=\"Yes\",COUNTA('Enrollment Form'!$CK853)=1),\"Y\",\"N\")))","v":""},{"$f":"IF(OR('Enrollment Form'!$CK853=\"\",'Enrollment Form'!$CK853=\"No\"),\"-\",IF(COUNTA('Enrollment Form'!$CM853:$CN853)=2,\"Y\",\"N\"))","v":"-"},{"$f":"IF($B846=\"N\",\"\",IF(COUNTIF('Enrollment Form'!$CZ853:$DO853,\"Other\")=COUNTA('Enrollment Form'!$DF853,'Enrollment Form'!$DA853,'Enrollment Form'!$DK853,'Enrollment Form'!$DP853),\"Y\",\"N\"))","v":""},{"$f":"IF($B846=\"N\",\"\",IF(OR('Enrollment Form'!B853<>\"Subscriber\",'Enrollment Form'!C853=\"ROC\",COUNTIF('Enrollment Form'!AS853:AT853,\"Yes\")>=1),\"-\",IF(AND('Enrollment Form'!C853=\"Enroll\",COUNTIF('Enrollment Form'!AS853:AT853,\"No\")=2,'Enrollment Form'!AU853=\"\"),\"N\",\"Y\")))","v":""},{"$f":"IF(OR(B846=\"N\",'Enrollment Form'!B853<>\"Subscriber\",'Enrollment Form'!C853=\"ROC\",'Enrollment Form'!O853<>\"Multiple of Salary\"),\"-\",IF(COUNTA('Enrollment Form'!T853:U853)<2,\"N\",\"Y\"))","v":"-"},{"$f":"IF(B846=\"N\",\"\",IF(OR('Enrollment Form'!C853=\"ROC\",'Enrollment Form'!B853<>\"Subscriber\",'Enrollment Form'!O853=\"Waive\",'Enrollment Form'!O853=\"\"),\"-\",IF('Enrollment Form'!P853=\"\",\"N\",\"Y\")))","v":""},{"$f":"IF($B846=\"N\",\"\",IF(AND('Enrollment Form'!$C853=\"ROC\",'Enrollment Form'!$DS853<>\"\"),\"Y\",IF(AND('Enrollment Form'!$C853=\"ROC\",'Enrollment Form'!$DS853=\"\"),\"N\",IF(AND('Enrollment Form'!$C853=\"Enroll\",'Enrollment Form'!$B853=\"Subscriber\",'Enrollment Form'!$CQ853=\"No\",'Enrollment Form'!$DS853=\"\"),\"N\",IF(AND('Enrollment Form'!$C853=\"Enroll\",'Enrollment Form'!$B853=\"Subscriber\",'Enrollment Form'!$CQ853=\"Yes\"),\"-\",\"Y\")))))","v":""},{"$f":"IF($B846=\"N\",\"\",IF(AND('Enrollment Form'!$C853=\"ROC\",'Enrollment Form'!$DT853<>\"\"),\"Y\",IF(AND('Enrollment Form'!$C853=\"ROC\",'Enrollment Form'!$DT853=\"\"),\"N\",IF(AND('Enrollment Form'!$C853=\"Enroll\",'Enrollment Form'!$B853=\"Subscriber\",'Enrollment Form'!$CQ853=\"No\",'Enrollment Form'!$DT853=\"\"),\"N\",IF(AND('Enrollment Form'!$C853=\"Enroll\",'Enrollment Form'!$B853=\"Subscriber\",'Enrollment Form'!$CQ853=\"Yes\"),\"-\",\"Y\")))))","v":""},{"$f":"IF('Enrollment Form'!AH853=\"\",\"\",IF(ISERROR(SEARCH(\".\",'Enrollment Form'!AH853,SEARCH(\"@\",'Enrollment Form'!AH853))),\"N\",\"Y\"))","v":""},{"$f":"IF(OR($B846=\"N\",'Enrollment Form'!$G853=\"\"),\"\",IF('Enrollment Form'!$B853<>\"Subscriber\",\"-\",IF(COUNTIF('Enrollment Form'!$AS853:$AT853,\"Yes\")=2,\"N\",\"Y\")))","v":""},{"$f":"IF(OR('Enrollment Form'!$CC853=\"\",'Enrollment Form'!$CC853=\"No\"),\"-\",IF(AND('Enrollment Form'!$CC853=\"Yes\",'Enrollment Form'!$CD853=\"\"),\"N\",\"Y\"))","v":"-"},{"$f":"IF(OR('Enrollment Form'!$CE853=\"\",'Enrollment Form'!$CE853=\"No\"),\"-\",IF(AND('Enrollment Form'!$CE853=\"Yes\",'Enrollment Form'!$CF853=\"\"),\"N\",\"Y\"))","v":"-"},{"$f":"IF(OR('Enrollment Form'!$CG853=\"\",'Enrollment Form'!$CG853=\"No\"),\"-\",IF(AND('Enrollment Form'!$CG853=\"Yes\",'Enrollment Form'!$CH853=\"\"),\"N\",\"Y\"))","v":"-"},{"$f":"IF(OR('Enrollment Form'!$CG853=\"\",'Enrollment Form'!$CG853=\"No\"),\"-\",IF(AND('Enrollment Form'!$CG853=\"Yes\",'Enrollment Form'!$CI853=\"\"),\"N\",\"Y\"))","v":"-"},{"$f":"IF('Enrollment Form'!B853<>\"Subscriber\",\"-\",IF(AND('Enrollment Form'!B853=\"Subscriber\",'Enrollment Form'!C853=\"Enroll\",'Enrollment Form'!AA853=\"\"),\"N\",\"Y\"))","v":"-"},{"$f":"IF(OR('Enrollment Form'!B853=\"Subscriber\",'Enrollment Form'!B853=\"\"),\"-\",IF('Enrollment Form'!BI853=\"\",\"N\",\"Y\"))","v":"-"},{"$f":"IF('Enrollment Form'!B853<>\"Subscriber\",\"-\",IF(AND('Enrollment Form'!B853=\"Subscriber\",'Enrollment Form'!G853=\"\"),\"N\",\"Y\"))","v":"-"},{"$f":"IF('Enrollment Form'!A853=\"\",\"\",IF('Enrollment Form'!B853=\"Subscriber\",\"-\",IF(AND('Enrollment Form'!B853<>\"Subscriber\",'Enrollment Form'!G853='Enrollment Form'!H853),\"N\",\"Y\")))","v":""},0]
[854,{"$f":"IF('Enrollment Form'!$A854<>\"\",\"Y\",\"N\")","v":"N"},{"$f":"IF(AND('Enrollment Form'!$B854=\"\",'Enrollment Form'!$C854<>\"\"),\"N\",IF($B847=\"N\",\"\",\"Y\"))","v":""},{"$f":"IF(OR($B847=\"N\",'Enrollment Form'!G854=\"\"),\"\",IF('Enrollment Form'!$B854<>\"Subscriber\",\"\",IF('Enrollment Form'!$G854='Enrollment Form'!$H854,\"Y\",\"N\")))","v":""},{"$f":"IF($B847=\"N\",\"\",IF(AND(COUNTIFS('Enrollment Form'!$H$11:$H$1000,'Enrollment Form'!$H854,'Enrollment Form'!$B$11:$B$1000,'Enrollment Form'!$B854)>1,'Enrollment Form'!$H854<>\"\"),\"N\",\"Y\"))","v":""},{"$f":"IF($B847=\"N\",\"\",IF(LEN('Enrollment Form'!$Y854)=0,\"\",IF(LEN('Enrollment Form'!$Y854)<>5,\"N\",\"Y\")))","v":""},{"$f":"IF($B847=\"N\",\"\",IF(LEN('Enrollment Form'!$AD854=0),\"\",IF(LEN('Enrollment Form'!$AD854)<>5,\"N\",\"Y\")))","v":""},{"$f":"IF($B847=\"N\",\"\",IF(LEN('Enrollment Form'!$BL854=0),\"\",IF(LEN('Enrollment Form'!$BL854)<>5,\"N\",\"Y\")))","v":""},{"$f":"IF($B847=\"N\",\"\",IF(LEN('Enrollment Form'!$AE854)=0,\"\",IF(LEN('Enrollment Form'!$AE854)<>10,\"N\",\"Y\")))","v":""},{"$f":"IF($B847=\"N\",\"\",IF(LEN('Enrollment Form'!$AF854)=0,\"\",IF(LEN('Enrollment Form'!$AF854)<>10,\"N\",\"Y\")))","v":""},{"$f":"IF('Enrollment Form'!$O854<>\"Graded\",\"-\",IF(AND('Enrollment Form'!$O854=\"Graded\",'Enrollment Form'!$AO854<>\"\"),\"Y\",\"N\"))","v":"-"},{"$f":"IF($B847=\"N\",\"\",IF(OR('Enrollment Form'!$B854<>\"Subscriber\",'Enrollment Form'!$C854=\"ROC\"),\"-\",IF(AND('Enrollment Form'!$B854=\"Subscriber\",'Enrollment Form'!$C854=\"Enroll\",'Enrollment Form'!$AJ854<>\"\"),\"Y\",\"N\")))","v":""},{"$f":"IF($B847=\"N\",\"\",IF(OR('Enrollment Form'!$B854<>\"Subscriber\",'Enrollment Form'!$C854=\"ROC\"),\"-\",IF(AND('Enrollment Form'!$B854=\"Subscriber\",'Enrollment Form'!$C854=\"Enroll\",'Enrollment Form'!$AK854<>\"\"),\"Y\",\"N\")))","v":""},{"$f":"IF($B847=\"N\",\"\",IF(OR('Enrollment Form'!$B854<>\"Subscriber\",'Enrollment Form'!$C854=\"ROC\"),\"-\",IF(AND('Enrollment Form'!$B854=\"Subscriber\",'Enrollment Form'!$C854=\"Enroll\",'Enrollment Form'!$AL854<>\"\"),\"Y\",\"N\")))","v":""},{"$f":"IF($B847=\"N\",\"\",IF(OR('Enrollment Form'!$B854<>\"Subscriber\",'Enrollment Form'!$C854=\"ROC\"),\"-\",IF(AND('Enrollment Form'!$B854=\"Subscriber\",'Enrollment Form'!$C854=\"Enroll\",'Enrollment Form'!$AM854<>\"\"),\"Y\",\"N\")))","v":""},{"$f":"IF($B847=\"N\",\"\",IF(OR('Enrollment Form'!$B854<>\"Subscriber\",'Enrollment Form'!$C854=\"ROC\"),\"-\",IF(AND('Enrollment Form'!$B854=\"Subscriber\",'Enrollment Form'!$C854=\"Enroll\",'Enrollment Form'!$AN854<>\"\"),\"Y\",\"N\")))","v":""},{"$f":"IF($B847=\"N\",\"\",IF(OR('Enrollment Form'!$B854<>\"Subscriber\",'Enrollment Form'!$C854=\"ROC\"),\"-\",IF(AND('Enrollment Form'!$B854=\"Subscriber\",'Enrollment Form'!$C854=\"Enroll\",'Enrollment Form'!$AP854<>\"\"),\"Y\",\"N\")))","v":""},{"$f":"IF($B847=\"N\",\"\",IF($Q847=\"-\",\"-\",IF(AND($Q847=\"Y\",'Enrollment Form'!$AP854=\"No\"),\"-\",IF(AND($Q847=\"Y\",'Enrollment Form'!$AP854=\"Yes\",'Enrollment Form'!$AQ854<>\"\"),\"Y\",\"N\"))))","v":""},{"$f":"IF($B847=\"N\",\"\",IF(OR('Enrollment Form'!$B854<>\"Subscriber\",'Enrollment Form'!$C854=\"ROC\"),\"-\",IF(AND('Enrollment Form'!$B854=\"Subscriber\",'Enrollment Form'!$C854=\"Enroll\",'Enrollment Form'!$CO854<>\"\"),\"Y\",\"N\")))","v":""},{"$f":"IF($B847=\"N\",\"\",IF($S847=\"-\",\"-\",IF(AND($S847=\"Y\",'Enrollment Form'!$CO854=\"No\"),\"-\",IF(AND($S847=\"Y\",'Enrollment Form'!$CO854=\"Yes\",'Enrollment Form'!$CP854<>\"\"),\"Y\",\"N\"))))","v":""},{"$f":"IF(OR('Enrollment Form'!$AV854=\"Yes\",'Enrollment Form'!$AV854=\"\"),\"-\",IF(AND('Enrollment Form'!$AV854=\"No\",ISERROR(FIND(\"HMO\",VLOOKUP('Enrollment Form'!G854,'Enrollment Form'!H$11:J$1000,3,FALSE),1))=FALSE,COUNTA('Enrollment Form'!$AW854:$AZ854)=4),\"Y\",\"N\"))","v":"-"},{"$f":"IF($B847=\"N\",\"\",IF('Enrollment Form'!$B854=\"Subscriber\",\"-\",IF(COUNTA('Enrollment Form'!$BE854,'Enrollment Form'!$BG854)=2,\"Y\",\"N\")))","v":""},{"$f":"IF($B847=\"N\",\"\",IF(OR('Enrollment Form'!$AU854=\"\",'Enrollment Form'!$AU854=\"No\"),\"-\",IF(AND('Enrollment Form'!$AU854=\"Yes\",COUNTA('Enrollment Form'!$CK854)=1),\"Y\",\"N\")))","v":""},{"$f":"IF(OR('Enrollment Form'!$CK854=\"\",'Enrollment Form'!$CK854=\"No\"),\"-\",IF(COUNTA('Enrollment Form'!$CM854:$CN854)=2,\"Y\",\"N\"))","v":"-"},{"$f":"IF($B847=\"N\",\"\",IF(COUNTIF('Enrollment Form'!$CZ854:$DO854,\"Other\")=COUNTA('Enrollment Form'!$DF854,'Enrollment Form'!$DA854,'Enrollment Form'!$DK854,'Enrollment Form'!$DP854),\"Y\",\"N\"))","v":""},{"$f":"IF($B847=\"N\",\"\",IF(OR('Enrollment Form'!B854<>\"Subscriber\",'Enrollment Form'!C854=\"ROC\",COUNTIF('Enrollment Form'!AS854:AT854,\"Yes\")>=1),\"-\",IF(AND('Enrollment Form'!C854=\"Enroll\",COUNTIF('Enrollment Form'!AS854:AT854,\"No\")=2,'Enrollment Form'!AU854=\"\"),\"N\",\"Y\")))","v":""},{"$f":"IF(OR(B847=\"N\",'Enrollment Form'!B854<>\"Subscriber\",'Enrollment Form'!C854=\"ROC\",'Enrollment Form'!O854<>\"Multiple of Salary\"),\"-\",IF(COUNTA('Enrollment Form'!T854:U854)<2,\"N\",\"Y\"))","v":"-"},{"$f":"IF(B847=\"N\",\"\",IF(OR('Enrollment Form'!C854=\"ROC\",'Enrollment Form'!B854<>\"Subscriber\",'Enrollment Form'!O854=\"Waive\",'Enrollment Form'!O854=\"\"),\"-\",IF('Enrollment Form'!P854=\"\",\"N\",\"Y\")))","v":""},{"$f":"IF($B847=\"N\",\"\",IF(AND('Enrollment Form'!$C854=\"ROC\",'Enrollment Form'!$DS854<>\"\"),\"Y\",IF(AND('Enrollment Form'!$C854=\"ROC\",'Enrollment Form'!$DS854=\"\"),\"N\",IF(AND('Enrollment Form'!$C854=\"Enroll\",'Enrollment Form'!$B854=\"Subscriber\",'Enrollment Form'!$CQ854=\"No\",'Enrollment Form'!$DS854=\"\"),\"N\",IF(AND('Enrollment Form'!$C854=\"Enroll\",'Enrollment Form'!$B854=\"Subscriber\",'Enrollment Form'!$CQ854=\"Yes\"),\"-\",\"Y\")))))","v":""},{"$f":"IF($B847=\"N\",\"\",IF(AND('Enrollment Form'!$C854=\"ROC\",'Enrollment Form'!$DT854<>\"\"),\"Y\",IF(AND('Enrollment Form'!$C854=\"ROC\",'Enrollment Form'!$DT854=\"\"),\"N\",IF(AND('Enrollment Form'!$C854=\"Enroll\",'Enrollment Form'!$B854=\"Subscriber\",'Enrollment Form'!$CQ854=\"No\",'Enrollment Form'!$DT854=\"\"),\"N\",IF(AND('Enrollment Form'!$C854=\"Enroll\",'Enrollment Form'!$B854=\"Subscriber\",'Enrollment Form'!$CQ854=\"Yes\"),\"-\",\"Y\")))))","v":""},{"$f":"IF('Enrollment Form'!AH854=\"\",\"\",IF(ISERROR(SEARCH(\".\",'Enrollment Form'!AH854,SEARCH(\"@\",'Enrollment Form'!AH854))),\"N\",\"Y\"))","v":""},{"$f":"IF(OR($B847=\"N\",'Enrollment Form'!$G854=\"\"),\"\",IF('Enrollment Form'!$B854<>\"Subscriber\",\"-\",IF(COUNTIF('Enrollment Form'!$AS854:$AT854,\"Yes\")=2,\"N\",\"Y\")))","v":""},{"$f":"IF(OR('Enrollment Form'!$CC854=\"\",'Enrollment Form'!$CC854=\"No\"),\"-\",IF(AND('Enrollment Form'!$CC854=\"Yes\",'Enrollment Form'!$CD854=\"\"),\"N\",\"Y\"))","v":"-"},{"$f":"IF(OR('Enrollment Form'!$CE854=\"\",'Enrollment Form'!$CE854=\"No\"),\"-\",IF(AND('Enrollment Form'!$CE854=\"Yes\",'Enrollment Form'!$CF854=\"\"),\"N\",\"Y\"))","v":"-"},{"$f":"IF(OR('Enrollment Form'!$CG854=\"\",'Enrollment Form'!$CG854=\"No\"),\"-\",IF(AND('Enrollment Form'!$CG854=\"Yes\",'Enrollment Form'!$CH854=\"\"),\"N\",\"Y\"))","v":"-"},{"$f":"IF(OR('Enrollment Form'!$CG854=\"\",'Enrollment Form'!$CG854=\"No\"),\"-\",IF(AND('Enrollment Form'!$CG854=\"Yes\",'Enrollment Form'!$CI854=\"\"),\"N\",\"Y\"))","v":"-"},{"$f":"IF('Enrollment Form'!B854<>\"Subscriber\",\"-\",IF(AND('Enrollment Form'!B854=\"Subscriber\",'Enrollment Form'!C854=\"Enroll\",'Enrollment Form'!AA854=\"\"),\"N\",\"Y\"))","v":"-"},{"$f":"IF(OR('Enrollment Form'!B854=\"Subscriber\",'Enrollment Form'!B854=\"\"),\"-\",IF('Enrollment Form'!BI854=\"\",\"N\",\"Y\"))","v":"-"},{"$f":"IF('Enrollment Form'!B854<>\"Subscriber\",\"-\",IF(AND('Enrollment Form'!B854=\"Subscriber\",'Enrollment Form'!G854=\"\"),\"N\",\"Y\"))","v":"-"},{"$f":"IF('Enrollment Form'!A854=\"\",\"\",IF('Enrollment Form'!B854=\"Subscriber\",\"-\",IF(AND('Enrollment Form'!B854<>\"Subscriber\",'Enrollment Form'!G854='Enrollment Form'!H854),\"N\",\"Y\")))","v":""},0]
[855,{"$f":"IF('Enrollment Form'!$A855<>\"\",\"Y\",\"N\")","v":"N"},{"$f":"IF(AND('Enrollment Form'!$B855=\"\",'Enrollment Form'!$C855<>\"\"),\"N\",IF($B848=\"N\",\"\",\"Y\"))","v":""},{"$f":"IF(OR($B848=\"N\",'Enrollment Form'!G855=\"\"),\"\",IF('Enrollment Form'!$B855<>\"Subscriber\",\"\",IF('Enrollment Form'!$G855='Enrollment Form'!$H855,\"Y\",\"N\")))","v":""},{"$f":"IF($B848=\"N\",\"\",IF(AND(COUNTIFS('Enrollment Form'!$H$11:$H$1000,'Enrollment Form'!$H855,'Enrollment Form'!$B$11:$B$1000,'Enrollment Form'!$B855)>1,'Enrollment Form'!$H855<>\"\"),\"N\",\"Y\"))","v":""},{"$f":"IF($B848=\"N\",\"\",IF(LEN('Enrollment Form'!$Y855)=0,\"\",IF(LEN('Enrollment Form'!$Y855)<>5,\"N\",\"Y\")))","v":""},{"$f":"IF($B848=\"N\",\"\",IF(LEN('Enrollment Form'!$AD855=0),\"\",IF(LEN('Enrollment Form'!$AD855)<>5,\"N\",\"Y\")))","v":""},{"$f":"IF($B848=\"N\",\"\",IF(LEN('Enrollment Form'!$BL855=0),\"\",IF(LEN('Enrollment Form'!$BL855)<>5,\"N\",\"Y\")))","v":""},{"$f":"IF($B848=\"N\",\"\",IF(LEN('Enrollment Form'!$AE855)=0,\"\",IF(LEN('Enrollment Form'!$AE855)<>10,\"N\",\"Y\")))","v":""},{"$f":"IF($B848=\"N\",\"\",IF(LEN('Enrollment Form'!$AF855)=0,\"\",IF(LEN('Enrollment Form'!$AF855)<>10,\"N\",\"Y\")))","v":""},{"$f":"IF('Enrollment Form'!$O855<>\"Graded\",\"-\",IF(AND('Enrollment Form'!$O855=\"Graded\",'Enrollment Form'!$AO855<>\"\"),\"Y\",\"N\"))","v":"-"},{"$f":"IF($B848=\"N\",\"\",IF(OR('Enrollment Form'!$B855<>\"Subscriber\",'Enrollment Form'!$C855=\"ROC\"),\"-\",IF(AND('Enrollment Form'!$B855=\"Subscriber\",'Enrollment Form'!$C855=\"Enroll\",'Enrollment Form'!$AJ855<>\"\"),\"Y\",\"N\")))","v":""},{"$f":"IF($B848=\"N\",\"\",IF(OR('Enrollment Form'!$B855<>\"Subscriber\",'Enrollment Form'!$C855=\"ROC\"),\"-\",IF(AND('Enrollment Form'!$B855=\"Subscriber\",'Enrollment Form'!$C855=\"Enroll\",'Enrollment Form'!$AK855<>\"\"),\"Y\",\"N\")))","v":""},{"$f":"IF($B848=\"N\",\"\",IF(OR('Enrollment Form'!$B855<>\"Subscriber\",'Enrollment Form'!$C855=\"ROC\"),\"-\",IF(AND('Enrollment Form'!$B855=\"Subscriber\",'Enrollment Form'!$C855=\"Enroll\",'Enrollment Form'!$AL855<>\"\"),\"Y\",\"N\")))","v":""},{"$f":"IF($B848=\"N\",\"\",IF(OR('Enrollment Form'!$B855<>\"Subscriber\",'Enrollment Form'!$C855=\"ROC\"),\"-\",IF(AND('Enrollment Form'!$B855=\"Subscriber\",'Enrollment Form'!$C855=\"Enroll\",'Enrollment Form'!$AM855<>\"\"),\"Y\",\"N\")))","v":""},{"$f":"IF($B848=\"N\",\"\",IF(OR('Enrollment Form'!$B855<>\"Subscriber\",'Enrollment Form'!$C855=\"ROC\"),\"-\",IF(AND('Enrollment Form'!$B855=\"Subscriber\",'Enrollment Form'!$C855=\"Enroll\",'Enrollment Form'!$AN855<>\"\"),\"Y\",\"N\")))","v":""},{"$f":"IF($B848=\"N\",\"\",IF(OR('Enrollment Form'!$B855<>\"Subscriber\",'Enrollment Form'!$C855=\"ROC\"),\"-\",IF(AND('Enrollment Form'!$B855=\"Subscriber\",'Enrollment Form'!$C855=\"Enroll\",'Enrollment Form'!$AP855<>\"\"),\"Y\",\"N\")))","v":""},{"$f":"IF($B848=\"N\",\"\",IF($Q848=\"-\",\"-\",IF(AND($Q848=\"Y\",'Enrollment Form'!$AP855=\"No\"),\"-\",IF(AND($Q848=\"Y\",'Enrollment Form'!$AP855=\"Yes\",'Enrollment Form'!$AQ855<>\"\"),\"Y\",\"N\"))))","v":""},{"$f":"IF($B848=\"N\",\"\",IF(OR('Enrollment Form'!$B855<>\"Subscriber\",'Enrollment Form'!$C855=\"ROC\"),\"-\",IF(AND('Enrollment Form'!$B855=\"Subscriber\",'Enrollment Form'!$C855=\"Enroll\",'Enrollment Form'!$CO855<>\"\"),\"Y\",\"N\")))","v":""},{"$f":"IF($B848=\"N\",\"\",IF($S848=\"-\",\"-\",IF(AND($S848=\"Y\",'Enrollment Form'!$CO855=\"No\"),\"-\",IF(AND($S848=\"Y\",'Enrollment Form'!$CO855=\"Yes\",'Enrollment Form'!$CP855<>\"\"),\"Y\",\"N\"))))","v":""},{"$f":"IF(OR('Enrollment Form'!$AV855=\"Yes\",'Enrollment Form'!$AV855=\"\"),\"-\",IF(AND('Enrollment Form'!$AV855=\"No\",ISERROR(FIND(\"HMO\",VLOOKUP('Enrollment Form'!G855,'Enrollment Form'!H$11:J$1000,3,FALSE),1))=FALSE,COUNTA('Enrollment Form'!$AW855:$AZ855)=4),\"Y\",\"N\"))","v":"-"},{"$f":"IF($B848=\"N\",\"\",IF('Enrollment Form'!$B855=\"Subscriber\",\"-\",IF(COUNTA('Enrollment Form'!$BE855,'Enrollment Form'!$BG855)=2,\"Y\",\"N\")))","v":""},{"$f":"IF($B848=\"N\",\"\",IF(OR('Enrollment Form'!$AU855=\"\",'Enrollment Form'!$AU855=\"No\"),\"-\",IF(AND('Enrollment Form'!$AU855=\"Yes\",COUNTA('Enrollment Form'!$CK855)=1),\"Y\",\"N\")))","v":""},{"$f":"IF(OR('Enrollment Form'!$CK855=\"\",'Enrollment Form'!$CK855=\"No\"),\"-\",IF(COUNTA('Enrollment Form'!$CM855:$CN855)=2,\"Y\",\"N\"))","v":"-"},{"$f":"IF($B848=\"N\",\"\",IF(COUNTIF('Enrollment Form'!$CZ855:$DO855,\"Other\")=COUNTA('Enrollment Form'!$DF855,'Enrollment Form'!$DA855,'Enrollment Form'!$DK855,'Enrollment Form'!$DP855),\"Y\",\"N\"))","v":""},{"$f":"IF($B848=\"N\",\"\",IF(OR('Enrollment Form'!B855<>\"Subscriber\",'Enrollment Form'!C855=\"ROC\",COUNTIF('Enrollment Form'!AS855:AT855,\"Yes\")>=1),\"-\",IF(AND('Enrollment Form'!C855=\"Enroll\",COUNTIF('Enrollment Form'!AS855:AT855,\"No\")=2,'Enrollment Form'!AU855=\"\"),\"N\",\"Y\")))","v":""},{"$f":"IF(OR(B848=\"N\",'Enrollment Form'!B855<>\"Subscriber\",'Enrollment Form'!C855=\"ROC\",'Enrollment Form'!O855<>\"Multiple of Salary\"),\"-\",IF(COUNTA('Enrollment Form'!T855:U855)<2,\"N\",\"Y\"))","v":"-"},{"$f":"IF(B848=\"N\",\"\",IF(OR('Enrollment Form'!C855=\"ROC\",'Enrollment Form'!B855<>\"Subscriber\",'Enrollment Form'!O855=\"Waive\",'Enrollment Form'!O855=\"\"),\"-\",IF('Enrollment Form'!P855=\"\",\"N\",\"Y\")))","v":""},{"$f":"IF($B848=\"N\",\"\",IF(AND('Enrollment Form'!$C855=\"ROC\",'Enrollment Form'!$DS855<>\"\"),\"Y\",IF(AND('Enrollment Form'!$C855=\"ROC\",'Enrollment Form'!$DS855=\"\"),\"N\",IF(AND('Enrollment Form'!$C855=\"Enroll\",'Enrollment Form'!$B855=\"Subscriber\",'Enrollment Form'!$CQ855=\"No\",'Enrollment Form'!$DS855=\"\"),\"N\",IF(AND('Enrollment Form'!$C855=\"Enroll\",'Enrollment Form'!$B855=\"Subscriber\",'Enrollment Form'!$CQ855=\"Yes\"),\"-\",\"Y\")))))","v":""},{"$f":"IF($B848=\"N\",\"\",IF(AND('Enrollment Form'!$C855=\"ROC\",'Enrollment Form'!$DT855<>\"\"),\"Y\",IF(AND('Enrollment Form'!$C855=\"ROC\",'Enrollment Form'!$DT855=\"\"),\"N\",IF(AND('Enrollment Form'!$C855=\"Enroll\",'Enrollment Form'!$B855=\"Subscriber\",'Enrollment Form'!$CQ855=\"No\",'Enrollment Form'!$DT855=\"\"),\"N\",IF(AND('Enrollment Form'!$C855=\"Enroll\",'Enrollment Form'!$B855=\"Subscriber\",'Enrollment Form'!$CQ855=\"Yes\"),\"-\",\"Y\")))))","v":""},{"$f":"IF('Enrollment Form'!AH855=\"\",\"\",IF(ISERROR(SEARCH(\".\",'Enrollment Form'!AH855,SEARCH(\"@\",'Enrollment Form'!AH855))),\"N\",\"Y\"))","v":""},{"$f":"IF(OR($B848=\"N\",'Enrollment Form'!$G855=\"\"),\"\",IF('Enrollment Form'!$B855<>\"Subscriber\",\"-\",IF(COUNTIF('Enrollment Form'!$AS855:$AT855,\"Yes\")=2,\"N\",\"Y\")))","v":""},{"$f":"IF(OR('Enrollment Form'!$CC855=\"\",'Enrollment Form'!$CC855=\"No\"),\"-\",IF(AND('Enrollment Form'!$CC855=\"Yes\",'Enrollment Form'!$CD855=\"\"),\"N\",\"Y\"))","v":"-"},{"$f":"IF(OR('Enrollment Form'!$CE855=\"\",'Enrollment Form'!$CE855=\"No\"),\"-\",IF(AND('Enrollment Form'!$CE855=\"Yes\",'Enrollment Form'!$CF855=\"\"),\"N\",\"Y\"))","v":"-"},{"$f":"IF(OR('Enrollment Form'!$CG855=\"\",'Enrollment Form'!$CG855=\"No\"),\"-\",IF(AND('Enrollment Form'!$CG855=\"Yes\",'Enrollment Form'!$CH855=\"\"),\"N\",\"Y\"))","v":"-"},{"$f":"IF(OR('Enrollment Form'!$CG855=\"\",'Enrollment Form'!$CG855=\"No\"),\"-\",IF(AND('Enrollment Form'!$CG855=\"Yes\",'Enrollment Form'!$CI855=\"\"),\"N\",\"Y\"))","v":"-"},{"$f":"IF('Enrollment Form'!B855<>\"Subscriber\",\"-\",IF(AND('Enrollment Form'!B855=\"Subscriber\",'Enrollment Form'!C855=\"Enroll\",'Enrollment Form'!AA855=\"\"),\"N\",\"Y\"))","v":"-"},{"$f":"IF(OR('Enrollment Form'!B855=\"Subscriber\",'Enrollment Form'!B855=\"\"),\"-\",IF('Enrollment Form'!BI855=\"\",\"N\",\"Y\"))","v":"-"},{"$f":"IF('Enrollment Form'!B855<>\"Subscriber\",\"-\",IF(AND('Enrollment Form'!B855=\"Subscriber\",'Enrollment Form'!G855=\"\"),\"N\",\"Y\"))","v":"-"},{"$f":"IF('Enrollment Form'!A855=\"\",\"\",IF('Enrollment Form'!B855=\"Subscriber\",\"-\",IF(AND('Enrollment Form'!B855<>\"Subscriber\",'Enrollment Form'!G855='Enrollment Form'!H855),\"N\",\"Y\")))","v":""},0]
[856,{"$f":"IF('Enrollment Form'!$A856<>\"\",\"Y\",\"N\")","v":"N"},{"$f":"IF(AND('Enrollment Form'!$B856=\"\",'Enrollment Form'!$C856<>\"\"),\"N\",IF($B849=\"N\",\"\",\"Y\"))","v":""},{"$f":"IF(OR($B849=\"N\",'Enrollment Form'!G856=\"\"),\"\",IF('Enrollment Form'!$B856<>\"Subscriber\",\"\",IF('Enrollment Form'!$G856='Enrollment Form'!$H856,\"Y\",\"N\")))","v":""},{"$f":"IF($B849=\"N\",\"\",IF(AND(COUNTIFS('Enrollment Form'!$H$11:$H$1000,'Enrollment Form'!$H856,'Enrollment Form'!$B$11:$B$1000,'Enrollment Form'!$B856)>1,'Enrollment Form'!$H856<>\"\"),\"N\",\"Y\"))","v":""},{"$f":"IF($B849=\"N\",\"\",IF(LEN('Enrollment Form'!$Y856)=0,\"\",IF(LEN('Enrollment Form'!$Y856)<>5,\"N\",\"Y\")))","v":""},{"$f":"IF($B849=\"N\",\"\",IF(LEN('Enrollment Form'!$AD856=0),\"\",IF(LEN('Enrollment Form'!$AD856)<>5,\"N\",\"Y\")))","v":""},{"$f":"IF($B849=\"N\",\"\",IF(LEN('Enrollment Form'!$BL856=0),\"\",IF(LEN('Enrollment Form'!$BL856)<>5,\"N\",\"Y\")))","v":""},{"$f":"IF($B849=\"N\",\"\",IF(LEN('Enrollment Form'!$AE856)=0,\"\",IF(LEN('Enrollment Form'!$AE856)<>10,\"N\",\"Y\")))","v":""},{"$f":"IF($B849=\"N\",\"\",IF(LEN('Enrollment Form'!$AF856)=0,\"\",IF(LEN('Enrollment Form'!$AF856)<>10,\"N\",\"Y\")))","v":""},{"$f":"IF('Enrollment Form'!$O856<>\"Graded\",\"-\",IF(AND('Enrollment Form'!$O856=\"Graded\",'Enrollment Form'!$AO856<>\"\"),\"Y\",\"N\"))","v":"-"},{"$f":"IF($B849=\"N\",\"\",IF(OR('Enrollment Form'!$B856<>\"Subscriber\",'Enrollment Form'!$C856=\"ROC\"),\"-\",IF(AND('Enrollment Form'!$B856=\"Subscriber\",'Enrollment Form'!$C856=\"Enroll\",'Enrollment Form'!$AJ856<>\"\"),\"Y\",\"N\")))","v":""},{"$f":"IF($B849=\"N\",\"\",IF(OR('Enrollment Form'!$B856<>\"Subscriber\",'Enrollment Form'!$C856=\"ROC\"),\"-\",IF(AND('Enrollment Form'!$B856=\"Subscriber\",'Enrollment Form'!$C856=\"Enroll\",'Enrollment Form'!$AK856<>\"\"),\"Y\",\"N\")))","v":""},{"$f":"IF($B849=\"N\",\"\",IF(OR('Enrollment Form'!$B856<>\"Subscriber\",'Enrollment Form'!$C856=\"ROC\"),\"-\",IF(AND('Enrollment Form'!$B856=\"Subscriber\",'Enrollment Form'!$C856=\"Enroll\",'Enrollment Form'!$AL856<>\"\"),\"Y\",\"N\")))","v":""},{"$f":"IF($B849=\"N\",\"\",IF(OR('Enrollment Form'!$B856<>\"Subscriber\",'Enrollment Form'!$C856=\"ROC\"),\"-\",IF(AND('Enrollment Form'!$B856=\"Subscriber\",'Enrollment Form'!$C856=\"Enroll\",'Enrollment Form'!$AM856<>\"\"),\"Y\",\"N\")))","v":""},{"$f":"IF($B849=\"N\",\"\",IF(OR('Enrollment Form'!$B856<>\"Subscriber\",'Enrollment Form'!$C856=\"ROC\"),\"-\",IF(AND('Enrollment Form'!$B856=\"Subscriber\",'Enrollment Form'!$C856=\"Enroll\",'Enrollment Form'!$AN856<>\"\"),\"Y\",\"N\")))","v":""},{"$f":"IF($B849=\"N\",\"\",IF(OR('Enrollment Form'!$B856<>\"Subscriber\",'Enrollment Form'!$C856=\"ROC\"),\"-\",IF(AND('Enrollment Form'!$B856=\"Subscriber\",'Enrollment Form'!$C856=\"Enroll\",'Enrollment Form'!$AP856<>\"\"),\"Y\",\"N\")))","v":""},{"$f":"IF($B849=\"N\",\"\",IF($Q849=\"-\",\"-\",IF(AND($Q849=\"Y\",'Enrollment Form'!$AP856=\"No\"),\"-\",IF(AND($Q849=\"Y\",'Enrollment Form'!$AP856=\"Yes\",'Enrollment Form'!$AQ856<>\"\"),\"Y\",\"N\"))))","v":""},{"$f":"IF($B849=\"N\",\"\",IF(OR('Enrollment Form'!$B856<>\"Subscriber\",'Enrollment Form'!$C856=\"ROC\"),\"-\",IF(AND('Enrollment Form'!$B856=\"Subscriber\",'Enrollment Form'!$C856=\"Enroll\",'Enrollment Form'!$CO856<>\"\"),\"Y\",\"N\")))","v":""},{"$f":"IF($B849=\"N\",\"\",IF($S849=\"-\",\"-\",IF(AND($S849=\"Y\",'Enrollment Form'!$CO856=\"No\"),\"-\",IF(AND($S849=\"Y\",'Enrollment Form'!$CO856=\"Yes\",'Enrollment Form'!$CP856<>\"\"),\"Y\",\"N\"))))","v":""},{"$f":"IF(OR('Enrollment Form'!$AV856=\"Yes\",'Enrollment Form'!$AV856=\"\"),\"-\",IF(AND('Enrollment Form'!$AV856=\"No\",ISERROR(FIND(\"HMO\",VLOOKUP('Enrollment Form'!G856,'Enrollment Form'!H$11:J$1000,3,FALSE),1))=FALSE,COUNTA('Enrollment Form'!$AW856:$AZ856)=4),\"Y\",\"N\"))","v":"-"},{"$f":"IF($B849=\"N\",\"\",IF('Enrollment Form'!$B856=\"Subscriber\",\"-\",IF(COUNTA('Enrollment Form'!$BE856,'Enrollment Form'!$BG856)=2,\"Y\",\"N\")))","v":""},{"$f":"IF($B849=\"N\",\"\",IF(OR('Enrollment Form'!$AU856=\"\",'Enrollment Form'!$AU856=\"No\"),\"-\",IF(AND('Enrollment Form'!$AU856=\"Yes\",COUNTA('Enrollment Form'!$CK856)=1),\"Y\",\"N\")))","v":""},{"$f":"IF(OR('Enrollment Form'!$CK856=\"\",'Enrollment Form'!$CK856=\"No\"),\"-\",IF(COUNTA('Enrollment Form'!$CM856:$CN856)=2,\"Y\",\"N\"))","v":"-"},{"$f":"IF($B849=\"N\",\"\",IF(COUNTIF('Enrollment Form'!$CZ856:$DO856,\"Other\")=COUNTA('Enrollment Form'!$DF856,'Enrollment Form'!$DA856,'Enrollment Form'!$DK856,'Enrollment Form'!$DP856),\"Y\",\"N\"))","v":""},{"$f":"IF($B849=\"N\",\"\",IF(OR('Enrollment Form'!B856<>\"Subscriber\",'Enrollment Form'!C856=\"ROC\",COUNTIF('Enrollment Form'!AS856:AT856,\"Yes\")>=1),\"-\",IF(AND('Enrollment Form'!C856=\"Enroll\",COUNTIF('Enrollment Form'!AS856:AT856,\"No\")=2,'Enrollment Form'!AU856=\"\"),\"N\",\"Y\")))","v":""},{"$f":"IF(OR(B849=\"N\",'Enrollment Form'!B856<>\"Subscriber\",'Enrollment Form'!C856=\"ROC\",'Enrollment Form'!O856<>\"Multiple of Salary\"),\"-\",IF(COUNTA('Enrollment Form'!T856:U856)<2,\"N\",\"Y\"))","v":"-"},{"$f":"IF(B849=\"N\",\"\",IF(OR('Enrollment Form'!C856=\"ROC\",'Enrollment Form'!B856<>\"Subscriber\",'Enrollment Form'!O856=\"Waive\",'Enrollment Form'!O856=\"\"),\"-\",IF('Enrollment Form'!P856=\"\",\"N\",\"Y\")))","v":""},{"$f":"IF($B849=\"N\",\"\",IF(AND('Enrollment Form'!$C856=\"ROC\",'Enrollment Form'!$DS856<>\"\"),\"Y\",IF(AND('Enrollment Form'!$C856=\"ROC\",'Enrollment Form'!$DS856=\"\"),\"N\",IF(AND('Enrollment Form'!$C856=\"Enroll\",'Enrollment Form'!$B856=\"Subscriber\",'Enrollment Form'!$CQ856=\"No\",'Enrollment Form'!$DS856=\"\"),\"N\",IF(AND('Enrollment Form'!$C856=\"Enroll\",'Enrollment Form'!$B856=\"Subscriber\",'Enrollment Form'!$CQ856=\"Yes\"),\"-\",\"Y\")))))","v":""},{"$f":"IF($B849=\"N\",\"\",IF(AND('Enrollment Form'!$C856=\"ROC\",'Enrollment Form'!$DT856<>\"\"),\"Y\",IF(AND('Enrollment Form'!$C856=\"ROC\",'Enrollment Form'!$DT856=\"\"),\"N\",IF(AND('Enrollment Form'!$C856=\"Enroll\",'Enrollment Form'!$B856=\"Subscriber\",'Enrollment Form'!$CQ856=\"No\",'Enrollment Form'!$DT856=\"\"),\"N\",IF(AND('Enrollment Form'!$C856=\"Enroll\",'Enrollment Form'!$B856=\"Subscriber\",'Enrollment Form'!$CQ856=\"Yes\"),\"-\",\"Y\")))))","v":""},{"$f":"IF('Enrollment Form'!AH856=\"\",\"\",IF(ISERROR(SEARCH(\".\",'Enrollment Form'!AH856,SEARCH(\"@\",'Enrollment Form'!AH856))),\"N\",\"Y\"))","v":""},{"$f":"IF(OR($B849=\"N\",'Enrollment Form'!$G856=\"\"),\"\",IF('Enrollment Form'!$B856<>\"Subscriber\",\"-\",IF(COUNTIF('Enrollment Form'!$AS856:$AT856,\"Yes\")=2,\"N\",\"Y\")))","v":""},{"$f":"IF(OR('Enrollment Form'!$CC856=\"\",'Enrollment Form'!$CC856=\"No\"),\"-\",IF(AND('Enrollment Form'!$CC856=\"Yes\",'Enrollment Form'!$CD856=\"\"),\"N\",\"Y\"))","v":"-"},{"$f":"IF(OR('Enrollment Form'!$CE856=\"\",'Enrollment Form'!$CE856=\"No\"),\"-\",IF(AND('Enrollment Form'!$CE856=\"Yes\",'Enrollment Form'!$CF856=\"\"),\"N\",\"Y\"))","v":"-"},{"$f":"IF(OR('Enrollment Form'!$CG856=\"\",'Enrollment Form'!$CG856=\"No\"),\"-\",IF(AND('Enrollment Form'!$CG856=\"Yes\",'Enrollment Form'!$CH856=\"\"),\"N\",\"Y\"))","v":"-"},{"$f":"IF(OR('Enrollment Form'!$CG856=\"\",'Enrollment Form'!$CG856=\"No\"),\"-\",IF(AND('Enrollment Form'!$CG856=\"Yes\",'Enrollment Form'!$CI856=\"\"),\"N\",\"Y\"))","v":"-"},{"$f":"IF('Enrollment Form'!B856<>\"Subscriber\",\"-\",IF(AND('Enrollment Form'!B856=\"Subscriber\",'Enrollment Form'!C856=\"Enroll\",'Enrollment Form'!AA856=\"\"),\"N\",\"Y\"))","v":"-"},{"$f":"IF(OR('Enrollment Form'!B856=\"Subscriber\",'Enrollment Form'!B856=\"\"),\"-\",IF('Enrollment Form'!BI856=\"\",\"N\",\"Y\"))","v":"-"},{"$f":"IF('Enrollment Form'!B856<>\"Subscriber\",\"-\",IF(AND('Enrollment Form'!B856=\"Subscriber\",'Enrollment Form'!G856=\"\"),\"N\",\"Y\"))","v":"-"},{"$f":"IF('Enrollment Form'!A856=\"\",\"\",IF('Enrollment Form'!B856=\"Subscriber\",\"-\",IF(AND('Enrollment Form'!B856<>\"Subscriber\",'Enrollment Form'!G856='Enrollment Form'!H856),\"N\",\"Y\")))","v":""},0]
[857,{"$f":"IF('Enrollment Form'!$A857<>\"\",\"Y\",\"N\")","v":"N"},{"$f":"IF(AND('Enrollment Form'!$B857=\"\",'Enrollment Form'!$C857<>\"\"),\"N\",IF($B850=\"N\",\"\",\"Y\"))","v":""},{"$f":"IF(OR($B850=\"N\",'Enrollment Form'!G857=\"\"),\"\",IF('Enrollment Form'!$B857<>\"Subscriber\",\"\",IF('Enrollment Form'!$G857='Enrollment Form'!$H857,\"Y\",\"N\")))","v":""},{"$f":"IF($B850=\"N\",\"\",IF(AND(COUNTIFS('Enrollment Form'!$H$11:$H$1000,'Enrollment Form'!$H857,'Enrollment Form'!$B$11:$B$1000,'Enrollment Form'!$B857)>1,'Enrollment Form'!$H857<>\"\"),\"N\",\"Y\"))","v":""},{"$f":"IF($B850=\"N\",\"\",IF(LEN('Enrollment Form'!$Y857)=0,\"\",IF(LEN('Enrollment Form'!$Y857)<>5,\"N\",\"Y\")))","v":""},{"$f":"IF($B850=\"N\",\"\",IF(LEN('Enrollment Form'!$AD857=0),\"\",IF(LEN('Enrollment Form'!$AD857)<>5,\"N\",\"Y\")))","v":""},{"$f":"IF($B850=\"N\",\"\",IF(LEN('Enrollment Form'!$BL857=0),\"\",IF(LEN('Enrollment Form'!$BL857)<>5,\"N\",\"Y\")))","v":""},{"$f":"IF($B850=\"N\",\"\",IF(LEN('Enrollment Form'!$AE857)=0,\"\",IF(LEN('Enrollment Form'!$AE857)<>10,\"N\",\"Y\")))","v":""},{"$f":"IF($B850=\"N\",\"\",IF(LEN('Enrollment Form'!$AF857)=0,\"\",IF(LEN('Enrollment Form'!$AF857)<>10,\"N\",\"Y\")))","v":""},{"$f":"IF('Enrollment Form'!$O857<>\"Graded\",\"-\",IF(AND('Enrollment Form'!$O857=\"Graded\",'Enrollment Form'!$AO857<>\"\"),\"Y\",\"N\"))","v":"-"},{"$f":"IF($B850=\"N\",\"\",IF(OR('Enrollment Form'!$B857<>\"Subscriber\",'Enrollment Form'!$C857=\"ROC\"),\"-\",IF(AND('Enrollment Form'!$B857=\"Subscriber\",'Enrollment Form'!$C857=\"Enroll\",'Enrollment Form'!$AJ857<>\"\"),\"Y\",\"N\")))","v":""},{"$f":"IF($B850=\"N\",\"\",IF(OR('Enrollment Form'!$B857<>\"Subscriber\",'Enrollment Form'!$C857=\"ROC\"),\"-\",IF(AND('Enrollment Form'!$B857=\"Subscriber\",'Enrollment Form'!$C857=\"Enroll\",'Enrollment Form'!$AK857<>\"\"),\"Y\",\"N\")))","v":""},{"$f":"IF($B850=\"N\",\"\",IF(OR('Enrollment Form'!$B857<>\"Subscriber\",'Enrollment Form'!$C857=\"ROC\"),\"-\",IF(AND('Enrollment Form'!$B857=\"Subscriber\",'Enrollment Form'!$C857=\"Enroll\",'Enrollment Form'!$AL857<>\"\"),\"Y\",\"N\")))","v":""},{"$f":"IF($B850=\"N\",\"\",IF(OR('Enrollment Form'!$B857<>\"Subscriber\",'Enrollment Form'!$C857=\"ROC\"),\"-\",IF(AND('Enrollment Form'!$B857=\"Subscriber\",'Enrollment Form'!$C857=\"Enroll\",'Enrollment Form'!$AM857<>\"\"),\"Y\",\"N\")))","v":""},{"$f":"IF($B850=\"N\",\"\",IF(OR('Enrollment Form'!$B857<>\"Subscriber\",'Enrollment Form'!$C857=\"ROC\"),\"-\",IF(AND('Enrollment Form'!$B857=\"Subscriber\",'Enrollment Form'!$C857=\"Enroll\",'Enrollment Form'!$AN857<>\"\"),\"Y\",\"N\")))","v":""},{"$f":"IF($B850=\"N\",\"\",IF(OR('Enrollment Form'!$B857<>\"Subscriber\",'Enrollment Form'!$C857=\"ROC\"),\"-\",IF(AND('Enrollment Form'!$B857=\"Subscriber\",'Enrollment Form'!$C857=\"Enroll\",'Enrollment Form'!$AP857<>\"\"),\"Y\",\"N\")))","v":""},{"$f":"IF($B850=\"N\",\"\",IF($Q850=\"-\",\"-\",IF(AND($Q850=\"Y\",'Enrollment Form'!$AP857=\"No\"),\"-\",IF(AND($Q850=\"Y\",'Enrollment Form'!$AP857=\"Yes\",'Enrollment Form'!$AQ857<>\"\"),\"Y\",\"N\"))))","v":""},{"$f":"IF($B850=\"N\",\"\",IF(OR('Enrollment Form'!$B857<>\"Subscriber\",'Enrollment Form'!$C857=\"ROC\"),\"-\",IF(AND('Enrollment Form'!$B857=\"Subscriber\",'Enrollment Form'!$C857=\"Enroll\",'Enrollment Form'!$CO857<>\"\"),\"Y\",\"N\")))","v":""},{"$f":"IF($B850=\"N\",\"\",IF($S850=\"-\",\"-\",IF(AND($S850=\"Y\",'Enrollment Form'!$CO857=\"No\"),\"-\",IF(AND($S850=\"Y\",'Enrollment Form'!$CO857=\"Yes\",'Enrollment Form'!$CP857<>\"\"),\"Y\",\"N\"))))","v":""},{"$f":"IF(OR('Enrollment Form'!$AV857=\"Yes\",'Enrollment Form'!$AV857=\"\"),\"-\",IF(AND('Enrollment Form'!$AV857=\"No\",ISERROR(FIND(\"HMO\",VLOOKUP('Enrollment Form'!G857,'Enrollment Form'!H$11:J$1000,3,FALSE),1))=FALSE,COUNTA('Enrollment Form'!$AW857:$AZ857)=4),\"Y\",\"N\"))","v":"-"},{"$f":"IF($B850=\"N\",\"\",IF('Enrollment Form'!$B857=\"Subscriber\",\"-\",IF(COUNTA('Enrollment Form'!$BE857,'Enrollment Form'!$BG857)=2,\"Y\",\"N\")))","v":""},{"$f":"IF($B850=\"N\",\"\",IF(OR('Enrollment Form'!$AU857=\"\",'Enrollment Form'!$AU857=\"No\"),\"-\",IF(AND('Enrollment Form'!$AU857=\"Yes\",COUNTA('Enrollment Form'!$CK857)=1),\"Y\",\"N\")))","v":""},{"$f":"IF(OR('Enrollment Form'!$CK857=\"\",'Enrollment Form'!$CK857=\"No\"),\"-\",IF(COUNTA('Enrollment Form'!$CM857:$CN857)=2,\"Y\",\"N\"))","v":"-"},{"$f":"IF($B850=\"N\",\"\",IF(COUNTIF('Enrollment Form'!$CZ857:$DO857,\"Other\")=COUNTA('Enrollment Form'!$DF857,'Enrollment Form'!$DA857,'Enrollment Form'!$DK857,'Enrollment Form'!$DP857),\"Y\",\"N\"))","v":""},{"$f":"IF($B850=\"N\",\"\",IF(OR('Enrollment Form'!B857<>\"Subscriber\",'Enrollment Form'!C857=\"ROC\",COUNTIF('Enrollment Form'!AS857:AT857,\"Yes\")>=1),\"-\",IF(AND('Enrollment Form'!C857=\"Enroll\",COUNTIF('Enrollment Form'!AS857:AT857,\"No\")=2,'Enrollment Form'!AU857=\"\"),\"N\",\"Y\")))","v":""},{"$f":"IF(OR(B850=\"N\",'Enrollment Form'!B857<>\"Subscriber\",'Enrollment Form'!C857=\"ROC\",'Enrollment Form'!O857<>\"Multiple of Salary\"),\"-\",IF(COUNTA('Enrollment Form'!T857:U857)<2,\"N\",\"Y\"))","v":"-"},{"$f":"IF(B850=\"N\",\"\",IF(OR('Enrollment Form'!C857=\"ROC\",'Enrollment Form'!B857<>\"Subscriber\",'Enrollment Form'!O857=\"Waive\",'Enrollment Form'!O857=\"\"),\"-\",IF('Enrollment Form'!P857=\"\",\"N\",\"Y\")))","v":""},{"$f":"IF($B850=\"N\",\"\",IF(AND('Enrollment Form'!$C857=\"ROC\",'Enrollment Form'!$DS857<>\"\"),\"Y\",IF(AND('Enrollment Form'!$C857=\"ROC\",'Enrollment Form'!$DS857=\"\"),\"N\",IF(AND('Enrollment Form'!$C857=\"Enroll\",'Enrollment Form'!$B857=\"Subscriber\",'Enrollment Form'!$CQ857=\"No\",'Enrollment Form'!$DS857=\"\"),\"N\",IF(AND('Enrollment Form'!$C857=\"Enroll\",'Enrollment Form'!$B857=\"Subscriber\",'Enrollment Form'!$CQ857=\"Yes\"),\"-\",\"Y\")))))","v":""},{"$f":"IF($B850=\"N\",\"\",IF(AND('Enrollment Form'!$C857=\"ROC\",'Enrollment Form'!$DT857<>\"\"),\"Y\",IF(AND('Enrollment Form'!$C857=\"ROC\",'Enrollment Form'!$DT857=\"\"),\"N\",IF(AND('Enrollment Form'!$C857=\"Enroll\",'Enrollment Form'!$B857=\"Subscriber\",'Enrollment Form'!$CQ857=\"No\",'Enrollment Form'!$DT857=\"\"),\"N\",IF(AND('Enrollment Form'!$C857=\"Enroll\",'Enrollment Form'!$B857=\"Subscriber\",'Enrollment Form'!$CQ857=\"Yes\"),\"-\",\"Y\")))))","v":""},{"$f":"IF('Enrollment Form'!AH857=\"\",\"\",IF(ISERROR(SEARCH(\".\",'Enrollment Form'!AH857,SEARCH(\"@\",'Enrollment Form'!AH857))),\"N\",\"Y\"))","v":""},{"$f":"IF(OR($B850=\"N\",'Enrollment Form'!$G857=\"\"),\"\",IF('Enrollment Form'!$B857<>\"Subscriber\",\"-\",IF(COUNTIF('Enrollment Form'!$AS857:$AT857,\"Yes\")=2,\"N\",\"Y\")))","v":""},{"$f":"IF(OR('Enrollment Form'!$CC857=\"\",'Enrollment Form'!$CC857=\"No\"),\"-\",IF(AND('Enrollment Form'!$CC857=\"Yes\",'Enrollment Form'!$CD857=\"\"),\"N\",\"Y\"))","v":"-"},{"$f":"IF(OR('Enrollment Form'!$CE857=\"\",'Enrollment Form'!$CE857=\"No\"),\"-\",IF(AND('Enrollment Form'!$CE857=\"Yes\",'Enrollment Form'!$CF857=\"\"),\"N\",\"Y\"))","v":"-"},{"$f":"IF(OR('Enrollment Form'!$CG857=\"\",'Enrollment Form'!$CG857=\"No\"),\"-\",IF(AND('Enrollment Form'!$CG857=\"Yes\",'Enrollment Form'!$CH857=\"\"),\"N\",\"Y\"))","v":"-"},{"$f":"IF(OR('Enrollment Form'!$CG857=\"\",'Enrollment Form'!$CG857=\"No\"),\"-\",IF(AND('Enrollment Form'!$CG857=\"Yes\",'Enrollment Form'!$CI857=\"\"),\"N\",\"Y\"))","v":"-"},{"$f":"IF('Enrollment Form'!B857<>\"Subscriber\",\"-\",IF(AND('Enrollment Form'!B857=\"Subscriber\",'Enrollment Form'!C857=\"Enroll\",'Enrollment Form'!AA857=\"\"),\"N\",\"Y\"))","v":"-"},{"$f":"IF(OR('Enrollment Form'!B857=\"Subscriber\",'Enrollment Form'!B857=\"\"),\"-\",IF('Enrollment Form'!BI857=\"\",\"N\",\"Y\"))","v":"-"},{"$f":"IF('Enrollment Form'!B857<>\"Subscriber\",\"-\",IF(AND('Enrollment Form'!B857=\"Subscriber\",'Enrollment Form'!G857=\"\"),\"N\",\"Y\"))","v":"-"},{"$f":"IF('Enrollment Form'!A857=\"\",\"\",IF('Enrollment Form'!B857=\"Subscriber\",\"-\",IF(AND('Enrollment Form'!B857<>\"Subscriber\",'Enrollment Form'!G857='Enrollment Form'!H857),\"N\",\"Y\")))","v":""},0]
[858,{"$f":"IF('Enrollment Form'!$A858<>\"\",\"Y\",\"N\")","v":"N"},{"$f":"IF(AND('Enrollment Form'!$B858=\"\",'Enrollment Form'!$C858<>\"\"),\"N\",IF($B851=\"N\",\"\",\"Y\"))","v":""},{"$f":"IF(OR($B851=\"N\",'Enrollment Form'!G858=\"\"),\"\",IF('Enrollment Form'!$B858<>\"Subscriber\",\"\",IF('Enrollment Form'!$G858='Enrollment Form'!$H858,\"Y\",\"N\")))","v":""},{"$f":"IF($B851=\"N\",\"\",IF(AND(COUNTIFS('Enrollment Form'!$H$11:$H$1000,'Enrollment Form'!$H858,'Enrollment Form'!$B$11:$B$1000,'Enrollment Form'!$B858)>1,'Enrollment Form'!$H858<>\"\"),\"N\",\"Y\"))","v":""},{"$f":"IF($B851=\"N\",\"\",IF(LEN('Enrollment Form'!$Y858)=0,\"\",IF(LEN('Enrollment Form'!$Y858)<>5,\"N\",\"Y\")))","v":""},{"$f":"IF($B851=\"N\",\"\",IF(LEN('Enrollment Form'!$AD858=0),\"\",IF(LEN('Enrollment Form'!$AD858)<>5,\"N\",\"Y\")))","v":""},{"$f":"IF($B851=\"N\",\"\",IF(LEN('Enrollment Form'!$BL858=0),\"\",IF(LEN('Enrollment Form'!$BL858)<>5,\"N\",\"Y\")))","v":""},{"$f":"IF($B851=\"N\",\"\",IF(LEN('Enrollment Form'!$AE858)=0,\"\",IF(LEN('Enrollment Form'!$AE858)<>10,\"N\",\"Y\")))","v":""},{"$f":"IF($B851=\"N\",\"\",IF(LEN('Enrollment Form'!$AF858)=0,\"\",IF(LEN('Enrollment Form'!$AF858)<>10,\"N\",\"Y\")))","v":""},{"$f":"IF('Enrollment Form'!$O858<>\"Graded\",\"-\",IF(AND('Enrollment Form'!$O858=\"Graded\",'Enrollment Form'!$AO858<>\"\"),\"Y\",\"N\"))","v":"-"},{"$f":"IF($B851=\"N\",\"\",IF(OR('Enrollment Form'!$B858<>\"Subscriber\",'Enrollment Form'!$C858=\"ROC\"),\"-\",IF(AND('Enrollment Form'!$B858=\"Subscriber\",'Enrollment Form'!$C858=\"Enroll\",'Enrollment Form'!$AJ858<>\"\"),\"Y\",\"N\")))","v":""},{"$f":"IF($B851=\"N\",\"\",IF(OR('Enrollment Form'!$B858<>\"Subscriber\",'Enrollment Form'!$C858=\"ROC\"),\"-\",IF(AND('Enrollment Form'!$B858=\"Subscriber\",'Enrollment Form'!$C858=\"Enroll\",'Enrollment Form'!$AK858<>\"\"),\"Y\",\"N\")))","v":""},{"$f":"IF($B851=\"N\",\"\",IF(OR('Enrollment Form'!$B858<>\"Subscriber\",'Enrollment Form'!$C858=\"ROC\"),\"-\",IF(AND('Enrollment Form'!$B858=\"Subscriber\",'Enrollment Form'!$C858=\"Enroll\",'Enrollment Form'!$AL858<>\"\"),\"Y\",\"N\")))","v":""},{"$f":"IF($B851=\"N\",\"\",IF(OR('Enrollment Form'!$B858<>\"Subscriber\",'Enrollment Form'!$C858=\"ROC\"),\"-\",IF(AND('Enrollment Form'!$B858=\"Subscriber\",'Enrollment Form'!$C858=\"Enroll\",'Enrollment Form'!$AM858<>\"\"),\"Y\",\"N\")))","v":""},{"$f":"IF($B851=\"N\",\"\",IF(OR('Enrollment Form'!$B858<>\"Subscriber\",'Enrollment Form'!$C858=\"ROC\"),\"-\",IF(AND('Enrollment Form'!$B858=\"Subscriber\",'Enrollment Form'!$C858=\"Enroll\",'Enrollment Form'!$AN858<>\"\"),\"Y\",\"N\")))","v":""},{"$f":"IF($B851=\"N\",\"\",IF(OR('Enrollment Form'!$B858<>\"Subscriber\",'Enrollment Form'!$C858=\"ROC\"),\"-\",IF(AND('Enrollment Form'!$B858=\"Subscriber\",'Enrollment Form'!$C858=\"Enroll\",'Enrollment Form'!$AP858<>\"\"),\"Y\",\"N\")))","v":""},{"$f":"IF($B851=\"N\",\"\",IF($Q851=\"-\",\"-\",IF(AND($Q851=\"Y\",'Enrollment Form'!$AP858=\"No\"),\"-\",IF(AND($Q851=\"Y\",'Enrollment Form'!$AP858=\"Yes\",'Enrollment Form'!$AQ858<>\"\"),\"Y\",\"N\"))))","v":""},{"$f":"IF($B851=\"N\",\"\",IF(OR('Enrollment Form'!$B858<>\"Subscriber\",'Enrollment Form'!$C858=\"ROC\"),\"-\",IF(AND('Enrollment Form'!$B858=\"Subscriber\",'Enrollment Form'!$C858=\"Enroll\",'Enrollment Form'!$CO858<>\"\"),\"Y\",\"N\")))","v":""},{"$f":"IF($B851=\"N\",\"\",IF($S851=\"-\",\"-\",IF(AND($S851=\"Y\",'Enrollment Form'!$CO858=\"No\"),\"-\",IF(AND($S851=\"Y\",'Enrollment Form'!$CO858=\"Yes\",'Enrollment Form'!$CP858<>\"\"),\"Y\",\"N\"))))","v":""},{"$f":"IF(OR('Enrollment Form'!$AV858=\"Yes\",'Enrollment Form'!$AV858=\"\"),\"-\",IF(AND('Enrollment Form'!$AV858=\"No\",ISERROR(FIND(\"HMO\",VLOOKUP('Enrollment Form'!G858,'Enrollment Form'!H$11:J$1000,3,FALSE),1))=FALSE,COUNTA('Enrollment Form'!$AW858:$AZ858)=4),\"Y\",\"N\"))","v":"-"},{"$f":"IF($B851=\"N\",\"\",IF('Enrollment Form'!$B858=\"Subscriber\",\"-\",IF(COUNTA('Enrollment Form'!$BE858,'Enrollment Form'!$BG858)=2,\"Y\",\"N\")))","v":""},{"$f":"IF($B851=\"N\",\"\",IF(OR('Enrollment Form'!$AU858=\"\",'Enrollment Form'!$AU858=\"No\"),\"-\",IF(AND('Enrollment Form'!$AU858=\"Yes\",COUNTA('Enrollment Form'!$CK858)=1),\"Y\",\"N\")))","v":""},{"$f":"IF(OR('Enrollment Form'!$CK858=\"\",'Enrollment Form'!$CK858=\"No\"),\"-\",IF(COUNTA('Enrollment Form'!$CM858:$CN858)=2,\"Y\",\"N\"))","v":"-"},{"$f":"IF($B851=\"N\",\"\",IF(COUNTIF('Enrollment Form'!$CZ858:$DO858,\"Other\")=COUNTA('Enrollment Form'!$DF858,'Enrollment Form'!$DA858,'Enrollment Form'!$DK858,'Enrollment Form'!$DP858),\"Y\",\"N\"))","v":""},{"$f":"IF($B851=\"N\",\"\",IF(OR('Enrollment Form'!B858<>\"Subscriber\",'Enrollment Form'!C858=\"ROC\",COUNTIF('Enrollment Form'!AS858:AT858,\"Yes\")>=1),\"-\",IF(AND('Enrollment Form'!C858=\"Enroll\",COUNTIF('Enrollment Form'!AS858:AT858,\"No\")=2,'Enrollment Form'!AU858=\"\"),\"N\",\"Y\")))","v":""},{"$f":"IF(OR(B851=\"N\",'Enrollment Form'!B858<>\"Subscriber\",'Enrollment Form'!C858=\"ROC\",'Enrollment Form'!O858<>\"Multiple of Salary\"),\"-\",IF(COUNTA('Enrollment Form'!T858:U858)<2,\"N\",\"Y\"))","v":"-"},{"$f":"IF(B851=\"N\",\"\",IF(OR('Enrollment Form'!C858=\"ROC\",'Enrollment Form'!B858<>\"Subscriber\",'Enrollment Form'!O858=\"Waive\",'Enrollment Form'!O858=\"\"),\"-\",IF('Enrollment Form'!P858=\"\",\"N\",\"Y\")))","v":""},{"$f":"IF($B851=\"N\",\"\",IF(AND('Enrollment Form'!$C858=\"ROC\",'Enrollment Form'!$DS858<>\"\"),\"Y\",IF(AND('Enrollment Form'!$C858=\"ROC\",'Enrollment Form'!$DS858=\"\"),\"N\",IF(AND('Enrollment Form'!$C858=\"Enroll\",'Enrollment Form'!$B858=\"Subscriber\",'Enrollment Form'!$CQ858=\"No\",'Enrollment Form'!$DS858=\"\"),\"N\",IF(AND('Enrollment Form'!$C858=\"Enroll\",'Enrollment Form'!$B858=\"Subscriber\",'Enrollment Form'!$CQ858=\"Yes\"),\"-\",\"Y\")))))","v":""},{"$f":"IF($B851=\"N\",\"\",IF(AND('Enrollment Form'!$C858=\"ROC\",'Enrollment Form'!$DT858<>\"\"),\"Y\",IF(AND('Enrollment Form'!$C858=\"ROC\",'Enrollment Form'!$DT858=\"\"),\"N\",IF(AND('Enrollment Form'!$C858=\"Enroll\",'Enrollment Form'!$B858=\"Subscriber\",'Enrollment Form'!$CQ858=\"No\",'Enrollment Form'!$DT858=\"\"),\"N\",IF(AND('Enrollment Form'!$C858=\"Enroll\",'Enrollment Form'!$B858=\"Subscriber\",'Enrollment Form'!$CQ858=\"Yes\"),\"-\",\"Y\")))))","v":""},{"$f":"IF('Enrollment Form'!AH858=\"\",\"\",IF(ISERROR(SEARCH(\".\",'Enrollment Form'!AH858,SEARCH(\"@\",'Enrollment Form'!AH858))),\"N\",\"Y\"))","v":""},{"$f":"IF(OR($B851=\"N\",'Enrollment Form'!$G858=\"\"),\"\",IF('Enrollment Form'!$B858<>\"Subscriber\",\"-\",IF(COUNTIF('Enrollment Form'!$AS858:$AT858,\"Yes\")=2,\"N\",\"Y\")))","v":""},{"$f":"IF(OR('Enrollment Form'!$CC858=\"\",'Enrollment Form'!$CC858=\"No\"),\"-\",IF(AND('Enrollment Form'!$CC858=\"Yes\",'Enrollment Form'!$CD858=\"\"),\"N\",\"Y\"))","v":"-"},{"$f":"IF(OR('Enrollment Form'!$CE858=\"\",'Enrollment Form'!$CE858=\"No\"),\"-\",IF(AND('Enrollment Form'!$CE858=\"Yes\",'Enrollment Form'!$CF858=\"\"),\"N\",\"Y\"))","v":"-"},{"$f":"IF(OR('Enrollment Form'!$CG858=\"\",'Enrollment Form'!$CG858=\"No\"),\"-\",IF(AND('Enrollment Form'!$CG858=\"Yes\",'Enrollment Form'!$CH858=\"\"),\"N\",\"Y\"))","v":"-"},{"$f":"IF(OR('Enrollment Form'!$CG858=\"\",'Enrollment Form'!$CG858=\"No\"),\"-\",IF(AND('Enrollment Form'!$CG858=\"Yes\",'Enrollment Form'!$CI858=\"\"),\"N\",\"Y\"))","v":"-"},{"$f":"IF('Enrollment Form'!B858<>\"Subscriber\",\"-\",IF(AND('Enrollment Form'!B858=\"Subscriber\",'Enrollment Form'!C858=\"Enroll\",'Enrollment Form'!AA858=\"\"),\"N\",\"Y\"))","v":"-"},{"$f":"IF(OR('Enrollment Form'!B858=\"Subscriber\",'Enrollment Form'!B858=\"\"),\"-\",IF('Enrollment Form'!BI858=\"\",\"N\",\"Y\"))","v":"-"},{"$f":"IF('Enrollment Form'!B858<>\"Subscriber\",\"-\",IF(AND('Enrollment Form'!B858=\"Subscriber\",'Enrollment Form'!G858=\"\"),\"N\",\"Y\"))","v":"-"},{"$f":"IF('Enrollment Form'!A858=\"\",\"\",IF('Enrollment Form'!B858=\"Subscriber\",\"-\",IF(AND('Enrollment Form'!B858<>\"Subscriber\",'Enrollment Form'!G858='Enrollment Form'!H858),\"N\",\"Y\")))","v":""},0]
[859,{"$f":"IF('Enrollment Form'!$A859<>\"\",\"Y\",\"N\")","v":"N"},{"$f":"IF(AND('Enrollment Form'!$B859=\"\",'Enrollment Form'!$C859<>\"\"),\"N\",IF($B852=\"N\",\"\",\"Y\"))","v":""},{"$f":"IF(OR($B852=\"N\",'Enrollment Form'!G859=\"\"),\"\",IF('Enrollment Form'!$B859<>\"Subscriber\",\"\",IF('Enrollment Form'!$G859='Enrollment Form'!$H859,\"Y\",\"N\")))","v":""},{"$f":"IF($B852=\"N\",\"\",IF(AND(COUNTIFS('Enrollment Form'!$H$11:$H$1000,'Enrollment Form'!$H859,'Enrollment Form'!$B$11:$B$1000,'Enrollment Form'!$B859)>1,'Enrollment Form'!$H859<>\"\"),\"N\",\"Y\"))","v":""},{"$f":"IF($B852=\"N\",\"\",IF(LEN('Enrollment Form'!$Y859)=0,\"\",IF(LEN('Enrollment Form'!$Y859)<>5,\"N\",\"Y\")))","v":""},{"$f":"IF($B852=\"N\",\"\",IF(LEN('Enrollment Form'!$AD859=0),\"\",IF(LEN('Enrollment Form'!$AD859)<>5,\"N\",\"Y\")))","v":""},{"$f":"IF($B852=\"N\",\"\",IF(LEN('Enrollment Form'!$BL859=0),\"\",IF(LEN('Enrollment Form'!$BL859)<>5,\"N\",\"Y\")))","v":""},{"$f":"IF($B852=\"N\",\"\",IF(LEN('Enrollment Form'!$AE859)=0,\"\",IF(LEN('Enrollment Form'!$AE859)<>10,\"N\",\"Y\")))","v":""},{"$f":"IF($B852=\"N\",\"\",IF(LEN('Enrollment Form'!$AF859)=0,\"\",IF(LEN('Enrollment Form'!$AF859)<>10,\"N\",\"Y\")))","v":""},{"$f":"IF('Enrollment Form'!$O859<>\"Graded\",\"-\",IF(AND('Enrollment Form'!$O859=\"Graded\",'Enrollment Form'!$AO859<>\"\"),\"Y\",\"N\"))","v":"-"},{"$f":"IF($B852=\"N\",\"\",IF(OR('Enrollment Form'!$B859<>\"Subscriber\",'Enrollment Form'!$C859=\"ROC\"),\"-\",IF(AND('Enrollment Form'!$B859=\"Subscriber\",'Enrollment Form'!$C859=\"Enroll\",'Enrollment Form'!$AJ859<>\"\"),\"Y\",\"N\")))","v":""},{"$f":"IF($B852=\"N\",\"\",IF(OR('Enrollment Form'!$B859<>\"Subscriber\",'Enrollment Form'!$C859=\"ROC\"),\"-\",IF(AND('Enrollment Form'!$B859=\"Subscriber\",'Enrollment Form'!$C859=\"Enroll\",'Enrollment Form'!$AK859<>\"\"),\"Y\",\"N\")))","v":""},{"$f":"IF($B852=\"N\",\"\",IF(OR('Enrollment Form'!$B859<>\"Subscriber\",'Enrollment Form'!$C859=\"ROC\"),\"-\",IF(AND('Enrollment Form'!$B859=\"Subscriber\",'Enrollment Form'!$C859=\"Enroll\",'Enrollment Form'!$AL859<>\"\"),\"Y\",\"N\")))","v":""},{"$f":"IF($B852=\"N\",\"\",IF(OR('Enrollment Form'!$B859<>\"Subscriber\",'Enrollment Form'!$C859=\"ROC\"),\"-\",IF(AND('Enrollment Form'!$B859=\"Subscriber\",'Enrollment Form'!$C859=\"Enroll\",'Enrollment Form'!$AM859<>\"\"),\"Y\",\"N\")))","v":""},{"$f":"IF($B852=\"N\",\"\",IF(OR('Enrollment Form'!$B859<>\"Subscriber\",'Enrollment Form'!$C859=\"ROC\"),\"-\",IF(AND('Enrollment Form'!$B859=\"Subscriber\",'Enrollment Form'!$C859=\"Enroll\",'Enrollment Form'!$AN859<>\"\"),\"Y\",\"N\")))","v":""},{"$f":"IF($B852=\"N\",\"\",IF(OR('Enrollment Form'!$B859<>\"Subscriber\",'Enrollment Form'!$C859=\"ROC\"),\"-\",IF(AND('Enrollment Form'!$B859=\"Subscriber\",'Enrollment Form'!$C859=\"Enroll\",'Enrollment Form'!$AP859<>\"\"),\"Y\",\"N\")))","v":""},{"$f":"IF($B852=\"N\",\"\",IF($Q852=\"-\",\"-\",IF(AND($Q852=\"Y\",'Enrollment Form'!$AP859=\"No\"),\"-\",IF(AND($Q852=\"Y\",'Enrollment Form'!$AP859=\"Yes\",'Enrollment Form'!$AQ859<>\"\"),\"Y\",\"N\"))))","v":""},{"$f":"IF($B852=\"N\",\"\",IF(OR('Enrollment Form'!$B859<>\"Subscriber\",'Enrollment Form'!$C859=\"ROC\"),\"-\",IF(AND('Enrollment Form'!$B859=\"Subscriber\",'Enrollment Form'!$C859=\"Enroll\",'Enrollment Form'!$CO859<>\"\"),\"Y\",\"N\")))","v":""},{"$f":"IF($B852=\"N\",\"\",IF($S852=\"-\",\"-\",IF(AND($S852=\"Y\",'Enrollment Form'!$CO859=\"No\"),\"-\",IF(AND($S852=\"Y\",'Enrollment Form'!$CO859=\"Yes\",'Enrollment Form'!$CP859<>\"\"),\"Y\",\"N\"))))","v":""},{"$f":"IF(OR('Enrollment Form'!$AV859=\"Yes\",'Enrollment Form'!$AV859=\"\"),\"-\",IF(AND('Enrollment Form'!$AV859=\"No\",ISERROR(FIND(\"HMO\",VLOOKUP('Enrollment Form'!G859,'Enrollment Form'!H$11:J$1000,3,FALSE),1))=FALSE,COUNTA('Enrollment Form'!$AW859:$AZ859)=4),\"Y\",\"N\"))","v":"-"},{"$f":"IF($B852=\"N\",\"\",IF('Enrollment Form'!$B859=\"Subscriber\",\"-\",IF(COUNTA('Enrollment Form'!$BE859,'Enrollment Form'!$BG859)=2,\"Y\",\"N\")))","v":""},{"$f":"IF($B852=\"N\",\"\",IF(OR('Enrollment Form'!$AU859=\"\",'Enrollment Form'!$AU859=\"No\"),\"-\",IF(AND('Enrollment Form'!$AU859=\"Yes\",COUNTA('Enrollment Form'!$CK859)=1),\"Y\",\"N\")))","v":""},{"$f":"IF(OR('Enrollment Form'!$CK859=\"\",'Enrollment Form'!$CK859=\"No\"),\"-\",IF(COUNTA('Enrollment Form'!$CM859:$CN859)=2,\"Y\",\"N\"))","v":"-"},{"$f":"IF($B852=\"N\",\"\",IF(COUNTIF('Enrollment Form'!$CZ859:$DO859,\"Other\")=COUNTA('Enrollment Form'!$DF859,'Enrollment Form'!$DA859,'Enrollment Form'!$DK859,'Enrollment Form'!$DP859),\"Y\",\"N\"))","v":""},{"$f":"IF($B852=\"N\",\"\",IF(OR('Enrollment Form'!B859<>\"Subscriber\",'Enrollment Form'!C859=\"ROC\",COUNTIF('Enrollment Form'!AS859:AT859,\"Yes\")>=1),\"-\",IF(AND('Enrollment Form'!C859=\"Enroll\",COUNTIF('Enrollment Form'!AS859:AT859,\"No\")=2,'Enrollment Form'!AU859=\"\"),\"N\",\"Y\")))","v":""},{"$f":"IF(OR(B852=\"N\",'Enrollment Form'!B859<>\"Subscriber\",'Enrollment Form'!C859=\"ROC\",'Enrollment Form'!O859<>\"Multiple of Salary\"),\"-\",IF(COUNTA('Enrollment Form'!T859:U859)<2,\"N\",\"Y\"))","v":"-"},{"$f":"IF(B852=\"N\",\"\",IF(OR('Enrollment Form'!C859=\"ROC\",'Enrollment Form'!B859<>\"Subscriber\",'Enrollment Form'!O859=\"Waive\",'Enrollment Form'!O859=\"\"),\"-\",IF('Enrollment Form'!P859=\"\",\"N\",\"Y\")))","v":""},{"$f":"IF($B852=\"N\",\"\",IF(AND('Enrollment Form'!$C859=\"ROC\",'Enrollment Form'!$DS859<>\"\"),\"Y\",IF(AND('Enrollment Form'!$C859=\"ROC\",'Enrollment Form'!$DS859=\"\"),\"N\",IF(AND('Enrollment Form'!$C859=\"Enroll\",'Enrollment Form'!$B859=\"Subscriber\",'Enrollment Form'!$CQ859=\"No\",'Enrollment Form'!$DS859=\"\"),\"N\",IF(AND('Enrollment Form'!$C859=\"Enroll\",'Enrollment Form'!$B859=\"Subscriber\",'Enrollment Form'!$CQ859=\"Yes\"),\"-\",\"Y\")))))","v":""},{"$f":"IF($B852=\"N\",\"\",IF(AND('Enrollment Form'!$C859=\"ROC\",'Enrollment Form'!$DT859<>\"\"),\"Y\",IF(AND('Enrollment Form'!$C859=\"ROC\",'Enrollment Form'!$DT859=\"\"),\"N\",IF(AND('Enrollment Form'!$C859=\"Enroll\",'Enrollment Form'!$B859=\"Subscriber\",'Enrollment Form'!$CQ859=\"No\",'Enrollment Form'!$DT859=\"\"),\"N\",IF(AND('Enrollment Form'!$C859=\"Enroll\",'Enrollment Form'!$B859=\"Subscriber\",'Enrollment Form'!$CQ859=\"Yes\"),\"-\",\"Y\")))))","v":""},{"$f":"IF('Enrollment Form'!AH859=\"\",\"\",IF(ISERROR(SEARCH(\".\",'Enrollment Form'!AH859,SEARCH(\"@\",'Enrollment Form'!AH859))),\"N\",\"Y\"))","v":""},{"$f":"IF(OR($B852=\"N\",'Enrollment Form'!$G859=\"\"),\"\",IF('Enrollment Form'!$B859<>\"Subscriber\",\"-\",IF(COUNTIF('Enrollment Form'!$AS859:$AT859,\"Yes\")=2,\"N\",\"Y\")))","v":""},{"$f":"IF(OR('Enrollment Form'!$CC859=\"\",'Enrollment Form'!$CC859=\"No\"),\"-\",IF(AND('Enrollment Form'!$CC859=\"Yes\",'Enrollment Form'!$CD859=\"\"),\"N\",\"Y\"))","v":"-"},{"$f":"IF(OR('Enrollment Form'!$CE859=\"\",'Enrollment Form'!$CE859=\"No\"),\"-\",IF(AND('Enrollment Form'!$CE859=\"Yes\",'Enrollment Form'!$CF859=\"\"),\"N\",\"Y\"))","v":"-"},{"$f":"IF(OR('Enrollment Form'!$CG859=\"\",'Enrollment Form'!$CG859=\"No\"),\"-\",IF(AND('Enrollment Form'!$CG859=\"Yes\",'Enrollment Form'!$CH859=\"\"),\"N\",\"Y\"))","v":"-"},{"$f":"IF(OR('Enrollment Form'!$CG859=\"\",'Enrollment Form'!$CG859=\"No\"),\"-\",IF(AND('Enrollment Form'!$CG859=\"Yes\",'Enrollment Form'!$CI859=\"\"),\"N\",\"Y\"))","v":"-"},{"$f":"IF('Enrollment Form'!B859<>\"Subscriber\",\"-\",IF(AND('Enrollment Form'!B859=\"Subscriber\",'Enrollment Form'!C859=\"Enroll\",'Enrollment Form'!AA859=\"\"),\"N\",\"Y\"))","v":"-"},{"$f":"IF(OR('Enrollment Form'!B859=\"Subscriber\",'Enrollment Form'!B859=\"\"),\"-\",IF('Enrollment Form'!BI859=\"\",\"N\",\"Y\"))","v":"-"},{"$f":"IF('Enrollment Form'!B859<>\"Subscriber\",\"-\",IF(AND('Enrollment Form'!B859=\"Subscriber\",'Enrollment Form'!G859=\"\"),\"N\",\"Y\"))","v":"-"},{"$f":"IF('Enrollment Form'!A859=\"\",\"\",IF('Enrollment Form'!B859=\"Subscriber\",\"-\",IF(AND('Enrollment Form'!B859<>\"Subscriber\",'Enrollment Form'!G859='Enrollment Form'!H859),\"N\",\"Y\")))","v":""},0]
[860,{"$f":"IF('Enrollment Form'!$A860<>\"\",\"Y\",\"N\")","v":"N"},{"$f":"IF(AND('Enrollment Form'!$B860=\"\",'Enrollment Form'!$C860<>\"\"),\"N\",IF($B853=\"N\",\"\",\"Y\"))","v":""},{"$f":"IF(OR($B853=\"N\",'Enrollment Form'!G860=\"\"),\"\",IF('Enrollment Form'!$B860<>\"Subscriber\",\"\",IF('Enrollment Form'!$G860='Enrollment Form'!$H860,\"Y\",\"N\")))","v":""},{"$f":"IF($B853=\"N\",\"\",IF(AND(COUNTIFS('Enrollment Form'!$H$11:$H$1000,'Enrollment Form'!$H860,'Enrollment Form'!$B$11:$B$1000,'Enrollment Form'!$B860)>1,'Enrollment Form'!$H860<>\"\"),\"N\",\"Y\"))","v":""},{"$f":"IF($B853=\"N\",\"\",IF(LEN('Enrollment Form'!$Y860)=0,\"\",IF(LEN('Enrollment Form'!$Y860)<>5,\"N\",\"Y\")))","v":""},{"$f":"IF($B853=\"N\",\"\",IF(LEN('Enrollment Form'!$AD860=0),\"\",IF(LEN('Enrollment Form'!$AD860)<>5,\"N\",\"Y\")))","v":""},{"$f":"IF($B853=\"N\",\"\",IF(LEN('Enrollment Form'!$BL860=0),\"\",IF(LEN('Enrollment Form'!$BL860)<>5,\"N\",\"Y\")))","v":""},{"$f":"IF($B853=\"N\",\"\",IF(LEN('Enrollment Form'!$AE860)=0,\"\",IF(LEN('Enrollment Form'!$AE860)<>10,\"N\",\"Y\")))","v":""},{"$f":"IF($B853=\"N\",\"\",IF(LEN('Enrollment Form'!$AF860)=0,\"\",IF(LEN('Enrollment Form'!$AF860)<>10,\"N\",\"Y\")))","v":""},{"$f":"IF('Enrollment Form'!$O860<>\"Graded\",\"-\",IF(AND('Enrollment Form'!$O860=\"Graded\",'Enrollment Form'!$AO860<>\"\"),\"Y\",\"N\"))","v":"-"},{"$f":"IF($B853=\"N\",\"\",IF(OR('Enrollment Form'!$B860<>\"Subscriber\",'Enrollment Form'!$C860=\"ROC\"),\"-\",IF(AND('Enrollment Form'!$B860=\"Subscriber\",'Enrollment Form'!$C860=\"Enroll\",'Enrollment Form'!$AJ860<>\"\"),\"Y\",\"N\")))","v":""},{"$f":"IF($B853=\"N\",\"\",IF(OR('Enrollment Form'!$B860<>\"Subscriber\",'Enrollment Form'!$C860=\"ROC\"),\"-\",IF(AND('Enrollment Form'!$B860=\"Subscriber\",'Enrollment Form'!$C860=\"Enroll\",'Enrollment Form'!$AK860<>\"\"),\"Y\",\"N\")))","v":""},{"$f":"IF($B853=\"N\",\"\",IF(OR('Enrollment Form'!$B860<>\"Subscriber\",'Enrollment Form'!$C860=\"ROC\"),\"-\",IF(AND('Enrollment Form'!$B860=\"Subscriber\",'Enrollment Form'!$C860=\"Enroll\",'Enrollment Form'!$AL860<>\"\"),\"Y\",\"N\")))","v":""},{"$f":"IF($B853=\"N\",\"\",IF(OR('Enrollment Form'!$B860<>\"Subscriber\",'Enrollment Form'!$C860=\"ROC\"),\"-\",IF(AND('Enrollment Form'!$B860=\"Subscriber\",'Enrollment Form'!$C860=\"Enroll\",'Enrollment Form'!$AM860<>\"\"),\"Y\",\"N\")))","v":""},{"$f":"IF($B853=\"N\",\"\",IF(OR('Enrollment Form'!$B860<>\"Subscriber\",'Enrollment Form'!$C860=\"ROC\"),\"-\",IF(AND('Enrollment Form'!$B860=\"Subscriber\",'Enrollment Form'!$C860=\"Enroll\",'Enrollment Form'!$AN860<>\"\"),\"Y\",\"N\")))","v":""},{"$f":"IF($B853=\"N\",\"\",IF(OR('Enrollment Form'!$B860<>\"Subscriber\",'Enrollment Form'!$C860=\"ROC\"),\"-\",IF(AND('Enrollment Form'!$B860=\"Subscriber\",'Enrollment Form'!$C860=\"Enroll\",'Enrollment Form'!$AP860<>\"\"),\"Y\",\"N\")))","v":""},{"$f":"IF($B853=\"N\",\"\",IF($Q853=\"-\",\"-\",IF(AND($Q853=\"Y\",'Enrollment Form'!$AP860=\"No\"),\"-\",IF(AND($Q853=\"Y\",'Enrollment Form'!$AP860=\"Yes\",'Enrollment Form'!$AQ860<>\"\"),\"Y\",\"N\"))))","v":""},{"$f":"IF($B853=\"N\",\"\",IF(OR('Enrollment Form'!$B860<>\"Subscriber\",'Enrollment Form'!$C860=\"ROC\"),\"-\",IF(AND('Enrollment Form'!$B860=\"Subscriber\",'Enrollment Form'!$C860=\"Enroll\",'Enrollment Form'!$CO860<>\"\"),\"Y\",\"N\")))","v":""},{"$f":"IF($B853=\"N\",\"\",IF($S853=\"-\",\"-\",IF(AND($S853=\"Y\",'Enrollment Form'!$CO860=\"No\"),\"-\",IF(AND($S853=\"Y\",'Enrollment Form'!$CO860=\"Yes\",'Enrollment Form'!$CP860<>\"\"),\"Y\",\"N\"))))","v":""},{"$f":"IF(OR('Enrollment Form'!$AV860=\"Yes\",'Enrollment Form'!$AV860=\"\"),\"-\",IF(AND('Enrollment Form'!$AV860=\"No\",ISERROR(FIND(\"HMO\",VLOOKUP('Enrollment Form'!G860,'Enrollment Form'!H$11:J$1000,3,FALSE),1))=FALSE,COUNTA('Enrollment Form'!$AW860:$AZ860)=4),\"Y\",\"N\"))","v":"-"},{"$f":"IF($B853=\"N\",\"\",IF('Enrollment Form'!$B860=\"Subscriber\",\"-\",IF(COUNTA('Enrollment Form'!$BE860,'Enrollment Form'!$BG860)=2,\"Y\",\"N\")))","v":""},{"$f":"IF($B853=\"N\",\"\",IF(OR('Enrollment Form'!$AU860=\"\",'Enrollment Form'!$AU860=\"No\"),\"-\",IF(AND('Enrollment Form'!$AU860=\"Yes\",COUNTA('Enrollment Form'!$CK860)=1),\"Y\",\"N\")))","v":""},{"$f":"IF(OR('Enrollment Form'!$CK860=\"\",'Enrollment Form'!$CK860=\"No\"),\"-\",IF(COUNTA('Enrollment Form'!$CM860:$CN860)=2,\"Y\",\"N\"))","v":"-"},{"$f":"IF($B853=\"N\",\"\",IF(COUNTIF('Enrollment Form'!$CZ860:$DO860,\"Other\")=COUNTA('Enrollment Form'!$DF860,'Enrollment Form'!$DA860,'Enrollment Form'!$DK860,'Enrollment Form'!$DP860),\"Y\",\"N\"))","v":""},{"$f":"IF($B853=\"N\",\"\",IF(OR('Enrollment Form'!B860<>\"Subscriber\",'Enrollment Form'!C860=\"ROC\",COUNTIF('Enrollment Form'!AS860:AT860,\"Yes\")>=1),\"-\",IF(AND('Enrollment Form'!C860=\"Enroll\",COUNTIF('Enrollment Form'!AS860:AT860,\"No\")=2,'Enrollment Form'!AU860=\"\"),\"N\",\"Y\")))","v":""},{"$f":"IF(OR(B853=\"N\",'Enrollment Form'!B860<>\"Subscriber\",'Enrollment Form'!C860=\"ROC\",'Enrollment Form'!O860<>\"Multiple of Salary\"),\"-\",IF(COUNTA('Enrollment Form'!T860:U860)<2,\"N\",\"Y\"))","v":"-"},{"$f":"IF(B853=\"N\",\"\",IF(OR('Enrollment Form'!C860=\"ROC\",'Enrollment Form'!B860<>\"Subscriber\",'Enrollment Form'!O860=\"Waive\",'Enrollment Form'!O860=\"\"),\"-\",IF('Enrollment Form'!P860=\"\",\"N\",\"Y\")))","v":""},{"$f":"IF($B853=\"N\",\"\",IF(AND('Enrollment Form'!$C860=\"ROC\",'Enrollment Form'!$DS860<>\"\"),\"Y\",IF(AND('Enrollment Form'!$C860=\"ROC\",'Enrollment Form'!$DS860=\"\"),\"N\",IF(AND('Enrollment Form'!$C860=\"Enroll\",'Enrollment Form'!$B860=\"Subscriber\",'Enrollment Form'!$CQ860=\"No\",'Enrollment Form'!$DS860=\"\"),\"N\",IF(AND('Enrollment Form'!$C860=\"Enroll\",'Enrollment Form'!$B860=\"Subscriber\",'Enrollment Form'!$CQ860=\"Yes\"),\"-\",\"Y\")))))","v":""},{"$f":"IF($B853=\"N\",\"\",IF(AND('Enrollment Form'!$C860=\"ROC\",'Enrollment Form'!$DT860<>\"\"),\"Y\",IF(AND('Enrollment Form'!$C860=\"ROC\",'Enrollment Form'!$DT860=\"\"),\"N\",IF(AND('Enrollment Form'!$C860=\"Enroll\",'Enrollment Form'!$B860=\"Subscriber\",'Enrollment Form'!$CQ860=\"No\",'Enrollment Form'!$DT860=\"\"),\"N\",IF(AND('Enrollment Form'!$C860=\"Enroll\",'Enrollment Form'!$B860=\"Subscriber\",'Enrollment Form'!$CQ860=\"Yes\"),\"-\",\"Y\")))))","v":""},{"$f":"IF('Enrollment Form'!AH860=\"\",\"\",IF(ISERROR(SEARCH(\".\",'Enrollment Form'!AH860,SEARCH(\"@\",'Enrollment Form'!AH860))),\"N\",\"Y\"))","v":""},{"$f":"IF(OR($B853=\"N\",'Enrollment Form'!$G860=\"\"),\"\",IF('Enrollment Form'!$B860<>\"Subscriber\",\"-\",IF(COUNTIF('Enrollment Form'!$AS860:$AT860,\"Yes\")=2,\"N\",\"Y\")))","v":""},{"$f":"IF(OR('Enrollment Form'!$CC860=\"\",'Enrollment Form'!$CC860=\"No\"),\"-\",IF(AND('Enrollment Form'!$CC860=\"Yes\",'Enrollment Form'!$CD860=\"\"),\"N\",\"Y\"))","v":"-"},{"$f":"IF(OR('Enrollment Form'!$CE860=\"\",'Enrollment Form'!$CE860=\"No\"),\"-\",IF(AND('Enrollment Form'!$CE860=\"Yes\",'Enrollment Form'!$CF860=\"\"),\"N\",\"Y\"))","v":"-"},{"$f":"IF(OR('Enrollment Form'!$CG860=\"\",'Enrollment Form'!$CG860=\"No\"),\"-\",IF(AND('Enrollment Form'!$CG860=\"Yes\",'Enrollment Form'!$CH860=\"\"),\"N\",\"Y\"))","v":"-"},{"$f":"IF(OR('Enrollment Form'!$CG860=\"\",'Enrollment Form'!$CG860=\"No\"),\"-\",IF(AND('Enrollment Form'!$CG860=\"Yes\",'Enrollment Form'!$CI860=\"\"),\"N\",\"Y\"))","v":"-"},{"$f":"IF('Enrollment Form'!B860<>\"Subscriber\",\"-\",IF(AND('Enrollment Form'!B860=\"Subscriber\",'Enrollment Form'!C860=\"Enroll\",'Enrollment Form'!AA860=\"\"),\"N\",\"Y\"))","v":"-"},{"$f":"IF(OR('Enrollment Form'!B860=\"Subscriber\",'Enrollment Form'!B860=\"\"),\"-\",IF('Enrollment Form'!BI860=\"\",\"N\",\"Y\"))","v":"-"},{"$f":"IF('Enrollment Form'!B860<>\"Subscriber\",\"-\",IF(AND('Enrollment Form'!B860=\"Subscriber\",'Enrollment Form'!G860=\"\"),\"N\",\"Y\"))","v":"-"},{"$f":"IF('Enrollment Form'!A860=\"\",\"\",IF('Enrollment Form'!B860=\"Subscriber\",\"-\",IF(AND('Enrollment Form'!B860<>\"Subscriber\",'Enrollment Form'!G860='Enrollment Form'!H860),\"N\",\"Y\")))","v":""},0]
[861,{"$f":"IF('Enrollment Form'!$A861<>\"\",\"Y\",\"N\")","v":"N"},{"$f":"IF(AND('Enrollment Form'!$B861=\"\",'Enrollment Form'!$C861<>\"\"),\"N\",IF($B854=\"N\",\"\",\"Y\"))","v":""},{"$f":"IF(OR($B854=\"N\",'Enrollment Form'!G861=\"\"),\"\",IF('Enrollment Form'!$B861<>\"Subscriber\",\"\",IF('Enrollment Form'!$G861='Enrollment Form'!$H861,\"Y\",\"N\")))","v":""},{"$f":"IF($B854=\"N\",\"\",IF(AND(COUNTIFS('Enrollment Form'!$H$11:$H$1000,'Enrollment Form'!$H861,'Enrollment Form'!$B$11:$B$1000,'Enrollment Form'!$B861)>1,'Enrollment Form'!$H861<>\"\"),\"N\",\"Y\"))","v":""},{"$f":"IF($B854=\"N\",\"\",IF(LEN('Enrollment Form'!$Y861)=0,\"\",IF(LEN('Enrollment Form'!$Y861)<>5,\"N\",\"Y\")))","v":""},{"$f":"IF($B854=\"N\",\"\",IF(LEN('Enrollment Form'!$AD861=0),\"\",IF(LEN('Enrollment Form'!$AD861)<>5,\"N\",\"Y\")))","v":""},{"$f":"IF($B854=\"N\",\"\",IF(LEN('Enrollment Form'!$BL861=0),\"\",IF(LEN('Enrollment Form'!$BL861)<>5,\"N\",\"Y\")))","v":""},{"$f":"IF($B854=\"N\",\"\",IF(LEN('Enrollment Form'!$AE861)=0,\"\",IF(LEN('Enrollment Form'!$AE861)<>10,\"N\",\"Y\")))","v":""},{"$f":"IF($B854=\"N\",\"\",IF(LEN('Enrollment Form'!$AF861)=0,\"\",IF(LEN('Enrollment Form'!$AF861)<>10,\"N\",\"Y\")))","v":""},{"$f":"IF('Enrollment Form'!$O861<>\"Graded\",\"-\",IF(AND('Enrollment Form'!$O861=\"Graded\",'Enrollment Form'!$AO861<>\"\"),\"Y\",\"N\"))","v":"-"},{"$f":"IF($B854=\"N\",\"\",IF(OR('Enrollment Form'!$B861<>\"Subscriber\",'Enrollment Form'!$C861=\"ROC\"),\"-\",IF(AND('Enrollment Form'!$B861=\"Subscriber\",'Enrollment Form'!$C861=\"Enroll\",'Enrollment Form'!$AJ861<>\"\"),\"Y\",\"N\")))","v":""},{"$f":"IF($B854=\"N\",\"\",IF(OR('Enrollment Form'!$B861<>\"Subscriber\",'Enrollment Form'!$C861=\"ROC\"),\"-\",IF(AND('Enrollment Form'!$B861=\"Subscriber\",'Enrollment Form'!$C861=\"Enroll\",'Enrollment Form'!$AK861<>\"\"),\"Y\",\"N\")))","v":""},{"$f":"IF($B854=\"N\",\"\",IF(OR('Enrollment Form'!$B861<>\"Subscriber\",'Enrollment Form'!$C861=\"ROC\"),\"-\",IF(AND('Enrollment Form'!$B861=\"Subscriber\",'Enrollment Form'!$C861=\"Enroll\",'Enrollment Form'!$AL861<>\"\"),\"Y\",\"N\")))","v":""},{"$f":"IF($B854=\"N\",\"\",IF(OR('Enrollment Form'!$B861<>\"Subscriber\",'Enrollment Form'!$C861=\"ROC\"),\"-\",IF(AND('Enrollment Form'!$B861=\"Subscriber\",'Enrollment Form'!$C861=\"Enroll\",'Enrollment Form'!$AM861<>\"\"),\"Y\",\"N\")))","v":""},{"$f":"IF($B854=\"N\",\"\",IF(OR('Enrollment Form'!$B861<>\"Subscriber\",'Enrollment Form'!$C861=\"ROC\"),\"-\",IF(AND('Enrollment Form'!$B861=\"Subscriber\",'Enrollment Form'!$C861=\"Enroll\",'Enrollment Form'!$AN861<>\"\"),\"Y\",\"N\")))","v":""},{"$f":"IF($B854=\"N\",\"\",IF(OR('Enrollment Form'!$B861<>\"Subscriber\",'Enrollment Form'!$C861=\"ROC\"),\"-\",IF(AND('Enrollment Form'!$B861=\"Subscriber\",'Enrollment Form'!$C861=\"Enroll\",'Enrollment Form'!$AP861<>\"\"),\"Y\",\"N\")))","v":""},{"$f":"IF($B854=\"N\",\"\",IF($Q854=\"-\",\"-\",IF(AND($Q854=\"Y\",'Enrollment Form'!$AP861=\"No\"),\"-\",IF(AND($Q854=\"Y\",'Enrollment Form'!$AP861=\"Yes\",'Enrollment Form'!$AQ861<>\"\"),\"Y\",\"N\"))))","v":""},{"$f":"IF($B854=\"N\",\"\",IF(OR('Enrollment Form'!$B861<>\"Subscriber\",'Enrollment Form'!$C861=\"ROC\"),\"-\",IF(AND('Enrollment Form'!$B861=\"Subscriber\",'Enrollment Form'!$C861=\"Enroll\",'Enrollment Form'!$CO861<>\"\"),\"Y\",\"N\")))","v":""},{"$f":"IF($B854=\"N\",\"\",IF($S854=\"-\",\"-\",IF(AND($S854=\"Y\",'Enrollment Form'!$CO861=\"No\"),\"-\",IF(AND($S854=\"Y\",'Enrollment Form'!$CO861=\"Yes\",'Enrollment Form'!$CP861<>\"\"),\"Y\",\"N\"))))","v":""},{"$f":"IF(OR('Enrollment Form'!$AV861=\"Yes\",'Enrollment Form'!$AV861=\"\"),\"-\",IF(AND('Enrollment Form'!$AV861=\"No\",ISERROR(FIND(\"HMO\",VLOOKUP('Enrollment Form'!G861,'Enrollment Form'!H$11:J$1000,3,FALSE),1))=FALSE,COUNTA('Enrollment Form'!$AW861:$AZ861)=4),\"Y\",\"N\"))","v":"-"},{"$f":"IF($B854=\"N\",\"\",IF('Enrollment Form'!$B861=\"Subscriber\",\"-\",IF(COUNTA('Enrollment Form'!$BE861,'Enrollment Form'!$BG861)=2,\"Y\",\"N\")))","v":""},{"$f":"IF($B854=\"N\",\"\",IF(OR('Enrollment Form'!$AU861=\"\",'Enrollment Form'!$AU861=\"No\"),\"-\",IF(AND('Enrollment Form'!$AU861=\"Yes\",COUNTA('Enrollment Form'!$CK861)=1),\"Y\",\"N\")))","v":""},{"$f":"IF(OR('Enrollment Form'!$CK861=\"\",'Enrollment Form'!$CK861=\"No\"),\"-\",IF(COUNTA('Enrollment Form'!$CM861:$CN861)=2,\"Y\",\"N\"))","v":"-"},{"$f":"IF($B854=\"N\",\"\",IF(COUNTIF('Enrollment Form'!$CZ861:$DO861,\"Other\")=COUNTA('Enrollment Form'!$DF861,'Enrollment Form'!$DA861,'Enrollment Form'!$DK861,'Enrollment Form'!$DP861),\"Y\",\"N\"))","v":""},{"$f":"IF($B854=\"N\",\"\",IF(OR('Enrollment Form'!B861<>\"Subscriber\",'Enrollment Form'!C861=\"ROC\",COUNTIF('Enrollment Form'!AS861:AT861,\"Yes\")>=1),\"-\",IF(AND('Enrollment Form'!C861=\"Enroll\",COUNTIF('Enrollment Form'!AS861:AT861,\"No\")=2,'Enrollment Form'!AU861=\"\"),\"N\",\"Y\")))","v":""},{"$f":"IF(OR(B854=\"N\",'Enrollment Form'!B861<>\"Subscriber\",'Enrollment Form'!C861=\"ROC\",'Enrollment Form'!O861<>\"Multiple of Salary\"),\"-\",IF(COUNTA('Enrollment Form'!T861:U861)<2,\"N\",\"Y\"))","v":"-"},{"$f":"IF(B854=\"N\",\"\",IF(OR('Enrollment Form'!C861=\"ROC\",'Enrollment Form'!B861<>\"Subscriber\",'Enrollment Form'!O861=\"Waive\",'Enrollment Form'!O861=\"\"),\"-\",IF('Enrollment Form'!P861=\"\",\"N\",\"Y\")))","v":""},{"$f":"IF($B854=\"N\",\"\",IF(AND('Enrollment Form'!$C861=\"ROC\",'Enrollment Form'!$DS861<>\"\"),\"Y\",IF(AND('Enrollment Form'!$C861=\"ROC\",'Enrollment Form'!$DS861=\"\"),\"N\",IF(AND('Enrollment Form'!$C861=\"Enroll\",'Enrollment Form'!$B861=\"Subscriber\",'Enrollment Form'!$CQ861=\"No\",'Enrollment Form'!$DS861=\"\"),\"N\",IF(AND('Enrollment Form'!$C861=\"Enroll\",'Enrollment Form'!$B861=\"Subscriber\",'Enrollment Form'!$CQ861=\"Yes\"),\"-\",\"Y\")))))","v":""},{"$f":"IF($B854=\"N\",\"\",IF(AND('Enrollment Form'!$C861=\"ROC\",'Enrollment Form'!$DT861<>\"\"),\"Y\",IF(AND('Enrollment Form'!$C861=\"ROC\",'Enrollment Form'!$DT861=\"\"),\"N\",IF(AND('Enrollment Form'!$C861=\"Enroll\",'Enrollment Form'!$B861=\"Subscriber\",'Enrollment Form'!$CQ861=\"No\",'Enrollment Form'!$DT861=\"\"),\"N\",IF(AND('Enrollment Form'!$C861=\"Enroll\",'Enrollment Form'!$B861=\"Subscriber\",'Enrollment Form'!$CQ861=\"Yes\"),\"-\",\"Y\")))))","v":""},{"$f":"IF('Enrollment Form'!AH861=\"\",\"\",IF(ISERROR(SEARCH(\".\",'Enrollment Form'!AH861,SEARCH(\"@\",'Enrollment Form'!AH861))),\"N\",\"Y\"))","v":""},{"$f":"IF(OR($B854=\"N\",'Enrollment Form'!$G861=\"\"),\"\",IF('Enrollment Form'!$B861<>\"Subscriber\",\"-\",IF(COUNTIF('Enrollment Form'!$AS861:$AT861,\"Yes\")=2,\"N\",\"Y\")))","v":""},{"$f":"IF(OR('Enrollment Form'!$CC861=\"\",'Enrollment Form'!$CC861=\"No\"),\"-\",IF(AND('Enrollment Form'!$CC861=\"Yes\",'Enrollment Form'!$CD861=\"\"),\"N\",\"Y\"))","v":"-"},{"$f":"IF(OR('Enrollment Form'!$CE861=\"\",'Enrollment Form'!$CE861=\"No\"),\"-\",IF(AND('Enrollment Form'!$CE861=\"Yes\",'Enrollment Form'!$CF861=\"\"),\"N\",\"Y\"))","v":"-"},{"$f":"IF(OR('Enrollment Form'!$CG861=\"\",'Enrollment Form'!$CG861=\"No\"),\"-\",IF(AND('Enrollment Form'!$CG861=\"Yes\",'Enrollment Form'!$CH861=\"\"),\"N\",\"Y\"))","v":"-"},{"$f":"IF(OR('Enrollment Form'!$CG861=\"\",'Enrollment Form'!$CG861=\"No\"),\"-\",IF(AND('Enrollment Form'!$CG861=\"Yes\",'Enrollment Form'!$CI861=\"\"),\"N\",\"Y\"))","v":"-"},{"$f":"IF('Enrollment Form'!B861<>\"Subscriber\",\"-\",IF(AND('Enrollment Form'!B861=\"Subscriber\",'Enrollment Form'!C861=\"Enroll\",'Enrollment Form'!AA861=\"\"),\"N\",\"Y\"))","v":"-"},{"$f":"IF(OR('Enrollment Form'!B861=\"Subscriber\",'Enrollment Form'!B861=\"\"),\"-\",IF('Enrollment Form'!BI861=\"\",\"N\",\"Y\"))","v":"-"},{"$f":"IF('Enrollment Form'!B861<>\"Subscriber\",\"-\",IF(AND('Enrollment Form'!B861=\"Subscriber\",'Enrollment Form'!G861=\"\"),\"N\",\"Y\"))","v":"-"},{"$f":"IF('Enrollment Form'!A861=\"\",\"\",IF('Enrollment Form'!B861=\"Subscriber\",\"-\",IF(AND('Enrollment Form'!B861<>\"Subscriber\",'Enrollment Form'!G861='Enrollment Form'!H861),\"N\",\"Y\")))","v":""},0]
[862,{"$f":"IF('Enrollment Form'!$A862<>\"\",\"Y\",\"N\")","v":"N"},{"$f":"IF(AND('Enrollment Form'!$B862=\"\",'Enrollment Form'!$C862<>\"\"),\"N\",IF($B855=\"N\",\"\",\"Y\"))","v":""},{"$f":"IF(OR($B855=\"N\",'Enrollment Form'!G862=\"\"),\"\",IF('Enrollment Form'!$B862<>\"Subscriber\",\"\",IF('Enrollment Form'!$G862='Enrollment Form'!$H862,\"Y\",\"N\")))","v":""},{"$f":"IF($B855=\"N\",\"\",IF(AND(COUNTIFS('Enrollment Form'!$H$11:$H$1000,'Enrollment Form'!$H862,'Enrollment Form'!$B$11:$B$1000,'Enrollment Form'!$B862)>1,'Enrollment Form'!$H862<>\"\"),\"N\",\"Y\"))","v":""},{"$f":"IF($B855=\"N\",\"\",IF(LEN('Enrollment Form'!$Y862)=0,\"\",IF(LEN('Enrollment Form'!$Y862)<>5,\"N\",\"Y\")))","v":""},{"$f":"IF($B855=\"N\",\"\",IF(LEN('Enrollment Form'!$AD862=0),\"\",IF(LEN('Enrollment Form'!$AD862)<>5,\"N\",\"Y\")))","v":""},{"$f":"IF($B855=\"N\",\"\",IF(LEN('Enrollment Form'!$BL862=0),\"\",IF(LEN('Enrollment Form'!$BL862)<>5,\"N\",\"Y\")))","v":""},{"$f":"IF($B855=\"N\",\"\",IF(LEN('Enrollment Form'!$AE862)=0,\"\",IF(LEN('Enrollment Form'!$AE862)<>10,\"N\",\"Y\")))","v":""},{"$f":"IF($B855=\"N\",\"\",IF(LEN('Enrollment Form'!$AF862)=0,\"\",IF(LEN('Enrollment Form'!$AF862)<>10,\"N\",\"Y\")))","v":""},{"$f":"IF('Enrollment Form'!$O862<>\"Graded\",\"-\",IF(AND('Enrollment Form'!$O862=\"Graded\",'Enrollment Form'!$AO862<>\"\"),\"Y\",\"N\"))","v":"-"},{"$f":"IF($B855=\"N\",\"\",IF(OR('Enrollment Form'!$B862<>\"Subscriber\",'Enrollment Form'!$C862=\"ROC\"),\"-\",IF(AND('Enrollment Form'!$B862=\"Subscriber\",'Enrollment Form'!$C862=\"Enroll\",'Enrollment Form'!$AJ862<>\"\"),\"Y\",\"N\")))","v":""},{"$f":"IF($B855=\"N\",\"\",IF(OR('Enrollment Form'!$B862<>\"Subscriber\",'Enrollment Form'!$C862=\"ROC\"),\"-\",IF(AND('Enrollment Form'!$B862=\"Subscriber\",'Enrollment Form'!$C862=\"Enroll\",'Enrollment Form'!$AK862<>\"\"),\"Y\",\"N\")))","v":""},{"$f":"IF($B855=\"N\",\"\",IF(OR('Enrollment Form'!$B862<>\"Subscriber\",'Enrollment Form'!$C862=\"ROC\"),\"-\",IF(AND('Enrollment Form'!$B862=\"Subscriber\",'Enrollment Form'!$C862=\"Enroll\",'Enrollment Form'!$AL862<>\"\"),\"Y\",\"N\")))","v":""},{"$f":"IF($B855=\"N\",\"\",IF(OR('Enrollment Form'!$B862<>\"Subscriber\",'Enrollment Form'!$C862=\"ROC\"),\"-\",IF(AND('Enrollment Form'!$B862=\"Subscriber\",'Enrollment Form'!$C862=\"Enroll\",'Enrollment Form'!$AM862<>\"\"),\"Y\",\"N\")))","v":""},{"$f":"IF($B855=\"N\",\"\",IF(OR('Enrollment Form'!$B862<>\"Subscriber\",'Enrollment Form'!$C862=\"ROC\"),\"-\",IF(AND('Enrollment Form'!$B862=\"Subscriber\",'Enrollment Form'!$C862=\"Enroll\",'Enrollment Form'!$AN862<>\"\"),\"Y\",\"N\")))","v":""},{"$f":"IF($B855=\"N\",\"\",IF(OR('Enrollment Form'!$B862<>\"Subscriber\",'Enrollment Form'!$C862=\"ROC\"),\"-\",IF(AND('Enrollment Form'!$B862=\"Subscriber\",'Enrollment Form'!$C862=\"Enroll\",'Enrollment Form'!$AP862<>\"\"),\"Y\",\"N\")))","v":""},{"$f":"IF($B855=\"N\",\"\",IF($Q855=\"-\",\"-\",IF(AND($Q855=\"Y\",'Enrollment Form'!$AP862=\"No\"),\"-\",IF(AND($Q855=\"Y\",'Enrollment Form'!$AP862=\"Yes\",'Enrollment Form'!$AQ862<>\"\"),\"Y\",\"N\"))))","v":""},{"$f":"IF($B855=\"N\",\"\",IF(OR('Enrollment Form'!$B862<>\"Subscriber\",'Enrollment Form'!$C862=\"ROC\"),\"-\",IF(AND('Enrollment Form'!$B862=\"Subscriber\",'Enrollment Form'!$C862=\"Enroll\",'Enrollment Form'!$CO862<>\"\"),\"Y\",\"N\")))","v":""},{"$f":"IF($B855=\"N\",\"\",IF($S855=\"-\",\"-\",IF(AND($S855=\"Y\",'Enrollment Form'!$CO862=\"No\"),\"-\",IF(AND($S855=\"Y\",'Enrollment Form'!$CO862=\"Yes\",'Enrollment Form'!$CP862<>\"\"),\"Y\",\"N\"))))","v":""},{"$f":"IF(OR('Enrollment Form'!$AV862=\"Yes\",'Enrollment Form'!$AV862=\"\"),\"-\",IF(AND('Enrollment Form'!$AV862=\"No\",ISERROR(FIND(\"HMO\",VLOOKUP('Enrollment Form'!G862,'Enrollment Form'!H$11:J$1000,3,FALSE),1))=FALSE,COUNTA('Enrollment Form'!$AW862:$AZ862)=4),\"Y\",\"N\"))","v":"-"},{"$f":"IF($B855=\"N\",\"\",IF('Enrollment Form'!$B862=\"Subscriber\",\"-\",IF(COUNTA('Enrollment Form'!$BE862,'Enrollment Form'!$BG862)=2,\"Y\",\"N\")))","v":""},{"$f":"IF($B855=\"N\",\"\",IF(OR('Enrollment Form'!$AU862=\"\",'Enrollment Form'!$AU862=\"No\"),\"-\",IF(AND('Enrollment Form'!$AU862=\"Yes\",COUNTA('Enrollment Form'!$CK862)=1),\"Y\",\"N\")))","v":""},{"$f":"IF(OR('Enrollment Form'!$CK862=\"\",'Enrollment Form'!$CK862=\"No\"),\"-\",IF(COUNTA('Enrollment Form'!$CM862:$CN862)=2,\"Y\",\"N\"))","v":"-"},{"$f":"IF($B855=\"N\",\"\",IF(COUNTIF('Enrollment Form'!$CZ862:$DO862,\"Other\")=COUNTA('Enrollment Form'!$DF862,'Enrollment Form'!$DA862,'Enrollment Form'!$DK862,'Enrollment Form'!$DP862),\"Y\",\"N\"))","v":""},{"$f":"IF($B855=\"N\",\"\",IF(OR('Enrollment Form'!B862<>\"Subscriber\",'Enrollment Form'!C862=\"ROC\",COUNTIF('Enrollment Form'!AS862:AT862,\"Yes\")>=1),\"-\",IF(AND('Enrollment Form'!C862=\"Enroll\",COUNTIF('Enrollment Form'!AS862:AT862,\"No\")=2,'Enrollment Form'!AU862=\"\"),\"N\",\"Y\")))","v":""},{"$f":"IF(OR(B855=\"N\",'Enrollment Form'!B862<>\"Subscriber\",'Enrollment Form'!C862=\"ROC\",'Enrollment Form'!O862<>\"Multiple of Salary\"),\"-\",IF(COUNTA('Enrollment Form'!T862:U862)<2,\"N\",\"Y\"))","v":"-"},{"$f":"IF(B855=\"N\",\"\",IF(OR('Enrollment Form'!C862=\"ROC\",'Enrollment Form'!B862<>\"Subscriber\",'Enrollment Form'!O862=\"Waive\",'Enrollment Form'!O862=\"\"),\"-\",IF('Enrollment Form'!P862=\"\",\"N\",\"Y\")))","v":""},{"$f":"IF($B855=\"N\",\"\",IF(AND('Enrollment Form'!$C862=\"ROC\",'Enrollment Form'!$DS862<>\"\"),\"Y\",IF(AND('Enrollment Form'!$C862=\"ROC\",'Enrollment Form'!$DS862=\"\"),\"N\",IF(AND('Enrollment Form'!$C862=\"Enroll\",'Enrollment Form'!$B862=\"Subscriber\",'Enrollment Form'!$CQ862=\"No\",'Enrollment Form'!$DS862=\"\"),\"N\",IF(AND('Enrollment Form'!$C862=\"Enroll\",'Enrollment Form'!$B862=\"Subscriber\",'Enrollment Form'!$CQ862=\"Yes\"),\"-\",\"Y\")))))","v":""},{"$f":"IF($B855=\"N\",\"\",IF(AND('Enrollment Form'!$C862=\"ROC\",'Enrollment Form'!$DT862<>\"\"),\"Y\",IF(AND('Enrollment Form'!$C862=\"ROC\",'Enrollment Form'!$DT862=\"\"),\"N\",IF(AND('Enrollment Form'!$C862=\"Enroll\",'Enrollment Form'!$B862=\"Subscriber\",'Enrollment Form'!$CQ862=\"No\",'Enrollment Form'!$DT862=\"\"),\"N\",IF(AND('Enrollment Form'!$C862=\"Enroll\",'Enrollment Form'!$B862=\"Subscriber\",'Enrollment Form'!$CQ862=\"Yes\"),\"-\",\"Y\")))))","v":""},{"$f":"IF('Enrollment Form'!AH862=\"\",\"\",IF(ISERROR(SEARCH(\".\",'Enrollment Form'!AH862,SEARCH(\"@\",'Enrollment Form'!AH862))),\"N\",\"Y\"))","v":""},{"$f":"IF(OR($B855=\"N\",'Enrollment Form'!$G862=\"\"),\"\",IF('Enrollment Form'!$B862<>\"Subscriber\",\"-\",IF(COUNTIF('Enrollment Form'!$AS862:$AT862,\"Yes\")=2,\"N\",\"Y\")))","v":""},{"$f":"IF(OR('Enrollment Form'!$CC862=\"\",'Enrollment Form'!$CC862=\"No\"),\"-\",IF(AND('Enrollment Form'!$CC862=\"Yes\",'Enrollment Form'!$CD862=\"\"),\"N\",\"Y\"))","v":"-"},{"$f":"IF(OR('Enrollment Form'!$CE862=\"\",'Enrollment Form'!$CE862=\"No\"),\"-\",IF(AND('Enrollment Form'!$CE862=\"Yes\",'Enrollment Form'!$CF862=\"\"),\"N\",\"Y\"))","v":"-"},{"$f":"IF(OR('Enrollment Form'!$CG862=\"\",'Enrollment Form'!$CG862=\"No\"),\"-\",IF(AND('Enrollment Form'!$CG862=\"Yes\",'Enrollment Form'!$CH862=\"\"),\"N\",\"Y\"))","v":"-"},{"$f":"IF(OR('Enrollment Form'!$CG862=\"\",'Enrollment Form'!$CG862=\"No\"),\"-\",IF(AND('Enrollment Form'!$CG862=\"Yes\",'Enrollment Form'!$CI862=\"\"),\"N\",\"Y\"))","v":"-"},{"$f":"IF('Enrollment Form'!B862<>\"Subscriber\",\"-\",IF(AND('Enrollment Form'!B862=\"Subscriber\",'Enrollment Form'!C862=\"Enroll\",'Enrollment Form'!AA862=\"\"),\"N\",\"Y\"))","v":"-"},{"$f":"IF(OR('Enrollment Form'!B862=\"Subscriber\",'Enrollment Form'!B862=\"\"),\"-\",IF('Enrollment Form'!BI862=\"\",\"N\",\"Y\"))","v":"-"},{"$f":"IF('Enrollment Form'!B862<>\"Subscriber\",\"-\",IF(AND('Enrollment Form'!B862=\"Subscriber\",'Enrollment Form'!G862=\"\"),\"N\",\"Y\"))","v":"-"},{"$f":"IF('Enrollment Form'!A862=\"\",\"\",IF('Enrollment Form'!B862=\"Subscriber\",\"-\",IF(AND('Enrollment Form'!B862<>\"Subscriber\",'Enrollment Form'!G862='Enrollment Form'!H862),\"N\",\"Y\")))","v":""},0]
[863,{"$f":"IF('Enrollment Form'!$A863<>\"\",\"Y\",\"N\")","v":"N"},{"$f":"IF(AND('Enrollment Form'!$B863=\"\",'Enrollment Form'!$C863<>\"\"),\"N\",IF($B856=\"N\",\"\",\"Y\"))","v":""},{"$f":"IF(OR($B856=\"N\",'Enrollment Form'!G863=\"\"),\"\",IF('Enrollment Form'!$B863<>\"Subscriber\",\"\",IF('Enrollment Form'!$G863='Enrollment Form'!$H863,\"Y\",\"N\")))","v":""},{"$f":"IF($B856=\"N\",\"\",IF(AND(COUNTIFS('Enrollment Form'!$H$11:$H$1000,'Enrollment Form'!$H863,'Enrollment Form'!$B$11:$B$1000,'Enrollment Form'!$B863)>1,'Enrollment Form'!$H863<>\"\"),\"N\",\"Y\"))","v":""},{"$f":"IF($B856=\"N\",\"\",IF(LEN('Enrollment Form'!$Y863)=0,\"\",IF(LEN('Enrollment Form'!$Y863)<>5,\"N\",\"Y\")))","v":""},{"$f":"IF($B856=\"N\",\"\",IF(LEN('Enrollment Form'!$AD863=0),\"\",IF(LEN('Enrollment Form'!$AD863)<>5,\"N\",\"Y\")))","v":""},{"$f":"IF($B856=\"N\",\"\",IF(LEN('Enrollment Form'!$BL863=0),\"\",IF(LEN('Enrollment Form'!$BL863)<>5,\"N\",\"Y\")))","v":""},{"$f":"IF($B856=\"N\",\"\",IF(LEN('Enrollment Form'!$AE863)=0,\"\",IF(LEN('Enrollment Form'!$AE863)<>10,\"N\",\"Y\")))","v":""},{"$f":"IF($B856=\"N\",\"\",IF(LEN('Enrollment Form'!$AF863)=0,\"\",IF(LEN('Enrollment Form'!$AF863)<>10,\"N\",\"Y\")))","v":""},{"$f":"IF('Enrollment Form'!$O863<>\"Graded\",\"-\",IF(AND('Enrollment Form'!$O863=\"Graded\",'Enrollment Form'!$AO863<>\"\"),\"Y\",\"N\"))","v":"-"},{"$f":"IF($B856=\"N\",\"\",IF(OR('Enrollment Form'!$B863<>\"Subscriber\",'Enrollment Form'!$C863=\"ROC\"),\"-\",IF(AND('Enrollment Form'!$B863=\"Subscriber\",'Enrollment Form'!$C863=\"Enroll\",'Enrollment Form'!$AJ863<>\"\"),\"Y\",\"N\")))","v":""},{"$f":"IF($B856=\"N\",\"\",IF(OR('Enrollment Form'!$B863<>\"Subscriber\",'Enrollment Form'!$C863=\"ROC\"),\"-\",IF(AND('Enrollment Form'!$B863=\"Subscriber\",'Enrollment Form'!$C863=\"Enroll\",'Enrollment Form'!$AK863<>\"\"),\"Y\",\"N\")))","v":""},{"$f":"IF($B856=\"N\",\"\",IF(OR('Enrollment Form'!$B863<>\"Subscriber\",'Enrollment Form'!$C863=\"ROC\"),\"-\",IF(AND('Enrollment Form'!$B863=\"Subscriber\",'Enrollment Form'!$C863=\"Enroll\",'Enrollment Form'!$AL863<>\"\"),\"Y\",\"N\")))","v":""},{"$f":"IF($B856=\"N\",\"\",IF(OR('Enrollment Form'!$B863<>\"Subscriber\",'Enrollment Form'!$C863=\"ROC\"),\"-\",IF(AND('Enrollment Form'!$B863=\"Subscriber\",'Enrollment Form'!$C863=\"Enroll\",'Enrollment Form'!$AM863<>\"\"),\"Y\",\"N\")))","v":""},{"$f":"IF($B856=\"N\",\"\",IF(OR('Enrollment Form'!$B863<>\"Subscriber\",'Enrollment Form'!$C863=\"ROC\"),\"-\",IF(AND('Enrollment Form'!$B863=\"Subscriber\",'Enrollment Form'!$C863=\"Enroll\",'Enrollment Form'!$AN863<>\"\"),\"Y\",\"N\")))","v":""},{"$f":"IF($B856=\"N\",\"\",IF(OR('Enrollment Form'!$B863<>\"Subscriber\",'Enrollment Form'!$C863=\"ROC\"),\"-\",IF(AND('Enrollment Form'!$B863=\"Subscriber\",'Enrollment Form'!$C863=\"Enroll\",'Enrollment Form'!$AP863<>\"\"),\"Y\",\"N\")))","v":""},{"$f":"IF($B856=\"N\",\"\",IF($Q856=\"-\",\"-\",IF(AND($Q856=\"Y\",'Enrollment Form'!$AP863=\"No\"),\"-\",IF(AND($Q856=\"Y\",'Enrollment Form'!$AP863=\"Yes\",'Enrollment Form'!$AQ863<>\"\"),\"Y\",\"N\"))))","v":""},{"$f":"IF($B856=\"N\",\"\",IF(OR('Enrollment Form'!$B863<>\"Subscriber\",'Enrollment Form'!$C863=\"ROC\"),\"-\",IF(AND('Enrollment Form'!$B863=\"Subscriber\",'Enrollment Form'!$C863=\"Enroll\",'Enrollment Form'!$CO863<>\"\"),\"Y\",\"N\")))","v":""},{"$f":"IF($B856=\"N\",\"\",IF($S856=\"-\",\"-\",IF(AND($S856=\"Y\",'Enrollment Form'!$CO863=\"No\"),\"-\",IF(AND($S856=\"Y\",'Enrollment Form'!$CO863=\"Yes\",'Enrollment Form'!$CP863<>\"\"),\"Y\",\"N\"))))","v":""},{"$f":"IF(OR('Enrollment Form'!$AV863=\"Yes\",'Enrollment Form'!$AV863=\"\"),\"-\",IF(AND('Enrollment Form'!$AV863=\"No\",ISERROR(FIND(\"HMO\",VLOOKUP('Enrollment Form'!G863,'Enrollment Form'!H$11:J$1000,3,FALSE),1))=FALSE,COUNTA('Enrollment Form'!$AW863:$AZ863)=4),\"Y\",\"N\"))","v":"-"},{"$f":"IF($B856=\"N\",\"\",IF('Enrollment Form'!$B863=\"Subscriber\",\"-\",IF(COUNTA('Enrollment Form'!$BE863,'Enrollment Form'!$BG863)=2,\"Y\",\"N\")))","v":""},{"$f":"IF($B856=\"N\",\"\",IF(OR('Enrollment Form'!$AU863=\"\",'Enrollment Form'!$AU863=\"No\"),\"-\",IF(AND('Enrollment Form'!$AU863=\"Yes\",COUNTA('Enrollment Form'!$CK863)=1),\"Y\",\"N\")))","v":""},{"$f":"IF(OR('Enrollment Form'!$CK863=\"\",'Enrollment Form'!$CK863=\"No\"),\"-\",IF(COUNTA('Enrollment Form'!$CM863:$CN863)=2,\"Y\",\"N\"))","v":"-"},{"$f":"IF($B856=\"N\",\"\",IF(COUNTIF('Enrollment Form'!$CZ863:$DO863,\"Other\")=COUNTA('Enrollment Form'!$DF863,'Enrollment Form'!$DA863,'Enrollment Form'!$DK863,'Enrollment Form'!$DP863),\"Y\",\"N\"))","v":""},{"$f":"IF($B856=\"N\",\"\",IF(OR('Enrollment Form'!B863<>\"Subscriber\",'Enrollment Form'!C863=\"ROC\",COUNTIF('Enrollment Form'!AS863:AT863,\"Yes\")>=1),\"-\",IF(AND('Enrollment Form'!C863=\"Enroll\",COUNTIF('Enrollment Form'!AS863:AT863,\"No\")=2,'Enrollment Form'!AU863=\"\"),\"N\",\"Y\")))","v":""},{"$f":"IF(OR(B856=\"N\",'Enrollment Form'!B863<>\"Subscriber\",'Enrollment Form'!C863=\"ROC\",'Enrollment Form'!O863<>\"Multiple of Salary\"),\"-\",IF(COUNTA('Enrollment Form'!T863:U863)<2,\"N\",\"Y\"))","v":"-"},{"$f":"IF(B856=\"N\",\"\",IF(OR('Enrollment Form'!C863=\"ROC\",'Enrollment Form'!B863<>\"Subscriber\",'Enrollment Form'!O863=\"Waive\",'Enrollment Form'!O863=\"\"),\"-\",IF('Enrollment Form'!P863=\"\",\"N\",\"Y\")))","v":""},{"$f":"IF($B856=\"N\",\"\",IF(AND('Enrollment Form'!$C863=\"ROC\",'Enrollment Form'!$DS863<>\"\"),\"Y\",IF(AND('Enrollment Form'!$C863=\"ROC\",'Enrollment Form'!$DS863=\"\"),\"N\",IF(AND('Enrollment Form'!$C863=\"Enroll\",'Enrollment Form'!$B863=\"Subscriber\",'Enrollment Form'!$CQ863=\"No\",'Enrollment Form'!$DS863=\"\"),\"N\",IF(AND('Enrollment Form'!$C863=\"Enroll\",'Enrollment Form'!$B863=\"Subscriber\",'Enrollment Form'!$CQ863=\"Yes\"),\"-\",\"Y\")))))","v":""},{"$f":"IF($B856=\"N\",\"\",IF(AND('Enrollment Form'!$C863=\"ROC\",'Enrollment Form'!$DT863<>\"\"),\"Y\",IF(AND('Enrollment Form'!$C863=\"ROC\",'Enrollment Form'!$DT863=\"\"),\"N\",IF(AND('Enrollment Form'!$C863=\"Enroll\",'Enrollment Form'!$B863=\"Subscriber\",'Enrollment Form'!$CQ863=\"No\",'Enrollment Form'!$DT863=\"\"),\"N\",IF(AND('Enrollment Form'!$C863=\"Enroll\",'Enrollment Form'!$B863=\"Subscriber\",'Enrollment Form'!$CQ863=\"Yes\"),\"-\",\"Y\")))))","v":""},{"$f":"IF('Enrollment Form'!AH863=\"\",\"\",IF(ISERROR(SEARCH(\".\",'Enrollment Form'!AH863,SEARCH(\"@\",'Enrollment Form'!AH863))),\"N\",\"Y\"))","v":""},{"$f":"IF(OR($B856=\"N\",'Enrollment Form'!$G863=\"\"),\"\",IF('Enrollment Form'!$B863<>\"Subscriber\",\"-\",IF(COUNTIF('Enrollment Form'!$AS863:$AT863,\"Yes\")=2,\"N\",\"Y\")))","v":""},{"$f":"IF(OR('Enrollment Form'!$CC863=\"\",'Enrollment Form'!$CC863=\"No\"),\"-\",IF(AND('Enrollment Form'!$CC863=\"Yes\",'Enrollment Form'!$CD863=\"\"),\"N\",\"Y\"))","v":"-"},{"$f":"IF(OR('Enrollment Form'!$CE863=\"\",'Enrollment Form'!$CE863=\"No\"),\"-\",IF(AND('Enrollment Form'!$CE863=\"Yes\",'Enrollment Form'!$CF863=\"\"),\"N\",\"Y\"))","v":"-"},{"$f":"IF(OR('Enrollment Form'!$CG863=\"\",'Enrollment Form'!$CG863=\"No\"),\"-\",IF(AND('Enrollment Form'!$CG863=\"Yes\",'Enrollment Form'!$CH863=\"\"),\"N\",\"Y\"))","v":"-"},{"$f":"IF(OR('Enrollment Form'!$CG863=\"\",'Enrollment Form'!$CG863=\"No\"),\"-\",IF(AND('Enrollment Form'!$CG863=\"Yes\",'Enrollment Form'!$CI863=\"\"),\"N\",\"Y\"))","v":"-"},{"$f":"IF('Enrollment Form'!B863<>\"Subscriber\",\"-\",IF(AND('Enrollment Form'!B863=\"Subscriber\",'Enrollment Form'!C863=\"Enroll\",'Enrollment Form'!AA863=\"\"),\"N\",\"Y\"))","v":"-"},{"$f":"IF(OR('Enrollment Form'!B863=\"Subscriber\",'Enrollment Form'!B863=\"\"),\"-\",IF('Enrollment Form'!BI863=\"\",\"N\",\"Y\"))","v":"-"},{"$f":"IF('Enrollment Form'!B863<>\"Subscriber\",\"-\",IF(AND('Enrollment Form'!B863=\"Subscriber\",'Enrollment Form'!G863=\"\"),\"N\",\"Y\"))","v":"-"},{"$f":"IF('Enrollment Form'!A863=\"\",\"\",IF('Enrollment Form'!B863=\"Subscriber\",\"-\",IF(AND('Enrollment Form'!B863<>\"Subscriber\",'Enrollment Form'!G863='Enrollment Form'!H863),\"N\",\"Y\")))","v":""},0]
[864,{"$f":"IF('Enrollment Form'!$A864<>\"\",\"Y\",\"N\")","v":"N"},{"$f":"IF(AND('Enrollment Form'!$B864=\"\",'Enrollment Form'!$C864<>\"\"),\"N\",IF($B857=\"N\",\"\",\"Y\"))","v":""},{"$f":"IF(OR($B857=\"N\",'Enrollment Form'!G864=\"\"),\"\",IF('Enrollment Form'!$B864<>\"Subscriber\",\"\",IF('Enrollment Form'!$G864='Enrollment Form'!$H864,\"Y\",\"N\")))","v":""},{"$f":"IF($B857=\"N\",\"\",IF(AND(COUNTIFS('Enrollment Form'!$H$11:$H$1000,'Enrollment Form'!$H864,'Enrollment Form'!$B$11:$B$1000,'Enrollment Form'!$B864)>1,'Enrollment Form'!$H864<>\"\"),\"N\",\"Y\"))","v":""},{"$f":"IF($B857=\"N\",\"\",IF(LEN('Enrollment Form'!$Y864)=0,\"\",IF(LEN('Enrollment Form'!$Y864)<>5,\"N\",\"Y\")))","v":""},{"$f":"IF($B857=\"N\",\"\",IF(LEN('Enrollment Form'!$AD864=0),\"\",IF(LEN('Enrollment Form'!$AD864)<>5,\"N\",\"Y\")))","v":""},{"$f":"IF($B857=\"N\",\"\",IF(LEN('Enrollment Form'!$BL864=0),\"\",IF(LEN('Enrollment Form'!$BL864)<>5,\"N\",\"Y\")))","v":""},{"$f":"IF($B857=\"N\",\"\",IF(LEN('Enrollment Form'!$AE864)=0,\"\",IF(LEN('Enrollment Form'!$AE864)<>10,\"N\",\"Y\")))","v":""},{"$f":"IF($B857=\"N\",\"\",IF(LEN('Enrollment Form'!$AF864)=0,\"\",IF(LEN('Enrollment Form'!$AF864)<>10,\"N\",\"Y\")))","v":""},{"$f":"IF('Enrollment Form'!$O864<>\"Graded\",\"-\",IF(AND('Enrollment Form'!$O864=\"Graded\",'Enrollment Form'!$AO864<>\"\"),\"Y\",\"N\"))","v":"-"},{"$f":"IF($B857=\"N\",\"\",IF(OR('Enrollment Form'!$B864<>\"Subscriber\",'Enrollment Form'!$C864=\"ROC\"),\"-\",IF(AND('Enrollment Form'!$B864=\"Subscriber\",'Enrollment Form'!$C864=\"Enroll\",'Enrollment Form'!$AJ864<>\"\"),\"Y\",\"N\")))","v":""},{"$f":"IF($B857=\"N\",\"\",IF(OR('Enrollment Form'!$B864<>\"Subscriber\",'Enrollment Form'!$C864=\"ROC\"),\"-\",IF(AND('Enrollment Form'!$B864=\"Subscriber\",'Enrollment Form'!$C864=\"Enroll\",'Enrollment Form'!$AK864<>\"\"),\"Y\",\"N\")))","v":""},{"$f":"IF($B857=\"N\",\"\",IF(OR('Enrollment Form'!$B864<>\"Subscriber\",'Enrollment Form'!$C864=\"ROC\"),\"-\",IF(AND('Enrollment Form'!$B864=\"Subscriber\",'Enrollment Form'!$C864=\"Enroll\",'Enrollment Form'!$AL864<>\"\"),\"Y\",\"N\")))","v":""},{"$f":"IF($B857=\"N\",\"\",IF(OR('Enrollment Form'!$B864<>\"Subscriber\",'Enrollment Form'!$C864=\"ROC\"),\"-\",IF(AND('Enrollment Form'!$B864=\"Subscriber\",'Enrollment Form'!$C864=\"Enroll\",'Enrollment Form'!$AM864<>\"\"),\"Y\",\"N\")))","v":""},{"$f":"IF($B857=\"N\",\"\",IF(OR('Enrollment Form'!$B864<>\"Subscriber\",'Enrollment Form'!$C864=\"ROC\"),\"-\",IF(AND('Enrollment Form'!$B864=\"Subscriber\",'Enrollment Form'!$C864=\"Enroll\",'Enrollment Form'!$AN864<>\"\"),\"Y\",\"N\")))","v":""},{"$f":"IF($B857=\"N\",\"\",IF(OR('Enrollment Form'!$B864<>\"Subscriber\",'Enrollment Form'!$C864=\"ROC\"),\"-\",IF(AND('Enrollment Form'!$B864=\"Subscriber\",'Enrollment Form'!$C864=\"Enroll\",'Enrollment Form'!$AP864<>\"\"),\"Y\",\"N\")))","v":""},{"$f":"IF($B857=\"N\",\"\",IF($Q857=\"-\",\"-\",IF(AND($Q857=\"Y\",'Enrollment Form'!$AP864=\"No\"),\"-\",IF(AND($Q857=\"Y\",'Enrollment Form'!$AP864=\"Yes\",'Enrollment Form'!$AQ864<>\"\"),\"Y\",\"N\"))))","v":""},{"$f":"IF($B857=\"N\",\"\",IF(OR('Enrollment Form'!$B864<>\"Subscriber\",'Enrollment Form'!$C864=\"ROC\"),\"-\",IF(AND('Enrollment Form'!$B864=\"Subscriber\",'Enrollment Form'!$C864=\"Enroll\",'Enrollment Form'!$CO864<>\"\"),\"Y\",\"N\")))","v":""},{"$f":"IF($B857=\"N\",\"\",IF($S857=\"-\",\"-\",IF(AND($S857=\"Y\",'Enrollment Form'!$CO864=\"No\"),\"-\",IF(AND($S857=\"Y\",'Enrollment Form'!$CO864=\"Yes\",'Enrollment Form'!$CP864<>\"\"),\"Y\",\"N\"))))","v":""},{"$f":"IF(OR('Enrollment Form'!$AV864=\"Yes\",'Enrollment Form'!$AV864=\"\"),\"-\",IF(AND('Enrollment Form'!$AV864=\"No\",ISERROR(FIND(\"HMO\",VLOOKUP('Enrollment Form'!G864,'Enrollment Form'!H$11:J$1000,3,FALSE),1))=FALSE,COUNTA('Enrollment Form'!$AW864:$AZ864)=4),\"Y\",\"N\"))","v":"-"},{"$f":"IF($B857=\"N\",\"\",IF('Enrollment Form'!$B864=\"Subscriber\",\"-\",IF(COUNTA('Enrollment Form'!$BE864,'Enrollment Form'!$BG864)=2,\"Y\",\"N\")))","v":""},{"$f":"IF($B857=\"N\",\"\",IF(OR('Enrollment Form'!$AU864=\"\",'Enrollment Form'!$AU864=\"No\"),\"-\",IF(AND('Enrollment Form'!$AU864=\"Yes\",COUNTA('Enrollment Form'!$CK864)=1),\"Y\",\"N\")))","v":""},{"$f":"IF(OR('Enrollment Form'!$CK864=\"\",'Enrollment Form'!$CK864=\"No\"),\"-\",IF(COUNTA('Enrollment Form'!$CM864:$CN864)=2,\"Y\",\"N\"))","v":"-"},{"$f":"IF($B857=\"N\",\"\",IF(COUNTIF('Enrollment Form'!$CZ864:$DO864,\"Other\")=COUNTA('Enrollment Form'!$DF864,'Enrollment Form'!$DA864,'Enrollment Form'!$DK864,'Enrollment Form'!$DP864),\"Y\",\"N\"))","v":""},{"$f":"IF($B857=\"N\",\"\",IF(OR('Enrollment Form'!B864<>\"Subscriber\",'Enrollment Form'!C864=\"ROC\",COUNTIF('Enrollment Form'!AS864:AT864,\"Yes\")>=1),\"-\",IF(AND('Enrollment Form'!C864=\"Enroll\",COUNTIF('Enrollment Form'!AS864:AT864,\"No\")=2,'Enrollment Form'!AU864=\"\"),\"N\",\"Y\")))","v":""},{"$f":"IF(OR(B857=\"N\",'Enrollment Form'!B864<>\"Subscriber\",'Enrollment Form'!C864=\"ROC\",'Enrollment Form'!O864<>\"Multiple of Salary\"),\"-\",IF(COUNTA('Enrollment Form'!T864:U864)<2,\"N\",\"Y\"))","v":"-"},{"$f":"IF(B857=\"N\",\"\",IF(OR('Enrollment Form'!C864=\"ROC\",'Enrollment Form'!B864<>\"Subscriber\",'Enrollment Form'!O864=\"Waive\",'Enrollment Form'!O864=\"\"),\"-\",IF('Enrollment Form'!P864=\"\",\"N\",\"Y\")))","v":""},{"$f":"IF($B857=\"N\",\"\",IF(AND('Enrollment Form'!$C864=\"ROC\",'Enrollment Form'!$DS864<>\"\"),\"Y\",IF(AND('Enrollment Form'!$C864=\"ROC\",'Enrollment Form'!$DS864=\"\"),\"N\",IF(AND('Enrollment Form'!$C864=\"Enroll\",'Enrollment Form'!$B864=\"Subscriber\",'Enrollment Form'!$CQ864=\"No\",'Enrollment Form'!$DS864=\"\"),\"N\",IF(AND('Enrollment Form'!$C864=\"Enroll\",'Enrollment Form'!$B864=\"Subscriber\",'Enrollment Form'!$CQ864=\"Yes\"),\"-\",\"Y\")))))","v":""},{"$f":"IF($B857=\"N\",\"\",IF(AND('Enrollment Form'!$C864=\"ROC\",'Enrollment Form'!$DT864<>\"\"),\"Y\",IF(AND('Enrollment Form'!$C864=\"ROC\",'Enrollment Form'!$DT864=\"\"),\"N\",IF(AND('Enrollment Form'!$C864=\"Enroll\",'Enrollment Form'!$B864=\"Subscriber\",'Enrollment Form'!$CQ864=\"No\",'Enrollment Form'!$DT864=\"\"),\"N\",IF(AND('Enrollment Form'!$C864=\"Enroll\",'Enrollment Form'!$B864=\"Subscriber\",'Enrollment Form'!$CQ864=\"Yes\"),\"-\",\"Y\")))))","v":""},{"$f":"IF('Enrollment Form'!AH864=\"\",\"\",IF(ISERROR(SEARCH(\".\",'Enrollment Form'!AH864,SEARCH(\"@\",'Enrollment Form'!AH864))),\"N\",\"Y\"))","v":""},{"$f":"IF(OR($B857=\"N\",'Enrollment Form'!$G864=\"\"),\"\",IF('Enrollment Form'!$B864<>\"Subscriber\",\"-\",IF(COUNTIF('Enrollment Form'!$AS864:$AT864,\"Yes\")=2,\"N\",\"Y\")))","v":""},{"$f":"IF(OR('Enrollment Form'!$CC864=\"\",'Enrollment Form'!$CC864=\"No\"),\"-\",IF(AND('Enrollment Form'!$CC864=\"Yes\",'Enrollment Form'!$CD864=\"\"),\"N\",\"Y\"))","v":"-"},{"$f":"IF(OR('Enrollment Form'!$CE864=\"\",'Enrollment Form'!$CE864=\"No\"),\"-\",IF(AND('Enrollment Form'!$CE864=\"Yes\",'Enrollment Form'!$CF864=\"\"),\"N\",\"Y\"))","v":"-"},{"$f":"IF(OR('Enrollment Form'!$CG864=\"\",'Enrollment Form'!$CG864=\"No\"),\"-\",IF(AND('Enrollment Form'!$CG864=\"Yes\",'Enrollment Form'!$CH864=\"\"),\"N\",\"Y\"))","v":"-"},{"$f":"IF(OR('Enrollment Form'!$CG864=\"\",'Enrollment Form'!$CG864=\"No\"),\"-\",IF(AND('Enrollment Form'!$CG864=\"Yes\",'Enrollment Form'!$CI864=\"\"),\"N\",\"Y\"))","v":"-"},{"$f":"IF('Enrollment Form'!B864<>\"Subscriber\",\"-\",IF(AND('Enrollment Form'!B864=\"Subscriber\",'Enrollment Form'!C864=\"Enroll\",'Enrollment Form'!AA864=\"\"),\"N\",\"Y\"))","v":"-"},{"$f":"IF(OR('Enrollment Form'!B864=\"Subscriber\",'Enrollment Form'!B864=\"\"),\"-\",IF('Enrollment Form'!BI864=\"\",\"N\",\"Y\"))","v":"-"},{"$f":"IF('Enrollment Form'!B864<>\"Subscriber\",\"-\",IF(AND('Enrollment Form'!B864=\"Subscriber\",'Enrollment Form'!G864=\"\"),\"N\",\"Y\"))","v":"-"},{"$f":"IF('Enrollment Form'!A864=\"\",\"\",IF('Enrollment Form'!B864=\"Subscriber\",\"-\",IF(AND('Enrollment Form'!B864<>\"Subscriber\",'Enrollment Form'!G864='Enrollment Form'!H864),\"N\",\"Y\")))","v":""},0]
[865,{"$f":"IF('Enrollment Form'!$A865<>\"\",\"Y\",\"N\")","v":"N"},{"$f":"IF(AND('Enrollment Form'!$B865=\"\",'Enrollment Form'!$C865<>\"\"),\"N\",IF($B858=\"N\",\"\",\"Y\"))","v":""},{"$f":"IF(OR($B858=\"N\",'Enrollment Form'!G865=\"\"),\"\",IF('Enrollment Form'!$B865<>\"Subscriber\",\"\",IF('Enrollment Form'!$G865='Enrollment Form'!$H865,\"Y\",\"N\")))","v":""},{"$f":"IF($B858=\"N\",\"\",IF(AND(COUNTIFS('Enrollment Form'!$H$11:$H$1000,'Enrollment Form'!$H865,'Enrollment Form'!$B$11:$B$1000,'Enrollment Form'!$B865)>1,'Enrollment Form'!$H865<>\"\"),\"N\",\"Y\"))","v":""},{"$f":"IF($B858=\"N\",\"\",IF(LEN('Enrollment Form'!$Y865)=0,\"\",IF(LEN('Enrollment Form'!$Y865)<>5,\"N\",\"Y\")))","v":""},{"$f":"IF($B858=\"N\",\"\",IF(LEN('Enrollment Form'!$AD865=0),\"\",IF(LEN('Enrollment Form'!$AD865)<>5,\"N\",\"Y\")))","v":""},{"$f":"IF($B858=\"N\",\"\",IF(LEN('Enrollment Form'!$BL865=0),\"\",IF(LEN('Enrollment Form'!$BL865)<>5,\"N\",\"Y\")))","v":""},{"$f":"IF($B858=\"N\",\"\",IF(LEN('Enrollment Form'!$AE865)=0,\"\",IF(LEN('Enrollment Form'!$AE865)<>10,\"N\",\"Y\")))","v":""},{"$f":"IF($B858=\"N\",\"\",IF(LEN('Enrollment Form'!$AF865)=0,\"\",IF(LEN('Enrollment Form'!$AF865)<>10,\"N\",\"Y\")))","v":""},{"$f":"IF('Enrollment Form'!$O865<>\"Graded\",\"-\",IF(AND('Enrollment Form'!$O865=\"Graded\",'Enrollment Form'!$AO865<>\"\"),\"Y\",\"N\"))","v":"-"},{"$f":"IF($B858=\"N\",\"\",IF(OR('Enrollment Form'!$B865<>\"Subscriber\",'Enrollment Form'!$C865=\"ROC\"),\"-\",IF(AND('Enrollment Form'!$B865=\"Subscriber\",'Enrollment Form'!$C865=\"Enroll\",'Enrollment Form'!$AJ865<>\"\"),\"Y\",\"N\")))","v":""},{"$f":"IF($B858=\"N\",\"\",IF(OR('Enrollment Form'!$B865<>\"Subscriber\",'Enrollment Form'!$C865=\"ROC\"),\"-\",IF(AND('Enrollment Form'!$B865=\"Subscriber\",'Enrollment Form'!$C865=\"Enroll\",'Enrollment Form'!$AK865<>\"\"),\"Y\",\"N\")))","v":""},{"$f":"IF($B858=\"N\",\"\",IF(OR('Enrollment Form'!$B865<>\"Subscriber\",'Enrollment Form'!$C865=\"ROC\"),\"-\",IF(AND('Enrollment Form'!$B865=\"Subscriber\",'Enrollment Form'!$C865=\"Enroll\",'Enrollment Form'!$AL865<>\"\"),\"Y\",\"N\")))","v":""},{"$f":"IF($B858=\"N\",\"\",IF(OR('Enrollment Form'!$B865<>\"Subscriber\",'Enrollment Form'!$C865=\"ROC\"),\"-\",IF(AND('Enrollment Form'!$B865=\"Subscriber\",'Enrollment Form'!$C865=\"Enroll\",'Enrollment Form'!$AM865<>\"\"),\"Y\",\"N\")))","v":""},{"$f":"IF($B858=\"N\",\"\",IF(OR('Enrollment Form'!$B865<>\"Subscriber\",'Enrollment Form'!$C865=\"ROC\"),\"-\",IF(AND('Enrollment Form'!$B865=\"Subscriber\",'Enrollment Form'!$C865=\"Enroll\",'Enrollment Form'!$AN865<>\"\"),\"Y\",\"N\")))","v":""},{"$f":"IF($B858=\"N\",\"\",IF(OR('Enrollment Form'!$B865<>\"Subscriber\",'Enrollment Form'!$C865=\"ROC\"),\"-\",IF(AND('Enrollment Form'!$B865=\"Subscriber\",'Enrollment Form'!$C865=\"Enroll\",'Enrollment Form'!$AP865<>\"\"),\"Y\",\"N\")))","v":""},{"$f":"IF($B858=\"N\",\"\",IF($Q858=\"-\",\"-\",IF(AND($Q858=\"Y\",'Enrollment Form'!$AP865=\"No\"),\"-\",IF(AND($Q858=\"Y\",'Enrollment Form'!$AP865=\"Yes\",'Enrollment Form'!$AQ865<>\"\"),\"Y\",\"N\"))))","v":""},{"$f":"IF($B858=\"N\",\"\",IF(OR('Enrollment Form'!$B865<>\"Subscriber\",'Enrollment Form'!$C865=\"ROC\"),\"-\",IF(AND('Enrollment Form'!$B865=\"Subscriber\",'Enrollment Form'!$C865=\"Enroll\",'Enrollment Form'!$CO865<>\"\"),\"Y\",\"N\")))","v":""},{"$f":"IF($B858=\"N\",\"\",IF($S858=\"-\",\"-\",IF(AND($S858=\"Y\",'Enrollment Form'!$CO865=\"No\"),\"-\",IF(AND($S858=\"Y\",'Enrollment Form'!$CO865=\"Yes\",'Enrollment Form'!$CP865<>\"\"),\"Y\",\"N\"))))","v":""},{"$f":"IF(OR('Enrollment Form'!$AV865=\"Yes\",'Enrollment Form'!$AV865=\"\"),\"-\",IF(AND('Enrollment Form'!$AV865=\"No\",ISERROR(FIND(\"HMO\",VLOOKUP('Enrollment Form'!G865,'Enrollment Form'!H$11:J$1000,3,FALSE),1))=FALSE,COUNTA('Enrollment Form'!$AW865:$AZ865)=4),\"Y\",\"N\"))","v":"-"},{"$f":"IF($B858=\"N\",\"\",IF('Enrollment Form'!$B865=\"Subscriber\",\"-\",IF(COUNTA('Enrollment Form'!$BE865,'Enrollment Form'!$BG865)=2,\"Y\",\"N\")))","v":""},{"$f":"IF($B858=\"N\",\"\",IF(OR('Enrollment Form'!$AU865=\"\",'Enrollment Form'!$AU865=\"No\"),\"-\",IF(AND('Enrollment Form'!$AU865=\"Yes\",COUNTA('Enrollment Form'!$CK865)=1),\"Y\",\"N\")))","v":""},{"$f":"IF(OR('Enrollment Form'!$CK865=\"\",'Enrollment Form'!$CK865=\"No\"),\"-\",IF(COUNTA('Enrollment Form'!$CM865:$CN865)=2,\"Y\",\"N\"))","v":"-"},{"$f":"IF($B858=\"N\",\"\",IF(COUNTIF('Enrollment Form'!$CZ865:$DO865,\"Other\")=COUNTA('Enrollment Form'!$DF865,'Enrollment Form'!$DA865,'Enrollment Form'!$DK865,'Enrollment Form'!$DP865),\"Y\",\"N\"))","v":""},{"$f":"IF($B858=\"N\",\"\",IF(OR('Enrollment Form'!B865<>\"Subscriber\",'Enrollment Form'!C865=\"ROC\",COUNTIF('Enrollment Form'!AS865:AT865,\"Yes\")>=1),\"-\",IF(AND('Enrollment Form'!C865=\"Enroll\",COUNTIF('Enrollment Form'!AS865:AT865,\"No\")=2,'Enrollment Form'!AU865=\"\"),\"N\",\"Y\")))","v":""},{"$f":"IF(OR(B858=\"N\",'Enrollment Form'!B865<>\"Subscriber\",'Enrollment Form'!C865=\"ROC\",'Enrollment Form'!O865<>\"Multiple of Salary\"),\"-\",IF(COUNTA('Enrollment Form'!T865:U865)<2,\"N\",\"Y\"))","v":"-"},{"$f":"IF(B858=\"N\",\"\",IF(OR('Enrollment Form'!C865=\"ROC\",'Enrollment Form'!B865<>\"Subscriber\",'Enrollment Form'!O865=\"Waive\",'Enrollment Form'!O865=\"\"),\"-\",IF('Enrollment Form'!P865=\"\",\"N\",\"Y\")))","v":""},{"$f":"IF($B858=\"N\",\"\",IF(AND('Enrollment Form'!$C865=\"ROC\",'Enrollment Form'!$DS865<>\"\"),\"Y\",IF(AND('Enrollment Form'!$C865=\"ROC\",'Enrollment Form'!$DS865=\"\"),\"N\",IF(AND('Enrollment Form'!$C865=\"Enroll\",'Enrollment Form'!$B865=\"Subscriber\",'Enrollment Form'!$CQ865=\"No\",'Enrollment Form'!$DS865=\"\"),\"N\",IF(AND('Enrollment Form'!$C865=\"Enroll\",'Enrollment Form'!$B865=\"Subscriber\",'Enrollment Form'!$CQ865=\"Yes\"),\"-\",\"Y\")))))","v":""},{"$f":"IF($B858=\"N\",\"\",IF(AND('Enrollment Form'!$C865=\"ROC\",'Enrollment Form'!$DT865<>\"\"),\"Y\",IF(AND('Enrollment Form'!$C865=\"ROC\",'Enrollment Form'!$DT865=\"\"),\"N\",IF(AND('Enrollment Form'!$C865=\"Enroll\",'Enrollment Form'!$B865=\"Subscriber\",'Enrollment Form'!$CQ865=\"No\",'Enrollment Form'!$DT865=\"\"),\"N\",IF(AND('Enrollment Form'!$C865=\"Enroll\",'Enrollment Form'!$B865=\"Subscriber\",'Enrollment Form'!$CQ865=\"Yes\"),\"-\",\"Y\")))))","v":""},{"$f":"IF('Enrollment Form'!AH865=\"\",\"\",IF(ISERROR(SEARCH(\".\",'Enrollment Form'!AH865,SEARCH(\"@\",'Enrollment Form'!AH865))),\"N\",\"Y\"))","v":""},{"$f":"IF(OR($B858=\"N\",'Enrollment Form'!$G865=\"\"),\"\",IF('Enrollment Form'!$B865<>\"Subscriber\",\"-\",IF(COUNTIF('Enrollment Form'!$AS865:$AT865,\"Yes\")=2,\"N\",\"Y\")))","v":""},{"$f":"IF(OR('Enrollment Form'!$CC865=\"\",'Enrollment Form'!$CC865=\"No\"),\"-\",IF(AND('Enrollment Form'!$CC865=\"Yes\",'Enrollment Form'!$CD865=\"\"),\"N\",\"Y\"))","v":"-"},{"$f":"IF(OR('Enrollment Form'!$CE865=\"\",'Enrollment Form'!$CE865=\"No\"),\"-\",IF(AND('Enrollment Form'!$CE865=\"Yes\",'Enrollment Form'!$CF865=\"\"),\"N\",\"Y\"))","v":"-"},{"$f":"IF(OR('Enrollment Form'!$CG865=\"\",'Enrollment Form'!$CG865=\"No\"),\"-\",IF(AND('Enrollment Form'!$CG865=\"Yes\",'Enrollment Form'!$CH865=\"\"),\"N\",\"Y\"))","v":"-"},{"$f":"IF(OR('Enrollment Form'!$CG865=\"\",'Enrollment Form'!$CG865=\"No\"),\"-\",IF(AND('Enrollment Form'!$CG865=\"Yes\",'Enrollment Form'!$CI865=\"\"),\"N\",\"Y\"))","v":"-"},{"$f":"IF('Enrollment Form'!B865<>\"Subscriber\",\"-\",IF(AND('Enrollment Form'!B865=\"Subscriber\",'Enrollment Form'!C865=\"Enroll\",'Enrollment Form'!AA865=\"\"),\"N\",\"Y\"))","v":"-"},{"$f":"IF(OR('Enrollment Form'!B865=\"Subscriber\",'Enrollment Form'!B865=\"\"),\"-\",IF('Enrollment Form'!BI865=\"\",\"N\",\"Y\"))","v":"-"},{"$f":"IF('Enrollment Form'!B865<>\"Subscriber\",\"-\",IF(AND('Enrollment Form'!B865=\"Subscriber\",'Enrollment Form'!G865=\"\"),\"N\",\"Y\"))","v":"-"},{"$f":"IF('Enrollment Form'!A865=\"\",\"\",IF('Enrollment Form'!B865=\"Subscriber\",\"-\",IF(AND('Enrollment Form'!B865<>\"Subscriber\",'Enrollment Form'!G865='Enrollment Form'!H865),\"N\",\"Y\")))","v":""},0]
[866,{"$f":"IF('Enrollment Form'!$A866<>\"\",\"Y\",\"N\")","v":"N"},{"$f":"IF(AND('Enrollment Form'!$B866=\"\",'Enrollment Form'!$C866<>\"\"),\"N\",IF($B859=\"N\",\"\",\"Y\"))","v":""},{"$f":"IF(OR($B859=\"N\",'Enrollment Form'!G866=\"\"),\"\",IF('Enrollment Form'!$B866<>\"Subscriber\",\"\",IF('Enrollment Form'!$G866='Enrollment Form'!$H866,\"Y\",\"N\")))","v":""},{"$f":"IF($B859=\"N\",\"\",IF(AND(COUNTIFS('Enrollment Form'!$H$11:$H$1000,'Enrollment Form'!$H866,'Enrollment Form'!$B$11:$B$1000,'Enrollment Form'!$B866)>1,'Enrollment Form'!$H866<>\"\"),\"N\",\"Y\"))","v":""},{"$f":"IF($B859=\"N\",\"\",IF(LEN('Enrollment Form'!$Y866)=0,\"\",IF(LEN('Enrollment Form'!$Y866)<>5,\"N\",\"Y\")))","v":""},{"$f":"IF($B859=\"N\",\"\",IF(LEN('Enrollment Form'!$AD866=0),\"\",IF(LEN('Enrollment Form'!$AD866)<>5,\"N\",\"Y\")))","v":""},{"$f":"IF($B859=\"N\",\"\",IF(LEN('Enrollment Form'!$BL866=0),\"\",IF(LEN('Enrollment Form'!$BL866)<>5,\"N\",\"Y\")))","v":""},{"$f":"IF($B859=\"N\",\"\",IF(LEN('Enrollment Form'!$AE866)=0,\"\",IF(LEN('Enrollment Form'!$AE866)<>10,\"N\",\"Y\")))","v":""},{"$f":"IF($B859=\"N\",\"\",IF(LEN('Enrollment Form'!$AF866)=0,\"\",IF(LEN('Enrollment Form'!$AF866)<>10,\"N\",\"Y\")))","v":""},{"$f":"IF('Enrollment Form'!$O866<>\"Graded\",\"-\",IF(AND('Enrollment Form'!$O866=\"Graded\",'Enrollment Form'!$AO866<>\"\"),\"Y\",\"N\"))","v":"-"},{"$f":"IF($B859=\"N\",\"\",IF(OR('Enrollment Form'!$B866<>\"Subscriber\",'Enrollment Form'!$C866=\"ROC\"),\"-\",IF(AND('Enrollment Form'!$B866=\"Subscriber\",'Enrollment Form'!$C866=\"Enroll\",'Enrollment Form'!$AJ866<>\"\"),\"Y\",\"N\")))","v":""},{"$f":"IF($B859=\"N\",\"\",IF(OR('Enrollment Form'!$B866<>\"Subscriber\",'Enrollment Form'!$C866=\"ROC\"),\"-\",IF(AND('Enrollment Form'!$B866=\"Subscriber\",'Enrollment Form'!$C866=\"Enroll\",'Enrollment Form'!$AK866<>\"\"),\"Y\",\"N\")))","v":""},{"$f":"IF($B859=\"N\",\"\",IF(OR('Enrollment Form'!$B866<>\"Subscriber\",'Enrollment Form'!$C866=\"ROC\"),\"-\",IF(AND('Enrollment Form'!$B866=\"Subscriber\",'Enrollment Form'!$C866=\"Enroll\",'Enrollment Form'!$AL866<>\"\"),\"Y\",\"N\")))","v":""},{"$f":"IF($B859=\"N\",\"\",IF(OR('Enrollment Form'!$B866<>\"Subscriber\",'Enrollment Form'!$C866=\"ROC\"),\"-\",IF(AND('Enrollment Form'!$B866=\"Subscriber\",'Enrollment Form'!$C866=\"Enroll\",'Enrollment Form'!$AM866<>\"\"),\"Y\",\"N\")))","v":""},{"$f":"IF($B859=\"N\",\"\",IF(OR('Enrollment Form'!$B866<>\"Subscriber\",'Enrollment Form'!$C866=\"ROC\"),\"-\",IF(AND('Enrollment Form'!$B866=\"Subscriber\",'Enrollment Form'!$C866=\"Enroll\",'Enrollment Form'!$AN866<>\"\"),\"Y\",\"N\")))","v":""},{"$f":"IF($B859=\"N\",\"\",IF(OR('Enrollment Form'!$B866<>\"Subscriber\",'Enrollment Form'!$C866=\"ROC\"),\"-\",IF(AND('Enrollment Form'!$B866=\"Subscriber\",'Enrollment Form'!$C866=\"Enroll\",'Enrollment Form'!$AP866<>\"\"),\"Y\",\"N\")))","v":""},{"$f":"IF($B859=\"N\",\"\",IF($Q859=\"-\",\"-\",IF(AND($Q859=\"Y\",'Enrollment Form'!$AP866=\"No\"),\"-\",IF(AND($Q859=\"Y\",'Enrollment Form'!$AP866=\"Yes\",'Enrollment Form'!$AQ866<>\"\"),\"Y\",\"N\"))))","v":""},{"$f":"IF($B859=\"N\",\"\",IF(OR('Enrollment Form'!$B866<>\"Subscriber\",'Enrollment Form'!$C866=\"ROC\"),\"-\",IF(AND('Enrollment Form'!$B866=\"Subscriber\",'Enrollment Form'!$C866=\"Enroll\",'Enrollment Form'!$CO866<>\"\"),\"Y\",\"N\")))","v":""},{"$f":"IF($B859=\"N\",\"\",IF($S859=\"-\",\"-\",IF(AND($S859=\"Y\",'Enrollment Form'!$CO866=\"No\"),\"-\",IF(AND($S859=\"Y\",'Enrollment Form'!$CO866=\"Yes\",'Enrollment Form'!$CP866<>\"\"),\"Y\",\"N\"))))","v":""},{"$f":"IF(OR('Enrollment Form'!$AV866=\"Yes\",'Enrollment Form'!$AV866=\"\"),\"-\",IF(AND('Enrollment Form'!$AV866=\"No\",ISERROR(FIND(\"HMO\",VLOOKUP('Enrollment Form'!G866,'Enrollment Form'!H$11:J$1000,3,FALSE),1))=FALSE,COUNTA('Enrollment Form'!$AW866:$AZ866)=4),\"Y\",\"N\"))","v":"-"},{"$f":"IF($B859=\"N\",\"\",IF('Enrollment Form'!$B866=\"Subscriber\",\"-\",IF(COUNTA('Enrollment Form'!$BE866,'Enrollment Form'!$BG866)=2,\"Y\",\"N\")))","v":""},{"$f":"IF($B859=\"N\",\"\",IF(OR('Enrollment Form'!$AU866=\"\",'Enrollment Form'!$AU866=\"No\"),\"-\",IF(AND('Enrollment Form'!$AU866=\"Yes\",COUNTA('Enrollment Form'!$CK866)=1),\"Y\",\"N\")))","v":""},{"$f":"IF(OR('Enrollment Form'!$CK866=\"\",'Enrollment Form'!$CK866=\"No\"),\"-\",IF(COUNTA('Enrollment Form'!$CM866:$CN866)=2,\"Y\",\"N\"))","v":"-"},{"$f":"IF($B859=\"N\",\"\",IF(COUNTIF('Enrollment Form'!$CZ866:$DO866,\"Other\")=COUNTA('Enrollment Form'!$DF866,'Enrollment Form'!$DA866,'Enrollment Form'!$DK866,'Enrollment Form'!$DP866),\"Y\",\"N\"))","v":""},{"$f":"IF($B859=\"N\",\"\",IF(OR('Enrollment Form'!B866<>\"Subscriber\",'Enrollment Form'!C866=\"ROC\",COUNTIF('Enrollment Form'!AS866:AT866,\"Yes\")>=1),\"-\",IF(AND('Enrollment Form'!C866=\"Enroll\",COUNTIF('Enrollment Form'!AS866:AT866,\"No\")=2,'Enrollment Form'!AU866=\"\"),\"N\",\"Y\")))","v":""},{"$f":"IF(OR(B859=\"N\",'Enrollment Form'!B866<>\"Subscriber\",'Enrollment Form'!C866=\"ROC\",'Enrollment Form'!O866<>\"Multiple of Salary\"),\"-\",IF(COUNTA('Enrollment Form'!T866:U866)<2,\"N\",\"Y\"))","v":"-"},{"$f":"IF(B859=\"N\",\"\",IF(OR('Enrollment Form'!C866=\"ROC\",'Enrollment Form'!B866<>\"Subscriber\",'Enrollment Form'!O866=\"Waive\",'Enrollment Form'!O866=\"\"),\"-\",IF('Enrollment Form'!P866=\"\",\"N\",\"Y\")))","v":""},{"$f":"IF($B859=\"N\",\"\",IF(AND('Enrollment Form'!$C866=\"ROC\",'Enrollment Form'!$DS866<>\"\"),\"Y\",IF(AND('Enrollment Form'!$C866=\"ROC\",'Enrollment Form'!$DS866=\"\"),\"N\",IF(AND('Enrollment Form'!$C866=\"Enroll\",'Enrollment Form'!$B866=\"Subscriber\",'Enrollment Form'!$CQ866=\"No\",'Enrollment Form'!$DS866=\"\"),\"N\",IF(AND('Enrollment Form'!$C866=\"Enroll\",'Enrollment Form'!$B866=\"Subscriber\",'Enrollment Form'!$CQ866=\"Yes\"),\"-\",\"Y\")))))","v":""},{"$f":"IF($B859=\"N\",\"\",IF(AND('Enrollment Form'!$C866=\"ROC\",'Enrollment Form'!$DT866<>\"\"),\"Y\",IF(AND('Enrollment Form'!$C866=\"ROC\",'Enrollment Form'!$DT866=\"\"),\"N\",IF(AND('Enrollment Form'!$C866=\"Enroll\",'Enrollment Form'!$B866=\"Subscriber\",'Enrollment Form'!$CQ866=\"No\",'Enrollment Form'!$DT866=\"\"),\"N\",IF(AND('Enrollment Form'!$C866=\"Enroll\",'Enrollment Form'!$B866=\"Subscriber\",'Enrollment Form'!$CQ866=\"Yes\"),\"-\",\"Y\")))))","v":""},{"$f":"IF('Enrollment Form'!AH866=\"\",\"\",IF(ISERROR(SEARCH(\".\",'Enrollment Form'!AH866,SEARCH(\"@\",'Enrollment Form'!AH866))),\"N\",\"Y\"))","v":""},{"$f":"IF(OR($B859=\"N\",'Enrollment Form'!$G866=\"\"),\"\",IF('Enrollment Form'!$B866<>\"Subscriber\",\"-\",IF(COUNTIF('Enrollment Form'!$AS866:$AT866,\"Yes\")=2,\"N\",\"Y\")))","v":""},{"$f":"IF(OR('Enrollment Form'!$CC866=\"\",'Enrollment Form'!$CC866=\"No\"),\"-\",IF(AND('Enrollment Form'!$CC866=\"Yes\",'Enrollment Form'!$CD866=\"\"),\"N\",\"Y\"))","v":"-"},{"$f":"IF(OR('Enrollment Form'!$CE866=\"\",'Enrollment Form'!$CE866=\"No\"),\"-\",IF(AND('Enrollment Form'!$CE866=\"Yes\",'Enrollment Form'!$CF866=\"\"),\"N\",\"Y\"))","v":"-"},{"$f":"IF(OR('Enrollment Form'!$CG866=\"\",'Enrollment Form'!$CG866=\"No\"),\"-\",IF(AND('Enrollment Form'!$CG866=\"Yes\",'Enrollment Form'!$CH866=\"\"),\"N\",\"Y\"))","v":"-"},{"$f":"IF(OR('Enrollment Form'!$CG866=\"\",'Enrollment Form'!$CG866=\"No\"),\"-\",IF(AND('Enrollment Form'!$CG866=\"Yes\",'Enrollment Form'!$CI866=\"\"),\"N\",\"Y\"))","v":"-"},{"$f":"IF('Enrollment Form'!B866<>\"Subscriber\",\"-\",IF(AND('Enrollment Form'!B866=\"Subscriber\",'Enrollment Form'!C866=\"Enroll\",'Enrollment Form'!AA866=\"\"),\"N\",\"Y\"))","v":"-"},{"$f":"IF(OR('Enrollment Form'!B866=\"Subscriber\",'Enrollment Form'!B866=\"\"),\"-\",IF('Enrollment Form'!BI866=\"\",\"N\",\"Y\"))","v":"-"},{"$f":"IF('Enrollment Form'!B866<>\"Subscriber\",\"-\",IF(AND('Enrollment Form'!B866=\"Subscriber\",'Enrollment Form'!G866=\"\"),\"N\",\"Y\"))","v":"-"},{"$f":"IF('Enrollment Form'!A866=\"\",\"\",IF('Enrollment Form'!B866=\"Subscriber\",\"-\",IF(AND('Enrollment Form'!B866<>\"Subscriber\",'Enrollment Form'!G866='Enrollment Form'!H866),\"N\",\"Y\")))","v":""},0]
[867,{"$f":"IF('Enrollment Form'!$A867<>\"\",\"Y\",\"N\")","v":"N"},{"$f":"IF(AND('Enrollment Form'!$B867=\"\",'Enrollment Form'!$C867<>\"\"),\"N\",IF($B860=\"N\",\"\",\"Y\"))","v":""},{"$f":"IF(OR($B860=\"N\",'Enrollment Form'!G867=\"\"),\"\",IF('Enrollment Form'!$B867<>\"Subscriber\",\"\",IF('Enrollment Form'!$G867='Enrollment Form'!$H867,\"Y\",\"N\")))","v":""},{"$f":"IF($B860=\"N\",\"\",IF(AND(COUNTIFS('Enrollment Form'!$H$11:$H$1000,'Enrollment Form'!$H867,'Enrollment Form'!$B$11:$B$1000,'Enrollment Form'!$B867)>1,'Enrollment Form'!$H867<>\"\"),\"N\",\"Y\"))","v":""},{"$f":"IF($B860=\"N\",\"\",IF(LEN('Enrollment Form'!$Y867)=0,\"\",IF(LEN('Enrollment Form'!$Y867)<>5,\"N\",\"Y\")))","v":""},{"$f":"IF($B860=\"N\",\"\",IF(LEN('Enrollment Form'!$AD867=0),\"\",IF(LEN('Enrollment Form'!$AD867)<>5,\"N\",\"Y\")))","v":""},{"$f":"IF($B860=\"N\",\"\",IF(LEN('Enrollment Form'!$BL867=0),\"\",IF(LEN('Enrollment Form'!$BL867)<>5,\"N\",\"Y\")))","v":""},{"$f":"IF($B860=\"N\",\"\",IF(LEN('Enrollment Form'!$AE867)=0,\"\",IF(LEN('Enrollment Form'!$AE867)<>10,\"N\",\"Y\")))","v":""},{"$f":"IF($B860=\"N\",\"\",IF(LEN('Enrollment Form'!$AF867)=0,\"\",IF(LEN('Enrollment Form'!$AF867)<>10,\"N\",\"Y\")))","v":""},{"$f":"IF('Enrollment Form'!$O867<>\"Graded\",\"-\",IF(AND('Enrollment Form'!$O867=\"Graded\",'Enrollment Form'!$AO867<>\"\"),\"Y\",\"N\"))","v":"-"},{"$f":"IF($B860=\"N\",\"\",IF(OR('Enrollment Form'!$B867<>\"Subscriber\",'Enrollment Form'!$C867=\"ROC\"),\"-\",IF(AND('Enrollment Form'!$B867=\"Subscriber\",'Enrollment Form'!$C867=\"Enroll\",'Enrollment Form'!$AJ867<>\"\"),\"Y\",\"N\")))","v":""},{"$f":"IF($B860=\"N\",\"\",IF(OR('Enrollment Form'!$B867<>\"Subscriber\",'Enrollment Form'!$C867=\"ROC\"),\"-\",IF(AND('Enrollment Form'!$B867=\"Subscriber\",'Enrollment Form'!$C867=\"Enroll\",'Enrollment Form'!$AK867<>\"\"),\"Y\",\"N\")))","v":""},{"$f":"IF($B860=\"N\",\"\",IF(OR('Enrollment Form'!$B867<>\"Subscriber\",'Enrollment Form'!$C867=\"ROC\"),\"-\",IF(AND('Enrollment Form'!$B867=\"Subscriber\",'Enrollment Form'!$C867=\"Enroll\",'Enrollment Form'!$AL867<>\"\"),\"Y\",\"N\")))","v":""},{"$f":"IF($B860=\"N\",\"\",IF(OR('Enrollment Form'!$B867<>\"Subscriber\",'Enrollment Form'!$C867=\"ROC\"),\"-\",IF(AND('Enrollment Form'!$B867=\"Subscriber\",'Enrollment Form'!$C867=\"Enroll\",'Enrollment Form'!$AM867<>\"\"),\"Y\",\"N\")))","v":""},{"$f":"IF($B860=\"N\",\"\",IF(OR('Enrollment Form'!$B867<>\"Subscriber\",'Enrollment Form'!$C867=\"ROC\"),\"-\",IF(AND('Enrollment Form'!$B867=\"Subscriber\",'Enrollment Form'!$C867=\"Enroll\",'Enrollment Form'!$AN867<>\"\"),\"Y\",\"N\")))","v":""},{"$f":"IF($B860=\"N\",\"\",IF(OR('Enrollment Form'!$B867<>\"Subscriber\",'Enrollment Form'!$C867=\"ROC\"),\"-\",IF(AND('Enrollment Form'!$B867=\"Subscriber\",'Enrollment Form'!$C867=\"Enroll\",'Enrollment Form'!$AP867<>\"\"),\"Y\",\"N\")))","v":""},{"$f":"IF($B860=\"N\",\"\",IF($Q860=\"-\",\"-\",IF(AND($Q860=\"Y\",'Enrollment Form'!$AP867=\"No\"),\"-\",IF(AND($Q860=\"Y\",'Enrollment Form'!$AP867=\"Yes\",'Enrollment Form'!$AQ867<>\"\"),\"Y\",\"N\"))))","v":""},{"$f":"IF($B860=\"N\",\"\",IF(OR('Enrollment Form'!$B867<>\"Subscriber\",'Enrollment Form'!$C867=\"ROC\"),\"-\",IF(AND('Enrollment Form'!$B867=\"Subscriber\",'Enrollment Form'!$C867=\"Enroll\",'Enrollment Form'!$CO867<>\"\"),\"Y\",\"N\")))","v":""},{"$f":"IF($B860=\"N\",\"\",IF($S860=\"-\",\"-\",IF(AND($S860=\"Y\",'Enrollment Form'!$CO867=\"No\"),\"-\",IF(AND($S860=\"Y\",'Enrollment Form'!$CO867=\"Yes\",'Enrollment Form'!$CP867<>\"\"),\"Y\",\"N\"))))","v":""},{"$f":"IF(OR('Enrollment Form'!$AV867=\"Yes\",'Enrollment Form'!$AV867=\"\"),\"-\",IF(AND('Enrollment Form'!$AV867=\"No\",ISERROR(FIND(\"HMO\",VLOOKUP('Enrollment Form'!G867,'Enrollment Form'!H$11:J$1000,3,FALSE),1))=FALSE,COUNTA('Enrollment Form'!$AW867:$AZ867)=4),\"Y\",\"N\"))","v":"-"},{"$f":"IF($B860=\"N\",\"\",IF('Enrollment Form'!$B867=\"Subscriber\",\"-\",IF(COUNTA('Enrollment Form'!$BE867,'Enrollment Form'!$BG867)=2,\"Y\",\"N\")))","v":""},{"$f":"IF($B860=\"N\",\"\",IF(OR('Enrollment Form'!$AU867=\"\",'Enrollment Form'!$AU867=\"No\"),\"-\",IF(AND('Enrollment Form'!$AU867=\"Yes\",COUNTA('Enrollment Form'!$CK867)=1),\"Y\",\"N\")))","v":""},{"$f":"IF(OR('Enrollment Form'!$CK867=\"\",'Enrollment Form'!$CK867=\"No\"),\"-\",IF(COUNTA('Enrollment Form'!$CM867:$CN867)=2,\"Y\",\"N\"))","v":"-"},{"$f":"IF($B860=\"N\",\"\",IF(COUNTIF('Enrollment Form'!$CZ867:$DO867,\"Other\")=COUNTA('Enrollment Form'!$DF867,'Enrollment Form'!$DA867,'Enrollment Form'!$DK867,'Enrollment Form'!$DP867),\"Y\",\"N\"))","v":""},{"$f":"IF($B860=\"N\",\"\",IF(OR('Enrollment Form'!B867<>\"Subscriber\",'Enrollment Form'!C867=\"ROC\",COUNTIF('Enrollment Form'!AS867:AT867,\"Yes\")>=1),\"-\",IF(AND('Enrollment Form'!C867=\"Enroll\",COUNTIF('Enrollment Form'!AS867:AT867,\"No\")=2,'Enrollment Form'!AU867=\"\"),\"N\",\"Y\")))","v":""},{"$f":"IF(OR(B860=\"N\",'Enrollment Form'!B867<>\"Subscriber\",'Enrollment Form'!C867=\"ROC\",'Enrollment Form'!O867<>\"Multiple of Salary\"),\"-\",IF(COUNTA('Enrollment Form'!T867:U867)<2,\"N\",\"Y\"))","v":"-"},{"$f":"IF(B860=\"N\",\"\",IF(OR('Enrollment Form'!C867=\"ROC\",'Enrollment Form'!B867<>\"Subscriber\",'Enrollment Form'!O867=\"Waive\",'Enrollment Form'!O867=\"\"),\"-\",IF('Enrollment Form'!P867=\"\",\"N\",\"Y\")))","v":""},{"$f":"IF($B860=\"N\",\"\",IF(AND('Enrollment Form'!$C867=\"ROC\",'Enrollment Form'!$DS867<>\"\"),\"Y\",IF(AND('Enrollment Form'!$C867=\"ROC\",'Enrollment Form'!$DS867=\"\"),\"N\",IF(AND('Enrollment Form'!$C867=\"Enroll\",'Enrollment Form'!$B867=\"Subscriber\",'Enrollment Form'!$CQ867=\"No\",'Enrollment Form'!$DS867=\"\"),\"N\",IF(AND('Enrollment Form'!$C867=\"Enroll\",'Enrollment Form'!$B867=\"Subscriber\",'Enrollment Form'!$CQ867=\"Yes\"),\"-\",\"Y\")))))","v":""},{"$f":"IF($B860=\"N\",\"\",IF(AND('Enrollment Form'!$C867=\"ROC\",'Enrollment Form'!$DT867<>\"\"),\"Y\",IF(AND('Enrollment Form'!$C867=\"ROC\",'Enrollment Form'!$DT867=\"\"),\"N\",IF(AND('Enrollment Form'!$C867=\"Enroll\",'Enrollment Form'!$B867=\"Subscriber\",'Enrollment Form'!$CQ867=\"No\",'Enrollment Form'!$DT867=\"\"),\"N\",IF(AND('Enrollment Form'!$C867=\"Enroll\",'Enrollment Form'!$B867=\"Subscriber\",'Enrollment Form'!$CQ867=\"Yes\"),\"-\",\"Y\")))))","v":""},{"$f":"IF('Enrollment Form'!AH867=\"\",\"\",IF(ISERROR(SEARCH(\".\",'Enrollment Form'!AH867,SEARCH(\"@\",'Enrollment Form'!AH867))),\"N\",\"Y\"))","v":""},{"$f":"IF(OR($B860=\"N\",'Enrollment Form'!$G867=\"\"),\"\",IF('Enrollment Form'!$B867<>\"Subscriber\",\"-\",IF(COUNTIF('Enrollment Form'!$AS867:$AT867,\"Yes\")=2,\"N\",\"Y\")))","v":""},{"$f":"IF(OR('Enrollment Form'!$CC867=\"\",'Enrollment Form'!$CC867=\"No\"),\"-\",IF(AND('Enrollment Form'!$CC867=\"Yes\",'Enrollment Form'!$CD867=\"\"),\"N\",\"Y\"))","v":"-"},{"$f":"IF(OR('Enrollment Form'!$CE867=\"\",'Enrollment Form'!$CE867=\"No\"),\"-\",IF(AND('Enrollment Form'!$CE867=\"Yes\",'Enrollment Form'!$CF867=\"\"),\"N\",\"Y\"))","v":"-"},{"$f":"IF(OR('Enrollment Form'!$CG867=\"\",'Enrollment Form'!$CG867=\"No\"),\"-\",IF(AND('Enrollment Form'!$CG867=\"Yes\",'Enrollment Form'!$CH867=\"\"),\"N\",\"Y\"))","v":"-"},{"$f":"IF(OR('Enrollment Form'!$CG867=\"\",'Enrollment Form'!$CG867=\"No\"),\"-\",IF(AND('Enrollment Form'!$CG867=\"Yes\",'Enrollment Form'!$CI867=\"\"),\"N\",\"Y\"))","v":"-"},{"$f":"IF('Enrollment Form'!B867<>\"Subscriber\",\"-\",IF(AND('Enrollment Form'!B867=\"Subscriber\",'Enrollment Form'!C867=\"Enroll\",'Enrollment Form'!AA867=\"\"),\"N\",\"Y\"))","v":"-"},{"$f":"IF(OR('Enrollment Form'!B867=\"Subscriber\",'Enrollment Form'!B867=\"\"),\"-\",IF('Enrollment Form'!BI867=\"\",\"N\",\"Y\"))","v":"-"},{"$f":"IF('Enrollment Form'!B867<>\"Subscriber\",\"-\",IF(AND('Enrollment Form'!B867=\"Subscriber\",'Enrollment Form'!G867=\"\"),\"N\",\"Y\"))","v":"-"},{"$f":"IF('Enrollment Form'!A867=\"\",\"\",IF('Enrollment Form'!B867=\"Subscriber\",\"-\",IF(AND('Enrollment Form'!B867<>\"Subscriber\",'Enrollment Form'!G867='Enrollment Form'!H867),\"N\",\"Y\")))","v":""},0]
[868,{"$f":"IF('Enrollment Form'!$A868<>\"\",\"Y\",\"N\")","v":"N"},{"$f":"IF(AND('Enrollment Form'!$B868=\"\",'Enrollment Form'!$C868<>\"\"),\"N\",IF($B861=\"N\",\"\",\"Y\"))","v":""},{"$f":"IF(OR($B861=\"N\",'Enrollment Form'!G868=\"\"),\"\",IF('Enrollment Form'!$B868<>\"Subscriber\",\"\",IF('Enrollment Form'!$G868='Enrollment Form'!$H868,\"Y\",\"N\")))","v":""},{"$f":"IF($B861=\"N\",\"\",IF(AND(COUNTIFS('Enrollment Form'!$H$11:$H$1000,'Enrollment Form'!$H868,'Enrollment Form'!$B$11:$B$1000,'Enrollment Form'!$B868)>1,'Enrollment Form'!$H868<>\"\"),\"N\",\"Y\"))","v":""},{"$f":"IF($B861=\"N\",\"\",IF(LEN('Enrollment Form'!$Y868)=0,\"\",IF(LEN('Enrollment Form'!$Y868)<>5,\"N\",\"Y\")))","v":""},{"$f":"IF($B861=\"N\",\"\",IF(LEN('Enrollment Form'!$AD868=0),\"\",IF(LEN('Enrollment Form'!$AD868)<>5,\"N\",\"Y\")))","v":""},{"$f":"IF($B861=\"N\",\"\",IF(LEN('Enrollment Form'!$BL868=0),\"\",IF(LEN('Enrollment Form'!$BL868)<>5,\"N\",\"Y\")))","v":""},{"$f":"IF($B861=\"N\",\"\",IF(LEN('Enrollment Form'!$AE868)=0,\"\",IF(LEN('Enrollment Form'!$AE868)<>10,\"N\",\"Y\")))","v":""},{"$f":"IF($B861=\"N\",\"\",IF(LEN('Enrollment Form'!$AF868)=0,\"\",IF(LEN('Enrollment Form'!$AF868)<>10,\"N\",\"Y\")))","v":""},{"$f":"IF('Enrollment Form'!$O868<>\"Graded\",\"-\",IF(AND('Enrollment Form'!$O868=\"Graded\",'Enrollment Form'!$AO868<>\"\"),\"Y\",\"N\"))","v":"-"},{"$f":"IF($B861=\"N\",\"\",IF(OR('Enrollment Form'!$B868<>\"Subscriber\",'Enrollment Form'!$C868=\"ROC\"),\"-\",IF(AND('Enrollment Form'!$B868=\"Subscriber\",'Enrollment Form'!$C868=\"Enroll\",'Enrollment Form'!$AJ868<>\"\"),\"Y\",\"N\")))","v":""},{"$f":"IF($B861=\"N\",\"\",IF(OR('Enrollment Form'!$B868<>\"Subscriber\",'Enrollment Form'!$C868=\"ROC\"),\"-\",IF(AND('Enrollment Form'!$B868=\"Subscriber\",'Enrollment Form'!$C868=\"Enroll\",'Enrollment Form'!$AK868<>\"\"),\"Y\",\"N\")))","v":""},{"$f":"IF($B861=\"N\",\"\",IF(OR('Enrollment Form'!$B868<>\"Subscriber\",'Enrollment Form'!$C868=\"ROC\"),\"-\",IF(AND('Enrollment Form'!$B868=\"Subscriber\",'Enrollment Form'!$C868=\"Enroll\",'Enrollment Form'!$AL868<>\"\"),\"Y\",\"N\")))","v":""},{"$f":"IF($B861=\"N\",\"\",IF(OR('Enrollment Form'!$B868<>\"Subscriber\",'Enrollment Form'!$C868=\"ROC\"),\"-\",IF(AND('Enrollment Form'!$B868=\"Subscriber\",'Enrollment Form'!$C868=\"Enroll\",'Enrollment Form'!$AM868<>\"\"),\"Y\",\"N\")))","v":""},{"$f":"IF($B861=\"N\",\"\",IF(OR('Enrollment Form'!$B868<>\"Subscriber\",'Enrollment Form'!$C868=\"ROC\"),\"-\",IF(AND('Enrollment Form'!$B868=\"Subscriber\",'Enrollment Form'!$C868=\"Enroll\",'Enrollment Form'!$AN868<>\"\"),\"Y\",\"N\")))","v":""},{"$f":"IF($B861=\"N\",\"\",IF(OR('Enrollment Form'!$B868<>\"Subscriber\",'Enrollment Form'!$C868=\"ROC\"),\"-\",IF(AND('Enrollment Form'!$B868=\"Subscriber\",'Enrollment Form'!$C868=\"Enroll\",'Enrollment Form'!$AP868<>\"\"),\"Y\",\"N\")))","v":""},{"$f":"IF($B861=\"N\",\"\",IF($Q861=\"-\",\"-\",IF(AND($Q861=\"Y\",'Enrollment Form'!$AP868=\"No\"),\"-\",IF(AND($Q861=\"Y\",'Enrollment Form'!$AP868=\"Yes\",'Enrollment Form'!$AQ868<>\"\"),\"Y\",\"N\"))))","v":""},{"$f":"IF($B861=\"N\",\"\",IF(OR('Enrollment Form'!$B868<>\"Subscriber\",'Enrollment Form'!$C868=\"ROC\"),\"-\",IF(AND('Enrollment Form'!$B868=\"Subscriber\",'Enrollment Form'!$C868=\"Enroll\",'Enrollment Form'!$CO868<>\"\"),\"Y\",\"N\")))","v":""},{"$f":"IF($B861=\"N\",\"\",IF($S861=\"-\",\"-\",IF(AND($S861=\"Y\",'Enrollment Form'!$CO868=\"No\"),\"-\",IF(AND($S861=\"Y\",'Enrollment Form'!$CO868=\"Yes\",'Enrollment Form'!$CP868<>\"\"),\"Y\",\"N\"))))","v":""},{"$f":"IF(OR('Enrollment Form'!$AV868=\"Yes\",'Enrollment Form'!$AV868=\"\"),\"-\",IF(AND('Enrollment Form'!$AV868=\"No\",ISERROR(FIND(\"HMO\",VLOOKUP('Enrollment Form'!G868,'Enrollment Form'!H$11:J$1000,3,FALSE),1))=FALSE,COUNTA('Enrollment Form'!$AW868:$AZ868)=4),\"Y\",\"N\"))","v":"-"},{"$f":"IF($B861=\"N\",\"\",IF('Enrollment Form'!$B868=\"Subscriber\",\"-\",IF(COUNTA('Enrollment Form'!$BE868,'Enrollment Form'!$BG868)=2,\"Y\",\"N\")))","v":""},{"$f":"IF($B861=\"N\",\"\",IF(OR('Enrollment Form'!$AU868=\"\",'Enrollment Form'!$AU868=\"No\"),\"-\",IF(AND('Enrollment Form'!$AU868=\"Yes\",COUNTA('Enrollment Form'!$CK868)=1),\"Y\",\"N\")))","v":""},{"$f":"IF(OR('Enrollment Form'!$CK868=\"\",'Enrollment Form'!$CK868=\"No\"),\"-\",IF(COUNTA('Enrollment Form'!$CM868:$CN868)=2,\"Y\",\"N\"))","v":"-"},{"$f":"IF($B861=\"N\",\"\",IF(COUNTIF('Enrollment Form'!$CZ868:$DO868,\"Other\")=COUNTA('Enrollment Form'!$DF868,'Enrollment Form'!$DA868,'Enrollment Form'!$DK868,'Enrollment Form'!$DP868),\"Y\",\"N\"))","v":""},{"$f":"IF($B861=\"N\",\"\",IF(OR('Enrollment Form'!B868<>\"Subscriber\",'Enrollment Form'!C868=\"ROC\",COUNTIF('Enrollment Form'!AS868:AT868,\"Yes\")>=1),\"-\",IF(AND('Enrollment Form'!C868=\"Enroll\",COUNTIF('Enrollment Form'!AS868:AT868,\"No\")=2,'Enrollment Form'!AU868=\"\"),\"N\",\"Y\")))","v":""},{"$f":"IF(OR(B861=\"N\",'Enrollment Form'!B868<>\"Subscriber\",'Enrollment Form'!C868=\"ROC\",'Enrollment Form'!O868<>\"Multiple of Salary\"),\"-\",IF(COUNTA('Enrollment Form'!T868:U868)<2,\"N\",\"Y\"))","v":"-"},{"$f":"IF(B861=\"N\",\"\",IF(OR('Enrollment Form'!C868=\"ROC\",'Enrollment Form'!B868<>\"Subscriber\",'Enrollment Form'!O868=\"Waive\",'Enrollment Form'!O868=\"\"),\"-\",IF('Enrollment Form'!P868=\"\",\"N\",\"Y\")))","v":""},{"$f":"IF($B861=\"N\",\"\",IF(AND('Enrollment Form'!$C868=\"ROC\",'Enrollment Form'!$DS868<>\"\"),\"Y\",IF(AND('Enrollment Form'!$C868=\"ROC\",'Enrollment Form'!$DS868=\"\"),\"N\",IF(AND('Enrollment Form'!$C868=\"Enroll\",'Enrollment Form'!$B868=\"Subscriber\",'Enrollment Form'!$CQ868=\"No\",'Enrollment Form'!$DS868=\"\"),\"N\",IF(AND('Enrollment Form'!$C868=\"Enroll\",'Enrollment Form'!$B868=\"Subscriber\",'Enrollment Form'!$CQ868=\"Yes\"),\"-\",\"Y\")))))","v":""},{"$f":"IF($B861=\"N\",\"\",IF(AND('Enrollment Form'!$C868=\"ROC\",'Enrollment Form'!$DT868<>\"\"),\"Y\",IF(AND('Enrollment Form'!$C868=\"ROC\",'Enrollment Form'!$DT868=\"\"),\"N\",IF(AND('Enrollment Form'!$C868=\"Enroll\",'Enrollment Form'!$B868=\"Subscriber\",'Enrollment Form'!$CQ868=\"No\",'Enrollment Form'!$DT868=\"\"),\"N\",IF(AND('Enrollment Form'!$C868=\"Enroll\",'Enrollment Form'!$B868=\"Subscriber\",'Enrollment Form'!$CQ868=\"Yes\"),\"-\",\"Y\")))))","v":""},{"$f":"IF('Enrollment Form'!AH868=\"\",\"\",IF(ISERROR(SEARCH(\".\",'Enrollment Form'!AH868,SEARCH(\"@\",'Enrollment Form'!AH868))),\"N\",\"Y\"))","v":""},{"$f":"IF(OR($B861=\"N\",'Enrollment Form'!$G868=\"\"),\"\",IF('Enrollment Form'!$B868<>\"Subscriber\",\"-\",IF(COUNTIF('Enrollment Form'!$AS868:$AT868,\"Yes\")=2,\"N\",\"Y\")))","v":""},{"$f":"IF(OR('Enrollment Form'!$CC868=\"\",'Enrollment Form'!$CC868=\"No\"),\"-\",IF(AND('Enrollment Form'!$CC868=\"Yes\",'Enrollment Form'!$CD868=\"\"),\"N\",\"Y\"))","v":"-"},{"$f":"IF(OR('Enrollment Form'!$CE868=\"\",'Enrollment Form'!$CE868=\"No\"),\"-\",IF(AND('Enrollment Form'!$CE868=\"Yes\",'Enrollment Form'!$CF868=\"\"),\"N\",\"Y\"))","v":"-"},{"$f":"IF(OR('Enrollment Form'!$CG868=\"\",'Enrollment Form'!$CG868=\"No\"),\"-\",IF(AND('Enrollment Form'!$CG868=\"Yes\",'Enrollment Form'!$CH868=\"\"),\"N\",\"Y\"))","v":"-"},{"$f":"IF(OR('Enrollment Form'!$CG868=\"\",'Enrollment Form'!$CG868=\"No\"),\"-\",IF(AND('Enrollment Form'!$CG868=\"Yes\",'Enrollment Form'!$CI868=\"\"),\"N\",\"Y\"))","v":"-"},{"$f":"IF('Enrollment Form'!B868<>\"Subscriber\",\"-\",IF(AND('Enrollment Form'!B868=\"Subscriber\",'Enrollment Form'!C868=\"Enroll\",'Enrollment Form'!AA868=\"\"),\"N\",\"Y\"))","v":"-"},{"$f":"IF(OR('Enrollment Form'!B868=\"Subscriber\",'Enrollment Form'!B868=\"\"),\"-\",IF('Enrollment Form'!BI868=\"\",\"N\",\"Y\"))","v":"-"},{"$f":"IF('Enrollment Form'!B868<>\"Subscriber\",\"-\",IF(AND('Enrollment Form'!B868=\"Subscriber\",'Enrollment Form'!G868=\"\"),\"N\",\"Y\"))","v":"-"},{"$f":"IF('Enrollment Form'!A868=\"\",\"\",IF('Enrollment Form'!B868=\"Subscriber\",\"-\",IF(AND('Enrollment Form'!B868<>\"Subscriber\",'Enrollment Form'!G868='Enrollment Form'!H868),\"N\",\"Y\")))","v":""},0]
[869,{"$f":"IF('Enrollment Form'!$A869<>\"\",\"Y\",\"N\")","v":"N"},{"$f":"IF(AND('Enrollment Form'!$B869=\"\",'Enrollment Form'!$C869<>\"\"),\"N\",IF($B862=\"N\",\"\",\"Y\"))","v":""},{"$f":"IF(OR($B862=\"N\",'Enrollment Form'!G869=\"\"),\"\",IF('Enrollment Form'!$B869<>\"Subscriber\",\"\",IF('Enrollment Form'!$G869='Enrollment Form'!$H869,\"Y\",\"N\")))","v":""},{"$f":"IF($B862=\"N\",\"\",IF(AND(COUNTIFS('Enrollment Form'!$H$11:$H$1000,'Enrollment Form'!$H869,'Enrollment Form'!$B$11:$B$1000,'Enrollment Form'!$B869)>1,'Enrollment Form'!$H869<>\"\"),\"N\",\"Y\"))","v":""},{"$f":"IF($B862=\"N\",\"\",IF(LEN('Enrollment Form'!$Y869)=0,\"\",IF(LEN('Enrollment Form'!$Y869)<>5,\"N\",\"Y\")))","v":""},{"$f":"IF($B862=\"N\",\"\",IF(LEN('Enrollment Form'!$AD869=0),\"\",IF(LEN('Enrollment Form'!$AD869)<>5,\"N\",\"Y\")))","v":""},{"$f":"IF($B862=\"N\",\"\",IF(LEN('Enrollment Form'!$BL869=0),\"\",IF(LEN('Enrollment Form'!$BL869)<>5,\"N\",\"Y\")))","v":""},{"$f":"IF($B862=\"N\",\"\",IF(LEN('Enrollment Form'!$AE869)=0,\"\",IF(LEN('Enrollment Form'!$AE869)<>10,\"N\",\"Y\")))","v":""},{"$f":"IF($B862=\"N\",\"\",IF(LEN('Enrollment Form'!$AF869)=0,\"\",IF(LEN('Enrollment Form'!$AF869)<>10,\"N\",\"Y\")))","v":""},{"$f":"IF('Enrollment Form'!$O869<>\"Graded\",\"-\",IF(AND('Enrollment Form'!$O869=\"Graded\",'Enrollment Form'!$AO869<>\"\"),\"Y\",\"N\"))","v":"-"},{"$f":"IF($B862=\"N\",\"\",IF(OR('Enrollment Form'!$B869<>\"Subscriber\",'Enrollment Form'!$C869=\"ROC\"),\"-\",IF(AND('Enrollment Form'!$B869=\"Subscriber\",'Enrollment Form'!$C869=\"Enroll\",'Enrollment Form'!$AJ869<>\"\"),\"Y\",\"N\")))","v":""},{"$f":"IF($B862=\"N\",\"\",IF(OR('Enrollment Form'!$B869<>\"Subscriber\",'Enrollment Form'!$C869=\"ROC\"),\"-\",IF(AND('Enrollment Form'!$B869=\"Subscriber\",'Enrollment Form'!$C869=\"Enroll\",'Enrollment Form'!$AK869<>\"\"),\"Y\",\"N\")))","v":""},{"$f":"IF($B862=\"N\",\"\",IF(OR('Enrollment Form'!$B869<>\"Subscriber\",'Enrollment Form'!$C869=\"ROC\"),\"-\",IF(AND('Enrollment Form'!$B869=\"Subscriber\",'Enrollment Form'!$C869=\"Enroll\",'Enrollment Form'!$AL869<>\"\"),\"Y\",\"N\")))","v":""},{"$f":"IF($B862=\"N\",\"\",IF(OR('Enrollment Form'!$B869<>\"Subscriber\",'Enrollment Form'!$C869=\"ROC\"),\"-\",IF(AND('Enrollment Form'!$B869=\"Subscriber\",'Enrollment Form'!$C869=\"Enroll\",'Enrollment Form'!$AM869<>\"\"),\"Y\",\"N\")))","v":""},{"$f":"IF($B862=\"N\",\"\",IF(OR('Enrollment Form'!$B869<>\"Subscriber\",'Enrollment Form'!$C869=\"ROC\"),\"-\",IF(AND('Enrollment Form'!$B869=\"Subscriber\",'Enrollment Form'!$C869=\"Enroll\",'Enrollment Form'!$AN869<>\"\"),\"Y\",\"N\")))","v":""},{"$f":"IF($B862=\"N\",\"\",IF(OR('Enrollment Form'!$B869<>\"Subscriber\",'Enrollment Form'!$C869=\"ROC\"),\"-\",IF(AND('Enrollment Form'!$B869=\"Subscriber\",'Enrollment Form'!$C869=\"Enroll\",'Enrollment Form'!$AP869<>\"\"),\"Y\",\"N\")))","v":""},{"$f":"IF($B862=\"N\",\"\",IF($Q862=\"-\",\"-\",IF(AND($Q862=\"Y\",'Enrollment Form'!$AP869=\"No\"),\"-\",IF(AND($Q862=\"Y\",'Enrollment Form'!$AP869=\"Yes\",'Enrollment Form'!$AQ869<>\"\"),\"Y\",\"N\"))))","v":""},{"$f":"IF($B862=\"N\",\"\",IF(OR('Enrollment Form'!$B869<>\"Subscriber\",'Enrollment Form'!$C869=\"ROC\"),\"-\",IF(AND('Enrollment Form'!$B869=\"Subscriber\",'Enrollment Form'!$C869=\"Enroll\",'Enrollment Form'!$CO869<>\"\"),\"Y\",\"N\")))","v":""},{"$f":"IF($B862=\"N\",\"\",IF($S862=\"-\",\"-\",IF(AND($S862=\"Y\",'Enrollment Form'!$CO869=\"No\"),\"-\",IF(AND($S862=\"Y\",'Enrollment Form'!$CO869=\"Yes\",'Enrollment Form'!$CP869<>\"\"),\"Y\",\"N\"))))","v":""},{"$f":"IF(OR('Enrollment Form'!$AV869=\"Yes\",'Enrollment Form'!$AV869=\"\"),\"-\",IF(AND('Enrollment Form'!$AV869=\"No\",ISERROR(FIND(\"HMO\",VLOOKUP('Enrollment Form'!G869,'Enrollment Form'!H$11:J$1000,3,FALSE),1))=FALSE,COUNTA('Enrollment Form'!$AW869:$AZ869)=4),\"Y\",\"N\"))","v":"-"},{"$f":"IF($B862=\"N\",\"\",IF('Enrollment Form'!$B869=\"Subscriber\",\"-\",IF(COUNTA('Enrollment Form'!$BE869,'Enrollment Form'!$BG869)=2,\"Y\",\"N\")))","v":""},{"$f":"IF($B862=\"N\",\"\",IF(OR('Enrollment Form'!$AU869=\"\",'Enrollment Form'!$AU869=\"No\"),\"-\",IF(AND('Enrollment Form'!$AU869=\"Yes\",COUNTA('Enrollment Form'!$CK869)=1),\"Y\",\"N\")))","v":""},{"$f":"IF(OR('Enrollment Form'!$CK869=\"\",'Enrollment Form'!$CK869=\"No\"),\"-\",IF(COUNTA('Enrollment Form'!$CM869:$CN869)=2,\"Y\",\"N\"))","v":"-"},{"$f":"IF($B862=\"N\",\"\",IF(COUNTIF('Enrollment Form'!$CZ869:$DO869,\"Other\")=COUNTA('Enrollment Form'!$DF869,'Enrollment Form'!$DA869,'Enrollment Form'!$DK869,'Enrollment Form'!$DP869),\"Y\",\"N\"))","v":""},{"$f":"IF($B862=\"N\",\"\",IF(OR('Enrollment Form'!B869<>\"Subscriber\",'Enrollment Form'!C869=\"ROC\",COUNTIF('Enrollment Form'!AS869:AT869,\"Yes\")>=1),\"-\",IF(AND('Enrollment Form'!C869=\"Enroll\",COUNTIF('Enrollment Form'!AS869:AT869,\"No\")=2,'Enrollment Form'!AU869=\"\"),\"N\",\"Y\")))","v":""},{"$f":"IF(OR(B862=\"N\",'Enrollment Form'!B869<>\"Subscriber\",'Enrollment Form'!C869=\"ROC\",'Enrollment Form'!O869<>\"Multiple of Salary\"),\"-\",IF(COUNTA('Enrollment Form'!T869:U869)<2,\"N\",\"Y\"))","v":"-"},{"$f":"IF(B862=\"N\",\"\",IF(OR('Enrollment Form'!C869=\"ROC\",'Enrollment Form'!B869<>\"Subscriber\",'Enrollment Form'!O869=\"Waive\",'Enrollment Form'!O869=\"\"),\"-\",IF('Enrollment Form'!P869=\"\",\"N\",\"Y\")))","v":""},{"$f":"IF($B862=\"N\",\"\",IF(AND('Enrollment Form'!$C869=\"ROC\",'Enrollment Form'!$DS869<>\"\"),\"Y\",IF(AND('Enrollment Form'!$C869=\"ROC\",'Enrollment Form'!$DS869=\"\"),\"N\",IF(AND('Enrollment Form'!$C869=\"Enroll\",'Enrollment Form'!$B869=\"Subscriber\",'Enrollment Form'!$CQ869=\"No\",'Enrollment Form'!$DS869=\"\"),\"N\",IF(AND('Enrollment Form'!$C869=\"Enroll\",'Enrollment Form'!$B869=\"Subscriber\",'Enrollment Form'!$CQ869=\"Yes\"),\"-\",\"Y\")))))","v":""},{"$f":"IF($B862=\"N\",\"\",IF(AND('Enrollment Form'!$C869=\"ROC\",'Enrollment Form'!$DT869<>\"\"),\"Y\",IF(AND('Enrollment Form'!$C869=\"ROC\",'Enrollment Form'!$DT869=\"\"),\"N\",IF(AND('Enrollment Form'!$C869=\"Enroll\",'Enrollment Form'!$B869=\"Subscriber\",'Enrollment Form'!$CQ869=\"No\",'Enrollment Form'!$DT869=\"\"),\"N\",IF(AND('Enrollment Form'!$C869=\"Enroll\",'Enrollment Form'!$B869=\"Subscriber\",'Enrollment Form'!$CQ869=\"Yes\"),\"-\",\"Y\")))))","v":""},{"$f":"IF('Enrollment Form'!AH869=\"\",\"\",IF(ISERROR(SEARCH(\".\",'Enrollment Form'!AH869,SEARCH(\"@\",'Enrollment Form'!AH869))),\"N\",\"Y\"))","v":""},{"$f":"IF(OR($B862=\"N\",'Enrollment Form'!$G869=\"\"),\"\",IF('Enrollment Form'!$B869<>\"Subscriber\",\"-\",IF(COUNTIF('Enrollment Form'!$AS869:$AT869,\"Yes\")=2,\"N\",\"Y\")))","v":""},{"$f":"IF(OR('Enrollment Form'!$CC869=\"\",'Enrollment Form'!$CC869=\"No\"),\"-\",IF(AND('Enrollment Form'!$CC869=\"Yes\",'Enrollment Form'!$CD869=\"\"),\"N\",\"Y\"))","v":"-"},{"$f":"IF(OR('Enrollment Form'!$CE869=\"\",'Enrollment Form'!$CE869=\"No\"),\"-\",IF(AND('Enrollment Form'!$CE869=\"Yes\",'Enrollment Form'!$CF869=\"\"),\"N\",\"Y\"))","v":"-"},{"$f":"IF(OR('Enrollment Form'!$CG869=\"\",'Enrollment Form'!$CG869=\"No\"),\"-\",IF(AND('Enrollment Form'!$CG869=\"Yes\",'Enrollment Form'!$CH869=\"\"),\"N\",\"Y\"))","v":"-"},{"$f":"IF(OR('Enrollment Form'!$CG869=\"\",'Enrollment Form'!$CG869=\"No\"),\"-\",IF(AND('Enrollment Form'!$CG869=\"Yes\",'Enrollment Form'!$CI869=\"\"),\"N\",\"Y\"))","v":"-"},{"$f":"IF('Enrollment Form'!B869<>\"Subscriber\",\"-\",IF(AND('Enrollment Form'!B869=\"Subscriber\",'Enrollment Form'!C869=\"Enroll\",'Enrollment Form'!AA869=\"\"),\"N\",\"Y\"))","v":"-"},{"$f":"IF(OR('Enrollment Form'!B869=\"Subscriber\",'Enrollment Form'!B869=\"\"),\"-\",IF('Enrollment Form'!BI869=\"\",\"N\",\"Y\"))","v":"-"},{"$f":"IF('Enrollment Form'!B869<>\"Subscriber\",\"-\",IF(AND('Enrollment Form'!B869=\"Subscriber\",'Enrollment Form'!G869=\"\"),\"N\",\"Y\"))","v":"-"},{"$f":"IF('Enrollment Form'!A869=\"\",\"\",IF('Enrollment Form'!B869=\"Subscriber\",\"-\",IF(AND('Enrollment Form'!B869<>\"Subscriber\",'Enrollment Form'!G869='Enrollment Form'!H869),\"N\",\"Y\")))","v":""},0]
[870,{"$f":"IF('Enrollment Form'!$A870<>\"\",\"Y\",\"N\")","v":"N"},{"$f":"IF(AND('Enrollment Form'!$B870=\"\",'Enrollment Form'!$C870<>\"\"),\"N\",IF($B863=\"N\",\"\",\"Y\"))","v":""},{"$f":"IF(OR($B863=\"N\",'Enrollment Form'!G870=\"\"),\"\",IF('Enrollment Form'!$B870<>\"Subscriber\",\"\",IF('Enrollment Form'!$G870='Enrollment Form'!$H870,\"Y\",\"N\")))","v":""},{"$f":"IF($B863=\"N\",\"\",IF(AND(COUNTIFS('Enrollment Form'!$H$11:$H$1000,'Enrollment Form'!$H870,'Enrollment Form'!$B$11:$B$1000,'Enrollment Form'!$B870)>1,'Enrollment Form'!$H870<>\"\"),\"N\",\"Y\"))","v":""},{"$f":"IF($B863=\"N\",\"\",IF(LEN('Enrollment Form'!$Y870)=0,\"\",IF(LEN('Enrollment Form'!$Y870)<>5,\"N\",\"Y\")))","v":""},{"$f":"IF($B863=\"N\",\"\",IF(LEN('Enrollment Form'!$AD870=0),\"\",IF(LEN('Enrollment Form'!$AD870)<>5,\"N\",\"Y\")))","v":""},{"$f":"IF($B863=\"N\",\"\",IF(LEN('Enrollment Form'!$BL870=0),\"\",IF(LEN('Enrollment Form'!$BL870)<>5,\"N\",\"Y\")))","v":""},{"$f":"IF($B863=\"N\",\"\",IF(LEN('Enrollment Form'!$AE870)=0,\"\",IF(LEN('Enrollment Form'!$AE870)<>10,\"N\",\"Y\")))","v":""},{"$f":"IF($B863=\"N\",\"\",IF(LEN('Enrollment Form'!$AF870)=0,\"\",IF(LEN('Enrollment Form'!$AF870)<>10,\"N\",\"Y\")))","v":""},{"$f":"IF('Enrollment Form'!$O870<>\"Graded\",\"-\",IF(AND('Enrollment Form'!$O870=\"Graded\",'Enrollment Form'!$AO870<>\"\"),\"Y\",\"N\"))","v":"-"},{"$f":"IF($B863=\"N\",\"\",IF(OR('Enrollment Form'!$B870<>\"Subscriber\",'Enrollment Form'!$C870=\"ROC\"),\"-\",IF(AND('Enrollment Form'!$B870=\"Subscriber\",'Enrollment Form'!$C870=\"Enroll\",'Enrollment Form'!$AJ870<>\"\"),\"Y\",\"N\")))","v":""},{"$f":"IF($B863=\"N\",\"\",IF(OR('Enrollment Form'!$B870<>\"Subscriber\",'Enrollment Form'!$C870=\"ROC\"),\"-\",IF(AND('Enrollment Form'!$B870=\"Subscriber\",'Enrollment Form'!$C870=\"Enroll\",'Enrollment Form'!$AK870<>\"\"),\"Y\",\"N\")))","v":""},{"$f":"IF($B863=\"N\",\"\",IF(OR('Enrollment Form'!$B870<>\"Subscriber\",'Enrollment Form'!$C870=\"ROC\"),\"-\",IF(AND('Enrollment Form'!$B870=\"Subscriber\",'Enrollment Form'!$C870=\"Enroll\",'Enrollment Form'!$AL870<>\"\"),\"Y\",\"N\")))","v":""},{"$f":"IF($B863=\"N\",\"\",IF(OR('Enrollment Form'!$B870<>\"Subscriber\",'Enrollment Form'!$C870=\"ROC\"),\"-\",IF(AND('Enrollment Form'!$B870=\"Subscriber\",'Enrollment Form'!$C870=\"Enroll\",'Enrollment Form'!$AM870<>\"\"),\"Y\",\"N\")))","v":""},{"$f":"IF($B863=\"N\",\"\",IF(OR('Enrollment Form'!$B870<>\"Subscriber\",'Enrollment Form'!$C870=\"ROC\"),\"-\",IF(AND('Enrollment Form'!$B870=\"Subscriber\",'Enrollment Form'!$C870=\"Enroll\",'Enrollment Form'!$AN870<>\"\"),\"Y\",\"N\")))","v":""},{"$f":"IF($B863=\"N\",\"\",IF(OR('Enrollment Form'!$B870<>\"Subscriber\",'Enrollment Form'!$C870=\"ROC\"),\"-\",IF(AND('Enrollment Form'!$B870=\"Subscriber\",'Enrollment Form'!$C870=\"Enroll\",'Enrollment Form'!$AP870<>\"\"),\"Y\",\"N\")))","v":""},{"$f":"IF($B863=\"N\",\"\",IF($Q863=\"-\",\"-\",IF(AND($Q863=\"Y\",'Enrollment Form'!$AP870=\"No\"),\"-\",IF(AND($Q863=\"Y\",'Enrollment Form'!$AP870=\"Yes\",'Enrollment Form'!$AQ870<>\"\"),\"Y\",\"N\"))))","v":""},{"$f":"IF($B863=\"N\",\"\",IF(OR('Enrollment Form'!$B870<>\"Subscriber\",'Enrollment Form'!$C870=\"ROC\"),\"-\",IF(AND('Enrollment Form'!$B870=\"Subscriber\",'Enrollment Form'!$C870=\"Enroll\",'Enrollment Form'!$CO870<>\"\"),\"Y\",\"N\")))","v":""},{"$f":"IF($B863=\"N\",\"\",IF($S863=\"-\",\"-\",IF(AND($S863=\"Y\",'Enrollment Form'!$CO870=\"No\"),\"-\",IF(AND($S863=\"Y\",'Enrollment Form'!$CO870=\"Yes\",'Enrollment Form'!$CP870<>\"\"),\"Y\",\"N\"))))","v":""},{"$f":"IF(OR('Enrollment Form'!$AV870=\"Yes\",'Enrollment Form'!$AV870=\"\"),\"-\",IF(AND('Enrollment Form'!$AV870=\"No\",ISERROR(FIND(\"HMO\",VLOOKUP('Enrollment Form'!G870,'Enrollment Form'!H$11:J$1000,3,FALSE),1))=FALSE,COUNTA('Enrollment Form'!$AW870:$AZ870)=4),\"Y\",\"N\"))","v":"-"},{"$f":"IF($B863=\"N\",\"\",IF('Enrollment Form'!$B870=\"Subscriber\",\"-\",IF(COUNTA('Enrollment Form'!$BE870,'Enrollment Form'!$BG870)=2,\"Y\",\"N\")))","v":""},{"$f":"IF($B863=\"N\",\"\",IF(OR('Enrollment Form'!$AU870=\"\",'Enrollment Form'!$AU870=\"No\"),\"-\",IF(AND('Enrollment Form'!$AU870=\"Yes\",COUNTA('Enrollment Form'!$CK870)=1),\"Y\",\"N\")))","v":""},{"$f":"IF(OR('Enrollment Form'!$CK870=\"\",'Enrollment Form'!$CK870=\"No\"),\"-\",IF(COUNTA('Enrollment Form'!$CM870:$CN870)=2,\"Y\",\"N\"))","v":"-"},{"$f":"IF($B863=\"N\",\"\",IF(COUNTIF('Enrollment Form'!$CZ870:$DO870,\"Other\")=COUNTA('Enrollment Form'!$DF870,'Enrollment Form'!$DA870,'Enrollment Form'!$DK870,'Enrollment Form'!$DP870),\"Y\",\"N\"))","v":""},{"$f":"IF($B863=\"N\",\"\",IF(OR('Enrollment Form'!B870<>\"Subscriber\",'Enrollment Form'!C870=\"ROC\",COUNTIF('Enrollment Form'!AS870:AT870,\"Yes\")>=1),\"-\",IF(AND('Enrollment Form'!C870=\"Enroll\",COUNTIF('Enrollment Form'!AS870:AT870,\"No\")=2,'Enrollment Form'!AU870=\"\"),\"N\",\"Y\")))","v":""},{"$f":"IF(OR(B863=\"N\",'Enrollment Form'!B870<>\"Subscriber\",'Enrollment Form'!C870=\"ROC\",'Enrollment Form'!O870<>\"Multiple of Salary\"),\"-\",IF(COUNTA('Enrollment Form'!T870:U870)<2,\"N\",\"Y\"))","v":"-"},{"$f":"IF(B863=\"N\",\"\",IF(OR('Enrollment Form'!C870=\"ROC\",'Enrollment Form'!B870<>\"Subscriber\",'Enrollment Form'!O870=\"Waive\",'Enrollment Form'!O870=\"\"),\"-\",IF('Enrollment Form'!P870=\"\",\"N\",\"Y\")))","v":""},{"$f":"IF($B863=\"N\",\"\",IF(AND('Enrollment Form'!$C870=\"ROC\",'Enrollment Form'!$DS870<>\"\"),\"Y\",IF(AND('Enrollment Form'!$C870=\"ROC\",'Enrollment Form'!$DS870=\"\"),\"N\",IF(AND('Enrollment Form'!$C870=\"Enroll\",'Enrollment Form'!$B870=\"Subscriber\",'Enrollment Form'!$CQ870=\"No\",'Enrollment Form'!$DS870=\"\"),\"N\",IF(AND('Enrollment Form'!$C870=\"Enroll\",'Enrollment Form'!$B870=\"Subscriber\",'Enrollment Form'!$CQ870=\"Yes\"),\"-\",\"Y\")))))","v":""},{"$f":"IF($B863=\"N\",\"\",IF(AND('Enrollment Form'!$C870=\"ROC\",'Enrollment Form'!$DT870<>\"\"),\"Y\",IF(AND('Enrollment Form'!$C870=\"ROC\",'Enrollment Form'!$DT870=\"\"),\"N\",IF(AND('Enrollment Form'!$C870=\"Enroll\",'Enrollment Form'!$B870=\"Subscriber\",'Enrollment Form'!$CQ870=\"No\",'Enrollment Form'!$DT870=\"\"),\"N\",IF(AND('Enrollment Form'!$C870=\"Enroll\",'Enrollment Form'!$B870=\"Subscriber\",'Enrollment Form'!$CQ870=\"Yes\"),\"-\",\"Y\")))))","v":""},{"$f":"IF('Enrollment Form'!AH870=\"\",\"\",IF(ISERROR(SEARCH(\".\",'Enrollment Form'!AH870,SEARCH(\"@\",'Enrollment Form'!AH870))),\"N\",\"Y\"))","v":""},{"$f":"IF(OR($B863=\"N\",'Enrollment Form'!$G870=\"\"),\"\",IF('Enrollment Form'!$B870<>\"Subscriber\",\"-\",IF(COUNTIF('Enrollment Form'!$AS870:$AT870,\"Yes\")=2,\"N\",\"Y\")))","v":""},{"$f":"IF(OR('Enrollment Form'!$CC870=\"\",'Enrollment Form'!$CC870=\"No\"),\"-\",IF(AND('Enrollment Form'!$CC870=\"Yes\",'Enrollment Form'!$CD870=\"\"),\"N\",\"Y\"))","v":"-"},{"$f":"IF(OR('Enrollment Form'!$CE870=\"\",'Enrollment Form'!$CE870=\"No\"),\"-\",IF(AND('Enrollment Form'!$CE870=\"Yes\",'Enrollment Form'!$CF870=\"\"),\"N\",\"Y\"))","v":"-"},{"$f":"IF(OR('Enrollment Form'!$CG870=\"\",'Enrollment Form'!$CG870=\"No\"),\"-\",IF(AND('Enrollment Form'!$CG870=\"Yes\",'Enrollment Form'!$CH870=\"\"),\"N\",\"Y\"))","v":"-"},{"$f":"IF(OR('Enrollment Form'!$CG870=\"\",'Enrollment Form'!$CG870=\"No\"),\"-\",IF(AND('Enrollment Form'!$CG870=\"Yes\",'Enrollment Form'!$CI870=\"\"),\"N\",\"Y\"))","v":"-"},{"$f":"IF('Enrollment Form'!B870<>\"Subscriber\",\"-\",IF(AND('Enrollment Form'!B870=\"Subscriber\",'Enrollment Form'!C870=\"Enroll\",'Enrollment Form'!AA870=\"\"),\"N\",\"Y\"))","v":"-"},{"$f":"IF(OR('Enrollment Form'!B870=\"Subscriber\",'Enrollment Form'!B870=\"\"),\"-\",IF('Enrollment Form'!BI870=\"\",\"N\",\"Y\"))","v":"-"},{"$f":"IF('Enrollment Form'!B870<>\"Subscriber\",\"-\",IF(AND('Enrollment Form'!B870=\"Subscriber\",'Enrollment Form'!G870=\"\"),\"N\",\"Y\"))","v":"-"},{"$f":"IF('Enrollment Form'!A870=\"\",\"\",IF('Enrollment Form'!B870=\"Subscriber\",\"-\",IF(AND('Enrollment Form'!B870<>\"Subscriber\",'Enrollment Form'!G870='Enrollment Form'!H870),\"N\",\"Y\")))","v":""},0]
[871,{"$f":"IF('Enrollment Form'!$A871<>\"\",\"Y\",\"N\")","v":"N"},{"$f":"IF(AND('Enrollment Form'!$B871=\"\",'Enrollment Form'!$C871<>\"\"),\"N\",IF($B864=\"N\",\"\",\"Y\"))","v":""},{"$f":"IF(OR($B864=\"N\",'Enrollment Form'!G871=\"\"),\"\",IF('Enrollment Form'!$B871<>\"Subscriber\",\"\",IF('Enrollment Form'!$G871='Enrollment Form'!$H871,\"Y\",\"N\")))","v":""},{"$f":"IF($B864=\"N\",\"\",IF(AND(COUNTIFS('Enrollment Form'!$H$11:$H$1000,'Enrollment Form'!$H871,'Enrollment Form'!$B$11:$B$1000,'Enrollment Form'!$B871)>1,'Enrollment Form'!$H871<>\"\"),\"N\",\"Y\"))","v":""},{"$f":"IF($B864=\"N\",\"\",IF(LEN('Enrollment Form'!$Y871)=0,\"\",IF(LEN('Enrollment Form'!$Y871)<>5,\"N\",\"Y\")))","v":""},{"$f":"IF($B864=\"N\",\"\",IF(LEN('Enrollment Form'!$AD871=0),\"\",IF(LEN('Enrollment Form'!$AD871)<>5,\"N\",\"Y\")))","v":""},{"$f":"IF($B864=\"N\",\"\",IF(LEN('Enrollment Form'!$BL871=0),\"\",IF(LEN('Enrollment Form'!$BL871)<>5,\"N\",\"Y\")))","v":""},{"$f":"IF($B864=\"N\",\"\",IF(LEN('Enrollment Form'!$AE871)=0,\"\",IF(LEN('Enrollment Form'!$AE871)<>10,\"N\",\"Y\")))","v":""},{"$f":"IF($B864=\"N\",\"\",IF(LEN('Enrollment Form'!$AF871)=0,\"\",IF(LEN('Enrollment Form'!$AF871)<>10,\"N\",\"Y\")))","v":""},{"$f":"IF('Enrollment Form'!$O871<>\"Graded\",\"-\",IF(AND('Enrollment Form'!$O871=\"Graded\",'Enrollment Form'!$AO871<>\"\"),\"Y\",\"N\"))","v":"-"},{"$f":"IF($B864=\"N\",\"\",IF(OR('Enrollment Form'!$B871<>\"Subscriber\",'Enrollment Form'!$C871=\"ROC\"),\"-\",IF(AND('Enrollment Form'!$B871=\"Subscriber\",'Enrollment Form'!$C871=\"Enroll\",'Enrollment Form'!$AJ871<>\"\"),\"Y\",\"N\")))","v":""},{"$f":"IF($B864=\"N\",\"\",IF(OR('Enrollment Form'!$B871<>\"Subscriber\",'Enrollment Form'!$C871=\"ROC\"),\"-\",IF(AND('Enrollment Form'!$B871=\"Subscriber\",'Enrollment Form'!$C871=\"Enroll\",'Enrollment Form'!$AK871<>\"\"),\"Y\",\"N\")))","v":""},{"$f":"IF($B864=\"N\",\"\",IF(OR('Enrollment Form'!$B871<>\"Subscriber\",'Enrollment Form'!$C871=\"ROC\"),\"-\",IF(AND('Enrollment Form'!$B871=\"Subscriber\",'Enrollment Form'!$C871=\"Enroll\",'Enrollment Form'!$AL871<>\"\"),\"Y\",\"N\")))","v":""},{"$f":"IF($B864=\"N\",\"\",IF(OR('Enrollment Form'!$B871<>\"Subscriber\",'Enrollment Form'!$C871=\"ROC\"),\"-\",IF(AND('Enrollment Form'!$B871=\"Subscriber\",'Enrollment Form'!$C871=\"Enroll\",'Enrollment Form'!$AM871<>\"\"),\"Y\",\"N\")))","v":""},{"$f":"IF($B864=\"N\",\"\",IF(OR('Enrollment Form'!$B871<>\"Subscriber\",'Enrollment Form'!$C871=\"ROC\"),\"-\",IF(AND('Enrollment Form'!$B871=\"Subscriber\",'Enrollment Form'!$C871=\"Enroll\",'Enrollment Form'!$AN871<>\"\"),\"Y\",\"N\")))","v":""},{"$f":"IF($B864=\"N\",\"\",IF(OR('Enrollment Form'!$B871<>\"Subscriber\",'Enrollment Form'!$C871=\"ROC\"),\"-\",IF(AND('Enrollment Form'!$B871=\"Subscriber\",'Enrollment Form'!$C871=\"Enroll\",'Enrollment Form'!$AP871<>\"\"),\"Y\",\"N\")))","v":""},{"$f":"IF($B864=\"N\",\"\",IF($Q864=\"-\",\"-\",IF(AND($Q864=\"Y\",'Enrollment Form'!$AP871=\"No\"),\"-\",IF(AND($Q864=\"Y\",'Enrollment Form'!$AP871=\"Yes\",'Enrollment Form'!$AQ871<>\"\"),\"Y\",\"N\"))))","v":""},{"$f":"IF($B864=\"N\",\"\",IF(OR('Enrollment Form'!$B871<>\"Subscriber\",'Enrollment Form'!$C871=\"ROC\"),\"-\",IF(AND('Enrollment Form'!$B871=\"Subscriber\",'Enrollment Form'!$C871=\"Enroll\",'Enrollment Form'!$CO871<>\"\"),\"Y\",\"N\")))","v":""},{"$f":"IF($B864=\"N\",\"\",IF($S864=\"-\",\"-\",IF(AND($S864=\"Y\",'Enrollment Form'!$CO871=\"No\"),\"-\",IF(AND($S864=\"Y\",'Enrollment Form'!$CO871=\"Yes\",'Enrollment Form'!$CP871<>\"\"),\"Y\",\"N\"))))","v":""},{"$f":"IF(OR('Enrollment Form'!$AV871=\"Yes\",'Enrollment Form'!$AV871=\"\"),\"-\",IF(AND('Enrollment Form'!$AV871=\"No\",ISERROR(FIND(\"HMO\",VLOOKUP('Enrollment Form'!G871,'Enrollment Form'!H$11:J$1000,3,FALSE),1))=FALSE,COUNTA('Enrollment Form'!$AW871:$AZ871)=4),\"Y\",\"N\"))","v":"-"},{"$f":"IF($B864=\"N\",\"\",IF('Enrollment Form'!$B871=\"Subscriber\",\"-\",IF(COUNTA('Enrollment Form'!$BE871,'Enrollment Form'!$BG871)=2,\"Y\",\"N\")))","v":""},{"$f":"IF($B864=\"N\",\"\",IF(OR('Enrollment Form'!$AU871=\"\",'Enrollment Form'!$AU871=\"No\"),\"-\",IF(AND('Enrollment Form'!$AU871=\"Yes\",COUNTA('Enrollment Form'!$CK871)=1),\"Y\",\"N\")))","v":""},{"$f":"IF(OR('Enrollment Form'!$CK871=\"\",'Enrollment Form'!$CK871=\"No\"),\"-\",IF(COUNTA('Enrollment Form'!$CM871:$CN871)=2,\"Y\",\"N\"))","v":"-"},{"$f":"IF($B864=\"N\",\"\",IF(COUNTIF('Enrollment Form'!$CZ871:$DO871,\"Other\")=COUNTA('Enrollment Form'!$DF871,'Enrollment Form'!$DA871,'Enrollment Form'!$DK871,'Enrollment Form'!$DP871),\"Y\",\"N\"))","v":""},{"$f":"IF($B864=\"N\",\"\",IF(OR('Enrollment Form'!B871<>\"Subscriber\",'Enrollment Form'!C871=\"ROC\",COUNTIF('Enrollment Form'!AS871:AT871,\"Yes\")>=1),\"-\",IF(AND('Enrollment Form'!C871=\"Enroll\",COUNTIF('Enrollment Form'!AS871:AT871,\"No\")=2,'Enrollment Form'!AU871=\"\"),\"N\",\"Y\")))","v":""},{"$f":"IF(OR(B864=\"N\",'Enrollment Form'!B871<>\"Subscriber\",'Enrollment Form'!C871=\"ROC\",'Enrollment Form'!O871<>\"Multiple of Salary\"),\"-\",IF(COUNTA('Enrollment Form'!T871:U871)<2,\"N\",\"Y\"))","v":"-"},{"$f":"IF(B864=\"N\",\"\",IF(OR('Enrollment Form'!C871=\"ROC\",'Enrollment Form'!B871<>\"Subscriber\",'Enrollment Form'!O871=\"Waive\",'Enrollment Form'!O871=\"\"),\"-\",IF('Enrollment Form'!P871=\"\",\"N\",\"Y\")))","v":""},{"$f":"IF($B864=\"N\",\"\",IF(AND('Enrollment Form'!$C871=\"ROC\",'Enrollment Form'!$DS871<>\"\"),\"Y\",IF(AND('Enrollment Form'!$C871=\"ROC\",'Enrollment Form'!$DS871=\"\"),\"N\",IF(AND('Enrollment Form'!$C871=\"Enroll\",'Enrollment Form'!$B871=\"Subscriber\",'Enrollment Form'!$CQ871=\"No\",'Enrollment Form'!$DS871=\"\"),\"N\",IF(AND('Enrollment Form'!$C871=\"Enroll\",'Enrollment Form'!$B871=\"Subscriber\",'Enrollment Form'!$CQ871=\"Yes\"),\"-\",\"Y\")))))","v":""},{"$f":"IF($B864=\"N\",\"\",IF(AND('Enrollment Form'!$C871=\"ROC\",'Enrollment Form'!$DT871<>\"\"),\"Y\",IF(AND('Enrollment Form'!$C871=\"ROC\",'Enrollment Form'!$DT871=\"\"),\"N\",IF(AND('Enrollment Form'!$C871=\"Enroll\",'Enrollment Form'!$B871=\"Subscriber\",'Enrollment Form'!$CQ871=\"No\",'Enrollment Form'!$DT871=\"\"),\"N\",IF(AND('Enrollment Form'!$C871=\"Enroll\",'Enrollment Form'!$B871=\"Subscriber\",'Enrollment Form'!$CQ871=\"Yes\"),\"-\",\"Y\")))))","v":""},{"$f":"IF('Enrollment Form'!AH871=\"\",\"\",IF(ISERROR(SEARCH(\".\",'Enrollment Form'!AH871,SEARCH(\"@\",'Enrollment Form'!AH871))),\"N\",\"Y\"))","v":""},{"$f":"IF(OR($B864=\"N\",'Enrollment Form'!$G871=\"\"),\"\",IF('Enrollment Form'!$B871<>\"Subscriber\",\"-\",IF(COUNTIF('Enrollment Form'!$AS871:$AT871,\"Yes\")=2,\"N\",\"Y\")))","v":""},{"$f":"IF(OR('Enrollment Form'!$CC871=\"\",'Enrollment Form'!$CC871=\"No\"),\"-\",IF(AND('Enrollment Form'!$CC871=\"Yes\",'Enrollment Form'!$CD871=\"\"),\"N\",\"Y\"))","v":"-"},{"$f":"IF(OR('Enrollment Form'!$CE871=\"\",'Enrollment Form'!$CE871=\"No\"),\"-\",IF(AND('Enrollment Form'!$CE871=\"Yes\",'Enrollment Form'!$CF871=\"\"),\"N\",\"Y\"))","v":"-"},{"$f":"IF(OR('Enrollment Form'!$CG871=\"\",'Enrollment Form'!$CG871=\"No\"),\"-\",IF(AND('Enrollment Form'!$CG871=\"Yes\",'Enrollment Form'!$CH871=\"\"),\"N\",\"Y\"))","v":"-"},{"$f":"IF(OR('Enrollment Form'!$CG871=\"\",'Enrollment Form'!$CG871=\"No\"),\"-\",IF(AND('Enrollment Form'!$CG871=\"Yes\",'Enrollment Form'!$CI871=\"\"),\"N\",\"Y\"))","v":"-"},{"$f":"IF('Enrollment Form'!B871<>\"Subscriber\",\"-\",IF(AND('Enrollment Form'!B871=\"Subscriber\",'Enrollment Form'!C871=\"Enroll\",'Enrollment Form'!AA871=\"\"),\"N\",\"Y\"))","v":"-"},{"$f":"IF(OR('Enrollment Form'!B871=\"Subscriber\",'Enrollment Form'!B871=\"\"),\"-\",IF('Enrollment Form'!BI871=\"\",\"N\",\"Y\"))","v":"-"},{"$f":"IF('Enrollment Form'!B871<>\"Subscriber\",\"-\",IF(AND('Enrollment Form'!B871=\"Subscriber\",'Enrollment Form'!G871=\"\"),\"N\",\"Y\"))","v":"-"},{"$f":"IF('Enrollment Form'!A871=\"\",\"\",IF('Enrollment Form'!B871=\"Subscriber\",\"-\",IF(AND('Enrollment Form'!B871<>\"Subscriber\",'Enrollment Form'!G871='Enrollment Form'!H871),\"N\",\"Y\")))","v":""},0]
[872,{"$f":"IF('Enrollment Form'!$A872<>\"\",\"Y\",\"N\")","v":"N"},{"$f":"IF(AND('Enrollment Form'!$B872=\"\",'Enrollment Form'!$C872<>\"\"),\"N\",IF($B865=\"N\",\"\",\"Y\"))","v":""},{"$f":"IF(OR($B865=\"N\",'Enrollment Form'!G872=\"\"),\"\",IF('Enrollment Form'!$B872<>\"Subscriber\",\"\",IF('Enrollment Form'!$G872='Enrollment Form'!$H872,\"Y\",\"N\")))","v":""},{"$f":"IF($B865=\"N\",\"\",IF(AND(COUNTIFS('Enrollment Form'!$H$11:$H$1000,'Enrollment Form'!$H872,'Enrollment Form'!$B$11:$B$1000,'Enrollment Form'!$B872)>1,'Enrollment Form'!$H872<>\"\"),\"N\",\"Y\"))","v":""},{"$f":"IF($B865=\"N\",\"\",IF(LEN('Enrollment Form'!$Y872)=0,\"\",IF(LEN('Enrollment Form'!$Y872)<>5,\"N\",\"Y\")))","v":""},{"$f":"IF($B865=\"N\",\"\",IF(LEN('Enrollment Form'!$AD872=0),\"\",IF(LEN('Enrollment Form'!$AD872)<>5,\"N\",\"Y\")))","v":""},{"$f":"IF($B865=\"N\",\"\",IF(LEN('Enrollment Form'!$BL872=0),\"\",IF(LEN('Enrollment Form'!$BL872)<>5,\"N\",\"Y\")))","v":""},{"$f":"IF($B865=\"N\",\"\",IF(LEN('Enrollment Form'!$AE872)=0,\"\",IF(LEN('Enrollment Form'!$AE872)<>10,\"N\",\"Y\")))","v":""},{"$f":"IF($B865=\"N\",\"\",IF(LEN('Enrollment Form'!$AF872)=0,\"\",IF(LEN('Enrollment Form'!$AF872)<>10,\"N\",\"Y\")))","v":""},{"$f":"IF('Enrollment Form'!$O872<>\"Graded\",\"-\",IF(AND('Enrollment Form'!$O872=\"Graded\",'Enrollment Form'!$AO872<>\"\"),\"Y\",\"N\"))","v":"-"},{"$f":"IF($B865=\"N\",\"\",IF(OR('Enrollment Form'!$B872<>\"Subscriber\",'Enrollment Form'!$C872=\"ROC\"),\"-\",IF(AND('Enrollment Form'!$B872=\"Subscriber\",'Enrollment Form'!$C872=\"Enroll\",'Enrollment Form'!$AJ872<>\"\"),\"Y\",\"N\")))","v":""},{"$f":"IF($B865=\"N\",\"\",IF(OR('Enrollment Form'!$B872<>\"Subscriber\",'Enrollment Form'!$C872=\"ROC\"),\"-\",IF(AND('Enrollment Form'!$B872=\"Subscriber\",'Enrollment Form'!$C872=\"Enroll\",'Enrollment Form'!$AK872<>\"\"),\"Y\",\"N\")))","v":""},{"$f":"IF($B865=\"N\",\"\",IF(OR('Enrollment Form'!$B872<>\"Subscriber\",'Enrollment Form'!$C872=\"ROC\"),\"-\",IF(AND('Enrollment Form'!$B872=\"Subscriber\",'Enrollment Form'!$C872=\"Enroll\",'Enrollment Form'!$AL872<>\"\"),\"Y\",\"N\")))","v":""},{"$f":"IF($B865=\"N\",\"\",IF(OR('Enrollment Form'!$B872<>\"Subscriber\",'Enrollment Form'!$C872=\"ROC\"),\"-\",IF(AND('Enrollment Form'!$B872=\"Subscriber\",'Enrollment Form'!$C872=\"Enroll\",'Enrollment Form'!$AM872<>\"\"),\"Y\",\"N\")))","v":""},{"$f":"IF($B865=\"N\",\"\",IF(OR('Enrollment Form'!$B872<>\"Subscriber\",'Enrollment Form'!$C872=\"ROC\"),\"-\",IF(AND('Enrollment Form'!$B872=\"Subscriber\",'Enrollment Form'!$C872=\"Enroll\",'Enrollment Form'!$AN872<>\"\"),\"Y\",\"N\")))","v":""},{"$f":"IF($B865=\"N\",\"\",IF(OR('Enrollment Form'!$B872<>\"Subscriber\",'Enrollment Form'!$C872=\"ROC\"),\"-\",IF(AND('Enrollment Form'!$B872=\"Subscriber\",'Enrollment Form'!$C872=\"Enroll\",'Enrollment Form'!$AP872<>\"\"),\"Y\",\"N\")))","v":""},{"$f":"IF($B865=\"N\",\"\",IF($Q865=\"-\",\"-\",IF(AND($Q865=\"Y\",'Enrollment Form'!$AP872=\"No\"),\"-\",IF(AND($Q865=\"Y\",'Enrollment Form'!$AP872=\"Yes\",'Enrollment Form'!$AQ872<>\"\"),\"Y\",\"N\"))))","v":""},{"$f":"IF($B865=\"N\",\"\",IF(OR('Enrollment Form'!$B872<>\"Subscriber\",'Enrollment Form'!$C872=\"ROC\"),\"-\",IF(AND('Enrollment Form'!$B872=\"Subscriber\",'Enrollment Form'!$C872=\"Enroll\",'Enrollment Form'!$CO872<>\"\"),\"Y\",\"N\")))","v":""},{"$f":"IF($B865=\"N\",\"\",IF($S865=\"-\",\"-\",IF(AND($S865=\"Y\",'Enrollment Form'!$CO872=\"No\"),\"-\",IF(AND($S865=\"Y\",'Enrollment Form'!$CO872=\"Yes\",'Enrollment Form'!$CP872<>\"\"),\"Y\",\"N\"))))","v":""},{"$f":"IF(OR('Enrollment Form'!$AV872=\"Yes\",'Enrollment Form'!$AV872=\"\"),\"-\",IF(AND('Enrollment Form'!$AV872=\"No\",ISERROR(FIND(\"HMO\",VLOOKUP('Enrollment Form'!G872,'Enrollment Form'!H$11:J$1000,3,FALSE),1))=FALSE,COUNTA('Enrollment Form'!$AW872:$AZ872)=4),\"Y\",\"N\"))","v":"-"},{"$f":"IF($B865=\"N\",\"\",IF('Enrollment Form'!$B872=\"Subscriber\",\"-\",IF(COUNTA('Enrollment Form'!$BE872,'Enrollment Form'!$BG872)=2,\"Y\",\"N\")))","v":""},{"$f":"IF($B865=\"N\",\"\",IF(OR('Enrollment Form'!$AU872=\"\",'Enrollment Form'!$AU872=\"No\"),\"-\",IF(AND('Enrollment Form'!$AU872=\"Yes\",COUNTA('Enrollment Form'!$CK872)=1),\"Y\",\"N\")))","v":""},{"$f":"IF(OR('Enrollment Form'!$CK872=\"\",'Enrollment Form'!$CK872=\"No\"),\"-\",IF(COUNTA('Enrollment Form'!$CM872:$CN872)=2,\"Y\",\"N\"))","v":"-"},{"$f":"IF($B865=\"N\",\"\",IF(COUNTIF('Enrollment Form'!$CZ872:$DO872,\"Other\")=COUNTA('Enrollment Form'!$DF872,'Enrollment Form'!$DA872,'Enrollment Form'!$DK872,'Enrollment Form'!$DP872),\"Y\",\"N\"))","v":""},{"$f":"IF($B865=\"N\",\"\",IF(OR('Enrollment Form'!B872<>\"Subscriber\",'Enrollment Form'!C872=\"ROC\",COUNTIF('Enrollment Form'!AS872:AT872,\"Yes\")>=1),\"-\",IF(AND('Enrollment Form'!C872=\"Enroll\",COUNTIF('Enrollment Form'!AS872:AT872,\"No\")=2,'Enrollment Form'!AU872=\"\"),\"N\",\"Y\")))","v":""},{"$f":"IF(OR(B865=\"N\",'Enrollment Form'!B872<>\"Subscriber\",'Enrollment Form'!C872=\"ROC\",'Enrollment Form'!O872<>\"Multiple of Salary\"),\"-\",IF(COUNTA('Enrollment Form'!T872:U872)<2,\"N\",\"Y\"))","v":"-"},{"$f":"IF(B865=\"N\",\"\",IF(OR('Enrollment Form'!C872=\"ROC\",'Enrollment Form'!B872<>\"Subscriber\",'Enrollment Form'!O872=\"Waive\",'Enrollment Form'!O872=\"\"),\"-\",IF('Enrollment Form'!P872=\"\",\"N\",\"Y\")))","v":""},{"$f":"IF($B865=\"N\",\"\",IF(AND('Enrollment Form'!$C872=\"ROC\",'Enrollment Form'!$DS872<>\"\"),\"Y\",IF(AND('Enrollment Form'!$C872=\"ROC\",'Enrollment Form'!$DS872=\"\"),\"N\",IF(AND('Enrollment Form'!$C872=\"Enroll\",'Enrollment Form'!$B872=\"Subscriber\",'Enrollment Form'!$CQ872=\"No\",'Enrollment Form'!$DS872=\"\"),\"N\",IF(AND('Enrollment Form'!$C872=\"Enroll\",'Enrollment Form'!$B872=\"Subscriber\",'Enrollment Form'!$CQ872=\"Yes\"),\"-\",\"Y\")))))","v":""},{"$f":"IF($B865=\"N\",\"\",IF(AND('Enrollment Form'!$C872=\"ROC\",'Enrollment Form'!$DT872<>\"\"),\"Y\",IF(AND('Enrollment Form'!$C872=\"ROC\",'Enrollment Form'!$DT872=\"\"),\"N\",IF(AND('Enrollment Form'!$C872=\"Enroll\",'Enrollment Form'!$B872=\"Subscriber\",'Enrollment Form'!$CQ872=\"No\",'Enrollment Form'!$DT872=\"\"),\"N\",IF(AND('Enrollment Form'!$C872=\"Enroll\",'Enrollment Form'!$B872=\"Subscriber\",'Enrollment Form'!$CQ872=\"Yes\"),\"-\",\"Y\")))))","v":""},{"$f":"IF('Enrollment Form'!AH872=\"\",\"\",IF(ISERROR(SEARCH(\".\",'Enrollment Form'!AH872,SEARCH(\"@\",'Enrollment Form'!AH872))),\"N\",\"Y\"))","v":""},{"$f":"IF(OR($B865=\"N\",'Enrollment Form'!$G872=\"\"),\"\",IF('Enrollment Form'!$B872<>\"Subscriber\",\"-\",IF(COUNTIF('Enrollment Form'!$AS872:$AT872,\"Yes\")=2,\"N\",\"Y\")))","v":""},{"$f":"IF(OR('Enrollment Form'!$CC872=\"\",'Enrollment Form'!$CC872=\"No\"),\"-\",IF(AND('Enrollment Form'!$CC872=\"Yes\",'Enrollment Form'!$CD872=\"\"),\"N\",\"Y\"))","v":"-"},{"$f":"IF(OR('Enrollment Form'!$CE872=\"\",'Enrollment Form'!$CE872=\"No\"),\"-\",IF(AND('Enrollment Form'!$CE872=\"Yes\",'Enrollment Form'!$CF872=\"\"),\"N\",\"Y\"))","v":"-"},{"$f":"IF(OR('Enrollment Form'!$CG872=\"\",'Enrollment Form'!$CG872=\"No\"),\"-\",IF(AND('Enrollment Form'!$CG872=\"Yes\",'Enrollment Form'!$CH872=\"\"),\"N\",\"Y\"))","v":"-"},{"$f":"IF(OR('Enrollment Form'!$CG872=\"\",'Enrollment Form'!$CG872=\"No\"),\"-\",IF(AND('Enrollment Form'!$CG872=\"Yes\",'Enrollment Form'!$CI872=\"\"),\"N\",\"Y\"))","v":"-"},{"$f":"IF('Enrollment Form'!B872<>\"Subscriber\",\"-\",IF(AND('Enrollment Form'!B872=\"Subscriber\",'Enrollment Form'!C872=\"Enroll\",'Enrollment Form'!AA872=\"\"),\"N\",\"Y\"))","v":"-"},{"$f":"IF(OR('Enrollment Form'!B872=\"Subscriber\",'Enrollment Form'!B872=\"\"),\"-\",IF('Enrollment Form'!BI872=\"\",\"N\",\"Y\"))","v":"-"},{"$f":"IF('Enrollment Form'!B872<>\"Subscriber\",\"-\",IF(AND('Enrollment Form'!B872=\"Subscriber\",'Enrollment Form'!G872=\"\"),\"N\",\"Y\"))","v":"-"},{"$f":"IF('Enrollment Form'!A872=\"\",\"\",IF('Enrollment Form'!B872=\"Subscriber\",\"-\",IF(AND('Enrollment Form'!B872<>\"Subscriber\",'Enrollment Form'!G872='Enrollment Form'!H872),\"N\",\"Y\")))","v":""},0]
[873,{"$f":"IF('Enrollment Form'!$A873<>\"\",\"Y\",\"N\")","v":"N"},{"$f":"IF(AND('Enrollment Form'!$B873=\"\",'Enrollment Form'!$C873<>\"\"),\"N\",IF($B866=\"N\",\"\",\"Y\"))","v":""},{"$f":"IF(OR($B866=\"N\",'Enrollment Form'!G873=\"\"),\"\",IF('Enrollment Form'!$B873<>\"Subscriber\",\"\",IF('Enrollment Form'!$G873='Enrollment Form'!$H873,\"Y\",\"N\")))","v":""},{"$f":"IF($B866=\"N\",\"\",IF(AND(COUNTIFS('Enrollment Form'!$H$11:$H$1000,'Enrollment Form'!$H873,'Enrollment Form'!$B$11:$B$1000,'Enrollment Form'!$B873)>1,'Enrollment Form'!$H873<>\"\"),\"N\",\"Y\"))","v":""},{"$f":"IF($B866=\"N\",\"\",IF(LEN('Enrollment Form'!$Y873)=0,\"\",IF(LEN('Enrollment Form'!$Y873)<>5,\"N\",\"Y\")))","v":""},{"$f":"IF($B866=\"N\",\"\",IF(LEN('Enrollment Form'!$AD873=0),\"\",IF(LEN('Enrollment Form'!$AD873)<>5,\"N\",\"Y\")))","v":""},{"$f":"IF($B866=\"N\",\"\",IF(LEN('Enrollment Form'!$BL873=0),\"\",IF(LEN('Enrollment Form'!$BL873)<>5,\"N\",\"Y\")))","v":""},{"$f":"IF($B866=\"N\",\"\",IF(LEN('Enrollment Form'!$AE873)=0,\"\",IF(LEN('Enrollment Form'!$AE873)<>10,\"N\",\"Y\")))","v":""},{"$f":"IF($B866=\"N\",\"\",IF(LEN('Enrollment Form'!$AF873)=0,\"\",IF(LEN('Enrollment Form'!$AF873)<>10,\"N\",\"Y\")))","v":""},{"$f":"IF('Enrollment Form'!$O873<>\"Graded\",\"-\",IF(AND('Enrollment Form'!$O873=\"Graded\",'Enrollment Form'!$AO873<>\"\"),\"Y\",\"N\"))","v":"-"},{"$f":"IF($B866=\"N\",\"\",IF(OR('Enrollment Form'!$B873<>\"Subscriber\",'Enrollment Form'!$C873=\"ROC\"),\"-\",IF(AND('Enrollment Form'!$B873=\"Subscriber\",'Enrollment Form'!$C873=\"Enroll\",'Enrollment Form'!$AJ873<>\"\"),\"Y\",\"N\")))","v":""},{"$f":"IF($B866=\"N\",\"\",IF(OR('Enrollment Form'!$B873<>\"Subscriber\",'Enrollment Form'!$C873=\"ROC\"),\"-\",IF(AND('Enrollment Form'!$B873=\"Subscriber\",'Enrollment Form'!$C873=\"Enroll\",'Enrollment Form'!$AK873<>\"\"),\"Y\",\"N\")))","v":""},{"$f":"IF($B866=\"N\",\"\",IF(OR('Enrollment Form'!$B873<>\"Subscriber\",'Enrollment Form'!$C873=\"ROC\"),\"-\",IF(AND('Enrollment Form'!$B873=\"Subscriber\",'Enrollment Form'!$C873=\"Enroll\",'Enrollment Form'!$AL873<>\"\"),\"Y\",\"N\")))","v":""},{"$f":"IF($B866=\"N\",\"\",IF(OR('Enrollment Form'!$B873<>\"Subscriber\",'Enrollment Form'!$C873=\"ROC\"),\"-\",IF(AND('Enrollment Form'!$B873=\"Subscriber\",'Enrollment Form'!$C873=\"Enroll\",'Enrollment Form'!$AM873<>\"\"),\"Y\",\"N\")))","v":""},{"$f":"IF($B866=\"N\",\"\",IF(OR('Enrollment Form'!$B873<>\"Subscriber\",'Enrollment Form'!$C873=\"ROC\"),\"-\",IF(AND('Enrollment Form'!$B873=\"Subscriber\",'Enrollment Form'!$C873=\"Enroll\",'Enrollment Form'!$AN873<>\"\"),\"Y\",\"N\")))","v":""},{"$f":"IF($B866=\"N\",\"\",IF(OR('Enrollment Form'!$B873<>\"Subscriber\",'Enrollment Form'!$C873=\"ROC\"),\"-\",IF(AND('Enrollment Form'!$B873=\"Subscriber\",'Enrollment Form'!$C873=\"Enroll\",'Enrollment Form'!$AP873<>\"\"),\"Y\",\"N\")))","v":""},{"$f":"IF($B866=\"N\",\"\",IF($Q866=\"-\",\"-\",IF(AND($Q866=\"Y\",'Enrollment Form'!$AP873=\"No\"),\"-\",IF(AND($Q866=\"Y\",'Enrollment Form'!$AP873=\"Yes\",'Enrollment Form'!$AQ873<>\"\"),\"Y\",\"N\"))))","v":""},{"$f":"IF($B866=\"N\",\"\",IF(OR('Enrollment Form'!$B873<>\"Subscriber\",'Enrollment Form'!$C873=\"ROC\"),\"-\",IF(AND('Enrollment Form'!$B873=\"Subscriber\",'Enrollment Form'!$C873=\"Enroll\",'Enrollment Form'!$CO873<>\"\"),\"Y\",\"N\")))","v":""},{"$f":"IF($B866=\"N\",\"\",IF($S866=\"-\",\"-\",IF(AND($S866=\"Y\",'Enrollment Form'!$CO873=\"No\"),\"-\",IF(AND($S866=\"Y\",'Enrollment Form'!$CO873=\"Yes\",'Enrollment Form'!$CP873<>\"\"),\"Y\",\"N\"))))","v":""},{"$f":"IF(OR('Enrollment Form'!$AV873=\"Yes\",'Enrollment Form'!$AV873=\"\"),\"-\",IF(AND('Enrollment Form'!$AV873=\"No\",ISERROR(FIND(\"HMO\",VLOOKUP('Enrollment Form'!G873,'Enrollment Form'!H$11:J$1000,3,FALSE),1))=FALSE,COUNTA('Enrollment Form'!$AW873:$AZ873)=4),\"Y\",\"N\"))","v":"-"},{"$f":"IF($B866=\"N\",\"\",IF('Enrollment Form'!$B873=\"Subscriber\",\"-\",IF(COUNTA('Enrollment Form'!$BE873,'Enrollment Form'!$BG873)=2,\"Y\",\"N\")))","v":""},{"$f":"IF($B866=\"N\",\"\",IF(OR('Enrollment Form'!$AU873=\"\",'Enrollment Form'!$AU873=\"No\"),\"-\",IF(AND('Enrollment Form'!$AU873=\"Yes\",COUNTA('Enrollment Form'!$CK873)=1),\"Y\",\"N\")))","v":""},{"$f":"IF(OR('Enrollment Form'!$CK873=\"\",'Enrollment Form'!$CK873=\"No\"),\"-\",IF(COUNTA('Enrollment Form'!$CM873:$CN873)=2,\"Y\",\"N\"))","v":"-"},{"$f":"IF($B866=\"N\",\"\",IF(COUNTIF('Enrollment Form'!$CZ873:$DO873,\"Other\")=COUNTA('Enrollment Form'!$DF873,'Enrollment Form'!$DA873,'Enrollment Form'!$DK873,'Enrollment Form'!$DP873),\"Y\",\"N\"))","v":""},{"$f":"IF($B866=\"N\",\"\",IF(OR('Enrollment Form'!B873<>\"Subscriber\",'Enrollment Form'!C873=\"ROC\",COUNTIF('Enrollment Form'!AS873:AT873,\"Yes\")>=1),\"-\",IF(AND('Enrollment Form'!C873=\"Enroll\",COUNTIF('Enrollment Form'!AS873:AT873,\"No\")=2,'Enrollment Form'!AU873=\"\"),\"N\",\"Y\")))","v":""},{"$f":"IF(OR(B866=\"N\",'Enrollment Form'!B873<>\"Subscriber\",'Enrollment Form'!C873=\"ROC\",'Enrollment Form'!O873<>\"Multiple of Salary\"),\"-\",IF(COUNTA('Enrollment Form'!T873:U873)<2,\"N\",\"Y\"))","v":"-"},{"$f":"IF(B866=\"N\",\"\",IF(OR('Enrollment Form'!C873=\"ROC\",'Enrollment Form'!B873<>\"Subscriber\",'Enrollment Form'!O873=\"Waive\",'Enrollment Form'!O873=\"\"),\"-\",IF('Enrollment Form'!P873=\"\",\"N\",\"Y\")))","v":""},{"$f":"IF($B866=\"N\",\"\",IF(AND('Enrollment Form'!$C873=\"ROC\",'Enrollment Form'!$DS873<>\"\"),\"Y\",IF(AND('Enrollment Form'!$C873=\"ROC\",'Enrollment Form'!$DS873=\"\"),\"N\",IF(AND('Enrollment Form'!$C873=\"Enroll\",'Enrollment Form'!$B873=\"Subscriber\",'Enrollment Form'!$CQ873=\"No\",'Enrollment Form'!$DS873=\"\"),\"N\",IF(AND('Enrollment Form'!$C873=\"Enroll\",'Enrollment Form'!$B873=\"Subscriber\",'Enrollment Form'!$CQ873=\"Yes\"),\"-\",\"Y\")))))","v":""},{"$f":"IF($B866=\"N\",\"\",IF(AND('Enrollment Form'!$C873=\"ROC\",'Enrollment Form'!$DT873<>\"\"),\"Y\",IF(AND('Enrollment Form'!$C873=\"ROC\",'Enrollment Form'!$DT873=\"\"),\"N\",IF(AND('Enrollment Form'!$C873=\"Enroll\",'Enrollment Form'!$B873=\"Subscriber\",'Enrollment Form'!$CQ873=\"No\",'Enrollment Form'!$DT873=\"\"),\"N\",IF(AND('Enrollment Form'!$C873=\"Enroll\",'Enrollment Form'!$B873=\"Subscriber\",'Enrollment Form'!$CQ873=\"Yes\"),\"-\",\"Y\")))))","v":""},{"$f":"IF('Enrollment Form'!AH873=\"\",\"\",IF(ISERROR(SEARCH(\".\",'Enrollment Form'!AH873,SEARCH(\"@\",'Enrollment Form'!AH873))),\"N\",\"Y\"))","v":""},{"$f":"IF(OR($B866=\"N\",'Enrollment Form'!$G873=\"\"),\"\",IF('Enrollment Form'!$B873<>\"Subscriber\",\"-\",IF(COUNTIF('Enrollment Form'!$AS873:$AT873,\"Yes\")=2,\"N\",\"Y\")))","v":""},{"$f":"IF(OR('Enrollment Form'!$CC873=\"\",'Enrollment Form'!$CC873=\"No\"),\"-\",IF(AND('Enrollment Form'!$CC873=\"Yes\",'Enrollment Form'!$CD873=\"\"),\"N\",\"Y\"))","v":"-"},{"$f":"IF(OR('Enrollment Form'!$CE873=\"\",'Enrollment Form'!$CE873=\"No\"),\"-\",IF(AND('Enrollment Form'!$CE873=\"Yes\",'Enrollment Form'!$CF873=\"\"),\"N\",\"Y\"))","v":"-"},{"$f":"IF(OR('Enrollment Form'!$CG873=\"\",'Enrollment Form'!$CG873=\"No\"),\"-\",IF(AND('Enrollment Form'!$CG873=\"Yes\",'Enrollment Form'!$CH873=\"\"),\"N\",\"Y\"))","v":"-"},{"$f":"IF(OR('Enrollment Form'!$CG873=\"\",'Enrollment Form'!$CG873=\"No\"),\"-\",IF(AND('Enrollment Form'!$CG873=\"Yes\",'Enrollment Form'!$CI873=\"\"),\"N\",\"Y\"))","v":"-"},{"$f":"IF('Enrollment Form'!B873<>\"Subscriber\",\"-\",IF(AND('Enrollment Form'!B873=\"Subscriber\",'Enrollment Form'!C873=\"Enroll\",'Enrollment Form'!AA873=\"\"),\"N\",\"Y\"))","v":"-"},{"$f":"IF(OR('Enrollment Form'!B873=\"Subscriber\",'Enrollment Form'!B873=\"\"),\"-\",IF('Enrollment Form'!BI873=\"\",\"N\",\"Y\"))","v":"-"},{"$f":"IF('Enrollment Form'!B873<>\"Subscriber\",\"-\",IF(AND('Enrollment Form'!B873=\"Subscriber\",'Enrollment Form'!G873=\"\"),\"N\",\"Y\"))","v":"-"},{"$f":"IF('Enrollment Form'!A873=\"\",\"\",IF('Enrollment Form'!B873=\"Subscriber\",\"-\",IF(AND('Enrollment Form'!B873<>\"Subscriber\",'Enrollment Form'!G873='Enrollment Form'!H873),\"N\",\"Y\")))","v":""},0]
[874,{"$f":"IF('Enrollment Form'!$A874<>\"\",\"Y\",\"N\")","v":"N"},{"$f":"IF(AND('Enrollment Form'!$B874=\"\",'Enrollment Form'!$C874<>\"\"),\"N\",IF($B867=\"N\",\"\",\"Y\"))","v":""},{"$f":"IF(OR($B867=\"N\",'Enrollment Form'!G874=\"\"),\"\",IF('Enrollment Form'!$B874<>\"Subscriber\",\"\",IF('Enrollment Form'!$G874='Enrollment Form'!$H874,\"Y\",\"N\")))","v":""},{"$f":"IF($B867=\"N\",\"\",IF(AND(COUNTIFS('Enrollment Form'!$H$11:$H$1000,'Enrollment Form'!$H874,'Enrollment Form'!$B$11:$B$1000,'Enrollment Form'!$B874)>1,'Enrollment Form'!$H874<>\"\"),\"N\",\"Y\"))","v":""},{"$f":"IF($B867=\"N\",\"\",IF(LEN('Enrollment Form'!$Y874)=0,\"\",IF(LEN('Enrollment Form'!$Y874)<>5,\"N\",\"Y\")))","v":""},{"$f":"IF($B867=\"N\",\"\",IF(LEN('Enrollment Form'!$AD874=0),\"\",IF(LEN('Enrollment Form'!$AD874)<>5,\"N\",\"Y\")))","v":""},{"$f":"IF($B867=\"N\",\"\",IF(LEN('Enrollment Form'!$BL874=0),\"\",IF(LEN('Enrollment Form'!$BL874)<>5,\"N\",\"Y\")))","v":""},{"$f":"IF($B867=\"N\",\"\",IF(LEN('Enrollment Form'!$AE874)=0,\"\",IF(LEN('Enrollment Form'!$AE874)<>10,\"N\",\"Y\")))","v":""},{"$f":"IF($B867=\"N\",\"\",IF(LEN('Enrollment Form'!$AF874)=0,\"\",IF(LEN('Enrollment Form'!$AF874)<>10,\"N\",\"Y\")))","v":""},{"$f":"IF('Enrollment Form'!$O874<>\"Graded\",\"-\",IF(AND('Enrollment Form'!$O874=\"Graded\",'Enrollment Form'!$AO874<>\"\"),\"Y\",\"N\"))","v":"-"},{"$f":"IF($B867=\"N\",\"\",IF(OR('Enrollment Form'!$B874<>\"Subscriber\",'Enrollment Form'!$C874=\"ROC\"),\"-\",IF(AND('Enrollment Form'!$B874=\"Subscriber\",'Enrollment Form'!$C874=\"Enroll\",'Enrollment Form'!$AJ874<>\"\"),\"Y\",\"N\")))","v":""},{"$f":"IF($B867=\"N\",\"\",IF(OR('Enrollment Form'!$B874<>\"Subscriber\",'Enrollment Form'!$C874=\"ROC\"),\"-\",IF(AND('Enrollment Form'!$B874=\"Subscriber\",'Enrollment Form'!$C874=\"Enroll\",'Enrollment Form'!$AK874<>\"\"),\"Y\",\"N\")))","v":""},{"$f":"IF($B867=\"N\",\"\",IF(OR('Enrollment Form'!$B874<>\"Subscriber\",'Enrollment Form'!$C874=\"ROC\"),\"-\",IF(AND('Enrollment Form'!$B874=\"Subscriber\",'Enrollment Form'!$C874=\"Enroll\",'Enrollment Form'!$AL874<>\"\"),\"Y\",\"N\")))","v":""},{"$f":"IF($B867=\"N\",\"\",IF(OR('Enrollment Form'!$B874<>\"Subscriber\",'Enrollment Form'!$C874=\"ROC\"),\"-\",IF(AND('Enrollment Form'!$B874=\"Subscriber\",'Enrollment Form'!$C874=\"Enroll\",'Enrollment Form'!$AM874<>\"\"),\"Y\",\"N\")))","v":""},{"$f":"IF($B867=\"N\",\"\",IF(OR('Enrollment Form'!$B874<>\"Subscriber\",'Enrollment Form'!$C874=\"ROC\"),\"-\",IF(AND('Enrollment Form'!$B874=\"Subscriber\",'Enrollment Form'!$C874=\"Enroll\",'Enrollment Form'!$AN874<>\"\"),\"Y\",\"N\")))","v":""},{"$f":"IF($B867=\"N\",\"\",IF(OR('Enrollment Form'!$B874<>\"Subscriber\",'Enrollment Form'!$C874=\"ROC\"),\"-\",IF(AND('Enrollment Form'!$B874=\"Subscriber\",'Enrollment Form'!$C874=\"Enroll\",'Enrollment Form'!$AP874<>\"\"),\"Y\",\"N\")))","v":""},{"$f":"IF($B867=\"N\",\"\",IF($Q867=\"-\",\"-\",IF(AND($Q867=\"Y\",'Enrollment Form'!$AP874=\"No\"),\"-\",IF(AND($Q867=\"Y\",'Enrollment Form'!$AP874=\"Yes\",'Enrollment Form'!$AQ874<>\"\"),\"Y\",\"N\"))))","v":""},{"$f":"IF($B867=\"N\",\"\",IF(OR('Enrollment Form'!$B874<>\"Subscriber\",'Enrollment Form'!$C874=\"ROC\"),\"-\",IF(AND('Enrollment Form'!$B874=\"Subscriber\",'Enrollment Form'!$C874=\"Enroll\",'Enrollment Form'!$CO874<>\"\"),\"Y\",\"N\")))","v":""},{"$f":"IF($B867=\"N\",\"\",IF($S867=\"-\",\"-\",IF(AND($S867=\"Y\",'Enrollment Form'!$CO874=\"No\"),\"-\",IF(AND($S867=\"Y\",'Enrollment Form'!$CO874=\"Yes\",'Enrollment Form'!$CP874<>\"\"),\"Y\",\"N\"))))","v":""},{"$f":"IF(OR('Enrollment Form'!$AV874=\"Yes\",'Enrollment Form'!$AV874=\"\"),\"-\",IF(AND('Enrollment Form'!$AV874=\"No\",ISERROR(FIND(\"HMO\",VLOOKUP('Enrollment Form'!G874,'Enrollment Form'!H$11:J$1000,3,FALSE),1))=FALSE,COUNTA('Enrollment Form'!$AW874:$AZ874)=4),\"Y\",\"N\"))","v":"-"},{"$f":"IF($B867=\"N\",\"\",IF('Enrollment Form'!$B874=\"Subscriber\",\"-\",IF(COUNTA('Enrollment Form'!$BE874,'Enrollment Form'!$BG874)=2,\"Y\",\"N\")))","v":""},{"$f":"IF($B867=\"N\",\"\",IF(OR('Enrollment Form'!$AU874=\"\",'Enrollment Form'!$AU874=\"No\"),\"-\",IF(AND('Enrollment Form'!$AU874=\"Yes\",COUNTA('Enrollment Form'!$CK874)=1),\"Y\",\"N\")))","v":""},{"$f":"IF(OR('Enrollment Form'!$CK874=\"\",'Enrollment Form'!$CK874=\"No\"),\"-\",IF(COUNTA('Enrollment Form'!$CM874:$CN874)=2,\"Y\",\"N\"))","v":"-"},{"$f":"IF($B867=\"N\",\"\",IF(COUNTIF('Enrollment Form'!$CZ874:$DO874,\"Other\")=COUNTA('Enrollment Form'!$DF874,'Enrollment Form'!$DA874,'Enrollment Form'!$DK874,'Enrollment Form'!$DP874),\"Y\",\"N\"))","v":""},{"$f":"IF($B867=\"N\",\"\",IF(OR('Enrollment Form'!B874<>\"Subscriber\",'Enrollment Form'!C874=\"ROC\",COUNTIF('Enrollment Form'!AS874:AT874,\"Yes\")>=1),\"-\",IF(AND('Enrollment Form'!C874=\"Enroll\",COUNTIF('Enrollment Form'!AS874:AT874,\"No\")=2,'Enrollment Form'!AU874=\"\"),\"N\",\"Y\")))","v":""},{"$f":"IF(OR(B867=\"N\",'Enrollment Form'!B874<>\"Subscriber\",'Enrollment Form'!C874=\"ROC\",'Enrollment Form'!O874<>\"Multiple of Salary\"),\"-\",IF(COUNTA('Enrollment Form'!T874:U874)<2,\"N\",\"Y\"))","v":"-"},{"$f":"IF(B867=\"N\",\"\",IF(OR('Enrollment Form'!C874=\"ROC\",'Enrollment Form'!B874<>\"Subscriber\",'Enrollment Form'!O874=\"Waive\",'Enrollment Form'!O874=\"\"),\"-\",IF('Enrollment Form'!P874=\"\",\"N\",\"Y\")))","v":""},{"$f":"IF($B867=\"N\",\"\",IF(AND('Enrollment Form'!$C874=\"ROC\",'Enrollment Form'!$DS874<>\"\"),\"Y\",IF(AND('Enrollment Form'!$C874=\"ROC\",'Enrollment Form'!$DS874=\"\"),\"N\",IF(AND('Enrollment Form'!$C874=\"Enroll\",'Enrollment Form'!$B874=\"Subscriber\",'Enrollment Form'!$CQ874=\"No\",'Enrollment Form'!$DS874=\"\"),\"N\",IF(AND('Enrollment Form'!$C874=\"Enroll\",'Enrollment Form'!$B874=\"Subscriber\",'Enrollment Form'!$CQ874=\"Yes\"),\"-\",\"Y\")))))","v":""},{"$f":"IF($B867=\"N\",\"\",IF(AND('Enrollment Form'!$C874=\"ROC\",'Enrollment Form'!$DT874<>\"\"),\"Y\",IF(AND('Enrollment Form'!$C874=\"ROC\",'Enrollment Form'!$DT874=\"\"),\"N\",IF(AND('Enrollment Form'!$C874=\"Enroll\",'Enrollment Form'!$B874=\"Subscriber\",'Enrollment Form'!$CQ874=\"No\",'Enrollment Form'!$DT874=\"\"),\"N\",IF(AND('Enrollment Form'!$C874=\"Enroll\",'Enrollment Form'!$B874=\"Subscriber\",'Enrollment Form'!$CQ874=\"Yes\"),\"-\",\"Y\")))))","v":""},{"$f":"IF('Enrollment Form'!AH874=\"\",\"\",IF(ISERROR(SEARCH(\".\",'Enrollment Form'!AH874,SEARCH(\"@\",'Enrollment Form'!AH874))),\"N\",\"Y\"))","v":""},{"$f":"IF(OR($B867=\"N\",'Enrollment Form'!$G874=\"\"),\"\",IF('Enrollment Form'!$B874<>\"Subscriber\",\"-\",IF(COUNTIF('Enrollment Form'!$AS874:$AT874,\"Yes\")=2,\"N\",\"Y\")))","v":""},{"$f":"IF(OR('Enrollment Form'!$CC874=\"\",'Enrollment Form'!$CC874=\"No\"),\"-\",IF(AND('Enrollment Form'!$CC874=\"Yes\",'Enrollment Form'!$CD874=\"\"),\"N\",\"Y\"))","v":"-"},{"$f":"IF(OR('Enrollment Form'!$CE874=\"\",'Enrollment Form'!$CE874=\"No\"),\"-\",IF(AND('Enrollment Form'!$CE874=\"Yes\",'Enrollment Form'!$CF874=\"\"),\"N\",\"Y\"))","v":"-"},{"$f":"IF(OR('Enrollment Form'!$CG874=\"\",'Enrollment Form'!$CG874=\"No\"),\"-\",IF(AND('Enrollment Form'!$CG874=\"Yes\",'Enrollment Form'!$CH874=\"\"),\"N\",\"Y\"))","v":"-"},{"$f":"IF(OR('Enrollment Form'!$CG874=\"\",'Enrollment Form'!$CG874=\"No\"),\"-\",IF(AND('Enrollment Form'!$CG874=\"Yes\",'Enrollment Form'!$CI874=\"\"),\"N\",\"Y\"))","v":"-"},{"$f":"IF('Enrollment Form'!B874<>\"Subscriber\",\"-\",IF(AND('Enrollment Form'!B874=\"Subscriber\",'Enrollment Form'!C874=\"Enroll\",'Enrollment Form'!AA874=\"\"),\"N\",\"Y\"))","v":"-"},{"$f":"IF(OR('Enrollment Form'!B874=\"Subscriber\",'Enrollment Form'!B874=\"\"),\"-\",IF('Enrollment Form'!BI874=\"\",\"N\",\"Y\"))","v":"-"},{"$f":"IF('Enrollment Form'!B874<>\"Subscriber\",\"-\",IF(AND('Enrollment Form'!B874=\"Subscriber\",'Enrollment Form'!G874=\"\"),\"N\",\"Y\"))","v":"-"},{"$f":"IF('Enrollment Form'!A874=\"\",\"\",IF('Enrollment Form'!B874=\"Subscriber\",\"-\",IF(AND('Enrollment Form'!B874<>\"Subscriber\",'Enrollment Form'!G874='Enrollment Form'!H874),\"N\",\"Y\")))","v":""},0]
[875,{"$f":"IF('Enrollment Form'!$A875<>\"\",\"Y\",\"N\")","v":"N"},{"$f":"IF(AND('Enrollment Form'!$B875=\"\",'Enrollment Form'!$C875<>\"\"),\"N\",IF($B868=\"N\",\"\",\"Y\"))","v":""},{"$f":"IF(OR($B868=\"N\",'Enrollment Form'!G875=\"\"),\"\",IF('Enrollment Form'!$B875<>\"Subscriber\",\"\",IF('Enrollment Form'!$G875='Enrollment Form'!$H875,\"Y\",\"N\")))","v":""},{"$f":"IF($B868=\"N\",\"\",IF(AND(COUNTIFS('Enrollment Form'!$H$11:$H$1000,'Enrollment Form'!$H875,'Enrollment Form'!$B$11:$B$1000,'Enrollment Form'!$B875)>1,'Enrollment Form'!$H875<>\"\"),\"N\",\"Y\"))","v":""},{"$f":"IF($B868=\"N\",\"\",IF(LEN('Enrollment Form'!$Y875)=0,\"\",IF(LEN('Enrollment Form'!$Y875)<>5,\"N\",\"Y\")))","v":""},{"$f":"IF($B868=\"N\",\"\",IF(LEN('Enrollment Form'!$AD875=0),\"\",IF(LEN('Enrollment Form'!$AD875)<>5,\"N\",\"Y\")))","v":""},{"$f":"IF($B868=\"N\",\"\",IF(LEN('Enrollment Form'!$BL875=0),\"\",IF(LEN('Enrollment Form'!$BL875)<>5,\"N\",\"Y\")))","v":""},{"$f":"IF($B868=\"N\",\"\",IF(LEN('Enrollment Form'!$AE875)=0,\"\",IF(LEN('Enrollment Form'!$AE875)<>10,\"N\",\"Y\")))","v":""},{"$f":"IF($B868=\"N\",\"\",IF(LEN('Enrollment Form'!$AF875)=0,\"\",IF(LEN('Enrollment Form'!$AF875)<>10,\"N\",\"Y\")))","v":""},{"$f":"IF('Enrollment Form'!$O875<>\"Graded\",\"-\",IF(AND('Enrollment Form'!$O875=\"Graded\",'Enrollment Form'!$AO875<>\"\"),\"Y\",\"N\"))","v":"-"},{"$f":"IF($B868=\"N\",\"\",IF(OR('Enrollment Form'!$B875<>\"Subscriber\",'Enrollment Form'!$C875=\"ROC\"),\"-\",IF(AND('Enrollment Form'!$B875=\"Subscriber\",'Enrollment Form'!$C875=\"Enroll\",'Enrollment Form'!$AJ875<>\"\"),\"Y\",\"N\")))","v":""},{"$f":"IF($B868=\"N\",\"\",IF(OR('Enrollment Form'!$B875<>\"Subscriber\",'Enrollment Form'!$C875=\"ROC\"),\"-\",IF(AND('Enrollment Form'!$B875=\"Subscriber\",'Enrollment Form'!$C875=\"Enroll\",'Enrollment Form'!$AK875<>\"\"),\"Y\",\"N\")))","v":""},{"$f":"IF($B868=\"N\",\"\",IF(OR('Enrollment Form'!$B875<>\"Subscriber\",'Enrollment Form'!$C875=\"ROC\"),\"-\",IF(AND('Enrollment Form'!$B875=\"Subscriber\",'Enrollment Form'!$C875=\"Enroll\",'Enrollment Form'!$AL875<>\"\"),\"Y\",\"N\")))","v":""},{"$f":"IF($B868=\"N\",\"\",IF(OR('Enrollment Form'!$B875<>\"Subscriber\",'Enrollment Form'!$C875=\"ROC\"),\"-\",IF(AND('Enrollment Form'!$B875=\"Subscriber\",'Enrollment Form'!$C875=\"Enroll\",'Enrollment Form'!$AM875<>\"\"),\"Y\",\"N\")))","v":""},{"$f":"IF($B868=\"N\",\"\",IF(OR('Enrollment Form'!$B875<>\"Subscriber\",'Enrollment Form'!$C875=\"ROC\"),\"-\",IF(AND('Enrollment Form'!$B875=\"Subscriber\",'Enrollment Form'!$C875=\"Enroll\",'Enrollment Form'!$AN875<>\"\"),\"Y\",\"N\")))","v":""},{"$f":"IF($B868=\"N\",\"\",IF(OR('Enrollment Form'!$B875<>\"Subscriber\",'Enrollment Form'!$C875=\"ROC\"),\"-\",IF(AND('Enrollment Form'!$B875=\"Subscriber\",'Enrollment Form'!$C875=\"Enroll\",'Enrollment Form'!$AP875<>\"\"),\"Y\",\"N\")))","v":""},{"$f":"IF($B868=\"N\",\"\",IF($Q868=\"-\",\"-\",IF(AND($Q868=\"Y\",'Enrollment Form'!$AP875=\"No\"),\"-\",IF(AND($Q868=\"Y\",'Enrollment Form'!$AP875=\"Yes\",'Enrollment Form'!$AQ875<>\"\"),\"Y\",\"N\"))))","v":""},{"$f":"IF($B868=\"N\",\"\",IF(OR('Enrollment Form'!$B875<>\"Subscriber\",'Enrollment Form'!$C875=\"ROC\"),\"-\",IF(AND('Enrollment Form'!$B875=\"Subscriber\",'Enrollment Form'!$C875=\"Enroll\",'Enrollment Form'!$CO875<>\"\"),\"Y\",\"N\")))","v":""},{"$f":"IF($B868=\"N\",\"\",IF($S868=\"-\",\"-\",IF(AND($S868=\"Y\",'Enrollment Form'!$CO875=\"No\"),\"-\",IF(AND($S868=\"Y\",'Enrollment Form'!$CO875=\"Yes\",'Enrollment Form'!$CP875<>\"\"),\"Y\",\"N\"))))","v":""},{"$f":"IF(OR('Enrollment Form'!$AV875=\"Yes\",'Enrollment Form'!$AV875=\"\"),\"-\",IF(AND('Enrollment Form'!$AV875=\"No\",ISERROR(FIND(\"HMO\",VLOOKUP('Enrollment Form'!G875,'Enrollment Form'!H$11:J$1000,3,FALSE),1))=FALSE,COUNTA('Enrollment Form'!$AW875:$AZ875)=4),\"Y\",\"N\"))","v":"-"},{"$f":"IF($B868=\"N\",\"\",IF('Enrollment Form'!$B875=\"Subscriber\",\"-\",IF(COUNTA('Enrollment Form'!$BE875,'Enrollment Form'!$BG875)=2,\"Y\",\"N\")))","v":""},{"$f":"IF($B868=\"N\",\"\",IF(OR('Enrollment Form'!$AU875=\"\",'Enrollment Form'!$AU875=\"No\"),\"-\",IF(AND('Enrollment Form'!$AU875=\"Yes\",COUNTA('Enrollment Form'!$CK875)=1),\"Y\",\"N\")))","v":""},{"$f":"IF(OR('Enrollment Form'!$CK875=\"\",'Enrollment Form'!$CK875=\"No\"),\"-\",IF(COUNTA('Enrollment Form'!$CM875:$CN875)=2,\"Y\",\"N\"))","v":"-"},{"$f":"IF($B868=\"N\",\"\",IF(COUNTIF('Enrollment Form'!$CZ875:$DO875,\"Other\")=COUNTA('Enrollment Form'!$DF875,'Enrollment Form'!$DA875,'Enrollment Form'!$DK875,'Enrollment Form'!$DP875),\"Y\",\"N\"))","v":""},{"$f":"IF($B868=\"N\",\"\",IF(OR('Enrollment Form'!B875<>\"Subscriber\",'Enrollment Form'!C875=\"ROC\",COUNTIF('Enrollment Form'!AS875:AT875,\"Yes\")>=1),\"-\",IF(AND('Enrollment Form'!C875=\"Enroll\",COUNTIF('Enrollment Form'!AS875:AT875,\"No\")=2,'Enrollment Form'!AU875=\"\"),\"N\",\"Y\")))","v":""},{"$f":"IF(OR(B868=\"N\",'Enrollment Form'!B875<>\"Subscriber\",'Enrollment Form'!C875=\"ROC\",'Enrollment Form'!O875<>\"Multiple of Salary\"),\"-\",IF(COUNTA('Enrollment Form'!T875:U875)<2,\"N\",\"Y\"))","v":"-"},{"$f":"IF(B868=\"N\",\"\",IF(OR('Enrollment Form'!C875=\"ROC\",'Enrollment Form'!B875<>\"Subscriber\",'Enrollment Form'!O875=\"Waive\",'Enrollment Form'!O875=\"\"),\"-\",IF('Enrollment Form'!P875=\"\",\"N\",\"Y\")))","v":""},{"$f":"IF($B868=\"N\",\"\",IF(AND('Enrollment Form'!$C875=\"ROC\",'Enrollment Form'!$DS875<>\"\"),\"Y\",IF(AND('Enrollment Form'!$C875=\"ROC\",'Enrollment Form'!$DS875=\"\"),\"N\",IF(AND('Enrollment Form'!$C875=\"Enroll\",'Enrollment Form'!$B875=\"Subscriber\",'Enrollment Form'!$CQ875=\"No\",'Enrollment Form'!$DS875=\"\"),\"N\",IF(AND('Enrollment Form'!$C875=\"Enroll\",'Enrollment Form'!$B875=\"Subscriber\",'Enrollment Form'!$CQ875=\"Yes\"),\"-\",\"Y\")))))","v":""},{"$f":"IF($B868=\"N\",\"\",IF(AND('Enrollment Form'!$C875=\"ROC\",'Enrollment Form'!$DT875<>\"\"),\"Y\",IF(AND('Enrollment Form'!$C875=\"ROC\",'Enrollment Form'!$DT875=\"\"),\"N\",IF(AND('Enrollment Form'!$C875=\"Enroll\",'Enrollment Form'!$B875=\"Subscriber\",'Enrollment Form'!$CQ875=\"No\",'Enrollment Form'!$DT875=\"\"),\"N\",IF(AND('Enrollment Form'!$C875=\"Enroll\",'Enrollment Form'!$B875=\"Subscriber\",'Enrollment Form'!$CQ875=\"Yes\"),\"-\",\"Y\")))))","v":""},{"$f":"IF('Enrollment Form'!AH875=\"\",\"\",IF(ISERROR(SEARCH(\".\",'Enrollment Form'!AH875,SEARCH(\"@\",'Enrollment Form'!AH875))),\"N\",\"Y\"))","v":""},{"$f":"IF(OR($B868=\"N\",'Enrollment Form'!$G875=\"\"),\"\",IF('Enrollment Form'!$B875<>\"Subscriber\",\"-\",IF(COUNTIF('Enrollment Form'!$AS875:$AT875,\"Yes\")=2,\"N\",\"Y\")))","v":""},{"$f":"IF(OR('Enrollment Form'!$CC875=\"\",'Enrollment Form'!$CC875=\"No\"),\"-\",IF(AND('Enrollment Form'!$CC875=\"Yes\",'Enrollment Form'!$CD875=\"\"),\"N\",\"Y\"))","v":"-"},{"$f":"IF(OR('Enrollment Form'!$CE875=\"\",'Enrollment Form'!$CE875=\"No\"),\"-\",IF(AND('Enrollment Form'!$CE875=\"Yes\",'Enrollment Form'!$CF875=\"\"),\"N\",\"Y\"))","v":"-"},{"$f":"IF(OR('Enrollment Form'!$CG875=\"\",'Enrollment Form'!$CG875=\"No\"),\"-\",IF(AND('Enrollment Form'!$CG875=\"Yes\",'Enrollment Form'!$CH875=\"\"),\"N\",\"Y\"))","v":"-"},{"$f":"IF(OR('Enrollment Form'!$CG875=\"\",'Enrollment Form'!$CG875=\"No\"),\"-\",IF(AND('Enrollment Form'!$CG875=\"Yes\",'Enrollment Form'!$CI875=\"\"),\"N\",\"Y\"))","v":"-"},{"$f":"IF('Enrollment Form'!B875<>\"Subscriber\",\"-\",IF(AND('Enrollment Form'!B875=\"Subscriber\",'Enrollment Form'!C875=\"Enroll\",'Enrollment Form'!AA875=\"\"),\"N\",\"Y\"))","v":"-"},{"$f":"IF(OR('Enrollment Form'!B875=\"Subscriber\",'Enrollment Form'!B875=\"\"),\"-\",IF('Enrollment Form'!BI875=\"\",\"N\",\"Y\"))","v":"-"},{"$f":"IF('Enrollment Form'!B875<>\"Subscriber\",\"-\",IF(AND('Enrollment Form'!B875=\"Subscriber\",'Enrollment Form'!G875=\"\"),\"N\",\"Y\"))","v":"-"},{"$f":"IF('Enrollment Form'!A875=\"\",\"\",IF('Enrollment Form'!B875=\"Subscriber\",\"-\",IF(AND('Enrollment Form'!B875<>\"Subscriber\",'Enrollment Form'!G875='Enrollment Form'!H875),\"N\",\"Y\")))","v":""},0]
[876,{"$f":"IF('Enrollment Form'!$A876<>\"\",\"Y\",\"N\")","v":"N"},{"$f":"IF(AND('Enrollment Form'!$B876=\"\",'Enrollment Form'!$C876<>\"\"),\"N\",IF($B869=\"N\",\"\",\"Y\"))","v":""},{"$f":"IF(OR($B869=\"N\",'Enrollment Form'!G876=\"\"),\"\",IF('Enrollment Form'!$B876<>\"Subscriber\",\"\",IF('Enrollment Form'!$G876='Enrollment Form'!$H876,\"Y\",\"N\")))","v":""},{"$f":"IF($B869=\"N\",\"\",IF(AND(COUNTIFS('Enrollment Form'!$H$11:$H$1000,'Enrollment Form'!$H876,'Enrollment Form'!$B$11:$B$1000,'Enrollment Form'!$B876)>1,'Enrollment Form'!$H876<>\"\"),\"N\",\"Y\"))","v":""},{"$f":"IF($B869=\"N\",\"\",IF(LEN('Enrollment Form'!$Y876)=0,\"\",IF(LEN('Enrollment Form'!$Y876)<>5,\"N\",\"Y\")))","v":""},{"$f":"IF($B869=\"N\",\"\",IF(LEN('Enrollment Form'!$AD876=0),\"\",IF(LEN('Enrollment Form'!$AD876)<>5,\"N\",\"Y\")))","v":""},{"$f":"IF($B869=\"N\",\"\",IF(LEN('Enrollment Form'!$BL876=0),\"\",IF(LEN('Enrollment Form'!$BL876)<>5,\"N\",\"Y\")))","v":""},{"$f":"IF($B869=\"N\",\"\",IF(LEN('Enrollment Form'!$AE876)=0,\"\",IF(LEN('Enrollment Form'!$AE876)<>10,\"N\",\"Y\")))","v":""},{"$f":"IF($B869=\"N\",\"\",IF(LEN('Enrollment Form'!$AF876)=0,\"\",IF(LEN('Enrollment Form'!$AF876)<>10,\"N\",\"Y\")))","v":""},{"$f":"IF('Enrollment Form'!$O876<>\"Graded\",\"-\",IF(AND('Enrollment Form'!$O876=\"Graded\",'Enrollment Form'!$AO876<>\"\"),\"Y\",\"N\"))","v":"-"},{"$f":"IF($B869=\"N\",\"\",IF(OR('Enrollment Form'!$B876<>\"Subscriber\",'Enrollment Form'!$C876=\"ROC\"),\"-\",IF(AND('Enrollment Form'!$B876=\"Subscriber\",'Enrollment Form'!$C876=\"Enroll\",'Enrollment Form'!$AJ876<>\"\"),\"Y\",\"N\")))","v":""},{"$f":"IF($B869=\"N\",\"\",IF(OR('Enrollment Form'!$B876<>\"Subscriber\",'Enrollment Form'!$C876=\"ROC\"),\"-\",IF(AND('Enrollment Form'!$B876=\"Subscriber\",'Enrollment Form'!$C876=\"Enroll\",'Enrollment Form'!$AK876<>\"\"),\"Y\",\"N\")))","v":""},{"$f":"IF($B869=\"N\",\"\",IF(OR('Enrollment Form'!$B876<>\"Subscriber\",'Enrollment Form'!$C876=\"ROC\"),\"-\",IF(AND('Enrollment Form'!$B876=\"Subscriber\",'Enrollment Form'!$C876=\"Enroll\",'Enrollment Form'!$AL876<>\"\"),\"Y\",\"N\")))","v":""},{"$f":"IF($B869=\"N\",\"\",IF(OR('Enrollment Form'!$B876<>\"Subscriber\",'Enrollment Form'!$C876=\"ROC\"),\"-\",IF(AND('Enrollment Form'!$B876=\"Subscriber\",'Enrollment Form'!$C876=\"Enroll\",'Enrollment Form'!$AM876<>\"\"),\"Y\",\"N\")))","v":""},{"$f":"IF($B869=\"N\",\"\",IF(OR('Enrollment Form'!$B876<>\"Subscriber\",'Enrollment Form'!$C876=\"ROC\"),\"-\",IF(AND('Enrollment Form'!$B876=\"Subscriber\",'Enrollment Form'!$C876=\"Enroll\",'Enrollment Form'!$AN876<>\"\"),\"Y\",\"N\")))","v":""},{"$f":"IF($B869=\"N\",\"\",IF(OR('Enrollment Form'!$B876<>\"Subscriber\",'Enrollment Form'!$C876=\"ROC\"),\"-\",IF(AND('Enrollment Form'!$B876=\"Subscriber\",'Enrollment Form'!$C876=\"Enroll\",'Enrollment Form'!$AP876<>\"\"),\"Y\",\"N\")))","v":""},{"$f":"IF($B869=\"N\",\"\",IF($Q869=\"-\",\"-\",IF(AND($Q869=\"Y\",'Enrollment Form'!$AP876=\"No\"),\"-\",IF(AND($Q869=\"Y\",'Enrollment Form'!$AP876=\"Yes\",'Enrollment Form'!$AQ876<>\"\"),\"Y\",\"N\"))))","v":""},{"$f":"IF($B869=\"N\",\"\",IF(OR('Enrollment Form'!$B876<>\"Subscriber\",'Enrollment Form'!$C876=\"ROC\"),\"-\",IF(AND('Enrollment Form'!$B876=\"Subscriber\",'Enrollment Form'!$C876=\"Enroll\",'Enrollment Form'!$CO876<>\"\"),\"Y\",\"N\")))","v":""},{"$f":"IF($B869=\"N\",\"\",IF($S869=\"-\",\"-\",IF(AND($S869=\"Y\",'Enrollment Form'!$CO876=\"No\"),\"-\",IF(AND($S869=\"Y\",'Enrollment Form'!$CO876=\"Yes\",'Enrollment Form'!$CP876<>\"\"),\"Y\",\"N\"))))","v":""},{"$f":"IF(OR('Enrollment Form'!$AV876=\"Yes\",'Enrollment Form'!$AV876=\"\"),\"-\",IF(AND('Enrollment Form'!$AV876=\"No\",ISERROR(FIND(\"HMO\",VLOOKUP('Enrollment Form'!G876,'Enrollment Form'!H$11:J$1000,3,FALSE),1))=FALSE,COUNTA('Enrollment Form'!$AW876:$AZ876)=4),\"Y\",\"N\"))","v":"-"},{"$f":"IF($B869=\"N\",\"\",IF('Enrollment Form'!$B876=\"Subscriber\",\"-\",IF(COUNTA('Enrollment Form'!$BE876,'Enrollment Form'!$BG876)=2,\"Y\",\"N\")))","v":""},{"$f":"IF($B869=\"N\",\"\",IF(OR('Enrollment Form'!$AU876=\"\",'Enrollment Form'!$AU876=\"No\"),\"-\",IF(AND('Enrollment Form'!$AU876=\"Yes\",COUNTA('Enrollment Form'!$CK876)=1),\"Y\",\"N\")))","v":""},{"$f":"IF(OR('Enrollment Form'!$CK876=\"\",'Enrollment Form'!$CK876=\"No\"),\"-\",IF(COUNTA('Enrollment Form'!$CM876:$CN876)=2,\"Y\",\"N\"))","v":"-"},{"$f":"IF($B869=\"N\",\"\",IF(COUNTIF('Enrollment Form'!$CZ876:$DO876,\"Other\")=COUNTA('Enrollment Form'!$DF876,'Enrollment Form'!$DA876,'Enrollment Form'!$DK876,'Enrollment Form'!$DP876),\"Y\",\"N\"))","v":""},{"$f":"IF($B869=\"N\",\"\",IF(OR('Enrollment Form'!B876<>\"Subscriber\",'Enrollment Form'!C876=\"ROC\",COUNTIF('Enrollment Form'!AS876:AT876,\"Yes\")>=1),\"-\",IF(AND('Enrollment Form'!C876=\"Enroll\",COUNTIF('Enrollment Form'!AS876:AT876,\"No\")=2,'Enrollment Form'!AU876=\"\"),\"N\",\"Y\")))","v":""},{"$f":"IF(OR(B869=\"N\",'Enrollment Form'!B876<>\"Subscriber\",'Enrollment Form'!C876=\"ROC\",'Enrollment Form'!O876<>\"Multiple of Salary\"),\"-\",IF(COUNTA('Enrollment Form'!T876:U876)<2,\"N\",\"Y\"))","v":"-"},{"$f":"IF(B869=\"N\",\"\",IF(OR('Enrollment Form'!C876=\"ROC\",'Enrollment Form'!B876<>\"Subscriber\",'Enrollment Form'!O876=\"Waive\",'Enrollment Form'!O876=\"\"),\"-\",IF('Enrollment Form'!P876=\"\",\"N\",\"Y\")))","v":""},{"$f":"IF($B869=\"N\",\"\",IF(AND('Enrollment Form'!$C876=\"ROC\",'Enrollment Form'!$DS876<>\"\"),\"Y\",IF(AND('Enrollment Form'!$C876=\"ROC\",'Enrollment Form'!$DS876=\"\"),\"N\",IF(AND('Enrollment Form'!$C876=\"Enroll\",'Enrollment Form'!$B876=\"Subscriber\",'Enrollment Form'!$CQ876=\"No\",'Enrollment Form'!$DS876=\"\"),\"N\",IF(AND('Enrollment Form'!$C876=\"Enroll\",'Enrollment Form'!$B876=\"Subscriber\",'Enrollment Form'!$CQ876=\"Yes\"),\"-\",\"Y\")))))","v":""},{"$f":"IF($B869=\"N\",\"\",IF(AND('Enrollment Form'!$C876=\"ROC\",'Enrollment Form'!$DT876<>\"\"),\"Y\",IF(AND('Enrollment Form'!$C876=\"ROC\",'Enrollment Form'!$DT876=\"\"),\"N\",IF(AND('Enrollment Form'!$C876=\"Enroll\",'Enrollment Form'!$B876=\"Subscriber\",'Enrollment Form'!$CQ876=\"No\",'Enrollment Form'!$DT876=\"\"),\"N\",IF(AND('Enrollment Form'!$C876=\"Enroll\",'Enrollment Form'!$B876=\"Subscriber\",'Enrollment Form'!$CQ876=\"Yes\"),\"-\",\"Y\")))))","v":""},{"$f":"IF('Enrollment Form'!AH876=\"\",\"\",IF(ISERROR(SEARCH(\".\",'Enrollment Form'!AH876,SEARCH(\"@\",'Enrollment Form'!AH876))),\"N\",\"Y\"))","v":""},{"$f":"IF(OR($B869=\"N\",'Enrollment Form'!$G876=\"\"),\"\",IF('Enrollment Form'!$B876<>\"Subscriber\",\"-\",IF(COUNTIF('Enrollment Form'!$AS876:$AT876,\"Yes\")=2,\"N\",\"Y\")))","v":""},{"$f":"IF(OR('Enrollment Form'!$CC876=\"\",'Enrollment Form'!$CC876=\"No\"),\"-\",IF(AND('Enrollment Form'!$CC876=\"Yes\",'Enrollment Form'!$CD876=\"\"),\"N\",\"Y\"))","v":"-"},{"$f":"IF(OR('Enrollment Form'!$CE876=\"\",'Enrollment Form'!$CE876=\"No\"),\"-\",IF(AND('Enrollment Form'!$CE876=\"Yes\",'Enrollment Form'!$CF876=\"\"),\"N\",\"Y\"))","v":"-"},{"$f":"IF(OR('Enrollment Form'!$CG876=\"\",'Enrollment Form'!$CG876=\"No\"),\"-\",IF(AND('Enrollment Form'!$CG876=\"Yes\",'Enrollment Form'!$CH876=\"\"),\"N\",\"Y\"))","v":"-"},{"$f":"IF(OR('Enrollment Form'!$CG876=\"\",'Enrollment Form'!$CG876=\"No\"),\"-\",IF(AND('Enrollment Form'!$CG876=\"Yes\",'Enrollment Form'!$CI876=\"\"),\"N\",\"Y\"))","v":"-"},{"$f":"IF('Enrollment Form'!B876<>\"Subscriber\",\"-\",IF(AND('Enrollment Form'!B876=\"Subscriber\",'Enrollment Form'!C876=\"Enroll\",'Enrollment Form'!AA876=\"\"),\"N\",\"Y\"))","v":"-"},{"$f":"IF(OR('Enrollment Form'!B876=\"Subscriber\",'Enrollment Form'!B876=\"\"),\"-\",IF('Enrollment Form'!BI876=\"\",\"N\",\"Y\"))","v":"-"},{"$f":"IF('Enrollment Form'!B876<>\"Subscriber\",\"-\",IF(AND('Enrollment Form'!B876=\"Subscriber\",'Enrollment Form'!G876=\"\"),\"N\",\"Y\"))","v":"-"},{"$f":"IF('Enrollment Form'!A876=\"\",\"\",IF('Enrollment Form'!B876=\"Subscriber\",\"-\",IF(AND('Enrollment Form'!B876<>\"Subscriber\",'Enrollment Form'!G876='Enrollment Form'!H876),\"N\",\"Y\")))","v":""},0]
[877,{"$f":"IF('Enrollment Form'!$A877<>\"\",\"Y\",\"N\")","v":"N"},{"$f":"IF(AND('Enrollment Form'!$B877=\"\",'Enrollment Form'!$C877<>\"\"),\"N\",IF($B870=\"N\",\"\",\"Y\"))","v":""},{"$f":"IF(OR($B870=\"N\",'Enrollment Form'!G877=\"\"),\"\",IF('Enrollment Form'!$B877<>\"Subscriber\",\"\",IF('Enrollment Form'!$G877='Enrollment Form'!$H877,\"Y\",\"N\")))","v":""},{"$f":"IF($B870=\"N\",\"\",IF(AND(COUNTIFS('Enrollment Form'!$H$11:$H$1000,'Enrollment Form'!$H877,'Enrollment Form'!$B$11:$B$1000,'Enrollment Form'!$B877)>1,'Enrollment Form'!$H877<>\"\"),\"N\",\"Y\"))","v":""},{"$f":"IF($B870=\"N\",\"\",IF(LEN('Enrollment Form'!$Y877)=0,\"\",IF(LEN('Enrollment Form'!$Y877)<>5,\"N\",\"Y\")))","v":""},{"$f":"IF($B870=\"N\",\"\",IF(LEN('Enrollment Form'!$AD877=0),\"\",IF(LEN('Enrollment Form'!$AD877)<>5,\"N\",\"Y\")))","v":""},{"$f":"IF($B870=\"N\",\"\",IF(LEN('Enrollment Form'!$BL877=0),\"\",IF(LEN('Enrollment Form'!$BL877)<>5,\"N\",\"Y\")))","v":""},{"$f":"IF($B870=\"N\",\"\",IF(LEN('Enrollment Form'!$AE877)=0,\"\",IF(LEN('Enrollment Form'!$AE877)<>10,\"N\",\"Y\")))","v":""},{"$f":"IF($B870=\"N\",\"\",IF(LEN('Enrollment Form'!$AF877)=0,\"\",IF(LEN('Enrollment Form'!$AF877)<>10,\"N\",\"Y\")))","v":""},{"$f":"IF('Enrollment Form'!$O877<>\"Graded\",\"-\",IF(AND('Enrollment Form'!$O877=\"Graded\",'Enrollment Form'!$AO877<>\"\"),\"Y\",\"N\"))","v":"-"},{"$f":"IF($B870=\"N\",\"\",IF(OR('Enrollment Form'!$B877<>\"Subscriber\",'Enrollment Form'!$C877=\"ROC\"),\"-\",IF(AND('Enrollment Form'!$B877=\"Subscriber\",'Enrollment Form'!$C877=\"Enroll\",'Enrollment Form'!$AJ877<>\"\"),\"Y\",\"N\")))","v":""},{"$f":"IF($B870=\"N\",\"\",IF(OR('Enrollment Form'!$B877<>\"Subscriber\",'Enrollment Form'!$C877=\"ROC\"),\"-\",IF(AND('Enrollment Form'!$B877=\"Subscriber\",'Enrollment Form'!$C877=\"Enroll\",'Enrollment Form'!$AK877<>\"\"),\"Y\",\"N\")))","v":""},{"$f":"IF($B870=\"N\",\"\",IF(OR('Enrollment Form'!$B877<>\"Subscriber\",'Enrollment Form'!$C877=\"ROC\"),\"-\",IF(AND('Enrollment Form'!$B877=\"Subscriber\",'Enrollment Form'!$C877=\"Enroll\",'Enrollment Form'!$AL877<>\"\"),\"Y\",\"N\")))","v":""},{"$f":"IF($B870=\"N\",\"\",IF(OR('Enrollment Form'!$B877<>\"Subscriber\",'Enrollment Form'!$C877=\"ROC\"),\"-\",IF(AND('Enrollment Form'!$B877=\"Subscriber\",'Enrollment Form'!$C877=\"Enroll\",'Enrollment Form'!$AM877<>\"\"),\"Y\",\"N\")))","v":""},{"$f":"IF($B870=\"N\",\"\",IF(OR('Enrollment Form'!$B877<>\"Subscriber\",'Enrollment Form'!$C877=\"ROC\"),\"-\",IF(AND('Enrollment Form'!$B877=\"Subscriber\",'Enrollment Form'!$C877=\"Enroll\",'Enrollment Form'!$AN877<>\"\"),\"Y\",\"N\")))","v":""},{"$f":"IF($B870=\"N\",\"\",IF(OR('Enrollment Form'!$B877<>\"Subscriber\",'Enrollment Form'!$C877=\"ROC\"),\"-\",IF(AND('Enrollment Form'!$B877=\"Subscriber\",'Enrollment Form'!$C877=\"Enroll\",'Enrollment Form'!$AP877<>\"\"),\"Y\",\"N\")))","v":""},{"$f":"IF($B870=\"N\",\"\",IF($Q870=\"-\",\"-\",IF(AND($Q870=\"Y\",'Enrollment Form'!$AP877=\"No\"),\"-\",IF(AND($Q870=\"Y\",'Enrollment Form'!$AP877=\"Yes\",'Enrollment Form'!$AQ877<>\"\"),\"Y\",\"N\"))))","v":""},{"$f":"IF($B870=\"N\",\"\",IF(OR('Enrollment Form'!$B877<>\"Subscriber\",'Enrollment Form'!$C877=\"ROC\"),\"-\",IF(AND('Enrollment Form'!$B877=\"Subscriber\",'Enrollment Form'!$C877=\"Enroll\",'Enrollment Form'!$CO877<>\"\"),\"Y\",\"N\")))","v":""},{"$f":"IF($B870=\"N\",\"\",IF($S870=\"-\",\"-\",IF(AND($S870=\"Y\",'Enrollment Form'!$CO877=\"No\"),\"-\",IF(AND($S870=\"Y\",'Enrollment Form'!$CO877=\"Yes\",'Enrollment Form'!$CP877<>\"\"),\"Y\",\"N\"))))","v":""},{"$f":"IF(OR('Enrollment Form'!$AV877=\"Yes\",'Enrollment Form'!$AV877=\"\"),\"-\",IF(AND('Enrollment Form'!$AV877=\"No\",ISERROR(FIND(\"HMO\",VLOOKUP('Enrollment Form'!G877,'Enrollment Form'!H$11:J$1000,3,FALSE),1))=FALSE,COUNTA('Enrollment Form'!$AW877:$AZ877)=4),\"Y\",\"N\"))","v":"-"},{"$f":"IF($B870=\"N\",\"\",IF('Enrollment Form'!$B877=\"Subscriber\",\"-\",IF(COUNTA('Enrollment Form'!$BE877,'Enrollment Form'!$BG877)=2,\"Y\",\"N\")))","v":""},{"$f":"IF($B870=\"N\",\"\",IF(OR('Enrollment Form'!$AU877=\"\",'Enrollment Form'!$AU877=\"No\"),\"-\",IF(AND('Enrollment Form'!$AU877=\"Yes\",COUNTA('Enrollment Form'!$CK877)=1),\"Y\",\"N\")))","v":""},{"$f":"IF(OR('Enrollment Form'!$CK877=\"\",'Enrollment Form'!$CK877=\"No\"),\"-\",IF(COUNTA('Enrollment Form'!$CM877:$CN877)=2,\"Y\",\"N\"))","v":"-"},{"$f":"IF($B870=\"N\",\"\",IF(COUNTIF('Enrollment Form'!$CZ877:$DO877,\"Other\")=COUNTA('Enrollment Form'!$DF877,'Enrollment Form'!$DA877,'Enrollment Form'!$DK877,'Enrollment Form'!$DP877),\"Y\",\"N\"))","v":""},{"$f":"IF($B870=\"N\",\"\",IF(OR('Enrollment Form'!B877<>\"Subscriber\",'Enrollment Form'!C877=\"ROC\",COUNTIF('Enrollment Form'!AS877:AT877,\"Yes\")>=1),\"-\",IF(AND('Enrollment Form'!C877=\"Enroll\",COUNTIF('Enrollment Form'!AS877:AT877,\"No\")=2,'Enrollment Form'!AU877=\"\"),\"N\",\"Y\")))","v":""},{"$f":"IF(OR(B870=\"N\",'Enrollment Form'!B877<>\"Subscriber\",'Enrollment Form'!C877=\"ROC\",'Enrollment Form'!O877<>\"Multiple of Salary\"),\"-\",IF(COUNTA('Enrollment Form'!T877:U877)<2,\"N\",\"Y\"))","v":"-"},{"$f":"IF(B870=\"N\",\"\",IF(OR('Enrollment Form'!C877=\"ROC\",'Enrollment Form'!B877<>\"Subscriber\",'Enrollment Form'!O877=\"Waive\",'Enrollment Form'!O877=\"\"),\"-\",IF('Enrollment Form'!P877=\"\",\"N\",\"Y\")))","v":""},{"$f":"IF($B870=\"N\",\"\",IF(AND('Enrollment Form'!$C877=\"ROC\",'Enrollment Form'!$DS877<>\"\"),\"Y\",IF(AND('Enrollment Form'!$C877=\"ROC\",'Enrollment Form'!$DS877=\"\"),\"N\",IF(AND('Enrollment Form'!$C877=\"Enroll\",'Enrollment Form'!$B877=\"Subscriber\",'Enrollment Form'!$CQ877=\"No\",'Enrollment Form'!$DS877=\"\"),\"N\",IF(AND('Enrollment Form'!$C877=\"Enroll\",'Enrollment Form'!$B877=\"Subscriber\",'Enrollment Form'!$CQ877=\"Yes\"),\"-\",\"Y\")))))","v":""},{"$f":"IF($B870=\"N\",\"\",IF(AND('Enrollment Form'!$C877=\"ROC\",'Enrollment Form'!$DT877<>\"\"),\"Y\",IF(AND('Enrollment Form'!$C877=\"ROC\",'Enrollment Form'!$DT877=\"\"),\"N\",IF(AND('Enrollment Form'!$C877=\"Enroll\",'Enrollment Form'!$B877=\"Subscriber\",'Enrollment Form'!$CQ877=\"No\",'Enrollment Form'!$DT877=\"\"),\"N\",IF(AND('Enrollment Form'!$C877=\"Enroll\",'Enrollment Form'!$B877=\"Subscriber\",'Enrollment Form'!$CQ877=\"Yes\"),\"-\",\"Y\")))))","v":""},{"$f":"IF('Enrollment Form'!AH877=\"\",\"\",IF(ISERROR(SEARCH(\".\",'Enrollment Form'!AH877,SEARCH(\"@\",'Enrollment Form'!AH877))),\"N\",\"Y\"))","v":""},{"$f":"IF(OR($B870=\"N\",'Enrollment Form'!$G877=\"\"),\"\",IF('Enrollment Form'!$B877<>\"Subscriber\",\"-\",IF(COUNTIF('Enrollment Form'!$AS877:$AT877,\"Yes\")=2,\"N\",\"Y\")))","v":""},{"$f":"IF(OR('Enrollment Form'!$CC877=\"\",'Enrollment Form'!$CC877=\"No\"),\"-\",IF(AND('Enrollment Form'!$CC877=\"Yes\",'Enrollment Form'!$CD877=\"\"),\"N\",\"Y\"))","v":"-"},{"$f":"IF(OR('Enrollment Form'!$CE877=\"\",'Enrollment Form'!$CE877=\"No\"),\"-\",IF(AND('Enrollment Form'!$CE877=\"Yes\",'Enrollment Form'!$CF877=\"\"),\"N\",\"Y\"))","v":"-"},{"$f":"IF(OR('Enrollment Form'!$CG877=\"\",'Enrollment Form'!$CG877=\"No\"),\"-\",IF(AND('Enrollment Form'!$CG877=\"Yes\",'Enrollment Form'!$CH877=\"\"),\"N\",\"Y\"))","v":"-"},{"$f":"IF(OR('Enrollment Form'!$CG877=\"\",'Enrollment Form'!$CG877=\"No\"),\"-\",IF(AND('Enrollment Form'!$CG877=\"Yes\",'Enrollment Form'!$CI877=\"\"),\"N\",\"Y\"))","v":"-"},{"$f":"IF('Enrollment Form'!B877<>\"Subscriber\",\"-\",IF(AND('Enrollment Form'!B877=\"Subscriber\",'Enrollment Form'!C877=\"Enroll\",'Enrollment Form'!AA877=\"\"),\"N\",\"Y\"))","v":"-"},{"$f":"IF(OR('Enrollment Form'!B877=\"Subscriber\",'Enrollment Form'!B877=\"\"),\"-\",IF('Enrollment Form'!BI877=\"\",\"N\",\"Y\"))","v":"-"},{"$f":"IF('Enrollment Form'!B877<>\"Subscriber\",\"-\",IF(AND('Enrollment Form'!B877=\"Subscriber\",'Enrollment Form'!G877=\"\"),\"N\",\"Y\"))","v":"-"},{"$f":"IF('Enrollment Form'!A877=\"\",\"\",IF('Enrollment Form'!B877=\"Subscriber\",\"-\",IF(AND('Enrollment Form'!B877<>\"Subscriber\",'Enrollment Form'!G877='Enrollment Form'!H877),\"N\",\"Y\")))","v":""},0]
[878,{"$f":"IF('Enrollment Form'!$A878<>\"\",\"Y\",\"N\")","v":"N"},{"$f":"IF(AND('Enrollment Form'!$B878=\"\",'Enrollment Form'!$C878<>\"\"),\"N\",IF($B871=\"N\",\"\",\"Y\"))","v":""},{"$f":"IF(OR($B871=\"N\",'Enrollment Form'!G878=\"\"),\"\",IF('Enrollment Form'!$B878<>\"Subscriber\",\"\",IF('Enrollment Form'!$G878='Enrollment Form'!$H878,\"Y\",\"N\")))","v":""},{"$f":"IF($B871=\"N\",\"\",IF(AND(COUNTIFS('Enrollment Form'!$H$11:$H$1000,'Enrollment Form'!$H878,'Enrollment Form'!$B$11:$B$1000,'Enrollment Form'!$B878)>1,'Enrollment Form'!$H878<>\"\"),\"N\",\"Y\"))","v":""},{"$f":"IF($B871=\"N\",\"\",IF(LEN('Enrollment Form'!$Y878)=0,\"\",IF(LEN('Enrollment Form'!$Y878)<>5,\"N\",\"Y\")))","v":""},{"$f":"IF($B871=\"N\",\"\",IF(LEN('Enrollment Form'!$AD878=0),\"\",IF(LEN('Enrollment Form'!$AD878)<>5,\"N\",\"Y\")))","v":""},{"$f":"IF($B871=\"N\",\"\",IF(LEN('Enrollment Form'!$BL878=0),\"\",IF(LEN('Enrollment Form'!$BL878)<>5,\"N\",\"Y\")))","v":""},{"$f":"IF($B871=\"N\",\"\",IF(LEN('Enrollment Form'!$AE878)=0,\"\",IF(LEN('Enrollment Form'!$AE878)<>10,\"N\",\"Y\")))","v":""},{"$f":"IF($B871=\"N\",\"\",IF(LEN('Enrollment Form'!$AF878)=0,\"\",IF(LEN('Enrollment Form'!$AF878)<>10,\"N\",\"Y\")))","v":""},{"$f":"IF('Enrollment Form'!$O878<>\"Graded\",\"-\",IF(AND('Enrollment Form'!$O878=\"Graded\",'Enrollment Form'!$AO878<>\"\"),\"Y\",\"N\"))","v":"-"},{"$f":"IF($B871=\"N\",\"\",IF(OR('Enrollment Form'!$B878<>\"Subscriber\",'Enrollment Form'!$C878=\"ROC\"),\"-\",IF(AND('Enrollment Form'!$B878=\"Subscriber\",'Enrollment Form'!$C878=\"Enroll\",'Enrollment Form'!$AJ878<>\"\"),\"Y\",\"N\")))","v":""},{"$f":"IF($B871=\"N\",\"\",IF(OR('Enrollment Form'!$B878<>\"Subscriber\",'Enrollment Form'!$C878=\"ROC\"),\"-\",IF(AND('Enrollment Form'!$B878=\"Subscriber\",'Enrollment Form'!$C878=\"Enroll\",'Enrollment Form'!$AK878<>\"\"),\"Y\",\"N\")))","v":""},{"$f":"IF($B871=\"N\",\"\",IF(OR('Enrollment Form'!$B878<>\"Subscriber\",'Enrollment Form'!$C878=\"ROC\"),\"-\",IF(AND('Enrollment Form'!$B878=\"Subscriber\",'Enrollment Form'!$C878=\"Enroll\",'Enrollment Form'!$AL878<>\"\"),\"Y\",\"N\")))","v":""},{"$f":"IF($B871=\"N\",\"\",IF(OR('Enrollment Form'!$B878<>\"Subscriber\",'Enrollment Form'!$C878=\"ROC\"),\"-\",IF(AND('Enrollment Form'!$B878=\"Subscriber\",'Enrollment Form'!$C878=\"Enroll\",'Enrollment Form'!$AM878<>\"\"),\"Y\",\"N\")))","v":""},{"$f":"IF($B871=\"N\",\"\",IF(OR('Enrollment Form'!$B878<>\"Subscriber\",'Enrollment Form'!$C878=\"ROC\"),\"-\",IF(AND('Enrollment Form'!$B878=\"Subscriber\",'Enrollment Form'!$C878=\"Enroll\",'Enrollment Form'!$AN878<>\"\"),\"Y\",\"N\")))","v":""},{"$f":"IF($B871=\"N\",\"\",IF(OR('Enrollment Form'!$B878<>\"Subscriber\",'Enrollment Form'!$C878=\"ROC\"),\"-\",IF(AND('Enrollment Form'!$B878=\"Subscriber\",'Enrollment Form'!$C878=\"Enroll\",'Enrollment Form'!$AP878<>\"\"),\"Y\",\"N\")))","v":""},{"$f":"IF($B871=\"N\",\"\",IF($Q871=\"-\",\"-\",IF(AND($Q871=\"Y\",'Enrollment Form'!$AP878=\"No\"),\"-\",IF(AND($Q871=\"Y\",'Enrollment Form'!$AP878=\"Yes\",'Enrollment Form'!$AQ878<>\"\"),\"Y\",\"N\"))))","v":""},{"$f":"IF($B871=\"N\",\"\",IF(OR('Enrollment Form'!$B878<>\"Subscriber\",'Enrollment Form'!$C878=\"ROC\"),\"-\",IF(AND('Enrollment Form'!$B878=\"Subscriber\",'Enrollment Form'!$C878=\"Enroll\",'Enrollment Form'!$CO878<>\"\"),\"Y\",\"N\")))","v":""},{"$f":"IF($B871=\"N\",\"\",IF($S871=\"-\",\"-\",IF(AND($S871=\"Y\",'Enrollment Form'!$CO878=\"No\"),\"-\",IF(AND($S871=\"Y\",'Enrollment Form'!$CO878=\"Yes\",'Enrollment Form'!$CP878<>\"\"),\"Y\",\"N\"))))","v":""},{"$f":"IF(OR('Enrollment Form'!$AV878=\"Yes\",'Enrollment Form'!$AV878=\"\"),\"-\",IF(AND('Enrollment Form'!$AV878=\"No\",ISERROR(FIND(\"HMO\",VLOOKUP('Enrollment Form'!G878,'Enrollment Form'!H$11:J$1000,3,FALSE),1))=FALSE,COUNTA('Enrollment Form'!$AW878:$AZ878)=4),\"Y\",\"N\"))","v":"-"},{"$f":"IF($B871=\"N\",\"\",IF('Enrollment Form'!$B878=\"Subscriber\",\"-\",IF(COUNTA('Enrollment Form'!$BE878,'Enrollment Form'!$BG878)=2,\"Y\",\"N\")))","v":""},{"$f":"IF($B871=\"N\",\"\",IF(OR('Enrollment Form'!$AU878=\"\",'Enrollment Form'!$AU878=\"No\"),\"-\",IF(AND('Enrollment Form'!$AU878=\"Yes\",COUNTA('Enrollment Form'!$CK878)=1),\"Y\",\"N\")))","v":""},{"$f":"IF(OR('Enrollment Form'!$CK878=\"\",'Enrollment Form'!$CK878=\"No\"),\"-\",IF(COUNTA('Enrollment Form'!$CM878:$CN878)=2,\"Y\",\"N\"))","v":"-"},{"$f":"IF($B871=\"N\",\"\",IF(COUNTIF('Enrollment Form'!$CZ878:$DO878,\"Other\")=COUNTA('Enrollment Form'!$DF878,'Enrollment Form'!$DA878,'Enrollment Form'!$DK878,'Enrollment Form'!$DP878),\"Y\",\"N\"))","v":""},{"$f":"IF($B871=\"N\",\"\",IF(OR('Enrollment Form'!B878<>\"Subscriber\",'Enrollment Form'!C878=\"ROC\",COUNTIF('Enrollment Form'!AS878:AT878,\"Yes\")>=1),\"-\",IF(AND('Enrollment Form'!C878=\"Enroll\",COUNTIF('Enrollment Form'!AS878:AT878,\"No\")=2,'Enrollment Form'!AU878=\"\"),\"N\",\"Y\")))","v":""},{"$f":"IF(OR(B871=\"N\",'Enrollment Form'!B878<>\"Subscriber\",'Enrollment Form'!C878=\"ROC\",'Enrollment Form'!O878<>\"Multiple of Salary\"),\"-\",IF(COUNTA('Enrollment Form'!T878:U878)<2,\"N\",\"Y\"))","v":"-"},{"$f":"IF(B871=\"N\",\"\",IF(OR('Enrollment Form'!C878=\"ROC\",'Enrollment Form'!B878<>\"Subscriber\",'Enrollment Form'!O878=\"Waive\",'Enrollment Form'!O878=\"\"),\"-\",IF('Enrollment Form'!P878=\"\",\"N\",\"Y\")))","v":""},{"$f":"IF($B871=\"N\",\"\",IF(AND('Enrollment Form'!$C878=\"ROC\",'Enrollment Form'!$DS878<>\"\"),\"Y\",IF(AND('Enrollment Form'!$C878=\"ROC\",'Enrollment Form'!$DS878=\"\"),\"N\",IF(AND('Enrollment Form'!$C878=\"Enroll\",'Enrollment Form'!$B878=\"Subscriber\",'Enrollment Form'!$CQ878=\"No\",'Enrollment Form'!$DS878=\"\"),\"N\",IF(AND('Enrollment Form'!$C878=\"Enroll\",'Enrollment Form'!$B878=\"Subscriber\",'Enrollment Form'!$CQ878=\"Yes\"),\"-\",\"Y\")))))","v":""},{"$f":"IF($B871=\"N\",\"\",IF(AND('Enrollment Form'!$C878=\"ROC\",'Enrollment Form'!$DT878<>\"\"),\"Y\",IF(AND('Enrollment Form'!$C878=\"ROC\",'Enrollment Form'!$DT878=\"\"),\"N\",IF(AND('Enrollment Form'!$C878=\"Enroll\",'Enrollment Form'!$B878=\"Subscriber\",'Enrollment Form'!$CQ878=\"No\",'Enrollment Form'!$DT878=\"\"),\"N\",IF(AND('Enrollment Form'!$C878=\"Enroll\",'Enrollment Form'!$B878=\"Subscriber\",'Enrollment Form'!$CQ878=\"Yes\"),\"-\",\"Y\")))))","v":""},{"$f":"IF('Enrollment Form'!AH878=\"\",\"\",IF(ISERROR(SEARCH(\".\",'Enrollment Form'!AH878,SEARCH(\"@\",'Enrollment Form'!AH878))),\"N\",\"Y\"))","v":""},{"$f":"IF(OR($B871=\"N\",'Enrollment Form'!$G878=\"\"),\"\",IF('Enrollment Form'!$B878<>\"Subscriber\",\"-\",IF(COUNTIF('Enrollment Form'!$AS878:$AT878,\"Yes\")=2,\"N\",\"Y\")))","v":""},{"$f":"IF(OR('Enrollment Form'!$CC878=\"\",'Enrollment Form'!$CC878=\"No\"),\"-\",IF(AND('Enrollment Form'!$CC878=\"Yes\",'Enrollment Form'!$CD878=\"\"),\"N\",\"Y\"))","v":"-"},{"$f":"IF(OR('Enrollment Form'!$CE878=\"\",'Enrollment Form'!$CE878=\"No\"),\"-\",IF(AND('Enrollment Form'!$CE878=\"Yes\",'Enrollment Form'!$CF878=\"\"),\"N\",\"Y\"))","v":"-"},{"$f":"IF(OR('Enrollment Form'!$CG878=\"\",'Enrollment Form'!$CG878=\"No\"),\"-\",IF(AND('Enrollment Form'!$CG878=\"Yes\",'Enrollment Form'!$CH878=\"\"),\"N\",\"Y\"))","v":"-"},{"$f":"IF(OR('Enrollment Form'!$CG878=\"\",'Enrollment Form'!$CG878=\"No\"),\"-\",IF(AND('Enrollment Form'!$CG878=\"Yes\",'Enrollment Form'!$CI878=\"\"),\"N\",\"Y\"))","v":"-"},{"$f":"IF('Enrollment Form'!B878<>\"Subscriber\",\"-\",IF(AND('Enrollment Form'!B878=\"Subscriber\",'Enrollment Form'!C878=\"Enroll\",'Enrollment Form'!AA878=\"\"),\"N\",\"Y\"))","v":"-"},{"$f":"IF(OR('Enrollment Form'!B878=\"Subscriber\",'Enrollment Form'!B878=\"\"),\"-\",IF('Enrollment Form'!BI878=\"\",\"N\",\"Y\"))","v":"-"},{"$f":"IF('Enrollment Form'!B878<>\"Subscriber\",\"-\",IF(AND('Enrollment Form'!B878=\"Subscriber\",'Enrollment Form'!G878=\"\"),\"N\",\"Y\"))","v":"-"},{"$f":"IF('Enrollment Form'!A878=\"\",\"\",IF('Enrollment Form'!B878=\"Subscriber\",\"-\",IF(AND('Enrollment Form'!B878<>\"Subscriber\",'Enrollment Form'!G878='Enrollment Form'!H878),\"N\",\"Y\")))","v":""},0]
[879,{"$f":"IF('Enrollment Form'!$A879<>\"\",\"Y\",\"N\")","v":"N"},{"$f":"IF(AND('Enrollment Form'!$B879=\"\",'Enrollment Form'!$C879<>\"\"),\"N\",IF($B872=\"N\",\"\",\"Y\"))","v":""},{"$f":"IF(OR($B872=\"N\",'Enrollment Form'!G879=\"\"),\"\",IF('Enrollment Form'!$B879<>\"Subscriber\",\"\",IF('Enrollment Form'!$G879='Enrollment Form'!$H879,\"Y\",\"N\")))","v":""},{"$f":"IF($B872=\"N\",\"\",IF(AND(COUNTIFS('Enrollment Form'!$H$11:$H$1000,'Enrollment Form'!$H879,'Enrollment Form'!$B$11:$B$1000,'Enrollment Form'!$B879)>1,'Enrollment Form'!$H879<>\"\"),\"N\",\"Y\"))","v":""},{"$f":"IF($B872=\"N\",\"\",IF(LEN('Enrollment Form'!$Y879)=0,\"\",IF(LEN('Enrollment Form'!$Y879)<>5,\"N\",\"Y\")))","v":""},{"$f":"IF($B872=\"N\",\"\",IF(LEN('Enrollment Form'!$AD879=0),\"\",IF(LEN('Enrollment Form'!$AD879)<>5,\"N\",\"Y\")))","v":""},{"$f":"IF($B872=\"N\",\"\",IF(LEN('Enrollment Form'!$BL879=0),\"\",IF(LEN('Enrollment Form'!$BL879)<>5,\"N\",\"Y\")))","v":""},{"$f":"IF($B872=\"N\",\"\",IF(LEN('Enrollment Form'!$AE879)=0,\"\",IF(LEN('Enrollment Form'!$AE879)<>10,\"N\",\"Y\")))","v":""},{"$f":"IF($B872=\"N\",\"\",IF(LEN('Enrollment Form'!$AF879)=0,\"\",IF(LEN('Enrollment Form'!$AF879)<>10,\"N\",\"Y\")))","v":""},{"$f":"IF('Enrollment Form'!$O879<>\"Graded\",\"-\",IF(AND('Enrollment Form'!$O879=\"Graded\",'Enrollment Form'!$AO879<>\"\"),\"Y\",\"N\"))","v":"-"},{"$f":"IF($B872=\"N\",\"\",IF(OR('Enrollment Form'!$B879<>\"Subscriber\",'Enrollment Form'!$C879=\"ROC\"),\"-\",IF(AND('Enrollment Form'!$B879=\"Subscriber\",'Enrollment Form'!$C879=\"Enroll\",'Enrollment Form'!$AJ879<>\"\"),\"Y\",\"N\")))","v":""},{"$f":"IF($B872=\"N\",\"\",IF(OR('Enrollment Form'!$B879<>\"Subscriber\",'Enrollment Form'!$C879=\"ROC\"),\"-\",IF(AND('Enrollment Form'!$B879=\"Subscriber\",'Enrollment Form'!$C879=\"Enroll\",'Enrollment Form'!$AK879<>\"\"),\"Y\",\"N\")))","v":""},{"$f":"IF($B872=\"N\",\"\",IF(OR('Enrollment Form'!$B879<>\"Subscriber\",'Enrollment Form'!$C879=\"ROC\"),\"-\",IF(AND('Enrollment Form'!$B879=\"Subscriber\",'Enrollment Form'!$C879=\"Enroll\",'Enrollment Form'!$AL879<>\"\"),\"Y\",\"N\")))","v":""},{"$f":"IF($B872=\"N\",\"\",IF(OR('Enrollment Form'!$B879<>\"Subscriber\",'Enrollment Form'!$C879=\"ROC\"),\"-\",IF(AND('Enrollment Form'!$B879=\"Subscriber\",'Enrollment Form'!$C879=\"Enroll\",'Enrollment Form'!$AM879<>\"\"),\"Y\",\"N\")))","v":""},{"$f":"IF($B872=\"N\",\"\",IF(OR('Enrollment Form'!$B879<>\"Subscriber\",'Enrollment Form'!$C879=\"ROC\"),\"-\",IF(AND('Enrollment Form'!$B879=\"Subscriber\",'Enrollment Form'!$C879=\"Enroll\",'Enrollment Form'!$AN879<>\"\"),\"Y\",\"N\")))","v":""},{"$f":"IF($B872=\"N\",\"\",IF(OR('Enrollment Form'!$B879<>\"Subscriber\",'Enrollment Form'!$C879=\"ROC\"),\"-\",IF(AND('Enrollment Form'!$B879=\"Subscriber\",'Enrollment Form'!$C879=\"Enroll\",'Enrollment Form'!$AP879<>\"\"),\"Y\",\"N\")))","v":""},{"$f":"IF($B872=\"N\",\"\",IF($Q872=\"-\",\"-\",IF(AND($Q872=\"Y\",'Enrollment Form'!$AP879=\"No\"),\"-\",IF(AND($Q872=\"Y\",'Enrollment Form'!$AP879=\"Yes\",'Enrollment Form'!$AQ879<>\"\"),\"Y\",\"N\"))))","v":""},{"$f":"IF($B872=\"N\",\"\",IF(OR('Enrollment Form'!$B879<>\"Subscriber\",'Enrollment Form'!$C879=\"ROC\"),\"-\",IF(AND('Enrollment Form'!$B879=\"Subscriber\",'Enrollment Form'!$C879=\"Enroll\",'Enrollment Form'!$CO879<>\"\"),\"Y\",\"N\")))","v":""},{"$f":"IF($B872=\"N\",\"\",IF($S872=\"-\",\"-\",IF(AND($S872=\"Y\",'Enrollment Form'!$CO879=\"No\"),\"-\",IF(AND($S872=\"Y\",'Enrollment Form'!$CO879=\"Yes\",'Enrollment Form'!$CP879<>\"\"),\"Y\",\"N\"))))","v":""},{"$f":"IF(OR('Enrollment Form'!$AV879=\"Yes\",'Enrollment Form'!$AV879=\"\"),\"-\",IF(AND('Enrollment Form'!$AV879=\"No\",ISERROR(FIND(\"HMO\",VLOOKUP('Enrollment Form'!G879,'Enrollment Form'!H$11:J$1000,3,FALSE),1))=FALSE,COUNTA('Enrollment Form'!$AW879:$AZ879)=4),\"Y\",\"N\"))","v":"-"},{"$f":"IF($B872=\"N\",\"\",IF('Enrollment Form'!$B879=\"Subscriber\",\"-\",IF(COUNTA('Enrollment Form'!$BE879,'Enrollment Form'!$BG879)=2,\"Y\",\"N\")))","v":""},{"$f":"IF($B872=\"N\",\"\",IF(OR('Enrollment Form'!$AU879=\"\",'Enrollment Form'!$AU879=\"No\"),\"-\",IF(AND('Enrollment Form'!$AU879=\"Yes\",COUNTA('Enrollment Form'!$CK879)=1),\"Y\",\"N\")))","v":""},{"$f":"IF(OR('Enrollment Form'!$CK879=\"\",'Enrollment Form'!$CK879=\"No\"),\"-\",IF(COUNTA('Enrollment Form'!$CM879:$CN879)=2,\"Y\",\"N\"))","v":"-"},{"$f":"IF($B872=\"N\",\"\",IF(COUNTIF('Enrollment Form'!$CZ879:$DO879,\"Other\")=COUNTA('Enrollment Form'!$DF879,'Enrollment Form'!$DA879,'Enrollment Form'!$DK879,'Enrollment Form'!$DP879),\"Y\",\"N\"))","v":""},{"$f":"IF($B872=\"N\",\"\",IF(OR('Enrollment Form'!B879<>\"Subscriber\",'Enrollment Form'!C879=\"ROC\",COUNTIF('Enrollment Form'!AS879:AT879,\"Yes\")>=1),\"-\",IF(AND('Enrollment Form'!C879=\"Enroll\",COUNTIF('Enrollment Form'!AS879:AT879,\"No\")=2,'Enrollment Form'!AU879=\"\"),\"N\",\"Y\")))","v":""},{"$f":"IF(OR(B872=\"N\",'Enrollment Form'!B879<>\"Subscriber\",'Enrollment Form'!C879=\"ROC\",'Enrollment Form'!O879<>\"Multiple of Salary\"),\"-\",IF(COUNTA('Enrollment Form'!T879:U879)<2,\"N\",\"Y\"))","v":"-"},{"$f":"IF(B872=\"N\",\"\",IF(OR('Enrollment Form'!C879=\"ROC\",'Enrollment Form'!B879<>\"Subscriber\",'Enrollment Form'!O879=\"Waive\",'Enrollment Form'!O879=\"\"),\"-\",IF('Enrollment Form'!P879=\"\",\"N\",\"Y\")))","v":""},{"$f":"IF($B872=\"N\",\"\",IF(AND('Enrollment Form'!$C879=\"ROC\",'Enrollment Form'!$DS879<>\"\"),\"Y\",IF(AND('Enrollment Form'!$C879=\"ROC\",'Enrollment Form'!$DS879=\"\"),\"N\",IF(AND('Enrollment Form'!$C879=\"Enroll\",'Enrollment Form'!$B879=\"Subscriber\",'Enrollment Form'!$CQ879=\"No\",'Enrollment Form'!$DS879=\"\"),\"N\",IF(AND('Enrollment Form'!$C879=\"Enroll\",'Enrollment Form'!$B879=\"Subscriber\",'Enrollment Form'!$CQ879=\"Yes\"),\"-\",\"Y\")))))","v":""},{"$f":"IF($B872=\"N\",\"\",IF(AND('Enrollment Form'!$C879=\"ROC\",'Enrollment Form'!$DT879<>\"\"),\"Y\",IF(AND('Enrollment Form'!$C879=\"ROC\",'Enrollment Form'!$DT879=\"\"),\"N\",IF(AND('Enrollment Form'!$C879=\"Enroll\",'Enrollment Form'!$B879=\"Subscriber\",'Enrollment Form'!$CQ879=\"No\",'Enrollment Form'!$DT879=\"\"),\"N\",IF(AND('Enrollment Form'!$C879=\"Enroll\",'Enrollment Form'!$B879=\"Subscriber\",'Enrollment Form'!$CQ879=\"Yes\"),\"-\",\"Y\")))))","v":""},{"$f":"IF('Enrollment Form'!AH879=\"\",\"\",IF(ISERROR(SEARCH(\".\",'Enrollment Form'!AH879,SEARCH(\"@\",'Enrollment Form'!AH879))),\"N\",\"Y\"))","v":""},{"$f":"IF(OR($B872=\"N\",'Enrollment Form'!$G879=\"\"),\"\",IF('Enrollment Form'!$B879<>\"Subscriber\",\"-\",IF(COUNTIF('Enrollment Form'!$AS879:$AT879,\"Yes\")=2,\"N\",\"Y\")))","v":""},{"$f":"IF(OR('Enrollment Form'!$CC879=\"\",'Enrollment Form'!$CC879=\"No\"),\"-\",IF(AND('Enrollment Form'!$CC879=\"Yes\",'Enrollment Form'!$CD879=\"\"),\"N\",\"Y\"))","v":"-"},{"$f":"IF(OR('Enrollment Form'!$CE879=\"\",'Enrollment Form'!$CE879=\"No\"),\"-\",IF(AND('Enrollment Form'!$CE879=\"Yes\",'Enrollment Form'!$CF879=\"\"),\"N\",\"Y\"))","v":"-"},{"$f":"IF(OR('Enrollment Form'!$CG879=\"\",'Enrollment Form'!$CG879=\"No\"),\"-\",IF(AND('Enrollment Form'!$CG879=\"Yes\",'Enrollment Form'!$CH879=\"\"),\"N\",\"Y\"))","v":"-"},{"$f":"IF(OR('Enrollment Form'!$CG879=\"\",'Enrollment Form'!$CG879=\"No\"),\"-\",IF(AND('Enrollment Form'!$CG879=\"Yes\",'Enrollment Form'!$CI879=\"\"),\"N\",\"Y\"))","v":"-"},{"$f":"IF('Enrollment Form'!B879<>\"Subscriber\",\"-\",IF(AND('Enrollment Form'!B879=\"Subscriber\",'Enrollment Form'!C879=\"Enroll\",'Enrollment Form'!AA879=\"\"),\"N\",\"Y\"))","v":"-"},{"$f":"IF(OR('Enrollment Form'!B879=\"Subscriber\",'Enrollment Form'!B879=\"\"),\"-\",IF('Enrollment Form'!BI879=\"\",\"N\",\"Y\"))","v":"-"},{"$f":"IF('Enrollment Form'!B879<>\"Subscriber\",\"-\",IF(AND('Enrollment Form'!B879=\"Subscriber\",'Enrollment Form'!G879=\"\"),\"N\",\"Y\"))","v":"-"},{"$f":"IF('Enrollment Form'!A879=\"\",\"\",IF('Enrollment Form'!B879=\"Subscriber\",\"-\",IF(AND('Enrollment Form'!B879<>\"Subscriber\",'Enrollment Form'!G879='Enrollment Form'!H879),\"N\",\"Y\")))","v":""},0]
[880,{"$f":"IF('Enrollment Form'!$A880<>\"\",\"Y\",\"N\")","v":"N"},{"$f":"IF(AND('Enrollment Form'!$B880=\"\",'Enrollment Form'!$C880<>\"\"),\"N\",IF($B873=\"N\",\"\",\"Y\"))","v":""},{"$f":"IF(OR($B873=\"N\",'Enrollment Form'!G880=\"\"),\"\",IF('Enrollment Form'!$B880<>\"Subscriber\",\"\",IF('Enrollment Form'!$G880='Enrollment Form'!$H880,\"Y\",\"N\")))","v":""},{"$f":"IF($B873=\"N\",\"\",IF(AND(COUNTIFS('Enrollment Form'!$H$11:$H$1000,'Enrollment Form'!$H880,'Enrollment Form'!$B$11:$B$1000,'Enrollment Form'!$B880)>1,'Enrollment Form'!$H880<>\"\"),\"N\",\"Y\"))","v":""},{"$f":"IF($B873=\"N\",\"\",IF(LEN('Enrollment Form'!$Y880)=0,\"\",IF(LEN('Enrollment Form'!$Y880)<>5,\"N\",\"Y\")))","v":""},{"$f":"IF($B873=\"N\",\"\",IF(LEN('Enrollment Form'!$AD880=0),\"\",IF(LEN('Enrollment Form'!$AD880)<>5,\"N\",\"Y\")))","v":""},{"$f":"IF($B873=\"N\",\"\",IF(LEN('Enrollment Form'!$BL880=0),\"\",IF(LEN('Enrollment Form'!$BL880)<>5,\"N\",\"Y\")))","v":""},{"$f":"IF($B873=\"N\",\"\",IF(LEN('Enrollment Form'!$AE880)=0,\"\",IF(LEN('Enrollment Form'!$AE880)<>10,\"N\",\"Y\")))","v":""},{"$f":"IF($B873=\"N\",\"\",IF(LEN('Enrollment Form'!$AF880)=0,\"\",IF(LEN('Enrollment Form'!$AF880)<>10,\"N\",\"Y\")))","v":""},{"$f":"IF('Enrollment Form'!$O880<>\"Graded\",\"-\",IF(AND('Enrollment Form'!$O880=\"Graded\",'Enrollment Form'!$AO880<>\"\"),\"Y\",\"N\"))","v":"-"},{"$f":"IF($B873=\"N\",\"\",IF(OR('Enrollment Form'!$B880<>\"Subscriber\",'Enrollment Form'!$C880=\"ROC\"),\"-\",IF(AND('Enrollment Form'!$B880=\"Subscriber\",'Enrollment Form'!$C880=\"Enroll\",'Enrollment Form'!$AJ880<>\"\"),\"Y\",\"N\")))","v":""},{"$f":"IF($B873=\"N\",\"\",IF(OR('Enrollment Form'!$B880<>\"Subscriber\",'Enrollment Form'!$C880=\"ROC\"),\"-\",IF(AND('Enrollment Form'!$B880=\"Subscriber\",'Enrollment Form'!$C880=\"Enroll\",'Enrollment Form'!$AK880<>\"\"),\"Y\",\"N\")))","v":""},{"$f":"IF($B873=\"N\",\"\",IF(OR('Enrollment Form'!$B880<>\"Subscriber\",'Enrollment Form'!$C880=\"ROC\"),\"-\",IF(AND('Enrollment Form'!$B880=\"Subscriber\",'Enrollment Form'!$C880=\"Enroll\",'Enrollment Form'!$AL880<>\"\"),\"Y\",\"N\")))","v":""},{"$f":"IF($B873=\"N\",\"\",IF(OR('Enrollment Form'!$B880<>\"Subscriber\",'Enrollment Form'!$C880=\"ROC\"),\"-\",IF(AND('Enrollment Form'!$B880=\"Subscriber\",'Enrollment Form'!$C880=\"Enroll\",'Enrollment Form'!$AM880<>\"\"),\"Y\",\"N\")))","v":""},{"$f":"IF($B873=\"N\",\"\",IF(OR('Enrollment Form'!$B880<>\"Subscriber\",'Enrollment Form'!$C880=\"ROC\"),\"-\",IF(AND('Enrollment Form'!$B880=\"Subscriber\",'Enrollment Form'!$C880=\"Enroll\",'Enrollment Form'!$AN880<>\"\"),\"Y\",\"N\")))","v":""},{"$f":"IF($B873=\"N\",\"\",IF(OR('Enrollment Form'!$B880<>\"Subscriber\",'Enrollment Form'!$C880=\"ROC\"),\"-\",IF(AND('Enrollment Form'!$B880=\"Subscriber\",'Enrollment Form'!$C880=\"Enroll\",'Enrollment Form'!$AP880<>\"\"),\"Y\",\"N\")))","v":""},{"$f":"IF($B873=\"N\",\"\",IF($Q873=\"-\",\"-\",IF(AND($Q873=\"Y\",'Enrollment Form'!$AP880=\"No\"),\"-\",IF(AND($Q873=\"Y\",'Enrollment Form'!$AP880=\"Yes\",'Enrollment Form'!$AQ880<>\"\"),\"Y\",\"N\"))))","v":""},{"$f":"IF($B873=\"N\",\"\",IF(OR('Enrollment Form'!$B880<>\"Subscriber\",'Enrollment Form'!$C880=\"ROC\"),\"-\",IF(AND('Enrollment Form'!$B880=\"Subscriber\",'Enrollment Form'!$C880=\"Enroll\",'Enrollment Form'!$CO880<>\"\"),\"Y\",\"N\")))","v":""},{"$f":"IF($B873=\"N\",\"\",IF($S873=\"-\",\"-\",IF(AND($S873=\"Y\",'Enrollment Form'!$CO880=\"No\"),\"-\",IF(AND($S873=\"Y\",'Enrollment Form'!$CO880=\"Yes\",'Enrollment Form'!$CP880<>\"\"),\"Y\",\"N\"))))","v":""},{"$f":"IF(OR('Enrollment Form'!$AV880=\"Yes\",'Enrollment Form'!$AV880=\"\"),\"-\",IF(AND('Enrollment Form'!$AV880=\"No\",ISERROR(FIND(\"HMO\",VLOOKUP('Enrollment Form'!G880,'Enrollment Form'!H$11:J$1000,3,FALSE),1))=FALSE,COUNTA('Enrollment Form'!$AW880:$AZ880)=4),\"Y\",\"N\"))","v":"-"},{"$f":"IF($B873=\"N\",\"\",IF('Enrollment Form'!$B880=\"Subscriber\",\"-\",IF(COUNTA('Enrollment Form'!$BE880,'Enrollment Form'!$BG880)=2,\"Y\",\"N\")))","v":""},{"$f":"IF($B873=\"N\",\"\",IF(OR('Enrollment Form'!$AU880=\"\",'Enrollment Form'!$AU880=\"No\"),\"-\",IF(AND('Enrollment Form'!$AU880=\"Yes\",COUNTA('Enrollment Form'!$CK880)=1),\"Y\",\"N\")))","v":""},{"$f":"IF(OR('Enrollment Form'!$CK880=\"\",'Enrollment Form'!$CK880=\"No\"),\"-\",IF(COUNTA('Enrollment Form'!$CM880:$CN880)=2,\"Y\",\"N\"))","v":"-"},{"$f":"IF($B873=\"N\",\"\",IF(COUNTIF('Enrollment Form'!$CZ880:$DO880,\"Other\")=COUNTA('Enrollment Form'!$DF880,'Enrollment Form'!$DA880,'Enrollment Form'!$DK880,'Enrollment Form'!$DP880),\"Y\",\"N\"))","v":""},{"$f":"IF($B873=\"N\",\"\",IF(OR('Enrollment Form'!B880<>\"Subscriber\",'Enrollment Form'!C880=\"ROC\",COUNTIF('Enrollment Form'!AS880:AT880,\"Yes\")>=1),\"-\",IF(AND('Enrollment Form'!C880=\"Enroll\",COUNTIF('Enrollment Form'!AS880:AT880,\"No\")=2,'Enrollment Form'!AU880=\"\"),\"N\",\"Y\")))","v":""},{"$f":"IF(OR(B873=\"N\",'Enrollment Form'!B880<>\"Subscriber\",'Enrollment Form'!C880=\"ROC\",'Enrollment Form'!O880<>\"Multiple of Salary\"),\"-\",IF(COUNTA('Enrollment Form'!T880:U880)<2,\"N\",\"Y\"))","v":"-"},{"$f":"IF(B873=\"N\",\"\",IF(OR('Enrollment Form'!C880=\"ROC\",'Enrollment Form'!B880<>\"Subscriber\",'Enrollment Form'!O880=\"Waive\",'Enrollment Form'!O880=\"\"),\"-\",IF('Enrollment Form'!P880=\"\",\"N\",\"Y\")))","v":""},{"$f":"IF($B873=\"N\",\"\",IF(AND('Enrollment Form'!$C880=\"ROC\",'Enrollment Form'!$DS880<>\"\"),\"Y\",IF(AND('Enrollment Form'!$C880=\"ROC\",'Enrollment Form'!$DS880=\"\"),\"N\",IF(AND('Enrollment Form'!$C880=\"Enroll\",'Enrollment Form'!$B880=\"Subscriber\",'Enrollment Form'!$CQ880=\"No\",'Enrollment Form'!$DS880=\"\"),\"N\",IF(AND('Enrollment Form'!$C880=\"Enroll\",'Enrollment Form'!$B880=\"Subscriber\",'Enrollment Form'!$CQ880=\"Yes\"),\"-\",\"Y\")))))","v":""},{"$f":"IF($B873=\"N\",\"\",IF(AND('Enrollment Form'!$C880=\"ROC\",'Enrollment Form'!$DT880<>\"\"),\"Y\",IF(AND('Enrollment Form'!$C880=\"ROC\",'Enrollment Form'!$DT880=\"\"),\"N\",IF(AND('Enrollment Form'!$C880=\"Enroll\",'Enrollment Form'!$B880=\"Subscriber\",'Enrollment Form'!$CQ880=\"No\",'Enrollment Form'!$DT880=\"\"),\"N\",IF(AND('Enrollment Form'!$C880=\"Enroll\",'Enrollment Form'!$B880=\"Subscriber\",'Enrollment Form'!$CQ880=\"Yes\"),\"-\",\"Y\")))))","v":""},{"$f":"IF('Enrollment Form'!AH880=\"\",\"\",IF(ISERROR(SEARCH(\".\",'Enrollment Form'!AH880,SEARCH(\"@\",'Enrollment Form'!AH880))),\"N\",\"Y\"))","v":""},{"$f":"IF(OR($B873=\"N\",'Enrollment Form'!$G880=\"\"),\"\",IF('Enrollment Form'!$B880<>\"Subscriber\",\"-\",IF(COUNTIF('Enrollment Form'!$AS880:$AT880,\"Yes\")=2,\"N\",\"Y\")))","v":""},{"$f":"IF(OR('Enrollment Form'!$CC880=\"\",'Enrollment Form'!$CC880=\"No\"),\"-\",IF(AND('Enrollment Form'!$CC880=\"Yes\",'Enrollment Form'!$CD880=\"\"),\"N\",\"Y\"))","v":"-"},{"$f":"IF(OR('Enrollment Form'!$CE880=\"\",'Enrollment Form'!$CE880=\"No\"),\"-\",IF(AND('Enrollment Form'!$CE880=\"Yes\",'Enrollment Form'!$CF880=\"\"),\"N\",\"Y\"))","v":"-"},{"$f":"IF(OR('Enrollment Form'!$CG880=\"\",'Enrollment Form'!$CG880=\"No\"),\"-\",IF(AND('Enrollment Form'!$CG880=\"Yes\",'Enrollment Form'!$CH880=\"\"),\"N\",\"Y\"))","v":"-"},{"$f":"IF(OR('Enrollment Form'!$CG880=\"\",'Enrollment Form'!$CG880=\"No\"),\"-\",IF(AND('Enrollment Form'!$CG880=\"Yes\",'Enrollment Form'!$CI880=\"\"),\"N\",\"Y\"))","v":"-"},{"$f":"IF('Enrollment Form'!B880<>\"Subscriber\",\"-\",IF(AND('Enrollment Form'!B880=\"Subscriber\",'Enrollment Form'!C880=\"Enroll\",'Enrollment Form'!AA880=\"\"),\"N\",\"Y\"))","v":"-"},{"$f":"IF(OR('Enrollment Form'!B880=\"Subscriber\",'Enrollment Form'!B880=\"\"),\"-\",IF('Enrollment Form'!BI880=\"\",\"N\",\"Y\"))","v":"-"},{"$f":"IF('Enrollment Form'!B880<>\"Subscriber\",\"-\",IF(AND('Enrollment Form'!B880=\"Subscriber\",'Enrollment Form'!G880=\"\"),\"N\",\"Y\"))","v":"-"},{"$f":"IF('Enrollment Form'!A880=\"\",\"\",IF('Enrollment Form'!B880=\"Subscriber\",\"-\",IF(AND('Enrollment Form'!B880<>\"Subscriber\",'Enrollment Form'!G880='Enrollment Form'!H880),\"N\",\"Y\")))","v":""},0]
[881,{"$f":"IF('Enrollment Form'!$A881<>\"\",\"Y\",\"N\")","v":"N"},{"$f":"IF(AND('Enrollment Form'!$B881=\"\",'Enrollment Form'!$C881<>\"\"),\"N\",IF($B874=\"N\",\"\",\"Y\"))","v":""},{"$f":"IF(OR($B874=\"N\",'Enrollment Form'!G881=\"\"),\"\",IF('Enrollment Form'!$B881<>\"Subscriber\",\"\",IF('Enrollment Form'!$G881='Enrollment Form'!$H881,\"Y\",\"N\")))","v":""},{"$f":"IF($B874=\"N\",\"\",IF(AND(COUNTIFS('Enrollment Form'!$H$11:$H$1000,'Enrollment Form'!$H881,'Enrollment Form'!$B$11:$B$1000,'Enrollment Form'!$B881)>1,'Enrollment Form'!$H881<>\"\"),\"N\",\"Y\"))","v":""},{"$f":"IF($B874=\"N\",\"\",IF(LEN('Enrollment Form'!$Y881)=0,\"\",IF(LEN('Enrollment Form'!$Y881)<>5,\"N\",\"Y\")))","v":""},{"$f":"IF($B874=\"N\",\"\",IF(LEN('Enrollment Form'!$AD881=0),\"\",IF(LEN('Enrollment Form'!$AD881)<>5,\"N\",\"Y\")))","v":""},{"$f":"IF($B874=\"N\",\"\",IF(LEN('Enrollment Form'!$BL881=0),\"\",IF(LEN('Enrollment Form'!$BL881)<>5,\"N\",\"Y\")))","v":""},{"$f":"IF($B874=\"N\",\"\",IF(LEN('Enrollment Form'!$AE881)=0,\"\",IF(LEN('Enrollment Form'!$AE881)<>10,\"N\",\"Y\")))","v":""},{"$f":"IF($B874=\"N\",\"\",IF(LEN('Enrollment Form'!$AF881)=0,\"\",IF(LEN('Enrollment Form'!$AF881)<>10,\"N\",\"Y\")))","v":""},{"$f":"IF('Enrollment Form'!$O881<>\"Graded\",\"-\",IF(AND('Enrollment Form'!$O881=\"Graded\",'Enrollment Form'!$AO881<>\"\"),\"Y\",\"N\"))","v":"-"},{"$f":"IF($B874=\"N\",\"\",IF(OR('Enrollment Form'!$B881<>\"Subscriber\",'Enrollment Form'!$C881=\"ROC\"),\"-\",IF(AND('Enrollment Form'!$B881=\"Subscriber\",'Enrollment Form'!$C881=\"Enroll\",'Enrollment Form'!$AJ881<>\"\"),\"Y\",\"N\")))","v":""},{"$f":"IF($B874=\"N\",\"\",IF(OR('Enrollment Form'!$B881<>\"Subscriber\",'Enrollment Form'!$C881=\"ROC\"),\"-\",IF(AND('Enrollment Form'!$B881=\"Subscriber\",'Enrollment Form'!$C881=\"Enroll\",'Enrollment Form'!$AK881<>\"\"),\"Y\",\"N\")))","v":""},{"$f":"IF($B874=\"N\",\"\",IF(OR('Enrollment Form'!$B881<>\"Subscriber\",'Enrollment Form'!$C881=\"ROC\"),\"-\",IF(AND('Enrollment Form'!$B881=\"Subscriber\",'Enrollment Form'!$C881=\"Enroll\",'Enrollment Form'!$AL881<>\"\"),\"Y\",\"N\")))","v":""},{"$f":"IF($B874=\"N\",\"\",IF(OR('Enrollment Form'!$B881<>\"Subscriber\",'Enrollment Form'!$C881=\"ROC\"),\"-\",IF(AND('Enrollment Form'!$B881=\"Subscriber\",'Enrollment Form'!$C881=\"Enroll\",'Enrollment Form'!$AM881<>\"\"),\"Y\",\"N\")))","v":""},{"$f":"IF($B874=\"N\",\"\",IF(OR('Enrollment Form'!$B881<>\"Subscriber\",'Enrollment Form'!$C881=\"ROC\"),\"-\",IF(AND('Enrollment Form'!$B881=\"Subscriber\",'Enrollment Form'!$C881=\"Enroll\",'Enrollment Form'!$AN881<>\"\"),\"Y\",\"N\")))","v":""},{"$f":"IF($B874=\"N\",\"\",IF(OR('Enrollment Form'!$B881<>\"Subscriber\",'Enrollment Form'!$C881=\"ROC\"),\"-\",IF(AND('Enrollment Form'!$B881=\"Subscriber\",'Enrollment Form'!$C881=\"Enroll\",'Enrollment Form'!$AP881<>\"\"),\"Y\",\"N\")))","v":""},{"$f":"IF($B874=\"N\",\"\",IF($Q874=\"-\",\"-\",IF(AND($Q874=\"Y\",'Enrollment Form'!$AP881=\"No\"),\"-\",IF(AND($Q874=\"Y\",'Enrollment Form'!$AP881=\"Yes\",'Enrollment Form'!$AQ881<>\"\"),\"Y\",\"N\"))))","v":""},{"$f":"IF($B874=\"N\",\"\",IF(OR('Enrollment Form'!$B881<>\"Subscriber\",'Enrollment Form'!$C881=\"ROC\"),\"-\",IF(AND('Enrollment Form'!$B881=\"Subscriber\",'Enrollment Form'!$C881=\"Enroll\",'Enrollment Form'!$CO881<>\"\"),\"Y\",\"N\")))","v":""},{"$f":"IF($B874=\"N\",\"\",IF($S874=\"-\",\"-\",IF(AND($S874=\"Y\",'Enrollment Form'!$CO881=\"No\"),\"-\",IF(AND($S874=\"Y\",'Enrollment Form'!$CO881=\"Yes\",'Enrollment Form'!$CP881<>\"\"),\"Y\",\"N\"))))","v":""},{"$f":"IF(OR('Enrollment Form'!$AV881=\"Yes\",'Enrollment Form'!$AV881=\"\"),\"-\",IF(AND('Enrollment Form'!$AV881=\"No\",ISERROR(FIND(\"HMO\",VLOOKUP('Enrollment Form'!G881,'Enrollment Form'!H$11:J$1000,3,FALSE),1))=FALSE,COUNTA('Enrollment Form'!$AW881:$AZ881)=4),\"Y\",\"N\"))","v":"-"},{"$f":"IF($B874=\"N\",\"\",IF('Enrollment Form'!$B881=\"Subscriber\",\"-\",IF(COUNTA('Enrollment Form'!$BE881,'Enrollment Form'!$BG881)=2,\"Y\",\"N\")))","v":""},{"$f":"IF($B874=\"N\",\"\",IF(OR('Enrollment Form'!$AU881=\"\",'Enrollment Form'!$AU881=\"No\"),\"-\",IF(AND('Enrollment Form'!$AU881=\"Yes\",COUNTA('Enrollment Form'!$CK881)=1),\"Y\",\"N\")))","v":""},{"$f":"IF(OR('Enrollment Form'!$CK881=\"\",'Enrollment Form'!$CK881=\"No\"),\"-\",IF(COUNTA('Enrollment Form'!$CM881:$CN881)=2,\"Y\",\"N\"))","v":"-"},{"$f":"IF($B874=\"N\",\"\",IF(COUNTIF('Enrollment Form'!$CZ881:$DO881,\"Other\")=COUNTA('Enrollment Form'!$DF881,'Enrollment Form'!$DA881,'Enrollment Form'!$DK881,'Enrollment Form'!$DP881),\"Y\",\"N\"))","v":""},{"$f":"IF($B874=\"N\",\"\",IF(OR('Enrollment Form'!B881<>\"Subscriber\",'Enrollment Form'!C881=\"ROC\",COUNTIF('Enrollment Form'!AS881:AT881,\"Yes\")>=1),\"-\",IF(AND('Enrollment Form'!C881=\"Enroll\",COUNTIF('Enrollment Form'!AS881:AT881,\"No\")=2,'Enrollment Form'!AU881=\"\"),\"N\",\"Y\")))","v":""},{"$f":"IF(OR(B874=\"N\",'Enrollment Form'!B881<>\"Subscriber\",'Enrollment Form'!C881=\"ROC\",'Enrollment Form'!O881<>\"Multiple of Salary\"),\"-\",IF(COUNTA('Enrollment Form'!T881:U881)<2,\"N\",\"Y\"))","v":"-"},{"$f":"IF(B874=\"N\",\"\",IF(OR('Enrollment Form'!C881=\"ROC\",'Enrollment Form'!B881<>\"Subscriber\",'Enrollment Form'!O881=\"Waive\",'Enrollment Form'!O881=\"\"),\"-\",IF('Enrollment Form'!P881=\"\",\"N\",\"Y\")))","v":""},{"$f":"IF($B874=\"N\",\"\",IF(AND('Enrollment Form'!$C881=\"ROC\",'Enrollment Form'!$DS881<>\"\"),\"Y\",IF(AND('Enrollment Form'!$C881=\"ROC\",'Enrollment Form'!$DS881=\"\"),\"N\",IF(AND('Enrollment Form'!$C881=\"Enroll\",'Enrollment Form'!$B881=\"Subscriber\",'Enrollment Form'!$CQ881=\"No\",'Enrollment Form'!$DS881=\"\"),\"N\",IF(AND('Enrollment Form'!$C881=\"Enroll\",'Enrollment Form'!$B881=\"Subscriber\",'Enrollment Form'!$CQ881=\"Yes\"),\"-\",\"Y\")))))","v":""},{"$f":"IF($B874=\"N\",\"\",IF(AND('Enrollment Form'!$C881=\"ROC\",'Enrollment Form'!$DT881<>\"\"),\"Y\",IF(AND('Enrollment Form'!$C881=\"ROC\",'Enrollment Form'!$DT881=\"\"),\"N\",IF(AND('Enrollment Form'!$C881=\"Enroll\",'Enrollment Form'!$B881=\"Subscriber\",'Enrollment Form'!$CQ881=\"No\",'Enrollment Form'!$DT881=\"\"),\"N\",IF(AND('Enrollment Form'!$C881=\"Enroll\",'Enrollment Form'!$B881=\"Subscriber\",'Enrollment Form'!$CQ881=\"Yes\"),\"-\",\"Y\")))))","v":""},{"$f":"IF('Enrollment Form'!AH881=\"\",\"\",IF(ISERROR(SEARCH(\".\",'Enrollment Form'!AH881,SEARCH(\"@\",'Enrollment Form'!AH881))),\"N\",\"Y\"))","v":""},{"$f":"IF(OR($B874=\"N\",'Enrollment Form'!$G881=\"\"),\"\",IF('Enrollment Form'!$B881<>\"Subscriber\",\"-\",IF(COUNTIF('Enrollment Form'!$AS881:$AT881,\"Yes\")=2,\"N\",\"Y\")))","v":""},{"$f":"IF(OR('Enrollment Form'!$CC881=\"\",'Enrollment Form'!$CC881=\"No\"),\"-\",IF(AND('Enrollment Form'!$CC881=\"Yes\",'Enrollment Form'!$CD881=\"\"),\"N\",\"Y\"))","v":"-"},{"$f":"IF(OR('Enrollment Form'!$CE881=\"\",'Enrollment Form'!$CE881=\"No\"),\"-\",IF(AND('Enrollment Form'!$CE881=\"Yes\",'Enrollment Form'!$CF881=\"\"),\"N\",\"Y\"))","v":"-"},{"$f":"IF(OR('Enrollment Form'!$CG881=\"\",'Enrollment Form'!$CG881=\"No\"),\"-\",IF(AND('Enrollment Form'!$CG881=\"Yes\",'Enrollment Form'!$CH881=\"\"),\"N\",\"Y\"))","v":"-"},{"$f":"IF(OR('Enrollment Form'!$CG881=\"\",'Enrollment Form'!$CG881=\"No\"),\"-\",IF(AND('Enrollment Form'!$CG881=\"Yes\",'Enrollment Form'!$CI881=\"\"),\"N\",\"Y\"))","v":"-"},{"$f":"IF('Enrollment Form'!B881<>\"Subscriber\",\"-\",IF(AND('Enrollment Form'!B881=\"Subscriber\",'Enrollment Form'!C881=\"Enroll\",'Enrollment Form'!AA881=\"\"),\"N\",\"Y\"))","v":"-"},{"$f":"IF(OR('Enrollment Form'!B881=\"Subscriber\",'Enrollment Form'!B881=\"\"),\"-\",IF('Enrollment Form'!BI881=\"\",\"N\",\"Y\"))","v":"-"},{"$f":"IF('Enrollment Form'!B881<>\"Subscriber\",\"-\",IF(AND('Enrollment Form'!B881=\"Subscriber\",'Enrollment Form'!G881=\"\"),\"N\",\"Y\"))","v":"-"},{"$f":"IF('Enrollment Form'!A881=\"\",\"\",IF('Enrollment Form'!B881=\"Subscriber\",\"-\",IF(AND('Enrollment Form'!B881<>\"Subscriber\",'Enrollment Form'!G881='Enrollment Form'!H881),\"N\",\"Y\")))","v":""},0]
[882,{"$f":"IF('Enrollment Form'!$A882<>\"\",\"Y\",\"N\")","v":"N"},{"$f":"IF(AND('Enrollment Form'!$B882=\"\",'Enrollment Form'!$C882<>\"\"),\"N\",IF($B875=\"N\",\"\",\"Y\"))","v":""},{"$f":"IF(OR($B875=\"N\",'Enrollment Form'!G882=\"\"),\"\",IF('Enrollment Form'!$B882<>\"Subscriber\",\"\",IF('Enrollment Form'!$G882='Enrollment Form'!$H882,\"Y\",\"N\")))","v":""},{"$f":"IF($B875=\"N\",\"\",IF(AND(COUNTIFS('Enrollment Form'!$H$11:$H$1000,'Enrollment Form'!$H882,'Enrollment Form'!$B$11:$B$1000,'Enrollment Form'!$B882)>1,'Enrollment Form'!$H882<>\"\"),\"N\",\"Y\"))","v":""},{"$f":"IF($B875=\"N\",\"\",IF(LEN('Enrollment Form'!$Y882)=0,\"\",IF(LEN('Enrollment Form'!$Y882)<>5,\"N\",\"Y\")))","v":""},{"$f":"IF($B875=\"N\",\"\",IF(LEN('Enrollment Form'!$AD882=0),\"\",IF(LEN('Enrollment Form'!$AD882)<>5,\"N\",\"Y\")))","v":""},{"$f":"IF($B875=\"N\",\"\",IF(LEN('Enrollment Form'!$BL882=0),\"\",IF(LEN('Enrollment Form'!$BL882)<>5,\"N\",\"Y\")))","v":""},{"$f":"IF($B875=\"N\",\"\",IF(LEN('Enrollment Form'!$AE882)=0,\"\",IF(LEN('Enrollment Form'!$AE882)<>10,\"N\",\"Y\")))","v":""},{"$f":"IF($B875=\"N\",\"\",IF(LEN('Enrollment Form'!$AF882)=0,\"\",IF(LEN('Enrollment Form'!$AF882)<>10,\"N\",\"Y\")))","v":""},{"$f":"IF('Enrollment Form'!$O882<>\"Graded\",\"-\",IF(AND('Enrollment Form'!$O882=\"Graded\",'Enrollment Form'!$AO882<>\"\"),\"Y\",\"N\"))","v":"-"},{"$f":"IF($B875=\"N\",\"\",IF(OR('Enrollment Form'!$B882<>\"Subscriber\",'Enrollment Form'!$C882=\"ROC\"),\"-\",IF(AND('Enrollment Form'!$B882=\"Subscriber\",'Enrollment Form'!$C882=\"Enroll\",'Enrollment Form'!$AJ882<>\"\"),\"Y\",\"N\")))","v":""},{"$f":"IF($B875=\"N\",\"\",IF(OR('Enrollment Form'!$B882<>\"Subscriber\",'Enrollment Form'!$C882=\"ROC\"),\"-\",IF(AND('Enrollment Form'!$B882=\"Subscriber\",'Enrollment Form'!$C882=\"Enroll\",'Enrollment Form'!$AK882<>\"\"),\"Y\",\"N\")))","v":""},{"$f":"IF($B875=\"N\",\"\",IF(OR('Enrollment Form'!$B882<>\"Subscriber\",'Enrollment Form'!$C882=\"ROC\"),\"-\",IF(AND('Enrollment Form'!$B882=\"Subscriber\",'Enrollment Form'!$C882=\"Enroll\",'Enrollment Form'!$AL882<>\"\"),\"Y\",\"N\")))","v":""},{"$f":"IF($B875=\"N\",\"\",IF(OR('Enrollment Form'!$B882<>\"Subscriber\",'Enrollment Form'!$C882=\"ROC\"),\"-\",IF(AND('Enrollment Form'!$B882=\"Subscriber\",'Enrollment Form'!$C882=\"Enroll\",'Enrollment Form'!$AM882<>\"\"),\"Y\",\"N\")))","v":""},{"$f":"IF($B875=\"N\",\"\",IF(OR('Enrollment Form'!$B882<>\"Subscriber\",'Enrollment Form'!$C882=\"ROC\"),\"-\",IF(AND('Enrollment Form'!$B882=\"Subscriber\",'Enrollment Form'!$C882=\"Enroll\",'Enrollment Form'!$AN882<>\"\"),\"Y\",\"N\")))","v":""},{"$f":"IF($B875=\"N\",\"\",IF(OR('Enrollment Form'!$B882<>\"Subscriber\",'Enrollment Form'!$C882=\"ROC\"),\"-\",IF(AND('Enrollment Form'!$B882=\"Subscriber\",'Enrollment Form'!$C882=\"Enroll\",'Enrollment Form'!$AP882<>\"\"),\"Y\",\"N\")))","v":""},{"$f":"IF($B875=\"N\",\"\",IF($Q875=\"-\",\"-\",IF(AND($Q875=\"Y\",'Enrollment Form'!$AP882=\"No\"),\"-\",IF(AND($Q875=\"Y\",'Enrollment Form'!$AP882=\"Yes\",'Enrollment Form'!$AQ882<>\"\"),\"Y\",\"N\"))))","v":""},{"$f":"IF($B875=\"N\",\"\",IF(OR('Enrollment Form'!$B882<>\"Subscriber\",'Enrollment Form'!$C882=\"ROC\"),\"-\",IF(AND('Enrollment Form'!$B882=\"Subscriber\",'Enrollment Form'!$C882=\"Enroll\",'Enrollment Form'!$CO882<>\"\"),\"Y\",\"N\")))","v":""},{"$f":"IF($B875=\"N\",\"\",IF($S875=\"-\",\"-\",IF(AND($S875=\"Y\",'Enrollment Form'!$CO882=\"No\"),\"-\",IF(AND($S875=\"Y\",'Enrollment Form'!$CO882=\"Yes\",'Enrollment Form'!$CP882<>\"\"),\"Y\",\"N\"))))","v":""},{"$f":"IF(OR('Enrollment Form'!$AV882=\"Yes\",'Enrollment Form'!$AV882=\"\"),\"-\",IF(AND('Enrollment Form'!$AV882=\"No\",ISERROR(FIND(\"HMO\",VLOOKUP('Enrollment Form'!G882,'Enrollment Form'!H$11:J$1000,3,FALSE),1))=FALSE,COUNTA('Enrollment Form'!$AW882:$AZ882)=4),\"Y\",\"N\"))","v":"-"},{"$f":"IF($B875=\"N\",\"\",IF('Enrollment Form'!$B882=\"Subscriber\",\"-\",IF(COUNTA('Enrollment Form'!$BE882,'Enrollment Form'!$BG882)=2,\"Y\",\"N\")))","v":""},{"$f":"IF($B875=\"N\",\"\",IF(OR('Enrollment Form'!$AU882=\"\",'Enrollment Form'!$AU882=\"No\"),\"-\",IF(AND('Enrollment Form'!$AU882=\"Yes\",COUNTA('Enrollment Form'!$CK882)=1),\"Y\",\"N\")))","v":""},{"$f":"IF(OR('Enrollment Form'!$CK882=\"\",'Enrollment Form'!$CK882=\"No\"),\"-\",IF(COUNTA('Enrollment Form'!$CM882:$CN882)=2,\"Y\",\"N\"))","v":"-"},{"$f":"IF($B875=\"N\",\"\",IF(COUNTIF('Enrollment Form'!$CZ882:$DO882,\"Other\")=COUNTA('Enrollment Form'!$DF882,'Enrollment Form'!$DA882,'Enrollment Form'!$DK882,'Enrollment Form'!$DP882),\"Y\",\"N\"))","v":""},{"$f":"IF($B875=\"N\",\"\",IF(OR('Enrollment Form'!B882<>\"Subscriber\",'Enrollment Form'!C882=\"ROC\",COUNTIF('Enrollment Form'!AS882:AT882,\"Yes\")>=1),\"-\",IF(AND('Enrollment Form'!C882=\"Enroll\",COUNTIF('Enrollment Form'!AS882:AT882,\"No\")=2,'Enrollment Form'!AU882=\"\"),\"N\",\"Y\")))","v":""},{"$f":"IF(OR(B875=\"N\",'Enrollment Form'!B882<>\"Subscriber\",'Enrollment Form'!C882=\"ROC\",'Enrollment Form'!O882<>\"Multiple of Salary\"),\"-\",IF(COUNTA('Enrollment Form'!T882:U882)<2,\"N\",\"Y\"))","v":"-"},{"$f":"IF(B875=\"N\",\"\",IF(OR('Enrollment Form'!C882=\"ROC\",'Enrollment Form'!B882<>\"Subscriber\",'Enrollment Form'!O882=\"Waive\",'Enrollment Form'!O882=\"\"),\"-\",IF('Enrollment Form'!P882=\"\",\"N\",\"Y\")))","v":""},{"$f":"IF($B875=\"N\",\"\",IF(AND('Enrollment Form'!$C882=\"ROC\",'Enrollment Form'!$DS882<>\"\"),\"Y\",IF(AND('Enrollment Form'!$C882=\"ROC\",'Enrollment Form'!$DS882=\"\"),\"N\",IF(AND('Enrollment Form'!$C882=\"Enroll\",'Enrollment Form'!$B882=\"Subscriber\",'Enrollment Form'!$CQ882=\"No\",'Enrollment Form'!$DS882=\"\"),\"N\",IF(AND('Enrollment Form'!$C882=\"Enroll\",'Enrollment Form'!$B882=\"Subscriber\",'Enrollment Form'!$CQ882=\"Yes\"),\"-\",\"Y\")))))","v":""},{"$f":"IF($B875=\"N\",\"\",IF(AND('Enrollment Form'!$C882=\"ROC\",'Enrollment Form'!$DT882<>\"\"),\"Y\",IF(AND('Enrollment Form'!$C882=\"ROC\",'Enrollment Form'!$DT882=\"\"),\"N\",IF(AND('Enrollment Form'!$C882=\"Enroll\",'Enrollment Form'!$B882=\"Subscriber\",'Enrollment Form'!$CQ882=\"No\",'Enrollment Form'!$DT882=\"\"),\"N\",IF(AND('Enrollment Form'!$C882=\"Enroll\",'Enrollment Form'!$B882=\"Subscriber\",'Enrollment Form'!$CQ882=\"Yes\"),\"-\",\"Y\")))))","v":""},{"$f":"IF('Enrollment Form'!AH882=\"\",\"\",IF(ISERROR(SEARCH(\".\",'Enrollment Form'!AH882,SEARCH(\"@\",'Enrollment Form'!AH882))),\"N\",\"Y\"))","v":""},{"$f":"IF(OR($B875=\"N\",'Enrollment Form'!$G882=\"\"),\"\",IF('Enrollment Form'!$B882<>\"Subscriber\",\"-\",IF(COUNTIF('Enrollment Form'!$AS882:$AT882,\"Yes\")=2,\"N\",\"Y\")))","v":""},{"$f":"IF(OR('Enrollment Form'!$CC882=\"\",'Enrollment Form'!$CC882=\"No\"),\"-\",IF(AND('Enrollment Form'!$CC882=\"Yes\",'Enrollment Form'!$CD882=\"\"),\"N\",\"Y\"))","v":"-"},{"$f":"IF(OR('Enrollment Form'!$CE882=\"\",'Enrollment Form'!$CE882=\"No\"),\"-\",IF(AND('Enrollment Form'!$CE882=\"Yes\",'Enrollment Form'!$CF882=\"\"),\"N\",\"Y\"))","v":"-"},{"$f":"IF(OR('Enrollment Form'!$CG882=\"\",'Enrollment Form'!$CG882=\"No\"),\"-\",IF(AND('Enrollment Form'!$CG882=\"Yes\",'Enrollment Form'!$CH882=\"\"),\"N\",\"Y\"))","v":"-"},{"$f":"IF(OR('Enrollment Form'!$CG882=\"\",'Enrollment Form'!$CG882=\"No\"),\"-\",IF(AND('Enrollment Form'!$CG882=\"Yes\",'Enrollment Form'!$CI882=\"\"),\"N\",\"Y\"))","v":"-"},{"$f":"IF('Enrollment Form'!B882<>\"Subscriber\",\"-\",IF(AND('Enrollment Form'!B882=\"Subscriber\",'Enrollment Form'!C882=\"Enroll\",'Enrollment Form'!AA882=\"\"),\"N\",\"Y\"))","v":"-"},{"$f":"IF(OR('Enrollment Form'!B882=\"Subscriber\",'Enrollment Form'!B882=\"\"),\"-\",IF('Enrollment Form'!BI882=\"\",\"N\",\"Y\"))","v":"-"},{"$f":"IF('Enrollment Form'!B882<>\"Subscriber\",\"-\",IF(AND('Enrollment Form'!B882=\"Subscriber\",'Enrollment Form'!G882=\"\"),\"N\",\"Y\"))","v":"-"},{"$f":"IF('Enrollment Form'!A882=\"\",\"\",IF('Enrollment Form'!B882=\"Subscriber\",\"-\",IF(AND('Enrollment Form'!B882<>\"Subscriber\",'Enrollment Form'!G882='Enrollment Form'!H882),\"N\",\"Y\")))","v":""},0]
[883,{"$f":"IF('Enrollment Form'!$A883<>\"\",\"Y\",\"N\")","v":"N"},{"$f":"IF(AND('Enrollment Form'!$B883=\"\",'Enrollment Form'!$C883<>\"\"),\"N\",IF($B876=\"N\",\"\",\"Y\"))","v":""},{"$f":"IF(OR($B876=\"N\",'Enrollment Form'!G883=\"\"),\"\",IF('Enrollment Form'!$B883<>\"Subscriber\",\"\",IF('Enrollment Form'!$G883='Enrollment Form'!$H883,\"Y\",\"N\")))","v":""},{"$f":"IF($B876=\"N\",\"\",IF(AND(COUNTIFS('Enrollment Form'!$H$11:$H$1000,'Enrollment Form'!$H883,'Enrollment Form'!$B$11:$B$1000,'Enrollment Form'!$B883)>1,'Enrollment Form'!$H883<>\"\"),\"N\",\"Y\"))","v":""},{"$f":"IF($B876=\"N\",\"\",IF(LEN('Enrollment Form'!$Y883)=0,\"\",IF(LEN('Enrollment Form'!$Y883)<>5,\"N\",\"Y\")))","v":""},{"$f":"IF($B876=\"N\",\"\",IF(LEN('Enrollment Form'!$AD883=0),\"\",IF(LEN('Enrollment Form'!$AD883)<>5,\"N\",\"Y\")))","v":""},{"$f":"IF($B876=\"N\",\"\",IF(LEN('Enrollment Form'!$BL883=0),\"\",IF(LEN('Enrollment Form'!$BL883)<>5,\"N\",\"Y\")))","v":""},{"$f":"IF($B876=\"N\",\"\",IF(LEN('Enrollment Form'!$AE883)=0,\"\",IF(LEN('Enrollment Form'!$AE883)<>10,\"N\",\"Y\")))","v":""},{"$f":"IF($B876=\"N\",\"\",IF(LEN('Enrollment Form'!$AF883)=0,\"\",IF(LEN('Enrollment Form'!$AF883)<>10,\"N\",\"Y\")))","v":""},{"$f":"IF('Enrollment Form'!$O883<>\"Graded\",\"-\",IF(AND('Enrollment Form'!$O883=\"Graded\",'Enrollment Form'!$AO883<>\"\"),\"Y\",\"N\"))","v":"-"},{"$f":"IF($B876=\"N\",\"\",IF(OR('Enrollment Form'!$B883<>\"Subscriber\",'Enrollment Form'!$C883=\"ROC\"),\"-\",IF(AND('Enrollment Form'!$B883=\"Subscriber\",'Enrollment Form'!$C883=\"Enroll\",'Enrollment Form'!$AJ883<>\"\"),\"Y\",\"N\")))","v":""},{"$f":"IF($B876=\"N\",\"\",IF(OR('Enrollment Form'!$B883<>\"Subscriber\",'Enrollment Form'!$C883=\"ROC\"),\"-\",IF(AND('Enrollment Form'!$B883=\"Subscriber\",'Enrollment Form'!$C883=\"Enroll\",'Enrollment Form'!$AK883<>\"\"),\"Y\",\"N\")))","v":""},{"$f":"IF($B876=\"N\",\"\",IF(OR('Enrollment Form'!$B883<>\"Subscriber\",'Enrollment Form'!$C883=\"ROC\"),\"-\",IF(AND('Enrollment Form'!$B883=\"Subscriber\",'Enrollment Form'!$C883=\"Enroll\",'Enrollment Form'!$AL883<>\"\"),\"Y\",\"N\")))","v":""},{"$f":"IF($B876=\"N\",\"\",IF(OR('Enrollment Form'!$B883<>\"Subscriber\",'Enrollment Form'!$C883=\"ROC\"),\"-\",IF(AND('Enrollment Form'!$B883=\"Subscriber\",'Enrollment Form'!$C883=\"Enroll\",'Enrollment Form'!$AM883<>\"\"),\"Y\",\"N\")))","v":""},{"$f":"IF($B876=\"N\",\"\",IF(OR('Enrollment Form'!$B883<>\"Subscriber\",'Enrollment Form'!$C883=\"ROC\"),\"-\",IF(AND('Enrollment Form'!$B883=\"Subscriber\",'Enrollment Form'!$C883=\"Enroll\",'Enrollment Form'!$AN883<>\"\"),\"Y\",\"N\")))","v":""},{"$f":"IF($B876=\"N\",\"\",IF(OR('Enrollment Form'!$B883<>\"Subscriber\",'Enrollment Form'!$C883=\"ROC\"),\"-\",IF(AND('Enrollment Form'!$B883=\"Subscriber\",'Enrollment Form'!$C883=\"Enroll\",'Enrollment Form'!$AP883<>\"\"),\"Y\",\"N\")))","v":""},{"$f":"IF($B876=\"N\",\"\",IF($Q876=\"-\",\"-\",IF(AND($Q876=\"Y\",'Enrollment Form'!$AP883=\"No\"),\"-\",IF(AND($Q876=\"Y\",'Enrollment Form'!$AP883=\"Yes\",'Enrollment Form'!$AQ883<>\"\"),\"Y\",\"N\"))))","v":""},{"$f":"IF($B876=\"N\",\"\",IF(OR('Enrollment Form'!$B883<>\"Subscriber\",'Enrollment Form'!$C883=\"ROC\"),\"-\",IF(AND('Enrollment Form'!$B883=\"Subscriber\",'Enrollment Form'!$C883=\"Enroll\",'Enrollment Form'!$CO883<>\"\"),\"Y\",\"N\")))","v":""},{"$f":"IF($B876=\"N\",\"\",IF($S876=\"-\",\"-\",IF(AND($S876=\"Y\",'Enrollment Form'!$CO883=\"No\"),\"-\",IF(AND($S876=\"Y\",'Enrollment Form'!$CO883=\"Yes\",'Enrollment Form'!$CP883<>\"\"),\"Y\",\"N\"))))","v":""},{"$f":"IF(OR('Enrollment Form'!$AV883=\"Yes\",'Enrollment Form'!$AV883=\"\"),\"-\",IF(AND('Enrollment Form'!$AV883=\"No\",ISERROR(FIND(\"HMO\",VLOOKUP('Enrollment Form'!G883,'Enrollment Form'!H$11:J$1000,3,FALSE),1))=FALSE,COUNTA('Enrollment Form'!$AW883:$AZ883)=4),\"Y\",\"N\"))","v":"-"},{"$f":"IF($B876=\"N\",\"\",IF('Enrollment Form'!$B883=\"Subscriber\",\"-\",IF(COUNTA('Enrollment Form'!$BE883,'Enrollment Form'!$BG883)=2,\"Y\",\"N\")))","v":""},{"$f":"IF($B876=\"N\",\"\",IF(OR('Enrollment Form'!$AU883=\"\",'Enrollment Form'!$AU883=\"No\"),\"-\",IF(AND('Enrollment Form'!$AU883=\"Yes\",COUNTA('Enrollment Form'!$CK883)=1),\"Y\",\"N\")))","v":""},{"$f":"IF(OR('Enrollment Form'!$CK883=\"\",'Enrollment Form'!$CK883=\"No\"),\"-\",IF(COUNTA('Enrollment Form'!$CM883:$CN883)=2,\"Y\",\"N\"))","v":"-"},{"$f":"IF($B876=\"N\",\"\",IF(COUNTIF('Enrollment Form'!$CZ883:$DO883,\"Other\")=COUNTA('Enrollment Form'!$DF883,'Enrollment Form'!$DA883,'Enrollment Form'!$DK883,'Enrollment Form'!$DP883),\"Y\",\"N\"))","v":""},{"$f":"IF($B876=\"N\",\"\",IF(OR('Enrollment Form'!B883<>\"Subscriber\",'Enrollment Form'!C883=\"ROC\",COUNTIF('Enrollment Form'!AS883:AT883,\"Yes\")>=1),\"-\",IF(AND('Enrollment Form'!C883=\"Enroll\",COUNTIF('Enrollment Form'!AS883:AT883,\"No\")=2,'Enrollment Form'!AU883=\"\"),\"N\",\"Y\")))","v":""},{"$f":"IF(OR(B876=\"N\",'Enrollment Form'!B883<>\"Subscriber\",'Enrollment Form'!C883=\"ROC\",'Enrollment Form'!O883<>\"Multiple of Salary\"),\"-\",IF(COUNTA('Enrollment Form'!T883:U883)<2,\"N\",\"Y\"))","v":"-"},{"$f":"IF(B876=\"N\",\"\",IF(OR('Enrollment Form'!C883=\"ROC\",'Enrollment Form'!B883<>\"Subscriber\",'Enrollment Form'!O883=\"Waive\",'Enrollment Form'!O883=\"\"),\"-\",IF('Enrollment Form'!P883=\"\",\"N\",\"Y\")))","v":""},{"$f":"IF($B876=\"N\",\"\",IF(AND('Enrollment Form'!$C883=\"ROC\",'Enrollment Form'!$DS883<>\"\"),\"Y\",IF(AND('Enrollment Form'!$C883=\"ROC\",'Enrollment Form'!$DS883=\"\"),\"N\",IF(AND('Enrollment Form'!$C883=\"Enroll\",'Enrollment Form'!$B883=\"Subscriber\",'Enrollment Form'!$CQ883=\"No\",'Enrollment Form'!$DS883=\"\"),\"N\",IF(AND('Enrollment Form'!$C883=\"Enroll\",'Enrollment Form'!$B883=\"Subscriber\",'Enrollment Form'!$CQ883=\"Yes\"),\"-\",\"Y\")))))","v":""},{"$f":"IF($B876=\"N\",\"\",IF(AND('Enrollment Form'!$C883=\"ROC\",'Enrollment Form'!$DT883<>\"\"),\"Y\",IF(AND('Enrollment Form'!$C883=\"ROC\",'Enrollment Form'!$DT883=\"\"),\"N\",IF(AND('Enrollment Form'!$C883=\"Enroll\",'Enrollment Form'!$B883=\"Subscriber\",'Enrollment Form'!$CQ883=\"No\",'Enrollment Form'!$DT883=\"\"),\"N\",IF(AND('Enrollment Form'!$C883=\"Enroll\",'Enrollment Form'!$B883=\"Subscriber\",'Enrollment Form'!$CQ883=\"Yes\"),\"-\",\"Y\")))))","v":""},{"$f":"IF('Enrollment Form'!AH883=\"\",\"\",IF(ISERROR(SEARCH(\".\",'Enrollment Form'!AH883,SEARCH(\"@\",'Enrollment Form'!AH883))),\"N\",\"Y\"))","v":""},{"$f":"IF(OR($B876=\"N\",'Enrollment Form'!$G883=\"\"),\"\",IF('Enrollment Form'!$B883<>\"Subscriber\",\"-\",IF(COUNTIF('Enrollment Form'!$AS883:$AT883,\"Yes\")=2,\"N\",\"Y\")))","v":""},{"$f":"IF(OR('Enrollment Form'!$CC883=\"\",'Enrollment Form'!$CC883=\"No\"),\"-\",IF(AND('Enrollment Form'!$CC883=\"Yes\",'Enrollment Form'!$CD883=\"\"),\"N\",\"Y\"))","v":"-"},{"$f":"IF(OR('Enrollment Form'!$CE883=\"\",'Enrollment Form'!$CE883=\"No\"),\"-\",IF(AND('Enrollment Form'!$CE883=\"Yes\",'Enrollment Form'!$CF883=\"\"),\"N\",\"Y\"))","v":"-"},{"$f":"IF(OR('Enrollment Form'!$CG883=\"\",'Enrollment Form'!$CG883=\"No\"),\"-\",IF(AND('Enrollment Form'!$CG883=\"Yes\",'Enrollment Form'!$CH883=\"\"),\"N\",\"Y\"))","v":"-"},{"$f":"IF(OR('Enrollment Form'!$CG883=\"\",'Enrollment Form'!$CG883=\"No\"),\"-\",IF(AND('Enrollment Form'!$CG883=\"Yes\",'Enrollment Form'!$CI883=\"\"),\"N\",\"Y\"))","v":"-"},{"$f":"IF('Enrollment Form'!B883<>\"Subscriber\",\"-\",IF(AND('Enrollment Form'!B883=\"Subscriber\",'Enrollment Form'!C883=\"Enroll\",'Enrollment Form'!AA883=\"\"),\"N\",\"Y\"))","v":"-"},{"$f":"IF(OR('Enrollment Form'!B883=\"Subscriber\",'Enrollment Form'!B883=\"\"),\"-\",IF('Enrollment Form'!BI883=\"\",\"N\",\"Y\"))","v":"-"},{"$f":"IF('Enrollment Form'!B883<>\"Subscriber\",\"-\",IF(AND('Enrollment Form'!B883=\"Subscriber\",'Enrollment Form'!G883=\"\"),\"N\",\"Y\"))","v":"-"},{"$f":"IF('Enrollment Form'!A883=\"\",\"\",IF('Enrollment Form'!B883=\"Subscriber\",\"-\",IF(AND('Enrollment Form'!B883<>\"Subscriber\",'Enrollment Form'!G883='Enrollment Form'!H883),\"N\",\"Y\")))","v":""},0]
[884,{"$f":"IF('Enrollment Form'!$A884<>\"\",\"Y\",\"N\")","v":"N"},{"$f":"IF(AND('Enrollment Form'!$B884=\"\",'Enrollment Form'!$C884<>\"\"),\"N\",IF($B877=\"N\",\"\",\"Y\"))","v":""},{"$f":"IF(OR($B877=\"N\",'Enrollment Form'!G884=\"\"),\"\",IF('Enrollment Form'!$B884<>\"Subscriber\",\"\",IF('Enrollment Form'!$G884='Enrollment Form'!$H884,\"Y\",\"N\")))","v":""},{"$f":"IF($B877=\"N\",\"\",IF(AND(COUNTIFS('Enrollment Form'!$H$11:$H$1000,'Enrollment Form'!$H884,'Enrollment Form'!$B$11:$B$1000,'Enrollment Form'!$B884)>1,'Enrollment Form'!$H884<>\"\"),\"N\",\"Y\"))","v":""},{"$f":"IF($B877=\"N\",\"\",IF(LEN('Enrollment Form'!$Y884)=0,\"\",IF(LEN('Enrollment Form'!$Y884)<>5,\"N\",\"Y\")))","v":""},{"$f":"IF($B877=\"N\",\"\",IF(LEN('Enrollment Form'!$AD884=0),\"\",IF(LEN('Enrollment Form'!$AD884)<>5,\"N\",\"Y\")))","v":""},{"$f":"IF($B877=\"N\",\"\",IF(LEN('Enrollment Form'!$BL884=0),\"\",IF(LEN('Enrollment Form'!$BL884)<>5,\"N\",\"Y\")))","v":""},{"$f":"IF($B877=\"N\",\"\",IF(LEN('Enrollment Form'!$AE884)=0,\"\",IF(LEN('Enrollment Form'!$AE884)<>10,\"N\",\"Y\")))","v":""},{"$f":"IF($B877=\"N\",\"\",IF(LEN('Enrollment Form'!$AF884)=0,\"\",IF(LEN('Enrollment Form'!$AF884)<>10,\"N\",\"Y\")))","v":""},{"$f":"IF('Enrollment Form'!$O884<>\"Graded\",\"-\",IF(AND('Enrollment Form'!$O884=\"Graded\",'Enrollment Form'!$AO884<>\"\"),\"Y\",\"N\"))","v":"-"},{"$f":"IF($B877=\"N\",\"\",IF(OR('Enrollment Form'!$B884<>\"Subscriber\",'Enrollment Form'!$C884=\"ROC\"),\"-\",IF(AND('Enrollment Form'!$B884=\"Subscriber\",'Enrollment Form'!$C884=\"Enroll\",'Enrollment Form'!$AJ884<>\"\"),\"Y\",\"N\")))","v":""},{"$f":"IF($B877=\"N\",\"\",IF(OR('Enrollment Form'!$B884<>\"Subscriber\",'Enrollment Form'!$C884=\"ROC\"),\"-\",IF(AND('Enrollment Form'!$B884=\"Subscriber\",'Enrollment Form'!$C884=\"Enroll\",'Enrollment Form'!$AK884<>\"\"),\"Y\",\"N\")))","v":""},{"$f":"IF($B877=\"N\",\"\",IF(OR('Enrollment Form'!$B884<>\"Subscriber\",'Enrollment Form'!$C884=\"ROC\"),\"-\",IF(AND('Enrollment Form'!$B884=\"Subscriber\",'Enrollment Form'!$C884=\"Enroll\",'Enrollment Form'!$AL884<>\"\"),\"Y\",\"N\")))","v":""},{"$f":"IF($B877=\"N\",\"\",IF(OR('Enrollment Form'!$B884<>\"Subscriber\",'Enrollment Form'!$C884=\"ROC\"),\"-\",IF(AND('Enrollment Form'!$B884=\"Subscriber\",'Enrollment Form'!$C884=\"Enroll\",'Enrollment Form'!$AM884<>\"\"),\"Y\",\"N\")))","v":""},{"$f":"IF($B877=\"N\",\"\",IF(OR('Enrollment Form'!$B884<>\"Subscriber\",'Enrollment Form'!$C884=\"ROC\"),\"-\",IF(AND('Enrollment Form'!$B884=\"Subscriber\",'Enrollment Form'!$C884=\"Enroll\",'Enrollment Form'!$AN884<>\"\"),\"Y\",\"N\")))","v":""},{"$f":"IF($B877=\"N\",\"\",IF(OR('Enrollment Form'!$B884<>\"Subscriber\",'Enrollment Form'!$C884=\"ROC\"),\"-\",IF(AND('Enrollment Form'!$B884=\"Subscriber\",'Enrollment Form'!$C884=\"Enroll\",'Enrollment Form'!$AP884<>\"\"),\"Y\",\"N\")))","v":""},{"$f":"IF($B877=\"N\",\"\",IF($Q877=\"-\",\"-\",IF(AND($Q877=\"Y\",'Enrollment Form'!$AP884=\"No\"),\"-\",IF(AND($Q877=\"Y\",'Enrollment Form'!$AP884=\"Yes\",'Enrollment Form'!$AQ884<>\"\"),\"Y\",\"N\"))))","v":""},{"$f":"IF($B877=\"N\",\"\",IF(OR('Enrollment Form'!$B884<>\"Subscriber\",'Enrollment Form'!$C884=\"ROC\"),\"-\",IF(AND('Enrollment Form'!$B884=\"Subscriber\",'Enrollment Form'!$C884=\"Enroll\",'Enrollment Form'!$CO884<>\"\"),\"Y\",\"N\")))","v":""},{"$f":"IF($B877=\"N\",\"\",IF($S877=\"-\",\"-\",IF(AND($S877=\"Y\",'Enrollment Form'!$CO884=\"No\"),\"-\",IF(AND($S877=\"Y\",'Enrollment Form'!$CO884=\"Yes\",'Enrollment Form'!$CP884<>\"\"),\"Y\",\"N\"))))","v":""},{"$f":"IF(OR('Enrollment Form'!$AV884=\"Yes\",'Enrollment Form'!$AV884=\"\"),\"-\",IF(AND('Enrollment Form'!$AV884=\"No\",ISERROR(FIND(\"HMO\",VLOOKUP('Enrollment Form'!G884,'Enrollment Form'!H$11:J$1000,3,FALSE),1))=FALSE,COUNTA('Enrollment Form'!$AW884:$AZ884)=4),\"Y\",\"N\"))","v":"-"},{"$f":"IF($B877=\"N\",\"\",IF('Enrollment Form'!$B884=\"Subscriber\",\"-\",IF(COUNTA('Enrollment Form'!$BE884,'Enrollment Form'!$BG884)=2,\"Y\",\"N\")))","v":""},{"$f":"IF($B877=\"N\",\"\",IF(OR('Enrollment Form'!$AU884=\"\",'Enrollment Form'!$AU884=\"No\"),\"-\",IF(AND('Enrollment Form'!$AU884=\"Yes\",COUNTA('Enrollment Form'!$CK884)=1),\"Y\",\"N\")))","v":""},{"$f":"IF(OR('Enrollment Form'!$CK884=\"\",'Enrollment Form'!$CK884=\"No\"),\"-\",IF(COUNTA('Enrollment Form'!$CM884:$CN884)=2,\"Y\",\"N\"))","v":"-"},{"$f":"IF($B877=\"N\",\"\",IF(COUNTIF('Enrollment Form'!$CZ884:$DO884,\"Other\")=COUNTA('Enrollment Form'!$DF884,'Enrollment Form'!$DA884,'Enrollment Form'!$DK884,'Enrollment Form'!$DP884),\"Y\",\"N\"))","v":""},{"$f":"IF($B877=\"N\",\"\",IF(OR('Enrollment Form'!B884<>\"Subscriber\",'Enrollment Form'!C884=\"ROC\",COUNTIF('Enrollment Form'!AS884:AT884,\"Yes\")>=1),\"-\",IF(AND('Enrollment Form'!C884=\"Enroll\",COUNTIF('Enrollment Form'!AS884:AT884,\"No\")=2,'Enrollment Form'!AU884=\"\"),\"N\",\"Y\")))","v":""},{"$f":"IF(OR(B877=\"N\",'Enrollment Form'!B884<>\"Subscriber\",'Enrollment Form'!C884=\"ROC\",'Enrollment Form'!O884<>\"Multiple of Salary\"),\"-\",IF(COUNTA('Enrollment Form'!T884:U884)<2,\"N\",\"Y\"))","v":"-"},{"$f":"IF(B877=\"N\",\"\",IF(OR('Enrollment Form'!C884=\"ROC\",'Enrollment Form'!B884<>\"Subscriber\",'Enrollment Form'!O884=\"Waive\",'Enrollment Form'!O884=\"\"),\"-\",IF('Enrollment Form'!P884=\"\",\"N\",\"Y\")))","v":""},{"$f":"IF($B877=\"N\",\"\",IF(AND('Enrollment Form'!$C884=\"ROC\",'Enrollment Form'!$DS884<>\"\"),\"Y\",IF(AND('Enrollment Form'!$C884=\"ROC\",'Enrollment Form'!$DS884=\"\"),\"N\",IF(AND('Enrollment Form'!$C884=\"Enroll\",'Enrollment Form'!$B884=\"Subscriber\",'Enrollment Form'!$CQ884=\"No\",'Enrollment Form'!$DS884=\"\"),\"N\",IF(AND('Enrollment Form'!$C884=\"Enroll\",'Enrollment Form'!$B884=\"Subscriber\",'Enrollment Form'!$CQ884=\"Yes\"),\"-\",\"Y\")))))","v":""},{"$f":"IF($B877=\"N\",\"\",IF(AND('Enrollment Form'!$C884=\"ROC\",'Enrollment Form'!$DT884<>\"\"),\"Y\",IF(AND('Enrollment Form'!$C884=\"ROC\",'Enrollment Form'!$DT884=\"\"),\"N\",IF(AND('Enrollment Form'!$C884=\"Enroll\",'Enrollment Form'!$B884=\"Subscriber\",'Enrollment Form'!$CQ884=\"No\",'Enrollment Form'!$DT884=\"\"),\"N\",IF(AND('Enrollment Form'!$C884=\"Enroll\",'Enrollment Form'!$B884=\"Subscriber\",'Enrollment Form'!$CQ884=\"Yes\"),\"-\",\"Y\")))))","v":""},{"$f":"IF('Enrollment Form'!AH884=\"\",\"\",IF(ISERROR(SEARCH(\".\",'Enrollment Form'!AH884,SEARCH(\"@\",'Enrollment Form'!AH884))),\"N\",\"Y\"))","v":""},{"$f":"IF(OR($B877=\"N\",'Enrollment Form'!$G884=\"\"),\"\",IF('Enrollment Form'!$B884<>\"Subscriber\",\"-\",IF(COUNTIF('Enrollment Form'!$AS884:$AT884,\"Yes\")=2,\"N\",\"Y\")))","v":""},{"$f":"IF(OR('Enrollment Form'!$CC884=\"\",'Enrollment Form'!$CC884=\"No\"),\"-\",IF(AND('Enrollment Form'!$CC884=\"Yes\",'Enrollment Form'!$CD884=\"\"),\"N\",\"Y\"))","v":"-"},{"$f":"IF(OR('Enrollment Form'!$CE884=\"\",'Enrollment Form'!$CE884=\"No\"),\"-\",IF(AND('Enrollment Form'!$CE884=\"Yes\",'Enrollment Form'!$CF884=\"\"),\"N\",\"Y\"))","v":"-"},{"$f":"IF(OR('Enrollment Form'!$CG884=\"\",'Enrollment Form'!$CG884=\"No\"),\"-\",IF(AND('Enrollment Form'!$CG884=\"Yes\",'Enrollment Form'!$CH884=\"\"),\"N\",\"Y\"))","v":"-"},{"$f":"IF(OR('Enrollment Form'!$CG884=\"\",'Enrollment Form'!$CG884=\"No\"),\"-\",IF(AND('Enrollment Form'!$CG884=\"Yes\",'Enrollment Form'!$CI884=\"\"),\"N\",\"Y\"))","v":"-"},{"$f":"IF('Enrollment Form'!B884<>\"Subscriber\",\"-\",IF(AND('Enrollment Form'!B884=\"Subscriber\",'Enrollment Form'!C884=\"Enroll\",'Enrollment Form'!AA884=\"\"),\"N\",\"Y\"))","v":"-"},{"$f":"IF(OR('Enrollment Form'!B884=\"Subscriber\",'Enrollment Form'!B884=\"\"),\"-\",IF('Enrollment Form'!BI884=\"\",\"N\",\"Y\"))","v":"-"},{"$f":"IF('Enrollment Form'!B884<>\"Subscriber\",\"-\",IF(AND('Enrollment Form'!B884=\"Subscriber\",'Enrollment Form'!G884=\"\"),\"N\",\"Y\"))","v":"-"},{"$f":"IF('Enrollment Form'!A884=\"\",\"\",IF('Enrollment Form'!B884=\"Subscriber\",\"-\",IF(AND('Enrollment Form'!B884<>\"Subscriber\",'Enrollment Form'!G884='Enrollment Form'!H884),\"N\",\"Y\")))","v":""},0]
[885,{"$f":"IF('Enrollment Form'!$A885<>\"\",\"Y\",\"N\")","v":"N"},{"$f":"IF(AND('Enrollment Form'!$B885=\"\",'Enrollment Form'!$C885<>\"\"),\"N\",IF($B878=\"N\",\"\",\"Y\"))","v":""},{"$f":"IF(OR($B878=\"N\",'Enrollment Form'!G885=\"\"),\"\",IF('Enrollment Form'!$B885<>\"Subscriber\",\"\",IF('Enrollment Form'!$G885='Enrollment Form'!$H885,\"Y\",\"N\")))","v":""},{"$f":"IF($B878=\"N\",\"\",IF(AND(COUNTIFS('Enrollment Form'!$H$11:$H$1000,'Enrollment Form'!$H885,'Enrollment Form'!$B$11:$B$1000,'Enrollment Form'!$B885)>1,'Enrollment Form'!$H885<>\"\"),\"N\",\"Y\"))","v":""},{"$f":"IF($B878=\"N\",\"\",IF(LEN('Enrollment Form'!$Y885)=0,\"\",IF(LEN('Enrollment Form'!$Y885)<>5,\"N\",\"Y\")))","v":""},{"$f":"IF($B878=\"N\",\"\",IF(LEN('Enrollment Form'!$AD885=0),\"\",IF(LEN('Enrollment Form'!$AD885)<>5,\"N\",\"Y\")))","v":""},{"$f":"IF($B878=\"N\",\"\",IF(LEN('Enrollment Form'!$BL885=0),\"\",IF(LEN('Enrollment Form'!$BL885)<>5,\"N\",\"Y\")))","v":""},{"$f":"IF($B878=\"N\",\"\",IF(LEN('Enrollment Form'!$AE885)=0,\"\",IF(LEN('Enrollment Form'!$AE885)<>10,\"N\",\"Y\")))","v":""},{"$f":"IF($B878=\"N\",\"\",IF(LEN('Enrollment Form'!$AF885)=0,\"\",IF(LEN('Enrollment Form'!$AF885)<>10,\"N\",\"Y\")))","v":""},{"$f":"IF('Enrollment Form'!$O885<>\"Graded\",\"-\",IF(AND('Enrollment Form'!$O885=\"Graded\",'Enrollment Form'!$AO885<>\"\"),\"Y\",\"N\"))","v":"-"},{"$f":"IF($B878=\"N\",\"\",IF(OR('Enrollment Form'!$B885<>\"Subscriber\",'Enrollment Form'!$C885=\"ROC\"),\"-\",IF(AND('Enrollment Form'!$B885=\"Subscriber\",'Enrollment Form'!$C885=\"Enroll\",'Enrollment Form'!$AJ885<>\"\"),\"Y\",\"N\")))","v":""},{"$f":"IF($B878=\"N\",\"\",IF(OR('Enrollment Form'!$B885<>\"Subscriber\",'Enrollment Form'!$C885=\"ROC\"),\"-\",IF(AND('Enrollment Form'!$B885=\"Subscriber\",'Enrollment Form'!$C885=\"Enroll\",'Enrollment Form'!$AK885<>\"\"),\"Y\",\"N\")))","v":""},{"$f":"IF($B878=\"N\",\"\",IF(OR('Enrollment Form'!$B885<>\"Subscriber\",'Enrollment Form'!$C885=\"ROC\"),\"-\",IF(AND('Enrollment Form'!$B885=\"Subscriber\",'Enrollment Form'!$C885=\"Enroll\",'Enrollment Form'!$AL885<>\"\"),\"Y\",\"N\")))","v":""},{"$f":"IF($B878=\"N\",\"\",IF(OR('Enrollment Form'!$B885<>\"Subscriber\",'Enrollment Form'!$C885=\"ROC\"),\"-\",IF(AND('Enrollment Form'!$B885=\"Subscriber\",'Enrollment Form'!$C885=\"Enroll\",'Enrollment Form'!$AM885<>\"\"),\"Y\",\"N\")))","v":""},{"$f":"IF($B878=\"N\",\"\",IF(OR('Enrollment Form'!$B885<>\"Subscriber\",'Enrollment Form'!$C885=\"ROC\"),\"-\",IF(AND('Enrollment Form'!$B885=\"Subscriber\",'Enrollment Form'!$C885=\"Enroll\",'Enrollment Form'!$AN885<>\"\"),\"Y\",\"N\")))","v":""},{"$f":"IF($B878=\"N\",\"\",IF(OR('Enrollment Form'!$B885<>\"Subscriber\",'Enrollment Form'!$C885=\"ROC\"),\"-\",IF(AND('Enrollment Form'!$B885=\"Subscriber\",'Enrollment Form'!$C885=\"Enroll\",'Enrollment Form'!$AP885<>\"\"),\"Y\",\"N\")))","v":""},{"$f":"IF($B878=\"N\",\"\",IF($Q878=\"-\",\"-\",IF(AND($Q878=\"Y\",'Enrollment Form'!$AP885=\"No\"),\"-\",IF(AND($Q878=\"Y\",'Enrollment Form'!$AP885=\"Yes\",'Enrollment Form'!$AQ885<>\"\"),\"Y\",\"N\"))))","v":""},{"$f":"IF($B878=\"N\",\"\",IF(OR('Enrollment Form'!$B885<>\"Subscriber\",'Enrollment Form'!$C885=\"ROC\"),\"-\",IF(AND('Enrollment Form'!$B885=\"Subscriber\",'Enrollment Form'!$C885=\"Enroll\",'Enrollment Form'!$CO885<>\"\"),\"Y\",\"N\")))","v":""},{"$f":"IF($B878=\"N\",\"\",IF($S878=\"-\",\"-\",IF(AND($S878=\"Y\",'Enrollment Form'!$CO885=\"No\"),\"-\",IF(AND($S878=\"Y\",'Enrollment Form'!$CO885=\"Yes\",'Enrollment Form'!$CP885<>\"\"),\"Y\",\"N\"))))","v":""},{"$f":"IF(OR('Enrollment Form'!$AV885=\"Yes\",'Enrollment Form'!$AV885=\"\"),\"-\",IF(AND('Enrollment Form'!$AV885=\"No\",ISERROR(FIND(\"HMO\",VLOOKUP('Enrollment Form'!G885,'Enrollment Form'!H$11:J$1000,3,FALSE),1))=FALSE,COUNTA('Enrollment Form'!$AW885:$AZ885)=4),\"Y\",\"N\"))","v":"-"},{"$f":"IF($B878=\"N\",\"\",IF('Enrollment Form'!$B885=\"Subscriber\",\"-\",IF(COUNTA('Enrollment Form'!$BE885,'Enrollment Form'!$BG885)=2,\"Y\",\"N\")))","v":""},{"$f":"IF($B878=\"N\",\"\",IF(OR('Enrollment Form'!$AU885=\"\",'Enrollment Form'!$AU885=\"No\"),\"-\",IF(AND('Enrollment Form'!$AU885=\"Yes\",COUNTA('Enrollment Form'!$CK885)=1),\"Y\",\"N\")))","v":""},{"$f":"IF(OR('Enrollment Form'!$CK885=\"\",'Enrollment Form'!$CK885=\"No\"),\"-\",IF(COUNTA('Enrollment Form'!$CM885:$CN885)=2,\"Y\",\"N\"))","v":"-"},{"$f":"IF($B878=\"N\",\"\",IF(COUNTIF('Enrollment Form'!$CZ885:$DO885,\"Other\")=COUNTA('Enrollment Form'!$DF885,'Enrollment Form'!$DA885,'Enrollment Form'!$DK885,'Enrollment Form'!$DP885),\"Y\",\"N\"))","v":""},{"$f":"IF($B878=\"N\",\"\",IF(OR('Enrollment Form'!B885<>\"Subscriber\",'Enrollment Form'!C885=\"ROC\",COUNTIF('Enrollment Form'!AS885:AT885,\"Yes\")>=1),\"-\",IF(AND('Enrollment Form'!C885=\"Enroll\",COUNTIF('Enrollment Form'!AS885:AT885,\"No\")=2,'Enrollment Form'!AU885=\"\"),\"N\",\"Y\")))","v":""},{"$f":"IF(OR(B878=\"N\",'Enrollment Form'!B885<>\"Subscriber\",'Enrollment Form'!C885=\"ROC\",'Enrollment Form'!O885<>\"Multiple of Salary\"),\"-\",IF(COUNTA('Enrollment Form'!T885:U885)<2,\"N\",\"Y\"))","v":"-"},{"$f":"IF(B878=\"N\",\"\",IF(OR('Enrollment Form'!C885=\"ROC\",'Enrollment Form'!B885<>\"Subscriber\",'Enrollment Form'!O885=\"Waive\",'Enrollment Form'!O885=\"\"),\"-\",IF('Enrollment Form'!P885=\"\",\"N\",\"Y\")))","v":""},{"$f":"IF($B878=\"N\",\"\",IF(AND('Enrollment Form'!$C885=\"ROC\",'Enrollment Form'!$DS885<>\"\"),\"Y\",IF(AND('Enrollment Form'!$C885=\"ROC\",'Enrollment Form'!$DS885=\"\"),\"N\",IF(AND('Enrollment Form'!$C885=\"Enroll\",'Enrollment Form'!$B885=\"Subscriber\",'Enrollment Form'!$CQ885=\"No\",'Enrollment Form'!$DS885=\"\"),\"N\",IF(AND('Enrollment Form'!$C885=\"Enroll\",'Enrollment Form'!$B885=\"Subscriber\",'Enrollment Form'!$CQ885=\"Yes\"),\"-\",\"Y\")))))","v":""},{"$f":"IF($B878=\"N\",\"\",IF(AND('Enrollment Form'!$C885=\"ROC\",'Enrollment Form'!$DT885<>\"\"),\"Y\",IF(AND('Enrollment Form'!$C885=\"ROC\",'Enrollment Form'!$DT885=\"\"),\"N\",IF(AND('Enrollment Form'!$C885=\"Enroll\",'Enrollment Form'!$B885=\"Subscriber\",'Enrollment Form'!$CQ885=\"No\",'Enrollment Form'!$DT885=\"\"),\"N\",IF(AND('Enrollment Form'!$C885=\"Enroll\",'Enrollment Form'!$B885=\"Subscriber\",'Enrollment Form'!$CQ885=\"Yes\"),\"-\",\"Y\")))))","v":""},{"$f":"IF('Enrollment Form'!AH885=\"\",\"\",IF(ISERROR(SEARCH(\".\",'Enrollment Form'!AH885,SEARCH(\"@\",'Enrollment Form'!AH885))),\"N\",\"Y\"))","v":""},{"$f":"IF(OR($B878=\"N\",'Enrollment Form'!$G885=\"\"),\"\",IF('Enrollment Form'!$B885<>\"Subscriber\",\"-\",IF(COUNTIF('Enrollment Form'!$AS885:$AT885,\"Yes\")=2,\"N\",\"Y\")))","v":""},{"$f":"IF(OR('Enrollment Form'!$CC885=\"\",'Enrollment Form'!$CC885=\"No\"),\"-\",IF(AND('Enrollment Form'!$CC885=\"Yes\",'Enrollment Form'!$CD885=\"\"),\"N\",\"Y\"))","v":"-"},{"$f":"IF(OR('Enrollment Form'!$CE885=\"\",'Enrollment Form'!$CE885=\"No\"),\"-\",IF(AND('Enrollment Form'!$CE885=\"Yes\",'Enrollment Form'!$CF885=\"\"),\"N\",\"Y\"))","v":"-"},{"$f":"IF(OR('Enrollment Form'!$CG885=\"\",'Enrollment Form'!$CG885=\"No\"),\"-\",IF(AND('Enrollment Form'!$CG885=\"Yes\",'Enrollment Form'!$CH885=\"\"),\"N\",\"Y\"))","v":"-"},{"$f":"IF(OR('Enrollment Form'!$CG885=\"\",'Enrollment Form'!$CG885=\"No\"),\"-\",IF(AND('Enrollment Form'!$CG885=\"Yes\",'Enrollment Form'!$CI885=\"\"),\"N\",\"Y\"))","v":"-"},{"$f":"IF('Enrollment Form'!B885<>\"Subscriber\",\"-\",IF(AND('Enrollment Form'!B885=\"Subscriber\",'Enrollment Form'!C885=\"Enroll\",'Enrollment Form'!AA885=\"\"),\"N\",\"Y\"))","v":"-"},{"$f":"IF(OR('Enrollment Form'!B885=\"Subscriber\",'Enrollment Form'!B885=\"\"),\"-\",IF('Enrollment Form'!BI885=\"\",\"N\",\"Y\"))","v":"-"},{"$f":"IF('Enrollment Form'!B885<>\"Subscriber\",\"-\",IF(AND('Enrollment Form'!B885=\"Subscriber\",'Enrollment Form'!G885=\"\"),\"N\",\"Y\"))","v":"-"},{"$f":"IF('Enrollment Form'!A885=\"\",\"\",IF('Enrollment Form'!B885=\"Subscriber\",\"-\",IF(AND('Enrollment Form'!B885<>\"Subscriber\",'Enrollment Form'!G885='Enrollment Form'!H885),\"N\",\"Y\")))","v":""},0]
[886,{"$f":"IF('Enrollment Form'!$A886<>\"\",\"Y\",\"N\")","v":"N"},{"$f":"IF(AND('Enrollment Form'!$B886=\"\",'Enrollment Form'!$C886<>\"\"),\"N\",IF($B879=\"N\",\"\",\"Y\"))","v":""},{"$f":"IF(OR($B879=\"N\",'Enrollment Form'!G886=\"\"),\"\",IF('Enrollment Form'!$B886<>\"Subscriber\",\"\",IF('Enrollment Form'!$G886='Enrollment Form'!$H886,\"Y\",\"N\")))","v":""},{"$f":"IF($B879=\"N\",\"\",IF(AND(COUNTIFS('Enrollment Form'!$H$11:$H$1000,'Enrollment Form'!$H886,'Enrollment Form'!$B$11:$B$1000,'Enrollment Form'!$B886)>1,'Enrollment Form'!$H886<>\"\"),\"N\",\"Y\"))","v":""},{"$f":"IF($B879=\"N\",\"\",IF(LEN('Enrollment Form'!$Y886)=0,\"\",IF(LEN('Enrollment Form'!$Y886)<>5,\"N\",\"Y\")))","v":""},{"$f":"IF($B879=\"N\",\"\",IF(LEN('Enrollment Form'!$AD886=0),\"\",IF(LEN('Enrollment Form'!$AD886)<>5,\"N\",\"Y\")))","v":""},{"$f":"IF($B879=\"N\",\"\",IF(LEN('Enrollment Form'!$BL886=0),\"\",IF(LEN('Enrollment Form'!$BL886)<>5,\"N\",\"Y\")))","v":""},{"$f":"IF($B879=\"N\",\"\",IF(LEN('Enrollment Form'!$AE886)=0,\"\",IF(LEN('Enrollment Form'!$AE886)<>10,\"N\",\"Y\")))","v":""},{"$f":"IF($B879=\"N\",\"\",IF(LEN('Enrollment Form'!$AF886)=0,\"\",IF(LEN('Enrollment Form'!$AF886)<>10,\"N\",\"Y\")))","v":""},{"$f":"IF('Enrollment Form'!$O886<>\"Graded\",\"-\",IF(AND('Enrollment Form'!$O886=\"Graded\",'Enrollment Form'!$AO886<>\"\"),\"Y\",\"N\"))","v":"-"},{"$f":"IF($B879=\"N\",\"\",IF(OR('Enrollment Form'!$B886<>\"Subscriber\",'Enrollment Form'!$C886=\"ROC\"),\"-\",IF(AND('Enrollment Form'!$B886=\"Subscriber\",'Enrollment Form'!$C886=\"Enroll\",'Enrollment Form'!$AJ886<>\"\"),\"Y\",\"N\")))","v":""},{"$f":"IF($B879=\"N\",\"\",IF(OR('Enrollment Form'!$B886<>\"Subscriber\",'Enrollment Form'!$C886=\"ROC\"),\"-\",IF(AND('Enrollment Form'!$B886=\"Subscriber\",'Enrollment Form'!$C886=\"Enroll\",'Enrollment Form'!$AK886<>\"\"),\"Y\",\"N\")))","v":""},{"$f":"IF($B879=\"N\",\"\",IF(OR('Enrollment Form'!$B886<>\"Subscriber\",'Enrollment Form'!$C886=\"ROC\"),\"-\",IF(AND('Enrollment Form'!$B886=\"Subscriber\",'Enrollment Form'!$C886=\"Enroll\",'Enrollment Form'!$AL886<>\"\"),\"Y\",\"N\")))","v":""},{"$f":"IF($B879=\"N\",\"\",IF(OR('Enrollment Form'!$B886<>\"Subscriber\",'Enrollment Form'!$C886=\"ROC\"),\"-\",IF(AND('Enrollment Form'!$B886=\"Subscriber\",'Enrollment Form'!$C886=\"Enroll\",'Enrollment Form'!$AM886<>\"\"),\"Y\",\"N\")))","v":""},{"$f":"IF($B879=\"N\",\"\",IF(OR('Enrollment Form'!$B886<>\"Subscriber\",'Enrollment Form'!$C886=\"ROC\"),\"-\",IF(AND('Enrollment Form'!$B886=\"Subscriber\",'Enrollment Form'!$C886=\"Enroll\",'Enrollment Form'!$AN886<>\"\"),\"Y\",\"N\")))","v":""},{"$f":"IF($B879=\"N\",\"\",IF(OR('Enrollment Form'!$B886<>\"Subscriber\",'Enrollment Form'!$C886=\"ROC\"),\"-\",IF(AND('Enrollment Form'!$B886=\"Subscriber\",'Enrollment Form'!$C886=\"Enroll\",'Enrollment Form'!$AP886<>\"\"),\"Y\",\"N\")))","v":""},{"$f":"IF($B879=\"N\",\"\",IF($Q879=\"-\",\"-\",IF(AND($Q879=\"Y\",'Enrollment Form'!$AP886=\"No\"),\"-\",IF(AND($Q879=\"Y\",'Enrollment Form'!$AP886=\"Yes\",'Enrollment Form'!$AQ886<>\"\"),\"Y\",\"N\"))))","v":""},{"$f":"IF($B879=\"N\",\"\",IF(OR('Enrollment Form'!$B886<>\"Subscriber\",'Enrollment Form'!$C886=\"ROC\"),\"-\",IF(AND('Enrollment Form'!$B886=\"Subscriber\",'Enrollment Form'!$C886=\"Enroll\",'Enrollment Form'!$CO886<>\"\"),\"Y\",\"N\")))","v":""},{"$f":"IF($B879=\"N\",\"\",IF($S879=\"-\",\"-\",IF(AND($S879=\"Y\",'Enrollment Form'!$CO886=\"No\"),\"-\",IF(AND($S879=\"Y\",'Enrollment Form'!$CO886=\"Yes\",'Enrollment Form'!$CP886<>\"\"),\"Y\",\"N\"))))","v":""},{"$f":"IF(OR('Enrollment Form'!$AV886=\"Yes\",'Enrollment Form'!$AV886=\"\"),\"-\",IF(AND('Enrollment Form'!$AV886=\"No\",ISERROR(FIND(\"HMO\",VLOOKUP('Enrollment Form'!G886,'Enrollment Form'!H$11:J$1000,3,FALSE),1))=FALSE,COUNTA('Enrollment Form'!$AW886:$AZ886)=4),\"Y\",\"N\"))","v":"-"},{"$f":"IF($B879=\"N\",\"\",IF('Enrollment Form'!$B886=\"Subscriber\",\"-\",IF(COUNTA('Enrollment Form'!$BE886,'Enrollment Form'!$BG886)=2,\"Y\",\"N\")))","v":""},{"$f":"IF($B879=\"N\",\"\",IF(OR('Enrollment Form'!$AU886=\"\",'Enrollment Form'!$AU886=\"No\"),\"-\",IF(AND('Enrollment Form'!$AU886=\"Yes\",COUNTA('Enrollment Form'!$CK886)=1),\"Y\",\"N\")))","v":""},{"$f":"IF(OR('Enrollment Form'!$CK886=\"\",'Enrollment Form'!$CK886=\"No\"),\"-\",IF(COUNTA('Enrollment Form'!$CM886:$CN886)=2,\"Y\",\"N\"))","v":"-"},{"$f":"IF($B879=\"N\",\"\",IF(COUNTIF('Enrollment Form'!$CZ886:$DO886,\"Other\")=COUNTA('Enrollment Form'!$DF886,'Enrollment Form'!$DA886,'Enrollment Form'!$DK886,'Enrollment Form'!$DP886),\"Y\",\"N\"))","v":""},{"$f":"IF($B879=\"N\",\"\",IF(OR('Enrollment Form'!B886<>\"Subscriber\",'Enrollment Form'!C886=\"ROC\",COUNTIF('Enrollment Form'!AS886:AT886,\"Yes\")>=1),\"-\",IF(AND('Enrollment Form'!C886=\"Enroll\",COUNTIF('Enrollment Form'!AS886:AT886,\"No\")=2,'Enrollment Form'!AU886=\"\"),\"N\",\"Y\")))","v":""},{"$f":"IF(OR(B879=\"N\",'Enrollment Form'!B886<>\"Subscriber\",'Enrollment Form'!C886=\"ROC\",'Enrollment Form'!O886<>\"Multiple of Salary\"),\"-\",IF(COUNTA('Enrollment Form'!T886:U886)<2,\"N\",\"Y\"))","v":"-"},{"$f":"IF(B879=\"N\",\"\",IF(OR('Enrollment Form'!C886=\"ROC\",'Enrollment Form'!B886<>\"Subscriber\",'Enrollment Form'!O886=\"Waive\",'Enrollment Form'!O886=\"\"),\"-\",IF('Enrollment Form'!P886=\"\",\"N\",\"Y\")))","v":""},{"$f":"IF($B879=\"N\",\"\",IF(AND('Enrollment Form'!$C886=\"ROC\",'Enrollment Form'!$DS886<>\"\"),\"Y\",IF(AND('Enrollment Form'!$C886=\"ROC\",'Enrollment Form'!$DS886=\"\"),\"N\",IF(AND('Enrollment Form'!$C886=\"Enroll\",'Enrollment Form'!$B886=\"Subscriber\",'Enrollment Form'!$CQ886=\"No\",'Enrollment Form'!$DS886=\"\"),\"N\",IF(AND('Enrollment Form'!$C886=\"Enroll\",'Enrollment Form'!$B886=\"Subscriber\",'Enrollment Form'!$CQ886=\"Yes\"),\"-\",\"Y\")))))","v":""},{"$f":"IF($B879=\"N\",\"\",IF(AND('Enrollment Form'!$C886=\"ROC\",'Enrollment Form'!$DT886<>\"\"),\"Y\",IF(AND('Enrollment Form'!$C886=\"ROC\",'Enrollment Form'!$DT886=\"\"),\"N\",IF(AND('Enrollment Form'!$C886=\"Enroll\",'Enrollment Form'!$B886=\"Subscriber\",'Enrollment Form'!$CQ886=\"No\",'Enrollment Form'!$DT886=\"\"),\"N\",IF(AND('Enrollment Form'!$C886=\"Enroll\",'Enrollment Form'!$B886=\"Subscriber\",'Enrollment Form'!$CQ886=\"Yes\"),\"-\",\"Y\")))))","v":""},{"$f":"IF('Enrollment Form'!AH886=\"\",\"\",IF(ISERROR(SEARCH(\".\",'Enrollment Form'!AH886,SEARCH(\"@\",'Enrollment Form'!AH886))),\"N\",\"Y\"))","v":""},{"$f":"IF(OR($B879=\"N\",'Enrollment Form'!$G886=\"\"),\"\",IF('Enrollment Form'!$B886<>\"Subscriber\",\"-\",IF(COUNTIF('Enrollment Form'!$AS886:$AT886,\"Yes\")=2,\"N\",\"Y\")))","v":""},{"$f":"IF(OR('Enrollment Form'!$CC886=\"\",'Enrollment Form'!$CC886=\"No\"),\"-\",IF(AND('Enrollment Form'!$CC886=\"Yes\",'Enrollment Form'!$CD886=\"\"),\"N\",\"Y\"))","v":"-"},{"$f":"IF(OR('Enrollment Form'!$CE886=\"\",'Enrollment Form'!$CE886=\"No\"),\"-\",IF(AND('Enrollment Form'!$CE886=\"Yes\",'Enrollment Form'!$CF886=\"\"),\"N\",\"Y\"))","v":"-"},{"$f":"IF(OR('Enrollment Form'!$CG886=\"\",'Enrollment Form'!$CG886=\"No\"),\"-\",IF(AND('Enrollment Form'!$CG886=\"Yes\",'Enrollment Form'!$CH886=\"\"),\"N\",\"Y\"))","v":"-"},{"$f":"IF(OR('Enrollment Form'!$CG886=\"\",'Enrollment Form'!$CG886=\"No\"),\"-\",IF(AND('Enrollment Form'!$CG886=\"Yes\",'Enrollment Form'!$CI886=\"\"),\"N\",\"Y\"))","v":"-"},{"$f":"IF('Enrollment Form'!B886<>\"Subscriber\",\"-\",IF(AND('Enrollment Form'!B886=\"Subscriber\",'Enrollment Form'!C886=\"Enroll\",'Enrollment Form'!AA886=\"\"),\"N\",\"Y\"))","v":"-"},{"$f":"IF(OR('Enrollment Form'!B886=\"Subscriber\",'Enrollment Form'!B886=\"\"),\"-\",IF('Enrollment Form'!BI886=\"\",\"N\",\"Y\"))","v":"-"},{"$f":"IF('Enrollment Form'!B886<>\"Subscriber\",\"-\",IF(AND('Enrollment Form'!B886=\"Subscriber\",'Enrollment Form'!G886=\"\"),\"N\",\"Y\"))","v":"-"},{"$f":"IF('Enrollment Form'!A886=\"\",\"\",IF('Enrollment Form'!B886=\"Subscriber\",\"-\",IF(AND('Enrollment Form'!B886<>\"Subscriber\",'Enrollment Form'!G886='Enrollment Form'!H886),\"N\",\"Y\")))","v":""},0]
[887,{"$f":"IF('Enrollment Form'!$A887<>\"\",\"Y\",\"N\")","v":"N"},{"$f":"IF(AND('Enrollment Form'!$B887=\"\",'Enrollment Form'!$C887<>\"\"),\"N\",IF($B880=\"N\",\"\",\"Y\"))","v":""},{"$f":"IF(OR($B880=\"N\",'Enrollment Form'!G887=\"\"),\"\",IF('Enrollment Form'!$B887<>\"Subscriber\",\"\",IF('Enrollment Form'!$G887='Enrollment Form'!$H887,\"Y\",\"N\")))","v":""},{"$f":"IF($B880=\"N\",\"\",IF(AND(COUNTIFS('Enrollment Form'!$H$11:$H$1000,'Enrollment Form'!$H887,'Enrollment Form'!$B$11:$B$1000,'Enrollment Form'!$B887)>1,'Enrollment Form'!$H887<>\"\"),\"N\",\"Y\"))","v":""},{"$f":"IF($B880=\"N\",\"\",IF(LEN('Enrollment Form'!$Y887)=0,\"\",IF(LEN('Enrollment Form'!$Y887)<>5,\"N\",\"Y\")))","v":""},{"$f":"IF($B880=\"N\",\"\",IF(LEN('Enrollment Form'!$AD887=0),\"\",IF(LEN('Enrollment Form'!$AD887)<>5,\"N\",\"Y\")))","v":""},{"$f":"IF($B880=\"N\",\"\",IF(LEN('Enrollment Form'!$BL887=0),\"\",IF(LEN('Enrollment Form'!$BL887)<>5,\"N\",\"Y\")))","v":""},{"$f":"IF($B880=\"N\",\"\",IF(LEN('Enrollment Form'!$AE887)=0,\"\",IF(LEN('Enrollment Form'!$AE887)<>10,\"N\",\"Y\")))","v":""},{"$f":"IF($B880=\"N\",\"\",IF(LEN('Enrollment Form'!$AF887)=0,\"\",IF(LEN('Enrollment Form'!$AF887)<>10,\"N\",\"Y\")))","v":""},{"$f":"IF('Enrollment Form'!$O887<>\"Graded\",\"-\",IF(AND('Enrollment Form'!$O887=\"Graded\",'Enrollment Form'!$AO887<>\"\"),\"Y\",\"N\"))","v":"-"},{"$f":"IF($B880=\"N\",\"\",IF(OR('Enrollment Form'!$B887<>\"Subscriber\",'Enrollment Form'!$C887=\"ROC\"),\"-\",IF(AND('Enrollment Form'!$B887=\"Subscriber\",'Enrollment Form'!$C887=\"Enroll\",'Enrollment Form'!$AJ887<>\"\"),\"Y\",\"N\")))","v":""},{"$f":"IF($B880=\"N\",\"\",IF(OR('Enrollment Form'!$B887<>\"Subscriber\",'Enrollment Form'!$C887=\"ROC\"),\"-\",IF(AND('Enrollment Form'!$B887=\"Subscriber\",'Enrollment Form'!$C887=\"Enroll\",'Enrollment Form'!$AK887<>\"\"),\"Y\",\"N\")))","v":""},{"$f":"IF($B880=\"N\",\"\",IF(OR('Enrollment Form'!$B887<>\"Subscriber\",'Enrollment Form'!$C887=\"ROC\"),\"-\",IF(AND('Enrollment Form'!$B887=\"Subscriber\",'Enrollment Form'!$C887=\"Enroll\",'Enrollment Form'!$AL887<>\"\"),\"Y\",\"N\")))","v":""},{"$f":"IF($B880=\"N\",\"\",IF(OR('Enrollment Form'!$B887<>\"Subscriber\",'Enrollment Form'!$C887=\"ROC\"),\"-\",IF(AND('Enrollment Form'!$B887=\"Subscriber\",'Enrollment Form'!$C887=\"Enroll\",'Enrollment Form'!$AM887<>\"\"),\"Y\",\"N\")))","v":""},{"$f":"IF($B880=\"N\",\"\",IF(OR('Enrollment Form'!$B887<>\"Subscriber\",'Enrollment Form'!$C887=\"ROC\"),\"-\",IF(AND('Enrollment Form'!$B887=\"Subscriber\",'Enrollment Form'!$C887=\"Enroll\",'Enrollment Form'!$AN887<>\"\"),\"Y\",\"N\")))","v":""},{"$f":"IF($B880=\"N\",\"\",IF(OR('Enrollment Form'!$B887<>\"Subscriber\",'Enrollment Form'!$C887=\"ROC\"),\"-\",IF(AND('Enrollment Form'!$B887=\"Subscriber\",'Enrollment Form'!$C887=\"Enroll\",'Enrollment Form'!$AP887<>\"\"),\"Y\",\"N\")))","v":""},{"$f":"IF($B880=\"N\",\"\",IF($Q880=\"-\",\"-\",IF(AND($Q880=\"Y\",'Enrollment Form'!$AP887=\"No\"),\"-\",IF(AND($Q880=\"Y\",'Enrollment Form'!$AP887=\"Yes\",'Enrollment Form'!$AQ887<>\"\"),\"Y\",\"N\"))))","v":""},{"$f":"IF($B880=\"N\",\"\",IF(OR('Enrollment Form'!$B887<>\"Subscriber\",'Enrollment Form'!$C887=\"ROC\"),\"-\",IF(AND('Enrollment Form'!$B887=\"Subscriber\",'Enrollment Form'!$C887=\"Enroll\",'Enrollment Form'!$CO887<>\"\"),\"Y\",\"N\")))","v":""},{"$f":"IF($B880=\"N\",\"\",IF($S880=\"-\",\"-\",IF(AND($S880=\"Y\",'Enrollment Form'!$CO887=\"No\"),\"-\",IF(AND($S880=\"Y\",'Enrollment Form'!$CO887=\"Yes\",'Enrollment Form'!$CP887<>\"\"),\"Y\",\"N\"))))","v":""},{"$f":"IF(OR('Enrollment Form'!$AV887=\"Yes\",'Enrollment Form'!$AV887=\"\"),\"-\",IF(AND('Enrollment Form'!$AV887=\"No\",ISERROR(FIND(\"HMO\",VLOOKUP('Enrollment Form'!G887,'Enrollment Form'!H$11:J$1000,3,FALSE),1))=FALSE,COUNTA('Enrollment Form'!$AW887:$AZ887)=4),\"Y\",\"N\"))","v":"-"},{"$f":"IF($B880=\"N\",\"\",IF('Enrollment Form'!$B887=\"Subscriber\",\"-\",IF(COUNTA('Enrollment Form'!$BE887,'Enrollment Form'!$BG887)=2,\"Y\",\"N\")))","v":""},{"$f":"IF($B880=\"N\",\"\",IF(OR('Enrollment Form'!$AU887=\"\",'Enrollment Form'!$AU887=\"No\"),\"-\",IF(AND('Enrollment Form'!$AU887=\"Yes\",COUNTA('Enrollment Form'!$CK887)=1),\"Y\",\"N\")))","v":""},{"$f":"IF(OR('Enrollment Form'!$CK887=\"\",'Enrollment Form'!$CK887=\"No\"),\"-\",IF(COUNTA('Enrollment Form'!$CM887:$CN887)=2,\"Y\",\"N\"))","v":"-"},{"$f":"IF($B880=\"N\",\"\",IF(COUNTIF('Enrollment Form'!$CZ887:$DO887,\"Other\")=COUNTA('Enrollment Form'!$DF887,'Enrollment Form'!$DA887,'Enrollment Form'!$DK887,'Enrollment Form'!$DP887),\"Y\",\"N\"))","v":""},{"$f":"IF($B880=\"N\",\"\",IF(OR('Enrollment Form'!B887<>\"Subscriber\",'Enrollment Form'!C887=\"ROC\",COUNTIF('Enrollment Form'!AS887:AT887,\"Yes\")>=1),\"-\",IF(AND('Enrollment Form'!C887=\"Enroll\",COUNTIF('Enrollment Form'!AS887:AT887,\"No\")=2,'Enrollment Form'!AU887=\"\"),\"N\",\"Y\")))","v":""},{"$f":"IF(OR(B880=\"N\",'Enrollment Form'!B887<>\"Subscriber\",'Enrollment Form'!C887=\"ROC\",'Enrollment Form'!O887<>\"Multiple of Salary\"),\"-\",IF(COUNTA('Enrollment Form'!T887:U887)<2,\"N\",\"Y\"))","v":"-"},{"$f":"IF(B880=\"N\",\"\",IF(OR('Enrollment Form'!C887=\"ROC\",'Enrollment Form'!B887<>\"Subscriber\",'Enrollment Form'!O887=\"Waive\",'Enrollment Form'!O887=\"\"),\"-\",IF('Enrollment Form'!P887=\"\",\"N\",\"Y\")))","v":""},{"$f":"IF($B880=\"N\",\"\",IF(AND('Enrollment Form'!$C887=\"ROC\",'Enrollment Form'!$DS887<>\"\"),\"Y\",IF(AND('Enrollment Form'!$C887=\"ROC\",'Enrollment Form'!$DS887=\"\"),\"N\",IF(AND('Enrollment Form'!$C887=\"Enroll\",'Enrollment Form'!$B887=\"Subscriber\",'Enrollment Form'!$CQ887=\"No\",'Enrollment Form'!$DS887=\"\"),\"N\",IF(AND('Enrollment Form'!$C887=\"Enroll\",'Enrollment Form'!$B887=\"Subscriber\",'Enrollment Form'!$CQ887=\"Yes\"),\"-\",\"Y\")))))","v":""},{"$f":"IF($B880=\"N\",\"\",IF(AND('Enrollment Form'!$C887=\"ROC\",'Enrollment Form'!$DT887<>\"\"),\"Y\",IF(AND('Enrollment Form'!$C887=\"ROC\",'Enrollment Form'!$DT887=\"\"),\"N\",IF(AND('Enrollment Form'!$C887=\"Enroll\",'Enrollment Form'!$B887=\"Subscriber\",'Enrollment Form'!$CQ887=\"No\",'Enrollment Form'!$DT887=\"\"),\"N\",IF(AND('Enrollment Form'!$C887=\"Enroll\",'Enrollment Form'!$B887=\"Subscriber\",'Enrollment Form'!$CQ887=\"Yes\"),\"-\",\"Y\")))))","v":""},{"$f":"IF('Enrollment Form'!AH887=\"\",\"\",IF(ISERROR(SEARCH(\".\",'Enrollment Form'!AH887,SEARCH(\"@\",'Enrollment Form'!AH887))),\"N\",\"Y\"))","v":""},{"$f":"IF(OR($B880=\"N\",'Enrollment Form'!$G887=\"\"),\"\",IF('Enrollment Form'!$B887<>\"Subscriber\",\"-\",IF(COUNTIF('Enrollment Form'!$AS887:$AT887,\"Yes\")=2,\"N\",\"Y\")))","v":""},{"$f":"IF(OR('Enrollment Form'!$CC887=\"\",'Enrollment Form'!$CC887=\"No\"),\"-\",IF(AND('Enrollment Form'!$CC887=\"Yes\",'Enrollment Form'!$CD887=\"\"),\"N\",\"Y\"))","v":"-"},{"$f":"IF(OR('Enrollment Form'!$CE887=\"\",'Enrollment Form'!$CE887=\"No\"),\"-\",IF(AND('Enrollment Form'!$CE887=\"Yes\",'Enrollment Form'!$CF887=\"\"),\"N\",\"Y\"))","v":"-"},{"$f":"IF(OR('Enrollment Form'!$CG887=\"\",'Enrollment Form'!$CG887=\"No\"),\"-\",IF(AND('Enrollment Form'!$CG887=\"Yes\",'Enrollment Form'!$CH887=\"\"),\"N\",\"Y\"))","v":"-"},{"$f":"IF(OR('Enrollment Form'!$CG887=\"\",'Enrollment Form'!$CG887=\"No\"),\"-\",IF(AND('Enrollment Form'!$CG887=\"Yes\",'Enrollment Form'!$CI887=\"\"),\"N\",\"Y\"))","v":"-"},{"$f":"IF('Enrollment Form'!B887<>\"Subscriber\",\"-\",IF(AND('Enrollment Form'!B887=\"Subscriber\",'Enrollment Form'!C887=\"Enroll\",'Enrollment Form'!AA887=\"\"),\"N\",\"Y\"))","v":"-"},{"$f":"IF(OR('Enrollment Form'!B887=\"Subscriber\",'Enrollment Form'!B887=\"\"),\"-\",IF('Enrollment Form'!BI887=\"\",\"N\",\"Y\"))","v":"-"},{"$f":"IF('Enrollment Form'!B887<>\"Subscriber\",\"-\",IF(AND('Enrollment Form'!B887=\"Subscriber\",'Enrollment Form'!G887=\"\"),\"N\",\"Y\"))","v":"-"},{"$f":"IF('Enrollment Form'!A887=\"\",\"\",IF('Enrollment Form'!B887=\"Subscriber\",\"-\",IF(AND('Enrollment Form'!B887<>\"Subscriber\",'Enrollment Form'!G887='Enrollment Form'!H887),\"N\",\"Y\")))","v":""},0]
[888,{"$f":"IF('Enrollment Form'!$A888<>\"\",\"Y\",\"N\")","v":"N"},{"$f":"IF(AND('Enrollment Form'!$B888=\"\",'Enrollment Form'!$C888<>\"\"),\"N\",IF($B881=\"N\",\"\",\"Y\"))","v":""},{"$f":"IF(OR($B881=\"N\",'Enrollment Form'!G888=\"\"),\"\",IF('Enrollment Form'!$B888<>\"Subscriber\",\"\",IF('Enrollment Form'!$G888='Enrollment Form'!$H888,\"Y\",\"N\")))","v":""},{"$f":"IF($B881=\"N\",\"\",IF(AND(COUNTIFS('Enrollment Form'!$H$11:$H$1000,'Enrollment Form'!$H888,'Enrollment Form'!$B$11:$B$1000,'Enrollment Form'!$B888)>1,'Enrollment Form'!$H888<>\"\"),\"N\",\"Y\"))","v":""},{"$f":"IF($B881=\"N\",\"\",IF(LEN('Enrollment Form'!$Y888)=0,\"\",IF(LEN('Enrollment Form'!$Y888)<>5,\"N\",\"Y\")))","v":""},{"$f":"IF($B881=\"N\",\"\",IF(LEN('Enrollment Form'!$AD888=0),\"\",IF(LEN('Enrollment Form'!$AD888)<>5,\"N\",\"Y\")))","v":""},{"$f":"IF($B881=\"N\",\"\",IF(LEN('Enrollment Form'!$BL888=0),\"\",IF(LEN('Enrollment Form'!$BL888)<>5,\"N\",\"Y\")))","v":""},{"$f":"IF($B881=\"N\",\"\",IF(LEN('Enrollment Form'!$AE888)=0,\"\",IF(LEN('Enrollment Form'!$AE888)<>10,\"N\",\"Y\")))","v":""},{"$f":"IF($B881=\"N\",\"\",IF(LEN('Enrollment Form'!$AF888)=0,\"\",IF(LEN('Enrollment Form'!$AF888)<>10,\"N\",\"Y\")))","v":""},{"$f":"IF('Enrollment Form'!$O888<>\"Graded\",\"-\",IF(AND('Enrollment Form'!$O888=\"Graded\",'Enrollment Form'!$AO888<>\"\"),\"Y\",\"N\"))","v":"-"},{"$f":"IF($B881=\"N\",\"\",IF(OR('Enrollment Form'!$B888<>\"Subscriber\",'Enrollment Form'!$C888=\"ROC\"),\"-\",IF(AND('Enrollment Form'!$B888=\"Subscriber\",'Enrollment Form'!$C888=\"Enroll\",'Enrollment Form'!$AJ888<>\"\"),\"Y\",\"N\")))","v":""},{"$f":"IF($B881=\"N\",\"\",IF(OR('Enrollment Form'!$B888<>\"Subscriber\",'Enrollment Form'!$C888=\"ROC\"),\"-\",IF(AND('Enrollment Form'!$B888=\"Subscriber\",'Enrollment Form'!$C888=\"Enroll\",'Enrollment Form'!$AK888<>\"\"),\"Y\",\"N\")))","v":""},{"$f":"IF($B881=\"N\",\"\",IF(OR('Enrollment Form'!$B888<>\"Subscriber\",'Enrollment Form'!$C888=\"ROC\"),\"-\",IF(AND('Enrollment Form'!$B888=\"Subscriber\",'Enrollment Form'!$C888=\"Enroll\",'Enrollment Form'!$AL888<>\"\"),\"Y\",\"N\")))","v":""},{"$f":"IF($B881=\"N\",\"\",IF(OR('Enrollment Form'!$B888<>\"Subscriber\",'Enrollment Form'!$C888=\"ROC\"),\"-\",IF(AND('Enrollment Form'!$B888=\"Subscriber\",'Enrollment Form'!$C888=\"Enroll\",'Enrollment Form'!$AM888<>\"\"),\"Y\",\"N\")))","v":""},{"$f":"IF($B881=\"N\",\"\",IF(OR('Enrollment Form'!$B888<>\"Subscriber\",'Enrollment Form'!$C888=\"ROC\"),\"-\",IF(AND('Enrollment Form'!$B888=\"Subscriber\",'Enrollment Form'!$C888=\"Enroll\",'Enrollment Form'!$AN888<>\"\"),\"Y\",\"N\")))","v":""},{"$f":"IF($B881=\"N\",\"\",IF(OR('Enrollment Form'!$B888<>\"Subscriber\",'Enrollment Form'!$C888=\"ROC\"),\"-\",IF(AND('Enrollment Form'!$B888=\"Subscriber\",'Enrollment Form'!$C888=\"Enroll\",'Enrollment Form'!$AP888<>\"\"),\"Y\",\"N\")))","v":""},{"$f":"IF($B881=\"N\",\"\",IF($Q881=\"-\",\"-\",IF(AND($Q881=\"Y\",'Enrollment Form'!$AP888=\"No\"),\"-\",IF(AND($Q881=\"Y\",'Enrollment Form'!$AP888=\"Yes\",'Enrollment Form'!$AQ888<>\"\"),\"Y\",\"N\"))))","v":""},{"$f":"IF($B881=\"N\",\"\",IF(OR('Enrollment Form'!$B888<>\"Subscriber\",'Enrollment Form'!$C888=\"ROC\"),\"-\",IF(AND('Enrollment Form'!$B888=\"Subscriber\",'Enrollment Form'!$C888=\"Enroll\",'Enrollment Form'!$CO888<>\"\"),\"Y\",\"N\")))","v":""},{"$f":"IF($B881=\"N\",\"\",IF($S881=\"-\",\"-\",IF(AND($S881=\"Y\",'Enrollment Form'!$CO888=\"No\"),\"-\",IF(AND($S881=\"Y\",'Enrollment Form'!$CO888=\"Yes\",'Enrollment Form'!$CP888<>\"\"),\"Y\",\"N\"))))","v":""},{"$f":"IF(OR('Enrollment Form'!$AV888=\"Yes\",'Enrollment Form'!$AV888=\"\"),\"-\",IF(AND('Enrollment Form'!$AV888=\"No\",ISERROR(FIND(\"HMO\",VLOOKUP('Enrollment Form'!G888,'Enrollment Form'!H$11:J$1000,3,FALSE),1))=FALSE,COUNTA('Enrollment Form'!$AW888:$AZ888)=4),\"Y\",\"N\"))","v":"-"},{"$f":"IF($B881=\"N\",\"\",IF('Enrollment Form'!$B888=\"Subscriber\",\"-\",IF(COUNTA('Enrollment Form'!$BE888,'Enrollment Form'!$BG888)=2,\"Y\",\"N\")))","v":""},{"$f":"IF($B881=\"N\",\"\",IF(OR('Enrollment Form'!$AU888=\"\",'Enrollment Form'!$AU888=\"No\"),\"-\",IF(AND('Enrollment Form'!$AU888=\"Yes\",COUNTA('Enrollment Form'!$CK888)=1),\"Y\",\"N\")))","v":""},{"$f":"IF(OR('Enrollment Form'!$CK888=\"\",'Enrollment Form'!$CK888=\"No\"),\"-\",IF(COUNTA('Enrollment Form'!$CM888:$CN888)=2,\"Y\",\"N\"))","v":"-"},{"$f":"IF($B881=\"N\",\"\",IF(COUNTIF('Enrollment Form'!$CZ888:$DO888,\"Other\")=COUNTA('Enrollment Form'!$DF888,'Enrollment Form'!$DA888,'Enrollment Form'!$DK888,'Enrollment Form'!$DP888),\"Y\",\"N\"))","v":""},{"$f":"IF($B881=\"N\",\"\",IF(OR('Enrollment Form'!B888<>\"Subscriber\",'Enrollment Form'!C888=\"ROC\",COUNTIF('Enrollment Form'!AS888:AT888,\"Yes\")>=1),\"-\",IF(AND('Enrollment Form'!C888=\"Enroll\",COUNTIF('Enrollment Form'!AS888:AT888,\"No\")=2,'Enrollment Form'!AU888=\"\"),\"N\",\"Y\")))","v":""},{"$f":"IF(OR(B881=\"N\",'Enrollment Form'!B888<>\"Subscriber\",'Enrollment Form'!C888=\"ROC\",'Enrollment Form'!O888<>\"Multiple of Salary\"),\"-\",IF(COUNTA('Enrollment Form'!T888:U888)<2,\"N\",\"Y\"))","v":"-"},{"$f":"IF(B881=\"N\",\"\",IF(OR('Enrollment Form'!C888=\"ROC\",'Enrollment Form'!B888<>\"Subscriber\",'Enrollment Form'!O888=\"Waive\",'Enrollment Form'!O888=\"\"),\"-\",IF('Enrollment Form'!P888=\"\",\"N\",\"Y\")))","v":""},{"$f":"IF($B881=\"N\",\"\",IF(AND('Enrollment Form'!$C888=\"ROC\",'Enrollment Form'!$DS888<>\"\"),\"Y\",IF(AND('Enrollment Form'!$C888=\"ROC\",'Enrollment Form'!$DS888=\"\"),\"N\",IF(AND('Enrollment Form'!$C888=\"Enroll\",'Enrollment Form'!$B888=\"Subscriber\",'Enrollment Form'!$CQ888=\"No\",'Enrollment Form'!$DS888=\"\"),\"N\",IF(AND('Enrollment Form'!$C888=\"Enroll\",'Enrollment Form'!$B888=\"Subscriber\",'Enrollment Form'!$CQ888=\"Yes\"),\"-\",\"Y\")))))","v":""},{"$f":"IF($B881=\"N\",\"\",IF(AND('Enrollment Form'!$C888=\"ROC\",'Enrollment Form'!$DT888<>\"\"),\"Y\",IF(AND('Enrollment Form'!$C888=\"ROC\",'Enrollment Form'!$DT888=\"\"),\"N\",IF(AND('Enrollment Form'!$C888=\"Enroll\",'Enrollment Form'!$B888=\"Subscriber\",'Enrollment Form'!$CQ888=\"No\",'Enrollment Form'!$DT888=\"\"),\"N\",IF(AND('Enrollment Form'!$C888=\"Enroll\",'Enrollment Form'!$B888=\"Subscriber\",'Enrollment Form'!$CQ888=\"Yes\"),\"-\",\"Y\")))))","v":""},{"$f":"IF('Enrollment Form'!AH888=\"\",\"\",IF(ISERROR(SEARCH(\".\",'Enrollment Form'!AH888,SEARCH(\"@\",'Enrollment Form'!AH888))),\"N\",\"Y\"))","v":""},{"$f":"IF(OR($B881=\"N\",'Enrollment Form'!$G888=\"\"),\"\",IF('Enrollment Form'!$B888<>\"Subscriber\",\"-\",IF(COUNTIF('Enrollment Form'!$AS888:$AT888,\"Yes\")=2,\"N\",\"Y\")))","v":""},{"$f":"IF(OR('Enrollment Form'!$CC888=\"\",'Enrollment Form'!$CC888=\"No\"),\"-\",IF(AND('Enrollment Form'!$CC888=\"Yes\",'Enrollment Form'!$CD888=\"\"),\"N\",\"Y\"))","v":"-"},{"$f":"IF(OR('Enrollment Form'!$CE888=\"\",'Enrollment Form'!$CE888=\"No\"),\"-\",IF(AND('Enrollment Form'!$CE888=\"Yes\",'Enrollment Form'!$CF888=\"\"),\"N\",\"Y\"))","v":"-"},{"$f":"IF(OR('Enrollment Form'!$CG888=\"\",'Enrollment Form'!$CG888=\"No\"),\"-\",IF(AND('Enrollment Form'!$CG888=\"Yes\",'Enrollment Form'!$CH888=\"\"),\"N\",\"Y\"))","v":"-"},{"$f":"IF(OR('Enrollment Form'!$CG888=\"\",'Enrollment Form'!$CG888=\"No\"),\"-\",IF(AND('Enrollment Form'!$CG888=\"Yes\",'Enrollment Form'!$CI888=\"\"),\"N\",\"Y\"))","v":"-"},{"$f":"IF('Enrollment Form'!B888<>\"Subscriber\",\"-\",IF(AND('Enrollment Form'!B888=\"Subscriber\",'Enrollment Form'!C888=\"Enroll\",'Enrollment Form'!AA888=\"\"),\"N\",\"Y\"))","v":"-"},{"$f":"IF(OR('Enrollment Form'!B888=\"Subscriber\",'Enrollment Form'!B888=\"\"),\"-\",IF('Enrollment Form'!BI888=\"\",\"N\",\"Y\"))","v":"-"},{"$f":"IF('Enrollment Form'!B888<>\"Subscriber\",\"-\",IF(AND('Enrollment Form'!B888=\"Subscriber\",'Enrollment Form'!G888=\"\"),\"N\",\"Y\"))","v":"-"},{"$f":"IF('Enrollment Form'!A888=\"\",\"\",IF('Enrollment Form'!B888=\"Subscriber\",\"-\",IF(AND('Enrollment Form'!B888<>\"Subscriber\",'Enrollment Form'!G888='Enrollment Form'!H888),\"N\",\"Y\")))","v":""},0]
[889,{"$f":"IF('Enrollment Form'!$A889<>\"\",\"Y\",\"N\")","v":"N"},{"$f":"IF(AND('Enrollment Form'!$B889=\"\",'Enrollment Form'!$C889<>\"\"),\"N\",IF($B882=\"N\",\"\",\"Y\"))","v":""},{"$f":"IF(OR($B882=\"N\",'Enrollment Form'!G889=\"\"),\"\",IF('Enrollment Form'!$B889<>\"Subscriber\",\"\",IF('Enrollment Form'!$G889='Enrollment Form'!$H889,\"Y\",\"N\")))","v":""},{"$f":"IF($B882=\"N\",\"\",IF(AND(COUNTIFS('Enrollment Form'!$H$11:$H$1000,'Enrollment Form'!$H889,'Enrollment Form'!$B$11:$B$1000,'Enrollment Form'!$B889)>1,'Enrollment Form'!$H889<>\"\"),\"N\",\"Y\"))","v":""},{"$f":"IF($B882=\"N\",\"\",IF(LEN('Enrollment Form'!$Y889)=0,\"\",IF(LEN('Enrollment Form'!$Y889)<>5,\"N\",\"Y\")))","v":""},{"$f":"IF($B882=\"N\",\"\",IF(LEN('Enrollment Form'!$AD889=0),\"\",IF(LEN('Enrollment Form'!$AD889)<>5,\"N\",\"Y\")))","v":""},{"$f":"IF($B882=\"N\",\"\",IF(LEN('Enrollment Form'!$BL889=0),\"\",IF(LEN('Enrollment Form'!$BL889)<>5,\"N\",\"Y\")))","v":""},{"$f":"IF($B882=\"N\",\"\",IF(LEN('Enrollment Form'!$AE889)=0,\"\",IF(LEN('Enrollment Form'!$AE889)<>10,\"N\",\"Y\")))","v":""},{"$f":"IF($B882=\"N\",\"\",IF(LEN('Enrollment Form'!$AF889)=0,\"\",IF(LEN('Enrollment Form'!$AF889)<>10,\"N\",\"Y\")))","v":""},{"$f":"IF('Enrollment Form'!$O889<>\"Graded\",\"-\",IF(AND('Enrollment Form'!$O889=\"Graded\",'Enrollment Form'!$AO889<>\"\"),\"Y\",\"N\"))","v":"-"},{"$f":"IF($B882=\"N\",\"\",IF(OR('Enrollment Form'!$B889<>\"Subscriber\",'Enrollment Form'!$C889=\"ROC\"),\"-\",IF(AND('Enrollment Form'!$B889=\"Subscriber\",'Enrollment Form'!$C889=\"Enroll\",'Enrollment Form'!$AJ889<>\"\"),\"Y\",\"N\")))","v":""},{"$f":"IF($B882=\"N\",\"\",IF(OR('Enrollment Form'!$B889<>\"Subscriber\",'Enrollment Form'!$C889=\"ROC\"),\"-\",IF(AND('Enrollment Form'!$B889=\"Subscriber\",'Enrollment Form'!$C889=\"Enroll\",'Enrollment Form'!$AK889<>\"\"),\"Y\",\"N\")))","v":""},{"$f":"IF($B882=\"N\",\"\",IF(OR('Enrollment Form'!$B889<>\"Subscriber\",'Enrollment Form'!$C889=\"ROC\"),\"-\",IF(AND('Enrollment Form'!$B889=\"Subscriber\",'Enrollment Form'!$C889=\"Enroll\",'Enrollment Form'!$AL889<>\"\"),\"Y\",\"N\")))","v":""},{"$f":"IF($B882=\"N\",\"\",IF(OR('Enrollment Form'!$B889<>\"Subscriber\",'Enrollment Form'!$C889=\"ROC\"),\"-\",IF(AND('Enrollment Form'!$B889=\"Subscriber\",'Enrollment Form'!$C889=\"Enroll\",'Enrollment Form'!$AM889<>\"\"),\"Y\",\"N\")))","v":""},{"$f":"IF($B882=\"N\",\"\",IF(OR('Enrollment Form'!$B889<>\"Subscriber\",'Enrollment Form'!$C889=\"ROC\"),\"-\",IF(AND('Enrollment Form'!$B889=\"Subscriber\",'Enrollment Form'!$C889=\"Enroll\",'Enrollment Form'!$AN889<>\"\"),\"Y\",\"N\")))","v":""},{"$f":"IF($B882=\"N\",\"\",IF(OR('Enrollment Form'!$B889<>\"Subscriber\",'Enrollment Form'!$C889=\"ROC\"),\"-\",IF(AND('Enrollment Form'!$B889=\"Subscriber\",'Enrollment Form'!$C889=\"Enroll\",'Enrollment Form'!$AP889<>\"\"),\"Y\",\"N\")))","v":""},{"$f":"IF($B882=\"N\",\"\",IF($Q882=\"-\",\"-\",IF(AND($Q882=\"Y\",'Enrollment Form'!$AP889=\"No\"),\"-\",IF(AND($Q882=\"Y\",'Enrollment Form'!$AP889=\"Yes\",'Enrollment Form'!$AQ889<>\"\"),\"Y\",\"N\"))))","v":""},{"$f":"IF($B882=\"N\",\"\",IF(OR('Enrollment Form'!$B889<>\"Subscriber\",'Enrollment Form'!$C889=\"ROC\"),\"-\",IF(AND('Enrollment Form'!$B889=\"Subscriber\",'Enrollment Form'!$C889=\"Enroll\",'Enrollment Form'!$CO889<>\"\"),\"Y\",\"N\")))","v":""},{"$f":"IF($B882=\"N\",\"\",IF($S882=\"-\",\"-\",IF(AND($S882=\"Y\",'Enrollment Form'!$CO889=\"No\"),\"-\",IF(AND($S882=\"Y\",'Enrollment Form'!$CO889=\"Yes\",'Enrollment Form'!$CP889<>\"\"),\"Y\",\"N\"))))","v":""},{"$f":"IF(OR('Enrollment Form'!$AV889=\"Yes\",'Enrollment Form'!$AV889=\"\"),\"-\",IF(AND('Enrollment Form'!$AV889=\"No\",ISERROR(FIND(\"HMO\",VLOOKUP('Enrollment Form'!G889,'Enrollment Form'!H$11:J$1000,3,FALSE),1))=FALSE,COUNTA('Enrollment Form'!$AW889:$AZ889)=4),\"Y\",\"N\"))","v":"-"},{"$f":"IF($B882=\"N\",\"\",IF('Enrollment Form'!$B889=\"Subscriber\",\"-\",IF(COUNTA('Enrollment Form'!$BE889,'Enrollment Form'!$BG889)=2,\"Y\",\"N\")))","v":""},{"$f":"IF($B882=\"N\",\"\",IF(OR('Enrollment Form'!$AU889=\"\",'Enrollment Form'!$AU889=\"No\"),\"-\",IF(AND('Enrollment Form'!$AU889=\"Yes\",COUNTA('Enrollment Form'!$CK889)=1),\"Y\",\"N\")))","v":""},{"$f":"IF(OR('Enrollment Form'!$CK889=\"\",'Enrollment Form'!$CK889=\"No\"),\"-\",IF(COUNTA('Enrollment Form'!$CM889:$CN889)=2,\"Y\",\"N\"))","v":"-"},{"$f":"IF($B882=\"N\",\"\",IF(COUNTIF('Enrollment Form'!$CZ889:$DO889,\"Other\")=COUNTA('Enrollment Form'!$DF889,'Enrollment Form'!$DA889,'Enrollment Form'!$DK889,'Enrollment Form'!$DP889),\"Y\",\"N\"))","v":""},{"$f":"IF($B882=\"N\",\"\",IF(OR('Enrollment Form'!B889<>\"Subscriber\",'Enrollment Form'!C889=\"ROC\",COUNTIF('Enrollment Form'!AS889:AT889,\"Yes\")>=1),\"-\",IF(AND('Enrollment Form'!C889=\"Enroll\",COUNTIF('Enrollment Form'!AS889:AT889,\"No\")=2,'Enrollment Form'!AU889=\"\"),\"N\",\"Y\")))","v":""},{"$f":"IF(OR(B882=\"N\",'Enrollment Form'!B889<>\"Subscriber\",'Enrollment Form'!C889=\"ROC\",'Enrollment Form'!O889<>\"Multiple of Salary\"),\"-\",IF(COUNTA('Enrollment Form'!T889:U889)<2,\"N\",\"Y\"))","v":"-"},{"$f":"IF(B882=\"N\",\"\",IF(OR('Enrollment Form'!C889=\"ROC\",'Enrollment Form'!B889<>\"Subscriber\",'Enrollment Form'!O889=\"Waive\",'Enrollment Form'!O889=\"\"),\"-\",IF('Enrollment Form'!P889=\"\",\"N\",\"Y\")))","v":""},{"$f":"IF($B882=\"N\",\"\",IF(AND('Enrollment Form'!$C889=\"ROC\",'Enrollment Form'!$DS889<>\"\"),\"Y\",IF(AND('Enrollment Form'!$C889=\"ROC\",'Enrollment Form'!$DS889=\"\"),\"N\",IF(AND('Enrollment Form'!$C889=\"Enroll\",'Enrollment Form'!$B889=\"Subscriber\",'Enrollment Form'!$CQ889=\"No\",'Enrollment Form'!$DS889=\"\"),\"N\",IF(AND('Enrollment Form'!$C889=\"Enroll\",'Enrollment Form'!$B889=\"Subscriber\",'Enrollment Form'!$CQ889=\"Yes\"),\"-\",\"Y\")))))","v":""},{"$f":"IF($B882=\"N\",\"\",IF(AND('Enrollment Form'!$C889=\"ROC\",'Enrollment Form'!$DT889<>\"\"),\"Y\",IF(AND('Enrollment Form'!$C889=\"ROC\",'Enrollment Form'!$DT889=\"\"),\"N\",IF(AND('Enrollment Form'!$C889=\"Enroll\",'Enrollment Form'!$B889=\"Subscriber\",'Enrollment Form'!$CQ889=\"No\",'Enrollment Form'!$DT889=\"\"),\"N\",IF(AND('Enrollment Form'!$C889=\"Enroll\",'Enrollment Form'!$B889=\"Subscriber\",'Enrollment Form'!$CQ889=\"Yes\"),\"-\",\"Y\")))))","v":""},{"$f":"IF('Enrollment Form'!AH889=\"\",\"\",IF(ISERROR(SEARCH(\".\",'Enrollment Form'!AH889,SEARCH(\"@\",'Enrollment Form'!AH889))),\"N\",\"Y\"))","v":""},{"$f":"IF(OR($B882=\"N\",'Enrollment Form'!$G889=\"\"),\"\",IF('Enrollment Form'!$B889<>\"Subscriber\",\"-\",IF(COUNTIF('Enrollment Form'!$AS889:$AT889,\"Yes\")=2,\"N\",\"Y\")))","v":""},{"$f":"IF(OR('Enrollment Form'!$CC889=\"\",'Enrollment Form'!$CC889=\"No\"),\"-\",IF(AND('Enrollment Form'!$CC889=\"Yes\",'Enrollment Form'!$CD889=\"\"),\"N\",\"Y\"))","v":"-"},{"$f":"IF(OR('Enrollment Form'!$CE889=\"\",'Enrollment Form'!$CE889=\"No\"),\"-\",IF(AND('Enrollment Form'!$CE889=\"Yes\",'Enrollment Form'!$CF889=\"\"),\"N\",\"Y\"))","v":"-"},{"$f":"IF(OR('Enrollment Form'!$CG889=\"\",'Enrollment Form'!$CG889=\"No\"),\"-\",IF(AND('Enrollment Form'!$CG889=\"Yes\",'Enrollment Form'!$CH889=\"\"),\"N\",\"Y\"))","v":"-"},{"$f":"IF(OR('Enrollment Form'!$CG889=\"\",'Enrollment Form'!$CG889=\"No\"),\"-\",IF(AND('Enrollment Form'!$CG889=\"Yes\",'Enrollment Form'!$CI889=\"\"),\"N\",\"Y\"))","v":"-"},{"$f":"IF('Enrollment Form'!B889<>\"Subscriber\",\"-\",IF(AND('Enrollment Form'!B889=\"Subscriber\",'Enrollment Form'!C889=\"Enroll\",'Enrollment Form'!AA889=\"\"),\"N\",\"Y\"))","v":"-"},{"$f":"IF(OR('Enrollment Form'!B889=\"Subscriber\",'Enrollment Form'!B889=\"\"),\"-\",IF('Enrollment Form'!BI889=\"\",\"N\",\"Y\"))","v":"-"},{"$f":"IF('Enrollment Form'!B889<>\"Subscriber\",\"-\",IF(AND('Enrollment Form'!B889=\"Subscriber\",'Enrollment Form'!G889=\"\"),\"N\",\"Y\"))","v":"-"},{"$f":"IF('Enrollment Form'!A889=\"\",\"\",IF('Enrollment Form'!B889=\"Subscriber\",\"-\",IF(AND('Enrollment Form'!B889<>\"Subscriber\",'Enrollment Form'!G889='Enrollment Form'!H889),\"N\",\"Y\")))","v":""},0]
[890,{"$f":"IF('Enrollment Form'!$A890<>\"\",\"Y\",\"N\")","v":"N"},{"$f":"IF(AND('Enrollment Form'!$B890=\"\",'Enrollment Form'!$C890<>\"\"),\"N\",IF($B883=\"N\",\"\",\"Y\"))","v":""},{"$f":"IF(OR($B883=\"N\",'Enrollment Form'!G890=\"\"),\"\",IF('Enrollment Form'!$B890<>\"Subscriber\",\"\",IF('Enrollment Form'!$G890='Enrollment Form'!$H890,\"Y\",\"N\")))","v":""},{"$f":"IF($B883=\"N\",\"\",IF(AND(COUNTIFS('Enrollment Form'!$H$11:$H$1000,'Enrollment Form'!$H890,'Enrollment Form'!$B$11:$B$1000,'Enrollment Form'!$B890)>1,'Enrollment Form'!$H890<>\"\"),\"N\",\"Y\"))","v":""},{"$f":"IF($B883=\"N\",\"\",IF(LEN('Enrollment Form'!$Y890)=0,\"\",IF(LEN('Enrollment Form'!$Y890)<>5,\"N\",\"Y\")))","v":""},{"$f":"IF($B883=\"N\",\"\",IF(LEN('Enrollment Form'!$AD890=0),\"\",IF(LEN('Enrollment Form'!$AD890)<>5,\"N\",\"Y\")))","v":""},{"$f":"IF($B883=\"N\",\"\",IF(LEN('Enrollment Form'!$BL890=0),\"\",IF(LEN('Enrollment Form'!$BL890)<>5,\"N\",\"Y\")))","v":""},{"$f":"IF($B883=\"N\",\"\",IF(LEN('Enrollment Form'!$AE890)=0,\"\",IF(LEN('Enrollment Form'!$AE890)<>10,\"N\",\"Y\")))","v":""},{"$f":"IF($B883=\"N\",\"\",IF(LEN('Enrollment Form'!$AF890)=0,\"\",IF(LEN('Enrollment Form'!$AF890)<>10,\"N\",\"Y\")))","v":""},{"$f":"IF('Enrollment Form'!$O890<>\"Graded\",\"-\",IF(AND('Enrollment Form'!$O890=\"Graded\",'Enrollment Form'!$AO890<>\"\"),\"Y\",\"N\"))","v":"-"},{"$f":"IF($B883=\"N\",\"\",IF(OR('Enrollment Form'!$B890<>\"Subscriber\",'Enrollment Form'!$C890=\"ROC\"),\"-\",IF(AND('Enrollment Form'!$B890=\"Subscriber\",'Enrollment Form'!$C890=\"Enroll\",'Enrollment Form'!$AJ890<>\"\"),\"Y\",\"N\")))","v":""},{"$f":"IF($B883=\"N\",\"\",IF(OR('Enrollment Form'!$B890<>\"Subscriber\",'Enrollment Form'!$C890=\"ROC\"),\"-\",IF(AND('Enrollment Form'!$B890=\"Subscriber\",'Enrollment Form'!$C890=\"Enroll\",'Enrollment Form'!$AK890<>\"\"),\"Y\",\"N\")))","v":""},{"$f":"IF($B883=\"N\",\"\",IF(OR('Enrollment Form'!$B890<>\"Subscriber\",'Enrollment Form'!$C890=\"ROC\"),\"-\",IF(AND('Enrollment Form'!$B890=\"Subscriber\",'Enrollment Form'!$C890=\"Enroll\",'Enrollment Form'!$AL890<>\"\"),\"Y\",\"N\")))","v":""},{"$f":"IF($B883=\"N\",\"\",IF(OR('Enrollment Form'!$B890<>\"Subscriber\",'Enrollment Form'!$C890=\"ROC\"),\"-\",IF(AND('Enrollment Form'!$B890=\"Subscriber\",'Enrollment Form'!$C890=\"Enroll\",'Enrollment Form'!$AM890<>\"\"),\"Y\",\"N\")))","v":""},{"$f":"IF($B883=\"N\",\"\",IF(OR('Enrollment Form'!$B890<>\"Subscriber\",'Enrollment Form'!$C890=\"ROC\"),\"-\",IF(AND('Enrollment Form'!$B890=\"Subscriber\",'Enrollment Form'!$C890=\"Enroll\",'Enrollment Form'!$AN890<>\"\"),\"Y\",\"N\")))","v":""},{"$f":"IF($B883=\"N\",\"\",IF(OR('Enrollment Form'!$B890<>\"Subscriber\",'Enrollment Form'!$C890=\"ROC\"),\"-\",IF(AND('Enrollment Form'!$B890=\"Subscriber\",'Enrollment Form'!$C890=\"Enroll\",'Enrollment Form'!$AP890<>\"\"),\"Y\",\"N\")))","v":""},{"$f":"IF($B883=\"N\",\"\",IF($Q883=\"-\",\"-\",IF(AND($Q883=\"Y\",'Enrollment Form'!$AP890=\"No\"),\"-\",IF(AND($Q883=\"Y\",'Enrollment Form'!$AP890=\"Yes\",'Enrollment Form'!$AQ890<>\"\"),\"Y\",\"N\"))))","v":""},{"$f":"IF($B883=\"N\",\"\",IF(OR('Enrollment Form'!$B890<>\"Subscriber\",'Enrollment Form'!$C890=\"ROC\"),\"-\",IF(AND('Enrollment Form'!$B890=\"Subscriber\",'Enrollment Form'!$C890=\"Enroll\",'Enrollment Form'!$CO890<>\"\"),\"Y\",\"N\")))","v":""},{"$f":"IF($B883=\"N\",\"\",IF($S883=\"-\",\"-\",IF(AND($S883=\"Y\",'Enrollment Form'!$CO890=\"No\"),\"-\",IF(AND($S883=\"Y\",'Enrollment Form'!$CO890=\"Yes\",'Enrollment Form'!$CP890<>\"\"),\"Y\",\"N\"))))","v":""},{"$f":"IF(OR('Enrollment Form'!$AV890=\"Yes\",'Enrollment Form'!$AV890=\"\"),\"-\",IF(AND('Enrollment Form'!$AV890=\"No\",ISERROR(FIND(\"HMO\",VLOOKUP('Enrollment Form'!G890,'Enrollment Form'!H$11:J$1000,3,FALSE),1))=FALSE,COUNTA('Enrollment Form'!$AW890:$AZ890)=4),\"Y\",\"N\"))","v":"-"},{"$f":"IF($B883=\"N\",\"\",IF('Enrollment Form'!$B890=\"Subscriber\",\"-\",IF(COUNTA('Enrollment Form'!$BE890,'Enrollment Form'!$BG890)=2,\"Y\",\"N\")))","v":""},{"$f":"IF($B883=\"N\",\"\",IF(OR('Enrollment Form'!$AU890=\"\",'Enrollment Form'!$AU890=\"No\"),\"-\",IF(AND('Enrollment Form'!$AU890=\"Yes\",COUNTA('Enrollment Form'!$CK890)=1),\"Y\",\"N\")))","v":""},{"$f":"IF(OR('Enrollment Form'!$CK890=\"\",'Enrollment Form'!$CK890=\"No\"),\"-\",IF(COUNTA('Enrollment Form'!$CM890:$CN890)=2,\"Y\",\"N\"))","v":"-"},{"$f":"IF($B883=\"N\",\"\",IF(COUNTIF('Enrollment Form'!$CZ890:$DO890,\"Other\")=COUNTA('Enrollment Form'!$DF890,'Enrollment Form'!$DA890,'Enrollment Form'!$DK890,'Enrollment Form'!$DP890),\"Y\",\"N\"))","v":""},{"$f":"IF($B883=\"N\",\"\",IF(OR('Enrollment Form'!B890<>\"Subscriber\",'Enrollment Form'!C890=\"ROC\",COUNTIF('Enrollment Form'!AS890:AT890,\"Yes\")>=1),\"-\",IF(AND('Enrollment Form'!C890=\"Enroll\",COUNTIF('Enrollment Form'!AS890:AT890,\"No\")=2,'Enrollment Form'!AU890=\"\"),\"N\",\"Y\")))","v":""},{"$f":"IF(OR(B883=\"N\",'Enrollment Form'!B890<>\"Subscriber\",'Enrollment Form'!C890=\"ROC\",'Enrollment Form'!O890<>\"Multiple of Salary\"),\"-\",IF(COUNTA('Enrollment Form'!T890:U890)<2,\"N\",\"Y\"))","v":"-"},{"$f":"IF(B883=\"N\",\"\",IF(OR('Enrollment Form'!C890=\"ROC\",'Enrollment Form'!B890<>\"Subscriber\",'Enrollment Form'!O890=\"Waive\",'Enrollment Form'!O890=\"\"),\"-\",IF('Enrollment Form'!P890=\"\",\"N\",\"Y\")))","v":""},{"$f":"IF($B883=\"N\",\"\",IF(AND('Enrollment Form'!$C890=\"ROC\",'Enrollment Form'!$DS890<>\"\"),\"Y\",IF(AND('Enrollment Form'!$C890=\"ROC\",'Enrollment Form'!$DS890=\"\"),\"N\",IF(AND('Enrollment Form'!$C890=\"Enroll\",'Enrollment Form'!$B890=\"Subscriber\",'Enrollment Form'!$CQ890=\"No\",'Enrollment Form'!$DS890=\"\"),\"N\",IF(AND('Enrollment Form'!$C890=\"Enroll\",'Enrollment Form'!$B890=\"Subscriber\",'Enrollment Form'!$CQ890=\"Yes\"),\"-\",\"Y\")))))","v":""},{"$f":"IF($B883=\"N\",\"\",IF(AND('Enrollment Form'!$C890=\"ROC\",'Enrollment Form'!$DT890<>\"\"),\"Y\",IF(AND('Enrollment Form'!$C890=\"ROC\",'Enrollment Form'!$DT890=\"\"),\"N\",IF(AND('Enrollment Form'!$C890=\"Enroll\",'Enrollment Form'!$B890=\"Subscriber\",'Enrollment Form'!$CQ890=\"No\",'Enrollment Form'!$DT890=\"\"),\"N\",IF(AND('Enrollment Form'!$C890=\"Enroll\",'Enrollment Form'!$B890=\"Subscriber\",'Enrollment Form'!$CQ890=\"Yes\"),\"-\",\"Y\")))))","v":""},{"$f":"IF('Enrollment Form'!AH890=\"\",\"\",IF(ISERROR(SEARCH(\".\",'Enrollment Form'!AH890,SEARCH(\"@\",'Enrollment Form'!AH890))),\"N\",\"Y\"))","v":""},{"$f":"IF(OR($B883=\"N\",'Enrollment Form'!$G890=\"\"),\"\",IF('Enrollment Form'!$B890<>\"Subscriber\",\"-\",IF(COUNTIF('Enrollment Form'!$AS890:$AT890,\"Yes\")=2,\"N\",\"Y\")))","v":""},{"$f":"IF(OR('Enrollment Form'!$CC890=\"\",'Enrollment Form'!$CC890=\"No\"),\"-\",IF(AND('Enrollment Form'!$CC890=\"Yes\",'Enrollment Form'!$CD890=\"\"),\"N\",\"Y\"))","v":"-"},{"$f":"IF(OR('Enrollment Form'!$CE890=\"\",'Enrollment Form'!$CE890=\"No\"),\"-\",IF(AND('Enrollment Form'!$CE890=\"Yes\",'Enrollment Form'!$CF890=\"\"),\"N\",\"Y\"))","v":"-"},{"$f":"IF(OR('Enrollment Form'!$CG890=\"\",'Enrollment Form'!$CG890=\"No\"),\"-\",IF(AND('Enrollment Form'!$CG890=\"Yes\",'Enrollment Form'!$CH890=\"\"),\"N\",\"Y\"))","v":"-"},{"$f":"IF(OR('Enrollment Form'!$CG890=\"\",'Enrollment Form'!$CG890=\"No\"),\"-\",IF(AND('Enrollment Form'!$CG890=\"Yes\",'Enrollment Form'!$CI890=\"\"),\"N\",\"Y\"))","v":"-"},{"$f":"IF('Enrollment Form'!B890<>\"Subscriber\",\"-\",IF(AND('Enrollment Form'!B890=\"Subscriber\",'Enrollment Form'!C890=\"Enroll\",'Enrollment Form'!AA890=\"\"),\"N\",\"Y\"))","v":"-"},{"$f":"IF(OR('Enrollment Form'!B890=\"Subscriber\",'Enrollment Form'!B890=\"\"),\"-\",IF('Enrollment Form'!BI890=\"\",\"N\",\"Y\"))","v":"-"},{"$f":"IF('Enrollment Form'!B890<>\"Subscriber\",\"-\",IF(AND('Enrollment Form'!B890=\"Subscriber\",'Enrollment Form'!G890=\"\"),\"N\",\"Y\"))","v":"-"},{"$f":"IF('Enrollment Form'!A890=\"\",\"\",IF('Enrollment Form'!B890=\"Subscriber\",\"-\",IF(AND('Enrollment Form'!B890<>\"Subscriber\",'Enrollment Form'!G890='Enrollment Form'!H890),\"N\",\"Y\")))","v":""},0]
[891,{"$f":"IF('Enrollment Form'!$A891<>\"\",\"Y\",\"N\")","v":"N"},{"$f":"IF(AND('Enrollment Form'!$B891=\"\",'Enrollment Form'!$C891<>\"\"),\"N\",IF($B884=\"N\",\"\",\"Y\"))","v":""},{"$f":"IF(OR($B884=\"N\",'Enrollment Form'!G891=\"\"),\"\",IF('Enrollment Form'!$B891<>\"Subscriber\",\"\",IF('Enrollment Form'!$G891='Enrollment Form'!$H891,\"Y\",\"N\")))","v":""},{"$f":"IF($B884=\"N\",\"\",IF(AND(COUNTIFS('Enrollment Form'!$H$11:$H$1000,'Enrollment Form'!$H891,'Enrollment Form'!$B$11:$B$1000,'Enrollment Form'!$B891)>1,'Enrollment Form'!$H891<>\"\"),\"N\",\"Y\"))","v":""},{"$f":"IF($B884=\"N\",\"\",IF(LEN('Enrollment Form'!$Y891)=0,\"\",IF(LEN('Enrollment Form'!$Y891)<>5,\"N\",\"Y\")))","v":""},{"$f":"IF($B884=\"N\",\"\",IF(LEN('Enrollment Form'!$AD891=0),\"\",IF(LEN('Enrollment Form'!$AD891)<>5,\"N\",\"Y\")))","v":""},{"$f":"IF($B884=\"N\",\"\",IF(LEN('Enrollment Form'!$BL891=0),\"\",IF(LEN('Enrollment Form'!$BL891)<>5,\"N\",\"Y\")))","v":""},{"$f":"IF($B884=\"N\",\"\",IF(LEN('Enrollment Form'!$AE891)=0,\"\",IF(LEN('Enrollment Form'!$AE891)<>10,\"N\",\"Y\")))","v":""},{"$f":"IF($B884=\"N\",\"\",IF(LEN('Enrollment Form'!$AF891)=0,\"\",IF(LEN('Enrollment Form'!$AF891)<>10,\"N\",\"Y\")))","v":""},{"$f":"IF('Enrollment Form'!$O891<>\"Graded\",\"-\",IF(AND('Enrollment Form'!$O891=\"Graded\",'Enrollment Form'!$AO891<>\"\"),\"Y\",\"N\"))","v":"-"},{"$f":"IF($B884=\"N\",\"\",IF(OR('Enrollment Form'!$B891<>\"Subscriber\",'Enrollment Form'!$C891=\"ROC\"),\"-\",IF(AND('Enrollment Form'!$B891=\"Subscriber\",'Enrollment Form'!$C891=\"Enroll\",'Enrollment Form'!$AJ891<>\"\"),\"Y\",\"N\")))","v":""},{"$f":"IF($B884=\"N\",\"\",IF(OR('Enrollment Form'!$B891<>\"Subscriber\",'Enrollment Form'!$C891=\"ROC\"),\"-\",IF(AND('Enrollment Form'!$B891=\"Subscriber\",'Enrollment Form'!$C891=\"Enroll\",'Enrollment Form'!$AK891<>\"\"),\"Y\",\"N\")))","v":""},{"$f":"IF($B884=\"N\",\"\",IF(OR('Enrollment Form'!$B891<>\"Subscriber\",'Enrollment Form'!$C891=\"ROC\"),\"-\",IF(AND('Enrollment Form'!$B891=\"Subscriber\",'Enrollment Form'!$C891=\"Enroll\",'Enrollment Form'!$AL891<>\"\"),\"Y\",\"N\")))","v":""},{"$f":"IF($B884=\"N\",\"\",IF(OR('Enrollment Form'!$B891<>\"Subscriber\",'Enrollment Form'!$C891=\"ROC\"),\"-\",IF(AND('Enrollment Form'!$B891=\"Subscriber\",'Enrollment Form'!$C891=\"Enroll\",'Enrollment Form'!$AM891<>\"\"),\"Y\",\"N\")))","v":""},{"$f":"IF($B884=\"N\",\"\",IF(OR('Enrollment Form'!$B891<>\"Subscriber\",'Enrollment Form'!$C891=\"ROC\"),\"-\",IF(AND('Enrollment Form'!$B891=\"Subscriber\",'Enrollment Form'!$C891=\"Enroll\",'Enrollment Form'!$AN891<>\"\"),\"Y\",\"N\")))","v":""},{"$f":"IF($B884=\"N\",\"\",IF(OR('Enrollment Form'!$B891<>\"Subscriber\",'Enrollment Form'!$C891=\"ROC\"),\"-\",IF(AND('Enrollment Form'!$B891=\"Subscriber\",'Enrollment Form'!$C891=\"Enroll\",'Enrollment Form'!$AP891<>\"\"),\"Y\",\"N\")))","v":""},{"$f":"IF($B884=\"N\",\"\",IF($Q884=\"-\",\"-\",IF(AND($Q884=\"Y\",'Enrollment Form'!$AP891=\"No\"),\"-\",IF(AND($Q884=\"Y\",'Enrollment Form'!$AP891=\"Yes\",'Enrollment Form'!$AQ891<>\"\"),\"Y\",\"N\"))))","v":""},{"$f":"IF($B884=\"N\",\"\",IF(OR('Enrollment Form'!$B891<>\"Subscriber\",'Enrollment Form'!$C891=\"ROC\"),\"-\",IF(AND('Enrollment Form'!$B891=\"Subscriber\",'Enrollment Form'!$C891=\"Enroll\",'Enrollment Form'!$CO891<>\"\"),\"Y\",\"N\")))","v":""},{"$f":"IF($B884=\"N\",\"\",IF($S884=\"-\",\"-\",IF(AND($S884=\"Y\",'Enrollment Form'!$CO891=\"No\"),\"-\",IF(AND($S884=\"Y\",'Enrollment Form'!$CO891=\"Yes\",'Enrollment Form'!$CP891<>\"\"),\"Y\",\"N\"))))","v":""},{"$f":"IF(OR('Enrollment Form'!$AV891=\"Yes\",'Enrollment Form'!$AV891=\"\"),\"-\",IF(AND('Enrollment Form'!$AV891=\"No\",ISERROR(FIND(\"HMO\",VLOOKUP('Enrollment Form'!G891,'Enrollment Form'!H$11:J$1000,3,FALSE),1))=FALSE,COUNTA('Enrollment Form'!$AW891:$AZ891)=4),\"Y\",\"N\"))","v":"-"},{"$f":"IF($B884=\"N\",\"\",IF('Enrollment Form'!$B891=\"Subscriber\",\"-\",IF(COUNTA('Enrollment Form'!$BE891,'Enrollment Form'!$BG891)=2,\"Y\",\"N\")))","v":""},{"$f":"IF($B884=\"N\",\"\",IF(OR('Enrollment Form'!$AU891=\"\",'Enrollment Form'!$AU891=\"No\"),\"-\",IF(AND('Enrollment Form'!$AU891=\"Yes\",COUNTA('Enrollment Form'!$CK891)=1),\"Y\",\"N\")))","v":""},{"$f":"IF(OR('Enrollment Form'!$CK891=\"\",'Enrollment Form'!$CK891=\"No\"),\"-\",IF(COUNTA('Enrollment Form'!$CM891:$CN891)=2,\"Y\",\"N\"))","v":"-"},{"$f":"IF($B884=\"N\",\"\",IF(COUNTIF('Enrollment Form'!$CZ891:$DO891,\"Other\")=COUNTA('Enrollment Form'!$DF891,'Enrollment Form'!$DA891,'Enrollment Form'!$DK891,'Enrollment Form'!$DP891),\"Y\",\"N\"))","v":""},{"$f":"IF($B884=\"N\",\"\",IF(OR('Enrollment Form'!B891<>\"Subscriber\",'Enrollment Form'!C891=\"ROC\",COUNTIF('Enrollment Form'!AS891:AT891,\"Yes\")>=1),\"-\",IF(AND('Enrollment Form'!C891=\"Enroll\",COUNTIF('Enrollment Form'!AS891:AT891,\"No\")=2,'Enrollment Form'!AU891=\"\"),\"N\",\"Y\")))","v":""},{"$f":"IF(OR(B884=\"N\",'Enrollment Form'!B891<>\"Subscriber\",'Enrollment Form'!C891=\"ROC\",'Enrollment Form'!O891<>\"Multiple of Salary\"),\"-\",IF(COUNTA('Enrollment Form'!T891:U891)<2,\"N\",\"Y\"))","v":"-"},{"$f":"IF(B884=\"N\",\"\",IF(OR('Enrollment Form'!C891=\"ROC\",'Enrollment Form'!B891<>\"Subscriber\",'Enrollment Form'!O891=\"Waive\",'Enrollment Form'!O891=\"\"),\"-\",IF('Enrollment Form'!P891=\"\",\"N\",\"Y\")))","v":""},{"$f":"IF($B884=\"N\",\"\",IF(AND('Enrollment Form'!$C891=\"ROC\",'Enrollment Form'!$DS891<>\"\"),\"Y\",IF(AND('Enrollment Form'!$C891=\"ROC\",'Enrollment Form'!$DS891=\"\"),\"N\",IF(AND('Enrollment Form'!$C891=\"Enroll\",'Enrollment Form'!$B891=\"Subscriber\",'Enrollment Form'!$CQ891=\"No\",'Enrollment Form'!$DS891=\"\"),\"N\",IF(AND('Enrollment Form'!$C891=\"Enroll\",'Enrollment Form'!$B891=\"Subscriber\",'Enrollment Form'!$CQ891=\"Yes\"),\"-\",\"Y\")))))","v":""},{"$f":"IF($B884=\"N\",\"\",IF(AND('Enrollment Form'!$C891=\"ROC\",'Enrollment Form'!$DT891<>\"\"),\"Y\",IF(AND('Enrollment Form'!$C891=\"ROC\",'Enrollment Form'!$DT891=\"\"),\"N\",IF(AND('Enrollment Form'!$C891=\"Enroll\",'Enrollment Form'!$B891=\"Subscriber\",'Enrollment Form'!$CQ891=\"No\",'Enrollment Form'!$DT891=\"\"),\"N\",IF(AND('Enrollment Form'!$C891=\"Enroll\",'Enrollment Form'!$B891=\"Subscriber\",'Enrollment Form'!$CQ891=\"Yes\"),\"-\",\"Y\")))))","v":""},{"$f":"IF('Enrollment Form'!AH891=\"\",\"\",IF(ISERROR(SEARCH(\".\",'Enrollment Form'!AH891,SEARCH(\"@\",'Enrollment Form'!AH891))),\"N\",\"Y\"))","v":""},{"$f":"IF(OR($B884=\"N\",'Enrollment Form'!$G891=\"\"),\"\",IF('Enrollment Form'!$B891<>\"Subscriber\",\"-\",IF(COUNTIF('Enrollment Form'!$AS891:$AT891,\"Yes\")=2,\"N\",\"Y\")))","v":""},{"$f":"IF(OR('Enrollment Form'!$CC891=\"\",'Enrollment Form'!$CC891=\"No\"),\"-\",IF(AND('Enrollment Form'!$CC891=\"Yes\",'Enrollment Form'!$CD891=\"\"),\"N\",\"Y\"))","v":"-"},{"$f":"IF(OR('Enrollment Form'!$CE891=\"\",'Enrollment Form'!$CE891=\"No\"),\"-\",IF(AND('Enrollment Form'!$CE891=\"Yes\",'Enrollment Form'!$CF891=\"\"),\"N\",\"Y\"))","v":"-"},{"$f":"IF(OR('Enrollment Form'!$CG891=\"\",'Enrollment Form'!$CG891=\"No\"),\"-\",IF(AND('Enrollment Form'!$CG891=\"Yes\",'Enrollment Form'!$CH891=\"\"),\"N\",\"Y\"))","v":"-"},{"$f":"IF(OR('Enrollment Form'!$CG891=\"\",'Enrollment Form'!$CG891=\"No\"),\"-\",IF(AND('Enrollment Form'!$CG891=\"Yes\",'Enrollment Form'!$CI891=\"\"),\"N\",\"Y\"))","v":"-"},{"$f":"IF('Enrollment Form'!B891<>\"Subscriber\",\"-\",IF(AND('Enrollment Form'!B891=\"Subscriber\",'Enrollment Form'!C891=\"Enroll\",'Enrollment Form'!AA891=\"\"),\"N\",\"Y\"))","v":"-"},{"$f":"IF(OR('Enrollment Form'!B891=\"Subscriber\",'Enrollment Form'!B891=\"\"),\"-\",IF('Enrollment Form'!BI891=\"\",\"N\",\"Y\"))","v":"-"},{"$f":"IF('Enrollment Form'!B891<>\"Subscriber\",\"-\",IF(AND('Enrollment Form'!B891=\"Subscriber\",'Enrollment Form'!G891=\"\"),\"N\",\"Y\"))","v":"-"},{"$f":"IF('Enrollment Form'!A891=\"\",\"\",IF('Enrollment Form'!B891=\"Subscriber\",\"-\",IF(AND('Enrollment Form'!B891<>\"Subscriber\",'Enrollment Form'!G891='Enrollment Form'!H891),\"N\",\"Y\")))","v":""},0]
[892,{"$f":"IF('Enrollment Form'!$A892<>\"\",\"Y\",\"N\")","v":"N"},{"$f":"IF(AND('Enrollment Form'!$B892=\"\",'Enrollment Form'!$C892<>\"\"),\"N\",IF($B885=\"N\",\"\",\"Y\"))","v":""},{"$f":"IF(OR($B885=\"N\",'Enrollment Form'!G892=\"\"),\"\",IF('Enrollment Form'!$B892<>\"Subscriber\",\"\",IF('Enrollment Form'!$G892='Enrollment Form'!$H892,\"Y\",\"N\")))","v":""},{"$f":"IF($B885=\"N\",\"\",IF(AND(COUNTIFS('Enrollment Form'!$H$11:$H$1000,'Enrollment Form'!$H892,'Enrollment Form'!$B$11:$B$1000,'Enrollment Form'!$B892)>1,'Enrollment Form'!$H892<>\"\"),\"N\",\"Y\"))","v":""},{"$f":"IF($B885=\"N\",\"\",IF(LEN('Enrollment Form'!$Y892)=0,\"\",IF(LEN('Enrollment Form'!$Y892)<>5,\"N\",\"Y\")))","v":""},{"$f":"IF($B885=\"N\",\"\",IF(LEN('Enrollment Form'!$AD892=0),\"\",IF(LEN('Enrollment Form'!$AD892)<>5,\"N\",\"Y\")))","v":""},{"$f":"IF($B885=\"N\",\"\",IF(LEN('Enrollment Form'!$BL892=0),\"\",IF(LEN('Enrollment Form'!$BL892)<>5,\"N\",\"Y\")))","v":""},{"$f":"IF($B885=\"N\",\"\",IF(LEN('Enrollment Form'!$AE892)=0,\"\",IF(LEN('Enrollment Form'!$AE892)<>10,\"N\",\"Y\")))","v":""},{"$f":"IF($B885=\"N\",\"\",IF(LEN('Enrollment Form'!$AF892)=0,\"\",IF(LEN('Enrollment Form'!$AF892)<>10,\"N\",\"Y\")))","v":""},{"$f":"IF('Enrollment Form'!$O892<>\"Graded\",\"-\",IF(AND('Enrollment Form'!$O892=\"Graded\",'Enrollment Form'!$AO892<>\"\"),\"Y\",\"N\"))","v":"-"},{"$f":"IF($B885=\"N\",\"\",IF(OR('Enrollment Form'!$B892<>\"Subscriber\",'Enrollment Form'!$C892=\"ROC\"),\"-\",IF(AND('Enrollment Form'!$B892=\"Subscriber\",'Enrollment Form'!$C892=\"Enroll\",'Enrollment Form'!$AJ892<>\"\"),\"Y\",\"N\")))","v":""},{"$f":"IF($B885=\"N\",\"\",IF(OR('Enrollment Form'!$B892<>\"Subscriber\",'Enrollment Form'!$C892=\"ROC\"),\"-\",IF(AND('Enrollment Form'!$B892=\"Subscriber\",'Enrollment Form'!$C892=\"Enroll\",'Enrollment Form'!$AK892<>\"\"),\"Y\",\"N\")))","v":""},{"$f":"IF($B885=\"N\",\"\",IF(OR('Enrollment Form'!$B892<>\"Subscriber\",'Enrollment Form'!$C892=\"ROC\"),\"-\",IF(AND('Enrollment Form'!$B892=\"Subscriber\",'Enrollment Form'!$C892=\"Enroll\",'Enrollment Form'!$AL892<>\"\"),\"Y\",\"N\")))","v":""},{"$f":"IF($B885=\"N\",\"\",IF(OR('Enrollment Form'!$B892<>\"Subscriber\",'Enrollment Form'!$C892=\"ROC\"),\"-\",IF(AND('Enrollment Form'!$B892=\"Subscriber\",'Enrollment Form'!$C892=\"Enroll\",'Enrollment Form'!$AM892<>\"\"),\"Y\",\"N\")))","v":""},{"$f":"IF($B885=\"N\",\"\",IF(OR('Enrollment Form'!$B892<>\"Subscriber\",'Enrollment Form'!$C892=\"ROC\"),\"-\",IF(AND('Enrollment Form'!$B892=\"Subscriber\",'Enrollment Form'!$C892=\"Enroll\",'Enrollment Form'!$AN892<>\"\"),\"Y\",\"N\")))","v":""},{"$f":"IF($B885=\"N\",\"\",IF(OR('Enrollment Form'!$B892<>\"Subscriber\",'Enrollment Form'!$C892=\"ROC\"),\"-\",IF(AND('Enrollment Form'!$B892=\"Subscriber\",'Enrollment Form'!$C892=\"Enroll\",'Enrollment Form'!$AP892<>\"\"),\"Y\",\"N\")))","v":""},{"$f":"IF($B885=\"N\",\"\",IF($Q885=\"-\",\"-\",IF(AND($Q885=\"Y\",'Enrollment Form'!$AP892=\"No\"),\"-\",IF(AND($Q885=\"Y\",'Enrollment Form'!$AP892=\"Yes\",'Enrollment Form'!$AQ892<>\"\"),\"Y\",\"N\"))))","v":""},{"$f":"IF($B885=\"N\",\"\",IF(OR('Enrollment Form'!$B892<>\"Subscriber\",'Enrollment Form'!$C892=\"ROC\"),\"-\",IF(AND('Enrollment Form'!$B892=\"Subscriber\",'Enrollment Form'!$C892=\"Enroll\",'Enrollment Form'!$CO892<>\"\"),\"Y\",\"N\")))","v":""},{"$f":"IF($B885=\"N\",\"\",IF($S885=\"-\",\"-\",IF(AND($S885=\"Y\",'Enrollment Form'!$CO892=\"No\"),\"-\",IF(AND($S885=\"Y\",'Enrollment Form'!$CO892=\"Yes\",'Enrollment Form'!$CP892<>\"\"),\"Y\",\"N\"))))","v":""},{"$f":"IF(OR('Enrollment Form'!$AV892=\"Yes\",'Enrollment Form'!$AV892=\"\"),\"-\",IF(AND('Enrollment Form'!$AV892=\"No\",ISERROR(FIND(\"HMO\",VLOOKUP('Enrollment Form'!G892,'Enrollment Form'!H$11:J$1000,3,FALSE),1))=FALSE,COUNTA('Enrollment Form'!$AW892:$AZ892)=4),\"Y\",\"N\"))","v":"-"},{"$f":"IF($B885=\"N\",\"\",IF('Enrollment Form'!$B892=\"Subscriber\",\"-\",IF(COUNTA('Enrollment Form'!$BE892,'Enrollment Form'!$BG892)=2,\"Y\",\"N\")))","v":""},{"$f":"IF($B885=\"N\",\"\",IF(OR('Enrollment Form'!$AU892=\"\",'Enrollment Form'!$AU892=\"No\"),\"-\",IF(AND('Enrollment Form'!$AU892=\"Yes\",COUNTA('Enrollment Form'!$CK892)=1),\"Y\",\"N\")))","v":""},{"$f":"IF(OR('Enrollment Form'!$CK892=\"\",'Enrollment Form'!$CK892=\"No\"),\"-\",IF(COUNTA('Enrollment Form'!$CM892:$CN892)=2,\"Y\",\"N\"))","v":"-"},{"$f":"IF($B885=\"N\",\"\",IF(COUNTIF('Enrollment Form'!$CZ892:$DO892,\"Other\")=COUNTA('Enrollment Form'!$DF892,'Enrollment Form'!$DA892,'Enrollment Form'!$DK892,'Enrollment Form'!$DP892),\"Y\",\"N\"))","v":""},{"$f":"IF($B885=\"N\",\"\",IF(OR('Enrollment Form'!B892<>\"Subscriber\",'Enrollment Form'!C892=\"ROC\",COUNTIF('Enrollment Form'!AS892:AT892,\"Yes\")>=1),\"-\",IF(AND('Enrollment Form'!C892=\"Enroll\",COUNTIF('Enrollment Form'!AS892:AT892,\"No\")=2,'Enrollment Form'!AU892=\"\"),\"N\",\"Y\")))","v":""},{"$f":"IF(OR(B885=\"N\",'Enrollment Form'!B892<>\"Subscriber\",'Enrollment Form'!C892=\"ROC\",'Enrollment Form'!O892<>\"Multiple of Salary\"),\"-\",IF(COUNTA('Enrollment Form'!T892:U892)<2,\"N\",\"Y\"))","v":"-"},{"$f":"IF(B885=\"N\",\"\",IF(OR('Enrollment Form'!C892=\"ROC\",'Enrollment Form'!B892<>\"Subscriber\",'Enrollment Form'!O892=\"Waive\",'Enrollment Form'!O892=\"\"),\"-\",IF('Enrollment Form'!P892=\"\",\"N\",\"Y\")))","v":""},{"$f":"IF($B885=\"N\",\"\",IF(AND('Enrollment Form'!$C892=\"ROC\",'Enrollment Form'!$DS892<>\"\"),\"Y\",IF(AND('Enrollment Form'!$C892=\"ROC\",'Enrollment Form'!$DS892=\"\"),\"N\",IF(AND('Enrollment Form'!$C892=\"Enroll\",'Enrollment Form'!$B892=\"Subscriber\",'Enrollment Form'!$CQ892=\"No\",'Enrollment Form'!$DS892=\"\"),\"N\",IF(AND('Enrollment Form'!$C892=\"Enroll\",'Enrollment Form'!$B892=\"Subscriber\",'Enrollment Form'!$CQ892=\"Yes\"),\"-\",\"Y\")))))","v":""},{"$f":"IF($B885=\"N\",\"\",IF(AND('Enrollment Form'!$C892=\"ROC\",'Enrollment Form'!$DT892<>\"\"),\"Y\",IF(AND('Enrollment Form'!$C892=\"ROC\",'Enrollment Form'!$DT892=\"\"),\"N\",IF(AND('Enrollment Form'!$C892=\"Enroll\",'Enrollment Form'!$B892=\"Subscriber\",'Enrollment Form'!$CQ892=\"No\",'Enrollment Form'!$DT892=\"\"),\"N\",IF(AND('Enrollment Form'!$C892=\"Enroll\",'Enrollment Form'!$B892=\"Subscriber\",'Enrollment Form'!$CQ892=\"Yes\"),\"-\",\"Y\")))))","v":""},{"$f":"IF('Enrollment Form'!AH892=\"\",\"\",IF(ISERROR(SEARCH(\".\",'Enrollment Form'!AH892,SEARCH(\"@\",'Enrollment Form'!AH892))),\"N\",\"Y\"))","v":""},{"$f":"IF(OR($B885=\"N\",'Enrollment Form'!$G892=\"\"),\"\",IF('Enrollment Form'!$B892<>\"Subscriber\",\"-\",IF(COUNTIF('Enrollment Form'!$AS892:$AT892,\"Yes\")=2,\"N\",\"Y\")))","v":""},{"$f":"IF(OR('Enrollment Form'!$CC892=\"\",'Enrollment Form'!$CC892=\"No\"),\"-\",IF(AND('Enrollment Form'!$CC892=\"Yes\",'Enrollment Form'!$CD892=\"\"),\"N\",\"Y\"))","v":"-"},{"$f":"IF(OR('Enrollment Form'!$CE892=\"\",'Enrollment Form'!$CE892=\"No\"),\"-\",IF(AND('Enrollment Form'!$CE892=\"Yes\",'Enrollment Form'!$CF892=\"\"),\"N\",\"Y\"))","v":"-"},{"$f":"IF(OR('Enrollment Form'!$CG892=\"\",'Enrollment Form'!$CG892=\"No\"),\"-\",IF(AND('Enrollment Form'!$CG892=\"Yes\",'Enrollment Form'!$CH892=\"\"),\"N\",\"Y\"))","v":"-"},{"$f":"IF(OR('Enrollment Form'!$CG892=\"\",'Enrollment Form'!$CG892=\"No\"),\"-\",IF(AND('Enrollment Form'!$CG892=\"Yes\",'Enrollment Form'!$CI892=\"\"),\"N\",\"Y\"))","v":"-"},{"$f":"IF('Enrollment Form'!B892<>\"Subscriber\",\"-\",IF(AND('Enrollment Form'!B892=\"Subscriber\",'Enrollment Form'!C892=\"Enroll\",'Enrollment Form'!AA892=\"\"),\"N\",\"Y\"))","v":"-"},{"$f":"IF(OR('Enrollment Form'!B892=\"Subscriber\",'Enrollment Form'!B892=\"\"),\"-\",IF('Enrollment Form'!BI892=\"\",\"N\",\"Y\"))","v":"-"},{"$f":"IF('Enrollment Form'!B892<>\"Subscriber\",\"-\",IF(AND('Enrollment Form'!B892=\"Subscriber\",'Enrollment Form'!G892=\"\"),\"N\",\"Y\"))","v":"-"},{"$f":"IF('Enrollment Form'!A892=\"\",\"\",IF('Enrollment Form'!B892=\"Subscriber\",\"-\",IF(AND('Enrollment Form'!B892<>\"Subscriber\",'Enrollment Form'!G892='Enrollment Form'!H892),\"N\",\"Y\")))","v":""},0]
[893,{"$f":"IF('Enrollment Form'!$A893<>\"\",\"Y\",\"N\")","v":"N"},{"$f":"IF(AND('Enrollment Form'!$B893=\"\",'Enrollment Form'!$C893<>\"\"),\"N\",IF($B886=\"N\",\"\",\"Y\"))","v":""},{"$f":"IF(OR($B886=\"N\",'Enrollment Form'!G893=\"\"),\"\",IF('Enrollment Form'!$B893<>\"Subscriber\",\"\",IF('Enrollment Form'!$G893='Enrollment Form'!$H893,\"Y\",\"N\")))","v":""},{"$f":"IF($B886=\"N\",\"\",IF(AND(COUNTIFS('Enrollment Form'!$H$11:$H$1000,'Enrollment Form'!$H893,'Enrollment Form'!$B$11:$B$1000,'Enrollment Form'!$B893)>1,'Enrollment Form'!$H893<>\"\"),\"N\",\"Y\"))","v":""},{"$f":"IF($B886=\"N\",\"\",IF(LEN('Enrollment Form'!$Y893)=0,\"\",IF(LEN('Enrollment Form'!$Y893)<>5,\"N\",\"Y\")))","v":""},{"$f":"IF($B886=\"N\",\"\",IF(LEN('Enrollment Form'!$AD893=0),\"\",IF(LEN('Enrollment Form'!$AD893)<>5,\"N\",\"Y\")))","v":""},{"$f":"IF($B886=\"N\",\"\",IF(LEN('Enrollment Form'!$BL893=0),\"\",IF(LEN('Enrollment Form'!$BL893)<>5,\"N\",\"Y\")))","v":""},{"$f":"IF($B886=\"N\",\"\",IF(LEN('Enrollment Form'!$AE893)=0,\"\",IF(LEN('Enrollment Form'!$AE893)<>10,\"N\",\"Y\")))","v":""},{"$f":"IF($B886=\"N\",\"\",IF(LEN('Enrollment Form'!$AF893)=0,\"\",IF(LEN('Enrollment Form'!$AF893)<>10,\"N\",\"Y\")))","v":""},{"$f":"IF('Enrollment Form'!$O893<>\"Graded\",\"-\",IF(AND('Enrollment Form'!$O893=\"Graded\",'Enrollment Form'!$AO893<>\"\"),\"Y\",\"N\"))","v":"-"},{"$f":"IF($B886=\"N\",\"\",IF(OR('Enrollment Form'!$B893<>\"Subscriber\",'Enrollment Form'!$C893=\"ROC\"),\"-\",IF(AND('Enrollment Form'!$B893=\"Subscriber\",'Enrollment Form'!$C893=\"Enroll\",'Enrollment Form'!$AJ893<>\"\"),\"Y\",\"N\")))","v":""},{"$f":"IF($B886=\"N\",\"\",IF(OR('Enrollment Form'!$B893<>\"Subscriber\",'Enrollment Form'!$C893=\"ROC\"),\"-\",IF(AND('Enrollment Form'!$B893=\"Subscriber\",'Enrollment Form'!$C893=\"Enroll\",'Enrollment Form'!$AK893<>\"\"),\"Y\",\"N\")))","v":""},{"$f":"IF($B886=\"N\",\"\",IF(OR('Enrollment Form'!$B893<>\"Subscriber\",'Enrollment Form'!$C893=\"ROC\"),\"-\",IF(AND('Enrollment Form'!$B893=\"Subscriber\",'Enrollment Form'!$C893=\"Enroll\",'Enrollment Form'!$AL893<>\"\"),\"Y\",\"N\")))","v":""},{"$f":"IF($B886=\"N\",\"\",IF(OR('Enrollment Form'!$B893<>\"Subscriber\",'Enrollment Form'!$C893=\"ROC\"),\"-\",IF(AND('Enrollment Form'!$B893=\"Subscriber\",'Enrollment Form'!$C893=\"Enroll\",'Enrollment Form'!$AM893<>\"\"),\"Y\",\"N\")))","v":""},{"$f":"IF($B886=\"N\",\"\",IF(OR('Enrollment Form'!$B893<>\"Subscriber\",'Enrollment Form'!$C893=\"ROC\"),\"-\",IF(AND('Enrollment Form'!$B893=\"Subscriber\",'Enrollment Form'!$C893=\"Enroll\",'Enrollment Form'!$AN893<>\"\"),\"Y\",\"N\")))","v":""},{"$f":"IF($B886=\"N\",\"\",IF(OR('Enrollment Form'!$B893<>\"Subscriber\",'Enrollment Form'!$C893=\"ROC\"),\"-\",IF(AND('Enrollment Form'!$B893=\"Subscriber\",'Enrollment Form'!$C893=\"Enroll\",'Enrollment Form'!$AP893<>\"\"),\"Y\",\"N\")))","v":""},{"$f":"IF($B886=\"N\",\"\",IF($Q886=\"-\",\"-\",IF(AND($Q886=\"Y\",'Enrollment Form'!$AP893=\"No\"),\"-\",IF(AND($Q886=\"Y\",'Enrollment Form'!$AP893=\"Yes\",'Enrollment Form'!$AQ893<>\"\"),\"Y\",\"N\"))))","v":""},{"$f":"IF($B886=\"N\",\"\",IF(OR('Enrollment Form'!$B893<>\"Subscriber\",'Enrollment Form'!$C893=\"ROC\"),\"-\",IF(AND('Enrollment Form'!$B893=\"Subscriber\",'Enrollment Form'!$C893=\"Enroll\",'Enrollment Form'!$CO893<>\"\"),\"Y\",\"N\")))","v":""},{"$f":"IF($B886=\"N\",\"\",IF($S886=\"-\",\"-\",IF(AND($S886=\"Y\",'Enrollment Form'!$CO893=\"No\"),\"-\",IF(AND($S886=\"Y\",'Enrollment Form'!$CO893=\"Yes\",'Enrollment Form'!$CP893<>\"\"),\"Y\",\"N\"))))","v":""},{"$f":"IF(OR('Enrollment Form'!$AV893=\"Yes\",'Enrollment Form'!$AV893=\"\"),\"-\",IF(AND('Enrollment Form'!$AV893=\"No\",ISERROR(FIND(\"HMO\",VLOOKUP('Enrollment Form'!G893,'Enrollment Form'!H$11:J$1000,3,FALSE),1))=FALSE,COUNTA('Enrollment Form'!$AW893:$AZ893)=4),\"Y\",\"N\"))","v":"-"},{"$f":"IF($B886=\"N\",\"\",IF('Enrollment Form'!$B893=\"Subscriber\",\"-\",IF(COUNTA('Enrollment Form'!$BE893,'Enrollment Form'!$BG893)=2,\"Y\",\"N\")))","v":""},{"$f":"IF($B886=\"N\",\"\",IF(OR('Enrollment Form'!$AU893=\"\",'Enrollment Form'!$AU893=\"No\"),\"-\",IF(AND('Enrollment Form'!$AU893=\"Yes\",COUNTA('Enrollment Form'!$CK893)=1),\"Y\",\"N\")))","v":""},{"$f":"IF(OR('Enrollment Form'!$CK893=\"\",'Enrollment Form'!$CK893=\"No\"),\"-\",IF(COUNTA('Enrollment Form'!$CM893:$CN893)=2,\"Y\",\"N\"))","v":"-"},{"$f":"IF($B886=\"N\",\"\",IF(COUNTIF('Enrollment Form'!$CZ893:$DO893,\"Other\")=COUNTA('Enrollment Form'!$DF893,'Enrollment Form'!$DA893,'Enrollment Form'!$DK893,'Enrollment Form'!$DP893),\"Y\",\"N\"))","v":""},{"$f":"IF($B886=\"N\",\"\",IF(OR('Enrollment Form'!B893<>\"Subscriber\",'Enrollment Form'!C893=\"ROC\",COUNTIF('Enrollment Form'!AS893:AT893,\"Yes\")>=1),\"-\",IF(AND('Enrollment Form'!C893=\"Enroll\",COUNTIF('Enrollment Form'!AS893:AT893,\"No\")=2,'Enrollment Form'!AU893=\"\"),\"N\",\"Y\")))","v":""},{"$f":"IF(OR(B886=\"N\",'Enrollment Form'!B893<>\"Subscriber\",'Enrollment Form'!C893=\"ROC\",'Enrollment Form'!O893<>\"Multiple of Salary\"),\"-\",IF(COUNTA('Enrollment Form'!T893:U893)<2,\"N\",\"Y\"))","v":"-"},{"$f":"IF(B886=\"N\",\"\",IF(OR('Enrollment Form'!C893=\"ROC\",'Enrollment Form'!B893<>\"Subscriber\",'Enrollment Form'!O893=\"Waive\",'Enrollment Form'!O893=\"\"),\"-\",IF('Enrollment Form'!P893=\"\",\"N\",\"Y\")))","v":""},{"$f":"IF($B886=\"N\",\"\",IF(AND('Enrollment Form'!$C893=\"ROC\",'Enrollment Form'!$DS893<>\"\"),\"Y\",IF(AND('Enrollment Form'!$C893=\"ROC\",'Enrollment Form'!$DS893=\"\"),\"N\",IF(AND('Enrollment Form'!$C893=\"Enroll\",'Enrollment Form'!$B893=\"Subscriber\",'Enrollment Form'!$CQ893=\"No\",'Enrollment Form'!$DS893=\"\"),\"N\",IF(AND('Enrollment Form'!$C893=\"Enroll\",'Enrollment Form'!$B893=\"Subscriber\",'Enrollment Form'!$CQ893=\"Yes\"),\"-\",\"Y\")))))","v":""},{"$f":"IF($B886=\"N\",\"\",IF(AND('Enrollment Form'!$C893=\"ROC\",'Enrollment Form'!$DT893<>\"\"),\"Y\",IF(AND('Enrollment Form'!$C893=\"ROC\",'Enrollment Form'!$DT893=\"\"),\"N\",IF(AND('Enrollment Form'!$C893=\"Enroll\",'Enrollment Form'!$B893=\"Subscriber\",'Enrollment Form'!$CQ893=\"No\",'Enrollment Form'!$DT893=\"\"),\"N\",IF(AND('Enrollment Form'!$C893=\"Enroll\",'Enrollment Form'!$B893=\"Subscriber\",'Enrollment Form'!$CQ893=\"Yes\"),\"-\",\"Y\")))))","v":""},{"$f":"IF('Enrollment Form'!AH893=\"\",\"\",IF(ISERROR(SEARCH(\".\",'Enrollment Form'!AH893,SEARCH(\"@\",'Enrollment Form'!AH893))),\"N\",\"Y\"))","v":""},{"$f":"IF(OR($B886=\"N\",'Enrollment Form'!$G893=\"\"),\"\",IF('Enrollment Form'!$B893<>\"Subscriber\",\"-\",IF(COUNTIF('Enrollment Form'!$AS893:$AT893,\"Yes\")=2,\"N\",\"Y\")))","v":""},{"$f":"IF(OR('Enrollment Form'!$CC893=\"\",'Enrollment Form'!$CC893=\"No\"),\"-\",IF(AND('Enrollment Form'!$CC893=\"Yes\",'Enrollment Form'!$CD893=\"\"),\"N\",\"Y\"))","v":"-"},{"$f":"IF(OR('Enrollment Form'!$CE893=\"\",'Enrollment Form'!$CE893=\"No\"),\"-\",IF(AND('Enrollment Form'!$CE893=\"Yes\",'Enrollment Form'!$CF893=\"\"),\"N\",\"Y\"))","v":"-"},{"$f":"IF(OR('Enrollment Form'!$CG893=\"\",'Enrollment Form'!$CG893=\"No\"),\"-\",IF(AND('Enrollment Form'!$CG893=\"Yes\",'Enrollment Form'!$CH893=\"\"),\"N\",\"Y\"))","v":"-"},{"$f":"IF(OR('Enrollment Form'!$CG893=\"\",'Enrollment Form'!$CG893=\"No\"),\"-\",IF(AND('Enrollment Form'!$CG893=\"Yes\",'Enrollment Form'!$CI893=\"\"),\"N\",\"Y\"))","v":"-"},{"$f":"IF('Enrollment Form'!B893<>\"Subscriber\",\"-\",IF(AND('Enrollment Form'!B893=\"Subscriber\",'Enrollment Form'!C893=\"Enroll\",'Enrollment Form'!AA893=\"\"),\"N\",\"Y\"))","v":"-"},{"$f":"IF(OR('Enrollment Form'!B893=\"Subscriber\",'Enrollment Form'!B893=\"\"),\"-\",IF('Enrollment Form'!BI893=\"\",\"N\",\"Y\"))","v":"-"},{"$f":"IF('Enrollment Form'!B893<>\"Subscriber\",\"-\",IF(AND('Enrollment Form'!B893=\"Subscriber\",'Enrollment Form'!G893=\"\"),\"N\",\"Y\"))","v":"-"},{"$f":"IF('Enrollment Form'!A893=\"\",\"\",IF('Enrollment Form'!B893=\"Subscriber\",\"-\",IF(AND('Enrollment Form'!B893<>\"Subscriber\",'Enrollment Form'!G893='Enrollment Form'!H893),\"N\",\"Y\")))","v":""},0]
[894,{"$f":"IF('Enrollment Form'!$A894<>\"\",\"Y\",\"N\")","v":"N"},{"$f":"IF(AND('Enrollment Form'!$B894=\"\",'Enrollment Form'!$C894<>\"\"),\"N\",IF($B887=\"N\",\"\",\"Y\"))","v":""},{"$f":"IF(OR($B887=\"N\",'Enrollment Form'!G894=\"\"),\"\",IF('Enrollment Form'!$B894<>\"Subscriber\",\"\",IF('Enrollment Form'!$G894='Enrollment Form'!$H894,\"Y\",\"N\")))","v":""},{"$f":"IF($B887=\"N\",\"\",IF(AND(COUNTIFS('Enrollment Form'!$H$11:$H$1000,'Enrollment Form'!$H894,'Enrollment Form'!$B$11:$B$1000,'Enrollment Form'!$B894)>1,'Enrollment Form'!$H894<>\"\"),\"N\",\"Y\"))","v":""},{"$f":"IF($B887=\"N\",\"\",IF(LEN('Enrollment Form'!$Y894)=0,\"\",IF(LEN('Enrollment Form'!$Y894)<>5,\"N\",\"Y\")))","v":""},{"$f":"IF($B887=\"N\",\"\",IF(LEN('Enrollment Form'!$AD894=0),\"\",IF(LEN('Enrollment Form'!$AD894)<>5,\"N\",\"Y\")))","v":""},{"$f":"IF($B887=\"N\",\"\",IF(LEN('Enrollment Form'!$BL894=0),\"\",IF(LEN('Enrollment Form'!$BL894)<>5,\"N\",\"Y\")))","v":""},{"$f":"IF($B887=\"N\",\"\",IF(LEN('Enrollment Form'!$AE894)=0,\"\",IF(LEN('Enrollment Form'!$AE894)<>10,\"N\",\"Y\")))","v":""},{"$f":"IF($B887=\"N\",\"\",IF(LEN('Enrollment Form'!$AF894)=0,\"\",IF(LEN('Enrollment Form'!$AF894)<>10,\"N\",\"Y\")))","v":""},{"$f":"IF('Enrollment Form'!$O894<>\"Graded\",\"-\",IF(AND('Enrollment Form'!$O894=\"Graded\",'Enrollment Form'!$AO894<>\"\"),\"Y\",\"N\"))","v":"-"},{"$f":"IF($B887=\"N\",\"\",IF(OR('Enrollment Form'!$B894<>\"Subscriber\",'Enrollment Form'!$C894=\"ROC\"),\"-\",IF(AND('Enrollment Form'!$B894=\"Subscriber\",'Enrollment Form'!$C894=\"Enroll\",'Enrollment Form'!$AJ894<>\"\"),\"Y\",\"N\")))","v":""},{"$f":"IF($B887=\"N\",\"\",IF(OR('Enrollment Form'!$B894<>\"Subscriber\",'Enrollment Form'!$C894=\"ROC\"),\"-\",IF(AND('Enrollment Form'!$B894=\"Subscriber\",'Enrollment Form'!$C894=\"Enroll\",'Enrollment Form'!$AK894<>\"\"),\"Y\",\"N\")))","v":""},{"$f":"IF($B887=\"N\",\"\",IF(OR('Enrollment Form'!$B894<>\"Subscriber\",'Enrollment Form'!$C894=\"ROC\"),\"-\",IF(AND('Enrollment Form'!$B894=\"Subscriber\",'Enrollment Form'!$C894=\"Enroll\",'Enrollment Form'!$AL894<>\"\"),\"Y\",\"N\")))","v":""},{"$f":"IF($B887=\"N\",\"\",IF(OR('Enrollment Form'!$B894<>\"Subscriber\",'Enrollment Form'!$C894=\"ROC\"),\"-\",IF(AND('Enrollment Form'!$B894=\"Subscriber\",'Enrollment Form'!$C894=\"Enroll\",'Enrollment Form'!$AM894<>\"\"),\"Y\",\"N\")))","v":""},{"$f":"IF($B887=\"N\",\"\",IF(OR('Enrollment Form'!$B894<>\"Subscriber\",'Enrollment Form'!$C894=\"ROC\"),\"-\",IF(AND('Enrollment Form'!$B894=\"Subscriber\",'Enrollment Form'!$C894=\"Enroll\",'Enrollment Form'!$AN894<>\"\"),\"Y\",\"N\")))","v":""},{"$f":"IF($B887=\"N\",\"\",IF(OR('Enrollment Form'!$B894<>\"Subscriber\",'Enrollment Form'!$C894=\"ROC\"),\"-\",IF(AND('Enrollment Form'!$B894=\"Subscriber\",'Enrollment Form'!$C894=\"Enroll\",'Enrollment Form'!$AP894<>\"\"),\"Y\",\"N\")))","v":""},{"$f":"IF($B887=\"N\",\"\",IF($Q887=\"-\",\"-\",IF(AND($Q887=\"Y\",'Enrollment Form'!$AP894=\"No\"),\"-\",IF(AND($Q887=\"Y\",'Enrollment Form'!$AP894=\"Yes\",'Enrollment Form'!$AQ894<>\"\"),\"Y\",\"N\"))))","v":""},{"$f":"IF($B887=\"N\",\"\",IF(OR('Enrollment Form'!$B894<>\"Subscriber\",'Enrollment Form'!$C894=\"ROC\"),\"-\",IF(AND('Enrollment Form'!$B894=\"Subscriber\",'Enrollment Form'!$C894=\"Enroll\",'Enrollment Form'!$CO894<>\"\"),\"Y\",\"N\")))","v":""},{"$f":"IF($B887=\"N\",\"\",IF($S887=\"-\",\"-\",IF(AND($S887=\"Y\",'Enrollment Form'!$CO894=\"No\"),\"-\",IF(AND($S887=\"Y\",'Enrollment Form'!$CO894=\"Yes\",'Enrollment Form'!$CP894<>\"\"),\"Y\",\"N\"))))","v":""},{"$f":"IF(OR('Enrollment Form'!$AV894=\"Yes\",'Enrollment Form'!$AV894=\"\"),\"-\",IF(AND('Enrollment Form'!$AV894=\"No\",ISERROR(FIND(\"HMO\",VLOOKUP('Enrollment Form'!G894,'Enrollment Form'!H$11:J$1000,3,FALSE),1))=FALSE,COUNTA('Enrollment Form'!$AW894:$AZ894)=4),\"Y\",\"N\"))","v":"-"},{"$f":"IF($B887=\"N\",\"\",IF('Enrollment Form'!$B894=\"Subscriber\",\"-\",IF(COUNTA('Enrollment Form'!$BE894,'Enrollment Form'!$BG894)=2,\"Y\",\"N\")))","v":""},{"$f":"IF($B887=\"N\",\"\",IF(OR('Enrollment Form'!$AU894=\"\",'Enrollment Form'!$AU894=\"No\"),\"-\",IF(AND('Enrollment Form'!$AU894=\"Yes\",COUNTA('Enrollment Form'!$CK894)=1),\"Y\",\"N\")))","v":""},{"$f":"IF(OR('Enrollment Form'!$CK894=\"\",'Enrollment Form'!$CK894=\"No\"),\"-\",IF(COUNTA('Enrollment Form'!$CM894:$CN894)=2,\"Y\",\"N\"))","v":"-"},{"$f":"IF($B887=\"N\",\"\",IF(COUNTIF('Enrollment Form'!$CZ894:$DO894,\"Other\")=COUNTA('Enrollment Form'!$DF894,'Enrollment Form'!$DA894,'Enrollment Form'!$DK894,'Enrollment Form'!$DP894),\"Y\",\"N\"))","v":""},{"$f":"IF($B887=\"N\",\"\",IF(OR('Enrollment Form'!B894<>\"Subscriber\",'Enrollment Form'!C894=\"ROC\",COUNTIF('Enrollment Form'!AS894:AT894,\"Yes\")>=1),\"-\",IF(AND('Enrollment Form'!C894=\"Enroll\",COUNTIF('Enrollment Form'!AS894:AT894,\"No\")=2,'Enrollment Form'!AU894=\"\"),\"N\",\"Y\")))","v":""},{"$f":"IF(OR(B887=\"N\",'Enrollment Form'!B894<>\"Subscriber\",'Enrollment Form'!C894=\"ROC\",'Enrollment Form'!O894<>\"Multiple of Salary\"),\"-\",IF(COUNTA('Enrollment Form'!T894:U894)<2,\"N\",\"Y\"))","v":"-"},{"$f":"IF(B887=\"N\",\"\",IF(OR('Enrollment Form'!C894=\"ROC\",'Enrollment Form'!B894<>\"Subscriber\",'Enrollment Form'!O894=\"Waive\",'Enrollment Form'!O894=\"\"),\"-\",IF('Enrollment Form'!P894=\"\",\"N\",\"Y\")))","v":""},{"$f":"IF($B887=\"N\",\"\",IF(AND('Enrollment Form'!$C894=\"ROC\",'Enrollment Form'!$DS894<>\"\"),\"Y\",IF(AND('Enrollment Form'!$C894=\"ROC\",'Enrollment Form'!$DS894=\"\"),\"N\",IF(AND('Enrollment Form'!$C894=\"Enroll\",'Enrollment Form'!$B894=\"Subscriber\",'Enrollment Form'!$CQ894=\"No\",'Enrollment Form'!$DS894=\"\"),\"N\",IF(AND('Enrollment Form'!$C894=\"Enroll\",'Enrollment Form'!$B894=\"Subscriber\",'Enrollment Form'!$CQ894=\"Yes\"),\"-\",\"Y\")))))","v":""},{"$f":"IF($B887=\"N\",\"\",IF(AND('Enrollment Form'!$C894=\"ROC\",'Enrollment Form'!$DT894<>\"\"),\"Y\",IF(AND('Enrollment Form'!$C894=\"ROC\",'Enrollment Form'!$DT894=\"\"),\"N\",IF(AND('Enrollment Form'!$C894=\"Enroll\",'Enrollment Form'!$B894=\"Subscriber\",'Enrollment Form'!$CQ894=\"No\",'Enrollment Form'!$DT894=\"\"),\"N\",IF(AND('Enrollment Form'!$C894=\"Enroll\",'Enrollment Form'!$B894=\"Subscriber\",'Enrollment Form'!$CQ894=\"Yes\"),\"-\",\"Y\")))))","v":""},{"$f":"IF('Enrollment Form'!AH894=\"\",\"\",IF(ISERROR(SEARCH(\".\",'Enrollment Form'!AH894,SEARCH(\"@\",'Enrollment Form'!AH894))),\"N\",\"Y\"))","v":""},{"$f":"IF(OR($B887=\"N\",'Enrollment Form'!$G894=\"\"),\"\",IF('Enrollment Form'!$B894<>\"Subscriber\",\"-\",IF(COUNTIF('Enrollment Form'!$AS894:$AT894,\"Yes\")=2,\"N\",\"Y\")))","v":""},{"$f":"IF(OR('Enrollment Form'!$CC894=\"\",'Enrollment Form'!$CC894=\"No\"),\"-\",IF(AND('Enrollment Form'!$CC894=\"Yes\",'Enrollment Form'!$CD894=\"\"),\"N\",\"Y\"))","v":"-"},{"$f":"IF(OR('Enrollment Form'!$CE894=\"\",'Enrollment Form'!$CE894=\"No\"),\"-\",IF(AND('Enrollment Form'!$CE894=\"Yes\",'Enrollment Form'!$CF894=\"\"),\"N\",\"Y\"))","v":"-"},{"$f":"IF(OR('Enrollment Form'!$CG894=\"\",'Enrollment Form'!$CG894=\"No\"),\"-\",IF(AND('Enrollment Form'!$CG894=\"Yes\",'Enrollment Form'!$CH894=\"\"),\"N\",\"Y\"))","v":"-"},{"$f":"IF(OR('Enrollment Form'!$CG894=\"\",'Enrollment Form'!$CG894=\"No\"),\"-\",IF(AND('Enrollment Form'!$CG894=\"Yes\",'Enrollment Form'!$CI894=\"\"),\"N\",\"Y\"))","v":"-"},{"$f":"IF('Enrollment Form'!B894<>\"Subscriber\",\"-\",IF(AND('Enrollment Form'!B894=\"Subscriber\",'Enrollment Form'!C894=\"Enroll\",'Enrollment Form'!AA894=\"\"),\"N\",\"Y\"))","v":"-"},{"$f":"IF(OR('Enrollment Form'!B894=\"Subscriber\",'Enrollment Form'!B894=\"\"),\"-\",IF('Enrollment Form'!BI894=\"\",\"N\",\"Y\"))","v":"-"},{"$f":"IF('Enrollment Form'!B894<>\"Subscriber\",\"-\",IF(AND('Enrollment Form'!B894=\"Subscriber\",'Enrollment Form'!G894=\"\"),\"N\",\"Y\"))","v":"-"},{"$f":"IF('Enrollment Form'!A894=\"\",\"\",IF('Enrollment Form'!B894=\"Subscriber\",\"-\",IF(AND('Enrollment Form'!B894<>\"Subscriber\",'Enrollment Form'!G894='Enrollment Form'!H894),\"N\",\"Y\")))","v":""},0]
[895,{"$f":"IF('Enrollment Form'!$A895<>\"\",\"Y\",\"N\")","v":"N"},{"$f":"IF(AND('Enrollment Form'!$B895=\"\",'Enrollment Form'!$C895<>\"\"),\"N\",IF($B888=\"N\",\"\",\"Y\"))","v":""},{"$f":"IF(OR($B888=\"N\",'Enrollment Form'!G895=\"\"),\"\",IF('Enrollment Form'!$B895<>\"Subscriber\",\"\",IF('Enrollment Form'!$G895='Enrollment Form'!$H895,\"Y\",\"N\")))","v":""},{"$f":"IF($B888=\"N\",\"\",IF(AND(COUNTIFS('Enrollment Form'!$H$11:$H$1000,'Enrollment Form'!$H895,'Enrollment Form'!$B$11:$B$1000,'Enrollment Form'!$B895)>1,'Enrollment Form'!$H895<>\"\"),\"N\",\"Y\"))","v":""},{"$f":"IF($B888=\"N\",\"\",IF(LEN('Enrollment Form'!$Y895)=0,\"\",IF(LEN('Enrollment Form'!$Y895)<>5,\"N\",\"Y\")))","v":""},{"$f":"IF($B888=\"N\",\"\",IF(LEN('Enrollment Form'!$AD895=0),\"\",IF(LEN('Enrollment Form'!$AD895)<>5,\"N\",\"Y\")))","v":""},{"$f":"IF($B888=\"N\",\"\",IF(LEN('Enrollment Form'!$BL895=0),\"\",IF(LEN('Enrollment Form'!$BL895)<>5,\"N\",\"Y\")))","v":""},{"$f":"IF($B888=\"N\",\"\",IF(LEN('Enrollment Form'!$AE895)=0,\"\",IF(LEN('Enrollment Form'!$AE895)<>10,\"N\",\"Y\")))","v":""},{"$f":"IF($B888=\"N\",\"\",IF(LEN('Enrollment Form'!$AF895)=0,\"\",IF(LEN('Enrollment Form'!$AF895)<>10,\"N\",\"Y\")))","v":""},{"$f":"IF('Enrollment Form'!$O895<>\"Graded\",\"-\",IF(AND('Enrollment Form'!$O895=\"Graded\",'Enrollment Form'!$AO895<>\"\"),\"Y\",\"N\"))","v":"-"},{"$f":"IF($B888=\"N\",\"\",IF(OR('Enrollment Form'!$B895<>\"Subscriber\",'Enrollment Form'!$C895=\"ROC\"),\"-\",IF(AND('Enrollment Form'!$B895=\"Subscriber\",'Enrollment Form'!$C895=\"Enroll\",'Enrollment Form'!$AJ895<>\"\"),\"Y\",\"N\")))","v":""},{"$f":"IF($B888=\"N\",\"\",IF(OR('Enrollment Form'!$B895<>\"Subscriber\",'Enrollment Form'!$C895=\"ROC\"),\"-\",IF(AND('Enrollment Form'!$B895=\"Subscriber\",'Enrollment Form'!$C895=\"Enroll\",'Enrollment Form'!$AK895<>\"\"),\"Y\",\"N\")))","v":""},{"$f":"IF($B888=\"N\",\"\",IF(OR('Enrollment Form'!$B895<>\"Subscriber\",'Enrollment Form'!$C895=\"ROC\"),\"-\",IF(AND('Enrollment Form'!$B895=\"Subscriber\",'Enrollment Form'!$C895=\"Enroll\",'Enrollment Form'!$AL895<>\"\"),\"Y\",\"N\")))","v":""},{"$f":"IF($B888=\"N\",\"\",IF(OR('Enrollment Form'!$B895<>\"Subscriber\",'Enrollment Form'!$C895=\"ROC\"),\"-\",IF(AND('Enrollment Form'!$B895=\"Subscriber\",'Enrollment Form'!$C895=\"Enroll\",'Enrollment Form'!$AM895<>\"\"),\"Y\",\"N\")))","v":""},{"$f":"IF($B888=\"N\",\"\",IF(OR('Enrollment Form'!$B895<>\"Subscriber\",'Enrollment Form'!$C895=\"ROC\"),\"-\",IF(AND('Enrollment Form'!$B895=\"Subscriber\",'Enrollment Form'!$C895=\"Enroll\",'Enrollment Form'!$AN895<>\"\"),\"Y\",\"N\")))","v":""},{"$f":"IF($B888=\"N\",\"\",IF(OR('Enrollment Form'!$B895<>\"Subscriber\",'Enrollment Form'!$C895=\"ROC\"),\"-\",IF(AND('Enrollment Form'!$B895=\"Subscriber\",'Enrollment Form'!$C895=\"Enroll\",'Enrollment Form'!$AP895<>\"\"),\"Y\",\"N\")))","v":""},{"$f":"IF($B888=\"N\",\"\",IF($Q888=\"-\",\"-\",IF(AND($Q888=\"Y\",'Enrollment Form'!$AP895=\"No\"),\"-\",IF(AND($Q888=\"Y\",'Enrollment Form'!$AP895=\"Yes\",'Enrollment Form'!$AQ895<>\"\"),\"Y\",\"N\"))))","v":""},{"$f":"IF($B888=\"N\",\"\",IF(OR('Enrollment Form'!$B895<>\"Subscriber\",'Enrollment Form'!$C895=\"ROC\"),\"-\",IF(AND('Enrollment Form'!$B895=\"Subscriber\",'Enrollment Form'!$C895=\"Enroll\",'Enrollment Form'!$CO895<>\"\"),\"Y\",\"N\")))","v":""},{"$f":"IF($B888=\"N\",\"\",IF($S888=\"-\",\"-\",IF(AND($S888=\"Y\",'Enrollment Form'!$CO895=\"No\"),\"-\",IF(AND($S888=\"Y\",'Enrollment Form'!$CO895=\"Yes\",'Enrollment Form'!$CP895<>\"\"),\"Y\",\"N\"))))","v":""},{"$f":"IF(OR('Enrollment Form'!$AV895=\"Yes\",'Enrollment Form'!$AV895=\"\"),\"-\",IF(AND('Enrollment Form'!$AV895=\"No\",ISERROR(FIND(\"HMO\",VLOOKUP('Enrollment Form'!G895,'Enrollment Form'!H$11:J$1000,3,FALSE),1))=FALSE,COUNTA('Enrollment Form'!$AW895:$AZ895)=4),\"Y\",\"N\"))","v":"-"},{"$f":"IF($B888=\"N\",\"\",IF('Enrollment Form'!$B895=\"Subscriber\",\"-\",IF(COUNTA('Enrollment Form'!$BE895,'Enrollment Form'!$BG895)=2,\"Y\",\"N\")))","v":""},{"$f":"IF($B888=\"N\",\"\",IF(OR('Enrollment Form'!$AU895=\"\",'Enrollment Form'!$AU895=\"No\"),\"-\",IF(AND('Enrollment Form'!$AU895=\"Yes\",COUNTA('Enrollment Form'!$CK895)=1),\"Y\",\"N\")))","v":""},{"$f":"IF(OR('Enrollment Form'!$CK895=\"\",'Enrollment Form'!$CK895=\"No\"),\"-\",IF(COUNTA('Enrollment Form'!$CM895:$CN895)=2,\"Y\",\"N\"))","v":"-"},{"$f":"IF($B888=\"N\",\"\",IF(COUNTIF('Enrollment Form'!$CZ895:$DO895,\"Other\")=COUNTA('Enrollment Form'!$DF895,'Enrollment Form'!$DA895,'Enrollment Form'!$DK895,'Enrollment Form'!$DP895),\"Y\",\"N\"))","v":""},{"$f":"IF($B888=\"N\",\"\",IF(OR('Enrollment Form'!B895<>\"Subscriber\",'Enrollment Form'!C895=\"ROC\",COUNTIF('Enrollment Form'!AS895:AT895,\"Yes\")>=1),\"-\",IF(AND('Enrollment Form'!C895=\"Enroll\",COUNTIF('Enrollment Form'!AS895:AT895,\"No\")=2,'Enrollment Form'!AU895=\"\"),\"N\",\"Y\")))","v":""},{"$f":"IF(OR(B888=\"N\",'Enrollment Form'!B895<>\"Subscriber\",'Enrollment Form'!C895=\"ROC\",'Enrollment Form'!O895<>\"Multiple of Salary\"),\"-\",IF(COUNTA('Enrollment Form'!T895:U895)<2,\"N\",\"Y\"))","v":"-"},{"$f":"IF(B888=\"N\",\"\",IF(OR('Enrollment Form'!C895=\"ROC\",'Enrollment Form'!B895<>\"Subscriber\",'Enrollment Form'!O895=\"Waive\",'Enrollment Form'!O895=\"\"),\"-\",IF('Enrollment Form'!P895=\"\",\"N\",\"Y\")))","v":""},{"$f":"IF($B888=\"N\",\"\",IF(AND('Enrollment Form'!$C895=\"ROC\",'Enrollment Form'!$DS895<>\"\"),\"Y\",IF(AND('Enrollment Form'!$C895=\"ROC\",'Enrollment Form'!$DS895=\"\"),\"N\",IF(AND('Enrollment Form'!$C895=\"Enroll\",'Enrollment Form'!$B895=\"Subscriber\",'Enrollment Form'!$CQ895=\"No\",'Enrollment Form'!$DS895=\"\"),\"N\",IF(AND('Enrollment Form'!$C895=\"Enroll\",'Enrollment Form'!$B895=\"Subscriber\",'Enrollment Form'!$CQ895=\"Yes\"),\"-\",\"Y\")))))","v":""},{"$f":"IF($B888=\"N\",\"\",IF(AND('Enrollment Form'!$C895=\"ROC\",'Enrollment Form'!$DT895<>\"\"),\"Y\",IF(AND('Enrollment Form'!$C895=\"ROC\",'Enrollment Form'!$DT895=\"\"),\"N\",IF(AND('Enrollment Form'!$C895=\"Enroll\",'Enrollment Form'!$B895=\"Subscriber\",'Enrollment Form'!$CQ895=\"No\",'Enrollment Form'!$DT895=\"\"),\"N\",IF(AND('Enrollment Form'!$C895=\"Enroll\",'Enrollment Form'!$B895=\"Subscriber\",'Enrollment Form'!$CQ895=\"Yes\"),\"-\",\"Y\")))))","v":""},{"$f":"IF('Enrollment Form'!AH895=\"\",\"\",IF(ISERROR(SEARCH(\".\",'Enrollment Form'!AH895,SEARCH(\"@\",'Enrollment Form'!AH895))),\"N\",\"Y\"))","v":""},{"$f":"IF(OR($B888=\"N\",'Enrollment Form'!$G895=\"\"),\"\",IF('Enrollment Form'!$B895<>\"Subscriber\",\"-\",IF(COUNTIF('Enrollment Form'!$AS895:$AT895,\"Yes\")=2,\"N\",\"Y\")))","v":""},{"$f":"IF(OR('Enrollment Form'!$CC895=\"\",'Enrollment Form'!$CC895=\"No\"),\"-\",IF(AND('Enrollment Form'!$CC895=\"Yes\",'Enrollment Form'!$CD895=\"\"),\"N\",\"Y\"))","v":"-"},{"$f":"IF(OR('Enrollment Form'!$CE895=\"\",'Enrollment Form'!$CE895=\"No\"),\"-\",IF(AND('Enrollment Form'!$CE895=\"Yes\",'Enrollment Form'!$CF895=\"\"),\"N\",\"Y\"))","v":"-"},{"$f":"IF(OR('Enrollment Form'!$CG895=\"\",'Enrollment Form'!$CG895=\"No\"),\"-\",IF(AND('Enrollment Form'!$CG895=\"Yes\",'Enrollment Form'!$CH895=\"\"),\"N\",\"Y\"))","v":"-"},{"$f":"IF(OR('Enrollment Form'!$CG895=\"\",'Enrollment Form'!$CG895=\"No\"),\"-\",IF(AND('Enrollment Form'!$CG895=\"Yes\",'Enrollment Form'!$CI895=\"\"),\"N\",\"Y\"))","v":"-"},{"$f":"IF('Enrollment Form'!B895<>\"Subscriber\",\"-\",IF(AND('Enrollment Form'!B895=\"Subscriber\",'Enrollment Form'!C895=\"Enroll\",'Enrollment Form'!AA895=\"\"),\"N\",\"Y\"))","v":"-"},{"$f":"IF(OR('Enrollment Form'!B895=\"Subscriber\",'Enrollment Form'!B895=\"\"),\"-\",IF('Enrollment Form'!BI895=\"\",\"N\",\"Y\"))","v":"-"},{"$f":"IF('Enrollment Form'!B895<>\"Subscriber\",\"-\",IF(AND('Enrollment Form'!B895=\"Subscriber\",'Enrollment Form'!G895=\"\"),\"N\",\"Y\"))","v":"-"},{"$f":"IF('Enrollment Form'!A895=\"\",\"\",IF('Enrollment Form'!B895=\"Subscriber\",\"-\",IF(AND('Enrollment Form'!B895<>\"Subscriber\",'Enrollment Form'!G895='Enrollment Form'!H895),\"N\",\"Y\")))","v":""},0]
[896,{"$f":"IF('Enrollment Form'!$A896<>\"\",\"Y\",\"N\")","v":"N"},{"$f":"IF(AND('Enrollment Form'!$B896=\"\",'Enrollment Form'!$C896<>\"\"),\"N\",IF($B889=\"N\",\"\",\"Y\"))","v":""},{"$f":"IF(OR($B889=\"N\",'Enrollment Form'!G896=\"\"),\"\",IF('Enrollment Form'!$B896<>\"Subscriber\",\"\",IF('Enrollment Form'!$G896='Enrollment Form'!$H896,\"Y\",\"N\")))","v":""},{"$f":"IF($B889=\"N\",\"\",IF(AND(COUNTIFS('Enrollment Form'!$H$11:$H$1000,'Enrollment Form'!$H896,'Enrollment Form'!$B$11:$B$1000,'Enrollment Form'!$B896)>1,'Enrollment Form'!$H896<>\"\"),\"N\",\"Y\"))","v":""},{"$f":"IF($B889=\"N\",\"\",IF(LEN('Enrollment Form'!$Y896)=0,\"\",IF(LEN('Enrollment Form'!$Y896)<>5,\"N\",\"Y\")))","v":""},{"$f":"IF($B889=\"N\",\"\",IF(LEN('Enrollment Form'!$AD896=0),\"\",IF(LEN('Enrollment Form'!$AD896)<>5,\"N\",\"Y\")))","v":""},{"$f":"IF($B889=\"N\",\"\",IF(LEN('Enrollment Form'!$BL896=0),\"\",IF(LEN('Enrollment Form'!$BL896)<>5,\"N\",\"Y\")))","v":""},{"$f":"IF($B889=\"N\",\"\",IF(LEN('Enrollment Form'!$AE896)=0,\"\",IF(LEN('Enrollment Form'!$AE896)<>10,\"N\",\"Y\")))","v":""},{"$f":"IF($B889=\"N\",\"\",IF(LEN('Enrollment Form'!$AF896)=0,\"\",IF(LEN('Enrollment Form'!$AF896)<>10,\"N\",\"Y\")))","v":""},{"$f":"IF('Enrollment Form'!$O896<>\"Graded\",\"-\",IF(AND('Enrollment Form'!$O896=\"Graded\",'Enrollment Form'!$AO896<>\"\"),\"Y\",\"N\"))","v":"-"},{"$f":"IF($B889=\"N\",\"\",IF(OR('Enrollment Form'!$B896<>\"Subscriber\",'Enrollment Form'!$C896=\"ROC\"),\"-\",IF(AND('Enrollment Form'!$B896=\"Subscriber\",'Enrollment Form'!$C896=\"Enroll\",'Enrollment Form'!$AJ896<>\"\"),\"Y\",\"N\")))","v":""},{"$f":"IF($B889=\"N\",\"\",IF(OR('Enrollment Form'!$B896<>\"Subscriber\",'Enrollment Form'!$C896=\"ROC\"),\"-\",IF(AND('Enrollment Form'!$B896=\"Subscriber\",'Enrollment Form'!$C896=\"Enroll\",'Enrollment Form'!$AK896<>\"\"),\"Y\",\"N\")))","v":""},{"$f":"IF($B889=\"N\",\"\",IF(OR('Enrollment Form'!$B896<>\"Subscriber\",'Enrollment Form'!$C896=\"ROC\"),\"-\",IF(AND('Enrollment Form'!$B896=\"Subscriber\",'Enrollment Form'!$C896=\"Enroll\",'Enrollment Form'!$AL896<>\"\"),\"Y\",\"N\")))","v":""},{"$f":"IF($B889=\"N\",\"\",IF(OR('Enrollment Form'!$B896<>\"Subscriber\",'Enrollment Form'!$C896=\"ROC\"),\"-\",IF(AND('Enrollment Form'!$B896=\"Subscriber\",'Enrollment Form'!$C896=\"Enroll\",'Enrollment Form'!$AM896<>\"\"),\"Y\",\"N\")))","v":""},{"$f":"IF($B889=\"N\",\"\",IF(OR('Enrollment Form'!$B896<>\"Subscriber\",'Enrollment Form'!$C896=\"ROC\"),\"-\",IF(AND('Enrollment Form'!$B896=\"Subscriber\",'Enrollment Form'!$C896=\"Enroll\",'Enrollment Form'!$AN896<>\"\"),\"Y\",\"N\")))","v":""},{"$f":"IF($B889=\"N\",\"\",IF(OR('Enrollment Form'!$B896<>\"Subscriber\",'Enrollment Form'!$C896=\"ROC\"),\"-\",IF(AND('Enrollment Form'!$B896=\"Subscriber\",'Enrollment Form'!$C896=\"Enroll\",'Enrollment Form'!$AP896<>\"\"),\"Y\",\"N\")))","v":""},{"$f":"IF($B889=\"N\",\"\",IF($Q889=\"-\",\"-\",IF(AND($Q889=\"Y\",'Enrollment Form'!$AP896=\"No\"),\"-\",IF(AND($Q889=\"Y\",'Enrollment Form'!$AP896=\"Yes\",'Enrollment Form'!$AQ896<>\"\"),\"Y\",\"N\"))))","v":""},{"$f":"IF($B889=\"N\",\"\",IF(OR('Enrollment Form'!$B896<>\"Subscriber\",'Enrollment Form'!$C896=\"ROC\"),\"-\",IF(AND('Enrollment Form'!$B896=\"Subscriber\",'Enrollment Form'!$C896=\"Enroll\",'Enrollment Form'!$CO896<>\"\"),\"Y\",\"N\")))","v":""},{"$f":"IF($B889=\"N\",\"\",IF($S889=\"-\",\"-\",IF(AND($S889=\"Y\",'Enrollment Form'!$CO896=\"No\"),\"-\",IF(AND($S889=\"Y\",'Enrollment Form'!$CO896=\"Yes\",'Enrollment Form'!$CP896<>\"\"),\"Y\",\"N\"))))","v":""},{"$f":"IF(OR('Enrollment Form'!$AV896=\"Yes\",'Enrollment Form'!$AV896=\"\"),\"-\",IF(AND('Enrollment Form'!$AV896=\"No\",ISERROR(FIND(\"HMO\",VLOOKUP('Enrollment Form'!G896,'Enrollment Form'!H$11:J$1000,3,FALSE),1))=FALSE,COUNTA('Enrollment Form'!$AW896:$AZ896)=4),\"Y\",\"N\"))","v":"-"},{"$f":"IF($B889=\"N\",\"\",IF('Enrollment Form'!$B896=\"Subscriber\",\"-\",IF(COUNTA('Enrollment Form'!$BE896,'Enrollment Form'!$BG896)=2,\"Y\",\"N\")))","v":""},{"$f":"IF($B889=\"N\",\"\",IF(OR('Enrollment Form'!$AU896=\"\",'Enrollment Form'!$AU896=\"No\"),\"-\",IF(AND('Enrollment Form'!$AU896=\"Yes\",COUNTA('Enrollment Form'!$CK896)=1),\"Y\",\"N\")))","v":""},{"$f":"IF(OR('Enrollment Form'!$CK896=\"\",'Enrollment Form'!$CK896=\"No\"),\"-\",IF(COUNTA('Enrollment Form'!$CM896:$CN896)=2,\"Y\",\"N\"))","v":"-"},{"$f":"IF($B889=\"N\",\"\",IF(COUNTIF('Enrollment Form'!$CZ896:$DO896,\"Other\")=COUNTA('Enrollment Form'!$DF896,'Enrollment Form'!$DA896,'Enrollment Form'!$DK896,'Enrollment Form'!$DP896),\"Y\",\"N\"))","v":""},{"$f":"IF($B889=\"N\",\"\",IF(OR('Enrollment Form'!B896<>\"Subscriber\",'Enrollment Form'!C896=\"ROC\",COUNTIF('Enrollment Form'!AS896:AT896,\"Yes\")>=1),\"-\",IF(AND('Enrollment Form'!C896=\"Enroll\",COUNTIF('Enrollment Form'!AS896:AT896,\"No\")=2,'Enrollment Form'!AU896=\"\"),\"N\",\"Y\")))","v":""},{"$f":"IF(OR(B889=\"N\",'Enrollment Form'!B896<>\"Subscriber\",'Enrollment Form'!C896=\"ROC\",'Enrollment Form'!O896<>\"Multiple of Salary\"),\"-\",IF(COUNTA('Enrollment Form'!T896:U896)<2,\"N\",\"Y\"))","v":"-"},{"$f":"IF(B889=\"N\",\"\",IF(OR('Enrollment Form'!C896=\"ROC\",'Enrollment Form'!B896<>\"Subscriber\",'Enrollment Form'!O896=\"Waive\",'Enrollment Form'!O896=\"\"),\"-\",IF('Enrollment Form'!P896=\"\",\"N\",\"Y\")))","v":""},{"$f":"IF($B889=\"N\",\"\",IF(AND('Enrollment Form'!$C896=\"ROC\",'Enrollment Form'!$DS896<>\"\"),\"Y\",IF(AND('Enrollment Form'!$C896=\"ROC\",'Enrollment Form'!$DS896=\"\"),\"N\",IF(AND('Enrollment Form'!$C896=\"Enroll\",'Enrollment Form'!$B896=\"Subscriber\",'Enrollment Form'!$CQ896=\"No\",'Enrollment Form'!$DS896=\"\"),\"N\",IF(AND('Enrollment Form'!$C896=\"Enroll\",'Enrollment Form'!$B896=\"Subscriber\",'Enrollment Form'!$CQ896=\"Yes\"),\"-\",\"Y\")))))","v":""},{"$f":"IF($B889=\"N\",\"\",IF(AND('Enrollment Form'!$C896=\"ROC\",'Enrollment Form'!$DT896<>\"\"),\"Y\",IF(AND('Enrollment Form'!$C896=\"ROC\",'Enrollment Form'!$DT896=\"\"),\"N\",IF(AND('Enrollment Form'!$C896=\"Enroll\",'Enrollment Form'!$B896=\"Subscriber\",'Enrollment Form'!$CQ896=\"No\",'Enrollment Form'!$DT896=\"\"),\"N\",IF(AND('Enrollment Form'!$C896=\"Enroll\",'Enrollment Form'!$B896=\"Subscriber\",'Enrollment Form'!$CQ896=\"Yes\"),\"-\",\"Y\")))))","v":""},{"$f":"IF('Enrollment Form'!AH896=\"\",\"\",IF(ISERROR(SEARCH(\".\",'Enrollment Form'!AH896,SEARCH(\"@\",'Enrollment Form'!AH896))),\"N\",\"Y\"))","v":""},{"$f":"IF(OR($B889=\"N\",'Enrollment Form'!$G896=\"\"),\"\",IF('Enrollment Form'!$B896<>\"Subscriber\",\"-\",IF(COUNTIF('Enrollment Form'!$AS896:$AT896,\"Yes\")=2,\"N\",\"Y\")))","v":""},{"$f":"IF(OR('Enrollment Form'!$CC896=\"\",'Enrollment Form'!$CC896=\"No\"),\"-\",IF(AND('Enrollment Form'!$CC896=\"Yes\",'Enrollment Form'!$CD896=\"\"),\"N\",\"Y\"))","v":"-"},{"$f":"IF(OR('Enrollment Form'!$CE896=\"\",'Enrollment Form'!$CE896=\"No\"),\"-\",IF(AND('Enrollment Form'!$CE896=\"Yes\",'Enrollment Form'!$CF896=\"\"),\"N\",\"Y\"))","v":"-"},{"$f":"IF(OR('Enrollment Form'!$CG896=\"\",'Enrollment Form'!$CG896=\"No\"),\"-\",IF(AND('Enrollment Form'!$CG896=\"Yes\",'Enrollment Form'!$CH896=\"\"),\"N\",\"Y\"))","v":"-"},{"$f":"IF(OR('Enrollment Form'!$CG896=\"\",'Enrollment Form'!$CG896=\"No\"),\"-\",IF(AND('Enrollment Form'!$CG896=\"Yes\",'Enrollment Form'!$CI896=\"\"),\"N\",\"Y\"))","v":"-"},{"$f":"IF('Enrollment Form'!B896<>\"Subscriber\",\"-\",IF(AND('Enrollment Form'!B896=\"Subscriber\",'Enrollment Form'!C896=\"Enroll\",'Enrollment Form'!AA896=\"\"),\"N\",\"Y\"))","v":"-"},{"$f":"IF(OR('Enrollment Form'!B896=\"Subscriber\",'Enrollment Form'!B896=\"\"),\"-\",IF('Enrollment Form'!BI896=\"\",\"N\",\"Y\"))","v":"-"},{"$f":"IF('Enrollment Form'!B896<>\"Subscriber\",\"-\",IF(AND('Enrollment Form'!B896=\"Subscriber\",'Enrollment Form'!G896=\"\"),\"N\",\"Y\"))","v":"-"},{"$f":"IF('Enrollment Form'!A896=\"\",\"\",IF('Enrollment Form'!B896=\"Subscriber\",\"-\",IF(AND('Enrollment Form'!B896<>\"Subscriber\",'Enrollment Form'!G896='Enrollment Form'!H896),\"N\",\"Y\")))","v":""},0]
[897,{"$f":"IF('Enrollment Form'!$A897<>\"\",\"Y\",\"N\")","v":"N"},{"$f":"IF(AND('Enrollment Form'!$B897=\"\",'Enrollment Form'!$C897<>\"\"),\"N\",IF($B890=\"N\",\"\",\"Y\"))","v":""},{"$f":"IF(OR($B890=\"N\",'Enrollment Form'!G897=\"\"),\"\",IF('Enrollment Form'!$B897<>\"Subscriber\",\"\",IF('Enrollment Form'!$G897='Enrollment Form'!$H897,\"Y\",\"N\")))","v":""},{"$f":"IF($B890=\"N\",\"\",IF(AND(COUNTIFS('Enrollment Form'!$H$11:$H$1000,'Enrollment Form'!$H897,'Enrollment Form'!$B$11:$B$1000,'Enrollment Form'!$B897)>1,'Enrollment Form'!$H897<>\"\"),\"N\",\"Y\"))","v":""},{"$f":"IF($B890=\"N\",\"\",IF(LEN('Enrollment Form'!$Y897)=0,\"\",IF(LEN('Enrollment Form'!$Y897)<>5,\"N\",\"Y\")))","v":""},{"$f":"IF($B890=\"N\",\"\",IF(LEN('Enrollment Form'!$AD897=0),\"\",IF(LEN('Enrollment Form'!$AD897)<>5,\"N\",\"Y\")))","v":""},{"$f":"IF($B890=\"N\",\"\",IF(LEN('Enrollment Form'!$BL897=0),\"\",IF(LEN('Enrollment Form'!$BL897)<>5,\"N\",\"Y\")))","v":""},{"$f":"IF($B890=\"N\",\"\",IF(LEN('Enrollment Form'!$AE897)=0,\"\",IF(LEN('Enrollment Form'!$AE897)<>10,\"N\",\"Y\")))","v":""},{"$f":"IF($B890=\"N\",\"\",IF(LEN('Enrollment Form'!$AF897)=0,\"\",IF(LEN('Enrollment Form'!$AF897)<>10,\"N\",\"Y\")))","v":""},{"$f":"IF('Enrollment Form'!$O897<>\"Graded\",\"-\",IF(AND('Enrollment Form'!$O897=\"Graded\",'Enrollment Form'!$AO897<>\"\"),\"Y\",\"N\"))","v":"-"},{"$f":"IF($B890=\"N\",\"\",IF(OR('Enrollment Form'!$B897<>\"Subscriber\",'Enrollment Form'!$C897=\"ROC\"),\"-\",IF(AND('Enrollment Form'!$B897=\"Subscriber\",'Enrollment Form'!$C897=\"Enroll\",'Enrollment Form'!$AJ897<>\"\"),\"Y\",\"N\")))","v":""},{"$f":"IF($B890=\"N\",\"\",IF(OR('Enrollment Form'!$B897<>\"Subscriber\",'Enrollment Form'!$C897=\"ROC\"),\"-\",IF(AND('Enrollment Form'!$B897=\"Subscriber\",'Enrollment Form'!$C897=\"Enroll\",'Enrollment Form'!$AK897<>\"\"),\"Y\",\"N\")))","v":""},{"$f":"IF($B890=\"N\",\"\",IF(OR('Enrollment Form'!$B897<>\"Subscriber\",'Enrollment Form'!$C897=\"ROC\"),\"-\",IF(AND('Enrollment Form'!$B897=\"Subscriber\",'Enrollment Form'!$C897=\"Enroll\",'Enrollment Form'!$AL897<>\"\"),\"Y\",\"N\")))","v":""},{"$f":"IF($B890=\"N\",\"\",IF(OR('Enrollment Form'!$B897<>\"Subscriber\",'Enrollment Form'!$C897=\"ROC\"),\"-\",IF(AND('Enrollment Form'!$B897=\"Subscriber\",'Enrollment Form'!$C897=\"Enroll\",'Enrollment Form'!$AM897<>\"\"),\"Y\",\"N\")))","v":""},{"$f":"IF($B890=\"N\",\"\",IF(OR('Enrollment Form'!$B897<>\"Subscriber\",'Enrollment Form'!$C897=\"ROC\"),\"-\",IF(AND('Enrollment Form'!$B897=\"Subscriber\",'Enrollment Form'!$C897=\"Enroll\",'Enrollment Form'!$AN897<>\"\"),\"Y\",\"N\")))","v":""},{"$f":"IF($B890=\"N\",\"\",IF(OR('Enrollment Form'!$B897<>\"Subscriber\",'Enrollment Form'!$C897=\"ROC\"),\"-\",IF(AND('Enrollment Form'!$B897=\"Subscriber\",'Enrollment Form'!$C897=\"Enroll\",'Enrollment Form'!$AP897<>\"\"),\"Y\",\"N\")))","v":""},{"$f":"IF($B890=\"N\",\"\",IF($Q890=\"-\",\"-\",IF(AND($Q890=\"Y\",'Enrollment Form'!$AP897=\"No\"),\"-\",IF(AND($Q890=\"Y\",'Enrollment Form'!$AP897=\"Yes\",'Enrollment Form'!$AQ897<>\"\"),\"Y\",\"N\"))))","v":""},{"$f":"IF($B890=\"N\",\"\",IF(OR('Enrollment Form'!$B897<>\"Subscriber\",'Enrollment Form'!$C897=\"ROC\"),\"-\",IF(AND('Enrollment Form'!$B897=\"Subscriber\",'Enrollment Form'!$C897=\"Enroll\",'Enrollment Form'!$CO897<>\"\"),\"Y\",\"N\")))","v":""},{"$f":"IF($B890=\"N\",\"\",IF($S890=\"-\",\"-\",IF(AND($S890=\"Y\",'Enrollment Form'!$CO897=\"No\"),\"-\",IF(AND($S890=\"Y\",'Enrollment Form'!$CO897=\"Yes\",'Enrollment Form'!$CP897<>\"\"),\"Y\",\"N\"))))","v":""},{"$f":"IF(OR('Enrollment Form'!$AV897=\"Yes\",'Enrollment Form'!$AV897=\"\"),\"-\",IF(AND('Enrollment Form'!$AV897=\"No\",ISERROR(FIND(\"HMO\",VLOOKUP('Enrollment Form'!G897,'Enrollment Form'!H$11:J$1000,3,FALSE),1))=FALSE,COUNTA('Enrollment Form'!$AW897:$AZ897)=4),\"Y\",\"N\"))","v":"-"},{"$f":"IF($B890=\"N\",\"\",IF('Enrollment Form'!$B897=\"Subscriber\",\"-\",IF(COUNTA('Enrollment Form'!$BE897,'Enrollment Form'!$BG897)=2,\"Y\",\"N\")))","v":""},{"$f":"IF($B890=\"N\",\"\",IF(OR('Enrollment Form'!$AU897=\"\",'Enrollment Form'!$AU897=\"No\"),\"-\",IF(AND('Enrollment Form'!$AU897=\"Yes\",COUNTA('Enrollment Form'!$CK897)=1),\"Y\",\"N\")))","v":""},{"$f":"IF(OR('Enrollment Form'!$CK897=\"\",'Enrollment Form'!$CK897=\"No\"),\"-\",IF(COUNTA('Enrollment Form'!$CM897:$CN897)=2,\"Y\",\"N\"))","v":"-"},{"$f":"IF($B890=\"N\",\"\",IF(COUNTIF('Enrollment Form'!$CZ897:$DO897,\"Other\")=COUNTA('Enrollment Form'!$DF897,'Enrollment Form'!$DA897,'Enrollment Form'!$DK897,'Enrollment Form'!$DP897),\"Y\",\"N\"))","v":""},{"$f":"IF($B890=\"N\",\"\",IF(OR('Enrollment Form'!B897<>\"Subscriber\",'Enrollment Form'!C897=\"ROC\",COUNTIF('Enrollment Form'!AS897:AT897,\"Yes\")>=1),\"-\",IF(AND('Enrollment Form'!C897=\"Enroll\",COUNTIF('Enrollment Form'!AS897:AT897,\"No\")=2,'Enrollment Form'!AU897=\"\"),\"N\",\"Y\")))","v":""},{"$f":"IF(OR(B890=\"N\",'Enrollment Form'!B897<>\"Subscriber\",'Enrollment Form'!C897=\"ROC\",'Enrollment Form'!O897<>\"Multiple of Salary\"),\"-\",IF(COUNTA('Enrollment Form'!T897:U897)<2,\"N\",\"Y\"))","v":"-"},{"$f":"IF(B890=\"N\",\"\",IF(OR('Enrollment Form'!C897=\"ROC\",'Enrollment Form'!B897<>\"Subscriber\",'Enrollment Form'!O897=\"Waive\",'Enrollment Form'!O897=\"\"),\"-\",IF('Enrollment Form'!P897=\"\",\"N\",\"Y\")))","v":""},{"$f":"IF($B890=\"N\",\"\",IF(AND('Enrollment Form'!$C897=\"ROC\",'Enrollment Form'!$DS897<>\"\"),\"Y\",IF(AND('Enrollment Form'!$C897=\"ROC\",'Enrollment Form'!$DS897=\"\"),\"N\",IF(AND('Enrollment Form'!$C897=\"Enroll\",'Enrollment Form'!$B897=\"Subscriber\",'Enrollment Form'!$CQ897=\"No\",'Enrollment Form'!$DS897=\"\"),\"N\",IF(AND('Enrollment Form'!$C897=\"Enroll\",'Enrollment Form'!$B897=\"Subscriber\",'Enrollment Form'!$CQ897=\"Yes\"),\"-\",\"Y\")))))","v":""},{"$f":"IF($B890=\"N\",\"\",IF(AND('Enrollment Form'!$C897=\"ROC\",'Enrollment Form'!$DT897<>\"\"),\"Y\",IF(AND('Enrollment Form'!$C897=\"ROC\",'Enrollment Form'!$DT897=\"\"),\"N\",IF(AND('Enrollment Form'!$C897=\"Enroll\",'Enrollment Form'!$B897=\"Subscriber\",'Enrollment Form'!$CQ897=\"No\",'Enrollment Form'!$DT897=\"\"),\"N\",IF(AND('Enrollment Form'!$C897=\"Enroll\",'Enrollment Form'!$B897=\"Subscriber\",'Enrollment Form'!$CQ897=\"Yes\"),\"-\",\"Y\")))))","v":""},{"$f":"IF('Enrollment Form'!AH897=\"\",\"\",IF(ISERROR(SEARCH(\".\",'Enrollment Form'!AH897,SEARCH(\"@\",'Enrollment Form'!AH897))),\"N\",\"Y\"))","v":""},{"$f":"IF(OR($B890=\"N\",'Enrollment Form'!$G897=\"\"),\"\",IF('Enrollment Form'!$B897<>\"Subscriber\",\"-\",IF(COUNTIF('Enrollment Form'!$AS897:$AT897,\"Yes\")=2,\"N\",\"Y\")))","v":""},{"$f":"IF(OR('Enrollment Form'!$CC897=\"\",'Enrollment Form'!$CC897=\"No\"),\"-\",IF(AND('Enrollment Form'!$CC897=\"Yes\",'Enrollment Form'!$CD897=\"\"),\"N\",\"Y\"))","v":"-"},{"$f":"IF(OR('Enrollment Form'!$CE897=\"\",'Enrollment Form'!$CE897=\"No\"),\"-\",IF(AND('Enrollment Form'!$CE897=\"Yes\",'Enrollment Form'!$CF897=\"\"),\"N\",\"Y\"))","v":"-"},{"$f":"IF(OR('Enrollment Form'!$CG897=\"\",'Enrollment Form'!$CG897=\"No\"),\"-\",IF(AND('Enrollment Form'!$CG897=\"Yes\",'Enrollment Form'!$CH897=\"\"),\"N\",\"Y\"))","v":"-"},{"$f":"IF(OR('Enrollment Form'!$CG897=\"\",'Enrollment Form'!$CG897=\"No\"),\"-\",IF(AND('Enrollment Form'!$CG897=\"Yes\",'Enrollment Form'!$CI897=\"\"),\"N\",\"Y\"))","v":"-"},{"$f":"IF('Enrollment Form'!B897<>\"Subscriber\",\"-\",IF(AND('Enrollment Form'!B897=\"Subscriber\",'Enrollment Form'!C897=\"Enroll\",'Enrollment Form'!AA897=\"\"),\"N\",\"Y\"))","v":"-"},{"$f":"IF(OR('Enrollment Form'!B897=\"Subscriber\",'Enrollment Form'!B897=\"\"),\"-\",IF('Enrollment Form'!BI897=\"\",\"N\",\"Y\"))","v":"-"},{"$f":"IF('Enrollment Form'!B897<>\"Subscriber\",\"-\",IF(AND('Enrollment Form'!B897=\"Subscriber\",'Enrollment Form'!G897=\"\"),\"N\",\"Y\"))","v":"-"},{"$f":"IF('Enrollment Form'!A897=\"\",\"\",IF('Enrollment Form'!B897=\"Subscriber\",\"-\",IF(AND('Enrollment Form'!B897<>\"Subscriber\",'Enrollment Form'!G897='Enrollment Form'!H897),\"N\",\"Y\")))","v":""},0]
[898,{"$f":"IF('Enrollment Form'!$A898<>\"\",\"Y\",\"N\")","v":"N"},{"$f":"IF(AND('Enrollment Form'!$B898=\"\",'Enrollment Form'!$C898<>\"\"),\"N\",IF($B891=\"N\",\"\",\"Y\"))","v":""},{"$f":"IF(OR($B891=\"N\",'Enrollment Form'!G898=\"\"),\"\",IF('Enrollment Form'!$B898<>\"Subscriber\",\"\",IF('Enrollment Form'!$G898='Enrollment Form'!$H898,\"Y\",\"N\")))","v":""},{"$f":"IF($B891=\"N\",\"\",IF(AND(COUNTIFS('Enrollment Form'!$H$11:$H$1000,'Enrollment Form'!$H898,'Enrollment Form'!$B$11:$B$1000,'Enrollment Form'!$B898)>1,'Enrollment Form'!$H898<>\"\"),\"N\",\"Y\"))","v":""},{"$f":"IF($B891=\"N\",\"\",IF(LEN('Enrollment Form'!$Y898)=0,\"\",IF(LEN('Enrollment Form'!$Y898)<>5,\"N\",\"Y\")))","v":""},{"$f":"IF($B891=\"N\",\"\",IF(LEN('Enrollment Form'!$AD898=0),\"\",IF(LEN('Enrollment Form'!$AD898)<>5,\"N\",\"Y\")))","v":""},{"$f":"IF($B891=\"N\",\"\",IF(LEN('Enrollment Form'!$BL898=0),\"\",IF(LEN('Enrollment Form'!$BL898)<>5,\"N\",\"Y\")))","v":""},{"$f":"IF($B891=\"N\",\"\",IF(LEN('Enrollment Form'!$AE898)=0,\"\",IF(LEN('Enrollment Form'!$AE898)<>10,\"N\",\"Y\")))","v":""},{"$f":"IF($B891=\"N\",\"\",IF(LEN('Enrollment Form'!$AF898)=0,\"\",IF(LEN('Enrollment Form'!$AF898)<>10,\"N\",\"Y\")))","v":""},{"$f":"IF('Enrollment Form'!$O898<>\"Graded\",\"-\",IF(AND('Enrollment Form'!$O898=\"Graded\",'Enrollment Form'!$AO898<>\"\"),\"Y\",\"N\"))","v":"-"},{"$f":"IF($B891=\"N\",\"\",IF(OR('Enrollment Form'!$B898<>\"Subscriber\",'Enrollment Form'!$C898=\"ROC\"),\"-\",IF(AND('Enrollment Form'!$B898=\"Subscriber\",'Enrollment Form'!$C898=\"Enroll\",'Enrollment Form'!$AJ898<>\"\"),\"Y\",\"N\")))","v":""},{"$f":"IF($B891=\"N\",\"\",IF(OR('Enrollment Form'!$B898<>\"Subscriber\",'Enrollment Form'!$C898=\"ROC\"),\"-\",IF(AND('Enrollment Form'!$B898=\"Subscriber\",'Enrollment Form'!$C898=\"Enroll\",'Enrollment Form'!$AK898<>\"\"),\"Y\",\"N\")))","v":""},{"$f":"IF($B891=\"N\",\"\",IF(OR('Enrollment Form'!$B898<>\"Subscriber\",'Enrollment Form'!$C898=\"ROC\"),\"-\",IF(AND('Enrollment Form'!$B898=\"Subscriber\",'Enrollment Form'!$C898=\"Enroll\",'Enrollment Form'!$AL898<>\"\"),\"Y\",\"N\")))","v":""},{"$f":"IF($B891=\"N\",\"\",IF(OR('Enrollment Form'!$B898<>\"Subscriber\",'Enrollment Form'!$C898=\"ROC\"),\"-\",IF(AND('Enrollment Form'!$B898=\"Subscriber\",'Enrollment Form'!$C898=\"Enroll\",'Enrollment Form'!$AM898<>\"\"),\"Y\",\"N\")))","v":""},{"$f":"IF($B891=\"N\",\"\",IF(OR('Enrollment Form'!$B898<>\"Subscriber\",'Enrollment Form'!$C898=\"ROC\"),\"-\",IF(AND('Enrollment Form'!$B898=\"Subscriber\",'Enrollment Form'!$C898=\"Enroll\",'Enrollment Form'!$AN898<>\"\"),\"Y\",\"N\")))","v":""},{"$f":"IF($B891=\"N\",\"\",IF(OR('Enrollment Form'!$B898<>\"Subscriber\",'Enrollment Form'!$C898=\"ROC\"),\"-\",IF(AND('Enrollment Form'!$B898=\"Subscriber\",'Enrollment Form'!$C898=\"Enroll\",'Enrollment Form'!$AP898<>\"\"),\"Y\",\"N\")))","v":""},{"$f":"IF($B891=\"N\",\"\",IF($Q891=\"-\",\"-\",IF(AND($Q891=\"Y\",'Enrollment Form'!$AP898=\"No\"),\"-\",IF(AND($Q891=\"Y\",'Enrollment Form'!$AP898=\"Yes\",'Enrollment Form'!$AQ898<>\"\"),\"Y\",\"N\"))))","v":""},{"$f":"IF($B891=\"N\",\"\",IF(OR('Enrollment Form'!$B898<>\"Subscriber\",'Enrollment Form'!$C898=\"ROC\"),\"-\",IF(AND('Enrollment Form'!$B898=\"Subscriber\",'Enrollment Form'!$C898=\"Enroll\",'Enrollment Form'!$CO898<>\"\"),\"Y\",\"N\")))","v":""},{"$f":"IF($B891=\"N\",\"\",IF($S891=\"-\",\"-\",IF(AND($S891=\"Y\",'Enrollment Form'!$CO898=\"No\"),\"-\",IF(AND($S891=\"Y\",'Enrollment Form'!$CO898=\"Yes\",'Enrollment Form'!$CP898<>\"\"),\"Y\",\"N\"))))","v":""},{"$f":"IF(OR('Enrollment Form'!$AV898=\"Yes\",'Enrollment Form'!$AV898=\"\"),\"-\",IF(AND('Enrollment Form'!$AV898=\"No\",ISERROR(FIND(\"HMO\",VLOOKUP('Enrollment Form'!G898,'Enrollment Form'!H$11:J$1000,3,FALSE),1))=FALSE,COUNTA('Enrollment Form'!$AW898:$AZ898)=4),\"Y\",\"N\"))","v":"-"},{"$f":"IF($B891=\"N\",\"\",IF('Enrollment Form'!$B898=\"Subscriber\",\"-\",IF(COUNTA('Enrollment Form'!$BE898,'Enrollment Form'!$BG898)=2,\"Y\",\"N\")))","v":""},{"$f":"IF($B891=\"N\",\"\",IF(OR('Enrollment Form'!$AU898=\"\",'Enrollment Form'!$AU898=\"No\"),\"-\",IF(AND('Enrollment Form'!$AU898=\"Yes\",COUNTA('Enrollment Form'!$CK898)=1),\"Y\",\"N\")))","v":""},{"$f":"IF(OR('Enrollment Form'!$CK898=\"\",'Enrollment Form'!$CK898=\"No\"),\"-\",IF(COUNTA('Enrollment Form'!$CM898:$CN898)=2,\"Y\",\"N\"))","v":"-"},{"$f":"IF($B891=\"N\",\"\",IF(COUNTIF('Enrollment Form'!$CZ898:$DO898,\"Other\")=COUNTA('Enrollment Form'!$DF898,'Enrollment Form'!$DA898,'Enrollment Form'!$DK898,'Enrollment Form'!$DP898),\"Y\",\"N\"))","v":""},{"$f":"IF($B891=\"N\",\"\",IF(OR('Enrollment Form'!B898<>\"Subscriber\",'Enrollment Form'!C898=\"ROC\",COUNTIF('Enrollment Form'!AS898:AT898,\"Yes\")>=1),\"-\",IF(AND('Enrollment Form'!C898=\"Enroll\",COUNTIF('Enrollment Form'!AS898:AT898,\"No\")=2,'Enrollment Form'!AU898=\"\"),\"N\",\"Y\")))","v":""},{"$f":"IF(OR(B891=\"N\",'Enrollment Form'!B898<>\"Subscriber\",'Enrollment Form'!C898=\"ROC\",'Enrollment Form'!O898<>\"Multiple of Salary\"),\"-\",IF(COUNTA('Enrollment Form'!T898:U898)<2,\"N\",\"Y\"))","v":"-"},{"$f":"IF(B891=\"N\",\"\",IF(OR('Enrollment Form'!C898=\"ROC\",'Enrollment Form'!B898<>\"Subscriber\",'Enrollment Form'!O898=\"Waive\",'Enrollment Form'!O898=\"\"),\"-\",IF('Enrollment Form'!P898=\"\",\"N\",\"Y\")))","v":""},{"$f":"IF($B891=\"N\",\"\",IF(AND('Enrollment Form'!$C898=\"ROC\",'Enrollment Form'!$DS898<>\"\"),\"Y\",IF(AND('Enrollment Form'!$C898=\"ROC\",'Enrollment Form'!$DS898=\"\"),\"N\",IF(AND('Enrollment Form'!$C898=\"Enroll\",'Enrollment Form'!$B898=\"Subscriber\",'Enrollment Form'!$CQ898=\"No\",'Enrollment Form'!$DS898=\"\"),\"N\",IF(AND('Enrollment Form'!$C898=\"Enroll\",'Enrollment Form'!$B898=\"Subscriber\",'Enrollment Form'!$CQ898=\"Yes\"),\"-\",\"Y\")))))","v":""},{"$f":"IF($B891=\"N\",\"\",IF(AND('Enrollment Form'!$C898=\"ROC\",'Enrollment Form'!$DT898<>\"\"),\"Y\",IF(AND('Enrollment Form'!$C898=\"ROC\",'Enrollment Form'!$DT898=\"\"),\"N\",IF(AND('Enrollment Form'!$C898=\"Enroll\",'Enrollment Form'!$B898=\"Subscriber\",'Enrollment Form'!$CQ898=\"No\",'Enrollment Form'!$DT898=\"\"),\"N\",IF(AND('Enrollment Form'!$C898=\"Enroll\",'Enrollment Form'!$B898=\"Subscriber\",'Enrollment Form'!$CQ898=\"Yes\"),\"-\",\"Y\")))))","v":""},{"$f":"IF('Enrollment Form'!AH898=\"\",\"\",IF(ISERROR(SEARCH(\".\",'Enrollment Form'!AH898,SEARCH(\"@\",'Enrollment Form'!AH898))),\"N\",\"Y\"))","v":""},{"$f":"IF(OR($B891=\"N\",'Enrollment Form'!$G898=\"\"),\"\",IF('Enrollment Form'!$B898<>\"Subscriber\",\"-\",IF(COUNTIF('Enrollment Form'!$AS898:$AT898,\"Yes\")=2,\"N\",\"Y\")))","v":""},{"$f":"IF(OR('Enrollment Form'!$CC898=\"\",'Enrollment Form'!$CC898=\"No\"),\"-\",IF(AND('Enrollment Form'!$CC898=\"Yes\",'Enrollment Form'!$CD898=\"\"),\"N\",\"Y\"))","v":"-"},{"$f":"IF(OR('Enrollment Form'!$CE898=\"\",'Enrollment Form'!$CE898=\"No\"),\"-\",IF(AND('Enrollment Form'!$CE898=\"Yes\",'Enrollment Form'!$CF898=\"\"),\"N\",\"Y\"))","v":"-"},{"$f":"IF(OR('Enrollment Form'!$CG898=\"\",'Enrollment Form'!$CG898=\"No\"),\"-\",IF(AND('Enrollment Form'!$CG898=\"Yes\",'Enrollment Form'!$CH898=\"\"),\"N\",\"Y\"))","v":"-"},{"$f":"IF(OR('Enrollment Form'!$CG898=\"\",'Enrollment Form'!$CG898=\"No\"),\"-\",IF(AND('Enrollment Form'!$CG898=\"Yes\",'Enrollment Form'!$CI898=\"\"),\"N\",\"Y\"))","v":"-"},{"$f":"IF('Enrollment Form'!B898<>\"Subscriber\",\"-\",IF(AND('Enrollment Form'!B898=\"Subscriber\",'Enrollment Form'!C898=\"Enroll\",'Enrollment Form'!AA898=\"\"),\"N\",\"Y\"))","v":"-"},{"$f":"IF(OR('Enrollment Form'!B898=\"Subscriber\",'Enrollment Form'!B898=\"\"),\"-\",IF('Enrollment Form'!BI898=\"\",\"N\",\"Y\"))","v":"-"},{"$f":"IF('Enrollment Form'!B898<>\"Subscriber\",\"-\",IF(AND('Enrollment Form'!B898=\"Subscriber\",'Enrollment Form'!G898=\"\"),\"N\",\"Y\"))","v":"-"},{"$f":"IF('Enrollment Form'!A898=\"\",\"\",IF('Enrollment Form'!B898=\"Subscriber\",\"-\",IF(AND('Enrollment Form'!B898<>\"Subscriber\",'Enrollment Form'!G898='Enrollment Form'!H898),\"N\",\"Y\")))","v":""},0]
[899,{"$f":"IF('Enrollment Form'!$A899<>\"\",\"Y\",\"N\")","v":"N"},{"$f":"IF(AND('Enrollment Form'!$B899=\"\",'Enrollment Form'!$C899<>\"\"),\"N\",IF($B892=\"N\",\"\",\"Y\"))","v":""},{"$f":"IF(OR($B892=\"N\",'Enrollment Form'!G899=\"\"),\"\",IF('Enrollment Form'!$B899<>\"Subscriber\",\"\",IF('Enrollment Form'!$G899='Enrollment Form'!$H899,\"Y\",\"N\")))","v":""},{"$f":"IF($B892=\"N\",\"\",IF(AND(COUNTIFS('Enrollment Form'!$H$11:$H$1000,'Enrollment Form'!$H899,'Enrollment Form'!$B$11:$B$1000,'Enrollment Form'!$B899)>1,'Enrollment Form'!$H899<>\"\"),\"N\",\"Y\"))","v":""},{"$f":"IF($B892=\"N\",\"\",IF(LEN('Enrollment Form'!$Y899)=0,\"\",IF(LEN('Enrollment Form'!$Y899)<>5,\"N\",\"Y\")))","v":""},{"$f":"IF($B892=\"N\",\"\",IF(LEN('Enrollment Form'!$AD899=0),\"\",IF(LEN('Enrollment Form'!$AD899)<>5,\"N\",\"Y\")))","v":""},{"$f":"IF($B892=\"N\",\"\",IF(LEN('Enrollment Form'!$BL899=0),\"\",IF(LEN('Enrollment Form'!$BL899)<>5,\"N\",\"Y\")))","v":""},{"$f":"IF($B892=\"N\",\"\",IF(LEN('Enrollment Form'!$AE899)=0,\"\",IF(LEN('Enrollment Form'!$AE899)<>10,\"N\",\"Y\")))","v":""},{"$f":"IF($B892=\"N\",\"\",IF(LEN('Enrollment Form'!$AF899)=0,\"\",IF(LEN('Enrollment Form'!$AF899)<>10,\"N\",\"Y\")))","v":""},{"$f":"IF('Enrollment Form'!$O899<>\"Graded\",\"-\",IF(AND('Enrollment Form'!$O899=\"Graded\",'Enrollment Form'!$AO899<>\"\"),\"Y\",\"N\"))","v":"-"},{"$f":"IF($B892=\"N\",\"\",IF(OR('Enrollment Form'!$B899<>\"Subscriber\",'Enrollment Form'!$C899=\"ROC\"),\"-\",IF(AND('Enrollment Form'!$B899=\"Subscriber\",'Enrollment Form'!$C899=\"Enroll\",'Enrollment Form'!$AJ899<>\"\"),\"Y\",\"N\")))","v":""},{"$f":"IF($B892=\"N\",\"\",IF(OR('Enrollment Form'!$B899<>\"Subscriber\",'Enrollment Form'!$C899=\"ROC\"),\"-\",IF(AND('Enrollment Form'!$B899=\"Subscriber\",'Enrollment Form'!$C899=\"Enroll\",'Enrollment Form'!$AK899<>\"\"),\"Y\",\"N\")))","v":""},{"$f":"IF($B892=\"N\",\"\",IF(OR('Enrollment Form'!$B899<>\"Subscriber\",'Enrollment Form'!$C899=\"ROC\"),\"-\",IF(AND('Enrollment Form'!$B899=\"Subscriber\",'Enrollment Form'!$C899=\"Enroll\",'Enrollment Form'!$AL899<>\"\"),\"Y\",\"N\")))","v":""},{"$f":"IF($B892=\"N\",\"\",IF(OR('Enrollment Form'!$B899<>\"Subscriber\",'Enrollment Form'!$C899=\"ROC\"),\"-\",IF(AND('Enrollment Form'!$B899=\"Subscriber\",'Enrollment Form'!$C899=\"Enroll\",'Enrollment Form'!$AM899<>\"\"),\"Y\",\"N\")))","v":""},{"$f":"IF($B892=\"N\",\"\",IF(OR('Enrollment Form'!$B899<>\"Subscriber\",'Enrollment Form'!$C899=\"ROC\"),\"-\",IF(AND('Enrollment Form'!$B899=\"Subscriber\",'Enrollment Form'!$C899=\"Enroll\",'Enrollment Form'!$AN899<>\"\"),\"Y\",\"N\")))","v":""},{"$f":"IF($B892=\"N\",\"\",IF(OR('Enrollment Form'!$B899<>\"Subscriber\",'Enrollment Form'!$C899=\"ROC\"),\"-\",IF(AND('Enrollment Form'!$B899=\"Subscriber\",'Enrollment Form'!$C899=\"Enroll\",'Enrollment Form'!$AP899<>\"\"),\"Y\",\"N\")))","v":""},{"$f":"IF($B892=\"N\",\"\",IF($Q892=\"-\",\"-\",IF(AND($Q892=\"Y\",'Enrollment Form'!$AP899=\"No\"),\"-\",IF(AND($Q892=\"Y\",'Enrollment Form'!$AP899=\"Yes\",'Enrollment Form'!$AQ899<>\"\"),\"Y\",\"N\"))))","v":""},{"$f":"IF($B892=\"N\",\"\",IF(OR('Enrollment Form'!$B899<>\"Subscriber\",'Enrollment Form'!$C899=\"ROC\"),\"-\",IF(AND('Enrollment Form'!$B899=\"Subscriber\",'Enrollment Form'!$C899=\"Enroll\",'Enrollment Form'!$CO899<>\"\"),\"Y\",\"N\")))","v":""},{"$f":"IF($B892=\"N\",\"\",IF($S892=\"-\",\"-\",IF(AND($S892=\"Y\",'Enrollment Form'!$CO899=\"No\"),\"-\",IF(AND($S892=\"Y\",'Enrollment Form'!$CO899=\"Yes\",'Enrollment Form'!$CP899<>\"\"),\"Y\",\"N\"))))","v":""},{"$f":"IF(OR('Enrollment Form'!$AV899=\"Yes\",'Enrollment Form'!$AV899=\"\"),\"-\",IF(AND('Enrollment Form'!$AV899=\"No\",ISERROR(FIND(\"HMO\",VLOOKUP('Enrollment Form'!G899,'Enrollment Form'!H$11:J$1000,3,FALSE),1))=FALSE,COUNTA('Enrollment Form'!$AW899:$AZ899)=4),\"Y\",\"N\"))","v":"-"},{"$f":"IF($B892=\"N\",\"\",IF('Enrollment Form'!$B899=\"Subscriber\",\"-\",IF(COUNTA('Enrollment Form'!$BE899,'Enrollment Form'!$BG899)=2,\"Y\",\"N\")))","v":""},{"$f":"IF($B892=\"N\",\"\",IF(OR('Enrollment Form'!$AU899=\"\",'Enrollment Form'!$AU899=\"No\"),\"-\",IF(AND('Enrollment Form'!$AU899=\"Yes\",COUNTA('Enrollment Form'!$CK899)=1),\"Y\",\"N\")))","v":""},{"$f":"IF(OR('Enrollment Form'!$CK899=\"\",'Enrollment Form'!$CK899=\"No\"),\"-\",IF(COUNTA('Enrollment Form'!$CM899:$CN899)=2,\"Y\",\"N\"))","v":"-"},{"$f":"IF($B892=\"N\",\"\",IF(COUNTIF('Enrollment Form'!$CZ899:$DO899,\"Other\")=COUNTA('Enrollment Form'!$DF899,'Enrollment Form'!$DA899,'Enrollment Form'!$DK899,'Enrollment Form'!$DP899),\"Y\",\"N\"))","v":""},{"$f":"IF($B892=\"N\",\"\",IF(OR('Enrollment Form'!B899<>\"Subscriber\",'Enrollment Form'!C899=\"ROC\",COUNTIF('Enrollment Form'!AS899:AT899,\"Yes\")>=1),\"-\",IF(AND('Enrollment Form'!C899=\"Enroll\",COUNTIF('Enrollment Form'!AS899:AT899,\"No\")=2,'Enrollment Form'!AU899=\"\"),\"N\",\"Y\")))","v":""},{"$f":"IF(OR(B892=\"N\",'Enrollment Form'!B899<>\"Subscriber\",'Enrollment Form'!C899=\"ROC\",'Enrollment Form'!O899<>\"Multiple of Salary\"),\"-\",IF(COUNTA('Enrollment Form'!T899:U899)<2,\"N\",\"Y\"))","v":"-"},{"$f":"IF(B892=\"N\",\"\",IF(OR('Enrollment Form'!C899=\"ROC\",'Enrollment Form'!B899<>\"Subscriber\",'Enrollment Form'!O899=\"Waive\",'Enrollment Form'!O899=\"\"),\"-\",IF('Enrollment Form'!P899=\"\",\"N\",\"Y\")))","v":""},{"$f":"IF($B892=\"N\",\"\",IF(AND('Enrollment Form'!$C899=\"ROC\",'Enrollment Form'!$DS899<>\"\"),\"Y\",IF(AND('Enrollment Form'!$C899=\"ROC\",'Enrollment Form'!$DS899=\"\"),\"N\",IF(AND('Enrollment Form'!$C899=\"Enroll\",'Enrollment Form'!$B899=\"Subscriber\",'Enrollment Form'!$CQ899=\"No\",'Enrollment Form'!$DS899=\"\"),\"N\",IF(AND('Enrollment Form'!$C899=\"Enroll\",'Enrollment Form'!$B899=\"Subscriber\",'Enrollment Form'!$CQ899=\"Yes\"),\"-\",\"Y\")))))","v":""},{"$f":"IF($B892=\"N\",\"\",IF(AND('Enrollment Form'!$C899=\"ROC\",'Enrollment Form'!$DT899<>\"\"),\"Y\",IF(AND('Enrollment Form'!$C899=\"ROC\",'Enrollment Form'!$DT899=\"\"),\"N\",IF(AND('Enrollment Form'!$C899=\"Enroll\",'Enrollment Form'!$B899=\"Subscriber\",'Enrollment Form'!$CQ899=\"No\",'Enrollment Form'!$DT899=\"\"),\"N\",IF(AND('Enrollment Form'!$C899=\"Enroll\",'Enrollment Form'!$B899=\"Subscriber\",'Enrollment Form'!$CQ899=\"Yes\"),\"-\",\"Y\")))))","v":""},{"$f":"IF('Enrollment Form'!AH899=\"\",\"\",IF(ISERROR(SEARCH(\".\",'Enrollment Form'!AH899,SEARCH(\"@\",'Enrollment Form'!AH899))),\"N\",\"Y\"))","v":""},{"$f":"IF(OR($B892=\"N\",'Enrollment Form'!$G899=\"\"),\"\",IF('Enrollment Form'!$B899<>\"Subscriber\",\"-\",IF(COUNTIF('Enrollment Form'!$AS899:$AT899,\"Yes\")=2,\"N\",\"Y\")))","v":""},{"$f":"IF(OR('Enrollment Form'!$CC899=\"\",'Enrollment Form'!$CC899=\"No\"),\"-\",IF(AND('Enrollment Form'!$CC899=\"Yes\",'Enrollment Form'!$CD899=\"\"),\"N\",\"Y\"))","v":"-"},{"$f":"IF(OR('Enrollment Form'!$CE899=\"\",'Enrollment Form'!$CE899=\"No\"),\"-\",IF(AND('Enrollment Form'!$CE899=\"Yes\",'Enrollment Form'!$CF899=\"\"),\"N\",\"Y\"))","v":"-"},{"$f":"IF(OR('Enrollment Form'!$CG899=\"\",'Enrollment Form'!$CG899=\"No\"),\"-\",IF(AND('Enrollment Form'!$CG899=\"Yes\",'Enrollment Form'!$CH899=\"\"),\"N\",\"Y\"))","v":"-"},{"$f":"IF(OR('Enrollment Form'!$CG899=\"\",'Enrollment Form'!$CG899=\"No\"),\"-\",IF(AND('Enrollment Form'!$CG899=\"Yes\",'Enrollment Form'!$CI899=\"\"),\"N\",\"Y\"))","v":"-"},{"$f":"IF('Enrollment Form'!B899<>\"Subscriber\",\"-\",IF(AND('Enrollment Form'!B899=\"Subscriber\",'Enrollment Form'!C899=\"Enroll\",'Enrollment Form'!AA899=\"\"),\"N\",\"Y\"))","v":"-"},{"$f":"IF(OR('Enrollment Form'!B899=\"Subscriber\",'Enrollment Form'!B899=\"\"),\"-\",IF('Enrollment Form'!BI899=\"\",\"N\",\"Y\"))","v":"-"},{"$f":"IF('Enrollment Form'!B899<>\"Subscriber\",\"-\",IF(AND('Enrollment Form'!B899=\"Subscriber\",'Enrollment Form'!G899=\"\"),\"N\",\"Y\"))","v":"-"},{"$f":"IF('Enrollment Form'!A899=\"\",\"\",IF('Enrollment Form'!B899=\"Subscriber\",\"-\",IF(AND('Enrollment Form'!B899<>\"Subscriber\",'Enrollment Form'!G899='Enrollment Form'!H899),\"N\",\"Y\")))","v":""},0]
[900,{"$f":"IF('Enrollment Form'!$A900<>\"\",\"Y\",\"N\")","v":"N"},{"$f":"IF(AND('Enrollment Form'!$B900=\"\",'Enrollment Form'!$C900<>\"\"),\"N\",IF($B893=\"N\",\"\",\"Y\"))","v":""},{"$f":"IF(OR($B893=\"N\",'Enrollment Form'!G900=\"\"),\"\",IF('Enrollment Form'!$B900<>\"Subscriber\",\"\",IF('Enrollment Form'!$G900='Enrollment Form'!$H900,\"Y\",\"N\")))","v":""},{"$f":"IF($B893=\"N\",\"\",IF(AND(COUNTIFS('Enrollment Form'!$H$11:$H$1000,'Enrollment Form'!$H900,'Enrollment Form'!$B$11:$B$1000,'Enrollment Form'!$B900)>1,'Enrollment Form'!$H900<>\"\"),\"N\",\"Y\"))","v":""},{"$f":"IF($B893=\"N\",\"\",IF(LEN('Enrollment Form'!$Y900)=0,\"\",IF(LEN('Enrollment Form'!$Y900)<>5,\"N\",\"Y\")))","v":""},{"$f":"IF($B893=\"N\",\"\",IF(LEN('Enrollment Form'!$AD900=0),\"\",IF(LEN('Enrollment Form'!$AD900)<>5,\"N\",\"Y\")))","v":""},{"$f":"IF($B893=\"N\",\"\",IF(LEN('Enrollment Form'!$BL900=0),\"\",IF(LEN('Enrollment Form'!$BL900)<>5,\"N\",\"Y\")))","v":""},{"$f":"IF($B893=\"N\",\"\",IF(LEN('Enrollment Form'!$AE900)=0,\"\",IF(LEN('Enrollment Form'!$AE900)<>10,\"N\",\"Y\")))","v":""},{"$f":"IF($B893=\"N\",\"\",IF(LEN('Enrollment Form'!$AF900)=0,\"\",IF(LEN('Enrollment Form'!$AF900)<>10,\"N\",\"Y\")))","v":""},{"$f":"IF('Enrollment Form'!$O900<>\"Graded\",\"-\",IF(AND('Enrollment Form'!$O900=\"Graded\",'Enrollment Form'!$AO900<>\"\"),\"Y\",\"N\"))","v":"-"},{"$f":"IF($B893=\"N\",\"\",IF(OR('Enrollment Form'!$B900<>\"Subscriber\",'Enrollment Form'!$C900=\"ROC\"),\"-\",IF(AND('Enrollment Form'!$B900=\"Subscriber\",'Enrollment Form'!$C900=\"Enroll\",'Enrollment Form'!$AJ900<>\"\"),\"Y\",\"N\")))","v":""},{"$f":"IF($B893=\"N\",\"\",IF(OR('Enrollment Form'!$B900<>\"Subscriber\",'Enrollment Form'!$C900=\"ROC\"),\"-\",IF(AND('Enrollment Form'!$B900=\"Subscriber\",'Enrollment Form'!$C900=\"Enroll\",'Enrollment Form'!$AK900<>\"\"),\"Y\",\"N\")))","v":""},{"$f":"IF($B893=\"N\",\"\",IF(OR('Enrollment Form'!$B900<>\"Subscriber\",'Enrollment Form'!$C900=\"ROC\"),\"-\",IF(AND('Enrollment Form'!$B900=\"Subscriber\",'Enrollment Form'!$C900=\"Enroll\",'Enrollment Form'!$AL900<>\"\"),\"Y\",\"N\")))","v":""},{"$f":"IF($B893=\"N\",\"\",IF(OR('Enrollment Form'!$B900<>\"Subscriber\",'Enrollment Form'!$C900=\"ROC\"),\"-\",IF(AND('Enrollment Form'!$B900=\"Subscriber\",'Enrollment Form'!$C900=\"Enroll\",'Enrollment Form'!$AM900<>\"\"),\"Y\",\"N\")))","v":""},{"$f":"IF($B893=\"N\",\"\",IF(OR('Enrollment Form'!$B900<>\"Subscriber\",'Enrollment Form'!$C900=\"ROC\"),\"-\",IF(AND('Enrollment Form'!$B900=\"Subscriber\",'Enrollment Form'!$C900=\"Enroll\",'Enrollment Form'!$AN900<>\"\"),\"Y\",\"N\")))","v":""},{"$f":"IF($B893=\"N\",\"\",IF(OR('Enrollment Form'!$B900<>\"Subscriber\",'Enrollment Form'!$C900=\"ROC\"),\"-\",IF(AND('Enrollment Form'!$B900=\"Subscriber\",'Enrollment Form'!$C900=\"Enroll\",'Enrollment Form'!$AP900<>\"\"),\"Y\",\"N\")))","v":""},{"$f":"IF($B893=\"N\",\"\",IF($Q893=\"-\",\"-\",IF(AND($Q893=\"Y\",'Enrollment Form'!$AP900=\"No\"),\"-\",IF(AND($Q893=\"Y\",'Enrollment Form'!$AP900=\"Yes\",'Enrollment Form'!$AQ900<>\"\"),\"Y\",\"N\"))))","v":""},{"$f":"IF($B893=\"N\",\"\",IF(OR('Enrollment Form'!$B900<>\"Subscriber\",'Enrollment Form'!$C900=\"ROC\"),\"-\",IF(AND('Enrollment Form'!$B900=\"Subscriber\",'Enrollment Form'!$C900=\"Enroll\",'Enrollment Form'!$CO900<>\"\"),\"Y\",\"N\")))","v":""},{"$f":"IF($B893=\"N\",\"\",IF($S893=\"-\",\"-\",IF(AND($S893=\"Y\",'Enrollment Form'!$CO900=\"No\"),\"-\",IF(AND($S893=\"Y\",'Enrollment Form'!$CO900=\"Yes\",'Enrollment Form'!$CP900<>\"\"),\"Y\",\"N\"))))","v":""},{"$f":"IF(OR('Enrollment Form'!$AV900=\"Yes\",'Enrollment Form'!$AV900=\"\"),\"-\",IF(AND('Enrollment Form'!$AV900=\"No\",ISERROR(FIND(\"HMO\",VLOOKUP('Enrollment Form'!G900,'Enrollment Form'!H$11:J$1000,3,FALSE),1))=FALSE,COUNTA('Enrollment Form'!$AW900:$AZ900)=4),\"Y\",\"N\"))","v":"-"},{"$f":"IF($B893=\"N\",\"\",IF('Enrollment Form'!$B900=\"Subscriber\",\"-\",IF(COUNTA('Enrollment Form'!$BE900,'Enrollment Form'!$BG900)=2,\"Y\",\"N\")))","v":""},{"$f":"IF($B893=\"N\",\"\",IF(OR('Enrollment Form'!$AU900=\"\",'Enrollment Form'!$AU900=\"No\"),\"-\",IF(AND('Enrollment Form'!$AU900=\"Yes\",COUNTA('Enrollment Form'!$CK900)=1),\"Y\",\"N\")))","v":""},{"$f":"IF(OR('Enrollment Form'!$CK900=\"\",'Enrollment Form'!$CK900=\"No\"),\"-\",IF(COUNTA('Enrollment Form'!$CM900:$CN900)=2,\"Y\",\"N\"))","v":"-"},{"$f":"IF($B893=\"N\",\"\",IF(COUNTIF('Enrollment Form'!$CZ900:$DO900,\"Other\")=COUNTA('Enrollment Form'!$DF900,'Enrollment Form'!$DA900,'Enrollment Form'!$DK900,'Enrollment Form'!$DP900),\"Y\",\"N\"))","v":""},{"$f":"IF($B893=\"N\",\"\",IF(OR('Enrollment Form'!B900<>\"Subscriber\",'Enrollment Form'!C900=\"ROC\",COUNTIF('Enrollment Form'!AS900:AT900,\"Yes\")>=1),\"-\",IF(AND('Enrollment Form'!C900=\"Enroll\",COUNTIF('Enrollment Form'!AS900:AT900,\"No\")=2,'Enrollment Form'!AU900=\"\"),\"N\",\"Y\")))","v":""},{"$f":"IF(OR(B893=\"N\",'Enrollment Form'!B900<>\"Subscriber\",'Enrollment Form'!C900=\"ROC\",'Enrollment Form'!O900<>\"Multiple of Salary\"),\"-\",IF(COUNTA('Enrollment Form'!T900:U900)<2,\"N\",\"Y\"))","v":"-"},{"$f":"IF(B893=\"N\",\"\",IF(OR('Enrollment Form'!C900=\"ROC\",'Enrollment Form'!B900<>\"Subscriber\",'Enrollment Form'!O900=\"Waive\",'Enrollment Form'!O900=\"\"),\"-\",IF('Enrollment Form'!P900=\"\",\"N\",\"Y\")))","v":""},{"$f":"IF($B893=\"N\",\"\",IF(AND('Enrollment Form'!$C900=\"ROC\",'Enrollment Form'!$DS900<>\"\"),\"Y\",IF(AND('Enrollment Form'!$C900=\"ROC\",'Enrollment Form'!$DS900=\"\"),\"N\",IF(AND('Enrollment Form'!$C900=\"Enroll\",'Enrollment Form'!$B900=\"Subscriber\",'Enrollment Form'!$CQ900=\"No\",'Enrollment Form'!$DS900=\"\"),\"N\",IF(AND('Enrollment Form'!$C900=\"Enroll\",'Enrollment Form'!$B900=\"Subscriber\",'Enrollment Form'!$CQ900=\"Yes\"),\"-\",\"Y\")))))","v":""},{"$f":"IF($B893=\"N\",\"\",IF(AND('Enrollment Form'!$C900=\"ROC\",'Enrollment Form'!$DT900<>\"\"),\"Y\",IF(AND('Enrollment Form'!$C900=\"ROC\",'Enrollment Form'!$DT900=\"\"),\"N\",IF(AND('Enrollment Form'!$C900=\"Enroll\",'Enrollment Form'!$B900=\"Subscriber\",'Enrollment Form'!$CQ900=\"No\",'Enrollment Form'!$DT900=\"\"),\"N\",IF(AND('Enrollment Form'!$C900=\"Enroll\",'Enrollment Form'!$B900=\"Subscriber\",'Enrollment Form'!$CQ900=\"Yes\"),\"-\",\"Y\")))))","v":""},{"$f":"IF('Enrollment Form'!AH900=\"\",\"\",IF(ISERROR(SEARCH(\".\",'Enrollment Form'!AH900,SEARCH(\"@\",'Enrollment Form'!AH900))),\"N\",\"Y\"))","v":""},{"$f":"IF(OR($B893=\"N\",'Enrollment Form'!$G900=\"\"),\"\",IF('Enrollment Form'!$B900<>\"Subscriber\",\"-\",IF(COUNTIF('Enrollment Form'!$AS900:$AT900,\"Yes\")=2,\"N\",\"Y\")))","v":""},{"$f":"IF(OR('Enrollment Form'!$CC900=\"\",'Enrollment Form'!$CC900=\"No\"),\"-\",IF(AND('Enrollment Form'!$CC900=\"Yes\",'Enrollment Form'!$CD900=\"\"),\"N\",\"Y\"))","v":"-"},{"$f":"IF(OR('Enrollment Form'!$CE900=\"\",'Enrollment Form'!$CE900=\"No\"),\"-\",IF(AND('Enrollment Form'!$CE900=\"Yes\",'Enrollment Form'!$CF900=\"\"),\"N\",\"Y\"))","v":"-"},{"$f":"IF(OR('Enrollment Form'!$CG900=\"\",'Enrollment Form'!$CG900=\"No\"),\"-\",IF(AND('Enrollment Form'!$CG900=\"Yes\",'Enrollment Form'!$CH900=\"\"),\"N\",\"Y\"))","v":"-"},{"$f":"IF(OR('Enrollment Form'!$CG900=\"\",'Enrollment Form'!$CG900=\"No\"),\"-\",IF(AND('Enrollment Form'!$CG900=\"Yes\",'Enrollment Form'!$CI900=\"\"),\"N\",\"Y\"))","v":"-"},{"$f":"IF('Enrollment Form'!B900<>\"Subscriber\",\"-\",IF(AND('Enrollment Form'!B900=\"Subscriber\",'Enrollment Form'!C900=\"Enroll\",'Enrollment Form'!AA900=\"\"),\"N\",\"Y\"))","v":"-"},{"$f":"IF(OR('Enrollment Form'!B900=\"Subscriber\",'Enrollment Form'!B900=\"\"),\"-\",IF('Enrollment Form'!BI900=\"\",\"N\",\"Y\"))","v":"-"},{"$f":"IF('Enrollment Form'!B900<>\"Subscriber\",\"-\",IF(AND('Enrollment Form'!B900=\"Subscriber\",'Enrollment Form'!G900=\"\"),\"N\",\"Y\"))","v":"-"},{"$f":"IF('Enrollment Form'!A900=\"\",\"\",IF('Enrollment Form'!B900=\"Subscriber\",\"-\",IF(AND('Enrollment Form'!B900<>\"Subscriber\",'Enrollment Form'!G900='Enrollment Form'!H900),\"N\",\"Y\")))","v":""},0]
[901,{"$f":"IF('Enrollment Form'!$A901<>\"\",\"Y\",\"N\")","v":"N"},{"$f":"IF(AND('Enrollment Form'!$B901=\"\",'Enrollment Form'!$C901<>\"\"),\"N\",IF($B894=\"N\",\"\",\"Y\"))","v":""},{"$f":"IF(OR($B894=\"N\",'Enrollment Form'!G901=\"\"),\"\",IF('Enrollment Form'!$B901<>\"Subscriber\",\"\",IF('Enrollment Form'!$G901='Enrollment Form'!$H901,\"Y\",\"N\")))","v":""},{"$f":"IF($B894=\"N\",\"\",IF(AND(COUNTIFS('Enrollment Form'!$H$11:$H$1000,'Enrollment Form'!$H901,'Enrollment Form'!$B$11:$B$1000,'Enrollment Form'!$B901)>1,'Enrollment Form'!$H901<>\"\"),\"N\",\"Y\"))","v":""},{"$f":"IF($B894=\"N\",\"\",IF(LEN('Enrollment Form'!$Y901)=0,\"\",IF(LEN('Enrollment Form'!$Y901)<>5,\"N\",\"Y\")))","v":""},{"$f":"IF($B894=\"N\",\"\",IF(LEN('Enrollment Form'!$AD901=0),\"\",IF(LEN('Enrollment Form'!$AD901)<>5,\"N\",\"Y\")))","v":""},{"$f":"IF($B894=\"N\",\"\",IF(LEN('Enrollment Form'!$BL901=0),\"\",IF(LEN('Enrollment Form'!$BL901)<>5,\"N\",\"Y\")))","v":""},{"$f":"IF($B894=\"N\",\"\",IF(LEN('Enrollment Form'!$AE901)=0,\"\",IF(LEN('Enrollment Form'!$AE901)<>10,\"N\",\"Y\")))","v":""},{"$f":"IF($B894=\"N\",\"\",IF(LEN('Enrollment Form'!$AF901)=0,\"\",IF(LEN('Enrollment Form'!$AF901)<>10,\"N\",\"Y\")))","v":""},{"$f":"IF('Enrollment Form'!$O901<>\"Graded\",\"-\",IF(AND('Enrollment Form'!$O901=\"Graded\",'Enrollment Form'!$AO901<>\"\"),\"Y\",\"N\"))","v":"-"},{"$f":"IF($B894=\"N\",\"\",IF(OR('Enrollment Form'!$B901<>\"Subscriber\",'Enrollment Form'!$C901=\"ROC\"),\"-\",IF(AND('Enrollment Form'!$B901=\"Subscriber\",'Enrollment Form'!$C901=\"Enroll\",'Enrollment Form'!$AJ901<>\"\"),\"Y\",\"N\")))","v":""},{"$f":"IF($B894=\"N\",\"\",IF(OR('Enrollment Form'!$B901<>\"Subscriber\",'Enrollment Form'!$C901=\"ROC\"),\"-\",IF(AND('Enrollment Form'!$B901=\"Subscriber\",'Enrollment Form'!$C901=\"Enroll\",'Enrollment Form'!$AK901<>\"\"),\"Y\",\"N\")))","v":""},{"$f":"IF($B894=\"N\",\"\",IF(OR('Enrollment Form'!$B901<>\"Subscriber\",'Enrollment Form'!$C901=\"ROC\"),\"-\",IF(AND('Enrollment Form'!$B901=\"Subscriber\",'Enrollment Form'!$C901=\"Enroll\",'Enrollment Form'!$AL901<>\"\"),\"Y\",\"N\")))","v":""},{"$f":"IF($B894=\"N\",\"\",IF(OR('Enrollment Form'!$B901<>\"Subscriber\",'Enrollment Form'!$C901=\"ROC\"),\"-\",IF(AND('Enrollment Form'!$B901=\"Subscriber\",'Enrollment Form'!$C901=\"Enroll\",'Enrollment Form'!$AM901<>\"\"),\"Y\",\"N\")))","v":""},{"$f":"IF($B894=\"N\",\"\",IF(OR('Enrollment Form'!$B901<>\"Subscriber\",'Enrollment Form'!$C901=\"ROC\"),\"-\",IF(AND('Enrollment Form'!$B901=\"Subscriber\",'Enrollment Form'!$C901=\"Enroll\",'Enrollment Form'!$AN901<>\"\"),\"Y\",\"N\")))","v":""},{"$f":"IF($B894=\"N\",\"\",IF(OR('Enrollment Form'!$B901<>\"Subscriber\",'Enrollment Form'!$C901=\"ROC\"),\"-\",IF(AND('Enrollment Form'!$B901=\"Subscriber\",'Enrollment Form'!$C901=\"Enroll\",'Enrollment Form'!$AP901<>\"\"),\"Y\",\"N\")))","v":""},{"$f":"IF($B894=\"N\",\"\",IF($Q894=\"-\",\"-\",IF(AND($Q894=\"Y\",'Enrollment Form'!$AP901=\"No\"),\"-\",IF(AND($Q894=\"Y\",'Enrollment Form'!$AP901=\"Yes\",'Enrollment Form'!$AQ901<>\"\"),\"Y\",\"N\"))))","v":""},{"$f":"IF($B894=\"N\",\"\",IF(OR('Enrollment Form'!$B901<>\"Subscriber\",'Enrollment Form'!$C901=\"ROC\"),\"-\",IF(AND('Enrollment Form'!$B901=\"Subscriber\",'Enrollment Form'!$C901=\"Enroll\",'Enrollment Form'!$CO901<>\"\"),\"Y\",\"N\")))","v":""},{"$f":"IF($B894=\"N\",\"\",IF($S894=\"-\",\"-\",IF(AND($S894=\"Y\",'Enrollment Form'!$CO901=\"No\"),\"-\",IF(AND($S894=\"Y\",'Enrollment Form'!$CO901=\"Yes\",'Enrollment Form'!$CP901<>\"\"),\"Y\",\"N\"))))","v":""},{"$f":"IF(OR('Enrollment Form'!$AV901=\"Yes\",'Enrollment Form'!$AV901=\"\"),\"-\",IF(AND('Enrollment Form'!$AV901=\"No\",ISERROR(FIND(\"HMO\",VLOOKUP('Enrollment Form'!G901,'Enrollment Form'!H$11:J$1000,3,FALSE),1))=FALSE,COUNTA('Enrollment Form'!$AW901:$AZ901)=4),\"Y\",\"N\"))","v":"-"},{"$f":"IF($B894=\"N\",\"\",IF('Enrollment Form'!$B901=\"Subscriber\",\"-\",IF(COUNTA('Enrollment Form'!$BE901,'Enrollment Form'!$BG901)=2,\"Y\",\"N\")))","v":""},{"$f":"IF($B894=\"N\",\"\",IF(OR('Enrollment Form'!$AU901=\"\",'Enrollment Form'!$AU901=\"No\"),\"-\",IF(AND('Enrollment Form'!$AU901=\"Yes\",COUNTA('Enrollment Form'!$CK901)=1),\"Y\",\"N\")))","v":""},{"$f":"IF(OR('Enrollment Form'!$CK901=\"\",'Enrollment Form'!$CK901=\"No\"),\"-\",IF(COUNTA('Enrollment Form'!$CM901:$CN901)=2,\"Y\",\"N\"))","v":"-"},{"$f":"IF($B894=\"N\",\"\",IF(COUNTIF('Enrollment Form'!$CZ901:$DO901,\"Other\")=COUNTA('Enrollment Form'!$DF901,'Enrollment Form'!$DA901,'Enrollment Form'!$DK901,'Enrollment Form'!$DP901),\"Y\",\"N\"))","v":""},{"$f":"IF($B894=\"N\",\"\",IF(OR('Enrollment Form'!B901<>\"Subscriber\",'Enrollment Form'!C901=\"ROC\",COUNTIF('Enrollment Form'!AS901:AT901,\"Yes\")>=1),\"-\",IF(AND('Enrollment Form'!C901=\"Enroll\",COUNTIF('Enrollment Form'!AS901:AT901,\"No\")=2,'Enrollment Form'!AU901=\"\"),\"N\",\"Y\")))","v":""},{"$f":"IF(OR(B894=\"N\",'Enrollment Form'!B901<>\"Subscriber\",'Enrollment Form'!C901=\"ROC\",'Enrollment Form'!O901<>\"Multiple of Salary\"),\"-\",IF(COUNTA('Enrollment Form'!T901:U901)<2,\"N\",\"Y\"))","v":"-"},{"$f":"IF(B894=\"N\",\"\",IF(OR('Enrollment Form'!C901=\"ROC\",'Enrollment Form'!B901<>\"Subscriber\",'Enrollment Form'!O901=\"Waive\",'Enrollment Form'!O901=\"\"),\"-\",IF('Enrollment Form'!P901=\"\",\"N\",\"Y\")))","v":""},{"$f":"IF($B894=\"N\",\"\",IF(AND('Enrollment Form'!$C901=\"ROC\",'Enrollment Form'!$DS901<>\"\"),\"Y\",IF(AND('Enrollment Form'!$C901=\"ROC\",'Enrollment Form'!$DS901=\"\"),\"N\",IF(AND('Enrollment Form'!$C901=\"Enroll\",'Enrollment Form'!$B901=\"Subscriber\",'Enrollment Form'!$CQ901=\"No\",'Enrollment Form'!$DS901=\"\"),\"N\",IF(AND('Enrollment Form'!$C901=\"Enroll\",'Enrollment Form'!$B901=\"Subscriber\",'Enrollment Form'!$CQ901=\"Yes\"),\"-\",\"Y\")))))","v":""},{"$f":"IF($B894=\"N\",\"\",IF(AND('Enrollment Form'!$C901=\"ROC\",'Enrollment Form'!$DT901<>\"\"),\"Y\",IF(AND('Enrollment Form'!$C901=\"ROC\",'Enrollment Form'!$DT901=\"\"),\"N\",IF(AND('Enrollment Form'!$C901=\"Enroll\",'Enrollment Form'!$B901=\"Subscriber\",'Enrollment Form'!$CQ901=\"No\",'Enrollment Form'!$DT901=\"\"),\"N\",IF(AND('Enrollment Form'!$C901=\"Enroll\",'Enrollment Form'!$B901=\"Subscriber\",'Enrollment Form'!$CQ901=\"Yes\"),\"-\",\"Y\")))))","v":""},{"$f":"IF('Enrollment Form'!AH901=\"\",\"\",IF(ISERROR(SEARCH(\".\",'Enrollment Form'!AH901,SEARCH(\"@\",'Enrollment Form'!AH901))),\"N\",\"Y\"))","v":""},{"$f":"IF(OR($B894=\"N\",'Enrollment Form'!$G901=\"\"),\"\",IF('Enrollment Form'!$B901<>\"Subscriber\",\"-\",IF(COUNTIF('Enrollment Form'!$AS901:$AT901,\"Yes\")=2,\"N\",\"Y\")))","v":""},{"$f":"IF(OR('Enrollment Form'!$CC901=\"\",'Enrollment Form'!$CC901=\"No\"),\"-\",IF(AND('Enrollment Form'!$CC901=\"Yes\",'Enrollment Form'!$CD901=\"\"),\"N\",\"Y\"))","v":"-"},{"$f":"IF(OR('Enrollment Form'!$CE901=\"\",'Enrollment Form'!$CE901=\"No\"),\"-\",IF(AND('Enrollment Form'!$CE901=\"Yes\",'Enrollment Form'!$CF901=\"\"),\"N\",\"Y\"))","v":"-"},{"$f":"IF(OR('Enrollment Form'!$CG901=\"\",'Enrollment Form'!$CG901=\"No\"),\"-\",IF(AND('Enrollment Form'!$CG901=\"Yes\",'Enrollment Form'!$CH901=\"\"),\"N\",\"Y\"))","v":"-"},{"$f":"IF(OR('Enrollment Form'!$CG901=\"\",'Enrollment Form'!$CG901=\"No\"),\"-\",IF(AND('Enrollment Form'!$CG901=\"Yes\",'Enrollment Form'!$CI901=\"\"),\"N\",\"Y\"))","v":"-"},{"$f":"IF('Enrollment Form'!B901<>\"Subscriber\",\"-\",IF(AND('Enrollment Form'!B901=\"Subscriber\",'Enrollment Form'!C901=\"Enroll\",'Enrollment Form'!AA901=\"\"),\"N\",\"Y\"))","v":"-"},{"$f":"IF(OR('Enrollment Form'!B901=\"Subscriber\",'Enrollment Form'!B901=\"\"),\"-\",IF('Enrollment Form'!BI901=\"\",\"N\",\"Y\"))","v":"-"},{"$f":"IF('Enrollment Form'!B901<>\"Subscriber\",\"-\",IF(AND('Enrollment Form'!B901=\"Subscriber\",'Enrollment Form'!G901=\"\"),\"N\",\"Y\"))","v":"-"},{"$f":"IF('Enrollment Form'!A901=\"\",\"\",IF('Enrollment Form'!B901=\"Subscriber\",\"-\",IF(AND('Enrollment Form'!B901<>\"Subscriber\",'Enrollment Form'!G901='Enrollment Form'!H901),\"N\",\"Y\")))","v":""},0]
[902,{"$f":"IF('Enrollment Form'!$A902<>\"\",\"Y\",\"N\")","v":"N"},{"$f":"IF(AND('Enrollment Form'!$B902=\"\",'Enrollment Form'!$C902<>\"\"),\"N\",IF($B895=\"N\",\"\",\"Y\"))","v":""},{"$f":"IF(OR($B895=\"N\",'Enrollment Form'!G902=\"\"),\"\",IF('Enrollment Form'!$B902<>\"Subscriber\",\"\",IF('Enrollment Form'!$G902='Enrollment Form'!$H902,\"Y\",\"N\")))","v":""},{"$f":"IF($B895=\"N\",\"\",IF(AND(COUNTIFS('Enrollment Form'!$H$11:$H$1000,'Enrollment Form'!$H902,'Enrollment Form'!$B$11:$B$1000,'Enrollment Form'!$B902)>1,'Enrollment Form'!$H902<>\"\"),\"N\",\"Y\"))","v":""},{"$f":"IF($B895=\"N\",\"\",IF(LEN('Enrollment Form'!$Y902)=0,\"\",IF(LEN('Enrollment Form'!$Y902)<>5,\"N\",\"Y\")))","v":""},{"$f":"IF($B895=\"N\",\"\",IF(LEN('Enrollment Form'!$AD902=0),\"\",IF(LEN('Enrollment Form'!$AD902)<>5,\"N\",\"Y\")))","v":""},{"$f":"IF($B895=\"N\",\"\",IF(LEN('Enrollment Form'!$BL902=0),\"\",IF(LEN('Enrollment Form'!$BL902)<>5,\"N\",\"Y\")))","v":""},{"$f":"IF($B895=\"N\",\"\",IF(LEN('Enrollment Form'!$AE902)=0,\"\",IF(LEN('Enrollment Form'!$AE902)<>10,\"N\",\"Y\")))","v":""},{"$f":"IF($B895=\"N\",\"\",IF(LEN('Enrollment Form'!$AF902)=0,\"\",IF(LEN('Enrollment Form'!$AF902)<>10,\"N\",\"Y\")))","v":""},{"$f":"IF('Enrollment Form'!$O902<>\"Graded\",\"-\",IF(AND('Enrollment Form'!$O902=\"Graded\",'Enrollment Form'!$AO902<>\"\"),\"Y\",\"N\"))","v":"-"},{"$f":"IF($B895=\"N\",\"\",IF(OR('Enrollment Form'!$B902<>\"Subscriber\",'Enrollment Form'!$C902=\"ROC\"),\"-\",IF(AND('Enrollment Form'!$B902=\"Subscriber\",'Enrollment Form'!$C902=\"Enroll\",'Enrollment Form'!$AJ902<>\"\"),\"Y\",\"N\")))","v":""},{"$f":"IF($B895=\"N\",\"\",IF(OR('Enrollment Form'!$B902<>\"Subscriber\",'Enrollment Form'!$C902=\"ROC\"),\"-\",IF(AND('Enrollment Form'!$B902=\"Subscriber\",'Enrollment Form'!$C902=\"Enroll\",'Enrollment Form'!$AK902<>\"\"),\"Y\",\"N\")))","v":""},{"$f":"IF($B895=\"N\",\"\",IF(OR('Enrollment Form'!$B902<>\"Subscriber\",'Enrollment Form'!$C902=\"ROC\"),\"-\",IF(AND('Enrollment Form'!$B902=\"Subscriber\",'Enrollment Form'!$C902=\"Enroll\",'Enrollment Form'!$AL902<>\"\"),\"Y\",\"N\")))","v":""},{"$f":"IF($B895=\"N\",\"\",IF(OR('Enrollment Form'!$B902<>\"Subscriber\",'Enrollment Form'!$C902=\"ROC\"),\"-\",IF(AND('Enrollment Form'!$B902=\"Subscriber\",'Enrollment Form'!$C902=\"Enroll\",'Enrollment Form'!$AM902<>\"\"),\"Y\",\"N\")))","v":""},{"$f":"IF($B895=\"N\",\"\",IF(OR('Enrollment Form'!$B902<>\"Subscriber\",'Enrollment Form'!$C902=\"ROC\"),\"-\",IF(AND('Enrollment Form'!$B902=\"Subscriber\",'Enrollment Form'!$C902=\"Enroll\",'Enrollment Form'!$AN902<>\"\"),\"Y\",\"N\")))","v":""},{"$f":"IF($B895=\"N\",\"\",IF(OR('Enrollment Form'!$B902<>\"Subscriber\",'Enrollment Form'!$C902=\"ROC\"),\"-\",IF(AND('Enrollment Form'!$B902=\"Subscriber\",'Enrollment Form'!$C902=\"Enroll\",'Enrollment Form'!$AP902<>\"\"),\"Y\",\"N\")))","v":""},{"$f":"IF($B895=\"N\",\"\",IF($Q895=\"-\",\"-\",IF(AND($Q895=\"Y\",'Enrollment Form'!$AP902=\"No\"),\"-\",IF(AND($Q895=\"Y\",'Enrollment Form'!$AP902=\"Yes\",'Enrollment Form'!$AQ902<>\"\"),\"Y\",\"N\"))))","v":""},{"$f":"IF($B895=\"N\",\"\",IF(OR('Enrollment Form'!$B902<>\"Subscriber\",'Enrollment Form'!$C902=\"ROC\"),\"-\",IF(AND('Enrollment Form'!$B902=\"Subscriber\",'Enrollment Form'!$C902=\"Enroll\",'Enrollment Form'!$CO902<>\"\"),\"Y\",\"N\")))","v":""},{"$f":"IF($B895=\"N\",\"\",IF($S895=\"-\",\"-\",IF(AND($S895=\"Y\",'Enrollment Form'!$CO902=\"No\"),\"-\",IF(AND($S895=\"Y\",'Enrollment Form'!$CO902=\"Yes\",'Enrollment Form'!$CP902<>\"\"),\"Y\",\"N\"))))","v":""},{"$f":"IF(OR('Enrollment Form'!$AV902=\"Yes\",'Enrollment Form'!$AV902=\"\"),\"-\",IF(AND('Enrollment Form'!$AV902=\"No\",ISERROR(FIND(\"HMO\",VLOOKUP('Enrollment Form'!G902,'Enrollment Form'!H$11:J$1000,3,FALSE),1))=FALSE,COUNTA('Enrollment Form'!$AW902:$AZ902)=4),\"Y\",\"N\"))","v":"-"},{"$f":"IF($B895=\"N\",\"\",IF('Enrollment Form'!$B902=\"Subscriber\",\"-\",IF(COUNTA('Enrollment Form'!$BE902,'Enrollment Form'!$BG902)=2,\"Y\",\"N\")))","v":""},{"$f":"IF($B895=\"N\",\"\",IF(OR('Enrollment Form'!$AU902=\"\",'Enrollment Form'!$AU902=\"No\"),\"-\",IF(AND('Enrollment Form'!$AU902=\"Yes\",COUNTA('Enrollment Form'!$CK902)=1),\"Y\",\"N\")))","v":""},{"$f":"IF(OR('Enrollment Form'!$CK902=\"\",'Enrollment Form'!$CK902=\"No\"),\"-\",IF(COUNTA('Enrollment Form'!$CM902:$CN902)=2,\"Y\",\"N\"))","v":"-"},{"$f":"IF($B895=\"N\",\"\",IF(COUNTIF('Enrollment Form'!$CZ902:$DO902,\"Other\")=COUNTA('Enrollment Form'!$DF902,'Enrollment Form'!$DA902,'Enrollment Form'!$DK902,'Enrollment Form'!$DP902),\"Y\",\"N\"))","v":""},{"$f":"IF($B895=\"N\",\"\",IF(OR('Enrollment Form'!B902<>\"Subscriber\",'Enrollment Form'!C902=\"ROC\",COUNTIF('Enrollment Form'!AS902:AT902,\"Yes\")>=1),\"-\",IF(AND('Enrollment Form'!C902=\"Enroll\",COUNTIF('Enrollment Form'!AS902:AT902,\"No\")=2,'Enrollment Form'!AU902=\"\"),\"N\",\"Y\")))","v":""},{"$f":"IF(OR(B895=\"N\",'Enrollment Form'!B902<>\"Subscriber\",'Enrollment Form'!C902=\"ROC\",'Enrollment Form'!O902<>\"Multiple of Salary\"),\"-\",IF(COUNTA('Enrollment Form'!T902:U902)<2,\"N\",\"Y\"))","v":"-"},{"$f":"IF(B895=\"N\",\"\",IF(OR('Enrollment Form'!C902=\"ROC\",'Enrollment Form'!B902<>\"Subscriber\",'Enrollment Form'!O902=\"Waive\",'Enrollment Form'!O902=\"\"),\"-\",IF('Enrollment Form'!P902=\"\",\"N\",\"Y\")))","v":""},{"$f":"IF($B895=\"N\",\"\",IF(AND('Enrollment Form'!$C902=\"ROC\",'Enrollment Form'!$DS902<>\"\"),\"Y\",IF(AND('Enrollment Form'!$C902=\"ROC\",'Enrollment Form'!$DS902=\"\"),\"N\",IF(AND('Enrollment Form'!$C902=\"Enroll\",'Enrollment Form'!$B902=\"Subscriber\",'Enrollment Form'!$CQ902=\"No\",'Enrollment Form'!$DS902=\"\"),\"N\",IF(AND('Enrollment Form'!$C902=\"Enroll\",'Enrollment Form'!$B902=\"Subscriber\",'Enrollment Form'!$CQ902=\"Yes\"),\"-\",\"Y\")))))","v":""},{"$f":"IF($B895=\"N\",\"\",IF(AND('Enrollment Form'!$C902=\"ROC\",'Enrollment Form'!$DT902<>\"\"),\"Y\",IF(AND('Enrollment Form'!$C902=\"ROC\",'Enrollment Form'!$DT902=\"\"),\"N\",IF(AND('Enrollment Form'!$C902=\"Enroll\",'Enrollment Form'!$B902=\"Subscriber\",'Enrollment Form'!$CQ902=\"No\",'Enrollment Form'!$DT902=\"\"),\"N\",IF(AND('Enrollment Form'!$C902=\"Enroll\",'Enrollment Form'!$B902=\"Subscriber\",'Enrollment Form'!$CQ902=\"Yes\"),\"-\",\"Y\")))))","v":""},{"$f":"IF('Enrollment Form'!AH902=\"\",\"\",IF(ISERROR(SEARCH(\".\",'Enrollment Form'!AH902,SEARCH(\"@\",'Enrollment Form'!AH902))),\"N\",\"Y\"))","v":""},{"$f":"IF(OR($B895=\"N\",'Enrollment Form'!$G902=\"\"),\"\",IF('Enrollment Form'!$B902<>\"Subscriber\",\"-\",IF(COUNTIF('Enrollment Form'!$AS902:$AT902,\"Yes\")=2,\"N\",\"Y\")))","v":""},{"$f":"IF(OR('Enrollment Form'!$CC902=\"\",'Enrollment Form'!$CC902=\"No\"),\"-\",IF(AND('Enrollment Form'!$CC902=\"Yes\",'Enrollment Form'!$CD902=\"\"),\"N\",\"Y\"))","v":"-"},{"$f":"IF(OR('Enrollment Form'!$CE902=\"\",'Enrollment Form'!$CE902=\"No\"),\"-\",IF(AND('Enrollment Form'!$CE902=\"Yes\",'Enrollment Form'!$CF902=\"\"),\"N\",\"Y\"))","v":"-"},{"$f":"IF(OR('Enrollment Form'!$CG902=\"\",'Enrollment Form'!$CG902=\"No\"),\"-\",IF(AND('Enrollment Form'!$CG902=\"Yes\",'Enrollment Form'!$CH902=\"\"),\"N\",\"Y\"))","v":"-"},{"$f":"IF(OR('Enrollment Form'!$CG902=\"\",'Enrollment Form'!$CG902=\"No\"),\"-\",IF(AND('Enrollment Form'!$CG902=\"Yes\",'Enrollment Form'!$CI902=\"\"),\"N\",\"Y\"))","v":"-"},{"$f":"IF('Enrollment Form'!B902<>\"Subscriber\",\"-\",IF(AND('Enrollment Form'!B902=\"Subscriber\",'Enrollment Form'!C902=\"Enroll\",'Enrollment Form'!AA902=\"\"),\"N\",\"Y\"))","v":"-"},{"$f":"IF(OR('Enrollment Form'!B902=\"Subscriber\",'Enrollment Form'!B902=\"\"),\"-\",IF('Enrollment Form'!BI902=\"\",\"N\",\"Y\"))","v":"-"},{"$f":"IF('Enrollment Form'!B902<>\"Subscriber\",\"-\",IF(AND('Enrollment Form'!B902=\"Subscriber\",'Enrollment Form'!G902=\"\"),\"N\",\"Y\"))","v":"-"},{"$f":"IF('Enrollment Form'!A902=\"\",\"\",IF('Enrollment Form'!B902=\"Subscriber\",\"-\",IF(AND('Enrollment Form'!B902<>\"Subscriber\",'Enrollment Form'!G902='Enrollment Form'!H902),\"N\",\"Y\")))","v":""},0]
[903,{"$f":"IF('Enrollment Form'!$A903<>\"\",\"Y\",\"N\")","v":"N"},{"$f":"IF(AND('Enrollment Form'!$B903=\"\",'Enrollment Form'!$C903<>\"\"),\"N\",IF($B896=\"N\",\"\",\"Y\"))","v":""},{"$f":"IF(OR($B896=\"N\",'Enrollment Form'!G903=\"\"),\"\",IF('Enrollment Form'!$B903<>\"Subscriber\",\"\",IF('Enrollment Form'!$G903='Enrollment Form'!$H903,\"Y\",\"N\")))","v":""},{"$f":"IF($B896=\"N\",\"\",IF(AND(COUNTIFS('Enrollment Form'!$H$11:$H$1000,'Enrollment Form'!$H903,'Enrollment Form'!$B$11:$B$1000,'Enrollment Form'!$B903)>1,'Enrollment Form'!$H903<>\"\"),\"N\",\"Y\"))","v":""},{"$f":"IF($B896=\"N\",\"\",IF(LEN('Enrollment Form'!$Y903)=0,\"\",IF(LEN('Enrollment Form'!$Y903)<>5,\"N\",\"Y\")))","v":""},{"$f":"IF($B896=\"N\",\"\",IF(LEN('Enrollment Form'!$AD903=0),\"\",IF(LEN('Enrollment Form'!$AD903)<>5,\"N\",\"Y\")))","v":""},{"$f":"IF($B896=\"N\",\"\",IF(LEN('Enrollment Form'!$BL903=0),\"\",IF(LEN('Enrollment Form'!$BL903)<>5,\"N\",\"Y\")))","v":""},{"$f":"IF($B896=\"N\",\"\",IF(LEN('Enrollment Form'!$AE903)=0,\"\",IF(LEN('Enrollment Form'!$AE903)<>10,\"N\",\"Y\")))","v":""},{"$f":"IF($B896=\"N\",\"\",IF(LEN('Enrollment Form'!$AF903)=0,\"\",IF(LEN('Enrollment Form'!$AF903)<>10,\"N\",\"Y\")))","v":""},{"$f":"IF('Enrollment Form'!$O903<>\"Graded\",\"-\",IF(AND('Enrollment Form'!$O903=\"Graded\",'Enrollment Form'!$AO903<>\"\"),\"Y\",\"N\"))","v":"-"},{"$f":"IF($B896=\"N\",\"\",IF(OR('Enrollment Form'!$B903<>\"Subscriber\",'Enrollment Form'!$C903=\"ROC\"),\"-\",IF(AND('Enrollment Form'!$B903=\"Subscriber\",'Enrollment Form'!$C903=\"Enroll\",'Enrollment Form'!$AJ903<>\"\"),\"Y\",\"N\")))","v":""},{"$f":"IF($B896=\"N\",\"\",IF(OR('Enrollment Form'!$B903<>\"Subscriber\",'Enrollment Form'!$C903=\"ROC\"),\"-\",IF(AND('Enrollment Form'!$B903=\"Subscriber\",'Enrollment Form'!$C903=\"Enroll\",'Enrollment Form'!$AK903<>\"\"),\"Y\",\"N\")))","v":""},{"$f":"IF($B896=\"N\",\"\",IF(OR('Enrollment Form'!$B903<>\"Subscriber\",'Enrollment Form'!$C903=\"ROC\"),\"-\",IF(AND('Enrollment Form'!$B903=\"Subscriber\",'Enrollment Form'!$C903=\"Enroll\",'Enrollment Form'!$AL903<>\"\"),\"Y\",\"N\")))","v":""},{"$f":"IF($B896=\"N\",\"\",IF(OR('Enrollment Form'!$B903<>\"Subscriber\",'Enrollment Form'!$C903=\"ROC\"),\"-\",IF(AND('Enrollment Form'!$B903=\"Subscriber\",'Enrollment Form'!$C903=\"Enroll\",'Enrollment Form'!$AM903<>\"\"),\"Y\",\"N\")))","v":""},{"$f":"IF($B896=\"N\",\"\",IF(OR('Enrollment Form'!$B903<>\"Subscriber\",'Enrollment Form'!$C903=\"ROC\"),\"-\",IF(AND('Enrollment Form'!$B903=\"Subscriber\",'Enrollment Form'!$C903=\"Enroll\",'Enrollment Form'!$AN903<>\"\"),\"Y\",\"N\")))","v":""},{"$f":"IF($B896=\"N\",\"\",IF(OR('Enrollment Form'!$B903<>\"Subscriber\",'Enrollment Form'!$C903=\"ROC\"),\"-\",IF(AND('Enrollment Form'!$B903=\"Subscriber\",'Enrollment Form'!$C903=\"Enroll\",'Enrollment Form'!$AP903<>\"\"),\"Y\",\"N\")))","v":""},{"$f":"IF($B896=\"N\",\"\",IF($Q896=\"-\",\"-\",IF(AND($Q896=\"Y\",'Enrollment Form'!$AP903=\"No\"),\"-\",IF(AND($Q896=\"Y\",'Enrollment Form'!$AP903=\"Yes\",'Enrollment Form'!$AQ903<>\"\"),\"Y\",\"N\"))))","v":""},{"$f":"IF($B896=\"N\",\"\",IF(OR('Enrollment Form'!$B903<>\"Subscriber\",'Enrollment Form'!$C903=\"ROC\"),\"-\",IF(AND('Enrollment Form'!$B903=\"Subscriber\",'Enrollment Form'!$C903=\"Enroll\",'Enrollment Form'!$CO903<>\"\"),\"Y\",\"N\")))","v":""},{"$f":"IF($B896=\"N\",\"\",IF($S896=\"-\",\"-\",IF(AND($S896=\"Y\",'Enrollment Form'!$CO903=\"No\"),\"-\",IF(AND($S896=\"Y\",'Enrollment Form'!$CO903=\"Yes\",'Enrollment Form'!$CP903<>\"\"),\"Y\",\"N\"))))","v":""},{"$f":"IF(OR('Enrollment Form'!$AV903=\"Yes\",'Enrollment Form'!$AV903=\"\"),\"-\",IF(AND('Enrollment Form'!$AV903=\"No\",ISERROR(FIND(\"HMO\",VLOOKUP('Enrollment Form'!G903,'Enrollment Form'!H$11:J$1000,3,FALSE),1))=FALSE,COUNTA('Enrollment Form'!$AW903:$AZ903)=4),\"Y\",\"N\"))","v":"-"},{"$f":"IF($B896=\"N\",\"\",IF('Enrollment Form'!$B903=\"Subscriber\",\"-\",IF(COUNTA('Enrollment Form'!$BE903,'Enrollment Form'!$BG903)=2,\"Y\",\"N\")))","v":""},{"$f":"IF($B896=\"N\",\"\",IF(OR('Enrollment Form'!$AU903=\"\",'Enrollment Form'!$AU903=\"No\"),\"-\",IF(AND('Enrollment Form'!$AU903=\"Yes\",COUNTA('Enrollment Form'!$CK903)=1),\"Y\",\"N\")))","v":""},{"$f":"IF(OR('Enrollment Form'!$CK903=\"\",'Enrollment Form'!$CK903=\"No\"),\"-\",IF(COUNTA('Enrollment Form'!$CM903:$CN903)=2,\"Y\",\"N\"))","v":"-"},{"$f":"IF($B896=\"N\",\"\",IF(COUNTIF('Enrollment Form'!$CZ903:$DO903,\"Other\")=COUNTA('Enrollment Form'!$DF903,'Enrollment Form'!$DA903,'Enrollment Form'!$DK903,'Enrollment Form'!$DP903),\"Y\",\"N\"))","v":""},{"$f":"IF($B896=\"N\",\"\",IF(OR('Enrollment Form'!B903<>\"Subscriber\",'Enrollment Form'!C903=\"ROC\",COUNTIF('Enrollment Form'!AS903:AT903,\"Yes\")>=1),\"-\",IF(AND('Enrollment Form'!C903=\"Enroll\",COUNTIF('Enrollment Form'!AS903:AT903,\"No\")=2,'Enrollment Form'!AU903=\"\"),\"N\",\"Y\")))","v":""},{"$f":"IF(OR(B896=\"N\",'Enrollment Form'!B903<>\"Subscriber\",'Enrollment Form'!C903=\"ROC\",'Enrollment Form'!O903<>\"Multiple of Salary\"),\"-\",IF(COUNTA('Enrollment Form'!T903:U903)<2,\"N\",\"Y\"))","v":"-"},{"$f":"IF(B896=\"N\",\"\",IF(OR('Enrollment Form'!C903=\"ROC\",'Enrollment Form'!B903<>\"Subscriber\",'Enrollment Form'!O903=\"Waive\",'Enrollment Form'!O903=\"\"),\"-\",IF('Enrollment Form'!P903=\"\",\"N\",\"Y\")))","v":""},{"$f":"IF($B896=\"N\",\"\",IF(AND('Enrollment Form'!$C903=\"ROC\",'Enrollment Form'!$DS903<>\"\"),\"Y\",IF(AND('Enrollment Form'!$C903=\"ROC\",'Enrollment Form'!$DS903=\"\"),\"N\",IF(AND('Enrollment Form'!$C903=\"Enroll\",'Enrollment Form'!$B903=\"Subscriber\",'Enrollment Form'!$CQ903=\"No\",'Enrollment Form'!$DS903=\"\"),\"N\",IF(AND('Enrollment Form'!$C903=\"Enroll\",'Enrollment Form'!$B903=\"Subscriber\",'Enrollment Form'!$CQ903=\"Yes\"),\"-\",\"Y\")))))","v":""},{"$f":"IF($B896=\"N\",\"\",IF(AND('Enrollment Form'!$C903=\"ROC\",'Enrollment Form'!$DT903<>\"\"),\"Y\",IF(AND('Enrollment Form'!$C903=\"ROC\",'Enrollment Form'!$DT903=\"\"),\"N\",IF(AND('Enrollment Form'!$C903=\"Enroll\",'Enrollment Form'!$B903=\"Subscriber\",'Enrollment Form'!$CQ903=\"No\",'Enrollment Form'!$DT903=\"\"),\"N\",IF(AND('Enrollment Form'!$C903=\"Enroll\",'Enrollment Form'!$B903=\"Subscriber\",'Enrollment Form'!$CQ903=\"Yes\"),\"-\",\"Y\")))))","v":""},{"$f":"IF('Enrollment Form'!AH903=\"\",\"\",IF(ISERROR(SEARCH(\".\",'Enrollment Form'!AH903,SEARCH(\"@\",'Enrollment Form'!AH903))),\"N\",\"Y\"))","v":""},{"$f":"IF(OR($B896=\"N\",'Enrollment Form'!$G903=\"\"),\"\",IF('Enrollment Form'!$B903<>\"Subscriber\",\"-\",IF(COUNTIF('Enrollment Form'!$AS903:$AT903,\"Yes\")=2,\"N\",\"Y\")))","v":""},{"$f":"IF(OR('Enrollment Form'!$CC903=\"\",'Enrollment Form'!$CC903=\"No\"),\"-\",IF(AND('Enrollment Form'!$CC903=\"Yes\",'Enrollment Form'!$CD903=\"\"),\"N\",\"Y\"))","v":"-"},{"$f":"IF(OR('Enrollment Form'!$CE903=\"\",'Enrollment Form'!$CE903=\"No\"),\"-\",IF(AND('Enrollment Form'!$CE903=\"Yes\",'Enrollment Form'!$CF903=\"\"),\"N\",\"Y\"))","v":"-"},{"$f":"IF(OR('Enrollment Form'!$CG903=\"\",'Enrollment Form'!$CG903=\"No\"),\"-\",IF(AND('Enrollment Form'!$CG903=\"Yes\",'Enrollment Form'!$CH903=\"\"),\"N\",\"Y\"))","v":"-"},{"$f":"IF(OR('Enrollment Form'!$CG903=\"\",'Enrollment Form'!$CG903=\"No\"),\"-\",IF(AND('Enrollment Form'!$CG903=\"Yes\",'Enrollment Form'!$CI903=\"\"),\"N\",\"Y\"))","v":"-"},{"$f":"IF('Enrollment Form'!B903<>\"Subscriber\",\"-\",IF(AND('Enrollment Form'!B903=\"Subscriber\",'Enrollment Form'!C903=\"Enroll\",'Enrollment Form'!AA903=\"\"),\"N\",\"Y\"))","v":"-"},{"$f":"IF(OR('Enrollment Form'!B903=\"Subscriber\",'Enrollment Form'!B903=\"\"),\"-\",IF('Enrollment Form'!BI903=\"\",\"N\",\"Y\"))","v":"-"},{"$f":"IF('Enrollment Form'!B903<>\"Subscriber\",\"-\",IF(AND('Enrollment Form'!B903=\"Subscriber\",'Enrollment Form'!G903=\"\"),\"N\",\"Y\"))","v":"-"},{"$f":"IF('Enrollment Form'!A903=\"\",\"\",IF('Enrollment Form'!B903=\"Subscriber\",\"-\",IF(AND('Enrollment Form'!B903<>\"Subscriber\",'Enrollment Form'!G903='Enrollment Form'!H903),\"N\",\"Y\")))","v":""},0]
[904,{"$f":"IF('Enrollment Form'!$A904<>\"\",\"Y\",\"N\")","v":"N"},{"$f":"IF(AND('Enrollment Form'!$B904=\"\",'Enrollment Form'!$C904<>\"\"),\"N\",IF($B897=\"N\",\"\",\"Y\"))","v":""},{"$f":"IF(OR($B897=\"N\",'Enrollment Form'!G904=\"\"),\"\",IF('Enrollment Form'!$B904<>\"Subscriber\",\"\",IF('Enrollment Form'!$G904='Enrollment Form'!$H904,\"Y\",\"N\")))","v":""},{"$f":"IF($B897=\"N\",\"\",IF(AND(COUNTIFS('Enrollment Form'!$H$11:$H$1000,'Enrollment Form'!$H904,'Enrollment Form'!$B$11:$B$1000,'Enrollment Form'!$B904)>1,'Enrollment Form'!$H904<>\"\"),\"N\",\"Y\"))","v":""},{"$f":"IF($B897=\"N\",\"\",IF(LEN('Enrollment Form'!$Y904)=0,\"\",IF(LEN('Enrollment Form'!$Y904)<>5,\"N\",\"Y\")))","v":""},{"$f":"IF($B897=\"N\",\"\",IF(LEN('Enrollment Form'!$AD904=0),\"\",IF(LEN('Enrollment Form'!$AD904)<>5,\"N\",\"Y\")))","v":""},{"$f":"IF($B897=\"N\",\"\",IF(LEN('Enrollment Form'!$BL904=0),\"\",IF(LEN('Enrollment Form'!$BL904)<>5,\"N\",\"Y\")))","v":""},{"$f":"IF($B897=\"N\",\"\",IF(LEN('Enrollment Form'!$AE904)=0,\"\",IF(LEN('Enrollment Form'!$AE904)<>10,\"N\",\"Y\")))","v":""},{"$f":"IF($B897=\"N\",\"\",IF(LEN('Enrollment Form'!$AF904)=0,\"\",IF(LEN('Enrollment Form'!$AF904)<>10,\"N\",\"Y\")))","v":""},{"$f":"IF('Enrollment Form'!$O904<>\"Graded\",\"-\",IF(AND('Enrollment Form'!$O904=\"Graded\",'Enrollment Form'!$AO904<>\"\"),\"Y\",\"N\"))","v":"-"},{"$f":"IF($B897=\"N\",\"\",IF(OR('Enrollment Form'!$B904<>\"Subscriber\",'Enrollment Form'!$C904=\"ROC\"),\"-\",IF(AND('Enrollment Form'!$B904=\"Subscriber\",'Enrollment Form'!$C904=\"Enroll\",'Enrollment Form'!$AJ904<>\"\"),\"Y\",\"N\")))","v":""},{"$f":"IF($B897=\"N\",\"\",IF(OR('Enrollment Form'!$B904<>\"Subscriber\",'Enrollment Form'!$C904=\"ROC\"),\"-\",IF(AND('Enrollment Form'!$B904=\"Subscriber\",'Enrollment Form'!$C904=\"Enroll\",'Enrollment Form'!$AK904<>\"\"),\"Y\",\"N\")))","v":""},{"$f":"IF($B897=\"N\",\"\",IF(OR('Enrollment Form'!$B904<>\"Subscriber\",'Enrollment Form'!$C904=\"ROC\"),\"-\",IF(AND('Enrollment Form'!$B904=\"Subscriber\",'Enrollment Form'!$C904=\"Enroll\",'Enrollment Form'!$AL904<>\"\"),\"Y\",\"N\")))","v":""},{"$f":"IF($B897=\"N\",\"\",IF(OR('Enrollment Form'!$B904<>\"Subscriber\",'Enrollment Form'!$C904=\"ROC\"),\"-\",IF(AND('Enrollment Form'!$B904=\"Subscriber\",'Enrollment Form'!$C904=\"Enroll\",'Enrollment Form'!$AM904<>\"\"),\"Y\",\"N\")))","v":""},{"$f":"IF($B897=\"N\",\"\",IF(OR('Enrollment Form'!$B904<>\"Subscriber\",'Enrollment Form'!$C904=\"ROC\"),\"-\",IF(AND('Enrollment Form'!$B904=\"Subscriber\",'Enrollment Form'!$C904=\"Enroll\",'Enrollment Form'!$AN904<>\"\"),\"Y\",\"N\")))","v":""},{"$f":"IF($B897=\"N\",\"\",IF(OR('Enrollment Form'!$B904<>\"Subscriber\",'Enrollment Form'!$C904=\"ROC\"),\"-\",IF(AND('Enrollment Form'!$B904=\"Subscriber\",'Enrollment Form'!$C904=\"Enroll\",'Enrollment Form'!$AP904<>\"\"),\"Y\",\"N\")))","v":""},{"$f":"IF($B897=\"N\",\"\",IF($Q897=\"-\",\"-\",IF(AND($Q897=\"Y\",'Enrollment Form'!$AP904=\"No\"),\"-\",IF(AND($Q897=\"Y\",'Enrollment Form'!$AP904=\"Yes\",'Enrollment Form'!$AQ904<>\"\"),\"Y\",\"N\"))))","v":""},{"$f":"IF($B897=\"N\",\"\",IF(OR('Enrollment Form'!$B904<>\"Subscriber\",'Enrollment Form'!$C904=\"ROC\"),\"-\",IF(AND('Enrollment Form'!$B904=\"Subscriber\",'Enrollment Form'!$C904=\"Enroll\",'Enrollment Form'!$CO904<>\"\"),\"Y\",\"N\")))","v":""},{"$f":"IF($B897=\"N\",\"\",IF($S897=\"-\",\"-\",IF(AND($S897=\"Y\",'Enrollment Form'!$CO904=\"No\"),\"-\",IF(AND($S897=\"Y\",'Enrollment Form'!$CO904=\"Yes\",'Enrollment Form'!$CP904<>\"\"),\"Y\",\"N\"))))","v":""},{"$f":"IF(OR('Enrollment Form'!$AV904=\"Yes\",'Enrollment Form'!$AV904=\"\"),\"-\",IF(AND('Enrollment Form'!$AV904=\"No\",ISERROR(FIND(\"HMO\",VLOOKUP('Enrollment Form'!G904,'Enrollment Form'!H$11:J$1000,3,FALSE),1))=FALSE,COUNTA('Enrollment Form'!$AW904:$AZ904)=4),\"Y\",\"N\"))","v":"-"},{"$f":"IF($B897=\"N\",\"\",IF('Enrollment Form'!$B904=\"Subscriber\",\"-\",IF(COUNTA('Enrollment Form'!$BE904,'Enrollment Form'!$BG904)=2,\"Y\",\"N\")))","v":""},{"$f":"IF($B897=\"N\",\"\",IF(OR('Enrollment Form'!$AU904=\"\",'Enrollment Form'!$AU904=\"No\"),\"-\",IF(AND('Enrollment Form'!$AU904=\"Yes\",COUNTA('Enrollment Form'!$CK904)=1),\"Y\",\"N\")))","v":""},{"$f":"IF(OR('Enrollment Form'!$CK904=\"\",'Enrollment Form'!$CK904=\"No\"),\"-\",IF(COUNTA('Enrollment Form'!$CM904:$CN904)=2,\"Y\",\"N\"))","v":"-"},{"$f":"IF($B897=\"N\",\"\",IF(COUNTIF('Enrollment Form'!$CZ904:$DO904,\"Other\")=COUNTA('Enrollment Form'!$DF904,'Enrollment Form'!$DA904,'Enrollment Form'!$DK904,'Enrollment Form'!$DP904),\"Y\",\"N\"))","v":""},{"$f":"IF($B897=\"N\",\"\",IF(OR('Enrollment Form'!B904<>\"Subscriber\",'Enrollment Form'!C904=\"ROC\",COUNTIF('Enrollment Form'!AS904:AT904,\"Yes\")>=1),\"-\",IF(AND('Enrollment Form'!C904=\"Enroll\",COUNTIF('Enrollment Form'!AS904:AT904,\"No\")=2,'Enrollment Form'!AU904=\"\"),\"N\",\"Y\")))","v":""},{"$f":"IF(OR(B897=\"N\",'Enrollment Form'!B904<>\"Subscriber\",'Enrollment Form'!C904=\"ROC\",'Enrollment Form'!O904<>\"Multiple of Salary\"),\"-\",IF(COUNTA('Enrollment Form'!T904:U904)<2,\"N\",\"Y\"))","v":"-"},{"$f":"IF(B897=\"N\",\"\",IF(OR('Enrollment Form'!C904=\"ROC\",'Enrollment Form'!B904<>\"Subscriber\",'Enrollment Form'!O904=\"Waive\",'Enrollment Form'!O904=\"\"),\"-\",IF('Enrollment Form'!P904=\"\",\"N\",\"Y\")))","v":""},{"$f":"IF($B897=\"N\",\"\",IF(AND('Enrollment Form'!$C904=\"ROC\",'Enrollment Form'!$DS904<>\"\"),\"Y\",IF(AND('Enrollment Form'!$C904=\"ROC\",'Enrollment Form'!$DS904=\"\"),\"N\",IF(AND('Enrollment Form'!$C904=\"Enroll\",'Enrollment Form'!$B904=\"Subscriber\",'Enrollment Form'!$CQ904=\"No\",'Enrollment Form'!$DS904=\"\"),\"N\",IF(AND('Enrollment Form'!$C904=\"Enroll\",'Enrollment Form'!$B904=\"Subscriber\",'Enrollment Form'!$CQ904=\"Yes\"),\"-\",\"Y\")))))","v":""},{"$f":"IF($B897=\"N\",\"\",IF(AND('Enrollment Form'!$C904=\"ROC\",'Enrollment Form'!$DT904<>\"\"),\"Y\",IF(AND('Enrollment Form'!$C904=\"ROC\",'Enrollment Form'!$DT904=\"\"),\"N\",IF(AND('Enrollment Form'!$C904=\"Enroll\",'Enrollment Form'!$B904=\"Subscriber\",'Enrollment Form'!$CQ904=\"No\",'Enrollment Form'!$DT904=\"\"),\"N\",IF(AND('Enrollment Form'!$C904=\"Enroll\",'Enrollment Form'!$B904=\"Subscriber\",'Enrollment Form'!$CQ904=\"Yes\"),\"-\",\"Y\")))))","v":""},{"$f":"IF('Enrollment Form'!AH904=\"\",\"\",IF(ISERROR(SEARCH(\".\",'Enrollment Form'!AH904,SEARCH(\"@\",'Enrollment Form'!AH904))),\"N\",\"Y\"))","v":""},{"$f":"IF(OR($B897=\"N\",'Enrollment Form'!$G904=\"\"),\"\",IF('Enrollment Form'!$B904<>\"Subscriber\",\"-\",IF(COUNTIF('Enrollment Form'!$AS904:$AT904,\"Yes\")=2,\"N\",\"Y\")))","v":""},{"$f":"IF(OR('Enrollment Form'!$CC904=\"\",'Enrollment Form'!$CC904=\"No\"),\"-\",IF(AND('Enrollment Form'!$CC904=\"Yes\",'Enrollment Form'!$CD904=\"\"),\"N\",\"Y\"))","v":"-"},{"$f":"IF(OR('Enrollment Form'!$CE904=\"\",'Enrollment Form'!$CE904=\"No\"),\"-\",IF(AND('Enrollment Form'!$CE904=\"Yes\",'Enrollment Form'!$CF904=\"\"),\"N\",\"Y\"))","v":"-"},{"$f":"IF(OR('Enrollment Form'!$CG904=\"\",'Enrollment Form'!$CG904=\"No\"),\"-\",IF(AND('Enrollment Form'!$CG904=\"Yes\",'Enrollment Form'!$CH904=\"\"),\"N\",\"Y\"))","v":"-"},{"$f":"IF(OR('Enrollment Form'!$CG904=\"\",'Enrollment Form'!$CG904=\"No\"),\"-\",IF(AND('Enrollment Form'!$CG904=\"Yes\",'Enrollment Form'!$CI904=\"\"),\"N\",\"Y\"))","v":"-"},{"$f":"IF('Enrollment Form'!B904<>\"Subscriber\",\"-\",IF(AND('Enrollment Form'!B904=\"Subscriber\",'Enrollment Form'!C904=\"Enroll\",'Enrollment Form'!AA904=\"\"),\"N\",\"Y\"))","v":"-"},{"$f":"IF(OR('Enrollment Form'!B904=\"Subscriber\",'Enrollment Form'!B904=\"\"),\"-\",IF('Enrollment Form'!BI904=\"\",\"N\",\"Y\"))","v":"-"},{"$f":"IF('Enrollment Form'!B904<>\"Subscriber\",\"-\",IF(AND('Enrollment Form'!B904=\"Subscriber\",'Enrollment Form'!G904=\"\"),\"N\",\"Y\"))","v":"-"},{"$f":"IF('Enrollment Form'!A904=\"\",\"\",IF('Enrollment Form'!B904=\"Subscriber\",\"-\",IF(AND('Enrollment Form'!B904<>\"Subscriber\",'Enrollment Form'!G904='Enrollment Form'!H904),\"N\",\"Y\")))","v":""},0]
[905,{"$f":"IF('Enrollment Form'!$A905<>\"\",\"Y\",\"N\")","v":"N"},{"$f":"IF(AND('Enrollment Form'!$B905=\"\",'Enrollment Form'!$C905<>\"\"),\"N\",IF($B898=\"N\",\"\",\"Y\"))","v":""},{"$f":"IF(OR($B898=\"N\",'Enrollment Form'!G905=\"\"),\"\",IF('Enrollment Form'!$B905<>\"Subscriber\",\"\",IF('Enrollment Form'!$G905='Enrollment Form'!$H905,\"Y\",\"N\")))","v":""},{"$f":"IF($B898=\"N\",\"\",IF(AND(COUNTIFS('Enrollment Form'!$H$11:$H$1000,'Enrollment Form'!$H905,'Enrollment Form'!$B$11:$B$1000,'Enrollment Form'!$B905)>1,'Enrollment Form'!$H905<>\"\"),\"N\",\"Y\"))","v":""},{"$f":"IF($B898=\"N\",\"\",IF(LEN('Enrollment Form'!$Y905)=0,\"\",IF(LEN('Enrollment Form'!$Y905)<>5,\"N\",\"Y\")))","v":""},{"$f":"IF($B898=\"N\",\"\",IF(LEN('Enrollment Form'!$AD905=0),\"\",IF(LEN('Enrollment Form'!$AD905)<>5,\"N\",\"Y\")))","v":""},{"$f":"IF($B898=\"N\",\"\",IF(LEN('Enrollment Form'!$BL905=0),\"\",IF(LEN('Enrollment Form'!$BL905)<>5,\"N\",\"Y\")))","v":""},{"$f":"IF($B898=\"N\",\"\",IF(LEN('Enrollment Form'!$AE905)=0,\"\",IF(LEN('Enrollment Form'!$AE905)<>10,\"N\",\"Y\")))","v":""},{"$f":"IF($B898=\"N\",\"\",IF(LEN('Enrollment Form'!$AF905)=0,\"\",IF(LEN('Enrollment Form'!$AF905)<>10,\"N\",\"Y\")))","v":""},{"$f":"IF('Enrollment Form'!$O905<>\"Graded\",\"-\",IF(AND('Enrollment Form'!$O905=\"Graded\",'Enrollment Form'!$AO905<>\"\"),\"Y\",\"N\"))","v":"-"},{"$f":"IF($B898=\"N\",\"\",IF(OR('Enrollment Form'!$B905<>\"Subscriber\",'Enrollment Form'!$C905=\"ROC\"),\"-\",IF(AND('Enrollment Form'!$B905=\"Subscriber\",'Enrollment Form'!$C905=\"Enroll\",'Enrollment Form'!$AJ905<>\"\"),\"Y\",\"N\")))","v":""},{"$f":"IF($B898=\"N\",\"\",IF(OR('Enrollment Form'!$B905<>\"Subscriber\",'Enrollment Form'!$C905=\"ROC\"),\"-\",IF(AND('Enrollment Form'!$B905=\"Subscriber\",'Enrollment Form'!$C905=\"Enroll\",'Enrollment Form'!$AK905<>\"\"),\"Y\",\"N\")))","v":""},{"$f":"IF($B898=\"N\",\"\",IF(OR('Enrollment Form'!$B905<>\"Subscriber\",'Enrollment Form'!$C905=\"ROC\"),\"-\",IF(AND('Enrollment Form'!$B905=\"Subscriber\",'Enrollment Form'!$C905=\"Enroll\",'Enrollment Form'!$AL905<>\"\"),\"Y\",\"N\")))","v":""},{"$f":"IF($B898=\"N\",\"\",IF(OR('Enrollment Form'!$B905<>\"Subscriber\",'Enrollment Form'!$C905=\"ROC\"),\"-\",IF(AND('Enrollment Form'!$B905=\"Subscriber\",'Enrollment Form'!$C905=\"Enroll\",'Enrollment Form'!$AM905<>\"\"),\"Y\",\"N\")))","v":""},{"$f":"IF($B898=\"N\",\"\",IF(OR('Enrollment Form'!$B905<>\"Subscriber\",'Enrollment Form'!$C905=\"ROC\"),\"-\",IF(AND('Enrollment Form'!$B905=\"Subscriber\",'Enrollment Form'!$C905=\"Enroll\",'Enrollment Form'!$AN905<>\"\"),\"Y\",\"N\")))","v":""},{"$f":"IF($B898=\"N\",\"\",IF(OR('Enrollment Form'!$B905<>\"Subscriber\",'Enrollment Form'!$C905=\"ROC\"),\"-\",IF(AND('Enrollment Form'!$B905=\"Subscriber\",'Enrollment Form'!$C905=\"Enroll\",'Enrollment Form'!$AP905<>\"\"),\"Y\",\"N\")))","v":""},{"$f":"IF($B898=\"N\",\"\",IF($Q898=\"-\",\"-\",IF(AND($Q898=\"Y\",'Enrollment Form'!$AP905=\"No\"),\"-\",IF(AND($Q898=\"Y\",'Enrollment Form'!$AP905=\"Yes\",'Enrollment Form'!$AQ905<>\"\"),\"Y\",\"N\"))))","v":""},{"$f":"IF($B898=\"N\",\"\",IF(OR('Enrollment Form'!$B905<>\"Subscriber\",'Enrollment Form'!$C905=\"ROC\"),\"-\",IF(AND('Enrollment Form'!$B905=\"Subscriber\",'Enrollment Form'!$C905=\"Enroll\",'Enrollment Form'!$CO905<>\"\"),\"Y\",\"N\")))","v":""},{"$f":"IF($B898=\"N\",\"\",IF($S898=\"-\",\"-\",IF(AND($S898=\"Y\",'Enrollment Form'!$CO905=\"No\"),\"-\",IF(AND($S898=\"Y\",'Enrollment Form'!$CO905=\"Yes\",'Enrollment Form'!$CP905<>\"\"),\"Y\",\"N\"))))","v":""},{"$f":"IF(OR('Enrollment Form'!$AV905=\"Yes\",'Enrollment Form'!$AV905=\"\"),\"-\",IF(AND('Enrollment Form'!$AV905=\"No\",ISERROR(FIND(\"HMO\",VLOOKUP('Enrollment Form'!G905,'Enrollment Form'!H$11:J$1000,3,FALSE),1))=FALSE,COUNTA('Enrollment Form'!$AW905:$AZ905)=4),\"Y\",\"N\"))","v":"-"},{"$f":"IF($B898=\"N\",\"\",IF('Enrollment Form'!$B905=\"Subscriber\",\"-\",IF(COUNTA('Enrollment Form'!$BE905,'Enrollment Form'!$BG905)=2,\"Y\",\"N\")))","v":""},{"$f":"IF($B898=\"N\",\"\",IF(OR('Enrollment Form'!$AU905=\"\",'Enrollment Form'!$AU905=\"No\"),\"-\",IF(AND('Enrollment Form'!$AU905=\"Yes\",COUNTA('Enrollment Form'!$CK905)=1),\"Y\",\"N\")))","v":""},{"$f":"IF(OR('Enrollment Form'!$CK905=\"\",'Enrollment Form'!$CK905=\"No\"),\"-\",IF(COUNTA('Enrollment Form'!$CM905:$CN905)=2,\"Y\",\"N\"))","v":"-"},{"$f":"IF($B898=\"N\",\"\",IF(COUNTIF('Enrollment Form'!$CZ905:$DO905,\"Other\")=COUNTA('Enrollment Form'!$DF905,'Enrollment Form'!$DA905,'Enrollment Form'!$DK905,'Enrollment Form'!$DP905),\"Y\",\"N\"))","v":""},{"$f":"IF($B898=\"N\",\"\",IF(OR('Enrollment Form'!B905<>\"Subscriber\",'Enrollment Form'!C905=\"ROC\",COUNTIF('Enrollment Form'!AS905:AT905,\"Yes\")>=1),\"-\",IF(AND('Enrollment Form'!C905=\"Enroll\",COUNTIF('Enrollment Form'!AS905:AT905,\"No\")=2,'Enrollment Form'!AU905=\"\"),\"N\",\"Y\")))","v":""},{"$f":"IF(OR(B898=\"N\",'Enrollment Form'!B905<>\"Subscriber\",'Enrollment Form'!C905=\"ROC\",'Enrollment Form'!O905<>\"Multiple of Salary\"),\"-\",IF(COUNTA('Enrollment Form'!T905:U905)<2,\"N\",\"Y\"))","v":"-"},{"$f":"IF(B898=\"N\",\"\",IF(OR('Enrollment Form'!C905=\"ROC\",'Enrollment Form'!B905<>\"Subscriber\",'Enrollment Form'!O905=\"Waive\",'Enrollment Form'!O905=\"\"),\"-\",IF('Enrollment Form'!P905=\"\",\"N\",\"Y\")))","v":""},{"$f":"IF($B898=\"N\",\"\",IF(AND('Enrollment Form'!$C905=\"ROC\",'Enrollment Form'!$DS905<>\"\"),\"Y\",IF(AND('Enrollment Form'!$C905=\"ROC\",'Enrollment Form'!$DS905=\"\"),\"N\",IF(AND('Enrollment Form'!$C905=\"Enroll\",'Enrollment Form'!$B905=\"Subscriber\",'Enrollment Form'!$CQ905=\"No\",'Enrollment Form'!$DS905=\"\"),\"N\",IF(AND('Enrollment Form'!$C905=\"Enroll\",'Enrollment Form'!$B905=\"Subscriber\",'Enrollment Form'!$CQ905=\"Yes\"),\"-\",\"Y\")))))","v":""},{"$f":"IF($B898=\"N\",\"\",IF(AND('Enrollment Form'!$C905=\"ROC\",'Enrollment Form'!$DT905<>\"\"),\"Y\",IF(AND('Enrollment Form'!$C905=\"ROC\",'Enrollment Form'!$DT905=\"\"),\"N\",IF(AND('Enrollment Form'!$C905=\"Enroll\",'Enrollment Form'!$B905=\"Subscriber\",'Enrollment Form'!$CQ905=\"No\",'Enrollment Form'!$DT905=\"\"),\"N\",IF(AND('Enrollment Form'!$C905=\"Enroll\",'Enrollment Form'!$B905=\"Subscriber\",'Enrollment Form'!$CQ905=\"Yes\"),\"-\",\"Y\")))))","v":""},{"$f":"IF('Enrollment Form'!AH905=\"\",\"\",IF(ISERROR(SEARCH(\".\",'Enrollment Form'!AH905,SEARCH(\"@\",'Enrollment Form'!AH905))),\"N\",\"Y\"))","v":""},{"$f":"IF(OR($B898=\"N\",'Enrollment Form'!$G905=\"\"),\"\",IF('Enrollment Form'!$B905<>\"Subscriber\",\"-\",IF(COUNTIF('Enrollment Form'!$AS905:$AT905,\"Yes\")=2,\"N\",\"Y\")))","v":""},{"$f":"IF(OR('Enrollment Form'!$CC905=\"\",'Enrollment Form'!$CC905=\"No\"),\"-\",IF(AND('Enrollment Form'!$CC905=\"Yes\",'Enrollment Form'!$CD905=\"\"),\"N\",\"Y\"))","v":"-"},{"$f":"IF(OR('Enrollment Form'!$CE905=\"\",'Enrollment Form'!$CE905=\"No\"),\"-\",IF(AND('Enrollment Form'!$CE905=\"Yes\",'Enrollment Form'!$CF905=\"\"),\"N\",\"Y\"))","v":"-"},{"$f":"IF(OR('Enrollment Form'!$CG905=\"\",'Enrollment Form'!$CG905=\"No\"),\"-\",IF(AND('Enrollment Form'!$CG905=\"Yes\",'Enrollment Form'!$CH905=\"\"),\"N\",\"Y\"))","v":"-"},{"$f":"IF(OR('Enrollment Form'!$CG905=\"\",'Enrollment Form'!$CG905=\"No\"),\"-\",IF(AND('Enrollment Form'!$CG905=\"Yes\",'Enrollment Form'!$CI905=\"\"),\"N\",\"Y\"))","v":"-"},{"$f":"IF('Enrollment Form'!B905<>\"Subscriber\",\"-\",IF(AND('Enrollment Form'!B905=\"Subscriber\",'Enrollment Form'!C905=\"Enroll\",'Enrollment Form'!AA905=\"\"),\"N\",\"Y\"))","v":"-"},{"$f":"IF(OR('Enrollment Form'!B905=\"Subscriber\",'Enrollment Form'!B905=\"\"),\"-\",IF('Enrollment Form'!BI905=\"\",\"N\",\"Y\"))","v":"-"},{"$f":"IF('Enrollment Form'!B905<>\"Subscriber\",\"-\",IF(AND('Enrollment Form'!B905=\"Subscriber\",'Enrollment Form'!G905=\"\"),\"N\",\"Y\"))","v":"-"},{"$f":"IF('Enrollment Form'!A905=\"\",\"\",IF('Enrollment Form'!B905=\"Subscriber\",\"-\",IF(AND('Enrollment Form'!B905<>\"Subscriber\",'Enrollment Form'!G905='Enrollment Form'!H905),\"N\",\"Y\")))","v":""},0]
[906,{"$f":"IF('Enrollment Form'!$A906<>\"\",\"Y\",\"N\")","v":"N"},{"$f":"IF(AND('Enrollment Form'!$B906=\"\",'Enrollment Form'!$C906<>\"\"),\"N\",IF($B899=\"N\",\"\",\"Y\"))","v":""},{"$f":"IF(OR($B899=\"N\",'Enrollment Form'!G906=\"\"),\"\",IF('Enrollment Form'!$B906<>\"Subscriber\",\"\",IF('Enrollment Form'!$G906='Enrollment Form'!$H906,\"Y\",\"N\")))","v":""},{"$f":"IF($B899=\"N\",\"\",IF(AND(COUNTIFS('Enrollment Form'!$H$11:$H$1000,'Enrollment Form'!$H906,'Enrollment Form'!$B$11:$B$1000,'Enrollment Form'!$B906)>1,'Enrollment Form'!$H906<>\"\"),\"N\",\"Y\"))","v":""},{"$f":"IF($B899=\"N\",\"\",IF(LEN('Enrollment Form'!$Y906)=0,\"\",IF(LEN('Enrollment Form'!$Y906)<>5,\"N\",\"Y\")))","v":""},{"$f":"IF($B899=\"N\",\"\",IF(LEN('Enrollment Form'!$AD906=0),\"\",IF(LEN('Enrollment Form'!$AD906)<>5,\"N\",\"Y\")))","v":""},{"$f":"IF($B899=\"N\",\"\",IF(LEN('Enrollment Form'!$BL906=0),\"\",IF(LEN('Enrollment Form'!$BL906)<>5,\"N\",\"Y\")))","v":""},{"$f":"IF($B899=\"N\",\"\",IF(LEN('Enrollment Form'!$AE906)=0,\"\",IF(LEN('Enrollment Form'!$AE906)<>10,\"N\",\"Y\")))","v":""},{"$f":"IF($B899=\"N\",\"\",IF(LEN('Enrollment Form'!$AF906)=0,\"\",IF(LEN('Enrollment Form'!$AF906)<>10,\"N\",\"Y\")))","v":""},{"$f":"IF('Enrollment Form'!$O906<>\"Graded\",\"-\",IF(AND('Enrollment Form'!$O906=\"Graded\",'Enrollment Form'!$AO906<>\"\"),\"Y\",\"N\"))","v":"-"},{"$f":"IF($B899=\"N\",\"\",IF(OR('Enrollment Form'!$B906<>\"Subscriber\",'Enrollment Form'!$C906=\"ROC\"),\"-\",IF(AND('Enrollment Form'!$B906=\"Subscriber\",'Enrollment Form'!$C906=\"Enroll\",'Enrollment Form'!$AJ906<>\"\"),\"Y\",\"N\")))","v":""},{"$f":"IF($B899=\"N\",\"\",IF(OR('Enrollment Form'!$B906<>\"Subscriber\",'Enrollment Form'!$C906=\"ROC\"),\"-\",IF(AND('Enrollment Form'!$B906=\"Subscriber\",'Enrollment Form'!$C906=\"Enroll\",'Enrollment Form'!$AK906<>\"\"),\"Y\",\"N\")))","v":""},{"$f":"IF($B899=\"N\",\"\",IF(OR('Enrollment Form'!$B906<>\"Subscriber\",'Enrollment Form'!$C906=\"ROC\"),\"-\",IF(AND('Enrollment Form'!$B906=\"Subscriber\",'Enrollment Form'!$C906=\"Enroll\",'Enrollment Form'!$AL906<>\"\"),\"Y\",\"N\")))","v":""},{"$f":"IF($B899=\"N\",\"\",IF(OR('Enrollment Form'!$B906<>\"Subscriber\",'Enrollment Form'!$C906=\"ROC\"),\"-\",IF(AND('Enrollment Form'!$B906=\"Subscriber\",'Enrollment Form'!$C906=\"Enroll\",'Enrollment Form'!$AM906<>\"\"),\"Y\",\"N\")))","v":""},{"$f":"IF($B899=\"N\",\"\",IF(OR('Enrollment Form'!$B906<>\"Subscriber\",'Enrollment Form'!$C906=\"ROC\"),\"-\",IF(AND('Enrollment Form'!$B906=\"Subscriber\",'Enrollment Form'!$C906=\"Enroll\",'Enrollment Form'!$AN906<>\"\"),\"Y\",\"N\")))","v":""},{"$f":"IF($B899=\"N\",\"\",IF(OR('Enrollment Form'!$B906<>\"Subscriber\",'Enrollment Form'!$C906=\"ROC\"),\"-\",IF(AND('Enrollment Form'!$B906=\"Subscriber\",'Enrollment Form'!$C906=\"Enroll\",'Enrollment Form'!$AP906<>\"\"),\"Y\",\"N\")))","v":""},{"$f":"IF($B899=\"N\",\"\",IF($Q899=\"-\",\"-\",IF(AND($Q899=\"Y\",'Enrollment Form'!$AP906=\"No\"),\"-\",IF(AND($Q899=\"Y\",'Enrollment Form'!$AP906=\"Yes\",'Enrollment Form'!$AQ906<>\"\"),\"Y\",\"N\"))))","v":""},{"$f":"IF($B899=\"N\",\"\",IF(OR('Enrollment Form'!$B906<>\"Subscriber\",'Enrollment Form'!$C906=\"ROC\"),\"-\",IF(AND('Enrollment Form'!$B906=\"Subscriber\",'Enrollment Form'!$C906=\"Enroll\",'Enrollment Form'!$CO906<>\"\"),\"Y\",\"N\")))","v":""},{"$f":"IF($B899=\"N\",\"\",IF($S899=\"-\",\"-\",IF(AND($S899=\"Y\",'Enrollment Form'!$CO906=\"No\"),\"-\",IF(AND($S899=\"Y\",'Enrollment Form'!$CO906=\"Yes\",'Enrollment Form'!$CP906<>\"\"),\"Y\",\"N\"))))","v":""},{"$f":"IF(OR('Enrollment Form'!$AV906=\"Yes\",'Enrollment Form'!$AV906=\"\"),\"-\",IF(AND('Enrollment Form'!$AV906=\"No\",ISERROR(FIND(\"HMO\",VLOOKUP('Enrollment Form'!G906,'Enrollment Form'!H$11:J$1000,3,FALSE),1))=FALSE,COUNTA('Enrollment Form'!$AW906:$AZ906)=4),\"Y\",\"N\"))","v":"-"},{"$f":"IF($B899=\"N\",\"\",IF('Enrollment Form'!$B906=\"Subscriber\",\"-\",IF(COUNTA('Enrollment Form'!$BE906,'Enrollment Form'!$BG906)=2,\"Y\",\"N\")))","v":""},{"$f":"IF($B899=\"N\",\"\",IF(OR('Enrollment Form'!$AU906=\"\",'Enrollment Form'!$AU906=\"No\"),\"-\",IF(AND('Enrollment Form'!$AU906=\"Yes\",COUNTA('Enrollment Form'!$CK906)=1),\"Y\",\"N\")))","v":""},{"$f":"IF(OR('Enrollment Form'!$CK906=\"\",'Enrollment Form'!$CK906=\"No\"),\"-\",IF(COUNTA('Enrollment Form'!$CM906:$CN906)=2,\"Y\",\"N\"))","v":"-"},{"$f":"IF($B899=\"N\",\"\",IF(COUNTIF('Enrollment Form'!$CZ906:$DO906,\"Other\")=COUNTA('Enrollment Form'!$DF906,'Enrollment Form'!$DA906,'Enrollment Form'!$DK906,'Enrollment Form'!$DP906),\"Y\",\"N\"))","v":""},{"$f":"IF($B899=\"N\",\"\",IF(OR('Enrollment Form'!B906<>\"Subscriber\",'Enrollment Form'!C906=\"ROC\",COUNTIF('Enrollment Form'!AS906:AT906,\"Yes\")>=1),\"-\",IF(AND('Enrollment Form'!C906=\"Enroll\",COUNTIF('Enrollment Form'!AS906:AT906,\"No\")=2,'Enrollment Form'!AU906=\"\"),\"N\",\"Y\")))","v":""},{"$f":"IF(OR(B899=\"N\",'Enrollment Form'!B906<>\"Subscriber\",'Enrollment Form'!C906=\"ROC\",'Enrollment Form'!O906<>\"Multiple of Salary\"),\"-\",IF(COUNTA('Enrollment Form'!T906:U906)<2,\"N\",\"Y\"))","v":"-"},{"$f":"IF(B899=\"N\",\"\",IF(OR('Enrollment Form'!C906=\"ROC\",'Enrollment Form'!B906<>\"Subscriber\",'Enrollment Form'!O906=\"Waive\",'Enrollment Form'!O906=\"\"),\"-\",IF('Enrollment Form'!P906=\"\",\"N\",\"Y\")))","v":""},{"$f":"IF($B899=\"N\",\"\",IF(AND('Enrollment Form'!$C906=\"ROC\",'Enrollment Form'!$DS906<>\"\"),\"Y\",IF(AND('Enrollment Form'!$C906=\"ROC\",'Enrollment Form'!$DS906=\"\"),\"N\",IF(AND('Enrollment Form'!$C906=\"Enroll\",'Enrollment Form'!$B906=\"Subscriber\",'Enrollment Form'!$CQ906=\"No\",'Enrollment Form'!$DS906=\"\"),\"N\",IF(AND('Enrollment Form'!$C906=\"Enroll\",'Enrollment Form'!$B906=\"Subscriber\",'Enrollment Form'!$CQ906=\"Yes\"),\"-\",\"Y\")))))","v":""},{"$f":"IF($B899=\"N\",\"\",IF(AND('Enrollment Form'!$C906=\"ROC\",'Enrollment Form'!$DT906<>\"\"),\"Y\",IF(AND('Enrollment Form'!$C906=\"ROC\",'Enrollment Form'!$DT906=\"\"),\"N\",IF(AND('Enrollment Form'!$C906=\"Enroll\",'Enrollment Form'!$B906=\"Subscriber\",'Enrollment Form'!$CQ906=\"No\",'Enrollment Form'!$DT906=\"\"),\"N\",IF(AND('Enrollment Form'!$C906=\"Enroll\",'Enrollment Form'!$B906=\"Subscriber\",'Enrollment Form'!$CQ906=\"Yes\"),\"-\",\"Y\")))))","v":""},{"$f":"IF('Enrollment Form'!AH906=\"\",\"\",IF(ISERROR(SEARCH(\".\",'Enrollment Form'!AH906,SEARCH(\"@\",'Enrollment Form'!AH906))),\"N\",\"Y\"))","v":""},{"$f":"IF(OR($B899=\"N\",'Enrollment Form'!$G906=\"\"),\"\",IF('Enrollment Form'!$B906<>\"Subscriber\",\"-\",IF(COUNTIF('Enrollment Form'!$AS906:$AT906,\"Yes\")=2,\"N\",\"Y\")))","v":""},{"$f":"IF(OR('Enrollment Form'!$CC906=\"\",'Enrollment Form'!$CC906=\"No\"),\"-\",IF(AND('Enrollment Form'!$CC906=\"Yes\",'Enrollment Form'!$CD906=\"\"),\"N\",\"Y\"))","v":"-"},{"$f":"IF(OR('Enrollment Form'!$CE906=\"\",'Enrollment Form'!$CE906=\"No\"),\"-\",IF(AND('Enrollment Form'!$CE906=\"Yes\",'Enrollment Form'!$CF906=\"\"),\"N\",\"Y\"))","v":"-"},{"$f":"IF(OR('Enrollment Form'!$CG906=\"\",'Enrollment Form'!$CG906=\"No\"),\"-\",IF(AND('Enrollment Form'!$CG906=\"Yes\",'Enrollment Form'!$CH906=\"\"),\"N\",\"Y\"))","v":"-"},{"$f":"IF(OR('Enrollment Form'!$CG906=\"\",'Enrollment Form'!$CG906=\"No\"),\"-\",IF(AND('Enrollment Form'!$CG906=\"Yes\",'Enrollment Form'!$CI906=\"\"),\"N\",\"Y\"))","v":"-"},{"$f":"IF('Enrollment Form'!B906<>\"Subscriber\",\"-\",IF(AND('Enrollment Form'!B906=\"Subscriber\",'Enrollment Form'!C906=\"Enroll\",'Enrollment Form'!AA906=\"\"),\"N\",\"Y\"))","v":"-"},{"$f":"IF(OR('Enrollment Form'!B906=\"Subscriber\",'Enrollment Form'!B906=\"\"),\"-\",IF('Enrollment Form'!BI906=\"\",\"N\",\"Y\"))","v":"-"},{"$f":"IF('Enrollment Form'!B906<>\"Subscriber\",\"-\",IF(AND('Enrollment Form'!B906=\"Subscriber\",'Enrollment Form'!G906=\"\"),\"N\",\"Y\"))","v":"-"},{"$f":"IF('Enrollment Form'!A906=\"\",\"\",IF('Enrollment Form'!B906=\"Subscriber\",\"-\",IF(AND('Enrollment Form'!B906<>\"Subscriber\",'Enrollment Form'!G906='Enrollment Form'!H906),\"N\",\"Y\")))","v":""},0]
[907,{"$f":"IF('Enrollment Form'!$A907<>\"\",\"Y\",\"N\")","v":"N"},{"$f":"IF(AND('Enrollment Form'!$B907=\"\",'Enrollment Form'!$C907<>\"\"),\"N\",IF($B900=\"N\",\"\",\"Y\"))","v":""},{"$f":"IF(OR($B900=\"N\",'Enrollment Form'!G907=\"\"),\"\",IF('Enrollment Form'!$B907<>\"Subscriber\",\"\",IF('Enrollment Form'!$G907='Enrollment Form'!$H907,\"Y\",\"N\")))","v":""},{"$f":"IF($B900=\"N\",\"\",IF(AND(COUNTIFS('Enrollment Form'!$H$11:$H$1000,'Enrollment Form'!$H907,'Enrollment Form'!$B$11:$B$1000,'Enrollment Form'!$B907)>1,'Enrollment Form'!$H907<>\"\"),\"N\",\"Y\"))","v":""},{"$f":"IF($B900=\"N\",\"\",IF(LEN('Enrollment Form'!$Y907)=0,\"\",IF(LEN('Enrollment Form'!$Y907)<>5,\"N\",\"Y\")))","v":""},{"$f":"IF($B900=\"N\",\"\",IF(LEN('Enrollment Form'!$AD907=0),\"\",IF(LEN('Enrollment Form'!$AD907)<>5,\"N\",\"Y\")))","v":""},{"$f":"IF($B900=\"N\",\"\",IF(LEN('Enrollment Form'!$BL907=0),\"\",IF(LEN('Enrollment Form'!$BL907)<>5,\"N\",\"Y\")))","v":""},{"$f":"IF($B900=\"N\",\"\",IF(LEN('Enrollment Form'!$AE907)=0,\"\",IF(LEN('Enrollment Form'!$AE907)<>10,\"N\",\"Y\")))","v":""},{"$f":"IF($B900=\"N\",\"\",IF(LEN('Enrollment Form'!$AF907)=0,\"\",IF(LEN('Enrollment Form'!$AF907)<>10,\"N\",\"Y\")))","v":""},{"$f":"IF('Enrollment Form'!$O907<>\"Graded\",\"-\",IF(AND('Enrollment Form'!$O907=\"Graded\",'Enrollment Form'!$AO907<>\"\"),\"Y\",\"N\"))","v":"-"},{"$f":"IF($B900=\"N\",\"\",IF(OR('Enrollment Form'!$B907<>\"Subscriber\",'Enrollment Form'!$C907=\"ROC\"),\"-\",IF(AND('Enrollment Form'!$B907=\"Subscriber\",'Enrollment Form'!$C907=\"Enroll\",'Enrollment Form'!$AJ907<>\"\"),\"Y\",\"N\")))","v":""},{"$f":"IF($B900=\"N\",\"\",IF(OR('Enrollment Form'!$B907<>\"Subscriber\",'Enrollment Form'!$C907=\"ROC\"),\"-\",IF(AND('Enrollment Form'!$B907=\"Subscriber\",'Enrollment Form'!$C907=\"Enroll\",'Enrollment Form'!$AK907<>\"\"),\"Y\",\"N\")))","v":""},{"$f":"IF($B900=\"N\",\"\",IF(OR('Enrollment Form'!$B907<>\"Subscriber\",'Enrollment Form'!$C907=\"ROC\"),\"-\",IF(AND('Enrollment Form'!$B907=\"Subscriber\",'Enrollment Form'!$C907=\"Enroll\",'Enrollment Form'!$AL907<>\"\"),\"Y\",\"N\")))","v":""},{"$f":"IF($B900=\"N\",\"\",IF(OR('Enrollment Form'!$B907<>\"Subscriber\",'Enrollment Form'!$C907=\"ROC\"),\"-\",IF(AND('Enrollment Form'!$B907=\"Subscriber\",'Enrollment Form'!$C907=\"Enroll\",'Enrollment Form'!$AM907<>\"\"),\"Y\",\"N\")))","v":""},{"$f":"IF($B900=\"N\",\"\",IF(OR('Enrollment Form'!$B907<>\"Subscriber\",'Enrollment Form'!$C907=\"ROC\"),\"-\",IF(AND('Enrollment Form'!$B907=\"Subscriber\",'Enrollment Form'!$C907=\"Enroll\",'Enrollment Form'!$AN907<>\"\"),\"Y\",\"N\")))","v":""},{"$f":"IF($B900=\"N\",\"\",IF(OR('Enrollment Form'!$B907<>\"Subscriber\",'Enrollment Form'!$C907=\"ROC\"),\"-\",IF(AND('Enrollment Form'!$B907=\"Subscriber\",'Enrollment Form'!$C907=\"Enroll\",'Enrollment Form'!$AP907<>\"\"),\"Y\",\"N\")))","v":""},{"$f":"IF($B900=\"N\",\"\",IF($Q900=\"-\",\"-\",IF(AND($Q900=\"Y\",'Enrollment Form'!$AP907=\"No\"),\"-\",IF(AND($Q900=\"Y\",'Enrollment Form'!$AP907=\"Yes\",'Enrollment Form'!$AQ907<>\"\"),\"Y\",\"N\"))))","v":""},{"$f":"IF($B900=\"N\",\"\",IF(OR('Enrollment Form'!$B907<>\"Subscriber\",'Enrollment Form'!$C907=\"ROC\"),\"-\",IF(AND('Enrollment Form'!$B907=\"Subscriber\",'Enrollment Form'!$C907=\"Enroll\",'Enrollment Form'!$CO907<>\"\"),\"Y\",\"N\")))","v":""},{"$f":"IF($B900=\"N\",\"\",IF($S900=\"-\",\"-\",IF(AND($S900=\"Y\",'Enrollment Form'!$CO907=\"No\"),\"-\",IF(AND($S900=\"Y\",'Enrollment Form'!$CO907=\"Yes\",'Enrollment Form'!$CP907<>\"\"),\"Y\",\"N\"))))","v":""},{"$f":"IF(OR('Enrollment Form'!$AV907=\"Yes\",'Enrollment Form'!$AV907=\"\"),\"-\",IF(AND('Enrollment Form'!$AV907=\"No\",ISERROR(FIND(\"HMO\",VLOOKUP('Enrollment Form'!G907,'Enrollment Form'!H$11:J$1000,3,FALSE),1))=FALSE,COUNTA('Enrollment Form'!$AW907:$AZ907)=4),\"Y\",\"N\"))","v":"-"},{"$f":"IF($B900=\"N\",\"\",IF('Enrollment Form'!$B907=\"Subscriber\",\"-\",IF(COUNTA('Enrollment Form'!$BE907,'Enrollment Form'!$BG907)=2,\"Y\",\"N\")))","v":""},{"$f":"IF($B900=\"N\",\"\",IF(OR('Enrollment Form'!$AU907=\"\",'Enrollment Form'!$AU907=\"No\"),\"-\",IF(AND('Enrollment Form'!$AU907=\"Yes\",COUNTA('Enrollment Form'!$CK907)=1),\"Y\",\"N\")))","v":""},{"$f":"IF(OR('Enrollment Form'!$CK907=\"\",'Enrollment Form'!$CK907=\"No\"),\"-\",IF(COUNTA('Enrollment Form'!$CM907:$CN907)=2,\"Y\",\"N\"))","v":"-"},{"$f":"IF($B900=\"N\",\"\",IF(COUNTIF('Enrollment Form'!$CZ907:$DO907,\"Other\")=COUNTA('Enrollment Form'!$DF907,'Enrollment Form'!$DA907,'Enrollment Form'!$DK907,'Enrollment Form'!$DP907),\"Y\",\"N\"))","v":""},{"$f":"IF($B900=\"N\",\"\",IF(OR('Enrollment Form'!B907<>\"Subscriber\",'Enrollment Form'!C907=\"ROC\",COUNTIF('Enrollment Form'!AS907:AT907,\"Yes\")>=1),\"-\",IF(AND('Enrollment Form'!C907=\"Enroll\",COUNTIF('Enrollment Form'!AS907:AT907,\"No\")=2,'Enrollment Form'!AU907=\"\"),\"N\",\"Y\")))","v":""},{"$f":"IF(OR(B900=\"N\",'Enrollment Form'!B907<>\"Subscriber\",'Enrollment Form'!C907=\"ROC\",'Enrollment Form'!O907<>\"Multiple of Salary\"),\"-\",IF(COUNTA('Enrollment Form'!T907:U907)<2,\"N\",\"Y\"))","v":"-"},{"$f":"IF(B900=\"N\",\"\",IF(OR('Enrollment Form'!C907=\"ROC\",'Enrollment Form'!B907<>\"Subscriber\",'Enrollment Form'!O907=\"Waive\",'Enrollment Form'!O907=\"\"),\"-\",IF('Enrollment Form'!P907=\"\",\"N\",\"Y\")))","v":""},{"$f":"IF($B900=\"N\",\"\",IF(AND('Enrollment Form'!$C907=\"ROC\",'Enrollment Form'!$DS907<>\"\"),\"Y\",IF(AND('Enrollment Form'!$C907=\"ROC\",'Enrollment Form'!$DS907=\"\"),\"N\",IF(AND('Enrollment Form'!$C907=\"Enroll\",'Enrollment Form'!$B907=\"Subscriber\",'Enrollment Form'!$CQ907=\"No\",'Enrollment Form'!$DS907=\"\"),\"N\",IF(AND('Enrollment Form'!$C907=\"Enroll\",'Enrollment Form'!$B907=\"Subscriber\",'Enrollment Form'!$CQ907=\"Yes\"),\"-\",\"Y\")))))","v":""},{"$f":"IF($B900=\"N\",\"\",IF(AND('Enrollment Form'!$C907=\"ROC\",'Enrollment Form'!$DT907<>\"\"),\"Y\",IF(AND('Enrollment Form'!$C907=\"ROC\",'Enrollment Form'!$DT907=\"\"),\"N\",IF(AND('Enrollment Form'!$C907=\"Enroll\",'Enrollment Form'!$B907=\"Subscriber\",'Enrollment Form'!$CQ907=\"No\",'Enrollment Form'!$DT907=\"\"),\"N\",IF(AND('Enrollment Form'!$C907=\"Enroll\",'Enrollment Form'!$B907=\"Subscriber\",'Enrollment Form'!$CQ907=\"Yes\"),\"-\",\"Y\")))))","v":""},{"$f":"IF('Enrollment Form'!AH907=\"\",\"\",IF(ISERROR(SEARCH(\".\",'Enrollment Form'!AH907,SEARCH(\"@\",'Enrollment Form'!AH907))),\"N\",\"Y\"))","v":""},{"$f":"IF(OR($B900=\"N\",'Enrollment Form'!$G907=\"\"),\"\",IF('Enrollment Form'!$B907<>\"Subscriber\",\"-\",IF(COUNTIF('Enrollment Form'!$AS907:$AT907,\"Yes\")=2,\"N\",\"Y\")))","v":""},{"$f":"IF(OR('Enrollment Form'!$CC907=\"\",'Enrollment Form'!$CC907=\"No\"),\"-\",IF(AND('Enrollment Form'!$CC907=\"Yes\",'Enrollment Form'!$CD907=\"\"),\"N\",\"Y\"))","v":"-"},{"$f":"IF(OR('Enrollment Form'!$CE907=\"\",'Enrollment Form'!$CE907=\"No\"),\"-\",IF(AND('Enrollment Form'!$CE907=\"Yes\",'Enrollment Form'!$CF907=\"\"),\"N\",\"Y\"))","v":"-"},{"$f":"IF(OR('Enrollment Form'!$CG907=\"\",'Enrollment Form'!$CG907=\"No\"),\"-\",IF(AND('Enrollment Form'!$CG907=\"Yes\",'Enrollment Form'!$CH907=\"\"),\"N\",\"Y\"))","v":"-"},{"$f":"IF(OR('Enrollment Form'!$CG907=\"\",'Enrollment Form'!$CG907=\"No\"),\"-\",IF(AND('Enrollment Form'!$CG907=\"Yes\",'Enrollment Form'!$CI907=\"\"),\"N\",\"Y\"))","v":"-"},{"$f":"IF('Enrollment Form'!B907<>\"Subscriber\",\"-\",IF(AND('Enrollment Form'!B907=\"Subscriber\",'Enrollment Form'!C907=\"Enroll\",'Enrollment Form'!AA907=\"\"),\"N\",\"Y\"))","v":"-"},{"$f":"IF(OR('Enrollment Form'!B907=\"Subscriber\",'Enrollment Form'!B907=\"\"),\"-\",IF('Enrollment Form'!BI907=\"\",\"N\",\"Y\"))","v":"-"},{"$f":"IF('Enrollment Form'!B907<>\"Subscriber\",\"-\",IF(AND('Enrollment Form'!B907=\"Subscriber\",'Enrollment Form'!G907=\"\"),\"N\",\"Y\"))","v":"-"},{"$f":"IF('Enrollment Form'!A907=\"\",\"\",IF('Enrollment Form'!B907=\"Subscriber\",\"-\",IF(AND('Enrollment Form'!B907<>\"Subscriber\",'Enrollment Form'!G907='Enrollment Form'!H907),\"N\",\"Y\")))","v":""},{"$f":"COUNTIF(C900:AN900,\"N\")","v":0}]
[908,{"$f":"IF('Enrollment Form'!$A908<>\"\",\"Y\",\"N\")","v":"N"},{"$f":"IF(AND('Enrollment Form'!$B908=\"\",'Enrollment Form'!$C908<>\"\"),\"N\",IF($B901=\"N\",\"\",\"Y\"))","v":""},{"$f":"IF(OR($B901=\"N\",'Enrollment Form'!G908=\"\"),\"\",IF('Enrollment Form'!$B908<>\"Subscriber\",\"\",IF('Enrollment Form'!$G908='Enrollment Form'!$H908,\"Y\",\"N\")))","v":""},{"$f":"IF($B901=\"N\",\"\",IF(AND(COUNTIFS('Enrollment Form'!$H$11:$H$1000,'Enrollment Form'!$H908,'Enrollment Form'!$B$11:$B$1000,'Enrollment Form'!$B908)>1,'Enrollment Form'!$H908<>\"\"),\"N\",\"Y\"))","v":""},{"$f":"IF($B901=\"N\",\"\",IF(LEN('Enrollment Form'!$Y908)=0,\"\",IF(LEN('Enrollment Form'!$Y908)<>5,\"N\",\"Y\")))","v":""},{"$f":"IF($B901=\"N\",\"\",IF(LEN('Enrollment Form'!$AD908=0),\"\",IF(LEN('Enrollment Form'!$AD908)<>5,\"N\",\"Y\")))","v":""},{"$f":"IF($B901=\"N\",\"\",IF(LEN('Enrollment Form'!$BL908=0),\"\",IF(LEN('Enrollment Form'!$BL908)<>5,\"N\",\"Y\")))","v":""},{"$f":"IF($B901=\"N\",\"\",IF(LEN('Enrollment Form'!$AE908)=0,\"\",IF(LEN('Enrollment Form'!$AE908)<>10,\"N\",\"Y\")))","v":""},{"$f":"IF($B901=\"N\",\"\",IF(LEN('Enrollment Form'!$AF908)=0,\"\",IF(LEN('Enrollment Form'!$AF908)<>10,\"N\",\"Y\")))","v":""},{"$f":"IF('Enrollment Form'!$O908<>\"Graded\",\"-\",IF(AND('Enrollment Form'!$O908=\"Graded\",'Enrollment Form'!$AO908<>\"\"),\"Y\",\"N\"))","v":"-"},{"$f":"IF($B901=\"N\",\"\",IF(OR('Enrollment Form'!$B908<>\"Subscriber\",'Enrollment Form'!$C908=\"ROC\"),\"-\",IF(AND('Enrollment Form'!$B908=\"Subscriber\",'Enrollment Form'!$C908=\"Enroll\",'Enrollment Form'!$AJ908<>\"\"),\"Y\",\"N\")))","v":""},{"$f":"IF($B901=\"N\",\"\",IF(OR('Enrollment Form'!$B908<>\"Subscriber\",'Enrollment Form'!$C908=\"ROC\"),\"-\",IF(AND('Enrollment Form'!$B908=\"Subscriber\",'Enrollment Form'!$C908=\"Enroll\",'Enrollment Form'!$AK908<>\"\"),\"Y\",\"N\")))","v":""},{"$f":"IF($B901=\"N\",\"\",IF(OR('Enrollment Form'!$B908<>\"Subscriber\",'Enrollment Form'!$C908=\"ROC\"),\"-\",IF(AND('Enrollment Form'!$B908=\"Subscriber\",'Enrollment Form'!$C908=\"Enroll\",'Enrollment Form'!$AL908<>\"\"),\"Y\",\"N\")))","v":""},{"$f":"IF($B901=\"N\",\"\",IF(OR('Enrollment Form'!$B908<>\"Subscriber\",'Enrollment Form'!$C908=\"ROC\"),\"-\",IF(AND('Enrollment Form'!$B908=\"Subscriber\",'Enrollment Form'!$C908=\"Enroll\",'Enrollment Form'!$AM908<>\"\"),\"Y\",\"N\")))","v":""},{"$f":"IF($B901=\"N\",\"\",IF(OR('Enrollment Form'!$B908<>\"Subscriber\",'Enrollment Form'!$C908=\"ROC\"),\"-\",IF(AND('Enrollment Form'!$B908=\"Subscriber\",'Enrollment Form'!$C908=\"Enroll\",'Enrollment Form'!$AN908<>\"\"),\"Y\",\"N\")))","v":""},{"$f":"IF($B901=\"N\",\"\",IF(OR('Enrollment Form'!$B908<>\"Subscriber\",'Enrollment Form'!$C908=\"ROC\"),\"-\",IF(AND('Enrollment Form'!$B908=\"Subscriber\",'Enrollment Form'!$C908=\"Enroll\",'Enrollment Form'!$AP908<>\"\"),\"Y\",\"N\")))","v":""},{"$f":"IF($B901=\"N\",\"\",IF($Q901=\"-\",\"-\",IF(AND($Q901=\"Y\",'Enrollment Form'!$AP908=\"No\"),\"-\",IF(AND($Q901=\"Y\",'Enrollment Form'!$AP908=\"Yes\",'Enrollment Form'!$AQ908<>\"\"),\"Y\",\"N\"))))","v":""},{"$f":"IF($B901=\"N\",\"\",IF(OR('Enrollment Form'!$B908<>\"Subscriber\",'Enrollment Form'!$C908=\"ROC\"),\"-\",IF(AND('Enrollment Form'!$B908=\"Subscriber\",'Enrollment Form'!$C908=\"Enroll\",'Enrollment Form'!$CO908<>\"\"),\"Y\",\"N\")))","v":""},{"$f":"IF($B901=\"N\",\"\",IF($S901=\"-\",\"-\",IF(AND($S901=\"Y\",'Enrollment Form'!$CO908=\"No\"),\"-\",IF(AND($S901=\"Y\",'Enrollment Form'!$CO908=\"Yes\",'Enrollment Form'!$CP908<>\"\"),\"Y\",\"N\"))))","v":""},{"$f":"IF(OR('Enrollment Form'!$AV908=\"Yes\",'Enrollment Form'!$AV908=\"\"),\"-\",IF(AND('Enrollment Form'!$AV908=\"No\",ISERROR(FIND(\"HMO\",VLOOKUP('Enrollment Form'!G908,'Enrollment Form'!H$11:J$1000,3,FALSE),1))=FALSE,COUNTA('Enrollment Form'!$AW908:$AZ908)=4),\"Y\",\"N\"))","v":"-"},{"$f":"IF($B901=\"N\",\"\",IF('Enrollment Form'!$B908=\"Subscriber\",\"-\",IF(COUNTA('Enrollment Form'!$BE908,'Enrollment Form'!$BG908)=2,\"Y\",\"N\")))","v":""},{"$f":"IF($B901=\"N\",\"\",IF(OR('Enrollment Form'!$AU908=\"\",'Enrollment Form'!$AU908=\"No\"),\"-\",IF(AND('Enrollment Form'!$AU908=\"Yes\",COUNTA('Enrollment Form'!$CK908)=1),\"Y\",\"N\")))","v":""},{"$f":"IF(OR('Enrollment Form'!$CK908=\"\",'Enrollment Form'!$CK908=\"No\"),\"-\",IF(COUNTA('Enrollment Form'!$CM908:$CN908)=2,\"Y\",\"N\"))","v":"-"},{"$f":"IF($B901=\"N\",\"\",IF(COUNTIF('Enrollment Form'!$CZ908:$DO908,\"Other\")=COUNTA('Enrollment Form'!$DF908,'Enrollment Form'!$DA908,'Enrollment Form'!$DK908,'Enrollment Form'!$DP908),\"Y\",\"N\"))","v":""},{"$f":"IF($B901=\"N\",\"\",IF(OR('Enrollment Form'!B908<>\"Subscriber\",'Enrollment Form'!C908=\"ROC\",COUNTIF('Enrollment Form'!AS908:AT908,\"Yes\")>=1),\"-\",IF(AND('Enrollment Form'!C908=\"Enroll\",COUNTIF('Enrollment Form'!AS908:AT908,\"No\")=2,'Enrollment Form'!AU908=\"\"),\"N\",\"Y\")))","v":""},{"$f":"IF(OR(B901=\"N\",'Enrollment Form'!B908<>\"Subscriber\",'Enrollment Form'!C908=\"ROC\",'Enrollment Form'!O908<>\"Multiple of Salary\"),\"-\",IF(COUNTA('Enrollment Form'!T908:U908)<2,\"N\",\"Y\"))","v":"-"},{"$f":"IF(B901=\"N\",\"\",IF(OR('Enrollment Form'!C908=\"ROC\",'Enrollment Form'!B908<>\"Subscriber\",'Enrollment Form'!O908=\"Waive\",'Enrollment Form'!O908=\"\"),\"-\",IF('Enrollment Form'!P908=\"\",\"N\",\"Y\")))","v":""},{"$f":"IF($B901=\"N\",\"\",IF(AND('Enrollment Form'!$C908=\"ROC\",'Enrollment Form'!$DS908<>\"\"),\"Y\",IF(AND('Enrollment Form'!$C908=\"ROC\",'Enrollment Form'!$DS908=\"\"),\"N\",IF(AND('Enrollment Form'!$C908=\"Enroll\",'Enrollment Form'!$B908=\"Subscriber\",'Enrollment Form'!$CQ908=\"No\",'Enrollment Form'!$DS908=\"\"),\"N\",IF(AND('Enrollment Form'!$C908=\"Enroll\",'Enrollment Form'!$B908=\"Subscriber\",'Enrollment Form'!$CQ908=\"Yes\"),\"-\",\"Y\")))))","v":""},{"$f":"IF($B901=\"N\",\"\",IF(AND('Enrollment Form'!$C908=\"ROC\",'Enrollment Form'!$DT908<>\"\"),\"Y\",IF(AND('Enrollment Form'!$C908=\"ROC\",'Enrollment Form'!$DT908=\"\"),\"N\",IF(AND('Enrollment Form'!$C908=\"Enroll\",'Enrollment Form'!$B908=\"Subscriber\",'Enrollment Form'!$CQ908=\"No\",'Enrollment Form'!$DT908=\"\"),\"N\",IF(AND('Enrollment Form'!$C908=\"Enroll\",'Enrollment Form'!$B908=\"Subscriber\",'Enrollment Form'!$CQ908=\"Yes\"),\"-\",\"Y\")))))","v":""},{"$f":"IF('Enrollment Form'!AH908=\"\",\"\",IF(ISERROR(SEARCH(\".\",'Enrollment Form'!AH908,SEARCH(\"@\",'Enrollment Form'!AH908))),\"N\",\"Y\"))","v":""},{"$f":"IF(OR($B901=\"N\",'Enrollment Form'!$G908=\"\"),\"\",IF('Enrollment Form'!$B908<>\"Subscriber\",\"-\",IF(COUNTIF('Enrollment Form'!$AS908:$AT908,\"Yes\")=2,\"N\",\"Y\")))","v":""},{"$f":"IF(OR('Enrollment Form'!$CC908=\"\",'Enrollment Form'!$CC908=\"No\"),\"-\",IF(AND('Enrollment Form'!$CC908=\"Yes\",'Enrollment Form'!$CD908=\"\"),\"N\",\"Y\"))","v":"-"},{"$f":"IF(OR('Enrollment Form'!$CE908=\"\",'Enrollment Form'!$CE908=\"No\"),\"-\",IF(AND('Enrollment Form'!$CE908=\"Yes\",'Enrollment Form'!$CF908=\"\"),\"N\",\"Y\"))","v":"-"},{"$f":"IF(OR('Enrollment Form'!$CG908=\"\",'Enrollment Form'!$CG908=\"No\"),\"-\",IF(AND('Enrollment Form'!$CG908=\"Yes\",'Enrollment Form'!$CH908=\"\"),\"N\",\"Y\"))","v":"-"},{"$f":"IF(OR('Enrollment Form'!$CG908=\"\",'Enrollment Form'!$CG908=\"No\"),\"-\",IF(AND('Enrollment Form'!$CG908=\"Yes\",'Enrollment Form'!$CI908=\"\"),\"N\",\"Y\"))","v":"-"},{"$f":"IF('Enrollment Form'!B908<>\"Subscriber\",\"-\",IF(AND('Enrollment Form'!B908=\"Subscriber\",'Enrollment Form'!C908=\"Enroll\",'Enrollment Form'!AA908=\"\"),\"N\",\"Y\"))","v":"-"},{"$f":"IF(OR('Enrollment Form'!B908=\"Subscriber\",'Enrollment Form'!B908=\"\"),\"-\",IF('Enrollment Form'!BI908=\"\",\"N\",\"Y\"))","v":"-"},{"$f":"IF('Enrollment Form'!B908<>\"Subscriber\",\"-\",IF(AND('Enrollment Form'!B908=\"Subscriber\",'Enrollment Form'!G908=\"\"),\"N\",\"Y\"))","v":"-"},{"$f":"IF('Enrollment Form'!A908=\"\",\"\",IF('Enrollment Form'!B908=\"Subscriber\",\"-\",IF(AND('Enrollment Form'!B908<>\"Subscriber\",'Enrollment Form'!G908='Enrollment Form'!H908),\"N\",\"Y\")))","v":""},0]
[{"$f":"1+A901","v":909},{"$f":"IF('Enrollment Form'!$A909<>\"\",\"Y\",\"N\")","v":"N"},{"$f":"IF(AND('Enrollment Form'!$B909=\"\",'Enrollment Form'!$C909<>\"\"),\"N\",IF($B902=\"N\",\"\",\"Y\"))","v":""},{"$f":"IF(OR($B902=\"N\",'Enrollment Form'!G909=\"\"),\"\",IF('Enrollment Form'!$B909<>\"Subscriber\",\"\",IF('Enrollment Form'!$G909='Enrollment Form'!$H909,\"Y\",\"N\")))","v":""},{"$f":"IF($B902=\"N\",\"\",IF(AND(COUNTIFS('Enrollment Form'!$H$11:$H$1000,'Enrollment Form'!$H909,'Enrollment Form'!$B$11:$B$1000,'Enrollment Form'!$B909)>1,'Enrollment Form'!$H909<>\"\"),\"N\",\"Y\"))","v":""},{"$f":"IF($B902=\"N\",\"\",IF(LEN('Enrollment Form'!$Y909)=0,\"\",IF(LEN('Enrollment Form'!$Y909)<>5,\"N\",\"Y\")))","v":""},{"$f":"IF($B902=\"N\",\"\",IF(LEN('Enrollment Form'!$AD909=0),\"\",IF(LEN('Enrollment Form'!$AD909)<>5,\"N\",\"Y\")))","v":""},{"$f":"IF($B902=\"N\",\"\",IF(LEN('Enrollment Form'!$BL909=0),\"\",IF(LEN('Enrollment Form'!$BL909)<>5,\"N\",\"Y\")))","v":""},{"$f":"IF($B902=\"N\",\"\",IF(LEN('Enrollment Form'!$AE909)=0,\"\",IF(LEN('Enrollment Form'!$AE909)<>10,\"N\",\"Y\")))","v":""},{"$f":"IF($B902=\"N\",\"\",IF(LEN('Enrollment Form'!$AF909)=0,\"\",IF(LEN('Enrollment Form'!$AF909)<>10,\"N\",\"Y\")))","v":""},{"$f":"IF('Enrollment Form'!$O909<>\"Graded\",\"-\",IF(AND('Enrollment Form'!$O909=\"Graded\",'Enrollment Form'!$AO909<>\"\"),\"Y\",\"N\"))","v":"-"},{"$f":"IF($B902=\"N\",\"\",IF(OR('Enrollment Form'!$B909<>\"Subscriber\",'Enrollment Form'!$C909=\"ROC\"),\"-\",IF(AND('Enrollment Form'!$B909=\"Subscriber\",'Enrollment Form'!$C909=\"Enroll\",'Enrollment Form'!$AJ909<>\"\"),\"Y\",\"N\")))","v":""},{"$f":"IF($B902=\"N\",\"\",IF(OR('Enrollment Form'!$B909<>\"Subscriber\",'Enrollment Form'!$C909=\"ROC\"),\"-\",IF(AND('Enrollment Form'!$B909=\"Subscriber\",'Enrollment Form'!$C909=\"Enroll\",'Enrollment Form'!$AK909<>\"\"),\"Y\",\"N\")))","v":""},{"$f":"IF($B902=\"N\",\"\",IF(OR('Enrollment Form'!$B909<>\"Subscriber\",'Enrollment Form'!$C909=\"ROC\"),\"-\",IF(AND('Enrollment Form'!$B909=\"Subscriber\",'Enrollment Form'!$C909=\"Enroll\",'Enrollment Form'!$AL909<>\"\"),\"Y\",\"N\")))","v":""},{"$f":"IF($B902=\"N\",\"\",IF(OR('Enrollment Form'!$B909<>\"Subscriber\",'Enrollment Form'!$C909=\"ROC\"),\"-\",IF(AND('Enrollment Form'!$B909=\"Subscriber\",'Enrollment Form'!$C909=\"Enroll\",'Enrollment Form'!$AM909<>\"\"),\"Y\",\"N\")))","v":""},{"$f":"IF($B902=\"N\",\"\",IF(OR('Enrollment Form'!$B909<>\"Subscriber\",'Enrollment Form'!$C909=\"ROC\"),\"-\",IF(AND('Enrollment Form'!$B909=\"Subscriber\",'Enrollment Form'!$C909=\"Enroll\",'Enrollment Form'!$AN909<>\"\"),\"Y\",\"N\")))","v":""},{"$f":"IF($B902=\"N\",\"\",IF(OR('Enrollment Form'!$B909<>\"Subscriber\",'Enrollment Form'!$C909=\"ROC\"),\"-\",IF(AND('Enrollment Form'!$B909=\"Subscriber\",'Enrollment Form'!$C909=\"Enroll\",'Enrollment Form'!$AP909<>\"\"),\"Y\",\"N\")))","v":""},{"$f":"IF($B902=\"N\",\"\",IF($Q902=\"-\",\"-\",IF(AND($Q902=\"Y\",'Enrollment Form'!$AP909=\"No\"),\"-\",IF(AND($Q902=\"Y\",'Enrollment Form'!$AP909=\"Yes\",'Enrollment Form'!$AQ909<>\"\"),\"Y\",\"N\"))))","v":""},{"$f":"IF($B902=\"N\",\"\",IF(OR('Enrollment Form'!$B909<>\"Subscriber\",'Enrollment Form'!$C909=\"ROC\"),\"-\",IF(AND('Enrollment Form'!$B909=\"Subscriber\",'Enrollment Form'!$C909=\"Enroll\",'Enrollment Form'!$CO909<>\"\"),\"Y\",\"N\")))","v":""},{"$f":"IF($B902=\"N\",\"\",IF($S902=\"-\",\"-\",IF(AND($S902=\"Y\",'Enrollment Form'!$CO909=\"No\"),\"-\",IF(AND($S902=\"Y\",'Enrollment Form'!$CO909=\"Yes\",'Enrollment Form'!$CP909<>\"\"),\"Y\",\"N\"))))","v":""},{"$f":"IF(OR('Enrollment Form'!$AV909=\"Yes\",'Enrollment Form'!$AV909=\"\"),\"-\",IF(AND('Enrollment Form'!$AV909=\"No\",ISERROR(FIND(\"HMO\",VLOOKUP('Enrollment Form'!G909,'Enrollment Form'!H$11:J$1000,3,FALSE),1))=FALSE,COUNTA('Enrollment Form'!$AW909:$AZ909)=4),\"Y\",\"N\"))","v":"-"},{"$f":"IF($B902=\"N\",\"\",IF('Enrollment Form'!$B909=\"Subscriber\",\"-\",IF(COUNTA('Enrollment Form'!$BE909,'Enrollment Form'!$BG909)=2,\"Y\",\"N\")))","v":""},{"$f":"IF($B902=\"N\",\"\",IF(OR('Enrollment Form'!$AU909=\"\",'Enrollment Form'!$AU909=\"No\"),\"-\",IF(AND('Enrollment Form'!$AU909=\"Yes\",COUNTA('Enrollment Form'!$CK909)=1),\"Y\",\"N\")))","v":""},{"$f":"IF(OR('Enrollment Form'!$CK909=\"\",'Enrollment Form'!$CK909=\"No\"),\"-\",IF(COUNTA('Enrollment Form'!$CM909:$CN909)=2,\"Y\",\"N\"))","v":"-"},{"$f":"IF($B902=\"N\",\"\",IF(COUNTIF('Enrollment Form'!$CZ909:$DO909,\"Other\")=COUNTA('Enrollment Form'!$DF909,'Enrollment Form'!$DA909,'Enrollment Form'!$DK909,'Enrollment Form'!$DP909),\"Y\",\"N\"))","v":""},{"$f":"IF($B902=\"N\",\"\",IF(OR('Enrollment Form'!B909<>\"Subscriber\",'Enrollment Form'!C909=\"ROC\",COUNTIF('Enrollment Form'!AS909:AT909,\"Yes\")>=1),\"-\",IF(AND('Enrollment Form'!C909=\"Enroll\",COUNTIF('Enrollment Form'!AS909:AT909,\"No\")=2,'Enrollment Form'!AU909=\"\"),\"N\",\"Y\")))","v":""},{"$f":"IF(OR(B902=\"N\",'Enrollment Form'!B909<>\"Subscriber\",'Enrollment Form'!C909=\"ROC\",'Enrollment Form'!O909<>\"Multiple of Salary\"),\"-\",IF(COUNTA('Enrollment Form'!T909:U909)<2,\"N\",\"Y\"))","v":"-"},{"$f":"IF(B902=\"N\",\"\",IF(OR('Enrollment Form'!C909=\"ROC\",'Enrollment Form'!B909<>\"Subscriber\",'Enrollment Form'!O909=\"Waive\",'Enrollment Form'!O909=\"\"),\"-\",IF('Enrollment Form'!P909=\"\",\"N\",\"Y\")))","v":""},{"$f":"IF($B902=\"N\",\"\",IF(AND('Enrollment Form'!$C909=\"ROC\",'Enrollment Form'!$DS909<>\"\"),\"Y\",IF(AND('Enrollment Form'!$C909=\"ROC\",'Enrollment Form'!$DS909=\"\"),\"N\",IF(AND('Enrollment Form'!$C909=\"Enroll\",'Enrollment Form'!$B909=\"Subscriber\",'Enrollment Form'!$CQ909=\"No\",'Enrollment Form'!$DS909=\"\"),\"N\",IF(AND('Enrollment Form'!$C909=\"Enroll\",'Enrollment Form'!$B909=\"Subscriber\",'Enrollment Form'!$CQ909=\"Yes\"),\"-\",\"Y\")))))","v":""},{"$f":"IF($B902=\"N\",\"\",IF(AND('Enrollment Form'!$C909=\"ROC\",'Enrollment Form'!$DT909<>\"\"),\"Y\",IF(AND('Enrollment Form'!$C909=\"ROC\",'Enrollment Form'!$DT909=\"\"),\"N\",IF(AND('Enrollment Form'!$C909=\"Enroll\",'Enrollment Form'!$B909=\"Subscriber\",'Enrollment Form'!$CQ909=\"No\",'Enrollment Form'!$DT909=\"\"),\"N\",IF(AND('Enrollment Form'!$C909=\"Enroll\",'Enrollment Form'!$B909=\"Subscriber\",'Enrollment Form'!$CQ909=\"Yes\"),\"-\",\"Y\")))))","v":""},{"$f":"IF('Enrollment Form'!AH909=\"\",\"\",IF(ISERROR(SEARCH(\".\",'Enrollment Form'!AH909,SEARCH(\"@\",'Enrollment Form'!AH909))),\"N\",\"Y\"))","v":""},{"$f":"IF(OR($B902=\"N\",'Enrollment Form'!$G909=\"\"),\"\",IF('Enrollment Form'!$B909<>\"Subscriber\",\"-\",IF(COUNTIF('Enrollment Form'!$AS909:$AT909,\"Yes\")=2,\"N\",\"Y\")))","v":""},{"$f":"IF(OR('Enrollment Form'!$CC909=\"\",'Enrollment Form'!$CC909=\"No\"),\"-\",IF(AND('Enrollment Form'!$CC909=\"Yes\",'Enrollment Form'!$CD909=\"\"),\"N\",\"Y\"))","v":"-"},{"$f":"IF(OR('Enrollment Form'!$CE909=\"\",'Enrollment Form'!$CE909=\"No\"),\"-\",IF(AND('Enrollment Form'!$CE909=\"Yes\",'Enrollment Form'!$CF909=\"\"),\"N\",\"Y\"))","v":"-"},{"$f":"IF(OR('Enrollment Form'!$CG909=\"\",'Enrollment Form'!$CG909=\"No\"),\"-\",IF(AND('Enrollment Form'!$CG909=\"Yes\",'Enrollment Form'!$CH909=\"\"),\"N\",\"Y\"))","v":"-"},{"$f":"IF(OR('Enrollment Form'!$CG909=\"\",'Enrollment Form'!$CG909=\"No\"),\"-\",IF(AND('Enrollment Form'!$CG909=\"Yes\",'Enrollment Form'!$CI909=\"\"),\"N\",\"Y\"))","v":"-"},{"$f":"IF('Enrollment Form'!B909<>\"Subscriber\",\"-\",IF(AND('Enrollment Form'!B909=\"Subscriber\",'Enrollment Form'!C909=\"Enroll\",'Enrollment Form'!AA909=\"\"),\"N\",\"Y\"))","v":"-"},{"$f":"IF(OR('Enrollment Form'!B909=\"Subscriber\",'Enrollment Form'!B909=\"\"),\"-\",IF('Enrollment Form'!BI909=\"\",\"N\",\"Y\"))","v":"-"},{"$f":"IF('Enrollment Form'!B909<>\"Subscriber\",\"-\",IF(AND('Enrollment Form'!B909=\"Subscriber\",'Enrollment Form'!G909=\"\"),\"N\",\"Y\"))","v":"-"},{"$f":"IF('Enrollment Form'!A909=\"\",\"\",IF('Enrollment Form'!B909=\"Subscriber\",\"-\",IF(AND('Enrollment Form'!B909<>\"Subscriber\",'Enrollment Form'!G909='Enrollment Form'!H909),\"N\",\"Y\")))","v":""},0]
[910,{"$f":"IF('Enrollment Form'!$A910<>\"\",\"Y\",\"N\")","v":"N"},{"$f":"IF(AND('Enrollment Form'!$B910=\"\",'Enrollment Form'!$C910<>\"\"),\"N\",IF($B903=\"N\",\"\",\"Y\"))","v":""},{"$f":"IF(OR($B903=\"N\",'Enrollment Form'!G910=\"\"),\"\",IF('Enrollment Form'!$B910<>\"Subscriber\",\"\",IF('Enrollment Form'!$G910='Enrollment Form'!$H910,\"Y\",\"N\")))","v":""},{"$f":"IF($B903=\"N\",\"\",IF(AND(COUNTIFS('Enrollment Form'!$H$11:$H$1000,'Enrollment Form'!$H910,'Enrollment Form'!$B$11:$B$1000,'Enrollment Form'!$B910)>1,'Enrollment Form'!$H910<>\"\"),\"N\",\"Y\"))","v":""},{"$f":"IF($B903=\"N\",\"\",IF(LEN('Enrollment Form'!$Y910)=0,\"\",IF(LEN('Enrollment Form'!$Y910)<>5,\"N\",\"Y\")))","v":""},{"$f":"IF($B903=\"N\",\"\",IF(LEN('Enrollment Form'!$AD910=0),\"\",IF(LEN('Enrollment Form'!$AD910)<>5,\"N\",\"Y\")))","v":""},{"$f":"IF($B903=\"N\",\"\",IF(LEN('Enrollment Form'!$BL910=0),\"\",IF(LEN('Enrollment Form'!$BL910)<>5,\"N\",\"Y\")))","v":""},{"$f":"IF($B903=\"N\",\"\",IF(LEN('Enrollment Form'!$AE910)=0,\"\",IF(LEN('Enrollment Form'!$AE910)<>10,\"N\",\"Y\")))","v":""},{"$f":"IF($B903=\"N\",\"\",IF(LEN('Enrollment Form'!$AF910)=0,\"\",IF(LEN('Enrollment Form'!$AF910)<>10,\"N\",\"Y\")))","v":""},{"$f":"IF('Enrollment Form'!$O910<>\"Graded\",\"-\",IF(AND('Enrollment Form'!$O910=\"Graded\",'Enrollment Form'!$AO910<>\"\"),\"Y\",\"N\"))","v":"-"},{"$f":"IF($B903=\"N\",\"\",IF(OR('Enrollment Form'!$B910<>\"Subscriber\",'Enrollment Form'!$C910=\"ROC\"),\"-\",IF(AND('Enrollment Form'!$B910=\"Subscriber\",'Enrollment Form'!$C910=\"Enroll\",'Enrollment Form'!$AJ910<>\"\"),\"Y\",\"N\")))","v":""},{"$f":"IF($B903=\"N\",\"\",IF(OR('Enrollment Form'!$B910<>\"Subscriber\",'Enrollment Form'!$C910=\"ROC\"),\"-\",IF(AND('Enrollment Form'!$B910=\"Subscriber\",'Enrollment Form'!$C910=\"Enroll\",'Enrollment Form'!$AK910<>\"\"),\"Y\",\"N\")))","v":""},{"$f":"IF($B903=\"N\",\"\",IF(OR('Enrollment Form'!$B910<>\"Subscriber\",'Enrollment Form'!$C910=\"ROC\"),\"-\",IF(AND('Enrollment Form'!$B910=\"Subscriber\",'Enrollment Form'!$C910=\"Enroll\",'Enrollment Form'!$AL910<>\"\"),\"Y\",\"N\")))","v":""},{"$f":"IF($B903=\"N\",\"\",IF(OR('Enrollment Form'!$B910<>\"Subscriber\",'Enrollment Form'!$C910=\"ROC\"),\"-\",IF(AND('Enrollment Form'!$B910=\"Subscriber\",'Enrollment Form'!$C910=\"Enroll\",'Enrollment Form'!$AM910<>\"\"),\"Y\",\"N\")))","v":""},{"$f":"IF($B903=\"N\",\"\",IF(OR('Enrollment Form'!$B910<>\"Subscriber\",'Enrollment Form'!$C910=\"ROC\"),\"-\",IF(AND('Enrollment Form'!$B910=\"Subscriber\",'Enrollment Form'!$C910=\"Enroll\",'Enrollment Form'!$AN910<>\"\"),\"Y\",\"N\")))","v":""},{"$f":"IF($B903=\"N\",\"\",IF(OR('Enrollment Form'!$B910<>\"Subscriber\",'Enrollment Form'!$C910=\"ROC\"),\"-\",IF(AND('Enrollment Form'!$B910=\"Subscriber\",'Enrollment Form'!$C910=\"Enroll\",'Enrollment Form'!$AP910<>\"\"),\"Y\",\"N\")))","v":""},{"$f":"IF($B903=\"N\",\"\",IF($Q903=\"-\",\"-\",IF(AND($Q903=\"Y\",'Enrollment Form'!$AP910=\"No\"),\"-\",IF(AND($Q903=\"Y\",'Enrollment Form'!$AP910=\"Yes\",'Enrollment Form'!$AQ910<>\"\"),\"Y\",\"N\"))))","v":""},{"$f":"IF($B903=\"N\",\"\",IF(OR('Enrollment Form'!$B910<>\"Subscriber\",'Enrollment Form'!$C910=\"ROC\"),\"-\",IF(AND('Enrollment Form'!$B910=\"Subscriber\",'Enrollment Form'!$C910=\"Enroll\",'Enrollment Form'!$CO910<>\"\"),\"Y\",\"N\")))","v":""},{"$f":"IF($B903=\"N\",\"\",IF($S903=\"-\",\"-\",IF(AND($S903=\"Y\",'Enrollment Form'!$CO910=\"No\"),\"-\",IF(AND($S903=\"Y\",'Enrollment Form'!$CO910=\"Yes\",'Enrollment Form'!$CP910<>\"\"),\"Y\",\"N\"))))","v":""},{"$f":"IF(OR('Enrollment Form'!$AV910=\"Yes\",'Enrollment Form'!$AV910=\"\"),\"-\",IF(AND('Enrollment Form'!$AV910=\"No\",ISERROR(FIND(\"HMO\",VLOOKUP('Enrollment Form'!G910,'Enrollment Form'!H$11:J$1000,3,FALSE),1))=FALSE,COUNTA('Enrollment Form'!$AW910:$AZ910)=4),\"Y\",\"N\"))","v":"-"},{"$f":"IF($B903=\"N\",\"\",IF('Enrollment Form'!$B910=\"Subscriber\",\"-\",IF(COUNTA('Enrollment Form'!$BE910,'Enrollment Form'!$BG910)=2,\"Y\",\"N\")))","v":""},{"$f":"IF($B903=\"N\",\"\",IF(OR('Enrollment Form'!$AU910=\"\",'Enrollment Form'!$AU910=\"No\"),\"-\",IF(AND('Enrollment Form'!$AU910=\"Yes\",COUNTA('Enrollment Form'!$CK910)=1),\"Y\",\"N\")))","v":""},{"$f":"IF(OR('Enrollment Form'!$CK910=\"\",'Enrollment Form'!$CK910=\"No\"),\"-\",IF(COUNTA('Enrollment Form'!$CM910:$CN910)=2,\"Y\",\"N\"))","v":"-"},{"$f":"IF($B903=\"N\",\"\",IF(COUNTIF('Enrollment Form'!$CZ910:$DO910,\"Other\")=COUNTA('Enrollment Form'!$DF910,'Enrollment Form'!$DA910,'Enrollment Form'!$DK910,'Enrollment Form'!$DP910),\"Y\",\"N\"))","v":""},{"$f":"IF($B903=\"N\",\"\",IF(OR('Enrollment Form'!B910<>\"Subscriber\",'Enrollment Form'!C910=\"ROC\",COUNTIF('Enrollment Form'!AS910:AT910,\"Yes\")>=1),\"-\",IF(AND('Enrollment Form'!C910=\"Enroll\",COUNTIF('Enrollment Form'!AS910:AT910,\"No\")=2,'Enrollment Form'!AU910=\"\"),\"N\",\"Y\")))","v":""},{"$f":"IF(OR(B903=\"N\",'Enrollment Form'!B910<>\"Subscriber\",'Enrollment Form'!C910=\"ROC\",'Enrollment Form'!O910<>\"Multiple of Salary\"),\"-\",IF(COUNTA('Enrollment Form'!T910:U910)<2,\"N\",\"Y\"))","v":"-"},{"$f":"IF(B903=\"N\",\"\",IF(OR('Enrollment Form'!C910=\"ROC\",'Enrollment Form'!B910<>\"Subscriber\",'Enrollment Form'!O910=\"Waive\",'Enrollment Form'!O910=\"\"),\"-\",IF('Enrollment Form'!P910=\"\",\"N\",\"Y\")))","v":""},{"$f":"IF($B903=\"N\",\"\",IF(AND('Enrollment Form'!$C910=\"ROC\",'Enrollment Form'!$DS910<>\"\"),\"Y\",IF(AND('Enrollment Form'!$C910=\"ROC\",'Enrollment Form'!$DS910=\"\"),\"N\",IF(AND('Enrollment Form'!$C910=\"Enroll\",'Enrollment Form'!$B910=\"Subscriber\",'Enrollment Form'!$CQ910=\"No\",'Enrollment Form'!$DS910=\"\"),\"N\",IF(AND('Enrollment Form'!$C910=\"Enroll\",'Enrollment Form'!$B910=\"Subscriber\",'Enrollment Form'!$CQ910=\"Yes\"),\"-\",\"Y\")))))","v":""},{"$f":"IF($B903=\"N\",\"\",IF(AND('Enrollment Form'!$C910=\"ROC\",'Enrollment Form'!$DT910<>\"\"),\"Y\",IF(AND('Enrollment Form'!$C910=\"ROC\",'Enrollment Form'!$DT910=\"\"),\"N\",IF(AND('Enrollment Form'!$C910=\"Enroll\",'Enrollment Form'!$B910=\"Subscriber\",'Enrollment Form'!$CQ910=\"No\",'Enrollment Form'!$DT910=\"\"),\"N\",IF(AND('Enrollment Form'!$C910=\"Enroll\",'Enrollment Form'!$B910=\"Subscriber\",'Enrollment Form'!$CQ910=\"Yes\"),\"-\",\"Y\")))))","v":""},{"$f":"IF('Enrollment Form'!AH910=\"\",\"\",IF(ISERROR(SEARCH(\".\",'Enrollment Form'!AH910,SEARCH(\"@\",'Enrollment Form'!AH910))),\"N\",\"Y\"))","v":""},{"$f":"IF(OR($B903=\"N\",'Enrollment Form'!$G910=\"\"),\"\",IF('Enrollment Form'!$B910<>\"Subscriber\",\"-\",IF(COUNTIF('Enrollment Form'!$AS910:$AT910,\"Yes\")=2,\"N\",\"Y\")))","v":""},{"$f":"IF(OR('Enrollment Form'!$CC910=\"\",'Enrollment Form'!$CC910=\"No\"),\"-\",IF(AND('Enrollment Form'!$CC910=\"Yes\",'Enrollment Form'!$CD910=\"\"),\"N\",\"Y\"))","v":"-"},{"$f":"IF(OR('Enrollment Form'!$CE910=\"\",'Enrollment Form'!$CE910=\"No\"),\"-\",IF(AND('Enrollment Form'!$CE910=\"Yes\",'Enrollment Form'!$CF910=\"\"),\"N\",\"Y\"))","v":"-"},{"$f":"IF(OR('Enrollment Form'!$CG910=\"\",'Enrollment Form'!$CG910=\"No\"),\"-\",IF(AND('Enrollment Form'!$CG910=\"Yes\",'Enrollment Form'!$CH910=\"\"),\"N\",\"Y\"))","v":"-"},{"$f":"IF(OR('Enrollment Form'!$CG910=\"\",'Enrollment Form'!$CG910=\"No\"),\"-\",IF(AND('Enrollment Form'!$CG910=\"Yes\",'Enrollment Form'!$CI910=\"\"),\"N\",\"Y\"))","v":"-"},{"$f":"IF('Enrollment Form'!B910<>\"Subscriber\",\"-\",IF(AND('Enrollment Form'!B910=\"Subscriber\",'Enrollment Form'!C910=\"Enroll\",'Enrollment Form'!AA910=\"\"),\"N\",\"Y\"))","v":"-"},{"$f":"IF(OR('Enrollment Form'!B910=\"Subscriber\",'Enrollment Form'!B910=\"\"),\"-\",IF('Enrollment Form'!BI910=\"\",\"N\",\"Y\"))","v":"-"},{"$f":"IF('Enrollment Form'!B910<>\"Subscriber\",\"-\",IF(AND('Enrollment Form'!B910=\"Subscriber\",'Enrollment Form'!G910=\"\"),\"N\",\"Y\"))","v":"-"},{"$f":"IF('Enrollment Form'!A910=\"\",\"\",IF('Enrollment Form'!B910=\"Subscriber\",\"-\",IF(AND('Enrollment Form'!B910<>\"Subscriber\",'Enrollment Form'!G910='Enrollment Form'!H910),\"N\",\"Y\")))","v":""},0]
[911,{"$f":"IF('Enrollment Form'!$A911<>\"\",\"Y\",\"N\")","v":"N"},{"$f":"IF(AND('Enrollment Form'!$B911=\"\",'Enrollment Form'!$C911<>\"\"),\"N\",IF($B904=\"N\",\"\",\"Y\"))","v":""},{"$f":"IF(OR($B904=\"N\",'Enrollment Form'!G911=\"\"),\"\",IF('Enrollment Form'!$B911<>\"Subscriber\",\"\",IF('Enrollment Form'!$G911='Enrollment Form'!$H911,\"Y\",\"N\")))","v":""},{"$f":"IF($B904=\"N\",\"\",IF(AND(COUNTIFS('Enrollment Form'!$H$11:$H$1000,'Enrollment Form'!$H911,'Enrollment Form'!$B$11:$B$1000,'Enrollment Form'!$B911)>1,'Enrollment Form'!$H911<>\"\"),\"N\",\"Y\"))","v":""},{"$f":"IF($B904=\"N\",\"\",IF(LEN('Enrollment Form'!$Y911)=0,\"\",IF(LEN('Enrollment Form'!$Y911)<>5,\"N\",\"Y\")))","v":""},{"$f":"IF($B904=\"N\",\"\",IF(LEN('Enrollment Form'!$AD911=0),\"\",IF(LEN('Enrollment Form'!$AD911)<>5,\"N\",\"Y\")))","v":""},{"$f":"IF($B904=\"N\",\"\",IF(LEN('Enrollment Form'!$BL911=0),\"\",IF(LEN('Enrollment Form'!$BL911)<>5,\"N\",\"Y\")))","v":""},{"$f":"IF($B904=\"N\",\"\",IF(LEN('Enrollment Form'!$AE911)=0,\"\",IF(LEN('Enrollment Form'!$AE911)<>10,\"N\",\"Y\")))","v":""},{"$f":"IF($B904=\"N\",\"\",IF(LEN('Enrollment Form'!$AF911)=0,\"\",IF(LEN('Enrollment Form'!$AF911)<>10,\"N\",\"Y\")))","v":""},{"$f":"IF('Enrollment Form'!$O911<>\"Graded\",\"-\",IF(AND('Enrollment Form'!$O911=\"Graded\",'Enrollment Form'!$AO911<>\"\"),\"Y\",\"N\"))","v":"-"},{"$f":"IF($B904=\"N\",\"\",IF(OR('Enrollment Form'!$B911<>\"Subscriber\",'Enrollment Form'!$C911=\"ROC\"),\"-\",IF(AND('Enrollment Form'!$B911=\"Subscriber\",'Enrollment Form'!$C911=\"Enroll\",'Enrollment Form'!$AJ911<>\"\"),\"Y\",\"N\")))","v":""},{"$f":"IF($B904=\"N\",\"\",IF(OR('Enrollment Form'!$B911<>\"Subscriber\",'Enrollment Form'!$C911=\"ROC\"),\"-\",IF(AND('Enrollment Form'!$B911=\"Subscriber\",'Enrollment Form'!$C911=\"Enroll\",'Enrollment Form'!$AK911<>\"\"),\"Y\",\"N\")))","v":""},{"$f":"IF($B904=\"N\",\"\",IF(OR('Enrollment Form'!$B911<>\"Subscriber\",'Enrollment Form'!$C911=\"ROC\"),\"-\",IF(AND('Enrollment Form'!$B911=\"Subscriber\",'Enrollment Form'!$C911=\"Enroll\",'Enrollment Form'!$AL911<>\"\"),\"Y\",\"N\")))","v":""},{"$f":"IF($B904=\"N\",\"\",IF(OR('Enrollment Form'!$B911<>\"Subscriber\",'Enrollment Form'!$C911=\"ROC\"),\"-\",IF(AND('Enrollment Form'!$B911=\"Subscriber\",'Enrollment Form'!$C911=\"Enroll\",'Enrollment Form'!$AM911<>\"\"),\"Y\",\"N\")))","v":""},{"$f":"IF($B904=\"N\",\"\",IF(OR('Enrollment Form'!$B911<>\"Subscriber\",'Enrollment Form'!$C911=\"ROC\"),\"-\",IF(AND('Enrollment Form'!$B911=\"Subscriber\",'Enrollment Form'!$C911=\"Enroll\",'Enrollment Form'!$AN911<>\"\"),\"Y\",\"N\")))","v":""},{"$f":"IF($B904=\"N\",\"\",IF(OR('Enrollment Form'!$B911<>\"Subscriber\",'Enrollment Form'!$C911=\"ROC\"),\"-\",IF(AND('Enrollment Form'!$B911=\"Subscriber\",'Enrollment Form'!$C911=\"Enroll\",'Enrollment Form'!$AP911<>\"\"),\"Y\",\"N\")))","v":""},{"$f":"IF($B904=\"N\",\"\",IF($Q904=\"-\",\"-\",IF(AND($Q904=\"Y\",'Enrollment Form'!$AP911=\"No\"),\"-\",IF(AND($Q904=\"Y\",'Enrollment Form'!$AP911=\"Yes\",'Enrollment Form'!$AQ911<>\"\"),\"Y\",\"N\"))))","v":""},{"$f":"IF($B904=\"N\",\"\",IF(OR('Enrollment Form'!$B911<>\"Subscriber\",'Enrollment Form'!$C911=\"ROC\"),\"-\",IF(AND('Enrollment Form'!$B911=\"Subscriber\",'Enrollment Form'!$C911=\"Enroll\",'Enrollment Form'!$CO911<>\"\"),\"Y\",\"N\")))","v":""},{"$f":"IF($B904=\"N\",\"\",IF($S904=\"-\",\"-\",IF(AND($S904=\"Y\",'Enrollment Form'!$CO911=\"No\"),\"-\",IF(AND($S904=\"Y\",'Enrollment Form'!$CO911=\"Yes\",'Enrollment Form'!$CP911<>\"\"),\"Y\",\"N\"))))","v":""},{"$f":"IF(OR('Enrollment Form'!$AV911=\"Yes\",'Enrollment Form'!$AV911=\"\"),\"-\",IF(AND('Enrollment Form'!$AV911=\"No\",ISERROR(FIND(\"HMO\",VLOOKUP('Enrollment Form'!G911,'Enrollment Form'!H$11:J$1000,3,FALSE),1))=FALSE,COUNTA('Enrollment Form'!$AW911:$AZ911)=4),\"Y\",\"N\"))","v":"-"},{"$f":"IF($B904=\"N\",\"\",IF('Enrollment Form'!$B911=\"Subscriber\",\"-\",IF(COUNTA('Enrollment Form'!$BE911,'Enrollment Form'!$BG911)=2,\"Y\",\"N\")))","v":""},{"$f":"IF($B904=\"N\",\"\",IF(OR('Enrollment Form'!$AU911=\"\",'Enrollment Form'!$AU911=\"No\"),\"-\",IF(AND('Enrollment Form'!$AU911=\"Yes\",COUNTA('Enrollment Form'!$CK911)=1),\"Y\",\"N\")))","v":""},{"$f":"IF(OR('Enrollment Form'!$CK911=\"\",'Enrollment Form'!$CK911=\"No\"),\"-\",IF(COUNTA('Enrollment Form'!$CM911:$CN911)=2,\"Y\",\"N\"))","v":"-"},{"$f":"IF($B904=\"N\",\"\",IF(COUNTIF('Enrollment Form'!$CZ911:$DO911,\"Other\")=COUNTA('Enrollment Form'!$DF911,'Enrollment Form'!$DA911,'Enrollment Form'!$DK911,'Enrollment Form'!$DP911),\"Y\",\"N\"))","v":""},{"$f":"IF($B904=\"N\",\"\",IF(OR('Enrollment Form'!B911<>\"Subscriber\",'Enrollment Form'!C911=\"ROC\",COUNTIF('Enrollment Form'!AS911:AT911,\"Yes\")>=1),\"-\",IF(AND('Enrollment Form'!C911=\"Enroll\",COUNTIF('Enrollment Form'!AS911:AT911,\"No\")=2,'Enrollment Form'!AU911=\"\"),\"N\",\"Y\")))","v":""},{"$f":"IF(OR(B904=\"N\",'Enrollment Form'!B911<>\"Subscriber\",'Enrollment Form'!C911=\"ROC\",'Enrollment Form'!O911<>\"Multiple of Salary\"),\"-\",IF(COUNTA('Enrollment Form'!T911:U911)<2,\"N\",\"Y\"))","v":"-"},{"$f":"IF(B904=\"N\",\"\",IF(OR('Enrollment Form'!C911=\"ROC\",'Enrollment Form'!B911<>\"Subscriber\",'Enrollment Form'!O911=\"Waive\",'Enrollment Form'!O911=\"\"),\"-\",IF('Enrollment Form'!P911=\"\",\"N\",\"Y\")))","v":""},{"$f":"IF($B904=\"N\",\"\",IF(AND('Enrollment Form'!$C911=\"ROC\",'Enrollment Form'!$DS911<>\"\"),\"Y\",IF(AND('Enrollment Form'!$C911=\"ROC\",'Enrollment Form'!$DS911=\"\"),\"N\",IF(AND('Enrollment Form'!$C911=\"Enroll\",'Enrollment Form'!$B911=\"Subscriber\",'Enrollment Form'!$CQ911=\"No\",'Enrollment Form'!$DS911=\"\"),\"N\",IF(AND('Enrollment Form'!$C911=\"Enroll\",'Enrollment Form'!$B911=\"Subscriber\",'Enrollment Form'!$CQ911=\"Yes\"),\"-\",\"Y\")))))","v":""},{"$f":"IF($B904=\"N\",\"\",IF(AND('Enrollment Form'!$C911=\"ROC\",'Enrollment Form'!$DT911<>\"\"),\"Y\",IF(AND('Enrollment Form'!$C911=\"ROC\",'Enrollment Form'!$DT911=\"\"),\"N\",IF(AND('Enrollment Form'!$C911=\"Enroll\",'Enrollment Form'!$B911=\"Subscriber\",'Enrollment Form'!$CQ911=\"No\",'Enrollment Form'!$DT911=\"\"),\"N\",IF(AND('Enrollment Form'!$C911=\"Enroll\",'Enrollment Form'!$B911=\"Subscriber\",'Enrollment Form'!$CQ911=\"Yes\"),\"-\",\"Y\")))))","v":""},{"$f":"IF('Enrollment Form'!AH911=\"\",\"\",IF(ISERROR(SEARCH(\".\",'Enrollment Form'!AH911,SEARCH(\"@\",'Enrollment Form'!AH911))),\"N\",\"Y\"))","v":""},{"$f":"IF(OR($B904=\"N\",'Enrollment Form'!$G911=\"\"),\"\",IF('Enrollment Form'!$B911<>\"Subscriber\",\"-\",IF(COUNTIF('Enrollment Form'!$AS911:$AT911,\"Yes\")=2,\"N\",\"Y\")))","v":""},{"$f":"IF(OR('Enrollment Form'!$CC911=\"\",'Enrollment Form'!$CC911=\"No\"),\"-\",IF(AND('Enrollment Form'!$CC911=\"Yes\",'Enrollment Form'!$CD911=\"\"),\"N\",\"Y\"))","v":"-"},{"$f":"IF(OR('Enrollment Form'!$CE911=\"\",'Enrollment Form'!$CE911=\"No\"),\"-\",IF(AND('Enrollment Form'!$CE911=\"Yes\",'Enrollment Form'!$CF911=\"\"),\"N\",\"Y\"))","v":"-"},{"$f":"IF(OR('Enrollment Form'!$CG911=\"\",'Enrollment Form'!$CG911=\"No\"),\"-\",IF(AND('Enrollment Form'!$CG911=\"Yes\",'Enrollment Form'!$CH911=\"\"),\"N\",\"Y\"))","v":"-"},{"$f":"IF(OR('Enrollment Form'!$CG911=\"\",'Enrollment Form'!$CG911=\"No\"),\"-\",IF(AND('Enrollment Form'!$CG911=\"Yes\",'Enrollment Form'!$CI911=\"\"),\"N\",\"Y\"))","v":"-"},{"$f":"IF('Enrollment Form'!B911<>\"Subscriber\",\"-\",IF(AND('Enrollment Form'!B911=\"Subscriber\",'Enrollment Form'!C911=\"Enroll\",'Enrollment Form'!AA911=\"\"),\"N\",\"Y\"))","v":"-"},{"$f":"IF(OR('Enrollment Form'!B911=\"Subscriber\",'Enrollment Form'!B911=\"\"),\"-\",IF('Enrollment Form'!BI911=\"\",\"N\",\"Y\"))","v":"-"},{"$f":"IF('Enrollment Form'!B911<>\"Subscriber\",\"-\",IF(AND('Enrollment Form'!B911=\"Subscriber\",'Enrollment Form'!G911=\"\"),\"N\",\"Y\"))","v":"-"},{"$f":"IF('Enrollment Form'!A911=\"\",\"\",IF('Enrollment Form'!B911=\"Subscriber\",\"-\",IF(AND('Enrollment Form'!B911<>\"Subscriber\",'Enrollment Form'!G911='Enrollment Form'!H911),\"N\",\"Y\")))","v":""},0]
[912,{"$f":"IF('Enrollment Form'!$A912<>\"\",\"Y\",\"N\")","v":"N"},{"$f":"IF(AND('Enrollment Form'!$B912=\"\",'Enrollment Form'!$C912<>\"\"),\"N\",IF($B905=\"N\",\"\",\"Y\"))","v":""},{"$f":"IF(OR($B905=\"N\",'Enrollment Form'!G912=\"\"),\"\",IF('Enrollment Form'!$B912<>\"Subscriber\",\"\",IF('Enrollment Form'!$G912='Enrollment Form'!$H912,\"Y\",\"N\")))","v":""},{"$f":"IF($B905=\"N\",\"\",IF(AND(COUNTIFS('Enrollment Form'!$H$11:$H$1000,'Enrollment Form'!$H912,'Enrollment Form'!$B$11:$B$1000,'Enrollment Form'!$B912)>1,'Enrollment Form'!$H912<>\"\"),\"N\",\"Y\"))","v":""},{"$f":"IF($B905=\"N\",\"\",IF(LEN('Enrollment Form'!$Y912)=0,\"\",IF(LEN('Enrollment Form'!$Y912)<>5,\"N\",\"Y\")))","v":""},{"$f":"IF($B905=\"N\",\"\",IF(LEN('Enrollment Form'!$AD912=0),\"\",IF(LEN('Enrollment Form'!$AD912)<>5,\"N\",\"Y\")))","v":""},{"$f":"IF($B905=\"N\",\"\",IF(LEN('Enrollment Form'!$BL912=0),\"\",IF(LEN('Enrollment Form'!$BL912)<>5,\"N\",\"Y\")))","v":""},{"$f":"IF($B905=\"N\",\"\",IF(LEN('Enrollment Form'!$AE912)=0,\"\",IF(LEN('Enrollment Form'!$AE912)<>10,\"N\",\"Y\")))","v":""},{"$f":"IF($B905=\"N\",\"\",IF(LEN('Enrollment Form'!$AF912)=0,\"\",IF(LEN('Enrollment Form'!$AF912)<>10,\"N\",\"Y\")))","v":""},{"$f":"IF('Enrollment Form'!$O912<>\"Graded\",\"-\",IF(AND('Enrollment Form'!$O912=\"Graded\",'Enrollment Form'!$AO912<>\"\"),\"Y\",\"N\"))","v":"-"},{"$f":"IF($B905=\"N\",\"\",IF(OR('Enrollment Form'!$B912<>\"Subscriber\",'Enrollment Form'!$C912=\"ROC\"),\"-\",IF(AND('Enrollment Form'!$B912=\"Subscriber\",'Enrollment Form'!$C912=\"Enroll\",'Enrollment Form'!$AJ912<>\"\"),\"Y\",\"N\")))","v":""},{"$f":"IF($B905=\"N\",\"\",IF(OR('Enrollment Form'!$B912<>\"Subscriber\",'Enrollment Form'!$C912=\"ROC\"),\"-\",IF(AND('Enrollment Form'!$B912=\"Subscriber\",'Enrollment Form'!$C912=\"Enroll\",'Enrollment Form'!$AK912<>\"\"),\"Y\",\"N\")))","v":""},{"$f":"IF($B905=\"N\",\"\",IF(OR('Enrollment Form'!$B912<>\"Subscriber\",'Enrollment Form'!$C912=\"ROC\"),\"-\",IF(AND('Enrollment Form'!$B912=\"Subscriber\",'Enrollment Form'!$C912=\"Enroll\",'Enrollment Form'!$AL912<>\"\"),\"Y\",\"N\")))","v":""},{"$f":"IF($B905=\"N\",\"\",IF(OR('Enrollment Form'!$B912<>\"Subscriber\",'Enrollment Form'!$C912=\"ROC\"),\"-\",IF(AND('Enrollment Form'!$B912=\"Subscriber\",'Enrollment Form'!$C912=\"Enroll\",'Enrollment Form'!$AM912<>\"\"),\"Y\",\"N\")))","v":""},{"$f":"IF($B905=\"N\",\"\",IF(OR('Enrollment Form'!$B912<>\"Subscriber\",'Enrollment Form'!$C912=\"ROC\"),\"-\",IF(AND('Enrollment Form'!$B912=\"Subscriber\",'Enrollment Form'!$C912=\"Enroll\",'Enrollment Form'!$AN912<>\"\"),\"Y\",\"N\")))","v":""},{"$f":"IF($B905=\"N\",\"\",IF(OR('Enrollment Form'!$B912<>\"Subscriber\",'Enrollment Form'!$C912=\"ROC\"),\"-\",IF(AND('Enrollment Form'!$B912=\"Subscriber\",'Enrollment Form'!$C912=\"Enroll\",'Enrollment Form'!$AP912<>\"\"),\"Y\",\"N\")))","v":""},{"$f":"IF($B905=\"N\",\"\",IF($Q905=\"-\",\"-\",IF(AND($Q905=\"Y\",'Enrollment Form'!$AP912=\"No\"),\"-\",IF(AND($Q905=\"Y\",'Enrollment Form'!$AP912=\"Yes\",'Enrollment Form'!$AQ912<>\"\"),\"Y\",\"N\"))))","v":""},{"$f":"IF($B905=\"N\",\"\",IF(OR('Enrollment Form'!$B912<>\"Subscriber\",'Enrollment Form'!$C912=\"ROC\"),\"-\",IF(AND('Enrollment Form'!$B912=\"Subscriber\",'Enrollment Form'!$C912=\"Enroll\",'Enrollment Form'!$CO912<>\"\"),\"Y\",\"N\")))","v":""},{"$f":"IF($B905=\"N\",\"\",IF($S905=\"-\",\"-\",IF(AND($S905=\"Y\",'Enrollment Form'!$CO912=\"No\"),\"-\",IF(AND($S905=\"Y\",'Enrollment Form'!$CO912=\"Yes\",'Enrollment Form'!$CP912<>\"\"),\"Y\",\"N\"))))","v":""},{"$f":"IF(OR('Enrollment Form'!$AV912=\"Yes\",'Enrollment Form'!$AV912=\"\"),\"-\",IF(AND('Enrollment Form'!$AV912=\"No\",ISERROR(FIND(\"HMO\",VLOOKUP('Enrollment Form'!G912,'Enrollment Form'!H$11:J$1000,3,FALSE),1))=FALSE,COUNTA('Enrollment Form'!$AW912:$AZ912)=4),\"Y\",\"N\"))","v":"-"},{"$f":"IF($B905=\"N\",\"\",IF('Enrollment Form'!$B912=\"Subscriber\",\"-\",IF(COUNTA('Enrollment Form'!$BE912,'Enrollment Form'!$BG912)=2,\"Y\",\"N\")))","v":""},{"$f":"IF($B905=\"N\",\"\",IF(OR('Enrollment Form'!$AU912=\"\",'Enrollment Form'!$AU912=\"No\"),\"-\",IF(AND('Enrollment Form'!$AU912=\"Yes\",COUNTA('Enrollment Form'!$CK912)=1),\"Y\",\"N\")))","v":""},{"$f":"IF(OR('Enrollment Form'!$CK912=\"\",'Enrollment Form'!$CK912=\"No\"),\"-\",IF(COUNTA('Enrollment Form'!$CM912:$CN912)=2,\"Y\",\"N\"))","v":"-"},{"$f":"IF($B905=\"N\",\"\",IF(COUNTIF('Enrollment Form'!$CZ912:$DO912,\"Other\")=COUNTA('Enrollment Form'!$DF912,'Enrollment Form'!$DA912,'Enrollment Form'!$DK912,'Enrollment Form'!$DP912),\"Y\",\"N\"))","v":""},{"$f":"IF($B905=\"N\",\"\",IF(OR('Enrollment Form'!B912<>\"Subscriber\",'Enrollment Form'!C912=\"ROC\",COUNTIF('Enrollment Form'!AS912:AT912,\"Yes\")>=1),\"-\",IF(AND('Enrollment Form'!C912=\"Enroll\",COUNTIF('Enrollment Form'!AS912:AT912,\"No\")=2,'Enrollment Form'!AU912=\"\"),\"N\",\"Y\")))","v":""},{"$f":"IF(OR(B905=\"N\",'Enrollment Form'!B912<>\"Subscriber\",'Enrollment Form'!C912=\"ROC\",'Enrollment Form'!O912<>\"Multiple of Salary\"),\"-\",IF(COUNTA('Enrollment Form'!T912:U912)<2,\"N\",\"Y\"))","v":"-"},{"$f":"IF(B905=\"N\",\"\",IF(OR('Enrollment Form'!C912=\"ROC\",'Enrollment Form'!B912<>\"Subscriber\",'Enrollment Form'!O912=\"Waive\",'Enrollment Form'!O912=\"\"),\"-\",IF('Enrollment Form'!P912=\"\",\"N\",\"Y\")))","v":""},{"$f":"IF($B905=\"N\",\"\",IF(AND('Enrollment Form'!$C912=\"ROC\",'Enrollment Form'!$DS912<>\"\"),\"Y\",IF(AND('Enrollment Form'!$C912=\"ROC\",'Enrollment Form'!$DS912=\"\"),\"N\",IF(AND('Enrollment Form'!$C912=\"Enroll\",'Enrollment Form'!$B912=\"Subscriber\",'Enrollment Form'!$CQ912=\"No\",'Enrollment Form'!$DS912=\"\"),\"N\",IF(AND('Enrollment Form'!$C912=\"Enroll\",'Enrollment Form'!$B912=\"Subscriber\",'Enrollment Form'!$CQ912=\"Yes\"),\"-\",\"Y\")))))","v":""},{"$f":"IF($B905=\"N\",\"\",IF(AND('Enrollment Form'!$C912=\"ROC\",'Enrollment Form'!$DT912<>\"\"),\"Y\",IF(AND('Enrollment Form'!$C912=\"ROC\",'Enrollment Form'!$DT912=\"\"),\"N\",IF(AND('Enrollment Form'!$C912=\"Enroll\",'Enrollment Form'!$B912=\"Subscriber\",'Enrollment Form'!$CQ912=\"No\",'Enrollment Form'!$DT912=\"\"),\"N\",IF(AND('Enrollment Form'!$C912=\"Enroll\",'Enrollment Form'!$B912=\"Subscriber\",'Enrollment Form'!$CQ912=\"Yes\"),\"-\",\"Y\")))))","v":""},{"$f":"IF('Enrollment Form'!AH912=\"\",\"\",IF(ISERROR(SEARCH(\".\",'Enrollment Form'!AH912,SEARCH(\"@\",'Enrollment Form'!AH912))),\"N\",\"Y\"))","v":""},{"$f":"IF(OR($B905=\"N\",'Enrollment Form'!$G912=\"\"),\"\",IF('Enrollment Form'!$B912<>\"Subscriber\",\"-\",IF(COUNTIF('Enrollment Form'!$AS912:$AT912,\"Yes\")=2,\"N\",\"Y\")))","v":""},{"$f":"IF(OR('Enrollment Form'!$CC912=\"\",'Enrollment Form'!$CC912=\"No\"),\"-\",IF(AND('Enrollment Form'!$CC912=\"Yes\",'Enrollment Form'!$CD912=\"\"),\"N\",\"Y\"))","v":"-"},{"$f":"IF(OR('Enrollment Form'!$CE912=\"\",'Enrollment Form'!$CE912=\"No\"),\"-\",IF(AND('Enrollment Form'!$CE912=\"Yes\",'Enrollment Form'!$CF912=\"\"),\"N\",\"Y\"))","v":"-"},{"$f":"IF(OR('Enrollment Form'!$CG912=\"\",'Enrollment Form'!$CG912=\"No\"),\"-\",IF(AND('Enrollment Form'!$CG912=\"Yes\",'Enrollment Form'!$CH912=\"\"),\"N\",\"Y\"))","v":"-"},{"$f":"IF(OR('Enrollment Form'!$CG912=\"\",'Enrollment Form'!$CG912=\"No\"),\"-\",IF(AND('Enrollment Form'!$CG912=\"Yes\",'Enrollment Form'!$CI912=\"\"),\"N\",\"Y\"))","v":"-"},{"$f":"IF('Enrollment Form'!B912<>\"Subscriber\",\"-\",IF(AND('Enrollment Form'!B912=\"Subscriber\",'Enrollment Form'!C912=\"Enroll\",'Enrollment Form'!AA912=\"\"),\"N\",\"Y\"))","v":"-"},{"$f":"IF(OR('Enrollment Form'!B912=\"Subscriber\",'Enrollment Form'!B912=\"\"),\"-\",IF('Enrollment Form'!BI912=\"\",\"N\",\"Y\"))","v":"-"},{"$f":"IF('Enrollment Form'!B912<>\"Subscriber\",\"-\",IF(AND('Enrollment Form'!B912=\"Subscriber\",'Enrollment Form'!G912=\"\"),\"N\",\"Y\"))","v":"-"},{"$f":"IF('Enrollment Form'!A912=\"\",\"\",IF('Enrollment Form'!B912=\"Subscriber\",\"-\",IF(AND('Enrollment Form'!B912<>\"Subscriber\",'Enrollment Form'!G912='Enrollment Form'!H912),\"N\",\"Y\")))","v":""},0]
[913,{"$f":"IF('Enrollment Form'!$A913<>\"\",\"Y\",\"N\")","v":"N"},{"$f":"IF(AND('Enrollment Form'!$B913=\"\",'Enrollment Form'!$C913<>\"\"),\"N\",IF($B906=\"N\",\"\",\"Y\"))","v":""},{"$f":"IF(OR($B906=\"N\",'Enrollment Form'!G913=\"\"),\"\",IF('Enrollment Form'!$B913<>\"Subscriber\",\"\",IF('Enrollment Form'!$G913='Enrollment Form'!$H913,\"Y\",\"N\")))","v":""},{"$f":"IF($B906=\"N\",\"\",IF(AND(COUNTIFS('Enrollment Form'!$H$11:$H$1000,'Enrollment Form'!$H913,'Enrollment Form'!$B$11:$B$1000,'Enrollment Form'!$B913)>1,'Enrollment Form'!$H913<>\"\"),\"N\",\"Y\"))","v":""},{"$f":"IF($B906=\"N\",\"\",IF(LEN('Enrollment Form'!$Y913)=0,\"\",IF(LEN('Enrollment Form'!$Y913)<>5,\"N\",\"Y\")))","v":""},{"$f":"IF($B906=\"N\",\"\",IF(LEN('Enrollment Form'!$AD913=0),\"\",IF(LEN('Enrollment Form'!$AD913)<>5,\"N\",\"Y\")))","v":""},{"$f":"IF($B906=\"N\",\"\",IF(LEN('Enrollment Form'!$BL913=0),\"\",IF(LEN('Enrollment Form'!$BL913)<>5,\"N\",\"Y\")))","v":""},{"$f":"IF($B906=\"N\",\"\",IF(LEN('Enrollment Form'!$AE913)=0,\"\",IF(LEN('Enrollment Form'!$AE913)<>10,\"N\",\"Y\")))","v":""},{"$f":"IF($B906=\"N\",\"\",IF(LEN('Enrollment Form'!$AF913)=0,\"\",IF(LEN('Enrollment Form'!$AF913)<>10,\"N\",\"Y\")))","v":""},{"$f":"IF('Enrollment Form'!$O913<>\"Graded\",\"-\",IF(AND('Enrollment Form'!$O913=\"Graded\",'Enrollment Form'!$AO913<>\"\"),\"Y\",\"N\"))","v":"-"},{"$f":"IF($B906=\"N\",\"\",IF(OR('Enrollment Form'!$B913<>\"Subscriber\",'Enrollment Form'!$C913=\"ROC\"),\"-\",IF(AND('Enrollment Form'!$B913=\"Subscriber\",'Enrollment Form'!$C913=\"Enroll\",'Enrollment Form'!$AJ913<>\"\"),\"Y\",\"N\")))","v":""},{"$f":"IF($B906=\"N\",\"\",IF(OR('Enrollment Form'!$B913<>\"Subscriber\",'Enrollment Form'!$C913=\"ROC\"),\"-\",IF(AND('Enrollment Form'!$B913=\"Subscriber\",'Enrollment Form'!$C913=\"Enroll\",'Enrollment Form'!$AK913<>\"\"),\"Y\",\"N\")))","v":""},{"$f":"IF($B906=\"N\",\"\",IF(OR('Enrollment Form'!$B913<>\"Subscriber\",'Enrollment Form'!$C913=\"ROC\"),\"-\",IF(AND('Enrollment Form'!$B913=\"Subscriber\",'Enrollment Form'!$C913=\"Enroll\",'Enrollment Form'!$AL913<>\"\"),\"Y\",\"N\")))","v":""},{"$f":"IF($B906=\"N\",\"\",IF(OR('Enrollment Form'!$B913<>\"Subscriber\",'Enrollment Form'!$C913=\"ROC\"),\"-\",IF(AND('Enrollment Form'!$B913=\"Subscriber\",'Enrollment Form'!$C913=\"Enroll\",'Enrollment Form'!$AM913<>\"\"),\"Y\",\"N\")))","v":""},{"$f":"IF($B906=\"N\",\"\",IF(OR('Enrollment Form'!$B913<>\"Subscriber\",'Enrollment Form'!$C913=\"ROC\"),\"-\",IF(AND('Enrollment Form'!$B913=\"Subscriber\",'Enrollment Form'!$C913=\"Enroll\",'Enrollment Form'!$AN913<>\"\"),\"Y\",\"N\")))","v":""},{"$f":"IF($B906=\"N\",\"\",IF(OR('Enrollment Form'!$B913<>\"Subscriber\",'Enrollment Form'!$C913=\"ROC\"),\"-\",IF(AND('Enrollment Form'!$B913=\"Subscriber\",'Enrollment Form'!$C913=\"Enroll\",'Enrollment Form'!$AP913<>\"\"),\"Y\",\"N\")))","v":""},{"$f":"IF($B906=\"N\",\"\",IF($Q906=\"-\",\"-\",IF(AND($Q906=\"Y\",'Enrollment Form'!$AP913=\"No\"),\"-\",IF(AND($Q906=\"Y\",'Enrollment Form'!$AP913=\"Yes\",'Enrollment Form'!$AQ913<>\"\"),\"Y\",\"N\"))))","v":""},{"$f":"IF($B906=\"N\",\"\",IF(OR('Enrollment Form'!$B913<>\"Subscriber\",'Enrollment Form'!$C913=\"ROC\"),\"-\",IF(AND('Enrollment Form'!$B913=\"Subscriber\",'Enrollment Form'!$C913=\"Enroll\",'Enrollment Form'!$CO913<>\"\"),\"Y\",\"N\")))","v":""},{"$f":"IF($B906=\"N\",\"\",IF($S906=\"-\",\"-\",IF(AND($S906=\"Y\",'Enrollment Form'!$CO913=\"No\"),\"-\",IF(AND($S906=\"Y\",'Enrollment Form'!$CO913=\"Yes\",'Enrollment Form'!$CP913<>\"\"),\"Y\",\"N\"))))","v":""},{"$f":"IF(OR('Enrollment Form'!$AV913=\"Yes\",'Enrollment Form'!$AV913=\"\"),\"-\",IF(AND('Enrollment Form'!$AV913=\"No\",ISERROR(FIND(\"HMO\",VLOOKUP('Enrollment Form'!G913,'Enrollment Form'!H$11:J$1000,3,FALSE),1))=FALSE,COUNTA('Enrollment Form'!$AW913:$AZ913)=4),\"Y\",\"N\"))","v":"-"},{"$f":"IF($B906=\"N\",\"\",IF('Enrollment Form'!$B913=\"Subscriber\",\"-\",IF(COUNTA('Enrollment Form'!$BE913,'Enrollment Form'!$BG913)=2,\"Y\",\"N\")))","v":""},{"$f":"IF($B906=\"N\",\"\",IF(OR('Enrollment Form'!$AU913=\"\",'Enrollment Form'!$AU913=\"No\"),\"-\",IF(AND('Enrollment Form'!$AU913=\"Yes\",COUNTA('Enrollment Form'!$CK913)=1),\"Y\",\"N\")))","v":""},{"$f":"IF(OR('Enrollment Form'!$CK913=\"\",'Enrollment Form'!$CK913=\"No\"),\"-\",IF(COUNTA('Enrollment Form'!$CM913:$CN913)=2,\"Y\",\"N\"))","v":"-"},{"$f":"IF($B906=\"N\",\"\",IF(COUNTIF('Enrollment Form'!$CZ913:$DO913,\"Other\")=COUNTA('Enrollment Form'!$DF913,'Enrollment Form'!$DA913,'Enrollment Form'!$DK913,'Enrollment Form'!$DP913),\"Y\",\"N\"))","v":""},{"$f":"IF($B906=\"N\",\"\",IF(OR('Enrollment Form'!B913<>\"Subscriber\",'Enrollment Form'!C913=\"ROC\",COUNTIF('Enrollment Form'!AS913:AT913,\"Yes\")>=1),\"-\",IF(AND('Enrollment Form'!C913=\"Enroll\",COUNTIF('Enrollment Form'!AS913:AT913,\"No\")=2,'Enrollment Form'!AU913=\"\"),\"N\",\"Y\")))","v":""},{"$f":"IF(OR(B906=\"N\",'Enrollment Form'!B913<>\"Subscriber\",'Enrollment Form'!C913=\"ROC\",'Enrollment Form'!O913<>\"Multiple of Salary\"),\"-\",IF(COUNTA('Enrollment Form'!T913:U913)<2,\"N\",\"Y\"))","v":"-"},{"$f":"IF(B906=\"N\",\"\",IF(OR('Enrollment Form'!C913=\"ROC\",'Enrollment Form'!B913<>\"Subscriber\",'Enrollment Form'!O913=\"Waive\",'Enrollment Form'!O913=\"\"),\"-\",IF('Enrollment Form'!P913=\"\",\"N\",\"Y\")))","v":""},{"$f":"IF($B906=\"N\",\"\",IF(AND('Enrollment Form'!$C913=\"ROC\",'Enrollment Form'!$DS913<>\"\"),\"Y\",IF(AND('Enrollment Form'!$C913=\"ROC\",'Enrollment Form'!$DS913=\"\"),\"N\",IF(AND('Enrollment Form'!$C913=\"Enroll\",'Enrollment Form'!$B913=\"Subscriber\",'Enrollment Form'!$CQ913=\"No\",'Enrollment Form'!$DS913=\"\"),\"N\",IF(AND('Enrollment Form'!$C913=\"Enroll\",'Enrollment Form'!$B913=\"Subscriber\",'Enrollment Form'!$CQ913=\"Yes\"),\"-\",\"Y\")))))","v":""},{"$f":"IF($B906=\"N\",\"\",IF(AND('Enrollment Form'!$C913=\"ROC\",'Enrollment Form'!$DT913<>\"\"),\"Y\",IF(AND('Enrollment Form'!$C913=\"ROC\",'Enrollment Form'!$DT913=\"\"),\"N\",IF(AND('Enrollment Form'!$C913=\"Enroll\",'Enrollment Form'!$B913=\"Subscriber\",'Enrollment Form'!$CQ913=\"No\",'Enrollment Form'!$DT913=\"\"),\"N\",IF(AND('Enrollment Form'!$C913=\"Enroll\",'Enrollment Form'!$B913=\"Subscriber\",'Enrollment Form'!$CQ913=\"Yes\"),\"-\",\"Y\")))))","v":""},{"$f":"IF('Enrollment Form'!AH913=\"\",\"\",IF(ISERROR(SEARCH(\".\",'Enrollment Form'!AH913,SEARCH(\"@\",'Enrollment Form'!AH913))),\"N\",\"Y\"))","v":""},{"$f":"IF(OR($B906=\"N\",'Enrollment Form'!$G913=\"\"),\"\",IF('Enrollment Form'!$B913<>\"Subscriber\",\"-\",IF(COUNTIF('Enrollment Form'!$AS913:$AT913,\"Yes\")=2,\"N\",\"Y\")))","v":""},{"$f":"IF(OR('Enrollment Form'!$CC913=\"\",'Enrollment Form'!$CC913=\"No\"),\"-\",IF(AND('Enrollment Form'!$CC913=\"Yes\",'Enrollment Form'!$CD913=\"\"),\"N\",\"Y\"))","v":"-"},{"$f":"IF(OR('Enrollment Form'!$CE913=\"\",'Enrollment Form'!$CE913=\"No\"),\"-\",IF(AND('Enrollment Form'!$CE913=\"Yes\",'Enrollment Form'!$CF913=\"\"),\"N\",\"Y\"))","v":"-"},{"$f":"IF(OR('Enrollment Form'!$CG913=\"\",'Enrollment Form'!$CG913=\"No\"),\"-\",IF(AND('Enrollment Form'!$CG913=\"Yes\",'Enrollment Form'!$CH913=\"\"),\"N\",\"Y\"))","v":"-"},{"$f":"IF(OR('Enrollment Form'!$CG913=\"\",'Enrollment Form'!$CG913=\"No\"),\"-\",IF(AND('Enrollment Form'!$CG913=\"Yes\",'Enrollment Form'!$CI913=\"\"),\"N\",\"Y\"))","v":"-"},{"$f":"IF('Enrollment Form'!B913<>\"Subscriber\",\"-\",IF(AND('Enrollment Form'!B913=\"Subscriber\",'Enrollment Form'!C913=\"Enroll\",'Enrollment Form'!AA913=\"\"),\"N\",\"Y\"))","v":"-"},{"$f":"IF(OR('Enrollment Form'!B913=\"Subscriber\",'Enrollment Form'!B913=\"\"),\"-\",IF('Enrollment Form'!BI913=\"\",\"N\",\"Y\"))","v":"-"},{"$f":"IF('Enrollment Form'!B913<>\"Subscriber\",\"-\",IF(AND('Enrollment Form'!B913=\"Subscriber\",'Enrollment Form'!G913=\"\"),\"N\",\"Y\"))","v":"-"},{"$f":"IF('Enrollment Form'!A913=\"\",\"\",IF('Enrollment Form'!B913=\"Subscriber\",\"-\",IF(AND('Enrollment Form'!B913<>\"Subscriber\",'Enrollment Form'!G913='Enrollment Form'!H913),\"N\",\"Y\")))","v":""},0]
[914,{"$f":"IF('Enrollment Form'!$A914<>\"\",\"Y\",\"N\")","v":"N"},{"$f":"IF(AND('Enrollment Form'!$B914=\"\",'Enrollment Form'!$C914<>\"\"),\"N\",IF($B907=\"N\",\"\",\"Y\"))","v":""},{"$f":"IF(OR($B907=\"N\",'Enrollment Form'!G914=\"\"),\"\",IF('Enrollment Form'!$B914<>\"Subscriber\",\"\",IF('Enrollment Form'!$G914='Enrollment Form'!$H914,\"Y\",\"N\")))","v":""},{"$f":"IF($B907=\"N\",\"\",IF(AND(COUNTIFS('Enrollment Form'!$H$11:$H$1000,'Enrollment Form'!$H914,'Enrollment Form'!$B$11:$B$1000,'Enrollment Form'!$B914)>1,'Enrollment Form'!$H914<>\"\"),\"N\",\"Y\"))","v":""},{"$f":"IF($B907=\"N\",\"\",IF(LEN('Enrollment Form'!$Y914)=0,\"\",IF(LEN('Enrollment Form'!$Y914)<>5,\"N\",\"Y\")))","v":""},{"$f":"IF($B907=\"N\",\"\",IF(LEN('Enrollment Form'!$AD914=0),\"\",IF(LEN('Enrollment Form'!$AD914)<>5,\"N\",\"Y\")))","v":""},{"$f":"IF($B907=\"N\",\"\",IF(LEN('Enrollment Form'!$BL914=0),\"\",IF(LEN('Enrollment Form'!$BL914)<>5,\"N\",\"Y\")))","v":""},{"$f":"IF($B907=\"N\",\"\",IF(LEN('Enrollment Form'!$AE914)=0,\"\",IF(LEN('Enrollment Form'!$AE914)<>10,\"N\",\"Y\")))","v":""},{"$f":"IF($B907=\"N\",\"\",IF(LEN('Enrollment Form'!$AF914)=0,\"\",IF(LEN('Enrollment Form'!$AF914)<>10,\"N\",\"Y\")))","v":""},{"$f":"IF('Enrollment Form'!$O914<>\"Graded\",\"-\",IF(AND('Enrollment Form'!$O914=\"Graded\",'Enrollment Form'!$AO914<>\"\"),\"Y\",\"N\"))","v":"-"},{"$f":"IF($B907=\"N\",\"\",IF(OR('Enrollment Form'!$B914<>\"Subscriber\",'Enrollment Form'!$C914=\"ROC\"),\"-\",IF(AND('Enrollment Form'!$B914=\"Subscriber\",'Enrollment Form'!$C914=\"Enroll\",'Enrollment Form'!$AJ914<>\"\"),\"Y\",\"N\")))","v":""},{"$f":"IF($B907=\"N\",\"\",IF(OR('Enrollment Form'!$B914<>\"Subscriber\",'Enrollment Form'!$C914=\"ROC\"),\"-\",IF(AND('Enrollment Form'!$B914=\"Subscriber\",'Enrollment Form'!$C914=\"Enroll\",'Enrollment Form'!$AK914<>\"\"),\"Y\",\"N\")))","v":""},{"$f":"IF($B907=\"N\",\"\",IF(OR('Enrollment Form'!$B914<>\"Subscriber\",'Enrollment Form'!$C914=\"ROC\"),\"-\",IF(AND('Enrollment Form'!$B914=\"Subscriber\",'Enrollment Form'!$C914=\"Enroll\",'Enrollment Form'!$AL914<>\"\"),\"Y\",\"N\")))","v":""},{"$f":"IF($B907=\"N\",\"\",IF(OR('Enrollment Form'!$B914<>\"Subscriber\",'Enrollment Form'!$C914=\"ROC\"),\"-\",IF(AND('Enrollment Form'!$B914=\"Subscriber\",'Enrollment Form'!$C914=\"Enroll\",'Enrollment Form'!$AM914<>\"\"),\"Y\",\"N\")))","v":""},{"$f":"IF($B907=\"N\",\"\",IF(OR('Enrollment Form'!$B914<>\"Subscriber\",'Enrollment Form'!$C914=\"ROC\"),\"-\",IF(AND('Enrollment Form'!$B914=\"Subscriber\",'Enrollment Form'!$C914=\"Enroll\",'Enrollment Form'!$AN914<>\"\"),\"Y\",\"N\")))","v":""},{"$f":"IF($B907=\"N\",\"\",IF(OR('Enrollment Form'!$B914<>\"Subscriber\",'Enrollment Form'!$C914=\"ROC\"),\"-\",IF(AND('Enrollment Form'!$B914=\"Subscriber\",'Enrollment Form'!$C914=\"Enroll\",'Enrollment Form'!$AP914<>\"\"),\"Y\",\"N\")))","v":""},{"$f":"IF($B907=\"N\",\"\",IF($Q907=\"-\",\"-\",IF(AND($Q907=\"Y\",'Enrollment Form'!$AP914=\"No\"),\"-\",IF(AND($Q907=\"Y\",'Enrollment Form'!$AP914=\"Yes\",'Enrollment Form'!$AQ914<>\"\"),\"Y\",\"N\"))))","v":""},{"$f":"IF($B907=\"N\",\"\",IF(OR('Enrollment Form'!$B914<>\"Subscriber\",'Enrollment Form'!$C914=\"ROC\"),\"-\",IF(AND('Enrollment Form'!$B914=\"Subscriber\",'Enrollment Form'!$C914=\"Enroll\",'Enrollment Form'!$CO914<>\"\"),\"Y\",\"N\")))","v":""},{"$f":"IF($B907=\"N\",\"\",IF($S907=\"-\",\"-\",IF(AND($S907=\"Y\",'Enrollment Form'!$CO914=\"No\"),\"-\",IF(AND($S907=\"Y\",'Enrollment Form'!$CO914=\"Yes\",'Enrollment Form'!$CP914<>\"\"),\"Y\",\"N\"))))","v":""},{"$f":"IF(OR('Enrollment Form'!$AV914=\"Yes\",'Enrollment Form'!$AV914=\"\"),\"-\",IF(AND('Enrollment Form'!$AV914=\"No\",ISERROR(FIND(\"HMO\",VLOOKUP('Enrollment Form'!G914,'Enrollment Form'!H$11:J$1000,3,FALSE),1))=FALSE,COUNTA('Enrollment Form'!$AW914:$AZ914)=4),\"Y\",\"N\"))","v":"-"},{"$f":"IF($B907=\"N\",\"\",IF('Enrollment Form'!$B914=\"Subscriber\",\"-\",IF(COUNTA('Enrollment Form'!$BE914,'Enrollment Form'!$BG914)=2,\"Y\",\"N\")))","v":""},{"$f":"IF($B907=\"N\",\"\",IF(OR('Enrollment Form'!$AU914=\"\",'Enrollment Form'!$AU914=\"No\"),\"-\",IF(AND('Enrollment Form'!$AU914=\"Yes\",COUNTA('Enrollment Form'!$CK914)=1),\"Y\",\"N\")))","v":""},{"$f":"IF(OR('Enrollment Form'!$CK914=\"\",'Enrollment Form'!$CK914=\"No\"),\"-\",IF(COUNTA('Enrollment Form'!$CM914:$CN914)=2,\"Y\",\"N\"))","v":"-"},{"$f":"IF($B907=\"N\",\"\",IF(COUNTIF('Enrollment Form'!$CZ914:$DO914,\"Other\")=COUNTA('Enrollment Form'!$DF914,'Enrollment Form'!$DA914,'Enrollment Form'!$DK914,'Enrollment Form'!$DP914),\"Y\",\"N\"))","v":""},{"$f":"IF($B907=\"N\",\"\",IF(OR('Enrollment Form'!B914<>\"Subscriber\",'Enrollment Form'!C914=\"ROC\",COUNTIF('Enrollment Form'!AS914:AT914,\"Yes\")>=1),\"-\",IF(AND('Enrollment Form'!C914=\"Enroll\",COUNTIF('Enrollment Form'!AS914:AT914,\"No\")=2,'Enrollment Form'!AU914=\"\"),\"N\",\"Y\")))","v":""},{"$f":"IF(OR(B907=\"N\",'Enrollment Form'!B914<>\"Subscriber\",'Enrollment Form'!C914=\"ROC\",'Enrollment Form'!O914<>\"Multiple of Salary\"),\"-\",IF(COUNTA('Enrollment Form'!T914:U914)<2,\"N\",\"Y\"))","v":"-"},{"$f":"IF(B907=\"N\",\"\",IF(OR('Enrollment Form'!C914=\"ROC\",'Enrollment Form'!B914<>\"Subscriber\",'Enrollment Form'!O914=\"Waive\",'Enrollment Form'!O914=\"\"),\"-\",IF('Enrollment Form'!P914=\"\",\"N\",\"Y\")))","v":""},{"$f":"IF($B907=\"N\",\"\",IF(AND('Enrollment Form'!$C914=\"ROC\",'Enrollment Form'!$DS914<>\"\"),\"Y\",IF(AND('Enrollment Form'!$C914=\"ROC\",'Enrollment Form'!$DS914=\"\"),\"N\",IF(AND('Enrollment Form'!$C914=\"Enroll\",'Enrollment Form'!$B914=\"Subscriber\",'Enrollment Form'!$CQ914=\"No\",'Enrollment Form'!$DS914=\"\"),\"N\",IF(AND('Enrollment Form'!$C914=\"Enroll\",'Enrollment Form'!$B914=\"Subscriber\",'Enrollment Form'!$CQ914=\"Yes\"),\"-\",\"Y\")))))","v":""},{"$f":"IF($B907=\"N\",\"\",IF(AND('Enrollment Form'!$C914=\"ROC\",'Enrollment Form'!$DT914<>\"\"),\"Y\",IF(AND('Enrollment Form'!$C914=\"ROC\",'Enrollment Form'!$DT914=\"\"),\"N\",IF(AND('Enrollment Form'!$C914=\"Enroll\",'Enrollment Form'!$B914=\"Subscriber\",'Enrollment Form'!$CQ914=\"No\",'Enrollment Form'!$DT914=\"\"),\"N\",IF(AND('Enrollment Form'!$C914=\"Enroll\",'Enrollment Form'!$B914=\"Subscriber\",'Enrollment Form'!$CQ914=\"Yes\"),\"-\",\"Y\")))))","v":""},{"$f":"IF('Enrollment Form'!AH914=\"\",\"\",IF(ISERROR(SEARCH(\".\",'Enrollment Form'!AH914,SEARCH(\"@\",'Enrollment Form'!AH914))),\"N\",\"Y\"))","v":""},{"$f":"IF(OR($B907=\"N\",'Enrollment Form'!$G914=\"\"),\"\",IF('Enrollment Form'!$B914<>\"Subscriber\",\"-\",IF(COUNTIF('Enrollment Form'!$AS914:$AT914,\"Yes\")=2,\"N\",\"Y\")))","v":""},{"$f":"IF(OR('Enrollment Form'!$CC914=\"\",'Enrollment Form'!$CC914=\"No\"),\"-\",IF(AND('Enrollment Form'!$CC914=\"Yes\",'Enrollment Form'!$CD914=\"\"),\"N\",\"Y\"))","v":"-"},{"$f":"IF(OR('Enrollment Form'!$CE914=\"\",'Enrollment Form'!$CE914=\"No\"),\"-\",IF(AND('Enrollment Form'!$CE914=\"Yes\",'Enrollment Form'!$CF914=\"\"),\"N\",\"Y\"))","v":"-"},{"$f":"IF(OR('Enrollment Form'!$CG914=\"\",'Enrollment Form'!$CG914=\"No\"),\"-\",IF(AND('Enrollment Form'!$CG914=\"Yes\",'Enrollment Form'!$CH914=\"\"),\"N\",\"Y\"))","v":"-"},{"$f":"IF(OR('Enrollment Form'!$CG914=\"\",'Enrollment Form'!$CG914=\"No\"),\"-\",IF(AND('Enrollment Form'!$CG914=\"Yes\",'Enrollment Form'!$CI914=\"\"),\"N\",\"Y\"))","v":"-"},{"$f":"IF('Enrollment Form'!B914<>\"Subscriber\",\"-\",IF(AND('Enrollment Form'!B914=\"Subscriber\",'Enrollment Form'!C914=\"Enroll\",'Enrollment Form'!AA914=\"\"),\"N\",\"Y\"))","v":"-"},{"$f":"IF(OR('Enrollment Form'!B914=\"Subscriber\",'Enrollment Form'!B914=\"\"),\"-\",IF('Enrollment Form'!BI914=\"\",\"N\",\"Y\"))","v":"-"},{"$f":"IF('Enrollment Form'!B914<>\"Subscriber\",\"-\",IF(AND('Enrollment Form'!B914=\"Subscriber\",'Enrollment Form'!G914=\"\"),\"N\",\"Y\"))","v":"-"},{"$f":"IF('Enrollment Form'!A914=\"\",\"\",IF('Enrollment Form'!B914=\"Subscriber\",\"-\",IF(AND('Enrollment Form'!B914<>\"Subscriber\",'Enrollment Form'!G914='Enrollment Form'!H914),\"N\",\"Y\")))","v":""},0]
[915,{"$f":"IF('Enrollment Form'!$A915<>\"\",\"Y\",\"N\")","v":"N"},{"$f":"IF(AND('Enrollment Form'!$B915=\"\",'Enrollment Form'!$C915<>\"\"),\"N\",IF($B908=\"N\",\"\",\"Y\"))","v":""},{"$f":"IF(OR($B908=\"N\",'Enrollment Form'!G915=\"\"),\"\",IF('Enrollment Form'!$B915<>\"Subscriber\",\"\",IF('Enrollment Form'!$G915='Enrollment Form'!$H915,\"Y\",\"N\")))","v":""},{"$f":"IF($B908=\"N\",\"\",IF(AND(COUNTIFS('Enrollment Form'!$H$11:$H$1000,'Enrollment Form'!$H915,'Enrollment Form'!$B$11:$B$1000,'Enrollment Form'!$B915)>1,'Enrollment Form'!$H915<>\"\"),\"N\",\"Y\"))","v":""},{"$f":"IF($B908=\"N\",\"\",IF(LEN('Enrollment Form'!$Y915)=0,\"\",IF(LEN('Enrollment Form'!$Y915)<>5,\"N\",\"Y\")))","v":""},{"$f":"IF($B908=\"N\",\"\",IF(LEN('Enrollment Form'!$AD915=0),\"\",IF(LEN('Enrollment Form'!$AD915)<>5,\"N\",\"Y\")))","v":""},{"$f":"IF($B908=\"N\",\"\",IF(LEN('Enrollment Form'!$BL915=0),\"\",IF(LEN('Enrollment Form'!$BL915)<>5,\"N\",\"Y\")))","v":""},{"$f":"IF($B908=\"N\",\"\",IF(LEN('Enrollment Form'!$AE915)=0,\"\",IF(LEN('Enrollment Form'!$AE915)<>10,\"N\",\"Y\")))","v":""},{"$f":"IF($B908=\"N\",\"\",IF(LEN('Enrollment Form'!$AF915)=0,\"\",IF(LEN('Enrollment Form'!$AF915)<>10,\"N\",\"Y\")))","v":""},{"$f":"IF('Enrollment Form'!$O915<>\"Graded\",\"-\",IF(AND('Enrollment Form'!$O915=\"Graded\",'Enrollment Form'!$AO915<>\"\"),\"Y\",\"N\"))","v":"-"},{"$f":"IF($B908=\"N\",\"\",IF(OR('Enrollment Form'!$B915<>\"Subscriber\",'Enrollment Form'!$C915=\"ROC\"),\"-\",IF(AND('Enrollment Form'!$B915=\"Subscriber\",'Enrollment Form'!$C915=\"Enroll\",'Enrollment Form'!$AJ915<>\"\"),\"Y\",\"N\")))","v":""},{"$f":"IF($B908=\"N\",\"\",IF(OR('Enrollment Form'!$B915<>\"Subscriber\",'Enrollment Form'!$C915=\"ROC\"),\"-\",IF(AND('Enrollment Form'!$B915=\"Subscriber\",'Enrollment Form'!$C915=\"Enroll\",'Enrollment Form'!$AK915<>\"\"),\"Y\",\"N\")))","v":""},{"$f":"IF($B908=\"N\",\"\",IF(OR('Enrollment Form'!$B915<>\"Subscriber\",'Enrollment Form'!$C915=\"ROC\"),\"-\",IF(AND('Enrollment Form'!$B915=\"Subscriber\",'Enrollment Form'!$C915=\"Enroll\",'Enrollment Form'!$AL915<>\"\"),\"Y\",\"N\")))","v":""},{"$f":"IF($B908=\"N\",\"\",IF(OR('Enrollment Form'!$B915<>\"Subscriber\",'Enrollment Form'!$C915=\"ROC\"),\"-\",IF(AND('Enrollment Form'!$B915=\"Subscriber\",'Enrollment Form'!$C915=\"Enroll\",'Enrollment Form'!$AM915<>\"\"),\"Y\",\"N\")))","v":""},{"$f":"IF($B908=\"N\",\"\",IF(OR('Enrollment Form'!$B915<>\"Subscriber\",'Enrollment Form'!$C915=\"ROC\"),\"-\",IF(AND('Enrollment Form'!$B915=\"Subscriber\",'Enrollment Form'!$C915=\"Enroll\",'Enrollment Form'!$AN915<>\"\"),\"Y\",\"N\")))","v":""},{"$f":"IF($B908=\"N\",\"\",IF(OR('Enrollment Form'!$B915<>\"Subscriber\",'Enrollment Form'!$C915=\"ROC\"),\"-\",IF(AND('Enrollment Form'!$B915=\"Subscriber\",'Enrollment Form'!$C915=\"Enroll\",'Enrollment Form'!$AP915<>\"\"),\"Y\",\"N\")))","v":""},{"$f":"IF($B908=\"N\",\"\",IF($Q908=\"-\",\"-\",IF(AND($Q908=\"Y\",'Enrollment Form'!$AP915=\"No\"),\"-\",IF(AND($Q908=\"Y\",'Enrollment Form'!$AP915=\"Yes\",'Enrollment Form'!$AQ915<>\"\"),\"Y\",\"N\"))))","v":""},{"$f":"IF($B908=\"N\",\"\",IF(OR('Enrollment Form'!$B915<>\"Subscriber\",'Enrollment Form'!$C915=\"ROC\"),\"-\",IF(AND('Enrollment Form'!$B915=\"Subscriber\",'Enrollment Form'!$C915=\"Enroll\",'Enrollment Form'!$CO915<>\"\"),\"Y\",\"N\")))","v":""},{"$f":"IF($B908=\"N\",\"\",IF($S908=\"-\",\"-\",IF(AND($S908=\"Y\",'Enrollment Form'!$CO915=\"No\"),\"-\",IF(AND($S908=\"Y\",'Enrollment Form'!$CO915=\"Yes\",'Enrollment Form'!$CP915<>\"\"),\"Y\",\"N\"))))","v":""},{"$f":"IF(OR('Enrollment Form'!$AV915=\"Yes\",'Enrollment Form'!$AV915=\"\"),\"-\",IF(AND('Enrollment Form'!$AV915=\"No\",ISERROR(FIND(\"HMO\",VLOOKUP('Enrollment Form'!G915,'Enrollment Form'!H$11:J$1000,3,FALSE),1))=FALSE,COUNTA('Enrollment Form'!$AW915:$AZ915)=4),\"Y\",\"N\"))","v":"-"},{"$f":"IF($B908=\"N\",\"\",IF('Enrollment Form'!$B915=\"Subscriber\",\"-\",IF(COUNTA('Enrollment Form'!$BE915,'Enrollment Form'!$BG915)=2,\"Y\",\"N\")))","v":""},{"$f":"IF($B908=\"N\",\"\",IF(OR('Enrollment Form'!$AU915=\"\",'Enrollment Form'!$AU915=\"No\"),\"-\",IF(AND('Enrollment Form'!$AU915=\"Yes\",COUNTA('Enrollment Form'!$CK915)=1),\"Y\",\"N\")))","v":""},{"$f":"IF(OR('Enrollment Form'!$CK915=\"\",'Enrollment Form'!$CK915=\"No\"),\"-\",IF(COUNTA('Enrollment Form'!$CM915:$CN915)=2,\"Y\",\"N\"))","v":"-"},{"$f":"IF($B908=\"N\",\"\",IF(COUNTIF('Enrollment Form'!$CZ915:$DO915,\"Other\")=COUNTA('Enrollment Form'!$DF915,'Enrollment Form'!$DA915,'Enrollment Form'!$DK915,'Enrollment Form'!$DP915),\"Y\",\"N\"))","v":""},{"$f":"IF($B908=\"N\",\"\",IF(OR('Enrollment Form'!B915<>\"Subscriber\",'Enrollment Form'!C915=\"ROC\",COUNTIF('Enrollment Form'!AS915:AT915,\"Yes\")>=1),\"-\",IF(AND('Enrollment Form'!C915=\"Enroll\",COUNTIF('Enrollment Form'!AS915:AT915,\"No\")=2,'Enrollment Form'!AU915=\"\"),\"N\",\"Y\")))","v":""},{"$f":"IF(OR(B908=\"N\",'Enrollment Form'!B915<>\"Subscriber\",'Enrollment Form'!C915=\"ROC\",'Enrollment Form'!O915<>\"Multiple of Salary\"),\"-\",IF(COUNTA('Enrollment Form'!T915:U915)<2,\"N\",\"Y\"))","v":"-"},{"$f":"IF(B908=\"N\",\"\",IF(OR('Enrollment Form'!C915=\"ROC\",'Enrollment Form'!B915<>\"Subscriber\",'Enrollment Form'!O915=\"Waive\",'Enrollment Form'!O915=\"\"),\"-\",IF('Enrollment Form'!P915=\"\",\"N\",\"Y\")))","v":""},{"$f":"IF($B908=\"N\",\"\",IF(AND('Enrollment Form'!$C915=\"ROC\",'Enrollment Form'!$DS915<>\"\"),\"Y\",IF(AND('Enrollment Form'!$C915=\"ROC\",'Enrollment Form'!$DS915=\"\"),\"N\",IF(AND('Enrollment Form'!$C915=\"Enroll\",'Enrollment Form'!$B915=\"Subscriber\",'Enrollment Form'!$CQ915=\"No\",'Enrollment Form'!$DS915=\"\"),\"N\",IF(AND('Enrollment Form'!$C915=\"Enroll\",'Enrollment Form'!$B915=\"Subscriber\",'Enrollment Form'!$CQ915=\"Yes\"),\"-\",\"Y\")))))","v":""},{"$f":"IF($B908=\"N\",\"\",IF(AND('Enrollment Form'!$C915=\"ROC\",'Enrollment Form'!$DT915<>\"\"),\"Y\",IF(AND('Enrollment Form'!$C915=\"ROC\",'Enrollment Form'!$DT915=\"\"),\"N\",IF(AND('Enrollment Form'!$C915=\"Enroll\",'Enrollment Form'!$B915=\"Subscriber\",'Enrollment Form'!$CQ915=\"No\",'Enrollment Form'!$DT915=\"\"),\"N\",IF(AND('Enrollment Form'!$C915=\"Enroll\",'Enrollment Form'!$B915=\"Subscriber\",'Enrollment Form'!$CQ915=\"Yes\"),\"-\",\"Y\")))))","v":""},{"$f":"IF('Enrollment Form'!AH915=\"\",\"\",IF(ISERROR(SEARCH(\".\",'Enrollment Form'!AH915,SEARCH(\"@\",'Enrollment Form'!AH915))),\"N\",\"Y\"))","v":""},{"$f":"IF(OR($B908=\"N\",'Enrollment Form'!$G915=\"\"),\"\",IF('Enrollment Form'!$B915<>\"Subscriber\",\"-\",IF(COUNTIF('Enrollment Form'!$AS915:$AT915,\"Yes\")=2,\"N\",\"Y\")))","v":""},{"$f":"IF(OR('Enrollment Form'!$CC915=\"\",'Enrollment Form'!$CC915=\"No\"),\"-\",IF(AND('Enrollment Form'!$CC915=\"Yes\",'Enrollment Form'!$CD915=\"\"),\"N\",\"Y\"))","v":"-"},{"$f":"IF(OR('Enrollment Form'!$CE915=\"\",'Enrollment Form'!$CE915=\"No\"),\"-\",IF(AND('Enrollment Form'!$CE915=\"Yes\",'Enrollment Form'!$CF915=\"\"),\"N\",\"Y\"))","v":"-"},{"$f":"IF(OR('Enrollment Form'!$CG915=\"\",'Enrollment Form'!$CG915=\"No\"),\"-\",IF(AND('Enrollment Form'!$CG915=\"Yes\",'Enrollment Form'!$CH915=\"\"),\"N\",\"Y\"))","v":"-"},{"$f":"IF(OR('Enrollment Form'!$CG915=\"\",'Enrollment Form'!$CG915=\"No\"),\"-\",IF(AND('Enrollment Form'!$CG915=\"Yes\",'Enrollment Form'!$CI915=\"\"),\"N\",\"Y\"))","v":"-"},{"$f":"IF('Enrollment Form'!B915<>\"Subscriber\",\"-\",IF(AND('Enrollment Form'!B915=\"Subscriber\",'Enrollment Form'!C915=\"Enroll\",'Enrollment Form'!AA915=\"\"),\"N\",\"Y\"))","v":"-"},{"$f":"IF(OR('Enrollment Form'!B915=\"Subscriber\",'Enrollment Form'!B915=\"\"),\"-\",IF('Enrollment Form'!BI915=\"\",\"N\",\"Y\"))","v":"-"},{"$f":"IF('Enrollment Form'!B915<>\"Subscriber\",\"-\",IF(AND('Enrollment Form'!B915=\"Subscriber\",'Enrollment Form'!G915=\"\"),\"N\",\"Y\"))","v":"-"},{"$f":"IF('Enrollment Form'!A915=\"\",\"\",IF('Enrollment Form'!B915=\"Subscriber\",\"-\",IF(AND('Enrollment Form'!B915<>\"Subscriber\",'Enrollment Form'!G915='Enrollment Form'!H915),\"N\",\"Y\")))","v":""},0]
[916,{"$f":"IF('Enrollment Form'!$A916<>\"\",\"Y\",\"N\")","v":"N"},{"$f":"IF(AND('Enrollment Form'!$B916=\"\",'Enrollment Form'!$C916<>\"\"),\"N\",IF($B909=\"N\",\"\",\"Y\"))","v":""},{"$f":"IF(OR($B909=\"N\",'Enrollment Form'!G916=\"\"),\"\",IF('Enrollment Form'!$B916<>\"Subscriber\",\"\",IF('Enrollment Form'!$G916='Enrollment Form'!$H916,\"Y\",\"N\")))","v":""},{"$f":"IF($B909=\"N\",\"\",IF(AND(COUNTIFS('Enrollment Form'!$H$11:$H$1000,'Enrollment Form'!$H916,'Enrollment Form'!$B$11:$B$1000,'Enrollment Form'!$B916)>1,'Enrollment Form'!$H916<>\"\"),\"N\",\"Y\"))","v":""},{"$f":"IF($B909=\"N\",\"\",IF(LEN('Enrollment Form'!$Y916)=0,\"\",IF(LEN('Enrollment Form'!$Y916)<>5,\"N\",\"Y\")))","v":""},{"$f":"IF($B909=\"N\",\"\",IF(LEN('Enrollment Form'!$AD916=0),\"\",IF(LEN('Enrollment Form'!$AD916)<>5,\"N\",\"Y\")))","v":""},{"$f":"IF($B909=\"N\",\"\",IF(LEN('Enrollment Form'!$BL916=0),\"\",IF(LEN('Enrollment Form'!$BL916)<>5,\"N\",\"Y\")))","v":""},{"$f":"IF($B909=\"N\",\"\",IF(LEN('Enrollment Form'!$AE916)=0,\"\",IF(LEN('Enrollment Form'!$AE916)<>10,\"N\",\"Y\")))","v":""},{"$f":"IF($B909=\"N\",\"\",IF(LEN('Enrollment Form'!$AF916)=0,\"\",IF(LEN('Enrollment Form'!$AF916)<>10,\"N\",\"Y\")))","v":""},{"$f":"IF('Enrollment Form'!$O916<>\"Graded\",\"-\",IF(AND('Enrollment Form'!$O916=\"Graded\",'Enrollment Form'!$AO916<>\"\"),\"Y\",\"N\"))","v":"-"},{"$f":"IF($B909=\"N\",\"\",IF(OR('Enrollment Form'!$B916<>\"Subscriber\",'Enrollment Form'!$C916=\"ROC\"),\"-\",IF(AND('Enrollment Form'!$B916=\"Subscriber\",'Enrollment Form'!$C916=\"Enroll\",'Enrollment Form'!$AJ916<>\"\"),\"Y\",\"N\")))","v":""},{"$f":"IF($B909=\"N\",\"\",IF(OR('Enrollment Form'!$B916<>\"Subscriber\",'Enrollment Form'!$C916=\"ROC\"),\"-\",IF(AND('Enrollment Form'!$B916=\"Subscriber\",'Enrollment Form'!$C916=\"Enroll\",'Enrollment Form'!$AK916<>\"\"),\"Y\",\"N\")))","v":""},{"$f":"IF($B909=\"N\",\"\",IF(OR('Enrollment Form'!$B916<>\"Subscriber\",'Enrollment Form'!$C916=\"ROC\"),\"-\",IF(AND('Enrollment Form'!$B916=\"Subscriber\",'Enrollment Form'!$C916=\"Enroll\",'Enrollment Form'!$AL916<>\"\"),\"Y\",\"N\")))","v":""},{"$f":"IF($B909=\"N\",\"\",IF(OR('Enrollment Form'!$B916<>\"Subscriber\",'Enrollment Form'!$C916=\"ROC\"),\"-\",IF(AND('Enrollment Form'!$B916=\"Subscriber\",'Enrollment Form'!$C916=\"Enroll\",'Enrollment Form'!$AM916<>\"\"),\"Y\",\"N\")))","v":""},{"$f":"IF($B909=\"N\",\"\",IF(OR('Enrollment Form'!$B916<>\"Subscriber\",'Enrollment Form'!$C916=\"ROC\"),\"-\",IF(AND('Enrollment Form'!$B916=\"Subscriber\",'Enrollment Form'!$C916=\"Enroll\",'Enrollment Form'!$AN916<>\"\"),\"Y\",\"N\")))","v":""},{"$f":"IF($B909=\"N\",\"\",IF(OR('Enrollment Form'!$B916<>\"Subscriber\",'Enrollment Form'!$C916=\"ROC\"),\"-\",IF(AND('Enrollment Form'!$B916=\"Subscriber\",'Enrollment Form'!$C916=\"Enroll\",'Enrollment Form'!$AP916<>\"\"),\"Y\",\"N\")))","v":""},{"$f":"IF($B909=\"N\",\"\",IF($Q909=\"-\",\"-\",IF(AND($Q909=\"Y\",'Enrollment Form'!$AP916=\"No\"),\"-\",IF(AND($Q909=\"Y\",'Enrollment Form'!$AP916=\"Yes\",'Enrollment Form'!$AQ916<>\"\"),\"Y\",\"N\"))))","v":""},{"$f":"IF($B909=\"N\",\"\",IF(OR('Enrollment Form'!$B916<>\"Subscriber\",'Enrollment Form'!$C916=\"ROC\"),\"-\",IF(AND('Enrollment Form'!$B916=\"Subscriber\",'Enrollment Form'!$C916=\"Enroll\",'Enrollment Form'!$CO916<>\"\"),\"Y\",\"N\")))","v":""},{"$f":"IF($B909=\"N\",\"\",IF($S909=\"-\",\"-\",IF(AND($S909=\"Y\",'Enrollment Form'!$CO916=\"No\"),\"-\",IF(AND($S909=\"Y\",'Enrollment Form'!$CO916=\"Yes\",'Enrollment Form'!$CP916<>\"\"),\"Y\",\"N\"))))","v":""},{"$f":"IF(OR('Enrollment Form'!$AV916=\"Yes\",'Enrollment Form'!$AV916=\"\"),\"-\",IF(AND('Enrollment Form'!$AV916=\"No\",ISERROR(FIND(\"HMO\",VLOOKUP('Enrollment Form'!G916,'Enrollment Form'!H$11:J$1000,3,FALSE),1))=FALSE,COUNTA('Enrollment Form'!$AW916:$AZ916)=4),\"Y\",\"N\"))","v":"-"},{"$f":"IF($B909=\"N\",\"\",IF('Enrollment Form'!$B916=\"Subscriber\",\"-\",IF(COUNTA('Enrollment Form'!$BE916,'Enrollment Form'!$BG916)=2,\"Y\",\"N\")))","v":""},{"$f":"IF($B909=\"N\",\"\",IF(OR('Enrollment Form'!$AU916=\"\",'Enrollment Form'!$AU916=\"No\"),\"-\",IF(AND('Enrollment Form'!$AU916=\"Yes\",COUNTA('Enrollment Form'!$CK916)=1),\"Y\",\"N\")))","v":""},{"$f":"IF(OR('Enrollment Form'!$CK916=\"\",'Enrollment Form'!$CK916=\"No\"),\"-\",IF(COUNTA('Enrollment Form'!$CM916:$CN916)=2,\"Y\",\"N\"))","v":"-"},{"$f":"IF($B909=\"N\",\"\",IF(COUNTIF('Enrollment Form'!$CZ916:$DO916,\"Other\")=COUNTA('Enrollment Form'!$DF916,'Enrollment Form'!$DA916,'Enrollment Form'!$DK916,'Enrollment Form'!$DP916),\"Y\",\"N\"))","v":""},{"$f":"IF($B909=\"N\",\"\",IF(OR('Enrollment Form'!B916<>\"Subscriber\",'Enrollment Form'!C916=\"ROC\",COUNTIF('Enrollment Form'!AS916:AT916,\"Yes\")>=1),\"-\",IF(AND('Enrollment Form'!C916=\"Enroll\",COUNTIF('Enrollment Form'!AS916:AT916,\"No\")=2,'Enrollment Form'!AU916=\"\"),\"N\",\"Y\")))","v":""},{"$f":"IF(OR(B909=\"N\",'Enrollment Form'!B916<>\"Subscriber\",'Enrollment Form'!C916=\"ROC\",'Enrollment Form'!O916<>\"Multiple of Salary\"),\"-\",IF(COUNTA('Enrollment Form'!T916:U916)<2,\"N\",\"Y\"))","v":"-"},{"$f":"IF(B909=\"N\",\"\",IF(OR('Enrollment Form'!C916=\"ROC\",'Enrollment Form'!B916<>\"Subscriber\",'Enrollment Form'!O916=\"Waive\",'Enrollment Form'!O916=\"\"),\"-\",IF('Enrollment Form'!P916=\"\",\"N\",\"Y\")))","v":""},{"$f":"IF($B909=\"N\",\"\",IF(AND('Enrollment Form'!$C916=\"ROC\",'Enrollment Form'!$DS916<>\"\"),\"Y\",IF(AND('Enrollment Form'!$C916=\"ROC\",'Enrollment Form'!$DS916=\"\"),\"N\",IF(AND('Enrollment Form'!$C916=\"Enroll\",'Enrollment Form'!$B916=\"Subscriber\",'Enrollment Form'!$CQ916=\"No\",'Enrollment Form'!$DS916=\"\"),\"N\",IF(AND('Enrollment Form'!$C916=\"Enroll\",'Enrollment Form'!$B916=\"Subscriber\",'Enrollment Form'!$CQ916=\"Yes\"),\"-\",\"Y\")))))","v":""},{"$f":"IF($B909=\"N\",\"\",IF(AND('Enrollment Form'!$C916=\"ROC\",'Enrollment Form'!$DT916<>\"\"),\"Y\",IF(AND('Enrollment Form'!$C916=\"ROC\",'Enrollment Form'!$DT916=\"\"),\"N\",IF(AND('Enrollment Form'!$C916=\"Enroll\",'Enrollment Form'!$B916=\"Subscriber\",'Enrollment Form'!$CQ916=\"No\",'Enrollment Form'!$DT916=\"\"),\"N\",IF(AND('Enrollment Form'!$C916=\"Enroll\",'Enrollment Form'!$B916=\"Subscriber\",'Enrollment Form'!$CQ916=\"Yes\"),\"-\",\"Y\")))))","v":""},{"$f":"IF('Enrollment Form'!AH916=\"\",\"\",IF(ISERROR(SEARCH(\".\",'Enrollment Form'!AH916,SEARCH(\"@\",'Enrollment Form'!AH916))),\"N\",\"Y\"))","v":""},{"$f":"IF(OR($B909=\"N\",'Enrollment Form'!$G916=\"\"),\"\",IF('Enrollment Form'!$B916<>\"Subscriber\",\"-\",IF(COUNTIF('Enrollment Form'!$AS916:$AT916,\"Yes\")=2,\"N\",\"Y\")))","v":""},{"$f":"IF(OR('Enrollment Form'!$CC916=\"\",'Enrollment Form'!$CC916=\"No\"),\"-\",IF(AND('Enrollment Form'!$CC916=\"Yes\",'Enrollment Form'!$CD916=\"\"),\"N\",\"Y\"))","v":"-"},{"$f":"IF(OR('Enrollment Form'!$CE916=\"\",'Enrollment Form'!$CE916=\"No\"),\"-\",IF(AND('Enrollment Form'!$CE916=\"Yes\",'Enrollment Form'!$CF916=\"\"),\"N\",\"Y\"))","v":"-"},{"$f":"IF(OR('Enrollment Form'!$CG916=\"\",'Enrollment Form'!$CG916=\"No\"),\"-\",IF(AND('Enrollment Form'!$CG916=\"Yes\",'Enrollment Form'!$CH916=\"\"),\"N\",\"Y\"))","v":"-"},{"$f":"IF(OR('Enrollment Form'!$CG916=\"\",'Enrollment Form'!$CG916=\"No\"),\"-\",IF(AND('Enrollment Form'!$CG916=\"Yes\",'Enrollment Form'!$CI916=\"\"),\"N\",\"Y\"))","v":"-"},{"$f":"IF('Enrollment Form'!B916<>\"Subscriber\",\"-\",IF(AND('Enrollment Form'!B916=\"Subscriber\",'Enrollment Form'!C916=\"Enroll\",'Enrollment Form'!AA916=\"\"),\"N\",\"Y\"))","v":"-"},{"$f":"IF(OR('Enrollment Form'!B916=\"Subscriber\",'Enrollment Form'!B916=\"\"),\"-\",IF('Enrollment Form'!BI916=\"\",\"N\",\"Y\"))","v":"-"},{"$f":"IF('Enrollment Form'!B916<>\"Subscriber\",\"-\",IF(AND('Enrollment Form'!B916=\"Subscriber\",'Enrollment Form'!G916=\"\"),\"N\",\"Y\"))","v":"-"},{"$f":"IF('Enrollment Form'!A916=\"\",\"\",IF('Enrollment Form'!B916=\"Subscriber\",\"-\",IF(AND('Enrollment Form'!B916<>\"Subscriber\",'Enrollment Form'!G916='Enrollment Form'!H916),\"N\",\"Y\")))","v":""},0]
[917,{"$f":"IF('Enrollment Form'!$A917<>\"\",\"Y\",\"N\")","v":"N"},{"$f":"IF(AND('Enrollment Form'!$B917=\"\",'Enrollment Form'!$C917<>\"\"),\"N\",IF($B910=\"N\",\"\",\"Y\"))","v":""},{"$f":"IF(OR($B910=\"N\",'Enrollment Form'!G917=\"\"),\"\",IF('Enrollment Form'!$B917<>\"Subscriber\",\"\",IF('Enrollment Form'!$G917='Enrollment Form'!$H917,\"Y\",\"N\")))","v":""},{"$f":"IF($B910=\"N\",\"\",IF(AND(COUNTIFS('Enrollment Form'!$H$11:$H$1000,'Enrollment Form'!$H917,'Enrollment Form'!$B$11:$B$1000,'Enrollment Form'!$B917)>1,'Enrollment Form'!$H917<>\"\"),\"N\",\"Y\"))","v":""},{"$f":"IF($B910=\"N\",\"\",IF(LEN('Enrollment Form'!$Y917)=0,\"\",IF(LEN('Enrollment Form'!$Y917)<>5,\"N\",\"Y\")))","v":""},{"$f":"IF($B910=\"N\",\"\",IF(LEN('Enrollment Form'!$AD917=0),\"\",IF(LEN('Enrollment Form'!$AD917)<>5,\"N\",\"Y\")))","v":""},{"$f":"IF($B910=\"N\",\"\",IF(LEN('Enrollment Form'!$BL917=0),\"\",IF(LEN('Enrollment Form'!$BL917)<>5,\"N\",\"Y\")))","v":""},{"$f":"IF($B910=\"N\",\"\",IF(LEN('Enrollment Form'!$AE917)=0,\"\",IF(LEN('Enrollment Form'!$AE917)<>10,\"N\",\"Y\")))","v":""},{"$f":"IF($B910=\"N\",\"\",IF(LEN('Enrollment Form'!$AF917)=0,\"\",IF(LEN('Enrollment Form'!$AF917)<>10,\"N\",\"Y\")))","v":""},{"$f":"IF('Enrollment Form'!$O917<>\"Graded\",\"-\",IF(AND('Enrollment Form'!$O917=\"Graded\",'Enrollment Form'!$AO917<>\"\"),\"Y\",\"N\"))","v":"-"},{"$f":"IF($B910=\"N\",\"\",IF(OR('Enrollment Form'!$B917<>\"Subscriber\",'Enrollment Form'!$C917=\"ROC\"),\"-\",IF(AND('Enrollment Form'!$B917=\"Subscriber\",'Enrollment Form'!$C917=\"Enroll\",'Enrollment Form'!$AJ917<>\"\"),\"Y\",\"N\")))","v":""},{"$f":"IF($B910=\"N\",\"\",IF(OR('Enrollment Form'!$B917<>\"Subscriber\",'Enrollment Form'!$C917=\"ROC\"),\"-\",IF(AND('Enrollment Form'!$B917=\"Subscriber\",'Enrollment Form'!$C917=\"Enroll\",'Enrollment Form'!$AK917<>\"\"),\"Y\",\"N\")))","v":""},{"$f":"IF($B910=\"N\",\"\",IF(OR('Enrollment Form'!$B917<>\"Subscriber\",'Enrollment Form'!$C917=\"ROC\"),\"-\",IF(AND('Enrollment Form'!$B917=\"Subscriber\",'Enrollment Form'!$C917=\"Enroll\",'Enrollment Form'!$AL917<>\"\"),\"Y\",\"N\")))","v":""},{"$f":"IF($B910=\"N\",\"\",IF(OR('Enrollment Form'!$B917<>\"Subscriber\",'Enrollment Form'!$C917=\"ROC\"),\"-\",IF(AND('Enrollment Form'!$B917=\"Subscriber\",'Enrollment Form'!$C917=\"Enroll\",'Enrollment Form'!$AM917<>\"\"),\"Y\",\"N\")))","v":""},{"$f":"IF($B910=\"N\",\"\",IF(OR('Enrollment Form'!$B917<>\"Subscriber\",'Enrollment Form'!$C917=\"ROC\"),\"-\",IF(AND('Enrollment Form'!$B917=\"Subscriber\",'Enrollment Form'!$C917=\"Enroll\",'Enrollment Form'!$AN917<>\"\"),\"Y\",\"N\")))","v":""},{"$f":"IF($B910=\"N\",\"\",IF(OR('Enrollment Form'!$B917<>\"Subscriber\",'Enrollment Form'!$C917=\"ROC\"),\"-\",IF(AND('Enrollment Form'!$B917=\"Subscriber\",'Enrollment Form'!$C917=\"Enroll\",'Enrollment Form'!$AP917<>\"\"),\"Y\",\"N\")))","v":""},{"$f":"IF($B910=\"N\",\"\",IF($Q910=\"-\",\"-\",IF(AND($Q910=\"Y\",'Enrollment Form'!$AP917=\"No\"),\"-\",IF(AND($Q910=\"Y\",'Enrollment Form'!$AP917=\"Yes\",'Enrollment Form'!$AQ917<>\"\"),\"Y\",\"N\"))))","v":""},{"$f":"IF($B910=\"N\",\"\",IF(OR('Enrollment Form'!$B917<>\"Subscriber\",'Enrollment Form'!$C917=\"ROC\"),\"-\",IF(AND('Enrollment Form'!$B917=\"Subscriber\",'Enrollment Form'!$C917=\"Enroll\",'Enrollment Form'!$CO917<>\"\"),\"Y\",\"N\")))","v":""},{"$f":"IF($B910=\"N\",\"\",IF($S910=\"-\",\"-\",IF(AND($S910=\"Y\",'Enrollment Form'!$CO917=\"No\"),\"-\",IF(AND($S910=\"Y\",'Enrollment Form'!$CO917=\"Yes\",'Enrollment Form'!$CP917<>\"\"),\"Y\",\"N\"))))","v":""},{"$f":"IF(OR('Enrollment Form'!$AV917=\"Yes\",'Enrollment Form'!$AV917=\"\"),\"-\",IF(AND('Enrollment Form'!$AV917=\"No\",ISERROR(FIND(\"HMO\",VLOOKUP('Enrollment Form'!G917,'Enrollment Form'!H$11:J$1000,3,FALSE),1))=FALSE,COUNTA('Enrollment Form'!$AW917:$AZ917)=4),\"Y\",\"N\"))","v":"-"},{"$f":"IF($B910=\"N\",\"\",IF('Enrollment Form'!$B917=\"Subscriber\",\"-\",IF(COUNTA('Enrollment Form'!$BE917,'Enrollment Form'!$BG917)=2,\"Y\",\"N\")))","v":""},{"$f":"IF($B910=\"N\",\"\",IF(OR('Enrollment Form'!$AU917=\"\",'Enrollment Form'!$AU917=\"No\"),\"-\",IF(AND('Enrollment Form'!$AU917=\"Yes\",COUNTA('Enrollment Form'!$CK917)=1),\"Y\",\"N\")))","v":""},{"$f":"IF(OR('Enrollment Form'!$CK917=\"\",'Enrollment Form'!$CK917=\"No\"),\"-\",IF(COUNTA('Enrollment Form'!$CM917:$CN917)=2,\"Y\",\"N\"))","v":"-"},{"$f":"IF($B910=\"N\",\"\",IF(COUNTIF('Enrollment Form'!$CZ917:$DO917,\"Other\")=COUNTA('Enrollment Form'!$DF917,'Enrollment Form'!$DA917,'Enrollment Form'!$DK917,'Enrollment Form'!$DP917),\"Y\",\"N\"))","v":""},{"$f":"IF($B910=\"N\",\"\",IF(OR('Enrollment Form'!B917<>\"Subscriber\",'Enrollment Form'!C917=\"ROC\",COUNTIF('Enrollment Form'!AS917:AT917,\"Yes\")>=1),\"-\",IF(AND('Enrollment Form'!C917=\"Enroll\",COUNTIF('Enrollment Form'!AS917:AT917,\"No\")=2,'Enrollment Form'!AU917=\"\"),\"N\",\"Y\")))","v":""},{"$f":"IF(OR(B910=\"N\",'Enrollment Form'!B917<>\"Subscriber\",'Enrollment Form'!C917=\"ROC\",'Enrollment Form'!O917<>\"Multiple of Salary\"),\"-\",IF(COUNTA('Enrollment Form'!T917:U917)<2,\"N\",\"Y\"))","v":"-"},{"$f":"IF(B910=\"N\",\"\",IF(OR('Enrollment Form'!C917=\"ROC\",'Enrollment Form'!B917<>\"Subscriber\",'Enrollment Form'!O917=\"Waive\",'Enrollment Form'!O917=\"\"),\"-\",IF('Enrollment Form'!P917=\"\",\"N\",\"Y\")))","v":""},{"$f":"IF($B910=\"N\",\"\",IF(AND('Enrollment Form'!$C917=\"ROC\",'Enrollment Form'!$DS917<>\"\"),\"Y\",IF(AND('Enrollment Form'!$C917=\"ROC\",'Enrollment Form'!$DS917=\"\"),\"N\",IF(AND('Enrollment Form'!$C917=\"Enroll\",'Enrollment Form'!$B917=\"Subscriber\",'Enrollment Form'!$CQ917=\"No\",'Enrollment Form'!$DS917=\"\"),\"N\",IF(AND('Enrollment Form'!$C917=\"Enroll\",'Enrollment Form'!$B917=\"Subscriber\",'Enrollment Form'!$CQ917=\"Yes\"),\"-\",\"Y\")))))","v":""},{"$f":"IF($B910=\"N\",\"\",IF(AND('Enrollment Form'!$C917=\"ROC\",'Enrollment Form'!$DT917<>\"\"),\"Y\",IF(AND('Enrollment Form'!$C917=\"ROC\",'Enrollment Form'!$DT917=\"\"),\"N\",IF(AND('Enrollment Form'!$C917=\"Enroll\",'Enrollment Form'!$B917=\"Subscriber\",'Enrollment Form'!$CQ917=\"No\",'Enrollment Form'!$DT917=\"\"),\"N\",IF(AND('Enrollment Form'!$C917=\"Enroll\",'Enrollment Form'!$B917=\"Subscriber\",'Enrollment Form'!$CQ917=\"Yes\"),\"-\",\"Y\")))))","v":""},{"$f":"IF('Enrollment Form'!AH917=\"\",\"\",IF(ISERROR(SEARCH(\".\",'Enrollment Form'!AH917,SEARCH(\"@\",'Enrollment Form'!AH917))),\"N\",\"Y\"))","v":""},{"$f":"IF(OR($B910=\"N\",'Enrollment Form'!$G917=\"\"),\"\",IF('Enrollment Form'!$B917<>\"Subscriber\",\"-\",IF(COUNTIF('Enrollment Form'!$AS917:$AT917,\"Yes\")=2,\"N\",\"Y\")))","v":""},{"$f":"IF(OR('Enrollment Form'!$CC917=\"\",'Enrollment Form'!$CC917=\"No\"),\"-\",IF(AND('Enrollment Form'!$CC917=\"Yes\",'Enrollment Form'!$CD917=\"\"),\"N\",\"Y\"))","v":"-"},{"$f":"IF(OR('Enrollment Form'!$CE917=\"\",'Enrollment Form'!$CE917=\"No\"),\"-\",IF(AND('Enrollment Form'!$CE917=\"Yes\",'Enrollment Form'!$CF917=\"\"),\"N\",\"Y\"))","v":"-"},{"$f":"IF(OR('Enrollment Form'!$CG917=\"\",'Enrollment Form'!$CG917=\"No\"),\"-\",IF(AND('Enrollment Form'!$CG917=\"Yes\",'Enrollment Form'!$CH917=\"\"),\"N\",\"Y\"))","v":"-"},{"$f":"IF(OR('Enrollment Form'!$CG917=\"\",'Enrollment Form'!$CG917=\"No\"),\"-\",IF(AND('Enrollment Form'!$CG917=\"Yes\",'Enrollment Form'!$CI917=\"\"),\"N\",\"Y\"))","v":"-"},{"$f":"IF('Enrollment Form'!B917<>\"Subscriber\",\"-\",IF(AND('Enrollment Form'!B917=\"Subscriber\",'Enrollment Form'!C917=\"Enroll\",'Enrollment Form'!AA917=\"\"),\"N\",\"Y\"))","v":"-"},{"$f":"IF(OR('Enrollment Form'!B917=\"Subscriber\",'Enrollment Form'!B917=\"\"),\"-\",IF('Enrollment Form'!BI917=\"\",\"N\",\"Y\"))","v":"-"},{"$f":"IF('Enrollment Form'!B917<>\"Subscriber\",\"-\",IF(AND('Enrollment Form'!B917=\"Subscriber\",'Enrollment Form'!G917=\"\"),\"N\",\"Y\"))","v":"-"},{"$f":"IF('Enrollment Form'!A917=\"\",\"\",IF('Enrollment Form'!B917=\"Subscriber\",\"-\",IF(AND('Enrollment Form'!B917<>\"Subscriber\",'Enrollment Form'!G917='Enrollment Form'!H917),\"N\",\"Y\")))","v":""},0]
[918,{"$f":"IF('Enrollment Form'!$A918<>\"\",\"Y\",\"N\")","v":"N"},{"$f":"IF(AND('Enrollment Form'!$B918=\"\",'Enrollment Form'!$C918<>\"\"),\"N\",IF($B911=\"N\",\"\",\"Y\"))","v":""},{"$f":"IF(OR($B911=\"N\",'Enrollment Form'!G918=\"\"),\"\",IF('Enrollment Form'!$B918<>\"Subscriber\",\"\",IF('Enrollment Form'!$G918='Enrollment Form'!$H918,\"Y\",\"N\")))","v":""},{"$f":"IF($B911=\"N\",\"\",IF(AND(COUNTIFS('Enrollment Form'!$H$11:$H$1000,'Enrollment Form'!$H918,'Enrollment Form'!$B$11:$B$1000,'Enrollment Form'!$B918)>1,'Enrollment Form'!$H918<>\"\"),\"N\",\"Y\"))","v":""},{"$f":"IF($B911=\"N\",\"\",IF(LEN('Enrollment Form'!$Y918)=0,\"\",IF(LEN('Enrollment Form'!$Y918)<>5,\"N\",\"Y\")))","v":""},{"$f":"IF($B911=\"N\",\"\",IF(LEN('Enrollment Form'!$AD918=0),\"\",IF(LEN('Enrollment Form'!$AD918)<>5,\"N\",\"Y\")))","v":""},{"$f":"IF($B911=\"N\",\"\",IF(LEN('Enrollment Form'!$BL918=0),\"\",IF(LEN('Enrollment Form'!$BL918)<>5,\"N\",\"Y\")))","v":""},{"$f":"IF($B911=\"N\",\"\",IF(LEN('Enrollment Form'!$AE918)=0,\"\",IF(LEN('Enrollment Form'!$AE918)<>10,\"N\",\"Y\")))","v":""},{"$f":"IF($B911=\"N\",\"\",IF(LEN('Enrollment Form'!$AF918)=0,\"\",IF(LEN('Enrollment Form'!$AF918)<>10,\"N\",\"Y\")))","v":""},{"$f":"IF('Enrollment Form'!$O918<>\"Graded\",\"-\",IF(AND('Enrollment Form'!$O918=\"Graded\",'Enrollment Form'!$AO918<>\"\"),\"Y\",\"N\"))","v":"-"},{"$f":"IF($B911=\"N\",\"\",IF(OR('Enrollment Form'!$B918<>\"Subscriber\",'Enrollment Form'!$C918=\"ROC\"),\"-\",IF(AND('Enrollment Form'!$B918=\"Subscriber\",'Enrollment Form'!$C918=\"Enroll\",'Enrollment Form'!$AJ918<>\"\"),\"Y\",\"N\")))","v":""},{"$f":"IF($B911=\"N\",\"\",IF(OR('Enrollment Form'!$B918<>\"Subscriber\",'Enrollment Form'!$C918=\"ROC\"),\"-\",IF(AND('Enrollment Form'!$B918=\"Subscriber\",'Enrollment Form'!$C918=\"Enroll\",'Enrollment Form'!$AK918<>\"\"),\"Y\",\"N\")))","v":""},{"$f":"IF($B911=\"N\",\"\",IF(OR('Enrollment Form'!$B918<>\"Subscriber\",'Enrollment Form'!$C918=\"ROC\"),\"-\",IF(AND('Enrollment Form'!$B918=\"Subscriber\",'Enrollment Form'!$C918=\"Enroll\",'Enrollment Form'!$AL918<>\"\"),\"Y\",\"N\")))","v":""},{"$f":"IF($B911=\"N\",\"\",IF(OR('Enrollment Form'!$B918<>\"Subscriber\",'Enrollment Form'!$C918=\"ROC\"),\"-\",IF(AND('Enrollment Form'!$B918=\"Subscriber\",'Enrollment Form'!$C918=\"Enroll\",'Enrollment Form'!$AM918<>\"\"),\"Y\",\"N\")))","v":""},{"$f":"IF($B911=\"N\",\"\",IF(OR('Enrollment Form'!$B918<>\"Subscriber\",'Enrollment Form'!$C918=\"ROC\"),\"-\",IF(AND('Enrollment Form'!$B918=\"Subscriber\",'Enrollment Form'!$C918=\"Enroll\",'Enrollment Form'!$AN918<>\"\"),\"Y\",\"N\")))","v":""},{"$f":"IF($B911=\"N\",\"\",IF(OR('Enrollment Form'!$B918<>\"Subscriber\",'Enrollment Form'!$C918=\"ROC\"),\"-\",IF(AND('Enrollment Form'!$B918=\"Subscriber\",'Enrollment Form'!$C918=\"Enroll\",'Enrollment Form'!$AP918<>\"\"),\"Y\",\"N\")))","v":""},{"$f":"IF($B911=\"N\",\"\",IF($Q911=\"-\",\"-\",IF(AND($Q911=\"Y\",'Enrollment Form'!$AP918=\"No\"),\"-\",IF(AND($Q911=\"Y\",'Enrollment Form'!$AP918=\"Yes\",'Enrollment Form'!$AQ918<>\"\"),\"Y\",\"N\"))))","v":""},{"$f":"IF($B911=\"N\",\"\",IF(OR('Enrollment Form'!$B918<>\"Subscriber\",'Enrollment Form'!$C918=\"ROC\"),\"-\",IF(AND('Enrollment Form'!$B918=\"Subscriber\",'Enrollment Form'!$C918=\"Enroll\",'Enrollment Form'!$CO918<>\"\"),\"Y\",\"N\")))","v":""},{"$f":"IF($B911=\"N\",\"\",IF($S911=\"-\",\"-\",IF(AND($S911=\"Y\",'Enrollment Form'!$CO918=\"No\"),\"-\",IF(AND($S911=\"Y\",'Enrollment Form'!$CO918=\"Yes\",'Enrollment Form'!$CP918<>\"\"),\"Y\",\"N\"))))","v":""},{"$f":"IF(OR('Enrollment Form'!$AV918=\"Yes\",'Enrollment Form'!$AV918=\"\"),\"-\",IF(AND('Enrollment Form'!$AV918=\"No\",ISERROR(FIND(\"HMO\",VLOOKUP('Enrollment Form'!G918,'Enrollment Form'!H$11:J$1000,3,FALSE),1))=FALSE,COUNTA('Enrollment Form'!$AW918:$AZ918)=4),\"Y\",\"N\"))","v":"-"},{"$f":"IF($B911=\"N\",\"\",IF('Enrollment Form'!$B918=\"Subscriber\",\"-\",IF(COUNTA('Enrollment Form'!$BE918,'Enrollment Form'!$BG918)=2,\"Y\",\"N\")))","v":""},{"$f":"IF($B911=\"N\",\"\",IF(OR('Enrollment Form'!$AU918=\"\",'Enrollment Form'!$AU918=\"No\"),\"-\",IF(AND('Enrollment Form'!$AU918=\"Yes\",COUNTA('Enrollment Form'!$CK918)=1),\"Y\",\"N\")))","v":""},{"$f":"IF(OR('Enrollment Form'!$CK918=\"\",'Enrollment Form'!$CK918=\"No\"),\"-\",IF(COUNTA('Enrollment Form'!$CM918:$CN918)=2,\"Y\",\"N\"))","v":"-"},{"$f":"IF($B911=\"N\",\"\",IF(COUNTIF('Enrollment Form'!$CZ918:$DO918,\"Other\")=COUNTA('Enrollment Form'!$DF918,'Enrollment Form'!$DA918,'Enrollment Form'!$DK918,'Enrollment Form'!$DP918),\"Y\",\"N\"))","v":""},{"$f":"IF($B911=\"N\",\"\",IF(OR('Enrollment Form'!B918<>\"Subscriber\",'Enrollment Form'!C918=\"ROC\",COUNTIF('Enrollment Form'!AS918:AT918,\"Yes\")>=1),\"-\",IF(AND('Enrollment Form'!C918=\"Enroll\",COUNTIF('Enrollment Form'!AS918:AT918,\"No\")=2,'Enrollment Form'!AU918=\"\"),\"N\",\"Y\")))","v":""},{"$f":"IF(OR(B911=\"N\",'Enrollment Form'!B918<>\"Subscriber\",'Enrollment Form'!C918=\"ROC\",'Enrollment Form'!O918<>\"Multiple of Salary\"),\"-\",IF(COUNTA('Enrollment Form'!T918:U918)<2,\"N\",\"Y\"))","v":"-"},{"$f":"IF(B911=\"N\",\"\",IF(OR('Enrollment Form'!C918=\"ROC\",'Enrollment Form'!B918<>\"Subscriber\",'Enrollment Form'!O918=\"Waive\",'Enrollment Form'!O918=\"\"),\"-\",IF('Enrollment Form'!P918=\"\",\"N\",\"Y\")))","v":""},{"$f":"IF($B911=\"N\",\"\",IF(AND('Enrollment Form'!$C918=\"ROC\",'Enrollment Form'!$DS918<>\"\"),\"Y\",IF(AND('Enrollment Form'!$C918=\"ROC\",'Enrollment Form'!$DS918=\"\"),\"N\",IF(AND('Enrollment Form'!$C918=\"Enroll\",'Enrollment Form'!$B918=\"Subscriber\",'Enrollment Form'!$CQ918=\"No\",'Enrollment Form'!$DS918=\"\"),\"N\",IF(AND('Enrollment Form'!$C918=\"Enroll\",'Enrollment Form'!$B918=\"Subscriber\",'Enrollment Form'!$CQ918=\"Yes\"),\"-\",\"Y\")))))","v":""},{"$f":"IF($B911=\"N\",\"\",IF(AND('Enrollment Form'!$C918=\"ROC\",'Enrollment Form'!$DT918<>\"\"),\"Y\",IF(AND('Enrollment Form'!$C918=\"ROC\",'Enrollment Form'!$DT918=\"\"),\"N\",IF(AND('Enrollment Form'!$C918=\"Enroll\",'Enrollment Form'!$B918=\"Subscriber\",'Enrollment Form'!$CQ918=\"No\",'Enrollment Form'!$DT918=\"\"),\"N\",IF(AND('Enrollment Form'!$C918=\"Enroll\",'Enrollment Form'!$B918=\"Subscriber\",'Enrollment Form'!$CQ918=\"Yes\"),\"-\",\"Y\")))))","v":""},{"$f":"IF('Enrollment Form'!AH918=\"\",\"\",IF(ISERROR(SEARCH(\".\",'Enrollment Form'!AH918,SEARCH(\"@\",'Enrollment Form'!AH918))),\"N\",\"Y\"))","v":""},{"$f":"IF(OR($B911=\"N\",'Enrollment Form'!$G918=\"\"),\"\",IF('Enrollment Form'!$B918<>\"Subscriber\",\"-\",IF(COUNTIF('Enrollment Form'!$AS918:$AT918,\"Yes\")=2,\"N\",\"Y\")))","v":""},{"$f":"IF(OR('Enrollment Form'!$CC918=\"\",'Enrollment Form'!$CC918=\"No\"),\"-\",IF(AND('Enrollment Form'!$CC918=\"Yes\",'Enrollment Form'!$CD918=\"\"),\"N\",\"Y\"))","v":"-"},{"$f":"IF(OR('Enrollment Form'!$CE918=\"\",'Enrollment Form'!$CE918=\"No\"),\"-\",IF(AND('Enrollment Form'!$CE918=\"Yes\",'Enrollment Form'!$CF918=\"\"),\"N\",\"Y\"))","v":"-"},{"$f":"IF(OR('Enrollment Form'!$CG918=\"\",'Enrollment Form'!$CG918=\"No\"),\"-\",IF(AND('Enrollment Form'!$CG918=\"Yes\",'Enrollment Form'!$CH918=\"\"),\"N\",\"Y\"))","v":"-"},{"$f":"IF(OR('Enrollment Form'!$CG918=\"\",'Enrollment Form'!$CG918=\"No\"),\"-\",IF(AND('Enrollment Form'!$CG918=\"Yes\",'Enrollment Form'!$CI918=\"\"),\"N\",\"Y\"))","v":"-"},{"$f":"IF('Enrollment Form'!B918<>\"Subscriber\",\"-\",IF(AND('Enrollment Form'!B918=\"Subscriber\",'Enrollment Form'!C918=\"Enroll\",'Enrollment Form'!AA918=\"\"),\"N\",\"Y\"))","v":"-"},{"$f":"IF(OR('Enrollment Form'!B918=\"Subscriber\",'Enrollment Form'!B918=\"\"),\"-\",IF('Enrollment Form'!BI918=\"\",\"N\",\"Y\"))","v":"-"},{"$f":"IF('Enrollment Form'!B918<>\"Subscriber\",\"-\",IF(AND('Enrollment Form'!B918=\"Subscriber\",'Enrollment Form'!G918=\"\"),\"N\",\"Y\"))","v":"-"},{"$f":"IF('Enrollment Form'!A918=\"\",\"\",IF('Enrollment Form'!B918=\"Subscriber\",\"-\",IF(AND('Enrollment Form'!B918<>\"Subscriber\",'Enrollment Form'!G918='Enrollment Form'!H918),\"N\",\"Y\")))","v":""},0]
[919,{"$f":"IF('Enrollment Form'!$A919<>\"\",\"Y\",\"N\")","v":"N"},{"$f":"IF(AND('Enrollment Form'!$B919=\"\",'Enrollment Form'!$C919<>\"\"),\"N\",IF($B912=\"N\",\"\",\"Y\"))","v":""},{"$f":"IF(OR($B912=\"N\",'Enrollment Form'!G919=\"\"),\"\",IF('Enrollment Form'!$B919<>\"Subscriber\",\"\",IF('Enrollment Form'!$G919='Enrollment Form'!$H919,\"Y\",\"N\")))","v":""},{"$f":"IF($B912=\"N\",\"\",IF(AND(COUNTIFS('Enrollment Form'!$H$11:$H$1000,'Enrollment Form'!$H919,'Enrollment Form'!$B$11:$B$1000,'Enrollment Form'!$B919)>1,'Enrollment Form'!$H919<>\"\"),\"N\",\"Y\"))","v":""},{"$f":"IF($B912=\"N\",\"\",IF(LEN('Enrollment Form'!$Y919)=0,\"\",IF(LEN('Enrollment Form'!$Y919)<>5,\"N\",\"Y\")))","v":""},{"$f":"IF($B912=\"N\",\"\",IF(LEN('Enrollment Form'!$AD919=0),\"\",IF(LEN('Enrollment Form'!$AD919)<>5,\"N\",\"Y\")))","v":""},{"$f":"IF($B912=\"N\",\"\",IF(LEN('Enrollment Form'!$BL919=0),\"\",IF(LEN('Enrollment Form'!$BL919)<>5,\"N\",\"Y\")))","v":""},{"$f":"IF($B912=\"N\",\"\",IF(LEN('Enrollment Form'!$AE919)=0,\"\",IF(LEN('Enrollment Form'!$AE919)<>10,\"N\",\"Y\")))","v":""},{"$f":"IF($B912=\"N\",\"\",IF(LEN('Enrollment Form'!$AF919)=0,\"\",IF(LEN('Enrollment Form'!$AF919)<>10,\"N\",\"Y\")))","v":""},{"$f":"IF('Enrollment Form'!$O919<>\"Graded\",\"-\",IF(AND('Enrollment Form'!$O919=\"Graded\",'Enrollment Form'!$AO919<>\"\"),\"Y\",\"N\"))","v":"-"},{"$f":"IF($B912=\"N\",\"\",IF(OR('Enrollment Form'!$B919<>\"Subscriber\",'Enrollment Form'!$C919=\"ROC\"),\"-\",IF(AND('Enrollment Form'!$B919=\"Subscriber\",'Enrollment Form'!$C919=\"Enroll\",'Enrollment Form'!$AJ919<>\"\"),\"Y\",\"N\")))","v":""},{"$f":"IF($B912=\"N\",\"\",IF(OR('Enrollment Form'!$B919<>\"Subscriber\",'Enrollment Form'!$C919=\"ROC\"),\"-\",IF(AND('Enrollment Form'!$B919=\"Subscriber\",'Enrollment Form'!$C919=\"Enroll\",'Enrollment Form'!$AK919<>\"\"),\"Y\",\"N\")))","v":""},{"$f":"IF($B912=\"N\",\"\",IF(OR('Enrollment Form'!$B919<>\"Subscriber\",'Enrollment Form'!$C919=\"ROC\"),\"-\",IF(AND('Enrollment Form'!$B919=\"Subscriber\",'Enrollment Form'!$C919=\"Enroll\",'Enrollment Form'!$AL919<>\"\"),\"Y\",\"N\")))","v":""},{"$f":"IF($B912=\"N\",\"\",IF(OR('Enrollment Form'!$B919<>\"Subscriber\",'Enrollment Form'!$C919=\"ROC\"),\"-\",IF(AND('Enrollment Form'!$B919=\"Subscriber\",'Enrollment Form'!$C919=\"Enroll\",'Enrollment Form'!$AM919<>\"\"),\"Y\",\"N\")))","v":""},{"$f":"IF($B912=\"N\",\"\",IF(OR('Enrollment Form'!$B919<>\"Subscriber\",'Enrollment Form'!$C919=\"ROC\"),\"-\",IF(AND('Enrollment Form'!$B919=\"Subscriber\",'Enrollment Form'!$C919=\"Enroll\",'Enrollment Form'!$AN919<>\"\"),\"Y\",\"N\")))","v":""},{"$f":"IF($B912=\"N\",\"\",IF(OR('Enrollment Form'!$B919<>\"Subscriber\",'Enrollment Form'!$C919=\"ROC\"),\"-\",IF(AND('Enrollment Form'!$B919=\"Subscriber\",'Enrollment Form'!$C919=\"Enroll\",'Enrollment Form'!$AP919<>\"\"),\"Y\",\"N\")))","v":""},{"$f":"IF($B912=\"N\",\"\",IF($Q912=\"-\",\"-\",IF(AND($Q912=\"Y\",'Enrollment Form'!$AP919=\"No\"),\"-\",IF(AND($Q912=\"Y\",'Enrollment Form'!$AP919=\"Yes\",'Enrollment Form'!$AQ919<>\"\"),\"Y\",\"N\"))))","v":""},{"$f":"IF($B912=\"N\",\"\",IF(OR('Enrollment Form'!$B919<>\"Subscriber\",'Enrollment Form'!$C919=\"ROC\"),\"-\",IF(AND('Enrollment Form'!$B919=\"Subscriber\",'Enrollment Form'!$C919=\"Enroll\",'Enrollment Form'!$CO919<>\"\"),\"Y\",\"N\")))","v":""},{"$f":"IF($B912=\"N\",\"\",IF($S912=\"-\",\"-\",IF(AND($S912=\"Y\",'Enrollment Form'!$CO919=\"No\"),\"-\",IF(AND($S912=\"Y\",'Enrollment Form'!$CO919=\"Yes\",'Enrollment Form'!$CP919<>\"\"),\"Y\",\"N\"))))","v":""},{"$f":"IF(OR('Enrollment Form'!$AV919=\"Yes\",'Enrollment Form'!$AV919=\"\"),\"-\",IF(AND('Enrollment Form'!$AV919=\"No\",ISERROR(FIND(\"HMO\",VLOOKUP('Enrollment Form'!G919,'Enrollment Form'!H$11:J$1000,3,FALSE),1))=FALSE,COUNTA('Enrollment Form'!$AW919:$AZ919)=4),\"Y\",\"N\"))","v":"-"},{"$f":"IF($B912=\"N\",\"\",IF('Enrollment Form'!$B919=\"Subscriber\",\"-\",IF(COUNTA('Enrollment Form'!$BE919,'Enrollment Form'!$BG919)=2,\"Y\",\"N\")))","v":""},{"$f":"IF($B912=\"N\",\"\",IF(OR('Enrollment Form'!$AU919=\"\",'Enrollment Form'!$AU919=\"No\"),\"-\",IF(AND('Enrollment Form'!$AU919=\"Yes\",COUNTA('Enrollment Form'!$CK919)=1),\"Y\",\"N\")))","v":""},{"$f":"IF(OR('Enrollment Form'!$CK919=\"\",'Enrollment Form'!$CK919=\"No\"),\"-\",IF(COUNTA('Enrollment Form'!$CM919:$CN919)=2,\"Y\",\"N\"))","v":"-"},{"$f":"IF($B912=\"N\",\"\",IF(COUNTIF('Enrollment Form'!$CZ919:$DO919,\"Other\")=COUNTA('Enrollment Form'!$DF919,'Enrollment Form'!$DA919,'Enrollment Form'!$DK919,'Enrollment Form'!$DP919),\"Y\",\"N\"))","v":""},{"$f":"IF($B912=\"N\",\"\",IF(OR('Enrollment Form'!B919<>\"Subscriber\",'Enrollment Form'!C919=\"ROC\",COUNTIF('Enrollment Form'!AS919:AT919,\"Yes\")>=1),\"-\",IF(AND('Enrollment Form'!C919=\"Enroll\",COUNTIF('Enrollment Form'!AS919:AT919,\"No\")=2,'Enrollment Form'!AU919=\"\"),\"N\",\"Y\")))","v":""},{"$f":"IF(OR(B912=\"N\",'Enrollment Form'!B919<>\"Subscriber\",'Enrollment Form'!C919=\"ROC\",'Enrollment Form'!O919<>\"Multiple of Salary\"),\"-\",IF(COUNTA('Enrollment Form'!T919:U919)<2,\"N\",\"Y\"))","v":"-"},{"$f":"IF(B912=\"N\",\"\",IF(OR('Enrollment Form'!C919=\"ROC\",'Enrollment Form'!B919<>\"Subscriber\",'Enrollment Form'!O919=\"Waive\",'Enrollment Form'!O919=\"\"),\"-\",IF('Enrollment Form'!P919=\"\",\"N\",\"Y\")))","v":""},{"$f":"IF($B912=\"N\",\"\",IF(AND('Enrollment Form'!$C919=\"ROC\",'Enrollment Form'!$DS919<>\"\"),\"Y\",IF(AND('Enrollment Form'!$C919=\"ROC\",'Enrollment Form'!$DS919=\"\"),\"N\",IF(AND('Enrollment Form'!$C919=\"Enroll\",'Enrollment Form'!$B919=\"Subscriber\",'Enrollment Form'!$CQ919=\"No\",'Enrollment Form'!$DS919=\"\"),\"N\",IF(AND('Enrollment Form'!$C919=\"Enroll\",'Enrollment Form'!$B919=\"Subscriber\",'Enrollment Form'!$CQ919=\"Yes\"),\"-\",\"Y\")))))","v":""},{"$f":"IF($B912=\"N\",\"\",IF(AND('Enrollment Form'!$C919=\"ROC\",'Enrollment Form'!$DT919<>\"\"),\"Y\",IF(AND('Enrollment Form'!$C919=\"ROC\",'Enrollment Form'!$DT919=\"\"),\"N\",IF(AND('Enrollment Form'!$C919=\"Enroll\",'Enrollment Form'!$B919=\"Subscriber\",'Enrollment Form'!$CQ919=\"No\",'Enrollment Form'!$DT919=\"\"),\"N\",IF(AND('Enrollment Form'!$C919=\"Enroll\",'Enrollment Form'!$B919=\"Subscriber\",'Enrollment Form'!$CQ919=\"Yes\"),\"-\",\"Y\")))))","v":""},{"$f":"IF('Enrollment Form'!AH919=\"\",\"\",IF(ISERROR(SEARCH(\".\",'Enrollment Form'!AH919,SEARCH(\"@\",'Enrollment Form'!AH919))),\"N\",\"Y\"))","v":""},{"$f":"IF(OR($B912=\"N\",'Enrollment Form'!$G919=\"\"),\"\",IF('Enrollment Form'!$B919<>\"Subscriber\",\"-\",IF(COUNTIF('Enrollment Form'!$AS919:$AT919,\"Yes\")=2,\"N\",\"Y\")))","v":""},{"$f":"IF(OR('Enrollment Form'!$CC919=\"\",'Enrollment Form'!$CC919=\"No\"),\"-\",IF(AND('Enrollment Form'!$CC919=\"Yes\",'Enrollment Form'!$CD919=\"\"),\"N\",\"Y\"))","v":"-"},{"$f":"IF(OR('Enrollment Form'!$CE919=\"\",'Enrollment Form'!$CE919=\"No\"),\"-\",IF(AND('Enrollment Form'!$CE919=\"Yes\",'Enrollment Form'!$CF919=\"\"),\"N\",\"Y\"))","v":"-"},{"$f":"IF(OR('Enrollment Form'!$CG919=\"\",'Enrollment Form'!$CG919=\"No\"),\"-\",IF(AND('Enrollment Form'!$CG919=\"Yes\",'Enrollment Form'!$CH919=\"\"),\"N\",\"Y\"))","v":"-"},{"$f":"IF(OR('Enrollment Form'!$CG919=\"\",'Enrollment Form'!$CG919=\"No\"),\"-\",IF(AND('Enrollment Form'!$CG919=\"Yes\",'Enrollment Form'!$CI919=\"\"),\"N\",\"Y\"))","v":"-"},{"$f":"IF('Enrollment Form'!B919<>\"Subscriber\",\"-\",IF(AND('Enrollment Form'!B919=\"Subscriber\",'Enrollment Form'!C919=\"Enroll\",'Enrollment Form'!AA919=\"\"),\"N\",\"Y\"))","v":"-"},{"$f":"IF(OR('Enrollment Form'!B919=\"Subscriber\",'Enrollment Form'!B919=\"\"),\"-\",IF('Enrollment Form'!BI919=\"\",\"N\",\"Y\"))","v":"-"},{"$f":"IF('Enrollment Form'!B919<>\"Subscriber\",\"-\",IF(AND('Enrollment Form'!B919=\"Subscriber\",'Enrollment Form'!G919=\"\"),\"N\",\"Y\"))","v":"-"},{"$f":"IF('Enrollment Form'!A919=\"\",\"\",IF('Enrollment Form'!B919=\"Subscriber\",\"-\",IF(AND('Enrollment Form'!B919<>\"Subscriber\",'Enrollment Form'!G919='Enrollment Form'!H919),\"N\",\"Y\")))","v":""},0]
[920,{"$f":"IF('Enrollment Form'!$A920<>\"\",\"Y\",\"N\")","v":"N"},{"$f":"IF(AND('Enrollment Form'!$B920=\"\",'Enrollment Form'!$C920<>\"\"),\"N\",IF($B913=\"N\",\"\",\"Y\"))","v":""},{"$f":"IF(OR($B913=\"N\",'Enrollment Form'!G920=\"\"),\"\",IF('Enrollment Form'!$B920<>\"Subscriber\",\"\",IF('Enrollment Form'!$G920='Enrollment Form'!$H920,\"Y\",\"N\")))","v":""},{"$f":"IF($B913=\"N\",\"\",IF(AND(COUNTIFS('Enrollment Form'!$H$11:$H$1000,'Enrollment Form'!$H920,'Enrollment Form'!$B$11:$B$1000,'Enrollment Form'!$B920)>1,'Enrollment Form'!$H920<>\"\"),\"N\",\"Y\"))","v":""},{"$f":"IF($B913=\"N\",\"\",IF(LEN('Enrollment Form'!$Y920)=0,\"\",IF(LEN('Enrollment Form'!$Y920)<>5,\"N\",\"Y\")))","v":""},{"$f":"IF($B913=\"N\",\"\",IF(LEN('Enrollment Form'!$AD920=0),\"\",IF(LEN('Enrollment Form'!$AD920)<>5,\"N\",\"Y\")))","v":""},{"$f":"IF($B913=\"N\",\"\",IF(LEN('Enrollment Form'!$BL920=0),\"\",IF(LEN('Enrollment Form'!$BL920)<>5,\"N\",\"Y\")))","v":""},{"$f":"IF($B913=\"N\",\"\",IF(LEN('Enrollment Form'!$AE920)=0,\"\",IF(LEN('Enrollment Form'!$AE920)<>10,\"N\",\"Y\")))","v":""},{"$f":"IF($B913=\"N\",\"\",IF(LEN('Enrollment Form'!$AF920)=0,\"\",IF(LEN('Enrollment Form'!$AF920)<>10,\"N\",\"Y\")))","v":""},{"$f":"IF('Enrollment Form'!$O920<>\"Graded\",\"-\",IF(AND('Enrollment Form'!$O920=\"Graded\",'Enrollment Form'!$AO920<>\"\"),\"Y\",\"N\"))","v":"-"},{"$f":"IF($B913=\"N\",\"\",IF(OR('Enrollment Form'!$B920<>\"Subscriber\",'Enrollment Form'!$C920=\"ROC\"),\"-\",IF(AND('Enrollment Form'!$B920=\"Subscriber\",'Enrollment Form'!$C920=\"Enroll\",'Enrollment Form'!$AJ920<>\"\"),\"Y\",\"N\")))","v":""},{"$f":"IF($B913=\"N\",\"\",IF(OR('Enrollment Form'!$B920<>\"Subscriber\",'Enrollment Form'!$C920=\"ROC\"),\"-\",IF(AND('Enrollment Form'!$B920=\"Subscriber\",'Enrollment Form'!$C920=\"Enroll\",'Enrollment Form'!$AK920<>\"\"),\"Y\",\"N\")))","v":""},{"$f":"IF($B913=\"N\",\"\",IF(OR('Enrollment Form'!$B920<>\"Subscriber\",'Enrollment Form'!$C920=\"ROC\"),\"-\",IF(AND('Enrollment Form'!$B920=\"Subscriber\",'Enrollment Form'!$C920=\"Enroll\",'Enrollment Form'!$AL920<>\"\"),\"Y\",\"N\")))","v":""},{"$f":"IF($B913=\"N\",\"\",IF(OR('Enrollment Form'!$B920<>\"Subscriber\",'Enrollment Form'!$C920=\"ROC\"),\"-\",IF(AND('Enrollment Form'!$B920=\"Subscriber\",'Enrollment Form'!$C920=\"Enroll\",'Enrollment Form'!$AM920<>\"\"),\"Y\",\"N\")))","v":""},{"$f":"IF($B913=\"N\",\"\",IF(OR('Enrollment Form'!$B920<>\"Subscriber\",'Enrollment Form'!$C920=\"ROC\"),\"-\",IF(AND('Enrollment Form'!$B920=\"Subscriber\",'Enrollment Form'!$C920=\"Enroll\",'Enrollment Form'!$AN920<>\"\"),\"Y\",\"N\")))","v":""},{"$f":"IF($B913=\"N\",\"\",IF(OR('Enrollment Form'!$B920<>\"Subscriber\",'Enrollment Form'!$C920=\"ROC\"),\"-\",IF(AND('Enrollment Form'!$B920=\"Subscriber\",'Enrollment Form'!$C920=\"Enroll\",'Enrollment Form'!$AP920<>\"\"),\"Y\",\"N\")))","v":""},{"$f":"IF($B913=\"N\",\"\",IF($Q913=\"-\",\"-\",IF(AND($Q913=\"Y\",'Enrollment Form'!$AP920=\"No\"),\"-\",IF(AND($Q913=\"Y\",'Enrollment Form'!$AP920=\"Yes\",'Enrollment Form'!$AQ920<>\"\"),\"Y\",\"N\"))))","v":""},{"$f":"IF($B913=\"N\",\"\",IF(OR('Enrollment Form'!$B920<>\"Subscriber\",'Enrollment Form'!$C920=\"ROC\"),\"-\",IF(AND('Enrollment Form'!$B920=\"Subscriber\",'Enrollment Form'!$C920=\"Enroll\",'Enrollment Form'!$CO920<>\"\"),\"Y\",\"N\")))","v":""},{"$f":"IF($B913=\"N\",\"\",IF($S913=\"-\",\"-\",IF(AND($S913=\"Y\",'Enrollment Form'!$CO920=\"No\"),\"-\",IF(AND($S913=\"Y\",'Enrollment Form'!$CO920=\"Yes\",'Enrollment Form'!$CP920<>\"\"),\"Y\",\"N\"))))","v":""},{"$f":"IF(OR('Enrollment Form'!$AV920=\"Yes\",'Enrollment Form'!$AV920=\"\"),\"-\",IF(AND('Enrollment Form'!$AV920=\"No\",ISERROR(FIND(\"HMO\",VLOOKUP('Enrollment Form'!G920,'Enrollment Form'!H$11:J$1000,3,FALSE),1))=FALSE,COUNTA('Enrollment Form'!$AW920:$AZ920)=4),\"Y\",\"N\"))","v":"-"},{"$f":"IF($B913=\"N\",\"\",IF('Enrollment Form'!$B920=\"Subscriber\",\"-\",IF(COUNTA('Enrollment Form'!$BE920,'Enrollment Form'!$BG920)=2,\"Y\",\"N\")))","v":""},{"$f":"IF($B913=\"N\",\"\",IF(OR('Enrollment Form'!$AU920=\"\",'Enrollment Form'!$AU920=\"No\"),\"-\",IF(AND('Enrollment Form'!$AU920=\"Yes\",COUNTA('Enrollment Form'!$CK920)=1),\"Y\",\"N\")))","v":""},{"$f":"IF(OR('Enrollment Form'!$CK920=\"\",'Enrollment Form'!$CK920=\"No\"),\"-\",IF(COUNTA('Enrollment Form'!$CM920:$CN920)=2,\"Y\",\"N\"))","v":"-"},{"$f":"IF($B913=\"N\",\"\",IF(COUNTIF('Enrollment Form'!$CZ920:$DO920,\"Other\")=COUNTA('Enrollment Form'!$DF920,'Enrollment Form'!$DA920,'Enrollment Form'!$DK920,'Enrollment Form'!$DP920),\"Y\",\"N\"))","v":""},{"$f":"IF($B913=\"N\",\"\",IF(OR('Enrollment Form'!B920<>\"Subscriber\",'Enrollment Form'!C920=\"ROC\",COUNTIF('Enrollment Form'!AS920:AT920,\"Yes\")>=1),\"-\",IF(AND('Enrollment Form'!C920=\"Enroll\",COUNTIF('Enrollment Form'!AS920:AT920,\"No\")=2,'Enrollment Form'!AU920=\"\"),\"N\",\"Y\")))","v":""},{"$f":"IF(OR(B913=\"N\",'Enrollment Form'!B920<>\"Subscriber\",'Enrollment Form'!C920=\"ROC\",'Enrollment Form'!O920<>\"Multiple of Salary\"),\"-\",IF(COUNTA('Enrollment Form'!T920:U920)<2,\"N\",\"Y\"))","v":"-"},{"$f":"IF(B913=\"N\",\"\",IF(OR('Enrollment Form'!C920=\"ROC\",'Enrollment Form'!B920<>\"Subscriber\",'Enrollment Form'!O920=\"Waive\",'Enrollment Form'!O920=\"\"),\"-\",IF('Enrollment Form'!P920=\"\",\"N\",\"Y\")))","v":""},{"$f":"IF($B913=\"N\",\"\",IF(AND('Enrollment Form'!$C920=\"ROC\",'Enrollment Form'!$DS920<>\"\"),\"Y\",IF(AND('Enrollment Form'!$C920=\"ROC\",'Enrollment Form'!$DS920=\"\"),\"N\",IF(AND('Enrollment Form'!$C920=\"Enroll\",'Enrollment Form'!$B920=\"Subscriber\",'Enrollment Form'!$CQ920=\"No\",'Enrollment Form'!$DS920=\"\"),\"N\",IF(AND('Enrollment Form'!$C920=\"Enroll\",'Enrollment Form'!$B920=\"Subscriber\",'Enrollment Form'!$CQ920=\"Yes\"),\"-\",\"Y\")))))","v":""},{"$f":"IF($B913=\"N\",\"\",IF(AND('Enrollment Form'!$C920=\"ROC\",'Enrollment Form'!$DT920<>\"\"),\"Y\",IF(AND('Enrollment Form'!$C920=\"ROC\",'Enrollment Form'!$DT920=\"\"),\"N\",IF(AND('Enrollment Form'!$C920=\"Enroll\",'Enrollment Form'!$B920=\"Subscriber\",'Enrollment Form'!$CQ920=\"No\",'Enrollment Form'!$DT920=\"\"),\"N\",IF(AND('Enrollment Form'!$C920=\"Enroll\",'Enrollment Form'!$B920=\"Subscriber\",'Enrollment Form'!$CQ920=\"Yes\"),\"-\",\"Y\")))))","v":""},{"$f":"IF('Enrollment Form'!AH920=\"\",\"\",IF(ISERROR(SEARCH(\".\",'Enrollment Form'!AH920,SEARCH(\"@\",'Enrollment Form'!AH920))),\"N\",\"Y\"))","v":""},{"$f":"IF(OR($B913=\"N\",'Enrollment Form'!$G920=\"\"),\"\",IF('Enrollment Form'!$B920<>\"Subscriber\",\"-\",IF(COUNTIF('Enrollment Form'!$AS920:$AT920,\"Yes\")=2,\"N\",\"Y\")))","v":""},{"$f":"IF(OR('Enrollment Form'!$CC920=\"\",'Enrollment Form'!$CC920=\"No\"),\"-\",IF(AND('Enrollment Form'!$CC920=\"Yes\",'Enrollment Form'!$CD920=\"\"),\"N\",\"Y\"))","v":"-"},{"$f":"IF(OR('Enrollment Form'!$CE920=\"\",'Enrollment Form'!$CE920=\"No\"),\"-\",IF(AND('Enrollment Form'!$CE920=\"Yes\",'Enrollment Form'!$CF920=\"\"),\"N\",\"Y\"))","v":"-"},{"$f":"IF(OR('Enrollment Form'!$CG920=\"\",'Enrollment Form'!$CG920=\"No\"),\"-\",IF(AND('Enrollment Form'!$CG920=\"Yes\",'Enrollment Form'!$CH920=\"\"),\"N\",\"Y\"))","v":"-"},{"$f":"IF(OR('Enrollment Form'!$CG920=\"\",'Enrollment Form'!$CG920=\"No\"),\"-\",IF(AND('Enrollment Form'!$CG920=\"Yes\",'Enrollment Form'!$CI920=\"\"),\"N\",\"Y\"))","v":"-"},{"$f":"IF('Enrollment Form'!B920<>\"Subscriber\",\"-\",IF(AND('Enrollment Form'!B920=\"Subscriber\",'Enrollment Form'!C920=\"Enroll\",'Enrollment Form'!AA920=\"\"),\"N\",\"Y\"))","v":"-"},{"$f":"IF(OR('Enrollment Form'!B920=\"Subscriber\",'Enrollment Form'!B920=\"\"),\"-\",IF('Enrollment Form'!BI920=\"\",\"N\",\"Y\"))","v":"-"},{"$f":"IF('Enrollment Form'!B920<>\"Subscriber\",\"-\",IF(AND('Enrollment Form'!B920=\"Subscriber\",'Enrollment Form'!G920=\"\"),\"N\",\"Y\"))","v":"-"},{"$f":"IF('Enrollment Form'!A920=\"\",\"\",IF('Enrollment Form'!B920=\"Subscriber\",\"-\",IF(AND('Enrollment Form'!B920<>\"Subscriber\",'Enrollment Form'!G920='Enrollment Form'!H920),\"N\",\"Y\")))","v":""},0]
[921,{"$f":"IF('Enrollment Form'!$A921<>\"\",\"Y\",\"N\")","v":"N"},{"$f":"IF(AND('Enrollment Form'!$B921=\"\",'Enrollment Form'!$C921<>\"\"),\"N\",IF($B914=\"N\",\"\",\"Y\"))","v":""},{"$f":"IF(OR($B914=\"N\",'Enrollment Form'!G921=\"\"),\"\",IF('Enrollment Form'!$B921<>\"Subscriber\",\"\",IF('Enrollment Form'!$G921='Enrollment Form'!$H921,\"Y\",\"N\")))","v":""},{"$f":"IF($B914=\"N\",\"\",IF(AND(COUNTIFS('Enrollment Form'!$H$11:$H$1000,'Enrollment Form'!$H921,'Enrollment Form'!$B$11:$B$1000,'Enrollment Form'!$B921)>1,'Enrollment Form'!$H921<>\"\"),\"N\",\"Y\"))","v":""},{"$f":"IF($B914=\"N\",\"\",IF(LEN('Enrollment Form'!$Y921)=0,\"\",IF(LEN('Enrollment Form'!$Y921)<>5,\"N\",\"Y\")))","v":""},{"$f":"IF($B914=\"N\",\"\",IF(LEN('Enrollment Form'!$AD921=0),\"\",IF(LEN('Enrollment Form'!$AD921)<>5,\"N\",\"Y\")))","v":""},{"$f":"IF($B914=\"N\",\"\",IF(LEN('Enrollment Form'!$BL921=0),\"\",IF(LEN('Enrollment Form'!$BL921)<>5,\"N\",\"Y\")))","v":""},{"$f":"IF($B914=\"N\",\"\",IF(LEN('Enrollment Form'!$AE921)=0,\"\",IF(LEN('Enrollment Form'!$AE921)<>10,\"N\",\"Y\")))","v":""},{"$f":"IF($B914=\"N\",\"\",IF(LEN('Enrollment Form'!$AF921)=0,\"\",IF(LEN('Enrollment Form'!$AF921)<>10,\"N\",\"Y\")))","v":""},{"$f":"IF('Enrollment Form'!$O921<>\"Graded\",\"-\",IF(AND('Enrollment Form'!$O921=\"Graded\",'Enrollment Form'!$AO921<>\"\"),\"Y\",\"N\"))","v":"-"},{"$f":"IF($B914=\"N\",\"\",IF(OR('Enrollment Form'!$B921<>\"Subscriber\",'Enrollment Form'!$C921=\"ROC\"),\"-\",IF(AND('Enrollment Form'!$B921=\"Subscriber\",'Enrollment Form'!$C921=\"Enroll\",'Enrollment Form'!$AJ921<>\"\"),\"Y\",\"N\")))","v":""},{"$f":"IF($B914=\"N\",\"\",IF(OR('Enrollment Form'!$B921<>\"Subscriber\",'Enrollment Form'!$C921=\"ROC\"),\"-\",IF(AND('Enrollment Form'!$B921=\"Subscriber\",'Enrollment Form'!$C921=\"Enroll\",'Enrollment Form'!$AK921<>\"\"),\"Y\",\"N\")))","v":""},{"$f":"IF($B914=\"N\",\"\",IF(OR('Enrollment Form'!$B921<>\"Subscriber\",'Enrollment Form'!$C921=\"ROC\"),\"-\",IF(AND('Enrollment Form'!$B921=\"Subscriber\",'Enrollment Form'!$C921=\"Enroll\",'Enrollment Form'!$AL921<>\"\"),\"Y\",\"N\")))","v":""},{"$f":"IF($B914=\"N\",\"\",IF(OR('Enrollment Form'!$B921<>\"Subscriber\",'Enrollment Form'!$C921=\"ROC\"),\"-\",IF(AND('Enrollment Form'!$B921=\"Subscriber\",'Enrollment Form'!$C921=\"Enroll\",'Enrollment Form'!$AM921<>\"\"),\"Y\",\"N\")))","v":""},{"$f":"IF($B914=\"N\",\"\",IF(OR('Enrollment Form'!$B921<>\"Subscriber\",'Enrollment Form'!$C921=\"ROC\"),\"-\",IF(AND('Enrollment Form'!$B921=\"Subscriber\",'Enrollment Form'!$C921=\"Enroll\",'Enrollment Form'!$AN921<>\"\"),\"Y\",\"N\")))","v":""},{"$f":"IF($B914=\"N\",\"\",IF(OR('Enrollment Form'!$B921<>\"Subscriber\",'Enrollment Form'!$C921=\"ROC\"),\"-\",IF(AND('Enrollment Form'!$B921=\"Subscriber\",'Enrollment Form'!$C921=\"Enroll\",'Enrollment Form'!$AP921<>\"\"),\"Y\",\"N\")))","v":""},{"$f":"IF($B914=\"N\",\"\",IF($Q914=\"-\",\"-\",IF(AND($Q914=\"Y\",'Enrollment Form'!$AP921=\"No\"),\"-\",IF(AND($Q914=\"Y\",'Enrollment Form'!$AP921=\"Yes\",'Enrollment Form'!$AQ921<>\"\"),\"Y\",\"N\"))))","v":""},{"$f":"IF($B914=\"N\",\"\",IF(OR('Enrollment Form'!$B921<>\"Subscriber\",'Enrollment Form'!$C921=\"ROC\"),\"-\",IF(AND('Enrollment Form'!$B921=\"Subscriber\",'Enrollment Form'!$C921=\"Enroll\",'Enrollment Form'!$CO921<>\"\"),\"Y\",\"N\")))","v":""},{"$f":"IF($B914=\"N\",\"\",IF($S914=\"-\",\"-\",IF(AND($S914=\"Y\",'Enrollment Form'!$CO921=\"No\"),\"-\",IF(AND($S914=\"Y\",'Enrollment Form'!$CO921=\"Yes\",'Enrollment Form'!$CP921<>\"\"),\"Y\",\"N\"))))","v":""},{"$f":"IF(OR('Enrollment Form'!$AV921=\"Yes\",'Enrollment Form'!$AV921=\"\"),\"-\",IF(AND('Enrollment Form'!$AV921=\"No\",ISERROR(FIND(\"HMO\",VLOOKUP('Enrollment Form'!G921,'Enrollment Form'!H$11:J$1000,3,FALSE),1))=FALSE,COUNTA('Enrollment Form'!$AW921:$AZ921)=4),\"Y\",\"N\"))","v":"-"},{"$f":"IF($B914=\"N\",\"\",IF('Enrollment Form'!$B921=\"Subscriber\",\"-\",IF(COUNTA('Enrollment Form'!$BE921,'Enrollment Form'!$BG921)=2,\"Y\",\"N\")))","v":""},{"$f":"IF($B914=\"N\",\"\",IF(OR('Enrollment Form'!$AU921=\"\",'Enrollment Form'!$AU921=\"No\"),\"-\",IF(AND('Enrollment Form'!$AU921=\"Yes\",COUNTA('Enrollment Form'!$CK921)=1),\"Y\",\"N\")))","v":""},{"$f":"IF(OR('Enrollment Form'!$CK921=\"\",'Enrollment Form'!$CK921=\"No\"),\"-\",IF(COUNTA('Enrollment Form'!$CM921:$CN921)=2,\"Y\",\"N\"))","v":"-"},{"$f":"IF($B914=\"N\",\"\",IF(COUNTIF('Enrollment Form'!$CZ921:$DO921,\"Other\")=COUNTA('Enrollment Form'!$DF921,'Enrollment Form'!$DA921,'Enrollment Form'!$DK921,'Enrollment Form'!$DP921),\"Y\",\"N\"))","v":""},{"$f":"IF($B914=\"N\",\"\",IF(OR('Enrollment Form'!B921<>\"Subscriber\",'Enrollment Form'!C921=\"ROC\",COUNTIF('Enrollment Form'!AS921:AT921,\"Yes\")>=1),\"-\",IF(AND('Enrollment Form'!C921=\"Enroll\",COUNTIF('Enrollment Form'!AS921:AT921,\"No\")=2,'Enrollment Form'!AU921=\"\"),\"N\",\"Y\")))","v":""},{"$f":"IF(OR(B914=\"N\",'Enrollment Form'!B921<>\"Subscriber\",'Enrollment Form'!C921=\"ROC\",'Enrollment Form'!O921<>\"Multiple of Salary\"),\"-\",IF(COUNTA('Enrollment Form'!T921:U921)<2,\"N\",\"Y\"))","v":"-"},{"$f":"IF(B914=\"N\",\"\",IF(OR('Enrollment Form'!C921=\"ROC\",'Enrollment Form'!B921<>\"Subscriber\",'Enrollment Form'!O921=\"Waive\",'Enrollment Form'!O921=\"\"),\"-\",IF('Enrollment Form'!P921=\"\",\"N\",\"Y\")))","v":""},{"$f":"IF($B914=\"N\",\"\",IF(AND('Enrollment Form'!$C921=\"ROC\",'Enrollment Form'!$DS921<>\"\"),\"Y\",IF(AND('Enrollment Form'!$C921=\"ROC\",'Enrollment Form'!$DS921=\"\"),\"N\",IF(AND('Enrollment Form'!$C921=\"Enroll\",'Enrollment Form'!$B921=\"Subscriber\",'Enrollment Form'!$CQ921=\"No\",'Enrollment Form'!$DS921=\"\"),\"N\",IF(AND('Enrollment Form'!$C921=\"Enroll\",'Enrollment Form'!$B921=\"Subscriber\",'Enrollment Form'!$CQ921=\"Yes\"),\"-\",\"Y\")))))","v":""},{"$f":"IF($B914=\"N\",\"\",IF(AND('Enrollment Form'!$C921=\"ROC\",'Enrollment Form'!$DT921<>\"\"),\"Y\",IF(AND('Enrollment Form'!$C921=\"ROC\",'Enrollment Form'!$DT921=\"\"),\"N\",IF(AND('Enrollment Form'!$C921=\"Enroll\",'Enrollment Form'!$B921=\"Subscriber\",'Enrollment Form'!$CQ921=\"No\",'Enrollment Form'!$DT921=\"\"),\"N\",IF(AND('Enrollment Form'!$C921=\"Enroll\",'Enrollment Form'!$B921=\"Subscriber\",'Enrollment Form'!$CQ921=\"Yes\"),\"-\",\"Y\")))))","v":""},{"$f":"IF('Enrollment Form'!AH921=\"\",\"\",IF(ISERROR(SEARCH(\".\",'Enrollment Form'!AH921,SEARCH(\"@\",'Enrollment Form'!AH921))),\"N\",\"Y\"))","v":""},{"$f":"IF(OR($B914=\"N\",'Enrollment Form'!$G921=\"\"),\"\",IF('Enrollment Form'!$B921<>\"Subscriber\",\"-\",IF(COUNTIF('Enrollment Form'!$AS921:$AT921,\"Yes\")=2,\"N\",\"Y\")))","v":""},{"$f":"IF(OR('Enrollment Form'!$CC921=\"\",'Enrollment Form'!$CC921=\"No\"),\"-\",IF(AND('Enrollment Form'!$CC921=\"Yes\",'Enrollment Form'!$CD921=\"\"),\"N\",\"Y\"))","v":"-"},{"$f":"IF(OR('Enrollment Form'!$CE921=\"\",'Enrollment Form'!$CE921=\"No\"),\"-\",IF(AND('Enrollment Form'!$CE921=\"Yes\",'Enrollment Form'!$CF921=\"\"),\"N\",\"Y\"))","v":"-"},{"$f":"IF(OR('Enrollment Form'!$CG921=\"\",'Enrollment Form'!$CG921=\"No\"),\"-\",IF(AND('Enrollment Form'!$CG921=\"Yes\",'Enrollment Form'!$CH921=\"\"),\"N\",\"Y\"))","v":"-"},{"$f":"IF(OR('Enrollment Form'!$CG921=\"\",'Enrollment Form'!$CG921=\"No\"),\"-\",IF(AND('Enrollment Form'!$CG921=\"Yes\",'Enrollment Form'!$CI921=\"\"),\"N\",\"Y\"))","v":"-"},{"$f":"IF('Enrollment Form'!B921<>\"Subscriber\",\"-\",IF(AND('Enrollment Form'!B921=\"Subscriber\",'Enrollment Form'!C921=\"Enroll\",'Enrollment Form'!AA921=\"\"),\"N\",\"Y\"))","v":"-"},{"$f":"IF(OR('Enrollment Form'!B921=\"Subscriber\",'Enrollment Form'!B921=\"\"),\"-\",IF('Enrollment Form'!BI921=\"\",\"N\",\"Y\"))","v":"-"},{"$f":"IF('Enrollment Form'!B921<>\"Subscriber\",\"-\",IF(AND('Enrollment Form'!B921=\"Subscriber\",'Enrollment Form'!G921=\"\"),\"N\",\"Y\"))","v":"-"},{"$f":"IF('Enrollment Form'!A921=\"\",\"\",IF('Enrollment Form'!B921=\"Subscriber\",\"-\",IF(AND('Enrollment Form'!B921<>\"Subscriber\",'Enrollment Form'!G921='Enrollment Form'!H921),\"N\",\"Y\")))","v":""},0]
[922,{"$f":"IF('Enrollment Form'!$A922<>\"\",\"Y\",\"N\")","v":"N"},{"$f":"IF(AND('Enrollment Form'!$B922=\"\",'Enrollment Form'!$C922<>\"\"),\"N\",IF($B915=\"N\",\"\",\"Y\"))","v":""},{"$f":"IF(OR($B915=\"N\",'Enrollment Form'!G922=\"\"),\"\",IF('Enrollment Form'!$B922<>\"Subscriber\",\"\",IF('Enrollment Form'!$G922='Enrollment Form'!$H922,\"Y\",\"N\")))","v":""},{"$f":"IF($B915=\"N\",\"\",IF(AND(COUNTIFS('Enrollment Form'!$H$11:$H$1000,'Enrollment Form'!$H922,'Enrollment Form'!$B$11:$B$1000,'Enrollment Form'!$B922)>1,'Enrollment Form'!$H922<>\"\"),\"N\",\"Y\"))","v":""},{"$f":"IF($B915=\"N\",\"\",IF(LEN('Enrollment Form'!$Y922)=0,\"\",IF(LEN('Enrollment Form'!$Y922)<>5,\"N\",\"Y\")))","v":""},{"$f":"IF($B915=\"N\",\"\",IF(LEN('Enrollment Form'!$AD922=0),\"\",IF(LEN('Enrollment Form'!$AD922)<>5,\"N\",\"Y\")))","v":""},{"$f":"IF($B915=\"N\",\"\",IF(LEN('Enrollment Form'!$BL922=0),\"\",IF(LEN('Enrollment Form'!$BL922)<>5,\"N\",\"Y\")))","v":""},{"$f":"IF($B915=\"N\",\"\",IF(LEN('Enrollment Form'!$AE922)=0,\"\",IF(LEN('Enrollment Form'!$AE922)<>10,\"N\",\"Y\")))","v":""},{"$f":"IF($B915=\"N\",\"\",IF(LEN('Enrollment Form'!$AF922)=0,\"\",IF(LEN('Enrollment Form'!$AF922)<>10,\"N\",\"Y\")))","v":""},{"$f":"IF('Enrollment Form'!$O922<>\"Graded\",\"-\",IF(AND('Enrollment Form'!$O922=\"Graded\",'Enrollment Form'!$AO922<>\"\"),\"Y\",\"N\"))","v":"-"},{"$f":"IF($B915=\"N\",\"\",IF(OR('Enrollment Form'!$B922<>\"Subscriber\",'Enrollment Form'!$C922=\"ROC\"),\"-\",IF(AND('Enrollment Form'!$B922=\"Subscriber\",'Enrollment Form'!$C922=\"Enroll\",'Enrollment Form'!$AJ922<>\"\"),\"Y\",\"N\")))","v":""},{"$f":"IF($B915=\"N\",\"\",IF(OR('Enrollment Form'!$B922<>\"Subscriber\",'Enrollment Form'!$C922=\"ROC\"),\"-\",IF(AND('Enrollment Form'!$B922=\"Subscriber\",'Enrollment Form'!$C922=\"Enroll\",'Enrollment Form'!$AK922<>\"\"),\"Y\",\"N\")))","v":""},{"$f":"IF($B915=\"N\",\"\",IF(OR('Enrollment Form'!$B922<>\"Subscriber\",'Enrollment Form'!$C922=\"ROC\"),\"-\",IF(AND('Enrollment Form'!$B922=\"Subscriber\",'Enrollment Form'!$C922=\"Enroll\",'Enrollment Form'!$AL922<>\"\"),\"Y\",\"N\")))","v":""},{"$f":"IF($B915=\"N\",\"\",IF(OR('Enrollment Form'!$B922<>\"Subscriber\",'Enrollment Form'!$C922=\"ROC\"),\"-\",IF(AND('Enrollment Form'!$B922=\"Subscriber\",'Enrollment Form'!$C922=\"Enroll\",'Enrollment Form'!$AM922<>\"\"),\"Y\",\"N\")))","v":""},{"$f":"IF($B915=\"N\",\"\",IF(OR('Enrollment Form'!$B922<>\"Subscriber\",'Enrollment Form'!$C922=\"ROC\"),\"-\",IF(AND('Enrollment Form'!$B922=\"Subscriber\",'Enrollment Form'!$C922=\"Enroll\",'Enrollment Form'!$AN922<>\"\"),\"Y\",\"N\")))","v":""},{"$f":"IF($B915=\"N\",\"\",IF(OR('Enrollment Form'!$B922<>\"Subscriber\",'Enrollment Form'!$C922=\"ROC\"),\"-\",IF(AND('Enrollment Form'!$B922=\"Subscriber\",'Enrollment Form'!$C922=\"Enroll\",'Enrollment Form'!$AP922<>\"\"),\"Y\",\"N\")))","v":""},{"$f":"IF($B915=\"N\",\"\",IF($Q915=\"-\",\"-\",IF(AND($Q915=\"Y\",'Enrollment Form'!$AP922=\"No\"),\"-\",IF(AND($Q915=\"Y\",'Enrollment Form'!$AP922=\"Yes\",'Enrollment Form'!$AQ922<>\"\"),\"Y\",\"N\"))))","v":""},{"$f":"IF($B915=\"N\",\"\",IF(OR('Enrollment Form'!$B922<>\"Subscriber\",'Enrollment Form'!$C922=\"ROC\"),\"-\",IF(AND('Enrollment Form'!$B922=\"Subscriber\",'Enrollment Form'!$C922=\"Enroll\",'Enrollment Form'!$CO922<>\"\"),\"Y\",\"N\")))","v":""},{"$f":"IF($B915=\"N\",\"\",IF($S915=\"-\",\"-\",IF(AND($S915=\"Y\",'Enrollment Form'!$CO922=\"No\"),\"-\",IF(AND($S915=\"Y\",'Enrollment Form'!$CO922=\"Yes\",'Enrollment Form'!$CP922<>\"\"),\"Y\",\"N\"))))","v":""},{"$f":"IF(OR('Enrollment Form'!$AV922=\"Yes\",'Enrollment Form'!$AV922=\"\"),\"-\",IF(AND('Enrollment Form'!$AV922=\"No\",ISERROR(FIND(\"HMO\",VLOOKUP('Enrollment Form'!G922,'Enrollment Form'!H$11:J$1000,3,FALSE),1))=FALSE,COUNTA('Enrollment Form'!$AW922:$AZ922)=4),\"Y\",\"N\"))","v":"-"},{"$f":"IF($B915=\"N\",\"\",IF('Enrollment Form'!$B922=\"Subscriber\",\"-\",IF(COUNTA('Enrollment Form'!$BE922,'Enrollment Form'!$BG922)=2,\"Y\",\"N\")))","v":""},{"$f":"IF($B915=\"N\",\"\",IF(OR('Enrollment Form'!$AU922=\"\",'Enrollment Form'!$AU922=\"No\"),\"-\",IF(AND('Enrollment Form'!$AU922=\"Yes\",COUNTA('Enrollment Form'!$CK922)=1),\"Y\",\"N\")))","v":""},{"$f":"IF(OR('Enrollment Form'!$CK922=\"\",'Enrollment Form'!$CK922=\"No\"),\"-\",IF(COUNTA('Enrollment Form'!$CM922:$CN922)=2,\"Y\",\"N\"))","v":"-"},{"$f":"IF($B915=\"N\",\"\",IF(COUNTIF('Enrollment Form'!$CZ922:$DO922,\"Other\")=COUNTA('Enrollment Form'!$DF922,'Enrollment Form'!$DA922,'Enrollment Form'!$DK922,'Enrollment Form'!$DP922),\"Y\",\"N\"))","v":""},{"$f":"IF($B915=\"N\",\"\",IF(OR('Enrollment Form'!B922<>\"Subscriber\",'Enrollment Form'!C922=\"ROC\",COUNTIF('Enrollment Form'!AS922:AT922,\"Yes\")>=1),\"-\",IF(AND('Enrollment Form'!C922=\"Enroll\",COUNTIF('Enrollment Form'!AS922:AT922,\"No\")=2,'Enrollment Form'!AU922=\"\"),\"N\",\"Y\")))","v":""},{"$f":"IF(OR(B915=\"N\",'Enrollment Form'!B922<>\"Subscriber\",'Enrollment Form'!C922=\"ROC\",'Enrollment Form'!O922<>\"Multiple of Salary\"),\"-\",IF(COUNTA('Enrollment Form'!T922:U922)<2,\"N\",\"Y\"))","v":"-"},{"$f":"IF(B915=\"N\",\"\",IF(OR('Enrollment Form'!C922=\"ROC\",'Enrollment Form'!B922<>\"Subscriber\",'Enrollment Form'!O922=\"Waive\",'Enrollment Form'!O922=\"\"),\"-\",IF('Enrollment Form'!P922=\"\",\"N\",\"Y\")))","v":""},{"$f":"IF($B915=\"N\",\"\",IF(AND('Enrollment Form'!$C922=\"ROC\",'Enrollment Form'!$DS922<>\"\"),\"Y\",IF(AND('Enrollment Form'!$C922=\"ROC\",'Enrollment Form'!$DS922=\"\"),\"N\",IF(AND('Enrollment Form'!$C922=\"Enroll\",'Enrollment Form'!$B922=\"Subscriber\",'Enrollment Form'!$CQ922=\"No\",'Enrollment Form'!$DS922=\"\"),\"N\",IF(AND('Enrollment Form'!$C922=\"Enroll\",'Enrollment Form'!$B922=\"Subscriber\",'Enrollment Form'!$CQ922=\"Yes\"),\"-\",\"Y\")))))","v":""},{"$f":"IF($B915=\"N\",\"\",IF(AND('Enrollment Form'!$C922=\"ROC\",'Enrollment Form'!$DT922<>\"\"),\"Y\",IF(AND('Enrollment Form'!$C922=\"ROC\",'Enrollment Form'!$DT922=\"\"),\"N\",IF(AND('Enrollment Form'!$C922=\"Enroll\",'Enrollment Form'!$B922=\"Subscriber\",'Enrollment Form'!$CQ922=\"No\",'Enrollment Form'!$DT922=\"\"),\"N\",IF(AND('Enrollment Form'!$C922=\"Enroll\",'Enrollment Form'!$B922=\"Subscriber\",'Enrollment Form'!$CQ922=\"Yes\"),\"-\",\"Y\")))))","v":""},{"$f":"IF('Enrollment Form'!AH922=\"\",\"\",IF(ISERROR(SEARCH(\".\",'Enrollment Form'!AH922,SEARCH(\"@\",'Enrollment Form'!AH922))),\"N\",\"Y\"))","v":""},{"$f":"IF(OR($B915=\"N\",'Enrollment Form'!$G922=\"\"),\"\",IF('Enrollment Form'!$B922<>\"Subscriber\",\"-\",IF(COUNTIF('Enrollment Form'!$AS922:$AT922,\"Yes\")=2,\"N\",\"Y\")))","v":""},{"$f":"IF(OR('Enrollment Form'!$CC922=\"\",'Enrollment Form'!$CC922=\"No\"),\"-\",IF(AND('Enrollment Form'!$CC922=\"Yes\",'Enrollment Form'!$CD922=\"\"),\"N\",\"Y\"))","v":"-"},{"$f":"IF(OR('Enrollment Form'!$CE922=\"\",'Enrollment Form'!$CE922=\"No\"),\"-\",IF(AND('Enrollment Form'!$CE922=\"Yes\",'Enrollment Form'!$CF922=\"\"),\"N\",\"Y\"))","v":"-"},{"$f":"IF(OR('Enrollment Form'!$CG922=\"\",'Enrollment Form'!$CG922=\"No\"),\"-\",IF(AND('Enrollment Form'!$CG922=\"Yes\",'Enrollment Form'!$CH922=\"\"),\"N\",\"Y\"))","v":"-"},{"$f":"IF(OR('Enrollment Form'!$CG922=\"\",'Enrollment Form'!$CG922=\"No\"),\"-\",IF(AND('Enrollment Form'!$CG922=\"Yes\",'Enrollment Form'!$CI922=\"\"),\"N\",\"Y\"))","v":"-"},{"$f":"IF('Enrollment Form'!B922<>\"Subscriber\",\"-\",IF(AND('Enrollment Form'!B922=\"Subscriber\",'Enrollment Form'!C922=\"Enroll\",'Enrollment Form'!AA922=\"\"),\"N\",\"Y\"))","v":"-"},{"$f":"IF(OR('Enrollment Form'!B922=\"Subscriber\",'Enrollment Form'!B922=\"\"),\"-\",IF('Enrollment Form'!BI922=\"\",\"N\",\"Y\"))","v":"-"},{"$f":"IF('Enrollment Form'!B922<>\"Subscriber\",\"-\",IF(AND('Enrollment Form'!B922=\"Subscriber\",'Enrollment Form'!G922=\"\"),\"N\",\"Y\"))","v":"-"},{"$f":"IF('Enrollment Form'!A922=\"\",\"\",IF('Enrollment Form'!B922=\"Subscriber\",\"-\",IF(AND('Enrollment Form'!B922<>\"Subscriber\",'Enrollment Form'!G922='Enrollment Form'!H922),\"N\",\"Y\")))","v":""},0]
[923,{"$f":"IF('Enrollment Form'!$A923<>\"\",\"Y\",\"N\")","v":"N"},{"$f":"IF(AND('Enrollment Form'!$B923=\"\",'Enrollment Form'!$C923<>\"\"),\"N\",IF($B916=\"N\",\"\",\"Y\"))","v":""},{"$f":"IF(OR($B916=\"N\",'Enrollment Form'!G923=\"\"),\"\",IF('Enrollment Form'!$B923<>\"Subscriber\",\"\",IF('Enrollment Form'!$G923='Enrollment Form'!$H923,\"Y\",\"N\")))","v":""},{"$f":"IF($B916=\"N\",\"\",IF(AND(COUNTIFS('Enrollment Form'!$H$11:$H$1000,'Enrollment Form'!$H923,'Enrollment Form'!$B$11:$B$1000,'Enrollment Form'!$B923)>1,'Enrollment Form'!$H923<>\"\"),\"N\",\"Y\"))","v":""},{"$f":"IF($B916=\"N\",\"\",IF(LEN('Enrollment Form'!$Y923)=0,\"\",IF(LEN('Enrollment Form'!$Y923)<>5,\"N\",\"Y\")))","v":""},{"$f":"IF($B916=\"N\",\"\",IF(LEN('Enrollment Form'!$AD923=0),\"\",IF(LEN('Enrollment Form'!$AD923)<>5,\"N\",\"Y\")))","v":""},{"$f":"IF($B916=\"N\",\"\",IF(LEN('Enrollment Form'!$BL923=0),\"\",IF(LEN('Enrollment Form'!$BL923)<>5,\"N\",\"Y\")))","v":""},{"$f":"IF($B916=\"N\",\"\",IF(LEN('Enrollment Form'!$AE923)=0,\"\",IF(LEN('Enrollment Form'!$AE923)<>10,\"N\",\"Y\")))","v":""},{"$f":"IF($B916=\"N\",\"\",IF(LEN('Enrollment Form'!$AF923)=0,\"\",IF(LEN('Enrollment Form'!$AF923)<>10,\"N\",\"Y\")))","v":""},{"$f":"IF('Enrollment Form'!$O923<>\"Graded\",\"-\",IF(AND('Enrollment Form'!$O923=\"Graded\",'Enrollment Form'!$AO923<>\"\"),\"Y\",\"N\"))","v":"-"},{"$f":"IF($B916=\"N\",\"\",IF(OR('Enrollment Form'!$B923<>\"Subscriber\",'Enrollment Form'!$C923=\"ROC\"),\"-\",IF(AND('Enrollment Form'!$B923=\"Subscriber\",'Enrollment Form'!$C923=\"Enroll\",'Enrollment Form'!$AJ923<>\"\"),\"Y\",\"N\")))","v":""},{"$f":"IF($B916=\"N\",\"\",IF(OR('Enrollment Form'!$B923<>\"Subscriber\",'Enrollment Form'!$C923=\"ROC\"),\"-\",IF(AND('Enrollment Form'!$B923=\"Subscriber\",'Enrollment Form'!$C923=\"Enroll\",'Enrollment Form'!$AK923<>\"\"),\"Y\",\"N\")))","v":""},{"$f":"IF($B916=\"N\",\"\",IF(OR('Enrollment Form'!$B923<>\"Subscriber\",'Enrollment Form'!$C923=\"ROC\"),\"-\",IF(AND('Enrollment Form'!$B923=\"Subscriber\",'Enrollment Form'!$C923=\"Enroll\",'Enrollment Form'!$AL923<>\"\"),\"Y\",\"N\")))","v":""},{"$f":"IF($B916=\"N\",\"\",IF(OR('Enrollment Form'!$B923<>\"Subscriber\",'Enrollment Form'!$C923=\"ROC\"),\"-\",IF(AND('Enrollment Form'!$B923=\"Subscriber\",'Enrollment Form'!$C923=\"Enroll\",'Enrollment Form'!$AM923<>\"\"),\"Y\",\"N\")))","v":""},{"$f":"IF($B916=\"N\",\"\",IF(OR('Enrollment Form'!$B923<>\"Subscriber\",'Enrollment Form'!$C923=\"ROC\"),\"-\",IF(AND('Enrollment Form'!$B923=\"Subscriber\",'Enrollment Form'!$C923=\"Enroll\",'Enrollment Form'!$AN923<>\"\"),\"Y\",\"N\")))","v":""},{"$f":"IF($B916=\"N\",\"\",IF(OR('Enrollment Form'!$B923<>\"Subscriber\",'Enrollment Form'!$C923=\"ROC\"),\"-\",IF(AND('Enrollment Form'!$B923=\"Subscriber\",'Enrollment Form'!$C923=\"Enroll\",'Enrollment Form'!$AP923<>\"\"),\"Y\",\"N\")))","v":""},{"$f":"IF($B916=\"N\",\"\",IF($Q916=\"-\",\"-\",IF(AND($Q916=\"Y\",'Enrollment Form'!$AP923=\"No\"),\"-\",IF(AND($Q916=\"Y\",'Enrollment Form'!$AP923=\"Yes\",'Enrollment Form'!$AQ923<>\"\"),\"Y\",\"N\"))))","v":""},{"$f":"IF($B916=\"N\",\"\",IF(OR('Enrollment Form'!$B923<>\"Subscriber\",'Enrollment Form'!$C923=\"ROC\"),\"-\",IF(AND('Enrollment Form'!$B923=\"Subscriber\",'Enrollment Form'!$C923=\"Enroll\",'Enrollment Form'!$CO923<>\"\"),\"Y\",\"N\")))","v":""},{"$f":"IF($B916=\"N\",\"\",IF($S916=\"-\",\"-\",IF(AND($S916=\"Y\",'Enrollment Form'!$CO923=\"No\"),\"-\",IF(AND($S916=\"Y\",'Enrollment Form'!$CO923=\"Yes\",'Enrollment Form'!$CP923<>\"\"),\"Y\",\"N\"))))","v":""},{"$f":"IF(OR('Enrollment Form'!$AV923=\"Yes\",'Enrollment Form'!$AV923=\"\"),\"-\",IF(AND('Enrollment Form'!$AV923=\"No\",ISERROR(FIND(\"HMO\",VLOOKUP('Enrollment Form'!G923,'Enrollment Form'!H$11:J$1000,3,FALSE),1))=FALSE,COUNTA('Enrollment Form'!$AW923:$AZ923)=4),\"Y\",\"N\"))","v":"-"},{"$f":"IF($B916=\"N\",\"\",IF('Enrollment Form'!$B923=\"Subscriber\",\"-\",IF(COUNTA('Enrollment Form'!$BE923,'Enrollment Form'!$BG923)=2,\"Y\",\"N\")))","v":""},{"$f":"IF($B916=\"N\",\"\",IF(OR('Enrollment Form'!$AU923=\"\",'Enrollment Form'!$AU923=\"No\"),\"-\",IF(AND('Enrollment Form'!$AU923=\"Yes\",COUNTA('Enrollment Form'!$CK923)=1),\"Y\",\"N\")))","v":""},{"$f":"IF(OR('Enrollment Form'!$CK923=\"\",'Enrollment Form'!$CK923=\"No\"),\"-\",IF(COUNTA('Enrollment Form'!$CM923:$CN923)=2,\"Y\",\"N\"))","v":"-"},{"$f":"IF($B916=\"N\",\"\",IF(COUNTIF('Enrollment Form'!$CZ923:$DO923,\"Other\")=COUNTA('Enrollment Form'!$DF923,'Enrollment Form'!$DA923,'Enrollment Form'!$DK923,'Enrollment Form'!$DP923),\"Y\",\"N\"))","v":""},{"$f":"IF($B916=\"N\",\"\",IF(OR('Enrollment Form'!B923<>\"Subscriber\",'Enrollment Form'!C923=\"ROC\",COUNTIF('Enrollment Form'!AS923:AT923,\"Yes\")>=1),\"-\",IF(AND('Enrollment Form'!C923=\"Enroll\",COUNTIF('Enrollment Form'!AS923:AT923,\"No\")=2,'Enrollment Form'!AU923=\"\"),\"N\",\"Y\")))","v":""},{"$f":"IF(OR(B916=\"N\",'Enrollment Form'!B923<>\"Subscriber\",'Enrollment Form'!C923=\"ROC\",'Enrollment Form'!O923<>\"Multiple of Salary\"),\"-\",IF(COUNTA('Enrollment Form'!T923:U923)<2,\"N\",\"Y\"))","v":"-"},{"$f":"IF(B916=\"N\",\"\",IF(OR('Enrollment Form'!C923=\"ROC\",'Enrollment Form'!B923<>\"Subscriber\",'Enrollment Form'!O923=\"Waive\",'Enrollment Form'!O923=\"\"),\"-\",IF('Enrollment Form'!P923=\"\",\"N\",\"Y\")))","v":""},{"$f":"IF($B916=\"N\",\"\",IF(AND('Enrollment Form'!$C923=\"ROC\",'Enrollment Form'!$DS923<>\"\"),\"Y\",IF(AND('Enrollment Form'!$C923=\"ROC\",'Enrollment Form'!$DS923=\"\"),\"N\",IF(AND('Enrollment Form'!$C923=\"Enroll\",'Enrollment Form'!$B923=\"Subscriber\",'Enrollment Form'!$CQ923=\"No\",'Enrollment Form'!$DS923=\"\"),\"N\",IF(AND('Enrollment Form'!$C923=\"Enroll\",'Enrollment Form'!$B923=\"Subscriber\",'Enrollment Form'!$CQ923=\"Yes\"),\"-\",\"Y\")))))","v":""},{"$f":"IF($B916=\"N\",\"\",IF(AND('Enrollment Form'!$C923=\"ROC\",'Enrollment Form'!$DT923<>\"\"),\"Y\",IF(AND('Enrollment Form'!$C923=\"ROC\",'Enrollment Form'!$DT923=\"\"),\"N\",IF(AND('Enrollment Form'!$C923=\"Enroll\",'Enrollment Form'!$B923=\"Subscriber\",'Enrollment Form'!$CQ923=\"No\",'Enrollment Form'!$DT923=\"\"),\"N\",IF(AND('Enrollment Form'!$C923=\"Enroll\",'Enrollment Form'!$B923=\"Subscriber\",'Enrollment Form'!$CQ923=\"Yes\"),\"-\",\"Y\")))))","v":""},{"$f":"IF('Enrollment Form'!AH923=\"\",\"\",IF(ISERROR(SEARCH(\".\",'Enrollment Form'!AH923,SEARCH(\"@\",'Enrollment Form'!AH923))),\"N\",\"Y\"))","v":""},{"$f":"IF(OR($B916=\"N\",'Enrollment Form'!$G923=\"\"),\"\",IF('Enrollment Form'!$B923<>\"Subscriber\",\"-\",IF(COUNTIF('Enrollment Form'!$AS923:$AT923,\"Yes\")=2,\"N\",\"Y\")))","v":""},{"$f":"IF(OR('Enrollment Form'!$CC923=\"\",'Enrollment Form'!$CC923=\"No\"),\"-\",IF(AND('Enrollment Form'!$CC923=\"Yes\",'Enrollment Form'!$CD923=\"\"),\"N\",\"Y\"))","v":"-"},{"$f":"IF(OR('Enrollment Form'!$CE923=\"\",'Enrollment Form'!$CE923=\"No\"),\"-\",IF(AND('Enrollment Form'!$CE923=\"Yes\",'Enrollment Form'!$CF923=\"\"),\"N\",\"Y\"))","v":"-"},{"$f":"IF(OR('Enrollment Form'!$CG923=\"\",'Enrollment Form'!$CG923=\"No\"),\"-\",IF(AND('Enrollment Form'!$CG923=\"Yes\",'Enrollment Form'!$CH923=\"\"),\"N\",\"Y\"))","v":"-"},{"$f":"IF(OR('Enrollment Form'!$CG923=\"\",'Enrollment Form'!$CG923=\"No\"),\"-\",IF(AND('Enrollment Form'!$CG923=\"Yes\",'Enrollment Form'!$CI923=\"\"),\"N\",\"Y\"))","v":"-"},{"$f":"IF('Enrollment Form'!B923<>\"Subscriber\",\"-\",IF(AND('Enrollment Form'!B923=\"Subscriber\",'Enrollment Form'!C923=\"Enroll\",'Enrollment Form'!AA923=\"\"),\"N\",\"Y\"))","v":"-"},{"$f":"IF(OR('Enrollment Form'!B923=\"Subscriber\",'Enrollment Form'!B923=\"\"),\"-\",IF('Enrollment Form'!BI923=\"\",\"N\",\"Y\"))","v":"-"},{"$f":"IF('Enrollment Form'!B923<>\"Subscriber\",\"-\",IF(AND('Enrollment Form'!B923=\"Subscriber\",'Enrollment Form'!G923=\"\"),\"N\",\"Y\"))","v":"-"},{"$f":"IF('Enrollment Form'!A923=\"\",\"\",IF('Enrollment Form'!B923=\"Subscriber\",\"-\",IF(AND('Enrollment Form'!B923<>\"Subscriber\",'Enrollment Form'!G923='Enrollment Form'!H923),\"N\",\"Y\")))","v":""},0]
[924,{"$f":"IF('Enrollment Form'!$A924<>\"\",\"Y\",\"N\")","v":"N"},{"$f":"IF(AND('Enrollment Form'!$B924=\"\",'Enrollment Form'!$C924<>\"\"),\"N\",IF($B917=\"N\",\"\",\"Y\"))","v":""},{"$f":"IF(OR($B917=\"N\",'Enrollment Form'!G924=\"\"),\"\",IF('Enrollment Form'!$B924<>\"Subscriber\",\"\",IF('Enrollment Form'!$G924='Enrollment Form'!$H924,\"Y\",\"N\")))","v":""},{"$f":"IF($B917=\"N\",\"\",IF(AND(COUNTIFS('Enrollment Form'!$H$11:$H$1000,'Enrollment Form'!$H924,'Enrollment Form'!$B$11:$B$1000,'Enrollment Form'!$B924)>1,'Enrollment Form'!$H924<>\"\"),\"N\",\"Y\"))","v":""},{"$f":"IF($B917=\"N\",\"\",IF(LEN('Enrollment Form'!$Y924)=0,\"\",IF(LEN('Enrollment Form'!$Y924)<>5,\"N\",\"Y\")))","v":""},{"$f":"IF($B917=\"N\",\"\",IF(LEN('Enrollment Form'!$AD924=0),\"\",IF(LEN('Enrollment Form'!$AD924)<>5,\"N\",\"Y\")))","v":""},{"$f":"IF($B917=\"N\",\"\",IF(LEN('Enrollment Form'!$BL924=0),\"\",IF(LEN('Enrollment Form'!$BL924)<>5,\"N\",\"Y\")))","v":""},{"$f":"IF($B917=\"N\",\"\",IF(LEN('Enrollment Form'!$AE924)=0,\"\",IF(LEN('Enrollment Form'!$AE924)<>10,\"N\",\"Y\")))","v":""},{"$f":"IF($B917=\"N\",\"\",IF(LEN('Enrollment Form'!$AF924)=0,\"\",IF(LEN('Enrollment Form'!$AF924)<>10,\"N\",\"Y\")))","v":""},{"$f":"IF('Enrollment Form'!$O924<>\"Graded\",\"-\",IF(AND('Enrollment Form'!$O924=\"Graded\",'Enrollment Form'!$AO924<>\"\"),\"Y\",\"N\"))","v":"-"},{"$f":"IF($B917=\"N\",\"\",IF(OR('Enrollment Form'!$B924<>\"Subscriber\",'Enrollment Form'!$C924=\"ROC\"),\"-\",IF(AND('Enrollment Form'!$B924=\"Subscriber\",'Enrollment Form'!$C924=\"Enroll\",'Enrollment Form'!$AJ924<>\"\"),\"Y\",\"N\")))","v":""},{"$f":"IF($B917=\"N\",\"\",IF(OR('Enrollment Form'!$B924<>\"Subscriber\",'Enrollment Form'!$C924=\"ROC\"),\"-\",IF(AND('Enrollment Form'!$B924=\"Subscriber\",'Enrollment Form'!$C924=\"Enroll\",'Enrollment Form'!$AK924<>\"\"),\"Y\",\"N\")))","v":""},{"$f":"IF($B917=\"N\",\"\",IF(OR('Enrollment Form'!$B924<>\"Subscriber\",'Enrollment Form'!$C924=\"ROC\"),\"-\",IF(AND('Enrollment Form'!$B924=\"Subscriber\",'Enrollment Form'!$C924=\"Enroll\",'Enrollment Form'!$AL924<>\"\"),\"Y\",\"N\")))","v":""},{"$f":"IF($B917=\"N\",\"\",IF(OR('Enrollment Form'!$B924<>\"Subscriber\",'Enrollment Form'!$C924=\"ROC\"),\"-\",IF(AND('Enrollment Form'!$B924=\"Subscriber\",'Enrollment Form'!$C924=\"Enroll\",'Enrollment Form'!$AM924<>\"\"),\"Y\",\"N\")))","v":""},{"$f":"IF($B917=\"N\",\"\",IF(OR('Enrollment Form'!$B924<>\"Subscriber\",'Enrollment Form'!$C924=\"ROC\"),\"-\",IF(AND('Enrollment Form'!$B924=\"Subscriber\",'Enrollment Form'!$C924=\"Enroll\",'Enrollment Form'!$AN924<>\"\"),\"Y\",\"N\")))","v":""},{"$f":"IF($B917=\"N\",\"\",IF(OR('Enrollment Form'!$B924<>\"Subscriber\",'Enrollment Form'!$C924=\"ROC\"),\"-\",IF(AND('Enrollment Form'!$B924=\"Subscriber\",'Enrollment Form'!$C924=\"Enroll\",'Enrollment Form'!$AP924<>\"\"),\"Y\",\"N\")))","v":""},{"$f":"IF($B917=\"N\",\"\",IF($Q917=\"-\",\"-\",IF(AND($Q917=\"Y\",'Enrollment Form'!$AP924=\"No\"),\"-\",IF(AND($Q917=\"Y\",'Enrollment Form'!$AP924=\"Yes\",'Enrollment Form'!$AQ924<>\"\"),\"Y\",\"N\"))))","v":""},{"$f":"IF($B917=\"N\",\"\",IF(OR('Enrollment Form'!$B924<>\"Subscriber\",'Enrollment Form'!$C924=\"ROC\"),\"-\",IF(AND('Enrollment Form'!$B924=\"Subscriber\",'Enrollment Form'!$C924=\"Enroll\",'Enrollment Form'!$CO924<>\"\"),\"Y\",\"N\")))","v":""},{"$f":"IF($B917=\"N\",\"\",IF($S917=\"-\",\"-\",IF(AND($S917=\"Y\",'Enrollment Form'!$CO924=\"No\"),\"-\",IF(AND($S917=\"Y\",'Enrollment Form'!$CO924=\"Yes\",'Enrollment Form'!$CP924<>\"\"),\"Y\",\"N\"))))","v":""},{"$f":"IF(OR('Enrollment Form'!$AV924=\"Yes\",'Enrollment Form'!$AV924=\"\"),\"-\",IF(AND('Enrollment Form'!$AV924=\"No\",ISERROR(FIND(\"HMO\",VLOOKUP('Enrollment Form'!G924,'Enrollment Form'!H$11:J$1000,3,FALSE),1))=FALSE,COUNTA('Enrollment Form'!$AW924:$AZ924)=4),\"Y\",\"N\"))","v":"-"},{"$f":"IF($B917=\"N\",\"\",IF('Enrollment Form'!$B924=\"Subscriber\",\"-\",IF(COUNTA('Enrollment Form'!$BE924,'Enrollment Form'!$BG924)=2,\"Y\",\"N\")))","v":""},{"$f":"IF($B917=\"N\",\"\",IF(OR('Enrollment Form'!$AU924=\"\",'Enrollment Form'!$AU924=\"No\"),\"-\",IF(AND('Enrollment Form'!$AU924=\"Yes\",COUNTA('Enrollment Form'!$CK924)=1),\"Y\",\"N\")))","v":""},{"$f":"IF(OR('Enrollment Form'!$CK924=\"\",'Enrollment Form'!$CK924=\"No\"),\"-\",IF(COUNTA('Enrollment Form'!$CM924:$CN924)=2,\"Y\",\"N\"))","v":"-"},{"$f":"IF($B917=\"N\",\"\",IF(COUNTIF('Enrollment Form'!$CZ924:$DO924,\"Other\")=COUNTA('Enrollment Form'!$DF924,'Enrollment Form'!$DA924,'Enrollment Form'!$DK924,'Enrollment Form'!$DP924),\"Y\",\"N\"))","v":""},{"$f":"IF($B917=\"N\",\"\",IF(OR('Enrollment Form'!B924<>\"Subscriber\",'Enrollment Form'!C924=\"ROC\",COUNTIF('Enrollment Form'!AS924:AT924,\"Yes\")>=1),\"-\",IF(AND('Enrollment Form'!C924=\"Enroll\",COUNTIF('Enrollment Form'!AS924:AT924,\"No\")=2,'Enrollment Form'!AU924=\"\"),\"N\",\"Y\")))","v":""},{"$f":"IF(OR(B917=\"N\",'Enrollment Form'!B924<>\"Subscriber\",'Enrollment Form'!C924=\"ROC\",'Enrollment Form'!O924<>\"Multiple of Salary\"),\"-\",IF(COUNTA('Enrollment Form'!T924:U924)<2,\"N\",\"Y\"))","v":"-"},{"$f":"IF(B917=\"N\",\"\",IF(OR('Enrollment Form'!C924=\"ROC\",'Enrollment Form'!B924<>\"Subscriber\",'Enrollment Form'!O924=\"Waive\",'Enrollment Form'!O924=\"\"),\"-\",IF('Enrollment Form'!P924=\"\",\"N\",\"Y\")))","v":""},{"$f":"IF($B917=\"N\",\"\",IF(AND('Enrollment Form'!$C924=\"ROC\",'Enrollment Form'!$DS924<>\"\"),\"Y\",IF(AND('Enrollment Form'!$C924=\"ROC\",'Enrollment Form'!$DS924=\"\"),\"N\",IF(AND('Enrollment Form'!$C924=\"Enroll\",'Enrollment Form'!$B924=\"Subscriber\",'Enrollment Form'!$CQ924=\"No\",'Enrollment Form'!$DS924=\"\"),\"N\",IF(AND('Enrollment Form'!$C924=\"Enroll\",'Enrollment Form'!$B924=\"Subscriber\",'Enrollment Form'!$CQ924=\"Yes\"),\"-\",\"Y\")))))","v":""},{"$f":"IF($B917=\"N\",\"\",IF(AND('Enrollment Form'!$C924=\"ROC\",'Enrollment Form'!$DT924<>\"\"),\"Y\",IF(AND('Enrollment Form'!$C924=\"ROC\",'Enrollment Form'!$DT924=\"\"),\"N\",IF(AND('Enrollment Form'!$C924=\"Enroll\",'Enrollment Form'!$B924=\"Subscriber\",'Enrollment Form'!$CQ924=\"No\",'Enrollment Form'!$DT924=\"\"),\"N\",IF(AND('Enrollment Form'!$C924=\"Enroll\",'Enrollment Form'!$B924=\"Subscriber\",'Enrollment Form'!$CQ924=\"Yes\"),\"-\",\"Y\")))))","v":""},{"$f":"IF('Enrollment Form'!AH924=\"\",\"\",IF(ISERROR(SEARCH(\".\",'Enrollment Form'!AH924,SEARCH(\"@\",'Enrollment Form'!AH924))),\"N\",\"Y\"))","v":""},{"$f":"IF(OR($B917=\"N\",'Enrollment Form'!$G924=\"\"),\"\",IF('Enrollment Form'!$B924<>\"Subscriber\",\"-\",IF(COUNTIF('Enrollment Form'!$AS924:$AT924,\"Yes\")=2,\"N\",\"Y\")))","v":""},{"$f":"IF(OR('Enrollment Form'!$CC924=\"\",'Enrollment Form'!$CC924=\"No\"),\"-\",IF(AND('Enrollment Form'!$CC924=\"Yes\",'Enrollment Form'!$CD924=\"\"),\"N\",\"Y\"))","v":"-"},{"$f":"IF(OR('Enrollment Form'!$CE924=\"\",'Enrollment Form'!$CE924=\"No\"),\"-\",IF(AND('Enrollment Form'!$CE924=\"Yes\",'Enrollment Form'!$CF924=\"\"),\"N\",\"Y\"))","v":"-"},{"$f":"IF(OR('Enrollment Form'!$CG924=\"\",'Enrollment Form'!$CG924=\"No\"),\"-\",IF(AND('Enrollment Form'!$CG924=\"Yes\",'Enrollment Form'!$CH924=\"\"),\"N\",\"Y\"))","v":"-"},{"$f":"IF(OR('Enrollment Form'!$CG924=\"\",'Enrollment Form'!$CG924=\"No\"),\"-\",IF(AND('Enrollment Form'!$CG924=\"Yes\",'Enrollment Form'!$CI924=\"\"),\"N\",\"Y\"))","v":"-"},{"$f":"IF('Enrollment Form'!B924<>\"Subscriber\",\"-\",IF(AND('Enrollment Form'!B924=\"Subscriber\",'Enrollment Form'!C924=\"Enroll\",'Enrollment Form'!AA924=\"\"),\"N\",\"Y\"))","v":"-"},{"$f":"IF(OR('Enrollment Form'!B924=\"Subscriber\",'Enrollment Form'!B924=\"\"),\"-\",IF('Enrollment Form'!BI924=\"\",\"N\",\"Y\"))","v":"-"},{"$f":"IF('Enrollment Form'!B924<>\"Subscriber\",\"-\",IF(AND('Enrollment Form'!B924=\"Subscriber\",'Enrollment Form'!G924=\"\"),\"N\",\"Y\"))","v":"-"},{"$f":"IF('Enrollment Form'!A924=\"\",\"\",IF('Enrollment Form'!B924=\"Subscriber\",\"-\",IF(AND('Enrollment Form'!B924<>\"Subscriber\",'Enrollment Form'!G924='Enrollment Form'!H924),\"N\",\"Y\")))","v":""},0]
[925,{"$f":"IF('Enrollment Form'!$A925<>\"\",\"Y\",\"N\")","v":"N"},{"$f":"IF(AND('Enrollment Form'!$B925=\"\",'Enrollment Form'!$C925<>\"\"),\"N\",IF($B918=\"N\",\"\",\"Y\"))","v":""},{"$f":"IF(OR($B918=\"N\",'Enrollment Form'!G925=\"\"),\"\",IF('Enrollment Form'!$B925<>\"Subscriber\",\"\",IF('Enrollment Form'!$G925='Enrollment Form'!$H925,\"Y\",\"N\")))","v":""},{"$f":"IF($B918=\"N\",\"\",IF(AND(COUNTIFS('Enrollment Form'!$H$11:$H$1000,'Enrollment Form'!$H925,'Enrollment Form'!$B$11:$B$1000,'Enrollment Form'!$B925)>1,'Enrollment Form'!$H925<>\"\"),\"N\",\"Y\"))","v":""},{"$f":"IF($B918=\"N\",\"\",IF(LEN('Enrollment Form'!$Y925)=0,\"\",IF(LEN('Enrollment Form'!$Y925)<>5,\"N\",\"Y\")))","v":""},{"$f":"IF($B918=\"N\",\"\",IF(LEN('Enrollment Form'!$AD925=0),\"\",IF(LEN('Enrollment Form'!$AD925)<>5,\"N\",\"Y\")))","v":""},{"$f":"IF($B918=\"N\",\"\",IF(LEN('Enrollment Form'!$BL925=0),\"\",IF(LEN('Enrollment Form'!$BL925)<>5,\"N\",\"Y\")))","v":""},{"$f":"IF($B918=\"N\",\"\",IF(LEN('Enrollment Form'!$AE925)=0,\"\",IF(LEN('Enrollment Form'!$AE925)<>10,\"N\",\"Y\")))","v":""},{"$f":"IF($B918=\"N\",\"\",IF(LEN('Enrollment Form'!$AF925)=0,\"\",IF(LEN('Enrollment Form'!$AF925)<>10,\"N\",\"Y\")))","v":""},{"$f":"IF('Enrollment Form'!$O925<>\"Graded\",\"-\",IF(AND('Enrollment Form'!$O925=\"Graded\",'Enrollment Form'!$AO925<>\"\"),\"Y\",\"N\"))","v":"-"},{"$f":"IF($B918=\"N\",\"\",IF(OR('Enrollment Form'!$B925<>\"Subscriber\",'Enrollment Form'!$C925=\"ROC\"),\"-\",IF(AND('Enrollment Form'!$B925=\"Subscriber\",'Enrollment Form'!$C925=\"Enroll\",'Enrollment Form'!$AJ925<>\"\"),\"Y\",\"N\")))","v":""},{"$f":"IF($B918=\"N\",\"\",IF(OR('Enrollment Form'!$B925<>\"Subscriber\",'Enrollment Form'!$C925=\"ROC\"),\"-\",IF(AND('Enrollment Form'!$B925=\"Subscriber\",'Enrollment Form'!$C925=\"Enroll\",'Enrollment Form'!$AK925<>\"\"),\"Y\",\"N\")))","v":""},{"$f":"IF($B918=\"N\",\"\",IF(OR('Enrollment Form'!$B925<>\"Subscriber\",'Enrollment Form'!$C925=\"ROC\"),\"-\",IF(AND('Enrollment Form'!$B925=\"Subscriber\",'Enrollment Form'!$C925=\"Enroll\",'Enrollment Form'!$AL925<>\"\"),\"Y\",\"N\")))","v":""},{"$f":"IF($B918=\"N\",\"\",IF(OR('Enrollment Form'!$B925<>\"Subscriber\",'Enrollment Form'!$C925=\"ROC\"),\"-\",IF(AND('Enrollment Form'!$B925=\"Subscriber\",'Enrollment Form'!$C925=\"Enroll\",'Enrollment Form'!$AM925<>\"\"),\"Y\",\"N\")))","v":""},{"$f":"IF($B918=\"N\",\"\",IF(OR('Enrollment Form'!$B925<>\"Subscriber\",'Enrollment Form'!$C925=\"ROC\"),\"-\",IF(AND('Enrollment Form'!$B925=\"Subscriber\",'Enrollment Form'!$C925=\"Enroll\",'Enrollment Form'!$AN925<>\"\"),\"Y\",\"N\")))","v":""},{"$f":"IF($B918=\"N\",\"\",IF(OR('Enrollment Form'!$B925<>\"Subscriber\",'Enrollment Form'!$C925=\"ROC\"),\"-\",IF(AND('Enrollment Form'!$B925=\"Subscriber\",'Enrollment Form'!$C925=\"Enroll\",'Enrollment Form'!$AP925<>\"\"),\"Y\",\"N\")))","v":""},{"$f":"IF($B918=\"N\",\"\",IF($Q918=\"-\",\"-\",IF(AND($Q918=\"Y\",'Enrollment Form'!$AP925=\"No\"),\"-\",IF(AND($Q918=\"Y\",'Enrollment Form'!$AP925=\"Yes\",'Enrollment Form'!$AQ925<>\"\"),\"Y\",\"N\"))))","v":""},{"$f":"IF($B918=\"N\",\"\",IF(OR('Enrollment Form'!$B925<>\"Subscriber\",'Enrollment Form'!$C925=\"ROC\"),\"-\",IF(AND('Enrollment Form'!$B925=\"Subscriber\",'Enrollment Form'!$C925=\"Enroll\",'Enrollment Form'!$CO925<>\"\"),\"Y\",\"N\")))","v":""},{"$f":"IF($B918=\"N\",\"\",IF($S918=\"-\",\"-\",IF(AND($S918=\"Y\",'Enrollment Form'!$CO925=\"No\"),\"-\",IF(AND($S918=\"Y\",'Enrollment Form'!$CO925=\"Yes\",'Enrollment Form'!$CP925<>\"\"),\"Y\",\"N\"))))","v":""},{"$f":"IF(OR('Enrollment Form'!$AV925=\"Yes\",'Enrollment Form'!$AV925=\"\"),\"-\",IF(AND('Enrollment Form'!$AV925=\"No\",ISERROR(FIND(\"HMO\",VLOOKUP('Enrollment Form'!G925,'Enrollment Form'!H$11:J$1000,3,FALSE),1))=FALSE,COUNTA('Enrollment Form'!$AW925:$AZ925)=4),\"Y\",\"N\"))","v":"-"},{"$f":"IF($B918=\"N\",\"\",IF('Enrollment Form'!$B925=\"Subscriber\",\"-\",IF(COUNTA('Enrollment Form'!$BE925,'Enrollment Form'!$BG925)=2,\"Y\",\"N\")))","v":""},{"$f":"IF($B918=\"N\",\"\",IF(OR('Enrollment Form'!$AU925=\"\",'Enrollment Form'!$AU925=\"No\"),\"-\",IF(AND('Enrollment Form'!$AU925=\"Yes\",COUNTA('Enrollment Form'!$CK925)=1),\"Y\",\"N\")))","v":""},{"$f":"IF(OR('Enrollment Form'!$CK925=\"\",'Enrollment Form'!$CK925=\"No\"),\"-\",IF(COUNTA('Enrollment Form'!$CM925:$CN925)=2,\"Y\",\"N\"))","v":"-"},{"$f":"IF($B918=\"N\",\"\",IF(COUNTIF('Enrollment Form'!$CZ925:$DO925,\"Other\")=COUNTA('Enrollment Form'!$DF925,'Enrollment Form'!$DA925,'Enrollment Form'!$DK925,'Enrollment Form'!$DP925),\"Y\",\"N\"))","v":""},{"$f":"IF($B918=\"N\",\"\",IF(OR('Enrollment Form'!B925<>\"Subscriber\",'Enrollment Form'!C925=\"ROC\",COUNTIF('Enrollment Form'!AS925:AT925,\"Yes\")>=1),\"-\",IF(AND('Enrollment Form'!C925=\"Enroll\",COUNTIF('Enrollment Form'!AS925:AT925,\"No\")=2,'Enrollment Form'!AU925=\"\"),\"N\",\"Y\")))","v":""},{"$f":"IF(OR(B918=\"N\",'Enrollment Form'!B925<>\"Subscriber\",'Enrollment Form'!C925=\"ROC\",'Enrollment Form'!O925<>\"Multiple of Salary\"),\"-\",IF(COUNTA('Enrollment Form'!T925:U925)<2,\"N\",\"Y\"))","v":"-"},{"$f":"IF(B918=\"N\",\"\",IF(OR('Enrollment Form'!C925=\"ROC\",'Enrollment Form'!B925<>\"Subscriber\",'Enrollment Form'!O925=\"Waive\",'Enrollment Form'!O925=\"\"),\"-\",IF('Enrollment Form'!P925=\"\",\"N\",\"Y\")))","v":""},{"$f":"IF($B918=\"N\",\"\",IF(AND('Enrollment Form'!$C925=\"ROC\",'Enrollment Form'!$DS925<>\"\"),\"Y\",IF(AND('Enrollment Form'!$C925=\"ROC\",'Enrollment Form'!$DS925=\"\"),\"N\",IF(AND('Enrollment Form'!$C925=\"Enroll\",'Enrollment Form'!$B925=\"Subscriber\",'Enrollment Form'!$CQ925=\"No\",'Enrollment Form'!$DS925=\"\"),\"N\",IF(AND('Enrollment Form'!$C925=\"Enroll\",'Enrollment Form'!$B925=\"Subscriber\",'Enrollment Form'!$CQ925=\"Yes\"),\"-\",\"Y\")))))","v":""},{"$f":"IF($B918=\"N\",\"\",IF(AND('Enrollment Form'!$C925=\"ROC\",'Enrollment Form'!$DT925<>\"\"),\"Y\",IF(AND('Enrollment Form'!$C925=\"ROC\",'Enrollment Form'!$DT925=\"\"),\"N\",IF(AND('Enrollment Form'!$C925=\"Enroll\",'Enrollment Form'!$B925=\"Subscriber\",'Enrollment Form'!$CQ925=\"No\",'Enrollment Form'!$DT925=\"\"),\"N\",IF(AND('Enrollment Form'!$C925=\"Enroll\",'Enrollment Form'!$B925=\"Subscriber\",'Enrollment Form'!$CQ925=\"Yes\"),\"-\",\"Y\")))))","v":""},{"$f":"IF('Enrollment Form'!AH925=\"\",\"\",IF(ISERROR(SEARCH(\".\",'Enrollment Form'!AH925,SEARCH(\"@\",'Enrollment Form'!AH925))),\"N\",\"Y\"))","v":""},{"$f":"IF(OR($B918=\"N\",'Enrollment Form'!$G925=\"\"),\"\",IF('Enrollment Form'!$B925<>\"Subscriber\",\"-\",IF(COUNTIF('Enrollment Form'!$AS925:$AT925,\"Yes\")=2,\"N\",\"Y\")))","v":""},{"$f":"IF(OR('Enrollment Form'!$CC925=\"\",'Enrollment Form'!$CC925=\"No\"),\"-\",IF(AND('Enrollment Form'!$CC925=\"Yes\",'Enrollment Form'!$CD925=\"\"),\"N\",\"Y\"))","v":"-"},{"$f":"IF(OR('Enrollment Form'!$CE925=\"\",'Enrollment Form'!$CE925=\"No\"),\"-\",IF(AND('Enrollment Form'!$CE925=\"Yes\",'Enrollment Form'!$CF925=\"\"),\"N\",\"Y\"))","v":"-"},{"$f":"IF(OR('Enrollment Form'!$CG925=\"\",'Enrollment Form'!$CG925=\"No\"),\"-\",IF(AND('Enrollment Form'!$CG925=\"Yes\",'Enrollment Form'!$CH925=\"\"),\"N\",\"Y\"))","v":"-"},{"$f":"IF(OR('Enrollment Form'!$CG925=\"\",'Enrollment Form'!$CG925=\"No\"),\"-\",IF(AND('Enrollment Form'!$CG925=\"Yes\",'Enrollment Form'!$CI925=\"\"),\"N\",\"Y\"))","v":"-"},{"$f":"IF('Enrollment Form'!B925<>\"Subscriber\",\"-\",IF(AND('Enrollment Form'!B925=\"Subscriber\",'Enrollment Form'!C925=\"Enroll\",'Enrollment Form'!AA925=\"\"),\"N\",\"Y\"))","v":"-"},{"$f":"IF(OR('Enrollment Form'!B925=\"Subscriber\",'Enrollment Form'!B925=\"\"),\"-\",IF('Enrollment Form'!BI925=\"\",\"N\",\"Y\"))","v":"-"},{"$f":"IF('Enrollment Form'!B925<>\"Subscriber\",\"-\",IF(AND('Enrollment Form'!B925=\"Subscriber\",'Enrollment Form'!G925=\"\"),\"N\",\"Y\"))","v":"-"},{"$f":"IF('Enrollment Form'!A925=\"\",\"\",IF('Enrollment Form'!B925=\"Subscriber\",\"-\",IF(AND('Enrollment Form'!B925<>\"Subscriber\",'Enrollment Form'!G925='Enrollment Form'!H925),\"N\",\"Y\")))","v":""},0]
[926,{"$f":"IF('Enrollment Form'!$A926<>\"\",\"Y\",\"N\")","v":"N"},{"$f":"IF(AND('Enrollment Form'!$B926=\"\",'Enrollment Form'!$C926<>\"\"),\"N\",IF($B919=\"N\",\"\",\"Y\"))","v":""},{"$f":"IF(OR($B919=\"N\",'Enrollment Form'!G926=\"\"),\"\",IF('Enrollment Form'!$B926<>\"Subscriber\",\"\",IF('Enrollment Form'!$G926='Enrollment Form'!$H926,\"Y\",\"N\")))","v":""},{"$f":"IF($B919=\"N\",\"\",IF(AND(COUNTIFS('Enrollment Form'!$H$11:$H$1000,'Enrollment Form'!$H926,'Enrollment Form'!$B$11:$B$1000,'Enrollment Form'!$B926)>1,'Enrollment Form'!$H926<>\"\"),\"N\",\"Y\"))","v":""},{"$f":"IF($B919=\"N\",\"\",IF(LEN('Enrollment Form'!$Y926)=0,\"\",IF(LEN('Enrollment Form'!$Y926)<>5,\"N\",\"Y\")))","v":""},{"$f":"IF($B919=\"N\",\"\",IF(LEN('Enrollment Form'!$AD926=0),\"\",IF(LEN('Enrollment Form'!$AD926)<>5,\"N\",\"Y\")))","v":""},{"$f":"IF($B919=\"N\",\"\",IF(LEN('Enrollment Form'!$BL926=0),\"\",IF(LEN('Enrollment Form'!$BL926)<>5,\"N\",\"Y\")))","v":""},{"$f":"IF($B919=\"N\",\"\",IF(LEN('Enrollment Form'!$AE926)=0,\"\",IF(LEN('Enrollment Form'!$AE926)<>10,\"N\",\"Y\")))","v":""},{"$f":"IF($B919=\"N\",\"\",IF(LEN('Enrollment Form'!$AF926)=0,\"\",IF(LEN('Enrollment Form'!$AF926)<>10,\"N\",\"Y\")))","v":""},{"$f":"IF('Enrollment Form'!$O926<>\"Graded\",\"-\",IF(AND('Enrollment Form'!$O926=\"Graded\",'Enrollment Form'!$AO926<>\"\"),\"Y\",\"N\"))","v":"-"},{"$f":"IF($B919=\"N\",\"\",IF(OR('Enrollment Form'!$B926<>\"Subscriber\",'Enrollment Form'!$C926=\"ROC\"),\"-\",IF(AND('Enrollment Form'!$B926=\"Subscriber\",'Enrollment Form'!$C926=\"Enroll\",'Enrollment Form'!$AJ926<>\"\"),\"Y\",\"N\")))","v":""},{"$f":"IF($B919=\"N\",\"\",IF(OR('Enrollment Form'!$B926<>\"Subscriber\",'Enrollment Form'!$C926=\"ROC\"),\"-\",IF(AND('Enrollment Form'!$B926=\"Subscriber\",'Enrollment Form'!$C926=\"Enroll\",'Enrollment Form'!$AK926<>\"\"),\"Y\",\"N\")))","v":""},{"$f":"IF($B919=\"N\",\"\",IF(OR('Enrollment Form'!$B926<>\"Subscriber\",'Enrollment Form'!$C926=\"ROC\"),\"-\",IF(AND('Enrollment Form'!$B926=\"Subscriber\",'Enrollment Form'!$C926=\"Enroll\",'Enrollment Form'!$AL926<>\"\"),\"Y\",\"N\")))","v":""},{"$f":"IF($B919=\"N\",\"\",IF(OR('Enrollment Form'!$B926<>\"Subscriber\",'Enrollment Form'!$C926=\"ROC\"),\"-\",IF(AND('Enrollment Form'!$B926=\"Subscriber\",'Enrollment Form'!$C926=\"Enroll\",'Enrollment Form'!$AM926<>\"\"),\"Y\",\"N\")))","v":""},{"$f":"IF($B919=\"N\",\"\",IF(OR('Enrollment Form'!$B926<>\"Subscriber\",'Enrollment Form'!$C926=\"ROC\"),\"-\",IF(AND('Enrollment Form'!$B926=\"Subscriber\",'Enrollment Form'!$C926=\"Enroll\",'Enrollment Form'!$AN926<>\"\"),\"Y\",\"N\")))","v":""},{"$f":"IF($B919=\"N\",\"\",IF(OR('Enrollment Form'!$B926<>\"Subscriber\",'Enrollment Form'!$C926=\"ROC\"),\"-\",IF(AND('Enrollment Form'!$B926=\"Subscriber\",'Enrollment Form'!$C926=\"Enroll\",'Enrollment Form'!$AP926<>\"\"),\"Y\",\"N\")))","v":""},{"$f":"IF($B919=\"N\",\"\",IF($Q919=\"-\",\"-\",IF(AND($Q919=\"Y\",'Enrollment Form'!$AP926=\"No\"),\"-\",IF(AND($Q919=\"Y\",'Enrollment Form'!$AP926=\"Yes\",'Enrollment Form'!$AQ926<>\"\"),\"Y\",\"N\"))))","v":""},{"$f":"IF($B919=\"N\",\"\",IF(OR('Enrollment Form'!$B926<>\"Subscriber\",'Enrollment Form'!$C926=\"ROC\"),\"-\",IF(AND('Enrollment Form'!$B926=\"Subscriber\",'Enrollment Form'!$C926=\"Enroll\",'Enrollment Form'!$CO926<>\"\"),\"Y\",\"N\")))","v":""},{"$f":"IF($B919=\"N\",\"\",IF($S919=\"-\",\"-\",IF(AND($S919=\"Y\",'Enrollment Form'!$CO926=\"No\"),\"-\",IF(AND($S919=\"Y\",'Enrollment Form'!$CO926=\"Yes\",'Enrollment Form'!$CP926<>\"\"),\"Y\",\"N\"))))","v":""},{"$f":"IF(OR('Enrollment Form'!$AV926=\"Yes\",'Enrollment Form'!$AV926=\"\"),\"-\",IF(AND('Enrollment Form'!$AV926=\"No\",ISERROR(FIND(\"HMO\",VLOOKUP('Enrollment Form'!G926,'Enrollment Form'!H$11:J$1000,3,FALSE),1))=FALSE,COUNTA('Enrollment Form'!$AW926:$AZ926)=4),\"Y\",\"N\"))","v":"-"},{"$f":"IF($B919=\"N\",\"\",IF('Enrollment Form'!$B926=\"Subscriber\",\"-\",IF(COUNTA('Enrollment Form'!$BE926,'Enrollment Form'!$BG926)=2,\"Y\",\"N\")))","v":""},{"$f":"IF($B919=\"N\",\"\",IF(OR('Enrollment Form'!$AU926=\"\",'Enrollment Form'!$AU926=\"No\"),\"-\",IF(AND('Enrollment Form'!$AU926=\"Yes\",COUNTA('Enrollment Form'!$CK926)=1),\"Y\",\"N\")))","v":""},{"$f":"IF(OR('Enrollment Form'!$CK926=\"\",'Enrollment Form'!$CK926=\"No\"),\"-\",IF(COUNTA('Enrollment Form'!$CM926:$CN926)=2,\"Y\",\"N\"))","v":"-"},{"$f":"IF($B919=\"N\",\"\",IF(COUNTIF('Enrollment Form'!$CZ926:$DO926,\"Other\")=COUNTA('Enrollment Form'!$DF926,'Enrollment Form'!$DA926,'Enrollment Form'!$DK926,'Enrollment Form'!$DP926),\"Y\",\"N\"))","v":""},{"$f":"IF($B919=\"N\",\"\",IF(OR('Enrollment Form'!B926<>\"Subscriber\",'Enrollment Form'!C926=\"ROC\",COUNTIF('Enrollment Form'!AS926:AT926,\"Yes\")>=1),\"-\",IF(AND('Enrollment Form'!C926=\"Enroll\",COUNTIF('Enrollment Form'!AS926:AT926,\"No\")=2,'Enrollment Form'!AU926=\"\"),\"N\",\"Y\")))","v":""},{"$f":"IF(OR(B919=\"N\",'Enrollment Form'!B926<>\"Subscriber\",'Enrollment Form'!C926=\"ROC\",'Enrollment Form'!O926<>\"Multiple of Salary\"),\"-\",IF(COUNTA('Enrollment Form'!T926:U926)<2,\"N\",\"Y\"))","v":"-"},{"$f":"IF(B919=\"N\",\"\",IF(OR('Enrollment Form'!C926=\"ROC\",'Enrollment Form'!B926<>\"Subscriber\",'Enrollment Form'!O926=\"Waive\",'Enrollment Form'!O926=\"\"),\"-\",IF('Enrollment Form'!P926=\"\",\"N\",\"Y\")))","v":""},{"$f":"IF($B919=\"N\",\"\",IF(AND('Enrollment Form'!$C926=\"ROC\",'Enrollment Form'!$DS926<>\"\"),\"Y\",IF(AND('Enrollment Form'!$C926=\"ROC\",'Enrollment Form'!$DS926=\"\"),\"N\",IF(AND('Enrollment Form'!$C926=\"Enroll\",'Enrollment Form'!$B926=\"Subscriber\",'Enrollment Form'!$CQ926=\"No\",'Enrollment Form'!$DS926=\"\"),\"N\",IF(AND('Enrollment Form'!$C926=\"Enroll\",'Enrollment Form'!$B926=\"Subscriber\",'Enrollment Form'!$CQ926=\"Yes\"),\"-\",\"Y\")))))","v":""},{"$f":"IF($B919=\"N\",\"\",IF(AND('Enrollment Form'!$C926=\"ROC\",'Enrollment Form'!$DT926<>\"\"),\"Y\",IF(AND('Enrollment Form'!$C926=\"ROC\",'Enrollment Form'!$DT926=\"\"),\"N\",IF(AND('Enrollment Form'!$C926=\"Enroll\",'Enrollment Form'!$B926=\"Subscriber\",'Enrollment Form'!$CQ926=\"No\",'Enrollment Form'!$DT926=\"\"),\"N\",IF(AND('Enrollment Form'!$C926=\"Enroll\",'Enrollment Form'!$B926=\"Subscriber\",'Enrollment Form'!$CQ926=\"Yes\"),\"-\",\"Y\")))))","v":""},{"$f":"IF('Enrollment Form'!AH926=\"\",\"\",IF(ISERROR(SEARCH(\".\",'Enrollment Form'!AH926,SEARCH(\"@\",'Enrollment Form'!AH926))),\"N\",\"Y\"))","v":""},{"$f":"IF(OR($B919=\"N\",'Enrollment Form'!$G926=\"\"),\"\",IF('Enrollment Form'!$B926<>\"Subscriber\",\"-\",IF(COUNTIF('Enrollment Form'!$AS926:$AT926,\"Yes\")=2,\"N\",\"Y\")))","v":""},{"$f":"IF(OR('Enrollment Form'!$CC926=\"\",'Enrollment Form'!$CC926=\"No\"),\"-\",IF(AND('Enrollment Form'!$CC926=\"Yes\",'Enrollment Form'!$CD926=\"\"),\"N\",\"Y\"))","v":"-"},{"$f":"IF(OR('Enrollment Form'!$CE926=\"\",'Enrollment Form'!$CE926=\"No\"),\"-\",IF(AND('Enrollment Form'!$CE926=\"Yes\",'Enrollment Form'!$CF926=\"\"),\"N\",\"Y\"))","v":"-"},{"$f":"IF(OR('Enrollment Form'!$CG926=\"\",'Enrollment Form'!$CG926=\"No\"),\"-\",IF(AND('Enrollment Form'!$CG926=\"Yes\",'Enrollment Form'!$CH926=\"\"),\"N\",\"Y\"))","v":"-"},{"$f":"IF(OR('Enrollment Form'!$CG926=\"\",'Enrollment Form'!$CG926=\"No\"),\"-\",IF(AND('Enrollment Form'!$CG926=\"Yes\",'Enrollment Form'!$CI926=\"\"),\"N\",\"Y\"))","v":"-"},{"$f":"IF('Enrollment Form'!B926<>\"Subscriber\",\"-\",IF(AND('Enrollment Form'!B926=\"Subscriber\",'Enrollment Form'!C926=\"Enroll\",'Enrollment Form'!AA926=\"\"),\"N\",\"Y\"))","v":"-"},{"$f":"IF(OR('Enrollment Form'!B926=\"Subscriber\",'Enrollment Form'!B926=\"\"),\"-\",IF('Enrollment Form'!BI926=\"\",\"N\",\"Y\"))","v":"-"},{"$f":"IF('Enrollment Form'!B926<>\"Subscriber\",\"-\",IF(AND('Enrollment Form'!B926=\"Subscriber\",'Enrollment Form'!G926=\"\"),\"N\",\"Y\"))","v":"-"},{"$f":"IF('Enrollment Form'!A926=\"\",\"\",IF('Enrollment Form'!B926=\"Subscriber\",\"-\",IF(AND('Enrollment Form'!B926<>\"Subscriber\",'Enrollment Form'!G926='Enrollment Form'!H926),\"N\",\"Y\")))","v":""},0]
[927,{"$f":"IF('Enrollment Form'!$A927<>\"\",\"Y\",\"N\")","v":"N"},{"$f":"IF(AND('Enrollment Form'!$B927=\"\",'Enrollment Form'!$C927<>\"\"),\"N\",IF($B920=\"N\",\"\",\"Y\"))","v":""},{"$f":"IF(OR($B920=\"N\",'Enrollment Form'!G927=\"\"),\"\",IF('Enrollment Form'!$B927<>\"Subscriber\",\"\",IF('Enrollment Form'!$G927='Enrollment Form'!$H927,\"Y\",\"N\")))","v":""},{"$f":"IF($B920=\"N\",\"\",IF(AND(COUNTIFS('Enrollment Form'!$H$11:$H$1000,'Enrollment Form'!$H927,'Enrollment Form'!$B$11:$B$1000,'Enrollment Form'!$B927)>1,'Enrollment Form'!$H927<>\"\"),\"N\",\"Y\"))","v":""},{"$f":"IF($B920=\"N\",\"\",IF(LEN('Enrollment Form'!$Y927)=0,\"\",IF(LEN('Enrollment Form'!$Y927)<>5,\"N\",\"Y\")))","v":""},{"$f":"IF($B920=\"N\",\"\",IF(LEN('Enrollment Form'!$AD927=0),\"\",IF(LEN('Enrollment Form'!$AD927)<>5,\"N\",\"Y\")))","v":""},{"$f":"IF($B920=\"N\",\"\",IF(LEN('Enrollment Form'!$BL927=0),\"\",IF(LEN('Enrollment Form'!$BL927)<>5,\"N\",\"Y\")))","v":""},{"$f":"IF($B920=\"N\",\"\",IF(LEN('Enrollment Form'!$AE927)=0,\"\",IF(LEN('Enrollment Form'!$AE927)<>10,\"N\",\"Y\")))","v":""},{"$f":"IF($B920=\"N\",\"\",IF(LEN('Enrollment Form'!$AF927)=0,\"\",IF(LEN('Enrollment Form'!$AF927)<>10,\"N\",\"Y\")))","v":""},{"$f":"IF('Enrollment Form'!$O927<>\"Graded\",\"-\",IF(AND('Enrollment Form'!$O927=\"Graded\",'Enrollment Form'!$AO927<>\"\"),\"Y\",\"N\"))","v":"-"},{"$f":"IF($B920=\"N\",\"\",IF(OR('Enrollment Form'!$B927<>\"Subscriber\",'Enrollment Form'!$C927=\"ROC\"),\"-\",IF(AND('Enrollment Form'!$B927=\"Subscriber\",'Enrollment Form'!$C927=\"Enroll\",'Enrollment Form'!$AJ927<>\"\"),\"Y\",\"N\")))","v":""},{"$f":"IF($B920=\"N\",\"\",IF(OR('Enrollment Form'!$B927<>\"Subscriber\",'Enrollment Form'!$C927=\"ROC\"),\"-\",IF(AND('Enrollment Form'!$B927=\"Subscriber\",'Enrollment Form'!$C927=\"Enroll\",'Enrollment Form'!$AK927<>\"\"),\"Y\",\"N\")))","v":""},{"$f":"IF($B920=\"N\",\"\",IF(OR('Enrollment Form'!$B927<>\"Subscriber\",'Enrollment Form'!$C927=\"ROC\"),\"-\",IF(AND('Enrollment Form'!$B927=\"Subscriber\",'Enrollment Form'!$C927=\"Enroll\",'Enrollment Form'!$AL927<>\"\"),\"Y\",\"N\")))","v":""},{"$f":"IF($B920=\"N\",\"\",IF(OR('Enrollment Form'!$B927<>\"Subscriber\",'Enrollment Form'!$C927=\"ROC\"),\"-\",IF(AND('Enrollment Form'!$B927=\"Subscriber\",'Enrollment Form'!$C927=\"Enroll\",'Enrollment Form'!$AM927<>\"\"),\"Y\",\"N\")))","v":""},{"$f":"IF($B920=\"N\",\"\",IF(OR('Enrollment Form'!$B927<>\"Subscriber\",'Enrollment Form'!$C927=\"ROC\"),\"-\",IF(AND('Enrollment Form'!$B927=\"Subscriber\",'Enrollment Form'!$C927=\"Enroll\",'Enrollment Form'!$AN927<>\"\"),\"Y\",\"N\")))","v":""},{"$f":"IF($B920=\"N\",\"\",IF(OR('Enrollment Form'!$B927<>\"Subscriber\",'Enrollment Form'!$C927=\"ROC\"),\"-\",IF(AND('Enrollment Form'!$B927=\"Subscriber\",'Enrollment Form'!$C927=\"Enroll\",'Enrollment Form'!$AP927<>\"\"),\"Y\",\"N\")))","v":""},{"$f":"IF($B920=\"N\",\"\",IF($Q920=\"-\",\"-\",IF(AND($Q920=\"Y\",'Enrollment Form'!$AP927=\"No\"),\"-\",IF(AND($Q920=\"Y\",'Enrollment Form'!$AP927=\"Yes\",'Enrollment Form'!$AQ927<>\"\"),\"Y\",\"N\"))))","v":""},{"$f":"IF($B920=\"N\",\"\",IF(OR('Enrollment Form'!$B927<>\"Subscriber\",'Enrollment Form'!$C927=\"ROC\"),\"-\",IF(AND('Enrollment Form'!$B927=\"Subscriber\",'Enrollment Form'!$C927=\"Enroll\",'Enrollment Form'!$CO927<>\"\"),\"Y\",\"N\")))","v":""},{"$f":"IF($B920=\"N\",\"\",IF($S920=\"-\",\"-\",IF(AND($S920=\"Y\",'Enrollment Form'!$CO927=\"No\"),\"-\",IF(AND($S920=\"Y\",'Enrollment Form'!$CO927=\"Yes\",'Enrollment Form'!$CP927<>\"\"),\"Y\",\"N\"))))","v":""},{"$f":"IF(OR('Enrollment Form'!$AV927=\"Yes\",'Enrollment Form'!$AV927=\"\"),\"-\",IF(AND('Enrollment Form'!$AV927=\"No\",ISERROR(FIND(\"HMO\",VLOOKUP('Enrollment Form'!G927,'Enrollment Form'!H$11:J$1000,3,FALSE),1))=FALSE,COUNTA('Enrollment Form'!$AW927:$AZ927)=4),\"Y\",\"N\"))","v":"-"},{"$f":"IF($B920=\"N\",\"\",IF('Enrollment Form'!$B927=\"Subscriber\",\"-\",IF(COUNTA('Enrollment Form'!$BE927,'Enrollment Form'!$BG927)=2,\"Y\",\"N\")))","v":""},{"$f":"IF($B920=\"N\",\"\",IF(OR('Enrollment Form'!$AU927=\"\",'Enrollment Form'!$AU927=\"No\"),\"-\",IF(AND('Enrollment Form'!$AU927=\"Yes\",COUNTA('Enrollment Form'!$CK927)=1),\"Y\",\"N\")))","v":""},{"$f":"IF(OR('Enrollment Form'!$CK927=\"\",'Enrollment Form'!$CK927=\"No\"),\"-\",IF(COUNTA('Enrollment Form'!$CM927:$CN927)=2,\"Y\",\"N\"))","v":"-"},{"$f":"IF($B920=\"N\",\"\",IF(COUNTIF('Enrollment Form'!$CZ927:$DO927,\"Other\")=COUNTA('Enrollment Form'!$DF927,'Enrollment Form'!$DA927,'Enrollment Form'!$DK927,'Enrollment Form'!$DP927),\"Y\",\"N\"))","v":""},{"$f":"IF($B920=\"N\",\"\",IF(OR('Enrollment Form'!B927<>\"Subscriber\",'Enrollment Form'!C927=\"ROC\",COUNTIF('Enrollment Form'!AS927:AT927,\"Yes\")>=1),\"-\",IF(AND('Enrollment Form'!C927=\"Enroll\",COUNTIF('Enrollment Form'!AS927:AT927,\"No\")=2,'Enrollment Form'!AU927=\"\"),\"N\",\"Y\")))","v":""},{"$f":"IF(OR(B920=\"N\",'Enrollment Form'!B927<>\"Subscriber\",'Enrollment Form'!C927=\"ROC\",'Enrollment Form'!O927<>\"Multiple of Salary\"),\"-\",IF(COUNTA('Enrollment Form'!T927:U927)<2,\"N\",\"Y\"))","v":"-"},{"$f":"IF(B920=\"N\",\"\",IF(OR('Enrollment Form'!C927=\"ROC\",'Enrollment Form'!B927<>\"Subscriber\",'Enrollment Form'!O927=\"Waive\",'Enrollment Form'!O927=\"\"),\"-\",IF('Enrollment Form'!P927=\"\",\"N\",\"Y\")))","v":""},{"$f":"IF($B920=\"N\",\"\",IF(AND('Enrollment Form'!$C927=\"ROC\",'Enrollment Form'!$DS927<>\"\"),\"Y\",IF(AND('Enrollment Form'!$C927=\"ROC\",'Enrollment Form'!$DS927=\"\"),\"N\",IF(AND('Enrollment Form'!$C927=\"Enroll\",'Enrollment Form'!$B927=\"Subscriber\",'Enrollment Form'!$CQ927=\"No\",'Enrollment Form'!$DS927=\"\"),\"N\",IF(AND('Enrollment Form'!$C927=\"Enroll\",'Enrollment Form'!$B927=\"Subscriber\",'Enrollment Form'!$CQ927=\"Yes\"),\"-\",\"Y\")))))","v":""},{"$f":"IF($B920=\"N\",\"\",IF(AND('Enrollment Form'!$C927=\"ROC\",'Enrollment Form'!$DT927<>\"\"),\"Y\",IF(AND('Enrollment Form'!$C927=\"ROC\",'Enrollment Form'!$DT927=\"\"),\"N\",IF(AND('Enrollment Form'!$C927=\"Enroll\",'Enrollment Form'!$B927=\"Subscriber\",'Enrollment Form'!$CQ927=\"No\",'Enrollment Form'!$DT927=\"\"),\"N\",IF(AND('Enrollment Form'!$C927=\"Enroll\",'Enrollment Form'!$B927=\"Subscriber\",'Enrollment Form'!$CQ927=\"Yes\"),\"-\",\"Y\")))))","v":""},{"$f":"IF('Enrollment Form'!AH927=\"\",\"\",IF(ISERROR(SEARCH(\".\",'Enrollment Form'!AH927,SEARCH(\"@\",'Enrollment Form'!AH927))),\"N\",\"Y\"))","v":""},{"$f":"IF(OR($B920=\"N\",'Enrollment Form'!$G927=\"\"),\"\",IF('Enrollment Form'!$B927<>\"Subscriber\",\"-\",IF(COUNTIF('Enrollment Form'!$AS927:$AT927,\"Yes\")=2,\"N\",\"Y\")))","v":""},{"$f":"IF(OR('Enrollment Form'!$CC927=\"\",'Enrollment Form'!$CC927=\"No\"),\"-\",IF(AND('Enrollment Form'!$CC927=\"Yes\",'Enrollment Form'!$CD927=\"\"),\"N\",\"Y\"))","v":"-"},{"$f":"IF(OR('Enrollment Form'!$CE927=\"\",'Enrollment Form'!$CE927=\"No\"),\"-\",IF(AND('Enrollment Form'!$CE927=\"Yes\",'Enrollment Form'!$CF927=\"\"),\"N\",\"Y\"))","v":"-"},{"$f":"IF(OR('Enrollment Form'!$CG927=\"\",'Enrollment Form'!$CG927=\"No\"),\"-\",IF(AND('Enrollment Form'!$CG927=\"Yes\",'Enrollment Form'!$CH927=\"\"),\"N\",\"Y\"))","v":"-"},{"$f":"IF(OR('Enrollment Form'!$CG927=\"\",'Enrollment Form'!$CG927=\"No\"),\"-\",IF(AND('Enrollment Form'!$CG927=\"Yes\",'Enrollment Form'!$CI927=\"\"),\"N\",\"Y\"))","v":"-"},{"$f":"IF('Enrollment Form'!B927<>\"Subscriber\",\"-\",IF(AND('Enrollment Form'!B927=\"Subscriber\",'Enrollment Form'!C927=\"Enroll\",'Enrollment Form'!AA927=\"\"),\"N\",\"Y\"))","v":"-"},{"$f":"IF(OR('Enrollment Form'!B927=\"Subscriber\",'Enrollment Form'!B927=\"\"),\"-\",IF('Enrollment Form'!BI927=\"\",\"N\",\"Y\"))","v":"-"},{"$f":"IF('Enrollment Form'!B927<>\"Subscriber\",\"-\",IF(AND('Enrollment Form'!B927=\"Subscriber\",'Enrollment Form'!G927=\"\"),\"N\",\"Y\"))","v":"-"},{"$f":"IF('Enrollment Form'!A927=\"\",\"\",IF('Enrollment Form'!B927=\"Subscriber\",\"-\",IF(AND('Enrollment Form'!B927<>\"Subscriber\",'Enrollment Form'!G927='Enrollment Form'!H927),\"N\",\"Y\")))","v":""},0]
[928,{"$f":"IF('Enrollment Form'!$A928<>\"\",\"Y\",\"N\")","v":"N"},{"$f":"IF(AND('Enrollment Form'!$B928=\"\",'Enrollment Form'!$C928<>\"\"),\"N\",IF($B921=\"N\",\"\",\"Y\"))","v":""},{"$f":"IF(OR($B921=\"N\",'Enrollment Form'!G928=\"\"),\"\",IF('Enrollment Form'!$B928<>\"Subscriber\",\"\",IF('Enrollment Form'!$G928='Enrollment Form'!$H928,\"Y\",\"N\")))","v":""},{"$f":"IF($B921=\"N\",\"\",IF(AND(COUNTIFS('Enrollment Form'!$H$11:$H$1000,'Enrollment Form'!$H928,'Enrollment Form'!$B$11:$B$1000,'Enrollment Form'!$B928)>1,'Enrollment Form'!$H928<>\"\"),\"N\",\"Y\"))","v":""},{"$f":"IF($B921=\"N\",\"\",IF(LEN('Enrollment Form'!$Y928)=0,\"\",IF(LEN('Enrollment Form'!$Y928)<>5,\"N\",\"Y\")))","v":""},{"$f":"IF($B921=\"N\",\"\",IF(LEN('Enrollment Form'!$AD928=0),\"\",IF(LEN('Enrollment Form'!$AD928)<>5,\"N\",\"Y\")))","v":""},{"$f":"IF($B921=\"N\",\"\",IF(LEN('Enrollment Form'!$BL928=0),\"\",IF(LEN('Enrollment Form'!$BL928)<>5,\"N\",\"Y\")))","v":""},{"$f":"IF($B921=\"N\",\"\",IF(LEN('Enrollment Form'!$AE928)=0,\"\",IF(LEN('Enrollment Form'!$AE928)<>10,\"N\",\"Y\")))","v":""},{"$f":"IF($B921=\"N\",\"\",IF(LEN('Enrollment Form'!$AF928)=0,\"\",IF(LEN('Enrollment Form'!$AF928)<>10,\"N\",\"Y\")))","v":""},{"$f":"IF('Enrollment Form'!$O928<>\"Graded\",\"-\",IF(AND('Enrollment Form'!$O928=\"Graded\",'Enrollment Form'!$AO928<>\"\"),\"Y\",\"N\"))","v":"-"},{"$f":"IF($B921=\"N\",\"\",IF(OR('Enrollment Form'!$B928<>\"Subscriber\",'Enrollment Form'!$C928=\"ROC\"),\"-\",IF(AND('Enrollment Form'!$B928=\"Subscriber\",'Enrollment Form'!$C928=\"Enroll\",'Enrollment Form'!$AJ928<>\"\"),\"Y\",\"N\")))","v":""},{"$f":"IF($B921=\"N\",\"\",IF(OR('Enrollment Form'!$B928<>\"Subscriber\",'Enrollment Form'!$C928=\"ROC\"),\"-\",IF(AND('Enrollment Form'!$B928=\"Subscriber\",'Enrollment Form'!$C928=\"Enroll\",'Enrollment Form'!$AK928<>\"\"),\"Y\",\"N\")))","v":""},{"$f":"IF($B921=\"N\",\"\",IF(OR('Enrollment Form'!$B928<>\"Subscriber\",'Enrollment Form'!$C928=\"ROC\"),\"-\",IF(AND('Enrollment Form'!$B928=\"Subscriber\",'Enrollment Form'!$C928=\"Enroll\",'Enrollment Form'!$AL928<>\"\"),\"Y\",\"N\")))","v":""},{"$f":"IF($B921=\"N\",\"\",IF(OR('Enrollment Form'!$B928<>\"Subscriber\",'Enrollment Form'!$C928=\"ROC\"),\"-\",IF(AND('Enrollment Form'!$B928=\"Subscriber\",'Enrollment Form'!$C928=\"Enroll\",'Enrollment Form'!$AM928<>\"\"),\"Y\",\"N\")))","v":""},{"$f":"IF($B921=\"N\",\"\",IF(OR('Enrollment Form'!$B928<>\"Subscriber\",'Enrollment Form'!$C928=\"ROC\"),\"-\",IF(AND('Enrollment Form'!$B928=\"Subscriber\",'Enrollment Form'!$C928=\"Enroll\",'Enrollment Form'!$AN928<>\"\"),\"Y\",\"N\")))","v":""},{"$f":"IF($B921=\"N\",\"\",IF(OR('Enrollment Form'!$B928<>\"Subscriber\",'Enrollment Form'!$C928=\"ROC\"),\"-\",IF(AND('Enrollment Form'!$B928=\"Subscriber\",'Enrollment Form'!$C928=\"Enroll\",'Enrollment Form'!$AP928<>\"\"),\"Y\",\"N\")))","v":""},{"$f":"IF($B921=\"N\",\"\",IF($Q921=\"-\",\"-\",IF(AND($Q921=\"Y\",'Enrollment Form'!$AP928=\"No\"),\"-\",IF(AND($Q921=\"Y\",'Enrollment Form'!$AP928=\"Yes\",'Enrollment Form'!$AQ928<>\"\"),\"Y\",\"N\"))))","v":""},{"$f":"IF($B921=\"N\",\"\",IF(OR('Enrollment Form'!$B928<>\"Subscriber\",'Enrollment Form'!$C928=\"ROC\"),\"-\",IF(AND('Enrollment Form'!$B928=\"Subscriber\",'Enrollment Form'!$C928=\"Enroll\",'Enrollment Form'!$CO928<>\"\"),\"Y\",\"N\")))","v":""},{"$f":"IF($B921=\"N\",\"\",IF($S921=\"-\",\"-\",IF(AND($S921=\"Y\",'Enrollment Form'!$CO928=\"No\"),\"-\",IF(AND($S921=\"Y\",'Enrollment Form'!$CO928=\"Yes\",'Enrollment Form'!$CP928<>\"\"),\"Y\",\"N\"))))","v":""},{"$f":"IF(OR('Enrollment Form'!$AV928=\"Yes\",'Enrollment Form'!$AV928=\"\"),\"-\",IF(AND('Enrollment Form'!$AV928=\"No\",ISERROR(FIND(\"HMO\",VLOOKUP('Enrollment Form'!G928,'Enrollment Form'!H$11:J$1000,3,FALSE),1))=FALSE,COUNTA('Enrollment Form'!$AW928:$AZ928)=4),\"Y\",\"N\"))","v":"-"},{"$f":"IF($B921=\"N\",\"\",IF('Enrollment Form'!$B928=\"Subscriber\",\"-\",IF(COUNTA('Enrollment Form'!$BE928,'Enrollment Form'!$BG928)=2,\"Y\",\"N\")))","v":""},{"$f":"IF($B921=\"N\",\"\",IF(OR('Enrollment Form'!$AU928=\"\",'Enrollment Form'!$AU928=\"No\"),\"-\",IF(AND('Enrollment Form'!$AU928=\"Yes\",COUNTA('Enrollment Form'!$CK928)=1),\"Y\",\"N\")))","v":""},{"$f":"IF(OR('Enrollment Form'!$CK928=\"\",'Enrollment Form'!$CK928=\"No\"),\"-\",IF(COUNTA('Enrollment Form'!$CM928:$CN928)=2,\"Y\",\"N\"))","v":"-"},{"$f":"IF($B921=\"N\",\"\",IF(COUNTIF('Enrollment Form'!$CZ928:$DO928,\"Other\")=COUNTA('Enrollment Form'!$DF928,'Enrollment Form'!$DA928,'Enrollment Form'!$DK928,'Enrollment Form'!$DP928),\"Y\",\"N\"))","v":""},{"$f":"IF($B921=\"N\",\"\",IF(OR('Enrollment Form'!B928<>\"Subscriber\",'Enrollment Form'!C928=\"ROC\",COUNTIF('Enrollment Form'!AS928:AT928,\"Yes\")>=1),\"-\",IF(AND('Enrollment Form'!C928=\"Enroll\",COUNTIF('Enrollment Form'!AS928:AT928,\"No\")=2,'Enrollment Form'!AU928=\"\"),\"N\",\"Y\")))","v":""},{"$f":"IF(OR(B921=\"N\",'Enrollment Form'!B928<>\"Subscriber\",'Enrollment Form'!C928=\"ROC\",'Enrollment Form'!O928<>\"Multiple of Salary\"),\"-\",IF(COUNTA('Enrollment Form'!T928:U928)<2,\"N\",\"Y\"))","v":"-"},{"$f":"IF(B921=\"N\",\"\",IF(OR('Enrollment Form'!C928=\"ROC\",'Enrollment Form'!B928<>\"Subscriber\",'Enrollment Form'!O928=\"Waive\",'Enrollment Form'!O928=\"\"),\"-\",IF('Enrollment Form'!P928=\"\",\"N\",\"Y\")))","v":""},{"$f":"IF($B921=\"N\",\"\",IF(AND('Enrollment Form'!$C928=\"ROC\",'Enrollment Form'!$DS928<>\"\"),\"Y\",IF(AND('Enrollment Form'!$C928=\"ROC\",'Enrollment Form'!$DS928=\"\"),\"N\",IF(AND('Enrollment Form'!$C928=\"Enroll\",'Enrollment Form'!$B928=\"Subscriber\",'Enrollment Form'!$CQ928=\"No\",'Enrollment Form'!$DS928=\"\"),\"N\",IF(AND('Enrollment Form'!$C928=\"Enroll\",'Enrollment Form'!$B928=\"Subscriber\",'Enrollment Form'!$CQ928=\"Yes\"),\"-\",\"Y\")))))","v":""},{"$f":"IF($B921=\"N\",\"\",IF(AND('Enrollment Form'!$C928=\"ROC\",'Enrollment Form'!$DT928<>\"\"),\"Y\",IF(AND('Enrollment Form'!$C928=\"ROC\",'Enrollment Form'!$DT928=\"\"),\"N\",IF(AND('Enrollment Form'!$C928=\"Enroll\",'Enrollment Form'!$B928=\"Subscriber\",'Enrollment Form'!$CQ928=\"No\",'Enrollment Form'!$DT928=\"\"),\"N\",IF(AND('Enrollment Form'!$C928=\"Enroll\",'Enrollment Form'!$B928=\"Subscriber\",'Enrollment Form'!$CQ928=\"Yes\"),\"-\",\"Y\")))))","v":""},{"$f":"IF('Enrollment Form'!AH928=\"\",\"\",IF(ISERROR(SEARCH(\".\",'Enrollment Form'!AH928,SEARCH(\"@\",'Enrollment Form'!AH928))),\"N\",\"Y\"))","v":""},{"$f":"IF(OR($B921=\"N\",'Enrollment Form'!$G928=\"\"),\"\",IF('Enrollment Form'!$B928<>\"Subscriber\",\"-\",IF(COUNTIF('Enrollment Form'!$AS928:$AT928,\"Yes\")=2,\"N\",\"Y\")))","v":""},{"$f":"IF(OR('Enrollment Form'!$CC928=\"\",'Enrollment Form'!$CC928=\"No\"),\"-\",IF(AND('Enrollment Form'!$CC928=\"Yes\",'Enrollment Form'!$CD928=\"\"),\"N\",\"Y\"))","v":"-"},{"$f":"IF(OR('Enrollment Form'!$CE928=\"\",'Enrollment Form'!$CE928=\"No\"),\"-\",IF(AND('Enrollment Form'!$CE928=\"Yes\",'Enrollment Form'!$CF928=\"\"),\"N\",\"Y\"))","v":"-"},{"$f":"IF(OR('Enrollment Form'!$CG928=\"\",'Enrollment Form'!$CG928=\"No\"),\"-\",IF(AND('Enrollment Form'!$CG928=\"Yes\",'Enrollment Form'!$CH928=\"\"),\"N\",\"Y\"))","v":"-"},{"$f":"IF(OR('Enrollment Form'!$CG928=\"\",'Enrollment Form'!$CG928=\"No\"),\"-\",IF(AND('Enrollment Form'!$CG928=\"Yes\",'Enrollment Form'!$CI928=\"\"),\"N\",\"Y\"))","v":"-"},{"$f":"IF('Enrollment Form'!B928<>\"Subscriber\",\"-\",IF(AND('Enrollment Form'!B928=\"Subscriber\",'Enrollment Form'!C928=\"Enroll\",'Enrollment Form'!AA928=\"\"),\"N\",\"Y\"))","v":"-"},{"$f":"IF(OR('Enrollment Form'!B928=\"Subscriber\",'Enrollment Form'!B928=\"\"),\"-\",IF('Enrollment Form'!BI928=\"\",\"N\",\"Y\"))","v":"-"},{"$f":"IF('Enrollment Form'!B928<>\"Subscriber\",\"-\",IF(AND('Enrollment Form'!B928=\"Subscriber\",'Enrollment Form'!G928=\"\"),\"N\",\"Y\"))","v":"-"},{"$f":"IF('Enrollment Form'!A928=\"\",\"\",IF('Enrollment Form'!B928=\"Subscriber\",\"-\",IF(AND('Enrollment Form'!B928<>\"Subscriber\",'Enrollment Form'!G928='Enrollment Form'!H928),\"N\",\"Y\")))","v":""},0]
[929,{"$f":"IF('Enrollment Form'!$A929<>\"\",\"Y\",\"N\")","v":"N"},{"$f":"IF(AND('Enrollment Form'!$B929=\"\",'Enrollment Form'!$C929<>\"\"),\"N\",IF($B922=\"N\",\"\",\"Y\"))","v":""},{"$f":"IF(OR($B922=\"N\",'Enrollment Form'!G929=\"\"),\"\",IF('Enrollment Form'!$B929<>\"Subscriber\",\"\",IF('Enrollment Form'!$G929='Enrollment Form'!$H929,\"Y\",\"N\")))","v":""},{"$f":"IF($B922=\"N\",\"\",IF(AND(COUNTIFS('Enrollment Form'!$H$11:$H$1000,'Enrollment Form'!$H929,'Enrollment Form'!$B$11:$B$1000,'Enrollment Form'!$B929)>1,'Enrollment Form'!$H929<>\"\"),\"N\",\"Y\"))","v":""},{"$f":"IF($B922=\"N\",\"\",IF(LEN('Enrollment Form'!$Y929)=0,\"\",IF(LEN('Enrollment Form'!$Y929)<>5,\"N\",\"Y\")))","v":""},{"$f":"IF($B922=\"N\",\"\",IF(LEN('Enrollment Form'!$AD929=0),\"\",IF(LEN('Enrollment Form'!$AD929)<>5,\"N\",\"Y\")))","v":""},{"$f":"IF($B922=\"N\",\"\",IF(LEN('Enrollment Form'!$BL929=0),\"\",IF(LEN('Enrollment Form'!$BL929)<>5,\"N\",\"Y\")))","v":""},{"$f":"IF($B922=\"N\",\"\",IF(LEN('Enrollment Form'!$AE929)=0,\"\",IF(LEN('Enrollment Form'!$AE929)<>10,\"N\",\"Y\")))","v":""},{"$f":"IF($B922=\"N\",\"\",IF(LEN('Enrollment Form'!$AF929)=0,\"\",IF(LEN('Enrollment Form'!$AF929)<>10,\"N\",\"Y\")))","v":""},{"$f":"IF('Enrollment Form'!$O929<>\"Graded\",\"-\",IF(AND('Enrollment Form'!$O929=\"Graded\",'Enrollment Form'!$AO929<>\"\"),\"Y\",\"N\"))","v":"-"},{"$f":"IF($B922=\"N\",\"\",IF(OR('Enrollment Form'!$B929<>\"Subscriber\",'Enrollment Form'!$C929=\"ROC\"),\"-\",IF(AND('Enrollment Form'!$B929=\"Subscriber\",'Enrollment Form'!$C929=\"Enroll\",'Enrollment Form'!$AJ929<>\"\"),\"Y\",\"N\")))","v":""},{"$f":"IF($B922=\"N\",\"\",IF(OR('Enrollment Form'!$B929<>\"Subscriber\",'Enrollment Form'!$C929=\"ROC\"),\"-\",IF(AND('Enrollment Form'!$B929=\"Subscriber\",'Enrollment Form'!$C929=\"Enroll\",'Enrollment Form'!$AK929<>\"\"),\"Y\",\"N\")))","v":""},{"$f":"IF($B922=\"N\",\"\",IF(OR('Enrollment Form'!$B929<>\"Subscriber\",'Enrollment Form'!$C929=\"ROC\"),\"-\",IF(AND('Enrollment Form'!$B929=\"Subscriber\",'Enrollment Form'!$C929=\"Enroll\",'Enrollment Form'!$AL929<>\"\"),\"Y\",\"N\")))","v":""},{"$f":"IF($B922=\"N\",\"\",IF(OR('Enrollment Form'!$B929<>\"Subscriber\",'Enrollment Form'!$C929=\"ROC\"),\"-\",IF(AND('Enrollment Form'!$B929=\"Subscriber\",'Enrollment Form'!$C929=\"Enroll\",'Enrollment Form'!$AM929<>\"\"),\"Y\",\"N\")))","v":""},{"$f":"IF($B922=\"N\",\"\",IF(OR('Enrollment Form'!$B929<>\"Subscriber\",'Enrollment Form'!$C929=\"ROC\"),\"-\",IF(AND('Enrollment Form'!$B929=\"Subscriber\",'Enrollment Form'!$C929=\"Enroll\",'Enrollment Form'!$AN929<>\"\"),\"Y\",\"N\")))","v":""},{"$f":"IF($B922=\"N\",\"\",IF(OR('Enrollment Form'!$B929<>\"Subscriber\",'Enrollment Form'!$C929=\"ROC\"),\"-\",IF(AND('Enrollment Form'!$B929=\"Subscriber\",'Enrollment Form'!$C929=\"Enroll\",'Enrollment Form'!$AP929<>\"\"),\"Y\",\"N\")))","v":""},{"$f":"IF($B922=\"N\",\"\",IF($Q922=\"-\",\"-\",IF(AND($Q922=\"Y\",'Enrollment Form'!$AP929=\"No\"),\"-\",IF(AND($Q922=\"Y\",'Enrollment Form'!$AP929=\"Yes\",'Enrollment Form'!$AQ929<>\"\"),\"Y\",\"N\"))))","v":""},{"$f":"IF($B922=\"N\",\"\",IF(OR('Enrollment Form'!$B929<>\"Subscriber\",'Enrollment Form'!$C929=\"ROC\"),\"-\",IF(AND('Enrollment Form'!$B929=\"Subscriber\",'Enrollment Form'!$C929=\"Enroll\",'Enrollment Form'!$CO929<>\"\"),\"Y\",\"N\")))","v":""},{"$f":"IF($B922=\"N\",\"\",IF($S922=\"-\",\"-\",IF(AND($S922=\"Y\",'Enrollment Form'!$CO929=\"No\"),\"-\",IF(AND($S922=\"Y\",'Enrollment Form'!$CO929=\"Yes\",'Enrollment Form'!$CP929<>\"\"),\"Y\",\"N\"))))","v":""},{"$f":"IF(OR('Enrollment Form'!$AV929=\"Yes\",'Enrollment Form'!$AV929=\"\"),\"-\",IF(AND('Enrollment Form'!$AV929=\"No\",ISERROR(FIND(\"HMO\",VLOOKUP('Enrollment Form'!G929,'Enrollment Form'!H$11:J$1000,3,FALSE),1))=FALSE,COUNTA('Enrollment Form'!$AW929:$AZ929)=4),\"Y\",\"N\"))","v":"-"},{"$f":"IF($B922=\"N\",\"\",IF('Enrollment Form'!$B929=\"Subscriber\",\"-\",IF(COUNTA('Enrollment Form'!$BE929,'Enrollment Form'!$BG929)=2,\"Y\",\"N\")))","v":""},{"$f":"IF($B922=\"N\",\"\",IF(OR('Enrollment Form'!$AU929=\"\",'Enrollment Form'!$AU929=\"No\"),\"-\",IF(AND('Enrollment Form'!$AU929=\"Yes\",COUNTA('Enrollment Form'!$CK929)=1),\"Y\",\"N\")))","v":""},{"$f":"IF(OR('Enrollment Form'!$CK929=\"\",'Enrollment Form'!$CK929=\"No\"),\"-\",IF(COUNTA('Enrollment Form'!$CM929:$CN929)=2,\"Y\",\"N\"))","v":"-"},{"$f":"IF($B922=\"N\",\"\",IF(COUNTIF('Enrollment Form'!$CZ929:$DO929,\"Other\")=COUNTA('Enrollment Form'!$DF929,'Enrollment Form'!$DA929,'Enrollment Form'!$DK929,'Enrollment Form'!$DP929),\"Y\",\"N\"))","v":""},{"$f":"IF($B922=\"N\",\"\",IF(OR('Enrollment Form'!B929<>\"Subscriber\",'Enrollment Form'!C929=\"ROC\",COUNTIF('Enrollment Form'!AS929:AT929,\"Yes\")>=1),\"-\",IF(AND('Enrollment Form'!C929=\"Enroll\",COUNTIF('Enrollment Form'!AS929:AT929,\"No\")=2,'Enrollment Form'!AU929=\"\"),\"N\",\"Y\")))","v":""},{"$f":"IF(OR(B922=\"N\",'Enrollment Form'!B929<>\"Subscriber\",'Enrollment Form'!C929=\"ROC\",'Enrollment Form'!O929<>\"Multiple of Salary\"),\"-\",IF(COUNTA('Enrollment Form'!T929:U929)<2,\"N\",\"Y\"))","v":"-"},{"$f":"IF(B922=\"N\",\"\",IF(OR('Enrollment Form'!C929=\"ROC\",'Enrollment Form'!B929<>\"Subscriber\",'Enrollment Form'!O929=\"Waive\",'Enrollment Form'!O929=\"\"),\"-\",IF('Enrollment Form'!P929=\"\",\"N\",\"Y\")))","v":""},{"$f":"IF($B922=\"N\",\"\",IF(AND('Enrollment Form'!$C929=\"ROC\",'Enrollment Form'!$DS929<>\"\"),\"Y\",IF(AND('Enrollment Form'!$C929=\"ROC\",'Enrollment Form'!$DS929=\"\"),\"N\",IF(AND('Enrollment Form'!$C929=\"Enroll\",'Enrollment Form'!$B929=\"Subscriber\",'Enrollment Form'!$CQ929=\"No\",'Enrollment Form'!$DS929=\"\"),\"N\",IF(AND('Enrollment Form'!$C929=\"Enroll\",'Enrollment Form'!$B929=\"Subscriber\",'Enrollment Form'!$CQ929=\"Yes\"),\"-\",\"Y\")))))","v":""},{"$f":"IF($B922=\"N\",\"\",IF(AND('Enrollment Form'!$C929=\"ROC\",'Enrollment Form'!$DT929<>\"\"),\"Y\",IF(AND('Enrollment Form'!$C929=\"ROC\",'Enrollment Form'!$DT929=\"\"),\"N\",IF(AND('Enrollment Form'!$C929=\"Enroll\",'Enrollment Form'!$B929=\"Subscriber\",'Enrollment Form'!$CQ929=\"No\",'Enrollment Form'!$DT929=\"\"),\"N\",IF(AND('Enrollment Form'!$C929=\"Enroll\",'Enrollment Form'!$B929=\"Subscriber\",'Enrollment Form'!$CQ929=\"Yes\"),\"-\",\"Y\")))))","v":""},{"$f":"IF('Enrollment Form'!AH929=\"\",\"\",IF(ISERROR(SEARCH(\".\",'Enrollment Form'!AH929,SEARCH(\"@\",'Enrollment Form'!AH929))),\"N\",\"Y\"))","v":""},{"$f":"IF(OR($B922=\"N\",'Enrollment Form'!$G929=\"\"),\"\",IF('Enrollment Form'!$B929<>\"Subscriber\",\"-\",IF(COUNTIF('Enrollment Form'!$AS929:$AT929,\"Yes\")=2,\"N\",\"Y\")))","v":""},{"$f":"IF(OR('Enrollment Form'!$CC929=\"\",'Enrollment Form'!$CC929=\"No\"),\"-\",IF(AND('Enrollment Form'!$CC929=\"Yes\",'Enrollment Form'!$CD929=\"\"),\"N\",\"Y\"))","v":"-"},{"$f":"IF(OR('Enrollment Form'!$CE929=\"\",'Enrollment Form'!$CE929=\"No\"),\"-\",IF(AND('Enrollment Form'!$CE929=\"Yes\",'Enrollment Form'!$CF929=\"\"),\"N\",\"Y\"))","v":"-"},{"$f":"IF(OR('Enrollment Form'!$CG929=\"\",'Enrollment Form'!$CG929=\"No\"),\"-\",IF(AND('Enrollment Form'!$CG929=\"Yes\",'Enrollment Form'!$CH929=\"\"),\"N\",\"Y\"))","v":"-"},{"$f":"IF(OR('Enrollment Form'!$CG929=\"\",'Enrollment Form'!$CG929=\"No\"),\"-\",IF(AND('Enrollment Form'!$CG929=\"Yes\",'Enrollment Form'!$CI929=\"\"),\"N\",\"Y\"))","v":"-"},{"$f":"IF('Enrollment Form'!B929<>\"Subscriber\",\"-\",IF(AND('Enrollment Form'!B929=\"Subscriber\",'Enrollment Form'!C929=\"Enroll\",'Enrollment Form'!AA929=\"\"),\"N\",\"Y\"))","v":"-"},{"$f":"IF(OR('Enrollment Form'!B929=\"Subscriber\",'Enrollment Form'!B929=\"\"),\"-\",IF('Enrollment Form'!BI929=\"\",\"N\",\"Y\"))","v":"-"},{"$f":"IF('Enrollment Form'!B929<>\"Subscriber\",\"-\",IF(AND('Enrollment Form'!B929=\"Subscriber\",'Enrollment Form'!G929=\"\"),\"N\",\"Y\"))","v":"-"},{"$f":"IF('Enrollment Form'!A929=\"\",\"\",IF('Enrollment Form'!B929=\"Subscriber\",\"-\",IF(AND('Enrollment Form'!B929<>\"Subscriber\",'Enrollment Form'!G929='Enrollment Form'!H929),\"N\",\"Y\")))","v":""},0]
[930,{"$f":"IF('Enrollment Form'!$A930<>\"\",\"Y\",\"N\")","v":"N"},{"$f":"IF(AND('Enrollment Form'!$B930=\"\",'Enrollment Form'!$C930<>\"\"),\"N\",IF($B923=\"N\",\"\",\"Y\"))","v":""},{"$f":"IF(OR($B923=\"N\",'Enrollment Form'!G930=\"\"),\"\",IF('Enrollment Form'!$B930<>\"Subscriber\",\"\",IF('Enrollment Form'!$G930='Enrollment Form'!$H930,\"Y\",\"N\")))","v":""},{"$f":"IF($B923=\"N\",\"\",IF(AND(COUNTIFS('Enrollment Form'!$H$11:$H$1000,'Enrollment Form'!$H930,'Enrollment Form'!$B$11:$B$1000,'Enrollment Form'!$B930)>1,'Enrollment Form'!$H930<>\"\"),\"N\",\"Y\"))","v":""},{"$f":"IF($B923=\"N\",\"\",IF(LEN('Enrollment Form'!$Y930)=0,\"\",IF(LEN('Enrollment Form'!$Y930)<>5,\"N\",\"Y\")))","v":""},{"$f":"IF($B923=\"N\",\"\",IF(LEN('Enrollment Form'!$AD930=0),\"\",IF(LEN('Enrollment Form'!$AD930)<>5,\"N\",\"Y\")))","v":""},{"$f":"IF($B923=\"N\",\"\",IF(LEN('Enrollment Form'!$BL930=0),\"\",IF(LEN('Enrollment Form'!$BL930)<>5,\"N\",\"Y\")))","v":""},{"$f":"IF($B923=\"N\",\"\",IF(LEN('Enrollment Form'!$AE930)=0,\"\",IF(LEN('Enrollment Form'!$AE930)<>10,\"N\",\"Y\")))","v":""},{"$f":"IF($B923=\"N\",\"\",IF(LEN('Enrollment Form'!$AF930)=0,\"\",IF(LEN('Enrollment Form'!$AF930)<>10,\"N\",\"Y\")))","v":""},{"$f":"IF('Enrollment Form'!$O930<>\"Graded\",\"-\",IF(AND('Enrollment Form'!$O930=\"Graded\",'Enrollment Form'!$AO930<>\"\"),\"Y\",\"N\"))","v":"-"},{"$f":"IF($B923=\"N\",\"\",IF(OR('Enrollment Form'!$B930<>\"Subscriber\",'Enrollment Form'!$C930=\"ROC\"),\"-\",IF(AND('Enrollment Form'!$B930=\"Subscriber\",'Enrollment Form'!$C930=\"Enroll\",'Enrollment Form'!$AJ930<>\"\"),\"Y\",\"N\")))","v":""},{"$f":"IF($B923=\"N\",\"\",IF(OR('Enrollment Form'!$B930<>\"Subscriber\",'Enrollment Form'!$C930=\"ROC\"),\"-\",IF(AND('Enrollment Form'!$B930=\"Subscriber\",'Enrollment Form'!$C930=\"Enroll\",'Enrollment Form'!$AK930<>\"\"),\"Y\",\"N\")))","v":""},{"$f":"IF($B923=\"N\",\"\",IF(OR('Enrollment Form'!$B930<>\"Subscriber\",'Enrollment Form'!$C930=\"ROC\"),\"-\",IF(AND('Enrollment Form'!$B930=\"Subscriber\",'Enrollment Form'!$C930=\"Enroll\",'Enrollment Form'!$AL930<>\"\"),\"Y\",\"N\")))","v":""},{"$f":"IF($B923=\"N\",\"\",IF(OR('Enrollment Form'!$B930<>\"Subscriber\",'Enrollment Form'!$C930=\"ROC\"),\"-\",IF(AND('Enrollment Form'!$B930=\"Subscriber\",'Enrollment Form'!$C930=\"Enroll\",'Enrollment Form'!$AM930<>\"\"),\"Y\",\"N\")))","v":""},{"$f":"IF($B923=\"N\",\"\",IF(OR('Enrollment Form'!$B930<>\"Subscriber\",'Enrollment Form'!$C930=\"ROC\"),\"-\",IF(AND('Enrollment Form'!$B930=\"Subscriber\",'Enrollment Form'!$C930=\"Enroll\",'Enrollment Form'!$AN930<>\"\"),\"Y\",\"N\")))","v":""},{"$f":"IF($B923=\"N\",\"\",IF(OR('Enrollment Form'!$B930<>\"Subscriber\",'Enrollment Form'!$C930=\"ROC\"),\"-\",IF(AND('Enrollment Form'!$B930=\"Subscriber\",'Enrollment Form'!$C930=\"Enroll\",'Enrollment Form'!$AP930<>\"\"),\"Y\",\"N\")))","v":""},{"$f":"IF($B923=\"N\",\"\",IF($Q923=\"-\",\"-\",IF(AND($Q923=\"Y\",'Enrollment Form'!$AP930=\"No\"),\"-\",IF(AND($Q923=\"Y\",'Enrollment Form'!$AP930=\"Yes\",'Enrollment Form'!$AQ930<>\"\"),\"Y\",\"N\"))))","v":""},{"$f":"IF($B923=\"N\",\"\",IF(OR('Enrollment Form'!$B930<>\"Subscriber\",'Enrollment Form'!$C930=\"ROC\"),\"-\",IF(AND('Enrollment Form'!$B930=\"Subscriber\",'Enrollment Form'!$C930=\"Enroll\",'Enrollment Form'!$CO930<>\"\"),\"Y\",\"N\")))","v":""},{"$f":"IF($B923=\"N\",\"\",IF($S923=\"-\",\"-\",IF(AND($S923=\"Y\",'Enrollment Form'!$CO930=\"No\"),\"-\",IF(AND($S923=\"Y\",'Enrollment Form'!$CO930=\"Yes\",'Enrollment Form'!$CP930<>\"\"),\"Y\",\"N\"))))","v":""},{"$f":"IF(OR('Enrollment Form'!$AV930=\"Yes\",'Enrollment Form'!$AV930=\"\"),\"-\",IF(AND('Enrollment Form'!$AV930=\"No\",ISERROR(FIND(\"HMO\",VLOOKUP('Enrollment Form'!G930,'Enrollment Form'!H$11:J$1000,3,FALSE),1))=FALSE,COUNTA('Enrollment Form'!$AW930:$AZ930)=4),\"Y\",\"N\"))","v":"-"},{"$f":"IF($B923=\"N\",\"\",IF('Enrollment Form'!$B930=\"Subscriber\",\"-\",IF(COUNTA('Enrollment Form'!$BE930,'Enrollment Form'!$BG930)=2,\"Y\",\"N\")))","v":""},{"$f":"IF($B923=\"N\",\"\",IF(OR('Enrollment Form'!$AU930=\"\",'Enrollment Form'!$AU930=\"No\"),\"-\",IF(AND('Enrollment Form'!$AU930=\"Yes\",COUNTA('Enrollment Form'!$CK930)=1),\"Y\",\"N\")))","v":""},{"$f":"IF(OR('Enrollment Form'!$CK930=\"\",'Enrollment Form'!$CK930=\"No\"),\"-\",IF(COUNTA('Enrollment Form'!$CM930:$CN930)=2,\"Y\",\"N\"))","v":"-"},{"$f":"IF($B923=\"N\",\"\",IF(COUNTIF('Enrollment Form'!$CZ930:$DO930,\"Other\")=COUNTA('Enrollment Form'!$DF930,'Enrollment Form'!$DA930,'Enrollment Form'!$DK930,'Enrollment Form'!$DP930),\"Y\",\"N\"))","v":""},{"$f":"IF($B923=\"N\",\"\",IF(OR('Enrollment Form'!B930<>\"Subscriber\",'Enrollment Form'!C930=\"ROC\",COUNTIF('Enrollment Form'!AS930:AT930,\"Yes\")>=1),\"-\",IF(AND('Enrollment Form'!C930=\"Enroll\",COUNTIF('Enrollment Form'!AS930:AT930,\"No\")=2,'Enrollment Form'!AU930=\"\"),\"N\",\"Y\")))","v":""},{"$f":"IF(OR(B923=\"N\",'Enrollment Form'!B930<>\"Subscriber\",'Enrollment Form'!C930=\"ROC\",'Enrollment Form'!O930<>\"Multiple of Salary\"),\"-\",IF(COUNTA('Enrollment Form'!T930:U930)<2,\"N\",\"Y\"))","v":"-"},{"$f":"IF(B923=\"N\",\"\",IF(OR('Enrollment Form'!C930=\"ROC\",'Enrollment Form'!B930<>\"Subscriber\",'Enrollment Form'!O930=\"Waive\",'Enrollment Form'!O930=\"\"),\"-\",IF('Enrollment Form'!P930=\"\",\"N\",\"Y\")))","v":""},{"$f":"IF($B923=\"N\",\"\",IF(AND('Enrollment Form'!$C930=\"ROC\",'Enrollment Form'!$DS930<>\"\"),\"Y\",IF(AND('Enrollment Form'!$C930=\"ROC\",'Enrollment Form'!$DS930=\"\"),\"N\",IF(AND('Enrollment Form'!$C930=\"Enroll\",'Enrollment Form'!$B930=\"Subscriber\",'Enrollment Form'!$CQ930=\"No\",'Enrollment Form'!$DS930=\"\"),\"N\",IF(AND('Enrollment Form'!$C930=\"Enroll\",'Enrollment Form'!$B930=\"Subscriber\",'Enrollment Form'!$CQ930=\"Yes\"),\"-\",\"Y\")))))","v":""},{"$f":"IF($B923=\"N\",\"\",IF(AND('Enrollment Form'!$C930=\"ROC\",'Enrollment Form'!$DT930<>\"\"),\"Y\",IF(AND('Enrollment Form'!$C930=\"ROC\",'Enrollment Form'!$DT930=\"\"),\"N\",IF(AND('Enrollment Form'!$C930=\"Enroll\",'Enrollment Form'!$B930=\"Subscriber\",'Enrollment Form'!$CQ930=\"No\",'Enrollment Form'!$DT930=\"\"),\"N\",IF(AND('Enrollment Form'!$C930=\"Enroll\",'Enrollment Form'!$B930=\"Subscriber\",'Enrollment Form'!$CQ930=\"Yes\"),\"-\",\"Y\")))))","v":""},{"$f":"IF('Enrollment Form'!AH930=\"\",\"\",IF(ISERROR(SEARCH(\".\",'Enrollment Form'!AH930,SEARCH(\"@\",'Enrollment Form'!AH930))),\"N\",\"Y\"))","v":""},{"$f":"IF(OR($B923=\"N\",'Enrollment Form'!$G930=\"\"),\"\",IF('Enrollment Form'!$B930<>\"Subscriber\",\"-\",IF(COUNTIF('Enrollment Form'!$AS930:$AT930,\"Yes\")=2,\"N\",\"Y\")))","v":""},{"$f":"IF(OR('Enrollment Form'!$CC930=\"\",'Enrollment Form'!$CC930=\"No\"),\"-\",IF(AND('Enrollment Form'!$CC930=\"Yes\",'Enrollment Form'!$CD930=\"\"),\"N\",\"Y\"))","v":"-"},{"$f":"IF(OR('Enrollment Form'!$CE930=\"\",'Enrollment Form'!$CE930=\"No\"),\"-\",IF(AND('Enrollment Form'!$CE930=\"Yes\",'Enrollment Form'!$CF930=\"\"),\"N\",\"Y\"))","v":"-"},{"$f":"IF(OR('Enrollment Form'!$CG930=\"\",'Enrollment Form'!$CG930=\"No\"),\"-\",IF(AND('Enrollment Form'!$CG930=\"Yes\",'Enrollment Form'!$CH930=\"\"),\"N\",\"Y\"))","v":"-"},{"$f":"IF(OR('Enrollment Form'!$CG930=\"\",'Enrollment Form'!$CG930=\"No\"),\"-\",IF(AND('Enrollment Form'!$CG930=\"Yes\",'Enrollment Form'!$CI930=\"\"),\"N\",\"Y\"))","v":"-"},{"$f":"IF('Enrollment Form'!B930<>\"Subscriber\",\"-\",IF(AND('Enrollment Form'!B930=\"Subscriber\",'Enrollment Form'!C930=\"Enroll\",'Enrollment Form'!AA930=\"\"),\"N\",\"Y\"))","v":"-"},{"$f":"IF(OR('Enrollment Form'!B930=\"Subscriber\",'Enrollment Form'!B930=\"\"),\"-\",IF('Enrollment Form'!BI930=\"\",\"N\",\"Y\"))","v":"-"},{"$f":"IF('Enrollment Form'!B930<>\"Subscriber\",\"-\",IF(AND('Enrollment Form'!B930=\"Subscriber\",'Enrollment Form'!G930=\"\"),\"N\",\"Y\"))","v":"-"},{"$f":"IF('Enrollment Form'!A930=\"\",\"\",IF('Enrollment Form'!B930=\"Subscriber\",\"-\",IF(AND('Enrollment Form'!B930<>\"Subscriber\",'Enrollment Form'!G930='Enrollment Form'!H930),\"N\",\"Y\")))","v":""},0]
[931,{"$f":"IF('Enrollment Form'!$A931<>\"\",\"Y\",\"N\")","v":"N"},{"$f":"IF(AND('Enrollment Form'!$B931=\"\",'Enrollment Form'!$C931<>\"\"),\"N\",IF($B924=\"N\",\"\",\"Y\"))","v":""},{"$f":"IF(OR($B924=\"N\",'Enrollment Form'!G931=\"\"),\"\",IF('Enrollment Form'!$B931<>\"Subscriber\",\"\",IF('Enrollment Form'!$G931='Enrollment Form'!$H931,\"Y\",\"N\")))","v":""},{"$f":"IF($B924=\"N\",\"\",IF(AND(COUNTIFS('Enrollment Form'!$H$11:$H$1000,'Enrollment Form'!$H931,'Enrollment Form'!$B$11:$B$1000,'Enrollment Form'!$B931)>1,'Enrollment Form'!$H931<>\"\"),\"N\",\"Y\"))","v":""},{"$f":"IF($B924=\"N\",\"\",IF(LEN('Enrollment Form'!$Y931)=0,\"\",IF(LEN('Enrollment Form'!$Y931)<>5,\"N\",\"Y\")))","v":""},{"$f":"IF($B924=\"N\",\"\",IF(LEN('Enrollment Form'!$AD931=0),\"\",IF(LEN('Enrollment Form'!$AD931)<>5,\"N\",\"Y\")))","v":""},{"$f":"IF($B924=\"N\",\"\",IF(LEN('Enrollment Form'!$BL931=0),\"\",IF(LEN('Enrollment Form'!$BL931)<>5,\"N\",\"Y\")))","v":""},{"$f":"IF($B924=\"N\",\"\",IF(LEN('Enrollment Form'!$AE931)=0,\"\",IF(LEN('Enrollment Form'!$AE931)<>10,\"N\",\"Y\")))","v":""},{"$f":"IF($B924=\"N\",\"\",IF(LEN('Enrollment Form'!$AF931)=0,\"\",IF(LEN('Enrollment Form'!$AF931)<>10,\"N\",\"Y\")))","v":""},{"$f":"IF('Enrollment Form'!$O931<>\"Graded\",\"-\",IF(AND('Enrollment Form'!$O931=\"Graded\",'Enrollment Form'!$AO931<>\"\"),\"Y\",\"N\"))","v":"-"},{"$f":"IF($B924=\"N\",\"\",IF(OR('Enrollment Form'!$B931<>\"Subscriber\",'Enrollment Form'!$C931=\"ROC\"),\"-\",IF(AND('Enrollment Form'!$B931=\"Subscriber\",'Enrollment Form'!$C931=\"Enroll\",'Enrollment Form'!$AJ931<>\"\"),\"Y\",\"N\")))","v":""},{"$f":"IF($B924=\"N\",\"\",IF(OR('Enrollment Form'!$B931<>\"Subscriber\",'Enrollment Form'!$C931=\"ROC\"),\"-\",IF(AND('Enrollment Form'!$B931=\"Subscriber\",'Enrollment Form'!$C931=\"Enroll\",'Enrollment Form'!$AK931<>\"\"),\"Y\",\"N\")))","v":""},{"$f":"IF($B924=\"N\",\"\",IF(OR('Enrollment Form'!$B931<>\"Subscriber\",'Enrollment Form'!$C931=\"ROC\"),\"-\",IF(AND('Enrollment Form'!$B931=\"Subscriber\",'Enrollment Form'!$C931=\"Enroll\",'Enrollment Form'!$AL931<>\"\"),\"Y\",\"N\")))","v":""},{"$f":"IF($B924=\"N\",\"\",IF(OR('Enrollment Form'!$B931<>\"Subscriber\",'Enrollment Form'!$C931=\"ROC\"),\"-\",IF(AND('Enrollment Form'!$B931=\"Subscriber\",'Enrollment Form'!$C931=\"Enroll\",'Enrollment Form'!$AM931<>\"\"),\"Y\",\"N\")))","v":""},{"$f":"IF($B924=\"N\",\"\",IF(OR('Enrollment Form'!$B931<>\"Subscriber\",'Enrollment Form'!$C931=\"ROC\"),\"-\",IF(AND('Enrollment Form'!$B931=\"Subscriber\",'Enrollment Form'!$C931=\"Enroll\",'Enrollment Form'!$AN931<>\"\"),\"Y\",\"N\")))","v":""},{"$f":"IF($B924=\"N\",\"\",IF(OR('Enrollment Form'!$B931<>\"Subscriber\",'Enrollment Form'!$C931=\"ROC\"),\"-\",IF(AND('Enrollment Form'!$B931=\"Subscriber\",'Enrollment Form'!$C931=\"Enroll\",'Enrollment Form'!$AP931<>\"\"),\"Y\",\"N\")))","v":""},{"$f":"IF($B924=\"N\",\"\",IF($Q924=\"-\",\"-\",IF(AND($Q924=\"Y\",'Enrollment Form'!$AP931=\"No\"),\"-\",IF(AND($Q924=\"Y\",'Enrollment Form'!$AP931=\"Yes\",'Enrollment Form'!$AQ931<>\"\"),\"Y\",\"N\"))))","v":""},{"$f":"IF($B924=\"N\",\"\",IF(OR('Enrollment Form'!$B931<>\"Subscriber\",'Enrollment Form'!$C931=\"ROC\"),\"-\",IF(AND('Enrollment Form'!$B931=\"Subscriber\",'Enrollment Form'!$C931=\"Enroll\",'Enrollment Form'!$CO931<>\"\"),\"Y\",\"N\")))","v":""},{"$f":"IF($B924=\"N\",\"\",IF($S924=\"-\",\"-\",IF(AND($S924=\"Y\",'Enrollment Form'!$CO931=\"No\"),\"-\",IF(AND($S924=\"Y\",'Enrollment Form'!$CO931=\"Yes\",'Enrollment Form'!$CP931<>\"\"),\"Y\",\"N\"))))","v":""},{"$f":"IF(OR('Enrollment Form'!$AV931=\"Yes\",'Enrollment Form'!$AV931=\"\"),\"-\",IF(AND('Enrollment Form'!$AV931=\"No\",ISERROR(FIND(\"HMO\",VLOOKUP('Enrollment Form'!G931,'Enrollment Form'!H$11:J$1000,3,FALSE),1))=FALSE,COUNTA('Enrollment Form'!$AW931:$AZ931)=4),\"Y\",\"N\"))","v":"-"},{"$f":"IF($B924=\"N\",\"\",IF('Enrollment Form'!$B931=\"Subscriber\",\"-\",IF(COUNTA('Enrollment Form'!$BE931,'Enrollment Form'!$BG931)=2,\"Y\",\"N\")))","v":""},{"$f":"IF($B924=\"N\",\"\",IF(OR('Enrollment Form'!$AU931=\"\",'Enrollment Form'!$AU931=\"No\"),\"-\",IF(AND('Enrollment Form'!$AU931=\"Yes\",COUNTA('Enrollment Form'!$CK931)=1),\"Y\",\"N\")))","v":""},{"$f":"IF(OR('Enrollment Form'!$CK931=\"\",'Enrollment Form'!$CK931=\"No\"),\"-\",IF(COUNTA('Enrollment Form'!$CM931:$CN931)=2,\"Y\",\"N\"))","v":"-"},{"$f":"IF($B924=\"N\",\"\",IF(COUNTIF('Enrollment Form'!$CZ931:$DO931,\"Other\")=COUNTA('Enrollment Form'!$DF931,'Enrollment Form'!$DA931,'Enrollment Form'!$DK931,'Enrollment Form'!$DP931),\"Y\",\"N\"))","v":""},{"$f":"IF($B924=\"N\",\"\",IF(OR('Enrollment Form'!B931<>\"Subscriber\",'Enrollment Form'!C931=\"ROC\",COUNTIF('Enrollment Form'!AS931:AT931,\"Yes\")>=1),\"-\",IF(AND('Enrollment Form'!C931=\"Enroll\",COUNTIF('Enrollment Form'!AS931:AT931,\"No\")=2,'Enrollment Form'!AU931=\"\"),\"N\",\"Y\")))","v":""},{"$f":"IF(OR(B924=\"N\",'Enrollment Form'!B931<>\"Subscriber\",'Enrollment Form'!C931=\"ROC\",'Enrollment Form'!O931<>\"Multiple of Salary\"),\"-\",IF(COUNTA('Enrollment Form'!T931:U931)<2,\"N\",\"Y\"))","v":"-"},{"$f":"IF(B924=\"N\",\"\",IF(OR('Enrollment Form'!C931=\"ROC\",'Enrollment Form'!B931<>\"Subscriber\",'Enrollment Form'!O931=\"Waive\",'Enrollment Form'!O931=\"\"),\"-\",IF('Enrollment Form'!P931=\"\",\"N\",\"Y\")))","v":""},{"$f":"IF($B924=\"N\",\"\",IF(AND('Enrollment Form'!$C931=\"ROC\",'Enrollment Form'!$DS931<>\"\"),\"Y\",IF(AND('Enrollment Form'!$C931=\"ROC\",'Enrollment Form'!$DS931=\"\"),\"N\",IF(AND('Enrollment Form'!$C931=\"Enroll\",'Enrollment Form'!$B931=\"Subscriber\",'Enrollment Form'!$CQ931=\"No\",'Enrollment Form'!$DS931=\"\"),\"N\",IF(AND('Enrollment Form'!$C931=\"Enroll\",'Enrollment Form'!$B931=\"Subscriber\",'Enrollment Form'!$CQ931=\"Yes\"),\"-\",\"Y\")))))","v":""},{"$f":"IF($B924=\"N\",\"\",IF(AND('Enrollment Form'!$C931=\"ROC\",'Enrollment Form'!$DT931<>\"\"),\"Y\",IF(AND('Enrollment Form'!$C931=\"ROC\",'Enrollment Form'!$DT931=\"\"),\"N\",IF(AND('Enrollment Form'!$C931=\"Enroll\",'Enrollment Form'!$B931=\"Subscriber\",'Enrollment Form'!$CQ931=\"No\",'Enrollment Form'!$DT931=\"\"),\"N\",IF(AND('Enrollment Form'!$C931=\"Enroll\",'Enrollment Form'!$B931=\"Subscriber\",'Enrollment Form'!$CQ931=\"Yes\"),\"-\",\"Y\")))))","v":""},{"$f":"IF('Enrollment Form'!AH931=\"\",\"\",IF(ISERROR(SEARCH(\".\",'Enrollment Form'!AH931,SEARCH(\"@\",'Enrollment Form'!AH931))),\"N\",\"Y\"))","v":""},{"$f":"IF(OR($B924=\"N\",'Enrollment Form'!$G931=\"\"),\"\",IF('Enrollment Form'!$B931<>\"Subscriber\",\"-\",IF(COUNTIF('Enrollment Form'!$AS931:$AT931,\"Yes\")=2,\"N\",\"Y\")))","v":""},{"$f":"IF(OR('Enrollment Form'!$CC931=\"\",'Enrollment Form'!$CC931=\"No\"),\"-\",IF(AND('Enrollment Form'!$CC931=\"Yes\",'Enrollment Form'!$CD931=\"\"),\"N\",\"Y\"))","v":"-"},{"$f":"IF(OR('Enrollment Form'!$CE931=\"\",'Enrollment Form'!$CE931=\"No\"),\"-\",IF(AND('Enrollment Form'!$CE931=\"Yes\",'Enrollment Form'!$CF931=\"\"),\"N\",\"Y\"))","v":"-"},{"$f":"IF(OR('Enrollment Form'!$CG931=\"\",'Enrollment Form'!$CG931=\"No\"),\"-\",IF(AND('Enrollment Form'!$CG931=\"Yes\",'Enrollment Form'!$CH931=\"\"),\"N\",\"Y\"))","v":"-"},{"$f":"IF(OR('Enrollment Form'!$CG931=\"\",'Enrollment Form'!$CG931=\"No\"),\"-\",IF(AND('Enrollment Form'!$CG931=\"Yes\",'Enrollment Form'!$CI931=\"\"),\"N\",\"Y\"))","v":"-"},{"$f":"IF('Enrollment Form'!B931<>\"Subscriber\",\"-\",IF(AND('Enrollment Form'!B931=\"Subscriber\",'Enrollment Form'!C931=\"Enroll\",'Enrollment Form'!AA931=\"\"),\"N\",\"Y\"))","v":"-"},{"$f":"IF(OR('Enrollment Form'!B931=\"Subscriber\",'Enrollment Form'!B931=\"\"),\"-\",IF('Enrollment Form'!BI931=\"\",\"N\",\"Y\"))","v":"-"},{"$f":"IF('Enrollment Form'!B931<>\"Subscriber\",\"-\",IF(AND('Enrollment Form'!B931=\"Subscriber\",'Enrollment Form'!G931=\"\"),\"N\",\"Y\"))","v":"-"},{"$f":"IF('Enrollment Form'!A931=\"\",\"\",IF('Enrollment Form'!B931=\"Subscriber\",\"-\",IF(AND('Enrollment Form'!B931<>\"Subscriber\",'Enrollment Form'!G931='Enrollment Form'!H931),\"N\",\"Y\")))","v":""},0]
[932,{"$f":"IF('Enrollment Form'!$A932<>\"\",\"Y\",\"N\")","v":"N"},{"$f":"IF(AND('Enrollment Form'!$B932=\"\",'Enrollment Form'!$C932<>\"\"),\"N\",IF($B925=\"N\",\"\",\"Y\"))","v":""},{"$f":"IF(OR($B925=\"N\",'Enrollment Form'!G932=\"\"),\"\",IF('Enrollment Form'!$B932<>\"Subscriber\",\"\",IF('Enrollment Form'!$G932='Enrollment Form'!$H932,\"Y\",\"N\")))","v":""},{"$f":"IF($B925=\"N\",\"\",IF(AND(COUNTIFS('Enrollment Form'!$H$11:$H$1000,'Enrollment Form'!$H932,'Enrollment Form'!$B$11:$B$1000,'Enrollment Form'!$B932)>1,'Enrollment Form'!$H932<>\"\"),\"N\",\"Y\"))","v":""},{"$f":"IF($B925=\"N\",\"\",IF(LEN('Enrollment Form'!$Y932)=0,\"\",IF(LEN('Enrollment Form'!$Y932)<>5,\"N\",\"Y\")))","v":""},{"$f":"IF($B925=\"N\",\"\",IF(LEN('Enrollment Form'!$AD932=0),\"\",IF(LEN('Enrollment Form'!$AD932)<>5,\"N\",\"Y\")))","v":""},{"$f":"IF($B925=\"N\",\"\",IF(LEN('Enrollment Form'!$BL932=0),\"\",IF(LEN('Enrollment Form'!$BL932)<>5,\"N\",\"Y\")))","v":""},{"$f":"IF($B925=\"N\",\"\",IF(LEN('Enrollment Form'!$AE932)=0,\"\",IF(LEN('Enrollment Form'!$AE932)<>10,\"N\",\"Y\")))","v":""},{"$f":"IF($B925=\"N\",\"\",IF(LEN('Enrollment Form'!$AF932)=0,\"\",IF(LEN('Enrollment Form'!$AF932)<>10,\"N\",\"Y\")))","v":""},{"$f":"IF('Enrollment Form'!$O932<>\"Graded\",\"-\",IF(AND('Enrollment Form'!$O932=\"Graded\",'Enrollment Form'!$AO932<>\"\"),\"Y\",\"N\"))","v":"-"},{"$f":"IF($B925=\"N\",\"\",IF(OR('Enrollment Form'!$B932<>\"Subscriber\",'Enrollment Form'!$C932=\"ROC\"),\"-\",IF(AND('Enrollment Form'!$B932=\"Subscriber\",'Enrollment Form'!$C932=\"Enroll\",'Enrollment Form'!$AJ932<>\"\"),\"Y\",\"N\")))","v":""},{"$f":"IF($B925=\"N\",\"\",IF(OR('Enrollment Form'!$B932<>\"Subscriber\",'Enrollment Form'!$C932=\"ROC\"),\"-\",IF(AND('Enrollment Form'!$B932=\"Subscriber\",'Enrollment Form'!$C932=\"Enroll\",'Enrollment Form'!$AK932<>\"\"),\"Y\",\"N\")))","v":""},{"$f":"IF($B925=\"N\",\"\",IF(OR('Enrollment Form'!$B932<>\"Subscriber\",'Enrollment Form'!$C932=\"ROC\"),\"-\",IF(AND('Enrollment Form'!$B932=\"Subscriber\",'Enrollment Form'!$C932=\"Enroll\",'Enrollment Form'!$AL932<>\"\"),\"Y\",\"N\")))","v":""},{"$f":"IF($B925=\"N\",\"\",IF(OR('Enrollment Form'!$B932<>\"Subscriber\",'Enrollment Form'!$C932=\"ROC\"),\"-\",IF(AND('Enrollment Form'!$B932=\"Subscriber\",'Enrollment Form'!$C932=\"Enroll\",'Enrollment Form'!$AM932<>\"\"),\"Y\",\"N\")))","v":""},{"$f":"IF($B925=\"N\",\"\",IF(OR('Enrollment Form'!$B932<>\"Subscriber\",'Enrollment Form'!$C932=\"ROC\"),\"-\",IF(AND('Enrollment Form'!$B932=\"Subscriber\",'Enrollment Form'!$C932=\"Enroll\",'Enrollment Form'!$AN932<>\"\"),\"Y\",\"N\")))","v":""},{"$f":"IF($B925=\"N\",\"\",IF(OR('Enrollment Form'!$B932<>\"Subscriber\",'Enrollment Form'!$C932=\"ROC\"),\"-\",IF(AND('Enrollment Form'!$B932=\"Subscriber\",'Enrollment Form'!$C932=\"Enroll\",'Enrollment Form'!$AP932<>\"\"),\"Y\",\"N\")))","v":""},{"$f":"IF($B925=\"N\",\"\",IF($Q925=\"-\",\"-\",IF(AND($Q925=\"Y\",'Enrollment Form'!$AP932=\"No\"),\"-\",IF(AND($Q925=\"Y\",'Enrollment Form'!$AP932=\"Yes\",'Enrollment Form'!$AQ932<>\"\"),\"Y\",\"N\"))))","v":""},{"$f":"IF($B925=\"N\",\"\",IF(OR('Enrollment Form'!$B932<>\"Subscriber\",'Enrollment Form'!$C932=\"ROC\"),\"-\",IF(AND('Enrollment Form'!$B932=\"Subscriber\",'Enrollment Form'!$C932=\"Enroll\",'Enrollment Form'!$CO932<>\"\"),\"Y\",\"N\")))","v":""},{"$f":"IF($B925=\"N\",\"\",IF($S925=\"-\",\"-\",IF(AND($S925=\"Y\",'Enrollment Form'!$CO932=\"No\"),\"-\",IF(AND($S925=\"Y\",'Enrollment Form'!$CO932=\"Yes\",'Enrollment Form'!$CP932<>\"\"),\"Y\",\"N\"))))","v":""},{"$f":"IF(OR('Enrollment Form'!$AV932=\"Yes\",'Enrollment Form'!$AV932=\"\"),\"-\",IF(AND('Enrollment Form'!$AV932=\"No\",ISERROR(FIND(\"HMO\",VLOOKUP('Enrollment Form'!G932,'Enrollment Form'!H$11:J$1000,3,FALSE),1))=FALSE,COUNTA('Enrollment Form'!$AW932:$AZ932)=4),\"Y\",\"N\"))","v":"-"},{"$f":"IF($B925=\"N\",\"\",IF('Enrollment Form'!$B932=\"Subscriber\",\"-\",IF(COUNTA('Enrollment Form'!$BE932,'Enrollment Form'!$BG932)=2,\"Y\",\"N\")))","v":""},{"$f":"IF($B925=\"N\",\"\",IF(OR('Enrollment Form'!$AU932=\"\",'Enrollment Form'!$AU932=\"No\"),\"-\",IF(AND('Enrollment Form'!$AU932=\"Yes\",COUNTA('Enrollment Form'!$CK932)=1),\"Y\",\"N\")))","v":""},{"$f":"IF(OR('Enrollment Form'!$CK932=\"\",'Enrollment Form'!$CK932=\"No\"),\"-\",IF(COUNTA('Enrollment Form'!$CM932:$CN932)=2,\"Y\",\"N\"))","v":"-"},{"$f":"IF($B925=\"N\",\"\",IF(COUNTIF('Enrollment Form'!$CZ932:$DO932,\"Other\")=COUNTA('Enrollment Form'!$DF932,'Enrollment Form'!$DA932,'Enrollment Form'!$DK932,'Enrollment Form'!$DP932),\"Y\",\"N\"))","v":""},{"$f":"IF($B925=\"N\",\"\",IF(OR('Enrollment Form'!B932<>\"Subscriber\",'Enrollment Form'!C932=\"ROC\",COUNTIF('Enrollment Form'!AS932:AT932,\"Yes\")>=1),\"-\",IF(AND('Enrollment Form'!C932=\"Enroll\",COUNTIF('Enrollment Form'!AS932:AT932,\"No\")=2,'Enrollment Form'!AU932=\"\"),\"N\",\"Y\")))","v":""},{"$f":"IF(OR(B925=\"N\",'Enrollment Form'!B932<>\"Subscriber\",'Enrollment Form'!C932=\"ROC\",'Enrollment Form'!O932<>\"Multiple of Salary\"),\"-\",IF(COUNTA('Enrollment Form'!T932:U932)<2,\"N\",\"Y\"))","v":"-"},{"$f":"IF(B925=\"N\",\"\",IF(OR('Enrollment Form'!C932=\"ROC\",'Enrollment Form'!B932<>\"Subscriber\",'Enrollment Form'!O932=\"Waive\",'Enrollment Form'!O932=\"\"),\"-\",IF('Enrollment Form'!P932=\"\",\"N\",\"Y\")))","v":""},{"$f":"IF($B925=\"N\",\"\",IF(AND('Enrollment Form'!$C932=\"ROC\",'Enrollment Form'!$DS932<>\"\"),\"Y\",IF(AND('Enrollment Form'!$C932=\"ROC\",'Enrollment Form'!$DS932=\"\"),\"N\",IF(AND('Enrollment Form'!$C932=\"Enroll\",'Enrollment Form'!$B932=\"Subscriber\",'Enrollment Form'!$CQ932=\"No\",'Enrollment Form'!$DS932=\"\"),\"N\",IF(AND('Enrollment Form'!$C932=\"Enroll\",'Enrollment Form'!$B932=\"Subscriber\",'Enrollment Form'!$CQ932=\"Yes\"),\"-\",\"Y\")))))","v":""},{"$f":"IF($B925=\"N\",\"\",IF(AND('Enrollment Form'!$C932=\"ROC\",'Enrollment Form'!$DT932<>\"\"),\"Y\",IF(AND('Enrollment Form'!$C932=\"ROC\",'Enrollment Form'!$DT932=\"\"),\"N\",IF(AND('Enrollment Form'!$C932=\"Enroll\",'Enrollment Form'!$B932=\"Subscriber\",'Enrollment Form'!$CQ932=\"No\",'Enrollment Form'!$DT932=\"\"),\"N\",IF(AND('Enrollment Form'!$C932=\"Enroll\",'Enrollment Form'!$B932=\"Subscriber\",'Enrollment Form'!$CQ932=\"Yes\"),\"-\",\"Y\")))))","v":""},{"$f":"IF('Enrollment Form'!AH932=\"\",\"\",IF(ISERROR(SEARCH(\".\",'Enrollment Form'!AH932,SEARCH(\"@\",'Enrollment Form'!AH932))),\"N\",\"Y\"))","v":""},{"$f":"IF(OR($B925=\"N\",'Enrollment Form'!$G932=\"\"),\"\",IF('Enrollment Form'!$B932<>\"Subscriber\",\"-\",IF(COUNTIF('Enrollment Form'!$AS932:$AT932,\"Yes\")=2,\"N\",\"Y\")))","v":""},{"$f":"IF(OR('Enrollment Form'!$CC932=\"\",'Enrollment Form'!$CC932=\"No\"),\"-\",IF(AND('Enrollment Form'!$CC932=\"Yes\",'Enrollment Form'!$CD932=\"\"),\"N\",\"Y\"))","v":"-"},{"$f":"IF(OR('Enrollment Form'!$CE932=\"\",'Enrollment Form'!$CE932=\"No\"),\"-\",IF(AND('Enrollment Form'!$CE932=\"Yes\",'Enrollment Form'!$CF932=\"\"),\"N\",\"Y\"))","v":"-"},{"$f":"IF(OR('Enrollment Form'!$CG932=\"\",'Enrollment Form'!$CG932=\"No\"),\"-\",IF(AND('Enrollment Form'!$CG932=\"Yes\",'Enrollment Form'!$CH932=\"\"),\"N\",\"Y\"))","v":"-"},{"$f":"IF(OR('Enrollment Form'!$CG932=\"\",'Enrollment Form'!$CG932=\"No\"),\"-\",IF(AND('Enrollment Form'!$CG932=\"Yes\",'Enrollment Form'!$CI932=\"\"),\"N\",\"Y\"))","v":"-"},{"$f":"IF('Enrollment Form'!B932<>\"Subscriber\",\"-\",IF(AND('Enrollment Form'!B932=\"Subscriber\",'Enrollment Form'!C932=\"Enroll\",'Enrollment Form'!AA932=\"\"),\"N\",\"Y\"))","v":"-"},{"$f":"IF(OR('Enrollment Form'!B932=\"Subscriber\",'Enrollment Form'!B932=\"\"),\"-\",IF('Enrollment Form'!BI932=\"\",\"N\",\"Y\"))","v":"-"},{"$f":"IF('Enrollment Form'!B932<>\"Subscriber\",\"-\",IF(AND('Enrollment Form'!B932=\"Subscriber\",'Enrollment Form'!G932=\"\"),\"N\",\"Y\"))","v":"-"},{"$f":"IF('Enrollment Form'!A932=\"\",\"\",IF('Enrollment Form'!B932=\"Subscriber\",\"-\",IF(AND('Enrollment Form'!B932<>\"Subscriber\",'Enrollment Form'!G932='Enrollment Form'!H932),\"N\",\"Y\")))","v":""},0]
[933,{"$f":"IF('Enrollment Form'!$A933<>\"\",\"Y\",\"N\")","v":"N"},{"$f":"IF(AND('Enrollment Form'!$B933=\"\",'Enrollment Form'!$C933<>\"\"),\"N\",IF($B926=\"N\",\"\",\"Y\"))","v":""},{"$f":"IF(OR($B926=\"N\",'Enrollment Form'!G933=\"\"),\"\",IF('Enrollment Form'!$B933<>\"Subscriber\",\"\",IF('Enrollment Form'!$G933='Enrollment Form'!$H933,\"Y\",\"N\")))","v":""},{"$f":"IF($B926=\"N\",\"\",IF(AND(COUNTIFS('Enrollment Form'!$H$11:$H$1000,'Enrollment Form'!$H933,'Enrollment Form'!$B$11:$B$1000,'Enrollment Form'!$B933)>1,'Enrollment Form'!$H933<>\"\"),\"N\",\"Y\"))","v":""},{"$f":"IF($B926=\"N\",\"\",IF(LEN('Enrollment Form'!$Y933)=0,\"\",IF(LEN('Enrollment Form'!$Y933)<>5,\"N\",\"Y\")))","v":""},{"$f":"IF($B926=\"N\",\"\",IF(LEN('Enrollment Form'!$AD933=0),\"\",IF(LEN('Enrollment Form'!$AD933)<>5,\"N\",\"Y\")))","v":""},{"$f":"IF($B926=\"N\",\"\",IF(LEN('Enrollment Form'!$BL933=0),\"\",IF(LEN('Enrollment Form'!$BL933)<>5,\"N\",\"Y\")))","v":""},{"$f":"IF($B926=\"N\",\"\",IF(LEN('Enrollment Form'!$AE933)=0,\"\",IF(LEN('Enrollment Form'!$AE933)<>10,\"N\",\"Y\")))","v":""},{"$f":"IF($B926=\"N\",\"\",IF(LEN('Enrollment Form'!$AF933)=0,\"\",IF(LEN('Enrollment Form'!$AF933)<>10,\"N\",\"Y\")))","v":""},{"$f":"IF('Enrollment Form'!$O933<>\"Graded\",\"-\",IF(AND('Enrollment Form'!$O933=\"Graded\",'Enrollment Form'!$AO933<>\"\"),\"Y\",\"N\"))","v":"-"},{"$f":"IF($B926=\"N\",\"\",IF(OR('Enrollment Form'!$B933<>\"Subscriber\",'Enrollment Form'!$C933=\"ROC\"),\"-\",IF(AND('Enrollment Form'!$B933=\"Subscriber\",'Enrollment Form'!$C933=\"Enroll\",'Enrollment Form'!$AJ933<>\"\"),\"Y\",\"N\")))","v":""},{"$f":"IF($B926=\"N\",\"\",IF(OR('Enrollment Form'!$B933<>\"Subscriber\",'Enrollment Form'!$C933=\"ROC\"),\"-\",IF(AND('Enrollment Form'!$B933=\"Subscriber\",'Enrollment Form'!$C933=\"Enroll\",'Enrollment Form'!$AK933<>\"\"),\"Y\",\"N\")))","v":""},{"$f":"IF($B926=\"N\",\"\",IF(OR('Enrollment Form'!$B933<>\"Subscriber\",'Enrollment Form'!$C933=\"ROC\"),\"-\",IF(AND('Enrollment Form'!$B933=\"Subscriber\",'Enrollment Form'!$C933=\"Enroll\",'Enrollment Form'!$AL933<>\"\"),\"Y\",\"N\")))","v":""},{"$f":"IF($B926=\"N\",\"\",IF(OR('Enrollment Form'!$B933<>\"Subscriber\",'Enrollment Form'!$C933=\"ROC\"),\"-\",IF(AND('Enrollment Form'!$B933=\"Subscriber\",'Enrollment Form'!$C933=\"Enroll\",'Enrollment Form'!$AM933<>\"\"),\"Y\",\"N\")))","v":""},{"$f":"IF($B926=\"N\",\"\",IF(OR('Enrollment Form'!$B933<>\"Subscriber\",'Enrollment Form'!$C933=\"ROC\"),\"-\",IF(AND('Enrollment Form'!$B933=\"Subscriber\",'Enrollment Form'!$C933=\"Enroll\",'Enrollment Form'!$AN933<>\"\"),\"Y\",\"N\")))","v":""},{"$f":"IF($B926=\"N\",\"\",IF(OR('Enrollment Form'!$B933<>\"Subscriber\",'Enrollment Form'!$C933=\"ROC\"),\"-\",IF(AND('Enrollment Form'!$B933=\"Subscriber\",'Enrollment Form'!$C933=\"Enroll\",'Enrollment Form'!$AP933<>\"\"),\"Y\",\"N\")))","v":""},{"$f":"IF($B926=\"N\",\"\",IF($Q926=\"-\",\"-\",IF(AND($Q926=\"Y\",'Enrollment Form'!$AP933=\"No\"),\"-\",IF(AND($Q926=\"Y\",'Enrollment Form'!$AP933=\"Yes\",'Enrollment Form'!$AQ933<>\"\"),\"Y\",\"N\"))))","v":""},{"$f":"IF($B926=\"N\",\"\",IF(OR('Enrollment Form'!$B933<>\"Subscriber\",'Enrollment Form'!$C933=\"ROC\"),\"-\",IF(AND('Enrollment Form'!$B933=\"Subscriber\",'Enrollment Form'!$C933=\"Enroll\",'Enrollment Form'!$CO933<>\"\"),\"Y\",\"N\")))","v":""},{"$f":"IF($B926=\"N\",\"\",IF($S926=\"-\",\"-\",IF(AND($S926=\"Y\",'Enrollment Form'!$CO933=\"No\"),\"-\",IF(AND($S926=\"Y\",'Enrollment Form'!$CO933=\"Yes\",'Enrollment Form'!$CP933<>\"\"),\"Y\",\"N\"))))","v":""},{"$f":"IF(OR('Enrollment Form'!$AV933=\"Yes\",'Enrollment Form'!$AV933=\"\"),\"-\",IF(AND('Enrollment Form'!$AV933=\"No\",ISERROR(FIND(\"HMO\",VLOOKUP('Enrollment Form'!G933,'Enrollment Form'!H$11:J$1000,3,FALSE),1))=FALSE,COUNTA('Enrollment Form'!$AW933:$AZ933)=4),\"Y\",\"N\"))","v":"-"},{"$f":"IF($B926=\"N\",\"\",IF('Enrollment Form'!$B933=\"Subscriber\",\"-\",IF(COUNTA('Enrollment Form'!$BE933,'Enrollment Form'!$BG933)=2,\"Y\",\"N\")))","v":""},{"$f":"IF($B926=\"N\",\"\",IF(OR('Enrollment Form'!$AU933=\"\",'Enrollment Form'!$AU933=\"No\"),\"-\",IF(AND('Enrollment Form'!$AU933=\"Yes\",COUNTA('Enrollment Form'!$CK933)=1),\"Y\",\"N\")))","v":""},{"$f":"IF(OR('Enrollment Form'!$CK933=\"\",'Enrollment Form'!$CK933=\"No\"),\"-\",IF(COUNTA('Enrollment Form'!$CM933:$CN933)=2,\"Y\",\"N\"))","v":"-"},{"$f":"IF($B926=\"N\",\"\",IF(COUNTIF('Enrollment Form'!$CZ933:$DO933,\"Other\")=COUNTA('Enrollment Form'!$DF933,'Enrollment Form'!$DA933,'Enrollment Form'!$DK933,'Enrollment Form'!$DP933),\"Y\",\"N\"))","v":""},{"$f":"IF($B926=\"N\",\"\",IF(OR('Enrollment Form'!B933<>\"Subscriber\",'Enrollment Form'!C933=\"ROC\",COUNTIF('Enrollment Form'!AS933:AT933,\"Yes\")>=1),\"-\",IF(AND('Enrollment Form'!C933=\"Enroll\",COUNTIF('Enrollment Form'!AS933:AT933,\"No\")=2,'Enrollment Form'!AU933=\"\"),\"N\",\"Y\")))","v":""},{"$f":"IF(OR(B926=\"N\",'Enrollment Form'!B933<>\"Subscriber\",'Enrollment Form'!C933=\"ROC\",'Enrollment Form'!O933<>\"Multiple of Salary\"),\"-\",IF(COUNTA('Enrollment Form'!T933:U933)<2,\"N\",\"Y\"))","v":"-"},{"$f":"IF(B926=\"N\",\"\",IF(OR('Enrollment Form'!C933=\"ROC\",'Enrollment Form'!B933<>\"Subscriber\",'Enrollment Form'!O933=\"Waive\",'Enrollment Form'!O933=\"\"),\"-\",IF('Enrollment Form'!P933=\"\",\"N\",\"Y\")))","v":""},{"$f":"IF($B926=\"N\",\"\",IF(AND('Enrollment Form'!$C933=\"ROC\",'Enrollment Form'!$DS933<>\"\"),\"Y\",IF(AND('Enrollment Form'!$C933=\"ROC\",'Enrollment Form'!$DS933=\"\"),\"N\",IF(AND('Enrollment Form'!$C933=\"Enroll\",'Enrollment Form'!$B933=\"Subscriber\",'Enrollment Form'!$CQ933=\"No\",'Enrollment Form'!$DS933=\"\"),\"N\",IF(AND('Enrollment Form'!$C933=\"Enroll\",'Enrollment Form'!$B933=\"Subscriber\",'Enrollment Form'!$CQ933=\"Yes\"),\"-\",\"Y\")))))","v":""},{"$f":"IF($B926=\"N\",\"\",IF(AND('Enrollment Form'!$C933=\"ROC\",'Enrollment Form'!$DT933<>\"\"),\"Y\",IF(AND('Enrollment Form'!$C933=\"ROC\",'Enrollment Form'!$DT933=\"\"),\"N\",IF(AND('Enrollment Form'!$C933=\"Enroll\",'Enrollment Form'!$B933=\"Subscriber\",'Enrollment Form'!$CQ933=\"No\",'Enrollment Form'!$DT933=\"\"),\"N\",IF(AND('Enrollment Form'!$C933=\"Enroll\",'Enrollment Form'!$B933=\"Subscriber\",'Enrollment Form'!$CQ933=\"Yes\"),\"-\",\"Y\")))))","v":""},{"$f":"IF('Enrollment Form'!AH933=\"\",\"\",IF(ISERROR(SEARCH(\".\",'Enrollment Form'!AH933,SEARCH(\"@\",'Enrollment Form'!AH933))),\"N\",\"Y\"))","v":""},{"$f":"IF(OR($B926=\"N\",'Enrollment Form'!$G933=\"\"),\"\",IF('Enrollment Form'!$B933<>\"Subscriber\",\"-\",IF(COUNTIF('Enrollment Form'!$AS933:$AT933,\"Yes\")=2,\"N\",\"Y\")))","v":""},{"$f":"IF(OR('Enrollment Form'!$CC933=\"\",'Enrollment Form'!$CC933=\"No\"),\"-\",IF(AND('Enrollment Form'!$CC933=\"Yes\",'Enrollment Form'!$CD933=\"\"),\"N\",\"Y\"))","v":"-"},{"$f":"IF(OR('Enrollment Form'!$CE933=\"\",'Enrollment Form'!$CE933=\"No\"),\"-\",IF(AND('Enrollment Form'!$CE933=\"Yes\",'Enrollment Form'!$CF933=\"\"),\"N\",\"Y\"))","v":"-"},{"$f":"IF(OR('Enrollment Form'!$CG933=\"\",'Enrollment Form'!$CG933=\"No\"),\"-\",IF(AND('Enrollment Form'!$CG933=\"Yes\",'Enrollment Form'!$CH933=\"\"),\"N\",\"Y\"))","v":"-"},{"$f":"IF(OR('Enrollment Form'!$CG933=\"\",'Enrollment Form'!$CG933=\"No\"),\"-\",IF(AND('Enrollment Form'!$CG933=\"Yes\",'Enrollment Form'!$CI933=\"\"),\"N\",\"Y\"))","v":"-"},{"$f":"IF('Enrollment Form'!B933<>\"Subscriber\",\"-\",IF(AND('Enrollment Form'!B933=\"Subscriber\",'Enrollment Form'!C933=\"Enroll\",'Enrollment Form'!AA933=\"\"),\"N\",\"Y\"))","v":"-"},{"$f":"IF(OR('Enrollment Form'!B933=\"Subscriber\",'Enrollment Form'!B933=\"\"),\"-\",IF('Enrollment Form'!BI933=\"\",\"N\",\"Y\"))","v":"-"},{"$f":"IF('Enrollment Form'!B933<>\"Subscriber\",\"-\",IF(AND('Enrollment Form'!B933=\"Subscriber\",'Enrollment Form'!G933=\"\"),\"N\",\"Y\"))","v":"-"},{"$f":"IF('Enrollment Form'!A933=\"\",\"\",IF('Enrollment Form'!B933=\"Subscriber\",\"-\",IF(AND('Enrollment Form'!B933<>\"Subscriber\",'Enrollment Form'!G933='Enrollment Form'!H933),\"N\",\"Y\")))","v":""},0]
[934,{"$f":"IF('Enrollment Form'!$A934<>\"\",\"Y\",\"N\")","v":"N"},{"$f":"IF(AND('Enrollment Form'!$B934=\"\",'Enrollment Form'!$C934<>\"\"),\"N\",IF($B927=\"N\",\"\",\"Y\"))","v":""},{"$f":"IF(OR($B927=\"N\",'Enrollment Form'!G934=\"\"),\"\",IF('Enrollment Form'!$B934<>\"Subscriber\",\"\",IF('Enrollment Form'!$G934='Enrollment Form'!$H934,\"Y\",\"N\")))","v":""},{"$f":"IF($B927=\"N\",\"\",IF(AND(COUNTIFS('Enrollment Form'!$H$11:$H$1000,'Enrollment Form'!$H934,'Enrollment Form'!$B$11:$B$1000,'Enrollment Form'!$B934)>1,'Enrollment Form'!$H934<>\"\"),\"N\",\"Y\"))","v":""},{"$f":"IF($B927=\"N\",\"\",IF(LEN('Enrollment Form'!$Y934)=0,\"\",IF(LEN('Enrollment Form'!$Y934)<>5,\"N\",\"Y\")))","v":""},{"$f":"IF($B927=\"N\",\"\",IF(LEN('Enrollment Form'!$AD934=0),\"\",IF(LEN('Enrollment Form'!$AD934)<>5,\"N\",\"Y\")))","v":""},{"$f":"IF($B927=\"N\",\"\",IF(LEN('Enrollment Form'!$BL934=0),\"\",IF(LEN('Enrollment Form'!$BL934)<>5,\"N\",\"Y\")))","v":""},{"$f":"IF($B927=\"N\",\"\",IF(LEN('Enrollment Form'!$AE934)=0,\"\",IF(LEN('Enrollment Form'!$AE934)<>10,\"N\",\"Y\")))","v":""},{"$f":"IF($B927=\"N\",\"\",IF(LEN('Enrollment Form'!$AF934)=0,\"\",IF(LEN('Enrollment Form'!$AF934)<>10,\"N\",\"Y\")))","v":""},{"$f":"IF('Enrollment Form'!$O934<>\"Graded\",\"-\",IF(AND('Enrollment Form'!$O934=\"Graded\",'Enrollment Form'!$AO934<>\"\"),\"Y\",\"N\"))","v":"-"},{"$f":"IF($B927=\"N\",\"\",IF(OR('Enrollment Form'!$B934<>\"Subscriber\",'Enrollment Form'!$C934=\"ROC\"),\"-\",IF(AND('Enrollment Form'!$B934=\"Subscriber\",'Enrollment Form'!$C934=\"Enroll\",'Enrollment Form'!$AJ934<>\"\"),\"Y\",\"N\")))","v":""},{"$f":"IF($B927=\"N\",\"\",IF(OR('Enrollment Form'!$B934<>\"Subscriber\",'Enrollment Form'!$C934=\"ROC\"),\"-\",IF(AND('Enrollment Form'!$B934=\"Subscriber\",'Enrollment Form'!$C934=\"Enroll\",'Enrollment Form'!$AK934<>\"\"),\"Y\",\"N\")))","v":""},{"$f":"IF($B927=\"N\",\"\",IF(OR('Enrollment Form'!$B934<>\"Subscriber\",'Enrollment Form'!$C934=\"ROC\"),\"-\",IF(AND('Enrollment Form'!$B934=\"Subscriber\",'Enrollment Form'!$C934=\"Enroll\",'Enrollment Form'!$AL934<>\"\"),\"Y\",\"N\")))","v":""},{"$f":"IF($B927=\"N\",\"\",IF(OR('Enrollment Form'!$B934<>\"Subscriber\",'Enrollment Form'!$C934=\"ROC\"),\"-\",IF(AND('Enrollment Form'!$B934=\"Subscriber\",'Enrollment Form'!$C934=\"Enroll\",'Enrollment Form'!$AM934<>\"\"),\"Y\",\"N\")))","v":""},{"$f":"IF($B927=\"N\",\"\",IF(OR('Enrollment Form'!$B934<>\"Subscriber\",'Enrollment Form'!$C934=\"ROC\"),\"-\",IF(AND('Enrollment Form'!$B934=\"Subscriber\",'Enrollment Form'!$C934=\"Enroll\",'Enrollment Form'!$AN934<>\"\"),\"Y\",\"N\")))","v":""},{"$f":"IF($B927=\"N\",\"\",IF(OR('Enrollment Form'!$B934<>\"Subscriber\",'Enrollment Form'!$C934=\"ROC\"),\"-\",IF(AND('Enrollment Form'!$B934=\"Subscriber\",'Enrollment Form'!$C934=\"Enroll\",'Enrollment Form'!$AP934<>\"\"),\"Y\",\"N\")))","v":""},{"$f":"IF($B927=\"N\",\"\",IF($Q927=\"-\",\"-\",IF(AND($Q927=\"Y\",'Enrollment Form'!$AP934=\"No\"),\"-\",IF(AND($Q927=\"Y\",'Enrollment Form'!$AP934=\"Yes\",'Enrollment Form'!$AQ934<>\"\"),\"Y\",\"N\"))))","v":""},{"$f":"IF($B927=\"N\",\"\",IF(OR('Enrollment Form'!$B934<>\"Subscriber\",'Enrollment Form'!$C934=\"ROC\"),\"-\",IF(AND('Enrollment Form'!$B934=\"Subscriber\",'Enrollment Form'!$C934=\"Enroll\",'Enrollment Form'!$CO934<>\"\"),\"Y\",\"N\")))","v":""},{"$f":"IF($B927=\"N\",\"\",IF($S927=\"-\",\"-\",IF(AND($S927=\"Y\",'Enrollment Form'!$CO934=\"No\"),\"-\",IF(AND($S927=\"Y\",'Enrollment Form'!$CO934=\"Yes\",'Enrollment Form'!$CP934<>\"\"),\"Y\",\"N\"))))","v":""},{"$f":"IF(OR('Enrollment Form'!$AV934=\"Yes\",'Enrollment Form'!$AV934=\"\"),\"-\",IF(AND('Enrollment Form'!$AV934=\"No\",ISERROR(FIND(\"HMO\",VLOOKUP('Enrollment Form'!G934,'Enrollment Form'!H$11:J$1000,3,FALSE),1))=FALSE,COUNTA('Enrollment Form'!$AW934:$AZ934)=4),\"Y\",\"N\"))","v":"-"},{"$f":"IF($B927=\"N\",\"\",IF('Enrollment Form'!$B934=\"Subscriber\",\"-\",IF(COUNTA('Enrollment Form'!$BE934,'Enrollment Form'!$BG934)=2,\"Y\",\"N\")))","v":""},{"$f":"IF($B927=\"N\",\"\",IF(OR('Enrollment Form'!$AU934=\"\",'Enrollment Form'!$AU934=\"No\"),\"-\",IF(AND('Enrollment Form'!$AU934=\"Yes\",COUNTA('Enrollment Form'!$CK934)=1),\"Y\",\"N\")))","v":""},{"$f":"IF(OR('Enrollment Form'!$CK934=\"\",'Enrollment Form'!$CK934=\"No\"),\"-\",IF(COUNTA('Enrollment Form'!$CM934:$CN934)=2,\"Y\",\"N\"))","v":"-"},{"$f":"IF($B927=\"N\",\"\",IF(COUNTIF('Enrollment Form'!$CZ934:$DO934,\"Other\")=COUNTA('Enrollment Form'!$DF934,'Enrollment Form'!$DA934,'Enrollment Form'!$DK934,'Enrollment Form'!$DP934),\"Y\",\"N\"))","v":""},{"$f":"IF($B927=\"N\",\"\",IF(OR('Enrollment Form'!B934<>\"Subscriber\",'Enrollment Form'!C934=\"ROC\",COUNTIF('Enrollment Form'!AS934:AT934,\"Yes\")>=1),\"-\",IF(AND('Enrollment Form'!C934=\"Enroll\",COUNTIF('Enrollment Form'!AS934:AT934,\"No\")=2,'Enrollment Form'!AU934=\"\"),\"N\",\"Y\")))","v":""},{"$f":"IF(OR(B927=\"N\",'Enrollment Form'!B934<>\"Subscriber\",'Enrollment Form'!C934=\"ROC\",'Enrollment Form'!O934<>\"Multiple of Salary\"),\"-\",IF(COUNTA('Enrollment Form'!T934:U934)<2,\"N\",\"Y\"))","v":"-"},{"$f":"IF(B927=\"N\",\"\",IF(OR('Enrollment Form'!C934=\"ROC\",'Enrollment Form'!B934<>\"Subscriber\",'Enrollment Form'!O934=\"Waive\",'Enrollment Form'!O934=\"\"),\"-\",IF('Enrollment Form'!P934=\"\",\"N\",\"Y\")))","v":""},{"$f":"IF($B927=\"N\",\"\",IF(AND('Enrollment Form'!$C934=\"ROC\",'Enrollment Form'!$DS934<>\"\"),\"Y\",IF(AND('Enrollment Form'!$C934=\"ROC\",'Enrollment Form'!$DS934=\"\"),\"N\",IF(AND('Enrollment Form'!$C934=\"Enroll\",'Enrollment Form'!$B934=\"Subscriber\",'Enrollment Form'!$CQ934=\"No\",'Enrollment Form'!$DS934=\"\"),\"N\",IF(AND('Enrollment Form'!$C934=\"Enroll\",'Enrollment Form'!$B934=\"Subscriber\",'Enrollment Form'!$CQ934=\"Yes\"),\"-\",\"Y\")))))","v":""},{"$f":"IF($B927=\"N\",\"\",IF(AND('Enrollment Form'!$C934=\"ROC\",'Enrollment Form'!$DT934<>\"\"),\"Y\",IF(AND('Enrollment Form'!$C934=\"ROC\",'Enrollment Form'!$DT934=\"\"),\"N\",IF(AND('Enrollment Form'!$C934=\"Enroll\",'Enrollment Form'!$B934=\"Subscriber\",'Enrollment Form'!$CQ934=\"No\",'Enrollment Form'!$DT934=\"\"),\"N\",IF(AND('Enrollment Form'!$C934=\"Enroll\",'Enrollment Form'!$B934=\"Subscriber\",'Enrollment Form'!$CQ934=\"Yes\"),\"-\",\"Y\")))))","v":""},{"$f":"IF('Enrollment Form'!AH934=\"\",\"\",IF(ISERROR(SEARCH(\".\",'Enrollment Form'!AH934,SEARCH(\"@\",'Enrollment Form'!AH934))),\"N\",\"Y\"))","v":""},{"$f":"IF(OR($B927=\"N\",'Enrollment Form'!$G934=\"\"),\"\",IF('Enrollment Form'!$B934<>\"Subscriber\",\"-\",IF(COUNTIF('Enrollment Form'!$AS934:$AT934,\"Yes\")=2,\"N\",\"Y\")))","v":""},{"$f":"IF(OR('Enrollment Form'!$CC934=\"\",'Enrollment Form'!$CC934=\"No\"),\"-\",IF(AND('Enrollment Form'!$CC934=\"Yes\",'Enrollment Form'!$CD934=\"\"),\"N\",\"Y\"))","v":"-"},{"$f":"IF(OR('Enrollment Form'!$CE934=\"\",'Enrollment Form'!$CE934=\"No\"),\"-\",IF(AND('Enrollment Form'!$CE934=\"Yes\",'Enrollment Form'!$CF934=\"\"),\"N\",\"Y\"))","v":"-"},{"$f":"IF(OR('Enrollment Form'!$CG934=\"\",'Enrollment Form'!$CG934=\"No\"),\"-\",IF(AND('Enrollment Form'!$CG934=\"Yes\",'Enrollment Form'!$CH934=\"\"),\"N\",\"Y\"))","v":"-"},{"$f":"IF(OR('Enrollment Form'!$CG934=\"\",'Enrollment Form'!$CG934=\"No\"),\"-\",IF(AND('Enrollment Form'!$CG934=\"Yes\",'Enrollment Form'!$CI934=\"\"),\"N\",\"Y\"))","v":"-"},{"$f":"IF('Enrollment Form'!B934<>\"Subscriber\",\"-\",IF(AND('Enrollment Form'!B934=\"Subscriber\",'Enrollment Form'!C934=\"Enroll\",'Enrollment Form'!AA934=\"\"),\"N\",\"Y\"))","v":"-"},{"$f":"IF(OR('Enrollment Form'!B934=\"Subscriber\",'Enrollment Form'!B934=\"\"),\"-\",IF('Enrollment Form'!BI934=\"\",\"N\",\"Y\"))","v":"-"},{"$f":"IF('Enrollment Form'!B934<>\"Subscriber\",\"-\",IF(AND('Enrollment Form'!B934=\"Subscriber\",'Enrollment Form'!G934=\"\"),\"N\",\"Y\"))","v":"-"},{"$f":"IF('Enrollment Form'!A934=\"\",\"\",IF('Enrollment Form'!B934=\"Subscriber\",\"-\",IF(AND('Enrollment Form'!B934<>\"Subscriber\",'Enrollment Form'!G934='Enrollment Form'!H934),\"N\",\"Y\")))","v":""},0]
[935,{"$f":"IF('Enrollment Form'!$A935<>\"\",\"Y\",\"N\")","v":"N"},{"$f":"IF(AND('Enrollment Form'!$B935=\"\",'Enrollment Form'!$C935<>\"\"),\"N\",IF($B928=\"N\",\"\",\"Y\"))","v":""},{"$f":"IF(OR($B928=\"N\",'Enrollment Form'!G935=\"\"),\"\",IF('Enrollment Form'!$B935<>\"Subscriber\",\"\",IF('Enrollment Form'!$G935='Enrollment Form'!$H935,\"Y\",\"N\")))","v":""},{"$f":"IF($B928=\"N\",\"\",IF(AND(COUNTIFS('Enrollment Form'!$H$11:$H$1000,'Enrollment Form'!$H935,'Enrollment Form'!$B$11:$B$1000,'Enrollment Form'!$B935)>1,'Enrollment Form'!$H935<>\"\"),\"N\",\"Y\"))","v":""},{"$f":"IF($B928=\"N\",\"\",IF(LEN('Enrollment Form'!$Y935)=0,\"\",IF(LEN('Enrollment Form'!$Y935)<>5,\"N\",\"Y\")))","v":""},{"$f":"IF($B928=\"N\",\"\",IF(LEN('Enrollment Form'!$AD935=0),\"\",IF(LEN('Enrollment Form'!$AD935)<>5,\"N\",\"Y\")))","v":""},{"$f":"IF($B928=\"N\",\"\",IF(LEN('Enrollment Form'!$BL935=0),\"\",IF(LEN('Enrollment Form'!$BL935)<>5,\"N\",\"Y\")))","v":""},{"$f":"IF($B928=\"N\",\"\",IF(LEN('Enrollment Form'!$AE935)=0,\"\",IF(LEN('Enrollment Form'!$AE935)<>10,\"N\",\"Y\")))","v":""},{"$f":"IF($B928=\"N\",\"\",IF(LEN('Enrollment Form'!$AF935)=0,\"\",IF(LEN('Enrollment Form'!$AF935)<>10,\"N\",\"Y\")))","v":""},{"$f":"IF('Enrollment Form'!$O935<>\"Graded\",\"-\",IF(AND('Enrollment Form'!$O935=\"Graded\",'Enrollment Form'!$AO935<>\"\"),\"Y\",\"N\"))","v":"-"},{"$f":"IF($B928=\"N\",\"\",IF(OR('Enrollment Form'!$B935<>\"Subscriber\",'Enrollment Form'!$C935=\"ROC\"),\"-\",IF(AND('Enrollment Form'!$B935=\"Subscriber\",'Enrollment Form'!$C935=\"Enroll\",'Enrollment Form'!$AJ935<>\"\"),\"Y\",\"N\")))","v":""},{"$f":"IF($B928=\"N\",\"\",IF(OR('Enrollment Form'!$B935<>\"Subscriber\",'Enrollment Form'!$C935=\"ROC\"),\"-\",IF(AND('Enrollment Form'!$B935=\"Subscriber\",'Enrollment Form'!$C935=\"Enroll\",'Enrollment Form'!$AK935<>\"\"),\"Y\",\"N\")))","v":""},{"$f":"IF($B928=\"N\",\"\",IF(OR('Enrollment Form'!$B935<>\"Subscriber\",'Enrollment Form'!$C935=\"ROC\"),\"-\",IF(AND('Enrollment Form'!$B935=\"Subscriber\",'Enrollment Form'!$C935=\"Enroll\",'Enrollment Form'!$AL935<>\"\"),\"Y\",\"N\")))","v":""},{"$f":"IF($B928=\"N\",\"\",IF(OR('Enrollment Form'!$B935<>\"Subscriber\",'Enrollment Form'!$C935=\"ROC\"),\"-\",IF(AND('Enrollment Form'!$B935=\"Subscriber\",'Enrollment Form'!$C935=\"Enroll\",'Enrollment Form'!$AM935<>\"\"),\"Y\",\"N\")))","v":""},{"$f":"IF($B928=\"N\",\"\",IF(OR('Enrollment Form'!$B935<>\"Subscriber\",'Enrollment Form'!$C935=\"ROC\"),\"-\",IF(AND('Enrollment Form'!$B935=\"Subscriber\",'Enrollment Form'!$C935=\"Enroll\",'Enrollment Form'!$AN935<>\"\"),\"Y\",\"N\")))","v":""},{"$f":"IF($B928=\"N\",\"\",IF(OR('Enrollment Form'!$B935<>\"Subscriber\",'Enrollment Form'!$C935=\"ROC\"),\"-\",IF(AND('Enrollment Form'!$B935=\"Subscriber\",'Enrollment Form'!$C935=\"Enroll\",'Enrollment Form'!$AP935<>\"\"),\"Y\",\"N\")))","v":""},{"$f":"IF($B928=\"N\",\"\",IF($Q928=\"-\",\"-\",IF(AND($Q928=\"Y\",'Enrollment Form'!$AP935=\"No\"),\"-\",IF(AND($Q928=\"Y\",'Enrollment Form'!$AP935=\"Yes\",'Enrollment Form'!$AQ935<>\"\"),\"Y\",\"N\"))))","v":""},{"$f":"IF($B928=\"N\",\"\",IF(OR('Enrollment Form'!$B935<>\"Subscriber\",'Enrollment Form'!$C935=\"ROC\"),\"-\",IF(AND('Enrollment Form'!$B935=\"Subscriber\",'Enrollment Form'!$C935=\"Enroll\",'Enrollment Form'!$CO935<>\"\"),\"Y\",\"N\")))","v":""},{"$f":"IF($B928=\"N\",\"\",IF($S928=\"-\",\"-\",IF(AND($S928=\"Y\",'Enrollment Form'!$CO935=\"No\"),\"-\",IF(AND($S928=\"Y\",'Enrollment Form'!$CO935=\"Yes\",'Enrollment Form'!$CP935<>\"\"),\"Y\",\"N\"))))","v":""},{"$f":"IF(OR('Enrollment Form'!$AV935=\"Yes\",'Enrollment Form'!$AV935=\"\"),\"-\",IF(AND('Enrollment Form'!$AV935=\"No\",ISERROR(FIND(\"HMO\",VLOOKUP('Enrollment Form'!G935,'Enrollment Form'!H$11:J$1000,3,FALSE),1))=FALSE,COUNTA('Enrollment Form'!$AW935:$AZ935)=4),\"Y\",\"N\"))","v":"-"},{"$f":"IF($B928=\"N\",\"\",IF('Enrollment Form'!$B935=\"Subscriber\",\"-\",IF(COUNTA('Enrollment Form'!$BE935,'Enrollment Form'!$BG935)=2,\"Y\",\"N\")))","v":""},{"$f":"IF($B928=\"N\",\"\",IF(OR('Enrollment Form'!$AU935=\"\",'Enrollment Form'!$AU935=\"No\"),\"-\",IF(AND('Enrollment Form'!$AU935=\"Yes\",COUNTA('Enrollment Form'!$CK935)=1),\"Y\",\"N\")))","v":""},{"$f":"IF(OR('Enrollment Form'!$CK935=\"\",'Enrollment Form'!$CK935=\"No\"),\"-\",IF(COUNTA('Enrollment Form'!$CM935:$CN935)=2,\"Y\",\"N\"))","v":"-"},{"$f":"IF($B928=\"N\",\"\",IF(COUNTIF('Enrollment Form'!$CZ935:$DO935,\"Other\")=COUNTA('Enrollment Form'!$DF935,'Enrollment Form'!$DA935,'Enrollment Form'!$DK935,'Enrollment Form'!$DP935),\"Y\",\"N\"))","v":""},{"$f":"IF($B928=\"N\",\"\",IF(OR('Enrollment Form'!B935<>\"Subscriber\",'Enrollment Form'!C935=\"ROC\",COUNTIF('Enrollment Form'!AS935:AT935,\"Yes\")>=1),\"-\",IF(AND('Enrollment Form'!C935=\"Enroll\",COUNTIF('Enrollment Form'!AS935:AT935,\"No\")=2,'Enrollment Form'!AU935=\"\"),\"N\",\"Y\")))","v":""},{"$f":"IF(OR(B928=\"N\",'Enrollment Form'!B935<>\"Subscriber\",'Enrollment Form'!C935=\"ROC\",'Enrollment Form'!O935<>\"Multiple of Salary\"),\"-\",IF(COUNTA('Enrollment Form'!T935:U935)<2,\"N\",\"Y\"))","v":"-"},{"$f":"IF(B928=\"N\",\"\",IF(OR('Enrollment Form'!C935=\"ROC\",'Enrollment Form'!B935<>\"Subscriber\",'Enrollment Form'!O935=\"Waive\",'Enrollment Form'!O935=\"\"),\"-\",IF('Enrollment Form'!P935=\"\",\"N\",\"Y\")))","v":""},{"$f":"IF($B928=\"N\",\"\",IF(AND('Enrollment Form'!$C935=\"ROC\",'Enrollment Form'!$DS935<>\"\"),\"Y\",IF(AND('Enrollment Form'!$C935=\"ROC\",'Enrollment Form'!$DS935=\"\"),\"N\",IF(AND('Enrollment Form'!$C935=\"Enroll\",'Enrollment Form'!$B935=\"Subscriber\",'Enrollment Form'!$CQ935=\"No\",'Enrollment Form'!$DS935=\"\"),\"N\",IF(AND('Enrollment Form'!$C935=\"Enroll\",'Enrollment Form'!$B935=\"Subscriber\",'Enrollment Form'!$CQ935=\"Yes\"),\"-\",\"Y\")))))","v":""},{"$f":"IF($B928=\"N\",\"\",IF(AND('Enrollment Form'!$C935=\"ROC\",'Enrollment Form'!$DT935<>\"\"),\"Y\",IF(AND('Enrollment Form'!$C935=\"ROC\",'Enrollment Form'!$DT935=\"\"),\"N\",IF(AND('Enrollment Form'!$C935=\"Enroll\",'Enrollment Form'!$B935=\"Subscriber\",'Enrollment Form'!$CQ935=\"No\",'Enrollment Form'!$DT935=\"\"),\"N\",IF(AND('Enrollment Form'!$C935=\"Enroll\",'Enrollment Form'!$B935=\"Subscriber\",'Enrollment Form'!$CQ935=\"Yes\"),\"-\",\"Y\")))))","v":""},{"$f":"IF('Enrollment Form'!AH935=\"\",\"\",IF(ISERROR(SEARCH(\".\",'Enrollment Form'!AH935,SEARCH(\"@\",'Enrollment Form'!AH935))),\"N\",\"Y\"))","v":""},{"$f":"IF(OR($B928=\"N\",'Enrollment Form'!$G935=\"\"),\"\",IF('Enrollment Form'!$B935<>\"Subscriber\",\"-\",IF(COUNTIF('Enrollment Form'!$AS935:$AT935,\"Yes\")=2,\"N\",\"Y\")))","v":""},{"$f":"IF(OR('Enrollment Form'!$CC935=\"\",'Enrollment Form'!$CC935=\"No\"),\"-\",IF(AND('Enrollment Form'!$CC935=\"Yes\",'Enrollment Form'!$CD935=\"\"),\"N\",\"Y\"))","v":"-"},{"$f":"IF(OR('Enrollment Form'!$CE935=\"\",'Enrollment Form'!$CE935=\"No\"),\"-\",IF(AND('Enrollment Form'!$CE935=\"Yes\",'Enrollment Form'!$CF935=\"\"),\"N\",\"Y\"))","v":"-"},{"$f":"IF(OR('Enrollment Form'!$CG935=\"\",'Enrollment Form'!$CG935=\"No\"),\"-\",IF(AND('Enrollment Form'!$CG935=\"Yes\",'Enrollment Form'!$CH935=\"\"),\"N\",\"Y\"))","v":"-"},{"$f":"IF(OR('Enrollment Form'!$CG935=\"\",'Enrollment Form'!$CG935=\"No\"),\"-\",IF(AND('Enrollment Form'!$CG935=\"Yes\",'Enrollment Form'!$CI935=\"\"),\"N\",\"Y\"))","v":"-"},{"$f":"IF('Enrollment Form'!B935<>\"Subscriber\",\"-\",IF(AND('Enrollment Form'!B935=\"Subscriber\",'Enrollment Form'!C935=\"Enroll\",'Enrollment Form'!AA935=\"\"),\"N\",\"Y\"))","v":"-"},{"$f":"IF(OR('Enrollment Form'!B935=\"Subscriber\",'Enrollment Form'!B935=\"\"),\"-\",IF('Enrollment Form'!BI935=\"\",\"N\",\"Y\"))","v":"-"},{"$f":"IF('Enrollment Form'!B935<>\"Subscriber\",\"-\",IF(AND('Enrollment Form'!B935=\"Subscriber\",'Enrollment Form'!G935=\"\"),\"N\",\"Y\"))","v":"-"},{"$f":"IF('Enrollment Form'!A935=\"\",\"\",IF('Enrollment Form'!B935=\"Subscriber\",\"-\",IF(AND('Enrollment Form'!B935<>\"Subscriber\",'Enrollment Form'!G935='Enrollment Form'!H935),\"N\",\"Y\")))","v":""},0]
[936,{"$f":"IF('Enrollment Form'!$A936<>\"\",\"Y\",\"N\")","v":"N"},{"$f":"IF(AND('Enrollment Form'!$B936=\"\",'Enrollment Form'!$C936<>\"\"),\"N\",IF($B929=\"N\",\"\",\"Y\"))","v":""},{"$f":"IF(OR($B929=\"N\",'Enrollment Form'!G936=\"\"),\"\",IF('Enrollment Form'!$B936<>\"Subscriber\",\"\",IF('Enrollment Form'!$G936='Enrollment Form'!$H936,\"Y\",\"N\")))","v":""},{"$f":"IF($B929=\"N\",\"\",IF(AND(COUNTIFS('Enrollment Form'!$H$11:$H$1000,'Enrollment Form'!$H936,'Enrollment Form'!$B$11:$B$1000,'Enrollment Form'!$B936)>1,'Enrollment Form'!$H936<>\"\"),\"N\",\"Y\"))","v":""},{"$f":"IF($B929=\"N\",\"\",IF(LEN('Enrollment Form'!$Y936)=0,\"\",IF(LEN('Enrollment Form'!$Y936)<>5,\"N\",\"Y\")))","v":""},{"$f":"IF($B929=\"N\",\"\",IF(LEN('Enrollment Form'!$AD936=0),\"\",IF(LEN('Enrollment Form'!$AD936)<>5,\"N\",\"Y\")))","v":""},{"$f":"IF($B929=\"N\",\"\",IF(LEN('Enrollment Form'!$BL936=0),\"\",IF(LEN('Enrollment Form'!$BL936)<>5,\"N\",\"Y\")))","v":""},{"$f":"IF($B929=\"N\",\"\",IF(LEN('Enrollment Form'!$AE936)=0,\"\",IF(LEN('Enrollment Form'!$AE936)<>10,\"N\",\"Y\")))","v":""},{"$f":"IF($B929=\"N\",\"\",IF(LEN('Enrollment Form'!$AF936)=0,\"\",IF(LEN('Enrollment Form'!$AF936)<>10,\"N\",\"Y\")))","v":""},{"$f":"IF('Enrollment Form'!$O936<>\"Graded\",\"-\",IF(AND('Enrollment Form'!$O936=\"Graded\",'Enrollment Form'!$AO936<>\"\"),\"Y\",\"N\"))","v":"-"},{"$f":"IF($B929=\"N\",\"\",IF(OR('Enrollment Form'!$B936<>\"Subscriber\",'Enrollment Form'!$C936=\"ROC\"),\"-\",IF(AND('Enrollment Form'!$B936=\"Subscriber\",'Enrollment Form'!$C936=\"Enroll\",'Enrollment Form'!$AJ936<>\"\"),\"Y\",\"N\")))","v":""},{"$f":"IF($B929=\"N\",\"\",IF(OR('Enrollment Form'!$B936<>\"Subscriber\",'Enrollment Form'!$C936=\"ROC\"),\"-\",IF(AND('Enrollment Form'!$B936=\"Subscriber\",'Enrollment Form'!$C936=\"Enroll\",'Enrollment Form'!$AK936<>\"\"),\"Y\",\"N\")))","v":""},{"$f":"IF($B929=\"N\",\"\",IF(OR('Enrollment Form'!$B936<>\"Subscriber\",'Enrollment Form'!$C936=\"ROC\"),\"-\",IF(AND('Enrollment Form'!$B936=\"Subscriber\",'Enrollment Form'!$C936=\"Enroll\",'Enrollment Form'!$AL936<>\"\"),\"Y\",\"N\")))","v":""},{"$f":"IF($B929=\"N\",\"\",IF(OR('Enrollment Form'!$B936<>\"Subscriber\",'Enrollment Form'!$C936=\"ROC\"),\"-\",IF(AND('Enrollment Form'!$B936=\"Subscriber\",'Enrollment Form'!$C936=\"Enroll\",'Enrollment Form'!$AM936<>\"\"),\"Y\",\"N\")))","v":""},{"$f":"IF($B929=\"N\",\"\",IF(OR('Enrollment Form'!$B936<>\"Subscriber\",'Enrollment Form'!$C936=\"ROC\"),\"-\",IF(AND('Enrollment Form'!$B936=\"Subscriber\",'Enrollment Form'!$C936=\"Enroll\",'Enrollment Form'!$AN936<>\"\"),\"Y\",\"N\")))","v":""},{"$f":"IF($B929=\"N\",\"\",IF(OR('Enrollment Form'!$B936<>\"Subscriber\",'Enrollment Form'!$C936=\"ROC\"),\"-\",IF(AND('Enrollment Form'!$B936=\"Subscriber\",'Enrollment Form'!$C936=\"Enroll\",'Enrollment Form'!$AP936<>\"\"),\"Y\",\"N\")))","v":""},{"$f":"IF($B929=\"N\",\"\",IF($Q929=\"-\",\"-\",IF(AND($Q929=\"Y\",'Enrollment Form'!$AP936=\"No\"),\"-\",IF(AND($Q929=\"Y\",'Enrollment Form'!$AP936=\"Yes\",'Enrollment Form'!$AQ936<>\"\"),\"Y\",\"N\"))))","v":""},{"$f":"IF($B929=\"N\",\"\",IF(OR('Enrollment Form'!$B936<>\"Subscriber\",'Enrollment Form'!$C936=\"ROC\"),\"-\",IF(AND('Enrollment Form'!$B936=\"Subscriber\",'Enrollment Form'!$C936=\"Enroll\",'Enrollment Form'!$CO936<>\"\"),\"Y\",\"N\")))","v":""},{"$f":"IF($B929=\"N\",\"\",IF($S929=\"-\",\"-\",IF(AND($S929=\"Y\",'Enrollment Form'!$CO936=\"No\"),\"-\",IF(AND($S929=\"Y\",'Enrollment Form'!$CO936=\"Yes\",'Enrollment Form'!$CP936<>\"\"),\"Y\",\"N\"))))","v":""},{"$f":"IF(OR('Enrollment Form'!$AV936=\"Yes\",'Enrollment Form'!$AV936=\"\"),\"-\",IF(AND('Enrollment Form'!$AV936=\"No\",ISERROR(FIND(\"HMO\",VLOOKUP('Enrollment Form'!G936,'Enrollment Form'!H$11:J$1000,3,FALSE),1))=FALSE,COUNTA('Enrollment Form'!$AW936:$AZ936)=4),\"Y\",\"N\"))","v":"-"},{"$f":"IF($B929=\"N\",\"\",IF('Enrollment Form'!$B936=\"Subscriber\",\"-\",IF(COUNTA('Enrollment Form'!$BE936,'Enrollment Form'!$BG936)=2,\"Y\",\"N\")))","v":""},{"$f":"IF($B929=\"N\",\"\",IF(OR('Enrollment Form'!$AU936=\"\",'Enrollment Form'!$AU936=\"No\"),\"-\",IF(AND('Enrollment Form'!$AU936=\"Yes\",COUNTA('Enrollment Form'!$CK936)=1),\"Y\",\"N\")))","v":""},{"$f":"IF(OR('Enrollment Form'!$CK936=\"\",'Enrollment Form'!$CK936=\"No\"),\"-\",IF(COUNTA('Enrollment Form'!$CM936:$CN936)=2,\"Y\",\"N\"))","v":"-"},{"$f":"IF($B929=\"N\",\"\",IF(COUNTIF('Enrollment Form'!$CZ936:$DO936,\"Other\")=COUNTA('Enrollment Form'!$DF936,'Enrollment Form'!$DA936,'Enrollment Form'!$DK936,'Enrollment Form'!$DP936),\"Y\",\"N\"))","v":""},{"$f":"IF($B929=\"N\",\"\",IF(OR('Enrollment Form'!B936<>\"Subscriber\",'Enrollment Form'!C936=\"ROC\",COUNTIF('Enrollment Form'!AS936:AT936,\"Yes\")>=1),\"-\",IF(AND('Enrollment Form'!C936=\"Enroll\",COUNTIF('Enrollment Form'!AS936:AT936,\"No\")=2,'Enrollment Form'!AU936=\"\"),\"N\",\"Y\")))","v":""},{"$f":"IF(OR(B929=\"N\",'Enrollment Form'!B936<>\"Subscriber\",'Enrollment Form'!C936=\"ROC\",'Enrollment Form'!O936<>\"Multiple of Salary\"),\"-\",IF(COUNTA('Enrollment Form'!T936:U936)<2,\"N\",\"Y\"))","v":"-"},{"$f":"IF(B929=\"N\",\"\",IF(OR('Enrollment Form'!C936=\"ROC\",'Enrollment Form'!B936<>\"Subscriber\",'Enrollment Form'!O936=\"Waive\",'Enrollment Form'!O936=\"\"),\"-\",IF('Enrollment Form'!P936=\"\",\"N\",\"Y\")))","v":""},{"$f":"IF($B929=\"N\",\"\",IF(AND('Enrollment Form'!$C936=\"ROC\",'Enrollment Form'!$DS936<>\"\"),\"Y\",IF(AND('Enrollment Form'!$C936=\"ROC\",'Enrollment Form'!$DS936=\"\"),\"N\",IF(AND('Enrollment Form'!$C936=\"Enroll\",'Enrollment Form'!$B936=\"Subscriber\",'Enrollment Form'!$CQ936=\"No\",'Enrollment Form'!$DS936=\"\"),\"N\",IF(AND('Enrollment Form'!$C936=\"Enroll\",'Enrollment Form'!$B936=\"Subscriber\",'Enrollment Form'!$CQ936=\"Yes\"),\"-\",\"Y\")))))","v":""},{"$f":"IF($B929=\"N\",\"\",IF(AND('Enrollment Form'!$C936=\"ROC\",'Enrollment Form'!$DT936<>\"\"),\"Y\",IF(AND('Enrollment Form'!$C936=\"ROC\",'Enrollment Form'!$DT936=\"\"),\"N\",IF(AND('Enrollment Form'!$C936=\"Enroll\",'Enrollment Form'!$B936=\"Subscriber\",'Enrollment Form'!$CQ936=\"No\",'Enrollment Form'!$DT936=\"\"),\"N\",IF(AND('Enrollment Form'!$C936=\"Enroll\",'Enrollment Form'!$B936=\"Subscriber\",'Enrollment Form'!$CQ936=\"Yes\"),\"-\",\"Y\")))))","v":""},{"$f":"IF('Enrollment Form'!AH936=\"\",\"\",IF(ISERROR(SEARCH(\".\",'Enrollment Form'!AH936,SEARCH(\"@\",'Enrollment Form'!AH936))),\"N\",\"Y\"))","v":""},{"$f":"IF(OR($B929=\"N\",'Enrollment Form'!$G936=\"\"),\"\",IF('Enrollment Form'!$B936<>\"Subscriber\",\"-\",IF(COUNTIF('Enrollment Form'!$AS936:$AT936,\"Yes\")=2,\"N\",\"Y\")))","v":""},{"$f":"IF(OR('Enrollment Form'!$CC936=\"\",'Enrollment Form'!$CC936=\"No\"),\"-\",IF(AND('Enrollment Form'!$CC936=\"Yes\",'Enrollment Form'!$CD936=\"\"),\"N\",\"Y\"))","v":"-"},{"$f":"IF(OR('Enrollment Form'!$CE936=\"\",'Enrollment Form'!$CE936=\"No\"),\"-\",IF(AND('Enrollment Form'!$CE936=\"Yes\",'Enrollment Form'!$CF936=\"\"),\"N\",\"Y\"))","v":"-"},{"$f":"IF(OR('Enrollment Form'!$CG936=\"\",'Enrollment Form'!$CG936=\"No\"),\"-\",IF(AND('Enrollment Form'!$CG936=\"Yes\",'Enrollment Form'!$CH936=\"\"),\"N\",\"Y\"))","v":"-"},{"$f":"IF(OR('Enrollment Form'!$CG936=\"\",'Enrollment Form'!$CG936=\"No\"),\"-\",IF(AND('Enrollment Form'!$CG936=\"Yes\",'Enrollment Form'!$CI936=\"\"),\"N\",\"Y\"))","v":"-"},{"$f":"IF('Enrollment Form'!B936<>\"Subscriber\",\"-\",IF(AND('Enrollment Form'!B936=\"Subscriber\",'Enrollment Form'!C936=\"Enroll\",'Enrollment Form'!AA936=\"\"),\"N\",\"Y\"))","v":"-"},{"$f":"IF(OR('Enrollment Form'!B936=\"Subscriber\",'Enrollment Form'!B936=\"\"),\"-\",IF('Enrollment Form'!BI936=\"\",\"N\",\"Y\"))","v":"-"},{"$f":"IF('Enrollment Form'!B936<>\"Subscriber\",\"-\",IF(AND('Enrollment Form'!B936=\"Subscriber\",'Enrollment Form'!G936=\"\"),\"N\",\"Y\"))","v":"-"},{"$f":"IF('Enrollment Form'!A936=\"\",\"\",IF('Enrollment Form'!B936=\"Subscriber\",\"-\",IF(AND('Enrollment Form'!B936<>\"Subscriber\",'Enrollment Form'!G936='Enrollment Form'!H936),\"N\",\"Y\")))","v":""},0]
[937,{"$f":"IF('Enrollment Form'!$A937<>\"\",\"Y\",\"N\")","v":"N"},{"$f":"IF(AND('Enrollment Form'!$B937=\"\",'Enrollment Form'!$C937<>\"\"),\"N\",IF($B930=\"N\",\"\",\"Y\"))","v":""},{"$f":"IF(OR($B930=\"N\",'Enrollment Form'!G937=\"\"),\"\",IF('Enrollment Form'!$B937<>\"Subscriber\",\"\",IF('Enrollment Form'!$G937='Enrollment Form'!$H937,\"Y\",\"N\")))","v":""},{"$f":"IF($B930=\"N\",\"\",IF(AND(COUNTIFS('Enrollment Form'!$H$11:$H$1000,'Enrollment Form'!$H937,'Enrollment Form'!$B$11:$B$1000,'Enrollment Form'!$B937)>1,'Enrollment Form'!$H937<>\"\"),\"N\",\"Y\"))","v":""},{"$f":"IF($B930=\"N\",\"\",IF(LEN('Enrollment Form'!$Y937)=0,\"\",IF(LEN('Enrollment Form'!$Y937)<>5,\"N\",\"Y\")))","v":""},{"$f":"IF($B930=\"N\",\"\",IF(LEN('Enrollment Form'!$AD937=0),\"\",IF(LEN('Enrollment Form'!$AD937)<>5,\"N\",\"Y\")))","v":""},{"$f":"IF($B930=\"N\",\"\",IF(LEN('Enrollment Form'!$BL937=0),\"\",IF(LEN('Enrollment Form'!$BL937)<>5,\"N\",\"Y\")))","v":""},{"$f":"IF($B930=\"N\",\"\",IF(LEN('Enrollment Form'!$AE937)=0,\"\",IF(LEN('Enrollment Form'!$AE937)<>10,\"N\",\"Y\")))","v":""},{"$f":"IF($B930=\"N\",\"\",IF(LEN('Enrollment Form'!$AF937)=0,\"\",IF(LEN('Enrollment Form'!$AF937)<>10,\"N\",\"Y\")))","v":""},{"$f":"IF('Enrollment Form'!$O937<>\"Graded\",\"-\",IF(AND('Enrollment Form'!$O937=\"Graded\",'Enrollment Form'!$AO937<>\"\"),\"Y\",\"N\"))","v":"-"},{"$f":"IF($B930=\"N\",\"\",IF(OR('Enrollment Form'!$B937<>\"Subscriber\",'Enrollment Form'!$C937=\"ROC\"),\"-\",IF(AND('Enrollment Form'!$B937=\"Subscriber\",'Enrollment Form'!$C937=\"Enroll\",'Enrollment Form'!$AJ937<>\"\"),\"Y\",\"N\")))","v":""},{"$f":"IF($B930=\"N\",\"\",IF(OR('Enrollment Form'!$B937<>\"Subscriber\",'Enrollment Form'!$C937=\"ROC\"),\"-\",IF(AND('Enrollment Form'!$B937=\"Subscriber\",'Enrollment Form'!$C937=\"Enroll\",'Enrollment Form'!$AK937<>\"\"),\"Y\",\"N\")))","v":""},{"$f":"IF($B930=\"N\",\"\",IF(OR('Enrollment Form'!$B937<>\"Subscriber\",'Enrollment Form'!$C937=\"ROC\"),\"-\",IF(AND('Enrollment Form'!$B937=\"Subscriber\",'Enrollment Form'!$C937=\"Enroll\",'Enrollment Form'!$AL937<>\"\"),\"Y\",\"N\")))","v":""},{"$f":"IF($B930=\"N\",\"\",IF(OR('Enrollment Form'!$B937<>\"Subscriber\",'Enrollment Form'!$C937=\"ROC\"),\"-\",IF(AND('Enrollment Form'!$B937=\"Subscriber\",'Enrollment Form'!$C937=\"Enroll\",'Enrollment Form'!$AM937<>\"\"),\"Y\",\"N\")))","v":""},{"$f":"IF($B930=\"N\",\"\",IF(OR('Enrollment Form'!$B937<>\"Subscriber\",'Enrollment Form'!$C937=\"ROC\"),\"-\",IF(AND('Enrollment Form'!$B937=\"Subscriber\",'Enrollment Form'!$C937=\"Enroll\",'Enrollment Form'!$AN937<>\"\"),\"Y\",\"N\")))","v":""},{"$f":"IF($B930=\"N\",\"\",IF(OR('Enrollment Form'!$B937<>\"Subscriber\",'Enrollment Form'!$C937=\"ROC\"),\"-\",IF(AND('Enrollment Form'!$B937=\"Subscriber\",'Enrollment Form'!$C937=\"Enroll\",'Enrollment Form'!$AP937<>\"\"),\"Y\",\"N\")))","v":""},{"$f":"IF($B930=\"N\",\"\",IF($Q930=\"-\",\"-\",IF(AND($Q930=\"Y\",'Enrollment Form'!$AP937=\"No\"),\"-\",IF(AND($Q930=\"Y\",'Enrollment Form'!$AP937=\"Yes\",'Enrollment Form'!$AQ937<>\"\"),\"Y\",\"N\"))))","v":""},{"$f":"IF($B930=\"N\",\"\",IF(OR('Enrollment Form'!$B937<>\"Subscriber\",'Enrollment Form'!$C937=\"ROC\"),\"-\",IF(AND('Enrollment Form'!$B937=\"Subscriber\",'Enrollment Form'!$C937=\"Enroll\",'Enrollment Form'!$CO937<>\"\"),\"Y\",\"N\")))","v":""},{"$f":"IF($B930=\"N\",\"\",IF($S930=\"-\",\"-\",IF(AND($S930=\"Y\",'Enrollment Form'!$CO937=\"No\"),\"-\",IF(AND($S930=\"Y\",'Enrollment Form'!$CO937=\"Yes\",'Enrollment Form'!$CP937<>\"\"),\"Y\",\"N\"))))","v":""},{"$f":"IF(OR('Enrollment Form'!$AV937=\"Yes\",'Enrollment Form'!$AV937=\"\"),\"-\",IF(AND('Enrollment Form'!$AV937=\"No\",ISERROR(FIND(\"HMO\",VLOOKUP('Enrollment Form'!G937,'Enrollment Form'!H$11:J$1000,3,FALSE),1))=FALSE,COUNTA('Enrollment Form'!$AW937:$AZ937)=4),\"Y\",\"N\"))","v":"-"},{"$f":"IF($B930=\"N\",\"\",IF('Enrollment Form'!$B937=\"Subscriber\",\"-\",IF(COUNTA('Enrollment Form'!$BE937,'Enrollment Form'!$BG937)=2,\"Y\",\"N\")))","v":""},{"$f":"IF($B930=\"N\",\"\",IF(OR('Enrollment Form'!$AU937=\"\",'Enrollment Form'!$AU937=\"No\"),\"-\",IF(AND('Enrollment Form'!$AU937=\"Yes\",COUNTA('Enrollment Form'!$CK937)=1),\"Y\",\"N\")))","v":""},{"$f":"IF(OR('Enrollment Form'!$CK937=\"\",'Enrollment Form'!$CK937=\"No\"),\"-\",IF(COUNTA('Enrollment Form'!$CM937:$CN937)=2,\"Y\",\"N\"))","v":"-"},{"$f":"IF($B930=\"N\",\"\",IF(COUNTIF('Enrollment Form'!$CZ937:$DO937,\"Other\")=COUNTA('Enrollment Form'!$DF937,'Enrollment Form'!$DA937,'Enrollment Form'!$DK937,'Enrollment Form'!$DP937),\"Y\",\"N\"))","v":""},{"$f":"IF($B930=\"N\",\"\",IF(OR('Enrollment Form'!B937<>\"Subscriber\",'Enrollment Form'!C937=\"ROC\",COUNTIF('Enrollment Form'!AS937:AT937,\"Yes\")>=1),\"-\",IF(AND('Enrollment Form'!C937=\"Enroll\",COUNTIF('Enrollment Form'!AS937:AT937,\"No\")=2,'Enrollment Form'!AU937=\"\"),\"N\",\"Y\")))","v":""},{"$f":"IF(OR(B930=\"N\",'Enrollment Form'!B937<>\"Subscriber\",'Enrollment Form'!C937=\"ROC\",'Enrollment Form'!O937<>\"Multiple of Salary\"),\"-\",IF(COUNTA('Enrollment Form'!T937:U937)<2,\"N\",\"Y\"))","v":"-"},{"$f":"IF(B930=\"N\",\"\",IF(OR('Enrollment Form'!C937=\"ROC\",'Enrollment Form'!B937<>\"Subscriber\",'Enrollment Form'!O937=\"Waive\",'Enrollment Form'!O937=\"\"),\"-\",IF('Enrollment Form'!P937=\"\",\"N\",\"Y\")))","v":""},{"$f":"IF($B930=\"N\",\"\",IF(AND('Enrollment Form'!$C937=\"ROC\",'Enrollment Form'!$DS937<>\"\"),\"Y\",IF(AND('Enrollment Form'!$C937=\"ROC\",'Enrollment Form'!$DS937=\"\"),\"N\",IF(AND('Enrollment Form'!$C937=\"Enroll\",'Enrollment Form'!$B937=\"Subscriber\",'Enrollment Form'!$CQ937=\"No\",'Enrollment Form'!$DS937=\"\"),\"N\",IF(AND('Enrollment Form'!$C937=\"Enroll\",'Enrollment Form'!$B937=\"Subscriber\",'Enrollment Form'!$CQ937=\"Yes\"),\"-\",\"Y\")))))","v":""},{"$f":"IF($B930=\"N\",\"\",IF(AND('Enrollment Form'!$C937=\"ROC\",'Enrollment Form'!$DT937<>\"\"),\"Y\",IF(AND('Enrollment Form'!$C937=\"ROC\",'Enrollment Form'!$DT937=\"\"),\"N\",IF(AND('Enrollment Form'!$C937=\"Enroll\",'Enrollment Form'!$B937=\"Subscriber\",'Enrollment Form'!$CQ937=\"No\",'Enrollment Form'!$DT937=\"\"),\"N\",IF(AND('Enrollment Form'!$C937=\"Enroll\",'Enrollment Form'!$B937=\"Subscriber\",'Enrollment Form'!$CQ937=\"Yes\"),\"-\",\"Y\")))))","v":""},{"$f":"IF('Enrollment Form'!AH937=\"\",\"\",IF(ISERROR(SEARCH(\".\",'Enrollment Form'!AH937,SEARCH(\"@\",'Enrollment Form'!AH937))),\"N\",\"Y\"))","v":""},{"$f":"IF(OR($B930=\"N\",'Enrollment Form'!$G937=\"\"),\"\",IF('Enrollment Form'!$B937<>\"Subscriber\",\"-\",IF(COUNTIF('Enrollment Form'!$AS937:$AT937,\"Yes\")=2,\"N\",\"Y\")))","v":""},{"$f":"IF(OR('Enrollment Form'!$CC937=\"\",'Enrollment Form'!$CC937=\"No\"),\"-\",IF(AND('Enrollment Form'!$CC937=\"Yes\",'Enrollment Form'!$CD937=\"\"),\"N\",\"Y\"))","v":"-"},{"$f":"IF(OR('Enrollment Form'!$CE937=\"\",'Enrollment Form'!$CE937=\"No\"),\"-\",IF(AND('Enrollment Form'!$CE937=\"Yes\",'Enrollment Form'!$CF937=\"\"),\"N\",\"Y\"))","v":"-"},{"$f":"IF(OR('Enrollment Form'!$CG937=\"\",'Enrollment Form'!$CG937=\"No\"),\"-\",IF(AND('Enrollment Form'!$CG937=\"Yes\",'Enrollment Form'!$CH937=\"\"),\"N\",\"Y\"))","v":"-"},{"$f":"IF(OR('Enrollment Form'!$CG937=\"\",'Enrollment Form'!$CG937=\"No\"),\"-\",IF(AND('Enrollment Form'!$CG937=\"Yes\",'Enrollment Form'!$CI937=\"\"),\"N\",\"Y\"))","v":"-"},{"$f":"IF('Enrollment Form'!B937<>\"Subscriber\",\"-\",IF(AND('Enrollment Form'!B937=\"Subscriber\",'Enrollment Form'!C937=\"Enroll\",'Enrollment Form'!AA937=\"\"),\"N\",\"Y\"))","v":"-"},{"$f":"IF(OR('Enrollment Form'!B937=\"Subscriber\",'Enrollment Form'!B937=\"\"),\"-\",IF('Enrollment Form'!BI937=\"\",\"N\",\"Y\"))","v":"-"},{"$f":"IF('Enrollment Form'!B937<>\"Subscriber\",\"-\",IF(AND('Enrollment Form'!B937=\"Subscriber\",'Enrollment Form'!G937=\"\"),\"N\",\"Y\"))","v":"-"},{"$f":"IF('Enrollment Form'!A937=\"\",\"\",IF('Enrollment Form'!B937=\"Subscriber\",\"-\",IF(AND('Enrollment Form'!B937<>\"Subscriber\",'Enrollment Form'!G937='Enrollment Form'!H937),\"N\",\"Y\")))","v":""},0]
[938,{"$f":"IF('Enrollment Form'!$A938<>\"\",\"Y\",\"N\")","v":"N"},{"$f":"IF(AND('Enrollment Form'!$B938=\"\",'Enrollment Form'!$C938<>\"\"),\"N\",IF($B931=\"N\",\"\",\"Y\"))","v":""},{"$f":"IF(OR($B931=\"N\",'Enrollment Form'!G938=\"\"),\"\",IF('Enrollment Form'!$B938<>\"Subscriber\",\"\",IF('Enrollment Form'!$G938='Enrollment Form'!$H938,\"Y\",\"N\")))","v":""},{"$f":"IF($B931=\"N\",\"\",IF(AND(COUNTIFS('Enrollment Form'!$H$11:$H$1000,'Enrollment Form'!$H938,'Enrollment Form'!$B$11:$B$1000,'Enrollment Form'!$B938)>1,'Enrollment Form'!$H938<>\"\"),\"N\",\"Y\"))","v":""},{"$f":"IF($B931=\"N\",\"\",IF(LEN('Enrollment Form'!$Y938)=0,\"\",IF(LEN('Enrollment Form'!$Y938)<>5,\"N\",\"Y\")))","v":""},{"$f":"IF($B931=\"N\",\"\",IF(LEN('Enrollment Form'!$AD938=0),\"\",IF(LEN('Enrollment Form'!$AD938)<>5,\"N\",\"Y\")))","v":""},{"$f":"IF($B931=\"N\",\"\",IF(LEN('Enrollment Form'!$BL938=0),\"\",IF(LEN('Enrollment Form'!$BL938)<>5,\"N\",\"Y\")))","v":""},{"$f":"IF($B931=\"N\",\"\",IF(LEN('Enrollment Form'!$AE938)=0,\"\",IF(LEN('Enrollment Form'!$AE938)<>10,\"N\",\"Y\")))","v":""},{"$f":"IF($B931=\"N\",\"\",IF(LEN('Enrollment Form'!$AF938)=0,\"\",IF(LEN('Enrollment Form'!$AF938)<>10,\"N\",\"Y\")))","v":""},{"$f":"IF('Enrollment Form'!$O938<>\"Graded\",\"-\",IF(AND('Enrollment Form'!$O938=\"Graded\",'Enrollment Form'!$AO938<>\"\"),\"Y\",\"N\"))","v":"-"},{"$f":"IF($B931=\"N\",\"\",IF(OR('Enrollment Form'!$B938<>\"Subscriber\",'Enrollment Form'!$C938=\"ROC\"),\"-\",IF(AND('Enrollment Form'!$B938=\"Subscriber\",'Enrollment Form'!$C938=\"Enroll\",'Enrollment Form'!$AJ938<>\"\"),\"Y\",\"N\")))","v":""},{"$f":"IF($B931=\"N\",\"\",IF(OR('Enrollment Form'!$B938<>\"Subscriber\",'Enrollment Form'!$C938=\"ROC\"),\"-\",IF(AND('Enrollment Form'!$B938=\"Subscriber\",'Enrollment Form'!$C938=\"Enroll\",'Enrollment Form'!$AK938<>\"\"),\"Y\",\"N\")))","v":""},{"$f":"IF($B931=\"N\",\"\",IF(OR('Enrollment Form'!$B938<>\"Subscriber\",'Enrollment Form'!$C938=\"ROC\"),\"-\",IF(AND('Enrollment Form'!$B938=\"Subscriber\",'Enrollment Form'!$C938=\"Enroll\",'Enrollment Form'!$AL938<>\"\"),\"Y\",\"N\")))","v":""},{"$f":"IF($B931=\"N\",\"\",IF(OR('Enrollment Form'!$B938<>\"Subscriber\",'Enrollment Form'!$C938=\"ROC\"),\"-\",IF(AND('Enrollment Form'!$B938=\"Subscriber\",'Enrollment Form'!$C938=\"Enroll\",'Enrollment Form'!$AM938<>\"\"),\"Y\",\"N\")))","v":""},{"$f":"IF($B931=\"N\",\"\",IF(OR('Enrollment Form'!$B938<>\"Subscriber\",'Enrollment Form'!$C938=\"ROC\"),\"-\",IF(AND('Enrollment Form'!$B938=\"Subscriber\",'Enrollment Form'!$C938=\"Enroll\",'Enrollment Form'!$AN938<>\"\"),\"Y\",\"N\")))","v":""},{"$f":"IF($B931=\"N\",\"\",IF(OR('Enrollment Form'!$B938<>\"Subscriber\",'Enrollment Form'!$C938=\"ROC\"),\"-\",IF(AND('Enrollment Form'!$B938=\"Subscriber\",'Enrollment Form'!$C938=\"Enroll\",'Enrollment Form'!$AP938<>\"\"),\"Y\",\"N\")))","v":""},{"$f":"IF($B931=\"N\",\"\",IF($Q931=\"-\",\"-\",IF(AND($Q931=\"Y\",'Enrollment Form'!$AP938=\"No\"),\"-\",IF(AND($Q931=\"Y\",'Enrollment Form'!$AP938=\"Yes\",'Enrollment Form'!$AQ938<>\"\"),\"Y\",\"N\"))))","v":""},{"$f":"IF($B931=\"N\",\"\",IF(OR('Enrollment Form'!$B938<>\"Subscriber\",'Enrollment Form'!$C938=\"ROC\"),\"-\",IF(AND('Enrollment Form'!$B938=\"Subscriber\",'Enrollment Form'!$C938=\"Enroll\",'Enrollment Form'!$CO938<>\"\"),\"Y\",\"N\")))","v":""},{"$f":"IF($B931=\"N\",\"\",IF($S931=\"-\",\"-\",IF(AND($S931=\"Y\",'Enrollment Form'!$CO938=\"No\"),\"-\",IF(AND($S931=\"Y\",'Enrollment Form'!$CO938=\"Yes\",'Enrollment Form'!$CP938<>\"\"),\"Y\",\"N\"))))","v":""},{"$f":"IF(OR('Enrollment Form'!$AV938=\"Yes\",'Enrollment Form'!$AV938=\"\"),\"-\",IF(AND('Enrollment Form'!$AV938=\"No\",ISERROR(FIND(\"HMO\",VLOOKUP('Enrollment Form'!G938,'Enrollment Form'!H$11:J$1000,3,FALSE),1))=FALSE,COUNTA('Enrollment Form'!$AW938:$AZ938)=4),\"Y\",\"N\"))","v":"-"},{"$f":"IF($B931=\"N\",\"\",IF('Enrollment Form'!$B938=\"Subscriber\",\"-\",IF(COUNTA('Enrollment Form'!$BE938,'Enrollment Form'!$BG938)=2,\"Y\",\"N\")))","v":""},{"$f":"IF($B931=\"N\",\"\",IF(OR('Enrollment Form'!$AU938=\"\",'Enrollment Form'!$AU938=\"No\"),\"-\",IF(AND('Enrollment Form'!$AU938=\"Yes\",COUNTA('Enrollment Form'!$CK938)=1),\"Y\",\"N\")))","v":""},{"$f":"IF(OR('Enrollment Form'!$CK938=\"\",'Enrollment Form'!$CK938=\"No\"),\"-\",IF(COUNTA('Enrollment Form'!$CM938:$CN938)=2,\"Y\",\"N\"))","v":"-"},{"$f":"IF($B931=\"N\",\"\",IF(COUNTIF('Enrollment Form'!$CZ938:$DO938,\"Other\")=COUNTA('Enrollment Form'!$DF938,'Enrollment Form'!$DA938,'Enrollment Form'!$DK938,'Enrollment Form'!$DP938),\"Y\",\"N\"))","v":""},{"$f":"IF($B931=\"N\",\"\",IF(OR('Enrollment Form'!B938<>\"Subscriber\",'Enrollment Form'!C938=\"ROC\",COUNTIF('Enrollment Form'!AS938:AT938,\"Yes\")>=1),\"-\",IF(AND('Enrollment Form'!C938=\"Enroll\",COUNTIF('Enrollment Form'!AS938:AT938,\"No\")=2,'Enrollment Form'!AU938=\"\"),\"N\",\"Y\")))","v":""},{"$f":"IF(OR(B931=\"N\",'Enrollment Form'!B938<>\"Subscriber\",'Enrollment Form'!C938=\"ROC\",'Enrollment Form'!O938<>\"Multiple of Salary\"),\"-\",IF(COUNTA('Enrollment Form'!T938:U938)<2,\"N\",\"Y\"))","v":"-"},{"$f":"IF(B931=\"N\",\"\",IF(OR('Enrollment Form'!C938=\"ROC\",'Enrollment Form'!B938<>\"Subscriber\",'Enrollment Form'!O938=\"Waive\",'Enrollment Form'!O938=\"\"),\"-\",IF('Enrollment Form'!P938=\"\",\"N\",\"Y\")))","v":""},{"$f":"IF($B931=\"N\",\"\",IF(AND('Enrollment Form'!$C938=\"ROC\",'Enrollment Form'!$DS938<>\"\"),\"Y\",IF(AND('Enrollment Form'!$C938=\"ROC\",'Enrollment Form'!$DS938=\"\"),\"N\",IF(AND('Enrollment Form'!$C938=\"Enroll\",'Enrollment Form'!$B938=\"Subscriber\",'Enrollment Form'!$CQ938=\"No\",'Enrollment Form'!$DS938=\"\"),\"N\",IF(AND('Enrollment Form'!$C938=\"Enroll\",'Enrollment Form'!$B938=\"Subscriber\",'Enrollment Form'!$CQ938=\"Yes\"),\"-\",\"Y\")))))","v":""},{"$f":"IF($B931=\"N\",\"\",IF(AND('Enrollment Form'!$C938=\"ROC\",'Enrollment Form'!$DT938<>\"\"),\"Y\",IF(AND('Enrollment Form'!$C938=\"ROC\",'Enrollment Form'!$DT938=\"\"),\"N\",IF(AND('Enrollment Form'!$C938=\"Enroll\",'Enrollment Form'!$B938=\"Subscriber\",'Enrollment Form'!$CQ938=\"No\",'Enrollment Form'!$DT938=\"\"),\"N\",IF(AND('Enrollment Form'!$C938=\"Enroll\",'Enrollment Form'!$B938=\"Subscriber\",'Enrollment Form'!$CQ938=\"Yes\"),\"-\",\"Y\")))))","v":""},{"$f":"IF('Enrollment Form'!AH938=\"\",\"\",IF(ISERROR(SEARCH(\".\",'Enrollment Form'!AH938,SEARCH(\"@\",'Enrollment Form'!AH938))),\"N\",\"Y\"))","v":""},{"$f":"IF(OR($B931=\"N\",'Enrollment Form'!$G938=\"\"),\"\",IF('Enrollment Form'!$B938<>\"Subscriber\",\"-\",IF(COUNTIF('Enrollment Form'!$AS938:$AT938,\"Yes\")=2,\"N\",\"Y\")))","v":""},{"$f":"IF(OR('Enrollment Form'!$CC938=\"\",'Enrollment Form'!$CC938=\"No\"),\"-\",IF(AND('Enrollment Form'!$CC938=\"Yes\",'Enrollment Form'!$CD938=\"\"),\"N\",\"Y\"))","v":"-"},{"$f":"IF(OR('Enrollment Form'!$CE938=\"\",'Enrollment Form'!$CE938=\"No\"),\"-\",IF(AND('Enrollment Form'!$CE938=\"Yes\",'Enrollment Form'!$CF938=\"\"),\"N\",\"Y\"))","v":"-"},{"$f":"IF(OR('Enrollment Form'!$CG938=\"\",'Enrollment Form'!$CG938=\"No\"),\"-\",IF(AND('Enrollment Form'!$CG938=\"Yes\",'Enrollment Form'!$CH938=\"\"),\"N\",\"Y\"))","v":"-"},{"$f":"IF(OR('Enrollment Form'!$CG938=\"\",'Enrollment Form'!$CG938=\"No\"),\"-\",IF(AND('Enrollment Form'!$CG938=\"Yes\",'Enrollment Form'!$CI938=\"\"),\"N\",\"Y\"))","v":"-"},{"$f":"IF('Enrollment Form'!B938<>\"Subscriber\",\"-\",IF(AND('Enrollment Form'!B938=\"Subscriber\",'Enrollment Form'!C938=\"Enroll\",'Enrollment Form'!AA938=\"\"),\"N\",\"Y\"))","v":"-"},{"$f":"IF(OR('Enrollment Form'!B938=\"Subscriber\",'Enrollment Form'!B938=\"\"),\"-\",IF('Enrollment Form'!BI938=\"\",\"N\",\"Y\"))","v":"-"},{"$f":"IF('Enrollment Form'!B938<>\"Subscriber\",\"-\",IF(AND('Enrollment Form'!B938=\"Subscriber\",'Enrollment Form'!G938=\"\"),\"N\",\"Y\"))","v":"-"},{"$f":"IF('Enrollment Form'!A938=\"\",\"\",IF('Enrollment Form'!B938=\"Subscriber\",\"-\",IF(AND('Enrollment Form'!B938<>\"Subscriber\",'Enrollment Form'!G938='Enrollment Form'!H938),\"N\",\"Y\")))","v":""},0]
[939,{"$f":"IF('Enrollment Form'!$A939<>\"\",\"Y\",\"N\")","v":"N"},{"$f":"IF(AND('Enrollment Form'!$B939=\"\",'Enrollment Form'!$C939<>\"\"),\"N\",IF($B932=\"N\",\"\",\"Y\"))","v":""},{"$f":"IF(OR($B932=\"N\",'Enrollment Form'!G939=\"\"),\"\",IF('Enrollment Form'!$B939<>\"Subscriber\",\"\",IF('Enrollment Form'!$G939='Enrollment Form'!$H939,\"Y\",\"N\")))","v":""},{"$f":"IF($B932=\"N\",\"\",IF(AND(COUNTIFS('Enrollment Form'!$H$11:$H$1000,'Enrollment Form'!$H939,'Enrollment Form'!$B$11:$B$1000,'Enrollment Form'!$B939)>1,'Enrollment Form'!$H939<>\"\"),\"N\",\"Y\"))","v":""},{"$f":"IF($B932=\"N\",\"\",IF(LEN('Enrollment Form'!$Y939)=0,\"\",IF(LEN('Enrollment Form'!$Y939)<>5,\"N\",\"Y\")))","v":""},{"$f":"IF($B932=\"N\",\"\",IF(LEN('Enrollment Form'!$AD939=0),\"\",IF(LEN('Enrollment Form'!$AD939)<>5,\"N\",\"Y\")))","v":""},{"$f":"IF($B932=\"N\",\"\",IF(LEN('Enrollment Form'!$BL939=0),\"\",IF(LEN('Enrollment Form'!$BL939)<>5,\"N\",\"Y\")))","v":""},{"$f":"IF($B932=\"N\",\"\",IF(LEN('Enrollment Form'!$AE939)=0,\"\",IF(LEN('Enrollment Form'!$AE939)<>10,\"N\",\"Y\")))","v":""},{"$f":"IF($B932=\"N\",\"\",IF(LEN('Enrollment Form'!$AF939)=0,\"\",IF(LEN('Enrollment Form'!$AF939)<>10,\"N\",\"Y\")))","v":""},{"$f":"IF('Enrollment Form'!$O939<>\"Graded\",\"-\",IF(AND('Enrollment Form'!$O939=\"Graded\",'Enrollment Form'!$AO939<>\"\"),\"Y\",\"N\"))","v":"-"},{"$f":"IF($B932=\"N\",\"\",IF(OR('Enrollment Form'!$B939<>\"Subscriber\",'Enrollment Form'!$C939=\"ROC\"),\"-\",IF(AND('Enrollment Form'!$B939=\"Subscriber\",'Enrollment Form'!$C939=\"Enroll\",'Enrollment Form'!$AJ939<>\"\"),\"Y\",\"N\")))","v":""},{"$f":"IF($B932=\"N\",\"\",IF(OR('Enrollment Form'!$B939<>\"Subscriber\",'Enrollment Form'!$C939=\"ROC\"),\"-\",IF(AND('Enrollment Form'!$B939=\"Subscriber\",'Enrollment Form'!$C939=\"Enroll\",'Enrollment Form'!$AK939<>\"\"),\"Y\",\"N\")))","v":""},{"$f":"IF($B932=\"N\",\"\",IF(OR('Enrollment Form'!$B939<>\"Subscriber\",'Enrollment Form'!$C939=\"ROC\"),\"-\",IF(AND('Enrollment Form'!$B939=\"Subscriber\",'Enrollment Form'!$C939=\"Enroll\",'Enrollment Form'!$AL939<>\"\"),\"Y\",\"N\")))","v":""},{"$f":"IF($B932=\"N\",\"\",IF(OR('Enrollment Form'!$B939<>\"Subscriber\",'Enrollment Form'!$C939=\"ROC\"),\"-\",IF(AND('Enrollment Form'!$B939=\"Subscriber\",'Enrollment Form'!$C939=\"Enroll\",'Enrollment Form'!$AM939<>\"\"),\"Y\",\"N\")))","v":""},{"$f":"IF($B932=\"N\",\"\",IF(OR('Enrollment Form'!$B939<>\"Subscriber\",'Enrollment Form'!$C939=\"ROC\"),\"-\",IF(AND('Enrollment Form'!$B939=\"Subscriber\",'Enrollment Form'!$C939=\"Enroll\",'Enrollment Form'!$AN939<>\"\"),\"Y\",\"N\")))","v":""},{"$f":"IF($B932=\"N\",\"\",IF(OR('Enrollment Form'!$B939<>\"Subscriber\",'Enrollment Form'!$C939=\"ROC\"),\"-\",IF(AND('Enrollment Form'!$B939=\"Subscriber\",'Enrollment Form'!$C939=\"Enroll\",'Enrollment Form'!$AP939<>\"\"),\"Y\",\"N\")))","v":""},{"$f":"IF($B932=\"N\",\"\",IF($Q932=\"-\",\"-\",IF(AND($Q932=\"Y\",'Enrollment Form'!$AP939=\"No\"),\"-\",IF(AND($Q932=\"Y\",'Enrollment Form'!$AP939=\"Yes\",'Enrollment Form'!$AQ939<>\"\"),\"Y\",\"N\"))))","v":""},{"$f":"IF($B932=\"N\",\"\",IF(OR('Enrollment Form'!$B939<>\"Subscriber\",'Enrollment Form'!$C939=\"ROC\"),\"-\",IF(AND('Enrollment Form'!$B939=\"Subscriber\",'Enrollment Form'!$C939=\"Enroll\",'Enrollment Form'!$CO939<>\"\"),\"Y\",\"N\")))","v":""},{"$f":"IF($B932=\"N\",\"\",IF($S932=\"-\",\"-\",IF(AND($S932=\"Y\",'Enrollment Form'!$CO939=\"No\"),\"-\",IF(AND($S932=\"Y\",'Enrollment Form'!$CO939=\"Yes\",'Enrollment Form'!$CP939<>\"\"),\"Y\",\"N\"))))","v":""},{"$f":"IF(OR('Enrollment Form'!$AV939=\"Yes\",'Enrollment Form'!$AV939=\"\"),\"-\",IF(AND('Enrollment Form'!$AV939=\"No\",ISERROR(FIND(\"HMO\",VLOOKUP('Enrollment Form'!G939,'Enrollment Form'!H$11:J$1000,3,FALSE),1))=FALSE,COUNTA('Enrollment Form'!$AW939:$AZ939)=4),\"Y\",\"N\"))","v":"-"},{"$f":"IF($B932=\"N\",\"\",IF('Enrollment Form'!$B939=\"Subscriber\",\"-\",IF(COUNTA('Enrollment Form'!$BE939,'Enrollment Form'!$BG939)=2,\"Y\",\"N\")))","v":""},{"$f":"IF($B932=\"N\",\"\",IF(OR('Enrollment Form'!$AU939=\"\",'Enrollment Form'!$AU939=\"No\"),\"-\",IF(AND('Enrollment Form'!$AU939=\"Yes\",COUNTA('Enrollment Form'!$CK939)=1),\"Y\",\"N\")))","v":""},{"$f":"IF(OR('Enrollment Form'!$CK939=\"\",'Enrollment Form'!$CK939=\"No\"),\"-\",IF(COUNTA('Enrollment Form'!$CM939:$CN939)=2,\"Y\",\"N\"))","v":"-"},{"$f":"IF($B932=\"N\",\"\",IF(COUNTIF('Enrollment Form'!$CZ939:$DO939,\"Other\")=COUNTA('Enrollment Form'!$DF939,'Enrollment Form'!$DA939,'Enrollment Form'!$DK939,'Enrollment Form'!$DP939),\"Y\",\"N\"))","v":""},{"$f":"IF($B932=\"N\",\"\",IF(OR('Enrollment Form'!B939<>\"Subscriber\",'Enrollment Form'!C939=\"ROC\",COUNTIF('Enrollment Form'!AS939:AT939,\"Yes\")>=1),\"-\",IF(AND('Enrollment Form'!C939=\"Enroll\",COUNTIF('Enrollment Form'!AS939:AT939,\"No\")=2,'Enrollment Form'!AU939=\"\"),\"N\",\"Y\")))","v":""},{"$f":"IF(OR(B932=\"N\",'Enrollment Form'!B939<>\"Subscriber\",'Enrollment Form'!C939=\"ROC\",'Enrollment Form'!O939<>\"Multiple of Salary\"),\"-\",IF(COUNTA('Enrollment Form'!T939:U939)<2,\"N\",\"Y\"))","v":"-"},{"$f":"IF(B932=\"N\",\"\",IF(OR('Enrollment Form'!C939=\"ROC\",'Enrollment Form'!B939<>\"Subscriber\",'Enrollment Form'!O939=\"Waive\",'Enrollment Form'!O939=\"\"),\"-\",IF('Enrollment Form'!P939=\"\",\"N\",\"Y\")))","v":""},{"$f":"IF($B932=\"N\",\"\",IF(AND('Enrollment Form'!$C939=\"ROC\",'Enrollment Form'!$DS939<>\"\"),\"Y\",IF(AND('Enrollment Form'!$C939=\"ROC\",'Enrollment Form'!$DS939=\"\"),\"N\",IF(AND('Enrollment Form'!$C939=\"Enroll\",'Enrollment Form'!$B939=\"Subscriber\",'Enrollment Form'!$CQ939=\"No\",'Enrollment Form'!$DS939=\"\"),\"N\",IF(AND('Enrollment Form'!$C939=\"Enroll\",'Enrollment Form'!$B939=\"Subscriber\",'Enrollment Form'!$CQ939=\"Yes\"),\"-\",\"Y\")))))","v":""},{"$f":"IF($B932=\"N\",\"\",IF(AND('Enrollment Form'!$C939=\"ROC\",'Enrollment Form'!$DT939<>\"\"),\"Y\",IF(AND('Enrollment Form'!$C939=\"ROC\",'Enrollment Form'!$DT939=\"\"),\"N\",IF(AND('Enrollment Form'!$C939=\"Enroll\",'Enrollment Form'!$B939=\"Subscriber\",'Enrollment Form'!$CQ939=\"No\",'Enrollment Form'!$DT939=\"\"),\"N\",IF(AND('Enrollment Form'!$C939=\"Enroll\",'Enrollment Form'!$B939=\"Subscriber\",'Enrollment Form'!$CQ939=\"Yes\"),\"-\",\"Y\")))))","v":""},{"$f":"IF('Enrollment Form'!AH939=\"\",\"\",IF(ISERROR(SEARCH(\".\",'Enrollment Form'!AH939,SEARCH(\"@\",'Enrollment Form'!AH939))),\"N\",\"Y\"))","v":""},{"$f":"IF(OR($B932=\"N\",'Enrollment Form'!$G939=\"\"),\"\",IF('Enrollment Form'!$B939<>\"Subscriber\",\"-\",IF(COUNTIF('Enrollment Form'!$AS939:$AT939,\"Yes\")=2,\"N\",\"Y\")))","v":""},{"$f":"IF(OR('Enrollment Form'!$CC939=\"\",'Enrollment Form'!$CC939=\"No\"),\"-\",IF(AND('Enrollment Form'!$CC939=\"Yes\",'Enrollment Form'!$CD939=\"\"),\"N\",\"Y\"))","v":"-"},{"$f":"IF(OR('Enrollment Form'!$CE939=\"\",'Enrollment Form'!$CE939=\"No\"),\"-\",IF(AND('Enrollment Form'!$CE939=\"Yes\",'Enrollment Form'!$CF939=\"\"),\"N\",\"Y\"))","v":"-"},{"$f":"IF(OR('Enrollment Form'!$CG939=\"\",'Enrollment Form'!$CG939=\"No\"),\"-\",IF(AND('Enrollment Form'!$CG939=\"Yes\",'Enrollment Form'!$CH939=\"\"),\"N\",\"Y\"))","v":"-"},{"$f":"IF(OR('Enrollment Form'!$CG939=\"\",'Enrollment Form'!$CG939=\"No\"),\"-\",IF(AND('Enrollment Form'!$CG939=\"Yes\",'Enrollment Form'!$CI939=\"\"),\"N\",\"Y\"))","v":"-"},{"$f":"IF('Enrollment Form'!B939<>\"Subscriber\",\"-\",IF(AND('Enrollment Form'!B939=\"Subscriber\",'Enrollment Form'!C939=\"Enroll\",'Enrollment Form'!AA939=\"\"),\"N\",\"Y\"))","v":"-"},{"$f":"IF(OR('Enrollment Form'!B939=\"Subscriber\",'Enrollment Form'!B939=\"\"),\"-\",IF('Enrollment Form'!BI939=\"\",\"N\",\"Y\"))","v":"-"},{"$f":"IF('Enrollment Form'!B939<>\"Subscriber\",\"-\",IF(AND('Enrollment Form'!B939=\"Subscriber\",'Enrollment Form'!G939=\"\"),\"N\",\"Y\"))","v":"-"},{"$f":"IF('Enrollment Form'!A939=\"\",\"\",IF('Enrollment Form'!B939=\"Subscriber\",\"-\",IF(AND('Enrollment Form'!B939<>\"Subscriber\",'Enrollment Form'!G939='Enrollment Form'!H939),\"N\",\"Y\")))","v":""},0]
[940,{"$f":"IF('Enrollment Form'!$A940<>\"\",\"Y\",\"N\")","v":"N"},{"$f":"IF(AND('Enrollment Form'!$B940=\"\",'Enrollment Form'!$C940<>\"\"),\"N\",IF($B933=\"N\",\"\",\"Y\"))","v":""},{"$f":"IF(OR($B933=\"N\",'Enrollment Form'!G940=\"\"),\"\",IF('Enrollment Form'!$B940<>\"Subscriber\",\"\",IF('Enrollment Form'!$G940='Enrollment Form'!$H940,\"Y\",\"N\")))","v":""},{"$f":"IF($B933=\"N\",\"\",IF(AND(COUNTIFS('Enrollment Form'!$H$11:$H$1000,'Enrollment Form'!$H940,'Enrollment Form'!$B$11:$B$1000,'Enrollment Form'!$B940)>1,'Enrollment Form'!$H940<>\"\"),\"N\",\"Y\"))","v":""},{"$f":"IF($B933=\"N\",\"\",IF(LEN('Enrollment Form'!$Y940)=0,\"\",IF(LEN('Enrollment Form'!$Y940)<>5,\"N\",\"Y\")))","v":""},{"$f":"IF($B933=\"N\",\"\",IF(LEN('Enrollment Form'!$AD940=0),\"\",IF(LEN('Enrollment Form'!$AD940)<>5,\"N\",\"Y\")))","v":""},{"$f":"IF($B933=\"N\",\"\",IF(LEN('Enrollment Form'!$BL940=0),\"\",IF(LEN('Enrollment Form'!$BL940)<>5,\"N\",\"Y\")))","v":""},{"$f":"IF($B933=\"N\",\"\",IF(LEN('Enrollment Form'!$AE940)=0,\"\",IF(LEN('Enrollment Form'!$AE940)<>10,\"N\",\"Y\")))","v":""},{"$f":"IF($B933=\"N\",\"\",IF(LEN('Enrollment Form'!$AF940)=0,\"\",IF(LEN('Enrollment Form'!$AF940)<>10,\"N\",\"Y\")))","v":""},{"$f":"IF('Enrollment Form'!$O940<>\"Graded\",\"-\",IF(AND('Enrollment Form'!$O940=\"Graded\",'Enrollment Form'!$AO940<>\"\"),\"Y\",\"N\"))","v":"-"},{"$f":"IF($B933=\"N\",\"\",IF(OR('Enrollment Form'!$B940<>\"Subscriber\",'Enrollment Form'!$C940=\"ROC\"),\"-\",IF(AND('Enrollment Form'!$B940=\"Subscriber\",'Enrollment Form'!$C940=\"Enroll\",'Enrollment Form'!$AJ940<>\"\"),\"Y\",\"N\")))","v":""},{"$f":"IF($B933=\"N\",\"\",IF(OR('Enrollment Form'!$B940<>\"Subscriber\",'Enrollment Form'!$C940=\"ROC\"),\"-\",IF(AND('Enrollment Form'!$B940=\"Subscriber\",'Enrollment Form'!$C940=\"Enroll\",'Enrollment Form'!$AK940<>\"\"),\"Y\",\"N\")))","v":""},{"$f":"IF($B933=\"N\",\"\",IF(OR('Enrollment Form'!$B940<>\"Subscriber\",'Enrollment Form'!$C940=\"ROC\"),\"-\",IF(AND('Enrollment Form'!$B940=\"Subscriber\",'Enrollment Form'!$C940=\"Enroll\",'Enrollment Form'!$AL940<>\"\"),\"Y\",\"N\")))","v":""},{"$f":"IF($B933=\"N\",\"\",IF(OR('Enrollment Form'!$B940<>\"Subscriber\",'Enrollment Form'!$C940=\"ROC\"),\"-\",IF(AND('Enrollment Form'!$B940=\"Subscriber\",'Enrollment Form'!$C940=\"Enroll\",'Enrollment Form'!$AM940<>\"\"),\"Y\",\"N\")))","v":""},{"$f":"IF($B933=\"N\",\"\",IF(OR('Enrollment Form'!$B940<>\"Subscriber\",'Enrollment Form'!$C940=\"ROC\"),\"-\",IF(AND('Enrollment Form'!$B940=\"Subscriber\",'Enrollment Form'!$C940=\"Enroll\",'Enrollment Form'!$AN940<>\"\"),\"Y\",\"N\")))","v":""},{"$f":"IF($B933=\"N\",\"\",IF(OR('Enrollment Form'!$B940<>\"Subscriber\",'Enrollment Form'!$C940=\"ROC\"),\"-\",IF(AND('Enrollment Form'!$B940=\"Subscriber\",'Enrollment Form'!$C940=\"Enroll\",'Enrollment Form'!$AP940<>\"\"),\"Y\",\"N\")))","v":""},{"$f":"IF($B933=\"N\",\"\",IF($Q933=\"-\",\"-\",IF(AND($Q933=\"Y\",'Enrollment Form'!$AP940=\"No\"),\"-\",IF(AND($Q933=\"Y\",'Enrollment Form'!$AP940=\"Yes\",'Enrollment Form'!$AQ940<>\"\"),\"Y\",\"N\"))))","v":""},{"$f":"IF($B933=\"N\",\"\",IF(OR('Enrollment Form'!$B940<>\"Subscriber\",'Enrollment Form'!$C940=\"ROC\"),\"-\",IF(AND('Enrollment Form'!$B940=\"Subscriber\",'Enrollment Form'!$C940=\"Enroll\",'Enrollment Form'!$CO940<>\"\"),\"Y\",\"N\")))","v":""},{"$f":"IF($B933=\"N\",\"\",IF($S933=\"-\",\"-\",IF(AND($S933=\"Y\",'Enrollment Form'!$CO940=\"No\"),\"-\",IF(AND($S933=\"Y\",'Enrollment Form'!$CO940=\"Yes\",'Enrollment Form'!$CP940<>\"\"),\"Y\",\"N\"))))","v":""},{"$f":"IF(OR('Enrollment Form'!$AV940=\"Yes\",'Enrollment Form'!$AV940=\"\"),\"-\",IF(AND('Enrollment Form'!$AV940=\"No\",ISERROR(FIND(\"HMO\",VLOOKUP('Enrollment Form'!G940,'Enrollment Form'!H$11:J$1000,3,FALSE),1))=FALSE,COUNTA('Enrollment Form'!$AW940:$AZ940)=4),\"Y\",\"N\"))","v":"-"},{"$f":"IF($B933=\"N\",\"\",IF('Enrollment Form'!$B940=\"Subscriber\",\"-\",IF(COUNTA('Enrollment Form'!$BE940,'Enrollment Form'!$BG940)=2,\"Y\",\"N\")))","v":""},{"$f":"IF($B933=\"N\",\"\",IF(OR('Enrollment Form'!$AU940=\"\",'Enrollment Form'!$AU940=\"No\"),\"-\",IF(AND('Enrollment Form'!$AU940=\"Yes\",COUNTA('Enrollment Form'!$CK940)=1),\"Y\",\"N\")))","v":""},{"$f":"IF(OR('Enrollment Form'!$CK940=\"\",'Enrollment Form'!$CK940=\"No\"),\"-\",IF(COUNTA('Enrollment Form'!$CM940:$CN940)=2,\"Y\",\"N\"))","v":"-"},{"$f":"IF($B933=\"N\",\"\",IF(COUNTIF('Enrollment Form'!$CZ940:$DO940,\"Other\")=COUNTA('Enrollment Form'!$DF940,'Enrollment Form'!$DA940,'Enrollment Form'!$DK940,'Enrollment Form'!$DP940),\"Y\",\"N\"))","v":""},{"$f":"IF($B933=\"N\",\"\",IF(OR('Enrollment Form'!B940<>\"Subscriber\",'Enrollment Form'!C940=\"ROC\",COUNTIF('Enrollment Form'!AS940:AT940,\"Yes\")>=1),\"-\",IF(AND('Enrollment Form'!C940=\"Enroll\",COUNTIF('Enrollment Form'!AS940:AT940,\"No\")=2,'Enrollment Form'!AU940=\"\"),\"N\",\"Y\")))","v":""},{"$f":"IF(OR(B933=\"N\",'Enrollment Form'!B940<>\"Subscriber\",'Enrollment Form'!C940=\"ROC\",'Enrollment Form'!O940<>\"Multiple of Salary\"),\"-\",IF(COUNTA('Enrollment Form'!T940:U940)<2,\"N\",\"Y\"))","v":"-"},{"$f":"IF(B933=\"N\",\"\",IF(OR('Enrollment Form'!C940=\"ROC\",'Enrollment Form'!B940<>\"Subscriber\",'Enrollment Form'!O940=\"Waive\",'Enrollment Form'!O940=\"\"),\"-\",IF('Enrollment Form'!P940=\"\",\"N\",\"Y\")))","v":""},{"$f":"IF($B933=\"N\",\"\",IF(AND('Enrollment Form'!$C940=\"ROC\",'Enrollment Form'!$DS940<>\"\"),\"Y\",IF(AND('Enrollment Form'!$C940=\"ROC\",'Enrollment Form'!$DS940=\"\"),\"N\",IF(AND('Enrollment Form'!$C940=\"Enroll\",'Enrollment Form'!$B940=\"Subscriber\",'Enrollment Form'!$CQ940=\"No\",'Enrollment Form'!$DS940=\"\"),\"N\",IF(AND('Enrollment Form'!$C940=\"Enroll\",'Enrollment Form'!$B940=\"Subscriber\",'Enrollment Form'!$CQ940=\"Yes\"),\"-\",\"Y\")))))","v":""},{"$f":"IF($B933=\"N\",\"\",IF(AND('Enrollment Form'!$C940=\"ROC\",'Enrollment Form'!$DT940<>\"\"),\"Y\",IF(AND('Enrollment Form'!$C940=\"ROC\",'Enrollment Form'!$DT940=\"\"),\"N\",IF(AND('Enrollment Form'!$C940=\"Enroll\",'Enrollment Form'!$B940=\"Subscriber\",'Enrollment Form'!$CQ940=\"No\",'Enrollment Form'!$DT940=\"\"),\"N\",IF(AND('Enrollment Form'!$C940=\"Enroll\",'Enrollment Form'!$B940=\"Subscriber\",'Enrollment Form'!$CQ940=\"Yes\"),\"-\",\"Y\")))))","v":""},{"$f":"IF('Enrollment Form'!AH940=\"\",\"\",IF(ISERROR(SEARCH(\".\",'Enrollment Form'!AH940,SEARCH(\"@\",'Enrollment Form'!AH940))),\"N\",\"Y\"))","v":""},{"$f":"IF(OR($B933=\"N\",'Enrollment Form'!$G940=\"\"),\"\",IF('Enrollment Form'!$B940<>\"Subscriber\",\"-\",IF(COUNTIF('Enrollment Form'!$AS940:$AT940,\"Yes\")=2,\"N\",\"Y\")))","v":""},{"$f":"IF(OR('Enrollment Form'!$CC940=\"\",'Enrollment Form'!$CC940=\"No\"),\"-\",IF(AND('Enrollment Form'!$CC940=\"Yes\",'Enrollment Form'!$CD940=\"\"),\"N\",\"Y\"))","v":"-"},{"$f":"IF(OR('Enrollment Form'!$CE940=\"\",'Enrollment Form'!$CE940=\"No\"),\"-\",IF(AND('Enrollment Form'!$CE940=\"Yes\",'Enrollment Form'!$CF940=\"\"),\"N\",\"Y\"))","v":"-"},{"$f":"IF(OR('Enrollment Form'!$CG940=\"\",'Enrollment Form'!$CG940=\"No\"),\"-\",IF(AND('Enrollment Form'!$CG940=\"Yes\",'Enrollment Form'!$CH940=\"\"),\"N\",\"Y\"))","v":"-"},{"$f":"IF(OR('Enrollment Form'!$CG940=\"\",'Enrollment Form'!$CG940=\"No\"),\"-\",IF(AND('Enrollment Form'!$CG940=\"Yes\",'Enrollment Form'!$CI940=\"\"),\"N\",\"Y\"))","v":"-"},{"$f":"IF('Enrollment Form'!B940<>\"Subscriber\",\"-\",IF(AND('Enrollment Form'!B940=\"Subscriber\",'Enrollment Form'!C940=\"Enroll\",'Enrollment Form'!AA940=\"\"),\"N\",\"Y\"))","v":"-"},{"$f":"IF(OR('Enrollment Form'!B940=\"Subscriber\",'Enrollment Form'!B940=\"\"),\"-\",IF('Enrollment Form'!BI940=\"\",\"N\",\"Y\"))","v":"-"},{"$f":"IF('Enrollment Form'!B940<>\"Subscriber\",\"-\",IF(AND('Enrollment Form'!B940=\"Subscriber\",'Enrollment Form'!G940=\"\"),\"N\",\"Y\"))","v":"-"},{"$f":"IF('Enrollment Form'!A940=\"\",\"\",IF('Enrollment Form'!B940=\"Subscriber\",\"-\",IF(AND('Enrollment Form'!B940<>\"Subscriber\",'Enrollment Form'!G940='Enrollment Form'!H940),\"N\",\"Y\")))","v":""},0]
[941,{"$f":"IF('Enrollment Form'!$A941<>\"\",\"Y\",\"N\")","v":"N"},{"$f":"IF(AND('Enrollment Form'!$B941=\"\",'Enrollment Form'!$C941<>\"\"),\"N\",IF($B934=\"N\",\"\",\"Y\"))","v":""},{"$f":"IF(OR($B934=\"N\",'Enrollment Form'!G941=\"\"),\"\",IF('Enrollment Form'!$B941<>\"Subscriber\",\"\",IF('Enrollment Form'!$G941='Enrollment Form'!$H941,\"Y\",\"N\")))","v":""},{"$f":"IF($B934=\"N\",\"\",IF(AND(COUNTIFS('Enrollment Form'!$H$11:$H$1000,'Enrollment Form'!$H941,'Enrollment Form'!$B$11:$B$1000,'Enrollment Form'!$B941)>1,'Enrollment Form'!$H941<>\"\"),\"N\",\"Y\"))","v":""},{"$f":"IF($B934=\"N\",\"\",IF(LEN('Enrollment Form'!$Y941)=0,\"\",IF(LEN('Enrollment Form'!$Y941)<>5,\"N\",\"Y\")))","v":""},{"$f":"IF($B934=\"N\",\"\",IF(LEN('Enrollment Form'!$AD941=0),\"\",IF(LEN('Enrollment Form'!$AD941)<>5,\"N\",\"Y\")))","v":""},{"$f":"IF($B934=\"N\",\"\",IF(LEN('Enrollment Form'!$BL941=0),\"\",IF(LEN('Enrollment Form'!$BL941)<>5,\"N\",\"Y\")))","v":""},{"$f":"IF($B934=\"N\",\"\",IF(LEN('Enrollment Form'!$AE941)=0,\"\",IF(LEN('Enrollment Form'!$AE941)<>10,\"N\",\"Y\")))","v":""},{"$f":"IF($B934=\"N\",\"\",IF(LEN('Enrollment Form'!$AF941)=0,\"\",IF(LEN('Enrollment Form'!$AF941)<>10,\"N\",\"Y\")))","v":""},{"$f":"IF('Enrollment Form'!$O941<>\"Graded\",\"-\",IF(AND('Enrollment Form'!$O941=\"Graded\",'Enrollment Form'!$AO941<>\"\"),\"Y\",\"N\"))","v":"-"},{"$f":"IF($B934=\"N\",\"\",IF(OR('Enrollment Form'!$B941<>\"Subscriber\",'Enrollment Form'!$C941=\"ROC\"),\"-\",IF(AND('Enrollment Form'!$B941=\"Subscriber\",'Enrollment Form'!$C941=\"Enroll\",'Enrollment Form'!$AJ941<>\"\"),\"Y\",\"N\")))","v":""},{"$f":"IF($B934=\"N\",\"\",IF(OR('Enrollment Form'!$B941<>\"Subscriber\",'Enrollment Form'!$C941=\"ROC\"),\"-\",IF(AND('Enrollment Form'!$B941=\"Subscriber\",'Enrollment Form'!$C941=\"Enroll\",'Enrollment Form'!$AK941<>\"\"),\"Y\",\"N\")))","v":""},{"$f":"IF($B934=\"N\",\"\",IF(OR('Enrollment Form'!$B941<>\"Subscriber\",'Enrollment Form'!$C941=\"ROC\"),\"-\",IF(AND('Enrollment Form'!$B941=\"Subscriber\",'Enrollment Form'!$C941=\"Enroll\",'Enrollment Form'!$AL941<>\"\"),\"Y\",\"N\")))","v":""},{"$f":"IF($B934=\"N\",\"\",IF(OR('Enrollment Form'!$B941<>\"Subscriber\",'Enrollment Form'!$C941=\"ROC\"),\"-\",IF(AND('Enrollment Form'!$B941=\"Subscriber\",'Enrollment Form'!$C941=\"Enroll\",'Enrollment Form'!$AM941<>\"\"),\"Y\",\"N\")))","v":""},{"$f":"IF($B934=\"N\",\"\",IF(OR('Enrollment Form'!$B941<>\"Subscriber\",'Enrollment Form'!$C941=\"ROC\"),\"-\",IF(AND('Enrollment Form'!$B941=\"Subscriber\",'Enrollment Form'!$C941=\"Enroll\",'Enrollment Form'!$AN941<>\"\"),\"Y\",\"N\")))","v":""},{"$f":"IF($B934=\"N\",\"\",IF(OR('Enrollment Form'!$B941<>\"Subscriber\",'Enrollment Form'!$C941=\"ROC\"),\"-\",IF(AND('Enrollment Form'!$B941=\"Subscriber\",'Enrollment Form'!$C941=\"Enroll\",'Enrollment Form'!$AP941<>\"\"),\"Y\",\"N\")))","v":""},{"$f":"IF($B934=\"N\",\"\",IF($Q934=\"-\",\"-\",IF(AND($Q934=\"Y\",'Enrollment Form'!$AP941=\"No\"),\"-\",IF(AND($Q934=\"Y\",'Enrollment Form'!$AP941=\"Yes\",'Enrollment Form'!$AQ941<>\"\"),\"Y\",\"N\"))))","v":""},{"$f":"IF($B934=\"N\",\"\",IF(OR('Enrollment Form'!$B941<>\"Subscriber\",'Enrollment Form'!$C941=\"ROC\"),\"-\",IF(AND('Enrollment Form'!$B941=\"Subscriber\",'Enrollment Form'!$C941=\"Enroll\",'Enrollment Form'!$CO941<>\"\"),\"Y\",\"N\")))","v":""},{"$f":"IF($B934=\"N\",\"\",IF($S934=\"-\",\"-\",IF(AND($S934=\"Y\",'Enrollment Form'!$CO941=\"No\"),\"-\",IF(AND($S934=\"Y\",'Enrollment Form'!$CO941=\"Yes\",'Enrollment Form'!$CP941<>\"\"),\"Y\",\"N\"))))","v":""},{"$f":"IF(OR('Enrollment Form'!$AV941=\"Yes\",'Enrollment Form'!$AV941=\"\"),\"-\",IF(AND('Enrollment Form'!$AV941=\"No\",ISERROR(FIND(\"HMO\",VLOOKUP('Enrollment Form'!G941,'Enrollment Form'!H$11:J$1000,3,FALSE),1))=FALSE,COUNTA('Enrollment Form'!$AW941:$AZ941)=4),\"Y\",\"N\"))","v":"-"},{"$f":"IF($B934=\"N\",\"\",IF('Enrollment Form'!$B941=\"Subscriber\",\"-\",IF(COUNTA('Enrollment Form'!$BE941,'Enrollment Form'!$BG941)=2,\"Y\",\"N\")))","v":""},{"$f":"IF($B934=\"N\",\"\",IF(OR('Enrollment Form'!$AU941=\"\",'Enrollment Form'!$AU941=\"No\"),\"-\",IF(AND('Enrollment Form'!$AU941=\"Yes\",COUNTA('Enrollment Form'!$CK941)=1),\"Y\",\"N\")))","v":""},{"$f":"IF(OR('Enrollment Form'!$CK941=\"\",'Enrollment Form'!$CK941=\"No\"),\"-\",IF(COUNTA('Enrollment Form'!$CM941:$CN941)=2,\"Y\",\"N\"))","v":"-"},{"$f":"IF($B934=\"N\",\"\",IF(COUNTIF('Enrollment Form'!$CZ941:$DO941,\"Other\")=COUNTA('Enrollment Form'!$DF941,'Enrollment Form'!$DA941,'Enrollment Form'!$DK941,'Enrollment Form'!$DP941),\"Y\",\"N\"))","v":""},{"$f":"IF($B934=\"N\",\"\",IF(OR('Enrollment Form'!B941<>\"Subscriber\",'Enrollment Form'!C941=\"ROC\",COUNTIF('Enrollment Form'!AS941:AT941,\"Yes\")>=1),\"-\",IF(AND('Enrollment Form'!C941=\"Enroll\",COUNTIF('Enrollment Form'!AS941:AT941,\"No\")=2,'Enrollment Form'!AU941=\"\"),\"N\",\"Y\")))","v":""},{"$f":"IF(OR(B934=\"N\",'Enrollment Form'!B941<>\"Subscriber\",'Enrollment Form'!C941=\"ROC\",'Enrollment Form'!O941<>\"Multiple of Salary\"),\"-\",IF(COUNTA('Enrollment Form'!T941:U941)<2,\"N\",\"Y\"))","v":"-"},{"$f":"IF(B934=\"N\",\"\",IF(OR('Enrollment Form'!C941=\"ROC\",'Enrollment Form'!B941<>\"Subscriber\",'Enrollment Form'!O941=\"Waive\",'Enrollment Form'!O941=\"\"),\"-\",IF('Enrollment Form'!P941=\"\",\"N\",\"Y\")))","v":""},{"$f":"IF($B934=\"N\",\"\",IF(AND('Enrollment Form'!$C941=\"ROC\",'Enrollment Form'!$DS941<>\"\"),\"Y\",IF(AND('Enrollment Form'!$C941=\"ROC\",'Enrollment Form'!$DS941=\"\"),\"N\",IF(AND('Enrollment Form'!$C941=\"Enroll\",'Enrollment Form'!$B941=\"Subscriber\",'Enrollment Form'!$CQ941=\"No\",'Enrollment Form'!$DS941=\"\"),\"N\",IF(AND('Enrollment Form'!$C941=\"Enroll\",'Enrollment Form'!$B941=\"Subscriber\",'Enrollment Form'!$CQ941=\"Yes\"),\"-\",\"Y\")))))","v":""},{"$f":"IF($B934=\"N\",\"\",IF(AND('Enrollment Form'!$C941=\"ROC\",'Enrollment Form'!$DT941<>\"\"),\"Y\",IF(AND('Enrollment Form'!$C941=\"ROC\",'Enrollment Form'!$DT941=\"\"),\"N\",IF(AND('Enrollment Form'!$C941=\"Enroll\",'Enrollment Form'!$B941=\"Subscriber\",'Enrollment Form'!$CQ941=\"No\",'Enrollment Form'!$DT941=\"\"),\"N\",IF(AND('Enrollment Form'!$C941=\"Enroll\",'Enrollment Form'!$B941=\"Subscriber\",'Enrollment Form'!$CQ941=\"Yes\"),\"-\",\"Y\")))))","v":""},{"$f":"IF('Enrollment Form'!AH941=\"\",\"\",IF(ISERROR(SEARCH(\".\",'Enrollment Form'!AH941,SEARCH(\"@\",'Enrollment Form'!AH941))),\"N\",\"Y\"))","v":""},{"$f":"IF(OR($B934=\"N\",'Enrollment Form'!$G941=\"\"),\"\",IF('Enrollment Form'!$B941<>\"Subscriber\",\"-\",IF(COUNTIF('Enrollment Form'!$AS941:$AT941,\"Yes\")=2,\"N\",\"Y\")))","v":""},{"$f":"IF(OR('Enrollment Form'!$CC941=\"\",'Enrollment Form'!$CC941=\"No\"),\"-\",IF(AND('Enrollment Form'!$CC941=\"Yes\",'Enrollment Form'!$CD941=\"\"),\"N\",\"Y\"))","v":"-"},{"$f":"IF(OR('Enrollment Form'!$CE941=\"\",'Enrollment Form'!$CE941=\"No\"),\"-\",IF(AND('Enrollment Form'!$CE941=\"Yes\",'Enrollment Form'!$CF941=\"\"),\"N\",\"Y\"))","v":"-"},{"$f":"IF(OR('Enrollment Form'!$CG941=\"\",'Enrollment Form'!$CG941=\"No\"),\"-\",IF(AND('Enrollment Form'!$CG941=\"Yes\",'Enrollment Form'!$CH941=\"\"),\"N\",\"Y\"))","v":"-"},{"$f":"IF(OR('Enrollment Form'!$CG941=\"\",'Enrollment Form'!$CG941=\"No\"),\"-\",IF(AND('Enrollment Form'!$CG941=\"Yes\",'Enrollment Form'!$CI941=\"\"),\"N\",\"Y\"))","v":"-"},{"$f":"IF('Enrollment Form'!B941<>\"Subscriber\",\"-\",IF(AND('Enrollment Form'!B941=\"Subscriber\",'Enrollment Form'!C941=\"Enroll\",'Enrollment Form'!AA941=\"\"),\"N\",\"Y\"))","v":"-"},{"$f":"IF(OR('Enrollment Form'!B941=\"Subscriber\",'Enrollment Form'!B941=\"\"),\"-\",IF('Enrollment Form'!BI941=\"\",\"N\",\"Y\"))","v":"-"},{"$f":"IF('Enrollment Form'!B941<>\"Subscriber\",\"-\",IF(AND('Enrollment Form'!B941=\"Subscriber\",'Enrollment Form'!G941=\"\"),\"N\",\"Y\"))","v":"-"},{"$f":"IF('Enrollment Form'!A941=\"\",\"\",IF('Enrollment Form'!B941=\"Subscriber\",\"-\",IF(AND('Enrollment Form'!B941<>\"Subscriber\",'Enrollment Form'!G941='Enrollment Form'!H941),\"N\",\"Y\")))","v":""},0]
[942,{"$f":"IF('Enrollment Form'!$A942<>\"\",\"Y\",\"N\")","v":"N"},{"$f":"IF(AND('Enrollment Form'!$B942=\"\",'Enrollment Form'!$C942<>\"\"),\"N\",IF($B935=\"N\",\"\",\"Y\"))","v":""},{"$f":"IF(OR($B935=\"N\",'Enrollment Form'!G942=\"\"),\"\",IF('Enrollment Form'!$B942<>\"Subscriber\",\"\",IF('Enrollment Form'!$G942='Enrollment Form'!$H942,\"Y\",\"N\")))","v":""},{"$f":"IF($B935=\"N\",\"\",IF(AND(COUNTIFS('Enrollment Form'!$H$11:$H$1000,'Enrollment Form'!$H942,'Enrollment Form'!$B$11:$B$1000,'Enrollment Form'!$B942)>1,'Enrollment Form'!$H942<>\"\"),\"N\",\"Y\"))","v":""},{"$f":"IF($B935=\"N\",\"\",IF(LEN('Enrollment Form'!$Y942)=0,\"\",IF(LEN('Enrollment Form'!$Y942)<>5,\"N\",\"Y\")))","v":""},{"$f":"IF($B935=\"N\",\"\",IF(LEN('Enrollment Form'!$AD942=0),\"\",IF(LEN('Enrollment Form'!$AD942)<>5,\"N\",\"Y\")))","v":""},{"$f":"IF($B935=\"N\",\"\",IF(LEN('Enrollment Form'!$BL942=0),\"\",IF(LEN('Enrollment Form'!$BL942)<>5,\"N\",\"Y\")))","v":""},{"$f":"IF($B935=\"N\",\"\",IF(LEN('Enrollment Form'!$AE942)=0,\"\",IF(LEN('Enrollment Form'!$AE942)<>10,\"N\",\"Y\")))","v":""},{"$f":"IF($B935=\"N\",\"\",IF(LEN('Enrollment Form'!$AF942)=0,\"\",IF(LEN('Enrollment Form'!$AF942)<>10,\"N\",\"Y\")))","v":""},{"$f":"IF('Enrollment Form'!$O942<>\"Graded\",\"-\",IF(AND('Enrollment Form'!$O942=\"Graded\",'Enrollment Form'!$AO942<>\"\"),\"Y\",\"N\"))","v":"-"},{"$f":"IF($B935=\"N\",\"\",IF(OR('Enrollment Form'!$B942<>\"Subscriber\",'Enrollment Form'!$C942=\"ROC\"),\"-\",IF(AND('Enrollment Form'!$B942=\"Subscriber\",'Enrollment Form'!$C942=\"Enroll\",'Enrollment Form'!$AJ942<>\"\"),\"Y\",\"N\")))","v":""},{"$f":"IF($B935=\"N\",\"\",IF(OR('Enrollment Form'!$B942<>\"Subscriber\",'Enrollment Form'!$C942=\"ROC\"),\"-\",IF(AND('Enrollment Form'!$B942=\"Subscriber\",'Enrollment Form'!$C942=\"Enroll\",'Enrollment Form'!$AK942<>\"\"),\"Y\",\"N\")))","v":""},{"$f":"IF($B935=\"N\",\"\",IF(OR('Enrollment Form'!$B942<>\"Subscriber\",'Enrollment Form'!$C942=\"ROC\"),\"-\",IF(AND('Enrollment Form'!$B942=\"Subscriber\",'Enrollment Form'!$C942=\"Enroll\",'Enrollment Form'!$AL942<>\"\"),\"Y\",\"N\")))","v":""},{"$f":"IF($B935=\"N\",\"\",IF(OR('Enrollment Form'!$B942<>\"Subscriber\",'Enrollment Form'!$C942=\"ROC\"),\"-\",IF(AND('Enrollment Form'!$B942=\"Subscriber\",'Enrollment Form'!$C942=\"Enroll\",'Enrollment Form'!$AM942<>\"\"),\"Y\",\"N\")))","v":""},{"$f":"IF($B935=\"N\",\"\",IF(OR('Enrollment Form'!$B942<>\"Subscriber\",'Enrollment Form'!$C942=\"ROC\"),\"-\",IF(AND('Enrollment Form'!$B942=\"Subscriber\",'Enrollment Form'!$C942=\"Enroll\",'Enrollment Form'!$AN942<>\"\"),\"Y\",\"N\")))","v":""},{"$f":"IF($B935=\"N\",\"\",IF(OR('Enrollment Form'!$B942<>\"Subscriber\",'Enrollment Form'!$C942=\"ROC\"),\"-\",IF(AND('Enrollment Form'!$B942=\"Subscriber\",'Enrollment Form'!$C942=\"Enroll\",'Enrollment Form'!$AP942<>\"\"),\"Y\",\"N\")))","v":""},{"$f":"IF($B935=\"N\",\"\",IF($Q935=\"-\",\"-\",IF(AND($Q935=\"Y\",'Enrollment Form'!$AP942=\"No\"),\"-\",IF(AND($Q935=\"Y\",'Enrollment Form'!$AP942=\"Yes\",'Enrollment Form'!$AQ942<>\"\"),\"Y\",\"N\"))))","v":""},{"$f":"IF($B935=\"N\",\"\",IF(OR('Enrollment Form'!$B942<>\"Subscriber\",'Enrollment Form'!$C942=\"ROC\"),\"-\",IF(AND('Enrollment Form'!$B942=\"Subscriber\",'Enrollment Form'!$C942=\"Enroll\",'Enrollment Form'!$CO942<>\"\"),\"Y\",\"N\")))","v":""},{"$f":"IF($B935=\"N\",\"\",IF($S935=\"-\",\"-\",IF(AND($S935=\"Y\",'Enrollment Form'!$CO942=\"No\"),\"-\",IF(AND($S935=\"Y\",'Enrollment Form'!$CO942=\"Yes\",'Enrollment Form'!$CP942<>\"\"),\"Y\",\"N\"))))","v":""},{"$f":"IF(OR('Enrollment Form'!$AV942=\"Yes\",'Enrollment Form'!$AV942=\"\"),\"-\",IF(AND('Enrollment Form'!$AV942=\"No\",ISERROR(FIND(\"HMO\",VLOOKUP('Enrollment Form'!G942,'Enrollment Form'!H$11:J$1000,3,FALSE),1))=FALSE,COUNTA('Enrollment Form'!$AW942:$AZ942)=4),\"Y\",\"N\"))","v":"-"},{"$f":"IF($B935=\"N\",\"\",IF('Enrollment Form'!$B942=\"Subscriber\",\"-\",IF(COUNTA('Enrollment Form'!$BE942,'Enrollment Form'!$BG942)=2,\"Y\",\"N\")))","v":""},{"$f":"IF($B935=\"N\",\"\",IF(OR('Enrollment Form'!$AU942=\"\",'Enrollment Form'!$AU942=\"No\"),\"-\",IF(AND('Enrollment Form'!$AU942=\"Yes\",COUNTA('Enrollment Form'!$CK942)=1),\"Y\",\"N\")))","v":""},{"$f":"IF(OR('Enrollment Form'!$CK942=\"\",'Enrollment Form'!$CK942=\"No\"),\"-\",IF(COUNTA('Enrollment Form'!$CM942:$CN942)=2,\"Y\",\"N\"))","v":"-"},{"$f":"IF($B935=\"N\",\"\",IF(COUNTIF('Enrollment Form'!$CZ942:$DO942,\"Other\")=COUNTA('Enrollment Form'!$DF942,'Enrollment Form'!$DA942,'Enrollment Form'!$DK942,'Enrollment Form'!$DP942),\"Y\",\"N\"))","v":""},{"$f":"IF($B935=\"N\",\"\",IF(OR('Enrollment Form'!B942<>\"Subscriber\",'Enrollment Form'!C942=\"ROC\",COUNTIF('Enrollment Form'!AS942:AT942,\"Yes\")>=1),\"-\",IF(AND('Enrollment Form'!C942=\"Enroll\",COUNTIF('Enrollment Form'!AS942:AT942,\"No\")=2,'Enrollment Form'!AU942=\"\"),\"N\",\"Y\")))","v":""},{"$f":"IF(OR(B935=\"N\",'Enrollment Form'!B942<>\"Subscriber\",'Enrollment Form'!C942=\"ROC\",'Enrollment Form'!O942<>\"Multiple of Salary\"),\"-\",IF(COUNTA('Enrollment Form'!T942:U942)<2,\"N\",\"Y\"))","v":"-"},{"$f":"IF(B935=\"N\",\"\",IF(OR('Enrollment Form'!C942=\"ROC\",'Enrollment Form'!B942<>\"Subscriber\",'Enrollment Form'!O942=\"Waive\",'Enrollment Form'!O942=\"\"),\"-\",IF('Enrollment Form'!P942=\"\",\"N\",\"Y\")))","v":""},{"$f":"IF($B935=\"N\",\"\",IF(AND('Enrollment Form'!$C942=\"ROC\",'Enrollment Form'!$DS942<>\"\"),\"Y\",IF(AND('Enrollment Form'!$C942=\"ROC\",'Enrollment Form'!$DS942=\"\"),\"N\",IF(AND('Enrollment Form'!$C942=\"Enroll\",'Enrollment Form'!$B942=\"Subscriber\",'Enrollment Form'!$CQ942=\"No\",'Enrollment Form'!$DS942=\"\"),\"N\",IF(AND('Enrollment Form'!$C942=\"Enroll\",'Enrollment Form'!$B942=\"Subscriber\",'Enrollment Form'!$CQ942=\"Yes\"),\"-\",\"Y\")))))","v":""},{"$f":"IF($B935=\"N\",\"\",IF(AND('Enrollment Form'!$C942=\"ROC\",'Enrollment Form'!$DT942<>\"\"),\"Y\",IF(AND('Enrollment Form'!$C942=\"ROC\",'Enrollment Form'!$DT942=\"\"),\"N\",IF(AND('Enrollment Form'!$C942=\"Enroll\",'Enrollment Form'!$B942=\"Subscriber\",'Enrollment Form'!$CQ942=\"No\",'Enrollment Form'!$DT942=\"\"),\"N\",IF(AND('Enrollment Form'!$C942=\"Enroll\",'Enrollment Form'!$B942=\"Subscriber\",'Enrollment Form'!$CQ942=\"Yes\"),\"-\",\"Y\")))))","v":""},{"$f":"IF('Enrollment Form'!AH942=\"\",\"\",IF(ISERROR(SEARCH(\".\",'Enrollment Form'!AH942,SEARCH(\"@\",'Enrollment Form'!AH942))),\"N\",\"Y\"))","v":""},{"$f":"IF(OR($B935=\"N\",'Enrollment Form'!$G942=\"\"),\"\",IF('Enrollment Form'!$B942<>\"Subscriber\",\"-\",IF(COUNTIF('Enrollment Form'!$AS942:$AT942,\"Yes\")=2,\"N\",\"Y\")))","v":""},{"$f":"IF(OR('Enrollment Form'!$CC942=\"\",'Enrollment Form'!$CC942=\"No\"),\"-\",IF(AND('Enrollment Form'!$CC942=\"Yes\",'Enrollment Form'!$CD942=\"\"),\"N\",\"Y\"))","v":"-"},{"$f":"IF(OR('Enrollment Form'!$CE942=\"\",'Enrollment Form'!$CE942=\"No\"),\"-\",IF(AND('Enrollment Form'!$CE942=\"Yes\",'Enrollment Form'!$CF942=\"\"),\"N\",\"Y\"))","v":"-"},{"$f":"IF(OR('Enrollment Form'!$CG942=\"\",'Enrollment Form'!$CG942=\"No\"),\"-\",IF(AND('Enrollment Form'!$CG942=\"Yes\",'Enrollment Form'!$CH942=\"\"),\"N\",\"Y\"))","v":"-"},{"$f":"IF(OR('Enrollment Form'!$CG942=\"\",'Enrollment Form'!$CG942=\"No\"),\"-\",IF(AND('Enrollment Form'!$CG942=\"Yes\",'Enrollment Form'!$CI942=\"\"),\"N\",\"Y\"))","v":"-"},{"$f":"IF('Enrollment Form'!B942<>\"Subscriber\",\"-\",IF(AND('Enrollment Form'!B942=\"Subscriber\",'Enrollment Form'!C942=\"Enroll\",'Enrollment Form'!AA942=\"\"),\"N\",\"Y\"))","v":"-"},{"$f":"IF(OR('Enrollment Form'!B942=\"Subscriber\",'Enrollment Form'!B942=\"\"),\"-\",IF('Enrollment Form'!BI942=\"\",\"N\",\"Y\"))","v":"-"},{"$f":"IF('Enrollment Form'!B942<>\"Subscriber\",\"-\",IF(AND('Enrollment Form'!B942=\"Subscriber\",'Enrollment Form'!G942=\"\"),\"N\",\"Y\"))","v":"-"},{"$f":"IF('Enrollment Form'!A942=\"\",\"\",IF('Enrollment Form'!B942=\"Subscriber\",\"-\",IF(AND('Enrollment Form'!B942<>\"Subscriber\",'Enrollment Form'!G942='Enrollment Form'!H942),\"N\",\"Y\")))","v":""},0]
[943,{"$f":"IF('Enrollment Form'!$A943<>\"\",\"Y\",\"N\")","v":"N"},{"$f":"IF(AND('Enrollment Form'!$B943=\"\",'Enrollment Form'!$C943<>\"\"),\"N\",IF($B936=\"N\",\"\",\"Y\"))","v":""},{"$f":"IF(OR($B936=\"N\",'Enrollment Form'!G943=\"\"),\"\",IF('Enrollment Form'!$B943<>\"Subscriber\",\"\",IF('Enrollment Form'!$G943='Enrollment Form'!$H943,\"Y\",\"N\")))","v":""},{"$f":"IF($B936=\"N\",\"\",IF(AND(COUNTIFS('Enrollment Form'!$H$11:$H$1000,'Enrollment Form'!$H943,'Enrollment Form'!$B$11:$B$1000,'Enrollment Form'!$B943)>1,'Enrollment Form'!$H943<>\"\"),\"N\",\"Y\"))","v":""},{"$f":"IF($B936=\"N\",\"\",IF(LEN('Enrollment Form'!$Y943)=0,\"\",IF(LEN('Enrollment Form'!$Y943)<>5,\"N\",\"Y\")))","v":""},{"$f":"IF($B936=\"N\",\"\",IF(LEN('Enrollment Form'!$AD943=0),\"\",IF(LEN('Enrollment Form'!$AD943)<>5,\"N\",\"Y\")))","v":""},{"$f":"IF($B936=\"N\",\"\",IF(LEN('Enrollment Form'!$BL943=0),\"\",IF(LEN('Enrollment Form'!$BL943)<>5,\"N\",\"Y\")))","v":""},{"$f":"IF($B936=\"N\",\"\",IF(LEN('Enrollment Form'!$AE943)=0,\"\",IF(LEN('Enrollment Form'!$AE943)<>10,\"N\",\"Y\")))","v":""},{"$f":"IF($B936=\"N\",\"\",IF(LEN('Enrollment Form'!$AF943)=0,\"\",IF(LEN('Enrollment Form'!$AF943)<>10,\"N\",\"Y\")))","v":""},{"$f":"IF('Enrollment Form'!$O943<>\"Graded\",\"-\",IF(AND('Enrollment Form'!$O943=\"Graded\",'Enrollment Form'!$AO943<>\"\"),\"Y\",\"N\"))","v":"-"},{"$f":"IF($B936=\"N\",\"\",IF(OR('Enrollment Form'!$B943<>\"Subscriber\",'Enrollment Form'!$C943=\"ROC\"),\"-\",IF(AND('Enrollment Form'!$B943=\"Subscriber\",'Enrollment Form'!$C943=\"Enroll\",'Enrollment Form'!$AJ943<>\"\"),\"Y\",\"N\")))","v":""},{"$f":"IF($B936=\"N\",\"\",IF(OR('Enrollment Form'!$B943<>\"Subscriber\",'Enrollment Form'!$C943=\"ROC\"),\"-\",IF(AND('Enrollment Form'!$B943=\"Subscriber\",'Enrollment Form'!$C943=\"Enroll\",'Enrollment Form'!$AK943<>\"\"),\"Y\",\"N\")))","v":""},{"$f":"IF($B936=\"N\",\"\",IF(OR('Enrollment Form'!$B943<>\"Subscriber\",'Enrollment Form'!$C943=\"ROC\"),\"-\",IF(AND('Enrollment Form'!$B943=\"Subscriber\",'Enrollment Form'!$C943=\"Enroll\",'Enrollment Form'!$AL943<>\"\"),\"Y\",\"N\")))","v":""},{"$f":"IF($B936=\"N\",\"\",IF(OR('Enrollment Form'!$B943<>\"Subscriber\",'Enrollment Form'!$C943=\"ROC\"),\"-\",IF(AND('Enrollment Form'!$B943=\"Subscriber\",'Enrollment Form'!$C943=\"Enroll\",'Enrollment Form'!$AM943<>\"\"),\"Y\",\"N\")))","v":""},{"$f":"IF($B936=\"N\",\"\",IF(OR('Enrollment Form'!$B943<>\"Subscriber\",'Enrollment Form'!$C943=\"ROC\"),\"-\",IF(AND('Enrollment Form'!$B943=\"Subscriber\",'Enrollment Form'!$C943=\"Enroll\",'Enrollment Form'!$AN943<>\"\"),\"Y\",\"N\")))","v":""},{"$f":"IF($B936=\"N\",\"\",IF(OR('Enrollment Form'!$B943<>\"Subscriber\",'Enrollment Form'!$C943=\"ROC\"),\"-\",IF(AND('Enrollment Form'!$B943=\"Subscriber\",'Enrollment Form'!$C943=\"Enroll\",'Enrollment Form'!$AP943<>\"\"),\"Y\",\"N\")))","v":""},{"$f":"IF($B936=\"N\",\"\",IF($Q936=\"-\",\"-\",IF(AND($Q936=\"Y\",'Enrollment Form'!$AP943=\"No\"),\"-\",IF(AND($Q936=\"Y\",'Enrollment Form'!$AP943=\"Yes\",'Enrollment Form'!$AQ943<>\"\"),\"Y\",\"N\"))))","v":""},{"$f":"IF($B936=\"N\",\"\",IF(OR('Enrollment Form'!$B943<>\"Subscriber\",'Enrollment Form'!$C943=\"ROC\"),\"-\",IF(AND('Enrollment Form'!$B943=\"Subscriber\",'Enrollment Form'!$C943=\"Enroll\",'Enrollment Form'!$CO943<>\"\"),\"Y\",\"N\")))","v":""},{"$f":"IF($B936=\"N\",\"\",IF($S936=\"-\",\"-\",IF(AND($S936=\"Y\",'Enrollment Form'!$CO943=\"No\"),\"-\",IF(AND($S936=\"Y\",'Enrollment Form'!$CO943=\"Yes\",'Enrollment Form'!$CP943<>\"\"),\"Y\",\"N\"))))","v":""},{"$f":"IF(OR('Enrollment Form'!$AV943=\"Yes\",'Enrollment Form'!$AV943=\"\"),\"-\",IF(AND('Enrollment Form'!$AV943=\"No\",ISERROR(FIND(\"HMO\",VLOOKUP('Enrollment Form'!G943,'Enrollment Form'!H$11:J$1000,3,FALSE),1))=FALSE,COUNTA('Enrollment Form'!$AW943:$AZ943)=4),\"Y\",\"N\"))","v":"-"},{"$f":"IF($B936=\"N\",\"\",IF('Enrollment Form'!$B943=\"Subscriber\",\"-\",IF(COUNTA('Enrollment Form'!$BE943,'Enrollment Form'!$BG943)=2,\"Y\",\"N\")))","v":""},{"$f":"IF($B936=\"N\",\"\",IF(OR('Enrollment Form'!$AU943=\"\",'Enrollment Form'!$AU943=\"No\"),\"-\",IF(AND('Enrollment Form'!$AU943=\"Yes\",COUNTA('Enrollment Form'!$CK943)=1),\"Y\",\"N\")))","v":""},{"$f":"IF(OR('Enrollment Form'!$CK943=\"\",'Enrollment Form'!$CK943=\"No\"),\"-\",IF(COUNTA('Enrollment Form'!$CM943:$CN943)=2,\"Y\",\"N\"))","v":"-"},{"$f":"IF($B936=\"N\",\"\",IF(COUNTIF('Enrollment Form'!$CZ943:$DO943,\"Other\")=COUNTA('Enrollment Form'!$DF943,'Enrollment Form'!$DA943,'Enrollment Form'!$DK943,'Enrollment Form'!$DP943),\"Y\",\"N\"))","v":""},{"$f":"IF($B936=\"N\",\"\",IF(OR('Enrollment Form'!B943<>\"Subscriber\",'Enrollment Form'!C943=\"ROC\",COUNTIF('Enrollment Form'!AS943:AT943,\"Yes\")>=1),\"-\",IF(AND('Enrollment Form'!C943=\"Enroll\",COUNTIF('Enrollment Form'!AS943:AT943,\"No\")=2,'Enrollment Form'!AU943=\"\"),\"N\",\"Y\")))","v":""},{"$f":"IF(OR(B936=\"N\",'Enrollment Form'!B943<>\"Subscriber\",'Enrollment Form'!C943=\"ROC\",'Enrollment Form'!O943<>\"Multiple of Salary\"),\"-\",IF(COUNTA('Enrollment Form'!T943:U943)<2,\"N\",\"Y\"))","v":"-"},{"$f":"IF(B936=\"N\",\"\",IF(OR('Enrollment Form'!C943=\"ROC\",'Enrollment Form'!B943<>\"Subscriber\",'Enrollment Form'!O943=\"Waive\",'Enrollment Form'!O943=\"\"),\"-\",IF('Enrollment Form'!P943=\"\",\"N\",\"Y\")))","v":""},{"$f":"IF($B936=\"N\",\"\",IF(AND('Enrollment Form'!$C943=\"ROC\",'Enrollment Form'!$DS943<>\"\"),\"Y\",IF(AND('Enrollment Form'!$C943=\"ROC\",'Enrollment Form'!$DS943=\"\"),\"N\",IF(AND('Enrollment Form'!$C943=\"Enroll\",'Enrollment Form'!$B943=\"Subscriber\",'Enrollment Form'!$CQ943=\"No\",'Enrollment Form'!$DS943=\"\"),\"N\",IF(AND('Enrollment Form'!$C943=\"Enroll\",'Enrollment Form'!$B943=\"Subscriber\",'Enrollment Form'!$CQ943=\"Yes\"),\"-\",\"Y\")))))","v":""},{"$f":"IF($B936=\"N\",\"\",IF(AND('Enrollment Form'!$C943=\"ROC\",'Enrollment Form'!$DT943<>\"\"),\"Y\",IF(AND('Enrollment Form'!$C943=\"ROC\",'Enrollment Form'!$DT943=\"\"),\"N\",IF(AND('Enrollment Form'!$C943=\"Enroll\",'Enrollment Form'!$B943=\"Subscriber\",'Enrollment Form'!$CQ943=\"No\",'Enrollment Form'!$DT943=\"\"),\"N\",IF(AND('Enrollment Form'!$C943=\"Enroll\",'Enrollment Form'!$B943=\"Subscriber\",'Enrollment Form'!$CQ943=\"Yes\"),\"-\",\"Y\")))))","v":""},{"$f":"IF('Enrollment Form'!AH943=\"\",\"\",IF(ISERROR(SEARCH(\".\",'Enrollment Form'!AH943,SEARCH(\"@\",'Enrollment Form'!AH943))),\"N\",\"Y\"))","v":""},{"$f":"IF(OR($B936=\"N\",'Enrollment Form'!$G943=\"\"),\"\",IF('Enrollment Form'!$B943<>\"Subscriber\",\"-\",IF(COUNTIF('Enrollment Form'!$AS943:$AT943,\"Yes\")=2,\"N\",\"Y\")))","v":""},{"$f":"IF(OR('Enrollment Form'!$CC943=\"\",'Enrollment Form'!$CC943=\"No\"),\"-\",IF(AND('Enrollment Form'!$CC943=\"Yes\",'Enrollment Form'!$CD943=\"\"),\"N\",\"Y\"))","v":"-"},{"$f":"IF(OR('Enrollment Form'!$CE943=\"\",'Enrollment Form'!$CE943=\"No\"),\"-\",IF(AND('Enrollment Form'!$CE943=\"Yes\",'Enrollment Form'!$CF943=\"\"),\"N\",\"Y\"))","v":"-"},{"$f":"IF(OR('Enrollment Form'!$CG943=\"\",'Enrollment Form'!$CG943=\"No\"),\"-\",IF(AND('Enrollment Form'!$CG943=\"Yes\",'Enrollment Form'!$CH943=\"\"),\"N\",\"Y\"))","v":"-"},{"$f":"IF(OR('Enrollment Form'!$CG943=\"\",'Enrollment Form'!$CG943=\"No\"),\"-\",IF(AND('Enrollment Form'!$CG943=\"Yes\",'Enrollment Form'!$CI943=\"\"),\"N\",\"Y\"))","v":"-"},{"$f":"IF('Enrollment Form'!B943<>\"Subscriber\",\"-\",IF(AND('Enrollment Form'!B943=\"Subscriber\",'Enrollment Form'!C943=\"Enroll\",'Enrollment Form'!AA943=\"\"),\"N\",\"Y\"))","v":"-"},{"$f":"IF(OR('Enrollment Form'!B943=\"Subscriber\",'Enrollment Form'!B943=\"\"),\"-\",IF('Enrollment Form'!BI943=\"\",\"N\",\"Y\"))","v":"-"},{"$f":"IF('Enrollment Form'!B943<>\"Subscriber\",\"-\",IF(AND('Enrollment Form'!B943=\"Subscriber\",'Enrollment Form'!G943=\"\"),\"N\",\"Y\"))","v":"-"},{"$f":"IF('Enrollment Form'!A943=\"\",\"\",IF('Enrollment Form'!B943=\"Subscriber\",\"-\",IF(AND('Enrollment Form'!B943<>\"Subscriber\",'Enrollment Form'!G943='Enrollment Form'!H943),\"N\",\"Y\")))","v":""},0]
[944,{"$f":"IF('Enrollment Form'!$A944<>\"\",\"Y\",\"N\")","v":"N"},{"$f":"IF(AND('Enrollment Form'!$B944=\"\",'Enrollment Form'!$C944<>\"\"),\"N\",IF($B937=\"N\",\"\",\"Y\"))","v":""},{"$f":"IF(OR($B937=\"N\",'Enrollment Form'!G944=\"\"),\"\",IF('Enrollment Form'!$B944<>\"Subscriber\",\"\",IF('Enrollment Form'!$G944='Enrollment Form'!$H944,\"Y\",\"N\")))","v":""},{"$f":"IF($B937=\"N\",\"\",IF(AND(COUNTIFS('Enrollment Form'!$H$11:$H$1000,'Enrollment Form'!$H944,'Enrollment Form'!$B$11:$B$1000,'Enrollment Form'!$B944)>1,'Enrollment Form'!$H944<>\"\"),\"N\",\"Y\"))","v":""},{"$f":"IF($B937=\"N\",\"\",IF(LEN('Enrollment Form'!$Y944)=0,\"\",IF(LEN('Enrollment Form'!$Y944)<>5,\"N\",\"Y\")))","v":""},{"$f":"IF($B937=\"N\",\"\",IF(LEN('Enrollment Form'!$AD944=0),\"\",IF(LEN('Enrollment Form'!$AD944)<>5,\"N\",\"Y\")))","v":""},{"$f":"IF($B937=\"N\",\"\",IF(LEN('Enrollment Form'!$BL944=0),\"\",IF(LEN('Enrollment Form'!$BL944)<>5,\"N\",\"Y\")))","v":""},{"$f":"IF($B937=\"N\",\"\",IF(LEN('Enrollment Form'!$AE944)=0,\"\",IF(LEN('Enrollment Form'!$AE944)<>10,\"N\",\"Y\")))","v":""},{"$f":"IF($B937=\"N\",\"\",IF(LEN('Enrollment Form'!$AF944)=0,\"\",IF(LEN('Enrollment Form'!$AF944)<>10,\"N\",\"Y\")))","v":""},{"$f":"IF('Enrollment Form'!$O944<>\"Graded\",\"-\",IF(AND('Enrollment Form'!$O944=\"Graded\",'Enrollment Form'!$AO944<>\"\"),\"Y\",\"N\"))","v":"-"},{"$f":"IF($B937=\"N\",\"\",IF(OR('Enrollment Form'!$B944<>\"Subscriber\",'Enrollment Form'!$C944=\"ROC\"),\"-\",IF(AND('Enrollment Form'!$B944=\"Subscriber\",'Enrollment Form'!$C944=\"Enroll\",'Enrollment Form'!$AJ944<>\"\"),\"Y\",\"N\")))","v":""},{"$f":"IF($B937=\"N\",\"\",IF(OR('Enrollment Form'!$B944<>\"Subscriber\",'Enrollment Form'!$C944=\"ROC\"),\"-\",IF(AND('Enrollment Form'!$B944=\"Subscriber\",'Enrollment Form'!$C944=\"Enroll\",'Enrollment Form'!$AK944<>\"\"),\"Y\",\"N\")))","v":""},{"$f":"IF($B937=\"N\",\"\",IF(OR('Enrollment Form'!$B944<>\"Subscriber\",'Enrollment Form'!$C944=\"ROC\"),\"-\",IF(AND('Enrollment Form'!$B944=\"Subscriber\",'Enrollment Form'!$C944=\"Enroll\",'Enrollment Form'!$AL944<>\"\"),\"Y\",\"N\")))","v":""},{"$f":"IF($B937=\"N\",\"\",IF(OR('Enrollment Form'!$B944<>\"Subscriber\",'Enrollment Form'!$C944=\"ROC\"),\"-\",IF(AND('Enrollment Form'!$B944=\"Subscriber\",'Enrollment Form'!$C944=\"Enroll\",'Enrollment Form'!$AM944<>\"\"),\"Y\",\"N\")))","v":""},{"$f":"IF($B937=\"N\",\"\",IF(OR('Enrollment Form'!$B944<>\"Subscriber\",'Enrollment Form'!$C944=\"ROC\"),\"-\",IF(AND('Enrollment Form'!$B944=\"Subscriber\",'Enrollment Form'!$C944=\"Enroll\",'Enrollment Form'!$AN944<>\"\"),\"Y\",\"N\")))","v":""},{"$f":"IF($B937=\"N\",\"\",IF(OR('Enrollment Form'!$B944<>\"Subscriber\",'Enrollment Form'!$C944=\"ROC\"),\"-\",IF(AND('Enrollment Form'!$B944=\"Subscriber\",'Enrollment Form'!$C944=\"Enroll\",'Enrollment Form'!$AP944<>\"\"),\"Y\",\"N\")))","v":""},{"$f":"IF($B937=\"N\",\"\",IF($Q937=\"-\",\"-\",IF(AND($Q937=\"Y\",'Enrollment Form'!$AP944=\"No\"),\"-\",IF(AND($Q937=\"Y\",'Enrollment Form'!$AP944=\"Yes\",'Enrollment Form'!$AQ944<>\"\"),\"Y\",\"N\"))))","v":""},{"$f":"IF($B937=\"N\",\"\",IF(OR('Enrollment Form'!$B944<>\"Subscriber\",'Enrollment Form'!$C944=\"ROC\"),\"-\",IF(AND('Enrollment Form'!$B944=\"Subscriber\",'Enrollment Form'!$C944=\"Enroll\",'Enrollment Form'!$CO944<>\"\"),\"Y\",\"N\")))","v":""},{"$f":"IF($B937=\"N\",\"\",IF($S937=\"-\",\"-\",IF(AND($S937=\"Y\",'Enrollment Form'!$CO944=\"No\"),\"-\",IF(AND($S937=\"Y\",'Enrollment Form'!$CO944=\"Yes\",'Enrollment Form'!$CP944<>\"\"),\"Y\",\"N\"))))","v":""},{"$f":"IF(OR('Enrollment Form'!$AV944=\"Yes\",'Enrollment Form'!$AV944=\"\"),\"-\",IF(AND('Enrollment Form'!$AV944=\"No\",ISERROR(FIND(\"HMO\",VLOOKUP('Enrollment Form'!G944,'Enrollment Form'!H$11:J$1000,3,FALSE),1))=FALSE,COUNTA('Enrollment Form'!$AW944:$AZ944)=4),\"Y\",\"N\"))","v":"-"},{"$f":"IF($B937=\"N\",\"\",IF('Enrollment Form'!$B944=\"Subscriber\",\"-\",IF(COUNTA('Enrollment Form'!$BE944,'Enrollment Form'!$BG944)=2,\"Y\",\"N\")))","v":""},{"$f":"IF($B937=\"N\",\"\",IF(OR('Enrollment Form'!$AU944=\"\",'Enrollment Form'!$AU944=\"No\"),\"-\",IF(AND('Enrollment Form'!$AU944=\"Yes\",COUNTA('Enrollment Form'!$CK944)=1),\"Y\",\"N\")))","v":""},{"$f":"IF(OR('Enrollment Form'!$CK944=\"\",'Enrollment Form'!$CK944=\"No\"),\"-\",IF(COUNTA('Enrollment Form'!$CM944:$CN944)=2,\"Y\",\"N\"))","v":"-"},{"$f":"IF($B937=\"N\",\"\",IF(COUNTIF('Enrollment Form'!$CZ944:$DO944,\"Other\")=COUNTA('Enrollment Form'!$DF944,'Enrollment Form'!$DA944,'Enrollment Form'!$DK944,'Enrollment Form'!$DP944),\"Y\",\"N\"))","v":""},{"$f":"IF($B937=\"N\",\"\",IF(OR('Enrollment Form'!B944<>\"Subscriber\",'Enrollment Form'!C944=\"ROC\",COUNTIF('Enrollment Form'!AS944:AT944,\"Yes\")>=1),\"-\",IF(AND('Enrollment Form'!C944=\"Enroll\",COUNTIF('Enrollment Form'!AS944:AT944,\"No\")=2,'Enrollment Form'!AU944=\"\"),\"N\",\"Y\")))","v":""},{"$f":"IF(OR(B937=\"N\",'Enrollment Form'!B944<>\"Subscriber\",'Enrollment Form'!C944=\"ROC\",'Enrollment Form'!O944<>\"Multiple of Salary\"),\"-\",IF(COUNTA('Enrollment Form'!T944:U944)<2,\"N\",\"Y\"))","v":"-"},{"$f":"IF(B937=\"N\",\"\",IF(OR('Enrollment Form'!C944=\"ROC\",'Enrollment Form'!B944<>\"Subscriber\",'Enrollment Form'!O944=\"Waive\",'Enrollment Form'!O944=\"\"),\"-\",IF('Enrollment Form'!P944=\"\",\"N\",\"Y\")))","v":""},{"$f":"IF($B937=\"N\",\"\",IF(AND('Enrollment Form'!$C944=\"ROC\",'Enrollment Form'!$DS944<>\"\"),\"Y\",IF(AND('Enrollment Form'!$C944=\"ROC\",'Enrollment Form'!$DS944=\"\"),\"N\",IF(AND('Enrollment Form'!$C944=\"Enroll\",'Enrollment Form'!$B944=\"Subscriber\",'Enrollment Form'!$CQ944=\"No\",'Enrollment Form'!$DS944=\"\"),\"N\",IF(AND('Enrollment Form'!$C944=\"Enroll\",'Enrollment Form'!$B944=\"Subscriber\",'Enrollment Form'!$CQ944=\"Yes\"),\"-\",\"Y\")))))","v":""},{"$f":"IF($B937=\"N\",\"\",IF(AND('Enrollment Form'!$C944=\"ROC\",'Enrollment Form'!$DT944<>\"\"),\"Y\",IF(AND('Enrollment Form'!$C944=\"ROC\",'Enrollment Form'!$DT944=\"\"),\"N\",IF(AND('Enrollment Form'!$C944=\"Enroll\",'Enrollment Form'!$B944=\"Subscriber\",'Enrollment Form'!$CQ944=\"No\",'Enrollment Form'!$DT944=\"\"),\"N\",IF(AND('Enrollment Form'!$C944=\"Enroll\",'Enrollment Form'!$B944=\"Subscriber\",'Enrollment Form'!$CQ944=\"Yes\"),\"-\",\"Y\")))))","v":""},{"$f":"IF('Enrollment Form'!AH944=\"\",\"\",IF(ISERROR(SEARCH(\".\",'Enrollment Form'!AH944,SEARCH(\"@\",'Enrollment Form'!AH944))),\"N\",\"Y\"))","v":""},{"$f":"IF(OR($B937=\"N\",'Enrollment Form'!$G944=\"\"),\"\",IF('Enrollment Form'!$B944<>\"Subscriber\",\"-\",IF(COUNTIF('Enrollment Form'!$AS944:$AT944,\"Yes\")=2,\"N\",\"Y\")))","v":""},{"$f":"IF(OR('Enrollment Form'!$CC944=\"\",'Enrollment Form'!$CC944=\"No\"),\"-\",IF(AND('Enrollment Form'!$CC944=\"Yes\",'Enrollment Form'!$CD944=\"\"),\"N\",\"Y\"))","v":"-"},{"$f":"IF(OR('Enrollment Form'!$CE944=\"\",'Enrollment Form'!$CE944=\"No\"),\"-\",IF(AND('Enrollment Form'!$CE944=\"Yes\",'Enrollment Form'!$CF944=\"\"),\"N\",\"Y\"))","v":"-"},{"$f":"IF(OR('Enrollment Form'!$CG944=\"\",'Enrollment Form'!$CG944=\"No\"),\"-\",IF(AND('Enrollment Form'!$CG944=\"Yes\",'Enrollment Form'!$CH944=\"\"),\"N\",\"Y\"))","v":"-"},{"$f":"IF(OR('Enrollment Form'!$CG944=\"\",'Enrollment Form'!$CG944=\"No\"),\"-\",IF(AND('Enrollment Form'!$CG944=\"Yes\",'Enrollment Form'!$CI944=\"\"),\"N\",\"Y\"))","v":"-"},{"$f":"IF('Enrollment Form'!B944<>\"Subscriber\",\"-\",IF(AND('Enrollment Form'!B944=\"Subscriber\",'Enrollment Form'!C944=\"Enroll\",'Enrollment Form'!AA944=\"\"),\"N\",\"Y\"))","v":"-"},{"$f":"IF(OR('Enrollment Form'!B944=\"Subscriber\",'Enrollment Form'!B944=\"\"),\"-\",IF('Enrollment Form'!BI944=\"\",\"N\",\"Y\"))","v":"-"},{"$f":"IF('Enrollment Form'!B944<>\"Subscriber\",\"-\",IF(AND('Enrollment Form'!B944=\"Subscriber\",'Enrollment Form'!G944=\"\"),\"N\",\"Y\"))","v":"-"},{"$f":"IF('Enrollment Form'!A944=\"\",\"\",IF('Enrollment Form'!B944=\"Subscriber\",\"-\",IF(AND('Enrollment Form'!B944<>\"Subscriber\",'Enrollment Form'!G944='Enrollment Form'!H944),\"N\",\"Y\")))","v":""},0]
[945,{"$f":"IF('Enrollment Form'!$A945<>\"\",\"Y\",\"N\")","v":"N"},{"$f":"IF(AND('Enrollment Form'!$B945=\"\",'Enrollment Form'!$C945<>\"\"),\"N\",IF($B938=\"N\",\"\",\"Y\"))","v":""},{"$f":"IF(OR($B938=\"N\",'Enrollment Form'!G945=\"\"),\"\",IF('Enrollment Form'!$B945<>\"Subscriber\",\"\",IF('Enrollment Form'!$G945='Enrollment Form'!$H945,\"Y\",\"N\")))","v":""},{"$f":"IF($B938=\"N\",\"\",IF(AND(COUNTIFS('Enrollment Form'!$H$11:$H$1000,'Enrollment Form'!$H945,'Enrollment Form'!$B$11:$B$1000,'Enrollment Form'!$B945)>1,'Enrollment Form'!$H945<>\"\"),\"N\",\"Y\"))","v":""},{"$f":"IF($B938=\"N\",\"\",IF(LEN('Enrollment Form'!$Y945)=0,\"\",IF(LEN('Enrollment Form'!$Y945)<>5,\"N\",\"Y\")))","v":""},{"$f":"IF($B938=\"N\",\"\",IF(LEN('Enrollment Form'!$AD945=0),\"\",IF(LEN('Enrollment Form'!$AD945)<>5,\"N\",\"Y\")))","v":""},{"$f":"IF($B938=\"N\",\"\",IF(LEN('Enrollment Form'!$BL945=0),\"\",IF(LEN('Enrollment Form'!$BL945)<>5,\"N\",\"Y\")))","v":""},{"$f":"IF($B938=\"N\",\"\",IF(LEN('Enrollment Form'!$AE945)=0,\"\",IF(LEN('Enrollment Form'!$AE945)<>10,\"N\",\"Y\")))","v":""},{"$f":"IF($B938=\"N\",\"\",IF(LEN('Enrollment Form'!$AF945)=0,\"\",IF(LEN('Enrollment Form'!$AF945)<>10,\"N\",\"Y\")))","v":""},{"$f":"IF('Enrollment Form'!$O945<>\"Graded\",\"-\",IF(AND('Enrollment Form'!$O945=\"Graded\",'Enrollment Form'!$AO945<>\"\"),\"Y\",\"N\"))","v":"-"},{"$f":"IF($B938=\"N\",\"\",IF(OR('Enrollment Form'!$B945<>\"Subscriber\",'Enrollment Form'!$C945=\"ROC\"),\"-\",IF(AND('Enrollment Form'!$B945=\"Subscriber\",'Enrollment Form'!$C945=\"Enroll\",'Enrollment Form'!$AJ945<>\"\"),\"Y\",\"N\")))","v":""},{"$f":"IF($B938=\"N\",\"\",IF(OR('Enrollment Form'!$B945<>\"Subscriber\",'Enrollment Form'!$C945=\"ROC\"),\"-\",IF(AND('Enrollment Form'!$B945=\"Subscriber\",'Enrollment Form'!$C945=\"Enroll\",'Enrollment Form'!$AK945<>\"\"),\"Y\",\"N\")))","v":""},{"$f":"IF($B938=\"N\",\"\",IF(OR('Enrollment Form'!$B945<>\"Subscriber\",'Enrollment Form'!$C945=\"ROC\"),\"-\",IF(AND('Enrollment Form'!$B945=\"Subscriber\",'Enrollment Form'!$C945=\"Enroll\",'Enrollment Form'!$AL945<>\"\"),\"Y\",\"N\")))","v":""},{"$f":"IF($B938=\"N\",\"\",IF(OR('Enrollment Form'!$B945<>\"Subscriber\",'Enrollment Form'!$C945=\"ROC\"),\"-\",IF(AND('Enrollment Form'!$B945=\"Subscriber\",'Enrollment Form'!$C945=\"Enroll\",'Enrollment Form'!$AM945<>\"\"),\"Y\",\"N\")))","v":""},{"$f":"IF($B938=\"N\",\"\",IF(OR('Enrollment Form'!$B945<>\"Subscriber\",'Enrollment Form'!$C945=\"ROC\"),\"-\",IF(AND('Enrollment Form'!$B945=\"Subscriber\",'Enrollment Form'!$C945=\"Enroll\",'Enrollment Form'!$AN945<>\"\"),\"Y\",\"N\")))","v":""},{"$f":"IF($B938=\"N\",\"\",IF(OR('Enrollment Form'!$B945<>\"Subscriber\",'Enrollment Form'!$C945=\"ROC\"),\"-\",IF(AND('Enrollment Form'!$B945=\"Subscriber\",'Enrollment Form'!$C945=\"Enroll\",'Enrollment Form'!$AP945<>\"\"),\"Y\",\"N\")))","v":""},{"$f":"IF($B938=\"N\",\"\",IF($Q938=\"-\",\"-\",IF(AND($Q938=\"Y\",'Enrollment Form'!$AP945=\"No\"),\"-\",IF(AND($Q938=\"Y\",'Enrollment Form'!$AP945=\"Yes\",'Enrollment Form'!$AQ945<>\"\"),\"Y\",\"N\"))))","v":""},{"$f":"IF($B938=\"N\",\"\",IF(OR('Enrollment Form'!$B945<>\"Subscriber\",'Enrollment Form'!$C945=\"ROC\"),\"-\",IF(AND('Enrollment Form'!$B945=\"Subscriber\",'Enrollment Form'!$C945=\"Enroll\",'Enrollment Form'!$CO945<>\"\"),\"Y\",\"N\")))","v":""},{"$f":"IF($B938=\"N\",\"\",IF($S938=\"-\",\"-\",IF(AND($S938=\"Y\",'Enrollment Form'!$CO945=\"No\"),\"-\",IF(AND($S938=\"Y\",'Enrollment Form'!$CO945=\"Yes\",'Enrollment Form'!$CP945<>\"\"),\"Y\",\"N\"))))","v":""},{"$f":"IF(OR('Enrollment Form'!$AV945=\"Yes\",'Enrollment Form'!$AV945=\"\"),\"-\",IF(AND('Enrollment Form'!$AV945=\"No\",ISERROR(FIND(\"HMO\",VLOOKUP('Enrollment Form'!G945,'Enrollment Form'!H$11:J$1000,3,FALSE),1))=FALSE,COUNTA('Enrollment Form'!$AW945:$AZ945)=4),\"Y\",\"N\"))","v":"-"},{"$f":"IF($B938=\"N\",\"\",IF('Enrollment Form'!$B945=\"Subscriber\",\"-\",IF(COUNTA('Enrollment Form'!$BE945,'Enrollment Form'!$BG945)=2,\"Y\",\"N\")))","v":""},{"$f":"IF($B938=\"N\",\"\",IF(OR('Enrollment Form'!$AU945=\"\",'Enrollment Form'!$AU945=\"No\"),\"-\",IF(AND('Enrollment Form'!$AU945=\"Yes\",COUNTA('Enrollment Form'!$CK945)=1),\"Y\",\"N\")))","v":""},{"$f":"IF(OR('Enrollment Form'!$CK945=\"\",'Enrollment Form'!$CK945=\"No\"),\"-\",IF(COUNTA('Enrollment Form'!$CM945:$CN945)=2,\"Y\",\"N\"))","v":"-"},{"$f":"IF($B938=\"N\",\"\",IF(COUNTIF('Enrollment Form'!$CZ945:$DO945,\"Other\")=COUNTA('Enrollment Form'!$DF945,'Enrollment Form'!$DA945,'Enrollment Form'!$DK945,'Enrollment Form'!$DP945),\"Y\",\"N\"))","v":""},{"$f":"IF($B938=\"N\",\"\",IF(OR('Enrollment Form'!B945<>\"Subscriber\",'Enrollment Form'!C945=\"ROC\",COUNTIF('Enrollment Form'!AS945:AT945,\"Yes\")>=1),\"-\",IF(AND('Enrollment Form'!C945=\"Enroll\",COUNTIF('Enrollment Form'!AS945:AT945,\"No\")=2,'Enrollment Form'!AU945=\"\"),\"N\",\"Y\")))","v":""},{"$f":"IF(OR(B938=\"N\",'Enrollment Form'!B945<>\"Subscriber\",'Enrollment Form'!C945=\"ROC\",'Enrollment Form'!O945<>\"Multiple of Salary\"),\"-\",IF(COUNTA('Enrollment Form'!T945:U945)<2,\"N\",\"Y\"))","v":"-"},{"$f":"IF(B938=\"N\",\"\",IF(OR('Enrollment Form'!C945=\"ROC\",'Enrollment Form'!B945<>\"Subscriber\",'Enrollment Form'!O945=\"Waive\",'Enrollment Form'!O945=\"\"),\"-\",IF('Enrollment Form'!P945=\"\",\"N\",\"Y\")))","v":""},{"$f":"IF($B938=\"N\",\"\",IF(AND('Enrollment Form'!$C945=\"ROC\",'Enrollment Form'!$DS945<>\"\"),\"Y\",IF(AND('Enrollment Form'!$C945=\"ROC\",'Enrollment Form'!$DS945=\"\"),\"N\",IF(AND('Enrollment Form'!$C945=\"Enroll\",'Enrollment Form'!$B945=\"Subscriber\",'Enrollment Form'!$CQ945=\"No\",'Enrollment Form'!$DS945=\"\"),\"N\",IF(AND('Enrollment Form'!$C945=\"Enroll\",'Enrollment Form'!$B945=\"Subscriber\",'Enrollment Form'!$CQ945=\"Yes\"),\"-\",\"Y\")))))","v":""},{"$f":"IF($B938=\"N\",\"\",IF(AND('Enrollment Form'!$C945=\"ROC\",'Enrollment Form'!$DT945<>\"\"),\"Y\",IF(AND('Enrollment Form'!$C945=\"ROC\",'Enrollment Form'!$DT945=\"\"),\"N\",IF(AND('Enrollment Form'!$C945=\"Enroll\",'Enrollment Form'!$B945=\"Subscriber\",'Enrollment Form'!$CQ945=\"No\",'Enrollment Form'!$DT945=\"\"),\"N\",IF(AND('Enrollment Form'!$C945=\"Enroll\",'Enrollment Form'!$B945=\"Subscriber\",'Enrollment Form'!$CQ945=\"Yes\"),\"-\",\"Y\")))))","v":""},{"$f":"IF('Enrollment Form'!AH945=\"\",\"\",IF(ISERROR(SEARCH(\".\",'Enrollment Form'!AH945,SEARCH(\"@\",'Enrollment Form'!AH945))),\"N\",\"Y\"))","v":""},{"$f":"IF(OR($B938=\"N\",'Enrollment Form'!$G945=\"\"),\"\",IF('Enrollment Form'!$B945<>\"Subscriber\",\"-\",IF(COUNTIF('Enrollment Form'!$AS945:$AT945,\"Yes\")=2,\"N\",\"Y\")))","v":""},{"$f":"IF(OR('Enrollment Form'!$CC945=\"\",'Enrollment Form'!$CC945=\"No\"),\"-\",IF(AND('Enrollment Form'!$CC945=\"Yes\",'Enrollment Form'!$CD945=\"\"),\"N\",\"Y\"))","v":"-"},{"$f":"IF(OR('Enrollment Form'!$CE945=\"\",'Enrollment Form'!$CE945=\"No\"),\"-\",IF(AND('Enrollment Form'!$CE945=\"Yes\",'Enrollment Form'!$CF945=\"\"),\"N\",\"Y\"))","v":"-"},{"$f":"IF(OR('Enrollment Form'!$CG945=\"\",'Enrollment Form'!$CG945=\"No\"),\"-\",IF(AND('Enrollment Form'!$CG945=\"Yes\",'Enrollment Form'!$CH945=\"\"),\"N\",\"Y\"))","v":"-"},{"$f":"IF(OR('Enrollment Form'!$CG945=\"\",'Enrollment Form'!$CG945=\"No\"),\"-\",IF(AND('Enrollment Form'!$CG945=\"Yes\",'Enrollment Form'!$CI945=\"\"),\"N\",\"Y\"))","v":"-"},{"$f":"IF('Enrollment Form'!B945<>\"Subscriber\",\"-\",IF(AND('Enrollment Form'!B945=\"Subscriber\",'Enrollment Form'!C945=\"Enroll\",'Enrollment Form'!AA945=\"\"),\"N\",\"Y\"))","v":"-"},{"$f":"IF(OR('Enrollment Form'!B945=\"Subscriber\",'Enrollment Form'!B945=\"\"),\"-\",IF('Enrollment Form'!BI945=\"\",\"N\",\"Y\"))","v":"-"},{"$f":"IF('Enrollment Form'!B945<>\"Subscriber\",\"-\",IF(AND('Enrollment Form'!B945=\"Subscriber\",'Enrollment Form'!G945=\"\"),\"N\",\"Y\"))","v":"-"},{"$f":"IF('Enrollment Form'!A945=\"\",\"\",IF('Enrollment Form'!B945=\"Subscriber\",\"-\",IF(AND('Enrollment Form'!B945<>\"Subscriber\",'Enrollment Form'!G945='Enrollment Form'!H945),\"N\",\"Y\")))","v":""},0]
[946,{"$f":"IF('Enrollment Form'!$A946<>\"\",\"Y\",\"N\")","v":"N"},{"$f":"IF(AND('Enrollment Form'!$B946=\"\",'Enrollment Form'!$C946<>\"\"),\"N\",IF($B939=\"N\",\"\",\"Y\"))","v":""},{"$f":"IF(OR($B939=\"N\",'Enrollment Form'!G946=\"\"),\"\",IF('Enrollment Form'!$B946<>\"Subscriber\",\"\",IF('Enrollment Form'!$G946='Enrollment Form'!$H946,\"Y\",\"N\")))","v":""},{"$f":"IF($B939=\"N\",\"\",IF(AND(COUNTIFS('Enrollment Form'!$H$11:$H$1000,'Enrollment Form'!$H946,'Enrollment Form'!$B$11:$B$1000,'Enrollment Form'!$B946)>1,'Enrollment Form'!$H946<>\"\"),\"N\",\"Y\"))","v":""},{"$f":"IF($B939=\"N\",\"\",IF(LEN('Enrollment Form'!$Y946)=0,\"\",IF(LEN('Enrollment Form'!$Y946)<>5,\"N\",\"Y\")))","v":""},{"$f":"IF($B939=\"N\",\"\",IF(LEN('Enrollment Form'!$AD946=0),\"\",IF(LEN('Enrollment Form'!$AD946)<>5,\"N\",\"Y\")))","v":""},{"$f":"IF($B939=\"N\",\"\",IF(LEN('Enrollment Form'!$BL946=0),\"\",IF(LEN('Enrollment Form'!$BL946)<>5,\"N\",\"Y\")))","v":""},{"$f":"IF($B939=\"N\",\"\",IF(LEN('Enrollment Form'!$AE946)=0,\"\",IF(LEN('Enrollment Form'!$AE946)<>10,\"N\",\"Y\")))","v":""},{"$f":"IF($B939=\"N\",\"\",IF(LEN('Enrollment Form'!$AF946)=0,\"\",IF(LEN('Enrollment Form'!$AF946)<>10,\"N\",\"Y\")))","v":""},{"$f":"IF('Enrollment Form'!$O946<>\"Graded\",\"-\",IF(AND('Enrollment Form'!$O946=\"Graded\",'Enrollment Form'!$AO946<>\"\"),\"Y\",\"N\"))","v":"-"},{"$f":"IF($B939=\"N\",\"\",IF(OR('Enrollment Form'!$B946<>\"Subscriber\",'Enrollment Form'!$C946=\"ROC\"),\"-\",IF(AND('Enrollment Form'!$B946=\"Subscriber\",'Enrollment Form'!$C946=\"Enroll\",'Enrollment Form'!$AJ946<>\"\"),\"Y\",\"N\")))","v":""},{"$f":"IF($B939=\"N\",\"\",IF(OR('Enrollment Form'!$B946<>\"Subscriber\",'Enrollment Form'!$C946=\"ROC\"),\"-\",IF(AND('Enrollment Form'!$B946=\"Subscriber\",'Enrollment Form'!$C946=\"Enroll\",'Enrollment Form'!$AK946<>\"\"),\"Y\",\"N\")))","v":""},{"$f":"IF($B939=\"N\",\"\",IF(OR('Enrollment Form'!$B946<>\"Subscriber\",'Enrollment Form'!$C946=\"ROC\"),\"-\",IF(AND('Enrollment Form'!$B946=\"Subscriber\",'Enrollment Form'!$C946=\"Enroll\",'Enrollment Form'!$AL946<>\"\"),\"Y\",\"N\")))","v":""},{"$f":"IF($B939=\"N\",\"\",IF(OR('Enrollment Form'!$B946<>\"Subscriber\",'Enrollment Form'!$C946=\"ROC\"),\"-\",IF(AND('Enrollment Form'!$B946=\"Subscriber\",'Enrollment Form'!$C946=\"Enroll\",'Enrollment Form'!$AM946<>\"\"),\"Y\",\"N\")))","v":""},{"$f":"IF($B939=\"N\",\"\",IF(OR('Enrollment Form'!$B946<>\"Subscriber\",'Enrollment Form'!$C946=\"ROC\"),\"-\",IF(AND('Enrollment Form'!$B946=\"Subscriber\",'Enrollment Form'!$C946=\"Enroll\",'Enrollment Form'!$AN946<>\"\"),\"Y\",\"N\")))","v":""},{"$f":"IF($B939=\"N\",\"\",IF(OR('Enrollment Form'!$B946<>\"Subscriber\",'Enrollment Form'!$C946=\"ROC\"),\"-\",IF(AND('Enrollment Form'!$B946=\"Subscriber\",'Enrollment Form'!$C946=\"Enroll\",'Enrollment Form'!$AP946<>\"\"),\"Y\",\"N\")))","v":""},{"$f":"IF($B939=\"N\",\"\",IF($Q939=\"-\",\"-\",IF(AND($Q939=\"Y\",'Enrollment Form'!$AP946=\"No\"),\"-\",IF(AND($Q939=\"Y\",'Enrollment Form'!$AP946=\"Yes\",'Enrollment Form'!$AQ946<>\"\"),\"Y\",\"N\"))))","v":""},{"$f":"IF($B939=\"N\",\"\",IF(OR('Enrollment Form'!$B946<>\"Subscriber\",'Enrollment Form'!$C946=\"ROC\"),\"-\",IF(AND('Enrollment Form'!$B946=\"Subscriber\",'Enrollment Form'!$C946=\"Enroll\",'Enrollment Form'!$CO946<>\"\"),\"Y\",\"N\")))","v":""},{"$f":"IF($B939=\"N\",\"\",IF($S939=\"-\",\"-\",IF(AND($S939=\"Y\",'Enrollment Form'!$CO946=\"No\"),\"-\",IF(AND($S939=\"Y\",'Enrollment Form'!$CO946=\"Yes\",'Enrollment Form'!$CP946<>\"\"),\"Y\",\"N\"))))","v":""},{"$f":"IF(OR('Enrollment Form'!$AV946=\"Yes\",'Enrollment Form'!$AV946=\"\"),\"-\",IF(AND('Enrollment Form'!$AV946=\"No\",ISERROR(FIND(\"HMO\",VLOOKUP('Enrollment Form'!G946,'Enrollment Form'!H$11:J$1000,3,FALSE),1))=FALSE,COUNTA('Enrollment Form'!$AW946:$AZ946)=4),\"Y\",\"N\"))","v":"-"},{"$f":"IF($B939=\"N\",\"\",IF('Enrollment Form'!$B946=\"Subscriber\",\"-\",IF(COUNTA('Enrollment Form'!$BE946,'Enrollment Form'!$BG946)=2,\"Y\",\"N\")))","v":""},{"$f":"IF($B939=\"N\",\"\",IF(OR('Enrollment Form'!$AU946=\"\",'Enrollment Form'!$AU946=\"No\"),\"-\",IF(AND('Enrollment Form'!$AU946=\"Yes\",COUNTA('Enrollment Form'!$CK946)=1),\"Y\",\"N\")))","v":""},{"$f":"IF(OR('Enrollment Form'!$CK946=\"\",'Enrollment Form'!$CK946=\"No\"),\"-\",IF(COUNTA('Enrollment Form'!$CM946:$CN946)=2,\"Y\",\"N\"))","v":"-"},{"$f":"IF($B939=\"N\",\"\",IF(COUNTIF('Enrollment Form'!$CZ946:$DO946,\"Other\")=COUNTA('Enrollment Form'!$DF946,'Enrollment Form'!$DA946,'Enrollment Form'!$DK946,'Enrollment Form'!$DP946),\"Y\",\"N\"))","v":""},{"$f":"IF($B939=\"N\",\"\",IF(OR('Enrollment Form'!B946<>\"Subscriber\",'Enrollment Form'!C946=\"ROC\",COUNTIF('Enrollment Form'!AS946:AT946,\"Yes\")>=1),\"-\",IF(AND('Enrollment Form'!C946=\"Enroll\",COUNTIF('Enrollment Form'!AS946:AT946,\"No\")=2,'Enrollment Form'!AU946=\"\"),\"N\",\"Y\")))","v":""},{"$f":"IF(OR(B939=\"N\",'Enrollment Form'!B946<>\"Subscriber\",'Enrollment Form'!C946=\"ROC\",'Enrollment Form'!O946<>\"Multiple of Salary\"),\"-\",IF(COUNTA('Enrollment Form'!T946:U946)<2,\"N\",\"Y\"))","v":"-"},{"$f":"IF(B939=\"N\",\"\",IF(OR('Enrollment Form'!C946=\"ROC\",'Enrollment Form'!B946<>\"Subscriber\",'Enrollment Form'!O946=\"Waive\",'Enrollment Form'!O946=\"\"),\"-\",IF('Enrollment Form'!P946=\"\",\"N\",\"Y\")))","v":""},{"$f":"IF($B939=\"N\",\"\",IF(AND('Enrollment Form'!$C946=\"ROC\",'Enrollment Form'!$DS946<>\"\"),\"Y\",IF(AND('Enrollment Form'!$C946=\"ROC\",'Enrollment Form'!$DS946=\"\"),\"N\",IF(AND('Enrollment Form'!$C946=\"Enroll\",'Enrollment Form'!$B946=\"Subscriber\",'Enrollment Form'!$CQ946=\"No\",'Enrollment Form'!$DS946=\"\"),\"N\",IF(AND('Enrollment Form'!$C946=\"Enroll\",'Enrollment Form'!$B946=\"Subscriber\",'Enrollment Form'!$CQ946=\"Yes\"),\"-\",\"Y\")))))","v":""},{"$f":"IF($B939=\"N\",\"\",IF(AND('Enrollment Form'!$C946=\"ROC\",'Enrollment Form'!$DT946<>\"\"),\"Y\",IF(AND('Enrollment Form'!$C946=\"ROC\",'Enrollment Form'!$DT946=\"\"),\"N\",IF(AND('Enrollment Form'!$C946=\"Enroll\",'Enrollment Form'!$B946=\"Subscriber\",'Enrollment Form'!$CQ946=\"No\",'Enrollment Form'!$DT946=\"\"),\"N\",IF(AND('Enrollment Form'!$C946=\"Enroll\",'Enrollment Form'!$B946=\"Subscriber\",'Enrollment Form'!$CQ946=\"Yes\"),\"-\",\"Y\")))))","v":""},{"$f":"IF('Enrollment Form'!AH946=\"\",\"\",IF(ISERROR(SEARCH(\".\",'Enrollment Form'!AH946,SEARCH(\"@\",'Enrollment Form'!AH946))),\"N\",\"Y\"))","v":""},{"$f":"IF(OR($B939=\"N\",'Enrollment Form'!$G946=\"\"),\"\",IF('Enrollment Form'!$B946<>\"Subscriber\",\"-\",IF(COUNTIF('Enrollment Form'!$AS946:$AT946,\"Yes\")=2,\"N\",\"Y\")))","v":""},{"$f":"IF(OR('Enrollment Form'!$CC946=\"\",'Enrollment Form'!$CC946=\"No\"),\"-\",IF(AND('Enrollment Form'!$CC946=\"Yes\",'Enrollment Form'!$CD946=\"\"),\"N\",\"Y\"))","v":"-"},{"$f":"IF(OR('Enrollment Form'!$CE946=\"\",'Enrollment Form'!$CE946=\"No\"),\"-\",IF(AND('Enrollment Form'!$CE946=\"Yes\",'Enrollment Form'!$CF946=\"\"),\"N\",\"Y\"))","v":"-"},{"$f":"IF(OR('Enrollment Form'!$CG946=\"\",'Enrollment Form'!$CG946=\"No\"),\"-\",IF(AND('Enrollment Form'!$CG946=\"Yes\",'Enrollment Form'!$CH946=\"\"),\"N\",\"Y\"))","v":"-"},{"$f":"IF(OR('Enrollment Form'!$CG946=\"\",'Enrollment Form'!$CG946=\"No\"),\"-\",IF(AND('Enrollment Form'!$CG946=\"Yes\",'Enrollment Form'!$CI946=\"\"),\"N\",\"Y\"))","v":"-"},{"$f":"IF('Enrollment Form'!B946<>\"Subscriber\",\"-\",IF(AND('Enrollment Form'!B946=\"Subscriber\",'Enrollment Form'!C946=\"Enroll\",'Enrollment Form'!AA946=\"\"),\"N\",\"Y\"))","v":"-"},{"$f":"IF(OR('Enrollment Form'!B946=\"Subscriber\",'Enrollment Form'!B946=\"\"),\"-\",IF('Enrollment Form'!BI946=\"\",\"N\",\"Y\"))","v":"-"},{"$f":"IF('Enrollment Form'!B946<>\"Subscriber\",\"-\",IF(AND('Enrollment Form'!B946=\"Subscriber\",'Enrollment Form'!G946=\"\"),\"N\",\"Y\"))","v":"-"},{"$f":"IF('Enrollment Form'!A946=\"\",\"\",IF('Enrollment Form'!B946=\"Subscriber\",\"-\",IF(AND('Enrollment Form'!B946<>\"Subscriber\",'Enrollment Form'!G946='Enrollment Form'!H946),\"N\",\"Y\")))","v":""},0]
[947,{"$f":"IF('Enrollment Form'!$A947<>\"\",\"Y\",\"N\")","v":"N"},{"$f":"IF(AND('Enrollment Form'!$B947=\"\",'Enrollment Form'!$C947<>\"\"),\"N\",IF($B940=\"N\",\"\",\"Y\"))","v":""},{"$f":"IF(OR($B940=\"N\",'Enrollment Form'!G947=\"\"),\"\",IF('Enrollment Form'!$B947<>\"Subscriber\",\"\",IF('Enrollment Form'!$G947='Enrollment Form'!$H947,\"Y\",\"N\")))","v":""},{"$f":"IF($B940=\"N\",\"\",IF(AND(COUNTIFS('Enrollment Form'!$H$11:$H$1000,'Enrollment Form'!$H947,'Enrollment Form'!$B$11:$B$1000,'Enrollment Form'!$B947)>1,'Enrollment Form'!$H947<>\"\"),\"N\",\"Y\"))","v":""},{"$f":"IF($B940=\"N\",\"\",IF(LEN('Enrollment Form'!$Y947)=0,\"\",IF(LEN('Enrollment Form'!$Y947)<>5,\"N\",\"Y\")))","v":""},{"$f":"IF($B940=\"N\",\"\",IF(LEN('Enrollment Form'!$AD947=0),\"\",IF(LEN('Enrollment Form'!$AD947)<>5,\"N\",\"Y\")))","v":""},{"$f":"IF($B940=\"N\",\"\",IF(LEN('Enrollment Form'!$BL947=0),\"\",IF(LEN('Enrollment Form'!$BL947)<>5,\"N\",\"Y\")))","v":""},{"$f":"IF($B940=\"N\",\"\",IF(LEN('Enrollment Form'!$AE947)=0,\"\",IF(LEN('Enrollment Form'!$AE947)<>10,\"N\",\"Y\")))","v":""},{"$f":"IF($B940=\"N\",\"\",IF(LEN('Enrollment Form'!$AF947)=0,\"\",IF(LEN('Enrollment Form'!$AF947)<>10,\"N\",\"Y\")))","v":""},{"$f":"IF('Enrollment Form'!$O947<>\"Graded\",\"-\",IF(AND('Enrollment Form'!$O947=\"Graded\",'Enrollment Form'!$AO947<>\"\"),\"Y\",\"N\"))","v":"-"},{"$f":"IF($B940=\"N\",\"\",IF(OR('Enrollment Form'!$B947<>\"Subscriber\",'Enrollment Form'!$C947=\"ROC\"),\"-\",IF(AND('Enrollment Form'!$B947=\"Subscriber\",'Enrollment Form'!$C947=\"Enroll\",'Enrollment Form'!$AJ947<>\"\"),\"Y\",\"N\")))","v":""},{"$f":"IF($B940=\"N\",\"\",IF(OR('Enrollment Form'!$B947<>\"Subscriber\",'Enrollment Form'!$C947=\"ROC\"),\"-\",IF(AND('Enrollment Form'!$B947=\"Subscriber\",'Enrollment Form'!$C947=\"Enroll\",'Enrollment Form'!$AK947<>\"\"),\"Y\",\"N\")))","v":""},{"$f":"IF($B940=\"N\",\"\",IF(OR('Enrollment Form'!$B947<>\"Subscriber\",'Enrollment Form'!$C947=\"ROC\"),\"-\",IF(AND('Enrollment Form'!$B947=\"Subscriber\",'Enrollment Form'!$C947=\"Enroll\",'Enrollment Form'!$AL947<>\"\"),\"Y\",\"N\")))","v":""},{"$f":"IF($B940=\"N\",\"\",IF(OR('Enrollment Form'!$B947<>\"Subscriber\",'Enrollment Form'!$C947=\"ROC\"),\"-\",IF(AND('Enrollment Form'!$B947=\"Subscriber\",'Enrollment Form'!$C947=\"Enroll\",'Enrollment Form'!$AM947<>\"\"),\"Y\",\"N\")))","v":""},{"$f":"IF($B940=\"N\",\"\",IF(OR('Enrollment Form'!$B947<>\"Subscriber\",'Enrollment Form'!$C947=\"ROC\"),\"-\",IF(AND('Enrollment Form'!$B947=\"Subscriber\",'Enrollment Form'!$C947=\"Enroll\",'Enrollment Form'!$AN947<>\"\"),\"Y\",\"N\")))","v":""},{"$f":"IF($B940=\"N\",\"\",IF(OR('Enrollment Form'!$B947<>\"Subscriber\",'Enrollment Form'!$C947=\"ROC\"),\"-\",IF(AND('Enrollment Form'!$B947=\"Subscriber\",'Enrollment Form'!$C947=\"Enroll\",'Enrollment Form'!$AP947<>\"\"),\"Y\",\"N\")))","v":""},{"$f":"IF($B940=\"N\",\"\",IF($Q940=\"-\",\"-\",IF(AND($Q940=\"Y\",'Enrollment Form'!$AP947=\"No\"),\"-\",IF(AND($Q940=\"Y\",'Enrollment Form'!$AP947=\"Yes\",'Enrollment Form'!$AQ947<>\"\"),\"Y\",\"N\"))))","v":""},{"$f":"IF($B940=\"N\",\"\",IF(OR('Enrollment Form'!$B947<>\"Subscriber\",'Enrollment Form'!$C947=\"ROC\"),\"-\",IF(AND('Enrollment Form'!$B947=\"Subscriber\",'Enrollment Form'!$C947=\"Enroll\",'Enrollment Form'!$CO947<>\"\"),\"Y\",\"N\")))","v":""},{"$f":"IF($B940=\"N\",\"\",IF($S940=\"-\",\"-\",IF(AND($S940=\"Y\",'Enrollment Form'!$CO947=\"No\"),\"-\",IF(AND($S940=\"Y\",'Enrollment Form'!$CO947=\"Yes\",'Enrollment Form'!$CP947<>\"\"),\"Y\",\"N\"))))","v":""},{"$f":"IF(OR('Enrollment Form'!$AV947=\"Yes\",'Enrollment Form'!$AV947=\"\"),\"-\",IF(AND('Enrollment Form'!$AV947=\"No\",ISERROR(FIND(\"HMO\",VLOOKUP('Enrollment Form'!G947,'Enrollment Form'!H$11:J$1000,3,FALSE),1))=FALSE,COUNTA('Enrollment Form'!$AW947:$AZ947)=4),\"Y\",\"N\"))","v":"-"},{"$f":"IF($B940=\"N\",\"\",IF('Enrollment Form'!$B947=\"Subscriber\",\"-\",IF(COUNTA('Enrollment Form'!$BE947,'Enrollment Form'!$BG947)=2,\"Y\",\"N\")))","v":""},{"$f":"IF($B940=\"N\",\"\",IF(OR('Enrollment Form'!$AU947=\"\",'Enrollment Form'!$AU947=\"No\"),\"-\",IF(AND('Enrollment Form'!$AU947=\"Yes\",COUNTA('Enrollment Form'!$CK947)=1),\"Y\",\"N\")))","v":""},{"$f":"IF(OR('Enrollment Form'!$CK947=\"\",'Enrollment Form'!$CK947=\"No\"),\"-\",IF(COUNTA('Enrollment Form'!$CM947:$CN947)=2,\"Y\",\"N\"))","v":"-"},{"$f":"IF($B940=\"N\",\"\",IF(COUNTIF('Enrollment Form'!$CZ947:$DO947,\"Other\")=COUNTA('Enrollment Form'!$DF947,'Enrollment Form'!$DA947,'Enrollment Form'!$DK947,'Enrollment Form'!$DP947),\"Y\",\"N\"))","v":""},{"$f":"IF($B940=\"N\",\"\",IF(OR('Enrollment Form'!B947<>\"Subscriber\",'Enrollment Form'!C947=\"ROC\",COUNTIF('Enrollment Form'!AS947:AT947,\"Yes\")>=1),\"-\",IF(AND('Enrollment Form'!C947=\"Enroll\",COUNTIF('Enrollment Form'!AS947:AT947,\"No\")=2,'Enrollment Form'!AU947=\"\"),\"N\",\"Y\")))","v":""},{"$f":"IF(OR(B940=\"N\",'Enrollment Form'!B947<>\"Subscriber\",'Enrollment Form'!C947=\"ROC\",'Enrollment Form'!O947<>\"Multiple of Salary\"),\"-\",IF(COUNTA('Enrollment Form'!T947:U947)<2,\"N\",\"Y\"))","v":"-"},{"$f":"IF(B940=\"N\",\"\",IF(OR('Enrollment Form'!C947=\"ROC\",'Enrollment Form'!B947<>\"Subscriber\",'Enrollment Form'!O947=\"Waive\",'Enrollment Form'!O947=\"\"),\"-\",IF('Enrollment Form'!P947=\"\",\"N\",\"Y\")))","v":""},{"$f":"IF($B940=\"N\",\"\",IF(AND('Enrollment Form'!$C947=\"ROC\",'Enrollment Form'!$DS947<>\"\"),\"Y\",IF(AND('Enrollment Form'!$C947=\"ROC\",'Enrollment Form'!$DS947=\"\"),\"N\",IF(AND('Enrollment Form'!$C947=\"Enroll\",'Enrollment Form'!$B947=\"Subscriber\",'Enrollment Form'!$CQ947=\"No\",'Enrollment Form'!$DS947=\"\"),\"N\",IF(AND('Enrollment Form'!$C947=\"Enroll\",'Enrollment Form'!$B947=\"Subscriber\",'Enrollment Form'!$CQ947=\"Yes\"),\"-\",\"Y\")))))","v":""},{"$f":"IF($B940=\"N\",\"\",IF(AND('Enrollment Form'!$C947=\"ROC\",'Enrollment Form'!$DT947<>\"\"),\"Y\",IF(AND('Enrollment Form'!$C947=\"ROC\",'Enrollment Form'!$DT947=\"\"),\"N\",IF(AND('Enrollment Form'!$C947=\"Enroll\",'Enrollment Form'!$B947=\"Subscriber\",'Enrollment Form'!$CQ947=\"No\",'Enrollment Form'!$DT947=\"\"),\"N\",IF(AND('Enrollment Form'!$C947=\"Enroll\",'Enrollment Form'!$B947=\"Subscriber\",'Enrollment Form'!$CQ947=\"Yes\"),\"-\",\"Y\")))))","v":""},{"$f":"IF('Enrollment Form'!AH947=\"\",\"\",IF(ISERROR(SEARCH(\".\",'Enrollment Form'!AH947,SEARCH(\"@\",'Enrollment Form'!AH947))),\"N\",\"Y\"))","v":""},{"$f":"IF(OR($B940=\"N\",'Enrollment Form'!$G947=\"\"),\"\",IF('Enrollment Form'!$B947<>\"Subscriber\",\"-\",IF(COUNTIF('Enrollment Form'!$AS947:$AT947,\"Yes\")=2,\"N\",\"Y\")))","v":""},{"$f":"IF(OR('Enrollment Form'!$CC947=\"\",'Enrollment Form'!$CC947=\"No\"),\"-\",IF(AND('Enrollment Form'!$CC947=\"Yes\",'Enrollment Form'!$CD947=\"\"),\"N\",\"Y\"))","v":"-"},{"$f":"IF(OR('Enrollment Form'!$CE947=\"\",'Enrollment Form'!$CE947=\"No\"),\"-\",IF(AND('Enrollment Form'!$CE947=\"Yes\",'Enrollment Form'!$CF947=\"\"),\"N\",\"Y\"))","v":"-"},{"$f":"IF(OR('Enrollment Form'!$CG947=\"\",'Enrollment Form'!$CG947=\"No\"),\"-\",IF(AND('Enrollment Form'!$CG947=\"Yes\",'Enrollment Form'!$CH947=\"\"),\"N\",\"Y\"))","v":"-"},{"$f":"IF(OR('Enrollment Form'!$CG947=\"\",'Enrollment Form'!$CG947=\"No\"),\"-\",IF(AND('Enrollment Form'!$CG947=\"Yes\",'Enrollment Form'!$CI947=\"\"),\"N\",\"Y\"))","v":"-"},{"$f":"IF('Enrollment Form'!B947<>\"Subscriber\",\"-\",IF(AND('Enrollment Form'!B947=\"Subscriber\",'Enrollment Form'!C947=\"Enroll\",'Enrollment Form'!AA947=\"\"),\"N\",\"Y\"))","v":"-"},{"$f":"IF(OR('Enrollment Form'!B947=\"Subscriber\",'Enrollment Form'!B947=\"\"),\"-\",IF('Enrollment Form'!BI947=\"\",\"N\",\"Y\"))","v":"-"},{"$f":"IF('Enrollment Form'!B947<>\"Subscriber\",\"-\",IF(AND('Enrollment Form'!B947=\"Subscriber\",'Enrollment Form'!G947=\"\"),\"N\",\"Y\"))","v":"-"},{"$f":"IF('Enrollment Form'!A947=\"\",\"\",IF('Enrollment Form'!B947=\"Subscriber\",\"-\",IF(AND('Enrollment Form'!B947<>\"Subscriber\",'Enrollment Form'!G947='Enrollment Form'!H947),\"N\",\"Y\")))","v":""},0]
[948,{"$f":"IF('Enrollment Form'!$A948<>\"\",\"Y\",\"N\")","v":"N"},{"$f":"IF(AND('Enrollment Form'!$B948=\"\",'Enrollment Form'!$C948<>\"\"),\"N\",IF($B941=\"N\",\"\",\"Y\"))","v":""},{"$f":"IF(OR($B941=\"N\",'Enrollment Form'!G948=\"\"),\"\",IF('Enrollment Form'!$B948<>\"Subscriber\",\"\",IF('Enrollment Form'!$G948='Enrollment Form'!$H948,\"Y\",\"N\")))","v":""},{"$f":"IF($B941=\"N\",\"\",IF(AND(COUNTIFS('Enrollment Form'!$H$11:$H$1000,'Enrollment Form'!$H948,'Enrollment Form'!$B$11:$B$1000,'Enrollment Form'!$B948)>1,'Enrollment Form'!$H948<>\"\"),\"N\",\"Y\"))","v":""},{"$f":"IF($B941=\"N\",\"\",IF(LEN('Enrollment Form'!$Y948)=0,\"\",IF(LEN('Enrollment Form'!$Y948)<>5,\"N\",\"Y\")))","v":""},{"$f":"IF($B941=\"N\",\"\",IF(LEN('Enrollment Form'!$AD948=0),\"\",IF(LEN('Enrollment Form'!$AD948)<>5,\"N\",\"Y\")))","v":""},{"$f":"IF($B941=\"N\",\"\",IF(LEN('Enrollment Form'!$BL948=0),\"\",IF(LEN('Enrollment Form'!$BL948)<>5,\"N\",\"Y\")))","v":""},{"$f":"IF($B941=\"N\",\"\",IF(LEN('Enrollment Form'!$AE948)=0,\"\",IF(LEN('Enrollment Form'!$AE948)<>10,\"N\",\"Y\")))","v":""},{"$f":"IF($B941=\"N\",\"\",IF(LEN('Enrollment Form'!$AF948)=0,\"\",IF(LEN('Enrollment Form'!$AF948)<>10,\"N\",\"Y\")))","v":""},{"$f":"IF('Enrollment Form'!$O948<>\"Graded\",\"-\",IF(AND('Enrollment Form'!$O948=\"Graded\",'Enrollment Form'!$AO948<>\"\"),\"Y\",\"N\"))","v":"-"},{"$f":"IF($B941=\"N\",\"\",IF(OR('Enrollment Form'!$B948<>\"Subscriber\",'Enrollment Form'!$C948=\"ROC\"),\"-\",IF(AND('Enrollment Form'!$B948=\"Subscriber\",'Enrollment Form'!$C948=\"Enroll\",'Enrollment Form'!$AJ948<>\"\"),\"Y\",\"N\")))","v":""},{"$f":"IF($B941=\"N\",\"\",IF(OR('Enrollment Form'!$B948<>\"Subscriber\",'Enrollment Form'!$C948=\"ROC\"),\"-\",IF(AND('Enrollment Form'!$B948=\"Subscriber\",'Enrollment Form'!$C948=\"Enroll\",'Enrollment Form'!$AK948<>\"\"),\"Y\",\"N\")))","v":""},{"$f":"IF($B941=\"N\",\"\",IF(OR('Enrollment Form'!$B948<>\"Subscriber\",'Enrollment Form'!$C948=\"ROC\"),\"-\",IF(AND('Enrollment Form'!$B948=\"Subscriber\",'Enrollment Form'!$C948=\"Enroll\",'Enrollment Form'!$AL948<>\"\"),\"Y\",\"N\")))","v":""},{"$f":"IF($B941=\"N\",\"\",IF(OR('Enrollment Form'!$B948<>\"Subscriber\",'Enrollment Form'!$C948=\"ROC\"),\"-\",IF(AND('Enrollment Form'!$B948=\"Subscriber\",'Enrollment Form'!$C948=\"Enroll\",'Enrollment Form'!$AM948<>\"\"),\"Y\",\"N\")))","v":""},{"$f":"IF($B941=\"N\",\"\",IF(OR('Enrollment Form'!$B948<>\"Subscriber\",'Enrollment Form'!$C948=\"ROC\"),\"-\",IF(AND('Enrollment Form'!$B948=\"Subscriber\",'Enrollment Form'!$C948=\"Enroll\",'Enrollment Form'!$AN948<>\"\"),\"Y\",\"N\")))","v":""},{"$f":"IF($B941=\"N\",\"\",IF(OR('Enrollment Form'!$B948<>\"Subscriber\",'Enrollment Form'!$C948=\"ROC\"),\"-\",IF(AND('Enrollment Form'!$B948=\"Subscriber\",'Enrollment Form'!$C948=\"Enroll\",'Enrollment Form'!$AP948<>\"\"),\"Y\",\"N\")))","v":""},{"$f":"IF($B941=\"N\",\"\",IF($Q941=\"-\",\"-\",IF(AND($Q941=\"Y\",'Enrollment Form'!$AP948=\"No\"),\"-\",IF(AND($Q941=\"Y\",'Enrollment Form'!$AP948=\"Yes\",'Enrollment Form'!$AQ948<>\"\"),\"Y\",\"N\"))))","v":""},{"$f":"IF($B941=\"N\",\"\",IF(OR('Enrollment Form'!$B948<>\"Subscriber\",'Enrollment Form'!$C948=\"ROC\"),\"-\",IF(AND('Enrollment Form'!$B948=\"Subscriber\",'Enrollment Form'!$C948=\"Enroll\",'Enrollment Form'!$CO948<>\"\"),\"Y\",\"N\")))","v":""},{"$f":"IF($B941=\"N\",\"\",IF($S941=\"-\",\"-\",IF(AND($S941=\"Y\",'Enrollment Form'!$CO948=\"No\"),\"-\",IF(AND($S941=\"Y\",'Enrollment Form'!$CO948=\"Yes\",'Enrollment Form'!$CP948<>\"\"),\"Y\",\"N\"))))","v":""},{"$f":"IF(OR('Enrollment Form'!$AV948=\"Yes\",'Enrollment Form'!$AV948=\"\"),\"-\",IF(AND('Enrollment Form'!$AV948=\"No\",ISERROR(FIND(\"HMO\",VLOOKUP('Enrollment Form'!G948,'Enrollment Form'!H$11:J$1000,3,FALSE),1))=FALSE,COUNTA('Enrollment Form'!$AW948:$AZ948)=4),\"Y\",\"N\"))","v":"-"},{"$f":"IF($B941=\"N\",\"\",IF('Enrollment Form'!$B948=\"Subscriber\",\"-\",IF(COUNTA('Enrollment Form'!$BE948,'Enrollment Form'!$BG948)=2,\"Y\",\"N\")))","v":""},{"$f":"IF($B941=\"N\",\"\",IF(OR('Enrollment Form'!$AU948=\"\",'Enrollment Form'!$AU948=\"No\"),\"-\",IF(AND('Enrollment Form'!$AU948=\"Yes\",COUNTA('Enrollment Form'!$CK948)=1),\"Y\",\"N\")))","v":""},{"$f":"IF(OR('Enrollment Form'!$CK948=\"\",'Enrollment Form'!$CK948=\"No\"),\"-\",IF(COUNTA('Enrollment Form'!$CM948:$CN948)=2,\"Y\",\"N\"))","v":"-"},{"$f":"IF($B941=\"N\",\"\",IF(COUNTIF('Enrollment Form'!$CZ948:$DO948,\"Other\")=COUNTA('Enrollment Form'!$DF948,'Enrollment Form'!$DA948,'Enrollment Form'!$DK948,'Enrollment Form'!$DP948),\"Y\",\"N\"))","v":""},{"$f":"IF($B941=\"N\",\"\",IF(OR('Enrollment Form'!B948<>\"Subscriber\",'Enrollment Form'!C948=\"ROC\",COUNTIF('Enrollment Form'!AS948:AT948,\"Yes\")>=1),\"-\",IF(AND('Enrollment Form'!C948=\"Enroll\",COUNTIF('Enrollment Form'!AS948:AT948,\"No\")=2,'Enrollment Form'!AU948=\"\"),\"N\",\"Y\")))","v":""},{"$f":"IF(OR(B941=\"N\",'Enrollment Form'!B948<>\"Subscriber\",'Enrollment Form'!C948=\"ROC\",'Enrollment Form'!O948<>\"Multiple of Salary\"),\"-\",IF(COUNTA('Enrollment Form'!T948:U948)<2,\"N\",\"Y\"))","v":"-"},{"$f":"IF(B941=\"N\",\"\",IF(OR('Enrollment Form'!C948=\"ROC\",'Enrollment Form'!B948<>\"Subscriber\",'Enrollment Form'!O948=\"Waive\",'Enrollment Form'!O948=\"\"),\"-\",IF('Enrollment Form'!P948=\"\",\"N\",\"Y\")))","v":""},{"$f":"IF($B941=\"N\",\"\",IF(AND('Enrollment Form'!$C948=\"ROC\",'Enrollment Form'!$DS948<>\"\"),\"Y\",IF(AND('Enrollment Form'!$C948=\"ROC\",'Enrollment Form'!$DS948=\"\"),\"N\",IF(AND('Enrollment Form'!$C948=\"Enroll\",'Enrollment Form'!$B948=\"Subscriber\",'Enrollment Form'!$CQ948=\"No\",'Enrollment Form'!$DS948=\"\"),\"N\",IF(AND('Enrollment Form'!$C948=\"Enroll\",'Enrollment Form'!$B948=\"Subscriber\",'Enrollment Form'!$CQ948=\"Yes\"),\"-\",\"Y\")))))","v":""},{"$f":"IF($B941=\"N\",\"\",IF(AND('Enrollment Form'!$C948=\"ROC\",'Enrollment Form'!$DT948<>\"\"),\"Y\",IF(AND('Enrollment Form'!$C948=\"ROC\",'Enrollment Form'!$DT948=\"\"),\"N\",IF(AND('Enrollment Form'!$C948=\"Enroll\",'Enrollment Form'!$B948=\"Subscriber\",'Enrollment Form'!$CQ948=\"No\",'Enrollment Form'!$DT948=\"\"),\"N\",IF(AND('Enrollment Form'!$C948=\"Enroll\",'Enrollment Form'!$B948=\"Subscriber\",'Enrollment Form'!$CQ948=\"Yes\"),\"-\",\"Y\")))))","v":""},{"$f":"IF('Enrollment Form'!AH948=\"\",\"\",IF(ISERROR(SEARCH(\".\",'Enrollment Form'!AH948,SEARCH(\"@\",'Enrollment Form'!AH948))),\"N\",\"Y\"))","v":""},{"$f":"IF(OR($B941=\"N\",'Enrollment Form'!$G948=\"\"),\"\",IF('Enrollment Form'!$B948<>\"Subscriber\",\"-\",IF(COUNTIF('Enrollment Form'!$AS948:$AT948,\"Yes\")=2,\"N\",\"Y\")))","v":""},{"$f":"IF(OR('Enrollment Form'!$CC948=\"\",'Enrollment Form'!$CC948=\"No\"),\"-\",IF(AND('Enrollment Form'!$CC948=\"Yes\",'Enrollment Form'!$CD948=\"\"),\"N\",\"Y\"))","v":"-"},{"$f":"IF(OR('Enrollment Form'!$CE948=\"\",'Enrollment Form'!$CE948=\"No\"),\"-\",IF(AND('Enrollment Form'!$CE948=\"Yes\",'Enrollment Form'!$CF948=\"\"),\"N\",\"Y\"))","v":"-"},{"$f":"IF(OR('Enrollment Form'!$CG948=\"\",'Enrollment Form'!$CG948=\"No\"),\"-\",IF(AND('Enrollment Form'!$CG948=\"Yes\",'Enrollment Form'!$CH948=\"\"),\"N\",\"Y\"))","v":"-"},{"$f":"IF(OR('Enrollment Form'!$CG948=\"\",'Enrollment Form'!$CG948=\"No\"),\"-\",IF(AND('Enrollment Form'!$CG948=\"Yes\",'Enrollment Form'!$CI948=\"\"),\"N\",\"Y\"))","v":"-"},{"$f":"IF('Enrollment Form'!B948<>\"Subscriber\",\"-\",IF(AND('Enrollment Form'!B948=\"Subscriber\",'Enrollment Form'!C948=\"Enroll\",'Enrollment Form'!AA948=\"\"),\"N\",\"Y\"))","v":"-"},{"$f":"IF(OR('Enrollment Form'!B948=\"Subscriber\",'Enrollment Form'!B948=\"\"),\"-\",IF('Enrollment Form'!BI948=\"\",\"N\",\"Y\"))","v":"-"},{"$f":"IF('Enrollment Form'!B948<>\"Subscriber\",\"-\",IF(AND('Enrollment Form'!B948=\"Subscriber\",'Enrollment Form'!G948=\"\"),\"N\",\"Y\"))","v":"-"},{"$f":"IF('Enrollment Form'!A948=\"\",\"\",IF('Enrollment Form'!B948=\"Subscriber\",\"-\",IF(AND('Enrollment Form'!B948<>\"Subscriber\",'Enrollment Form'!G948='Enrollment Form'!H948),\"N\",\"Y\")))","v":""},0]
[949,{"$f":"IF('Enrollment Form'!$A949<>\"\",\"Y\",\"N\")","v":"N"},{"$f":"IF(AND('Enrollment Form'!$B949=\"\",'Enrollment Form'!$C949<>\"\"),\"N\",IF($B942=\"N\",\"\",\"Y\"))","v":""},{"$f":"IF(OR($B942=\"N\",'Enrollment Form'!G949=\"\"),\"\",IF('Enrollment Form'!$B949<>\"Subscriber\",\"\",IF('Enrollment Form'!$G949='Enrollment Form'!$H949,\"Y\",\"N\")))","v":""},{"$f":"IF($B942=\"N\",\"\",IF(AND(COUNTIFS('Enrollment Form'!$H$11:$H$1000,'Enrollment Form'!$H949,'Enrollment Form'!$B$11:$B$1000,'Enrollment Form'!$B949)>1,'Enrollment Form'!$H949<>\"\"),\"N\",\"Y\"))","v":""},{"$f":"IF($B942=\"N\",\"\",IF(LEN('Enrollment Form'!$Y949)=0,\"\",IF(LEN('Enrollment Form'!$Y949)<>5,\"N\",\"Y\")))","v":""},{"$f":"IF($B942=\"N\",\"\",IF(LEN('Enrollment Form'!$AD949=0),\"\",IF(LEN('Enrollment Form'!$AD949)<>5,\"N\",\"Y\")))","v":""},{"$f":"IF($B942=\"N\",\"\",IF(LEN('Enrollment Form'!$BL949=0),\"\",IF(LEN('Enrollment Form'!$BL949)<>5,\"N\",\"Y\")))","v":""},{"$f":"IF($B942=\"N\",\"\",IF(LEN('Enrollment Form'!$AE949)=0,\"\",IF(LEN('Enrollment Form'!$AE949)<>10,\"N\",\"Y\")))","v":""},{"$f":"IF($B942=\"N\",\"\",IF(LEN('Enrollment Form'!$AF949)=0,\"\",IF(LEN('Enrollment Form'!$AF949)<>10,\"N\",\"Y\")))","v":""},{"$f":"IF('Enrollment Form'!$O949<>\"Graded\",\"-\",IF(AND('Enrollment Form'!$O949=\"Graded\",'Enrollment Form'!$AO949<>\"\"),\"Y\",\"N\"))","v":"-"},{"$f":"IF($B942=\"N\",\"\",IF(OR('Enrollment Form'!$B949<>\"Subscriber\",'Enrollment Form'!$C949=\"ROC\"),\"-\",IF(AND('Enrollment Form'!$B949=\"Subscriber\",'Enrollment Form'!$C949=\"Enroll\",'Enrollment Form'!$AJ949<>\"\"),\"Y\",\"N\")))","v":""},{"$f":"IF($B942=\"N\",\"\",IF(OR('Enrollment Form'!$B949<>\"Subscriber\",'Enrollment Form'!$C949=\"ROC\"),\"-\",IF(AND('Enrollment Form'!$B949=\"Subscriber\",'Enrollment Form'!$C949=\"Enroll\",'Enrollment Form'!$AK949<>\"\"),\"Y\",\"N\")))","v":""},{"$f":"IF($B942=\"N\",\"\",IF(OR('Enrollment Form'!$B949<>\"Subscriber\",'Enrollment Form'!$C949=\"ROC\"),\"-\",IF(AND('Enrollment Form'!$B949=\"Subscriber\",'Enrollment Form'!$C949=\"Enroll\",'Enrollment Form'!$AL949<>\"\"),\"Y\",\"N\")))","v":""},{"$f":"IF($B942=\"N\",\"\",IF(OR('Enrollment Form'!$B949<>\"Subscriber\",'Enrollment Form'!$C949=\"ROC\"),\"-\",IF(AND('Enrollment Form'!$B949=\"Subscriber\",'Enrollment Form'!$C949=\"Enroll\",'Enrollment Form'!$AM949<>\"\"),\"Y\",\"N\")))","v":""},{"$f":"IF($B942=\"N\",\"\",IF(OR('Enrollment Form'!$B949<>\"Subscriber\",'Enrollment Form'!$C949=\"ROC\"),\"-\",IF(AND('Enrollment Form'!$B949=\"Subscriber\",'Enrollment Form'!$C949=\"Enroll\",'Enrollment Form'!$AN949<>\"\"),\"Y\",\"N\")))","v":""},{"$f":"IF($B942=\"N\",\"\",IF(OR('Enrollment Form'!$B949<>\"Subscriber\",'Enrollment Form'!$C949=\"ROC\"),\"-\",IF(AND('Enrollment Form'!$B949=\"Subscriber\",'Enrollment Form'!$C949=\"Enroll\",'Enrollment Form'!$AP949<>\"\"),\"Y\",\"N\")))","v":""},{"$f":"IF($B942=\"N\",\"\",IF($Q942=\"-\",\"-\",IF(AND($Q942=\"Y\",'Enrollment Form'!$AP949=\"No\"),\"-\",IF(AND($Q942=\"Y\",'Enrollment Form'!$AP949=\"Yes\",'Enrollment Form'!$AQ949<>\"\"),\"Y\",\"N\"))))","v":""},{"$f":"IF($B942=\"N\",\"\",IF(OR('Enrollment Form'!$B949<>\"Subscriber\",'Enrollment Form'!$C949=\"ROC\"),\"-\",IF(AND('Enrollment Form'!$B949=\"Subscriber\",'Enrollment Form'!$C949=\"Enroll\",'Enrollment Form'!$CO949<>\"\"),\"Y\",\"N\")))","v":""},{"$f":"IF($B942=\"N\",\"\",IF($S942=\"-\",\"-\",IF(AND($S942=\"Y\",'Enrollment Form'!$CO949=\"No\"),\"-\",IF(AND($S942=\"Y\",'Enrollment Form'!$CO949=\"Yes\",'Enrollment Form'!$CP949<>\"\"),\"Y\",\"N\"))))","v":""},{"$f":"IF(OR('Enrollment Form'!$AV949=\"Yes\",'Enrollment Form'!$AV949=\"\"),\"-\",IF(AND('Enrollment Form'!$AV949=\"No\",ISERROR(FIND(\"HMO\",VLOOKUP('Enrollment Form'!G949,'Enrollment Form'!H$11:J$1000,3,FALSE),1))=FALSE,COUNTA('Enrollment Form'!$AW949:$AZ949)=4),\"Y\",\"N\"))","v":"-"},{"$f":"IF($B942=\"N\",\"\",IF('Enrollment Form'!$B949=\"Subscriber\",\"-\",IF(COUNTA('Enrollment Form'!$BE949,'Enrollment Form'!$BG949)=2,\"Y\",\"N\")))","v":""},{"$f":"IF($B942=\"N\",\"\",IF(OR('Enrollment Form'!$AU949=\"\",'Enrollment Form'!$AU949=\"No\"),\"-\",IF(AND('Enrollment Form'!$AU949=\"Yes\",COUNTA('Enrollment Form'!$CK949)=1),\"Y\",\"N\")))","v":""},{"$f":"IF(OR('Enrollment Form'!$CK949=\"\",'Enrollment Form'!$CK949=\"No\"),\"-\",IF(COUNTA('Enrollment Form'!$CM949:$CN949)=2,\"Y\",\"N\"))","v":"-"},{"$f":"IF($B942=\"N\",\"\",IF(COUNTIF('Enrollment Form'!$CZ949:$DO949,\"Other\")=COUNTA('Enrollment Form'!$DF949,'Enrollment Form'!$DA949,'Enrollment Form'!$DK949,'Enrollment Form'!$DP949),\"Y\",\"N\"))","v":""},{"$f":"IF($B942=\"N\",\"\",IF(OR('Enrollment Form'!B949<>\"Subscriber\",'Enrollment Form'!C949=\"ROC\",COUNTIF('Enrollment Form'!AS949:AT949,\"Yes\")>=1),\"-\",IF(AND('Enrollment Form'!C949=\"Enroll\",COUNTIF('Enrollment Form'!AS949:AT949,\"No\")=2,'Enrollment Form'!AU949=\"\"),\"N\",\"Y\")))","v":""},{"$f":"IF(OR(B942=\"N\",'Enrollment Form'!B949<>\"Subscriber\",'Enrollment Form'!C949=\"ROC\",'Enrollment Form'!O949<>\"Multiple of Salary\"),\"-\",IF(COUNTA('Enrollment Form'!T949:U949)<2,\"N\",\"Y\"))","v":"-"},{"$f":"IF(B942=\"N\",\"\",IF(OR('Enrollment Form'!C949=\"ROC\",'Enrollment Form'!B949<>\"Subscriber\",'Enrollment Form'!O949=\"Waive\",'Enrollment Form'!O949=\"\"),\"-\",IF('Enrollment Form'!P949=\"\",\"N\",\"Y\")))","v":""},{"$f":"IF($B942=\"N\",\"\",IF(AND('Enrollment Form'!$C949=\"ROC\",'Enrollment Form'!$DS949<>\"\"),\"Y\",IF(AND('Enrollment Form'!$C949=\"ROC\",'Enrollment Form'!$DS949=\"\"),\"N\",IF(AND('Enrollment Form'!$C949=\"Enroll\",'Enrollment Form'!$B949=\"Subscriber\",'Enrollment Form'!$CQ949=\"No\",'Enrollment Form'!$DS949=\"\"),\"N\",IF(AND('Enrollment Form'!$C949=\"Enroll\",'Enrollment Form'!$B949=\"Subscriber\",'Enrollment Form'!$CQ949=\"Yes\"),\"-\",\"Y\")))))","v":""},{"$f":"IF($B942=\"N\",\"\",IF(AND('Enrollment Form'!$C949=\"ROC\",'Enrollment Form'!$DT949<>\"\"),\"Y\",IF(AND('Enrollment Form'!$C949=\"ROC\",'Enrollment Form'!$DT949=\"\"),\"N\",IF(AND('Enrollment Form'!$C949=\"Enroll\",'Enrollment Form'!$B949=\"Subscriber\",'Enrollment Form'!$CQ949=\"No\",'Enrollment Form'!$DT949=\"\"),\"N\",IF(AND('Enrollment Form'!$C949=\"Enroll\",'Enrollment Form'!$B949=\"Subscriber\",'Enrollment Form'!$CQ949=\"Yes\"),\"-\",\"Y\")))))","v":""},{"$f":"IF('Enrollment Form'!AH949=\"\",\"\",IF(ISERROR(SEARCH(\".\",'Enrollment Form'!AH949,SEARCH(\"@\",'Enrollment Form'!AH949))),\"N\",\"Y\"))","v":""},{"$f":"IF(OR($B942=\"N\",'Enrollment Form'!$G949=\"\"),\"\",IF('Enrollment Form'!$B949<>\"Subscriber\",\"-\",IF(COUNTIF('Enrollment Form'!$AS949:$AT949,\"Yes\")=2,\"N\",\"Y\")))","v":""},{"$f":"IF(OR('Enrollment Form'!$CC949=\"\",'Enrollment Form'!$CC949=\"No\"),\"-\",IF(AND('Enrollment Form'!$CC949=\"Yes\",'Enrollment Form'!$CD949=\"\"),\"N\",\"Y\"))","v":"-"},{"$f":"IF(OR('Enrollment Form'!$CE949=\"\",'Enrollment Form'!$CE949=\"No\"),\"-\",IF(AND('Enrollment Form'!$CE949=\"Yes\",'Enrollment Form'!$CF949=\"\"),\"N\",\"Y\"))","v":"-"},{"$f":"IF(OR('Enrollment Form'!$CG949=\"\",'Enrollment Form'!$CG949=\"No\"),\"-\",IF(AND('Enrollment Form'!$CG949=\"Yes\",'Enrollment Form'!$CH949=\"\"),\"N\",\"Y\"))","v":"-"},{"$f":"IF(OR('Enrollment Form'!$CG949=\"\",'Enrollment Form'!$CG949=\"No\"),\"-\",IF(AND('Enrollment Form'!$CG949=\"Yes\",'Enrollment Form'!$CI949=\"\"),\"N\",\"Y\"))","v":"-"},{"$f":"IF('Enrollment Form'!B949<>\"Subscriber\",\"-\",IF(AND('Enrollment Form'!B949=\"Subscriber\",'Enrollment Form'!C949=\"Enroll\",'Enrollment Form'!AA949=\"\"),\"N\",\"Y\"))","v":"-"},{"$f":"IF(OR('Enrollment Form'!B949=\"Subscriber\",'Enrollment Form'!B949=\"\"),\"-\",IF('Enrollment Form'!BI949=\"\",\"N\",\"Y\"))","v":"-"},{"$f":"IF('Enrollment Form'!B949<>\"Subscriber\",\"-\",IF(AND('Enrollment Form'!B949=\"Subscriber\",'Enrollment Form'!G949=\"\"),\"N\",\"Y\"))","v":"-"},{"$f":"IF('Enrollment Form'!A949=\"\",\"\",IF('Enrollment Form'!B949=\"Subscriber\",\"-\",IF(AND('Enrollment Form'!B949<>\"Subscriber\",'Enrollment Form'!G949='Enrollment Form'!H949),\"N\",\"Y\")))","v":""},0]
[950,{"$f":"IF('Enrollment Form'!$A950<>\"\",\"Y\",\"N\")","v":"N"},{"$f":"IF(AND('Enrollment Form'!$B950=\"\",'Enrollment Form'!$C950<>\"\"),\"N\",IF($B943=\"N\",\"\",\"Y\"))","v":""},{"$f":"IF(OR($B943=\"N\",'Enrollment Form'!G950=\"\"),\"\",IF('Enrollment Form'!$B950<>\"Subscriber\",\"\",IF('Enrollment Form'!$G950='Enrollment Form'!$H950,\"Y\",\"N\")))","v":""},{"$f":"IF($B943=\"N\",\"\",IF(AND(COUNTIFS('Enrollment Form'!$H$11:$H$1000,'Enrollment Form'!$H950,'Enrollment Form'!$B$11:$B$1000,'Enrollment Form'!$B950)>1,'Enrollment Form'!$H950<>\"\"),\"N\",\"Y\"))","v":""},{"$f":"IF($B943=\"N\",\"\",IF(LEN('Enrollment Form'!$Y950)=0,\"\",IF(LEN('Enrollment Form'!$Y950)<>5,\"N\",\"Y\")))","v":""},{"$f":"IF($B943=\"N\",\"\",IF(LEN('Enrollment Form'!$AD950=0),\"\",IF(LEN('Enrollment Form'!$AD950)<>5,\"N\",\"Y\")))","v":""},{"$f":"IF($B943=\"N\",\"\",IF(LEN('Enrollment Form'!$BL950=0),\"\",IF(LEN('Enrollment Form'!$BL950)<>5,\"N\",\"Y\")))","v":""},{"$f":"IF($B943=\"N\",\"\",IF(LEN('Enrollment Form'!$AE950)=0,\"\",IF(LEN('Enrollment Form'!$AE950)<>10,\"N\",\"Y\")))","v":""},{"$f":"IF($B943=\"N\",\"\",IF(LEN('Enrollment Form'!$AF950)=0,\"\",IF(LEN('Enrollment Form'!$AF950)<>10,\"N\",\"Y\")))","v":""},{"$f":"IF('Enrollment Form'!$O950<>\"Graded\",\"-\",IF(AND('Enrollment Form'!$O950=\"Graded\",'Enrollment Form'!$AO950<>\"\"),\"Y\",\"N\"))","v":"-"},{"$f":"IF($B943=\"N\",\"\",IF(OR('Enrollment Form'!$B950<>\"Subscriber\",'Enrollment Form'!$C950=\"ROC\"),\"-\",IF(AND('Enrollment Form'!$B950=\"Subscriber\",'Enrollment Form'!$C950=\"Enroll\",'Enrollment Form'!$AJ950<>\"\"),\"Y\",\"N\")))","v":""},{"$f":"IF($B943=\"N\",\"\",IF(OR('Enrollment Form'!$B950<>\"Subscriber\",'Enrollment Form'!$C950=\"ROC\"),\"-\",IF(AND('Enrollment Form'!$B950=\"Subscriber\",'Enrollment Form'!$C950=\"Enroll\",'Enrollment Form'!$AK950<>\"\"),\"Y\",\"N\")))","v":""},{"$f":"IF($B943=\"N\",\"\",IF(OR('Enrollment Form'!$B950<>\"Subscriber\",'Enrollment Form'!$C950=\"ROC\"),\"-\",IF(AND('Enrollment Form'!$B950=\"Subscriber\",'Enrollment Form'!$C950=\"Enroll\",'Enrollment Form'!$AL950<>\"\"),\"Y\",\"N\")))","v":""},{"$f":"IF($B943=\"N\",\"\",IF(OR('Enrollment Form'!$B950<>\"Subscriber\",'Enrollment Form'!$C950=\"ROC\"),\"-\",IF(AND('Enrollment Form'!$B950=\"Subscriber\",'Enrollment Form'!$C950=\"Enroll\",'Enrollment Form'!$AM950<>\"\"),\"Y\",\"N\")))","v":""},{"$f":"IF($B943=\"N\",\"\",IF(OR('Enrollment Form'!$B950<>\"Subscriber\",'Enrollment Form'!$C950=\"ROC\"),\"-\",IF(AND('Enrollment Form'!$B950=\"Subscriber\",'Enrollment Form'!$C950=\"Enroll\",'Enrollment Form'!$AN950<>\"\"),\"Y\",\"N\")))","v":""},{"$f":"IF($B943=\"N\",\"\",IF(OR('Enrollment Form'!$B950<>\"Subscriber\",'Enrollment Form'!$C950=\"ROC\"),\"-\",IF(AND('Enrollment Form'!$B950=\"Subscriber\",'Enrollment Form'!$C950=\"Enroll\",'Enrollment Form'!$AP950<>\"\"),\"Y\",\"N\")))","v":""},{"$f":"IF($B943=\"N\",\"\",IF($Q943=\"-\",\"-\",IF(AND($Q943=\"Y\",'Enrollment Form'!$AP950=\"No\"),\"-\",IF(AND($Q943=\"Y\",'Enrollment Form'!$AP950=\"Yes\",'Enrollment Form'!$AQ950<>\"\"),\"Y\",\"N\"))))","v":""},{"$f":"IF($B943=\"N\",\"\",IF(OR('Enrollment Form'!$B950<>\"Subscriber\",'Enrollment Form'!$C950=\"ROC\"),\"-\",IF(AND('Enrollment Form'!$B950=\"Subscriber\",'Enrollment Form'!$C950=\"Enroll\",'Enrollment Form'!$CO950<>\"\"),\"Y\",\"N\")))","v":""},{"$f":"IF($B943=\"N\",\"\",IF($S943=\"-\",\"-\",IF(AND($S943=\"Y\",'Enrollment Form'!$CO950=\"No\"),\"-\",IF(AND($S943=\"Y\",'Enrollment Form'!$CO950=\"Yes\",'Enrollment Form'!$CP950<>\"\"),\"Y\",\"N\"))))","v":""},{"$f":"IF(OR('Enrollment Form'!$AV950=\"Yes\",'Enrollment Form'!$AV950=\"\"),\"-\",IF(AND('Enrollment Form'!$AV950=\"No\",ISERROR(FIND(\"HMO\",VLOOKUP('Enrollment Form'!G950,'Enrollment Form'!H$11:J$1000,3,FALSE),1))=FALSE,COUNTA('Enrollment Form'!$AW950:$AZ950)=4),\"Y\",\"N\"))","v":"-"},{"$f":"IF($B943=\"N\",\"\",IF('Enrollment Form'!$B950=\"Subscriber\",\"-\",IF(COUNTA('Enrollment Form'!$BE950,'Enrollment Form'!$BG950)=2,\"Y\",\"N\")))","v":""},{"$f":"IF($B943=\"N\",\"\",IF(OR('Enrollment Form'!$AU950=\"\",'Enrollment Form'!$AU950=\"No\"),\"-\",IF(AND('Enrollment Form'!$AU950=\"Yes\",COUNTA('Enrollment Form'!$CK950)=1),\"Y\",\"N\")))","v":""},{"$f":"IF(OR('Enrollment Form'!$CK950=\"\",'Enrollment Form'!$CK950=\"No\"),\"-\",IF(COUNTA('Enrollment Form'!$CM950:$CN950)=2,\"Y\",\"N\"))","v":"-"},{"$f":"IF($B943=\"N\",\"\",IF(COUNTIF('Enrollment Form'!$CZ950:$DO950,\"Other\")=COUNTA('Enrollment Form'!$DF950,'Enrollment Form'!$DA950,'Enrollment Form'!$DK950,'Enrollment Form'!$DP950),\"Y\",\"N\"))","v":""},{"$f":"IF($B943=\"N\",\"\",IF(OR('Enrollment Form'!B950<>\"Subscriber\",'Enrollment Form'!C950=\"ROC\",COUNTIF('Enrollment Form'!AS950:AT950,\"Yes\")>=1),\"-\",IF(AND('Enrollment Form'!C950=\"Enroll\",COUNTIF('Enrollment Form'!AS950:AT950,\"No\")=2,'Enrollment Form'!AU950=\"\"),\"N\",\"Y\")))","v":""},{"$f":"IF(OR(B943=\"N\",'Enrollment Form'!B950<>\"Subscriber\",'Enrollment Form'!C950=\"ROC\",'Enrollment Form'!O950<>\"Multiple of Salary\"),\"-\",IF(COUNTA('Enrollment Form'!T950:U950)<2,\"N\",\"Y\"))","v":"-"},{"$f":"IF(B943=\"N\",\"\",IF(OR('Enrollment Form'!C950=\"ROC\",'Enrollment Form'!B950<>\"Subscriber\",'Enrollment Form'!O950=\"Waive\",'Enrollment Form'!O950=\"\"),\"-\",IF('Enrollment Form'!P950=\"\",\"N\",\"Y\")))","v":""},{"$f":"IF($B943=\"N\",\"\",IF(AND('Enrollment Form'!$C950=\"ROC\",'Enrollment Form'!$DS950<>\"\"),\"Y\",IF(AND('Enrollment Form'!$C950=\"ROC\",'Enrollment Form'!$DS950=\"\"),\"N\",IF(AND('Enrollment Form'!$C950=\"Enroll\",'Enrollment Form'!$B950=\"Subscriber\",'Enrollment Form'!$CQ950=\"No\",'Enrollment Form'!$DS950=\"\"),\"N\",IF(AND('Enrollment Form'!$C950=\"Enroll\",'Enrollment Form'!$B950=\"Subscriber\",'Enrollment Form'!$CQ950=\"Yes\"),\"-\",\"Y\")))))","v":""},{"$f":"IF($B943=\"N\",\"\",IF(AND('Enrollment Form'!$C950=\"ROC\",'Enrollment Form'!$DT950<>\"\"),\"Y\",IF(AND('Enrollment Form'!$C950=\"ROC\",'Enrollment Form'!$DT950=\"\"),\"N\",IF(AND('Enrollment Form'!$C950=\"Enroll\",'Enrollment Form'!$B950=\"Subscriber\",'Enrollment Form'!$CQ950=\"No\",'Enrollment Form'!$DT950=\"\"),\"N\",IF(AND('Enrollment Form'!$C950=\"Enroll\",'Enrollment Form'!$B950=\"Subscriber\",'Enrollment Form'!$CQ950=\"Yes\"),\"-\",\"Y\")))))","v":""},{"$f":"IF('Enrollment Form'!AH950=\"\",\"\",IF(ISERROR(SEARCH(\".\",'Enrollment Form'!AH950,SEARCH(\"@\",'Enrollment Form'!AH950))),\"N\",\"Y\"))","v":""},{"$f":"IF(OR($B943=\"N\",'Enrollment Form'!$G950=\"\"),\"\",IF('Enrollment Form'!$B950<>\"Subscriber\",\"-\",IF(COUNTIF('Enrollment Form'!$AS950:$AT950,\"Yes\")=2,\"N\",\"Y\")))","v":""},{"$f":"IF(OR('Enrollment Form'!$CC950=\"\",'Enrollment Form'!$CC950=\"No\"),\"-\",IF(AND('Enrollment Form'!$CC950=\"Yes\",'Enrollment Form'!$CD950=\"\"),\"N\",\"Y\"))","v":"-"},{"$f":"IF(OR('Enrollment Form'!$CE950=\"\",'Enrollment Form'!$CE950=\"No\"),\"-\",IF(AND('Enrollment Form'!$CE950=\"Yes\",'Enrollment Form'!$CF950=\"\"),\"N\",\"Y\"))","v":"-"},{"$f":"IF(OR('Enrollment Form'!$CG950=\"\",'Enrollment Form'!$CG950=\"No\"),\"-\",IF(AND('Enrollment Form'!$CG950=\"Yes\",'Enrollment Form'!$CH950=\"\"),\"N\",\"Y\"))","v":"-"},{"$f":"IF(OR('Enrollment Form'!$CG950=\"\",'Enrollment Form'!$CG950=\"No\"),\"-\",IF(AND('Enrollment Form'!$CG950=\"Yes\",'Enrollment Form'!$CI950=\"\"),\"N\",\"Y\"))","v":"-"},{"$f":"IF('Enrollment Form'!B950<>\"Subscriber\",\"-\",IF(AND('Enrollment Form'!B950=\"Subscriber\",'Enrollment Form'!C950=\"Enroll\",'Enrollment Form'!AA950=\"\"),\"N\",\"Y\"))","v":"-"},{"$f":"IF(OR('Enrollment Form'!B950=\"Subscriber\",'Enrollment Form'!B950=\"\"),\"-\",IF('Enrollment Form'!BI950=\"\",\"N\",\"Y\"))","v":"-"},{"$f":"IF('Enrollment Form'!B950<>\"Subscriber\",\"-\",IF(AND('Enrollment Form'!B950=\"Subscriber\",'Enrollment Form'!G950=\"\"),\"N\",\"Y\"))","v":"-"},{"$f":"IF('Enrollment Form'!A950=\"\",\"\",IF('Enrollment Form'!B950=\"Subscriber\",\"-\",IF(AND('Enrollment Form'!B950<>\"Subscriber\",'Enrollment Form'!G950='Enrollment Form'!H950),\"N\",\"Y\")))","v":""},0]
[951,{"$f":"IF('Enrollment Form'!$A951<>\"\",\"Y\",\"N\")","v":"N"},{"$f":"IF(AND('Enrollment Form'!$B951=\"\",'Enrollment Form'!$C951<>\"\"),\"N\",IF($B944=\"N\",\"\",\"Y\"))","v":""},{"$f":"IF(OR($B944=\"N\",'Enrollment Form'!G951=\"\"),\"\",IF('Enrollment Form'!$B951<>\"Subscriber\",\"\",IF('Enrollment Form'!$G951='Enrollment Form'!$H951,\"Y\",\"N\")))","v":""},{"$f":"IF($B944=\"N\",\"\",IF(AND(COUNTIFS('Enrollment Form'!$H$11:$H$1000,'Enrollment Form'!$H951,'Enrollment Form'!$B$11:$B$1000,'Enrollment Form'!$B951)>1,'Enrollment Form'!$H951<>\"\"),\"N\",\"Y\"))","v":""},{"$f":"IF($B944=\"N\",\"\",IF(LEN('Enrollment Form'!$Y951)=0,\"\",IF(LEN('Enrollment Form'!$Y951)<>5,\"N\",\"Y\")))","v":""},{"$f":"IF($B944=\"N\",\"\",IF(LEN('Enrollment Form'!$AD951=0),\"\",IF(LEN('Enrollment Form'!$AD951)<>5,\"N\",\"Y\")))","v":""},{"$f":"IF($B944=\"N\",\"\",IF(LEN('Enrollment Form'!$BL951=0),\"\",IF(LEN('Enrollment Form'!$BL951)<>5,\"N\",\"Y\")))","v":""},{"$f":"IF($B944=\"N\",\"\",IF(LEN('Enrollment Form'!$AE951)=0,\"\",IF(LEN('Enrollment Form'!$AE951)<>10,\"N\",\"Y\")))","v":""},{"$f":"IF($B944=\"N\",\"\",IF(LEN('Enrollment Form'!$AF951)=0,\"\",IF(LEN('Enrollment Form'!$AF951)<>10,\"N\",\"Y\")))","v":""},{"$f":"IF('Enrollment Form'!$O951<>\"Graded\",\"-\",IF(AND('Enrollment Form'!$O951=\"Graded\",'Enrollment Form'!$AO951<>\"\"),\"Y\",\"N\"))","v":"-"},{"$f":"IF($B944=\"N\",\"\",IF(OR('Enrollment Form'!$B951<>\"Subscriber\",'Enrollment Form'!$C951=\"ROC\"),\"-\",IF(AND('Enrollment Form'!$B951=\"Subscriber\",'Enrollment Form'!$C951=\"Enroll\",'Enrollment Form'!$AJ951<>\"\"),\"Y\",\"N\")))","v":""},{"$f":"IF($B944=\"N\",\"\",IF(OR('Enrollment Form'!$B951<>\"Subscriber\",'Enrollment Form'!$C951=\"ROC\"),\"-\",IF(AND('Enrollment Form'!$B951=\"Subscriber\",'Enrollment Form'!$C951=\"Enroll\",'Enrollment Form'!$AK951<>\"\"),\"Y\",\"N\")))","v":""},{"$f":"IF($B944=\"N\",\"\",IF(OR('Enrollment Form'!$B951<>\"Subscriber\",'Enrollment Form'!$C951=\"ROC\"),\"-\",IF(AND('Enrollment Form'!$B951=\"Subscriber\",'Enrollment Form'!$C951=\"Enroll\",'Enrollment Form'!$AL951<>\"\"),\"Y\",\"N\")))","v":""},{"$f":"IF($B944=\"N\",\"\",IF(OR('Enrollment Form'!$B951<>\"Subscriber\",'Enrollment Form'!$C951=\"ROC\"),\"-\",IF(AND('Enrollment Form'!$B951=\"Subscriber\",'Enrollment Form'!$C951=\"Enroll\",'Enrollment Form'!$AM951<>\"\"),\"Y\",\"N\")))","v":""},{"$f":"IF($B944=\"N\",\"\",IF(OR('Enrollment Form'!$B951<>\"Subscriber\",'Enrollment Form'!$C951=\"ROC\"),\"-\",IF(AND('Enrollment Form'!$B951=\"Subscriber\",'Enrollment Form'!$C951=\"Enroll\",'Enrollment Form'!$AN951<>\"\"),\"Y\",\"N\")))","v":""},{"$f":"IF($B944=\"N\",\"\",IF(OR('Enrollment Form'!$B951<>\"Subscriber\",'Enrollment Form'!$C951=\"ROC\"),\"-\",IF(AND('Enrollment Form'!$B951=\"Subscriber\",'Enrollment Form'!$C951=\"Enroll\",'Enrollment Form'!$AP951<>\"\"),\"Y\",\"N\")))","v":""},{"$f":"IF($B944=\"N\",\"\",IF($Q944=\"-\",\"-\",IF(AND($Q944=\"Y\",'Enrollment Form'!$AP951=\"No\"),\"-\",IF(AND($Q944=\"Y\",'Enrollment Form'!$AP951=\"Yes\",'Enrollment Form'!$AQ951<>\"\"),\"Y\",\"N\"))))","v":""},{"$f":"IF($B944=\"N\",\"\",IF(OR('Enrollment Form'!$B951<>\"Subscriber\",'Enrollment Form'!$C951=\"ROC\"),\"-\",IF(AND('Enrollment Form'!$B951=\"Subscriber\",'Enrollment Form'!$C951=\"Enroll\",'Enrollment Form'!$CO951<>\"\"),\"Y\",\"N\")))","v":""},{"$f":"IF($B944=\"N\",\"\",IF($S944=\"-\",\"-\",IF(AND($S944=\"Y\",'Enrollment Form'!$CO951=\"No\"),\"-\",IF(AND($S944=\"Y\",'Enrollment Form'!$CO951=\"Yes\",'Enrollment Form'!$CP951<>\"\"),\"Y\",\"N\"))))","v":""},{"$f":"IF(OR('Enrollment Form'!$AV951=\"Yes\",'Enrollment Form'!$AV951=\"\"),\"-\",IF(AND('Enrollment Form'!$AV951=\"No\",ISERROR(FIND(\"HMO\",VLOOKUP('Enrollment Form'!G951,'Enrollment Form'!H$11:J$1000,3,FALSE),1))=FALSE,COUNTA('Enrollment Form'!$AW951:$AZ951)=4),\"Y\",\"N\"))","v":"-"},{"$f":"IF($B944=\"N\",\"\",IF('Enrollment Form'!$B951=\"Subscriber\",\"-\",IF(COUNTA('Enrollment Form'!$BE951,'Enrollment Form'!$BG951)=2,\"Y\",\"N\")))","v":""},{"$f":"IF($B944=\"N\",\"\",IF(OR('Enrollment Form'!$AU951=\"\",'Enrollment Form'!$AU951=\"No\"),\"-\",IF(AND('Enrollment Form'!$AU951=\"Yes\",COUNTA('Enrollment Form'!$CK951)=1),\"Y\",\"N\")))","v":""},{"$f":"IF(OR('Enrollment Form'!$CK951=\"\",'Enrollment Form'!$CK951=\"No\"),\"-\",IF(COUNTA('Enrollment Form'!$CM951:$CN951)=2,\"Y\",\"N\"))","v":"-"},{"$f":"IF($B944=\"N\",\"\",IF(COUNTIF('Enrollment Form'!$CZ951:$DO951,\"Other\")=COUNTA('Enrollment Form'!$DF951,'Enrollment Form'!$DA951,'Enrollment Form'!$DK951,'Enrollment Form'!$DP951),\"Y\",\"N\"))","v":""},{"$f":"IF($B944=\"N\",\"\",IF(OR('Enrollment Form'!B951<>\"Subscriber\",'Enrollment Form'!C951=\"ROC\",COUNTIF('Enrollment Form'!AS951:AT951,\"Yes\")>=1),\"-\",IF(AND('Enrollment Form'!C951=\"Enroll\",COUNTIF('Enrollment Form'!AS951:AT951,\"No\")=2,'Enrollment Form'!AU951=\"\"),\"N\",\"Y\")))","v":""},{"$f":"IF(OR(B944=\"N\",'Enrollment Form'!B951<>\"Subscriber\",'Enrollment Form'!C951=\"ROC\",'Enrollment Form'!O951<>\"Multiple of Salary\"),\"-\",IF(COUNTA('Enrollment Form'!T951:U951)<2,\"N\",\"Y\"))","v":"-"},{"$f":"IF(B944=\"N\",\"\",IF(OR('Enrollment Form'!C951=\"ROC\",'Enrollment Form'!B951<>\"Subscriber\",'Enrollment Form'!O951=\"Waive\",'Enrollment Form'!O951=\"\"),\"-\",IF('Enrollment Form'!P951=\"\",\"N\",\"Y\")))","v":""},{"$f":"IF($B944=\"N\",\"\",IF(AND('Enrollment Form'!$C951=\"ROC\",'Enrollment Form'!$DS951<>\"\"),\"Y\",IF(AND('Enrollment Form'!$C951=\"ROC\",'Enrollment Form'!$DS951=\"\"),\"N\",IF(AND('Enrollment Form'!$C951=\"Enroll\",'Enrollment Form'!$B951=\"Subscriber\",'Enrollment Form'!$CQ951=\"No\",'Enrollment Form'!$DS951=\"\"),\"N\",IF(AND('Enrollment Form'!$C951=\"Enroll\",'Enrollment Form'!$B951=\"Subscriber\",'Enrollment Form'!$CQ951=\"Yes\"),\"-\",\"Y\")))))","v":""},{"$f":"IF($B944=\"N\",\"\",IF(AND('Enrollment Form'!$C951=\"ROC\",'Enrollment Form'!$DT951<>\"\"),\"Y\",IF(AND('Enrollment Form'!$C951=\"ROC\",'Enrollment Form'!$DT951=\"\"),\"N\",IF(AND('Enrollment Form'!$C951=\"Enroll\",'Enrollment Form'!$B951=\"Subscriber\",'Enrollment Form'!$CQ951=\"No\",'Enrollment Form'!$DT951=\"\"),\"N\",IF(AND('Enrollment Form'!$C951=\"Enroll\",'Enrollment Form'!$B951=\"Subscriber\",'Enrollment Form'!$CQ951=\"Yes\"),\"-\",\"Y\")))))","v":""},{"$f":"IF('Enrollment Form'!AH951=\"\",\"\",IF(ISERROR(SEARCH(\".\",'Enrollment Form'!AH951,SEARCH(\"@\",'Enrollment Form'!AH951))),\"N\",\"Y\"))","v":""},{"$f":"IF(OR($B944=\"N\",'Enrollment Form'!$G951=\"\"),\"\",IF('Enrollment Form'!$B951<>\"Subscriber\",\"-\",IF(COUNTIF('Enrollment Form'!$AS951:$AT951,\"Yes\")=2,\"N\",\"Y\")))","v":""},{"$f":"IF(OR('Enrollment Form'!$CC951=\"\",'Enrollment Form'!$CC951=\"No\"),\"-\",IF(AND('Enrollment Form'!$CC951=\"Yes\",'Enrollment Form'!$CD951=\"\"),\"N\",\"Y\"))","v":"-"},{"$f":"IF(OR('Enrollment Form'!$CE951=\"\",'Enrollment Form'!$CE951=\"No\"),\"-\",IF(AND('Enrollment Form'!$CE951=\"Yes\",'Enrollment Form'!$CF951=\"\"),\"N\",\"Y\"))","v":"-"},{"$f":"IF(OR('Enrollment Form'!$CG951=\"\",'Enrollment Form'!$CG951=\"No\"),\"-\",IF(AND('Enrollment Form'!$CG951=\"Yes\",'Enrollment Form'!$CH951=\"\"),\"N\",\"Y\"))","v":"-"},{"$f":"IF(OR('Enrollment Form'!$CG951=\"\",'Enrollment Form'!$CG951=\"No\"),\"-\",IF(AND('Enrollment Form'!$CG951=\"Yes\",'Enrollment Form'!$CI951=\"\"),\"N\",\"Y\"))","v":"-"},{"$f":"IF('Enrollment Form'!B951<>\"Subscriber\",\"-\",IF(AND('Enrollment Form'!B951=\"Subscriber\",'Enrollment Form'!C951=\"Enroll\",'Enrollment Form'!AA951=\"\"),\"N\",\"Y\"))","v":"-"},{"$f":"IF(OR('Enrollment Form'!B951=\"Subscriber\",'Enrollment Form'!B951=\"\"),\"-\",IF('Enrollment Form'!BI951=\"\",\"N\",\"Y\"))","v":"-"},{"$f":"IF('Enrollment Form'!B951<>\"Subscriber\",\"-\",IF(AND('Enrollment Form'!B951=\"Subscriber\",'Enrollment Form'!G951=\"\"),\"N\",\"Y\"))","v":"-"},{"$f":"IF('Enrollment Form'!A951=\"\",\"\",IF('Enrollment Form'!B951=\"Subscriber\",\"-\",IF(AND('Enrollment Form'!B951<>\"Subscriber\",'Enrollment Form'!G951='Enrollment Form'!H951),\"N\",\"Y\")))","v":""},0]
[952,{"$f":"IF('Enrollment Form'!$A952<>\"\",\"Y\",\"N\")","v":"N"},{"$f":"IF(AND('Enrollment Form'!$B952=\"\",'Enrollment Form'!$C952<>\"\"),\"N\",IF($B945=\"N\",\"\",\"Y\"))","v":""},{"$f":"IF(OR($B945=\"N\",'Enrollment Form'!G952=\"\"),\"\",IF('Enrollment Form'!$B952<>\"Subscriber\",\"\",IF('Enrollment Form'!$G952='Enrollment Form'!$H952,\"Y\",\"N\")))","v":""},{"$f":"IF($B945=\"N\",\"\",IF(AND(COUNTIFS('Enrollment Form'!$H$11:$H$1000,'Enrollment Form'!$H952,'Enrollment Form'!$B$11:$B$1000,'Enrollment Form'!$B952)>1,'Enrollment Form'!$H952<>\"\"),\"N\",\"Y\"))","v":""},{"$f":"IF($B945=\"N\",\"\",IF(LEN('Enrollment Form'!$Y952)=0,\"\",IF(LEN('Enrollment Form'!$Y952)<>5,\"N\",\"Y\")))","v":""},{"$f":"IF($B945=\"N\",\"\",IF(LEN('Enrollment Form'!$AD952=0),\"\",IF(LEN('Enrollment Form'!$AD952)<>5,\"N\",\"Y\")))","v":""},{"$f":"IF($B945=\"N\",\"\",IF(LEN('Enrollment Form'!$BL952=0),\"\",IF(LEN('Enrollment Form'!$BL952)<>5,\"N\",\"Y\")))","v":""},{"$f":"IF($B945=\"N\",\"\",IF(LEN('Enrollment Form'!$AE952)=0,\"\",IF(LEN('Enrollment Form'!$AE952)<>10,\"N\",\"Y\")))","v":""},{"$f":"IF($B945=\"N\",\"\",IF(LEN('Enrollment Form'!$AF952)=0,\"\",IF(LEN('Enrollment Form'!$AF952)<>10,\"N\",\"Y\")))","v":""},{"$f":"IF('Enrollment Form'!$O952<>\"Graded\",\"-\",IF(AND('Enrollment Form'!$O952=\"Graded\",'Enrollment Form'!$AO952<>\"\"),\"Y\",\"N\"))","v":"-"},{"$f":"IF($B945=\"N\",\"\",IF(OR('Enrollment Form'!$B952<>\"Subscriber\",'Enrollment Form'!$C952=\"ROC\"),\"-\",IF(AND('Enrollment Form'!$B952=\"Subscriber\",'Enrollment Form'!$C952=\"Enroll\",'Enrollment Form'!$AJ952<>\"\"),\"Y\",\"N\")))","v":""},{"$f":"IF($B945=\"N\",\"\",IF(OR('Enrollment Form'!$B952<>\"Subscriber\",'Enrollment Form'!$C952=\"ROC\"),\"-\",IF(AND('Enrollment Form'!$B952=\"Subscriber\",'Enrollment Form'!$C952=\"Enroll\",'Enrollment Form'!$AK952<>\"\"),\"Y\",\"N\")))","v":""},{"$f":"IF($B945=\"N\",\"\",IF(OR('Enrollment Form'!$B952<>\"Subscriber\",'Enrollment Form'!$C952=\"ROC\"),\"-\",IF(AND('Enrollment Form'!$B952=\"Subscriber\",'Enrollment Form'!$C952=\"Enroll\",'Enrollment Form'!$AL952<>\"\"),\"Y\",\"N\")))","v":""},{"$f":"IF($B945=\"N\",\"\",IF(OR('Enrollment Form'!$B952<>\"Subscriber\",'Enrollment Form'!$C952=\"ROC\"),\"-\",IF(AND('Enrollment Form'!$B952=\"Subscriber\",'Enrollment Form'!$C952=\"Enroll\",'Enrollment Form'!$AM952<>\"\"),\"Y\",\"N\")))","v":""},{"$f":"IF($B945=\"N\",\"\",IF(OR('Enrollment Form'!$B952<>\"Subscriber\",'Enrollment Form'!$C952=\"ROC\"),\"-\",IF(AND('Enrollment Form'!$B952=\"Subscriber\",'Enrollment Form'!$C952=\"Enroll\",'Enrollment Form'!$AN952<>\"\"),\"Y\",\"N\")))","v":""},{"$f":"IF($B945=\"N\",\"\",IF(OR('Enrollment Form'!$B952<>\"Subscriber\",'Enrollment Form'!$C952=\"ROC\"),\"-\",IF(AND('Enrollment Form'!$B952=\"Subscriber\",'Enrollment Form'!$C952=\"Enroll\",'Enrollment Form'!$AP952<>\"\"),\"Y\",\"N\")))","v":""},{"$f":"IF($B945=\"N\",\"\",IF($Q945=\"-\",\"-\",IF(AND($Q945=\"Y\",'Enrollment Form'!$AP952=\"No\"),\"-\",IF(AND($Q945=\"Y\",'Enrollment Form'!$AP952=\"Yes\",'Enrollment Form'!$AQ952<>\"\"),\"Y\",\"N\"))))","v":""},{"$f":"IF($B945=\"N\",\"\",IF(OR('Enrollment Form'!$B952<>\"Subscriber\",'Enrollment Form'!$C952=\"ROC\"),\"-\",IF(AND('Enrollment Form'!$B952=\"Subscriber\",'Enrollment Form'!$C952=\"Enroll\",'Enrollment Form'!$CO952<>\"\"),\"Y\",\"N\")))","v":""},{"$f":"IF($B945=\"N\",\"\",IF($S945=\"-\",\"-\",IF(AND($S945=\"Y\",'Enrollment Form'!$CO952=\"No\"),\"-\",IF(AND($S945=\"Y\",'Enrollment Form'!$CO952=\"Yes\",'Enrollment Form'!$CP952<>\"\"),\"Y\",\"N\"))))","v":""},{"$f":"IF(OR('Enrollment Form'!$AV952=\"Yes\",'Enrollment Form'!$AV952=\"\"),\"-\",IF(AND('Enrollment Form'!$AV952=\"No\",ISERROR(FIND(\"HMO\",VLOOKUP('Enrollment Form'!G952,'Enrollment Form'!H$11:J$1000,3,FALSE),1))=FALSE,COUNTA('Enrollment Form'!$AW952:$AZ952)=4),\"Y\",\"N\"))","v":"-"},{"$f":"IF($B945=\"N\",\"\",IF('Enrollment Form'!$B952=\"Subscriber\",\"-\",IF(COUNTA('Enrollment Form'!$BE952,'Enrollment Form'!$BG952)=2,\"Y\",\"N\")))","v":""},{"$f":"IF($B945=\"N\",\"\",IF(OR('Enrollment Form'!$AU952=\"\",'Enrollment Form'!$AU952=\"No\"),\"-\",IF(AND('Enrollment Form'!$AU952=\"Yes\",COUNTA('Enrollment Form'!$CK952)=1),\"Y\",\"N\")))","v":""},{"$f":"IF(OR('Enrollment Form'!$CK952=\"\",'Enrollment Form'!$CK952=\"No\"),\"-\",IF(COUNTA('Enrollment Form'!$CM952:$CN952)=2,\"Y\",\"N\"))","v":"-"},{"$f":"IF($B945=\"N\",\"\",IF(COUNTIF('Enrollment Form'!$CZ952:$DO952,\"Other\")=COUNTA('Enrollment Form'!$DF952,'Enrollment Form'!$DA952,'Enrollment Form'!$DK952,'Enrollment Form'!$DP952),\"Y\",\"N\"))","v":""},{"$f":"IF($B945=\"N\",\"\",IF(OR('Enrollment Form'!B952<>\"Subscriber\",'Enrollment Form'!C952=\"ROC\",COUNTIF('Enrollment Form'!AS952:AT952,\"Yes\")>=1),\"-\",IF(AND('Enrollment Form'!C952=\"Enroll\",COUNTIF('Enrollment Form'!AS952:AT952,\"No\")=2,'Enrollment Form'!AU952=\"\"),\"N\",\"Y\")))","v":""},{"$f":"IF(OR(B945=\"N\",'Enrollment Form'!B952<>\"Subscriber\",'Enrollment Form'!C952=\"ROC\",'Enrollment Form'!O952<>\"Multiple of Salary\"),\"-\",IF(COUNTA('Enrollment Form'!T952:U952)<2,\"N\",\"Y\"))","v":"-"},{"$f":"IF(B945=\"N\",\"\",IF(OR('Enrollment Form'!C952=\"ROC\",'Enrollment Form'!B952<>\"Subscriber\",'Enrollment Form'!O952=\"Waive\",'Enrollment Form'!O952=\"\"),\"-\",IF('Enrollment Form'!P952=\"\",\"N\",\"Y\")))","v":""},{"$f":"IF($B945=\"N\",\"\",IF(AND('Enrollment Form'!$C952=\"ROC\",'Enrollment Form'!$DS952<>\"\"),\"Y\",IF(AND('Enrollment Form'!$C952=\"ROC\",'Enrollment Form'!$DS952=\"\"),\"N\",IF(AND('Enrollment Form'!$C952=\"Enroll\",'Enrollment Form'!$B952=\"Subscriber\",'Enrollment Form'!$CQ952=\"No\",'Enrollment Form'!$DS952=\"\"),\"N\",IF(AND('Enrollment Form'!$C952=\"Enroll\",'Enrollment Form'!$B952=\"Subscriber\",'Enrollment Form'!$CQ952=\"Yes\"),\"-\",\"Y\")))))","v":""},{"$f":"IF($B945=\"N\",\"\",IF(AND('Enrollment Form'!$C952=\"ROC\",'Enrollment Form'!$DT952<>\"\"),\"Y\",IF(AND('Enrollment Form'!$C952=\"ROC\",'Enrollment Form'!$DT952=\"\"),\"N\",IF(AND('Enrollment Form'!$C952=\"Enroll\",'Enrollment Form'!$B952=\"Subscriber\",'Enrollment Form'!$CQ952=\"No\",'Enrollment Form'!$DT952=\"\"),\"N\",IF(AND('Enrollment Form'!$C952=\"Enroll\",'Enrollment Form'!$B952=\"Subscriber\",'Enrollment Form'!$CQ952=\"Yes\"),\"-\",\"Y\")))))","v":""},{"$f":"IF('Enrollment Form'!AH952=\"\",\"\",IF(ISERROR(SEARCH(\".\",'Enrollment Form'!AH952,SEARCH(\"@\",'Enrollment Form'!AH952))),\"N\",\"Y\"))","v":""},{"$f":"IF(OR($B945=\"N\",'Enrollment Form'!$G952=\"\"),\"\",IF('Enrollment Form'!$B952<>\"Subscriber\",\"-\",IF(COUNTIF('Enrollment Form'!$AS952:$AT952,\"Yes\")=2,\"N\",\"Y\")))","v":""},{"$f":"IF(OR('Enrollment Form'!$CC952=\"\",'Enrollment Form'!$CC952=\"No\"),\"-\",IF(AND('Enrollment Form'!$CC952=\"Yes\",'Enrollment Form'!$CD952=\"\"),\"N\",\"Y\"))","v":"-"},{"$f":"IF(OR('Enrollment Form'!$CE952=\"\",'Enrollment Form'!$CE952=\"No\"),\"-\",IF(AND('Enrollment Form'!$CE952=\"Yes\",'Enrollment Form'!$CF952=\"\"),\"N\",\"Y\"))","v":"-"},{"$f":"IF(OR('Enrollment Form'!$CG952=\"\",'Enrollment Form'!$CG952=\"No\"),\"-\",IF(AND('Enrollment Form'!$CG952=\"Yes\",'Enrollment Form'!$CH952=\"\"),\"N\",\"Y\"))","v":"-"},{"$f":"IF(OR('Enrollment Form'!$CG952=\"\",'Enrollment Form'!$CG952=\"No\"),\"-\",IF(AND('Enrollment Form'!$CG952=\"Yes\",'Enrollment Form'!$CI952=\"\"),\"N\",\"Y\"))","v":"-"},{"$f":"IF('Enrollment Form'!B952<>\"Subscriber\",\"-\",IF(AND('Enrollment Form'!B952=\"Subscriber\",'Enrollment Form'!C952=\"Enroll\",'Enrollment Form'!AA952=\"\"),\"N\",\"Y\"))","v":"-"},{"$f":"IF(OR('Enrollment Form'!B952=\"Subscriber\",'Enrollment Form'!B952=\"\"),\"-\",IF('Enrollment Form'!BI952=\"\",\"N\",\"Y\"))","v":"-"},{"$f":"IF('Enrollment Form'!B952<>\"Subscriber\",\"-\",IF(AND('Enrollment Form'!B952=\"Subscriber\",'Enrollment Form'!G952=\"\"),\"N\",\"Y\"))","v":"-"},{"$f":"IF('Enrollment Form'!A952=\"\",\"\",IF('Enrollment Form'!B952=\"Subscriber\",\"-\",IF(AND('Enrollment Form'!B952<>\"Subscriber\",'Enrollment Form'!G952='Enrollment Form'!H952),\"N\",\"Y\")))","v":""},0]
[953,{"$f":"IF('Enrollment Form'!$A953<>\"\",\"Y\",\"N\")","v":"N"},{"$f":"IF(AND('Enrollment Form'!$B953=\"\",'Enrollment Form'!$C953<>\"\"),\"N\",IF($B946=\"N\",\"\",\"Y\"))","v":""},{"$f":"IF(OR($B946=\"N\",'Enrollment Form'!G953=\"\"),\"\",IF('Enrollment Form'!$B953<>\"Subscriber\",\"\",IF('Enrollment Form'!$G953='Enrollment Form'!$H953,\"Y\",\"N\")))","v":""},{"$f":"IF($B946=\"N\",\"\",IF(AND(COUNTIFS('Enrollment Form'!$H$11:$H$1000,'Enrollment Form'!$H953,'Enrollment Form'!$B$11:$B$1000,'Enrollment Form'!$B953)>1,'Enrollment Form'!$H953<>\"\"),\"N\",\"Y\"))","v":""},{"$f":"IF($B946=\"N\",\"\",IF(LEN('Enrollment Form'!$Y953)=0,\"\",IF(LEN('Enrollment Form'!$Y953)<>5,\"N\",\"Y\")))","v":""},{"$f":"IF($B946=\"N\",\"\",IF(LEN('Enrollment Form'!$AD953=0),\"\",IF(LEN('Enrollment Form'!$AD953)<>5,\"N\",\"Y\")))","v":""},{"$f":"IF($B946=\"N\",\"\",IF(LEN('Enrollment Form'!$BL953=0),\"\",IF(LEN('Enrollment Form'!$BL953)<>5,\"N\",\"Y\")))","v":""},{"$f":"IF($B946=\"N\",\"\",IF(LEN('Enrollment Form'!$AE953)=0,\"\",IF(LEN('Enrollment Form'!$AE953)<>10,\"N\",\"Y\")))","v":""},{"$f":"IF($B946=\"N\",\"\",IF(LEN('Enrollment Form'!$AF953)=0,\"\",IF(LEN('Enrollment Form'!$AF953)<>10,\"N\",\"Y\")))","v":""},{"$f":"IF('Enrollment Form'!$O953<>\"Graded\",\"-\",IF(AND('Enrollment Form'!$O953=\"Graded\",'Enrollment Form'!$AO953<>\"\"),\"Y\",\"N\"))","v":"-"},{"$f":"IF($B946=\"N\",\"\",IF(OR('Enrollment Form'!$B953<>\"Subscriber\",'Enrollment Form'!$C953=\"ROC\"),\"-\",IF(AND('Enrollment Form'!$B953=\"Subscriber\",'Enrollment Form'!$C953=\"Enroll\",'Enrollment Form'!$AJ953<>\"\"),\"Y\",\"N\")))","v":""},{"$f":"IF($B946=\"N\",\"\",IF(OR('Enrollment Form'!$B953<>\"Subscriber\",'Enrollment Form'!$C953=\"ROC\"),\"-\",IF(AND('Enrollment Form'!$B953=\"Subscriber\",'Enrollment Form'!$C953=\"Enroll\",'Enrollment Form'!$AK953<>\"\"),\"Y\",\"N\")))","v":""},{"$f":"IF($B946=\"N\",\"\",IF(OR('Enrollment Form'!$B953<>\"Subscriber\",'Enrollment Form'!$C953=\"ROC\"),\"-\",IF(AND('Enrollment Form'!$B953=\"Subscriber\",'Enrollment Form'!$C953=\"Enroll\",'Enrollment Form'!$AL953<>\"\"),\"Y\",\"N\")))","v":""},{"$f":"IF($B946=\"N\",\"\",IF(OR('Enrollment Form'!$B953<>\"Subscriber\",'Enrollment Form'!$C953=\"ROC\"),\"-\",IF(AND('Enrollment Form'!$B953=\"Subscriber\",'Enrollment Form'!$C953=\"Enroll\",'Enrollment Form'!$AM953<>\"\"),\"Y\",\"N\")))","v":""},{"$f":"IF($B946=\"N\",\"\",IF(OR('Enrollment Form'!$B953<>\"Subscriber\",'Enrollment Form'!$C953=\"ROC\"),\"-\",IF(AND('Enrollment Form'!$B953=\"Subscriber\",'Enrollment Form'!$C953=\"Enroll\",'Enrollment Form'!$AN953<>\"\"),\"Y\",\"N\")))","v":""},{"$f":"IF($B946=\"N\",\"\",IF(OR('Enrollment Form'!$B953<>\"Subscriber\",'Enrollment Form'!$C953=\"ROC\"),\"-\",IF(AND('Enrollment Form'!$B953=\"Subscriber\",'Enrollment Form'!$C953=\"Enroll\",'Enrollment Form'!$AP953<>\"\"),\"Y\",\"N\")))","v":""},{"$f":"IF($B946=\"N\",\"\",IF($Q946=\"-\",\"-\",IF(AND($Q946=\"Y\",'Enrollment Form'!$AP953=\"No\"),\"-\",IF(AND($Q946=\"Y\",'Enrollment Form'!$AP953=\"Yes\",'Enrollment Form'!$AQ953<>\"\"),\"Y\",\"N\"))))","v":""},{"$f":"IF($B946=\"N\",\"\",IF(OR('Enrollment Form'!$B953<>\"Subscriber\",'Enrollment Form'!$C953=\"ROC\"),\"-\",IF(AND('Enrollment Form'!$B953=\"Subscriber\",'Enrollment Form'!$C953=\"Enroll\",'Enrollment Form'!$CO953<>\"\"),\"Y\",\"N\")))","v":""},{"$f":"IF($B946=\"N\",\"\",IF($S946=\"-\",\"-\",IF(AND($S946=\"Y\",'Enrollment Form'!$CO953=\"No\"),\"-\",IF(AND($S946=\"Y\",'Enrollment Form'!$CO953=\"Yes\",'Enrollment Form'!$CP953<>\"\"),\"Y\",\"N\"))))","v":""},{"$f":"IF(OR('Enrollment Form'!$AV953=\"Yes\",'Enrollment Form'!$AV953=\"\"),\"-\",IF(AND('Enrollment Form'!$AV953=\"No\",ISERROR(FIND(\"HMO\",VLOOKUP('Enrollment Form'!G953,'Enrollment Form'!H$11:J$1000,3,FALSE),1))=FALSE,COUNTA('Enrollment Form'!$AW953:$AZ953)=4),\"Y\",\"N\"))","v":"-"},{"$f":"IF($B946=\"N\",\"\",IF('Enrollment Form'!$B953=\"Subscriber\",\"-\",IF(COUNTA('Enrollment Form'!$BE953,'Enrollment Form'!$BG953)=2,\"Y\",\"N\")))","v":""},{"$f":"IF($B946=\"N\",\"\",IF(OR('Enrollment Form'!$AU953=\"\",'Enrollment Form'!$AU953=\"No\"),\"-\",IF(AND('Enrollment Form'!$AU953=\"Yes\",COUNTA('Enrollment Form'!$CK953)=1),\"Y\",\"N\")))","v":""},{"$f":"IF(OR('Enrollment Form'!$CK953=\"\",'Enrollment Form'!$CK953=\"No\"),\"-\",IF(COUNTA('Enrollment Form'!$CM953:$CN953)=2,\"Y\",\"N\"))","v":"-"},{"$f":"IF($B946=\"N\",\"\",IF(COUNTIF('Enrollment Form'!$CZ953:$DO953,\"Other\")=COUNTA('Enrollment Form'!$DF953,'Enrollment Form'!$DA953,'Enrollment Form'!$DK953,'Enrollment Form'!$DP953),\"Y\",\"N\"))","v":""},{"$f":"IF($B946=\"N\",\"\",IF(OR('Enrollment Form'!B953<>\"Subscriber\",'Enrollment Form'!C953=\"ROC\",COUNTIF('Enrollment Form'!AS953:AT953,\"Yes\")>=1),\"-\",IF(AND('Enrollment Form'!C953=\"Enroll\",COUNTIF('Enrollment Form'!AS953:AT953,\"No\")=2,'Enrollment Form'!AU953=\"\"),\"N\",\"Y\")))","v":""},{"$f":"IF(OR(B946=\"N\",'Enrollment Form'!B953<>\"Subscriber\",'Enrollment Form'!C953=\"ROC\",'Enrollment Form'!O953<>\"Multiple of Salary\"),\"-\",IF(COUNTA('Enrollment Form'!T953:U953)<2,\"N\",\"Y\"))","v":"-"},{"$f":"IF(B946=\"N\",\"\",IF(OR('Enrollment Form'!C953=\"ROC\",'Enrollment Form'!B953<>\"Subscriber\",'Enrollment Form'!O953=\"Waive\",'Enrollment Form'!O953=\"\"),\"-\",IF('Enrollment Form'!P953=\"\",\"N\",\"Y\")))","v":""},{"$f":"IF($B946=\"N\",\"\",IF(AND('Enrollment Form'!$C953=\"ROC\",'Enrollment Form'!$DS953<>\"\"),\"Y\",IF(AND('Enrollment Form'!$C953=\"ROC\",'Enrollment Form'!$DS953=\"\"),\"N\",IF(AND('Enrollment Form'!$C953=\"Enroll\",'Enrollment Form'!$B953=\"Subscriber\",'Enrollment Form'!$CQ953=\"No\",'Enrollment Form'!$DS953=\"\"),\"N\",IF(AND('Enrollment Form'!$C953=\"Enroll\",'Enrollment Form'!$B953=\"Subscriber\",'Enrollment Form'!$CQ953=\"Yes\"),\"-\",\"Y\")))))","v":""},{"$f":"IF($B946=\"N\",\"\",IF(AND('Enrollment Form'!$C953=\"ROC\",'Enrollment Form'!$DT953<>\"\"),\"Y\",IF(AND('Enrollment Form'!$C953=\"ROC\",'Enrollment Form'!$DT953=\"\"),\"N\",IF(AND('Enrollment Form'!$C953=\"Enroll\",'Enrollment Form'!$B953=\"Subscriber\",'Enrollment Form'!$CQ953=\"No\",'Enrollment Form'!$DT953=\"\"),\"N\",IF(AND('Enrollment Form'!$C953=\"Enroll\",'Enrollment Form'!$B953=\"Subscriber\",'Enrollment Form'!$CQ953=\"Yes\"),\"-\",\"Y\")))))","v":""},{"$f":"IF('Enrollment Form'!AH953=\"\",\"\",IF(ISERROR(SEARCH(\".\",'Enrollment Form'!AH953,SEARCH(\"@\",'Enrollment Form'!AH953))),\"N\",\"Y\"))","v":""},{"$f":"IF(OR($B946=\"N\",'Enrollment Form'!$G953=\"\"),\"\",IF('Enrollment Form'!$B953<>\"Subscriber\",\"-\",IF(COUNTIF('Enrollment Form'!$AS953:$AT953,\"Yes\")=2,\"N\",\"Y\")))","v":""},{"$f":"IF(OR('Enrollment Form'!$CC953=\"\",'Enrollment Form'!$CC953=\"No\"),\"-\",IF(AND('Enrollment Form'!$CC953=\"Yes\",'Enrollment Form'!$CD953=\"\"),\"N\",\"Y\"))","v":"-"},{"$f":"IF(OR('Enrollment Form'!$CE953=\"\",'Enrollment Form'!$CE953=\"No\"),\"-\",IF(AND('Enrollment Form'!$CE953=\"Yes\",'Enrollment Form'!$CF953=\"\"),\"N\",\"Y\"))","v":"-"},{"$f":"IF(OR('Enrollment Form'!$CG953=\"\",'Enrollment Form'!$CG953=\"No\"),\"-\",IF(AND('Enrollment Form'!$CG953=\"Yes\",'Enrollment Form'!$CH953=\"\"),\"N\",\"Y\"))","v":"-"},{"$f":"IF(OR('Enrollment Form'!$CG953=\"\",'Enrollment Form'!$CG953=\"No\"),\"-\",IF(AND('Enrollment Form'!$CG953=\"Yes\",'Enrollment Form'!$CI953=\"\"),\"N\",\"Y\"))","v":"-"},{"$f":"IF('Enrollment Form'!B953<>\"Subscriber\",\"-\",IF(AND('Enrollment Form'!B953=\"Subscriber\",'Enrollment Form'!C953=\"Enroll\",'Enrollment Form'!AA953=\"\"),\"N\",\"Y\"))","v":"-"},{"$f":"IF(OR('Enrollment Form'!B953=\"Subscriber\",'Enrollment Form'!B953=\"\"),\"-\",IF('Enrollment Form'!BI953=\"\",\"N\",\"Y\"))","v":"-"},{"$f":"IF('Enrollment Form'!B953<>\"Subscriber\",\"-\",IF(AND('Enrollment Form'!B953=\"Subscriber\",'Enrollment Form'!G953=\"\"),\"N\",\"Y\"))","v":"-"},{"$f":"IF('Enrollment Form'!A953=\"\",\"\",IF('Enrollment Form'!B953=\"Subscriber\",\"-\",IF(AND('Enrollment Form'!B953<>\"Subscriber\",'Enrollment Form'!G953='Enrollment Form'!H953),\"N\",\"Y\")))","v":""},0]
[954,{"$f":"IF('Enrollment Form'!$A954<>\"\",\"Y\",\"N\")","v":"N"},{"$f":"IF(AND('Enrollment Form'!$B954=\"\",'Enrollment Form'!$C954<>\"\"),\"N\",IF($B947=\"N\",\"\",\"Y\"))","v":""},{"$f":"IF(OR($B947=\"N\",'Enrollment Form'!G954=\"\"),\"\",IF('Enrollment Form'!$B954<>\"Subscriber\",\"\",IF('Enrollment Form'!$G954='Enrollment Form'!$H954,\"Y\",\"N\")))","v":""},{"$f":"IF($B947=\"N\",\"\",IF(AND(COUNTIFS('Enrollment Form'!$H$11:$H$1000,'Enrollment Form'!$H954,'Enrollment Form'!$B$11:$B$1000,'Enrollment Form'!$B954)>1,'Enrollment Form'!$H954<>\"\"),\"N\",\"Y\"))","v":""},{"$f":"IF($B947=\"N\",\"\",IF(LEN('Enrollment Form'!$Y954)=0,\"\",IF(LEN('Enrollment Form'!$Y954)<>5,\"N\",\"Y\")))","v":""},{"$f":"IF($B947=\"N\",\"\",IF(LEN('Enrollment Form'!$AD954=0),\"\",IF(LEN('Enrollment Form'!$AD954)<>5,\"N\",\"Y\")))","v":""},{"$f":"IF($B947=\"N\",\"\",IF(LEN('Enrollment Form'!$BL954=0),\"\",IF(LEN('Enrollment Form'!$BL954)<>5,\"N\",\"Y\")))","v":""},{"$f":"IF($B947=\"N\",\"\",IF(LEN('Enrollment Form'!$AE954)=0,\"\",IF(LEN('Enrollment Form'!$AE954)<>10,\"N\",\"Y\")))","v":""},{"$f":"IF($B947=\"N\",\"\",IF(LEN('Enrollment Form'!$AF954)=0,\"\",IF(LEN('Enrollment Form'!$AF954)<>10,\"N\",\"Y\")))","v":""},{"$f":"IF('Enrollment Form'!$O954<>\"Graded\",\"-\",IF(AND('Enrollment Form'!$O954=\"Graded\",'Enrollment Form'!$AO954<>\"\"),\"Y\",\"N\"))","v":"-"},{"$f":"IF($B947=\"N\",\"\",IF(OR('Enrollment Form'!$B954<>\"Subscriber\",'Enrollment Form'!$C954=\"ROC\"),\"-\",IF(AND('Enrollment Form'!$B954=\"Subscriber\",'Enrollment Form'!$C954=\"Enroll\",'Enrollment Form'!$AJ954<>\"\"),\"Y\",\"N\")))","v":""},{"$f":"IF($B947=\"N\",\"\",IF(OR('Enrollment Form'!$B954<>\"Subscriber\",'Enrollment Form'!$C954=\"ROC\"),\"-\",IF(AND('Enrollment Form'!$B954=\"Subscriber\",'Enrollment Form'!$C954=\"Enroll\",'Enrollment Form'!$AK954<>\"\"),\"Y\",\"N\")))","v":""},{"$f":"IF($B947=\"N\",\"\",IF(OR('Enrollment Form'!$B954<>\"Subscriber\",'Enrollment Form'!$C954=\"ROC\"),\"-\",IF(AND('Enrollment Form'!$B954=\"Subscriber\",'Enrollment Form'!$C954=\"Enroll\",'Enrollment Form'!$AL954<>\"\"),\"Y\",\"N\")))","v":""},{"$f":"IF($B947=\"N\",\"\",IF(OR('Enrollment Form'!$B954<>\"Subscriber\",'Enrollment Form'!$C954=\"ROC\"),\"-\",IF(AND('Enrollment Form'!$B954=\"Subscriber\",'Enrollment Form'!$C954=\"Enroll\",'Enrollment Form'!$AM954<>\"\"),\"Y\",\"N\")))","v":""},{"$f":"IF($B947=\"N\",\"\",IF(OR('Enrollment Form'!$B954<>\"Subscriber\",'Enrollment Form'!$C954=\"ROC\"),\"-\",IF(AND('Enrollment Form'!$B954=\"Subscriber\",'Enrollment Form'!$C954=\"Enroll\",'Enrollment Form'!$AN954<>\"\"),\"Y\",\"N\")))","v":""},{"$f":"IF($B947=\"N\",\"\",IF(OR('Enrollment Form'!$B954<>\"Subscriber\",'Enrollment Form'!$C954=\"ROC\"),\"-\",IF(AND('Enrollment Form'!$B954=\"Subscriber\",'Enrollment Form'!$C954=\"Enroll\",'Enrollment Form'!$AP954<>\"\"),\"Y\",\"N\")))","v":""},{"$f":"IF($B947=\"N\",\"\",IF($Q947=\"-\",\"-\",IF(AND($Q947=\"Y\",'Enrollment Form'!$AP954=\"No\"),\"-\",IF(AND($Q947=\"Y\",'Enrollment Form'!$AP954=\"Yes\",'Enrollment Form'!$AQ954<>\"\"),\"Y\",\"N\"))))","v":""},{"$f":"IF($B947=\"N\",\"\",IF(OR('Enrollment Form'!$B954<>\"Subscriber\",'Enrollment Form'!$C954=\"ROC\"),\"-\",IF(AND('Enrollment Form'!$B954=\"Subscriber\",'Enrollment Form'!$C954=\"Enroll\",'Enrollment Form'!$CO954<>\"\"),\"Y\",\"N\")))","v":""},{"$f":"IF($B947=\"N\",\"\",IF($S947=\"-\",\"-\",IF(AND($S947=\"Y\",'Enrollment Form'!$CO954=\"No\"),\"-\",IF(AND($S947=\"Y\",'Enrollment Form'!$CO954=\"Yes\",'Enrollment Form'!$CP954<>\"\"),\"Y\",\"N\"))))","v":""},{"$f":"IF(OR('Enrollment Form'!$AV954=\"Yes\",'Enrollment Form'!$AV954=\"\"),\"-\",IF(AND('Enrollment Form'!$AV954=\"No\",ISERROR(FIND(\"HMO\",VLOOKUP('Enrollment Form'!G954,'Enrollment Form'!H$11:J$1000,3,FALSE),1))=FALSE,COUNTA('Enrollment Form'!$AW954:$AZ954)=4),\"Y\",\"N\"))","v":"-"},{"$f":"IF($B947=\"N\",\"\",IF('Enrollment Form'!$B954=\"Subscriber\",\"-\",IF(COUNTA('Enrollment Form'!$BE954,'Enrollment Form'!$BG954)=2,\"Y\",\"N\")))","v":""},{"$f":"IF($B947=\"N\",\"\",IF(OR('Enrollment Form'!$AU954=\"\",'Enrollment Form'!$AU954=\"No\"),\"-\",IF(AND('Enrollment Form'!$AU954=\"Yes\",COUNTA('Enrollment Form'!$CK954)=1),\"Y\",\"N\")))","v":""},{"$f":"IF(OR('Enrollment Form'!$CK954=\"\",'Enrollment Form'!$CK954=\"No\"),\"-\",IF(COUNTA('Enrollment Form'!$CM954:$CN954)=2,\"Y\",\"N\"))","v":"-"},{"$f":"IF($B947=\"N\",\"\",IF(COUNTIF('Enrollment Form'!$CZ954:$DO954,\"Other\")=COUNTA('Enrollment Form'!$DF954,'Enrollment Form'!$DA954,'Enrollment Form'!$DK954,'Enrollment Form'!$DP954),\"Y\",\"N\"))","v":""},{"$f":"IF($B947=\"N\",\"\",IF(OR('Enrollment Form'!B954<>\"Subscriber\",'Enrollment Form'!C954=\"ROC\",COUNTIF('Enrollment Form'!AS954:AT954,\"Yes\")>=1),\"-\",IF(AND('Enrollment Form'!C954=\"Enroll\",COUNTIF('Enrollment Form'!AS954:AT954,\"No\")=2,'Enrollment Form'!AU954=\"\"),\"N\",\"Y\")))","v":""},{"$f":"IF(OR(B947=\"N\",'Enrollment Form'!B954<>\"Subscriber\",'Enrollment Form'!C954=\"ROC\",'Enrollment Form'!O954<>\"Multiple of Salary\"),\"-\",IF(COUNTA('Enrollment Form'!T954:U954)<2,\"N\",\"Y\"))","v":"-"},{"$f":"IF(B947=\"N\",\"\",IF(OR('Enrollment Form'!C954=\"ROC\",'Enrollment Form'!B954<>\"Subscriber\",'Enrollment Form'!O954=\"Waive\",'Enrollment Form'!O954=\"\"),\"-\",IF('Enrollment Form'!P954=\"\",\"N\",\"Y\")))","v":""},{"$f":"IF($B947=\"N\",\"\",IF(AND('Enrollment Form'!$C954=\"ROC\",'Enrollment Form'!$DS954<>\"\"),\"Y\",IF(AND('Enrollment Form'!$C954=\"ROC\",'Enrollment Form'!$DS954=\"\"),\"N\",IF(AND('Enrollment Form'!$C954=\"Enroll\",'Enrollment Form'!$B954=\"Subscriber\",'Enrollment Form'!$CQ954=\"No\",'Enrollment Form'!$DS954=\"\"),\"N\",IF(AND('Enrollment Form'!$C954=\"Enroll\",'Enrollment Form'!$B954=\"Subscriber\",'Enrollment Form'!$CQ954=\"Yes\"),\"-\",\"Y\")))))","v":""},{"$f":"IF($B947=\"N\",\"\",IF(AND('Enrollment Form'!$C954=\"ROC\",'Enrollment Form'!$DT954<>\"\"),\"Y\",IF(AND('Enrollment Form'!$C954=\"ROC\",'Enrollment Form'!$DT954=\"\"),\"N\",IF(AND('Enrollment Form'!$C954=\"Enroll\",'Enrollment Form'!$B954=\"Subscriber\",'Enrollment Form'!$CQ954=\"No\",'Enrollment Form'!$DT954=\"\"),\"N\",IF(AND('Enrollment Form'!$C954=\"Enroll\",'Enrollment Form'!$B954=\"Subscriber\",'Enrollment Form'!$CQ954=\"Yes\"),\"-\",\"Y\")))))","v":""},{"$f":"IF('Enrollment Form'!AH954=\"\",\"\",IF(ISERROR(SEARCH(\".\",'Enrollment Form'!AH954,SEARCH(\"@\",'Enrollment Form'!AH954))),\"N\",\"Y\"))","v":""},{"$f":"IF(OR($B947=\"N\",'Enrollment Form'!$G954=\"\"),\"\",IF('Enrollment Form'!$B954<>\"Subscriber\",\"-\",IF(COUNTIF('Enrollment Form'!$AS954:$AT954,\"Yes\")=2,\"N\",\"Y\")))","v":""},{"$f":"IF(OR('Enrollment Form'!$CC954=\"\",'Enrollment Form'!$CC954=\"No\"),\"-\",IF(AND('Enrollment Form'!$CC954=\"Yes\",'Enrollment Form'!$CD954=\"\"),\"N\",\"Y\"))","v":"-"},{"$f":"IF(OR('Enrollment Form'!$CE954=\"\",'Enrollment Form'!$CE954=\"No\"),\"-\",IF(AND('Enrollment Form'!$CE954=\"Yes\",'Enrollment Form'!$CF954=\"\"),\"N\",\"Y\"))","v":"-"},{"$f":"IF(OR('Enrollment Form'!$CG954=\"\",'Enrollment Form'!$CG954=\"No\"),\"-\",IF(AND('Enrollment Form'!$CG954=\"Yes\",'Enrollment Form'!$CH954=\"\"),\"N\",\"Y\"))","v":"-"},{"$f":"IF(OR('Enrollment Form'!$CG954=\"\",'Enrollment Form'!$CG954=\"No\"),\"-\",IF(AND('Enrollment Form'!$CG954=\"Yes\",'Enrollment Form'!$CI954=\"\"),\"N\",\"Y\"))","v":"-"},{"$f":"IF('Enrollment Form'!B954<>\"Subscriber\",\"-\",IF(AND('Enrollment Form'!B954=\"Subscriber\",'Enrollment Form'!C954=\"Enroll\",'Enrollment Form'!AA954=\"\"),\"N\",\"Y\"))","v":"-"},{"$f":"IF(OR('Enrollment Form'!B954=\"Subscriber\",'Enrollment Form'!B954=\"\"),\"-\",IF('Enrollment Form'!BI954=\"\",\"N\",\"Y\"))","v":"-"},{"$f":"IF('Enrollment Form'!B954<>\"Subscriber\",\"-\",IF(AND('Enrollment Form'!B954=\"Subscriber\",'Enrollment Form'!G954=\"\"),\"N\",\"Y\"))","v":"-"},{"$f":"IF('Enrollment Form'!A954=\"\",\"\",IF('Enrollment Form'!B954=\"Subscriber\",\"-\",IF(AND('Enrollment Form'!B954<>\"Subscriber\",'Enrollment Form'!G954='Enrollment Form'!H954),\"N\",\"Y\")))","v":""},0]
[955,{"$f":"IF('Enrollment Form'!$A955<>\"\",\"Y\",\"N\")","v":"N"},{"$f":"IF(AND('Enrollment Form'!$B955=\"\",'Enrollment Form'!$C955<>\"\"),\"N\",IF($B948=\"N\",\"\",\"Y\"))","v":""},{"$f":"IF(OR($B948=\"N\",'Enrollment Form'!G955=\"\"),\"\",IF('Enrollment Form'!$B955<>\"Subscriber\",\"\",IF('Enrollment Form'!$G955='Enrollment Form'!$H955,\"Y\",\"N\")))","v":""},{"$f":"IF($B948=\"N\",\"\",IF(AND(COUNTIFS('Enrollment Form'!$H$11:$H$1000,'Enrollment Form'!$H955,'Enrollment Form'!$B$11:$B$1000,'Enrollment Form'!$B955)>1,'Enrollment Form'!$H955<>\"\"),\"N\",\"Y\"))","v":""},{"$f":"IF($B948=\"N\",\"\",IF(LEN('Enrollment Form'!$Y955)=0,\"\",IF(LEN('Enrollment Form'!$Y955)<>5,\"N\",\"Y\")))","v":""},{"$f":"IF($B948=\"N\",\"\",IF(LEN('Enrollment Form'!$AD955=0),\"\",IF(LEN('Enrollment Form'!$AD955)<>5,\"N\",\"Y\")))","v":""},{"$f":"IF($B948=\"N\",\"\",IF(LEN('Enrollment Form'!$BL955=0),\"\",IF(LEN('Enrollment Form'!$BL955)<>5,\"N\",\"Y\")))","v":""},{"$f":"IF($B948=\"N\",\"\",IF(LEN('Enrollment Form'!$AE955)=0,\"\",IF(LEN('Enrollment Form'!$AE955)<>10,\"N\",\"Y\")))","v":""},{"$f":"IF($B948=\"N\",\"\",IF(LEN('Enrollment Form'!$AF955)=0,\"\",IF(LEN('Enrollment Form'!$AF955)<>10,\"N\",\"Y\")))","v":""},{"$f":"IF('Enrollment Form'!$O955<>\"Graded\",\"-\",IF(AND('Enrollment Form'!$O955=\"Graded\",'Enrollment Form'!$AO955<>\"\"),\"Y\",\"N\"))","v":"-"},{"$f":"IF($B948=\"N\",\"\",IF(OR('Enrollment Form'!$B955<>\"Subscriber\",'Enrollment Form'!$C955=\"ROC\"),\"-\",IF(AND('Enrollment Form'!$B955=\"Subscriber\",'Enrollment Form'!$C955=\"Enroll\",'Enrollment Form'!$AJ955<>\"\"),\"Y\",\"N\")))","v":""},{"$f":"IF($B948=\"N\",\"\",IF(OR('Enrollment Form'!$B955<>\"Subscriber\",'Enrollment Form'!$C955=\"ROC\"),\"-\",IF(AND('Enrollment Form'!$B955=\"Subscriber\",'Enrollment Form'!$C955=\"Enroll\",'Enrollment Form'!$AK955<>\"\"),\"Y\",\"N\")))","v":""},{"$f":"IF($B948=\"N\",\"\",IF(OR('Enrollment Form'!$B955<>\"Subscriber\",'Enrollment Form'!$C955=\"ROC\"),\"-\",IF(AND('Enrollment Form'!$B955=\"Subscriber\",'Enrollment Form'!$C955=\"Enroll\",'Enrollment Form'!$AL955<>\"\"),\"Y\",\"N\")))","v":""},{"$f":"IF($B948=\"N\",\"\",IF(OR('Enrollment Form'!$B955<>\"Subscriber\",'Enrollment Form'!$C955=\"ROC\"),\"-\",IF(AND('Enrollment Form'!$B955=\"Subscriber\",'Enrollment Form'!$C955=\"Enroll\",'Enrollment Form'!$AM955<>\"\"),\"Y\",\"N\")))","v":""},{"$f":"IF($B948=\"N\",\"\",IF(OR('Enrollment Form'!$B955<>\"Subscriber\",'Enrollment Form'!$C955=\"ROC\"),\"-\",IF(AND('Enrollment Form'!$B955=\"Subscriber\",'Enrollment Form'!$C955=\"Enroll\",'Enrollment Form'!$AN955<>\"\"),\"Y\",\"N\")))","v":""},{"$f":"IF($B948=\"N\",\"\",IF(OR('Enrollment Form'!$B955<>\"Subscriber\",'Enrollment Form'!$C955=\"ROC\"),\"-\",IF(AND('Enrollment Form'!$B955=\"Subscriber\",'Enrollment Form'!$C955=\"Enroll\",'Enrollment Form'!$AP955<>\"\"),\"Y\",\"N\")))","v":""},{"$f":"IF($B948=\"N\",\"\",IF($Q948=\"-\",\"-\",IF(AND($Q948=\"Y\",'Enrollment Form'!$AP955=\"No\"),\"-\",IF(AND($Q948=\"Y\",'Enrollment Form'!$AP955=\"Yes\",'Enrollment Form'!$AQ955<>\"\"),\"Y\",\"N\"))))","v":""},{"$f":"IF($B948=\"N\",\"\",IF(OR('Enrollment Form'!$B955<>\"Subscriber\",'Enrollment Form'!$C955=\"ROC\"),\"-\",IF(AND('Enrollment Form'!$B955=\"Subscriber\",'Enrollment Form'!$C955=\"Enroll\",'Enrollment Form'!$CO955<>\"\"),\"Y\",\"N\")))","v":""},{"$f":"IF($B948=\"N\",\"\",IF($S948=\"-\",\"-\",IF(AND($S948=\"Y\",'Enrollment Form'!$CO955=\"No\"),\"-\",IF(AND($S948=\"Y\",'Enrollment Form'!$CO955=\"Yes\",'Enrollment Form'!$CP955<>\"\"),\"Y\",\"N\"))))","v":""},{"$f":"IF(OR('Enrollment Form'!$AV955=\"Yes\",'Enrollment Form'!$AV955=\"\"),\"-\",IF(AND('Enrollment Form'!$AV955=\"No\",ISERROR(FIND(\"HMO\",VLOOKUP('Enrollment Form'!G955,'Enrollment Form'!H$11:J$1000,3,FALSE),1))=FALSE,COUNTA('Enrollment Form'!$AW955:$AZ955)=4),\"Y\",\"N\"))","v":"-"},{"$f":"IF($B948=\"N\",\"\",IF('Enrollment Form'!$B955=\"Subscriber\",\"-\",IF(COUNTA('Enrollment Form'!$BE955,'Enrollment Form'!$BG955)=2,\"Y\",\"N\")))","v":""},{"$f":"IF($B948=\"N\",\"\",IF(OR('Enrollment Form'!$AU955=\"\",'Enrollment Form'!$AU955=\"No\"),\"-\",IF(AND('Enrollment Form'!$AU955=\"Yes\",COUNTA('Enrollment Form'!$CK955)=1),\"Y\",\"N\")))","v":""},{"$f":"IF(OR('Enrollment Form'!$CK955=\"\",'Enrollment Form'!$CK955=\"No\"),\"-\",IF(COUNTA('Enrollment Form'!$CM955:$CN955)=2,\"Y\",\"N\"))","v":"-"},{"$f":"IF($B948=\"N\",\"\",IF(COUNTIF('Enrollment Form'!$CZ955:$DO955,\"Other\")=COUNTA('Enrollment Form'!$DF955,'Enrollment Form'!$DA955,'Enrollment Form'!$DK955,'Enrollment Form'!$DP955),\"Y\",\"N\"))","v":""},{"$f":"IF($B948=\"N\",\"\",IF(OR('Enrollment Form'!B955<>\"Subscriber\",'Enrollment Form'!C955=\"ROC\",COUNTIF('Enrollment Form'!AS955:AT955,\"Yes\")>=1),\"-\",IF(AND('Enrollment Form'!C955=\"Enroll\",COUNTIF('Enrollment Form'!AS955:AT955,\"No\")=2,'Enrollment Form'!AU955=\"\"),\"N\",\"Y\")))","v":""},{"$f":"IF(OR(B948=\"N\",'Enrollment Form'!B955<>\"Subscriber\",'Enrollment Form'!C955=\"ROC\",'Enrollment Form'!O955<>\"Multiple of Salary\"),\"-\",IF(COUNTA('Enrollment Form'!T955:U955)<2,\"N\",\"Y\"))","v":"-"},{"$f":"IF(B948=\"N\",\"\",IF(OR('Enrollment Form'!C955=\"ROC\",'Enrollment Form'!B955<>\"Subscriber\",'Enrollment Form'!O955=\"Waive\",'Enrollment Form'!O955=\"\"),\"-\",IF('Enrollment Form'!P955=\"\",\"N\",\"Y\")))","v":""},{"$f":"IF($B948=\"N\",\"\",IF(AND('Enrollment Form'!$C955=\"ROC\",'Enrollment Form'!$DS955<>\"\"),\"Y\",IF(AND('Enrollment Form'!$C955=\"ROC\",'Enrollment Form'!$DS955=\"\"),\"N\",IF(AND('Enrollment Form'!$C955=\"Enroll\",'Enrollment Form'!$B955=\"Subscriber\",'Enrollment Form'!$CQ955=\"No\",'Enrollment Form'!$DS955=\"\"),\"N\",IF(AND('Enrollment Form'!$C955=\"Enroll\",'Enrollment Form'!$B955=\"Subscriber\",'Enrollment Form'!$CQ955=\"Yes\"),\"-\",\"Y\")))))","v":""},{"$f":"IF($B948=\"N\",\"\",IF(AND('Enrollment Form'!$C955=\"ROC\",'Enrollment Form'!$DT955<>\"\"),\"Y\",IF(AND('Enrollment Form'!$C955=\"ROC\",'Enrollment Form'!$DT955=\"\"),\"N\",IF(AND('Enrollment Form'!$C955=\"Enroll\",'Enrollment Form'!$B955=\"Subscriber\",'Enrollment Form'!$CQ955=\"No\",'Enrollment Form'!$DT955=\"\"),\"N\",IF(AND('Enrollment Form'!$C955=\"Enroll\",'Enrollment Form'!$B955=\"Subscriber\",'Enrollment Form'!$CQ955=\"Yes\"),\"-\",\"Y\")))))","v":""},{"$f":"IF('Enrollment Form'!AH955=\"\",\"\",IF(ISERROR(SEARCH(\".\",'Enrollment Form'!AH955,SEARCH(\"@\",'Enrollment Form'!AH955))),\"N\",\"Y\"))","v":""},{"$f":"IF(OR($B948=\"N\",'Enrollment Form'!$G955=\"\"),\"\",IF('Enrollment Form'!$B955<>\"Subscriber\",\"-\",IF(COUNTIF('Enrollment Form'!$AS955:$AT955,\"Yes\")=2,\"N\",\"Y\")))","v":""},{"$f":"IF(OR('Enrollment Form'!$CC955=\"\",'Enrollment Form'!$CC955=\"No\"),\"-\",IF(AND('Enrollment Form'!$CC955=\"Yes\",'Enrollment Form'!$CD955=\"\"),\"N\",\"Y\"))","v":"-"},{"$f":"IF(OR('Enrollment Form'!$CE955=\"\",'Enrollment Form'!$CE955=\"No\"),\"-\",IF(AND('Enrollment Form'!$CE955=\"Yes\",'Enrollment Form'!$CF955=\"\"),\"N\",\"Y\"))","v":"-"},{"$f":"IF(OR('Enrollment Form'!$CG955=\"\",'Enrollment Form'!$CG955=\"No\"),\"-\",IF(AND('Enrollment Form'!$CG955=\"Yes\",'Enrollment Form'!$CH955=\"\"),\"N\",\"Y\"))","v":"-"},{"$f":"IF(OR('Enrollment Form'!$CG955=\"\",'Enrollment Form'!$CG955=\"No\"),\"-\",IF(AND('Enrollment Form'!$CG955=\"Yes\",'Enrollment Form'!$CI955=\"\"),\"N\",\"Y\"))","v":"-"},{"$f":"IF('Enrollment Form'!B955<>\"Subscriber\",\"-\",IF(AND('Enrollment Form'!B955=\"Subscriber\",'Enrollment Form'!C955=\"Enroll\",'Enrollment Form'!AA955=\"\"),\"N\",\"Y\"))","v":"-"},{"$f":"IF(OR('Enrollment Form'!B955=\"Subscriber\",'Enrollment Form'!B955=\"\"),\"-\",IF('Enrollment Form'!BI955=\"\",\"N\",\"Y\"))","v":"-"},{"$f":"IF('Enrollment Form'!B955<>\"Subscriber\",\"-\",IF(AND('Enrollment Form'!B955=\"Subscriber\",'Enrollment Form'!G955=\"\"),\"N\",\"Y\"))","v":"-"},{"$f":"IF('Enrollment Form'!A955=\"\",\"\",IF('Enrollment Form'!B955=\"Subscriber\",\"-\",IF(AND('Enrollment Form'!B955<>\"Subscriber\",'Enrollment Form'!G955='Enrollment Form'!H955),\"N\",\"Y\")))","v":""},0]
[956,{"$f":"IF('Enrollment Form'!$A956<>\"\",\"Y\",\"N\")","v":"N"},{"$f":"IF(AND('Enrollment Form'!$B956=\"\",'Enrollment Form'!$C956<>\"\"),\"N\",IF($B949=\"N\",\"\",\"Y\"))","v":""},{"$f":"IF(OR($B949=\"N\",'Enrollment Form'!G956=\"\"),\"\",IF('Enrollment Form'!$B956<>\"Subscriber\",\"\",IF('Enrollment Form'!$G956='Enrollment Form'!$H956,\"Y\",\"N\")))","v":""},{"$f":"IF($B949=\"N\",\"\",IF(AND(COUNTIFS('Enrollment Form'!$H$11:$H$1000,'Enrollment Form'!$H956,'Enrollment Form'!$B$11:$B$1000,'Enrollment Form'!$B956)>1,'Enrollment Form'!$H956<>\"\"),\"N\",\"Y\"))","v":""},{"$f":"IF($B949=\"N\",\"\",IF(LEN('Enrollment Form'!$Y956)=0,\"\",IF(LEN('Enrollment Form'!$Y956)<>5,\"N\",\"Y\")))","v":""},{"$f":"IF($B949=\"N\",\"\",IF(LEN('Enrollment Form'!$AD956=0),\"\",IF(LEN('Enrollment Form'!$AD956)<>5,\"N\",\"Y\")))","v":""},{"$f":"IF($B949=\"N\",\"\",IF(LEN('Enrollment Form'!$BL956=0),\"\",IF(LEN('Enrollment Form'!$BL956)<>5,\"N\",\"Y\")))","v":""},{"$f":"IF($B949=\"N\",\"\",IF(LEN('Enrollment Form'!$AE956)=0,\"\",IF(LEN('Enrollment Form'!$AE956)<>10,\"N\",\"Y\")))","v":""},{"$f":"IF($B949=\"N\",\"\",IF(LEN('Enrollment Form'!$AF956)=0,\"\",IF(LEN('Enrollment Form'!$AF956)<>10,\"N\",\"Y\")))","v":""},{"$f":"IF('Enrollment Form'!$O956<>\"Graded\",\"-\",IF(AND('Enrollment Form'!$O956=\"Graded\",'Enrollment Form'!$AO956<>\"\"),\"Y\",\"N\"))","v":"-"},{"$f":"IF($B949=\"N\",\"\",IF(OR('Enrollment Form'!$B956<>\"Subscriber\",'Enrollment Form'!$C956=\"ROC\"),\"-\",IF(AND('Enrollment Form'!$B956=\"Subscriber\",'Enrollment Form'!$C956=\"Enroll\",'Enrollment Form'!$AJ956<>\"\"),\"Y\",\"N\")))","v":""},{"$f":"IF($B949=\"N\",\"\",IF(OR('Enrollment Form'!$B956<>\"Subscriber\",'Enrollment Form'!$C956=\"ROC\"),\"-\",IF(AND('Enrollment Form'!$B956=\"Subscriber\",'Enrollment Form'!$C956=\"Enroll\",'Enrollment Form'!$AK956<>\"\"),\"Y\",\"N\")))","v":""},{"$f":"IF($B949=\"N\",\"\",IF(OR('Enrollment Form'!$B956<>\"Subscriber\",'Enrollment Form'!$C956=\"ROC\"),\"-\",IF(AND('Enrollment Form'!$B956=\"Subscriber\",'Enrollment Form'!$C956=\"Enroll\",'Enrollment Form'!$AL956<>\"\"),\"Y\",\"N\")))","v":""},{"$f":"IF($B949=\"N\",\"\",IF(OR('Enrollment Form'!$B956<>\"Subscriber\",'Enrollment Form'!$C956=\"ROC\"),\"-\",IF(AND('Enrollment Form'!$B956=\"Subscriber\",'Enrollment Form'!$C956=\"Enroll\",'Enrollment Form'!$AM956<>\"\"),\"Y\",\"N\")))","v":""},{"$f":"IF($B949=\"N\",\"\",IF(OR('Enrollment Form'!$B956<>\"Subscriber\",'Enrollment Form'!$C956=\"ROC\"),\"-\",IF(AND('Enrollment Form'!$B956=\"Subscriber\",'Enrollment Form'!$C956=\"Enroll\",'Enrollment Form'!$AN956<>\"\"),\"Y\",\"N\")))","v":""},{"$f":"IF($B949=\"N\",\"\",IF(OR('Enrollment Form'!$B956<>\"Subscriber\",'Enrollment Form'!$C956=\"ROC\"),\"-\",IF(AND('Enrollment Form'!$B956=\"Subscriber\",'Enrollment Form'!$C956=\"Enroll\",'Enrollment Form'!$AP956<>\"\"),\"Y\",\"N\")))","v":""},{"$f":"IF($B949=\"N\",\"\",IF($Q949=\"-\",\"-\",IF(AND($Q949=\"Y\",'Enrollment Form'!$AP956=\"No\"),\"-\",IF(AND($Q949=\"Y\",'Enrollment Form'!$AP956=\"Yes\",'Enrollment Form'!$AQ956<>\"\"),\"Y\",\"N\"))))","v":""},{"$f":"IF($B949=\"N\",\"\",IF(OR('Enrollment Form'!$B956<>\"Subscriber\",'Enrollment Form'!$C956=\"ROC\"),\"-\",IF(AND('Enrollment Form'!$B956=\"Subscriber\",'Enrollment Form'!$C956=\"Enroll\",'Enrollment Form'!$CO956<>\"\"),\"Y\",\"N\")))","v":""},{"$f":"IF($B949=\"N\",\"\",IF($S949=\"-\",\"-\",IF(AND($S949=\"Y\",'Enrollment Form'!$CO956=\"No\"),\"-\",IF(AND($S949=\"Y\",'Enrollment Form'!$CO956=\"Yes\",'Enrollment Form'!$CP956<>\"\"),\"Y\",\"N\"))))","v":""},{"$f":"IF(OR('Enrollment Form'!$AV956=\"Yes\",'Enrollment Form'!$AV956=\"\"),\"-\",IF(AND('Enrollment Form'!$AV956=\"No\",ISERROR(FIND(\"HMO\",VLOOKUP('Enrollment Form'!G956,'Enrollment Form'!H$11:J$1000,3,FALSE),1))=FALSE,COUNTA('Enrollment Form'!$AW956:$AZ956)=4),\"Y\",\"N\"))","v":"-"},{"$f":"IF($B949=\"N\",\"\",IF('Enrollment Form'!$B956=\"Subscriber\",\"-\",IF(COUNTA('Enrollment Form'!$BE956,'Enrollment Form'!$BG956)=2,\"Y\",\"N\")))","v":""},{"$f":"IF($B949=\"N\",\"\",IF(OR('Enrollment Form'!$AU956=\"\",'Enrollment Form'!$AU956=\"No\"),\"-\",IF(AND('Enrollment Form'!$AU956=\"Yes\",COUNTA('Enrollment Form'!$CK956)=1),\"Y\",\"N\")))","v":""},{"$f":"IF(OR('Enrollment Form'!$CK956=\"\",'Enrollment Form'!$CK956=\"No\"),\"-\",IF(COUNTA('Enrollment Form'!$CM956:$CN956)=2,\"Y\",\"N\"))","v":"-"},{"$f":"IF($B949=\"N\",\"\",IF(COUNTIF('Enrollment Form'!$CZ956:$DO956,\"Other\")=COUNTA('Enrollment Form'!$DF956,'Enrollment Form'!$DA956,'Enrollment Form'!$DK956,'Enrollment Form'!$DP956),\"Y\",\"N\"))","v":""},{"$f":"IF($B949=\"N\",\"\",IF(OR('Enrollment Form'!B956<>\"Subscriber\",'Enrollment Form'!C956=\"ROC\",COUNTIF('Enrollment Form'!AS956:AT956,\"Yes\")>=1),\"-\",IF(AND('Enrollment Form'!C956=\"Enroll\",COUNTIF('Enrollment Form'!AS956:AT956,\"No\")=2,'Enrollment Form'!AU956=\"\"),\"N\",\"Y\")))","v":""},{"$f":"IF(OR(B949=\"N\",'Enrollment Form'!B956<>\"Subscriber\",'Enrollment Form'!C956=\"ROC\",'Enrollment Form'!O956<>\"Multiple of Salary\"),\"-\",IF(COUNTA('Enrollment Form'!T956:U956)<2,\"N\",\"Y\"))","v":"-"},{"$f":"IF(B949=\"N\",\"\",IF(OR('Enrollment Form'!C956=\"ROC\",'Enrollment Form'!B956<>\"Subscriber\",'Enrollment Form'!O956=\"Waive\",'Enrollment Form'!O956=\"\"),\"-\",IF('Enrollment Form'!P956=\"\",\"N\",\"Y\")))","v":""},{"$f":"IF($B949=\"N\",\"\",IF(AND('Enrollment Form'!$C956=\"ROC\",'Enrollment Form'!$DS956<>\"\"),\"Y\",IF(AND('Enrollment Form'!$C956=\"ROC\",'Enrollment Form'!$DS956=\"\"),\"N\",IF(AND('Enrollment Form'!$C956=\"Enroll\",'Enrollment Form'!$B956=\"Subscriber\",'Enrollment Form'!$CQ956=\"No\",'Enrollment Form'!$DS956=\"\"),\"N\",IF(AND('Enrollment Form'!$C956=\"Enroll\",'Enrollment Form'!$B956=\"Subscriber\",'Enrollment Form'!$CQ956=\"Yes\"),\"-\",\"Y\")))))","v":""},{"$f":"IF($B949=\"N\",\"\",IF(AND('Enrollment Form'!$C956=\"ROC\",'Enrollment Form'!$DT956<>\"\"),\"Y\",IF(AND('Enrollment Form'!$C956=\"ROC\",'Enrollment Form'!$DT956=\"\"),\"N\",IF(AND('Enrollment Form'!$C956=\"Enroll\",'Enrollment Form'!$B956=\"Subscriber\",'Enrollment Form'!$CQ956=\"No\",'Enrollment Form'!$DT956=\"\"),\"N\",IF(AND('Enrollment Form'!$C956=\"Enroll\",'Enrollment Form'!$B956=\"Subscriber\",'Enrollment Form'!$CQ956=\"Yes\"),\"-\",\"Y\")))))","v":""},{"$f":"IF('Enrollment Form'!AH956=\"\",\"\",IF(ISERROR(SEARCH(\".\",'Enrollment Form'!AH956,SEARCH(\"@\",'Enrollment Form'!AH956))),\"N\",\"Y\"))","v":""},{"$f":"IF(OR($B949=\"N\",'Enrollment Form'!$G956=\"\"),\"\",IF('Enrollment Form'!$B956<>\"Subscriber\",\"-\",IF(COUNTIF('Enrollment Form'!$AS956:$AT956,\"Yes\")=2,\"N\",\"Y\")))","v":""},{"$f":"IF(OR('Enrollment Form'!$CC956=\"\",'Enrollment Form'!$CC956=\"No\"),\"-\",IF(AND('Enrollment Form'!$CC956=\"Yes\",'Enrollment Form'!$CD956=\"\"),\"N\",\"Y\"))","v":"-"},{"$f":"IF(OR('Enrollment Form'!$CE956=\"\",'Enrollment Form'!$CE956=\"No\"),\"-\",IF(AND('Enrollment Form'!$CE956=\"Yes\",'Enrollment Form'!$CF956=\"\"),\"N\",\"Y\"))","v":"-"},{"$f":"IF(OR('Enrollment Form'!$CG956=\"\",'Enrollment Form'!$CG956=\"No\"),\"-\",IF(AND('Enrollment Form'!$CG956=\"Yes\",'Enrollment Form'!$CH956=\"\"),\"N\",\"Y\"))","v":"-"},{"$f":"IF(OR('Enrollment Form'!$CG956=\"\",'Enrollment Form'!$CG956=\"No\"),\"-\",IF(AND('Enrollment Form'!$CG956=\"Yes\",'Enrollment Form'!$CI956=\"\"),\"N\",\"Y\"))","v":"-"},{"$f":"IF('Enrollment Form'!B956<>\"Subscriber\",\"-\",IF(AND('Enrollment Form'!B956=\"Subscriber\",'Enrollment Form'!C956=\"Enroll\",'Enrollment Form'!AA956=\"\"),\"N\",\"Y\"))","v":"-"},{"$f":"IF(OR('Enrollment Form'!B956=\"Subscriber\",'Enrollment Form'!B956=\"\"),\"-\",IF('Enrollment Form'!BI956=\"\",\"N\",\"Y\"))","v":"-"},{"$f":"IF('Enrollment Form'!B956<>\"Subscriber\",\"-\",IF(AND('Enrollment Form'!B956=\"Subscriber\",'Enrollment Form'!G956=\"\"),\"N\",\"Y\"))","v":"-"},{"$f":"IF('Enrollment Form'!A956=\"\",\"\",IF('Enrollment Form'!B956=\"Subscriber\",\"-\",IF(AND('Enrollment Form'!B956<>\"Subscriber\",'Enrollment Form'!G956='Enrollment Form'!H956),\"N\",\"Y\")))","v":""},0]
[957,{"$f":"IF('Enrollment Form'!$A957<>\"\",\"Y\",\"N\")","v":"N"},{"$f":"IF(AND('Enrollment Form'!$B957=\"\",'Enrollment Form'!$C957<>\"\"),\"N\",IF($B950=\"N\",\"\",\"Y\"))","v":""},{"$f":"IF(OR($B950=\"N\",'Enrollment Form'!G957=\"\"),\"\",IF('Enrollment Form'!$B957<>\"Subscriber\",\"\",IF('Enrollment Form'!$G957='Enrollment Form'!$H957,\"Y\",\"N\")))","v":""},{"$f":"IF($B950=\"N\",\"\",IF(AND(COUNTIFS('Enrollment Form'!$H$11:$H$1000,'Enrollment Form'!$H957,'Enrollment Form'!$B$11:$B$1000,'Enrollment Form'!$B957)>1,'Enrollment Form'!$H957<>\"\"),\"N\",\"Y\"))","v":""},{"$f":"IF($B950=\"N\",\"\",IF(LEN('Enrollment Form'!$Y957)=0,\"\",IF(LEN('Enrollment Form'!$Y957)<>5,\"N\",\"Y\")))","v":""},{"$f":"IF($B950=\"N\",\"\",IF(LEN('Enrollment Form'!$AD957=0),\"\",IF(LEN('Enrollment Form'!$AD957)<>5,\"N\",\"Y\")))","v":""},{"$f":"IF($B950=\"N\",\"\",IF(LEN('Enrollment Form'!$BL957=0),\"\",IF(LEN('Enrollment Form'!$BL957)<>5,\"N\",\"Y\")))","v":""},{"$f":"IF($B950=\"N\",\"\",IF(LEN('Enrollment Form'!$AE957)=0,\"\",IF(LEN('Enrollment Form'!$AE957)<>10,\"N\",\"Y\")))","v":""},{"$f":"IF($B950=\"N\",\"\",IF(LEN('Enrollment Form'!$AF957)=0,\"\",IF(LEN('Enrollment Form'!$AF957)<>10,\"N\",\"Y\")))","v":""},{"$f":"IF('Enrollment Form'!$O957<>\"Graded\",\"-\",IF(AND('Enrollment Form'!$O957=\"Graded\",'Enrollment Form'!$AO957<>\"\"),\"Y\",\"N\"))","v":"-"},{"$f":"IF($B950=\"N\",\"\",IF(OR('Enrollment Form'!$B957<>\"Subscriber\",'Enrollment Form'!$C957=\"ROC\"),\"-\",IF(AND('Enrollment Form'!$B957=\"Subscriber\",'Enrollment Form'!$C957=\"Enroll\",'Enrollment Form'!$AJ957<>\"\"),\"Y\",\"N\")))","v":""},{"$f":"IF($B950=\"N\",\"\",IF(OR('Enrollment Form'!$B957<>\"Subscriber\",'Enrollment Form'!$C957=\"ROC\"),\"-\",IF(AND('Enrollment Form'!$B957=\"Subscriber\",'Enrollment Form'!$C957=\"Enroll\",'Enrollment Form'!$AK957<>\"\"),\"Y\",\"N\")))","v":""},{"$f":"IF($B950=\"N\",\"\",IF(OR('Enrollment Form'!$B957<>\"Subscriber\",'Enrollment Form'!$C957=\"ROC\"),\"-\",IF(AND('Enrollment Form'!$B957=\"Subscriber\",'Enrollment Form'!$C957=\"Enroll\",'Enrollment Form'!$AL957<>\"\"),\"Y\",\"N\")))","v":""},{"$f":"IF($B950=\"N\",\"\",IF(OR('Enrollment Form'!$B957<>\"Subscriber\",'Enrollment Form'!$C957=\"ROC\"),\"-\",IF(AND('Enrollment Form'!$B957=\"Subscriber\",'Enrollment Form'!$C957=\"Enroll\",'Enrollment Form'!$AM957<>\"\"),\"Y\",\"N\")))","v":""},{"$f":"IF($B950=\"N\",\"\",IF(OR('Enrollment Form'!$B957<>\"Subscriber\",'Enrollment Form'!$C957=\"ROC\"),\"-\",IF(AND('Enrollment Form'!$B957=\"Subscriber\",'Enrollment Form'!$C957=\"Enroll\",'Enrollment Form'!$AN957<>\"\"),\"Y\",\"N\")))","v":""},{"$f":"IF($B950=\"N\",\"\",IF(OR('Enrollment Form'!$B957<>\"Subscriber\",'Enrollment Form'!$C957=\"ROC\"),\"-\",IF(AND('Enrollment Form'!$B957=\"Subscriber\",'Enrollment Form'!$C957=\"Enroll\",'Enrollment Form'!$AP957<>\"\"),\"Y\",\"N\")))","v":""},{"$f":"IF($B950=\"N\",\"\",IF($Q950=\"-\",\"-\",IF(AND($Q950=\"Y\",'Enrollment Form'!$AP957=\"No\"),\"-\",IF(AND($Q950=\"Y\",'Enrollment Form'!$AP957=\"Yes\",'Enrollment Form'!$AQ957<>\"\"),\"Y\",\"N\"))))","v":""},{"$f":"IF($B950=\"N\",\"\",IF(OR('Enrollment Form'!$B957<>\"Subscriber\",'Enrollment Form'!$C957=\"ROC\"),\"-\",IF(AND('Enrollment Form'!$B957=\"Subscriber\",'Enrollment Form'!$C957=\"Enroll\",'Enrollment Form'!$CO957<>\"\"),\"Y\",\"N\")))","v":""},{"$f":"IF($B950=\"N\",\"\",IF($S950=\"-\",\"-\",IF(AND($S950=\"Y\",'Enrollment Form'!$CO957=\"No\"),\"-\",IF(AND($S950=\"Y\",'Enrollment Form'!$CO957=\"Yes\",'Enrollment Form'!$CP957<>\"\"),\"Y\",\"N\"))))","v":""},{"$f":"IF(OR('Enrollment Form'!$AV957=\"Yes\",'Enrollment Form'!$AV957=\"\"),\"-\",IF(AND('Enrollment Form'!$AV957=\"No\",ISERROR(FIND(\"HMO\",VLOOKUP('Enrollment Form'!G957,'Enrollment Form'!H$11:J$1000,3,FALSE),1))=FALSE,COUNTA('Enrollment Form'!$AW957:$AZ957)=4),\"Y\",\"N\"))","v":"-"},{"$f":"IF($B950=\"N\",\"\",IF('Enrollment Form'!$B957=\"Subscriber\",\"-\",IF(COUNTA('Enrollment Form'!$BE957,'Enrollment Form'!$BG957)=2,\"Y\",\"N\")))","v":""},{"$f":"IF($B950=\"N\",\"\",IF(OR('Enrollment Form'!$AU957=\"\",'Enrollment Form'!$AU957=\"No\"),\"-\",IF(AND('Enrollment Form'!$AU957=\"Yes\",COUNTA('Enrollment Form'!$CK957)=1),\"Y\",\"N\")))","v":""},{"$f":"IF(OR('Enrollment Form'!$CK957=\"\",'Enrollment Form'!$CK957=\"No\"),\"-\",IF(COUNTA('Enrollment Form'!$CM957:$CN957)=2,\"Y\",\"N\"))","v":"-"},{"$f":"IF($B950=\"N\",\"\",IF(COUNTIF('Enrollment Form'!$CZ957:$DO957,\"Other\")=COUNTA('Enrollment Form'!$DF957,'Enrollment Form'!$DA957,'Enrollment Form'!$DK957,'Enrollment Form'!$DP957),\"Y\",\"N\"))","v":""},{"$f":"IF($B950=\"N\",\"\",IF(OR('Enrollment Form'!B957<>\"Subscriber\",'Enrollment Form'!C957=\"ROC\",COUNTIF('Enrollment Form'!AS957:AT957,\"Yes\")>=1),\"-\",IF(AND('Enrollment Form'!C957=\"Enroll\",COUNTIF('Enrollment Form'!AS957:AT957,\"No\")=2,'Enrollment Form'!AU957=\"\"),\"N\",\"Y\")))","v":""},{"$f":"IF(OR(B950=\"N\",'Enrollment Form'!B957<>\"Subscriber\",'Enrollment Form'!C957=\"ROC\",'Enrollment Form'!O957<>\"Multiple of Salary\"),\"-\",IF(COUNTA('Enrollment Form'!T957:U957)<2,\"N\",\"Y\"))","v":"-"},{"$f":"IF(B950=\"N\",\"\",IF(OR('Enrollment Form'!C957=\"ROC\",'Enrollment Form'!B957<>\"Subscriber\",'Enrollment Form'!O957=\"Waive\",'Enrollment Form'!O957=\"\"),\"-\",IF('Enrollment Form'!P957=\"\",\"N\",\"Y\")))","v":""},{"$f":"IF($B950=\"N\",\"\",IF(AND('Enrollment Form'!$C957=\"ROC\",'Enrollment Form'!$DS957<>\"\"),\"Y\",IF(AND('Enrollment Form'!$C957=\"ROC\",'Enrollment Form'!$DS957=\"\"),\"N\",IF(AND('Enrollment Form'!$C957=\"Enroll\",'Enrollment Form'!$B957=\"Subscriber\",'Enrollment Form'!$CQ957=\"No\",'Enrollment Form'!$DS957=\"\"),\"N\",IF(AND('Enrollment Form'!$C957=\"Enroll\",'Enrollment Form'!$B957=\"Subscriber\",'Enrollment Form'!$CQ957=\"Yes\"),\"-\",\"Y\")))))","v":""},{"$f":"IF($B950=\"N\",\"\",IF(AND('Enrollment Form'!$C957=\"ROC\",'Enrollment Form'!$DT957<>\"\"),\"Y\",IF(AND('Enrollment Form'!$C957=\"ROC\",'Enrollment Form'!$DT957=\"\"),\"N\",IF(AND('Enrollment Form'!$C957=\"Enroll\",'Enrollment Form'!$B957=\"Subscriber\",'Enrollment Form'!$CQ957=\"No\",'Enrollment Form'!$DT957=\"\"),\"N\",IF(AND('Enrollment Form'!$C957=\"Enroll\",'Enrollment Form'!$B957=\"Subscriber\",'Enrollment Form'!$CQ957=\"Yes\"),\"-\",\"Y\")))))","v":""},{"$f":"IF('Enrollment Form'!AH957=\"\",\"\",IF(ISERROR(SEARCH(\".\",'Enrollment Form'!AH957,SEARCH(\"@\",'Enrollment Form'!AH957))),\"N\",\"Y\"))","v":""},{"$f":"IF(OR($B950=\"N\",'Enrollment Form'!$G957=\"\"),\"\",IF('Enrollment Form'!$B957<>\"Subscriber\",\"-\",IF(COUNTIF('Enrollment Form'!$AS957:$AT957,\"Yes\")=2,\"N\",\"Y\")))","v":""},{"$f":"IF(OR('Enrollment Form'!$CC957=\"\",'Enrollment Form'!$CC957=\"No\"),\"-\",IF(AND('Enrollment Form'!$CC957=\"Yes\",'Enrollment Form'!$CD957=\"\"),\"N\",\"Y\"))","v":"-"},{"$f":"IF(OR('Enrollment Form'!$CE957=\"\",'Enrollment Form'!$CE957=\"No\"),\"-\",IF(AND('Enrollment Form'!$CE957=\"Yes\",'Enrollment Form'!$CF957=\"\"),\"N\",\"Y\"))","v":"-"},{"$f":"IF(OR('Enrollment Form'!$CG957=\"\",'Enrollment Form'!$CG957=\"No\"),\"-\",IF(AND('Enrollment Form'!$CG957=\"Yes\",'Enrollment Form'!$CH957=\"\"),\"N\",\"Y\"))","v":"-"},{"$f":"IF(OR('Enrollment Form'!$CG957=\"\",'Enrollment Form'!$CG957=\"No\"),\"-\",IF(AND('Enrollment Form'!$CG957=\"Yes\",'Enrollment Form'!$CI957=\"\"),\"N\",\"Y\"))","v":"-"},{"$f":"IF('Enrollment Form'!B957<>\"Subscriber\",\"-\",IF(AND('Enrollment Form'!B957=\"Subscriber\",'Enrollment Form'!C957=\"Enroll\",'Enrollment Form'!AA957=\"\"),\"N\",\"Y\"))","v":"-"},{"$f":"IF(OR('Enrollment Form'!B957=\"Subscriber\",'Enrollment Form'!B957=\"\"),\"-\",IF('Enrollment Form'!BI957=\"\",\"N\",\"Y\"))","v":"-"},{"$f":"IF('Enrollment Form'!B957<>\"Subscriber\",\"-\",IF(AND('Enrollment Form'!B957=\"Subscriber\",'Enrollment Form'!G957=\"\"),\"N\",\"Y\"))","v":"-"},{"$f":"IF('Enrollment Form'!A957=\"\",\"\",IF('Enrollment Form'!B957=\"Subscriber\",\"-\",IF(AND('Enrollment Form'!B957<>\"Subscriber\",'Enrollment Form'!G957='Enrollment Form'!H957),\"N\",\"Y\")))","v":""},0]
[958,{"$f":"IF('Enrollment Form'!$A958<>\"\",\"Y\",\"N\")","v":"N"},{"$f":"IF(AND('Enrollment Form'!$B958=\"\",'Enrollment Form'!$C958<>\"\"),\"N\",IF($B951=\"N\",\"\",\"Y\"))","v":""},{"$f":"IF(OR($B951=\"N\",'Enrollment Form'!G958=\"\"),\"\",IF('Enrollment Form'!$B958<>\"Subscriber\",\"\",IF('Enrollment Form'!$G958='Enrollment Form'!$H958,\"Y\",\"N\")))","v":""},{"$f":"IF($B951=\"N\",\"\",IF(AND(COUNTIFS('Enrollment Form'!$H$11:$H$1000,'Enrollment Form'!$H958,'Enrollment Form'!$B$11:$B$1000,'Enrollment Form'!$B958)>1,'Enrollment Form'!$H958<>\"\"),\"N\",\"Y\"))","v":""},{"$f":"IF($B951=\"N\",\"\",IF(LEN('Enrollment Form'!$Y958)=0,\"\",IF(LEN('Enrollment Form'!$Y958)<>5,\"N\",\"Y\")))","v":""},{"$f":"IF($B951=\"N\",\"\",IF(LEN('Enrollment Form'!$AD958=0),\"\",IF(LEN('Enrollment Form'!$AD958)<>5,\"N\",\"Y\")))","v":""},{"$f":"IF($B951=\"N\",\"\",IF(LEN('Enrollment Form'!$BL958=0),\"\",IF(LEN('Enrollment Form'!$BL958)<>5,\"N\",\"Y\")))","v":""},{"$f":"IF($B951=\"N\",\"\",IF(LEN('Enrollment Form'!$AE958)=0,\"\",IF(LEN('Enrollment Form'!$AE958)<>10,\"N\",\"Y\")))","v":""},{"$f":"IF($B951=\"N\",\"\",IF(LEN('Enrollment Form'!$AF958)=0,\"\",IF(LEN('Enrollment Form'!$AF958)<>10,\"N\",\"Y\")))","v":""},{"$f":"IF('Enrollment Form'!$O958<>\"Graded\",\"-\",IF(AND('Enrollment Form'!$O958=\"Graded\",'Enrollment Form'!$AO958<>\"\"),\"Y\",\"N\"))","v":"-"},{"$f":"IF($B951=\"N\",\"\",IF(OR('Enrollment Form'!$B958<>\"Subscriber\",'Enrollment Form'!$C958=\"ROC\"),\"-\",IF(AND('Enrollment Form'!$B958=\"Subscriber\",'Enrollment Form'!$C958=\"Enroll\",'Enrollment Form'!$AJ958<>\"\"),\"Y\",\"N\")))","v":""},{"$f":"IF($B951=\"N\",\"\",IF(OR('Enrollment Form'!$B958<>\"Subscriber\",'Enrollment Form'!$C958=\"ROC\"),\"-\",IF(AND('Enrollment Form'!$B958=\"Subscriber\",'Enrollment Form'!$C958=\"Enroll\",'Enrollment Form'!$AK958<>\"\"),\"Y\",\"N\")))","v":""},{"$f":"IF($B951=\"N\",\"\",IF(OR('Enrollment Form'!$B958<>\"Subscriber\",'Enrollment Form'!$C958=\"ROC\"),\"-\",IF(AND('Enrollment Form'!$B958=\"Subscriber\",'Enrollment Form'!$C958=\"Enroll\",'Enrollment Form'!$AL958<>\"\"),\"Y\",\"N\")))","v":""},{"$f":"IF($B951=\"N\",\"\",IF(OR('Enrollment Form'!$B958<>\"Subscriber\",'Enrollment Form'!$C958=\"ROC\"),\"-\",IF(AND('Enrollment Form'!$B958=\"Subscriber\",'Enrollment Form'!$C958=\"Enroll\",'Enrollment Form'!$AM958<>\"\"),\"Y\",\"N\")))","v":""},{"$f":"IF($B951=\"N\",\"\",IF(OR('Enrollment Form'!$B958<>\"Subscriber\",'Enrollment Form'!$C958=\"ROC\"),\"-\",IF(AND('Enrollment Form'!$B958=\"Subscriber\",'Enrollment Form'!$C958=\"Enroll\",'Enrollment Form'!$AN958<>\"\"),\"Y\",\"N\")))","v":""},{"$f":"IF($B951=\"N\",\"\",IF(OR('Enrollment Form'!$B958<>\"Subscriber\",'Enrollment Form'!$C958=\"ROC\"),\"-\",IF(AND('Enrollment Form'!$B958=\"Subscriber\",'Enrollment Form'!$C958=\"Enroll\",'Enrollment Form'!$AP958<>\"\"),\"Y\",\"N\")))","v":""},{"$f":"IF($B951=\"N\",\"\",IF($Q951=\"-\",\"-\",IF(AND($Q951=\"Y\",'Enrollment Form'!$AP958=\"No\"),\"-\",IF(AND($Q951=\"Y\",'Enrollment Form'!$AP958=\"Yes\",'Enrollment Form'!$AQ958<>\"\"),\"Y\",\"N\"))))","v":""},{"$f":"IF($B951=\"N\",\"\",IF(OR('Enrollment Form'!$B958<>\"Subscriber\",'Enrollment Form'!$C958=\"ROC\"),\"-\",IF(AND('Enrollment Form'!$B958=\"Subscriber\",'Enrollment Form'!$C958=\"Enroll\",'Enrollment Form'!$CO958<>\"\"),\"Y\",\"N\")))","v":""},{"$f":"IF($B951=\"N\",\"\",IF($S951=\"-\",\"-\",IF(AND($S951=\"Y\",'Enrollment Form'!$CO958=\"No\"),\"-\",IF(AND($S951=\"Y\",'Enrollment Form'!$CO958=\"Yes\",'Enrollment Form'!$CP958<>\"\"),\"Y\",\"N\"))))","v":""},{"$f":"IF(OR('Enrollment Form'!$AV958=\"Yes\",'Enrollment Form'!$AV958=\"\"),\"-\",IF(AND('Enrollment Form'!$AV958=\"No\",ISERROR(FIND(\"HMO\",VLOOKUP('Enrollment Form'!G958,'Enrollment Form'!H$11:J$1000,3,FALSE),1))=FALSE,COUNTA('Enrollment Form'!$AW958:$AZ958)=4),\"Y\",\"N\"))","v":"-"},{"$f":"IF($B951=\"N\",\"\",IF('Enrollment Form'!$B958=\"Subscriber\",\"-\",IF(COUNTA('Enrollment Form'!$BE958,'Enrollment Form'!$BG958)=2,\"Y\",\"N\")))","v":""},{"$f":"IF($B951=\"N\",\"\",IF(OR('Enrollment Form'!$AU958=\"\",'Enrollment Form'!$AU958=\"No\"),\"-\",IF(AND('Enrollment Form'!$AU958=\"Yes\",COUNTA('Enrollment Form'!$CK958)=1),\"Y\",\"N\")))","v":""},{"$f":"IF(OR('Enrollment Form'!$CK958=\"\",'Enrollment Form'!$CK958=\"No\"),\"-\",IF(COUNTA('Enrollment Form'!$CM958:$CN958)=2,\"Y\",\"N\"))","v":"-"},{"$f":"IF($B951=\"N\",\"\",IF(COUNTIF('Enrollment Form'!$CZ958:$DO958,\"Other\")=COUNTA('Enrollment Form'!$DF958,'Enrollment Form'!$DA958,'Enrollment Form'!$DK958,'Enrollment Form'!$DP958),\"Y\",\"N\"))","v":""},{"$f":"IF($B951=\"N\",\"\",IF(OR('Enrollment Form'!B958<>\"Subscriber\",'Enrollment Form'!C958=\"ROC\",COUNTIF('Enrollment Form'!AS958:AT958,\"Yes\")>=1),\"-\",IF(AND('Enrollment Form'!C958=\"Enroll\",COUNTIF('Enrollment Form'!AS958:AT958,\"No\")=2,'Enrollment Form'!AU958=\"\"),\"N\",\"Y\")))","v":""},{"$f":"IF(OR(B951=\"N\",'Enrollment Form'!B958<>\"Subscriber\",'Enrollment Form'!C958=\"ROC\",'Enrollment Form'!O958<>\"Multiple of Salary\"),\"-\",IF(COUNTA('Enrollment Form'!T958:U958)<2,\"N\",\"Y\"))","v":"-"},{"$f":"IF(B951=\"N\",\"\",IF(OR('Enrollment Form'!C958=\"ROC\",'Enrollment Form'!B958<>\"Subscriber\",'Enrollment Form'!O958=\"Waive\",'Enrollment Form'!O958=\"\"),\"-\",IF('Enrollment Form'!P958=\"\",\"N\",\"Y\")))","v":""},{"$f":"IF($B951=\"N\",\"\",IF(AND('Enrollment Form'!$C958=\"ROC\",'Enrollment Form'!$DS958<>\"\"),\"Y\",IF(AND('Enrollment Form'!$C958=\"ROC\",'Enrollment Form'!$DS958=\"\"),\"N\",IF(AND('Enrollment Form'!$C958=\"Enroll\",'Enrollment Form'!$B958=\"Subscriber\",'Enrollment Form'!$CQ958=\"No\",'Enrollment Form'!$DS958=\"\"),\"N\",IF(AND('Enrollment Form'!$C958=\"Enroll\",'Enrollment Form'!$B958=\"Subscriber\",'Enrollment Form'!$CQ958=\"Yes\"),\"-\",\"Y\")))))","v":""},{"$f":"IF($B951=\"N\",\"\",IF(AND('Enrollment Form'!$C958=\"ROC\",'Enrollment Form'!$DT958<>\"\"),\"Y\",IF(AND('Enrollment Form'!$C958=\"ROC\",'Enrollment Form'!$DT958=\"\"),\"N\",IF(AND('Enrollment Form'!$C958=\"Enroll\",'Enrollment Form'!$B958=\"Subscriber\",'Enrollment Form'!$CQ958=\"No\",'Enrollment Form'!$DT958=\"\"),\"N\",IF(AND('Enrollment Form'!$C958=\"Enroll\",'Enrollment Form'!$B958=\"Subscriber\",'Enrollment Form'!$CQ958=\"Yes\"),\"-\",\"Y\")))))","v":""},{"$f":"IF('Enrollment Form'!AH958=\"\",\"\",IF(ISERROR(SEARCH(\".\",'Enrollment Form'!AH958,SEARCH(\"@\",'Enrollment Form'!AH958))),\"N\",\"Y\"))","v":""},{"$f":"IF(OR($B951=\"N\",'Enrollment Form'!$G958=\"\"),\"\",IF('Enrollment Form'!$B958<>\"Subscriber\",\"-\",IF(COUNTIF('Enrollment Form'!$AS958:$AT958,\"Yes\")=2,\"N\",\"Y\")))","v":""},{"$f":"IF(OR('Enrollment Form'!$CC958=\"\",'Enrollment Form'!$CC958=\"No\"),\"-\",IF(AND('Enrollment Form'!$CC958=\"Yes\",'Enrollment Form'!$CD958=\"\"),\"N\",\"Y\"))","v":"-"},{"$f":"IF(OR('Enrollment Form'!$CE958=\"\",'Enrollment Form'!$CE958=\"No\"),\"-\",IF(AND('Enrollment Form'!$CE958=\"Yes\",'Enrollment Form'!$CF958=\"\"),\"N\",\"Y\"))","v":"-"},{"$f":"IF(OR('Enrollment Form'!$CG958=\"\",'Enrollment Form'!$CG958=\"No\"),\"-\",IF(AND('Enrollment Form'!$CG958=\"Yes\",'Enrollment Form'!$CH958=\"\"),\"N\",\"Y\"))","v":"-"},{"$f":"IF(OR('Enrollment Form'!$CG958=\"\",'Enrollment Form'!$CG958=\"No\"),\"-\",IF(AND('Enrollment Form'!$CG958=\"Yes\",'Enrollment Form'!$CI958=\"\"),\"N\",\"Y\"))","v":"-"},{"$f":"IF('Enrollment Form'!B958<>\"Subscriber\",\"-\",IF(AND('Enrollment Form'!B958=\"Subscriber\",'Enrollment Form'!C958=\"Enroll\",'Enrollment Form'!AA958=\"\"),\"N\",\"Y\"))","v":"-"},{"$f":"IF(OR('Enrollment Form'!B958=\"Subscriber\",'Enrollment Form'!B958=\"\"),\"-\",IF('Enrollment Form'!BI958=\"\",\"N\",\"Y\"))","v":"-"},{"$f":"IF('Enrollment Form'!B958<>\"Subscriber\",\"-\",IF(AND('Enrollment Form'!B958=\"Subscriber\",'Enrollment Form'!G958=\"\"),\"N\",\"Y\"))","v":"-"},{"$f":"IF('Enrollment Form'!A958=\"\",\"\",IF('Enrollment Form'!B958=\"Subscriber\",\"-\",IF(AND('Enrollment Form'!B958<>\"Subscriber\",'Enrollment Form'!G958='Enrollment Form'!H958),\"N\",\"Y\")))","v":""},0]
[959,{"$f":"IF('Enrollment Form'!$A959<>\"\",\"Y\",\"N\")","v":"N"},{"$f":"IF(AND('Enrollment Form'!$B959=\"\",'Enrollment Form'!$C959<>\"\"),\"N\",IF($B952=\"N\",\"\",\"Y\"))","v":""},{"$f":"IF(OR($B952=\"N\",'Enrollment Form'!G959=\"\"),\"\",IF('Enrollment Form'!$B959<>\"Subscriber\",\"\",IF('Enrollment Form'!$G959='Enrollment Form'!$H959,\"Y\",\"N\")))","v":""},{"$f":"IF($B952=\"N\",\"\",IF(AND(COUNTIFS('Enrollment Form'!$H$11:$H$1000,'Enrollment Form'!$H959,'Enrollment Form'!$B$11:$B$1000,'Enrollment Form'!$B959)>1,'Enrollment Form'!$H959<>\"\"),\"N\",\"Y\"))","v":""},{"$f":"IF($B952=\"N\",\"\",IF(LEN('Enrollment Form'!$Y959)=0,\"\",IF(LEN('Enrollment Form'!$Y959)<>5,\"N\",\"Y\")))","v":""},{"$f":"IF($B952=\"N\",\"\",IF(LEN('Enrollment Form'!$AD959=0),\"\",IF(LEN('Enrollment Form'!$AD959)<>5,\"N\",\"Y\")))","v":""},{"$f":"IF($B952=\"N\",\"\",IF(LEN('Enrollment Form'!$BL959=0),\"\",IF(LEN('Enrollment Form'!$BL959)<>5,\"N\",\"Y\")))","v":""},{"$f":"IF($B952=\"N\",\"\",IF(LEN('Enrollment Form'!$AE959)=0,\"\",IF(LEN('Enrollment Form'!$AE959)<>10,\"N\",\"Y\")))","v":""},{"$f":"IF($B952=\"N\",\"\",IF(LEN('Enrollment Form'!$AF959)=0,\"\",IF(LEN('Enrollment Form'!$AF959)<>10,\"N\",\"Y\")))","v":""},{"$f":"IF('Enrollment Form'!$O959<>\"Graded\",\"-\",IF(AND('Enrollment Form'!$O959=\"Graded\",'Enrollment Form'!$AO959<>\"\"),\"Y\",\"N\"))","v":"-"},{"$f":"IF($B952=\"N\",\"\",IF(OR('Enrollment Form'!$B959<>\"Subscriber\",'Enrollment Form'!$C959=\"ROC\"),\"-\",IF(AND('Enrollment Form'!$B959=\"Subscriber\",'Enrollment Form'!$C959=\"Enroll\",'Enrollment Form'!$AJ959<>\"\"),\"Y\",\"N\")))","v":""},{"$f":"IF($B952=\"N\",\"\",IF(OR('Enrollment Form'!$B959<>\"Subscriber\",'Enrollment Form'!$C959=\"ROC\"),\"-\",IF(AND('Enrollment Form'!$B959=\"Subscriber\",'Enrollment Form'!$C959=\"Enroll\",'Enrollment Form'!$AK959<>\"\"),\"Y\",\"N\")))","v":""},{"$f":"IF($B952=\"N\",\"\",IF(OR('Enrollment Form'!$B959<>\"Subscriber\",'Enrollment Form'!$C959=\"ROC\"),\"-\",IF(AND('Enrollment Form'!$B959=\"Subscriber\",'Enrollment Form'!$C959=\"Enroll\",'Enrollment Form'!$AL959<>\"\"),\"Y\",\"N\")))","v":""},{"$f":"IF($B952=\"N\",\"\",IF(OR('Enrollment Form'!$B959<>\"Subscriber\",'Enrollment Form'!$C959=\"ROC\"),\"-\",IF(AND('Enrollment Form'!$B959=\"Subscriber\",'Enrollment Form'!$C959=\"Enroll\",'Enrollment Form'!$AM959<>\"\"),\"Y\",\"N\")))","v":""},{"$f":"IF($B952=\"N\",\"\",IF(OR('Enrollment Form'!$B959<>\"Subscriber\",'Enrollment Form'!$C959=\"ROC\"),\"-\",IF(AND('Enrollment Form'!$B959=\"Subscriber\",'Enrollment Form'!$C959=\"Enroll\",'Enrollment Form'!$AN959<>\"\"),\"Y\",\"N\")))","v":""},{"$f":"IF($B952=\"N\",\"\",IF(OR('Enrollment Form'!$B959<>\"Subscriber\",'Enrollment Form'!$C959=\"ROC\"),\"-\",IF(AND('Enrollment Form'!$B959=\"Subscriber\",'Enrollment Form'!$C959=\"Enroll\",'Enrollment Form'!$AP959<>\"\"),\"Y\",\"N\")))","v":""},{"$f":"IF($B952=\"N\",\"\",IF($Q952=\"-\",\"-\",IF(AND($Q952=\"Y\",'Enrollment Form'!$AP959=\"No\"),\"-\",IF(AND($Q952=\"Y\",'Enrollment Form'!$AP959=\"Yes\",'Enrollment Form'!$AQ959<>\"\"),\"Y\",\"N\"))))","v":""},{"$f":"IF($B952=\"N\",\"\",IF(OR('Enrollment Form'!$B959<>\"Subscriber\",'Enrollment Form'!$C959=\"ROC\"),\"-\",IF(AND('Enrollment Form'!$B959=\"Subscriber\",'Enrollment Form'!$C959=\"Enroll\",'Enrollment Form'!$CO959<>\"\"),\"Y\",\"N\")))","v":""},{"$f":"IF($B952=\"N\",\"\",IF($S952=\"-\",\"-\",IF(AND($S952=\"Y\",'Enrollment Form'!$CO959=\"No\"),\"-\",IF(AND($S952=\"Y\",'Enrollment Form'!$CO959=\"Yes\",'Enrollment Form'!$CP959<>\"\"),\"Y\",\"N\"))))","v":""},{"$f":"IF(OR('Enrollment Form'!$AV959=\"Yes\",'Enrollment Form'!$AV959=\"\"),\"-\",IF(AND('Enrollment Form'!$AV959=\"No\",ISERROR(FIND(\"HMO\",VLOOKUP('Enrollment Form'!G959,'Enrollment Form'!H$11:J$1000,3,FALSE),1))=FALSE,COUNTA('Enrollment Form'!$AW959:$AZ959)=4),\"Y\",\"N\"))","v":"-"},{"$f":"IF($B952=\"N\",\"\",IF('Enrollment Form'!$B959=\"Subscriber\",\"-\",IF(COUNTA('Enrollment Form'!$BE959,'Enrollment Form'!$BG959)=2,\"Y\",\"N\")))","v":""},{"$f":"IF($B952=\"N\",\"\",IF(OR('Enrollment Form'!$AU959=\"\",'Enrollment Form'!$AU959=\"No\"),\"-\",IF(AND('Enrollment Form'!$AU959=\"Yes\",COUNTA('Enrollment Form'!$CK959)=1),\"Y\",\"N\")))","v":""},{"$f":"IF(OR('Enrollment Form'!$CK959=\"\",'Enrollment Form'!$CK959=\"No\"),\"-\",IF(COUNTA('Enrollment Form'!$CM959:$CN959)=2,\"Y\",\"N\"))","v":"-"},{"$f":"IF($B952=\"N\",\"\",IF(COUNTIF('Enrollment Form'!$CZ959:$DO959,\"Other\")=COUNTA('Enrollment Form'!$DF959,'Enrollment Form'!$DA959,'Enrollment Form'!$DK959,'Enrollment Form'!$DP959),\"Y\",\"N\"))","v":""},{"$f":"IF($B952=\"N\",\"\",IF(OR('Enrollment Form'!B959<>\"Subscriber\",'Enrollment Form'!C959=\"ROC\",COUNTIF('Enrollment Form'!AS959:AT959,\"Yes\")>=1),\"-\",IF(AND('Enrollment Form'!C959=\"Enroll\",COUNTIF('Enrollment Form'!AS959:AT959,\"No\")=2,'Enrollment Form'!AU959=\"\"),\"N\",\"Y\")))","v":""},{"$f":"IF(OR(B952=\"N\",'Enrollment Form'!B959<>\"Subscriber\",'Enrollment Form'!C959=\"ROC\",'Enrollment Form'!O959<>\"Multiple of Salary\"),\"-\",IF(COUNTA('Enrollment Form'!T959:U959)<2,\"N\",\"Y\"))","v":"-"},{"$f":"IF(B952=\"N\",\"\",IF(OR('Enrollment Form'!C959=\"ROC\",'Enrollment Form'!B959<>\"Subscriber\",'Enrollment Form'!O959=\"Waive\",'Enrollment Form'!O959=\"\"),\"-\",IF('Enrollment Form'!P959=\"\",\"N\",\"Y\")))","v":""},{"$f":"IF($B952=\"N\",\"\",IF(AND('Enrollment Form'!$C959=\"ROC\",'Enrollment Form'!$DS959<>\"\"),\"Y\",IF(AND('Enrollment Form'!$C959=\"ROC\",'Enrollment Form'!$DS959=\"\"),\"N\",IF(AND('Enrollment Form'!$C959=\"Enroll\",'Enrollment Form'!$B959=\"Subscriber\",'Enrollment Form'!$CQ959=\"No\",'Enrollment Form'!$DS959=\"\"),\"N\",IF(AND('Enrollment Form'!$C959=\"Enroll\",'Enrollment Form'!$B959=\"Subscriber\",'Enrollment Form'!$CQ959=\"Yes\"),\"-\",\"Y\")))))","v":""},{"$f":"IF($B952=\"N\",\"\",IF(AND('Enrollment Form'!$C959=\"ROC\",'Enrollment Form'!$DT959<>\"\"),\"Y\",IF(AND('Enrollment Form'!$C959=\"ROC\",'Enrollment Form'!$DT959=\"\"),\"N\",IF(AND('Enrollment Form'!$C959=\"Enroll\",'Enrollment Form'!$B959=\"Subscriber\",'Enrollment Form'!$CQ959=\"No\",'Enrollment Form'!$DT959=\"\"),\"N\",IF(AND('Enrollment Form'!$C959=\"Enroll\",'Enrollment Form'!$B959=\"Subscriber\",'Enrollment Form'!$CQ959=\"Yes\"),\"-\",\"Y\")))))","v":""},{"$f":"IF('Enrollment Form'!AH959=\"\",\"\",IF(ISERROR(SEARCH(\".\",'Enrollment Form'!AH959,SEARCH(\"@\",'Enrollment Form'!AH959))),\"N\",\"Y\"))","v":""},{"$f":"IF(OR($B952=\"N\",'Enrollment Form'!$G959=\"\"),\"\",IF('Enrollment Form'!$B959<>\"Subscriber\",\"-\",IF(COUNTIF('Enrollment Form'!$AS959:$AT959,\"Yes\")=2,\"N\",\"Y\")))","v":""},{"$f":"IF(OR('Enrollment Form'!$CC959=\"\",'Enrollment Form'!$CC959=\"No\"),\"-\",IF(AND('Enrollment Form'!$CC959=\"Yes\",'Enrollment Form'!$CD959=\"\"),\"N\",\"Y\"))","v":"-"},{"$f":"IF(OR('Enrollment Form'!$CE959=\"\",'Enrollment Form'!$CE959=\"No\"),\"-\",IF(AND('Enrollment Form'!$CE959=\"Yes\",'Enrollment Form'!$CF959=\"\"),\"N\",\"Y\"))","v":"-"},{"$f":"IF(OR('Enrollment Form'!$CG959=\"\",'Enrollment Form'!$CG959=\"No\"),\"-\",IF(AND('Enrollment Form'!$CG959=\"Yes\",'Enrollment Form'!$CH959=\"\"),\"N\",\"Y\"))","v":"-"},{"$f":"IF(OR('Enrollment Form'!$CG959=\"\",'Enrollment Form'!$CG959=\"No\"),\"-\",IF(AND('Enrollment Form'!$CG959=\"Yes\",'Enrollment Form'!$CI959=\"\"),\"N\",\"Y\"))","v":"-"},{"$f":"IF('Enrollment Form'!B959<>\"Subscriber\",\"-\",IF(AND('Enrollment Form'!B959=\"Subscriber\",'Enrollment Form'!C959=\"Enroll\",'Enrollment Form'!AA959=\"\"),\"N\",\"Y\"))","v":"-"},{"$f":"IF(OR('Enrollment Form'!B959=\"Subscriber\",'Enrollment Form'!B959=\"\"),\"-\",IF('Enrollment Form'!BI959=\"\",\"N\",\"Y\"))","v":"-"},{"$f":"IF('Enrollment Form'!B959<>\"Subscriber\",\"-\",IF(AND('Enrollment Form'!B959=\"Subscriber\",'Enrollment Form'!G959=\"\"),\"N\",\"Y\"))","v":"-"},{"$f":"IF('Enrollment Form'!A959=\"\",\"\",IF('Enrollment Form'!B959=\"Subscriber\",\"-\",IF(AND('Enrollment Form'!B959<>\"Subscriber\",'Enrollment Form'!G959='Enrollment Form'!H959),\"N\",\"Y\")))","v":""},0]
[960,{"$f":"IF('Enrollment Form'!$A960<>\"\",\"Y\",\"N\")","v":"N"},{"$f":"IF(AND('Enrollment Form'!$B960=\"\",'Enrollment Form'!$C960<>\"\"),\"N\",IF($B953=\"N\",\"\",\"Y\"))","v":""},{"$f":"IF(OR($B953=\"N\",'Enrollment Form'!G960=\"\"),\"\",IF('Enrollment Form'!$B960<>\"Subscriber\",\"\",IF('Enrollment Form'!$G960='Enrollment Form'!$H960,\"Y\",\"N\")))","v":""},{"$f":"IF($B953=\"N\",\"\",IF(AND(COUNTIFS('Enrollment Form'!$H$11:$H$1000,'Enrollment Form'!$H960,'Enrollment Form'!$B$11:$B$1000,'Enrollment Form'!$B960)>1,'Enrollment Form'!$H960<>\"\"),\"N\",\"Y\"))","v":""},{"$f":"IF($B953=\"N\",\"\",IF(LEN('Enrollment Form'!$Y960)=0,\"\",IF(LEN('Enrollment Form'!$Y960)<>5,\"N\",\"Y\")))","v":""},{"$f":"IF($B953=\"N\",\"\",IF(LEN('Enrollment Form'!$AD960=0),\"\",IF(LEN('Enrollment Form'!$AD960)<>5,\"N\",\"Y\")))","v":""},{"$f":"IF($B953=\"N\",\"\",IF(LEN('Enrollment Form'!$BL960=0),\"\",IF(LEN('Enrollment Form'!$BL960)<>5,\"N\",\"Y\")))","v":""},{"$f":"IF($B953=\"N\",\"\",IF(LEN('Enrollment Form'!$AE960)=0,\"\",IF(LEN('Enrollment Form'!$AE960)<>10,\"N\",\"Y\")))","v":""},{"$f":"IF($B953=\"N\",\"\",IF(LEN('Enrollment Form'!$AF960)=0,\"\",IF(LEN('Enrollment Form'!$AF960)<>10,\"N\",\"Y\")))","v":""},{"$f":"IF('Enrollment Form'!$O960<>\"Graded\",\"-\",IF(AND('Enrollment Form'!$O960=\"Graded\",'Enrollment Form'!$AO960<>\"\"),\"Y\",\"N\"))","v":"-"},{"$f":"IF($B953=\"N\",\"\",IF(OR('Enrollment Form'!$B960<>\"Subscriber\",'Enrollment Form'!$C960=\"ROC\"),\"-\",IF(AND('Enrollment Form'!$B960=\"Subscriber\",'Enrollment Form'!$C960=\"Enroll\",'Enrollment Form'!$AJ960<>\"\"),\"Y\",\"N\")))","v":""},{"$f":"IF($B953=\"N\",\"\",IF(OR('Enrollment Form'!$B960<>\"Subscriber\",'Enrollment Form'!$C960=\"ROC\"),\"-\",IF(AND('Enrollment Form'!$B960=\"Subscriber\",'Enrollment Form'!$C960=\"Enroll\",'Enrollment Form'!$AK960<>\"\"),\"Y\",\"N\")))","v":""},{"$f":"IF($B953=\"N\",\"\",IF(OR('Enrollment Form'!$B960<>\"Subscriber\",'Enrollment Form'!$C960=\"ROC\"),\"-\",IF(AND('Enrollment Form'!$B960=\"Subscriber\",'Enrollment Form'!$C960=\"Enroll\",'Enrollment Form'!$AL960<>\"\"),\"Y\",\"N\")))","v":""},{"$f":"IF($B953=\"N\",\"\",IF(OR('Enrollment Form'!$B960<>\"Subscriber\",'Enrollment Form'!$C960=\"ROC\"),\"-\",IF(AND('Enrollment Form'!$B960=\"Subscriber\",'Enrollment Form'!$C960=\"Enroll\",'Enrollment Form'!$AM960<>\"\"),\"Y\",\"N\")))","v":""},{"$f":"IF($B953=\"N\",\"\",IF(OR('Enrollment Form'!$B960<>\"Subscriber\",'Enrollment Form'!$C960=\"ROC\"),\"-\",IF(AND('Enrollment Form'!$B960=\"Subscriber\",'Enrollment Form'!$C960=\"Enroll\",'Enrollment Form'!$AN960<>\"\"),\"Y\",\"N\")))","v":""},{"$f":"IF($B953=\"N\",\"\",IF(OR('Enrollment Form'!$B960<>\"Subscriber\",'Enrollment Form'!$C960=\"ROC\"),\"-\",IF(AND('Enrollment Form'!$B960=\"Subscriber\",'Enrollment Form'!$C960=\"Enroll\",'Enrollment Form'!$AP960<>\"\"),\"Y\",\"N\")))","v":""},{"$f":"IF($B953=\"N\",\"\",IF($Q953=\"-\",\"-\",IF(AND($Q953=\"Y\",'Enrollment Form'!$AP960=\"No\"),\"-\",IF(AND($Q953=\"Y\",'Enrollment Form'!$AP960=\"Yes\",'Enrollment Form'!$AQ960<>\"\"),\"Y\",\"N\"))))","v":""},{"$f":"IF($B953=\"N\",\"\",IF(OR('Enrollment Form'!$B960<>\"Subscriber\",'Enrollment Form'!$C960=\"ROC\"),\"-\",IF(AND('Enrollment Form'!$B960=\"Subscriber\",'Enrollment Form'!$C960=\"Enroll\",'Enrollment Form'!$CO960<>\"\"),\"Y\",\"N\")))","v":""},{"$f":"IF($B953=\"N\",\"\",IF($S953=\"-\",\"-\",IF(AND($S953=\"Y\",'Enrollment Form'!$CO960=\"No\"),\"-\",IF(AND($S953=\"Y\",'Enrollment Form'!$CO960=\"Yes\",'Enrollment Form'!$CP960<>\"\"),\"Y\",\"N\"))))","v":""},{"$f":"IF(OR('Enrollment Form'!$AV960=\"Yes\",'Enrollment Form'!$AV960=\"\"),\"-\",IF(AND('Enrollment Form'!$AV960=\"No\",ISERROR(FIND(\"HMO\",VLOOKUP('Enrollment Form'!G960,'Enrollment Form'!H$11:J$1000,3,FALSE),1))=FALSE,COUNTA('Enrollment Form'!$AW960:$AZ960)=4),\"Y\",\"N\"))","v":"-"},{"$f":"IF($B953=\"N\",\"\",IF('Enrollment Form'!$B960=\"Subscriber\",\"-\",IF(COUNTA('Enrollment Form'!$BE960,'Enrollment Form'!$BG960)=2,\"Y\",\"N\")))","v":""},{"$f":"IF($B953=\"N\",\"\",IF(OR('Enrollment Form'!$AU960=\"\",'Enrollment Form'!$AU960=\"No\"),\"-\",IF(AND('Enrollment Form'!$AU960=\"Yes\",COUNTA('Enrollment Form'!$CK960)=1),\"Y\",\"N\")))","v":""},{"$f":"IF(OR('Enrollment Form'!$CK960=\"\",'Enrollment Form'!$CK960=\"No\"),\"-\",IF(COUNTA('Enrollment Form'!$CM960:$CN960)=2,\"Y\",\"N\"))","v":"-"},{"$f":"IF($B953=\"N\",\"\",IF(COUNTIF('Enrollment Form'!$CZ960:$DO960,\"Other\")=COUNTA('Enrollment Form'!$DF960,'Enrollment Form'!$DA960,'Enrollment Form'!$DK960,'Enrollment Form'!$DP960),\"Y\",\"N\"))","v":""},{"$f":"IF($B953=\"N\",\"\",IF(OR('Enrollment Form'!B960<>\"Subscriber\",'Enrollment Form'!C960=\"ROC\",COUNTIF('Enrollment Form'!AS960:AT960,\"Yes\")>=1),\"-\",IF(AND('Enrollment Form'!C960=\"Enroll\",COUNTIF('Enrollment Form'!AS960:AT960,\"No\")=2,'Enrollment Form'!AU960=\"\"),\"N\",\"Y\")))","v":""},{"$f":"IF(OR(B953=\"N\",'Enrollment Form'!B960<>\"Subscriber\",'Enrollment Form'!C960=\"ROC\",'Enrollment Form'!O960<>\"Multiple of Salary\"),\"-\",IF(COUNTA('Enrollment Form'!T960:U960)<2,\"N\",\"Y\"))","v":"-"},{"$f":"IF(B953=\"N\",\"\",IF(OR('Enrollment Form'!C960=\"ROC\",'Enrollment Form'!B960<>\"Subscriber\",'Enrollment Form'!O960=\"Waive\",'Enrollment Form'!O960=\"\"),\"-\",IF('Enrollment Form'!P960=\"\",\"N\",\"Y\")))","v":""},{"$f":"IF($B953=\"N\",\"\",IF(AND('Enrollment Form'!$C960=\"ROC\",'Enrollment Form'!$DS960<>\"\"),\"Y\",IF(AND('Enrollment Form'!$C960=\"ROC\",'Enrollment Form'!$DS960=\"\"),\"N\",IF(AND('Enrollment Form'!$C960=\"Enroll\",'Enrollment Form'!$B960=\"Subscriber\",'Enrollment Form'!$CQ960=\"No\",'Enrollment Form'!$DS960=\"\"),\"N\",IF(AND('Enrollment Form'!$C960=\"Enroll\",'Enrollment Form'!$B960=\"Subscriber\",'Enrollment Form'!$CQ960=\"Yes\"),\"-\",\"Y\")))))","v":""},{"$f":"IF($B953=\"N\",\"\",IF(AND('Enrollment Form'!$C960=\"ROC\",'Enrollment Form'!$DT960<>\"\"),\"Y\",IF(AND('Enrollment Form'!$C960=\"ROC\",'Enrollment Form'!$DT960=\"\"),\"N\",IF(AND('Enrollment Form'!$C960=\"Enroll\",'Enrollment Form'!$B960=\"Subscriber\",'Enrollment Form'!$CQ960=\"No\",'Enrollment Form'!$DT960=\"\"),\"N\",IF(AND('Enrollment Form'!$C960=\"Enroll\",'Enrollment Form'!$B960=\"Subscriber\",'Enrollment Form'!$CQ960=\"Yes\"),\"-\",\"Y\")))))","v":""},{"$f":"IF('Enrollment Form'!AH960=\"\",\"\",IF(ISERROR(SEARCH(\".\",'Enrollment Form'!AH960,SEARCH(\"@\",'Enrollment Form'!AH960))),\"N\",\"Y\"))","v":""},{"$f":"IF(OR($B953=\"N\",'Enrollment Form'!$G960=\"\"),\"\",IF('Enrollment Form'!$B960<>\"Subscriber\",\"-\",IF(COUNTIF('Enrollment Form'!$AS960:$AT960,\"Yes\")=2,\"N\",\"Y\")))","v":""},{"$f":"IF(OR('Enrollment Form'!$CC960=\"\",'Enrollment Form'!$CC960=\"No\"),\"-\",IF(AND('Enrollment Form'!$CC960=\"Yes\",'Enrollment Form'!$CD960=\"\"),\"N\",\"Y\"))","v":"-"},{"$f":"IF(OR('Enrollment Form'!$CE960=\"\",'Enrollment Form'!$CE960=\"No\"),\"-\",IF(AND('Enrollment Form'!$CE960=\"Yes\",'Enrollment Form'!$CF960=\"\"),\"N\",\"Y\"))","v":"-"},{"$f":"IF(OR('Enrollment Form'!$CG960=\"\",'Enrollment Form'!$CG960=\"No\"),\"-\",IF(AND('Enrollment Form'!$CG960=\"Yes\",'Enrollment Form'!$CH960=\"\"),\"N\",\"Y\"))","v":"-"},{"$f":"IF(OR('Enrollment Form'!$CG960=\"\",'Enrollment Form'!$CG960=\"No\"),\"-\",IF(AND('Enrollment Form'!$CG960=\"Yes\",'Enrollment Form'!$CI960=\"\"),\"N\",\"Y\"))","v":"-"},{"$f":"IF('Enrollment Form'!B960<>\"Subscriber\",\"-\",IF(AND('Enrollment Form'!B960=\"Subscriber\",'Enrollment Form'!C960=\"Enroll\",'Enrollment Form'!AA960=\"\"),\"N\",\"Y\"))","v":"-"},{"$f":"IF(OR('Enrollment Form'!B960=\"Subscriber\",'Enrollment Form'!B960=\"\"),\"-\",IF('Enrollment Form'!BI960=\"\",\"N\",\"Y\"))","v":"-"},{"$f":"IF('Enrollment Form'!B960<>\"Subscriber\",\"-\",IF(AND('Enrollment Form'!B960=\"Subscriber\",'Enrollment Form'!G960=\"\"),\"N\",\"Y\"))","v":"-"},{"$f":"IF('Enrollment Form'!A960=\"\",\"\",IF('Enrollment Form'!B960=\"Subscriber\",\"-\",IF(AND('Enrollment Form'!B960<>\"Subscriber\",'Enrollment Form'!G960='Enrollment Form'!H960),\"N\",\"Y\")))","v":""},0]
[961,{"$f":"IF('Enrollment Form'!$A961<>\"\",\"Y\",\"N\")","v":"N"},{"$f":"IF(AND('Enrollment Form'!$B961=\"\",'Enrollment Form'!$C961<>\"\"),\"N\",IF($B954=\"N\",\"\",\"Y\"))","v":""},{"$f":"IF(OR($B954=\"N\",'Enrollment Form'!G961=\"\"),\"\",IF('Enrollment Form'!$B961<>\"Subscriber\",\"\",IF('Enrollment Form'!$G961='Enrollment Form'!$H961,\"Y\",\"N\")))","v":""},{"$f":"IF($B954=\"N\",\"\",IF(AND(COUNTIFS('Enrollment Form'!$H$11:$H$1000,'Enrollment Form'!$H961,'Enrollment Form'!$B$11:$B$1000,'Enrollment Form'!$B961)>1,'Enrollment Form'!$H961<>\"\"),\"N\",\"Y\"))","v":""},{"$f":"IF($B954=\"N\",\"\",IF(LEN('Enrollment Form'!$Y961)=0,\"\",IF(LEN('Enrollment Form'!$Y961)<>5,\"N\",\"Y\")))","v":""},{"$f":"IF($B954=\"N\",\"\",IF(LEN('Enrollment Form'!$AD961=0),\"\",IF(LEN('Enrollment Form'!$AD961)<>5,\"N\",\"Y\")))","v":""},{"$f":"IF($B954=\"N\",\"\",IF(LEN('Enrollment Form'!$BL961=0),\"\",IF(LEN('Enrollment Form'!$BL961)<>5,\"N\",\"Y\")))","v":""},{"$f":"IF($B954=\"N\",\"\",IF(LEN('Enrollment Form'!$AE961)=0,\"\",IF(LEN('Enrollment Form'!$AE961)<>10,\"N\",\"Y\")))","v":""},{"$f":"IF($B954=\"N\",\"\",IF(LEN('Enrollment Form'!$AF961)=0,\"\",IF(LEN('Enrollment Form'!$AF961)<>10,\"N\",\"Y\")))","v":""},{"$f":"IF('Enrollment Form'!$O961<>\"Graded\",\"-\",IF(AND('Enrollment Form'!$O961=\"Graded\",'Enrollment Form'!$AO961<>\"\"),\"Y\",\"N\"))","v":"-"},{"$f":"IF($B954=\"N\",\"\",IF(OR('Enrollment Form'!$B961<>\"Subscriber\",'Enrollment Form'!$C961=\"ROC\"),\"-\",IF(AND('Enrollment Form'!$B961=\"Subscriber\",'Enrollment Form'!$C961=\"Enroll\",'Enrollment Form'!$AJ961<>\"\"),\"Y\",\"N\")))","v":""},{"$f":"IF($B954=\"N\",\"\",IF(OR('Enrollment Form'!$B961<>\"Subscriber\",'Enrollment Form'!$C961=\"ROC\"),\"-\",IF(AND('Enrollment Form'!$B961=\"Subscriber\",'Enrollment Form'!$C961=\"Enroll\",'Enrollment Form'!$AK961<>\"\"),\"Y\",\"N\")))","v":""},{"$f":"IF($B954=\"N\",\"\",IF(OR('Enrollment Form'!$B961<>\"Subscriber\",'Enrollment Form'!$C961=\"ROC\"),\"-\",IF(AND('Enrollment Form'!$B961=\"Subscriber\",'Enrollment Form'!$C961=\"Enroll\",'Enrollment Form'!$AL961<>\"\"),\"Y\",\"N\")))","v":""},{"$f":"IF($B954=\"N\",\"\",IF(OR('Enrollment Form'!$B961<>\"Subscriber\",'Enrollment Form'!$C961=\"ROC\"),\"-\",IF(AND('Enrollment Form'!$B961=\"Subscriber\",'Enrollment Form'!$C961=\"Enroll\",'Enrollment Form'!$AM961<>\"\"),\"Y\",\"N\")))","v":""},{"$f":"IF($B954=\"N\",\"\",IF(OR('Enrollment Form'!$B961<>\"Subscriber\",'Enrollment Form'!$C961=\"ROC\"),\"-\",IF(AND('Enrollment Form'!$B961=\"Subscriber\",'Enrollment Form'!$C961=\"Enroll\",'Enrollment Form'!$AN961<>\"\"),\"Y\",\"N\")))","v":""},{"$f":"IF($B954=\"N\",\"\",IF(OR('Enrollment Form'!$B961<>\"Subscriber\",'Enrollment Form'!$C961=\"ROC\"),\"-\",IF(AND('Enrollment Form'!$B961=\"Subscriber\",'Enrollment Form'!$C961=\"Enroll\",'Enrollment Form'!$AP961<>\"\"),\"Y\",\"N\")))","v":""},{"$f":"IF($B954=\"N\",\"\",IF($Q954=\"-\",\"-\",IF(AND($Q954=\"Y\",'Enrollment Form'!$AP961=\"No\"),\"-\",IF(AND($Q954=\"Y\",'Enrollment Form'!$AP961=\"Yes\",'Enrollment Form'!$AQ961<>\"\"),\"Y\",\"N\"))))","v":""},{"$f":"IF($B954=\"N\",\"\",IF(OR('Enrollment Form'!$B961<>\"Subscriber\",'Enrollment Form'!$C961=\"ROC\"),\"-\",IF(AND('Enrollment Form'!$B961=\"Subscriber\",'Enrollment Form'!$C961=\"Enroll\",'Enrollment Form'!$CO961<>\"\"),\"Y\",\"N\")))","v":""},{"$f":"IF($B954=\"N\",\"\",IF($S954=\"-\",\"-\",IF(AND($S954=\"Y\",'Enrollment Form'!$CO961=\"No\"),\"-\",IF(AND($S954=\"Y\",'Enrollment Form'!$CO961=\"Yes\",'Enrollment Form'!$CP961<>\"\"),\"Y\",\"N\"))))","v":""},{"$f":"IF(OR('Enrollment Form'!$AV961=\"Yes\",'Enrollment Form'!$AV961=\"\"),\"-\",IF(AND('Enrollment Form'!$AV961=\"No\",ISERROR(FIND(\"HMO\",VLOOKUP('Enrollment Form'!G961,'Enrollment Form'!H$11:J$1000,3,FALSE),1))=FALSE,COUNTA('Enrollment Form'!$AW961:$AZ961)=4),\"Y\",\"N\"))","v":"-"},{"$f":"IF($B954=\"N\",\"\",IF('Enrollment Form'!$B961=\"Subscriber\",\"-\",IF(COUNTA('Enrollment Form'!$BE961,'Enrollment Form'!$BG961)=2,\"Y\",\"N\")))","v":""},{"$f":"IF($B954=\"N\",\"\",IF(OR('Enrollment Form'!$AU961=\"\",'Enrollment Form'!$AU961=\"No\"),\"-\",IF(AND('Enrollment Form'!$AU961=\"Yes\",COUNTA('Enrollment Form'!$CK961)=1),\"Y\",\"N\")))","v":""},{"$f":"IF(OR('Enrollment Form'!$CK961=\"\",'Enrollment Form'!$CK961=\"No\"),\"-\",IF(COUNTA('Enrollment Form'!$CM961:$CN961)=2,\"Y\",\"N\"))","v":"-"},{"$f":"IF($B954=\"N\",\"\",IF(COUNTIF('Enrollment Form'!$CZ961:$DO961,\"Other\")=COUNTA('Enrollment Form'!$DF961,'Enrollment Form'!$DA961,'Enrollment Form'!$DK961,'Enrollment Form'!$DP961),\"Y\",\"N\"))","v":""},{"$f":"IF($B954=\"N\",\"\",IF(OR('Enrollment Form'!B961<>\"Subscriber\",'Enrollment Form'!C961=\"ROC\",COUNTIF('Enrollment Form'!AS961:AT961,\"Yes\")>=1),\"-\",IF(AND('Enrollment Form'!C961=\"Enroll\",COUNTIF('Enrollment Form'!AS961:AT961,\"No\")=2,'Enrollment Form'!AU961=\"\"),\"N\",\"Y\")))","v":""},{"$f":"IF(OR(B954=\"N\",'Enrollment Form'!B961<>\"Subscriber\",'Enrollment Form'!C961=\"ROC\",'Enrollment Form'!O961<>\"Multiple of Salary\"),\"-\",IF(COUNTA('Enrollment Form'!T961:U961)<2,\"N\",\"Y\"))","v":"-"},{"$f":"IF(B954=\"N\",\"\",IF(OR('Enrollment Form'!C961=\"ROC\",'Enrollment Form'!B961<>\"Subscriber\",'Enrollment Form'!O961=\"Waive\",'Enrollment Form'!O961=\"\"),\"-\",IF('Enrollment Form'!P961=\"\",\"N\",\"Y\")))","v":""},{"$f":"IF($B954=\"N\",\"\",IF(AND('Enrollment Form'!$C961=\"ROC\",'Enrollment Form'!$DS961<>\"\"),\"Y\",IF(AND('Enrollment Form'!$C961=\"ROC\",'Enrollment Form'!$DS961=\"\"),\"N\",IF(AND('Enrollment Form'!$C961=\"Enroll\",'Enrollment Form'!$B961=\"Subscriber\",'Enrollment Form'!$CQ961=\"No\",'Enrollment Form'!$DS961=\"\"),\"N\",IF(AND('Enrollment Form'!$C961=\"Enroll\",'Enrollment Form'!$B961=\"Subscriber\",'Enrollment Form'!$CQ961=\"Yes\"),\"-\",\"Y\")))))","v":""},{"$f":"IF($B954=\"N\",\"\",IF(AND('Enrollment Form'!$C961=\"ROC\",'Enrollment Form'!$DT961<>\"\"),\"Y\",IF(AND('Enrollment Form'!$C961=\"ROC\",'Enrollment Form'!$DT961=\"\"),\"N\",IF(AND('Enrollment Form'!$C961=\"Enroll\",'Enrollment Form'!$B961=\"Subscriber\",'Enrollment Form'!$CQ961=\"No\",'Enrollment Form'!$DT961=\"\"),\"N\",IF(AND('Enrollment Form'!$C961=\"Enroll\",'Enrollment Form'!$B961=\"Subscriber\",'Enrollment Form'!$CQ961=\"Yes\"),\"-\",\"Y\")))))","v":""},{"$f":"IF('Enrollment Form'!AH961=\"\",\"\",IF(ISERROR(SEARCH(\".\",'Enrollment Form'!AH961,SEARCH(\"@\",'Enrollment Form'!AH961))),\"N\",\"Y\"))","v":""},{"$f":"IF(OR($B954=\"N\",'Enrollment Form'!$G961=\"\"),\"\",IF('Enrollment Form'!$B961<>\"Subscriber\",\"-\",IF(COUNTIF('Enrollment Form'!$AS961:$AT961,\"Yes\")=2,\"N\",\"Y\")))","v":""},{"$f":"IF(OR('Enrollment Form'!$CC961=\"\",'Enrollment Form'!$CC961=\"No\"),\"-\",IF(AND('Enrollment Form'!$CC961=\"Yes\",'Enrollment Form'!$CD961=\"\"),\"N\",\"Y\"))","v":"-"},{"$f":"IF(OR('Enrollment Form'!$CE961=\"\",'Enrollment Form'!$CE961=\"No\"),\"-\",IF(AND('Enrollment Form'!$CE961=\"Yes\",'Enrollment Form'!$CF961=\"\"),\"N\",\"Y\"))","v":"-"},{"$f":"IF(OR('Enrollment Form'!$CG961=\"\",'Enrollment Form'!$CG961=\"No\"),\"-\",IF(AND('Enrollment Form'!$CG961=\"Yes\",'Enrollment Form'!$CH961=\"\"),\"N\",\"Y\"))","v":"-"},{"$f":"IF(OR('Enrollment Form'!$CG961=\"\",'Enrollment Form'!$CG961=\"No\"),\"-\",IF(AND('Enrollment Form'!$CG961=\"Yes\",'Enrollment Form'!$CI961=\"\"),\"N\",\"Y\"))","v":"-"},{"$f":"IF('Enrollment Form'!B961<>\"Subscriber\",\"-\",IF(AND('Enrollment Form'!B961=\"Subscriber\",'Enrollment Form'!C961=\"Enroll\",'Enrollment Form'!AA961=\"\"),\"N\",\"Y\"))","v":"-"},{"$f":"IF(OR('Enrollment Form'!B961=\"Subscriber\",'Enrollment Form'!B961=\"\"),\"-\",IF('Enrollment Form'!BI961=\"\",\"N\",\"Y\"))","v":"-"},{"$f":"IF('Enrollment Form'!B961<>\"Subscriber\",\"-\",IF(AND('Enrollment Form'!B961=\"Subscriber\",'Enrollment Form'!G961=\"\"),\"N\",\"Y\"))","v":"-"},{"$f":"IF('Enrollment Form'!A961=\"\",\"\",IF('Enrollment Form'!B961=\"Subscriber\",\"-\",IF(AND('Enrollment Form'!B961<>\"Subscriber\",'Enrollment Form'!G961='Enrollment Form'!H961),\"N\",\"Y\")))","v":""},0]
[962,{"$f":"IF('Enrollment Form'!$A962<>\"\",\"Y\",\"N\")","v":"N"},{"$f":"IF(AND('Enrollment Form'!$B962=\"\",'Enrollment Form'!$C962<>\"\"),\"N\",IF($B955=\"N\",\"\",\"Y\"))","v":""},{"$f":"IF(OR($B955=\"N\",'Enrollment Form'!G962=\"\"),\"\",IF('Enrollment Form'!$B962<>\"Subscriber\",\"\",IF('Enrollment Form'!$G962='Enrollment Form'!$H962,\"Y\",\"N\")))","v":""},{"$f":"IF($B955=\"N\",\"\",IF(AND(COUNTIFS('Enrollment Form'!$H$11:$H$1000,'Enrollment Form'!$H962,'Enrollment Form'!$B$11:$B$1000,'Enrollment Form'!$B962)>1,'Enrollment Form'!$H962<>\"\"),\"N\",\"Y\"))","v":""},{"$f":"IF($B955=\"N\",\"\",IF(LEN('Enrollment Form'!$Y962)=0,\"\",IF(LEN('Enrollment Form'!$Y962)<>5,\"N\",\"Y\")))","v":""},{"$f":"IF($B955=\"N\",\"\",IF(LEN('Enrollment Form'!$AD962=0),\"\",IF(LEN('Enrollment Form'!$AD962)<>5,\"N\",\"Y\")))","v":""},{"$f":"IF($B955=\"N\",\"\",IF(LEN('Enrollment Form'!$BL962=0),\"\",IF(LEN('Enrollment Form'!$BL962)<>5,\"N\",\"Y\")))","v":""},{"$f":"IF($B955=\"N\",\"\",IF(LEN('Enrollment Form'!$AE962)=0,\"\",IF(LEN('Enrollment Form'!$AE962)<>10,\"N\",\"Y\")))","v":""},{"$f":"IF($B955=\"N\",\"\",IF(LEN('Enrollment Form'!$AF962)=0,\"\",IF(LEN('Enrollment Form'!$AF962)<>10,\"N\",\"Y\")))","v":""},{"$f":"IF('Enrollment Form'!$O962<>\"Graded\",\"-\",IF(AND('Enrollment Form'!$O962=\"Graded\",'Enrollment Form'!$AO962<>\"\"),\"Y\",\"N\"))","v":"-"},{"$f":"IF($B955=\"N\",\"\",IF(OR('Enrollment Form'!$B962<>\"Subscriber\",'Enrollment Form'!$C962=\"ROC\"),\"-\",IF(AND('Enrollment Form'!$B962=\"Subscriber\",'Enrollment Form'!$C962=\"Enroll\",'Enrollment Form'!$AJ962<>\"\"),\"Y\",\"N\")))","v":""},{"$f":"IF($B955=\"N\",\"\",IF(OR('Enrollment Form'!$B962<>\"Subscriber\",'Enrollment Form'!$C962=\"ROC\"),\"-\",IF(AND('Enrollment Form'!$B962=\"Subscriber\",'Enrollment Form'!$C962=\"Enroll\",'Enrollment Form'!$AK962<>\"\"),\"Y\",\"N\")))","v":""},{"$f":"IF($B955=\"N\",\"\",IF(OR('Enrollment Form'!$B962<>\"Subscriber\",'Enrollment Form'!$C962=\"ROC\"),\"-\",IF(AND('Enrollment Form'!$B962=\"Subscriber\",'Enrollment Form'!$C962=\"Enroll\",'Enrollment Form'!$AL962<>\"\"),\"Y\",\"N\")))","v":""},{"$f":"IF($B955=\"N\",\"\",IF(OR('Enrollment Form'!$B962<>\"Subscriber\",'Enrollment Form'!$C962=\"ROC\"),\"-\",IF(AND('Enrollment Form'!$B962=\"Subscriber\",'Enrollment Form'!$C962=\"Enroll\",'Enrollment Form'!$AM962<>\"\"),\"Y\",\"N\")))","v":""},{"$f":"IF($B955=\"N\",\"\",IF(OR('Enrollment Form'!$B962<>\"Subscriber\",'Enrollment Form'!$C962=\"ROC\"),\"-\",IF(AND('Enrollment Form'!$B962=\"Subscriber\",'Enrollment Form'!$C962=\"Enroll\",'Enrollment Form'!$AN962<>\"\"),\"Y\",\"N\")))","v":""},{"$f":"IF($B955=\"N\",\"\",IF(OR('Enrollment Form'!$B962<>\"Subscriber\",'Enrollment Form'!$C962=\"ROC\"),\"-\",IF(AND('Enrollment Form'!$B962=\"Subscriber\",'Enrollment Form'!$C962=\"Enroll\",'Enrollment Form'!$AP962<>\"\"),\"Y\",\"N\")))","v":""},{"$f":"IF($B955=\"N\",\"\",IF($Q955=\"-\",\"-\",IF(AND($Q955=\"Y\",'Enrollment Form'!$AP962=\"No\"),\"-\",IF(AND($Q955=\"Y\",'Enrollment Form'!$AP962=\"Yes\",'Enrollment Form'!$AQ962<>\"\"),\"Y\",\"N\"))))","v":""},{"$f":"IF($B955=\"N\",\"\",IF(OR('Enrollment Form'!$B962<>\"Subscriber\",'Enrollment Form'!$C962=\"ROC\"),\"-\",IF(AND('Enrollment Form'!$B962=\"Subscriber\",'Enrollment Form'!$C962=\"Enroll\",'Enrollment Form'!$CO962<>\"\"),\"Y\",\"N\")))","v":""},{"$f":"IF($B955=\"N\",\"\",IF($S955=\"-\",\"-\",IF(AND($S955=\"Y\",'Enrollment Form'!$CO962=\"No\"),\"-\",IF(AND($S955=\"Y\",'Enrollment Form'!$CO962=\"Yes\",'Enrollment Form'!$CP962<>\"\"),\"Y\",\"N\"))))","v":""},{"$f":"IF(OR('Enrollment Form'!$AV962=\"Yes\",'Enrollment Form'!$AV962=\"\"),\"-\",IF(AND('Enrollment Form'!$AV962=\"No\",ISERROR(FIND(\"HMO\",VLOOKUP('Enrollment Form'!G962,'Enrollment Form'!H$11:J$1000,3,FALSE),1))=FALSE,COUNTA('Enrollment Form'!$AW962:$AZ962)=4),\"Y\",\"N\"))","v":"-"},{"$f":"IF($B955=\"N\",\"\",IF('Enrollment Form'!$B962=\"Subscriber\",\"-\",IF(COUNTA('Enrollment Form'!$BE962,'Enrollment Form'!$BG962)=2,\"Y\",\"N\")))","v":""},{"$f":"IF($B955=\"N\",\"\",IF(OR('Enrollment Form'!$AU962=\"\",'Enrollment Form'!$AU962=\"No\"),\"-\",IF(AND('Enrollment Form'!$AU962=\"Yes\",COUNTA('Enrollment Form'!$CK962)=1),\"Y\",\"N\")))","v":""},{"$f":"IF(OR('Enrollment Form'!$CK962=\"\",'Enrollment Form'!$CK962=\"No\"),\"-\",IF(COUNTA('Enrollment Form'!$CM962:$CN962)=2,\"Y\",\"N\"))","v":"-"},{"$f":"IF($B955=\"N\",\"\",IF(COUNTIF('Enrollment Form'!$CZ962:$DO962,\"Other\")=COUNTA('Enrollment Form'!$DF962,'Enrollment Form'!$DA962,'Enrollment Form'!$DK962,'Enrollment Form'!$DP962),\"Y\",\"N\"))","v":""},{"$f":"IF($B955=\"N\",\"\",IF(OR('Enrollment Form'!B962<>\"Subscriber\",'Enrollment Form'!C962=\"ROC\",COUNTIF('Enrollment Form'!AS962:AT962,\"Yes\")>=1),\"-\",IF(AND('Enrollment Form'!C962=\"Enroll\",COUNTIF('Enrollment Form'!AS962:AT962,\"No\")=2,'Enrollment Form'!AU962=\"\"),\"N\",\"Y\")))","v":""},{"$f":"IF(OR(B955=\"N\",'Enrollment Form'!B962<>\"Subscriber\",'Enrollment Form'!C962=\"ROC\",'Enrollment Form'!O962<>\"Multiple of Salary\"),\"-\",IF(COUNTA('Enrollment Form'!T962:U962)<2,\"N\",\"Y\"))","v":"-"},{"$f":"IF(B955=\"N\",\"\",IF(OR('Enrollment Form'!C962=\"ROC\",'Enrollment Form'!B962<>\"Subscriber\",'Enrollment Form'!O962=\"Waive\",'Enrollment Form'!O962=\"\"),\"-\",IF('Enrollment Form'!P962=\"\",\"N\",\"Y\")))","v":""},{"$f":"IF($B955=\"N\",\"\",IF(AND('Enrollment Form'!$C962=\"ROC\",'Enrollment Form'!$DS962<>\"\"),\"Y\",IF(AND('Enrollment Form'!$C962=\"ROC\",'Enrollment Form'!$DS962=\"\"),\"N\",IF(AND('Enrollment Form'!$C962=\"Enroll\",'Enrollment Form'!$B962=\"Subscriber\",'Enrollment Form'!$CQ962=\"No\",'Enrollment Form'!$DS962=\"\"),\"N\",IF(AND('Enrollment Form'!$C962=\"Enroll\",'Enrollment Form'!$B962=\"Subscriber\",'Enrollment Form'!$CQ962=\"Yes\"),\"-\",\"Y\")))))","v":""},{"$f":"IF($B955=\"N\",\"\",IF(AND('Enrollment Form'!$C962=\"ROC\",'Enrollment Form'!$DT962<>\"\"),\"Y\",IF(AND('Enrollment Form'!$C962=\"ROC\",'Enrollment Form'!$DT962=\"\"),\"N\",IF(AND('Enrollment Form'!$C962=\"Enroll\",'Enrollment Form'!$B962=\"Subscriber\",'Enrollment Form'!$CQ962=\"No\",'Enrollment Form'!$DT962=\"\"),\"N\",IF(AND('Enrollment Form'!$C962=\"Enroll\",'Enrollment Form'!$B962=\"Subscriber\",'Enrollment Form'!$CQ962=\"Yes\"),\"-\",\"Y\")))))","v":""},{"$f":"IF('Enrollment Form'!AH962=\"\",\"\",IF(ISERROR(SEARCH(\".\",'Enrollment Form'!AH962,SEARCH(\"@\",'Enrollment Form'!AH962))),\"N\",\"Y\"))","v":""},{"$f":"IF(OR($B955=\"N\",'Enrollment Form'!$G962=\"\"),\"\",IF('Enrollment Form'!$B962<>\"Subscriber\",\"-\",IF(COUNTIF('Enrollment Form'!$AS962:$AT962,\"Yes\")=2,\"N\",\"Y\")))","v":""},{"$f":"IF(OR('Enrollment Form'!$CC962=\"\",'Enrollment Form'!$CC962=\"No\"),\"-\",IF(AND('Enrollment Form'!$CC962=\"Yes\",'Enrollment Form'!$CD962=\"\"),\"N\",\"Y\"))","v":"-"},{"$f":"IF(OR('Enrollment Form'!$CE962=\"\",'Enrollment Form'!$CE962=\"No\"),\"-\",IF(AND('Enrollment Form'!$CE962=\"Yes\",'Enrollment Form'!$CF962=\"\"),\"N\",\"Y\"))","v":"-"},{"$f":"IF(OR('Enrollment Form'!$CG962=\"\",'Enrollment Form'!$CG962=\"No\"),\"-\",IF(AND('Enrollment Form'!$CG962=\"Yes\",'Enrollment Form'!$CH962=\"\"),\"N\",\"Y\"))","v":"-"},{"$f":"IF(OR('Enrollment Form'!$CG962=\"\",'Enrollment Form'!$CG962=\"No\"),\"-\",IF(AND('Enrollment Form'!$CG962=\"Yes\",'Enrollment Form'!$CI962=\"\"),\"N\",\"Y\"))","v":"-"},{"$f":"IF('Enrollment Form'!B962<>\"Subscriber\",\"-\",IF(AND('Enrollment Form'!B962=\"Subscriber\",'Enrollment Form'!C962=\"Enroll\",'Enrollment Form'!AA962=\"\"),\"N\",\"Y\"))","v":"-"},{"$f":"IF(OR('Enrollment Form'!B962=\"Subscriber\",'Enrollment Form'!B962=\"\"),\"-\",IF('Enrollment Form'!BI962=\"\",\"N\",\"Y\"))","v":"-"},{"$f":"IF('Enrollment Form'!B962<>\"Subscriber\",\"-\",IF(AND('Enrollment Form'!B962=\"Subscriber\",'Enrollment Form'!G962=\"\"),\"N\",\"Y\"))","v":"-"},{"$f":"IF('Enrollment Form'!A962=\"\",\"\",IF('Enrollment Form'!B962=\"Subscriber\",\"-\",IF(AND('Enrollment Form'!B962<>\"Subscriber\",'Enrollment Form'!G962='Enrollment Form'!H962),\"N\",\"Y\")))","v":""},0]
[963,{"$f":"IF('Enrollment Form'!$A963<>\"\",\"Y\",\"N\")","v":"N"},{"$f":"IF(AND('Enrollment Form'!$B963=\"\",'Enrollment Form'!$C963<>\"\"),\"N\",IF($B956=\"N\",\"\",\"Y\"))","v":""},{"$f":"IF(OR($B956=\"N\",'Enrollment Form'!G963=\"\"),\"\",IF('Enrollment Form'!$B963<>\"Subscriber\",\"\",IF('Enrollment Form'!$G963='Enrollment Form'!$H963,\"Y\",\"N\")))","v":""},{"$f":"IF($B956=\"N\",\"\",IF(AND(COUNTIFS('Enrollment Form'!$H$11:$H$1000,'Enrollment Form'!$H963,'Enrollment Form'!$B$11:$B$1000,'Enrollment Form'!$B963)>1,'Enrollment Form'!$H963<>\"\"),\"N\",\"Y\"))","v":""},{"$f":"IF($B956=\"N\",\"\",IF(LEN('Enrollment Form'!$Y963)=0,\"\",IF(LEN('Enrollment Form'!$Y963)<>5,\"N\",\"Y\")))","v":""},{"$f":"IF($B956=\"N\",\"\",IF(LEN('Enrollment Form'!$AD963=0),\"\",IF(LEN('Enrollment Form'!$AD963)<>5,\"N\",\"Y\")))","v":""},{"$f":"IF($B956=\"N\",\"\",IF(LEN('Enrollment Form'!$BL963=0),\"\",IF(LEN('Enrollment Form'!$BL963)<>5,\"N\",\"Y\")))","v":""},{"$f":"IF($B956=\"N\",\"\",IF(LEN('Enrollment Form'!$AE963)=0,\"\",IF(LEN('Enrollment Form'!$AE963)<>10,\"N\",\"Y\")))","v":""},{"$f":"IF($B956=\"N\",\"\",IF(LEN('Enrollment Form'!$AF963)=0,\"\",IF(LEN('Enrollment Form'!$AF963)<>10,\"N\",\"Y\")))","v":""},{"$f":"IF('Enrollment Form'!$O963<>\"Graded\",\"-\",IF(AND('Enrollment Form'!$O963=\"Graded\",'Enrollment Form'!$AO963<>\"\"),\"Y\",\"N\"))","v":"-"},{"$f":"IF($B956=\"N\",\"\",IF(OR('Enrollment Form'!$B963<>\"Subscriber\",'Enrollment Form'!$C963=\"ROC\"),\"-\",IF(AND('Enrollment Form'!$B963=\"Subscriber\",'Enrollment Form'!$C963=\"Enroll\",'Enrollment Form'!$AJ963<>\"\"),\"Y\",\"N\")))","v":""},{"$f":"IF($B956=\"N\",\"\",IF(OR('Enrollment Form'!$B963<>\"Subscriber\",'Enrollment Form'!$C963=\"ROC\"),\"-\",IF(AND('Enrollment Form'!$B963=\"Subscriber\",'Enrollment Form'!$C963=\"Enroll\",'Enrollment Form'!$AK963<>\"\"),\"Y\",\"N\")))","v":""},{"$f":"IF($B956=\"N\",\"\",IF(OR('Enrollment Form'!$B963<>\"Subscriber\",'Enrollment Form'!$C963=\"ROC\"),\"-\",IF(AND('Enrollment Form'!$B963=\"Subscriber\",'Enrollment Form'!$C963=\"Enroll\",'Enrollment Form'!$AL963<>\"\"),\"Y\",\"N\")))","v":""},{"$f":"IF($B956=\"N\",\"\",IF(OR('Enrollment Form'!$B963<>\"Subscriber\",'Enrollment Form'!$C963=\"ROC\"),\"-\",IF(AND('Enrollment Form'!$B963=\"Subscriber\",'Enrollment Form'!$C963=\"Enroll\",'Enrollment Form'!$AM963<>\"\"),\"Y\",\"N\")))","v":""},{"$f":"IF($B956=\"N\",\"\",IF(OR('Enrollment Form'!$B963<>\"Subscriber\",'Enrollment Form'!$C963=\"ROC\"),\"-\",IF(AND('Enrollment Form'!$B963=\"Subscriber\",'Enrollment Form'!$C963=\"Enroll\",'Enrollment Form'!$AN963<>\"\"),\"Y\",\"N\")))","v":""},{"$f":"IF($B956=\"N\",\"\",IF(OR('Enrollment Form'!$B963<>\"Subscriber\",'Enrollment Form'!$C963=\"ROC\"),\"-\",IF(AND('Enrollment Form'!$B963=\"Subscriber\",'Enrollment Form'!$C963=\"Enroll\",'Enrollment Form'!$AP963<>\"\"),\"Y\",\"N\")))","v":""},{"$f":"IF($B956=\"N\",\"\",IF($Q956=\"-\",\"-\",IF(AND($Q956=\"Y\",'Enrollment Form'!$AP963=\"No\"),\"-\",IF(AND($Q956=\"Y\",'Enrollment Form'!$AP963=\"Yes\",'Enrollment Form'!$AQ963<>\"\"),\"Y\",\"N\"))))","v":""},{"$f":"IF($B956=\"N\",\"\",IF(OR('Enrollment Form'!$B963<>\"Subscriber\",'Enrollment Form'!$C963=\"ROC\"),\"-\",IF(AND('Enrollment Form'!$B963=\"Subscriber\",'Enrollment Form'!$C963=\"Enroll\",'Enrollment Form'!$CO963<>\"\"),\"Y\",\"N\")))","v":""},{"$f":"IF($B956=\"N\",\"\",IF($S956=\"-\",\"-\",IF(AND($S956=\"Y\",'Enrollment Form'!$CO963=\"No\"),\"-\",IF(AND($S956=\"Y\",'Enrollment Form'!$CO963=\"Yes\",'Enrollment Form'!$CP963<>\"\"),\"Y\",\"N\"))))","v":""},{"$f":"IF(OR('Enrollment Form'!$AV963=\"Yes\",'Enrollment Form'!$AV963=\"\"),\"-\",IF(AND('Enrollment Form'!$AV963=\"No\",ISERROR(FIND(\"HMO\",VLOOKUP('Enrollment Form'!G963,'Enrollment Form'!H$11:J$1000,3,FALSE),1))=FALSE,COUNTA('Enrollment Form'!$AW963:$AZ963)=4),\"Y\",\"N\"))","v":"-"},{"$f":"IF($B956=\"N\",\"\",IF('Enrollment Form'!$B963=\"Subscriber\",\"-\",IF(COUNTA('Enrollment Form'!$BE963,'Enrollment Form'!$BG963)=2,\"Y\",\"N\")))","v":""},{"$f":"IF($B956=\"N\",\"\",IF(OR('Enrollment Form'!$AU963=\"\",'Enrollment Form'!$AU963=\"No\"),\"-\",IF(AND('Enrollment Form'!$AU963=\"Yes\",COUNTA('Enrollment Form'!$CK963)=1),\"Y\",\"N\")))","v":""},{"$f":"IF(OR('Enrollment Form'!$CK963=\"\",'Enrollment Form'!$CK963=\"No\"),\"-\",IF(COUNTA('Enrollment Form'!$CM963:$CN963)=2,\"Y\",\"N\"))","v":"-"},{"$f":"IF($B956=\"N\",\"\",IF(COUNTIF('Enrollment Form'!$CZ963:$DO963,\"Other\")=COUNTA('Enrollment Form'!$DF963,'Enrollment Form'!$DA963,'Enrollment Form'!$DK963,'Enrollment Form'!$DP963),\"Y\",\"N\"))","v":""},{"$f":"IF($B956=\"N\",\"\",IF(OR('Enrollment Form'!B963<>\"Subscriber\",'Enrollment Form'!C963=\"ROC\",COUNTIF('Enrollment Form'!AS963:AT963,\"Yes\")>=1),\"-\",IF(AND('Enrollment Form'!C963=\"Enroll\",COUNTIF('Enrollment Form'!AS963:AT963,\"No\")=2,'Enrollment Form'!AU963=\"\"),\"N\",\"Y\")))","v":""},{"$f":"IF(OR(B956=\"N\",'Enrollment Form'!B963<>\"Subscriber\",'Enrollment Form'!C963=\"ROC\",'Enrollment Form'!O963<>\"Multiple of Salary\"),\"-\",IF(COUNTA('Enrollment Form'!T963:U963)<2,\"N\",\"Y\"))","v":"-"},{"$f":"IF(B956=\"N\",\"\",IF(OR('Enrollment Form'!C963=\"ROC\",'Enrollment Form'!B963<>\"Subscriber\",'Enrollment Form'!O963=\"Waive\",'Enrollment Form'!O963=\"\"),\"-\",IF('Enrollment Form'!P963=\"\",\"N\",\"Y\")))","v":""},{"$f":"IF($B956=\"N\",\"\",IF(AND('Enrollment Form'!$C963=\"ROC\",'Enrollment Form'!$DS963<>\"\"),\"Y\",IF(AND('Enrollment Form'!$C963=\"ROC\",'Enrollment Form'!$DS963=\"\"),\"N\",IF(AND('Enrollment Form'!$C963=\"Enroll\",'Enrollment Form'!$B963=\"Subscriber\",'Enrollment Form'!$CQ963=\"No\",'Enrollment Form'!$DS963=\"\"),\"N\",IF(AND('Enrollment Form'!$C963=\"Enroll\",'Enrollment Form'!$B963=\"Subscriber\",'Enrollment Form'!$CQ963=\"Yes\"),\"-\",\"Y\")))))","v":""},{"$f":"IF($B956=\"N\",\"\",IF(AND('Enrollment Form'!$C963=\"ROC\",'Enrollment Form'!$DT963<>\"\"),\"Y\",IF(AND('Enrollment Form'!$C963=\"ROC\",'Enrollment Form'!$DT963=\"\"),\"N\",IF(AND('Enrollment Form'!$C963=\"Enroll\",'Enrollment Form'!$B963=\"Subscriber\",'Enrollment Form'!$CQ963=\"No\",'Enrollment Form'!$DT963=\"\"),\"N\",IF(AND('Enrollment Form'!$C963=\"Enroll\",'Enrollment Form'!$B963=\"Subscriber\",'Enrollment Form'!$CQ963=\"Yes\"),\"-\",\"Y\")))))","v":""},{"$f":"IF('Enrollment Form'!AH963=\"\",\"\",IF(ISERROR(SEARCH(\".\",'Enrollment Form'!AH963,SEARCH(\"@\",'Enrollment Form'!AH963))),\"N\",\"Y\"))","v":""},{"$f":"IF(OR($B956=\"N\",'Enrollment Form'!$G963=\"\"),\"\",IF('Enrollment Form'!$B963<>\"Subscriber\",\"-\",IF(COUNTIF('Enrollment Form'!$AS963:$AT963,\"Yes\")=2,\"N\",\"Y\")))","v":""},{"$f":"IF(OR('Enrollment Form'!$CC963=\"\",'Enrollment Form'!$CC963=\"No\"),\"-\",IF(AND('Enrollment Form'!$CC963=\"Yes\",'Enrollment Form'!$CD963=\"\"),\"N\",\"Y\"))","v":"-"},{"$f":"IF(OR('Enrollment Form'!$CE963=\"\",'Enrollment Form'!$CE963=\"No\"),\"-\",IF(AND('Enrollment Form'!$CE963=\"Yes\",'Enrollment Form'!$CF963=\"\"),\"N\",\"Y\"))","v":"-"},{"$f":"IF(OR('Enrollment Form'!$CG963=\"\",'Enrollment Form'!$CG963=\"No\"),\"-\",IF(AND('Enrollment Form'!$CG963=\"Yes\",'Enrollment Form'!$CH963=\"\"),\"N\",\"Y\"))","v":"-"},{"$f":"IF(OR('Enrollment Form'!$CG963=\"\",'Enrollment Form'!$CG963=\"No\"),\"-\",IF(AND('Enrollment Form'!$CG963=\"Yes\",'Enrollment Form'!$CI963=\"\"),\"N\",\"Y\"))","v":"-"},{"$f":"IF('Enrollment Form'!B963<>\"Subscriber\",\"-\",IF(AND('Enrollment Form'!B963=\"Subscriber\",'Enrollment Form'!C963=\"Enroll\",'Enrollment Form'!AA963=\"\"),\"N\",\"Y\"))","v":"-"},{"$f":"IF(OR('Enrollment Form'!B963=\"Subscriber\",'Enrollment Form'!B963=\"\"),\"-\",IF('Enrollment Form'!BI963=\"\",\"N\",\"Y\"))","v":"-"},{"$f":"IF('Enrollment Form'!B963<>\"Subscriber\",\"-\",IF(AND('Enrollment Form'!B963=\"Subscriber\",'Enrollment Form'!G963=\"\"),\"N\",\"Y\"))","v":"-"},{"$f":"IF('Enrollment Form'!A963=\"\",\"\",IF('Enrollment Form'!B963=\"Subscriber\",\"-\",IF(AND('Enrollment Form'!B963<>\"Subscriber\",'Enrollment Form'!G963='Enrollment Form'!H963),\"N\",\"Y\")))","v":""},0]
[964,{"$f":"IF('Enrollment Form'!$A964<>\"\",\"Y\",\"N\")","v":"N"},{"$f":"IF(AND('Enrollment Form'!$B964=\"\",'Enrollment Form'!$C964<>\"\"),\"N\",IF($B957=\"N\",\"\",\"Y\"))","v":""},{"$f":"IF(OR($B957=\"N\",'Enrollment Form'!G964=\"\"),\"\",IF('Enrollment Form'!$B964<>\"Subscriber\",\"\",IF('Enrollment Form'!$G964='Enrollment Form'!$H964,\"Y\",\"N\")))","v":""},{"$f":"IF($B957=\"N\",\"\",IF(AND(COUNTIFS('Enrollment Form'!$H$11:$H$1000,'Enrollment Form'!$H964,'Enrollment Form'!$B$11:$B$1000,'Enrollment Form'!$B964)>1,'Enrollment Form'!$H964<>\"\"),\"N\",\"Y\"))","v":""},{"$f":"IF($B957=\"N\",\"\",IF(LEN('Enrollment Form'!$Y964)=0,\"\",IF(LEN('Enrollment Form'!$Y964)<>5,\"N\",\"Y\")))","v":""},{"$f":"IF($B957=\"N\",\"\",IF(LEN('Enrollment Form'!$AD964=0),\"\",IF(LEN('Enrollment Form'!$AD964)<>5,\"N\",\"Y\")))","v":""},{"$f":"IF($B957=\"N\",\"\",IF(LEN('Enrollment Form'!$BL964=0),\"\",IF(LEN('Enrollment Form'!$BL964)<>5,\"N\",\"Y\")))","v":""},{"$f":"IF($B957=\"N\",\"\",IF(LEN('Enrollment Form'!$AE964)=0,\"\",IF(LEN('Enrollment Form'!$AE964)<>10,\"N\",\"Y\")))","v":""},{"$f":"IF($B957=\"N\",\"\",IF(LEN('Enrollment Form'!$AF964)=0,\"\",IF(LEN('Enrollment Form'!$AF964)<>10,\"N\",\"Y\")))","v":""},{"$f":"IF('Enrollment Form'!$O964<>\"Graded\",\"-\",IF(AND('Enrollment Form'!$O964=\"Graded\",'Enrollment Form'!$AO964<>\"\"),\"Y\",\"N\"))","v":"-"},{"$f":"IF($B957=\"N\",\"\",IF(OR('Enrollment Form'!$B964<>\"Subscriber\",'Enrollment Form'!$C964=\"ROC\"),\"-\",IF(AND('Enrollment Form'!$B964=\"Subscriber\",'Enrollment Form'!$C964=\"Enroll\",'Enrollment Form'!$AJ964<>\"\"),\"Y\",\"N\")))","v":""},{"$f":"IF($B957=\"N\",\"\",IF(OR('Enrollment Form'!$B964<>\"Subscriber\",'Enrollment Form'!$C964=\"ROC\"),\"-\",IF(AND('Enrollment Form'!$B964=\"Subscriber\",'Enrollment Form'!$C964=\"Enroll\",'Enrollment Form'!$AK964<>\"\"),\"Y\",\"N\")))","v":""},{"$f":"IF($B957=\"N\",\"\",IF(OR('Enrollment Form'!$B964<>\"Subscriber\",'Enrollment Form'!$C964=\"ROC\"),\"-\",IF(AND('Enrollment Form'!$B964=\"Subscriber\",'Enrollment Form'!$C964=\"Enroll\",'Enrollment Form'!$AL964<>\"\"),\"Y\",\"N\")))","v":""},{"$f":"IF($B957=\"N\",\"\",IF(OR('Enrollment Form'!$B964<>\"Subscriber\",'Enrollment Form'!$C964=\"ROC\"),\"-\",IF(AND('Enrollment Form'!$B964=\"Subscriber\",'Enrollment Form'!$C964=\"Enroll\",'Enrollment Form'!$AM964<>\"\"),\"Y\",\"N\")))","v":""},{"$f":"IF($B957=\"N\",\"\",IF(OR('Enrollment Form'!$B964<>\"Subscriber\",'Enrollment Form'!$C964=\"ROC\"),\"-\",IF(AND('Enrollment Form'!$B964=\"Subscriber\",'Enrollment Form'!$C964=\"Enroll\",'Enrollment Form'!$AN964<>\"\"),\"Y\",\"N\")))","v":""},{"$f":"IF($B957=\"N\",\"\",IF(OR('Enrollment Form'!$B964<>\"Subscriber\",'Enrollment Form'!$C964=\"ROC\"),\"-\",IF(AND('Enrollment Form'!$B964=\"Subscriber\",'Enrollment Form'!$C964=\"Enroll\",'Enrollment Form'!$AP964<>\"\"),\"Y\",\"N\")))","v":""},{"$f":"IF($B957=\"N\",\"\",IF($Q957=\"-\",\"-\",IF(AND($Q957=\"Y\",'Enrollment Form'!$AP964=\"No\"),\"-\",IF(AND($Q957=\"Y\",'Enrollment Form'!$AP964=\"Yes\",'Enrollment Form'!$AQ964<>\"\"),\"Y\",\"N\"))))","v":""},{"$f":"IF($B957=\"N\",\"\",IF(OR('Enrollment Form'!$B964<>\"Subscriber\",'Enrollment Form'!$C964=\"ROC\"),\"-\",IF(AND('Enrollment Form'!$B964=\"Subscriber\",'Enrollment Form'!$C964=\"Enroll\",'Enrollment Form'!$CO964<>\"\"),\"Y\",\"N\")))","v":""},{"$f":"IF($B957=\"N\",\"\",IF($S957=\"-\",\"-\",IF(AND($S957=\"Y\",'Enrollment Form'!$CO964=\"No\"),\"-\",IF(AND($S957=\"Y\",'Enrollment Form'!$CO964=\"Yes\",'Enrollment Form'!$CP964<>\"\"),\"Y\",\"N\"))))","v":""},{"$f":"IF(OR('Enrollment Form'!$AV964=\"Yes\",'Enrollment Form'!$AV964=\"\"),\"-\",IF(AND('Enrollment Form'!$AV964=\"No\",ISERROR(FIND(\"HMO\",VLOOKUP('Enrollment Form'!G964,'Enrollment Form'!H$11:J$1000,3,FALSE),1))=FALSE,COUNTA('Enrollment Form'!$AW964:$AZ964)=4),\"Y\",\"N\"))","v":"-"},{"$f":"IF($B957=\"N\",\"\",IF('Enrollment Form'!$B964=\"Subscriber\",\"-\",IF(COUNTA('Enrollment Form'!$BE964,'Enrollment Form'!$BG964)=2,\"Y\",\"N\")))","v":""},{"$f":"IF($B957=\"N\",\"\",IF(OR('Enrollment Form'!$AU964=\"\",'Enrollment Form'!$AU964=\"No\"),\"-\",IF(AND('Enrollment Form'!$AU964=\"Yes\",COUNTA('Enrollment Form'!$CK964)=1),\"Y\",\"N\")))","v":""},{"$f":"IF(OR('Enrollment Form'!$CK964=\"\",'Enrollment Form'!$CK964=\"No\"),\"-\",IF(COUNTA('Enrollment Form'!$CM964:$CN964)=2,\"Y\",\"N\"))","v":"-"},{"$f":"IF($B957=\"N\",\"\",IF(COUNTIF('Enrollment Form'!$CZ964:$DO964,\"Other\")=COUNTA('Enrollment Form'!$DF964,'Enrollment Form'!$DA964,'Enrollment Form'!$DK964,'Enrollment Form'!$DP964),\"Y\",\"N\"))","v":""},{"$f":"IF($B957=\"N\",\"\",IF(OR('Enrollment Form'!B964<>\"Subscriber\",'Enrollment Form'!C964=\"ROC\",COUNTIF('Enrollment Form'!AS964:AT964,\"Yes\")>=1),\"-\",IF(AND('Enrollment Form'!C964=\"Enroll\",COUNTIF('Enrollment Form'!AS964:AT964,\"No\")=2,'Enrollment Form'!AU964=\"\"),\"N\",\"Y\")))","v":""},{"$f":"IF(OR(B957=\"N\",'Enrollment Form'!B964<>\"Subscriber\",'Enrollment Form'!C964=\"ROC\",'Enrollment Form'!O964<>\"Multiple of Salary\"),\"-\",IF(COUNTA('Enrollment Form'!T964:U964)<2,\"N\",\"Y\"))","v":"-"},{"$f":"IF(B957=\"N\",\"\",IF(OR('Enrollment Form'!C964=\"ROC\",'Enrollment Form'!B964<>\"Subscriber\",'Enrollment Form'!O964=\"Waive\",'Enrollment Form'!O964=\"\"),\"-\",IF('Enrollment Form'!P964=\"\",\"N\",\"Y\")))","v":""},{"$f":"IF($B957=\"N\",\"\",IF(AND('Enrollment Form'!$C964=\"ROC\",'Enrollment Form'!$DS964<>\"\"),\"Y\",IF(AND('Enrollment Form'!$C964=\"ROC\",'Enrollment Form'!$DS964=\"\"),\"N\",IF(AND('Enrollment Form'!$C964=\"Enroll\",'Enrollment Form'!$B964=\"Subscriber\",'Enrollment Form'!$CQ964=\"No\",'Enrollment Form'!$DS964=\"\"),\"N\",IF(AND('Enrollment Form'!$C964=\"Enroll\",'Enrollment Form'!$B964=\"Subscriber\",'Enrollment Form'!$CQ964=\"Yes\"),\"-\",\"Y\")))))","v":""},{"$f":"IF($B957=\"N\",\"\",IF(AND('Enrollment Form'!$C964=\"ROC\",'Enrollment Form'!$DT964<>\"\"),\"Y\",IF(AND('Enrollment Form'!$C964=\"ROC\",'Enrollment Form'!$DT964=\"\"),\"N\",IF(AND('Enrollment Form'!$C964=\"Enroll\",'Enrollment Form'!$B964=\"Subscriber\",'Enrollment Form'!$CQ964=\"No\",'Enrollment Form'!$DT964=\"\"),\"N\",IF(AND('Enrollment Form'!$C964=\"Enroll\",'Enrollment Form'!$B964=\"Subscriber\",'Enrollment Form'!$CQ964=\"Yes\"),\"-\",\"Y\")))))","v":""},{"$f":"IF('Enrollment Form'!AH964=\"\",\"\",IF(ISERROR(SEARCH(\".\",'Enrollment Form'!AH964,SEARCH(\"@\",'Enrollment Form'!AH964))),\"N\",\"Y\"))","v":""},{"$f":"IF(OR($B957=\"N\",'Enrollment Form'!$G964=\"\"),\"\",IF('Enrollment Form'!$B964<>\"Subscriber\",\"-\",IF(COUNTIF('Enrollment Form'!$AS964:$AT964,\"Yes\")=2,\"N\",\"Y\")))","v":""},{"$f":"IF(OR('Enrollment Form'!$CC964=\"\",'Enrollment Form'!$CC964=\"No\"),\"-\",IF(AND('Enrollment Form'!$CC964=\"Yes\",'Enrollment Form'!$CD964=\"\"),\"N\",\"Y\"))","v":"-"},{"$f":"IF(OR('Enrollment Form'!$CE964=\"\",'Enrollment Form'!$CE964=\"No\"),\"-\",IF(AND('Enrollment Form'!$CE964=\"Yes\",'Enrollment Form'!$CF964=\"\"),\"N\",\"Y\"))","v":"-"},{"$f":"IF(OR('Enrollment Form'!$CG964=\"\",'Enrollment Form'!$CG964=\"No\"),\"-\",IF(AND('Enrollment Form'!$CG964=\"Yes\",'Enrollment Form'!$CH964=\"\"),\"N\",\"Y\"))","v":"-"},{"$f":"IF(OR('Enrollment Form'!$CG964=\"\",'Enrollment Form'!$CG964=\"No\"),\"-\",IF(AND('Enrollment Form'!$CG964=\"Yes\",'Enrollment Form'!$CI964=\"\"),\"N\",\"Y\"))","v":"-"},{"$f":"IF('Enrollment Form'!B964<>\"Subscriber\",\"-\",IF(AND('Enrollment Form'!B964=\"Subscriber\",'Enrollment Form'!C964=\"Enroll\",'Enrollment Form'!AA964=\"\"),\"N\",\"Y\"))","v":"-"},{"$f":"IF(OR('Enrollment Form'!B964=\"Subscriber\",'Enrollment Form'!B964=\"\"),\"-\",IF('Enrollment Form'!BI964=\"\",\"N\",\"Y\"))","v":"-"},{"$f":"IF('Enrollment Form'!B964<>\"Subscriber\",\"-\",IF(AND('Enrollment Form'!B964=\"Subscriber\",'Enrollment Form'!G964=\"\"),\"N\",\"Y\"))","v":"-"},{"$f":"IF('Enrollment Form'!A964=\"\",\"\",IF('Enrollment Form'!B964=\"Subscriber\",\"-\",IF(AND('Enrollment Form'!B964<>\"Subscriber\",'Enrollment Form'!G964='Enrollment Form'!H964),\"N\",\"Y\")))","v":""},0]
[965,{"$f":"IF('Enrollment Form'!$A965<>\"\",\"Y\",\"N\")","v":"N"},{"$f":"IF(AND('Enrollment Form'!$B965=\"\",'Enrollment Form'!$C965<>\"\"),\"N\",IF($B958=\"N\",\"\",\"Y\"))","v":""},{"$f":"IF(OR($B958=\"N\",'Enrollment Form'!G965=\"\"),\"\",IF('Enrollment Form'!$B965<>\"Subscriber\",\"\",IF('Enrollment Form'!$G965='Enrollment Form'!$H965,\"Y\",\"N\")))","v":""},{"$f":"IF($B958=\"N\",\"\",IF(AND(COUNTIFS('Enrollment Form'!$H$11:$H$1000,'Enrollment Form'!$H965,'Enrollment Form'!$B$11:$B$1000,'Enrollment Form'!$B965)>1,'Enrollment Form'!$H965<>\"\"),\"N\",\"Y\"))","v":""},{"$f":"IF($B958=\"N\",\"\",IF(LEN('Enrollment Form'!$Y965)=0,\"\",IF(LEN('Enrollment Form'!$Y965)<>5,\"N\",\"Y\")))","v":""},{"$f":"IF($B958=\"N\",\"\",IF(LEN('Enrollment Form'!$AD965=0),\"\",IF(LEN('Enrollment Form'!$AD965)<>5,\"N\",\"Y\")))","v":""},{"$f":"IF($B958=\"N\",\"\",IF(LEN('Enrollment Form'!$BL965=0),\"\",IF(LEN('Enrollment Form'!$BL965)<>5,\"N\",\"Y\")))","v":""},{"$f":"IF($B958=\"N\",\"\",IF(LEN('Enrollment Form'!$AE965)=0,\"\",IF(LEN('Enrollment Form'!$AE965)<>10,\"N\",\"Y\")))","v":""},{"$f":"IF($B958=\"N\",\"\",IF(LEN('Enrollment Form'!$AF965)=0,\"\",IF(LEN('Enrollment Form'!$AF965)<>10,\"N\",\"Y\")))","v":""},{"$f":"IF('Enrollment Form'!$O965<>\"Graded\",\"-\",IF(AND('Enrollment Form'!$O965=\"Graded\",'Enrollment Form'!$AO965<>\"\"),\"Y\",\"N\"))","v":"-"},{"$f":"IF($B958=\"N\",\"\",IF(OR('Enrollment Form'!$B965<>\"Subscriber\",'Enrollment Form'!$C965=\"ROC\"),\"-\",IF(AND('Enrollment Form'!$B965=\"Subscriber\",'Enrollment Form'!$C965=\"Enroll\",'Enrollment Form'!$AJ965<>\"\"),\"Y\",\"N\")))","v":""},{"$f":"IF($B958=\"N\",\"\",IF(OR('Enrollment Form'!$B965<>\"Subscriber\",'Enrollment Form'!$C965=\"ROC\"),\"-\",IF(AND('Enrollment Form'!$B965=\"Subscriber\",'Enrollment Form'!$C965=\"Enroll\",'Enrollment Form'!$AK965<>\"\"),\"Y\",\"N\")))","v":""},{"$f":"IF($B958=\"N\",\"\",IF(OR('Enrollment Form'!$B965<>\"Subscriber\",'Enrollment Form'!$C965=\"ROC\"),\"-\",IF(AND('Enrollment Form'!$B965=\"Subscriber\",'Enrollment Form'!$C965=\"Enroll\",'Enrollment Form'!$AL965<>\"\"),\"Y\",\"N\")))","v":""},{"$f":"IF($B958=\"N\",\"\",IF(OR('Enrollment Form'!$B965<>\"Subscriber\",'Enrollment Form'!$C965=\"ROC\"),\"-\",IF(AND('Enrollment Form'!$B965=\"Subscriber\",'Enrollment Form'!$C965=\"Enroll\",'Enrollment Form'!$AM965<>\"\"),\"Y\",\"N\")))","v":""},{"$f":"IF($B958=\"N\",\"\",IF(OR('Enrollment Form'!$B965<>\"Subscriber\",'Enrollment Form'!$C965=\"ROC\"),\"-\",IF(AND('Enrollment Form'!$B965=\"Subscriber\",'Enrollment Form'!$C965=\"Enroll\",'Enrollment Form'!$AN965<>\"\"),\"Y\",\"N\")))","v":""},{"$f":"IF($B958=\"N\",\"\",IF(OR('Enrollment Form'!$B965<>\"Subscriber\",'Enrollment Form'!$C965=\"ROC\"),\"-\",IF(AND('Enrollment Form'!$B965=\"Subscriber\",'Enrollment Form'!$C965=\"Enroll\",'Enrollment Form'!$AP965<>\"\"),\"Y\",\"N\")))","v":""},{"$f":"IF($B958=\"N\",\"\",IF($Q958=\"-\",\"-\",IF(AND($Q958=\"Y\",'Enrollment Form'!$AP965=\"No\"),\"-\",IF(AND($Q958=\"Y\",'Enrollment Form'!$AP965=\"Yes\",'Enrollment Form'!$AQ965<>\"\"),\"Y\",\"N\"))))","v":""},{"$f":"IF($B958=\"N\",\"\",IF(OR('Enrollment Form'!$B965<>\"Subscriber\",'Enrollment Form'!$C965=\"ROC\"),\"-\",IF(AND('Enrollment Form'!$B965=\"Subscriber\",'Enrollment Form'!$C965=\"Enroll\",'Enrollment Form'!$CO965<>\"\"),\"Y\",\"N\")))","v":""},{"$f":"IF($B958=\"N\",\"\",IF($S958=\"-\",\"-\",IF(AND($S958=\"Y\",'Enrollment Form'!$CO965=\"No\"),\"-\",IF(AND($S958=\"Y\",'Enrollment Form'!$CO965=\"Yes\",'Enrollment Form'!$CP965<>\"\"),\"Y\",\"N\"))))","v":""},{"$f":"IF(OR('Enrollment Form'!$AV965=\"Yes\",'Enrollment Form'!$AV965=\"\"),\"-\",IF(AND('Enrollment Form'!$AV965=\"No\",ISERROR(FIND(\"HMO\",VLOOKUP('Enrollment Form'!G965,'Enrollment Form'!H$11:J$1000,3,FALSE),1))=FALSE,COUNTA('Enrollment Form'!$AW965:$AZ965)=4),\"Y\",\"N\"))","v":"-"},{"$f":"IF($B958=\"N\",\"\",IF('Enrollment Form'!$B965=\"Subscriber\",\"-\",IF(COUNTA('Enrollment Form'!$BE965,'Enrollment Form'!$BG965)=2,\"Y\",\"N\")))","v":""},{"$f":"IF($B958=\"N\",\"\",IF(OR('Enrollment Form'!$AU965=\"\",'Enrollment Form'!$AU965=\"No\"),\"-\",IF(AND('Enrollment Form'!$AU965=\"Yes\",COUNTA('Enrollment Form'!$CK965)=1),\"Y\",\"N\")))","v":""},{"$f":"IF(OR('Enrollment Form'!$CK965=\"\",'Enrollment Form'!$CK965=\"No\"),\"-\",IF(COUNTA('Enrollment Form'!$CM965:$CN965)=2,\"Y\",\"N\"))","v":"-"},{"$f":"IF($B958=\"N\",\"\",IF(COUNTIF('Enrollment Form'!$CZ965:$DO965,\"Other\")=COUNTA('Enrollment Form'!$DF965,'Enrollment Form'!$DA965,'Enrollment Form'!$DK965,'Enrollment Form'!$DP965),\"Y\",\"N\"))","v":""},{"$f":"IF($B958=\"N\",\"\",IF(OR('Enrollment Form'!B965<>\"Subscriber\",'Enrollment Form'!C965=\"ROC\",COUNTIF('Enrollment Form'!AS965:AT965,\"Yes\")>=1),\"-\",IF(AND('Enrollment Form'!C965=\"Enroll\",COUNTIF('Enrollment Form'!AS965:AT965,\"No\")=2,'Enrollment Form'!AU965=\"\"),\"N\",\"Y\")))","v":""},{"$f":"IF(OR(B958=\"N\",'Enrollment Form'!B965<>\"Subscriber\",'Enrollment Form'!C965=\"ROC\",'Enrollment Form'!O965<>\"Multiple of Salary\"),\"-\",IF(COUNTA('Enrollment Form'!T965:U965)<2,\"N\",\"Y\"))","v":"-"},{"$f":"IF(B958=\"N\",\"\",IF(OR('Enrollment Form'!C965=\"ROC\",'Enrollment Form'!B965<>\"Subscriber\",'Enrollment Form'!O965=\"Waive\",'Enrollment Form'!O965=\"\"),\"-\",IF('Enrollment Form'!P965=\"\",\"N\",\"Y\")))","v":""},{"$f":"IF($B958=\"N\",\"\",IF(AND('Enrollment Form'!$C965=\"ROC\",'Enrollment Form'!$DS965<>\"\"),\"Y\",IF(AND('Enrollment Form'!$C965=\"ROC\",'Enrollment Form'!$DS965=\"\"),\"N\",IF(AND('Enrollment Form'!$C965=\"Enroll\",'Enrollment Form'!$B965=\"Subscriber\",'Enrollment Form'!$CQ965=\"No\",'Enrollment Form'!$DS965=\"\"),\"N\",IF(AND('Enrollment Form'!$C965=\"Enroll\",'Enrollment Form'!$B965=\"Subscriber\",'Enrollment Form'!$CQ965=\"Yes\"),\"-\",\"Y\")))))","v":""},{"$f":"IF($B958=\"N\",\"\",IF(AND('Enrollment Form'!$C965=\"ROC\",'Enrollment Form'!$DT965<>\"\"),\"Y\",IF(AND('Enrollment Form'!$C965=\"ROC\",'Enrollment Form'!$DT965=\"\"),\"N\",IF(AND('Enrollment Form'!$C965=\"Enroll\",'Enrollment Form'!$B965=\"Subscriber\",'Enrollment Form'!$CQ965=\"No\",'Enrollment Form'!$DT965=\"\"),\"N\",IF(AND('Enrollment Form'!$C965=\"Enroll\",'Enrollment Form'!$B965=\"Subscriber\",'Enrollment Form'!$CQ965=\"Yes\"),\"-\",\"Y\")))))","v":""},{"$f":"IF('Enrollment Form'!AH965=\"\",\"\",IF(ISERROR(SEARCH(\".\",'Enrollment Form'!AH965,SEARCH(\"@\",'Enrollment Form'!AH965))),\"N\",\"Y\"))","v":""},{"$f":"IF(OR($B958=\"N\",'Enrollment Form'!$G965=\"\"),\"\",IF('Enrollment Form'!$B965<>\"Subscriber\",\"-\",IF(COUNTIF('Enrollment Form'!$AS965:$AT965,\"Yes\")=2,\"N\",\"Y\")))","v":""},{"$f":"IF(OR('Enrollment Form'!$CC965=\"\",'Enrollment Form'!$CC965=\"No\"),\"-\",IF(AND('Enrollment Form'!$CC965=\"Yes\",'Enrollment Form'!$CD965=\"\"),\"N\",\"Y\"))","v":"-"},{"$f":"IF(OR('Enrollment Form'!$CE965=\"\",'Enrollment Form'!$CE965=\"No\"),\"-\",IF(AND('Enrollment Form'!$CE965=\"Yes\",'Enrollment Form'!$CF965=\"\"),\"N\",\"Y\"))","v":"-"},{"$f":"IF(OR('Enrollment Form'!$CG965=\"\",'Enrollment Form'!$CG965=\"No\"),\"-\",IF(AND('Enrollment Form'!$CG965=\"Yes\",'Enrollment Form'!$CH965=\"\"),\"N\",\"Y\"))","v":"-"},{"$f":"IF(OR('Enrollment Form'!$CG965=\"\",'Enrollment Form'!$CG965=\"No\"),\"-\",IF(AND('Enrollment Form'!$CG965=\"Yes\",'Enrollment Form'!$CI965=\"\"),\"N\",\"Y\"))","v":"-"},{"$f":"IF('Enrollment Form'!B965<>\"Subscriber\",\"-\",IF(AND('Enrollment Form'!B965=\"Subscriber\",'Enrollment Form'!C965=\"Enroll\",'Enrollment Form'!AA965=\"\"),\"N\",\"Y\"))","v":"-"},{"$f":"IF(OR('Enrollment Form'!B965=\"Subscriber\",'Enrollment Form'!B965=\"\"),\"-\",IF('Enrollment Form'!BI965=\"\",\"N\",\"Y\"))","v":"-"},{"$f":"IF('Enrollment Form'!B965<>\"Subscriber\",\"-\",IF(AND('Enrollment Form'!B965=\"Subscriber\",'Enrollment Form'!G965=\"\"),\"N\",\"Y\"))","v":"-"},{"$f":"IF('Enrollment Form'!A965=\"\",\"\",IF('Enrollment Form'!B965=\"Subscriber\",\"-\",IF(AND('Enrollment Form'!B965<>\"Subscriber\",'Enrollment Form'!G965='Enrollment Form'!H965),\"N\",\"Y\")))","v":""},0]
[966,{"$f":"IF('Enrollment Form'!$A966<>\"\",\"Y\",\"N\")","v":"N"},{"$f":"IF(AND('Enrollment Form'!$B966=\"\",'Enrollment Form'!$C966<>\"\"),\"N\",IF($B959=\"N\",\"\",\"Y\"))","v":""},{"$f":"IF(OR($B959=\"N\",'Enrollment Form'!G966=\"\"),\"\",IF('Enrollment Form'!$B966<>\"Subscriber\",\"\",IF('Enrollment Form'!$G966='Enrollment Form'!$H966,\"Y\",\"N\")))","v":""},{"$f":"IF($B959=\"N\",\"\",IF(AND(COUNTIFS('Enrollment Form'!$H$11:$H$1000,'Enrollment Form'!$H966,'Enrollment Form'!$B$11:$B$1000,'Enrollment Form'!$B966)>1,'Enrollment Form'!$H966<>\"\"),\"N\",\"Y\"))","v":""},{"$f":"IF($B959=\"N\",\"\",IF(LEN('Enrollment Form'!$Y966)=0,\"\",IF(LEN('Enrollment Form'!$Y966)<>5,\"N\",\"Y\")))","v":""},{"$f":"IF($B959=\"N\",\"\",IF(LEN('Enrollment Form'!$AD966=0),\"\",IF(LEN('Enrollment Form'!$AD966)<>5,\"N\",\"Y\")))","v":""},{"$f":"IF($B959=\"N\",\"\",IF(LEN('Enrollment Form'!$BL966=0),\"\",IF(LEN('Enrollment Form'!$BL966)<>5,\"N\",\"Y\")))","v":""},{"$f":"IF($B959=\"N\",\"\",IF(LEN('Enrollment Form'!$AE966)=0,\"\",IF(LEN('Enrollment Form'!$AE966)<>10,\"N\",\"Y\")))","v":""},{"$f":"IF($B959=\"N\",\"\",IF(LEN('Enrollment Form'!$AF966)=0,\"\",IF(LEN('Enrollment Form'!$AF966)<>10,\"N\",\"Y\")))","v":""},{"$f":"IF('Enrollment Form'!$O966<>\"Graded\",\"-\",IF(AND('Enrollment Form'!$O966=\"Graded\",'Enrollment Form'!$AO966<>\"\"),\"Y\",\"N\"))","v":"-"},{"$f":"IF($B959=\"N\",\"\",IF(OR('Enrollment Form'!$B966<>\"Subscriber\",'Enrollment Form'!$C966=\"ROC\"),\"-\",IF(AND('Enrollment Form'!$B966=\"Subscriber\",'Enrollment Form'!$C966=\"Enroll\",'Enrollment Form'!$AJ966<>\"\"),\"Y\",\"N\")))","v":""},{"$f":"IF($B959=\"N\",\"\",IF(OR('Enrollment Form'!$B966<>\"Subscriber\",'Enrollment Form'!$C966=\"ROC\"),\"-\",IF(AND('Enrollment Form'!$B966=\"Subscriber\",'Enrollment Form'!$C966=\"Enroll\",'Enrollment Form'!$AK966<>\"\"),\"Y\",\"N\")))","v":""},{"$f":"IF($B959=\"N\",\"\",IF(OR('Enrollment Form'!$B966<>\"Subscriber\",'Enrollment Form'!$C966=\"ROC\"),\"-\",IF(AND('Enrollment Form'!$B966=\"Subscriber\",'Enrollment Form'!$C966=\"Enroll\",'Enrollment Form'!$AL966<>\"\"),\"Y\",\"N\")))","v":""},{"$f":"IF($B959=\"N\",\"\",IF(OR('Enrollment Form'!$B966<>\"Subscriber\",'Enrollment Form'!$C966=\"ROC\"),\"-\",IF(AND('Enrollment Form'!$B966=\"Subscriber\",'Enrollment Form'!$C966=\"Enroll\",'Enrollment Form'!$AM966<>\"\"),\"Y\",\"N\")))","v":""},{"$f":"IF($B959=\"N\",\"\",IF(OR('Enrollment Form'!$B966<>\"Subscriber\",'Enrollment Form'!$C966=\"ROC\"),\"-\",IF(AND('Enrollment Form'!$B966=\"Subscriber\",'Enrollment Form'!$C966=\"Enroll\",'Enrollment Form'!$AN966<>\"\"),\"Y\",\"N\")))","v":""},{"$f":"IF($B959=\"N\",\"\",IF(OR('Enrollment Form'!$B966<>\"Subscriber\",'Enrollment Form'!$C966=\"ROC\"),\"-\",IF(AND('Enrollment Form'!$B966=\"Subscriber\",'Enrollment Form'!$C966=\"Enroll\",'Enrollment Form'!$AP966<>\"\"),\"Y\",\"N\")))","v":""},{"$f":"IF($B959=\"N\",\"\",IF($Q959=\"-\",\"-\",IF(AND($Q959=\"Y\",'Enrollment Form'!$AP966=\"No\"),\"-\",IF(AND($Q959=\"Y\",'Enrollment Form'!$AP966=\"Yes\",'Enrollment Form'!$AQ966<>\"\"),\"Y\",\"N\"))))","v":""},{"$f":"IF($B959=\"N\",\"\",IF(OR('Enrollment Form'!$B966<>\"Subscriber\",'Enrollment Form'!$C966=\"ROC\"),\"-\",IF(AND('Enrollment Form'!$B966=\"Subscriber\",'Enrollment Form'!$C966=\"Enroll\",'Enrollment Form'!$CO966<>\"\"),\"Y\",\"N\")))","v":""},{"$f":"IF($B959=\"N\",\"\",IF($S959=\"-\",\"-\",IF(AND($S959=\"Y\",'Enrollment Form'!$CO966=\"No\"),\"-\",IF(AND($S959=\"Y\",'Enrollment Form'!$CO966=\"Yes\",'Enrollment Form'!$CP966<>\"\"),\"Y\",\"N\"))))","v":""},{"$f":"IF(OR('Enrollment Form'!$AV966=\"Yes\",'Enrollment Form'!$AV966=\"\"),\"-\",IF(AND('Enrollment Form'!$AV966=\"No\",ISERROR(FIND(\"HMO\",VLOOKUP('Enrollment Form'!G966,'Enrollment Form'!H$11:J$1000,3,FALSE),1))=FALSE,COUNTA('Enrollment Form'!$AW966:$AZ966)=4),\"Y\",\"N\"))","v":"-"},{"$f":"IF($B959=\"N\",\"\",IF('Enrollment Form'!$B966=\"Subscriber\",\"-\",IF(COUNTA('Enrollment Form'!$BE966,'Enrollment Form'!$BG966)=2,\"Y\",\"N\")))","v":""},{"$f":"IF($B959=\"N\",\"\",IF(OR('Enrollment Form'!$AU966=\"\",'Enrollment Form'!$AU966=\"No\"),\"-\",IF(AND('Enrollment Form'!$AU966=\"Yes\",COUNTA('Enrollment Form'!$CK966)=1),\"Y\",\"N\")))","v":""},{"$f":"IF(OR('Enrollment Form'!$CK966=\"\",'Enrollment Form'!$CK966=\"No\"),\"-\",IF(COUNTA('Enrollment Form'!$CM966:$CN966)=2,\"Y\",\"N\"))","v":"-"},{"$f":"IF($B959=\"N\",\"\",IF(COUNTIF('Enrollment Form'!$CZ966:$DO966,\"Other\")=COUNTA('Enrollment Form'!$DF966,'Enrollment Form'!$DA966,'Enrollment Form'!$DK966,'Enrollment Form'!$DP966),\"Y\",\"N\"))","v":""},{"$f":"IF($B959=\"N\",\"\",IF(OR('Enrollment Form'!B966<>\"Subscriber\",'Enrollment Form'!C966=\"ROC\",COUNTIF('Enrollment Form'!AS966:AT966,\"Yes\")>=1),\"-\",IF(AND('Enrollment Form'!C966=\"Enroll\",COUNTIF('Enrollment Form'!AS966:AT966,\"No\")=2,'Enrollment Form'!AU966=\"\"),\"N\",\"Y\")))","v":""},{"$f":"IF(OR(B959=\"N\",'Enrollment Form'!B966<>\"Subscriber\",'Enrollment Form'!C966=\"ROC\",'Enrollment Form'!O966<>\"Multiple of Salary\"),\"-\",IF(COUNTA('Enrollment Form'!T966:U966)<2,\"N\",\"Y\"))","v":"-"},{"$f":"IF(B959=\"N\",\"\",IF(OR('Enrollment Form'!C966=\"ROC\",'Enrollment Form'!B966<>\"Subscriber\",'Enrollment Form'!O966=\"Waive\",'Enrollment Form'!O966=\"\"),\"-\",IF('Enrollment Form'!P966=\"\",\"N\",\"Y\")))","v":""},{"$f":"IF($B959=\"N\",\"\",IF(AND('Enrollment Form'!$C966=\"ROC\",'Enrollment Form'!$DS966<>\"\"),\"Y\",IF(AND('Enrollment Form'!$C966=\"ROC\",'Enrollment Form'!$DS966=\"\"),\"N\",IF(AND('Enrollment Form'!$C966=\"Enroll\",'Enrollment Form'!$B966=\"Subscriber\",'Enrollment Form'!$CQ966=\"No\",'Enrollment Form'!$DS966=\"\"),\"N\",IF(AND('Enrollment Form'!$C966=\"Enroll\",'Enrollment Form'!$B966=\"Subscriber\",'Enrollment Form'!$CQ966=\"Yes\"),\"-\",\"Y\")))))","v":""},{"$f":"IF($B959=\"N\",\"\",IF(AND('Enrollment Form'!$C966=\"ROC\",'Enrollment Form'!$DT966<>\"\"),\"Y\",IF(AND('Enrollment Form'!$C966=\"ROC\",'Enrollment Form'!$DT966=\"\"),\"N\",IF(AND('Enrollment Form'!$C966=\"Enroll\",'Enrollment Form'!$B966=\"Subscriber\",'Enrollment Form'!$CQ966=\"No\",'Enrollment Form'!$DT966=\"\"),\"N\",IF(AND('Enrollment Form'!$C966=\"Enroll\",'Enrollment Form'!$B966=\"Subscriber\",'Enrollment Form'!$CQ966=\"Yes\"),\"-\",\"Y\")))))","v":""},{"$f":"IF('Enrollment Form'!AH966=\"\",\"\",IF(ISERROR(SEARCH(\".\",'Enrollment Form'!AH966,SEARCH(\"@\",'Enrollment Form'!AH966))),\"N\",\"Y\"))","v":""},{"$f":"IF(OR($B959=\"N\",'Enrollment Form'!$G966=\"\"),\"\",IF('Enrollment Form'!$B966<>\"Subscriber\",\"-\",IF(COUNTIF('Enrollment Form'!$AS966:$AT966,\"Yes\")=2,\"N\",\"Y\")))","v":""},{"$f":"IF(OR('Enrollment Form'!$CC966=\"\",'Enrollment Form'!$CC966=\"No\"),\"-\",IF(AND('Enrollment Form'!$CC966=\"Yes\",'Enrollment Form'!$CD966=\"\"),\"N\",\"Y\"))","v":"-"},{"$f":"IF(OR('Enrollment Form'!$CE966=\"\",'Enrollment Form'!$CE966=\"No\"),\"-\",IF(AND('Enrollment Form'!$CE966=\"Yes\",'Enrollment Form'!$CF966=\"\"),\"N\",\"Y\"))","v":"-"},{"$f":"IF(OR('Enrollment Form'!$CG966=\"\",'Enrollment Form'!$CG966=\"No\"),\"-\",IF(AND('Enrollment Form'!$CG966=\"Yes\",'Enrollment Form'!$CH966=\"\"),\"N\",\"Y\"))","v":"-"},{"$f":"IF(OR('Enrollment Form'!$CG966=\"\",'Enrollment Form'!$CG966=\"No\"),\"-\",IF(AND('Enrollment Form'!$CG966=\"Yes\",'Enrollment Form'!$CI966=\"\"),\"N\",\"Y\"))","v":"-"},{"$f":"IF('Enrollment Form'!B966<>\"Subscriber\",\"-\",IF(AND('Enrollment Form'!B966=\"Subscriber\",'Enrollment Form'!C966=\"Enroll\",'Enrollment Form'!AA966=\"\"),\"N\",\"Y\"))","v":"-"},{"$f":"IF(OR('Enrollment Form'!B966=\"Subscriber\",'Enrollment Form'!B966=\"\"),\"-\",IF('Enrollment Form'!BI966=\"\",\"N\",\"Y\"))","v":"-"},{"$f":"IF('Enrollment Form'!B966<>\"Subscriber\",\"-\",IF(AND('Enrollment Form'!B966=\"Subscriber\",'Enrollment Form'!G966=\"\"),\"N\",\"Y\"))","v":"-"},{"$f":"IF('Enrollment Form'!A966=\"\",\"\",IF('Enrollment Form'!B966=\"Subscriber\",\"-\",IF(AND('Enrollment Form'!B966<>\"Subscriber\",'Enrollment Form'!G966='Enrollment Form'!H966),\"N\",\"Y\")))","v":""},0]
[967,{"$f":"IF('Enrollment Form'!$A967<>\"\",\"Y\",\"N\")","v":"N"},{"$f":"IF(AND('Enrollment Form'!$B967=\"\",'Enrollment Form'!$C967<>\"\"),\"N\",IF($B960=\"N\",\"\",\"Y\"))","v":""},{"$f":"IF(OR($B960=\"N\",'Enrollment Form'!G967=\"\"),\"\",IF('Enrollment Form'!$B967<>\"Subscriber\",\"\",IF('Enrollment Form'!$G967='Enrollment Form'!$H967,\"Y\",\"N\")))","v":""},{"$f":"IF($B960=\"N\",\"\",IF(AND(COUNTIFS('Enrollment Form'!$H$11:$H$1000,'Enrollment Form'!$H967,'Enrollment Form'!$B$11:$B$1000,'Enrollment Form'!$B967)>1,'Enrollment Form'!$H967<>\"\"),\"N\",\"Y\"))","v":""},{"$f":"IF($B960=\"N\",\"\",IF(LEN('Enrollment Form'!$Y967)=0,\"\",IF(LEN('Enrollment Form'!$Y967)<>5,\"N\",\"Y\")))","v":""},{"$f":"IF($B960=\"N\",\"\",IF(LEN('Enrollment Form'!$AD967=0),\"\",IF(LEN('Enrollment Form'!$AD967)<>5,\"N\",\"Y\")))","v":""},{"$f":"IF($B960=\"N\",\"\",IF(LEN('Enrollment Form'!$BL967=0),\"\",IF(LEN('Enrollment Form'!$BL967)<>5,\"N\",\"Y\")))","v":""},{"$f":"IF($B960=\"N\",\"\",IF(LEN('Enrollment Form'!$AE967)=0,\"\",IF(LEN('Enrollment Form'!$AE967)<>10,\"N\",\"Y\")))","v":""},{"$f":"IF($B960=\"N\",\"\",IF(LEN('Enrollment Form'!$AF967)=0,\"\",IF(LEN('Enrollment Form'!$AF967)<>10,\"N\",\"Y\")))","v":""},{"$f":"IF('Enrollment Form'!$O967<>\"Graded\",\"-\",IF(AND('Enrollment Form'!$O967=\"Graded\",'Enrollment Form'!$AO967<>\"\"),\"Y\",\"N\"))","v":"-"},{"$f":"IF($B960=\"N\",\"\",IF(OR('Enrollment Form'!$B967<>\"Subscriber\",'Enrollment Form'!$C967=\"ROC\"),\"-\",IF(AND('Enrollment Form'!$B967=\"Subscriber\",'Enrollment Form'!$C967=\"Enroll\",'Enrollment Form'!$AJ967<>\"\"),\"Y\",\"N\")))","v":""},{"$f":"IF($B960=\"N\",\"\",IF(OR('Enrollment Form'!$B967<>\"Subscriber\",'Enrollment Form'!$C967=\"ROC\"),\"-\",IF(AND('Enrollment Form'!$B967=\"Subscriber\",'Enrollment Form'!$C967=\"Enroll\",'Enrollment Form'!$AK967<>\"\"),\"Y\",\"N\")))","v":""},{"$f":"IF($B960=\"N\",\"\",IF(OR('Enrollment Form'!$B967<>\"Subscriber\",'Enrollment Form'!$C967=\"ROC\"),\"-\",IF(AND('Enrollment Form'!$B967=\"Subscriber\",'Enrollment Form'!$C967=\"Enroll\",'Enrollment Form'!$AL967<>\"\"),\"Y\",\"N\")))","v":""},{"$f":"IF($B960=\"N\",\"\",IF(OR('Enrollment Form'!$B967<>\"Subscriber\",'Enrollment Form'!$C967=\"ROC\"),\"-\",IF(AND('Enrollment Form'!$B967=\"Subscriber\",'Enrollment Form'!$C967=\"Enroll\",'Enrollment Form'!$AM967<>\"\"),\"Y\",\"N\")))","v":""},{"$f":"IF($B960=\"N\",\"\",IF(OR('Enrollment Form'!$B967<>\"Subscriber\",'Enrollment Form'!$C967=\"ROC\"),\"-\",IF(AND('Enrollment Form'!$B967=\"Subscriber\",'Enrollment Form'!$C967=\"Enroll\",'Enrollment Form'!$AN967<>\"\"),\"Y\",\"N\")))","v":""},{"$f":"IF($B960=\"N\",\"\",IF(OR('Enrollment Form'!$B967<>\"Subscriber\",'Enrollment Form'!$C967=\"ROC\"),\"-\",IF(AND('Enrollment Form'!$B967=\"Subscriber\",'Enrollment Form'!$C967=\"Enroll\",'Enrollment Form'!$AP967<>\"\"),\"Y\",\"N\")))","v":""},{"$f":"IF($B960=\"N\",\"\",IF($Q960=\"-\",\"-\",IF(AND($Q960=\"Y\",'Enrollment Form'!$AP967=\"No\"),\"-\",IF(AND($Q960=\"Y\",'Enrollment Form'!$AP967=\"Yes\",'Enrollment Form'!$AQ967<>\"\"),\"Y\",\"N\"))))","v":""},{"$f":"IF($B960=\"N\",\"\",IF(OR('Enrollment Form'!$B967<>\"Subscriber\",'Enrollment Form'!$C967=\"ROC\"),\"-\",IF(AND('Enrollment Form'!$B967=\"Subscriber\",'Enrollment Form'!$C967=\"Enroll\",'Enrollment Form'!$CO967<>\"\"),\"Y\",\"N\")))","v":""},{"$f":"IF($B960=\"N\",\"\",IF($S960=\"-\",\"-\",IF(AND($S960=\"Y\",'Enrollment Form'!$CO967=\"No\"),\"-\",IF(AND($S960=\"Y\",'Enrollment Form'!$CO967=\"Yes\",'Enrollment Form'!$CP967<>\"\"),\"Y\",\"N\"))))","v":""},{"$f":"IF(OR('Enrollment Form'!$AV967=\"Yes\",'Enrollment Form'!$AV967=\"\"),\"-\",IF(AND('Enrollment Form'!$AV967=\"No\",ISERROR(FIND(\"HMO\",VLOOKUP('Enrollment Form'!G967,'Enrollment Form'!H$11:J$1000,3,FALSE),1))=FALSE,COUNTA('Enrollment Form'!$AW967:$AZ967)=4),\"Y\",\"N\"))","v":"-"},{"$f":"IF($B960=\"N\",\"\",IF('Enrollment Form'!$B967=\"Subscriber\",\"-\",IF(COUNTA('Enrollment Form'!$BE967,'Enrollment Form'!$BG967)=2,\"Y\",\"N\")))","v":""},{"$f":"IF($B960=\"N\",\"\",IF(OR('Enrollment Form'!$AU967=\"\",'Enrollment Form'!$AU967=\"No\"),\"-\",IF(AND('Enrollment Form'!$AU967=\"Yes\",COUNTA('Enrollment Form'!$CK967)=1),\"Y\",\"N\")))","v":""},{"$f":"IF(OR('Enrollment Form'!$CK967=\"\",'Enrollment Form'!$CK967=\"No\"),\"-\",IF(COUNTA('Enrollment Form'!$CM967:$CN967)=2,\"Y\",\"N\"))","v":"-"},{"$f":"IF($B960=\"N\",\"\",IF(COUNTIF('Enrollment Form'!$CZ967:$DO967,\"Other\")=COUNTA('Enrollment Form'!$DF967,'Enrollment Form'!$DA967,'Enrollment Form'!$DK967,'Enrollment Form'!$DP967),\"Y\",\"N\"))","v":""},{"$f":"IF($B960=\"N\",\"\",IF(OR('Enrollment Form'!B967<>\"Subscriber\",'Enrollment Form'!C967=\"ROC\",COUNTIF('Enrollment Form'!AS967:AT967,\"Yes\")>=1),\"-\",IF(AND('Enrollment Form'!C967=\"Enroll\",COUNTIF('Enrollment Form'!AS967:AT967,\"No\")=2,'Enrollment Form'!AU967=\"\"),\"N\",\"Y\")))","v":""},{"$f":"IF(OR(B960=\"N\",'Enrollment Form'!B967<>\"Subscriber\",'Enrollment Form'!C967=\"ROC\",'Enrollment Form'!O967<>\"Multiple of Salary\"),\"-\",IF(COUNTA('Enrollment Form'!T967:U967)<2,\"N\",\"Y\"))","v":"-"},{"$f":"IF(B960=\"N\",\"\",IF(OR('Enrollment Form'!C967=\"ROC\",'Enrollment Form'!B967<>\"Subscriber\",'Enrollment Form'!O967=\"Waive\",'Enrollment Form'!O967=\"\"),\"-\",IF('Enrollment Form'!P967=\"\",\"N\",\"Y\")))","v":""},{"$f":"IF($B960=\"N\",\"\",IF(AND('Enrollment Form'!$C967=\"ROC\",'Enrollment Form'!$DS967<>\"\"),\"Y\",IF(AND('Enrollment Form'!$C967=\"ROC\",'Enrollment Form'!$DS967=\"\"),\"N\",IF(AND('Enrollment Form'!$C967=\"Enroll\",'Enrollment Form'!$B967=\"Subscriber\",'Enrollment Form'!$CQ967=\"No\",'Enrollment Form'!$DS967=\"\"),\"N\",IF(AND('Enrollment Form'!$C967=\"Enroll\",'Enrollment Form'!$B967=\"Subscriber\",'Enrollment Form'!$CQ967=\"Yes\"),\"-\",\"Y\")))))","v":""},{"$f":"IF($B960=\"N\",\"\",IF(AND('Enrollment Form'!$C967=\"ROC\",'Enrollment Form'!$DT967<>\"\"),\"Y\",IF(AND('Enrollment Form'!$C967=\"ROC\",'Enrollment Form'!$DT967=\"\"),\"N\",IF(AND('Enrollment Form'!$C967=\"Enroll\",'Enrollment Form'!$B967=\"Subscriber\",'Enrollment Form'!$CQ967=\"No\",'Enrollment Form'!$DT967=\"\"),\"N\",IF(AND('Enrollment Form'!$C967=\"Enroll\",'Enrollment Form'!$B967=\"Subscriber\",'Enrollment Form'!$CQ967=\"Yes\"),\"-\",\"Y\")))))","v":""},{"$f":"IF('Enrollment Form'!AH967=\"\",\"\",IF(ISERROR(SEARCH(\".\",'Enrollment Form'!AH967,SEARCH(\"@\",'Enrollment Form'!AH967))),\"N\",\"Y\"))","v":""},{"$f":"IF(OR($B960=\"N\",'Enrollment Form'!$G967=\"\"),\"\",IF('Enrollment Form'!$B967<>\"Subscriber\",\"-\",IF(COUNTIF('Enrollment Form'!$AS967:$AT967,\"Yes\")=2,\"N\",\"Y\")))","v":""},{"$f":"IF(OR('Enrollment Form'!$CC967=\"\",'Enrollment Form'!$CC967=\"No\"),\"-\",IF(AND('Enrollment Form'!$CC967=\"Yes\",'Enrollment Form'!$CD967=\"\"),\"N\",\"Y\"))","v":"-"},{"$f":"IF(OR('Enrollment Form'!$CE967=\"\",'Enrollment Form'!$CE967=\"No\"),\"-\",IF(AND('Enrollment Form'!$CE967=\"Yes\",'Enrollment Form'!$CF967=\"\"),\"N\",\"Y\"))","v":"-"},{"$f":"IF(OR('Enrollment Form'!$CG967=\"\",'Enrollment Form'!$CG967=\"No\"),\"-\",IF(AND('Enrollment Form'!$CG967=\"Yes\",'Enrollment Form'!$CH967=\"\"),\"N\",\"Y\"))","v":"-"},{"$f":"IF(OR('Enrollment Form'!$CG967=\"\",'Enrollment Form'!$CG967=\"No\"),\"-\",IF(AND('Enrollment Form'!$CG967=\"Yes\",'Enrollment Form'!$CI967=\"\"),\"N\",\"Y\"))","v":"-"},{"$f":"IF('Enrollment Form'!B967<>\"Subscriber\",\"-\",IF(AND('Enrollment Form'!B967=\"Subscriber\",'Enrollment Form'!C967=\"Enroll\",'Enrollment Form'!AA967=\"\"),\"N\",\"Y\"))","v":"-"},{"$f":"IF(OR('Enrollment Form'!B967=\"Subscriber\",'Enrollment Form'!B967=\"\"),\"-\",IF('Enrollment Form'!BI967=\"\",\"N\",\"Y\"))","v":"-"},{"$f":"IF('Enrollment Form'!B967<>\"Subscriber\",\"-\",IF(AND('Enrollment Form'!B967=\"Subscriber\",'Enrollment Form'!G967=\"\"),\"N\",\"Y\"))","v":"-"},{"$f":"IF('Enrollment Form'!A967=\"\",\"\",IF('Enrollment Form'!B967=\"Subscriber\",\"-\",IF(AND('Enrollment Form'!B967<>\"Subscriber\",'Enrollment Form'!G967='Enrollment Form'!H967),\"N\",\"Y\")))","v":""},0]
[968,{"$f":"IF('Enrollment Form'!$A968<>\"\",\"Y\",\"N\")","v":"N"},{"$f":"IF(AND('Enrollment Form'!$B968=\"\",'Enrollment Form'!$C968<>\"\"),\"N\",IF($B961=\"N\",\"\",\"Y\"))","v":""},{"$f":"IF(OR($B961=\"N\",'Enrollment Form'!G968=\"\"),\"\",IF('Enrollment Form'!$B968<>\"Subscriber\",\"\",IF('Enrollment Form'!$G968='Enrollment Form'!$H968,\"Y\",\"N\")))","v":""},{"$f":"IF($B961=\"N\",\"\",IF(AND(COUNTIFS('Enrollment Form'!$H$11:$H$1000,'Enrollment Form'!$H968,'Enrollment Form'!$B$11:$B$1000,'Enrollment Form'!$B968)>1,'Enrollment Form'!$H968<>\"\"),\"N\",\"Y\"))","v":""},{"$f":"IF($B961=\"N\",\"\",IF(LEN('Enrollment Form'!$Y968)=0,\"\",IF(LEN('Enrollment Form'!$Y968)<>5,\"N\",\"Y\")))","v":""},{"$f":"IF($B961=\"N\",\"\",IF(LEN('Enrollment Form'!$AD968=0),\"\",IF(LEN('Enrollment Form'!$AD968)<>5,\"N\",\"Y\")))","v":""},{"$f":"IF($B961=\"N\",\"\",IF(LEN('Enrollment Form'!$BL968=0),\"\",IF(LEN('Enrollment Form'!$BL968)<>5,\"N\",\"Y\")))","v":""},{"$f":"IF($B961=\"N\",\"\",IF(LEN('Enrollment Form'!$AE968)=0,\"\",IF(LEN('Enrollment Form'!$AE968)<>10,\"N\",\"Y\")))","v":""},{"$f":"IF($B961=\"N\",\"\",IF(LEN('Enrollment Form'!$AF968)=0,\"\",IF(LEN('Enrollment Form'!$AF968)<>10,\"N\",\"Y\")))","v":""},{"$f":"IF('Enrollment Form'!$O968<>\"Graded\",\"-\",IF(AND('Enrollment Form'!$O968=\"Graded\",'Enrollment Form'!$AO968<>\"\"),\"Y\",\"N\"))","v":"-"},{"$f":"IF($B961=\"N\",\"\",IF(OR('Enrollment Form'!$B968<>\"Subscriber\",'Enrollment Form'!$C968=\"ROC\"),\"-\",IF(AND('Enrollment Form'!$B968=\"Subscriber\",'Enrollment Form'!$C968=\"Enroll\",'Enrollment Form'!$AJ968<>\"\"),\"Y\",\"N\")))","v":""},{"$f":"IF($B961=\"N\",\"\",IF(OR('Enrollment Form'!$B968<>\"Subscriber\",'Enrollment Form'!$C968=\"ROC\"),\"-\",IF(AND('Enrollment Form'!$B968=\"Subscriber\",'Enrollment Form'!$C968=\"Enroll\",'Enrollment Form'!$AK968<>\"\"),\"Y\",\"N\")))","v":""},{"$f":"IF($B961=\"N\",\"\",IF(OR('Enrollment Form'!$B968<>\"Subscriber\",'Enrollment Form'!$C968=\"ROC\"),\"-\",IF(AND('Enrollment Form'!$B968=\"Subscriber\",'Enrollment Form'!$C968=\"Enroll\",'Enrollment Form'!$AL968<>\"\"),\"Y\",\"N\")))","v":""},{"$f":"IF($B961=\"N\",\"\",IF(OR('Enrollment Form'!$B968<>\"Subscriber\",'Enrollment Form'!$C968=\"ROC\"),\"-\",IF(AND('Enrollment Form'!$B968=\"Subscriber\",'Enrollment Form'!$C968=\"Enroll\",'Enrollment Form'!$AM968<>\"\"),\"Y\",\"N\")))","v":""},{"$f":"IF($B961=\"N\",\"\",IF(OR('Enrollment Form'!$B968<>\"Subscriber\",'Enrollment Form'!$C968=\"ROC\"),\"-\",IF(AND('Enrollment Form'!$B968=\"Subscriber\",'Enrollment Form'!$C968=\"Enroll\",'Enrollment Form'!$AN968<>\"\"),\"Y\",\"N\")))","v":""},{"$f":"IF($B961=\"N\",\"\",IF(OR('Enrollment Form'!$B968<>\"Subscriber\",'Enrollment Form'!$C968=\"ROC\"),\"-\",IF(AND('Enrollment Form'!$B968=\"Subscriber\",'Enrollment Form'!$C968=\"Enroll\",'Enrollment Form'!$AP968<>\"\"),\"Y\",\"N\")))","v":""},{"$f":"IF($B961=\"N\",\"\",IF($Q961=\"-\",\"-\",IF(AND($Q961=\"Y\",'Enrollment Form'!$AP968=\"No\"),\"-\",IF(AND($Q961=\"Y\",'Enrollment Form'!$AP968=\"Yes\",'Enrollment Form'!$AQ968<>\"\"),\"Y\",\"N\"))))","v":""},{"$f":"IF($B961=\"N\",\"\",IF(OR('Enrollment Form'!$B968<>\"Subscriber\",'Enrollment Form'!$C968=\"ROC\"),\"-\",IF(AND('Enrollment Form'!$B968=\"Subscriber\",'Enrollment Form'!$C968=\"Enroll\",'Enrollment Form'!$CO968<>\"\"),\"Y\",\"N\")))","v":""},{"$f":"IF($B961=\"N\",\"\",IF($S961=\"-\",\"-\",IF(AND($S961=\"Y\",'Enrollment Form'!$CO968=\"No\"),\"-\",IF(AND($S961=\"Y\",'Enrollment Form'!$CO968=\"Yes\",'Enrollment Form'!$CP968<>\"\"),\"Y\",\"N\"))))","v":""},{"$f":"IF(OR('Enrollment Form'!$AV968=\"Yes\",'Enrollment Form'!$AV968=\"\"),\"-\",IF(AND('Enrollment Form'!$AV968=\"No\",ISERROR(FIND(\"HMO\",VLOOKUP('Enrollment Form'!G968,'Enrollment Form'!H$11:J$1000,3,FALSE),1))=FALSE,COUNTA('Enrollment Form'!$AW968:$AZ968)=4),\"Y\",\"N\"))","v":"-"},{"$f":"IF($B961=\"N\",\"\",IF('Enrollment Form'!$B968=\"Subscriber\",\"-\",IF(COUNTA('Enrollment Form'!$BE968,'Enrollment Form'!$BG968)=2,\"Y\",\"N\")))","v":""},{"$f":"IF($B961=\"N\",\"\",IF(OR('Enrollment Form'!$AU968=\"\",'Enrollment Form'!$AU968=\"No\"),\"-\",IF(AND('Enrollment Form'!$AU968=\"Yes\",COUNTA('Enrollment Form'!$CK968)=1),\"Y\",\"N\")))","v":""},{"$f":"IF(OR('Enrollment Form'!$CK968=\"\",'Enrollment Form'!$CK968=\"No\"),\"-\",IF(COUNTA('Enrollment Form'!$CM968:$CN968)=2,\"Y\",\"N\"))","v":"-"},{"$f":"IF($B961=\"N\",\"\",IF(COUNTIF('Enrollment Form'!$CZ968:$DO968,\"Other\")=COUNTA('Enrollment Form'!$DF968,'Enrollment Form'!$DA968,'Enrollment Form'!$DK968,'Enrollment Form'!$DP968),\"Y\",\"N\"))","v":""},{"$f":"IF($B961=\"N\",\"\",IF(OR('Enrollment Form'!B968<>\"Subscriber\",'Enrollment Form'!C968=\"ROC\",COUNTIF('Enrollment Form'!AS968:AT968,\"Yes\")>=1),\"-\",IF(AND('Enrollment Form'!C968=\"Enroll\",COUNTIF('Enrollment Form'!AS968:AT968,\"No\")=2,'Enrollment Form'!AU968=\"\"),\"N\",\"Y\")))","v":""},{"$f":"IF(OR(B961=\"N\",'Enrollment Form'!B968<>\"Subscriber\",'Enrollment Form'!C968=\"ROC\",'Enrollment Form'!O968<>\"Multiple of Salary\"),\"-\",IF(COUNTA('Enrollment Form'!T968:U968)<2,\"N\",\"Y\"))","v":"-"},{"$f":"IF(B961=\"N\",\"\",IF(OR('Enrollment Form'!C968=\"ROC\",'Enrollment Form'!B968<>\"Subscriber\",'Enrollment Form'!O968=\"Waive\",'Enrollment Form'!O968=\"\"),\"-\",IF('Enrollment Form'!P968=\"\",\"N\",\"Y\")))","v":""},{"$f":"IF($B961=\"N\",\"\",IF(AND('Enrollment Form'!$C968=\"ROC\",'Enrollment Form'!$DS968<>\"\"),\"Y\",IF(AND('Enrollment Form'!$C968=\"ROC\",'Enrollment Form'!$DS968=\"\"),\"N\",IF(AND('Enrollment Form'!$C968=\"Enroll\",'Enrollment Form'!$B968=\"Subscriber\",'Enrollment Form'!$CQ968=\"No\",'Enrollment Form'!$DS968=\"\"),\"N\",IF(AND('Enrollment Form'!$C968=\"Enroll\",'Enrollment Form'!$B968=\"Subscriber\",'Enrollment Form'!$CQ968=\"Yes\"),\"-\",\"Y\")))))","v":""},{"$f":"IF($B961=\"N\",\"\",IF(AND('Enrollment Form'!$C968=\"ROC\",'Enrollment Form'!$DT968<>\"\"),\"Y\",IF(AND('Enrollment Form'!$C968=\"ROC\",'Enrollment Form'!$DT968=\"\"),\"N\",IF(AND('Enrollment Form'!$C968=\"Enroll\",'Enrollment Form'!$B968=\"Subscriber\",'Enrollment Form'!$CQ968=\"No\",'Enrollment Form'!$DT968=\"\"),\"N\",IF(AND('Enrollment Form'!$C968=\"Enroll\",'Enrollment Form'!$B968=\"Subscriber\",'Enrollment Form'!$CQ968=\"Yes\"),\"-\",\"Y\")))))","v":""},{"$f":"IF('Enrollment Form'!AH968=\"\",\"\",IF(ISERROR(SEARCH(\".\",'Enrollment Form'!AH968,SEARCH(\"@\",'Enrollment Form'!AH968))),\"N\",\"Y\"))","v":""},{"$f":"IF(OR($B961=\"N\",'Enrollment Form'!$G968=\"\"),\"\",IF('Enrollment Form'!$B968<>\"Subscriber\",\"-\",IF(COUNTIF('Enrollment Form'!$AS968:$AT968,\"Yes\")=2,\"N\",\"Y\")))","v":""},{"$f":"IF(OR('Enrollment Form'!$CC968=\"\",'Enrollment Form'!$CC968=\"No\"),\"-\",IF(AND('Enrollment Form'!$CC968=\"Yes\",'Enrollment Form'!$CD968=\"\"),\"N\",\"Y\"))","v":"-"},{"$f":"IF(OR('Enrollment Form'!$CE968=\"\",'Enrollment Form'!$CE968=\"No\"),\"-\",IF(AND('Enrollment Form'!$CE968=\"Yes\",'Enrollment Form'!$CF968=\"\"),\"N\",\"Y\"))","v":"-"},{"$f":"IF(OR('Enrollment Form'!$CG968=\"\",'Enrollment Form'!$CG968=\"No\"),\"-\",IF(AND('Enrollment Form'!$CG968=\"Yes\",'Enrollment Form'!$CH968=\"\"),\"N\",\"Y\"))","v":"-"},{"$f":"IF(OR('Enrollment Form'!$CG968=\"\",'Enrollment Form'!$CG968=\"No\"),\"-\",IF(AND('Enrollment Form'!$CG968=\"Yes\",'Enrollment Form'!$CI968=\"\"),\"N\",\"Y\"))","v":"-"},{"$f":"IF('Enrollment Form'!B968<>\"Subscriber\",\"-\",IF(AND('Enrollment Form'!B968=\"Subscriber\",'Enrollment Form'!C968=\"Enroll\",'Enrollment Form'!AA968=\"\"),\"N\",\"Y\"))","v":"-"},{"$f":"IF(OR('Enrollment Form'!B968=\"Subscriber\",'Enrollment Form'!B968=\"\"),\"-\",IF('Enrollment Form'!BI968=\"\",\"N\",\"Y\"))","v":"-"},{"$f":"IF('Enrollment Form'!B968<>\"Subscriber\",\"-\",IF(AND('Enrollment Form'!B968=\"Subscriber\",'Enrollment Form'!G968=\"\"),\"N\",\"Y\"))","v":"-"},{"$f":"IF('Enrollment Form'!A968=\"\",\"\",IF('Enrollment Form'!B968=\"Subscriber\",\"-\",IF(AND('Enrollment Form'!B968<>\"Subscriber\",'Enrollment Form'!G968='Enrollment Form'!H968),\"N\",\"Y\")))","v":""},0]
[969,{"$f":"IF('Enrollment Form'!$A969<>\"\",\"Y\",\"N\")","v":"N"},{"$f":"IF(AND('Enrollment Form'!$B969=\"\",'Enrollment Form'!$C969<>\"\"),\"N\",IF($B962=\"N\",\"\",\"Y\"))","v":""},{"$f":"IF(OR($B962=\"N\",'Enrollment Form'!G969=\"\"),\"\",IF('Enrollment Form'!$B969<>\"Subscriber\",\"\",IF('Enrollment Form'!$G969='Enrollment Form'!$H969,\"Y\",\"N\")))","v":""},{"$f":"IF($B962=\"N\",\"\",IF(AND(COUNTIFS('Enrollment Form'!$H$11:$H$1000,'Enrollment Form'!$H969,'Enrollment Form'!$B$11:$B$1000,'Enrollment Form'!$B969)>1,'Enrollment Form'!$H969<>\"\"),\"N\",\"Y\"))","v":""},{"$f":"IF($B962=\"N\",\"\",IF(LEN('Enrollment Form'!$Y969)=0,\"\",IF(LEN('Enrollment Form'!$Y969)<>5,\"N\",\"Y\")))","v":""},{"$f":"IF($B962=\"N\",\"\",IF(LEN('Enrollment Form'!$AD969=0),\"\",IF(LEN('Enrollment Form'!$AD969)<>5,\"N\",\"Y\")))","v":""},{"$f":"IF($B962=\"N\",\"\",IF(LEN('Enrollment Form'!$BL969=0),\"\",IF(LEN('Enrollment Form'!$BL969)<>5,\"N\",\"Y\")))","v":""},{"$f":"IF($B962=\"N\",\"\",IF(LEN('Enrollment Form'!$AE969)=0,\"\",IF(LEN('Enrollment Form'!$AE969)<>10,\"N\",\"Y\")))","v":""},{"$f":"IF($B962=\"N\",\"\",IF(LEN('Enrollment Form'!$AF969)=0,\"\",IF(LEN('Enrollment Form'!$AF969)<>10,\"N\",\"Y\")))","v":""},{"$f":"IF('Enrollment Form'!$O969<>\"Graded\",\"-\",IF(AND('Enrollment Form'!$O969=\"Graded\",'Enrollment Form'!$AO969<>\"\"),\"Y\",\"N\"))","v":"-"},{"$f":"IF($B962=\"N\",\"\",IF(OR('Enrollment Form'!$B969<>\"Subscriber\",'Enrollment Form'!$C969=\"ROC\"),\"-\",IF(AND('Enrollment Form'!$B969=\"Subscriber\",'Enrollment Form'!$C969=\"Enroll\",'Enrollment Form'!$AJ969<>\"\"),\"Y\",\"N\")))","v":""},{"$f":"IF($B962=\"N\",\"\",IF(OR('Enrollment Form'!$B969<>\"Subscriber\",'Enrollment Form'!$C969=\"ROC\"),\"-\",IF(AND('Enrollment Form'!$B969=\"Subscriber\",'Enrollment Form'!$C969=\"Enroll\",'Enrollment Form'!$AK969<>\"\"),\"Y\",\"N\")))","v":""},{"$f":"IF($B962=\"N\",\"\",IF(OR('Enrollment Form'!$B969<>\"Subscriber\",'Enrollment Form'!$C969=\"ROC\"),\"-\",IF(AND('Enrollment Form'!$B969=\"Subscriber\",'Enrollment Form'!$C969=\"Enroll\",'Enrollment Form'!$AL969<>\"\"),\"Y\",\"N\")))","v":""},{"$f":"IF($B962=\"N\",\"\",IF(OR('Enrollment Form'!$B969<>\"Subscriber\",'Enrollment Form'!$C969=\"ROC\"),\"-\",IF(AND('Enrollment Form'!$B969=\"Subscriber\",'Enrollment Form'!$C969=\"Enroll\",'Enrollment Form'!$AM969<>\"\"),\"Y\",\"N\")))","v":""},{"$f":"IF($B962=\"N\",\"\",IF(OR('Enrollment Form'!$B969<>\"Subscriber\",'Enrollment Form'!$C969=\"ROC\"),\"-\",IF(AND('Enrollment Form'!$B969=\"Subscriber\",'Enrollment Form'!$C969=\"Enroll\",'Enrollment Form'!$AN969<>\"\"),\"Y\",\"N\")))","v":""},{"$f":"IF($B962=\"N\",\"\",IF(OR('Enrollment Form'!$B969<>\"Subscriber\",'Enrollment Form'!$C969=\"ROC\"),\"-\",IF(AND('Enrollment Form'!$B969=\"Subscriber\",'Enrollment Form'!$C969=\"Enroll\",'Enrollment Form'!$AP969<>\"\"),\"Y\",\"N\")))","v":""},{"$f":"IF($B962=\"N\",\"\",IF($Q962=\"-\",\"-\",IF(AND($Q962=\"Y\",'Enrollment Form'!$AP969=\"No\"),\"-\",IF(AND($Q962=\"Y\",'Enrollment Form'!$AP969=\"Yes\",'Enrollment Form'!$AQ969<>\"\"),\"Y\",\"N\"))))","v":""},{"$f":"IF($B962=\"N\",\"\",IF(OR('Enrollment Form'!$B969<>\"Subscriber\",'Enrollment Form'!$C969=\"ROC\"),\"-\",IF(AND('Enrollment Form'!$B969=\"Subscriber\",'Enrollment Form'!$C969=\"Enroll\",'Enrollment Form'!$CO969<>\"\"),\"Y\",\"N\")))","v":""},{"$f":"IF($B962=\"N\",\"\",IF($S962=\"-\",\"-\",IF(AND($S962=\"Y\",'Enrollment Form'!$CO969=\"No\"),\"-\",IF(AND($S962=\"Y\",'Enrollment Form'!$CO969=\"Yes\",'Enrollment Form'!$CP969<>\"\"),\"Y\",\"N\"))))","v":""},{"$f":"IF(OR('Enrollment Form'!$AV969=\"Yes\",'Enrollment Form'!$AV969=\"\"),\"-\",IF(AND('Enrollment Form'!$AV969=\"No\",ISERROR(FIND(\"HMO\",VLOOKUP('Enrollment Form'!G969,'Enrollment Form'!H$11:J$1000,3,FALSE),1))=FALSE,COUNTA('Enrollment Form'!$AW969:$AZ969)=4),\"Y\",\"N\"))","v":"-"},{"$f":"IF($B962=\"N\",\"\",IF('Enrollment Form'!$B969=\"Subscriber\",\"-\",IF(COUNTA('Enrollment Form'!$BE969,'Enrollment Form'!$BG969)=2,\"Y\",\"N\")))","v":""},{"$f":"IF($B962=\"N\",\"\",IF(OR('Enrollment Form'!$AU969=\"\",'Enrollment Form'!$AU969=\"No\"),\"-\",IF(AND('Enrollment Form'!$AU969=\"Yes\",COUNTA('Enrollment Form'!$CK969)=1),\"Y\",\"N\")))","v":""},{"$f":"IF(OR('Enrollment Form'!$CK969=\"\",'Enrollment Form'!$CK969=\"No\"),\"-\",IF(COUNTA('Enrollment Form'!$CM969:$CN969)=2,\"Y\",\"N\"))","v":"-"},{"$f":"IF($B962=\"N\",\"\",IF(COUNTIF('Enrollment Form'!$CZ969:$DO969,\"Other\")=COUNTA('Enrollment Form'!$DF969,'Enrollment Form'!$DA969,'Enrollment Form'!$DK969,'Enrollment Form'!$DP969),\"Y\",\"N\"))","v":""},{"$f":"IF($B962=\"N\",\"\",IF(OR('Enrollment Form'!B969<>\"Subscriber\",'Enrollment Form'!C969=\"ROC\",COUNTIF('Enrollment Form'!AS969:AT969,\"Yes\")>=1),\"-\",IF(AND('Enrollment Form'!C969=\"Enroll\",COUNTIF('Enrollment Form'!AS969:AT969,\"No\")=2,'Enrollment Form'!AU969=\"\"),\"N\",\"Y\")))","v":""},{"$f":"IF(OR(B962=\"N\",'Enrollment Form'!B969<>\"Subscriber\",'Enrollment Form'!C969=\"ROC\",'Enrollment Form'!O969<>\"Multiple of Salary\"),\"-\",IF(COUNTA('Enrollment Form'!T969:U969)<2,\"N\",\"Y\"))","v":"-"},{"$f":"IF(B962=\"N\",\"\",IF(OR('Enrollment Form'!C969=\"ROC\",'Enrollment Form'!B969<>\"Subscriber\",'Enrollment Form'!O969=\"Waive\",'Enrollment Form'!O969=\"\"),\"-\",IF('Enrollment Form'!P969=\"\",\"N\",\"Y\")))","v":""},{"$f":"IF($B962=\"N\",\"\",IF(AND('Enrollment Form'!$C969=\"ROC\",'Enrollment Form'!$DS969<>\"\"),\"Y\",IF(AND('Enrollment Form'!$C969=\"ROC\",'Enrollment Form'!$DS969=\"\"),\"N\",IF(AND('Enrollment Form'!$C969=\"Enroll\",'Enrollment Form'!$B969=\"Subscriber\",'Enrollment Form'!$CQ969=\"No\",'Enrollment Form'!$DS969=\"\"),\"N\",IF(AND('Enrollment Form'!$C969=\"Enroll\",'Enrollment Form'!$B969=\"Subscriber\",'Enrollment Form'!$CQ969=\"Yes\"),\"-\",\"Y\")))))","v":""},{"$f":"IF($B962=\"N\",\"\",IF(AND('Enrollment Form'!$C969=\"ROC\",'Enrollment Form'!$DT969<>\"\"),\"Y\",IF(AND('Enrollment Form'!$C969=\"ROC\",'Enrollment Form'!$DT969=\"\"),\"N\",IF(AND('Enrollment Form'!$C969=\"Enroll\",'Enrollment Form'!$B969=\"Subscriber\",'Enrollment Form'!$CQ969=\"No\",'Enrollment Form'!$DT969=\"\"),\"N\",IF(AND('Enrollment Form'!$C969=\"Enroll\",'Enrollment Form'!$B969=\"Subscriber\",'Enrollment Form'!$CQ969=\"Yes\"),\"-\",\"Y\")))))","v":""},{"$f":"IF('Enrollment Form'!AH969=\"\",\"\",IF(ISERROR(SEARCH(\".\",'Enrollment Form'!AH969,SEARCH(\"@\",'Enrollment Form'!AH969))),\"N\",\"Y\"))","v":""},{"$f":"IF(OR($B962=\"N\",'Enrollment Form'!$G969=\"\"),\"\",IF('Enrollment Form'!$B969<>\"Subscriber\",\"-\",IF(COUNTIF('Enrollment Form'!$AS969:$AT969,\"Yes\")=2,\"N\",\"Y\")))","v":""},{"$f":"IF(OR('Enrollment Form'!$CC969=\"\",'Enrollment Form'!$CC969=\"No\"),\"-\",IF(AND('Enrollment Form'!$CC969=\"Yes\",'Enrollment Form'!$CD969=\"\"),\"N\",\"Y\"))","v":"-"},{"$f":"IF(OR('Enrollment Form'!$CE969=\"\",'Enrollment Form'!$CE969=\"No\"),\"-\",IF(AND('Enrollment Form'!$CE969=\"Yes\",'Enrollment Form'!$CF969=\"\"),\"N\",\"Y\"))","v":"-"},{"$f":"IF(OR('Enrollment Form'!$CG969=\"\",'Enrollment Form'!$CG969=\"No\"),\"-\",IF(AND('Enrollment Form'!$CG969=\"Yes\",'Enrollment Form'!$CH969=\"\"),\"N\",\"Y\"))","v":"-"},{"$f":"IF(OR('Enrollment Form'!$CG969=\"\",'Enrollment Form'!$CG969=\"No\"),\"-\",IF(AND('Enrollment Form'!$CG969=\"Yes\",'Enrollment Form'!$CI969=\"\"),\"N\",\"Y\"))","v":"-"},{"$f":"IF('Enrollment Form'!B969<>\"Subscriber\",\"-\",IF(AND('Enrollment Form'!B969=\"Subscriber\",'Enrollment Form'!C969=\"Enroll\",'Enrollment Form'!AA969=\"\"),\"N\",\"Y\"))","v":"-"},{"$f":"IF(OR('Enrollment Form'!B969=\"Subscriber\",'Enrollment Form'!B969=\"\"),\"-\",IF('Enrollment Form'!BI969=\"\",\"N\",\"Y\"))","v":"-"},{"$f":"IF('Enrollment Form'!B969<>\"Subscriber\",\"-\",IF(AND('Enrollment Form'!B969=\"Subscriber\",'Enrollment Form'!G969=\"\"),\"N\",\"Y\"))","v":"-"},{"$f":"IF('Enrollment Form'!A969=\"\",\"\",IF('Enrollment Form'!B969=\"Subscriber\",\"-\",IF(AND('Enrollment Form'!B969<>\"Subscriber\",'Enrollment Form'!G969='Enrollment Form'!H969),\"N\",\"Y\")))","v":""},0]
[970,{"$f":"IF('Enrollment Form'!$A970<>\"\",\"Y\",\"N\")","v":"N"},{"$f":"IF(AND('Enrollment Form'!$B970=\"\",'Enrollment Form'!$C970<>\"\"),\"N\",IF($B963=\"N\",\"\",\"Y\"))","v":""},{"$f":"IF(OR($B963=\"N\",'Enrollment Form'!G970=\"\"),\"\",IF('Enrollment Form'!$B970<>\"Subscriber\",\"\",IF('Enrollment Form'!$G970='Enrollment Form'!$H970,\"Y\",\"N\")))","v":""},{"$f":"IF($B963=\"N\",\"\",IF(AND(COUNTIFS('Enrollment Form'!$H$11:$H$1000,'Enrollment Form'!$H970,'Enrollment Form'!$B$11:$B$1000,'Enrollment Form'!$B970)>1,'Enrollment Form'!$H970<>\"\"),\"N\",\"Y\"))","v":""},{"$f":"IF($B963=\"N\",\"\",IF(LEN('Enrollment Form'!$Y970)=0,\"\",IF(LEN('Enrollment Form'!$Y970)<>5,\"N\",\"Y\")))","v":""},{"$f":"IF($B963=\"N\",\"\",IF(LEN('Enrollment Form'!$AD970=0),\"\",IF(LEN('Enrollment Form'!$AD970)<>5,\"N\",\"Y\")))","v":""},{"$f":"IF($B963=\"N\",\"\",IF(LEN('Enrollment Form'!$BL970=0),\"\",IF(LEN('Enrollment Form'!$BL970)<>5,\"N\",\"Y\")))","v":""},{"$f":"IF($B963=\"N\",\"\",IF(LEN('Enrollment Form'!$AE970)=0,\"\",IF(LEN('Enrollment Form'!$AE970)<>10,\"N\",\"Y\")))","v":""},{"$f":"IF($B963=\"N\",\"\",IF(LEN('Enrollment Form'!$AF970)=0,\"\",IF(LEN('Enrollment Form'!$AF970)<>10,\"N\",\"Y\")))","v":""},{"$f":"IF('Enrollment Form'!$O970<>\"Graded\",\"-\",IF(AND('Enrollment Form'!$O970=\"Graded\",'Enrollment Form'!$AO970<>\"\"),\"Y\",\"N\"))","v":"-"},{"$f":"IF($B963=\"N\",\"\",IF(OR('Enrollment Form'!$B970<>\"Subscriber\",'Enrollment Form'!$C970=\"ROC\"),\"-\",IF(AND('Enrollment Form'!$B970=\"Subscriber\",'Enrollment Form'!$C970=\"Enroll\",'Enrollment Form'!$AJ970<>\"\"),\"Y\",\"N\")))","v":""},{"$f":"IF($B963=\"N\",\"\",IF(OR('Enrollment Form'!$B970<>\"Subscriber\",'Enrollment Form'!$C970=\"ROC\"),\"-\",IF(AND('Enrollment Form'!$B970=\"Subscriber\",'Enrollment Form'!$C970=\"Enroll\",'Enrollment Form'!$AK970<>\"\"),\"Y\",\"N\")))","v":""},{"$f":"IF($B963=\"N\",\"\",IF(OR('Enrollment Form'!$B970<>\"Subscriber\",'Enrollment Form'!$C970=\"ROC\"),\"-\",IF(AND('Enrollment Form'!$B970=\"Subscriber\",'Enrollment Form'!$C970=\"Enroll\",'Enrollment Form'!$AL970<>\"\"),\"Y\",\"N\")))","v":""},{"$f":"IF($B963=\"N\",\"\",IF(OR('Enrollment Form'!$B970<>\"Subscriber\",'Enrollment Form'!$C970=\"ROC\"),\"-\",IF(AND('Enrollment Form'!$B970=\"Subscriber\",'Enrollment Form'!$C970=\"Enroll\",'Enrollment Form'!$AM970<>\"\"),\"Y\",\"N\")))","v":""},{"$f":"IF($B963=\"N\",\"\",IF(OR('Enrollment Form'!$B970<>\"Subscriber\",'Enrollment Form'!$C970=\"ROC\"),\"-\",IF(AND('Enrollment Form'!$B970=\"Subscriber\",'Enrollment Form'!$C970=\"Enroll\",'Enrollment Form'!$AN970<>\"\"),\"Y\",\"N\")))","v":""},{"$f":"IF($B963=\"N\",\"\",IF(OR('Enrollment Form'!$B970<>\"Subscriber\",'Enrollment Form'!$C970=\"ROC\"),\"-\",IF(AND('Enrollment Form'!$B970=\"Subscriber\",'Enrollment Form'!$C970=\"Enroll\",'Enrollment Form'!$AP970<>\"\"),\"Y\",\"N\")))","v":""},{"$f":"IF($B963=\"N\",\"\",IF($Q963=\"-\",\"-\",IF(AND($Q963=\"Y\",'Enrollment Form'!$AP970=\"No\"),\"-\",IF(AND($Q963=\"Y\",'Enrollment Form'!$AP970=\"Yes\",'Enrollment Form'!$AQ970<>\"\"),\"Y\",\"N\"))))","v":""},{"$f":"IF($B963=\"N\",\"\",IF(OR('Enrollment Form'!$B970<>\"Subscriber\",'Enrollment Form'!$C970=\"ROC\"),\"-\",IF(AND('Enrollment Form'!$B970=\"Subscriber\",'Enrollment Form'!$C970=\"Enroll\",'Enrollment Form'!$CO970<>\"\"),\"Y\",\"N\")))","v":""},{"$f":"IF($B963=\"N\",\"\",IF($S963=\"-\",\"-\",IF(AND($S963=\"Y\",'Enrollment Form'!$CO970=\"No\"),\"-\",IF(AND($S963=\"Y\",'Enrollment Form'!$CO970=\"Yes\",'Enrollment Form'!$CP970<>\"\"),\"Y\",\"N\"))))","v":""},{"$f":"IF(OR('Enrollment Form'!$AV970=\"Yes\",'Enrollment Form'!$AV970=\"\"),\"-\",IF(AND('Enrollment Form'!$AV970=\"No\",ISERROR(FIND(\"HMO\",VLOOKUP('Enrollment Form'!G970,'Enrollment Form'!H$11:J$1000,3,FALSE),1))=FALSE,COUNTA('Enrollment Form'!$AW970:$AZ970)=4),\"Y\",\"N\"))","v":"-"},{"$f":"IF($B963=\"N\",\"\",IF('Enrollment Form'!$B970=\"Subscriber\",\"-\",IF(COUNTA('Enrollment Form'!$BE970,'Enrollment Form'!$BG970)=2,\"Y\",\"N\")))","v":""},{"$f":"IF($B963=\"N\",\"\",IF(OR('Enrollment Form'!$AU970=\"\",'Enrollment Form'!$AU970=\"No\"),\"-\",IF(AND('Enrollment Form'!$AU970=\"Yes\",COUNTA('Enrollment Form'!$CK970)=1),\"Y\",\"N\")))","v":""},{"$f":"IF(OR('Enrollment Form'!$CK970=\"\",'Enrollment Form'!$CK970=\"No\"),\"-\",IF(COUNTA('Enrollment Form'!$CM970:$CN970)=2,\"Y\",\"N\"))","v":"-"},{"$f":"IF($B963=\"N\",\"\",IF(COUNTIF('Enrollment Form'!$CZ970:$DO970,\"Other\")=COUNTA('Enrollment Form'!$DF970,'Enrollment Form'!$DA970,'Enrollment Form'!$DK970,'Enrollment Form'!$DP970),\"Y\",\"N\"))","v":""},{"$f":"IF($B963=\"N\",\"\",IF(OR('Enrollment Form'!B970<>\"Subscriber\",'Enrollment Form'!C970=\"ROC\",COUNTIF('Enrollment Form'!AS970:AT970,\"Yes\")>=1),\"-\",IF(AND('Enrollment Form'!C970=\"Enroll\",COUNTIF('Enrollment Form'!AS970:AT970,\"No\")=2,'Enrollment Form'!AU970=\"\"),\"N\",\"Y\")))","v":""},{"$f":"IF(OR(B963=\"N\",'Enrollment Form'!B970<>\"Subscriber\",'Enrollment Form'!C970=\"ROC\",'Enrollment Form'!O970<>\"Multiple of Salary\"),\"-\",IF(COUNTA('Enrollment Form'!T970:U970)<2,\"N\",\"Y\"))","v":"-"},{"$f":"IF(B963=\"N\",\"\",IF(OR('Enrollment Form'!C970=\"ROC\",'Enrollment Form'!B970<>\"Subscriber\",'Enrollment Form'!O970=\"Waive\",'Enrollment Form'!O970=\"\"),\"-\",IF('Enrollment Form'!P970=\"\",\"N\",\"Y\")))","v":""},{"$f":"IF($B963=\"N\",\"\",IF(AND('Enrollment Form'!$C970=\"ROC\",'Enrollment Form'!$DS970<>\"\"),\"Y\",IF(AND('Enrollment Form'!$C970=\"ROC\",'Enrollment Form'!$DS970=\"\"),\"N\",IF(AND('Enrollment Form'!$C970=\"Enroll\",'Enrollment Form'!$B970=\"Subscriber\",'Enrollment Form'!$CQ970=\"No\",'Enrollment Form'!$DS970=\"\"),\"N\",IF(AND('Enrollment Form'!$C970=\"Enroll\",'Enrollment Form'!$B970=\"Subscriber\",'Enrollment Form'!$CQ970=\"Yes\"),\"-\",\"Y\")))))","v":""},{"$f":"IF($B963=\"N\",\"\",IF(AND('Enrollment Form'!$C970=\"ROC\",'Enrollment Form'!$DT970<>\"\"),\"Y\",IF(AND('Enrollment Form'!$C970=\"ROC\",'Enrollment Form'!$DT970=\"\"),\"N\",IF(AND('Enrollment Form'!$C970=\"Enroll\",'Enrollment Form'!$B970=\"Subscriber\",'Enrollment Form'!$CQ970=\"No\",'Enrollment Form'!$DT970=\"\"),\"N\",IF(AND('Enrollment Form'!$C970=\"Enroll\",'Enrollment Form'!$B970=\"Subscriber\",'Enrollment Form'!$CQ970=\"Yes\"),\"-\",\"Y\")))))","v":""},{"$f":"IF('Enrollment Form'!AH970=\"\",\"\",IF(ISERROR(SEARCH(\".\",'Enrollment Form'!AH970,SEARCH(\"@\",'Enrollment Form'!AH970))),\"N\",\"Y\"))","v":""},{"$f":"IF(OR($B963=\"N\",'Enrollment Form'!$G970=\"\"),\"\",IF('Enrollment Form'!$B970<>\"Subscriber\",\"-\",IF(COUNTIF('Enrollment Form'!$AS970:$AT970,\"Yes\")=2,\"N\",\"Y\")))","v":""},{"$f":"IF(OR('Enrollment Form'!$CC970=\"\",'Enrollment Form'!$CC970=\"No\"),\"-\",IF(AND('Enrollment Form'!$CC970=\"Yes\",'Enrollment Form'!$CD970=\"\"),\"N\",\"Y\"))","v":"-"},{"$f":"IF(OR('Enrollment Form'!$CE970=\"\",'Enrollment Form'!$CE970=\"No\"),\"-\",IF(AND('Enrollment Form'!$CE970=\"Yes\",'Enrollment Form'!$CF970=\"\"),\"N\",\"Y\"))","v":"-"},{"$f":"IF(OR('Enrollment Form'!$CG970=\"\",'Enrollment Form'!$CG970=\"No\"),\"-\",IF(AND('Enrollment Form'!$CG970=\"Yes\",'Enrollment Form'!$CH970=\"\"),\"N\",\"Y\"))","v":"-"},{"$f":"IF(OR('Enrollment Form'!$CG970=\"\",'Enrollment Form'!$CG970=\"No\"),\"-\",IF(AND('Enrollment Form'!$CG970=\"Yes\",'Enrollment Form'!$CI970=\"\"),\"N\",\"Y\"))","v":"-"},{"$f":"IF('Enrollment Form'!B970<>\"Subscriber\",\"-\",IF(AND('Enrollment Form'!B970=\"Subscriber\",'Enrollment Form'!C970=\"Enroll\",'Enrollment Form'!AA970=\"\"),\"N\",\"Y\"))","v":"-"},{"$f":"IF(OR('Enrollment Form'!B970=\"Subscriber\",'Enrollment Form'!B970=\"\"),\"-\",IF('Enrollment Form'!BI970=\"\",\"N\",\"Y\"))","v":"-"},{"$f":"IF('Enrollment Form'!B970<>\"Subscriber\",\"-\",IF(AND('Enrollment Form'!B970=\"Subscriber\",'Enrollment Form'!G970=\"\"),\"N\",\"Y\"))","v":"-"},{"$f":"IF('Enrollment Form'!A970=\"\",\"\",IF('Enrollment Form'!B970=\"Subscriber\",\"-\",IF(AND('Enrollment Form'!B970<>\"Subscriber\",'Enrollment Form'!G970='Enrollment Form'!H970),\"N\",\"Y\")))","v":""},0]
[971,{"$f":"IF('Enrollment Form'!$A971<>\"\",\"Y\",\"N\")","v":"N"},{"$f":"IF(AND('Enrollment Form'!$B971=\"\",'Enrollment Form'!$C971<>\"\"),\"N\",IF($B964=\"N\",\"\",\"Y\"))","v":""},{"$f":"IF(OR($B964=\"N\",'Enrollment Form'!G971=\"\"),\"\",IF('Enrollment Form'!$B971<>\"Subscriber\",\"\",IF('Enrollment Form'!$G971='Enrollment Form'!$H971,\"Y\",\"N\")))","v":""},{"$f":"IF($B964=\"N\",\"\",IF(AND(COUNTIFS('Enrollment Form'!$H$11:$H$1000,'Enrollment Form'!$H971,'Enrollment Form'!$B$11:$B$1000,'Enrollment Form'!$B971)>1,'Enrollment Form'!$H971<>\"\"),\"N\",\"Y\"))","v":""},{"$f":"IF($B964=\"N\",\"\",IF(LEN('Enrollment Form'!$Y971)=0,\"\",IF(LEN('Enrollment Form'!$Y971)<>5,\"N\",\"Y\")))","v":""},{"$f":"IF($B964=\"N\",\"\",IF(LEN('Enrollment Form'!$AD971=0),\"\",IF(LEN('Enrollment Form'!$AD971)<>5,\"N\",\"Y\")))","v":""},{"$f":"IF($B964=\"N\",\"\",IF(LEN('Enrollment Form'!$BL971=0),\"\",IF(LEN('Enrollment Form'!$BL971)<>5,\"N\",\"Y\")))","v":""},{"$f":"IF($B964=\"N\",\"\",IF(LEN('Enrollment Form'!$AE971)=0,\"\",IF(LEN('Enrollment Form'!$AE971)<>10,\"N\",\"Y\")))","v":""},{"$f":"IF($B964=\"N\",\"\",IF(LEN('Enrollment Form'!$AF971)=0,\"\",IF(LEN('Enrollment Form'!$AF971)<>10,\"N\",\"Y\")))","v":""},{"$f":"IF('Enrollment Form'!$O971<>\"Graded\",\"-\",IF(AND('Enrollment Form'!$O971=\"Graded\",'Enrollment Form'!$AO971<>\"\"),\"Y\",\"N\"))","v":"-"},{"$f":"IF($B964=\"N\",\"\",IF(OR('Enrollment Form'!$B971<>\"Subscriber\",'Enrollment Form'!$C971=\"ROC\"),\"-\",IF(AND('Enrollment Form'!$B971=\"Subscriber\",'Enrollment Form'!$C971=\"Enroll\",'Enrollment Form'!$AJ971<>\"\"),\"Y\",\"N\")))","v":""},{"$f":"IF($B964=\"N\",\"\",IF(OR('Enrollment Form'!$B971<>\"Subscriber\",'Enrollment Form'!$C971=\"ROC\"),\"-\",IF(AND('Enrollment Form'!$B971=\"Subscriber\",'Enrollment Form'!$C971=\"Enroll\",'Enrollment Form'!$AK971<>\"\"),\"Y\",\"N\")))","v":""},{"$f":"IF($B964=\"N\",\"\",IF(OR('Enrollment Form'!$B971<>\"Subscriber\",'Enrollment Form'!$C971=\"ROC\"),\"-\",IF(AND('Enrollment Form'!$B971=\"Subscriber\",'Enrollment Form'!$C971=\"Enroll\",'Enrollment Form'!$AL971<>\"\"),\"Y\",\"N\")))","v":""},{"$f":"IF($B964=\"N\",\"\",IF(OR('Enrollment Form'!$B971<>\"Subscriber\",'Enrollment Form'!$C971=\"ROC\"),\"-\",IF(AND('Enrollment Form'!$B971=\"Subscriber\",'Enrollment Form'!$C971=\"Enroll\",'Enrollment Form'!$AM971<>\"\"),\"Y\",\"N\")))","v":""},{"$f":"IF($B964=\"N\",\"\",IF(OR('Enrollment Form'!$B971<>\"Subscriber\",'Enrollment Form'!$C971=\"ROC\"),\"-\",IF(AND('Enrollment Form'!$B971=\"Subscriber\",'Enrollment Form'!$C971=\"Enroll\",'Enrollment Form'!$AN971<>\"\"),\"Y\",\"N\")))","v":""},{"$f":"IF($B964=\"N\",\"\",IF(OR('Enrollment Form'!$B971<>\"Subscriber\",'Enrollment Form'!$C971=\"ROC\"),\"-\",IF(AND('Enrollment Form'!$B971=\"Subscriber\",'Enrollment Form'!$C971=\"Enroll\",'Enrollment Form'!$AP971<>\"\"),\"Y\",\"N\")))","v":""},{"$f":"IF($B964=\"N\",\"\",IF($Q964=\"-\",\"-\",IF(AND($Q964=\"Y\",'Enrollment Form'!$AP971=\"No\"),\"-\",IF(AND($Q964=\"Y\",'Enrollment Form'!$AP971=\"Yes\",'Enrollment Form'!$AQ971<>\"\"),\"Y\",\"N\"))))","v":""},{"$f":"IF($B964=\"N\",\"\",IF(OR('Enrollment Form'!$B971<>\"Subscriber\",'Enrollment Form'!$C971=\"ROC\"),\"-\",IF(AND('Enrollment Form'!$B971=\"Subscriber\",'Enrollment Form'!$C971=\"Enroll\",'Enrollment Form'!$CO971<>\"\"),\"Y\",\"N\")))","v":""},{"$f":"IF($B964=\"N\",\"\",IF($S964=\"-\",\"-\",IF(AND($S964=\"Y\",'Enrollment Form'!$CO971=\"No\"),\"-\",IF(AND($S964=\"Y\",'Enrollment Form'!$CO971=\"Yes\",'Enrollment Form'!$CP971<>\"\"),\"Y\",\"N\"))))","v":""},{"$f":"IF(OR('Enrollment Form'!$AV971=\"Yes\",'Enrollment Form'!$AV971=\"\"),\"-\",IF(AND('Enrollment Form'!$AV971=\"No\",ISERROR(FIND(\"HMO\",VLOOKUP('Enrollment Form'!G971,'Enrollment Form'!H$11:J$1000,3,FALSE),1))=FALSE,COUNTA('Enrollment Form'!$AW971:$AZ971)=4),\"Y\",\"N\"))","v":"-"},{"$f":"IF($B964=\"N\",\"\",IF('Enrollment Form'!$B971=\"Subscriber\",\"-\",IF(COUNTA('Enrollment Form'!$BE971,'Enrollment Form'!$BG971)=2,\"Y\",\"N\")))","v":""},{"$f":"IF($B964=\"N\",\"\",IF(OR('Enrollment Form'!$AU971=\"\",'Enrollment Form'!$AU971=\"No\"),\"-\",IF(AND('Enrollment Form'!$AU971=\"Yes\",COUNTA('Enrollment Form'!$CK971)=1),\"Y\",\"N\")))","v":""},{"$f":"IF(OR('Enrollment Form'!$CK971=\"\",'Enrollment Form'!$CK971=\"No\"),\"-\",IF(COUNTA('Enrollment Form'!$CM971:$CN971)=2,\"Y\",\"N\"))","v":"-"},{"$f":"IF($B964=\"N\",\"\",IF(COUNTIF('Enrollment Form'!$CZ971:$DO971,\"Other\")=COUNTA('Enrollment Form'!$DF971,'Enrollment Form'!$DA971,'Enrollment Form'!$DK971,'Enrollment Form'!$DP971),\"Y\",\"N\"))","v":""},{"$f":"IF($B964=\"N\",\"\",IF(OR('Enrollment Form'!B971<>\"Subscriber\",'Enrollment Form'!C971=\"ROC\",COUNTIF('Enrollment Form'!AS971:AT971,\"Yes\")>=1),\"-\",IF(AND('Enrollment Form'!C971=\"Enroll\",COUNTIF('Enrollment Form'!AS971:AT971,\"No\")=2,'Enrollment Form'!AU971=\"\"),\"N\",\"Y\")))","v":""},{"$f":"IF(OR(B964=\"N\",'Enrollment Form'!B971<>\"Subscriber\",'Enrollment Form'!C971=\"ROC\",'Enrollment Form'!O971<>\"Multiple of Salary\"),\"-\",IF(COUNTA('Enrollment Form'!T971:U971)<2,\"N\",\"Y\"))","v":"-"},{"$f":"IF(B964=\"N\",\"\",IF(OR('Enrollment Form'!C971=\"ROC\",'Enrollment Form'!B971<>\"Subscriber\",'Enrollment Form'!O971=\"Waive\",'Enrollment Form'!O971=\"\"),\"-\",IF('Enrollment Form'!P971=\"\",\"N\",\"Y\")))","v":""},{"$f":"IF($B964=\"N\",\"\",IF(AND('Enrollment Form'!$C971=\"ROC\",'Enrollment Form'!$DS971<>\"\"),\"Y\",IF(AND('Enrollment Form'!$C971=\"ROC\",'Enrollment Form'!$DS971=\"\"),\"N\",IF(AND('Enrollment Form'!$C971=\"Enroll\",'Enrollment Form'!$B971=\"Subscriber\",'Enrollment Form'!$CQ971=\"No\",'Enrollment Form'!$DS971=\"\"),\"N\",IF(AND('Enrollment Form'!$C971=\"Enroll\",'Enrollment Form'!$B971=\"Subscriber\",'Enrollment Form'!$CQ971=\"Yes\"),\"-\",\"Y\")))))","v":""},{"$f":"IF($B964=\"N\",\"\",IF(AND('Enrollment Form'!$C971=\"ROC\",'Enrollment Form'!$DT971<>\"\"),\"Y\",IF(AND('Enrollment Form'!$C971=\"ROC\",'Enrollment Form'!$DT971=\"\"),\"N\",IF(AND('Enrollment Form'!$C971=\"Enroll\",'Enrollment Form'!$B971=\"Subscriber\",'Enrollment Form'!$CQ971=\"No\",'Enrollment Form'!$DT971=\"\"),\"N\",IF(AND('Enrollment Form'!$C971=\"Enroll\",'Enrollment Form'!$B971=\"Subscriber\",'Enrollment Form'!$CQ971=\"Yes\"),\"-\",\"Y\")))))","v":""},{"$f":"IF('Enrollment Form'!AH971=\"\",\"\",IF(ISERROR(SEARCH(\".\",'Enrollment Form'!AH971,SEARCH(\"@\",'Enrollment Form'!AH971))),\"N\",\"Y\"))","v":""},{"$f":"IF(OR($B964=\"N\",'Enrollment Form'!$G971=\"\"),\"\",IF('Enrollment Form'!$B971<>\"Subscriber\",\"-\",IF(COUNTIF('Enrollment Form'!$AS971:$AT971,\"Yes\")=2,\"N\",\"Y\")))","v":""},{"$f":"IF(OR('Enrollment Form'!$CC971=\"\",'Enrollment Form'!$CC971=\"No\"),\"-\",IF(AND('Enrollment Form'!$CC971=\"Yes\",'Enrollment Form'!$CD971=\"\"),\"N\",\"Y\"))","v":"-"},{"$f":"IF(OR('Enrollment Form'!$CE971=\"\",'Enrollment Form'!$CE971=\"No\"),\"-\",IF(AND('Enrollment Form'!$CE971=\"Yes\",'Enrollment Form'!$CF971=\"\"),\"N\",\"Y\"))","v":"-"},{"$f":"IF(OR('Enrollment Form'!$CG971=\"\",'Enrollment Form'!$CG971=\"No\"),\"-\",IF(AND('Enrollment Form'!$CG971=\"Yes\",'Enrollment Form'!$CH971=\"\"),\"N\",\"Y\"))","v":"-"},{"$f":"IF(OR('Enrollment Form'!$CG971=\"\",'Enrollment Form'!$CG971=\"No\"),\"-\",IF(AND('Enrollment Form'!$CG971=\"Yes\",'Enrollment Form'!$CI971=\"\"),\"N\",\"Y\"))","v":"-"},{"$f":"IF('Enrollment Form'!B971<>\"Subscriber\",\"-\",IF(AND('Enrollment Form'!B971=\"Subscriber\",'Enrollment Form'!C971=\"Enroll\",'Enrollment Form'!AA971=\"\"),\"N\",\"Y\"))","v":"-"},{"$f":"IF(OR('Enrollment Form'!B971=\"Subscriber\",'Enrollment Form'!B971=\"\"),\"-\",IF('Enrollment Form'!BI971=\"\",\"N\",\"Y\"))","v":"-"},{"$f":"IF('Enrollment Form'!B971<>\"Subscriber\",\"-\",IF(AND('Enrollment Form'!B971=\"Subscriber\",'Enrollment Form'!G971=\"\"),\"N\",\"Y\"))","v":"-"},{"$f":"IF('Enrollment Form'!A971=\"\",\"\",IF('Enrollment Form'!B971=\"Subscriber\",\"-\",IF(AND('Enrollment Form'!B971<>\"Subscriber\",'Enrollment Form'!G971='Enrollment Form'!H971),\"N\",\"Y\")))","v":""},{"$f":"COUNTIF(C964:AN964,\"N\")","v":0}]
[972,{"$f":"IF('Enrollment Form'!$A972<>\"\",\"Y\",\"N\")","v":"N"},{"$f":"IF(AND('Enrollment Form'!$B972=\"\",'Enrollment Form'!$C972<>\"\"),\"N\",IF($B965=\"N\",\"\",\"Y\"))","v":""},{"$f":"IF(OR($B965=\"N\",'Enrollment Form'!G972=\"\"),\"\",IF('Enrollment Form'!$B972<>\"Subscriber\",\"\",IF('Enrollment Form'!$G972='Enrollment Form'!$H972,\"Y\",\"N\")))","v":""},{"$f":"IF($B965=\"N\",\"\",IF(AND(COUNTIFS('Enrollment Form'!$H$11:$H$1000,'Enrollment Form'!$H972,'Enrollment Form'!$B$11:$B$1000,'Enrollment Form'!$B972)>1,'Enrollment Form'!$H972<>\"\"),\"N\",\"Y\"))","v":""},{"$f":"IF($B965=\"N\",\"\",IF(LEN('Enrollment Form'!$Y972)=0,\"\",IF(LEN('Enrollment Form'!$Y972)<>5,\"N\",\"Y\")))","v":""},{"$f":"IF($B965=\"N\",\"\",IF(LEN('Enrollment Form'!$AD972=0),\"\",IF(LEN('Enrollment Form'!$AD972)<>5,\"N\",\"Y\")))","v":""},{"$f":"IF($B965=\"N\",\"\",IF(LEN('Enrollment Form'!$BL972=0),\"\",IF(LEN('Enrollment Form'!$BL972)<>5,\"N\",\"Y\")))","v":""},{"$f":"IF($B965=\"N\",\"\",IF(LEN('Enrollment Form'!$AE972)=0,\"\",IF(LEN('Enrollment Form'!$AE972)<>10,\"N\",\"Y\")))","v":""},{"$f":"IF($B965=\"N\",\"\",IF(LEN('Enrollment Form'!$AF972)=0,\"\",IF(LEN('Enrollment Form'!$AF972)<>10,\"N\",\"Y\")))","v":""},{"$f":"IF('Enrollment Form'!$O972<>\"Graded\",\"-\",IF(AND('Enrollment Form'!$O972=\"Graded\",'Enrollment Form'!$AO972<>\"\"),\"Y\",\"N\"))","v":"-"},{"$f":"IF($B965=\"N\",\"\",IF(OR('Enrollment Form'!$B972<>\"Subscriber\",'Enrollment Form'!$C972=\"ROC\"),\"-\",IF(AND('Enrollment Form'!$B972=\"Subscriber\",'Enrollment Form'!$C972=\"Enroll\",'Enrollment Form'!$AJ972<>\"\"),\"Y\",\"N\")))","v":""},{"$f":"IF($B965=\"N\",\"\",IF(OR('Enrollment Form'!$B972<>\"Subscriber\",'Enrollment Form'!$C972=\"ROC\"),\"-\",IF(AND('Enrollment Form'!$B972=\"Subscriber\",'Enrollment Form'!$C972=\"Enroll\",'Enrollment Form'!$AK972<>\"\"),\"Y\",\"N\")))","v":""},{"$f":"IF($B965=\"N\",\"\",IF(OR('Enrollment Form'!$B972<>\"Subscriber\",'Enrollment Form'!$C972=\"ROC\"),\"-\",IF(AND('Enrollment Form'!$B972=\"Subscriber\",'Enrollment Form'!$C972=\"Enroll\",'Enrollment Form'!$AL972<>\"\"),\"Y\",\"N\")))","v":""},{"$f":"IF($B965=\"N\",\"\",IF(OR('Enrollment Form'!$B972<>\"Subscriber\",'Enrollment Form'!$C972=\"ROC\"),\"-\",IF(AND('Enrollment Form'!$B972=\"Subscriber\",'Enrollment Form'!$C972=\"Enroll\",'Enrollment Form'!$AM972<>\"\"),\"Y\",\"N\")))","v":""},{"$f":"IF($B965=\"N\",\"\",IF(OR('Enrollment Form'!$B972<>\"Subscriber\",'Enrollment Form'!$C972=\"ROC\"),\"-\",IF(AND('Enrollment Form'!$B972=\"Subscriber\",'Enrollment Form'!$C972=\"Enroll\",'Enrollment Form'!$AN972<>\"\"),\"Y\",\"N\")))","v":""},{"$f":"IF($B965=\"N\",\"\",IF(OR('Enrollment Form'!$B972<>\"Subscriber\",'Enrollment Form'!$C972=\"ROC\"),\"-\",IF(AND('Enrollment Form'!$B972=\"Subscriber\",'Enrollment Form'!$C972=\"Enroll\",'Enrollment Form'!$AP972<>\"\"),\"Y\",\"N\")))","v":""},{"$f":"IF($B965=\"N\",\"\",IF($Q965=\"-\",\"-\",IF(AND($Q965=\"Y\",'Enrollment Form'!$AP972=\"No\"),\"-\",IF(AND($Q965=\"Y\",'Enrollment Form'!$AP972=\"Yes\",'Enrollment Form'!$AQ972<>\"\"),\"Y\",\"N\"))))","v":""},{"$f":"IF($B965=\"N\",\"\",IF(OR('Enrollment Form'!$B972<>\"Subscriber\",'Enrollment Form'!$C972=\"ROC\"),\"-\",IF(AND('Enrollment Form'!$B972=\"Subscriber\",'Enrollment Form'!$C972=\"Enroll\",'Enrollment Form'!$CO972<>\"\"),\"Y\",\"N\")))","v":""},{"$f":"IF($B965=\"N\",\"\",IF($S965=\"-\",\"-\",IF(AND($S965=\"Y\",'Enrollment Form'!$CO972=\"No\"),\"-\",IF(AND($S965=\"Y\",'Enrollment Form'!$CO972=\"Yes\",'Enrollment Form'!$CP972<>\"\"),\"Y\",\"N\"))))","v":""},{"$f":"IF(OR('Enrollment Form'!$AV972=\"Yes\",'Enrollment Form'!$AV972=\"\"),\"-\",IF(AND('Enrollment Form'!$AV972=\"No\",ISERROR(FIND(\"HMO\",VLOOKUP('Enrollment Form'!G972,'Enrollment Form'!H$11:J$1000,3,FALSE),1))=FALSE,COUNTA('Enrollment Form'!$AW972:$AZ972)=4),\"Y\",\"N\"))","v":"-"},{"$f":"IF($B965=\"N\",\"\",IF('Enrollment Form'!$B972=\"Subscriber\",\"-\",IF(COUNTA('Enrollment Form'!$BE972,'Enrollment Form'!$BG972)=2,\"Y\",\"N\")))","v":""},{"$f":"IF($B965=\"N\",\"\",IF(OR('Enrollment Form'!$AU972=\"\",'Enrollment Form'!$AU972=\"No\"),\"-\",IF(AND('Enrollment Form'!$AU972=\"Yes\",COUNTA('Enrollment Form'!$CK972)=1),\"Y\",\"N\")))","v":""},{"$f":"IF(OR('Enrollment Form'!$CK972=\"\",'Enrollment Form'!$CK972=\"No\"),\"-\",IF(COUNTA('Enrollment Form'!$CM972:$CN972)=2,\"Y\",\"N\"))","v":"-"},{"$f":"IF($B965=\"N\",\"\",IF(COUNTIF('Enrollment Form'!$CZ972:$DO972,\"Other\")=COUNTA('Enrollment Form'!$DF972,'Enrollment Form'!$DA972,'Enrollment Form'!$DK972,'Enrollment Form'!$DP972),\"Y\",\"N\"))","v":""},{"$f":"IF($B965=\"N\",\"\",IF(OR('Enrollment Form'!B972<>\"Subscriber\",'Enrollment Form'!C972=\"ROC\",COUNTIF('Enrollment Form'!AS972:AT972,\"Yes\")>=1),\"-\",IF(AND('Enrollment Form'!C972=\"Enroll\",COUNTIF('Enrollment Form'!AS972:AT972,\"No\")=2,'Enrollment Form'!AU972=\"\"),\"N\",\"Y\")))","v":""},{"$f":"IF(OR(B965=\"N\",'Enrollment Form'!B972<>\"Subscriber\",'Enrollment Form'!C972=\"ROC\",'Enrollment Form'!O972<>\"Multiple of Salary\"),\"-\",IF(COUNTA('Enrollment Form'!T972:U972)<2,\"N\",\"Y\"))","v":"-"},{"$f":"IF(B965=\"N\",\"\",IF(OR('Enrollment Form'!C972=\"ROC\",'Enrollment Form'!B972<>\"Subscriber\",'Enrollment Form'!O972=\"Waive\",'Enrollment Form'!O972=\"\"),\"-\",IF('Enrollment Form'!P972=\"\",\"N\",\"Y\")))","v":""},{"$f":"IF($B965=\"N\",\"\",IF(AND('Enrollment Form'!$C972=\"ROC\",'Enrollment Form'!$DS972<>\"\"),\"Y\",IF(AND('Enrollment Form'!$C972=\"ROC\",'Enrollment Form'!$DS972=\"\"),\"N\",IF(AND('Enrollment Form'!$C972=\"Enroll\",'Enrollment Form'!$B972=\"Subscriber\",'Enrollment Form'!$CQ972=\"No\",'Enrollment Form'!$DS972=\"\"),\"N\",IF(AND('Enrollment Form'!$C972=\"Enroll\",'Enrollment Form'!$B972=\"Subscriber\",'Enrollment Form'!$CQ972=\"Yes\"),\"-\",\"Y\")))))","v":""},{"$f":"IF($B965=\"N\",\"\",IF(AND('Enrollment Form'!$C972=\"ROC\",'Enrollment Form'!$DT972<>\"\"),\"Y\",IF(AND('Enrollment Form'!$C972=\"ROC\",'Enrollment Form'!$DT972=\"\"),\"N\",IF(AND('Enrollment Form'!$C972=\"Enroll\",'Enrollment Form'!$B972=\"Subscriber\",'Enrollment Form'!$CQ972=\"No\",'Enrollment Form'!$DT972=\"\"),\"N\",IF(AND('Enrollment Form'!$C972=\"Enroll\",'Enrollment Form'!$B972=\"Subscriber\",'Enrollment Form'!$CQ972=\"Yes\"),\"-\",\"Y\")))))","v":""},{"$f":"IF('Enrollment Form'!AH972=\"\",\"\",IF(ISERROR(SEARCH(\".\",'Enrollment Form'!AH972,SEARCH(\"@\",'Enrollment Form'!AH972))),\"N\",\"Y\"))","v":""},{"$f":"IF(OR($B965=\"N\",'Enrollment Form'!$G972=\"\"),\"\",IF('Enrollment Form'!$B972<>\"Subscriber\",\"-\",IF(COUNTIF('Enrollment Form'!$AS972:$AT972,\"Yes\")=2,\"N\",\"Y\")))","v":""},{"$f":"IF(OR('Enrollment Form'!$CC972=\"\",'Enrollment Form'!$CC972=\"No\"),\"-\",IF(AND('Enrollment Form'!$CC972=\"Yes\",'Enrollment Form'!$CD972=\"\"),\"N\",\"Y\"))","v":"-"},{"$f":"IF(OR('Enrollment Form'!$CE972=\"\",'Enrollment Form'!$CE972=\"No\"),\"-\",IF(AND('Enrollment Form'!$CE972=\"Yes\",'Enrollment Form'!$CF972=\"\"),\"N\",\"Y\"))","v":"-"},{"$f":"IF(OR('Enrollment Form'!$CG972=\"\",'Enrollment Form'!$CG972=\"No\"),\"-\",IF(AND('Enrollment Form'!$CG972=\"Yes\",'Enrollment Form'!$CH972=\"\"),\"N\",\"Y\"))","v":"-"},{"$f":"IF(OR('Enrollment Form'!$CG972=\"\",'Enrollment Form'!$CG972=\"No\"),\"-\",IF(AND('Enrollment Form'!$CG972=\"Yes\",'Enrollment Form'!$CI972=\"\"),\"N\",\"Y\"))","v":"-"},{"$f":"IF('Enrollment Form'!B972<>\"Subscriber\",\"-\",IF(AND('Enrollment Form'!B972=\"Subscriber\",'Enrollment Form'!C972=\"Enroll\",'Enrollment Form'!AA972=\"\"),\"N\",\"Y\"))","v":"-"},{"$f":"IF(OR('Enrollment Form'!B972=\"Subscriber\",'Enrollment Form'!B972=\"\"),\"-\",IF('Enrollment Form'!BI972=\"\",\"N\",\"Y\"))","v":"-"},{"$f":"IF('Enrollment Form'!B972<>\"Subscriber\",\"-\",IF(AND('Enrollment Form'!B972=\"Subscriber\",'Enrollment Form'!G972=\"\"),\"N\",\"Y\"))","v":"-"},{"$f":"IF('Enrollment Form'!A972=\"\",\"\",IF('Enrollment Form'!B972=\"Subscriber\",\"-\",IF(AND('Enrollment Form'!B972<>\"Subscriber\",'Enrollment Form'!G972='Enrollment Form'!H972),\"N\",\"Y\")))","v":""},0]
[{"$f":"1+A965","v":973},{"$f":"IF('Enrollment Form'!$A973<>\"\",\"Y\",\"N\")","v":"N"},{"$f":"IF(AND('Enrollment Form'!$B973=\"\",'Enrollment Form'!$C973<>\"\"),\"N\",IF($B966=\"N\",\"\",\"Y\"))","v":""},{"$f":"IF(OR($B966=\"N\",'Enrollment Form'!G973=\"\"),\"\",IF('Enrollment Form'!$B973<>\"Subscriber\",\"\",IF('Enrollment Form'!$G973='Enrollment Form'!$H973,\"Y\",\"N\")))","v":""},{"$f":"IF($B966=\"N\",\"\",IF(AND(COUNTIFS('Enrollment Form'!$H$11:$H$1000,'Enrollment Form'!$H973,'Enrollment Form'!$B$11:$B$1000,'Enrollment Form'!$B973)>1,'Enrollment Form'!$H973<>\"\"),\"N\",\"Y\"))","v":""},{"$f":"IF($B966=\"N\",\"\",IF(LEN('Enrollment Form'!$Y973)=0,\"\",IF(LEN('Enrollment Form'!$Y973)<>5,\"N\",\"Y\")))","v":""},{"$f":"IF($B966=\"N\",\"\",IF(LEN('Enrollment Form'!$AD973=0),\"\",IF(LEN('Enrollment Form'!$AD973)<>5,\"N\",\"Y\")))","v":""},{"$f":"IF($B966=\"N\",\"\",IF(LEN('Enrollment Form'!$BL973=0),\"\",IF(LEN('Enrollment Form'!$BL973)<>5,\"N\",\"Y\")))","v":""},{"$f":"IF($B966=\"N\",\"\",IF(LEN('Enrollment Form'!$AE973)=0,\"\",IF(LEN('Enrollment Form'!$AE973)<>10,\"N\",\"Y\")))","v":""},{"$f":"IF($B966=\"N\",\"\",IF(LEN('Enrollment Form'!$AF973)=0,\"\",IF(LEN('Enrollment Form'!$AF973)<>10,\"N\",\"Y\")))","v":""},{"$f":"IF('Enrollment Form'!$O973<>\"Graded\",\"-\",IF(AND('Enrollment Form'!$O973=\"Graded\",'Enrollment Form'!$AO973<>\"\"),\"Y\",\"N\"))","v":"-"},{"$f":"IF($B966=\"N\",\"\",IF(OR('Enrollment Form'!$B973<>\"Subscriber\",'Enrollment Form'!$C973=\"ROC\"),\"-\",IF(AND('Enrollment Form'!$B973=\"Subscriber\",'Enrollment Form'!$C973=\"Enroll\",'Enrollment Form'!$AJ973<>\"\"),\"Y\",\"N\")))","v":""},{"$f":"IF($B966=\"N\",\"\",IF(OR('Enrollment Form'!$B973<>\"Subscriber\",'Enrollment Form'!$C973=\"ROC\"),\"-\",IF(AND('Enrollment Form'!$B973=\"Subscriber\",'Enrollment Form'!$C973=\"Enroll\",'Enrollment Form'!$AK973<>\"\"),\"Y\",\"N\")))","v":""},{"$f":"IF($B966=\"N\",\"\",IF(OR('Enrollment Form'!$B973<>\"Subscriber\",'Enrollment Form'!$C973=\"ROC\"),\"-\",IF(AND('Enrollment Form'!$B973=\"Subscriber\",'Enrollment Form'!$C973=\"Enroll\",'Enrollment Form'!$AL973<>\"\"),\"Y\",\"N\")))","v":""},{"$f":"IF($B966=\"N\",\"\",IF(OR('Enrollment Form'!$B973<>\"Subscriber\",'Enrollment Form'!$C973=\"ROC\"),\"-\",IF(AND('Enrollment Form'!$B973=\"Subscriber\",'Enrollment Form'!$C973=\"Enroll\",'Enrollment Form'!$AM973<>\"\"),\"Y\",\"N\")))","v":""},{"$f":"IF($B966=\"N\",\"\",IF(OR('Enrollment Form'!$B973<>\"Subscriber\",'Enrollment Form'!$C973=\"ROC\"),\"-\",IF(AND('Enrollment Form'!$B973=\"Subscriber\",'Enrollment Form'!$C973=\"Enroll\",'Enrollment Form'!$AN973<>\"\"),\"Y\",\"N\")))","v":""},{"$f":"IF($B966=\"N\",\"\",IF(OR('Enrollment Form'!$B973<>\"Subscriber\",'Enrollment Form'!$C973=\"ROC\"),\"-\",IF(AND('Enrollment Form'!$B973=\"Subscriber\",'Enrollment Form'!$C973=\"Enroll\",'Enrollment Form'!$AP973<>\"\"),\"Y\",\"N\")))","v":""},{"$f":"IF($B966=\"N\",\"\",IF($Q966=\"-\",\"-\",IF(AND($Q966=\"Y\",'Enrollment Form'!$AP973=\"No\"),\"-\",IF(AND($Q966=\"Y\",'Enrollment Form'!$AP973=\"Yes\",'Enrollment Form'!$AQ973<>\"\"),\"Y\",\"N\"))))","v":""},{"$f":"IF($B966=\"N\",\"\",IF(OR('Enrollment Form'!$B973<>\"Subscriber\",'Enrollment Form'!$C973=\"ROC\"),\"-\",IF(AND('Enrollment Form'!$B973=\"Subscriber\",'Enrollment Form'!$C973=\"Enroll\",'Enrollment Form'!$CO973<>\"\"),\"Y\",\"N\")))","v":""},{"$f":"IF($B966=\"N\",\"\",IF($S966=\"-\",\"-\",IF(AND($S966=\"Y\",'Enrollment Form'!$CO973=\"No\"),\"-\",IF(AND($S966=\"Y\",'Enrollment Form'!$CO973=\"Yes\",'Enrollment Form'!$CP973<>\"\"),\"Y\",\"N\"))))","v":""},{"$f":"IF(OR('Enrollment Form'!$AV973=\"Yes\",'Enrollment Form'!$AV973=\"\"),\"-\",IF(AND('Enrollment Form'!$AV973=\"No\",ISERROR(FIND(\"HMO\",VLOOKUP('Enrollment Form'!G973,'Enrollment Form'!H$11:J$1000,3,FALSE),1))=FALSE,COUNTA('Enrollment Form'!$AW973:$AZ973)=4),\"Y\",\"N\"))","v":"-"},{"$f":"IF($B966=\"N\",\"\",IF('Enrollment Form'!$B973=\"Subscriber\",\"-\",IF(COUNTA('Enrollment Form'!$BE973,'Enrollment Form'!$BG973)=2,\"Y\",\"N\")))","v":""},{"$f":"IF($B966=\"N\",\"\",IF(OR('Enrollment Form'!$AU973=\"\",'Enrollment Form'!$AU973=\"No\"),\"-\",IF(AND('Enrollment Form'!$AU973=\"Yes\",COUNTA('Enrollment Form'!$CK973)=1),\"Y\",\"N\")))","v":""},{"$f":"IF(OR('Enrollment Form'!$CK973=\"\",'Enrollment Form'!$CK973=\"No\"),\"-\",IF(COUNTA('Enrollment Form'!$CM973:$CN973)=2,\"Y\",\"N\"))","v":"-"},{"$f":"IF($B966=\"N\",\"\",IF(COUNTIF('Enrollment Form'!$CZ973:$DO973,\"Other\")=COUNTA('Enrollment Form'!$DF973,'Enrollment Form'!$DA973,'Enrollment Form'!$DK973,'Enrollment Form'!$DP973),\"Y\",\"N\"))","v":""},{"$f":"IF($B966=\"N\",\"\",IF(OR('Enrollment Form'!B973<>\"Subscriber\",'Enrollment Form'!C973=\"ROC\",COUNTIF('Enrollment Form'!AS973:AT973,\"Yes\")>=1),\"-\",IF(AND('Enrollment Form'!C973=\"Enroll\",COUNTIF('Enrollment Form'!AS973:AT973,\"No\")=2,'Enrollment Form'!AU973=\"\"),\"N\",\"Y\")))","v":""},{"$f":"IF(OR(B966=\"N\",'Enrollment Form'!B973<>\"Subscriber\",'Enrollment Form'!C973=\"ROC\",'Enrollment Form'!O973<>\"Multiple of Salary\"),\"-\",IF(COUNTA('Enrollment Form'!T973:U973)<2,\"N\",\"Y\"))","v":"-"},{"$f":"IF(B966=\"N\",\"\",IF(OR('Enrollment Form'!C973=\"ROC\",'Enrollment Form'!B973<>\"Subscriber\",'Enrollment Form'!O973=\"Waive\",'Enrollment Form'!O973=\"\"),\"-\",IF('Enrollment Form'!P973=\"\",\"N\",\"Y\")))","v":""},{"$f":"IF($B966=\"N\",\"\",IF(AND('Enrollment Form'!$C973=\"ROC\",'Enrollment Form'!$DS973<>\"\"),\"Y\",IF(AND('Enrollment Form'!$C973=\"ROC\",'Enrollment Form'!$DS973=\"\"),\"N\",IF(AND('Enrollment Form'!$C973=\"Enroll\",'Enrollment Form'!$B973=\"Subscriber\",'Enrollment Form'!$CQ973=\"No\",'Enrollment Form'!$DS973=\"\"),\"N\",IF(AND('Enrollment Form'!$C973=\"Enroll\",'Enrollment Form'!$B973=\"Subscriber\",'Enrollment Form'!$CQ973=\"Yes\"),\"-\",\"Y\")))))","v":""},{"$f":"IF($B966=\"N\",\"\",IF(AND('Enrollment Form'!$C973=\"ROC\",'Enrollment Form'!$DT973<>\"\"),\"Y\",IF(AND('Enrollment Form'!$C973=\"ROC\",'Enrollment Form'!$DT973=\"\"),\"N\",IF(AND('Enrollment Form'!$C973=\"Enroll\",'Enrollment Form'!$B973=\"Subscriber\",'Enrollment Form'!$CQ973=\"No\",'Enrollment Form'!$DT973=\"\"),\"N\",IF(AND('Enrollment Form'!$C973=\"Enroll\",'Enrollment Form'!$B973=\"Subscriber\",'Enrollment Form'!$CQ973=\"Yes\"),\"-\",\"Y\")))))","v":""},{"$f":"IF('Enrollment Form'!AH973=\"\",\"\",IF(ISERROR(SEARCH(\".\",'Enrollment Form'!AH973,SEARCH(\"@\",'Enrollment Form'!AH973))),\"N\",\"Y\"))","v":""},{"$f":"IF(OR($B966=\"N\",'Enrollment Form'!$G973=\"\"),\"\",IF('Enrollment Form'!$B973<>\"Subscriber\",\"-\",IF(COUNTIF('Enrollment Form'!$AS973:$AT973,\"Yes\")=2,\"N\",\"Y\")))","v":""},{"$f":"IF(OR('Enrollment Form'!$CC973=\"\",'Enrollment Form'!$CC973=\"No\"),\"-\",IF(AND('Enrollment Form'!$CC973=\"Yes\",'Enrollment Form'!$CD973=\"\"),\"N\",\"Y\"))","v":"-"},{"$f":"IF(OR('Enrollment Form'!$CE973=\"\",'Enrollment Form'!$CE973=\"No\"),\"-\",IF(AND('Enrollment Form'!$CE973=\"Yes\",'Enrollment Form'!$CF973=\"\"),\"N\",\"Y\"))","v":"-"},{"$f":"IF(OR('Enrollment Form'!$CG973=\"\",'Enrollment Form'!$CG973=\"No\"),\"-\",IF(AND('Enrollment Form'!$CG973=\"Yes\",'Enrollment Form'!$CH973=\"\"),\"N\",\"Y\"))","v":"-"},{"$f":"IF(OR('Enrollment Form'!$CG973=\"\",'Enrollment Form'!$CG973=\"No\"),\"-\",IF(AND('Enrollment Form'!$CG973=\"Yes\",'Enrollment Form'!$CI973=\"\"),\"N\",\"Y\"))","v":"-"},{"$f":"IF('Enrollment Form'!B973<>\"Subscriber\",\"-\",IF(AND('Enrollment Form'!B973=\"Subscriber\",'Enrollment Form'!C973=\"Enroll\",'Enrollment Form'!AA973=\"\"),\"N\",\"Y\"))","v":"-"},{"$f":"IF(OR('Enrollment Form'!B973=\"Subscriber\",'Enrollment Form'!B973=\"\"),\"-\",IF('Enrollment Form'!BI973=\"\",\"N\",\"Y\"))","v":"-"},{"$f":"IF('Enrollment Form'!B973<>\"Subscriber\",\"-\",IF(AND('Enrollment Form'!B973=\"Subscriber\",'Enrollment Form'!G973=\"\"),\"N\",\"Y\"))","v":"-"},{"$f":"IF('Enrollment Form'!A973=\"\",\"\",IF('Enrollment Form'!B973=\"Subscriber\",\"-\",IF(AND('Enrollment Form'!B973<>\"Subscriber\",'Enrollment Form'!G973='Enrollment Form'!H973),\"N\",\"Y\")))","v":""},0]
[974,{"$f":"IF('Enrollment Form'!$A974<>\"\",\"Y\",\"N\")","v":"N"},{"$f":"IF(AND('Enrollment Form'!$B974=\"\",'Enrollment Form'!$C974<>\"\"),\"N\",IF($B967=\"N\",\"\",\"Y\"))","v":""},{"$f":"IF(OR($B967=\"N\",'Enrollment Form'!G974=\"\"),\"\",IF('Enrollment Form'!$B974<>\"Subscriber\",\"\",IF('Enrollment Form'!$G974='Enrollment Form'!$H974,\"Y\",\"N\")))","v":""},{"$f":"IF($B967=\"N\",\"\",IF(AND(COUNTIFS('Enrollment Form'!$H$11:$H$1000,'Enrollment Form'!$H974,'Enrollment Form'!$B$11:$B$1000,'Enrollment Form'!$B974)>1,'Enrollment Form'!$H974<>\"\"),\"N\",\"Y\"))","v":""},{"$f":"IF($B967=\"N\",\"\",IF(LEN('Enrollment Form'!$Y974)=0,\"\",IF(LEN('Enrollment Form'!$Y974)<>5,\"N\",\"Y\")))","v":""},{"$f":"IF($B967=\"N\",\"\",IF(LEN('Enrollment Form'!$AD974=0),\"\",IF(LEN('Enrollment Form'!$AD974)<>5,\"N\",\"Y\")))","v":""},{"$f":"IF($B967=\"N\",\"\",IF(LEN('Enrollment Form'!$BL974=0),\"\",IF(LEN('Enrollment Form'!$BL974)<>5,\"N\",\"Y\")))","v":""},{"$f":"IF($B967=\"N\",\"\",IF(LEN('Enrollment Form'!$AE974)=0,\"\",IF(LEN('Enrollment Form'!$AE974)<>10,\"N\",\"Y\")))","v":""},{"$f":"IF($B967=\"N\",\"\",IF(LEN('Enrollment Form'!$AF974)=0,\"\",IF(LEN('Enrollment Form'!$AF974)<>10,\"N\",\"Y\")))","v":""},{"$f":"IF('Enrollment Form'!$O974<>\"Graded\",\"-\",IF(AND('Enrollment Form'!$O974=\"Graded\",'Enrollment Form'!$AO974<>\"\"),\"Y\",\"N\"))","v":"-"},{"$f":"IF($B967=\"N\",\"\",IF(OR('Enrollment Form'!$B974<>\"Subscriber\",'Enrollment Form'!$C974=\"ROC\"),\"-\",IF(AND('Enrollment Form'!$B974=\"Subscriber\",'Enrollment Form'!$C974=\"Enroll\",'Enrollment Form'!$AJ974<>\"\"),\"Y\",\"N\")))","v":""},{"$f":"IF($B967=\"N\",\"\",IF(OR('Enrollment Form'!$B974<>\"Subscriber\",'Enrollment Form'!$C974=\"ROC\"),\"-\",IF(AND('Enrollment Form'!$B974=\"Subscriber\",'Enrollment Form'!$C974=\"Enroll\",'Enrollment Form'!$AK974<>\"\"),\"Y\",\"N\")))","v":""},{"$f":"IF($B967=\"N\",\"\",IF(OR('Enrollment Form'!$B974<>\"Subscriber\",'Enrollment Form'!$C974=\"ROC\"),\"-\",IF(AND('Enrollment Form'!$B974=\"Subscriber\",'Enrollment Form'!$C974=\"Enroll\",'Enrollment Form'!$AL974<>\"\"),\"Y\",\"N\")))","v":""},{"$f":"IF($B967=\"N\",\"\",IF(OR('Enrollment Form'!$B974<>\"Subscriber\",'Enrollment Form'!$C974=\"ROC\"),\"-\",IF(AND('Enrollment Form'!$B974=\"Subscriber\",'Enrollment Form'!$C974=\"Enroll\",'Enrollment Form'!$AM974<>\"\"),\"Y\",\"N\")))","v":""},{"$f":"IF($B967=\"N\",\"\",IF(OR('Enrollment Form'!$B974<>\"Subscriber\",'Enrollment Form'!$C974=\"ROC\"),\"-\",IF(AND('Enrollment Form'!$B974=\"Subscriber\",'Enrollment Form'!$C974=\"Enroll\",'Enrollment Form'!$AN974<>\"\"),\"Y\",\"N\")))","v":""},{"$f":"IF($B967=\"N\",\"\",IF(OR('Enrollment Form'!$B974<>\"Subscriber\",'Enrollment Form'!$C974=\"ROC\"),\"-\",IF(AND('Enrollment Form'!$B974=\"Subscriber\",'Enrollment Form'!$C974=\"Enroll\",'Enrollment Form'!$AP974<>\"\"),\"Y\",\"N\")))","v":""},{"$f":"IF($B967=\"N\",\"\",IF($Q967=\"-\",\"-\",IF(AND($Q967=\"Y\",'Enrollment Form'!$AP974=\"No\"),\"-\",IF(AND($Q967=\"Y\",'Enrollment Form'!$AP974=\"Yes\",'Enrollment Form'!$AQ974<>\"\"),\"Y\",\"N\"))))","v":""},{"$f":"IF($B967=\"N\",\"\",IF(OR('Enrollment Form'!$B974<>\"Subscriber\",'Enrollment Form'!$C974=\"ROC\"),\"-\",IF(AND('Enrollment Form'!$B974=\"Subscriber\",'Enrollment Form'!$C974=\"Enroll\",'Enrollment Form'!$CO974<>\"\"),\"Y\",\"N\")))","v":""},{"$f":"IF($B967=\"N\",\"\",IF($S967=\"-\",\"-\",IF(AND($S967=\"Y\",'Enrollment Form'!$CO974=\"No\"),\"-\",IF(AND($S967=\"Y\",'Enrollment Form'!$CO974=\"Yes\",'Enrollment Form'!$CP974<>\"\"),\"Y\",\"N\"))))","v":""},{"$f":"IF(OR('Enrollment Form'!$AV974=\"Yes\",'Enrollment Form'!$AV974=\"\"),\"-\",IF(AND('Enrollment Form'!$AV974=\"No\",ISERROR(FIND(\"HMO\",VLOOKUP('Enrollment Form'!G974,'Enrollment Form'!H$11:J$1000,3,FALSE),1))=FALSE,COUNTA('Enrollment Form'!$AW974:$AZ974)=4),\"Y\",\"N\"))","v":"-"},{"$f":"IF($B967=\"N\",\"\",IF('Enrollment Form'!$B974=\"Subscriber\",\"-\",IF(COUNTA('Enrollment Form'!$BE974,'Enrollment Form'!$BG974)=2,\"Y\",\"N\")))","v":""},{"$f":"IF($B967=\"N\",\"\",IF(OR('Enrollment Form'!$AU974=\"\",'Enrollment Form'!$AU974=\"No\"),\"-\",IF(AND('Enrollment Form'!$AU974=\"Yes\",COUNTA('Enrollment Form'!$CK974)=1),\"Y\",\"N\")))","v":""},{"$f":"IF(OR('Enrollment Form'!$CK974=\"\",'Enrollment Form'!$CK974=\"No\"),\"-\",IF(COUNTA('Enrollment Form'!$CM974:$CN974)=2,\"Y\",\"N\"))","v":"-"},{"$f":"IF($B967=\"N\",\"\",IF(COUNTIF('Enrollment Form'!$CZ974:$DO974,\"Other\")=COUNTA('Enrollment Form'!$DF974,'Enrollment Form'!$DA974,'Enrollment Form'!$DK974,'Enrollment Form'!$DP974),\"Y\",\"N\"))","v":""},{"$f":"IF($B967=\"N\",\"\",IF(OR('Enrollment Form'!B974<>\"Subscriber\",'Enrollment Form'!C974=\"ROC\",COUNTIF('Enrollment Form'!AS974:AT974,\"Yes\")>=1),\"-\",IF(AND('Enrollment Form'!C974=\"Enroll\",COUNTIF('Enrollment Form'!AS974:AT974,\"No\")=2,'Enrollment Form'!AU974=\"\"),\"N\",\"Y\")))","v":""},{"$f":"IF(OR(B967=\"N\",'Enrollment Form'!B974<>\"Subscriber\",'Enrollment Form'!C974=\"ROC\",'Enrollment Form'!O974<>\"Multiple of Salary\"),\"-\",IF(COUNTA('Enrollment Form'!T974:U974)<2,\"N\",\"Y\"))","v":"-"},{"$f":"IF(B967=\"N\",\"\",IF(OR('Enrollment Form'!C974=\"ROC\",'Enrollment Form'!B974<>\"Subscriber\",'Enrollment Form'!O974=\"Waive\",'Enrollment Form'!O974=\"\"),\"-\",IF('Enrollment Form'!P974=\"\",\"N\",\"Y\")))","v":""},{"$f":"IF($B967=\"N\",\"\",IF(AND('Enrollment Form'!$C974=\"ROC\",'Enrollment Form'!$DS974<>\"\"),\"Y\",IF(AND('Enrollment Form'!$C974=\"ROC\",'Enrollment Form'!$DS974=\"\"),\"N\",IF(AND('Enrollment Form'!$C974=\"Enroll\",'Enrollment Form'!$B974=\"Subscriber\",'Enrollment Form'!$CQ974=\"No\",'Enrollment Form'!$DS974=\"\"),\"N\",IF(AND('Enrollment Form'!$C974=\"Enroll\",'Enrollment Form'!$B974=\"Subscriber\",'Enrollment Form'!$CQ974=\"Yes\"),\"-\",\"Y\")))))","v":""},{"$f":"IF($B967=\"N\",\"\",IF(AND('Enrollment Form'!$C974=\"ROC\",'Enrollment Form'!$DT974<>\"\"),\"Y\",IF(AND('Enrollment Form'!$C974=\"ROC\",'Enrollment Form'!$DT974=\"\"),\"N\",IF(AND('Enrollment Form'!$C974=\"Enroll\",'Enrollment Form'!$B974=\"Subscriber\",'Enrollment Form'!$CQ974=\"No\",'Enrollment Form'!$DT974=\"\"),\"N\",IF(AND('Enrollment Form'!$C974=\"Enroll\",'Enrollment Form'!$B974=\"Subscriber\",'Enrollment Form'!$CQ974=\"Yes\"),\"-\",\"Y\")))))","v":""},{"$f":"IF('Enrollment Form'!AH974=\"\",\"\",IF(ISERROR(SEARCH(\".\",'Enrollment Form'!AH974,SEARCH(\"@\",'Enrollment Form'!AH974))),\"N\",\"Y\"))","v":""},{"$f":"IF(OR($B967=\"N\",'Enrollment Form'!$G974=\"\"),\"\",IF('Enrollment Form'!$B974<>\"Subscriber\",\"-\",IF(COUNTIF('Enrollment Form'!$AS974:$AT974,\"Yes\")=2,\"N\",\"Y\")))","v":""},{"$f":"IF(OR('Enrollment Form'!$CC974=\"\",'Enrollment Form'!$CC974=\"No\"),\"-\",IF(AND('Enrollment Form'!$CC974=\"Yes\",'Enrollment Form'!$CD974=\"\"),\"N\",\"Y\"))","v":"-"},{"$f":"IF(OR('Enrollment Form'!$CE974=\"\",'Enrollment Form'!$CE974=\"No\"),\"-\",IF(AND('Enrollment Form'!$CE974=\"Yes\",'Enrollment Form'!$CF974=\"\"),\"N\",\"Y\"))","v":"-"},{"$f":"IF(OR('Enrollment Form'!$CG974=\"\",'Enrollment Form'!$CG974=\"No\"),\"-\",IF(AND('Enrollment Form'!$CG974=\"Yes\",'Enrollment Form'!$CH974=\"\"),\"N\",\"Y\"))","v":"-"},{"$f":"IF(OR('Enrollment Form'!$CG974=\"\",'Enrollment Form'!$CG974=\"No\"),\"-\",IF(AND('Enrollment Form'!$CG974=\"Yes\",'Enrollment Form'!$CI974=\"\"),\"N\",\"Y\"))","v":"-"},{"$f":"IF('Enrollment Form'!B974<>\"Subscriber\",\"-\",IF(AND('Enrollment Form'!B974=\"Subscriber\",'Enrollment Form'!C974=\"Enroll\",'Enrollment Form'!AA974=\"\"),\"N\",\"Y\"))","v":"-"},{"$f":"IF(OR('Enrollment Form'!B974=\"Subscriber\",'Enrollment Form'!B974=\"\"),\"-\",IF('Enrollment Form'!BI974=\"\",\"N\",\"Y\"))","v":"-"},{"$f":"IF('Enrollment Form'!B974<>\"Subscriber\",\"-\",IF(AND('Enrollment Form'!B974=\"Subscriber\",'Enrollment Form'!G974=\"\"),\"N\",\"Y\"))","v":"-"},{"$f":"IF('Enrollment Form'!A974=\"\",\"\",IF('Enrollment Form'!B974=\"Subscriber\",\"-\",IF(AND('Enrollment Form'!B974<>\"Subscriber\",'Enrollment Form'!G974='Enrollment Form'!H974),\"N\",\"Y\")))","v":""},0]
[975,{"$f":"IF('Enrollment Form'!$A975<>\"\",\"Y\",\"N\")","v":"N"},{"$f":"IF(AND('Enrollment Form'!$B975=\"\",'Enrollment Form'!$C975<>\"\"),\"N\",IF($B968=\"N\",\"\",\"Y\"))","v":""},{"$f":"IF(OR($B968=\"N\",'Enrollment Form'!G975=\"\"),\"\",IF('Enrollment Form'!$B975<>\"Subscriber\",\"\",IF('Enrollment Form'!$G975='Enrollment Form'!$H975,\"Y\",\"N\")))","v":""},{"$f":"IF($B968=\"N\",\"\",IF(AND(COUNTIFS('Enrollment Form'!$H$11:$H$1000,'Enrollment Form'!$H975,'Enrollment Form'!$B$11:$B$1000,'Enrollment Form'!$B975)>1,'Enrollment Form'!$H975<>\"\"),\"N\",\"Y\"))","v":""},{"$f":"IF($B968=\"N\",\"\",IF(LEN('Enrollment Form'!$Y975)=0,\"\",IF(LEN('Enrollment Form'!$Y975)<>5,\"N\",\"Y\")))","v":""},{"$f":"IF($B968=\"N\",\"\",IF(LEN('Enrollment Form'!$AD975=0),\"\",IF(LEN('Enrollment Form'!$AD975)<>5,\"N\",\"Y\")))","v":""},{"$f":"IF($B968=\"N\",\"\",IF(LEN('Enrollment Form'!$BL975=0),\"\",IF(LEN('Enrollment Form'!$BL975)<>5,\"N\",\"Y\")))","v":""},{"$f":"IF($B968=\"N\",\"\",IF(LEN('Enrollment Form'!$AE975)=0,\"\",IF(LEN('Enrollment Form'!$AE975)<>10,\"N\",\"Y\")))","v":""},{"$f":"IF($B968=\"N\",\"\",IF(LEN('Enrollment Form'!$AF975)=0,\"\",IF(LEN('Enrollment Form'!$AF975)<>10,\"N\",\"Y\")))","v":""},{"$f":"IF('Enrollment Form'!$O975<>\"Graded\",\"-\",IF(AND('Enrollment Form'!$O975=\"Graded\",'Enrollment Form'!$AO975<>\"\"),\"Y\",\"N\"))","v":"-"},{"$f":"IF($B968=\"N\",\"\",IF(OR('Enrollment Form'!$B975<>\"Subscriber\",'Enrollment Form'!$C975=\"ROC\"),\"-\",IF(AND('Enrollment Form'!$B975=\"Subscriber\",'Enrollment Form'!$C975=\"Enroll\",'Enrollment Form'!$AJ975<>\"\"),\"Y\",\"N\")))","v":""},{"$f":"IF($B968=\"N\",\"\",IF(OR('Enrollment Form'!$B975<>\"Subscriber\",'Enrollment Form'!$C975=\"ROC\"),\"-\",IF(AND('Enrollment Form'!$B975=\"Subscriber\",'Enrollment Form'!$C975=\"Enroll\",'Enrollment Form'!$AK975<>\"\"),\"Y\",\"N\")))","v":""},{"$f":"IF($B968=\"N\",\"\",IF(OR('Enrollment Form'!$B975<>\"Subscriber\",'Enrollment Form'!$C975=\"ROC\"),\"-\",IF(AND('Enrollment Form'!$B975=\"Subscriber\",'Enrollment Form'!$C975=\"Enroll\",'Enrollment Form'!$AL975<>\"\"),\"Y\",\"N\")))","v":""},{"$f":"IF($B968=\"N\",\"\",IF(OR('Enrollment Form'!$B975<>\"Subscriber\",'Enrollment Form'!$C975=\"ROC\"),\"-\",IF(AND('Enrollment Form'!$B975=\"Subscriber\",'Enrollment Form'!$C975=\"Enroll\",'Enrollment Form'!$AM975<>\"\"),\"Y\",\"N\")))","v":""},{"$f":"IF($B968=\"N\",\"\",IF(OR('Enrollment Form'!$B975<>\"Subscriber\",'Enrollment Form'!$C975=\"ROC\"),\"-\",IF(AND('Enrollment Form'!$B975=\"Subscriber\",'Enrollment Form'!$C975=\"Enroll\",'Enrollment Form'!$AN975<>\"\"),\"Y\",\"N\")))","v":""},{"$f":"IF($B968=\"N\",\"\",IF(OR('Enrollment Form'!$B975<>\"Subscriber\",'Enrollment Form'!$C975=\"ROC\"),\"-\",IF(AND('Enrollment Form'!$B975=\"Subscriber\",'Enrollment Form'!$C975=\"Enroll\",'Enrollment Form'!$AP975<>\"\"),\"Y\",\"N\")))","v":""},{"$f":"IF($B968=\"N\",\"\",IF($Q968=\"-\",\"-\",IF(AND($Q968=\"Y\",'Enrollment Form'!$AP975=\"No\"),\"-\",IF(AND($Q968=\"Y\",'Enrollment Form'!$AP975=\"Yes\",'Enrollment Form'!$AQ975<>\"\"),\"Y\",\"N\"))))","v":""},{"$f":"IF($B968=\"N\",\"\",IF(OR('Enrollment Form'!$B975<>\"Subscriber\",'Enrollment Form'!$C975=\"ROC\"),\"-\",IF(AND('Enrollment Form'!$B975=\"Subscriber\",'Enrollment Form'!$C975=\"Enroll\",'Enrollment Form'!$CO975<>\"\"),\"Y\",\"N\")))","v":""},{"$f":"IF($B968=\"N\",\"\",IF($S968=\"-\",\"-\",IF(AND($S968=\"Y\",'Enrollment Form'!$CO975=\"No\"),\"-\",IF(AND($S968=\"Y\",'Enrollment Form'!$CO975=\"Yes\",'Enrollment Form'!$CP975<>\"\"),\"Y\",\"N\"))))","v":""},{"$f":"IF(OR('Enrollment Form'!$AV975=\"Yes\",'Enrollment Form'!$AV975=\"\"),\"-\",IF(AND('Enrollment Form'!$AV975=\"No\",ISERROR(FIND(\"HMO\",VLOOKUP('Enrollment Form'!G975,'Enrollment Form'!H$11:J$1000,3,FALSE),1))=FALSE,COUNTA('Enrollment Form'!$AW975:$AZ975)=4),\"Y\",\"N\"))","v":"-"},{"$f":"IF($B968=\"N\",\"\",IF('Enrollment Form'!$B975=\"Subscriber\",\"-\",IF(COUNTA('Enrollment Form'!$BE975,'Enrollment Form'!$BG975)=2,\"Y\",\"N\")))","v":""},{"$f":"IF($B968=\"N\",\"\",IF(OR('Enrollment Form'!$AU975=\"\",'Enrollment Form'!$AU975=\"No\"),\"-\",IF(AND('Enrollment Form'!$AU975=\"Yes\",COUNTA('Enrollment Form'!$CK975)=1),\"Y\",\"N\")))","v":""},{"$f":"IF(OR('Enrollment Form'!$CK975=\"\",'Enrollment Form'!$CK975=\"No\"),\"-\",IF(COUNTA('Enrollment Form'!$CM975:$CN975)=2,\"Y\",\"N\"))","v":"-"},{"$f":"IF($B968=\"N\",\"\",IF(COUNTIF('Enrollment Form'!$CZ975:$DO975,\"Other\")=COUNTA('Enrollment Form'!$DF975,'Enrollment Form'!$DA975,'Enrollment Form'!$DK975,'Enrollment Form'!$DP975),\"Y\",\"N\"))","v":""},{"$f":"IF($B968=\"N\",\"\",IF(OR('Enrollment Form'!B975<>\"Subscriber\",'Enrollment Form'!C975=\"ROC\",COUNTIF('Enrollment Form'!AS975:AT975,\"Yes\")>=1),\"-\",IF(AND('Enrollment Form'!C975=\"Enroll\",COUNTIF('Enrollment Form'!AS975:AT975,\"No\")=2,'Enrollment Form'!AU975=\"\"),\"N\",\"Y\")))","v":""},{"$f":"IF(OR(B968=\"N\",'Enrollment Form'!B975<>\"Subscriber\",'Enrollment Form'!C975=\"ROC\",'Enrollment Form'!O975<>\"Multiple of Salary\"),\"-\",IF(COUNTA('Enrollment Form'!T975:U975)<2,\"N\",\"Y\"))","v":"-"},{"$f":"IF(B968=\"N\",\"\",IF(OR('Enrollment Form'!C975=\"ROC\",'Enrollment Form'!B975<>\"Subscriber\",'Enrollment Form'!O975=\"Waive\",'Enrollment Form'!O975=\"\"),\"-\",IF('Enrollment Form'!P975=\"\",\"N\",\"Y\")))","v":""},{"$f":"IF($B968=\"N\",\"\",IF(AND('Enrollment Form'!$C975=\"ROC\",'Enrollment Form'!$DS975<>\"\"),\"Y\",IF(AND('Enrollment Form'!$C975=\"ROC\",'Enrollment Form'!$DS975=\"\"),\"N\",IF(AND('Enrollment Form'!$C975=\"Enroll\",'Enrollment Form'!$B975=\"Subscriber\",'Enrollment Form'!$CQ975=\"No\",'Enrollment Form'!$DS975=\"\"),\"N\",IF(AND('Enrollment Form'!$C975=\"Enroll\",'Enrollment Form'!$B975=\"Subscriber\",'Enrollment Form'!$CQ975=\"Yes\"),\"-\",\"Y\")))))","v":""},{"$f":"IF($B968=\"N\",\"\",IF(AND('Enrollment Form'!$C975=\"ROC\",'Enrollment Form'!$DT975<>\"\"),\"Y\",IF(AND('Enrollment Form'!$C975=\"ROC\",'Enrollment Form'!$DT975=\"\"),\"N\",IF(AND('Enrollment Form'!$C975=\"Enroll\",'Enrollment Form'!$B975=\"Subscriber\",'Enrollment Form'!$CQ975=\"No\",'Enrollment Form'!$DT975=\"\"),\"N\",IF(AND('Enrollment Form'!$C975=\"Enroll\",'Enrollment Form'!$B975=\"Subscriber\",'Enrollment Form'!$CQ975=\"Yes\"),\"-\",\"Y\")))))","v":""},{"$f":"IF('Enrollment Form'!AH975=\"\",\"\",IF(ISERROR(SEARCH(\".\",'Enrollment Form'!AH975,SEARCH(\"@\",'Enrollment Form'!AH975))),\"N\",\"Y\"))","v":""},{"$f":"IF(OR($B968=\"N\",'Enrollment Form'!$G975=\"\"),\"\",IF('Enrollment Form'!$B975<>\"Subscriber\",\"-\",IF(COUNTIF('Enrollment Form'!$AS975:$AT975,\"Yes\")=2,\"N\",\"Y\")))","v":""},{"$f":"IF(OR('Enrollment Form'!$CC975=\"\",'Enrollment Form'!$CC975=\"No\"),\"-\",IF(AND('Enrollment Form'!$CC975=\"Yes\",'Enrollment Form'!$CD975=\"\"),\"N\",\"Y\"))","v":"-"},{"$f":"IF(OR('Enrollment Form'!$CE975=\"\",'Enrollment Form'!$CE975=\"No\"),\"-\",IF(AND('Enrollment Form'!$CE975=\"Yes\",'Enrollment Form'!$CF975=\"\"),\"N\",\"Y\"))","v":"-"},{"$f":"IF(OR('Enrollment Form'!$CG975=\"\",'Enrollment Form'!$CG975=\"No\"),\"-\",IF(AND('Enrollment Form'!$CG975=\"Yes\",'Enrollment Form'!$CH975=\"\"),\"N\",\"Y\"))","v":"-"},{"$f":"IF(OR('Enrollment Form'!$CG975=\"\",'Enrollment Form'!$CG975=\"No\"),\"-\",IF(AND('Enrollment Form'!$CG975=\"Yes\",'Enrollment Form'!$CI975=\"\"),\"N\",\"Y\"))","v":"-"},{"$f":"IF('Enrollment Form'!B975<>\"Subscriber\",\"-\",IF(AND('Enrollment Form'!B975=\"Subscriber\",'Enrollment Form'!C975=\"Enroll\",'Enrollment Form'!AA975=\"\"),\"N\",\"Y\"))","v":"-"},{"$f":"IF(OR('Enrollment Form'!B975=\"Subscriber\",'Enrollment Form'!B975=\"\"),\"-\",IF('Enrollment Form'!BI975=\"\",\"N\",\"Y\"))","v":"-"},{"$f":"IF('Enrollment Form'!B975<>\"Subscriber\",\"-\",IF(AND('Enrollment Form'!B975=\"Subscriber\",'Enrollment Form'!G975=\"\"),\"N\",\"Y\"))","v":"-"},{"$f":"IF('Enrollment Form'!A975=\"\",\"\",IF('Enrollment Form'!B975=\"Subscriber\",\"-\",IF(AND('Enrollment Form'!B975<>\"Subscriber\",'Enrollment Form'!G975='Enrollment Form'!H975),\"N\",\"Y\")))","v":""},0]
[976,{"$f":"IF('Enrollment Form'!$A976<>\"\",\"Y\",\"N\")","v":"N"},{"$f":"IF(AND('Enrollment Form'!$B976=\"\",'Enrollment Form'!$C976<>\"\"),\"N\",IF($B969=\"N\",\"\",\"Y\"))","v":""},{"$f":"IF(OR($B969=\"N\",'Enrollment Form'!G976=\"\"),\"\",IF('Enrollment Form'!$B976<>\"Subscriber\",\"\",IF('Enrollment Form'!$G976='Enrollment Form'!$H976,\"Y\",\"N\")))","v":""},{"$f":"IF($B969=\"N\",\"\",IF(AND(COUNTIFS('Enrollment Form'!$H$11:$H$1000,'Enrollment Form'!$H976,'Enrollment Form'!$B$11:$B$1000,'Enrollment Form'!$B976)>1,'Enrollment Form'!$H976<>\"\"),\"N\",\"Y\"))","v":""},{"$f":"IF($B969=\"N\",\"\",IF(LEN('Enrollment Form'!$Y976)=0,\"\",IF(LEN('Enrollment Form'!$Y976)<>5,\"N\",\"Y\")))","v":""},{"$f":"IF($B969=\"N\",\"\",IF(LEN('Enrollment Form'!$AD976=0),\"\",IF(LEN('Enrollment Form'!$AD976)<>5,\"N\",\"Y\")))","v":""},{"$f":"IF($B969=\"N\",\"\",IF(LEN('Enrollment Form'!$BL976=0),\"\",IF(LEN('Enrollment Form'!$BL976)<>5,\"N\",\"Y\")))","v":""},{"$f":"IF($B969=\"N\",\"\",IF(LEN('Enrollment Form'!$AE976)=0,\"\",IF(LEN('Enrollment Form'!$AE976)<>10,\"N\",\"Y\")))","v":""},{"$f":"IF($B969=\"N\",\"\",IF(LEN('Enrollment Form'!$AF976)=0,\"\",IF(LEN('Enrollment Form'!$AF976)<>10,\"N\",\"Y\")))","v":""},{"$f":"IF('Enrollment Form'!$O976<>\"Graded\",\"-\",IF(AND('Enrollment Form'!$O976=\"Graded\",'Enrollment Form'!$AO976<>\"\"),\"Y\",\"N\"))","v":"-"},{"$f":"IF($B969=\"N\",\"\",IF(OR('Enrollment Form'!$B976<>\"Subscriber\",'Enrollment Form'!$C976=\"ROC\"),\"-\",IF(AND('Enrollment Form'!$B976=\"Subscriber\",'Enrollment Form'!$C976=\"Enroll\",'Enrollment Form'!$AJ976<>\"\"),\"Y\",\"N\")))","v":""},{"$f":"IF($B969=\"N\",\"\",IF(OR('Enrollment Form'!$B976<>\"Subscriber\",'Enrollment Form'!$C976=\"ROC\"),\"-\",IF(AND('Enrollment Form'!$B976=\"Subscriber\",'Enrollment Form'!$C976=\"Enroll\",'Enrollment Form'!$AK976<>\"\"),\"Y\",\"N\")))","v":""},{"$f":"IF($B969=\"N\",\"\",IF(OR('Enrollment Form'!$B976<>\"Subscriber\",'Enrollment Form'!$C976=\"ROC\"),\"-\",IF(AND('Enrollment Form'!$B976=\"Subscriber\",'Enrollment Form'!$C976=\"Enroll\",'Enrollment Form'!$AL976<>\"\"),\"Y\",\"N\")))","v":""},{"$f":"IF($B969=\"N\",\"\",IF(OR('Enrollment Form'!$B976<>\"Subscriber\",'Enrollment Form'!$C976=\"ROC\"),\"-\",IF(AND('Enrollment Form'!$B976=\"Subscriber\",'Enrollment Form'!$C976=\"Enroll\",'Enrollment Form'!$AM976<>\"\"),\"Y\",\"N\")))","v":""},{"$f":"IF($B969=\"N\",\"\",IF(OR('Enrollment Form'!$B976<>\"Subscriber\",'Enrollment Form'!$C976=\"ROC\"),\"-\",IF(AND('Enrollment Form'!$B976=\"Subscriber\",'Enrollment Form'!$C976=\"Enroll\",'Enrollment Form'!$AN976<>\"\"),\"Y\",\"N\")))","v":""},{"$f":"IF($B969=\"N\",\"\",IF(OR('Enrollment Form'!$B976<>\"Subscriber\",'Enrollment Form'!$C976=\"ROC\"),\"-\",IF(AND('Enrollment Form'!$B976=\"Subscriber\",'Enrollment Form'!$C976=\"Enroll\",'Enrollment Form'!$AP976<>\"\"),\"Y\",\"N\")))","v":""},{"$f":"IF($B969=\"N\",\"\",IF($Q969=\"-\",\"-\",IF(AND($Q969=\"Y\",'Enrollment Form'!$AP976=\"No\"),\"-\",IF(AND($Q969=\"Y\",'Enrollment Form'!$AP976=\"Yes\",'Enrollment Form'!$AQ976<>\"\"),\"Y\",\"N\"))))","v":""},{"$f":"IF($B969=\"N\",\"\",IF(OR('Enrollment Form'!$B976<>\"Subscriber\",'Enrollment Form'!$C976=\"ROC\"),\"-\",IF(AND('Enrollment Form'!$B976=\"Subscriber\",'Enrollment Form'!$C976=\"Enroll\",'Enrollment Form'!$CO976<>\"\"),\"Y\",\"N\")))","v":""},{"$f":"IF($B969=\"N\",\"\",IF($S969=\"-\",\"-\",IF(AND($S969=\"Y\",'Enrollment Form'!$CO976=\"No\"),\"-\",IF(AND($S969=\"Y\",'Enrollment Form'!$CO976=\"Yes\",'Enrollment Form'!$CP976<>\"\"),\"Y\",\"N\"))))","v":""},{"$f":"IF(OR('Enrollment Form'!$AV976=\"Yes\",'Enrollment Form'!$AV976=\"\"),\"-\",IF(AND('Enrollment Form'!$AV976=\"No\",ISERROR(FIND(\"HMO\",VLOOKUP('Enrollment Form'!G976,'Enrollment Form'!H$11:J$1000,3,FALSE),1))=FALSE,COUNTA('Enrollment Form'!$AW976:$AZ976)=4),\"Y\",\"N\"))","v":"-"},{"$f":"IF($B969=\"N\",\"\",IF('Enrollment Form'!$B976=\"Subscriber\",\"-\",IF(COUNTA('Enrollment Form'!$BE976,'Enrollment Form'!$BG976)=2,\"Y\",\"N\")))","v":""},{"$f":"IF($B969=\"N\",\"\",IF(OR('Enrollment Form'!$AU976=\"\",'Enrollment Form'!$AU976=\"No\"),\"-\",IF(AND('Enrollment Form'!$AU976=\"Yes\",COUNTA('Enrollment Form'!$CK976)=1),\"Y\",\"N\")))","v":""},{"$f":"IF(OR('Enrollment Form'!$CK976=\"\",'Enrollment Form'!$CK976=\"No\"),\"-\",IF(COUNTA('Enrollment Form'!$CM976:$CN976)=2,\"Y\",\"N\"))","v":"-"},{"$f":"IF($B969=\"N\",\"\",IF(COUNTIF('Enrollment Form'!$CZ976:$DO976,\"Other\")=COUNTA('Enrollment Form'!$DF976,'Enrollment Form'!$DA976,'Enrollment Form'!$DK976,'Enrollment Form'!$DP976),\"Y\",\"N\"))","v":""},{"$f":"IF($B969=\"N\",\"\",IF(OR('Enrollment Form'!B976<>\"Subscriber\",'Enrollment Form'!C976=\"ROC\",COUNTIF('Enrollment Form'!AS976:AT976,\"Yes\")>=1),\"-\",IF(AND('Enrollment Form'!C976=\"Enroll\",COUNTIF('Enrollment Form'!AS976:AT976,\"No\")=2,'Enrollment Form'!AU976=\"\"),\"N\",\"Y\")))","v":""},{"$f":"IF(OR(B969=\"N\",'Enrollment Form'!B976<>\"Subscriber\",'Enrollment Form'!C976=\"ROC\",'Enrollment Form'!O976<>\"Multiple of Salary\"),\"-\",IF(COUNTA('Enrollment Form'!T976:U976)<2,\"N\",\"Y\"))","v":"-"},{"$f":"IF(B969=\"N\",\"\",IF(OR('Enrollment Form'!C976=\"ROC\",'Enrollment Form'!B976<>\"Subscriber\",'Enrollment Form'!O976=\"Waive\",'Enrollment Form'!O976=\"\"),\"-\",IF('Enrollment Form'!P976=\"\",\"N\",\"Y\")))","v":""},{"$f":"IF($B969=\"N\",\"\",IF(AND('Enrollment Form'!$C976=\"ROC\",'Enrollment Form'!$DS976<>\"\"),\"Y\",IF(AND('Enrollment Form'!$C976=\"ROC\",'Enrollment Form'!$DS976=\"\"),\"N\",IF(AND('Enrollment Form'!$C976=\"Enroll\",'Enrollment Form'!$B976=\"Subscriber\",'Enrollment Form'!$CQ976=\"No\",'Enrollment Form'!$DS976=\"\"),\"N\",IF(AND('Enrollment Form'!$C976=\"Enroll\",'Enrollment Form'!$B976=\"Subscriber\",'Enrollment Form'!$CQ976=\"Yes\"),\"-\",\"Y\")))))","v":""},{"$f":"IF($B969=\"N\",\"\",IF(AND('Enrollment Form'!$C976=\"ROC\",'Enrollment Form'!$DT976<>\"\"),\"Y\",IF(AND('Enrollment Form'!$C976=\"ROC\",'Enrollment Form'!$DT976=\"\"),\"N\",IF(AND('Enrollment Form'!$C976=\"Enroll\",'Enrollment Form'!$B976=\"Subscriber\",'Enrollment Form'!$CQ976=\"No\",'Enrollment Form'!$DT976=\"\"),\"N\",IF(AND('Enrollment Form'!$C976=\"Enroll\",'Enrollment Form'!$B976=\"Subscriber\",'Enrollment Form'!$CQ976=\"Yes\"),\"-\",\"Y\")))))","v":""},{"$f":"IF('Enrollment Form'!AH976=\"\",\"\",IF(ISERROR(SEARCH(\".\",'Enrollment Form'!AH976,SEARCH(\"@\",'Enrollment Form'!AH976))),\"N\",\"Y\"))","v":""},{"$f":"IF(OR($B969=\"N\",'Enrollment Form'!$G976=\"\"),\"\",IF('Enrollment Form'!$B976<>\"Subscriber\",\"-\",IF(COUNTIF('Enrollment Form'!$AS976:$AT976,\"Yes\")=2,\"N\",\"Y\")))","v":""},{"$f":"IF(OR('Enrollment Form'!$CC976=\"\",'Enrollment Form'!$CC976=\"No\"),\"-\",IF(AND('Enrollment Form'!$CC976=\"Yes\",'Enrollment Form'!$CD976=\"\"),\"N\",\"Y\"))","v":"-"},{"$f":"IF(OR('Enrollment Form'!$CE976=\"\",'Enrollment Form'!$CE976=\"No\"),\"-\",IF(AND('Enrollment Form'!$CE976=\"Yes\",'Enrollment Form'!$CF976=\"\"),\"N\",\"Y\"))","v":"-"},{"$f":"IF(OR('Enrollment Form'!$CG976=\"\",'Enrollment Form'!$CG976=\"No\"),\"-\",IF(AND('Enrollment Form'!$CG976=\"Yes\",'Enrollment Form'!$CH976=\"\"),\"N\",\"Y\"))","v":"-"},{"$f":"IF(OR('Enrollment Form'!$CG976=\"\",'Enrollment Form'!$CG976=\"No\"),\"-\",IF(AND('Enrollment Form'!$CG976=\"Yes\",'Enrollment Form'!$CI976=\"\"),\"N\",\"Y\"))","v":"-"},{"$f":"IF('Enrollment Form'!B976<>\"Subscriber\",\"-\",IF(AND('Enrollment Form'!B976=\"Subscriber\",'Enrollment Form'!C976=\"Enroll\",'Enrollment Form'!AA976=\"\"),\"N\",\"Y\"))","v":"-"},{"$f":"IF(OR('Enrollment Form'!B976=\"Subscriber\",'Enrollment Form'!B976=\"\"),\"-\",IF('Enrollment Form'!BI976=\"\",\"N\",\"Y\"))","v":"-"},{"$f":"IF('Enrollment Form'!B976<>\"Subscriber\",\"-\",IF(AND('Enrollment Form'!B976=\"Subscriber\",'Enrollment Form'!G976=\"\"),\"N\",\"Y\"))","v":"-"},{"$f":"IF('Enrollment Form'!A976=\"\",\"\",IF('Enrollment Form'!B976=\"Subscriber\",\"-\",IF(AND('Enrollment Form'!B976<>\"Subscriber\",'Enrollment Form'!G976='Enrollment Form'!H976),\"N\",\"Y\")))","v":""},0]
[977,{"$f":"IF('Enrollment Form'!$A977<>\"\",\"Y\",\"N\")","v":"N"},{"$f":"IF(AND('Enrollment Form'!$B977=\"\",'Enrollment Form'!$C977<>\"\"),\"N\",IF($B970=\"N\",\"\",\"Y\"))","v":""},{"$f":"IF(OR($B970=\"N\",'Enrollment Form'!G977=\"\"),\"\",IF('Enrollment Form'!$B977<>\"Subscriber\",\"\",IF('Enrollment Form'!$G977='Enrollment Form'!$H977,\"Y\",\"N\")))","v":""},{"$f":"IF($B970=\"N\",\"\",IF(AND(COUNTIFS('Enrollment Form'!$H$11:$H$1000,'Enrollment Form'!$H977,'Enrollment Form'!$B$11:$B$1000,'Enrollment Form'!$B977)>1,'Enrollment Form'!$H977<>\"\"),\"N\",\"Y\"))","v":""},{"$f":"IF($B970=\"N\",\"\",IF(LEN('Enrollment Form'!$Y977)=0,\"\",IF(LEN('Enrollment Form'!$Y977)<>5,\"N\",\"Y\")))","v":""},{"$f":"IF($B970=\"N\",\"\",IF(LEN('Enrollment Form'!$AD977=0),\"\",IF(LEN('Enrollment Form'!$AD977)<>5,\"N\",\"Y\")))","v":""},{"$f":"IF($B970=\"N\",\"\",IF(LEN('Enrollment Form'!$BL977=0),\"\",IF(LEN('Enrollment Form'!$BL977)<>5,\"N\",\"Y\")))","v":""},{"$f":"IF($B970=\"N\",\"\",IF(LEN('Enrollment Form'!$AE977)=0,\"\",IF(LEN('Enrollment Form'!$AE977)<>10,\"N\",\"Y\")))","v":""},{"$f":"IF($B970=\"N\",\"\",IF(LEN('Enrollment Form'!$AF977)=0,\"\",IF(LEN('Enrollment Form'!$AF977)<>10,\"N\",\"Y\")))","v":""},{"$f":"IF('Enrollment Form'!$O977<>\"Graded\",\"-\",IF(AND('Enrollment Form'!$O977=\"Graded\",'Enrollment Form'!$AO977<>\"\"),\"Y\",\"N\"))","v":"-"},{"$f":"IF($B970=\"N\",\"\",IF(OR('Enrollment Form'!$B977<>\"Subscriber\",'Enrollment Form'!$C977=\"ROC\"),\"-\",IF(AND('Enrollment Form'!$B977=\"Subscriber\",'Enrollment Form'!$C977=\"Enroll\",'Enrollment Form'!$AJ977<>\"\"),\"Y\",\"N\")))","v":""},{"$f":"IF($B970=\"N\",\"\",IF(OR('Enrollment Form'!$B977<>\"Subscriber\",'Enrollment Form'!$C977=\"ROC\"),\"-\",IF(AND('Enrollment Form'!$B977=\"Subscriber\",'Enrollment Form'!$C977=\"Enroll\",'Enrollment Form'!$AK977<>\"\"),\"Y\",\"N\")))","v":""},{"$f":"IF($B970=\"N\",\"\",IF(OR('Enrollment Form'!$B977<>\"Subscriber\",'Enrollment Form'!$C977=\"ROC\"),\"-\",IF(AND('Enrollment Form'!$B977=\"Subscriber\",'Enrollment Form'!$C977=\"Enroll\",'Enrollment Form'!$AL977<>\"\"),\"Y\",\"N\")))","v":""},{"$f":"IF($B970=\"N\",\"\",IF(OR('Enrollment Form'!$B977<>\"Subscriber\",'Enrollment Form'!$C977=\"ROC\"),\"-\",IF(AND('Enrollment Form'!$B977=\"Subscriber\",'Enrollment Form'!$C977=\"Enroll\",'Enrollment Form'!$AM977<>\"\"),\"Y\",\"N\")))","v":""},{"$f":"IF($B970=\"N\",\"\",IF(OR('Enrollment Form'!$B977<>\"Subscriber\",'Enrollment Form'!$C977=\"ROC\"),\"-\",IF(AND('Enrollment Form'!$B977=\"Subscriber\",'Enrollment Form'!$C977=\"Enroll\",'Enrollment Form'!$AN977<>\"\"),\"Y\",\"N\")))","v":""},{"$f":"IF($B970=\"N\",\"\",IF(OR('Enrollment Form'!$B977<>\"Subscriber\",'Enrollment Form'!$C977=\"ROC\"),\"-\",IF(AND('Enrollment Form'!$B977=\"Subscriber\",'Enrollment Form'!$C977=\"Enroll\",'Enrollment Form'!$AP977<>\"\"),\"Y\",\"N\")))","v":""},{"$f":"IF($B970=\"N\",\"\",IF($Q970=\"-\",\"-\",IF(AND($Q970=\"Y\",'Enrollment Form'!$AP977=\"No\"),\"-\",IF(AND($Q970=\"Y\",'Enrollment Form'!$AP977=\"Yes\",'Enrollment Form'!$AQ977<>\"\"),\"Y\",\"N\"))))","v":""},{"$f":"IF($B970=\"N\",\"\",IF(OR('Enrollment Form'!$B977<>\"Subscriber\",'Enrollment Form'!$C977=\"ROC\"),\"-\",IF(AND('Enrollment Form'!$B977=\"Subscriber\",'Enrollment Form'!$C977=\"Enroll\",'Enrollment Form'!$CO977<>\"\"),\"Y\",\"N\")))","v":""},{"$f":"IF($B970=\"N\",\"\",IF($S970=\"-\",\"-\",IF(AND($S970=\"Y\",'Enrollment Form'!$CO977=\"No\"),\"-\",IF(AND($S970=\"Y\",'Enrollment Form'!$CO977=\"Yes\",'Enrollment Form'!$CP977<>\"\"),\"Y\",\"N\"))))","v":""},{"$f":"IF(OR('Enrollment Form'!$AV977=\"Yes\",'Enrollment Form'!$AV977=\"\"),\"-\",IF(AND('Enrollment Form'!$AV977=\"No\",ISERROR(FIND(\"HMO\",VLOOKUP('Enrollment Form'!G977,'Enrollment Form'!H$11:J$1000,3,FALSE),1))=FALSE,COUNTA('Enrollment Form'!$AW977:$AZ977)=4),\"Y\",\"N\"))","v":"-"},{"$f":"IF($B970=\"N\",\"\",IF('Enrollment Form'!$B977=\"Subscriber\",\"-\",IF(COUNTA('Enrollment Form'!$BE977,'Enrollment Form'!$BG977)=2,\"Y\",\"N\")))","v":""},{"$f":"IF($B970=\"N\",\"\",IF(OR('Enrollment Form'!$AU977=\"\",'Enrollment Form'!$AU977=\"No\"),\"-\",IF(AND('Enrollment Form'!$AU977=\"Yes\",COUNTA('Enrollment Form'!$CK977)=1),\"Y\",\"N\")))","v":""},{"$f":"IF(OR('Enrollment Form'!$CK977=\"\",'Enrollment Form'!$CK977=\"No\"),\"-\",IF(COUNTA('Enrollment Form'!$CM977:$CN977)=2,\"Y\",\"N\"))","v":"-"},{"$f":"IF($B970=\"N\",\"\",IF(COUNTIF('Enrollment Form'!$CZ977:$DO977,\"Other\")=COUNTA('Enrollment Form'!$DF977,'Enrollment Form'!$DA977,'Enrollment Form'!$DK977,'Enrollment Form'!$DP977),\"Y\",\"N\"))","v":""},{"$f":"IF($B970=\"N\",\"\",IF(OR('Enrollment Form'!B977<>\"Subscriber\",'Enrollment Form'!C977=\"ROC\",COUNTIF('Enrollment Form'!AS977:AT977,\"Yes\")>=1),\"-\",IF(AND('Enrollment Form'!C977=\"Enroll\",COUNTIF('Enrollment Form'!AS977:AT977,\"No\")=2,'Enrollment Form'!AU977=\"\"),\"N\",\"Y\")))","v":""},{"$f":"IF(OR(B970=\"N\",'Enrollment Form'!B977<>\"Subscriber\",'Enrollment Form'!C977=\"ROC\",'Enrollment Form'!O977<>\"Multiple of Salary\"),\"-\",IF(COUNTA('Enrollment Form'!T977:U977)<2,\"N\",\"Y\"))","v":"-"},{"$f":"IF(B970=\"N\",\"\",IF(OR('Enrollment Form'!C977=\"ROC\",'Enrollment Form'!B977<>\"Subscriber\",'Enrollment Form'!O977=\"Waive\",'Enrollment Form'!O977=\"\"),\"-\",IF('Enrollment Form'!P977=\"\",\"N\",\"Y\")))","v":""},{"$f":"IF($B970=\"N\",\"\",IF(AND('Enrollment Form'!$C977=\"ROC\",'Enrollment Form'!$DS977<>\"\"),\"Y\",IF(AND('Enrollment Form'!$C977=\"ROC\",'Enrollment Form'!$DS977=\"\"),\"N\",IF(AND('Enrollment Form'!$C977=\"Enroll\",'Enrollment Form'!$B977=\"Subscriber\",'Enrollment Form'!$CQ977=\"No\",'Enrollment Form'!$DS977=\"\"),\"N\",IF(AND('Enrollment Form'!$C977=\"Enroll\",'Enrollment Form'!$B977=\"Subscriber\",'Enrollment Form'!$CQ977=\"Yes\"),\"-\",\"Y\")))))","v":""},{"$f":"IF($B970=\"N\",\"\",IF(AND('Enrollment Form'!$C977=\"ROC\",'Enrollment Form'!$DT977<>\"\"),\"Y\",IF(AND('Enrollment Form'!$C977=\"ROC\",'Enrollment Form'!$DT977=\"\"),\"N\",IF(AND('Enrollment Form'!$C977=\"Enroll\",'Enrollment Form'!$B977=\"Subscriber\",'Enrollment Form'!$CQ977=\"No\",'Enrollment Form'!$DT977=\"\"),\"N\",IF(AND('Enrollment Form'!$C977=\"Enroll\",'Enrollment Form'!$B977=\"Subscriber\",'Enrollment Form'!$CQ977=\"Yes\"),\"-\",\"Y\")))))","v":""},{"$f":"IF('Enrollment Form'!AH977=\"\",\"\",IF(ISERROR(SEARCH(\".\",'Enrollment Form'!AH977,SEARCH(\"@\",'Enrollment Form'!AH977))),\"N\",\"Y\"))","v":""},{"$f":"IF(OR($B970=\"N\",'Enrollment Form'!$G977=\"\"),\"\",IF('Enrollment Form'!$B977<>\"Subscriber\",\"-\",IF(COUNTIF('Enrollment Form'!$AS977:$AT977,\"Yes\")=2,\"N\",\"Y\")))","v":""},{"$f":"IF(OR('Enrollment Form'!$CC977=\"\",'Enrollment Form'!$CC977=\"No\"),\"-\",IF(AND('Enrollment Form'!$CC977=\"Yes\",'Enrollment Form'!$CD977=\"\"),\"N\",\"Y\"))","v":"-"},{"$f":"IF(OR('Enrollment Form'!$CE977=\"\",'Enrollment Form'!$CE977=\"No\"),\"-\",IF(AND('Enrollment Form'!$CE977=\"Yes\",'Enrollment Form'!$CF977=\"\"),\"N\",\"Y\"))","v":"-"},{"$f":"IF(OR('Enrollment Form'!$CG977=\"\",'Enrollment Form'!$CG977=\"No\"),\"-\",IF(AND('Enrollment Form'!$CG977=\"Yes\",'Enrollment Form'!$CH977=\"\"),\"N\",\"Y\"))","v":"-"},{"$f":"IF(OR('Enrollment Form'!$CG977=\"\",'Enrollment Form'!$CG977=\"No\"),\"-\",IF(AND('Enrollment Form'!$CG977=\"Yes\",'Enrollment Form'!$CI977=\"\"),\"N\",\"Y\"))","v":"-"},{"$f":"IF('Enrollment Form'!B977<>\"Subscriber\",\"-\",IF(AND('Enrollment Form'!B977=\"Subscriber\",'Enrollment Form'!C977=\"Enroll\",'Enrollment Form'!AA977=\"\"),\"N\",\"Y\"))","v":"-"},{"$f":"IF(OR('Enrollment Form'!B977=\"Subscriber\",'Enrollment Form'!B977=\"\"),\"-\",IF('Enrollment Form'!BI977=\"\",\"N\",\"Y\"))","v":"-"},{"$f":"IF('Enrollment Form'!B977<>\"Subscriber\",\"-\",IF(AND('Enrollment Form'!B977=\"Subscriber\",'Enrollment Form'!G977=\"\"),\"N\",\"Y\"))","v":"-"},{"$f":"IF('Enrollment Form'!A977=\"\",\"\",IF('Enrollment Form'!B977=\"Subscriber\",\"-\",IF(AND('Enrollment Form'!B977<>\"Subscriber\",'Enrollment Form'!G977='Enrollment Form'!H977),\"N\",\"Y\")))","v":""},0]
[978,{"$f":"IF('Enrollment Form'!$A978<>\"\",\"Y\",\"N\")","v":"N"},{"$f":"IF(AND('Enrollment Form'!$B978=\"\",'Enrollment Form'!$C978<>\"\"),\"N\",IF($B971=\"N\",\"\",\"Y\"))","v":""},{"$f":"IF(OR($B971=\"N\",'Enrollment Form'!G978=\"\"),\"\",IF('Enrollment Form'!$B978<>\"Subscriber\",\"\",IF('Enrollment Form'!$G978='Enrollment Form'!$H978,\"Y\",\"N\")))","v":""},{"$f":"IF($B971=\"N\",\"\",IF(AND(COUNTIFS('Enrollment Form'!$H$11:$H$1000,'Enrollment Form'!$H978,'Enrollment Form'!$B$11:$B$1000,'Enrollment Form'!$B978)>1,'Enrollment Form'!$H978<>\"\"),\"N\",\"Y\"))","v":""},{"$f":"IF($B971=\"N\",\"\",IF(LEN('Enrollment Form'!$Y978)=0,\"\",IF(LEN('Enrollment Form'!$Y978)<>5,\"N\",\"Y\")))","v":""},{"$f":"IF($B971=\"N\",\"\",IF(LEN('Enrollment Form'!$AD978=0),\"\",IF(LEN('Enrollment Form'!$AD978)<>5,\"N\",\"Y\")))","v":""},{"$f":"IF($B971=\"N\",\"\",IF(LEN('Enrollment Form'!$BL978=0),\"\",IF(LEN('Enrollment Form'!$BL978)<>5,\"N\",\"Y\")))","v":""},{"$f":"IF($B971=\"N\",\"\",IF(LEN('Enrollment Form'!$AE978)=0,\"\",IF(LEN('Enrollment Form'!$AE978)<>10,\"N\",\"Y\")))","v":""},{"$f":"IF($B971=\"N\",\"\",IF(LEN('Enrollment Form'!$AF978)=0,\"\",IF(LEN('Enrollment Form'!$AF978)<>10,\"N\",\"Y\")))","v":""},{"$f":"IF('Enrollment Form'!$O978<>\"Graded\",\"-\",IF(AND('Enrollment Form'!$O978=\"Graded\",'Enrollment Form'!$AO978<>\"\"),\"Y\",\"N\"))","v":"-"},{"$f":"IF($B971=\"N\",\"\",IF(OR('Enrollment Form'!$B978<>\"Subscriber\",'Enrollment Form'!$C978=\"ROC\"),\"-\",IF(AND('Enrollment Form'!$B978=\"Subscriber\",'Enrollment Form'!$C978=\"Enroll\",'Enrollment Form'!$AJ978<>\"\"),\"Y\",\"N\")))","v":""},{"$f":"IF($B971=\"N\",\"\",IF(OR('Enrollment Form'!$B978<>\"Subscriber\",'Enrollment Form'!$C978=\"ROC\"),\"-\",IF(AND('Enrollment Form'!$B978=\"Subscriber\",'Enrollment Form'!$C978=\"Enroll\",'Enrollment Form'!$AK978<>\"\"),\"Y\",\"N\")))","v":""},{"$f":"IF($B971=\"N\",\"\",IF(OR('Enrollment Form'!$B978<>\"Subscriber\",'Enrollment Form'!$C978=\"ROC\"),\"-\",IF(AND('Enrollment Form'!$B978=\"Subscriber\",'Enrollment Form'!$C978=\"Enroll\",'Enrollment Form'!$AL978<>\"\"),\"Y\",\"N\")))","v":""},{"$f":"IF($B971=\"N\",\"\",IF(OR('Enrollment Form'!$B978<>\"Subscriber\",'Enrollment Form'!$C978=\"ROC\"),\"-\",IF(AND('Enrollment Form'!$B978=\"Subscriber\",'Enrollment Form'!$C978=\"Enroll\",'Enrollment Form'!$AM978<>\"\"),\"Y\",\"N\")))","v":""},{"$f":"IF($B971=\"N\",\"\",IF(OR('Enrollment Form'!$B978<>\"Subscriber\",'Enrollment Form'!$C978=\"ROC\"),\"-\",IF(AND('Enrollment Form'!$B978=\"Subscriber\",'Enrollment Form'!$C978=\"Enroll\",'Enrollment Form'!$AN978<>\"\"),\"Y\",\"N\")))","v":""},{"$f":"IF($B971=\"N\",\"\",IF(OR('Enrollment Form'!$B978<>\"Subscriber\",'Enrollment Form'!$C978=\"ROC\"),\"-\",IF(AND('Enrollment Form'!$B978=\"Subscriber\",'Enrollment Form'!$C978=\"Enroll\",'Enrollment Form'!$AP978<>\"\"),\"Y\",\"N\")))","v":""},{"$f":"IF($B971=\"N\",\"\",IF($Q971=\"-\",\"-\",IF(AND($Q971=\"Y\",'Enrollment Form'!$AP978=\"No\"),\"-\",IF(AND($Q971=\"Y\",'Enrollment Form'!$AP978=\"Yes\",'Enrollment Form'!$AQ978<>\"\"),\"Y\",\"N\"))))","v":""},{"$f":"IF($B971=\"N\",\"\",IF(OR('Enrollment Form'!$B978<>\"Subscriber\",'Enrollment Form'!$C978=\"ROC\"),\"-\",IF(AND('Enrollment Form'!$B978=\"Subscriber\",'Enrollment Form'!$C978=\"Enroll\",'Enrollment Form'!$CO978<>\"\"),\"Y\",\"N\")))","v":""},{"$f":"IF($B971=\"N\",\"\",IF($S971=\"-\",\"-\",IF(AND($S971=\"Y\",'Enrollment Form'!$CO978=\"No\"),\"-\",IF(AND($S971=\"Y\",'Enrollment Form'!$CO978=\"Yes\",'Enrollment Form'!$CP978<>\"\"),\"Y\",\"N\"))))","v":""},{"$f":"IF(OR('Enrollment Form'!$AV978=\"Yes\",'Enrollment Form'!$AV978=\"\"),\"-\",IF(AND('Enrollment Form'!$AV978=\"No\",ISERROR(FIND(\"HMO\",VLOOKUP('Enrollment Form'!G978,'Enrollment Form'!H$11:J$1000,3,FALSE),1))=FALSE,COUNTA('Enrollment Form'!$AW978:$AZ978)=4),\"Y\",\"N\"))","v":"-"},{"$f":"IF($B971=\"N\",\"\",IF('Enrollment Form'!$B978=\"Subscriber\",\"-\",IF(COUNTA('Enrollment Form'!$BE978,'Enrollment Form'!$BG978)=2,\"Y\",\"N\")))","v":""},{"$f":"IF($B971=\"N\",\"\",IF(OR('Enrollment Form'!$AU978=\"\",'Enrollment Form'!$AU978=\"No\"),\"-\",IF(AND('Enrollment Form'!$AU978=\"Yes\",COUNTA('Enrollment Form'!$CK978)=1),\"Y\",\"N\")))","v":""},{"$f":"IF(OR('Enrollment Form'!$CK978=\"\",'Enrollment Form'!$CK978=\"No\"),\"-\",IF(COUNTA('Enrollment Form'!$CM978:$CN978)=2,\"Y\",\"N\"))","v":"-"},{"$f":"IF($B971=\"N\",\"\",IF(COUNTIF('Enrollment Form'!$CZ978:$DO978,\"Other\")=COUNTA('Enrollment Form'!$DF978,'Enrollment Form'!$DA978,'Enrollment Form'!$DK978,'Enrollment Form'!$DP978),\"Y\",\"N\"))","v":""},{"$f":"IF($B971=\"N\",\"\",IF(OR('Enrollment Form'!B978<>\"Subscriber\",'Enrollment Form'!C978=\"ROC\",COUNTIF('Enrollment Form'!AS978:AT978,\"Yes\")>=1),\"-\",IF(AND('Enrollment Form'!C978=\"Enroll\",COUNTIF('Enrollment Form'!AS978:AT978,\"No\")=2,'Enrollment Form'!AU978=\"\"),\"N\",\"Y\")))","v":""},{"$f":"IF(OR(B971=\"N\",'Enrollment Form'!B978<>\"Subscriber\",'Enrollment Form'!C978=\"ROC\",'Enrollment Form'!O978<>\"Multiple of Salary\"),\"-\",IF(COUNTA('Enrollment Form'!T978:U978)<2,\"N\",\"Y\"))","v":"-"},{"$f":"IF(B971=\"N\",\"\",IF(OR('Enrollment Form'!C978=\"ROC\",'Enrollment Form'!B978<>\"Subscriber\",'Enrollment Form'!O978=\"Waive\",'Enrollment Form'!O978=\"\"),\"-\",IF('Enrollment Form'!P978=\"\",\"N\",\"Y\")))","v":""},{"$f":"IF($B971=\"N\",\"\",IF(AND('Enrollment Form'!$C978=\"ROC\",'Enrollment Form'!$DS978<>\"\"),\"Y\",IF(AND('Enrollment Form'!$C978=\"ROC\",'Enrollment Form'!$DS978=\"\"),\"N\",IF(AND('Enrollment Form'!$C978=\"Enroll\",'Enrollment Form'!$B978=\"Subscriber\",'Enrollment Form'!$CQ978=\"No\",'Enrollment Form'!$DS978=\"\"),\"N\",IF(AND('Enrollment Form'!$C978=\"Enroll\",'Enrollment Form'!$B978=\"Subscriber\",'Enrollment Form'!$CQ978=\"Yes\"),\"-\",\"Y\")))))","v":""},{"$f":"IF($B971=\"N\",\"\",IF(AND('Enrollment Form'!$C978=\"ROC\",'Enrollment Form'!$DT978<>\"\"),\"Y\",IF(AND('Enrollment Form'!$C978=\"ROC\",'Enrollment Form'!$DT978=\"\"),\"N\",IF(AND('Enrollment Form'!$C978=\"Enroll\",'Enrollment Form'!$B978=\"Subscriber\",'Enrollment Form'!$CQ978=\"No\",'Enrollment Form'!$DT978=\"\"),\"N\",IF(AND('Enrollment Form'!$C978=\"Enroll\",'Enrollment Form'!$B978=\"Subscriber\",'Enrollment Form'!$CQ978=\"Yes\"),\"-\",\"Y\")))))","v":""},{"$f":"IF('Enrollment Form'!AH978=\"\",\"\",IF(ISERROR(SEARCH(\".\",'Enrollment Form'!AH978,SEARCH(\"@\",'Enrollment Form'!AH978))),\"N\",\"Y\"))","v":""},{"$f":"IF(OR($B971=\"N\",'Enrollment Form'!$G978=\"\"),\"\",IF('Enrollment Form'!$B978<>\"Subscriber\",\"-\",IF(COUNTIF('Enrollment Form'!$AS978:$AT978,\"Yes\")=2,\"N\",\"Y\")))","v":""},{"$f":"IF(OR('Enrollment Form'!$CC978=\"\",'Enrollment Form'!$CC978=\"No\"),\"-\",IF(AND('Enrollment Form'!$CC978=\"Yes\",'Enrollment Form'!$CD978=\"\"),\"N\",\"Y\"))","v":"-"},{"$f":"IF(OR('Enrollment Form'!$CE978=\"\",'Enrollment Form'!$CE978=\"No\"),\"-\",IF(AND('Enrollment Form'!$CE978=\"Yes\",'Enrollment Form'!$CF978=\"\"),\"N\",\"Y\"))","v":"-"},{"$f":"IF(OR('Enrollment Form'!$CG978=\"\",'Enrollment Form'!$CG978=\"No\"),\"-\",IF(AND('Enrollment Form'!$CG978=\"Yes\",'Enrollment Form'!$CH978=\"\"),\"N\",\"Y\"))","v":"-"},{"$f":"IF(OR('Enrollment Form'!$CG978=\"\",'Enrollment Form'!$CG978=\"No\"),\"-\",IF(AND('Enrollment Form'!$CG978=\"Yes\",'Enrollment Form'!$CI978=\"\"),\"N\",\"Y\"))","v":"-"},{"$f":"IF('Enrollment Form'!B978<>\"Subscriber\",\"-\",IF(AND('Enrollment Form'!B978=\"Subscriber\",'Enrollment Form'!C978=\"Enroll\",'Enrollment Form'!AA978=\"\"),\"N\",\"Y\"))","v":"-"},{"$f":"IF(OR('Enrollment Form'!B978=\"Subscriber\",'Enrollment Form'!B978=\"\"),\"-\",IF('Enrollment Form'!BI978=\"\",\"N\",\"Y\"))","v":"-"},{"$f":"IF('Enrollment Form'!B978<>\"Subscriber\",\"-\",IF(AND('Enrollment Form'!B978=\"Subscriber\",'Enrollment Form'!G978=\"\"),\"N\",\"Y\"))","v":"-"},{"$f":"IF('Enrollment Form'!A978=\"\",\"\",IF('Enrollment Form'!B978=\"Subscriber\",\"-\",IF(AND('Enrollment Form'!B978<>\"Subscriber\",'Enrollment Form'!G978='Enrollment Form'!H978),\"N\",\"Y\")))","v":""},0]
[979,{"$f":"IF('Enrollment Form'!$A979<>\"\",\"Y\",\"N\")","v":"N"},{"$f":"IF(AND('Enrollment Form'!$B979=\"\",'Enrollment Form'!$C979<>\"\"),\"N\",IF($B972=\"N\",\"\",\"Y\"))","v":""},{"$f":"IF(OR($B972=\"N\",'Enrollment Form'!G979=\"\"),\"\",IF('Enrollment Form'!$B979<>\"Subscriber\",\"\",IF('Enrollment Form'!$G979='Enrollment Form'!$H979,\"Y\",\"N\")))","v":""},{"$f":"IF($B972=\"N\",\"\",IF(AND(COUNTIFS('Enrollment Form'!$H$11:$H$1000,'Enrollment Form'!$H979,'Enrollment Form'!$B$11:$B$1000,'Enrollment Form'!$B979)>1,'Enrollment Form'!$H979<>\"\"),\"N\",\"Y\"))","v":""},{"$f":"IF($B972=\"N\",\"\",IF(LEN('Enrollment Form'!$Y979)=0,\"\",IF(LEN('Enrollment Form'!$Y979)<>5,\"N\",\"Y\")))","v":""},{"$f":"IF($B972=\"N\",\"\",IF(LEN('Enrollment Form'!$AD979=0),\"\",IF(LEN('Enrollment Form'!$AD979)<>5,\"N\",\"Y\")))","v":""},{"$f":"IF($B972=\"N\",\"\",IF(LEN('Enrollment Form'!$BL979=0),\"\",IF(LEN('Enrollment Form'!$BL979)<>5,\"N\",\"Y\")))","v":""},{"$f":"IF($B972=\"N\",\"\",IF(LEN('Enrollment Form'!$AE979)=0,\"\",IF(LEN('Enrollment Form'!$AE979)<>10,\"N\",\"Y\")))","v":""},{"$f":"IF($B972=\"N\",\"\",IF(LEN('Enrollment Form'!$AF979)=0,\"\",IF(LEN('Enrollment Form'!$AF979)<>10,\"N\",\"Y\")))","v":""},{"$f":"IF('Enrollment Form'!$O979<>\"Graded\",\"-\",IF(AND('Enrollment Form'!$O979=\"Graded\",'Enrollment Form'!$AO979<>\"\"),\"Y\",\"N\"))","v":"-"},{"$f":"IF($B972=\"N\",\"\",IF(OR('Enrollment Form'!$B979<>\"Subscriber\",'Enrollment Form'!$C979=\"ROC\"),\"-\",IF(AND('Enrollment Form'!$B979=\"Subscriber\",'Enrollment Form'!$C979=\"Enroll\",'Enrollment Form'!$AJ979<>\"\"),\"Y\",\"N\")))","v":""},{"$f":"IF($B972=\"N\",\"\",IF(OR('Enrollment Form'!$B979<>\"Subscriber\",'Enrollment Form'!$C979=\"ROC\"),\"-\",IF(AND('Enrollment Form'!$B979=\"Subscriber\",'Enrollment Form'!$C979=\"Enroll\",'Enrollment Form'!$AK979<>\"\"),\"Y\",\"N\")))","v":""},{"$f":"IF($B972=\"N\",\"\",IF(OR('Enrollment Form'!$B979<>\"Subscriber\",'Enrollment Form'!$C979=\"ROC\"),\"-\",IF(AND('Enrollment Form'!$B979=\"Subscriber\",'Enrollment Form'!$C979=\"Enroll\",'Enrollment Form'!$AL979<>\"\"),\"Y\",\"N\")))","v":""},{"$f":"IF($B972=\"N\",\"\",IF(OR('Enrollment Form'!$B979<>\"Subscriber\",'Enrollment Form'!$C979=\"ROC\"),\"-\",IF(AND('Enrollment Form'!$B979=\"Subscriber\",'Enrollment Form'!$C979=\"Enroll\",'Enrollment Form'!$AM979<>\"\"),\"Y\",\"N\")))","v":""},{"$f":"IF($B972=\"N\",\"\",IF(OR('Enrollment Form'!$B979<>\"Subscriber\",'Enrollment Form'!$C979=\"ROC\"),\"-\",IF(AND('Enrollment Form'!$B979=\"Subscriber\",'Enrollment Form'!$C979=\"Enroll\",'Enrollment Form'!$AN979<>\"\"),\"Y\",\"N\")))","v":""},{"$f":"IF($B972=\"N\",\"\",IF(OR('Enrollment Form'!$B979<>\"Subscriber\",'Enrollment Form'!$C979=\"ROC\"),\"-\",IF(AND('Enrollment Form'!$B979=\"Subscriber\",'Enrollment Form'!$C979=\"Enroll\",'Enrollment Form'!$AP979<>\"\"),\"Y\",\"N\")))","v":""},{"$f":"IF($B972=\"N\",\"\",IF($Q972=\"-\",\"-\",IF(AND($Q972=\"Y\",'Enrollment Form'!$AP979=\"No\"),\"-\",IF(AND($Q972=\"Y\",'Enrollment Form'!$AP979=\"Yes\",'Enrollment Form'!$AQ979<>\"\"),\"Y\",\"N\"))))","v":""},{"$f":"IF($B972=\"N\",\"\",IF(OR('Enrollment Form'!$B979<>\"Subscriber\",'Enrollment Form'!$C979=\"ROC\"),\"-\",IF(AND('Enrollment Form'!$B979=\"Subscriber\",'Enrollment Form'!$C979=\"Enroll\",'Enrollment Form'!$CO979<>\"\"),\"Y\",\"N\")))","v":""},{"$f":"IF($B972=\"N\",\"\",IF($S972=\"-\",\"-\",IF(AND($S972=\"Y\",'Enrollment Form'!$CO979=\"No\"),\"-\",IF(AND($S972=\"Y\",'Enrollment Form'!$CO979=\"Yes\",'Enrollment Form'!$CP979<>\"\"),\"Y\",\"N\"))))","v":""},{"$f":"IF(OR('Enrollment Form'!$AV979=\"Yes\",'Enrollment Form'!$AV979=\"\"),\"-\",IF(AND('Enrollment Form'!$AV979=\"No\",ISERROR(FIND(\"HMO\",VLOOKUP('Enrollment Form'!G979,'Enrollment Form'!H$11:J$1000,3,FALSE),1))=FALSE,COUNTA('Enrollment Form'!$AW979:$AZ979)=4),\"Y\",\"N\"))","v":"-"},{"$f":"IF($B972=\"N\",\"\",IF('Enrollment Form'!$B979=\"Subscriber\",\"-\",IF(COUNTA('Enrollment Form'!$BE979,'Enrollment Form'!$BG979)=2,\"Y\",\"N\")))","v":""},{"$f":"IF($B972=\"N\",\"\",IF(OR('Enrollment Form'!$AU979=\"\",'Enrollment Form'!$AU979=\"No\"),\"-\",IF(AND('Enrollment Form'!$AU979=\"Yes\",COUNTA('Enrollment Form'!$CK979)=1),\"Y\",\"N\")))","v":""},{"$f":"IF(OR('Enrollment Form'!$CK979=\"\",'Enrollment Form'!$CK979=\"No\"),\"-\",IF(COUNTA('Enrollment Form'!$CM979:$CN979)=2,\"Y\",\"N\"))","v":"-"},{"$f":"IF($B972=\"N\",\"\",IF(COUNTIF('Enrollment Form'!$CZ979:$DO979,\"Other\")=COUNTA('Enrollment Form'!$DF979,'Enrollment Form'!$DA979,'Enrollment Form'!$DK979,'Enrollment Form'!$DP979),\"Y\",\"N\"))","v":""},{"$f":"IF($B972=\"N\",\"\",IF(OR('Enrollment Form'!B979<>\"Subscriber\",'Enrollment Form'!C979=\"ROC\",COUNTIF('Enrollment Form'!AS979:AT979,\"Yes\")>=1),\"-\",IF(AND('Enrollment Form'!C979=\"Enroll\",COUNTIF('Enrollment Form'!AS979:AT979,\"No\")=2,'Enrollment Form'!AU979=\"\"),\"N\",\"Y\")))","v":""},{"$f":"IF(OR(B972=\"N\",'Enrollment Form'!B979<>\"Subscriber\",'Enrollment Form'!C979=\"ROC\",'Enrollment Form'!O979<>\"Multiple of Salary\"),\"-\",IF(COUNTA('Enrollment Form'!T979:U979)<2,\"N\",\"Y\"))","v":"-"},{"$f":"IF(B972=\"N\",\"\",IF(OR('Enrollment Form'!C979=\"ROC\",'Enrollment Form'!B979<>\"Subscriber\",'Enrollment Form'!O979=\"Waive\",'Enrollment Form'!O979=\"\"),\"-\",IF('Enrollment Form'!P979=\"\",\"N\",\"Y\")))","v":""},{"$f":"IF($B972=\"N\",\"\",IF(AND('Enrollment Form'!$C979=\"ROC\",'Enrollment Form'!$DS979<>\"\"),\"Y\",IF(AND('Enrollment Form'!$C979=\"ROC\",'Enrollment Form'!$DS979=\"\"),\"N\",IF(AND('Enrollment Form'!$C979=\"Enroll\",'Enrollment Form'!$B979=\"Subscriber\",'Enrollment Form'!$CQ979=\"No\",'Enrollment Form'!$DS979=\"\"),\"N\",IF(AND('Enrollment Form'!$C979=\"Enroll\",'Enrollment Form'!$B979=\"Subscriber\",'Enrollment Form'!$CQ979=\"Yes\"),\"-\",\"Y\")))))","v":""},{"$f":"IF($B972=\"N\",\"\",IF(AND('Enrollment Form'!$C979=\"ROC\",'Enrollment Form'!$DT979<>\"\"),\"Y\",IF(AND('Enrollment Form'!$C979=\"ROC\",'Enrollment Form'!$DT979=\"\"),\"N\",IF(AND('Enrollment Form'!$C979=\"Enroll\",'Enrollment Form'!$B979=\"Subscriber\",'Enrollment Form'!$CQ979=\"No\",'Enrollment Form'!$DT979=\"\"),\"N\",IF(AND('Enrollment Form'!$C979=\"Enroll\",'Enrollment Form'!$B979=\"Subscriber\",'Enrollment Form'!$CQ979=\"Yes\"),\"-\",\"Y\")))))","v":""},{"$f":"IF('Enrollment Form'!AH979=\"\",\"\",IF(ISERROR(SEARCH(\".\",'Enrollment Form'!AH979,SEARCH(\"@\",'Enrollment Form'!AH979))),\"N\",\"Y\"))","v":""},{"$f":"IF(OR($B972=\"N\",'Enrollment Form'!$G979=\"\"),\"\",IF('Enrollment Form'!$B979<>\"Subscriber\",\"-\",IF(COUNTIF('Enrollment Form'!$AS979:$AT979,\"Yes\")=2,\"N\",\"Y\")))","v":""},{"$f":"IF(OR('Enrollment Form'!$CC979=\"\",'Enrollment Form'!$CC979=\"No\"),\"-\",IF(AND('Enrollment Form'!$CC979=\"Yes\",'Enrollment Form'!$CD979=\"\"),\"N\",\"Y\"))","v":"-"},{"$f":"IF(OR('Enrollment Form'!$CE979=\"\",'Enrollment Form'!$CE979=\"No\"),\"-\",IF(AND('Enrollment Form'!$CE979=\"Yes\",'Enrollment Form'!$CF979=\"\"),\"N\",\"Y\"))","v":"-"},{"$f":"IF(OR('Enrollment Form'!$CG979=\"\",'Enrollment Form'!$CG979=\"No\"),\"-\",IF(AND('Enrollment Form'!$CG979=\"Yes\",'Enrollment Form'!$CH979=\"\"),\"N\",\"Y\"))","v":"-"},{"$f":"IF(OR('Enrollment Form'!$CG979=\"\",'Enrollment Form'!$CG979=\"No\"),\"-\",IF(AND('Enrollment Form'!$CG979=\"Yes\",'Enrollment Form'!$CI979=\"\"),\"N\",\"Y\"))","v":"-"},{"$f":"IF('Enrollment Form'!B979<>\"Subscriber\",\"-\",IF(AND('Enrollment Form'!B979=\"Subscriber\",'Enrollment Form'!C979=\"Enroll\",'Enrollment Form'!AA979=\"\"),\"N\",\"Y\"))","v":"-"},{"$f":"IF(OR('Enrollment Form'!B979=\"Subscriber\",'Enrollment Form'!B979=\"\"),\"-\",IF('Enrollment Form'!BI979=\"\",\"N\",\"Y\"))","v":"-"},{"$f":"IF('Enrollment Form'!B979<>\"Subscriber\",\"-\",IF(AND('Enrollment Form'!B979=\"Subscriber\",'Enrollment Form'!G979=\"\"),\"N\",\"Y\"))","v":"-"},{"$f":"IF('Enrollment Form'!A979=\"\",\"\",IF('Enrollment Form'!B979=\"Subscriber\",\"-\",IF(AND('Enrollment Form'!B979<>\"Subscriber\",'Enrollment Form'!G979='Enrollment Form'!H979),\"N\",\"Y\")))","v":""},0]
[980,{"$f":"IF('Enrollment Form'!$A980<>\"\",\"Y\",\"N\")","v":"N"},{"$f":"IF(AND('Enrollment Form'!$B980=\"\",'Enrollment Form'!$C980<>\"\"),\"N\",IF($B973=\"N\",\"\",\"Y\"))","v":""},{"$f":"IF(OR($B973=\"N\",'Enrollment Form'!G980=\"\"),\"\",IF('Enrollment Form'!$B980<>\"Subscriber\",\"\",IF('Enrollment Form'!$G980='Enrollment Form'!$H980,\"Y\",\"N\")))","v":""},{"$f":"IF($B973=\"N\",\"\",IF(AND(COUNTIFS('Enrollment Form'!$H$11:$H$1000,'Enrollment Form'!$H980,'Enrollment Form'!$B$11:$B$1000,'Enrollment Form'!$B980)>1,'Enrollment Form'!$H980<>\"\"),\"N\",\"Y\"))","v":""},{"$f":"IF($B973=\"N\",\"\",IF(LEN('Enrollment Form'!$Y980)=0,\"\",IF(LEN('Enrollment Form'!$Y980)<>5,\"N\",\"Y\")))","v":""},{"$f":"IF($B973=\"N\",\"\",IF(LEN('Enrollment Form'!$AD980=0),\"\",IF(LEN('Enrollment Form'!$AD980)<>5,\"N\",\"Y\")))","v":""},{"$f":"IF($B973=\"N\",\"\",IF(LEN('Enrollment Form'!$BL980=0),\"\",IF(LEN('Enrollment Form'!$BL980)<>5,\"N\",\"Y\")))","v":""},{"$f":"IF($B973=\"N\",\"\",IF(LEN('Enrollment Form'!$AE980)=0,\"\",IF(LEN('Enrollment Form'!$AE980)<>10,\"N\",\"Y\")))","v":""},{"$f":"IF($B973=\"N\",\"\",IF(LEN('Enrollment Form'!$AF980)=0,\"\",IF(LEN('Enrollment Form'!$AF980)<>10,\"N\",\"Y\")))","v":""},{"$f":"IF('Enrollment Form'!$O980<>\"Graded\",\"-\",IF(AND('Enrollment Form'!$O980=\"Graded\",'Enrollment Form'!$AO980<>\"\"),\"Y\",\"N\"))","v":"-"},{"$f":"IF($B973=\"N\",\"\",IF(OR('Enrollment Form'!$B980<>\"Subscriber\",'Enrollment Form'!$C980=\"ROC\"),\"-\",IF(AND('Enrollment Form'!$B980=\"Subscriber\",'Enrollment Form'!$C980=\"Enroll\",'Enrollment Form'!$AJ980<>\"\"),\"Y\",\"N\")))","v":""},{"$f":"IF($B973=\"N\",\"\",IF(OR('Enrollment Form'!$B980<>\"Subscriber\",'Enrollment Form'!$C980=\"ROC\"),\"-\",IF(AND('Enrollment Form'!$B980=\"Subscriber\",'Enrollment Form'!$C980=\"Enroll\",'Enrollment Form'!$AK980<>\"\"),\"Y\",\"N\")))","v":""},{"$f":"IF($B973=\"N\",\"\",IF(OR('Enrollment Form'!$B980<>\"Subscriber\",'Enrollment Form'!$C980=\"ROC\"),\"-\",IF(AND('Enrollment Form'!$B980=\"Subscriber\",'Enrollment Form'!$C980=\"Enroll\",'Enrollment Form'!$AL980<>\"\"),\"Y\",\"N\")))","v":""},{"$f":"IF($B973=\"N\",\"\",IF(OR('Enrollment Form'!$B980<>\"Subscriber\",'Enrollment Form'!$C980=\"ROC\"),\"-\",IF(AND('Enrollment Form'!$B980=\"Subscriber\",'Enrollment Form'!$C980=\"Enroll\",'Enrollment Form'!$AM980<>\"\"),\"Y\",\"N\")))","v":""},{"$f":"IF($B973=\"N\",\"\",IF(OR('Enrollment Form'!$B980<>\"Subscriber\",'Enrollment Form'!$C980=\"ROC\"),\"-\",IF(AND('Enrollment Form'!$B980=\"Subscriber\",'Enrollment Form'!$C980=\"Enroll\",'Enrollment Form'!$AN980<>\"\"),\"Y\",\"N\")))","v":""},{"$f":"IF($B973=\"N\",\"\",IF(OR('Enrollment Form'!$B980<>\"Subscriber\",'Enrollment Form'!$C980=\"ROC\"),\"-\",IF(AND('Enrollment Form'!$B980=\"Subscriber\",'Enrollment Form'!$C980=\"Enroll\",'Enrollment Form'!$AP980<>\"\"),\"Y\",\"N\")))","v":""},{"$f":"IF($B973=\"N\",\"\",IF($Q973=\"-\",\"-\",IF(AND($Q973=\"Y\",'Enrollment Form'!$AP980=\"No\"),\"-\",IF(AND($Q973=\"Y\",'Enrollment Form'!$AP980=\"Yes\",'Enrollment Form'!$AQ980<>\"\"),\"Y\",\"N\"))))","v":""},{"$f":"IF($B973=\"N\",\"\",IF(OR('Enrollment Form'!$B980<>\"Subscriber\",'Enrollment Form'!$C980=\"ROC\"),\"-\",IF(AND('Enrollment Form'!$B980=\"Subscriber\",'Enrollment Form'!$C980=\"Enroll\",'Enrollment Form'!$CO980<>\"\"),\"Y\",\"N\")))","v":""},{"$f":"IF($B973=\"N\",\"\",IF($S973=\"-\",\"-\",IF(AND($S973=\"Y\",'Enrollment Form'!$CO980=\"No\"),\"-\",IF(AND($S973=\"Y\",'Enrollment Form'!$CO980=\"Yes\",'Enrollment Form'!$CP980<>\"\"),\"Y\",\"N\"))))","v":""},{"$f":"IF(OR('Enrollment Form'!$AV980=\"Yes\",'Enrollment Form'!$AV980=\"\"),\"-\",IF(AND('Enrollment Form'!$AV980=\"No\",ISERROR(FIND(\"HMO\",VLOOKUP('Enrollment Form'!G980,'Enrollment Form'!H$11:J$1000,3,FALSE),1))=FALSE,COUNTA('Enrollment Form'!$AW980:$AZ980)=4),\"Y\",\"N\"))","v":"-"},{"$f":"IF($B973=\"N\",\"\",IF('Enrollment Form'!$B980=\"Subscriber\",\"-\",IF(COUNTA('Enrollment Form'!$BE980,'Enrollment Form'!$BG980)=2,\"Y\",\"N\")))","v":""},{"$f":"IF($B973=\"N\",\"\",IF(OR('Enrollment Form'!$AU980=\"\",'Enrollment Form'!$AU980=\"No\"),\"-\",IF(AND('Enrollment Form'!$AU980=\"Yes\",COUNTA('Enrollment Form'!$CK980)=1),\"Y\",\"N\")))","v":""},{"$f":"IF(OR('Enrollment Form'!$CK980=\"\",'Enrollment Form'!$CK980=\"No\"),\"-\",IF(COUNTA('Enrollment Form'!$CM980:$CN980)=2,\"Y\",\"N\"))","v":"-"},{"$f":"IF($B973=\"N\",\"\",IF(COUNTIF('Enrollment Form'!$CZ980:$DO980,\"Other\")=COUNTA('Enrollment Form'!$DF980,'Enrollment Form'!$DA980,'Enrollment Form'!$DK980,'Enrollment Form'!$DP980),\"Y\",\"N\"))","v":""},{"$f":"IF($B973=\"N\",\"\",IF(OR('Enrollment Form'!B980<>\"Subscriber\",'Enrollment Form'!C980=\"ROC\",COUNTIF('Enrollment Form'!AS980:AT980,\"Yes\")>=1),\"-\",IF(AND('Enrollment Form'!C980=\"Enroll\",COUNTIF('Enrollment Form'!AS980:AT980,\"No\")=2,'Enrollment Form'!AU980=\"\"),\"N\",\"Y\")))","v":""},{"$f":"IF(OR(B973=\"N\",'Enrollment Form'!B980<>\"Subscriber\",'Enrollment Form'!C980=\"ROC\",'Enrollment Form'!O980<>\"Multiple of Salary\"),\"-\",IF(COUNTA('Enrollment Form'!T980:U980)<2,\"N\",\"Y\"))","v":"-"},{"$f":"IF(B973=\"N\",\"\",IF(OR('Enrollment Form'!C980=\"ROC\",'Enrollment Form'!B980<>\"Subscriber\",'Enrollment Form'!O980=\"Waive\",'Enrollment Form'!O980=\"\"),\"-\",IF('Enrollment Form'!P980=\"\",\"N\",\"Y\")))","v":""},{"$f":"IF($B973=\"N\",\"\",IF(AND('Enrollment Form'!$C980=\"ROC\",'Enrollment Form'!$DS980<>\"\"),\"Y\",IF(AND('Enrollment Form'!$C980=\"ROC\",'Enrollment Form'!$DS980=\"\"),\"N\",IF(AND('Enrollment Form'!$C980=\"Enroll\",'Enrollment Form'!$B980=\"Subscriber\",'Enrollment Form'!$CQ980=\"No\",'Enrollment Form'!$DS980=\"\"),\"N\",IF(AND('Enrollment Form'!$C980=\"Enroll\",'Enrollment Form'!$B980=\"Subscriber\",'Enrollment Form'!$CQ980=\"Yes\"),\"-\",\"Y\")))))","v":""},{"$f":"IF($B973=\"N\",\"\",IF(AND('Enrollment Form'!$C980=\"ROC\",'Enrollment Form'!$DT980<>\"\"),\"Y\",IF(AND('Enrollment Form'!$C980=\"ROC\",'Enrollment Form'!$DT980=\"\"),\"N\",IF(AND('Enrollment Form'!$C980=\"Enroll\",'Enrollment Form'!$B980=\"Subscriber\",'Enrollment Form'!$CQ980=\"No\",'Enrollment Form'!$DT980=\"\"),\"N\",IF(AND('Enrollment Form'!$C980=\"Enroll\",'Enrollment Form'!$B980=\"Subscriber\",'Enrollment Form'!$CQ980=\"Yes\"),\"-\",\"Y\")))))","v":""},{"$f":"IF('Enrollment Form'!AH980=\"\",\"\",IF(ISERROR(SEARCH(\".\",'Enrollment Form'!AH980,SEARCH(\"@\",'Enrollment Form'!AH980))),\"N\",\"Y\"))","v":""},{"$f":"IF(OR($B973=\"N\",'Enrollment Form'!$G980=\"\"),\"\",IF('Enrollment Form'!$B980<>\"Subscriber\",\"-\",IF(COUNTIF('Enrollment Form'!$AS980:$AT980,\"Yes\")=2,\"N\",\"Y\")))","v":""},{"$f":"IF(OR('Enrollment Form'!$CC980=\"\",'Enrollment Form'!$CC980=\"No\"),\"-\",IF(AND('Enrollment Form'!$CC980=\"Yes\",'Enrollment Form'!$CD980=\"\"),\"N\",\"Y\"))","v":"-"},{"$f":"IF(OR('Enrollment Form'!$CE980=\"\",'Enrollment Form'!$CE980=\"No\"),\"-\",IF(AND('Enrollment Form'!$CE980=\"Yes\",'Enrollment Form'!$CF980=\"\"),\"N\",\"Y\"))","v":"-"},{"$f":"IF(OR('Enrollment Form'!$CG980=\"\",'Enrollment Form'!$CG980=\"No\"),\"-\",IF(AND('Enrollment Form'!$CG980=\"Yes\",'Enrollment Form'!$CH980=\"\"),\"N\",\"Y\"))","v":"-"},{"$f":"IF(OR('Enrollment Form'!$CG980=\"\",'Enrollment Form'!$CG980=\"No\"),\"-\",IF(AND('Enrollment Form'!$CG980=\"Yes\",'Enrollment Form'!$CI980=\"\"),\"N\",\"Y\"))","v":"-"},{"$f":"IF('Enrollment Form'!B980<>\"Subscriber\",\"-\",IF(AND('Enrollment Form'!B980=\"Subscriber\",'Enrollment Form'!C980=\"Enroll\",'Enrollment Form'!AA980=\"\"),\"N\",\"Y\"))","v":"-"},{"$f":"IF(OR('Enrollment Form'!B980=\"Subscriber\",'Enrollment Form'!B980=\"\"),\"-\",IF('Enrollment Form'!BI980=\"\",\"N\",\"Y\"))","v":"-"},{"$f":"IF('Enrollment Form'!B980<>\"Subscriber\",\"-\",IF(AND('Enrollment Form'!B980=\"Subscriber\",'Enrollment Form'!G980=\"\"),\"N\",\"Y\"))","v":"-"},{"$f":"IF('Enrollment Form'!A980=\"\",\"\",IF('Enrollment Form'!B980=\"Subscriber\",\"-\",IF(AND('Enrollment Form'!B980<>\"Subscriber\",'Enrollment Form'!G980='Enrollment Form'!H980),\"N\",\"Y\")))","v":""},0]
[981,{"$f":"IF('Enrollment Form'!$A981<>\"\",\"Y\",\"N\")","v":"N"},{"$f":"IF(AND('Enrollment Form'!$B981=\"\",'Enrollment Form'!$C981<>\"\"),\"N\",IF($B974=\"N\",\"\",\"Y\"))","v":""},{"$f":"IF(OR($B974=\"N\",'Enrollment Form'!G981=\"\"),\"\",IF('Enrollment Form'!$B981<>\"Subscriber\",\"\",IF('Enrollment Form'!$G981='Enrollment Form'!$H981,\"Y\",\"N\")))","v":""},{"$f":"IF($B974=\"N\",\"\",IF(AND(COUNTIFS('Enrollment Form'!$H$11:$H$1000,'Enrollment Form'!$H981,'Enrollment Form'!$B$11:$B$1000,'Enrollment Form'!$B981)>1,'Enrollment Form'!$H981<>\"\"),\"N\",\"Y\"))","v":""},{"$f":"IF($B974=\"N\",\"\",IF(LEN('Enrollment Form'!$Y981)=0,\"\",IF(LEN('Enrollment Form'!$Y981)<>5,\"N\",\"Y\")))","v":""},{"$f":"IF($B974=\"N\",\"\",IF(LEN('Enrollment Form'!$AD981=0),\"\",IF(LEN('Enrollment Form'!$AD981)<>5,\"N\",\"Y\")))","v":""},{"$f":"IF($B974=\"N\",\"\",IF(LEN('Enrollment Form'!$BL981=0),\"\",IF(LEN('Enrollment Form'!$BL981)<>5,\"N\",\"Y\")))","v":""},{"$f":"IF($B974=\"N\",\"\",IF(LEN('Enrollment Form'!$AE981)=0,\"\",IF(LEN('Enrollment Form'!$AE981)<>10,\"N\",\"Y\")))","v":""},{"$f":"IF($B974=\"N\",\"\",IF(LEN('Enrollment Form'!$AF981)=0,\"\",IF(LEN('Enrollment Form'!$AF981)<>10,\"N\",\"Y\")))","v":""},{"$f":"IF('Enrollment Form'!$O981<>\"Graded\",\"-\",IF(AND('Enrollment Form'!$O981=\"Graded\",'Enrollment Form'!$AO981<>\"\"),\"Y\",\"N\"))","v":"-"},{"$f":"IF($B974=\"N\",\"\",IF(OR('Enrollment Form'!$B981<>\"Subscriber\",'Enrollment Form'!$C981=\"ROC\"),\"-\",IF(AND('Enrollment Form'!$B981=\"Subscriber\",'Enrollment Form'!$C981=\"Enroll\",'Enrollment Form'!$AJ981<>\"\"),\"Y\",\"N\")))","v":""},{"$f":"IF($B974=\"N\",\"\",IF(OR('Enrollment Form'!$B981<>\"Subscriber\",'Enrollment Form'!$C981=\"ROC\"),\"-\",IF(AND('Enrollment Form'!$B981=\"Subscriber\",'Enrollment Form'!$C981=\"Enroll\",'Enrollment Form'!$AK981<>\"\"),\"Y\",\"N\")))","v":""},{"$f":"IF($B974=\"N\",\"\",IF(OR('Enrollment Form'!$B981<>\"Subscriber\",'Enrollment Form'!$C981=\"ROC\"),\"-\",IF(AND('Enrollment Form'!$B981=\"Subscriber\",'Enrollment Form'!$C981=\"Enroll\",'Enrollment Form'!$AL981<>\"\"),\"Y\",\"N\")))","v":""},{"$f":"IF($B974=\"N\",\"\",IF(OR('Enrollment Form'!$B981<>\"Subscriber\",'Enrollment Form'!$C981=\"ROC\"),\"-\",IF(AND('Enrollment Form'!$B981=\"Subscriber\",'Enrollment Form'!$C981=\"Enroll\",'Enrollment Form'!$AM981<>\"\"),\"Y\",\"N\")))","v":""},{"$f":"IF($B974=\"N\",\"\",IF(OR('Enrollment Form'!$B981<>\"Subscriber\",'Enrollment Form'!$C981=\"ROC\"),\"-\",IF(AND('Enrollment Form'!$B981=\"Subscriber\",'Enrollment Form'!$C981=\"Enroll\",'Enrollment Form'!$AN981<>\"\"),\"Y\",\"N\")))","v":""},{"$f":"IF($B974=\"N\",\"\",IF(OR('Enrollment Form'!$B981<>\"Subscriber\",'Enrollment Form'!$C981=\"ROC\"),\"-\",IF(AND('Enrollment Form'!$B981=\"Subscriber\",'Enrollment Form'!$C981=\"Enroll\",'Enrollment Form'!$AP981<>\"\"),\"Y\",\"N\")))","v":""},{"$f":"IF($B974=\"N\",\"\",IF($Q974=\"-\",\"-\",IF(AND($Q974=\"Y\",'Enrollment Form'!$AP981=\"No\"),\"-\",IF(AND($Q974=\"Y\",'Enrollment Form'!$AP981=\"Yes\",'Enrollment Form'!$AQ981<>\"\"),\"Y\",\"N\"))))","v":""},{"$f":"IF($B974=\"N\",\"\",IF(OR('Enrollment Form'!$B981<>\"Subscriber\",'Enrollment Form'!$C981=\"ROC\"),\"-\",IF(AND('Enrollment Form'!$B981=\"Subscriber\",'Enrollment Form'!$C981=\"Enroll\",'Enrollment Form'!$CO981<>\"\"),\"Y\",\"N\")))","v":""},{"$f":"IF($B974=\"N\",\"\",IF($S974=\"-\",\"-\",IF(AND($S974=\"Y\",'Enrollment Form'!$CO981=\"No\"),\"-\",IF(AND($S974=\"Y\",'Enrollment Form'!$CO981=\"Yes\",'Enrollment Form'!$CP981<>\"\"),\"Y\",\"N\"))))","v":""},{"$f":"IF(OR('Enrollment Form'!$AV981=\"Yes\",'Enrollment Form'!$AV981=\"\"),\"-\",IF(AND('Enrollment Form'!$AV981=\"No\",ISERROR(FIND(\"HMO\",VLOOKUP('Enrollment Form'!G981,'Enrollment Form'!H$11:J$1000,3,FALSE),1))=FALSE,COUNTA('Enrollment Form'!$AW981:$AZ981)=4),\"Y\",\"N\"))","v":"-"},{"$f":"IF($B974=\"N\",\"\",IF('Enrollment Form'!$B981=\"Subscriber\",\"-\",IF(COUNTA('Enrollment Form'!$BE981,'Enrollment Form'!$BG981)=2,\"Y\",\"N\")))","v":""},{"$f":"IF($B974=\"N\",\"\",IF(OR('Enrollment Form'!$AU981=\"\",'Enrollment Form'!$AU981=\"No\"),\"-\",IF(AND('Enrollment Form'!$AU981=\"Yes\",COUNTA('Enrollment Form'!$CK981)=1),\"Y\",\"N\")))","v":""},{"$f":"IF(OR('Enrollment Form'!$CK981=\"\",'Enrollment Form'!$CK981=\"No\"),\"-\",IF(COUNTA('Enrollment Form'!$CM981:$CN981)=2,\"Y\",\"N\"))","v":"-"},{"$f":"IF($B974=\"N\",\"\",IF(COUNTIF('Enrollment Form'!$CZ981:$DO981,\"Other\")=COUNTA('Enrollment Form'!$DF981,'Enrollment Form'!$DA981,'Enrollment Form'!$DK981,'Enrollment Form'!$DP981),\"Y\",\"N\"))","v":""},{"$f":"IF($B974=\"N\",\"\",IF(OR('Enrollment Form'!B981<>\"Subscriber\",'Enrollment Form'!C981=\"ROC\",COUNTIF('Enrollment Form'!AS981:AT981,\"Yes\")>=1),\"-\",IF(AND('Enrollment Form'!C981=\"Enroll\",COUNTIF('Enrollment Form'!AS981:AT981,\"No\")=2,'Enrollment Form'!AU981=\"\"),\"N\",\"Y\")))","v":""},{"$f":"IF(OR(B974=\"N\",'Enrollment Form'!B981<>\"Subscriber\",'Enrollment Form'!C981=\"ROC\",'Enrollment Form'!O981<>\"Multiple of Salary\"),\"-\",IF(COUNTA('Enrollment Form'!T981:U981)<2,\"N\",\"Y\"))","v":"-"},{"$f":"IF(B974=\"N\",\"\",IF(OR('Enrollment Form'!C981=\"ROC\",'Enrollment Form'!B981<>\"Subscriber\",'Enrollment Form'!O981=\"Waive\",'Enrollment Form'!O981=\"\"),\"-\",IF('Enrollment Form'!P981=\"\",\"N\",\"Y\")))","v":""},{"$f":"IF($B974=\"N\",\"\",IF(AND('Enrollment Form'!$C981=\"ROC\",'Enrollment Form'!$DS981<>\"\"),\"Y\",IF(AND('Enrollment Form'!$C981=\"ROC\",'Enrollment Form'!$DS981=\"\"),\"N\",IF(AND('Enrollment Form'!$C981=\"Enroll\",'Enrollment Form'!$B981=\"Subscriber\",'Enrollment Form'!$CQ981=\"No\",'Enrollment Form'!$DS981=\"\"),\"N\",IF(AND('Enrollment Form'!$C981=\"Enroll\",'Enrollment Form'!$B981=\"Subscriber\",'Enrollment Form'!$CQ981=\"Yes\"),\"-\",\"Y\")))))","v":""},{"$f":"IF($B974=\"N\",\"\",IF(AND('Enrollment Form'!$C981=\"ROC\",'Enrollment Form'!$DT981<>\"\"),\"Y\",IF(AND('Enrollment Form'!$C981=\"ROC\",'Enrollment Form'!$DT981=\"\"),\"N\",IF(AND('Enrollment Form'!$C981=\"Enroll\",'Enrollment Form'!$B981=\"Subscriber\",'Enrollment Form'!$CQ981=\"No\",'Enrollment Form'!$DT981=\"\"),\"N\",IF(AND('Enrollment Form'!$C981=\"Enroll\",'Enrollment Form'!$B981=\"Subscriber\",'Enrollment Form'!$CQ981=\"Yes\"),\"-\",\"Y\")))))","v":""},{"$f":"IF('Enrollment Form'!AH981=\"\",\"\",IF(ISERROR(SEARCH(\".\",'Enrollment Form'!AH981,SEARCH(\"@\",'Enrollment Form'!AH981))),\"N\",\"Y\"))","v":""},{"$f":"IF(OR($B974=\"N\",'Enrollment Form'!$G981=\"\"),\"\",IF('Enrollment Form'!$B981<>\"Subscriber\",\"-\",IF(COUNTIF('Enrollment Form'!$AS981:$AT981,\"Yes\")=2,\"N\",\"Y\")))","v":""},{"$f":"IF(OR('Enrollment Form'!$CC981=\"\",'Enrollment Form'!$CC981=\"No\"),\"-\",IF(AND('Enrollment Form'!$CC981=\"Yes\",'Enrollment Form'!$CD981=\"\"),\"N\",\"Y\"))","v":"-"},{"$f":"IF(OR('Enrollment Form'!$CE981=\"\",'Enrollment Form'!$CE981=\"No\"),\"-\",IF(AND('Enrollment Form'!$CE981=\"Yes\",'Enrollment Form'!$CF981=\"\"),\"N\",\"Y\"))","v":"-"},{"$f":"IF(OR('Enrollment Form'!$CG981=\"\",'Enrollment Form'!$CG981=\"No\"),\"-\",IF(AND('Enrollment Form'!$CG981=\"Yes\",'Enrollment Form'!$CH981=\"\"),\"N\",\"Y\"))","v":"-"},{"$f":"IF(OR('Enrollment Form'!$CG981=\"\",'Enrollment Form'!$CG981=\"No\"),\"-\",IF(AND('Enrollment Form'!$CG981=\"Yes\",'Enrollment Form'!$CI981=\"\"),\"N\",\"Y\"))","v":"-"},{"$f":"IF('Enrollment Form'!B981<>\"Subscriber\",\"-\",IF(AND('Enrollment Form'!B981=\"Subscriber\",'Enrollment Form'!C981=\"Enroll\",'Enrollment Form'!AA981=\"\"),\"N\",\"Y\"))","v":"-"},{"$f":"IF(OR('Enrollment Form'!B981=\"Subscriber\",'Enrollment Form'!B981=\"\"),\"-\",IF('Enrollment Form'!BI981=\"\",\"N\",\"Y\"))","v":"-"},{"$f":"IF('Enrollment Form'!B981<>\"Subscriber\",\"-\",IF(AND('Enrollment Form'!B981=\"Subscriber\",'Enrollment Form'!G981=\"\"),\"N\",\"Y\"))","v":"-"},{"$f":"IF('Enrollment Form'!A981=\"\",\"\",IF('Enrollment Form'!B981=\"Subscriber\",\"-\",IF(AND('Enrollment Form'!B981<>\"Subscriber\",'Enrollment Form'!G981='Enrollment Form'!H981),\"N\",\"Y\")))","v":""},0]
[982,{"$f":"IF('Enrollment Form'!$A982<>\"\",\"Y\",\"N\")","v":"N"},{"$f":"IF(AND('Enrollment Form'!$B982=\"\",'Enrollment Form'!$C982<>\"\"),\"N\",IF($B975=\"N\",\"\",\"Y\"))","v":""},{"$f":"IF(OR($B975=\"N\",'Enrollment Form'!G982=\"\"),\"\",IF('Enrollment Form'!$B982<>\"Subscriber\",\"\",IF('Enrollment Form'!$G982='Enrollment Form'!$H982,\"Y\",\"N\")))","v":""},{"$f":"IF($B975=\"N\",\"\",IF(AND(COUNTIFS('Enrollment Form'!$H$11:$H$1000,'Enrollment Form'!$H982,'Enrollment Form'!$B$11:$B$1000,'Enrollment Form'!$B982)>1,'Enrollment Form'!$H982<>\"\"),\"N\",\"Y\"))","v":""},{"$f":"IF($B975=\"N\",\"\",IF(LEN('Enrollment Form'!$Y982)=0,\"\",IF(LEN('Enrollment Form'!$Y982)<>5,\"N\",\"Y\")))","v":""},{"$f":"IF($B975=\"N\",\"\",IF(LEN('Enrollment Form'!$AD982=0),\"\",IF(LEN('Enrollment Form'!$AD982)<>5,\"N\",\"Y\")))","v":""},{"$f":"IF($B975=\"N\",\"\",IF(LEN('Enrollment Form'!$BL982=0),\"\",IF(LEN('Enrollment Form'!$BL982)<>5,\"N\",\"Y\")))","v":""},{"$f":"IF($B975=\"N\",\"\",IF(LEN('Enrollment Form'!$AE982)=0,\"\",IF(LEN('Enrollment Form'!$AE982)<>10,\"N\",\"Y\")))","v":""},{"$f":"IF($B975=\"N\",\"\",IF(LEN('Enrollment Form'!$AF982)=0,\"\",IF(LEN('Enrollment Form'!$AF982)<>10,\"N\",\"Y\")))","v":""},{"$f":"IF('Enrollment Form'!$O982<>\"Graded\",\"-\",IF(AND('Enrollment Form'!$O982=\"Graded\",'Enrollment Form'!$AO982<>\"\"),\"Y\",\"N\"))","v":"-"},{"$f":"IF($B975=\"N\",\"\",IF(OR('Enrollment Form'!$B982<>\"Subscriber\",'Enrollment Form'!$C982=\"ROC\"),\"-\",IF(AND('Enrollment Form'!$B982=\"Subscriber\",'Enrollment Form'!$C982=\"Enroll\",'Enrollment Form'!$AJ982<>\"\"),\"Y\",\"N\")))","v":""},{"$f":"IF($B975=\"N\",\"\",IF(OR('Enrollment Form'!$B982<>\"Subscriber\",'Enrollment Form'!$C982=\"ROC\"),\"-\",IF(AND('Enrollment Form'!$B982=\"Subscriber\",'Enrollment Form'!$C982=\"Enroll\",'Enrollment Form'!$AK982<>\"\"),\"Y\",\"N\")))","v":""},{"$f":"IF($B975=\"N\",\"\",IF(OR('Enrollment Form'!$B982<>\"Subscriber\",'Enrollment Form'!$C982=\"ROC\"),\"-\",IF(AND('Enrollment Form'!$B982=\"Subscriber\",'Enrollment Form'!$C982=\"Enroll\",'Enrollment Form'!$AL982<>\"\"),\"Y\",\"N\")))","v":""},{"$f":"IF($B975=\"N\",\"\",IF(OR('Enrollment Form'!$B982<>\"Subscriber\",'Enrollment Form'!$C982=\"ROC\"),\"-\",IF(AND('Enrollment Form'!$B982=\"Subscriber\",'Enrollment Form'!$C982=\"Enroll\",'Enrollment Form'!$AM982<>\"\"),\"Y\",\"N\")))","v":""},{"$f":"IF($B975=\"N\",\"\",IF(OR('Enrollment Form'!$B982<>\"Subscriber\",'Enrollment Form'!$C982=\"ROC\"),\"-\",IF(AND('Enrollment Form'!$B982=\"Subscriber\",'Enrollment Form'!$C982=\"Enroll\",'Enrollment Form'!$AN982<>\"\"),\"Y\",\"N\")))","v":""},{"$f":"IF($B975=\"N\",\"\",IF(OR('Enrollment Form'!$B982<>\"Subscriber\",'Enrollment Form'!$C982=\"ROC\"),\"-\",IF(AND('Enrollment Form'!$B982=\"Subscriber\",'Enrollment Form'!$C982=\"Enroll\",'Enrollment Form'!$AP982<>\"\"),\"Y\",\"N\")))","v":""},{"$f":"IF($B975=\"N\",\"\",IF($Q975=\"-\",\"-\",IF(AND($Q975=\"Y\",'Enrollment Form'!$AP982=\"No\"),\"-\",IF(AND($Q975=\"Y\",'Enrollment Form'!$AP982=\"Yes\",'Enrollment Form'!$AQ982<>\"\"),\"Y\",\"N\"))))","v":""},{"$f":"IF($B975=\"N\",\"\",IF(OR('Enrollment Form'!$B982<>\"Subscriber\",'Enrollment Form'!$C982=\"ROC\"),\"-\",IF(AND('Enrollment Form'!$B982=\"Subscriber\",'Enrollment Form'!$C982=\"Enroll\",'Enrollment Form'!$CO982<>\"\"),\"Y\",\"N\")))","v":""},{"$f":"IF($B975=\"N\",\"\",IF($S975=\"-\",\"-\",IF(AND($S975=\"Y\",'Enrollment Form'!$CO982=\"No\"),\"-\",IF(AND($S975=\"Y\",'Enrollment Form'!$CO982=\"Yes\",'Enrollment Form'!$CP982<>\"\"),\"Y\",\"N\"))))","v":""},{"$f":"IF(OR('Enrollment Form'!$AV982=\"Yes\",'Enrollment Form'!$AV982=\"\"),\"-\",IF(AND('Enrollment Form'!$AV982=\"No\",ISERROR(FIND(\"HMO\",VLOOKUP('Enrollment Form'!G982,'Enrollment Form'!H$11:J$1000,3,FALSE),1))=FALSE,COUNTA('Enrollment Form'!$AW982:$AZ982)=4),\"Y\",\"N\"))","v":"-"},{"$f":"IF($B975=\"N\",\"\",IF('Enrollment Form'!$B982=\"Subscriber\",\"-\",IF(COUNTA('Enrollment Form'!$BE982,'Enrollment Form'!$BG982)=2,\"Y\",\"N\")))","v":""},{"$f":"IF($B975=\"N\",\"\",IF(OR('Enrollment Form'!$AU982=\"\",'Enrollment Form'!$AU982=\"No\"),\"-\",IF(AND('Enrollment Form'!$AU982=\"Yes\",COUNTA('Enrollment Form'!$CK982)=1),\"Y\",\"N\")))","v":""},{"$f":"IF(OR('Enrollment Form'!$CK982=\"\",'Enrollment Form'!$CK982=\"No\"),\"-\",IF(COUNTA('Enrollment Form'!$CM982:$CN982)=2,\"Y\",\"N\"))","v":"-"},{"$f":"IF($B975=\"N\",\"\",IF(COUNTIF('Enrollment Form'!$CZ982:$DO982,\"Other\")=COUNTA('Enrollment Form'!$DF982,'Enrollment Form'!$DA982,'Enrollment Form'!$DK982,'Enrollment Form'!$DP982),\"Y\",\"N\"))","v":""},{"$f":"IF($B975=\"N\",\"\",IF(OR('Enrollment Form'!B982<>\"Subscriber\",'Enrollment Form'!C982=\"ROC\",COUNTIF('Enrollment Form'!AS982:AT982,\"Yes\")>=1),\"-\",IF(AND('Enrollment Form'!C982=\"Enroll\",COUNTIF('Enrollment Form'!AS982:AT982,\"No\")=2,'Enrollment Form'!AU982=\"\"),\"N\",\"Y\")))","v":""},{"$f":"IF(OR(B975=\"N\",'Enrollment Form'!B982<>\"Subscriber\",'Enrollment Form'!C982=\"ROC\",'Enrollment Form'!O982<>\"Multiple of Salary\"),\"-\",IF(COUNTA('Enrollment Form'!T982:U982)<2,\"N\",\"Y\"))","v":"-"},{"$f":"IF(B975=\"N\",\"\",IF(OR('Enrollment Form'!C982=\"ROC\",'Enrollment Form'!B982<>\"Subscriber\",'Enrollment Form'!O982=\"Waive\",'Enrollment Form'!O982=\"\"),\"-\",IF('Enrollment Form'!P982=\"\",\"N\",\"Y\")))","v":""},{"$f":"IF($B975=\"N\",\"\",IF(AND('Enrollment Form'!$C982=\"ROC\",'Enrollment Form'!$DS982<>\"\"),\"Y\",IF(AND('Enrollment Form'!$C982=\"ROC\",'Enrollment Form'!$DS982=\"\"),\"N\",IF(AND('Enrollment Form'!$C982=\"Enroll\",'Enrollment Form'!$B982=\"Subscriber\",'Enrollment Form'!$CQ982=\"No\",'Enrollment Form'!$DS982=\"\"),\"N\",IF(AND('Enrollment Form'!$C982=\"Enroll\",'Enrollment Form'!$B982=\"Subscriber\",'Enrollment Form'!$CQ982=\"Yes\"),\"-\",\"Y\")))))","v":""},{"$f":"IF($B975=\"N\",\"\",IF(AND('Enrollment Form'!$C982=\"ROC\",'Enrollment Form'!$DT982<>\"\"),\"Y\",IF(AND('Enrollment Form'!$C982=\"ROC\",'Enrollment Form'!$DT982=\"\"),\"N\",IF(AND('Enrollment Form'!$C982=\"Enroll\",'Enrollment Form'!$B982=\"Subscriber\",'Enrollment Form'!$CQ982=\"No\",'Enrollment Form'!$DT982=\"\"),\"N\",IF(AND('Enrollment Form'!$C982=\"Enroll\",'Enrollment Form'!$B982=\"Subscriber\",'Enrollment Form'!$CQ982=\"Yes\"),\"-\",\"Y\")))))","v":""},{"$f":"IF('Enrollment Form'!AH982=\"\",\"\",IF(ISERROR(SEARCH(\".\",'Enrollment Form'!AH982,SEARCH(\"@\",'Enrollment Form'!AH982))),\"N\",\"Y\"))","v":""},{"$f":"IF(OR($B975=\"N\",'Enrollment Form'!$G982=\"\"),\"\",IF('Enrollment Form'!$B982<>\"Subscriber\",\"-\",IF(COUNTIF('Enrollment Form'!$AS982:$AT982,\"Yes\")=2,\"N\",\"Y\")))","v":""},{"$f":"IF(OR('Enrollment Form'!$CC982=\"\",'Enrollment Form'!$CC982=\"No\"),\"-\",IF(AND('Enrollment Form'!$CC982=\"Yes\",'Enrollment Form'!$CD982=\"\"),\"N\",\"Y\"))","v":"-"},{"$f":"IF(OR('Enrollment Form'!$CE982=\"\",'Enrollment Form'!$CE982=\"No\"),\"-\",IF(AND('Enrollment Form'!$CE982=\"Yes\",'Enrollment Form'!$CF982=\"\"),\"N\",\"Y\"))","v":"-"},{"$f":"IF(OR('Enrollment Form'!$CG982=\"\",'Enrollment Form'!$CG982=\"No\"),\"-\",IF(AND('Enrollment Form'!$CG982=\"Yes\",'Enrollment Form'!$CH982=\"\"),\"N\",\"Y\"))","v":"-"},{"$f":"IF(OR('Enrollment Form'!$CG982=\"\",'Enrollment Form'!$CG982=\"No\"),\"-\",IF(AND('Enrollment Form'!$CG982=\"Yes\",'Enrollment Form'!$CI982=\"\"),\"N\",\"Y\"))","v":"-"},{"$f":"IF('Enrollment Form'!B982<>\"Subscriber\",\"-\",IF(AND('Enrollment Form'!B982=\"Subscriber\",'Enrollment Form'!C982=\"Enroll\",'Enrollment Form'!AA982=\"\"),\"N\",\"Y\"))","v":"-"},{"$f":"IF(OR('Enrollment Form'!B982=\"Subscriber\",'Enrollment Form'!B982=\"\"),\"-\",IF('Enrollment Form'!BI982=\"\",\"N\",\"Y\"))","v":"-"},{"$f":"IF('Enrollment Form'!B982<>\"Subscriber\",\"-\",IF(AND('Enrollment Form'!B982=\"Subscriber\",'Enrollment Form'!G982=\"\"),\"N\",\"Y\"))","v":"-"},{"$f":"IF('Enrollment Form'!A982=\"\",\"\",IF('Enrollment Form'!B982=\"Subscriber\",\"-\",IF(AND('Enrollment Form'!B982<>\"Subscriber\",'Enrollment Form'!G982='Enrollment Form'!H982),\"N\",\"Y\")))","v":""},0]
[983,{"$f":"IF('Enrollment Form'!$A983<>\"\",\"Y\",\"N\")","v":"N"},{"$f":"IF(AND('Enrollment Form'!$B983=\"\",'Enrollment Form'!$C983<>\"\"),\"N\",IF($B976=\"N\",\"\",\"Y\"))","v":""},{"$f":"IF(OR($B976=\"N\",'Enrollment Form'!G983=\"\"),\"\",IF('Enrollment Form'!$B983<>\"Subscriber\",\"\",IF('Enrollment Form'!$G983='Enrollment Form'!$H983,\"Y\",\"N\")))","v":""},{"$f":"IF($B976=\"N\",\"\",IF(AND(COUNTIFS('Enrollment Form'!$H$11:$H$1000,'Enrollment Form'!$H983,'Enrollment Form'!$B$11:$B$1000,'Enrollment Form'!$B983)>1,'Enrollment Form'!$H983<>\"\"),\"N\",\"Y\"))","v":""},{"$f":"IF($B976=\"N\",\"\",IF(LEN('Enrollment Form'!$Y983)=0,\"\",IF(LEN('Enrollment Form'!$Y983)<>5,\"N\",\"Y\")))","v":""},{"$f":"IF($B976=\"N\",\"\",IF(LEN('Enrollment Form'!$AD983=0),\"\",IF(LEN('Enrollment Form'!$AD983)<>5,\"N\",\"Y\")))","v":""},{"$f":"IF($B976=\"N\",\"\",IF(LEN('Enrollment Form'!$BL983=0),\"\",IF(LEN('Enrollment Form'!$BL983)<>5,\"N\",\"Y\")))","v":""},{"$f":"IF($B976=\"N\",\"\",IF(LEN('Enrollment Form'!$AE983)=0,\"\",IF(LEN('Enrollment Form'!$AE983)<>10,\"N\",\"Y\")))","v":""},{"$f":"IF($B976=\"N\",\"\",IF(LEN('Enrollment Form'!$AF983)=0,\"\",IF(LEN('Enrollment Form'!$AF983)<>10,\"N\",\"Y\")))","v":""},{"$f":"IF('Enrollment Form'!$O983<>\"Graded\",\"-\",IF(AND('Enrollment Form'!$O983=\"Graded\",'Enrollment Form'!$AO983<>\"\"),\"Y\",\"N\"))","v":"-"},{"$f":"IF($B976=\"N\",\"\",IF(OR('Enrollment Form'!$B983<>\"Subscriber\",'Enrollment Form'!$C983=\"ROC\"),\"-\",IF(AND('Enrollment Form'!$B983=\"Subscriber\",'Enrollment Form'!$C983=\"Enroll\",'Enrollment Form'!$AJ983<>\"\"),\"Y\",\"N\")))","v":""},{"$f":"IF($B976=\"N\",\"\",IF(OR('Enrollment Form'!$B983<>\"Subscriber\",'Enrollment Form'!$C983=\"ROC\"),\"-\",IF(AND('Enrollment Form'!$B983=\"Subscriber\",'Enrollment Form'!$C983=\"Enroll\",'Enrollment Form'!$AK983<>\"\"),\"Y\",\"N\")))","v":""},{"$f":"IF($B976=\"N\",\"\",IF(OR('Enrollment Form'!$B983<>\"Subscriber\",'Enrollment Form'!$C983=\"ROC\"),\"-\",IF(AND('Enrollment Form'!$B983=\"Subscriber\",'Enrollment Form'!$C983=\"Enroll\",'Enrollment Form'!$AL983<>\"\"),\"Y\",\"N\")))","v":""},{"$f":"IF($B976=\"N\",\"\",IF(OR('Enrollment Form'!$B983<>\"Subscriber\",'Enrollment Form'!$C983=\"ROC\"),\"-\",IF(AND('Enrollment Form'!$B983=\"Subscriber\",'Enrollment Form'!$C983=\"Enroll\",'Enrollment Form'!$AM983<>\"\"),\"Y\",\"N\")))","v":""},{"$f":"IF($B976=\"N\",\"\",IF(OR('Enrollment Form'!$B983<>\"Subscriber\",'Enrollment Form'!$C983=\"ROC\"),\"-\",IF(AND('Enrollment Form'!$B983=\"Subscriber\",'Enrollment Form'!$C983=\"Enroll\",'Enrollment Form'!$AN983<>\"\"),\"Y\",\"N\")))","v":""},{"$f":"IF($B976=\"N\",\"\",IF(OR('Enrollment Form'!$B983<>\"Subscriber\",'Enrollment Form'!$C983=\"ROC\"),\"-\",IF(AND('Enrollment Form'!$B983=\"Subscriber\",'Enrollment Form'!$C983=\"Enroll\",'Enrollment Form'!$AP983<>\"\"),\"Y\",\"N\")))","v":""},{"$f":"IF($B976=\"N\",\"\",IF($Q976=\"-\",\"-\",IF(AND($Q976=\"Y\",'Enrollment Form'!$AP983=\"No\"),\"-\",IF(AND($Q976=\"Y\",'Enrollment Form'!$AP983=\"Yes\",'Enrollment Form'!$AQ983<>\"\"),\"Y\",\"N\"))))","v":""},{"$f":"IF($B976=\"N\",\"\",IF(OR('Enrollment Form'!$B983<>\"Subscriber\",'Enrollment Form'!$C983=\"ROC\"),\"-\",IF(AND('Enrollment Form'!$B983=\"Subscriber\",'Enrollment Form'!$C983=\"Enroll\",'Enrollment Form'!$CO983<>\"\"),\"Y\",\"N\")))","v":""},{"$f":"IF($B976=\"N\",\"\",IF($S976=\"-\",\"-\",IF(AND($S976=\"Y\",'Enrollment Form'!$CO983=\"No\"),\"-\",IF(AND($S976=\"Y\",'Enrollment Form'!$CO983=\"Yes\",'Enrollment Form'!$CP983<>\"\"),\"Y\",\"N\"))))","v":""},{"$f":"IF(OR('Enrollment Form'!$AV983=\"Yes\",'Enrollment Form'!$AV983=\"\"),\"-\",IF(AND('Enrollment Form'!$AV983=\"No\",ISERROR(FIND(\"HMO\",VLOOKUP('Enrollment Form'!G983,'Enrollment Form'!H$11:J$1000,3,FALSE),1))=FALSE,COUNTA('Enrollment Form'!$AW983:$AZ983)=4),\"Y\",\"N\"))","v":"-"},{"$f":"IF($B976=\"N\",\"\",IF('Enrollment Form'!$B983=\"Subscriber\",\"-\",IF(COUNTA('Enrollment Form'!$BE983,'Enrollment Form'!$BG983)=2,\"Y\",\"N\")))","v":""},{"$f":"IF($B976=\"N\",\"\",IF(OR('Enrollment Form'!$AU983=\"\",'Enrollment Form'!$AU983=\"No\"),\"-\",IF(AND('Enrollment Form'!$AU983=\"Yes\",COUNTA('Enrollment Form'!$CK983)=1),\"Y\",\"N\")))","v":""},{"$f":"IF(OR('Enrollment Form'!$CK983=\"\",'Enrollment Form'!$CK983=\"No\"),\"-\",IF(COUNTA('Enrollment Form'!$CM983:$CN983)=2,\"Y\",\"N\"))","v":"-"},{"$f":"IF($B976=\"N\",\"\",IF(COUNTIF('Enrollment Form'!$CZ983:$DO983,\"Other\")=COUNTA('Enrollment Form'!$DF983,'Enrollment Form'!$DA983,'Enrollment Form'!$DK983,'Enrollment Form'!$DP983),\"Y\",\"N\"))","v":""},{"$f":"IF($B976=\"N\",\"\",IF(OR('Enrollment Form'!B983<>\"Subscriber\",'Enrollment Form'!C983=\"ROC\",COUNTIF('Enrollment Form'!AS983:AT983,\"Yes\")>=1),\"-\",IF(AND('Enrollment Form'!C983=\"Enroll\",COUNTIF('Enrollment Form'!AS983:AT983,\"No\")=2,'Enrollment Form'!AU983=\"\"),\"N\",\"Y\")))","v":""},{"$f":"IF(OR(B976=\"N\",'Enrollment Form'!B983<>\"Subscriber\",'Enrollment Form'!C983=\"ROC\",'Enrollment Form'!O983<>\"Multiple of Salary\"),\"-\",IF(COUNTA('Enrollment Form'!T983:U983)<2,\"N\",\"Y\"))","v":"-"},{"$f":"IF(B976=\"N\",\"\",IF(OR('Enrollment Form'!C983=\"ROC\",'Enrollment Form'!B983<>\"Subscriber\",'Enrollment Form'!O983=\"Waive\",'Enrollment Form'!O983=\"\"),\"-\",IF('Enrollment Form'!P983=\"\",\"N\",\"Y\")))","v":""},{"$f":"IF($B976=\"N\",\"\",IF(AND('Enrollment Form'!$C983=\"ROC\",'Enrollment Form'!$DS983<>\"\"),\"Y\",IF(AND('Enrollment Form'!$C983=\"ROC\",'Enrollment Form'!$DS983=\"\"),\"N\",IF(AND('Enrollment Form'!$C983=\"Enroll\",'Enrollment Form'!$B983=\"Subscriber\",'Enrollment Form'!$CQ983=\"No\",'Enrollment Form'!$DS983=\"\"),\"N\",IF(AND('Enrollment Form'!$C983=\"Enroll\",'Enrollment Form'!$B983=\"Subscriber\",'Enrollment Form'!$CQ983=\"Yes\"),\"-\",\"Y\")))))","v":""},{"$f":"IF($B976=\"N\",\"\",IF(AND('Enrollment Form'!$C983=\"ROC\",'Enrollment Form'!$DT983<>\"\"),\"Y\",IF(AND('Enrollment Form'!$C983=\"ROC\",'Enrollment Form'!$DT983=\"\"),\"N\",IF(AND('Enrollment Form'!$C983=\"Enroll\",'Enrollment Form'!$B983=\"Subscriber\",'Enrollment Form'!$CQ983=\"No\",'Enrollment Form'!$DT983=\"\"),\"N\",IF(AND('Enrollment Form'!$C983=\"Enroll\",'Enrollment Form'!$B983=\"Subscriber\",'Enrollment Form'!$CQ983=\"Yes\"),\"-\",\"Y\")))))","v":""},{"$f":"IF('Enrollment Form'!AH983=\"\",\"\",IF(ISERROR(SEARCH(\".\",'Enrollment Form'!AH983,SEARCH(\"@\",'Enrollment Form'!AH983))),\"N\",\"Y\"))","v":""},{"$f":"IF(OR($B976=\"N\",'Enrollment Form'!$G983=\"\"),\"\",IF('Enrollment Form'!$B983<>\"Subscriber\",\"-\",IF(COUNTIF('Enrollment Form'!$AS983:$AT983,\"Yes\")=2,\"N\",\"Y\")))","v":""},{"$f":"IF(OR('Enrollment Form'!$CC983=\"\",'Enrollment Form'!$CC983=\"No\"),\"-\",IF(AND('Enrollment Form'!$CC983=\"Yes\",'Enrollment Form'!$CD983=\"\"),\"N\",\"Y\"))","v":"-"},{"$f":"IF(OR('Enrollment Form'!$CE983=\"\",'Enrollment Form'!$CE983=\"No\"),\"-\",IF(AND('Enrollment Form'!$CE983=\"Yes\",'Enrollment Form'!$CF983=\"\"),\"N\",\"Y\"))","v":"-"},{"$f":"IF(OR('Enrollment Form'!$CG983=\"\",'Enrollment Form'!$CG983=\"No\"),\"-\",IF(AND('Enrollment Form'!$CG983=\"Yes\",'Enrollment Form'!$CH983=\"\"),\"N\",\"Y\"))","v":"-"},{"$f":"IF(OR('Enrollment Form'!$CG983=\"\",'Enrollment Form'!$CG983=\"No\"),\"-\",IF(AND('Enrollment Form'!$CG983=\"Yes\",'Enrollment Form'!$CI983=\"\"),\"N\",\"Y\"))","v":"-"},{"$f":"IF('Enrollment Form'!B983<>\"Subscriber\",\"-\",IF(AND('Enrollment Form'!B983=\"Subscriber\",'Enrollment Form'!C983=\"Enroll\",'Enrollment Form'!AA983=\"\"),\"N\",\"Y\"))","v":"-"},{"$f":"IF(OR('Enrollment Form'!B983=\"Subscriber\",'Enrollment Form'!B983=\"\"),\"-\",IF('Enrollment Form'!BI983=\"\",\"N\",\"Y\"))","v":"-"},{"$f":"IF('Enrollment Form'!B983<>\"Subscriber\",\"-\",IF(AND('Enrollment Form'!B983=\"Subscriber\",'Enrollment Form'!G983=\"\"),\"N\",\"Y\"))","v":"-"},{"$f":"IF('Enrollment Form'!A983=\"\",\"\",IF('Enrollment Form'!B983=\"Subscriber\",\"-\",IF(AND('Enrollment Form'!B983<>\"Subscriber\",'Enrollment Form'!G983='Enrollment Form'!H983),\"N\",\"Y\")))","v":""},0]
[984,{"$f":"IF('Enrollment Form'!$A984<>\"\",\"Y\",\"N\")","v":"N"},{"$f":"IF(AND('Enrollment Form'!$B984=\"\",'Enrollment Form'!$C984<>\"\"),\"N\",IF($B977=\"N\",\"\",\"Y\"))","v":""},{"$f":"IF(OR($B977=\"N\",'Enrollment Form'!G984=\"\"),\"\",IF('Enrollment Form'!$B984<>\"Subscriber\",\"\",IF('Enrollment Form'!$G984='Enrollment Form'!$H984,\"Y\",\"N\")))","v":""},{"$f":"IF($B977=\"N\",\"\",IF(AND(COUNTIFS('Enrollment Form'!$H$11:$H$1000,'Enrollment Form'!$H984,'Enrollment Form'!$B$11:$B$1000,'Enrollment Form'!$B984)>1,'Enrollment Form'!$H984<>\"\"),\"N\",\"Y\"))","v":""},{"$f":"IF($B977=\"N\",\"\",IF(LEN('Enrollment Form'!$Y984)=0,\"\",IF(LEN('Enrollment Form'!$Y984)<>5,\"N\",\"Y\")))","v":""},{"$f":"IF($B977=\"N\",\"\",IF(LEN('Enrollment Form'!$AD984=0),\"\",IF(LEN('Enrollment Form'!$AD984)<>5,\"N\",\"Y\")))","v":""},{"$f":"IF($B977=\"N\",\"\",IF(LEN('Enrollment Form'!$BL984=0),\"\",IF(LEN('Enrollment Form'!$BL984)<>5,\"N\",\"Y\")))","v":""},{"$f":"IF($B977=\"N\",\"\",IF(LEN('Enrollment Form'!$AE984)=0,\"\",IF(LEN('Enrollment Form'!$AE984)<>10,\"N\",\"Y\")))","v":""},{"$f":"IF($B977=\"N\",\"\",IF(LEN('Enrollment Form'!$AF984)=0,\"\",IF(LEN('Enrollment Form'!$AF984)<>10,\"N\",\"Y\")))","v":""},{"$f":"IF('Enrollment Form'!$O984<>\"Graded\",\"-\",IF(AND('Enrollment Form'!$O984=\"Graded\",'Enrollment Form'!$AO984<>\"\"),\"Y\",\"N\"))","v":"-"},{"$f":"IF($B977=\"N\",\"\",IF(OR('Enrollment Form'!$B984<>\"Subscriber\",'Enrollment Form'!$C984=\"ROC\"),\"-\",IF(AND('Enrollment Form'!$B984=\"Subscriber\",'Enrollment Form'!$C984=\"Enroll\",'Enrollment Form'!$AJ984<>\"\"),\"Y\",\"N\")))","v":""},{"$f":"IF($B977=\"N\",\"\",IF(OR('Enrollment Form'!$B984<>\"Subscriber\",'Enrollment Form'!$C984=\"ROC\"),\"-\",IF(AND('Enrollment Form'!$B984=\"Subscriber\",'Enrollment Form'!$C984=\"Enroll\",'Enrollment Form'!$AK984<>\"\"),\"Y\",\"N\")))","v":""},{"$f":"IF($B977=\"N\",\"\",IF(OR('Enrollment Form'!$B984<>\"Subscriber\",'Enrollment Form'!$C984=\"ROC\"),\"-\",IF(AND('Enrollment Form'!$B984=\"Subscriber\",'Enrollment Form'!$C984=\"Enroll\",'Enrollment Form'!$AL984<>\"\"),\"Y\",\"N\")))","v":""},{"$f":"IF($B977=\"N\",\"\",IF(OR('Enrollment Form'!$B984<>\"Subscriber\",'Enrollment Form'!$C984=\"ROC\"),\"-\",IF(AND('Enrollment Form'!$B984=\"Subscriber\",'Enrollment Form'!$C984=\"Enroll\",'Enrollment Form'!$AM984<>\"\"),\"Y\",\"N\")))","v":""},{"$f":"IF($B977=\"N\",\"\",IF(OR('Enrollment Form'!$B984<>\"Subscriber\",'Enrollment Form'!$C984=\"ROC\"),\"-\",IF(AND('Enrollment Form'!$B984=\"Subscriber\",'Enrollment Form'!$C984=\"Enroll\",'Enrollment Form'!$AN984<>\"\"),\"Y\",\"N\")))","v":""},{"$f":"IF($B977=\"N\",\"\",IF(OR('Enrollment Form'!$B984<>\"Subscriber\",'Enrollment Form'!$C984=\"ROC\"),\"-\",IF(AND('Enrollment Form'!$B984=\"Subscriber\",'Enrollment Form'!$C984=\"Enroll\",'Enrollment Form'!$AP984<>\"\"),\"Y\",\"N\")))","v":""},{"$f":"IF($B977=\"N\",\"\",IF($Q977=\"-\",\"-\",IF(AND($Q977=\"Y\",'Enrollment Form'!$AP984=\"No\"),\"-\",IF(AND($Q977=\"Y\",'Enrollment Form'!$AP984=\"Yes\",'Enrollment Form'!$AQ984<>\"\"),\"Y\",\"N\"))))","v":""},{"$f":"IF($B977=\"N\",\"\",IF(OR('Enrollment Form'!$B984<>\"Subscriber\",'Enrollment Form'!$C984=\"ROC\"),\"-\",IF(AND('Enrollment Form'!$B984=\"Subscriber\",'Enrollment Form'!$C984=\"Enroll\",'Enrollment Form'!$CO984<>\"\"),\"Y\",\"N\")))","v":""},{"$f":"IF($B977=\"N\",\"\",IF($S977=\"-\",\"-\",IF(AND($S977=\"Y\",'Enrollment Form'!$CO984=\"No\"),\"-\",IF(AND($S977=\"Y\",'Enrollment Form'!$CO984=\"Yes\",'Enrollment Form'!$CP984<>\"\"),\"Y\",\"N\"))))","v":""},{"$f":"IF(OR('Enrollment Form'!$AV984=\"Yes\",'Enrollment Form'!$AV984=\"\"),\"-\",IF(AND('Enrollment Form'!$AV984=\"No\",ISERROR(FIND(\"HMO\",VLOOKUP('Enrollment Form'!G984,'Enrollment Form'!H$11:J$1000,3,FALSE),1))=FALSE,COUNTA('Enrollment Form'!$AW984:$AZ984)=4),\"Y\",\"N\"))","v":"-"},{"$f":"IF($B977=\"N\",\"\",IF('Enrollment Form'!$B984=\"Subscriber\",\"-\",IF(COUNTA('Enrollment Form'!$BE984,'Enrollment Form'!$BG984)=2,\"Y\",\"N\")))","v":""},{"$f":"IF($B977=\"N\",\"\",IF(OR('Enrollment Form'!$AU984=\"\",'Enrollment Form'!$AU984=\"No\"),\"-\",IF(AND('Enrollment Form'!$AU984=\"Yes\",COUNTA('Enrollment Form'!$CK984)=1),\"Y\",\"N\")))","v":""},{"$f":"IF(OR('Enrollment Form'!$CK984=\"\",'Enrollment Form'!$CK984=\"No\"),\"-\",IF(COUNTA('Enrollment Form'!$CM984:$CN984)=2,\"Y\",\"N\"))","v":"-"},{"$f":"IF($B977=\"N\",\"\",IF(COUNTIF('Enrollment Form'!$CZ984:$DO984,\"Other\")=COUNTA('Enrollment Form'!$DF984,'Enrollment Form'!$DA984,'Enrollment Form'!$DK984,'Enrollment Form'!$DP984),\"Y\",\"N\"))","v":""},{"$f":"IF($B977=\"N\",\"\",IF(OR('Enrollment Form'!B984<>\"Subscriber\",'Enrollment Form'!C984=\"ROC\",COUNTIF('Enrollment Form'!AS984:AT984,\"Yes\")>=1),\"-\",IF(AND('Enrollment Form'!C984=\"Enroll\",COUNTIF('Enrollment Form'!AS984:AT984,\"No\")=2,'Enrollment Form'!AU984=\"\"),\"N\",\"Y\")))","v":""},{"$f":"IF(OR(B977=\"N\",'Enrollment Form'!B984<>\"Subscriber\",'Enrollment Form'!C984=\"ROC\",'Enrollment Form'!O984<>\"Multiple of Salary\"),\"-\",IF(COUNTA('Enrollment Form'!T984:U984)<2,\"N\",\"Y\"))","v":"-"},{"$f":"IF(B977=\"N\",\"\",IF(OR('Enrollment Form'!C984=\"ROC\",'Enrollment Form'!B984<>\"Subscriber\",'Enrollment Form'!O984=\"Waive\",'Enrollment Form'!O984=\"\"),\"-\",IF('Enrollment Form'!P984=\"\",\"N\",\"Y\")))","v":""},{"$f":"IF($B977=\"N\",\"\",IF(AND('Enrollment Form'!$C984=\"ROC\",'Enrollment Form'!$DS984<>\"\"),\"Y\",IF(AND('Enrollment Form'!$C984=\"ROC\",'Enrollment Form'!$DS984=\"\"),\"N\",IF(AND('Enrollment Form'!$C984=\"Enroll\",'Enrollment Form'!$B984=\"Subscriber\",'Enrollment Form'!$CQ984=\"No\",'Enrollment Form'!$DS984=\"\"),\"N\",IF(AND('Enrollment Form'!$C984=\"Enroll\",'Enrollment Form'!$B984=\"Subscriber\",'Enrollment Form'!$CQ984=\"Yes\"),\"-\",\"Y\")))))","v":""},{"$f":"IF($B977=\"N\",\"\",IF(AND('Enrollment Form'!$C984=\"ROC\",'Enrollment Form'!$DT984<>\"\"),\"Y\",IF(AND('Enrollment Form'!$C984=\"ROC\",'Enrollment Form'!$DT984=\"\"),\"N\",IF(AND('Enrollment Form'!$C984=\"Enroll\",'Enrollment Form'!$B984=\"Subscriber\",'Enrollment Form'!$CQ984=\"No\",'Enrollment Form'!$DT984=\"\"),\"N\",IF(AND('Enrollment Form'!$C984=\"Enroll\",'Enrollment Form'!$B984=\"Subscriber\",'Enrollment Form'!$CQ984=\"Yes\"),\"-\",\"Y\")))))","v":""},{"$f":"IF('Enrollment Form'!AH984=\"\",\"\",IF(ISERROR(SEARCH(\".\",'Enrollment Form'!AH984,SEARCH(\"@\",'Enrollment Form'!AH984))),\"N\",\"Y\"))","v":""},{"$f":"IF(OR($B977=\"N\",'Enrollment Form'!$G984=\"\"),\"\",IF('Enrollment Form'!$B984<>\"Subscriber\",\"-\",IF(COUNTIF('Enrollment Form'!$AS984:$AT984,\"Yes\")=2,\"N\",\"Y\")))","v":""},{"$f":"IF(OR('Enrollment Form'!$CC984=\"\",'Enrollment Form'!$CC984=\"No\"),\"-\",IF(AND('Enrollment Form'!$CC984=\"Yes\",'Enrollment Form'!$CD984=\"\"),\"N\",\"Y\"))","v":"-"},{"$f":"IF(OR('Enrollment Form'!$CE984=\"\",'Enrollment Form'!$CE984=\"No\"),\"-\",IF(AND('Enrollment Form'!$CE984=\"Yes\",'Enrollment Form'!$CF984=\"\"),\"N\",\"Y\"))","v":"-"},{"$f":"IF(OR('Enrollment Form'!$CG984=\"\",'Enrollment Form'!$CG984=\"No\"),\"-\",IF(AND('Enrollment Form'!$CG984=\"Yes\",'Enrollment Form'!$CH984=\"\"),\"N\",\"Y\"))","v":"-"},{"$f":"IF(OR('Enrollment Form'!$CG984=\"\",'Enrollment Form'!$CG984=\"No\"),\"-\",IF(AND('Enrollment Form'!$CG984=\"Yes\",'Enrollment Form'!$CI984=\"\"),\"N\",\"Y\"))","v":"-"},{"$f":"IF('Enrollment Form'!B984<>\"Subscriber\",\"-\",IF(AND('Enrollment Form'!B984=\"Subscriber\",'Enrollment Form'!C984=\"Enroll\",'Enrollment Form'!AA984=\"\"),\"N\",\"Y\"))","v":"-"},{"$f":"IF(OR('Enrollment Form'!B984=\"Subscriber\",'Enrollment Form'!B984=\"\"),\"-\",IF('Enrollment Form'!BI984=\"\",\"N\",\"Y\"))","v":"-"},{"$f":"IF('Enrollment Form'!B984<>\"Subscriber\",\"-\",IF(AND('Enrollment Form'!B984=\"Subscriber\",'Enrollment Form'!G984=\"\"),\"N\",\"Y\"))","v":"-"},{"$f":"IF('Enrollment Form'!A984=\"\",\"\",IF('Enrollment Form'!B984=\"Subscriber\",\"-\",IF(AND('Enrollment Form'!B984<>\"Subscriber\",'Enrollment Form'!G984='Enrollment Form'!H984),\"N\",\"Y\")))","v":""},0]
[985,{"$f":"IF('Enrollment Form'!$A985<>\"\",\"Y\",\"N\")","v":"N"},{"$f":"IF(AND('Enrollment Form'!$B985=\"\",'Enrollment Form'!$C985<>\"\"),\"N\",IF($B978=\"N\",\"\",\"Y\"))","v":""},{"$f":"IF(OR($B978=\"N\",'Enrollment Form'!G985=\"\"),\"\",IF('Enrollment Form'!$B985<>\"Subscriber\",\"\",IF('Enrollment Form'!$G985='Enrollment Form'!$H985,\"Y\",\"N\")))","v":""},{"$f":"IF($B978=\"N\",\"\",IF(AND(COUNTIFS('Enrollment Form'!$H$11:$H$1000,'Enrollment Form'!$H985,'Enrollment Form'!$B$11:$B$1000,'Enrollment Form'!$B985)>1,'Enrollment Form'!$H985<>\"\"),\"N\",\"Y\"))","v":""},{"$f":"IF($B978=\"N\",\"\",IF(LEN('Enrollment Form'!$Y985)=0,\"\",IF(LEN('Enrollment Form'!$Y985)<>5,\"N\",\"Y\")))","v":""},{"$f":"IF($B978=\"N\",\"\",IF(LEN('Enrollment Form'!$AD985=0),\"\",IF(LEN('Enrollment Form'!$AD985)<>5,\"N\",\"Y\")))","v":""},{"$f":"IF($B978=\"N\",\"\",IF(LEN('Enrollment Form'!$BL985=0),\"\",IF(LEN('Enrollment Form'!$BL985)<>5,\"N\",\"Y\")))","v":""},{"$f":"IF($B978=\"N\",\"\",IF(LEN('Enrollment Form'!$AE985)=0,\"\",IF(LEN('Enrollment Form'!$AE985)<>10,\"N\",\"Y\")))","v":""},{"$f":"IF($B978=\"N\",\"\",IF(LEN('Enrollment Form'!$AF985)=0,\"\",IF(LEN('Enrollment Form'!$AF985)<>10,\"N\",\"Y\")))","v":""},{"$f":"IF('Enrollment Form'!$O985<>\"Graded\",\"-\",IF(AND('Enrollment Form'!$O985=\"Graded\",'Enrollment Form'!$AO985<>\"\"),\"Y\",\"N\"))","v":"-"},{"$f":"IF($B978=\"N\",\"\",IF(OR('Enrollment Form'!$B985<>\"Subscriber\",'Enrollment Form'!$C985=\"ROC\"),\"-\",IF(AND('Enrollment Form'!$B985=\"Subscriber\",'Enrollment Form'!$C985=\"Enroll\",'Enrollment Form'!$AJ985<>\"\"),\"Y\",\"N\")))","v":""},{"$f":"IF($B978=\"N\",\"\",IF(OR('Enrollment Form'!$B985<>\"Subscriber\",'Enrollment Form'!$C985=\"ROC\"),\"-\",IF(AND('Enrollment Form'!$B985=\"Subscriber\",'Enrollment Form'!$C985=\"Enroll\",'Enrollment Form'!$AK985<>\"\"),\"Y\",\"N\")))","v":""},{"$f":"IF($B978=\"N\",\"\",IF(OR('Enrollment Form'!$B985<>\"Subscriber\",'Enrollment Form'!$C985=\"ROC\"),\"-\",IF(AND('Enrollment Form'!$B985=\"Subscriber\",'Enrollment Form'!$C985=\"Enroll\",'Enrollment Form'!$AL985<>\"\"),\"Y\",\"N\")))","v":""},{"$f":"IF($B978=\"N\",\"\",IF(OR('Enrollment Form'!$B985<>\"Subscriber\",'Enrollment Form'!$C985=\"ROC\"),\"-\",IF(AND('Enrollment Form'!$B985=\"Subscriber\",'Enrollment Form'!$C985=\"Enroll\",'Enrollment Form'!$AM985<>\"\"),\"Y\",\"N\")))","v":""},{"$f":"IF($B978=\"N\",\"\",IF(OR('Enrollment Form'!$B985<>\"Subscriber\",'Enrollment Form'!$C985=\"ROC\"),\"-\",IF(AND('Enrollment Form'!$B985=\"Subscriber\",'Enrollment Form'!$C985=\"Enroll\",'Enrollment Form'!$AN985<>\"\"),\"Y\",\"N\")))","v":""},{"$f":"IF($B978=\"N\",\"\",IF(OR('Enrollment Form'!$B985<>\"Subscriber\",'Enrollment Form'!$C985=\"ROC\"),\"-\",IF(AND('Enrollment Form'!$B985=\"Subscriber\",'Enrollment Form'!$C985=\"Enroll\",'Enrollment Form'!$AP985<>\"\"),\"Y\",\"N\")))","v":""},{"$f":"IF($B978=\"N\",\"\",IF($Q978=\"-\",\"-\",IF(AND($Q978=\"Y\",'Enrollment Form'!$AP985=\"No\"),\"-\",IF(AND($Q978=\"Y\",'Enrollment Form'!$AP985=\"Yes\",'Enrollment Form'!$AQ985<>\"\"),\"Y\",\"N\"))))","v":""},{"$f":"IF($B978=\"N\",\"\",IF(OR('Enrollment Form'!$B985<>\"Subscriber\",'Enrollment Form'!$C985=\"ROC\"),\"-\",IF(AND('Enrollment Form'!$B985=\"Subscriber\",'Enrollment Form'!$C985=\"Enroll\",'Enrollment Form'!$CO985<>\"\"),\"Y\",\"N\")))","v":""},{"$f":"IF($B978=\"N\",\"\",IF($S978=\"-\",\"-\",IF(AND($S978=\"Y\",'Enrollment Form'!$CO985=\"No\"),\"-\",IF(AND($S978=\"Y\",'Enrollment Form'!$CO985=\"Yes\",'Enrollment Form'!$CP985<>\"\"),\"Y\",\"N\"))))","v":""},{"$f":"IF(OR('Enrollment Form'!$AV985=\"Yes\",'Enrollment Form'!$AV985=\"\"),\"-\",IF(AND('Enrollment Form'!$AV985=\"No\",ISERROR(FIND(\"HMO\",VLOOKUP('Enrollment Form'!G985,'Enrollment Form'!H$11:J$1000,3,FALSE),1))=FALSE,COUNTA('Enrollment Form'!$AW985:$AZ985)=4),\"Y\",\"N\"))","v":"-"},{"$f":"IF($B978=\"N\",\"\",IF('Enrollment Form'!$B985=\"Subscriber\",\"-\",IF(COUNTA('Enrollment Form'!$BE985,'Enrollment Form'!$BG985)=2,\"Y\",\"N\")))","v":""},{"$f":"IF($B978=\"N\",\"\",IF(OR('Enrollment Form'!$AU985=\"\",'Enrollment Form'!$AU985=\"No\"),\"-\",IF(AND('Enrollment Form'!$AU985=\"Yes\",COUNTA('Enrollment Form'!$CK985)=1),\"Y\",\"N\")))","v":""},{"$f":"IF(OR('Enrollment Form'!$CK985=\"\",'Enrollment Form'!$CK985=\"No\"),\"-\",IF(COUNTA('Enrollment Form'!$CM985:$CN985)=2,\"Y\",\"N\"))","v":"-"},{"$f":"IF($B978=\"N\",\"\",IF(COUNTIF('Enrollment Form'!$CZ985:$DO985,\"Other\")=COUNTA('Enrollment Form'!$DF985,'Enrollment Form'!$DA985,'Enrollment Form'!$DK985,'Enrollment Form'!$DP985),\"Y\",\"N\"))","v":""},{"$f":"IF($B978=\"N\",\"\",IF(OR('Enrollment Form'!B985<>\"Subscriber\",'Enrollment Form'!C985=\"ROC\",COUNTIF('Enrollment Form'!AS985:AT985,\"Yes\")>=1),\"-\",IF(AND('Enrollment Form'!C985=\"Enroll\",COUNTIF('Enrollment Form'!AS985:AT985,\"No\")=2,'Enrollment Form'!AU985=\"\"),\"N\",\"Y\")))","v":""},{"$f":"IF(OR(B978=\"N\",'Enrollment Form'!B985<>\"Subscriber\",'Enrollment Form'!C985=\"ROC\",'Enrollment Form'!O985<>\"Multiple of Salary\"),\"-\",IF(COUNTA('Enrollment Form'!T985:U985)<2,\"N\",\"Y\"))","v":"-"},{"$f":"IF(B978=\"N\",\"\",IF(OR('Enrollment Form'!C985=\"ROC\",'Enrollment Form'!B985<>\"Subscriber\",'Enrollment Form'!O985=\"Waive\",'Enrollment Form'!O985=\"\"),\"-\",IF('Enrollment Form'!P985=\"\",\"N\",\"Y\")))","v":""},{"$f":"IF($B978=\"N\",\"\",IF(AND('Enrollment Form'!$C985=\"ROC\",'Enrollment Form'!$DS985<>\"\"),\"Y\",IF(AND('Enrollment Form'!$C985=\"ROC\",'Enrollment Form'!$DS985=\"\"),\"N\",IF(AND('Enrollment Form'!$C985=\"Enroll\",'Enrollment Form'!$B985=\"Subscriber\",'Enrollment Form'!$CQ985=\"No\",'Enrollment Form'!$DS985=\"\"),\"N\",IF(AND('Enrollment Form'!$C985=\"Enroll\",'Enrollment Form'!$B985=\"Subscriber\",'Enrollment Form'!$CQ985=\"Yes\"),\"-\",\"Y\")))))","v":""},{"$f":"IF($B978=\"N\",\"\",IF(AND('Enrollment Form'!$C985=\"ROC\",'Enrollment Form'!$DT985<>\"\"),\"Y\",IF(AND('Enrollment Form'!$C985=\"ROC\",'Enrollment Form'!$DT985=\"\"),\"N\",IF(AND('Enrollment Form'!$C985=\"Enroll\",'Enrollment Form'!$B985=\"Subscriber\",'Enrollment Form'!$CQ985=\"No\",'Enrollment Form'!$DT985=\"\"),\"N\",IF(AND('Enrollment Form'!$C985=\"Enroll\",'Enrollment Form'!$B985=\"Subscriber\",'Enrollment Form'!$CQ985=\"Yes\"),\"-\",\"Y\")))))","v":""},{"$f":"IF('Enrollment Form'!AH985=\"\",\"\",IF(ISERROR(SEARCH(\".\",'Enrollment Form'!AH985,SEARCH(\"@\",'Enrollment Form'!AH985))),\"N\",\"Y\"))","v":""},{"$f":"IF(OR($B978=\"N\",'Enrollment Form'!$G985=\"\"),\"\",IF('Enrollment Form'!$B985<>\"Subscriber\",\"-\",IF(COUNTIF('Enrollment Form'!$AS985:$AT985,\"Yes\")=2,\"N\",\"Y\")))","v":""},{"$f":"IF(OR('Enrollment Form'!$CC985=\"\",'Enrollment Form'!$CC985=\"No\"),\"-\",IF(AND('Enrollment Form'!$CC985=\"Yes\",'Enrollment Form'!$CD985=\"\"),\"N\",\"Y\"))","v":"-"},{"$f":"IF(OR('Enrollment Form'!$CE985=\"\",'Enrollment Form'!$CE985=\"No\"),\"-\",IF(AND('Enrollment Form'!$CE985=\"Yes\",'Enrollment Form'!$CF985=\"\"),\"N\",\"Y\"))","v":"-"},{"$f":"IF(OR('Enrollment Form'!$CG985=\"\",'Enrollment Form'!$CG985=\"No\"),\"-\",IF(AND('Enrollment Form'!$CG985=\"Yes\",'Enrollment Form'!$CH985=\"\"),\"N\",\"Y\"))","v":"-"},{"$f":"IF(OR('Enrollment Form'!$CG985=\"\",'Enrollment Form'!$CG985=\"No\"),\"-\",IF(AND('Enrollment Form'!$CG985=\"Yes\",'Enrollment Form'!$CI985=\"\"),\"N\",\"Y\"))","v":"-"},{"$f":"IF('Enrollment Form'!B985<>\"Subscriber\",\"-\",IF(AND('Enrollment Form'!B985=\"Subscriber\",'Enrollment Form'!C985=\"Enroll\",'Enrollment Form'!AA985=\"\"),\"N\",\"Y\"))","v":"-"},{"$f":"IF(OR('Enrollment Form'!B985=\"Subscriber\",'Enrollment Form'!B985=\"\"),\"-\",IF('Enrollment Form'!BI985=\"\",\"N\",\"Y\"))","v":"-"},{"$f":"IF('Enrollment Form'!B985<>\"Subscriber\",\"-\",IF(AND('Enrollment Form'!B985=\"Subscriber\",'Enrollment Form'!G985=\"\"),\"N\",\"Y\"))","v":"-"},{"$f":"IF('Enrollment Form'!A985=\"\",\"\",IF('Enrollment Form'!B985=\"Subscriber\",\"-\",IF(AND('Enrollment Form'!B985<>\"Subscriber\",'Enrollment Form'!G985='Enrollment Form'!H985),\"N\",\"Y\")))","v":""},0]
[986,{"$f":"IF('Enrollment Form'!$A986<>\"\",\"Y\",\"N\")","v":"N"},{"$f":"IF(AND('Enrollment Form'!$B986=\"\",'Enrollment Form'!$C986<>\"\"),\"N\",IF($B979=\"N\",\"\",\"Y\"))","v":""},{"$f":"IF(OR($B979=\"N\",'Enrollment Form'!G986=\"\"),\"\",IF('Enrollment Form'!$B986<>\"Subscriber\",\"\",IF('Enrollment Form'!$G986='Enrollment Form'!$H986,\"Y\",\"N\")))","v":""},{"$f":"IF($B979=\"N\",\"\",IF(AND(COUNTIFS('Enrollment Form'!$H$11:$H$1000,'Enrollment Form'!$H986,'Enrollment Form'!$B$11:$B$1000,'Enrollment Form'!$B986)>1,'Enrollment Form'!$H986<>\"\"),\"N\",\"Y\"))","v":""},{"$f":"IF($B979=\"N\",\"\",IF(LEN('Enrollment Form'!$Y986)=0,\"\",IF(LEN('Enrollment Form'!$Y986)<>5,\"N\",\"Y\")))","v":""},{"$f":"IF($B979=\"N\",\"\",IF(LEN('Enrollment Form'!$AD986=0),\"\",IF(LEN('Enrollment Form'!$AD986)<>5,\"N\",\"Y\")))","v":""},{"$f":"IF($B979=\"N\",\"\",IF(LEN('Enrollment Form'!$BL986=0),\"\",IF(LEN('Enrollment Form'!$BL986)<>5,\"N\",\"Y\")))","v":""},{"$f":"IF($B979=\"N\",\"\",IF(LEN('Enrollment Form'!$AE986)=0,\"\",IF(LEN('Enrollment Form'!$AE986)<>10,\"N\",\"Y\")))","v":""},{"$f":"IF($B979=\"N\",\"\",IF(LEN('Enrollment Form'!$AF986)=0,\"\",IF(LEN('Enrollment Form'!$AF986)<>10,\"N\",\"Y\")))","v":""},{"$f":"IF('Enrollment Form'!$O986<>\"Graded\",\"-\",IF(AND('Enrollment Form'!$O986=\"Graded\",'Enrollment Form'!$AO986<>\"\"),\"Y\",\"N\"))","v":"-"},{"$f":"IF($B979=\"N\",\"\",IF(OR('Enrollment Form'!$B986<>\"Subscriber\",'Enrollment Form'!$C986=\"ROC\"),\"-\",IF(AND('Enrollment Form'!$B986=\"Subscriber\",'Enrollment Form'!$C986=\"Enroll\",'Enrollment Form'!$AJ986<>\"\"),\"Y\",\"N\")))","v":""},{"$f":"IF($B979=\"N\",\"\",IF(OR('Enrollment Form'!$B986<>\"Subscriber\",'Enrollment Form'!$C986=\"ROC\"),\"-\",IF(AND('Enrollment Form'!$B986=\"Subscriber\",'Enrollment Form'!$C986=\"Enroll\",'Enrollment Form'!$AK986<>\"\"),\"Y\",\"N\")))","v":""},{"$f":"IF($B979=\"N\",\"\",IF(OR('Enrollment Form'!$B986<>\"Subscriber\",'Enrollment Form'!$C986=\"ROC\"),\"-\",IF(AND('Enrollment Form'!$B986=\"Subscriber\",'Enrollment Form'!$C986=\"Enroll\",'Enrollment Form'!$AL986<>\"\"),\"Y\",\"N\")))","v":""},{"$f":"IF($B979=\"N\",\"\",IF(OR('Enrollment Form'!$B986<>\"Subscriber\",'Enrollment Form'!$C986=\"ROC\"),\"-\",IF(AND('Enrollment Form'!$B986=\"Subscriber\",'Enrollment Form'!$C986=\"Enroll\",'Enrollment Form'!$AM986<>\"\"),\"Y\",\"N\")))","v":""},{"$f":"IF($B979=\"N\",\"\",IF(OR('Enrollment Form'!$B986<>\"Subscriber\",'Enrollment Form'!$C986=\"ROC\"),\"-\",IF(AND('Enrollment Form'!$B986=\"Subscriber\",'Enrollment Form'!$C986=\"Enroll\",'Enrollment Form'!$AN986<>\"\"),\"Y\",\"N\")))","v":""},{"$f":"IF($B979=\"N\",\"\",IF(OR('Enrollment Form'!$B986<>\"Subscriber\",'Enrollment Form'!$C986=\"ROC\"),\"-\",IF(AND('Enrollment Form'!$B986=\"Subscriber\",'Enrollment Form'!$C986=\"Enroll\",'Enrollment Form'!$AP986<>\"\"),\"Y\",\"N\")))","v":""},{"$f":"IF($B979=\"N\",\"\",IF($Q979=\"-\",\"-\",IF(AND($Q979=\"Y\",'Enrollment Form'!$AP986=\"No\"),\"-\",IF(AND($Q979=\"Y\",'Enrollment Form'!$AP986=\"Yes\",'Enrollment Form'!$AQ986<>\"\"),\"Y\",\"N\"))))","v":""},{"$f":"IF($B979=\"N\",\"\",IF(OR('Enrollment Form'!$B986<>\"Subscriber\",'Enrollment Form'!$C986=\"ROC\"),\"-\",IF(AND('Enrollment Form'!$B986=\"Subscriber\",'Enrollment Form'!$C986=\"Enroll\",'Enrollment Form'!$CO986<>\"\"),\"Y\",\"N\")))","v":""},{"$f":"IF($B979=\"N\",\"\",IF($S979=\"-\",\"-\",IF(AND($S979=\"Y\",'Enrollment Form'!$CO986=\"No\"),\"-\",IF(AND($S979=\"Y\",'Enrollment Form'!$CO986=\"Yes\",'Enrollment Form'!$CP986<>\"\"),\"Y\",\"N\"))))","v":""},{"$f":"IF(OR('Enrollment Form'!$AV986=\"Yes\",'Enrollment Form'!$AV986=\"\"),\"-\",IF(AND('Enrollment Form'!$AV986=\"No\",ISERROR(FIND(\"HMO\",VLOOKUP('Enrollment Form'!G986,'Enrollment Form'!H$11:J$1000,3,FALSE),1))=FALSE,COUNTA('Enrollment Form'!$AW986:$AZ986)=4),\"Y\",\"N\"))","v":"-"},{"$f":"IF($B979=\"N\",\"\",IF('Enrollment Form'!$B986=\"Subscriber\",\"-\",IF(COUNTA('Enrollment Form'!$BE986,'Enrollment Form'!$BG986)=2,\"Y\",\"N\")))","v":""},{"$f":"IF($B979=\"N\",\"\",IF(OR('Enrollment Form'!$AU986=\"\",'Enrollment Form'!$AU986=\"No\"),\"-\",IF(AND('Enrollment Form'!$AU986=\"Yes\",COUNTA('Enrollment Form'!$CK986)=1),\"Y\",\"N\")))","v":""},{"$f":"IF(OR('Enrollment Form'!$CK986=\"\",'Enrollment Form'!$CK986=\"No\"),\"-\",IF(COUNTA('Enrollment Form'!$CM986:$CN986)=2,\"Y\",\"N\"))","v":"-"},{"$f":"IF($B979=\"N\",\"\",IF(COUNTIF('Enrollment Form'!$CZ986:$DO986,\"Other\")=COUNTA('Enrollment Form'!$DF986,'Enrollment Form'!$DA986,'Enrollment Form'!$DK986,'Enrollment Form'!$DP986),\"Y\",\"N\"))","v":""},{"$f":"IF($B979=\"N\",\"\",IF(OR('Enrollment Form'!B986<>\"Subscriber\",'Enrollment Form'!C986=\"ROC\",COUNTIF('Enrollment Form'!AS986:AT986,\"Yes\")>=1),\"-\",IF(AND('Enrollment Form'!C986=\"Enroll\",COUNTIF('Enrollment Form'!AS986:AT986,\"No\")=2,'Enrollment Form'!AU986=\"\"),\"N\",\"Y\")))","v":""},{"$f":"IF(OR(B979=\"N\",'Enrollment Form'!B986<>\"Subscriber\",'Enrollment Form'!C986=\"ROC\",'Enrollment Form'!O986<>\"Multiple of Salary\"),\"-\",IF(COUNTA('Enrollment Form'!T986:U986)<2,\"N\",\"Y\"))","v":"-"},{"$f":"IF(B979=\"N\",\"\",IF(OR('Enrollment Form'!C986=\"ROC\",'Enrollment Form'!B986<>\"Subscriber\",'Enrollment Form'!O986=\"Waive\",'Enrollment Form'!O986=\"\"),\"-\",IF('Enrollment Form'!P986=\"\",\"N\",\"Y\")))","v":""},{"$f":"IF($B979=\"N\",\"\",IF(AND('Enrollment Form'!$C986=\"ROC\",'Enrollment Form'!$DS986<>\"\"),\"Y\",IF(AND('Enrollment Form'!$C986=\"ROC\",'Enrollment Form'!$DS986=\"\"),\"N\",IF(AND('Enrollment Form'!$C986=\"Enroll\",'Enrollment Form'!$B986=\"Subscriber\",'Enrollment Form'!$CQ986=\"No\",'Enrollment Form'!$DS986=\"\"),\"N\",IF(AND('Enrollment Form'!$C986=\"Enroll\",'Enrollment Form'!$B986=\"Subscriber\",'Enrollment Form'!$CQ986=\"Yes\"),\"-\",\"Y\")))))","v":""},{"$f":"IF($B979=\"N\",\"\",IF(AND('Enrollment Form'!$C986=\"ROC\",'Enrollment Form'!$DT986<>\"\"),\"Y\",IF(AND('Enrollment Form'!$C986=\"ROC\",'Enrollment Form'!$DT986=\"\"),\"N\",IF(AND('Enrollment Form'!$C986=\"Enroll\",'Enrollment Form'!$B986=\"Subscriber\",'Enrollment Form'!$CQ986=\"No\",'Enrollment Form'!$DT986=\"\"),\"N\",IF(AND('Enrollment Form'!$C986=\"Enroll\",'Enrollment Form'!$B986=\"Subscriber\",'Enrollment Form'!$CQ986=\"Yes\"),\"-\",\"Y\")))))","v":""},{"$f":"IF('Enrollment Form'!AH986=\"\",\"\",IF(ISERROR(SEARCH(\".\",'Enrollment Form'!AH986,SEARCH(\"@\",'Enrollment Form'!AH986))),\"N\",\"Y\"))","v":""},{"$f":"IF(OR($B979=\"N\",'Enrollment Form'!$G986=\"\"),\"\",IF('Enrollment Form'!$B986<>\"Subscriber\",\"-\",IF(COUNTIF('Enrollment Form'!$AS986:$AT986,\"Yes\")=2,\"N\",\"Y\")))","v":""},{"$f":"IF(OR('Enrollment Form'!$CC986=\"\",'Enrollment Form'!$CC986=\"No\"),\"-\",IF(AND('Enrollment Form'!$CC986=\"Yes\",'Enrollment Form'!$CD986=\"\"),\"N\",\"Y\"))","v":"-"},{"$f":"IF(OR('Enrollment Form'!$CE986=\"\",'Enrollment Form'!$CE986=\"No\"),\"-\",IF(AND('Enrollment Form'!$CE986=\"Yes\",'Enrollment Form'!$CF986=\"\"),\"N\",\"Y\"))","v":"-"},{"$f":"IF(OR('Enrollment Form'!$CG986=\"\",'Enrollment Form'!$CG986=\"No\"),\"-\",IF(AND('Enrollment Form'!$CG986=\"Yes\",'Enrollment Form'!$CH986=\"\"),\"N\",\"Y\"))","v":"-"},{"$f":"IF(OR('Enrollment Form'!$CG986=\"\",'Enrollment Form'!$CG986=\"No\"),\"-\",IF(AND('Enrollment Form'!$CG986=\"Yes\",'Enrollment Form'!$CI986=\"\"),\"N\",\"Y\"))","v":"-"},{"$f":"IF('Enrollment Form'!B986<>\"Subscriber\",\"-\",IF(AND('Enrollment Form'!B986=\"Subscriber\",'Enrollment Form'!C986=\"Enroll\",'Enrollment Form'!AA986=\"\"),\"N\",\"Y\"))","v":"-"},{"$f":"IF(OR('Enrollment Form'!B986=\"Subscriber\",'Enrollment Form'!B986=\"\"),\"-\",IF('Enrollment Form'!BI986=\"\",\"N\",\"Y\"))","v":"-"},{"$f":"IF('Enrollment Form'!B986<>\"Subscriber\",\"-\",IF(AND('Enrollment Form'!B986=\"Subscriber\",'Enrollment Form'!G986=\"\"),\"N\",\"Y\"))","v":"-"},{"$f":"IF('Enrollment Form'!A986=\"\",\"\",IF('Enrollment Form'!B986=\"Subscriber\",\"-\",IF(AND('Enrollment Form'!B986<>\"Subscriber\",'Enrollment Form'!G986='Enrollment Form'!H986),\"N\",\"Y\")))","v":""},0]
[987,{"$f":"IF('Enrollment Form'!$A987<>\"\",\"Y\",\"N\")","v":"N"},{"$f":"IF(AND('Enrollment Form'!$B987=\"\",'Enrollment Form'!$C987<>\"\"),\"N\",IF($B980=\"N\",\"\",\"Y\"))","v":""},{"$f":"IF(OR($B980=\"N\",'Enrollment Form'!G987=\"\"),\"\",IF('Enrollment Form'!$B987<>\"Subscriber\",\"\",IF('Enrollment Form'!$G987='Enrollment Form'!$H987,\"Y\",\"N\")))","v":""},{"$f":"IF($B980=\"N\",\"\",IF(AND(COUNTIFS('Enrollment Form'!$H$11:$H$1000,'Enrollment Form'!$H987,'Enrollment Form'!$B$11:$B$1000,'Enrollment Form'!$B987)>1,'Enrollment Form'!$H987<>\"\"),\"N\",\"Y\"))","v":""},{"$f":"IF($B980=\"N\",\"\",IF(LEN('Enrollment Form'!$Y987)=0,\"\",IF(LEN('Enrollment Form'!$Y987)<>5,\"N\",\"Y\")))","v":""},{"$f":"IF($B980=\"N\",\"\",IF(LEN('Enrollment Form'!$AD987=0),\"\",IF(LEN('Enrollment Form'!$AD987)<>5,\"N\",\"Y\")))","v":""},{"$f":"IF($B980=\"N\",\"\",IF(LEN('Enrollment Form'!$BL987=0),\"\",IF(LEN('Enrollment Form'!$BL987)<>5,\"N\",\"Y\")))","v":""},{"$f":"IF($B980=\"N\",\"\",IF(LEN('Enrollment Form'!$AE987)=0,\"\",IF(LEN('Enrollment Form'!$AE987)<>10,\"N\",\"Y\")))","v":""},{"$f":"IF($B980=\"N\",\"\",IF(LEN('Enrollment Form'!$AF987)=0,\"\",IF(LEN('Enrollment Form'!$AF987)<>10,\"N\",\"Y\")))","v":""},{"$f":"IF('Enrollment Form'!$O987<>\"Graded\",\"-\",IF(AND('Enrollment Form'!$O987=\"Graded\",'Enrollment Form'!$AO987<>\"\"),\"Y\",\"N\"))","v":"-"},{"$f":"IF($B980=\"N\",\"\",IF(OR('Enrollment Form'!$B987<>\"Subscriber\",'Enrollment Form'!$C987=\"ROC\"),\"-\",IF(AND('Enrollment Form'!$B987=\"Subscriber\",'Enrollment Form'!$C987=\"Enroll\",'Enrollment Form'!$AJ987<>\"\"),\"Y\",\"N\")))","v":""},{"$f":"IF($B980=\"N\",\"\",IF(OR('Enrollment Form'!$B987<>\"Subscriber\",'Enrollment Form'!$C987=\"ROC\"),\"-\",IF(AND('Enrollment Form'!$B987=\"Subscriber\",'Enrollment Form'!$C987=\"Enroll\",'Enrollment Form'!$AK987<>\"\"),\"Y\",\"N\")))","v":""},{"$f":"IF($B980=\"N\",\"\",IF(OR('Enrollment Form'!$B987<>\"Subscriber\",'Enrollment Form'!$C987=\"ROC\"),\"-\",IF(AND('Enrollment Form'!$B987=\"Subscriber\",'Enrollment Form'!$C987=\"Enroll\",'Enrollment Form'!$AL987<>\"\"),\"Y\",\"N\")))","v":""},{"$f":"IF($B980=\"N\",\"\",IF(OR('Enrollment Form'!$B987<>\"Subscriber\",'Enrollment Form'!$C987=\"ROC\"),\"-\",IF(AND('Enrollment Form'!$B987=\"Subscriber\",'Enrollment Form'!$C987=\"Enroll\",'Enrollment Form'!$AM987<>\"\"),\"Y\",\"N\")))","v":""},{"$f":"IF($B980=\"N\",\"\",IF(OR('Enrollment Form'!$B987<>\"Subscriber\",'Enrollment Form'!$C987=\"ROC\"),\"-\",IF(AND('Enrollment Form'!$B987=\"Subscriber\",'Enrollment Form'!$C987=\"Enroll\",'Enrollment Form'!$AN987<>\"\"),\"Y\",\"N\")))","v":""},{"$f":"IF($B980=\"N\",\"\",IF(OR('Enrollment Form'!$B987<>\"Subscriber\",'Enrollment Form'!$C987=\"ROC\"),\"-\",IF(AND('Enrollment Form'!$B987=\"Subscriber\",'Enrollment Form'!$C987=\"Enroll\",'Enrollment Form'!$AP987<>\"\"),\"Y\",\"N\")))","v":""},{"$f":"IF($B980=\"N\",\"\",IF($Q980=\"-\",\"-\",IF(AND($Q980=\"Y\",'Enrollment Form'!$AP987=\"No\"),\"-\",IF(AND($Q980=\"Y\",'Enrollment Form'!$AP987=\"Yes\",'Enrollment Form'!$AQ987<>\"\"),\"Y\",\"N\"))))","v":""},{"$f":"IF($B980=\"N\",\"\",IF(OR('Enrollment Form'!$B987<>\"Subscriber\",'Enrollment Form'!$C987=\"ROC\"),\"-\",IF(AND('Enrollment Form'!$B987=\"Subscriber\",'Enrollment Form'!$C987=\"Enroll\",'Enrollment Form'!$CO987<>\"\"),\"Y\",\"N\")))","v":""},{"$f":"IF($B980=\"N\",\"\",IF($S980=\"-\",\"-\",IF(AND($S980=\"Y\",'Enrollment Form'!$CO987=\"No\"),\"-\",IF(AND($S980=\"Y\",'Enrollment Form'!$CO987=\"Yes\",'Enrollment Form'!$CP987<>\"\"),\"Y\",\"N\"))))","v":""},{"$f":"IF(OR('Enrollment Form'!$AV987=\"Yes\",'Enrollment Form'!$AV987=\"\"),\"-\",IF(AND('Enrollment Form'!$AV987=\"No\",ISERROR(FIND(\"HMO\",VLOOKUP('Enrollment Form'!G987,'Enrollment Form'!H$11:J$1000,3,FALSE),1))=FALSE,COUNTA('Enrollment Form'!$AW987:$AZ987)=4),\"Y\",\"N\"))","v":"-"},{"$f":"IF($B980=\"N\",\"\",IF('Enrollment Form'!$B987=\"Subscriber\",\"-\",IF(COUNTA('Enrollment Form'!$BE987,'Enrollment Form'!$BG987)=2,\"Y\",\"N\")))","v":""},{"$f":"IF($B980=\"N\",\"\",IF(OR('Enrollment Form'!$AU987=\"\",'Enrollment Form'!$AU987=\"No\"),\"-\",IF(AND('Enrollment Form'!$AU987=\"Yes\",COUNTA('Enrollment Form'!$CK987)=1),\"Y\",\"N\")))","v":""},{"$f":"IF(OR('Enrollment Form'!$CK987=\"\",'Enrollment Form'!$CK987=\"No\"),\"-\",IF(COUNTA('Enrollment Form'!$CM987:$CN987)=2,\"Y\",\"N\"))","v":"-"},{"$f":"IF($B980=\"N\",\"\",IF(COUNTIF('Enrollment Form'!$CZ987:$DO987,\"Other\")=COUNTA('Enrollment Form'!$DF987,'Enrollment Form'!$DA987,'Enrollment Form'!$DK987,'Enrollment Form'!$DP987),\"Y\",\"N\"))","v":""},{"$f":"IF($B980=\"N\",\"\",IF(OR('Enrollment Form'!B987<>\"Subscriber\",'Enrollment Form'!C987=\"ROC\",COUNTIF('Enrollment Form'!AS987:AT987,\"Yes\")>=1),\"-\",IF(AND('Enrollment Form'!C987=\"Enroll\",COUNTIF('Enrollment Form'!AS987:AT987,\"No\")=2,'Enrollment Form'!AU987=\"\"),\"N\",\"Y\")))","v":""},{"$f":"IF(OR(B980=\"N\",'Enrollment Form'!B987<>\"Subscriber\",'Enrollment Form'!C987=\"ROC\",'Enrollment Form'!O987<>\"Multiple of Salary\"),\"-\",IF(COUNTA('Enrollment Form'!T987:U987)<2,\"N\",\"Y\"))","v":"-"},{"$f":"IF(B980=\"N\",\"\",IF(OR('Enrollment Form'!C987=\"ROC\",'Enrollment Form'!B987<>\"Subscriber\",'Enrollment Form'!O987=\"Waive\",'Enrollment Form'!O987=\"\"),\"-\",IF('Enrollment Form'!P987=\"\",\"N\",\"Y\")))","v":""},{"$f":"IF($B980=\"N\",\"\",IF(AND('Enrollment Form'!$C987=\"ROC\",'Enrollment Form'!$DS987<>\"\"),\"Y\",IF(AND('Enrollment Form'!$C987=\"ROC\",'Enrollment Form'!$DS987=\"\"),\"N\",IF(AND('Enrollment Form'!$C987=\"Enroll\",'Enrollment Form'!$B987=\"Subscriber\",'Enrollment Form'!$CQ987=\"No\",'Enrollment Form'!$DS987=\"\"),\"N\",IF(AND('Enrollment Form'!$C987=\"Enroll\",'Enrollment Form'!$B987=\"Subscriber\",'Enrollment Form'!$CQ987=\"Yes\"),\"-\",\"Y\")))))","v":""},{"$f":"IF($B980=\"N\",\"\",IF(AND('Enrollment Form'!$C987=\"ROC\",'Enrollment Form'!$DT987<>\"\"),\"Y\",IF(AND('Enrollment Form'!$C987=\"ROC\",'Enrollment Form'!$DT987=\"\"),\"N\",IF(AND('Enrollment Form'!$C987=\"Enroll\",'Enrollment Form'!$B987=\"Subscriber\",'Enrollment Form'!$CQ987=\"No\",'Enrollment Form'!$DT987=\"\"),\"N\",IF(AND('Enrollment Form'!$C987=\"Enroll\",'Enrollment Form'!$B987=\"Subscriber\",'Enrollment Form'!$CQ987=\"Yes\"),\"-\",\"Y\")))))","v":""},{"$f":"IF('Enrollment Form'!AH987=\"\",\"\",IF(ISERROR(SEARCH(\".\",'Enrollment Form'!AH987,SEARCH(\"@\",'Enrollment Form'!AH987))),\"N\",\"Y\"))","v":""},{"$f":"IF(OR($B980=\"N\",'Enrollment Form'!$G987=\"\"),\"\",IF('Enrollment Form'!$B987<>\"Subscriber\",\"-\",IF(COUNTIF('Enrollment Form'!$AS987:$AT987,\"Yes\")=2,\"N\",\"Y\")))","v":""},{"$f":"IF(OR('Enrollment Form'!$CC987=\"\",'Enrollment Form'!$CC987=\"No\"),\"-\",IF(AND('Enrollment Form'!$CC987=\"Yes\",'Enrollment Form'!$CD987=\"\"),\"N\",\"Y\"))","v":"-"},{"$f":"IF(OR('Enrollment Form'!$CE987=\"\",'Enrollment Form'!$CE987=\"No\"),\"-\",IF(AND('Enrollment Form'!$CE987=\"Yes\",'Enrollment Form'!$CF987=\"\"),\"N\",\"Y\"))","v":"-"},{"$f":"IF(OR('Enrollment Form'!$CG987=\"\",'Enrollment Form'!$CG987=\"No\"),\"-\",IF(AND('Enrollment Form'!$CG987=\"Yes\",'Enrollment Form'!$CH987=\"\"),\"N\",\"Y\"))","v":"-"},{"$f":"IF(OR('Enrollment Form'!$CG987=\"\",'Enrollment Form'!$CG987=\"No\"),\"-\",IF(AND('Enrollment Form'!$CG987=\"Yes\",'Enrollment Form'!$CI987=\"\"),\"N\",\"Y\"))","v":"-"},{"$f":"IF('Enrollment Form'!B987<>\"Subscriber\",\"-\",IF(AND('Enrollment Form'!B987=\"Subscriber\",'Enrollment Form'!C987=\"Enroll\",'Enrollment Form'!AA987=\"\"),\"N\",\"Y\"))","v":"-"},{"$f":"IF(OR('Enrollment Form'!B987=\"Subscriber\",'Enrollment Form'!B987=\"\"),\"-\",IF('Enrollment Form'!BI987=\"\",\"N\",\"Y\"))","v":"-"},{"$f":"IF('Enrollment Form'!B987<>\"Subscriber\",\"-\",IF(AND('Enrollment Form'!B987=\"Subscriber\",'Enrollment Form'!G987=\"\"),\"N\",\"Y\"))","v":"-"},{"$f":"IF('Enrollment Form'!A987=\"\",\"\",IF('Enrollment Form'!B987=\"Subscriber\",\"-\",IF(AND('Enrollment Form'!B987<>\"Subscriber\",'Enrollment Form'!G987='Enrollment Form'!H987),\"N\",\"Y\")))","v":""},0]
[988,{"$f":"IF('Enrollment Form'!$A988<>\"\",\"Y\",\"N\")","v":"N"},{"$f":"IF(AND('Enrollment Form'!$B988=\"\",'Enrollment Form'!$C988<>\"\"),\"N\",IF($B981=\"N\",\"\",\"Y\"))","v":""},{"$f":"IF(OR($B981=\"N\",'Enrollment Form'!G988=\"\"),\"\",IF('Enrollment Form'!$B988<>\"Subscriber\",\"\",IF('Enrollment Form'!$G988='Enrollment Form'!$H988,\"Y\",\"N\")))","v":""},{"$f":"IF($B981=\"N\",\"\",IF(AND(COUNTIFS('Enrollment Form'!$H$11:$H$1000,'Enrollment Form'!$H988,'Enrollment Form'!$B$11:$B$1000,'Enrollment Form'!$B988)>1,'Enrollment Form'!$H988<>\"\"),\"N\",\"Y\"))","v":""},{"$f":"IF($B981=\"N\",\"\",IF(LEN('Enrollment Form'!$Y988)=0,\"\",IF(LEN('Enrollment Form'!$Y988)<>5,\"N\",\"Y\")))","v":""},{"$f":"IF($B981=\"N\",\"\",IF(LEN('Enrollment Form'!$AD988=0),\"\",IF(LEN('Enrollment Form'!$AD988)<>5,\"N\",\"Y\")))","v":""},{"$f":"IF($B981=\"N\",\"\",IF(LEN('Enrollment Form'!$BL988=0),\"\",IF(LEN('Enrollment Form'!$BL988)<>5,\"N\",\"Y\")))","v":""},{"$f":"IF($B981=\"N\",\"\",IF(LEN('Enrollment Form'!$AE988)=0,\"\",IF(LEN('Enrollment Form'!$AE988)<>10,\"N\",\"Y\")))","v":""},{"$f":"IF($B981=\"N\",\"\",IF(LEN('Enrollment Form'!$AF988)=0,\"\",IF(LEN('Enrollment Form'!$AF988)<>10,\"N\",\"Y\")))","v":""},{"$f":"IF('Enrollment Form'!$O988<>\"Graded\",\"-\",IF(AND('Enrollment Form'!$O988=\"Graded\",'Enrollment Form'!$AO988<>\"\"),\"Y\",\"N\"))","v":"-"},{"$f":"IF($B981=\"N\",\"\",IF(OR('Enrollment Form'!$B988<>\"Subscriber\",'Enrollment Form'!$C988=\"ROC\"),\"-\",IF(AND('Enrollment Form'!$B988=\"Subscriber\",'Enrollment Form'!$C988=\"Enroll\",'Enrollment Form'!$AJ988<>\"\"),\"Y\",\"N\")))","v":""},{"$f":"IF($B981=\"N\",\"\",IF(OR('Enrollment Form'!$B988<>\"Subscriber\",'Enrollment Form'!$C988=\"ROC\"),\"-\",IF(AND('Enrollment Form'!$B988=\"Subscriber\",'Enrollment Form'!$C988=\"Enroll\",'Enrollment Form'!$AK988<>\"\"),\"Y\",\"N\")))","v":""},{"$f":"IF($B981=\"N\",\"\",IF(OR('Enrollment Form'!$B988<>\"Subscriber\",'Enrollment Form'!$C988=\"ROC\"),\"-\",IF(AND('Enrollment Form'!$B988=\"Subscriber\",'Enrollment Form'!$C988=\"Enroll\",'Enrollment Form'!$AL988<>\"\"),\"Y\",\"N\")))","v":""},{"$f":"IF($B981=\"N\",\"\",IF(OR('Enrollment Form'!$B988<>\"Subscriber\",'Enrollment Form'!$C988=\"ROC\"),\"-\",IF(AND('Enrollment Form'!$B988=\"Subscriber\",'Enrollment Form'!$C988=\"Enroll\",'Enrollment Form'!$AM988<>\"\"),\"Y\",\"N\")))","v":""},{"$f":"IF($B981=\"N\",\"\",IF(OR('Enrollment Form'!$B988<>\"Subscriber\",'Enrollment Form'!$C988=\"ROC\"),\"-\",IF(AND('Enrollment Form'!$B988=\"Subscriber\",'Enrollment Form'!$C988=\"Enroll\",'Enrollment Form'!$AN988<>\"\"),\"Y\",\"N\")))","v":""},{"$f":"IF($B981=\"N\",\"\",IF(OR('Enrollment Form'!$B988<>\"Subscriber\",'Enrollment Form'!$C988=\"ROC\"),\"-\",IF(AND('Enrollment Form'!$B988=\"Subscriber\",'Enrollment Form'!$C988=\"Enroll\",'Enrollment Form'!$AP988<>\"\"),\"Y\",\"N\")))","v":""},{"$f":"IF($B981=\"N\",\"\",IF($Q981=\"-\",\"-\",IF(AND($Q981=\"Y\",'Enrollment Form'!$AP988=\"No\"),\"-\",IF(AND($Q981=\"Y\",'Enrollment Form'!$AP988=\"Yes\",'Enrollment Form'!$AQ988<>\"\"),\"Y\",\"N\"))))","v":""},{"$f":"IF($B981=\"N\",\"\",IF(OR('Enrollment Form'!$B988<>\"Subscriber\",'Enrollment Form'!$C988=\"ROC\"),\"-\",IF(AND('Enrollment Form'!$B988=\"Subscriber\",'Enrollment Form'!$C988=\"Enroll\",'Enrollment Form'!$CO988<>\"\"),\"Y\",\"N\")))","v":""},{"$f":"IF($B981=\"N\",\"\",IF($S981=\"-\",\"-\",IF(AND($S981=\"Y\",'Enrollment Form'!$CO988=\"No\"),\"-\",IF(AND($S981=\"Y\",'Enrollment Form'!$CO988=\"Yes\",'Enrollment Form'!$CP988<>\"\"),\"Y\",\"N\"))))","v":""},{"$f":"IF(OR('Enrollment Form'!$AV988=\"Yes\",'Enrollment Form'!$AV988=\"\"),\"-\",IF(AND('Enrollment Form'!$AV988=\"No\",ISERROR(FIND(\"HMO\",VLOOKUP('Enrollment Form'!G988,'Enrollment Form'!H$11:J$1000,3,FALSE),1))=FALSE,COUNTA('Enrollment Form'!$AW988:$AZ988)=4),\"Y\",\"N\"))","v":"-"},{"$f":"IF($B981=\"N\",\"\",IF('Enrollment Form'!$B988=\"Subscriber\",\"-\",IF(COUNTA('Enrollment Form'!$BE988,'Enrollment Form'!$BG988)=2,\"Y\",\"N\")))","v":""},{"$f":"IF($B981=\"N\",\"\",IF(OR('Enrollment Form'!$AU988=\"\",'Enrollment Form'!$AU988=\"No\"),\"-\",IF(AND('Enrollment Form'!$AU988=\"Yes\",COUNTA('Enrollment Form'!$CK988)=1),\"Y\",\"N\")))","v":""},{"$f":"IF(OR('Enrollment Form'!$CK988=\"\",'Enrollment Form'!$CK988=\"No\"),\"-\",IF(COUNTA('Enrollment Form'!$CM988:$CN988)=2,\"Y\",\"N\"))","v":"-"},{"$f":"IF($B981=\"N\",\"\",IF(COUNTIF('Enrollment Form'!$CZ988:$DO988,\"Other\")=COUNTA('Enrollment Form'!$DF988,'Enrollment Form'!$DA988,'Enrollment Form'!$DK988,'Enrollment Form'!$DP988),\"Y\",\"N\"))","v":""},{"$f":"IF($B981=\"N\",\"\",IF(OR('Enrollment Form'!B988<>\"Subscriber\",'Enrollment Form'!C988=\"ROC\",COUNTIF('Enrollment Form'!AS988:AT988,\"Yes\")>=1),\"-\",IF(AND('Enrollment Form'!C988=\"Enroll\",COUNTIF('Enrollment Form'!AS988:AT988,\"No\")=2,'Enrollment Form'!AU988=\"\"),\"N\",\"Y\")))","v":""},{"$f":"IF(OR(B981=\"N\",'Enrollment Form'!B988<>\"Subscriber\",'Enrollment Form'!C988=\"ROC\",'Enrollment Form'!O988<>\"Multiple of Salary\"),\"-\",IF(COUNTA('Enrollment Form'!T988:U988)<2,\"N\",\"Y\"))","v":"-"},{"$f":"IF(B981=\"N\",\"\",IF(OR('Enrollment Form'!C988=\"ROC\",'Enrollment Form'!B988<>\"Subscriber\",'Enrollment Form'!O988=\"Waive\",'Enrollment Form'!O988=\"\"),\"-\",IF('Enrollment Form'!P988=\"\",\"N\",\"Y\")))","v":""},{"$f":"IF($B981=\"N\",\"\",IF(AND('Enrollment Form'!$C988=\"ROC\",'Enrollment Form'!$DS988<>\"\"),\"Y\",IF(AND('Enrollment Form'!$C988=\"ROC\",'Enrollment Form'!$DS988=\"\"),\"N\",IF(AND('Enrollment Form'!$C988=\"Enroll\",'Enrollment Form'!$B988=\"Subscriber\",'Enrollment Form'!$CQ988=\"No\",'Enrollment Form'!$DS988=\"\"),\"N\",IF(AND('Enrollment Form'!$C988=\"Enroll\",'Enrollment Form'!$B988=\"Subscriber\",'Enrollment Form'!$CQ988=\"Yes\"),\"-\",\"Y\")))))","v":""},{"$f":"IF($B981=\"N\",\"\",IF(AND('Enrollment Form'!$C988=\"ROC\",'Enrollment Form'!$DT988<>\"\"),\"Y\",IF(AND('Enrollment Form'!$C988=\"ROC\",'Enrollment Form'!$DT988=\"\"),\"N\",IF(AND('Enrollment Form'!$C988=\"Enroll\",'Enrollment Form'!$B988=\"Subscriber\",'Enrollment Form'!$CQ988=\"No\",'Enrollment Form'!$DT988=\"\"),\"N\",IF(AND('Enrollment Form'!$C988=\"Enroll\",'Enrollment Form'!$B988=\"Subscriber\",'Enrollment Form'!$CQ988=\"Yes\"),\"-\",\"Y\")))))","v":""},{"$f":"IF('Enrollment Form'!AH988=\"\",\"\",IF(ISERROR(SEARCH(\".\",'Enrollment Form'!AH988,SEARCH(\"@\",'Enrollment Form'!AH988))),\"N\",\"Y\"))","v":""},{"$f":"IF(OR($B981=\"N\",'Enrollment Form'!$G988=\"\"),\"\",IF('Enrollment Form'!$B988<>\"Subscriber\",\"-\",IF(COUNTIF('Enrollment Form'!$AS988:$AT988,\"Yes\")=2,\"N\",\"Y\")))","v":""},{"$f":"IF(OR('Enrollment Form'!$CC988=\"\",'Enrollment Form'!$CC988=\"No\"),\"-\",IF(AND('Enrollment Form'!$CC988=\"Yes\",'Enrollment Form'!$CD988=\"\"),\"N\",\"Y\"))","v":"-"},{"$f":"IF(OR('Enrollment Form'!$CE988=\"\",'Enrollment Form'!$CE988=\"No\"),\"-\",IF(AND('Enrollment Form'!$CE988=\"Yes\",'Enrollment Form'!$CF988=\"\"),\"N\",\"Y\"))","v":"-"},{"$f":"IF(OR('Enrollment Form'!$CG988=\"\",'Enrollment Form'!$CG988=\"No\"),\"-\",IF(AND('Enrollment Form'!$CG988=\"Yes\",'Enrollment Form'!$CH988=\"\"),\"N\",\"Y\"))","v":"-"},{"$f":"IF(OR('Enrollment Form'!$CG988=\"\",'Enrollment Form'!$CG988=\"No\"),\"-\",IF(AND('Enrollment Form'!$CG988=\"Yes\",'Enrollment Form'!$CI988=\"\"),\"N\",\"Y\"))","v":"-"},{"$f":"IF('Enrollment Form'!B988<>\"Subscriber\",\"-\",IF(AND('Enrollment Form'!B988=\"Subscriber\",'Enrollment Form'!C988=\"Enroll\",'Enrollment Form'!AA988=\"\"),\"N\",\"Y\"))","v":"-"},{"$f":"IF(OR('Enrollment Form'!B988=\"Subscriber\",'Enrollment Form'!B988=\"\"),\"-\",IF('Enrollment Form'!BI988=\"\",\"N\",\"Y\"))","v":"-"},{"$f":"IF('Enrollment Form'!B988<>\"Subscriber\",\"-\",IF(AND('Enrollment Form'!B988=\"Subscriber\",'Enrollment Form'!G988=\"\"),\"N\",\"Y\"))","v":"-"},{"$f":"IF('Enrollment Form'!A988=\"\",\"\",IF('Enrollment Form'!B988=\"Subscriber\",\"-\",IF(AND('Enrollment Form'!B988<>\"Subscriber\",'Enrollment Form'!G988='Enrollment Form'!H988),\"N\",\"Y\")))","v":""},0]
[989,{"$f":"IF('Enrollment Form'!$A989<>\"\",\"Y\",\"N\")","v":"N"},{"$f":"IF(AND('Enrollment Form'!$B989=\"\",'Enrollment Form'!$C989<>\"\"),\"N\",IF($B982=\"N\",\"\",\"Y\"))","v":""},{"$f":"IF(OR($B982=\"N\",'Enrollment Form'!G989=\"\"),\"\",IF('Enrollment Form'!$B989<>\"Subscriber\",\"\",IF('Enrollment Form'!$G989='Enrollment Form'!$H989,\"Y\",\"N\")))","v":""},{"$f":"IF($B982=\"N\",\"\",IF(AND(COUNTIFS('Enrollment Form'!$H$11:$H$1000,'Enrollment Form'!$H989,'Enrollment Form'!$B$11:$B$1000,'Enrollment Form'!$B989)>1,'Enrollment Form'!$H989<>\"\"),\"N\",\"Y\"))","v":""},{"$f":"IF($B982=\"N\",\"\",IF(LEN('Enrollment Form'!$Y989)=0,\"\",IF(LEN('Enrollment Form'!$Y989)<>5,\"N\",\"Y\")))","v":""},{"$f":"IF($B982=\"N\",\"\",IF(LEN('Enrollment Form'!$AD989=0),\"\",IF(LEN('Enrollment Form'!$AD989)<>5,\"N\",\"Y\")))","v":""},{"$f":"IF($B982=\"N\",\"\",IF(LEN('Enrollment Form'!$BL989=0),\"\",IF(LEN('Enrollment Form'!$BL989)<>5,\"N\",\"Y\")))","v":""},{"$f":"IF($B982=\"N\",\"\",IF(LEN('Enrollment Form'!$AE989)=0,\"\",IF(LEN('Enrollment Form'!$AE989)<>10,\"N\",\"Y\")))","v":""},{"$f":"IF($B982=\"N\",\"\",IF(LEN('Enrollment Form'!$AF989)=0,\"\",IF(LEN('Enrollment Form'!$AF989)<>10,\"N\",\"Y\")))","v":""},{"$f":"IF('Enrollment Form'!$O989<>\"Graded\",\"-\",IF(AND('Enrollment Form'!$O989=\"Graded\",'Enrollment Form'!$AO989<>\"\"),\"Y\",\"N\"))","v":"-"},{"$f":"IF($B982=\"N\",\"\",IF(OR('Enrollment Form'!$B989<>\"Subscriber\",'Enrollment Form'!$C989=\"ROC\"),\"-\",IF(AND('Enrollment Form'!$B989=\"Subscriber\",'Enrollment Form'!$C989=\"Enroll\",'Enrollment Form'!$AJ989<>\"\"),\"Y\",\"N\")))","v":""},{"$f":"IF($B982=\"N\",\"\",IF(OR('Enrollment Form'!$B989<>\"Subscriber\",'Enrollment Form'!$C989=\"ROC\"),\"-\",IF(AND('Enrollment Form'!$B989=\"Subscriber\",'Enrollment Form'!$C989=\"Enroll\",'Enrollment Form'!$AK989<>\"\"),\"Y\",\"N\")))","v":""},{"$f":"IF($B982=\"N\",\"\",IF(OR('Enrollment Form'!$B989<>\"Subscriber\",'Enrollment Form'!$C989=\"ROC\"),\"-\",IF(AND('Enrollment Form'!$B989=\"Subscriber\",'Enrollment Form'!$C989=\"Enroll\",'Enrollment Form'!$AL989<>\"\"),\"Y\",\"N\")))","v":""},{"$f":"IF($B982=\"N\",\"\",IF(OR('Enrollment Form'!$B989<>\"Subscriber\",'Enrollment Form'!$C989=\"ROC\"),\"-\",IF(AND('Enrollment Form'!$B989=\"Subscriber\",'Enrollment Form'!$C989=\"Enroll\",'Enrollment Form'!$AM989<>\"\"),\"Y\",\"N\")))","v":""},{"$f":"IF($B982=\"N\",\"\",IF(OR('Enrollment Form'!$B989<>\"Subscriber\",'Enrollment Form'!$C989=\"ROC\"),\"-\",IF(AND('Enrollment Form'!$B989=\"Subscriber\",'Enrollment Form'!$C989=\"Enroll\",'Enrollment Form'!$AN989<>\"\"),\"Y\",\"N\")))","v":""},{"$f":"IF($B982=\"N\",\"\",IF(OR('Enrollment Form'!$B989<>\"Subscriber\",'Enrollment Form'!$C989=\"ROC\"),\"-\",IF(AND('Enrollment Form'!$B989=\"Subscriber\",'Enrollment Form'!$C989=\"Enroll\",'Enrollment Form'!$AP989<>\"\"),\"Y\",\"N\")))","v":""},{"$f":"IF($B982=\"N\",\"\",IF($Q982=\"-\",\"-\",IF(AND($Q982=\"Y\",'Enrollment Form'!$AP989=\"No\"),\"-\",IF(AND($Q982=\"Y\",'Enrollment Form'!$AP989=\"Yes\",'Enrollment Form'!$AQ989<>\"\"),\"Y\",\"N\"))))","v":""},{"$f":"IF($B982=\"N\",\"\",IF(OR('Enrollment Form'!$B989<>\"Subscriber\",'Enrollment Form'!$C989=\"ROC\"),\"-\",IF(AND('Enrollment Form'!$B989=\"Subscriber\",'Enrollment Form'!$C989=\"Enroll\",'Enrollment Form'!$CO989<>\"\"),\"Y\",\"N\")))","v":""},{"$f":"IF($B982=\"N\",\"\",IF($S982=\"-\",\"-\",IF(AND($S982=\"Y\",'Enrollment Form'!$CO989=\"No\"),\"-\",IF(AND($S982=\"Y\",'Enrollment Form'!$CO989=\"Yes\",'Enrollment Form'!$CP989<>\"\"),\"Y\",\"N\"))))","v":""},{"$f":"IF(OR('Enrollment Form'!$AV989=\"Yes\",'Enrollment Form'!$AV989=\"\"),\"-\",IF(AND('Enrollment Form'!$AV989=\"No\",ISERROR(FIND(\"HMO\",VLOOKUP('Enrollment Form'!G989,'Enrollment Form'!H$11:J$1000,3,FALSE),1))=FALSE,COUNTA('Enrollment Form'!$AW989:$AZ989)=4),\"Y\",\"N\"))","v":"-"},{"$f":"IF($B982=\"N\",\"\",IF('Enrollment Form'!$B989=\"Subscriber\",\"-\",IF(COUNTA('Enrollment Form'!$BE989,'Enrollment Form'!$BG989)=2,\"Y\",\"N\")))","v":""},{"$f":"IF($B982=\"N\",\"\",IF(OR('Enrollment Form'!$AU989=\"\",'Enrollment Form'!$AU989=\"No\"),\"-\",IF(AND('Enrollment Form'!$AU989=\"Yes\",COUNTA('Enrollment Form'!$CK989)=1),\"Y\",\"N\")))","v":""},{"$f":"IF(OR('Enrollment Form'!$CK989=\"\",'Enrollment Form'!$CK989=\"No\"),\"-\",IF(COUNTA('Enrollment Form'!$CM989:$CN989)=2,\"Y\",\"N\"))","v":"-"},{"$f":"IF($B982=\"N\",\"\",IF(COUNTIF('Enrollment Form'!$CZ989:$DO989,\"Other\")=COUNTA('Enrollment Form'!$DF989,'Enrollment Form'!$DA989,'Enrollment Form'!$DK989,'Enrollment Form'!$DP989),\"Y\",\"N\"))","v":""},{"$f":"IF($B982=\"N\",\"\",IF(OR('Enrollment Form'!B989<>\"Subscriber\",'Enrollment Form'!C989=\"ROC\",COUNTIF('Enrollment Form'!AS989:AT989,\"Yes\")>=1),\"-\",IF(AND('Enrollment Form'!C989=\"Enroll\",COUNTIF('Enrollment Form'!AS989:AT989,\"No\")=2,'Enrollment Form'!AU989=\"\"),\"N\",\"Y\")))","v":""},{"$f":"IF(OR(B982=\"N\",'Enrollment Form'!B989<>\"Subscriber\",'Enrollment Form'!C989=\"ROC\",'Enrollment Form'!O989<>\"Multiple of Salary\"),\"-\",IF(COUNTA('Enrollment Form'!T989:U989)<2,\"N\",\"Y\"))","v":"-"},{"$f":"IF(B982=\"N\",\"\",IF(OR('Enrollment Form'!C989=\"ROC\",'Enrollment Form'!B989<>\"Subscriber\",'Enrollment Form'!O989=\"Waive\",'Enrollment Form'!O989=\"\"),\"-\",IF('Enrollment Form'!P989=\"\",\"N\",\"Y\")))","v":""},{"$f":"IF($B982=\"N\",\"\",IF(AND('Enrollment Form'!$C989=\"ROC\",'Enrollment Form'!$DS989<>\"\"),\"Y\",IF(AND('Enrollment Form'!$C989=\"ROC\",'Enrollment Form'!$DS989=\"\"),\"N\",IF(AND('Enrollment Form'!$C989=\"Enroll\",'Enrollment Form'!$B989=\"Subscriber\",'Enrollment Form'!$CQ989=\"No\",'Enrollment Form'!$DS989=\"\"),\"N\",IF(AND('Enrollment Form'!$C989=\"Enroll\",'Enrollment Form'!$B989=\"Subscriber\",'Enrollment Form'!$CQ989=\"Yes\"),\"-\",\"Y\")))))","v":""},{"$f":"IF($B982=\"N\",\"\",IF(AND('Enrollment Form'!$C989=\"ROC\",'Enrollment Form'!$DT989<>\"\"),\"Y\",IF(AND('Enrollment Form'!$C989=\"ROC\",'Enrollment Form'!$DT989=\"\"),\"N\",IF(AND('Enrollment Form'!$C989=\"Enroll\",'Enrollment Form'!$B989=\"Subscriber\",'Enrollment Form'!$CQ989=\"No\",'Enrollment Form'!$DT989=\"\"),\"N\",IF(AND('Enrollment Form'!$C989=\"Enroll\",'Enrollment Form'!$B989=\"Subscriber\",'Enrollment Form'!$CQ989=\"Yes\"),\"-\",\"Y\")))))","v":""},{"$f":"IF('Enrollment Form'!AH989=\"\",\"\",IF(ISERROR(SEARCH(\".\",'Enrollment Form'!AH989,SEARCH(\"@\",'Enrollment Form'!AH989))),\"N\",\"Y\"))","v":""},{"$f":"IF(OR($B982=\"N\",'Enrollment Form'!$G989=\"\"),\"\",IF('Enrollment Form'!$B989<>\"Subscriber\",\"-\",IF(COUNTIF('Enrollment Form'!$AS989:$AT989,\"Yes\")=2,\"N\",\"Y\")))","v":""},{"$f":"IF(OR('Enrollment Form'!$CC989=\"\",'Enrollment Form'!$CC989=\"No\"),\"-\",IF(AND('Enrollment Form'!$CC989=\"Yes\",'Enrollment Form'!$CD989=\"\"),\"N\",\"Y\"))","v":"-"},{"$f":"IF(OR('Enrollment Form'!$CE989=\"\",'Enrollment Form'!$CE989=\"No\"),\"-\",IF(AND('Enrollment Form'!$CE989=\"Yes\",'Enrollment Form'!$CF989=\"\"),\"N\",\"Y\"))","v":"-"},{"$f":"IF(OR('Enrollment Form'!$CG989=\"\",'Enrollment Form'!$CG989=\"No\"),\"-\",IF(AND('Enrollment Form'!$CG989=\"Yes\",'Enrollment Form'!$CH989=\"\"),\"N\",\"Y\"))","v":"-"},{"$f":"IF(OR('Enrollment Form'!$CG989=\"\",'Enrollment Form'!$CG989=\"No\"),\"-\",IF(AND('Enrollment Form'!$CG989=\"Yes\",'Enrollment Form'!$CI989=\"\"),\"N\",\"Y\"))","v":"-"},{"$f":"IF('Enrollment Form'!B989<>\"Subscriber\",\"-\",IF(AND('Enrollment Form'!B989=\"Subscriber\",'Enrollment Form'!C989=\"Enroll\",'Enrollment Form'!AA989=\"\"),\"N\",\"Y\"))","v":"-"},{"$f":"IF(OR('Enrollment Form'!B989=\"Subscriber\",'Enrollment Form'!B989=\"\"),\"-\",IF('Enrollment Form'!BI989=\"\",\"N\",\"Y\"))","v":"-"},{"$f":"IF('Enrollment Form'!B989<>\"Subscriber\",\"-\",IF(AND('Enrollment Form'!B989=\"Subscriber\",'Enrollment Form'!G989=\"\"),\"N\",\"Y\"))","v":"-"},{"$f":"IF('Enrollment Form'!A989=\"\",\"\",IF('Enrollment Form'!B989=\"Subscriber\",\"-\",IF(AND('Enrollment Form'!B989<>\"Subscriber\",'Enrollment Form'!G989='Enrollment Form'!H989),\"N\",\"Y\")))","v":""},0]
[990,{"$f":"IF('Enrollment Form'!$A990<>\"\",\"Y\",\"N\")","v":"N"},{"$f":"IF(AND('Enrollment Form'!$B990=\"\",'Enrollment Form'!$C990<>\"\"),\"N\",IF($B983=\"N\",\"\",\"Y\"))","v":""},{"$f":"IF(OR($B983=\"N\",'Enrollment Form'!G990=\"\"),\"\",IF('Enrollment Form'!$B990<>\"Subscriber\",\"\",IF('Enrollment Form'!$G990='Enrollment Form'!$H990,\"Y\",\"N\")))","v":""},{"$f":"IF($B983=\"N\",\"\",IF(AND(COUNTIFS('Enrollment Form'!$H$11:$H$1000,'Enrollment Form'!$H990,'Enrollment Form'!$B$11:$B$1000,'Enrollment Form'!$B990)>1,'Enrollment Form'!$H990<>\"\"),\"N\",\"Y\"))","v":""},{"$f":"IF($B983=\"N\",\"\",IF(LEN('Enrollment Form'!$Y990)=0,\"\",IF(LEN('Enrollment Form'!$Y990)<>5,\"N\",\"Y\")))","v":""},{"$f":"IF($B983=\"N\",\"\",IF(LEN('Enrollment Form'!$AD990=0),\"\",IF(LEN('Enrollment Form'!$AD990)<>5,\"N\",\"Y\")))","v":""},{"$f":"IF($B983=\"N\",\"\",IF(LEN('Enrollment Form'!$BL990=0),\"\",IF(LEN('Enrollment Form'!$BL990)<>5,\"N\",\"Y\")))","v":""},{"$f":"IF($B983=\"N\",\"\",IF(LEN('Enrollment Form'!$AE990)=0,\"\",IF(LEN('Enrollment Form'!$AE990)<>10,\"N\",\"Y\")))","v":""},{"$f":"IF($B983=\"N\",\"\",IF(LEN('Enrollment Form'!$AF990)=0,\"\",IF(LEN('Enrollment Form'!$AF990)<>10,\"N\",\"Y\")))","v":""},{"$f":"IF('Enrollment Form'!$O990<>\"Graded\",\"-\",IF(AND('Enrollment Form'!$O990=\"Graded\",'Enrollment Form'!$AO990<>\"\"),\"Y\",\"N\"))","v":"-"},{"$f":"IF($B983=\"N\",\"\",IF(OR('Enrollment Form'!$B990<>\"Subscriber\",'Enrollment Form'!$C990=\"ROC\"),\"-\",IF(AND('Enrollment Form'!$B990=\"Subscriber\",'Enrollment Form'!$C990=\"Enroll\",'Enrollment Form'!$AJ990<>\"\"),\"Y\",\"N\")))","v":""},{"$f":"IF($B983=\"N\",\"\",IF(OR('Enrollment Form'!$B990<>\"Subscriber\",'Enrollment Form'!$C990=\"ROC\"),\"-\",IF(AND('Enrollment Form'!$B990=\"Subscriber\",'Enrollment Form'!$C990=\"Enroll\",'Enrollment Form'!$AK990<>\"\"),\"Y\",\"N\")))","v":""},{"$f":"IF($B983=\"N\",\"\",IF(OR('Enrollment Form'!$B990<>\"Subscriber\",'Enrollment Form'!$C990=\"ROC\"),\"-\",IF(AND('Enrollment Form'!$B990=\"Subscriber\",'Enrollment Form'!$C990=\"Enroll\",'Enrollment Form'!$AL990<>\"\"),\"Y\",\"N\")))","v":""},{"$f":"IF($B983=\"N\",\"\",IF(OR('Enrollment Form'!$B990<>\"Subscriber\",'Enrollment Form'!$C990=\"ROC\"),\"-\",IF(AND('Enrollment Form'!$B990=\"Subscriber\",'Enrollment Form'!$C990=\"Enroll\",'Enrollment Form'!$AM990<>\"\"),\"Y\",\"N\")))","v":""},{"$f":"IF($B983=\"N\",\"\",IF(OR('Enrollment Form'!$B990<>\"Subscriber\",'Enrollment Form'!$C990=\"ROC\"),\"-\",IF(AND('Enrollment Form'!$B990=\"Subscriber\",'Enrollment Form'!$C990=\"Enroll\",'Enrollment Form'!$AN990<>\"\"),\"Y\",\"N\")))","v":""},{"$f":"IF($B983=\"N\",\"\",IF(OR('Enrollment Form'!$B990<>\"Subscriber\",'Enrollment Form'!$C990=\"ROC\"),\"-\",IF(AND('Enrollment Form'!$B990=\"Subscriber\",'Enrollment Form'!$C990=\"Enroll\",'Enrollment Form'!$AP990<>\"\"),\"Y\",\"N\")))","v":""},{"$f":"IF($B983=\"N\",\"\",IF($Q983=\"-\",\"-\",IF(AND($Q983=\"Y\",'Enrollment Form'!$AP990=\"No\"),\"-\",IF(AND($Q983=\"Y\",'Enrollment Form'!$AP990=\"Yes\",'Enrollment Form'!$AQ990<>\"\"),\"Y\",\"N\"))))","v":""},{"$f":"IF($B983=\"N\",\"\",IF(OR('Enrollment Form'!$B990<>\"Subscriber\",'Enrollment Form'!$C990=\"ROC\"),\"-\",IF(AND('Enrollment Form'!$B990=\"Subscriber\",'Enrollment Form'!$C990=\"Enroll\",'Enrollment Form'!$CO990<>\"\"),\"Y\",\"N\")))","v":""},{"$f":"IF($B983=\"N\",\"\",IF($S983=\"-\",\"-\",IF(AND($S983=\"Y\",'Enrollment Form'!$CO990=\"No\"),\"-\",IF(AND($S983=\"Y\",'Enrollment Form'!$CO990=\"Yes\",'Enrollment Form'!$CP990<>\"\"),\"Y\",\"N\"))))","v":""},{"$f":"IF(OR('Enrollment Form'!$AV990=\"Yes\",'Enrollment Form'!$AV990=\"\"),\"-\",IF(AND('Enrollment Form'!$AV990=\"No\",ISERROR(FIND(\"HMO\",VLOOKUP('Enrollment Form'!G990,'Enrollment Form'!H$11:J$1000,3,FALSE),1))=FALSE,COUNTA('Enrollment Form'!$AW990:$AZ990)=4),\"Y\",\"N\"))","v":"-"},{"$f":"IF($B983=\"N\",\"\",IF('Enrollment Form'!$B990=\"Subscriber\",\"-\",IF(COUNTA('Enrollment Form'!$BE990,'Enrollment Form'!$BG990)=2,\"Y\",\"N\")))","v":""},{"$f":"IF($B983=\"N\",\"\",IF(OR('Enrollment Form'!$AU990=\"\",'Enrollment Form'!$AU990=\"No\"),\"-\",IF(AND('Enrollment Form'!$AU990=\"Yes\",COUNTA('Enrollment Form'!$CK990)=1),\"Y\",\"N\")))","v":""},{"$f":"IF(OR('Enrollment Form'!$CK990=\"\",'Enrollment Form'!$CK990=\"No\"),\"-\",IF(COUNTA('Enrollment Form'!$CM990:$CN990)=2,\"Y\",\"N\"))","v":"-"},{"$f":"IF($B983=\"N\",\"\",IF(COUNTIF('Enrollment Form'!$CZ990:$DO990,\"Other\")=COUNTA('Enrollment Form'!$DF990,'Enrollment Form'!$DA990,'Enrollment Form'!$DK990,'Enrollment Form'!$DP990),\"Y\",\"N\"))","v":""},{"$f":"IF($B983=\"N\",\"\",IF(OR('Enrollment Form'!B990<>\"Subscriber\",'Enrollment Form'!C990=\"ROC\",COUNTIF('Enrollment Form'!AS990:AT990,\"Yes\")>=1),\"-\",IF(AND('Enrollment Form'!C990=\"Enroll\",COUNTIF('Enrollment Form'!AS990:AT990,\"No\")=2,'Enrollment Form'!AU990=\"\"),\"N\",\"Y\")))","v":""},{"$f":"IF(OR(B983=\"N\",'Enrollment Form'!B990<>\"Subscriber\",'Enrollment Form'!C990=\"ROC\",'Enrollment Form'!O990<>\"Multiple of Salary\"),\"-\",IF(COUNTA('Enrollment Form'!T990:U990)<2,\"N\",\"Y\"))","v":"-"},{"$f":"IF(B983=\"N\",\"\",IF(OR('Enrollment Form'!C990=\"ROC\",'Enrollment Form'!B990<>\"Subscriber\",'Enrollment Form'!O990=\"Waive\",'Enrollment Form'!O990=\"\"),\"-\",IF('Enrollment Form'!P990=\"\",\"N\",\"Y\")))","v":""},{"$f":"IF($B983=\"N\",\"\",IF(AND('Enrollment Form'!$C990=\"ROC\",'Enrollment Form'!$DS990<>\"\"),\"Y\",IF(AND('Enrollment Form'!$C990=\"ROC\",'Enrollment Form'!$DS990=\"\"),\"N\",IF(AND('Enrollment Form'!$C990=\"Enroll\",'Enrollment Form'!$B990=\"Subscriber\",'Enrollment Form'!$CQ990=\"No\",'Enrollment Form'!$DS990=\"\"),\"N\",IF(AND('Enrollment Form'!$C990=\"Enroll\",'Enrollment Form'!$B990=\"Subscriber\",'Enrollment Form'!$CQ990=\"Yes\"),\"-\",\"Y\")))))","v":""},{"$f":"IF($B983=\"N\",\"\",IF(AND('Enrollment Form'!$C990=\"ROC\",'Enrollment Form'!$DT990<>\"\"),\"Y\",IF(AND('Enrollment Form'!$C990=\"ROC\",'Enrollment Form'!$DT990=\"\"),\"N\",IF(AND('Enrollment Form'!$C990=\"Enroll\",'Enrollment Form'!$B990=\"Subscriber\",'Enrollment Form'!$CQ990=\"No\",'Enrollment Form'!$DT990=\"\"),\"N\",IF(AND('Enrollment Form'!$C990=\"Enroll\",'Enrollment Form'!$B990=\"Subscriber\",'Enrollment Form'!$CQ990=\"Yes\"),\"-\",\"Y\")))))","v":""},{"$f":"IF('Enrollment Form'!AH990=\"\",\"\",IF(ISERROR(SEARCH(\".\",'Enrollment Form'!AH990,SEARCH(\"@\",'Enrollment Form'!AH990))),\"N\",\"Y\"))","v":""},{"$f":"IF(OR($B983=\"N\",'Enrollment Form'!$G990=\"\"),\"\",IF('Enrollment Form'!$B990<>\"Subscriber\",\"-\",IF(COUNTIF('Enrollment Form'!$AS990:$AT990,\"Yes\")=2,\"N\",\"Y\")))","v":""},{"$f":"IF(OR('Enrollment Form'!$CC990=\"\",'Enrollment Form'!$CC990=\"No\"),\"-\",IF(AND('Enrollment Form'!$CC990=\"Yes\",'Enrollment Form'!$CD990=\"\"),\"N\",\"Y\"))","v":"-"},{"$f":"IF(OR('Enrollment Form'!$CE990=\"\",'Enrollment Form'!$CE990=\"No\"),\"-\",IF(AND('Enrollment Form'!$CE990=\"Yes\",'Enrollment Form'!$CF990=\"\"),\"N\",\"Y\"))","v":"-"},{"$f":"IF(OR('Enrollment Form'!$CG990=\"\",'Enrollment Form'!$CG990=\"No\"),\"-\",IF(AND('Enrollment Form'!$CG990=\"Yes\",'Enrollment Form'!$CH990=\"\"),\"N\",\"Y\"))","v":"-"},{"$f":"IF(OR('Enrollment Form'!$CG990=\"\",'Enrollment Form'!$CG990=\"No\"),\"-\",IF(AND('Enrollment Form'!$CG990=\"Yes\",'Enrollment Form'!$CI990=\"\"),\"N\",\"Y\"))","v":"-"},{"$f":"IF('Enrollment Form'!B990<>\"Subscriber\",\"-\",IF(AND('Enrollment Form'!B990=\"Subscriber\",'Enrollment Form'!C990=\"Enroll\",'Enrollment Form'!AA990=\"\"),\"N\",\"Y\"))","v":"-"},{"$f":"IF(OR('Enrollment Form'!B990=\"Subscriber\",'Enrollment Form'!B990=\"\"),\"-\",IF('Enrollment Form'!BI990=\"\",\"N\",\"Y\"))","v":"-"},{"$f":"IF('Enrollment Form'!B990<>\"Subscriber\",\"-\",IF(AND('Enrollment Form'!B990=\"Subscriber\",'Enrollment Form'!G990=\"\"),\"N\",\"Y\"))","v":"-"},{"$f":"IF('Enrollment Form'!A990=\"\",\"\",IF('Enrollment Form'!B990=\"Subscriber\",\"-\",IF(AND('Enrollment Form'!B990<>\"Subscriber\",'Enrollment Form'!G990='Enrollment Form'!H990),\"N\",\"Y\")))","v":""},0]
[991,{"$f":"IF('Enrollment Form'!$A991<>\"\",\"Y\",\"N\")","v":"N"},{"$f":"IF(AND('Enrollment Form'!$B991=\"\",'Enrollment Form'!$C991<>\"\"),\"N\",IF($B984=\"N\",\"\",\"Y\"))","v":""},{"$f":"IF(OR($B984=\"N\",'Enrollment Form'!G991=\"\"),\"\",IF('Enrollment Form'!$B991<>\"Subscriber\",\"\",IF('Enrollment Form'!$G991='Enrollment Form'!$H991,\"Y\",\"N\")))","v":""},{"$f":"IF($B984=\"N\",\"\",IF(AND(COUNTIFS('Enrollment Form'!$H$11:$H$1000,'Enrollment Form'!$H991,'Enrollment Form'!$B$11:$B$1000,'Enrollment Form'!$B991)>1,'Enrollment Form'!$H991<>\"\"),\"N\",\"Y\"))","v":""},{"$f":"IF($B984=\"N\",\"\",IF(LEN('Enrollment Form'!$Y991)=0,\"\",IF(LEN('Enrollment Form'!$Y991)<>5,\"N\",\"Y\")))","v":""},{"$f":"IF($B984=\"N\",\"\",IF(LEN('Enrollment Form'!$AD991=0),\"\",IF(LEN('Enrollment Form'!$AD991)<>5,\"N\",\"Y\")))","v":""},{"$f":"IF($B984=\"N\",\"\",IF(LEN('Enrollment Form'!$BL991=0),\"\",IF(LEN('Enrollment Form'!$BL991)<>5,\"N\",\"Y\")))","v":""},{"$f":"IF($B984=\"N\",\"\",IF(LEN('Enrollment Form'!$AE991)=0,\"\",IF(LEN('Enrollment Form'!$AE991)<>10,\"N\",\"Y\")))","v":""},{"$f":"IF($B984=\"N\",\"\",IF(LEN('Enrollment Form'!$AF991)=0,\"\",IF(LEN('Enrollment Form'!$AF991)<>10,\"N\",\"Y\")))","v":""},{"$f":"IF('Enrollment Form'!$O991<>\"Graded\",\"-\",IF(AND('Enrollment Form'!$O991=\"Graded\",'Enrollment Form'!$AO991<>\"\"),\"Y\",\"N\"))","v":"-"},{"$f":"IF($B984=\"N\",\"\",IF(OR('Enrollment Form'!$B991<>\"Subscriber\",'Enrollment Form'!$C991=\"ROC\"),\"-\",IF(AND('Enrollment Form'!$B991=\"Subscriber\",'Enrollment Form'!$C991=\"Enroll\",'Enrollment Form'!$AJ991<>\"\"),\"Y\",\"N\")))","v":""},{"$f":"IF($B984=\"N\",\"\",IF(OR('Enrollment Form'!$B991<>\"Subscriber\",'Enrollment Form'!$C991=\"ROC\"),\"-\",IF(AND('Enrollment Form'!$B991=\"Subscriber\",'Enrollment Form'!$C991=\"Enroll\",'Enrollment Form'!$AK991<>\"\"),\"Y\",\"N\")))","v":""},{"$f":"IF($B984=\"N\",\"\",IF(OR('Enrollment Form'!$B991<>\"Subscriber\",'Enrollment Form'!$C991=\"ROC\"),\"-\",IF(AND('Enrollment Form'!$B991=\"Subscriber\",'Enrollment Form'!$C991=\"Enroll\",'Enrollment Form'!$AL991<>\"\"),\"Y\",\"N\")))","v":""},{"$f":"IF($B984=\"N\",\"\",IF(OR('Enrollment Form'!$B991<>\"Subscriber\",'Enrollment Form'!$C991=\"ROC\"),\"-\",IF(AND('Enrollment Form'!$B991=\"Subscriber\",'Enrollment Form'!$C991=\"Enroll\",'Enrollment Form'!$AM991<>\"\"),\"Y\",\"N\")))","v":""},{"$f":"IF($B984=\"N\",\"\",IF(OR('Enrollment Form'!$B991<>\"Subscriber\",'Enrollment Form'!$C991=\"ROC\"),\"-\",IF(AND('Enrollment Form'!$B991=\"Subscriber\",'Enrollment Form'!$C991=\"Enroll\",'Enrollment Form'!$AN991<>\"\"),\"Y\",\"N\")))","v":""},{"$f":"IF($B984=\"N\",\"\",IF(OR('Enrollment Form'!$B991<>\"Subscriber\",'Enrollment Form'!$C991=\"ROC\"),\"-\",IF(AND('Enrollment Form'!$B991=\"Subscriber\",'Enrollment Form'!$C991=\"Enroll\",'Enrollment Form'!$AP991<>\"\"),\"Y\",\"N\")))","v":""},{"$f":"IF($B984=\"N\",\"\",IF($Q984=\"-\",\"-\",IF(AND($Q984=\"Y\",'Enrollment Form'!$AP991=\"No\"),\"-\",IF(AND($Q984=\"Y\",'Enrollment Form'!$AP991=\"Yes\",'Enrollment Form'!$AQ991<>\"\"),\"Y\",\"N\"))))","v":""},{"$f":"IF($B984=\"N\",\"\",IF(OR('Enrollment Form'!$B991<>\"Subscriber\",'Enrollment Form'!$C991=\"ROC\"),\"-\",IF(AND('Enrollment Form'!$B991=\"Subscriber\",'Enrollment Form'!$C991=\"Enroll\",'Enrollment Form'!$CO991<>\"\"),\"Y\",\"N\")))","v":""},{"$f":"IF($B984=\"N\",\"\",IF($S984=\"-\",\"-\",IF(AND($S984=\"Y\",'Enrollment Form'!$CO991=\"No\"),\"-\",IF(AND($S984=\"Y\",'Enrollment Form'!$CO991=\"Yes\",'Enrollment Form'!$CP991<>\"\"),\"Y\",\"N\"))))","v":""},{"$f":"IF(OR('Enrollment Form'!$AV991=\"Yes\",'Enrollment Form'!$AV991=\"\"),\"-\",IF(AND('Enrollment Form'!$AV991=\"No\",ISERROR(FIND(\"HMO\",VLOOKUP('Enrollment Form'!G991,'Enrollment Form'!H$11:J$1000,3,FALSE),1))=FALSE,COUNTA('Enrollment Form'!$AW991:$AZ991)=4),\"Y\",\"N\"))","v":"-"},{"$f":"IF($B984=\"N\",\"\",IF('Enrollment Form'!$B991=\"Subscriber\",\"-\",IF(COUNTA('Enrollment Form'!$BE991,'Enrollment Form'!$BG991)=2,\"Y\",\"N\")))","v":""},{"$f":"IF($B984=\"N\",\"\",IF(OR('Enrollment Form'!$AU991=\"\",'Enrollment Form'!$AU991=\"No\"),\"-\",IF(AND('Enrollment Form'!$AU991=\"Yes\",COUNTA('Enrollment Form'!$CK991)=1),\"Y\",\"N\")))","v":""},{"$f":"IF(OR('Enrollment Form'!$CK991=\"\",'Enrollment Form'!$CK991=\"No\"),\"-\",IF(COUNTA('Enrollment Form'!$CM991:$CN991)=2,\"Y\",\"N\"))","v":"-"},{"$f":"IF($B984=\"N\",\"\",IF(COUNTIF('Enrollment Form'!$CZ991:$DO991,\"Other\")=COUNTA('Enrollment Form'!$DF991,'Enrollment Form'!$DA991,'Enrollment Form'!$DK991,'Enrollment Form'!$DP991),\"Y\",\"N\"))","v":""},{"$f":"IF($B984=\"N\",\"\",IF(OR('Enrollment Form'!B991<>\"Subscriber\",'Enrollment Form'!C991=\"ROC\",COUNTIF('Enrollment Form'!AS991:AT991,\"Yes\")>=1),\"-\",IF(AND('Enrollment Form'!C991=\"Enroll\",COUNTIF('Enrollment Form'!AS991:AT991,\"No\")=2,'Enrollment Form'!AU991=\"\"),\"N\",\"Y\")))","v":""},{"$f":"IF(OR(B984=\"N\",'Enrollment Form'!B991<>\"Subscriber\",'Enrollment Form'!C991=\"ROC\",'Enrollment Form'!O991<>\"Multiple of Salary\"),\"-\",IF(COUNTA('Enrollment Form'!T991:U991)<2,\"N\",\"Y\"))","v":"-"},{"$f":"IF(B984=\"N\",\"\",IF(OR('Enrollment Form'!C991=\"ROC\",'Enrollment Form'!B991<>\"Subscriber\",'Enrollment Form'!O991=\"Waive\",'Enrollment Form'!O991=\"\"),\"-\",IF('Enrollment Form'!P991=\"\",\"N\",\"Y\")))","v":""},{"$f":"IF($B984=\"N\",\"\",IF(AND('Enrollment Form'!$C991=\"ROC\",'Enrollment Form'!$DS991<>\"\"),\"Y\",IF(AND('Enrollment Form'!$C991=\"ROC\",'Enrollment Form'!$DS991=\"\"),\"N\",IF(AND('Enrollment Form'!$C991=\"Enroll\",'Enrollment Form'!$B991=\"Subscriber\",'Enrollment Form'!$CQ991=\"No\",'Enrollment Form'!$DS991=\"\"),\"N\",IF(AND('Enrollment Form'!$C991=\"Enroll\",'Enrollment Form'!$B991=\"Subscriber\",'Enrollment Form'!$CQ991=\"Yes\"),\"-\",\"Y\")))))","v":""},{"$f":"IF($B984=\"N\",\"\",IF(AND('Enrollment Form'!$C991=\"ROC\",'Enrollment Form'!$DT991<>\"\"),\"Y\",IF(AND('Enrollment Form'!$C991=\"ROC\",'Enrollment Form'!$DT991=\"\"),\"N\",IF(AND('Enrollment Form'!$C991=\"Enroll\",'Enrollment Form'!$B991=\"Subscriber\",'Enrollment Form'!$CQ991=\"No\",'Enrollment Form'!$DT991=\"\"),\"N\",IF(AND('Enrollment Form'!$C991=\"Enroll\",'Enrollment Form'!$B991=\"Subscriber\",'Enrollment Form'!$CQ991=\"Yes\"),\"-\",\"Y\")))))","v":""},{"$f":"IF('Enrollment Form'!AH991=\"\",\"\",IF(ISERROR(SEARCH(\".\",'Enrollment Form'!AH991,SEARCH(\"@\",'Enrollment Form'!AH991))),\"N\",\"Y\"))","v":""},{"$f":"IF(OR($B984=\"N\",'Enrollment Form'!$G991=\"\"),\"\",IF('Enrollment Form'!$B991<>\"Subscriber\",\"-\",IF(COUNTIF('Enrollment Form'!$AS991:$AT991,\"Yes\")=2,\"N\",\"Y\")))","v":""},{"$f":"IF(OR('Enrollment Form'!$CC991=\"\",'Enrollment Form'!$CC991=\"No\"),\"-\",IF(AND('Enrollment Form'!$CC991=\"Yes\",'Enrollment Form'!$CD991=\"\"),\"N\",\"Y\"))","v":"-"},{"$f":"IF(OR('Enrollment Form'!$CE991=\"\",'Enrollment Form'!$CE991=\"No\"),\"-\",IF(AND('Enrollment Form'!$CE991=\"Yes\",'Enrollment Form'!$CF991=\"\"),\"N\",\"Y\"))","v":"-"},{"$f":"IF(OR('Enrollment Form'!$CG991=\"\",'Enrollment Form'!$CG991=\"No\"),\"-\",IF(AND('Enrollment Form'!$CG991=\"Yes\",'Enrollment Form'!$CH991=\"\"),\"N\",\"Y\"))","v":"-"},{"$f":"IF(OR('Enrollment Form'!$CG991=\"\",'Enrollment Form'!$CG991=\"No\"),\"-\",IF(AND('Enrollment Form'!$CG991=\"Yes\",'Enrollment Form'!$CI991=\"\"),\"N\",\"Y\"))","v":"-"},{"$f":"IF('Enrollment Form'!B991<>\"Subscriber\",\"-\",IF(AND('Enrollment Form'!B991=\"Subscriber\",'Enrollment Form'!C991=\"Enroll\",'Enrollment Form'!AA991=\"\"),\"N\",\"Y\"))","v":"-"},{"$f":"IF(OR('Enrollment Form'!B991=\"Subscriber\",'Enrollment Form'!B991=\"\"),\"-\",IF('Enrollment Form'!BI991=\"\",\"N\",\"Y\"))","v":"-"},{"$f":"IF('Enrollment Form'!B991<>\"Subscriber\",\"-\",IF(AND('Enrollment Form'!B991=\"Subscriber\",'Enrollment Form'!G991=\"\"),\"N\",\"Y\"))","v":"-"},{"$f":"IF('Enrollment Form'!A991=\"\",\"\",IF('Enrollment Form'!B991=\"Subscriber\",\"-\",IF(AND('Enrollment Form'!B991<>\"Subscriber\",'Enrollment Form'!G991='Enrollment Form'!H991),\"N\",\"Y\")))","v":""},0]
[992,{"$f":"IF('Enrollment Form'!$A992<>\"\",\"Y\",\"N\")","v":"N"},{"$f":"IF(AND('Enrollment Form'!$B992=\"\",'Enrollment Form'!$C992<>\"\"),\"N\",IF($B985=\"N\",\"\",\"Y\"))","v":""},{"$f":"IF(OR($B985=\"N\",'Enrollment Form'!G992=\"\"),\"\",IF('Enrollment Form'!$B992<>\"Subscriber\",\"\",IF('Enrollment Form'!$G992='Enrollment Form'!$H992,\"Y\",\"N\")))","v":""},{"$f":"IF($B985=\"N\",\"\",IF(AND(COUNTIFS('Enrollment Form'!$H$11:$H$1000,'Enrollment Form'!$H992,'Enrollment Form'!$B$11:$B$1000,'Enrollment Form'!$B992)>1,'Enrollment Form'!$H992<>\"\"),\"N\",\"Y\"))","v":""},{"$f":"IF($B985=\"N\",\"\",IF(LEN('Enrollment Form'!$Y992)=0,\"\",IF(LEN('Enrollment Form'!$Y992)<>5,\"N\",\"Y\")))","v":""},{"$f":"IF($B985=\"N\",\"\",IF(LEN('Enrollment Form'!$AD992=0),\"\",IF(LEN('Enrollment Form'!$AD992)<>5,\"N\",\"Y\")))","v":""},{"$f":"IF($B985=\"N\",\"\",IF(LEN('Enrollment Form'!$BL992=0),\"\",IF(LEN('Enrollment Form'!$BL992)<>5,\"N\",\"Y\")))","v":""},{"$f":"IF($B985=\"N\",\"\",IF(LEN('Enrollment Form'!$AE992)=0,\"\",IF(LEN('Enrollment Form'!$AE992)<>10,\"N\",\"Y\")))","v":""},{"$f":"IF($B985=\"N\",\"\",IF(LEN('Enrollment Form'!$AF992)=0,\"\",IF(LEN('Enrollment Form'!$AF992)<>10,\"N\",\"Y\")))","v":""},{"$f":"IF('Enrollment Form'!$O992<>\"Graded\",\"-\",IF(AND('Enrollment Form'!$O992=\"Graded\",'Enrollment Form'!$AO992<>\"\"),\"Y\",\"N\"))","v":"-"},{"$f":"IF($B985=\"N\",\"\",IF(OR('Enrollment Form'!$B992<>\"Subscriber\",'Enrollment Form'!$C992=\"ROC\"),\"-\",IF(AND('Enrollment Form'!$B992=\"Subscriber\",'Enrollment Form'!$C992=\"Enroll\",'Enrollment Form'!$AJ992<>\"\"),\"Y\",\"N\")))","v":""},{"$f":"IF($B985=\"N\",\"\",IF(OR('Enrollment Form'!$B992<>\"Subscriber\",'Enrollment Form'!$C992=\"ROC\"),\"-\",IF(AND('Enrollment Form'!$B992=\"Subscriber\",'Enrollment Form'!$C992=\"Enroll\",'Enrollment Form'!$AK992<>\"\"),\"Y\",\"N\")))","v":""},{"$f":"IF($B985=\"N\",\"\",IF(OR('Enrollment Form'!$B992<>\"Subscriber\",'Enrollment Form'!$C992=\"ROC\"),\"-\",IF(AND('Enrollment Form'!$B992=\"Subscriber\",'Enrollment Form'!$C992=\"Enroll\",'Enrollment Form'!$AL992<>\"\"),\"Y\",\"N\")))","v":""},{"$f":"IF($B985=\"N\",\"\",IF(OR('Enrollment Form'!$B992<>\"Subscriber\",'Enrollment Form'!$C992=\"ROC\"),\"-\",IF(AND('Enrollment Form'!$B992=\"Subscriber\",'Enrollment Form'!$C992=\"Enroll\",'Enrollment Form'!$AM992<>\"\"),\"Y\",\"N\")))","v":""},{"$f":"IF($B985=\"N\",\"\",IF(OR('Enrollment Form'!$B992<>\"Subscriber\",'Enrollment Form'!$C992=\"ROC\"),\"-\",IF(AND('Enrollment Form'!$B992=\"Subscriber\",'Enrollment Form'!$C992=\"Enroll\",'Enrollment Form'!$AN992<>\"\"),\"Y\",\"N\")))","v":""},{"$f":"IF($B985=\"N\",\"\",IF(OR('Enrollment Form'!$B992<>\"Subscriber\",'Enrollment Form'!$C992=\"ROC\"),\"-\",IF(AND('Enrollment Form'!$B992=\"Subscriber\",'Enrollment Form'!$C992=\"Enroll\",'Enrollment Form'!$AP992<>\"\"),\"Y\",\"N\")))","v":""},{"$f":"IF($B985=\"N\",\"\",IF($Q985=\"-\",\"-\",IF(AND($Q985=\"Y\",'Enrollment Form'!$AP992=\"No\"),\"-\",IF(AND($Q985=\"Y\",'Enrollment Form'!$AP992=\"Yes\",'Enrollment Form'!$AQ992<>\"\"),\"Y\",\"N\"))))","v":""},{"$f":"IF($B985=\"N\",\"\",IF(OR('Enrollment Form'!$B992<>\"Subscriber\",'Enrollment Form'!$C992=\"ROC\"),\"-\",IF(AND('Enrollment Form'!$B992=\"Subscriber\",'Enrollment Form'!$C992=\"Enroll\",'Enrollment Form'!$CO992<>\"\"),\"Y\",\"N\")))","v":""},{"$f":"IF($B985=\"N\",\"\",IF($S985=\"-\",\"-\",IF(AND($S985=\"Y\",'Enrollment Form'!$CO992=\"No\"),\"-\",IF(AND($S985=\"Y\",'Enrollment Form'!$CO992=\"Yes\",'Enrollment Form'!$CP992<>\"\"),\"Y\",\"N\"))))","v":""},{"$f":"IF(OR('Enrollment Form'!$AV992=\"Yes\",'Enrollment Form'!$AV992=\"\"),\"-\",IF(AND('Enrollment Form'!$AV992=\"No\",ISERROR(FIND(\"HMO\",VLOOKUP('Enrollment Form'!G992,'Enrollment Form'!H$11:J$1000,3,FALSE),1))=FALSE,COUNTA('Enrollment Form'!$AW992:$AZ992)=4),\"Y\",\"N\"))","v":"-"},{"$f":"IF($B985=\"N\",\"\",IF('Enrollment Form'!$B992=\"Subscriber\",\"-\",IF(COUNTA('Enrollment Form'!$BE992,'Enrollment Form'!$BG992)=2,\"Y\",\"N\")))","v":""},{"$f":"IF($B985=\"N\",\"\",IF(OR('Enrollment Form'!$AU992=\"\",'Enrollment Form'!$AU992=\"No\"),\"-\",IF(AND('Enrollment Form'!$AU992=\"Yes\",COUNTA('Enrollment Form'!$CK992)=1),\"Y\",\"N\")))","v":""},{"$f":"IF(OR('Enrollment Form'!$CK992=\"\",'Enrollment Form'!$CK992=\"No\"),\"-\",IF(COUNTA('Enrollment Form'!$CM992:$CN992)=2,\"Y\",\"N\"))","v":"-"},{"$f":"IF($B985=\"N\",\"\",IF(COUNTIF('Enrollment Form'!$CZ992:$DO992,\"Other\")=COUNTA('Enrollment Form'!$DF992,'Enrollment Form'!$DA992,'Enrollment Form'!$DK992,'Enrollment Form'!$DP992),\"Y\",\"N\"))","v":""},{"$f":"IF($B985=\"N\",\"\",IF(OR('Enrollment Form'!B992<>\"Subscriber\",'Enrollment Form'!C992=\"ROC\",COUNTIF('Enrollment Form'!AS992:AT992,\"Yes\")>=1),\"-\",IF(AND('Enrollment Form'!C992=\"Enroll\",COUNTIF('Enrollment Form'!AS992:AT992,\"No\")=2,'Enrollment Form'!AU992=\"\"),\"N\",\"Y\")))","v":""},{"$f":"IF(OR(B985=\"N\",'Enrollment Form'!B992<>\"Subscriber\",'Enrollment Form'!C992=\"ROC\",'Enrollment Form'!O992<>\"Multiple of Salary\"),\"-\",IF(COUNTA('Enrollment Form'!T992:U992)<2,\"N\",\"Y\"))","v":"-"},{"$f":"IF(B985=\"N\",\"\",IF(OR('Enrollment Form'!C992=\"ROC\",'Enrollment Form'!B992<>\"Subscriber\",'Enrollment Form'!O992=\"Waive\",'Enrollment Form'!O992=\"\"),\"-\",IF('Enrollment Form'!P992=\"\",\"N\",\"Y\")))","v":""},{"$f":"IF($B985=\"N\",\"\",IF(AND('Enrollment Form'!$C992=\"ROC\",'Enrollment Form'!$DS992<>\"\"),\"Y\",IF(AND('Enrollment Form'!$C992=\"ROC\",'Enrollment Form'!$DS992=\"\"),\"N\",IF(AND('Enrollment Form'!$C992=\"Enroll\",'Enrollment Form'!$B992=\"Subscriber\",'Enrollment Form'!$CQ992=\"No\",'Enrollment Form'!$DS992=\"\"),\"N\",IF(AND('Enrollment Form'!$C992=\"Enroll\",'Enrollment Form'!$B992=\"Subscriber\",'Enrollment Form'!$CQ992=\"Yes\"),\"-\",\"Y\")))))","v":""},{"$f":"IF($B985=\"N\",\"\",IF(AND('Enrollment Form'!$C992=\"ROC\",'Enrollment Form'!$DT992<>\"\"),\"Y\",IF(AND('Enrollment Form'!$C992=\"ROC\",'Enrollment Form'!$DT992=\"\"),\"N\",IF(AND('Enrollment Form'!$C992=\"Enroll\",'Enrollment Form'!$B992=\"Subscriber\",'Enrollment Form'!$CQ992=\"No\",'Enrollment Form'!$DT992=\"\"),\"N\",IF(AND('Enrollment Form'!$C992=\"Enroll\",'Enrollment Form'!$B992=\"Subscriber\",'Enrollment Form'!$CQ992=\"Yes\"),\"-\",\"Y\")))))","v":""},{"$f":"IF('Enrollment Form'!AH992=\"\",\"\",IF(ISERROR(SEARCH(\".\",'Enrollment Form'!AH992,SEARCH(\"@\",'Enrollment Form'!AH992))),\"N\",\"Y\"))","v":""},{"$f":"IF(OR($B985=\"N\",'Enrollment Form'!$G992=\"\"),\"\",IF('Enrollment Form'!$B992<>\"Subscriber\",\"-\",IF(COUNTIF('Enrollment Form'!$AS992:$AT992,\"Yes\")=2,\"N\",\"Y\")))","v":""},{"$f":"IF(OR('Enrollment Form'!$CC992=\"\",'Enrollment Form'!$CC992=\"No\"),\"-\",IF(AND('Enrollment Form'!$CC992=\"Yes\",'Enrollment Form'!$CD992=\"\"),\"N\",\"Y\"))","v":"-"},{"$f":"IF(OR('Enrollment Form'!$CE992=\"\",'Enrollment Form'!$CE992=\"No\"),\"-\",IF(AND('Enrollment Form'!$CE992=\"Yes\",'Enrollment Form'!$CF992=\"\"),\"N\",\"Y\"))","v":"-"},{"$f":"IF(OR('Enrollment Form'!$CG992=\"\",'Enrollment Form'!$CG992=\"No\"),\"-\",IF(AND('Enrollment Form'!$CG992=\"Yes\",'Enrollment Form'!$CH992=\"\"),\"N\",\"Y\"))","v":"-"},{"$f":"IF(OR('Enrollment Form'!$CG992=\"\",'Enrollment Form'!$CG992=\"No\"),\"-\",IF(AND('Enrollment Form'!$CG992=\"Yes\",'Enrollment Form'!$CI992=\"\"),\"N\",\"Y\"))","v":"-"},{"$f":"IF('Enrollment Form'!B992<>\"Subscriber\",\"-\",IF(AND('Enrollment Form'!B992=\"Subscriber\",'Enrollment Form'!C992=\"Enroll\",'Enrollment Form'!AA992=\"\"),\"N\",\"Y\"))","v":"-"},{"$f":"IF(OR('Enrollment Form'!B992=\"Subscriber\",'Enrollment Form'!B992=\"\"),\"-\",IF('Enrollment Form'!BI992=\"\",\"N\",\"Y\"))","v":"-"},{"$f":"IF('Enrollment Form'!B992<>\"Subscriber\",\"-\",IF(AND('Enrollment Form'!B992=\"Subscriber\",'Enrollment Form'!G992=\"\"),\"N\",\"Y\"))","v":"-"},{"$f":"IF('Enrollment Form'!A992=\"\",\"\",IF('Enrollment Form'!B992=\"Subscriber\",\"-\",IF(AND('Enrollment Form'!B992<>\"Subscriber\",'Enrollment Form'!G992='Enrollment Form'!H992),\"N\",\"Y\")))","v":""},0]
[993,{"$f":"IF('Enrollment Form'!$A993<>\"\",\"Y\",\"N\")","v":"N"},{"$f":"IF(AND('Enrollment Form'!$B993=\"\",'Enrollment Form'!$C993<>\"\"),\"N\",IF($B986=\"N\",\"\",\"Y\"))","v":""},{"$f":"IF(OR($B986=\"N\",'Enrollment Form'!G993=\"\"),\"\",IF('Enrollment Form'!$B993<>\"Subscriber\",\"\",IF('Enrollment Form'!$G993='Enrollment Form'!$H993,\"Y\",\"N\")))","v":""},{"$f":"IF($B986=\"N\",\"\",IF(AND(COUNTIFS('Enrollment Form'!$H$11:$H$1000,'Enrollment Form'!$H993,'Enrollment Form'!$B$11:$B$1000,'Enrollment Form'!$B993)>1,'Enrollment Form'!$H993<>\"\"),\"N\",\"Y\"))","v":""},{"$f":"IF($B986=\"N\",\"\",IF(LEN('Enrollment Form'!$Y993)=0,\"\",IF(LEN('Enrollment Form'!$Y993)<>5,\"N\",\"Y\")))","v":""},{"$f":"IF($B986=\"N\",\"\",IF(LEN('Enrollment Form'!$AD993=0),\"\",IF(LEN('Enrollment Form'!$AD993)<>5,\"N\",\"Y\")))","v":""},{"$f":"IF($B986=\"N\",\"\",IF(LEN('Enrollment Form'!$BL993=0),\"\",IF(LEN('Enrollment Form'!$BL993)<>5,\"N\",\"Y\")))","v":""},{"$f":"IF($B986=\"N\",\"\",IF(LEN('Enrollment Form'!$AE993)=0,\"\",IF(LEN('Enrollment Form'!$AE993)<>10,\"N\",\"Y\")))","v":""},{"$f":"IF($B986=\"N\",\"\",IF(LEN('Enrollment Form'!$AF993)=0,\"\",IF(LEN('Enrollment Form'!$AF993)<>10,\"N\",\"Y\")))","v":""},{"$f":"IF('Enrollment Form'!$O993<>\"Graded\",\"-\",IF(AND('Enrollment Form'!$O993=\"Graded\",'Enrollment Form'!$AO993<>\"\"),\"Y\",\"N\"))","v":"-"},{"$f":"IF($B986=\"N\",\"\",IF(OR('Enrollment Form'!$B993<>\"Subscriber\",'Enrollment Form'!$C993=\"ROC\"),\"-\",IF(AND('Enrollment Form'!$B993=\"Subscriber\",'Enrollment Form'!$C993=\"Enroll\",'Enrollment Form'!$AJ993<>\"\"),\"Y\",\"N\")))","v":""},{"$f":"IF($B986=\"N\",\"\",IF(OR('Enrollment Form'!$B993<>\"Subscriber\",'Enrollment Form'!$C993=\"ROC\"),\"-\",IF(AND('Enrollment Form'!$B993=\"Subscriber\",'Enrollment Form'!$C993=\"Enroll\",'Enrollment Form'!$AK993<>\"\"),\"Y\",\"N\")))","v":""},{"$f":"IF($B986=\"N\",\"\",IF(OR('Enrollment Form'!$B993<>\"Subscriber\",'Enrollment Form'!$C993=\"ROC\"),\"-\",IF(AND('Enrollment Form'!$B993=\"Subscriber\",'Enrollment Form'!$C993=\"Enroll\",'Enrollment Form'!$AL993<>\"\"),\"Y\",\"N\")))","v":""},{"$f":"IF($B986=\"N\",\"\",IF(OR('Enrollment Form'!$B993<>\"Subscriber\",'Enrollment Form'!$C993=\"ROC\"),\"-\",IF(AND('Enrollment Form'!$B993=\"Subscriber\",'Enrollment Form'!$C993=\"Enroll\",'Enrollment Form'!$AM993<>\"\"),\"Y\",\"N\")))","v":""},{"$f":"IF($B986=\"N\",\"\",IF(OR('Enrollment Form'!$B993<>\"Subscriber\",'Enrollment Form'!$C993=\"ROC\"),\"-\",IF(AND('Enrollment Form'!$B993=\"Subscriber\",'Enrollment Form'!$C993=\"Enroll\",'Enrollment Form'!$AN993<>\"\"),\"Y\",\"N\")))","v":""},{"$f":"IF($B986=\"N\",\"\",IF(OR('Enrollment Form'!$B993<>\"Subscriber\",'Enrollment Form'!$C993=\"ROC\"),\"-\",IF(AND('Enrollment Form'!$B993=\"Subscriber\",'Enrollment Form'!$C993=\"Enroll\",'Enrollment Form'!$AP993<>\"\"),\"Y\",\"N\")))","v":""},{"$f":"IF($B986=\"N\",\"\",IF($Q986=\"-\",\"-\",IF(AND($Q986=\"Y\",'Enrollment Form'!$AP993=\"No\"),\"-\",IF(AND($Q986=\"Y\",'Enrollment Form'!$AP993=\"Yes\",'Enrollment Form'!$AQ993<>\"\"),\"Y\",\"N\"))))","v":""},{"$f":"IF($B986=\"N\",\"\",IF(OR('Enrollment Form'!$B993<>\"Subscriber\",'Enrollment Form'!$C993=\"ROC\"),\"-\",IF(AND('Enrollment Form'!$B993=\"Subscriber\",'Enrollment Form'!$C993=\"Enroll\",'Enrollment Form'!$CO993<>\"\"),\"Y\",\"N\")))","v":""},{"$f":"IF($B986=\"N\",\"\",IF($S986=\"-\",\"-\",IF(AND($S986=\"Y\",'Enrollment Form'!$CO993=\"No\"),\"-\",IF(AND($S986=\"Y\",'Enrollment Form'!$CO993=\"Yes\",'Enrollment Form'!$CP993<>\"\"),\"Y\",\"N\"))))","v":""},{"$f":"IF(OR('Enrollment Form'!$AV993=\"Yes\",'Enrollment Form'!$AV993=\"\"),\"-\",IF(AND('Enrollment Form'!$AV993=\"No\",ISERROR(FIND(\"HMO\",VLOOKUP('Enrollment Form'!G993,'Enrollment Form'!H$11:J$1000,3,FALSE),1))=FALSE,COUNTA('Enrollment Form'!$AW993:$AZ993)=4),\"Y\",\"N\"))","v":"-"},{"$f":"IF($B986=\"N\",\"\",IF('Enrollment Form'!$B993=\"Subscriber\",\"-\",IF(COUNTA('Enrollment Form'!$BE993,'Enrollment Form'!$BG993)=2,\"Y\",\"N\")))","v":""},{"$f":"IF($B986=\"N\",\"\",IF(OR('Enrollment Form'!$AU993=\"\",'Enrollment Form'!$AU993=\"No\"),\"-\",IF(AND('Enrollment Form'!$AU993=\"Yes\",COUNTA('Enrollment Form'!$CK993)=1),\"Y\",\"N\")))","v":""},{"$f":"IF(OR('Enrollment Form'!$CK993=\"\",'Enrollment Form'!$CK993=\"No\"),\"-\",IF(COUNTA('Enrollment Form'!$CM993:$CN993)=2,\"Y\",\"N\"))","v":"-"},{"$f":"IF($B986=\"N\",\"\",IF(COUNTIF('Enrollment Form'!$CZ993:$DO993,\"Other\")=COUNTA('Enrollment Form'!$DF993,'Enrollment Form'!$DA993,'Enrollment Form'!$DK993,'Enrollment Form'!$DP993),\"Y\",\"N\"))","v":""},{"$f":"IF($B986=\"N\",\"\",IF(OR('Enrollment Form'!B993<>\"Subscriber\",'Enrollment Form'!C993=\"ROC\",COUNTIF('Enrollment Form'!AS993:AT993,\"Yes\")>=1),\"-\",IF(AND('Enrollment Form'!C993=\"Enroll\",COUNTIF('Enrollment Form'!AS993:AT993,\"No\")=2,'Enrollment Form'!AU993=\"\"),\"N\",\"Y\")))","v":""},{"$f":"IF(OR(B986=\"N\",'Enrollment Form'!B993<>\"Subscriber\",'Enrollment Form'!C993=\"ROC\",'Enrollment Form'!O993<>\"Multiple of Salary\"),\"-\",IF(COUNTA('Enrollment Form'!T993:U993)<2,\"N\",\"Y\"))","v":"-"},{"$f":"IF(B986=\"N\",\"\",IF(OR('Enrollment Form'!C993=\"ROC\",'Enrollment Form'!B993<>\"Subscriber\",'Enrollment Form'!O993=\"Waive\",'Enrollment Form'!O993=\"\"),\"-\",IF('Enrollment Form'!P993=\"\",\"N\",\"Y\")))","v":""},{"$f":"IF($B986=\"N\",\"\",IF(AND('Enrollment Form'!$C993=\"ROC\",'Enrollment Form'!$DS993<>\"\"),\"Y\",IF(AND('Enrollment Form'!$C993=\"ROC\",'Enrollment Form'!$DS993=\"\"),\"N\",IF(AND('Enrollment Form'!$C993=\"Enroll\",'Enrollment Form'!$B993=\"Subscriber\",'Enrollment Form'!$CQ993=\"No\",'Enrollment Form'!$DS993=\"\"),\"N\",IF(AND('Enrollment Form'!$C993=\"Enroll\",'Enrollment Form'!$B993=\"Subscriber\",'Enrollment Form'!$CQ993=\"Yes\"),\"-\",\"Y\")))))","v":""},{"$f":"IF($B986=\"N\",\"\",IF(AND('Enrollment Form'!$C993=\"ROC\",'Enrollment Form'!$DT993<>\"\"),\"Y\",IF(AND('Enrollment Form'!$C993=\"ROC\",'Enrollment Form'!$DT993=\"\"),\"N\",IF(AND('Enrollment Form'!$C993=\"Enroll\",'Enrollment Form'!$B993=\"Subscriber\",'Enrollment Form'!$CQ993=\"No\",'Enrollment Form'!$DT993=\"\"),\"N\",IF(AND('Enrollment Form'!$C993=\"Enroll\",'Enrollment Form'!$B993=\"Subscriber\",'Enrollment Form'!$CQ993=\"Yes\"),\"-\",\"Y\")))))","v":""},{"$f":"IF('Enrollment Form'!AH993=\"\",\"\",IF(ISERROR(SEARCH(\".\",'Enrollment Form'!AH993,SEARCH(\"@\",'Enrollment Form'!AH993))),\"N\",\"Y\"))","v":""},{"$f":"IF(OR($B986=\"N\",'Enrollment Form'!$G993=\"\"),\"\",IF('Enrollment Form'!$B993<>\"Subscriber\",\"-\",IF(COUNTIF('Enrollment Form'!$AS993:$AT993,\"Yes\")=2,\"N\",\"Y\")))","v":""},{"$f":"IF(OR('Enrollment Form'!$CC993=\"\",'Enrollment Form'!$CC993=\"No\"),\"-\",IF(AND('Enrollment Form'!$CC993=\"Yes\",'Enrollment Form'!$CD993=\"\"),\"N\",\"Y\"))","v":"-"},{"$f":"IF(OR('Enrollment Form'!$CE993=\"\",'Enrollment Form'!$CE993=\"No\"),\"-\",IF(AND('Enrollment Form'!$CE993=\"Yes\",'Enrollment Form'!$CF993=\"\"),\"N\",\"Y\"))","v":"-"},{"$f":"IF(OR('Enrollment Form'!$CG993=\"\",'Enrollment Form'!$CG993=\"No\"),\"-\",IF(AND('Enrollment Form'!$CG993=\"Yes\",'Enrollment Form'!$CH993=\"\"),\"N\",\"Y\"))","v":"-"},{"$f":"IF(OR('Enrollment Form'!$CG993=\"\",'Enrollment Form'!$CG993=\"No\"),\"-\",IF(AND('Enrollment Form'!$CG993=\"Yes\",'Enrollment Form'!$CI993=\"\"),\"N\",\"Y\"))","v":"-"},{"$f":"IF('Enrollment Form'!B993<>\"Subscriber\",\"-\",IF(AND('Enrollment Form'!B993=\"Subscriber\",'Enrollment Form'!C993=\"Enroll\",'Enrollment Form'!AA993=\"\"),\"N\",\"Y\"))","v":"-"},{"$f":"IF(OR('Enrollment Form'!B993=\"Subscriber\",'Enrollment Form'!B993=\"\"),\"-\",IF('Enrollment Form'!BI993=\"\",\"N\",\"Y\"))","v":"-"},{"$f":"IF('Enrollment Form'!B993<>\"Subscriber\",\"-\",IF(AND('Enrollment Form'!B993=\"Subscriber\",'Enrollment Form'!G993=\"\"),\"N\",\"Y\"))","v":"-"},{"$f":"IF('Enrollment Form'!A993=\"\",\"\",IF('Enrollment Form'!B993=\"Subscriber\",\"-\",IF(AND('Enrollment Form'!B993<>\"Subscriber\",'Enrollment Form'!G993='Enrollment Form'!H993),\"N\",\"Y\")))","v":""},0]
[994,{"$f":"IF('Enrollment Form'!$A994<>\"\",\"Y\",\"N\")","v":"N"},{"$f":"IF(AND('Enrollment Form'!$B994=\"\",'Enrollment Form'!$C994<>\"\"),\"N\",IF($B987=\"N\",\"\",\"Y\"))","v":""},{"$f":"IF(OR($B987=\"N\",'Enrollment Form'!G994=\"\"),\"\",IF('Enrollment Form'!$B994<>\"Subscriber\",\"\",IF('Enrollment Form'!$G994='Enrollment Form'!$H994,\"Y\",\"N\")))","v":""},{"$f":"IF($B987=\"N\",\"\",IF(AND(COUNTIFS('Enrollment Form'!$H$11:$H$1000,'Enrollment Form'!$H994,'Enrollment Form'!$B$11:$B$1000,'Enrollment Form'!$B994)>1,'Enrollment Form'!$H994<>\"\"),\"N\",\"Y\"))","v":""},{"$f":"IF($B987=\"N\",\"\",IF(LEN('Enrollment Form'!$Y994)=0,\"\",IF(LEN('Enrollment Form'!$Y994)<>5,\"N\",\"Y\")))","v":""},{"$f":"IF($B987=\"N\",\"\",IF(LEN('Enrollment Form'!$AD994=0),\"\",IF(LEN('Enrollment Form'!$AD994)<>5,\"N\",\"Y\")))","v":""},{"$f":"IF($B987=\"N\",\"\",IF(LEN('Enrollment Form'!$BL994=0),\"\",IF(LEN('Enrollment Form'!$BL994)<>5,\"N\",\"Y\")))","v":""},{"$f":"IF($B987=\"N\",\"\",IF(LEN('Enrollment Form'!$AE994)=0,\"\",IF(LEN('Enrollment Form'!$AE994)<>10,\"N\",\"Y\")))","v":""},{"$f":"IF($B987=\"N\",\"\",IF(LEN('Enrollment Form'!$AF994)=0,\"\",IF(LEN('Enrollment Form'!$AF994)<>10,\"N\",\"Y\")))","v":""},{"$f":"IF('Enrollment Form'!$O994<>\"Graded\",\"-\",IF(AND('Enrollment Form'!$O994=\"Graded\",'Enrollment Form'!$AO994<>\"\"),\"Y\",\"N\"))","v":"-"},{"$f":"IF($B987=\"N\",\"\",IF(OR('Enrollment Form'!$B994<>\"Subscriber\",'Enrollment Form'!$C994=\"ROC\"),\"-\",IF(AND('Enrollment Form'!$B994=\"Subscriber\",'Enrollment Form'!$C994=\"Enroll\",'Enrollment Form'!$AJ994<>\"\"),\"Y\",\"N\")))","v":""},{"$f":"IF($B987=\"N\",\"\",IF(OR('Enrollment Form'!$B994<>\"Subscriber\",'Enrollment Form'!$C994=\"ROC\"),\"-\",IF(AND('Enrollment Form'!$B994=\"Subscriber\",'Enrollment Form'!$C994=\"Enroll\",'Enrollment Form'!$AK994<>\"\"),\"Y\",\"N\")))","v":""},{"$f":"IF($B987=\"N\",\"\",IF(OR('Enrollment Form'!$B994<>\"Subscriber\",'Enrollment Form'!$C994=\"ROC\"),\"-\",IF(AND('Enrollment Form'!$B994=\"Subscriber\",'Enrollment Form'!$C994=\"Enroll\",'Enrollment Form'!$AL994<>\"\"),\"Y\",\"N\")))","v":""},{"$f":"IF($B987=\"N\",\"\",IF(OR('Enrollment Form'!$B994<>\"Subscriber\",'Enrollment Form'!$C994=\"ROC\"),\"-\",IF(AND('Enrollment Form'!$B994=\"Subscriber\",'Enrollment Form'!$C994=\"Enroll\",'Enrollment Form'!$AM994<>\"\"),\"Y\",\"N\")))","v":""},{"$f":"IF($B987=\"N\",\"\",IF(OR('Enrollment Form'!$B994<>\"Subscriber\",'Enrollment Form'!$C994=\"ROC\"),\"-\",IF(AND('Enrollment Form'!$B994=\"Subscriber\",'Enrollment Form'!$C994=\"Enroll\",'Enrollment Form'!$AN994<>\"\"),\"Y\",\"N\")))","v":""},{"$f":"IF($B987=\"N\",\"\",IF(OR('Enrollment Form'!$B994<>\"Subscriber\",'Enrollment Form'!$C994=\"ROC\"),\"-\",IF(AND('Enrollment Form'!$B994=\"Subscriber\",'Enrollment Form'!$C994=\"Enroll\",'Enrollment Form'!$AP994<>\"\"),\"Y\",\"N\")))","v":""},{"$f":"IF($B987=\"N\",\"\",IF($Q987=\"-\",\"-\",IF(AND($Q987=\"Y\",'Enrollment Form'!$AP994=\"No\"),\"-\",IF(AND($Q987=\"Y\",'Enrollment Form'!$AP994=\"Yes\",'Enrollment Form'!$AQ994<>\"\"),\"Y\",\"N\"))))","v":""},{"$f":"IF($B987=\"N\",\"\",IF(OR('Enrollment Form'!$B994<>\"Subscriber\",'Enrollment Form'!$C994=\"ROC\"),\"-\",IF(AND('Enrollment Form'!$B994=\"Subscriber\",'Enrollment Form'!$C994=\"Enroll\",'Enrollment Form'!$CO994<>\"\"),\"Y\",\"N\")))","v":""},{"$f":"IF($B987=\"N\",\"\",IF($S987=\"-\",\"-\",IF(AND($S987=\"Y\",'Enrollment Form'!$CO994=\"No\"),\"-\",IF(AND($S987=\"Y\",'Enrollment Form'!$CO994=\"Yes\",'Enrollment Form'!$CP994<>\"\"),\"Y\",\"N\"))))","v":""},{"$f":"IF(OR('Enrollment Form'!$AV994=\"Yes\",'Enrollment Form'!$AV994=\"\"),\"-\",IF(AND('Enrollment Form'!$AV994=\"No\",ISERROR(FIND(\"HMO\",VLOOKUP('Enrollment Form'!G994,'Enrollment Form'!H$11:J$1000,3,FALSE),1))=FALSE,COUNTA('Enrollment Form'!$AW994:$AZ994)=4),\"Y\",\"N\"))","v":"-"},{"$f":"IF($B987=\"N\",\"\",IF('Enrollment Form'!$B994=\"Subscriber\",\"-\",IF(COUNTA('Enrollment Form'!$BE994,'Enrollment Form'!$BG994)=2,\"Y\",\"N\")))","v":""},{"$f":"IF($B987=\"N\",\"\",IF(OR('Enrollment Form'!$AU994=\"\",'Enrollment Form'!$AU994=\"No\"),\"-\",IF(AND('Enrollment Form'!$AU994=\"Yes\",COUNTA('Enrollment Form'!$CK994)=1),\"Y\",\"N\")))","v":""},{"$f":"IF(OR('Enrollment Form'!$CK994=\"\",'Enrollment Form'!$CK994=\"No\"),\"-\",IF(COUNTA('Enrollment Form'!$CM994:$CN994)=2,\"Y\",\"N\"))","v":"-"},{"$f":"IF($B987=\"N\",\"\",IF(COUNTIF('Enrollment Form'!$CZ994:$DO994,\"Other\")=COUNTA('Enrollment Form'!$DF994,'Enrollment Form'!$DA994,'Enrollment Form'!$DK994,'Enrollment Form'!$DP994),\"Y\",\"N\"))","v":""},{"$f":"IF($B987=\"N\",\"\",IF(OR('Enrollment Form'!B994<>\"Subscriber\",'Enrollment Form'!C994=\"ROC\",COUNTIF('Enrollment Form'!AS994:AT994,\"Yes\")>=1),\"-\",IF(AND('Enrollment Form'!C994=\"Enroll\",COUNTIF('Enrollment Form'!AS994:AT994,\"No\")=2,'Enrollment Form'!AU994=\"\"),\"N\",\"Y\")))","v":""},{"$f":"IF(OR(B987=\"N\",'Enrollment Form'!B994<>\"Subscriber\",'Enrollment Form'!C994=\"ROC\",'Enrollment Form'!O994<>\"Multiple of Salary\"),\"-\",IF(COUNTA('Enrollment Form'!T994:U994)<2,\"N\",\"Y\"))","v":"-"},{"$f":"IF(B987=\"N\",\"\",IF(OR('Enrollment Form'!C994=\"ROC\",'Enrollment Form'!B994<>\"Subscriber\",'Enrollment Form'!O994=\"Waive\",'Enrollment Form'!O994=\"\"),\"-\",IF('Enrollment Form'!P994=\"\",\"N\",\"Y\")))","v":""},{"$f":"IF($B987=\"N\",\"\",IF(AND('Enrollment Form'!$C994=\"ROC\",'Enrollment Form'!$DS994<>\"\"),\"Y\",IF(AND('Enrollment Form'!$C994=\"ROC\",'Enrollment Form'!$DS994=\"\"),\"N\",IF(AND('Enrollment Form'!$C994=\"Enroll\",'Enrollment Form'!$B994=\"Subscriber\",'Enrollment Form'!$CQ994=\"No\",'Enrollment Form'!$DS994=\"\"),\"N\",IF(AND('Enrollment Form'!$C994=\"Enroll\",'Enrollment Form'!$B994=\"Subscriber\",'Enrollment Form'!$CQ994=\"Yes\"),\"-\",\"Y\")))))","v":""},{"$f":"IF($B987=\"N\",\"\",IF(AND('Enrollment Form'!$C994=\"ROC\",'Enrollment Form'!$DT994<>\"\"),\"Y\",IF(AND('Enrollment Form'!$C994=\"ROC\",'Enrollment Form'!$DT994=\"\"),\"N\",IF(AND('Enrollment Form'!$C994=\"Enroll\",'Enrollment Form'!$B994=\"Subscriber\",'Enrollment Form'!$CQ994=\"No\",'Enrollment Form'!$DT994=\"\"),\"N\",IF(AND('Enrollment Form'!$C994=\"Enroll\",'Enrollment Form'!$B994=\"Subscriber\",'Enrollment Form'!$CQ994=\"Yes\"),\"-\",\"Y\")))))","v":""},{"$f":"IF('Enrollment Form'!AH994=\"\",\"\",IF(ISERROR(SEARCH(\".\",'Enrollment Form'!AH994,SEARCH(\"@\",'Enrollment Form'!AH994))),\"N\",\"Y\"))","v":""},{"$f":"IF(OR($B987=\"N\",'Enrollment Form'!$G994=\"\"),\"\",IF('Enrollment Form'!$B994<>\"Subscriber\",\"-\",IF(COUNTIF('Enrollment Form'!$AS994:$AT994,\"Yes\")=2,\"N\",\"Y\")))","v":""},{"$f":"IF(OR('Enrollment Form'!$CC994=\"\",'Enrollment Form'!$CC994=\"No\"),\"-\",IF(AND('Enrollment Form'!$CC994=\"Yes\",'Enrollment Form'!$CD994=\"\"),\"N\",\"Y\"))","v":"-"},{"$f":"IF(OR('Enrollment Form'!$CE994=\"\",'Enrollment Form'!$CE994=\"No\"),\"-\",IF(AND('Enrollment Form'!$CE994=\"Yes\",'Enrollment Form'!$CF994=\"\"),\"N\",\"Y\"))","v":"-"},{"$f":"IF(OR('Enrollment Form'!$CG994=\"\",'Enrollment Form'!$CG994=\"No\"),\"-\",IF(AND('Enrollment Form'!$CG994=\"Yes\",'Enrollment Form'!$CH994=\"\"),\"N\",\"Y\"))","v":"-"},{"$f":"IF(OR('Enrollment Form'!$CG994=\"\",'Enrollment Form'!$CG994=\"No\"),\"-\",IF(AND('Enrollment Form'!$CG994=\"Yes\",'Enrollment Form'!$CI994=\"\"),\"N\",\"Y\"))","v":"-"},{"$f":"IF('Enrollment Form'!B994<>\"Subscriber\",\"-\",IF(AND('Enrollment Form'!B994=\"Subscriber\",'Enrollment Form'!C994=\"Enroll\",'Enrollment Form'!AA994=\"\"),\"N\",\"Y\"))","v":"-"},{"$f":"IF(OR('Enrollment Form'!B994=\"Subscriber\",'Enrollment Form'!B994=\"\"),\"-\",IF('Enrollment Form'!BI994=\"\",\"N\",\"Y\"))","v":"-"},{"$f":"IF('Enrollment Form'!B994<>\"Subscriber\",\"-\",IF(AND('Enrollment Form'!B994=\"Subscriber\",'Enrollment Form'!G994=\"\"),\"N\",\"Y\"))","v":"-"},{"$f":"IF('Enrollment Form'!A994=\"\",\"\",IF('Enrollment Form'!B994=\"Subscriber\",\"-\",IF(AND('Enrollment Form'!B994<>\"Subscriber\",'Enrollment Form'!G994='Enrollment Form'!H994),\"N\",\"Y\")))","v":""},0]
[995,{"$f":"IF('Enrollment Form'!$A995<>\"\",\"Y\",\"N\")","v":"N"},{"$f":"IF(AND('Enrollment Form'!$B995=\"\",'Enrollment Form'!$C995<>\"\"),\"N\",IF($B988=\"N\",\"\",\"Y\"))","v":""},{"$f":"IF(OR($B988=\"N\",'Enrollment Form'!G995=\"\"),\"\",IF('Enrollment Form'!$B995<>\"Subscriber\",\"\",IF('Enrollment Form'!$G995='Enrollment Form'!$H995,\"Y\",\"N\")))","v":""},{"$f":"IF($B988=\"N\",\"\",IF(AND(COUNTIFS('Enrollment Form'!$H$11:$H$1000,'Enrollment Form'!$H995,'Enrollment Form'!$B$11:$B$1000,'Enrollment Form'!$B995)>1,'Enrollment Form'!$H995<>\"\"),\"N\",\"Y\"))","v":""},{"$f":"IF($B988=\"N\",\"\",IF(LEN('Enrollment Form'!$Y995)=0,\"\",IF(LEN('Enrollment Form'!$Y995)<>5,\"N\",\"Y\")))","v":""},{"$f":"IF($B988=\"N\",\"\",IF(LEN('Enrollment Form'!$AD995=0),\"\",IF(LEN('Enrollment Form'!$AD995)<>5,\"N\",\"Y\")))","v":""},{"$f":"IF($B988=\"N\",\"\",IF(LEN('Enrollment Form'!$BL995=0),\"\",IF(LEN('Enrollment Form'!$BL995)<>5,\"N\",\"Y\")))","v":""},{"$f":"IF($B988=\"N\",\"\",IF(LEN('Enrollment Form'!$AE995)=0,\"\",IF(LEN('Enrollment Form'!$AE995)<>10,\"N\",\"Y\")))","v":""},{"$f":"IF($B988=\"N\",\"\",IF(LEN('Enrollment Form'!$AF995)=0,\"\",IF(LEN('Enrollment Form'!$AF995)<>10,\"N\",\"Y\")))","v":""},{"$f":"IF('Enrollment Form'!$O995<>\"Graded\",\"-\",IF(AND('Enrollment Form'!$O995=\"Graded\",'Enrollment Form'!$AO995<>\"\"),\"Y\",\"N\"))","v":"-"},{"$f":"IF($B988=\"N\",\"\",IF(OR('Enrollment Form'!$B995<>\"Subscriber\",'Enrollment Form'!$C995=\"ROC\"),\"-\",IF(AND('Enrollment Form'!$B995=\"Subscriber\",'Enrollment Form'!$C995=\"Enroll\",'Enrollment Form'!$AJ995<>\"\"),\"Y\",\"N\")))","v":""},{"$f":"IF($B988=\"N\",\"\",IF(OR('Enrollment Form'!$B995<>\"Subscriber\",'Enrollment Form'!$C995=\"ROC\"),\"-\",IF(AND('Enrollment Form'!$B995=\"Subscriber\",'Enrollment Form'!$C995=\"Enroll\",'Enrollment Form'!$AK995<>\"\"),\"Y\",\"N\")))","v":""},{"$f":"IF($B988=\"N\",\"\",IF(OR('Enrollment Form'!$B995<>\"Subscriber\",'Enrollment Form'!$C995=\"ROC\"),\"-\",IF(AND('Enrollment Form'!$B995=\"Subscriber\",'Enrollment Form'!$C995=\"Enroll\",'Enrollment Form'!$AL995<>\"\"),\"Y\",\"N\")))","v":""},{"$f":"IF($B988=\"N\",\"\",IF(OR('Enrollment Form'!$B995<>\"Subscriber\",'Enrollment Form'!$C995=\"ROC\"),\"-\",IF(AND('Enrollment Form'!$B995=\"Subscriber\",'Enrollment Form'!$C995=\"Enroll\",'Enrollment Form'!$AM995<>\"\"),\"Y\",\"N\")))","v":""},{"$f":"IF($B988=\"N\",\"\",IF(OR('Enrollment Form'!$B995<>\"Subscriber\",'Enrollment Form'!$C995=\"ROC\"),\"-\",IF(AND('Enrollment Form'!$B995=\"Subscriber\",'Enrollment Form'!$C995=\"Enroll\",'Enrollment Form'!$AN995<>\"\"),\"Y\",\"N\")))","v":""},{"$f":"IF($B988=\"N\",\"\",IF(OR('Enrollment Form'!$B995<>\"Subscriber\",'Enrollment Form'!$C995=\"ROC\"),\"-\",IF(AND('Enrollment Form'!$B995=\"Subscriber\",'Enrollment Form'!$C995=\"Enroll\",'Enrollment Form'!$AP995<>\"\"),\"Y\",\"N\")))","v":""},{"$f":"IF($B988=\"N\",\"\",IF($Q988=\"-\",\"-\",IF(AND($Q988=\"Y\",'Enrollment Form'!$AP995=\"No\"),\"-\",IF(AND($Q988=\"Y\",'Enrollment Form'!$AP995=\"Yes\",'Enrollment Form'!$AQ995<>\"\"),\"Y\",\"N\"))))","v":""},{"$f":"IF($B988=\"N\",\"\",IF(OR('Enrollment Form'!$B995<>\"Subscriber\",'Enrollment Form'!$C995=\"ROC\"),\"-\",IF(AND('Enrollment Form'!$B995=\"Subscriber\",'Enrollment Form'!$C995=\"Enroll\",'Enrollment Form'!$CO995<>\"\"),\"Y\",\"N\")))","v":""},{"$f":"IF($B988=\"N\",\"\",IF($S988=\"-\",\"-\",IF(AND($S988=\"Y\",'Enrollment Form'!$CO995=\"No\"),\"-\",IF(AND($S988=\"Y\",'Enrollment Form'!$CO995=\"Yes\",'Enrollment Form'!$CP995<>\"\"),\"Y\",\"N\"))))","v":""},{"$f":"IF(OR('Enrollment Form'!$AV995=\"Yes\",'Enrollment Form'!$AV995=\"\"),\"-\",IF(AND('Enrollment Form'!$AV995=\"No\",ISERROR(FIND(\"HMO\",VLOOKUP('Enrollment Form'!G995,'Enrollment Form'!H$11:J$1000,3,FALSE),1))=FALSE,COUNTA('Enrollment Form'!$AW995:$AZ995)=4),\"Y\",\"N\"))","v":"-"},{"$f":"IF($B988=\"N\",\"\",IF('Enrollment Form'!$B995=\"Subscriber\",\"-\",IF(COUNTA('Enrollment Form'!$BE995,'Enrollment Form'!$BG995)=2,\"Y\",\"N\")))","v":""},{"$f":"IF($B988=\"N\",\"\",IF(OR('Enrollment Form'!$AU995=\"\",'Enrollment Form'!$AU995=\"No\"),\"-\",IF(AND('Enrollment Form'!$AU995=\"Yes\",COUNTA('Enrollment Form'!$CK995)=1),\"Y\",\"N\")))","v":""},{"$f":"IF(OR('Enrollment Form'!$CK995=\"\",'Enrollment Form'!$CK995=\"No\"),\"-\",IF(COUNTA('Enrollment Form'!$CM995:$CN995)=2,\"Y\",\"N\"))","v":"-"},{"$f":"IF($B988=\"N\",\"\",IF(COUNTIF('Enrollment Form'!$CZ995:$DO995,\"Other\")=COUNTA('Enrollment Form'!$DF995,'Enrollment Form'!$DA995,'Enrollment Form'!$DK995,'Enrollment Form'!$DP995),\"Y\",\"N\"))","v":""},{"$f":"IF($B988=\"N\",\"\",IF(OR('Enrollment Form'!B995<>\"Subscriber\",'Enrollment Form'!C995=\"ROC\",COUNTIF('Enrollment Form'!AS995:AT995,\"Yes\")>=1),\"-\",IF(AND('Enrollment Form'!C995=\"Enroll\",COUNTIF('Enrollment Form'!AS995:AT995,\"No\")=2,'Enrollment Form'!AU995=\"\"),\"N\",\"Y\")))","v":""},{"$f":"IF(OR(B988=\"N\",'Enrollment Form'!B995<>\"Subscriber\",'Enrollment Form'!C995=\"ROC\",'Enrollment Form'!O995<>\"Multiple of Salary\"),\"-\",IF(COUNTA('Enrollment Form'!T995:U995)<2,\"N\",\"Y\"))","v":"-"},{"$f":"IF(B988=\"N\",\"\",IF(OR('Enrollment Form'!C995=\"ROC\",'Enrollment Form'!B995<>\"Subscriber\",'Enrollment Form'!O995=\"Waive\",'Enrollment Form'!O995=\"\"),\"-\",IF('Enrollment Form'!P995=\"\",\"N\",\"Y\")))","v":""},{"$f":"IF($B988=\"N\",\"\",IF(AND('Enrollment Form'!$C995=\"ROC\",'Enrollment Form'!$DS995<>\"\"),\"Y\",IF(AND('Enrollment Form'!$C995=\"ROC\",'Enrollment Form'!$DS995=\"\"),\"N\",IF(AND('Enrollment Form'!$C995=\"Enroll\",'Enrollment Form'!$B995=\"Subscriber\",'Enrollment Form'!$CQ995=\"No\",'Enrollment Form'!$DS995=\"\"),\"N\",IF(AND('Enrollment Form'!$C995=\"Enroll\",'Enrollment Form'!$B995=\"Subscriber\",'Enrollment Form'!$CQ995=\"Yes\"),\"-\",\"Y\")))))","v":""},{"$f":"IF($B988=\"N\",\"\",IF(AND('Enrollment Form'!$C995=\"ROC\",'Enrollment Form'!$DT995<>\"\"),\"Y\",IF(AND('Enrollment Form'!$C995=\"ROC\",'Enrollment Form'!$DT995=\"\"),\"N\",IF(AND('Enrollment Form'!$C995=\"Enroll\",'Enrollment Form'!$B995=\"Subscriber\",'Enrollment Form'!$CQ995=\"No\",'Enrollment Form'!$DT995=\"\"),\"N\",IF(AND('Enrollment Form'!$C995=\"Enroll\",'Enrollment Form'!$B995=\"Subscriber\",'Enrollment Form'!$CQ995=\"Yes\"),\"-\",\"Y\")))))","v":""},{"$f":"IF('Enrollment Form'!AH995=\"\",\"\",IF(ISERROR(SEARCH(\".\",'Enrollment Form'!AH995,SEARCH(\"@\",'Enrollment Form'!AH995))),\"N\",\"Y\"))","v":""},{"$f":"IF(OR($B988=\"N\",'Enrollment Form'!$G995=\"\"),\"\",IF('Enrollment Form'!$B995<>\"Subscriber\",\"-\",IF(COUNTIF('Enrollment Form'!$AS995:$AT995,\"Yes\")=2,\"N\",\"Y\")))","v":""},{"$f":"IF(OR('Enrollment Form'!$CC995=\"\",'Enrollment Form'!$CC995=\"No\"),\"-\",IF(AND('Enrollment Form'!$CC995=\"Yes\",'Enrollment Form'!$CD995=\"\"),\"N\",\"Y\"))","v":"-"},{"$f":"IF(OR('Enrollment Form'!$CE995=\"\",'Enrollment Form'!$CE995=\"No\"),\"-\",IF(AND('Enrollment Form'!$CE995=\"Yes\",'Enrollment Form'!$CF995=\"\"),\"N\",\"Y\"))","v":"-"},{"$f":"IF(OR('Enrollment Form'!$CG995=\"\",'Enrollment Form'!$CG995=\"No\"),\"-\",IF(AND('Enrollment Form'!$CG995=\"Yes\",'Enrollment Form'!$CH995=\"\"),\"N\",\"Y\"))","v":"-"},{"$f":"IF(OR('Enrollment Form'!$CG995=\"\",'Enrollment Form'!$CG995=\"No\"),\"-\",IF(AND('Enrollment Form'!$CG995=\"Yes\",'Enrollment Form'!$CI995=\"\"),\"N\",\"Y\"))","v":"-"},{"$f":"IF('Enrollment Form'!B995<>\"Subscriber\",\"-\",IF(AND('Enrollment Form'!B995=\"Subscriber\",'Enrollment Form'!C995=\"Enroll\",'Enrollment Form'!AA995=\"\"),\"N\",\"Y\"))","v":"-"},{"$f":"IF(OR('Enrollment Form'!B995=\"Subscriber\",'Enrollment Form'!B995=\"\"),\"-\",IF('Enrollment Form'!BI995=\"\",\"N\",\"Y\"))","v":"-"},{"$f":"IF('Enrollment Form'!B995<>\"Subscriber\",\"-\",IF(AND('Enrollment Form'!B995=\"Subscriber\",'Enrollment Form'!G995=\"\"),\"N\",\"Y\"))","v":"-"},{"$f":"IF('Enrollment Form'!A995=\"\",\"\",IF('Enrollment Form'!B995=\"Subscriber\",\"-\",IF(AND('Enrollment Form'!B995<>\"Subscriber\",'Enrollment Form'!G995='Enrollment Form'!H995),\"N\",\"Y\")))","v":""},0]
[996,{"$f":"IF('Enrollment Form'!$A996<>\"\",\"Y\",\"N\")","v":"N"},{"$f":"IF(AND('Enrollment Form'!$B996=\"\",'Enrollment Form'!$C996<>\"\"),\"N\",IF($B989=\"N\",\"\",\"Y\"))","v":""},{"$f":"IF(OR($B989=\"N\",'Enrollment Form'!G996=\"\"),\"\",IF('Enrollment Form'!$B996<>\"Subscriber\",\"\",IF('Enrollment Form'!$G996='Enrollment Form'!$H996,\"Y\",\"N\")))","v":""},{"$f":"IF($B989=\"N\",\"\",IF(AND(COUNTIFS('Enrollment Form'!$H$11:$H$1000,'Enrollment Form'!$H996,'Enrollment Form'!$B$11:$B$1000,'Enrollment Form'!$B996)>1,'Enrollment Form'!$H996<>\"\"),\"N\",\"Y\"))","v":""},{"$f":"IF($B989=\"N\",\"\",IF(LEN('Enrollment Form'!$Y996)=0,\"\",IF(LEN('Enrollment Form'!$Y996)<>5,\"N\",\"Y\")))","v":""},{"$f":"IF($B989=\"N\",\"\",IF(LEN('Enrollment Form'!$AD996=0),\"\",IF(LEN('Enrollment Form'!$AD996)<>5,\"N\",\"Y\")))","v":""},{"$f":"IF($B989=\"N\",\"\",IF(LEN('Enrollment Form'!$BL996=0),\"\",IF(LEN('Enrollment Form'!$BL996)<>5,\"N\",\"Y\")))","v":""},{"$f":"IF($B989=\"N\",\"\",IF(LEN('Enrollment Form'!$AE996)=0,\"\",IF(LEN('Enrollment Form'!$AE996)<>10,\"N\",\"Y\")))","v":""},{"$f":"IF($B989=\"N\",\"\",IF(LEN('Enrollment Form'!$AF996)=0,\"\",IF(LEN('Enrollment Form'!$AF996)<>10,\"N\",\"Y\")))","v":""},{"$f":"IF('Enrollment Form'!$O996<>\"Graded\",\"-\",IF(AND('Enrollment Form'!$O996=\"Graded\",'Enrollment Form'!$AO996<>\"\"),\"Y\",\"N\"))","v":"-"},{"$f":"IF($B989=\"N\",\"\",IF(OR('Enrollment Form'!$B996<>\"Subscriber\",'Enrollment Form'!$C996=\"ROC\"),\"-\",IF(AND('Enrollment Form'!$B996=\"Subscriber\",'Enrollment Form'!$C996=\"Enroll\",'Enrollment Form'!$AJ996<>\"\"),\"Y\",\"N\")))","v":""},{"$f":"IF($B989=\"N\",\"\",IF(OR('Enrollment Form'!$B996<>\"Subscriber\",'Enrollment Form'!$C996=\"ROC\"),\"-\",IF(AND('Enrollment Form'!$B996=\"Subscriber\",'Enrollment Form'!$C996=\"Enroll\",'Enrollment Form'!$AK996<>\"\"),\"Y\",\"N\")))","v":""},{"$f":"IF($B989=\"N\",\"\",IF(OR('Enrollment Form'!$B996<>\"Subscriber\",'Enrollment Form'!$C996=\"ROC\"),\"-\",IF(AND('Enrollment Form'!$B996=\"Subscriber\",'Enrollment Form'!$C996=\"Enroll\",'Enrollment Form'!$AL996<>\"\"),\"Y\",\"N\")))","v":""},{"$f":"IF($B989=\"N\",\"\",IF(OR('Enrollment Form'!$B996<>\"Subscriber\",'Enrollment Form'!$C996=\"ROC\"),\"-\",IF(AND('Enrollment Form'!$B996=\"Subscriber\",'Enrollment Form'!$C996=\"Enroll\",'Enrollment Form'!$AM996<>\"\"),\"Y\",\"N\")))","v":""},{"$f":"IF($B989=\"N\",\"\",IF(OR('Enrollment Form'!$B996<>\"Subscriber\",'Enrollment Form'!$C996=\"ROC\"),\"-\",IF(AND('Enrollment Form'!$B996=\"Subscriber\",'Enrollment Form'!$C996=\"Enroll\",'Enrollment Form'!$AN996<>\"\"),\"Y\",\"N\")))","v":""},{"$f":"IF($B989=\"N\",\"\",IF(OR('Enrollment Form'!$B996<>\"Subscriber\",'Enrollment Form'!$C996=\"ROC\"),\"-\",IF(AND('Enrollment Form'!$B996=\"Subscriber\",'Enrollment Form'!$C996=\"Enroll\",'Enrollment Form'!$AP996<>\"\"),\"Y\",\"N\")))","v":""},{"$f":"IF($B989=\"N\",\"\",IF($Q989=\"-\",\"-\",IF(AND($Q989=\"Y\",'Enrollment Form'!$AP996=\"No\"),\"-\",IF(AND($Q989=\"Y\",'Enrollment Form'!$AP996=\"Yes\",'Enrollment Form'!$AQ996<>\"\"),\"Y\",\"N\"))))","v":""},{"$f":"IF($B989=\"N\",\"\",IF(OR('Enrollment Form'!$B996<>\"Subscriber\",'Enrollment Form'!$C996=\"ROC\"),\"-\",IF(AND('Enrollment Form'!$B996=\"Subscriber\",'Enrollment Form'!$C996=\"Enroll\",'Enrollment Form'!$CO996<>\"\"),\"Y\",\"N\")))","v":""},{"$f":"IF($B989=\"N\",\"\",IF($S989=\"-\",\"-\",IF(AND($S989=\"Y\",'Enrollment Form'!$CO996=\"No\"),\"-\",IF(AND($S989=\"Y\",'Enrollment Form'!$CO996=\"Yes\",'Enrollment Form'!$CP996<>\"\"),\"Y\",\"N\"))))","v":""},{"$f":"IF(OR('Enrollment Form'!$AV996=\"Yes\",'Enrollment Form'!$AV996=\"\"),\"-\",IF(AND('Enrollment Form'!$AV996=\"No\",ISERROR(FIND(\"HMO\",VLOOKUP('Enrollment Form'!G996,'Enrollment Form'!H$11:J$1000,3,FALSE),1))=FALSE,COUNTA('Enrollment Form'!$AW996:$AZ996)=4),\"Y\",\"N\"))","v":"-"},{"$f":"IF($B989=\"N\",\"\",IF('Enrollment Form'!$B996=\"Subscriber\",\"-\",IF(COUNTA('Enrollment Form'!$BE996,'Enrollment Form'!$BG996)=2,\"Y\",\"N\")))","v":""},{"$f":"IF($B989=\"N\",\"\",IF(OR('Enrollment Form'!$AU996=\"\",'Enrollment Form'!$AU996=\"No\"),\"-\",IF(AND('Enrollment Form'!$AU996=\"Yes\",COUNTA('Enrollment Form'!$CK996)=1),\"Y\",\"N\")))","v":""},{"$f":"IF(OR('Enrollment Form'!$CK996=\"\",'Enrollment Form'!$CK996=\"No\"),\"-\",IF(COUNTA('Enrollment Form'!$CM996:$CN996)=2,\"Y\",\"N\"))","v":"-"},{"$f":"IF($B989=\"N\",\"\",IF(COUNTIF('Enrollment Form'!$CZ996:$DO996,\"Other\")=COUNTA('Enrollment Form'!$DF996,'Enrollment Form'!$DA996,'Enrollment Form'!$DK996,'Enrollment Form'!$DP996),\"Y\",\"N\"))","v":""},{"$f":"IF($B989=\"N\",\"\",IF(OR('Enrollment Form'!B996<>\"Subscriber\",'Enrollment Form'!C996=\"ROC\",COUNTIF('Enrollment Form'!AS996:AT996,\"Yes\")>=1),\"-\",IF(AND('Enrollment Form'!C996=\"Enroll\",COUNTIF('Enrollment Form'!AS996:AT996,\"No\")=2,'Enrollment Form'!AU996=\"\"),\"N\",\"Y\")))","v":""},{"$f":"IF(OR(B989=\"N\",'Enrollment Form'!B996<>\"Subscriber\",'Enrollment Form'!C996=\"ROC\",'Enrollment Form'!O996<>\"Multiple of Salary\"),\"-\",IF(COUNTA('Enrollment Form'!T996:U996)<2,\"N\",\"Y\"))","v":"-"},{"$f":"IF(B989=\"N\",\"\",IF(OR('Enrollment Form'!C996=\"ROC\",'Enrollment Form'!B996<>\"Subscriber\",'Enrollment Form'!O996=\"Waive\",'Enrollment Form'!O996=\"\"),\"-\",IF('Enrollment Form'!P996=\"\",\"N\",\"Y\")))","v":""},{"$f":"IF($B989=\"N\",\"\",IF(AND('Enrollment Form'!$C996=\"ROC\",'Enrollment Form'!$DS996<>\"\"),\"Y\",IF(AND('Enrollment Form'!$C996=\"ROC\",'Enrollment Form'!$DS996=\"\"),\"N\",IF(AND('Enrollment Form'!$C996=\"Enroll\",'Enrollment Form'!$B996=\"Subscriber\",'Enrollment Form'!$CQ996=\"No\",'Enrollment Form'!$DS996=\"\"),\"N\",IF(AND('Enrollment Form'!$C996=\"Enroll\",'Enrollment Form'!$B996=\"Subscriber\",'Enrollment Form'!$CQ996=\"Yes\"),\"-\",\"Y\")))))","v":""},{"$f":"IF($B989=\"N\",\"\",IF(AND('Enrollment Form'!$C996=\"ROC\",'Enrollment Form'!$DT996<>\"\"),\"Y\",IF(AND('Enrollment Form'!$C996=\"ROC\",'Enrollment Form'!$DT996=\"\"),\"N\",IF(AND('Enrollment Form'!$C996=\"Enroll\",'Enrollment Form'!$B996=\"Subscriber\",'Enrollment Form'!$CQ996=\"No\",'Enrollment Form'!$DT996=\"\"),\"N\",IF(AND('Enrollment Form'!$C996=\"Enroll\",'Enrollment Form'!$B996=\"Subscriber\",'Enrollment Form'!$CQ996=\"Yes\"),\"-\",\"Y\")))))","v":""},{"$f":"IF('Enrollment Form'!AH996=\"\",\"\",IF(ISERROR(SEARCH(\".\",'Enrollment Form'!AH996,SEARCH(\"@\",'Enrollment Form'!AH996))),\"N\",\"Y\"))","v":""},{"$f":"IF(OR($B989=\"N\",'Enrollment Form'!$G996=\"\"),\"\",IF('Enrollment Form'!$B996<>\"Subscriber\",\"-\",IF(COUNTIF('Enrollment Form'!$AS996:$AT996,\"Yes\")=2,\"N\",\"Y\")))","v":""},{"$f":"IF(OR('Enrollment Form'!$CC996=\"\",'Enrollment Form'!$CC996=\"No\"),\"-\",IF(AND('Enrollment Form'!$CC996=\"Yes\",'Enrollment Form'!$CD996=\"\"),\"N\",\"Y\"))","v":"-"},{"$f":"IF(OR('Enrollment Form'!$CE996=\"\",'Enrollment Form'!$CE996=\"No\"),\"-\",IF(AND('Enrollment Form'!$CE996=\"Yes\",'Enrollment Form'!$CF996=\"\"),\"N\",\"Y\"))","v":"-"},{"$f":"IF(OR('Enrollment Form'!$CG996=\"\",'Enrollment Form'!$CG996=\"No\"),\"-\",IF(AND('Enrollment Form'!$CG996=\"Yes\",'Enrollment Form'!$CH996=\"\"),\"N\",\"Y\"))","v":"-"},{"$f":"IF(OR('Enrollment Form'!$CG996=\"\",'Enrollment Form'!$CG996=\"No\"),\"-\",IF(AND('Enrollment Form'!$CG996=\"Yes\",'Enrollment Form'!$CI996=\"\"),\"N\",\"Y\"))","v":"-"},{"$f":"IF('Enrollment Form'!B996<>\"Subscriber\",\"-\",IF(AND('Enrollment Form'!B996=\"Subscriber\",'Enrollment Form'!C996=\"Enroll\",'Enrollment Form'!AA996=\"\"),\"N\",\"Y\"))","v":"-"},{"$f":"IF(OR('Enrollment Form'!B996=\"Subscriber\",'Enrollment Form'!B996=\"\"),\"-\",IF('Enrollment Form'!BI996=\"\",\"N\",\"Y\"))","v":"-"},{"$f":"IF('Enrollment Form'!B996<>\"Subscriber\",\"-\",IF(AND('Enrollment Form'!B996=\"Subscriber\",'Enrollment Form'!G996=\"\"),\"N\",\"Y\"))","v":"-"},{"$f":"IF('Enrollment Form'!A996=\"\",\"\",IF('Enrollment Form'!B996=\"Subscriber\",\"-\",IF(AND('Enrollment Form'!B996<>\"Subscriber\",'Enrollment Form'!G996='Enrollment Form'!H996),\"N\",\"Y\")))","v":""},0]
[997,{"$f":"IF('Enrollment Form'!$A997<>\"\",\"Y\",\"N\")","v":"N"},{"$f":"IF(AND('Enrollment Form'!$B997=\"\",'Enrollment Form'!$C997<>\"\"),\"N\",IF($B990=\"N\",\"\",\"Y\"))","v":""},{"$f":"IF(OR($B990=\"N\",'Enrollment Form'!G997=\"\"),\"\",IF('Enrollment Form'!$B997<>\"Subscriber\",\"\",IF('Enrollment Form'!$G997='Enrollment Form'!$H997,\"Y\",\"N\")))","v":""},{"$f":"IF($B990=\"N\",\"\",IF(AND(COUNTIFS('Enrollment Form'!$H$11:$H$1000,'Enrollment Form'!$H997,'Enrollment Form'!$B$11:$B$1000,'Enrollment Form'!$B997)>1,'Enrollment Form'!$H997<>\"\"),\"N\",\"Y\"))","v":""},{"$f":"IF($B990=\"N\",\"\",IF(LEN('Enrollment Form'!$Y997)=0,\"\",IF(LEN('Enrollment Form'!$Y997)<>5,\"N\",\"Y\")))","v":""},{"$f":"IF($B990=\"N\",\"\",IF(LEN('Enrollment Form'!$AD997=0),\"\",IF(LEN('Enrollment Form'!$AD997)<>5,\"N\",\"Y\")))","v":""},{"$f":"IF($B990=\"N\",\"\",IF(LEN('Enrollment Form'!$BL997=0),\"\",IF(LEN('Enrollment Form'!$BL997)<>5,\"N\",\"Y\")))","v":""},{"$f":"IF($B990=\"N\",\"\",IF(LEN('Enrollment Form'!$AE997)=0,\"\",IF(LEN('Enrollment Form'!$AE997)<>10,\"N\",\"Y\")))","v":""},{"$f":"IF($B990=\"N\",\"\",IF(LEN('Enrollment Form'!$AF997)=0,\"\",IF(LEN('Enrollment Form'!$AF997)<>10,\"N\",\"Y\")))","v":""},{"$f":"IF('Enrollment Form'!$O997<>\"Graded\",\"-\",IF(AND('Enrollment Form'!$O997=\"Graded\",'Enrollment Form'!$AO997<>\"\"),\"Y\",\"N\"))","v":"-"},{"$f":"IF($B990=\"N\",\"\",IF(OR('Enrollment Form'!$B997<>\"Subscriber\",'Enrollment Form'!$C997=\"ROC\"),\"-\",IF(AND('Enrollment Form'!$B997=\"Subscriber\",'Enrollment Form'!$C997=\"Enroll\",'Enrollment Form'!$AJ997<>\"\"),\"Y\",\"N\")))","v":""},{"$f":"IF($B990=\"N\",\"\",IF(OR('Enrollment Form'!$B997<>\"Subscriber\",'Enrollment Form'!$C997=\"ROC\"),\"-\",IF(AND('Enrollment Form'!$B997=\"Subscriber\",'Enrollment Form'!$C997=\"Enroll\",'Enrollment Form'!$AK997<>\"\"),\"Y\",\"N\")))","v":""},{"$f":"IF($B990=\"N\",\"\",IF(OR('Enrollment Form'!$B997<>\"Subscriber\",'Enrollment Form'!$C997=\"ROC\"),\"-\",IF(AND('Enrollment Form'!$B997=\"Subscriber\",'Enrollment Form'!$C997=\"Enroll\",'Enrollment Form'!$AL997<>\"\"),\"Y\",\"N\")))","v":""},{"$f":"IF($B990=\"N\",\"\",IF(OR('Enrollment Form'!$B997<>\"Subscriber\",'Enrollment Form'!$C997=\"ROC\"),\"-\",IF(AND('Enrollment Form'!$B997=\"Subscriber\",'Enrollment Form'!$C997=\"Enroll\",'Enrollment Form'!$AM997<>\"\"),\"Y\",\"N\")))","v":""},{"$f":"IF($B990=\"N\",\"\",IF(OR('Enrollment Form'!$B997<>\"Subscriber\",'Enrollment Form'!$C997=\"ROC\"),\"-\",IF(AND('Enrollment Form'!$B997=\"Subscriber\",'Enrollment Form'!$C997=\"Enroll\",'Enrollment Form'!$AN997<>\"\"),\"Y\",\"N\")))","v":""},{"$f":"IF($B990=\"N\",\"\",IF(OR('Enrollment Form'!$B997<>\"Subscriber\",'Enrollment Form'!$C997=\"ROC\"),\"-\",IF(AND('Enrollment Form'!$B997=\"Subscriber\",'Enrollment Form'!$C997=\"Enroll\",'Enrollment Form'!$AP997<>\"\"),\"Y\",\"N\")))","v":""},{"$f":"IF($B990=\"N\",\"\",IF($Q990=\"-\",\"-\",IF(AND($Q990=\"Y\",'Enrollment Form'!$AP997=\"No\"),\"-\",IF(AND($Q990=\"Y\",'Enrollment Form'!$AP997=\"Yes\",'Enrollment Form'!$AQ997<>\"\"),\"Y\",\"N\"))))","v":""},{"$f":"IF($B990=\"N\",\"\",IF(OR('Enrollment Form'!$B997<>\"Subscriber\",'Enrollment Form'!$C997=\"ROC\"),\"-\",IF(AND('Enrollment Form'!$B997=\"Subscriber\",'Enrollment Form'!$C997=\"Enroll\",'Enrollment Form'!$CO997<>\"\"),\"Y\",\"N\")))","v":""},{"$f":"IF($B990=\"N\",\"\",IF($S990=\"-\",\"-\",IF(AND($S990=\"Y\",'Enrollment Form'!$CO997=\"No\"),\"-\",IF(AND($S990=\"Y\",'Enrollment Form'!$CO997=\"Yes\",'Enrollment Form'!$CP997<>\"\"),\"Y\",\"N\"))))","v":""},{"$f":"IF(OR('Enrollment Form'!$AV997=\"Yes\",'Enrollment Form'!$AV997=\"\"),\"-\",IF(AND('Enrollment Form'!$AV997=\"No\",ISERROR(FIND(\"HMO\",VLOOKUP('Enrollment Form'!G997,'Enrollment Form'!H$11:J$1000,3,FALSE),1))=FALSE,COUNTA('Enrollment Form'!$AW997:$AZ997)=4),\"Y\",\"N\"))","v":"-"},{"$f":"IF($B990=\"N\",\"\",IF('Enrollment Form'!$B997=\"Subscriber\",\"-\",IF(COUNTA('Enrollment Form'!$BE997,'Enrollment Form'!$BG997)=2,\"Y\",\"N\")))","v":""},{"$f":"IF($B990=\"N\",\"\",IF(OR('Enrollment Form'!$AU997=\"\",'Enrollment Form'!$AU997=\"No\"),\"-\",IF(AND('Enrollment Form'!$AU997=\"Yes\",COUNTA('Enrollment Form'!$CK997)=1),\"Y\",\"N\")))","v":""},{"$f":"IF(OR('Enrollment Form'!$CK997=\"\",'Enrollment Form'!$CK997=\"No\"),\"-\",IF(COUNTA('Enrollment Form'!$CM997:$CN997)=2,\"Y\",\"N\"))","v":"-"},{"$f":"IF($B990=\"N\",\"\",IF(COUNTIF('Enrollment Form'!$CZ997:$DO997,\"Other\")=COUNTA('Enrollment Form'!$DF997,'Enrollment Form'!$DA997,'Enrollment Form'!$DK997,'Enrollment Form'!$DP997),\"Y\",\"N\"))","v":""},{"$f":"IF($B990=\"N\",\"\",IF(OR('Enrollment Form'!B997<>\"Subscriber\",'Enrollment Form'!C997=\"ROC\",COUNTIF('Enrollment Form'!AS997:AT997,\"Yes\")>=1),\"-\",IF(AND('Enrollment Form'!C997=\"Enroll\",COUNTIF('Enrollment Form'!AS997:AT997,\"No\")=2,'Enrollment Form'!AU997=\"\"),\"N\",\"Y\")))","v":""},{"$f":"IF(OR(B990=\"N\",'Enrollment Form'!B997<>\"Subscriber\",'Enrollment Form'!C997=\"ROC\",'Enrollment Form'!O997<>\"Multiple of Salary\"),\"-\",IF(COUNTA('Enrollment Form'!T997:U997)<2,\"N\",\"Y\"))","v":"-"},{"$f":"IF(B990=\"N\",\"\",IF(OR('Enrollment Form'!C997=\"ROC\",'Enrollment Form'!B997<>\"Subscriber\",'Enrollment Form'!O997=\"Waive\",'Enrollment Form'!O997=\"\"),\"-\",IF('Enrollment Form'!P997=\"\",\"N\",\"Y\")))","v":""},{"$f":"IF($B990=\"N\",\"\",IF(AND('Enrollment Form'!$C997=\"ROC\",'Enrollment Form'!$DS997<>\"\"),\"Y\",IF(AND('Enrollment Form'!$C997=\"ROC\",'Enrollment Form'!$DS997=\"\"),\"N\",IF(AND('Enrollment Form'!$C997=\"Enroll\",'Enrollment Form'!$B997=\"Subscriber\",'Enrollment Form'!$CQ997=\"No\",'Enrollment Form'!$DS997=\"\"),\"N\",IF(AND('Enrollment Form'!$C997=\"Enroll\",'Enrollment Form'!$B997=\"Subscriber\",'Enrollment Form'!$CQ997=\"Yes\"),\"-\",\"Y\")))))","v":""},{"$f":"IF($B990=\"N\",\"\",IF(AND('Enrollment Form'!$C997=\"ROC\",'Enrollment Form'!$DT997<>\"\"),\"Y\",IF(AND('Enrollment Form'!$C997=\"ROC\",'Enrollment Form'!$DT997=\"\"),\"N\",IF(AND('Enrollment Form'!$C997=\"Enroll\",'Enrollment Form'!$B997=\"Subscriber\",'Enrollment Form'!$CQ997=\"No\",'Enrollment Form'!$DT997=\"\"),\"N\",IF(AND('Enrollment Form'!$C997=\"Enroll\",'Enrollment Form'!$B997=\"Subscriber\",'Enrollment Form'!$CQ997=\"Yes\"),\"-\",\"Y\")))))","v":""},{"$f":"IF('Enrollment Form'!AH997=\"\",\"\",IF(ISERROR(SEARCH(\".\",'Enrollment Form'!AH997,SEARCH(\"@\",'Enrollment Form'!AH997))),\"N\",\"Y\"))","v":""},{"$f":"IF(OR($B990=\"N\",'Enrollment Form'!$G997=\"\"),\"\",IF('Enrollment Form'!$B997<>\"Subscriber\",\"-\",IF(COUNTIF('Enrollment Form'!$AS997:$AT997,\"Yes\")=2,\"N\",\"Y\")))","v":""},{"$f":"IF(OR('Enrollment Form'!$CC997=\"\",'Enrollment Form'!$CC997=\"No\"),\"-\",IF(AND('Enrollment Form'!$CC997=\"Yes\",'Enrollment Form'!$CD997=\"\"),\"N\",\"Y\"))","v":"-"},{"$f":"IF(OR('Enrollment Form'!$CE997=\"\",'Enrollment Form'!$CE997=\"No\"),\"-\",IF(AND('Enrollment Form'!$CE997=\"Yes\",'Enrollment Form'!$CF997=\"\"),\"N\",\"Y\"))","v":"-"},{"$f":"IF(OR('Enrollment Form'!$CG997=\"\",'Enrollment Form'!$CG997=\"No\"),\"-\",IF(AND('Enrollment Form'!$CG997=\"Yes\",'Enrollment Form'!$CH997=\"\"),\"N\",\"Y\"))","v":"-"},{"$f":"IF(OR('Enrollment Form'!$CG997=\"\",'Enrollment Form'!$CG997=\"No\"),\"-\",IF(AND('Enrollment Form'!$CG997=\"Yes\",'Enrollment Form'!$CI997=\"\"),\"N\",\"Y\"))","v":"-"},{"$f":"IF('Enrollment Form'!B997<>\"Subscriber\",\"-\",IF(AND('Enrollment Form'!B997=\"Subscriber\",'Enrollment Form'!C997=\"Enroll\",'Enrollment Form'!AA997=\"\"),\"N\",\"Y\"))","v":"-"},{"$f":"IF(OR('Enrollment Form'!B997=\"Subscriber\",'Enrollment Form'!B997=\"\"),\"-\",IF('Enrollment Form'!BI997=\"\",\"N\",\"Y\"))","v":"-"},{"$f":"IF('Enrollment Form'!B997<>\"Subscriber\",\"-\",IF(AND('Enrollment Form'!B997=\"Subscriber\",'Enrollment Form'!G997=\"\"),\"N\",\"Y\"))","v":"-"},{"$f":"IF('Enrollment Form'!A997=\"\",\"\",IF('Enrollment Form'!B997=\"Subscriber\",\"-\",IF(AND('Enrollment Form'!B997<>\"Subscriber\",'Enrollment Form'!G997='Enrollment Form'!H997),\"N\",\"Y\")))","v":""},0]
[998,{"$f":"IF('Enrollment Form'!$A998<>\"\",\"Y\",\"N\")","v":"N"},{"$f":"IF(AND('Enrollment Form'!$B998=\"\",'Enrollment Form'!$C998<>\"\"),\"N\",IF($B991=\"N\",\"\",\"Y\"))","v":""},{"$f":"IF(OR($B991=\"N\",'Enrollment Form'!G998=\"\"),\"\",IF('Enrollment Form'!$B998<>\"Subscriber\",\"\",IF('Enrollment Form'!$G998='Enrollment Form'!$H998,\"Y\",\"N\")))","v":""},{"$f":"IF($B991=\"N\",\"\",IF(AND(COUNTIFS('Enrollment Form'!$H$11:$H$1000,'Enrollment Form'!$H998,'Enrollment Form'!$B$11:$B$1000,'Enrollment Form'!$B998)>1,'Enrollment Form'!$H998<>\"\"),\"N\",\"Y\"))","v":""},{"$f":"IF($B991=\"N\",\"\",IF(LEN('Enrollment Form'!$Y998)=0,\"\",IF(LEN('Enrollment Form'!$Y998)<>5,\"N\",\"Y\")))","v":""},{"$f":"IF($B991=\"N\",\"\",IF(LEN('Enrollment Form'!$AD998=0),\"\",IF(LEN('Enrollment Form'!$AD998)<>5,\"N\",\"Y\")))","v":""},{"$f":"IF($B991=\"N\",\"\",IF(LEN('Enrollment Form'!$BL998=0),\"\",IF(LEN('Enrollment Form'!$BL998)<>5,\"N\",\"Y\")))","v":""},{"$f":"IF($B991=\"N\",\"\",IF(LEN('Enrollment Form'!$AE998)=0,\"\",IF(LEN('Enrollment Form'!$AE998)<>10,\"N\",\"Y\")))","v":""},{"$f":"IF($B991=\"N\",\"\",IF(LEN('Enrollment Form'!$AF998)=0,\"\",IF(LEN('Enrollment Form'!$AF998)<>10,\"N\",\"Y\")))","v":""},{"$f":"IF('Enrollment Form'!$O998<>\"Graded\",\"-\",IF(AND('Enrollment Form'!$O998=\"Graded\",'Enrollment Form'!$AO998<>\"\"),\"Y\",\"N\"))","v":"-"},{"$f":"IF($B991=\"N\",\"\",IF(OR('Enrollment Form'!$B998<>\"Subscriber\",'Enrollment Form'!$C998=\"ROC\"),\"-\",IF(AND('Enrollment Form'!$B998=\"Subscriber\",'Enrollment Form'!$C998=\"Enroll\",'Enrollment Form'!$AJ998<>\"\"),\"Y\",\"N\")))","v":""},{"$f":"IF($B991=\"N\",\"\",IF(OR('Enrollment Form'!$B998<>\"Subscriber\",'Enrollment Form'!$C998=\"ROC\"),\"-\",IF(AND('Enrollment Form'!$B998=\"Subscriber\",'Enrollment Form'!$C998=\"Enroll\",'Enrollment Form'!$AK998<>\"\"),\"Y\",\"N\")))","v":""},{"$f":"IF($B991=\"N\",\"\",IF(OR('Enrollment Form'!$B998<>\"Subscriber\",'Enrollment Form'!$C998=\"ROC\"),\"-\",IF(AND('Enrollment Form'!$B998=\"Subscriber\",'Enrollment Form'!$C998=\"Enroll\",'Enrollment Form'!$AL998<>\"\"),\"Y\",\"N\")))","v":""},{"$f":"IF($B991=\"N\",\"\",IF(OR('Enrollment Form'!$B998<>\"Subscriber\",'Enrollment Form'!$C998=\"ROC\"),\"-\",IF(AND('Enrollment Form'!$B998=\"Subscriber\",'Enrollment Form'!$C998=\"Enroll\",'Enrollment Form'!$AM998<>\"\"),\"Y\",\"N\")))","v":""},{"$f":"IF($B991=\"N\",\"\",IF(OR('Enrollment Form'!$B998<>\"Subscriber\",'Enrollment Form'!$C998=\"ROC\"),\"-\",IF(AND('Enrollment Form'!$B998=\"Subscriber\",'Enrollment Form'!$C998=\"Enroll\",'Enrollment Form'!$AN998<>\"\"),\"Y\",\"N\")))","v":""},{"$f":"IF($B991=\"N\",\"\",IF(OR('Enrollment Form'!$B998<>\"Subscriber\",'Enrollment Form'!$C998=\"ROC\"),\"-\",IF(AND('Enrollment Form'!$B998=\"Subscriber\",'Enrollment Form'!$C998=\"Enroll\",'Enrollment Form'!$AP998<>\"\"),\"Y\",\"N\")))","v":""},{"$f":"IF($B991=\"N\",\"\",IF($Q991=\"-\",\"-\",IF(AND($Q991=\"Y\",'Enrollment Form'!$AP998=\"No\"),\"-\",IF(AND($Q991=\"Y\",'Enrollment Form'!$AP998=\"Yes\",'Enrollment Form'!$AQ998<>\"\"),\"Y\",\"N\"))))","v":""},{"$f":"IF($B991=\"N\",\"\",IF(OR('Enrollment Form'!$B998<>\"Subscriber\",'Enrollment Form'!$C998=\"ROC\"),\"-\",IF(AND('Enrollment Form'!$B998=\"Subscriber\",'Enrollment Form'!$C998=\"Enroll\",'Enrollment Form'!$CO998<>\"\"),\"Y\",\"N\")))","v":""},{"$f":"IF($B991=\"N\",\"\",IF($S991=\"-\",\"-\",IF(AND($S991=\"Y\",'Enrollment Form'!$CO998=\"No\"),\"-\",IF(AND($S991=\"Y\",'Enrollment Form'!$CO998=\"Yes\",'Enrollment Form'!$CP998<>\"\"),\"Y\",\"N\"))))","v":""},{"$f":"IF(OR('Enrollment Form'!$AV998=\"Yes\",'Enrollment Form'!$AV998=\"\"),\"-\",IF(AND('Enrollment Form'!$AV998=\"No\",ISERROR(FIND(\"HMO\",VLOOKUP('Enrollment Form'!G998,'Enrollment Form'!H$11:J$1000,3,FALSE),1))=FALSE,COUNTA('Enrollment Form'!$AW998:$AZ998)=4),\"Y\",\"N\"))","v":"-"},{"$f":"IF($B991=\"N\",\"\",IF('Enrollment Form'!$B998=\"Subscriber\",\"-\",IF(COUNTA('Enrollment Form'!$BE998,'Enrollment Form'!$BG998)=2,\"Y\",\"N\")))","v":""},{"$f":"IF($B991=\"N\",\"\",IF(OR('Enrollment Form'!$AU998=\"\",'Enrollment Form'!$AU998=\"No\"),\"-\",IF(AND('Enrollment Form'!$AU998=\"Yes\",COUNTA('Enrollment Form'!$CK998)=1),\"Y\",\"N\")))","v":""},{"$f":"IF(OR('Enrollment Form'!$CK998=\"\",'Enrollment Form'!$CK998=\"No\"),\"-\",IF(COUNTA('Enrollment Form'!$CM998:$CN998)=2,\"Y\",\"N\"))","v":"-"},{"$f":"IF($B991=\"N\",\"\",IF(COUNTIF('Enrollment Form'!$CZ998:$DO998,\"Other\")=COUNTA('Enrollment Form'!$DF998,'Enrollment Form'!$DA998,'Enrollment Form'!$DK998,'Enrollment Form'!$DP998),\"Y\",\"N\"))","v":""},{"$f":"IF($B991=\"N\",\"\",IF(OR('Enrollment Form'!B998<>\"Subscriber\",'Enrollment Form'!C998=\"ROC\",COUNTIF('Enrollment Form'!AS998:AT998,\"Yes\")>=1),\"-\",IF(AND('Enrollment Form'!C998=\"Enroll\",COUNTIF('Enrollment Form'!AS998:AT998,\"No\")=2,'Enrollment Form'!AU998=\"\"),\"N\",\"Y\")))","v":""},{"$f":"IF(OR(B991=\"N\",'Enrollment Form'!B998<>\"Subscriber\",'Enrollment Form'!C998=\"ROC\",'Enrollment Form'!O998<>\"Multiple of Salary\"),\"-\",IF(COUNTA('Enrollment Form'!T998:U998)<2,\"N\",\"Y\"))","v":"-"},{"$f":"IF(B991=\"N\",\"\",IF(OR('Enrollment Form'!C998=\"ROC\",'Enrollment Form'!B998<>\"Subscriber\",'Enrollment Form'!O998=\"Waive\",'Enrollment Form'!O998=\"\"),\"-\",IF('Enrollment Form'!P998=\"\",\"N\",\"Y\")))","v":""},{"$f":"IF($B991=\"N\",\"\",IF(AND('Enrollment Form'!$C998=\"ROC\",'Enrollment Form'!$DS998<>\"\"),\"Y\",IF(AND('Enrollment Form'!$C998=\"ROC\",'Enrollment Form'!$DS998=\"\"),\"N\",IF(AND('Enrollment Form'!$C998=\"Enroll\",'Enrollment Form'!$B998=\"Subscriber\",'Enrollment Form'!$CQ998=\"No\",'Enrollment Form'!$DS998=\"\"),\"N\",IF(AND('Enrollment Form'!$C998=\"Enroll\",'Enrollment Form'!$B998=\"Subscriber\",'Enrollment Form'!$CQ998=\"Yes\"),\"-\",\"Y\")))))","v":""},{"$f":"IF($B991=\"N\",\"\",IF(AND('Enrollment Form'!$C998=\"ROC\",'Enrollment Form'!$DT998<>\"\"),\"Y\",IF(AND('Enrollment Form'!$C998=\"ROC\",'Enrollment Form'!$DT998=\"\"),\"N\",IF(AND('Enrollment Form'!$C998=\"Enroll\",'Enrollment Form'!$B998=\"Subscriber\",'Enrollment Form'!$CQ998=\"No\",'Enrollment Form'!$DT998=\"\"),\"N\",IF(AND('Enrollment Form'!$C998=\"Enroll\",'Enrollment Form'!$B998=\"Subscriber\",'Enrollment Form'!$CQ998=\"Yes\"),\"-\",\"Y\")))))","v":""},{"$f":"IF('Enrollment Form'!AH998=\"\",\"\",IF(ISERROR(SEARCH(\".\",'Enrollment Form'!AH998,SEARCH(\"@\",'Enrollment Form'!AH998))),\"N\",\"Y\"))","v":""},{"$f":"IF(OR($B991=\"N\",'Enrollment Form'!$G998=\"\"),\"\",IF('Enrollment Form'!$B998<>\"Subscriber\",\"-\",IF(COUNTIF('Enrollment Form'!$AS998:$AT998,\"Yes\")=2,\"N\",\"Y\")))","v":""},{"$f":"IF(OR('Enrollment Form'!$CC998=\"\",'Enrollment Form'!$CC998=\"No\"),\"-\",IF(AND('Enrollment Form'!$CC998=\"Yes\",'Enrollment Form'!$CD998=\"\"),\"N\",\"Y\"))","v":"-"},{"$f":"IF(OR('Enrollment Form'!$CE998=\"\",'Enrollment Form'!$CE998=\"No\"),\"-\",IF(AND('Enrollment Form'!$CE998=\"Yes\",'Enrollment Form'!$CF998=\"\"),\"N\",\"Y\"))","v":"-"},{"$f":"IF(OR('Enrollment Form'!$CG998=\"\",'Enrollment Form'!$CG998=\"No\"),\"-\",IF(AND('Enrollment Form'!$CG998=\"Yes\",'Enrollment Form'!$CH998=\"\"),\"N\",\"Y\"))","v":"-"},{"$f":"IF(OR('Enrollment Form'!$CG998=\"\",'Enrollment Form'!$CG998=\"No\"),\"-\",IF(AND('Enrollment Form'!$CG998=\"Yes\",'Enrollment Form'!$CI998=\"\"),\"N\",\"Y\"))","v":"-"},{"$f":"IF('Enrollment Form'!B998<>\"Subscriber\",\"-\",IF(AND('Enrollment Form'!B998=\"Subscriber\",'Enrollment Form'!C998=\"Enroll\",'Enrollment Form'!AA998=\"\"),\"N\",\"Y\"))","v":"-"},{"$f":"IF(OR('Enrollment Form'!B998=\"Subscriber\",'Enrollment Form'!B998=\"\"),\"-\",IF('Enrollment Form'!BI998=\"\",\"N\",\"Y\"))","v":"-"},{"$f":"IF('Enrollment Form'!B998<>\"Subscriber\",\"-\",IF(AND('Enrollment Form'!B998=\"Subscriber\",'Enrollment Form'!G998=\"\"),\"N\",\"Y\"))","v":"-"},{"$f":"IF('Enrollment Form'!A998=\"\",\"\",IF('Enrollment Form'!B998=\"Subscriber\",\"-\",IF(AND('Enrollment Form'!B998<>\"Subscriber\",'Enrollment Form'!G998='Enrollment Form'!H998),\"N\",\"Y\")))","v":""},0]
[999,{"$f":"IF('Enrollment Form'!$A999<>\"\",\"Y\",\"N\")","v":"N"},{"$f":"IF(AND('Enrollment Form'!$B999=\"\",'Enrollment Form'!$C999<>\"\"),\"N\",IF($B992=\"N\",\"\",\"Y\"))","v":""},{"$f":"IF(OR($B992=\"N\",'Enrollment Form'!G999=\"\"),\"\",IF('Enrollment Form'!$B999<>\"Subscriber\",\"\",IF('Enrollment Form'!$G999='Enrollment Form'!$H999,\"Y\",\"N\")))","v":""},{"$f":"IF($B992=\"N\",\"\",IF(AND(COUNTIFS('Enrollment Form'!$H$11:$H$1000,'Enrollment Form'!$H999,'Enrollment Form'!$B$11:$B$1000,'Enrollment Form'!$B999)>1,'Enrollment Form'!$H999<>\"\"),\"N\",\"Y\"))","v":""},{"$f":"IF($B992=\"N\",\"\",IF(LEN('Enrollment Form'!$Y999)=0,\"\",IF(LEN('Enrollment Form'!$Y999)<>5,\"N\",\"Y\")))","v":""},{"$f":"IF($B992=\"N\",\"\",IF(LEN('Enrollment Form'!$AD999=0),\"\",IF(LEN('Enrollment Form'!$AD999)<>5,\"N\",\"Y\")))","v":""},{"$f":"IF($B992=\"N\",\"\",IF(LEN('Enrollment Form'!$BL999=0),\"\",IF(LEN('Enrollment Form'!$BL999)<>5,\"N\",\"Y\")))","v":""},{"$f":"IF($B992=\"N\",\"\",IF(LEN('Enrollment Form'!$AE999)=0,\"\",IF(LEN('Enrollment Form'!$AE999)<>10,\"N\",\"Y\")))","v":""},{"$f":"IF($B992=\"N\",\"\",IF(LEN('Enrollment Form'!$AF999)=0,\"\",IF(LEN('Enrollment Form'!$AF999)<>10,\"N\",\"Y\")))","v":""},{"$f":"IF('Enrollment Form'!$O999<>\"Graded\",\"-\",IF(AND('Enrollment Form'!$O999=\"Graded\",'Enrollment Form'!$AO999<>\"\"),\"Y\",\"N\"))","v":"-"},{"$f":"IF($B992=\"N\",\"\",IF(OR('Enrollment Form'!$B999<>\"Subscriber\",'Enrollment Form'!$C999=\"ROC\"),\"-\",IF(AND('Enrollment Form'!$B999=\"Subscriber\",'Enrollment Form'!$C999=\"Enroll\",'Enrollment Form'!$AJ999<>\"\"),\"Y\",\"N\")))","v":""},{"$f":"IF($B992=\"N\",\"\",IF(OR('Enrollment Form'!$B999<>\"Subscriber\",'Enrollment Form'!$C999=\"ROC\"),\"-\",IF(AND('Enrollment Form'!$B999=\"Subscriber\",'Enrollment Form'!$C999=\"Enroll\",'Enrollment Form'!$AK999<>\"\"),\"Y\",\"N\")))","v":""},{"$f":"IF($B992=\"N\",\"\",IF(OR('Enrollment Form'!$B999<>\"Subscriber\",'Enrollment Form'!$C999=\"ROC\"),\"-\",IF(AND('Enrollment Form'!$B999=\"Subscriber\",'Enrollment Form'!$C999=\"Enroll\",'Enrollment Form'!$AL999<>\"\"),\"Y\",\"N\")))","v":""},{"$f":"IF($B992=\"N\",\"\",IF(OR('Enrollment Form'!$B999<>\"Subscriber\",'Enrollment Form'!$C999=\"ROC\"),\"-\",IF(AND('Enrollment Form'!$B999=\"Subscriber\",'Enrollment Form'!$C999=\"Enroll\",'Enrollment Form'!$AM999<>\"\"),\"Y\",\"N\")))","v":""},{"$f":"IF($B992=\"N\",\"\",IF(OR('Enrollment Form'!$B999<>\"Subscriber\",'Enrollment Form'!$C999=\"ROC\"),\"-\",IF(AND('Enrollment Form'!$B999=\"Subscriber\",'Enrollment Form'!$C999=\"Enroll\",'Enrollment Form'!$AN999<>\"\"),\"Y\",\"N\")))","v":""},{"$f":"IF($B992=\"N\",\"\",IF(OR('Enrollment Form'!$B999<>\"Subscriber\",'Enrollment Form'!$C999=\"ROC\"),\"-\",IF(AND('Enrollment Form'!$B999=\"Subscriber\",'Enrollment Form'!$C999=\"Enroll\",'Enrollment Form'!$AP999<>\"\"),\"Y\",\"N\")))","v":""},{"$f":"IF($B992=\"N\",\"\",IF($Q992=\"-\",\"-\",IF(AND($Q992=\"Y\",'Enrollment Form'!$AP999=\"No\"),\"-\",IF(AND($Q992=\"Y\",'Enrollment Form'!$AP999=\"Yes\",'Enrollment Form'!$AQ999<>\"\"),\"Y\",\"N\"))))","v":""},{"$f":"IF($B992=\"N\",\"\",IF(OR('Enrollment Form'!$B999<>\"Subscriber\",'Enrollment Form'!$C999=\"ROC\"),\"-\",IF(AND('Enrollment Form'!$B999=\"Subscriber\",'Enrollment Form'!$C999=\"Enroll\",'Enrollment Form'!$CO999<>\"\"),\"Y\",\"N\")))","v":""},{"$f":"IF($B992=\"N\",\"\",IF($S992=\"-\",\"-\",IF(AND($S992=\"Y\",'Enrollment Form'!$CO999=\"No\"),\"-\",IF(AND($S992=\"Y\",'Enrollment Form'!$CO999=\"Yes\",'Enrollment Form'!$CP999<>\"\"),\"Y\",\"N\"))))","v":""},{"$f":"IF(OR('Enrollment Form'!$AV999=\"Yes\",'Enrollment Form'!$AV999=\"\"),\"-\",IF(AND('Enrollment Form'!$AV999=\"No\",ISERROR(FIND(\"HMO\",VLOOKUP('Enrollment Form'!G999,'Enrollment Form'!H$11:J$1000,3,FALSE),1))=FALSE,COUNTA('Enrollment Form'!$AW999:$AZ999)=4),\"Y\",\"N\"))","v":"-"},{"$f":"IF($B992=\"N\",\"\",IF('Enrollment Form'!$B999=\"Subscriber\",\"-\",IF(COUNTA('Enrollment Form'!$BE999,'Enrollment Form'!$BG999)=2,\"Y\",\"N\")))","v":""},{"$f":"IF($B992=\"N\",\"\",IF(OR('Enrollment Form'!$AU999=\"\",'Enrollment Form'!$AU999=\"No\"),\"-\",IF(AND('Enrollment Form'!$AU999=\"Yes\",COUNTA('Enrollment Form'!$CK999)=1),\"Y\",\"N\")))","v":""},{"$f":"IF(OR('Enrollment Form'!$CK999=\"\",'Enrollment Form'!$CK999=\"No\"),\"-\",IF(COUNTA('Enrollment Form'!$CM999:$CN999)=2,\"Y\",\"N\"))","v":"-"},{"$f":"IF($B992=\"N\",\"\",IF(COUNTIF('Enrollment Form'!$CZ999:$DO999,\"Other\")=COUNTA('Enrollment Form'!$DF999,'Enrollment Form'!$DA999,'Enrollment Form'!$DK999,'Enrollment Form'!$DP999),\"Y\",\"N\"))","v":""},{"$f":"IF($B992=\"N\",\"\",IF(OR('Enrollment Form'!B999<>\"Subscriber\",'Enrollment Form'!C999=\"ROC\",COUNTIF('Enrollment Form'!AS999:AT999,\"Yes\")>=1),\"-\",IF(AND('Enrollment Form'!C999=\"Enroll\",COUNTIF('Enrollment Form'!AS999:AT999,\"No\")=2,'Enrollment Form'!AU999=\"\"),\"N\",\"Y\")))","v":""},{"$f":"IF(OR(B992=\"N\",'Enrollment Form'!B999<>\"Subscriber\",'Enrollment Form'!C999=\"ROC\",'Enrollment Form'!O999<>\"Multiple of Salary\"),\"-\",IF(COUNTA('Enrollment Form'!T999:U999)<2,\"N\",\"Y\"))","v":"-"},{"$f":"IF(B992=\"N\",\"\",IF(OR('Enrollment Form'!C999=\"ROC\",'Enrollment Form'!B999<>\"Subscriber\",'Enrollment Form'!O999=\"Waive\",'Enrollment Form'!O999=\"\"),\"-\",IF('Enrollment Form'!P999=\"\",\"N\",\"Y\")))","v":""},{"$f":"IF($B992=\"N\",\"\",IF(AND('Enrollment Form'!$C999=\"ROC\",'Enrollment Form'!$DS999<>\"\"),\"Y\",IF(AND('Enrollment Form'!$C999=\"ROC\",'Enrollment Form'!$DS999=\"\"),\"N\",IF(AND('Enrollment Form'!$C999=\"Enroll\",'Enrollment Form'!$B999=\"Subscriber\",'Enrollment Form'!$CQ999=\"No\",'Enrollment Form'!$DS999=\"\"),\"N\",IF(AND('Enrollment Form'!$C999=\"Enroll\",'Enrollment Form'!$B999=\"Subscriber\",'Enrollment Form'!$CQ999=\"Yes\"),\"-\",\"Y\")))))","v":""},{"$f":"IF($B992=\"N\",\"\",IF(AND('Enrollment Form'!$C999=\"ROC\",'Enrollment Form'!$DT999<>\"\"),\"Y\",IF(AND('Enrollment Form'!$C999=\"ROC\",'Enrollment Form'!$DT999=\"\"),\"N\",IF(AND('Enrollment Form'!$C999=\"Enroll\",'Enrollment Form'!$B999=\"Subscriber\",'Enrollment Form'!$CQ999=\"No\",'Enrollment Form'!$DT999=\"\"),\"N\",IF(AND('Enrollment Form'!$C999=\"Enroll\",'Enrollment Form'!$B999=\"Subscriber\",'Enrollment Form'!$CQ999=\"Yes\"),\"-\",\"Y\")))))","v":""},{"$f":"IF('Enrollment Form'!AH999=\"\",\"\",IF(ISERROR(SEARCH(\".\",'Enrollment Form'!AH999,SEARCH(\"@\",'Enrollment Form'!AH999))),\"N\",\"Y\"))","v":""},{"$f":"IF(OR($B992=\"N\",'Enrollment Form'!$G999=\"\"),\"\",IF('Enrollment Form'!$B999<>\"Subscriber\",\"-\",IF(COUNTIF('Enrollment Form'!$AS999:$AT999,\"Yes\")=2,\"N\",\"Y\")))","v":""},{"$f":"IF(OR('Enrollment Form'!$CC999=\"\",'Enrollment Form'!$CC999=\"No\"),\"-\",IF(AND('Enrollment Form'!$CC999=\"Yes\",'Enrollment Form'!$CD999=\"\"),\"N\",\"Y\"))","v":"-"},{"$f":"IF(OR('Enrollment Form'!$CE999=\"\",'Enrollment Form'!$CE999=\"No\"),\"-\",IF(AND('Enrollment Form'!$CE999=\"Yes\",'Enrollment Form'!$CF999=\"\"),\"N\",\"Y\"))","v":"-"},{"$f":"IF(OR('Enrollment Form'!$CG999=\"\",'Enrollment Form'!$CG999=\"No\"),\"-\",IF(AND('Enrollment Form'!$CG999=\"Yes\",'Enrollment Form'!$CH999=\"\"),\"N\",\"Y\"))","v":"-"},{"$f":"IF(OR('Enrollment Form'!$CG999=\"\",'Enrollment Form'!$CG999=\"No\"),\"-\",IF(AND('Enrollment Form'!$CG999=\"Yes\",'Enrollment Form'!$CI999=\"\"),\"N\",\"Y\"))","v":"-"},{"$f":"IF('Enrollment Form'!B999<>\"Subscriber\",\"-\",IF(AND('Enrollment Form'!B999=\"Subscriber\",'Enrollment Form'!C999=\"Enroll\",'Enrollment Form'!AA999=\"\"),\"N\",\"Y\"))","v":"-"},{"$f":"IF(OR('Enrollment Form'!B999=\"Subscriber\",'Enrollment Form'!B999=\"\"),\"-\",IF('Enrollment Form'!BI999=\"\",\"N\",\"Y\"))","v":"-"},{"$f":"IF('Enrollment Form'!B999<>\"Subscriber\",\"-\",IF(AND('Enrollment Form'!B999=\"Subscriber\",'Enrollment Form'!G999=\"\"),\"N\",\"Y\"))","v":"-"},{"$f":"IF('Enrollment Form'!A999=\"\",\"\",IF('Enrollment Form'!B999=\"Subscriber\",\"-\",IF(AND('Enrollment Form'!B999<>\"Subscriber\",'Enrollment Form'!G999='Enrollment Form'!H999),\"N\",\"Y\")))","v":""},0]
[1000,{"$f":"IF('Enrollment Form'!$A1000<>\"\",\"Y\",\"N\")","v":"N"},{"$f":"IF(AND('Enrollment Form'!$B1000=\"\",'Enrollment Form'!$C1000<>\"\"),\"N\",IF($B993=\"N\",\"\",\"Y\"))","v":""},{"$f":"IF(OR($B993=\"N\",'Enrollment Form'!G1000=\"\"),\"\",IF('Enrollment Form'!$B1000<>\"Subscriber\",\"\",IF('Enrollment Form'!$G1000='Enrollment Form'!$H1000,\"Y\",\"N\")))","v":""},{"$f":"IF($B993=\"N\",\"\",IF(AND(COUNTIFS('Enrollment Form'!$H$11:$H$1000,'Enrollment Form'!$H1000,'Enrollment Form'!$B$11:$B$1000,'Enrollment Form'!$B1000)>1,'Enrollment Form'!$H1000<>\"\"),\"N\",\"Y\"))","v":""},{"$f":"IF($B993=\"N\",\"\",IF(LEN('Enrollment Form'!$Y1000)=0,\"\",IF(LEN('Enrollment Form'!$Y1000)<>5,\"N\",\"Y\")))","v":""},{"$f":"IF($B993=\"N\",\"\",IF(LEN('Enrollment Form'!$AD1000=0),\"\",IF(LEN('Enrollment Form'!$AD1000)<>5,\"N\",\"Y\")))","v":""},{"$f":"IF($B993=\"N\",\"\",IF(LEN('Enrollment Form'!$BL1000=0),\"\",IF(LEN('Enrollment Form'!$BL1000)<>5,\"N\",\"Y\")))","v":""},{"$f":"IF($B993=\"N\",\"\",IF(LEN('Enrollment Form'!$AE1000)=0,\"\",IF(LEN('Enrollment Form'!$AE1000)<>10,\"N\",\"Y\")))","v":""},{"$f":"IF($B993=\"N\",\"\",IF(LEN('Enrollment Form'!$AF1000)=0,\"\",IF(LEN('Enrollment Form'!$AF1000)<>10,\"N\",\"Y\")))","v":""},{"$f":"IF('Enrollment Form'!$O1000<>\"Graded\",\"-\",IF(AND('Enrollment Form'!$O1000=\"Graded\",'Enrollment Form'!$AO1000<>\"\"),\"Y\",\"N\"))","v":"-"},{"$f":"IF($B993=\"N\",\"\",IF(OR('Enrollment Form'!$B1000<>\"Subscriber\",'Enrollment Form'!$C1000=\"ROC\"),\"-\",IF(AND('Enrollment Form'!$B1000=\"Subscriber\",'Enrollment Form'!$C1000=\"Enroll\",'Enrollment Form'!$AJ1000<>\"\"),\"Y\",\"N\")))","v":""},{"$f":"IF($B993=\"N\",\"\",IF(OR('Enrollment Form'!$B1000<>\"Subscriber\",'Enrollment Form'!$C1000=\"ROC\"),\"-\",IF(AND('Enrollment Form'!$B1000=\"Subscriber\",'Enrollment Form'!$C1000=\"Enroll\",'Enrollment Form'!$AK1000<>\"\"),\"Y\",\"N\")))","v":""},{"$f":"IF($B993=\"N\",\"\",IF(OR('Enrollment Form'!$B1000<>\"Subscriber\",'Enrollment Form'!$C1000=\"ROC\"),\"-\",IF(AND('Enrollment Form'!$B1000=\"Subscriber\",'Enrollment Form'!$C1000=\"Enroll\",'Enrollment Form'!$AL1000<>\"\"),\"Y\",\"N\")))","v":""},{"$f":"IF($B993=\"N\",\"\",IF(OR('Enrollment Form'!$B1000<>\"Subscriber\",'Enrollment Form'!$C1000=\"ROC\"),\"-\",IF(AND('Enrollment Form'!$B1000=\"Subscriber\",'Enrollment Form'!$C1000=\"Enroll\",'Enrollment Form'!$AM1000<>\"\"),\"Y\",\"N\")))","v":""},{"$f":"IF($B993=\"N\",\"\",IF(OR('Enrollment Form'!$B1000<>\"Subscriber\",'Enrollment Form'!$C1000=\"ROC\"),\"-\",IF(AND('Enrollment Form'!$B1000=\"Subscriber\",'Enrollment Form'!$C1000=\"Enroll\",'Enrollment Form'!$AN1000<>\"\"),\"Y\",\"N\")))","v":""},{"$f":"IF($B993=\"N\",\"\",IF(OR('Enrollment Form'!$B1000<>\"Subscriber\",'Enrollment Form'!$C1000=\"ROC\"),\"-\",IF(AND('Enrollment Form'!$B1000=\"Subscriber\",'Enrollment Form'!$C1000=\"Enroll\",'Enrollment Form'!$AP1000<>\"\"),\"Y\",\"N\")))","v":""},{"$f":"IF($B993=\"N\",\"\",IF($Q993=\"-\",\"-\",IF(AND($Q993=\"Y\",'Enrollment Form'!$AP1000=\"No\"),\"-\",IF(AND($Q993=\"Y\",'Enrollment Form'!$AP1000=\"Yes\",'Enrollment Form'!$AQ1000<>\"\"),\"Y\",\"N\"))))","v":""},{"$f":"IF($B993=\"N\",\"\",IF(OR('Enrollment Form'!$B1000<>\"Subscriber\",'Enrollment Form'!$C1000=\"ROC\"),\"-\",IF(AND('Enrollment Form'!$B1000=\"Subscriber\",'Enrollment Form'!$C1000=\"Enroll\",'Enrollment Form'!$CO1000<>\"\"),\"Y\",\"N\")))","v":""},{"$f":"IF($B993=\"N\",\"\",IF($S993=\"-\",\"-\",IF(AND($S993=\"Y\",'Enrollment Form'!$CO1000=\"No\"),\"-\",IF(AND($S993=\"Y\",'Enrollment Form'!$CO1000=\"Yes\",'Enrollment Form'!$CP1000<>\"\"),\"Y\",\"N\"))))","v":""},{"$f":"IF(OR('Enrollment Form'!$AV1000=\"Yes\",'Enrollment Form'!$AV1000=\"\"),\"-\",IF(AND('Enrollment Form'!$AV1000=\"No\",ISERROR(FIND(\"HMO\",VLOOKUP('Enrollment Form'!G1000,'Enrollment Form'!H$11:J$1000,3,FALSE),1))=FALSE,COUNTA('Enrollment Form'!$AW1000:$AZ1000)=4),\"Y\",\"N\"))","v":"-"},{"$f":"IF($B993=\"N\",\"\",IF('Enrollment Form'!$B1000=\"Subscriber\",\"-\",IF(COUNTA('Enrollment Form'!$BE1000,'Enrollment Form'!$BG1000)=2,\"Y\",\"N\")))","v":""},{"$f":"IF($B993=\"N\",\"\",IF(OR('Enrollment Form'!$AU1000=\"\",'Enrollment Form'!$AU1000=\"No\"),\"-\",IF(AND('Enrollment Form'!$AU1000=\"Yes\",COUNTA('Enrollment Form'!$CK1000)=1),\"Y\",\"N\")))","v":""},{"$f":"IF(OR('Enrollment Form'!$CK1000=\"\",'Enrollment Form'!$CK1000=\"No\"),\"-\",IF(COUNTA('Enrollment Form'!$CM1000:$CN1000)=2,\"Y\",\"N\"))","v":"-"},{"$f":"IF($B993=\"N\",\"\",IF(COUNTIF('Enrollment Form'!$CZ1000:$DO1000,\"Other\")=COUNTA('Enrollment Form'!$DF1000,'Enrollment Form'!$DA1000,'Enrollment Form'!$DK1000,'Enrollment Form'!$DP1000),\"Y\",\"N\"))","v":""},{"$f":"IF($B993=\"N\",\"\",IF(OR('Enrollment Form'!B1000<>\"Subscriber\",'Enrollment Form'!C1000=\"ROC\",COUNTIF('Enrollment Form'!AS1000:AT1000,\"Yes\")>=1),\"-\",IF(AND('Enrollment Form'!C1000=\"Enroll\",COUNTIF('Enrollment Form'!AS1000:AT1000,\"No\")=2,'Enrollment Form'!AU1000=\"\"),\"N\",\"Y\")))","v":""},{"$f":"IF(OR(B993=\"N\",'Enrollment Form'!B1000<>\"Subscriber\",'Enrollment Form'!C1000=\"ROC\",'Enrollment Form'!O1000<>\"Multiple of Salary\"),\"-\",IF(COUNTA('Enrollment Form'!T1000:U1000)<2,\"N\",\"Y\"))","v":"-"},{"$f":"IF(B993=\"N\",\"\",IF(OR('Enrollment Form'!C1000=\"ROC\",'Enrollment Form'!B1000<>\"Subscriber\",'Enrollment Form'!O1000=\"Waive\",'Enrollment Form'!O1000=\"\"),\"-\",IF('Enrollment Form'!P1000=\"\",\"N\",\"Y\")))","v":""},{"$f":"IF($B993=\"N\",\"\",IF(AND('Enrollment Form'!$C1000=\"ROC\",'Enrollment Form'!$DS1000<>\"\"),\"Y\",IF(AND('Enrollment Form'!$C1000=\"ROC\",'Enrollment Form'!$DS1000=\"\"),\"N\",IF(AND('Enrollment Form'!$C1000=\"Enroll\",'Enrollment Form'!$B1000=\"Subscriber\",'Enrollment Form'!$CQ1000=\"No\",'Enrollment Form'!$DS1000=\"\"),\"N\",IF(AND('Enrollment Form'!$C1000=\"Enroll\",'Enrollment Form'!$B1000=\"Subscriber\",'Enrollment Form'!$CQ1000=\"Yes\"),\"-\",\"Y\")))))","v":""},{"$f":"IF($B993=\"N\",\"\",IF(AND('Enrollment Form'!$C1000=\"ROC\",'Enrollment Form'!$DT1000<>\"\"),\"Y\",IF(AND('Enrollment Form'!$C1000=\"ROC\",'Enrollment Form'!$DT1000=\"\"),\"N\",IF(AND('Enrollment Form'!$C1000=\"Enroll\",'Enrollment Form'!$B1000=\"Subscriber\",'Enrollment Form'!$CQ1000=\"No\",'Enrollment Form'!$DT1000=\"\"),\"N\",IF(AND('Enrollment Form'!$C1000=\"Enroll\",'Enrollment Form'!$B1000=\"Subscriber\",'Enrollment Form'!$CQ1000=\"Yes\"),\"-\",\"Y\")))))","v":""},{"$f":"IF('Enrollment Form'!AH1000=\"\",\"\",IF(ISERROR(SEARCH(\".\",'Enrollment Form'!AH1000,SEARCH(\"@\",'Enrollment Form'!AH1000))),\"N\",\"Y\"))","v":""},{"$f":"IF(OR($B993=\"N\",'Enrollment Form'!$G1000=\"\"),\"\",IF('Enrollment Form'!$B1000<>\"Subscriber\",\"-\",IF(COUNTIF('Enrollment Form'!$AS1000:$AT1000,\"Yes\")=2,\"N\",\"Y\")))","v":""},{"$f":"IF(OR('Enrollment Form'!$CC1000=\"\",'Enrollment Form'!$CC1000=\"No\"),\"-\",IF(AND('Enrollment Form'!$CC1000=\"Yes\",'Enrollment Form'!$CD1000=\"\"),\"N\",\"Y\"))","v":"-"},{"$f":"IF(OR('Enrollment Form'!$CE1000=\"\",'Enrollment Form'!$CE1000=\"No\"),\"-\",IF(AND('Enrollment Form'!$CE1000=\"Yes\",'Enrollment Form'!$CF1000=\"\"),\"N\",\"Y\"))","v":"-"},{"$f":"IF(OR('Enrollment Form'!$CG1000=\"\",'Enrollment Form'!$CG1000=\"No\"),\"-\",IF(AND('Enrollment Form'!$CG1000=\"Yes\",'Enrollment Form'!$CH1000=\"\"),\"N\",\"Y\"))","v":"-"},{"$f":"IF(OR('Enrollment Form'!$CG1000=\"\",'Enrollment Form'!$CG1000=\"No\"),\"-\",IF(AND('Enrollment Form'!$CG1000=\"Yes\",'Enrollment Form'!$CI1000=\"\"),\"N\",\"Y\"))","v":"-"},{"$f":"IF('Enrollment Form'!B1000<>\"Subscriber\",\"-\",IF(AND('Enrollment Form'!B1000=\"Subscriber\",'Enrollment Form'!C1000=\"Enroll\",'Enrollment Form'!AA1000=\"\"),\"N\",\"Y\"))","v":"-"},{"$f":"IF(OR('Enrollment Form'!B1000=\"Subscriber\",'Enrollment Form'!B1000=\"\"),\"-\",IF('Enrollment Form'!BI1000=\"\",\"N\",\"Y\"))","v":"-"},{"$f":"IF('Enrollment Form'!B1000<>\"Subscriber\",\"-\",IF(AND('Enrollment Form'!B1000=\"Subscriber\",'Enrollment Form'!G1000=\"\"),\"N\",\"Y\"))","v":"-"},{"$f":"IF('Enrollment Form'!A1000=\"\",\"\",IF('Enrollment Form'!B1000=\"Subscriber\",\"-\",IF(AND('Enrollment Form'!B1000<>\"Subscriber\",'Enrollment Form'!G1000='Enrollment Form'!H1000),\"N\",\"Y\")))","v":""},0]
[1001,{"$f":"IF('Enrollment Form'!$A1001<>\"\",\"Y\",\"N\")","v":"N"},{"$f":"IF(AND('Enrollment Form'!$B1001=\"\",'Enrollment Form'!$C1001<>\"\"),\"N\",IF($B994=\"N\",\"\",\"Y\"))","v":""},{"$f":"IF(OR($B994=\"N\",'Enrollment Form'!G1001=\"\"),\"\",IF('Enrollment Form'!$B1001<>\"Subscriber\",\"\",IF('Enrollment Form'!$G1001='Enrollment Form'!$H1001,\"Y\",\"N\")))","v":""},{"$f":"IF($B994=\"N\",\"\",IF(AND(COUNTIFS('Enrollment Form'!$H$11:$H$1000,'Enrollment Form'!$H1001,'Enrollment Form'!$B$11:$B$1000,'Enrollment Form'!$B1001)>1,'Enrollment Form'!$H1001<>\"\"),\"N\",\"Y\"))","v":""},{"$f":"IF($B994=\"N\",\"\",IF(LEN('Enrollment Form'!$Y1001)=0,\"\",IF(LEN('Enrollment Form'!$Y1001)<>5,\"N\",\"Y\")))","v":""},{"$f":"IF($B994=\"N\",\"\",IF(LEN('Enrollment Form'!$AD1001=0),\"\",IF(LEN('Enrollment Form'!$AD1001)<>5,\"N\",\"Y\")))","v":""},{"$f":"IF($B994=\"N\",\"\",IF(LEN('Enrollment Form'!$BL1001=0),\"\",IF(LEN('Enrollment Form'!$BL1001)<>5,\"N\",\"Y\")))","v":""},{"$f":"IF($B994=\"N\",\"\",IF(LEN('Enrollment Form'!$AE1001)=0,\"\",IF(LEN('Enrollment Form'!$AE1001)<>10,\"N\",\"Y\")))","v":""},{"$f":"IF($B994=\"N\",\"\",IF(LEN('Enrollment Form'!$AF1001)=0,\"\",IF(LEN('Enrollment Form'!$AF1001)<>10,\"N\",\"Y\")))","v":""},{"$f":"IF('Enrollment Form'!$O1001<>\"Graded\",\"-\",IF(AND('Enrollment Form'!$O1001=\"Graded\",'Enrollment Form'!$AO1001<>\"\"),\"Y\",\"N\"))","v":"-"},{"$f":"IF($B994=\"N\",\"\",IF(OR('Enrollment Form'!$B1001<>\"Subscriber\",'Enrollment Form'!$C1001=\"ROC\"),\"-\",IF(AND('Enrollment Form'!$B1001=\"Subscriber\",'Enrollment Form'!$C1001=\"Enroll\",'Enrollment Form'!$AJ1001<>\"\"),\"Y\",\"N\")))","v":""},{"$f":"IF($B994=\"N\",\"\",IF(OR('Enrollment Form'!$B1001<>\"Subscriber\",'Enrollment Form'!$C1001=\"ROC\"),\"-\",IF(AND('Enrollment Form'!$B1001=\"Subscriber\",'Enrollment Form'!$C1001=\"Enroll\",'Enrollment Form'!$AK1001<>\"\"),\"Y\",\"N\")))","v":""},{"$f":"IF($B994=\"N\",\"\",IF(OR('Enrollment Form'!$B1001<>\"Subscriber\",'Enrollment Form'!$C1001=\"ROC\"),\"-\",IF(AND('Enrollment Form'!$B1001=\"Subscriber\",'Enrollment Form'!$C1001=\"Enroll\",'Enrollment Form'!$AL1001<>\"\"),\"Y\",\"N\")))","v":""},{"$f":"IF($B994=\"N\",\"\",IF(OR('Enrollment Form'!$B1001<>\"Subscriber\",'Enrollment Form'!$C1001=\"ROC\"),\"-\",IF(AND('Enrollment Form'!$B1001=\"Subscriber\",'Enrollment Form'!$C1001=\"Enroll\",'Enrollment Form'!$AM1001<>\"\"),\"Y\",\"N\")))","v":""},{"$f":"IF($B994=\"N\",\"\",IF(OR('Enrollment Form'!$B1001<>\"Subscriber\",'Enrollment Form'!$C1001=\"ROC\"),\"-\",IF(AND('Enrollment Form'!$B1001=\"Subscriber\",'Enrollment Form'!$C1001=\"Enroll\",'Enrollment Form'!$AN1001<>\"\"),\"Y\",\"N\")))","v":""},{"$f":"IF($B994=\"N\",\"\",IF(OR('Enrollment Form'!$B1001<>\"Subscriber\",'Enrollment Form'!$C1001=\"ROC\"),\"-\",IF(AND('Enrollment Form'!$B1001=\"Subscriber\",'Enrollment Form'!$C1001=\"Enroll\",'Enrollment Form'!$AP1001<>\"\"),\"Y\",\"N\")))","v":""},{"$f":"IF($B994=\"N\",\"\",IF($Q994=\"-\",\"-\",IF(AND($Q994=\"Y\",'Enrollment Form'!$AP1001=\"No\"),\"-\",IF(AND($Q994=\"Y\",'Enrollment Form'!$AP1001=\"Yes\",'Enrollment Form'!$AQ1001<>\"\"),\"Y\",\"N\"))))","v":""},{"$f":"IF($B994=\"N\",\"\",IF(OR('Enrollment Form'!$B1001<>\"Subscriber\",'Enrollment Form'!$C1001=\"ROC\"),\"-\",IF(AND('Enrollment Form'!$B1001=\"Subscriber\",'Enrollment Form'!$C1001=\"Enroll\",'Enrollment Form'!$CO1001<>\"\"),\"Y\",\"N\")))","v":""},{"$f":"IF($B994=\"N\",\"\",IF($S994=\"-\",\"-\",IF(AND($S994=\"Y\",'Enrollment Form'!$CO1001=\"No\"),\"-\",IF(AND($S994=\"Y\",'Enrollment Form'!$CO1001=\"Yes\",'Enrollment Form'!$CP1001<>\"\"),\"Y\",\"N\"))))","v":""},{"$f":"IF(OR('Enrollment Form'!$AV1001=\"Yes\",'Enrollment Form'!$AV1001=\"\"),\"-\",IF(AND('Enrollment Form'!$AV1001=\"No\",ISERROR(FIND(\"HMO\",VLOOKUP('Enrollment Form'!G1001,'Enrollment Form'!H$11:J$1000,3,FALSE),1))=FALSE,COUNTA('Enrollment Form'!$AW1001:$AZ1001)=4),\"Y\",\"N\"))","v":"-"},{"$f":"IF($B994=\"N\",\"\",IF('Enrollment Form'!$B1001=\"Subscriber\",\"-\",IF(COUNTA('Enrollment Form'!$BE1001,'Enrollment Form'!$BG1001)=2,\"Y\",\"N\")))","v":""},{"$f":"IF($B994=\"N\",\"\",IF(OR('Enrollment Form'!$AU1001=\"\",'Enrollment Form'!$AU1001=\"No\"),\"-\",IF(AND('Enrollment Form'!$AU1001=\"Yes\",COUNTA('Enrollment Form'!$CK1001)=1),\"Y\",\"N\")))","v":""},{"$f":"IF(OR('Enrollment Form'!$CK1001=\"\",'Enrollment Form'!$CK1001=\"No\"),\"-\",IF(COUNTA('Enrollment Form'!$CM1001:$CN1001)=2,\"Y\",\"N\"))","v":"-"},{"$f":"IF($B994=\"N\",\"\",IF(COUNTIF('Enrollment Form'!$CZ1001:$DO1001,\"Other\")=COUNTA('Enrollment Form'!$DF1001,'Enrollment Form'!$DA1001,'Enrollment Form'!$DK1001,'Enrollment Form'!$DP1001),\"Y\",\"N\"))","v":""},{"$f":"IF($B994=\"N\",\"\",IF(OR('Enrollment Form'!B1001<>\"Subscriber\",'Enrollment Form'!C1001=\"ROC\",COUNTIF('Enrollment Form'!AS1001:AT1001,\"Yes\")>=1),\"-\",IF(AND('Enrollment Form'!C1001=\"Enroll\",COUNTIF('Enrollment Form'!AS1001:AT1001,\"No\")=2,'Enrollment Form'!AU1001=\"\"),\"N\",\"Y\")))","v":""},{"$f":"IF(OR(B994=\"N\",'Enrollment Form'!B1001<>\"Subscriber\",'Enrollment Form'!C1001=\"ROC\",'Enrollment Form'!O1001<>\"Multiple of Salary\"),\"-\",IF(COUNTA('Enrollment Form'!T1001:U1001)<2,\"N\",\"Y\"))","v":"-"},{"$f":"IF(B994=\"N\",\"\",IF(OR('Enrollment Form'!C1001=\"ROC\",'Enrollment Form'!B1001<>\"Subscriber\",'Enrollment Form'!O1001=\"Waive\",'Enrollment Form'!O1001=\"\"),\"-\",IF('Enrollment Form'!P1001=\"\",\"N\",\"Y\")))","v":""},{"$f":"IF($B994=\"N\",\"\",IF(AND('Enrollment Form'!$C1001=\"ROC\",'Enrollment Form'!$DS1001<>\"\"),\"Y\",IF(AND('Enrollment Form'!$C1001=\"ROC\",'Enrollment Form'!$DS1001=\"\"),\"N\",IF(AND('Enrollment Form'!$C1001=\"Enroll\",'Enrollment Form'!$B1001=\"Subscriber\",'Enrollment Form'!$CQ1001=\"No\",'Enrollment Form'!$DS1001=\"\"),\"N\",IF(AND('Enrollment Form'!$C1001=\"Enroll\",'Enrollment Form'!$B1001=\"Subscriber\",'Enrollment Form'!$CQ1001=\"Yes\"),\"-\",\"Y\")))))","v":""},{"$f":"IF($B994=\"N\",\"\",IF(AND('Enrollment Form'!$C1001=\"ROC\",'Enrollment Form'!$DT1001<>\"\"),\"Y\",IF(AND('Enrollment Form'!$C1001=\"ROC\",'Enrollment Form'!$DT1001=\"\"),\"N\",IF(AND('Enrollment Form'!$C1001=\"Enroll\",'Enrollment Form'!$B1001=\"Subscriber\",'Enrollment Form'!$CQ1001=\"No\",'Enrollment Form'!$DT1001=\"\"),\"N\",IF(AND('Enrollment Form'!$C1001=\"Enroll\",'Enrollment Form'!$B1001=\"Subscriber\",'Enrollment Form'!$CQ1001=\"Yes\"),\"-\",\"Y\")))))","v":""},{"$f":"IF('Enrollment Form'!AH1001=\"\",\"\",IF(ISERROR(SEARCH(\".\",'Enrollment Form'!AH1001,SEARCH(\"@\",'Enrollment Form'!AH1001))),\"N\",\"Y\"))","v":""},{"$f":"IF(OR($B994=\"N\",'Enrollment Form'!$G1001=\"\"),\"\",IF('Enrollment Form'!$B1001<>\"Subscriber\",\"-\",IF(COUNTIF('Enrollment Form'!$AS1001:$AT1001,\"Yes\")=2,\"N\",\"Y\")))","v":""},{"$f":"IF(OR('Enrollment Form'!$CC1001=\"\",'Enrollment Form'!$CC1001=\"No\"),\"-\",IF(AND('Enrollment Form'!$CC1001=\"Yes\",'Enrollment Form'!$CD1001=\"\"),\"N\",\"Y\"))","v":"-"},{"$f":"IF(OR('Enrollment Form'!$CE1001=\"\",'Enrollment Form'!$CE1001=\"No\"),\"-\",IF(AND('Enrollment Form'!$CE1001=\"Yes\",'Enrollment Form'!$CF1001=\"\"),\"N\",\"Y\"))","v":"-"},{"$f":"IF(OR('Enrollment Form'!$CG1001=\"\",'Enrollment Form'!$CG1001=\"No\"),\"-\",IF(AND('Enrollment Form'!$CG1001=\"Yes\",'Enrollment Form'!$CH1001=\"\"),\"N\",\"Y\"))","v":"-"},{"$f":"IF(OR('Enrollment Form'!$CG1001=\"\",'Enrollment Form'!$CG1001=\"No\"),\"-\",IF(AND('Enrollment Form'!$CG1001=\"Yes\",'Enrollment Form'!$CI1001=\"\"),\"N\",\"Y\"))","v":"-"},{"$f":"IF('Enrollment Form'!B1001<>\"Subscriber\",\"-\",IF(AND('Enrollment Form'!B1001=\"Subscriber\",'Enrollment Form'!C1001=\"Enroll\",'Enrollment Form'!AA1001=\"\"),\"N\",\"Y\"))","v":"-"},{"$f":"IF(OR('Enrollment Form'!B1001=\"Subscriber\",'Enrollment Form'!B1001=\"\"),\"-\",IF('Enrollment Form'!BI1001=\"\",\"N\",\"Y\"))","v":"-"},{"$f":"IF('Enrollment Form'!B1001<>\"Subscriber\",\"-\",IF(AND('Enrollment Form'!B1001=\"Subscriber\",'Enrollment Form'!G1001=\"\"),\"N\",\"Y\"))","v":"-"},{"$f":"IF('Enrollment Form'!A1001=\"\",\"\",IF('Enrollment Form'!B1001=\"Subscriber\",\"-\",IF(AND('Enrollment Form'!B1001<>\"Subscriber\",'Enrollment Form'!G1001='Enrollment Form'!H1001),\"N\",\"Y\")))","v":""},0]
[1002,{"$f":"IF('Enrollment Form'!$A1002<>\"\",\"Y\",\"N\")","v":"N"},{"$f":"IF(AND('Enrollment Form'!$B1002=\"\",'Enrollment Form'!$C1002<>\"\"),\"N\",IF($B995=\"N\",\"\",\"Y\"))","v":""},{"$f":"IF(OR($B995=\"N\",'Enrollment Form'!G1002=\"\"),\"\",IF('Enrollment Form'!$B1002<>\"Subscriber\",\"\",IF('Enrollment Form'!$G1002='Enrollment Form'!$H1002,\"Y\",\"N\")))","v":""},{"$f":"IF($B995=\"N\",\"\",IF(AND(COUNTIFS('Enrollment Form'!$H$11:$H$1000,'Enrollment Form'!$H1002,'Enrollment Form'!$B$11:$B$1000,'Enrollment Form'!$B1002)>1,'Enrollment Form'!$H1002<>\"\"),\"N\",\"Y\"))","v":""},{"$f":"IF($B995=\"N\",\"\",IF(LEN('Enrollment Form'!$Y1002)=0,\"\",IF(LEN('Enrollment Form'!$Y1002)<>5,\"N\",\"Y\")))","v":""},{"$f":"IF($B995=\"N\",\"\",IF(LEN('Enrollment Form'!$AD1002=0),\"\",IF(LEN('Enrollment Form'!$AD1002)<>5,\"N\",\"Y\")))","v":""},{"$f":"IF($B995=\"N\",\"\",IF(LEN('Enrollment Form'!$BL1002=0),\"\",IF(LEN('Enrollment Form'!$BL1002)<>5,\"N\",\"Y\")))","v":""},{"$f":"IF($B995=\"N\",\"\",IF(LEN('Enrollment Form'!$AE1002)=0,\"\",IF(LEN('Enrollment Form'!$AE1002)<>10,\"N\",\"Y\")))","v":""},{"$f":"IF($B995=\"N\",\"\",IF(LEN('Enrollment Form'!$AF1002)=0,\"\",IF(LEN('Enrollment Form'!$AF1002)<>10,\"N\",\"Y\")))","v":""},{"$f":"IF('Enrollment Form'!$O1002<>\"Graded\",\"-\",IF(AND('Enrollment Form'!$O1002=\"Graded\",'Enrollment Form'!$AO1002<>\"\"),\"Y\",\"N\"))","v":"-"},{"$f":"IF($B995=\"N\",\"\",IF(OR('Enrollment Form'!$B1002<>\"Subscriber\",'Enrollment Form'!$C1002=\"ROC\"),\"-\",IF(AND('Enrollment Form'!$B1002=\"Subscriber\",'Enrollment Form'!$C1002=\"Enroll\",'Enrollment Form'!$AJ1002<>\"\"),\"Y\",\"N\")))","v":""},{"$f":"IF($B995=\"N\",\"\",IF(OR('Enrollment Form'!$B1002<>\"Subscriber\",'Enrollment Form'!$C1002=\"ROC\"),\"-\",IF(AND('Enrollment Form'!$B1002=\"Subscriber\",'Enrollment Form'!$C1002=\"Enroll\",'Enrollment Form'!$AK1002<>\"\"),\"Y\",\"N\")))","v":""},{"$f":"IF($B995=\"N\",\"\",IF(OR('Enrollment Form'!$B1002<>\"Subscriber\",'Enrollment Form'!$C1002=\"ROC\"),\"-\",IF(AND('Enrollment Form'!$B1002=\"Subscriber\",'Enrollment Form'!$C1002=\"Enroll\",'Enrollment Form'!$AL1002<>\"\"),\"Y\",\"N\")))","v":""},{"$f":"IF($B995=\"N\",\"\",IF(OR('Enrollment Form'!$B1002<>\"Subscriber\",'Enrollment Form'!$C1002=\"ROC\"),\"-\",IF(AND('Enrollment Form'!$B1002=\"Subscriber\",'Enrollment Form'!$C1002=\"Enroll\",'Enrollment Form'!$AM1002<>\"\"),\"Y\",\"N\")))","v":""},{"$f":"IF($B995=\"N\",\"\",IF(OR('Enrollment Form'!$B1002<>\"Subscriber\",'Enrollment Form'!$C1002=\"ROC\"),\"-\",IF(AND('Enrollment Form'!$B1002=\"Subscriber\",'Enrollment Form'!$C1002=\"Enroll\",'Enrollment Form'!$AN1002<>\"\"),\"Y\",\"N\")))","v":""},{"$f":"IF($B995=\"N\",\"\",IF(OR('Enrollment Form'!$B1002<>\"Subscriber\",'Enrollment Form'!$C1002=\"ROC\"),\"-\",IF(AND('Enrollment Form'!$B1002=\"Subscriber\",'Enrollment Form'!$C1002=\"Enroll\",'Enrollment Form'!$AP1002<>\"\"),\"Y\",\"N\")))","v":""},{"$f":"IF($B995=\"N\",\"\",IF($Q995=\"-\",\"-\",IF(AND($Q995=\"Y\",'Enrollment Form'!$AP1002=\"No\"),\"-\",IF(AND($Q995=\"Y\",'Enrollment Form'!$AP1002=\"Yes\",'Enrollment Form'!$AQ1002<>\"\"),\"Y\",\"N\"))))","v":""},{"$f":"IF($B995=\"N\",\"\",IF(OR('Enrollment Form'!$B1002<>\"Subscriber\",'Enrollment Form'!$C1002=\"ROC\"),\"-\",IF(AND('Enrollment Form'!$B1002=\"Subscriber\",'Enrollment Form'!$C1002=\"Enroll\",'Enrollment Form'!$CO1002<>\"\"),\"Y\",\"N\")))","v":""},{"$f":"IF($B995=\"N\",\"\",IF($S995=\"-\",\"-\",IF(AND($S995=\"Y\",'Enrollment Form'!$CO1002=\"No\"),\"-\",IF(AND($S995=\"Y\",'Enrollment Form'!$CO1002=\"Yes\",'Enrollment Form'!$CP1002<>\"\"),\"Y\",\"N\"))))","v":""},{"$f":"IF(OR('Enrollment Form'!$AV1002=\"Yes\",'Enrollment Form'!$AV1002=\"\"),\"-\",IF(AND('Enrollment Form'!$AV1002=\"No\",ISERROR(FIND(\"HMO\",VLOOKUP('Enrollment Form'!G1002,'Enrollment Form'!H$11:J$1000,3,FALSE),1))=FALSE,COUNTA('Enrollment Form'!$AW1002:$AZ1002)=4),\"Y\",\"N\"))","v":"-"},{"$f":"IF($B995=\"N\",\"\",IF('Enrollment Form'!$B1002=\"Subscriber\",\"-\",IF(COUNTA('Enrollment Form'!$BE1002,'Enrollment Form'!$BG1002)=2,\"Y\",\"N\")))","v":""},{"$f":"IF($B995=\"N\",\"\",IF(OR('Enrollment Form'!$AU1002=\"\",'Enrollment Form'!$AU1002=\"No\"),\"-\",IF(AND('Enrollment Form'!$AU1002=\"Yes\",COUNTA('Enrollment Form'!$CK1002)=1),\"Y\",\"N\")))","v":""},{"$f":"IF(OR('Enrollment Form'!$CK1002=\"\",'Enrollment Form'!$CK1002=\"No\"),\"-\",IF(COUNTA('Enrollment Form'!$CM1002:$CN1002)=2,\"Y\",\"N\"))","v":"-"},{"$f":"IF($B995=\"N\",\"\",IF(COUNTIF('Enrollment Form'!$CZ1002:$DO1002,\"Other\")=COUNTA('Enrollment Form'!$DF1002,'Enrollment Form'!$DA1002,'Enrollment Form'!$DK1002,'Enrollment Form'!$DP1002),\"Y\",\"N\"))","v":""},{"$f":"IF($B995=\"N\",\"\",IF(OR('Enrollment Form'!B1002<>\"Subscriber\",'Enrollment Form'!C1002=\"ROC\",COUNTIF('Enrollment Form'!AS1002:AT1002,\"Yes\")>=1),\"-\",IF(AND('Enrollment Form'!C1002=\"Enroll\",COUNTIF('Enrollment Form'!AS1002:AT1002,\"No\")=2,'Enrollment Form'!AU1002=\"\"),\"N\",\"Y\")))","v":""},{"$f":"IF(OR(B995=\"N\",'Enrollment Form'!B1002<>\"Subscriber\",'Enrollment Form'!C1002=\"ROC\",'Enrollment Form'!O1002<>\"Multiple of Salary\"),\"-\",IF(COUNTA('Enrollment Form'!T1002:U1002)<2,\"N\",\"Y\"))","v":"-"},{"$f":"IF(B995=\"N\",\"\",IF(OR('Enrollment Form'!C1002=\"ROC\",'Enrollment Form'!B1002<>\"Subscriber\",'Enrollment Form'!O1002=\"Waive\",'Enrollment Form'!O1002=\"\"),\"-\",IF('Enrollment Form'!P1002=\"\",\"N\",\"Y\")))","v":""},{"$f":"IF($B995=\"N\",\"\",IF(AND('Enrollment Form'!$C1002=\"ROC\",'Enrollment Form'!$DS1002<>\"\"),\"Y\",IF(AND('Enrollment Form'!$C1002=\"ROC\",'Enrollment Form'!$DS1002=\"\"),\"N\",IF(AND('Enrollment Form'!$C1002=\"Enroll\",'Enrollment Form'!$B1002=\"Subscriber\",'Enrollment Form'!$CQ1002=\"No\",'Enrollment Form'!$DS1002=\"\"),\"N\",IF(AND('Enrollment Form'!$C1002=\"Enroll\",'Enrollment Form'!$B1002=\"Subscriber\",'Enrollment Form'!$CQ1002=\"Yes\"),\"-\",\"Y\")))))","v":""},{"$f":"IF($B995=\"N\",\"\",IF(AND('Enrollment Form'!$C1002=\"ROC\",'Enrollment Form'!$DT1002<>\"\"),\"Y\",IF(AND('Enrollment Form'!$C1002=\"ROC\",'Enrollment Form'!$DT1002=\"\"),\"N\",IF(AND('Enrollment Form'!$C1002=\"Enroll\",'Enrollment Form'!$B1002=\"Subscriber\",'Enrollment Form'!$CQ1002=\"No\",'Enrollment Form'!$DT1002=\"\"),\"N\",IF(AND('Enrollment Form'!$C1002=\"Enroll\",'Enrollment Form'!$B1002=\"Subscriber\",'Enrollment Form'!$CQ1002=\"Yes\"),\"-\",\"Y\")))))","v":""},{"$f":"IF('Enrollment Form'!AH1002=\"\",\"\",IF(ISERROR(SEARCH(\".\",'Enrollment Form'!AH1002,SEARCH(\"@\",'Enrollment Form'!AH1002))),\"N\",\"Y\"))","v":""},{"$f":"IF(OR($B995=\"N\",'Enrollment Form'!$G1002=\"\"),\"\",IF('Enrollment Form'!$B1002<>\"Subscriber\",\"-\",IF(COUNTIF('Enrollment Form'!$AS1002:$AT1002,\"Yes\")=2,\"N\",\"Y\")))","v":""},{"$f":"IF(OR('Enrollment Form'!$CC1002=\"\",'Enrollment Form'!$CC1002=\"No\"),\"-\",IF(AND('Enrollment Form'!$CC1002=\"Yes\",'Enrollment Form'!$CD1002=\"\"),\"N\",\"Y\"))","v":"-"},{"$f":"IF(OR('Enrollment Form'!$CE1002=\"\",'Enrollment Form'!$CE1002=\"No\"),\"-\",IF(AND('Enrollment Form'!$CE1002=\"Yes\",'Enrollment Form'!$CF1002=\"\"),\"N\",\"Y\"))","v":"-"},{"$f":"IF(OR('Enrollment Form'!$CG1002=\"\",'Enrollment Form'!$CG1002=\"No\"),\"-\",IF(AND('Enrollment Form'!$CG1002=\"Yes\",'Enrollment Form'!$CH1002=\"\"),\"N\",\"Y\"))","v":"-"},{"$f":"IF(OR('Enrollment Form'!$CG1002=\"\",'Enrollment Form'!$CG1002=\"No\"),\"-\",IF(AND('Enrollment Form'!$CG1002=\"Yes\",'Enrollment Form'!$CI1002=\"\"),\"N\",\"Y\"))","v":"-"},{"$f":"IF('Enrollment Form'!B1002<>\"Subscriber\",\"-\",IF(AND('Enrollment Form'!B1002=\"Subscriber\",'Enrollment Form'!C1002=\"Enroll\",'Enrollment Form'!AA1002=\"\"),\"N\",\"Y\"))","v":"-"},{"$f":"IF(OR('Enrollment Form'!B1002=\"Subscriber\",'Enrollment Form'!B1002=\"\"),\"-\",IF('Enrollment Form'!BI1002=\"\",\"N\",\"Y\"))","v":"-"},{"$f":"IF('Enrollment Form'!B1002<>\"Subscriber\",\"-\",IF(AND('Enrollment Form'!B1002=\"Subscriber\",'Enrollment Form'!G1002=\"\"),\"N\",\"Y\"))","v":"-"},{"$f":"IF('Enrollment Form'!A1002=\"\",\"\",IF('Enrollment Form'!B1002=\"Subscriber\",\"-\",IF(AND('Enrollment Form'!B1002<>\"Subscriber\",'Enrollment Form'!G1002='Enrollment Form'!H1002),\"N\",\"Y\")))","v":""},0]
[1003,{"$f":"IF('Enrollment Form'!$A1003<>\"\",\"Y\",\"N\")","v":"N"},{"$f":"IF(AND('Enrollment Form'!$B1003=\"\",'Enrollment Form'!$C1003<>\"\"),\"N\",IF($B996=\"N\",\"\",\"Y\"))","v":""},{"$f":"IF(OR($B996=\"N\",'Enrollment Form'!G1003=\"\"),\"\",IF('Enrollment Form'!$B1003<>\"Subscriber\",\"\",IF('Enrollment Form'!$G1003='Enrollment Form'!$H1003,\"Y\",\"N\")))","v":""},{"$f":"IF($B996=\"N\",\"\",IF(AND(COUNTIFS('Enrollment Form'!$H$11:$H$1000,'Enrollment Form'!$H1003,'Enrollment Form'!$B$11:$B$1000,'Enrollment Form'!$B1003)>1,'Enrollment Form'!$H1003<>\"\"),\"N\",\"Y\"))","v":""},{"$f":"IF($B996=\"N\",\"\",IF(LEN('Enrollment Form'!$Y1003)=0,\"\",IF(LEN('Enrollment Form'!$Y1003)<>5,\"N\",\"Y\")))","v":""},{"$f":"IF($B996=\"N\",\"\",IF(LEN('Enrollment Form'!$AD1003=0),\"\",IF(LEN('Enrollment Form'!$AD1003)<>5,\"N\",\"Y\")))","v":""},{"$f":"IF($B996=\"N\",\"\",IF(LEN('Enrollment Form'!$BL1003=0),\"\",IF(LEN('Enrollment Form'!$BL1003)<>5,\"N\",\"Y\")))","v":""},{"$f":"IF($B996=\"N\",\"\",IF(LEN('Enrollment Form'!$AE1003)=0,\"\",IF(LEN('Enrollment Form'!$AE1003)<>10,\"N\",\"Y\")))","v":""},{"$f":"IF($B996=\"N\",\"\",IF(LEN('Enrollment Form'!$AF1003)=0,\"\",IF(LEN('Enrollment Form'!$AF1003)<>10,\"N\",\"Y\")))","v":""},{"$f":"IF('Enrollment Form'!$O1003<>\"Graded\",\"-\",IF(AND('Enrollment Form'!$O1003=\"Graded\",'Enrollment Form'!$AO1003<>\"\"),\"Y\",\"N\"))","v":"-"},{"$f":"IF($B996=\"N\",\"\",IF(OR('Enrollment Form'!$B1003<>\"Subscriber\",'Enrollment Form'!$C1003=\"ROC\"),\"-\",IF(AND('Enrollment Form'!$B1003=\"Subscriber\",'Enrollment Form'!$C1003=\"Enroll\",'Enrollment Form'!$AJ1003<>\"\"),\"Y\",\"N\")))","v":""},{"$f":"IF($B996=\"N\",\"\",IF(OR('Enrollment Form'!$B1003<>\"Subscriber\",'Enrollment Form'!$C1003=\"ROC\"),\"-\",IF(AND('Enrollment Form'!$B1003=\"Subscriber\",'Enrollment Form'!$C1003=\"Enroll\",'Enrollment Form'!$AK1003<>\"\"),\"Y\",\"N\")))","v":""},{"$f":"IF($B996=\"N\",\"\",IF(OR('Enrollment Form'!$B1003<>\"Subscriber\",'Enrollment Form'!$C1003=\"ROC\"),\"-\",IF(AND('Enrollment Form'!$B1003=\"Subscriber\",'Enrollment Form'!$C1003=\"Enroll\",'Enrollment Form'!$AL1003<>\"\"),\"Y\",\"N\")))","v":""},{"$f":"IF($B996=\"N\",\"\",IF(OR('Enrollment Form'!$B1003<>\"Subscriber\",'Enrollment Form'!$C1003=\"ROC\"),\"-\",IF(AND('Enrollment Form'!$B1003=\"Subscriber\",'Enrollment Form'!$C1003=\"Enroll\",'Enrollment Form'!$AM1003<>\"\"),\"Y\",\"N\")))","v":""},{"$f":"IF($B996=\"N\",\"\",IF(OR('Enrollment Form'!$B1003<>\"Subscriber\",'Enrollment Form'!$C1003=\"ROC\"),\"-\",IF(AND('Enrollment Form'!$B1003=\"Subscriber\",'Enrollment Form'!$C1003=\"Enroll\",'Enrollment Form'!$AN1003<>\"\"),\"Y\",\"N\")))","v":""},{"$f":"IF($B996=\"N\",\"\",IF(OR('Enrollment Form'!$B1003<>\"Subscriber\",'Enrollment Form'!$C1003=\"ROC\"),\"-\",IF(AND('Enrollment Form'!$B1003=\"Subscriber\",'Enrollment Form'!$C1003=\"Enroll\",'Enrollment Form'!$AP1003<>\"\"),\"Y\",\"N\")))","v":""},{"$f":"IF($B996=\"N\",\"\",IF($Q996=\"-\",\"-\",IF(AND($Q996=\"Y\",'Enrollment Form'!$AP1003=\"No\"),\"-\",IF(AND($Q996=\"Y\",'Enrollment Form'!$AP1003=\"Yes\",'Enrollment Form'!$AQ1003<>\"\"),\"Y\",\"N\"))))","v":""},{"$f":"IF($B996=\"N\",\"\",IF(OR('Enrollment Form'!$B1003<>\"Subscriber\",'Enrollment Form'!$C1003=\"ROC\"),\"-\",IF(AND('Enrollment Form'!$B1003=\"Subscriber\",'Enrollment Form'!$C1003=\"Enroll\",'Enrollment Form'!$CO1003<>\"\"),\"Y\",\"N\")))","v":""},{"$f":"IF($B996=\"N\",\"\",IF($S996=\"-\",\"-\",IF(AND($S996=\"Y\",'Enrollment Form'!$CO1003=\"No\"),\"-\",IF(AND($S996=\"Y\",'Enrollment Form'!$CO1003=\"Yes\",'Enrollment Form'!$CP1003<>\"\"),\"Y\",\"N\"))))","v":""},{"$f":"IF(OR('Enrollment Form'!$AV1003=\"Yes\",'Enrollment Form'!$AV1003=\"\"),\"-\",IF(AND('Enrollment Form'!$AV1003=\"No\",ISERROR(FIND(\"HMO\",VLOOKUP('Enrollment Form'!G1003,'Enrollment Form'!H$11:J$1000,3,FALSE),1))=FALSE,COUNTA('Enrollment Form'!$AW1003:$AZ1003)=4),\"Y\",\"N\"))","v":"-"},{"$f":"IF($B996=\"N\",\"\",IF('Enrollment Form'!$B1003=\"Subscriber\",\"-\",IF(COUNTA('Enrollment Form'!$BE1003,'Enrollment Form'!$BG1003)=2,\"Y\",\"N\")))","v":""},{"$f":"IF($B996=\"N\",\"\",IF(OR('Enrollment Form'!$AU1003=\"\",'Enrollment Form'!$AU1003=\"No\"),\"-\",IF(AND('Enrollment Form'!$AU1003=\"Yes\",COUNTA('Enrollment Form'!$CK1003)=1),\"Y\",\"N\")))","v":""},{"$f":"IF(OR('Enrollment Form'!$CK1003=\"\",'Enrollment Form'!$CK1003=\"No\"),\"-\",IF(COUNTA('Enrollment Form'!$CM1003:$CN1003)=2,\"Y\",\"N\"))","v":"-"},{"$f":"IF($B996=\"N\",\"\",IF(COUNTIF('Enrollment Form'!$CZ1003:$DO1003,\"Other\")=COUNTA('Enrollment Form'!$DF1003,'Enrollment Form'!$DA1003,'Enrollment Form'!$DK1003,'Enrollment Form'!$DP1003),\"Y\",\"N\"))","v":""},{"$f":"IF($B996=\"N\",\"\",IF(OR('Enrollment Form'!B1003<>\"Subscriber\",'Enrollment Form'!C1003=\"ROC\",COUNTIF('Enrollment Form'!AS1003:AT1003,\"Yes\")>=1),\"-\",IF(AND('Enrollment Form'!C1003=\"Enroll\",COUNTIF('Enrollment Form'!AS1003:AT1003,\"No\")=2,'Enrollment Form'!AU1003=\"\"),\"N\",\"Y\")))","v":""},{"$f":"IF(OR(B996=\"N\",'Enrollment Form'!B1003<>\"Subscriber\",'Enrollment Form'!C1003=\"ROC\",'Enrollment Form'!O1003<>\"Multiple of Salary\"),\"-\",IF(COUNTA('Enrollment Form'!T1003:U1003)<2,\"N\",\"Y\"))","v":"-"},{"$f":"IF(B996=\"N\",\"\",IF(OR('Enrollment Form'!C1003=\"ROC\",'Enrollment Form'!B1003<>\"Subscriber\",'Enrollment Form'!O1003=\"Waive\",'Enrollment Form'!O1003=\"\"),\"-\",IF('Enrollment Form'!P1003=\"\",\"N\",\"Y\")))","v":""},{"$f":"IF($B996=\"N\",\"\",IF(AND('Enrollment Form'!$C1003=\"ROC\",'Enrollment Form'!$DS1003<>\"\"),\"Y\",IF(AND('Enrollment Form'!$C1003=\"ROC\",'Enrollment Form'!$DS1003=\"\"),\"N\",IF(AND('Enrollment Form'!$C1003=\"Enroll\",'Enrollment Form'!$B1003=\"Subscriber\",'Enrollment Form'!$CQ1003=\"No\",'Enrollment Form'!$DS1003=\"\"),\"N\",IF(AND('Enrollment Form'!$C1003=\"Enroll\",'Enrollment Form'!$B1003=\"Subscriber\",'Enrollment Form'!$CQ1003=\"Yes\"),\"-\",\"Y\")))))","v":""},{"$f":"IF($B996=\"N\",\"\",IF(AND('Enrollment Form'!$C1003=\"ROC\",'Enrollment Form'!$DT1003<>\"\"),\"Y\",IF(AND('Enrollment Form'!$C1003=\"ROC\",'Enrollment Form'!$DT1003=\"\"),\"N\",IF(AND('Enrollment Form'!$C1003=\"Enroll\",'Enrollment Form'!$B1003=\"Subscriber\",'Enrollment Form'!$CQ1003=\"No\",'Enrollment Form'!$DT1003=\"\"),\"N\",IF(AND('Enrollment Form'!$C1003=\"Enroll\",'Enrollment Form'!$B1003=\"Subscriber\",'Enrollment Form'!$CQ1003=\"Yes\"),\"-\",\"Y\")))))","v":""},{"$f":"IF('Enrollment Form'!AH1003=\"\",\"\",IF(ISERROR(SEARCH(\".\",'Enrollment Form'!AH1003,SEARCH(\"@\",'Enrollment Form'!AH1003))),\"N\",\"Y\"))","v":""},{"$f":"IF(OR($B996=\"N\",'Enrollment Form'!$G1003=\"\"),\"\",IF('Enrollment Form'!$B1003<>\"Subscriber\",\"-\",IF(COUNTIF('Enrollment Form'!$AS1003:$AT1003,\"Yes\")=2,\"N\",\"Y\")))","v":""},{"$f":"IF(OR('Enrollment Form'!$CC1003=\"\",'Enrollment Form'!$CC1003=\"No\"),\"-\",IF(AND('Enrollment Form'!$CC1003=\"Yes\",'Enrollment Form'!$CD1003=\"\"),\"N\",\"Y\"))","v":"-"},{"$f":"IF(OR('Enrollment Form'!$CE1003=\"\",'Enrollment Form'!$CE1003=\"No\"),\"-\",IF(AND('Enrollment Form'!$CE1003=\"Yes\",'Enrollment Form'!$CF1003=\"\"),\"N\",\"Y\"))","v":"-"},{"$f":"IF(OR('Enrollment Form'!$CG1003=\"\",'Enrollment Form'!$CG1003=\"No\"),\"-\",IF(AND('Enrollment Form'!$CG1003=\"Yes\",'Enrollment Form'!$CH1003=\"\"),\"N\",\"Y\"))","v":"-"},{"$f":"IF(OR('Enrollment Form'!$CG1003=\"\",'Enrollment Form'!$CG1003=\"No\"),\"-\",IF(AND('Enrollment Form'!$CG1003=\"Yes\",'Enrollment Form'!$CI1003=\"\"),\"N\",\"Y\"))","v":"-"},{"$f":"IF('Enrollment Form'!B1003<>\"Subscriber\",\"-\",IF(AND('Enrollment Form'!B1003=\"Subscriber\",'Enrollment Form'!C1003=\"Enroll\",'Enrollment Form'!AA1003=\"\"),\"N\",\"Y\"))","v":"-"},{"$f":"IF(OR('Enrollment Form'!B1003=\"Subscriber\",'Enrollment Form'!B1003=\"\"),\"-\",IF('Enrollment Form'!BI1003=\"\",\"N\",\"Y\"))","v":"-"},{"$f":"IF('Enrollment Form'!B1003<>\"Subscriber\",\"-\",IF(AND('Enrollment Form'!B1003=\"Subscriber\",'Enrollment Form'!G1003=\"\"),\"N\",\"Y\"))","v":"-"},{"$f":"IF('Enrollment Form'!A1003=\"\",\"\",IF('Enrollment Form'!B1003=\"Subscriber\",\"-\",IF(AND('Enrollment Form'!B1003<>\"Subscriber\",'Enrollment Form'!G1003='Enrollment Form'!H1003),\"N\",\"Y\")))","v":""},0]
[1004,{"$f":"IF('Enrollment Form'!$A1004<>\"\",\"Y\",\"N\")","v":"N"},{"$f":"IF(AND('Enrollment Form'!$B1004=\"\",'Enrollment Form'!$C1004<>\"\"),\"N\",IF($B997=\"N\",\"\",\"Y\"))","v":""},{"$f":"IF(OR($B997=\"N\",'Enrollment Form'!G1004=\"\"),\"\",IF('Enrollment Form'!$B1004<>\"Subscriber\",\"\",IF('Enrollment Form'!$G1004='Enrollment Form'!$H1004,\"Y\",\"N\")))","v":""},{"$f":"IF($B997=\"N\",\"\",IF(AND(COUNTIFS('Enrollment Form'!$H$11:$H$1000,'Enrollment Form'!$H1004,'Enrollment Form'!$B$11:$B$1000,'Enrollment Form'!$B1004)>1,'Enrollment Form'!$H1004<>\"\"),\"N\",\"Y\"))","v":""},{"$f":"IF($B997=\"N\",\"\",IF(LEN('Enrollment Form'!$Y1004)=0,\"\",IF(LEN('Enrollment Form'!$Y1004)<>5,\"N\",\"Y\")))","v":""},{"$f":"IF($B997=\"N\",\"\",IF(LEN('Enrollment Form'!$AD1004=0),\"\",IF(LEN('Enrollment Form'!$AD1004)<>5,\"N\",\"Y\")))","v":""},{"$f":"IF($B997=\"N\",\"\",IF(LEN('Enrollment Form'!$BL1004=0),\"\",IF(LEN('Enrollment Form'!$BL1004)<>5,\"N\",\"Y\")))","v":""},{"$f":"IF($B997=\"N\",\"\",IF(LEN('Enrollment Form'!$AE1004)=0,\"\",IF(LEN('Enrollment Form'!$AE1004)<>10,\"N\",\"Y\")))","v":""},{"$f":"IF($B997=\"N\",\"\",IF(LEN('Enrollment Form'!$AF1004)=0,\"\",IF(LEN('Enrollment Form'!$AF1004)<>10,\"N\",\"Y\")))","v":""},{"$f":"IF('Enrollment Form'!$O1004<>\"Graded\",\"-\",IF(AND('Enrollment Form'!$O1004=\"Graded\",'Enrollment Form'!$AO1004<>\"\"),\"Y\",\"N\"))","v":"-"},{"$f":"IF($B997=\"N\",\"\",IF(OR('Enrollment Form'!$B1004<>\"Subscriber\",'Enrollment Form'!$C1004=\"ROC\"),\"-\",IF(AND('Enrollment Form'!$B1004=\"Subscriber\",'Enrollment Form'!$C1004=\"Enroll\",'Enrollment Form'!$AJ1004<>\"\"),\"Y\",\"N\")))","v":""},{"$f":"IF($B997=\"N\",\"\",IF(OR('Enrollment Form'!$B1004<>\"Subscriber\",'Enrollment Form'!$C1004=\"ROC\"),\"-\",IF(AND('Enrollment Form'!$B1004=\"Subscriber\",'Enrollment Form'!$C1004=\"Enroll\",'Enrollment Form'!$AK1004<>\"\"),\"Y\",\"N\")))","v":""},{"$f":"IF($B997=\"N\",\"\",IF(OR('Enrollment Form'!$B1004<>\"Subscriber\",'Enrollment Form'!$C1004=\"ROC\"),\"-\",IF(AND('Enrollment Form'!$B1004=\"Subscriber\",'Enrollment Form'!$C1004=\"Enroll\",'Enrollment Form'!$AL1004<>\"\"),\"Y\",\"N\")))","v":""},{"$f":"IF($B997=\"N\",\"\",IF(OR('Enrollment Form'!$B1004<>\"Subscriber\",'Enrollment Form'!$C1004=\"ROC\"),\"-\",IF(AND('Enrollment Form'!$B1004=\"Subscriber\",'Enrollment Form'!$C1004=\"Enroll\",'Enrollment Form'!$AM1004<>\"\"),\"Y\",\"N\")))","v":""},{"$f":"IF($B997=\"N\",\"\",IF(OR('Enrollment Form'!$B1004<>\"Subscriber\",'Enrollment Form'!$C1004=\"ROC\"),\"-\",IF(AND('Enrollment Form'!$B1004=\"Subscriber\",'Enrollment Form'!$C1004=\"Enroll\",'Enrollment Form'!$AN1004<>\"\"),\"Y\",\"N\")))","v":""},{"$f":"IF($B997=\"N\",\"\",IF(OR('Enrollment Form'!$B1004<>\"Subscriber\",'Enrollment Form'!$C1004=\"ROC\"),\"-\",IF(AND('Enrollment Form'!$B1004=\"Subscriber\",'Enrollment Form'!$C1004=\"Enroll\",'Enrollment Form'!$AP1004<>\"\"),\"Y\",\"N\")))","v":""},{"$f":"IF($B997=\"N\",\"\",IF($Q997=\"-\",\"-\",IF(AND($Q997=\"Y\",'Enrollment Form'!$AP1004=\"No\"),\"-\",IF(AND($Q997=\"Y\",'Enrollment Form'!$AP1004=\"Yes\",'Enrollment Form'!$AQ1004<>\"\"),\"Y\",\"N\"))))","v":""},{"$f":"IF($B997=\"N\",\"\",IF(OR('Enrollment Form'!$B1004<>\"Subscriber\",'Enrollment Form'!$C1004=\"ROC\"),\"-\",IF(AND('Enrollment Form'!$B1004=\"Subscriber\",'Enrollment Form'!$C1004=\"Enroll\",'Enrollment Form'!$CO1004<>\"\"),\"Y\",\"N\")))","v":""},{"$f":"IF($B997=\"N\",\"\",IF($S997=\"-\",\"-\",IF(AND($S997=\"Y\",'Enrollment Form'!$CO1004=\"No\"),\"-\",IF(AND($S997=\"Y\",'Enrollment Form'!$CO1004=\"Yes\",'Enrollment Form'!$CP1004<>\"\"),\"Y\",\"N\"))))","v":""},{"$f":"IF(OR('Enrollment Form'!$AV1004=\"Yes\",'Enrollment Form'!$AV1004=\"\"),\"-\",IF(AND('Enrollment Form'!$AV1004=\"No\",ISERROR(FIND(\"HMO\",VLOOKUP('Enrollment Form'!G1004,'Enrollment Form'!H$11:J$1000,3,FALSE),1))=FALSE,COUNTA('Enrollment Form'!$AW1004:$AZ1004)=4),\"Y\",\"N\"))","v":"-"},{"$f":"IF($B997=\"N\",\"\",IF('Enrollment Form'!$B1004=\"Subscriber\",\"-\",IF(COUNTA('Enrollment Form'!$BE1004,'Enrollment Form'!$BG1004)=2,\"Y\",\"N\")))","v":""},{"$f":"IF($B997=\"N\",\"\",IF(OR('Enrollment Form'!$AU1004=\"\",'Enrollment Form'!$AU1004=\"No\"),\"-\",IF(AND('Enrollment Form'!$AU1004=\"Yes\",COUNTA('Enrollment Form'!$CK1004)=1),\"Y\",\"N\")))","v":""},{"$f":"IF(OR('Enrollment Form'!$CK1004=\"\",'Enrollment Form'!$CK1004=\"No\"),\"-\",IF(COUNTA('Enrollment Form'!$CM1004:$CN1004)=2,\"Y\",\"N\"))","v":"-"},{"$f":"IF($B997=\"N\",\"\",IF(COUNTIF('Enrollment Form'!$CZ1004:$DO1004,\"Other\")=COUNTA('Enrollment Form'!$DF1004,'Enrollment Form'!$DA1004,'Enrollment Form'!$DK1004,'Enrollment Form'!$DP1004),\"Y\",\"N\"))","v":""},{"$f":"IF($B997=\"N\",\"\",IF(OR('Enrollment Form'!B1004<>\"Subscriber\",'Enrollment Form'!C1004=\"ROC\",COUNTIF('Enrollment Form'!AS1004:AT1004,\"Yes\")>=1),\"-\",IF(AND('Enrollment Form'!C1004=\"Enroll\",COUNTIF('Enrollment Form'!AS1004:AT1004,\"No\")=2,'Enrollment Form'!AU1004=\"\"),\"N\",\"Y\")))","v":""},{"$f":"IF(OR(B997=\"N\",'Enrollment Form'!B1004<>\"Subscriber\",'Enrollment Form'!C1004=\"ROC\",'Enrollment Form'!O1004<>\"Multiple of Salary\"),\"-\",IF(COUNTA('Enrollment Form'!T1004:U1004)<2,\"N\",\"Y\"))","v":"-"},{"$f":"IF(B997=\"N\",\"\",IF(OR('Enrollment Form'!C1004=\"ROC\",'Enrollment Form'!B1004<>\"Subscriber\",'Enrollment Form'!O1004=\"Waive\",'Enrollment Form'!O1004=\"\"),\"-\",IF('Enrollment Form'!P1004=\"\",\"N\",\"Y\")))","v":""},{"$f":"IF($B997=\"N\",\"\",IF(AND('Enrollment Form'!$C1004=\"ROC\",'Enrollment Form'!$DS1004<>\"\"),\"Y\",IF(AND('Enrollment Form'!$C1004=\"ROC\",'Enrollment Form'!$DS1004=\"\"),\"N\",IF(AND('Enrollment Form'!$C1004=\"Enroll\",'Enrollment Form'!$B1004=\"Subscriber\",'Enrollment Form'!$CQ1004=\"No\",'Enrollment Form'!$DS1004=\"\"),\"N\",IF(AND('Enrollment Form'!$C1004=\"Enroll\",'Enrollment Form'!$B1004=\"Subscriber\",'Enrollment Form'!$CQ1004=\"Yes\"),\"-\",\"Y\")))))","v":""},{"$f":"IF($B997=\"N\",\"\",IF(AND('Enrollment Form'!$C1004=\"ROC\",'Enrollment Form'!$DT1004<>\"\"),\"Y\",IF(AND('Enrollment Form'!$C1004=\"ROC\",'Enrollment Form'!$DT1004=\"\"),\"N\",IF(AND('Enrollment Form'!$C1004=\"Enroll\",'Enrollment Form'!$B1004=\"Subscriber\",'Enrollment Form'!$CQ1004=\"No\",'Enrollment Form'!$DT1004=\"\"),\"N\",IF(AND('Enrollment Form'!$C1004=\"Enroll\",'Enrollment Form'!$B1004=\"Subscriber\",'Enrollment Form'!$CQ1004=\"Yes\"),\"-\",\"Y\")))))","v":""},{"$f":"IF('Enrollment Form'!AH1004=\"\",\"\",IF(ISERROR(SEARCH(\".\",'Enrollment Form'!AH1004,SEARCH(\"@\",'Enrollment Form'!AH1004))),\"N\",\"Y\"))","v":""},{"$f":"IF(OR($B997=\"N\",'Enrollment Form'!$G1004=\"\"),\"\",IF('Enrollment Form'!$B1004<>\"Subscriber\",\"-\",IF(COUNTIF('Enrollment Form'!$AS1004:$AT1004,\"Yes\")=2,\"N\",\"Y\")))","v":""},{"$f":"IF(OR('Enrollment Form'!$CC1004=\"\",'Enrollment Form'!$CC1004=\"No\"),\"-\",IF(AND('Enrollment Form'!$CC1004=\"Yes\",'Enrollment Form'!$CD1004=\"\"),\"N\",\"Y\"))","v":"-"},{"$f":"IF(OR('Enrollment Form'!$CE1004=\"\",'Enrollment Form'!$CE1004=\"No\"),\"-\",IF(AND('Enrollment Form'!$CE1004=\"Yes\",'Enrollment Form'!$CF1004=\"\"),\"N\",\"Y\"))","v":"-"},{"$f":"IF(OR('Enrollment Form'!$CG1004=\"\",'Enrollment Form'!$CG1004=\"No\"),\"-\",IF(AND('Enrollment Form'!$CG1004=\"Yes\",'Enrollment Form'!$CH1004=\"\"),\"N\",\"Y\"))","v":"-"},{"$f":"IF(OR('Enrollment Form'!$CG1004=\"\",'Enrollment Form'!$CG1004=\"No\"),\"-\",IF(AND('Enrollment Form'!$CG1004=\"Yes\",'Enrollment Form'!$CI1004=\"\"),\"N\",\"Y\"))","v":"-"},{"$f":"IF('Enrollment Form'!B1004<>\"Subscriber\",\"-\",IF(AND('Enrollment Form'!B1004=\"Subscriber\",'Enrollment Form'!C1004=\"Enroll\",'Enrollment Form'!AA1004=\"\"),\"N\",\"Y\"))","v":"-"},{"$f":"IF(OR('Enrollment Form'!B1004=\"Subscriber\",'Enrollment Form'!B1004=\"\"),\"-\",IF('Enrollment Form'!BI1004=\"\",\"N\",\"Y\"))","v":"-"},{"$f":"IF('Enrollment Form'!B1004<>\"Subscriber\",\"-\",IF(AND('Enrollment Form'!B1004=\"Subscriber\",'Enrollment Form'!G1004=\"\"),\"N\",\"Y\"))","v":"-"},{"$f":"IF('Enrollment Form'!A1004=\"\",\"\",IF('Enrollment Form'!B1004=\"Subscriber\",\"-\",IF(AND('Enrollment Form'!B1004<>\"Subscriber\",'Enrollment Form'!G1004='Enrollment Form'!H1004),\"N\",\"Y\")))","v":""},0]
[1005,{"$f":"IF('Enrollment Form'!$A1005<>\"\",\"Y\",\"N\")","v":"N"},{"$f":"IF(AND('Enrollment Form'!$B1005=\"\",'Enrollment Form'!$C1005<>\"\"),\"N\",IF($B998=\"N\",\"\",\"Y\"))","v":""},{"$f":"IF(OR($B998=\"N\",'Enrollment Form'!G1005=\"\"),\"\",IF('Enrollment Form'!$B1005<>\"Subscriber\",\"\",IF('Enrollment Form'!$G1005='Enrollment Form'!$H1005,\"Y\",\"N\")))","v":""},{"$f":"IF($B998=\"N\",\"\",IF(AND(COUNTIFS('Enrollment Form'!$H$11:$H$1000,'Enrollment Form'!$H1005,'Enrollment Form'!$B$11:$B$1000,'Enrollment Form'!$B1005)>1,'Enrollment Form'!$H1005<>\"\"),\"N\",\"Y\"))","v":""},{"$f":"IF($B998=\"N\",\"\",IF(LEN('Enrollment Form'!$Y1005)=0,\"\",IF(LEN('Enrollment Form'!$Y1005)<>5,\"N\",\"Y\")))","v":""},{"$f":"IF($B998=\"N\",\"\",IF(LEN('Enrollment Form'!$AD1005=0),\"\",IF(LEN('Enrollment Form'!$AD1005)<>5,\"N\",\"Y\")))","v":""},{"$f":"IF($B998=\"N\",\"\",IF(LEN('Enrollment Form'!$BL1005=0),\"\",IF(LEN('Enrollment Form'!$BL1005)<>5,\"N\",\"Y\")))","v":""},{"$f":"IF($B998=\"N\",\"\",IF(LEN('Enrollment Form'!$AE1005)=0,\"\",IF(LEN('Enrollment Form'!$AE1005)<>10,\"N\",\"Y\")))","v":""},{"$f":"IF($B998=\"N\",\"\",IF(LEN('Enrollment Form'!$AF1005)=0,\"\",IF(LEN('Enrollment Form'!$AF1005)<>10,\"N\",\"Y\")))","v":""},{"$f":"IF('Enrollment Form'!$O1005<>\"Graded\",\"-\",IF(AND('Enrollment Form'!$O1005=\"Graded\",'Enrollment Form'!$AO1005<>\"\"),\"Y\",\"N\"))","v":"-"},{"$f":"IF($B998=\"N\",\"\",IF(OR('Enrollment Form'!$B1005<>\"Subscriber\",'Enrollment Form'!$C1005=\"ROC\"),\"-\",IF(AND('Enrollment Form'!$B1005=\"Subscriber\",'Enrollment Form'!$C1005=\"Enroll\",'Enrollment Form'!$AJ1005<>\"\"),\"Y\",\"N\")))","v":""},{"$f":"IF($B998=\"N\",\"\",IF(OR('Enrollment Form'!$B1005<>\"Subscriber\",'Enrollment Form'!$C1005=\"ROC\"),\"-\",IF(AND('Enrollment Form'!$B1005=\"Subscriber\",'Enrollment Form'!$C1005=\"Enroll\",'Enrollment Form'!$AK1005<>\"\"),\"Y\",\"N\")))","v":""},{"$f":"IF($B998=\"N\",\"\",IF(OR('Enrollment Form'!$B1005<>\"Subscriber\",'Enrollment Form'!$C1005=\"ROC\"),\"-\",IF(AND('Enrollment Form'!$B1005=\"Subscriber\",'Enrollment Form'!$C1005=\"Enroll\",'Enrollment Form'!$AL1005<>\"\"),\"Y\",\"N\")))","v":""},{"$f":"IF($B998=\"N\",\"\",IF(OR('Enrollment Form'!$B1005<>\"Subscriber\",'Enrollment Form'!$C1005=\"ROC\"),\"-\",IF(AND('Enrollment Form'!$B1005=\"Subscriber\",'Enrollment Form'!$C1005=\"Enroll\",'Enrollment Form'!$AM1005<>\"\"),\"Y\",\"N\")))","v":""},{"$f":"IF($B998=\"N\",\"\",IF(OR('Enrollment Form'!$B1005<>\"Subscriber\",'Enrollment Form'!$C1005=\"ROC\"),\"-\",IF(AND('Enrollment Form'!$B1005=\"Subscriber\",'Enrollment Form'!$C1005=\"Enroll\",'Enrollment Form'!$AN1005<>\"\"),\"Y\",\"N\")))","v":""},{"$f":"IF($B998=\"N\",\"\",IF(OR('Enrollment Form'!$B1005<>\"Subscriber\",'Enrollment Form'!$C1005=\"ROC\"),\"-\",IF(AND('Enrollment Form'!$B1005=\"Subscriber\",'Enrollment Form'!$C1005=\"Enroll\",'Enrollment Form'!$AP1005<>\"\"),\"Y\",\"N\")))","v":""},{"$f":"IF($B998=\"N\",\"\",IF($Q998=\"-\",\"-\",IF(AND($Q998=\"Y\",'Enrollment Form'!$AP1005=\"No\"),\"-\",IF(AND($Q998=\"Y\",'Enrollment Form'!$AP1005=\"Yes\",'Enrollment Form'!$AQ1005<>\"\"),\"Y\",\"N\"))))","v":""},{"$f":"IF($B998=\"N\",\"\",IF(OR('Enrollment Form'!$B1005<>\"Subscriber\",'Enrollment Form'!$C1005=\"ROC\"),\"-\",IF(AND('Enrollment Form'!$B1005=\"Subscriber\",'Enrollment Form'!$C1005=\"Enroll\",'Enrollment Form'!$CO1005<>\"\"),\"Y\",\"N\")))","v":""},{"$f":"IF($B998=\"N\",\"\",IF($S998=\"-\",\"-\",IF(AND($S998=\"Y\",'Enrollment Form'!$CO1005=\"No\"),\"-\",IF(AND($S998=\"Y\",'Enrollment Form'!$CO1005=\"Yes\",'Enrollment Form'!$CP1005<>\"\"),\"Y\",\"N\"))))","v":""},{"$f":"IF(OR('Enrollment Form'!$AV1005=\"Yes\",'Enrollment Form'!$AV1005=\"\"),\"-\",IF(AND('Enrollment Form'!$AV1005=\"No\",ISERROR(FIND(\"HMO\",VLOOKUP('Enrollment Form'!G1005,'Enrollment Form'!H$11:J$1000,3,FALSE),1))=FALSE,COUNTA('Enrollment Form'!$AW1005:$AZ1005)=4),\"Y\",\"N\"))","v":"-"},{"$f":"IF($B998=\"N\",\"\",IF('Enrollment Form'!$B1005=\"Subscriber\",\"-\",IF(COUNTA('Enrollment Form'!$BE1005,'Enrollment Form'!$BG1005)=2,\"Y\",\"N\")))","v":""},{"$f":"IF($B998=\"N\",\"\",IF(OR('Enrollment Form'!$AU1005=\"\",'Enrollment Form'!$AU1005=\"No\"),\"-\",IF(AND('Enrollment Form'!$AU1005=\"Yes\",COUNTA('Enrollment Form'!$CK1005)=1),\"Y\",\"N\")))","v":""},{"$f":"IF(OR('Enrollment Form'!$CK1005=\"\",'Enrollment Form'!$CK1005=\"No\"),\"-\",IF(COUNTA('Enrollment Form'!$CM1005:$CN1005)=2,\"Y\",\"N\"))","v":"-"},{"$f":"IF($B998=\"N\",\"\",IF(COUNTIF('Enrollment Form'!$CZ1005:$DO1005,\"Other\")=COUNTA('Enrollment Form'!$DF1005,'Enrollment Form'!$DA1005,'Enrollment Form'!$DK1005,'Enrollment Form'!$DP1005),\"Y\",\"N\"))","v":""},{"$f":"IF($B998=\"N\",\"\",IF(OR('Enrollment Form'!B1005<>\"Subscriber\",'Enrollment Form'!C1005=\"ROC\",COUNTIF('Enrollment Form'!AS1005:AT1005,\"Yes\")>=1),\"-\",IF(AND('Enrollment Form'!C1005=\"Enroll\",COUNTIF('Enrollment Form'!AS1005:AT1005,\"No\")=2,'Enrollment Form'!AU1005=\"\"),\"N\",\"Y\")))","v":""},{"$f":"IF(OR(B998=\"N\",'Enrollment Form'!B1005<>\"Subscriber\",'Enrollment Form'!C1005=\"ROC\",'Enrollment Form'!O1005<>\"Multiple of Salary\"),\"-\",IF(COUNTA('Enrollment Form'!T1005:U1005)<2,\"N\",\"Y\"))","v":"-"},{"$f":"IF(B998=\"N\",\"\",IF(OR('Enrollment Form'!C1005=\"ROC\",'Enrollment Form'!B1005<>\"Subscriber\",'Enrollment Form'!O1005=\"Waive\",'Enrollment Form'!O1005=\"\"),\"-\",IF('Enrollment Form'!P1005=\"\",\"N\",\"Y\")))","v":""},{"$f":"IF($B998=\"N\",\"\",IF(AND('Enrollment Form'!$C1005=\"ROC\",'Enrollment Form'!$DS1005<>\"\"),\"Y\",IF(AND('Enrollment Form'!$C1005=\"ROC\",'Enrollment Form'!$DS1005=\"\"),\"N\",IF(AND('Enrollment Form'!$C1005=\"Enroll\",'Enrollment Form'!$B1005=\"Subscriber\",'Enrollment Form'!$CQ1005=\"No\",'Enrollment Form'!$DS1005=\"\"),\"N\",IF(AND('Enrollment Form'!$C1005=\"Enroll\",'Enrollment Form'!$B1005=\"Subscriber\",'Enrollment Form'!$CQ1005=\"Yes\"),\"-\",\"Y\")))))","v":""},{"$f":"IF($B998=\"N\",\"\",IF(AND('Enrollment Form'!$C1005=\"ROC\",'Enrollment Form'!$DT1005<>\"\"),\"Y\",IF(AND('Enrollment Form'!$C1005=\"ROC\",'Enrollment Form'!$DT1005=\"\"),\"N\",IF(AND('Enrollment Form'!$C1005=\"Enroll\",'Enrollment Form'!$B1005=\"Subscriber\",'Enrollment Form'!$CQ1005=\"No\",'Enrollment Form'!$DT1005=\"\"),\"N\",IF(AND('Enrollment Form'!$C1005=\"Enroll\",'Enrollment Form'!$B1005=\"Subscriber\",'Enrollment Form'!$CQ1005=\"Yes\"),\"-\",\"Y\")))))","v":""},{"$f":"IF('Enrollment Form'!AH1005=\"\",\"\",IF(ISERROR(SEARCH(\".\",'Enrollment Form'!AH1005,SEARCH(\"@\",'Enrollment Form'!AH1005))),\"N\",\"Y\"))","v":""},{"$f":"IF(OR($B998=\"N\",'Enrollment Form'!$G1005=\"\"),\"\",IF('Enrollment Form'!$B1005<>\"Subscriber\",\"-\",IF(COUNTIF('Enrollment Form'!$AS1005:$AT1005,\"Yes\")=2,\"N\",\"Y\")))","v":""},{"$f":"IF(OR('Enrollment Form'!$CC1005=\"\",'Enrollment Form'!$CC1005=\"No\"),\"-\",IF(AND('Enrollment Form'!$CC1005=\"Yes\",'Enrollment Form'!$CD1005=\"\"),\"N\",\"Y\"))","v":"-"},{"$f":"IF(OR('Enrollment Form'!$CE1005=\"\",'Enrollment Form'!$CE1005=\"No\"),\"-\",IF(AND('Enrollment Form'!$CE1005=\"Yes\",'Enrollment Form'!$CF1005=\"\"),\"N\",\"Y\"))","v":"-"},{"$f":"IF(OR('Enrollment Form'!$CG1005=\"\",'Enrollment Form'!$CG1005=\"No\"),\"-\",IF(AND('Enrollment Form'!$CG1005=\"Yes\",'Enrollment Form'!$CH1005=\"\"),\"N\",\"Y\"))","v":"-"},{"$f":"IF(OR('Enrollment Form'!$CG1005=\"\",'Enrollment Form'!$CG1005=\"No\"),\"-\",IF(AND('Enrollment Form'!$CG1005=\"Yes\",'Enrollment Form'!$CI1005=\"\"),\"N\",\"Y\"))","v":"-"},{"$f":"IF('Enrollment Form'!B1005<>\"Subscriber\",\"-\",IF(AND('Enrollment Form'!B1005=\"Subscriber\",'Enrollment Form'!C1005=\"Enroll\",'Enrollment Form'!AA1005=\"\"),\"N\",\"Y\"))","v":"-"},{"$f":"IF(OR('Enrollment Form'!B1005=\"Subscriber\",'Enrollment Form'!B1005=\"\"),\"-\",IF('Enrollment Form'!BI1005=\"\",\"N\",\"Y\"))","v":"-"},{"$f":"IF('Enrollment Form'!B1005<>\"Subscriber\",\"-\",IF(AND('Enrollment Form'!B1005=\"Subscriber\",'Enrollment Form'!G1005=\"\"),\"N\",\"Y\"))","v":"-"},{"$f":"IF('Enrollment Form'!A1005=\"\",\"\",IF('Enrollment Form'!B1005=\"Subscriber\",\"-\",IF(AND('Enrollment Form'!B1005<>\"Subscriber\",'Enrollment Form'!G1005='Enrollment Form'!H1005),\"N\",\"Y\")))","v":""},0]
[1006,{"$f":"IF('Enrollment Form'!$A1006<>\"\",\"Y\",\"N\")","v":"N"},{"$f":"IF(AND('Enrollment Form'!$B1006=\"\",'Enrollment Form'!$C1006<>\"\"),\"N\",IF($B999=\"N\",\"\",\"Y\"))","v":""},{"$f":"IF(OR($B999=\"N\",'Enrollment Form'!G1006=\"\"),\"\",IF('Enrollment Form'!$B1006<>\"Subscriber\",\"\",IF('Enrollment Form'!$G1006='Enrollment Form'!$H1006,\"Y\",\"N\")))","v":""},{"$f":"IF($B999=\"N\",\"\",IF(AND(COUNTIFS('Enrollment Form'!$H$11:$H$1000,'Enrollment Form'!$H1006,'Enrollment Form'!$B$11:$B$1000,'Enrollment Form'!$B1006)>1,'Enrollment Form'!$H1006<>\"\"),\"N\",\"Y\"))","v":""},{"$f":"IF($B999=\"N\",\"\",IF(LEN('Enrollment Form'!$Y1006)=0,\"\",IF(LEN('Enrollment Form'!$Y1006)<>5,\"N\",\"Y\")))","v":""},{"$f":"IF($B999=\"N\",\"\",IF(LEN('Enrollment Form'!$AD1006=0),\"\",IF(LEN('Enrollment Form'!$AD1006)<>5,\"N\",\"Y\")))","v":""},{"$f":"IF($B999=\"N\",\"\",IF(LEN('Enrollment Form'!$BL1006=0),\"\",IF(LEN('Enrollment Form'!$BL1006)<>5,\"N\",\"Y\")))","v":""},{"$f":"IF($B999=\"N\",\"\",IF(LEN('Enrollment Form'!$AE1006)=0,\"\",IF(LEN('Enrollment Form'!$AE1006)<>10,\"N\",\"Y\")))","v":""},{"$f":"IF($B999=\"N\",\"\",IF(LEN('Enrollment Form'!$AF1006)=0,\"\",IF(LEN('Enrollment Form'!$AF1006)<>10,\"N\",\"Y\")))","v":""},{"$f":"IF('Enrollment Form'!$O1006<>\"Graded\",\"-\",IF(AND('Enrollment Form'!$O1006=\"Graded\",'Enrollment Form'!$AO1006<>\"\"),\"Y\",\"N\"))","v":"-"},{"$f":"IF($B999=\"N\",\"\",IF(OR('Enrollment Form'!$B1006<>\"Subscriber\",'Enrollment Form'!$C1006=\"ROC\"),\"-\",IF(AND('Enrollment Form'!$B1006=\"Subscriber\",'Enrollment Form'!$C1006=\"Enroll\",'Enrollment Form'!$AJ1006<>\"\"),\"Y\",\"N\")))","v":""},{"$f":"IF($B999=\"N\",\"\",IF(OR('Enrollment Form'!$B1006<>\"Subscriber\",'Enrollment Form'!$C1006=\"ROC\"),\"-\",IF(AND('Enrollment Form'!$B1006=\"Subscriber\",'Enrollment Form'!$C1006=\"Enroll\",'Enrollment Form'!$AK1006<>\"\"),\"Y\",\"N\")))","v":""},{"$f":"IF($B999=\"N\",\"\",IF(OR('Enrollment Form'!$B1006<>\"Subscriber\",'Enrollment Form'!$C1006=\"ROC\"),\"-\",IF(AND('Enrollment Form'!$B1006=\"Subscriber\",'Enrollment Form'!$C1006=\"Enroll\",'Enrollment Form'!$AL1006<>\"\"),\"Y\",\"N\")))","v":""},{"$f":"IF($B999=\"N\",\"\",IF(OR('Enrollment Form'!$B1006<>\"Subscriber\",'Enrollment Form'!$C1006=\"ROC\"),\"-\",IF(AND('Enrollment Form'!$B1006=\"Subscriber\",'Enrollment Form'!$C1006=\"Enroll\",'Enrollment Form'!$AM1006<>\"\"),\"Y\",\"N\")))","v":""},{"$f":"IF($B999=\"N\",\"\",IF(OR('Enrollment Form'!$B1006<>\"Subscriber\",'Enrollment Form'!$C1006=\"ROC\"),\"-\",IF(AND('Enrollment Form'!$B1006=\"Subscriber\",'Enrollment Form'!$C1006=\"Enroll\",'Enrollment Form'!$AN1006<>\"\"),\"Y\",\"N\")))","v":""},{"$f":"IF($B999=\"N\",\"\",IF(OR('Enrollment Form'!$B1006<>\"Subscriber\",'Enrollment Form'!$C1006=\"ROC\"),\"-\",IF(AND('Enrollment Form'!$B1006=\"Subscriber\",'Enrollment Form'!$C1006=\"Enroll\",'Enrollment Form'!$AP1006<>\"\"),\"Y\",\"N\")))","v":""},{"$f":"IF($B999=\"N\",\"\",IF($Q999=\"-\",\"-\",IF(AND($Q999=\"Y\",'Enrollment Form'!$AP1006=\"No\"),\"-\",IF(AND($Q999=\"Y\",'Enrollment Form'!$AP1006=\"Yes\",'Enrollment Form'!$AQ1006<>\"\"),\"Y\",\"N\"))))","v":""},{"$f":"IF($B999=\"N\",\"\",IF(OR('Enrollment Form'!$B1006<>\"Subscriber\",'Enrollment Form'!$C1006=\"ROC\"),\"-\",IF(AND('Enrollment Form'!$B1006=\"Subscriber\",'Enrollment Form'!$C1006=\"Enroll\",'Enrollment Form'!$CO1006<>\"\"),\"Y\",\"N\")))","v":""},{"$f":"IF($B999=\"N\",\"\",IF($S999=\"-\",\"-\",IF(AND($S999=\"Y\",'Enrollment Form'!$CO1006=\"No\"),\"-\",IF(AND($S999=\"Y\",'Enrollment Form'!$CO1006=\"Yes\",'Enrollment Form'!$CP1006<>\"\"),\"Y\",\"N\"))))","v":""},{"$f":"IF(OR('Enrollment Form'!$AV1006=\"Yes\",'Enrollment Form'!$AV1006=\"\"),\"-\",IF(AND('Enrollment Form'!$AV1006=\"No\",ISERROR(FIND(\"HMO\",VLOOKUP('Enrollment Form'!G1006,'Enrollment Form'!H$11:J$1000,3,FALSE),1))=FALSE,COUNTA('Enrollment Form'!$AW1006:$AZ1006)=4),\"Y\",\"N\"))","v":"-"},{"$f":"IF($B999=\"N\",\"\",IF('Enrollment Form'!$B1006=\"Subscriber\",\"-\",IF(COUNTA('Enrollment Form'!$BE1006,'Enrollment Form'!$BG1006)=2,\"Y\",\"N\")))","v":""},{"$f":"IF($B999=\"N\",\"\",IF(OR('Enrollment Form'!$AU1006=\"\",'Enrollment Form'!$AU1006=\"No\"),\"-\",IF(AND('Enrollment Form'!$AU1006=\"Yes\",COUNTA('Enrollment Form'!$CK1006)=1),\"Y\",\"N\")))","v":""},{"$f":"IF(OR('Enrollment Form'!$CK1006=\"\",'Enrollment Form'!$CK1006=\"No\"),\"-\",IF(COUNTA('Enrollment Form'!$CM1006:$CN1006)=2,\"Y\",\"N\"))","v":"-"},{"$f":"IF($B999=\"N\",\"\",IF(COUNTIF('Enrollment Form'!$CZ1006:$DO1006,\"Other\")=COUNTA('Enrollment Form'!$DF1006,'Enrollment Form'!$DA1006,'Enrollment Form'!$DK1006,'Enrollment Form'!$DP1006),\"Y\",\"N\"))","v":""},{"$f":"IF($B999=\"N\",\"\",IF(OR('Enrollment Form'!B1006<>\"Subscriber\",'Enrollment Form'!C1006=\"ROC\",COUNTIF('Enrollment Form'!AS1006:AT1006,\"Yes\")>=1),\"-\",IF(AND('Enrollment Form'!C1006=\"Enroll\",COUNTIF('Enrollment Form'!AS1006:AT1006,\"No\")=2,'Enrollment Form'!AU1006=\"\"),\"N\",\"Y\")))","v":""},{"$f":"IF(OR(B999=\"N\",'Enrollment Form'!B1006<>\"Subscriber\",'Enrollment Form'!C1006=\"ROC\",'Enrollment Form'!O1006<>\"Multiple of Salary\"),\"-\",IF(COUNTA('Enrollment Form'!T1006:U1006)<2,\"N\",\"Y\"))","v":"-"},{"$f":"IF(B999=\"N\",\"\",IF(OR('Enrollment Form'!C1006=\"ROC\",'Enrollment Form'!B1006<>\"Subscriber\",'Enrollment Form'!O1006=\"Waive\",'Enrollment Form'!O1006=\"\"),\"-\",IF('Enrollment Form'!P1006=\"\",\"N\",\"Y\")))","v":""},{"$f":"IF($B999=\"N\",\"\",IF(AND('Enrollment Form'!$C1006=\"ROC\",'Enrollment Form'!$DS1006<>\"\"),\"Y\",IF(AND('Enrollment Form'!$C1006=\"ROC\",'Enrollment Form'!$DS1006=\"\"),\"N\",IF(AND('Enrollment Form'!$C1006=\"Enroll\",'Enrollment Form'!$B1006=\"Subscriber\",'Enrollment Form'!$CQ1006=\"No\",'Enrollment Form'!$DS1006=\"\"),\"N\",IF(AND('Enrollment Form'!$C1006=\"Enroll\",'Enrollment Form'!$B1006=\"Subscriber\",'Enrollment Form'!$CQ1006=\"Yes\"),\"-\",\"Y\")))))","v":""},{"$f":"IF($B999=\"N\",\"\",IF(AND('Enrollment Form'!$C1006=\"ROC\",'Enrollment Form'!$DT1006<>\"\"),\"Y\",IF(AND('Enrollment Form'!$C1006=\"ROC\",'Enrollment Form'!$DT1006=\"\"),\"N\",IF(AND('Enrollment Form'!$C1006=\"Enroll\",'Enrollment Form'!$B1006=\"Subscriber\",'Enrollment Form'!$CQ1006=\"No\",'Enrollment Form'!$DT1006=\"\"),\"N\",IF(AND('Enrollment Form'!$C1006=\"Enroll\",'Enrollment Form'!$B1006=\"Subscriber\",'Enrollment Form'!$CQ1006=\"Yes\"),\"-\",\"Y\")))))","v":""},{"$f":"IF('Enrollment Form'!AH1006=\"\",\"\",IF(ISERROR(SEARCH(\".\",'Enrollment Form'!AH1006,SEARCH(\"@\",'Enrollment Form'!AH1006))),\"N\",\"Y\"))","v":""},{"$f":"IF(OR($B999=\"N\",'Enrollment Form'!$G1006=\"\"),\"\",IF('Enrollment Form'!$B1006<>\"Subscriber\",\"-\",IF(COUNTIF('Enrollment Form'!$AS1006:$AT1006,\"Yes\")=2,\"N\",\"Y\")))","v":""},{"$f":"IF(OR('Enrollment Form'!$CC1006=\"\",'Enrollment Form'!$CC1006=\"No\"),\"-\",IF(AND('Enrollment Form'!$CC1006=\"Yes\",'Enrollment Form'!$CD1006=\"\"),\"N\",\"Y\"))","v":"-"},{"$f":"IF(OR('Enrollment Form'!$CE1006=\"\",'Enrollment Form'!$CE1006=\"No\"),\"-\",IF(AND('Enrollment Form'!$CE1006=\"Yes\",'Enrollment Form'!$CF1006=\"\"),\"N\",\"Y\"))","v":"-"},{"$f":"IF(OR('Enrollment Form'!$CG1006=\"\",'Enrollment Form'!$CG1006=\"No\"),\"-\",IF(AND('Enrollment Form'!$CG1006=\"Yes\",'Enrollment Form'!$CH1006=\"\"),\"N\",\"Y\"))","v":"-"},{"$f":"IF(OR('Enrollment Form'!$CG1006=\"\",'Enrollment Form'!$CG1006=\"No\"),\"-\",IF(AND('Enrollment Form'!$CG1006=\"Yes\",'Enrollment Form'!$CI1006=\"\"),\"N\",\"Y\"))","v":"-"},{"$f":"IF('Enrollment Form'!B1006<>\"Subscriber\",\"-\",IF(AND('Enrollment Form'!B1006=\"Subscriber\",'Enrollment Form'!C1006=\"Enroll\",'Enrollment Form'!AA1006=\"\"),\"N\",\"Y\"))","v":"-"},{"$f":"IF(OR('Enrollment Form'!B1006=\"Subscriber\",'Enrollment Form'!B1006=\"\"),\"-\",IF('Enrollment Form'!BI1006=\"\",\"N\",\"Y\"))","v":"-"},{"$f":"IF('Enrollment Form'!B1006<>\"Subscriber\",\"-\",IF(AND('Enrollment Form'!B1006=\"Subscriber\",'Enrollment Form'!G1006=\"\"),\"N\",\"Y\"))","v":"-"},{"$f":"IF('Enrollment Form'!A1006=\"\",\"\",IF('Enrollment Form'!B1006=\"Subscriber\",\"-\",IF(AND('Enrollment Form'!B1006<>\"Subscriber\",'Enrollment Form'!G1006='Enrollment Form'!H1006),\"N\",\"Y\")))","v":""},0]
[1007,{"$f":"IF('Enrollment Form'!$A1007<>\"\",\"Y\",\"N\")","v":"N"},{"$f":"IF(AND('Enrollment Form'!$B1007=\"\",'Enrollment Form'!$C1007<>\"\"),\"N\",IF($B1000=\"N\",\"\",\"Y\"))","v":""},{"$f":"IF(OR($B1000=\"N\",'Enrollment Form'!G1007=\"\"),\"\",IF('Enrollment Form'!$B1007<>\"Subscriber\",\"\",IF('Enrollment Form'!$G1007='Enrollment Form'!$H1007,\"Y\",\"N\")))","v":""},{"$f":"IF($B1000=\"N\",\"\",IF(AND(COUNTIFS('Enrollment Form'!$H$11:$H$1000,'Enrollment Form'!$H1007,'Enrollment Form'!$B$11:$B$1000,'Enrollment Form'!$B1007)>1,'Enrollment Form'!$H1007<>\"\"),\"N\",\"Y\"))","v":""},{"$f":"IF($B1000=\"N\",\"\",IF(LEN('Enrollment Form'!$Y1007)=0,\"\",IF(LEN('Enrollment Form'!$Y1007)<>5,\"N\",\"Y\")))","v":""},{"$f":"IF($B1000=\"N\",\"\",IF(LEN('Enrollment Form'!$AD1007=0),\"\",IF(LEN('Enrollment Form'!$AD1007)<>5,\"N\",\"Y\")))","v":""},{"$f":"IF($B1000=\"N\",\"\",IF(LEN('Enrollment Form'!$BL1007=0),\"\",IF(LEN('Enrollment Form'!$BL1007)<>5,\"N\",\"Y\")))","v":""},{"$f":"IF($B1000=\"N\",\"\",IF(LEN('Enrollment Form'!$AE1007)=0,\"\",IF(LEN('Enrollment Form'!$AE1007)<>10,\"N\",\"Y\")))","v":""},{"$f":"IF($B1000=\"N\",\"\",IF(LEN('Enrollment Form'!$AF1007)=0,\"\",IF(LEN('Enrollment Form'!$AF1007)<>10,\"N\",\"Y\")))","v":""},{"$f":"IF('Enrollment Form'!$O1007<>\"Graded\",\"-\",IF(AND('Enrollment Form'!$O1007=\"Graded\",'Enrollment Form'!$AO1007<>\"\"),\"Y\",\"N\"))","v":"-"},{"$f":"IF($B1000=\"N\",\"\",IF(OR('Enrollment Form'!$B1007<>\"Subscriber\",'Enrollment Form'!$C1007=\"ROC\"),\"-\",IF(AND('Enrollment Form'!$B1007=\"Subscriber\",'Enrollment Form'!$C1007=\"Enroll\",'Enrollment Form'!$AJ1007<>\"\"),\"Y\",\"N\")))","v":""},{"$f":"IF($B1000=\"N\",\"\",IF(OR('Enrollment Form'!$B1007<>\"Subscriber\",'Enrollment Form'!$C1007=\"ROC\"),\"-\",IF(AND('Enrollment Form'!$B1007=\"Subscriber\",'Enrollment Form'!$C1007=\"Enroll\",'Enrollment Form'!$AK1007<>\"\"),\"Y\",\"N\")))","v":""},{"$f":"IF($B1000=\"N\",\"\",IF(OR('Enrollment Form'!$B1007<>\"Subscriber\",'Enrollment Form'!$C1007=\"ROC\"),\"-\",IF(AND('Enrollment Form'!$B1007=\"Subscriber\",'Enrollment Form'!$C1007=\"Enroll\",'Enrollment Form'!$AL1007<>\"\"),\"Y\",\"N\")))","v":""},{"$f":"IF($B1000=\"N\",\"\",IF(OR('Enrollment Form'!$B1007<>\"Subscriber\",'Enrollment Form'!$C1007=\"ROC\"),\"-\",IF(AND('Enrollment Form'!$B1007=\"Subscriber\",'Enrollment Form'!$C1007=\"Enroll\",'Enrollment Form'!$AM1007<>\"\"),\"Y\",\"N\")))","v":""},{"$f":"IF($B1000=\"N\",\"\",IF(OR('Enrollment Form'!$B1007<>\"Subscriber\",'Enrollment Form'!$C1007=\"ROC\"),\"-\",IF(AND('Enrollment Form'!$B1007=\"Subscriber\",'Enrollment Form'!$C1007=\"Enroll\",'Enrollment Form'!$AN1007<>\"\"),\"Y\",\"N\")))","v":""},{"$f":"IF($B1000=\"N\",\"\",IF(OR('Enrollment Form'!$B1007<>\"Subscriber\",'Enrollment Form'!$C1007=\"ROC\"),\"-\",IF(AND('Enrollment Form'!$B1007=\"Subscriber\",'Enrollment Form'!$C1007=\"Enroll\",'Enrollment Form'!$AP1007<>\"\"),\"Y\",\"N\")))","v":""},{"$f":"IF($B1000=\"N\",\"\",IF($Q1000=\"-\",\"-\",IF(AND($Q1000=\"Y\",'Enrollment Form'!$AP1007=\"No\"),\"-\",IF(AND($Q1000=\"Y\",'Enrollment Form'!$AP1007=\"Yes\",'Enrollment Form'!$AQ1007<>\"\"),\"Y\",\"N\"))))","v":""},{"$f":"IF($B1000=\"N\",\"\",IF(OR('Enrollment Form'!$B1007<>\"Subscriber\",'Enrollment Form'!$C1007=\"ROC\"),\"-\",IF(AND('Enrollment Form'!$B1007=\"Subscriber\",'Enrollment Form'!$C1007=\"Enroll\",'Enrollment Form'!$CO1007<>\"\"),\"Y\",\"N\")))","v":""},{"$f":"IF($B1000=\"N\",\"\",IF($S1000=\"-\",\"-\",IF(AND($S1000=\"Y\",'Enrollment Form'!$CO1007=\"No\"),\"-\",IF(AND($S1000=\"Y\",'Enrollment Form'!$CO1007=\"Yes\",'Enrollment Form'!$CP1007<>\"\"),\"Y\",\"N\"))))","v":""},{"$f":"IF(OR('Enrollment Form'!$AV1007=\"Yes\",'Enrollment Form'!$AV1007=\"\"),\"-\",IF(AND('Enrollment Form'!$AV1007=\"No\",ISERROR(FIND(\"HMO\",VLOOKUP('Enrollment Form'!G1007,'Enrollment Form'!H$11:J$1000,3,FALSE),1))=FALSE,COUNTA('Enrollment Form'!$AW1007:$AZ1007)=4),\"Y\",\"N\"))","v":"-"},{"$f":"IF($B1000=\"N\",\"\",IF('Enrollment Form'!$B1007=\"Subscriber\",\"-\",IF(COUNTA('Enrollment Form'!$BE1007,'Enrollment Form'!$BG1007)=2,\"Y\",\"N\")))","v":""},{"$f":"IF($B1000=\"N\",\"\",IF(OR('Enrollment Form'!$AU1007=\"\",'Enrollment Form'!$AU1007=\"No\"),\"-\",IF(AND('Enrollment Form'!$AU1007=\"Yes\",COUNTA('Enrollment Form'!$CK1007)=1),\"Y\",\"N\")))","v":""},{"$f":"IF(OR('Enrollment Form'!$CK1007=\"\",'Enrollment Form'!$CK1007=\"No\"),\"-\",IF(COUNTA('Enrollment Form'!$CM1007:$CN1007)=2,\"Y\",\"N\"))","v":"-"},{"$f":"IF($B1000=\"N\",\"\",IF(COUNTIF('Enrollment Form'!$CZ1007:$DO1007,\"Other\")=COUNTA('Enrollment Form'!$DF1007,'Enrollment Form'!$DA1007,'Enrollment Form'!$DK1007,'Enrollment Form'!$DP1007),\"Y\",\"N\"))","v":""},{"$f":"IF($B1000=\"N\",\"\",IF(OR('Enrollment Form'!B1007<>\"Subscriber\",'Enrollment Form'!C1007=\"ROC\",COUNTIF('Enrollment Form'!AS1007:AT1007,\"Yes\")>=1),\"-\",IF(AND('Enrollment Form'!C1007=\"Enroll\",COUNTIF('Enrollment Form'!AS1007:AT1007,\"No\")=2,'Enrollment Form'!AU1007=\"\"),\"N\",\"Y\")))","v":""},{"$f":"IF(OR(B1000=\"N\",'Enrollment Form'!B1007<>\"Subscriber\",'Enrollment Form'!C1007=\"ROC\",'Enrollment Form'!O1007<>\"Multiple of Salary\"),\"-\",IF(COUNTA('Enrollment Form'!T1007:U1007)<2,\"N\",\"Y\"))","v":"-"},{"$f":"IF(B1000=\"N\",\"\",IF(OR('Enrollment Form'!C1007=\"ROC\",'Enrollment Form'!B1007<>\"Subscriber\",'Enrollment Form'!O1007=\"Waive\",'Enrollment Form'!O1007=\"\"),\"-\",IF('Enrollment Form'!P1007=\"\",\"N\",\"Y\")))","v":""},{"$f":"IF($B1000=\"N\",\"\",IF(AND('Enrollment Form'!$C1007=\"ROC\",'Enrollment Form'!$DS1007<>\"\"),\"Y\",IF(AND('Enrollment Form'!$C1007=\"ROC\",'Enrollment Form'!$DS1007=\"\"),\"N\",IF(AND('Enrollment Form'!$C1007=\"Enroll\",'Enrollment Form'!$B1007=\"Subscriber\",'Enrollment Form'!$CQ1007=\"No\",'Enrollment Form'!$DS1007=\"\"),\"N\",IF(AND('Enrollment Form'!$C1007=\"Enroll\",'Enrollment Form'!$B1007=\"Subscriber\",'Enrollment Form'!$CQ1007=\"Yes\"),\"-\",\"Y\")))))","v":""},{"$f":"IF($B1000=\"N\",\"\",IF(AND('Enrollment Form'!$C1007=\"ROC\",'Enrollment Form'!$DT1007<>\"\"),\"Y\",IF(AND('Enrollment Form'!$C1007=\"ROC\",'Enrollment Form'!$DT1007=\"\"),\"N\",IF(AND('Enrollment Form'!$C1007=\"Enroll\",'Enrollment Form'!$B1007=\"Subscriber\",'Enrollment Form'!$CQ1007=\"No\",'Enrollment Form'!$DT1007=\"\"),\"N\",IF(AND('Enrollment Form'!$C1007=\"Enroll\",'Enrollment Form'!$B1007=\"Subscriber\",'Enrollment Form'!$CQ1007=\"Yes\"),\"-\",\"Y\")))))","v":""},{"$f":"IF('Enrollment Form'!AH1007=\"\",\"\",IF(ISERROR(SEARCH(\".\",'Enrollment Form'!AH1007,SEARCH(\"@\",'Enrollment Form'!AH1007))),\"N\",\"Y\"))","v":""},{"$f":"IF(OR($B1000=\"N\",'Enrollment Form'!$G1007=\"\"),\"\",IF('Enrollment Form'!$B1007<>\"Subscriber\",\"-\",IF(COUNTIF('Enrollment Form'!$AS1007:$AT1007,\"Yes\")=2,\"N\",\"Y\")))","v":""},{"$f":"IF(OR('Enrollment Form'!$CC1007=\"\",'Enrollment Form'!$CC1007=\"No\"),\"-\",IF(AND('Enrollment Form'!$CC1007=\"Yes\",'Enrollment Form'!$CD1007=\"\"),\"N\",\"Y\"))","v":"-"},{"$f":"IF(OR('Enrollment Form'!$CE1007=\"\",'Enrollment Form'!$CE1007=\"No\"),\"-\",IF(AND('Enrollment Form'!$CE1007=\"Yes\",'Enrollment Form'!$CF1007=\"\"),\"N\",\"Y\"))","v":"-"},{"$f":"IF(OR('Enrollment Form'!$CG1007=\"\",'Enrollment Form'!$CG1007=\"No\"),\"-\",IF(AND('Enrollment Form'!$CG1007=\"Yes\",'Enrollment Form'!$CH1007=\"\"),\"N\",\"Y\"))","v":"-"},{"$f":"IF(OR('Enrollment Form'!$CG1007=\"\",'Enrollment Form'!$CG1007=\"No\"),\"-\",IF(AND('Enrollment Form'!$CG1007=\"Yes\",'Enrollment Form'!$CI1007=\"\"),\"N\",\"Y\"))","v":"-"},{"$f":"IF('Enrollment Form'!B1007<>\"Subscriber\",\"-\",IF(AND('Enrollment Form'!B1007=\"Subscriber\",'Enrollment Form'!C1007=\"Enroll\",'Enrollment Form'!AA1007=\"\"),\"N\",\"Y\"))","v":"-"},{"$f":"IF(OR('Enrollment Form'!B1007=\"Subscriber\",'Enrollment Form'!B1007=\"\"),\"-\",IF('Enrollment Form'!BI1007=\"\",\"N\",\"Y\"))","v":"-"},{"$f":"IF('Enrollment Form'!B1007<>\"Subscriber\",\"-\",IF(AND('Enrollment Form'!B1007=\"Subscriber\",'Enrollment Form'!G1007=\"\"),\"N\",\"Y\"))","v":"-"},{"$f":"IF('Enrollment Form'!A1007=\"\",\"\",IF('Enrollment Form'!B1007=\"Subscriber\",\"-\",IF(AND('Enrollment Form'!B1007<>\"Subscriber\",'Enrollment Form'!G1007='Enrollment Form'!H1007),\"N\",\"Y\")))","v":""},0]
[1008,{"$f":"IF('Enrollment Form'!$A1008<>\"\",\"Y\",\"N\")","v":"N"},{"$f":"IF(AND('Enrollment Form'!$B1008=\"\",'Enrollment Form'!$C1008<>\"\"),\"N\",IF($B1001=\"N\",\"\",\"Y\"))","v":""},{"$f":"IF(OR($B1001=\"N\",'Enrollment Form'!G1008=\"\"),\"\",IF('Enrollment Form'!$B1008<>\"Subscriber\",\"\",IF('Enrollment Form'!$G1008='Enrollment Form'!$H1008,\"Y\",\"N\")))","v":""},{"$f":"IF($B1001=\"N\",\"\",IF(AND(COUNTIFS('Enrollment Form'!$H$11:$H$1000,'Enrollment Form'!$H1008,'Enrollment Form'!$B$11:$B$1000,'Enrollment Form'!$B1008)>1,'Enrollment Form'!$H1008<>\"\"),\"N\",\"Y\"))","v":""},{"$f":"IF($B1001=\"N\",\"\",IF(LEN('Enrollment Form'!$Y1008)=0,\"\",IF(LEN('Enrollment Form'!$Y1008)<>5,\"N\",\"Y\")))","v":""},{"$f":"IF($B1001=\"N\",\"\",IF(LEN('Enrollment Form'!$AD1008=0),\"\",IF(LEN('Enrollment Form'!$AD1008)<>5,\"N\",\"Y\")))","v":""},{"$f":"IF($B1001=\"N\",\"\",IF(LEN('Enrollment Form'!$BL1008=0),\"\",IF(LEN('Enrollment Form'!$BL1008)<>5,\"N\",\"Y\")))","v":""},{"$f":"IF($B1001=\"N\",\"\",IF(LEN('Enrollment Form'!$AE1008)=0,\"\",IF(LEN('Enrollment Form'!$AE1008)<>10,\"N\",\"Y\")))","v":""},{"$f":"IF($B1001=\"N\",\"\",IF(LEN('Enrollment Form'!$AF1008)=0,\"\",IF(LEN('Enrollment Form'!$AF1008)<>10,\"N\",\"Y\")))","v":""},{"$f":"IF('Enrollment Form'!$O1008<>\"Graded\",\"-\",IF(AND('Enrollment Form'!$O1008=\"Graded\",'Enrollment Form'!$AO1008<>\"\"),\"Y\",\"N\"))","v":"-"},{"$f":"IF($B1001=\"N\",\"\",IF(OR('Enrollment Form'!$B1008<>\"Subscriber\",'Enrollment Form'!$C1008=\"ROC\"),\"-\",IF(AND('Enrollment Form'!$B1008=\"Subscriber\",'Enrollment Form'!$C1008=\"Enroll\",'Enrollment Form'!$AJ1008<>\"\"),\"Y\",\"N\")))","v":""},{"$f":"IF($B1001=\"N\",\"\",IF(OR('Enrollment Form'!$B1008<>\"Subscriber\",'Enrollment Form'!$C1008=\"ROC\"),\"-\",IF(AND('Enrollment Form'!$B1008=\"Subscriber\",'Enrollment Form'!$C1008=\"Enroll\",'Enrollment Form'!$AK1008<>\"\"),\"Y\",\"N\")))","v":""},{"$f":"IF($B1001=\"N\",\"\",IF(OR('Enrollment Form'!$B1008<>\"Subscriber\",'Enrollment Form'!$C1008=\"ROC\"),\"-\",IF(AND('Enrollment Form'!$B1008=\"Subscriber\",'Enrollment Form'!$C1008=\"Enroll\",'Enrollment Form'!$AL1008<>\"\"),\"Y\",\"N\")))","v":""},{"$f":"IF($B1001=\"N\",\"\",IF(OR('Enrollment Form'!$B1008<>\"Subscriber\",'Enrollment Form'!$C1008=\"ROC\"),\"-\",IF(AND('Enrollment Form'!$B1008=\"Subscriber\",'Enrollment Form'!$C1008=\"Enroll\",'Enrollment Form'!$AM1008<>\"\"),\"Y\",\"N\")))","v":""},{"$f":"IF($B1001=\"N\",\"\",IF(OR('Enrollment Form'!$B1008<>\"Subscriber\",'Enrollment Form'!$C1008=\"ROC\"),\"-\",IF(AND('Enrollment Form'!$B1008=\"Subscriber\",'Enrollment Form'!$C1008=\"Enroll\",'Enrollment Form'!$AN1008<>\"\"),\"Y\",\"N\")))","v":""},{"$f":"IF($B1001=\"N\",\"\",IF(OR('Enrollment Form'!$B1008<>\"Subscriber\",'Enrollment Form'!$C1008=\"ROC\"),\"-\",IF(AND('Enrollment Form'!$B1008=\"Subscriber\",'Enrollment Form'!$C1008=\"Enroll\",'Enrollment Form'!$AP1008<>\"\"),\"Y\",\"N\")))","v":""},{"$f":"IF($B1001=\"N\",\"\",IF($Q1001=\"-\",\"-\",IF(AND($Q1001=\"Y\",'Enrollment Form'!$AP1008=\"No\"),\"-\",IF(AND($Q1001=\"Y\",'Enrollment Form'!$AP1008=\"Yes\",'Enrollment Form'!$AQ1008<>\"\"),\"Y\",\"N\"))))","v":""},{"$f":"IF($B1001=\"N\",\"\",IF(OR('Enrollment Form'!$B1008<>\"Subscriber\",'Enrollment Form'!$C1008=\"ROC\"),\"-\",IF(AND('Enrollment Form'!$B1008=\"Subscriber\",'Enrollment Form'!$C1008=\"Enroll\",'Enrollment Form'!$CO1008<>\"\"),\"Y\",\"N\")))","v":""},{"$f":"IF($B1001=\"N\",\"\",IF($S1001=\"-\",\"-\",IF(AND($S1001=\"Y\",'Enrollment Form'!$CO1008=\"No\"),\"-\",IF(AND($S1001=\"Y\",'Enrollment Form'!$CO1008=\"Yes\",'Enrollment Form'!$CP1008<>\"\"),\"Y\",\"N\"))))","v":""},{"$f":"IF(OR('Enrollment Form'!$AV1008=\"Yes\",'Enrollment Form'!$AV1008=\"\"),\"-\",IF(AND('Enrollment Form'!$AV1008=\"No\",ISERROR(FIND(\"HMO\",VLOOKUP('Enrollment Form'!G1008,'Enrollment Form'!H$11:J$1000,3,FALSE),1))=FALSE,COUNTA('Enrollment Form'!$AW1008:$AZ1008)=4),\"Y\",\"N\"))","v":"-"},{"$f":"IF($B1001=\"N\",\"\",IF('Enrollment Form'!$B1008=\"Subscriber\",\"-\",IF(COUNTA('Enrollment Form'!$BE1008,'Enrollment Form'!$BG1008)=2,\"Y\",\"N\")))","v":""},{"$f":"IF($B1001=\"N\",\"\",IF(OR('Enrollment Form'!$AU1008=\"\",'Enrollment Form'!$AU1008=\"No\"),\"-\",IF(AND('Enrollment Form'!$AU1008=\"Yes\",COUNTA('Enrollment Form'!$CK1008)=1),\"Y\",\"N\")))","v":""},{"$f":"IF(OR('Enrollment Form'!$CK1008=\"\",'Enrollment Form'!$CK1008=\"No\"),\"-\",IF(COUNTA('Enrollment Form'!$CM1008:$CN1008)=2,\"Y\",\"N\"))","v":"-"},{"$f":"IF($B1001=\"N\",\"\",IF(COUNTIF('Enrollment Form'!$CZ1008:$DO1008,\"Other\")=COUNTA('Enrollment Form'!$DF1008,'Enrollment Form'!$DA1008,'Enrollment Form'!$DK1008,'Enrollment Form'!$DP1008),\"Y\",\"N\"))","v":""},{"$f":"IF($B1001=\"N\",\"\",IF(OR('Enrollment Form'!B1008<>\"Subscriber\",'Enrollment Form'!C1008=\"ROC\",COUNTIF('Enrollment Form'!AS1008:AT1008,\"Yes\")>=1),\"-\",IF(AND('Enrollment Form'!C1008=\"Enroll\",COUNTIF('Enrollment Form'!AS1008:AT1008,\"No\")=2,'Enrollment Form'!AU1008=\"\"),\"N\",\"Y\")))","v":""},{"$f":"IF(OR(B1001=\"N\",'Enrollment Form'!B1008<>\"Subscriber\",'Enrollment Form'!C1008=\"ROC\",'Enrollment Form'!O1008<>\"Multiple of Salary\"),\"-\",IF(COUNTA('Enrollment Form'!T1008:U1008)<2,\"N\",\"Y\"))","v":"-"},{"$f":"IF(B1001=\"N\",\"\",IF(OR('Enrollment Form'!C1008=\"ROC\",'Enrollment Form'!B1008<>\"Subscriber\",'Enrollment Form'!O1008=\"Waive\",'Enrollment Form'!O1008=\"\"),\"-\",IF('Enrollment Form'!P1008=\"\",\"N\",\"Y\")))","v":""},{"$f":"IF($B1001=\"N\",\"\",IF(AND('Enrollment Form'!$C1008=\"ROC\",'Enrollment Form'!$DS1008<>\"\"),\"Y\",IF(AND('Enrollment Form'!$C1008=\"ROC\",'Enrollment Form'!$DS1008=\"\"),\"N\",IF(AND('Enrollment Form'!$C1008=\"Enroll\",'Enrollment Form'!$B1008=\"Subscriber\",'Enrollment Form'!$CQ1008=\"No\",'Enrollment Form'!$DS1008=\"\"),\"N\",IF(AND('Enrollment Form'!$C1008=\"Enroll\",'Enrollment Form'!$B1008=\"Subscriber\",'Enrollment Form'!$CQ1008=\"Yes\"),\"-\",\"Y\")))))","v":""},{"$f":"IF($B1001=\"N\",\"\",IF(AND('Enrollment Form'!$C1008=\"ROC\",'Enrollment Form'!$DT1008<>\"\"),\"Y\",IF(AND('Enrollment Form'!$C1008=\"ROC\",'Enrollment Form'!$DT1008=\"\"),\"N\",IF(AND('Enrollment Form'!$C1008=\"Enroll\",'Enrollment Form'!$B1008=\"Subscriber\",'Enrollment Form'!$CQ1008=\"No\",'Enrollment Form'!$DT1008=\"\"),\"N\",IF(AND('Enrollment Form'!$C1008=\"Enroll\",'Enrollment Form'!$B1008=\"Subscriber\",'Enrollment Form'!$CQ1008=\"Yes\"),\"-\",\"Y\")))))","v":""},{"$f":"IF('Enrollment Form'!AH1008=\"\",\"\",IF(ISERROR(SEARCH(\".\",'Enrollment Form'!AH1008,SEARCH(\"@\",'Enrollment Form'!AH1008))),\"N\",\"Y\"))","v":""},{"$f":"IF(OR($B1001=\"N\",'Enrollment Form'!$G1008=\"\"),\"\",IF('Enrollment Form'!$B1008<>\"Subscriber\",\"-\",IF(COUNTIF('Enrollment Form'!$AS1008:$AT1008,\"Yes\")=2,\"N\",\"Y\")))","v":""},{"$f":"IF(OR('Enrollment Form'!$CC1008=\"\",'Enrollment Form'!$CC1008=\"No\"),\"-\",IF(AND('Enrollment Form'!$CC1008=\"Yes\",'Enrollment Form'!$CD1008=\"\"),\"N\",\"Y\"))","v":"-"},{"$f":"IF(OR('Enrollment Form'!$CE1008=\"\",'Enrollment Form'!$CE1008=\"No\"),\"-\",IF(AND('Enrollment Form'!$CE1008=\"Yes\",'Enrollment Form'!$CF1008=\"\"),\"N\",\"Y\"))","v":"-"},{"$f":"IF(OR('Enrollment Form'!$CG1008=\"\",'Enrollment Form'!$CG1008=\"No\"),\"-\",IF(AND('Enrollment Form'!$CG1008=\"Yes\",'Enrollment Form'!$CH1008=\"\"),\"N\",\"Y\"))","v":"-"},{"$f":"IF(OR('Enrollment Form'!$CG1008=\"\",'Enrollment Form'!$CG1008=\"No\"),\"-\",IF(AND('Enrollment Form'!$CG1008=\"Yes\",'Enrollment Form'!$CI1008=\"\"),\"N\",\"Y\"))","v":"-"},{"$f":"IF('Enrollment Form'!B1008<>\"Subscriber\",\"-\",IF(AND('Enrollment Form'!B1008=\"Subscriber\",'Enrollment Form'!C1008=\"Enroll\",'Enrollment Form'!AA1008=\"\"),\"N\",\"Y\"))","v":"-"},{"$f":"IF(OR('Enrollment Form'!B1008=\"Subscriber\",'Enrollment Form'!B1008=\"\"),\"-\",IF('Enrollment Form'!BI1008=\"\",\"N\",\"Y\"))","v":"-"},{"$f":"IF('Enrollment Form'!B1008<>\"Subscriber\",\"-\",IF(AND('Enrollment Form'!B1008=\"Subscriber\",'Enrollment Form'!G1008=\"\"),\"N\",\"Y\"))","v":"-"},{"$f":"IF('Enrollment Form'!A1008=\"\",\"\",IF('Enrollment Form'!B1008=\"Subscriber\",\"-\",IF(AND('Enrollment Form'!B1008<>\"Subscriber\",'Enrollment Form'!G1008='Enrollment Form'!H1008),\"N\",\"Y\")))","v":""},0]

{"sheet":"Report","index":14,"n_rows":24,"n_cols":5,"rows_kept":24,"merged":[[2,0,3,0],[7,0,8,0],[12,0,13,0]]}
[null,"Counts by App Type:"]
[null,null,"Subscribers","Dependents","Total"]
["Excel","Enroll",{"$f":"COUNTIFS('Enrollment Form'!$B$11:$B$1000,\"Subscriber\",'Enrollment Form'!$C$11:$C$1000,\"Enroll\")","v":0},{"$f":"COUNTIFS('Enrollment Form'!$B$11:$B$1000,\"<>Subscriber\",'Enrollment Form'!$C$11:$C$1000,\"Enroll\")","v":0},{"$f":"SUM(C3:D3)","v":0}]
[null,"ROC",{"$f":"COUNTIFS('Enrollment Form'!$B$11:$B$1000,\"Subscriber\",'Enrollment Form'!$C$11:$C$1000,\"ROC\")","v":0},null,{"$f":"SUM(C4:D4)","v":0}]
[null,"Total:",{"$f":"SUM(C3:C4)","v":0},{"$f":"SUM(D3:D4)","v":0},0]
[]
[null,null,"Subscribers","Dependents","Total"]
["Paper","Enroll",0,0,{"$f":"SUM(C8:D8)","v":0}]
[null,"ROC",0,null,{"$f":"SUM(C9:D9)","v":0}]
[null,"Total:",{"$f":"SUM(C8:C9)","v":0},{"$f":"SUM(D8:D9)","v":0},0]
[]
[null,null,"Subscribers","Dependents","Total"]
["Entire Group","Enroll",{"$f":"SUM(C3,C8)","v":0},{"$f":"SUM(D3,D8)","v":0},{"$f":"SUM(E3,E8)","v":0}]
[null,"ROC",{"$f":"SUM(C4,C9)","v":0},null,{"$f":"SUM(E4,E9)","v":0}]
[null,"Grand Total:",{"$f":"SUM(C5,C10)","v":0},{"$f":"SUM(D5,D10)","v":0},{"$f":"SUM(E5,E10)","v":0}]
[]
[{"$nulls":3}," = Manually enter for paper submittals"]
[]
[null,"Counts by Product Type:"]
[null,"Subscribers"]
["Medical",{"$f":"COUNTIFS('Enrollment Form'!$B$11:$B$1000,\"Subscriber\",'Enrollment Form'!$EJ$11:$EJ$1000,\"Yes\")","v":0}]
["Dental",{"$f":"COUNTIFS('Enrollment Form'!$B$11:$B$1000,\"Subscriber\",'Enrollment Form'!$EK$11:$EK$1000,\"Yes\")","v":0}]
["Vision",{"$f":"COUNTIFS('Enrollment Form'!$B$11:$B$1000,\"Subscriber\",'Enrollment Form'!$EL$11:$EL$1000,\"Yes\")","v":0}]
["Life",{"$f":"COUNTIFS('Enrollment Form'!$B$11:$B$1000,\"Subscriber\",'Enrollment Form'!$EM$11:$EM$1000,\"Yes\")","v":0}]

{"sheet":"Tracking","index":15,"n_rows":3,"n_cols":2,"rows_kept":3}
[{"$f":"NOW()","v":"2019-01-23T09:42:58.360"}," = Current Date/Time"]
[]
["Dates/Times of Exports to .CSV:"]

{"sheet":"RevisionLog","index":16,"n_rows":15,"n_cols":2,"rows_kept":15,"hidden":true}
["Version","Description of Edit"]
["V1-2","County dropdown updated to allow autocomplete upon double click"]
["V1-2","9i and 9h updated with dropdown lists"]
["V1-2","Sample values cleared from template"]
["V1-2","Tax ID fields fixed to only allow numeric values (consistent when passed to EEA)"]
["2018Q4_V1a","PCP ID field changed to text with mandatory length of 12 (data validation)"]
["2018Q4_V1a","Past Due Premium line added to MGA with logic that only allows user to continue on if they select \"Yes\""]
["2018Q4_V1a","Past_Due_Attestation__c added to CSV output"]
["2018Q4_V1a","PCP ID field headed updated, API name remains the same"]
["2018Q4_V1b","REMOVED Past Due Premium line added to MGA with logic that only allows user to continue on if they select \"Yes\" - Will now display entire MGA regardless of the answer to this question."]
["2018Q4_V1c","PCP ID field added www.blueshieldca.com to the rollover"]
["2018Q4_V1d","Attestation field added (was not populating) to .CSV"]
["2018Q4_V1e","Formatting of Attestation field updated from custom to general (null if left blank)"]
["2019Q1_V1d","Removed default of \"Basic\" life.  Field now defaults to NULL."]
["2019Q1_V1f","Removed following DMHC plans:  Bronze Full PPO 4000/70 OffEx, Bronze Full PPO 6000/65 OffEx, and Bronze Tandem PPO 4000/70 OffEx"]

{"sheet":"Sheet3","index":17,"n_rows":991,"n_cols":131,"rows_kept":991,"hidden":true}
["Group_Tax_ID__c","Applicant_Type__c","Type_of_Application__c","Applicant_Last_Name__c","Applicant_First_Name__c","Applicant_Middle_Initial__c","Subscriber_SSN__c","Applicant_SSN__c","Health_Package__c","Health_Plan__c","Detal_Package__c","Dental_Plan__c","Vision_Package__c","Vision_Plan__c","Life_Option__c","Desired_Employee_Basic_Life_Ins_Amt__c","Basic_Dependent_Life_Insurance_Enroll__c","Number_of_Eligible_Dependents__c","Amount_Of_Coverage_Req_For_Dependents__c","Earnings__c","Earnings_Frequency__c","Subscriber_Home_Address__c","Subscriber_City__c","Subscriber_State__c","Subscriber_Zip__c","Same_as_home__c","Subscriber_Mailing_Address__c","Subscriber_Mailing_City__c","Subscriber_Mailing_State__c","Subscriber_Mailing_Zip__c","Subscriber_Work_Phone__c","Subscriber_Home_Phone__c","XXXXX","Subscriber_Email_Address__c","Preferred_Method_Of_Contact__c","Subscriber_Date_of_Birth__c","Subscriber_Gender__c","Subscriber_Marital_Status__c","Subscriber_Date_Of_Hire__c","Subscriber_Job_Title__c","Job_Classification__c","Eligible_dependents_less_than_26__c","How_many_dependents_less_than_26__c","How_many_dependents_lessthan26_enrolling__c","Work_30_hours_per_week__c","Work_20_to_29_hours_per_week__c","Cobra_participant_or_qualifying_event__c","Designate_a_Provider__c","Medical_HMO_Personal_Physician_Name__c","Provider_Number__c","IPA_MG_Name__c","Existing_Medical_Patient__c","Dental_HMO_Provider_Name__c","Dental_Provider_Number__c","Dental_Group_Name__c","Existing_Dental_Patient__c","Dependent_Gender__c","Enroll_In_All_Subscriber_Products__c","Dependent_Date_Of_Birth__c","Address_same_as_Applicant__c","Dependent_Address__c","Dependent_City__c","Dependent_State__c","Dependent_ZIP__c","Dependent_HMO_Personal_Physician_Name__c","Dependent_Provider_Number__c","Dependent_IPA_Name__c","Dependent_Existing_Medical_Patient__c","Dependent_Dental_HMO_Provider_Name__c","Dependent_Dental_Provider_Number__c","Dependent_Dental_Group_Name__c","Dependent_Existing_Dental_Patient__c","Prior_Coverage__c","Prior_Carrier_Name__c","Type_of_Coverage__c","Policy_ID_Number__c","Date_Prior_Coverage_Began__c","Date_Prior_Coverage_Ended__c","Family_Members_with_Prior_Coverage__c","Medicare_Current_Coverage__c","Medicare_Part_A__c","Medicare_Part_A_Date__c","Medicare_Part_B__c","Medicare_Part_B_Date__c","Medicare_End_Stage_Renal__c","Medicare_First_Dialysis_Date__c","Medicare_Dialysis_Type__c","Medicare_Kidney_Transplant_Date__c","Enrolling_In_Cobra_or_CalCobra__c","Blue_Shield_ID_Number__c","Original_Qualifying_Event_Date__c","Qualifying_Event_Reason__c","Signature_Of_Employee__c","Signature_Date__c","All_eligible_family_members_enrolling__c","ROC_Date_of_Birth__c","ROC_Date_of_Hire__c","ROC_State_of_Residence__c","ROC_Marital_Status__c","ROC_Job_Title__c","FT_Employee__c","PT_Employee__c","Declining_Medical_coverage__c","Reason_For_declining_Medical__c","R_Decl_Other_Medical__c","Other_Medical_Carrier__c","Member_ID_at_Medical_Carrier__c","Declining_Dental_coverage__c","Reason_For_declining_Dental__c","R_Decl_Other_Dental__c","Other_Dental_Carrier__c","Member_ID_at_Dental_Carrier__c","Declining_Vision_coverage__c","Reason_For_declining_Vision_coverage__c","R_Decl_Other_Vision__c","Other_Vision_Carrier__c","Member_ID_at_Vision_Carrier__c","Declining_Life_coverage__c","Reason_for_declining_Life_coverage__c","R_Decl_Other_Life__c","Other_Life_Carrier__c","Member_ID_at_Life_Carrier__c","ROC_Signature__c","ROC_Date__c","Language_Preference__c","Declining_Coverage_for_Medical__c","Declining_Coverage_for_Dental__c","Declining_Coverage_for_Vision__c","Declining_Coverage_for_Life__c","CSV_Source__c","EOL"]
["",{"$nulls":5},"","",{"$nulls":18},"","","","",{"$nulls":30},"","","","",{"$nulls":60},"","","","",""]
["",{"$nulls":5},"","",{"$nulls":18},"","","","",{"$nulls":30},"","","","",{"$nulls":60},"","","","",""]
["",{"$nulls":5},"","",{"$nulls":18},"","","","",{"$nulls":30},"","","","",{"$nulls":60},"","","","",""]
["",{"$nulls":5},"","",{"$nulls":18},"","","","",{"$nulls":30},"","","","",{"$nulls":60},"","","","",""]
["",{"$nulls":5},"","",{"$nulls":18},"","","","",{"$nulls":30},"","","","",{"$nulls":60},"","","","",""]
["",{"$nulls":5},"","",{"$nulls":18},"","","","",{"$nulls":30},"","","","",{"$nulls":60},"","","","",""]
["",{"$nulls":5},"","",{"$nulls":18},"","","","",{"$nulls":30},"","","","",{"$nulls":60},"","","","",""]
["",{"$nulls":5},"","",{"$nulls":18},"","","","",{"$nulls":30},"","","","",{"$nulls":60},"","","","",""]
["",{"$nulls":5},"","",{"$nulls":18},"","","","",{"$nulls":30},"","","","",{"$nulls":60},"","","","",""]
["",{"$nulls":5},"","",{"$nulls":18},"","","","",{"$nulls":30},"","","","",{"$nulls":60},"","","","",""]
["",{"$nulls":5},"","",{"$nulls":18},"","","","",{"$nulls":30},"","","","",{"$nulls":60},"","","","",""]
["",{"$nulls":5},"","",{"$nulls":18},"","","","",{"$nulls":30},"","","","",{"$nulls":60},"","","","",""]
["",{"$nulls":5},"","",{"$nulls":18},"","","","",{"$nulls":30},"","","","",{"$nulls":60},"","","","",""]
["",{"$nulls":5},"","",{"$nulls":18},"","","","",{"$nulls":30},"","","","",{"$nulls":60},"","","","",""]
["",{"$nulls":5},"","",{"$nulls":18},"","","","",{"$nulls":30},"","","","",{"$nulls":60},"","","","",""]
["",{"$nulls":5},"","",{"$nulls":18},"","","","",{"$nulls":30},"","","","",{"$nulls":60},"","","","",""]
["",{"$nulls":5},"","",{"$nulls":18},"","","","",{"$nulls":30},"","","","",{"$nulls":60},"","","","",""]
["",{"$nulls":5},"","",{"$nulls":18},"","","","",{"$nulls":30},"","","","",{"$nulls":60},"","","","",""]
["",{"$nulls":5},"","",{"$nulls":18},"","","","",{"$nulls":30},"","","","",{"$nulls":60},"","","","",""]
["",{"$nulls":5},"","",{"$nulls":18},"","","","",{"$nulls":30},"","","","",{"$nulls":60},"","","","",""]
["",{"$nulls":5},"","",{"$nulls":18},"","","","",{"$nulls":30},"","","","",{"$nulls":60},"","","","",""]
["",{"$nulls":5},"","",{"$nulls":18},"","","","",{"$nulls":30},"","","","",{"$nulls":60},"","","","",""]
["",{"$nulls":5},"","",{"$nulls":18},"","","","",{"$nulls":30},"","","","",{"$nulls":60},"","","","",""]
["",{"$nulls":5},"","",{"$nulls":18},"","","","",{"$nulls":30},"","","","",{"$nulls":60},"","","","",""]
["",{"$nulls":5},"","",{"$nulls":18},"","","","",{"$nulls":30},"","","","",{"$nulls":60},"","","","",""]
["",{"$nulls":5},"","",{"$nulls":18},"","","","",{"$nulls":30},"","","","",{"$nulls":60},"","","","",""]
["",{"$nulls":5},"","",{"$nulls":18},"","","","",{"$nulls":30},"","","","",{"$nulls":60},"","","","",""]
["",{"$nulls":5},"","",{"$nulls":18},"","","","",{"$nulls":30},"","","","",{"$nulls":60},"","","","",""]
["",{"$nulls":5},"","",{"$nulls":18},"","","","",{"$nulls":30},"","","","",{"$nulls":60},"","","","",""]
["",{"$nulls":5},"","",{"$nulls":18},"","","","",{"$nulls":30},"","","","",{"$nulls":60},"","","","",""]
["",{"$nulls":5},"","",{"$nulls":18},"","","","",{"$nulls":30},"","","","",{"$nulls":60},"","","","",""]
["",{"$nulls":5},"","",{"$nulls":18},"","","","",{"$nulls":30},"","","","",{"$nulls":60},"","","","",""]
["",{"$nulls":5},"","",{"$nulls":18},"","","","",{"$nulls":30},"","","","",{"$nulls":60},"","","","",""]
["",{"$nulls":5},"","",{"$nulls":18},"","","","",{"$nulls":30},"","","","",{"$nulls":60},"","","","",""]
["",{"$nulls":5},"","",{"$nulls":18},"","","","",{"$nulls":30},"","","","",{"$nulls":60},"","","","",""]
["",{"$nulls":5},"","",{"$nulls":18},"","","","",{"$nulls":30},"","","","",{"$nulls":60},"","","","",""]
["",{"$nulls":5},"","",{"$nulls":18},"","","","",{"$nulls":30},"","","","",{"$nulls":60},"","","","",""]
["",{"$nulls":5},"","",{"$nulls":18},"","","","",{"$nulls":30},"","","","",{"$nulls":60},"","","","",""]
["",{"$nulls":5},"","",{"$nulls":18},"","","","",{"$nulls":30},"","","","",{"$nulls":60},"","","","",""]
["",{"$nulls":5},"","",{"$nulls":18},"","","","",{"$nulls":30},"","","","",{"$nulls":60},"","","","",""]
["",{"$nulls":5},"","",{"$nulls":18},"","","","",{"$nulls":30},"","","","",{"$nulls":60},"","","","",""]
["",{"$nulls":5},"","",{"$nulls":18},"","","","",{"$nulls":30},"","","","",{"$nulls":60},"","","","",""]
["",{"$nulls":5},"","",{"$nulls":18},"","","","",{"$nulls":30},"","","","",{"$nulls":60},"","","","",""]
["",{"$nulls":5},"","",{"$nulls":18},"","","","",{"$nulls":30},"","","","",{"$nulls":60},"","","","",""]
["",{"$nulls":5},"","",{"$nulls":18},"","","","",{"$nulls":30},"","","","",{"$nulls":60},"","","","",""]
["",{"$nulls":5},"","",{"$nulls":18},"","","","",{"$nulls":30},"","","","",{"$nulls":60},"","","","",""]
["",{"$nulls":5},"","",{"$nulls":18},"","","","",{"$nulls":30},"","","","",{"$nulls":60},"","","","",""]
["",{"$nulls":5},"","",{"$nulls":18},"","","","",{"$nulls":30},"","","","",{"$nulls":60},"","","","",""]
["",{"$nulls":5},"","",{"$nulls":18},"","","","",{"$nulls":30},"","","","",{"$nulls":60},"","","","",""]
["",{"$nulls":5},"","",{"$nulls":18},"","","","",{"$nulls":30},"","","","",{"$nulls":60},"","","","",""]
["",{"$nulls":5},"","",{"$nulls":18},"","","","",{"$nulls":30},"","","","",{"$nulls":60},"","","","",""]
["",{"$nulls":5},"","",{"$nulls":18},"","","","",{"$nulls":30},"","","","",{"$nulls":60},"","","","",""]
["",{"$nulls":5},"","",{"$nulls":18},"","","","",{"$nulls":30},"","","","",{"$nulls":60},"","","","",""]
["",{"$nulls":5},"","",{"$nulls":18},"","","","",{"$nulls":30},"","","","",{"$nulls":60},"","","","",""]
["",{"$nulls":5},"","",{"$nulls":18},"","","","",{"$nulls":30},"","","","",{"$nulls":60},"","","","",""]
["",{"$nulls":5},"","",{"$nulls":18},"","","","",{"$nulls":30},"","","","",{"$nulls":60},"","","","",""]
["",{"$nulls":5},"","",{"$nulls":18},"","","","",{"$nulls":30},"","","","",{"$nulls":60},"","","","",""]
["",{"$nulls":5},"","",{"$nulls":18},"","","","",{"$nulls":30},"","","","",{"$nulls":60},"","","","",""]
["",{"$nulls":5},"","",{"$nulls":18},"","","","",{"$nulls":30},"","","","",{"$nulls":60},"","","","",""]
["",{"$nulls":5},"","",{"$nulls":18},"","","","",{"$nulls":30},"","","","",{"$nulls":60},"","","","",""]
["",{"$nulls":5},"","",{"$nulls":18},"","","","",{"$nulls":30},"","","","",{"$nulls":60},"","","","",""]
["",{"$nulls":5},"","",{"$nulls":18},"","","","",{"$nulls":30},"","","","",{"$nulls":60},"","","","",""]
["",{"$nulls":5},"","",{"$nulls":18},"","","","",{"$nulls":30},"","","","",{"$nulls":60},"","","","",""]
["",{"$nulls":5},"","",{"$nulls":18},"","","","",{"$nulls":30},"","","","",{"$nulls":60},"","","","",""]
["",{"$nulls":5},"","",{"$nulls":18},"","","","",{"$nulls":30},"","","","",{"$nulls":60},"","","","",""]
["",{"$nulls":5},"","",{"$nulls":18},"","","","",{"$nulls":30},"","","","",{"$nulls":60},"","","","",""]
["",{"$nulls":5},"","",{"$nulls":18},"","","","",{"$nulls":30},"","","","",{"$nulls":60},"","","","",""]
["",{"$nulls":5},"","",{"$nulls":18},"","","","",{"$nulls":30},"","","","",{"$nulls":60},"","","","",""]
["",{"$nulls":5},"","",{"$nulls":18},"","","","",{"$nulls":30},"","","","",{"$nulls":60},"","","","",""]
["",{"$nulls":5},"","",{"$nulls":18},"","","","",{"$nulls":30},"","","","",{"$nulls":60},"","","","",""]
["",{"$nulls":5},"","",{"$nulls":18},"","","","",{"$nulls":30},"","","","",{"$nulls":60},"","","","",""]
["",{"$nulls":5},"","",{"$nulls":18},"","","","",{"$nulls":30},"","","","",{"$nulls":60},"","","","",""]
["",{"$nulls":5},"","",{"$nulls":18},"","","","",{"$nulls":30},"","","","",{"$nulls":60},"","","","",""]
["",{"$nulls":5},"","",{"$nulls":18},"","","","",{"$nulls":30},"","","","",{"$nulls":60},"","","","",""]
["",{"$nulls":5},"","",{"$nulls":18},"","","","",{"$nulls":30},"","","","",{"$nulls":60},"","","","",""]
["",{"$nulls":5},"","",{"$nulls":18},"","","","",{"$nulls":30},"","","","",{"$nulls":60},"","","","",""]
["",{"$nulls":5},"","",{"$nulls":18},"","","","",{"$nulls":30},"","","","",{"$nulls":60},"","","","",""]
["",{"$nulls":5},"","",{"$nulls":18},"","","","",{"$nulls":30},"","","","",{"$nulls":60},"","","","",""]
["",{"$nulls":5},"","",{"$nulls":18},"","","","",{"$nulls":30},"","","","",{"$nulls":60},"","","","",""]
["",{"$nulls":5},"","",{"$nulls":18},"","","","",{"$nulls":30},"","","","",{"$nulls":60},"","","","",""]
["",{"$nulls":5},"","",{"$nulls":18},"","","","",{"$nulls":30},"","","","",{"$nulls":60},"","","","",""]
["",{"$nulls":5},"","",{"$nulls":18},"","","","",{"$nulls":30},"","","","",{"$nulls":60},"","","","",""]
["",{"$nulls":5},"","",{"$nulls":18},"","","","",{"$nulls":30},"","","","",{"$nulls":60},"","","","",""]
["",{"$nulls":5},"","",{"$nulls":18},"","","","",{"$nulls":30},"","","","",{"$nulls":60},"","","","",""]
["",{"$nulls":5},"","",{"$nulls":18},"","","","",{"$nulls":30},"","","","",{"$nulls":60},"","","","",""]
["",{"$nulls":5},"","",{"$nulls":18},"","","","",{"$nulls":30},"","","","",{"$nulls":60},"","","","",""]
["",{"$nulls":5},"","",{"$nulls":18},"","","","",{"$nulls":30},"","","","",{"$nulls":60},"","","","",""]
["",{"$nulls":5},"","",{"$nulls":18},"","","","",{"$nulls":30},"","","","",{"$nulls":60},"","","","",""]
["",{"$nulls":5},"","",{"$nulls":18},"","","","",{"$nulls":30},"","","","",{"$nulls":60},"","","","",""]
["",{"$nulls":5},"","",{"$nulls":18},"","","","",{"$nulls":30},"","","","",{"$nulls":60},"","","","",""]
["",{"$nulls":5},"","",{"$nulls":18},"","","","",{"$nulls":30},"","","","",{"$nulls":60},"","","","",""]
["",{"$nulls":5},"","",{"$nulls":18},"","","","",{"$nulls":30},"","","","",{"$nulls":60},"","","","",""]
["",{"$nulls":5},"","",{"$nulls":18},"","","","",{"$nulls":30},"","","","",{"$nulls":60},"","","","",""]
["",{"$nulls":5},"","",{"$nulls":18},"","","","",{"$nulls":30},"","","","",{"$nulls":60},"","","","",""]
["",{"$nulls":5},"","",{"$nulls":18},"","","","",{"$nulls":30},"","","","",{"$nulls":60},"","","","",""]
["",{"$nulls":5},"","",{"$nulls":18},"","","","",{"$nulls":30},"","","","",{"$nulls":60},"","","","",""]
["",{"$nulls":5},"","",{"$nulls":18},"","","","",{"$nulls":30},"","","","",{"$nulls":60},"","","","",""]
["",{"$nulls":5},"","",{"$nulls":18},"","","","",{"$nulls":30},"","","","",{"$nulls":60},"","","","",""]
["",{"$nulls":5},"","",{"$nulls":18},"","","","",{"$nulls":30},"","","","",{"$nulls":60},"","","","",""]
["",{"$nulls":5},"","",{"$nulls":18},"","","","",{"$nulls":30},"","","","",{"$nulls":60},"","","","",""]
["",{"$nulls":5},"","",{"$nulls":18},"","","","",{"$nulls":30},"","","","",{"$nulls":60},"","","","",""]
["",{"$nulls":5},"","",{"$nulls":18},"","","","",{"$nulls":30},"","","","",{"$nulls":60},"","","","",""]
["",{"$nulls":5},"","",{"$nulls":18},"","","","",{"$nulls":30},"","","","",{"$nulls":60},"","","","",""]
["",{"$nulls":5},"","",{"$nulls":18},"","","","",{"$nulls":30},"","","","",{"$nulls":60},"","","","",""]
["",{"$nulls":5},"","",{"$nulls":18},"","","","",{"$nulls":30},"","","","",{"$nulls":60},"","","","",""]
["",{"$nulls":5},"","",{"$nulls":18},"","","","",{"$nulls":30},"","","","",{"$nulls":60},"","","","",""]
["",{"$nulls":5},"","",{"$nulls":18},"","","","",{"$nulls":30},"","","","",{"$nulls":60},"","","","",""]
["",{"$nulls":5},"","",{"$nulls":18},"","","","",{"$nulls":30},"","","","",{"$nulls":60},"","","","",""]
["",{"$nulls":5},"","",{"$nulls":18},"","","","",{"$nulls":30},"","","","",{"$nulls":60},"","","","",""]
["",{"$nulls":5},"","",{"$nulls":18},"","","","",{"$nulls":30},"","","","",{"$nulls":60},"","","","",""]
["",{"$nulls":5},"","",{"$nulls":18},"","","","",{"$nulls":30},"","","","",{"$nulls":60},"","","","",""]
["",{"$nulls":5},"","",{"$nulls":18},"","","","",{"$nulls":30},"","","","",{"$nulls":60},"","","","",""]
["",{"$nulls":5},"","",{"$nulls":18},"","","","",{"$nulls":30},"","","","",{"$nulls":60},"","","","",""]
["",{"$nulls":5},"","",{"$nulls":18},"","","","",{"$nulls":30},"","","","",{"$nulls":60},"","","","",""]
["",{"$nulls":5},"","",{"$nulls":18},"","","","",{"$nulls":30},"","","","",{"$nulls":60},"","","","",""]
["",{"$nulls":5},"","",{"$nulls":18},"","","","",{"$nulls":30},"","","","",{"$nulls":60},"","","","",""]
["",{"$nulls":5},"","",{"$nulls":18},"","","","",{"$nulls":30},"","","","",{"$nulls":60},"","","","",""]
["",{"$nulls":5},"","",{"$nulls":18},"","","","",{"$nulls":30},"","","","",{"$nulls":60},"","","","",""]
["",{"$nulls":5},"","",{"$nulls":18},"","","","",{"$nulls":30},"","","","",{"$nulls":60},"","","","",""]
["",{"$nulls":5},"","",{"$nulls":18},"","","","",{"$nulls":30},"","","","",{"$nulls":60},"","","","",""]
["",{"$nulls":5},"","",{"$nulls":18},"","","","",{"$nulls":30},"","","","",{"$nulls":60},"","","","",""]
["",{"$nulls":5},"","",{"$nulls":18},"","","","",{"$nulls":30},"","","","",{"$nulls":60},"","","","",""]
["",{"$nulls":5},"","",{"$nulls":18},"","","","",{"$nulls":30},"","","","",{"$nulls":60},"","","","",""]
["",{"$nulls":5},"","",{"$nulls":18},"","","","",{"$nulls":30},"","","","",{"$nulls":60},"","","","",""]
["",{"$nulls":5},"","",{"$nulls":18},"","","","",{"$nulls":30},"","","","",{"$nulls":60},"","","","",""]
["",{"$nulls":5},"","",{"$nulls":18},"","","","",{"$nulls":30},"","","","",{"$nulls":60},"","","","",""]
["",{"$nulls":5},"","",{"$nulls":18},"","","","",{"$nulls":30},"","","","",{"$nulls":60},"","","","",""]
["",{"$nulls":5},"","",{"$nulls":18},"","","","",{"$nulls":30},"","","","",{"$nulls":60},"","","","",""]
["",{"$nulls":5},"","",{"$nulls":18},"","","","",{"$nulls":30},"","","","",{"$nulls":60},"","","","",""]
["",{"$nulls":5},"","",{"$nulls":18},"","","","",{"$nulls":30},"","","","",{"$nulls":60},"","","","",""]
["",{"$nulls":5},"","",{"$nulls":18},"","","","",{"$nulls":30},"","","","",{"$nulls":60},"","","","",""]
["",{"$nulls":5},"","",{"$nulls":18},"","","","",{"$nulls":30},"","","","",{"$nulls":60},"","","","",""]
["",{"$nulls":5},"","",{"$nulls":18},"","","","",{"$nulls":30},"","","","",{"$nulls":60},"","","","",""]
["",{"$nulls":5},"","",{"$nulls":18},"","","","",{"$nulls":30},"","","","",{"$nulls":60},"","","","",""]
["",{"$nulls":5},"","",{"$nulls":18},"","","","",{"$nulls":30},"","","","",{"$nulls":60},"","","","",""]
["",{"$nulls":5},"","",{"$nulls":18},"","","","",{"$nulls":30},"","","","",{"$nulls":60},"","","","",""]
["",{"$nulls":5},"","",{"$nulls":18},"","","","",{"$nulls":30},"","","","",{"$nulls":60},"","","","",""]
["",{"$nulls":5},"","",{"$nulls":18},"","","","",{"$nulls":30},"","","","",{"$nulls":60},"","","","",""]
["",{"$nulls":5},"","",{"$nulls":18},"","","","",{"$nulls":30},"","","","",{"$nulls":60},"","","","",""]
["",{"$nulls":5},"","",{"$nulls":18},"","","","",{"$nulls":30},"","","","",{"$nulls":60},"","","","",""]
["",{"$nulls":5},"","",{"$nulls":18},"","","","",{"$nulls":30},"","","","",{"$nulls":60},"","","","",""]
["",{"$nulls":5},"","",{"$nulls":18},"","","","",{"$nulls":30},"","","","",{"$nulls":60},"","","","",""]
["",{"$nulls":5},"","",{"$nulls":18},"","","","",{"$nulls":30},"","","","",{"$nulls":60},"","","","",""]
["",{"$nulls":5},"","",{"$nulls":18},"","","","",{"$nulls":30},"","","","",{"$nulls":60},"","","","",""]
["",{"$nulls":5},"","",{"$nulls":18},"","","","",{"$nulls":30},"","","","",{"$nulls":60},"","","","",""]
["",{"$nulls":5},"","",{"$nulls":18},"","","","",{"$nulls":30},"","","","",{"$nulls":60},"","","","",""]
["",{"$nulls":5},"","",{"$nulls":18},"","","","",{"$nulls":30},"","","","",{"$nulls":60},"","","","",""]
["",{"$nulls":5},"","",{"$nulls":18},"","","","",{"$nulls":30},"","","","",{"$nulls":60},"","","","",""]
["",{"$nulls":5},"","",{"$nulls":18},"","","","",{"$nulls":30},"","","","",{"$nulls":60},"","","","",""]
["",{"$nulls":5},"","",{"$nulls":18},"","","","",{"$nulls":30},"","","","",{"$nulls":60},"","","","",""]
["",{"$nulls":5},"","",{"$nulls":18},"","","","",{"$nulls":30},"","","","",{"$nulls":60},"","","","",""]
["",{"$nulls":5},"","",{"$nulls":18},"","","","",{"$nulls":30},"","","","",{"$nulls":60},"","","","",""]
["",{"$nulls":5},"","",{"$nulls":18},"","","","",{"$nulls":30},"","","","",{"$nulls":60},"","","","",""]
["",{"$nulls":5},"","",{"$nulls":18},"","","","",{"$nulls":30},"","","","",{"$nulls":60},"","","","",""]
["",{"$nulls":5},"","",{"$nulls":18},"","","","",{"$nulls":30},"","","","",{"$nulls":60},"","","","",""]
["",{"$nulls":5},"","",{"$nulls":18},"","","","",{"$nulls":30},"","","","",{"$nulls":60},"","","","",""]
["",{"$nulls":5},"","",{"$nulls":18},"","","","",{"$nulls":30},"","","","",{"$nulls":60},"","","","",""]
["",{"$nulls":5},"","",{"$nulls":18},"","","","",{"$nulls":30},"","","","",{"$nulls":60},"","","","",""]
["",{"$nulls":5},"","",{"$nulls":18},"","","","",{"$nulls":30},"","","","",{"$nulls":60},"","","","",""]
["",{"$nulls":5},"","",{"$nulls":18},"","","","",{"$nulls":30},"","","","",{"$nulls":60},"","","","",""]
["",{"$nulls":5},"","",{"$nulls":18},"","","","",{"$nulls":30},"","","","",{"$nulls":60},"","","","",""]
["",{"$nulls":5},"","",{"$nulls":18},"","","","",{"$nulls":30},"","","","",{"$nulls":60},"","","","",""]
["",{"$nulls":5},"","",{"$nulls":18},"","","","",{"$nulls":30},"","","","",{"$nulls":60},"","","","",""]
["",{"$nulls":5},"","",{"$nulls":18},"","","","",{"$nulls":30},"","","","",{"$nulls":60},"","","","",""]
["",{"$nulls":5},"","",{"$nulls":18},"","","","",{"$nulls":30},"","","","",{"$nulls":60},"","","","",""]
["",{"$nulls":5},"","",{"$nulls":18},"","","","",{"$nulls":30},"","","","",{"$nulls":60},"","","","",""]
["",{"$nulls":5},"","",{"$nulls":18},"","","","",{"$nulls":30},"","","","",{"$nulls":60},"","","","",""]
["",{"$nulls":5},"","",{"$nulls":18},"","","","",{"$nulls":30},"","","","",{"$nulls":60},"","","","",""]
["",{"$nulls":5},"","",{"$nulls":18},"","","","",{"$nulls":30},"","","","",{"$nulls":60},"","","","",""]
["",{"$nulls":5},"","",{"$nulls":18},"","","","",{"$nulls":30},"","","","",{"$nulls":60},"","","","",""]
["",{"$nulls":5},"","",{"$nulls":18},"","","","",{"$nulls":30},"","","","",{"$nulls":60},"","","","",""]
["",{"$nulls":5},"","",{"$nulls":18},"","","","",{"$nulls":30},"","","","",{"$nulls":60},"","","","",""]
["",{"$nulls":5},"","",{"$nulls":18},"","","","",{"$nulls":30},"","","","",{"$nulls":60},"","","","",""]
["",{"$nulls":5},"","",{"$nulls":18},"","","","",{"$nulls":30},"","","","",{"$nulls":60},"","","","",""]
["",{"$nulls":5},"","",{"$nulls":18},"","","","",{"$nulls":30},"","","","",{"$nulls":60},"","","","",""]
["",{"$nulls":5},"","",{"$nulls":18},"","","","",{"$nulls":30},"","","","",{"$nulls":60},"","","","",""]
["",{"$nulls":5},"","",{"$nulls":18},"","","","",{"$nulls":30},"","","","",{"$nulls":60},"","","","",""]
["",{"$nulls":5},"","",{"$nulls":18},"","","","",{"$nulls":30},"","","","",{"$nulls":60},"","","","",""]
["",{"$nulls":5},"","",{"$nulls":18},"","","","",{"$nulls":30},"","","","",{"$nulls":60},"","","","",""]
["",{"$nulls":5},"","",{"$nulls":18},"","","","",{"$nulls":30},"","","","",{"$nulls":60},"","","","",""]
["",{"$nulls":5},"","",{"$nulls":18},"","","","",{"$nulls":30},"","","","",{"$nulls":60},"","","","",""]
["",{"$nulls":5},"","",{"$nulls":18},"","","","",{"$nulls":30},"","","","",{"$nulls":60},"","","","",""]
["",{"$nulls":5},"","",{"$nulls":18},"","","","",{"$nulls":30},"","","","",{"$nulls":60},"","","","",""]
["",{"$nulls":5},"","",{"$nulls":18},"","","","",{"$nulls":30},"","","","",{"$nulls":60},"","","","",""]
["",{"$nulls":5},"","",{"$nulls":18},"","","","",{"$nulls":30},"","","","",{"$nulls":60},"","","","",""]
["",{"$nulls":5},"","",{"$nulls":18},"","","","",{"$nulls":30},"","","","",{"$nulls":60},"","","","",""]
["",{"$nulls":5},"","",{"$nulls":18},"","","","",{"$nulls":30},"","","","",{"$nulls":60},"","","","",""]
["",{"$nulls":5},"","",{"$nulls":18},"","","","",{"$nulls":30},"","","","",{"$nulls":60},"","","","",""]
["",{"$nulls":5},"","",{"$nulls":18},"","","","",{"$nulls":30},"","","","",{"$nulls":60},"","","","",""]
["",{"$nulls":5},"","",{"$nulls":18},"","","","",{"$nulls":30},"","","","",{"$nulls":60},"","","","",""]
["",{"$nulls":5},"","",{"$nulls":18},"","","","",{"$nulls":30},"","","","",{"$nulls":60},"","","","",""]
["",{"$nulls":5},"","",{"$nulls":18},"","","","",{"$nulls":30},"","","","",{"$nulls":60},"","","","",""]
["",{"$nulls":5},"","",{"$nulls":18},"","","","",{"$nulls":30},"","","","",{"$nulls":60},"","","","",""]
["",{"$nulls":5},"","",{"$nulls":18},"","","","",{"$nulls":30},"","","","",{"$nulls":60},"","","","",""]
["",{"$nulls":5},"","",{"$nulls":18},"","","","",{"$nulls":30},"","","","",{"$nulls":60},"","","","",""]
["",{"$nulls":5},"","",{"$nulls":18},"","","","",{"$nulls":30},"","","","",{"$nulls":60},"","","","",""]
["",{"$nulls":5},"","",{"$nulls":18},"","","","",{"$nulls":30},"","","","",{"$nulls":60},"","","","",""]
["",{"$nulls":5},"","",{"$nulls":18},"","","","",{"$nulls":30},"","","","",{"$nulls":60},"","","","",""]
["",{"$nulls":5},"","",{"$nulls":18},"","","","",{"$nulls":30},"","","","",{"$nulls":60},"","","","",""]
["",{"$nulls":5},"","",{"$nulls":18},"","","","",{"$nulls":30},"","","","",{"$nulls":60},"","","","",""]
["",{"$nulls":5},"","",{"$nulls":18},"","","","",{"$nulls":30},"","","","",{"$nulls":60},"","","","",""]
["",{"$nulls":5},"","",{"$nulls":18},"","","","",{"$nulls":30},"","","","",{"$nulls":60},"","","","",""]
["",{"$nulls":5},"","",{"$nulls":18},"","","","",{"$nulls":30},"","","","",{"$nulls":60},"","","","",""]
["",{"$nulls":5},"","",{"$nulls":18},"","","","",{"$nulls":30},"","","","",{"$nulls":60},"","","","",""]
["",{"$nulls":5},"","",{"$nulls":18},"","","","",{"$nulls":30},"","","","",{"$nulls":60},"","","","",""]
["",{"$nulls":5},"","",{"$nulls":18},"","","","",{"$nulls":30},"","","","",{"$nulls":60},"","","","",""]
["",{"$nulls":5},"","",{"$nulls":18},"","","","",{"$nulls":30},"","","","",{"$nulls":60},"","","","",""]
["",{"$nulls":5},"","",{"$nulls":18},"","","","",{"$nulls":30},"","","","",{"$nulls":60},"","","","",""]
["",{"$nulls":5},"","",{"$nulls":18},"","","","",{"$nulls":30},"","","","",{"$nulls":60},"","","","",""]
["",{"$nulls":5},"","",{"$nulls":18},"","","","",{"$nulls":30},"","","","",{"$nulls":60},"","","","",""]
["",{"$nulls":5},"","",{"$nulls":18},"","","","",{"$nulls":30},"","","","",{"$nulls":60},"","","","",""]
["",{"$nulls":5},"","",{"$nulls":18},"","","","",{"$nulls":30},"","","","",{"$nulls":60},"","","","",""]
["",{"$nulls":5},"","",{"$nulls":18},"","","","",{"$nulls":30},"","","","",{"$nulls":60},"","","","",""]
["",{"$nulls":5},"","",{"$nulls":18},"","","","",{"$nulls":30},"","","","",{"$nulls":60},"","","","",""]
["",{"$nulls":5},"","",{"$nulls":18},"","","","",{"$nulls":30},"","","","",{"$nulls":60},"","","","",""]
["",{"$nulls":5},"","",{"$nulls":18},"","","","",{"$nulls":30},"","","","",{"$nulls":60},"","","","",""]
["",{"$nulls":5},"","",{"$nulls":18},"","","","",{"$nulls":30},"","","","",{"$nulls":60},"","","","",""]
["",{"$nulls":5},"","",{"$nulls":18},"","","","",{"$nulls":30},"","","","",{"$nulls":60},"","","","",""]
["",{"$nulls":5},"","",{"$nulls":18},"","","","",{"$nulls":30},"","","","",{"$nulls":60},"","","","",""]
["",{"$nulls":5},"","",{"$nulls":18},"","","","",{"$nulls":30},"","","","",{"$nulls":60},"","","","",""]
["",{"$nulls":5},"","",{"$nulls":18},"","","","",{"$nulls":30},"","","","",{"$nulls":60},"","","","",""]
["",{"$nulls":5},"","",{"$nulls":18},"","","","",{"$nulls":30},"","","","",{"$nulls":60},"","","","",""]
["",{"$nulls":5},"","",{"$nulls":18},"","","","",{"$nulls":30},"","","","",{"$nulls":60},"","","","",""]
["",{"$nulls":5},"","",{"$nulls":18},"","","","",{"$nulls":30},"","","","",{"$nulls":60},"","","","",""]
["",{"$nulls":5},"","",{"$nulls":18},"","","","",{"$nulls":30},"","","","",{"$nulls":60},"","","","",""]
["",{"$nulls":5},"","",{"$nulls":18},"","","","",{"$nulls":30},"","","","",{"$nulls":60},"","","","",""]
["",{"$nulls":5},"","",{"$nulls":18},"","","","",{"$nulls":30},"","","","",{"$nulls":60},"","","","",""]
["",{"$nulls":5},"","",{"$nulls":18},"","","","",{"$nulls":30},"","","","",{"$nulls":60},"","","","",""]
["",{"$nulls":5},"","",{"$nulls":18},"","","","",{"$nulls":30},"","","","",{"$nulls":60},"","","","",""]
["",{"$nulls":5},"","",{"$nulls":18},"","","","",{"$nulls":30},"","","","",{"$nulls":60},"","","","",""]
["",{"$nulls":5},"","",{"$nulls":18},"","","","",{"$nulls":30},"","","","",{"$nulls":60},"","","","",""]
["",{"$nulls":5},"","",{"$nulls":18},"","","","",{"$nulls":30},"","","","",{"$nulls":60},"","","","",""]
["",{"$nulls":5},"","",{"$nulls":18},"","","","",{"$nulls":30},"","","","",{"$nulls":60},"","","","",""]
["",{"$nulls":5},"","",{"$nulls":18},"","","","",{"$nulls":30},"","","","",{"$nulls":60},"","","","",""]
["",{"$nulls":5},"","",{"$nulls":18},"","","","",{"$nulls":30},"","","","",{"$nulls":60},"","","","",""]
["",{"$nulls":5},"","",{"$nulls":18},"","","","",{"$nulls":30},"","","","",{"$nulls":60},"","","","",""]
["",{"$nulls":5},"","",{"$nulls":18},"","","","",{"$nulls":30},"","","","",{"$nulls":60},"","","","",""]
["",{"$nulls":5},"","",{"$nulls":18},"","","","",{"$nulls":30},"","","","",{"$nulls":60},"","","","",""]
["",{"$nulls":5},"","",{"$nulls":18},"","","","",{"$nulls":30},"","","","",{"$nulls":60},"","","","",""]
["",{"$nulls":5},"","",{"$nulls":18},"","","","",{"$nulls":30},"","","","",{"$nulls":60},"","","","",""]
["",{"$nulls":5},"","",{"$nulls":18},"","","","",{"$nulls":30},"","","","",{"$nulls":60},"","","","",""]
["",{"$nulls":5},"","",{"$nulls":18},"","","","",{"$nulls":30},"","","","",{"$nulls":60},"","","","",""]
["",{"$nulls":5},"","",{"$nulls":18},"","","","",{"$nulls":30},"","","","",{"$nulls":60},"","","","",""]
["",{"$nulls":5},"","",{"$nulls":18},"","","","",{"$nulls":30},"","","","",{"$nulls":60},"","","","",""]
["",{"$nulls":5},"","",{"$nulls":18},"","","","",{"$nulls":30},"","","","",{"$nulls":60},"","","","",""]
["",{"$nulls":5},"","",{"$nulls":18},"","","","",{"$nulls":30},"","","","",{"$nulls":60},"","","","",""]
["",{"$nulls":5},"","",{"$nulls":18},"","","","",{"$nulls":30},"","","","",{"$nulls":60},"","","","",""]
["",{"$nulls":5},"","",{"$nulls":18},"","","","",{"$nulls":30},"","","","",{"$nulls":60},"","","","",""]
["",{"$nulls":5},"","",{"$nulls":18},"","","","",{"$nulls":30},"","","","",{"$nulls":60},"","","","",""]
["",{"$nulls":5},"","",{"$nulls":18},"","","","",{"$nulls":30},"","","","",{"$nulls":60},"","","","",""]
["",{"$nulls":5},"","",{"$nulls":18},"","","","",{"$nulls":30},"","","","",{"$nulls":60},"","","","",""]
["",{"$nulls":5},"","",{"$nulls":18},"","","","",{"$nulls":30},"","","","",{"$nulls":60},"","","","",""]
["",{"$nulls":5},"","",{"$nulls":18},"","","","",{"$nulls":30},"","","","",{"$nulls":60},"","","","",""]
["",{"$nulls":5},"","",{"$nulls":18},"","","","",{"$nulls":30},"","","","",{"$nulls":60},"","","","",""]
["",{"$nulls":5},"","",{"$nulls":18},"","","","",{"$nulls":30},"","","","",{"$nulls":60},"","","","",""]
["",{"$nulls":5},"","",{"$nulls":18},"","","","",{"$nulls":30},"","","","",{"$nulls":60},"","","","",""]
["",{"$nulls":5},"","",{"$nulls":18},"","","","",{"$nulls":30},"","","","",{"$nulls":60},"","","","",""]
["",{"$nulls":5},"","",{"$nulls":18},"","","","",{"$nulls":30},"","","","",{"$nulls":60},"","","","",""]
["",{"$nulls":5},"","",{"$nulls":18},"","","","",{"$nulls":30},"","","","",{"$nulls":60},"","","","",""]
["",{"$nulls":5},"","",{"$nulls":18},"","","","",{"$nulls":30},"","","","",{"$nulls":60},"","","","",""]
["",{"$nulls":5},"","",{"$nulls":18},"","","","",{"$nulls":30},"","","","",{"$nulls":60},"","","","",""]
["",{"$nulls":5},"","",{"$nulls":18},"","","","",{"$nulls":30},"","","","",{"$nulls":60},"","","","",""]
["",{"$nulls":5},"","",{"$nulls":18},"","","","",{"$nulls":30},"","","","",{"$nulls":60},"","","","",""]
["",{"$nulls":5},"","",{"$nulls":18},"","","","",{"$nulls":30},"","","","",{"$nulls":60},"","","","",""]
["",{"$nulls":5},"","",{"$nulls":18},"","","","",{"$nulls":30},"","","","",{"$nulls":60},"","","","",""]
["",{"$nulls":5},"","",{"$nulls":18},"","","","",{"$nulls":30},"","","","",{"$nulls":60},"","","","",""]
["",{"$nulls":5},"","",{"$nulls":18},"","","","",{"$nulls":30},"","","","",{"$nulls":60},"","","","",""]
["",{"$nulls":5},"","",{"$nulls":18},"","","","",{"$nulls":30},"","","","",{"$nulls":60},"","","","",""]
["",{"$nulls":5},"","",{"$nulls":18},"","","","",{"$nulls":30},"","","","",{"$nulls":60},"","","","",""]
["",{"$nulls":5},"","",{"$nulls":18},"","","","",{"$nulls":30},"","","","",{"$nulls":60},"","","","",""]
["",{"$nulls":5},"","",{"$nulls":18},"","","","",{"$nulls":30},"","","","",{"$nulls":60},"","","","",""]
["",{"$nulls":5},"","",{"$nulls":18},"","","","",{"$nulls":30},"","","","",{"$nulls":60},"","","","",""]
["",{"$nulls":5},"","",{"$nulls":18},"","","","",{"$nulls":30},"","","","",{"$nulls":60},"","","","",""]
["",{"$nulls":5},"","",{"$nulls":18},"","","","",{"$nulls":30},"","","","",{"$nulls":60},"","","","",""]
["",{"$nulls":5},"","",{"$nulls":18},"","","","",{"$nulls":30},"","","","",{"$nulls":60},"","","","",""]
["",{"$nulls":5},"","",{"$nulls":18},"","","","",{"$nulls":30},"","","","",{"$nulls":60},"","","","",""]
["",{"$nulls":5},"","",{"$nulls":18},"","","","",{"$nulls":30},"","","","",{"$nulls":60},"","","","",""]
["",{"$nulls":5},"","",{"$nulls":18},"","","","",{"$nulls":30},"","","","",{"$nulls":60},"","","","",""]
["",{"$nulls":5},"","",{"$nulls":18},"","","","",{"$nulls":30},"","","","",{"$nulls":60},"","","","",""]
["",{"$nulls":5},"","",{"$nulls":18},"","","","",{"$nulls":30},"","","","",{"$nulls":60},"","","","",""]
["",{"$nulls":5},"","",{"$nulls":18},"","","","",{"$nulls":30},"","","","",{"$nulls":60},"","","","",""]
["",{"$nulls":5},"","",{"$nulls":18},"","","","",{"$nulls":30},"","","","",{"$nulls":60},"","","","",""]
["",{"$nulls":5},"","",{"$nulls":18},"","","","",{"$nulls":30},"","","","",{"$nulls":60},"","","","",""]
["",{"$nulls":5},"","",{"$nulls":18},"","","","",{"$nulls":30},"","","","",{"$nulls":60},"","","","",""]
["",{"$nulls":5},"","",{"$nulls":18},"","","","",{"$nulls":30},"","","","",{"$nulls":60},"","","","",""]
["",{"$nulls":5},"","",{"$nulls":18},"","","","",{"$nulls":30},"","","","",{"$nulls":60},"","","","",""]
["",{"$nulls":5},"","",{"$nulls":18},"","","","",{"$nulls":30},"","","","",{"$nulls":60},"","","","",""]
["",{"$nulls":5},"","",{"$nulls":18},"","","","",{"$nulls":30},"","","","",{"$nulls":60},"","","","",""]
["",{"$nulls":5},"","",{"$nulls":18},"","","","",{"$nulls":30},"","","","",{"$nulls":60},"","","","",""]
["",{"$nulls":5},"","",{"$nulls":18},"","","","",{"$nulls":30},"","","","",{"$nulls":60},"","","","",""]
["",{"$nulls":5},"","",{"$nulls":18},"","","","",{"$nulls":30},"","","","",{"$nulls":60},"","","","",""]
["",{"$nulls":5},"","",{"$nulls":18},"","","","",{"$nulls":30},"","","","",{"$nulls":60},"","","","",""]
["",{"$nulls":5},"","",{"$nulls":18},"","","","",{"$nulls":30},"","","","",{"$nulls":60},"","","","",""]
["",{"$nulls":5},"","",{"$nulls":18},"","","","",{"$nulls":30},"","","","",{"$nulls":60},"","","","",""]
["",{"$nulls":5},"","",{"$nulls":18},"","","","",{"$nulls":30},"","","","",{"$nulls":60},"","","","",""]
["",{"$nulls":5},"","",{"$nulls":18},"","","","",{"$nulls":30},"","","","",{"$nulls":60},"","","","",""]
["",{"$nulls":5},"","",{"$nulls":18},"","","","",{"$nulls":30},"","","","",{"$nulls":60},"","","","",""]
["",{"$nulls":5},"","",{"$nulls":18},"","","","",{"$nulls":30},"","","","",{"$nulls":60},"","","","",""]
["",{"$nulls":5},"","",{"$nulls":18},"","","","",{"$nulls":30},"","","","",{"$nulls":60},"","","","",""]
["",{"$nulls":5},"","",{"$nulls":18},"","","","",{"$nulls":30},"","","","",{"$nulls":60},"","","","",""]
["",{"$nulls":5},"","",{"$nulls":18},"","","","",{"$nulls":30},"","","","",{"$nulls":60},"","","","",""]
["",{"$nulls":5},"","",{"$nulls":18},"","","","",{"$nulls":30},"","","","",{"$nulls":60},"","","","",""]
["",{"$nulls":5},"","",{"$nulls":18},"","","","",{"$nulls":30},"","","","",{"$nulls":60},"","","","",""]
["",{"$nulls":5},"","",{"$nulls":18},"","","","",{"$nulls":30},"","","","",{"$nulls":60},"","","","",""]
["",{"$nulls":5},"","",{"$nulls":18},"","","","",{"$nulls":30},"","","","",{"$nulls":60},"","","","",""]
["",{"$nulls":5},"","",{"$nulls":18},"","","","",{"$nulls":30},"","","","",{"$nulls":60},"","","","",""]
["",{"$nulls":5},"","",{"$nulls":18},"","","","",{"$nulls":30},"","","","",{"$nulls":60},"","","","",""]
["",{"$nulls":5},"","",{"$nulls":18},"","","","",{"$nulls":30},"","","","",{"$nulls":60},"","","","",""]
["",{"$nulls":5},"","",{"$nulls":18},"","","","",{"$nulls":30},"","","","",{"$nulls":60},"","","","",""]
["",{"$nulls":5},"","",{"$nulls":18},"","","","",{"$nulls":30},"","","","",{"$nulls":60},"","","","",""]
["",{"$nulls":5},"","",{"$nulls":18},"","","","",{"$nulls":30},"","","","",{"$nulls":60},"","","","",""]
["",{"$nulls":5},"","",{"$nulls":18},"","","","",{"$nulls":30},"","","","",{"$nulls":60},"","","","",""]
["",{"$nulls":5},"","",{"$nulls":18},"","","","",{"$nulls":30},"","","","",{"$nulls":60},"","","","",""]
["",{"$nulls":5},"","",{"$nulls":18},"","","","",{"$nulls":30},"","","","",{"$nulls":60},"","","","",""]
["",{"$nulls":5},"","",{"$nulls":18},"","","","",{"$nulls":30},"","","","",{"$nulls":60},"","","","",""]
["",{"$nulls":5},"","",{"$nulls":18},"","","","",{"$nulls":30},"","","","",{"$nulls":60},"","","","",""]
["",{"$nulls":5},"","",{"$nulls":18},"","","","",{"$nulls":30},"","","","",{"$nulls":60},"","","","",""]
["",{"$nulls":5},"","",{"$nulls":18},"","","","",{"$nulls":30},"","","","",{"$nulls":60},"","","","",""]
["",{"$nulls":5},"","",{"$nulls":18},"","","","",{"$nulls":30},"","","","",{"$nulls":60},"","","","",""]
["",{"$nulls":5},"","",{"$nulls":18},"","","","",{"$nulls":30},"","","","",{"$nulls":60},"","","","",""]
["",{"$nulls":5},"","",{"$nulls":18},"","","","",{"$nulls":30},"","","","",{"$nulls":60},"","","","",""]
["",{"$nulls":5},"","",{"$nulls":18},"","","","",{"$nulls":30},"","","","",{"$nulls":60},"","","","",""]
["",{"$nulls":5},"","",{"$nulls":18},"","","","",{"$nulls":30},"","","","",{"$nulls":60},"","","","",""]
["",{"$nulls":5},"","",{"$nulls":18},"","","","",{"$nulls":30},"","","","",{"$nulls":60},"","","","",""]
["",{"$nulls":5},"","",{"$nulls":18},"","","","",{"$nulls":30},"","","","",{"$nulls":60},"","","","",""]
["",{"$nulls":5},"","",{"$nulls":18},"","","","",{"$nulls":30},"","","","",{"$nulls":60},"","","","",""]
["",{"$nulls":5},"","",{"$nulls":18},"","","","",{"$nulls":30},"","","","",{"$nulls":60},"","","","",""]
["",{"$nulls":5},"","",{"$nulls":18},"","","","",{"$nulls":30},"","","","",{"$nulls":60},"","","","",""]
["",{"$nulls":5},"","",{"$nulls":18},"","","","",{"$nulls":30},"","","","",{"$nulls":60},"","","","",""]
["",{"$nulls":5},"","",{"$nulls":18},"","","","",{"$nulls":30},"","","","",{"$nulls":60},"","","","",""]
["",{"$nulls":5},"","",{"$nulls":18},"","","","",{"$nulls":30},"","","","",{"$nulls":60},"","","","",""]
["",{"$nulls":5},"","",{"$nulls":18},"","","","",{"$nulls":30},"","","","",{"$nulls":60},"","","","",""]
["",{"$nulls":5},"","",{"$nulls":18},"","","","",{"$nulls":30},"","","","",{"$nulls":60},"","","","",""]
["",{"$nulls":5},"","",{"$nulls":18},"","","","",{"$nulls":30},"","","","",{"$nulls":60},"","","","",""]
["",{"$nulls":5},"","",{"$nulls":18},"","","","",{"$nulls":30},"","","","",{"$nulls":60},"","","","",""]
["",{"$nulls":5},"","",{"$nulls":18},"","","","",{"$nulls":30},"","","","",{"$nulls":60},"","","","",""]
["",{"$nulls":5},"","",{"$nulls":18},"","","","",{"$nulls":30},"","","","",{"$nulls":60},"","","","",""]
["",{"$nulls":5},"","",{"$nulls":18},"","","","",{"$nulls":30},"","","","",{"$nulls":60},"","","","",""]
["",{"$nulls":5},"","",{"$nulls":18},"","","","",{"$nulls":30},"","","","",{"$nulls":60},"","","","",""]
["",{"$nulls":5},"","",{"$nulls":18},"","","","",{"$nulls":30},"","","","",{"$nulls":60},"","","","",""]
["",{"$nulls":5},"","",{"$nulls":18},"","","","",{"$nulls":30},"","","","",{"$nulls":60},"","","","",""]
["",{"$nulls":5},"","",{"$nulls":18},"","","","",{"$nulls":30},"","","","",{"$nulls":60},"","","","",""]
["",{"$nulls":5},"","",{"$nulls":18},"","","","",{"$nulls":30},"","","","",{"$nulls":60},"","","","",""]
["",{"$nulls":5},"","",{"$nulls":18},"","","","",{"$nulls":30},"","","","",{"$nulls":60},"","","","",""]
["",{"$nulls":5},"","",{"$nulls":18},"","","","",{"$nulls":30},"","","","",{"$nulls":60},"","","","",""]
["",{"$nulls":5},"","",{"$nulls":18},"","","","",{"$nulls":30},"","","","",{"$nulls":60},"","","","",""]
["",{"$nulls":5},"","",{"$nulls":18},"","","","",{"$nulls":30},"","","","",{"$nulls":60},"","","","",""]
["",{"$nulls":5},"","",{"$nulls":18},"","","","",{"$nulls":30},"","","","",{"$nulls":60},"","","","",""]
["",{"$nulls":5},"","",{"$nulls":18},"","","","",{"$nulls":30},"","","","",{"$nulls":60},"","","","",""]
["",{"$nulls":5},"","",{"$nulls":18},"","","","",{"$nulls":30},"","","","",{"$nulls":60},"","","","",""]
["",{"$nulls":5},"","",{"$nulls":18},"","","","",{"$nulls":30},"","","","",{"$nulls":60},"","","","",""]
["",{"$nulls":5},"","",{"$nulls":18},"","","","",{"$nulls":30},"","","","",{"$nulls":60},"","","","",""]
["",{"$nulls":5},"","",{"$nulls":18},"","","","",{"$nulls":30},"","","","",{"$nulls":60},"","","","",""]
["",{"$nulls":5},"","",{"$nulls":18},"","","","",{"$nulls":30},"","","","",{"$nulls":60},"","","","",""]
["",{"$nulls":5},"","",{"$nulls":18},"","","","",{"$nulls":30},"","","","",{"$nulls":60},"","","","",""]
["",{"$nulls":5},"","",{"$nulls":18},"","","","",{"$nulls":30},"","","","",{"$nulls":60},"","","","",""]
["",{"$nulls":5},"","",{"$nulls":18},"","","","",{"$nulls":30},"","","","",{"$nulls":60},"","","","",""]
["",{"$nulls":5},"","",{"$nulls":18},"","","","",{"$nulls":30},"","","","",{"$nulls":60},"","","","",""]
["",{"$nulls":5},"","",{"$nulls":18},"","","","",{"$nulls":30},"","","","",{"$nulls":60},"","","","",""]
["",{"$nulls":5},"","",{"$nulls":18},"","","","",{"$nulls":30},"","","","",{"$nulls":60},"","","","",""]
["",{"$nulls":5},"","",{"$nulls":18},"","","","",{"$nulls":30},"","","","",{"$nulls":60},"","","","",""]
["",{"$nulls":5},"","",{"$nulls":18},"","","","",{"$nulls":30},"","","","",{"$nulls":60},"","","","",""]
["",{"$nulls":5},"","",{"$nulls":18},"","","","",{"$nulls":30},"","","","",{"$nulls":60},"","","","",""]
["",{"$nulls":5},"","",{"$nulls":18},"","","","",{"$nulls":30},"","","","",{"$nulls":60},"","","","",""]
["",{"$nulls":5},"","",{"$nulls":18},"","","","",{"$nulls":30},"","","","",{"$nulls":60},"","","","",""]
["",{"$nulls":5},"","",{"$nulls":18},"","","","",{"$nulls":30},"","","","",{"$nulls":60},"","","","",""]
["",{"$nulls":5},"","",{"$nulls":18},"","","","",{"$nulls":30},"","","","",{"$nulls":60},"","","","",""]
["",{"$nulls":5},"","",{"$nulls":18},"","","","",{"$nulls":30},"","","","",{"$nulls":60},"","","","",""]
["",{"$nulls":5},"","",{"$nulls":18},"","","","",{"$nulls":30},"","","","",{"$nulls":60},"","","","",""]
["",{"$nulls":5},"","",{"$nulls":18},"","","","",{"$nulls":30},"","","","",{"$nulls":60},"","","","",""]
["",{"$nulls":5},"","",{"$nulls":18},"","","","",{"$nulls":30},"","","","",{"$nulls":60},"","","","",""]
["",{"$nulls":5},"","",{"$nulls":18},"","","","",{"$nulls":30},"","","","",{"$nulls":60},"","","","",""]
["",{"$nulls":5},"","",{"$nulls":18},"","","","",{"$nulls":30},"","","","",{"$nulls":60},"","","","",""]
["",{"$nulls":5},"","",{"$nulls":18},"","","","",{"$nulls":30},"","","","",{"$nulls":60},"","","","",""]
["",{"$nulls":5},"","",{"$nulls":18},"","","","",{"$nulls":30},"","","","",{"$nulls":60},"","","","",""]
["",{"$nulls":5},"","",{"$nulls":18},"","","","",{"$nulls":30},"","","","",{"$nulls":60},"","","","",""]
["",{"$nulls":5},"","",{"$nulls":18},"","","","",{"$nulls":30},"","","","",{"$nulls":60},"","","","",""]
["",{"$nulls":5},"","",{"$nulls":18},"","","","",{"$nulls":30},"","","","",{"$nulls":60},"","","","",""]
["",{"$nulls":5},"","",{"$nulls":18},"","","","",{"$nulls":30},"","","","",{"$nulls":60},"","","","",""]
["",{"$nulls":5},"","",{"$nulls":18},"","","","",{"$nulls":30},"","","","",{"$nulls":60},"","","","",""]
["",{"$nulls":5},"","",{"$nulls":18},"","","","",{"$nulls":30},"","","","",{"$nulls":60},"","","","",""]
["",{"$nulls":5},"","",{"$nulls":18},"","","","",{"$nulls":30},"","","","",{"$nulls":60},"","","","",""]
["",{"$nulls":5},"","",{"$nulls":18},"","","","",{"$nulls":30},"","","","",{"$nulls":60},"","","","",""]
["",{"$nulls":5},"","",{"$nulls":18},"","","","",{"$nulls":30},"","","","",{"$nulls":60},"","","","",""]
["",{"$nulls":5},"","",{"$nulls":18},"","","","",{"$nulls":30},"","","","",{"$nulls":60},"","","","",""]
["",{"$nulls":5},"","",{"$nulls":18},"","","","",{"$nulls":30},"","","","",{"$nulls":60},"","","","",""]
["",{"$nulls":5},"","",{"$nulls":18},"","","","",{"$nulls":30},"","","","",{"$nulls":60},"","","","",""]
["",{"$nulls":5},"","",{"$nulls":18},"","","","",{"$nulls":30},"","","","",{"$nulls":60},"","","","",""]
["",{"$nulls":5},"","",{"$nulls":18},"","","","",{"$nulls":30},"","","","",{"$nulls":60},"","","","",""]
["",{"$nulls":5},"","",{"$nulls":18},"","","","",{"$nulls":30},"","","","",{"$nulls":60},"","","","",""]
["",{"$nulls":5},"","",{"$nulls":18},"","","","",{"$nulls":30},"","","","",{"$nulls":60},"","","","",""]
["",{"$nulls":5},"","",{"$nulls":18},"","","","",{"$nulls":30},"","","","",{"$nulls":60},"","","","",""]
["",{"$nulls":5},"","",{"$nulls":18},"","","","",{"$nulls":30},"","","","",{"$nulls":60},"","","","",""]
["",{"$nulls":5},"","",{"$nulls":18},"","","","",{"$nulls":30},"","","","",{"$nulls":60},"","","","",""]
["",{"$nulls":5},"","",{"$nulls":18},"","","","",{"$nulls":30},"","","","",{"$nulls":60},"","","","",""]
["",{"$nulls":5},"","",{"$nulls":18},"","","","",{"$nulls":30},"","","","",{"$nulls":60},"","","","",""]
["",{"$nulls":5},"","",{"$nulls":18},"","","","",{"$nulls":30},"","","","",{"$nulls":60},"","","","",""]
["",{"$nulls":5},"","",{"$nulls":18},"","","","",{"$nulls":30},"","","","",{"$nulls":60},"","","","",""]
["",{"$nulls":5},"","",{"$nulls":18},"","","","",{"$nulls":30},"","","","",{"$nulls":60},"","","","",""]
["",{"$nulls":5},"","",{"$nulls":18},"","","","",{"$nulls":30},"","","","",{"$nulls":60},"","","","",""]
["",{"$nulls":5},"","",{"$nulls":18},"","","","",{"$nulls":30},"","","","",{"$nulls":60},"","","","",""]
["",{"$nulls":5},"","",{"$nulls":18},"","","","",{"$nulls":30},"","","","",{"$nulls":60},"","","","",""]
["",{"$nulls":5},"","",{"$nulls":18},"","","","",{"$nulls":30},"","","","",{"$nulls":60},"","","","",""]
["",{"$nulls":5},"","",{"$nulls":18},"","","","",{"$nulls":30},"","","","",{"$nulls":60},"","","","",""]
["",{"$nulls":5},"","",{"$nulls":18},"","","","",{"$nulls":30},"","","","",{"$nulls":60},"","","","",""]
["",{"$nulls":5},"","",{"$nulls":18},"","","","",{"$nulls":30},"","","","",{"$nulls":60},"","","","",""]
["",{"$nulls":5},"","",{"$nulls":18},"","","","",{"$nulls":30},"","","","",{"$nulls":60},"","","","",""]
["",{"$nulls":5},"","",{"$nulls":18},"","","","",{"$nulls":30},"","","","",{"$nulls":60},"","","","",""]
["",{"$nulls":5},"","",{"$nulls":18},"","","","",{"$nulls":30},"","","","",{"$nulls":60},"","","","",""]
["",{"$nulls":5},"","",{"$nulls":18},"","","","",{"$nulls":30},"","","","",{"$nulls":60},"","","","",""]
["",{"$nulls":5},"","",{"$nulls":18},"","","","",{"$nulls":30},"","","","",{"$nulls":60},"","","","",""]
["",{"$nulls":5},"","",{"$nulls":18},"","","","",{"$nulls":30},"","","","",{"$nulls":60},"","","","",""]
["",{"$nulls":5},"","",{"$nulls":18},"","","","",{"$nulls":30},"","","","",{"$nulls":60},"","","","",""]
["",{"$nulls":5},"","",{"$nulls":18},"","","","",{"$nulls":30},"","","","",{"$nulls":60},"","","","",""]
["",{"$nulls":5},"","",{"$nulls":18},"","","","",{"$nulls":30},"","","","",{"$nulls":60},"","","","",""]
["",{"$nulls":5},"","",{"$nulls":18},"","","","",{"$nulls":30},"","","","",{"$nulls":60},"","","","",""]
["",{"$nulls":5},"","",{"$nulls":18},"","","","",{"$nulls":30},"","","","",{"$nulls":60},"","","","",""]
["",{"$nulls":5},"","",{"$nulls":18},"","","","",{"$nulls":30},"","","","",{"$nulls":60},"","","","",""]
["",{"$nulls":5},"","",{"$nulls":18},"","","","",{"$nulls":30},"","","","",{"$nulls":60},"","","","",""]
["",{"$nulls":5},"","",{"$nulls":18},"","","","",{"$nulls":30},"","","","",{"$nulls":60},"","","","",""]
["",{"$nulls":5},"","",{"$nulls":18},"","","","",{"$nulls":30},"","","","",{"$nulls":60},"","","","",""]
["",{"$nulls":5},"","",{"$nulls":18},"","","","",{"$nulls":30},"","","","",{"$nulls":60},"","","","",""]
["",{"$nulls":5},"","",{"$nulls":18},"","","","",{"$nulls":30},"","","","",{"$nulls":60},"","","","",""]
["",{"$nulls":5},"","",{"$nulls":18},"","","","",{"$nulls":30},"","","","",{"$nulls":60},"","","","",""]
["",{"$nulls":5},"","",{"$nulls":18},"","","","",{"$nulls":30},"","","","",{"$nulls":60},"","","","",""]
["",{"$nulls":5},"","",{"$nulls":18},"","","","",{"$nulls":30},"","","","",{"$nulls":60},"","","","",""]
["",{"$nulls":5},"","",{"$nulls":18},"","","","",{"$nulls":30},"","","","",{"$nulls":60},"","","","",""]
["",{"$nulls":5},"","",{"$nulls":18},"","","","",{"$nulls":30},"","","","",{"$nulls":60},"","","","",""]
["",{"$nulls":5},"","",{"$nulls":18},"","","","",{"$nulls":30},"","","","",{"$nulls":60},"","","","",""]
["",{"$nulls":5},"","",{"$nulls":18},"","","","",{"$nulls":30},"","","","",{"$nulls":60},"","","","",""]
["",{"$nulls":5},"","",{"$nulls":18},"","","","",{"$nulls":30},"","","","",{"$nulls":60},"","","","",""]
["",{"$nulls":5},"","",{"$nulls":18},"","","","",{"$nulls":30},"","","","",{"$nulls":60},"","","","",""]
["",{"$nulls":5},"","",{"$nulls":18},"","","","",{"$nulls":30},"","","","",{"$nulls":60},"","","","",""]
["",{"$nulls":5},"","",{"$nulls":18},"","","","",{"$nulls":30},"","","","",{"$nulls":60},"","","","",""]
["",{"$nulls":5},"","",{"$nulls":18},"","","","",{"$nulls":30},"","","","",{"$nulls":60},"","","","",""]
["",{"$nulls":5},"","",{"$nulls":18},"","","","",{"$nulls":30},"","","","",{"$nulls":60},"","","","",""]
["",{"$nulls":5},"","",{"$nulls":18},"","","","",{"$nulls":30},"","","","",{"$nulls":60},"","","","",""]
["",{"$nulls":5},"","",{"$nulls":18},"","","","",{"$nulls":30},"","","","",{"$nulls":60},"","","","",""]
["",{"$nulls":5},"","",{"$nulls":18},"","","","",{"$nulls":30},"","","","",{"$nulls":60},"","","","",""]
["",{"$nulls":5},"","",{"$nulls":18},"","","","",{"$nulls":30},"","","","",{"$nulls":60},"","","","",""]
["",{"$nulls":5},"","",{"$nulls":18},"","","","",{"$nulls":30},"","","","",{"$nulls":60},"","","","",""]
["",{"$nulls":5},"","",{"$nulls":18},"","","","",{"$nulls":30},"","","","",{"$nulls":60},"","","","",""]
["",{"$nulls":5},"","",{"$nulls":18},"","","","",{"$nulls":30},"","","","",{"$nulls":60},"","","","",""]
["",{"$nulls":5},"","",{"$nulls":18},"","","","",{"$nulls":30},"","","","",{"$nulls":60},"","","","",""]
["",{"$nulls":5},"","",{"$nulls":18},"","","","",{"$nulls":30},"","","","",{"$nulls":60},"","","","",""]
["",{"$nulls":5},"","",{"$nulls":18},"","","","",{"$nulls":30},"","","","",{"$nulls":60},"","","","",""]
["",{"$nulls":5},"","",{"$nulls":18},"","","","",{"$nulls":30},"","","","",{"$nulls":60},"","","","",""]
["",{"$nulls":5},"","",{"$nulls":18},"","","","",{"$nulls":30},"","","","",{"$nulls":60},"","","","",""]
["",{"$nulls":5},"","",{"$nulls":18},"","","","",{"$nulls":30},"","","","",{"$nulls":60},"","","","",""]
["",{"$nulls":5},"","",{"$nulls":18},"","","","",{"$nulls":30},"","","","",{"$nulls":60},"","","","",""]
["",{"$nulls":5},"","",{"$nulls":18},"","","","",{"$nulls":30},"","","","",{"$nulls":60},"","","","",""]
["",{"$nulls":5},"","",{"$nulls":18},"","","","",{"$nulls":30},"","","","",{"$nulls":60},"","","","",""]
["",{"$nulls":5},"","",{"$nulls":18},"","","","",{"$nulls":30},"","","","",{"$nulls":60},"","","","",""]
["",{"$nulls":5},"","",{"$nulls":18},"","","","",{"$nulls":30},"","","","",{"$nulls":60},"","","","",""]
["",{"$nulls":5},"","",{"$nulls":18},"","","","",{"$nulls":30},"","","","",{"$nulls":60},"","","","",""]
["",{"$nulls":5},"","",{"$nulls":18},"","","","",{"$nulls":30},"","","","",{"$nulls":60},"","","","",""]
["",{"$nulls":5},"","",{"$nulls":18},"","","","",{"$nulls":30},"","","","",{"$nulls":60},"","","","",""]
["",{"$nulls":5},"","",{"$nulls":18},"","","","",{"$nulls":30},"","","","",{"$nulls":60},"","","","",""]
["",{"$nulls":5},"","",{"$nulls":18},"","","","",{"$nulls":30},"","","","",{"$nulls":60},"","","","",""]
["",{"$nulls":5},"","",{"$nulls":18},"","","","",{"$nulls":30},"","","","",{"$nulls":60},"","","","",""]
["",{"$nulls":5},"","",{"$nulls":18},"","","","",{"$nulls":30},"","","","",{"$nulls":60},"","","","",""]
["",{"$nulls":5},"","",{"$nulls":18},"","","","",{"$nulls":30},"","","","",{"$nulls":60},"","","","",""]
["",{"$nulls":5},"","",{"$nulls":18},"","","","",{"$nulls":30},"","","","",{"$nulls":60},"","","","",""]
["",{"$nulls":5},"","",{"$nulls":18},"","","","",{"$nulls":30},"","","","",{"$nulls":60},"","","","",""]
["",{"$nulls":5},"","",{"$nulls":18},"","","","",{"$nulls":30},"","","","",{"$nulls":60},"","","","",""]
["",{"$nulls":5},"","",{"$nulls":18},"","","","",{"$nulls":30},"","","","",{"$nulls":60},"","","","",""]
["",{"$nulls":5},"","",{"$nulls":18},"","","","",{"$nulls":30},"","","","",{"$nulls":60},"","","","",""]
["",{"$nulls":5},"","",{"$nulls":18},"","","","",{"$nulls":30},"","","","",{"$nulls":60},"","","","",""]
["",{"$nulls":5},"","",{"$nulls":18},"","","","",{"$nulls":30},"","","","",{"$nulls":60},"","","","",""]
["",{"$nulls":5},"","",{"$nulls":18},"","","","",{"$nulls":30},"","","","",{"$nulls":60},"","","","",""]
["",{"$nulls":5},"","",{"$nulls":18},"","","","",{"$nulls":30},"","","","",{"$nulls":60},"","","","",""]
["",{"$nulls":5},"","",{"$nulls":18},"","","","",{"$nulls":30},"","","","",{"$nulls":60},"","","","",""]
["",{"$nulls":5},"","",{"$nulls":18},"","","","",{"$nulls":30},"","","","",{"$nulls":60},"","","","",""]
["",{"$nulls":5},"","",{"$nulls":18},"","","","",{"$nulls":30},"","","","",{"$nulls":60},"","","","",""]
["",{"$nulls":5},"","",{"$nulls":18},"","","","",{"$nulls":30},"","","","",{"$nulls":60},"","","","",""]
["",{"$nulls":5},"","",{"$nulls":18},"","","","",{"$nulls":30},"","","","",{"$nulls":60},"","","","",""]
["",{"$nulls":5},"","",{"$nulls":18},"","","","",{"$nulls":30},"","","","",{"$nulls":60},"","","","",""]
["",{"$nulls":5},"","",{"$nulls":18},"","","","",{"$nulls":30},"","","","",{"$nulls":60},"","","","",""]
["",{"$nulls":5},"","",{"$nulls":18},"","","","",{"$nulls":30},"","","","",{"$nulls":60},"","","","",""]
["",{"$nulls":5},"","",{"$nulls":18},"","","","",{"$nulls":30},"","","","",{"$nulls":60},"","","","",""]
["",{"$nulls":5},"","",{"$nulls":18},"","","","",{"$nulls":30},"","","","",{"$nulls":60},"","","","",""]
["",{"$nulls":5},"","",{"$nulls":18},"","","","",{"$nulls":30},"","","","",{"$nulls":60},"","","","",""]
["",{"$nulls":5},"","",{"$nulls":18},"","","","",{"$nulls":30},"","","","",{"$nulls":60},"","","","",""]
["",{"$nulls":5},"","",{"$nulls":18},"","","","",{"$nulls":30},"","","","",{"$nulls":60},"","","","",""]
["",{"$nulls":5},"","",{"$nulls":18},"","","","",{"$nulls":30},"","","","",{"$nulls":60},"","","","",""]
["",{"$nulls":5},"","",{"$nulls":18},"","","","",{"$nulls":30},"","","","",{"$nulls":60},"","","","",""]
["",{"$nulls":5},"","",{"$nulls":18},"","","","",{"$nulls":30},"","","","",{"$nulls":60},"","","","",""]
["",{"$nulls":5},"","",{"$nulls":18},"","","","",{"$nulls":30},"","","","",{"$nulls":60},"","","","",""]
["",{"$nulls":5},"","",{"$nulls":18},"","","","",{"$nulls":30},"","","","",{"$nulls":60},"","","","",""]
["",{"$nulls":5},"","",{"$nulls":18},"","","","",{"$nulls":30},"","","","",{"$nulls":60},"","","","",""]
["",{"$nulls":5},"","",{"$nulls":18},"","","","",{"$nulls":30},"","","","",{"$nulls":60},"","","","",""]
["",{"$nulls":5},"","",{"$nulls":18},"","","","",{"$nulls":30},"","","","",{"$nulls":60},"","","","",""]
["",{"$nulls":5},"","",{"$nulls":18},"","","","",{"$nulls":30},"","","","",{"$nulls":60},"","","","",""]
["",{"$nulls":5},"","",{"$nulls":18},"","","","",{"$nulls":30},"","","","",{"$nulls":60},"","","","",""]
["",{"$nulls":5},"","",{"$nulls":18},"","","","",{"$nulls":30},"","","","",{"$nulls":60},"","","","",""]
["",{"$nulls":5},"","",{"$nulls":18},"","","","",{"$nulls":30},"","","","",{"$nulls":60},"","","","",""]
["",{"$nulls":5},"","",{"$nulls":18},"","","","",{"$nulls":30},"","","","",{"$nulls":60},"","","","",""]
["",{"$nulls":5},"","",{"$nulls":18},"","","","",{"$nulls":30},"","","","",{"$nulls":60},"","","","",""]
["",{"$nulls":5},"","",{"$nulls":18},"","","","",{"$nulls":30},"","","","",{"$nulls":60},"","","","",""]
["",{"$nulls":5},"","",{"$nulls":18},"","","","",{"$nulls":30},"","","","",{"$nulls":60},"","","","",""]
["",{"$nulls":5},"","",{"$nulls":18},"","","","",{"$nulls":30},"","","","",{"$nulls":60},"","","","",""]
["",{"$nulls":5},"","",{"$nulls":18},"","","","",{"$nulls":30},"","","","",{"$nulls":60},"","","","",""]
["",{"$nulls":5},"","",{"$nulls":18},"","","","",{"$nulls":30},"","","","",{"$nulls":60},"","","","",""]
["",{"$nulls":5},"","",{"$nulls":18},"","","","",{"$nulls":30},"","","","",{"$nulls":60},"","","","",""]
["",{"$nulls":5},"","",{"$nulls":18},"","","","",{"$nulls":30},"","","","",{"$nulls":60},"","","","",""]
["",{"$nulls":5},"","",{"$nulls":18},"","","","",{"$nulls":30},"","","","",{"$nulls":60},"","","","",""]
["",{"$nulls":5},"","",{"$nulls":18},"","","","",{"$nulls":30},"","","","",{"$nulls":60},"","","","",""]
["",{"$nulls":5},"","",{"$nulls":18},"","","","",{"$nulls":30},"","","","",{"$nulls":60},"","","","",""]
["",{"$nulls":5},"","",{"$nulls":18},"","","","",{"$nulls":30},"","","","",{"$nulls":60},"","","","",""]
["",{"$nulls":5},"","",{"$nulls":18},"","","","",{"$nulls":30},"","","","",{"$nulls":60},"","","","",""]
["",{"$nulls":5},"","",{"$nulls":18},"","","","",{"$nulls":30},"","","","",{"$nulls":60},"","","","",""]
["",{"$nulls":5},"","",{"$nulls":18},"","","","",{"$nulls":30},"","","","",{"$nulls":60},"","","","",""]
["",{"$nulls":5},"","",{"$nulls":18},"","","","",{"$nulls":30},"","","","",{"$nulls":60},"","","","",""]
["",{"$nulls":5},"","",{"$nulls":18},"","","","",{"$nulls":30},"","","","",{"$nulls":60},"","","","",""]
["",{"$nulls":5},"","",{"$nulls":18},"","","","",{"$nulls":30},"","","","",{"$nulls":60},"","","","",""]
["",{"$nulls":5},"","",{"$nulls":18},"","","","",{"$nulls":30},"","","","",{"$nulls":60},"","","","",""]
["",{"$nulls":5},"","",{"$nulls":18},"","","","",{"$nulls":30},"","","","",{"$nulls":60},"","","","",""]
["",{"$nulls":5},"","",{"$nulls":18},"","","","",{"$nulls":30},"","","","",{"$nulls":60},"","","","",""]
["",{"$nulls":5},"","",{"$nulls":18},"","","","",{"$nulls":30},"","","","",{"$nulls":60},"","","","",""]
["",{"$nulls":5},"","",{"$nulls":18},"","","","",{"$nulls":30},"","","","",{"$nulls":60},"","","","",""]
["",{"$nulls":5},"","",{"$nulls":18},"","","","",{"$nulls":30},"","","","",{"$nulls":60},"","","","",""]
["",{"$nulls":5},"","",{"$nulls":18},"","","","",{"$nulls":30},"","","","",{"$nulls":60},"","","","",""]
["",{"$nulls":5},"","",{"$nulls":18},"","","","",{"$nulls":30},"","","","",{"$nulls":60},"","","","",""]
["",{"$nulls":5},"","",{"$nulls":18},"","","","",{"$nulls":30},"","","","",{"$nulls":60},"","","","",""]
["",{"$nulls":5},"","",{"$nulls":18},"","","","",{"$nulls":30},"","","","",{"$nulls":60},"","","","",""]
["",{"$nulls":5},"","",{"$nulls":18},"","","","",{"$nulls":30},"","","","",{"$nulls":60},"","","","",""]
["",{"$nulls":5},"","",{"$nulls":18},"","","","",{"$nulls":30},"","","","",{"$nulls":60},"","","","",""]
["",{"$nulls":5},"","",{"$nulls":18},"","","","",{"$nulls":30},"","","","",{"$nulls":60},"","","","",""]
["",{"$nulls":5},"","",{"$nulls":18},"","","","",{"$nulls":30},"","","","",{"$nulls":60},"","","","",""]
["",{"$nulls":5},"","",{"$nulls":18},"","","","",{"$nulls":30},"","","","",{"$nulls":60},"","","","",""]
["",{"$nulls":5},"","",{"$nulls":18},"","","","",{"$nulls":30},"","","","",{"$nulls":60},"","","","",""]
["",{"$nulls":5},"","",{"$nulls":18},"","","","",{"$nulls":30},"","","","",{"$nulls":60},"","","","",""]
["",{"$nulls":5},"","",{"$nulls":18},"","","","",{"$nulls":30},"","","","",{"$nulls":60},"","","","",""]
["",{"$nulls":5},"","",{"$nulls":18},"","","","",{"$nulls":30},"","","","",{"$nulls":60},"","","","",""]
["",{"$nulls":5},"","",{"$nulls":18},"","","","",{"$nulls":30},"","","","",{"$nulls":60},"","","","",""]
["",{"$nulls":5},"","",{"$nulls":18},"","","","",{"$nulls":30},"","","","",{"$nulls":60},"","","","",""]
["",{"$nulls":5},"","",{"$nulls":18},"","","","",{"$nulls":30},"","","","",{"$nulls":60},"","","","",""]
["",{"$nulls":5},"","",{"$nulls":18},"","","","",{"$nulls":30},"","","","",{"$nulls":60},"","","","",""]
["",{"$nulls":5},"","",{"$nulls":18},"","","","",{"$nulls":30},"","","","",{"$nulls":60},"","","","",""]
["",{"$nulls":5},"","",{"$nulls":18},"","","","",{"$nulls":30},"","","","",{"$nulls":60},"","","","",""]
["",{"$nulls":5},"","",{"$nulls":18},"","","","",{"$nulls":30},"","","","",{"$nulls":60},"","","","",""]
["",{"$nulls":5},"","",{"$nulls":18},"","","","",{"$nulls":30},"","","","",{"$nulls":60},"","","","",""]
["",{"$nulls":5},"","",{"$nulls":18},"","","","",{"$nulls":30},"","","","",{"$nulls":60},"","","","",""]
["",{"$nulls":5},"","",{"$nulls":18},"","","","",{"$nulls":30},"","","","",{"$nulls":60},"","","","",""]
["",{"$nulls":5},"","",{"$nulls":18},"","","","",{"$nulls":30},"","","","",{"$nulls":60},"","","","",""]
["",{"$nulls":5},"","",{"$nulls":18},"","","","",{"$nulls":30},"","","","",{"$nulls":60},"","","","",""]
["",{"$nulls":5},"","",{"$nulls":18},"","","","",{"$nulls":30},"","","","",{"$nulls":60},"","","","",""]
["",{"$nulls":5},"","",{"$nulls":18},"","","","",{"$nulls":30},"","","","",{"$nulls":60},"","","","",""]
["",{"$nulls":5},"","",{"$nulls":18},"","","","",{"$nulls":30},"","","","",{"$nulls":60},"","","","",""]
["",{"$nulls":5},"","",{"$nulls":18},"","","","",{"$nulls":30},"","","","",{"$nulls":60},"","","","",""]
["",{"$nulls":5},"","",{"$nulls":18},"","","","",{"$nulls":30},"","","","",{"$nulls":60},"","","","",""]
["",{"$nulls":5},"","",{"$nulls":18},"","","","",{"$nulls":30},"","","","",{"$nulls":60},"","","","",""]
["",{"$nulls":5},"","",{"$nulls":18},"","","","",{"$nulls":30},"","","","",{"$nulls":60},"","","","",""]
["",{"$nulls":5},"","",{"$nulls":18},"","","","",{"$nulls":30},"","","","",{"$nulls":60},"","","","",""]
["",{"$nulls":5},"","",{"$nulls":18},"","","","",{"$nulls":30},"","","","",{"$nulls":60},"","","","",""]
["",{"$nulls":5},"","",{"$nulls":18},"","","","",{"$nulls":30},"","","","",{"$nulls":60},"","","","",""]
["",{"$nulls":5},"","",{"$nulls":18},"","","","",{"$nulls":30},"","","","",{"$nulls":60},"","","","",""]
["",{"$nulls":5},"","",{"$nulls":18},"","","","",{"$nulls":30},"","","","",{"$nulls":60},"","","","",""]
["",{"$nulls":5},"","",{"$nulls":18},"","","","",{"$nulls":30},"","","","",{"$nulls":60},"","","","",""]
["",{"$nulls":5},"","",{"$nulls":18},"","","","",{"$nulls":30},"","","","",{"$nulls":60},"","","","",""]
["",{"$nulls":5},"","",{"$nulls":18},"","","","",{"$nulls":30},"","","","",{"$nulls":60},"","","","",""]
["",{"$nulls":5},"","",{"$nulls":18},"","","","",{"$nulls":30},"","","","",{"$nulls":60},"","","","",""]
["",{"$nulls":5},"","",{"$nulls":18},"","","","",{"$nulls":30},"","","","",{"$nulls":60},"","","","",""]
["",{"$nulls":5},"","",{"$nulls":18},"","","","",{"$nulls":30},"","","","",{"$nulls":60},"","","","",""]
["",{"$nulls":5},"","",{"$nulls":18},"","","","",{"$nulls":30},"","","","",{"$nulls":60},"","","","",""]
["",{"$nulls":5},"","",{"$nulls":18},"","","","",{"$nulls":30},"","","","",{"$nulls":60},"","","","",""]
["",{"$nulls":5},"","",{"$nulls":18},"","","","",{"$nulls":30},"","","","",{"$nulls":60},"","","","",""]
["",{"$nulls":5},"","",{"$nulls":18},"","","","",{"$nulls":30},"","","","",{"$nulls":60},"","","","",""]
["",{"$nulls":5},"","",{"$nulls":18},"","","","",{"$nulls":30},"","","","",{"$nulls":60},"","","","",""]
["",{"$nulls":5},"","",{"$nulls":18},"","","","",{"$nulls":30},"","","","",{"$nulls":60},"","","","",""]
["",{"$nulls":5},"","",{"$nulls":18},"","","","",{"$nulls":30},"","","","",{"$nulls":60},"","","","",""]
["",{"$nulls":5},"","",{"$nulls":18},"","","","",{"$nulls":30},"","","","",{"$nulls":60},"","","","",""]
["",{"$nulls":5},"","",{"$nulls":18},"","","","",{"$nulls":30},"","","","",{"$nulls":60},"","","","",""]
["",{"$nulls":5},"","",{"$nulls":18},"","","","",{"$nulls":30},"","","","",{"$nulls":60},"","","","",""]
["",{"$nulls":5},"","",{"$nulls":18},"","","","",{"$nulls":30},"","","","",{"$nulls":60},"","","","",""]
["",{"$nulls":5},"","",{"$nulls":18},"","","","",{"$nulls":30},"","","","",{"$nulls":60},"","","","",""]
["",{"$nulls":5},"","",{"$nulls":18},"","","","",{"$nulls":30},"","","","",{"$nulls":60},"","","","",""]
["",{"$nulls":5},"","",{"$nulls":18},"","","","",{"$nulls":30},"","","","",{"$nulls":60},"","","","",""]
["",{"$nulls":5},"","",{"$nulls":18},"","","","",{"$nulls":30},"","","","",{"$nulls":60},"","","","",""]
["",{"$nulls":5},"","",{"$nulls":18},"","","","",{"$nulls":30},"","","","",{"$nulls":60},"","","","",""]
["",{"$nulls":5},"","",{"$nulls":18},"","","","",{"$nulls":30},"","","","",{"$nulls":60},"","","","",""]
["",{"$nulls":5},"","",{"$nulls":18},"","","","",{"$nulls":30},"","","","",{"$nulls":60},"","","","",""]
["",{"$nulls":5},"","",{"$nulls":18},"","","","",{"$nulls":30},"","","","",{"$nulls":60},"","","","",""]
["",{"$nulls":5},"","",{"$nulls":18},"","","","",{"$nulls":30},"","","","",{"$nulls":60},"","","","",""]
["",{"$nulls":5},"","",{"$nulls":18},"","","","",{"$nulls":30},"","","","",{"$nulls":60},"","","","",""]
["",{"$nulls":5},"","",{"$nulls":18},"","","","",{"$nulls":30},"","","","",{"$nulls":60},"","","","",""]
["",{"$nulls":5},"","",{"$nulls":18},"","","","",{"$nulls":30},"","","","",{"$nulls":60},"","","","",""]
["",{"$nulls":5},"","",{"$nulls":18},"","","","",{"$nulls":30},"","","","",{"$nulls":60},"","","","",""]
["",{"$nulls":5},"","",{"$nulls":18},"","","","",{"$nulls":30},"","","","",{"$nulls":60},"","","","",""]
["",{"$nulls":5},"","",{"$nulls":18},"","","","",{"$nulls":30},"","","","",{"$nulls":60},"","","","",""]
["",{"$nulls":5},"","",{"$nulls":18},"","","","",{"$nulls":30},"","","","",{"$nulls":60},"","","","",""]
["",{"$nulls":5},"","",{"$nulls":18},"","","","",{"$nulls":30},"","","","",{"$nulls":60},"","","","",""]
["",{"$nulls":5},"","",{"$nulls":18},"","","","",{"$nulls":30},"","","","",{"$nulls":60},"","","","",""]
["",{"$nulls":5},"","",{"$nulls":18},"","","","",{"$nulls":30},"","","","",{"$nulls":60},"","","","",""]
["",{"$nulls":5},"","",{"$nulls":18},"","","","",{"$nulls":30},"","","","",{"$nulls":60},"","","","",""]
["",{"$nulls":5},"","",{"$nulls":18},"","","","",{"$nulls":30},"","","","",{"$nulls":60},"","","","",""]
["",{"$nulls":5},"","",{"$nulls":18},"","","","",{"$nulls":30},"","","","",{"$nulls":60},"","","","",""]
["",{"$nulls":5},"","",{"$nulls":18},"","","","",{"$nulls":30},"","","","",{"$nulls":60},"","","","",""]
["",{"$nulls":5},"","",{"$nulls":18},"","","","",{"$nulls":30},"","","","",{"$nulls":60},"","","","",""]
["",{"$nulls":5},"","",{"$nulls":18},"","","","",{"$nulls":30},"","","","",{"$nulls":60},"","","","",""]
["",{"$nulls":5},"","",{"$nulls":18},"","","","",{"$nulls":30},"","","","",{"$nulls":60},"","","","",""]
["",{"$nulls":5},"","",{"$nulls":18},"","","","",{"$nulls":30},"","","","",{"$nulls":60},"","","","",""]
["",{"$nulls":5},"","",{"$nulls":18},"","","","",{"$nulls":30},"","","","",{"$nulls":60},"","","","",""]
["",{"$nulls":5},"","",{"$nulls":18},"","","","",{"$nulls":30},"","","","",{"$nulls":60},"","","","",""]
["",{"$nulls":5},"","",{"$nulls":18},"","","","",{"$nulls":30},"","","","",{"$nulls":60},"","","","",""]
["",{"$nulls":5},"","",{"$nulls":18},"","","","",{"$nulls":30},"","","","",{"$nulls":60},"","","","",""]
["",{"$nulls":5},"","",{"$nulls":18},"","","","",{"$nulls":30},"","","","",{"$nulls":60},"","","","",""]
["",{"$nulls":5},"","",{"$nulls":18},"","","","",{"$nulls":30},"","","","",{"$nulls":60},"","","","",""]
["",{"$nulls":5},"","",{"$nulls":18},"","","","",{"$nulls":30},"","","","",{"$nulls":60},"","","","",""]
["",{"$nulls":5},"","",{"$nulls":18},"","","","",{"$nulls":30},"","","","",{"$nulls":60},"","","","",""]
["",{"$nulls":5},"","",{"$nulls":18},"","","","",{"$nulls":30},"","","","",{"$nulls":60},"","","","",""]
["",{"$nulls":5},"","",{"$nulls":18},"","","","",{"$nulls":30},"","","","",{"$nulls":60},"","","","",""]
["",{"$nulls":5},"","",{"$nulls":18},"","","","",{"$nulls":30},"","","","",{"$nulls":60},"","","","",""]
["",{"$nulls":5},"","",{"$nulls":18},"","","","",{"$nulls":30},"","","","",{"$nulls":60},"","","","",""]
["",{"$nulls":5},"","",{"$nulls":18},"","","","",{"$nulls":30},"","","","",{"$nulls":60},"","","","",""]
["",{"$nulls":5},"","",{"$nulls":18},"","","","",{"$nulls":30},"","","","",{"$nulls":60},"","","","",""]
["",{"$nulls":5},"","",{"$nulls":18},"","","","",{"$nulls":30},"","","","",{"$nulls":60},"","","","",""]
["",{"$nulls":5},"","",{"$nulls":18},"","","","",{"$nulls":30},"","","","",{"$nulls":60},"","","","",""]
["",{"$nulls":5},"","",{"$nulls":18},"","","","",{"$nulls":30},"","","","",{"$nulls":60},"","","","",""]
["",{"$nulls":5},"","",{"$nulls":18},"","","","",{"$nulls":30},"","","","",{"$nulls":60},"","","","",""]
["",{"$nulls":5},"","",{"$nulls":18},"","","","",{"$nulls":30},"","","","",{"$nulls":60},"","","","",""]
["",{"$nulls":5},"","",{"$nulls":18},"","","","",{"$nulls":30},"","","","",{"$nulls":60},"","","","",""]
["",{"$nulls":5},"","",{"$nulls":18},"","","","",{"$nulls":30},"","","","",{"$nulls":60},"","","","",""]
["",{"$nulls":5},"","",{"$nulls":18},"","","","",{"$nulls":30},"","","","",{"$nulls":60},"","","","",""]
["",{"$nulls":5},"","",{"$nulls":18},"","","","",{"$nulls":30},"","","","",{"$nulls":60},"","","","",""]
["",{"$nulls":5},"","",{"$nulls":18},"","","","",{"$nulls":30},"","","","",{"$nulls":60},"","","","",""]
["",{"$nulls":5},"","",{"$nulls":18},"","","","",{"$nulls":30},"","","","",{"$nulls":60},"","","","",""]
["",{"$nulls":5},"","",{"$nulls":18},"","","","",{"$nulls":30},"","","","",{"$nulls":60},"","","","",""]
["",{"$nulls":5},"","",{"$nulls":18},"","","","",{"$nulls":30},"","","","",{"$nulls":60},"","","","",""]
["",{"$nulls":5},"","",{"$nulls":18},"","","","",{"$nulls":30},"","","","",{"$nulls":60},"","","","",""]
["",{"$nulls":5},"","",{"$nulls":18},"","","","",{"$nulls":30},"","","","",{"$nulls":60},"","","","",""]
["",{"$nulls":5},"","",{"$nulls":18},"","","","",{"$nulls":30},"","","","",{"$nulls":60},"","","","",""]
["",{"$nulls":5},"","",{"$nulls":18},"","","","",{"$nulls":30},"","","","",{"$nulls":60},"","","","",""]
["",{"$nulls":5},"","",{"$nulls":18},"","","","",{"$nulls":30},"","","","",{"$nulls":60},"","","","",""]
["",{"$nulls":5},"","",{"$nulls":18},"","","","",{"$nulls":30},"","","","",{"$nulls":60},"","","","",""]
["",{"$nulls":5},"","",{"$nulls":18},"","","","",{"$nulls":30},"","","","",{"$nulls":60},"","","","",""]
["",{"$nulls":5},"","",{"$nulls":18},"","","","",{"$nulls":30},"","","","",{"$nulls":60},"","","","",""]
["",{"$nulls":5},"","",{"$nulls":18},"","","","",{"$nulls":30},"","","","",{"$nulls":60},"","","","",""]
["",{"$nulls":5},"","",{"$nulls":18},"","","","",{"$nulls":30},"","","","",{"$nulls":60},"","","","",""]
["",{"$nulls":5},"","",{"$nulls":18},"","","","",{"$nulls":30},"","","","",{"$nulls":60},"","","","",""]
["",{"$nulls":5},"","",{"$nulls":18},"","","","",{"$nulls":30},"","","","",{"$nulls":60},"","","","",""]
["",{"$nulls":5},"","",{"$nulls":18},"","","","",{"$nulls":30},"","","","",{"$nulls":60},"","","","",""]
["",{"$nulls":5},"","",{"$nulls":18},"","","","",{"$nulls":30},"","","","",{"$nulls":60},"","","","",""]
["",{"$nulls":5},"","",{"$nulls":18},"","","","",{"$nulls":30},"","","","",{"$nulls":60},"","","","",""]
["",{"$nulls":5},"","",{"$nulls":18},"","","","",{"$nulls":30},"","","","",{"$nulls":60},"","","","",""]
["",{"$nulls":5},"","",{"$nulls":18},"","","","",{"$nulls":30},"","","","",{"$nulls":60},"","","","",""]
["",{"$nulls":5},"","",{"$nulls":18},"","","","",{"$nulls":30},"","","","",{"$nulls":60},"","","","",""]
["",{"$nulls":5},"","",{"$nulls":18},"","","","",{"$nulls":30},"","","","",{"$nulls":60},"","","","",""]
["",{"$nulls":5},"","",{"$nulls":18},"","","","",{"$nulls":30},"","","","",{"$nulls":60},"","","","",""]
["",{"$nulls":5},"","",{"$nulls":18},"","","","",{"$nulls":30},"","","","",{"$nulls":60},"","","","",""]
["",{"$nulls":5},"","",{"$nulls":18},"","","","",{"$nulls":30},"","","","",{"$nulls":60},"","","","",""]
["",{"$nulls":5},"","",{"$nulls":18},"","","","",{"$nulls":30},"","","","",{"$nulls":60},"","","","",""]
["",{"$nulls":5},"","",{"$nulls":18},"","","","",{"$nulls":30},"","","","",{"$nulls":60},"","","","",""]
["",{"$nulls":5},"","",{"$nulls":18},"","","","",{"$nulls":30},"","","","",{"$nulls":60},"","","","",""]
["",{"$nulls":5},"","",{"$nulls":18},"","","","",{"$nulls":30},"","","","",{"$nulls":60},"","","","",""]
["",{"$nulls":5},"","",{"$nulls":18},"","","","",{"$nulls":30},"","","","",{"$nulls":60},"","","","",""]
["",{"$nulls":5},"","",{"$nulls":18},"","","","",{"$nulls":30},"","","","",{"$nulls":60},"","","","",""]
["",{"$nulls":5},"","",{"$nulls":18},"","","","",{"$nulls":30},"","","","",{"$nulls":60},"","","","",""]
["",{"$nulls":5},"","",{"$nulls":18},"","","","",{"$nulls":30},"","","","",{"$nulls":60},"","","","",""]
["",{"$nulls":5},"","",{"$nulls":18},"","","","",{"$nulls":30},"","","","",{"$nulls":60},"","","","",""]
["",{"$nulls":5},"","",{"$nulls":18},"","","","",{"$nulls":30},"","","","",{"$nulls":60},"","","","",""]
["",{"$nulls":5},"","",{"$nulls":18},"","","","",{"$nulls":30},"","","","",{"$nulls":60},"","","","",""]
["",{"$nulls":5},"","",{"$nulls":18},"","","","",{"$nulls":30},"","","","",{"$nulls":60},"","","","",""]
["",{"$nulls":5},"","",{"$nulls":18},"","","","",{"$nulls":30},"","","","",{"$nulls":60},"","","","",""]
["",{"$nulls":5},"","",{"$nulls":18},"","","","",{"$nulls":30},"","","","",{"$nulls":60},"","","","",""]
["",{"$nulls":5},"","",{"$nulls":18},"","","","",{"$nulls":30},"","","","",{"$nulls":60},"","","","",""]
["",{"$nulls":5},"","",{"$nulls":18},"","","","",{"$nulls":30},"","","","",{"$nulls":60},"","","","",""]
["",{"$nulls":5},"","",{"$nulls":18},"","","","",{"$nulls":30},"","","","",{"$nulls":60},"","","","",""]
["",{"$nulls":5},"","",{"$nulls":18},"","","","",{"$nulls":30},"","","","",{"$nulls":60},"","","","",""]
["",{"$nulls":5},"","",{"$nulls":18},"","","","",{"$nulls":30},"","","","",{"$nulls":60},"","","","",""]
["",{"$nulls":5},"","",{"$nulls":18},"","","","",{"$nulls":30},"","","","",{"$nulls":60},"","","","",""]
["",{"$nulls":5},"","",{"$nulls":18},"","","","",{"$nulls":30},"","","","",{"$nulls":60},"","","","",""]
["",{"$nulls":5},"","",{"$nulls":18},"","","","",{"$nulls":30},"","","","",{"$nulls":60},"","","","",""]
["",{"$nulls":5},"","",{"$nulls":18},"","","","",{"$nulls":30},"","","","",{"$nulls":60},"","","","",""]
["",{"$nulls":5},"","",{"$nulls":18},"","","","",{"$nulls":30},"","","","",{"$nulls":60},"","","","",""]
["",{"$nulls":5},"","",{"$nulls":18},"","","","",{"$nulls":30},"","","","",{"$nulls":60},"","","","",""]
["",{"$nulls":5},"","",{"$nulls":18},"","","","",{"$nulls":30},"","","","",{"$nulls":60},"","","","",""]
["",{"$nulls":5},"","",{"$nulls":18},"","","","",{"$nulls":30},"","","","",{"$nulls":60},"","","","",""]
["",{"$nulls":5},"","",{"$nulls":18},"","","","",{"$nulls":30},"","","","",{"$nulls":60},"","","","",""]
["",{"$nulls":5},"","",{"$nulls":18},"","","","",{"$nulls":30},"","","","",{"$nulls":60},"","","","",""]
["",{"$nulls":5},"","",{"$nulls":18},"","","","",{"$nulls":30},"","","","",{"$nulls":60},"","","","",""]
["",{"$nulls":5},"","",{"$nulls":18},"","","","",{"$nulls":30},"","","","",{"$nulls":60},"","","","",""]
["",{"$nulls":5},"","",{"$nulls":18},"","","","",{"$nulls":30},"","","","",{"$nulls":60},"","","","",""]
["",{"$nulls":5},"","",{"$nulls":18},"","","","",{"$nulls":30},"","","","",{"$nulls":60},"","","","",""]
["",{"$nulls":5},"","",{"$nulls":18},"","","","",{"$nulls":30},"","","","",{"$nulls":60},"","","","",""]
["",{"$nulls":5},"","",{"$nulls":18},"","","","",{"$nulls":30},"","","","",{"$nulls":60},"","","","",""]
["",{"$nulls":5},"","",{"$nulls":18},"","","","",{"$nulls":30},"","","","",{"$nulls":60},"","","","",""]
["",{"$nulls":5},"","",{"$nulls":18},"","","","",{"$nulls":30},"","","","",{"$nulls":60},"","","","",""]
["",{"$nulls":5},"","",{"$nulls":18},"","","","",{"$nulls":30},"","","","",{"$nulls":60},"","","","",""]
["",{"$nulls":5},"","",{"$nulls":18},"","","","",{"$nulls":30},"","","","",{"$nulls":60},"","","","",""]
["",{"$nulls":5},"","",{"$nulls":18},"","","","",{"$nulls":30},"","","","",{"$nulls":60},"","","","",""]
["",{"$nulls":5},"","",{"$nulls":18},"","","","",{"$nulls":30},"","","","",{"$nulls":60},"","","","",""]
["",{"$nulls":5},"","",{"$nulls":18},"","","","",{"$nulls":30},"","","","",{"$nulls":60},"","","","",""]
["",{"$nulls":5},"","",{"$nulls":18},"","","","",{"$nulls":30},"","","","",{"$nulls":60},"","","","",""]
["",{"$nulls":5},"","",{"$nulls":18},"","","","",{"$nulls":30},"","","","",{"$nulls":60},"","","","",""]
["",{"$nulls":5},"","",{"$nulls":18},"","","","",{"$nulls":30},"","","","",{"$nulls":60},"","","","",""]
["",{"$nulls":5},"","",{"$nulls":18},"","","","",{"$nulls":30},"","","","",{"$nulls":60},"","","","",""]
["",{"$nulls":5},"","",{"$nulls":18},"","","","",{"$nulls":30},"","","","",{"$nulls":60},"","","","",""]
["",{"$nulls":5},"","",{"$nulls":18},"","","","",{"$nulls":30},"","","","",{"$nulls":60},"","","","",""]
["",{"$nulls":5},"","",{"$nulls":18},"","","","",{"$nulls":30},"","","","",{"$nulls":60},"","","","",""]
["",{"$nulls":5},"","",{"$nulls":18},"","","","",{"$nulls":30},"","","","",{"$nulls":60},"","","","",""]
["",{"$nulls":5},"","",{"$nulls":18},"","","","",{"$nulls":30},"","","","",{"$nulls":60},"","","","",""]
["",{"$nulls":5},"","",{"$nulls":18},"","","","",{"$nulls":30},"","","","",{"$nulls":60},"","","","",""]
["",{"$nulls":5},"","",{"$nulls":18},"","","","",{"$nulls":30},"","","","",{"$nulls":60},"","","","",""]
["",{"$nulls":5},"","",{"$nulls":18},"","","","",{"$nulls":30},"","","","",{"$nulls":60},"","","","",""]
["",{"$nulls":5},"","",{"$nulls":18},"","","","",{"$nulls":30},"","","","",{"$nulls":60},"","","","",""]
["",{"$nulls":5},"","",{"$nulls":18},"","","","",{"$nulls":30},"","","","",{"$nulls":60},"","","","",""]
["",{"$nulls":5},"","",{"$nulls":18},"","","","",{"$nulls":30},"","","","",{"$nulls":60},"","","","",""]
["",{"$nulls":5},"","",{"$nulls":18},"","","","",{"$nulls":30},"","","","",{"$nulls":60},"","","","",""]
["",{"$nulls":5},"","",{"$nulls":18},"","","","",{"$nulls":30},"","","","",{"$nulls":60},"","","","",""]
["",{"$nulls":5},"","",{"$nulls":18},"","","","",{"$nulls":30},"","","","",{"$nulls":60},"","","","",""]
["",{"$nulls":5},"","",{"$nulls":18},"","","","",{"$nulls":30},"","","","",{"$nulls":60},"","","","",""]
["",{"$nulls":5},"","",{"$nulls":18},"","","","",{"$nulls":30},"","","","",{"$nulls":60},"","","","",""]
["",{"$nulls":5},"","",{"$nulls":18},"","","","",{"$nulls":30},"","","","",{"$nulls":60},"","","","",""]
["",{"$nulls":5},"","",{"$nulls":18},"","","","",{"$nulls":30},"","","","",{"$nulls":60},"","","","",""]
["",{"$nulls":5},"","",{"$nulls":18},"","","","",{"$nulls":30},"","","","",{"$nulls":60},"","","","",""]
["",{"$nulls":5},"","",{"$nulls":18},"","","","",{"$nulls":30},"","","","",{"$nulls":60},"","","","",""]
["",{"$nulls":5},"","",{"$nulls":18},"","","","",{"$nulls":30},"","","","",{"$nulls":60},"","","","",""]
["",{"$nulls":5},"","",{"$nulls":18},"","","","",{"$nulls":30},"","","","",{"$nulls":60},"","","","",""]
["",{"$nulls":5},"","",{"$nulls":18},"","","","",{"$nulls":30},"","","","",{"$nulls":60},"","","","",""]
["",{"$nulls":5},"","",{"$nulls":18},"","","","",{"$nulls":30},"","","","",{"$nulls":60},"","","","",""]
["",{"$nulls":5},"","",{"$nulls":18},"","","","",{"$nulls":30},"","","","",{"$nulls":60},"","","","",""]
["",{"$nulls":5},"","",{"$nulls":18},"","","","",{"$nulls":30},"","","","",{"$nulls":60},"","","","",""]
["",{"$nulls":5},"","",{"$nulls":18},"","","","",{"$nulls":30},"","","","",{"$nulls":60},"","","","",""]
["",{"$nulls":5},"","",{"$nulls":18},"","","","",{"$nulls":30},"","","","",{"$nulls":60},"","","","",""]
["",{"$nulls":5},"","",{"$nulls":18},"","","","",{"$nulls":30},"","","","",{"$nulls":60},"","","","",""]
["",{"$nulls":5},"","",{"$nulls":18},"","","","",{"$nulls":30},"","","","",{"$nulls":60},"","","","",""]
["",{"$nulls":5},"","",{"$nulls":18},"","","","",{"$nulls":30},"","","","",{"$nulls":60},"","","","",""]
["",{"$nulls":5},"","",{"$nulls":18},"","","","",{"$nulls":30},"","","","",{"$nulls":60},"","","","",""]
["",{"$nulls":5},"","",{"$nulls":18},"","","","",{"$nulls":30},"","","","",{"$nulls":60},"","","","",""]
["",{"$nulls":5},"","",{"$nulls":18},"","","","",{"$nulls":30},"","","","",{"$nulls":60},"","","","",""]
["",{"$nulls":5},"","",{"$nulls":18},"","","","",{"$nulls":30},"","","","",{"$nulls":60},"","","","",""]
["",{"$nulls":5},"","",{"$nulls":18},"","","","",{"$nulls":30},"","","","",{"$nulls":60},"","","","",""]
["",{"$nulls":5},"","",{"$nulls":18},"","","","",{"$nulls":30},"","","","",{"$nulls":60},"","","","",""]
["",{"$nulls":5},"","",{"$nulls":18},"","","","",{"$nulls":30},"","","","",{"$nulls":60},"","","","",""]
["",{"$nulls":5},"","",{"$nulls":18},"","","","",{"$nulls":30},"","","","",{"$nulls":60},"","","","",""]
["",{"$nulls":5},"","",{"$nulls":18},"","","","",{"$nulls":30},"","","","",{"$nulls":60},"","","","",""]
["",{"$nulls":5},"","",{"$nulls":18},"","","","",{"$nulls":30},"","","","",{"$nulls":60},"","","","",""]
["",{"$nulls":5},"","",{"$nulls":18},"","","","",{"$nulls":30},"","","","",{"$nulls":60},"","","","",""]
["",{"$nulls":5},"","",{"$nulls":18},"","","","",{"$nulls":30},"","","","",{"$nulls":60},"","","","",""]
["",{"$nulls":5},"","",{"$nulls":18},"","","","",{"$nulls":30},"","","","",{"$nulls":60},"","","","",""]
["",{"$nulls":5},"","",{"$nulls":18},"","","","",{"$nulls":30},"","","","",{"$nulls":60},"","","","",""]
["",{"$nulls":5},"","",{"$nulls":18},"","","","",{"$nulls":30},"","","","",{"$nulls":60},"","","","",""]
["",{"$nulls":5},"","",{"$nulls":18},"","","","",{"$nulls":30},"","","","",{"$nulls":60},"","","","",""]
["",{"$nulls":5},"","",{"$nulls":18},"","","","",{"$nulls":30},"","","","",{"$nulls":60},"","","","",""]
["",{"$nulls":5},"","",{"$nulls":18},"","","","",{"$nulls":30},"","","","",{"$nulls":60},"","","","",""]
["",{"$nulls":5},"","",{"$nulls":18},"","","","",{"$nulls":30},"","","","",{"$nulls":60},"","","","",""]
["",{"$nulls":5},"","",{"$nulls":18},"","","","",{"$nulls":30},"","","","",{"$nulls":60},"","","","",""]
["",{"$nulls":5},"","",{"$nulls":18},"","","","",{"$nulls":30},"","","","",{"$nulls":60},"","","","",""]
["",{"$nulls":5},"","",{"$nulls":18},"","","","",{"$nulls":30},"","","","",{"$nulls":60},"","","","",""]
["",{"$nulls":5},"","",{"$nulls":18},"","","","",{"$nulls":30},"","","","",{"$nulls":60},"","","","",""]
["",{"$nulls":5},"","",{"$nulls":18},"","","","",{"$nulls":30},"","","","",{"$nulls":60},"","","","",""]
["",{"$nulls":5},"","",{"$nulls":18},"","","","",{"$nulls":30},"","","","",{"$nulls":60},"","","","",""]
["",{"$nulls":5},"","",{"$nulls":18},"","","","",{"$nulls":30},"","","","",{"$nulls":60},"","","","",""]
["",{"$nulls":5},"","",{"$nulls":18},"","","","",{"$nulls":30},"","","","",{"$nulls":60},"","","","",""]
["",{"$nulls":5},"","",{"$nulls":18},"","","","",{"$nulls":30},"","","","",{"$nulls":60},"","","","",""]
["",{"$nulls":5},"","",{"$nulls":18},"","","","",{"$nulls":30},"","","","",{"$nulls":60},"","","","",""]
["",{"$nulls":5},"","",{"$nulls":18},"","","","",{"$nulls":30},"","","","",{"$nulls":60},"","","","",""]
["",{"$nulls":5},"","",{"$nulls":18},"","","","",{"$nulls":30},"","","","",{"$nulls":60},"","","","",""]
["",{"$nulls":5},"","",{"$nulls":18},"","","","",{"$nulls":30},"","","","",{"$nulls":60},"","","","",""]
["",{"$nulls":5},"","",{"$nulls":18},"","","","",{"$nulls":30},"","","","",{"$nulls":60},"","","","",""]
["",{"$nulls":5},"","",{"$nulls":18},"","","","",{"$nulls":30},"","","","",{"$nulls":60},"","","","",""]
["",{"$nulls":5},"","",{"$nulls":18},"","","","",{"$nulls":30},"","","","",{"$nulls":60},"","","","",""]
["",{"$nulls":5},"","",{"$nulls":18},"","","","",{"$nulls":30},"","","","",{"$nulls":60},"","","","",""]
["",{"$nulls":5},"","",{"$nulls":18},"","","","",{"$nulls":30},"","","","",{"$nulls":60},"","","","",""]
["",{"$nulls":5},"","",{"$nulls":18},"","","","",{"$nulls":30},"","","","",{"$nulls":60},"","","","",""]
["",{"$nulls":5},"","",{"$nulls":18},"","","","",{"$nulls":30},"","","","",{"$nulls":60},"","","","",""]
["",{"$nulls":5},"","",{"$nulls":18},"","","","",{"$nulls":30},"","","","",{"$nulls":60},"","","","",""]
["",{"$nulls":5},"","",{"$nulls":18},"","","","",{"$nulls":30},"","","","",{"$nulls":60},"","","","",""]
["",{"$nulls":5},"","",{"$nulls":18},"","","","",{"$nulls":30},"","","","",{"$nulls":60},"","","","",""]
["",{"$nulls":5},"","",{"$nulls":18},"","","","",{"$nulls":30},"","","","",{"$nulls":60},"","","","",""]
["",{"$nulls":5},"","",{"$nulls":18},"","","","",{"$nulls":30},"","","","",{"$nulls":60},"","","","",""]
["",{"$nulls":5},"","",{"$nulls":18},"","","","",{"$nulls":30},"","","","",{"$nulls":60},"","","","",""]
["",{"$nulls":5},"","",{"$nulls":18},"","","","",{"$nulls":30},"","","","",{"$nulls":60},"","","","",""]
["",{"$nulls":5},"","",{"$nulls":18},"","","","",{"$nulls":30},"","","","",{"$nulls":60},"","","","",""]
["",{"$nulls":5},"","",{"$nulls":18},"","","","",{"$nulls":30},"","","","",{"$nulls":60},"","","","",""]
["",{"$nulls":5},"","",{"$nulls":18},"","","","",{"$nulls":30},"","","","",{"$nulls":60},"","","","",""]
["",{"$nulls":5},"","",{"$nulls":18},"","","","",{"$nulls":30},"","","","",{"$nulls":60},"","","","",""]
["",{"$nulls":5},"","",{"$nulls":18},"","","","",{"$nulls":30},"","","","",{"$nulls":60},"","","","",""]
["",{"$nulls":5},"","",{"$nulls":18},"","","","",{"$nulls":30},"","","","",{"$nulls":60},"","","","",""]
["",{"$nulls":5},"","",{"$nulls":18},"","","","",{"$nulls":30},"","","","",{"$nulls":60},"","","","",""]
["",{"$nulls":5},"","",{"$nulls":18},"","","","",{"$nulls":30},"","","","",{"$nulls":60},"","","","",""]
["",{"$nulls":5},"","",{"$nulls":18},"","","","",{"$nulls":30},"","","","",{"$nulls":60},"","","","",""]
["",{"$nulls":5},"","",{"$nulls":18},"","","","",{"$nulls":30},"","","","",{"$nulls":60},"","","","",""]
["",{"$nulls":5},"","",{"$nulls":18},"","","","",{"$nulls":30},"","","","",{"$nulls":60},"","","","",""]
["",{"$nulls":5},"","",{"$nulls":18},"","","","",{"$nulls":30},"","","","",{"$nulls":60},"","","","",""]
["",{"$nulls":5},"","",{"$nulls":18},"","","","",{"$nulls":30},"","","","",{"$nulls":60},"","","","",""]
["",{"$nulls":5},"","",{"$nulls":18},"","","","",{"$nulls":30},"","","","",{"$nulls":60},"","","","",""]
["",{"$nulls":5},"","",{"$nulls":18},"","","","",{"$nulls":30},"","","","",{"$nulls":60},"","","","",""]
["",{"$nulls":5},"","",{"$nulls":18},"","","","",{"$nulls":30},"","","","",{"$nulls":60},"","","","",""]
["",{"$nulls":5},"","",{"$nulls":18},"","","","",{"$nulls":30},"","","","",{"$nulls":60},"","","","",""]
["",{"$nulls":5},"","",{"$nulls":18},"","","","",{"$nulls":30},"","","","",{"$nulls":60},"","","","",""]
["",{"$nulls":5},"","",{"$nulls":18},"","","","",{"$nulls":30},"","","","",{"$nulls":60},"","","","",""]
["",{"$nulls":5},"","",{"$nulls":18},"","","","",{"$nulls":30},"","","","",{"$nulls":60},"","","","",""]
["",{"$nulls":5},"","",{"$nulls":18},"","","","",{"$nulls":30},"","","","",{"$nulls":60},"","","","",""]
["",{"$nulls":5},"","",{"$nulls":18},"","","","",{"$nulls":30},"","","","",{"$nulls":60},"","","","",""]
["",{"$nulls":5},"","",{"$nulls":18},"","","","",{"$nulls":30},"","","","",{"$nulls":60},"","","","",""]
["",{"$nulls":5},"","",{"$nulls":18},"","","","",{"$nulls":30},"","","","",{"$nulls":60},"","","","",""]
["",{"$nulls":5},"","",{"$nulls":18},"","","","",{"$nulls":30},"","","","",{"$nulls":60},"","","","",""]
["",{"$nulls":5},"","",{"$nulls":18},"","","","",{"$nulls":30},"","","","",{"$nulls":60},"","","","",""]
["",{"$nulls":5},"","",{"$nulls":18},"","","","",{"$nulls":30},"","","","",{"$nulls":60},"","","","",""]
["",{"$nulls":5},"","",{"$nulls":18},"","","","",{"$nulls":30},"","","","",{"$nulls":60},"","","","",""]
["",{"$nulls":5},"","",{"$nulls":18},"","","","",{"$nulls":30},"","","","",{"$nulls":60},"","","","",""]
["",{"$nulls":5},"","",{"$nulls":18},"","","","",{"$nulls":30},"","","","",{"$nulls":60},"","","","",""]
["",{"$nulls":5},"","",{"$nulls":18},"","","","",{"$nulls":30},"","","","",{"$nulls":60},"","","","",""]
["",{"$nulls":5},"","",{"$nulls":18},"","","","",{"$nulls":30},"","","","",{"$nulls":60},"","","","",""]
["",{"$nulls":5},"","",{"$nulls":18},"","","","",{"$nulls":30},"","","","",{"$nulls":60},"","","","",""]
["",{"$nulls":5},"","",{"$nulls":18},"","","","",{"$nulls":30},"","","","",{"$nulls":60},"","","","",""]
["",{"$nulls":5},"","",{"$nulls":18},"","","","",{"$nulls":30},"","","","",{"$nulls":60},"","","","",""]
["",{"$nulls":5},"","",{"$nulls":18},"","","","",{"$nulls":30},"","","","",{"$nulls":60},"","","","",""]
["",{"$nulls":5},"","",{"$nulls":18},"","","","",{"$nulls":30},"","","","",{"$nulls":60},"","","","",""]
["",{"$nulls":5},"","",{"$nulls":18},"","","","",{"$nulls":30},"","","","",{"$nulls":60},"","","","",""]
["",{"$nulls":5},"","",{"$nulls":18},"","","","",{"$nulls":30},"","","","",{"$nulls":60},"","","","",""]
["",{"$nulls":5},"","",{"$nulls":18},"","","","",{"$nulls":30},"","","","",{"$nulls":60},"","","","",""]
["",{"$nulls":5},"","",{"$nulls":18},"","","","",{"$nulls":30},"","","","",{"$nulls":60},"","","","",""]
["",{"$nulls":5},"","",{"$nulls":18},"","","","",{"$nulls":30},"","","","",{"$nulls":60},"","","","",""]
["",{"$nulls":5},"","",{"$nulls":18},"","","","",{"$nulls":30},"","","","",{"$nulls":60},"","","","",""]
["",{"$nulls":5},"","",{"$nulls":18},"","","","",{"$nulls":30},"","","","",{"$nulls":60},"","","","",""]
["",{"$nulls":5},"","",{"$nulls":18},"","","","",{"$nulls":30},"","","","",{"$nulls":60},"","","","",""]
["",{"$nulls":5},"","",{"$nulls":18},"","","","",{"$nulls":30},"","","","",{"$nulls":60},"","","","",""]
["",{"$nulls":5},"","",{"$nulls":18},"","","","",{"$nulls":30},"","","","",{"$nulls":60},"","","","",""]
["",{"$nulls":5},"","",{"$nulls":18},"","","","",{"$nulls":30},"","","","",{"$nulls":60},"","","","",""]
["",{"$nulls":5},"","",{"$nulls":18},"","","","",{"$nulls":30},"","","","",{"$nulls":60},"","","","",""]
["",{"$nulls":5},"","",{"$nulls":18},"","","","",{"$nulls":30},"","","","",{"$nulls":60},"","","","",""]
["",{"$nulls":5},"","",{"$nulls":18},"","","","",{"$nulls":30},"","","","",{"$nulls":60},"","","","",""]
["",{"$nulls":5},"","",{"$nulls":18},"","","","",{"$nulls":30},"","","","",{"$nulls":60},"","","","",""]
["",{"$nulls":5},"","",{"$nulls":18},"","","","",{"$nulls":30},"","","","",{"$nulls":60},"","","","",""]
["",{"$nulls":5},"","",{"$nulls":18},"","","","",{"$nulls":30},"","","","",{"$nulls":60},"","","","",""]
["",{"$nulls":5},"","",{"$nulls":18},"","","","",{"$nulls":30},"","","","",{"$nulls":60},"","","","",""]
["",{"$nulls":5},"","",{"$nulls":18},"","","","",{"$nulls":30},"","","","",{"$nulls":60},"","","","",""]
["",{"$nulls":5},"","",{"$nulls":18},"","","","",{"$nulls":30},"","","","",{"$nulls":60},"","","","",""]
["",{"$nulls":5},"","",{"$nulls":18},"","","","",{"$nulls":30},"","","","",{"$nulls":60},"","","","",""]
["",{"$nulls":5},"","",{"$nulls":18},"","","","",{"$nulls":30},"","","","",{"$nulls":60},"","","","",""]
["",{"$nulls":5},"","",{"$nulls":18},"","","","",{"$nulls":30},"","","","",{"$nulls":60},"","","","",""]
["",{"$nulls":5},"","",{"$nulls":18},"","","","",{"$nulls":30},"","","","",{"$nulls":60},"","","","",""]
["",{"$nulls":5},"","",{"$nulls":18},"","","","",{"$nulls":30},"","","","",{"$nulls":60},"","","","",""]
["",{"$nulls":5},"","",{"$nulls":18},"","","","",{"$nulls":30},"","","","",{"$nulls":60},"","","","",""]
["",{"$nulls":5},"","",{"$nulls":18},"","","","",{"$nulls":30},"","","","",{"$nulls":60},"","","","",""]
["",{"$nulls":5},"","",{"$nulls":18},"","","","",{"$nulls":30},"","","","",{"$nulls":60},"","","","",""]
["",{"$nulls":5},"","",{"$nulls":18},"","","","",{"$nulls":30},"","","","",{"$nulls":60},"","","","",""]
["",{"$nulls":5},"","",{"$nulls":18},"","","","",{"$nulls":30},"","","","",{"$nulls":60},"","","","",""]
["",{"$nulls":5},"","",{"$nulls":18},"","","","",{"$nulls":30},"","","","",{"$nulls":60},"","","","",""]
["",{"$nulls":5},"","",{"$nulls":18},"","","","",{"$nulls":30},"","","","",{"$nulls":60},"","","","",""]
["",{"$nulls":5},"","",{"$nulls":18},"","","","",{"$nulls":30},"","","","",{"$nulls":60},"","","","",""]
["",{"$nulls":5},"","",{"$nulls":18},"","","","",{"$nulls":30},"","","","",{"$nulls":60},"","","","",""]
["",{"$nulls":5},"","",{"$nulls":18},"","","","",{"$nulls":30},"","","","",{"$nulls":60},"","","","",""]
["",{"$nulls":5},"","",{"$nulls":18},"","","","",{"$nulls":30},"","","","",{"$nulls":60},"","","","",""]
["",{"$nulls":5},"","",{"$nulls":18},"","","","",{"$nulls":30},"","","","",{"$nulls":60},"","","","",""]
["",{"$nulls":5},"","",{"$nulls":18},"","","","",{"$nulls":30},"","","","",{"$nulls":60},"","","","",""]
["",{"$nulls":5},"","",{"$nulls":18},"","","","",{"$nulls":30},"","","","",{"$nulls":60},"","","","",""]
["",{"$nulls":5},"","",{"$nulls":18},"","","","",{"$nulls":30},"","","","",{"$nulls":60},"","","","",""]
["",{"$nulls":5},"","",{"$nulls":18},"","","","",{"$nulls":30},"","","","",{"$nulls":60},"","","","",""]
["",{"$nulls":5},"","",{"$nulls":18},"","","","",{"$nulls":30},"","","","",{"$nulls":60},"","","","",""]
["",{"$nulls":5},"","",{"$nulls":18},"","","","",{"$nulls":30},"","","","",{"$nulls":60},"","","","",""]
["",{"$nulls":5},"","",{"$nulls":18},"","","","",{"$nulls":30},"","","","",{"$nulls":60},"","","","",""]
["",{"$nulls":5},"","",{"$nulls":18},"","","","",{"$nulls":30},"","","","",{"$nulls":60},"","","","",""]
["",{"$nulls":5},"","",{"$nulls":18},"","","","",{"$nulls":30},"","","","",{"$nulls":60},"","","","",""]
["",{"$nulls":5},"","",{"$nulls":18},"","","","",{"$nulls":30},"","","","",{"$nulls":60},"","","","",""]
["",{"$nulls":5},"","",{"$nulls":18},"","","","",{"$nulls":30},"","","","",{"$nulls":60},"","","","",""]
["",{"$nulls":5},"","",{"$nulls":18},"","","","",{"$nulls":30},"","","","",{"$nulls":60},"","","","",""]
["",{"$nulls":5},"","",{"$nulls":18},"","","","",{"$nulls":30},"","","","",{"$nulls":60},"","","","",""]
["",{"$nulls":5},"","",{"$nulls":18},"","","","",{"$nulls":30},"","","","",{"$nulls":60},"","","","",""]
["",{"$nulls":5},"","",{"$nulls":18},"","","","",{"$nulls":30},"","","","",{"$nulls":60},"","","","",""]
["",{"$nulls":5},"","",{"$nulls":18},"","","","",{"$nulls":30},"","","","",{"$nulls":60},"","","","",""]
["",{"$nulls":5},"","",{"$nulls":18},"","","","",{"$nulls":30},"","","","",{"$nulls":60},"","","","",""]
["",{"$nulls":5},"","",{"$nulls":18},"","","","",{"$nulls":30},"","","","",{"$nulls":60},"","","","",""]
["",{"$nulls":5},"","",{"$nulls":18},"","","","",{"$nulls":30},"","","","",{"$nulls":60},"","","","",""]
["",{"$nulls":5},"","",{"$nulls":18},"","","","",{"$nulls":30},"","","","",{"$nulls":60},"","","","",""]
["",{"$nulls":5},"","",{"$nulls":18},"","","","",{"$nulls":30},"","","","",{"$nulls":60},"","","","",""]
["",{"$nulls":5},"","",{"$nulls":18},"","","","",{"$nulls":30},"","","","",{"$nulls":60},"","","","",""]
["",{"$nulls":5},"","",{"$nulls":18},"","","","",{"$nulls":30},"","","","",{"$nulls":60},"","","","",""]
["",{"$nulls":5},"","",{"$nulls":18},"","","","",{"$nulls":30},"","","","",{"$nulls":60},"","","","",""]
["",{"$nulls":5},"","",{"$nulls":18},"","","","",{"$nulls":30},"","","","",{"$nulls":60},"","","","",""]
["",{"$nulls":5},"","",{"$nulls":18},"","","","",{"$nulls":30},"","","","",{"$nulls":60},"","","","",""]
["",{"$nulls":5},"","",{"$nulls":18},"","","","",{"$nulls":30},"","","","",{"$nulls":60},"","","","",""]
["",{"$nulls":5},"","",{"$nulls":18},"","","","",{"$nulls":30},"","","","",{"$nulls":60},"","","","",""]
["",{"$nulls":5},"","",{"$nulls":18},"","","","",{"$nulls":30},"","","","",{"$nulls":60},"","","","",""]
["",{"$nulls":5},"","",{"$nulls":18},"","","","",{"$nulls":30},"","","","",{"$nulls":60},"","","","",""]
["",{"$nulls":5},"","",{"$nulls":18},"","","","",{"$nulls":30},"","","","",{"$nulls":60},"","","","",""]
["",{"$nulls":5},"","",{"$nulls":18},"","","","",{"$nulls":30},"","","","",{"$nulls":60},"","","","",""]
["",{"$nulls":5},"","",{"$nulls":18},"","","","",{"$nulls":30},"","","","",{"$nulls":60},"","","","",""]
["",{"$nulls":5},"","",{"$nulls":18},"","","","",{"$nulls":30},"","","","",{"$nulls":60},"","","","",""]
["",{"$nulls":5},"","",{"$nulls":18},"","","","",{"$nulls":30},"","","","",{"$nulls":60},"","","","",""]
["",{"$nulls":5},"","",{"$nulls":18},"","","","",{"$nulls":30},"","","","",{"$nulls":60},"","","","",""]
["",{"$nulls":5},"","",{"$nulls":18},"","","","",{"$nulls":30},"","","","",{"$nulls":60},"","","","",""]
["",{"$nulls":5},"","",{"$nulls":18},"","","","",{"$nulls":30},"","","","",{"$nulls":60},"","","","",""]
["",{"$nulls":5},"","",{"$nulls":18},"","","","",{"$nulls":30},"","","","",{"$nulls":60},"","","","",""]
["",{"$nulls":5},"","",{"$nulls":18},"","","","",{"$nulls":30},"","","","",{"$nulls":60},"","","","",""]
["",{"$nulls":5},"","",{"$nulls":18},"","","","",{"$nulls":30},"","","","",{"$nulls":60},"","","","",""]
["",{"$nulls":5},"","",{"$nulls":18},"","","","",{"$nulls":30},"","","","",{"$nulls":60},"","","","",""]
["",{"$nulls":5},"","",{"$nulls":18},"","","","",{"$nulls":30},"","","","",{"$nulls":60},"","","","",""]
["",{"$nulls":5},"","",{"$nulls":18},"","","","",{"$nulls":30},"","","","",{"$nulls":60},"","","","",""]
["",{"$nulls":5},"","",{"$nulls":18},"","","","",{"$nulls":30},"","","","",{"$nulls":60},"","","","",""]
["",{"$nulls":5},"","",{"$nulls":18},"","","","",{"$nulls":30},"","","","",{"$nulls":60},"","","","",""]
["",{"$nulls":5},"","",{"$nulls":18},"","","","",{"$nulls":30},"","","","",{"$nulls":60},"","","","",""]
["",{"$nulls":5},"","",{"$nulls":18},"","","","",{"$nulls":30},"","","","",{"$nulls":60},"","","","",""]
["",{"$nulls":5},"","",{"$nulls":18},"","","","",{"$nulls":30},"","","","",{"$nulls":60},"","","","",""]
["",{"$nulls":5},"","",{"$nulls":18},"","","","",{"$nulls":30},"","","","",{"$nulls":60},"","","","",""]
["",{"$nulls":5},"","",{"$nulls":18},"","","","",{"$nulls":30},"","","","",{"$nulls":60},"","","","",""]
["",{"$nulls":5},"","",{"$nulls":18},"","","","",{"$nulls":30},"","","","",{"$nulls":60},"","","","",""]
["",{"$nulls":5},"","",{"$nulls":18},"","","","",{"$nulls":30},"","","","",{"$nulls":60},"","","","",""]
["",{"$nulls":5},"","",{"$nulls":18},"","","","",{"$nulls":30},"","","","",{"$nulls":60},"","","","",""]
["",{"$nulls":5},"","",{"$nulls":18},"","","","",{"$nulls":30},"","","","",{"$nulls":60},"","","","",""]
["",{"$nulls":5},"","",{"$nulls":18},"","","","",{"$nulls":30},"","","","",{"$nulls":60},"","","","",""]
["",{"$nulls":5},"","",{"$nulls":18},"","","","",{"$nulls":30},"","","","",{"$nulls":60},"","","","",""]
["",{"$nulls":5},"","",{"$nulls":18},"","","","",{"$nulls":30},"","","","",{"$nulls":60},"","","","",""]
["",{"$nulls":5},"","",{"$nulls":18},"","","","",{"$nulls":30},"","","","",{"$nulls":60},"","","","",""]
["",{"$nulls":5},"","",{"$nulls":18},"","","","",{"$nulls":30},"","","","",{"$nulls":60},"","","","",""]
["",{"$nulls":5},"","",{"$nulls":18},"","","","",{"$nulls":30},"","","","",{"$nulls":60},"","","","",""]
["",{"$nulls":5},"","",{"$nulls":18},"","","","",{"$nulls":30},"","","","",{"$nulls":60},"","","","",""]
["",{"$nulls":5},"","",{"$nulls":18},"","","","",{"$nulls":30},"","","","",{"$nulls":60},"","","","",""]
["",{"$nulls":5},"","",{"$nulls":18},"","","","",{"$nulls":30},"","","","",{"$nulls":60},"","","","",""]
["",{"$nulls":5},"","",{"$nulls":18},"","","","",{"$nulls":30},"","","","",{"$nulls":60},"","","","",""]
["",{"$nulls":5},"","",{"$nulls":18},"","","","",{"$nulls":30},"","","","",{"$nulls":60},"","","","",""]
["",{"$nulls":5},"","",{"$nulls":18},"","","","",{"$nulls":30},"","","","",{"$nulls":60},"","","","",""]
["",{"$nulls":5},"","",{"$nulls":18},"","","","",{"$nulls":30},"","","","",{"$nulls":60},"","","","",""]
["",{"$nulls":5},"","",{"$nulls":18},"","","","",{"$nulls":30},"","","","",{"$nulls":60},"","","","",""]
["",{"$nulls":5},"","",{"$nulls":18},"","","","",{"$nulls":30},"","","","",{"$nulls":60},"","","","",""]
["",{"$nulls":5},"","",{"$nulls":18},"","","","",{"$nulls":30},"","","","",{"$nulls":60},"","","","",""]
["",{"$nulls":5},"","",{"$nulls":18},"","","","",{"$nulls":30},"","","","",{"$nulls":60},"","","","",""]
["",{"$nulls":5},"","",{"$nulls":18},"","","","",{"$nulls":30},"","","","",{"$nulls":60},"","","","",""]
["",{"$nulls":5},"","",{"$nulls":18},"","","","",{"$nulls":30},"","","","",{"$nulls":60},"","","","",""]
["",{"$nulls":5},"","",{"$nulls":18},"","","","",{"$nulls":30},"","","","",{"$nulls":60},"","","","",""]
["",{"$nulls":5},"","",{"$nulls":18},"","","","",{"$nulls":30},"","","","",{"$nulls":60},"","","","",""]
["",{"$nulls":5},"","",{"$nulls":18},"","","","",{"$nulls":30},"","","","",{"$nulls":60},"","","","",""]
["",{"$nulls":5},"","",{"$nulls":18},"","","","",{"$nulls":30},"","","","",{"$nulls":60},"","","","",""]
["",{"$nulls":5},"","",{"$nulls":18},"","","","",{"$nulls":30},"","","","",{"$nulls":60},"","","","",""]
["",{"$nulls":5},"","",{"$nulls":18},"","","","",{"$nulls":30},"","","","",{"$nulls":60},"","","","",""]
["",{"$nulls":5},"","",{"$nulls":18},"","","","",{"$nulls":30},"","","","",{"$nulls":60},"","","","",""]
["",{"$nulls":5},"","",{"$nulls":18},"","","","",{"$nulls":30},"","","","",{"$nulls":60},"","","","",""]
["",{"$nulls":5},"","",{"$nulls":18},"","","","",{"$nulls":30},"","","","",{"$nulls":60},"","","","",""]
["",{"$nulls":5},"","",{"$nulls":18},"","","","",{"$nulls":30},"","","","",{"$nulls":60},"","","","",""]
["",{"$nulls":5},"","",{"$nulls":18},"","","","",{"$nulls":30},"","","","",{"$nulls":60},"","","","",""]
["",{"$nulls":5},"","",{"$nulls":18},"","","","",{"$nulls":30},"","","","",{"$nulls":60},"","","","",""]
["",{"$nulls":5},"","",{"$nulls":18},"","","","",{"$nulls":30},"","","","",{"$nulls":60},"","","","",""]
["",{"$nulls":5},"","",{"$nulls":18},"","","","",{"$nulls":30},"","","","",{"$nulls":60},"","","","",""]
["",{"$nulls":5},"","",{"$nulls":18},"","","","",{"$nulls":30},"","","","",{"$nulls":60},"","","","",""]
["",{"$nulls":5},"","",{"$nulls":18},"","","","",{"$nulls":30},"","","","",{"$nulls":60},"","","","",""]
["",{"$nulls":5},"","",{"$nulls":18},"","","","",{"$nulls":30},"","","","",{"$nulls":60},"","","","",""]
["",{"$nulls":5},"","",{"$nulls":18},"","","","",{"$nulls":30},"","","","",{"$nulls":60},"","","","",""]
["",{"$nulls":5},"","",{"$nulls":18},"","","","",{"$nulls":30},"","","","",{"$nulls":60},"","","","",""]
["",{"$nulls":5},"","",{"$nulls":18},"","","","",{"$nulls":30},"","","","",{"$nulls":60},"","","","",""]
["",{"$nulls":5},"","",{"$nulls":18},"","","","",{"$nulls":30},"","","","",{"$nulls":60},"","","","",""]
["",{"$nulls":5},"","",{"$nulls":18},"","","","",{"$nulls":30},"","","","",{"$nulls":60},"","","","",""]
["",{"$nulls":5},"","",{"$nulls":18},"","","","",{"$nulls":30},"","","","",{"$nulls":60},"","","","",""]
["",{"$nulls":5},"","",{"$nulls":18},"","","","",{"$nulls":30},"","","","",{"$nulls":60},"","","","",""]
["",{"$nulls":5},"","",{"$nulls":18},"","","","",{"$nulls":30},"","","","",{"$nulls":60},"","","","",""]
["",{"$nulls":5},"","",{"$nulls":18},"","","","",{"$nulls":30},"","","","",{"$nulls":60},"","","","",""]
["",{"$nulls":5},"","",{"$nulls":18},"","","","",{"$nulls":30},"","","","",{"$nulls":60},"","","","",""]
["",{"$nulls":5},"","",{"$nulls":18},"","","","",{"$nulls":30},"","","","",{"$nulls":60},"","","","",""]
["",{"$nulls":5},"","",{"$nulls":18},"","","","",{"$nulls":30},"","","","",{"$nulls":60},"","","","",""]
["",{"$nulls":5},"","",{"$nulls":18},"","","","",{"$nulls":30},"","","","",{"$nulls":60},"","","","",""]
["",{"$nulls":5},"","",{"$nulls":18},"","","","",{"$nulls":30},"","","","",{"$nulls":60},"","","","",""]
["",{"$nulls":5},"","",{"$nulls":18},"","","","",{"$nulls":30},"","","","",{"$nulls":60},"","","","",""]
["",{"$nulls":5},"","",{"$nulls":18},"","","","",{"$nulls":30},"","","","",{"$nulls":60},"","","","",""]
["",{"$nulls":5},"","",{"$nulls":18},"","","","",{"$nulls":30},"","","","",{"$nulls":60},"","","","",""]
["",{"$nulls":5},"","",{"$nulls":18},"","","","",{"$nulls":30},"","","","",{"$nulls":60},"","","","",""]
["",{"$nulls":5},"","",{"$nulls":18},"","","","",{"$nulls":30},"","","","",{"$nulls":60},"","","","",""]
["",{"$nulls":5},"","",{"$nulls":18},"","","","",{"$nulls":30},"","","","",{"$nulls":60},"","","","",""]
["",{"$nulls":5},"","",{"$nulls":18},"","","","",{"$nulls":30},"","","","",{"$nulls":60},"","","","",""]
["",{"$nulls":5},"","",{"$nulls":18},"","","","",{"$nulls":30},"","","","",{"$nulls":60},"","","","",""]
["",{"$nulls":5},"","",{"$nulls":18},"","","","",{"$nulls":30},"","","","",{"$nulls":60},"","","","",""]
["",{"$nulls":5},"","",{"$nulls":18},"","","","",{"$nulls":30},"","","","",{"$nulls":60},"","","","",""]
["",{"$nulls":5},"","",{"$nulls":18},"","","","",{"$nulls":30},"","","","",{"$nulls":60},"","","","",""]
["",{"$nulls":5},"","",{"$nulls":18},"","","","",{"$nulls":30},"","","","",{"$nulls":60},"","","","",""]
["",{"$nulls":5},"","",{"$nulls":18},"","","","",{"$nulls":30},"","","","",{"$nulls":60},"","","","",""]
["",{"$nulls":5},"","",{"$nulls":18},"","","","",{"$nulls":30},"","","","",{"$nulls":60},"","","","",""]
["",{"$nulls":5},"","",{"$nulls":18},"","","","",{"$nulls":30},"","","","",{"$nulls":60},"","","","",""]
["",{"$nulls":5},"","",{"$nulls":18},"","","","",{"$nulls":30},"","","","",{"$nulls":60},"","","","",""]
["",{"$nulls":5},"","",{"$nulls":18},"","","","",{"$nulls":30},"","","","",{"$nulls":60},"","","","",""]
["",{"$nulls":5},"","",{"$nulls":18},"","","","",{"$nulls":30},"","","","",{"$nulls":60},"","","","",""]
["",{"$nulls":5},"","",{"$nulls":18},"","","","",{"$nulls":30},"","","","",{"$nulls":60},"","","","",""]
["",{"$nulls":5},"","",{"$nulls":18},"","","","",{"$nulls":30},"","","","",{"$nulls":60},"","","","",""]
["",{"$nulls":5},"","",{"$nulls":18},"","","","",{"$nulls":30},"","","","",{"$nulls":60},"","","","",""]
["",{"$nulls":5},"","",{"$nulls":18},"","","","",{"$nulls":30},"","","","",{"$nulls":60},"","","","",""]
["",{"$nulls":5},"","",{"$nulls":18},"","","","",{"$nulls":30},"","","","",{"$nulls":60},"","","","",""]
["",{"$nulls":5},"","",{"$nulls":18},"","","","",{"$nulls":30},"","","","",{"$nulls":60},"","","","",""]
["",{"$nulls":5},"","",{"$nulls":18},"","","","",{"$nulls":30},"","","","",{"$nulls":60},"","","","",""]
["",{"$nulls":5},"","",{"$nulls":18},"","","","",{"$nulls":30},"","","","",{"$nulls":60},"","","","",""]
["",{"$nulls":5},"","",{"$nulls":18},"","","","",{"$nulls":30},"","","","",{"$nulls":60},"","","","",""]
["",{"$nulls":5},"","",{"$nulls":18},"","","","",{"$nulls":30},"","","","",{"$nulls":60},"","","","",""]
["",{"$nulls":5},"","",{"$nulls":18},"","","","",{"$nulls":30},"","","","",{"$nulls":60},"","","","",""]
["",{"$nulls":5},"","",{"$nulls":18},"","","","",{"$nulls":30},"","","","",{"$nulls":60},"","","","",""]
["",{"$nulls":5},"","",{"$nulls":18},"","","","",{"$nulls":30},"","","","",{"$nulls":60},"","","","",""]
["",{"$nulls":5},"","",{"$nulls":18},"","","","",{"$nulls":30},"","","","",{"$nulls":60},"","","","",""]
["",{"$nulls":5},"","",{"$nulls":18},"","","","",{"$nulls":30},"","","","",{"$nulls":60},"","","","",""]
["",{"$nulls":5},"","",{"$nulls":18},"","","","",{"$nulls":30},"","","","",{"$nulls":60},"","","","",""]
["",{"$nulls":5},"","",{"$nulls":18},"","","","",{"$nulls":30},"","","","",{"$nulls":60},"","","","",""]
["",{"$nulls":5},"","",{"$nulls":18},"","","","",{"$nulls":30},"","","","",{"$nulls":60},"","","","",""]
["",{"$nulls":5},"","",{"$nulls":18},"","","","",{"$nulls":30},"","","","",{"$nulls":60},"","","","",""]